{"text_format":"1","workbook":"xlsx","n_sheets":35,"sheets":["COVER","INDEX","Basic instructions","Validation rules","Methodology","GETTING STARTED","Footnotes list","OUTPUT","GROSS VALUE ADDED","EMPLOYMENT","EXPORTS","Codes and labels","Lists","Lists (Specific)","Changelog","ErrorLog","MacroBehaviour","Mandatory","IsNumeric","MustNotBeNegative","Summations","Locks","StandardFootnotes","Fill (Specific)","CrossChecks (Specific)","NotInFootNotesList (Specific)","NotStandardRules","x Pre-filling parameters","x ContentInHiddenSheets","x Between2Cells","x ForbiddenStrings","x MandatoryAtLeast","x Thresholds","x IsFormula","x FootnoteContent"],"not_rendered":{"charts":0,"images":3,"macros":1,"external_links":0,"defined_names":18,"comments":0,"pivot_tables":0},"unopened":[],"bounds":{"document_bytes":16777216,"sheet_cells":100000,"rows_first":2000,"rows_last":500,"rows_between":2000,"halvings":0,"cell_chars":16384,"cell_head_chars":4096},"cells_cut":0,"cells_raw":0,"read":"whole","date_system":"1900"}

{"sheet":"COVER","index":0,"n_rows":9,"n_cols":3,"rows_kept":9,"cut":false,"hidden":false,"merged":[]}
[]
[]
[null,null,{"$f":"UPPER(Lists!K3)","v":"STATISTICAL OFFICE OF THE EUROPEAN UNION"}]
[]
[null,null,{"$f":"Lists!K4","v":"Directorate E: Sectoral and regional statistics"}]
[null,null,{"$f":"Lists!K5","v":"Unit E-2: Environmental statistics and accounts; sustainable development"}]
[null,null,{"$f":"UPPER(Lists!K7)","v":"ANNUAL REPORTING OF ENVIRONMENTAL GOODS AND SERVICES (EGSS)"}]
[null,null,{"$f":"CONCATENATE(Lists!K8,\" DATA COLLECTION\")","v":"2024 DATA COLLECTION"}]
[null,null,{"$f":"CONCATENATE(\"Launching date: \",Lists!K9)","v":"Launching date: July 01st 2024"}]

{"sheet":"INDEX","index":1,"n_rows":23,"n_cols":5,"rows_kept":23,"cut":false,"hidden":false,"merged":[[14,2,14,4],[1,2,1,4],[3,2,3,4],[4,2,4,4],[6,2,6,4],[8,2,8,4]]}
[]
[]
[null,null,null,null,{"$f":"UPPER(Lists!K3)","v":"STATISTICAL OFFICE OF THE EUROPEAN UNION"}]
[null,null,{"$f":"UPPER(Lists!K7)","v":"ANNUAL REPORTING OF ENVIRONMENTAL GOODS AND SERVICES (EGSS)"}]
[null,null,{"$f":"CONCATENATE(Lists!K8,\" DATA COLLECTION\")","v":"2024 DATA COLLECTION"}]
[]
[null,null," INDEX - STRUCTURE OF THE QUESTIONNAIRE"]
[]
[null,null,"I. Basic information"]
[null,null,"TITLE","DESCRIPTION","TYPE"]
[null,null,"Index","Structure of the questionnaire","for information"]
[null,null,"Basic instructions ","Basic instructions","for reading before filling in the questionnaire"]
[null,null,"Validation rules","Validation rules","for reading before filling in the questionnaire"]
[null,null,"Methodology","Explanatory notes and methodology","for reading before filling in the questionnaire"]
[null,null,"II. Reporting data (To be filled in by the country)"]
[null,null,"TITLE","DESCRIPTION","TYPE"]
[null,null,"GETTING STARTED","Country and data collection definition. Administrative data.","for filling in"]
[null,null,"Footnotes list","List of country-specific explanatory footnotes","for filling in"]
[null,null,"OUTPUT","TO EDIT","for filling in"]
[null,null,"GROSS VALUE ADDED","TO EDIT","for filling in"]
[null,null,"EMPLOYMENT","TO EDIT","for filling in"]
[null,null,"EXPORTS","TO EDIT","for filling in"]
[null,null,"ErrorLog","Validation result. List of errors and warnings revealed by the validation process","For consultation"]

{"sheet":"Basic instructions","index":2,"n_rows":97,"n_cols":6,"rows_kept":97,"cut":false,"hidden":false,"merged":[[97,2,97,5],[77,2,77,5],[78,2,78,5],[79,2,79,5],[92,2,92,5],[94,2,94,5],[95,2,95,5],[96,2,96,5],[91,2,91,5],[83,2,83,5],[85,2,85,5],[87,2,87,5],[88,2,88,5],[89,2,89,5],[90,2,90,5],[75,2,75,5],[76,2,76,5],[80,2,80,5],[81,2,81,5],[82,2,82,5],[73,2,73,5],[57,2,57,5],[58,2,58,5],[61,2,61,5],[62,3,62,5],[63,3,63,5],[64,3,64,5],[65,2,65,5],[67,2,67,5],[68,3,68,5],[69,3,69,5],[72,2,72,5],[56,2,56,5],[34,3,34,5],[36,2,36,5],[38,2,38,5],[43,2,43,5],[44,2,44,5],[46,2,46,5],[48,2,48,5],[50,2,50,5],[52,2,52,5],[54,2,54,5],[45,2,45,5],[28,3,28,5],[10,2,10,5],[11,2,11,5],[12,2,12,5],[13,2,13,5],[14,2,14,5],[15,2,15,5],[16,2,16,5],[18,2,18,5],[20,2,20,5],[22,2,22,5],[27,2,27,5],[9,2,9,5],[3,2,3,5],[4,2,4,5],[6,2,6,5],[7,2,7,5],[8,2,8,5]]}
[]
[]
[null,null,null,null,null,{"$f":"UPPER(Lists!K3)","v":"STATISTICAL OFFICE OF THE EUROPEAN UNION"}]
[null,null,{"$f":"UPPER(Lists!K7)","v":"ANNUAL REPORTING OF ENVIRONMENTAL GOODS AND SERVICES (EGSS)"}]
[null,null,{"$f":"CONCATENATE(Lists!K8,\" DATA COLLECTION\")","v":"2024 DATA COLLECTION"}]
[]
[null,null,"BASIC INSTRUCTIONS"]
[null,null,"Eurostat invites you to read carefully the “Basic instructions” tab before editing the data worksheets: “OUTPUT” ,“GROSS VALUE ADDED”, \"EMPLOYMENT\" and “EXPORTS”.  This EXCEL workbook is the questionnaire. Please do not  delete or add rows in the questionnaire. Note also that the questionnaire has hidden columns used for internal data processing."]
[null,null,"This EXCEL workbook contains macros. In order to make them work you need to save the file in your computer and then reopen it and enable macros to make it a trusted document."]
[null,null,"Once you filled in all the required fields, you have to validate the data before submitting the questionnaire (clicking on the button 'Validate questionnaire' on the top left-hand corner of the worksheets). It is of the utmost importance to confirm that there are no pending errors (see 'Errorlog' worksheet), since a questionnaire with errors (red shadowed cells) will be rejected. You can restore the color of the table clicking on 'Restore table color'."]
[null,null,"Table of contents"]
[null,null,"   1. Data transmission"]
[null,null,"   2. Basic reporting conventions"]
[null,null,"   3. Quality Report"]
[" ","  ","   4. Footnotes"]
[null,null,"   5. Methodology and questions"]
[null,null,"   Annex 1: How to fill in the data sheets of the questionnaire\n   Annex 2: Reporting convention for 'not elsewhere classified', zeroes, 'not available' and more"]
[]
[null,null,"1. Data transmission:"]
[]
[null,null,"The standard tool for the transmission of statistical data is the eDAMIS system. The system creates a secure environment for the transmission of data, it records all data submissions and acknowledges the data delivery. The eDAMIS system has been installed in the National Statistical Institutes."]
[]
[null,null,"Please submit this questionnaire to Eurostat using the eDAMIS reporting system. Use the following details: "]
[null,null,"Domain name:",{"$f":"Lists!K12","v":"EGSS"}]
[null,null,"Dataset name:",{"$f":"Lists!K13","v":"ENVDATA_EGSS_A"}]
[null,null,"Please note that the Edamis channel will be open from September 1st 2024 onwards."]
[]
[null,null,"Should you have any questions regarding data transmission do not hesitate to contact your local eDAMIS coordinator or the Eurostat eDAMIS helpdesk at: "]
[null,null,"   web page:",{"$f":"Lists!K14","v":"https://webgate.ec.europa.eu/edamis4/contact-form"}]
[null,null,"   e-mail address:",{"$f":"Lists!K15","v":"ESTAT-DATA-METADATA-SERVICES@ec.europa.eu"}]
[null,null,"   telephone:","(+352) 430133213"]
[null,null,"For methodological questions please contact:"]
[null,null,"   e-mail address:",{"$f":"Lists!K18","v":"ESTAT-EGSS@ec.europa.eu"}]
[null,null,"Current reference year: ",2022]
[null,null,"Units of measure: ","OUTPUT, GROSS VALUE ADDED and EXPORTS: Millions of National Currency\nEMPLOYMENT: FTE"]
[]
[null,null,"2.  Basic reporting conventions:"]
[]
[null,null,"Reporting of zeroes and not availble data must follow this convention:"]
[null,null,"Description","Symbol"]
[null,null,"Real zero or negligible",0]
[null,null,"Not available",null," (empty cell)"]
[]
[null,null,"1. White shaded (uncoloured) boxes: Mandatory data provision. All these boxes have to be filled in."]
[null,null,"2. Grey shaded boxes: Calculation is automatic; cells are protected. If, for any technical reason, you were able to modify any of those cells, still please do not do it. The purpose is to facilitate the data reporting. Please note that the related formulae must not be overwritten, excluding exceptional occasions where you have to \"unlock formulas\" and handcode a value to report correctly."]
[null,null,"3. Cyan shaded boxes: Voluntary data provision."]
[null,null,"4. Light yellow boxes: Restricted to footnotes (see details in section 4 of this sheet)."]
[]
[null,null,"3. Quality Report:"]
[]
[null,null,"Please provide data by means of the \"Metadata handler\" online. "]
[]
[null,null,"4. Footnotes:"]
[]
[null,null,"You are asked to report data that follow as closely as possible EGSS guidance material and reporting rules (see paragraphs below). Please report problems with the coverage or data quality in the Quality Report."]
[]
[null,null,"Flags (footnote symbols) should be entered in the reporting tables in the footnote columns, next to the value cell. There are three types of footnotes: "]
[null,null,"- Letters for standard footnotes and for confidentiality (both as defined by Eurostat below) "]
[null,null,"- Numbers for country-specific footnotes (to be defined by the data compilers). "]
[]
[null,null,"4.1 Standard footnotes"]
[null,null,"The following footnotes will be used for the automatic data processing and data dissemination. Hence, they cannot be changed:"]
[null,null,"B) break in series","Please use this flag when the reported figure cannot be compared to the data reported for the previous year, e.g. because of new methods or sources being used or when you move from the old calculation rules to the new calculation rules. Please use this flag only when the change in methods, sources or calculation rules has a substantial impact."]
[null,null,"E) estimated data","Please use this flag only when a small subset of data points have been calculated using a significantly different methodology and/or sources than the rest of the data points in the questionnaire. Small methodological deviations should be explained in the Quality Report tab and should not be flagged as estimate."]
[null,null,"P) provisional","Please use this flag when you plan to revise the data. All p) footnotes of data for references years submitted in an earlier data collection, for which no data is not resubmitted in the current data collection, will be systematically removed by Eurostat."]
[null,null,"The drop-down menu includes as well combinations of footnotes. If you need to put more than one footnote in a field, please, use these combinations in the drop-down menu."]
[null,null,"4.2. Confidentiality footnote"]
[null,null,"In case you report a confidential figure in a value cell,  you may add one of the following pre-defined footnote symbols to indicate the level of confidentiality: 'c) Confidential' or 'd) Secondary confidentiality'."]
[null,null,"C) Confidential data ","Please, use C) for confidential statistical information ( i.e. in cases where the value indeed has to be protected due to confidentiality). "]
[null,null,"D) Secondary confidentiality","Please, use C) for confidential statistical information ( i.e. in cases where the value indeed has to be protected due to confidentiality). D) Secondary confidentiality footnotes can be set to hide non-confidential values in order to prevent third parties to indirectly deduce confidential values. Please note that this footnote converts into confidential c) when published in Eurostat’s online database. "]
[null,null,"N) Not for publication","Please, use this flag when data is only for internal use by Eurostat and not to be published."]
[null,null,"4.3 Country-specific explanatory footnotes"]
[null,null,"The explanatory footnotes can be used for any meaning beyond the pre-defined footnotes. This includes the explanation of large year-on-year changes in the data.\n\nTo include an explanatory footnote, please first insert the text in the “Footnote list” sheet starting from number 1. Then, in the data table, please select the corresponding footnote reference number from the drop-down menu in the column for explanatory footnotes (the third of the available footnote columns, i.e. columns J, O, T, Y, etc. ). The text you entered in the “Footnote list” sheet will then appear automatically next to the footnote reference number. The same explanatory footnote can be chosen for multiple values - given the same explanation applies. If a number is chosen from the drop-down menu by accident, it can be removed by pressing the delete key to clean the cell.\n\nPlease do not report footnotes that elaborate on e.g. source data and compilation methods; these are to be described in the Quality Report."]
[null,null,"5. Methodology and questions:"]
[]
[null,null,"Guidance for data compilers can be obtained from the 2016 EGSS handbook, available on the dedicated Eurostat page:"]
[null,null,"http://ec.europa.eu/eurostat/web/products-manuals-and-guidelines/-/KS-GQ-16-008"]
[null,null,"The EGSS handbook contains definitions, examples and recommendations to ensure that data comply with relevant statistical standards and accounting rules. The handbook also provides general guidance on how to implement the concepts in practice, in the data compilation process, on which data source and methods to use. "]
[null,null,"A practical guide developed by Eurostat complements the EGSS handbook, elaborating in detail on concrete methods to compile EGSS accounts based on already existing statistical data. "]
[null,null,"http://ec.europa.eu/eurostat/web/products-manuals-and-guidelines/-/KS-GQ-16-011"]
[null,null,"A summary of the EGSS methodology is presented in the sheet 'Methodology'. Detailed information on relevant goods and services can be obtained from the EGSS operational list (available on Eurostat's website: http://ec.europa.eu/eurostat/documents/1798247/6191549/EGSS+list+of+env+products.xlsx), which indicates the associated NACE, CPA and CN codes as well as CEPA and/or CReMA categories. Countries should explain any deviation from the EGSS operational list in the Quality Report."]
[null,null,"A summary methodology is presented in this questionnaire, in the sheet named 'Methodology'. It is essential to read this sheet before filling in the questionnaire as it contains, beside the summary methodology, important information on priorities for filling in the tables, data sources and hints for establishing a methodology at national level."]
[null,null,"If you have questions, please send them to the following email addresses:"]
[null,null,{"$f":"Lists!K18","v":"ESTAT-EGSS@ec.europa.eu"}]
[]
[null,null,"Annex 1: How to fill in the data sheets of the questionnaire"]
[]
[null,null,"You are kindly requested to:"]
[null,null,"1)    All data cells (whilte cells) must be filled in with a positive value or a zero."]
[null,null,"2)    Cells, which contain sums, are filled in automatically. In case, you realise that a formula should be added in a cell, please, send us an email with this formula. The formula may be helpful for all countries. Please, do not add the formula yourself. "]
[null,null,"3)    Flags (footnote symbols) can be entered in the reporting tables in the footnote columns."]
[null,null,"4)    To include standard footnotes use the drop-down menu."]
[null,null,"5)    The text of specific footnotes can be entered in the worksheet 'Footnotes list'."]
[]
[null,null,"Annex 2: Validation checks by Eurostat after data transmission"]
[]
[null,null,"After receiving the EGSS data, Eurostat runs again the same consistency checks as executed in the questionnaire. In addition, Eurostat verifies the formatting of footnotes and checks for completeness, revisions of previously transmitted data, time-series consistency, and the plausibility of parameter ratios such as GVA/output, exports/output, and GVA/employment. Eurostat also benchmarks EGSS data against EPEA reporting and, for selected domains, data on physical production. The outcome of this validation process is reported to the data compilers in a validation report, which may also ask for clarification on specific data sources or recording methods. A detailed response of countries to the validation report is very much appreciated because the information shared allows Eurostat to better understand data sources, compilation methods, and comparability issues across countries. "]

{"sheet":"Validation rules","index":3,"n_rows":31,"n_cols":6,"rows_kept":31,"cut":false,"hidden":false,"merged":[[24,2,24,5],[30,2,30,5],[26,2,26,5],[11,2,11,5],[12,2,12,5],[23,2,23,5],[10,2,10,5],[16,2,16,5],[20,2,20,5],[21,2,21,5],[22,2,22,5],[9,2,9,5],[3,2,3,5],[4,2,4,5],[6,2,6,5],[7,2,7,5],[8,2,8,5]]}
[]
[]
[null,null,null,null,null,{"$f":"UPPER(Lists!K3)","v":"STATISTICAL OFFICE OF THE EUROPEAN UNION"}]
[null,null,{"$f":"UPPER(Lists!K7)","v":"ANNUAL REPORTING OF ENVIRONMENTAL GOODS AND SERVICES (EGSS)"}]
[null,null,{"$f":"CONCATENATE(Lists!K8,\" DATA COLLECTION\")","v":"2024 DATA COLLECTION"}]
[]
[null,null,"VALIDATION RULES"]
[null,null,"Table of contents"]
[null,null,"  1. Mandatory data"]
[null,null,"  2. Arithmetic rules"]
[null,null,"  3. Consistency rules"]
[null,null,"  4. Explanatory footnotes"]
[null,null,"In data sheets (\"Output\", \"GVA\", \"Employment\" and \"Export\"), the \"check consistency\" button checks values (missing mandatory, etc.), totals and footnotes in the respective sheet where it is located.\nOn the cover sheet, the \"check consistency\" button: \n    - performs all the above checks on all data sheets\n    - in addition, performs a cross check between data sheets \n    - in addition performs a check on the footnotes list"]
[]
[null,null,"1. Mandatory Data:"]
[]
[null,null,"All the information requested in the sheet \"GETTING STARTED\" must be filled in."]
[]
[null,null,"2. Arithmetic rules"]
[]
[null,null,"Check for negative values of output, export and employment: reported values must be equal or bigger than 0 (positive values). "]
[null,null,"Totals by row for all EGSS variables (output, GVA, employment, exports):"]
[null,null,"   • CEPA1 + CEPA2 + CEPA3 + CEPA4 + CEPA5 + CEPA6  + CEPA7-9 = TOT_CEPA (mandatory variables, complete sets of voluntary variables)\n   • CEPA1 +CEPA2 + CEPA3 + CEPA4 +CEPA5 + CEPA6 + CEPA7-9 ≤ TOT_CEPA (incomplete sets of voluntary variables)\n   • CEPA112_122 ≤ CEPA1\n   • CEPA7 + CEPA8 + CEPA9 = CEPA7-9 (mandatory variables, complete sets of voluntary variables)\n   • CEPA7 + CEPA8 + CEPA9 ≤ CEPA7-9 (incomplete sets of voluntary variables)\n   • CEPA812 ≤ CEPA8\n   • CReMA10 + CReMA11 + CReMA13 + CReMA14 + CReMA12-15-16 = TOT_CReMA (mandatory variables, complete sets of voluntary variables)\n   • CReMA10 + CReMA11 + CReMA13 + CReMA14+CReMA12-15-16 ≤ TOT_CReMA (incomplete sets of voluntary variables)\n   • CReMA 11A + CReMA11B = CReMA11 (complete sets of voluntary variables)\n   • CReMA 11A + CReMA11B ≤ CReMA11 (incomplete sets of voluntary variables)\n   • CReMA13A + CReMA13B + CReMA13C = CReMA13 (mandatory variables, complete sets of voluntary variables)\n   • CReMA13A + CReMA13B + CReMA13C ≤ CReMA13 (incomplete sets of voluntary variables)\n   • CREMA13B_MEMO ≤ CREMA13B\n   • CReMA12 + CReMA15 + CReMA16 = CREMA12_15_16 (complete sets of voluntary variables)\n   • CReMA12 + CReMA15 + CReMA16 ≤ CREMA12_15_16 (incomplete sets of voluntary variables)\n   • CReMA15A ≤ CReMA15\n   • TOT_CEPA + TOT_CReMA = TOTAL (mandatory variables, complete sets of voluntary variables)\n   • TOT_CEPA + TOT_CReMA ≤ TOTAL (incomplete sets of voluntary variables)"]
[null,null,"Totals by column for all EGSS variables (output, GVA, employment, exports):"]
[null,null," Sums by environmental products and by type of activity:\n    • ES_CS + C_REP ≤ MKT\n    • MKT + NMKT + OWN_USE + ANC = TOT_EGSS (complete sets of variables)\n    • MKT + NMKT + OWN_USE + ANC ≤ TOT_EGSS (incomplete sets of variables)\n Sums by NACE for all CEPAs and CReMAs, by environmental products and types of activities:\n    • A + B + C + D + E + F +  J +  M + O + P  + G-I_K_L_N_Q-U = TOTAL (complete sets of variables)\n    • A + B + C + D + E + F +  J +  M + O + P  + G-I_K_L_N_Q-U ≤ TOTAL (incomplete sets of variables)\n    • C10_C12 + C13_C15 + C16_C18 + C19 + C20 + C21 + C22_C23 + C24_C25 + C26 + C27 + C28 + C29_C30 + C31-C33 = Total C (complete sets of variables)\n    • C10_C12 + C13_C15 + C16_C18 + C19 + C20 + C21 + C22_C23 + C24_C25 + C26 + C27 + C28 + C29_C30 + C31-C33 ≤ Total C (incomplete sets of variables)\n    • E36 + E37 + E38 + E39 = Total E (complete sets of variables) \n    • E36 + E37 + E38 + E39 ≤ Total E (incomplete sets of variables)\n    • M69_M70 + M71 + M72 + M73-M75 = Total M (complete sets of variables)\n    • M69_M70 + M71 + M72 + M73-M75 ≤ Total M (incomplete sets of variables)\n    • G + H + I  + K + L  + N + Q + R + S + T + U = G-I_K_L_N_Q-U (complete sets of variables)\n    • G + H + I  + K + L  + N + Q + R + S + T + U  ≤ G-I_K_L_N_Q-U (incomplete sets of variables)"]
[null,null,"3. Consistency rules"]
[null,null,"Consistency of output, gross value added, employment \n  • If data for at least one variable are reported, also data for the other variables should be reported\n  • If the data of at least one variable are labelled with footnotes, also the data for the other variables may need to be labelled with footnotes"]
[]
[null,null,"4. Explanatory footnotes"]
[]
[null,null,"When an explanatory footnote is referenced (by means of a number selected from the drop-down list), the referenced footnote text in the sheet \"Footnotes list\" must not be empty."]

{"sheet":"Methodology","index":4,"n_rows":131,"n_cols":6,"rows_kept":131,"cut":false,"hidden":false,"merged":[[61,2,61,5],[62,2,62,5],[63,2,63,5],[64,2,64,5],[58,2,58,5],[57,2,57,5],[16,2,16,5],[93,3,93,5],[94,3,94,5],[68,2,68,5],[67,2,67,5],[65,2,65,5],[60,2,60,5],[59,2,59,5],[76,2,76,5],[75,2,75,5],[74,2,74,5],[73,2,73,5],[72,2,72,5],[69,2,69,5],[82,2,82,5],[81,2,81,5],[80,2,80,5],[77,2,77,5],[102,2,102,5],[101,2,101,5],[100,2,100,5],[95,2,95,5],[92,2,92,5],[91,2,91,5],[79,2,79,5],[88,2,88,5],[87,2,87,5],[85,2,85,5],[84,2,84,5],[83,2,83,5],[97,3,97,5],[98,3,98,5],[90,2,90,5],[89,2,89,5],[133,2,133,5],[134,2,134,5],[135,2,135,5],[136,2,136,5],[137,2,137,5],[26,2,26,5],[44,2,44,5],[128,2,128,5],[129,2,129,5],[130,2,130,5],[131,2,131,5],[132,2,132,5],[119,2,119,5],[120,2,120,5],[121,2,121,5],[124,2,124,5],[126,2,126,5],[127,2,127,5],[118,2,118,5],[122,2,122,5],[86,2,86,5],[123,2,123,5],[104,2,104,5],[103,2,103,5],[106,2,106,5],[107,2,107,5],[117,2,117,5],[110,2,110,5],[109,2,109,5],[49,2,49,5],[50,2,50,5],[51,2,51,5],[70,2,70,5],[71,2,71,5],[105,2,105,5],[54,3,54,5],[55,3,55,5],[56,3,56,5],[66,2,66,5],[116,2,116,5],[115,2,115,5],[114,2,114,5],[112,2,112,5],[111,2,111,5],[108,2,108,5],[96,2,96,5],[78,2,78,5],[99,3,99,5],[43,2,43,5],[45,2,45,5],[46,2,46,5],[47,2,47,5],[48,2,48,5],[52,3,52,5],[53,3,53,5],[40,2,40,5],[41,2,41,5],[37,2,37,5],[38,2,38,5],[39,2,39,5],[32,2,32,5],[34,2,34,5],[35,2,35,5],[36,2,36,5],[21,2,21,5],[22,2,22,5],[30,2,30,5],[31,2,31,5],[10,2,10,5],[11,2,11,5],[12,2,12,5],[13,2,13,5],[15,2,15,5],[17,2,17,5],[3,2,3,5],[4,2,4,5],[6,2,6,5],[7,2,7,5],[8,2,8,5],[9,2,9,5],[14,2,14,5]]}
[]
[]
[null,null,null,null,null,{"$f":"UPPER(Lists!K3)","v":"STATISTICAL OFFICE OF THE EUROPEAN UNION"}]
[null,null,{"$f":"UPPER(Lists!K7)","v":"ANNUAL REPORTING OF ENVIRONMENTAL GOODS AND SERVICES (EGSS)"}]
[null,null,{"$f":"CONCATENATE(Lists!K8,\" DATA COLLECTION\")","v":"2024 DATA COLLECTION"}]
[]
[null,null,"METHODOLOGY AND LEGAL ACTS"]
[null,null,"Table of contents"]
[null,null,"1. Background"]
[null,null,"2. Legal acts "]
[null,null,"3. Data reporting - questionnaire"]
[null,null,"   3.1 How to fill in the tables"]
[null,null,"   3.2 Delimitation of EGSS"]
[null,null,"   3.3 Structure of the EGSS qestionnaire"]
[null,null,"   3.4 EGSS variables"]
[null,null,"   3.5 Confidentiality"]
[null,null,"   3.6 Revisions"]
[null,null,"4. Main references"]
[]
[null,null,"1. Background"]
[]
[null,null,"This reporting template allows data providers to report data on environmental goods and services."]
[null,null,"The methodology sheet gives a summary of the most important methodological issues in the compilation of EGSS statistics."]
[]
[null,null,"2.  Legal acts"]
[]
[null,null,"Regulation (EU) 691/2011 establishes the environmental goods and services sector (EGSS) accounts as one of six modules of the European environmental economic accounts. EGSS data are to be compiled under a common framework that is compatible with the European System of National and Regional Accounts (ESA); EGSS data are reported to Eurostat on an annual basis. This questionnaire collects EGSS data set out in Annex V of Regulation (EU) 691/2011 (amended by the Commission Delegated Regulation (EU) 2022/125) as well as complementary information, to be reported on a voluntary basis. To support data compilers, the 2016 EGSS Handbook and the 2016 EGSS Practical Guide describe relevant production activities, environmental classifications, the process of securing source data and putting in place methods and processes to produce comparable statistics on EGSS. "]
[]
[null,null,"3. Data reporting - questionnaire"]
[]
[null,null,"This document assists Member States to report high quality, harmonised and efficient statistics. Detailed instructions can be found in the guidance document referred to above."]
[null,null,"The reporting shall cover a full calendar year."]
[null,null,"The basic instructions sheet consists of some information necessary for filling in this questionnaire correctly, like unit of measure, allowed symbols, metadata, footnotes, and transmission to Eurostat."]
[]
[null,null,"3.1 How to fill in the tables"]
[]
[null,null,"The EGSS data should be reported in a breakdown by type of environmental product, economic activity and environmental domain (for details see section 2.3). \nMandatory reporting items, as set out in Annex V of Regulation (EU) 691/2011 of EU environmental economic accounts amended by the Commission Delegated Regulation (EU) 2022/125, have been highlighted in bold font in all data sheets.\nThe questionnaire consists of introductory sheets (olive coloured sheets), worksheets for indicating country and reported year as well as the footnotes' list (turquoise coloured sheets), four data sheets for the variables of the EGSS (deep bluish green coloured sheets), and one error LOG sheet at the end of the questionnaire. Countries should report data for the following variables: output, gross value added, employment and exports. For the variable \"output\", data should be reported on the sheet \"Output\". Likewise, there are also individual reporting sheets for gross value added, employment and exports."]
[]
[null,null,"3.2 Delimitation of EGSS"]
[]
[null,null,"The EGSS comprises those production activities of a national economy that generate environmental products. Environmental products are goods and services that have been produced for the purpose of environmental protection and resource management. The purpose of environmental goods and services is predominantly determined based on the technical nature of the product and its technical suitability to be used for environmental protection or resource management. In certain boundary cases, where the technical nature of the product does not provide a definitive guide, consideration may be given to the intent of the producer of the product.\nThe environmental goods and services sector has the same system boundaries as the national accounts and consists of all environmental goods and services that are created within the production boundary. The ESA defines production as an activity carried out under the control and responsibility of an institutional unit that uses inputs of labour, capital and goods and services to produce goods and services."]
[null,null,"Excluded from the scope of environmental goods and services are goods and services produced for purposes that, while beneficial to the environment, are technical requirements or requirements for health and safety at the work place. Goods and services related to minimising the impact of natural hazards and those related to the extraction, mobilisation and exploitation of natural resources are also excluded.\nIn practice, to ensure comparability of EGSS data across EU Member States, the process of delineation of environmental goods and services sector is supported by the EGSS operational list (a listing of specific goods and services that need to be covered in EGSS accounts unless there are some country-specific circumstances justifying inclusions of other products or exclusion of the products contained in the EGSS operational list)."]
[]
[null,null,"3.3 Structure of the EGSS Qestionnaire"]
[null,null,"3.3.1 EGSS by type of environmental products and economic activities (presented by rows in the data sheets)"]
[null,null,"a) Environmental products"]
[null,null,"EGSS covers market, non-market, own-final-use, and ancillary production of environmental goods and services. "]
[null,null,"Non-market production comprises goods or services provided to another unit free of charge or at economically insignificant prices. Non-market production is most relevant for general government and non-profit institutions serving households (e.g., provision of waste treatment or environmental monitoring services)."]
[null,null,"Production for own final use consists of goods or services that are retained either for own final consumption or for capital formation by the same institutional unit, e.g. own-account gross fixed capital formation in the form of major repair carried out by the workers of a water treatment company on its own sedimentation basins or renewable energy produced and consumed by households."]
[null,null,"Ancillary production comprises environmental goods and services produced and intended for intermediate use within the same enterprise. They generally refer to environmental protection or resource management services undertaken within a given unit, e.g. emission monitoring services produced in a power station and consumed in the same power station for intermediate use. Renewable energy produced by an establishment and consumed in the same establishment should not be classified as ancillary output but as (secondary) market output; however national accounts' practices may differ between countries and compilers of EGSS data should adapt to national practices. "]
[null,null,"Market production comprises environmental products that are (intended to be) sold on the market at economically significant prices. Overall, all producers classified to the ESA (financial and non-financial) corporations sectors are market producers and their output is market output."]
[null,null,"Market output of environmental goods and services includes all environmental products produced in the economy; in this questionnaire, following the recommendation by the Monetary Environmental Statistics and Accounts WG (formerly WG on environmental expenditure statistics), only the first two categories below are requested. The other categories should be included in the \"TOTAL\"-lines corresponding to market activities:"]
[null,null,null,"Environmental specific services are those services that have the main purpose of: preventing, reducing and eliminating pollution and any other degradation of the environment, or preserving and maintaining the stock of natural resources and hence safeguarding against depletion."]
[null,null,null,"Cleaner and resource efficient products:"]
[null,null,null,"They correspond to ‘adapted products’ i.e. products that primarily serve a non-environmental purpose but are specifically designed to be more “environmentally friendly” or more \"resource efficient\" than normal products of equivalent use. Examples are mercury-free batteries, electric cars or buses, energy efficient appliances, water-saving devices, such as drop irrigation system They also include specific products that enter ‘integrated technologies’ as defined in the SBS regulation for the variable)  21 12 0 (Investment in equipment and plant linked to cleaner technologies)."]
[null,null,null,"Other environmental products:"]
[null,null,null,"They correspond to 'connected products' (environmental sole purpose products) i.e. products whose use directly serves an environmental protection or resource management purpose and that have no use except for environmental protection or resource management.  Examples of connected products include catalytic converters, septic tanks (including maintenance services), waste bins, etc.  \nThey also include all specifically designed equipment and their specific components, specific installation and plants construction works, specific engineering or similar services that enter the gross fixed capital formation of characteristic producers (environmental technologies), except those already included in cleaner and resource efficient products. "]
[null,null,"Specific guidance for products "]
[null,null,"With regards to electric and more resource-efficient transport equipment (also referred to as “electric transport equipment'), EGSS accounts compilers are asked to look at the guidance note that details what can and cannot be included, given the diversity of “electric and more resource efficient transport equipment”. The detailed guidance note is available here:"]
[null,null,"- Guidance note on Reporting of electric and more resource-efficient transport equipment in EPEA and EGSS accounts."]
[null,null,"With regard to construction of low-energy consumption and passive buildings (referred also as energy efficient buildings or nearly zero-energy buildings (NZEBs)), EGSS account compilers are asked to estimate both, the (full) value of output (and related employment, GVA and exports (if any)) in construction as well as the part of output (as well as employment, GVA and exports (if any)) related to energy-efficiency measures undertaken for construction. For this reason, compilers are asked to include:"]
[null,null,"•       the full value of the construction in the questionnaire in cells CX169 to CX175 (for Output, GVA and Employment) and cells CX77 to CX79 (for Exports) and \n"]
[null,null,"•       the part of output of construction relating to energy efficiency in a separate column of the questionnaire in cells EV169 to EV175 (for Output, GVA and Employment) and cells EV77 to EV79 (for Exports) as a memo item. "]
[null,null,"These cells correspond to NACE F. For any production related to NZEB construction in all other but NACE F, data on energy-efficiency related measures can be reported in the \"memo item\" column, adding a footnote. The footnote should include an explanation why the measures have been included.\nIn this case, please also provide an explanation of the estimation procedure for these measures (data sources and methods used) in the Quality report and provide information on the share in the total value of construction of energy efficient buildings in your country. "]
[null,null,"For more information on this issue, please have a look at the following technical note: "]
[null,null,"- Guidance note on Reporting of energetic refurbishment and construction of new energy efficient buildings in EGSS accounts."]
[null,null,"b) Economic activities"]
[null,null,"The suppliers of environmental goods, services and technologies are scattered over all NACE classes which cover all economic activities. The  breakdown in this questionnaire is based on NACE Rev. 2, as follows:\n\n     - National Accounts A*21 breakdown by sections as requested by Regulation (EU) 691/2011.\n\n     - A*38 for \"Manufacturing\" (NACE C), \"Scientific Research and Development\" (NACE M72), and \"Advertising and Market Research, other\n       professional, scientific and technical activities, veterinary activities (NACE M73-75).\n\n     - A*64 for Water collection, treatment and supply (NACE E 36), Legal and accounting activities; activities of head offices; management\n       consultancy activities (NACE 69-70) and architectural and engineering activities; technical testing and analysis (NACE 71).\n\n     - A*88 for sewerage (NACE 37), waste collection treatment and  collection activities; materials recovery (NACE 38) and remediation\n       activities and other waste management services (NACE 39).\n\nMarket output of environmental products may be the result of the principal or secondary activities of a producer unit. In the questionnaire, the output resulting from secondary activities should be reported in the NACE category (row) to which the producer unit belongs. This means that an environmental product (e.g. renewable energy or waste management services) can be shown as being produced by several NACE categories.\nSimilarly, for other types of EGSS output (non-market, own-account and ancillary), the data should be reported under the NACE category to which the producer unit has been classified for macroeconomic statistics purposes.\n"]
[null,null,"The EGSS operational list (separate excel file) which is based on the Classification of products by activity (CPA 2008) and on the Combined Nomenclature (CN 2013) is available on the Eurostat Website. Each environmental product in this list is being classified by the categories of environmental products described in this section, as well as by environmental domains as described in section 3.3.2:"]
[null,null,"https://ec.europa.eu/eurostat/web/environment/methodology"]
[null,null,"3.3.2 EGSS by environmental domains and activities (presented by columns in the data sheets)"]
[null,null,"In addition to the classification of the environmental output by type of environmental product (see section 3.3.1. above) environmental output is also classified by environmental domain according to the CEPA 2000 (for environmental protection) and CReMA (for resource management) classifications. \nMore details can be found here:"]
[null,null,"- Classification of Environmental Protection Activities and Expenditure and Classification of Resource Management Activities (CReMA)."]
[null,null,"Please note that EGSS compilers are asked to pay attention on the reporting of activities under CEPA 6 (protection of biodiversity and landscapes) and CReMA 12 (management of wild flora and fauna). EGSS compilers are asked to record all relevant activities under CEPA 6 and discontinue CReMA 12."]
[null,null,"Below the detailed breakdown of CEPA and CReMA classifications and 'of-which' items requested in the EGSS questionnaire are briefly described. Note that, under Regulation 691/2011, the EU Member States are obliged to report more aggregated data for CEPA and CReMA, i.e., mainly I level CEPA and CReMA breakdown, with the grouped CEPA 7-9 and CReMA12, 15 and 16 categories and additional breakdown (by letter) of CReMA 13: CReMA13A-C."]
[null,null,"A. Environmental protection"]
[null,null,"Environmental protection activities are those activities whose primary purpose is the prevention, reduction and elimination of pollution and other forms of degradation of the environment. "]
[null,null,"They are grouped by environmental protection domain according to the CEPA 2000:"]
[null,null,"1 Protection of ambient air and climate: reduction of emissions into the ambient air or ambient concentrations of air pollutants as well as the control of emissions of greenhouse gases and gases that adversely affect the stratospheric ozone layer.\nExcluded are products related to cost saving (e.g. energy saving), which are included in the resource management. "]
[null,null,"2 Wastewater management: protection of surface water through the reduction of the release of wastewater into inland surface water and seawater. It includes the collection and treatment of wastewater including monitoring and regulation. Septic tanks are also included.\nExcluded are products for the protection of groundwater from pollutant infiltration and cleaning up of water bodies after pollution. These ones are included in the protection and remediation of soil, groundwater and surface water."]
[null,null,"3 Waste management: prevention of the generation of waste and reduction of its harmful effect on the environment. It includes the collection and treatment of waste, including monitoring and regulation. It also includes recycling and composting, the collection and treatment of low level radioactive waste, street cleaning and the collection of public litter."]
[null,null,"4 Protection and remediation of soil, groundwater and surface water: prevention of pollutant infiltration, cleaning up of soils and water bodies and the protection of soil from erosion and other physical degradation as well as from salinisation. Monitoring, control of soil and groundwater pollution is included. "]
[null,null,"5 Noise and vibration abatement: control, reduction and abatement of industrial and transport noise and vibration. Excluded is the abatement of noise and vibration for purposes of protection at the workplace. "]
[null,null,"6 Protection against radiation (excluding external safety): reduction or elimination of the negative consequences of radiation emitted from any source. Included is the handling, transportation and treatment of high level radioactive waste, i.e. waste that, because of its high radionuclide content, requires shielding during normal handling and transportation.\nExcluded are products related to the prevention of technological hazards (e.g. external safety of nuclear power plants), as well as protection measures taken at workplaces. Also excluded are products related to collection and treatment of low-level radioactive waste."]
[null,null,"7 Protection of biodiversity and landscapes: protection and rehabilitation of fauna and flora species, ecosystems and habitats as well as the protection and rehabilitation of natural and semi-natural landscapes. The separation between ‘biodiversity’ and ‘landscape’ protection may not always be practical. For example, maintaining or establishing certain landscape types, biotopes, eco-zones and related issues (hedgerows, lines of trees to re-establish ‘natural corridors’) have a clear link to biodiversity preservation.\nExcluded is the protection and rehabilitation of historic monuments or predominantly built-up landscapes, the control of weed for agricultural purposes as well as the protection of forests against forests fire when this predominantly responds to economic reasons. The establishment and maintenance of green spaces along roads and recreational structures (e.g. gulf courses, other sports facilities) are also excluded. \nProducts related to urban parks and gardens would not normally be included unless it is related to biodiversity."]
[null,null,"8 Environmental research and development: The class regroups all R&D products oriented towards environmental protection: identification and analysis of sources of pollution, mechanisms of dispersion of pollutants in the environment as well as their effects on human beings, the species and the biosphere. This heading covers R&D for the prevention and elimination of all forms of pollution, as well as R&D oriented towards equipment and instruments of pollution measurement and analysis. When separable all R&D activities even when referring to a specific class have to be classified under this position."]
[null,null,"9 Other environmental protection: all environmental protection products which take the form of general environmental administration and management, training or teaching specifically oriented towards environmental protection or which consist of public information, when they are not classified elsewhere in CEPA. It also includes products leading to indivisible classification, as well as products not elsewhere classified."]
[null,null,"In order to be able to provide figures on the environmental products linked to fighting climate change, the questionnaire further requires to distinguish between products for the protection of ambient air and products for the protection of climate and ozone layer (CEPA 1.1.2), research products for the protection of climate and ozone layer (CEPA 8.1.2)."]
[null,null,"B. Resource management"]
[null,null,"The resource management activities are those activities whose primary purpose is the management and/or conservation of natural resources."]
[null,null,"According to the CReMA, resource management is subdivided into:"]
[null,null,"10 Management of water resources: reduction of the intake through in-process modifications related to the reduction of the water input for the production process, the reduction of water use through the reduction of water losses and leaks, the installation of facilities for water reuse and savings, etc., and the replenishment of water stocks (Ex.: recharge of groundwater bodies to increase/restore water stocks (not to improve water quality or fight salinity: CEPA 4.4); land improvement, development of vegetal cover in order to increase water infiltration and recharge phreatic water bodies (not for the protection of soil against erosion: CEPA 4.3)). "]
[null,null,"11 Management of forest resources: management of forest areas and reduction of the intake of forest resources. "]
[null,null,null,"11A Management of forest areas: restoration activities (reforestation and afforestation), prevention and control of pests and forest fires; measurement control and the like."]
[null,null,null,"11B Minimisation of the intake of forest resources through in-process modifications, recovery ruse and savings of forest products and by-products."]
[null,null,"12 Management of wild flora and fauna: reduction of the intake through in-process modifications (ex: vessel buy-back programmes for the introduction of more efficient fishing fleets and equipment), the replenishment of wild flora and fauna stocks (ex: breeding for the replenishment of stocks for fishing or hunting (for restocking purposes and not for protection of biodiversity: CEPA 6.1)) and direct management of wild flora and fauna stocks."]
[null,null,"13 Management of fossil energy: "]
[null,null,null,"13A Production of energy from renewable sources:  reduction of non-renewable energy sources exploitation through the production of energy from renewable resources including solar, wind, tidal, geothermal or biomass sources."]
[null,null,null,"13B Heat and energy saving/management: reduction of the use of non-renewable energy sources through the minimisation of heat and energy losses and through energy savings."]
[null,null,null,"13C Minimisation of the intake of fossil resources as raw material for use other than energy production: reduction of the intake of oil for use other than energy production."]
[null,null,"14 Management of minerals: reduction of the intake through in-process modifications related to the reduction of the raw material input for the production process or the consumption or use of resources."]
[null,null,"15 Research and development for natural resource management."]
[null,null,"16 Other natural resource management: general administration of natural resources, general administration, regulation and the like, environmental management, education, training and information, etc."]
[null,null,"Activities related to biodiversity and landscape protection or aiming at preserving certain functions or the quality of the natural environment (air, water, soil and ground water) are not included in the resource management domain, but are included in the environmental protection domain."]
[null,null,"In order to be able to provide figures on the products for the development of renewable energy, the questionnaire further requires to distinguish within R&D for resource management the R&D for the production of energy from renewable sources (15.5.1)."]
[]
[null,null,"3.4 EGSS variables (data to be entered in the questionnaire)"]
[null,null,"Output"]
[null,null,"Output consists of those produced goods or services that become available for use outside the producer unit, any goods and services produced for own final use and goods that remain in the inventories at the end of the period in which they are produced. The EGSS output also includes ancillary output. "]
[null,null,"Market output is to be valued at basic prices. For the purpose of EGSS compilation market output, the source data (e.g., turnover and production value from the SBS) need to be adjusted. From a conceptual point of view the 'production value' is closer to the definition of national accounts' market output than 'turnover'. However, even when using the production value, some corrections could be necessary to ensure the full compliance with the market output definition under ESA, and – consequently - in the EGSS accounts (e.g. excluding capitalised production and adding subsidies on products). "]
[null,null,"Output for own final use is to be valued at the basic prices of similar products sold on the market or at the total costs of production. If basic prices of similar products are not available, output for own final use should be valued at the costs of production plus a mark-up (except for non-market producers) for net operating surplus or mixed income."]
[null,null,"Gross Value Added"]
[null,null,"The gross value added of environmental protection and resource management activities represents the contribution made by these activities towards Gross Domestic Product (GDP). It is the difference between the value of the output and the sum of all intermediate consumptions (IC)."]
[null,null,"Employment"]
[null,null,"The employment in environmental protection and resource management activities is measured by the full-time equivalent employment engaged in the production of the environmental output as defined above. The full-time equivalent is the number of full-time equivalent jobs, defined as total hours worked divided by average annual hours worked in full-time jobs.\n"]
[null,null,"Exports"]
[null,null,"Exports of goods and services consist of sales, barter, or gifts or grants, of goods and services from residents to non-residents. EGSS exports should only be reported in relation to the market output of the EGSS products.\nCountries should report exports under the NACE category to which the producer of the exported goods or services has been classified. If EGSS export data cannot be identified with sufficient detail by economic activity, it is recommended to use sources that report export data broken down by product. See EGSS Practical Guidelines, pg. 72-74.\n"]
[]
[null,null,"3.5 Confidentiality"]
[]
[null,null,"What is regarded as confidential depends on the national confidentiality policy for statistical data in accordance with existing Community provisions on statistical confidentiality (Regulation N°223/2009). Confidential data should be submitted in the questionnaire and should be properly flagged as confidential by using a 'c)' flag in the footnote column. The footnote symbol 'd) Secondary confidentiality' is used to hide non-confidential values in order to prevent third parties to indirectly deduce the observation of a cell genuinely flagged as confidential.\nPlease do not use a 'c' flag for secondary confidentiality!"]
[null,null,"In general, data from public authorities are not regarded as confidential; also the secondary use of public information for statistical purposes will not be regarded as confidential. "]
[null,null,"3.6 Revisions"]
[null,null,"Figures for past years should be revised if there has been some update to source data or whenever a change in methodology or compilation methods or data sources has been implemented in order to ensure consistency of the time series.\nPlease report the revised figures in the most recent version of the questionnaire template and make sure to choose the correct reference year in cell C17 of the Cover sheet. Please comment on the scope, size and reasons for revisions in the EGSS quality report."]
[]
[null,null,"4. Main references"]
[null,null,"[1] European System of Accounts ESA 2010 \n"]
[null,null,"     Online Eurostat publication"]
[null,null,"[2] System of Environmental-Economic Accounting (SEEA) - Central Framework (2012)"]
[null,null,"[3] NACE, Statistical classification of economic activities"]
[null,null,"[4] Environmental accounts handbooks"]

{"sheet":"GETTING STARTED","index":5,"n_rows":23,"n_cols":7,"rows_kept":23,"cut":false,"hidden":false,"merged":[[17,3,17,6],[19,3,19,6],[21,3,21,6],[22,2,22,6],[9,2,9,3],[15,3,15,6],[3,2,3,6],[4,2,4,6],[6,2,6,6],[11,2,11,6],[13,3,13,6]]}
[]
[]
[]
[null,null,{"$f":"UPPER(Lists!K7)","v":"ANNUAL REPORTING OF ENVIRONMENTAL GOODS AND SERVICES (EGSS)"}]
[null,null,{"$f":"CONCATENATE(Lists!K8,\" DATA COLLECTION\")","v":"2024 DATA COLLECTION"}]
[]
[null,null," GETTING STARTED"]
[]
[null,null,"Please select your country (click on the white cell):",null,null,null,{"$f":"IF(E9=\"\",\"\",VLOOKUP(E9,Lists!A2:B41,2,FALSE))","v":""}]
[null,null,"Please select the reference year \n(click on the white cell):"]
[null,null,{"$f":"CONCATENATE(\"The due date for reporting is \",Lists!K10)","v":"The due date for reporting is October 31st 2024"}]
[null,null,{"$f":"\"Who is the primary contact point for the data collection \" &  Lists!K7&\"' in your country?\"","v":"Who is the primary contact point for the data collection Annual reporting of Environmental Goods and Services (EGSS)' in your country?"}]
[]
[null,null,"Name:"]
[]
[null,null,"Institution:"]
[]
[null,null,"Unit:"]
[]
[null,null,"Telephone:"]
[]
[null,null,"Email adress:"]
[null,null,{"$f":"\"Eurostat would be grateful if you could send us the completed questionnaire by \"  & Lists!K10 & \" at the latest.\"","v":"Eurostat would be grateful if you could send us the completed questionnaire by October 31st 2024 at the latest."}]

{"sheet":"Footnotes list","index":6,"n_rows":58,"n_cols":5,"rows_kept":58,"cut":false,"hidden":false,"merged":[[1,3,1,4],[3,3,3,4],[4,3,4,4],[6,3,6,4],[7,3,7,4]]}
[]
[]
[null,null,null,null,{"$f":"UPPER(Lists!K3)","v":"STATISTICAL OFFICE OF THE EUROPEAN UNION"}]
[null,null,null,{"$f":"UPPER(Lists!K7)","v":"ANNUAL REPORTING OF ENVIRONMENTAL GOODS AND SERVICES (EGSS)"}]
[null,null,null,{"$f":"CONCATENATE(Lists!K8,\" DATA COLLECTION\")","v":"2024 DATA COLLECTION"}]
[]
[null,null,null,"EXPLANATORY FOOTNOTES"]
[null,null,null,{"$f":"IF('GETTING STARTED'!E9=\"\",\"\",'GETTING STARTED'!E9)","v":""}]
[null,null,null,1]
[null,null,null,2]
[null,null,null,3]
[null,null,null,4]
[null,null,null,5]
[null,null,null,6]
[null,null,null,7]
[null,null,null,8]
[null,null,null,9]
[null,null,null,10]
[null,null,null,11]
[null,null,null,12]
[null,null,null,13]
[null,null,null,14]
[null,null,null,15]
[null,null,null,16]
[null,null,null,17]
[null,null,null,18]
[null,null,null,19]
[null,null,null,20]
[null,null,null,21]
[null,null,null,22]
[null,null,null,23]
[null,null,null,24]
[null,null,null,25]
[null,null,null,26]
[null,null,null,27]
[null,null,null,28]
[null,null,null,29]
[null,null,null,30]
[null,null,null,31]
[null,null,null,32]
[null,null,null,33]
[null,null,null,34]
[null,null,null,35]
[null,null,null,36]
[null,null,null,37]
[null,null,null,38]
[null,null,null,39]
[null,null,null,40]
[null,null,null,41]
[null,null,null,42]
[null,null,null,43]
[null,null,null,44]
[null,null,null,45]
[null,null,null,46]
[null,null,null,47]
[null,null,null,48]
[null,null,null,49]
[null,null,null,50]

{"sheet":"OUTPUT","index":7,"n_rows":319,"n_cols":156,"rows_kept":319,"cut":false,"hidden":false,"merged":[[316,3,316,5],[4,137,4,140],[4,142,4,145],[4,32,4,35],[5,34,5,35],[4,147,4,150],[4,152,4,155],[5,69,5,70],[5,74,5,75],[5,79,5,80],[5,84,5,85],[5,89,5,90],[5,94,5,95],[5,99,5,100],[5,104,5,105],[5,109,5,110],[5,114,5,115],[5,119,5,120],[5,124,5,125],[5,129,5,130],[5,134,5,135],[5,139,5,140],[5,144,5,145],[5,149,5,150],[5,154,5,155],[4,92,4,95],[4,97,4,100],[4,102,4,105],[4,107,4,110],[4,112,4,115],[4,117,4,120],[4,122,4,125],[4,127,4,130],[4,132,4,135],[4,57,4,60],[5,59,5,60],[4,62,4,65],[5,64,5,65],[4,67,4,70],[4,72,4,75],[4,77,4,80],[4,82,4,85],[4,87,4,90],[4,37,4,40],[5,39,5,40],[4,42,4,45],[5,44,5,45],[4,47,4,50],[5,49,5,50],[4,52,4,55],[5,54,5,55],[5,9,5,10],[4,7,4,10],[4,12,4,15],[5,14,5,15],[4,17,4,20],[5,19,5,20],[4,22,4,25],[5,24,5,25],[4,27,4,30],[5,29,5,30],[308,4,308,5],[309,4,309,5],[310,4,310,5],[311,4,311,5],[312,4,312,5],[313,4,313,5],[314,4,314,5],[302,4,302,5],[303,4,303,5],[304,4,304,5],[305,4,305,5],[306,4,306,5],[307,4,307,5],[296,4,296,5],[297,4,297,5],[298,4,298,5],[299,4,299,5],[300,4,300,5],[301,4,301,5],[290,4,290,5],[291,4,291,5],[292,4,292,5],[293,4,293,5],[294,4,294,5],[295,4,295,5],[284,4,284,5],[285,4,285,5],[286,4,286,5],[287,4,287,5],[288,4,288,5],[289,4,289,5],[278,4,278,5],[279,4,279,5],[280,4,280,5],[281,4,281,5],[282,4,282,5],[283,4,283,5],[272,4,272,5],[273,4,273,5],[274,4,274,5],[275,4,275,5],[276,4,276,5],[277,4,277,5],[266,4,266,5],[267,4,267,5],[268,4,268,5],[269,4,269,5],[270,4,270,5],[271,4,271,5],[260,4,260,5],[261,4,261,5],[262,4,262,5],[263,4,263,5],[264,4,264,5],[265,4,265,5],[254,4,254,5],[255,4,255,5],[256,4,256,5],[257,4,257,5],[258,4,258,5],[259,4,259,5],[248,4,248,5],[249,4,249,5],[250,4,250,5],[251,4,251,5],[252,4,252,5],[253,4,253,5],[242,4,242,5],[243,4,243,5],[244,4,244,5],[245,4,245,5],[246,4,246,5],[247,4,247,5],[236,4,236,5],[237,4,237,5],[238,4,238,5],[239,4,239,5],[240,4,240,5],[241,4,241,5],[230,4,230,5],[231,4,231,5],[232,4,232,5],[233,4,233,5],[234,4,234,5],[235,4,235,5],[224,4,224,5],[225,4,225,5],[226,4,226,5],[227,4,227,5],[228,4,228,5],[229,4,229,5],[218,4,218,5],[219,4,219,5],[220,4,220,5],[221,4,221,5],[222,4,222,5],[223,4,223,5],[212,4,212,5],[213,4,213,5],[214,4,214,5],[215,4,215,5],[216,4,216,5],[217,4,217,5],[206,4,206,5],[207,4,207,5],[208,4,208,5],[209,4,209,5],[210,4,210,5],[211,4,211,5],[200,4,200,5],[201,4,201,5],[202,4,202,5],[203,4,203,5],[204,4,204,5],[205,4,205,5],[194,4,194,5],[195,4,195,5],[196,4,196,5],[197,4,197,5],[198,4,198,5],[199,4,199,5],[188,4,188,5],[189,4,189,5],[190,4,190,5],[191,4,191,5],[192,4,192,5],[193,4,193,5],[182,4,182,5],[183,4,183,5],[184,4,184,5],[185,4,185,5],[186,4,186,5],[187,4,187,5],[176,4,176,5],[177,4,177,5],[178,4,178,5],[179,4,179,5],[180,4,180,5],[181,4,181,5],[170,4,170,5],[171,4,171,5],[172,4,172,5],[173,4,173,5],[174,4,174,5],[175,4,175,5],[164,4,164,5],[165,4,165,5],[166,4,166,5],[167,4,167,5],[168,4,168,5],[169,4,169,5],[158,4,158,5],[159,4,159,5],[160,4,160,5],[161,4,161,5],[162,4,162,5],[163,4,163,5],[152,4,152,5],[153,4,153,5],[154,4,154,5],[155,4,155,5],[156,4,156,5],[157,4,157,5],[146,4,146,5],[147,4,147,5],[148,4,148,5],[149,4,149,5],[150,4,150,5],[151,4,151,5],[140,4,140,5],[141,4,141,5],[142,4,142,5],[143,4,143,5],[144,4,144,5],[145,4,145,5],[134,4,134,5],[135,4,135,5],[136,4,136,5],[137,4,137,5],[138,4,138,5],[139,4,139,5],[128,4,128,5],[129,4,129,5],[130,4,130,5],[131,4,131,5],[132,4,132,5],[133,4,133,5],[122,4,122,5],[123,4,123,5],[124,4,124,5],[125,4,125,5],[126,4,126,5],[127,4,127,5],[116,4,116,5],[117,4,117,5],[118,4,118,5],[119,4,119,5],[120,4,120,5],[121,4,121,5],[110,4,110,5],[111,4,111,5],[112,4,112,5],[113,4,113,5],[114,4,114,5],[115,4,115,5],[104,4,104,5],[105,4,105,5],[106,4,106,5],[107,4,107,5],[108,4,108,5],[109,4,109,5],[98,4,98,5],[99,4,99,5],[100,4,100,5],[101,4,101,5],[102,4,102,5],[103,4,103,5],[92,4,92,5],[93,4,93,5],[94,4,94,5],[95,4,95,5],[96,4,96,5],[97,4,97,5],[86,4,86,5],[87,4,87,5],[88,4,88,5],[89,4,89,5],[90,4,90,5],[91,4,91,5],[80,4,80,5],[81,4,81,5],[82,4,82,5],[83,4,83,5],[84,4,84,5],[85,4,85,5],[74,4,74,5],[75,4,75,5],[76,4,76,5],[77,4,77,5],[78,4,78,5],[79,4,79,5],[68,4,68,5],[69,4,69,5],[70,4,70,5],[71,4,71,5],[72,4,72,5],[73,4,73,5],[62,4,62,5],[63,4,63,5],[64,4,64,5],[65,4,65,5],[66,4,66,5],[67,4,67,5],[56,4,56,5],[57,4,57,5],[58,4,58,5],[59,4,59,5],[60,4,60,5],[61,4,61,5],[50,4,50,5],[51,4,51,5],[52,4,52,5],[53,4,53,5],[54,4,54,5],[55,4,55,5],[44,4,44,5],[45,4,45,5],[46,4,46,5],[47,4,47,5],[48,4,48,5],[49,4,49,5],[40,4,40,5],[41,4,41,5],[42,4,42,5],[43,4,43,5],[28,4,28,5],[29,4,29,5],[30,4,30,5],[31,4,31,5],[32,4,32,5],[21,4,21,5],[25,4,25,5],[26,4,26,5],[15,4,15,5],[16,4,16,5],[17,4,17,5],[18,4,18,5],[19,4,19,5],[20,4,20,5],[1,6,3,70],[1,71,3,145],[1,151,3,155],[1,146,3,150],[39,4,39,5],[9,4,9,5],[10,4,10,5],[11,4,11,5],[12,4,12,5],[13,4,13,5],[14,4,14,5],[22,4,22,5],[23,4,23,5],[24,4,24,5],[38,4,38,5],[37,4,37,5],[36,4,36,5],[5,4,5,5],[7,4,7,5],[8,4,8,5],[33,4,33,5],[34,4,34,5],[35,4,35,5],[27,4,27,5]]}
[]
[null,null,null,"Country:",{"$f":"\"\" &'GETTING STARTED'!G9","v":""},{"$f":"\"\" &'GETTING STARTED'!E9","v":""},"A. Environmental Protection",null,null,null,null,null,null,null,null,null,null,null,null,null,null,null,null,null,null,null,null,null,null,null,null,null,null,null,null,null,null,null,null,null,null,null,null,null,null,null,null,null,null,null,null,null,null,null,null,null,null,null,null,null,null,null,null,null,null,null,null,null,null,null,null,"B. Resources Management",null,null,null,null,null,null,null,null,null,null,null,null,null,null,null,null,null,null,null,null,null,null,null,null,null,null,null,null,null,null,null,null,null,null,null,null,null,null,null,null,null,null,null,null,null,null,null,null,null,null,null,null,null,null,null,null,null,null,null,null,null,null,null,null,null,null,null,null,null,null,null,null,null,null,"Total",null,null,null,null,"MEMO ITEM"]
[null,null,null,"Year:",{"$f":"\"\" &'GETTING STARTED'!E10","v":""}]
[null,null,null,"Unit:","MIO_NAC","Million units of national currency"]
[null,null,null,"Characteristic / variable","P1","OUTPUT","CEPA 1",null,null,null,null,"CEPA 1.1.2 and 1.2.2",null,null,null,null,"CEPA 2",null,null,null,null,"CEPA 3",null,null,null,null,"CEPA 4",null,null,null,null,"CEPA 5",null,null,null,null,"CEPA 6",null,null,null,null,"CEPA 7 + CEPA 8 + CEPA 9",null,null,null,null,"CEPA 7",null,null,null,null,"CEPA 8",null,null,null,null,"CEPA 8.1.2",null,null,null,null,"CEPA 9",null,null,null,null,"CEPA 1-9",null,null,null,null,"CReMA 10",null,null,null,null,"CReMA 11",null,null,null,null,"CReMA 11 A",null,null,null,null,"CReMA 11 B",null,null,null,null,"CReMA 13 ",null,null,null,null,"CReMA 13 A",null,null,null,null,"CReMA 13 B",null,null,null,null,"CReMA 13 C",null,null,null,null,"CReMA 14",null,null,null,null,"CReMA 12 + CReMA 15 + CReMA 16",null,null,null,null,"CReMA 12",null,null,null,null,"CReMA 15",null,null,null,null,"CReMA 15.5.1",null,null,null,null,"CReMA 16",null,null,null,null,"CReMA 10-16",null,null,null,null,"CEPA 1-9 and CReMA 10-16",null,null,null,null,"CREMA13B_MEMO"]
[null,null,null,null,"EGSS - OUTPUT",null,"Protection of ambient air and climate ","Standard footnote","Confidentiality footnote","Explanatory footnote",null,"Protection of climate and ozone layer (as a subgroup of protection of ambient air and climate)","Standard footnote","Confidentiality footnote","Explanatory footnote",null,"Wastewater management","Standard footnote","Confidentiality footnote","Explanatory footnote",null,"Waste management ","Standard footnote","Confidentiality footnote","Explanatory footnote",null,"Protection and remediation of soil, groundwater and surface water ","Standard footnote","Confidentiality footnote","Explanatory footnote",null,"Noise and vibration abatement ","Standard footnote","Confidentiality footnote","Explanatory footnote",null,"Protection of biodiversity and landscapes ","Standard footnote","Confidentiality footnote","Explanatory footnote",null,"Protection against radiation; Research and development (R&D) and Other","Standard footnote","Confidentiality footnote","Explanatory footnote",null,"Protection against radiation ","Standard footnote","Confidentiality footnote","Explanatory footnote",null,"Research and development (R&D) for environmental protection","Standard footnote","Confidentiality footnote","Explanatory footnote",null,"R&D for the protection of climate and ozone layer (as a subgroup of research and development for environmental protection)","Standard footnote","Confidentiality footnote","Explanatory footnote",null,"Other","Standard footnote","Confidentiality footnote","Explanatory footnote",null,"Total CEPA","Standard footnote","Confidentiality footnote","Explanatory footnote",null,"Management of waters","Standard footnote","Confidentiality footnote","Explanatory footnote",null,"Management of forest resources","Standard footnote","Confidentiality footnote","Explanatory footnote",null,"Management of forest areas","Standard footnote","Confidentiality footnote","Explanatory footnote",null,"Minimisation of the intake of  forest resources","Standard footnote","Confidentiality footnote","Explanatory footnote",null,"Management of fossil energy resources","Standard footnote","Confidentiality footnote","Explanatory footnote",null,"Production of energy from renewable sources","Standard footnote","Confidentiality footnote","Explanatory footnote",null,"Heat/Energy saving and management","Standard footnote","Confidentiality footnote","Explanatory footnote",null,"Minimisation of the intake of fossil resources as raw material ","Standard footnote","Confidentiality footnote","Explanatory footnote",null,"Management of minerals","Standard footnote","Confidentiality footnote","Explanatory footnote",null,"Management of wild flora and fauna; Research and development (R&D) and Other","Standard footnote","Confidentiality footnote","Explanatory footnote",null,"Management of wild flora and fauna","Standard footnote","Confidentiality footnote","Explanatory footnote",null,"Research and development (R&D) for resource management","Standard footnote","Confidentiality footnote","Explanatory footnote",null,"R&D for the production of energy from renewable sources (as a subgroup of R& D for resource management) ","Standard footnote","Confidentiality footnote","Explanatory footnote",null,"Other","Standard footnote","Confidentiality footnote","Explanatory footnote",null,"Total CReMA","Standard footnote","Confidentiality footnote","Explanatory footnote",null,"TOTAL CEPA and CReMA","Standard footnote","Confidentiality footnote","Explanatory footnote",null,"Part of GVA related to energy-efficiency measures undertaken for the construction of the NZEBs","Standard footnote","Confidentiality footnote","Explanatory footnote"]
[null,null,null,null,null,null,"CEPA1",null,null,null,null,"CEPA112_122",null,null,null,null,"CEPA2",null,null,null,null,"CEPA3",null,null,null,null,"CEPA4",null,null,null,null,"CEPA5",null,null,null,null,"CEPA6",null,null,null,null,"CEPA7-9",null,null,null,null,"CEPA7",null,null,null,null,"CEPA8",null,null,null,null,"CEPA812",null,null,null,null,"CEPA9",null,null,null,null,"TOT_CEPA",null,null,null,null,"CREMA10",null,null,null,null,"CREMA11",null,null,null,null,"CREMA11A",null,null,null,null,"CREMA11B",null,null,null,null,"CREMA13",null,null,null,null,"CREMA13A",null,null,null,null,"CREMA13B",null,null,null,null,"CREMA13C",null,null,null,null,"CREMA14",null,null,null,null,"CREMA12_15_16",null,null,null,null,"CREMA12",null,null,null,null,"CREMA15",null,null,null,null,"CREMA15A",null,null,null,null,"CREMA16",null,null,null,null,"TOT_CREMA",null,null,null,null,"TOTAL",null,null,null,null,"CREMA13B_MEMO"]
[null,null,"TOTAL","TOT_EGSS","Total output, of which:",null,{"$f":"G15+G22+G29+G127+G134+G169+G197+G218+G260+G267+G309","v":0},null,null,null,{"$f":"IF(TRIM(J8)=\"\", \"\", IF(VLOOKUP(J8,'Footnotes list'!$D$9:$E$58,2,FALSE)=0,\"\",VLOOKUP(J8,'Footnotes list'!$D$9:$E$58,2,FALSE) ) )","v":""},null,null,null,null,{"$f":"IF(TRIM(O8)=\"\", \"\", IF(VLOOKUP(O8,'Footnotes list'!$D$9:$E$58,2,FALSE)=0,\"\",VLOOKUP(O8,'Footnotes list'!$D$9:$E$58,2,FALSE) ) )","v":""},{"$f":"Q15+Q22+Q29+Q127+Q134+Q169+Q197+Q218+Q260+Q267+Q309","v":0},null,null,null,{"$f":"IF(TRIM(T8)=\"\", \"\", IF(VLOOKUP(T8,'Footnotes list'!$D$9:$E$58,2,FALSE)=0,\"\",VLOOKUP(T8,'Footnotes list'!$D$9:$E$58,2,FALSE) ) )","v":""},{"$f":"V15+V22+V29+V127+V134+V169+V197+V218+V260+V267+V309","v":0},null,null,null,{"$f":"IF(TRIM(Y8)=\"\", \"\", IF(VLOOKUP(Y8,'Footnotes list'!$D$9:$E$58,2,FALSE)=0,\"\",VLOOKUP(Y8,'Footnotes list'!$D$9:$E$58,2,FALSE) ) )","v":""},{"$f":"AA15+AA22+AA29+AA127+AA134+AA169+AA197+AA218+AA260+AA267+AA309","v":0},null,null,null,{"$f":"IF(TRIM(AD8)=\"\", \"\", IF(VLOOKUP(AD8,'Footnotes list'!$D$9:$E$58,2,FALSE)=0,\"\",VLOOKUP(AD8,'Footnotes list'!$D$9:$E$58,2,FALSE) ) )","v":""},{"$f":"AF15+AF22+AF29+AF127+AF134+AF169+AF197+AF218+AF260+AF267+AF309","v":0},null,null,null,{"$f":"IF(TRIM(AI8)=\"\", \"\", IF(VLOOKUP(AI8,'Footnotes list'!$D$9:$E$58,2,FALSE)=0,\"\",VLOOKUP(AI8,'Footnotes list'!$D$9:$E$58,2,FALSE) ) )","v":""},{"$f":"AK15+AK22+AK29+AK127+AK134+AK169+AK197+AK218+AK260+AK267+AK309","v":0},null,null,null,{"$f":"IF(TRIM(AN8)=\"\", \"\", IF(VLOOKUP(AN8,'Footnotes list'!$D$9:$E$58,2,FALSE)=0,\"\",VLOOKUP(AN8,'Footnotes list'!$D$9:$E$58,2,FALSE) ) )","v":""},{"$f":"AP15+AP22+AP29+AP127+AP134+AP169+AP197+AP218+AP260+AP267+AP309","v":0},null,null,null,{"$f":"IF(TRIM(AS8)=\"\", \"\", IF(VLOOKUP(AS8,'Footnotes list'!$D$9:$E$58,2,FALSE)=0,\"\",VLOOKUP(AS8,'Footnotes list'!$D$9:$E$58,2,FALSE) ) )","v":""},null,null,null,null,{"$f":"IF(TRIM(AX8)=\"\", \"\", IF(VLOOKUP(AX8,'Footnotes list'!$D$9:$E$58,2,FALSE)=0,\"\",VLOOKUP(AX8,'Footnotes list'!$D$9:$E$58,2,FALSE) ) )","v":""},null,null,null,null,{"$f":"IF(TRIM(BC8)=\"\", \"\", IF(VLOOKUP(BC8,'Footnotes list'!$D$9:$E$58,2,FALSE)=0,\"\",VLOOKUP(BC8,'Footnotes list'!$D$9:$E$58,2,FALSE) ) )","v":""},null,null,null,null,{"$f":"IF(TRIM(BH8)=\"\", \"\", IF(VLOOKUP(BH8,'Footnotes list'!$D$9:$E$58,2,FALSE)=0,\"\",VLOOKUP(BH8,'Footnotes list'!$D$9:$E$58,2,FALSE) ) )","v":""},null,null,null,null,{"$f":"IF(TRIM(BM8)=\"\", \"\", IF(VLOOKUP(BM8,'Footnotes list'!$D$9:$E$58,2,FALSE)=0,\"\",VLOOKUP(BM8,'Footnotes list'!$D$9:$E$58,2,FALSE) ) )","v":""},{"$f":"G8+Q8+V8+AA8+AF8+AK8+AP8","v":0},null,null,null,{"$f":"IF(TRIM(BR8)=\"\", \"\", IF(VLOOKUP(BR8,'Footnotes list'!$D$9:$E$58,2,FALSE)=0,\"\",VLOOKUP(BR8,'Footnotes list'!$D$9:$E$58,2,FALSE) ) )","v":""},{"$f":"BT15+BT22+BT29+BT127+BT134+BT169+BT197+BT218+BT260+BT267+BT309","v":0},null,null,null,{"$f":"IF(TRIM(BW8)=\"\", \"\", IF(VLOOKUP(BW8,'Footnotes list'!$D$9:$E$58,2,FALSE)=0,\"\",VLOOKUP(BW8,'Footnotes list'!$D$9:$E$58,2,FALSE) ) )","v":""},{"$f":"BY15+BY22+BY29+BY127+BY134+BY169+BY197+BY218+BY260+BY267+BY309","v":0},null,null,null,{"$f":"IF(TRIM(CB8)=\"\", \"\", IF(VLOOKUP(CB8,'Footnotes list'!$D$9:$E$58,2,FALSE)=0,\"\",VLOOKUP(CB8,'Footnotes list'!$D$9:$E$58,2,FALSE) ) )","v":""},null,null,null,null,{"$f":"IF(TRIM(CG8)=\"\", \"\", IF(VLOOKUP(CG8,'Footnotes list'!$D$9:$E$58,2,FALSE)=0,\"\",VLOOKUP(CG8,'Footnotes list'!$D$9:$E$58,2,FALSE) ) )","v":""},null,null,null,null,{"$f":"IF(TRIM(CL8)=\"\", \"\", IF(VLOOKUP(CL8,'Footnotes list'!$D$9:$E$58,2,FALSE)=0,\"\",VLOOKUP(CL8,'Footnotes list'!$D$9:$E$58,2,FALSE) ) )","v":""},{"$f":"CN15+CN22+CN29+CN127+CN134+CN169+CN197+CN218+CN260+CN267+CN309","v":0},null,null,null,{"$f":"IF(TRIM(CQ8)=\"\", \"\", IF(VLOOKUP(CQ8,'Footnotes list'!$D$9:$E$58,2,FALSE)=0,\"\",VLOOKUP(CQ8,'Footnotes list'!$D$9:$E$58,2,FALSE) ) )","v":""},{"$f":"CS15+CS22+CS29+CS127+CS134+CS169+CS197+CS218+CS260+CS267+CS309","v":0},null,null,null,{"$f":"IF(TRIM(CV8)=\"\", \"\", IF(VLOOKUP(CV8,'Footnotes list'!$D$9:$E$58,2,FALSE)=0,\"\",VLOOKUP(CV8,'Footnotes list'!$D$9:$E$58,2,FALSE) ) )","v":""},{"$f":"CX15+CX22+CX29+CX127+CX134+CX169+CX197+CX218+CX260+CX267+CX309","v":0},null,null,null,{"$f":"IF(TRIM(DA8)=\"\", \"\", IF(VLOOKUP(DA8,'Footnotes list'!$D$9:$E$58,2,FALSE)=0,\"\",VLOOKUP(DA8,'Footnotes list'!$D$9:$E$58,2,FALSE) ) )","v":""},{"$f":"DC15+DC22+DC29+DC127+DC134+DC169+DC197+DC218+DC260+DC267+DC309","v":0},null,null,null,{"$f":"IF(TRIM(DF8)=\"\", \"\", IF(VLOOKUP(DF8,'Footnotes list'!$D$9:$E$58,2,FALSE)=0,\"\",VLOOKUP(DF8,'Footnotes list'!$D$9:$E$58,2,FALSE) ) )","v":""},{"$f":"DH15+DH22+DH29+DH127+DH134+DH169+DH197+DH218+DH260+DH267+DH309","v":0},null,null,null,{"$f":"IF(TRIM(DK8)=\"\", \"\", IF(VLOOKUP(DK8,'Footnotes list'!$D$9:$E$58,2,FALSE)=0,\"\",VLOOKUP(DK8,'Footnotes list'!$D$9:$E$58,2,FALSE) ) )","v":""},{"$f":"DM15+DM22+DM29+DM127+DM134+DM169+DM197+DM218+DM260+DM267+DM309","v":0},null,null,null,{"$f":"IF(TRIM(DP8)=\"\", \"\", IF(VLOOKUP(DP8,'Footnotes list'!$D$9:$E$58,2,FALSE)=0,\"\",VLOOKUP(DP8,'Footnotes list'!$D$9:$E$58,2,FALSE) ) )","v":""},null,null,null,null,{"$f":"IF(TRIM(DU8)=\"\", \"\", IF(VLOOKUP(DU8,'Footnotes list'!$D$9:$E$58,2,FALSE)=0,\"\",VLOOKUP(DU8,'Footnotes list'!$D$9:$E$58,2,FALSE) ) )","v":""},null,null,null,null,{"$f":"IF(TRIM(DZ8)=\"\", \"\", IF(VLOOKUP(DZ8,'Footnotes list'!$D$9:$E$58,2,FALSE)=0,\"\",VLOOKUP(DZ8,'Footnotes list'!$D$9:$E$58,2,FALSE) ) )","v":""},null,null,null,null,{"$f":"IF(TRIM(EE8)=\"\", \"\", IF(VLOOKUP(EE8,'Footnotes list'!$D$9:$E$58,2,FALSE)=0,\"\",VLOOKUP(EE8,'Footnotes list'!$D$9:$E$58,2,FALSE) ) )","v":""},null,null,null,null,{"$f":"IF(TRIM(EJ8)=\"\", \"\", IF(VLOOKUP(EJ8,'Footnotes list'!$D$9:$E$58,2,FALSE)=0,\"\",VLOOKUP(EJ8,'Footnotes list'!$D$9:$E$58,2,FALSE) ) )","v":""},{"$f":"DM8+DH8+CN8+BY8+BT8","v":0},null,null,null,{"$f":"IF(TRIM(EO8)=\"\", \"\", IF(VLOOKUP(EO8,'Footnotes list'!$D$9:$E$58,2,FALSE)=0,\"\",VLOOKUP(EO8,'Footnotes list'!$D$9:$E$58,2,FALSE) ) )","v":""},{"$f":"EL8+BO8","v":0},null,null,null,{"$f":"IF(TRIM(ET8)=\"\", \"\", IF(VLOOKUP(ET8,'Footnotes list'!$D$9:$E$58,2,FALSE)=0,\"\",VLOOKUP(ET8,'Footnotes list'!$D$9:$E$58,2,FALSE) ) )","v":""},null,null,null,null,{"$f":"IF(TRIM(EY8)=\"\", \"\", IF(VLOOKUP(EY8,'Footnotes list'!$D$9:$E$58,2,FALSE)=0,\"\",VLOOKUP(EY8,'Footnotes list'!$D$9:$E$58,2,FALSE) ) )","v":""}]
[null,null,"TOTAL","ANC","ancillary activities",null,null,null,null,null,{"$f":"IF(TRIM(J9)=\"\", \"\", IF(VLOOKUP(J9,'Footnotes list'!$D$9:$E$58,2,FALSE)=0,\"\",VLOOKUP(J9,'Footnotes list'!$D$9:$E$58,2,FALSE) ) )","v":""},null,null,null,null,{"$f":"IF(TRIM(O9)=\"\", \"\", IF(VLOOKUP(O9,'Footnotes list'!$D$9:$E$58,2,FALSE)=0,\"\",VLOOKUP(O9,'Footnotes list'!$D$9:$E$58,2,FALSE) ) )","v":""},null,null,null,null,{"$f":"IF(TRIM(T9)=\"\", \"\", IF(VLOOKUP(T9,'Footnotes list'!$D$9:$E$58,2,FALSE)=0,\"\",VLOOKUP(T9,'Footnotes list'!$D$9:$E$58,2,FALSE) ) )","v":""},null,null,null,null,{"$f":"IF(TRIM(Y9)=\"\", \"\", IF(VLOOKUP(Y9,'Footnotes list'!$D$9:$E$58,2,FALSE)=0,\"\",VLOOKUP(Y9,'Footnotes list'!$D$9:$E$58,2,FALSE) ) )","v":""},null,null,null,null,{"$f":"IF(TRIM(AD9)=\"\", \"\", IF(VLOOKUP(AD9,'Footnotes list'!$D$9:$E$58,2,FALSE)=0,\"\",VLOOKUP(AD9,'Footnotes list'!$D$9:$E$58,2,FALSE) ) )","v":""},null,null,null,null,{"$f":"IF(TRIM(AI9)=\"\", \"\", IF(VLOOKUP(AI9,'Footnotes list'!$D$9:$E$58,2,FALSE)=0,\"\",VLOOKUP(AI9,'Footnotes list'!$D$9:$E$58,2,FALSE) ) )","v":""},null,null,null,null,{"$f":"IF(TRIM(AN9)=\"\", \"\", IF(VLOOKUP(AN9,'Footnotes list'!$D$9:$E$58,2,FALSE)=0,\"\",VLOOKUP(AN9,'Footnotes list'!$D$9:$E$58,2,FALSE) ) )","v":""},null,null,null,null,{"$f":"IF(TRIM(AS9)=\"\", \"\", IF(VLOOKUP(AS9,'Footnotes list'!$D$9:$E$58,2,FALSE)=0,\"\",VLOOKUP(AS9,'Footnotes list'!$D$9:$E$58,2,FALSE) ) )","v":""},null,null,null,null,{"$f":"IF(TRIM(AX9)=\"\", \"\", IF(VLOOKUP(AX9,'Footnotes list'!$D$9:$E$58,2,FALSE)=0,\"\",VLOOKUP(AX9,'Footnotes list'!$D$9:$E$58,2,FALSE) ) )","v":""},null,null,null,null,{"$f":"IF(TRIM(BC9)=\"\", \"\", IF(VLOOKUP(BC9,'Footnotes list'!$D$9:$E$58,2,FALSE)=0,\"\",VLOOKUP(BC9,'Footnotes list'!$D$9:$E$58,2,FALSE) ) )","v":""},null,null,null,null,{"$f":"IF(TRIM(BH9)=\"\", \"\", IF(VLOOKUP(BH9,'Footnotes list'!$D$9:$E$58,2,FALSE)=0,\"\",VLOOKUP(BH9,'Footnotes list'!$D$9:$E$58,2,FALSE) ) )","v":""},null,null,null,null,{"$f":"IF(TRIM(BM9)=\"\", \"\", IF(VLOOKUP(BM9,'Footnotes list'!$D$9:$E$58,2,FALSE)=0,\"\",VLOOKUP(BM9,'Footnotes list'!$D$9:$E$58,2,FALSE) ) )","v":""},null,null,null,null,{"$f":"IF(TRIM(BR9)=\"\", \"\", IF(VLOOKUP(BR9,'Footnotes list'!$D$9:$E$58,2,FALSE)=0,\"\",VLOOKUP(BR9,'Footnotes list'!$D$9:$E$58,2,FALSE) ) )","v":""},null,null,null,null,{"$f":"IF(TRIM(BW9)=\"\", \"\", IF(VLOOKUP(BW9,'Footnotes list'!$D$9:$E$58,2,FALSE)=0,\"\",VLOOKUP(BW9,'Footnotes list'!$D$9:$E$58,2,FALSE) ) )","v":""},null,null,null,null,{"$f":"IF(TRIM(CB9)=\"\", \"\", IF(VLOOKUP(CB9,'Footnotes list'!$D$9:$E$58,2,FALSE)=0,\"\",VLOOKUP(CB9,'Footnotes list'!$D$9:$E$58,2,FALSE) ) )","v":""},null,null,null,null,{"$f":"IF(TRIM(CG9)=\"\", \"\", IF(VLOOKUP(CG9,'Footnotes list'!$D$9:$E$58,2,FALSE)=0,\"\",VLOOKUP(CG9,'Footnotes list'!$D$9:$E$58,2,FALSE) ) )","v":""},null,null,null,null,{"$f":"IF(TRIM(CL9)=\"\", \"\", IF(VLOOKUP(CL9,'Footnotes list'!$D$9:$E$58,2,FALSE)=0,\"\",VLOOKUP(CL9,'Footnotes list'!$D$9:$E$58,2,FALSE) ) )","v":""},null,null,null,null,{"$f":"IF(TRIM(CQ9)=\"\", \"\", IF(VLOOKUP(CQ9,'Footnotes list'!$D$9:$E$58,2,FALSE)=0,\"\",VLOOKUP(CQ9,'Footnotes list'!$D$9:$E$58,2,FALSE) ) )","v":""},null,null,null,null,{"$f":"IF(TRIM(CV9)=\"\", \"\", IF(VLOOKUP(CV9,'Footnotes list'!$D$9:$E$58,2,FALSE)=0,\"\",VLOOKUP(CV9,'Footnotes list'!$D$9:$E$58,2,FALSE) ) )","v":""},null,null,null,null,{"$f":"IF(TRIM(DA9)=\"\", \"\", IF(VLOOKUP(DA9,'Footnotes list'!$D$9:$E$58,2,FALSE)=0,\"\",VLOOKUP(DA9,'Footnotes list'!$D$9:$E$58,2,FALSE) ) )","v":""},null,null,null,null,{"$f":"IF(TRIM(DF9)=\"\", \"\", IF(VLOOKUP(DF9,'Footnotes list'!$D$9:$E$58,2,FALSE)=0,\"\",VLOOKUP(DF9,'Footnotes list'!$D$9:$E$58,2,FALSE) ) )","v":""},null,null,null,null,{"$f":"IF(TRIM(DK9)=\"\", \"\", IF(VLOOKUP(DK9,'Footnotes list'!$D$9:$E$58,2,FALSE)=0,\"\",VLOOKUP(DK9,'Footnotes list'!$D$9:$E$58,2,FALSE) ) )","v":""},null,null,null,null,{"$f":"IF(TRIM(DP9)=\"\", \"\", IF(VLOOKUP(DP9,'Footnotes list'!$D$9:$E$58,2,FALSE)=0,\"\",VLOOKUP(DP9,'Footnotes list'!$D$9:$E$58,2,FALSE) ) )","v":""},null,null,null,null,{"$f":"IF(TRIM(DU9)=\"\", \"\", IF(VLOOKUP(DU9,'Footnotes list'!$D$9:$E$58,2,FALSE)=0,\"\",VLOOKUP(DU9,'Footnotes list'!$D$9:$E$58,2,FALSE) ) )","v":""},null,null,null,null,{"$f":"IF(TRIM(DZ9)=\"\", \"\", IF(VLOOKUP(DZ9,'Footnotes list'!$D$9:$E$58,2,FALSE)=0,\"\",VLOOKUP(DZ9,'Footnotes list'!$D$9:$E$58,2,FALSE) ) )","v":""},null,null,null,null,{"$f":"IF(TRIM(EE9)=\"\", \"\", IF(VLOOKUP(EE9,'Footnotes list'!$D$9:$E$58,2,FALSE)=0,\"\",VLOOKUP(EE9,'Footnotes list'!$D$9:$E$58,2,FALSE) ) )","v":""},null,null,null,null,{"$f":"IF(TRIM(EJ9)=\"\", \"\", IF(VLOOKUP(EJ9,'Footnotes list'!$D$9:$E$58,2,FALSE)=0,\"\",VLOOKUP(EJ9,'Footnotes list'!$D$9:$E$58,2,FALSE) ) )","v":""},null,null,null,null,{"$f":"IF(TRIM(EO9)=\"\", \"\", IF(VLOOKUP(EO9,'Footnotes list'!$D$9:$E$58,2,FALSE)=0,\"\",VLOOKUP(EO9,'Footnotes list'!$D$9:$E$58,2,FALSE) ) )","v":""},null,null,null,null,{"$f":"IF(TRIM(ET9)=\"\", \"\", IF(VLOOKUP(ET9,'Footnotes list'!$D$9:$E$58,2,FALSE)=0,\"\",VLOOKUP(ET9,'Footnotes list'!$D$9:$E$58,2,FALSE) ) )","v":""},null,null,null,null,{"$f":"IF(TRIM(EY9)=\"\", \"\", IF(VLOOKUP(EY9,'Footnotes list'!$D$9:$E$58,2,FALSE)=0,\"\",VLOOKUP(EY9,'Footnotes list'!$D$9:$E$58,2,FALSE) ) )","v":""}]
[null,null,"TOTAL","NMKT","non-market activities",null,null,null,null,null,{"$f":"IF(TRIM(J10)=\"\", \"\", IF(VLOOKUP(J10,'Footnotes list'!$D$9:$E$58,2,FALSE)=0,\"\",VLOOKUP(J10,'Footnotes list'!$D$9:$E$58,2,FALSE) ) )","v":""},null,null,null,null,{"$f":"IF(TRIM(O10)=\"\", \"\", IF(VLOOKUP(O10,'Footnotes list'!$D$9:$E$58,2,FALSE)=0,\"\",VLOOKUP(O10,'Footnotes list'!$D$9:$E$58,2,FALSE) ) )","v":""},null,null,null,null,{"$f":"IF(TRIM(T10)=\"\", \"\", IF(VLOOKUP(T10,'Footnotes list'!$D$9:$E$58,2,FALSE)=0,\"\",VLOOKUP(T10,'Footnotes list'!$D$9:$E$58,2,FALSE) ) )","v":""},null,null,null,null,{"$f":"IF(TRIM(Y10)=\"\", \"\", IF(VLOOKUP(Y10,'Footnotes list'!$D$9:$E$58,2,FALSE)=0,\"\",VLOOKUP(Y10,'Footnotes list'!$D$9:$E$58,2,FALSE) ) )","v":""},null,null,null,null,{"$f":"IF(TRIM(AD10)=\"\", \"\", IF(VLOOKUP(AD10,'Footnotes list'!$D$9:$E$58,2,FALSE)=0,\"\",VLOOKUP(AD10,'Footnotes list'!$D$9:$E$58,2,FALSE) ) )","v":""},null,null,null,null,{"$f":"IF(TRIM(AI10)=\"\", \"\", IF(VLOOKUP(AI10,'Footnotes list'!$D$9:$E$58,2,FALSE)=0,\"\",VLOOKUP(AI10,'Footnotes list'!$D$9:$E$58,2,FALSE) ) )","v":""},null,null,null,null,{"$f":"IF(TRIM(AN10)=\"\", \"\", IF(VLOOKUP(AN10,'Footnotes list'!$D$9:$E$58,2,FALSE)=0,\"\",VLOOKUP(AN10,'Footnotes list'!$D$9:$E$58,2,FALSE) ) )","v":""},null,null,null,null,{"$f":"IF(TRIM(AS10)=\"\", \"\", IF(VLOOKUP(AS10,'Footnotes list'!$D$9:$E$58,2,FALSE)=0,\"\",VLOOKUP(AS10,'Footnotes list'!$D$9:$E$58,2,FALSE) ) )","v":""},null,null,null,null,{"$f":"IF(TRIM(AX10)=\"\", \"\", IF(VLOOKUP(AX10,'Footnotes list'!$D$9:$E$58,2,FALSE)=0,\"\",VLOOKUP(AX10,'Footnotes list'!$D$9:$E$58,2,FALSE) ) )","v":""},null,null,null,null,{"$f":"IF(TRIM(BC10)=\"\", \"\", IF(VLOOKUP(BC10,'Footnotes list'!$D$9:$E$58,2,FALSE)=0,\"\",VLOOKUP(BC10,'Footnotes list'!$D$9:$E$58,2,FALSE) ) )","v":""},null,null,null,null,{"$f":"IF(TRIM(BH10)=\"\", \"\", IF(VLOOKUP(BH10,'Footnotes list'!$D$9:$E$58,2,FALSE)=0,\"\",VLOOKUP(BH10,'Footnotes list'!$D$9:$E$58,2,FALSE) ) )","v":""},null,null,null,null,{"$f":"IF(TRIM(BM10)=\"\", \"\", IF(VLOOKUP(BM10,'Footnotes list'!$D$9:$E$58,2,FALSE)=0,\"\",VLOOKUP(BM10,'Footnotes list'!$D$9:$E$58,2,FALSE) ) )","v":""},null,null,null,null,{"$f":"IF(TRIM(BR10)=\"\", \"\", IF(VLOOKUP(BR10,'Footnotes list'!$D$9:$E$58,2,FALSE)=0,\"\",VLOOKUP(BR10,'Footnotes list'!$D$9:$E$58,2,FALSE) ) )","v":""},null,null,null,null,{"$f":"IF(TRIM(BW10)=\"\", \"\", IF(VLOOKUP(BW10,'Footnotes list'!$D$9:$E$58,2,FALSE)=0,\"\",VLOOKUP(BW10,'Footnotes list'!$D$9:$E$58,2,FALSE) ) )","v":""},null,null,null,null,{"$f":"IF(TRIM(CB10)=\"\", \"\", IF(VLOOKUP(CB10,'Footnotes list'!$D$9:$E$58,2,FALSE)=0,\"\",VLOOKUP(CB10,'Footnotes list'!$D$9:$E$58,2,FALSE) ) )","v":""},null,null,null,null,{"$f":"IF(TRIM(CG10)=\"\", \"\", IF(VLOOKUP(CG10,'Footnotes list'!$D$9:$E$58,2,FALSE)=0,\"\",VLOOKUP(CG10,'Footnotes list'!$D$9:$E$58,2,FALSE) ) )","v":""},null,null,null,null,{"$f":"IF(TRIM(CL10)=\"\", \"\", IF(VLOOKUP(CL10,'Footnotes list'!$D$9:$E$58,2,FALSE)=0,\"\",VLOOKUP(CL10,'Footnotes list'!$D$9:$E$58,2,FALSE) ) )","v":""},null,null,null,null,{"$f":"IF(TRIM(CQ10)=\"\", \"\", IF(VLOOKUP(CQ10,'Footnotes list'!$D$9:$E$58,2,FALSE)=0,\"\",VLOOKUP(CQ10,'Footnotes list'!$D$9:$E$58,2,FALSE) ) )","v":""},null,null,null,null,{"$f":"IF(TRIM(CV10)=\"\", \"\", IF(VLOOKUP(CV10,'Footnotes list'!$D$9:$E$58,2,FALSE)=0,\"\",VLOOKUP(CV10,'Footnotes list'!$D$9:$E$58,2,FALSE) ) )","v":""},null,null,null,null,{"$f":"IF(TRIM(DA10)=\"\", \"\", IF(VLOOKUP(DA10,'Footnotes list'!$D$9:$E$58,2,FALSE)=0,\"\",VLOOKUP(DA10,'Footnotes list'!$D$9:$E$58,2,FALSE) ) )","v":""},null,null,null,null,{"$f":"IF(TRIM(DF10)=\"\", \"\", IF(VLOOKUP(DF10,'Footnotes list'!$D$9:$E$58,2,FALSE)=0,\"\",VLOOKUP(DF10,'Footnotes list'!$D$9:$E$58,2,FALSE) ) )","v":""},null,null,null,null,{"$f":"IF(TRIM(DK10)=\"\", \"\", IF(VLOOKUP(DK10,'Footnotes list'!$D$9:$E$58,2,FALSE)=0,\"\",VLOOKUP(DK10,'Footnotes list'!$D$9:$E$58,2,FALSE) ) )","v":""},null,null,null,null,{"$f":"IF(TRIM(DP10)=\"\", \"\", IF(VLOOKUP(DP10,'Footnotes list'!$D$9:$E$58,2,FALSE)=0,\"\",VLOOKUP(DP10,'Footnotes list'!$D$9:$E$58,2,FALSE) ) )","v":""},null,null,null,null,{"$f":"IF(TRIM(DU10)=\"\", \"\", IF(VLOOKUP(DU10,'Footnotes list'!$D$9:$E$58,2,FALSE)=0,\"\",VLOOKUP(DU10,'Footnotes list'!$D$9:$E$58,2,FALSE) ) )","v":""},null,null,null,null,{"$f":"IF(TRIM(DZ10)=\"\", \"\", IF(VLOOKUP(DZ10,'Footnotes list'!$D$9:$E$58,2,FALSE)=0,\"\",VLOOKUP(DZ10,'Footnotes list'!$D$9:$E$58,2,FALSE) ) )","v":""},null,null,null,null,{"$f":"IF(TRIM(EE10)=\"\", \"\", IF(VLOOKUP(EE10,'Footnotes list'!$D$9:$E$58,2,FALSE)=0,\"\",VLOOKUP(EE10,'Footnotes list'!$D$9:$E$58,2,FALSE) ) )","v":""},null,null,null,null,{"$f":"IF(TRIM(EJ10)=\"\", \"\", IF(VLOOKUP(EJ10,'Footnotes list'!$D$9:$E$58,2,FALSE)=0,\"\",VLOOKUP(EJ10,'Footnotes list'!$D$9:$E$58,2,FALSE) ) )","v":""},null,null,null,null,{"$f":"IF(TRIM(EO10)=\"\", \"\", IF(VLOOKUP(EO10,'Footnotes list'!$D$9:$E$58,2,FALSE)=0,\"\",VLOOKUP(EO10,'Footnotes list'!$D$9:$E$58,2,FALSE) ) )","v":""},null,null,null,null,{"$f":"IF(TRIM(ET10)=\"\", \"\", IF(VLOOKUP(ET10,'Footnotes list'!$D$9:$E$58,2,FALSE)=0,\"\",VLOOKUP(ET10,'Footnotes list'!$D$9:$E$58,2,FALSE) ) )","v":""},null,null,null,null,{"$f":"IF(TRIM(EY10)=\"\", \"\", IF(VLOOKUP(EY10,'Footnotes list'!$D$9:$E$58,2,FALSE)=0,\"\",VLOOKUP(EY10,'Footnotes list'!$D$9:$E$58,2,FALSE) ) )","v":""}]
[null,null,"TOTAL","OWN_USE","activities for own final use",null,null,null,null,null,{"$f":"IF(TRIM(J11)=\"\", \"\", IF(VLOOKUP(J11,'Footnotes list'!$D$9:$E$58,2,FALSE)=0,\"\",VLOOKUP(J11,'Footnotes list'!$D$9:$E$58,2,FALSE) ) )","v":""},null,null,null,null,{"$f":"IF(TRIM(O11)=\"\", \"\", IF(VLOOKUP(O11,'Footnotes list'!$D$9:$E$58,2,FALSE)=0,\"\",VLOOKUP(O11,'Footnotes list'!$D$9:$E$58,2,FALSE) ) )","v":""},null,null,null,null,{"$f":"IF(TRIM(T11)=\"\", \"\", IF(VLOOKUP(T11,'Footnotes list'!$D$9:$E$58,2,FALSE)=0,\"\",VLOOKUP(T11,'Footnotes list'!$D$9:$E$58,2,FALSE) ) )","v":""},null,null,null,null,{"$f":"IF(TRIM(Y11)=\"\", \"\", IF(VLOOKUP(Y11,'Footnotes list'!$D$9:$E$58,2,FALSE)=0,\"\",VLOOKUP(Y11,'Footnotes list'!$D$9:$E$58,2,FALSE) ) )","v":""},null,null,null,null,{"$f":"IF(TRIM(AD11)=\"\", \"\", IF(VLOOKUP(AD11,'Footnotes list'!$D$9:$E$58,2,FALSE)=0,\"\",VLOOKUP(AD11,'Footnotes list'!$D$9:$E$58,2,FALSE) ) )","v":""},null,null,null,null,{"$f":"IF(TRIM(AI11)=\"\", \"\", IF(VLOOKUP(AI11,'Footnotes list'!$D$9:$E$58,2,FALSE)=0,\"\",VLOOKUP(AI11,'Footnotes list'!$D$9:$E$58,2,FALSE) ) )","v":""},null,null,null,null,{"$f":"IF(TRIM(AN11)=\"\", \"\", IF(VLOOKUP(AN11,'Footnotes list'!$D$9:$E$58,2,FALSE)=0,\"\",VLOOKUP(AN11,'Footnotes list'!$D$9:$E$58,2,FALSE) ) )","v":""},null,null,null,null,{"$f":"IF(TRIM(AS11)=\"\", \"\", IF(VLOOKUP(AS11,'Footnotes list'!$D$9:$E$58,2,FALSE)=0,\"\",VLOOKUP(AS11,'Footnotes list'!$D$9:$E$58,2,FALSE) ) )","v":""},null,null,null,null,{"$f":"IF(TRIM(AX11)=\"\", \"\", IF(VLOOKUP(AX11,'Footnotes list'!$D$9:$E$58,2,FALSE)=0,\"\",VLOOKUP(AX11,'Footnotes list'!$D$9:$E$58,2,FALSE) ) )","v":""},null,null,null,null,{"$f":"IF(TRIM(BC11)=\"\", \"\", IF(VLOOKUP(BC11,'Footnotes list'!$D$9:$E$58,2,FALSE)=0,\"\",VLOOKUP(BC11,'Footnotes list'!$D$9:$E$58,2,FALSE) ) )","v":""},null,null,null,null,{"$f":"IF(TRIM(BH11)=\"\", \"\", IF(VLOOKUP(BH11,'Footnotes list'!$D$9:$E$58,2,FALSE)=0,\"\",VLOOKUP(BH11,'Footnotes list'!$D$9:$E$58,2,FALSE) ) )","v":""},null,null,null,null,{"$f":"IF(TRIM(BM11)=\"\", \"\", IF(VLOOKUP(BM11,'Footnotes list'!$D$9:$E$58,2,FALSE)=0,\"\",VLOOKUP(BM11,'Footnotes list'!$D$9:$E$58,2,FALSE) ) )","v":""},null,null,null,null,{"$f":"IF(TRIM(BR11)=\"\", \"\", IF(VLOOKUP(BR11,'Footnotes list'!$D$9:$E$58,2,FALSE)=0,\"\",VLOOKUP(BR11,'Footnotes list'!$D$9:$E$58,2,FALSE) ) )","v":""},null,null,null,null,{"$f":"IF(TRIM(BW11)=\"\", \"\", IF(VLOOKUP(BW11,'Footnotes list'!$D$9:$E$58,2,FALSE)=0,\"\",VLOOKUP(BW11,'Footnotes list'!$D$9:$E$58,2,FALSE) ) )","v":""},null,null,null,null,{"$f":"IF(TRIM(CB11)=\"\", \"\", IF(VLOOKUP(CB11,'Footnotes list'!$D$9:$E$58,2,FALSE)=0,\"\",VLOOKUP(CB11,'Footnotes list'!$D$9:$E$58,2,FALSE) ) )","v":""},null,null,null,null,{"$f":"IF(TRIM(CG11)=\"\", \"\", IF(VLOOKUP(CG11,'Footnotes list'!$D$9:$E$58,2,FALSE)=0,\"\",VLOOKUP(CG11,'Footnotes list'!$D$9:$E$58,2,FALSE) ) )","v":""},null,null,null,null,{"$f":"IF(TRIM(CL11)=\"\", \"\", IF(VLOOKUP(CL11,'Footnotes list'!$D$9:$E$58,2,FALSE)=0,\"\",VLOOKUP(CL11,'Footnotes list'!$D$9:$E$58,2,FALSE) ) )","v":""},null,null,null,null,{"$f":"IF(TRIM(CQ11)=\"\", \"\", IF(VLOOKUP(CQ11,'Footnotes list'!$D$9:$E$58,2,FALSE)=0,\"\",VLOOKUP(CQ11,'Footnotes list'!$D$9:$E$58,2,FALSE) ) )","v":""},null,null,null,null,{"$f":"IF(TRIM(CV11)=\"\", \"\", IF(VLOOKUP(CV11,'Footnotes list'!$D$9:$E$58,2,FALSE)=0,\"\",VLOOKUP(CV11,'Footnotes list'!$D$9:$E$58,2,FALSE) ) )","v":""},null,null,null,null,{"$f":"IF(TRIM(DA11)=\"\", \"\", IF(VLOOKUP(DA11,'Footnotes list'!$D$9:$E$58,2,FALSE)=0,\"\",VLOOKUP(DA11,'Footnotes list'!$D$9:$E$58,2,FALSE) ) )","v":""},null,null,null,null,{"$f":"IF(TRIM(DF11)=\"\", \"\", IF(VLOOKUP(DF11,'Footnotes list'!$D$9:$E$58,2,FALSE)=0,\"\",VLOOKUP(DF11,'Footnotes list'!$D$9:$E$58,2,FALSE) ) )","v":""},null,null,null,null,{"$f":"IF(TRIM(DK11)=\"\", \"\", IF(VLOOKUP(DK11,'Footnotes list'!$D$9:$E$58,2,FALSE)=0,\"\",VLOOKUP(DK11,'Footnotes list'!$D$9:$E$58,2,FALSE) ) )","v":""},null,null,null,null,{"$f":"IF(TRIM(DP11)=\"\", \"\", IF(VLOOKUP(DP11,'Footnotes list'!$D$9:$E$58,2,FALSE)=0,\"\",VLOOKUP(DP11,'Footnotes list'!$D$9:$E$58,2,FALSE) ) )","v":""},null,null,null,null,{"$f":"IF(TRIM(DU11)=\"\", \"\", IF(VLOOKUP(DU11,'Footnotes list'!$D$9:$E$58,2,FALSE)=0,\"\",VLOOKUP(DU11,'Footnotes list'!$D$9:$E$58,2,FALSE) ) )","v":""},null,null,null,null,{"$f":"IF(TRIM(DZ11)=\"\", \"\", IF(VLOOKUP(DZ11,'Footnotes list'!$D$9:$E$58,2,FALSE)=0,\"\",VLOOKUP(DZ11,'Footnotes list'!$D$9:$E$58,2,FALSE) ) )","v":""},null,null,null,null,{"$f":"IF(TRIM(EE11)=\"\", \"\", IF(VLOOKUP(EE11,'Footnotes list'!$D$9:$E$58,2,FALSE)=0,\"\",VLOOKUP(EE11,'Footnotes list'!$D$9:$E$58,2,FALSE) ) )","v":""},null,null,null,null,{"$f":"IF(TRIM(EJ11)=\"\", \"\", IF(VLOOKUP(EJ11,'Footnotes list'!$D$9:$E$58,2,FALSE)=0,\"\",VLOOKUP(EJ11,'Footnotes list'!$D$9:$E$58,2,FALSE) ) )","v":""},null,null,null,null,{"$f":"IF(TRIM(EO11)=\"\", \"\", IF(VLOOKUP(EO11,'Footnotes list'!$D$9:$E$58,2,FALSE)=0,\"\",VLOOKUP(EO11,'Footnotes list'!$D$9:$E$58,2,FALSE) ) )","v":""},null,null,null,null,{"$f":"IF(TRIM(ET11)=\"\", \"\", IF(VLOOKUP(ET11,'Footnotes list'!$D$9:$E$58,2,FALSE)=0,\"\",VLOOKUP(ET11,'Footnotes list'!$D$9:$E$58,2,FALSE) ) )","v":""},null,null,null,null,{"$f":"IF(TRIM(EY11)=\"\", \"\", IF(VLOOKUP(EY11,'Footnotes list'!$D$9:$E$58,2,FALSE)=0,\"\",VLOOKUP(EY11,'Footnotes list'!$D$9:$E$58,2,FALSE) ) )","v":""}]
[null,null,"TOTAL","MKT","market activities, including:",null,{"$f":"G19+G26+G33+G131+G138+G173+G201+G222+G264+G271+G313","v":0},null,null,null,{"$f":"IF(TRIM(J12)=\"\", \"\", IF(VLOOKUP(J12,'Footnotes list'!$D$9:$E$58,2,FALSE)=0,\"\",VLOOKUP(J12,'Footnotes list'!$D$9:$E$58,2,FALSE) ) )","v":""},null,null,null,null,{"$f":"IF(TRIM(O12)=\"\", \"\", IF(VLOOKUP(O12,'Footnotes list'!$D$9:$E$58,2,FALSE)=0,\"\",VLOOKUP(O12,'Footnotes list'!$D$9:$E$58,2,FALSE) ) )","v":""},{"$f":"Q19+Q26+Q33+Q131+Q138+Q173+Q201+Q222+Q264+Q271+Q313","v":0},null,null,null,{"$f":"IF(TRIM(T12)=\"\", \"\", IF(VLOOKUP(T12,'Footnotes list'!$D$9:$E$58,2,FALSE)=0,\"\",VLOOKUP(T12,'Footnotes list'!$D$9:$E$58,2,FALSE) ) )","v":""},{"$f":"V19+V26+V33+V131+V138+V173+V201+V222+V264+V271+V313","v":0},null,null,null,{"$f":"IF(TRIM(Y12)=\"\", \"\", IF(VLOOKUP(Y12,'Footnotes list'!$D$9:$E$58,2,FALSE)=0,\"\",VLOOKUP(Y12,'Footnotes list'!$D$9:$E$58,2,FALSE) ) )","v":""},{"$f":"AA19+AA26+AA33+AA131+AA138+AA173+AA201+AA222+AA264+AA271+AA313","v":0},null,null,null,{"$f":"IF(TRIM(AD12)=\"\", \"\", IF(VLOOKUP(AD12,'Footnotes list'!$D$9:$E$58,2,FALSE)=0,\"\",VLOOKUP(AD12,'Footnotes list'!$D$9:$E$58,2,FALSE) ) )","v":""},{"$f":"AF19+AF26+AF33+AF131+AF138+AF173+AF201+AF222+AF264+AF271+AF313","v":0},null,null,null,{"$f":"IF(TRIM(AI12)=\"\", \"\", IF(VLOOKUP(AI12,'Footnotes list'!$D$9:$E$58,2,FALSE)=0,\"\",VLOOKUP(AI12,'Footnotes list'!$D$9:$E$58,2,FALSE) ) )","v":""},{"$f":"AK19+AK26+AK33+AK131+AK138+AK173+AK201+AK222+AK264+AK271+AK313","v":0},null,null,null,{"$f":"IF(TRIM(AN12)=\"\", \"\", IF(VLOOKUP(AN12,'Footnotes list'!$D$9:$E$58,2,FALSE)=0,\"\",VLOOKUP(AN12,'Footnotes list'!$D$9:$E$58,2,FALSE) ) )","v":""},{"$f":"AP19+AP26+AP33+AP131+AP138+AP173+AP201+AP222+AP264+AP271+AP313","v":0},null,null,null,{"$f":"IF(TRIM(AS12)=\"\", \"\", IF(VLOOKUP(AS12,'Footnotes list'!$D$9:$E$58,2,FALSE)=0,\"\",VLOOKUP(AS12,'Footnotes list'!$D$9:$E$58,2,FALSE) ) )","v":""},null,null,null,null,{"$f":"IF(TRIM(AX12)=\"\", \"\", IF(VLOOKUP(AX12,'Footnotes list'!$D$9:$E$58,2,FALSE)=0,\"\",VLOOKUP(AX12,'Footnotes list'!$D$9:$E$58,2,FALSE) ) )","v":""},null,null,null,null,{"$f":"IF(TRIM(BC12)=\"\", \"\", IF(VLOOKUP(BC12,'Footnotes list'!$D$9:$E$58,2,FALSE)=0,\"\",VLOOKUP(BC12,'Footnotes list'!$D$9:$E$58,2,FALSE) ) )","v":""},null,null,null,null,{"$f":"IF(TRIM(BH12)=\"\", \"\", IF(VLOOKUP(BH12,'Footnotes list'!$D$9:$E$58,2,FALSE)=0,\"\",VLOOKUP(BH12,'Footnotes list'!$D$9:$E$58,2,FALSE) ) )","v":""},null,null,null,null,{"$f":"IF(TRIM(BM12)=\"\", \"\", IF(VLOOKUP(BM12,'Footnotes list'!$D$9:$E$58,2,FALSE)=0,\"\",VLOOKUP(BM12,'Footnotes list'!$D$9:$E$58,2,FALSE) ) )","v":""},{"$f":"G12+Q12+V12+AA12+AF12+AK12+AP12","v":0},null,null,null,{"$f":"IF(TRIM(BR12)=\"\", \"\", IF(VLOOKUP(BR12,'Footnotes list'!$D$9:$E$58,2,FALSE)=0,\"\",VLOOKUP(BR12,'Footnotes list'!$D$9:$E$58,2,FALSE) ) )","v":""},{"$f":"BT19+BT26+BT33+BT131+BT138+BT173+BT201+BT222+BT264+BT271+BT313","v":0},null,null,null,{"$f":"IF(TRIM(BW12)=\"\", \"\", IF(VLOOKUP(BW12,'Footnotes list'!$D$9:$E$58,2,FALSE)=0,\"\",VLOOKUP(BW12,'Footnotes list'!$D$9:$E$58,2,FALSE) ) )","v":""},{"$f":"BY19+BY26+BY33+BY131+BY138+BY173+BY201+BY222+BY264+BY271+BY313","v":0},null,null,null,{"$f":"IF(TRIM(CB12)=\"\", \"\", IF(VLOOKUP(CB12,'Footnotes list'!$D$9:$E$58,2,FALSE)=0,\"\",VLOOKUP(CB12,'Footnotes list'!$D$9:$E$58,2,FALSE) ) )","v":""},null,null,null,null,{"$f":"IF(TRIM(CG12)=\"\", \"\", IF(VLOOKUP(CG12,'Footnotes list'!$D$9:$E$58,2,FALSE)=0,\"\",VLOOKUP(CG12,'Footnotes list'!$D$9:$E$58,2,FALSE) ) )","v":""},null,null,null,null,{"$f":"IF(TRIM(CL12)=\"\", \"\", IF(VLOOKUP(CL12,'Footnotes list'!$D$9:$E$58,2,FALSE)=0,\"\",VLOOKUP(CL12,'Footnotes list'!$D$9:$E$58,2,FALSE) ) )","v":""},{"$f":"CN19+CN26+CN33+CN131+CN138+CN173+CN201+CN222+CN264+CN271+CN313","v":0},null,null,null,{"$f":"IF(TRIM(CQ12)=\"\", \"\", IF(VLOOKUP(CQ12,'Footnotes list'!$D$9:$E$58,2,FALSE)=0,\"\",VLOOKUP(CQ12,'Footnotes list'!$D$9:$E$58,2,FALSE) ) )","v":""},{"$f":"CS19+CS26+CS33+CS131+CS138+CS173+CS201+CS222+CS264+CS271+CS313","v":0},null,null,null,{"$f":"IF(TRIM(CV12)=\"\", \"\", IF(VLOOKUP(CV12,'Footnotes list'!$D$9:$E$58,2,FALSE)=0,\"\",VLOOKUP(CV12,'Footnotes list'!$D$9:$E$58,2,FALSE) ) )","v":""},{"$f":"CX19+CX26+CX33+CX131+CX138+CX173+CX201+CX222+CX264+CX271+CX313","v":0},null,null,null,{"$f":"IF(TRIM(DA12)=\"\", \"\", IF(VLOOKUP(DA12,'Footnotes list'!$D$9:$E$58,2,FALSE)=0,\"\",VLOOKUP(DA12,'Footnotes list'!$D$9:$E$58,2,FALSE) ) )","v":""},{"$f":"DC19+DC26+DC33+DC131+DC138+DC173+DC201+DC222+DC264+DC271+DC313","v":0},null,null,null,{"$f":"IF(TRIM(DF12)=\"\", \"\", IF(VLOOKUP(DF12,'Footnotes list'!$D$9:$E$58,2,FALSE)=0,\"\",VLOOKUP(DF12,'Footnotes list'!$D$9:$E$58,2,FALSE) ) )","v":""},{"$f":"DH19+DH26+DH33+DH131+DH138+DH173+DH201+DH222+DH264+DH271+DH313","v":0},null,null,null,{"$f":"IF(TRIM(DK12)=\"\", \"\", IF(VLOOKUP(DK12,'Footnotes list'!$D$9:$E$58,2,FALSE)=0,\"\",VLOOKUP(DK12,'Footnotes list'!$D$9:$E$58,2,FALSE) ) )","v":""},{"$f":"DM19+DM26+DM33+DM131+DM138+DM173+DM201+DM222+DM264+DM271+DM313","v":0},null,null,null,{"$f":"IF(TRIM(DP12)=\"\", \"\", IF(VLOOKUP(DP12,'Footnotes list'!$D$9:$E$58,2,FALSE)=0,\"\",VLOOKUP(DP12,'Footnotes list'!$D$9:$E$58,2,FALSE) ) )","v":""},null,null,null,null,{"$f":"IF(TRIM(DU12)=\"\", \"\", IF(VLOOKUP(DU12,'Footnotes list'!$D$9:$E$58,2,FALSE)=0,\"\",VLOOKUP(DU12,'Footnotes list'!$D$9:$E$58,2,FALSE) ) )","v":""},null,null,null,null,{"$f":"IF(TRIM(DZ12)=\"\", \"\", IF(VLOOKUP(DZ12,'Footnotes list'!$D$9:$E$58,2,FALSE)=0,\"\",VLOOKUP(DZ12,'Footnotes list'!$D$9:$E$58,2,FALSE) ) )","v":""},null,null,null,null,{"$f":"IF(TRIM(EE12)=\"\", \"\", IF(VLOOKUP(EE12,'Footnotes list'!$D$9:$E$58,2,FALSE)=0,\"\",VLOOKUP(EE12,'Footnotes list'!$D$9:$E$58,2,FALSE) ) )","v":""},null,null,null,null,{"$f":"IF(TRIM(EJ12)=\"\", \"\", IF(VLOOKUP(EJ12,'Footnotes list'!$D$9:$E$58,2,FALSE)=0,\"\",VLOOKUP(EJ12,'Footnotes list'!$D$9:$E$58,2,FALSE) ) )","v":""},{"$f":"DM12+DH12+CN12+BY12+BT12","v":0},null,null,null,{"$f":"IF(TRIM(EO12)=\"\", \"\", IF(VLOOKUP(EO12,'Footnotes list'!$D$9:$E$58,2,FALSE)=0,\"\",VLOOKUP(EO12,'Footnotes list'!$D$9:$E$58,2,FALSE) ) )","v":""},{"$f":"EL12+BO12","v":0},null,null,null,{"$f":"IF(TRIM(ET12)=\"\", \"\", IF(VLOOKUP(ET12,'Footnotes list'!$D$9:$E$58,2,FALSE)=0,\"\",VLOOKUP(ET12,'Footnotes list'!$D$9:$E$58,2,FALSE) ) )","v":""},null,null,null,null,{"$f":"IF(TRIM(EY12)=\"\", \"\", IF(VLOOKUP(EY12,'Footnotes list'!$D$9:$E$58,2,FALSE)=0,\"\",VLOOKUP(EY12,'Footnotes list'!$D$9:$E$58,2,FALSE) ) )","v":""}]
[null,null,"TOTAL","ES_CS","environmental specific services",null,null,null,null,null,{"$f":"IF(TRIM(J13)=\"\", \"\", IF(VLOOKUP(J13,'Footnotes list'!$D$9:$E$58,2,FALSE)=0,\"\",VLOOKUP(J13,'Footnotes list'!$D$9:$E$58,2,FALSE) ) )","v":""},null,null,null,null,{"$f":"IF(TRIM(O13)=\"\", \"\", IF(VLOOKUP(O13,'Footnotes list'!$D$9:$E$58,2,FALSE)=0,\"\",VLOOKUP(O13,'Footnotes list'!$D$9:$E$58,2,FALSE) ) )","v":""},null,null,null,null,{"$f":"IF(TRIM(T13)=\"\", \"\", IF(VLOOKUP(T13,'Footnotes list'!$D$9:$E$58,2,FALSE)=0,\"\",VLOOKUP(T13,'Footnotes list'!$D$9:$E$58,2,FALSE) ) )","v":""},null,null,null,null,{"$f":"IF(TRIM(Y13)=\"\", \"\", IF(VLOOKUP(Y13,'Footnotes list'!$D$9:$E$58,2,FALSE)=0,\"\",VLOOKUP(Y13,'Footnotes list'!$D$9:$E$58,2,FALSE) ) )","v":""},null,null,null,null,{"$f":"IF(TRIM(AD13)=\"\", \"\", IF(VLOOKUP(AD13,'Footnotes list'!$D$9:$E$58,2,FALSE)=0,\"\",VLOOKUP(AD13,'Footnotes list'!$D$9:$E$58,2,FALSE) ) )","v":""},null,null,null,null,{"$f":"IF(TRIM(AI13)=\"\", \"\", IF(VLOOKUP(AI13,'Footnotes list'!$D$9:$E$58,2,FALSE)=0,\"\",VLOOKUP(AI13,'Footnotes list'!$D$9:$E$58,2,FALSE) ) )","v":""},null,null,null,null,{"$f":"IF(TRIM(AN13)=\"\", \"\", IF(VLOOKUP(AN13,'Footnotes list'!$D$9:$E$58,2,FALSE)=0,\"\",VLOOKUP(AN13,'Footnotes list'!$D$9:$E$58,2,FALSE) ) )","v":""},null,null,null,null,{"$f":"IF(TRIM(AS13)=\"\", \"\", IF(VLOOKUP(AS13,'Footnotes list'!$D$9:$E$58,2,FALSE)=0,\"\",VLOOKUP(AS13,'Footnotes list'!$D$9:$E$58,2,FALSE) ) )","v":""},null,null,null,null,{"$f":"IF(TRIM(AX13)=\"\", \"\", IF(VLOOKUP(AX13,'Footnotes list'!$D$9:$E$58,2,FALSE)=0,\"\",VLOOKUP(AX13,'Footnotes list'!$D$9:$E$58,2,FALSE) ) )","v":""},null,null,null,null,{"$f":"IF(TRIM(BC13)=\"\", \"\", IF(VLOOKUP(BC13,'Footnotes list'!$D$9:$E$58,2,FALSE)=0,\"\",VLOOKUP(BC13,'Footnotes list'!$D$9:$E$58,2,FALSE) ) )","v":""},null,null,null,null,{"$f":"IF(TRIM(BH13)=\"\", \"\", IF(VLOOKUP(BH13,'Footnotes list'!$D$9:$E$58,2,FALSE)=0,\"\",VLOOKUP(BH13,'Footnotes list'!$D$9:$E$58,2,FALSE) ) )","v":""},null,null,null,null,{"$f":"IF(TRIM(BM13)=\"\", \"\", IF(VLOOKUP(BM13,'Footnotes list'!$D$9:$E$58,2,FALSE)=0,\"\",VLOOKUP(BM13,'Footnotes list'!$D$9:$E$58,2,FALSE) ) )","v":""},null,null,null,null,{"$f":"IF(TRIM(BR13)=\"\", \"\", IF(VLOOKUP(BR13,'Footnotes list'!$D$9:$E$58,2,FALSE)=0,\"\",VLOOKUP(BR13,'Footnotes list'!$D$9:$E$58,2,FALSE) ) )","v":""},null,null,null,null,{"$f":"IF(TRIM(BW13)=\"\", \"\", IF(VLOOKUP(BW13,'Footnotes list'!$D$9:$E$58,2,FALSE)=0,\"\",VLOOKUP(BW13,'Footnotes list'!$D$9:$E$58,2,FALSE) ) )","v":""},null,null,null,null,{"$f":"IF(TRIM(CB13)=\"\", \"\", IF(VLOOKUP(CB13,'Footnotes list'!$D$9:$E$58,2,FALSE)=0,\"\",VLOOKUP(CB13,'Footnotes list'!$D$9:$E$58,2,FALSE) ) )","v":""},null,null,null,null,{"$f":"IF(TRIM(CG13)=\"\", \"\", IF(VLOOKUP(CG13,'Footnotes list'!$D$9:$E$58,2,FALSE)=0,\"\",VLOOKUP(CG13,'Footnotes list'!$D$9:$E$58,2,FALSE) ) )","v":""},null,null,null,null,{"$f":"IF(TRIM(CL13)=\"\", \"\", IF(VLOOKUP(CL13,'Footnotes list'!$D$9:$E$58,2,FALSE)=0,\"\",VLOOKUP(CL13,'Footnotes list'!$D$9:$E$58,2,FALSE) ) )","v":""},null,null,null,null,{"$f":"IF(TRIM(CQ13)=\"\", \"\", IF(VLOOKUP(CQ13,'Footnotes list'!$D$9:$E$58,2,FALSE)=0,\"\",VLOOKUP(CQ13,'Footnotes list'!$D$9:$E$58,2,FALSE) ) )","v":""},null,null,null,null,{"$f":"IF(TRIM(CV13)=\"\", \"\", IF(VLOOKUP(CV13,'Footnotes list'!$D$9:$E$58,2,FALSE)=0,\"\",VLOOKUP(CV13,'Footnotes list'!$D$9:$E$58,2,FALSE) ) )","v":""},null,null,null,null,{"$f":"IF(TRIM(DA13)=\"\", \"\", IF(VLOOKUP(DA13,'Footnotes list'!$D$9:$E$58,2,FALSE)=0,\"\",VLOOKUP(DA13,'Footnotes list'!$D$9:$E$58,2,FALSE) ) )","v":""},null,null,null,null,{"$f":"IF(TRIM(DF13)=\"\", \"\", IF(VLOOKUP(DF13,'Footnotes list'!$D$9:$E$58,2,FALSE)=0,\"\",VLOOKUP(DF13,'Footnotes list'!$D$9:$E$58,2,FALSE) ) )","v":""},null,null,null,null,{"$f":"IF(TRIM(DK13)=\"\", \"\", IF(VLOOKUP(DK13,'Footnotes list'!$D$9:$E$58,2,FALSE)=0,\"\",VLOOKUP(DK13,'Footnotes list'!$D$9:$E$58,2,FALSE) ) )","v":""},null,null,null,null,{"$f":"IF(TRIM(DP13)=\"\", \"\", IF(VLOOKUP(DP13,'Footnotes list'!$D$9:$E$58,2,FALSE)=0,\"\",VLOOKUP(DP13,'Footnotes list'!$D$9:$E$58,2,FALSE) ) )","v":""},null,null,null,null,{"$f":"IF(TRIM(DU13)=\"\", \"\", IF(VLOOKUP(DU13,'Footnotes list'!$D$9:$E$58,2,FALSE)=0,\"\",VLOOKUP(DU13,'Footnotes list'!$D$9:$E$58,2,FALSE) ) )","v":""},null,null,null,null,{"$f":"IF(TRIM(DZ13)=\"\", \"\", IF(VLOOKUP(DZ13,'Footnotes list'!$D$9:$E$58,2,FALSE)=0,\"\",VLOOKUP(DZ13,'Footnotes list'!$D$9:$E$58,2,FALSE) ) )","v":""},null,null,null,null,{"$f":"IF(TRIM(EE13)=\"\", \"\", IF(VLOOKUP(EE13,'Footnotes list'!$D$9:$E$58,2,FALSE)=0,\"\",VLOOKUP(EE13,'Footnotes list'!$D$9:$E$58,2,FALSE) ) )","v":""},null,null,null,null,{"$f":"IF(TRIM(EJ13)=\"\", \"\", IF(VLOOKUP(EJ13,'Footnotes list'!$D$9:$E$58,2,FALSE)=0,\"\",VLOOKUP(EJ13,'Footnotes list'!$D$9:$E$58,2,FALSE) ) )","v":""},null,null,null,null,{"$f":"IF(TRIM(EO13)=\"\", \"\", IF(VLOOKUP(EO13,'Footnotes list'!$D$9:$E$58,2,FALSE)=0,\"\",VLOOKUP(EO13,'Footnotes list'!$D$9:$E$58,2,FALSE) ) )","v":""},null,null,null,null,{"$f":"IF(TRIM(ET13)=\"\", \"\", IF(VLOOKUP(ET13,'Footnotes list'!$D$9:$E$58,2,FALSE)=0,\"\",VLOOKUP(ET13,'Footnotes list'!$D$9:$E$58,2,FALSE) ) )","v":""},null,null,null,null,{"$f":"IF(TRIM(EY13)=\"\", \"\", IF(VLOOKUP(EY13,'Footnotes list'!$D$9:$E$58,2,FALSE)=0,\"\",VLOOKUP(EY13,'Footnotes list'!$D$9:$E$58,2,FALSE) ) )","v":""}]
[null,null,"TOTAL","C_REP","cleaner and resource efficient products",null,null,null,null,null,{"$f":"IF(TRIM(J14)=\"\", \"\", IF(VLOOKUP(J14,'Footnotes list'!$D$9:$E$58,2,FALSE)=0,\"\",VLOOKUP(J14,'Footnotes list'!$D$9:$E$58,2,FALSE) ) )","v":""},null,null,null,null,{"$f":"IF(TRIM(O14)=\"\", \"\", IF(VLOOKUP(O14,'Footnotes list'!$D$9:$E$58,2,FALSE)=0,\"\",VLOOKUP(O14,'Footnotes list'!$D$9:$E$58,2,FALSE) ) )","v":""},null,null,null,null,{"$f":"IF(TRIM(T14)=\"\", \"\", IF(VLOOKUP(T14,'Footnotes list'!$D$9:$E$58,2,FALSE)=0,\"\",VLOOKUP(T14,'Footnotes list'!$D$9:$E$58,2,FALSE) ) )","v":""},null,null,null,null,{"$f":"IF(TRIM(Y14)=\"\", \"\", IF(VLOOKUP(Y14,'Footnotes list'!$D$9:$E$58,2,FALSE)=0,\"\",VLOOKUP(Y14,'Footnotes list'!$D$9:$E$58,2,FALSE) ) )","v":""},null,null,null,null,{"$f":"IF(TRIM(AD14)=\"\", \"\", IF(VLOOKUP(AD14,'Footnotes list'!$D$9:$E$58,2,FALSE)=0,\"\",VLOOKUP(AD14,'Footnotes list'!$D$9:$E$58,2,FALSE) ) )","v":""},null,null,null,null,{"$f":"IF(TRIM(AI14)=\"\", \"\", IF(VLOOKUP(AI14,'Footnotes list'!$D$9:$E$58,2,FALSE)=0,\"\",VLOOKUP(AI14,'Footnotes list'!$D$9:$E$58,2,FALSE) ) )","v":""},null,null,null,null,{"$f":"IF(TRIM(AN14)=\"\", \"\", IF(VLOOKUP(AN14,'Footnotes list'!$D$9:$E$58,2,FALSE)=0,\"\",VLOOKUP(AN14,'Footnotes list'!$D$9:$E$58,2,FALSE) ) )","v":""},null,null,null,null,{"$f":"IF(TRIM(AS14)=\"\", \"\", IF(VLOOKUP(AS14,'Footnotes list'!$D$9:$E$58,2,FALSE)=0,\"\",VLOOKUP(AS14,'Footnotes list'!$D$9:$E$58,2,FALSE) ) )","v":""},null,null,null,null,{"$f":"IF(TRIM(AX14)=\"\", \"\", IF(VLOOKUP(AX14,'Footnotes list'!$D$9:$E$58,2,FALSE)=0,\"\",VLOOKUP(AX14,'Footnotes list'!$D$9:$E$58,2,FALSE) ) )","v":""},null,null,null,null,{"$f":"IF(TRIM(BC14)=\"\", \"\", IF(VLOOKUP(BC14,'Footnotes list'!$D$9:$E$58,2,FALSE)=0,\"\",VLOOKUP(BC14,'Footnotes list'!$D$9:$E$58,2,FALSE) ) )","v":""},null,null,null,null,{"$f":"IF(TRIM(BH14)=\"\", \"\", IF(VLOOKUP(BH14,'Footnotes list'!$D$9:$E$58,2,FALSE)=0,\"\",VLOOKUP(BH14,'Footnotes list'!$D$9:$E$58,2,FALSE) ) )","v":""},null,null,null,null,{"$f":"IF(TRIM(BM14)=\"\", \"\", IF(VLOOKUP(BM14,'Footnotes list'!$D$9:$E$58,2,FALSE)=0,\"\",VLOOKUP(BM14,'Footnotes list'!$D$9:$E$58,2,FALSE) ) )","v":""},null,null,null,null,{"$f":"IF(TRIM(BR14)=\"\", \"\", IF(VLOOKUP(BR14,'Footnotes list'!$D$9:$E$58,2,FALSE)=0,\"\",VLOOKUP(BR14,'Footnotes list'!$D$9:$E$58,2,FALSE) ) )","v":""},null,null,null,null,{"$f":"IF(TRIM(BW14)=\"\", \"\", IF(VLOOKUP(BW14,'Footnotes list'!$D$9:$E$58,2,FALSE)=0,\"\",VLOOKUP(BW14,'Footnotes list'!$D$9:$E$58,2,FALSE) ) )","v":""},null,null,null,null,{"$f":"IF(TRIM(CB14)=\"\", \"\", IF(VLOOKUP(CB14,'Footnotes list'!$D$9:$E$58,2,FALSE)=0,\"\",VLOOKUP(CB14,'Footnotes list'!$D$9:$E$58,2,FALSE) ) )","v":""},null,null,null,null,{"$f":"IF(TRIM(CG14)=\"\", \"\", IF(VLOOKUP(CG14,'Footnotes list'!$D$9:$E$58,2,FALSE)=0,\"\",VLOOKUP(CG14,'Footnotes list'!$D$9:$E$58,2,FALSE) ) )","v":""},null,null,null,null,{"$f":"IF(TRIM(CL14)=\"\", \"\", IF(VLOOKUP(CL14,'Footnotes list'!$D$9:$E$58,2,FALSE)=0,\"\",VLOOKUP(CL14,'Footnotes list'!$D$9:$E$58,2,FALSE) ) )","v":""},null,null,null,null,{"$f":"IF(TRIM(CQ14)=\"\", \"\", IF(VLOOKUP(CQ14,'Footnotes list'!$D$9:$E$58,2,FALSE)=0,\"\",VLOOKUP(CQ14,'Footnotes list'!$D$9:$E$58,2,FALSE) ) )","v":""},null,null,null,null,{"$f":"IF(TRIM(CV14)=\"\", \"\", IF(VLOOKUP(CV14,'Footnotes list'!$D$9:$E$58,2,FALSE)=0,\"\",VLOOKUP(CV14,'Footnotes list'!$D$9:$E$58,2,FALSE) ) )","v":""},null,null,null,null,{"$f":"IF(TRIM(DA14)=\"\", \"\", IF(VLOOKUP(DA14,'Footnotes list'!$D$9:$E$58,2,FALSE)=0,\"\",VLOOKUP(DA14,'Footnotes list'!$D$9:$E$58,2,FALSE) ) )","v":""},null,null,null,null,{"$f":"IF(TRIM(DF14)=\"\", \"\", IF(VLOOKUP(DF14,'Footnotes list'!$D$9:$E$58,2,FALSE)=0,\"\",VLOOKUP(DF14,'Footnotes list'!$D$9:$E$58,2,FALSE) ) )","v":""},null,null,null,null,{"$f":"IF(TRIM(DK14)=\"\", \"\", IF(VLOOKUP(DK14,'Footnotes list'!$D$9:$E$58,2,FALSE)=0,\"\",VLOOKUP(DK14,'Footnotes list'!$D$9:$E$58,2,FALSE) ) )","v":""},null,null,null,null,{"$f":"IF(TRIM(DP14)=\"\", \"\", IF(VLOOKUP(DP14,'Footnotes list'!$D$9:$E$58,2,FALSE)=0,\"\",VLOOKUP(DP14,'Footnotes list'!$D$9:$E$58,2,FALSE) ) )","v":""},null,null,null,null,{"$f":"IF(TRIM(DU14)=\"\", \"\", IF(VLOOKUP(DU14,'Footnotes list'!$D$9:$E$58,2,FALSE)=0,\"\",VLOOKUP(DU14,'Footnotes list'!$D$9:$E$58,2,FALSE) ) )","v":""},null,null,null,null,{"$f":"IF(TRIM(DZ14)=\"\", \"\", IF(VLOOKUP(DZ14,'Footnotes list'!$D$9:$E$58,2,FALSE)=0,\"\",VLOOKUP(DZ14,'Footnotes list'!$D$9:$E$58,2,FALSE) ) )","v":""},null,null,null,null,{"$f":"IF(TRIM(EE14)=\"\", \"\", IF(VLOOKUP(EE14,'Footnotes list'!$D$9:$E$58,2,FALSE)=0,\"\",VLOOKUP(EE14,'Footnotes list'!$D$9:$E$58,2,FALSE) ) )","v":""},null,null,null,null,{"$f":"IF(TRIM(EJ14)=\"\", \"\", IF(VLOOKUP(EJ14,'Footnotes list'!$D$9:$E$58,2,FALSE)=0,\"\",VLOOKUP(EJ14,'Footnotes list'!$D$9:$E$58,2,FALSE) ) )","v":""},null,null,null,null,{"$f":"IF(TRIM(EO14)=\"\", \"\", IF(VLOOKUP(EO14,'Footnotes list'!$D$9:$E$58,2,FALSE)=0,\"\",VLOOKUP(EO14,'Footnotes list'!$D$9:$E$58,2,FALSE) ) )","v":""},null,null,null,null,{"$f":"IF(TRIM(ET14)=\"\", \"\", IF(VLOOKUP(ET14,'Footnotes list'!$D$9:$E$58,2,FALSE)=0,\"\",VLOOKUP(ET14,'Footnotes list'!$D$9:$E$58,2,FALSE) ) )","v":""},null,null,null,null,{"$f":"IF(TRIM(EY14)=\"\", \"\", IF(VLOOKUP(EY14,'Footnotes list'!$D$9:$E$58,2,FALSE)=0,\"\",VLOOKUP(EY14,'Footnotes list'!$D$9:$E$58,2,FALSE) ) )","v":""}]
[null,null,"A","TOT_EGSS","Total A - Agriculture, forestry and fishing, of which:",null,null,null,null,null,{"$f":"IF(TRIM(J15)=\"\", \"\", IF(VLOOKUP(J15,'Footnotes list'!$D$9:$E$58,2,FALSE)=0,\"\",VLOOKUP(J15,'Footnotes list'!$D$9:$E$58,2,FALSE) ) )","v":""},null,null,null,null,{"$f":"IF(TRIM(O15)=\"\", \"\", IF(VLOOKUP(O15,'Footnotes list'!$D$9:$E$58,2,FALSE)=0,\"\",VLOOKUP(O15,'Footnotes list'!$D$9:$E$58,2,FALSE) ) )","v":""},null,null,null,null,{"$f":"IF(TRIM(T15)=\"\", \"\", IF(VLOOKUP(T15,'Footnotes list'!$D$9:$E$58,2,FALSE)=0,\"\",VLOOKUP(T15,'Footnotes list'!$D$9:$E$58,2,FALSE) ) )","v":""},null,null,null,null,{"$f":"IF(TRIM(Y15)=\"\", \"\", IF(VLOOKUP(Y15,'Footnotes list'!$D$9:$E$58,2,FALSE)=0,\"\",VLOOKUP(Y15,'Footnotes list'!$D$9:$E$58,2,FALSE) ) )","v":""},null,null,null,null,{"$f":"IF(TRIM(AD15)=\"\", \"\", IF(VLOOKUP(AD15,'Footnotes list'!$D$9:$E$58,2,FALSE)=0,\"\",VLOOKUP(AD15,'Footnotes list'!$D$9:$E$58,2,FALSE) ) )","v":""},null,null,null,null,{"$f":"IF(TRIM(AI15)=\"\", \"\", IF(VLOOKUP(AI15,'Footnotes list'!$D$9:$E$58,2,FALSE)=0,\"\",VLOOKUP(AI15,'Footnotes list'!$D$9:$E$58,2,FALSE) ) )","v":""},null,null,null,null,{"$f":"IF(TRIM(AN15)=\"\", \"\", IF(VLOOKUP(AN15,'Footnotes list'!$D$9:$E$58,2,FALSE)=0,\"\",VLOOKUP(AN15,'Footnotes list'!$D$9:$E$58,2,FALSE) ) )","v":""},null,null,null,null,{"$f":"IF(TRIM(AS15)=\"\", \"\", IF(VLOOKUP(AS15,'Footnotes list'!$D$9:$E$58,2,FALSE)=0,\"\",VLOOKUP(AS15,'Footnotes list'!$D$9:$E$58,2,FALSE) ) )","v":""},null,null,null,null,{"$f":"IF(TRIM(AX15)=\"\", \"\", IF(VLOOKUP(AX15,'Footnotes list'!$D$9:$E$58,2,FALSE)=0,\"\",VLOOKUP(AX15,'Footnotes list'!$D$9:$E$58,2,FALSE) ) )","v":""},null,null,null,null,{"$f":"IF(TRIM(BC15)=\"\", \"\", IF(VLOOKUP(BC15,'Footnotes list'!$D$9:$E$58,2,FALSE)=0,\"\",VLOOKUP(BC15,'Footnotes list'!$D$9:$E$58,2,FALSE) ) )","v":""},null,null,null,null,{"$f":"IF(TRIM(BH15)=\"\", \"\", IF(VLOOKUP(BH15,'Footnotes list'!$D$9:$E$58,2,FALSE)=0,\"\",VLOOKUP(BH15,'Footnotes list'!$D$9:$E$58,2,FALSE) ) )","v":""},null,null,null,null,{"$f":"IF(TRIM(BM15)=\"\", \"\", IF(VLOOKUP(BM15,'Footnotes list'!$D$9:$E$58,2,FALSE)=0,\"\",VLOOKUP(BM15,'Footnotes list'!$D$9:$E$58,2,FALSE) ) )","v":""},null,null,null,null,{"$f":"IF(TRIM(BR15)=\"\", \"\", IF(VLOOKUP(BR15,'Footnotes list'!$D$9:$E$58,2,FALSE)=0,\"\",VLOOKUP(BR15,'Footnotes list'!$D$9:$E$58,2,FALSE) ) )","v":""},null,null,null,null,{"$f":"IF(TRIM(BW15)=\"\", \"\", IF(VLOOKUP(BW15,'Footnotes list'!$D$9:$E$58,2,FALSE)=0,\"\",VLOOKUP(BW15,'Footnotes list'!$D$9:$E$58,2,FALSE) ) )","v":""},null,null,null,null,{"$f":"IF(TRIM(CB15)=\"\", \"\", IF(VLOOKUP(CB15,'Footnotes list'!$D$9:$E$58,2,FALSE)=0,\"\",VLOOKUP(CB15,'Footnotes list'!$D$9:$E$58,2,FALSE) ) )","v":""},null,null,null,null,{"$f":"IF(TRIM(CG15)=\"\", \"\", IF(VLOOKUP(CG15,'Footnotes list'!$D$9:$E$58,2,FALSE)=0,\"\",VLOOKUP(CG15,'Footnotes list'!$D$9:$E$58,2,FALSE) ) )","v":""},null,null,null,null,{"$f":"IF(TRIM(CL15)=\"\", \"\", IF(VLOOKUP(CL15,'Footnotes list'!$D$9:$E$58,2,FALSE)=0,\"\",VLOOKUP(CL15,'Footnotes list'!$D$9:$E$58,2,FALSE) ) )","v":""},null,null,null,null,{"$f":"IF(TRIM(CQ15)=\"\", \"\", IF(VLOOKUP(CQ15,'Footnotes list'!$D$9:$E$58,2,FALSE)=0,\"\",VLOOKUP(CQ15,'Footnotes list'!$D$9:$E$58,2,FALSE) ) )","v":""},null,null,null,null,{"$f":"IF(TRIM(CV15)=\"\", \"\", IF(VLOOKUP(CV15,'Footnotes list'!$D$9:$E$58,2,FALSE)=0,\"\",VLOOKUP(CV15,'Footnotes list'!$D$9:$E$58,2,FALSE) ) )","v":""},null,null,null,null,{"$f":"IF(TRIM(DA15)=\"\", \"\", IF(VLOOKUP(DA15,'Footnotes list'!$D$9:$E$58,2,FALSE)=0,\"\",VLOOKUP(DA15,'Footnotes list'!$D$9:$E$58,2,FALSE) ) )","v":""},null,null,null,null,{"$f":"IF(TRIM(DF15)=\"\", \"\", IF(VLOOKUP(DF15,'Footnotes list'!$D$9:$E$58,2,FALSE)=0,\"\",VLOOKUP(DF15,'Footnotes list'!$D$9:$E$58,2,FALSE) ) )","v":""},null,null,null,null,{"$f":"IF(TRIM(DK15)=\"\", \"\", IF(VLOOKUP(DK15,'Footnotes list'!$D$9:$E$58,2,FALSE)=0,\"\",VLOOKUP(DK15,'Footnotes list'!$D$9:$E$58,2,FALSE) ) )","v":""},null,null,null,null,{"$f":"IF(TRIM(DP15)=\"\", \"\", IF(VLOOKUP(DP15,'Footnotes list'!$D$9:$E$58,2,FALSE)=0,\"\",VLOOKUP(DP15,'Footnotes list'!$D$9:$E$58,2,FALSE) ) )","v":""},null,null,null,null,{"$f":"IF(TRIM(DU15)=\"\", \"\", IF(VLOOKUP(DU15,'Footnotes list'!$D$9:$E$58,2,FALSE)=0,\"\",VLOOKUP(DU15,'Footnotes list'!$D$9:$E$58,2,FALSE) ) )","v":""},null,null,null,null,{"$f":"IF(TRIM(DZ15)=\"\", \"\", IF(VLOOKUP(DZ15,'Footnotes list'!$D$9:$E$58,2,FALSE)=0,\"\",VLOOKUP(DZ15,'Footnotes list'!$D$9:$E$58,2,FALSE) ) )","v":""},null,null,null,null,{"$f":"IF(TRIM(EE15)=\"\", \"\", IF(VLOOKUP(EE15,'Footnotes list'!$D$9:$E$58,2,FALSE)=0,\"\",VLOOKUP(EE15,'Footnotes list'!$D$9:$E$58,2,FALSE) ) )","v":""},null,null,null,null,{"$f":"IF(TRIM(EJ15)=\"\", \"\", IF(VLOOKUP(EJ15,'Footnotes list'!$D$9:$E$58,2,FALSE)=0,\"\",VLOOKUP(EJ15,'Footnotes list'!$D$9:$E$58,2,FALSE) ) )","v":""},null,null,null,null,{"$f":"IF(TRIM(EO15)=\"\", \"\", IF(VLOOKUP(EO15,'Footnotes list'!$D$9:$E$58,2,FALSE)=0,\"\",VLOOKUP(EO15,'Footnotes list'!$D$9:$E$58,2,FALSE) ) )","v":""},null,null,null,null,{"$f":"IF(TRIM(ET15)=\"\", \"\", IF(VLOOKUP(ET15,'Footnotes list'!$D$9:$E$58,2,FALSE)=0,\"\",VLOOKUP(ET15,'Footnotes list'!$D$9:$E$58,2,FALSE) ) )","v":""},null,null,null,null,{"$f":"IF(TRIM(EY15)=\"\", \"\", IF(VLOOKUP(EY15,'Footnotes list'!$D$9:$E$58,2,FALSE)=0,\"\",VLOOKUP(EY15,'Footnotes list'!$D$9:$E$58,2,FALSE) ) )","v":""}]
[null,null,"A","ANC","ancillary activities",null,null,null,null,null,{"$f":"IF(TRIM(J16)=\"\", \"\", IF(VLOOKUP(J16,'Footnotes list'!$D$9:$E$58,2,FALSE)=0,\"\",VLOOKUP(J16,'Footnotes list'!$D$9:$E$58,2,FALSE) ) )","v":""},null,null,null,null,{"$f":"IF(TRIM(O16)=\"\", \"\", IF(VLOOKUP(O16,'Footnotes list'!$D$9:$E$58,2,FALSE)=0,\"\",VLOOKUP(O16,'Footnotes list'!$D$9:$E$58,2,FALSE) ) )","v":""},null,null,null,null,{"$f":"IF(TRIM(T16)=\"\", \"\", IF(VLOOKUP(T16,'Footnotes list'!$D$9:$E$58,2,FALSE)=0,\"\",VLOOKUP(T16,'Footnotes list'!$D$9:$E$58,2,FALSE) ) )","v":""},null,null,null,null,{"$f":"IF(TRIM(Y16)=\"\", \"\", IF(VLOOKUP(Y16,'Footnotes list'!$D$9:$E$58,2,FALSE)=0,\"\",VLOOKUP(Y16,'Footnotes list'!$D$9:$E$58,2,FALSE) ) )","v":""},null,null,null,null,{"$f":"IF(TRIM(AD16)=\"\", \"\", IF(VLOOKUP(AD16,'Footnotes list'!$D$9:$E$58,2,FALSE)=0,\"\",VLOOKUP(AD16,'Footnotes list'!$D$9:$E$58,2,FALSE) ) )","v":""},null,null,null,null,{"$f":"IF(TRIM(AI16)=\"\", \"\", IF(VLOOKUP(AI16,'Footnotes list'!$D$9:$E$58,2,FALSE)=0,\"\",VLOOKUP(AI16,'Footnotes list'!$D$9:$E$58,2,FALSE) ) )","v":""},null,null,null,null,{"$f":"IF(TRIM(AN16)=\"\", \"\", IF(VLOOKUP(AN16,'Footnotes list'!$D$9:$E$58,2,FALSE)=0,\"\",VLOOKUP(AN16,'Footnotes list'!$D$9:$E$58,2,FALSE) ) )","v":""},null,null,null,null,{"$f":"IF(TRIM(AS16)=\"\", \"\", IF(VLOOKUP(AS16,'Footnotes list'!$D$9:$E$58,2,FALSE)=0,\"\",VLOOKUP(AS16,'Footnotes list'!$D$9:$E$58,2,FALSE) ) )","v":""},null,null,null,null,{"$f":"IF(TRIM(AX16)=\"\", \"\", IF(VLOOKUP(AX16,'Footnotes list'!$D$9:$E$58,2,FALSE)=0,\"\",VLOOKUP(AX16,'Footnotes list'!$D$9:$E$58,2,FALSE) ) )","v":""},null,null,null,null,{"$f":"IF(TRIM(BC16)=\"\", \"\", IF(VLOOKUP(BC16,'Footnotes list'!$D$9:$E$58,2,FALSE)=0,\"\",VLOOKUP(BC16,'Footnotes list'!$D$9:$E$58,2,FALSE) ) )","v":""},null,null,null,null,{"$f":"IF(TRIM(BH16)=\"\", \"\", IF(VLOOKUP(BH16,'Footnotes list'!$D$9:$E$58,2,FALSE)=0,\"\",VLOOKUP(BH16,'Footnotes list'!$D$9:$E$58,2,FALSE) ) )","v":""},null,null,null,null,{"$f":"IF(TRIM(BM16)=\"\", \"\", IF(VLOOKUP(BM16,'Footnotes list'!$D$9:$E$58,2,FALSE)=0,\"\",VLOOKUP(BM16,'Footnotes list'!$D$9:$E$58,2,FALSE) ) )","v":""},null,null,null,null,{"$f":"IF(TRIM(BR16)=\"\", \"\", IF(VLOOKUP(BR16,'Footnotes list'!$D$9:$E$58,2,FALSE)=0,\"\",VLOOKUP(BR16,'Footnotes list'!$D$9:$E$58,2,FALSE) ) )","v":""},null,null,null,null,{"$f":"IF(TRIM(BW16)=\"\", \"\", IF(VLOOKUP(BW16,'Footnotes list'!$D$9:$E$58,2,FALSE)=0,\"\",VLOOKUP(BW16,'Footnotes list'!$D$9:$E$58,2,FALSE) ) )","v":""},null,null,null,null,{"$f":"IF(TRIM(CB16)=\"\", \"\", IF(VLOOKUP(CB16,'Footnotes list'!$D$9:$E$58,2,FALSE)=0,\"\",VLOOKUP(CB16,'Footnotes list'!$D$9:$E$58,2,FALSE) ) )","v":""},null,null,null,null,{"$f":"IF(TRIM(CG16)=\"\", \"\", IF(VLOOKUP(CG16,'Footnotes list'!$D$9:$E$58,2,FALSE)=0,\"\",VLOOKUP(CG16,'Footnotes list'!$D$9:$E$58,2,FALSE) ) )","v":""},null,null,null,null,{"$f":"IF(TRIM(CL16)=\"\", \"\", IF(VLOOKUP(CL16,'Footnotes list'!$D$9:$E$58,2,FALSE)=0,\"\",VLOOKUP(CL16,'Footnotes list'!$D$9:$E$58,2,FALSE) ) )","v":""},null,null,null,null,{"$f":"IF(TRIM(CQ16)=\"\", \"\", IF(VLOOKUP(CQ16,'Footnotes list'!$D$9:$E$58,2,FALSE)=0,\"\",VLOOKUP(CQ16,'Footnotes list'!$D$9:$E$58,2,FALSE) ) )","v":""},null,null,null,null,{"$f":"IF(TRIM(CV16)=\"\", \"\", IF(VLOOKUP(CV16,'Footnotes list'!$D$9:$E$58,2,FALSE)=0,\"\",VLOOKUP(CV16,'Footnotes list'!$D$9:$E$58,2,FALSE) ) )","v":""},null,null,null,null,{"$f":"IF(TRIM(DA16)=\"\", \"\", IF(VLOOKUP(DA16,'Footnotes list'!$D$9:$E$58,2,FALSE)=0,\"\",VLOOKUP(DA16,'Footnotes list'!$D$9:$E$58,2,FALSE) ) )","v":""},null,null,null,null,{"$f":"IF(TRIM(DF16)=\"\", \"\", IF(VLOOKUP(DF16,'Footnotes list'!$D$9:$E$58,2,FALSE)=0,\"\",VLOOKUP(DF16,'Footnotes list'!$D$9:$E$58,2,FALSE) ) )","v":""},null,null,null,null,{"$f":"IF(TRIM(DK16)=\"\", \"\", IF(VLOOKUP(DK16,'Footnotes list'!$D$9:$E$58,2,FALSE)=0,\"\",VLOOKUP(DK16,'Footnotes list'!$D$9:$E$58,2,FALSE) ) )","v":""},null,null,null,null,{"$f":"IF(TRIM(DP16)=\"\", \"\", IF(VLOOKUP(DP16,'Footnotes list'!$D$9:$E$58,2,FALSE)=0,\"\",VLOOKUP(DP16,'Footnotes list'!$D$9:$E$58,2,FALSE) ) )","v":""},null,null,null,null,{"$f":"IF(TRIM(DU16)=\"\", \"\", IF(VLOOKUP(DU16,'Footnotes list'!$D$9:$E$58,2,FALSE)=0,\"\",VLOOKUP(DU16,'Footnotes list'!$D$9:$E$58,2,FALSE) ) )","v":""},null,null,null,null,{"$f":"IF(TRIM(DZ16)=\"\", \"\", IF(VLOOKUP(DZ16,'Footnotes list'!$D$9:$E$58,2,FALSE)=0,\"\",VLOOKUP(DZ16,'Footnotes list'!$D$9:$E$58,2,FALSE) ) )","v":""},null,null,null,null,{"$f":"IF(TRIM(EE16)=\"\", \"\", IF(VLOOKUP(EE16,'Footnotes list'!$D$9:$E$58,2,FALSE)=0,\"\",VLOOKUP(EE16,'Footnotes list'!$D$9:$E$58,2,FALSE) ) )","v":""},null,null,null,null,{"$f":"IF(TRIM(EJ16)=\"\", \"\", IF(VLOOKUP(EJ16,'Footnotes list'!$D$9:$E$58,2,FALSE)=0,\"\",VLOOKUP(EJ16,'Footnotes list'!$D$9:$E$58,2,FALSE) ) )","v":""},null,null,null,null,{"$f":"IF(TRIM(EO16)=\"\", \"\", IF(VLOOKUP(EO16,'Footnotes list'!$D$9:$E$58,2,FALSE)=0,\"\",VLOOKUP(EO16,'Footnotes list'!$D$9:$E$58,2,FALSE) ) )","v":""},null,null,null,null,{"$f":"IF(TRIM(ET16)=\"\", \"\", IF(VLOOKUP(ET16,'Footnotes list'!$D$9:$E$58,2,FALSE)=0,\"\",VLOOKUP(ET16,'Footnotes list'!$D$9:$E$58,2,FALSE) ) )","v":""},null,null,null,null,{"$f":"IF(TRIM(EY16)=\"\", \"\", IF(VLOOKUP(EY16,'Footnotes list'!$D$9:$E$58,2,FALSE)=0,\"\",VLOOKUP(EY16,'Footnotes list'!$D$9:$E$58,2,FALSE) ) )","v":""}]
[null,null,"A","NMKT","non-market activities",null,null,null,null,null,{"$f":"IF(TRIM(J17)=\"\", \"\", IF(VLOOKUP(J17,'Footnotes list'!$D$9:$E$58,2,FALSE)=0,\"\",VLOOKUP(J17,'Footnotes list'!$D$9:$E$58,2,FALSE) ) )","v":""},null,null,null,null,{"$f":"IF(TRIM(O17)=\"\", \"\", IF(VLOOKUP(O17,'Footnotes list'!$D$9:$E$58,2,FALSE)=0,\"\",VLOOKUP(O17,'Footnotes list'!$D$9:$E$58,2,FALSE) ) )","v":""},null,null,null,null,{"$f":"IF(TRIM(T17)=\"\", \"\", IF(VLOOKUP(T17,'Footnotes list'!$D$9:$E$58,2,FALSE)=0,\"\",VLOOKUP(T17,'Footnotes list'!$D$9:$E$58,2,FALSE) ) )","v":""},null,null,null,null,{"$f":"IF(TRIM(Y17)=\"\", \"\", IF(VLOOKUP(Y17,'Footnotes list'!$D$9:$E$58,2,FALSE)=0,\"\",VLOOKUP(Y17,'Footnotes list'!$D$9:$E$58,2,FALSE) ) )","v":""},null,null,null,null,{"$f":"IF(TRIM(AD17)=\"\", \"\", IF(VLOOKUP(AD17,'Footnotes list'!$D$9:$E$58,2,FALSE)=0,\"\",VLOOKUP(AD17,'Footnotes list'!$D$9:$E$58,2,FALSE) ) )","v":""},null,null,null,null,{"$f":"IF(TRIM(AI17)=\"\", \"\", IF(VLOOKUP(AI17,'Footnotes list'!$D$9:$E$58,2,FALSE)=0,\"\",VLOOKUP(AI17,'Footnotes list'!$D$9:$E$58,2,FALSE) ) )","v":""},null,null,null,null,{"$f":"IF(TRIM(AN17)=\"\", \"\", IF(VLOOKUP(AN17,'Footnotes list'!$D$9:$E$58,2,FALSE)=0,\"\",VLOOKUP(AN17,'Footnotes list'!$D$9:$E$58,2,FALSE) ) )","v":""},null,null,null,null,{"$f":"IF(TRIM(AS17)=\"\", \"\", IF(VLOOKUP(AS17,'Footnotes list'!$D$9:$E$58,2,FALSE)=0,\"\",VLOOKUP(AS17,'Footnotes list'!$D$9:$E$58,2,FALSE) ) )","v":""},null,null,null,null,{"$f":"IF(TRIM(AX17)=\"\", \"\", IF(VLOOKUP(AX17,'Footnotes list'!$D$9:$E$58,2,FALSE)=0,\"\",VLOOKUP(AX17,'Footnotes list'!$D$9:$E$58,2,FALSE) ) )","v":""},null,null,null,null,{"$f":"IF(TRIM(BC17)=\"\", \"\", IF(VLOOKUP(BC17,'Footnotes list'!$D$9:$E$58,2,FALSE)=0,\"\",VLOOKUP(BC17,'Footnotes list'!$D$9:$E$58,2,FALSE) ) )","v":""},null,null,null,null,{"$f":"IF(TRIM(BH17)=\"\", \"\", IF(VLOOKUP(BH17,'Footnotes list'!$D$9:$E$58,2,FALSE)=0,\"\",VLOOKUP(BH17,'Footnotes list'!$D$9:$E$58,2,FALSE) ) )","v":""},null,null,null,null,{"$f":"IF(TRIM(BM17)=\"\", \"\", IF(VLOOKUP(BM17,'Footnotes list'!$D$9:$E$58,2,FALSE)=0,\"\",VLOOKUP(BM17,'Footnotes list'!$D$9:$E$58,2,FALSE) ) )","v":""},null,null,null,null,{"$f":"IF(TRIM(BR17)=\"\", \"\", IF(VLOOKUP(BR17,'Footnotes list'!$D$9:$E$58,2,FALSE)=0,\"\",VLOOKUP(BR17,'Footnotes list'!$D$9:$E$58,2,FALSE) ) )","v":""},null,null,null,null,{"$f":"IF(TRIM(BW17)=\"\", \"\", IF(VLOOKUP(BW17,'Footnotes list'!$D$9:$E$58,2,FALSE)=0,\"\",VLOOKUP(BW17,'Footnotes list'!$D$9:$E$58,2,FALSE) ) )","v":""},null,null,null,null,{"$f":"IF(TRIM(CB17)=\"\", \"\", IF(VLOOKUP(CB17,'Footnotes list'!$D$9:$E$58,2,FALSE)=0,\"\",VLOOKUP(CB17,'Footnotes list'!$D$9:$E$58,2,FALSE) ) )","v":""},null,null,null,null,{"$f":"IF(TRIM(CG17)=\"\", \"\", IF(VLOOKUP(CG17,'Footnotes list'!$D$9:$E$58,2,FALSE)=0,\"\",VLOOKUP(CG17,'Footnotes list'!$D$9:$E$58,2,FALSE) ) )","v":""},null,null,null,null,{"$f":"IF(TRIM(CL17)=\"\", \"\", IF(VLOOKUP(CL17,'Footnotes list'!$D$9:$E$58,2,FALSE)=0,\"\",VLOOKUP(CL17,'Footnotes list'!$D$9:$E$58,2,FALSE) ) )","v":""},null,null,null,null,{"$f":"IF(TRIM(CQ17)=\"\", \"\", IF(VLOOKUP(CQ17,'Footnotes list'!$D$9:$E$58,2,FALSE)=0,\"\",VLOOKUP(CQ17,'Footnotes list'!$D$9:$E$58,2,FALSE) ) )","v":""},null,null,null,null,{"$f":"IF(TRIM(CV17)=\"\", \"\", IF(VLOOKUP(CV17,'Footnotes list'!$D$9:$E$58,2,FALSE)=0,\"\",VLOOKUP(CV17,'Footnotes list'!$D$9:$E$58,2,FALSE) ) )","v":""},null,null,null,null,{"$f":"IF(TRIM(DA17)=\"\", \"\", IF(VLOOKUP(DA17,'Footnotes list'!$D$9:$E$58,2,FALSE)=0,\"\",VLOOKUP(DA17,'Footnotes list'!$D$9:$E$58,2,FALSE) ) )","v":""},null,null,null,null,{"$f":"IF(TRIM(DF17)=\"\", \"\", IF(VLOOKUP(DF17,'Footnotes list'!$D$9:$E$58,2,FALSE)=0,\"\",VLOOKUP(DF17,'Footnotes list'!$D$9:$E$58,2,FALSE) ) )","v":""},null,null,null,null,{"$f":"IF(TRIM(DK17)=\"\", \"\", IF(VLOOKUP(DK17,'Footnotes list'!$D$9:$E$58,2,FALSE)=0,\"\",VLOOKUP(DK17,'Footnotes list'!$D$9:$E$58,2,FALSE) ) )","v":""},null,null,null,null,{"$f":"IF(TRIM(DP17)=\"\", \"\", IF(VLOOKUP(DP17,'Footnotes list'!$D$9:$E$58,2,FALSE)=0,\"\",VLOOKUP(DP17,'Footnotes list'!$D$9:$E$58,2,FALSE) ) )","v":""},null,null,null,null,{"$f":"IF(TRIM(DU17)=\"\", \"\", IF(VLOOKUP(DU17,'Footnotes list'!$D$9:$E$58,2,FALSE)=0,\"\",VLOOKUP(DU17,'Footnotes list'!$D$9:$E$58,2,FALSE) ) )","v":""},null,null,null,null,{"$f":"IF(TRIM(DZ17)=\"\", \"\", IF(VLOOKUP(DZ17,'Footnotes list'!$D$9:$E$58,2,FALSE)=0,\"\",VLOOKUP(DZ17,'Footnotes list'!$D$9:$E$58,2,FALSE) ) )","v":""},null,null,null,null,{"$f":"IF(TRIM(EE17)=\"\", \"\", IF(VLOOKUP(EE17,'Footnotes list'!$D$9:$E$58,2,FALSE)=0,\"\",VLOOKUP(EE17,'Footnotes list'!$D$9:$E$58,2,FALSE) ) )","v":""},null,null,null,null,{"$f":"IF(TRIM(EJ17)=\"\", \"\", IF(VLOOKUP(EJ17,'Footnotes list'!$D$9:$E$58,2,FALSE)=0,\"\",VLOOKUP(EJ17,'Footnotes list'!$D$9:$E$58,2,FALSE) ) )","v":""},null,null,null,null,{"$f":"IF(TRIM(EO17)=\"\", \"\", IF(VLOOKUP(EO17,'Footnotes list'!$D$9:$E$58,2,FALSE)=0,\"\",VLOOKUP(EO17,'Footnotes list'!$D$9:$E$58,2,FALSE) ) )","v":""},null,null,null,null,{"$f":"IF(TRIM(ET17)=\"\", \"\", IF(VLOOKUP(ET17,'Footnotes list'!$D$9:$E$58,2,FALSE)=0,\"\",VLOOKUP(ET17,'Footnotes list'!$D$9:$E$58,2,FALSE) ) )","v":""},null,null,null,null,{"$f":"IF(TRIM(EY17)=\"\", \"\", IF(VLOOKUP(EY17,'Footnotes list'!$D$9:$E$58,2,FALSE)=0,\"\",VLOOKUP(EY17,'Footnotes list'!$D$9:$E$58,2,FALSE) ) )","v":""}]
[null,null,"A","OWN_USE","activities for own final use",null,null,null,null,null,{"$f":"IF(TRIM(J18)=\"\", \"\", IF(VLOOKUP(J18,'Footnotes list'!$D$9:$E$58,2,FALSE)=0,\"\",VLOOKUP(J18,'Footnotes list'!$D$9:$E$58,2,FALSE) ) )","v":""},null,null,null,null,{"$f":"IF(TRIM(O18)=\"\", \"\", IF(VLOOKUP(O18,'Footnotes list'!$D$9:$E$58,2,FALSE)=0,\"\",VLOOKUP(O18,'Footnotes list'!$D$9:$E$58,2,FALSE) ) )","v":""},null,null,null,null,{"$f":"IF(TRIM(T18)=\"\", \"\", IF(VLOOKUP(T18,'Footnotes list'!$D$9:$E$58,2,FALSE)=0,\"\",VLOOKUP(T18,'Footnotes list'!$D$9:$E$58,2,FALSE) ) )","v":""},null,null,null,null,{"$f":"IF(TRIM(Y18)=\"\", \"\", IF(VLOOKUP(Y18,'Footnotes list'!$D$9:$E$58,2,FALSE)=0,\"\",VLOOKUP(Y18,'Footnotes list'!$D$9:$E$58,2,FALSE) ) )","v":""},null,null,null,null,{"$f":"IF(TRIM(AD18)=\"\", \"\", IF(VLOOKUP(AD18,'Footnotes list'!$D$9:$E$58,2,FALSE)=0,\"\",VLOOKUP(AD18,'Footnotes list'!$D$9:$E$58,2,FALSE) ) )","v":""},null,null,null,null,{"$f":"IF(TRIM(AI18)=\"\", \"\", IF(VLOOKUP(AI18,'Footnotes list'!$D$9:$E$58,2,FALSE)=0,\"\",VLOOKUP(AI18,'Footnotes list'!$D$9:$E$58,2,FALSE) ) )","v":""},null,null,null,null,{"$f":"IF(TRIM(AN18)=\"\", \"\", IF(VLOOKUP(AN18,'Footnotes list'!$D$9:$E$58,2,FALSE)=0,\"\",VLOOKUP(AN18,'Footnotes list'!$D$9:$E$58,2,FALSE) ) )","v":""},null,null,null,null,{"$f":"IF(TRIM(AS18)=\"\", \"\", IF(VLOOKUP(AS18,'Footnotes list'!$D$9:$E$58,2,FALSE)=0,\"\",VLOOKUP(AS18,'Footnotes list'!$D$9:$E$58,2,FALSE) ) )","v":""},null,null,null,null,{"$f":"IF(TRIM(AX18)=\"\", \"\", IF(VLOOKUP(AX18,'Footnotes list'!$D$9:$E$58,2,FALSE)=0,\"\",VLOOKUP(AX18,'Footnotes list'!$D$9:$E$58,2,FALSE) ) )","v":""},null,null,null,null,{"$f":"IF(TRIM(BC18)=\"\", \"\", IF(VLOOKUP(BC18,'Footnotes list'!$D$9:$E$58,2,FALSE)=0,\"\",VLOOKUP(BC18,'Footnotes list'!$D$9:$E$58,2,FALSE) ) )","v":""},null,null,null,null,{"$f":"IF(TRIM(BH18)=\"\", \"\", IF(VLOOKUP(BH18,'Footnotes list'!$D$9:$E$58,2,FALSE)=0,\"\",VLOOKUP(BH18,'Footnotes list'!$D$9:$E$58,2,FALSE) ) )","v":""},null,null,null,null,{"$f":"IF(TRIM(BM18)=\"\", \"\", IF(VLOOKUP(BM18,'Footnotes list'!$D$9:$E$58,2,FALSE)=0,\"\",VLOOKUP(BM18,'Footnotes list'!$D$9:$E$58,2,FALSE) ) )","v":""},null,null,null,null,{"$f":"IF(TRIM(BR18)=\"\", \"\", IF(VLOOKUP(BR18,'Footnotes list'!$D$9:$E$58,2,FALSE)=0,\"\",VLOOKUP(BR18,'Footnotes list'!$D$9:$E$58,2,FALSE) ) )","v":""},null,null,null,null,{"$f":"IF(TRIM(BW18)=\"\", \"\", IF(VLOOKUP(BW18,'Footnotes list'!$D$9:$E$58,2,FALSE)=0,\"\",VLOOKUP(BW18,'Footnotes list'!$D$9:$E$58,2,FALSE) ) )","v":""},null,null,null,null,{"$f":"IF(TRIM(CB18)=\"\", \"\", IF(VLOOKUP(CB18,'Footnotes list'!$D$9:$E$58,2,FALSE)=0,\"\",VLOOKUP(CB18,'Footnotes list'!$D$9:$E$58,2,FALSE) ) )","v":""},null,null,null,null,{"$f":"IF(TRIM(CG18)=\"\", \"\", IF(VLOOKUP(CG18,'Footnotes list'!$D$9:$E$58,2,FALSE)=0,\"\",VLOOKUP(CG18,'Footnotes list'!$D$9:$E$58,2,FALSE) ) )","v":""},null,null,null,null,{"$f":"IF(TRIM(CL18)=\"\", \"\", IF(VLOOKUP(CL18,'Footnotes list'!$D$9:$E$58,2,FALSE)=0,\"\",VLOOKUP(CL18,'Footnotes list'!$D$9:$E$58,2,FALSE) ) )","v":""},null,null,null,null,{"$f":"IF(TRIM(CQ18)=\"\", \"\", IF(VLOOKUP(CQ18,'Footnotes list'!$D$9:$E$58,2,FALSE)=0,\"\",VLOOKUP(CQ18,'Footnotes list'!$D$9:$E$58,2,FALSE) ) )","v":""},null,null,null,null,{"$f":"IF(TRIM(CV18)=\"\", \"\", IF(VLOOKUP(CV18,'Footnotes list'!$D$9:$E$58,2,FALSE)=0,\"\",VLOOKUP(CV18,'Footnotes list'!$D$9:$E$58,2,FALSE) ) )","v":""},null,null,null,null,{"$f":"IF(TRIM(DA18)=\"\", \"\", IF(VLOOKUP(DA18,'Footnotes list'!$D$9:$E$58,2,FALSE)=0,\"\",VLOOKUP(DA18,'Footnotes list'!$D$9:$E$58,2,FALSE) ) )","v":""},null,null,null,null,{"$f":"IF(TRIM(DF18)=\"\", \"\", IF(VLOOKUP(DF18,'Footnotes list'!$D$9:$E$58,2,FALSE)=0,\"\",VLOOKUP(DF18,'Footnotes list'!$D$9:$E$58,2,FALSE) ) )","v":""},null,null,null,null,{"$f":"IF(TRIM(DK18)=\"\", \"\", IF(VLOOKUP(DK18,'Footnotes list'!$D$9:$E$58,2,FALSE)=0,\"\",VLOOKUP(DK18,'Footnotes list'!$D$9:$E$58,2,FALSE) ) )","v":""},null,null,null,null,{"$f":"IF(TRIM(DP18)=\"\", \"\", IF(VLOOKUP(DP18,'Footnotes list'!$D$9:$E$58,2,FALSE)=0,\"\",VLOOKUP(DP18,'Footnotes list'!$D$9:$E$58,2,FALSE) ) )","v":""},null,null,null,null,{"$f":"IF(TRIM(DU18)=\"\", \"\", IF(VLOOKUP(DU18,'Footnotes list'!$D$9:$E$58,2,FALSE)=0,\"\",VLOOKUP(DU18,'Footnotes list'!$D$9:$E$58,2,FALSE) ) )","v":""},null,null,null,null,{"$f":"IF(TRIM(DZ18)=\"\", \"\", IF(VLOOKUP(DZ18,'Footnotes list'!$D$9:$E$58,2,FALSE)=0,\"\",VLOOKUP(DZ18,'Footnotes list'!$D$9:$E$58,2,FALSE) ) )","v":""},null,null,null,null,{"$f":"IF(TRIM(EE18)=\"\", \"\", IF(VLOOKUP(EE18,'Footnotes list'!$D$9:$E$58,2,FALSE)=0,\"\",VLOOKUP(EE18,'Footnotes list'!$D$9:$E$58,2,FALSE) ) )","v":""},null,null,null,null,{"$f":"IF(TRIM(EJ18)=\"\", \"\", IF(VLOOKUP(EJ18,'Footnotes list'!$D$9:$E$58,2,FALSE)=0,\"\",VLOOKUP(EJ18,'Footnotes list'!$D$9:$E$58,2,FALSE) ) )","v":""},null,null,null,null,{"$f":"IF(TRIM(EO18)=\"\", \"\", IF(VLOOKUP(EO18,'Footnotes list'!$D$9:$E$58,2,FALSE)=0,\"\",VLOOKUP(EO18,'Footnotes list'!$D$9:$E$58,2,FALSE) ) )","v":""},null,null,null,null,{"$f":"IF(TRIM(ET18)=\"\", \"\", IF(VLOOKUP(ET18,'Footnotes list'!$D$9:$E$58,2,FALSE)=0,\"\",VLOOKUP(ET18,'Footnotes list'!$D$9:$E$58,2,FALSE) ) )","v":""},null,null,null,null,{"$f":"IF(TRIM(EY18)=\"\", \"\", IF(VLOOKUP(EY18,'Footnotes list'!$D$9:$E$58,2,FALSE)=0,\"\",VLOOKUP(EY18,'Footnotes list'!$D$9:$E$58,2,FALSE) ) )","v":""}]
[null,null,"A","MKT","market activities, Including:",null,null,null,null,null,{"$f":"IF(TRIM(J19)=\"\", \"\", IF(VLOOKUP(J19,'Footnotes list'!$D$9:$E$58,2,FALSE)=0,\"\",VLOOKUP(J19,'Footnotes list'!$D$9:$E$58,2,FALSE) ) )","v":""},null,null,null,null,{"$f":"IF(TRIM(O19)=\"\", \"\", IF(VLOOKUP(O19,'Footnotes list'!$D$9:$E$58,2,FALSE)=0,\"\",VLOOKUP(O19,'Footnotes list'!$D$9:$E$58,2,FALSE) ) )","v":""},null,null,null,null,{"$f":"IF(TRIM(T19)=\"\", \"\", IF(VLOOKUP(T19,'Footnotes list'!$D$9:$E$58,2,FALSE)=0,\"\",VLOOKUP(T19,'Footnotes list'!$D$9:$E$58,2,FALSE) ) )","v":""},null,null,null,null,{"$f":"IF(TRIM(Y19)=\"\", \"\", IF(VLOOKUP(Y19,'Footnotes list'!$D$9:$E$58,2,FALSE)=0,\"\",VLOOKUP(Y19,'Footnotes list'!$D$9:$E$58,2,FALSE) ) )","v":""},null,null,null,null,{"$f":"IF(TRIM(AD19)=\"\", \"\", IF(VLOOKUP(AD19,'Footnotes list'!$D$9:$E$58,2,FALSE)=0,\"\",VLOOKUP(AD19,'Footnotes list'!$D$9:$E$58,2,FALSE) ) )","v":""},null,null,null,null,{"$f":"IF(TRIM(AI19)=\"\", \"\", IF(VLOOKUP(AI19,'Footnotes list'!$D$9:$E$58,2,FALSE)=0,\"\",VLOOKUP(AI19,'Footnotes list'!$D$9:$E$58,2,FALSE) ) )","v":""},null,null,null,null,{"$f":"IF(TRIM(AN19)=\"\", \"\", IF(VLOOKUP(AN19,'Footnotes list'!$D$9:$E$58,2,FALSE)=0,\"\",VLOOKUP(AN19,'Footnotes list'!$D$9:$E$58,2,FALSE) ) )","v":""},null,null,null,null,{"$f":"IF(TRIM(AS19)=\"\", \"\", IF(VLOOKUP(AS19,'Footnotes list'!$D$9:$E$58,2,FALSE)=0,\"\",VLOOKUP(AS19,'Footnotes list'!$D$9:$E$58,2,FALSE) ) )","v":""},null,null,null,null,{"$f":"IF(TRIM(AX19)=\"\", \"\", IF(VLOOKUP(AX19,'Footnotes list'!$D$9:$E$58,2,FALSE)=0,\"\",VLOOKUP(AX19,'Footnotes list'!$D$9:$E$58,2,FALSE) ) )","v":""},null,null,null,null,{"$f":"IF(TRIM(BC19)=\"\", \"\", IF(VLOOKUP(BC19,'Footnotes list'!$D$9:$E$58,2,FALSE)=0,\"\",VLOOKUP(BC19,'Footnotes list'!$D$9:$E$58,2,FALSE) ) )","v":""},null,null,null,null,{"$f":"IF(TRIM(BH19)=\"\", \"\", IF(VLOOKUP(BH19,'Footnotes list'!$D$9:$E$58,2,FALSE)=0,\"\",VLOOKUP(BH19,'Footnotes list'!$D$9:$E$58,2,FALSE) ) )","v":""},null,null,null,null,{"$f":"IF(TRIM(BM19)=\"\", \"\", IF(VLOOKUP(BM19,'Footnotes list'!$D$9:$E$58,2,FALSE)=0,\"\",VLOOKUP(BM19,'Footnotes list'!$D$9:$E$58,2,FALSE) ) )","v":""},null,null,null,null,{"$f":"IF(TRIM(BR19)=\"\", \"\", IF(VLOOKUP(BR19,'Footnotes list'!$D$9:$E$58,2,FALSE)=0,\"\",VLOOKUP(BR19,'Footnotes list'!$D$9:$E$58,2,FALSE) ) )","v":""},null,null,null,null,{"$f":"IF(TRIM(BW19)=\"\", \"\", IF(VLOOKUP(BW19,'Footnotes list'!$D$9:$E$58,2,FALSE)=0,\"\",VLOOKUP(BW19,'Footnotes list'!$D$9:$E$58,2,FALSE) ) )","v":""},null,null,null,null,{"$f":"IF(TRIM(CB19)=\"\", \"\", IF(VLOOKUP(CB19,'Footnotes list'!$D$9:$E$58,2,FALSE)=0,\"\",VLOOKUP(CB19,'Footnotes list'!$D$9:$E$58,2,FALSE) ) )","v":""},null,null,null,null,{"$f":"IF(TRIM(CG19)=\"\", \"\", IF(VLOOKUP(CG19,'Footnotes list'!$D$9:$E$58,2,FALSE)=0,\"\",VLOOKUP(CG19,'Footnotes list'!$D$9:$E$58,2,FALSE) ) )","v":""},null,null,null,null,{"$f":"IF(TRIM(CL19)=\"\", \"\", IF(VLOOKUP(CL19,'Footnotes list'!$D$9:$E$58,2,FALSE)=0,\"\",VLOOKUP(CL19,'Footnotes list'!$D$9:$E$58,2,FALSE) ) )","v":""},null,null,null,null,{"$f":"IF(TRIM(CQ19)=\"\", \"\", IF(VLOOKUP(CQ19,'Footnotes list'!$D$9:$E$58,2,FALSE)=0,\"\",VLOOKUP(CQ19,'Footnotes list'!$D$9:$E$58,2,FALSE) ) )","v":""},null,null,null,null,{"$f":"IF(TRIM(CV19)=\"\", \"\", IF(VLOOKUP(CV19,'Footnotes list'!$D$9:$E$58,2,FALSE)=0,\"\",VLOOKUP(CV19,'Footnotes list'!$D$9:$E$58,2,FALSE) ) )","v":""},null,null,null,null,{"$f":"IF(TRIM(DA19)=\"\", \"\", IF(VLOOKUP(DA19,'Footnotes list'!$D$9:$E$58,2,FALSE)=0,\"\",VLOOKUP(DA19,'Footnotes list'!$D$9:$E$58,2,FALSE) ) )","v":""},null,null,null,null,{"$f":"IF(TRIM(DF19)=\"\", \"\", IF(VLOOKUP(DF19,'Footnotes list'!$D$9:$E$58,2,FALSE)=0,\"\",VLOOKUP(DF19,'Footnotes list'!$D$9:$E$58,2,FALSE) ) )","v":""},null,null,null,null,{"$f":"IF(TRIM(DK19)=\"\", \"\", IF(VLOOKUP(DK19,'Footnotes list'!$D$9:$E$58,2,FALSE)=0,\"\",VLOOKUP(DK19,'Footnotes list'!$D$9:$E$58,2,FALSE) ) )","v":""},null,null,null,null,{"$f":"IF(TRIM(DP19)=\"\", \"\", IF(VLOOKUP(DP19,'Footnotes list'!$D$9:$E$58,2,FALSE)=0,\"\",VLOOKUP(DP19,'Footnotes list'!$D$9:$E$58,2,FALSE) ) )","v":""},null,null,null,null,{"$f":"IF(TRIM(DU19)=\"\", \"\", IF(VLOOKUP(DU19,'Footnotes list'!$D$9:$E$58,2,FALSE)=0,\"\",VLOOKUP(DU19,'Footnotes list'!$D$9:$E$58,2,FALSE) ) )","v":""},null,null,null,null,{"$f":"IF(TRIM(DZ19)=\"\", \"\", IF(VLOOKUP(DZ19,'Footnotes list'!$D$9:$E$58,2,FALSE)=0,\"\",VLOOKUP(DZ19,'Footnotes list'!$D$9:$E$58,2,FALSE) ) )","v":""},null,null,null,null,{"$f":"IF(TRIM(EE19)=\"\", \"\", IF(VLOOKUP(EE19,'Footnotes list'!$D$9:$E$58,2,FALSE)=0,\"\",VLOOKUP(EE19,'Footnotes list'!$D$9:$E$58,2,FALSE) ) )","v":""},null,null,null,null,{"$f":"IF(TRIM(EJ19)=\"\", \"\", IF(VLOOKUP(EJ19,'Footnotes list'!$D$9:$E$58,2,FALSE)=0,\"\",VLOOKUP(EJ19,'Footnotes list'!$D$9:$E$58,2,FALSE) ) )","v":""},null,null,null,null,{"$f":"IF(TRIM(EO19)=\"\", \"\", IF(VLOOKUP(EO19,'Footnotes list'!$D$9:$E$58,2,FALSE)=0,\"\",VLOOKUP(EO19,'Footnotes list'!$D$9:$E$58,2,FALSE) ) )","v":""},null,null,null,null,{"$f":"IF(TRIM(ET19)=\"\", \"\", IF(VLOOKUP(ET19,'Footnotes list'!$D$9:$E$58,2,FALSE)=0,\"\",VLOOKUP(ET19,'Footnotes list'!$D$9:$E$58,2,FALSE) ) )","v":""},null,null,null,null,{"$f":"IF(TRIM(EY19)=\"\", \"\", IF(VLOOKUP(EY19,'Footnotes list'!$D$9:$E$58,2,FALSE)=0,\"\",VLOOKUP(EY19,'Footnotes list'!$D$9:$E$58,2,FALSE) ) )","v":""}]
[null,null,"A","ES_CS","environmental specific services",null,null,null,null,null,{"$f":"IF(TRIM(J20)=\"\", \"\", IF(VLOOKUP(J20,'Footnotes list'!$D$9:$E$58,2,FALSE)=0,\"\",VLOOKUP(J20,'Footnotes list'!$D$9:$E$58,2,FALSE) ) )","v":""},null,null,null,null,{"$f":"IF(TRIM(O20)=\"\", \"\", IF(VLOOKUP(O20,'Footnotes list'!$D$9:$E$58,2,FALSE)=0,\"\",VLOOKUP(O20,'Footnotes list'!$D$9:$E$58,2,FALSE) ) )","v":""},null,null,null,null,{"$f":"IF(TRIM(T20)=\"\", \"\", IF(VLOOKUP(T20,'Footnotes list'!$D$9:$E$58,2,FALSE)=0,\"\",VLOOKUP(T20,'Footnotes list'!$D$9:$E$58,2,FALSE) ) )","v":""},null,null,null,null,{"$f":"IF(TRIM(Y20)=\"\", \"\", IF(VLOOKUP(Y20,'Footnotes list'!$D$9:$E$58,2,FALSE)=0,\"\",VLOOKUP(Y20,'Footnotes list'!$D$9:$E$58,2,FALSE) ) )","v":""},null,null,null,null,{"$f":"IF(TRIM(AD20)=\"\", \"\", IF(VLOOKUP(AD20,'Footnotes list'!$D$9:$E$58,2,FALSE)=0,\"\",VLOOKUP(AD20,'Footnotes list'!$D$9:$E$58,2,FALSE) ) )","v":""},null,null,null,null,{"$f":"IF(TRIM(AI20)=\"\", \"\", IF(VLOOKUP(AI20,'Footnotes list'!$D$9:$E$58,2,FALSE)=0,\"\",VLOOKUP(AI20,'Footnotes list'!$D$9:$E$58,2,FALSE) ) )","v":""},null,null,null,null,{"$f":"IF(TRIM(AN20)=\"\", \"\", IF(VLOOKUP(AN20,'Footnotes list'!$D$9:$E$58,2,FALSE)=0,\"\",VLOOKUP(AN20,'Footnotes list'!$D$9:$E$58,2,FALSE) ) )","v":""},null,null,null,null,{"$f":"IF(TRIM(AS20)=\"\", \"\", IF(VLOOKUP(AS20,'Footnotes list'!$D$9:$E$58,2,FALSE)=0,\"\",VLOOKUP(AS20,'Footnotes list'!$D$9:$E$58,2,FALSE) ) )","v":""},null,null,null,null,{"$f":"IF(TRIM(AX20)=\"\", \"\", IF(VLOOKUP(AX20,'Footnotes list'!$D$9:$E$58,2,FALSE)=0,\"\",VLOOKUP(AX20,'Footnotes list'!$D$9:$E$58,2,FALSE) ) )","v":""},null,null,null,null,{"$f":"IF(TRIM(BC20)=\"\", \"\", IF(VLOOKUP(BC20,'Footnotes list'!$D$9:$E$58,2,FALSE)=0,\"\",VLOOKUP(BC20,'Footnotes list'!$D$9:$E$58,2,FALSE) ) )","v":""},null,null,null,null,{"$f":"IF(TRIM(BH20)=\"\", \"\", IF(VLOOKUP(BH20,'Footnotes list'!$D$9:$E$58,2,FALSE)=0,\"\",VLOOKUP(BH20,'Footnotes list'!$D$9:$E$58,2,FALSE) ) )","v":""},null,null,null,null,{"$f":"IF(TRIM(BM20)=\"\", \"\", IF(VLOOKUP(BM20,'Footnotes list'!$D$9:$E$58,2,FALSE)=0,\"\",VLOOKUP(BM20,'Footnotes list'!$D$9:$E$58,2,FALSE) ) )","v":""},null,null,null,null,{"$f":"IF(TRIM(BR20)=\"\", \"\", IF(VLOOKUP(BR20,'Footnotes list'!$D$9:$E$58,2,FALSE)=0,\"\",VLOOKUP(BR20,'Footnotes list'!$D$9:$E$58,2,FALSE) ) )","v":""},null,null,null,null,{"$f":"IF(TRIM(BW20)=\"\", \"\", IF(VLOOKUP(BW20,'Footnotes list'!$D$9:$E$58,2,FALSE)=0,\"\",VLOOKUP(BW20,'Footnotes list'!$D$9:$E$58,2,FALSE) ) )","v":""},null,null,null,null,{"$f":"IF(TRIM(CB20)=\"\", \"\", IF(VLOOKUP(CB20,'Footnotes list'!$D$9:$E$58,2,FALSE)=0,\"\",VLOOKUP(CB20,'Footnotes list'!$D$9:$E$58,2,FALSE) ) )","v":""},null,null,null,null,{"$f":"IF(TRIM(CG20)=\"\", \"\", IF(VLOOKUP(CG20,'Footnotes list'!$D$9:$E$58,2,FALSE)=0,\"\",VLOOKUP(CG20,'Footnotes list'!$D$9:$E$58,2,FALSE) ) )","v":""},null,null,null,null,{"$f":"IF(TRIM(CL20)=\"\", \"\", IF(VLOOKUP(CL20,'Footnotes list'!$D$9:$E$58,2,FALSE)=0,\"\",VLOOKUP(CL20,'Footnotes list'!$D$9:$E$58,2,FALSE) ) )","v":""},null,null,null,null,{"$f":"IF(TRIM(CQ20)=\"\", \"\", IF(VLOOKUP(CQ20,'Footnotes list'!$D$9:$E$58,2,FALSE)=0,\"\",VLOOKUP(CQ20,'Footnotes list'!$D$9:$E$58,2,FALSE) ) )","v":""},null,null,null,null,{"$f":"IF(TRIM(CV20)=\"\", \"\", IF(VLOOKUP(CV20,'Footnotes list'!$D$9:$E$58,2,FALSE)=0,\"\",VLOOKUP(CV20,'Footnotes list'!$D$9:$E$58,2,FALSE) ) )","v":""},null,null,null,null,{"$f":"IF(TRIM(DA20)=\"\", \"\", IF(VLOOKUP(DA20,'Footnotes list'!$D$9:$E$58,2,FALSE)=0,\"\",VLOOKUP(DA20,'Footnotes list'!$D$9:$E$58,2,FALSE) ) )","v":""},null,null,null,null,{"$f":"IF(TRIM(DF20)=\"\", \"\", IF(VLOOKUP(DF20,'Footnotes list'!$D$9:$E$58,2,FALSE)=0,\"\",VLOOKUP(DF20,'Footnotes list'!$D$9:$E$58,2,FALSE) ) )","v":""},null,null,null,null,{"$f":"IF(TRIM(DK20)=\"\", \"\", IF(VLOOKUP(DK20,'Footnotes list'!$D$9:$E$58,2,FALSE)=0,\"\",VLOOKUP(DK20,'Footnotes list'!$D$9:$E$58,2,FALSE) ) )","v":""},null,null,null,null,{"$f":"IF(TRIM(DP20)=\"\", \"\", IF(VLOOKUP(DP20,'Footnotes list'!$D$9:$E$58,2,FALSE)=0,\"\",VLOOKUP(DP20,'Footnotes list'!$D$9:$E$58,2,FALSE) ) )","v":""},null,null,null,null,{"$f":"IF(TRIM(DU20)=\"\", \"\", IF(VLOOKUP(DU20,'Footnotes list'!$D$9:$E$58,2,FALSE)=0,\"\",VLOOKUP(DU20,'Footnotes list'!$D$9:$E$58,2,FALSE) ) )","v":""},null,null,null,null,{"$f":"IF(TRIM(DZ20)=\"\", \"\", IF(VLOOKUP(DZ20,'Footnotes list'!$D$9:$E$58,2,FALSE)=0,\"\",VLOOKUP(DZ20,'Footnotes list'!$D$9:$E$58,2,FALSE) ) )","v":""},null,null,null,null,{"$f":"IF(TRIM(EE20)=\"\", \"\", IF(VLOOKUP(EE20,'Footnotes list'!$D$9:$E$58,2,FALSE)=0,\"\",VLOOKUP(EE20,'Footnotes list'!$D$9:$E$58,2,FALSE) ) )","v":""},null,null,null,null,{"$f":"IF(TRIM(EJ20)=\"\", \"\", IF(VLOOKUP(EJ20,'Footnotes list'!$D$9:$E$58,2,FALSE)=0,\"\",VLOOKUP(EJ20,'Footnotes list'!$D$9:$E$58,2,FALSE) ) )","v":""},null,null,null,null,{"$f":"IF(TRIM(EO20)=\"\", \"\", IF(VLOOKUP(EO20,'Footnotes list'!$D$9:$E$58,2,FALSE)=0,\"\",VLOOKUP(EO20,'Footnotes list'!$D$9:$E$58,2,FALSE) ) )","v":""},null,null,null,null,{"$f":"IF(TRIM(ET20)=\"\", \"\", IF(VLOOKUP(ET20,'Footnotes list'!$D$9:$E$58,2,FALSE)=0,\"\",VLOOKUP(ET20,'Footnotes list'!$D$9:$E$58,2,FALSE) ) )","v":""},null,null,null,null,{"$f":"IF(TRIM(EY20)=\"\", \"\", IF(VLOOKUP(EY20,'Footnotes list'!$D$9:$E$58,2,FALSE)=0,\"\",VLOOKUP(EY20,'Footnotes list'!$D$9:$E$58,2,FALSE) ) )","v":""}]
[null,null,"A","C_REP","cleaner and resource efficient products",null,null,null,null,null,{"$f":"IF(TRIM(J21)=\"\", \"\", IF(VLOOKUP(J21,'Footnotes list'!$D$9:$E$58,2,FALSE)=0,\"\",VLOOKUP(J21,'Footnotes list'!$D$9:$E$58,2,FALSE) ) )","v":""},null,null,null,null,{"$f":"IF(TRIM(O21)=\"\", \"\", IF(VLOOKUP(O21,'Footnotes list'!$D$9:$E$58,2,FALSE)=0,\"\",VLOOKUP(O21,'Footnotes list'!$D$9:$E$58,2,FALSE) ) )","v":""},null,null,null,null,{"$f":"IF(TRIM(T21)=\"\", \"\", IF(VLOOKUP(T21,'Footnotes list'!$D$9:$E$58,2,FALSE)=0,\"\",VLOOKUP(T21,'Footnotes list'!$D$9:$E$58,2,FALSE) ) )","v":""},null,null,null,null,{"$f":"IF(TRIM(Y21)=\"\", \"\", IF(VLOOKUP(Y21,'Footnotes list'!$D$9:$E$58,2,FALSE)=0,\"\",VLOOKUP(Y21,'Footnotes list'!$D$9:$E$58,2,FALSE) ) )","v":""},null,null,null,null,{"$f":"IF(TRIM(AD21)=\"\", \"\", IF(VLOOKUP(AD21,'Footnotes list'!$D$9:$E$58,2,FALSE)=0,\"\",VLOOKUP(AD21,'Footnotes list'!$D$9:$E$58,2,FALSE) ) )","v":""},null,null,null,null,{"$f":"IF(TRIM(AI21)=\"\", \"\", IF(VLOOKUP(AI21,'Footnotes list'!$D$9:$E$58,2,FALSE)=0,\"\",VLOOKUP(AI21,'Footnotes list'!$D$9:$E$58,2,FALSE) ) )","v":""},null,null,null,null,{"$f":"IF(TRIM(AN21)=\"\", \"\", IF(VLOOKUP(AN21,'Footnotes list'!$D$9:$E$58,2,FALSE)=0,\"\",VLOOKUP(AN21,'Footnotes list'!$D$9:$E$58,2,FALSE) ) )","v":""},null,null,null,null,{"$f":"IF(TRIM(AS21)=\"\", \"\", IF(VLOOKUP(AS21,'Footnotes list'!$D$9:$E$58,2,FALSE)=0,\"\",VLOOKUP(AS21,'Footnotes list'!$D$9:$E$58,2,FALSE) ) )","v":""},null,null,null,null,{"$f":"IF(TRIM(AX21)=\"\", \"\", IF(VLOOKUP(AX21,'Footnotes list'!$D$9:$E$58,2,FALSE)=0,\"\",VLOOKUP(AX21,'Footnotes list'!$D$9:$E$58,2,FALSE) ) )","v":""},null,null,null,null,{"$f":"IF(TRIM(BC21)=\"\", \"\", IF(VLOOKUP(BC21,'Footnotes list'!$D$9:$E$58,2,FALSE)=0,\"\",VLOOKUP(BC21,'Footnotes list'!$D$9:$E$58,2,FALSE) ) )","v":""},null,null,null,null,{"$f":"IF(TRIM(BH21)=\"\", \"\", IF(VLOOKUP(BH21,'Footnotes list'!$D$9:$E$58,2,FALSE)=0,\"\",VLOOKUP(BH21,'Footnotes list'!$D$9:$E$58,2,FALSE) ) )","v":""},null,null,null,null,{"$f":"IF(TRIM(BM21)=\"\", \"\", IF(VLOOKUP(BM21,'Footnotes list'!$D$9:$E$58,2,FALSE)=0,\"\",VLOOKUP(BM21,'Footnotes list'!$D$9:$E$58,2,FALSE) ) )","v":""},null,null,null,null,{"$f":"IF(TRIM(BR21)=\"\", \"\", IF(VLOOKUP(BR21,'Footnotes list'!$D$9:$E$58,2,FALSE)=0,\"\",VLOOKUP(BR21,'Footnotes list'!$D$9:$E$58,2,FALSE) ) )","v":""},null,null,null,null,{"$f":"IF(TRIM(BW21)=\"\", \"\", IF(VLOOKUP(BW21,'Footnotes list'!$D$9:$E$58,2,FALSE)=0,\"\",VLOOKUP(BW21,'Footnotes list'!$D$9:$E$58,2,FALSE) ) )","v":""},null,null,null,null,{"$f":"IF(TRIM(CB21)=\"\", \"\", IF(VLOOKUP(CB21,'Footnotes list'!$D$9:$E$58,2,FALSE)=0,\"\",VLOOKUP(CB21,'Footnotes list'!$D$9:$E$58,2,FALSE) ) )","v":""},null,null,null,null,{"$f":"IF(TRIM(CG21)=\"\", \"\", IF(VLOOKUP(CG21,'Footnotes list'!$D$9:$E$58,2,FALSE)=0,\"\",VLOOKUP(CG21,'Footnotes list'!$D$9:$E$58,2,FALSE) ) )","v":""},null,null,null,null,{"$f":"IF(TRIM(CL21)=\"\", \"\", IF(VLOOKUP(CL21,'Footnotes list'!$D$9:$E$58,2,FALSE)=0,\"\",VLOOKUP(CL21,'Footnotes list'!$D$9:$E$58,2,FALSE) ) )","v":""},null,null,null,null,{"$f":"IF(TRIM(CQ21)=\"\", \"\", IF(VLOOKUP(CQ21,'Footnotes list'!$D$9:$E$58,2,FALSE)=0,\"\",VLOOKUP(CQ21,'Footnotes list'!$D$9:$E$58,2,FALSE) ) )","v":""},null,null,null,null,{"$f":"IF(TRIM(CV21)=\"\", \"\", IF(VLOOKUP(CV21,'Footnotes list'!$D$9:$E$58,2,FALSE)=0,\"\",VLOOKUP(CV21,'Footnotes list'!$D$9:$E$58,2,FALSE) ) )","v":""},null,null,null,null,{"$f":"IF(TRIM(DA21)=\"\", \"\", IF(VLOOKUP(DA21,'Footnotes list'!$D$9:$E$58,2,FALSE)=0,\"\",VLOOKUP(DA21,'Footnotes list'!$D$9:$E$58,2,FALSE) ) )","v":""},null,null,null,null,{"$f":"IF(TRIM(DF21)=\"\", \"\", IF(VLOOKUP(DF21,'Footnotes list'!$D$9:$E$58,2,FALSE)=0,\"\",VLOOKUP(DF21,'Footnotes list'!$D$9:$E$58,2,FALSE) ) )","v":""},null,null,null,null,{"$f":"IF(TRIM(DK21)=\"\", \"\", IF(VLOOKUP(DK21,'Footnotes list'!$D$9:$E$58,2,FALSE)=0,\"\",VLOOKUP(DK21,'Footnotes list'!$D$9:$E$58,2,FALSE) ) )","v":""},null,null,null,null,{"$f":"IF(TRIM(DP21)=\"\", \"\", IF(VLOOKUP(DP21,'Footnotes list'!$D$9:$E$58,2,FALSE)=0,\"\",VLOOKUP(DP21,'Footnotes list'!$D$9:$E$58,2,FALSE) ) )","v":""},null,null,null,null,{"$f":"IF(TRIM(DU21)=\"\", \"\", IF(VLOOKUP(DU21,'Footnotes list'!$D$9:$E$58,2,FALSE)=0,\"\",VLOOKUP(DU21,'Footnotes list'!$D$9:$E$58,2,FALSE) ) )","v":""},null,null,null,null,{"$f":"IF(TRIM(DZ21)=\"\", \"\", IF(VLOOKUP(DZ21,'Footnotes list'!$D$9:$E$58,2,FALSE)=0,\"\",VLOOKUP(DZ21,'Footnotes list'!$D$9:$E$58,2,FALSE) ) )","v":""},null,null,null,null,{"$f":"IF(TRIM(EE21)=\"\", \"\", IF(VLOOKUP(EE21,'Footnotes list'!$D$9:$E$58,2,FALSE)=0,\"\",VLOOKUP(EE21,'Footnotes list'!$D$9:$E$58,2,FALSE) ) )","v":""},null,null,null,null,{"$f":"IF(TRIM(EJ21)=\"\", \"\", IF(VLOOKUP(EJ21,'Footnotes list'!$D$9:$E$58,2,FALSE)=0,\"\",VLOOKUP(EJ21,'Footnotes list'!$D$9:$E$58,2,FALSE) ) )","v":""},null,null,null,null,{"$f":"IF(TRIM(EO21)=\"\", \"\", IF(VLOOKUP(EO21,'Footnotes list'!$D$9:$E$58,2,FALSE)=0,\"\",VLOOKUP(EO21,'Footnotes list'!$D$9:$E$58,2,FALSE) ) )","v":""},null,null,null,null,{"$f":"IF(TRIM(ET21)=\"\", \"\", IF(VLOOKUP(ET21,'Footnotes list'!$D$9:$E$58,2,FALSE)=0,\"\",VLOOKUP(ET21,'Footnotes list'!$D$9:$E$58,2,FALSE) ) )","v":""},null,null,null,null,{"$f":"IF(TRIM(EY21)=\"\", \"\", IF(VLOOKUP(EY21,'Footnotes list'!$D$9:$E$58,2,FALSE)=0,\"\",VLOOKUP(EY21,'Footnotes list'!$D$9:$E$58,2,FALSE) ) )","v":""}]
[null,null,"B","TOT_EGSS","Total B - Mining and quarrying, of which:",null,null,null,null,null,{"$f":"IF(TRIM(J22)=\"\", \"\", IF(VLOOKUP(J22,'Footnotes list'!$D$9:$E$58,2,FALSE)=0,\"\",VLOOKUP(J22,'Footnotes list'!$D$9:$E$58,2,FALSE) ) )","v":""},null,null,null,null,{"$f":"IF(TRIM(O22)=\"\", \"\", IF(VLOOKUP(O22,'Footnotes list'!$D$9:$E$58,2,FALSE)=0,\"\",VLOOKUP(O22,'Footnotes list'!$D$9:$E$58,2,FALSE) ) )","v":""},null,null,null,null,{"$f":"IF(TRIM(T22)=\"\", \"\", IF(VLOOKUP(T22,'Footnotes list'!$D$9:$E$58,2,FALSE)=0,\"\",VLOOKUP(T22,'Footnotes list'!$D$9:$E$58,2,FALSE) ) )","v":""},null,null,null,null,{"$f":"IF(TRIM(Y22)=\"\", \"\", IF(VLOOKUP(Y22,'Footnotes list'!$D$9:$E$58,2,FALSE)=0,\"\",VLOOKUP(Y22,'Footnotes list'!$D$9:$E$58,2,FALSE) ) )","v":""},null,null,null,null,{"$f":"IF(TRIM(AD22)=\"\", \"\", IF(VLOOKUP(AD22,'Footnotes list'!$D$9:$E$58,2,FALSE)=0,\"\",VLOOKUP(AD22,'Footnotes list'!$D$9:$E$58,2,FALSE) ) )","v":""},null,null,null,null,{"$f":"IF(TRIM(AI22)=\"\", \"\", IF(VLOOKUP(AI22,'Footnotes list'!$D$9:$E$58,2,FALSE)=0,\"\",VLOOKUP(AI22,'Footnotes list'!$D$9:$E$58,2,FALSE) ) )","v":""},null,null,null,null,{"$f":"IF(TRIM(AN22)=\"\", \"\", IF(VLOOKUP(AN22,'Footnotes list'!$D$9:$E$58,2,FALSE)=0,\"\",VLOOKUP(AN22,'Footnotes list'!$D$9:$E$58,2,FALSE) ) )","v":""},null,null,null,null,{"$f":"IF(TRIM(AS22)=\"\", \"\", IF(VLOOKUP(AS22,'Footnotes list'!$D$9:$E$58,2,FALSE)=0,\"\",VLOOKUP(AS22,'Footnotes list'!$D$9:$E$58,2,FALSE) ) )","v":""},null,null,null,null,{"$f":"IF(TRIM(AX22)=\"\", \"\", IF(VLOOKUP(AX22,'Footnotes list'!$D$9:$E$58,2,FALSE)=0,\"\",VLOOKUP(AX22,'Footnotes list'!$D$9:$E$58,2,FALSE) ) )","v":""},null,null,null,null,{"$f":"IF(TRIM(BC22)=\"\", \"\", IF(VLOOKUP(BC22,'Footnotes list'!$D$9:$E$58,2,FALSE)=0,\"\",VLOOKUP(BC22,'Footnotes list'!$D$9:$E$58,2,FALSE) ) )","v":""},null,null,null,null,{"$f":"IF(TRIM(BH22)=\"\", \"\", IF(VLOOKUP(BH22,'Footnotes list'!$D$9:$E$58,2,FALSE)=0,\"\",VLOOKUP(BH22,'Footnotes list'!$D$9:$E$58,2,FALSE) ) )","v":""},null,null,null,null,{"$f":"IF(TRIM(BM22)=\"\", \"\", IF(VLOOKUP(BM22,'Footnotes list'!$D$9:$E$58,2,FALSE)=0,\"\",VLOOKUP(BM22,'Footnotes list'!$D$9:$E$58,2,FALSE) ) )","v":""},null,null,null,null,{"$f":"IF(TRIM(BR22)=\"\", \"\", IF(VLOOKUP(BR22,'Footnotes list'!$D$9:$E$58,2,FALSE)=0,\"\",VLOOKUP(BR22,'Footnotes list'!$D$9:$E$58,2,FALSE) ) )","v":""},null,null,null,null,{"$f":"IF(TRIM(BW22)=\"\", \"\", IF(VLOOKUP(BW22,'Footnotes list'!$D$9:$E$58,2,FALSE)=0,\"\",VLOOKUP(BW22,'Footnotes list'!$D$9:$E$58,2,FALSE) ) )","v":""},null,null,null,null,{"$f":"IF(TRIM(CB22)=\"\", \"\", IF(VLOOKUP(CB22,'Footnotes list'!$D$9:$E$58,2,FALSE)=0,\"\",VLOOKUP(CB22,'Footnotes list'!$D$9:$E$58,2,FALSE) ) )","v":""},null,null,null,null,{"$f":"IF(TRIM(CG22)=\"\", \"\", IF(VLOOKUP(CG22,'Footnotes list'!$D$9:$E$58,2,FALSE)=0,\"\",VLOOKUP(CG22,'Footnotes list'!$D$9:$E$58,2,FALSE) ) )","v":""},null,null,null,null,{"$f":"IF(TRIM(CL22)=\"\", \"\", IF(VLOOKUP(CL22,'Footnotes list'!$D$9:$E$58,2,FALSE)=0,\"\",VLOOKUP(CL22,'Footnotes list'!$D$9:$E$58,2,FALSE) ) )","v":""},null,null,null,null,{"$f":"IF(TRIM(CQ22)=\"\", \"\", IF(VLOOKUP(CQ22,'Footnotes list'!$D$9:$E$58,2,FALSE)=0,\"\",VLOOKUP(CQ22,'Footnotes list'!$D$9:$E$58,2,FALSE) ) )","v":""},null,null,null,null,{"$f":"IF(TRIM(CV22)=\"\", \"\", IF(VLOOKUP(CV22,'Footnotes list'!$D$9:$E$58,2,FALSE)=0,\"\",VLOOKUP(CV22,'Footnotes list'!$D$9:$E$58,2,FALSE) ) )","v":""},null,null,null,null,{"$f":"IF(TRIM(DA22)=\"\", \"\", IF(VLOOKUP(DA22,'Footnotes list'!$D$9:$E$58,2,FALSE)=0,\"\",VLOOKUP(DA22,'Footnotes list'!$D$9:$E$58,2,FALSE) ) )","v":""},null,null,null,null,{"$f":"IF(TRIM(DF22)=\"\", \"\", IF(VLOOKUP(DF22,'Footnotes list'!$D$9:$E$58,2,FALSE)=0,\"\",VLOOKUP(DF22,'Footnotes list'!$D$9:$E$58,2,FALSE) ) )","v":""},null,null,null,null,{"$f":"IF(TRIM(DK22)=\"\", \"\", IF(VLOOKUP(DK22,'Footnotes list'!$D$9:$E$58,2,FALSE)=0,\"\",VLOOKUP(DK22,'Footnotes list'!$D$9:$E$58,2,FALSE) ) )","v":""},null,null,null,null,{"$f":"IF(TRIM(DP22)=\"\", \"\", IF(VLOOKUP(DP22,'Footnotes list'!$D$9:$E$58,2,FALSE)=0,\"\",VLOOKUP(DP22,'Footnotes list'!$D$9:$E$58,2,FALSE) ) )","v":""},null,null,null,null,{"$f":"IF(TRIM(DU22)=\"\", \"\", IF(VLOOKUP(DU22,'Footnotes list'!$D$9:$E$58,2,FALSE)=0,\"\",VLOOKUP(DU22,'Footnotes list'!$D$9:$E$58,2,FALSE) ) )","v":""},null,null,null,null,{"$f":"IF(TRIM(DZ22)=\"\", \"\", IF(VLOOKUP(DZ22,'Footnotes list'!$D$9:$E$58,2,FALSE)=0,\"\",VLOOKUP(DZ22,'Footnotes list'!$D$9:$E$58,2,FALSE) ) )","v":""},null,null,null,null,{"$f":"IF(TRIM(EE22)=\"\", \"\", IF(VLOOKUP(EE22,'Footnotes list'!$D$9:$E$58,2,FALSE)=0,\"\",VLOOKUP(EE22,'Footnotes list'!$D$9:$E$58,2,FALSE) ) )","v":""},null,null,null,null,{"$f":"IF(TRIM(EJ22)=\"\", \"\", IF(VLOOKUP(EJ22,'Footnotes list'!$D$9:$E$58,2,FALSE)=0,\"\",VLOOKUP(EJ22,'Footnotes list'!$D$9:$E$58,2,FALSE) ) )","v":""},null,null,null,null,{"$f":"IF(TRIM(EO22)=\"\", \"\", IF(VLOOKUP(EO22,'Footnotes list'!$D$9:$E$58,2,FALSE)=0,\"\",VLOOKUP(EO22,'Footnotes list'!$D$9:$E$58,2,FALSE) ) )","v":""},null,null,null,null,{"$f":"IF(TRIM(ET22)=\"\", \"\", IF(VLOOKUP(ET22,'Footnotes list'!$D$9:$E$58,2,FALSE)=0,\"\",VLOOKUP(ET22,'Footnotes list'!$D$9:$E$58,2,FALSE) ) )","v":""},null,null,null,null,{"$f":"IF(TRIM(EY22)=\"\", \"\", IF(VLOOKUP(EY22,'Footnotes list'!$D$9:$E$58,2,FALSE)=0,\"\",VLOOKUP(EY22,'Footnotes list'!$D$9:$E$58,2,FALSE) ) )","v":""}]
[null,null,"B","ANC","ancillary activities",null,null,null,null,null,{"$f":"IF(TRIM(J23)=\"\", \"\", IF(VLOOKUP(J23,'Footnotes list'!$D$9:$E$58,2,FALSE)=0,\"\",VLOOKUP(J23,'Footnotes list'!$D$9:$E$58,2,FALSE) ) )","v":""},null,null,null,null,{"$f":"IF(TRIM(O23)=\"\", \"\", IF(VLOOKUP(O23,'Footnotes list'!$D$9:$E$58,2,FALSE)=0,\"\",VLOOKUP(O23,'Footnotes list'!$D$9:$E$58,2,FALSE) ) )","v":""},null,null,null,null,{"$f":"IF(TRIM(T23)=\"\", \"\", IF(VLOOKUP(T23,'Footnotes list'!$D$9:$E$58,2,FALSE)=0,\"\",VLOOKUP(T23,'Footnotes list'!$D$9:$E$58,2,FALSE) ) )","v":""},null,null,null,null,{"$f":"IF(TRIM(Y23)=\"\", \"\", IF(VLOOKUP(Y23,'Footnotes list'!$D$9:$E$58,2,FALSE)=0,\"\",VLOOKUP(Y23,'Footnotes list'!$D$9:$E$58,2,FALSE) ) )","v":""},null,null,null,null,{"$f":"IF(TRIM(AD23)=\"\", \"\", IF(VLOOKUP(AD23,'Footnotes list'!$D$9:$E$58,2,FALSE)=0,\"\",VLOOKUP(AD23,'Footnotes list'!$D$9:$E$58,2,FALSE) ) )","v":""},null,null,null,null,{"$f":"IF(TRIM(AI23)=\"\", \"\", IF(VLOOKUP(AI23,'Footnotes list'!$D$9:$E$58,2,FALSE)=0,\"\",VLOOKUP(AI23,'Footnotes list'!$D$9:$E$58,2,FALSE) ) )","v":""},null,null,null,null,{"$f":"IF(TRIM(AN23)=\"\", \"\", IF(VLOOKUP(AN23,'Footnotes list'!$D$9:$E$58,2,FALSE)=0,\"\",VLOOKUP(AN23,'Footnotes list'!$D$9:$E$58,2,FALSE) ) )","v":""},null,null,null,null,{"$f":"IF(TRIM(AS23)=\"\", \"\", IF(VLOOKUP(AS23,'Footnotes list'!$D$9:$E$58,2,FALSE)=0,\"\",VLOOKUP(AS23,'Footnotes list'!$D$9:$E$58,2,FALSE) ) )","v":""},null,null,null,null,{"$f":"IF(TRIM(AX23)=\"\", \"\", IF(VLOOKUP(AX23,'Footnotes list'!$D$9:$E$58,2,FALSE)=0,\"\",VLOOKUP(AX23,'Footnotes list'!$D$9:$E$58,2,FALSE) ) )","v":""},null,null,null,null,{"$f":"IF(TRIM(BC23)=\"\", \"\", IF(VLOOKUP(BC23,'Footnotes list'!$D$9:$E$58,2,FALSE)=0,\"\",VLOOKUP(BC23,'Footnotes list'!$D$9:$E$58,2,FALSE) ) )","v":""},null,null,null,null,{"$f":"IF(TRIM(BH23)=\"\", \"\", IF(VLOOKUP(BH23,'Footnotes list'!$D$9:$E$58,2,FALSE)=0,\"\",VLOOKUP(BH23,'Footnotes list'!$D$9:$E$58,2,FALSE) ) )","v":""},null,null,null,null,{"$f":"IF(TRIM(BM23)=\"\", \"\", IF(VLOOKUP(BM23,'Footnotes list'!$D$9:$E$58,2,FALSE)=0,\"\",VLOOKUP(BM23,'Footnotes list'!$D$9:$E$58,2,FALSE) ) )","v":""},null,null,null,null,{"$f":"IF(TRIM(BR23)=\"\", \"\", IF(VLOOKUP(BR23,'Footnotes list'!$D$9:$E$58,2,FALSE)=0,\"\",VLOOKUP(BR23,'Footnotes list'!$D$9:$E$58,2,FALSE) ) )","v":""},null,null,null,null,{"$f":"IF(TRIM(BW23)=\"\", \"\", IF(VLOOKUP(BW23,'Footnotes list'!$D$9:$E$58,2,FALSE)=0,\"\",VLOOKUP(BW23,'Footnotes list'!$D$9:$E$58,2,FALSE) ) )","v":""},null,null,null,null,{"$f":"IF(TRIM(CB23)=\"\", \"\", IF(VLOOKUP(CB23,'Footnotes list'!$D$9:$E$58,2,FALSE)=0,\"\",VLOOKUP(CB23,'Footnotes list'!$D$9:$E$58,2,FALSE) ) )","v":""},null,null,null,null,{"$f":"IF(TRIM(CG23)=\"\", \"\", IF(VLOOKUP(CG23,'Footnotes list'!$D$9:$E$58,2,FALSE)=0,\"\",VLOOKUP(CG23,'Footnotes list'!$D$9:$E$58,2,FALSE) ) )","v":""},null,null,null,null,{"$f":"IF(TRIM(CL23)=\"\", \"\", IF(VLOOKUP(CL23,'Footnotes list'!$D$9:$E$58,2,FALSE)=0,\"\",VLOOKUP(CL23,'Footnotes list'!$D$9:$E$58,2,FALSE) ) )","v":""},null,null,null,null,{"$f":"IF(TRIM(CQ23)=\"\", \"\", IF(VLOOKUP(CQ23,'Footnotes list'!$D$9:$E$58,2,FALSE)=0,\"\",VLOOKUP(CQ23,'Footnotes list'!$D$9:$E$58,2,FALSE) ) )","v":""},null,null,null,null,{"$f":"IF(TRIM(CV23)=\"\", \"\", IF(VLOOKUP(CV23,'Footnotes list'!$D$9:$E$58,2,FALSE)=0,\"\",VLOOKUP(CV23,'Footnotes list'!$D$9:$E$58,2,FALSE) ) )","v":""},null,null,null,null,{"$f":"IF(TRIM(DA23)=\"\", \"\", IF(VLOOKUP(DA23,'Footnotes list'!$D$9:$E$58,2,FALSE)=0,\"\",VLOOKUP(DA23,'Footnotes list'!$D$9:$E$58,2,FALSE) ) )","v":""},null,null,null,null,{"$f":"IF(TRIM(DF23)=\"\", \"\", IF(VLOOKUP(DF23,'Footnotes list'!$D$9:$E$58,2,FALSE)=0,\"\",VLOOKUP(DF23,'Footnotes list'!$D$9:$E$58,2,FALSE) ) )","v":""},null,null,null,null,{"$f":"IF(TRIM(DK23)=\"\", \"\", IF(VLOOKUP(DK23,'Footnotes list'!$D$9:$E$58,2,FALSE)=0,\"\",VLOOKUP(DK23,'Footnotes list'!$D$9:$E$58,2,FALSE) ) )","v":""},null,null,null,null,{"$f":"IF(TRIM(DP23)=\"\", \"\", IF(VLOOKUP(DP23,'Footnotes list'!$D$9:$E$58,2,FALSE)=0,\"\",VLOOKUP(DP23,'Footnotes list'!$D$9:$E$58,2,FALSE) ) )","v":""},null,null,null,null,{"$f":"IF(TRIM(DU23)=\"\", \"\", IF(VLOOKUP(DU23,'Footnotes list'!$D$9:$E$58,2,FALSE)=0,\"\",VLOOKUP(DU23,'Footnotes list'!$D$9:$E$58,2,FALSE) ) )","v":""},null,null,null,null,{"$f":"IF(TRIM(DZ23)=\"\", \"\", IF(VLOOKUP(DZ23,'Footnotes list'!$D$9:$E$58,2,FALSE)=0,\"\",VLOOKUP(DZ23,'Footnotes list'!$D$9:$E$58,2,FALSE) ) )","v":""},null,null,null,null,{"$f":"IF(TRIM(EE23)=\"\", \"\", IF(VLOOKUP(EE23,'Footnotes list'!$D$9:$E$58,2,FALSE)=0,\"\",VLOOKUP(EE23,'Footnotes list'!$D$9:$E$58,2,FALSE) ) )","v":""},null,null,null,null,{"$f":"IF(TRIM(EJ23)=\"\", \"\", IF(VLOOKUP(EJ23,'Footnotes list'!$D$9:$E$58,2,FALSE)=0,\"\",VLOOKUP(EJ23,'Footnotes list'!$D$9:$E$58,2,FALSE) ) )","v":""},null,null,null,null,{"$f":"IF(TRIM(EO23)=\"\", \"\", IF(VLOOKUP(EO23,'Footnotes list'!$D$9:$E$58,2,FALSE)=0,\"\",VLOOKUP(EO23,'Footnotes list'!$D$9:$E$58,2,FALSE) ) )","v":""},null,null,null,null,{"$f":"IF(TRIM(ET23)=\"\", \"\", IF(VLOOKUP(ET23,'Footnotes list'!$D$9:$E$58,2,FALSE)=0,\"\",VLOOKUP(ET23,'Footnotes list'!$D$9:$E$58,2,FALSE) ) )","v":""},null,null,null,null,{"$f":"IF(TRIM(EY23)=\"\", \"\", IF(VLOOKUP(EY23,'Footnotes list'!$D$9:$E$58,2,FALSE)=0,\"\",VLOOKUP(EY23,'Footnotes list'!$D$9:$E$58,2,FALSE) ) )","v":""}]
[null,null,"B","NMKT","non-market activities",null,null,null,null,null,{"$f":"IF(TRIM(J24)=\"\", \"\", IF(VLOOKUP(J24,'Footnotes list'!$D$9:$E$58,2,FALSE)=0,\"\",VLOOKUP(J24,'Footnotes list'!$D$9:$E$58,2,FALSE) ) )","v":""},null,null,null,null,{"$f":"IF(TRIM(O24)=\"\", \"\", IF(VLOOKUP(O24,'Footnotes list'!$D$9:$E$58,2,FALSE)=0,\"\",VLOOKUP(O24,'Footnotes list'!$D$9:$E$58,2,FALSE) ) )","v":""},null,null,null,null,{"$f":"IF(TRIM(T24)=\"\", \"\", IF(VLOOKUP(T24,'Footnotes list'!$D$9:$E$58,2,FALSE)=0,\"\",VLOOKUP(T24,'Footnotes list'!$D$9:$E$58,2,FALSE) ) )","v":""},null,null,null,null,{"$f":"IF(TRIM(Y24)=\"\", \"\", IF(VLOOKUP(Y24,'Footnotes list'!$D$9:$E$58,2,FALSE)=0,\"\",VLOOKUP(Y24,'Footnotes list'!$D$9:$E$58,2,FALSE) ) )","v":""},null,null,null,null,{"$f":"IF(TRIM(AD24)=\"\", \"\", IF(VLOOKUP(AD24,'Footnotes list'!$D$9:$E$58,2,FALSE)=0,\"\",VLOOKUP(AD24,'Footnotes list'!$D$9:$E$58,2,FALSE) ) )","v":""},null,null,null,null,{"$f":"IF(TRIM(AI24)=\"\", \"\", IF(VLOOKUP(AI24,'Footnotes list'!$D$9:$E$58,2,FALSE)=0,\"\",VLOOKUP(AI24,'Footnotes list'!$D$9:$E$58,2,FALSE) ) )","v":""},null,null,null,null,{"$f":"IF(TRIM(AN24)=\"\", \"\", IF(VLOOKUP(AN24,'Footnotes list'!$D$9:$E$58,2,FALSE)=0,\"\",VLOOKUP(AN24,'Footnotes list'!$D$9:$E$58,2,FALSE) ) )","v":""},null,null,null,null,{"$f":"IF(TRIM(AS24)=\"\", \"\", IF(VLOOKUP(AS24,'Footnotes list'!$D$9:$E$58,2,FALSE)=0,\"\",VLOOKUP(AS24,'Footnotes list'!$D$9:$E$58,2,FALSE) ) )","v":""},null,null,null,null,{"$f":"IF(TRIM(AX24)=\"\", \"\", IF(VLOOKUP(AX24,'Footnotes list'!$D$9:$E$58,2,FALSE)=0,\"\",VLOOKUP(AX24,'Footnotes list'!$D$9:$E$58,2,FALSE) ) )","v":""},null,null,null,null,{"$f":"IF(TRIM(BC24)=\"\", \"\", IF(VLOOKUP(BC24,'Footnotes list'!$D$9:$E$58,2,FALSE)=0,\"\",VLOOKUP(BC24,'Footnotes list'!$D$9:$E$58,2,FALSE) ) )","v":""},null,null,null,null,{"$f":"IF(TRIM(BH24)=\"\", \"\", IF(VLOOKUP(BH24,'Footnotes list'!$D$9:$E$58,2,FALSE)=0,\"\",VLOOKUP(BH24,'Footnotes list'!$D$9:$E$58,2,FALSE) ) )","v":""},null,null,null,null,{"$f":"IF(TRIM(BM24)=\"\", \"\", IF(VLOOKUP(BM24,'Footnotes list'!$D$9:$E$58,2,FALSE)=0,\"\",VLOOKUP(BM24,'Footnotes list'!$D$9:$E$58,2,FALSE) ) )","v":""},null,null,null,null,{"$f":"IF(TRIM(BR24)=\"\", \"\", IF(VLOOKUP(BR24,'Footnotes list'!$D$9:$E$58,2,FALSE)=0,\"\",VLOOKUP(BR24,'Footnotes list'!$D$9:$E$58,2,FALSE) ) )","v":""},null,null,null,null,{"$f":"IF(TRIM(BW24)=\"\", \"\", IF(VLOOKUP(BW24,'Footnotes list'!$D$9:$E$58,2,FALSE)=0,\"\",VLOOKUP(BW24,'Footnotes list'!$D$9:$E$58,2,FALSE) ) )","v":""},null,null,null,null,{"$f":"IF(TRIM(CB24)=\"\", \"\", IF(VLOOKUP(CB24,'Footnotes list'!$D$9:$E$58,2,FALSE)=0,\"\",VLOOKUP(CB24,'Footnotes list'!$D$9:$E$58,2,FALSE) ) )","v":""},null,null,null,null,{"$f":"IF(TRIM(CG24)=\"\", \"\", IF(VLOOKUP(CG24,'Footnotes list'!$D$9:$E$58,2,FALSE)=0,\"\",VLOOKUP(CG24,'Footnotes list'!$D$9:$E$58,2,FALSE) ) )","v":""},null,null,null,null,{"$f":"IF(TRIM(CL24)=\"\", \"\", IF(VLOOKUP(CL24,'Footnotes list'!$D$9:$E$58,2,FALSE)=0,\"\",VLOOKUP(CL24,'Footnotes list'!$D$9:$E$58,2,FALSE) ) )","v":""},null,null,null,null,{"$f":"IF(TRIM(CQ24)=\"\", \"\", IF(VLOOKUP(CQ24,'Footnotes list'!$D$9:$E$58,2,FALSE)=0,\"\",VLOOKUP(CQ24,'Footnotes list'!$D$9:$E$58,2,FALSE) ) )","v":""},null,null,null,null,{"$f":"IF(TRIM(CV24)=\"\", \"\", IF(VLOOKUP(CV24,'Footnotes list'!$D$9:$E$58,2,FALSE)=0,\"\",VLOOKUP(CV24,'Footnotes list'!$D$9:$E$58,2,FALSE) ) )","v":""},null,null,null,null,{"$f":"IF(TRIM(DA24)=\"\", \"\", IF(VLOOKUP(DA24,'Footnotes list'!$D$9:$E$58,2,FALSE)=0,\"\",VLOOKUP(DA24,'Footnotes list'!$D$9:$E$58,2,FALSE) ) )","v":""},null,null,null,null,{"$f":"IF(TRIM(DF24)=\"\", \"\", IF(VLOOKUP(DF24,'Footnotes list'!$D$9:$E$58,2,FALSE)=0,\"\",VLOOKUP(DF24,'Footnotes list'!$D$9:$E$58,2,FALSE) ) )","v":""},null,null,null,null,{"$f":"IF(TRIM(DK24)=\"\", \"\", IF(VLOOKUP(DK24,'Footnotes list'!$D$9:$E$58,2,FALSE)=0,\"\",VLOOKUP(DK24,'Footnotes list'!$D$9:$E$58,2,FALSE) ) )","v":""},null,null,null,null,{"$f":"IF(TRIM(DP24)=\"\", \"\", IF(VLOOKUP(DP24,'Footnotes list'!$D$9:$E$58,2,FALSE)=0,\"\",VLOOKUP(DP24,'Footnotes list'!$D$9:$E$58,2,FALSE) ) )","v":""},null,null,null,null,{"$f":"IF(TRIM(DU24)=\"\", \"\", IF(VLOOKUP(DU24,'Footnotes list'!$D$9:$E$58,2,FALSE)=0,\"\",VLOOKUP(DU24,'Footnotes list'!$D$9:$E$58,2,FALSE) ) )","v":""},null,null,null,null,{"$f":"IF(TRIM(DZ24)=\"\", \"\", IF(VLOOKUP(DZ24,'Footnotes list'!$D$9:$E$58,2,FALSE)=0,\"\",VLOOKUP(DZ24,'Footnotes list'!$D$9:$E$58,2,FALSE) ) )","v":""},null,null,null,null,{"$f":"IF(TRIM(EE24)=\"\", \"\", IF(VLOOKUP(EE24,'Footnotes list'!$D$9:$E$58,2,FALSE)=0,\"\",VLOOKUP(EE24,'Footnotes list'!$D$9:$E$58,2,FALSE) ) )","v":""},null,null,null,null,{"$f":"IF(TRIM(EJ24)=\"\", \"\", IF(VLOOKUP(EJ24,'Footnotes list'!$D$9:$E$58,2,FALSE)=0,\"\",VLOOKUP(EJ24,'Footnotes list'!$D$9:$E$58,2,FALSE) ) )","v":""},null,null,null,null,{"$f":"IF(TRIM(EO24)=\"\", \"\", IF(VLOOKUP(EO24,'Footnotes list'!$D$9:$E$58,2,FALSE)=0,\"\",VLOOKUP(EO24,'Footnotes list'!$D$9:$E$58,2,FALSE) ) )","v":""},null,null,null,null,{"$f":"IF(TRIM(ET24)=\"\", \"\", IF(VLOOKUP(ET24,'Footnotes list'!$D$9:$E$58,2,FALSE)=0,\"\",VLOOKUP(ET24,'Footnotes list'!$D$9:$E$58,2,FALSE) ) )","v":""},null,null,null,null,{"$f":"IF(TRIM(EY24)=\"\", \"\", IF(VLOOKUP(EY24,'Footnotes list'!$D$9:$E$58,2,FALSE)=0,\"\",VLOOKUP(EY24,'Footnotes list'!$D$9:$E$58,2,FALSE) ) )","v":""}]
[null,null,"B","OWN_USE","activities for own final use",null,null,null,null,null,{"$f":"IF(TRIM(J25)=\"\", \"\", IF(VLOOKUP(J25,'Footnotes list'!$D$9:$E$58,2,FALSE)=0,\"\",VLOOKUP(J25,'Footnotes list'!$D$9:$E$58,2,FALSE) ) )","v":""},null,null,null,null,{"$f":"IF(TRIM(O25)=\"\", \"\", IF(VLOOKUP(O25,'Footnotes list'!$D$9:$E$58,2,FALSE)=0,\"\",VLOOKUP(O25,'Footnotes list'!$D$9:$E$58,2,FALSE) ) )","v":""},null,null,null,null,{"$f":"IF(TRIM(T25)=\"\", \"\", IF(VLOOKUP(T25,'Footnotes list'!$D$9:$E$58,2,FALSE)=0,\"\",VLOOKUP(T25,'Footnotes list'!$D$9:$E$58,2,FALSE) ) )","v":""},null,null,null,null,{"$f":"IF(TRIM(Y25)=\"\", \"\", IF(VLOOKUP(Y25,'Footnotes list'!$D$9:$E$58,2,FALSE)=0,\"\",VLOOKUP(Y25,'Footnotes list'!$D$9:$E$58,2,FALSE) ) )","v":""},null,null,null,null,{"$f":"IF(TRIM(AD25)=\"\", \"\", IF(VLOOKUP(AD25,'Footnotes list'!$D$9:$E$58,2,FALSE)=0,\"\",VLOOKUP(AD25,'Footnotes list'!$D$9:$E$58,2,FALSE) ) )","v":""},null,null,null,null,{"$f":"IF(TRIM(AI25)=\"\", \"\", IF(VLOOKUP(AI25,'Footnotes list'!$D$9:$E$58,2,FALSE)=0,\"\",VLOOKUP(AI25,'Footnotes list'!$D$9:$E$58,2,FALSE) ) )","v":""},null,null,null,null,{"$f":"IF(TRIM(AN25)=\"\", \"\", IF(VLOOKUP(AN25,'Footnotes list'!$D$9:$E$58,2,FALSE)=0,\"\",VLOOKUP(AN25,'Footnotes list'!$D$9:$E$58,2,FALSE) ) )","v":""},null,null,null,null,{"$f":"IF(TRIM(AS25)=\"\", \"\", IF(VLOOKUP(AS25,'Footnotes list'!$D$9:$E$58,2,FALSE)=0,\"\",VLOOKUP(AS25,'Footnotes list'!$D$9:$E$58,2,FALSE) ) )","v":""},null,null,null,null,{"$f":"IF(TRIM(AX25)=\"\", \"\", IF(VLOOKUP(AX25,'Footnotes list'!$D$9:$E$58,2,FALSE)=0,\"\",VLOOKUP(AX25,'Footnotes list'!$D$9:$E$58,2,FALSE) ) )","v":""},null,null,null,null,{"$f":"IF(TRIM(BC25)=\"\", \"\", IF(VLOOKUP(BC25,'Footnotes list'!$D$9:$E$58,2,FALSE)=0,\"\",VLOOKUP(BC25,'Footnotes list'!$D$9:$E$58,2,FALSE) ) )","v":""},null,null,null,null,{"$f":"IF(TRIM(BH25)=\"\", \"\", IF(VLOOKUP(BH25,'Footnotes list'!$D$9:$E$58,2,FALSE)=0,\"\",VLOOKUP(BH25,'Footnotes list'!$D$9:$E$58,2,FALSE) ) )","v":""},null,null,null,null,{"$f":"IF(TRIM(BM25)=\"\", \"\", IF(VLOOKUP(BM25,'Footnotes list'!$D$9:$E$58,2,FALSE)=0,\"\",VLOOKUP(BM25,'Footnotes list'!$D$9:$E$58,2,FALSE) ) )","v":""},null,null,null,null,{"$f":"IF(TRIM(BR25)=\"\", \"\", IF(VLOOKUP(BR25,'Footnotes list'!$D$9:$E$58,2,FALSE)=0,\"\",VLOOKUP(BR25,'Footnotes list'!$D$9:$E$58,2,FALSE) ) )","v":""},null,null,null,null,{"$f":"IF(TRIM(BW25)=\"\", \"\", IF(VLOOKUP(BW25,'Footnotes list'!$D$9:$E$58,2,FALSE)=0,\"\",VLOOKUP(BW25,'Footnotes list'!$D$9:$E$58,2,FALSE) ) )","v":""},null,null,null,null,{"$f":"IF(TRIM(CB25)=\"\", \"\", IF(VLOOKUP(CB25,'Footnotes list'!$D$9:$E$58,2,FALSE)=0,\"\",VLOOKUP(CB25,'Footnotes list'!$D$9:$E$58,2,FALSE) ) )","v":""},null,null,null,null,{"$f":"IF(TRIM(CG25)=\"\", \"\", IF(VLOOKUP(CG25,'Footnotes list'!$D$9:$E$58,2,FALSE)=0,\"\",VLOOKUP(CG25,'Footnotes list'!$D$9:$E$58,2,FALSE) ) )","v":""},null,null,null,null,{"$f":"IF(TRIM(CL25)=\"\", \"\", IF(VLOOKUP(CL25,'Footnotes list'!$D$9:$E$58,2,FALSE)=0,\"\",VLOOKUP(CL25,'Footnotes list'!$D$9:$E$58,2,FALSE) ) )","v":""},null,null,null,null,{"$f":"IF(TRIM(CQ25)=\"\", \"\", IF(VLOOKUP(CQ25,'Footnotes list'!$D$9:$E$58,2,FALSE)=0,\"\",VLOOKUP(CQ25,'Footnotes list'!$D$9:$E$58,2,FALSE) ) )","v":""},null,null,null,null,{"$f":"IF(TRIM(CV25)=\"\", \"\", IF(VLOOKUP(CV25,'Footnotes list'!$D$9:$E$58,2,FALSE)=0,\"\",VLOOKUP(CV25,'Footnotes list'!$D$9:$E$58,2,FALSE) ) )","v":""},null,null,null,null,{"$f":"IF(TRIM(DA25)=\"\", \"\", IF(VLOOKUP(DA25,'Footnotes list'!$D$9:$E$58,2,FALSE)=0,\"\",VLOOKUP(DA25,'Footnotes list'!$D$9:$E$58,2,FALSE) ) )","v":""},null,null,null,null,{"$f":"IF(TRIM(DF25)=\"\", \"\", IF(VLOOKUP(DF25,'Footnotes list'!$D$9:$E$58,2,FALSE)=0,\"\",VLOOKUP(DF25,'Footnotes list'!$D$9:$E$58,2,FALSE) ) )","v":""},null,null,null,null,{"$f":"IF(TRIM(DK25)=\"\", \"\", IF(VLOOKUP(DK25,'Footnotes list'!$D$9:$E$58,2,FALSE)=0,\"\",VLOOKUP(DK25,'Footnotes list'!$D$9:$E$58,2,FALSE) ) )","v":""},null,null,null,null,{"$f":"IF(TRIM(DP25)=\"\", \"\", IF(VLOOKUP(DP25,'Footnotes list'!$D$9:$E$58,2,FALSE)=0,\"\",VLOOKUP(DP25,'Footnotes list'!$D$9:$E$58,2,FALSE) ) )","v":""},null,null,null,null,{"$f":"IF(TRIM(DU25)=\"\", \"\", IF(VLOOKUP(DU25,'Footnotes list'!$D$9:$E$58,2,FALSE)=0,\"\",VLOOKUP(DU25,'Footnotes list'!$D$9:$E$58,2,FALSE) ) )","v":""},null,null,null,null,{"$f":"IF(TRIM(DZ25)=\"\", \"\", IF(VLOOKUP(DZ25,'Footnotes list'!$D$9:$E$58,2,FALSE)=0,\"\",VLOOKUP(DZ25,'Footnotes list'!$D$9:$E$58,2,FALSE) ) )","v":""},null,null,null,null,{"$f":"IF(TRIM(EE25)=\"\", \"\", IF(VLOOKUP(EE25,'Footnotes list'!$D$9:$E$58,2,FALSE)=0,\"\",VLOOKUP(EE25,'Footnotes list'!$D$9:$E$58,2,FALSE) ) )","v":""},null,null,null,null,{"$f":"IF(TRIM(EJ25)=\"\", \"\", IF(VLOOKUP(EJ25,'Footnotes list'!$D$9:$E$58,2,FALSE)=0,\"\",VLOOKUP(EJ25,'Footnotes list'!$D$9:$E$58,2,FALSE) ) )","v":""},null,null,null,null,{"$f":"IF(TRIM(EO25)=\"\", \"\", IF(VLOOKUP(EO25,'Footnotes list'!$D$9:$E$58,2,FALSE)=0,\"\",VLOOKUP(EO25,'Footnotes list'!$D$9:$E$58,2,FALSE) ) )","v":""},null,null,null,null,{"$f":"IF(TRIM(ET25)=\"\", \"\", IF(VLOOKUP(ET25,'Footnotes list'!$D$9:$E$58,2,FALSE)=0,\"\",VLOOKUP(ET25,'Footnotes list'!$D$9:$E$58,2,FALSE) ) )","v":""},null,null,null,null,{"$f":"IF(TRIM(EY25)=\"\", \"\", IF(VLOOKUP(EY25,'Footnotes list'!$D$9:$E$58,2,FALSE)=0,\"\",VLOOKUP(EY25,'Footnotes list'!$D$9:$E$58,2,FALSE) ) )","v":""}]
[null,null,"B","MKT","market activities, including:",null,null,null,null,null,{"$f":"IF(TRIM(J26)=\"\", \"\", IF(VLOOKUP(J26,'Footnotes list'!$D$9:$E$58,2,FALSE)=0,\"\",VLOOKUP(J26,'Footnotes list'!$D$9:$E$58,2,FALSE) ) )","v":""},null,null,null,null,{"$f":"IF(TRIM(O26)=\"\", \"\", IF(VLOOKUP(O26,'Footnotes list'!$D$9:$E$58,2,FALSE)=0,\"\",VLOOKUP(O26,'Footnotes list'!$D$9:$E$58,2,FALSE) ) )","v":""},null,null,null,null,{"$f":"IF(TRIM(T26)=\"\", \"\", IF(VLOOKUP(T26,'Footnotes list'!$D$9:$E$58,2,FALSE)=0,\"\",VLOOKUP(T26,'Footnotes list'!$D$9:$E$58,2,FALSE) ) )","v":""},null,null,null,null,{"$f":"IF(TRIM(Y26)=\"\", \"\", IF(VLOOKUP(Y26,'Footnotes list'!$D$9:$E$58,2,FALSE)=0,\"\",VLOOKUP(Y26,'Footnotes list'!$D$9:$E$58,2,FALSE) ) )","v":""},null,null,null,null,{"$f":"IF(TRIM(AD26)=\"\", \"\", IF(VLOOKUP(AD26,'Footnotes list'!$D$9:$E$58,2,FALSE)=0,\"\",VLOOKUP(AD26,'Footnotes list'!$D$9:$E$58,2,FALSE) ) )","v":""},null,null,null,null,{"$f":"IF(TRIM(AI26)=\"\", \"\", IF(VLOOKUP(AI26,'Footnotes list'!$D$9:$E$58,2,FALSE)=0,\"\",VLOOKUP(AI26,'Footnotes list'!$D$9:$E$58,2,FALSE) ) )","v":""},null,null,null,null,{"$f":"IF(TRIM(AN26)=\"\", \"\", IF(VLOOKUP(AN26,'Footnotes list'!$D$9:$E$58,2,FALSE)=0,\"\",VLOOKUP(AN26,'Footnotes list'!$D$9:$E$58,2,FALSE) ) )","v":""},null,null,null,null,{"$f":"IF(TRIM(AS26)=\"\", \"\", IF(VLOOKUP(AS26,'Footnotes list'!$D$9:$E$58,2,FALSE)=0,\"\",VLOOKUP(AS26,'Footnotes list'!$D$9:$E$58,2,FALSE) ) )","v":""},null,null,null,null,{"$f":"IF(TRIM(AX26)=\"\", \"\", IF(VLOOKUP(AX26,'Footnotes list'!$D$9:$E$58,2,FALSE)=0,\"\",VLOOKUP(AX26,'Footnotes list'!$D$9:$E$58,2,FALSE) ) )","v":""},null,null,null,null,{"$f":"IF(TRIM(BC26)=\"\", \"\", IF(VLOOKUP(BC26,'Footnotes list'!$D$9:$E$58,2,FALSE)=0,\"\",VLOOKUP(BC26,'Footnotes list'!$D$9:$E$58,2,FALSE) ) )","v":""},null,null,null,null,{"$f":"IF(TRIM(BH26)=\"\", \"\", IF(VLOOKUP(BH26,'Footnotes list'!$D$9:$E$58,2,FALSE)=0,\"\",VLOOKUP(BH26,'Footnotes list'!$D$9:$E$58,2,FALSE) ) )","v":""},null,null,null,null,{"$f":"IF(TRIM(BM26)=\"\", \"\", IF(VLOOKUP(BM26,'Footnotes list'!$D$9:$E$58,2,FALSE)=0,\"\",VLOOKUP(BM26,'Footnotes list'!$D$9:$E$58,2,FALSE) ) )","v":""},null,null,null,null,{"$f":"IF(TRIM(BR26)=\"\", \"\", IF(VLOOKUP(BR26,'Footnotes list'!$D$9:$E$58,2,FALSE)=0,\"\",VLOOKUP(BR26,'Footnotes list'!$D$9:$E$58,2,FALSE) ) )","v":""},null,null,null,null,{"$f":"IF(TRIM(BW26)=\"\", \"\", IF(VLOOKUP(BW26,'Footnotes list'!$D$9:$E$58,2,FALSE)=0,\"\",VLOOKUP(BW26,'Footnotes list'!$D$9:$E$58,2,FALSE) ) )","v":""},null,null,null,null,{"$f":"IF(TRIM(CB26)=\"\", \"\", IF(VLOOKUP(CB26,'Footnotes list'!$D$9:$E$58,2,FALSE)=0,\"\",VLOOKUP(CB26,'Footnotes list'!$D$9:$E$58,2,FALSE) ) )","v":""},null,null,null,null,{"$f":"IF(TRIM(CG26)=\"\", \"\", IF(VLOOKUP(CG26,'Footnotes list'!$D$9:$E$58,2,FALSE)=0,\"\",VLOOKUP(CG26,'Footnotes list'!$D$9:$E$58,2,FALSE) ) )","v":""},null,null,null,null,{"$f":"IF(TRIM(CL26)=\"\", \"\", IF(VLOOKUP(CL26,'Footnotes list'!$D$9:$E$58,2,FALSE)=0,\"\",VLOOKUP(CL26,'Footnotes list'!$D$9:$E$58,2,FALSE) ) )","v":""},null,null,null,null,{"$f":"IF(TRIM(CQ26)=\"\", \"\", IF(VLOOKUP(CQ26,'Footnotes list'!$D$9:$E$58,2,FALSE)=0,\"\",VLOOKUP(CQ26,'Footnotes list'!$D$9:$E$58,2,FALSE) ) )","v":""},null,null,null,null,{"$f":"IF(TRIM(CV26)=\"\", \"\", IF(VLOOKUP(CV26,'Footnotes list'!$D$9:$E$58,2,FALSE)=0,\"\",VLOOKUP(CV26,'Footnotes list'!$D$9:$E$58,2,FALSE) ) )","v":""},null,null,null,null,{"$f":"IF(TRIM(DA26)=\"\", \"\", IF(VLOOKUP(DA26,'Footnotes list'!$D$9:$E$58,2,FALSE)=0,\"\",VLOOKUP(DA26,'Footnotes list'!$D$9:$E$58,2,FALSE) ) )","v":""},null,null,null,null,{"$f":"IF(TRIM(DF26)=\"\", \"\", IF(VLOOKUP(DF26,'Footnotes list'!$D$9:$E$58,2,FALSE)=0,\"\",VLOOKUP(DF26,'Footnotes list'!$D$9:$E$58,2,FALSE) ) )","v":""},null,null,null,null,{"$f":"IF(TRIM(DK26)=\"\", \"\", IF(VLOOKUP(DK26,'Footnotes list'!$D$9:$E$58,2,FALSE)=0,\"\",VLOOKUP(DK26,'Footnotes list'!$D$9:$E$58,2,FALSE) ) )","v":""},null,null,null,null,{"$f":"IF(TRIM(DP26)=\"\", \"\", IF(VLOOKUP(DP26,'Footnotes list'!$D$9:$E$58,2,FALSE)=0,\"\",VLOOKUP(DP26,'Footnotes list'!$D$9:$E$58,2,FALSE) ) )","v":""},null,null,null,null,{"$f":"IF(TRIM(DU26)=\"\", \"\", IF(VLOOKUP(DU26,'Footnotes list'!$D$9:$E$58,2,FALSE)=0,\"\",VLOOKUP(DU26,'Footnotes list'!$D$9:$E$58,2,FALSE) ) )","v":""},null,null,null,null,{"$f":"IF(TRIM(DZ26)=\"\", \"\", IF(VLOOKUP(DZ26,'Footnotes list'!$D$9:$E$58,2,FALSE)=0,\"\",VLOOKUP(DZ26,'Footnotes list'!$D$9:$E$58,2,FALSE) ) )","v":""},null,null,null,null,{"$f":"IF(TRIM(EE26)=\"\", \"\", IF(VLOOKUP(EE26,'Footnotes list'!$D$9:$E$58,2,FALSE)=0,\"\",VLOOKUP(EE26,'Footnotes list'!$D$9:$E$58,2,FALSE) ) )","v":""},null,null,null,null,{"$f":"IF(TRIM(EJ26)=\"\", \"\", IF(VLOOKUP(EJ26,'Footnotes list'!$D$9:$E$58,2,FALSE)=0,\"\",VLOOKUP(EJ26,'Footnotes list'!$D$9:$E$58,2,FALSE) ) )","v":""},null,null,null,null,{"$f":"IF(TRIM(EO26)=\"\", \"\", IF(VLOOKUP(EO26,'Footnotes list'!$D$9:$E$58,2,FALSE)=0,\"\",VLOOKUP(EO26,'Footnotes list'!$D$9:$E$58,2,FALSE) ) )","v":""},null,null,null,null,{"$f":"IF(TRIM(ET26)=\"\", \"\", IF(VLOOKUP(ET26,'Footnotes list'!$D$9:$E$58,2,FALSE)=0,\"\",VLOOKUP(ET26,'Footnotes list'!$D$9:$E$58,2,FALSE) ) )","v":""},null,null,null,null,{"$f":"IF(TRIM(EY26)=\"\", \"\", IF(VLOOKUP(EY26,'Footnotes list'!$D$9:$E$58,2,FALSE)=0,\"\",VLOOKUP(EY26,'Footnotes list'!$D$9:$E$58,2,FALSE) ) )","v":""}]
[null,null,"B","ES_CS","environmental specific services",null,null,null,null,null,{"$f":"IF(TRIM(J27)=\"\", \"\", IF(VLOOKUP(J27,'Footnotes list'!$D$9:$E$58,2,FALSE)=0,\"\",VLOOKUP(J27,'Footnotes list'!$D$9:$E$58,2,FALSE) ) )","v":""},null,null,null,null,{"$f":"IF(TRIM(O27)=\"\", \"\", IF(VLOOKUP(O27,'Footnotes list'!$D$9:$E$58,2,FALSE)=0,\"\",VLOOKUP(O27,'Footnotes list'!$D$9:$E$58,2,FALSE) ) )","v":""},null,null,null,null,{"$f":"IF(TRIM(T27)=\"\", \"\", IF(VLOOKUP(T27,'Footnotes list'!$D$9:$E$58,2,FALSE)=0,\"\",VLOOKUP(T27,'Footnotes list'!$D$9:$E$58,2,FALSE) ) )","v":""},null,null,null,null,{"$f":"IF(TRIM(Y27)=\"\", \"\", IF(VLOOKUP(Y27,'Footnotes list'!$D$9:$E$58,2,FALSE)=0,\"\",VLOOKUP(Y27,'Footnotes list'!$D$9:$E$58,2,FALSE) ) )","v":""},null,null,null,null,{"$f":"IF(TRIM(AD27)=\"\", \"\", IF(VLOOKUP(AD27,'Footnotes list'!$D$9:$E$58,2,FALSE)=0,\"\",VLOOKUP(AD27,'Footnotes list'!$D$9:$E$58,2,FALSE) ) )","v":""},null,null,null,null,{"$f":"IF(TRIM(AI27)=\"\", \"\", IF(VLOOKUP(AI27,'Footnotes list'!$D$9:$E$58,2,FALSE)=0,\"\",VLOOKUP(AI27,'Footnotes list'!$D$9:$E$58,2,FALSE) ) )","v":""},null,null,null,null,{"$f":"IF(TRIM(AN27)=\"\", \"\", IF(VLOOKUP(AN27,'Footnotes list'!$D$9:$E$58,2,FALSE)=0,\"\",VLOOKUP(AN27,'Footnotes list'!$D$9:$E$58,2,FALSE) ) )","v":""},null,null,null,null,{"$f":"IF(TRIM(AS27)=\"\", \"\", IF(VLOOKUP(AS27,'Footnotes list'!$D$9:$E$58,2,FALSE)=0,\"\",VLOOKUP(AS27,'Footnotes list'!$D$9:$E$58,2,FALSE) ) )","v":""},null,null,null,null,{"$f":"IF(TRIM(AX27)=\"\", \"\", IF(VLOOKUP(AX27,'Footnotes list'!$D$9:$E$58,2,FALSE)=0,\"\",VLOOKUP(AX27,'Footnotes list'!$D$9:$E$58,2,FALSE) ) )","v":""},null,null,null,null,{"$f":"IF(TRIM(BC27)=\"\", \"\", IF(VLOOKUP(BC27,'Footnotes list'!$D$9:$E$58,2,FALSE)=0,\"\",VLOOKUP(BC27,'Footnotes list'!$D$9:$E$58,2,FALSE) ) )","v":""},null,null,null,null,{"$f":"IF(TRIM(BH27)=\"\", \"\", IF(VLOOKUP(BH27,'Footnotes list'!$D$9:$E$58,2,FALSE)=0,\"\",VLOOKUP(BH27,'Footnotes list'!$D$9:$E$58,2,FALSE) ) )","v":""},null,null,null,null,{"$f":"IF(TRIM(BM27)=\"\", \"\", IF(VLOOKUP(BM27,'Footnotes list'!$D$9:$E$58,2,FALSE)=0,\"\",VLOOKUP(BM27,'Footnotes list'!$D$9:$E$58,2,FALSE) ) )","v":""},null,null,null,null,{"$f":"IF(TRIM(BR27)=\"\", \"\", IF(VLOOKUP(BR27,'Footnotes list'!$D$9:$E$58,2,FALSE)=0,\"\",VLOOKUP(BR27,'Footnotes list'!$D$9:$E$58,2,FALSE) ) )","v":""},null,null,null,null,{"$f":"IF(TRIM(BW27)=\"\", \"\", IF(VLOOKUP(BW27,'Footnotes list'!$D$9:$E$58,2,FALSE)=0,\"\",VLOOKUP(BW27,'Footnotes list'!$D$9:$E$58,2,FALSE) ) )","v":""},null,null,null,null,{"$f":"IF(TRIM(CB27)=\"\", \"\", IF(VLOOKUP(CB27,'Footnotes list'!$D$9:$E$58,2,FALSE)=0,\"\",VLOOKUP(CB27,'Footnotes list'!$D$9:$E$58,2,FALSE) ) )","v":""},null,null,null,null,{"$f":"IF(TRIM(CG27)=\"\", \"\", IF(VLOOKUP(CG27,'Footnotes list'!$D$9:$E$58,2,FALSE)=0,\"\",VLOOKUP(CG27,'Footnotes list'!$D$9:$E$58,2,FALSE) ) )","v":""},null,null,null,null,{"$f":"IF(TRIM(CL27)=\"\", \"\", IF(VLOOKUP(CL27,'Footnotes list'!$D$9:$E$58,2,FALSE)=0,\"\",VLOOKUP(CL27,'Footnotes list'!$D$9:$E$58,2,FALSE) ) )","v":""},null,null,null,null,{"$f":"IF(TRIM(CQ27)=\"\", \"\", IF(VLOOKUP(CQ27,'Footnotes list'!$D$9:$E$58,2,FALSE)=0,\"\",VLOOKUP(CQ27,'Footnotes list'!$D$9:$E$58,2,FALSE) ) )","v":""},null,null,null,null,{"$f":"IF(TRIM(CV27)=\"\", \"\", IF(VLOOKUP(CV27,'Footnotes list'!$D$9:$E$58,2,FALSE)=0,\"\",VLOOKUP(CV27,'Footnotes list'!$D$9:$E$58,2,FALSE) ) )","v":""},null,null,null,null,{"$f":"IF(TRIM(DA27)=\"\", \"\", IF(VLOOKUP(DA27,'Footnotes list'!$D$9:$E$58,2,FALSE)=0,\"\",VLOOKUP(DA27,'Footnotes list'!$D$9:$E$58,2,FALSE) ) )","v":""},null,null,null,null,{"$f":"IF(TRIM(DF27)=\"\", \"\", IF(VLOOKUP(DF27,'Footnotes list'!$D$9:$E$58,2,FALSE)=0,\"\",VLOOKUP(DF27,'Footnotes list'!$D$9:$E$58,2,FALSE) ) )","v":""},null,null,null,null,{"$f":"IF(TRIM(DK27)=\"\", \"\", IF(VLOOKUP(DK27,'Footnotes list'!$D$9:$E$58,2,FALSE)=0,\"\",VLOOKUP(DK27,'Footnotes list'!$D$9:$E$58,2,FALSE) ) )","v":""},null,null,null,null,{"$f":"IF(TRIM(DP27)=\"\", \"\", IF(VLOOKUP(DP27,'Footnotes list'!$D$9:$E$58,2,FALSE)=0,\"\",VLOOKUP(DP27,'Footnotes list'!$D$9:$E$58,2,FALSE) ) )","v":""},null,null,null,null,{"$f":"IF(TRIM(DU27)=\"\", \"\", IF(VLOOKUP(DU27,'Footnotes list'!$D$9:$E$58,2,FALSE)=0,\"\",VLOOKUP(DU27,'Footnotes list'!$D$9:$E$58,2,FALSE) ) )","v":""},null,null,null,null,{"$f":"IF(TRIM(DZ27)=\"\", \"\", IF(VLOOKUP(DZ27,'Footnotes list'!$D$9:$E$58,2,FALSE)=0,\"\",VLOOKUP(DZ27,'Footnotes list'!$D$9:$E$58,2,FALSE) ) )","v":""},null,null,null,null,{"$f":"IF(TRIM(EE27)=\"\", \"\", IF(VLOOKUP(EE27,'Footnotes list'!$D$9:$E$58,2,FALSE)=0,\"\",VLOOKUP(EE27,'Footnotes list'!$D$9:$E$58,2,FALSE) ) )","v":""},null,null,null,null,{"$f":"IF(TRIM(EJ27)=\"\", \"\", IF(VLOOKUP(EJ27,'Footnotes list'!$D$9:$E$58,2,FALSE)=0,\"\",VLOOKUP(EJ27,'Footnotes list'!$D$9:$E$58,2,FALSE) ) )","v":""},null,null,null,null,{"$f":"IF(TRIM(EO27)=\"\", \"\", IF(VLOOKUP(EO27,'Footnotes list'!$D$9:$E$58,2,FALSE)=0,\"\",VLOOKUP(EO27,'Footnotes list'!$D$9:$E$58,2,FALSE) ) )","v":""},null,null,null,null,{"$f":"IF(TRIM(ET27)=\"\", \"\", IF(VLOOKUP(ET27,'Footnotes list'!$D$9:$E$58,2,FALSE)=0,\"\",VLOOKUP(ET27,'Footnotes list'!$D$9:$E$58,2,FALSE) ) )","v":""},null,null,null,null,{"$f":"IF(TRIM(EY27)=\"\", \"\", IF(VLOOKUP(EY27,'Footnotes list'!$D$9:$E$58,2,FALSE)=0,\"\",VLOOKUP(EY27,'Footnotes list'!$D$9:$E$58,2,FALSE) ) )","v":""}]
[null,null,"B","C_REP","cleaner and resource efficient products",null,null,null,null,null,{"$f":"IF(TRIM(J28)=\"\", \"\", IF(VLOOKUP(J28,'Footnotes list'!$D$9:$E$58,2,FALSE)=0,\"\",VLOOKUP(J28,'Footnotes list'!$D$9:$E$58,2,FALSE) ) )","v":""},null,null,null,null,{"$f":"IF(TRIM(O28)=\"\", \"\", IF(VLOOKUP(O28,'Footnotes list'!$D$9:$E$58,2,FALSE)=0,\"\",VLOOKUP(O28,'Footnotes list'!$D$9:$E$58,2,FALSE) ) )","v":""},null,null,null,null,{"$f":"IF(TRIM(T28)=\"\", \"\", IF(VLOOKUP(T28,'Footnotes list'!$D$9:$E$58,2,FALSE)=0,\"\",VLOOKUP(T28,'Footnotes list'!$D$9:$E$58,2,FALSE) ) )","v":""},null,null,null,null,{"$f":"IF(TRIM(Y28)=\"\", \"\", IF(VLOOKUP(Y28,'Footnotes list'!$D$9:$E$58,2,FALSE)=0,\"\",VLOOKUP(Y28,'Footnotes list'!$D$9:$E$58,2,FALSE) ) )","v":""},null,null,null,null,{"$f":"IF(TRIM(AD28)=\"\", \"\", IF(VLOOKUP(AD28,'Footnotes list'!$D$9:$E$58,2,FALSE)=0,\"\",VLOOKUP(AD28,'Footnotes list'!$D$9:$E$58,2,FALSE) ) )","v":""},null,null,null,null,{"$f":"IF(TRIM(AI28)=\"\", \"\", IF(VLOOKUP(AI28,'Footnotes list'!$D$9:$E$58,2,FALSE)=0,\"\",VLOOKUP(AI28,'Footnotes list'!$D$9:$E$58,2,FALSE) ) )","v":""},null,null,null,null,{"$f":"IF(TRIM(AN28)=\"\", \"\", IF(VLOOKUP(AN28,'Footnotes list'!$D$9:$E$58,2,FALSE)=0,\"\",VLOOKUP(AN28,'Footnotes list'!$D$9:$E$58,2,FALSE) ) )","v":""},null,null,null,null,{"$f":"IF(TRIM(AS28)=\"\", \"\", IF(VLOOKUP(AS28,'Footnotes list'!$D$9:$E$58,2,FALSE)=0,\"\",VLOOKUP(AS28,'Footnotes list'!$D$9:$E$58,2,FALSE) ) )","v":""},null,null,null,null,{"$f":"IF(TRIM(AX28)=\"\", \"\", IF(VLOOKUP(AX28,'Footnotes list'!$D$9:$E$58,2,FALSE)=0,\"\",VLOOKUP(AX28,'Footnotes list'!$D$9:$E$58,2,FALSE) ) )","v":""},null,null,null,null,{"$f":"IF(TRIM(BC28)=\"\", \"\", IF(VLOOKUP(BC28,'Footnotes list'!$D$9:$E$58,2,FALSE)=0,\"\",VLOOKUP(BC28,'Footnotes list'!$D$9:$E$58,2,FALSE) ) )","v":""},null,null,null,null,{"$f":"IF(TRIM(BH28)=\"\", \"\", IF(VLOOKUP(BH28,'Footnotes list'!$D$9:$E$58,2,FALSE)=0,\"\",VLOOKUP(BH28,'Footnotes list'!$D$9:$E$58,2,FALSE) ) )","v":""},null,null,null,null,{"$f":"IF(TRIM(BM28)=\"\", \"\", IF(VLOOKUP(BM28,'Footnotes list'!$D$9:$E$58,2,FALSE)=0,\"\",VLOOKUP(BM28,'Footnotes list'!$D$9:$E$58,2,FALSE) ) )","v":""},null,null,null,null,{"$f":"IF(TRIM(BR28)=\"\", \"\", IF(VLOOKUP(BR28,'Footnotes list'!$D$9:$E$58,2,FALSE)=0,\"\",VLOOKUP(BR28,'Footnotes list'!$D$9:$E$58,2,FALSE) ) )","v":""},null,null,null,null,{"$f":"IF(TRIM(BW28)=\"\", \"\", IF(VLOOKUP(BW28,'Footnotes list'!$D$9:$E$58,2,FALSE)=0,\"\",VLOOKUP(BW28,'Footnotes list'!$D$9:$E$58,2,FALSE) ) )","v":""},null,null,null,null,{"$f":"IF(TRIM(CB28)=\"\", \"\", IF(VLOOKUP(CB28,'Footnotes list'!$D$9:$E$58,2,FALSE)=0,\"\",VLOOKUP(CB28,'Footnotes list'!$D$9:$E$58,2,FALSE) ) )","v":""},null,null,null,null,{"$f":"IF(TRIM(CG28)=\"\", \"\", IF(VLOOKUP(CG28,'Footnotes list'!$D$9:$E$58,2,FALSE)=0,\"\",VLOOKUP(CG28,'Footnotes list'!$D$9:$E$58,2,FALSE) ) )","v":""},null,null,null,null,{"$f":"IF(TRIM(CL28)=\"\", \"\", IF(VLOOKUP(CL28,'Footnotes list'!$D$9:$E$58,2,FALSE)=0,\"\",VLOOKUP(CL28,'Footnotes list'!$D$9:$E$58,2,FALSE) ) )","v":""},null,null,null,null,{"$f":"IF(TRIM(CQ28)=\"\", \"\", IF(VLOOKUP(CQ28,'Footnotes list'!$D$9:$E$58,2,FALSE)=0,\"\",VLOOKUP(CQ28,'Footnotes list'!$D$9:$E$58,2,FALSE) ) )","v":""},null,null,null,null,{"$f":"IF(TRIM(CV28)=\"\", \"\", IF(VLOOKUP(CV28,'Footnotes list'!$D$9:$E$58,2,FALSE)=0,\"\",VLOOKUP(CV28,'Footnotes list'!$D$9:$E$58,2,FALSE) ) )","v":""},null,null,null,null,{"$f":"IF(TRIM(DA28)=\"\", \"\", IF(VLOOKUP(DA28,'Footnotes list'!$D$9:$E$58,2,FALSE)=0,\"\",VLOOKUP(DA28,'Footnotes list'!$D$9:$E$58,2,FALSE) ) )","v":""},null,null,null,null,{"$f":"IF(TRIM(DF28)=\"\", \"\", IF(VLOOKUP(DF28,'Footnotes list'!$D$9:$E$58,2,FALSE)=0,\"\",VLOOKUP(DF28,'Footnotes list'!$D$9:$E$58,2,FALSE) ) )","v":""},null,null,null,null,{"$f":"IF(TRIM(DK28)=\"\", \"\", IF(VLOOKUP(DK28,'Footnotes list'!$D$9:$E$58,2,FALSE)=0,\"\",VLOOKUP(DK28,'Footnotes list'!$D$9:$E$58,2,FALSE) ) )","v":""},null,null,null,null,{"$f":"IF(TRIM(DP28)=\"\", \"\", IF(VLOOKUP(DP28,'Footnotes list'!$D$9:$E$58,2,FALSE)=0,\"\",VLOOKUP(DP28,'Footnotes list'!$D$9:$E$58,2,FALSE) ) )","v":""},null,null,null,null,{"$f":"IF(TRIM(DU28)=\"\", \"\", IF(VLOOKUP(DU28,'Footnotes list'!$D$9:$E$58,2,FALSE)=0,\"\",VLOOKUP(DU28,'Footnotes list'!$D$9:$E$58,2,FALSE) ) )","v":""},null,null,null,null,{"$f":"IF(TRIM(DZ28)=\"\", \"\", IF(VLOOKUP(DZ28,'Footnotes list'!$D$9:$E$58,2,FALSE)=0,\"\",VLOOKUP(DZ28,'Footnotes list'!$D$9:$E$58,2,FALSE) ) )","v":""},null,null,null,null,{"$f":"IF(TRIM(EE28)=\"\", \"\", IF(VLOOKUP(EE28,'Footnotes list'!$D$9:$E$58,2,FALSE)=0,\"\",VLOOKUP(EE28,'Footnotes list'!$D$9:$E$58,2,FALSE) ) )","v":""},null,null,null,null,{"$f":"IF(TRIM(EJ28)=\"\", \"\", IF(VLOOKUP(EJ28,'Footnotes list'!$D$9:$E$58,2,FALSE)=0,\"\",VLOOKUP(EJ28,'Footnotes list'!$D$9:$E$58,2,FALSE) ) )","v":""},null,null,null,null,{"$f":"IF(TRIM(EO28)=\"\", \"\", IF(VLOOKUP(EO28,'Footnotes list'!$D$9:$E$58,2,FALSE)=0,\"\",VLOOKUP(EO28,'Footnotes list'!$D$9:$E$58,2,FALSE) ) )","v":""},null,null,null,null,{"$f":"IF(TRIM(ET28)=\"\", \"\", IF(VLOOKUP(ET28,'Footnotes list'!$D$9:$E$58,2,FALSE)=0,\"\",VLOOKUP(ET28,'Footnotes list'!$D$9:$E$58,2,FALSE) ) )","v":""},null,null,null,null,{"$f":"IF(TRIM(EY28)=\"\", \"\", IF(VLOOKUP(EY28,'Footnotes list'!$D$9:$E$58,2,FALSE)=0,\"\",VLOOKUP(EY28,'Footnotes list'!$D$9:$E$58,2,FALSE) ) )","v":""}]
[null,null,"C","TOT_EGSS","Total C - Manufacturing, of which:",null,null,null,null,null,{"$f":"IF(TRIM(J29)=\"\", \"\", IF(VLOOKUP(J29,'Footnotes list'!$D$9:$E$58,2,FALSE)=0,\"\",VLOOKUP(J29,'Footnotes list'!$D$9:$E$58,2,FALSE) ) )","v":""},null,null,null,null,{"$f":"IF(TRIM(O29)=\"\", \"\", IF(VLOOKUP(O29,'Footnotes list'!$D$9:$E$58,2,FALSE)=0,\"\",VLOOKUP(O29,'Footnotes list'!$D$9:$E$58,2,FALSE) ) )","v":""},null,null,null,null,{"$f":"IF(TRIM(T29)=\"\", \"\", IF(VLOOKUP(T29,'Footnotes list'!$D$9:$E$58,2,FALSE)=0,\"\",VLOOKUP(T29,'Footnotes list'!$D$9:$E$58,2,FALSE) ) )","v":""},null,null,null,null,{"$f":"IF(TRIM(Y29)=\"\", \"\", IF(VLOOKUP(Y29,'Footnotes list'!$D$9:$E$58,2,FALSE)=0,\"\",VLOOKUP(Y29,'Footnotes list'!$D$9:$E$58,2,FALSE) ) )","v":""},null,null,null,null,{"$f":"IF(TRIM(AD29)=\"\", \"\", IF(VLOOKUP(AD29,'Footnotes list'!$D$9:$E$58,2,FALSE)=0,\"\",VLOOKUP(AD29,'Footnotes list'!$D$9:$E$58,2,FALSE) ) )","v":""},null,null,null,null,{"$f":"IF(TRIM(AI29)=\"\", \"\", IF(VLOOKUP(AI29,'Footnotes list'!$D$9:$E$58,2,FALSE)=0,\"\",VLOOKUP(AI29,'Footnotes list'!$D$9:$E$58,2,FALSE) ) )","v":""},null,null,null,null,{"$f":"IF(TRIM(AN29)=\"\", \"\", IF(VLOOKUP(AN29,'Footnotes list'!$D$9:$E$58,2,FALSE)=0,\"\",VLOOKUP(AN29,'Footnotes list'!$D$9:$E$58,2,FALSE) ) )","v":""},null,null,null,null,{"$f":"IF(TRIM(AS29)=\"\", \"\", IF(VLOOKUP(AS29,'Footnotes list'!$D$9:$E$58,2,FALSE)=0,\"\",VLOOKUP(AS29,'Footnotes list'!$D$9:$E$58,2,FALSE) ) )","v":""},null,null,null,null,{"$f":"IF(TRIM(AX29)=\"\", \"\", IF(VLOOKUP(AX29,'Footnotes list'!$D$9:$E$58,2,FALSE)=0,\"\",VLOOKUP(AX29,'Footnotes list'!$D$9:$E$58,2,FALSE) ) )","v":""},null,null,null,null,{"$f":"IF(TRIM(BC29)=\"\", \"\", IF(VLOOKUP(BC29,'Footnotes list'!$D$9:$E$58,2,FALSE)=0,\"\",VLOOKUP(BC29,'Footnotes list'!$D$9:$E$58,2,FALSE) ) )","v":""},null,null,null,null,{"$f":"IF(TRIM(BH29)=\"\", \"\", IF(VLOOKUP(BH29,'Footnotes list'!$D$9:$E$58,2,FALSE)=0,\"\",VLOOKUP(BH29,'Footnotes list'!$D$9:$E$58,2,FALSE) ) )","v":""},null,null,null,null,{"$f":"IF(TRIM(BM29)=\"\", \"\", IF(VLOOKUP(BM29,'Footnotes list'!$D$9:$E$58,2,FALSE)=0,\"\",VLOOKUP(BM29,'Footnotes list'!$D$9:$E$58,2,FALSE) ) )","v":""},null,null,null,null,{"$f":"IF(TRIM(BR29)=\"\", \"\", IF(VLOOKUP(BR29,'Footnotes list'!$D$9:$E$58,2,FALSE)=0,\"\",VLOOKUP(BR29,'Footnotes list'!$D$9:$E$58,2,FALSE) ) )","v":""},null,null,null,null,{"$f":"IF(TRIM(BW29)=\"\", \"\", IF(VLOOKUP(BW29,'Footnotes list'!$D$9:$E$58,2,FALSE)=0,\"\",VLOOKUP(BW29,'Footnotes list'!$D$9:$E$58,2,FALSE) ) )","v":""},null,null,null,null,{"$f":"IF(TRIM(CB29)=\"\", \"\", IF(VLOOKUP(CB29,'Footnotes list'!$D$9:$E$58,2,FALSE)=0,\"\",VLOOKUP(CB29,'Footnotes list'!$D$9:$E$58,2,FALSE) ) )","v":""},null,null,null,null,{"$f":"IF(TRIM(CG29)=\"\", \"\", IF(VLOOKUP(CG29,'Footnotes list'!$D$9:$E$58,2,FALSE)=0,\"\",VLOOKUP(CG29,'Footnotes list'!$D$9:$E$58,2,FALSE) ) )","v":""},null,null,null,null,{"$f":"IF(TRIM(CL29)=\"\", \"\", IF(VLOOKUP(CL29,'Footnotes list'!$D$9:$E$58,2,FALSE)=0,\"\",VLOOKUP(CL29,'Footnotes list'!$D$9:$E$58,2,FALSE) ) )","v":""},null,null,null,null,{"$f":"IF(TRIM(CQ29)=\"\", \"\", IF(VLOOKUP(CQ29,'Footnotes list'!$D$9:$E$58,2,FALSE)=0,\"\",VLOOKUP(CQ29,'Footnotes list'!$D$9:$E$58,2,FALSE) ) )","v":""},null,null,null,null,{"$f":"IF(TRIM(CV29)=\"\", \"\", IF(VLOOKUP(CV29,'Footnotes list'!$D$9:$E$58,2,FALSE)=0,\"\",VLOOKUP(CV29,'Footnotes list'!$D$9:$E$58,2,FALSE) ) )","v":""},null,null,null,null,{"$f":"IF(TRIM(DA29)=\"\", \"\", IF(VLOOKUP(DA29,'Footnotes list'!$D$9:$E$58,2,FALSE)=0,\"\",VLOOKUP(DA29,'Footnotes list'!$D$9:$E$58,2,FALSE) ) )","v":""},null,null,null,null,{"$f":"IF(TRIM(DF29)=\"\", \"\", IF(VLOOKUP(DF29,'Footnotes list'!$D$9:$E$58,2,FALSE)=0,\"\",VLOOKUP(DF29,'Footnotes list'!$D$9:$E$58,2,FALSE) ) )","v":""},null,null,null,null,{"$f":"IF(TRIM(DK29)=\"\", \"\", IF(VLOOKUP(DK29,'Footnotes list'!$D$9:$E$58,2,FALSE)=0,\"\",VLOOKUP(DK29,'Footnotes list'!$D$9:$E$58,2,FALSE) ) )","v":""},null,null,null,null,{"$f":"IF(TRIM(DP29)=\"\", \"\", IF(VLOOKUP(DP29,'Footnotes list'!$D$9:$E$58,2,FALSE)=0,\"\",VLOOKUP(DP29,'Footnotes list'!$D$9:$E$58,2,FALSE) ) )","v":""},null,null,null,null,{"$f":"IF(TRIM(DU29)=\"\", \"\", IF(VLOOKUP(DU29,'Footnotes list'!$D$9:$E$58,2,FALSE)=0,\"\",VLOOKUP(DU29,'Footnotes list'!$D$9:$E$58,2,FALSE) ) )","v":""},null,null,null,null,{"$f":"IF(TRIM(DZ29)=\"\", \"\", IF(VLOOKUP(DZ29,'Footnotes list'!$D$9:$E$58,2,FALSE)=0,\"\",VLOOKUP(DZ29,'Footnotes list'!$D$9:$E$58,2,FALSE) ) )","v":""},null,null,null,null,{"$f":"IF(TRIM(EE29)=\"\", \"\", IF(VLOOKUP(EE29,'Footnotes list'!$D$9:$E$58,2,FALSE)=0,\"\",VLOOKUP(EE29,'Footnotes list'!$D$9:$E$58,2,FALSE) ) )","v":""},null,null,null,null,{"$f":"IF(TRIM(EJ29)=\"\", \"\", IF(VLOOKUP(EJ29,'Footnotes list'!$D$9:$E$58,2,FALSE)=0,\"\",VLOOKUP(EJ29,'Footnotes list'!$D$9:$E$58,2,FALSE) ) )","v":""},null,null,null,null,{"$f":"IF(TRIM(EO29)=\"\", \"\", IF(VLOOKUP(EO29,'Footnotes list'!$D$9:$E$58,2,FALSE)=0,\"\",VLOOKUP(EO29,'Footnotes list'!$D$9:$E$58,2,FALSE) ) )","v":""},null,null,null,null,{"$f":"IF(TRIM(ET29)=\"\", \"\", IF(VLOOKUP(ET29,'Footnotes list'!$D$9:$E$58,2,FALSE)=0,\"\",VLOOKUP(ET29,'Footnotes list'!$D$9:$E$58,2,FALSE) ) )","v":""},null,null,null,null,{"$f":"IF(TRIM(EY29)=\"\", \"\", IF(VLOOKUP(EY29,'Footnotes list'!$D$9:$E$58,2,FALSE)=0,\"\",VLOOKUP(EY29,'Footnotes list'!$D$9:$E$58,2,FALSE) ) )","v":""}]
[null,null,"C","ANC","ancillary activities",null,null,null,null,null,{"$f":"IF(TRIM(J30)=\"\", \"\", IF(VLOOKUP(J30,'Footnotes list'!$D$9:$E$58,2,FALSE)=0,\"\",VLOOKUP(J30,'Footnotes list'!$D$9:$E$58,2,FALSE) ) )","v":""},null,null,null,null,{"$f":"IF(TRIM(O30)=\"\", \"\", IF(VLOOKUP(O30,'Footnotes list'!$D$9:$E$58,2,FALSE)=0,\"\",VLOOKUP(O30,'Footnotes list'!$D$9:$E$58,2,FALSE) ) )","v":""},null,null,null,null,{"$f":"IF(TRIM(T30)=\"\", \"\", IF(VLOOKUP(T30,'Footnotes list'!$D$9:$E$58,2,FALSE)=0,\"\",VLOOKUP(T30,'Footnotes list'!$D$9:$E$58,2,FALSE) ) )","v":""},null,null,null,null,{"$f":"IF(TRIM(Y30)=\"\", \"\", IF(VLOOKUP(Y30,'Footnotes list'!$D$9:$E$58,2,FALSE)=0,\"\",VLOOKUP(Y30,'Footnotes list'!$D$9:$E$58,2,FALSE) ) )","v":""},null,null,null,null,{"$f":"IF(TRIM(AD30)=\"\", \"\", IF(VLOOKUP(AD30,'Footnotes list'!$D$9:$E$58,2,FALSE)=0,\"\",VLOOKUP(AD30,'Footnotes list'!$D$9:$E$58,2,FALSE) ) )","v":""},null,null,null,null,{"$f":"IF(TRIM(AI30)=\"\", \"\", IF(VLOOKUP(AI30,'Footnotes list'!$D$9:$E$58,2,FALSE)=0,\"\",VLOOKUP(AI30,'Footnotes list'!$D$9:$E$58,2,FALSE) ) )","v":""},null,null,null,null,{"$f":"IF(TRIM(AN30)=\"\", \"\", IF(VLOOKUP(AN30,'Footnotes list'!$D$9:$E$58,2,FALSE)=0,\"\",VLOOKUP(AN30,'Footnotes list'!$D$9:$E$58,2,FALSE) ) )","v":""},null,null,null,null,{"$f":"IF(TRIM(AS30)=\"\", \"\", IF(VLOOKUP(AS30,'Footnotes list'!$D$9:$E$58,2,FALSE)=0,\"\",VLOOKUP(AS30,'Footnotes list'!$D$9:$E$58,2,FALSE) ) )","v":""},null,null,null,null,{"$f":"IF(TRIM(AX30)=\"\", \"\", IF(VLOOKUP(AX30,'Footnotes list'!$D$9:$E$58,2,FALSE)=0,\"\",VLOOKUP(AX30,'Footnotes list'!$D$9:$E$58,2,FALSE) ) )","v":""},null,null,null,null,{"$f":"IF(TRIM(BC30)=\"\", \"\", IF(VLOOKUP(BC30,'Footnotes list'!$D$9:$E$58,2,FALSE)=0,\"\",VLOOKUP(BC30,'Footnotes list'!$D$9:$E$58,2,FALSE) ) )","v":""},null,null,null,null,{"$f":"IF(TRIM(BH30)=\"\", \"\", IF(VLOOKUP(BH30,'Footnotes list'!$D$9:$E$58,2,FALSE)=0,\"\",VLOOKUP(BH30,'Footnotes list'!$D$9:$E$58,2,FALSE) ) )","v":""},null,null,null,null,{"$f":"IF(TRIM(BM30)=\"\", \"\", IF(VLOOKUP(BM30,'Footnotes list'!$D$9:$E$58,2,FALSE)=0,\"\",VLOOKUP(BM30,'Footnotes list'!$D$9:$E$58,2,FALSE) ) )","v":""},null,null,null,null,{"$f":"IF(TRIM(BR30)=\"\", \"\", IF(VLOOKUP(BR30,'Footnotes list'!$D$9:$E$58,2,FALSE)=0,\"\",VLOOKUP(BR30,'Footnotes list'!$D$9:$E$58,2,FALSE) ) )","v":""},null,null,null,null,{"$f":"IF(TRIM(BW30)=\"\", \"\", IF(VLOOKUP(BW30,'Footnotes list'!$D$9:$E$58,2,FALSE)=0,\"\",VLOOKUP(BW30,'Footnotes list'!$D$9:$E$58,2,FALSE) ) )","v":""},null,null,null,null,{"$f":"IF(TRIM(CB30)=\"\", \"\", IF(VLOOKUP(CB30,'Footnotes list'!$D$9:$E$58,2,FALSE)=0,\"\",VLOOKUP(CB30,'Footnotes list'!$D$9:$E$58,2,FALSE) ) )","v":""},null,null,null,null,{"$f":"IF(TRIM(CG30)=\"\", \"\", IF(VLOOKUP(CG30,'Footnotes list'!$D$9:$E$58,2,FALSE)=0,\"\",VLOOKUP(CG30,'Footnotes list'!$D$9:$E$58,2,FALSE) ) )","v":""},null,null,null,null,{"$f":"IF(TRIM(CL30)=\"\", \"\", IF(VLOOKUP(CL30,'Footnotes list'!$D$9:$E$58,2,FALSE)=0,\"\",VLOOKUP(CL30,'Footnotes list'!$D$9:$E$58,2,FALSE) ) )","v":""},null,null,null,null,{"$f":"IF(TRIM(CQ30)=\"\", \"\", IF(VLOOKUP(CQ30,'Footnotes list'!$D$9:$E$58,2,FALSE)=0,\"\",VLOOKUP(CQ30,'Footnotes list'!$D$9:$E$58,2,FALSE) ) )","v":""},null,null,null,null,{"$f":"IF(TRIM(CV30)=\"\", \"\", IF(VLOOKUP(CV30,'Footnotes list'!$D$9:$E$58,2,FALSE)=0,\"\",VLOOKUP(CV30,'Footnotes list'!$D$9:$E$58,2,FALSE) ) )","v":""},null,null,null,null,{"$f":"IF(TRIM(DA30)=\"\", \"\", IF(VLOOKUP(DA30,'Footnotes list'!$D$9:$E$58,2,FALSE)=0,\"\",VLOOKUP(DA30,'Footnotes list'!$D$9:$E$58,2,FALSE) ) )","v":""},null,null,null,null,{"$f":"IF(TRIM(DF30)=\"\", \"\", IF(VLOOKUP(DF30,'Footnotes list'!$D$9:$E$58,2,FALSE)=0,\"\",VLOOKUP(DF30,'Footnotes list'!$D$9:$E$58,2,FALSE) ) )","v":""},null,null,null,null,{"$f":"IF(TRIM(DK30)=\"\", \"\", IF(VLOOKUP(DK30,'Footnotes list'!$D$9:$E$58,2,FALSE)=0,\"\",VLOOKUP(DK30,'Footnotes list'!$D$9:$E$58,2,FALSE) ) )","v":""},null,null,null,null,{"$f":"IF(TRIM(DP30)=\"\", \"\", IF(VLOOKUP(DP30,'Footnotes list'!$D$9:$E$58,2,FALSE)=0,\"\",VLOOKUP(DP30,'Footnotes list'!$D$9:$E$58,2,FALSE) ) )","v":""},null,null,null,null,{"$f":"IF(TRIM(DU30)=\"\", \"\", IF(VLOOKUP(DU30,'Footnotes list'!$D$9:$E$58,2,FALSE)=0,\"\",VLOOKUP(DU30,'Footnotes list'!$D$9:$E$58,2,FALSE) ) )","v":""},null,null,null,null,{"$f":"IF(TRIM(DZ30)=\"\", \"\", IF(VLOOKUP(DZ30,'Footnotes list'!$D$9:$E$58,2,FALSE)=0,\"\",VLOOKUP(DZ30,'Footnotes list'!$D$9:$E$58,2,FALSE) ) )","v":""},null,null,null,null,{"$f":"IF(TRIM(EE30)=\"\", \"\", IF(VLOOKUP(EE30,'Footnotes list'!$D$9:$E$58,2,FALSE)=0,\"\",VLOOKUP(EE30,'Footnotes list'!$D$9:$E$58,2,FALSE) ) )","v":""},null,null,null,null,{"$f":"IF(TRIM(EJ30)=\"\", \"\", IF(VLOOKUP(EJ30,'Footnotes list'!$D$9:$E$58,2,FALSE)=0,\"\",VLOOKUP(EJ30,'Footnotes list'!$D$9:$E$58,2,FALSE) ) )","v":""},null,null,null,null,{"$f":"IF(TRIM(EO30)=\"\", \"\", IF(VLOOKUP(EO30,'Footnotes list'!$D$9:$E$58,2,FALSE)=0,\"\",VLOOKUP(EO30,'Footnotes list'!$D$9:$E$58,2,FALSE) ) )","v":""},null,null,null,null,{"$f":"IF(TRIM(ET30)=\"\", \"\", IF(VLOOKUP(ET30,'Footnotes list'!$D$9:$E$58,2,FALSE)=0,\"\",VLOOKUP(ET30,'Footnotes list'!$D$9:$E$58,2,FALSE) ) )","v":""},null,null,null,null,{"$f":"IF(TRIM(EY30)=\"\", \"\", IF(VLOOKUP(EY30,'Footnotes list'!$D$9:$E$58,2,FALSE)=0,\"\",VLOOKUP(EY30,'Footnotes list'!$D$9:$E$58,2,FALSE) ) )","v":""}]
[null,null,"C","NMKT","non-market activities",null,null,null,null,null,{"$f":"IF(TRIM(J31)=\"\", \"\", IF(VLOOKUP(J31,'Footnotes list'!$D$9:$E$58,2,FALSE)=0,\"\",VLOOKUP(J31,'Footnotes list'!$D$9:$E$58,2,FALSE) ) )","v":""},null,null,null,null,{"$f":"IF(TRIM(O31)=\"\", \"\", IF(VLOOKUP(O31,'Footnotes list'!$D$9:$E$58,2,FALSE)=0,\"\",VLOOKUP(O31,'Footnotes list'!$D$9:$E$58,2,FALSE) ) )","v":""},null,null,null,null,{"$f":"IF(TRIM(T31)=\"\", \"\", IF(VLOOKUP(T31,'Footnotes list'!$D$9:$E$58,2,FALSE)=0,\"\",VLOOKUP(T31,'Footnotes list'!$D$9:$E$58,2,FALSE) ) )","v":""},null,null,null,null,{"$f":"IF(TRIM(Y31)=\"\", \"\", IF(VLOOKUP(Y31,'Footnotes list'!$D$9:$E$58,2,FALSE)=0,\"\",VLOOKUP(Y31,'Footnotes list'!$D$9:$E$58,2,FALSE) ) )","v":""},null,null,null,null,{"$f":"IF(TRIM(AD31)=\"\", \"\", IF(VLOOKUP(AD31,'Footnotes list'!$D$9:$E$58,2,FALSE)=0,\"\",VLOOKUP(AD31,'Footnotes list'!$D$9:$E$58,2,FALSE) ) )","v":""},null,null,null,null,{"$f":"IF(TRIM(AI31)=\"\", \"\", IF(VLOOKUP(AI31,'Footnotes list'!$D$9:$E$58,2,FALSE)=0,\"\",VLOOKUP(AI31,'Footnotes list'!$D$9:$E$58,2,FALSE) ) )","v":""},null,null,null,null,{"$f":"IF(TRIM(AN31)=\"\", \"\", IF(VLOOKUP(AN31,'Footnotes list'!$D$9:$E$58,2,FALSE)=0,\"\",VLOOKUP(AN31,'Footnotes list'!$D$9:$E$58,2,FALSE) ) )","v":""},null,null,null,null,{"$f":"IF(TRIM(AS31)=\"\", \"\", IF(VLOOKUP(AS31,'Footnotes list'!$D$9:$E$58,2,FALSE)=0,\"\",VLOOKUP(AS31,'Footnotes list'!$D$9:$E$58,2,FALSE) ) )","v":""},null,null,null,null,{"$f":"IF(TRIM(AX31)=\"\", \"\", IF(VLOOKUP(AX31,'Footnotes list'!$D$9:$E$58,2,FALSE)=0,\"\",VLOOKUP(AX31,'Footnotes list'!$D$9:$E$58,2,FALSE) ) )","v":""},null,null,null,null,{"$f":"IF(TRIM(BC31)=\"\", \"\", IF(VLOOKUP(BC31,'Footnotes list'!$D$9:$E$58,2,FALSE)=0,\"\",VLOOKUP(BC31,'Footnotes list'!$D$9:$E$58,2,FALSE) ) )","v":""},null,null,null,null,{"$f":"IF(TRIM(BH31)=\"\", \"\", IF(VLOOKUP(BH31,'Footnotes list'!$D$9:$E$58,2,FALSE)=0,\"\",VLOOKUP(BH31,'Footnotes list'!$D$9:$E$58,2,FALSE) ) )","v":""},null,null,null,null,{"$f":"IF(TRIM(BM31)=\"\", \"\", IF(VLOOKUP(BM31,'Footnotes list'!$D$9:$E$58,2,FALSE)=0,\"\",VLOOKUP(BM31,'Footnotes list'!$D$9:$E$58,2,FALSE) ) )","v":""},null,null,null,null,{"$f":"IF(TRIM(BR31)=\"\", \"\", IF(VLOOKUP(BR31,'Footnotes list'!$D$9:$E$58,2,FALSE)=0,\"\",VLOOKUP(BR31,'Footnotes list'!$D$9:$E$58,2,FALSE) ) )","v":""},null,null,null,null,{"$f":"IF(TRIM(BW31)=\"\", \"\", IF(VLOOKUP(BW31,'Footnotes list'!$D$9:$E$58,2,FALSE)=0,\"\",VLOOKUP(BW31,'Footnotes list'!$D$9:$E$58,2,FALSE) ) )","v":""},null,null,null,null,{"$f":"IF(TRIM(CB31)=\"\", \"\", IF(VLOOKUP(CB31,'Footnotes list'!$D$9:$E$58,2,FALSE)=0,\"\",VLOOKUP(CB31,'Footnotes list'!$D$9:$E$58,2,FALSE) ) )","v":""},null,null,null,null,{"$f":"IF(TRIM(CG31)=\"\", \"\", IF(VLOOKUP(CG31,'Footnotes list'!$D$9:$E$58,2,FALSE)=0,\"\",VLOOKUP(CG31,'Footnotes list'!$D$9:$E$58,2,FALSE) ) )","v":""},null,null,null,null,{"$f":"IF(TRIM(CL31)=\"\", \"\", IF(VLOOKUP(CL31,'Footnotes list'!$D$9:$E$58,2,FALSE)=0,\"\",VLOOKUP(CL31,'Footnotes list'!$D$9:$E$58,2,FALSE) ) )","v":""},null,null,null,null,{"$f":"IF(TRIM(CQ31)=\"\", \"\", IF(VLOOKUP(CQ31,'Footnotes list'!$D$9:$E$58,2,FALSE)=0,\"\",VLOOKUP(CQ31,'Footnotes list'!$D$9:$E$58,2,FALSE) ) )","v":""},null,null,null,null,{"$f":"IF(TRIM(CV31)=\"\", \"\", IF(VLOOKUP(CV31,'Footnotes list'!$D$9:$E$58,2,FALSE)=0,\"\",VLOOKUP(CV31,'Footnotes list'!$D$9:$E$58,2,FALSE) ) )","v":""},null,null,null,null,{"$f":"IF(TRIM(DA31)=\"\", \"\", IF(VLOOKUP(DA31,'Footnotes list'!$D$9:$E$58,2,FALSE)=0,\"\",VLOOKUP(DA31,'Footnotes list'!$D$9:$E$58,2,FALSE) ) )","v":""},null,null,null,null,{"$f":"IF(TRIM(DF31)=\"\", \"\", IF(VLOOKUP(DF31,'Footnotes list'!$D$9:$E$58,2,FALSE)=0,\"\",VLOOKUP(DF31,'Footnotes list'!$D$9:$E$58,2,FALSE) ) )","v":""},null,null,null,null,{"$f":"IF(TRIM(DK31)=\"\", \"\", IF(VLOOKUP(DK31,'Footnotes list'!$D$9:$E$58,2,FALSE)=0,\"\",VLOOKUP(DK31,'Footnotes list'!$D$9:$E$58,2,FALSE) ) )","v":""},null,null,null,null,{"$f":"IF(TRIM(DP31)=\"\", \"\", IF(VLOOKUP(DP31,'Footnotes list'!$D$9:$E$58,2,FALSE)=0,\"\",VLOOKUP(DP31,'Footnotes list'!$D$9:$E$58,2,FALSE) ) )","v":""},null,null,null,null,{"$f":"IF(TRIM(DU31)=\"\", \"\", IF(VLOOKUP(DU31,'Footnotes list'!$D$9:$E$58,2,FALSE)=0,\"\",VLOOKUP(DU31,'Footnotes list'!$D$9:$E$58,2,FALSE) ) )","v":""},null,null,null,null,{"$f":"IF(TRIM(DZ31)=\"\", \"\", IF(VLOOKUP(DZ31,'Footnotes list'!$D$9:$E$58,2,FALSE)=0,\"\",VLOOKUP(DZ31,'Footnotes list'!$D$9:$E$58,2,FALSE) ) )","v":""},null,null,null,null,{"$f":"IF(TRIM(EE31)=\"\", \"\", IF(VLOOKUP(EE31,'Footnotes list'!$D$9:$E$58,2,FALSE)=0,\"\",VLOOKUP(EE31,'Footnotes list'!$D$9:$E$58,2,FALSE) ) )","v":""},null,null,null,null,{"$f":"IF(TRIM(EJ31)=\"\", \"\", IF(VLOOKUP(EJ31,'Footnotes list'!$D$9:$E$58,2,FALSE)=0,\"\",VLOOKUP(EJ31,'Footnotes list'!$D$9:$E$58,2,FALSE) ) )","v":""},null,null,null,null,{"$f":"IF(TRIM(EO31)=\"\", \"\", IF(VLOOKUP(EO31,'Footnotes list'!$D$9:$E$58,2,FALSE)=0,\"\",VLOOKUP(EO31,'Footnotes list'!$D$9:$E$58,2,FALSE) ) )","v":""},null,null,null,null,{"$f":"IF(TRIM(ET31)=\"\", \"\", IF(VLOOKUP(ET31,'Footnotes list'!$D$9:$E$58,2,FALSE)=0,\"\",VLOOKUP(ET31,'Footnotes list'!$D$9:$E$58,2,FALSE) ) )","v":""},null,null,null,null,{"$f":"IF(TRIM(EY31)=\"\", \"\", IF(VLOOKUP(EY31,'Footnotes list'!$D$9:$E$58,2,FALSE)=0,\"\",VLOOKUP(EY31,'Footnotes list'!$D$9:$E$58,2,FALSE) ) )","v":""}]
[null,null,"C","OWN_USE","activities for own final use",null,null,null,null,null,{"$f":"IF(TRIM(J32)=\"\", \"\", IF(VLOOKUP(J32,'Footnotes list'!$D$9:$E$58,2,FALSE)=0,\"\",VLOOKUP(J32,'Footnotes list'!$D$9:$E$58,2,FALSE) ) )","v":""},null,null,null,null,{"$f":"IF(TRIM(O32)=\"\", \"\", IF(VLOOKUP(O32,'Footnotes list'!$D$9:$E$58,2,FALSE)=0,\"\",VLOOKUP(O32,'Footnotes list'!$D$9:$E$58,2,FALSE) ) )","v":""},null,null,null,null,{"$f":"IF(TRIM(T32)=\"\", \"\", IF(VLOOKUP(T32,'Footnotes list'!$D$9:$E$58,2,FALSE)=0,\"\",VLOOKUP(T32,'Footnotes list'!$D$9:$E$58,2,FALSE) ) )","v":""},null,null,null,null,{"$f":"IF(TRIM(Y32)=\"\", \"\", IF(VLOOKUP(Y32,'Footnotes list'!$D$9:$E$58,2,FALSE)=0,\"\",VLOOKUP(Y32,'Footnotes list'!$D$9:$E$58,2,FALSE) ) )","v":""},null,null,null,null,{"$f":"IF(TRIM(AD32)=\"\", \"\", IF(VLOOKUP(AD32,'Footnotes list'!$D$9:$E$58,2,FALSE)=0,\"\",VLOOKUP(AD32,'Footnotes list'!$D$9:$E$58,2,FALSE) ) )","v":""},null,null,null,null,{"$f":"IF(TRIM(AI32)=\"\", \"\", IF(VLOOKUP(AI32,'Footnotes list'!$D$9:$E$58,2,FALSE)=0,\"\",VLOOKUP(AI32,'Footnotes list'!$D$9:$E$58,2,FALSE) ) )","v":""},null,null,null,null,{"$f":"IF(TRIM(AN32)=\"\", \"\", IF(VLOOKUP(AN32,'Footnotes list'!$D$9:$E$58,2,FALSE)=0,\"\",VLOOKUP(AN32,'Footnotes list'!$D$9:$E$58,2,FALSE) ) )","v":""},null,null,null,null,{"$f":"IF(TRIM(AS32)=\"\", \"\", IF(VLOOKUP(AS32,'Footnotes list'!$D$9:$E$58,2,FALSE)=0,\"\",VLOOKUP(AS32,'Footnotes list'!$D$9:$E$58,2,FALSE) ) )","v":""},null,null,null,null,{"$f":"IF(TRIM(AX32)=\"\", \"\", IF(VLOOKUP(AX32,'Footnotes list'!$D$9:$E$58,2,FALSE)=0,\"\",VLOOKUP(AX32,'Footnotes list'!$D$9:$E$58,2,FALSE) ) )","v":""},null,null,null,null,{"$f":"IF(TRIM(BC32)=\"\", \"\", IF(VLOOKUP(BC32,'Footnotes list'!$D$9:$E$58,2,FALSE)=0,\"\",VLOOKUP(BC32,'Footnotes list'!$D$9:$E$58,2,FALSE) ) )","v":""},null,null,null,null,{"$f":"IF(TRIM(BH32)=\"\", \"\", IF(VLOOKUP(BH32,'Footnotes list'!$D$9:$E$58,2,FALSE)=0,\"\",VLOOKUP(BH32,'Footnotes list'!$D$9:$E$58,2,FALSE) ) )","v":""},null,null,null,null,{"$f":"IF(TRIM(BM32)=\"\", \"\", IF(VLOOKUP(BM32,'Footnotes list'!$D$9:$E$58,2,FALSE)=0,\"\",VLOOKUP(BM32,'Footnotes list'!$D$9:$E$58,2,FALSE) ) )","v":""},null,null,null,null,{"$f":"IF(TRIM(BR32)=\"\", \"\", IF(VLOOKUP(BR32,'Footnotes list'!$D$9:$E$58,2,FALSE)=0,\"\",VLOOKUP(BR32,'Footnotes list'!$D$9:$E$58,2,FALSE) ) )","v":""},null,null,null,null,{"$f":"IF(TRIM(BW32)=\"\", \"\", IF(VLOOKUP(BW32,'Footnotes list'!$D$9:$E$58,2,FALSE)=0,\"\",VLOOKUP(BW32,'Footnotes list'!$D$9:$E$58,2,FALSE) ) )","v":""},null,null,null,null,{"$f":"IF(TRIM(CB32)=\"\", \"\", IF(VLOOKUP(CB32,'Footnotes list'!$D$9:$E$58,2,FALSE)=0,\"\",VLOOKUP(CB32,'Footnotes list'!$D$9:$E$58,2,FALSE) ) )","v":""},null,null,null,null,{"$f":"IF(TRIM(CG32)=\"\", \"\", IF(VLOOKUP(CG32,'Footnotes list'!$D$9:$E$58,2,FALSE)=0,\"\",VLOOKUP(CG32,'Footnotes list'!$D$9:$E$58,2,FALSE) ) )","v":""},null,null,null,null,{"$f":"IF(TRIM(CL32)=\"\", \"\", IF(VLOOKUP(CL32,'Footnotes list'!$D$9:$E$58,2,FALSE)=0,\"\",VLOOKUP(CL32,'Footnotes list'!$D$9:$E$58,2,FALSE) ) )","v":""},null,null,null,null,{"$f":"IF(TRIM(CQ32)=\"\", \"\", IF(VLOOKUP(CQ32,'Footnotes list'!$D$9:$E$58,2,FALSE)=0,\"\",VLOOKUP(CQ32,'Footnotes list'!$D$9:$E$58,2,FALSE) ) )","v":""},null,null,null,null,{"$f":"IF(TRIM(CV32)=\"\", \"\", IF(VLOOKUP(CV32,'Footnotes list'!$D$9:$E$58,2,FALSE)=0,\"\",VLOOKUP(CV32,'Footnotes list'!$D$9:$E$58,2,FALSE) ) )","v":""},null,null,null,null,{"$f":"IF(TRIM(DA32)=\"\", \"\", IF(VLOOKUP(DA32,'Footnotes list'!$D$9:$E$58,2,FALSE)=0,\"\",VLOOKUP(DA32,'Footnotes list'!$D$9:$E$58,2,FALSE) ) )","v":""},null,null,null,null,{"$f":"IF(TRIM(DF32)=\"\", \"\", IF(VLOOKUP(DF32,'Footnotes list'!$D$9:$E$58,2,FALSE)=0,\"\",VLOOKUP(DF32,'Footnotes list'!$D$9:$E$58,2,FALSE) ) )","v":""},null,null,null,null,{"$f":"IF(TRIM(DK32)=\"\", \"\", IF(VLOOKUP(DK32,'Footnotes list'!$D$9:$E$58,2,FALSE)=0,\"\",VLOOKUP(DK32,'Footnotes list'!$D$9:$E$58,2,FALSE) ) )","v":""},null,null,null,null,{"$f":"IF(TRIM(DP32)=\"\", \"\", IF(VLOOKUP(DP32,'Footnotes list'!$D$9:$E$58,2,FALSE)=0,\"\",VLOOKUP(DP32,'Footnotes list'!$D$9:$E$58,2,FALSE) ) )","v":""},null,null,null,null,{"$f":"IF(TRIM(DU32)=\"\", \"\", IF(VLOOKUP(DU32,'Footnotes list'!$D$9:$E$58,2,FALSE)=0,\"\",VLOOKUP(DU32,'Footnotes list'!$D$9:$E$58,2,FALSE) ) )","v":""},null,null,null,null,{"$f":"IF(TRIM(DZ32)=\"\", \"\", IF(VLOOKUP(DZ32,'Footnotes list'!$D$9:$E$58,2,FALSE)=0,\"\",VLOOKUP(DZ32,'Footnotes list'!$D$9:$E$58,2,FALSE) ) )","v":""},null,null,null,null,{"$f":"IF(TRIM(EE32)=\"\", \"\", IF(VLOOKUP(EE32,'Footnotes list'!$D$9:$E$58,2,FALSE)=0,\"\",VLOOKUP(EE32,'Footnotes list'!$D$9:$E$58,2,FALSE) ) )","v":""},null,null,null,null,{"$f":"IF(TRIM(EJ32)=\"\", \"\", IF(VLOOKUP(EJ32,'Footnotes list'!$D$9:$E$58,2,FALSE)=0,\"\",VLOOKUP(EJ32,'Footnotes list'!$D$9:$E$58,2,FALSE) ) )","v":""},null,null,null,null,{"$f":"IF(TRIM(EO32)=\"\", \"\", IF(VLOOKUP(EO32,'Footnotes list'!$D$9:$E$58,2,FALSE)=0,\"\",VLOOKUP(EO32,'Footnotes list'!$D$9:$E$58,2,FALSE) ) )","v":""},null,null,null,null,{"$f":"IF(TRIM(ET32)=\"\", \"\", IF(VLOOKUP(ET32,'Footnotes list'!$D$9:$E$58,2,FALSE)=0,\"\",VLOOKUP(ET32,'Footnotes list'!$D$9:$E$58,2,FALSE) ) )","v":""},null,null,null,null,{"$f":"IF(TRIM(EY32)=\"\", \"\", IF(VLOOKUP(EY32,'Footnotes list'!$D$9:$E$58,2,FALSE)=0,\"\",VLOOKUP(EY32,'Footnotes list'!$D$9:$E$58,2,FALSE) ) )","v":""}]
[null,null,"C","MKT","market activities, including:",null,null,null,null,null,{"$f":"IF(TRIM(J33)=\"\", \"\", IF(VLOOKUP(J33,'Footnotes list'!$D$9:$E$58,2,FALSE)=0,\"\",VLOOKUP(J33,'Footnotes list'!$D$9:$E$58,2,FALSE) ) )","v":""},null,null,null,null,{"$f":"IF(TRIM(O33)=\"\", \"\", IF(VLOOKUP(O33,'Footnotes list'!$D$9:$E$58,2,FALSE)=0,\"\",VLOOKUP(O33,'Footnotes list'!$D$9:$E$58,2,FALSE) ) )","v":""},null,null,null,null,{"$f":"IF(TRIM(T33)=\"\", \"\", IF(VLOOKUP(T33,'Footnotes list'!$D$9:$E$58,2,FALSE)=0,\"\",VLOOKUP(T33,'Footnotes list'!$D$9:$E$58,2,FALSE) ) )","v":""},null,null,null,null,{"$f":"IF(TRIM(Y33)=\"\", \"\", IF(VLOOKUP(Y33,'Footnotes list'!$D$9:$E$58,2,FALSE)=0,\"\",VLOOKUP(Y33,'Footnotes list'!$D$9:$E$58,2,FALSE) ) )","v":""},null,null,null,null,{"$f":"IF(TRIM(AD33)=\"\", \"\", IF(VLOOKUP(AD33,'Footnotes list'!$D$9:$E$58,2,FALSE)=0,\"\",VLOOKUP(AD33,'Footnotes list'!$D$9:$E$58,2,FALSE) ) )","v":""},null,null,null,null,{"$f":"IF(TRIM(AI33)=\"\", \"\", IF(VLOOKUP(AI33,'Footnotes list'!$D$9:$E$58,2,FALSE)=0,\"\",VLOOKUP(AI33,'Footnotes list'!$D$9:$E$58,2,FALSE) ) )","v":""},null,null,null,null,{"$f":"IF(TRIM(AN33)=\"\", \"\", IF(VLOOKUP(AN33,'Footnotes list'!$D$9:$E$58,2,FALSE)=0,\"\",VLOOKUP(AN33,'Footnotes list'!$D$9:$E$58,2,FALSE) ) )","v":""},null,null,null,null,{"$f":"IF(TRIM(AS33)=\"\", \"\", IF(VLOOKUP(AS33,'Footnotes list'!$D$9:$E$58,2,FALSE)=0,\"\",VLOOKUP(AS33,'Footnotes list'!$D$9:$E$58,2,FALSE) ) )","v":""},null,null,null,null,{"$f":"IF(TRIM(AX33)=\"\", \"\", IF(VLOOKUP(AX33,'Footnotes list'!$D$9:$E$58,2,FALSE)=0,\"\",VLOOKUP(AX33,'Footnotes list'!$D$9:$E$58,2,FALSE) ) )","v":""},null,null,null,null,{"$f":"IF(TRIM(BC33)=\"\", \"\", IF(VLOOKUP(BC33,'Footnotes list'!$D$9:$E$58,2,FALSE)=0,\"\",VLOOKUP(BC33,'Footnotes list'!$D$9:$E$58,2,FALSE) ) )","v":""},null,null,null,null,{"$f":"IF(TRIM(BH33)=\"\", \"\", IF(VLOOKUP(BH33,'Footnotes list'!$D$9:$E$58,2,FALSE)=0,\"\",VLOOKUP(BH33,'Footnotes list'!$D$9:$E$58,2,FALSE) ) )","v":""},null,null,null,null,{"$f":"IF(TRIM(BM33)=\"\", \"\", IF(VLOOKUP(BM33,'Footnotes list'!$D$9:$E$58,2,FALSE)=0,\"\",VLOOKUP(BM33,'Footnotes list'!$D$9:$E$58,2,FALSE) ) )","v":""},null,null,null,null,{"$f":"IF(TRIM(BR33)=\"\", \"\", IF(VLOOKUP(BR33,'Footnotes list'!$D$9:$E$58,2,FALSE)=0,\"\",VLOOKUP(BR33,'Footnotes list'!$D$9:$E$58,2,FALSE) ) )","v":""},null,null,null,null,{"$f":"IF(TRIM(BW33)=\"\", \"\", IF(VLOOKUP(BW33,'Footnotes list'!$D$9:$E$58,2,FALSE)=0,\"\",VLOOKUP(BW33,'Footnotes list'!$D$9:$E$58,2,FALSE) ) )","v":""},null,null,null,null,{"$f":"IF(TRIM(CB33)=\"\", \"\", IF(VLOOKUP(CB33,'Footnotes list'!$D$9:$E$58,2,FALSE)=0,\"\",VLOOKUP(CB33,'Footnotes list'!$D$9:$E$58,2,FALSE) ) )","v":""},null,null,null,null,{"$f":"IF(TRIM(CG33)=\"\", \"\", IF(VLOOKUP(CG33,'Footnotes list'!$D$9:$E$58,2,FALSE)=0,\"\",VLOOKUP(CG33,'Footnotes list'!$D$9:$E$58,2,FALSE) ) )","v":""},null,null,null,null,{"$f":"IF(TRIM(CL33)=\"\", \"\", IF(VLOOKUP(CL33,'Footnotes list'!$D$9:$E$58,2,FALSE)=0,\"\",VLOOKUP(CL33,'Footnotes list'!$D$9:$E$58,2,FALSE) ) )","v":""},null,null,null,null,{"$f":"IF(TRIM(CQ33)=\"\", \"\", IF(VLOOKUP(CQ33,'Footnotes list'!$D$9:$E$58,2,FALSE)=0,\"\",VLOOKUP(CQ33,'Footnotes list'!$D$9:$E$58,2,FALSE) ) )","v":""},null,null,null,null,{"$f":"IF(TRIM(CV33)=\"\", \"\", IF(VLOOKUP(CV33,'Footnotes list'!$D$9:$E$58,2,FALSE)=0,\"\",VLOOKUP(CV33,'Footnotes list'!$D$9:$E$58,2,FALSE) ) )","v":""},null,null,null,null,{"$f":"IF(TRIM(DA33)=\"\", \"\", IF(VLOOKUP(DA33,'Footnotes list'!$D$9:$E$58,2,FALSE)=0,\"\",VLOOKUP(DA33,'Footnotes list'!$D$9:$E$58,2,FALSE) ) )","v":""},null,null,null,null,{"$f":"IF(TRIM(DF33)=\"\", \"\", IF(VLOOKUP(DF33,'Footnotes list'!$D$9:$E$58,2,FALSE)=0,\"\",VLOOKUP(DF33,'Footnotes list'!$D$9:$E$58,2,FALSE) ) )","v":""},null,null,null,null,{"$f":"IF(TRIM(DK33)=\"\", \"\", IF(VLOOKUP(DK33,'Footnotes list'!$D$9:$E$58,2,FALSE)=0,\"\",VLOOKUP(DK33,'Footnotes list'!$D$9:$E$58,2,FALSE) ) )","v":""},null,null,null,null,{"$f":"IF(TRIM(DP33)=\"\", \"\", IF(VLOOKUP(DP33,'Footnotes list'!$D$9:$E$58,2,FALSE)=0,\"\",VLOOKUP(DP33,'Footnotes list'!$D$9:$E$58,2,FALSE) ) )","v":""},null,null,null,null,{"$f":"IF(TRIM(DU33)=\"\", \"\", IF(VLOOKUP(DU33,'Footnotes list'!$D$9:$E$58,2,FALSE)=0,\"\",VLOOKUP(DU33,'Footnotes list'!$D$9:$E$58,2,FALSE) ) )","v":""},null,null,null,null,{"$f":"IF(TRIM(DZ33)=\"\", \"\", IF(VLOOKUP(DZ33,'Footnotes list'!$D$9:$E$58,2,FALSE)=0,\"\",VLOOKUP(DZ33,'Footnotes list'!$D$9:$E$58,2,FALSE) ) )","v":""},null,null,null,null,{"$f":"IF(TRIM(EE33)=\"\", \"\", IF(VLOOKUP(EE33,'Footnotes list'!$D$9:$E$58,2,FALSE)=0,\"\",VLOOKUP(EE33,'Footnotes list'!$D$9:$E$58,2,FALSE) ) )","v":""},null,null,null,null,{"$f":"IF(TRIM(EJ33)=\"\", \"\", IF(VLOOKUP(EJ33,'Footnotes list'!$D$9:$E$58,2,FALSE)=0,\"\",VLOOKUP(EJ33,'Footnotes list'!$D$9:$E$58,2,FALSE) ) )","v":""},null,null,null,null,{"$f":"IF(TRIM(EO33)=\"\", \"\", IF(VLOOKUP(EO33,'Footnotes list'!$D$9:$E$58,2,FALSE)=0,\"\",VLOOKUP(EO33,'Footnotes list'!$D$9:$E$58,2,FALSE) ) )","v":""},null,null,null,null,{"$f":"IF(TRIM(ET33)=\"\", \"\", IF(VLOOKUP(ET33,'Footnotes list'!$D$9:$E$58,2,FALSE)=0,\"\",VLOOKUP(ET33,'Footnotes list'!$D$9:$E$58,2,FALSE) ) )","v":""},null,null,null,null,{"$f":"IF(TRIM(EY33)=\"\", \"\", IF(VLOOKUP(EY33,'Footnotes list'!$D$9:$E$58,2,FALSE)=0,\"\",VLOOKUP(EY33,'Footnotes list'!$D$9:$E$58,2,FALSE) ) )","v":""}]
[null,null,"C","ES_CS","environmental specific services",null,null,null,null,null,{"$f":"IF(TRIM(J34)=\"\", \"\", IF(VLOOKUP(J34,'Footnotes list'!$D$9:$E$58,2,FALSE)=0,\"\",VLOOKUP(J34,'Footnotes list'!$D$9:$E$58,2,FALSE) ) )","v":""},null,null,null,null,{"$f":"IF(TRIM(O34)=\"\", \"\", IF(VLOOKUP(O34,'Footnotes list'!$D$9:$E$58,2,FALSE)=0,\"\",VLOOKUP(O34,'Footnotes list'!$D$9:$E$58,2,FALSE) ) )","v":""},null,null,null,null,{"$f":"IF(TRIM(T34)=\"\", \"\", IF(VLOOKUP(T34,'Footnotes list'!$D$9:$E$58,2,FALSE)=0,\"\",VLOOKUP(T34,'Footnotes list'!$D$9:$E$58,2,FALSE) ) )","v":""},null,null,null,null,{"$f":"IF(TRIM(Y34)=\"\", \"\", IF(VLOOKUP(Y34,'Footnotes list'!$D$9:$E$58,2,FALSE)=0,\"\",VLOOKUP(Y34,'Footnotes list'!$D$9:$E$58,2,FALSE) ) )","v":""},null,null,null,null,{"$f":"IF(TRIM(AD34)=\"\", \"\", IF(VLOOKUP(AD34,'Footnotes list'!$D$9:$E$58,2,FALSE)=0,\"\",VLOOKUP(AD34,'Footnotes list'!$D$9:$E$58,2,FALSE) ) )","v":""},null,null,null,null,{"$f":"IF(TRIM(AI34)=\"\", \"\", IF(VLOOKUP(AI34,'Footnotes list'!$D$9:$E$58,2,FALSE)=0,\"\",VLOOKUP(AI34,'Footnotes list'!$D$9:$E$58,2,FALSE) ) )","v":""},null,null,null,null,{"$f":"IF(TRIM(AN34)=\"\", \"\", IF(VLOOKUP(AN34,'Footnotes list'!$D$9:$E$58,2,FALSE)=0,\"\",VLOOKUP(AN34,'Footnotes list'!$D$9:$E$58,2,FALSE) ) )","v":""},null,null,null,null,{"$f":"IF(TRIM(AS34)=\"\", \"\", IF(VLOOKUP(AS34,'Footnotes list'!$D$9:$E$58,2,FALSE)=0,\"\",VLOOKUP(AS34,'Footnotes list'!$D$9:$E$58,2,FALSE) ) )","v":""},null,null,null,null,{"$f":"IF(TRIM(AX34)=\"\", \"\", IF(VLOOKUP(AX34,'Footnotes list'!$D$9:$E$58,2,FALSE)=0,\"\",VLOOKUP(AX34,'Footnotes list'!$D$9:$E$58,2,FALSE) ) )","v":""},null,null,null,null,{"$f":"IF(TRIM(BC34)=\"\", \"\", IF(VLOOKUP(BC34,'Footnotes list'!$D$9:$E$58,2,FALSE)=0,\"\",VLOOKUP(BC34,'Footnotes list'!$D$9:$E$58,2,FALSE) ) )","v":""},null,null,null,null,{"$f":"IF(TRIM(BH34)=\"\", \"\", IF(VLOOKUP(BH34,'Footnotes list'!$D$9:$E$58,2,FALSE)=0,\"\",VLOOKUP(BH34,'Footnotes list'!$D$9:$E$58,2,FALSE) ) )","v":""},null,null,null,null,{"$f":"IF(TRIM(BM34)=\"\", \"\", IF(VLOOKUP(BM34,'Footnotes list'!$D$9:$E$58,2,FALSE)=0,\"\",VLOOKUP(BM34,'Footnotes list'!$D$9:$E$58,2,FALSE) ) )","v":""},null,null,null,null,{"$f":"IF(TRIM(BR34)=\"\", \"\", IF(VLOOKUP(BR34,'Footnotes list'!$D$9:$E$58,2,FALSE)=0,\"\",VLOOKUP(BR34,'Footnotes list'!$D$9:$E$58,2,FALSE) ) )","v":""},null,null,null,null,{"$f":"IF(TRIM(BW34)=\"\", \"\", IF(VLOOKUP(BW34,'Footnotes list'!$D$9:$E$58,2,FALSE)=0,\"\",VLOOKUP(BW34,'Footnotes list'!$D$9:$E$58,2,FALSE) ) )","v":""},null,null,null,null,{"$f":"IF(TRIM(CB34)=\"\", \"\", IF(VLOOKUP(CB34,'Footnotes list'!$D$9:$E$58,2,FALSE)=0,\"\",VLOOKUP(CB34,'Footnotes list'!$D$9:$E$58,2,FALSE) ) )","v":""},null,null,null,null,{"$f":"IF(TRIM(CG34)=\"\", \"\", IF(VLOOKUP(CG34,'Footnotes list'!$D$9:$E$58,2,FALSE)=0,\"\",VLOOKUP(CG34,'Footnotes list'!$D$9:$E$58,2,FALSE) ) )","v":""},null,null,null,null,{"$f":"IF(TRIM(CL34)=\"\", \"\", IF(VLOOKUP(CL34,'Footnotes list'!$D$9:$E$58,2,FALSE)=0,\"\",VLOOKUP(CL34,'Footnotes list'!$D$9:$E$58,2,FALSE) ) )","v":""},null,null,null,null,{"$f":"IF(TRIM(CQ34)=\"\", \"\", IF(VLOOKUP(CQ34,'Footnotes list'!$D$9:$E$58,2,FALSE)=0,\"\",VLOOKUP(CQ34,'Footnotes list'!$D$9:$E$58,2,FALSE) ) )","v":""},null,null,null,null,{"$f":"IF(TRIM(CV34)=\"\", \"\", IF(VLOOKUP(CV34,'Footnotes list'!$D$9:$E$58,2,FALSE)=0,\"\",VLOOKUP(CV34,'Footnotes list'!$D$9:$E$58,2,FALSE) ) )","v":""},null,null,null,null,{"$f":"IF(TRIM(DA34)=\"\", \"\", IF(VLOOKUP(DA34,'Footnotes list'!$D$9:$E$58,2,FALSE)=0,\"\",VLOOKUP(DA34,'Footnotes list'!$D$9:$E$58,2,FALSE) ) )","v":""},null,null,null,null,{"$f":"IF(TRIM(DF34)=\"\", \"\", IF(VLOOKUP(DF34,'Footnotes list'!$D$9:$E$58,2,FALSE)=0,\"\",VLOOKUP(DF34,'Footnotes list'!$D$9:$E$58,2,FALSE) ) )","v":""},null,null,null,null,{"$f":"IF(TRIM(DK34)=\"\", \"\", IF(VLOOKUP(DK34,'Footnotes list'!$D$9:$E$58,2,FALSE)=0,\"\",VLOOKUP(DK34,'Footnotes list'!$D$9:$E$58,2,FALSE) ) )","v":""},null,null,null,null,{"$f":"IF(TRIM(DP34)=\"\", \"\", IF(VLOOKUP(DP34,'Footnotes list'!$D$9:$E$58,2,FALSE)=0,\"\",VLOOKUP(DP34,'Footnotes list'!$D$9:$E$58,2,FALSE) ) )","v":""},null,null,null,null,{"$f":"IF(TRIM(DU34)=\"\", \"\", IF(VLOOKUP(DU34,'Footnotes list'!$D$9:$E$58,2,FALSE)=0,\"\",VLOOKUP(DU34,'Footnotes list'!$D$9:$E$58,2,FALSE) ) )","v":""},null,null,null,null,{"$f":"IF(TRIM(DZ34)=\"\", \"\", IF(VLOOKUP(DZ34,'Footnotes list'!$D$9:$E$58,2,FALSE)=0,\"\",VLOOKUP(DZ34,'Footnotes list'!$D$9:$E$58,2,FALSE) ) )","v":""},null,null,null,null,{"$f":"IF(TRIM(EE34)=\"\", \"\", IF(VLOOKUP(EE34,'Footnotes list'!$D$9:$E$58,2,FALSE)=0,\"\",VLOOKUP(EE34,'Footnotes list'!$D$9:$E$58,2,FALSE) ) )","v":""},null,null,null,null,{"$f":"IF(TRIM(EJ34)=\"\", \"\", IF(VLOOKUP(EJ34,'Footnotes list'!$D$9:$E$58,2,FALSE)=0,\"\",VLOOKUP(EJ34,'Footnotes list'!$D$9:$E$58,2,FALSE) ) )","v":""},null,null,null,null,{"$f":"IF(TRIM(EO34)=\"\", \"\", IF(VLOOKUP(EO34,'Footnotes list'!$D$9:$E$58,2,FALSE)=0,\"\",VLOOKUP(EO34,'Footnotes list'!$D$9:$E$58,2,FALSE) ) )","v":""},null,null,null,null,{"$f":"IF(TRIM(ET34)=\"\", \"\", IF(VLOOKUP(ET34,'Footnotes list'!$D$9:$E$58,2,FALSE)=0,\"\",VLOOKUP(ET34,'Footnotes list'!$D$9:$E$58,2,FALSE) ) )","v":""},null,null,null,null,{"$f":"IF(TRIM(EY34)=\"\", \"\", IF(VLOOKUP(EY34,'Footnotes list'!$D$9:$E$58,2,FALSE)=0,\"\",VLOOKUP(EY34,'Footnotes list'!$D$9:$E$58,2,FALSE) ) )","v":""}]
[null,null,"C","C_REP","cleaner and resource efficient products",null,null,null,null,null,{"$f":"IF(TRIM(J35)=\"\", \"\", IF(VLOOKUP(J35,'Footnotes list'!$D$9:$E$58,2,FALSE)=0,\"\",VLOOKUP(J35,'Footnotes list'!$D$9:$E$58,2,FALSE) ) )","v":""},null,null,null,null,{"$f":"IF(TRIM(O35)=\"\", \"\", IF(VLOOKUP(O35,'Footnotes list'!$D$9:$E$58,2,FALSE)=0,\"\",VLOOKUP(O35,'Footnotes list'!$D$9:$E$58,2,FALSE) ) )","v":""},null,null,null,null,{"$f":"IF(TRIM(T35)=\"\", \"\", IF(VLOOKUP(T35,'Footnotes list'!$D$9:$E$58,2,FALSE)=0,\"\",VLOOKUP(T35,'Footnotes list'!$D$9:$E$58,2,FALSE) ) )","v":""},null,null,null,null,{"$f":"IF(TRIM(Y35)=\"\", \"\", IF(VLOOKUP(Y35,'Footnotes list'!$D$9:$E$58,2,FALSE)=0,\"\",VLOOKUP(Y35,'Footnotes list'!$D$9:$E$58,2,FALSE) ) )","v":""},null,null,null,null,{"$f":"IF(TRIM(AD35)=\"\", \"\", IF(VLOOKUP(AD35,'Footnotes list'!$D$9:$E$58,2,FALSE)=0,\"\",VLOOKUP(AD35,'Footnotes list'!$D$9:$E$58,2,FALSE) ) )","v":""},null,null,null,null,{"$f":"IF(TRIM(AI35)=\"\", \"\", IF(VLOOKUP(AI35,'Footnotes list'!$D$9:$E$58,2,FALSE)=0,\"\",VLOOKUP(AI35,'Footnotes list'!$D$9:$E$58,2,FALSE) ) )","v":""},null,null,null,null,{"$f":"IF(TRIM(AN35)=\"\", \"\", IF(VLOOKUP(AN35,'Footnotes list'!$D$9:$E$58,2,FALSE)=0,\"\",VLOOKUP(AN35,'Footnotes list'!$D$9:$E$58,2,FALSE) ) )","v":""},null,null,null,null,{"$f":"IF(TRIM(AS35)=\"\", \"\", IF(VLOOKUP(AS35,'Footnotes list'!$D$9:$E$58,2,FALSE)=0,\"\",VLOOKUP(AS35,'Footnotes list'!$D$9:$E$58,2,FALSE) ) )","v":""},null,null,null,null,{"$f":"IF(TRIM(AX35)=\"\", \"\", IF(VLOOKUP(AX35,'Footnotes list'!$D$9:$E$58,2,FALSE)=0,\"\",VLOOKUP(AX35,'Footnotes list'!$D$9:$E$58,2,FALSE) ) )","v":""},null,null,null,null,{"$f":"IF(TRIM(BC35)=\"\", \"\", IF(VLOOKUP(BC35,'Footnotes list'!$D$9:$E$58,2,FALSE)=0,\"\",VLOOKUP(BC35,'Footnotes list'!$D$9:$E$58,2,FALSE) ) )","v":""},null,null,null,null,{"$f":"IF(TRIM(BH35)=\"\", \"\", IF(VLOOKUP(BH35,'Footnotes list'!$D$9:$E$58,2,FALSE)=0,\"\",VLOOKUP(BH35,'Footnotes list'!$D$9:$E$58,2,FALSE) ) )","v":""},null,null,null,null,{"$f":"IF(TRIM(BM35)=\"\", \"\", IF(VLOOKUP(BM35,'Footnotes list'!$D$9:$E$58,2,FALSE)=0,\"\",VLOOKUP(BM35,'Footnotes list'!$D$9:$E$58,2,FALSE) ) )","v":""},null,null,null,null,{"$f":"IF(TRIM(BR35)=\"\", \"\", IF(VLOOKUP(BR35,'Footnotes list'!$D$9:$E$58,2,FALSE)=0,\"\",VLOOKUP(BR35,'Footnotes list'!$D$9:$E$58,2,FALSE) ) )","v":""},null,null,null,null,{"$f":"IF(TRIM(BW35)=\"\", \"\", IF(VLOOKUP(BW35,'Footnotes list'!$D$9:$E$58,2,FALSE)=0,\"\",VLOOKUP(BW35,'Footnotes list'!$D$9:$E$58,2,FALSE) ) )","v":""},null,null,null,null,{"$f":"IF(TRIM(CB35)=\"\", \"\", IF(VLOOKUP(CB35,'Footnotes list'!$D$9:$E$58,2,FALSE)=0,\"\",VLOOKUP(CB35,'Footnotes list'!$D$9:$E$58,2,FALSE) ) )","v":""},null,null,null,null,{"$f":"IF(TRIM(CG35)=\"\", \"\", IF(VLOOKUP(CG35,'Footnotes list'!$D$9:$E$58,2,FALSE)=0,\"\",VLOOKUP(CG35,'Footnotes list'!$D$9:$E$58,2,FALSE) ) )","v":""},null,null,null,null,{"$f":"IF(TRIM(CL35)=\"\", \"\", IF(VLOOKUP(CL35,'Footnotes list'!$D$9:$E$58,2,FALSE)=0,\"\",VLOOKUP(CL35,'Footnotes list'!$D$9:$E$58,2,FALSE) ) )","v":""},null,null,null,null,{"$f":"IF(TRIM(CQ35)=\"\", \"\", IF(VLOOKUP(CQ35,'Footnotes list'!$D$9:$E$58,2,FALSE)=0,\"\",VLOOKUP(CQ35,'Footnotes list'!$D$9:$E$58,2,FALSE) ) )","v":""},null,null,null,null,{"$f":"IF(TRIM(CV35)=\"\", \"\", IF(VLOOKUP(CV35,'Footnotes list'!$D$9:$E$58,2,FALSE)=0,\"\",VLOOKUP(CV35,'Footnotes list'!$D$9:$E$58,2,FALSE) ) )","v":""},null,null,null,null,{"$f":"IF(TRIM(DA35)=\"\", \"\", IF(VLOOKUP(DA35,'Footnotes list'!$D$9:$E$58,2,FALSE)=0,\"\",VLOOKUP(DA35,'Footnotes list'!$D$9:$E$58,2,FALSE) ) )","v":""},null,null,null,null,{"$f":"IF(TRIM(DF35)=\"\", \"\", IF(VLOOKUP(DF35,'Footnotes list'!$D$9:$E$58,2,FALSE)=0,\"\",VLOOKUP(DF35,'Footnotes list'!$D$9:$E$58,2,FALSE) ) )","v":""},null,null,null,null,{"$f":"IF(TRIM(DK35)=\"\", \"\", IF(VLOOKUP(DK35,'Footnotes list'!$D$9:$E$58,2,FALSE)=0,\"\",VLOOKUP(DK35,'Footnotes list'!$D$9:$E$58,2,FALSE) ) )","v":""},null,null,null,null,{"$f":"IF(TRIM(DP35)=\"\", \"\", IF(VLOOKUP(DP35,'Footnotes list'!$D$9:$E$58,2,FALSE)=0,\"\",VLOOKUP(DP35,'Footnotes list'!$D$9:$E$58,2,FALSE) ) )","v":""},null,null,null,null,{"$f":"IF(TRIM(DU35)=\"\", \"\", IF(VLOOKUP(DU35,'Footnotes list'!$D$9:$E$58,2,FALSE)=0,\"\",VLOOKUP(DU35,'Footnotes list'!$D$9:$E$58,2,FALSE) ) )","v":""},null,null,null,null,{"$f":"IF(TRIM(DZ35)=\"\", \"\", IF(VLOOKUP(DZ35,'Footnotes list'!$D$9:$E$58,2,FALSE)=0,\"\",VLOOKUP(DZ35,'Footnotes list'!$D$9:$E$58,2,FALSE) ) )","v":""},null,null,null,null,{"$f":"IF(TRIM(EE35)=\"\", \"\", IF(VLOOKUP(EE35,'Footnotes list'!$D$9:$E$58,2,FALSE)=0,\"\",VLOOKUP(EE35,'Footnotes list'!$D$9:$E$58,2,FALSE) ) )","v":""},null,null,null,null,{"$f":"IF(TRIM(EJ35)=\"\", \"\", IF(VLOOKUP(EJ35,'Footnotes list'!$D$9:$E$58,2,FALSE)=0,\"\",VLOOKUP(EJ35,'Footnotes list'!$D$9:$E$58,2,FALSE) ) )","v":""},null,null,null,null,{"$f":"IF(TRIM(EO35)=\"\", \"\", IF(VLOOKUP(EO35,'Footnotes list'!$D$9:$E$58,2,FALSE)=0,\"\",VLOOKUP(EO35,'Footnotes list'!$D$9:$E$58,2,FALSE) ) )","v":""},null,null,null,null,{"$f":"IF(TRIM(ET35)=\"\", \"\", IF(VLOOKUP(ET35,'Footnotes list'!$D$9:$E$58,2,FALSE)=0,\"\",VLOOKUP(ET35,'Footnotes list'!$D$9:$E$58,2,FALSE) ) )","v":""},null,null,null,null,{"$f":"IF(TRIM(EY35)=\"\", \"\", IF(VLOOKUP(EY35,'Footnotes list'!$D$9:$E$58,2,FALSE)=0,\"\",VLOOKUP(EY35,'Footnotes list'!$D$9:$E$58,2,FALSE) ) )","v":""}]
[null,null,"C10-C12","TOT_EGSS","Total  C10 - C12 - Manufacture of food products, beverages and tobacco products, of which:",null,null,null,null,null,{"$f":"IF(TRIM(J36)=\"\", \"\", IF(VLOOKUP(J36,'Footnotes list'!$D$9:$E$58,2,FALSE)=0,\"\",VLOOKUP(J36,'Footnotes list'!$D$9:$E$58,2,FALSE) ) )","v":""},null,null,null,null,{"$f":"IF(TRIM(O36)=\"\", \"\", IF(VLOOKUP(O36,'Footnotes list'!$D$9:$E$58,2,FALSE)=0,\"\",VLOOKUP(O36,'Footnotes list'!$D$9:$E$58,2,FALSE) ) )","v":""},null,null,null,null,{"$f":"IF(TRIM(T36)=\"\", \"\", IF(VLOOKUP(T36,'Footnotes list'!$D$9:$E$58,2,FALSE)=0,\"\",VLOOKUP(T36,'Footnotes list'!$D$9:$E$58,2,FALSE) ) )","v":""},null,null,null,null,{"$f":"IF(TRIM(Y36)=\"\", \"\", IF(VLOOKUP(Y36,'Footnotes list'!$D$9:$E$58,2,FALSE)=0,\"\",VLOOKUP(Y36,'Footnotes list'!$D$9:$E$58,2,FALSE) ) )","v":""},null,null,null,null,{"$f":"IF(TRIM(AD36)=\"\", \"\", IF(VLOOKUP(AD36,'Footnotes list'!$D$9:$E$58,2,FALSE)=0,\"\",VLOOKUP(AD36,'Footnotes list'!$D$9:$E$58,2,FALSE) ) )","v":""},null,null,null,null,{"$f":"IF(TRIM(AI36)=\"\", \"\", IF(VLOOKUP(AI36,'Footnotes list'!$D$9:$E$58,2,FALSE)=0,\"\",VLOOKUP(AI36,'Footnotes list'!$D$9:$E$58,2,FALSE) ) )","v":""},null,null,null,null,{"$f":"IF(TRIM(AN36)=\"\", \"\", IF(VLOOKUP(AN36,'Footnotes list'!$D$9:$E$58,2,FALSE)=0,\"\",VLOOKUP(AN36,'Footnotes list'!$D$9:$E$58,2,FALSE) ) )","v":""},null,null,null,null,{"$f":"IF(TRIM(AS36)=\"\", \"\", IF(VLOOKUP(AS36,'Footnotes list'!$D$9:$E$58,2,FALSE)=0,\"\",VLOOKUP(AS36,'Footnotes list'!$D$9:$E$58,2,FALSE) ) )","v":""},null,null,null,null,{"$f":"IF(TRIM(AX36)=\"\", \"\", IF(VLOOKUP(AX36,'Footnotes list'!$D$9:$E$58,2,FALSE)=0,\"\",VLOOKUP(AX36,'Footnotes list'!$D$9:$E$58,2,FALSE) ) )","v":""},null,null,null,null,{"$f":"IF(TRIM(BC36)=\"\", \"\", IF(VLOOKUP(BC36,'Footnotes list'!$D$9:$E$58,2,FALSE)=0,\"\",VLOOKUP(BC36,'Footnotes list'!$D$9:$E$58,2,FALSE) ) )","v":""},null,null,null,null,{"$f":"IF(TRIM(BH36)=\"\", \"\", IF(VLOOKUP(BH36,'Footnotes list'!$D$9:$E$58,2,FALSE)=0,\"\",VLOOKUP(BH36,'Footnotes list'!$D$9:$E$58,2,FALSE) ) )","v":""},null,null,null,null,{"$f":"IF(TRIM(BM36)=\"\", \"\", IF(VLOOKUP(BM36,'Footnotes list'!$D$9:$E$58,2,FALSE)=0,\"\",VLOOKUP(BM36,'Footnotes list'!$D$9:$E$58,2,FALSE) ) )","v":""},null,null,null,null,{"$f":"IF(TRIM(BR36)=\"\", \"\", IF(VLOOKUP(BR36,'Footnotes list'!$D$9:$E$58,2,FALSE)=0,\"\",VLOOKUP(BR36,'Footnotes list'!$D$9:$E$58,2,FALSE) ) )","v":""},null,null,null,null,{"$f":"IF(TRIM(BW36)=\"\", \"\", IF(VLOOKUP(BW36,'Footnotes list'!$D$9:$E$58,2,FALSE)=0,\"\",VLOOKUP(BW36,'Footnotes list'!$D$9:$E$58,2,FALSE) ) )","v":""},null,null,null,null,{"$f":"IF(TRIM(CB36)=\"\", \"\", IF(VLOOKUP(CB36,'Footnotes list'!$D$9:$E$58,2,FALSE)=0,\"\",VLOOKUP(CB36,'Footnotes list'!$D$9:$E$58,2,FALSE) ) )","v":""},null,null,null,null,{"$f":"IF(TRIM(CG36)=\"\", \"\", IF(VLOOKUP(CG36,'Footnotes list'!$D$9:$E$58,2,FALSE)=0,\"\",VLOOKUP(CG36,'Footnotes list'!$D$9:$E$58,2,FALSE) ) )","v":""},null,null,null,null,{"$f":"IF(TRIM(CL36)=\"\", \"\", IF(VLOOKUP(CL36,'Footnotes list'!$D$9:$E$58,2,FALSE)=0,\"\",VLOOKUP(CL36,'Footnotes list'!$D$9:$E$58,2,FALSE) ) )","v":""},null,null,null,null,{"$f":"IF(TRIM(CQ36)=\"\", \"\", IF(VLOOKUP(CQ36,'Footnotes list'!$D$9:$E$58,2,FALSE)=0,\"\",VLOOKUP(CQ36,'Footnotes list'!$D$9:$E$58,2,FALSE) ) )","v":""},null,null,null,null,{"$f":"IF(TRIM(CV36)=\"\", \"\", IF(VLOOKUP(CV36,'Footnotes list'!$D$9:$E$58,2,FALSE)=0,\"\",VLOOKUP(CV36,'Footnotes list'!$D$9:$E$58,2,FALSE) ) )","v":""},null,null,null,null,{"$f":"IF(TRIM(DA36)=\"\", \"\", IF(VLOOKUP(DA36,'Footnotes list'!$D$9:$E$58,2,FALSE)=0,\"\",VLOOKUP(DA36,'Footnotes list'!$D$9:$E$58,2,FALSE) ) )","v":""},null,null,null,null,{"$f":"IF(TRIM(DF36)=\"\", \"\", IF(VLOOKUP(DF36,'Footnotes list'!$D$9:$E$58,2,FALSE)=0,\"\",VLOOKUP(DF36,'Footnotes list'!$D$9:$E$58,2,FALSE) ) )","v":""},null,null,null,null,{"$f":"IF(TRIM(DK36)=\"\", \"\", IF(VLOOKUP(DK36,'Footnotes list'!$D$9:$E$58,2,FALSE)=0,\"\",VLOOKUP(DK36,'Footnotes list'!$D$9:$E$58,2,FALSE) ) )","v":""},null,null,null,null,{"$f":"IF(TRIM(DP36)=\"\", \"\", IF(VLOOKUP(DP36,'Footnotes list'!$D$9:$E$58,2,FALSE)=0,\"\",VLOOKUP(DP36,'Footnotes list'!$D$9:$E$58,2,FALSE) ) )","v":""},null,null,null,null,{"$f":"IF(TRIM(DU36)=\"\", \"\", IF(VLOOKUP(DU36,'Footnotes list'!$D$9:$E$58,2,FALSE)=0,\"\",VLOOKUP(DU36,'Footnotes list'!$D$9:$E$58,2,FALSE) ) )","v":""},null,null,null,null,{"$f":"IF(TRIM(DZ36)=\"\", \"\", IF(VLOOKUP(DZ36,'Footnotes list'!$D$9:$E$58,2,FALSE)=0,\"\",VLOOKUP(DZ36,'Footnotes list'!$D$9:$E$58,2,FALSE) ) )","v":""},null,null,null,null,{"$f":"IF(TRIM(EE36)=\"\", \"\", IF(VLOOKUP(EE36,'Footnotes list'!$D$9:$E$58,2,FALSE)=0,\"\",VLOOKUP(EE36,'Footnotes list'!$D$9:$E$58,2,FALSE) ) )","v":""},null,null,null,null,{"$f":"IF(TRIM(EJ36)=\"\", \"\", IF(VLOOKUP(EJ36,'Footnotes list'!$D$9:$E$58,2,FALSE)=0,\"\",VLOOKUP(EJ36,'Footnotes list'!$D$9:$E$58,2,FALSE) ) )","v":""},null,null,null,null,{"$f":"IF(TRIM(EO36)=\"\", \"\", IF(VLOOKUP(EO36,'Footnotes list'!$D$9:$E$58,2,FALSE)=0,\"\",VLOOKUP(EO36,'Footnotes list'!$D$9:$E$58,2,FALSE) ) )","v":""},null,null,null,null,{"$f":"IF(TRIM(ET36)=\"\", \"\", IF(VLOOKUP(ET36,'Footnotes list'!$D$9:$E$58,2,FALSE)=0,\"\",VLOOKUP(ET36,'Footnotes list'!$D$9:$E$58,2,FALSE) ) )","v":""},null,null,null,null,{"$f":"IF(TRIM(EY36)=\"\", \"\", IF(VLOOKUP(EY36,'Footnotes list'!$D$9:$E$58,2,FALSE)=0,\"\",VLOOKUP(EY36,'Footnotes list'!$D$9:$E$58,2,FALSE) ) )","v":""}]
[null,null,"C10-C12","ANC","ancillary activities",null,null,null,null,null,{"$f":"IF(TRIM(J37)=\"\", \"\", IF(VLOOKUP(J37,'Footnotes list'!$D$9:$E$58,2,FALSE)=0,\"\",VLOOKUP(J37,'Footnotes list'!$D$9:$E$58,2,FALSE) ) )","v":""},null,null,null,null,{"$f":"IF(TRIM(O37)=\"\", \"\", IF(VLOOKUP(O37,'Footnotes list'!$D$9:$E$58,2,FALSE)=0,\"\",VLOOKUP(O37,'Footnotes list'!$D$9:$E$58,2,FALSE) ) )","v":""},null,null,null,null,{"$f":"IF(TRIM(T37)=\"\", \"\", IF(VLOOKUP(T37,'Footnotes list'!$D$9:$E$58,2,FALSE)=0,\"\",VLOOKUP(T37,'Footnotes list'!$D$9:$E$58,2,FALSE) ) )","v":""},null,null,null,null,{"$f":"IF(TRIM(Y37)=\"\", \"\", IF(VLOOKUP(Y37,'Footnotes list'!$D$9:$E$58,2,FALSE)=0,\"\",VLOOKUP(Y37,'Footnotes list'!$D$9:$E$58,2,FALSE) ) )","v":""},null,null,null,null,{"$f":"IF(TRIM(AD37)=\"\", \"\", IF(VLOOKUP(AD37,'Footnotes list'!$D$9:$E$58,2,FALSE)=0,\"\",VLOOKUP(AD37,'Footnotes list'!$D$9:$E$58,2,FALSE) ) )","v":""},null,null,null,null,{"$f":"IF(TRIM(AI37)=\"\", \"\", IF(VLOOKUP(AI37,'Footnotes list'!$D$9:$E$58,2,FALSE)=0,\"\",VLOOKUP(AI37,'Footnotes list'!$D$9:$E$58,2,FALSE) ) )","v":""},null,null,null,null,{"$f":"IF(TRIM(AN37)=\"\", \"\", IF(VLOOKUP(AN37,'Footnotes list'!$D$9:$E$58,2,FALSE)=0,\"\",VLOOKUP(AN37,'Footnotes list'!$D$9:$E$58,2,FALSE) ) )","v":""},null,null,null,null,{"$f":"IF(TRIM(AS37)=\"\", \"\", IF(VLOOKUP(AS37,'Footnotes list'!$D$9:$E$58,2,FALSE)=0,\"\",VLOOKUP(AS37,'Footnotes list'!$D$9:$E$58,2,FALSE) ) )","v":""},null,null,null,null,{"$f":"IF(TRIM(AX37)=\"\", \"\", IF(VLOOKUP(AX37,'Footnotes list'!$D$9:$E$58,2,FALSE)=0,\"\",VLOOKUP(AX37,'Footnotes list'!$D$9:$E$58,2,FALSE) ) )","v":""},null,null,null,null,{"$f":"IF(TRIM(BC37)=\"\", \"\", IF(VLOOKUP(BC37,'Footnotes list'!$D$9:$E$58,2,FALSE)=0,\"\",VLOOKUP(BC37,'Footnotes list'!$D$9:$E$58,2,FALSE) ) )","v":""},null,null,null,null,{"$f":"IF(TRIM(BH37)=\"\", \"\", IF(VLOOKUP(BH37,'Footnotes list'!$D$9:$E$58,2,FALSE)=0,\"\",VLOOKUP(BH37,'Footnotes list'!$D$9:$E$58,2,FALSE) ) )","v":""},null,null,null,null,{"$f":"IF(TRIM(BM37)=\"\", \"\", IF(VLOOKUP(BM37,'Footnotes list'!$D$9:$E$58,2,FALSE)=0,\"\",VLOOKUP(BM37,'Footnotes list'!$D$9:$E$58,2,FALSE) ) )","v":""},null,null,null,null,{"$f":"IF(TRIM(BR37)=\"\", \"\", IF(VLOOKUP(BR37,'Footnotes list'!$D$9:$E$58,2,FALSE)=0,\"\",VLOOKUP(BR37,'Footnotes list'!$D$9:$E$58,2,FALSE) ) )","v":""},null,null,null,null,{"$f":"IF(TRIM(BW37)=\"\", \"\", IF(VLOOKUP(BW37,'Footnotes list'!$D$9:$E$58,2,FALSE)=0,\"\",VLOOKUP(BW37,'Footnotes list'!$D$9:$E$58,2,FALSE) ) )","v":""},null,null,null,null,{"$f":"IF(TRIM(CB37)=\"\", \"\", IF(VLOOKUP(CB37,'Footnotes list'!$D$9:$E$58,2,FALSE)=0,\"\",VLOOKUP(CB37,'Footnotes list'!$D$9:$E$58,2,FALSE) ) )","v":""},null,null,null,null,{"$f":"IF(TRIM(CG37)=\"\", \"\", IF(VLOOKUP(CG37,'Footnotes list'!$D$9:$E$58,2,FALSE)=0,\"\",VLOOKUP(CG37,'Footnotes list'!$D$9:$E$58,2,FALSE) ) )","v":""},null,null,null,null,{"$f":"IF(TRIM(CL37)=\"\", \"\", IF(VLOOKUP(CL37,'Footnotes list'!$D$9:$E$58,2,FALSE)=0,\"\",VLOOKUP(CL37,'Footnotes list'!$D$9:$E$58,2,FALSE) ) )","v":""},null,null,null,null,{"$f":"IF(TRIM(CQ37)=\"\", \"\", IF(VLOOKUP(CQ37,'Footnotes list'!$D$9:$E$58,2,FALSE)=0,\"\",VLOOKUP(CQ37,'Footnotes list'!$D$9:$E$58,2,FALSE) ) )","v":""},null,null,null,null,{"$f":"IF(TRIM(CV37)=\"\", \"\", IF(VLOOKUP(CV37,'Footnotes list'!$D$9:$E$58,2,FALSE)=0,\"\",VLOOKUP(CV37,'Footnotes list'!$D$9:$E$58,2,FALSE) ) )","v":""},null,null,null,null,{"$f":"IF(TRIM(DA37)=\"\", \"\", IF(VLOOKUP(DA37,'Footnotes list'!$D$9:$E$58,2,FALSE)=0,\"\",VLOOKUP(DA37,'Footnotes list'!$D$9:$E$58,2,FALSE) ) )","v":""},null,null,null,null,{"$f":"IF(TRIM(DF37)=\"\", \"\", IF(VLOOKUP(DF37,'Footnotes list'!$D$9:$E$58,2,FALSE)=0,\"\",VLOOKUP(DF37,'Footnotes list'!$D$9:$E$58,2,FALSE) ) )","v":""},null,null,null,null,{"$f":"IF(TRIM(DK37)=\"\", \"\", IF(VLOOKUP(DK37,'Footnotes list'!$D$9:$E$58,2,FALSE)=0,\"\",VLOOKUP(DK37,'Footnotes list'!$D$9:$E$58,2,FALSE) ) )","v":""},null,null,null,null,{"$f":"IF(TRIM(DP37)=\"\", \"\", IF(VLOOKUP(DP37,'Footnotes list'!$D$9:$E$58,2,FALSE)=0,\"\",VLOOKUP(DP37,'Footnotes list'!$D$9:$E$58,2,FALSE) ) )","v":""},null,null,null,null,{"$f":"IF(TRIM(DU37)=\"\", \"\", IF(VLOOKUP(DU37,'Footnotes list'!$D$9:$E$58,2,FALSE)=0,\"\",VLOOKUP(DU37,'Footnotes list'!$D$9:$E$58,2,FALSE) ) )","v":""},null,null,null,null,{"$f":"IF(TRIM(DZ37)=\"\", \"\", IF(VLOOKUP(DZ37,'Footnotes list'!$D$9:$E$58,2,FALSE)=0,\"\",VLOOKUP(DZ37,'Footnotes list'!$D$9:$E$58,2,FALSE) ) )","v":""},null,null,null,null,{"$f":"IF(TRIM(EE37)=\"\", \"\", IF(VLOOKUP(EE37,'Footnotes list'!$D$9:$E$58,2,FALSE)=0,\"\",VLOOKUP(EE37,'Footnotes list'!$D$9:$E$58,2,FALSE) ) )","v":""},null,null,null,null,{"$f":"IF(TRIM(EJ37)=\"\", \"\", IF(VLOOKUP(EJ37,'Footnotes list'!$D$9:$E$58,2,FALSE)=0,\"\",VLOOKUP(EJ37,'Footnotes list'!$D$9:$E$58,2,FALSE) ) )","v":""},null,null,null,null,{"$f":"IF(TRIM(EO37)=\"\", \"\", IF(VLOOKUP(EO37,'Footnotes list'!$D$9:$E$58,2,FALSE)=0,\"\",VLOOKUP(EO37,'Footnotes list'!$D$9:$E$58,2,FALSE) ) )","v":""},null,null,null,null,{"$f":"IF(TRIM(ET37)=\"\", \"\", IF(VLOOKUP(ET37,'Footnotes list'!$D$9:$E$58,2,FALSE)=0,\"\",VLOOKUP(ET37,'Footnotes list'!$D$9:$E$58,2,FALSE) ) )","v":""},null,null,null,null,{"$f":"IF(TRIM(EY37)=\"\", \"\", IF(VLOOKUP(EY37,'Footnotes list'!$D$9:$E$58,2,FALSE)=0,\"\",VLOOKUP(EY37,'Footnotes list'!$D$9:$E$58,2,FALSE) ) )","v":""}]
[null,null,"C10-C12","NMKT","non-market activities",null,null,null,null,null,{"$f":"IF(TRIM(J38)=\"\", \"\", IF(VLOOKUP(J38,'Footnotes list'!$D$9:$E$58,2,FALSE)=0,\"\",VLOOKUP(J38,'Footnotes list'!$D$9:$E$58,2,FALSE) ) )","v":""},null,null,null,null,{"$f":"IF(TRIM(O38)=\"\", \"\", IF(VLOOKUP(O38,'Footnotes list'!$D$9:$E$58,2,FALSE)=0,\"\",VLOOKUP(O38,'Footnotes list'!$D$9:$E$58,2,FALSE) ) )","v":""},null,null,null,null,{"$f":"IF(TRIM(T38)=\"\", \"\", IF(VLOOKUP(T38,'Footnotes list'!$D$9:$E$58,2,FALSE)=0,\"\",VLOOKUP(T38,'Footnotes list'!$D$9:$E$58,2,FALSE) ) )","v":""},null,null,null,null,{"$f":"IF(TRIM(Y38)=\"\", \"\", IF(VLOOKUP(Y38,'Footnotes list'!$D$9:$E$58,2,FALSE)=0,\"\",VLOOKUP(Y38,'Footnotes list'!$D$9:$E$58,2,FALSE) ) )","v":""},null,null,null,null,{"$f":"IF(TRIM(AD38)=\"\", \"\", IF(VLOOKUP(AD38,'Footnotes list'!$D$9:$E$58,2,FALSE)=0,\"\",VLOOKUP(AD38,'Footnotes list'!$D$9:$E$58,2,FALSE) ) )","v":""},null,null,null,null,{"$f":"IF(TRIM(AI38)=\"\", \"\", IF(VLOOKUP(AI38,'Footnotes list'!$D$9:$E$58,2,FALSE)=0,\"\",VLOOKUP(AI38,'Footnotes list'!$D$9:$E$58,2,FALSE) ) )","v":""},null,null,null,null,{"$f":"IF(TRIM(AN38)=\"\", \"\", IF(VLOOKUP(AN38,'Footnotes list'!$D$9:$E$58,2,FALSE)=0,\"\",VLOOKUP(AN38,'Footnotes list'!$D$9:$E$58,2,FALSE) ) )","v":""},null,null,null,null,{"$f":"IF(TRIM(AS38)=\"\", \"\", IF(VLOOKUP(AS38,'Footnotes list'!$D$9:$E$58,2,FALSE)=0,\"\",VLOOKUP(AS38,'Footnotes list'!$D$9:$E$58,2,FALSE) ) )","v":""},null,null,null,null,{"$f":"IF(TRIM(AX38)=\"\", \"\", IF(VLOOKUP(AX38,'Footnotes list'!$D$9:$E$58,2,FALSE)=0,\"\",VLOOKUP(AX38,'Footnotes list'!$D$9:$E$58,2,FALSE) ) )","v":""},null,null,null,null,{"$f":"IF(TRIM(BC38)=\"\", \"\", IF(VLOOKUP(BC38,'Footnotes list'!$D$9:$E$58,2,FALSE)=0,\"\",VLOOKUP(BC38,'Footnotes list'!$D$9:$E$58,2,FALSE) ) )","v":""},null,null,null,null,{"$f":"IF(TRIM(BH38)=\"\", \"\", IF(VLOOKUP(BH38,'Footnotes list'!$D$9:$E$58,2,FALSE)=0,\"\",VLOOKUP(BH38,'Footnotes list'!$D$9:$E$58,2,FALSE) ) )","v":""},null,null,null,null,{"$f":"IF(TRIM(BM38)=\"\", \"\", IF(VLOOKUP(BM38,'Footnotes list'!$D$9:$E$58,2,FALSE)=0,\"\",VLOOKUP(BM38,'Footnotes list'!$D$9:$E$58,2,FALSE) ) )","v":""},null,null,null,null,{"$f":"IF(TRIM(BR38)=\"\", \"\", IF(VLOOKUP(BR38,'Footnotes list'!$D$9:$E$58,2,FALSE)=0,\"\",VLOOKUP(BR38,'Footnotes list'!$D$9:$E$58,2,FALSE) ) )","v":""},null,null,null,null,{"$f":"IF(TRIM(BW38)=\"\", \"\", IF(VLOOKUP(BW38,'Footnotes list'!$D$9:$E$58,2,FALSE)=0,\"\",VLOOKUP(BW38,'Footnotes list'!$D$9:$E$58,2,FALSE) ) )","v":""},null,null,null,null,{"$f":"IF(TRIM(CB38)=\"\", \"\", IF(VLOOKUP(CB38,'Footnotes list'!$D$9:$E$58,2,FALSE)=0,\"\",VLOOKUP(CB38,'Footnotes list'!$D$9:$E$58,2,FALSE) ) )","v":""},null,null,null,null,{"$f":"IF(TRIM(CG38)=\"\", \"\", IF(VLOOKUP(CG38,'Footnotes list'!$D$9:$E$58,2,FALSE)=0,\"\",VLOOKUP(CG38,'Footnotes list'!$D$9:$E$58,2,FALSE) ) )","v":""},null,null,null,null,{"$f":"IF(TRIM(CL38)=\"\", \"\", IF(VLOOKUP(CL38,'Footnotes list'!$D$9:$E$58,2,FALSE)=0,\"\",VLOOKUP(CL38,'Footnotes list'!$D$9:$E$58,2,FALSE) ) )","v":""},null,null,null,null,{"$f":"IF(TRIM(CQ38)=\"\", \"\", IF(VLOOKUP(CQ38,'Footnotes list'!$D$9:$E$58,2,FALSE)=0,\"\",VLOOKUP(CQ38,'Footnotes list'!$D$9:$E$58,2,FALSE) ) )","v":""},null,null,null,null,{"$f":"IF(TRIM(CV38)=\"\", \"\", IF(VLOOKUP(CV38,'Footnotes list'!$D$9:$E$58,2,FALSE)=0,\"\",VLOOKUP(CV38,'Footnotes list'!$D$9:$E$58,2,FALSE) ) )","v":""},null,null,null,null,{"$f":"IF(TRIM(DA38)=\"\", \"\", IF(VLOOKUP(DA38,'Footnotes list'!$D$9:$E$58,2,FALSE)=0,\"\",VLOOKUP(DA38,'Footnotes list'!$D$9:$E$58,2,FALSE) ) )","v":""},null,null,null,null,{"$f":"IF(TRIM(DF38)=\"\", \"\", IF(VLOOKUP(DF38,'Footnotes list'!$D$9:$E$58,2,FALSE)=0,\"\",VLOOKUP(DF38,'Footnotes list'!$D$9:$E$58,2,FALSE) ) )","v":""},null,null,null,null,{"$f":"IF(TRIM(DK38)=\"\", \"\", IF(VLOOKUP(DK38,'Footnotes list'!$D$9:$E$58,2,FALSE)=0,\"\",VLOOKUP(DK38,'Footnotes list'!$D$9:$E$58,2,FALSE) ) )","v":""},null,null,null,null,{"$f":"IF(TRIM(DP38)=\"\", \"\", IF(VLOOKUP(DP38,'Footnotes list'!$D$9:$E$58,2,FALSE)=0,\"\",VLOOKUP(DP38,'Footnotes list'!$D$9:$E$58,2,FALSE) ) )","v":""},null,null,null,null,{"$f":"IF(TRIM(DU38)=\"\", \"\", IF(VLOOKUP(DU38,'Footnotes list'!$D$9:$E$58,2,FALSE)=0,\"\",VLOOKUP(DU38,'Footnotes list'!$D$9:$E$58,2,FALSE) ) )","v":""},null,null,null,null,{"$f":"IF(TRIM(DZ38)=\"\", \"\", IF(VLOOKUP(DZ38,'Footnotes list'!$D$9:$E$58,2,FALSE)=0,\"\",VLOOKUP(DZ38,'Footnotes list'!$D$9:$E$58,2,FALSE) ) )","v":""},null,null,null,null,{"$f":"IF(TRIM(EE38)=\"\", \"\", IF(VLOOKUP(EE38,'Footnotes list'!$D$9:$E$58,2,FALSE)=0,\"\",VLOOKUP(EE38,'Footnotes list'!$D$9:$E$58,2,FALSE) ) )","v":""},null,null,null,null,{"$f":"IF(TRIM(EJ38)=\"\", \"\", IF(VLOOKUP(EJ38,'Footnotes list'!$D$9:$E$58,2,FALSE)=0,\"\",VLOOKUP(EJ38,'Footnotes list'!$D$9:$E$58,2,FALSE) ) )","v":""},null,null,null,null,{"$f":"IF(TRIM(EO38)=\"\", \"\", IF(VLOOKUP(EO38,'Footnotes list'!$D$9:$E$58,2,FALSE)=0,\"\",VLOOKUP(EO38,'Footnotes list'!$D$9:$E$58,2,FALSE) ) )","v":""},null,null,null,null,{"$f":"IF(TRIM(ET38)=\"\", \"\", IF(VLOOKUP(ET38,'Footnotes list'!$D$9:$E$58,2,FALSE)=0,\"\",VLOOKUP(ET38,'Footnotes list'!$D$9:$E$58,2,FALSE) ) )","v":""},null,null,null,null,{"$f":"IF(TRIM(EY38)=\"\", \"\", IF(VLOOKUP(EY38,'Footnotes list'!$D$9:$E$58,2,FALSE)=0,\"\",VLOOKUP(EY38,'Footnotes list'!$D$9:$E$58,2,FALSE) ) )","v":""}]
[null,null,"C10-C12","OWN_USE","activities for own final use",null,null,null,null,null,{"$f":"IF(TRIM(J39)=\"\", \"\", IF(VLOOKUP(J39,'Footnotes list'!$D$9:$E$58,2,FALSE)=0,\"\",VLOOKUP(J39,'Footnotes list'!$D$9:$E$58,2,FALSE) ) )","v":""},null,null,null,null,{"$f":"IF(TRIM(O39)=\"\", \"\", IF(VLOOKUP(O39,'Footnotes list'!$D$9:$E$58,2,FALSE)=0,\"\",VLOOKUP(O39,'Footnotes list'!$D$9:$E$58,2,FALSE) ) )","v":""},null,null,null,null,{"$f":"IF(TRIM(T39)=\"\", \"\", IF(VLOOKUP(T39,'Footnotes list'!$D$9:$E$58,2,FALSE)=0,\"\",VLOOKUP(T39,'Footnotes list'!$D$9:$E$58,2,FALSE) ) )","v":""},null,null,null,null,{"$f":"IF(TRIM(Y39)=\"\", \"\", IF(VLOOKUP(Y39,'Footnotes list'!$D$9:$E$58,2,FALSE)=0,\"\",VLOOKUP(Y39,'Footnotes list'!$D$9:$E$58,2,FALSE) ) )","v":""},null,null,null,null,{"$f":"IF(TRIM(AD39)=\"\", \"\", IF(VLOOKUP(AD39,'Footnotes list'!$D$9:$E$58,2,FALSE)=0,\"\",VLOOKUP(AD39,'Footnotes list'!$D$9:$E$58,2,FALSE) ) )","v":""},null,null,null,null,{"$f":"IF(TRIM(AI39)=\"\", \"\", IF(VLOOKUP(AI39,'Footnotes list'!$D$9:$E$58,2,FALSE)=0,\"\",VLOOKUP(AI39,'Footnotes list'!$D$9:$E$58,2,FALSE) ) )","v":""},null,null,null,null,{"$f":"IF(TRIM(AN39)=\"\", \"\", IF(VLOOKUP(AN39,'Footnotes list'!$D$9:$E$58,2,FALSE)=0,\"\",VLOOKUP(AN39,'Footnotes list'!$D$9:$E$58,2,FALSE) ) )","v":""},null,null,null,null,{"$f":"IF(TRIM(AS39)=\"\", \"\", IF(VLOOKUP(AS39,'Footnotes list'!$D$9:$E$58,2,FALSE)=0,\"\",VLOOKUP(AS39,'Footnotes list'!$D$9:$E$58,2,FALSE) ) )","v":""},null,null,null,null,{"$f":"IF(TRIM(AX39)=\"\", \"\", IF(VLOOKUP(AX39,'Footnotes list'!$D$9:$E$58,2,FALSE)=0,\"\",VLOOKUP(AX39,'Footnotes list'!$D$9:$E$58,2,FALSE) ) )","v":""},null,null,null,null,{"$f":"IF(TRIM(BC39)=\"\", \"\", IF(VLOOKUP(BC39,'Footnotes list'!$D$9:$E$58,2,FALSE)=0,\"\",VLOOKUP(BC39,'Footnotes list'!$D$9:$E$58,2,FALSE) ) )","v":""},null,null,null,null,{"$f":"IF(TRIM(BH39)=\"\", \"\", IF(VLOOKUP(BH39,'Footnotes list'!$D$9:$E$58,2,FALSE)=0,\"\",VLOOKUP(BH39,'Footnotes list'!$D$9:$E$58,2,FALSE) ) )","v":""},null,null,null,null,{"$f":"IF(TRIM(BM39)=\"\", \"\", IF(VLOOKUP(BM39,'Footnotes list'!$D$9:$E$58,2,FALSE)=0,\"\",VLOOKUP(BM39,'Footnotes list'!$D$9:$E$58,2,FALSE) ) )","v":""},null,null,null,null,{"$f":"IF(TRIM(BR39)=\"\", \"\", IF(VLOOKUP(BR39,'Footnotes list'!$D$9:$E$58,2,FALSE)=0,\"\",VLOOKUP(BR39,'Footnotes list'!$D$9:$E$58,2,FALSE) ) )","v":""},null,null,null,null,{"$f":"IF(TRIM(BW39)=\"\", \"\", IF(VLOOKUP(BW39,'Footnotes list'!$D$9:$E$58,2,FALSE)=0,\"\",VLOOKUP(BW39,'Footnotes list'!$D$9:$E$58,2,FALSE) ) )","v":""},null,null,null,null,{"$f":"IF(TRIM(CB39)=\"\", \"\", IF(VLOOKUP(CB39,'Footnotes list'!$D$9:$E$58,2,FALSE)=0,\"\",VLOOKUP(CB39,'Footnotes list'!$D$9:$E$58,2,FALSE) ) )","v":""},null,null,null,null,{"$f":"IF(TRIM(CG39)=\"\", \"\", IF(VLOOKUP(CG39,'Footnotes list'!$D$9:$E$58,2,FALSE)=0,\"\",VLOOKUP(CG39,'Footnotes list'!$D$9:$E$58,2,FALSE) ) )","v":""},null,null,null,null,{"$f":"IF(TRIM(CL39)=\"\", \"\", IF(VLOOKUP(CL39,'Footnotes list'!$D$9:$E$58,2,FALSE)=0,\"\",VLOOKUP(CL39,'Footnotes list'!$D$9:$E$58,2,FALSE) ) )","v":""},null,null,null,null,{"$f":"IF(TRIM(CQ39)=\"\", \"\", IF(VLOOKUP(CQ39,'Footnotes list'!$D$9:$E$58,2,FALSE)=0,\"\",VLOOKUP(CQ39,'Footnotes list'!$D$9:$E$58,2,FALSE) ) )","v":""},null,null,null,null,{"$f":"IF(TRIM(CV39)=\"\", \"\", IF(VLOOKUP(CV39,'Footnotes list'!$D$9:$E$58,2,FALSE)=0,\"\",VLOOKUP(CV39,'Footnotes list'!$D$9:$E$58,2,FALSE) ) )","v":""},null,null,null,null,{"$f":"IF(TRIM(DA39)=\"\", \"\", IF(VLOOKUP(DA39,'Footnotes list'!$D$9:$E$58,2,FALSE)=0,\"\",VLOOKUP(DA39,'Footnotes list'!$D$9:$E$58,2,FALSE) ) )","v":""},null,null,null,null,{"$f":"IF(TRIM(DF39)=\"\", \"\", IF(VLOOKUP(DF39,'Footnotes list'!$D$9:$E$58,2,FALSE)=0,\"\",VLOOKUP(DF39,'Footnotes list'!$D$9:$E$58,2,FALSE) ) )","v":""},null,null,null,null,{"$f":"IF(TRIM(DK39)=\"\", \"\", IF(VLOOKUP(DK39,'Footnotes list'!$D$9:$E$58,2,FALSE)=0,\"\",VLOOKUP(DK39,'Footnotes list'!$D$9:$E$58,2,FALSE) ) )","v":""},null,null,null,null,{"$f":"IF(TRIM(DP39)=\"\", \"\", IF(VLOOKUP(DP39,'Footnotes list'!$D$9:$E$58,2,FALSE)=0,\"\",VLOOKUP(DP39,'Footnotes list'!$D$9:$E$58,2,FALSE) ) )","v":""},null,null,null,null,{"$f":"IF(TRIM(DU39)=\"\", \"\", IF(VLOOKUP(DU39,'Footnotes list'!$D$9:$E$58,2,FALSE)=0,\"\",VLOOKUP(DU39,'Footnotes list'!$D$9:$E$58,2,FALSE) ) )","v":""},null,null,null,null,{"$f":"IF(TRIM(DZ39)=\"\", \"\", IF(VLOOKUP(DZ39,'Footnotes list'!$D$9:$E$58,2,FALSE)=0,\"\",VLOOKUP(DZ39,'Footnotes list'!$D$9:$E$58,2,FALSE) ) )","v":""},null,null,null,null,{"$f":"IF(TRIM(EE39)=\"\", \"\", IF(VLOOKUP(EE39,'Footnotes list'!$D$9:$E$58,2,FALSE)=0,\"\",VLOOKUP(EE39,'Footnotes list'!$D$9:$E$58,2,FALSE) ) )","v":""},null,null,null,null,{"$f":"IF(TRIM(EJ39)=\"\", \"\", IF(VLOOKUP(EJ39,'Footnotes list'!$D$9:$E$58,2,FALSE)=0,\"\",VLOOKUP(EJ39,'Footnotes list'!$D$9:$E$58,2,FALSE) ) )","v":""},null,null,null,null,{"$f":"IF(TRIM(EO39)=\"\", \"\", IF(VLOOKUP(EO39,'Footnotes list'!$D$9:$E$58,2,FALSE)=0,\"\",VLOOKUP(EO39,'Footnotes list'!$D$9:$E$58,2,FALSE) ) )","v":""},null,null,null,null,{"$f":"IF(TRIM(ET39)=\"\", \"\", IF(VLOOKUP(ET39,'Footnotes list'!$D$9:$E$58,2,FALSE)=0,\"\",VLOOKUP(ET39,'Footnotes list'!$D$9:$E$58,2,FALSE) ) )","v":""},null,null,null,null,{"$f":"IF(TRIM(EY39)=\"\", \"\", IF(VLOOKUP(EY39,'Footnotes list'!$D$9:$E$58,2,FALSE)=0,\"\",VLOOKUP(EY39,'Footnotes list'!$D$9:$E$58,2,FALSE) ) )","v":""}]
[null,null,"C10-C12","MKT","market activities, including:",null,null,null,null,null,{"$f":"IF(TRIM(J40)=\"\", \"\", IF(VLOOKUP(J40,'Footnotes list'!$D$9:$E$58,2,FALSE)=0,\"\",VLOOKUP(J40,'Footnotes list'!$D$9:$E$58,2,FALSE) ) )","v":""},null,null,null,null,{"$f":"IF(TRIM(O40)=\"\", \"\", IF(VLOOKUP(O40,'Footnotes list'!$D$9:$E$58,2,FALSE)=0,\"\",VLOOKUP(O40,'Footnotes list'!$D$9:$E$58,2,FALSE) ) )","v":""},null,null,null,null,{"$f":"IF(TRIM(T40)=\"\", \"\", IF(VLOOKUP(T40,'Footnotes list'!$D$9:$E$58,2,FALSE)=0,\"\",VLOOKUP(T40,'Footnotes list'!$D$9:$E$58,2,FALSE) ) )","v":""},null,null,null,null,{"$f":"IF(TRIM(Y40)=\"\", \"\", IF(VLOOKUP(Y40,'Footnotes list'!$D$9:$E$58,2,FALSE)=0,\"\",VLOOKUP(Y40,'Footnotes list'!$D$9:$E$58,2,FALSE) ) )","v":""},null,null,null,null,{"$f":"IF(TRIM(AD40)=\"\", \"\", IF(VLOOKUP(AD40,'Footnotes list'!$D$9:$E$58,2,FALSE)=0,\"\",VLOOKUP(AD40,'Footnotes list'!$D$9:$E$58,2,FALSE) ) )","v":""},null,null,null,null,{"$f":"IF(TRIM(AI40)=\"\", \"\", IF(VLOOKUP(AI40,'Footnotes list'!$D$9:$E$58,2,FALSE)=0,\"\",VLOOKUP(AI40,'Footnotes list'!$D$9:$E$58,2,FALSE) ) )","v":""},null,null,null,null,{"$f":"IF(TRIM(AN40)=\"\", \"\", IF(VLOOKUP(AN40,'Footnotes list'!$D$9:$E$58,2,FALSE)=0,\"\",VLOOKUP(AN40,'Footnotes list'!$D$9:$E$58,2,FALSE) ) )","v":""},null,null,null,null,{"$f":"IF(TRIM(AS40)=\"\", \"\", IF(VLOOKUP(AS40,'Footnotes list'!$D$9:$E$58,2,FALSE)=0,\"\",VLOOKUP(AS40,'Footnotes list'!$D$9:$E$58,2,FALSE) ) )","v":""},null,null,null,null,{"$f":"IF(TRIM(AX40)=\"\", \"\", IF(VLOOKUP(AX40,'Footnotes list'!$D$9:$E$58,2,FALSE)=0,\"\",VLOOKUP(AX40,'Footnotes list'!$D$9:$E$58,2,FALSE) ) )","v":""},null,null,null,null,{"$f":"IF(TRIM(BC40)=\"\", \"\", IF(VLOOKUP(BC40,'Footnotes list'!$D$9:$E$58,2,FALSE)=0,\"\",VLOOKUP(BC40,'Footnotes list'!$D$9:$E$58,2,FALSE) ) )","v":""},null,null,null,null,{"$f":"IF(TRIM(BH40)=\"\", \"\", IF(VLOOKUP(BH40,'Footnotes list'!$D$9:$E$58,2,FALSE)=0,\"\",VLOOKUP(BH40,'Footnotes list'!$D$9:$E$58,2,FALSE) ) )","v":""},null,null,null,null,{"$f":"IF(TRIM(BM40)=\"\", \"\", IF(VLOOKUP(BM40,'Footnotes list'!$D$9:$E$58,2,FALSE)=0,\"\",VLOOKUP(BM40,'Footnotes list'!$D$9:$E$58,2,FALSE) ) )","v":""},null,null,null,null,{"$f":"IF(TRIM(BR40)=\"\", \"\", IF(VLOOKUP(BR40,'Footnotes list'!$D$9:$E$58,2,FALSE)=0,\"\",VLOOKUP(BR40,'Footnotes list'!$D$9:$E$58,2,FALSE) ) )","v":""},null,null,null,null,{"$f":"IF(TRIM(BW40)=\"\", \"\", IF(VLOOKUP(BW40,'Footnotes list'!$D$9:$E$58,2,FALSE)=0,\"\",VLOOKUP(BW40,'Footnotes list'!$D$9:$E$58,2,FALSE) ) )","v":""},null,null,null,null,{"$f":"IF(TRIM(CB40)=\"\", \"\", IF(VLOOKUP(CB40,'Footnotes list'!$D$9:$E$58,2,FALSE)=0,\"\",VLOOKUP(CB40,'Footnotes list'!$D$9:$E$58,2,FALSE) ) )","v":""},null,null,null,null,{"$f":"IF(TRIM(CG40)=\"\", \"\", IF(VLOOKUP(CG40,'Footnotes list'!$D$9:$E$58,2,FALSE)=0,\"\",VLOOKUP(CG40,'Footnotes list'!$D$9:$E$58,2,FALSE) ) )","v":""},null,null,null,null,{"$f":"IF(TRIM(CL40)=\"\", \"\", IF(VLOOKUP(CL40,'Footnotes list'!$D$9:$E$58,2,FALSE)=0,\"\",VLOOKUP(CL40,'Footnotes list'!$D$9:$E$58,2,FALSE) ) )","v":""},null,null,null,null,{"$f":"IF(TRIM(CQ40)=\"\", \"\", IF(VLOOKUP(CQ40,'Footnotes list'!$D$9:$E$58,2,FALSE)=0,\"\",VLOOKUP(CQ40,'Footnotes list'!$D$9:$E$58,2,FALSE) ) )","v":""},null,null,null,null,{"$f":"IF(TRIM(CV40)=\"\", \"\", IF(VLOOKUP(CV40,'Footnotes list'!$D$9:$E$58,2,FALSE)=0,\"\",VLOOKUP(CV40,'Footnotes list'!$D$9:$E$58,2,FALSE) ) )","v":""},null,null,null,null,{"$f":"IF(TRIM(DA40)=\"\", \"\", IF(VLOOKUP(DA40,'Footnotes list'!$D$9:$E$58,2,FALSE)=0,\"\",VLOOKUP(DA40,'Footnotes list'!$D$9:$E$58,2,FALSE) ) )","v":""},null,null,null,null,{"$f":"IF(TRIM(DF40)=\"\", \"\", IF(VLOOKUP(DF40,'Footnotes list'!$D$9:$E$58,2,FALSE)=0,\"\",VLOOKUP(DF40,'Footnotes list'!$D$9:$E$58,2,FALSE) ) )","v":""},null,null,null,null,{"$f":"IF(TRIM(DK40)=\"\", \"\", IF(VLOOKUP(DK40,'Footnotes list'!$D$9:$E$58,2,FALSE)=0,\"\",VLOOKUP(DK40,'Footnotes list'!$D$9:$E$58,2,FALSE) ) )","v":""},null,null,null,null,{"$f":"IF(TRIM(DP40)=\"\", \"\", IF(VLOOKUP(DP40,'Footnotes list'!$D$9:$E$58,2,FALSE)=0,\"\",VLOOKUP(DP40,'Footnotes list'!$D$9:$E$58,2,FALSE) ) )","v":""},null,null,null,null,{"$f":"IF(TRIM(DU40)=\"\", \"\", IF(VLOOKUP(DU40,'Footnotes list'!$D$9:$E$58,2,FALSE)=0,\"\",VLOOKUP(DU40,'Footnotes list'!$D$9:$E$58,2,FALSE) ) )","v":""},null,null,null,null,{"$f":"IF(TRIM(DZ40)=\"\", \"\", IF(VLOOKUP(DZ40,'Footnotes list'!$D$9:$E$58,2,FALSE)=0,\"\",VLOOKUP(DZ40,'Footnotes list'!$D$9:$E$58,2,FALSE) ) )","v":""},null,null,null,null,{"$f":"IF(TRIM(EE40)=\"\", \"\", IF(VLOOKUP(EE40,'Footnotes list'!$D$9:$E$58,2,FALSE)=0,\"\",VLOOKUP(EE40,'Footnotes list'!$D$9:$E$58,2,FALSE) ) )","v":""},null,null,null,null,{"$f":"IF(TRIM(EJ40)=\"\", \"\", IF(VLOOKUP(EJ40,'Footnotes list'!$D$9:$E$58,2,FALSE)=0,\"\",VLOOKUP(EJ40,'Footnotes list'!$D$9:$E$58,2,FALSE) ) )","v":""},null,null,null,null,{"$f":"IF(TRIM(EO40)=\"\", \"\", IF(VLOOKUP(EO40,'Footnotes list'!$D$9:$E$58,2,FALSE)=0,\"\",VLOOKUP(EO40,'Footnotes list'!$D$9:$E$58,2,FALSE) ) )","v":""},null,null,null,null,{"$f":"IF(TRIM(ET40)=\"\", \"\", IF(VLOOKUP(ET40,'Footnotes list'!$D$9:$E$58,2,FALSE)=0,\"\",VLOOKUP(ET40,'Footnotes list'!$D$9:$E$58,2,FALSE) ) )","v":""},null,null,null,null,{"$f":"IF(TRIM(EY40)=\"\", \"\", IF(VLOOKUP(EY40,'Footnotes list'!$D$9:$E$58,2,FALSE)=0,\"\",VLOOKUP(EY40,'Footnotes list'!$D$9:$E$58,2,FALSE) ) )","v":""}]
[null,null,"C10-C12","ES_CS","environmental specific services",null,null,null,null,null,{"$f":"IF(TRIM(J41)=\"\", \"\", IF(VLOOKUP(J41,'Footnotes list'!$D$9:$E$58,2,FALSE)=0,\"\",VLOOKUP(J41,'Footnotes list'!$D$9:$E$58,2,FALSE) ) )","v":""},null,null,null,null,{"$f":"IF(TRIM(O41)=\"\", \"\", IF(VLOOKUP(O41,'Footnotes list'!$D$9:$E$58,2,FALSE)=0,\"\",VLOOKUP(O41,'Footnotes list'!$D$9:$E$58,2,FALSE) ) )","v":""},null,null,null,null,{"$f":"IF(TRIM(T41)=\"\", \"\", IF(VLOOKUP(T41,'Footnotes list'!$D$9:$E$58,2,FALSE)=0,\"\",VLOOKUP(T41,'Footnotes list'!$D$9:$E$58,2,FALSE) ) )","v":""},null,null,null,null,{"$f":"IF(TRIM(Y41)=\"\", \"\", IF(VLOOKUP(Y41,'Footnotes list'!$D$9:$E$58,2,FALSE)=0,\"\",VLOOKUP(Y41,'Footnotes list'!$D$9:$E$58,2,FALSE) ) )","v":""},null,null,null,null,{"$f":"IF(TRIM(AD41)=\"\", \"\", IF(VLOOKUP(AD41,'Footnotes list'!$D$9:$E$58,2,FALSE)=0,\"\",VLOOKUP(AD41,'Footnotes list'!$D$9:$E$58,2,FALSE) ) )","v":""},null,null,null,null,{"$f":"IF(TRIM(AI41)=\"\", \"\", IF(VLOOKUP(AI41,'Footnotes list'!$D$9:$E$58,2,FALSE)=0,\"\",VLOOKUP(AI41,'Footnotes list'!$D$9:$E$58,2,FALSE) ) )","v":""},null,null,null,null,{"$f":"IF(TRIM(AN41)=\"\", \"\", IF(VLOOKUP(AN41,'Footnotes list'!$D$9:$E$58,2,FALSE)=0,\"\",VLOOKUP(AN41,'Footnotes list'!$D$9:$E$58,2,FALSE) ) )","v":""},null,null,null,null,{"$f":"IF(TRIM(AS41)=\"\", \"\", IF(VLOOKUP(AS41,'Footnotes list'!$D$9:$E$58,2,FALSE)=0,\"\",VLOOKUP(AS41,'Footnotes list'!$D$9:$E$58,2,FALSE) ) )","v":""},null,null,null,null,{"$f":"IF(TRIM(AX41)=\"\", \"\", IF(VLOOKUP(AX41,'Footnotes list'!$D$9:$E$58,2,FALSE)=0,\"\",VLOOKUP(AX41,'Footnotes list'!$D$9:$E$58,2,FALSE) ) )","v":""},null,null,null,null,{"$f":"IF(TRIM(BC41)=\"\", \"\", IF(VLOOKUP(BC41,'Footnotes list'!$D$9:$E$58,2,FALSE)=0,\"\",VLOOKUP(BC41,'Footnotes list'!$D$9:$E$58,2,FALSE) ) )","v":""},null,null,null,null,{"$f":"IF(TRIM(BH41)=\"\", \"\", IF(VLOOKUP(BH41,'Footnotes list'!$D$9:$E$58,2,FALSE)=0,\"\",VLOOKUP(BH41,'Footnotes list'!$D$9:$E$58,2,FALSE) ) )","v":""},null,null,null,null,{"$f":"IF(TRIM(BM41)=\"\", \"\", IF(VLOOKUP(BM41,'Footnotes list'!$D$9:$E$58,2,FALSE)=0,\"\",VLOOKUP(BM41,'Footnotes list'!$D$9:$E$58,2,FALSE) ) )","v":""},null,null,null,null,{"$f":"IF(TRIM(BR41)=\"\", \"\", IF(VLOOKUP(BR41,'Footnotes list'!$D$9:$E$58,2,FALSE)=0,\"\",VLOOKUP(BR41,'Footnotes list'!$D$9:$E$58,2,FALSE) ) )","v":""},null,null,null,null,{"$f":"IF(TRIM(BW41)=\"\", \"\", IF(VLOOKUP(BW41,'Footnotes list'!$D$9:$E$58,2,FALSE)=0,\"\",VLOOKUP(BW41,'Footnotes list'!$D$9:$E$58,2,FALSE) ) )","v":""},null,null,null,null,{"$f":"IF(TRIM(CB41)=\"\", \"\", IF(VLOOKUP(CB41,'Footnotes list'!$D$9:$E$58,2,FALSE)=0,\"\",VLOOKUP(CB41,'Footnotes list'!$D$9:$E$58,2,FALSE) ) )","v":""},null,null,null,null,{"$f":"IF(TRIM(CG41)=\"\", \"\", IF(VLOOKUP(CG41,'Footnotes list'!$D$9:$E$58,2,FALSE)=0,\"\",VLOOKUP(CG41,'Footnotes list'!$D$9:$E$58,2,FALSE) ) )","v":""},null,null,null,null,{"$f":"IF(TRIM(CL41)=\"\", \"\", IF(VLOOKUP(CL41,'Footnotes list'!$D$9:$E$58,2,FALSE)=0,\"\",VLOOKUP(CL41,'Footnotes list'!$D$9:$E$58,2,FALSE) ) )","v":""},null,null,null,null,{"$f":"IF(TRIM(CQ41)=\"\", \"\", IF(VLOOKUP(CQ41,'Footnotes list'!$D$9:$E$58,2,FALSE)=0,\"\",VLOOKUP(CQ41,'Footnotes list'!$D$9:$E$58,2,FALSE) ) )","v":""},null,null,null,null,{"$f":"IF(TRIM(CV41)=\"\", \"\", IF(VLOOKUP(CV41,'Footnotes list'!$D$9:$E$58,2,FALSE)=0,\"\",VLOOKUP(CV41,'Footnotes list'!$D$9:$E$58,2,FALSE) ) )","v":""},null,null,null,null,{"$f":"IF(TRIM(DA41)=\"\", \"\", IF(VLOOKUP(DA41,'Footnotes list'!$D$9:$E$58,2,FALSE)=0,\"\",VLOOKUP(DA41,'Footnotes list'!$D$9:$E$58,2,FALSE) ) )","v":""},null,null,null,null,{"$f":"IF(TRIM(DF41)=\"\", \"\", IF(VLOOKUP(DF41,'Footnotes list'!$D$9:$E$58,2,FALSE)=0,\"\",VLOOKUP(DF41,'Footnotes list'!$D$9:$E$58,2,FALSE) ) )","v":""},null,null,null,null,{"$f":"IF(TRIM(DK41)=\"\", \"\", IF(VLOOKUP(DK41,'Footnotes list'!$D$9:$E$58,2,FALSE)=0,\"\",VLOOKUP(DK41,'Footnotes list'!$D$9:$E$58,2,FALSE) ) )","v":""},null,null,null,null,{"$f":"IF(TRIM(DP41)=\"\", \"\", IF(VLOOKUP(DP41,'Footnotes list'!$D$9:$E$58,2,FALSE)=0,\"\",VLOOKUP(DP41,'Footnotes list'!$D$9:$E$58,2,FALSE) ) )","v":""},null,null,null,null,{"$f":"IF(TRIM(DU41)=\"\", \"\", IF(VLOOKUP(DU41,'Footnotes list'!$D$9:$E$58,2,FALSE)=0,\"\",VLOOKUP(DU41,'Footnotes list'!$D$9:$E$58,2,FALSE) ) )","v":""},null,null,null,null,{"$f":"IF(TRIM(DZ41)=\"\", \"\", IF(VLOOKUP(DZ41,'Footnotes list'!$D$9:$E$58,2,FALSE)=0,\"\",VLOOKUP(DZ41,'Footnotes list'!$D$9:$E$58,2,FALSE) ) )","v":""},null,null,null,null,{"$f":"IF(TRIM(EE41)=\"\", \"\", IF(VLOOKUP(EE41,'Footnotes list'!$D$9:$E$58,2,FALSE)=0,\"\",VLOOKUP(EE41,'Footnotes list'!$D$9:$E$58,2,FALSE) ) )","v":""},null,null,null,null,{"$f":"IF(TRIM(EJ41)=\"\", \"\", IF(VLOOKUP(EJ41,'Footnotes list'!$D$9:$E$58,2,FALSE)=0,\"\",VLOOKUP(EJ41,'Footnotes list'!$D$9:$E$58,2,FALSE) ) )","v":""},null,null,null,null,{"$f":"IF(TRIM(EO41)=\"\", \"\", IF(VLOOKUP(EO41,'Footnotes list'!$D$9:$E$58,2,FALSE)=0,\"\",VLOOKUP(EO41,'Footnotes list'!$D$9:$E$58,2,FALSE) ) )","v":""},null,null,null,null,{"$f":"IF(TRIM(ET41)=\"\", \"\", IF(VLOOKUP(ET41,'Footnotes list'!$D$9:$E$58,2,FALSE)=0,\"\",VLOOKUP(ET41,'Footnotes list'!$D$9:$E$58,2,FALSE) ) )","v":""},null,null,null,null,{"$f":"IF(TRIM(EY41)=\"\", \"\", IF(VLOOKUP(EY41,'Footnotes list'!$D$9:$E$58,2,FALSE)=0,\"\",VLOOKUP(EY41,'Footnotes list'!$D$9:$E$58,2,FALSE) ) )","v":""}]
[null,null,"C10-C12","C_REP","cleaner and resource efficient products",null,null,null,null,null,{"$f":"IF(TRIM(J42)=\"\", \"\", IF(VLOOKUP(J42,'Footnotes list'!$D$9:$E$58,2,FALSE)=0,\"\",VLOOKUP(J42,'Footnotes list'!$D$9:$E$58,2,FALSE) ) )","v":""},null,null,null,null,{"$f":"IF(TRIM(O42)=\"\", \"\", IF(VLOOKUP(O42,'Footnotes list'!$D$9:$E$58,2,FALSE)=0,\"\",VLOOKUP(O42,'Footnotes list'!$D$9:$E$58,2,FALSE) ) )","v":""},null,null,null,null,{"$f":"IF(TRIM(T42)=\"\", \"\", IF(VLOOKUP(T42,'Footnotes list'!$D$9:$E$58,2,FALSE)=0,\"\",VLOOKUP(T42,'Footnotes list'!$D$9:$E$58,2,FALSE) ) )","v":""},null,null,null,null,{"$f":"IF(TRIM(Y42)=\"\", \"\", IF(VLOOKUP(Y42,'Footnotes list'!$D$9:$E$58,2,FALSE)=0,\"\",VLOOKUP(Y42,'Footnotes list'!$D$9:$E$58,2,FALSE) ) )","v":""},null,null,null,null,{"$f":"IF(TRIM(AD42)=\"\", \"\", IF(VLOOKUP(AD42,'Footnotes list'!$D$9:$E$58,2,FALSE)=0,\"\",VLOOKUP(AD42,'Footnotes list'!$D$9:$E$58,2,FALSE) ) )","v":""},null,null,null,null,{"$f":"IF(TRIM(AI42)=\"\", \"\", IF(VLOOKUP(AI42,'Footnotes list'!$D$9:$E$58,2,FALSE)=0,\"\",VLOOKUP(AI42,'Footnotes list'!$D$9:$E$58,2,FALSE) ) )","v":""},null,null,null,null,{"$f":"IF(TRIM(AN42)=\"\", \"\", IF(VLOOKUP(AN42,'Footnotes list'!$D$9:$E$58,2,FALSE)=0,\"\",VLOOKUP(AN42,'Footnotes list'!$D$9:$E$58,2,FALSE) ) )","v":""},null,null,null,null,{"$f":"IF(TRIM(AS42)=\"\", \"\", IF(VLOOKUP(AS42,'Footnotes list'!$D$9:$E$58,2,FALSE)=0,\"\",VLOOKUP(AS42,'Footnotes list'!$D$9:$E$58,2,FALSE) ) )","v":""},null,null,null,null,{"$f":"IF(TRIM(AX42)=\"\", \"\", IF(VLOOKUP(AX42,'Footnotes list'!$D$9:$E$58,2,FALSE)=0,\"\",VLOOKUP(AX42,'Footnotes list'!$D$9:$E$58,2,FALSE) ) )","v":""},null,null,null,null,{"$f":"IF(TRIM(BC42)=\"\", \"\", IF(VLOOKUP(BC42,'Footnotes list'!$D$9:$E$58,2,FALSE)=0,\"\",VLOOKUP(BC42,'Footnotes list'!$D$9:$E$58,2,FALSE) ) )","v":""},null,null,null,null,{"$f":"IF(TRIM(BH42)=\"\", \"\", IF(VLOOKUP(BH42,'Footnotes list'!$D$9:$E$58,2,FALSE)=0,\"\",VLOOKUP(BH42,'Footnotes list'!$D$9:$E$58,2,FALSE) ) )","v":""},null,null,null,null,{"$f":"IF(TRIM(BM42)=\"\", \"\", IF(VLOOKUP(BM42,'Footnotes list'!$D$9:$E$58,2,FALSE)=0,\"\",VLOOKUP(BM42,'Footnotes list'!$D$9:$E$58,2,FALSE) ) )","v":""},null,null,null,null,{"$f":"IF(TRIM(BR42)=\"\", \"\", IF(VLOOKUP(BR42,'Footnotes list'!$D$9:$E$58,2,FALSE)=0,\"\",VLOOKUP(BR42,'Footnotes list'!$D$9:$E$58,2,FALSE) ) )","v":""},null,null,null,null,{"$f":"IF(TRIM(BW42)=\"\", \"\", IF(VLOOKUP(BW42,'Footnotes list'!$D$9:$E$58,2,FALSE)=0,\"\",VLOOKUP(BW42,'Footnotes list'!$D$9:$E$58,2,FALSE) ) )","v":""},null,null,null,null,{"$f":"IF(TRIM(CB42)=\"\", \"\", IF(VLOOKUP(CB42,'Footnotes list'!$D$9:$E$58,2,FALSE)=0,\"\",VLOOKUP(CB42,'Footnotes list'!$D$9:$E$58,2,FALSE) ) )","v":""},null,null,null,null,{"$f":"IF(TRIM(CG42)=\"\", \"\", IF(VLOOKUP(CG42,'Footnotes list'!$D$9:$E$58,2,FALSE)=0,\"\",VLOOKUP(CG42,'Footnotes list'!$D$9:$E$58,2,FALSE) ) )","v":""},null,null,null,null,{"$f":"IF(TRIM(CL42)=\"\", \"\", IF(VLOOKUP(CL42,'Footnotes list'!$D$9:$E$58,2,FALSE)=0,\"\",VLOOKUP(CL42,'Footnotes list'!$D$9:$E$58,2,FALSE) ) )","v":""},null,null,null,null,{"$f":"IF(TRIM(CQ42)=\"\", \"\", IF(VLOOKUP(CQ42,'Footnotes list'!$D$9:$E$58,2,FALSE)=0,\"\",VLOOKUP(CQ42,'Footnotes list'!$D$9:$E$58,2,FALSE) ) )","v":""},null,null,null,null,{"$f":"IF(TRIM(CV42)=\"\", \"\", IF(VLOOKUP(CV42,'Footnotes list'!$D$9:$E$58,2,FALSE)=0,\"\",VLOOKUP(CV42,'Footnotes list'!$D$9:$E$58,2,FALSE) ) )","v":""},null,null,null,null,{"$f":"IF(TRIM(DA42)=\"\", \"\", IF(VLOOKUP(DA42,'Footnotes list'!$D$9:$E$58,2,FALSE)=0,\"\",VLOOKUP(DA42,'Footnotes list'!$D$9:$E$58,2,FALSE) ) )","v":""},null,null,null,null,{"$f":"IF(TRIM(DF42)=\"\", \"\", IF(VLOOKUP(DF42,'Footnotes list'!$D$9:$E$58,2,FALSE)=0,\"\",VLOOKUP(DF42,'Footnotes list'!$D$9:$E$58,2,FALSE) ) )","v":""},null,null,null,null,{"$f":"IF(TRIM(DK42)=\"\", \"\", IF(VLOOKUP(DK42,'Footnotes list'!$D$9:$E$58,2,FALSE)=0,\"\",VLOOKUP(DK42,'Footnotes list'!$D$9:$E$58,2,FALSE) ) )","v":""},null,null,null,null,{"$f":"IF(TRIM(DP42)=\"\", \"\", IF(VLOOKUP(DP42,'Footnotes list'!$D$9:$E$58,2,FALSE)=0,\"\",VLOOKUP(DP42,'Footnotes list'!$D$9:$E$58,2,FALSE) ) )","v":""},null,null,null,null,{"$f":"IF(TRIM(DU42)=\"\", \"\", IF(VLOOKUP(DU42,'Footnotes list'!$D$9:$E$58,2,FALSE)=0,\"\",VLOOKUP(DU42,'Footnotes list'!$D$9:$E$58,2,FALSE) ) )","v":""},null,null,null,null,{"$f":"IF(TRIM(DZ42)=\"\", \"\", IF(VLOOKUP(DZ42,'Footnotes list'!$D$9:$E$58,2,FALSE)=0,\"\",VLOOKUP(DZ42,'Footnotes list'!$D$9:$E$58,2,FALSE) ) )","v":""},null,null,null,null,{"$f":"IF(TRIM(EE42)=\"\", \"\", IF(VLOOKUP(EE42,'Footnotes list'!$D$9:$E$58,2,FALSE)=0,\"\",VLOOKUP(EE42,'Footnotes list'!$D$9:$E$58,2,FALSE) ) )","v":""},null,null,null,null,{"$f":"IF(TRIM(EJ42)=\"\", \"\", IF(VLOOKUP(EJ42,'Footnotes list'!$D$9:$E$58,2,FALSE)=0,\"\",VLOOKUP(EJ42,'Footnotes list'!$D$9:$E$58,2,FALSE) ) )","v":""},null,null,null,null,{"$f":"IF(TRIM(EO42)=\"\", \"\", IF(VLOOKUP(EO42,'Footnotes list'!$D$9:$E$58,2,FALSE)=0,\"\",VLOOKUP(EO42,'Footnotes list'!$D$9:$E$58,2,FALSE) ) )","v":""},null,null,null,null,{"$f":"IF(TRIM(ET42)=\"\", \"\", IF(VLOOKUP(ET42,'Footnotes list'!$D$9:$E$58,2,FALSE)=0,\"\",VLOOKUP(ET42,'Footnotes list'!$D$9:$E$58,2,FALSE) ) )","v":""},null,null,null,null,{"$f":"IF(TRIM(EY42)=\"\", \"\", IF(VLOOKUP(EY42,'Footnotes list'!$D$9:$E$58,2,FALSE)=0,\"\",VLOOKUP(EY42,'Footnotes list'!$D$9:$E$58,2,FALSE) ) )","v":""}]
[null,null,"C13-C15","TOT_EGSS","Total C13 - C15 Manufacture of textiles, wearing apparel, leather and related products, of which:",null,null,null,null,null,{"$f":"IF(TRIM(J43)=\"\", \"\", IF(VLOOKUP(J43,'Footnotes list'!$D$9:$E$58,2,FALSE)=0,\"\",VLOOKUP(J43,'Footnotes list'!$D$9:$E$58,2,FALSE) ) )","v":""},null,null,null,null,{"$f":"IF(TRIM(O43)=\"\", \"\", IF(VLOOKUP(O43,'Footnotes list'!$D$9:$E$58,2,FALSE)=0,\"\",VLOOKUP(O43,'Footnotes list'!$D$9:$E$58,2,FALSE) ) )","v":""},null,null,null,null,{"$f":"IF(TRIM(T43)=\"\", \"\", IF(VLOOKUP(T43,'Footnotes list'!$D$9:$E$58,2,FALSE)=0,\"\",VLOOKUP(T43,'Footnotes list'!$D$9:$E$58,2,FALSE) ) )","v":""},null,null,null,null,{"$f":"IF(TRIM(Y43)=\"\", \"\", IF(VLOOKUP(Y43,'Footnotes list'!$D$9:$E$58,2,FALSE)=0,\"\",VLOOKUP(Y43,'Footnotes list'!$D$9:$E$58,2,FALSE) ) )","v":""},null,null,null,null,{"$f":"IF(TRIM(AD43)=\"\", \"\", IF(VLOOKUP(AD43,'Footnotes list'!$D$9:$E$58,2,FALSE)=0,\"\",VLOOKUP(AD43,'Footnotes list'!$D$9:$E$58,2,FALSE) ) )","v":""},null,null,null,null,{"$f":"IF(TRIM(AI43)=\"\", \"\", IF(VLOOKUP(AI43,'Footnotes list'!$D$9:$E$58,2,FALSE)=0,\"\",VLOOKUP(AI43,'Footnotes list'!$D$9:$E$58,2,FALSE) ) )","v":""},null,null,null,null,{"$f":"IF(TRIM(AN43)=\"\", \"\", IF(VLOOKUP(AN43,'Footnotes list'!$D$9:$E$58,2,FALSE)=0,\"\",VLOOKUP(AN43,'Footnotes list'!$D$9:$E$58,2,FALSE) ) )","v":""},null,null,null,null,{"$f":"IF(TRIM(AS43)=\"\", \"\", IF(VLOOKUP(AS43,'Footnotes list'!$D$9:$E$58,2,FALSE)=0,\"\",VLOOKUP(AS43,'Footnotes list'!$D$9:$E$58,2,FALSE) ) )","v":""},null,null,null,null,{"$f":"IF(TRIM(AX43)=\"\", \"\", IF(VLOOKUP(AX43,'Footnotes list'!$D$9:$E$58,2,FALSE)=0,\"\",VLOOKUP(AX43,'Footnotes list'!$D$9:$E$58,2,FALSE) ) )","v":""},null,null,null,null,{"$f":"IF(TRIM(BC43)=\"\", \"\", IF(VLOOKUP(BC43,'Footnotes list'!$D$9:$E$58,2,FALSE)=0,\"\",VLOOKUP(BC43,'Footnotes list'!$D$9:$E$58,2,FALSE) ) )","v":""},null,null,null,null,{"$f":"IF(TRIM(BH43)=\"\", \"\", IF(VLOOKUP(BH43,'Footnotes list'!$D$9:$E$58,2,FALSE)=0,\"\",VLOOKUP(BH43,'Footnotes list'!$D$9:$E$58,2,FALSE) ) )","v":""},null,null,null,null,{"$f":"IF(TRIM(BM43)=\"\", \"\", IF(VLOOKUP(BM43,'Footnotes list'!$D$9:$E$58,2,FALSE)=0,\"\",VLOOKUP(BM43,'Footnotes list'!$D$9:$E$58,2,FALSE) ) )","v":""},null,null,null,null,{"$f":"IF(TRIM(BR43)=\"\", \"\", IF(VLOOKUP(BR43,'Footnotes list'!$D$9:$E$58,2,FALSE)=0,\"\",VLOOKUP(BR43,'Footnotes list'!$D$9:$E$58,2,FALSE) ) )","v":""},null,null,null,null,{"$f":"IF(TRIM(BW43)=\"\", \"\", IF(VLOOKUP(BW43,'Footnotes list'!$D$9:$E$58,2,FALSE)=0,\"\",VLOOKUP(BW43,'Footnotes list'!$D$9:$E$58,2,FALSE) ) )","v":""},null,null,null,null,{"$f":"IF(TRIM(CB43)=\"\", \"\", IF(VLOOKUP(CB43,'Footnotes list'!$D$9:$E$58,2,FALSE)=0,\"\",VLOOKUP(CB43,'Footnotes list'!$D$9:$E$58,2,FALSE) ) )","v":""},null,null,null,null,{"$f":"IF(TRIM(CG43)=\"\", \"\", IF(VLOOKUP(CG43,'Footnotes list'!$D$9:$E$58,2,FALSE)=0,\"\",VLOOKUP(CG43,'Footnotes list'!$D$9:$E$58,2,FALSE) ) )","v":""},null,null,null,null,{"$f":"IF(TRIM(CL43)=\"\", \"\", IF(VLOOKUP(CL43,'Footnotes list'!$D$9:$E$58,2,FALSE)=0,\"\",VLOOKUP(CL43,'Footnotes list'!$D$9:$E$58,2,FALSE) ) )","v":""},null,null,null,null,{"$f":"IF(TRIM(CQ43)=\"\", \"\", IF(VLOOKUP(CQ43,'Footnotes list'!$D$9:$E$58,2,FALSE)=0,\"\",VLOOKUP(CQ43,'Footnotes list'!$D$9:$E$58,2,FALSE) ) )","v":""},null,null,null,null,{"$f":"IF(TRIM(CV43)=\"\", \"\", IF(VLOOKUP(CV43,'Footnotes list'!$D$9:$E$58,2,FALSE)=0,\"\",VLOOKUP(CV43,'Footnotes list'!$D$9:$E$58,2,FALSE) ) )","v":""},null,null,null,null,{"$f":"IF(TRIM(DA43)=\"\", \"\", IF(VLOOKUP(DA43,'Footnotes list'!$D$9:$E$58,2,FALSE)=0,\"\",VLOOKUP(DA43,'Footnotes list'!$D$9:$E$58,2,FALSE) ) )","v":""},null,null,null,null,{"$f":"IF(TRIM(DF43)=\"\", \"\", IF(VLOOKUP(DF43,'Footnotes list'!$D$9:$E$58,2,FALSE)=0,\"\",VLOOKUP(DF43,'Footnotes list'!$D$9:$E$58,2,FALSE) ) )","v":""},null,null,null,null,{"$f":"IF(TRIM(DK43)=\"\", \"\", IF(VLOOKUP(DK43,'Footnotes list'!$D$9:$E$58,2,FALSE)=0,\"\",VLOOKUP(DK43,'Footnotes list'!$D$9:$E$58,2,FALSE) ) )","v":""},null,null,null,null,{"$f":"IF(TRIM(DP43)=\"\", \"\", IF(VLOOKUP(DP43,'Footnotes list'!$D$9:$E$58,2,FALSE)=0,\"\",VLOOKUP(DP43,'Footnotes list'!$D$9:$E$58,2,FALSE) ) )","v":""},null,null,null,null,{"$f":"IF(TRIM(DU43)=\"\", \"\", IF(VLOOKUP(DU43,'Footnotes list'!$D$9:$E$58,2,FALSE)=0,\"\",VLOOKUP(DU43,'Footnotes list'!$D$9:$E$58,2,FALSE) ) )","v":""},null,null,null,null,{"$f":"IF(TRIM(DZ43)=\"\", \"\", IF(VLOOKUP(DZ43,'Footnotes list'!$D$9:$E$58,2,FALSE)=0,\"\",VLOOKUP(DZ43,'Footnotes list'!$D$9:$E$58,2,FALSE) ) )","v":""},null,null,null,null,{"$f":"IF(TRIM(EE43)=\"\", \"\", IF(VLOOKUP(EE43,'Footnotes list'!$D$9:$E$58,2,FALSE)=0,\"\",VLOOKUP(EE43,'Footnotes list'!$D$9:$E$58,2,FALSE) ) )","v":""},null,null,null,null,{"$f":"IF(TRIM(EJ43)=\"\", \"\", IF(VLOOKUP(EJ43,'Footnotes list'!$D$9:$E$58,2,FALSE)=0,\"\",VLOOKUP(EJ43,'Footnotes list'!$D$9:$E$58,2,FALSE) ) )","v":""},null,null,null,null,{"$f":"IF(TRIM(EO43)=\"\", \"\", IF(VLOOKUP(EO43,'Footnotes list'!$D$9:$E$58,2,FALSE)=0,\"\",VLOOKUP(EO43,'Footnotes list'!$D$9:$E$58,2,FALSE) ) )","v":""},null,null,null,null,{"$f":"IF(TRIM(ET43)=\"\", \"\", IF(VLOOKUP(ET43,'Footnotes list'!$D$9:$E$58,2,FALSE)=0,\"\",VLOOKUP(ET43,'Footnotes list'!$D$9:$E$58,2,FALSE) ) )","v":""},null,null,null,null,{"$f":"IF(TRIM(EY43)=\"\", \"\", IF(VLOOKUP(EY43,'Footnotes list'!$D$9:$E$58,2,FALSE)=0,\"\",VLOOKUP(EY43,'Footnotes list'!$D$9:$E$58,2,FALSE) ) )","v":""}]
[null,null,"C13-C15","ANC","ancillary activities",null,null,null,null,null,{"$f":"IF(TRIM(J44)=\"\", \"\", IF(VLOOKUP(J44,'Footnotes list'!$D$9:$E$58,2,FALSE)=0,\"\",VLOOKUP(J44,'Footnotes list'!$D$9:$E$58,2,FALSE) ) )","v":""},null,null,null,null,{"$f":"IF(TRIM(O44)=\"\", \"\", IF(VLOOKUP(O44,'Footnotes list'!$D$9:$E$58,2,FALSE)=0,\"\",VLOOKUP(O44,'Footnotes list'!$D$9:$E$58,2,FALSE) ) )","v":""},null,null,null,null,{"$f":"IF(TRIM(T44)=\"\", \"\", IF(VLOOKUP(T44,'Footnotes list'!$D$9:$E$58,2,FALSE)=0,\"\",VLOOKUP(T44,'Footnotes list'!$D$9:$E$58,2,FALSE) ) )","v":""},null,null,null,null,{"$f":"IF(TRIM(Y44)=\"\", \"\", IF(VLOOKUP(Y44,'Footnotes list'!$D$9:$E$58,2,FALSE)=0,\"\",VLOOKUP(Y44,'Footnotes list'!$D$9:$E$58,2,FALSE) ) )","v":""},null,null,null,null,{"$f":"IF(TRIM(AD44)=\"\", \"\", IF(VLOOKUP(AD44,'Footnotes list'!$D$9:$E$58,2,FALSE)=0,\"\",VLOOKUP(AD44,'Footnotes list'!$D$9:$E$58,2,FALSE) ) )","v":""},null,null,null,null,{"$f":"IF(TRIM(AI44)=\"\", \"\", IF(VLOOKUP(AI44,'Footnotes list'!$D$9:$E$58,2,FALSE)=0,\"\",VLOOKUP(AI44,'Footnotes list'!$D$9:$E$58,2,FALSE) ) )","v":""},null,null,null,null,{"$f":"IF(TRIM(AN44)=\"\", \"\", IF(VLOOKUP(AN44,'Footnotes list'!$D$9:$E$58,2,FALSE)=0,\"\",VLOOKUP(AN44,'Footnotes list'!$D$9:$E$58,2,FALSE) ) )","v":""},null,null,null,null,{"$f":"IF(TRIM(AS44)=\"\", \"\", IF(VLOOKUP(AS44,'Footnotes list'!$D$9:$E$58,2,FALSE)=0,\"\",VLOOKUP(AS44,'Footnotes list'!$D$9:$E$58,2,FALSE) ) )","v":""},null,null,null,null,{"$f":"IF(TRIM(AX44)=\"\", \"\", IF(VLOOKUP(AX44,'Footnotes list'!$D$9:$E$58,2,FALSE)=0,\"\",VLOOKUP(AX44,'Footnotes list'!$D$9:$E$58,2,FALSE) ) )","v":""},null,null,null,null,{"$f":"IF(TRIM(BC44)=\"\", \"\", IF(VLOOKUP(BC44,'Footnotes list'!$D$9:$E$58,2,FALSE)=0,\"\",VLOOKUP(BC44,'Footnotes list'!$D$9:$E$58,2,FALSE) ) )","v":""},null,null,null,null,{"$f":"IF(TRIM(BH44)=\"\", \"\", IF(VLOOKUP(BH44,'Footnotes list'!$D$9:$E$58,2,FALSE)=0,\"\",VLOOKUP(BH44,'Footnotes list'!$D$9:$E$58,2,FALSE) ) )","v":""},null,null,null,null,{"$f":"IF(TRIM(BM44)=\"\", \"\", IF(VLOOKUP(BM44,'Footnotes list'!$D$9:$E$58,2,FALSE)=0,\"\",VLOOKUP(BM44,'Footnotes list'!$D$9:$E$58,2,FALSE) ) )","v":""},null,null,null,null,{"$f":"IF(TRIM(BR44)=\"\", \"\", IF(VLOOKUP(BR44,'Footnotes list'!$D$9:$E$58,2,FALSE)=0,\"\",VLOOKUP(BR44,'Footnotes list'!$D$9:$E$58,2,FALSE) ) )","v":""},null,null,null,null,{"$f":"IF(TRIM(BW44)=\"\", \"\", IF(VLOOKUP(BW44,'Footnotes list'!$D$9:$E$58,2,FALSE)=0,\"\",VLOOKUP(BW44,'Footnotes list'!$D$9:$E$58,2,FALSE) ) )","v":""},null,null,null,null,{"$f":"IF(TRIM(CB44)=\"\", \"\", IF(VLOOKUP(CB44,'Footnotes list'!$D$9:$E$58,2,FALSE)=0,\"\",VLOOKUP(CB44,'Footnotes list'!$D$9:$E$58,2,FALSE) ) )","v":""},null,null,null,null,{"$f":"IF(TRIM(CG44)=\"\", \"\", IF(VLOOKUP(CG44,'Footnotes list'!$D$9:$E$58,2,FALSE)=0,\"\",VLOOKUP(CG44,'Footnotes list'!$D$9:$E$58,2,FALSE) ) )","v":""},null,null,null,null,{"$f":"IF(TRIM(CL44)=\"\", \"\", IF(VLOOKUP(CL44,'Footnotes list'!$D$9:$E$58,2,FALSE)=0,\"\",VLOOKUP(CL44,'Footnotes list'!$D$9:$E$58,2,FALSE) ) )","v":""},null,null,null,null,{"$f":"IF(TRIM(CQ44)=\"\", \"\", IF(VLOOKUP(CQ44,'Footnotes list'!$D$9:$E$58,2,FALSE)=0,\"\",VLOOKUP(CQ44,'Footnotes list'!$D$9:$E$58,2,FALSE) ) )","v":""},null,null,null,null,{"$f":"IF(TRIM(CV44)=\"\", \"\", IF(VLOOKUP(CV44,'Footnotes list'!$D$9:$E$58,2,FALSE)=0,\"\",VLOOKUP(CV44,'Footnotes list'!$D$9:$E$58,2,FALSE) ) )","v":""},null,null,null,null,{"$f":"IF(TRIM(DA44)=\"\", \"\", IF(VLOOKUP(DA44,'Footnotes list'!$D$9:$E$58,2,FALSE)=0,\"\",VLOOKUP(DA44,'Footnotes list'!$D$9:$E$58,2,FALSE) ) )","v":""},null,null,null,null,{"$f":"IF(TRIM(DF44)=\"\", \"\", IF(VLOOKUP(DF44,'Footnotes list'!$D$9:$E$58,2,FALSE)=0,\"\",VLOOKUP(DF44,'Footnotes list'!$D$9:$E$58,2,FALSE) ) )","v":""},null,null,null,null,{"$f":"IF(TRIM(DK44)=\"\", \"\", IF(VLOOKUP(DK44,'Footnotes list'!$D$9:$E$58,2,FALSE)=0,\"\",VLOOKUP(DK44,'Footnotes list'!$D$9:$E$58,2,FALSE) ) )","v":""},null,null,null,null,{"$f":"IF(TRIM(DP44)=\"\", \"\", IF(VLOOKUP(DP44,'Footnotes list'!$D$9:$E$58,2,FALSE)=0,\"\",VLOOKUP(DP44,'Footnotes list'!$D$9:$E$58,2,FALSE) ) )","v":""},null,null,null,null,{"$f":"IF(TRIM(DU44)=\"\", \"\", IF(VLOOKUP(DU44,'Footnotes list'!$D$9:$E$58,2,FALSE)=0,\"\",VLOOKUP(DU44,'Footnotes list'!$D$9:$E$58,2,FALSE) ) )","v":""},null,null,null,null,{"$f":"IF(TRIM(DZ44)=\"\", \"\", IF(VLOOKUP(DZ44,'Footnotes list'!$D$9:$E$58,2,FALSE)=0,\"\",VLOOKUP(DZ44,'Footnotes list'!$D$9:$E$58,2,FALSE) ) )","v":""},null,null,null,null,{"$f":"IF(TRIM(EE44)=\"\", \"\", IF(VLOOKUP(EE44,'Footnotes list'!$D$9:$E$58,2,FALSE)=0,\"\",VLOOKUP(EE44,'Footnotes list'!$D$9:$E$58,2,FALSE) ) )","v":""},null,null,null,null,{"$f":"IF(TRIM(EJ44)=\"\", \"\", IF(VLOOKUP(EJ44,'Footnotes list'!$D$9:$E$58,2,FALSE)=0,\"\",VLOOKUP(EJ44,'Footnotes list'!$D$9:$E$58,2,FALSE) ) )","v":""},null,null,null,null,{"$f":"IF(TRIM(EO44)=\"\", \"\", IF(VLOOKUP(EO44,'Footnotes list'!$D$9:$E$58,2,FALSE)=0,\"\",VLOOKUP(EO44,'Footnotes list'!$D$9:$E$58,2,FALSE) ) )","v":""},null,null,null,null,{"$f":"IF(TRIM(ET44)=\"\", \"\", IF(VLOOKUP(ET44,'Footnotes list'!$D$9:$E$58,2,FALSE)=0,\"\",VLOOKUP(ET44,'Footnotes list'!$D$9:$E$58,2,FALSE) ) )","v":""},null,null,null,null,{"$f":"IF(TRIM(EY44)=\"\", \"\", IF(VLOOKUP(EY44,'Footnotes list'!$D$9:$E$58,2,FALSE)=0,\"\",VLOOKUP(EY44,'Footnotes list'!$D$9:$E$58,2,FALSE) ) )","v":""}]
[null,null,"C13-C15","NMKT","non-market activities",null,null,null,null,null,{"$f":"IF(TRIM(J45)=\"\", \"\", IF(VLOOKUP(J45,'Footnotes list'!$D$9:$E$58,2,FALSE)=0,\"\",VLOOKUP(J45,'Footnotes list'!$D$9:$E$58,2,FALSE) ) )","v":""},null,null,null,null,{"$f":"IF(TRIM(O45)=\"\", \"\", IF(VLOOKUP(O45,'Footnotes list'!$D$9:$E$58,2,FALSE)=0,\"\",VLOOKUP(O45,'Footnotes list'!$D$9:$E$58,2,FALSE) ) )","v":""},null,null,null,null,{"$f":"IF(TRIM(T45)=\"\", \"\", IF(VLOOKUP(T45,'Footnotes list'!$D$9:$E$58,2,FALSE)=0,\"\",VLOOKUP(T45,'Footnotes list'!$D$9:$E$58,2,FALSE) ) )","v":""},null,null,null,null,{"$f":"IF(TRIM(Y45)=\"\", \"\", IF(VLOOKUP(Y45,'Footnotes list'!$D$9:$E$58,2,FALSE)=0,\"\",VLOOKUP(Y45,'Footnotes list'!$D$9:$E$58,2,FALSE) ) )","v":""},null,null,null,null,{"$f":"IF(TRIM(AD45)=\"\", \"\", IF(VLOOKUP(AD45,'Footnotes list'!$D$9:$E$58,2,FALSE)=0,\"\",VLOOKUP(AD45,'Footnotes list'!$D$9:$E$58,2,FALSE) ) )","v":""},null,null,null,null,{"$f":"IF(TRIM(AI45)=\"\", \"\", IF(VLOOKUP(AI45,'Footnotes list'!$D$9:$E$58,2,FALSE)=0,\"\",VLOOKUP(AI45,'Footnotes list'!$D$9:$E$58,2,FALSE) ) )","v":""},null,null,null,null,{"$f":"IF(TRIM(AN45)=\"\", \"\", IF(VLOOKUP(AN45,'Footnotes list'!$D$9:$E$58,2,FALSE)=0,\"\",VLOOKUP(AN45,'Footnotes list'!$D$9:$E$58,2,FALSE) ) )","v":""},null,null,null,null,{"$f":"IF(TRIM(AS45)=\"\", \"\", IF(VLOOKUP(AS45,'Footnotes list'!$D$9:$E$58,2,FALSE)=0,\"\",VLOOKUP(AS45,'Footnotes list'!$D$9:$E$58,2,FALSE) ) )","v":""},null,null,null,null,{"$f":"IF(TRIM(AX45)=\"\", \"\", IF(VLOOKUP(AX45,'Footnotes list'!$D$9:$E$58,2,FALSE)=0,\"\",VLOOKUP(AX45,'Footnotes list'!$D$9:$E$58,2,FALSE) ) )","v":""},null,null,null,null,{"$f":"IF(TRIM(BC45)=\"\", \"\", IF(VLOOKUP(BC45,'Footnotes list'!$D$9:$E$58,2,FALSE)=0,\"\",VLOOKUP(BC45,'Footnotes list'!$D$9:$E$58,2,FALSE) ) )","v":""},null,null,null,null,{"$f":"IF(TRIM(BH45)=\"\", \"\", IF(VLOOKUP(BH45,'Footnotes list'!$D$9:$E$58,2,FALSE)=0,\"\",VLOOKUP(BH45,'Footnotes list'!$D$9:$E$58,2,FALSE) ) )","v":""},null,null,null,null,{"$f":"IF(TRIM(BM45)=\"\", \"\", IF(VLOOKUP(BM45,'Footnotes list'!$D$9:$E$58,2,FALSE)=0,\"\",VLOOKUP(BM45,'Footnotes list'!$D$9:$E$58,2,FALSE) ) )","v":""},null,null,null,null,{"$f":"IF(TRIM(BR45)=\"\", \"\", IF(VLOOKUP(BR45,'Footnotes list'!$D$9:$E$58,2,FALSE)=0,\"\",VLOOKUP(BR45,'Footnotes list'!$D$9:$E$58,2,FALSE) ) )","v":""},null,null,null,null,{"$f":"IF(TRIM(BW45)=\"\", \"\", IF(VLOOKUP(BW45,'Footnotes list'!$D$9:$E$58,2,FALSE)=0,\"\",VLOOKUP(BW45,'Footnotes list'!$D$9:$E$58,2,FALSE) ) )","v":""},null,null,null,null,{"$f":"IF(TRIM(CB45)=\"\", \"\", IF(VLOOKUP(CB45,'Footnotes list'!$D$9:$E$58,2,FALSE)=0,\"\",VLOOKUP(CB45,'Footnotes list'!$D$9:$E$58,2,FALSE) ) )","v":""},null,null,null,null,{"$f":"IF(TRIM(CG45)=\"\", \"\", IF(VLOOKUP(CG45,'Footnotes list'!$D$9:$E$58,2,FALSE)=0,\"\",VLOOKUP(CG45,'Footnotes list'!$D$9:$E$58,2,FALSE) ) )","v":""},null,null,null,null,{"$f":"IF(TRIM(CL45)=\"\", \"\", IF(VLOOKUP(CL45,'Footnotes list'!$D$9:$E$58,2,FALSE)=0,\"\",VLOOKUP(CL45,'Footnotes list'!$D$9:$E$58,2,FALSE) ) )","v":""},null,null,null,null,{"$f":"IF(TRIM(CQ45)=\"\", \"\", IF(VLOOKUP(CQ45,'Footnotes list'!$D$9:$E$58,2,FALSE)=0,\"\",VLOOKUP(CQ45,'Footnotes list'!$D$9:$E$58,2,FALSE) ) )","v":""},null,null,null,null,{"$f":"IF(TRIM(CV45)=\"\", \"\", IF(VLOOKUP(CV45,'Footnotes list'!$D$9:$E$58,2,FALSE)=0,\"\",VLOOKUP(CV45,'Footnotes list'!$D$9:$E$58,2,FALSE) ) )","v":""},null,null,null,null,{"$f":"IF(TRIM(DA45)=\"\", \"\", IF(VLOOKUP(DA45,'Footnotes list'!$D$9:$E$58,2,FALSE)=0,\"\",VLOOKUP(DA45,'Footnotes list'!$D$9:$E$58,2,FALSE) ) )","v":""},null,null,null,null,{"$f":"IF(TRIM(DF45)=\"\", \"\", IF(VLOOKUP(DF45,'Footnotes list'!$D$9:$E$58,2,FALSE)=0,\"\",VLOOKUP(DF45,'Footnotes list'!$D$9:$E$58,2,FALSE) ) )","v":""},null,null,null,null,{"$f":"IF(TRIM(DK45)=\"\", \"\", IF(VLOOKUP(DK45,'Footnotes list'!$D$9:$E$58,2,FALSE)=0,\"\",VLOOKUP(DK45,'Footnotes list'!$D$9:$E$58,2,FALSE) ) )","v":""},null,null,null,null,{"$f":"IF(TRIM(DP45)=\"\", \"\", IF(VLOOKUP(DP45,'Footnotes list'!$D$9:$E$58,2,FALSE)=0,\"\",VLOOKUP(DP45,'Footnotes list'!$D$9:$E$58,2,FALSE) ) )","v":""},null,null,null,null,{"$f":"IF(TRIM(DU45)=\"\", \"\", IF(VLOOKUP(DU45,'Footnotes list'!$D$9:$E$58,2,FALSE)=0,\"\",VLOOKUP(DU45,'Footnotes list'!$D$9:$E$58,2,FALSE) ) )","v":""},null,null,null,null,{"$f":"IF(TRIM(DZ45)=\"\", \"\", IF(VLOOKUP(DZ45,'Footnotes list'!$D$9:$E$58,2,FALSE)=0,\"\",VLOOKUP(DZ45,'Footnotes list'!$D$9:$E$58,2,FALSE) ) )","v":""},null,null,null,null,{"$f":"IF(TRIM(EE45)=\"\", \"\", IF(VLOOKUP(EE45,'Footnotes list'!$D$9:$E$58,2,FALSE)=0,\"\",VLOOKUP(EE45,'Footnotes list'!$D$9:$E$58,2,FALSE) ) )","v":""},null,null,null,null,{"$f":"IF(TRIM(EJ45)=\"\", \"\", IF(VLOOKUP(EJ45,'Footnotes list'!$D$9:$E$58,2,FALSE)=0,\"\",VLOOKUP(EJ45,'Footnotes list'!$D$9:$E$58,2,FALSE) ) )","v":""},null,null,null,null,{"$f":"IF(TRIM(EO45)=\"\", \"\", IF(VLOOKUP(EO45,'Footnotes list'!$D$9:$E$58,2,FALSE)=0,\"\",VLOOKUP(EO45,'Footnotes list'!$D$9:$E$58,2,FALSE) ) )","v":""},null,null,null,null,{"$f":"IF(TRIM(ET45)=\"\", \"\", IF(VLOOKUP(ET45,'Footnotes list'!$D$9:$E$58,2,FALSE)=0,\"\",VLOOKUP(ET45,'Footnotes list'!$D$9:$E$58,2,FALSE) ) )","v":""},null,null,null,null,{"$f":"IF(TRIM(EY45)=\"\", \"\", IF(VLOOKUP(EY45,'Footnotes list'!$D$9:$E$58,2,FALSE)=0,\"\",VLOOKUP(EY45,'Footnotes list'!$D$9:$E$58,2,FALSE) ) )","v":""}]
[null,null,"C13-C15","OWN_USE","activities for own final use",null,null,null,null,null,{"$f":"IF(TRIM(J46)=\"\", \"\", IF(VLOOKUP(J46,'Footnotes list'!$D$9:$E$58,2,FALSE)=0,\"\",VLOOKUP(J46,'Footnotes list'!$D$9:$E$58,2,FALSE) ) )","v":""},null,null,null,null,{"$f":"IF(TRIM(O46)=\"\", \"\", IF(VLOOKUP(O46,'Footnotes list'!$D$9:$E$58,2,FALSE)=0,\"\",VLOOKUP(O46,'Footnotes list'!$D$9:$E$58,2,FALSE) ) )","v":""},null,null,null,null,{"$f":"IF(TRIM(T46)=\"\", \"\", IF(VLOOKUP(T46,'Footnotes list'!$D$9:$E$58,2,FALSE)=0,\"\",VLOOKUP(T46,'Footnotes list'!$D$9:$E$58,2,FALSE) ) )","v":""},null,null,null,null,{"$f":"IF(TRIM(Y46)=\"\", \"\", IF(VLOOKUP(Y46,'Footnotes list'!$D$9:$E$58,2,FALSE)=0,\"\",VLOOKUP(Y46,'Footnotes list'!$D$9:$E$58,2,FALSE) ) )","v":""},null,null,null,null,{"$f":"IF(TRIM(AD46)=\"\", \"\", IF(VLOOKUP(AD46,'Footnotes list'!$D$9:$E$58,2,FALSE)=0,\"\",VLOOKUP(AD46,'Footnotes list'!$D$9:$E$58,2,FALSE) ) )","v":""},null,null,null,null,{"$f":"IF(TRIM(AI46)=\"\", \"\", IF(VLOOKUP(AI46,'Footnotes list'!$D$9:$E$58,2,FALSE)=0,\"\",VLOOKUP(AI46,'Footnotes list'!$D$9:$E$58,2,FALSE) ) )","v":""},null,null,null,null,{"$f":"IF(TRIM(AN46)=\"\", \"\", IF(VLOOKUP(AN46,'Footnotes list'!$D$9:$E$58,2,FALSE)=0,\"\",VLOOKUP(AN46,'Footnotes list'!$D$9:$E$58,2,FALSE) ) )","v":""},null,null,null,null,{"$f":"IF(TRIM(AS46)=\"\", \"\", IF(VLOOKUP(AS46,'Footnotes list'!$D$9:$E$58,2,FALSE)=0,\"\",VLOOKUP(AS46,'Footnotes list'!$D$9:$E$58,2,FALSE) ) )","v":""},null,null,null,null,{"$f":"IF(TRIM(AX46)=\"\", \"\", IF(VLOOKUP(AX46,'Footnotes list'!$D$9:$E$58,2,FALSE)=0,\"\",VLOOKUP(AX46,'Footnotes list'!$D$9:$E$58,2,FALSE) ) )","v":""},null,null,null,null,{"$f":"IF(TRIM(BC46)=\"\", \"\", IF(VLOOKUP(BC46,'Footnotes list'!$D$9:$E$58,2,FALSE)=0,\"\",VLOOKUP(BC46,'Footnotes list'!$D$9:$E$58,2,FALSE) ) )","v":""},null,null,null,null,{"$f":"IF(TRIM(BH46)=\"\", \"\", IF(VLOOKUP(BH46,'Footnotes list'!$D$9:$E$58,2,FALSE)=0,\"\",VLOOKUP(BH46,'Footnotes list'!$D$9:$E$58,2,FALSE) ) )","v":""},null,null,null,null,{"$f":"IF(TRIM(BM46)=\"\", \"\", IF(VLOOKUP(BM46,'Footnotes list'!$D$9:$E$58,2,FALSE)=0,\"\",VLOOKUP(BM46,'Footnotes list'!$D$9:$E$58,2,FALSE) ) )","v":""},null,null,null,null,{"$f":"IF(TRIM(BR46)=\"\", \"\", IF(VLOOKUP(BR46,'Footnotes list'!$D$9:$E$58,2,FALSE)=0,\"\",VLOOKUP(BR46,'Footnotes list'!$D$9:$E$58,2,FALSE) ) )","v":""},null,null,null,null,{"$f":"IF(TRIM(BW46)=\"\", \"\", IF(VLOOKUP(BW46,'Footnotes list'!$D$9:$E$58,2,FALSE)=0,\"\",VLOOKUP(BW46,'Footnotes list'!$D$9:$E$58,2,FALSE) ) )","v":""},null,null,null,null,{"$f":"IF(TRIM(CB46)=\"\", \"\", IF(VLOOKUP(CB46,'Footnotes list'!$D$9:$E$58,2,FALSE)=0,\"\",VLOOKUP(CB46,'Footnotes list'!$D$9:$E$58,2,FALSE) ) )","v":""},null,null,null,null,{"$f":"IF(TRIM(CG46)=\"\", \"\", IF(VLOOKUP(CG46,'Footnotes list'!$D$9:$E$58,2,FALSE)=0,\"\",VLOOKUP(CG46,'Footnotes list'!$D$9:$E$58,2,FALSE) ) )","v":""},null,null,null,null,{"$f":"IF(TRIM(CL46)=\"\", \"\", IF(VLOOKUP(CL46,'Footnotes list'!$D$9:$E$58,2,FALSE)=0,\"\",VLOOKUP(CL46,'Footnotes list'!$D$9:$E$58,2,FALSE) ) )","v":""},null,null,null,null,{"$f":"IF(TRIM(CQ46)=\"\", \"\", IF(VLOOKUP(CQ46,'Footnotes list'!$D$9:$E$58,2,FALSE)=0,\"\",VLOOKUP(CQ46,'Footnotes list'!$D$9:$E$58,2,FALSE) ) )","v":""},null,null,null,null,{"$f":"IF(TRIM(CV46)=\"\", \"\", IF(VLOOKUP(CV46,'Footnotes list'!$D$9:$E$58,2,FALSE)=0,\"\",VLOOKUP(CV46,'Footnotes list'!$D$9:$E$58,2,FALSE) ) )","v":""},null,null,null,null,{"$f":"IF(TRIM(DA46)=\"\", \"\", IF(VLOOKUP(DA46,'Footnotes list'!$D$9:$E$58,2,FALSE)=0,\"\",VLOOKUP(DA46,'Footnotes list'!$D$9:$E$58,2,FALSE) ) )","v":""},null,null,null,null,{"$f":"IF(TRIM(DF46)=\"\", \"\", IF(VLOOKUP(DF46,'Footnotes list'!$D$9:$E$58,2,FALSE)=0,\"\",VLOOKUP(DF46,'Footnotes list'!$D$9:$E$58,2,FALSE) ) )","v":""},null,null,null,null,{"$f":"IF(TRIM(DK46)=\"\", \"\", IF(VLOOKUP(DK46,'Footnotes list'!$D$9:$E$58,2,FALSE)=0,\"\",VLOOKUP(DK46,'Footnotes list'!$D$9:$E$58,2,FALSE) ) )","v":""},null,null,null,null,{"$f":"IF(TRIM(DP46)=\"\", \"\", IF(VLOOKUP(DP46,'Footnotes list'!$D$9:$E$58,2,FALSE)=0,\"\",VLOOKUP(DP46,'Footnotes list'!$D$9:$E$58,2,FALSE) ) )","v":""},null,null,null,null,{"$f":"IF(TRIM(DU46)=\"\", \"\", IF(VLOOKUP(DU46,'Footnotes list'!$D$9:$E$58,2,FALSE)=0,\"\",VLOOKUP(DU46,'Footnotes list'!$D$9:$E$58,2,FALSE) ) )","v":""},null,null,null,null,{"$f":"IF(TRIM(DZ46)=\"\", \"\", IF(VLOOKUP(DZ46,'Footnotes list'!$D$9:$E$58,2,FALSE)=0,\"\",VLOOKUP(DZ46,'Footnotes list'!$D$9:$E$58,2,FALSE) ) )","v":""},null,null,null,null,{"$f":"IF(TRIM(EE46)=\"\", \"\", IF(VLOOKUP(EE46,'Footnotes list'!$D$9:$E$58,2,FALSE)=0,\"\",VLOOKUP(EE46,'Footnotes list'!$D$9:$E$58,2,FALSE) ) )","v":""},null,null,null,null,{"$f":"IF(TRIM(EJ46)=\"\", \"\", IF(VLOOKUP(EJ46,'Footnotes list'!$D$9:$E$58,2,FALSE)=0,\"\",VLOOKUP(EJ46,'Footnotes list'!$D$9:$E$58,2,FALSE) ) )","v":""},null,null,null,null,{"$f":"IF(TRIM(EO46)=\"\", \"\", IF(VLOOKUP(EO46,'Footnotes list'!$D$9:$E$58,2,FALSE)=0,\"\",VLOOKUP(EO46,'Footnotes list'!$D$9:$E$58,2,FALSE) ) )","v":""},null,null,null,null,{"$f":"IF(TRIM(ET46)=\"\", \"\", IF(VLOOKUP(ET46,'Footnotes list'!$D$9:$E$58,2,FALSE)=0,\"\",VLOOKUP(ET46,'Footnotes list'!$D$9:$E$58,2,FALSE) ) )","v":""},null,null,null,null,{"$f":"IF(TRIM(EY46)=\"\", \"\", IF(VLOOKUP(EY46,'Footnotes list'!$D$9:$E$58,2,FALSE)=0,\"\",VLOOKUP(EY46,'Footnotes list'!$D$9:$E$58,2,FALSE) ) )","v":""}]
[null,null,"C13-C15","MKT","market activities, including:",null,null,null,null,null,{"$f":"IF(TRIM(J47)=\"\", \"\", IF(VLOOKUP(J47,'Footnotes list'!$D$9:$E$58,2,FALSE)=0,\"\",VLOOKUP(J47,'Footnotes list'!$D$9:$E$58,2,FALSE) ) )","v":""},null,null,null,null,{"$f":"IF(TRIM(O47)=\"\", \"\", IF(VLOOKUP(O47,'Footnotes list'!$D$9:$E$58,2,FALSE)=0,\"\",VLOOKUP(O47,'Footnotes list'!$D$9:$E$58,2,FALSE) ) )","v":""},null,null,null,null,{"$f":"IF(TRIM(T47)=\"\", \"\", IF(VLOOKUP(T47,'Footnotes list'!$D$9:$E$58,2,FALSE)=0,\"\",VLOOKUP(T47,'Footnotes list'!$D$9:$E$58,2,FALSE) ) )","v":""},null,null,null,null,{"$f":"IF(TRIM(Y47)=\"\", \"\", IF(VLOOKUP(Y47,'Footnotes list'!$D$9:$E$58,2,FALSE)=0,\"\",VLOOKUP(Y47,'Footnotes list'!$D$9:$E$58,2,FALSE) ) )","v":""},null,null,null,null,{"$f":"IF(TRIM(AD47)=\"\", \"\", IF(VLOOKUP(AD47,'Footnotes list'!$D$9:$E$58,2,FALSE)=0,\"\",VLOOKUP(AD47,'Footnotes list'!$D$9:$E$58,2,FALSE) ) )","v":""},null,null,null,null,{"$f":"IF(TRIM(AI47)=\"\", \"\", IF(VLOOKUP(AI47,'Footnotes list'!$D$9:$E$58,2,FALSE)=0,\"\",VLOOKUP(AI47,'Footnotes list'!$D$9:$E$58,2,FALSE) ) )","v":""},null,null,null,null,{"$f":"IF(TRIM(AN47)=\"\", \"\", IF(VLOOKUP(AN47,'Footnotes list'!$D$9:$E$58,2,FALSE)=0,\"\",VLOOKUP(AN47,'Footnotes list'!$D$9:$E$58,2,FALSE) ) )","v":""},null,null,null,null,{"$f":"IF(TRIM(AS47)=\"\", \"\", IF(VLOOKUP(AS47,'Footnotes list'!$D$9:$E$58,2,FALSE)=0,\"\",VLOOKUP(AS47,'Footnotes list'!$D$9:$E$58,2,FALSE) ) )","v":""},null,null,null,null,{"$f":"IF(TRIM(AX47)=\"\", \"\", IF(VLOOKUP(AX47,'Footnotes list'!$D$9:$E$58,2,FALSE)=0,\"\",VLOOKUP(AX47,'Footnotes list'!$D$9:$E$58,2,FALSE) ) )","v":""},null,null,null,null,{"$f":"IF(TRIM(BC47)=\"\", \"\", IF(VLOOKUP(BC47,'Footnotes list'!$D$9:$E$58,2,FALSE)=0,\"\",VLOOKUP(BC47,'Footnotes list'!$D$9:$E$58,2,FALSE) ) )","v":""},null,null,null,null,{"$f":"IF(TRIM(BH47)=\"\", \"\", IF(VLOOKUP(BH47,'Footnotes list'!$D$9:$E$58,2,FALSE)=0,\"\",VLOOKUP(BH47,'Footnotes list'!$D$9:$E$58,2,FALSE) ) )","v":""},null,null,null,null,{"$f":"IF(TRIM(BM47)=\"\", \"\", IF(VLOOKUP(BM47,'Footnotes list'!$D$9:$E$58,2,FALSE)=0,\"\",VLOOKUP(BM47,'Footnotes list'!$D$9:$E$58,2,FALSE) ) )","v":""},null,null,null,null,{"$f":"IF(TRIM(BR47)=\"\", \"\", IF(VLOOKUP(BR47,'Footnotes list'!$D$9:$E$58,2,FALSE)=0,\"\",VLOOKUP(BR47,'Footnotes list'!$D$9:$E$58,2,FALSE) ) )","v":""},null,null,null,null,{"$f":"IF(TRIM(BW47)=\"\", \"\", IF(VLOOKUP(BW47,'Footnotes list'!$D$9:$E$58,2,FALSE)=0,\"\",VLOOKUP(BW47,'Footnotes list'!$D$9:$E$58,2,FALSE) ) )","v":""},null,null,null,null,{"$f":"IF(TRIM(CB47)=\"\", \"\", IF(VLOOKUP(CB47,'Footnotes list'!$D$9:$E$58,2,FALSE)=0,\"\",VLOOKUP(CB47,'Footnotes list'!$D$9:$E$58,2,FALSE) ) )","v":""},null,null,null,null,{"$f":"IF(TRIM(CG47)=\"\", \"\", IF(VLOOKUP(CG47,'Footnotes list'!$D$9:$E$58,2,FALSE)=0,\"\",VLOOKUP(CG47,'Footnotes list'!$D$9:$E$58,2,FALSE) ) )","v":""},null,null,null,null,{"$f":"IF(TRIM(CL47)=\"\", \"\", IF(VLOOKUP(CL47,'Footnotes list'!$D$9:$E$58,2,FALSE)=0,\"\",VLOOKUP(CL47,'Footnotes list'!$D$9:$E$58,2,FALSE) ) )","v":""},null,null,null,null,{"$f":"IF(TRIM(CQ47)=\"\", \"\", IF(VLOOKUP(CQ47,'Footnotes list'!$D$9:$E$58,2,FALSE)=0,\"\",VLOOKUP(CQ47,'Footnotes list'!$D$9:$E$58,2,FALSE) ) )","v":""},null,null,null,null,{"$f":"IF(TRIM(CV47)=\"\", \"\", IF(VLOOKUP(CV47,'Footnotes list'!$D$9:$E$58,2,FALSE)=0,\"\",VLOOKUP(CV47,'Footnotes list'!$D$9:$E$58,2,FALSE) ) )","v":""},null,null,null,null,{"$f":"IF(TRIM(DA47)=\"\", \"\", IF(VLOOKUP(DA47,'Footnotes list'!$D$9:$E$58,2,FALSE)=0,\"\",VLOOKUP(DA47,'Footnotes list'!$D$9:$E$58,2,FALSE) ) )","v":""},null,null,null,null,{"$f":"IF(TRIM(DF47)=\"\", \"\", IF(VLOOKUP(DF47,'Footnotes list'!$D$9:$E$58,2,FALSE)=0,\"\",VLOOKUP(DF47,'Footnotes list'!$D$9:$E$58,2,FALSE) ) )","v":""},null,null,null,null,{"$f":"IF(TRIM(DK47)=\"\", \"\", IF(VLOOKUP(DK47,'Footnotes list'!$D$9:$E$58,2,FALSE)=0,\"\",VLOOKUP(DK47,'Footnotes list'!$D$9:$E$58,2,FALSE) ) )","v":""},null,null,null,null,{"$f":"IF(TRIM(DP47)=\"\", \"\", IF(VLOOKUP(DP47,'Footnotes list'!$D$9:$E$58,2,FALSE)=0,\"\",VLOOKUP(DP47,'Footnotes list'!$D$9:$E$58,2,FALSE) ) )","v":""},null,null,null,null,{"$f":"IF(TRIM(DU47)=\"\", \"\", IF(VLOOKUP(DU47,'Footnotes list'!$D$9:$E$58,2,FALSE)=0,\"\",VLOOKUP(DU47,'Footnotes list'!$D$9:$E$58,2,FALSE) ) )","v":""},null,null,null,null,{"$f":"IF(TRIM(DZ47)=\"\", \"\", IF(VLOOKUP(DZ47,'Footnotes list'!$D$9:$E$58,2,FALSE)=0,\"\",VLOOKUP(DZ47,'Footnotes list'!$D$9:$E$58,2,FALSE) ) )","v":""},null,null,null,null,{"$f":"IF(TRIM(EE47)=\"\", \"\", IF(VLOOKUP(EE47,'Footnotes list'!$D$9:$E$58,2,FALSE)=0,\"\",VLOOKUP(EE47,'Footnotes list'!$D$9:$E$58,2,FALSE) ) )","v":""},null,null,null,null,{"$f":"IF(TRIM(EJ47)=\"\", \"\", IF(VLOOKUP(EJ47,'Footnotes list'!$D$9:$E$58,2,FALSE)=0,\"\",VLOOKUP(EJ47,'Footnotes list'!$D$9:$E$58,2,FALSE) ) )","v":""},null,null,null,null,{"$f":"IF(TRIM(EO47)=\"\", \"\", IF(VLOOKUP(EO47,'Footnotes list'!$D$9:$E$58,2,FALSE)=0,\"\",VLOOKUP(EO47,'Footnotes list'!$D$9:$E$58,2,FALSE) ) )","v":""},null,null,null,null,{"$f":"IF(TRIM(ET47)=\"\", \"\", IF(VLOOKUP(ET47,'Footnotes list'!$D$9:$E$58,2,FALSE)=0,\"\",VLOOKUP(ET47,'Footnotes list'!$D$9:$E$58,2,FALSE) ) )","v":""},null,null,null,null,{"$f":"IF(TRIM(EY47)=\"\", \"\", IF(VLOOKUP(EY47,'Footnotes list'!$D$9:$E$58,2,FALSE)=0,\"\",VLOOKUP(EY47,'Footnotes list'!$D$9:$E$58,2,FALSE) ) )","v":""}]
[null,null,"C13-C15","ES_CS","environmental specific services",null,null,null,null,null,{"$f":"IF(TRIM(J48)=\"\", \"\", IF(VLOOKUP(J48,'Footnotes list'!$D$9:$E$58,2,FALSE)=0,\"\",VLOOKUP(J48,'Footnotes list'!$D$9:$E$58,2,FALSE) ) )","v":""},null,null,null,null,{"$f":"IF(TRIM(O48)=\"\", \"\", IF(VLOOKUP(O48,'Footnotes list'!$D$9:$E$58,2,FALSE)=0,\"\",VLOOKUP(O48,'Footnotes list'!$D$9:$E$58,2,FALSE) ) )","v":""},null,null,null,null,{"$f":"IF(TRIM(T48)=\"\", \"\", IF(VLOOKUP(T48,'Footnotes list'!$D$9:$E$58,2,FALSE)=0,\"\",VLOOKUP(T48,'Footnotes list'!$D$9:$E$58,2,FALSE) ) )","v":""},null,null,null,null,{"$f":"IF(TRIM(Y48)=\"\", \"\", IF(VLOOKUP(Y48,'Footnotes list'!$D$9:$E$58,2,FALSE)=0,\"\",VLOOKUP(Y48,'Footnotes list'!$D$9:$E$58,2,FALSE) ) )","v":""},null,null,null,null,{"$f":"IF(TRIM(AD48)=\"\", \"\", IF(VLOOKUP(AD48,'Footnotes list'!$D$9:$E$58,2,FALSE)=0,\"\",VLOOKUP(AD48,'Footnotes list'!$D$9:$E$58,2,FALSE) ) )","v":""},null,null,null,null,{"$f":"IF(TRIM(AI48)=\"\", \"\", IF(VLOOKUP(AI48,'Footnotes list'!$D$9:$E$58,2,FALSE)=0,\"\",VLOOKUP(AI48,'Footnotes list'!$D$9:$E$58,2,FALSE) ) )","v":""},null,null,null,null,{"$f":"IF(TRIM(AN48)=\"\", \"\", IF(VLOOKUP(AN48,'Footnotes list'!$D$9:$E$58,2,FALSE)=0,\"\",VLOOKUP(AN48,'Footnotes list'!$D$9:$E$58,2,FALSE) ) )","v":""},null,null,null,null,{"$f":"IF(TRIM(AS48)=\"\", \"\", IF(VLOOKUP(AS48,'Footnotes list'!$D$9:$E$58,2,FALSE)=0,\"\",VLOOKUP(AS48,'Footnotes list'!$D$9:$E$58,2,FALSE) ) )","v":""},null,null,null,null,{"$f":"IF(TRIM(AX48)=\"\", \"\", IF(VLOOKUP(AX48,'Footnotes list'!$D$9:$E$58,2,FALSE)=0,\"\",VLOOKUP(AX48,'Footnotes list'!$D$9:$E$58,2,FALSE) ) )","v":""},null,null,null,null,{"$f":"IF(TRIM(BC48)=\"\", \"\", IF(VLOOKUP(BC48,'Footnotes list'!$D$9:$E$58,2,FALSE)=0,\"\",VLOOKUP(BC48,'Footnotes list'!$D$9:$E$58,2,FALSE) ) )","v":""},null,null,null,null,{"$f":"IF(TRIM(BH48)=\"\", \"\", IF(VLOOKUP(BH48,'Footnotes list'!$D$9:$E$58,2,FALSE)=0,\"\",VLOOKUP(BH48,'Footnotes list'!$D$9:$E$58,2,FALSE) ) )","v":""},null,null,null,null,{"$f":"IF(TRIM(BM48)=\"\", \"\", IF(VLOOKUP(BM48,'Footnotes list'!$D$9:$E$58,2,FALSE)=0,\"\",VLOOKUP(BM48,'Footnotes list'!$D$9:$E$58,2,FALSE) ) )","v":""},null,null,null,null,{"$f":"IF(TRIM(BR48)=\"\", \"\", IF(VLOOKUP(BR48,'Footnotes list'!$D$9:$E$58,2,FALSE)=0,\"\",VLOOKUP(BR48,'Footnotes list'!$D$9:$E$58,2,FALSE) ) )","v":""},null,null,null,null,{"$f":"IF(TRIM(BW48)=\"\", \"\", IF(VLOOKUP(BW48,'Footnotes list'!$D$9:$E$58,2,FALSE)=0,\"\",VLOOKUP(BW48,'Footnotes list'!$D$9:$E$58,2,FALSE) ) )","v":""},null,null,null,null,{"$f":"IF(TRIM(CB48)=\"\", \"\", IF(VLOOKUP(CB48,'Footnotes list'!$D$9:$E$58,2,FALSE)=0,\"\",VLOOKUP(CB48,'Footnotes list'!$D$9:$E$58,2,FALSE) ) )","v":""},null,null,null,null,{"$f":"IF(TRIM(CG48)=\"\", \"\", IF(VLOOKUP(CG48,'Footnotes list'!$D$9:$E$58,2,FALSE)=0,\"\",VLOOKUP(CG48,'Footnotes list'!$D$9:$E$58,2,FALSE) ) )","v":""},null,null,null,null,{"$f":"IF(TRIM(CL48)=\"\", \"\", IF(VLOOKUP(CL48,'Footnotes list'!$D$9:$E$58,2,FALSE)=0,\"\",VLOOKUP(CL48,'Footnotes list'!$D$9:$E$58,2,FALSE) ) )","v":""},null,null,null,null,{"$f":"IF(TRIM(CQ48)=\"\", \"\", IF(VLOOKUP(CQ48,'Footnotes list'!$D$9:$E$58,2,FALSE)=0,\"\",VLOOKUP(CQ48,'Footnotes list'!$D$9:$E$58,2,FALSE) ) )","v":""},null,null,null,null,{"$f":"IF(TRIM(CV48)=\"\", \"\", IF(VLOOKUP(CV48,'Footnotes list'!$D$9:$E$58,2,FALSE)=0,\"\",VLOOKUP(CV48,'Footnotes list'!$D$9:$E$58,2,FALSE) ) )","v":""},null,null,null,null,{"$f":"IF(TRIM(DA48)=\"\", \"\", IF(VLOOKUP(DA48,'Footnotes list'!$D$9:$E$58,2,FALSE)=0,\"\",VLOOKUP(DA48,'Footnotes list'!$D$9:$E$58,2,FALSE) ) )","v":""},null,null,null,null,{"$f":"IF(TRIM(DF48)=\"\", \"\", IF(VLOOKUP(DF48,'Footnotes list'!$D$9:$E$58,2,FALSE)=0,\"\",VLOOKUP(DF48,'Footnotes list'!$D$9:$E$58,2,FALSE) ) )","v":""},null,null,null,null,{"$f":"IF(TRIM(DK48)=\"\", \"\", IF(VLOOKUP(DK48,'Footnotes list'!$D$9:$E$58,2,FALSE)=0,\"\",VLOOKUP(DK48,'Footnotes list'!$D$9:$E$58,2,FALSE) ) )","v":""},null,null,null,null,{"$f":"IF(TRIM(DP48)=\"\", \"\", IF(VLOOKUP(DP48,'Footnotes list'!$D$9:$E$58,2,FALSE)=0,\"\",VLOOKUP(DP48,'Footnotes list'!$D$9:$E$58,2,FALSE) ) )","v":""},null,null,null,null,{"$f":"IF(TRIM(DU48)=\"\", \"\", IF(VLOOKUP(DU48,'Footnotes list'!$D$9:$E$58,2,FALSE)=0,\"\",VLOOKUP(DU48,'Footnotes list'!$D$9:$E$58,2,FALSE) ) )","v":""},null,null,null,null,{"$f":"IF(TRIM(DZ48)=\"\", \"\", IF(VLOOKUP(DZ48,'Footnotes list'!$D$9:$E$58,2,FALSE)=0,\"\",VLOOKUP(DZ48,'Footnotes list'!$D$9:$E$58,2,FALSE) ) )","v":""},null,null,null,null,{"$f":"IF(TRIM(EE48)=\"\", \"\", IF(VLOOKUP(EE48,'Footnotes list'!$D$9:$E$58,2,FALSE)=0,\"\",VLOOKUP(EE48,'Footnotes list'!$D$9:$E$58,2,FALSE) ) )","v":""},null,null,null,null,{"$f":"IF(TRIM(EJ48)=\"\", \"\", IF(VLOOKUP(EJ48,'Footnotes list'!$D$9:$E$58,2,FALSE)=0,\"\",VLOOKUP(EJ48,'Footnotes list'!$D$9:$E$58,2,FALSE) ) )","v":""},null,null,null,null,{"$f":"IF(TRIM(EO48)=\"\", \"\", IF(VLOOKUP(EO48,'Footnotes list'!$D$9:$E$58,2,FALSE)=0,\"\",VLOOKUP(EO48,'Footnotes list'!$D$9:$E$58,2,FALSE) ) )","v":""},null,null,null,null,{"$f":"IF(TRIM(ET48)=\"\", \"\", IF(VLOOKUP(ET48,'Footnotes list'!$D$9:$E$58,2,FALSE)=0,\"\",VLOOKUP(ET48,'Footnotes list'!$D$9:$E$58,2,FALSE) ) )","v":""},null,null,null,null,{"$f":"IF(TRIM(EY48)=\"\", \"\", IF(VLOOKUP(EY48,'Footnotes list'!$D$9:$E$58,2,FALSE)=0,\"\",VLOOKUP(EY48,'Footnotes list'!$D$9:$E$58,2,FALSE) ) )","v":""}]
[null,null,"C13-C15","C_REP","cleaner and resource efficient products",null,null,null,null,null,{"$f":"IF(TRIM(J49)=\"\", \"\", IF(VLOOKUP(J49,'Footnotes list'!$D$9:$E$58,2,FALSE)=0,\"\",VLOOKUP(J49,'Footnotes list'!$D$9:$E$58,2,FALSE) ) )","v":""},null,null,null,null,{"$f":"IF(TRIM(O49)=\"\", \"\", IF(VLOOKUP(O49,'Footnotes list'!$D$9:$E$58,2,FALSE)=0,\"\",VLOOKUP(O49,'Footnotes list'!$D$9:$E$58,2,FALSE) ) )","v":""},null,null,null,null,{"$f":"IF(TRIM(T49)=\"\", \"\", IF(VLOOKUP(T49,'Footnotes list'!$D$9:$E$58,2,FALSE)=0,\"\",VLOOKUP(T49,'Footnotes list'!$D$9:$E$58,2,FALSE) ) )","v":""},null,null,null,null,{"$f":"IF(TRIM(Y49)=\"\", \"\", IF(VLOOKUP(Y49,'Footnotes list'!$D$9:$E$58,2,FALSE)=0,\"\",VLOOKUP(Y49,'Footnotes list'!$D$9:$E$58,2,FALSE) ) )","v":""},null,null,null,null,{"$f":"IF(TRIM(AD49)=\"\", \"\", IF(VLOOKUP(AD49,'Footnotes list'!$D$9:$E$58,2,FALSE)=0,\"\",VLOOKUP(AD49,'Footnotes list'!$D$9:$E$58,2,FALSE) ) )","v":""},null,null,null,null,{"$f":"IF(TRIM(AI49)=\"\", \"\", IF(VLOOKUP(AI49,'Footnotes list'!$D$9:$E$58,2,FALSE)=0,\"\",VLOOKUP(AI49,'Footnotes list'!$D$9:$E$58,2,FALSE) ) )","v":""},null,null,null,null,{"$f":"IF(TRIM(AN49)=\"\", \"\", IF(VLOOKUP(AN49,'Footnotes list'!$D$9:$E$58,2,FALSE)=0,\"\",VLOOKUP(AN49,'Footnotes list'!$D$9:$E$58,2,FALSE) ) )","v":""},null,null,null,null,{"$f":"IF(TRIM(AS49)=\"\", \"\", IF(VLOOKUP(AS49,'Footnotes list'!$D$9:$E$58,2,FALSE)=0,\"\",VLOOKUP(AS49,'Footnotes list'!$D$9:$E$58,2,FALSE) ) )","v":""},null,null,null,null,{"$f":"IF(TRIM(AX49)=\"\", \"\", IF(VLOOKUP(AX49,'Footnotes list'!$D$9:$E$58,2,FALSE)=0,\"\",VLOOKUP(AX49,'Footnotes list'!$D$9:$E$58,2,FALSE) ) )","v":""},null,null,null,null,{"$f":"IF(TRIM(BC49)=\"\", \"\", IF(VLOOKUP(BC49,'Footnotes list'!$D$9:$E$58,2,FALSE)=0,\"\",VLOOKUP(BC49,'Footnotes list'!$D$9:$E$58,2,FALSE) ) )","v":""},null,null,null,null,{"$f":"IF(TRIM(BH49)=\"\", \"\", IF(VLOOKUP(BH49,'Footnotes list'!$D$9:$E$58,2,FALSE)=0,\"\",VLOOKUP(BH49,'Footnotes list'!$D$9:$E$58,2,FALSE) ) )","v":""},null,null,null,null,{"$f":"IF(TRIM(BM49)=\"\", \"\", IF(VLOOKUP(BM49,'Footnotes list'!$D$9:$E$58,2,FALSE)=0,\"\",VLOOKUP(BM49,'Footnotes list'!$D$9:$E$58,2,FALSE) ) )","v":""},null,null,null,null,{"$f":"IF(TRIM(BR49)=\"\", \"\", IF(VLOOKUP(BR49,'Footnotes list'!$D$9:$E$58,2,FALSE)=0,\"\",VLOOKUP(BR49,'Footnotes list'!$D$9:$E$58,2,FALSE) ) )","v":""},null,null,null,null,{"$f":"IF(TRIM(BW49)=\"\", \"\", IF(VLOOKUP(BW49,'Footnotes list'!$D$9:$E$58,2,FALSE)=0,\"\",VLOOKUP(BW49,'Footnotes list'!$D$9:$E$58,2,FALSE) ) )","v":""},null,null,null,null,{"$f":"IF(TRIM(CB49)=\"\", \"\", IF(VLOOKUP(CB49,'Footnotes list'!$D$9:$E$58,2,FALSE)=0,\"\",VLOOKUP(CB49,'Footnotes list'!$D$9:$E$58,2,FALSE) ) )","v":""},null,null,null,null,{"$f":"IF(TRIM(CG49)=\"\", \"\", IF(VLOOKUP(CG49,'Footnotes list'!$D$9:$E$58,2,FALSE)=0,\"\",VLOOKUP(CG49,'Footnotes list'!$D$9:$E$58,2,FALSE) ) )","v":""},null,null,null,null,{"$f":"IF(TRIM(CL49)=\"\", \"\", IF(VLOOKUP(CL49,'Footnotes list'!$D$9:$E$58,2,FALSE)=0,\"\",VLOOKUP(CL49,'Footnotes list'!$D$9:$E$58,2,FALSE) ) )","v":""},null,null,null,null,{"$f":"IF(TRIM(CQ49)=\"\", \"\", IF(VLOOKUP(CQ49,'Footnotes list'!$D$9:$E$58,2,FALSE)=0,\"\",VLOOKUP(CQ49,'Footnotes list'!$D$9:$E$58,2,FALSE) ) )","v":""},null,null,null,null,{"$f":"IF(TRIM(CV49)=\"\", \"\", IF(VLOOKUP(CV49,'Footnotes list'!$D$9:$E$58,2,FALSE)=0,\"\",VLOOKUP(CV49,'Footnotes list'!$D$9:$E$58,2,FALSE) ) )","v":""},null,null,null,null,{"$f":"IF(TRIM(DA49)=\"\", \"\", IF(VLOOKUP(DA49,'Footnotes list'!$D$9:$E$58,2,FALSE)=0,\"\",VLOOKUP(DA49,'Footnotes list'!$D$9:$E$58,2,FALSE) ) )","v":""},null,null,null,null,{"$f":"IF(TRIM(DF49)=\"\", \"\", IF(VLOOKUP(DF49,'Footnotes list'!$D$9:$E$58,2,FALSE)=0,\"\",VLOOKUP(DF49,'Footnotes list'!$D$9:$E$58,2,FALSE) ) )","v":""},null,null,null,null,{"$f":"IF(TRIM(DK49)=\"\", \"\", IF(VLOOKUP(DK49,'Footnotes list'!$D$9:$E$58,2,FALSE)=0,\"\",VLOOKUP(DK49,'Footnotes list'!$D$9:$E$58,2,FALSE) ) )","v":""},null,null,null,null,{"$f":"IF(TRIM(DP49)=\"\", \"\", IF(VLOOKUP(DP49,'Footnotes list'!$D$9:$E$58,2,FALSE)=0,\"\",VLOOKUP(DP49,'Footnotes list'!$D$9:$E$58,2,FALSE) ) )","v":""},null,null,null,null,{"$f":"IF(TRIM(DU49)=\"\", \"\", IF(VLOOKUP(DU49,'Footnotes list'!$D$9:$E$58,2,FALSE)=0,\"\",VLOOKUP(DU49,'Footnotes list'!$D$9:$E$58,2,FALSE) ) )","v":""},null,null,null,null,{"$f":"IF(TRIM(DZ49)=\"\", \"\", IF(VLOOKUP(DZ49,'Footnotes list'!$D$9:$E$58,2,FALSE)=0,\"\",VLOOKUP(DZ49,'Footnotes list'!$D$9:$E$58,2,FALSE) ) )","v":""},null,null,null,null,{"$f":"IF(TRIM(EE49)=\"\", \"\", IF(VLOOKUP(EE49,'Footnotes list'!$D$9:$E$58,2,FALSE)=0,\"\",VLOOKUP(EE49,'Footnotes list'!$D$9:$E$58,2,FALSE) ) )","v":""},null,null,null,null,{"$f":"IF(TRIM(EJ49)=\"\", \"\", IF(VLOOKUP(EJ49,'Footnotes list'!$D$9:$E$58,2,FALSE)=0,\"\",VLOOKUP(EJ49,'Footnotes list'!$D$9:$E$58,2,FALSE) ) )","v":""},null,null,null,null,{"$f":"IF(TRIM(EO49)=\"\", \"\", IF(VLOOKUP(EO49,'Footnotes list'!$D$9:$E$58,2,FALSE)=0,\"\",VLOOKUP(EO49,'Footnotes list'!$D$9:$E$58,2,FALSE) ) )","v":""},null,null,null,null,{"$f":"IF(TRIM(ET49)=\"\", \"\", IF(VLOOKUP(ET49,'Footnotes list'!$D$9:$E$58,2,FALSE)=0,\"\",VLOOKUP(ET49,'Footnotes list'!$D$9:$E$58,2,FALSE) ) )","v":""},null,null,null,null,{"$f":"IF(TRIM(EY49)=\"\", \"\", IF(VLOOKUP(EY49,'Footnotes list'!$D$9:$E$58,2,FALSE)=0,\"\",VLOOKUP(EY49,'Footnotes list'!$D$9:$E$58,2,FALSE) ) )","v":""}]
[null,null,"C16-C18","TOT_EGSS","Total C16 - C18 Manufacture of wood and paper products, and printing, of which:",null,null,null,null,null,{"$f":"IF(TRIM(J50)=\"\", \"\", IF(VLOOKUP(J50,'Footnotes list'!$D$9:$E$58,2,FALSE)=0,\"\",VLOOKUP(J50,'Footnotes list'!$D$9:$E$58,2,FALSE) ) )","v":""},null,null,null,null,{"$f":"IF(TRIM(O50)=\"\", \"\", IF(VLOOKUP(O50,'Footnotes list'!$D$9:$E$58,2,FALSE)=0,\"\",VLOOKUP(O50,'Footnotes list'!$D$9:$E$58,2,FALSE) ) )","v":""},null,null,null,null,{"$f":"IF(TRIM(T50)=\"\", \"\", IF(VLOOKUP(T50,'Footnotes list'!$D$9:$E$58,2,FALSE)=0,\"\",VLOOKUP(T50,'Footnotes list'!$D$9:$E$58,2,FALSE) ) )","v":""},null,null,null,null,{"$f":"IF(TRIM(Y50)=\"\", \"\", IF(VLOOKUP(Y50,'Footnotes list'!$D$9:$E$58,2,FALSE)=0,\"\",VLOOKUP(Y50,'Footnotes list'!$D$9:$E$58,2,FALSE) ) )","v":""},null,null,null,null,{"$f":"IF(TRIM(AD50)=\"\", \"\", IF(VLOOKUP(AD50,'Footnotes list'!$D$9:$E$58,2,FALSE)=0,\"\",VLOOKUP(AD50,'Footnotes list'!$D$9:$E$58,2,FALSE) ) )","v":""},null,null,null,null,{"$f":"IF(TRIM(AI50)=\"\", \"\", IF(VLOOKUP(AI50,'Footnotes list'!$D$9:$E$58,2,FALSE)=0,\"\",VLOOKUP(AI50,'Footnotes list'!$D$9:$E$58,2,FALSE) ) )","v":""},null,null,null,null,{"$f":"IF(TRIM(AN50)=\"\", \"\", IF(VLOOKUP(AN50,'Footnotes list'!$D$9:$E$58,2,FALSE)=0,\"\",VLOOKUP(AN50,'Footnotes list'!$D$9:$E$58,2,FALSE) ) )","v":""},null,null,null,null,{"$f":"IF(TRIM(AS50)=\"\", \"\", IF(VLOOKUP(AS50,'Footnotes list'!$D$9:$E$58,2,FALSE)=0,\"\",VLOOKUP(AS50,'Footnotes list'!$D$9:$E$58,2,FALSE) ) )","v":""},null,null,null,null,{"$f":"IF(TRIM(AX50)=\"\", \"\", IF(VLOOKUP(AX50,'Footnotes list'!$D$9:$E$58,2,FALSE)=0,\"\",VLOOKUP(AX50,'Footnotes list'!$D$9:$E$58,2,FALSE) ) )","v":""},null,null,null,null,{"$f":"IF(TRIM(BC50)=\"\", \"\", IF(VLOOKUP(BC50,'Footnotes list'!$D$9:$E$58,2,FALSE)=0,\"\",VLOOKUP(BC50,'Footnotes list'!$D$9:$E$58,2,FALSE) ) )","v":""},null,null,null,null,{"$f":"IF(TRIM(BH50)=\"\", \"\", IF(VLOOKUP(BH50,'Footnotes list'!$D$9:$E$58,2,FALSE)=0,\"\",VLOOKUP(BH50,'Footnotes list'!$D$9:$E$58,2,FALSE) ) )","v":""},null,null,null,null,{"$f":"IF(TRIM(BM50)=\"\", \"\", IF(VLOOKUP(BM50,'Footnotes list'!$D$9:$E$58,2,FALSE)=0,\"\",VLOOKUP(BM50,'Footnotes list'!$D$9:$E$58,2,FALSE) ) )","v":""},null,null,null,null,{"$f":"IF(TRIM(BR50)=\"\", \"\", IF(VLOOKUP(BR50,'Footnotes list'!$D$9:$E$58,2,FALSE)=0,\"\",VLOOKUP(BR50,'Footnotes list'!$D$9:$E$58,2,FALSE) ) )","v":""},null,null,null,null,{"$f":"IF(TRIM(BW50)=\"\", \"\", IF(VLOOKUP(BW50,'Footnotes list'!$D$9:$E$58,2,FALSE)=0,\"\",VLOOKUP(BW50,'Footnotes list'!$D$9:$E$58,2,FALSE) ) )","v":""},null,null,null,null,{"$f":"IF(TRIM(CB50)=\"\", \"\", IF(VLOOKUP(CB50,'Footnotes list'!$D$9:$E$58,2,FALSE)=0,\"\",VLOOKUP(CB50,'Footnotes list'!$D$9:$E$58,2,FALSE) ) )","v":""},null,null,null,null,{"$f":"IF(TRIM(CG50)=\"\", \"\", IF(VLOOKUP(CG50,'Footnotes list'!$D$9:$E$58,2,FALSE)=0,\"\",VLOOKUP(CG50,'Footnotes list'!$D$9:$E$58,2,FALSE) ) )","v":""},null,null,null,null,{"$f":"IF(TRIM(CL50)=\"\", \"\", IF(VLOOKUP(CL50,'Footnotes list'!$D$9:$E$58,2,FALSE)=0,\"\",VLOOKUP(CL50,'Footnotes list'!$D$9:$E$58,2,FALSE) ) )","v":""},null,null,null,null,{"$f":"IF(TRIM(CQ50)=\"\", \"\", IF(VLOOKUP(CQ50,'Footnotes list'!$D$9:$E$58,2,FALSE)=0,\"\",VLOOKUP(CQ50,'Footnotes list'!$D$9:$E$58,2,FALSE) ) )","v":""},null,null,null,null,{"$f":"IF(TRIM(CV50)=\"\", \"\", IF(VLOOKUP(CV50,'Footnotes list'!$D$9:$E$58,2,FALSE)=0,\"\",VLOOKUP(CV50,'Footnotes list'!$D$9:$E$58,2,FALSE) ) )","v":""},null,null,null,null,{"$f":"IF(TRIM(DA50)=\"\", \"\", IF(VLOOKUP(DA50,'Footnotes list'!$D$9:$E$58,2,FALSE)=0,\"\",VLOOKUP(DA50,'Footnotes list'!$D$9:$E$58,2,FALSE) ) )","v":""},null,null,null,null,{"$f":"IF(TRIM(DF50)=\"\", \"\", IF(VLOOKUP(DF50,'Footnotes list'!$D$9:$E$58,2,FALSE)=0,\"\",VLOOKUP(DF50,'Footnotes list'!$D$9:$E$58,2,FALSE) ) )","v":""},null,null,null,null,{"$f":"IF(TRIM(DK50)=\"\", \"\", IF(VLOOKUP(DK50,'Footnotes list'!$D$9:$E$58,2,FALSE)=0,\"\",VLOOKUP(DK50,'Footnotes list'!$D$9:$E$58,2,FALSE) ) )","v":""},null,null,null,null,{"$f":"IF(TRIM(DP50)=\"\", \"\", IF(VLOOKUP(DP50,'Footnotes list'!$D$9:$E$58,2,FALSE)=0,\"\",VLOOKUP(DP50,'Footnotes list'!$D$9:$E$58,2,FALSE) ) )","v":""},null,null,null,null,{"$f":"IF(TRIM(DU50)=\"\", \"\", IF(VLOOKUP(DU50,'Footnotes list'!$D$9:$E$58,2,FALSE)=0,\"\",VLOOKUP(DU50,'Footnotes list'!$D$9:$E$58,2,FALSE) ) )","v":""},null,null,null,null,{"$f":"IF(TRIM(DZ50)=\"\", \"\", IF(VLOOKUP(DZ50,'Footnotes list'!$D$9:$E$58,2,FALSE)=0,\"\",VLOOKUP(DZ50,'Footnotes list'!$D$9:$E$58,2,FALSE) ) )","v":""},null,null,null,null,{"$f":"IF(TRIM(EE50)=\"\", \"\", IF(VLOOKUP(EE50,'Footnotes list'!$D$9:$E$58,2,FALSE)=0,\"\",VLOOKUP(EE50,'Footnotes list'!$D$9:$E$58,2,FALSE) ) )","v":""},null,null,null,null,{"$f":"IF(TRIM(EJ50)=\"\", \"\", IF(VLOOKUP(EJ50,'Footnotes list'!$D$9:$E$58,2,FALSE)=0,\"\",VLOOKUP(EJ50,'Footnotes list'!$D$9:$E$58,2,FALSE) ) )","v":""},null,null,null,null,{"$f":"IF(TRIM(EO50)=\"\", \"\", IF(VLOOKUP(EO50,'Footnotes list'!$D$9:$E$58,2,FALSE)=0,\"\",VLOOKUP(EO50,'Footnotes list'!$D$9:$E$58,2,FALSE) ) )","v":""},null,null,null,null,{"$f":"IF(TRIM(ET50)=\"\", \"\", IF(VLOOKUP(ET50,'Footnotes list'!$D$9:$E$58,2,FALSE)=0,\"\",VLOOKUP(ET50,'Footnotes list'!$D$9:$E$58,2,FALSE) ) )","v":""},null,null,null,null,{"$f":"IF(TRIM(EY50)=\"\", \"\", IF(VLOOKUP(EY50,'Footnotes list'!$D$9:$E$58,2,FALSE)=0,\"\",VLOOKUP(EY50,'Footnotes list'!$D$9:$E$58,2,FALSE) ) )","v":""}]
[null,null,"C16-C18","ANC","ancillary activities",null,null,null,null,null,{"$f":"IF(TRIM(J51)=\"\", \"\", IF(VLOOKUP(J51,'Footnotes list'!$D$9:$E$58,2,FALSE)=0,\"\",VLOOKUP(J51,'Footnotes list'!$D$9:$E$58,2,FALSE) ) )","v":""},null,null,null,null,{"$f":"IF(TRIM(O51)=\"\", \"\", IF(VLOOKUP(O51,'Footnotes list'!$D$9:$E$58,2,FALSE)=0,\"\",VLOOKUP(O51,'Footnotes list'!$D$9:$E$58,2,FALSE) ) )","v":""},null,null,null,null,{"$f":"IF(TRIM(T51)=\"\", \"\", IF(VLOOKUP(T51,'Footnotes list'!$D$9:$E$58,2,FALSE)=0,\"\",VLOOKUP(T51,'Footnotes list'!$D$9:$E$58,2,FALSE) ) )","v":""},null,null,null,null,{"$f":"IF(TRIM(Y51)=\"\", \"\", IF(VLOOKUP(Y51,'Footnotes list'!$D$9:$E$58,2,FALSE)=0,\"\",VLOOKUP(Y51,'Footnotes list'!$D$9:$E$58,2,FALSE) ) )","v":""},null,null,null,null,{"$f":"IF(TRIM(AD51)=\"\", \"\", IF(VLOOKUP(AD51,'Footnotes list'!$D$9:$E$58,2,FALSE)=0,\"\",VLOOKUP(AD51,'Footnotes list'!$D$9:$E$58,2,FALSE) ) )","v":""},null,null,null,null,{"$f":"IF(TRIM(AI51)=\"\", \"\", IF(VLOOKUP(AI51,'Footnotes list'!$D$9:$E$58,2,FALSE)=0,\"\",VLOOKUP(AI51,'Footnotes list'!$D$9:$E$58,2,FALSE) ) )","v":""},null,null,null,null,{"$f":"IF(TRIM(AN51)=\"\", \"\", IF(VLOOKUP(AN51,'Footnotes list'!$D$9:$E$58,2,FALSE)=0,\"\",VLOOKUP(AN51,'Footnotes list'!$D$9:$E$58,2,FALSE) ) )","v":""},null,null,null,null,{"$f":"IF(TRIM(AS51)=\"\", \"\", IF(VLOOKUP(AS51,'Footnotes list'!$D$9:$E$58,2,FALSE)=0,\"\",VLOOKUP(AS51,'Footnotes list'!$D$9:$E$58,2,FALSE) ) )","v":""},null,null,null,null,{"$f":"IF(TRIM(AX51)=\"\", \"\", IF(VLOOKUP(AX51,'Footnotes list'!$D$9:$E$58,2,FALSE)=0,\"\",VLOOKUP(AX51,'Footnotes list'!$D$9:$E$58,2,FALSE) ) )","v":""},null,null,null,null,{"$f":"IF(TRIM(BC51)=\"\", \"\", IF(VLOOKUP(BC51,'Footnotes list'!$D$9:$E$58,2,FALSE)=0,\"\",VLOOKUP(BC51,'Footnotes list'!$D$9:$E$58,2,FALSE) ) )","v":""},null,null,null,null,{"$f":"IF(TRIM(BH51)=\"\", \"\", IF(VLOOKUP(BH51,'Footnotes list'!$D$9:$E$58,2,FALSE)=0,\"\",VLOOKUP(BH51,'Footnotes list'!$D$9:$E$58,2,FALSE) ) )","v":""},null,null,null,null,{"$f":"IF(TRIM(BM51)=\"\", \"\", IF(VLOOKUP(BM51,'Footnotes list'!$D$9:$E$58,2,FALSE)=0,\"\",VLOOKUP(BM51,'Footnotes list'!$D$9:$E$58,2,FALSE) ) )","v":""},null,null,null,null,{"$f":"IF(TRIM(BR51)=\"\", \"\", IF(VLOOKUP(BR51,'Footnotes list'!$D$9:$E$58,2,FALSE)=0,\"\",VLOOKUP(BR51,'Footnotes list'!$D$9:$E$58,2,FALSE) ) )","v":""},null,null,null,null,{"$f":"IF(TRIM(BW51)=\"\", \"\", IF(VLOOKUP(BW51,'Footnotes list'!$D$9:$E$58,2,FALSE)=0,\"\",VLOOKUP(BW51,'Footnotes list'!$D$9:$E$58,2,FALSE) ) )","v":""},null,null,null,null,{"$f":"IF(TRIM(CB51)=\"\", \"\", IF(VLOOKUP(CB51,'Footnotes list'!$D$9:$E$58,2,FALSE)=0,\"\",VLOOKUP(CB51,'Footnotes list'!$D$9:$E$58,2,FALSE) ) )","v":""},null,null,null,null,{"$f":"IF(TRIM(CG51)=\"\", \"\", IF(VLOOKUP(CG51,'Footnotes list'!$D$9:$E$58,2,FALSE)=0,\"\",VLOOKUP(CG51,'Footnotes list'!$D$9:$E$58,2,FALSE) ) )","v":""},null,null,null,null,{"$f":"IF(TRIM(CL51)=\"\", \"\", IF(VLOOKUP(CL51,'Footnotes list'!$D$9:$E$58,2,FALSE)=0,\"\",VLOOKUP(CL51,'Footnotes list'!$D$9:$E$58,2,FALSE) ) )","v":""},null,null,null,null,{"$f":"IF(TRIM(CQ51)=\"\", \"\", IF(VLOOKUP(CQ51,'Footnotes list'!$D$9:$E$58,2,FALSE)=0,\"\",VLOOKUP(CQ51,'Footnotes list'!$D$9:$E$58,2,FALSE) ) )","v":""},null,null,null,null,{"$f":"IF(TRIM(CV51)=\"\", \"\", IF(VLOOKUP(CV51,'Footnotes list'!$D$9:$E$58,2,FALSE)=0,\"\",VLOOKUP(CV51,'Footnotes list'!$D$9:$E$58,2,FALSE) ) )","v":""},null,null,null,null,{"$f":"IF(TRIM(DA51)=\"\", \"\", IF(VLOOKUP(DA51,'Footnotes list'!$D$9:$E$58,2,FALSE)=0,\"\",VLOOKUP(DA51,'Footnotes list'!$D$9:$E$58,2,FALSE) ) )","v":""},null,null,null,null,{"$f":"IF(TRIM(DF51)=\"\", \"\", IF(VLOOKUP(DF51,'Footnotes list'!$D$9:$E$58,2,FALSE)=0,\"\",VLOOKUP(DF51,'Footnotes list'!$D$9:$E$58,2,FALSE) ) )","v":""},null,null,null,null,{"$f":"IF(TRIM(DK51)=\"\", \"\", IF(VLOOKUP(DK51,'Footnotes list'!$D$9:$E$58,2,FALSE)=0,\"\",VLOOKUP(DK51,'Footnotes list'!$D$9:$E$58,2,FALSE) ) )","v":""},null,null,null,null,{"$f":"IF(TRIM(DP51)=\"\", \"\", IF(VLOOKUP(DP51,'Footnotes list'!$D$9:$E$58,2,FALSE)=0,\"\",VLOOKUP(DP51,'Footnotes list'!$D$9:$E$58,2,FALSE) ) )","v":""},null,null,null,null,{"$f":"IF(TRIM(DU51)=\"\", \"\", IF(VLOOKUP(DU51,'Footnotes list'!$D$9:$E$58,2,FALSE)=0,\"\",VLOOKUP(DU51,'Footnotes list'!$D$9:$E$58,2,FALSE) ) )","v":""},null,null,null,null,{"$f":"IF(TRIM(DZ51)=\"\", \"\", IF(VLOOKUP(DZ51,'Footnotes list'!$D$9:$E$58,2,FALSE)=0,\"\",VLOOKUP(DZ51,'Footnotes list'!$D$9:$E$58,2,FALSE) ) )","v":""},null,null,null,null,{"$f":"IF(TRIM(EE51)=\"\", \"\", IF(VLOOKUP(EE51,'Footnotes list'!$D$9:$E$58,2,FALSE)=0,\"\",VLOOKUP(EE51,'Footnotes list'!$D$9:$E$58,2,FALSE) ) )","v":""},null,null,null,null,{"$f":"IF(TRIM(EJ51)=\"\", \"\", IF(VLOOKUP(EJ51,'Footnotes list'!$D$9:$E$58,2,FALSE)=0,\"\",VLOOKUP(EJ51,'Footnotes list'!$D$9:$E$58,2,FALSE) ) )","v":""},null,null,null,null,{"$f":"IF(TRIM(EO51)=\"\", \"\", IF(VLOOKUP(EO51,'Footnotes list'!$D$9:$E$58,2,FALSE)=0,\"\",VLOOKUP(EO51,'Footnotes list'!$D$9:$E$58,2,FALSE) ) )","v":""},null,null,null,null,{"$f":"IF(TRIM(ET51)=\"\", \"\", IF(VLOOKUP(ET51,'Footnotes list'!$D$9:$E$58,2,FALSE)=0,\"\",VLOOKUP(ET51,'Footnotes list'!$D$9:$E$58,2,FALSE) ) )","v":""},null,null,null,null,{"$f":"IF(TRIM(EY51)=\"\", \"\", IF(VLOOKUP(EY51,'Footnotes list'!$D$9:$E$58,2,FALSE)=0,\"\",VLOOKUP(EY51,'Footnotes list'!$D$9:$E$58,2,FALSE) ) )","v":""}]
[null,null,"C16-C18","NMKT","non-market activities",null,null,null,null,null,{"$f":"IF(TRIM(J52)=\"\", \"\", IF(VLOOKUP(J52,'Footnotes list'!$D$9:$E$58,2,FALSE)=0,\"\",VLOOKUP(J52,'Footnotes list'!$D$9:$E$58,2,FALSE) ) )","v":""},null,null,null,null,{"$f":"IF(TRIM(O52)=\"\", \"\", IF(VLOOKUP(O52,'Footnotes list'!$D$9:$E$58,2,FALSE)=0,\"\",VLOOKUP(O52,'Footnotes list'!$D$9:$E$58,2,FALSE) ) )","v":""},null,null,null,null,{"$f":"IF(TRIM(T52)=\"\", \"\", IF(VLOOKUP(T52,'Footnotes list'!$D$9:$E$58,2,FALSE)=0,\"\",VLOOKUP(T52,'Footnotes list'!$D$9:$E$58,2,FALSE) ) )","v":""},null,null,null,null,{"$f":"IF(TRIM(Y52)=\"\", \"\", IF(VLOOKUP(Y52,'Footnotes list'!$D$9:$E$58,2,FALSE)=0,\"\",VLOOKUP(Y52,'Footnotes list'!$D$9:$E$58,2,FALSE) ) )","v":""},null,null,null,null,{"$f":"IF(TRIM(AD52)=\"\", \"\", IF(VLOOKUP(AD52,'Footnotes list'!$D$9:$E$58,2,FALSE)=0,\"\",VLOOKUP(AD52,'Footnotes list'!$D$9:$E$58,2,FALSE) ) )","v":""},null,null,null,null,{"$f":"IF(TRIM(AI52)=\"\", \"\", IF(VLOOKUP(AI52,'Footnotes list'!$D$9:$E$58,2,FALSE)=0,\"\",VLOOKUP(AI52,'Footnotes list'!$D$9:$E$58,2,FALSE) ) )","v":""},null,null,null,null,{"$f":"IF(TRIM(AN52)=\"\", \"\", IF(VLOOKUP(AN52,'Footnotes list'!$D$9:$E$58,2,FALSE)=0,\"\",VLOOKUP(AN52,'Footnotes list'!$D$9:$E$58,2,FALSE) ) )","v":""},null,null,null,null,{"$f":"IF(TRIM(AS52)=\"\", \"\", IF(VLOOKUP(AS52,'Footnotes list'!$D$9:$E$58,2,FALSE)=0,\"\",VLOOKUP(AS52,'Footnotes list'!$D$9:$E$58,2,FALSE) ) )","v":""},null,null,null,null,{"$f":"IF(TRIM(AX52)=\"\", \"\", IF(VLOOKUP(AX52,'Footnotes list'!$D$9:$E$58,2,FALSE)=0,\"\",VLOOKUP(AX52,'Footnotes list'!$D$9:$E$58,2,FALSE) ) )","v":""},null,null,null,null,{"$f":"IF(TRIM(BC52)=\"\", \"\", IF(VLOOKUP(BC52,'Footnotes list'!$D$9:$E$58,2,FALSE)=0,\"\",VLOOKUP(BC52,'Footnotes list'!$D$9:$E$58,2,FALSE) ) )","v":""},null,null,null,null,{"$f":"IF(TRIM(BH52)=\"\", \"\", IF(VLOOKUP(BH52,'Footnotes list'!$D$9:$E$58,2,FALSE)=0,\"\",VLOOKUP(BH52,'Footnotes list'!$D$9:$E$58,2,FALSE) ) )","v":""},null,null,null,null,{"$f":"IF(TRIM(BM52)=\"\", \"\", IF(VLOOKUP(BM52,'Footnotes list'!$D$9:$E$58,2,FALSE)=0,\"\",VLOOKUP(BM52,'Footnotes list'!$D$9:$E$58,2,FALSE) ) )","v":""},null,null,null,null,{"$f":"IF(TRIM(BR52)=\"\", \"\", IF(VLOOKUP(BR52,'Footnotes list'!$D$9:$E$58,2,FALSE)=0,\"\",VLOOKUP(BR52,'Footnotes list'!$D$9:$E$58,2,FALSE) ) )","v":""},null,null,null,null,{"$f":"IF(TRIM(BW52)=\"\", \"\", IF(VLOOKUP(BW52,'Footnotes list'!$D$9:$E$58,2,FALSE)=0,\"\",VLOOKUP(BW52,'Footnotes list'!$D$9:$E$58,2,FALSE) ) )","v":""},null,null,null,null,{"$f":"IF(TRIM(CB52)=\"\", \"\", IF(VLOOKUP(CB52,'Footnotes list'!$D$9:$E$58,2,FALSE)=0,\"\",VLOOKUP(CB52,'Footnotes list'!$D$9:$E$58,2,FALSE) ) )","v":""},null,null,null,null,{"$f":"IF(TRIM(CG52)=\"\", \"\", IF(VLOOKUP(CG52,'Footnotes list'!$D$9:$E$58,2,FALSE)=0,\"\",VLOOKUP(CG52,'Footnotes list'!$D$9:$E$58,2,FALSE) ) )","v":""},null,null,null,null,{"$f":"IF(TRIM(CL52)=\"\", \"\", IF(VLOOKUP(CL52,'Footnotes list'!$D$9:$E$58,2,FALSE)=0,\"\",VLOOKUP(CL52,'Footnotes list'!$D$9:$E$58,2,FALSE) ) )","v":""},null,null,null,null,{"$f":"IF(TRIM(CQ52)=\"\", \"\", IF(VLOOKUP(CQ52,'Footnotes list'!$D$9:$E$58,2,FALSE)=0,\"\",VLOOKUP(CQ52,'Footnotes list'!$D$9:$E$58,2,FALSE) ) )","v":""},null,null,null,null,{"$f":"IF(TRIM(CV52)=\"\", \"\", IF(VLOOKUP(CV52,'Footnotes list'!$D$9:$E$58,2,FALSE)=0,\"\",VLOOKUP(CV52,'Footnotes list'!$D$9:$E$58,2,FALSE) ) )","v":""},null,null,null,null,{"$f":"IF(TRIM(DA52)=\"\", \"\", IF(VLOOKUP(DA52,'Footnotes list'!$D$9:$E$58,2,FALSE)=0,\"\",VLOOKUP(DA52,'Footnotes list'!$D$9:$E$58,2,FALSE) ) )","v":""},null,null,null,null,{"$f":"IF(TRIM(DF52)=\"\", \"\", IF(VLOOKUP(DF52,'Footnotes list'!$D$9:$E$58,2,FALSE)=0,\"\",VLOOKUP(DF52,'Footnotes list'!$D$9:$E$58,2,FALSE) ) )","v":""},null,null,null,null,{"$f":"IF(TRIM(DK52)=\"\", \"\", IF(VLOOKUP(DK52,'Footnotes list'!$D$9:$E$58,2,FALSE)=0,\"\",VLOOKUP(DK52,'Footnotes list'!$D$9:$E$58,2,FALSE) ) )","v":""},null,null,null,null,{"$f":"IF(TRIM(DP52)=\"\", \"\", IF(VLOOKUP(DP52,'Footnotes list'!$D$9:$E$58,2,FALSE)=0,\"\",VLOOKUP(DP52,'Footnotes list'!$D$9:$E$58,2,FALSE) ) )","v":""},null,null,null,null,{"$f":"IF(TRIM(DU52)=\"\", \"\", IF(VLOOKUP(DU52,'Footnotes list'!$D$9:$E$58,2,FALSE)=0,\"\",VLOOKUP(DU52,'Footnotes list'!$D$9:$E$58,2,FALSE) ) )","v":""},null,null,null,null,{"$f":"IF(TRIM(DZ52)=\"\", \"\", IF(VLOOKUP(DZ52,'Footnotes list'!$D$9:$E$58,2,FALSE)=0,\"\",VLOOKUP(DZ52,'Footnotes list'!$D$9:$E$58,2,FALSE) ) )","v":""},null,null,null,null,{"$f":"IF(TRIM(EE52)=\"\", \"\", IF(VLOOKUP(EE52,'Footnotes list'!$D$9:$E$58,2,FALSE)=0,\"\",VLOOKUP(EE52,'Footnotes list'!$D$9:$E$58,2,FALSE) ) )","v":""},null,null,null,null,{"$f":"IF(TRIM(EJ52)=\"\", \"\", IF(VLOOKUP(EJ52,'Footnotes list'!$D$9:$E$58,2,FALSE)=0,\"\",VLOOKUP(EJ52,'Footnotes list'!$D$9:$E$58,2,FALSE) ) )","v":""},null,null,null,null,{"$f":"IF(TRIM(EO52)=\"\", \"\", IF(VLOOKUP(EO52,'Footnotes list'!$D$9:$E$58,2,FALSE)=0,\"\",VLOOKUP(EO52,'Footnotes list'!$D$9:$E$58,2,FALSE) ) )","v":""},null,null,null,null,{"$f":"IF(TRIM(ET52)=\"\", \"\", IF(VLOOKUP(ET52,'Footnotes list'!$D$9:$E$58,2,FALSE)=0,\"\",VLOOKUP(ET52,'Footnotes list'!$D$9:$E$58,2,FALSE) ) )","v":""},null,null,null,null,{"$f":"IF(TRIM(EY52)=\"\", \"\", IF(VLOOKUP(EY52,'Footnotes list'!$D$9:$E$58,2,FALSE)=0,\"\",VLOOKUP(EY52,'Footnotes list'!$D$9:$E$58,2,FALSE) ) )","v":""}]
[null,null,"C16-C18","OWN_USE","activities for own final use",null,null,null,null,null,{"$f":"IF(TRIM(J53)=\"\", \"\", IF(VLOOKUP(J53,'Footnotes list'!$D$9:$E$58,2,FALSE)=0,\"\",VLOOKUP(J53,'Footnotes list'!$D$9:$E$58,2,FALSE) ) )","v":""},null,null,null,null,{"$f":"IF(TRIM(O53)=\"\", \"\", IF(VLOOKUP(O53,'Footnotes list'!$D$9:$E$58,2,FALSE)=0,\"\",VLOOKUP(O53,'Footnotes list'!$D$9:$E$58,2,FALSE) ) )","v":""},null,null,null,null,{"$f":"IF(TRIM(T53)=\"\", \"\", IF(VLOOKUP(T53,'Footnotes list'!$D$9:$E$58,2,FALSE)=0,\"\",VLOOKUP(T53,'Footnotes list'!$D$9:$E$58,2,FALSE) ) )","v":""},null,null,null,null,{"$f":"IF(TRIM(Y53)=\"\", \"\", IF(VLOOKUP(Y53,'Footnotes list'!$D$9:$E$58,2,FALSE)=0,\"\",VLOOKUP(Y53,'Footnotes list'!$D$9:$E$58,2,FALSE) ) )","v":""},null,null,null,null,{"$f":"IF(TRIM(AD53)=\"\", \"\", IF(VLOOKUP(AD53,'Footnotes list'!$D$9:$E$58,2,FALSE)=0,\"\",VLOOKUP(AD53,'Footnotes list'!$D$9:$E$58,2,FALSE) ) )","v":""},null,null,null,null,{"$f":"IF(TRIM(AI53)=\"\", \"\", IF(VLOOKUP(AI53,'Footnotes list'!$D$9:$E$58,2,FALSE)=0,\"\",VLOOKUP(AI53,'Footnotes list'!$D$9:$E$58,2,FALSE) ) )","v":""},null,null,null,null,{"$f":"IF(TRIM(AN53)=\"\", \"\", IF(VLOOKUP(AN53,'Footnotes list'!$D$9:$E$58,2,FALSE)=0,\"\",VLOOKUP(AN53,'Footnotes list'!$D$9:$E$58,2,FALSE) ) )","v":""},null,null,null,null,{"$f":"IF(TRIM(AS53)=\"\", \"\", IF(VLOOKUP(AS53,'Footnotes list'!$D$9:$E$58,2,FALSE)=0,\"\",VLOOKUP(AS53,'Footnotes list'!$D$9:$E$58,2,FALSE) ) )","v":""},null,null,null,null,{"$f":"IF(TRIM(AX53)=\"\", \"\", IF(VLOOKUP(AX53,'Footnotes list'!$D$9:$E$58,2,FALSE)=0,\"\",VLOOKUP(AX53,'Footnotes list'!$D$9:$E$58,2,FALSE) ) )","v":""},null,null,null,null,{"$f":"IF(TRIM(BC53)=\"\", \"\", IF(VLOOKUP(BC53,'Footnotes list'!$D$9:$E$58,2,FALSE)=0,\"\",VLOOKUP(BC53,'Footnotes list'!$D$9:$E$58,2,FALSE) ) )","v":""},null,null,null,null,{"$f":"IF(TRIM(BH53)=\"\", \"\", IF(VLOOKUP(BH53,'Footnotes list'!$D$9:$E$58,2,FALSE)=0,\"\",VLOOKUP(BH53,'Footnotes list'!$D$9:$E$58,2,FALSE) ) )","v":""},null,null,null,null,{"$f":"IF(TRIM(BM53)=\"\", \"\", IF(VLOOKUP(BM53,'Footnotes list'!$D$9:$E$58,2,FALSE)=0,\"\",VLOOKUP(BM53,'Footnotes list'!$D$9:$E$58,2,FALSE) ) )","v":""},null,null,null,null,{"$f":"IF(TRIM(BR53)=\"\", \"\", IF(VLOOKUP(BR53,'Footnotes list'!$D$9:$E$58,2,FALSE)=0,\"\",VLOOKUP(BR53,'Footnotes list'!$D$9:$E$58,2,FALSE) ) )","v":""},null,null,null,null,{"$f":"IF(TRIM(BW53)=\"\", \"\", IF(VLOOKUP(BW53,'Footnotes list'!$D$9:$E$58,2,FALSE)=0,\"\",VLOOKUP(BW53,'Footnotes list'!$D$9:$E$58,2,FALSE) ) )","v":""},null,null,null,null,{"$f":"IF(TRIM(CB53)=\"\", \"\", IF(VLOOKUP(CB53,'Footnotes list'!$D$9:$E$58,2,FALSE)=0,\"\",VLOOKUP(CB53,'Footnotes list'!$D$9:$E$58,2,FALSE) ) )","v":""},null,null,null,null,{"$f":"IF(TRIM(CG53)=\"\", \"\", IF(VLOOKUP(CG53,'Footnotes list'!$D$9:$E$58,2,FALSE)=0,\"\",VLOOKUP(CG53,'Footnotes list'!$D$9:$E$58,2,FALSE) ) )","v":""},null,null,null,null,{"$f":"IF(TRIM(CL53)=\"\", \"\", IF(VLOOKUP(CL53,'Footnotes list'!$D$9:$E$58,2,FALSE)=0,\"\",VLOOKUP(CL53,'Footnotes list'!$D$9:$E$58,2,FALSE) ) )","v":""},null,null,null,null,{"$f":"IF(TRIM(CQ53)=\"\", \"\", IF(VLOOKUP(CQ53,'Footnotes list'!$D$9:$E$58,2,FALSE)=0,\"\",VLOOKUP(CQ53,'Footnotes list'!$D$9:$E$58,2,FALSE) ) )","v":""},null,null,null,null,{"$f":"IF(TRIM(CV53)=\"\", \"\", IF(VLOOKUP(CV53,'Footnotes list'!$D$9:$E$58,2,FALSE)=0,\"\",VLOOKUP(CV53,'Footnotes list'!$D$9:$E$58,2,FALSE) ) )","v":""},null,null,null,null,{"$f":"IF(TRIM(DA53)=\"\", \"\", IF(VLOOKUP(DA53,'Footnotes list'!$D$9:$E$58,2,FALSE)=0,\"\",VLOOKUP(DA53,'Footnotes list'!$D$9:$E$58,2,FALSE) ) )","v":""},null,null,null,null,{"$f":"IF(TRIM(DF53)=\"\", \"\", IF(VLOOKUP(DF53,'Footnotes list'!$D$9:$E$58,2,FALSE)=0,\"\",VLOOKUP(DF53,'Footnotes list'!$D$9:$E$58,2,FALSE) ) )","v":""},null,null,null,null,{"$f":"IF(TRIM(DK53)=\"\", \"\", IF(VLOOKUP(DK53,'Footnotes list'!$D$9:$E$58,2,FALSE)=0,\"\",VLOOKUP(DK53,'Footnotes list'!$D$9:$E$58,2,FALSE) ) )","v":""},null,null,null,null,{"$f":"IF(TRIM(DP53)=\"\", \"\", IF(VLOOKUP(DP53,'Footnotes list'!$D$9:$E$58,2,FALSE)=0,\"\",VLOOKUP(DP53,'Footnotes list'!$D$9:$E$58,2,FALSE) ) )","v":""},null,null,null,null,{"$f":"IF(TRIM(DU53)=\"\", \"\", IF(VLOOKUP(DU53,'Footnotes list'!$D$9:$E$58,2,FALSE)=0,\"\",VLOOKUP(DU53,'Footnotes list'!$D$9:$E$58,2,FALSE) ) )","v":""},null,null,null,null,{"$f":"IF(TRIM(DZ53)=\"\", \"\", IF(VLOOKUP(DZ53,'Footnotes list'!$D$9:$E$58,2,FALSE)=0,\"\",VLOOKUP(DZ53,'Footnotes list'!$D$9:$E$58,2,FALSE) ) )","v":""},null,null,null,null,{"$f":"IF(TRIM(EE53)=\"\", \"\", IF(VLOOKUP(EE53,'Footnotes list'!$D$9:$E$58,2,FALSE)=0,\"\",VLOOKUP(EE53,'Footnotes list'!$D$9:$E$58,2,FALSE) ) )","v":""},null,null,null,null,{"$f":"IF(TRIM(EJ53)=\"\", \"\", IF(VLOOKUP(EJ53,'Footnotes list'!$D$9:$E$58,2,FALSE)=0,\"\",VLOOKUP(EJ53,'Footnotes list'!$D$9:$E$58,2,FALSE) ) )","v":""},null,null,null,null,{"$f":"IF(TRIM(EO53)=\"\", \"\", IF(VLOOKUP(EO53,'Footnotes list'!$D$9:$E$58,2,FALSE)=0,\"\",VLOOKUP(EO53,'Footnotes list'!$D$9:$E$58,2,FALSE) ) )","v":""},null,null,null,null,{"$f":"IF(TRIM(ET53)=\"\", \"\", IF(VLOOKUP(ET53,'Footnotes list'!$D$9:$E$58,2,FALSE)=0,\"\",VLOOKUP(ET53,'Footnotes list'!$D$9:$E$58,2,FALSE) ) )","v":""},null,null,null,null,{"$f":"IF(TRIM(EY53)=\"\", \"\", IF(VLOOKUP(EY53,'Footnotes list'!$D$9:$E$58,2,FALSE)=0,\"\",VLOOKUP(EY53,'Footnotes list'!$D$9:$E$58,2,FALSE) ) )","v":""}]
[null,null,"C16-C18","MKT","market activities, including:",null,null,null,null,null,{"$f":"IF(TRIM(J54)=\"\", \"\", IF(VLOOKUP(J54,'Footnotes list'!$D$9:$E$58,2,FALSE)=0,\"\",VLOOKUP(J54,'Footnotes list'!$D$9:$E$58,2,FALSE) ) )","v":""},null,null,null,null,{"$f":"IF(TRIM(O54)=\"\", \"\", IF(VLOOKUP(O54,'Footnotes list'!$D$9:$E$58,2,FALSE)=0,\"\",VLOOKUP(O54,'Footnotes list'!$D$9:$E$58,2,FALSE) ) )","v":""},null,null,null,null,{"$f":"IF(TRIM(T54)=\"\", \"\", IF(VLOOKUP(T54,'Footnotes list'!$D$9:$E$58,2,FALSE)=0,\"\",VLOOKUP(T54,'Footnotes list'!$D$9:$E$58,2,FALSE) ) )","v":""},null,null,null,null,{"$f":"IF(TRIM(Y54)=\"\", \"\", IF(VLOOKUP(Y54,'Footnotes list'!$D$9:$E$58,2,FALSE)=0,\"\",VLOOKUP(Y54,'Footnotes list'!$D$9:$E$58,2,FALSE) ) )","v":""},null,null,null,null,{"$f":"IF(TRIM(AD54)=\"\", \"\", IF(VLOOKUP(AD54,'Footnotes list'!$D$9:$E$58,2,FALSE)=0,\"\",VLOOKUP(AD54,'Footnotes list'!$D$9:$E$58,2,FALSE) ) )","v":""},null,null,null,null,{"$f":"IF(TRIM(AI54)=\"\", \"\", IF(VLOOKUP(AI54,'Footnotes list'!$D$9:$E$58,2,FALSE)=0,\"\",VLOOKUP(AI54,'Footnotes list'!$D$9:$E$58,2,FALSE) ) )","v":""},null,null,null,null,{"$f":"IF(TRIM(AN54)=\"\", \"\", IF(VLOOKUP(AN54,'Footnotes list'!$D$9:$E$58,2,FALSE)=0,\"\",VLOOKUP(AN54,'Footnotes list'!$D$9:$E$58,2,FALSE) ) )","v":""},null,null,null,null,{"$f":"IF(TRIM(AS54)=\"\", \"\", IF(VLOOKUP(AS54,'Footnotes list'!$D$9:$E$58,2,FALSE)=0,\"\",VLOOKUP(AS54,'Footnotes list'!$D$9:$E$58,2,FALSE) ) )","v":""},null,null,null,null,{"$f":"IF(TRIM(AX54)=\"\", \"\", IF(VLOOKUP(AX54,'Footnotes list'!$D$9:$E$58,2,FALSE)=0,\"\",VLOOKUP(AX54,'Footnotes list'!$D$9:$E$58,2,FALSE) ) )","v":""},null,null,null,null,{"$f":"IF(TRIM(BC54)=\"\", \"\", IF(VLOOKUP(BC54,'Footnotes list'!$D$9:$E$58,2,FALSE)=0,\"\",VLOOKUP(BC54,'Footnotes list'!$D$9:$E$58,2,FALSE) ) )","v":""},null,null,null,null,{"$f":"IF(TRIM(BH54)=\"\", \"\", IF(VLOOKUP(BH54,'Footnotes list'!$D$9:$E$58,2,FALSE)=0,\"\",VLOOKUP(BH54,'Footnotes list'!$D$9:$E$58,2,FALSE) ) )","v":""},null,null,null,null,{"$f":"IF(TRIM(BM54)=\"\", \"\", IF(VLOOKUP(BM54,'Footnotes list'!$D$9:$E$58,2,FALSE)=0,\"\",VLOOKUP(BM54,'Footnotes list'!$D$9:$E$58,2,FALSE) ) )","v":""},null,null,null,null,{"$f":"IF(TRIM(BR54)=\"\", \"\", IF(VLOOKUP(BR54,'Footnotes list'!$D$9:$E$58,2,FALSE)=0,\"\",VLOOKUP(BR54,'Footnotes list'!$D$9:$E$58,2,FALSE) ) )","v":""},null,null,null,null,{"$f":"IF(TRIM(BW54)=\"\", \"\", IF(VLOOKUP(BW54,'Footnotes list'!$D$9:$E$58,2,FALSE)=0,\"\",VLOOKUP(BW54,'Footnotes list'!$D$9:$E$58,2,FALSE) ) )","v":""},null,null,null,null,{"$f":"IF(TRIM(CB54)=\"\", \"\", IF(VLOOKUP(CB54,'Footnotes list'!$D$9:$E$58,2,FALSE)=0,\"\",VLOOKUP(CB54,'Footnotes list'!$D$9:$E$58,2,FALSE) ) )","v":""},null,null,null,null,{"$f":"IF(TRIM(CG54)=\"\", \"\", IF(VLOOKUP(CG54,'Footnotes list'!$D$9:$E$58,2,FALSE)=0,\"\",VLOOKUP(CG54,'Footnotes list'!$D$9:$E$58,2,FALSE) ) )","v":""},null,null,null,null,{"$f":"IF(TRIM(CL54)=\"\", \"\", IF(VLOOKUP(CL54,'Footnotes list'!$D$9:$E$58,2,FALSE)=0,\"\",VLOOKUP(CL54,'Footnotes list'!$D$9:$E$58,2,FALSE) ) )","v":""},null,null,null,null,{"$f":"IF(TRIM(CQ54)=\"\", \"\", IF(VLOOKUP(CQ54,'Footnotes list'!$D$9:$E$58,2,FALSE)=0,\"\",VLOOKUP(CQ54,'Footnotes list'!$D$9:$E$58,2,FALSE) ) )","v":""},null,null,null,null,{"$f":"IF(TRIM(CV54)=\"\", \"\", IF(VLOOKUP(CV54,'Footnotes list'!$D$9:$E$58,2,FALSE)=0,\"\",VLOOKUP(CV54,'Footnotes list'!$D$9:$E$58,2,FALSE) ) )","v":""},null,null,null,null,{"$f":"IF(TRIM(DA54)=\"\", \"\", IF(VLOOKUP(DA54,'Footnotes list'!$D$9:$E$58,2,FALSE)=0,\"\",VLOOKUP(DA54,'Footnotes list'!$D$9:$E$58,2,FALSE) ) )","v":""},null,null,null,null,{"$f":"IF(TRIM(DF54)=\"\", \"\", IF(VLOOKUP(DF54,'Footnotes list'!$D$9:$E$58,2,FALSE)=0,\"\",VLOOKUP(DF54,'Footnotes list'!$D$9:$E$58,2,FALSE) ) )","v":""},null,null,null,null,{"$f":"IF(TRIM(DK54)=\"\", \"\", IF(VLOOKUP(DK54,'Footnotes list'!$D$9:$E$58,2,FALSE)=0,\"\",VLOOKUP(DK54,'Footnotes list'!$D$9:$E$58,2,FALSE) ) )","v":""},null,null,null,null,{"$f":"IF(TRIM(DP54)=\"\", \"\", IF(VLOOKUP(DP54,'Footnotes list'!$D$9:$E$58,2,FALSE)=0,\"\",VLOOKUP(DP54,'Footnotes list'!$D$9:$E$58,2,FALSE) ) )","v":""},null,null,null,null,{"$f":"IF(TRIM(DU54)=\"\", \"\", IF(VLOOKUP(DU54,'Footnotes list'!$D$9:$E$58,2,FALSE)=0,\"\",VLOOKUP(DU54,'Footnotes list'!$D$9:$E$58,2,FALSE) ) )","v":""},null,null,null,null,{"$f":"IF(TRIM(DZ54)=\"\", \"\", IF(VLOOKUP(DZ54,'Footnotes list'!$D$9:$E$58,2,FALSE)=0,\"\",VLOOKUP(DZ54,'Footnotes list'!$D$9:$E$58,2,FALSE) ) )","v":""},null,null,null,null,{"$f":"IF(TRIM(EE54)=\"\", \"\", IF(VLOOKUP(EE54,'Footnotes list'!$D$9:$E$58,2,FALSE)=0,\"\",VLOOKUP(EE54,'Footnotes list'!$D$9:$E$58,2,FALSE) ) )","v":""},null,null,null,null,{"$f":"IF(TRIM(EJ54)=\"\", \"\", IF(VLOOKUP(EJ54,'Footnotes list'!$D$9:$E$58,2,FALSE)=0,\"\",VLOOKUP(EJ54,'Footnotes list'!$D$9:$E$58,2,FALSE) ) )","v":""},null,null,null,null,{"$f":"IF(TRIM(EO54)=\"\", \"\", IF(VLOOKUP(EO54,'Footnotes list'!$D$9:$E$58,2,FALSE)=0,\"\",VLOOKUP(EO54,'Footnotes list'!$D$9:$E$58,2,FALSE) ) )","v":""},null,null,null,null,{"$f":"IF(TRIM(ET54)=\"\", \"\", IF(VLOOKUP(ET54,'Footnotes list'!$D$9:$E$58,2,FALSE)=0,\"\",VLOOKUP(ET54,'Footnotes list'!$D$9:$E$58,2,FALSE) ) )","v":""},null,null,null,null,{"$f":"IF(TRIM(EY54)=\"\", \"\", IF(VLOOKUP(EY54,'Footnotes list'!$D$9:$E$58,2,FALSE)=0,\"\",VLOOKUP(EY54,'Footnotes list'!$D$9:$E$58,2,FALSE) ) )","v":""}]
[null,null,"C16-C18","ES_CS","environmental specific services",null,null,null,null,null,{"$f":"IF(TRIM(J55)=\"\", \"\", IF(VLOOKUP(J55,'Footnotes list'!$D$9:$E$58,2,FALSE)=0,\"\",VLOOKUP(J55,'Footnotes list'!$D$9:$E$58,2,FALSE) ) )","v":""},null,null,null,null,{"$f":"IF(TRIM(O55)=\"\", \"\", IF(VLOOKUP(O55,'Footnotes list'!$D$9:$E$58,2,FALSE)=0,\"\",VLOOKUP(O55,'Footnotes list'!$D$9:$E$58,2,FALSE) ) )","v":""},null,null,null,null,{"$f":"IF(TRIM(T55)=\"\", \"\", IF(VLOOKUP(T55,'Footnotes list'!$D$9:$E$58,2,FALSE)=0,\"\",VLOOKUP(T55,'Footnotes list'!$D$9:$E$58,2,FALSE) ) )","v":""},null,null,null,null,{"$f":"IF(TRIM(Y55)=\"\", \"\", IF(VLOOKUP(Y55,'Footnotes list'!$D$9:$E$58,2,FALSE)=0,\"\",VLOOKUP(Y55,'Footnotes list'!$D$9:$E$58,2,FALSE) ) )","v":""},null,null,null,null,{"$f":"IF(TRIM(AD55)=\"\", \"\", IF(VLOOKUP(AD55,'Footnotes list'!$D$9:$E$58,2,FALSE)=0,\"\",VLOOKUP(AD55,'Footnotes list'!$D$9:$E$58,2,FALSE) ) )","v":""},null,null,null,null,{"$f":"IF(TRIM(AI55)=\"\", \"\", IF(VLOOKUP(AI55,'Footnotes list'!$D$9:$E$58,2,FALSE)=0,\"\",VLOOKUP(AI55,'Footnotes list'!$D$9:$E$58,2,FALSE) ) )","v":""},null,null,null,null,{"$f":"IF(TRIM(AN55)=\"\", \"\", IF(VLOOKUP(AN55,'Footnotes list'!$D$9:$E$58,2,FALSE)=0,\"\",VLOOKUP(AN55,'Footnotes list'!$D$9:$E$58,2,FALSE) ) )","v":""},null,null,null,null,{"$f":"IF(TRIM(AS55)=\"\", \"\", IF(VLOOKUP(AS55,'Footnotes list'!$D$9:$E$58,2,FALSE)=0,\"\",VLOOKUP(AS55,'Footnotes list'!$D$9:$E$58,2,FALSE) ) )","v":""},null,null,null,null,{"$f":"IF(TRIM(AX55)=\"\", \"\", IF(VLOOKUP(AX55,'Footnotes list'!$D$9:$E$58,2,FALSE)=0,\"\",VLOOKUP(AX55,'Footnotes list'!$D$9:$E$58,2,FALSE) ) )","v":""},null,null,null,null,{"$f":"IF(TRIM(BC55)=\"\", \"\", IF(VLOOKUP(BC55,'Footnotes list'!$D$9:$E$58,2,FALSE)=0,\"\",VLOOKUP(BC55,'Footnotes list'!$D$9:$E$58,2,FALSE) ) )","v":""},null,null,null,null,{"$f":"IF(TRIM(BH55)=\"\", \"\", IF(VLOOKUP(BH55,'Footnotes list'!$D$9:$E$58,2,FALSE)=0,\"\",VLOOKUP(BH55,'Footnotes list'!$D$9:$E$58,2,FALSE) ) )","v":""},null,null,null,null,{"$f":"IF(TRIM(BM55)=\"\", \"\", IF(VLOOKUP(BM55,'Footnotes list'!$D$9:$E$58,2,FALSE)=0,\"\",VLOOKUP(BM55,'Footnotes list'!$D$9:$E$58,2,FALSE) ) )","v":""},null,null,null,null,{"$f":"IF(TRIM(BR55)=\"\", \"\", IF(VLOOKUP(BR55,'Footnotes list'!$D$9:$E$58,2,FALSE)=0,\"\",VLOOKUP(BR55,'Footnotes list'!$D$9:$E$58,2,FALSE) ) )","v":""},null,null,null,null,{"$f":"IF(TRIM(BW55)=\"\", \"\", IF(VLOOKUP(BW55,'Footnotes list'!$D$9:$E$58,2,FALSE)=0,\"\",VLOOKUP(BW55,'Footnotes list'!$D$9:$E$58,2,FALSE) ) )","v":""},null,null,null,null,{"$f":"IF(TRIM(CB55)=\"\", \"\", IF(VLOOKUP(CB55,'Footnotes list'!$D$9:$E$58,2,FALSE)=0,\"\",VLOOKUP(CB55,'Footnotes list'!$D$9:$E$58,2,FALSE) ) )","v":""},null,null,null,null,{"$f":"IF(TRIM(CG55)=\"\", \"\", IF(VLOOKUP(CG55,'Footnotes list'!$D$9:$E$58,2,FALSE)=0,\"\",VLOOKUP(CG55,'Footnotes list'!$D$9:$E$58,2,FALSE) ) )","v":""},null,null,null,null,{"$f":"IF(TRIM(CL55)=\"\", \"\", IF(VLOOKUP(CL55,'Footnotes list'!$D$9:$E$58,2,FALSE)=0,\"\",VLOOKUP(CL55,'Footnotes list'!$D$9:$E$58,2,FALSE) ) )","v":""},null,null,null,null,{"$f":"IF(TRIM(CQ55)=\"\", \"\", IF(VLOOKUP(CQ55,'Footnotes list'!$D$9:$E$58,2,FALSE)=0,\"\",VLOOKUP(CQ55,'Footnotes list'!$D$9:$E$58,2,FALSE) ) )","v":""},null,null,null,null,{"$f":"IF(TRIM(CV55)=\"\", \"\", IF(VLOOKUP(CV55,'Footnotes list'!$D$9:$E$58,2,FALSE)=0,\"\",VLOOKUP(CV55,'Footnotes list'!$D$9:$E$58,2,FALSE) ) )","v":""},null,null,null,null,{"$f":"IF(TRIM(DA55)=\"\", \"\", IF(VLOOKUP(DA55,'Footnotes list'!$D$9:$E$58,2,FALSE)=0,\"\",VLOOKUP(DA55,'Footnotes list'!$D$9:$E$58,2,FALSE) ) )","v":""},null,null,null,null,{"$f":"IF(TRIM(DF55)=\"\", \"\", IF(VLOOKUP(DF55,'Footnotes list'!$D$9:$E$58,2,FALSE)=0,\"\",VLOOKUP(DF55,'Footnotes list'!$D$9:$E$58,2,FALSE) ) )","v":""},null,null,null,null,{"$f":"IF(TRIM(DK55)=\"\", \"\", IF(VLOOKUP(DK55,'Footnotes list'!$D$9:$E$58,2,FALSE)=0,\"\",VLOOKUP(DK55,'Footnotes list'!$D$9:$E$58,2,FALSE) ) )","v":""},null,null,null,null,{"$f":"IF(TRIM(DP55)=\"\", \"\", IF(VLOOKUP(DP55,'Footnotes list'!$D$9:$E$58,2,FALSE)=0,\"\",VLOOKUP(DP55,'Footnotes list'!$D$9:$E$58,2,FALSE) ) )","v":""},null,null,null,null,{"$f":"IF(TRIM(DU55)=\"\", \"\", IF(VLOOKUP(DU55,'Footnotes list'!$D$9:$E$58,2,FALSE)=0,\"\",VLOOKUP(DU55,'Footnotes list'!$D$9:$E$58,2,FALSE) ) )","v":""},null,null,null,null,{"$f":"IF(TRIM(DZ55)=\"\", \"\", IF(VLOOKUP(DZ55,'Footnotes list'!$D$9:$E$58,2,FALSE)=0,\"\",VLOOKUP(DZ55,'Footnotes list'!$D$9:$E$58,2,FALSE) ) )","v":""},null,null,null,null,{"$f":"IF(TRIM(EE55)=\"\", \"\", IF(VLOOKUP(EE55,'Footnotes list'!$D$9:$E$58,2,FALSE)=0,\"\",VLOOKUP(EE55,'Footnotes list'!$D$9:$E$58,2,FALSE) ) )","v":""},null,null,null,null,{"$f":"IF(TRIM(EJ55)=\"\", \"\", IF(VLOOKUP(EJ55,'Footnotes list'!$D$9:$E$58,2,FALSE)=0,\"\",VLOOKUP(EJ55,'Footnotes list'!$D$9:$E$58,2,FALSE) ) )","v":""},null,null,null,null,{"$f":"IF(TRIM(EO55)=\"\", \"\", IF(VLOOKUP(EO55,'Footnotes list'!$D$9:$E$58,2,FALSE)=0,\"\",VLOOKUP(EO55,'Footnotes list'!$D$9:$E$58,2,FALSE) ) )","v":""},null,null,null,null,{"$f":"IF(TRIM(ET55)=\"\", \"\", IF(VLOOKUP(ET55,'Footnotes list'!$D$9:$E$58,2,FALSE)=0,\"\",VLOOKUP(ET55,'Footnotes list'!$D$9:$E$58,2,FALSE) ) )","v":""},null,null,null,null,{"$f":"IF(TRIM(EY55)=\"\", \"\", IF(VLOOKUP(EY55,'Footnotes list'!$D$9:$E$58,2,FALSE)=0,\"\",VLOOKUP(EY55,'Footnotes list'!$D$9:$E$58,2,FALSE) ) )","v":""}]
[null,null,"C16-C18","C_REP","cleaner and resource efficient products",null,null,null,null,null,{"$f":"IF(TRIM(J56)=\"\", \"\", IF(VLOOKUP(J56,'Footnotes list'!$D$9:$E$58,2,FALSE)=0,\"\",VLOOKUP(J56,'Footnotes list'!$D$9:$E$58,2,FALSE) ) )","v":""},null,null,null,null,{"$f":"IF(TRIM(O56)=\"\", \"\", IF(VLOOKUP(O56,'Footnotes list'!$D$9:$E$58,2,FALSE)=0,\"\",VLOOKUP(O56,'Footnotes list'!$D$9:$E$58,2,FALSE) ) )","v":""},null,null,null,null,{"$f":"IF(TRIM(T56)=\"\", \"\", IF(VLOOKUP(T56,'Footnotes list'!$D$9:$E$58,2,FALSE)=0,\"\",VLOOKUP(T56,'Footnotes list'!$D$9:$E$58,2,FALSE) ) )","v":""},null,null,null,null,{"$f":"IF(TRIM(Y56)=\"\", \"\", IF(VLOOKUP(Y56,'Footnotes list'!$D$9:$E$58,2,FALSE)=0,\"\",VLOOKUP(Y56,'Footnotes list'!$D$9:$E$58,2,FALSE) ) )","v":""},null,null,null,null,{"$f":"IF(TRIM(AD56)=\"\", \"\", IF(VLOOKUP(AD56,'Footnotes list'!$D$9:$E$58,2,FALSE)=0,\"\",VLOOKUP(AD56,'Footnotes list'!$D$9:$E$58,2,FALSE) ) )","v":""},null,null,null,null,{"$f":"IF(TRIM(AI56)=\"\", \"\", IF(VLOOKUP(AI56,'Footnotes list'!$D$9:$E$58,2,FALSE)=0,\"\",VLOOKUP(AI56,'Footnotes list'!$D$9:$E$58,2,FALSE) ) )","v":""},null,null,null,null,{"$f":"IF(TRIM(AN56)=\"\", \"\", IF(VLOOKUP(AN56,'Footnotes list'!$D$9:$E$58,2,FALSE)=0,\"\",VLOOKUP(AN56,'Footnotes list'!$D$9:$E$58,2,FALSE) ) )","v":""},null,null,null,null,{"$f":"IF(TRIM(AS56)=\"\", \"\", IF(VLOOKUP(AS56,'Footnotes list'!$D$9:$E$58,2,FALSE)=0,\"\",VLOOKUP(AS56,'Footnotes list'!$D$9:$E$58,2,FALSE) ) )","v":""},null,null,null,null,{"$f":"IF(TRIM(AX56)=\"\", \"\", IF(VLOOKUP(AX56,'Footnotes list'!$D$9:$E$58,2,FALSE)=0,\"\",VLOOKUP(AX56,'Footnotes list'!$D$9:$E$58,2,FALSE) ) )","v":""},null,null,null,null,{"$f":"IF(TRIM(BC56)=\"\", \"\", IF(VLOOKUP(BC56,'Footnotes list'!$D$9:$E$58,2,FALSE)=0,\"\",VLOOKUP(BC56,'Footnotes list'!$D$9:$E$58,2,FALSE) ) )","v":""},null,null,null,null,{"$f":"IF(TRIM(BH56)=\"\", \"\", IF(VLOOKUP(BH56,'Footnotes list'!$D$9:$E$58,2,FALSE)=0,\"\",VLOOKUP(BH56,'Footnotes list'!$D$9:$E$58,2,FALSE) ) )","v":""},null,null,null,null,{"$f":"IF(TRIM(BM56)=\"\", \"\", IF(VLOOKUP(BM56,'Footnotes list'!$D$9:$E$58,2,FALSE)=0,\"\",VLOOKUP(BM56,'Footnotes list'!$D$9:$E$58,2,FALSE) ) )","v":""},null,null,null,null,{"$f":"IF(TRIM(BR56)=\"\", \"\", IF(VLOOKUP(BR56,'Footnotes list'!$D$9:$E$58,2,FALSE)=0,\"\",VLOOKUP(BR56,'Footnotes list'!$D$9:$E$58,2,FALSE) ) )","v":""},null,null,null,null,{"$f":"IF(TRIM(BW56)=\"\", \"\", IF(VLOOKUP(BW56,'Footnotes list'!$D$9:$E$58,2,FALSE)=0,\"\",VLOOKUP(BW56,'Footnotes list'!$D$9:$E$58,2,FALSE) ) )","v":""},null,null,null,null,{"$f":"IF(TRIM(CB56)=\"\", \"\", IF(VLOOKUP(CB56,'Footnotes list'!$D$9:$E$58,2,FALSE)=0,\"\",VLOOKUP(CB56,'Footnotes list'!$D$9:$E$58,2,FALSE) ) )","v":""},null,null,null,null,{"$f":"IF(TRIM(CG56)=\"\", \"\", IF(VLOOKUP(CG56,'Footnotes list'!$D$9:$E$58,2,FALSE)=0,\"\",VLOOKUP(CG56,'Footnotes list'!$D$9:$E$58,2,FALSE) ) )","v":""},null,null,null,null,{"$f":"IF(TRIM(CL56)=\"\", \"\", IF(VLOOKUP(CL56,'Footnotes list'!$D$9:$E$58,2,FALSE)=0,\"\",VLOOKUP(CL56,'Footnotes list'!$D$9:$E$58,2,FALSE) ) )","v":""},null,null,null,null,{"$f":"IF(TRIM(CQ56)=\"\", \"\", IF(VLOOKUP(CQ56,'Footnotes list'!$D$9:$E$58,2,FALSE)=0,\"\",VLOOKUP(CQ56,'Footnotes list'!$D$9:$E$58,2,FALSE) ) )","v":""},null,null,null,null,{"$f":"IF(TRIM(CV56)=\"\", \"\", IF(VLOOKUP(CV56,'Footnotes list'!$D$9:$E$58,2,FALSE)=0,\"\",VLOOKUP(CV56,'Footnotes list'!$D$9:$E$58,2,FALSE) ) )","v":""},null,null,null,null,{"$f":"IF(TRIM(DA56)=\"\", \"\", IF(VLOOKUP(DA56,'Footnotes list'!$D$9:$E$58,2,FALSE)=0,\"\",VLOOKUP(DA56,'Footnotes list'!$D$9:$E$58,2,FALSE) ) )","v":""},null,null,null,null,{"$f":"IF(TRIM(DF56)=\"\", \"\", IF(VLOOKUP(DF56,'Footnotes list'!$D$9:$E$58,2,FALSE)=0,\"\",VLOOKUP(DF56,'Footnotes list'!$D$9:$E$58,2,FALSE) ) )","v":""},null,null,null,null,{"$f":"IF(TRIM(DK56)=\"\", \"\", IF(VLOOKUP(DK56,'Footnotes list'!$D$9:$E$58,2,FALSE)=0,\"\",VLOOKUP(DK56,'Footnotes list'!$D$9:$E$58,2,FALSE) ) )","v":""},null,null,null,null,{"$f":"IF(TRIM(DP56)=\"\", \"\", IF(VLOOKUP(DP56,'Footnotes list'!$D$9:$E$58,2,FALSE)=0,\"\",VLOOKUP(DP56,'Footnotes list'!$D$9:$E$58,2,FALSE) ) )","v":""},null,null,null,null,{"$f":"IF(TRIM(DU56)=\"\", \"\", IF(VLOOKUP(DU56,'Footnotes list'!$D$9:$E$58,2,FALSE)=0,\"\",VLOOKUP(DU56,'Footnotes list'!$D$9:$E$58,2,FALSE) ) )","v":""},null,null,null,null,{"$f":"IF(TRIM(DZ56)=\"\", \"\", IF(VLOOKUP(DZ56,'Footnotes list'!$D$9:$E$58,2,FALSE)=0,\"\",VLOOKUP(DZ56,'Footnotes list'!$D$9:$E$58,2,FALSE) ) )","v":""},null,null,null,null,{"$f":"IF(TRIM(EE56)=\"\", \"\", IF(VLOOKUP(EE56,'Footnotes list'!$D$9:$E$58,2,FALSE)=0,\"\",VLOOKUP(EE56,'Footnotes list'!$D$9:$E$58,2,FALSE) ) )","v":""},null,null,null,null,{"$f":"IF(TRIM(EJ56)=\"\", \"\", IF(VLOOKUP(EJ56,'Footnotes list'!$D$9:$E$58,2,FALSE)=0,\"\",VLOOKUP(EJ56,'Footnotes list'!$D$9:$E$58,2,FALSE) ) )","v":""},null,null,null,null,{"$f":"IF(TRIM(EO56)=\"\", \"\", IF(VLOOKUP(EO56,'Footnotes list'!$D$9:$E$58,2,FALSE)=0,\"\",VLOOKUP(EO56,'Footnotes list'!$D$9:$E$58,2,FALSE) ) )","v":""},null,null,null,null,{"$f":"IF(TRIM(ET56)=\"\", \"\", IF(VLOOKUP(ET56,'Footnotes list'!$D$9:$E$58,2,FALSE)=0,\"\",VLOOKUP(ET56,'Footnotes list'!$D$9:$E$58,2,FALSE) ) )","v":""},null,null,null,null,{"$f":"IF(TRIM(EY56)=\"\", \"\", IF(VLOOKUP(EY56,'Footnotes list'!$D$9:$E$58,2,FALSE)=0,\"\",VLOOKUP(EY56,'Footnotes list'!$D$9:$E$58,2,FALSE) ) )","v":""}]
[null,null,"C19","TOT_EGSS","Total C19 - Manufacture of coke and refined petroleum products, of which:",null,null,null,null,null,{"$f":"IF(TRIM(J57)=\"\", \"\", IF(VLOOKUP(J57,'Footnotes list'!$D$9:$E$58,2,FALSE)=0,\"\",VLOOKUP(J57,'Footnotes list'!$D$9:$E$58,2,FALSE) ) )","v":""},null,null,null,null,{"$f":"IF(TRIM(O57)=\"\", \"\", IF(VLOOKUP(O57,'Footnotes list'!$D$9:$E$58,2,FALSE)=0,\"\",VLOOKUP(O57,'Footnotes list'!$D$9:$E$58,2,FALSE) ) )","v":""},null,null,null,null,{"$f":"IF(TRIM(T57)=\"\", \"\", IF(VLOOKUP(T57,'Footnotes list'!$D$9:$E$58,2,FALSE)=0,\"\",VLOOKUP(T57,'Footnotes list'!$D$9:$E$58,2,FALSE) ) )","v":""},null,null,null,null,{"$f":"IF(TRIM(Y57)=\"\", \"\", IF(VLOOKUP(Y57,'Footnotes list'!$D$9:$E$58,2,FALSE)=0,\"\",VLOOKUP(Y57,'Footnotes list'!$D$9:$E$58,2,FALSE) ) )","v":""},null,null,null,null,{"$f":"IF(TRIM(AD57)=\"\", \"\", IF(VLOOKUP(AD57,'Footnotes list'!$D$9:$E$58,2,FALSE)=0,\"\",VLOOKUP(AD57,'Footnotes list'!$D$9:$E$58,2,FALSE) ) )","v":""},null,null,null,null,{"$f":"IF(TRIM(AI57)=\"\", \"\", IF(VLOOKUP(AI57,'Footnotes list'!$D$9:$E$58,2,FALSE)=0,\"\",VLOOKUP(AI57,'Footnotes list'!$D$9:$E$58,2,FALSE) ) )","v":""},null,null,null,null,{"$f":"IF(TRIM(AN57)=\"\", \"\", IF(VLOOKUP(AN57,'Footnotes list'!$D$9:$E$58,2,FALSE)=0,\"\",VLOOKUP(AN57,'Footnotes list'!$D$9:$E$58,2,FALSE) ) )","v":""},null,null,null,null,{"$f":"IF(TRIM(AS57)=\"\", \"\", IF(VLOOKUP(AS57,'Footnotes list'!$D$9:$E$58,2,FALSE)=0,\"\",VLOOKUP(AS57,'Footnotes list'!$D$9:$E$58,2,FALSE) ) )","v":""},null,null,null,null,{"$f":"IF(TRIM(AX57)=\"\", \"\", IF(VLOOKUP(AX57,'Footnotes list'!$D$9:$E$58,2,FALSE)=0,\"\",VLOOKUP(AX57,'Footnotes list'!$D$9:$E$58,2,FALSE) ) )","v":""},null,null,null,null,{"$f":"IF(TRIM(BC57)=\"\", \"\", IF(VLOOKUP(BC57,'Footnotes list'!$D$9:$E$58,2,FALSE)=0,\"\",VLOOKUP(BC57,'Footnotes list'!$D$9:$E$58,2,FALSE) ) )","v":""},null,null,null,null,{"$f":"IF(TRIM(BH57)=\"\", \"\", IF(VLOOKUP(BH57,'Footnotes list'!$D$9:$E$58,2,FALSE)=0,\"\",VLOOKUP(BH57,'Footnotes list'!$D$9:$E$58,2,FALSE) ) )","v":""},null,null,null,null,{"$f":"IF(TRIM(BM57)=\"\", \"\", IF(VLOOKUP(BM57,'Footnotes list'!$D$9:$E$58,2,FALSE)=0,\"\",VLOOKUP(BM57,'Footnotes list'!$D$9:$E$58,2,FALSE) ) )","v":""},null,null,null,null,{"$f":"IF(TRIM(BR57)=\"\", \"\", IF(VLOOKUP(BR57,'Footnotes list'!$D$9:$E$58,2,FALSE)=0,\"\",VLOOKUP(BR57,'Footnotes list'!$D$9:$E$58,2,FALSE) ) )","v":""},null,null,null,null,{"$f":"IF(TRIM(BW57)=\"\", \"\", IF(VLOOKUP(BW57,'Footnotes list'!$D$9:$E$58,2,FALSE)=0,\"\",VLOOKUP(BW57,'Footnotes list'!$D$9:$E$58,2,FALSE) ) )","v":""},null,null,null,null,{"$f":"IF(TRIM(CB57)=\"\", \"\", IF(VLOOKUP(CB57,'Footnotes list'!$D$9:$E$58,2,FALSE)=0,\"\",VLOOKUP(CB57,'Footnotes list'!$D$9:$E$58,2,FALSE) ) )","v":""},null,null,null,null,{"$f":"IF(TRIM(CG57)=\"\", \"\", IF(VLOOKUP(CG57,'Footnotes list'!$D$9:$E$58,2,FALSE)=0,\"\",VLOOKUP(CG57,'Footnotes list'!$D$9:$E$58,2,FALSE) ) )","v":""},null,null,null,null,{"$f":"IF(TRIM(CL57)=\"\", \"\", IF(VLOOKUP(CL57,'Footnotes list'!$D$9:$E$58,2,FALSE)=0,\"\",VLOOKUP(CL57,'Footnotes list'!$D$9:$E$58,2,FALSE) ) )","v":""},null,null,null,null,{"$f":"IF(TRIM(CQ57)=\"\", \"\", IF(VLOOKUP(CQ57,'Footnotes list'!$D$9:$E$58,2,FALSE)=0,\"\",VLOOKUP(CQ57,'Footnotes list'!$D$9:$E$58,2,FALSE) ) )","v":""},null,null,null,null,{"$f":"IF(TRIM(CV57)=\"\", \"\", IF(VLOOKUP(CV57,'Footnotes list'!$D$9:$E$58,2,FALSE)=0,\"\",VLOOKUP(CV57,'Footnotes list'!$D$9:$E$58,2,FALSE) ) )","v":""},null,null,null,null,{"$f":"IF(TRIM(DA57)=\"\", \"\", IF(VLOOKUP(DA57,'Footnotes list'!$D$9:$E$58,2,FALSE)=0,\"\",VLOOKUP(DA57,'Footnotes list'!$D$9:$E$58,2,FALSE) ) )","v":""},null,null,null,null,{"$f":"IF(TRIM(DF57)=\"\", \"\", IF(VLOOKUP(DF57,'Footnotes list'!$D$9:$E$58,2,FALSE)=0,\"\",VLOOKUP(DF57,'Footnotes list'!$D$9:$E$58,2,FALSE) ) )","v":""},null,null,null,null,{"$f":"IF(TRIM(DK57)=\"\", \"\", IF(VLOOKUP(DK57,'Footnotes list'!$D$9:$E$58,2,FALSE)=0,\"\",VLOOKUP(DK57,'Footnotes list'!$D$9:$E$58,2,FALSE) ) )","v":""},null,null,null,null,{"$f":"IF(TRIM(DP57)=\"\", \"\", IF(VLOOKUP(DP57,'Footnotes list'!$D$9:$E$58,2,FALSE)=0,\"\",VLOOKUP(DP57,'Footnotes list'!$D$9:$E$58,2,FALSE) ) )","v":""},null,null,null,null,{"$f":"IF(TRIM(DU57)=\"\", \"\", IF(VLOOKUP(DU57,'Footnotes list'!$D$9:$E$58,2,FALSE)=0,\"\",VLOOKUP(DU57,'Footnotes list'!$D$9:$E$58,2,FALSE) ) )","v":""},null,null,null,null,{"$f":"IF(TRIM(DZ57)=\"\", \"\", IF(VLOOKUP(DZ57,'Footnotes list'!$D$9:$E$58,2,FALSE)=0,\"\",VLOOKUP(DZ57,'Footnotes list'!$D$9:$E$58,2,FALSE) ) )","v":""},null,null,null,null,{"$f":"IF(TRIM(EE57)=\"\", \"\", IF(VLOOKUP(EE57,'Footnotes list'!$D$9:$E$58,2,FALSE)=0,\"\",VLOOKUP(EE57,'Footnotes list'!$D$9:$E$58,2,FALSE) ) )","v":""},null,null,null,null,{"$f":"IF(TRIM(EJ57)=\"\", \"\", IF(VLOOKUP(EJ57,'Footnotes list'!$D$9:$E$58,2,FALSE)=0,\"\",VLOOKUP(EJ57,'Footnotes list'!$D$9:$E$58,2,FALSE) ) )","v":""},null,null,null,null,{"$f":"IF(TRIM(EO57)=\"\", \"\", IF(VLOOKUP(EO57,'Footnotes list'!$D$9:$E$58,2,FALSE)=0,\"\",VLOOKUP(EO57,'Footnotes list'!$D$9:$E$58,2,FALSE) ) )","v":""},null,null,null,null,{"$f":"IF(TRIM(ET57)=\"\", \"\", IF(VLOOKUP(ET57,'Footnotes list'!$D$9:$E$58,2,FALSE)=0,\"\",VLOOKUP(ET57,'Footnotes list'!$D$9:$E$58,2,FALSE) ) )","v":""},null,null,null,null,{"$f":"IF(TRIM(EY57)=\"\", \"\", IF(VLOOKUP(EY57,'Footnotes list'!$D$9:$E$58,2,FALSE)=0,\"\",VLOOKUP(EY57,'Footnotes list'!$D$9:$E$58,2,FALSE) ) )","v":""}]
[null,null,"C19","ANC","ancillary activities",null,null,null,null,null,{"$f":"IF(TRIM(J58)=\"\", \"\", IF(VLOOKUP(J58,'Footnotes list'!$D$9:$E$58,2,FALSE)=0,\"\",VLOOKUP(J58,'Footnotes list'!$D$9:$E$58,2,FALSE) ) )","v":""},null,null,null,null,{"$f":"IF(TRIM(O58)=\"\", \"\", IF(VLOOKUP(O58,'Footnotes list'!$D$9:$E$58,2,FALSE)=0,\"\",VLOOKUP(O58,'Footnotes list'!$D$9:$E$58,2,FALSE) ) )","v":""},null,null,null,null,{"$f":"IF(TRIM(T58)=\"\", \"\", IF(VLOOKUP(T58,'Footnotes list'!$D$9:$E$58,2,FALSE)=0,\"\",VLOOKUP(T58,'Footnotes list'!$D$9:$E$58,2,FALSE) ) )","v":""},null,null,null,null,{"$f":"IF(TRIM(Y58)=\"\", \"\", IF(VLOOKUP(Y58,'Footnotes list'!$D$9:$E$58,2,FALSE)=0,\"\",VLOOKUP(Y58,'Footnotes list'!$D$9:$E$58,2,FALSE) ) )","v":""},null,null,null,null,{"$f":"IF(TRIM(AD58)=\"\", \"\", IF(VLOOKUP(AD58,'Footnotes list'!$D$9:$E$58,2,FALSE)=0,\"\",VLOOKUP(AD58,'Footnotes list'!$D$9:$E$58,2,FALSE) ) )","v":""},null,null,null,null,{"$f":"IF(TRIM(AI58)=\"\", \"\", IF(VLOOKUP(AI58,'Footnotes list'!$D$9:$E$58,2,FALSE)=0,\"\",VLOOKUP(AI58,'Footnotes list'!$D$9:$E$58,2,FALSE) ) )","v":""},null,null,null,null,{"$f":"IF(TRIM(AN58)=\"\", \"\", IF(VLOOKUP(AN58,'Footnotes list'!$D$9:$E$58,2,FALSE)=0,\"\",VLOOKUP(AN58,'Footnotes list'!$D$9:$E$58,2,FALSE) ) )","v":""},null,null,null,null,{"$f":"IF(TRIM(AS58)=\"\", \"\", IF(VLOOKUP(AS58,'Footnotes list'!$D$9:$E$58,2,FALSE)=0,\"\",VLOOKUP(AS58,'Footnotes list'!$D$9:$E$58,2,FALSE) ) )","v":""},null,null,null,null,{"$f":"IF(TRIM(AX58)=\"\", \"\", IF(VLOOKUP(AX58,'Footnotes list'!$D$9:$E$58,2,FALSE)=0,\"\",VLOOKUP(AX58,'Footnotes list'!$D$9:$E$58,2,FALSE) ) )","v":""},null,null,null,null,{"$f":"IF(TRIM(BC58)=\"\", \"\", IF(VLOOKUP(BC58,'Footnotes list'!$D$9:$E$58,2,FALSE)=0,\"\",VLOOKUP(BC58,'Footnotes list'!$D$9:$E$58,2,FALSE) ) )","v":""},null,null,null,null,{"$f":"IF(TRIM(BH58)=\"\", \"\", IF(VLOOKUP(BH58,'Footnotes list'!$D$9:$E$58,2,FALSE)=0,\"\",VLOOKUP(BH58,'Footnotes list'!$D$9:$E$58,2,FALSE) ) )","v":""},null,null,null,null,{"$f":"IF(TRIM(BM58)=\"\", \"\", IF(VLOOKUP(BM58,'Footnotes list'!$D$9:$E$58,2,FALSE)=0,\"\",VLOOKUP(BM58,'Footnotes list'!$D$9:$E$58,2,FALSE) ) )","v":""},null,null,null,null,{"$f":"IF(TRIM(BR58)=\"\", \"\", IF(VLOOKUP(BR58,'Footnotes list'!$D$9:$E$58,2,FALSE)=0,\"\",VLOOKUP(BR58,'Footnotes list'!$D$9:$E$58,2,FALSE) ) )","v":""},null,null,null,null,{"$f":"IF(TRIM(BW58)=\"\", \"\", IF(VLOOKUP(BW58,'Footnotes list'!$D$9:$E$58,2,FALSE)=0,\"\",VLOOKUP(BW58,'Footnotes list'!$D$9:$E$58,2,FALSE) ) )","v":""},null,null,null,null,{"$f":"IF(TRIM(CB58)=\"\", \"\", IF(VLOOKUP(CB58,'Footnotes list'!$D$9:$E$58,2,FALSE)=0,\"\",VLOOKUP(CB58,'Footnotes list'!$D$9:$E$58,2,FALSE) ) )","v":""},null,null,null,null,{"$f":"IF(TRIM(CG58)=\"\", \"\", IF(VLOOKUP(CG58,'Footnotes list'!$D$9:$E$58,2,FALSE)=0,\"\",VLOOKUP(CG58,'Footnotes list'!$D$9:$E$58,2,FALSE) ) )","v":""},null,null,null,null,{"$f":"IF(TRIM(CL58)=\"\", \"\", IF(VLOOKUP(CL58,'Footnotes list'!$D$9:$E$58,2,FALSE)=0,\"\",VLOOKUP(CL58,'Footnotes list'!$D$9:$E$58,2,FALSE) ) )","v":""},null,null,null,null,{"$f":"IF(TRIM(CQ58)=\"\", \"\", IF(VLOOKUP(CQ58,'Footnotes list'!$D$9:$E$58,2,FALSE)=0,\"\",VLOOKUP(CQ58,'Footnotes list'!$D$9:$E$58,2,FALSE) ) )","v":""},null,null,null,null,{"$f":"IF(TRIM(CV58)=\"\", \"\", IF(VLOOKUP(CV58,'Footnotes list'!$D$9:$E$58,2,FALSE)=0,\"\",VLOOKUP(CV58,'Footnotes list'!$D$9:$E$58,2,FALSE) ) )","v":""},null,null,null,null,{"$f":"IF(TRIM(DA58)=\"\", \"\", IF(VLOOKUP(DA58,'Footnotes list'!$D$9:$E$58,2,FALSE)=0,\"\",VLOOKUP(DA58,'Footnotes list'!$D$9:$E$58,2,FALSE) ) )","v":""},null,null,null,null,{"$f":"IF(TRIM(DF58)=\"\", \"\", IF(VLOOKUP(DF58,'Footnotes list'!$D$9:$E$58,2,FALSE)=0,\"\",VLOOKUP(DF58,'Footnotes list'!$D$9:$E$58,2,FALSE) ) )","v":""},null,null,null,null,{"$f":"IF(TRIM(DK58)=\"\", \"\", IF(VLOOKUP(DK58,'Footnotes list'!$D$9:$E$58,2,FALSE)=0,\"\",VLOOKUP(DK58,'Footnotes list'!$D$9:$E$58,2,FALSE) ) )","v":""},null,null,null,null,{"$f":"IF(TRIM(DP58)=\"\", \"\", IF(VLOOKUP(DP58,'Footnotes list'!$D$9:$E$58,2,FALSE)=0,\"\",VLOOKUP(DP58,'Footnotes list'!$D$9:$E$58,2,FALSE) ) )","v":""},null,null,null,null,{"$f":"IF(TRIM(DU58)=\"\", \"\", IF(VLOOKUP(DU58,'Footnotes list'!$D$9:$E$58,2,FALSE)=0,\"\",VLOOKUP(DU58,'Footnotes list'!$D$9:$E$58,2,FALSE) ) )","v":""},null,null,null,null,{"$f":"IF(TRIM(DZ58)=\"\", \"\", IF(VLOOKUP(DZ58,'Footnotes list'!$D$9:$E$58,2,FALSE)=0,\"\",VLOOKUP(DZ58,'Footnotes list'!$D$9:$E$58,2,FALSE) ) )","v":""},null,null,null,null,{"$f":"IF(TRIM(EE58)=\"\", \"\", IF(VLOOKUP(EE58,'Footnotes list'!$D$9:$E$58,2,FALSE)=0,\"\",VLOOKUP(EE58,'Footnotes list'!$D$9:$E$58,2,FALSE) ) )","v":""},null,null,null,null,{"$f":"IF(TRIM(EJ58)=\"\", \"\", IF(VLOOKUP(EJ58,'Footnotes list'!$D$9:$E$58,2,FALSE)=0,\"\",VLOOKUP(EJ58,'Footnotes list'!$D$9:$E$58,2,FALSE) ) )","v":""},null,null,null,null,{"$f":"IF(TRIM(EO58)=\"\", \"\", IF(VLOOKUP(EO58,'Footnotes list'!$D$9:$E$58,2,FALSE)=0,\"\",VLOOKUP(EO58,'Footnotes list'!$D$9:$E$58,2,FALSE) ) )","v":""},null,null,null,null,{"$f":"IF(TRIM(ET58)=\"\", \"\", IF(VLOOKUP(ET58,'Footnotes list'!$D$9:$E$58,2,FALSE)=0,\"\",VLOOKUP(ET58,'Footnotes list'!$D$9:$E$58,2,FALSE) ) )","v":""},null,null,null,null,{"$f":"IF(TRIM(EY58)=\"\", \"\", IF(VLOOKUP(EY58,'Footnotes list'!$D$9:$E$58,2,FALSE)=0,\"\",VLOOKUP(EY58,'Footnotes list'!$D$9:$E$58,2,FALSE) ) )","v":""}]
[null,null,"C19","NMKT","non-market activities",null,null,null,null,null,{"$f":"IF(TRIM(J59)=\"\", \"\", IF(VLOOKUP(J59,'Footnotes list'!$D$9:$E$58,2,FALSE)=0,\"\",VLOOKUP(J59,'Footnotes list'!$D$9:$E$58,2,FALSE) ) )","v":""},null,null,null,null,{"$f":"IF(TRIM(O59)=\"\", \"\", IF(VLOOKUP(O59,'Footnotes list'!$D$9:$E$58,2,FALSE)=0,\"\",VLOOKUP(O59,'Footnotes list'!$D$9:$E$58,2,FALSE) ) )","v":""},null,null,null,null,{"$f":"IF(TRIM(T59)=\"\", \"\", IF(VLOOKUP(T59,'Footnotes list'!$D$9:$E$58,2,FALSE)=0,\"\",VLOOKUP(T59,'Footnotes list'!$D$9:$E$58,2,FALSE) ) )","v":""},null,null,null,null,{"$f":"IF(TRIM(Y59)=\"\", \"\", IF(VLOOKUP(Y59,'Footnotes list'!$D$9:$E$58,2,FALSE)=0,\"\",VLOOKUP(Y59,'Footnotes list'!$D$9:$E$58,2,FALSE) ) )","v":""},null,null,null,null,{"$f":"IF(TRIM(AD59)=\"\", \"\", IF(VLOOKUP(AD59,'Footnotes list'!$D$9:$E$58,2,FALSE)=0,\"\",VLOOKUP(AD59,'Footnotes list'!$D$9:$E$58,2,FALSE) ) )","v":""},null,null,null,null,{"$f":"IF(TRIM(AI59)=\"\", \"\", IF(VLOOKUP(AI59,'Footnotes list'!$D$9:$E$58,2,FALSE)=0,\"\",VLOOKUP(AI59,'Footnotes list'!$D$9:$E$58,2,FALSE) ) )","v":""},null,null,null,null,{"$f":"IF(TRIM(AN59)=\"\", \"\", IF(VLOOKUP(AN59,'Footnotes list'!$D$9:$E$58,2,FALSE)=0,\"\",VLOOKUP(AN59,'Footnotes list'!$D$9:$E$58,2,FALSE) ) )","v":""},null,null,null,null,{"$f":"IF(TRIM(AS59)=\"\", \"\", IF(VLOOKUP(AS59,'Footnotes list'!$D$9:$E$58,2,FALSE)=0,\"\",VLOOKUP(AS59,'Footnotes list'!$D$9:$E$58,2,FALSE) ) )","v":""},null,null,null,null,{"$f":"IF(TRIM(AX59)=\"\", \"\", IF(VLOOKUP(AX59,'Footnotes list'!$D$9:$E$58,2,FALSE)=0,\"\",VLOOKUP(AX59,'Footnotes list'!$D$9:$E$58,2,FALSE) ) )","v":""},null,null,null,null,{"$f":"IF(TRIM(BC59)=\"\", \"\", IF(VLOOKUP(BC59,'Footnotes list'!$D$9:$E$58,2,FALSE)=0,\"\",VLOOKUP(BC59,'Footnotes list'!$D$9:$E$58,2,FALSE) ) )","v":""},null,null,null,null,{"$f":"IF(TRIM(BH59)=\"\", \"\", IF(VLOOKUP(BH59,'Footnotes list'!$D$9:$E$58,2,FALSE)=0,\"\",VLOOKUP(BH59,'Footnotes list'!$D$9:$E$58,2,FALSE) ) )","v":""},null,null,null,null,{"$f":"IF(TRIM(BM59)=\"\", \"\", IF(VLOOKUP(BM59,'Footnotes list'!$D$9:$E$58,2,FALSE)=0,\"\",VLOOKUP(BM59,'Footnotes list'!$D$9:$E$58,2,FALSE) ) )","v":""},null,null,null,null,{"$f":"IF(TRIM(BR59)=\"\", \"\", IF(VLOOKUP(BR59,'Footnotes list'!$D$9:$E$58,2,FALSE)=0,\"\",VLOOKUP(BR59,'Footnotes list'!$D$9:$E$58,2,FALSE) ) )","v":""},null,null,null,null,{"$f":"IF(TRIM(BW59)=\"\", \"\", IF(VLOOKUP(BW59,'Footnotes list'!$D$9:$E$58,2,FALSE)=0,\"\",VLOOKUP(BW59,'Footnotes list'!$D$9:$E$58,2,FALSE) ) )","v":""},null,null,null,null,{"$f":"IF(TRIM(CB59)=\"\", \"\", IF(VLOOKUP(CB59,'Footnotes list'!$D$9:$E$58,2,FALSE)=0,\"\",VLOOKUP(CB59,'Footnotes list'!$D$9:$E$58,2,FALSE) ) )","v":""},null,null,null,null,{"$f":"IF(TRIM(CG59)=\"\", \"\", IF(VLOOKUP(CG59,'Footnotes list'!$D$9:$E$58,2,FALSE)=0,\"\",VLOOKUP(CG59,'Footnotes list'!$D$9:$E$58,2,FALSE) ) )","v":""},null,null,null,null,{"$f":"IF(TRIM(CL59)=\"\", \"\", IF(VLOOKUP(CL59,'Footnotes list'!$D$9:$E$58,2,FALSE)=0,\"\",VLOOKUP(CL59,'Footnotes list'!$D$9:$E$58,2,FALSE) ) )","v":""},null,null,null,null,{"$f":"IF(TRIM(CQ59)=\"\", \"\", IF(VLOOKUP(CQ59,'Footnotes list'!$D$9:$E$58,2,FALSE)=0,\"\",VLOOKUP(CQ59,'Footnotes list'!$D$9:$E$58,2,FALSE) ) )","v":""},null,null,null,null,{"$f":"IF(TRIM(CV59)=\"\", \"\", IF(VLOOKUP(CV59,'Footnotes list'!$D$9:$E$58,2,FALSE)=0,\"\",VLOOKUP(CV59,'Footnotes list'!$D$9:$E$58,2,FALSE) ) )","v":""},null,null,null,null,{"$f":"IF(TRIM(DA59)=\"\", \"\", IF(VLOOKUP(DA59,'Footnotes list'!$D$9:$E$58,2,FALSE)=0,\"\",VLOOKUP(DA59,'Footnotes list'!$D$9:$E$58,2,FALSE) ) )","v":""},null,null,null,null,{"$f":"IF(TRIM(DF59)=\"\", \"\", IF(VLOOKUP(DF59,'Footnotes list'!$D$9:$E$58,2,FALSE)=0,\"\",VLOOKUP(DF59,'Footnotes list'!$D$9:$E$58,2,FALSE) ) )","v":""},null,null,null,null,{"$f":"IF(TRIM(DK59)=\"\", \"\", IF(VLOOKUP(DK59,'Footnotes list'!$D$9:$E$58,2,FALSE)=0,\"\",VLOOKUP(DK59,'Footnotes list'!$D$9:$E$58,2,FALSE) ) )","v":""},null,null,null,null,{"$f":"IF(TRIM(DP59)=\"\", \"\", IF(VLOOKUP(DP59,'Footnotes list'!$D$9:$E$58,2,FALSE)=0,\"\",VLOOKUP(DP59,'Footnotes list'!$D$9:$E$58,2,FALSE) ) )","v":""},null,null,null,null,{"$f":"IF(TRIM(DU59)=\"\", \"\", IF(VLOOKUP(DU59,'Footnotes list'!$D$9:$E$58,2,FALSE)=0,\"\",VLOOKUP(DU59,'Footnotes list'!$D$9:$E$58,2,FALSE) ) )","v":""},null,null,null,null,{"$f":"IF(TRIM(DZ59)=\"\", \"\", IF(VLOOKUP(DZ59,'Footnotes list'!$D$9:$E$58,2,FALSE)=0,\"\",VLOOKUP(DZ59,'Footnotes list'!$D$9:$E$58,2,FALSE) ) )","v":""},null,null,null,null,{"$f":"IF(TRIM(EE59)=\"\", \"\", IF(VLOOKUP(EE59,'Footnotes list'!$D$9:$E$58,2,FALSE)=0,\"\",VLOOKUP(EE59,'Footnotes list'!$D$9:$E$58,2,FALSE) ) )","v":""},null,null,null,null,{"$f":"IF(TRIM(EJ59)=\"\", \"\", IF(VLOOKUP(EJ59,'Footnotes list'!$D$9:$E$58,2,FALSE)=0,\"\",VLOOKUP(EJ59,'Footnotes list'!$D$9:$E$58,2,FALSE) ) )","v":""},null,null,null,null,{"$f":"IF(TRIM(EO59)=\"\", \"\", IF(VLOOKUP(EO59,'Footnotes list'!$D$9:$E$58,2,FALSE)=0,\"\",VLOOKUP(EO59,'Footnotes list'!$D$9:$E$58,2,FALSE) ) )","v":""},null,null,null,null,{"$f":"IF(TRIM(ET59)=\"\", \"\", IF(VLOOKUP(ET59,'Footnotes list'!$D$9:$E$58,2,FALSE)=0,\"\",VLOOKUP(ET59,'Footnotes list'!$D$9:$E$58,2,FALSE) ) )","v":""},null,null,null,null,{"$f":"IF(TRIM(EY59)=\"\", \"\", IF(VLOOKUP(EY59,'Footnotes list'!$D$9:$E$58,2,FALSE)=0,\"\",VLOOKUP(EY59,'Footnotes list'!$D$9:$E$58,2,FALSE) ) )","v":""}]
[null,null,"C19","OWN_USE","activities for own final use",null,null,null,null,null,{"$f":"IF(TRIM(J60)=\"\", \"\", IF(VLOOKUP(J60,'Footnotes list'!$D$9:$E$58,2,FALSE)=0,\"\",VLOOKUP(J60,'Footnotes list'!$D$9:$E$58,2,FALSE) ) )","v":""},null,null,null,null,{"$f":"IF(TRIM(O60)=\"\", \"\", IF(VLOOKUP(O60,'Footnotes list'!$D$9:$E$58,2,FALSE)=0,\"\",VLOOKUP(O60,'Footnotes list'!$D$9:$E$58,2,FALSE) ) )","v":""},null,null,null,null,{"$f":"IF(TRIM(T60)=\"\", \"\", IF(VLOOKUP(T60,'Footnotes list'!$D$9:$E$58,2,FALSE)=0,\"\",VLOOKUP(T60,'Footnotes list'!$D$9:$E$58,2,FALSE) ) )","v":""},null,null,null,null,{"$f":"IF(TRIM(Y60)=\"\", \"\", IF(VLOOKUP(Y60,'Footnotes list'!$D$9:$E$58,2,FALSE)=0,\"\",VLOOKUP(Y60,'Footnotes list'!$D$9:$E$58,2,FALSE) ) )","v":""},null,null,null,null,{"$f":"IF(TRIM(AD60)=\"\", \"\", IF(VLOOKUP(AD60,'Footnotes list'!$D$9:$E$58,2,FALSE)=0,\"\",VLOOKUP(AD60,'Footnotes list'!$D$9:$E$58,2,FALSE) ) )","v":""},null,null,null,null,{"$f":"IF(TRIM(AI60)=\"\", \"\", IF(VLOOKUP(AI60,'Footnotes list'!$D$9:$E$58,2,FALSE)=0,\"\",VLOOKUP(AI60,'Footnotes list'!$D$9:$E$58,2,FALSE) ) )","v":""},null,null,null,null,{"$f":"IF(TRIM(AN60)=\"\", \"\", IF(VLOOKUP(AN60,'Footnotes list'!$D$9:$E$58,2,FALSE)=0,\"\",VLOOKUP(AN60,'Footnotes list'!$D$9:$E$58,2,FALSE) ) )","v":""},null,null,null,null,{"$f":"IF(TRIM(AS60)=\"\", \"\", IF(VLOOKUP(AS60,'Footnotes list'!$D$9:$E$58,2,FALSE)=0,\"\",VLOOKUP(AS60,'Footnotes list'!$D$9:$E$58,2,FALSE) ) )","v":""},null,null,null,null,{"$f":"IF(TRIM(AX60)=\"\", \"\", IF(VLOOKUP(AX60,'Footnotes list'!$D$9:$E$58,2,FALSE)=0,\"\",VLOOKUP(AX60,'Footnotes list'!$D$9:$E$58,2,FALSE) ) )","v":""},null,null,null,null,{"$f":"IF(TRIM(BC60)=\"\", \"\", IF(VLOOKUP(BC60,'Footnotes list'!$D$9:$E$58,2,FALSE)=0,\"\",VLOOKUP(BC60,'Footnotes list'!$D$9:$E$58,2,FALSE) ) )","v":""},null,null,null,null,{"$f":"IF(TRIM(BH60)=\"\", \"\", IF(VLOOKUP(BH60,'Footnotes list'!$D$9:$E$58,2,FALSE)=0,\"\",VLOOKUP(BH60,'Footnotes list'!$D$9:$E$58,2,FALSE) ) )","v":""},null,null,null,null,{"$f":"IF(TRIM(BM60)=\"\", \"\", IF(VLOOKUP(BM60,'Footnotes list'!$D$9:$E$58,2,FALSE)=0,\"\",VLOOKUP(BM60,'Footnotes list'!$D$9:$E$58,2,FALSE) ) )","v":""},null,null,null,null,{"$f":"IF(TRIM(BR60)=\"\", \"\", IF(VLOOKUP(BR60,'Footnotes list'!$D$9:$E$58,2,FALSE)=0,\"\",VLOOKUP(BR60,'Footnotes list'!$D$9:$E$58,2,FALSE) ) )","v":""},null,null,null,null,{"$f":"IF(TRIM(BW60)=\"\", \"\", IF(VLOOKUP(BW60,'Footnotes list'!$D$9:$E$58,2,FALSE)=0,\"\",VLOOKUP(BW60,'Footnotes list'!$D$9:$E$58,2,FALSE) ) )","v":""},null,null,null,null,{"$f":"IF(TRIM(CB60)=\"\", \"\", IF(VLOOKUP(CB60,'Footnotes list'!$D$9:$E$58,2,FALSE)=0,\"\",VLOOKUP(CB60,'Footnotes list'!$D$9:$E$58,2,FALSE) ) )","v":""},null,null,null,null,{"$f":"IF(TRIM(CG60)=\"\", \"\", IF(VLOOKUP(CG60,'Footnotes list'!$D$9:$E$58,2,FALSE)=0,\"\",VLOOKUP(CG60,'Footnotes list'!$D$9:$E$58,2,FALSE) ) )","v":""},null,null,null,null,{"$f":"IF(TRIM(CL60)=\"\", \"\", IF(VLOOKUP(CL60,'Footnotes list'!$D$9:$E$58,2,FALSE)=0,\"\",VLOOKUP(CL60,'Footnotes list'!$D$9:$E$58,2,FALSE) ) )","v":""},null,null,null,null,{"$f":"IF(TRIM(CQ60)=\"\", \"\", IF(VLOOKUP(CQ60,'Footnotes list'!$D$9:$E$58,2,FALSE)=0,\"\",VLOOKUP(CQ60,'Footnotes list'!$D$9:$E$58,2,FALSE) ) )","v":""},null,null,null,null,{"$f":"IF(TRIM(CV60)=\"\", \"\", IF(VLOOKUP(CV60,'Footnotes list'!$D$9:$E$58,2,FALSE)=0,\"\",VLOOKUP(CV60,'Footnotes list'!$D$9:$E$58,2,FALSE) ) )","v":""},null,null,null,null,{"$f":"IF(TRIM(DA60)=\"\", \"\", IF(VLOOKUP(DA60,'Footnotes list'!$D$9:$E$58,2,FALSE)=0,\"\",VLOOKUP(DA60,'Footnotes list'!$D$9:$E$58,2,FALSE) ) )","v":""},null,null,null,null,{"$f":"IF(TRIM(DF60)=\"\", \"\", IF(VLOOKUP(DF60,'Footnotes list'!$D$9:$E$58,2,FALSE)=0,\"\",VLOOKUP(DF60,'Footnotes list'!$D$9:$E$58,2,FALSE) ) )","v":""},null,null,null,null,{"$f":"IF(TRIM(DK60)=\"\", \"\", IF(VLOOKUP(DK60,'Footnotes list'!$D$9:$E$58,2,FALSE)=0,\"\",VLOOKUP(DK60,'Footnotes list'!$D$9:$E$58,2,FALSE) ) )","v":""},null,null,null,null,{"$f":"IF(TRIM(DP60)=\"\", \"\", IF(VLOOKUP(DP60,'Footnotes list'!$D$9:$E$58,2,FALSE)=0,\"\",VLOOKUP(DP60,'Footnotes list'!$D$9:$E$58,2,FALSE) ) )","v":""},null,null,null,null,{"$f":"IF(TRIM(DU60)=\"\", \"\", IF(VLOOKUP(DU60,'Footnotes list'!$D$9:$E$58,2,FALSE)=0,\"\",VLOOKUP(DU60,'Footnotes list'!$D$9:$E$58,2,FALSE) ) )","v":""},null,null,null,null,{"$f":"IF(TRIM(DZ60)=\"\", \"\", IF(VLOOKUP(DZ60,'Footnotes list'!$D$9:$E$58,2,FALSE)=0,\"\",VLOOKUP(DZ60,'Footnotes list'!$D$9:$E$58,2,FALSE) ) )","v":""},null,null,null,null,{"$f":"IF(TRIM(EE60)=\"\", \"\", IF(VLOOKUP(EE60,'Footnotes list'!$D$9:$E$58,2,FALSE)=0,\"\",VLOOKUP(EE60,'Footnotes list'!$D$9:$E$58,2,FALSE) ) )","v":""},null,null,null,null,{"$f":"IF(TRIM(EJ60)=\"\", \"\", IF(VLOOKUP(EJ60,'Footnotes list'!$D$9:$E$58,2,FALSE)=0,\"\",VLOOKUP(EJ60,'Footnotes list'!$D$9:$E$58,2,FALSE) ) )","v":""},null,null,null,null,{"$f":"IF(TRIM(EO60)=\"\", \"\", IF(VLOOKUP(EO60,'Footnotes list'!$D$9:$E$58,2,FALSE)=0,\"\",VLOOKUP(EO60,'Footnotes list'!$D$9:$E$58,2,FALSE) ) )","v":""},null,null,null,null,{"$f":"IF(TRIM(ET60)=\"\", \"\", IF(VLOOKUP(ET60,'Footnotes list'!$D$9:$E$58,2,FALSE)=0,\"\",VLOOKUP(ET60,'Footnotes list'!$D$9:$E$58,2,FALSE) ) )","v":""},null,null,null,null,{"$f":"IF(TRIM(EY60)=\"\", \"\", IF(VLOOKUP(EY60,'Footnotes list'!$D$9:$E$58,2,FALSE)=0,\"\",VLOOKUP(EY60,'Footnotes list'!$D$9:$E$58,2,FALSE) ) )","v":""}]
[null,null,"C19","MKT","market activities, including:",null,null,null,null,null,{"$f":"IF(TRIM(J61)=\"\", \"\", IF(VLOOKUP(J61,'Footnotes list'!$D$9:$E$58,2,FALSE)=0,\"\",VLOOKUP(J61,'Footnotes list'!$D$9:$E$58,2,FALSE) ) )","v":""},null,null,null,null,{"$f":"IF(TRIM(O61)=\"\", \"\", IF(VLOOKUP(O61,'Footnotes list'!$D$9:$E$58,2,FALSE)=0,\"\",VLOOKUP(O61,'Footnotes list'!$D$9:$E$58,2,FALSE) ) )","v":""},null,null,null,null,{"$f":"IF(TRIM(T61)=\"\", \"\", IF(VLOOKUP(T61,'Footnotes list'!$D$9:$E$58,2,FALSE)=0,\"\",VLOOKUP(T61,'Footnotes list'!$D$9:$E$58,2,FALSE) ) )","v":""},null,null,null,null,{"$f":"IF(TRIM(Y61)=\"\", \"\", IF(VLOOKUP(Y61,'Footnotes list'!$D$9:$E$58,2,FALSE)=0,\"\",VLOOKUP(Y61,'Footnotes list'!$D$9:$E$58,2,FALSE) ) )","v":""},null,null,null,null,{"$f":"IF(TRIM(AD61)=\"\", \"\", IF(VLOOKUP(AD61,'Footnotes list'!$D$9:$E$58,2,FALSE)=0,\"\",VLOOKUP(AD61,'Footnotes list'!$D$9:$E$58,2,FALSE) ) )","v":""},null,null,null,null,{"$f":"IF(TRIM(AI61)=\"\", \"\", IF(VLOOKUP(AI61,'Footnotes list'!$D$9:$E$58,2,FALSE)=0,\"\",VLOOKUP(AI61,'Footnotes list'!$D$9:$E$58,2,FALSE) ) )","v":""},null,null,null,null,{"$f":"IF(TRIM(AN61)=\"\", \"\", IF(VLOOKUP(AN61,'Footnotes list'!$D$9:$E$58,2,FALSE)=0,\"\",VLOOKUP(AN61,'Footnotes list'!$D$9:$E$58,2,FALSE) ) )","v":""},null,null,null,null,{"$f":"IF(TRIM(AS61)=\"\", \"\", IF(VLOOKUP(AS61,'Footnotes list'!$D$9:$E$58,2,FALSE)=0,\"\",VLOOKUP(AS61,'Footnotes list'!$D$9:$E$58,2,FALSE) ) )","v":""},null,null,null,null,{"$f":"IF(TRIM(AX61)=\"\", \"\", IF(VLOOKUP(AX61,'Footnotes list'!$D$9:$E$58,2,FALSE)=0,\"\",VLOOKUP(AX61,'Footnotes list'!$D$9:$E$58,2,FALSE) ) )","v":""},null,null,null,null,{"$f":"IF(TRIM(BC61)=\"\", \"\", IF(VLOOKUP(BC61,'Footnotes list'!$D$9:$E$58,2,FALSE)=0,\"\",VLOOKUP(BC61,'Footnotes list'!$D$9:$E$58,2,FALSE) ) )","v":""},null,null,null,null,{"$f":"IF(TRIM(BH61)=\"\", \"\", IF(VLOOKUP(BH61,'Footnotes list'!$D$9:$E$58,2,FALSE)=0,\"\",VLOOKUP(BH61,'Footnotes list'!$D$9:$E$58,2,FALSE) ) )","v":""},null,null,null,null,{"$f":"IF(TRIM(BM61)=\"\", \"\", IF(VLOOKUP(BM61,'Footnotes list'!$D$9:$E$58,2,FALSE)=0,\"\",VLOOKUP(BM61,'Footnotes list'!$D$9:$E$58,2,FALSE) ) )","v":""},null,null,null,null,{"$f":"IF(TRIM(BR61)=\"\", \"\", IF(VLOOKUP(BR61,'Footnotes list'!$D$9:$E$58,2,FALSE)=0,\"\",VLOOKUP(BR61,'Footnotes list'!$D$9:$E$58,2,FALSE) ) )","v":""},null,null,null,null,{"$f":"IF(TRIM(BW61)=\"\", \"\", IF(VLOOKUP(BW61,'Footnotes list'!$D$9:$E$58,2,FALSE)=0,\"\",VLOOKUP(BW61,'Footnotes list'!$D$9:$E$58,2,FALSE) ) )","v":""},null,null,null,null,{"$f":"IF(TRIM(CB61)=\"\", \"\", IF(VLOOKUP(CB61,'Footnotes list'!$D$9:$E$58,2,FALSE)=0,\"\",VLOOKUP(CB61,'Footnotes list'!$D$9:$E$58,2,FALSE) ) )","v":""},null,null,null,null,{"$f":"IF(TRIM(CG61)=\"\", \"\", IF(VLOOKUP(CG61,'Footnotes list'!$D$9:$E$58,2,FALSE)=0,\"\",VLOOKUP(CG61,'Footnotes list'!$D$9:$E$58,2,FALSE) ) )","v":""},null,null,null,null,{"$f":"IF(TRIM(CL61)=\"\", \"\", IF(VLOOKUP(CL61,'Footnotes list'!$D$9:$E$58,2,FALSE)=0,\"\",VLOOKUP(CL61,'Footnotes list'!$D$9:$E$58,2,FALSE) ) )","v":""},null,null,null,null,{"$f":"IF(TRIM(CQ61)=\"\", \"\", IF(VLOOKUP(CQ61,'Footnotes list'!$D$9:$E$58,2,FALSE)=0,\"\",VLOOKUP(CQ61,'Footnotes list'!$D$9:$E$58,2,FALSE) ) )","v":""},null,null,null,null,{"$f":"IF(TRIM(CV61)=\"\", \"\", IF(VLOOKUP(CV61,'Footnotes list'!$D$9:$E$58,2,FALSE)=0,\"\",VLOOKUP(CV61,'Footnotes list'!$D$9:$E$58,2,FALSE) ) )","v":""},null,null,null,null,{"$f":"IF(TRIM(DA61)=\"\", \"\", IF(VLOOKUP(DA61,'Footnotes list'!$D$9:$E$58,2,FALSE)=0,\"\",VLOOKUP(DA61,'Footnotes list'!$D$9:$E$58,2,FALSE) ) )","v":""},null,null,null,null,{"$f":"IF(TRIM(DF61)=\"\", \"\", IF(VLOOKUP(DF61,'Footnotes list'!$D$9:$E$58,2,FALSE)=0,\"\",VLOOKUP(DF61,'Footnotes list'!$D$9:$E$58,2,FALSE) ) )","v":""},null,null,null,null,{"$f":"IF(TRIM(DK61)=\"\", \"\", IF(VLOOKUP(DK61,'Footnotes list'!$D$9:$E$58,2,FALSE)=0,\"\",VLOOKUP(DK61,'Footnotes list'!$D$9:$E$58,2,FALSE) ) )","v":""},null,null,null,null,{"$f":"IF(TRIM(DP61)=\"\", \"\", IF(VLOOKUP(DP61,'Footnotes list'!$D$9:$E$58,2,FALSE)=0,\"\",VLOOKUP(DP61,'Footnotes list'!$D$9:$E$58,2,FALSE) ) )","v":""},null,null,null,null,{"$f":"IF(TRIM(DU61)=\"\", \"\", IF(VLOOKUP(DU61,'Footnotes list'!$D$9:$E$58,2,FALSE)=0,\"\",VLOOKUP(DU61,'Footnotes list'!$D$9:$E$58,2,FALSE) ) )","v":""},null,null,null,null,{"$f":"IF(TRIM(DZ61)=\"\", \"\", IF(VLOOKUP(DZ61,'Footnotes list'!$D$9:$E$58,2,FALSE)=0,\"\",VLOOKUP(DZ61,'Footnotes list'!$D$9:$E$58,2,FALSE) ) )","v":""},null,null,null,null,{"$f":"IF(TRIM(EE61)=\"\", \"\", IF(VLOOKUP(EE61,'Footnotes list'!$D$9:$E$58,2,FALSE)=0,\"\",VLOOKUP(EE61,'Footnotes list'!$D$9:$E$58,2,FALSE) ) )","v":""},null,null,null,null,{"$f":"IF(TRIM(EJ61)=\"\", \"\", IF(VLOOKUP(EJ61,'Footnotes list'!$D$9:$E$58,2,FALSE)=0,\"\",VLOOKUP(EJ61,'Footnotes list'!$D$9:$E$58,2,FALSE) ) )","v":""},null,null,null,null,{"$f":"IF(TRIM(EO61)=\"\", \"\", IF(VLOOKUP(EO61,'Footnotes list'!$D$9:$E$58,2,FALSE)=0,\"\",VLOOKUP(EO61,'Footnotes list'!$D$9:$E$58,2,FALSE) ) )","v":""},null,null,null,null,{"$f":"IF(TRIM(ET61)=\"\", \"\", IF(VLOOKUP(ET61,'Footnotes list'!$D$9:$E$58,2,FALSE)=0,\"\",VLOOKUP(ET61,'Footnotes list'!$D$9:$E$58,2,FALSE) ) )","v":""},null,null,null,null,{"$f":"IF(TRIM(EY61)=\"\", \"\", IF(VLOOKUP(EY61,'Footnotes list'!$D$9:$E$58,2,FALSE)=0,\"\",VLOOKUP(EY61,'Footnotes list'!$D$9:$E$58,2,FALSE) ) )","v":""}]
[null,null,"C19","ES_CS","environmental specific services",null,null,null,null,null,{"$f":"IF(TRIM(J62)=\"\", \"\", IF(VLOOKUP(J62,'Footnotes list'!$D$9:$E$58,2,FALSE)=0,\"\",VLOOKUP(J62,'Footnotes list'!$D$9:$E$58,2,FALSE) ) )","v":""},null,null,null,null,{"$f":"IF(TRIM(O62)=\"\", \"\", IF(VLOOKUP(O62,'Footnotes list'!$D$9:$E$58,2,FALSE)=0,\"\",VLOOKUP(O62,'Footnotes list'!$D$9:$E$58,2,FALSE) ) )","v":""},null,null,null,null,{"$f":"IF(TRIM(T62)=\"\", \"\", IF(VLOOKUP(T62,'Footnotes list'!$D$9:$E$58,2,FALSE)=0,\"\",VLOOKUP(T62,'Footnotes list'!$D$9:$E$58,2,FALSE) ) )","v":""},null,null,null,null,{"$f":"IF(TRIM(Y62)=\"\", \"\", IF(VLOOKUP(Y62,'Footnotes list'!$D$9:$E$58,2,FALSE)=0,\"\",VLOOKUP(Y62,'Footnotes list'!$D$9:$E$58,2,FALSE) ) )","v":""},null,null,null,null,{"$f":"IF(TRIM(AD62)=\"\", \"\", IF(VLOOKUP(AD62,'Footnotes list'!$D$9:$E$58,2,FALSE)=0,\"\",VLOOKUP(AD62,'Footnotes list'!$D$9:$E$58,2,FALSE) ) )","v":""},null,null,null,null,{"$f":"IF(TRIM(AI62)=\"\", \"\", IF(VLOOKUP(AI62,'Footnotes list'!$D$9:$E$58,2,FALSE)=0,\"\",VLOOKUP(AI62,'Footnotes list'!$D$9:$E$58,2,FALSE) ) )","v":""},null,null,null,null,{"$f":"IF(TRIM(AN62)=\"\", \"\", IF(VLOOKUP(AN62,'Footnotes list'!$D$9:$E$58,2,FALSE)=0,\"\",VLOOKUP(AN62,'Footnotes list'!$D$9:$E$58,2,FALSE) ) )","v":""},null,null,null,null,{"$f":"IF(TRIM(AS62)=\"\", \"\", IF(VLOOKUP(AS62,'Footnotes list'!$D$9:$E$58,2,FALSE)=0,\"\",VLOOKUP(AS62,'Footnotes list'!$D$9:$E$58,2,FALSE) ) )","v":""},null,null,null,null,{"$f":"IF(TRIM(AX62)=\"\", \"\", IF(VLOOKUP(AX62,'Footnotes list'!$D$9:$E$58,2,FALSE)=0,\"\",VLOOKUP(AX62,'Footnotes list'!$D$9:$E$58,2,FALSE) ) )","v":""},null,null,null,null,{"$f":"IF(TRIM(BC62)=\"\", \"\", IF(VLOOKUP(BC62,'Footnotes list'!$D$9:$E$58,2,FALSE)=0,\"\",VLOOKUP(BC62,'Footnotes list'!$D$9:$E$58,2,FALSE) ) )","v":""},null,null,null,null,{"$f":"IF(TRIM(BH62)=\"\", \"\", IF(VLOOKUP(BH62,'Footnotes list'!$D$9:$E$58,2,FALSE)=0,\"\",VLOOKUP(BH62,'Footnotes list'!$D$9:$E$58,2,FALSE) ) )","v":""},null,null,null,null,{"$f":"IF(TRIM(BM62)=\"\", \"\", IF(VLOOKUP(BM62,'Footnotes list'!$D$9:$E$58,2,FALSE)=0,\"\",VLOOKUP(BM62,'Footnotes list'!$D$9:$E$58,2,FALSE) ) )","v":""},null,null,null,null,{"$f":"IF(TRIM(BR62)=\"\", \"\", IF(VLOOKUP(BR62,'Footnotes list'!$D$9:$E$58,2,FALSE)=0,\"\",VLOOKUP(BR62,'Footnotes list'!$D$9:$E$58,2,FALSE) ) )","v":""},null,null,null,null,{"$f":"IF(TRIM(BW62)=\"\", \"\", IF(VLOOKUP(BW62,'Footnotes list'!$D$9:$E$58,2,FALSE)=0,\"\",VLOOKUP(BW62,'Footnotes list'!$D$9:$E$58,2,FALSE) ) )","v":""},null,null,null,null,{"$f":"IF(TRIM(CB62)=\"\", \"\", IF(VLOOKUP(CB62,'Footnotes list'!$D$9:$E$58,2,FALSE)=0,\"\",VLOOKUP(CB62,'Footnotes list'!$D$9:$E$58,2,FALSE) ) )","v":""},null,null,null,null,{"$f":"IF(TRIM(CG62)=\"\", \"\", IF(VLOOKUP(CG62,'Footnotes list'!$D$9:$E$58,2,FALSE)=0,\"\",VLOOKUP(CG62,'Footnotes list'!$D$9:$E$58,2,FALSE) ) )","v":""},null,null,null,null,{"$f":"IF(TRIM(CL62)=\"\", \"\", IF(VLOOKUP(CL62,'Footnotes list'!$D$9:$E$58,2,FALSE)=0,\"\",VLOOKUP(CL62,'Footnotes list'!$D$9:$E$58,2,FALSE) ) )","v":""},null,null,null,null,{"$f":"IF(TRIM(CQ62)=\"\", \"\", IF(VLOOKUP(CQ62,'Footnotes list'!$D$9:$E$58,2,FALSE)=0,\"\",VLOOKUP(CQ62,'Footnotes list'!$D$9:$E$58,2,FALSE) ) )","v":""},null,null,null,null,{"$f":"IF(TRIM(CV62)=\"\", \"\", IF(VLOOKUP(CV62,'Footnotes list'!$D$9:$E$58,2,FALSE)=0,\"\",VLOOKUP(CV62,'Footnotes list'!$D$9:$E$58,2,FALSE) ) )","v":""},null,null,null,null,{"$f":"IF(TRIM(DA62)=\"\", \"\", IF(VLOOKUP(DA62,'Footnotes list'!$D$9:$E$58,2,FALSE)=0,\"\",VLOOKUP(DA62,'Footnotes list'!$D$9:$E$58,2,FALSE) ) )","v":""},null,null,null,null,{"$f":"IF(TRIM(DF62)=\"\", \"\", IF(VLOOKUP(DF62,'Footnotes list'!$D$9:$E$58,2,FALSE)=0,\"\",VLOOKUP(DF62,'Footnotes list'!$D$9:$E$58,2,FALSE) ) )","v":""},null,null,null,null,{"$f":"IF(TRIM(DK62)=\"\", \"\", IF(VLOOKUP(DK62,'Footnotes list'!$D$9:$E$58,2,FALSE)=0,\"\",VLOOKUP(DK62,'Footnotes list'!$D$9:$E$58,2,FALSE) ) )","v":""},null,null,null,null,{"$f":"IF(TRIM(DP62)=\"\", \"\", IF(VLOOKUP(DP62,'Footnotes list'!$D$9:$E$58,2,FALSE)=0,\"\",VLOOKUP(DP62,'Footnotes list'!$D$9:$E$58,2,FALSE) ) )","v":""},null,null,null,null,{"$f":"IF(TRIM(DU62)=\"\", \"\", IF(VLOOKUP(DU62,'Footnotes list'!$D$9:$E$58,2,FALSE)=0,\"\",VLOOKUP(DU62,'Footnotes list'!$D$9:$E$58,2,FALSE) ) )","v":""},null,null,null,null,{"$f":"IF(TRIM(DZ62)=\"\", \"\", IF(VLOOKUP(DZ62,'Footnotes list'!$D$9:$E$58,2,FALSE)=0,\"\",VLOOKUP(DZ62,'Footnotes list'!$D$9:$E$58,2,FALSE) ) )","v":""},null,null,null,null,{"$f":"IF(TRIM(EE62)=\"\", \"\", IF(VLOOKUP(EE62,'Footnotes list'!$D$9:$E$58,2,FALSE)=0,\"\",VLOOKUP(EE62,'Footnotes list'!$D$9:$E$58,2,FALSE) ) )","v":""},null,null,null,null,{"$f":"IF(TRIM(EJ62)=\"\", \"\", IF(VLOOKUP(EJ62,'Footnotes list'!$D$9:$E$58,2,FALSE)=0,\"\",VLOOKUP(EJ62,'Footnotes list'!$D$9:$E$58,2,FALSE) ) )","v":""},null,null,null,null,{"$f":"IF(TRIM(EO62)=\"\", \"\", IF(VLOOKUP(EO62,'Footnotes list'!$D$9:$E$58,2,FALSE)=0,\"\",VLOOKUP(EO62,'Footnotes list'!$D$9:$E$58,2,FALSE) ) )","v":""},null,null,null,null,{"$f":"IF(TRIM(ET62)=\"\", \"\", IF(VLOOKUP(ET62,'Footnotes list'!$D$9:$E$58,2,FALSE)=0,\"\",VLOOKUP(ET62,'Footnotes list'!$D$9:$E$58,2,FALSE) ) )","v":""},null,null,null,null,{"$f":"IF(TRIM(EY62)=\"\", \"\", IF(VLOOKUP(EY62,'Footnotes list'!$D$9:$E$58,2,FALSE)=0,\"\",VLOOKUP(EY62,'Footnotes list'!$D$9:$E$58,2,FALSE) ) )","v":""}]
[null,null,"C19","C_REP","cleaner and resource efficient products",null,null,null,null,null,{"$f":"IF(TRIM(J63)=\"\", \"\", IF(VLOOKUP(J63,'Footnotes list'!$D$9:$E$58,2,FALSE)=0,\"\",VLOOKUP(J63,'Footnotes list'!$D$9:$E$58,2,FALSE) ) )","v":""},null,null,null,null,{"$f":"IF(TRIM(O63)=\"\", \"\", IF(VLOOKUP(O63,'Footnotes list'!$D$9:$E$58,2,FALSE)=0,\"\",VLOOKUP(O63,'Footnotes list'!$D$9:$E$58,2,FALSE) ) )","v":""},null,null,null,null,{"$f":"IF(TRIM(T63)=\"\", \"\", IF(VLOOKUP(T63,'Footnotes list'!$D$9:$E$58,2,FALSE)=0,\"\",VLOOKUP(T63,'Footnotes list'!$D$9:$E$58,2,FALSE) ) )","v":""},null,null,null,null,{"$f":"IF(TRIM(Y63)=\"\", \"\", IF(VLOOKUP(Y63,'Footnotes list'!$D$9:$E$58,2,FALSE)=0,\"\",VLOOKUP(Y63,'Footnotes list'!$D$9:$E$58,2,FALSE) ) )","v":""},null,null,null,null,{"$f":"IF(TRIM(AD63)=\"\", \"\", IF(VLOOKUP(AD63,'Footnotes list'!$D$9:$E$58,2,FALSE)=0,\"\",VLOOKUP(AD63,'Footnotes list'!$D$9:$E$58,2,FALSE) ) )","v":""},null,null,null,null,{"$f":"IF(TRIM(AI63)=\"\", \"\", IF(VLOOKUP(AI63,'Footnotes list'!$D$9:$E$58,2,FALSE)=0,\"\",VLOOKUP(AI63,'Footnotes list'!$D$9:$E$58,2,FALSE) ) )","v":""},null,null,null,null,{"$f":"IF(TRIM(AN63)=\"\", \"\", IF(VLOOKUP(AN63,'Footnotes list'!$D$9:$E$58,2,FALSE)=0,\"\",VLOOKUP(AN63,'Footnotes list'!$D$9:$E$58,2,FALSE) ) )","v":""},null,null,null,null,{"$f":"IF(TRIM(AS63)=\"\", \"\", IF(VLOOKUP(AS63,'Footnotes list'!$D$9:$E$58,2,FALSE)=0,\"\",VLOOKUP(AS63,'Footnotes list'!$D$9:$E$58,2,FALSE) ) )","v":""},null,null,null,null,{"$f":"IF(TRIM(AX63)=\"\", \"\", IF(VLOOKUP(AX63,'Footnotes list'!$D$9:$E$58,2,FALSE)=0,\"\",VLOOKUP(AX63,'Footnotes list'!$D$9:$E$58,2,FALSE) ) )","v":""},null,null,null,null,{"$f":"IF(TRIM(BC63)=\"\", \"\", IF(VLOOKUP(BC63,'Footnotes list'!$D$9:$E$58,2,FALSE)=0,\"\",VLOOKUP(BC63,'Footnotes list'!$D$9:$E$58,2,FALSE) ) )","v":""},null,null,null,null,{"$f":"IF(TRIM(BH63)=\"\", \"\", IF(VLOOKUP(BH63,'Footnotes list'!$D$9:$E$58,2,FALSE)=0,\"\",VLOOKUP(BH63,'Footnotes list'!$D$9:$E$58,2,FALSE) ) )","v":""},null,null,null,null,{"$f":"IF(TRIM(BM63)=\"\", \"\", IF(VLOOKUP(BM63,'Footnotes list'!$D$9:$E$58,2,FALSE)=0,\"\",VLOOKUP(BM63,'Footnotes list'!$D$9:$E$58,2,FALSE) ) )","v":""},null,null,null,null,{"$f":"IF(TRIM(BR63)=\"\", \"\", IF(VLOOKUP(BR63,'Footnotes list'!$D$9:$E$58,2,FALSE)=0,\"\",VLOOKUP(BR63,'Footnotes list'!$D$9:$E$58,2,FALSE) ) )","v":""},null,null,null,null,{"$f":"IF(TRIM(BW63)=\"\", \"\", IF(VLOOKUP(BW63,'Footnotes list'!$D$9:$E$58,2,FALSE)=0,\"\",VLOOKUP(BW63,'Footnotes list'!$D$9:$E$58,2,FALSE) ) )","v":""},null,null,null,null,{"$f":"IF(TRIM(CB63)=\"\", \"\", IF(VLOOKUP(CB63,'Footnotes list'!$D$9:$E$58,2,FALSE)=0,\"\",VLOOKUP(CB63,'Footnotes list'!$D$9:$E$58,2,FALSE) ) )","v":""},null,null,null,null,{"$f":"IF(TRIM(CG63)=\"\", \"\", IF(VLOOKUP(CG63,'Footnotes list'!$D$9:$E$58,2,FALSE)=0,\"\",VLOOKUP(CG63,'Footnotes list'!$D$9:$E$58,2,FALSE) ) )","v":""},null,null,null,null,{"$f":"IF(TRIM(CL63)=\"\", \"\", IF(VLOOKUP(CL63,'Footnotes list'!$D$9:$E$58,2,FALSE)=0,\"\",VLOOKUP(CL63,'Footnotes list'!$D$9:$E$58,2,FALSE) ) )","v":""},null,null,null,null,{"$f":"IF(TRIM(CQ63)=\"\", \"\", IF(VLOOKUP(CQ63,'Footnotes list'!$D$9:$E$58,2,FALSE)=0,\"\",VLOOKUP(CQ63,'Footnotes list'!$D$9:$E$58,2,FALSE) ) )","v":""},null,null,null,null,{"$f":"IF(TRIM(CV63)=\"\", \"\", IF(VLOOKUP(CV63,'Footnotes list'!$D$9:$E$58,2,FALSE)=0,\"\",VLOOKUP(CV63,'Footnotes list'!$D$9:$E$58,2,FALSE) ) )","v":""},null,null,null,null,{"$f":"IF(TRIM(DA63)=\"\", \"\", IF(VLOOKUP(DA63,'Footnotes list'!$D$9:$E$58,2,FALSE)=0,\"\",VLOOKUP(DA63,'Footnotes list'!$D$9:$E$58,2,FALSE) ) )","v":""},null,null,null,null,{"$f":"IF(TRIM(DF63)=\"\", \"\", IF(VLOOKUP(DF63,'Footnotes list'!$D$9:$E$58,2,FALSE)=0,\"\",VLOOKUP(DF63,'Footnotes list'!$D$9:$E$58,2,FALSE) ) )","v":""},null,null,null,null,{"$f":"IF(TRIM(DK63)=\"\", \"\", IF(VLOOKUP(DK63,'Footnotes list'!$D$9:$E$58,2,FALSE)=0,\"\",VLOOKUP(DK63,'Footnotes list'!$D$9:$E$58,2,FALSE) ) )","v":""},null,null,null,null,{"$f":"IF(TRIM(DP63)=\"\", \"\", IF(VLOOKUP(DP63,'Footnotes list'!$D$9:$E$58,2,FALSE)=0,\"\",VLOOKUP(DP63,'Footnotes list'!$D$9:$E$58,2,FALSE) ) )","v":""},null,null,null,null,{"$f":"IF(TRIM(DU63)=\"\", \"\", IF(VLOOKUP(DU63,'Footnotes list'!$D$9:$E$58,2,FALSE)=0,\"\",VLOOKUP(DU63,'Footnotes list'!$D$9:$E$58,2,FALSE) ) )","v":""},null,null,null,null,{"$f":"IF(TRIM(DZ63)=\"\", \"\", IF(VLOOKUP(DZ63,'Footnotes list'!$D$9:$E$58,2,FALSE)=0,\"\",VLOOKUP(DZ63,'Footnotes list'!$D$9:$E$58,2,FALSE) ) )","v":""},null,null,null,null,{"$f":"IF(TRIM(EE63)=\"\", \"\", IF(VLOOKUP(EE63,'Footnotes list'!$D$9:$E$58,2,FALSE)=0,\"\",VLOOKUP(EE63,'Footnotes list'!$D$9:$E$58,2,FALSE) ) )","v":""},null,null,null,null,{"$f":"IF(TRIM(EJ63)=\"\", \"\", IF(VLOOKUP(EJ63,'Footnotes list'!$D$9:$E$58,2,FALSE)=0,\"\",VLOOKUP(EJ63,'Footnotes list'!$D$9:$E$58,2,FALSE) ) )","v":""},null,null,null,null,{"$f":"IF(TRIM(EO63)=\"\", \"\", IF(VLOOKUP(EO63,'Footnotes list'!$D$9:$E$58,2,FALSE)=0,\"\",VLOOKUP(EO63,'Footnotes list'!$D$9:$E$58,2,FALSE) ) )","v":""},null,null,null,null,{"$f":"IF(TRIM(ET63)=\"\", \"\", IF(VLOOKUP(ET63,'Footnotes list'!$D$9:$E$58,2,FALSE)=0,\"\",VLOOKUP(ET63,'Footnotes list'!$D$9:$E$58,2,FALSE) ) )","v":""},null,null,null,null,{"$f":"IF(TRIM(EY63)=\"\", \"\", IF(VLOOKUP(EY63,'Footnotes list'!$D$9:$E$58,2,FALSE)=0,\"\",VLOOKUP(EY63,'Footnotes list'!$D$9:$E$58,2,FALSE) ) )","v":""}]
[null,null,"C20","TOT_EGSS","Total C20 - Manufacture of chemicals and chemical products, of which:",null,null,null,null,null,{"$f":"IF(TRIM(J64)=\"\", \"\", IF(VLOOKUP(J64,'Footnotes list'!$D$9:$E$58,2,FALSE)=0,\"\",VLOOKUP(J64,'Footnotes list'!$D$9:$E$58,2,FALSE) ) )","v":""},null,null,null,null,{"$f":"IF(TRIM(O64)=\"\", \"\", IF(VLOOKUP(O64,'Footnotes list'!$D$9:$E$58,2,FALSE)=0,\"\",VLOOKUP(O64,'Footnotes list'!$D$9:$E$58,2,FALSE) ) )","v":""},null,null,null,null,{"$f":"IF(TRIM(T64)=\"\", \"\", IF(VLOOKUP(T64,'Footnotes list'!$D$9:$E$58,2,FALSE)=0,\"\",VLOOKUP(T64,'Footnotes list'!$D$9:$E$58,2,FALSE) ) )","v":""},null,null,null,null,{"$f":"IF(TRIM(Y64)=\"\", \"\", IF(VLOOKUP(Y64,'Footnotes list'!$D$9:$E$58,2,FALSE)=0,\"\",VLOOKUP(Y64,'Footnotes list'!$D$9:$E$58,2,FALSE) ) )","v":""},null,null,null,null,{"$f":"IF(TRIM(AD64)=\"\", \"\", IF(VLOOKUP(AD64,'Footnotes list'!$D$9:$E$58,2,FALSE)=0,\"\",VLOOKUP(AD64,'Footnotes list'!$D$9:$E$58,2,FALSE) ) )","v":""},null,null,null,null,{"$f":"IF(TRIM(AI64)=\"\", \"\", IF(VLOOKUP(AI64,'Footnotes list'!$D$9:$E$58,2,FALSE)=0,\"\",VLOOKUP(AI64,'Footnotes list'!$D$9:$E$58,2,FALSE) ) )","v":""},null,null,null,null,{"$f":"IF(TRIM(AN64)=\"\", \"\", IF(VLOOKUP(AN64,'Footnotes list'!$D$9:$E$58,2,FALSE)=0,\"\",VLOOKUP(AN64,'Footnotes list'!$D$9:$E$58,2,FALSE) ) )","v":""},null,null,null,null,{"$f":"IF(TRIM(AS64)=\"\", \"\", IF(VLOOKUP(AS64,'Footnotes list'!$D$9:$E$58,2,FALSE)=0,\"\",VLOOKUP(AS64,'Footnotes list'!$D$9:$E$58,2,FALSE) ) )","v":""},null,null,null,null,{"$f":"IF(TRIM(AX64)=\"\", \"\", IF(VLOOKUP(AX64,'Footnotes list'!$D$9:$E$58,2,FALSE)=0,\"\",VLOOKUP(AX64,'Footnotes list'!$D$9:$E$58,2,FALSE) ) )","v":""},null,null,null,null,{"$f":"IF(TRIM(BC64)=\"\", \"\", IF(VLOOKUP(BC64,'Footnotes list'!$D$9:$E$58,2,FALSE)=0,\"\",VLOOKUP(BC64,'Footnotes list'!$D$9:$E$58,2,FALSE) ) )","v":""},null,null,null,null,{"$f":"IF(TRIM(BH64)=\"\", \"\", IF(VLOOKUP(BH64,'Footnotes list'!$D$9:$E$58,2,FALSE)=0,\"\",VLOOKUP(BH64,'Footnotes list'!$D$9:$E$58,2,FALSE) ) )","v":""},null,null,null,null,{"$f":"IF(TRIM(BM64)=\"\", \"\", IF(VLOOKUP(BM64,'Footnotes list'!$D$9:$E$58,2,FALSE)=0,\"\",VLOOKUP(BM64,'Footnotes list'!$D$9:$E$58,2,FALSE) ) )","v":""},null,null,null,null,{"$f":"IF(TRIM(BR64)=\"\", \"\", IF(VLOOKUP(BR64,'Footnotes list'!$D$9:$E$58,2,FALSE)=0,\"\",VLOOKUP(BR64,'Footnotes list'!$D$9:$E$58,2,FALSE) ) )","v":""},null,null,null,null,{"$f":"IF(TRIM(BW64)=\"\", \"\", IF(VLOOKUP(BW64,'Footnotes list'!$D$9:$E$58,2,FALSE)=0,\"\",VLOOKUP(BW64,'Footnotes list'!$D$9:$E$58,2,FALSE) ) )","v":""},null,null,null,null,{"$f":"IF(TRIM(CB64)=\"\", \"\", IF(VLOOKUP(CB64,'Footnotes list'!$D$9:$E$58,2,FALSE)=0,\"\",VLOOKUP(CB64,'Footnotes list'!$D$9:$E$58,2,FALSE) ) )","v":""},null,null,null,null,{"$f":"IF(TRIM(CG64)=\"\", \"\", IF(VLOOKUP(CG64,'Footnotes list'!$D$9:$E$58,2,FALSE)=0,\"\",VLOOKUP(CG64,'Footnotes list'!$D$9:$E$58,2,FALSE) ) )","v":""},null,null,null,null,{"$f":"IF(TRIM(CL64)=\"\", \"\", IF(VLOOKUP(CL64,'Footnotes list'!$D$9:$E$58,2,FALSE)=0,\"\",VLOOKUP(CL64,'Footnotes list'!$D$9:$E$58,2,FALSE) ) )","v":""},null,null,null,null,{"$f":"IF(TRIM(CQ64)=\"\", \"\", IF(VLOOKUP(CQ64,'Footnotes list'!$D$9:$E$58,2,FALSE)=0,\"\",VLOOKUP(CQ64,'Footnotes list'!$D$9:$E$58,2,FALSE) ) )","v":""},null,null,null,null,{"$f":"IF(TRIM(CV64)=\"\", \"\", IF(VLOOKUP(CV64,'Footnotes list'!$D$9:$E$58,2,FALSE)=0,\"\",VLOOKUP(CV64,'Footnotes list'!$D$9:$E$58,2,FALSE) ) )","v":""},null,null,null,null,{"$f":"IF(TRIM(DA64)=\"\", \"\", IF(VLOOKUP(DA64,'Footnotes list'!$D$9:$E$58,2,FALSE)=0,\"\",VLOOKUP(DA64,'Footnotes list'!$D$9:$E$58,2,FALSE) ) )","v":""},null,null,null,null,{"$f":"IF(TRIM(DF64)=\"\", \"\", IF(VLOOKUP(DF64,'Footnotes list'!$D$9:$E$58,2,FALSE)=0,\"\",VLOOKUP(DF64,'Footnotes list'!$D$9:$E$58,2,FALSE) ) )","v":""},null,null,null,null,{"$f":"IF(TRIM(DK64)=\"\", \"\", IF(VLOOKUP(DK64,'Footnotes list'!$D$9:$E$58,2,FALSE)=0,\"\",VLOOKUP(DK64,'Footnotes list'!$D$9:$E$58,2,FALSE) ) )","v":""},null,null,null,null,{"$f":"IF(TRIM(DP64)=\"\", \"\", IF(VLOOKUP(DP64,'Footnotes list'!$D$9:$E$58,2,FALSE)=0,\"\",VLOOKUP(DP64,'Footnotes list'!$D$9:$E$58,2,FALSE) ) )","v":""},null,null,null,null,{"$f":"IF(TRIM(DU64)=\"\", \"\", IF(VLOOKUP(DU64,'Footnotes list'!$D$9:$E$58,2,FALSE)=0,\"\",VLOOKUP(DU64,'Footnotes list'!$D$9:$E$58,2,FALSE) ) )","v":""},null,null,null,null,{"$f":"IF(TRIM(DZ64)=\"\", \"\", IF(VLOOKUP(DZ64,'Footnotes list'!$D$9:$E$58,2,FALSE)=0,\"\",VLOOKUP(DZ64,'Footnotes list'!$D$9:$E$58,2,FALSE) ) )","v":""},null,null,null,null,{"$f":"IF(TRIM(EE64)=\"\", \"\", IF(VLOOKUP(EE64,'Footnotes list'!$D$9:$E$58,2,FALSE)=0,\"\",VLOOKUP(EE64,'Footnotes list'!$D$9:$E$58,2,FALSE) ) )","v":""},null,null,null,null,{"$f":"IF(TRIM(EJ64)=\"\", \"\", IF(VLOOKUP(EJ64,'Footnotes list'!$D$9:$E$58,2,FALSE)=0,\"\",VLOOKUP(EJ64,'Footnotes list'!$D$9:$E$58,2,FALSE) ) )","v":""},null,null,null,null,{"$f":"IF(TRIM(EO64)=\"\", \"\", IF(VLOOKUP(EO64,'Footnotes list'!$D$9:$E$58,2,FALSE)=0,\"\",VLOOKUP(EO64,'Footnotes list'!$D$9:$E$58,2,FALSE) ) )","v":""},null,null,null,null,{"$f":"IF(TRIM(ET64)=\"\", \"\", IF(VLOOKUP(ET64,'Footnotes list'!$D$9:$E$58,2,FALSE)=0,\"\",VLOOKUP(ET64,'Footnotes list'!$D$9:$E$58,2,FALSE) ) )","v":""},null,null,null,null,{"$f":"IF(TRIM(EY64)=\"\", \"\", IF(VLOOKUP(EY64,'Footnotes list'!$D$9:$E$58,2,FALSE)=0,\"\",VLOOKUP(EY64,'Footnotes list'!$D$9:$E$58,2,FALSE) ) )","v":""}]
[null,null,"C20","ANC","ancillary activities",null,null,null,null,null,{"$f":"IF(TRIM(J65)=\"\", \"\", IF(VLOOKUP(J65,'Footnotes list'!$D$9:$E$58,2,FALSE)=0,\"\",VLOOKUP(J65,'Footnotes list'!$D$9:$E$58,2,FALSE) ) )","v":""},null,null,null,null,{"$f":"IF(TRIM(O65)=\"\", \"\", IF(VLOOKUP(O65,'Footnotes list'!$D$9:$E$58,2,FALSE)=0,\"\",VLOOKUP(O65,'Footnotes list'!$D$9:$E$58,2,FALSE) ) )","v":""},null,null,null,null,{"$f":"IF(TRIM(T65)=\"\", \"\", IF(VLOOKUP(T65,'Footnotes list'!$D$9:$E$58,2,FALSE)=0,\"\",VLOOKUP(T65,'Footnotes list'!$D$9:$E$58,2,FALSE) ) )","v":""},null,null,null,null,{"$f":"IF(TRIM(Y65)=\"\", \"\", IF(VLOOKUP(Y65,'Footnotes list'!$D$9:$E$58,2,FALSE)=0,\"\",VLOOKUP(Y65,'Footnotes list'!$D$9:$E$58,2,FALSE) ) )","v":""},null,null,null,null,{"$f":"IF(TRIM(AD65)=\"\", \"\", IF(VLOOKUP(AD65,'Footnotes list'!$D$9:$E$58,2,FALSE)=0,\"\",VLOOKUP(AD65,'Footnotes list'!$D$9:$E$58,2,FALSE) ) )","v":""},null,null,null,null,{"$f":"IF(TRIM(AI65)=\"\", \"\", IF(VLOOKUP(AI65,'Footnotes list'!$D$9:$E$58,2,FALSE)=0,\"\",VLOOKUP(AI65,'Footnotes list'!$D$9:$E$58,2,FALSE) ) )","v":""},null,null,null,null,{"$f":"IF(TRIM(AN65)=\"\", \"\", IF(VLOOKUP(AN65,'Footnotes list'!$D$9:$E$58,2,FALSE)=0,\"\",VLOOKUP(AN65,'Footnotes list'!$D$9:$E$58,2,FALSE) ) )","v":""},null,null,null,null,{"$f":"IF(TRIM(AS65)=\"\", \"\", IF(VLOOKUP(AS65,'Footnotes list'!$D$9:$E$58,2,FALSE)=0,\"\",VLOOKUP(AS65,'Footnotes list'!$D$9:$E$58,2,FALSE) ) )","v":""},null,null,null,null,{"$f":"IF(TRIM(AX65)=\"\", \"\", IF(VLOOKUP(AX65,'Footnotes list'!$D$9:$E$58,2,FALSE)=0,\"\",VLOOKUP(AX65,'Footnotes list'!$D$9:$E$58,2,FALSE) ) )","v":""},null,null,null,null,{"$f":"IF(TRIM(BC65)=\"\", \"\", IF(VLOOKUP(BC65,'Footnotes list'!$D$9:$E$58,2,FALSE)=0,\"\",VLOOKUP(BC65,'Footnotes list'!$D$9:$E$58,2,FALSE) ) )","v":""},null,null,null,null,{"$f":"IF(TRIM(BH65)=\"\", \"\", IF(VLOOKUP(BH65,'Footnotes list'!$D$9:$E$58,2,FALSE)=0,\"\",VLOOKUP(BH65,'Footnotes list'!$D$9:$E$58,2,FALSE) ) )","v":""},null,null,null,null,{"$f":"IF(TRIM(BM65)=\"\", \"\", IF(VLOOKUP(BM65,'Footnotes list'!$D$9:$E$58,2,FALSE)=0,\"\",VLOOKUP(BM65,'Footnotes list'!$D$9:$E$58,2,FALSE) ) )","v":""},null,null,null,null,{"$f":"IF(TRIM(BR65)=\"\", \"\", IF(VLOOKUP(BR65,'Footnotes list'!$D$9:$E$58,2,FALSE)=0,\"\",VLOOKUP(BR65,'Footnotes list'!$D$9:$E$58,2,FALSE) ) )","v":""},null,null,null,null,{"$f":"IF(TRIM(BW65)=\"\", \"\", IF(VLOOKUP(BW65,'Footnotes list'!$D$9:$E$58,2,FALSE)=0,\"\",VLOOKUP(BW65,'Footnotes list'!$D$9:$E$58,2,FALSE) ) )","v":""},null,null,null,null,{"$f":"IF(TRIM(CB65)=\"\", \"\", IF(VLOOKUP(CB65,'Footnotes list'!$D$9:$E$58,2,FALSE)=0,\"\",VLOOKUP(CB65,'Footnotes list'!$D$9:$E$58,2,FALSE) ) )","v":""},null,null,null,null,{"$f":"IF(TRIM(CG65)=\"\", \"\", IF(VLOOKUP(CG65,'Footnotes list'!$D$9:$E$58,2,FALSE)=0,\"\",VLOOKUP(CG65,'Footnotes list'!$D$9:$E$58,2,FALSE) ) )","v":""},null,null,null,null,{"$f":"IF(TRIM(CL65)=\"\", \"\", IF(VLOOKUP(CL65,'Footnotes list'!$D$9:$E$58,2,FALSE)=0,\"\",VLOOKUP(CL65,'Footnotes list'!$D$9:$E$58,2,FALSE) ) )","v":""},null,null,null,null,{"$f":"IF(TRIM(CQ65)=\"\", \"\", IF(VLOOKUP(CQ65,'Footnotes list'!$D$9:$E$58,2,FALSE)=0,\"\",VLOOKUP(CQ65,'Footnotes list'!$D$9:$E$58,2,FALSE) ) )","v":""},null,null,null,null,{"$f":"IF(TRIM(CV65)=\"\", \"\", IF(VLOOKUP(CV65,'Footnotes list'!$D$9:$E$58,2,FALSE)=0,\"\",VLOOKUP(CV65,'Footnotes list'!$D$9:$E$58,2,FALSE) ) )","v":""},null,null,null,null,{"$f":"IF(TRIM(DA65)=\"\", \"\", IF(VLOOKUP(DA65,'Footnotes list'!$D$9:$E$58,2,FALSE)=0,\"\",VLOOKUP(DA65,'Footnotes list'!$D$9:$E$58,2,FALSE) ) )","v":""},null,null,null,null,{"$f":"IF(TRIM(DF65)=\"\", \"\", IF(VLOOKUP(DF65,'Footnotes list'!$D$9:$E$58,2,FALSE)=0,\"\",VLOOKUP(DF65,'Footnotes list'!$D$9:$E$58,2,FALSE) ) )","v":""},null,null,null,null,{"$f":"IF(TRIM(DK65)=\"\", \"\", IF(VLOOKUP(DK65,'Footnotes list'!$D$9:$E$58,2,FALSE)=0,\"\",VLOOKUP(DK65,'Footnotes list'!$D$9:$E$58,2,FALSE) ) )","v":""},null,null,null,null,{"$f":"IF(TRIM(DP65)=\"\", \"\", IF(VLOOKUP(DP65,'Footnotes list'!$D$9:$E$58,2,FALSE)=0,\"\",VLOOKUP(DP65,'Footnotes list'!$D$9:$E$58,2,FALSE) ) )","v":""},null,null,null,null,{"$f":"IF(TRIM(DU65)=\"\", \"\", IF(VLOOKUP(DU65,'Footnotes list'!$D$9:$E$58,2,FALSE)=0,\"\",VLOOKUP(DU65,'Footnotes list'!$D$9:$E$58,2,FALSE) ) )","v":""},null,null,null,null,{"$f":"IF(TRIM(DZ65)=\"\", \"\", IF(VLOOKUP(DZ65,'Footnotes list'!$D$9:$E$58,2,FALSE)=0,\"\",VLOOKUP(DZ65,'Footnotes list'!$D$9:$E$58,2,FALSE) ) )","v":""},null,null,null,null,{"$f":"IF(TRIM(EE65)=\"\", \"\", IF(VLOOKUP(EE65,'Footnotes list'!$D$9:$E$58,2,FALSE)=0,\"\",VLOOKUP(EE65,'Footnotes list'!$D$9:$E$58,2,FALSE) ) )","v":""},null,null,null,null,{"$f":"IF(TRIM(EJ65)=\"\", \"\", IF(VLOOKUP(EJ65,'Footnotes list'!$D$9:$E$58,2,FALSE)=0,\"\",VLOOKUP(EJ65,'Footnotes list'!$D$9:$E$58,2,FALSE) ) )","v":""},null,null,null,null,{"$f":"IF(TRIM(EO65)=\"\", \"\", IF(VLOOKUP(EO65,'Footnotes list'!$D$9:$E$58,2,FALSE)=0,\"\",VLOOKUP(EO65,'Footnotes list'!$D$9:$E$58,2,FALSE) ) )","v":""},null,null,null,null,{"$f":"IF(TRIM(ET65)=\"\", \"\", IF(VLOOKUP(ET65,'Footnotes list'!$D$9:$E$58,2,FALSE)=0,\"\",VLOOKUP(ET65,'Footnotes list'!$D$9:$E$58,2,FALSE) ) )","v":""},null,null,null,null,{"$f":"IF(TRIM(EY65)=\"\", \"\", IF(VLOOKUP(EY65,'Footnotes list'!$D$9:$E$58,2,FALSE)=0,\"\",VLOOKUP(EY65,'Footnotes list'!$D$9:$E$58,2,FALSE) ) )","v":""}]
[null,null,"C20","NMKT","non-market activities",null,null,null,null,null,{"$f":"IF(TRIM(J66)=\"\", \"\", IF(VLOOKUP(J66,'Footnotes list'!$D$9:$E$58,2,FALSE)=0,\"\",VLOOKUP(J66,'Footnotes list'!$D$9:$E$58,2,FALSE) ) )","v":""},null,null,null,null,{"$f":"IF(TRIM(O66)=\"\", \"\", IF(VLOOKUP(O66,'Footnotes list'!$D$9:$E$58,2,FALSE)=0,\"\",VLOOKUP(O66,'Footnotes list'!$D$9:$E$58,2,FALSE) ) )","v":""},null,null,null,null,{"$f":"IF(TRIM(T66)=\"\", \"\", IF(VLOOKUP(T66,'Footnotes list'!$D$9:$E$58,2,FALSE)=0,\"\",VLOOKUP(T66,'Footnotes list'!$D$9:$E$58,2,FALSE) ) )","v":""},null,null,null,null,{"$f":"IF(TRIM(Y66)=\"\", \"\", IF(VLOOKUP(Y66,'Footnotes list'!$D$9:$E$58,2,FALSE)=0,\"\",VLOOKUP(Y66,'Footnotes list'!$D$9:$E$58,2,FALSE) ) )","v":""},null,null,null,null,{"$f":"IF(TRIM(AD66)=\"\", \"\", IF(VLOOKUP(AD66,'Footnotes list'!$D$9:$E$58,2,FALSE)=0,\"\",VLOOKUP(AD66,'Footnotes list'!$D$9:$E$58,2,FALSE) ) )","v":""},null,null,null,null,{"$f":"IF(TRIM(AI66)=\"\", \"\", IF(VLOOKUP(AI66,'Footnotes list'!$D$9:$E$58,2,FALSE)=0,\"\",VLOOKUP(AI66,'Footnotes list'!$D$9:$E$58,2,FALSE) ) )","v":""},null,null,null,null,{"$f":"IF(TRIM(AN66)=\"\", \"\", IF(VLOOKUP(AN66,'Footnotes list'!$D$9:$E$58,2,FALSE)=0,\"\",VLOOKUP(AN66,'Footnotes list'!$D$9:$E$58,2,FALSE) ) )","v":""},null,null,null,null,{"$f":"IF(TRIM(AS66)=\"\", \"\", IF(VLOOKUP(AS66,'Footnotes list'!$D$9:$E$58,2,FALSE)=0,\"\",VLOOKUP(AS66,'Footnotes list'!$D$9:$E$58,2,FALSE) ) )","v":""},null,null,null,null,{"$f":"IF(TRIM(AX66)=\"\", \"\", IF(VLOOKUP(AX66,'Footnotes list'!$D$9:$E$58,2,FALSE)=0,\"\",VLOOKUP(AX66,'Footnotes list'!$D$9:$E$58,2,FALSE) ) )","v":""},null,null,null,null,{"$f":"IF(TRIM(BC66)=\"\", \"\", IF(VLOOKUP(BC66,'Footnotes list'!$D$9:$E$58,2,FALSE)=0,\"\",VLOOKUP(BC66,'Footnotes list'!$D$9:$E$58,2,FALSE) ) )","v":""},null,null,null,null,{"$f":"IF(TRIM(BH66)=\"\", \"\", IF(VLOOKUP(BH66,'Footnotes list'!$D$9:$E$58,2,FALSE)=0,\"\",VLOOKUP(BH66,'Footnotes list'!$D$9:$E$58,2,FALSE) ) )","v":""},null,null,null,null,{"$f":"IF(TRIM(BM66)=\"\", \"\", IF(VLOOKUP(BM66,'Footnotes list'!$D$9:$E$58,2,FALSE)=0,\"\",VLOOKUP(BM66,'Footnotes list'!$D$9:$E$58,2,FALSE) ) )","v":""},null,null,null,null,{"$f":"IF(TRIM(BR66)=\"\", \"\", IF(VLOOKUP(BR66,'Footnotes list'!$D$9:$E$58,2,FALSE)=0,\"\",VLOOKUP(BR66,'Footnotes list'!$D$9:$E$58,2,FALSE) ) )","v":""},null,null,null,null,{"$f":"IF(TRIM(BW66)=\"\", \"\", IF(VLOOKUP(BW66,'Footnotes list'!$D$9:$E$58,2,FALSE)=0,\"\",VLOOKUP(BW66,'Footnotes list'!$D$9:$E$58,2,FALSE) ) )","v":""},null,null,null,null,{"$f":"IF(TRIM(CB66)=\"\", \"\", IF(VLOOKUP(CB66,'Footnotes list'!$D$9:$E$58,2,FALSE)=0,\"\",VLOOKUP(CB66,'Footnotes list'!$D$9:$E$58,2,FALSE) ) )","v":""},null,null,null,null,{"$f":"IF(TRIM(CG66)=\"\", \"\", IF(VLOOKUP(CG66,'Footnotes list'!$D$9:$E$58,2,FALSE)=0,\"\",VLOOKUP(CG66,'Footnotes list'!$D$9:$E$58,2,FALSE) ) )","v":""},null,null,null,null,{"$f":"IF(TRIM(CL66)=\"\", \"\", IF(VLOOKUP(CL66,'Footnotes list'!$D$9:$E$58,2,FALSE)=0,\"\",VLOOKUP(CL66,'Footnotes list'!$D$9:$E$58,2,FALSE) ) )","v":""},null,null,null,null,{"$f":"IF(TRIM(CQ66)=\"\", \"\", IF(VLOOKUP(CQ66,'Footnotes list'!$D$9:$E$58,2,FALSE)=0,\"\",VLOOKUP(CQ66,'Footnotes list'!$D$9:$E$58,2,FALSE) ) )","v":""},null,null,null,null,{"$f":"IF(TRIM(CV66)=\"\", \"\", IF(VLOOKUP(CV66,'Footnotes list'!$D$9:$E$58,2,FALSE)=0,\"\",VLOOKUP(CV66,'Footnotes list'!$D$9:$E$58,2,FALSE) ) )","v":""},null,null,null,null,{"$f":"IF(TRIM(DA66)=\"\", \"\", IF(VLOOKUP(DA66,'Footnotes list'!$D$9:$E$58,2,FALSE)=0,\"\",VLOOKUP(DA66,'Footnotes list'!$D$9:$E$58,2,FALSE) ) )","v":""},null,null,null,null,{"$f":"IF(TRIM(DF66)=\"\", \"\", IF(VLOOKUP(DF66,'Footnotes list'!$D$9:$E$58,2,FALSE)=0,\"\",VLOOKUP(DF66,'Footnotes list'!$D$9:$E$58,2,FALSE) ) )","v":""},null,null,null,null,{"$f":"IF(TRIM(DK66)=\"\", \"\", IF(VLOOKUP(DK66,'Footnotes list'!$D$9:$E$58,2,FALSE)=0,\"\",VLOOKUP(DK66,'Footnotes list'!$D$9:$E$58,2,FALSE) ) )","v":""},null,null,null,null,{"$f":"IF(TRIM(DP66)=\"\", \"\", IF(VLOOKUP(DP66,'Footnotes list'!$D$9:$E$58,2,FALSE)=0,\"\",VLOOKUP(DP66,'Footnotes list'!$D$9:$E$58,2,FALSE) ) )","v":""},null,null,null,null,{"$f":"IF(TRIM(DU66)=\"\", \"\", IF(VLOOKUP(DU66,'Footnotes list'!$D$9:$E$58,2,FALSE)=0,\"\",VLOOKUP(DU66,'Footnotes list'!$D$9:$E$58,2,FALSE) ) )","v":""},null,null,null,null,{"$f":"IF(TRIM(DZ66)=\"\", \"\", IF(VLOOKUP(DZ66,'Footnotes list'!$D$9:$E$58,2,FALSE)=0,\"\",VLOOKUP(DZ66,'Footnotes list'!$D$9:$E$58,2,FALSE) ) )","v":""},null,null,null,null,{"$f":"IF(TRIM(EE66)=\"\", \"\", IF(VLOOKUP(EE66,'Footnotes list'!$D$9:$E$58,2,FALSE)=0,\"\",VLOOKUP(EE66,'Footnotes list'!$D$9:$E$58,2,FALSE) ) )","v":""},null,null,null,null,{"$f":"IF(TRIM(EJ66)=\"\", \"\", IF(VLOOKUP(EJ66,'Footnotes list'!$D$9:$E$58,2,FALSE)=0,\"\",VLOOKUP(EJ66,'Footnotes list'!$D$9:$E$58,2,FALSE) ) )","v":""},null,null,null,null,{"$f":"IF(TRIM(EO66)=\"\", \"\", IF(VLOOKUP(EO66,'Footnotes list'!$D$9:$E$58,2,FALSE)=0,\"\",VLOOKUP(EO66,'Footnotes list'!$D$9:$E$58,2,FALSE) ) )","v":""},null,null,null,null,{"$f":"IF(TRIM(ET66)=\"\", \"\", IF(VLOOKUP(ET66,'Footnotes list'!$D$9:$E$58,2,FALSE)=0,\"\",VLOOKUP(ET66,'Footnotes list'!$D$9:$E$58,2,FALSE) ) )","v":""},null,null,null,null,{"$f":"IF(TRIM(EY66)=\"\", \"\", IF(VLOOKUP(EY66,'Footnotes list'!$D$9:$E$58,2,FALSE)=0,\"\",VLOOKUP(EY66,'Footnotes list'!$D$9:$E$58,2,FALSE) ) )","v":""}]
[null,null,"C20","OWN_USE","activities for own final use",null,null,null,null,null,{"$f":"IF(TRIM(J67)=\"\", \"\", IF(VLOOKUP(J67,'Footnotes list'!$D$9:$E$58,2,FALSE)=0,\"\",VLOOKUP(J67,'Footnotes list'!$D$9:$E$58,2,FALSE) ) )","v":""},null,null,null,null,{"$f":"IF(TRIM(O67)=\"\", \"\", IF(VLOOKUP(O67,'Footnotes list'!$D$9:$E$58,2,FALSE)=0,\"\",VLOOKUP(O67,'Footnotes list'!$D$9:$E$58,2,FALSE) ) )","v":""},null,null,null,null,{"$f":"IF(TRIM(T67)=\"\", \"\", IF(VLOOKUP(T67,'Footnotes list'!$D$9:$E$58,2,FALSE)=0,\"\",VLOOKUP(T67,'Footnotes list'!$D$9:$E$58,2,FALSE) ) )","v":""},null,null,null,null,{"$f":"IF(TRIM(Y67)=\"\", \"\", IF(VLOOKUP(Y67,'Footnotes list'!$D$9:$E$58,2,FALSE)=0,\"\",VLOOKUP(Y67,'Footnotes list'!$D$9:$E$58,2,FALSE) ) )","v":""},null,null,null,null,{"$f":"IF(TRIM(AD67)=\"\", \"\", IF(VLOOKUP(AD67,'Footnotes list'!$D$9:$E$58,2,FALSE)=0,\"\",VLOOKUP(AD67,'Footnotes list'!$D$9:$E$58,2,FALSE) ) )","v":""},null,null,null,null,{"$f":"IF(TRIM(AI67)=\"\", \"\", IF(VLOOKUP(AI67,'Footnotes list'!$D$9:$E$58,2,FALSE)=0,\"\",VLOOKUP(AI67,'Footnotes list'!$D$9:$E$58,2,FALSE) ) )","v":""},null,null,null,null,{"$f":"IF(TRIM(AN67)=\"\", \"\", IF(VLOOKUP(AN67,'Footnotes list'!$D$9:$E$58,2,FALSE)=0,\"\",VLOOKUP(AN67,'Footnotes list'!$D$9:$E$58,2,FALSE) ) )","v":""},null,null,null,null,{"$f":"IF(TRIM(AS67)=\"\", \"\", IF(VLOOKUP(AS67,'Footnotes list'!$D$9:$E$58,2,FALSE)=0,\"\",VLOOKUP(AS67,'Footnotes list'!$D$9:$E$58,2,FALSE) ) )","v":""},null,null,null,null,{"$f":"IF(TRIM(AX67)=\"\", \"\", IF(VLOOKUP(AX67,'Footnotes list'!$D$9:$E$58,2,FALSE)=0,\"\",VLOOKUP(AX67,'Footnotes list'!$D$9:$E$58,2,FALSE) ) )","v":""},null,null,null,null,{"$f":"IF(TRIM(BC67)=\"\", \"\", IF(VLOOKUP(BC67,'Footnotes list'!$D$9:$E$58,2,FALSE)=0,\"\",VLOOKUP(BC67,'Footnotes list'!$D$9:$E$58,2,FALSE) ) )","v":""},null,null,null,null,{"$f":"IF(TRIM(BH67)=\"\", \"\", IF(VLOOKUP(BH67,'Footnotes list'!$D$9:$E$58,2,FALSE)=0,\"\",VLOOKUP(BH67,'Footnotes list'!$D$9:$E$58,2,FALSE) ) )","v":""},null,null,null,null,{"$f":"IF(TRIM(BM67)=\"\", \"\", IF(VLOOKUP(BM67,'Footnotes list'!$D$9:$E$58,2,FALSE)=0,\"\",VLOOKUP(BM67,'Footnotes list'!$D$9:$E$58,2,FALSE) ) )","v":""},null,null,null,null,{"$f":"IF(TRIM(BR67)=\"\", \"\", IF(VLOOKUP(BR67,'Footnotes list'!$D$9:$E$58,2,FALSE)=0,\"\",VLOOKUP(BR67,'Footnotes list'!$D$9:$E$58,2,FALSE) ) )","v":""},null,null,null,null,{"$f":"IF(TRIM(BW67)=\"\", \"\", IF(VLOOKUP(BW67,'Footnotes list'!$D$9:$E$58,2,FALSE)=0,\"\",VLOOKUP(BW67,'Footnotes list'!$D$9:$E$58,2,FALSE) ) )","v":""},null,null,null,null,{"$f":"IF(TRIM(CB67)=\"\", \"\", IF(VLOOKUP(CB67,'Footnotes list'!$D$9:$E$58,2,FALSE)=0,\"\",VLOOKUP(CB67,'Footnotes list'!$D$9:$E$58,2,FALSE) ) )","v":""},null,null,null,null,{"$f":"IF(TRIM(CG67)=\"\", \"\", IF(VLOOKUP(CG67,'Footnotes list'!$D$9:$E$58,2,FALSE)=0,\"\",VLOOKUP(CG67,'Footnotes list'!$D$9:$E$58,2,FALSE) ) )","v":""},null,null,null,null,{"$f":"IF(TRIM(CL67)=\"\", \"\", IF(VLOOKUP(CL67,'Footnotes list'!$D$9:$E$58,2,FALSE)=0,\"\",VLOOKUP(CL67,'Footnotes list'!$D$9:$E$58,2,FALSE) ) )","v":""},null,null,null,null,{"$f":"IF(TRIM(CQ67)=\"\", \"\", IF(VLOOKUP(CQ67,'Footnotes list'!$D$9:$E$58,2,FALSE)=0,\"\",VLOOKUP(CQ67,'Footnotes list'!$D$9:$E$58,2,FALSE) ) )","v":""},null,null,null,null,{"$f":"IF(TRIM(CV67)=\"\", \"\", IF(VLOOKUP(CV67,'Footnotes list'!$D$9:$E$58,2,FALSE)=0,\"\",VLOOKUP(CV67,'Footnotes list'!$D$9:$E$58,2,FALSE) ) )","v":""},null,null,null,null,{"$f":"IF(TRIM(DA67)=\"\", \"\", IF(VLOOKUP(DA67,'Footnotes list'!$D$9:$E$58,2,FALSE)=0,\"\",VLOOKUP(DA67,'Footnotes list'!$D$9:$E$58,2,FALSE) ) )","v":""},null,null,null,null,{"$f":"IF(TRIM(DF67)=\"\", \"\", IF(VLOOKUP(DF67,'Footnotes list'!$D$9:$E$58,2,FALSE)=0,\"\",VLOOKUP(DF67,'Footnotes list'!$D$9:$E$58,2,FALSE) ) )","v":""},null,null,null,null,{"$f":"IF(TRIM(DK67)=\"\", \"\", IF(VLOOKUP(DK67,'Footnotes list'!$D$9:$E$58,2,FALSE)=0,\"\",VLOOKUP(DK67,'Footnotes list'!$D$9:$E$58,2,FALSE) ) )","v":""},null,null,null,null,{"$f":"IF(TRIM(DP67)=\"\", \"\", IF(VLOOKUP(DP67,'Footnotes list'!$D$9:$E$58,2,FALSE)=0,\"\",VLOOKUP(DP67,'Footnotes list'!$D$9:$E$58,2,FALSE) ) )","v":""},null,null,null,null,{"$f":"IF(TRIM(DU67)=\"\", \"\", IF(VLOOKUP(DU67,'Footnotes list'!$D$9:$E$58,2,FALSE)=0,\"\",VLOOKUP(DU67,'Footnotes list'!$D$9:$E$58,2,FALSE) ) )","v":""},null,null,null,null,{"$f":"IF(TRIM(DZ67)=\"\", \"\", IF(VLOOKUP(DZ67,'Footnotes list'!$D$9:$E$58,2,FALSE)=0,\"\",VLOOKUP(DZ67,'Footnotes list'!$D$9:$E$58,2,FALSE) ) )","v":""},null,null,null,null,{"$f":"IF(TRIM(EE67)=\"\", \"\", IF(VLOOKUP(EE67,'Footnotes list'!$D$9:$E$58,2,FALSE)=0,\"\",VLOOKUP(EE67,'Footnotes list'!$D$9:$E$58,2,FALSE) ) )","v":""},null,null,null,null,{"$f":"IF(TRIM(EJ67)=\"\", \"\", IF(VLOOKUP(EJ67,'Footnotes list'!$D$9:$E$58,2,FALSE)=0,\"\",VLOOKUP(EJ67,'Footnotes list'!$D$9:$E$58,2,FALSE) ) )","v":""},null,null,null,null,{"$f":"IF(TRIM(EO67)=\"\", \"\", IF(VLOOKUP(EO67,'Footnotes list'!$D$9:$E$58,2,FALSE)=0,\"\",VLOOKUP(EO67,'Footnotes list'!$D$9:$E$58,2,FALSE) ) )","v":""},null,null,null,null,{"$f":"IF(TRIM(ET67)=\"\", \"\", IF(VLOOKUP(ET67,'Footnotes list'!$D$9:$E$58,2,FALSE)=0,\"\",VLOOKUP(ET67,'Footnotes list'!$D$9:$E$58,2,FALSE) ) )","v":""},null,null,null,null,{"$f":"IF(TRIM(EY67)=\"\", \"\", IF(VLOOKUP(EY67,'Footnotes list'!$D$9:$E$58,2,FALSE)=0,\"\",VLOOKUP(EY67,'Footnotes list'!$D$9:$E$58,2,FALSE) ) )","v":""}]
[null,null,"C20","MKT","market activities, including:",null,null,null,null,null,{"$f":"IF(TRIM(J68)=\"\", \"\", IF(VLOOKUP(J68,'Footnotes list'!$D$9:$E$58,2,FALSE)=0,\"\",VLOOKUP(J68,'Footnotes list'!$D$9:$E$58,2,FALSE) ) )","v":""},null,null,null,null,{"$f":"IF(TRIM(O68)=\"\", \"\", IF(VLOOKUP(O68,'Footnotes list'!$D$9:$E$58,2,FALSE)=0,\"\",VLOOKUP(O68,'Footnotes list'!$D$9:$E$58,2,FALSE) ) )","v":""},null,null,null,null,{"$f":"IF(TRIM(T68)=\"\", \"\", IF(VLOOKUP(T68,'Footnotes list'!$D$9:$E$58,2,FALSE)=0,\"\",VLOOKUP(T68,'Footnotes list'!$D$9:$E$58,2,FALSE) ) )","v":""},null,null,null,null,{"$f":"IF(TRIM(Y68)=\"\", \"\", IF(VLOOKUP(Y68,'Footnotes list'!$D$9:$E$58,2,FALSE)=0,\"\",VLOOKUP(Y68,'Footnotes list'!$D$9:$E$58,2,FALSE) ) )","v":""},null,null,null,null,{"$f":"IF(TRIM(AD68)=\"\", \"\", IF(VLOOKUP(AD68,'Footnotes list'!$D$9:$E$58,2,FALSE)=0,\"\",VLOOKUP(AD68,'Footnotes list'!$D$9:$E$58,2,FALSE) ) )","v":""},null,null,null,null,{"$f":"IF(TRIM(AI68)=\"\", \"\", IF(VLOOKUP(AI68,'Footnotes list'!$D$9:$E$58,2,FALSE)=0,\"\",VLOOKUP(AI68,'Footnotes list'!$D$9:$E$58,2,FALSE) ) )","v":""},null,null,null,null,{"$f":"IF(TRIM(AN68)=\"\", \"\", IF(VLOOKUP(AN68,'Footnotes list'!$D$9:$E$58,2,FALSE)=0,\"\",VLOOKUP(AN68,'Footnotes list'!$D$9:$E$58,2,FALSE) ) )","v":""},null,null,null,null,{"$f":"IF(TRIM(AS68)=\"\", \"\", IF(VLOOKUP(AS68,'Footnotes list'!$D$9:$E$58,2,FALSE)=0,\"\",VLOOKUP(AS68,'Footnotes list'!$D$9:$E$58,2,FALSE) ) )","v":""},null,null,null,null,{"$f":"IF(TRIM(AX68)=\"\", \"\", IF(VLOOKUP(AX68,'Footnotes list'!$D$9:$E$58,2,FALSE)=0,\"\",VLOOKUP(AX68,'Footnotes list'!$D$9:$E$58,2,FALSE) ) )","v":""},null,null,null,null,{"$f":"IF(TRIM(BC68)=\"\", \"\", IF(VLOOKUP(BC68,'Footnotes list'!$D$9:$E$58,2,FALSE)=0,\"\",VLOOKUP(BC68,'Footnotes list'!$D$9:$E$58,2,FALSE) ) )","v":""},null,null,null,null,{"$f":"IF(TRIM(BH68)=\"\", \"\", IF(VLOOKUP(BH68,'Footnotes list'!$D$9:$E$58,2,FALSE)=0,\"\",VLOOKUP(BH68,'Footnotes list'!$D$9:$E$58,2,FALSE) ) )","v":""},null,null,null,null,{"$f":"IF(TRIM(BM68)=\"\", \"\", IF(VLOOKUP(BM68,'Footnotes list'!$D$9:$E$58,2,FALSE)=0,\"\",VLOOKUP(BM68,'Footnotes list'!$D$9:$E$58,2,FALSE) ) )","v":""},null,null,null,null,{"$f":"IF(TRIM(BR68)=\"\", \"\", IF(VLOOKUP(BR68,'Footnotes list'!$D$9:$E$58,2,FALSE)=0,\"\",VLOOKUP(BR68,'Footnotes list'!$D$9:$E$58,2,FALSE) ) )","v":""},null,null,null,null,{"$f":"IF(TRIM(BW68)=\"\", \"\", IF(VLOOKUP(BW68,'Footnotes list'!$D$9:$E$58,2,FALSE)=0,\"\",VLOOKUP(BW68,'Footnotes list'!$D$9:$E$58,2,FALSE) ) )","v":""},null,null,null,null,{"$f":"IF(TRIM(CB68)=\"\", \"\", IF(VLOOKUP(CB68,'Footnotes list'!$D$9:$E$58,2,FALSE)=0,\"\",VLOOKUP(CB68,'Footnotes list'!$D$9:$E$58,2,FALSE) ) )","v":""},null,null,null,null,{"$f":"IF(TRIM(CG68)=\"\", \"\", IF(VLOOKUP(CG68,'Footnotes list'!$D$9:$E$58,2,FALSE)=0,\"\",VLOOKUP(CG68,'Footnotes list'!$D$9:$E$58,2,FALSE) ) )","v":""},null,null,null,null,{"$f":"IF(TRIM(CL68)=\"\", \"\", IF(VLOOKUP(CL68,'Footnotes list'!$D$9:$E$58,2,FALSE)=0,\"\",VLOOKUP(CL68,'Footnotes list'!$D$9:$E$58,2,FALSE) ) )","v":""},null,null,null,null,{"$f":"IF(TRIM(CQ68)=\"\", \"\", IF(VLOOKUP(CQ68,'Footnotes list'!$D$9:$E$58,2,FALSE)=0,\"\",VLOOKUP(CQ68,'Footnotes list'!$D$9:$E$58,2,FALSE) ) )","v":""},null,null,null,null,{"$f":"IF(TRIM(CV68)=\"\", \"\", IF(VLOOKUP(CV68,'Footnotes list'!$D$9:$E$58,2,FALSE)=0,\"\",VLOOKUP(CV68,'Footnotes list'!$D$9:$E$58,2,FALSE) ) )","v":""},null,null,null,null,{"$f":"IF(TRIM(DA68)=\"\", \"\", IF(VLOOKUP(DA68,'Footnotes list'!$D$9:$E$58,2,FALSE)=0,\"\",VLOOKUP(DA68,'Footnotes list'!$D$9:$E$58,2,FALSE) ) )","v":""},null,null,null,null,{"$f":"IF(TRIM(DF68)=\"\", \"\", IF(VLOOKUP(DF68,'Footnotes list'!$D$9:$E$58,2,FALSE)=0,\"\",VLOOKUP(DF68,'Footnotes list'!$D$9:$E$58,2,FALSE) ) )","v":""},null,null,null,null,{"$f":"IF(TRIM(DK68)=\"\", \"\", IF(VLOOKUP(DK68,'Footnotes list'!$D$9:$E$58,2,FALSE)=0,\"\",VLOOKUP(DK68,'Footnotes list'!$D$9:$E$58,2,FALSE) ) )","v":""},null,null,null,null,{"$f":"IF(TRIM(DP68)=\"\", \"\", IF(VLOOKUP(DP68,'Footnotes list'!$D$9:$E$58,2,FALSE)=0,\"\",VLOOKUP(DP68,'Footnotes list'!$D$9:$E$58,2,FALSE) ) )","v":""},null,null,null,null,{"$f":"IF(TRIM(DU68)=\"\", \"\", IF(VLOOKUP(DU68,'Footnotes list'!$D$9:$E$58,2,FALSE)=0,\"\",VLOOKUP(DU68,'Footnotes list'!$D$9:$E$58,2,FALSE) ) )","v":""},null,null,null,null,{"$f":"IF(TRIM(DZ68)=\"\", \"\", IF(VLOOKUP(DZ68,'Footnotes list'!$D$9:$E$58,2,FALSE)=0,\"\",VLOOKUP(DZ68,'Footnotes list'!$D$9:$E$58,2,FALSE) ) )","v":""},null,null,null,null,{"$f":"IF(TRIM(EE68)=\"\", \"\", IF(VLOOKUP(EE68,'Footnotes list'!$D$9:$E$58,2,FALSE)=0,\"\",VLOOKUP(EE68,'Footnotes list'!$D$9:$E$58,2,FALSE) ) )","v":""},null,null,null,null,{"$f":"IF(TRIM(EJ68)=\"\", \"\", IF(VLOOKUP(EJ68,'Footnotes list'!$D$9:$E$58,2,FALSE)=0,\"\",VLOOKUP(EJ68,'Footnotes list'!$D$9:$E$58,2,FALSE) ) )","v":""},null,null,null,null,{"$f":"IF(TRIM(EO68)=\"\", \"\", IF(VLOOKUP(EO68,'Footnotes list'!$D$9:$E$58,2,FALSE)=0,\"\",VLOOKUP(EO68,'Footnotes list'!$D$9:$E$58,2,FALSE) ) )","v":""},null,null,null,null,{"$f":"IF(TRIM(ET68)=\"\", \"\", IF(VLOOKUP(ET68,'Footnotes list'!$D$9:$E$58,2,FALSE)=0,\"\",VLOOKUP(ET68,'Footnotes list'!$D$9:$E$58,2,FALSE) ) )","v":""},null,null,null,null,{"$f":"IF(TRIM(EY68)=\"\", \"\", IF(VLOOKUP(EY68,'Footnotes list'!$D$9:$E$58,2,FALSE)=0,\"\",VLOOKUP(EY68,'Footnotes list'!$D$9:$E$58,2,FALSE) ) )","v":""}]
[null,null,"C20","ES_CS","environmental specific services",null,null,null,null,null,{"$f":"IF(TRIM(J69)=\"\", \"\", IF(VLOOKUP(J69,'Footnotes list'!$D$9:$E$58,2,FALSE)=0,\"\",VLOOKUP(J69,'Footnotes list'!$D$9:$E$58,2,FALSE) ) )","v":""},null,null,null,null,{"$f":"IF(TRIM(O69)=\"\", \"\", IF(VLOOKUP(O69,'Footnotes list'!$D$9:$E$58,2,FALSE)=0,\"\",VLOOKUP(O69,'Footnotes list'!$D$9:$E$58,2,FALSE) ) )","v":""},null,null,null,null,{"$f":"IF(TRIM(T69)=\"\", \"\", IF(VLOOKUP(T69,'Footnotes list'!$D$9:$E$58,2,FALSE)=0,\"\",VLOOKUP(T69,'Footnotes list'!$D$9:$E$58,2,FALSE) ) )","v":""},null,null,null,null,{"$f":"IF(TRIM(Y69)=\"\", \"\", IF(VLOOKUP(Y69,'Footnotes list'!$D$9:$E$58,2,FALSE)=0,\"\",VLOOKUP(Y69,'Footnotes list'!$D$9:$E$58,2,FALSE) ) )","v":""},null,null,null,null,{"$f":"IF(TRIM(AD69)=\"\", \"\", IF(VLOOKUP(AD69,'Footnotes list'!$D$9:$E$58,2,FALSE)=0,\"\",VLOOKUP(AD69,'Footnotes list'!$D$9:$E$58,2,FALSE) ) )","v":""},null,null,null,null,{"$f":"IF(TRIM(AI69)=\"\", \"\", IF(VLOOKUP(AI69,'Footnotes list'!$D$9:$E$58,2,FALSE)=0,\"\",VLOOKUP(AI69,'Footnotes list'!$D$9:$E$58,2,FALSE) ) )","v":""},null,null,null,null,{"$f":"IF(TRIM(AN69)=\"\", \"\", IF(VLOOKUP(AN69,'Footnotes list'!$D$9:$E$58,2,FALSE)=0,\"\",VLOOKUP(AN69,'Footnotes list'!$D$9:$E$58,2,FALSE) ) )","v":""},null,null,null,null,{"$f":"IF(TRIM(AS69)=\"\", \"\", IF(VLOOKUP(AS69,'Footnotes list'!$D$9:$E$58,2,FALSE)=0,\"\",VLOOKUP(AS69,'Footnotes list'!$D$9:$E$58,2,FALSE) ) )","v":""},null,null,null,null,{"$f":"IF(TRIM(AX69)=\"\", \"\", IF(VLOOKUP(AX69,'Footnotes list'!$D$9:$E$58,2,FALSE)=0,\"\",VLOOKUP(AX69,'Footnotes list'!$D$9:$E$58,2,FALSE) ) )","v":""},null,null,null,null,{"$f":"IF(TRIM(BC69)=\"\", \"\", IF(VLOOKUP(BC69,'Footnotes list'!$D$9:$E$58,2,FALSE)=0,\"\",VLOOKUP(BC69,'Footnotes list'!$D$9:$E$58,2,FALSE) ) )","v":""},null,null,null,null,{"$f":"IF(TRIM(BH69)=\"\", \"\", IF(VLOOKUP(BH69,'Footnotes list'!$D$9:$E$58,2,FALSE)=0,\"\",VLOOKUP(BH69,'Footnotes list'!$D$9:$E$58,2,FALSE) ) )","v":""},null,null,null,null,{"$f":"IF(TRIM(BM69)=\"\", \"\", IF(VLOOKUP(BM69,'Footnotes list'!$D$9:$E$58,2,FALSE)=0,\"\",VLOOKUP(BM69,'Footnotes list'!$D$9:$E$58,2,FALSE) ) )","v":""},null,null,null,null,{"$f":"IF(TRIM(BR69)=\"\", \"\", IF(VLOOKUP(BR69,'Footnotes list'!$D$9:$E$58,2,FALSE)=0,\"\",VLOOKUP(BR69,'Footnotes list'!$D$9:$E$58,2,FALSE) ) )","v":""},null,null,null,null,{"$f":"IF(TRIM(BW69)=\"\", \"\", IF(VLOOKUP(BW69,'Footnotes list'!$D$9:$E$58,2,FALSE)=0,\"\",VLOOKUP(BW69,'Footnotes list'!$D$9:$E$58,2,FALSE) ) )","v":""},null,null,null,null,{"$f":"IF(TRIM(CB69)=\"\", \"\", IF(VLOOKUP(CB69,'Footnotes list'!$D$9:$E$58,2,FALSE)=0,\"\",VLOOKUP(CB69,'Footnotes list'!$D$9:$E$58,2,FALSE) ) )","v":""},null,null,null,null,{"$f":"IF(TRIM(CG69)=\"\", \"\", IF(VLOOKUP(CG69,'Footnotes list'!$D$9:$E$58,2,FALSE)=0,\"\",VLOOKUP(CG69,'Footnotes list'!$D$9:$E$58,2,FALSE) ) )","v":""},null,null,null,null,{"$f":"IF(TRIM(CL69)=\"\", \"\", IF(VLOOKUP(CL69,'Footnotes list'!$D$9:$E$58,2,FALSE)=0,\"\",VLOOKUP(CL69,'Footnotes list'!$D$9:$E$58,2,FALSE) ) )","v":""},null,null,null,null,{"$f":"IF(TRIM(CQ69)=\"\", \"\", IF(VLOOKUP(CQ69,'Footnotes list'!$D$9:$E$58,2,FALSE)=0,\"\",VLOOKUP(CQ69,'Footnotes list'!$D$9:$E$58,2,FALSE) ) )","v":""},null,null,null,null,{"$f":"IF(TRIM(CV69)=\"\", \"\", IF(VLOOKUP(CV69,'Footnotes list'!$D$9:$E$58,2,FALSE)=0,\"\",VLOOKUP(CV69,'Footnotes list'!$D$9:$E$58,2,FALSE) ) )","v":""},null,null,null,null,{"$f":"IF(TRIM(DA69)=\"\", \"\", IF(VLOOKUP(DA69,'Footnotes list'!$D$9:$E$58,2,FALSE)=0,\"\",VLOOKUP(DA69,'Footnotes list'!$D$9:$E$58,2,FALSE) ) )","v":""},null,null,null,null,{"$f":"IF(TRIM(DF69)=\"\", \"\", IF(VLOOKUP(DF69,'Footnotes list'!$D$9:$E$58,2,FALSE)=0,\"\",VLOOKUP(DF69,'Footnotes list'!$D$9:$E$58,2,FALSE) ) )","v":""},null,null,null,null,{"$f":"IF(TRIM(DK69)=\"\", \"\", IF(VLOOKUP(DK69,'Footnotes list'!$D$9:$E$58,2,FALSE)=0,\"\",VLOOKUP(DK69,'Footnotes list'!$D$9:$E$58,2,FALSE) ) )","v":""},null,null,null,null,{"$f":"IF(TRIM(DP69)=\"\", \"\", IF(VLOOKUP(DP69,'Footnotes list'!$D$9:$E$58,2,FALSE)=0,\"\",VLOOKUP(DP69,'Footnotes list'!$D$9:$E$58,2,FALSE) ) )","v":""},null,null,null,null,{"$f":"IF(TRIM(DU69)=\"\", \"\", IF(VLOOKUP(DU69,'Footnotes list'!$D$9:$E$58,2,FALSE)=0,\"\",VLOOKUP(DU69,'Footnotes list'!$D$9:$E$58,2,FALSE) ) )","v":""},null,null,null,null,{"$f":"IF(TRIM(DZ69)=\"\", \"\", IF(VLOOKUP(DZ69,'Footnotes list'!$D$9:$E$58,2,FALSE)=0,\"\",VLOOKUP(DZ69,'Footnotes list'!$D$9:$E$58,2,FALSE) ) )","v":""},null,null,null,null,{"$f":"IF(TRIM(EE69)=\"\", \"\", IF(VLOOKUP(EE69,'Footnotes list'!$D$9:$E$58,2,FALSE)=0,\"\",VLOOKUP(EE69,'Footnotes list'!$D$9:$E$58,2,FALSE) ) )","v":""},null,null,null,null,{"$f":"IF(TRIM(EJ69)=\"\", \"\", IF(VLOOKUP(EJ69,'Footnotes list'!$D$9:$E$58,2,FALSE)=0,\"\",VLOOKUP(EJ69,'Footnotes list'!$D$9:$E$58,2,FALSE) ) )","v":""},null,null,null,null,{"$f":"IF(TRIM(EO69)=\"\", \"\", IF(VLOOKUP(EO69,'Footnotes list'!$D$9:$E$58,2,FALSE)=0,\"\",VLOOKUP(EO69,'Footnotes list'!$D$9:$E$58,2,FALSE) ) )","v":""},null,null,null,null,{"$f":"IF(TRIM(ET69)=\"\", \"\", IF(VLOOKUP(ET69,'Footnotes list'!$D$9:$E$58,2,FALSE)=0,\"\",VLOOKUP(ET69,'Footnotes list'!$D$9:$E$58,2,FALSE) ) )","v":""},null,null,null,null,{"$f":"IF(TRIM(EY69)=\"\", \"\", IF(VLOOKUP(EY69,'Footnotes list'!$D$9:$E$58,2,FALSE)=0,\"\",VLOOKUP(EY69,'Footnotes list'!$D$9:$E$58,2,FALSE) ) )","v":""}]
[null,null,"C20","C_REP","cleaner and resource efficient products",null,null,null,null,null,{"$f":"IF(TRIM(J70)=\"\", \"\", IF(VLOOKUP(J70,'Footnotes list'!$D$9:$E$58,2,FALSE)=0,\"\",VLOOKUP(J70,'Footnotes list'!$D$9:$E$58,2,FALSE) ) )","v":""},null,null,null,null,{"$f":"IF(TRIM(O70)=\"\", \"\", IF(VLOOKUP(O70,'Footnotes list'!$D$9:$E$58,2,FALSE)=0,\"\",VLOOKUP(O70,'Footnotes list'!$D$9:$E$58,2,FALSE) ) )","v":""},null,null,null,null,{"$f":"IF(TRIM(T70)=\"\", \"\", IF(VLOOKUP(T70,'Footnotes list'!$D$9:$E$58,2,FALSE)=0,\"\",VLOOKUP(T70,'Footnotes list'!$D$9:$E$58,2,FALSE) ) )","v":""},null,null,null,null,{"$f":"IF(TRIM(Y70)=\"\", \"\", IF(VLOOKUP(Y70,'Footnotes list'!$D$9:$E$58,2,FALSE)=0,\"\",VLOOKUP(Y70,'Footnotes list'!$D$9:$E$58,2,FALSE) ) )","v":""},null,null,null,null,{"$f":"IF(TRIM(AD70)=\"\", \"\", IF(VLOOKUP(AD70,'Footnotes list'!$D$9:$E$58,2,FALSE)=0,\"\",VLOOKUP(AD70,'Footnotes list'!$D$9:$E$58,2,FALSE) ) )","v":""},null,null,null,null,{"$f":"IF(TRIM(AI70)=\"\", \"\", IF(VLOOKUP(AI70,'Footnotes list'!$D$9:$E$58,2,FALSE)=0,\"\",VLOOKUP(AI70,'Footnotes list'!$D$9:$E$58,2,FALSE) ) )","v":""},null,null,null,null,{"$f":"IF(TRIM(AN70)=\"\", \"\", IF(VLOOKUP(AN70,'Footnotes list'!$D$9:$E$58,2,FALSE)=0,\"\",VLOOKUP(AN70,'Footnotes list'!$D$9:$E$58,2,FALSE) ) )","v":""},null,null,null,null,{"$f":"IF(TRIM(AS70)=\"\", \"\", IF(VLOOKUP(AS70,'Footnotes list'!$D$9:$E$58,2,FALSE)=0,\"\",VLOOKUP(AS70,'Footnotes list'!$D$9:$E$58,2,FALSE) ) )","v":""},null,null,null,null,{"$f":"IF(TRIM(AX70)=\"\", \"\", IF(VLOOKUP(AX70,'Footnotes list'!$D$9:$E$58,2,FALSE)=0,\"\",VLOOKUP(AX70,'Footnotes list'!$D$9:$E$58,2,FALSE) ) )","v":""},null,null,null,null,{"$f":"IF(TRIM(BC70)=\"\", \"\", IF(VLOOKUP(BC70,'Footnotes list'!$D$9:$E$58,2,FALSE)=0,\"\",VLOOKUP(BC70,'Footnotes list'!$D$9:$E$58,2,FALSE) ) )","v":""},null,null,null,null,{"$f":"IF(TRIM(BH70)=\"\", \"\", IF(VLOOKUP(BH70,'Footnotes list'!$D$9:$E$58,2,FALSE)=0,\"\",VLOOKUP(BH70,'Footnotes list'!$D$9:$E$58,2,FALSE) ) )","v":""},null,null,null,null,{"$f":"IF(TRIM(BM70)=\"\", \"\", IF(VLOOKUP(BM70,'Footnotes list'!$D$9:$E$58,2,FALSE)=0,\"\",VLOOKUP(BM70,'Footnotes list'!$D$9:$E$58,2,FALSE) ) )","v":""},null,null,null,null,{"$f":"IF(TRIM(BR70)=\"\", \"\", IF(VLOOKUP(BR70,'Footnotes list'!$D$9:$E$58,2,FALSE)=0,\"\",VLOOKUP(BR70,'Footnotes list'!$D$9:$E$58,2,FALSE) ) )","v":""},null,null,null,null,{"$f":"IF(TRIM(BW70)=\"\", \"\", IF(VLOOKUP(BW70,'Footnotes list'!$D$9:$E$58,2,FALSE)=0,\"\",VLOOKUP(BW70,'Footnotes list'!$D$9:$E$58,2,FALSE) ) )","v":""},null,null,null,null,{"$f":"IF(TRIM(CB70)=\"\", \"\", IF(VLOOKUP(CB70,'Footnotes list'!$D$9:$E$58,2,FALSE)=0,\"\",VLOOKUP(CB70,'Footnotes list'!$D$9:$E$58,2,FALSE) ) )","v":""},null,null,null,null,{"$f":"IF(TRIM(CG70)=\"\", \"\", IF(VLOOKUP(CG70,'Footnotes list'!$D$9:$E$58,2,FALSE)=0,\"\",VLOOKUP(CG70,'Footnotes list'!$D$9:$E$58,2,FALSE) ) )","v":""},null,null,null,null,{"$f":"IF(TRIM(CL70)=\"\", \"\", IF(VLOOKUP(CL70,'Footnotes list'!$D$9:$E$58,2,FALSE)=0,\"\",VLOOKUP(CL70,'Footnotes list'!$D$9:$E$58,2,FALSE) ) )","v":""},null,null,null,null,{"$f":"IF(TRIM(CQ70)=\"\", \"\", IF(VLOOKUP(CQ70,'Footnotes list'!$D$9:$E$58,2,FALSE)=0,\"\",VLOOKUP(CQ70,'Footnotes list'!$D$9:$E$58,2,FALSE) ) )","v":""},null,null,null,null,{"$f":"IF(TRIM(CV70)=\"\", \"\", IF(VLOOKUP(CV70,'Footnotes list'!$D$9:$E$58,2,FALSE)=0,\"\",VLOOKUP(CV70,'Footnotes list'!$D$9:$E$58,2,FALSE) ) )","v":""},null,null,null,null,{"$f":"IF(TRIM(DA70)=\"\", \"\", IF(VLOOKUP(DA70,'Footnotes list'!$D$9:$E$58,2,FALSE)=0,\"\",VLOOKUP(DA70,'Footnotes list'!$D$9:$E$58,2,FALSE) ) )","v":""},null,null,null,null,{"$f":"IF(TRIM(DF70)=\"\", \"\", IF(VLOOKUP(DF70,'Footnotes list'!$D$9:$E$58,2,FALSE)=0,\"\",VLOOKUP(DF70,'Footnotes list'!$D$9:$E$58,2,FALSE) ) )","v":""},null,null,null,null,{"$f":"IF(TRIM(DK70)=\"\", \"\", IF(VLOOKUP(DK70,'Footnotes list'!$D$9:$E$58,2,FALSE)=0,\"\",VLOOKUP(DK70,'Footnotes list'!$D$9:$E$58,2,FALSE) ) )","v":""},null,null,null,null,{"$f":"IF(TRIM(DP70)=\"\", \"\", IF(VLOOKUP(DP70,'Footnotes list'!$D$9:$E$58,2,FALSE)=0,\"\",VLOOKUP(DP70,'Footnotes list'!$D$9:$E$58,2,FALSE) ) )","v":""},null,null,null,null,{"$f":"IF(TRIM(DU70)=\"\", \"\", IF(VLOOKUP(DU70,'Footnotes list'!$D$9:$E$58,2,FALSE)=0,\"\",VLOOKUP(DU70,'Footnotes list'!$D$9:$E$58,2,FALSE) ) )","v":""},null,null,null,null,{"$f":"IF(TRIM(DZ70)=\"\", \"\", IF(VLOOKUP(DZ70,'Footnotes list'!$D$9:$E$58,2,FALSE)=0,\"\",VLOOKUP(DZ70,'Footnotes list'!$D$9:$E$58,2,FALSE) ) )","v":""},null,null,null,null,{"$f":"IF(TRIM(EE70)=\"\", \"\", IF(VLOOKUP(EE70,'Footnotes list'!$D$9:$E$58,2,FALSE)=0,\"\",VLOOKUP(EE70,'Footnotes list'!$D$9:$E$58,2,FALSE) ) )","v":""},null,null,null,null,{"$f":"IF(TRIM(EJ70)=\"\", \"\", IF(VLOOKUP(EJ70,'Footnotes list'!$D$9:$E$58,2,FALSE)=0,\"\",VLOOKUP(EJ70,'Footnotes list'!$D$9:$E$58,2,FALSE) ) )","v":""},null,null,null,null,{"$f":"IF(TRIM(EO70)=\"\", \"\", IF(VLOOKUP(EO70,'Footnotes list'!$D$9:$E$58,2,FALSE)=0,\"\",VLOOKUP(EO70,'Footnotes list'!$D$9:$E$58,2,FALSE) ) )","v":""},null,null,null,null,{"$f":"IF(TRIM(ET70)=\"\", \"\", IF(VLOOKUP(ET70,'Footnotes list'!$D$9:$E$58,2,FALSE)=0,\"\",VLOOKUP(ET70,'Footnotes list'!$D$9:$E$58,2,FALSE) ) )","v":""},null,null,null,null,{"$f":"IF(TRIM(EY70)=\"\", \"\", IF(VLOOKUP(EY70,'Footnotes list'!$D$9:$E$58,2,FALSE)=0,\"\",VLOOKUP(EY70,'Footnotes list'!$D$9:$E$58,2,FALSE) ) )","v":""}]
[null,null,"C21","TOT_EGSS","Total C21 - Manufacture of basic pharmaceutical products and pharmaceutical preparations, of which:",null,null,null,null,null,{"$f":"IF(TRIM(J71)=\"\", \"\", IF(VLOOKUP(J71,'Footnotes list'!$D$9:$E$58,2,FALSE)=0,\"\",VLOOKUP(J71,'Footnotes list'!$D$9:$E$58,2,FALSE) ) )","v":""},null,null,null,null,{"$f":"IF(TRIM(O71)=\"\", \"\", IF(VLOOKUP(O71,'Footnotes list'!$D$9:$E$58,2,FALSE)=0,\"\",VLOOKUP(O71,'Footnotes list'!$D$9:$E$58,2,FALSE) ) )","v":""},null,null,null,null,{"$f":"IF(TRIM(T71)=\"\", \"\", IF(VLOOKUP(T71,'Footnotes list'!$D$9:$E$58,2,FALSE)=0,\"\",VLOOKUP(T71,'Footnotes list'!$D$9:$E$58,2,FALSE) ) )","v":""},null,null,null,null,{"$f":"IF(TRIM(Y71)=\"\", \"\", IF(VLOOKUP(Y71,'Footnotes list'!$D$9:$E$58,2,FALSE)=0,\"\",VLOOKUP(Y71,'Footnotes list'!$D$9:$E$58,2,FALSE) ) )","v":""},null,null,null,null,{"$f":"IF(TRIM(AD71)=\"\", \"\", IF(VLOOKUP(AD71,'Footnotes list'!$D$9:$E$58,2,FALSE)=0,\"\",VLOOKUP(AD71,'Footnotes list'!$D$9:$E$58,2,FALSE) ) )","v":""},null,null,null,null,{"$f":"IF(TRIM(AI71)=\"\", \"\", IF(VLOOKUP(AI71,'Footnotes list'!$D$9:$E$58,2,FALSE)=0,\"\",VLOOKUP(AI71,'Footnotes list'!$D$9:$E$58,2,FALSE) ) )","v":""},null,null,null,null,{"$f":"IF(TRIM(AN71)=\"\", \"\", IF(VLOOKUP(AN71,'Footnotes list'!$D$9:$E$58,2,FALSE)=0,\"\",VLOOKUP(AN71,'Footnotes list'!$D$9:$E$58,2,FALSE) ) )","v":""},null,null,null,null,{"$f":"IF(TRIM(AS71)=\"\", \"\", IF(VLOOKUP(AS71,'Footnotes list'!$D$9:$E$58,2,FALSE)=0,\"\",VLOOKUP(AS71,'Footnotes list'!$D$9:$E$58,2,FALSE) ) )","v":""},null,null,null,null,{"$f":"IF(TRIM(AX71)=\"\", \"\", IF(VLOOKUP(AX71,'Footnotes list'!$D$9:$E$58,2,FALSE)=0,\"\",VLOOKUP(AX71,'Footnotes list'!$D$9:$E$58,2,FALSE) ) )","v":""},null,null,null,null,{"$f":"IF(TRIM(BC71)=\"\", \"\", IF(VLOOKUP(BC71,'Footnotes list'!$D$9:$E$58,2,FALSE)=0,\"\",VLOOKUP(BC71,'Footnotes list'!$D$9:$E$58,2,FALSE) ) )","v":""},null,null,null,null,{"$f":"IF(TRIM(BH71)=\"\", \"\", IF(VLOOKUP(BH71,'Footnotes list'!$D$9:$E$58,2,FALSE)=0,\"\",VLOOKUP(BH71,'Footnotes list'!$D$9:$E$58,2,FALSE) ) )","v":""},null,null,null,null,{"$f":"IF(TRIM(BM71)=\"\", \"\", IF(VLOOKUP(BM71,'Footnotes list'!$D$9:$E$58,2,FALSE)=0,\"\",VLOOKUP(BM71,'Footnotes list'!$D$9:$E$58,2,FALSE) ) )","v":""},null,null,null,null,{"$f":"IF(TRIM(BR71)=\"\", \"\", IF(VLOOKUP(BR71,'Footnotes list'!$D$9:$E$58,2,FALSE)=0,\"\",VLOOKUP(BR71,'Footnotes list'!$D$9:$E$58,2,FALSE) ) )","v":""},null,null,null,null,{"$f":"IF(TRIM(BW71)=\"\", \"\", IF(VLOOKUP(BW71,'Footnotes list'!$D$9:$E$58,2,FALSE)=0,\"\",VLOOKUP(BW71,'Footnotes list'!$D$9:$E$58,2,FALSE) ) )","v":""},null,null,null,null,{"$f":"IF(TRIM(CB71)=\"\", \"\", IF(VLOOKUP(CB71,'Footnotes list'!$D$9:$E$58,2,FALSE)=0,\"\",VLOOKUP(CB71,'Footnotes list'!$D$9:$E$58,2,FALSE) ) )","v":""},null,null,null,null,{"$f":"IF(TRIM(CG71)=\"\", \"\", IF(VLOOKUP(CG71,'Footnotes list'!$D$9:$E$58,2,FALSE)=0,\"\",VLOOKUP(CG71,'Footnotes list'!$D$9:$E$58,2,FALSE) ) )","v":""},null,null,null,null,{"$f":"IF(TRIM(CL71)=\"\", \"\", IF(VLOOKUP(CL71,'Footnotes list'!$D$9:$E$58,2,FALSE)=0,\"\",VLOOKUP(CL71,'Footnotes list'!$D$9:$E$58,2,FALSE) ) )","v":""},null,null,null,null,{"$f":"IF(TRIM(CQ71)=\"\", \"\", IF(VLOOKUP(CQ71,'Footnotes list'!$D$9:$E$58,2,FALSE)=0,\"\",VLOOKUP(CQ71,'Footnotes list'!$D$9:$E$58,2,FALSE) ) )","v":""},null,null,null,null,{"$f":"IF(TRIM(CV71)=\"\", \"\", IF(VLOOKUP(CV71,'Footnotes list'!$D$9:$E$58,2,FALSE)=0,\"\",VLOOKUP(CV71,'Footnotes list'!$D$9:$E$58,2,FALSE) ) )","v":""},null,null,null,null,{"$f":"IF(TRIM(DA71)=\"\", \"\", IF(VLOOKUP(DA71,'Footnotes list'!$D$9:$E$58,2,FALSE)=0,\"\",VLOOKUP(DA71,'Footnotes list'!$D$9:$E$58,2,FALSE) ) )","v":""},null,null,null,null,{"$f":"IF(TRIM(DF71)=\"\", \"\", IF(VLOOKUP(DF71,'Footnotes list'!$D$9:$E$58,2,FALSE)=0,\"\",VLOOKUP(DF71,'Footnotes list'!$D$9:$E$58,2,FALSE) ) )","v":""},null,null,null,null,{"$f":"IF(TRIM(DK71)=\"\", \"\", IF(VLOOKUP(DK71,'Footnotes list'!$D$9:$E$58,2,FALSE)=0,\"\",VLOOKUP(DK71,'Footnotes list'!$D$9:$E$58,2,FALSE) ) )","v":""},null,null,null,null,{"$f":"IF(TRIM(DP71)=\"\", \"\", IF(VLOOKUP(DP71,'Footnotes list'!$D$9:$E$58,2,FALSE)=0,\"\",VLOOKUP(DP71,'Footnotes list'!$D$9:$E$58,2,FALSE) ) )","v":""},null,null,null,null,{"$f":"IF(TRIM(DU71)=\"\", \"\", IF(VLOOKUP(DU71,'Footnotes list'!$D$9:$E$58,2,FALSE)=0,\"\",VLOOKUP(DU71,'Footnotes list'!$D$9:$E$58,2,FALSE) ) )","v":""},null,null,null,null,{"$f":"IF(TRIM(DZ71)=\"\", \"\", IF(VLOOKUP(DZ71,'Footnotes list'!$D$9:$E$58,2,FALSE)=0,\"\",VLOOKUP(DZ71,'Footnotes list'!$D$9:$E$58,2,FALSE) ) )","v":""},null,null,null,null,{"$f":"IF(TRIM(EE71)=\"\", \"\", IF(VLOOKUP(EE71,'Footnotes list'!$D$9:$E$58,2,FALSE)=0,\"\",VLOOKUP(EE71,'Footnotes list'!$D$9:$E$58,2,FALSE) ) )","v":""},null,null,null,null,{"$f":"IF(TRIM(EJ71)=\"\", \"\", IF(VLOOKUP(EJ71,'Footnotes list'!$D$9:$E$58,2,FALSE)=0,\"\",VLOOKUP(EJ71,'Footnotes list'!$D$9:$E$58,2,FALSE) ) )","v":""},null,null,null,null,{"$f":"IF(TRIM(EO71)=\"\", \"\", IF(VLOOKUP(EO71,'Footnotes list'!$D$9:$E$58,2,FALSE)=0,\"\",VLOOKUP(EO71,'Footnotes list'!$D$9:$E$58,2,FALSE) ) )","v":""},null,null,null,null,{"$f":"IF(TRIM(ET71)=\"\", \"\", IF(VLOOKUP(ET71,'Footnotes list'!$D$9:$E$58,2,FALSE)=0,\"\",VLOOKUP(ET71,'Footnotes list'!$D$9:$E$58,2,FALSE) ) )","v":""},null,null,null,null,{"$f":"IF(TRIM(EY71)=\"\", \"\", IF(VLOOKUP(EY71,'Footnotes list'!$D$9:$E$58,2,FALSE)=0,\"\",VLOOKUP(EY71,'Footnotes list'!$D$9:$E$58,2,FALSE) ) )","v":""}]
[null,null,"C21","ANC","ancillary activities",null,null,null,null,null,{"$f":"IF(TRIM(J72)=\"\", \"\", IF(VLOOKUP(J72,'Footnotes list'!$D$9:$E$58,2,FALSE)=0,\"\",VLOOKUP(J72,'Footnotes list'!$D$9:$E$58,2,FALSE) ) )","v":""},null,null,null,null,{"$f":"IF(TRIM(O72)=\"\", \"\", IF(VLOOKUP(O72,'Footnotes list'!$D$9:$E$58,2,FALSE)=0,\"\",VLOOKUP(O72,'Footnotes list'!$D$9:$E$58,2,FALSE) ) )","v":""},null,null,null,null,{"$f":"IF(TRIM(T72)=\"\", \"\", IF(VLOOKUP(T72,'Footnotes list'!$D$9:$E$58,2,FALSE)=0,\"\",VLOOKUP(T72,'Footnotes list'!$D$9:$E$58,2,FALSE) ) )","v":""},null,null,null,null,{"$f":"IF(TRIM(Y72)=\"\", \"\", IF(VLOOKUP(Y72,'Footnotes list'!$D$9:$E$58,2,FALSE)=0,\"\",VLOOKUP(Y72,'Footnotes list'!$D$9:$E$58,2,FALSE) ) )","v":""},null,null,null,null,{"$f":"IF(TRIM(AD72)=\"\", \"\", IF(VLOOKUP(AD72,'Footnotes list'!$D$9:$E$58,2,FALSE)=0,\"\",VLOOKUP(AD72,'Footnotes list'!$D$9:$E$58,2,FALSE) ) )","v":""},null,null,null,null,{"$f":"IF(TRIM(AI72)=\"\", \"\", IF(VLOOKUP(AI72,'Footnotes list'!$D$9:$E$58,2,FALSE)=0,\"\",VLOOKUP(AI72,'Footnotes list'!$D$9:$E$58,2,FALSE) ) )","v":""},null,null,null,null,{"$f":"IF(TRIM(AN72)=\"\", \"\", IF(VLOOKUP(AN72,'Footnotes list'!$D$9:$E$58,2,FALSE)=0,\"\",VLOOKUP(AN72,'Footnotes list'!$D$9:$E$58,2,FALSE) ) )","v":""},null,null,null,null,{"$f":"IF(TRIM(AS72)=\"\", \"\", IF(VLOOKUP(AS72,'Footnotes list'!$D$9:$E$58,2,FALSE)=0,\"\",VLOOKUP(AS72,'Footnotes list'!$D$9:$E$58,2,FALSE) ) )","v":""},null,null,null,null,{"$f":"IF(TRIM(AX72)=\"\", \"\", IF(VLOOKUP(AX72,'Footnotes list'!$D$9:$E$58,2,FALSE)=0,\"\",VLOOKUP(AX72,'Footnotes list'!$D$9:$E$58,2,FALSE) ) )","v":""},null,null,null,null,{"$f":"IF(TRIM(BC72)=\"\", \"\", IF(VLOOKUP(BC72,'Footnotes list'!$D$9:$E$58,2,FALSE)=0,\"\",VLOOKUP(BC72,'Footnotes list'!$D$9:$E$58,2,FALSE) ) )","v":""},null,null,null,null,{"$f":"IF(TRIM(BH72)=\"\", \"\", IF(VLOOKUP(BH72,'Footnotes list'!$D$9:$E$58,2,FALSE)=0,\"\",VLOOKUP(BH72,'Footnotes list'!$D$9:$E$58,2,FALSE) ) )","v":""},null,null,null,null,{"$f":"IF(TRIM(BM72)=\"\", \"\", IF(VLOOKUP(BM72,'Footnotes list'!$D$9:$E$58,2,FALSE)=0,\"\",VLOOKUP(BM72,'Footnotes list'!$D$9:$E$58,2,FALSE) ) )","v":""},null,null,null,null,{"$f":"IF(TRIM(BR72)=\"\", \"\", IF(VLOOKUP(BR72,'Footnotes list'!$D$9:$E$58,2,FALSE)=0,\"\",VLOOKUP(BR72,'Footnotes list'!$D$9:$E$58,2,FALSE) ) )","v":""},null,null,null,null,{"$f":"IF(TRIM(BW72)=\"\", \"\", IF(VLOOKUP(BW72,'Footnotes list'!$D$9:$E$58,2,FALSE)=0,\"\",VLOOKUP(BW72,'Footnotes list'!$D$9:$E$58,2,FALSE) ) )","v":""},null,null,null,null,{"$f":"IF(TRIM(CB72)=\"\", \"\", IF(VLOOKUP(CB72,'Footnotes list'!$D$9:$E$58,2,FALSE)=0,\"\",VLOOKUP(CB72,'Footnotes list'!$D$9:$E$58,2,FALSE) ) )","v":""},null,null,null,null,{"$f":"IF(TRIM(CG72)=\"\", \"\", IF(VLOOKUP(CG72,'Footnotes list'!$D$9:$E$58,2,FALSE)=0,\"\",VLOOKUP(CG72,'Footnotes list'!$D$9:$E$58,2,FALSE) ) )","v":""},null,null,null,null,{"$f":"IF(TRIM(CL72)=\"\", \"\", IF(VLOOKUP(CL72,'Footnotes list'!$D$9:$E$58,2,FALSE)=0,\"\",VLOOKUP(CL72,'Footnotes list'!$D$9:$E$58,2,FALSE) ) )","v":""},null,null,null,null,{"$f":"IF(TRIM(CQ72)=\"\", \"\", IF(VLOOKUP(CQ72,'Footnotes list'!$D$9:$E$58,2,FALSE)=0,\"\",VLOOKUP(CQ72,'Footnotes list'!$D$9:$E$58,2,FALSE) ) )","v":""},null,null,null,null,{"$f":"IF(TRIM(CV72)=\"\", \"\", IF(VLOOKUP(CV72,'Footnotes list'!$D$9:$E$58,2,FALSE)=0,\"\",VLOOKUP(CV72,'Footnotes list'!$D$9:$E$58,2,FALSE) ) )","v":""},null,null,null,null,{"$f":"IF(TRIM(DA72)=\"\", \"\", IF(VLOOKUP(DA72,'Footnotes list'!$D$9:$E$58,2,FALSE)=0,\"\",VLOOKUP(DA72,'Footnotes list'!$D$9:$E$58,2,FALSE) ) )","v":""},null,null,null,null,{"$f":"IF(TRIM(DF72)=\"\", \"\", IF(VLOOKUP(DF72,'Footnotes list'!$D$9:$E$58,2,FALSE)=0,\"\",VLOOKUP(DF72,'Footnotes list'!$D$9:$E$58,2,FALSE) ) )","v":""},null,null,null,null,{"$f":"IF(TRIM(DK72)=\"\", \"\", IF(VLOOKUP(DK72,'Footnotes list'!$D$9:$E$58,2,FALSE)=0,\"\",VLOOKUP(DK72,'Footnotes list'!$D$9:$E$58,2,FALSE) ) )","v":""},null,null,null,null,{"$f":"IF(TRIM(DP72)=\"\", \"\", IF(VLOOKUP(DP72,'Footnotes list'!$D$9:$E$58,2,FALSE)=0,\"\",VLOOKUP(DP72,'Footnotes list'!$D$9:$E$58,2,FALSE) ) )","v":""},null,null,null,null,{"$f":"IF(TRIM(DU72)=\"\", \"\", IF(VLOOKUP(DU72,'Footnotes list'!$D$9:$E$58,2,FALSE)=0,\"\",VLOOKUP(DU72,'Footnotes list'!$D$9:$E$58,2,FALSE) ) )","v":""},null,null,null,null,{"$f":"IF(TRIM(DZ72)=\"\", \"\", IF(VLOOKUP(DZ72,'Footnotes list'!$D$9:$E$58,2,FALSE)=0,\"\",VLOOKUP(DZ72,'Footnotes list'!$D$9:$E$58,2,FALSE) ) )","v":""},null,null,null,null,{"$f":"IF(TRIM(EE72)=\"\", \"\", IF(VLOOKUP(EE72,'Footnotes list'!$D$9:$E$58,2,FALSE)=0,\"\",VLOOKUP(EE72,'Footnotes list'!$D$9:$E$58,2,FALSE) ) )","v":""},null,null,null,null,{"$f":"IF(TRIM(EJ72)=\"\", \"\", IF(VLOOKUP(EJ72,'Footnotes list'!$D$9:$E$58,2,FALSE)=0,\"\",VLOOKUP(EJ72,'Footnotes list'!$D$9:$E$58,2,FALSE) ) )","v":""},null,null,null,null,{"$f":"IF(TRIM(EO72)=\"\", \"\", IF(VLOOKUP(EO72,'Footnotes list'!$D$9:$E$58,2,FALSE)=0,\"\",VLOOKUP(EO72,'Footnotes list'!$D$9:$E$58,2,FALSE) ) )","v":""},null,null,null,null,{"$f":"IF(TRIM(ET72)=\"\", \"\", IF(VLOOKUP(ET72,'Footnotes list'!$D$9:$E$58,2,FALSE)=0,\"\",VLOOKUP(ET72,'Footnotes list'!$D$9:$E$58,2,FALSE) ) )","v":""},null,null,null,null,{"$f":"IF(TRIM(EY72)=\"\", \"\", IF(VLOOKUP(EY72,'Footnotes list'!$D$9:$E$58,2,FALSE)=0,\"\",VLOOKUP(EY72,'Footnotes list'!$D$9:$E$58,2,FALSE) ) )","v":""}]
[null,null,"C21","NMKT","non-market activities",null,null,null,null,null,{"$f":"IF(TRIM(J73)=\"\", \"\", IF(VLOOKUP(J73,'Footnotes list'!$D$9:$E$58,2,FALSE)=0,\"\",VLOOKUP(J73,'Footnotes list'!$D$9:$E$58,2,FALSE) ) )","v":""},null,null,null,null,{"$f":"IF(TRIM(O73)=\"\", \"\", IF(VLOOKUP(O73,'Footnotes list'!$D$9:$E$58,2,FALSE)=0,\"\",VLOOKUP(O73,'Footnotes list'!$D$9:$E$58,2,FALSE) ) )","v":""},null,null,null,null,{"$f":"IF(TRIM(T73)=\"\", \"\", IF(VLOOKUP(T73,'Footnotes list'!$D$9:$E$58,2,FALSE)=0,\"\",VLOOKUP(T73,'Footnotes list'!$D$9:$E$58,2,FALSE) ) )","v":""},null,null,null,null,{"$f":"IF(TRIM(Y73)=\"\", \"\", IF(VLOOKUP(Y73,'Footnotes list'!$D$9:$E$58,2,FALSE)=0,\"\",VLOOKUP(Y73,'Footnotes list'!$D$9:$E$58,2,FALSE) ) )","v":""},null,null,null,null,{"$f":"IF(TRIM(AD73)=\"\", \"\", IF(VLOOKUP(AD73,'Footnotes list'!$D$9:$E$58,2,FALSE)=0,\"\",VLOOKUP(AD73,'Footnotes list'!$D$9:$E$58,2,FALSE) ) )","v":""},null,null,null,null,{"$f":"IF(TRIM(AI73)=\"\", \"\", IF(VLOOKUP(AI73,'Footnotes list'!$D$9:$E$58,2,FALSE)=0,\"\",VLOOKUP(AI73,'Footnotes list'!$D$9:$E$58,2,FALSE) ) )","v":""},null,null,null,null,{"$f":"IF(TRIM(AN73)=\"\", \"\", IF(VLOOKUP(AN73,'Footnotes list'!$D$9:$E$58,2,FALSE)=0,\"\",VLOOKUP(AN73,'Footnotes list'!$D$9:$E$58,2,FALSE) ) )","v":""},null,null,null,null,{"$f":"IF(TRIM(AS73)=\"\", \"\", IF(VLOOKUP(AS73,'Footnotes list'!$D$9:$E$58,2,FALSE)=0,\"\",VLOOKUP(AS73,'Footnotes list'!$D$9:$E$58,2,FALSE) ) )","v":""},null,null,null,null,{"$f":"IF(TRIM(AX73)=\"\", \"\", IF(VLOOKUP(AX73,'Footnotes list'!$D$9:$E$58,2,FALSE)=0,\"\",VLOOKUP(AX73,'Footnotes list'!$D$9:$E$58,2,FALSE) ) )","v":""},null,null,null,null,{"$f":"IF(TRIM(BC73)=\"\", \"\", IF(VLOOKUP(BC73,'Footnotes list'!$D$9:$E$58,2,FALSE)=0,\"\",VLOOKUP(BC73,'Footnotes list'!$D$9:$E$58,2,FALSE) ) )","v":""},null,null,null,null,{"$f":"IF(TRIM(BH73)=\"\", \"\", IF(VLOOKUP(BH73,'Footnotes list'!$D$9:$E$58,2,FALSE)=0,\"\",VLOOKUP(BH73,'Footnotes list'!$D$9:$E$58,2,FALSE) ) )","v":""},null,null,null,null,{"$f":"IF(TRIM(BM73)=\"\", \"\", IF(VLOOKUP(BM73,'Footnotes list'!$D$9:$E$58,2,FALSE)=0,\"\",VLOOKUP(BM73,'Footnotes list'!$D$9:$E$58,2,FALSE) ) )","v":""},null,null,null,null,{"$f":"IF(TRIM(BR73)=\"\", \"\", IF(VLOOKUP(BR73,'Footnotes list'!$D$9:$E$58,2,FALSE)=0,\"\",VLOOKUP(BR73,'Footnotes list'!$D$9:$E$58,2,FALSE) ) )","v":""},null,null,null,null,{"$f":"IF(TRIM(BW73)=\"\", \"\", IF(VLOOKUP(BW73,'Footnotes list'!$D$9:$E$58,2,FALSE)=0,\"\",VLOOKUP(BW73,'Footnotes list'!$D$9:$E$58,2,FALSE) ) )","v":""},null,null,null,null,{"$f":"IF(TRIM(CB73)=\"\", \"\", IF(VLOOKUP(CB73,'Footnotes list'!$D$9:$E$58,2,FALSE)=0,\"\",VLOOKUP(CB73,'Footnotes list'!$D$9:$E$58,2,FALSE) ) )","v":""},null,null,null,null,{"$f":"IF(TRIM(CG73)=\"\", \"\", IF(VLOOKUP(CG73,'Footnotes list'!$D$9:$E$58,2,FALSE)=0,\"\",VLOOKUP(CG73,'Footnotes list'!$D$9:$E$58,2,FALSE) ) )","v":""},null,null,null,null,{"$f":"IF(TRIM(CL73)=\"\", \"\", IF(VLOOKUP(CL73,'Footnotes list'!$D$9:$E$58,2,FALSE)=0,\"\",VLOOKUP(CL73,'Footnotes list'!$D$9:$E$58,2,FALSE) ) )","v":""},null,null,null,null,{"$f":"IF(TRIM(CQ73)=\"\", \"\", IF(VLOOKUP(CQ73,'Footnotes list'!$D$9:$E$58,2,FALSE)=0,\"\",VLOOKUP(CQ73,'Footnotes list'!$D$9:$E$58,2,FALSE) ) )","v":""},null,null,null,null,{"$f":"IF(TRIM(CV73)=\"\", \"\", IF(VLOOKUP(CV73,'Footnotes list'!$D$9:$E$58,2,FALSE)=0,\"\",VLOOKUP(CV73,'Footnotes list'!$D$9:$E$58,2,FALSE) ) )","v":""},null,null,null,null,{"$f":"IF(TRIM(DA73)=\"\", \"\", IF(VLOOKUP(DA73,'Footnotes list'!$D$9:$E$58,2,FALSE)=0,\"\",VLOOKUP(DA73,'Footnotes list'!$D$9:$E$58,2,FALSE) ) )","v":""},null,null,null,null,{"$f":"IF(TRIM(DF73)=\"\", \"\", IF(VLOOKUP(DF73,'Footnotes list'!$D$9:$E$58,2,FALSE)=0,\"\",VLOOKUP(DF73,'Footnotes list'!$D$9:$E$58,2,FALSE) ) )","v":""},null,null,null,null,{"$f":"IF(TRIM(DK73)=\"\", \"\", IF(VLOOKUP(DK73,'Footnotes list'!$D$9:$E$58,2,FALSE)=0,\"\",VLOOKUP(DK73,'Footnotes list'!$D$9:$E$58,2,FALSE) ) )","v":""},null,null,null,null,{"$f":"IF(TRIM(DP73)=\"\", \"\", IF(VLOOKUP(DP73,'Footnotes list'!$D$9:$E$58,2,FALSE)=0,\"\",VLOOKUP(DP73,'Footnotes list'!$D$9:$E$58,2,FALSE) ) )","v":""},null,null,null,null,{"$f":"IF(TRIM(DU73)=\"\", \"\", IF(VLOOKUP(DU73,'Footnotes list'!$D$9:$E$58,2,FALSE)=0,\"\",VLOOKUP(DU73,'Footnotes list'!$D$9:$E$58,2,FALSE) ) )","v":""},null,null,null,null,{"$f":"IF(TRIM(DZ73)=\"\", \"\", IF(VLOOKUP(DZ73,'Footnotes list'!$D$9:$E$58,2,FALSE)=0,\"\",VLOOKUP(DZ73,'Footnotes list'!$D$9:$E$58,2,FALSE) ) )","v":""},null,null,null,null,{"$f":"IF(TRIM(EE73)=\"\", \"\", IF(VLOOKUP(EE73,'Footnotes list'!$D$9:$E$58,2,FALSE)=0,\"\",VLOOKUP(EE73,'Footnotes list'!$D$9:$E$58,2,FALSE) ) )","v":""},null,null,null,null,{"$f":"IF(TRIM(EJ73)=\"\", \"\", IF(VLOOKUP(EJ73,'Footnotes list'!$D$9:$E$58,2,FALSE)=0,\"\",VLOOKUP(EJ73,'Footnotes list'!$D$9:$E$58,2,FALSE) ) )","v":""},null,null,null,null,{"$f":"IF(TRIM(EO73)=\"\", \"\", IF(VLOOKUP(EO73,'Footnotes list'!$D$9:$E$58,2,FALSE)=0,\"\",VLOOKUP(EO73,'Footnotes list'!$D$9:$E$58,2,FALSE) ) )","v":""},null,null,null,null,{"$f":"IF(TRIM(ET73)=\"\", \"\", IF(VLOOKUP(ET73,'Footnotes list'!$D$9:$E$58,2,FALSE)=0,\"\",VLOOKUP(ET73,'Footnotes list'!$D$9:$E$58,2,FALSE) ) )","v":""},null,null,null,null,{"$f":"IF(TRIM(EY73)=\"\", \"\", IF(VLOOKUP(EY73,'Footnotes list'!$D$9:$E$58,2,FALSE)=0,\"\",VLOOKUP(EY73,'Footnotes list'!$D$9:$E$58,2,FALSE) ) )","v":""}]
[null,null,"C21","OWN_USE","activities for own final use",null,null,null,null,null,{"$f":"IF(TRIM(J74)=\"\", \"\", IF(VLOOKUP(J74,'Footnotes list'!$D$9:$E$58,2,FALSE)=0,\"\",VLOOKUP(J74,'Footnotes list'!$D$9:$E$58,2,FALSE) ) )","v":""},null,null,null,null,{"$f":"IF(TRIM(O74)=\"\", \"\", IF(VLOOKUP(O74,'Footnotes list'!$D$9:$E$58,2,FALSE)=0,\"\",VLOOKUP(O74,'Footnotes list'!$D$9:$E$58,2,FALSE) ) )","v":""},null,null,null,null,{"$f":"IF(TRIM(T74)=\"\", \"\", IF(VLOOKUP(T74,'Footnotes list'!$D$9:$E$58,2,FALSE)=0,\"\",VLOOKUP(T74,'Footnotes list'!$D$9:$E$58,2,FALSE) ) )","v":""},null,null,null,null,{"$f":"IF(TRIM(Y74)=\"\", \"\", IF(VLOOKUP(Y74,'Footnotes list'!$D$9:$E$58,2,FALSE)=0,\"\",VLOOKUP(Y74,'Footnotes list'!$D$9:$E$58,2,FALSE) ) )","v":""},null,null,null,null,{"$f":"IF(TRIM(AD74)=\"\", \"\", IF(VLOOKUP(AD74,'Footnotes list'!$D$9:$E$58,2,FALSE)=0,\"\",VLOOKUP(AD74,'Footnotes list'!$D$9:$E$58,2,FALSE) ) )","v":""},null,null,null,null,{"$f":"IF(TRIM(AI74)=\"\", \"\", IF(VLOOKUP(AI74,'Footnotes list'!$D$9:$E$58,2,FALSE)=0,\"\",VLOOKUP(AI74,'Footnotes list'!$D$9:$E$58,2,FALSE) ) )","v":""},null,null,null,null,{"$f":"IF(TRIM(AN74)=\"\", \"\", IF(VLOOKUP(AN74,'Footnotes list'!$D$9:$E$58,2,FALSE)=0,\"\",VLOOKUP(AN74,'Footnotes list'!$D$9:$E$58,2,FALSE) ) )","v":""},null,null,null,null,{"$f":"IF(TRIM(AS74)=\"\", \"\", IF(VLOOKUP(AS74,'Footnotes list'!$D$9:$E$58,2,FALSE)=0,\"\",VLOOKUP(AS74,'Footnotes list'!$D$9:$E$58,2,FALSE) ) )","v":""},null,null,null,null,{"$f":"IF(TRIM(AX74)=\"\", \"\", IF(VLOOKUP(AX74,'Footnotes list'!$D$9:$E$58,2,FALSE)=0,\"\",VLOOKUP(AX74,'Footnotes list'!$D$9:$E$58,2,FALSE) ) )","v":""},null,null,null,null,{"$f":"IF(TRIM(BC74)=\"\", \"\", IF(VLOOKUP(BC74,'Footnotes list'!$D$9:$E$58,2,FALSE)=0,\"\",VLOOKUP(BC74,'Footnotes list'!$D$9:$E$58,2,FALSE) ) )","v":""},null,null,null,null,{"$f":"IF(TRIM(BH74)=\"\", \"\", IF(VLOOKUP(BH74,'Footnotes list'!$D$9:$E$58,2,FALSE)=0,\"\",VLOOKUP(BH74,'Footnotes list'!$D$9:$E$58,2,FALSE) ) )","v":""},null,null,null,null,{"$f":"IF(TRIM(BM74)=\"\", \"\", IF(VLOOKUP(BM74,'Footnotes list'!$D$9:$E$58,2,FALSE)=0,\"\",VLOOKUP(BM74,'Footnotes list'!$D$9:$E$58,2,FALSE) ) )","v":""},null,null,null,null,{"$f":"IF(TRIM(BR74)=\"\", \"\", IF(VLOOKUP(BR74,'Footnotes list'!$D$9:$E$58,2,FALSE)=0,\"\",VLOOKUP(BR74,'Footnotes list'!$D$9:$E$58,2,FALSE) ) )","v":""},null,null,null,null,{"$f":"IF(TRIM(BW74)=\"\", \"\", IF(VLOOKUP(BW74,'Footnotes list'!$D$9:$E$58,2,FALSE)=0,\"\",VLOOKUP(BW74,'Footnotes list'!$D$9:$E$58,2,FALSE) ) )","v":""},null,null,null,null,{"$f":"IF(TRIM(CB74)=\"\", \"\", IF(VLOOKUP(CB74,'Footnotes list'!$D$9:$E$58,2,FALSE)=0,\"\",VLOOKUP(CB74,'Footnotes list'!$D$9:$E$58,2,FALSE) ) )","v":""},null,null,null,null,{"$f":"IF(TRIM(CG74)=\"\", \"\", IF(VLOOKUP(CG74,'Footnotes list'!$D$9:$E$58,2,FALSE)=0,\"\",VLOOKUP(CG74,'Footnotes list'!$D$9:$E$58,2,FALSE) ) )","v":""},null,null,null,null,{"$f":"IF(TRIM(CL74)=\"\", \"\", IF(VLOOKUP(CL74,'Footnotes list'!$D$9:$E$58,2,FALSE)=0,\"\",VLOOKUP(CL74,'Footnotes list'!$D$9:$E$58,2,FALSE) ) )","v":""},null,null,null,null,{"$f":"IF(TRIM(CQ74)=\"\", \"\", IF(VLOOKUP(CQ74,'Footnotes list'!$D$9:$E$58,2,FALSE)=0,\"\",VLOOKUP(CQ74,'Footnotes list'!$D$9:$E$58,2,FALSE) ) )","v":""},null,null,null,null,{"$f":"IF(TRIM(CV74)=\"\", \"\", IF(VLOOKUP(CV74,'Footnotes list'!$D$9:$E$58,2,FALSE)=0,\"\",VLOOKUP(CV74,'Footnotes list'!$D$9:$E$58,2,FALSE) ) )","v":""},null,null,null,null,{"$f":"IF(TRIM(DA74)=\"\", \"\", IF(VLOOKUP(DA74,'Footnotes list'!$D$9:$E$58,2,FALSE)=0,\"\",VLOOKUP(DA74,'Footnotes list'!$D$9:$E$58,2,FALSE) ) )","v":""},null,null,null,null,{"$f":"IF(TRIM(DF74)=\"\", \"\", IF(VLOOKUP(DF74,'Footnotes list'!$D$9:$E$58,2,FALSE)=0,\"\",VLOOKUP(DF74,'Footnotes list'!$D$9:$E$58,2,FALSE) ) )","v":""},null,null,null,null,{"$f":"IF(TRIM(DK74)=\"\", \"\", IF(VLOOKUP(DK74,'Footnotes list'!$D$9:$E$58,2,FALSE)=0,\"\",VLOOKUP(DK74,'Footnotes list'!$D$9:$E$58,2,FALSE) ) )","v":""},null,null,null,null,{"$f":"IF(TRIM(DP74)=\"\", \"\", IF(VLOOKUP(DP74,'Footnotes list'!$D$9:$E$58,2,FALSE)=0,\"\",VLOOKUP(DP74,'Footnotes list'!$D$9:$E$58,2,FALSE) ) )","v":""},null,null,null,null,{"$f":"IF(TRIM(DU74)=\"\", \"\", IF(VLOOKUP(DU74,'Footnotes list'!$D$9:$E$58,2,FALSE)=0,\"\",VLOOKUP(DU74,'Footnotes list'!$D$9:$E$58,2,FALSE) ) )","v":""},null,null,null,null,{"$f":"IF(TRIM(DZ74)=\"\", \"\", IF(VLOOKUP(DZ74,'Footnotes list'!$D$9:$E$58,2,FALSE)=0,\"\",VLOOKUP(DZ74,'Footnotes list'!$D$9:$E$58,2,FALSE) ) )","v":""},null,null,null,null,{"$f":"IF(TRIM(EE74)=\"\", \"\", IF(VLOOKUP(EE74,'Footnotes list'!$D$9:$E$58,2,FALSE)=0,\"\",VLOOKUP(EE74,'Footnotes list'!$D$9:$E$58,2,FALSE) ) )","v":""},null,null,null,null,{"$f":"IF(TRIM(EJ74)=\"\", \"\", IF(VLOOKUP(EJ74,'Footnotes list'!$D$9:$E$58,2,FALSE)=0,\"\",VLOOKUP(EJ74,'Footnotes list'!$D$9:$E$58,2,FALSE) ) )","v":""},null,null,null,null,{"$f":"IF(TRIM(EO74)=\"\", \"\", IF(VLOOKUP(EO74,'Footnotes list'!$D$9:$E$58,2,FALSE)=0,\"\",VLOOKUP(EO74,'Footnotes list'!$D$9:$E$58,2,FALSE) ) )","v":""},null,null,null,null,{"$f":"IF(TRIM(ET74)=\"\", \"\", IF(VLOOKUP(ET74,'Footnotes list'!$D$9:$E$58,2,FALSE)=0,\"\",VLOOKUP(ET74,'Footnotes list'!$D$9:$E$58,2,FALSE) ) )","v":""},null,null,null,null,{"$f":"IF(TRIM(EY74)=\"\", \"\", IF(VLOOKUP(EY74,'Footnotes list'!$D$9:$E$58,2,FALSE)=0,\"\",VLOOKUP(EY74,'Footnotes list'!$D$9:$E$58,2,FALSE) ) )","v":""}]
[null,null,"C21","MKT","market activities, including:",null,null,null,null,null,{"$f":"IF(TRIM(J75)=\"\", \"\", IF(VLOOKUP(J75,'Footnotes list'!$D$9:$E$58,2,FALSE)=0,\"\",VLOOKUP(J75,'Footnotes list'!$D$9:$E$58,2,FALSE) ) )","v":""},null,null,null,null,{"$f":"IF(TRIM(O75)=\"\", \"\", IF(VLOOKUP(O75,'Footnotes list'!$D$9:$E$58,2,FALSE)=0,\"\",VLOOKUP(O75,'Footnotes list'!$D$9:$E$58,2,FALSE) ) )","v":""},null,null,null,null,{"$f":"IF(TRIM(T75)=\"\", \"\", IF(VLOOKUP(T75,'Footnotes list'!$D$9:$E$58,2,FALSE)=0,\"\",VLOOKUP(T75,'Footnotes list'!$D$9:$E$58,2,FALSE) ) )","v":""},null,null,null,null,{"$f":"IF(TRIM(Y75)=\"\", \"\", IF(VLOOKUP(Y75,'Footnotes list'!$D$9:$E$58,2,FALSE)=0,\"\",VLOOKUP(Y75,'Footnotes list'!$D$9:$E$58,2,FALSE) ) )","v":""},null,null,null,null,{"$f":"IF(TRIM(AD75)=\"\", \"\", IF(VLOOKUP(AD75,'Footnotes list'!$D$9:$E$58,2,FALSE)=0,\"\",VLOOKUP(AD75,'Footnotes list'!$D$9:$E$58,2,FALSE) ) )","v":""},null,null,null,null,{"$f":"IF(TRIM(AI75)=\"\", \"\", IF(VLOOKUP(AI75,'Footnotes list'!$D$9:$E$58,2,FALSE)=0,\"\",VLOOKUP(AI75,'Footnotes list'!$D$9:$E$58,2,FALSE) ) )","v":""},null,null,null,null,{"$f":"IF(TRIM(AN75)=\"\", \"\", IF(VLOOKUP(AN75,'Footnotes list'!$D$9:$E$58,2,FALSE)=0,\"\",VLOOKUP(AN75,'Footnotes list'!$D$9:$E$58,2,FALSE) ) )","v":""},null,null,null,null,{"$f":"IF(TRIM(AS75)=\"\", \"\", IF(VLOOKUP(AS75,'Footnotes list'!$D$9:$E$58,2,FALSE)=0,\"\",VLOOKUP(AS75,'Footnotes list'!$D$9:$E$58,2,FALSE) ) )","v":""},null,null,null,null,{"$f":"IF(TRIM(AX75)=\"\", \"\", IF(VLOOKUP(AX75,'Footnotes list'!$D$9:$E$58,2,FALSE)=0,\"\",VLOOKUP(AX75,'Footnotes list'!$D$9:$E$58,2,FALSE) ) )","v":""},null,null,null,null,{"$f":"IF(TRIM(BC75)=\"\", \"\", IF(VLOOKUP(BC75,'Footnotes list'!$D$9:$E$58,2,FALSE)=0,\"\",VLOOKUP(BC75,'Footnotes list'!$D$9:$E$58,2,FALSE) ) )","v":""},null,null,null,null,{"$f":"IF(TRIM(BH75)=\"\", \"\", IF(VLOOKUP(BH75,'Footnotes list'!$D$9:$E$58,2,FALSE)=0,\"\",VLOOKUP(BH75,'Footnotes list'!$D$9:$E$58,2,FALSE) ) )","v":""},null,null,null,null,{"$f":"IF(TRIM(BM75)=\"\", \"\", IF(VLOOKUP(BM75,'Footnotes list'!$D$9:$E$58,2,FALSE)=0,\"\",VLOOKUP(BM75,'Footnotes list'!$D$9:$E$58,2,FALSE) ) )","v":""},null,null,null,null,{"$f":"IF(TRIM(BR75)=\"\", \"\", IF(VLOOKUP(BR75,'Footnotes list'!$D$9:$E$58,2,FALSE)=0,\"\",VLOOKUP(BR75,'Footnotes list'!$D$9:$E$58,2,FALSE) ) )","v":""},null,null,null,null,{"$f":"IF(TRIM(BW75)=\"\", \"\", IF(VLOOKUP(BW75,'Footnotes list'!$D$9:$E$58,2,FALSE)=0,\"\",VLOOKUP(BW75,'Footnotes list'!$D$9:$E$58,2,FALSE) ) )","v":""},null,null,null,null,{"$f":"IF(TRIM(CB75)=\"\", \"\", IF(VLOOKUP(CB75,'Footnotes list'!$D$9:$E$58,2,FALSE)=0,\"\",VLOOKUP(CB75,'Footnotes list'!$D$9:$E$58,2,FALSE) ) )","v":""},null,null,null,null,{"$f":"IF(TRIM(CG75)=\"\", \"\", IF(VLOOKUP(CG75,'Footnotes list'!$D$9:$E$58,2,FALSE)=0,\"\",VLOOKUP(CG75,'Footnotes list'!$D$9:$E$58,2,FALSE) ) )","v":""},null,null,null,null,{"$f":"IF(TRIM(CL75)=\"\", \"\", IF(VLOOKUP(CL75,'Footnotes list'!$D$9:$E$58,2,FALSE)=0,\"\",VLOOKUP(CL75,'Footnotes list'!$D$9:$E$58,2,FALSE) ) )","v":""},null,null,null,null,{"$f":"IF(TRIM(CQ75)=\"\", \"\", IF(VLOOKUP(CQ75,'Footnotes list'!$D$9:$E$58,2,FALSE)=0,\"\",VLOOKUP(CQ75,'Footnotes list'!$D$9:$E$58,2,FALSE) ) )","v":""},null,null,null,null,{"$f":"IF(TRIM(CV75)=\"\", \"\", IF(VLOOKUP(CV75,'Footnotes list'!$D$9:$E$58,2,FALSE)=0,\"\",VLOOKUP(CV75,'Footnotes list'!$D$9:$E$58,2,FALSE) ) )","v":""},null,null,null,null,{"$f":"IF(TRIM(DA75)=\"\", \"\", IF(VLOOKUP(DA75,'Footnotes list'!$D$9:$E$58,2,FALSE)=0,\"\",VLOOKUP(DA75,'Footnotes list'!$D$9:$E$58,2,FALSE) ) )","v":""},null,null,null,null,{"$f":"IF(TRIM(DF75)=\"\", \"\", IF(VLOOKUP(DF75,'Footnotes list'!$D$9:$E$58,2,FALSE)=0,\"\",VLOOKUP(DF75,'Footnotes list'!$D$9:$E$58,2,FALSE) ) )","v":""},null,null,null,null,{"$f":"IF(TRIM(DK75)=\"\", \"\", IF(VLOOKUP(DK75,'Footnotes list'!$D$9:$E$58,2,FALSE)=0,\"\",VLOOKUP(DK75,'Footnotes list'!$D$9:$E$58,2,FALSE) ) )","v":""},null,null,null,null,{"$f":"IF(TRIM(DP75)=\"\", \"\", IF(VLOOKUP(DP75,'Footnotes list'!$D$9:$E$58,2,FALSE)=0,\"\",VLOOKUP(DP75,'Footnotes list'!$D$9:$E$58,2,FALSE) ) )","v":""},null,null,null,null,{"$f":"IF(TRIM(DU75)=\"\", \"\", IF(VLOOKUP(DU75,'Footnotes list'!$D$9:$E$58,2,FALSE)=0,\"\",VLOOKUP(DU75,'Footnotes list'!$D$9:$E$58,2,FALSE) ) )","v":""},null,null,null,null,{"$f":"IF(TRIM(DZ75)=\"\", \"\", IF(VLOOKUP(DZ75,'Footnotes list'!$D$9:$E$58,2,FALSE)=0,\"\",VLOOKUP(DZ75,'Footnotes list'!$D$9:$E$58,2,FALSE) ) )","v":""},null,null,null,null,{"$f":"IF(TRIM(EE75)=\"\", \"\", IF(VLOOKUP(EE75,'Footnotes list'!$D$9:$E$58,2,FALSE)=0,\"\",VLOOKUP(EE75,'Footnotes list'!$D$9:$E$58,2,FALSE) ) )","v":""},null,null,null,null,{"$f":"IF(TRIM(EJ75)=\"\", \"\", IF(VLOOKUP(EJ75,'Footnotes list'!$D$9:$E$58,2,FALSE)=0,\"\",VLOOKUP(EJ75,'Footnotes list'!$D$9:$E$58,2,FALSE) ) )","v":""},null,null,null,null,{"$f":"IF(TRIM(EO75)=\"\", \"\", IF(VLOOKUP(EO75,'Footnotes list'!$D$9:$E$58,2,FALSE)=0,\"\",VLOOKUP(EO75,'Footnotes list'!$D$9:$E$58,2,FALSE) ) )","v":""},null,null,null,null,{"$f":"IF(TRIM(ET75)=\"\", \"\", IF(VLOOKUP(ET75,'Footnotes list'!$D$9:$E$58,2,FALSE)=0,\"\",VLOOKUP(ET75,'Footnotes list'!$D$9:$E$58,2,FALSE) ) )","v":""},null,null,null,null,{"$f":"IF(TRIM(EY75)=\"\", \"\", IF(VLOOKUP(EY75,'Footnotes list'!$D$9:$E$58,2,FALSE)=0,\"\",VLOOKUP(EY75,'Footnotes list'!$D$9:$E$58,2,FALSE) ) )","v":""}]
[null,null,"C21","ES_CS","environmental specific services",null,null,null,null,null,{"$f":"IF(TRIM(J76)=\"\", \"\", IF(VLOOKUP(J76,'Footnotes list'!$D$9:$E$58,2,FALSE)=0,\"\",VLOOKUP(J76,'Footnotes list'!$D$9:$E$58,2,FALSE) ) )","v":""},null,null,null,null,{"$f":"IF(TRIM(O76)=\"\", \"\", IF(VLOOKUP(O76,'Footnotes list'!$D$9:$E$58,2,FALSE)=0,\"\",VLOOKUP(O76,'Footnotes list'!$D$9:$E$58,2,FALSE) ) )","v":""},null,null,null,null,{"$f":"IF(TRIM(T76)=\"\", \"\", IF(VLOOKUP(T76,'Footnotes list'!$D$9:$E$58,2,FALSE)=0,\"\",VLOOKUP(T76,'Footnotes list'!$D$9:$E$58,2,FALSE) ) )","v":""},null,null,null,null,{"$f":"IF(TRIM(Y76)=\"\", \"\", IF(VLOOKUP(Y76,'Footnotes list'!$D$9:$E$58,2,FALSE)=0,\"\",VLOOKUP(Y76,'Footnotes list'!$D$9:$E$58,2,FALSE) ) )","v":""},null,null,null,null,{"$f":"IF(TRIM(AD76)=\"\", \"\", IF(VLOOKUP(AD76,'Footnotes list'!$D$9:$E$58,2,FALSE)=0,\"\",VLOOKUP(AD76,'Footnotes list'!$D$9:$E$58,2,FALSE) ) )","v":""},null,null,null,null,{"$f":"IF(TRIM(AI76)=\"\", \"\", IF(VLOOKUP(AI76,'Footnotes list'!$D$9:$E$58,2,FALSE)=0,\"\",VLOOKUP(AI76,'Footnotes list'!$D$9:$E$58,2,FALSE) ) )","v":""},null,null,null,null,{"$f":"IF(TRIM(AN76)=\"\", \"\", IF(VLOOKUP(AN76,'Footnotes list'!$D$9:$E$58,2,FALSE)=0,\"\",VLOOKUP(AN76,'Footnotes list'!$D$9:$E$58,2,FALSE) ) )","v":""},null,null,null,null,{"$f":"IF(TRIM(AS76)=\"\", \"\", IF(VLOOKUP(AS76,'Footnotes list'!$D$9:$E$58,2,FALSE)=0,\"\",VLOOKUP(AS76,'Footnotes list'!$D$9:$E$58,2,FALSE) ) )","v":""},null,null,null,null,{"$f":"IF(TRIM(AX76)=\"\", \"\", IF(VLOOKUP(AX76,'Footnotes list'!$D$9:$E$58,2,FALSE)=0,\"\",VLOOKUP(AX76,'Footnotes list'!$D$9:$E$58,2,FALSE) ) )","v":""},null,null,null,null,{"$f":"IF(TRIM(BC76)=\"\", \"\", IF(VLOOKUP(BC76,'Footnotes list'!$D$9:$E$58,2,FALSE)=0,\"\",VLOOKUP(BC76,'Footnotes list'!$D$9:$E$58,2,FALSE) ) )","v":""},null,null,null,null,{"$f":"IF(TRIM(BH76)=\"\", \"\", IF(VLOOKUP(BH76,'Footnotes list'!$D$9:$E$58,2,FALSE)=0,\"\",VLOOKUP(BH76,'Footnotes list'!$D$9:$E$58,2,FALSE) ) )","v":""},null,null,null,null,{"$f":"IF(TRIM(BM76)=\"\", \"\", IF(VLOOKUP(BM76,'Footnotes list'!$D$9:$E$58,2,FALSE)=0,\"\",VLOOKUP(BM76,'Footnotes list'!$D$9:$E$58,2,FALSE) ) )","v":""},null,null,null,null,{"$f":"IF(TRIM(BR76)=\"\", \"\", IF(VLOOKUP(BR76,'Footnotes list'!$D$9:$E$58,2,FALSE)=0,\"\",VLOOKUP(BR76,'Footnotes list'!$D$9:$E$58,2,FALSE) ) )","v":""},null,null,null,null,{"$f":"IF(TRIM(BW76)=\"\", \"\", IF(VLOOKUP(BW76,'Footnotes list'!$D$9:$E$58,2,FALSE)=0,\"\",VLOOKUP(BW76,'Footnotes list'!$D$9:$E$58,2,FALSE) ) )","v":""},null,null,null,null,{"$f":"IF(TRIM(CB76)=\"\", \"\", IF(VLOOKUP(CB76,'Footnotes list'!$D$9:$E$58,2,FALSE)=0,\"\",VLOOKUP(CB76,'Footnotes list'!$D$9:$E$58,2,FALSE) ) )","v":""},null,null,null,null,{"$f":"IF(TRIM(CG76)=\"\", \"\", IF(VLOOKUP(CG76,'Footnotes list'!$D$9:$E$58,2,FALSE)=0,\"\",VLOOKUP(CG76,'Footnotes list'!$D$9:$E$58,2,FALSE) ) )","v":""},null,null,null,null,{"$f":"IF(TRIM(CL76)=\"\", \"\", IF(VLOOKUP(CL76,'Footnotes list'!$D$9:$E$58,2,FALSE)=0,\"\",VLOOKUP(CL76,'Footnotes list'!$D$9:$E$58,2,FALSE) ) )","v":""},null,null,null,null,{"$f":"IF(TRIM(CQ76)=\"\", \"\", IF(VLOOKUP(CQ76,'Footnotes list'!$D$9:$E$58,2,FALSE)=0,\"\",VLOOKUP(CQ76,'Footnotes list'!$D$9:$E$58,2,FALSE) ) )","v":""},null,null,null,null,{"$f":"IF(TRIM(CV76)=\"\", \"\", IF(VLOOKUP(CV76,'Footnotes list'!$D$9:$E$58,2,FALSE)=0,\"\",VLOOKUP(CV76,'Footnotes list'!$D$9:$E$58,2,FALSE) ) )","v":""},null,null,null,null,{"$f":"IF(TRIM(DA76)=\"\", \"\", IF(VLOOKUP(DA76,'Footnotes list'!$D$9:$E$58,2,FALSE)=0,\"\",VLOOKUP(DA76,'Footnotes list'!$D$9:$E$58,2,FALSE) ) )","v":""},null,null,null,null,{"$f":"IF(TRIM(DF76)=\"\", \"\", IF(VLOOKUP(DF76,'Footnotes list'!$D$9:$E$58,2,FALSE)=0,\"\",VLOOKUP(DF76,'Footnotes list'!$D$9:$E$58,2,FALSE) ) )","v":""},null,null,null,null,{"$f":"IF(TRIM(DK76)=\"\", \"\", IF(VLOOKUP(DK76,'Footnotes list'!$D$9:$E$58,2,FALSE)=0,\"\",VLOOKUP(DK76,'Footnotes list'!$D$9:$E$58,2,FALSE) ) )","v":""},null,null,null,null,{"$f":"IF(TRIM(DP76)=\"\", \"\", IF(VLOOKUP(DP76,'Footnotes list'!$D$9:$E$58,2,FALSE)=0,\"\",VLOOKUP(DP76,'Footnotes list'!$D$9:$E$58,2,FALSE) ) )","v":""},null,null,null,null,{"$f":"IF(TRIM(DU76)=\"\", \"\", IF(VLOOKUP(DU76,'Footnotes list'!$D$9:$E$58,2,FALSE)=0,\"\",VLOOKUP(DU76,'Footnotes list'!$D$9:$E$58,2,FALSE) ) )","v":""},null,null,null,null,{"$f":"IF(TRIM(DZ76)=\"\", \"\", IF(VLOOKUP(DZ76,'Footnotes list'!$D$9:$E$58,2,FALSE)=0,\"\",VLOOKUP(DZ76,'Footnotes list'!$D$9:$E$58,2,FALSE) ) )","v":""},null,null,null,null,{"$f":"IF(TRIM(EE76)=\"\", \"\", IF(VLOOKUP(EE76,'Footnotes list'!$D$9:$E$58,2,FALSE)=0,\"\",VLOOKUP(EE76,'Footnotes list'!$D$9:$E$58,2,FALSE) ) )","v":""},null,null,null,null,{"$f":"IF(TRIM(EJ76)=\"\", \"\", IF(VLOOKUP(EJ76,'Footnotes list'!$D$9:$E$58,2,FALSE)=0,\"\",VLOOKUP(EJ76,'Footnotes list'!$D$9:$E$58,2,FALSE) ) )","v":""},null,null,null,null,{"$f":"IF(TRIM(EO76)=\"\", \"\", IF(VLOOKUP(EO76,'Footnotes list'!$D$9:$E$58,2,FALSE)=0,\"\",VLOOKUP(EO76,'Footnotes list'!$D$9:$E$58,2,FALSE) ) )","v":""},null,null,null,null,{"$f":"IF(TRIM(ET76)=\"\", \"\", IF(VLOOKUP(ET76,'Footnotes list'!$D$9:$E$58,2,FALSE)=0,\"\",VLOOKUP(ET76,'Footnotes list'!$D$9:$E$58,2,FALSE) ) )","v":""},null,null,null,null,{"$f":"IF(TRIM(EY76)=\"\", \"\", IF(VLOOKUP(EY76,'Footnotes list'!$D$9:$E$58,2,FALSE)=0,\"\",VLOOKUP(EY76,'Footnotes list'!$D$9:$E$58,2,FALSE) ) )","v":""}]
[null,null,"C21","C_REP","cleaner and resource efficient products",null,null,null,null,null,{"$f":"IF(TRIM(J77)=\"\", \"\", IF(VLOOKUP(J77,'Footnotes list'!$D$9:$E$58,2,FALSE)=0,\"\",VLOOKUP(J77,'Footnotes list'!$D$9:$E$58,2,FALSE) ) )","v":""},null,null,null,null,{"$f":"IF(TRIM(O77)=\"\", \"\", IF(VLOOKUP(O77,'Footnotes list'!$D$9:$E$58,2,FALSE)=0,\"\",VLOOKUP(O77,'Footnotes list'!$D$9:$E$58,2,FALSE) ) )","v":""},null,null,null,null,{"$f":"IF(TRIM(T77)=\"\", \"\", IF(VLOOKUP(T77,'Footnotes list'!$D$9:$E$58,2,FALSE)=0,\"\",VLOOKUP(T77,'Footnotes list'!$D$9:$E$58,2,FALSE) ) )","v":""},null,null,null,null,{"$f":"IF(TRIM(Y77)=\"\", \"\", IF(VLOOKUP(Y77,'Footnotes list'!$D$9:$E$58,2,FALSE)=0,\"\",VLOOKUP(Y77,'Footnotes list'!$D$9:$E$58,2,FALSE) ) )","v":""},null,null,null,null,{"$f":"IF(TRIM(AD77)=\"\", \"\", IF(VLOOKUP(AD77,'Footnotes list'!$D$9:$E$58,2,FALSE)=0,\"\",VLOOKUP(AD77,'Footnotes list'!$D$9:$E$58,2,FALSE) ) )","v":""},null,null,null,null,{"$f":"IF(TRIM(AI77)=\"\", \"\", IF(VLOOKUP(AI77,'Footnotes list'!$D$9:$E$58,2,FALSE)=0,\"\",VLOOKUP(AI77,'Footnotes list'!$D$9:$E$58,2,FALSE) ) )","v":""},null,null,null,null,{"$f":"IF(TRIM(AN77)=\"\", \"\", IF(VLOOKUP(AN77,'Footnotes list'!$D$9:$E$58,2,FALSE)=0,\"\",VLOOKUP(AN77,'Footnotes list'!$D$9:$E$58,2,FALSE) ) )","v":""},null,null,null,null,{"$f":"IF(TRIM(AS77)=\"\", \"\", IF(VLOOKUP(AS77,'Footnotes list'!$D$9:$E$58,2,FALSE)=0,\"\",VLOOKUP(AS77,'Footnotes list'!$D$9:$E$58,2,FALSE) ) )","v":""},null,null,null,null,{"$f":"IF(TRIM(AX77)=\"\", \"\", IF(VLOOKUP(AX77,'Footnotes list'!$D$9:$E$58,2,FALSE)=0,\"\",VLOOKUP(AX77,'Footnotes list'!$D$9:$E$58,2,FALSE) ) )","v":""},null,null,null,null,{"$f":"IF(TRIM(BC77)=\"\", \"\", IF(VLOOKUP(BC77,'Footnotes list'!$D$9:$E$58,2,FALSE)=0,\"\",VLOOKUP(BC77,'Footnotes list'!$D$9:$E$58,2,FALSE) ) )","v":""},null,null,null,null,{"$f":"IF(TRIM(BH77)=\"\", \"\", IF(VLOOKUP(BH77,'Footnotes list'!$D$9:$E$58,2,FALSE)=0,\"\",VLOOKUP(BH77,'Footnotes list'!$D$9:$E$58,2,FALSE) ) )","v":""},null,null,null,null,{"$f":"IF(TRIM(BM77)=\"\", \"\", IF(VLOOKUP(BM77,'Footnotes list'!$D$9:$E$58,2,FALSE)=0,\"\",VLOOKUP(BM77,'Footnotes list'!$D$9:$E$58,2,FALSE) ) )","v":""},null,null,null,null,{"$f":"IF(TRIM(BR77)=\"\", \"\", IF(VLOOKUP(BR77,'Footnotes list'!$D$9:$E$58,2,FALSE)=0,\"\",VLOOKUP(BR77,'Footnotes list'!$D$9:$E$58,2,FALSE) ) )","v":""},null,null,null,null,{"$f":"IF(TRIM(BW77)=\"\", \"\", IF(VLOOKUP(BW77,'Footnotes list'!$D$9:$E$58,2,FALSE)=0,\"\",VLOOKUP(BW77,'Footnotes list'!$D$9:$E$58,2,FALSE) ) )","v":""},null,null,null,null,{"$f":"IF(TRIM(CB77)=\"\", \"\", IF(VLOOKUP(CB77,'Footnotes list'!$D$9:$E$58,2,FALSE)=0,\"\",VLOOKUP(CB77,'Footnotes list'!$D$9:$E$58,2,FALSE) ) )","v":""},null,null,null,null,{"$f":"IF(TRIM(CG77)=\"\", \"\", IF(VLOOKUP(CG77,'Footnotes list'!$D$9:$E$58,2,FALSE)=0,\"\",VLOOKUP(CG77,'Footnotes list'!$D$9:$E$58,2,FALSE) ) )","v":""},null,null,null,null,{"$f":"IF(TRIM(CL77)=\"\", \"\", IF(VLOOKUP(CL77,'Footnotes list'!$D$9:$E$58,2,FALSE)=0,\"\",VLOOKUP(CL77,'Footnotes list'!$D$9:$E$58,2,FALSE) ) )","v":""},null,null,null,null,{"$f":"IF(TRIM(CQ77)=\"\", \"\", IF(VLOOKUP(CQ77,'Footnotes list'!$D$9:$E$58,2,FALSE)=0,\"\",VLOOKUP(CQ77,'Footnotes list'!$D$9:$E$58,2,FALSE) ) )","v":""},null,null,null,null,{"$f":"IF(TRIM(CV77)=\"\", \"\", IF(VLOOKUP(CV77,'Footnotes list'!$D$9:$E$58,2,FALSE)=0,\"\",VLOOKUP(CV77,'Footnotes list'!$D$9:$E$58,2,FALSE) ) )","v":""},null,null,null,null,{"$f":"IF(TRIM(DA77)=\"\", \"\", IF(VLOOKUP(DA77,'Footnotes list'!$D$9:$E$58,2,FALSE)=0,\"\",VLOOKUP(DA77,'Footnotes list'!$D$9:$E$58,2,FALSE) ) )","v":""},null,null,null,null,{"$f":"IF(TRIM(DF77)=\"\", \"\", IF(VLOOKUP(DF77,'Footnotes list'!$D$9:$E$58,2,FALSE)=0,\"\",VLOOKUP(DF77,'Footnotes list'!$D$9:$E$58,2,FALSE) ) )","v":""},null,null,null,null,{"$f":"IF(TRIM(DK77)=\"\", \"\", IF(VLOOKUP(DK77,'Footnotes list'!$D$9:$E$58,2,FALSE)=0,\"\",VLOOKUP(DK77,'Footnotes list'!$D$9:$E$58,2,FALSE) ) )","v":""},null,null,null,null,{"$f":"IF(TRIM(DP77)=\"\", \"\", IF(VLOOKUP(DP77,'Footnotes list'!$D$9:$E$58,2,FALSE)=0,\"\",VLOOKUP(DP77,'Footnotes list'!$D$9:$E$58,2,FALSE) ) )","v":""},null,null,null,null,{"$f":"IF(TRIM(DU77)=\"\", \"\", IF(VLOOKUP(DU77,'Footnotes list'!$D$9:$E$58,2,FALSE)=0,\"\",VLOOKUP(DU77,'Footnotes list'!$D$9:$E$58,2,FALSE) ) )","v":""},null,null,null,null,{"$f":"IF(TRIM(DZ77)=\"\", \"\", IF(VLOOKUP(DZ77,'Footnotes list'!$D$9:$E$58,2,FALSE)=0,\"\",VLOOKUP(DZ77,'Footnotes list'!$D$9:$E$58,2,FALSE) ) )","v":""},null,null,null,null,{"$f":"IF(TRIM(EE77)=\"\", \"\", IF(VLOOKUP(EE77,'Footnotes list'!$D$9:$E$58,2,FALSE)=0,\"\",VLOOKUP(EE77,'Footnotes list'!$D$9:$E$58,2,FALSE) ) )","v":""},null,null,null,null,{"$f":"IF(TRIM(EJ77)=\"\", \"\", IF(VLOOKUP(EJ77,'Footnotes list'!$D$9:$E$58,2,FALSE)=0,\"\",VLOOKUP(EJ77,'Footnotes list'!$D$9:$E$58,2,FALSE) ) )","v":""},null,null,null,null,{"$f":"IF(TRIM(EO77)=\"\", \"\", IF(VLOOKUP(EO77,'Footnotes list'!$D$9:$E$58,2,FALSE)=0,\"\",VLOOKUP(EO77,'Footnotes list'!$D$9:$E$58,2,FALSE) ) )","v":""},null,null,null,null,{"$f":"IF(TRIM(ET77)=\"\", \"\", IF(VLOOKUP(ET77,'Footnotes list'!$D$9:$E$58,2,FALSE)=0,\"\",VLOOKUP(ET77,'Footnotes list'!$D$9:$E$58,2,FALSE) ) )","v":""},null,null,null,null,{"$f":"IF(TRIM(EY77)=\"\", \"\", IF(VLOOKUP(EY77,'Footnotes list'!$D$9:$E$58,2,FALSE)=0,\"\",VLOOKUP(EY77,'Footnotes list'!$D$9:$E$58,2,FALSE) ) )","v":""}]
[null,null,"C22_C23","TOT_EGSS","Total C22 - C23 Manufacture of rubber and plastic products, and other non-metallic mineral products, of which:",null,null,null,null,null,{"$f":"IF(TRIM(J78)=\"\", \"\", IF(VLOOKUP(J78,'Footnotes list'!$D$9:$E$58,2,FALSE)=0,\"\",VLOOKUP(J78,'Footnotes list'!$D$9:$E$58,2,FALSE) ) )","v":""},null,null,null,null,{"$f":"IF(TRIM(O78)=\"\", \"\", IF(VLOOKUP(O78,'Footnotes list'!$D$9:$E$58,2,FALSE)=0,\"\",VLOOKUP(O78,'Footnotes list'!$D$9:$E$58,2,FALSE) ) )","v":""},null,null,null,null,{"$f":"IF(TRIM(T78)=\"\", \"\", IF(VLOOKUP(T78,'Footnotes list'!$D$9:$E$58,2,FALSE)=0,\"\",VLOOKUP(T78,'Footnotes list'!$D$9:$E$58,2,FALSE) ) )","v":""},null,null,null,null,{"$f":"IF(TRIM(Y78)=\"\", \"\", IF(VLOOKUP(Y78,'Footnotes list'!$D$9:$E$58,2,FALSE)=0,\"\",VLOOKUP(Y78,'Footnotes list'!$D$9:$E$58,2,FALSE) ) )","v":""},null,null,null,null,{"$f":"IF(TRIM(AD78)=\"\", \"\", IF(VLOOKUP(AD78,'Footnotes list'!$D$9:$E$58,2,FALSE)=0,\"\",VLOOKUP(AD78,'Footnotes list'!$D$9:$E$58,2,FALSE) ) )","v":""},null,null,null,null,{"$f":"IF(TRIM(AI78)=\"\", \"\", IF(VLOOKUP(AI78,'Footnotes list'!$D$9:$E$58,2,FALSE)=0,\"\",VLOOKUP(AI78,'Footnotes list'!$D$9:$E$58,2,FALSE) ) )","v":""},null,null,null,null,{"$f":"IF(TRIM(AN78)=\"\", \"\", IF(VLOOKUP(AN78,'Footnotes list'!$D$9:$E$58,2,FALSE)=0,\"\",VLOOKUP(AN78,'Footnotes list'!$D$9:$E$58,2,FALSE) ) )","v":""},null,null,null,null,{"$f":"IF(TRIM(AS78)=\"\", \"\", IF(VLOOKUP(AS78,'Footnotes list'!$D$9:$E$58,2,FALSE)=0,\"\",VLOOKUP(AS78,'Footnotes list'!$D$9:$E$58,2,FALSE) ) )","v":""},null,null,null,null,{"$f":"IF(TRIM(AX78)=\"\", \"\", IF(VLOOKUP(AX78,'Footnotes list'!$D$9:$E$58,2,FALSE)=0,\"\",VLOOKUP(AX78,'Footnotes list'!$D$9:$E$58,2,FALSE) ) )","v":""},null,null,null,null,{"$f":"IF(TRIM(BC78)=\"\", \"\", IF(VLOOKUP(BC78,'Footnotes list'!$D$9:$E$58,2,FALSE)=0,\"\",VLOOKUP(BC78,'Footnotes list'!$D$9:$E$58,2,FALSE) ) )","v":""},null,null,null,null,{"$f":"IF(TRIM(BH78)=\"\", \"\", IF(VLOOKUP(BH78,'Footnotes list'!$D$9:$E$58,2,FALSE)=0,\"\",VLOOKUP(BH78,'Footnotes list'!$D$9:$E$58,2,FALSE) ) )","v":""},null,null,null,null,{"$f":"IF(TRIM(BM78)=\"\", \"\", IF(VLOOKUP(BM78,'Footnotes list'!$D$9:$E$58,2,FALSE)=0,\"\",VLOOKUP(BM78,'Footnotes list'!$D$9:$E$58,2,FALSE) ) )","v":""},null,null,null,null,{"$f":"IF(TRIM(BR78)=\"\", \"\", IF(VLOOKUP(BR78,'Footnotes list'!$D$9:$E$58,2,FALSE)=0,\"\",VLOOKUP(BR78,'Footnotes list'!$D$9:$E$58,2,FALSE) ) )","v":""},null,null,null,null,{"$f":"IF(TRIM(BW78)=\"\", \"\", IF(VLOOKUP(BW78,'Footnotes list'!$D$9:$E$58,2,FALSE)=0,\"\",VLOOKUP(BW78,'Footnotes list'!$D$9:$E$58,2,FALSE) ) )","v":""},null,null,null,null,{"$f":"IF(TRIM(CB78)=\"\", \"\", IF(VLOOKUP(CB78,'Footnotes list'!$D$9:$E$58,2,FALSE)=0,\"\",VLOOKUP(CB78,'Footnotes list'!$D$9:$E$58,2,FALSE) ) )","v":""},null,null,null,null,{"$f":"IF(TRIM(CG78)=\"\", \"\", IF(VLOOKUP(CG78,'Footnotes list'!$D$9:$E$58,2,FALSE)=0,\"\",VLOOKUP(CG78,'Footnotes list'!$D$9:$E$58,2,FALSE) ) )","v":""},null,null,null,null,{"$f":"IF(TRIM(CL78)=\"\", \"\", IF(VLOOKUP(CL78,'Footnotes list'!$D$9:$E$58,2,FALSE)=0,\"\",VLOOKUP(CL78,'Footnotes list'!$D$9:$E$58,2,FALSE) ) )","v":""},null,null,null,null,{"$f":"IF(TRIM(CQ78)=\"\", \"\", IF(VLOOKUP(CQ78,'Footnotes list'!$D$9:$E$58,2,FALSE)=0,\"\",VLOOKUP(CQ78,'Footnotes list'!$D$9:$E$58,2,FALSE) ) )","v":""},null,null,null,null,{"$f":"IF(TRIM(CV78)=\"\", \"\", IF(VLOOKUP(CV78,'Footnotes list'!$D$9:$E$58,2,FALSE)=0,\"\",VLOOKUP(CV78,'Footnotes list'!$D$9:$E$58,2,FALSE) ) )","v":""},null,null,null,null,{"$f":"IF(TRIM(DA78)=\"\", \"\", IF(VLOOKUP(DA78,'Footnotes list'!$D$9:$E$58,2,FALSE)=0,\"\",VLOOKUP(DA78,'Footnotes list'!$D$9:$E$58,2,FALSE) ) )","v":""},null,null,null,null,{"$f":"IF(TRIM(DF78)=\"\", \"\", IF(VLOOKUP(DF78,'Footnotes list'!$D$9:$E$58,2,FALSE)=0,\"\",VLOOKUP(DF78,'Footnotes list'!$D$9:$E$58,2,FALSE) ) )","v":""},null,null,null,null,{"$f":"IF(TRIM(DK78)=\"\", \"\", IF(VLOOKUP(DK78,'Footnotes list'!$D$9:$E$58,2,FALSE)=0,\"\",VLOOKUP(DK78,'Footnotes list'!$D$9:$E$58,2,FALSE) ) )","v":""},null,null,null,null,{"$f":"IF(TRIM(DP78)=\"\", \"\", IF(VLOOKUP(DP78,'Footnotes list'!$D$9:$E$58,2,FALSE)=0,\"\",VLOOKUP(DP78,'Footnotes list'!$D$9:$E$58,2,FALSE) ) )","v":""},null,null,null,null,{"$f":"IF(TRIM(DU78)=\"\", \"\", IF(VLOOKUP(DU78,'Footnotes list'!$D$9:$E$58,2,FALSE)=0,\"\",VLOOKUP(DU78,'Footnotes list'!$D$9:$E$58,2,FALSE) ) )","v":""},null,null,null,null,{"$f":"IF(TRIM(DZ78)=\"\", \"\", IF(VLOOKUP(DZ78,'Footnotes list'!$D$9:$E$58,2,FALSE)=0,\"\",VLOOKUP(DZ78,'Footnotes list'!$D$9:$E$58,2,FALSE) ) )","v":""},null,null,null,null,{"$f":"IF(TRIM(EE78)=\"\", \"\", IF(VLOOKUP(EE78,'Footnotes list'!$D$9:$E$58,2,FALSE)=0,\"\",VLOOKUP(EE78,'Footnotes list'!$D$9:$E$58,2,FALSE) ) )","v":""},null,null,null,null,{"$f":"IF(TRIM(EJ78)=\"\", \"\", IF(VLOOKUP(EJ78,'Footnotes list'!$D$9:$E$58,2,FALSE)=0,\"\",VLOOKUP(EJ78,'Footnotes list'!$D$9:$E$58,2,FALSE) ) )","v":""},null,null,null,null,{"$f":"IF(TRIM(EO78)=\"\", \"\", IF(VLOOKUP(EO78,'Footnotes list'!$D$9:$E$58,2,FALSE)=0,\"\",VLOOKUP(EO78,'Footnotes list'!$D$9:$E$58,2,FALSE) ) )","v":""},null,null,null,null,{"$f":"IF(TRIM(ET78)=\"\", \"\", IF(VLOOKUP(ET78,'Footnotes list'!$D$9:$E$58,2,FALSE)=0,\"\",VLOOKUP(ET78,'Footnotes list'!$D$9:$E$58,2,FALSE) ) )","v":""},null,null,null,null,{"$f":"IF(TRIM(EY78)=\"\", \"\", IF(VLOOKUP(EY78,'Footnotes list'!$D$9:$E$58,2,FALSE)=0,\"\",VLOOKUP(EY78,'Footnotes list'!$D$9:$E$58,2,FALSE) ) )","v":""}]
[null,null,"C22_C23","ANC","ancillary activities",null,null,null,null,null,{"$f":"IF(TRIM(J79)=\"\", \"\", IF(VLOOKUP(J79,'Footnotes list'!$D$9:$E$58,2,FALSE)=0,\"\",VLOOKUP(J79,'Footnotes list'!$D$9:$E$58,2,FALSE) ) )","v":""},null,null,null,null,{"$f":"IF(TRIM(O79)=\"\", \"\", IF(VLOOKUP(O79,'Footnotes list'!$D$9:$E$58,2,FALSE)=0,\"\",VLOOKUP(O79,'Footnotes list'!$D$9:$E$58,2,FALSE) ) )","v":""},null,null,null,null,{"$f":"IF(TRIM(T79)=\"\", \"\", IF(VLOOKUP(T79,'Footnotes list'!$D$9:$E$58,2,FALSE)=0,\"\",VLOOKUP(T79,'Footnotes list'!$D$9:$E$58,2,FALSE) ) )","v":""},null,null,null,null,{"$f":"IF(TRIM(Y79)=\"\", \"\", IF(VLOOKUP(Y79,'Footnotes list'!$D$9:$E$58,2,FALSE)=0,\"\",VLOOKUP(Y79,'Footnotes list'!$D$9:$E$58,2,FALSE) ) )","v":""},null,null,null,null,{"$f":"IF(TRIM(AD79)=\"\", \"\", IF(VLOOKUP(AD79,'Footnotes list'!$D$9:$E$58,2,FALSE)=0,\"\",VLOOKUP(AD79,'Footnotes list'!$D$9:$E$58,2,FALSE) ) )","v":""},null,null,null,null,{"$f":"IF(TRIM(AI79)=\"\", \"\", IF(VLOOKUP(AI79,'Footnotes list'!$D$9:$E$58,2,FALSE)=0,\"\",VLOOKUP(AI79,'Footnotes list'!$D$9:$E$58,2,FALSE) ) )","v":""},null,null,null,null,{"$f":"IF(TRIM(AN79)=\"\", \"\", IF(VLOOKUP(AN79,'Footnotes list'!$D$9:$E$58,2,FALSE)=0,\"\",VLOOKUP(AN79,'Footnotes list'!$D$9:$E$58,2,FALSE) ) )","v":""},null,null,null,null,{"$f":"IF(TRIM(AS79)=\"\", \"\", IF(VLOOKUP(AS79,'Footnotes list'!$D$9:$E$58,2,FALSE)=0,\"\",VLOOKUP(AS79,'Footnotes list'!$D$9:$E$58,2,FALSE) ) )","v":""},null,null,null,null,{"$f":"IF(TRIM(AX79)=\"\", \"\", IF(VLOOKUP(AX79,'Footnotes list'!$D$9:$E$58,2,FALSE)=0,\"\",VLOOKUP(AX79,'Footnotes list'!$D$9:$E$58,2,FALSE) ) )","v":""},null,null,null,null,{"$f":"IF(TRIM(BC79)=\"\", \"\", IF(VLOOKUP(BC79,'Footnotes list'!$D$9:$E$58,2,FALSE)=0,\"\",VLOOKUP(BC79,'Footnotes list'!$D$9:$E$58,2,FALSE) ) )","v":""},null,null,null,null,{"$f":"IF(TRIM(BH79)=\"\", \"\", IF(VLOOKUP(BH79,'Footnotes list'!$D$9:$E$58,2,FALSE)=0,\"\",VLOOKUP(BH79,'Footnotes list'!$D$9:$E$58,2,FALSE) ) )","v":""},null,null,null,null,{"$f":"IF(TRIM(BM79)=\"\", \"\", IF(VLOOKUP(BM79,'Footnotes list'!$D$9:$E$58,2,FALSE)=0,\"\",VLOOKUP(BM79,'Footnotes list'!$D$9:$E$58,2,FALSE) ) )","v":""},null,null,null,null,{"$f":"IF(TRIM(BR79)=\"\", \"\", IF(VLOOKUP(BR79,'Footnotes list'!$D$9:$E$58,2,FALSE)=0,\"\",VLOOKUP(BR79,'Footnotes list'!$D$9:$E$58,2,FALSE) ) )","v":""},null,null,null,null,{"$f":"IF(TRIM(BW79)=\"\", \"\", IF(VLOOKUP(BW79,'Footnotes list'!$D$9:$E$58,2,FALSE)=0,\"\",VLOOKUP(BW79,'Footnotes list'!$D$9:$E$58,2,FALSE) ) )","v":""},null,null,null,null,{"$f":"IF(TRIM(CB79)=\"\", \"\", IF(VLOOKUP(CB79,'Footnotes list'!$D$9:$E$58,2,FALSE)=0,\"\",VLOOKUP(CB79,'Footnotes list'!$D$9:$E$58,2,FALSE) ) )","v":""},null,null,null,null,{"$f":"IF(TRIM(CG79)=\"\", \"\", IF(VLOOKUP(CG79,'Footnotes list'!$D$9:$E$58,2,FALSE)=0,\"\",VLOOKUP(CG79,'Footnotes list'!$D$9:$E$58,2,FALSE) ) )","v":""},null,null,null,null,{"$f":"IF(TRIM(CL79)=\"\", \"\", IF(VLOOKUP(CL79,'Footnotes list'!$D$9:$E$58,2,FALSE)=0,\"\",VLOOKUP(CL79,'Footnotes list'!$D$9:$E$58,2,FALSE) ) )","v":""},null,null,null,null,{"$f":"IF(TRIM(CQ79)=\"\", \"\", IF(VLOOKUP(CQ79,'Footnotes list'!$D$9:$E$58,2,FALSE)=0,\"\",VLOOKUP(CQ79,'Footnotes list'!$D$9:$E$58,2,FALSE) ) )","v":""},null,null,null,null,{"$f":"IF(TRIM(CV79)=\"\", \"\", IF(VLOOKUP(CV79,'Footnotes list'!$D$9:$E$58,2,FALSE)=0,\"\",VLOOKUP(CV79,'Footnotes list'!$D$9:$E$58,2,FALSE) ) )","v":""},null,null,null,null,{"$f":"IF(TRIM(DA79)=\"\", \"\", IF(VLOOKUP(DA79,'Footnotes list'!$D$9:$E$58,2,FALSE)=0,\"\",VLOOKUP(DA79,'Footnotes list'!$D$9:$E$58,2,FALSE) ) )","v":""},null,null,null,null,{"$f":"IF(TRIM(DF79)=\"\", \"\", IF(VLOOKUP(DF79,'Footnotes list'!$D$9:$E$58,2,FALSE)=0,\"\",VLOOKUP(DF79,'Footnotes list'!$D$9:$E$58,2,FALSE) ) )","v":""},null,null,null,null,{"$f":"IF(TRIM(DK79)=\"\", \"\", IF(VLOOKUP(DK79,'Footnotes list'!$D$9:$E$58,2,FALSE)=0,\"\",VLOOKUP(DK79,'Footnotes list'!$D$9:$E$58,2,FALSE) ) )","v":""},null,null,null,null,{"$f":"IF(TRIM(DP79)=\"\", \"\", IF(VLOOKUP(DP79,'Footnotes list'!$D$9:$E$58,2,FALSE)=0,\"\",VLOOKUP(DP79,'Footnotes list'!$D$9:$E$58,2,FALSE) ) )","v":""},null,null,null,null,{"$f":"IF(TRIM(DU79)=\"\", \"\", IF(VLOOKUP(DU79,'Footnotes list'!$D$9:$E$58,2,FALSE)=0,\"\",VLOOKUP(DU79,'Footnotes list'!$D$9:$E$58,2,FALSE) ) )","v":""},null,null,null,null,{"$f":"IF(TRIM(DZ79)=\"\", \"\", IF(VLOOKUP(DZ79,'Footnotes list'!$D$9:$E$58,2,FALSE)=0,\"\",VLOOKUP(DZ79,'Footnotes list'!$D$9:$E$58,2,FALSE) ) )","v":""},null,null,null,null,{"$f":"IF(TRIM(EE79)=\"\", \"\", IF(VLOOKUP(EE79,'Footnotes list'!$D$9:$E$58,2,FALSE)=0,\"\",VLOOKUP(EE79,'Footnotes list'!$D$9:$E$58,2,FALSE) ) )","v":""},null,null,null,null,{"$f":"IF(TRIM(EJ79)=\"\", \"\", IF(VLOOKUP(EJ79,'Footnotes list'!$D$9:$E$58,2,FALSE)=0,\"\",VLOOKUP(EJ79,'Footnotes list'!$D$9:$E$58,2,FALSE) ) )","v":""},null,null,null,null,{"$f":"IF(TRIM(EO79)=\"\", \"\", IF(VLOOKUP(EO79,'Footnotes list'!$D$9:$E$58,2,FALSE)=0,\"\",VLOOKUP(EO79,'Footnotes list'!$D$9:$E$58,2,FALSE) ) )","v":""},null,null,null,null,{"$f":"IF(TRIM(ET79)=\"\", \"\", IF(VLOOKUP(ET79,'Footnotes list'!$D$9:$E$58,2,FALSE)=0,\"\",VLOOKUP(ET79,'Footnotes list'!$D$9:$E$58,2,FALSE) ) )","v":""},null,null,null,null,{"$f":"IF(TRIM(EY79)=\"\", \"\", IF(VLOOKUP(EY79,'Footnotes list'!$D$9:$E$58,2,FALSE)=0,\"\",VLOOKUP(EY79,'Footnotes list'!$D$9:$E$58,2,FALSE) ) )","v":""}]
[null,null,"C22_C23","NMKT","non-market activities",null,null,null,null,null,{"$f":"IF(TRIM(J80)=\"\", \"\", IF(VLOOKUP(J80,'Footnotes list'!$D$9:$E$58,2,FALSE)=0,\"\",VLOOKUP(J80,'Footnotes list'!$D$9:$E$58,2,FALSE) ) )","v":""},null,null,null,null,{"$f":"IF(TRIM(O80)=\"\", \"\", IF(VLOOKUP(O80,'Footnotes list'!$D$9:$E$58,2,FALSE)=0,\"\",VLOOKUP(O80,'Footnotes list'!$D$9:$E$58,2,FALSE) ) )","v":""},null,null,null,null,{"$f":"IF(TRIM(T80)=\"\", \"\", IF(VLOOKUP(T80,'Footnotes list'!$D$9:$E$58,2,FALSE)=0,\"\",VLOOKUP(T80,'Footnotes list'!$D$9:$E$58,2,FALSE) ) )","v":""},null,null,null,null,{"$f":"IF(TRIM(Y80)=\"\", \"\", IF(VLOOKUP(Y80,'Footnotes list'!$D$9:$E$58,2,FALSE)=0,\"\",VLOOKUP(Y80,'Footnotes list'!$D$9:$E$58,2,FALSE) ) )","v":""},null,null,null,null,{"$f":"IF(TRIM(AD80)=\"\", \"\", IF(VLOOKUP(AD80,'Footnotes list'!$D$9:$E$58,2,FALSE)=0,\"\",VLOOKUP(AD80,'Footnotes list'!$D$9:$E$58,2,FALSE) ) )","v":""},null,null,null,null,{"$f":"IF(TRIM(AI80)=\"\", \"\", IF(VLOOKUP(AI80,'Footnotes list'!$D$9:$E$58,2,FALSE)=0,\"\",VLOOKUP(AI80,'Footnotes list'!$D$9:$E$58,2,FALSE) ) )","v":""},null,null,null,null,{"$f":"IF(TRIM(AN80)=\"\", \"\", IF(VLOOKUP(AN80,'Footnotes list'!$D$9:$E$58,2,FALSE)=0,\"\",VLOOKUP(AN80,'Footnotes list'!$D$9:$E$58,2,FALSE) ) )","v":""},null,null,null,null,{"$f":"IF(TRIM(AS80)=\"\", \"\", IF(VLOOKUP(AS80,'Footnotes list'!$D$9:$E$58,2,FALSE)=0,\"\",VLOOKUP(AS80,'Footnotes list'!$D$9:$E$58,2,FALSE) ) )","v":""},null,null,null,null,{"$f":"IF(TRIM(AX80)=\"\", \"\", IF(VLOOKUP(AX80,'Footnotes list'!$D$9:$E$58,2,FALSE)=0,\"\",VLOOKUP(AX80,'Footnotes list'!$D$9:$E$58,2,FALSE) ) )","v":""},null,null,null,null,{"$f":"IF(TRIM(BC80)=\"\", \"\", IF(VLOOKUP(BC80,'Footnotes list'!$D$9:$E$58,2,FALSE)=0,\"\",VLOOKUP(BC80,'Footnotes list'!$D$9:$E$58,2,FALSE) ) )","v":""},null,null,null,null,{"$f":"IF(TRIM(BH80)=\"\", \"\", IF(VLOOKUP(BH80,'Footnotes list'!$D$9:$E$58,2,FALSE)=0,\"\",VLOOKUP(BH80,'Footnotes list'!$D$9:$E$58,2,FALSE) ) )","v":""},null,null,null,null,{"$f":"IF(TRIM(BM80)=\"\", \"\", IF(VLOOKUP(BM80,'Footnotes list'!$D$9:$E$58,2,FALSE)=0,\"\",VLOOKUP(BM80,'Footnotes list'!$D$9:$E$58,2,FALSE) ) )","v":""},null,null,null,null,{"$f":"IF(TRIM(BR80)=\"\", \"\", IF(VLOOKUP(BR80,'Footnotes list'!$D$9:$E$58,2,FALSE)=0,\"\",VLOOKUP(BR80,'Footnotes list'!$D$9:$E$58,2,FALSE) ) )","v":""},null,null,null,null,{"$f":"IF(TRIM(BW80)=\"\", \"\", IF(VLOOKUP(BW80,'Footnotes list'!$D$9:$E$58,2,FALSE)=0,\"\",VLOOKUP(BW80,'Footnotes list'!$D$9:$E$58,2,FALSE) ) )","v":""},null,null,null,null,{"$f":"IF(TRIM(CB80)=\"\", \"\", IF(VLOOKUP(CB80,'Footnotes list'!$D$9:$E$58,2,FALSE)=0,\"\",VLOOKUP(CB80,'Footnotes list'!$D$9:$E$58,2,FALSE) ) )","v":""},null,null,null,null,{"$f":"IF(TRIM(CG80)=\"\", \"\", IF(VLOOKUP(CG80,'Footnotes list'!$D$9:$E$58,2,FALSE)=0,\"\",VLOOKUP(CG80,'Footnotes list'!$D$9:$E$58,2,FALSE) ) )","v":""},null,null,null,null,{"$f":"IF(TRIM(CL80)=\"\", \"\", IF(VLOOKUP(CL80,'Footnotes list'!$D$9:$E$58,2,FALSE)=0,\"\",VLOOKUP(CL80,'Footnotes list'!$D$9:$E$58,2,FALSE) ) )","v":""},null,null,null,null,{"$f":"IF(TRIM(CQ80)=\"\", \"\", IF(VLOOKUP(CQ80,'Footnotes list'!$D$9:$E$58,2,FALSE)=0,\"\",VLOOKUP(CQ80,'Footnotes list'!$D$9:$E$58,2,FALSE) ) )","v":""},null,null,null,null,{"$f":"IF(TRIM(CV80)=\"\", \"\", IF(VLOOKUP(CV80,'Footnotes list'!$D$9:$E$58,2,FALSE)=0,\"\",VLOOKUP(CV80,'Footnotes list'!$D$9:$E$58,2,FALSE) ) )","v":""},null,null,null,null,{"$f":"IF(TRIM(DA80)=\"\", \"\", IF(VLOOKUP(DA80,'Footnotes list'!$D$9:$E$58,2,FALSE)=0,\"\",VLOOKUP(DA80,'Footnotes list'!$D$9:$E$58,2,FALSE) ) )","v":""},null,null,null,null,{"$f":"IF(TRIM(DF80)=\"\", \"\", IF(VLOOKUP(DF80,'Footnotes list'!$D$9:$E$58,2,FALSE)=0,\"\",VLOOKUP(DF80,'Footnotes list'!$D$9:$E$58,2,FALSE) ) )","v":""},null,null,null,null,{"$f":"IF(TRIM(DK80)=\"\", \"\", IF(VLOOKUP(DK80,'Footnotes list'!$D$9:$E$58,2,FALSE)=0,\"\",VLOOKUP(DK80,'Footnotes list'!$D$9:$E$58,2,FALSE) ) )","v":""},null,null,null,null,{"$f":"IF(TRIM(DP80)=\"\", \"\", IF(VLOOKUP(DP80,'Footnotes list'!$D$9:$E$58,2,FALSE)=0,\"\",VLOOKUP(DP80,'Footnotes list'!$D$9:$E$58,2,FALSE) ) )","v":""},null,null,null,null,{"$f":"IF(TRIM(DU80)=\"\", \"\", IF(VLOOKUP(DU80,'Footnotes list'!$D$9:$E$58,2,FALSE)=0,\"\",VLOOKUP(DU80,'Footnotes list'!$D$9:$E$58,2,FALSE) ) )","v":""},null,null,null,null,{"$f":"IF(TRIM(DZ80)=\"\", \"\", IF(VLOOKUP(DZ80,'Footnotes list'!$D$9:$E$58,2,FALSE)=0,\"\",VLOOKUP(DZ80,'Footnotes list'!$D$9:$E$58,2,FALSE) ) )","v":""},null,null,null,null,{"$f":"IF(TRIM(EE80)=\"\", \"\", IF(VLOOKUP(EE80,'Footnotes list'!$D$9:$E$58,2,FALSE)=0,\"\",VLOOKUP(EE80,'Footnotes list'!$D$9:$E$58,2,FALSE) ) )","v":""},null,null,null,null,{"$f":"IF(TRIM(EJ80)=\"\", \"\", IF(VLOOKUP(EJ80,'Footnotes list'!$D$9:$E$58,2,FALSE)=0,\"\",VLOOKUP(EJ80,'Footnotes list'!$D$9:$E$58,2,FALSE) ) )","v":""},null,null,null,null,{"$f":"IF(TRIM(EO80)=\"\", \"\", IF(VLOOKUP(EO80,'Footnotes list'!$D$9:$E$58,2,FALSE)=0,\"\",VLOOKUP(EO80,'Footnotes list'!$D$9:$E$58,2,FALSE) ) )","v":""},null,null,null,null,{"$f":"IF(TRIM(ET80)=\"\", \"\", IF(VLOOKUP(ET80,'Footnotes list'!$D$9:$E$58,2,FALSE)=0,\"\",VLOOKUP(ET80,'Footnotes list'!$D$9:$E$58,2,FALSE) ) )","v":""},null,null,null,null,{"$f":"IF(TRIM(EY80)=\"\", \"\", IF(VLOOKUP(EY80,'Footnotes list'!$D$9:$E$58,2,FALSE)=0,\"\",VLOOKUP(EY80,'Footnotes list'!$D$9:$E$58,2,FALSE) ) )","v":""}]
[null,null,"C22_C23","OWN_USE","activities for own final use",null,null,null,null,null,{"$f":"IF(TRIM(J81)=\"\", \"\", IF(VLOOKUP(J81,'Footnotes list'!$D$9:$E$58,2,FALSE)=0,\"\",VLOOKUP(J81,'Footnotes list'!$D$9:$E$58,2,FALSE) ) )","v":""},null,null,null,null,{"$f":"IF(TRIM(O81)=\"\", \"\", IF(VLOOKUP(O81,'Footnotes list'!$D$9:$E$58,2,FALSE)=0,\"\",VLOOKUP(O81,'Footnotes list'!$D$9:$E$58,2,FALSE) ) )","v":""},null,null,null,null,{"$f":"IF(TRIM(T81)=\"\", \"\", IF(VLOOKUP(T81,'Footnotes list'!$D$9:$E$58,2,FALSE)=0,\"\",VLOOKUP(T81,'Footnotes list'!$D$9:$E$58,2,FALSE) ) )","v":""},null,null,null,null,{"$f":"IF(TRIM(Y81)=\"\", \"\", IF(VLOOKUP(Y81,'Footnotes list'!$D$9:$E$58,2,FALSE)=0,\"\",VLOOKUP(Y81,'Footnotes list'!$D$9:$E$58,2,FALSE) ) )","v":""},null,null,null,null,{"$f":"IF(TRIM(AD81)=\"\", \"\", IF(VLOOKUP(AD81,'Footnotes list'!$D$9:$E$58,2,FALSE)=0,\"\",VLOOKUP(AD81,'Footnotes list'!$D$9:$E$58,2,FALSE) ) )","v":""},null,null,null,null,{"$f":"IF(TRIM(AI81)=\"\", \"\", IF(VLOOKUP(AI81,'Footnotes list'!$D$9:$E$58,2,FALSE)=0,\"\",VLOOKUP(AI81,'Footnotes list'!$D$9:$E$58,2,FALSE) ) )","v":""},null,null,null,null,{"$f":"IF(TRIM(AN81)=\"\", \"\", IF(VLOOKUP(AN81,'Footnotes list'!$D$9:$E$58,2,FALSE)=0,\"\",VLOOKUP(AN81,'Footnotes list'!$D$9:$E$58,2,FALSE) ) )","v":""},null,null,null,null,{"$f":"IF(TRIM(AS81)=\"\", \"\", IF(VLOOKUP(AS81,'Footnotes list'!$D$9:$E$58,2,FALSE)=0,\"\",VLOOKUP(AS81,'Footnotes list'!$D$9:$E$58,2,FALSE) ) )","v":""},null,null,null,null,{"$f":"IF(TRIM(AX81)=\"\", \"\", IF(VLOOKUP(AX81,'Footnotes list'!$D$9:$E$58,2,FALSE)=0,\"\",VLOOKUP(AX81,'Footnotes list'!$D$9:$E$58,2,FALSE) ) )","v":""},null,null,null,null,{"$f":"IF(TRIM(BC81)=\"\", \"\", IF(VLOOKUP(BC81,'Footnotes list'!$D$9:$E$58,2,FALSE)=0,\"\",VLOOKUP(BC81,'Footnotes list'!$D$9:$E$58,2,FALSE) ) )","v":""},null,null,null,null,{"$f":"IF(TRIM(BH81)=\"\", \"\", IF(VLOOKUP(BH81,'Footnotes list'!$D$9:$E$58,2,FALSE)=0,\"\",VLOOKUP(BH81,'Footnotes list'!$D$9:$E$58,2,FALSE) ) )","v":""},null,null,null,null,{"$f":"IF(TRIM(BM81)=\"\", \"\", IF(VLOOKUP(BM81,'Footnotes list'!$D$9:$E$58,2,FALSE)=0,\"\",VLOOKUP(BM81,'Footnotes list'!$D$9:$E$58,2,FALSE) ) )","v":""},null,null,null,null,{"$f":"IF(TRIM(BR81)=\"\", \"\", IF(VLOOKUP(BR81,'Footnotes list'!$D$9:$E$58,2,FALSE)=0,\"\",VLOOKUP(BR81,'Footnotes list'!$D$9:$E$58,2,FALSE) ) )","v":""},null,null,null,null,{"$f":"IF(TRIM(BW81)=\"\", \"\", IF(VLOOKUP(BW81,'Footnotes list'!$D$9:$E$58,2,FALSE)=0,\"\",VLOOKUP(BW81,'Footnotes list'!$D$9:$E$58,2,FALSE) ) )","v":""},null,null,null,null,{"$f":"IF(TRIM(CB81)=\"\", \"\", IF(VLOOKUP(CB81,'Footnotes list'!$D$9:$E$58,2,FALSE)=0,\"\",VLOOKUP(CB81,'Footnotes list'!$D$9:$E$58,2,FALSE) ) )","v":""},null,null,null,null,{"$f":"IF(TRIM(CG81)=\"\", \"\", IF(VLOOKUP(CG81,'Footnotes list'!$D$9:$E$58,2,FALSE)=0,\"\",VLOOKUP(CG81,'Footnotes list'!$D$9:$E$58,2,FALSE) ) )","v":""},null,null,null,null,{"$f":"IF(TRIM(CL81)=\"\", \"\", IF(VLOOKUP(CL81,'Footnotes list'!$D$9:$E$58,2,FALSE)=0,\"\",VLOOKUP(CL81,'Footnotes list'!$D$9:$E$58,2,FALSE) ) )","v":""},null,null,null,null,{"$f":"IF(TRIM(CQ81)=\"\", \"\", IF(VLOOKUP(CQ81,'Footnotes list'!$D$9:$E$58,2,FALSE)=0,\"\",VLOOKUP(CQ81,'Footnotes list'!$D$9:$E$58,2,FALSE) ) )","v":""},null,null,null,null,{"$f":"IF(TRIM(CV81)=\"\", \"\", IF(VLOOKUP(CV81,'Footnotes list'!$D$9:$E$58,2,FALSE)=0,\"\",VLOOKUP(CV81,'Footnotes list'!$D$9:$E$58,2,FALSE) ) )","v":""},null,null,null,null,{"$f":"IF(TRIM(DA81)=\"\", \"\", IF(VLOOKUP(DA81,'Footnotes list'!$D$9:$E$58,2,FALSE)=0,\"\",VLOOKUP(DA81,'Footnotes list'!$D$9:$E$58,2,FALSE) ) )","v":""},null,null,null,null,{"$f":"IF(TRIM(DF81)=\"\", \"\", IF(VLOOKUP(DF81,'Footnotes list'!$D$9:$E$58,2,FALSE)=0,\"\",VLOOKUP(DF81,'Footnotes list'!$D$9:$E$58,2,FALSE) ) )","v":""},null,null,null,null,{"$f":"IF(TRIM(DK81)=\"\", \"\", IF(VLOOKUP(DK81,'Footnotes list'!$D$9:$E$58,2,FALSE)=0,\"\",VLOOKUP(DK81,'Footnotes list'!$D$9:$E$58,2,FALSE) ) )","v":""},null,null,null,null,{"$f":"IF(TRIM(DP81)=\"\", \"\", IF(VLOOKUP(DP81,'Footnotes list'!$D$9:$E$58,2,FALSE)=0,\"\",VLOOKUP(DP81,'Footnotes list'!$D$9:$E$58,2,FALSE) ) )","v":""},null,null,null,null,{"$f":"IF(TRIM(DU81)=\"\", \"\", IF(VLOOKUP(DU81,'Footnotes list'!$D$9:$E$58,2,FALSE)=0,\"\",VLOOKUP(DU81,'Footnotes list'!$D$9:$E$58,2,FALSE) ) )","v":""},null,null,null,null,{"$f":"IF(TRIM(DZ81)=\"\", \"\", IF(VLOOKUP(DZ81,'Footnotes list'!$D$9:$E$58,2,FALSE)=0,\"\",VLOOKUP(DZ81,'Footnotes list'!$D$9:$E$58,2,FALSE) ) )","v":""},null,null,null,null,{"$f":"IF(TRIM(EE81)=\"\", \"\", IF(VLOOKUP(EE81,'Footnotes list'!$D$9:$E$58,2,FALSE)=0,\"\",VLOOKUP(EE81,'Footnotes list'!$D$9:$E$58,2,FALSE) ) )","v":""},null,null,null,null,{"$f":"IF(TRIM(EJ81)=\"\", \"\", IF(VLOOKUP(EJ81,'Footnotes list'!$D$9:$E$58,2,FALSE)=0,\"\",VLOOKUP(EJ81,'Footnotes list'!$D$9:$E$58,2,FALSE) ) )","v":""},null,null,null,null,{"$f":"IF(TRIM(EO81)=\"\", \"\", IF(VLOOKUP(EO81,'Footnotes list'!$D$9:$E$58,2,FALSE)=0,\"\",VLOOKUP(EO81,'Footnotes list'!$D$9:$E$58,2,FALSE) ) )","v":""},null,null,null,null,{"$f":"IF(TRIM(ET81)=\"\", \"\", IF(VLOOKUP(ET81,'Footnotes list'!$D$9:$E$58,2,FALSE)=0,\"\",VLOOKUP(ET81,'Footnotes list'!$D$9:$E$58,2,FALSE) ) )","v":""},null,null,null,null,{"$f":"IF(TRIM(EY81)=\"\", \"\", IF(VLOOKUP(EY81,'Footnotes list'!$D$9:$E$58,2,FALSE)=0,\"\",VLOOKUP(EY81,'Footnotes list'!$D$9:$E$58,2,FALSE) ) )","v":""}]
[null,null,"C22_C23","MKT","market activities, including:",null,null,null,null,null,{"$f":"IF(TRIM(J82)=\"\", \"\", IF(VLOOKUP(J82,'Footnotes list'!$D$9:$E$58,2,FALSE)=0,\"\",VLOOKUP(J82,'Footnotes list'!$D$9:$E$58,2,FALSE) ) )","v":""},null,null,null,null,{"$f":"IF(TRIM(O82)=\"\", \"\", IF(VLOOKUP(O82,'Footnotes list'!$D$9:$E$58,2,FALSE)=0,\"\",VLOOKUP(O82,'Footnotes list'!$D$9:$E$58,2,FALSE) ) )","v":""},null,null,null,null,{"$f":"IF(TRIM(T82)=\"\", \"\", IF(VLOOKUP(T82,'Footnotes list'!$D$9:$E$58,2,FALSE)=0,\"\",VLOOKUP(T82,'Footnotes list'!$D$9:$E$58,2,FALSE) ) )","v":""},null,null,null,null,{"$f":"IF(TRIM(Y82)=\"\", \"\", IF(VLOOKUP(Y82,'Footnotes list'!$D$9:$E$58,2,FALSE)=0,\"\",VLOOKUP(Y82,'Footnotes list'!$D$9:$E$58,2,FALSE) ) )","v":""},null,null,null,null,{"$f":"IF(TRIM(AD82)=\"\", \"\", IF(VLOOKUP(AD82,'Footnotes list'!$D$9:$E$58,2,FALSE)=0,\"\",VLOOKUP(AD82,'Footnotes list'!$D$9:$E$58,2,FALSE) ) )","v":""},null,null,null,null,{"$f":"IF(TRIM(AI82)=\"\", \"\", IF(VLOOKUP(AI82,'Footnotes list'!$D$9:$E$58,2,FALSE)=0,\"\",VLOOKUP(AI82,'Footnotes list'!$D$9:$E$58,2,FALSE) ) )","v":""},null,null,null,null,{"$f":"IF(TRIM(AN82)=\"\", \"\", IF(VLOOKUP(AN82,'Footnotes list'!$D$9:$E$58,2,FALSE)=0,\"\",VLOOKUP(AN82,'Footnotes list'!$D$9:$E$58,2,FALSE) ) )","v":""},null,null,null,null,{"$f":"IF(TRIM(AS82)=\"\", \"\", IF(VLOOKUP(AS82,'Footnotes list'!$D$9:$E$58,2,FALSE)=0,\"\",VLOOKUP(AS82,'Footnotes list'!$D$9:$E$58,2,FALSE) ) )","v":""},null,null,null,null,{"$f":"IF(TRIM(AX82)=\"\", \"\", IF(VLOOKUP(AX82,'Footnotes list'!$D$9:$E$58,2,FALSE)=0,\"\",VLOOKUP(AX82,'Footnotes list'!$D$9:$E$58,2,FALSE) ) )","v":""},null,null,null,null,{"$f":"IF(TRIM(BC82)=\"\", \"\", IF(VLOOKUP(BC82,'Footnotes list'!$D$9:$E$58,2,FALSE)=0,\"\",VLOOKUP(BC82,'Footnotes list'!$D$9:$E$58,2,FALSE) ) )","v":""},null,null,null,null,{"$f":"IF(TRIM(BH82)=\"\", \"\", IF(VLOOKUP(BH82,'Footnotes list'!$D$9:$E$58,2,FALSE)=0,\"\",VLOOKUP(BH82,'Footnotes list'!$D$9:$E$58,2,FALSE) ) )","v":""},null,null,null,null,{"$f":"IF(TRIM(BM82)=\"\", \"\", IF(VLOOKUP(BM82,'Footnotes list'!$D$9:$E$58,2,FALSE)=0,\"\",VLOOKUP(BM82,'Footnotes list'!$D$9:$E$58,2,FALSE) ) )","v":""},null,null,null,null,{"$f":"IF(TRIM(BR82)=\"\", \"\", IF(VLOOKUP(BR82,'Footnotes list'!$D$9:$E$58,2,FALSE)=0,\"\",VLOOKUP(BR82,'Footnotes list'!$D$9:$E$58,2,FALSE) ) )","v":""},null,null,null,null,{"$f":"IF(TRIM(BW82)=\"\", \"\", IF(VLOOKUP(BW82,'Footnotes list'!$D$9:$E$58,2,FALSE)=0,\"\",VLOOKUP(BW82,'Footnotes list'!$D$9:$E$58,2,FALSE) ) )","v":""},null,null,null,null,{"$f":"IF(TRIM(CB82)=\"\", \"\", IF(VLOOKUP(CB82,'Footnotes list'!$D$9:$E$58,2,FALSE)=0,\"\",VLOOKUP(CB82,'Footnotes list'!$D$9:$E$58,2,FALSE) ) )","v":""},null,null,null,null,{"$f":"IF(TRIM(CG82)=\"\", \"\", IF(VLOOKUP(CG82,'Footnotes list'!$D$9:$E$58,2,FALSE)=0,\"\",VLOOKUP(CG82,'Footnotes list'!$D$9:$E$58,2,FALSE) ) )","v":""},null,null,null,null,{"$f":"IF(TRIM(CL82)=\"\", \"\", IF(VLOOKUP(CL82,'Footnotes list'!$D$9:$E$58,2,FALSE)=0,\"\",VLOOKUP(CL82,'Footnotes list'!$D$9:$E$58,2,FALSE) ) )","v":""},null,null,null,null,{"$f":"IF(TRIM(CQ82)=\"\", \"\", IF(VLOOKUP(CQ82,'Footnotes list'!$D$9:$E$58,2,FALSE)=0,\"\",VLOOKUP(CQ82,'Footnotes list'!$D$9:$E$58,2,FALSE) ) )","v":""},null,null,null,null,{"$f":"IF(TRIM(CV82)=\"\", \"\", IF(VLOOKUP(CV82,'Footnotes list'!$D$9:$E$58,2,FALSE)=0,\"\",VLOOKUP(CV82,'Footnotes list'!$D$9:$E$58,2,FALSE) ) )","v":""},null,null,null,null,{"$f":"IF(TRIM(DA82)=\"\", \"\", IF(VLOOKUP(DA82,'Footnotes list'!$D$9:$E$58,2,FALSE)=0,\"\",VLOOKUP(DA82,'Footnotes list'!$D$9:$E$58,2,FALSE) ) )","v":""},null,null,null,null,{"$f":"IF(TRIM(DF82)=\"\", \"\", IF(VLOOKUP(DF82,'Footnotes list'!$D$9:$E$58,2,FALSE)=0,\"\",VLOOKUP(DF82,'Footnotes list'!$D$9:$E$58,2,FALSE) ) )","v":""},null,null,null,null,{"$f":"IF(TRIM(DK82)=\"\", \"\", IF(VLOOKUP(DK82,'Footnotes list'!$D$9:$E$58,2,FALSE)=0,\"\",VLOOKUP(DK82,'Footnotes list'!$D$9:$E$58,2,FALSE) ) )","v":""},null,null,null,null,{"$f":"IF(TRIM(DP82)=\"\", \"\", IF(VLOOKUP(DP82,'Footnotes list'!$D$9:$E$58,2,FALSE)=0,\"\",VLOOKUP(DP82,'Footnotes list'!$D$9:$E$58,2,FALSE) ) )","v":""},null,null,null,null,{"$f":"IF(TRIM(DU82)=\"\", \"\", IF(VLOOKUP(DU82,'Footnotes list'!$D$9:$E$58,2,FALSE)=0,\"\",VLOOKUP(DU82,'Footnotes list'!$D$9:$E$58,2,FALSE) ) )","v":""},null,null,null,null,{"$f":"IF(TRIM(DZ82)=\"\", \"\", IF(VLOOKUP(DZ82,'Footnotes list'!$D$9:$E$58,2,FALSE)=0,\"\",VLOOKUP(DZ82,'Footnotes list'!$D$9:$E$58,2,FALSE) ) )","v":""},null,null,null,null,{"$f":"IF(TRIM(EE82)=\"\", \"\", IF(VLOOKUP(EE82,'Footnotes list'!$D$9:$E$58,2,FALSE)=0,\"\",VLOOKUP(EE82,'Footnotes list'!$D$9:$E$58,2,FALSE) ) )","v":""},null,null,null,null,{"$f":"IF(TRIM(EJ82)=\"\", \"\", IF(VLOOKUP(EJ82,'Footnotes list'!$D$9:$E$58,2,FALSE)=0,\"\",VLOOKUP(EJ82,'Footnotes list'!$D$9:$E$58,2,FALSE) ) )","v":""},null,null,null,null,{"$f":"IF(TRIM(EO82)=\"\", \"\", IF(VLOOKUP(EO82,'Footnotes list'!$D$9:$E$58,2,FALSE)=0,\"\",VLOOKUP(EO82,'Footnotes list'!$D$9:$E$58,2,FALSE) ) )","v":""},null,null,null,null,{"$f":"IF(TRIM(ET82)=\"\", \"\", IF(VLOOKUP(ET82,'Footnotes list'!$D$9:$E$58,2,FALSE)=0,\"\",VLOOKUP(ET82,'Footnotes list'!$D$9:$E$58,2,FALSE) ) )","v":""},null,null,null,null,{"$f":"IF(TRIM(EY82)=\"\", \"\", IF(VLOOKUP(EY82,'Footnotes list'!$D$9:$E$58,2,FALSE)=0,\"\",VLOOKUP(EY82,'Footnotes list'!$D$9:$E$58,2,FALSE) ) )","v":""}]
[null,null,"C22_C23","ES_CS","environmental specific services",null,null,null,null,null,{"$f":"IF(TRIM(J83)=\"\", \"\", IF(VLOOKUP(J83,'Footnotes list'!$D$9:$E$58,2,FALSE)=0,\"\",VLOOKUP(J83,'Footnotes list'!$D$9:$E$58,2,FALSE) ) )","v":""},null,null,null,null,{"$f":"IF(TRIM(O83)=\"\", \"\", IF(VLOOKUP(O83,'Footnotes list'!$D$9:$E$58,2,FALSE)=0,\"\",VLOOKUP(O83,'Footnotes list'!$D$9:$E$58,2,FALSE) ) )","v":""},null,null,null,null,{"$f":"IF(TRIM(T83)=\"\", \"\", IF(VLOOKUP(T83,'Footnotes list'!$D$9:$E$58,2,FALSE)=0,\"\",VLOOKUP(T83,'Footnotes list'!$D$9:$E$58,2,FALSE) ) )","v":""},null,null,null,null,{"$f":"IF(TRIM(Y83)=\"\", \"\", IF(VLOOKUP(Y83,'Footnotes list'!$D$9:$E$58,2,FALSE)=0,\"\",VLOOKUP(Y83,'Footnotes list'!$D$9:$E$58,2,FALSE) ) )","v":""},null,null,null,null,{"$f":"IF(TRIM(AD83)=\"\", \"\", IF(VLOOKUP(AD83,'Footnotes list'!$D$9:$E$58,2,FALSE)=0,\"\",VLOOKUP(AD83,'Footnotes list'!$D$9:$E$58,2,FALSE) ) )","v":""},null,null,null,null,{"$f":"IF(TRIM(AI83)=\"\", \"\", IF(VLOOKUP(AI83,'Footnotes list'!$D$9:$E$58,2,FALSE)=0,\"\",VLOOKUP(AI83,'Footnotes list'!$D$9:$E$58,2,FALSE) ) )","v":""},null,null,null,null,{"$f":"IF(TRIM(AN83)=\"\", \"\", IF(VLOOKUP(AN83,'Footnotes list'!$D$9:$E$58,2,FALSE)=0,\"\",VLOOKUP(AN83,'Footnotes list'!$D$9:$E$58,2,FALSE) ) )","v":""},null,null,null,null,{"$f":"IF(TRIM(AS83)=\"\", \"\", IF(VLOOKUP(AS83,'Footnotes list'!$D$9:$E$58,2,FALSE)=0,\"\",VLOOKUP(AS83,'Footnotes list'!$D$9:$E$58,2,FALSE) ) )","v":""},null,null,null,null,{"$f":"IF(TRIM(AX83)=\"\", \"\", IF(VLOOKUP(AX83,'Footnotes list'!$D$9:$E$58,2,FALSE)=0,\"\",VLOOKUP(AX83,'Footnotes list'!$D$9:$E$58,2,FALSE) ) )","v":""},null,null,null,null,{"$f":"IF(TRIM(BC83)=\"\", \"\", IF(VLOOKUP(BC83,'Footnotes list'!$D$9:$E$58,2,FALSE)=0,\"\",VLOOKUP(BC83,'Footnotes list'!$D$9:$E$58,2,FALSE) ) )","v":""},null,null,null,null,{"$f":"IF(TRIM(BH83)=\"\", \"\", IF(VLOOKUP(BH83,'Footnotes list'!$D$9:$E$58,2,FALSE)=0,\"\",VLOOKUP(BH83,'Footnotes list'!$D$9:$E$58,2,FALSE) ) )","v":""},null,null,null,null,{"$f":"IF(TRIM(BM83)=\"\", \"\", IF(VLOOKUP(BM83,'Footnotes list'!$D$9:$E$58,2,FALSE)=0,\"\",VLOOKUP(BM83,'Footnotes list'!$D$9:$E$58,2,FALSE) ) )","v":""},null,null,null,null,{"$f":"IF(TRIM(BR83)=\"\", \"\", IF(VLOOKUP(BR83,'Footnotes list'!$D$9:$E$58,2,FALSE)=0,\"\",VLOOKUP(BR83,'Footnotes list'!$D$9:$E$58,2,FALSE) ) )","v":""},null,null,null,null,{"$f":"IF(TRIM(BW83)=\"\", \"\", IF(VLOOKUP(BW83,'Footnotes list'!$D$9:$E$58,2,FALSE)=0,\"\",VLOOKUP(BW83,'Footnotes list'!$D$9:$E$58,2,FALSE) ) )","v":""},null,null,null,null,{"$f":"IF(TRIM(CB83)=\"\", \"\", IF(VLOOKUP(CB83,'Footnotes list'!$D$9:$E$58,2,FALSE)=0,\"\",VLOOKUP(CB83,'Footnotes list'!$D$9:$E$58,2,FALSE) ) )","v":""},null,null,null,null,{"$f":"IF(TRIM(CG83)=\"\", \"\", IF(VLOOKUP(CG83,'Footnotes list'!$D$9:$E$58,2,FALSE)=0,\"\",VLOOKUP(CG83,'Footnotes list'!$D$9:$E$58,2,FALSE) ) )","v":""},null,null,null,null,{"$f":"IF(TRIM(CL83)=\"\", \"\", IF(VLOOKUP(CL83,'Footnotes list'!$D$9:$E$58,2,FALSE)=0,\"\",VLOOKUP(CL83,'Footnotes list'!$D$9:$E$58,2,FALSE) ) )","v":""},null,null,null,null,{"$f":"IF(TRIM(CQ83)=\"\", \"\", IF(VLOOKUP(CQ83,'Footnotes list'!$D$9:$E$58,2,FALSE)=0,\"\",VLOOKUP(CQ83,'Footnotes list'!$D$9:$E$58,2,FALSE) ) )","v":""},null,null,null,null,{"$f":"IF(TRIM(CV83)=\"\", \"\", IF(VLOOKUP(CV83,'Footnotes list'!$D$9:$E$58,2,FALSE)=0,\"\",VLOOKUP(CV83,'Footnotes list'!$D$9:$E$58,2,FALSE) ) )","v":""},null,null,null,null,{"$f":"IF(TRIM(DA83)=\"\", \"\", IF(VLOOKUP(DA83,'Footnotes list'!$D$9:$E$58,2,FALSE)=0,\"\",VLOOKUP(DA83,'Footnotes list'!$D$9:$E$58,2,FALSE) ) )","v":""},null,null,null,null,{"$f":"IF(TRIM(DF83)=\"\", \"\", IF(VLOOKUP(DF83,'Footnotes list'!$D$9:$E$58,2,FALSE)=0,\"\",VLOOKUP(DF83,'Footnotes list'!$D$9:$E$58,2,FALSE) ) )","v":""},null,null,null,null,{"$f":"IF(TRIM(DK83)=\"\", \"\", IF(VLOOKUP(DK83,'Footnotes list'!$D$9:$E$58,2,FALSE)=0,\"\",VLOOKUP(DK83,'Footnotes list'!$D$9:$E$58,2,FALSE) ) )","v":""},null,null,null,null,{"$f":"IF(TRIM(DP83)=\"\", \"\", IF(VLOOKUP(DP83,'Footnotes list'!$D$9:$E$58,2,FALSE)=0,\"\",VLOOKUP(DP83,'Footnotes list'!$D$9:$E$58,2,FALSE) ) )","v":""},null,null,null,null,{"$f":"IF(TRIM(DU83)=\"\", \"\", IF(VLOOKUP(DU83,'Footnotes list'!$D$9:$E$58,2,FALSE)=0,\"\",VLOOKUP(DU83,'Footnotes list'!$D$9:$E$58,2,FALSE) ) )","v":""},null,null,null,null,{"$f":"IF(TRIM(DZ83)=\"\", \"\", IF(VLOOKUP(DZ83,'Footnotes list'!$D$9:$E$58,2,FALSE)=0,\"\",VLOOKUP(DZ83,'Footnotes list'!$D$9:$E$58,2,FALSE) ) )","v":""},null,null,null,null,{"$f":"IF(TRIM(EE83)=\"\", \"\", IF(VLOOKUP(EE83,'Footnotes list'!$D$9:$E$58,2,FALSE)=0,\"\",VLOOKUP(EE83,'Footnotes list'!$D$9:$E$58,2,FALSE) ) )","v":""},null,null,null,null,{"$f":"IF(TRIM(EJ83)=\"\", \"\", IF(VLOOKUP(EJ83,'Footnotes list'!$D$9:$E$58,2,FALSE)=0,\"\",VLOOKUP(EJ83,'Footnotes list'!$D$9:$E$58,2,FALSE) ) )","v":""},null,null,null,null,{"$f":"IF(TRIM(EO83)=\"\", \"\", IF(VLOOKUP(EO83,'Footnotes list'!$D$9:$E$58,2,FALSE)=0,\"\",VLOOKUP(EO83,'Footnotes list'!$D$9:$E$58,2,FALSE) ) )","v":""},null,null,null,null,{"$f":"IF(TRIM(ET83)=\"\", \"\", IF(VLOOKUP(ET83,'Footnotes list'!$D$9:$E$58,2,FALSE)=0,\"\",VLOOKUP(ET83,'Footnotes list'!$D$9:$E$58,2,FALSE) ) )","v":""},null,null,null,null,{"$f":"IF(TRIM(EY83)=\"\", \"\", IF(VLOOKUP(EY83,'Footnotes list'!$D$9:$E$58,2,FALSE)=0,\"\",VLOOKUP(EY83,'Footnotes list'!$D$9:$E$58,2,FALSE) ) )","v":""}]
[null,null,"C22_C23","C_REP","cleaner and resource efficient products",null,null,null,null,null,{"$f":"IF(TRIM(J84)=\"\", \"\", IF(VLOOKUP(J84,'Footnotes list'!$D$9:$E$58,2,FALSE)=0,\"\",VLOOKUP(J84,'Footnotes list'!$D$9:$E$58,2,FALSE) ) )","v":""},null,null,null,null,{"$f":"IF(TRIM(O84)=\"\", \"\", IF(VLOOKUP(O84,'Footnotes list'!$D$9:$E$58,2,FALSE)=0,\"\",VLOOKUP(O84,'Footnotes list'!$D$9:$E$58,2,FALSE) ) )","v":""},null,null,null,null,{"$f":"IF(TRIM(T84)=\"\", \"\", IF(VLOOKUP(T84,'Footnotes list'!$D$9:$E$58,2,FALSE)=0,\"\",VLOOKUP(T84,'Footnotes list'!$D$9:$E$58,2,FALSE) ) )","v":""},null,null,null,null,{"$f":"IF(TRIM(Y84)=\"\", \"\", IF(VLOOKUP(Y84,'Footnotes list'!$D$9:$E$58,2,FALSE)=0,\"\",VLOOKUP(Y84,'Footnotes list'!$D$9:$E$58,2,FALSE) ) )","v":""},null,null,null,null,{"$f":"IF(TRIM(AD84)=\"\", \"\", IF(VLOOKUP(AD84,'Footnotes list'!$D$9:$E$58,2,FALSE)=0,\"\",VLOOKUP(AD84,'Footnotes list'!$D$9:$E$58,2,FALSE) ) )","v":""},null,null,null,null,{"$f":"IF(TRIM(AI84)=\"\", \"\", IF(VLOOKUP(AI84,'Footnotes list'!$D$9:$E$58,2,FALSE)=0,\"\",VLOOKUP(AI84,'Footnotes list'!$D$9:$E$58,2,FALSE) ) )","v":""},null,null,null,null,{"$f":"IF(TRIM(AN84)=\"\", \"\", IF(VLOOKUP(AN84,'Footnotes list'!$D$9:$E$58,2,FALSE)=0,\"\",VLOOKUP(AN84,'Footnotes list'!$D$9:$E$58,2,FALSE) ) )","v":""},null,null,null,null,{"$f":"IF(TRIM(AS84)=\"\", \"\", IF(VLOOKUP(AS84,'Footnotes list'!$D$9:$E$58,2,FALSE)=0,\"\",VLOOKUP(AS84,'Footnotes list'!$D$9:$E$58,2,FALSE) ) )","v":""},null,null,null,null,{"$f":"IF(TRIM(AX84)=\"\", \"\", IF(VLOOKUP(AX84,'Footnotes list'!$D$9:$E$58,2,FALSE)=0,\"\",VLOOKUP(AX84,'Footnotes list'!$D$9:$E$58,2,FALSE) ) )","v":""},null,null,null,null,{"$f":"IF(TRIM(BC84)=\"\", \"\", IF(VLOOKUP(BC84,'Footnotes list'!$D$9:$E$58,2,FALSE)=0,\"\",VLOOKUP(BC84,'Footnotes list'!$D$9:$E$58,2,FALSE) ) )","v":""},null,null,null,null,{"$f":"IF(TRIM(BH84)=\"\", \"\", IF(VLOOKUP(BH84,'Footnotes list'!$D$9:$E$58,2,FALSE)=0,\"\",VLOOKUP(BH84,'Footnotes list'!$D$9:$E$58,2,FALSE) ) )","v":""},null,null,null,null,{"$f":"IF(TRIM(BM84)=\"\", \"\", IF(VLOOKUP(BM84,'Footnotes list'!$D$9:$E$58,2,FALSE)=0,\"\",VLOOKUP(BM84,'Footnotes list'!$D$9:$E$58,2,FALSE) ) )","v":""},null,null,null,null,{"$f":"IF(TRIM(BR84)=\"\", \"\", IF(VLOOKUP(BR84,'Footnotes list'!$D$9:$E$58,2,FALSE)=0,\"\",VLOOKUP(BR84,'Footnotes list'!$D$9:$E$58,2,FALSE) ) )","v":""},null,null,null,null,{"$f":"IF(TRIM(BW84)=\"\", \"\", IF(VLOOKUP(BW84,'Footnotes list'!$D$9:$E$58,2,FALSE)=0,\"\",VLOOKUP(BW84,'Footnotes list'!$D$9:$E$58,2,FALSE) ) )","v":""},null,null,null,null,{"$f":"IF(TRIM(CB84)=\"\", \"\", IF(VLOOKUP(CB84,'Footnotes list'!$D$9:$E$58,2,FALSE)=0,\"\",VLOOKUP(CB84,'Footnotes list'!$D$9:$E$58,2,FALSE) ) )","v":""},null,null,null,null,{"$f":"IF(TRIM(CG84)=\"\", \"\", IF(VLOOKUP(CG84,'Footnotes list'!$D$9:$E$58,2,FALSE)=0,\"\",VLOOKUP(CG84,'Footnotes list'!$D$9:$E$58,2,FALSE) ) )","v":""},null,null,null,null,{"$f":"IF(TRIM(CL84)=\"\", \"\", IF(VLOOKUP(CL84,'Footnotes list'!$D$9:$E$58,2,FALSE)=0,\"\",VLOOKUP(CL84,'Footnotes list'!$D$9:$E$58,2,FALSE) ) )","v":""},null,null,null,null,{"$f":"IF(TRIM(CQ84)=\"\", \"\", IF(VLOOKUP(CQ84,'Footnotes list'!$D$9:$E$58,2,FALSE)=0,\"\",VLOOKUP(CQ84,'Footnotes list'!$D$9:$E$58,2,FALSE) ) )","v":""},null,null,null,null,{"$f":"IF(TRIM(CV84)=\"\", \"\", IF(VLOOKUP(CV84,'Footnotes list'!$D$9:$E$58,2,FALSE)=0,\"\",VLOOKUP(CV84,'Footnotes list'!$D$9:$E$58,2,FALSE) ) )","v":""},null,null,null,null,{"$f":"IF(TRIM(DA84)=\"\", \"\", IF(VLOOKUP(DA84,'Footnotes list'!$D$9:$E$58,2,FALSE)=0,\"\",VLOOKUP(DA84,'Footnotes list'!$D$9:$E$58,2,FALSE) ) )","v":""},null,null,null,null,{"$f":"IF(TRIM(DF84)=\"\", \"\", IF(VLOOKUP(DF84,'Footnotes list'!$D$9:$E$58,2,FALSE)=0,\"\",VLOOKUP(DF84,'Footnotes list'!$D$9:$E$58,2,FALSE) ) )","v":""},null,null,null,null,{"$f":"IF(TRIM(DK84)=\"\", \"\", IF(VLOOKUP(DK84,'Footnotes list'!$D$9:$E$58,2,FALSE)=0,\"\",VLOOKUP(DK84,'Footnotes list'!$D$9:$E$58,2,FALSE) ) )","v":""},null,null,null,null,{"$f":"IF(TRIM(DP84)=\"\", \"\", IF(VLOOKUP(DP84,'Footnotes list'!$D$9:$E$58,2,FALSE)=0,\"\",VLOOKUP(DP84,'Footnotes list'!$D$9:$E$58,2,FALSE) ) )","v":""},null,null,null,null,{"$f":"IF(TRIM(DU84)=\"\", \"\", IF(VLOOKUP(DU84,'Footnotes list'!$D$9:$E$58,2,FALSE)=0,\"\",VLOOKUP(DU84,'Footnotes list'!$D$9:$E$58,2,FALSE) ) )","v":""},null,null,null,null,{"$f":"IF(TRIM(DZ84)=\"\", \"\", IF(VLOOKUP(DZ84,'Footnotes list'!$D$9:$E$58,2,FALSE)=0,\"\",VLOOKUP(DZ84,'Footnotes list'!$D$9:$E$58,2,FALSE) ) )","v":""},null,null,null,null,{"$f":"IF(TRIM(EE84)=\"\", \"\", IF(VLOOKUP(EE84,'Footnotes list'!$D$9:$E$58,2,FALSE)=0,\"\",VLOOKUP(EE84,'Footnotes list'!$D$9:$E$58,2,FALSE) ) )","v":""},null,null,null,null,{"$f":"IF(TRIM(EJ84)=\"\", \"\", IF(VLOOKUP(EJ84,'Footnotes list'!$D$9:$E$58,2,FALSE)=0,\"\",VLOOKUP(EJ84,'Footnotes list'!$D$9:$E$58,2,FALSE) ) )","v":""},null,null,null,null,{"$f":"IF(TRIM(EO84)=\"\", \"\", IF(VLOOKUP(EO84,'Footnotes list'!$D$9:$E$58,2,FALSE)=0,\"\",VLOOKUP(EO84,'Footnotes list'!$D$9:$E$58,2,FALSE) ) )","v":""},null,null,null,null,{"$f":"IF(TRIM(ET84)=\"\", \"\", IF(VLOOKUP(ET84,'Footnotes list'!$D$9:$E$58,2,FALSE)=0,\"\",VLOOKUP(ET84,'Footnotes list'!$D$9:$E$58,2,FALSE) ) )","v":""},null,null,null,null,{"$f":"IF(TRIM(EY84)=\"\", \"\", IF(VLOOKUP(EY84,'Footnotes list'!$D$9:$E$58,2,FALSE)=0,\"\",VLOOKUP(EY84,'Footnotes list'!$D$9:$E$58,2,FALSE) ) )","v":""}]
[null,null,"C24_C25","TOT_EGSS","Total C24 - C25 Manufacture of basic metals and fabricated metal products, except machinery and equipment, of which:",null,null,null,null,null,{"$f":"IF(TRIM(J85)=\"\", \"\", IF(VLOOKUP(J85,'Footnotes list'!$D$9:$E$58,2,FALSE)=0,\"\",VLOOKUP(J85,'Footnotes list'!$D$9:$E$58,2,FALSE) ) )","v":""},null,null,null,null,{"$f":"IF(TRIM(O85)=\"\", \"\", IF(VLOOKUP(O85,'Footnotes list'!$D$9:$E$58,2,FALSE)=0,\"\",VLOOKUP(O85,'Footnotes list'!$D$9:$E$58,2,FALSE) ) )","v":""},null,null,null,null,{"$f":"IF(TRIM(T85)=\"\", \"\", IF(VLOOKUP(T85,'Footnotes list'!$D$9:$E$58,2,FALSE)=0,\"\",VLOOKUP(T85,'Footnotes list'!$D$9:$E$58,2,FALSE) ) )","v":""},null,null,null,null,{"$f":"IF(TRIM(Y85)=\"\", \"\", IF(VLOOKUP(Y85,'Footnotes list'!$D$9:$E$58,2,FALSE)=0,\"\",VLOOKUP(Y85,'Footnotes list'!$D$9:$E$58,2,FALSE) ) )","v":""},null,null,null,null,{"$f":"IF(TRIM(AD85)=\"\", \"\", IF(VLOOKUP(AD85,'Footnotes list'!$D$9:$E$58,2,FALSE)=0,\"\",VLOOKUP(AD85,'Footnotes list'!$D$9:$E$58,2,FALSE) ) )","v":""},null,null,null,null,{"$f":"IF(TRIM(AI85)=\"\", \"\", IF(VLOOKUP(AI85,'Footnotes list'!$D$9:$E$58,2,FALSE)=0,\"\",VLOOKUP(AI85,'Footnotes list'!$D$9:$E$58,2,FALSE) ) )","v":""},null,null,null,null,{"$f":"IF(TRIM(AN85)=\"\", \"\", IF(VLOOKUP(AN85,'Footnotes list'!$D$9:$E$58,2,FALSE)=0,\"\",VLOOKUP(AN85,'Footnotes list'!$D$9:$E$58,2,FALSE) ) )","v":""},null,null,null,null,{"$f":"IF(TRIM(AS85)=\"\", \"\", IF(VLOOKUP(AS85,'Footnotes list'!$D$9:$E$58,2,FALSE)=0,\"\",VLOOKUP(AS85,'Footnotes list'!$D$9:$E$58,2,FALSE) ) )","v":""},null,null,null,null,{"$f":"IF(TRIM(AX85)=\"\", \"\", IF(VLOOKUP(AX85,'Footnotes list'!$D$9:$E$58,2,FALSE)=0,\"\",VLOOKUP(AX85,'Footnotes list'!$D$9:$E$58,2,FALSE) ) )","v":""},null,null,null,null,{"$f":"IF(TRIM(BC85)=\"\", \"\", IF(VLOOKUP(BC85,'Footnotes list'!$D$9:$E$58,2,FALSE)=0,\"\",VLOOKUP(BC85,'Footnotes list'!$D$9:$E$58,2,FALSE) ) )","v":""},null,null,null,null,{"$f":"IF(TRIM(BH85)=\"\", \"\", IF(VLOOKUP(BH85,'Footnotes list'!$D$9:$E$58,2,FALSE)=0,\"\",VLOOKUP(BH85,'Footnotes list'!$D$9:$E$58,2,FALSE) ) )","v":""},null,null,null,null,{"$f":"IF(TRIM(BM85)=\"\", \"\", IF(VLOOKUP(BM85,'Footnotes list'!$D$9:$E$58,2,FALSE)=0,\"\",VLOOKUP(BM85,'Footnotes list'!$D$9:$E$58,2,FALSE) ) )","v":""},null,null,null,null,{"$f":"IF(TRIM(BR85)=\"\", \"\", IF(VLOOKUP(BR85,'Footnotes list'!$D$9:$E$58,2,FALSE)=0,\"\",VLOOKUP(BR85,'Footnotes list'!$D$9:$E$58,2,FALSE) ) )","v":""},null,null,null,null,{"$f":"IF(TRIM(BW85)=\"\", \"\", IF(VLOOKUP(BW85,'Footnotes list'!$D$9:$E$58,2,FALSE)=0,\"\",VLOOKUP(BW85,'Footnotes list'!$D$9:$E$58,2,FALSE) ) )","v":""},null,null,null,null,{"$f":"IF(TRIM(CB85)=\"\", \"\", IF(VLOOKUP(CB85,'Footnotes list'!$D$9:$E$58,2,FALSE)=0,\"\",VLOOKUP(CB85,'Footnotes list'!$D$9:$E$58,2,FALSE) ) )","v":""},null,null,null,null,{"$f":"IF(TRIM(CG85)=\"\", \"\", IF(VLOOKUP(CG85,'Footnotes list'!$D$9:$E$58,2,FALSE)=0,\"\",VLOOKUP(CG85,'Footnotes list'!$D$9:$E$58,2,FALSE) ) )","v":""},null,null,null,null,{"$f":"IF(TRIM(CL85)=\"\", \"\", IF(VLOOKUP(CL85,'Footnotes list'!$D$9:$E$58,2,FALSE)=0,\"\",VLOOKUP(CL85,'Footnotes list'!$D$9:$E$58,2,FALSE) ) )","v":""},null,null,null,null,{"$f":"IF(TRIM(CQ85)=\"\", \"\", IF(VLOOKUP(CQ85,'Footnotes list'!$D$9:$E$58,2,FALSE)=0,\"\",VLOOKUP(CQ85,'Footnotes list'!$D$9:$E$58,2,FALSE) ) )","v":""},null,null,null,null,{"$f":"IF(TRIM(CV85)=\"\", \"\", IF(VLOOKUP(CV85,'Footnotes list'!$D$9:$E$58,2,FALSE)=0,\"\",VLOOKUP(CV85,'Footnotes list'!$D$9:$E$58,2,FALSE) ) )","v":""},null,null,null,null,{"$f":"IF(TRIM(DA85)=\"\", \"\", IF(VLOOKUP(DA85,'Footnotes list'!$D$9:$E$58,2,FALSE)=0,\"\",VLOOKUP(DA85,'Footnotes list'!$D$9:$E$58,2,FALSE) ) )","v":""},null,null,null,null,{"$f":"IF(TRIM(DF85)=\"\", \"\", IF(VLOOKUP(DF85,'Footnotes list'!$D$9:$E$58,2,FALSE)=0,\"\",VLOOKUP(DF85,'Footnotes list'!$D$9:$E$58,2,FALSE) ) )","v":""},null,null,null,null,{"$f":"IF(TRIM(DK85)=\"\", \"\", IF(VLOOKUP(DK85,'Footnotes list'!$D$9:$E$58,2,FALSE)=0,\"\",VLOOKUP(DK85,'Footnotes list'!$D$9:$E$58,2,FALSE) ) )","v":""},null,null,null,null,{"$f":"IF(TRIM(DP85)=\"\", \"\", IF(VLOOKUP(DP85,'Footnotes list'!$D$9:$E$58,2,FALSE)=0,\"\",VLOOKUP(DP85,'Footnotes list'!$D$9:$E$58,2,FALSE) ) )","v":""},null,null,null,null,{"$f":"IF(TRIM(DU85)=\"\", \"\", IF(VLOOKUP(DU85,'Footnotes list'!$D$9:$E$58,2,FALSE)=0,\"\",VLOOKUP(DU85,'Footnotes list'!$D$9:$E$58,2,FALSE) ) )","v":""},null,null,null,null,{"$f":"IF(TRIM(DZ85)=\"\", \"\", IF(VLOOKUP(DZ85,'Footnotes list'!$D$9:$E$58,2,FALSE)=0,\"\",VLOOKUP(DZ85,'Footnotes list'!$D$9:$E$58,2,FALSE) ) )","v":""},null,null,null,null,{"$f":"IF(TRIM(EE85)=\"\", \"\", IF(VLOOKUP(EE85,'Footnotes list'!$D$9:$E$58,2,FALSE)=0,\"\",VLOOKUP(EE85,'Footnotes list'!$D$9:$E$58,2,FALSE) ) )","v":""},null,null,null,null,{"$f":"IF(TRIM(EJ85)=\"\", \"\", IF(VLOOKUP(EJ85,'Footnotes list'!$D$9:$E$58,2,FALSE)=0,\"\",VLOOKUP(EJ85,'Footnotes list'!$D$9:$E$58,2,FALSE) ) )","v":""},null,null,null,null,{"$f":"IF(TRIM(EO85)=\"\", \"\", IF(VLOOKUP(EO85,'Footnotes list'!$D$9:$E$58,2,FALSE)=0,\"\",VLOOKUP(EO85,'Footnotes list'!$D$9:$E$58,2,FALSE) ) )","v":""},null,null,null,null,{"$f":"IF(TRIM(ET85)=\"\", \"\", IF(VLOOKUP(ET85,'Footnotes list'!$D$9:$E$58,2,FALSE)=0,\"\",VLOOKUP(ET85,'Footnotes list'!$D$9:$E$58,2,FALSE) ) )","v":""},null,null,null,null,{"$f":"IF(TRIM(EY85)=\"\", \"\", IF(VLOOKUP(EY85,'Footnotes list'!$D$9:$E$58,2,FALSE)=0,\"\",VLOOKUP(EY85,'Footnotes list'!$D$9:$E$58,2,FALSE) ) )","v":""}]
[null,null,"C24_C25","ANC","ancillary activities",null,null,null,null,null,{"$f":"IF(TRIM(J86)=\"\", \"\", IF(VLOOKUP(J86,'Footnotes list'!$D$9:$E$58,2,FALSE)=0,\"\",VLOOKUP(J86,'Footnotes list'!$D$9:$E$58,2,FALSE) ) )","v":""},null,null,null,null,{"$f":"IF(TRIM(O86)=\"\", \"\", IF(VLOOKUP(O86,'Footnotes list'!$D$9:$E$58,2,FALSE)=0,\"\",VLOOKUP(O86,'Footnotes list'!$D$9:$E$58,2,FALSE) ) )","v":""},null,null,null,null,{"$f":"IF(TRIM(T86)=\"\", \"\", IF(VLOOKUP(T86,'Footnotes list'!$D$9:$E$58,2,FALSE)=0,\"\",VLOOKUP(T86,'Footnotes list'!$D$9:$E$58,2,FALSE) ) )","v":""},null,null,null,null,{"$f":"IF(TRIM(Y86)=\"\", \"\", IF(VLOOKUP(Y86,'Footnotes list'!$D$9:$E$58,2,FALSE)=0,\"\",VLOOKUP(Y86,'Footnotes list'!$D$9:$E$58,2,FALSE) ) )","v":""},null,null,null,null,{"$f":"IF(TRIM(AD86)=\"\", \"\", IF(VLOOKUP(AD86,'Footnotes list'!$D$9:$E$58,2,FALSE)=0,\"\",VLOOKUP(AD86,'Footnotes list'!$D$9:$E$58,2,FALSE) ) )","v":""},null,null,null,null,{"$f":"IF(TRIM(AI86)=\"\", \"\", IF(VLOOKUP(AI86,'Footnotes list'!$D$9:$E$58,2,FALSE)=0,\"\",VLOOKUP(AI86,'Footnotes list'!$D$9:$E$58,2,FALSE) ) )","v":""},null,null,null,null,{"$f":"IF(TRIM(AN86)=\"\", \"\", IF(VLOOKUP(AN86,'Footnotes list'!$D$9:$E$58,2,FALSE)=0,\"\",VLOOKUP(AN86,'Footnotes list'!$D$9:$E$58,2,FALSE) ) )","v":""},null,null,null,null,{"$f":"IF(TRIM(AS86)=\"\", \"\", IF(VLOOKUP(AS86,'Footnotes list'!$D$9:$E$58,2,FALSE)=0,\"\",VLOOKUP(AS86,'Footnotes list'!$D$9:$E$58,2,FALSE) ) )","v":""},null,null,null,null,{"$f":"IF(TRIM(AX86)=\"\", \"\", IF(VLOOKUP(AX86,'Footnotes list'!$D$9:$E$58,2,FALSE)=0,\"\",VLOOKUP(AX86,'Footnotes list'!$D$9:$E$58,2,FALSE) ) )","v":""},null,null,null,null,{"$f":"IF(TRIM(BC86)=\"\", \"\", IF(VLOOKUP(BC86,'Footnotes list'!$D$9:$E$58,2,FALSE)=0,\"\",VLOOKUP(BC86,'Footnotes list'!$D$9:$E$58,2,FALSE) ) )","v":""},null,null,null,null,{"$f":"IF(TRIM(BH86)=\"\", \"\", IF(VLOOKUP(BH86,'Footnotes list'!$D$9:$E$58,2,FALSE)=0,\"\",VLOOKUP(BH86,'Footnotes list'!$D$9:$E$58,2,FALSE) ) )","v":""},null,null,null,null,{"$f":"IF(TRIM(BM86)=\"\", \"\", IF(VLOOKUP(BM86,'Footnotes list'!$D$9:$E$58,2,FALSE)=0,\"\",VLOOKUP(BM86,'Footnotes list'!$D$9:$E$58,2,FALSE) ) )","v":""},null,null,null,null,{"$f":"IF(TRIM(BR86)=\"\", \"\", IF(VLOOKUP(BR86,'Footnotes list'!$D$9:$E$58,2,FALSE)=0,\"\",VLOOKUP(BR86,'Footnotes list'!$D$9:$E$58,2,FALSE) ) )","v":""},null,null,null,null,{"$f":"IF(TRIM(BW86)=\"\", \"\", IF(VLOOKUP(BW86,'Footnotes list'!$D$9:$E$58,2,FALSE)=0,\"\",VLOOKUP(BW86,'Footnotes list'!$D$9:$E$58,2,FALSE) ) )","v":""},null,null,null,null,{"$f":"IF(TRIM(CB86)=\"\", \"\", IF(VLOOKUP(CB86,'Footnotes list'!$D$9:$E$58,2,FALSE)=0,\"\",VLOOKUP(CB86,'Footnotes list'!$D$9:$E$58,2,FALSE) ) )","v":""},null,null,null,null,{"$f":"IF(TRIM(CG86)=\"\", \"\", IF(VLOOKUP(CG86,'Footnotes list'!$D$9:$E$58,2,FALSE)=0,\"\",VLOOKUP(CG86,'Footnotes list'!$D$9:$E$58,2,FALSE) ) )","v":""},null,null,null,null,{"$f":"IF(TRIM(CL86)=\"\", \"\", IF(VLOOKUP(CL86,'Footnotes list'!$D$9:$E$58,2,FALSE)=0,\"\",VLOOKUP(CL86,'Footnotes list'!$D$9:$E$58,2,FALSE) ) )","v":""},null,null,null,null,{"$f":"IF(TRIM(CQ86)=\"\", \"\", IF(VLOOKUP(CQ86,'Footnotes list'!$D$9:$E$58,2,FALSE)=0,\"\",VLOOKUP(CQ86,'Footnotes list'!$D$9:$E$58,2,FALSE) ) )","v":""},null,null,null,null,{"$f":"IF(TRIM(CV86)=\"\", \"\", IF(VLOOKUP(CV86,'Footnotes list'!$D$9:$E$58,2,FALSE)=0,\"\",VLOOKUP(CV86,'Footnotes list'!$D$9:$E$58,2,FALSE) ) )","v":""},null,null,null,null,{"$f":"IF(TRIM(DA86)=\"\", \"\", IF(VLOOKUP(DA86,'Footnotes list'!$D$9:$E$58,2,FALSE)=0,\"\",VLOOKUP(DA86,'Footnotes list'!$D$9:$E$58,2,FALSE) ) )","v":""},null,null,null,null,{"$f":"IF(TRIM(DF86)=\"\", \"\", IF(VLOOKUP(DF86,'Footnotes list'!$D$9:$E$58,2,FALSE)=0,\"\",VLOOKUP(DF86,'Footnotes list'!$D$9:$E$58,2,FALSE) ) )","v":""},null,null,null,null,{"$f":"IF(TRIM(DK86)=\"\", \"\", IF(VLOOKUP(DK86,'Footnotes list'!$D$9:$E$58,2,FALSE)=0,\"\",VLOOKUP(DK86,'Footnotes list'!$D$9:$E$58,2,FALSE) ) )","v":""},null,null,null,null,{"$f":"IF(TRIM(DP86)=\"\", \"\", IF(VLOOKUP(DP86,'Footnotes list'!$D$9:$E$58,2,FALSE)=0,\"\",VLOOKUP(DP86,'Footnotes list'!$D$9:$E$58,2,FALSE) ) )","v":""},null,null,null,null,{"$f":"IF(TRIM(DU86)=\"\", \"\", IF(VLOOKUP(DU86,'Footnotes list'!$D$9:$E$58,2,FALSE)=0,\"\",VLOOKUP(DU86,'Footnotes list'!$D$9:$E$58,2,FALSE) ) )","v":""},null,null,null,null,{"$f":"IF(TRIM(DZ86)=\"\", \"\", IF(VLOOKUP(DZ86,'Footnotes list'!$D$9:$E$58,2,FALSE)=0,\"\",VLOOKUP(DZ86,'Footnotes list'!$D$9:$E$58,2,FALSE) ) )","v":""},null,null,null,null,{"$f":"IF(TRIM(EE86)=\"\", \"\", IF(VLOOKUP(EE86,'Footnotes list'!$D$9:$E$58,2,FALSE)=0,\"\",VLOOKUP(EE86,'Footnotes list'!$D$9:$E$58,2,FALSE) ) )","v":""},null,null,null,null,{"$f":"IF(TRIM(EJ86)=\"\", \"\", IF(VLOOKUP(EJ86,'Footnotes list'!$D$9:$E$58,2,FALSE)=0,\"\",VLOOKUP(EJ86,'Footnotes list'!$D$9:$E$58,2,FALSE) ) )","v":""},null,null,null,null,{"$f":"IF(TRIM(EO86)=\"\", \"\", IF(VLOOKUP(EO86,'Footnotes list'!$D$9:$E$58,2,FALSE)=0,\"\",VLOOKUP(EO86,'Footnotes list'!$D$9:$E$58,2,FALSE) ) )","v":""},null,null,null,null,{"$f":"IF(TRIM(ET86)=\"\", \"\", IF(VLOOKUP(ET86,'Footnotes list'!$D$9:$E$58,2,FALSE)=0,\"\",VLOOKUP(ET86,'Footnotes list'!$D$9:$E$58,2,FALSE) ) )","v":""},null,null,null,null,{"$f":"IF(TRIM(EY86)=\"\", \"\", IF(VLOOKUP(EY86,'Footnotes list'!$D$9:$E$58,2,FALSE)=0,\"\",VLOOKUP(EY86,'Footnotes list'!$D$9:$E$58,2,FALSE) ) )","v":""}]
[null,null,"C24_C25","NMKT","non-market activities",null,null,null,null,null,{"$f":"IF(TRIM(J87)=\"\", \"\", IF(VLOOKUP(J87,'Footnotes list'!$D$9:$E$58,2,FALSE)=0,\"\",VLOOKUP(J87,'Footnotes list'!$D$9:$E$58,2,FALSE) ) )","v":""},null,null,null,null,{"$f":"IF(TRIM(O87)=\"\", \"\", IF(VLOOKUP(O87,'Footnotes list'!$D$9:$E$58,2,FALSE)=0,\"\",VLOOKUP(O87,'Footnotes list'!$D$9:$E$58,2,FALSE) ) )","v":""},null,null,null,null,{"$f":"IF(TRIM(T87)=\"\", \"\", IF(VLOOKUP(T87,'Footnotes list'!$D$9:$E$58,2,FALSE)=0,\"\",VLOOKUP(T87,'Footnotes list'!$D$9:$E$58,2,FALSE) ) )","v":""},null,null,null,null,{"$f":"IF(TRIM(Y87)=\"\", \"\", IF(VLOOKUP(Y87,'Footnotes list'!$D$9:$E$58,2,FALSE)=0,\"\",VLOOKUP(Y87,'Footnotes list'!$D$9:$E$58,2,FALSE) ) )","v":""},null,null,null,null,{"$f":"IF(TRIM(AD87)=\"\", \"\", IF(VLOOKUP(AD87,'Footnotes list'!$D$9:$E$58,2,FALSE)=0,\"\",VLOOKUP(AD87,'Footnotes list'!$D$9:$E$58,2,FALSE) ) )","v":""},null,null,null,null,{"$f":"IF(TRIM(AI87)=\"\", \"\", IF(VLOOKUP(AI87,'Footnotes list'!$D$9:$E$58,2,FALSE)=0,\"\",VLOOKUP(AI87,'Footnotes list'!$D$9:$E$58,2,FALSE) ) )","v":""},null,null,null,null,{"$f":"IF(TRIM(AN87)=\"\", \"\", IF(VLOOKUP(AN87,'Footnotes list'!$D$9:$E$58,2,FALSE)=0,\"\",VLOOKUP(AN87,'Footnotes list'!$D$9:$E$58,2,FALSE) ) )","v":""},null,null,null,null,{"$f":"IF(TRIM(AS87)=\"\", \"\", IF(VLOOKUP(AS87,'Footnotes list'!$D$9:$E$58,2,FALSE)=0,\"\",VLOOKUP(AS87,'Footnotes list'!$D$9:$E$58,2,FALSE) ) )","v":""},null,null,null,null,{"$f":"IF(TRIM(AX87)=\"\", \"\", IF(VLOOKUP(AX87,'Footnotes list'!$D$9:$E$58,2,FALSE)=0,\"\",VLOOKUP(AX87,'Footnotes list'!$D$9:$E$58,2,FALSE) ) )","v":""},null,null,null,null,{"$f":"IF(TRIM(BC87)=\"\", \"\", IF(VLOOKUP(BC87,'Footnotes list'!$D$9:$E$58,2,FALSE)=0,\"\",VLOOKUP(BC87,'Footnotes list'!$D$9:$E$58,2,FALSE) ) )","v":""},null,null,null,null,{"$f":"IF(TRIM(BH87)=\"\", \"\", IF(VLOOKUP(BH87,'Footnotes list'!$D$9:$E$58,2,FALSE)=0,\"\",VLOOKUP(BH87,'Footnotes list'!$D$9:$E$58,2,FALSE) ) )","v":""},null,null,null,null,{"$f":"IF(TRIM(BM87)=\"\", \"\", IF(VLOOKUP(BM87,'Footnotes list'!$D$9:$E$58,2,FALSE)=0,\"\",VLOOKUP(BM87,'Footnotes list'!$D$9:$E$58,2,FALSE) ) )","v":""},null,null,null,null,{"$f":"IF(TRIM(BR87)=\"\", \"\", IF(VLOOKUP(BR87,'Footnotes list'!$D$9:$E$58,2,FALSE)=0,\"\",VLOOKUP(BR87,'Footnotes list'!$D$9:$E$58,2,FALSE) ) )","v":""},null,null,null,null,{"$f":"IF(TRIM(BW87)=\"\", \"\", IF(VLOOKUP(BW87,'Footnotes list'!$D$9:$E$58,2,FALSE)=0,\"\",VLOOKUP(BW87,'Footnotes list'!$D$9:$E$58,2,FALSE) ) )","v":""},null,null,null,null,{"$f":"IF(TRIM(CB87)=\"\", \"\", IF(VLOOKUP(CB87,'Footnotes list'!$D$9:$E$58,2,FALSE)=0,\"\",VLOOKUP(CB87,'Footnotes list'!$D$9:$E$58,2,FALSE) ) )","v":""},null,null,null,null,{"$f":"IF(TRIM(CG87)=\"\", \"\", IF(VLOOKUP(CG87,'Footnotes list'!$D$9:$E$58,2,FALSE)=0,\"\",VLOOKUP(CG87,'Footnotes list'!$D$9:$E$58,2,FALSE) ) )","v":""},null,null,null,null,{"$f":"IF(TRIM(CL87)=\"\", \"\", IF(VLOOKUP(CL87,'Footnotes list'!$D$9:$E$58,2,FALSE)=0,\"\",VLOOKUP(CL87,'Footnotes list'!$D$9:$E$58,2,FALSE) ) )","v":""},null,null,null,null,{"$f":"IF(TRIM(CQ87)=\"\", \"\", IF(VLOOKUP(CQ87,'Footnotes list'!$D$9:$E$58,2,FALSE)=0,\"\",VLOOKUP(CQ87,'Footnotes list'!$D$9:$E$58,2,FALSE) ) )","v":""},null,null,null,null,{"$f":"IF(TRIM(CV87)=\"\", \"\", IF(VLOOKUP(CV87,'Footnotes list'!$D$9:$E$58,2,FALSE)=0,\"\",VLOOKUP(CV87,'Footnotes list'!$D$9:$E$58,2,FALSE) ) )","v":""},null,null,null,null,{"$f":"IF(TRIM(DA87)=\"\", \"\", IF(VLOOKUP(DA87,'Footnotes list'!$D$9:$E$58,2,FALSE)=0,\"\",VLOOKUP(DA87,'Footnotes list'!$D$9:$E$58,2,FALSE) ) )","v":""},null,null,null,null,{"$f":"IF(TRIM(DF87)=\"\", \"\", IF(VLOOKUP(DF87,'Footnotes list'!$D$9:$E$58,2,FALSE)=0,\"\",VLOOKUP(DF87,'Footnotes list'!$D$9:$E$58,2,FALSE) ) )","v":""},null,null,null,null,{"$f":"IF(TRIM(DK87)=\"\", \"\", IF(VLOOKUP(DK87,'Footnotes list'!$D$9:$E$58,2,FALSE)=0,\"\",VLOOKUP(DK87,'Footnotes list'!$D$9:$E$58,2,FALSE) ) )","v":""},null,null,null,null,{"$f":"IF(TRIM(DP87)=\"\", \"\", IF(VLOOKUP(DP87,'Footnotes list'!$D$9:$E$58,2,FALSE)=0,\"\",VLOOKUP(DP87,'Footnotes list'!$D$9:$E$58,2,FALSE) ) )","v":""},null,null,null,null,{"$f":"IF(TRIM(DU87)=\"\", \"\", IF(VLOOKUP(DU87,'Footnotes list'!$D$9:$E$58,2,FALSE)=0,\"\",VLOOKUP(DU87,'Footnotes list'!$D$9:$E$58,2,FALSE) ) )","v":""},null,null,null,null,{"$f":"IF(TRIM(DZ87)=\"\", \"\", IF(VLOOKUP(DZ87,'Footnotes list'!$D$9:$E$58,2,FALSE)=0,\"\",VLOOKUP(DZ87,'Footnotes list'!$D$9:$E$58,2,FALSE) ) )","v":""},null,null,null,null,{"$f":"IF(TRIM(EE87)=\"\", \"\", IF(VLOOKUP(EE87,'Footnotes list'!$D$9:$E$58,2,FALSE)=0,\"\",VLOOKUP(EE87,'Footnotes list'!$D$9:$E$58,2,FALSE) ) )","v":""},null,null,null,null,{"$f":"IF(TRIM(EJ87)=\"\", \"\", IF(VLOOKUP(EJ87,'Footnotes list'!$D$9:$E$58,2,FALSE)=0,\"\",VLOOKUP(EJ87,'Footnotes list'!$D$9:$E$58,2,FALSE) ) )","v":""},null,null,null,null,{"$f":"IF(TRIM(EO87)=\"\", \"\", IF(VLOOKUP(EO87,'Footnotes list'!$D$9:$E$58,2,FALSE)=0,\"\",VLOOKUP(EO87,'Footnotes list'!$D$9:$E$58,2,FALSE) ) )","v":""},null,null,null,null,{"$f":"IF(TRIM(ET87)=\"\", \"\", IF(VLOOKUP(ET87,'Footnotes list'!$D$9:$E$58,2,FALSE)=0,\"\",VLOOKUP(ET87,'Footnotes list'!$D$9:$E$58,2,FALSE) ) )","v":""},null,null,null,null,{"$f":"IF(TRIM(EY87)=\"\", \"\", IF(VLOOKUP(EY87,'Footnotes list'!$D$9:$E$58,2,FALSE)=0,\"\",VLOOKUP(EY87,'Footnotes list'!$D$9:$E$58,2,FALSE) ) )","v":""}]
[null,null,"C24_C25","OWN_USE","activities for own final use",null,null,null,null,null,{"$f":"IF(TRIM(J88)=\"\", \"\", IF(VLOOKUP(J88,'Footnotes list'!$D$9:$E$58,2,FALSE)=0,\"\",VLOOKUP(J88,'Footnotes list'!$D$9:$E$58,2,FALSE) ) )","v":""},null,null,null,null,{"$f":"IF(TRIM(O88)=\"\", \"\", IF(VLOOKUP(O88,'Footnotes list'!$D$9:$E$58,2,FALSE)=0,\"\",VLOOKUP(O88,'Footnotes list'!$D$9:$E$58,2,FALSE) ) )","v":""},null,null,null,null,{"$f":"IF(TRIM(T88)=\"\", \"\", IF(VLOOKUP(T88,'Footnotes list'!$D$9:$E$58,2,FALSE)=0,\"\",VLOOKUP(T88,'Footnotes list'!$D$9:$E$58,2,FALSE) ) )","v":""},null,null,null,null,{"$f":"IF(TRIM(Y88)=\"\", \"\", IF(VLOOKUP(Y88,'Footnotes list'!$D$9:$E$58,2,FALSE)=0,\"\",VLOOKUP(Y88,'Footnotes list'!$D$9:$E$58,2,FALSE) ) )","v":""},null,null,null,null,{"$f":"IF(TRIM(AD88)=\"\", \"\", IF(VLOOKUP(AD88,'Footnotes list'!$D$9:$E$58,2,FALSE)=0,\"\",VLOOKUP(AD88,'Footnotes list'!$D$9:$E$58,2,FALSE) ) )","v":""},null,null,null,null,{"$f":"IF(TRIM(AI88)=\"\", \"\", IF(VLOOKUP(AI88,'Footnotes list'!$D$9:$E$58,2,FALSE)=0,\"\",VLOOKUP(AI88,'Footnotes list'!$D$9:$E$58,2,FALSE) ) )","v":""},null,null,null,null,{"$f":"IF(TRIM(AN88)=\"\", \"\", IF(VLOOKUP(AN88,'Footnotes list'!$D$9:$E$58,2,FALSE)=0,\"\",VLOOKUP(AN88,'Footnotes list'!$D$9:$E$58,2,FALSE) ) )","v":""},null,null,null,null,{"$f":"IF(TRIM(AS88)=\"\", \"\", IF(VLOOKUP(AS88,'Footnotes list'!$D$9:$E$58,2,FALSE)=0,\"\",VLOOKUP(AS88,'Footnotes list'!$D$9:$E$58,2,FALSE) ) )","v":""},null,null,null,null,{"$f":"IF(TRIM(AX88)=\"\", \"\", IF(VLOOKUP(AX88,'Footnotes list'!$D$9:$E$58,2,FALSE)=0,\"\",VLOOKUP(AX88,'Footnotes list'!$D$9:$E$58,2,FALSE) ) )","v":""},null,null,null,null,{"$f":"IF(TRIM(BC88)=\"\", \"\", IF(VLOOKUP(BC88,'Footnotes list'!$D$9:$E$58,2,FALSE)=0,\"\",VLOOKUP(BC88,'Footnotes list'!$D$9:$E$58,2,FALSE) ) )","v":""},null,null,null,null,{"$f":"IF(TRIM(BH88)=\"\", \"\", IF(VLOOKUP(BH88,'Footnotes list'!$D$9:$E$58,2,FALSE)=0,\"\",VLOOKUP(BH88,'Footnotes list'!$D$9:$E$58,2,FALSE) ) )","v":""},null,null,null,null,{"$f":"IF(TRIM(BM88)=\"\", \"\", IF(VLOOKUP(BM88,'Footnotes list'!$D$9:$E$58,2,FALSE)=0,\"\",VLOOKUP(BM88,'Footnotes list'!$D$9:$E$58,2,FALSE) ) )","v":""},null,null,null,null,{"$f":"IF(TRIM(BR88)=\"\", \"\", IF(VLOOKUP(BR88,'Footnotes list'!$D$9:$E$58,2,FALSE)=0,\"\",VLOOKUP(BR88,'Footnotes list'!$D$9:$E$58,2,FALSE) ) )","v":""},null,null,null,null,{"$f":"IF(TRIM(BW88)=\"\", \"\", IF(VLOOKUP(BW88,'Footnotes list'!$D$9:$E$58,2,FALSE)=0,\"\",VLOOKUP(BW88,'Footnotes list'!$D$9:$E$58,2,FALSE) ) )","v":""},null,null,null,null,{"$f":"IF(TRIM(CB88)=\"\", \"\", IF(VLOOKUP(CB88,'Footnotes list'!$D$9:$E$58,2,FALSE)=0,\"\",VLOOKUP(CB88,'Footnotes list'!$D$9:$E$58,2,FALSE) ) )","v":""},null,null,null,null,{"$f":"IF(TRIM(CG88)=\"\", \"\", IF(VLOOKUP(CG88,'Footnotes list'!$D$9:$E$58,2,FALSE)=0,\"\",VLOOKUP(CG88,'Footnotes list'!$D$9:$E$58,2,FALSE) ) )","v":""},null,null,null,null,{"$f":"IF(TRIM(CL88)=\"\", \"\", IF(VLOOKUP(CL88,'Footnotes list'!$D$9:$E$58,2,FALSE)=0,\"\",VLOOKUP(CL88,'Footnotes list'!$D$9:$E$58,2,FALSE) ) )","v":""},null,null,null,null,{"$f":"IF(TRIM(CQ88)=\"\", \"\", IF(VLOOKUP(CQ88,'Footnotes list'!$D$9:$E$58,2,FALSE)=0,\"\",VLOOKUP(CQ88,'Footnotes list'!$D$9:$E$58,2,FALSE) ) )","v":""},null,null,null,null,{"$f":"IF(TRIM(CV88)=\"\", \"\", IF(VLOOKUP(CV88,'Footnotes list'!$D$9:$E$58,2,FALSE)=0,\"\",VLOOKUP(CV88,'Footnotes list'!$D$9:$E$58,2,FALSE) ) )","v":""},null,null,null,null,{"$f":"IF(TRIM(DA88)=\"\", \"\", IF(VLOOKUP(DA88,'Footnotes list'!$D$9:$E$58,2,FALSE)=0,\"\",VLOOKUP(DA88,'Footnotes list'!$D$9:$E$58,2,FALSE) ) )","v":""},null,null,null,null,{"$f":"IF(TRIM(DF88)=\"\", \"\", IF(VLOOKUP(DF88,'Footnotes list'!$D$9:$E$58,2,FALSE)=0,\"\",VLOOKUP(DF88,'Footnotes list'!$D$9:$E$58,2,FALSE) ) )","v":""},null,null,null,null,{"$f":"IF(TRIM(DK88)=\"\", \"\", IF(VLOOKUP(DK88,'Footnotes list'!$D$9:$E$58,2,FALSE)=0,\"\",VLOOKUP(DK88,'Footnotes list'!$D$9:$E$58,2,FALSE) ) )","v":""},null,null,null,null,{"$f":"IF(TRIM(DP88)=\"\", \"\", IF(VLOOKUP(DP88,'Footnotes list'!$D$9:$E$58,2,FALSE)=0,\"\",VLOOKUP(DP88,'Footnotes list'!$D$9:$E$58,2,FALSE) ) )","v":""},null,null,null,null,{"$f":"IF(TRIM(DU88)=\"\", \"\", IF(VLOOKUP(DU88,'Footnotes list'!$D$9:$E$58,2,FALSE)=0,\"\",VLOOKUP(DU88,'Footnotes list'!$D$9:$E$58,2,FALSE) ) )","v":""},null,null,null,null,{"$f":"IF(TRIM(DZ88)=\"\", \"\", IF(VLOOKUP(DZ88,'Footnotes list'!$D$9:$E$58,2,FALSE)=0,\"\",VLOOKUP(DZ88,'Footnotes list'!$D$9:$E$58,2,FALSE) ) )","v":""},null,null,null,null,{"$f":"IF(TRIM(EE88)=\"\", \"\", IF(VLOOKUP(EE88,'Footnotes list'!$D$9:$E$58,2,FALSE)=0,\"\",VLOOKUP(EE88,'Footnotes list'!$D$9:$E$58,2,FALSE) ) )","v":""},null,null,null,null,{"$f":"IF(TRIM(EJ88)=\"\", \"\", IF(VLOOKUP(EJ88,'Footnotes list'!$D$9:$E$58,2,FALSE)=0,\"\",VLOOKUP(EJ88,'Footnotes list'!$D$9:$E$58,2,FALSE) ) )","v":""},null,null,null,null,{"$f":"IF(TRIM(EO88)=\"\", \"\", IF(VLOOKUP(EO88,'Footnotes list'!$D$9:$E$58,2,FALSE)=0,\"\",VLOOKUP(EO88,'Footnotes list'!$D$9:$E$58,2,FALSE) ) )","v":""},null,null,null,null,{"$f":"IF(TRIM(ET88)=\"\", \"\", IF(VLOOKUP(ET88,'Footnotes list'!$D$9:$E$58,2,FALSE)=0,\"\",VLOOKUP(ET88,'Footnotes list'!$D$9:$E$58,2,FALSE) ) )","v":""},null,null,null,null,{"$f":"IF(TRIM(EY88)=\"\", \"\", IF(VLOOKUP(EY88,'Footnotes list'!$D$9:$E$58,2,FALSE)=0,\"\",VLOOKUP(EY88,'Footnotes list'!$D$9:$E$58,2,FALSE) ) )","v":""}]
[null,null,"C24_C25","MKT","market activities, including:",null,null,null,null,null,{"$f":"IF(TRIM(J89)=\"\", \"\", IF(VLOOKUP(J89,'Footnotes list'!$D$9:$E$58,2,FALSE)=0,\"\",VLOOKUP(J89,'Footnotes list'!$D$9:$E$58,2,FALSE) ) )","v":""},null,null,null,null,{"$f":"IF(TRIM(O89)=\"\", \"\", IF(VLOOKUP(O89,'Footnotes list'!$D$9:$E$58,2,FALSE)=0,\"\",VLOOKUP(O89,'Footnotes list'!$D$9:$E$58,2,FALSE) ) )","v":""},null,null,null,null,{"$f":"IF(TRIM(T89)=\"\", \"\", IF(VLOOKUP(T89,'Footnotes list'!$D$9:$E$58,2,FALSE)=0,\"\",VLOOKUP(T89,'Footnotes list'!$D$9:$E$58,2,FALSE) ) )","v":""},null,null,null,null,{"$f":"IF(TRIM(Y89)=\"\", \"\", IF(VLOOKUP(Y89,'Footnotes list'!$D$9:$E$58,2,FALSE)=0,\"\",VLOOKUP(Y89,'Footnotes list'!$D$9:$E$58,2,FALSE) ) )","v":""},null,null,null,null,{"$f":"IF(TRIM(AD89)=\"\", \"\", IF(VLOOKUP(AD89,'Footnotes list'!$D$9:$E$58,2,FALSE)=0,\"\",VLOOKUP(AD89,'Footnotes list'!$D$9:$E$58,2,FALSE) ) )","v":""},null,null,null,null,{"$f":"IF(TRIM(AI89)=\"\", \"\", IF(VLOOKUP(AI89,'Footnotes list'!$D$9:$E$58,2,FALSE)=0,\"\",VLOOKUP(AI89,'Footnotes list'!$D$9:$E$58,2,FALSE) ) )","v":""},null,null,null,null,{"$f":"IF(TRIM(AN89)=\"\", \"\", IF(VLOOKUP(AN89,'Footnotes list'!$D$9:$E$58,2,FALSE)=0,\"\",VLOOKUP(AN89,'Footnotes list'!$D$9:$E$58,2,FALSE) ) )","v":""},null,null,null,null,{"$f":"IF(TRIM(AS89)=\"\", \"\", IF(VLOOKUP(AS89,'Footnotes list'!$D$9:$E$58,2,FALSE)=0,\"\",VLOOKUP(AS89,'Footnotes list'!$D$9:$E$58,2,FALSE) ) )","v":""},null,null,null,null,{"$f":"IF(TRIM(AX89)=\"\", \"\", IF(VLOOKUP(AX89,'Footnotes list'!$D$9:$E$58,2,FALSE)=0,\"\",VLOOKUP(AX89,'Footnotes list'!$D$9:$E$58,2,FALSE) ) )","v":""},null,null,null,null,{"$f":"IF(TRIM(BC89)=\"\", \"\", IF(VLOOKUP(BC89,'Footnotes list'!$D$9:$E$58,2,FALSE)=0,\"\",VLOOKUP(BC89,'Footnotes list'!$D$9:$E$58,2,FALSE) ) )","v":""},null,null,null,null,{"$f":"IF(TRIM(BH89)=\"\", \"\", IF(VLOOKUP(BH89,'Footnotes list'!$D$9:$E$58,2,FALSE)=0,\"\",VLOOKUP(BH89,'Footnotes list'!$D$9:$E$58,2,FALSE) ) )","v":""},null,null,null,null,{"$f":"IF(TRIM(BM89)=\"\", \"\", IF(VLOOKUP(BM89,'Footnotes list'!$D$9:$E$58,2,FALSE)=0,\"\",VLOOKUP(BM89,'Footnotes list'!$D$9:$E$58,2,FALSE) ) )","v":""},null,null,null,null,{"$f":"IF(TRIM(BR89)=\"\", \"\", IF(VLOOKUP(BR89,'Footnotes list'!$D$9:$E$58,2,FALSE)=0,\"\",VLOOKUP(BR89,'Footnotes list'!$D$9:$E$58,2,FALSE) ) )","v":""},null,null,null,null,{"$f":"IF(TRIM(BW89)=\"\", \"\", IF(VLOOKUP(BW89,'Footnotes list'!$D$9:$E$58,2,FALSE)=0,\"\",VLOOKUP(BW89,'Footnotes list'!$D$9:$E$58,2,FALSE) ) )","v":""},null,null,null,null,{"$f":"IF(TRIM(CB89)=\"\", \"\", IF(VLOOKUP(CB89,'Footnotes list'!$D$9:$E$58,2,FALSE)=0,\"\",VLOOKUP(CB89,'Footnotes list'!$D$9:$E$58,2,FALSE) ) )","v":""},null,null,null,null,{"$f":"IF(TRIM(CG89)=\"\", \"\", IF(VLOOKUP(CG89,'Footnotes list'!$D$9:$E$58,2,FALSE)=0,\"\",VLOOKUP(CG89,'Footnotes list'!$D$9:$E$58,2,FALSE) ) )","v":""},null,null,null,null,{"$f":"IF(TRIM(CL89)=\"\", \"\", IF(VLOOKUP(CL89,'Footnotes list'!$D$9:$E$58,2,FALSE)=0,\"\",VLOOKUP(CL89,'Footnotes list'!$D$9:$E$58,2,FALSE) ) )","v":""},null,null,null,null,{"$f":"IF(TRIM(CQ89)=\"\", \"\", IF(VLOOKUP(CQ89,'Footnotes list'!$D$9:$E$58,2,FALSE)=0,\"\",VLOOKUP(CQ89,'Footnotes list'!$D$9:$E$58,2,FALSE) ) )","v":""},null,null,null,null,{"$f":"IF(TRIM(CV89)=\"\", \"\", IF(VLOOKUP(CV89,'Footnotes list'!$D$9:$E$58,2,FALSE)=0,\"\",VLOOKUP(CV89,'Footnotes list'!$D$9:$E$58,2,FALSE) ) )","v":""},null,null,null,null,{"$f":"IF(TRIM(DA89)=\"\", \"\", IF(VLOOKUP(DA89,'Footnotes list'!$D$9:$E$58,2,FALSE)=0,\"\",VLOOKUP(DA89,'Footnotes list'!$D$9:$E$58,2,FALSE) ) )","v":""},null,null,null,null,{"$f":"IF(TRIM(DF89)=\"\", \"\", IF(VLOOKUP(DF89,'Footnotes list'!$D$9:$E$58,2,FALSE)=0,\"\",VLOOKUP(DF89,'Footnotes list'!$D$9:$E$58,2,FALSE) ) )","v":""},null,null,null,null,{"$f":"IF(TRIM(DK89)=\"\", \"\", IF(VLOOKUP(DK89,'Footnotes list'!$D$9:$E$58,2,FALSE)=0,\"\",VLOOKUP(DK89,'Footnotes list'!$D$9:$E$58,2,FALSE) ) )","v":""},null,null,null,null,{"$f":"IF(TRIM(DP89)=\"\", \"\", IF(VLOOKUP(DP89,'Footnotes list'!$D$9:$E$58,2,FALSE)=0,\"\",VLOOKUP(DP89,'Footnotes list'!$D$9:$E$58,2,FALSE) ) )","v":""},null,null,null,null,{"$f":"IF(TRIM(DU89)=\"\", \"\", IF(VLOOKUP(DU89,'Footnotes list'!$D$9:$E$58,2,FALSE)=0,\"\",VLOOKUP(DU89,'Footnotes list'!$D$9:$E$58,2,FALSE) ) )","v":""},null,null,null,null,{"$f":"IF(TRIM(DZ89)=\"\", \"\", IF(VLOOKUP(DZ89,'Footnotes list'!$D$9:$E$58,2,FALSE)=0,\"\",VLOOKUP(DZ89,'Footnotes list'!$D$9:$E$58,2,FALSE) ) )","v":""},null,null,null,null,{"$f":"IF(TRIM(EE89)=\"\", \"\", IF(VLOOKUP(EE89,'Footnotes list'!$D$9:$E$58,2,FALSE)=0,\"\",VLOOKUP(EE89,'Footnotes list'!$D$9:$E$58,2,FALSE) ) )","v":""},null,null,null,null,{"$f":"IF(TRIM(EJ89)=\"\", \"\", IF(VLOOKUP(EJ89,'Footnotes list'!$D$9:$E$58,2,FALSE)=0,\"\",VLOOKUP(EJ89,'Footnotes list'!$D$9:$E$58,2,FALSE) ) )","v":""},null,null,null,null,{"$f":"IF(TRIM(EO89)=\"\", \"\", IF(VLOOKUP(EO89,'Footnotes list'!$D$9:$E$58,2,FALSE)=0,\"\",VLOOKUP(EO89,'Footnotes list'!$D$9:$E$58,2,FALSE) ) )","v":""},null,null,null,null,{"$f":"IF(TRIM(ET89)=\"\", \"\", IF(VLOOKUP(ET89,'Footnotes list'!$D$9:$E$58,2,FALSE)=0,\"\",VLOOKUP(ET89,'Footnotes list'!$D$9:$E$58,2,FALSE) ) )","v":""},null,null,null,null,{"$f":"IF(TRIM(EY89)=\"\", \"\", IF(VLOOKUP(EY89,'Footnotes list'!$D$9:$E$58,2,FALSE)=0,\"\",VLOOKUP(EY89,'Footnotes list'!$D$9:$E$58,2,FALSE) ) )","v":""}]
[null,null,"C24_C25","ES_CS","environmental specific services",null,null,null,null,null,{"$f":"IF(TRIM(J90)=\"\", \"\", IF(VLOOKUP(J90,'Footnotes list'!$D$9:$E$58,2,FALSE)=0,\"\",VLOOKUP(J90,'Footnotes list'!$D$9:$E$58,2,FALSE) ) )","v":""},null,null,null,null,{"$f":"IF(TRIM(O90)=\"\", \"\", IF(VLOOKUP(O90,'Footnotes list'!$D$9:$E$58,2,FALSE)=0,\"\",VLOOKUP(O90,'Footnotes list'!$D$9:$E$58,2,FALSE) ) )","v":""},null,null,null,null,{"$f":"IF(TRIM(T90)=\"\", \"\", IF(VLOOKUP(T90,'Footnotes list'!$D$9:$E$58,2,FALSE)=0,\"\",VLOOKUP(T90,'Footnotes list'!$D$9:$E$58,2,FALSE) ) )","v":""},null,null,null,null,{"$f":"IF(TRIM(Y90)=\"\", \"\", IF(VLOOKUP(Y90,'Footnotes list'!$D$9:$E$58,2,FALSE)=0,\"\",VLOOKUP(Y90,'Footnotes list'!$D$9:$E$58,2,FALSE) ) )","v":""},null,null,null,null,{"$f":"IF(TRIM(AD90)=\"\", \"\", IF(VLOOKUP(AD90,'Footnotes list'!$D$9:$E$58,2,FALSE)=0,\"\",VLOOKUP(AD90,'Footnotes list'!$D$9:$E$58,2,FALSE) ) )","v":""},null,null,null,null,{"$f":"IF(TRIM(AI90)=\"\", \"\", IF(VLOOKUP(AI90,'Footnotes list'!$D$9:$E$58,2,FALSE)=0,\"\",VLOOKUP(AI90,'Footnotes list'!$D$9:$E$58,2,FALSE) ) )","v":""},null,null,null,null,{"$f":"IF(TRIM(AN90)=\"\", \"\", IF(VLOOKUP(AN90,'Footnotes list'!$D$9:$E$58,2,FALSE)=0,\"\",VLOOKUP(AN90,'Footnotes list'!$D$9:$E$58,2,FALSE) ) )","v":""},null,null,null,null,{"$f":"IF(TRIM(AS90)=\"\", \"\", IF(VLOOKUP(AS90,'Footnotes list'!$D$9:$E$58,2,FALSE)=0,\"\",VLOOKUP(AS90,'Footnotes list'!$D$9:$E$58,2,FALSE) ) )","v":""},null,null,null,null,{"$f":"IF(TRIM(AX90)=\"\", \"\", IF(VLOOKUP(AX90,'Footnotes list'!$D$9:$E$58,2,FALSE)=0,\"\",VLOOKUP(AX90,'Footnotes list'!$D$9:$E$58,2,FALSE) ) )","v":""},null,null,null,null,{"$f":"IF(TRIM(BC90)=\"\", \"\", IF(VLOOKUP(BC90,'Footnotes list'!$D$9:$E$58,2,FALSE)=0,\"\",VLOOKUP(BC90,'Footnotes list'!$D$9:$E$58,2,FALSE) ) )","v":""},null,null,null,null,{"$f":"IF(TRIM(BH90)=\"\", \"\", IF(VLOOKUP(BH90,'Footnotes list'!$D$9:$E$58,2,FALSE)=0,\"\",VLOOKUP(BH90,'Footnotes list'!$D$9:$E$58,2,FALSE) ) )","v":""},null,null,null,null,{"$f":"IF(TRIM(BM90)=\"\", \"\", IF(VLOOKUP(BM90,'Footnotes list'!$D$9:$E$58,2,FALSE)=0,\"\",VLOOKUP(BM90,'Footnotes list'!$D$9:$E$58,2,FALSE) ) )","v":""},null,null,null,null,{"$f":"IF(TRIM(BR90)=\"\", \"\", IF(VLOOKUP(BR90,'Footnotes list'!$D$9:$E$58,2,FALSE)=0,\"\",VLOOKUP(BR90,'Footnotes list'!$D$9:$E$58,2,FALSE) ) )","v":""},null,null,null,null,{"$f":"IF(TRIM(BW90)=\"\", \"\", IF(VLOOKUP(BW90,'Footnotes list'!$D$9:$E$58,2,FALSE)=0,\"\",VLOOKUP(BW90,'Footnotes list'!$D$9:$E$58,2,FALSE) ) )","v":""},null,null,null,null,{"$f":"IF(TRIM(CB90)=\"\", \"\", IF(VLOOKUP(CB90,'Footnotes list'!$D$9:$E$58,2,FALSE)=0,\"\",VLOOKUP(CB90,'Footnotes list'!$D$9:$E$58,2,FALSE) ) )","v":""},null,null,null,null,{"$f":"IF(TRIM(CG90)=\"\", \"\", IF(VLOOKUP(CG90,'Footnotes list'!$D$9:$E$58,2,FALSE)=0,\"\",VLOOKUP(CG90,'Footnotes list'!$D$9:$E$58,2,FALSE) ) )","v":""},null,null,null,null,{"$f":"IF(TRIM(CL90)=\"\", \"\", IF(VLOOKUP(CL90,'Footnotes list'!$D$9:$E$58,2,FALSE)=0,\"\",VLOOKUP(CL90,'Footnotes list'!$D$9:$E$58,2,FALSE) ) )","v":""},null,null,null,null,{"$f":"IF(TRIM(CQ90)=\"\", \"\", IF(VLOOKUP(CQ90,'Footnotes list'!$D$9:$E$58,2,FALSE)=0,\"\",VLOOKUP(CQ90,'Footnotes list'!$D$9:$E$58,2,FALSE) ) )","v":""},null,null,null,null,{"$f":"IF(TRIM(CV90)=\"\", \"\", IF(VLOOKUP(CV90,'Footnotes list'!$D$9:$E$58,2,FALSE)=0,\"\",VLOOKUP(CV90,'Footnotes list'!$D$9:$E$58,2,FALSE) ) )","v":""},null,null,null,null,{"$f":"IF(TRIM(DA90)=\"\", \"\", IF(VLOOKUP(DA90,'Footnotes list'!$D$9:$E$58,2,FALSE)=0,\"\",VLOOKUP(DA90,'Footnotes list'!$D$9:$E$58,2,FALSE) ) )","v":""},null,null,null,null,{"$f":"IF(TRIM(DF90)=\"\", \"\", IF(VLOOKUP(DF90,'Footnotes list'!$D$9:$E$58,2,FALSE)=0,\"\",VLOOKUP(DF90,'Footnotes list'!$D$9:$E$58,2,FALSE) ) )","v":""},null,null,null,null,{"$f":"IF(TRIM(DK90)=\"\", \"\", IF(VLOOKUP(DK90,'Footnotes list'!$D$9:$E$58,2,FALSE)=0,\"\",VLOOKUP(DK90,'Footnotes list'!$D$9:$E$58,2,FALSE) ) )","v":""},null,null,null,null,{"$f":"IF(TRIM(DP90)=\"\", \"\", IF(VLOOKUP(DP90,'Footnotes list'!$D$9:$E$58,2,FALSE)=0,\"\",VLOOKUP(DP90,'Footnotes list'!$D$9:$E$58,2,FALSE) ) )","v":""},null,null,null,null,{"$f":"IF(TRIM(DU90)=\"\", \"\", IF(VLOOKUP(DU90,'Footnotes list'!$D$9:$E$58,2,FALSE)=0,\"\",VLOOKUP(DU90,'Footnotes list'!$D$9:$E$58,2,FALSE) ) )","v":""},null,null,null,null,{"$f":"IF(TRIM(DZ90)=\"\", \"\", IF(VLOOKUP(DZ90,'Footnotes list'!$D$9:$E$58,2,FALSE)=0,\"\",VLOOKUP(DZ90,'Footnotes list'!$D$9:$E$58,2,FALSE) ) )","v":""},null,null,null,null,{"$f":"IF(TRIM(EE90)=\"\", \"\", IF(VLOOKUP(EE90,'Footnotes list'!$D$9:$E$58,2,FALSE)=0,\"\",VLOOKUP(EE90,'Footnotes list'!$D$9:$E$58,2,FALSE) ) )","v":""},null,null,null,null,{"$f":"IF(TRIM(EJ90)=\"\", \"\", IF(VLOOKUP(EJ90,'Footnotes list'!$D$9:$E$58,2,FALSE)=0,\"\",VLOOKUP(EJ90,'Footnotes list'!$D$9:$E$58,2,FALSE) ) )","v":""},null,null,null,null,{"$f":"IF(TRIM(EO90)=\"\", \"\", IF(VLOOKUP(EO90,'Footnotes list'!$D$9:$E$58,2,FALSE)=0,\"\",VLOOKUP(EO90,'Footnotes list'!$D$9:$E$58,2,FALSE) ) )","v":""},null,null,null,null,{"$f":"IF(TRIM(ET90)=\"\", \"\", IF(VLOOKUP(ET90,'Footnotes list'!$D$9:$E$58,2,FALSE)=0,\"\",VLOOKUP(ET90,'Footnotes list'!$D$9:$E$58,2,FALSE) ) )","v":""},null,null,null,null,{"$f":"IF(TRIM(EY90)=\"\", \"\", IF(VLOOKUP(EY90,'Footnotes list'!$D$9:$E$58,2,FALSE)=0,\"\",VLOOKUP(EY90,'Footnotes list'!$D$9:$E$58,2,FALSE) ) )","v":""}]
[null,null,"C24_C25","C_REP","cleaner and resource efficient products",null,null,null,null,null,{"$f":"IF(TRIM(J91)=\"\", \"\", IF(VLOOKUP(J91,'Footnotes list'!$D$9:$E$58,2,FALSE)=0,\"\",VLOOKUP(J91,'Footnotes list'!$D$9:$E$58,2,FALSE) ) )","v":""},null,null,null,null,{"$f":"IF(TRIM(O91)=\"\", \"\", IF(VLOOKUP(O91,'Footnotes list'!$D$9:$E$58,2,FALSE)=0,\"\",VLOOKUP(O91,'Footnotes list'!$D$9:$E$58,2,FALSE) ) )","v":""},null,null,null,null,{"$f":"IF(TRIM(T91)=\"\", \"\", IF(VLOOKUP(T91,'Footnotes list'!$D$9:$E$58,2,FALSE)=0,\"\",VLOOKUP(T91,'Footnotes list'!$D$9:$E$58,2,FALSE) ) )","v":""},null,null,null,null,{"$f":"IF(TRIM(Y91)=\"\", \"\", IF(VLOOKUP(Y91,'Footnotes list'!$D$9:$E$58,2,FALSE)=0,\"\",VLOOKUP(Y91,'Footnotes list'!$D$9:$E$58,2,FALSE) ) )","v":""},null,null,null,null,{"$f":"IF(TRIM(AD91)=\"\", \"\", IF(VLOOKUP(AD91,'Footnotes list'!$D$9:$E$58,2,FALSE)=0,\"\",VLOOKUP(AD91,'Footnotes list'!$D$9:$E$58,2,FALSE) ) )","v":""},null,null,null,null,{"$f":"IF(TRIM(AI91)=\"\", \"\", IF(VLOOKUP(AI91,'Footnotes list'!$D$9:$E$58,2,FALSE)=0,\"\",VLOOKUP(AI91,'Footnotes list'!$D$9:$E$58,2,FALSE) ) )","v":""},null,null,null,null,{"$f":"IF(TRIM(AN91)=\"\", \"\", IF(VLOOKUP(AN91,'Footnotes list'!$D$9:$E$58,2,FALSE)=0,\"\",VLOOKUP(AN91,'Footnotes list'!$D$9:$E$58,2,FALSE) ) )","v":""},null,null,null,null,{"$f":"IF(TRIM(AS91)=\"\", \"\", IF(VLOOKUP(AS91,'Footnotes list'!$D$9:$E$58,2,FALSE)=0,\"\",VLOOKUP(AS91,'Footnotes list'!$D$9:$E$58,2,FALSE) ) )","v":""},null,null,null,null,{"$f":"IF(TRIM(AX91)=\"\", \"\", IF(VLOOKUP(AX91,'Footnotes list'!$D$9:$E$58,2,FALSE)=0,\"\",VLOOKUP(AX91,'Footnotes list'!$D$9:$E$58,2,FALSE) ) )","v":""},null,null,null,null,{"$f":"IF(TRIM(BC91)=\"\", \"\", IF(VLOOKUP(BC91,'Footnotes list'!$D$9:$E$58,2,FALSE)=0,\"\",VLOOKUP(BC91,'Footnotes list'!$D$9:$E$58,2,FALSE) ) )","v":""},null,null,null,null,{"$f":"IF(TRIM(BH91)=\"\", \"\", IF(VLOOKUP(BH91,'Footnotes list'!$D$9:$E$58,2,FALSE)=0,\"\",VLOOKUP(BH91,'Footnotes list'!$D$9:$E$58,2,FALSE) ) )","v":""},null,null,null,null,{"$f":"IF(TRIM(BM91)=\"\", \"\", IF(VLOOKUP(BM91,'Footnotes list'!$D$9:$E$58,2,FALSE)=0,\"\",VLOOKUP(BM91,'Footnotes list'!$D$9:$E$58,2,FALSE) ) )","v":""},null,null,null,null,{"$f":"IF(TRIM(BR91)=\"\", \"\", IF(VLOOKUP(BR91,'Footnotes list'!$D$9:$E$58,2,FALSE)=0,\"\",VLOOKUP(BR91,'Footnotes list'!$D$9:$E$58,2,FALSE) ) )","v":""},null,null,null,null,{"$f":"IF(TRIM(BW91)=\"\", \"\", IF(VLOOKUP(BW91,'Footnotes list'!$D$9:$E$58,2,FALSE)=0,\"\",VLOOKUP(BW91,'Footnotes list'!$D$9:$E$58,2,FALSE) ) )","v":""},null,null,null,null,{"$f":"IF(TRIM(CB91)=\"\", \"\", IF(VLOOKUP(CB91,'Footnotes list'!$D$9:$E$58,2,FALSE)=0,\"\",VLOOKUP(CB91,'Footnotes list'!$D$9:$E$58,2,FALSE) ) )","v":""},null,null,null,null,{"$f":"IF(TRIM(CG91)=\"\", \"\", IF(VLOOKUP(CG91,'Footnotes list'!$D$9:$E$58,2,FALSE)=0,\"\",VLOOKUP(CG91,'Footnotes list'!$D$9:$E$58,2,FALSE) ) )","v":""},null,null,null,null,{"$f":"IF(TRIM(CL91)=\"\", \"\", IF(VLOOKUP(CL91,'Footnotes list'!$D$9:$E$58,2,FALSE)=0,\"\",VLOOKUP(CL91,'Footnotes list'!$D$9:$E$58,2,FALSE) ) )","v":""},null,null,null,null,{"$f":"IF(TRIM(CQ91)=\"\", \"\", IF(VLOOKUP(CQ91,'Footnotes list'!$D$9:$E$58,2,FALSE)=0,\"\",VLOOKUP(CQ91,'Footnotes list'!$D$9:$E$58,2,FALSE) ) )","v":""},null,null,null,null,{"$f":"IF(TRIM(CV91)=\"\", \"\", IF(VLOOKUP(CV91,'Footnotes list'!$D$9:$E$58,2,FALSE)=0,\"\",VLOOKUP(CV91,'Footnotes list'!$D$9:$E$58,2,FALSE) ) )","v":""},null,null,null,null,{"$f":"IF(TRIM(DA91)=\"\", \"\", IF(VLOOKUP(DA91,'Footnotes list'!$D$9:$E$58,2,FALSE)=0,\"\",VLOOKUP(DA91,'Footnotes list'!$D$9:$E$58,2,FALSE) ) )","v":""},null,null,null,null,{"$f":"IF(TRIM(DF91)=\"\", \"\", IF(VLOOKUP(DF91,'Footnotes list'!$D$9:$E$58,2,FALSE)=0,\"\",VLOOKUP(DF91,'Footnotes list'!$D$9:$E$58,2,FALSE) ) )","v":""},null,null,null,null,{"$f":"IF(TRIM(DK91)=\"\", \"\", IF(VLOOKUP(DK91,'Footnotes list'!$D$9:$E$58,2,FALSE)=0,\"\",VLOOKUP(DK91,'Footnotes list'!$D$9:$E$58,2,FALSE) ) )","v":""},null,null,null,null,{"$f":"IF(TRIM(DP91)=\"\", \"\", IF(VLOOKUP(DP91,'Footnotes list'!$D$9:$E$58,2,FALSE)=0,\"\",VLOOKUP(DP91,'Footnotes list'!$D$9:$E$58,2,FALSE) ) )","v":""},null,null,null,null,{"$f":"IF(TRIM(DU91)=\"\", \"\", IF(VLOOKUP(DU91,'Footnotes list'!$D$9:$E$58,2,FALSE)=0,\"\",VLOOKUP(DU91,'Footnotes list'!$D$9:$E$58,2,FALSE) ) )","v":""},null,null,null,null,{"$f":"IF(TRIM(DZ91)=\"\", \"\", IF(VLOOKUP(DZ91,'Footnotes list'!$D$9:$E$58,2,FALSE)=0,\"\",VLOOKUP(DZ91,'Footnotes list'!$D$9:$E$58,2,FALSE) ) )","v":""},null,null,null,null,{"$f":"IF(TRIM(EE91)=\"\", \"\", IF(VLOOKUP(EE91,'Footnotes list'!$D$9:$E$58,2,FALSE)=0,\"\",VLOOKUP(EE91,'Footnotes list'!$D$9:$E$58,2,FALSE) ) )","v":""},null,null,null,null,{"$f":"IF(TRIM(EJ91)=\"\", \"\", IF(VLOOKUP(EJ91,'Footnotes list'!$D$9:$E$58,2,FALSE)=0,\"\",VLOOKUP(EJ91,'Footnotes list'!$D$9:$E$58,2,FALSE) ) )","v":""},null,null,null,null,{"$f":"IF(TRIM(EO91)=\"\", \"\", IF(VLOOKUP(EO91,'Footnotes list'!$D$9:$E$58,2,FALSE)=0,\"\",VLOOKUP(EO91,'Footnotes list'!$D$9:$E$58,2,FALSE) ) )","v":""},null,null,null,null,{"$f":"IF(TRIM(ET91)=\"\", \"\", IF(VLOOKUP(ET91,'Footnotes list'!$D$9:$E$58,2,FALSE)=0,\"\",VLOOKUP(ET91,'Footnotes list'!$D$9:$E$58,2,FALSE) ) )","v":""},null,null,null,null,{"$f":"IF(TRIM(EY91)=\"\", \"\", IF(VLOOKUP(EY91,'Footnotes list'!$D$9:$E$58,2,FALSE)=0,\"\",VLOOKUP(EY91,'Footnotes list'!$D$9:$E$58,2,FALSE) ) )","v":""}]
[null,null,"C26","TOT_EGSS","Total C26 - Manufacture of computer, electronic and optical products, of which:",null,null,null,null,null,{"$f":"IF(TRIM(J92)=\"\", \"\", IF(VLOOKUP(J92,'Footnotes list'!$D$9:$E$58,2,FALSE)=0,\"\",VLOOKUP(J92,'Footnotes list'!$D$9:$E$58,2,FALSE) ) )","v":""},null,null,null,null,{"$f":"IF(TRIM(O92)=\"\", \"\", IF(VLOOKUP(O92,'Footnotes list'!$D$9:$E$58,2,FALSE)=0,\"\",VLOOKUP(O92,'Footnotes list'!$D$9:$E$58,2,FALSE) ) )","v":""},null,null,null,null,{"$f":"IF(TRIM(T92)=\"\", \"\", IF(VLOOKUP(T92,'Footnotes list'!$D$9:$E$58,2,FALSE)=0,\"\",VLOOKUP(T92,'Footnotes list'!$D$9:$E$58,2,FALSE) ) )","v":""},null,null,null,null,{"$f":"IF(TRIM(Y92)=\"\", \"\", IF(VLOOKUP(Y92,'Footnotes list'!$D$9:$E$58,2,FALSE)=0,\"\",VLOOKUP(Y92,'Footnotes list'!$D$9:$E$58,2,FALSE) ) )","v":""},null,null,null,null,{"$f":"IF(TRIM(AD92)=\"\", \"\", IF(VLOOKUP(AD92,'Footnotes list'!$D$9:$E$58,2,FALSE)=0,\"\",VLOOKUP(AD92,'Footnotes list'!$D$9:$E$58,2,FALSE) ) )","v":""},null,null,null,null,{"$f":"IF(TRIM(AI92)=\"\", \"\", IF(VLOOKUP(AI92,'Footnotes list'!$D$9:$E$58,2,FALSE)=0,\"\",VLOOKUP(AI92,'Footnotes list'!$D$9:$E$58,2,FALSE) ) )","v":""},null,null,null,null,{"$f":"IF(TRIM(AN92)=\"\", \"\", IF(VLOOKUP(AN92,'Footnotes list'!$D$9:$E$58,2,FALSE)=0,\"\",VLOOKUP(AN92,'Footnotes list'!$D$9:$E$58,2,FALSE) ) )","v":""},null,null,null,null,{"$f":"IF(TRIM(AS92)=\"\", \"\", IF(VLOOKUP(AS92,'Footnotes list'!$D$9:$E$58,2,FALSE)=0,\"\",VLOOKUP(AS92,'Footnotes list'!$D$9:$E$58,2,FALSE) ) )","v":""},null,null,null,null,{"$f":"IF(TRIM(AX92)=\"\", \"\", IF(VLOOKUP(AX92,'Footnotes list'!$D$9:$E$58,2,FALSE)=0,\"\",VLOOKUP(AX92,'Footnotes list'!$D$9:$E$58,2,FALSE) ) )","v":""},null,null,null,null,{"$f":"IF(TRIM(BC92)=\"\", \"\", IF(VLOOKUP(BC92,'Footnotes list'!$D$9:$E$58,2,FALSE)=0,\"\",VLOOKUP(BC92,'Footnotes list'!$D$9:$E$58,2,FALSE) ) )","v":""},null,null,null,null,{"$f":"IF(TRIM(BH92)=\"\", \"\", IF(VLOOKUP(BH92,'Footnotes list'!$D$9:$E$58,2,FALSE)=0,\"\",VLOOKUP(BH92,'Footnotes list'!$D$9:$E$58,2,FALSE) ) )","v":""},null,null,null,null,{"$f":"IF(TRIM(BM92)=\"\", \"\", IF(VLOOKUP(BM92,'Footnotes list'!$D$9:$E$58,2,FALSE)=0,\"\",VLOOKUP(BM92,'Footnotes list'!$D$9:$E$58,2,FALSE) ) )","v":""},null,null,null,null,{"$f":"IF(TRIM(BR92)=\"\", \"\", IF(VLOOKUP(BR92,'Footnotes list'!$D$9:$E$58,2,FALSE)=0,\"\",VLOOKUP(BR92,'Footnotes list'!$D$9:$E$58,2,FALSE) ) )","v":""},null,null,null,null,{"$f":"IF(TRIM(BW92)=\"\", \"\", IF(VLOOKUP(BW92,'Footnotes list'!$D$9:$E$58,2,FALSE)=0,\"\",VLOOKUP(BW92,'Footnotes list'!$D$9:$E$58,2,FALSE) ) )","v":""},null,null,null,null,{"$f":"IF(TRIM(CB92)=\"\", \"\", IF(VLOOKUP(CB92,'Footnotes list'!$D$9:$E$58,2,FALSE)=0,\"\",VLOOKUP(CB92,'Footnotes list'!$D$9:$E$58,2,FALSE) ) )","v":""},null,null,null,null,{"$f":"IF(TRIM(CG92)=\"\", \"\", IF(VLOOKUP(CG92,'Footnotes list'!$D$9:$E$58,2,FALSE)=0,\"\",VLOOKUP(CG92,'Footnotes list'!$D$9:$E$58,2,FALSE) ) )","v":""},null,null,null,null,{"$f":"IF(TRIM(CL92)=\"\", \"\", IF(VLOOKUP(CL92,'Footnotes list'!$D$9:$E$58,2,FALSE)=0,\"\",VLOOKUP(CL92,'Footnotes list'!$D$9:$E$58,2,FALSE) ) )","v":""},null,null,null,null,{"$f":"IF(TRIM(CQ92)=\"\", \"\", IF(VLOOKUP(CQ92,'Footnotes list'!$D$9:$E$58,2,FALSE)=0,\"\",VLOOKUP(CQ92,'Footnotes list'!$D$9:$E$58,2,FALSE) ) )","v":""},null,null,null,null,{"$f":"IF(TRIM(CV92)=\"\", \"\", IF(VLOOKUP(CV92,'Footnotes list'!$D$9:$E$58,2,FALSE)=0,\"\",VLOOKUP(CV92,'Footnotes list'!$D$9:$E$58,2,FALSE) ) )","v":""},null,null,null,null,{"$f":"IF(TRIM(DA92)=\"\", \"\", IF(VLOOKUP(DA92,'Footnotes list'!$D$9:$E$58,2,FALSE)=0,\"\",VLOOKUP(DA92,'Footnotes list'!$D$9:$E$58,2,FALSE) ) )","v":""},null,null,null,null,{"$f":"IF(TRIM(DF92)=\"\", \"\", IF(VLOOKUP(DF92,'Footnotes list'!$D$9:$E$58,2,FALSE)=0,\"\",VLOOKUP(DF92,'Footnotes list'!$D$9:$E$58,2,FALSE) ) )","v":""},null,null,null,null,{"$f":"IF(TRIM(DK92)=\"\", \"\", IF(VLOOKUP(DK92,'Footnotes list'!$D$9:$E$58,2,FALSE)=0,\"\",VLOOKUP(DK92,'Footnotes list'!$D$9:$E$58,2,FALSE) ) )","v":""},null,null,null,null,{"$f":"IF(TRIM(DP92)=\"\", \"\", IF(VLOOKUP(DP92,'Footnotes list'!$D$9:$E$58,2,FALSE)=0,\"\",VLOOKUP(DP92,'Footnotes list'!$D$9:$E$58,2,FALSE) ) )","v":""},null,null,null,null,{"$f":"IF(TRIM(DU92)=\"\", \"\", IF(VLOOKUP(DU92,'Footnotes list'!$D$9:$E$58,2,FALSE)=0,\"\",VLOOKUP(DU92,'Footnotes list'!$D$9:$E$58,2,FALSE) ) )","v":""},null,null,null,null,{"$f":"IF(TRIM(DZ92)=\"\", \"\", IF(VLOOKUP(DZ92,'Footnotes list'!$D$9:$E$58,2,FALSE)=0,\"\",VLOOKUP(DZ92,'Footnotes list'!$D$9:$E$58,2,FALSE) ) )","v":""},null,null,null,null,{"$f":"IF(TRIM(EE92)=\"\", \"\", IF(VLOOKUP(EE92,'Footnotes list'!$D$9:$E$58,2,FALSE)=0,\"\",VLOOKUP(EE92,'Footnotes list'!$D$9:$E$58,2,FALSE) ) )","v":""},null,null,null,null,{"$f":"IF(TRIM(EJ92)=\"\", \"\", IF(VLOOKUP(EJ92,'Footnotes list'!$D$9:$E$58,2,FALSE)=0,\"\",VLOOKUP(EJ92,'Footnotes list'!$D$9:$E$58,2,FALSE) ) )","v":""},null,null,null,null,{"$f":"IF(TRIM(EO92)=\"\", \"\", IF(VLOOKUP(EO92,'Footnotes list'!$D$9:$E$58,2,FALSE)=0,\"\",VLOOKUP(EO92,'Footnotes list'!$D$9:$E$58,2,FALSE) ) )","v":""},null,null,null,null,{"$f":"IF(TRIM(ET92)=\"\", \"\", IF(VLOOKUP(ET92,'Footnotes list'!$D$9:$E$58,2,FALSE)=0,\"\",VLOOKUP(ET92,'Footnotes list'!$D$9:$E$58,2,FALSE) ) )","v":""},null,null,null,null,{"$f":"IF(TRIM(EY92)=\"\", \"\", IF(VLOOKUP(EY92,'Footnotes list'!$D$9:$E$58,2,FALSE)=0,\"\",VLOOKUP(EY92,'Footnotes list'!$D$9:$E$58,2,FALSE) ) )","v":""}]
[null,null,"C26","ANC","ancillary activities",null,null,null,null,null,{"$f":"IF(TRIM(J93)=\"\", \"\", IF(VLOOKUP(J93,'Footnotes list'!$D$9:$E$58,2,FALSE)=0,\"\",VLOOKUP(J93,'Footnotes list'!$D$9:$E$58,2,FALSE) ) )","v":""},null,null,null,null,{"$f":"IF(TRIM(O93)=\"\", \"\", IF(VLOOKUP(O93,'Footnotes list'!$D$9:$E$58,2,FALSE)=0,\"\",VLOOKUP(O93,'Footnotes list'!$D$9:$E$58,2,FALSE) ) )","v":""},null,null,null,null,{"$f":"IF(TRIM(T93)=\"\", \"\", IF(VLOOKUP(T93,'Footnotes list'!$D$9:$E$58,2,FALSE)=0,\"\",VLOOKUP(T93,'Footnotes list'!$D$9:$E$58,2,FALSE) ) )","v":""},null,null,null,null,{"$f":"IF(TRIM(Y93)=\"\", \"\", IF(VLOOKUP(Y93,'Footnotes list'!$D$9:$E$58,2,FALSE)=0,\"\",VLOOKUP(Y93,'Footnotes list'!$D$9:$E$58,2,FALSE) ) )","v":""},null,null,null,null,{"$f":"IF(TRIM(AD93)=\"\", \"\", IF(VLOOKUP(AD93,'Footnotes list'!$D$9:$E$58,2,FALSE)=0,\"\",VLOOKUP(AD93,'Footnotes list'!$D$9:$E$58,2,FALSE) ) )","v":""},null,null,null,null,{"$f":"IF(TRIM(AI93)=\"\", \"\", IF(VLOOKUP(AI93,'Footnotes list'!$D$9:$E$58,2,FALSE)=0,\"\",VLOOKUP(AI93,'Footnotes list'!$D$9:$E$58,2,FALSE) ) )","v":""},null,null,null,null,{"$f":"IF(TRIM(AN93)=\"\", \"\", IF(VLOOKUP(AN93,'Footnotes list'!$D$9:$E$58,2,FALSE)=0,\"\",VLOOKUP(AN93,'Footnotes list'!$D$9:$E$58,2,FALSE) ) )","v":""},null,null,null,null,{"$f":"IF(TRIM(AS93)=\"\", \"\", IF(VLOOKUP(AS93,'Footnotes list'!$D$9:$E$58,2,FALSE)=0,\"\",VLOOKUP(AS93,'Footnotes list'!$D$9:$E$58,2,FALSE) ) )","v":""},null,null,null,null,{"$f":"IF(TRIM(AX93)=\"\", \"\", IF(VLOOKUP(AX93,'Footnotes list'!$D$9:$E$58,2,FALSE)=0,\"\",VLOOKUP(AX93,'Footnotes list'!$D$9:$E$58,2,FALSE) ) )","v":""},null,null,null,null,{"$f":"IF(TRIM(BC93)=\"\", \"\", IF(VLOOKUP(BC93,'Footnotes list'!$D$9:$E$58,2,FALSE)=0,\"\",VLOOKUP(BC93,'Footnotes list'!$D$9:$E$58,2,FALSE) ) )","v":""},null,null,null,null,{"$f":"IF(TRIM(BH93)=\"\", \"\", IF(VLOOKUP(BH93,'Footnotes list'!$D$9:$E$58,2,FALSE)=0,\"\",VLOOKUP(BH93,'Footnotes list'!$D$9:$E$58,2,FALSE) ) )","v":""},null,null,null,null,{"$f":"IF(TRIM(BM93)=\"\", \"\", IF(VLOOKUP(BM93,'Footnotes list'!$D$9:$E$58,2,FALSE)=0,\"\",VLOOKUP(BM93,'Footnotes list'!$D$9:$E$58,2,FALSE) ) )","v":""},null,null,null,null,{"$f":"IF(TRIM(BR93)=\"\", \"\", IF(VLOOKUP(BR93,'Footnotes list'!$D$9:$E$58,2,FALSE)=0,\"\",VLOOKUP(BR93,'Footnotes list'!$D$9:$E$58,2,FALSE) ) )","v":""},null,null,null,null,{"$f":"IF(TRIM(BW93)=\"\", \"\", IF(VLOOKUP(BW93,'Footnotes list'!$D$9:$E$58,2,FALSE)=0,\"\",VLOOKUP(BW93,'Footnotes list'!$D$9:$E$58,2,FALSE) ) )","v":""},null,null,null,null,{"$f":"IF(TRIM(CB93)=\"\", \"\", IF(VLOOKUP(CB93,'Footnotes list'!$D$9:$E$58,2,FALSE)=0,\"\",VLOOKUP(CB93,'Footnotes list'!$D$9:$E$58,2,FALSE) ) )","v":""},null,null,null,null,{"$f":"IF(TRIM(CG93)=\"\", \"\", IF(VLOOKUP(CG93,'Footnotes list'!$D$9:$E$58,2,FALSE)=0,\"\",VLOOKUP(CG93,'Footnotes list'!$D$9:$E$58,2,FALSE) ) )","v":""},null,null,null,null,{"$f":"IF(TRIM(CL93)=\"\", \"\", IF(VLOOKUP(CL93,'Footnotes list'!$D$9:$E$58,2,FALSE)=0,\"\",VLOOKUP(CL93,'Footnotes list'!$D$9:$E$58,2,FALSE) ) )","v":""},null,null,null,null,{"$f":"IF(TRIM(CQ93)=\"\", \"\", IF(VLOOKUP(CQ93,'Footnotes list'!$D$9:$E$58,2,FALSE)=0,\"\",VLOOKUP(CQ93,'Footnotes list'!$D$9:$E$58,2,FALSE) ) )","v":""},null,null,null,null,{"$f":"IF(TRIM(CV93)=\"\", \"\", IF(VLOOKUP(CV93,'Footnotes list'!$D$9:$E$58,2,FALSE)=0,\"\",VLOOKUP(CV93,'Footnotes list'!$D$9:$E$58,2,FALSE) ) )","v":""},null,null,null,null,{"$f":"IF(TRIM(DA93)=\"\", \"\", IF(VLOOKUP(DA93,'Footnotes list'!$D$9:$E$58,2,FALSE)=0,\"\",VLOOKUP(DA93,'Footnotes list'!$D$9:$E$58,2,FALSE) ) )","v":""},null,null,null,null,{"$f":"IF(TRIM(DF93)=\"\", \"\", IF(VLOOKUP(DF93,'Footnotes list'!$D$9:$E$58,2,FALSE)=0,\"\",VLOOKUP(DF93,'Footnotes list'!$D$9:$E$58,2,FALSE) ) )","v":""},null,null,null,null,{"$f":"IF(TRIM(DK93)=\"\", \"\", IF(VLOOKUP(DK93,'Footnotes list'!$D$9:$E$58,2,FALSE)=0,\"\",VLOOKUP(DK93,'Footnotes list'!$D$9:$E$58,2,FALSE) ) )","v":""},null,null,null,null,{"$f":"IF(TRIM(DP93)=\"\", \"\", IF(VLOOKUP(DP93,'Footnotes list'!$D$9:$E$58,2,FALSE)=0,\"\",VLOOKUP(DP93,'Footnotes list'!$D$9:$E$58,2,FALSE) ) )","v":""},null,null,null,null,{"$f":"IF(TRIM(DU93)=\"\", \"\", IF(VLOOKUP(DU93,'Footnotes list'!$D$9:$E$58,2,FALSE)=0,\"\",VLOOKUP(DU93,'Footnotes list'!$D$9:$E$58,2,FALSE) ) )","v":""},null,null,null,null,{"$f":"IF(TRIM(DZ93)=\"\", \"\", IF(VLOOKUP(DZ93,'Footnotes list'!$D$9:$E$58,2,FALSE)=0,\"\",VLOOKUP(DZ93,'Footnotes list'!$D$9:$E$58,2,FALSE) ) )","v":""},null,null,null,null,{"$f":"IF(TRIM(EE93)=\"\", \"\", IF(VLOOKUP(EE93,'Footnotes list'!$D$9:$E$58,2,FALSE)=0,\"\",VLOOKUP(EE93,'Footnotes list'!$D$9:$E$58,2,FALSE) ) )","v":""},null,null,null,null,{"$f":"IF(TRIM(EJ93)=\"\", \"\", IF(VLOOKUP(EJ93,'Footnotes list'!$D$9:$E$58,2,FALSE)=0,\"\",VLOOKUP(EJ93,'Footnotes list'!$D$9:$E$58,2,FALSE) ) )","v":""},null,null,null,null,{"$f":"IF(TRIM(EO93)=\"\", \"\", IF(VLOOKUP(EO93,'Footnotes list'!$D$9:$E$58,2,FALSE)=0,\"\",VLOOKUP(EO93,'Footnotes list'!$D$9:$E$58,2,FALSE) ) )","v":""},null,null,null,null,{"$f":"IF(TRIM(ET93)=\"\", \"\", IF(VLOOKUP(ET93,'Footnotes list'!$D$9:$E$58,2,FALSE)=0,\"\",VLOOKUP(ET93,'Footnotes list'!$D$9:$E$58,2,FALSE) ) )","v":""},null,null,null,null,{"$f":"IF(TRIM(EY93)=\"\", \"\", IF(VLOOKUP(EY93,'Footnotes list'!$D$9:$E$58,2,FALSE)=0,\"\",VLOOKUP(EY93,'Footnotes list'!$D$9:$E$58,2,FALSE) ) )","v":""}]
[null,null,"C26","NMKT","non-market activities",null,null,null,null,null,{"$f":"IF(TRIM(J94)=\"\", \"\", IF(VLOOKUP(J94,'Footnotes list'!$D$9:$E$58,2,FALSE)=0,\"\",VLOOKUP(J94,'Footnotes list'!$D$9:$E$58,2,FALSE) ) )","v":""},null,null,null,null,{"$f":"IF(TRIM(O94)=\"\", \"\", IF(VLOOKUP(O94,'Footnotes list'!$D$9:$E$58,2,FALSE)=0,\"\",VLOOKUP(O94,'Footnotes list'!$D$9:$E$58,2,FALSE) ) )","v":""},null,null,null,null,{"$f":"IF(TRIM(T94)=\"\", \"\", IF(VLOOKUP(T94,'Footnotes list'!$D$9:$E$58,2,FALSE)=0,\"\",VLOOKUP(T94,'Footnotes list'!$D$9:$E$58,2,FALSE) ) )","v":""},null,null,null,null,{"$f":"IF(TRIM(Y94)=\"\", \"\", IF(VLOOKUP(Y94,'Footnotes list'!$D$9:$E$58,2,FALSE)=0,\"\",VLOOKUP(Y94,'Footnotes list'!$D$9:$E$58,2,FALSE) ) )","v":""},null,null,null,null,{"$f":"IF(TRIM(AD94)=\"\", \"\", IF(VLOOKUP(AD94,'Footnotes list'!$D$9:$E$58,2,FALSE)=0,\"\",VLOOKUP(AD94,'Footnotes list'!$D$9:$E$58,2,FALSE) ) )","v":""},null,null,null,null,{"$f":"IF(TRIM(AI94)=\"\", \"\", IF(VLOOKUP(AI94,'Footnotes list'!$D$9:$E$58,2,FALSE)=0,\"\",VLOOKUP(AI94,'Footnotes list'!$D$9:$E$58,2,FALSE) ) )","v":""},null,null,null,null,{"$f":"IF(TRIM(AN94)=\"\", \"\", IF(VLOOKUP(AN94,'Footnotes list'!$D$9:$E$58,2,FALSE)=0,\"\",VLOOKUP(AN94,'Footnotes list'!$D$9:$E$58,2,FALSE) ) )","v":""},null,null,null,null,{"$f":"IF(TRIM(AS94)=\"\", \"\", IF(VLOOKUP(AS94,'Footnotes list'!$D$9:$E$58,2,FALSE)=0,\"\",VLOOKUP(AS94,'Footnotes list'!$D$9:$E$58,2,FALSE) ) )","v":""},null,null,null,null,{"$f":"IF(TRIM(AX94)=\"\", \"\", IF(VLOOKUP(AX94,'Footnotes list'!$D$9:$E$58,2,FALSE)=0,\"\",VLOOKUP(AX94,'Footnotes list'!$D$9:$E$58,2,FALSE) ) )","v":""},null,null,null,null,{"$f":"IF(TRIM(BC94)=\"\", \"\", IF(VLOOKUP(BC94,'Footnotes list'!$D$9:$E$58,2,FALSE)=0,\"\",VLOOKUP(BC94,'Footnotes list'!$D$9:$E$58,2,FALSE) ) )","v":""},null,null,null,null,{"$f":"IF(TRIM(BH94)=\"\", \"\", IF(VLOOKUP(BH94,'Footnotes list'!$D$9:$E$58,2,FALSE)=0,\"\",VLOOKUP(BH94,'Footnotes list'!$D$9:$E$58,2,FALSE) ) )","v":""},null,null,null,null,{"$f":"IF(TRIM(BM94)=\"\", \"\", IF(VLOOKUP(BM94,'Footnotes list'!$D$9:$E$58,2,FALSE)=0,\"\",VLOOKUP(BM94,'Footnotes list'!$D$9:$E$58,2,FALSE) ) )","v":""},null,null,null,null,{"$f":"IF(TRIM(BR94)=\"\", \"\", IF(VLOOKUP(BR94,'Footnotes list'!$D$9:$E$58,2,FALSE)=0,\"\",VLOOKUP(BR94,'Footnotes list'!$D$9:$E$58,2,FALSE) ) )","v":""},null,null,null,null,{"$f":"IF(TRIM(BW94)=\"\", \"\", IF(VLOOKUP(BW94,'Footnotes list'!$D$9:$E$58,2,FALSE)=0,\"\",VLOOKUP(BW94,'Footnotes list'!$D$9:$E$58,2,FALSE) ) )","v":""},null,null,null,null,{"$f":"IF(TRIM(CB94)=\"\", \"\", IF(VLOOKUP(CB94,'Footnotes list'!$D$9:$E$58,2,FALSE)=0,\"\",VLOOKUP(CB94,'Footnotes list'!$D$9:$E$58,2,FALSE) ) )","v":""},null,null,null,null,{"$f":"IF(TRIM(CG94)=\"\", \"\", IF(VLOOKUP(CG94,'Footnotes list'!$D$9:$E$58,2,FALSE)=0,\"\",VLOOKUP(CG94,'Footnotes list'!$D$9:$E$58,2,FALSE) ) )","v":""},null,null,null,null,{"$f":"IF(TRIM(CL94)=\"\", \"\", IF(VLOOKUP(CL94,'Footnotes list'!$D$9:$E$58,2,FALSE)=0,\"\",VLOOKUP(CL94,'Footnotes list'!$D$9:$E$58,2,FALSE) ) )","v":""},null,null,null,null,{"$f":"IF(TRIM(CQ94)=\"\", \"\", IF(VLOOKUP(CQ94,'Footnotes list'!$D$9:$E$58,2,FALSE)=0,\"\",VLOOKUP(CQ94,'Footnotes list'!$D$9:$E$58,2,FALSE) ) )","v":""},null,null,null,null,{"$f":"IF(TRIM(CV94)=\"\", \"\", IF(VLOOKUP(CV94,'Footnotes list'!$D$9:$E$58,2,FALSE)=0,\"\",VLOOKUP(CV94,'Footnotes list'!$D$9:$E$58,2,FALSE) ) )","v":""},null,null,null,null,{"$f":"IF(TRIM(DA94)=\"\", \"\", IF(VLOOKUP(DA94,'Footnotes list'!$D$9:$E$58,2,FALSE)=0,\"\",VLOOKUP(DA94,'Footnotes list'!$D$9:$E$58,2,FALSE) ) )","v":""},null,null,null,null,{"$f":"IF(TRIM(DF94)=\"\", \"\", IF(VLOOKUP(DF94,'Footnotes list'!$D$9:$E$58,2,FALSE)=0,\"\",VLOOKUP(DF94,'Footnotes list'!$D$9:$E$58,2,FALSE) ) )","v":""},null,null,null,null,{"$f":"IF(TRIM(DK94)=\"\", \"\", IF(VLOOKUP(DK94,'Footnotes list'!$D$9:$E$58,2,FALSE)=0,\"\",VLOOKUP(DK94,'Footnotes list'!$D$9:$E$58,2,FALSE) ) )","v":""},null,null,null,null,{"$f":"IF(TRIM(DP94)=\"\", \"\", IF(VLOOKUP(DP94,'Footnotes list'!$D$9:$E$58,2,FALSE)=0,\"\",VLOOKUP(DP94,'Footnotes list'!$D$9:$E$58,2,FALSE) ) )","v":""},null,null,null,null,{"$f":"IF(TRIM(DU94)=\"\", \"\", IF(VLOOKUP(DU94,'Footnotes list'!$D$9:$E$58,2,FALSE)=0,\"\",VLOOKUP(DU94,'Footnotes list'!$D$9:$E$58,2,FALSE) ) )","v":""},null,null,null,null,{"$f":"IF(TRIM(DZ94)=\"\", \"\", IF(VLOOKUP(DZ94,'Footnotes list'!$D$9:$E$58,2,FALSE)=0,\"\",VLOOKUP(DZ94,'Footnotes list'!$D$9:$E$58,2,FALSE) ) )","v":""},null,null,null,null,{"$f":"IF(TRIM(EE94)=\"\", \"\", IF(VLOOKUP(EE94,'Footnotes list'!$D$9:$E$58,2,FALSE)=0,\"\",VLOOKUP(EE94,'Footnotes list'!$D$9:$E$58,2,FALSE) ) )","v":""},null,null,null,null,{"$f":"IF(TRIM(EJ94)=\"\", \"\", IF(VLOOKUP(EJ94,'Footnotes list'!$D$9:$E$58,2,FALSE)=0,\"\",VLOOKUP(EJ94,'Footnotes list'!$D$9:$E$58,2,FALSE) ) )","v":""},null,null,null,null,{"$f":"IF(TRIM(EO94)=\"\", \"\", IF(VLOOKUP(EO94,'Footnotes list'!$D$9:$E$58,2,FALSE)=0,\"\",VLOOKUP(EO94,'Footnotes list'!$D$9:$E$58,2,FALSE) ) )","v":""},null,null,null,null,{"$f":"IF(TRIM(ET94)=\"\", \"\", IF(VLOOKUP(ET94,'Footnotes list'!$D$9:$E$58,2,FALSE)=0,\"\",VLOOKUP(ET94,'Footnotes list'!$D$9:$E$58,2,FALSE) ) )","v":""},null,null,null,null,{"$f":"IF(TRIM(EY94)=\"\", \"\", IF(VLOOKUP(EY94,'Footnotes list'!$D$9:$E$58,2,FALSE)=0,\"\",VLOOKUP(EY94,'Footnotes list'!$D$9:$E$58,2,FALSE) ) )","v":""}]
[null,null,"C26","OWN_USE","activities for own final use",null,null,null,null,null,{"$f":"IF(TRIM(J95)=\"\", \"\", IF(VLOOKUP(J95,'Footnotes list'!$D$9:$E$58,2,FALSE)=0,\"\",VLOOKUP(J95,'Footnotes list'!$D$9:$E$58,2,FALSE) ) )","v":""},null,null,null,null,{"$f":"IF(TRIM(O95)=\"\", \"\", IF(VLOOKUP(O95,'Footnotes list'!$D$9:$E$58,2,FALSE)=0,\"\",VLOOKUP(O95,'Footnotes list'!$D$9:$E$58,2,FALSE) ) )","v":""},null,null,null,null,{"$f":"IF(TRIM(T95)=\"\", \"\", IF(VLOOKUP(T95,'Footnotes list'!$D$9:$E$58,2,FALSE)=0,\"\",VLOOKUP(T95,'Footnotes list'!$D$9:$E$58,2,FALSE) ) )","v":""},null,null,null,null,{"$f":"IF(TRIM(Y95)=\"\", \"\", IF(VLOOKUP(Y95,'Footnotes list'!$D$9:$E$58,2,FALSE)=0,\"\",VLOOKUP(Y95,'Footnotes list'!$D$9:$E$58,2,FALSE) ) )","v":""},null,null,null,null,{"$f":"IF(TRIM(AD95)=\"\", \"\", IF(VLOOKUP(AD95,'Footnotes list'!$D$9:$E$58,2,FALSE)=0,\"\",VLOOKUP(AD95,'Footnotes list'!$D$9:$E$58,2,FALSE) ) )","v":""},null,null,null,null,{"$f":"IF(TRIM(AI95)=\"\", \"\", IF(VLOOKUP(AI95,'Footnotes list'!$D$9:$E$58,2,FALSE)=0,\"\",VLOOKUP(AI95,'Footnotes list'!$D$9:$E$58,2,FALSE) ) )","v":""},null,null,null,null,{"$f":"IF(TRIM(AN95)=\"\", \"\", IF(VLOOKUP(AN95,'Footnotes list'!$D$9:$E$58,2,FALSE)=0,\"\",VLOOKUP(AN95,'Footnotes list'!$D$9:$E$58,2,FALSE) ) )","v":""},null,null,null,null,{"$f":"IF(TRIM(AS95)=\"\", \"\", IF(VLOOKUP(AS95,'Footnotes list'!$D$9:$E$58,2,FALSE)=0,\"\",VLOOKUP(AS95,'Footnotes list'!$D$9:$E$58,2,FALSE) ) )","v":""},null,null,null,null,{"$f":"IF(TRIM(AX95)=\"\", \"\", IF(VLOOKUP(AX95,'Footnotes list'!$D$9:$E$58,2,FALSE)=0,\"\",VLOOKUP(AX95,'Footnotes list'!$D$9:$E$58,2,FALSE) ) )","v":""},null,null,null,null,{"$f":"IF(TRIM(BC95)=\"\", \"\", IF(VLOOKUP(BC95,'Footnotes list'!$D$9:$E$58,2,FALSE)=0,\"\",VLOOKUP(BC95,'Footnotes list'!$D$9:$E$58,2,FALSE) ) )","v":""},null,null,null,null,{"$f":"IF(TRIM(BH95)=\"\", \"\", IF(VLOOKUP(BH95,'Footnotes list'!$D$9:$E$58,2,FALSE)=0,\"\",VLOOKUP(BH95,'Footnotes list'!$D$9:$E$58,2,FALSE) ) )","v":""},null,null,null,null,{"$f":"IF(TRIM(BM95)=\"\", \"\", IF(VLOOKUP(BM95,'Footnotes list'!$D$9:$E$58,2,FALSE)=0,\"\",VLOOKUP(BM95,'Footnotes list'!$D$9:$E$58,2,FALSE) ) )","v":""},null,null,null,null,{"$f":"IF(TRIM(BR95)=\"\", \"\", IF(VLOOKUP(BR95,'Footnotes list'!$D$9:$E$58,2,FALSE)=0,\"\",VLOOKUP(BR95,'Footnotes list'!$D$9:$E$58,2,FALSE) ) )","v":""},null,null,null,null,{"$f":"IF(TRIM(BW95)=\"\", \"\", IF(VLOOKUP(BW95,'Footnotes list'!$D$9:$E$58,2,FALSE)=0,\"\",VLOOKUP(BW95,'Footnotes list'!$D$9:$E$58,2,FALSE) ) )","v":""},null,null,null,null,{"$f":"IF(TRIM(CB95)=\"\", \"\", IF(VLOOKUP(CB95,'Footnotes list'!$D$9:$E$58,2,FALSE)=0,\"\",VLOOKUP(CB95,'Footnotes list'!$D$9:$E$58,2,FALSE) ) )","v":""},null,null,null,null,{"$f":"IF(TRIM(CG95)=\"\", \"\", IF(VLOOKUP(CG95,'Footnotes list'!$D$9:$E$58,2,FALSE)=0,\"\",VLOOKUP(CG95,'Footnotes list'!$D$9:$E$58,2,FALSE) ) )","v":""},null,null,null,null,{"$f":"IF(TRIM(CL95)=\"\", \"\", IF(VLOOKUP(CL95,'Footnotes list'!$D$9:$E$58,2,FALSE)=0,\"\",VLOOKUP(CL95,'Footnotes list'!$D$9:$E$58,2,FALSE) ) )","v":""},null,null,null,null,{"$f":"IF(TRIM(CQ95)=\"\", \"\", IF(VLOOKUP(CQ95,'Footnotes list'!$D$9:$E$58,2,FALSE)=0,\"\",VLOOKUP(CQ95,'Footnotes list'!$D$9:$E$58,2,FALSE) ) )","v":""},null,null,null,null,{"$f":"IF(TRIM(CV95)=\"\", \"\", IF(VLOOKUP(CV95,'Footnotes list'!$D$9:$E$58,2,FALSE)=0,\"\",VLOOKUP(CV95,'Footnotes list'!$D$9:$E$58,2,FALSE) ) )","v":""},null,null,null,null,{"$f":"IF(TRIM(DA95)=\"\", \"\", IF(VLOOKUP(DA95,'Footnotes list'!$D$9:$E$58,2,FALSE)=0,\"\",VLOOKUP(DA95,'Footnotes list'!$D$9:$E$58,2,FALSE) ) )","v":""},null,null,null,null,{"$f":"IF(TRIM(DF95)=\"\", \"\", IF(VLOOKUP(DF95,'Footnotes list'!$D$9:$E$58,2,FALSE)=0,\"\",VLOOKUP(DF95,'Footnotes list'!$D$9:$E$58,2,FALSE) ) )","v":""},null,null,null,null,{"$f":"IF(TRIM(DK95)=\"\", \"\", IF(VLOOKUP(DK95,'Footnotes list'!$D$9:$E$58,2,FALSE)=0,\"\",VLOOKUP(DK95,'Footnotes list'!$D$9:$E$58,2,FALSE) ) )","v":""},null,null,null,null,{"$f":"IF(TRIM(DP95)=\"\", \"\", IF(VLOOKUP(DP95,'Footnotes list'!$D$9:$E$58,2,FALSE)=0,\"\",VLOOKUP(DP95,'Footnotes list'!$D$9:$E$58,2,FALSE) ) )","v":""},null,null,null,null,{"$f":"IF(TRIM(DU95)=\"\", \"\", IF(VLOOKUP(DU95,'Footnotes list'!$D$9:$E$58,2,FALSE)=0,\"\",VLOOKUP(DU95,'Footnotes list'!$D$9:$E$58,2,FALSE) ) )","v":""},null,null,null,null,{"$f":"IF(TRIM(DZ95)=\"\", \"\", IF(VLOOKUP(DZ95,'Footnotes list'!$D$9:$E$58,2,FALSE)=0,\"\",VLOOKUP(DZ95,'Footnotes list'!$D$9:$E$58,2,FALSE) ) )","v":""},null,null,null,null,{"$f":"IF(TRIM(EE95)=\"\", \"\", IF(VLOOKUP(EE95,'Footnotes list'!$D$9:$E$58,2,FALSE)=0,\"\",VLOOKUP(EE95,'Footnotes list'!$D$9:$E$58,2,FALSE) ) )","v":""},null,null,null,null,{"$f":"IF(TRIM(EJ95)=\"\", \"\", IF(VLOOKUP(EJ95,'Footnotes list'!$D$9:$E$58,2,FALSE)=0,\"\",VLOOKUP(EJ95,'Footnotes list'!$D$9:$E$58,2,FALSE) ) )","v":""},null,null,null,null,{"$f":"IF(TRIM(EO95)=\"\", \"\", IF(VLOOKUP(EO95,'Footnotes list'!$D$9:$E$58,2,FALSE)=0,\"\",VLOOKUP(EO95,'Footnotes list'!$D$9:$E$58,2,FALSE) ) )","v":""},null,null,null,null,{"$f":"IF(TRIM(ET95)=\"\", \"\", IF(VLOOKUP(ET95,'Footnotes list'!$D$9:$E$58,2,FALSE)=0,\"\",VLOOKUP(ET95,'Footnotes list'!$D$9:$E$58,2,FALSE) ) )","v":""},null,null,null,null,{"$f":"IF(TRIM(EY95)=\"\", \"\", IF(VLOOKUP(EY95,'Footnotes list'!$D$9:$E$58,2,FALSE)=0,\"\",VLOOKUP(EY95,'Footnotes list'!$D$9:$E$58,2,FALSE) ) )","v":""}]
[null,null,"C26","MKT","market activities, including:",null,null,null,null,null,{"$f":"IF(TRIM(J96)=\"\", \"\", IF(VLOOKUP(J96,'Footnotes list'!$D$9:$E$58,2,FALSE)=0,\"\",VLOOKUP(J96,'Footnotes list'!$D$9:$E$58,2,FALSE) ) )","v":""},null,null,null,null,{"$f":"IF(TRIM(O96)=\"\", \"\", IF(VLOOKUP(O96,'Footnotes list'!$D$9:$E$58,2,FALSE)=0,\"\",VLOOKUP(O96,'Footnotes list'!$D$9:$E$58,2,FALSE) ) )","v":""},null,null,null,null,{"$f":"IF(TRIM(T96)=\"\", \"\", IF(VLOOKUP(T96,'Footnotes list'!$D$9:$E$58,2,FALSE)=0,\"\",VLOOKUP(T96,'Footnotes list'!$D$9:$E$58,2,FALSE) ) )","v":""},null,null,null,null,{"$f":"IF(TRIM(Y96)=\"\", \"\", IF(VLOOKUP(Y96,'Footnotes list'!$D$9:$E$58,2,FALSE)=0,\"\",VLOOKUP(Y96,'Footnotes list'!$D$9:$E$58,2,FALSE) ) )","v":""},null,null,null,null,{"$f":"IF(TRIM(AD96)=\"\", \"\", IF(VLOOKUP(AD96,'Footnotes list'!$D$9:$E$58,2,FALSE)=0,\"\",VLOOKUP(AD96,'Footnotes list'!$D$9:$E$58,2,FALSE) ) )","v":""},null,null,null,null,{"$f":"IF(TRIM(AI96)=\"\", \"\", IF(VLOOKUP(AI96,'Footnotes list'!$D$9:$E$58,2,FALSE)=0,\"\",VLOOKUP(AI96,'Footnotes list'!$D$9:$E$58,2,FALSE) ) )","v":""},null,null,null,null,{"$f":"IF(TRIM(AN96)=\"\", \"\", IF(VLOOKUP(AN96,'Footnotes list'!$D$9:$E$58,2,FALSE)=0,\"\",VLOOKUP(AN96,'Footnotes list'!$D$9:$E$58,2,FALSE) ) )","v":""},null,null,null,null,{"$f":"IF(TRIM(AS96)=\"\", \"\", IF(VLOOKUP(AS96,'Footnotes list'!$D$9:$E$58,2,FALSE)=0,\"\",VLOOKUP(AS96,'Footnotes list'!$D$9:$E$58,2,FALSE) ) )","v":""},null,null,null,null,{"$f":"IF(TRIM(AX96)=\"\", \"\", IF(VLOOKUP(AX96,'Footnotes list'!$D$9:$E$58,2,FALSE)=0,\"\",VLOOKUP(AX96,'Footnotes list'!$D$9:$E$58,2,FALSE) ) )","v":""},null,null,null,null,{"$f":"IF(TRIM(BC96)=\"\", \"\", IF(VLOOKUP(BC96,'Footnotes list'!$D$9:$E$58,2,FALSE)=0,\"\",VLOOKUP(BC96,'Footnotes list'!$D$9:$E$58,2,FALSE) ) )","v":""},null,null,null,null,{"$f":"IF(TRIM(BH96)=\"\", \"\", IF(VLOOKUP(BH96,'Footnotes list'!$D$9:$E$58,2,FALSE)=0,\"\",VLOOKUP(BH96,'Footnotes list'!$D$9:$E$58,2,FALSE) ) )","v":""},null,null,null,null,{"$f":"IF(TRIM(BM96)=\"\", \"\", IF(VLOOKUP(BM96,'Footnotes list'!$D$9:$E$58,2,FALSE)=0,\"\",VLOOKUP(BM96,'Footnotes list'!$D$9:$E$58,2,FALSE) ) )","v":""},null,null,null,null,{"$f":"IF(TRIM(BR96)=\"\", \"\", IF(VLOOKUP(BR96,'Footnotes list'!$D$9:$E$58,2,FALSE)=0,\"\",VLOOKUP(BR96,'Footnotes list'!$D$9:$E$58,2,FALSE) ) )","v":""},null,null,null,null,{"$f":"IF(TRIM(BW96)=\"\", \"\", IF(VLOOKUP(BW96,'Footnotes list'!$D$9:$E$58,2,FALSE)=0,\"\",VLOOKUP(BW96,'Footnotes list'!$D$9:$E$58,2,FALSE) ) )","v":""},null,null,null,null,{"$f":"IF(TRIM(CB96)=\"\", \"\", IF(VLOOKUP(CB96,'Footnotes list'!$D$9:$E$58,2,FALSE)=0,\"\",VLOOKUP(CB96,'Footnotes list'!$D$9:$E$58,2,FALSE) ) )","v":""},null,null,null,null,{"$f":"IF(TRIM(CG96)=\"\", \"\", IF(VLOOKUP(CG96,'Footnotes list'!$D$9:$E$58,2,FALSE)=0,\"\",VLOOKUP(CG96,'Footnotes list'!$D$9:$E$58,2,FALSE) ) )","v":""},null,null,null,null,{"$f":"IF(TRIM(CL96)=\"\", \"\", IF(VLOOKUP(CL96,'Footnotes list'!$D$9:$E$58,2,FALSE)=0,\"\",VLOOKUP(CL96,'Footnotes list'!$D$9:$E$58,2,FALSE) ) )","v":""},null,null,null,null,{"$f":"IF(TRIM(CQ96)=\"\", \"\", IF(VLOOKUP(CQ96,'Footnotes list'!$D$9:$E$58,2,FALSE)=0,\"\",VLOOKUP(CQ96,'Footnotes list'!$D$9:$E$58,2,FALSE) ) )","v":""},null,null,null,null,{"$f":"IF(TRIM(CV96)=\"\", \"\", IF(VLOOKUP(CV96,'Footnotes list'!$D$9:$E$58,2,FALSE)=0,\"\",VLOOKUP(CV96,'Footnotes list'!$D$9:$E$58,2,FALSE) ) )","v":""},null,null,null,null,{"$f":"IF(TRIM(DA96)=\"\", \"\", IF(VLOOKUP(DA96,'Footnotes list'!$D$9:$E$58,2,FALSE)=0,\"\",VLOOKUP(DA96,'Footnotes list'!$D$9:$E$58,2,FALSE) ) )","v":""},null,null,null,null,{"$f":"IF(TRIM(DF96)=\"\", \"\", IF(VLOOKUP(DF96,'Footnotes list'!$D$9:$E$58,2,FALSE)=0,\"\",VLOOKUP(DF96,'Footnotes list'!$D$9:$E$58,2,FALSE) ) )","v":""},null,null,null,null,{"$f":"IF(TRIM(DK96)=\"\", \"\", IF(VLOOKUP(DK96,'Footnotes list'!$D$9:$E$58,2,FALSE)=0,\"\",VLOOKUP(DK96,'Footnotes list'!$D$9:$E$58,2,FALSE) ) )","v":""},null,null,null,null,{"$f":"IF(TRIM(DP96)=\"\", \"\", IF(VLOOKUP(DP96,'Footnotes list'!$D$9:$E$58,2,FALSE)=0,\"\",VLOOKUP(DP96,'Footnotes list'!$D$9:$E$58,2,FALSE) ) )","v":""},null,null,null,null,{"$f":"IF(TRIM(DU96)=\"\", \"\", IF(VLOOKUP(DU96,'Footnotes list'!$D$9:$E$58,2,FALSE)=0,\"\",VLOOKUP(DU96,'Footnotes list'!$D$9:$E$58,2,FALSE) ) )","v":""},null,null,null,null,{"$f":"IF(TRIM(DZ96)=\"\", \"\", IF(VLOOKUP(DZ96,'Footnotes list'!$D$9:$E$58,2,FALSE)=0,\"\",VLOOKUP(DZ96,'Footnotes list'!$D$9:$E$58,2,FALSE) ) )","v":""},null,null,null,null,{"$f":"IF(TRIM(EE96)=\"\", \"\", IF(VLOOKUP(EE96,'Footnotes list'!$D$9:$E$58,2,FALSE)=0,\"\",VLOOKUP(EE96,'Footnotes list'!$D$9:$E$58,2,FALSE) ) )","v":""},null,null,null,null,{"$f":"IF(TRIM(EJ96)=\"\", \"\", IF(VLOOKUP(EJ96,'Footnotes list'!$D$9:$E$58,2,FALSE)=0,\"\",VLOOKUP(EJ96,'Footnotes list'!$D$9:$E$58,2,FALSE) ) )","v":""},null,null,null,null,{"$f":"IF(TRIM(EO96)=\"\", \"\", IF(VLOOKUP(EO96,'Footnotes list'!$D$9:$E$58,2,FALSE)=0,\"\",VLOOKUP(EO96,'Footnotes list'!$D$9:$E$58,2,FALSE) ) )","v":""},null,null,null,null,{"$f":"IF(TRIM(ET96)=\"\", \"\", IF(VLOOKUP(ET96,'Footnotes list'!$D$9:$E$58,2,FALSE)=0,\"\",VLOOKUP(ET96,'Footnotes list'!$D$9:$E$58,2,FALSE) ) )","v":""},null,null,null,null,{"$f":"IF(TRIM(EY96)=\"\", \"\", IF(VLOOKUP(EY96,'Footnotes list'!$D$9:$E$58,2,FALSE)=0,\"\",VLOOKUP(EY96,'Footnotes list'!$D$9:$E$58,2,FALSE) ) )","v":""}]
[null,null,"C26","ES_CS","environmental specific services",null,null,null,null,null,{"$f":"IF(TRIM(J97)=\"\", \"\", IF(VLOOKUP(J97,'Footnotes list'!$D$9:$E$58,2,FALSE)=0,\"\",VLOOKUP(J97,'Footnotes list'!$D$9:$E$58,2,FALSE) ) )","v":""},null,null,null,null,{"$f":"IF(TRIM(O97)=\"\", \"\", IF(VLOOKUP(O97,'Footnotes list'!$D$9:$E$58,2,FALSE)=0,\"\",VLOOKUP(O97,'Footnotes list'!$D$9:$E$58,2,FALSE) ) )","v":""},null,null,null,null,{"$f":"IF(TRIM(T97)=\"\", \"\", IF(VLOOKUP(T97,'Footnotes list'!$D$9:$E$58,2,FALSE)=0,\"\",VLOOKUP(T97,'Footnotes list'!$D$9:$E$58,2,FALSE) ) )","v":""},null,null,null,null,{"$f":"IF(TRIM(Y97)=\"\", \"\", IF(VLOOKUP(Y97,'Footnotes list'!$D$9:$E$58,2,FALSE)=0,\"\",VLOOKUP(Y97,'Footnotes list'!$D$9:$E$58,2,FALSE) ) )","v":""},null,null,null,null,{"$f":"IF(TRIM(AD97)=\"\", \"\", IF(VLOOKUP(AD97,'Footnotes list'!$D$9:$E$58,2,FALSE)=0,\"\",VLOOKUP(AD97,'Footnotes list'!$D$9:$E$58,2,FALSE) ) )","v":""},null,null,null,null,{"$f":"IF(TRIM(AI97)=\"\", \"\", IF(VLOOKUP(AI97,'Footnotes list'!$D$9:$E$58,2,FALSE)=0,\"\",VLOOKUP(AI97,'Footnotes list'!$D$9:$E$58,2,FALSE) ) )","v":""},null,null,null,null,{"$f":"IF(TRIM(AN97)=\"\", \"\", IF(VLOOKUP(AN97,'Footnotes list'!$D$9:$E$58,2,FALSE)=0,\"\",VLOOKUP(AN97,'Footnotes list'!$D$9:$E$58,2,FALSE) ) )","v":""},null,null,null,null,{"$f":"IF(TRIM(AS97)=\"\", \"\", IF(VLOOKUP(AS97,'Footnotes list'!$D$9:$E$58,2,FALSE)=0,\"\",VLOOKUP(AS97,'Footnotes list'!$D$9:$E$58,2,FALSE) ) )","v":""},null,null,null,null,{"$f":"IF(TRIM(AX97)=\"\", \"\", IF(VLOOKUP(AX97,'Footnotes list'!$D$9:$E$58,2,FALSE)=0,\"\",VLOOKUP(AX97,'Footnotes list'!$D$9:$E$58,2,FALSE) ) )","v":""},null,null,null,null,{"$f":"IF(TRIM(BC97)=\"\", \"\", IF(VLOOKUP(BC97,'Footnotes list'!$D$9:$E$58,2,FALSE)=0,\"\",VLOOKUP(BC97,'Footnotes list'!$D$9:$E$58,2,FALSE) ) )","v":""},null,null,null,null,{"$f":"IF(TRIM(BH97)=\"\", \"\", IF(VLOOKUP(BH97,'Footnotes list'!$D$9:$E$58,2,FALSE)=0,\"\",VLOOKUP(BH97,'Footnotes list'!$D$9:$E$58,2,FALSE) ) )","v":""},null,null,null,null,{"$f":"IF(TRIM(BM97)=\"\", \"\", IF(VLOOKUP(BM97,'Footnotes list'!$D$9:$E$58,2,FALSE)=0,\"\",VLOOKUP(BM97,'Footnotes list'!$D$9:$E$58,2,FALSE) ) )","v":""},null,null,null,null,{"$f":"IF(TRIM(BR97)=\"\", \"\", IF(VLOOKUP(BR97,'Footnotes list'!$D$9:$E$58,2,FALSE)=0,\"\",VLOOKUP(BR97,'Footnotes list'!$D$9:$E$58,2,FALSE) ) )","v":""},null,null,null,null,{"$f":"IF(TRIM(BW97)=\"\", \"\", IF(VLOOKUP(BW97,'Footnotes list'!$D$9:$E$58,2,FALSE)=0,\"\",VLOOKUP(BW97,'Footnotes list'!$D$9:$E$58,2,FALSE) ) )","v":""},null,null,null,null,{"$f":"IF(TRIM(CB97)=\"\", \"\", IF(VLOOKUP(CB97,'Footnotes list'!$D$9:$E$58,2,FALSE)=0,\"\",VLOOKUP(CB97,'Footnotes list'!$D$9:$E$58,2,FALSE) ) )","v":""},null,null,null,null,{"$f":"IF(TRIM(CG97)=\"\", \"\", IF(VLOOKUP(CG97,'Footnotes list'!$D$9:$E$58,2,FALSE)=0,\"\",VLOOKUP(CG97,'Footnotes list'!$D$9:$E$58,2,FALSE) ) )","v":""},null,null,null,null,{"$f":"IF(TRIM(CL97)=\"\", \"\", IF(VLOOKUP(CL97,'Footnotes list'!$D$9:$E$58,2,FALSE)=0,\"\",VLOOKUP(CL97,'Footnotes list'!$D$9:$E$58,2,FALSE) ) )","v":""},null,null,null,null,{"$f":"IF(TRIM(CQ97)=\"\", \"\", IF(VLOOKUP(CQ97,'Footnotes list'!$D$9:$E$58,2,FALSE)=0,\"\",VLOOKUP(CQ97,'Footnotes list'!$D$9:$E$58,2,FALSE) ) )","v":""},null,null,null,null,{"$f":"IF(TRIM(CV97)=\"\", \"\", IF(VLOOKUP(CV97,'Footnotes list'!$D$9:$E$58,2,FALSE)=0,\"\",VLOOKUP(CV97,'Footnotes list'!$D$9:$E$58,2,FALSE) ) )","v":""},null,null,null,null,{"$f":"IF(TRIM(DA97)=\"\", \"\", IF(VLOOKUP(DA97,'Footnotes list'!$D$9:$E$58,2,FALSE)=0,\"\",VLOOKUP(DA97,'Footnotes list'!$D$9:$E$58,2,FALSE) ) )","v":""},null,null,null,null,{"$f":"IF(TRIM(DF97)=\"\", \"\", IF(VLOOKUP(DF97,'Footnotes list'!$D$9:$E$58,2,FALSE)=0,\"\",VLOOKUP(DF97,'Footnotes list'!$D$9:$E$58,2,FALSE) ) )","v":""},null,null,null,null,{"$f":"IF(TRIM(DK97)=\"\", \"\", IF(VLOOKUP(DK97,'Footnotes list'!$D$9:$E$58,2,FALSE)=0,\"\",VLOOKUP(DK97,'Footnotes list'!$D$9:$E$58,2,FALSE) ) )","v":""},null,null,null,null,{"$f":"IF(TRIM(DP97)=\"\", \"\", IF(VLOOKUP(DP97,'Footnotes list'!$D$9:$E$58,2,FALSE)=0,\"\",VLOOKUP(DP97,'Footnotes list'!$D$9:$E$58,2,FALSE) ) )","v":""},null,null,null,null,{"$f":"IF(TRIM(DU97)=\"\", \"\", IF(VLOOKUP(DU97,'Footnotes list'!$D$9:$E$58,2,FALSE)=0,\"\",VLOOKUP(DU97,'Footnotes list'!$D$9:$E$58,2,FALSE) ) )","v":""},null,null,null,null,{"$f":"IF(TRIM(DZ97)=\"\", \"\", IF(VLOOKUP(DZ97,'Footnotes list'!$D$9:$E$58,2,FALSE)=0,\"\",VLOOKUP(DZ97,'Footnotes list'!$D$9:$E$58,2,FALSE) ) )","v":""},null,null,null,null,{"$f":"IF(TRIM(EE97)=\"\", \"\", IF(VLOOKUP(EE97,'Footnotes list'!$D$9:$E$58,2,FALSE)=0,\"\",VLOOKUP(EE97,'Footnotes list'!$D$9:$E$58,2,FALSE) ) )","v":""},null,null,null,null,{"$f":"IF(TRIM(EJ97)=\"\", \"\", IF(VLOOKUP(EJ97,'Footnotes list'!$D$9:$E$58,2,FALSE)=0,\"\",VLOOKUP(EJ97,'Footnotes list'!$D$9:$E$58,2,FALSE) ) )","v":""},null,null,null,null,{"$f":"IF(TRIM(EO97)=\"\", \"\", IF(VLOOKUP(EO97,'Footnotes list'!$D$9:$E$58,2,FALSE)=0,\"\",VLOOKUP(EO97,'Footnotes list'!$D$9:$E$58,2,FALSE) ) )","v":""},null,null,null,null,{"$f":"IF(TRIM(ET97)=\"\", \"\", IF(VLOOKUP(ET97,'Footnotes list'!$D$9:$E$58,2,FALSE)=0,\"\",VLOOKUP(ET97,'Footnotes list'!$D$9:$E$58,2,FALSE) ) )","v":""},null,null,null,null,{"$f":"IF(TRIM(EY97)=\"\", \"\", IF(VLOOKUP(EY97,'Footnotes list'!$D$9:$E$58,2,FALSE)=0,\"\",VLOOKUP(EY97,'Footnotes list'!$D$9:$E$58,2,FALSE) ) )","v":""}]
[null,null,"C26","C_REP","cleaner and resource efficient products",null,null,null,null,null,{"$f":"IF(TRIM(J98)=\"\", \"\", IF(VLOOKUP(J98,'Footnotes list'!$D$9:$E$58,2,FALSE)=0,\"\",VLOOKUP(J98,'Footnotes list'!$D$9:$E$58,2,FALSE) ) )","v":""},null,null,null,null,{"$f":"IF(TRIM(O98)=\"\", \"\", IF(VLOOKUP(O98,'Footnotes list'!$D$9:$E$58,2,FALSE)=0,\"\",VLOOKUP(O98,'Footnotes list'!$D$9:$E$58,2,FALSE) ) )","v":""},null,null,null,null,{"$f":"IF(TRIM(T98)=\"\", \"\", IF(VLOOKUP(T98,'Footnotes list'!$D$9:$E$58,2,FALSE)=0,\"\",VLOOKUP(T98,'Footnotes list'!$D$9:$E$58,2,FALSE) ) )","v":""},null,null,null,null,{"$f":"IF(TRIM(Y98)=\"\", \"\", IF(VLOOKUP(Y98,'Footnotes list'!$D$9:$E$58,2,FALSE)=0,\"\",VLOOKUP(Y98,'Footnotes list'!$D$9:$E$58,2,FALSE) ) )","v":""},null,null,null,null,{"$f":"IF(TRIM(AD98)=\"\", \"\", IF(VLOOKUP(AD98,'Footnotes list'!$D$9:$E$58,2,FALSE)=0,\"\",VLOOKUP(AD98,'Footnotes list'!$D$9:$E$58,2,FALSE) ) )","v":""},null,null,null,null,{"$f":"IF(TRIM(AI98)=\"\", \"\", IF(VLOOKUP(AI98,'Footnotes list'!$D$9:$E$58,2,FALSE)=0,\"\",VLOOKUP(AI98,'Footnotes list'!$D$9:$E$58,2,FALSE) ) )","v":""},null,null,null,null,{"$f":"IF(TRIM(AN98)=\"\", \"\", IF(VLOOKUP(AN98,'Footnotes list'!$D$9:$E$58,2,FALSE)=0,\"\",VLOOKUP(AN98,'Footnotes list'!$D$9:$E$58,2,FALSE) ) )","v":""},null,null,null,null,{"$f":"IF(TRIM(AS98)=\"\", \"\", IF(VLOOKUP(AS98,'Footnotes list'!$D$9:$E$58,2,FALSE)=0,\"\",VLOOKUP(AS98,'Footnotes list'!$D$9:$E$58,2,FALSE) ) )","v":""},null,null,null,null,{"$f":"IF(TRIM(AX98)=\"\", \"\", IF(VLOOKUP(AX98,'Footnotes list'!$D$9:$E$58,2,FALSE)=0,\"\",VLOOKUP(AX98,'Footnotes list'!$D$9:$E$58,2,FALSE) ) )","v":""},null,null,null,null,{"$f":"IF(TRIM(BC98)=\"\", \"\", IF(VLOOKUP(BC98,'Footnotes list'!$D$9:$E$58,2,FALSE)=0,\"\",VLOOKUP(BC98,'Footnotes list'!$D$9:$E$58,2,FALSE) ) )","v":""},null,null,null,null,{"$f":"IF(TRIM(BH98)=\"\", \"\", IF(VLOOKUP(BH98,'Footnotes list'!$D$9:$E$58,2,FALSE)=0,\"\",VLOOKUP(BH98,'Footnotes list'!$D$9:$E$58,2,FALSE) ) )","v":""},null,null,null,null,{"$f":"IF(TRIM(BM98)=\"\", \"\", IF(VLOOKUP(BM98,'Footnotes list'!$D$9:$E$58,2,FALSE)=0,\"\",VLOOKUP(BM98,'Footnotes list'!$D$9:$E$58,2,FALSE) ) )","v":""},null,null,null,null,{"$f":"IF(TRIM(BR98)=\"\", \"\", IF(VLOOKUP(BR98,'Footnotes list'!$D$9:$E$58,2,FALSE)=0,\"\",VLOOKUP(BR98,'Footnotes list'!$D$9:$E$58,2,FALSE) ) )","v":""},null,null,null,null,{"$f":"IF(TRIM(BW98)=\"\", \"\", IF(VLOOKUP(BW98,'Footnotes list'!$D$9:$E$58,2,FALSE)=0,\"\",VLOOKUP(BW98,'Footnotes list'!$D$9:$E$58,2,FALSE) ) )","v":""},null,null,null,null,{"$f":"IF(TRIM(CB98)=\"\", \"\", IF(VLOOKUP(CB98,'Footnotes list'!$D$9:$E$58,2,FALSE)=0,\"\",VLOOKUP(CB98,'Footnotes list'!$D$9:$E$58,2,FALSE) ) )","v":""},null,null,null,null,{"$f":"IF(TRIM(CG98)=\"\", \"\", IF(VLOOKUP(CG98,'Footnotes list'!$D$9:$E$58,2,FALSE)=0,\"\",VLOOKUP(CG98,'Footnotes list'!$D$9:$E$58,2,FALSE) ) )","v":""},null,null,null,null,{"$f":"IF(TRIM(CL98)=\"\", \"\", IF(VLOOKUP(CL98,'Footnotes list'!$D$9:$E$58,2,FALSE)=0,\"\",VLOOKUP(CL98,'Footnotes list'!$D$9:$E$58,2,FALSE) ) )","v":""},null,null,null,null,{"$f":"IF(TRIM(CQ98)=\"\", \"\", IF(VLOOKUP(CQ98,'Footnotes list'!$D$9:$E$58,2,FALSE)=0,\"\",VLOOKUP(CQ98,'Footnotes list'!$D$9:$E$58,2,FALSE) ) )","v":""},null,null,null,null,{"$f":"IF(TRIM(CV98)=\"\", \"\", IF(VLOOKUP(CV98,'Footnotes list'!$D$9:$E$58,2,FALSE)=0,\"\",VLOOKUP(CV98,'Footnotes list'!$D$9:$E$58,2,FALSE) ) )","v":""},null,null,null,null,{"$f":"IF(TRIM(DA98)=\"\", \"\", IF(VLOOKUP(DA98,'Footnotes list'!$D$9:$E$58,2,FALSE)=0,\"\",VLOOKUP(DA98,'Footnotes list'!$D$9:$E$58,2,FALSE) ) )","v":""},null,null,null,null,{"$f":"IF(TRIM(DF98)=\"\", \"\", IF(VLOOKUP(DF98,'Footnotes list'!$D$9:$E$58,2,FALSE)=0,\"\",VLOOKUP(DF98,'Footnotes list'!$D$9:$E$58,2,FALSE) ) )","v":""},null,null,null,null,{"$f":"IF(TRIM(DK98)=\"\", \"\", IF(VLOOKUP(DK98,'Footnotes list'!$D$9:$E$58,2,FALSE)=0,\"\",VLOOKUP(DK98,'Footnotes list'!$D$9:$E$58,2,FALSE) ) )","v":""},null,null,null,null,{"$f":"IF(TRIM(DP98)=\"\", \"\", IF(VLOOKUP(DP98,'Footnotes list'!$D$9:$E$58,2,FALSE)=0,\"\",VLOOKUP(DP98,'Footnotes list'!$D$9:$E$58,2,FALSE) ) )","v":""},null,null,null,null,{"$f":"IF(TRIM(DU98)=\"\", \"\", IF(VLOOKUP(DU98,'Footnotes list'!$D$9:$E$58,2,FALSE)=0,\"\",VLOOKUP(DU98,'Footnotes list'!$D$9:$E$58,2,FALSE) ) )","v":""},null,null,null,null,{"$f":"IF(TRIM(DZ98)=\"\", \"\", IF(VLOOKUP(DZ98,'Footnotes list'!$D$9:$E$58,2,FALSE)=0,\"\",VLOOKUP(DZ98,'Footnotes list'!$D$9:$E$58,2,FALSE) ) )","v":""},null,null,null,null,{"$f":"IF(TRIM(EE98)=\"\", \"\", IF(VLOOKUP(EE98,'Footnotes list'!$D$9:$E$58,2,FALSE)=0,\"\",VLOOKUP(EE98,'Footnotes list'!$D$9:$E$58,2,FALSE) ) )","v":""},null,null,null,null,{"$f":"IF(TRIM(EJ98)=\"\", \"\", IF(VLOOKUP(EJ98,'Footnotes list'!$D$9:$E$58,2,FALSE)=0,\"\",VLOOKUP(EJ98,'Footnotes list'!$D$9:$E$58,2,FALSE) ) )","v":""},null,null,null,null,{"$f":"IF(TRIM(EO98)=\"\", \"\", IF(VLOOKUP(EO98,'Footnotes list'!$D$9:$E$58,2,FALSE)=0,\"\",VLOOKUP(EO98,'Footnotes list'!$D$9:$E$58,2,FALSE) ) )","v":""},null,null,null,null,{"$f":"IF(TRIM(ET98)=\"\", \"\", IF(VLOOKUP(ET98,'Footnotes list'!$D$9:$E$58,2,FALSE)=0,\"\",VLOOKUP(ET98,'Footnotes list'!$D$9:$E$58,2,FALSE) ) )","v":""},null,null,null,null,{"$f":"IF(TRIM(EY98)=\"\", \"\", IF(VLOOKUP(EY98,'Footnotes list'!$D$9:$E$58,2,FALSE)=0,\"\",VLOOKUP(EY98,'Footnotes list'!$D$9:$E$58,2,FALSE) ) )","v":""}]
[null,null,"C27","TOT_EGSS","Total C27 - Manufacture of electrical equipment, of which:",null,null,null,null,null,{"$f":"IF(TRIM(J99)=\"\", \"\", IF(VLOOKUP(J99,'Footnotes list'!$D$9:$E$58,2,FALSE)=0,\"\",VLOOKUP(J99,'Footnotes list'!$D$9:$E$58,2,FALSE) ) )","v":""},null,null,null,null,{"$f":"IF(TRIM(O99)=\"\", \"\", IF(VLOOKUP(O99,'Footnotes list'!$D$9:$E$58,2,FALSE)=0,\"\",VLOOKUP(O99,'Footnotes list'!$D$9:$E$58,2,FALSE) ) )","v":""},null,null,null,null,{"$f":"IF(TRIM(T99)=\"\", \"\", IF(VLOOKUP(T99,'Footnotes list'!$D$9:$E$58,2,FALSE)=0,\"\",VLOOKUP(T99,'Footnotes list'!$D$9:$E$58,2,FALSE) ) )","v":""},null,null,null,null,{"$f":"IF(TRIM(Y99)=\"\", \"\", IF(VLOOKUP(Y99,'Footnotes list'!$D$9:$E$58,2,FALSE)=0,\"\",VLOOKUP(Y99,'Footnotes list'!$D$9:$E$58,2,FALSE) ) )","v":""},null,null,null,null,{"$f":"IF(TRIM(AD99)=\"\", \"\", IF(VLOOKUP(AD99,'Footnotes list'!$D$9:$E$58,2,FALSE)=0,\"\",VLOOKUP(AD99,'Footnotes list'!$D$9:$E$58,2,FALSE) ) )","v":""},null,null,null,null,{"$f":"IF(TRIM(AI99)=\"\", \"\", IF(VLOOKUP(AI99,'Footnotes list'!$D$9:$E$58,2,FALSE)=0,\"\",VLOOKUP(AI99,'Footnotes list'!$D$9:$E$58,2,FALSE) ) )","v":""},null,null,null,null,{"$f":"IF(TRIM(AN99)=\"\", \"\", IF(VLOOKUP(AN99,'Footnotes list'!$D$9:$E$58,2,FALSE)=0,\"\",VLOOKUP(AN99,'Footnotes list'!$D$9:$E$58,2,FALSE) ) )","v":""},null,null,null,null,{"$f":"IF(TRIM(AS99)=\"\", \"\", IF(VLOOKUP(AS99,'Footnotes list'!$D$9:$E$58,2,FALSE)=0,\"\",VLOOKUP(AS99,'Footnotes list'!$D$9:$E$58,2,FALSE) ) )","v":""},null,null,null,null,{"$f":"IF(TRIM(AX99)=\"\", \"\", IF(VLOOKUP(AX99,'Footnotes list'!$D$9:$E$58,2,FALSE)=0,\"\",VLOOKUP(AX99,'Footnotes list'!$D$9:$E$58,2,FALSE) ) )","v":""},null,null,null,null,{"$f":"IF(TRIM(BC99)=\"\", \"\", IF(VLOOKUP(BC99,'Footnotes list'!$D$9:$E$58,2,FALSE)=0,\"\",VLOOKUP(BC99,'Footnotes list'!$D$9:$E$58,2,FALSE) ) )","v":""},null,null,null,null,{"$f":"IF(TRIM(BH99)=\"\", \"\", IF(VLOOKUP(BH99,'Footnotes list'!$D$9:$E$58,2,FALSE)=0,\"\",VLOOKUP(BH99,'Footnotes list'!$D$9:$E$58,2,FALSE) ) )","v":""},null,null,null,null,{"$f":"IF(TRIM(BM99)=\"\", \"\", IF(VLOOKUP(BM99,'Footnotes list'!$D$9:$E$58,2,FALSE)=0,\"\",VLOOKUP(BM99,'Footnotes list'!$D$9:$E$58,2,FALSE) ) )","v":""},null,null,null,null,{"$f":"IF(TRIM(BR99)=\"\", \"\", IF(VLOOKUP(BR99,'Footnotes list'!$D$9:$E$58,2,FALSE)=0,\"\",VLOOKUP(BR99,'Footnotes list'!$D$9:$E$58,2,FALSE) ) )","v":""},null,null,null,null,{"$f":"IF(TRIM(BW99)=\"\", \"\", IF(VLOOKUP(BW99,'Footnotes list'!$D$9:$E$58,2,FALSE)=0,\"\",VLOOKUP(BW99,'Footnotes list'!$D$9:$E$58,2,FALSE) ) )","v":""},null,null,null,null,{"$f":"IF(TRIM(CB99)=\"\", \"\", IF(VLOOKUP(CB99,'Footnotes list'!$D$9:$E$58,2,FALSE)=0,\"\",VLOOKUP(CB99,'Footnotes list'!$D$9:$E$58,2,FALSE) ) )","v":""},null,null,null,null,{"$f":"IF(TRIM(CG99)=\"\", \"\", IF(VLOOKUP(CG99,'Footnotes list'!$D$9:$E$58,2,FALSE)=0,\"\",VLOOKUP(CG99,'Footnotes list'!$D$9:$E$58,2,FALSE) ) )","v":""},null,null,null,null,{"$f":"IF(TRIM(CL99)=\"\", \"\", IF(VLOOKUP(CL99,'Footnotes list'!$D$9:$E$58,2,FALSE)=0,\"\",VLOOKUP(CL99,'Footnotes list'!$D$9:$E$58,2,FALSE) ) )","v":""},null,null,null,null,{"$f":"IF(TRIM(CQ99)=\"\", \"\", IF(VLOOKUP(CQ99,'Footnotes list'!$D$9:$E$58,2,FALSE)=0,\"\",VLOOKUP(CQ99,'Footnotes list'!$D$9:$E$58,2,FALSE) ) )","v":""},null,null,null,null,{"$f":"IF(TRIM(CV99)=\"\", \"\", IF(VLOOKUP(CV99,'Footnotes list'!$D$9:$E$58,2,FALSE)=0,\"\",VLOOKUP(CV99,'Footnotes list'!$D$9:$E$58,2,FALSE) ) )","v":""},null,null,null,null,{"$f":"IF(TRIM(DA99)=\"\", \"\", IF(VLOOKUP(DA99,'Footnotes list'!$D$9:$E$58,2,FALSE)=0,\"\",VLOOKUP(DA99,'Footnotes list'!$D$9:$E$58,2,FALSE) ) )","v":""},null,null,null,null,{"$f":"IF(TRIM(DF99)=\"\", \"\", IF(VLOOKUP(DF99,'Footnotes list'!$D$9:$E$58,2,FALSE)=0,\"\",VLOOKUP(DF99,'Footnotes list'!$D$9:$E$58,2,FALSE) ) )","v":""},null,null,null,null,{"$f":"IF(TRIM(DK99)=\"\", \"\", IF(VLOOKUP(DK99,'Footnotes list'!$D$9:$E$58,2,FALSE)=0,\"\",VLOOKUP(DK99,'Footnotes list'!$D$9:$E$58,2,FALSE) ) )","v":""},null,null,null,null,{"$f":"IF(TRIM(DP99)=\"\", \"\", IF(VLOOKUP(DP99,'Footnotes list'!$D$9:$E$58,2,FALSE)=0,\"\",VLOOKUP(DP99,'Footnotes list'!$D$9:$E$58,2,FALSE) ) )","v":""},null,null,null,null,{"$f":"IF(TRIM(DU99)=\"\", \"\", IF(VLOOKUP(DU99,'Footnotes list'!$D$9:$E$58,2,FALSE)=0,\"\",VLOOKUP(DU99,'Footnotes list'!$D$9:$E$58,2,FALSE) ) )","v":""},null,null,null,null,{"$f":"IF(TRIM(DZ99)=\"\", \"\", IF(VLOOKUP(DZ99,'Footnotes list'!$D$9:$E$58,2,FALSE)=0,\"\",VLOOKUP(DZ99,'Footnotes list'!$D$9:$E$58,2,FALSE) ) )","v":""},null,null,null,null,{"$f":"IF(TRIM(EE99)=\"\", \"\", IF(VLOOKUP(EE99,'Footnotes list'!$D$9:$E$58,2,FALSE)=0,\"\",VLOOKUP(EE99,'Footnotes list'!$D$9:$E$58,2,FALSE) ) )","v":""},null,null,null,null,{"$f":"IF(TRIM(EJ99)=\"\", \"\", IF(VLOOKUP(EJ99,'Footnotes list'!$D$9:$E$58,2,FALSE)=0,\"\",VLOOKUP(EJ99,'Footnotes list'!$D$9:$E$58,2,FALSE) ) )","v":""},null,null,null,null,{"$f":"IF(TRIM(EO99)=\"\", \"\", IF(VLOOKUP(EO99,'Footnotes list'!$D$9:$E$58,2,FALSE)=0,\"\",VLOOKUP(EO99,'Footnotes list'!$D$9:$E$58,2,FALSE) ) )","v":""},null,null,null,null,{"$f":"IF(TRIM(ET99)=\"\", \"\", IF(VLOOKUP(ET99,'Footnotes list'!$D$9:$E$58,2,FALSE)=0,\"\",VLOOKUP(ET99,'Footnotes list'!$D$9:$E$58,2,FALSE) ) )","v":""},null,null,null,null,{"$f":"IF(TRIM(EY99)=\"\", \"\", IF(VLOOKUP(EY99,'Footnotes list'!$D$9:$E$58,2,FALSE)=0,\"\",VLOOKUP(EY99,'Footnotes list'!$D$9:$E$58,2,FALSE) ) )","v":""}]
[null,null,"C27","ANC","ancillary activities",null,null,null,null,null,{"$f":"IF(TRIM(J100)=\"\", \"\", IF(VLOOKUP(J100,'Footnotes list'!$D$9:$E$58,2,FALSE)=0,\"\",VLOOKUP(J100,'Footnotes list'!$D$9:$E$58,2,FALSE) ) )","v":""},null,null,null,null,{"$f":"IF(TRIM(O100)=\"\", \"\", IF(VLOOKUP(O100,'Footnotes list'!$D$9:$E$58,2,FALSE)=0,\"\",VLOOKUP(O100,'Footnotes list'!$D$9:$E$58,2,FALSE) ) )","v":""},null,null,null,null,{"$f":"IF(TRIM(T100)=\"\", \"\", IF(VLOOKUP(T100,'Footnotes list'!$D$9:$E$58,2,FALSE)=0,\"\",VLOOKUP(T100,'Footnotes list'!$D$9:$E$58,2,FALSE) ) )","v":""},null,null,null,null,{"$f":"IF(TRIM(Y100)=\"\", \"\", IF(VLOOKUP(Y100,'Footnotes list'!$D$9:$E$58,2,FALSE)=0,\"\",VLOOKUP(Y100,'Footnotes list'!$D$9:$E$58,2,FALSE) ) )","v":""},null,null,null,null,{"$f":"IF(TRIM(AD100)=\"\", \"\", IF(VLOOKUP(AD100,'Footnotes list'!$D$9:$E$58,2,FALSE)=0,\"\",VLOOKUP(AD100,'Footnotes list'!$D$9:$E$58,2,FALSE) ) )","v":""},null,null,null,null,{"$f":"IF(TRIM(AI100)=\"\", \"\", IF(VLOOKUP(AI100,'Footnotes list'!$D$9:$E$58,2,FALSE)=0,\"\",VLOOKUP(AI100,'Footnotes list'!$D$9:$E$58,2,FALSE) ) )","v":""},null,null,null,null,{"$f":"IF(TRIM(AN100)=\"\", \"\", IF(VLOOKUP(AN100,'Footnotes list'!$D$9:$E$58,2,FALSE)=0,\"\",VLOOKUP(AN100,'Footnotes list'!$D$9:$E$58,2,FALSE) ) )","v":""},null,null,null,null,{"$f":"IF(TRIM(AS100)=\"\", \"\", IF(VLOOKUP(AS100,'Footnotes list'!$D$9:$E$58,2,FALSE)=0,\"\",VLOOKUP(AS100,'Footnotes list'!$D$9:$E$58,2,FALSE) ) )","v":""},null,null,null,null,{"$f":"IF(TRIM(AX100)=\"\", \"\", IF(VLOOKUP(AX100,'Footnotes list'!$D$9:$E$58,2,FALSE)=0,\"\",VLOOKUP(AX100,'Footnotes list'!$D$9:$E$58,2,FALSE) ) )","v":""},null,null,null,null,{"$f":"IF(TRIM(BC100)=\"\", \"\", IF(VLOOKUP(BC100,'Footnotes list'!$D$9:$E$58,2,FALSE)=0,\"\",VLOOKUP(BC100,'Footnotes list'!$D$9:$E$58,2,FALSE) ) )","v":""},null,null,null,null,{"$f":"IF(TRIM(BH100)=\"\", \"\", IF(VLOOKUP(BH100,'Footnotes list'!$D$9:$E$58,2,FALSE)=0,\"\",VLOOKUP(BH100,'Footnotes list'!$D$9:$E$58,2,FALSE) ) )","v":""},null,null,null,null,{"$f":"IF(TRIM(BM100)=\"\", \"\", IF(VLOOKUP(BM100,'Footnotes list'!$D$9:$E$58,2,FALSE)=0,\"\",VLOOKUP(BM100,'Footnotes list'!$D$9:$E$58,2,FALSE) ) )","v":""},null,null,null,null,{"$f":"IF(TRIM(BR100)=\"\", \"\", IF(VLOOKUP(BR100,'Footnotes list'!$D$9:$E$58,2,FALSE)=0,\"\",VLOOKUP(BR100,'Footnotes list'!$D$9:$E$58,2,FALSE) ) )","v":""},null,null,null,null,{"$f":"IF(TRIM(BW100)=\"\", \"\", IF(VLOOKUP(BW100,'Footnotes list'!$D$9:$E$58,2,FALSE)=0,\"\",VLOOKUP(BW100,'Footnotes list'!$D$9:$E$58,2,FALSE) ) )","v":""},null,null,null,null,{"$f":"IF(TRIM(CB100)=\"\", \"\", IF(VLOOKUP(CB100,'Footnotes list'!$D$9:$E$58,2,FALSE)=0,\"\",VLOOKUP(CB100,'Footnotes list'!$D$9:$E$58,2,FALSE) ) )","v":""},null,null,null,null,{"$f":"IF(TRIM(CG100)=\"\", \"\", IF(VLOOKUP(CG100,'Footnotes list'!$D$9:$E$58,2,FALSE)=0,\"\",VLOOKUP(CG100,'Footnotes list'!$D$9:$E$58,2,FALSE) ) )","v":""},null,null,null,null,{"$f":"IF(TRIM(CL100)=\"\", \"\", IF(VLOOKUP(CL100,'Footnotes list'!$D$9:$E$58,2,FALSE)=0,\"\",VLOOKUP(CL100,'Footnotes list'!$D$9:$E$58,2,FALSE) ) )","v":""},null,null,null,null,{"$f":"IF(TRIM(CQ100)=\"\", \"\", IF(VLOOKUP(CQ100,'Footnotes list'!$D$9:$E$58,2,FALSE)=0,\"\",VLOOKUP(CQ100,'Footnotes list'!$D$9:$E$58,2,FALSE) ) )","v":""},null,null,null,null,{"$f":"IF(TRIM(CV100)=\"\", \"\", IF(VLOOKUP(CV100,'Footnotes list'!$D$9:$E$58,2,FALSE)=0,\"\",VLOOKUP(CV100,'Footnotes list'!$D$9:$E$58,2,FALSE) ) )","v":""},null,null,null,null,{"$f":"IF(TRIM(DA100)=\"\", \"\", IF(VLOOKUP(DA100,'Footnotes list'!$D$9:$E$58,2,FALSE)=0,\"\",VLOOKUP(DA100,'Footnotes list'!$D$9:$E$58,2,FALSE) ) )","v":""},null,null,null,null,{"$f":"IF(TRIM(DF100)=\"\", \"\", IF(VLOOKUP(DF100,'Footnotes list'!$D$9:$E$58,2,FALSE)=0,\"\",VLOOKUP(DF100,'Footnotes list'!$D$9:$E$58,2,FALSE) ) )","v":""},null,null,null,null,{"$f":"IF(TRIM(DK100)=\"\", \"\", IF(VLOOKUP(DK100,'Footnotes list'!$D$9:$E$58,2,FALSE)=0,\"\",VLOOKUP(DK100,'Footnotes list'!$D$9:$E$58,2,FALSE) ) )","v":""},null,null,null,null,{"$f":"IF(TRIM(DP100)=\"\", \"\", IF(VLOOKUP(DP100,'Footnotes list'!$D$9:$E$58,2,FALSE)=0,\"\",VLOOKUP(DP100,'Footnotes list'!$D$9:$E$58,2,FALSE) ) )","v":""},null,null,null,null,{"$f":"IF(TRIM(DU100)=\"\", \"\", IF(VLOOKUP(DU100,'Footnotes list'!$D$9:$E$58,2,FALSE)=0,\"\",VLOOKUP(DU100,'Footnotes list'!$D$9:$E$58,2,FALSE) ) )","v":""},null,null,null,null,{"$f":"IF(TRIM(DZ100)=\"\", \"\", IF(VLOOKUP(DZ100,'Footnotes list'!$D$9:$E$58,2,FALSE)=0,\"\",VLOOKUP(DZ100,'Footnotes list'!$D$9:$E$58,2,FALSE) ) )","v":""},null,null,null,null,{"$f":"IF(TRIM(EE100)=\"\", \"\", IF(VLOOKUP(EE100,'Footnotes list'!$D$9:$E$58,2,FALSE)=0,\"\",VLOOKUP(EE100,'Footnotes list'!$D$9:$E$58,2,FALSE) ) )","v":""},null,null,null,null,{"$f":"IF(TRIM(EJ100)=\"\", \"\", IF(VLOOKUP(EJ100,'Footnotes list'!$D$9:$E$58,2,FALSE)=0,\"\",VLOOKUP(EJ100,'Footnotes list'!$D$9:$E$58,2,FALSE) ) )","v":""},null,null,null,null,{"$f":"IF(TRIM(EO100)=\"\", \"\", IF(VLOOKUP(EO100,'Footnotes list'!$D$9:$E$58,2,FALSE)=0,\"\",VLOOKUP(EO100,'Footnotes list'!$D$9:$E$58,2,FALSE) ) )","v":""},null,null,null,null,{"$f":"IF(TRIM(ET100)=\"\", \"\", IF(VLOOKUP(ET100,'Footnotes list'!$D$9:$E$58,2,FALSE)=0,\"\",VLOOKUP(ET100,'Footnotes list'!$D$9:$E$58,2,FALSE) ) )","v":""},null,null,null,null,{"$f":"IF(TRIM(EY100)=\"\", \"\", IF(VLOOKUP(EY100,'Footnotes list'!$D$9:$E$58,2,FALSE)=0,\"\",VLOOKUP(EY100,'Footnotes list'!$D$9:$E$58,2,FALSE) ) )","v":""}]
[null,null,"C27","NMKT","non-market activities",null,null,null,null,null,{"$f":"IF(TRIM(J101)=\"\", \"\", IF(VLOOKUP(J101,'Footnotes list'!$D$9:$E$58,2,FALSE)=0,\"\",VLOOKUP(J101,'Footnotes list'!$D$9:$E$58,2,FALSE) ) )","v":""},null,null,null,null,{"$f":"IF(TRIM(O101)=\"\", \"\", IF(VLOOKUP(O101,'Footnotes list'!$D$9:$E$58,2,FALSE)=0,\"\",VLOOKUP(O101,'Footnotes list'!$D$9:$E$58,2,FALSE) ) )","v":""},null,null,null,null,{"$f":"IF(TRIM(T101)=\"\", \"\", IF(VLOOKUP(T101,'Footnotes list'!$D$9:$E$58,2,FALSE)=0,\"\",VLOOKUP(T101,'Footnotes list'!$D$9:$E$58,2,FALSE) ) )","v":""},null,null,null,null,{"$f":"IF(TRIM(Y101)=\"\", \"\", IF(VLOOKUP(Y101,'Footnotes list'!$D$9:$E$58,2,FALSE)=0,\"\",VLOOKUP(Y101,'Footnotes list'!$D$9:$E$58,2,FALSE) ) )","v":""},null,null,null,null,{"$f":"IF(TRIM(AD101)=\"\", \"\", IF(VLOOKUP(AD101,'Footnotes list'!$D$9:$E$58,2,FALSE)=0,\"\",VLOOKUP(AD101,'Footnotes list'!$D$9:$E$58,2,FALSE) ) )","v":""},null,null,null,null,{"$f":"IF(TRIM(AI101)=\"\", \"\", IF(VLOOKUP(AI101,'Footnotes list'!$D$9:$E$58,2,FALSE)=0,\"\",VLOOKUP(AI101,'Footnotes list'!$D$9:$E$58,2,FALSE) ) )","v":""},null,null,null,null,{"$f":"IF(TRIM(AN101)=\"\", \"\", IF(VLOOKUP(AN101,'Footnotes list'!$D$9:$E$58,2,FALSE)=0,\"\",VLOOKUP(AN101,'Footnotes list'!$D$9:$E$58,2,FALSE) ) )","v":""},null,null,null,null,{"$f":"IF(TRIM(AS101)=\"\", \"\", IF(VLOOKUP(AS101,'Footnotes list'!$D$9:$E$58,2,FALSE)=0,\"\",VLOOKUP(AS101,'Footnotes list'!$D$9:$E$58,2,FALSE) ) )","v":""},null,null,null,null,{"$f":"IF(TRIM(AX101)=\"\", \"\", IF(VLOOKUP(AX101,'Footnotes list'!$D$9:$E$58,2,FALSE)=0,\"\",VLOOKUP(AX101,'Footnotes list'!$D$9:$E$58,2,FALSE) ) )","v":""},null,null,null,null,{"$f":"IF(TRIM(BC101)=\"\", \"\", IF(VLOOKUP(BC101,'Footnotes list'!$D$9:$E$58,2,FALSE)=0,\"\",VLOOKUP(BC101,'Footnotes list'!$D$9:$E$58,2,FALSE) ) )","v":""},null,null,null,null,{"$f":"IF(TRIM(BH101)=\"\", \"\", IF(VLOOKUP(BH101,'Footnotes list'!$D$9:$E$58,2,FALSE)=0,\"\",VLOOKUP(BH101,'Footnotes list'!$D$9:$E$58,2,FALSE) ) )","v":""},null,null,null,null,{"$f":"IF(TRIM(BM101)=\"\", \"\", IF(VLOOKUP(BM101,'Footnotes list'!$D$9:$E$58,2,FALSE)=0,\"\",VLOOKUP(BM101,'Footnotes list'!$D$9:$E$58,2,FALSE) ) )","v":""},null,null,null,null,{"$f":"IF(TRIM(BR101)=\"\", \"\", IF(VLOOKUP(BR101,'Footnotes list'!$D$9:$E$58,2,FALSE)=0,\"\",VLOOKUP(BR101,'Footnotes list'!$D$9:$E$58,2,FALSE) ) )","v":""},null,null,null,null,{"$f":"IF(TRIM(BW101)=\"\", \"\", IF(VLOOKUP(BW101,'Footnotes list'!$D$9:$E$58,2,FALSE)=0,\"\",VLOOKUP(BW101,'Footnotes list'!$D$9:$E$58,2,FALSE) ) )","v":""},null,null,null,null,{"$f":"IF(TRIM(CB101)=\"\", \"\", IF(VLOOKUP(CB101,'Footnotes list'!$D$9:$E$58,2,FALSE)=0,\"\",VLOOKUP(CB101,'Footnotes list'!$D$9:$E$58,2,FALSE) ) )","v":""},null,null,null,null,{"$f":"IF(TRIM(CG101)=\"\", \"\", IF(VLOOKUP(CG101,'Footnotes list'!$D$9:$E$58,2,FALSE)=0,\"\",VLOOKUP(CG101,'Footnotes list'!$D$9:$E$58,2,FALSE) ) )","v":""},null,null,null,null,{"$f":"IF(TRIM(CL101)=\"\", \"\", IF(VLOOKUP(CL101,'Footnotes list'!$D$9:$E$58,2,FALSE)=0,\"\",VLOOKUP(CL101,'Footnotes list'!$D$9:$E$58,2,FALSE) ) )","v":""},null,null,null,null,{"$f":"IF(TRIM(CQ101)=\"\", \"\", IF(VLOOKUP(CQ101,'Footnotes list'!$D$9:$E$58,2,FALSE)=0,\"\",VLOOKUP(CQ101,'Footnotes list'!$D$9:$E$58,2,FALSE) ) )","v":""},null,null,null,null,{"$f":"IF(TRIM(CV101)=\"\", \"\", IF(VLOOKUP(CV101,'Footnotes list'!$D$9:$E$58,2,FALSE)=0,\"\",VLOOKUP(CV101,'Footnotes list'!$D$9:$E$58,2,FALSE) ) )","v":""},null,null,null,null,{"$f":"IF(TRIM(DA101)=\"\", \"\", IF(VLOOKUP(DA101,'Footnotes list'!$D$9:$E$58,2,FALSE)=0,\"\",VLOOKUP(DA101,'Footnotes list'!$D$9:$E$58,2,FALSE) ) )","v":""},null,null,null,null,{"$f":"IF(TRIM(DF101)=\"\", \"\", IF(VLOOKUP(DF101,'Footnotes list'!$D$9:$E$58,2,FALSE)=0,\"\",VLOOKUP(DF101,'Footnotes list'!$D$9:$E$58,2,FALSE) ) )","v":""},null,null,null,null,{"$f":"IF(TRIM(DK101)=\"\", \"\", IF(VLOOKUP(DK101,'Footnotes list'!$D$9:$E$58,2,FALSE)=0,\"\",VLOOKUP(DK101,'Footnotes list'!$D$9:$E$58,2,FALSE) ) )","v":""},null,null,null,null,{"$f":"IF(TRIM(DP101)=\"\", \"\", IF(VLOOKUP(DP101,'Footnotes list'!$D$9:$E$58,2,FALSE)=0,\"\",VLOOKUP(DP101,'Footnotes list'!$D$9:$E$58,2,FALSE) ) )","v":""},null,null,null,null,{"$f":"IF(TRIM(DU101)=\"\", \"\", IF(VLOOKUP(DU101,'Footnotes list'!$D$9:$E$58,2,FALSE)=0,\"\",VLOOKUP(DU101,'Footnotes list'!$D$9:$E$58,2,FALSE) ) )","v":""},null,null,null,null,{"$f":"IF(TRIM(DZ101)=\"\", \"\", IF(VLOOKUP(DZ101,'Footnotes list'!$D$9:$E$58,2,FALSE)=0,\"\",VLOOKUP(DZ101,'Footnotes list'!$D$9:$E$58,2,FALSE) ) )","v":""},null,null,null,null,{"$f":"IF(TRIM(EE101)=\"\", \"\", IF(VLOOKUP(EE101,'Footnotes list'!$D$9:$E$58,2,FALSE)=0,\"\",VLOOKUP(EE101,'Footnotes list'!$D$9:$E$58,2,FALSE) ) )","v":""},null,null,null,null,{"$f":"IF(TRIM(EJ101)=\"\", \"\", IF(VLOOKUP(EJ101,'Footnotes list'!$D$9:$E$58,2,FALSE)=0,\"\",VLOOKUP(EJ101,'Footnotes list'!$D$9:$E$58,2,FALSE) ) )","v":""},null,null,null,null,{"$f":"IF(TRIM(EO101)=\"\", \"\", IF(VLOOKUP(EO101,'Footnotes list'!$D$9:$E$58,2,FALSE)=0,\"\",VLOOKUP(EO101,'Footnotes list'!$D$9:$E$58,2,FALSE) ) )","v":""},null,null,null,null,{"$f":"IF(TRIM(ET101)=\"\", \"\", IF(VLOOKUP(ET101,'Footnotes list'!$D$9:$E$58,2,FALSE)=0,\"\",VLOOKUP(ET101,'Footnotes list'!$D$9:$E$58,2,FALSE) ) )","v":""},null,null,null,null,{"$f":"IF(TRIM(EY101)=\"\", \"\", IF(VLOOKUP(EY101,'Footnotes list'!$D$9:$E$58,2,FALSE)=0,\"\",VLOOKUP(EY101,'Footnotes list'!$D$9:$E$58,2,FALSE) ) )","v":""}]
[null,null,"C27","OWN_USE","activities for own final use",null,null,null,null,null,{"$f":"IF(TRIM(J102)=\"\", \"\", IF(VLOOKUP(J102,'Footnotes list'!$D$9:$E$58,2,FALSE)=0,\"\",VLOOKUP(J102,'Footnotes list'!$D$9:$E$58,2,FALSE) ) )","v":""},null,null,null,null,{"$f":"IF(TRIM(O102)=\"\", \"\", IF(VLOOKUP(O102,'Footnotes list'!$D$9:$E$58,2,FALSE)=0,\"\",VLOOKUP(O102,'Footnotes list'!$D$9:$E$58,2,FALSE) ) )","v":""},null,null,null,null,{"$f":"IF(TRIM(T102)=\"\", \"\", IF(VLOOKUP(T102,'Footnotes list'!$D$9:$E$58,2,FALSE)=0,\"\",VLOOKUP(T102,'Footnotes list'!$D$9:$E$58,2,FALSE) ) )","v":""},null,null,null,null,{"$f":"IF(TRIM(Y102)=\"\", \"\", IF(VLOOKUP(Y102,'Footnotes list'!$D$9:$E$58,2,FALSE)=0,\"\",VLOOKUP(Y102,'Footnotes list'!$D$9:$E$58,2,FALSE) ) )","v":""},null,null,null,null,{"$f":"IF(TRIM(AD102)=\"\", \"\", IF(VLOOKUP(AD102,'Footnotes list'!$D$9:$E$58,2,FALSE)=0,\"\",VLOOKUP(AD102,'Footnotes list'!$D$9:$E$58,2,FALSE) ) )","v":""},null,null,null,null,{"$f":"IF(TRIM(AI102)=\"\", \"\", IF(VLOOKUP(AI102,'Footnotes list'!$D$9:$E$58,2,FALSE)=0,\"\",VLOOKUP(AI102,'Footnotes list'!$D$9:$E$58,2,FALSE) ) )","v":""},null,null,null,null,{"$f":"IF(TRIM(AN102)=\"\", \"\", IF(VLOOKUP(AN102,'Footnotes list'!$D$9:$E$58,2,FALSE)=0,\"\",VLOOKUP(AN102,'Footnotes list'!$D$9:$E$58,2,FALSE) ) )","v":""},null,null,null,null,{"$f":"IF(TRIM(AS102)=\"\", \"\", IF(VLOOKUP(AS102,'Footnotes list'!$D$9:$E$58,2,FALSE)=0,\"\",VLOOKUP(AS102,'Footnotes list'!$D$9:$E$58,2,FALSE) ) )","v":""},null,null,null,null,{"$f":"IF(TRIM(AX102)=\"\", \"\", IF(VLOOKUP(AX102,'Footnotes list'!$D$9:$E$58,2,FALSE)=0,\"\",VLOOKUP(AX102,'Footnotes list'!$D$9:$E$58,2,FALSE) ) )","v":""},null,null,null,null,{"$f":"IF(TRIM(BC102)=\"\", \"\", IF(VLOOKUP(BC102,'Footnotes list'!$D$9:$E$58,2,FALSE)=0,\"\",VLOOKUP(BC102,'Footnotes list'!$D$9:$E$58,2,FALSE) ) )","v":""},null,null,null,null,{"$f":"IF(TRIM(BH102)=\"\", \"\", IF(VLOOKUP(BH102,'Footnotes list'!$D$9:$E$58,2,FALSE)=0,\"\",VLOOKUP(BH102,'Footnotes list'!$D$9:$E$58,2,FALSE) ) )","v":""},null,null,null,null,{"$f":"IF(TRIM(BM102)=\"\", \"\", IF(VLOOKUP(BM102,'Footnotes list'!$D$9:$E$58,2,FALSE)=0,\"\",VLOOKUP(BM102,'Footnotes list'!$D$9:$E$58,2,FALSE) ) )","v":""},null,null,null,null,{"$f":"IF(TRIM(BR102)=\"\", \"\", IF(VLOOKUP(BR102,'Footnotes list'!$D$9:$E$58,2,FALSE)=0,\"\",VLOOKUP(BR102,'Footnotes list'!$D$9:$E$58,2,FALSE) ) )","v":""},null,null,null,null,{"$f":"IF(TRIM(BW102)=\"\", \"\", IF(VLOOKUP(BW102,'Footnotes list'!$D$9:$E$58,2,FALSE)=0,\"\",VLOOKUP(BW102,'Footnotes list'!$D$9:$E$58,2,FALSE) ) )","v":""},null,null,null,null,{"$f":"IF(TRIM(CB102)=\"\", \"\", IF(VLOOKUP(CB102,'Footnotes list'!$D$9:$E$58,2,FALSE)=0,\"\",VLOOKUP(CB102,'Footnotes list'!$D$9:$E$58,2,FALSE) ) )","v":""},null,null,null,null,{"$f":"IF(TRIM(CG102)=\"\", \"\", IF(VLOOKUP(CG102,'Footnotes list'!$D$9:$E$58,2,FALSE)=0,\"\",VLOOKUP(CG102,'Footnotes list'!$D$9:$E$58,2,FALSE) ) )","v":""},null,null,null,null,{"$f":"IF(TRIM(CL102)=\"\", \"\", IF(VLOOKUP(CL102,'Footnotes list'!$D$9:$E$58,2,FALSE)=0,\"\",VLOOKUP(CL102,'Footnotes list'!$D$9:$E$58,2,FALSE) ) )","v":""},null,null,null,null,{"$f":"IF(TRIM(CQ102)=\"\", \"\", IF(VLOOKUP(CQ102,'Footnotes list'!$D$9:$E$58,2,FALSE)=0,\"\",VLOOKUP(CQ102,'Footnotes list'!$D$9:$E$58,2,FALSE) ) )","v":""},null,null,null,null,{"$f":"IF(TRIM(CV102)=\"\", \"\", IF(VLOOKUP(CV102,'Footnotes list'!$D$9:$E$58,2,FALSE)=0,\"\",VLOOKUP(CV102,'Footnotes list'!$D$9:$E$58,2,FALSE) ) )","v":""},null,null,null,null,{"$f":"IF(TRIM(DA102)=\"\", \"\", IF(VLOOKUP(DA102,'Footnotes list'!$D$9:$E$58,2,FALSE)=0,\"\",VLOOKUP(DA102,'Footnotes list'!$D$9:$E$58,2,FALSE) ) )","v":""},null,null,null,null,{"$f":"IF(TRIM(DF102)=\"\", \"\", IF(VLOOKUP(DF102,'Footnotes list'!$D$9:$E$58,2,FALSE)=0,\"\",VLOOKUP(DF102,'Footnotes list'!$D$9:$E$58,2,FALSE) ) )","v":""},null,null,null,null,{"$f":"IF(TRIM(DK102)=\"\", \"\", IF(VLOOKUP(DK102,'Footnotes list'!$D$9:$E$58,2,FALSE)=0,\"\",VLOOKUP(DK102,'Footnotes list'!$D$9:$E$58,2,FALSE) ) )","v":""},null,null,null,null,{"$f":"IF(TRIM(DP102)=\"\", \"\", IF(VLOOKUP(DP102,'Footnotes list'!$D$9:$E$58,2,FALSE)=0,\"\",VLOOKUP(DP102,'Footnotes list'!$D$9:$E$58,2,FALSE) ) )","v":""},null,null,null,null,{"$f":"IF(TRIM(DU102)=\"\", \"\", IF(VLOOKUP(DU102,'Footnotes list'!$D$9:$E$58,2,FALSE)=0,\"\",VLOOKUP(DU102,'Footnotes list'!$D$9:$E$58,2,FALSE) ) )","v":""},null,null,null,null,{"$f":"IF(TRIM(DZ102)=\"\", \"\", IF(VLOOKUP(DZ102,'Footnotes list'!$D$9:$E$58,2,FALSE)=0,\"\",VLOOKUP(DZ102,'Footnotes list'!$D$9:$E$58,2,FALSE) ) )","v":""},null,null,null,null,{"$f":"IF(TRIM(EE102)=\"\", \"\", IF(VLOOKUP(EE102,'Footnotes list'!$D$9:$E$58,2,FALSE)=0,\"\",VLOOKUP(EE102,'Footnotes list'!$D$9:$E$58,2,FALSE) ) )","v":""},null,null,null,null,{"$f":"IF(TRIM(EJ102)=\"\", \"\", IF(VLOOKUP(EJ102,'Footnotes list'!$D$9:$E$58,2,FALSE)=0,\"\",VLOOKUP(EJ102,'Footnotes list'!$D$9:$E$58,2,FALSE) ) )","v":""},null,null,null,null,{"$f":"IF(TRIM(EO102)=\"\", \"\", IF(VLOOKUP(EO102,'Footnotes list'!$D$9:$E$58,2,FALSE)=0,\"\",VLOOKUP(EO102,'Footnotes list'!$D$9:$E$58,2,FALSE) ) )","v":""},null,null,null,null,{"$f":"IF(TRIM(ET102)=\"\", \"\", IF(VLOOKUP(ET102,'Footnotes list'!$D$9:$E$58,2,FALSE)=0,\"\",VLOOKUP(ET102,'Footnotes list'!$D$9:$E$58,2,FALSE) ) )","v":""},null,null,null,null,{"$f":"IF(TRIM(EY102)=\"\", \"\", IF(VLOOKUP(EY102,'Footnotes list'!$D$9:$E$58,2,FALSE)=0,\"\",VLOOKUP(EY102,'Footnotes list'!$D$9:$E$58,2,FALSE) ) )","v":""}]
[null,null,"C27","MKT","market activities, including:",null,null,null,null,null,{"$f":"IF(TRIM(J103)=\"\", \"\", IF(VLOOKUP(J103,'Footnotes list'!$D$9:$E$58,2,FALSE)=0,\"\",VLOOKUP(J103,'Footnotes list'!$D$9:$E$58,2,FALSE) ) )","v":""},null,null,null,null,{"$f":"IF(TRIM(O103)=\"\", \"\", IF(VLOOKUP(O103,'Footnotes list'!$D$9:$E$58,2,FALSE)=0,\"\",VLOOKUP(O103,'Footnotes list'!$D$9:$E$58,2,FALSE) ) )","v":""},null,null,null,null,{"$f":"IF(TRIM(T103)=\"\", \"\", IF(VLOOKUP(T103,'Footnotes list'!$D$9:$E$58,2,FALSE)=0,\"\",VLOOKUP(T103,'Footnotes list'!$D$9:$E$58,2,FALSE) ) )","v":""},null,null,null,null,{"$f":"IF(TRIM(Y103)=\"\", \"\", IF(VLOOKUP(Y103,'Footnotes list'!$D$9:$E$58,2,FALSE)=0,\"\",VLOOKUP(Y103,'Footnotes list'!$D$9:$E$58,2,FALSE) ) )","v":""},null,null,null,null,{"$f":"IF(TRIM(AD103)=\"\", \"\", IF(VLOOKUP(AD103,'Footnotes list'!$D$9:$E$58,2,FALSE)=0,\"\",VLOOKUP(AD103,'Footnotes list'!$D$9:$E$58,2,FALSE) ) )","v":""},null,null,null,null,{"$f":"IF(TRIM(AI103)=\"\", \"\", IF(VLOOKUP(AI103,'Footnotes list'!$D$9:$E$58,2,FALSE)=0,\"\",VLOOKUP(AI103,'Footnotes list'!$D$9:$E$58,2,FALSE) ) )","v":""},null,null,null,null,{"$f":"IF(TRIM(AN103)=\"\", \"\", IF(VLOOKUP(AN103,'Footnotes list'!$D$9:$E$58,2,FALSE)=0,\"\",VLOOKUP(AN103,'Footnotes list'!$D$9:$E$58,2,FALSE) ) )","v":""},null,null,null,null,{"$f":"IF(TRIM(AS103)=\"\", \"\", IF(VLOOKUP(AS103,'Footnotes list'!$D$9:$E$58,2,FALSE)=0,\"\",VLOOKUP(AS103,'Footnotes list'!$D$9:$E$58,2,FALSE) ) )","v":""},null,null,null,null,{"$f":"IF(TRIM(AX103)=\"\", \"\", IF(VLOOKUP(AX103,'Footnotes list'!$D$9:$E$58,2,FALSE)=0,\"\",VLOOKUP(AX103,'Footnotes list'!$D$9:$E$58,2,FALSE) ) )","v":""},null,null,null,null,{"$f":"IF(TRIM(BC103)=\"\", \"\", IF(VLOOKUP(BC103,'Footnotes list'!$D$9:$E$58,2,FALSE)=0,\"\",VLOOKUP(BC103,'Footnotes list'!$D$9:$E$58,2,FALSE) ) )","v":""},null,null,null,null,{"$f":"IF(TRIM(BH103)=\"\", \"\", IF(VLOOKUP(BH103,'Footnotes list'!$D$9:$E$58,2,FALSE)=0,\"\",VLOOKUP(BH103,'Footnotes list'!$D$9:$E$58,2,FALSE) ) )","v":""},null,null,null,null,{"$f":"IF(TRIM(BM103)=\"\", \"\", IF(VLOOKUP(BM103,'Footnotes list'!$D$9:$E$58,2,FALSE)=0,\"\",VLOOKUP(BM103,'Footnotes list'!$D$9:$E$58,2,FALSE) ) )","v":""},null,null,null,null,{"$f":"IF(TRIM(BR103)=\"\", \"\", IF(VLOOKUP(BR103,'Footnotes list'!$D$9:$E$58,2,FALSE)=0,\"\",VLOOKUP(BR103,'Footnotes list'!$D$9:$E$58,2,FALSE) ) )","v":""},null,null,null,null,{"$f":"IF(TRIM(BW103)=\"\", \"\", IF(VLOOKUP(BW103,'Footnotes list'!$D$9:$E$58,2,FALSE)=0,\"\",VLOOKUP(BW103,'Footnotes list'!$D$9:$E$58,2,FALSE) ) )","v":""},null,null,null,null,{"$f":"IF(TRIM(CB103)=\"\", \"\", IF(VLOOKUP(CB103,'Footnotes list'!$D$9:$E$58,2,FALSE)=0,\"\",VLOOKUP(CB103,'Footnotes list'!$D$9:$E$58,2,FALSE) ) )","v":""},null,null,null,null,{"$f":"IF(TRIM(CG103)=\"\", \"\", IF(VLOOKUP(CG103,'Footnotes list'!$D$9:$E$58,2,FALSE)=0,\"\",VLOOKUP(CG103,'Footnotes list'!$D$9:$E$58,2,FALSE) ) )","v":""},null,null,null,null,{"$f":"IF(TRIM(CL103)=\"\", \"\", IF(VLOOKUP(CL103,'Footnotes list'!$D$9:$E$58,2,FALSE)=0,\"\",VLOOKUP(CL103,'Footnotes list'!$D$9:$E$58,2,FALSE) ) )","v":""},null,null,null,null,{"$f":"IF(TRIM(CQ103)=\"\", \"\", IF(VLOOKUP(CQ103,'Footnotes list'!$D$9:$E$58,2,FALSE)=0,\"\",VLOOKUP(CQ103,'Footnotes list'!$D$9:$E$58,2,FALSE) ) )","v":""},null,null,null,null,{"$f":"IF(TRIM(CV103)=\"\", \"\", IF(VLOOKUP(CV103,'Footnotes list'!$D$9:$E$58,2,FALSE)=0,\"\",VLOOKUP(CV103,'Footnotes list'!$D$9:$E$58,2,FALSE) ) )","v":""},null,null,null,null,{"$f":"IF(TRIM(DA103)=\"\", \"\", IF(VLOOKUP(DA103,'Footnotes list'!$D$9:$E$58,2,FALSE)=0,\"\",VLOOKUP(DA103,'Footnotes list'!$D$9:$E$58,2,FALSE) ) )","v":""},null,null,null,null,{"$f":"IF(TRIM(DF103)=\"\", \"\", IF(VLOOKUP(DF103,'Footnotes list'!$D$9:$E$58,2,FALSE)=0,\"\",VLOOKUP(DF103,'Footnotes list'!$D$9:$E$58,2,FALSE) ) )","v":""},null,null,null,null,{"$f":"IF(TRIM(DK103)=\"\", \"\", IF(VLOOKUP(DK103,'Footnotes list'!$D$9:$E$58,2,FALSE)=0,\"\",VLOOKUP(DK103,'Footnotes list'!$D$9:$E$58,2,FALSE) ) )","v":""},null,null,null,null,{"$f":"IF(TRIM(DP103)=\"\", \"\", IF(VLOOKUP(DP103,'Footnotes list'!$D$9:$E$58,2,FALSE)=0,\"\",VLOOKUP(DP103,'Footnotes list'!$D$9:$E$58,2,FALSE) ) )","v":""},null,null,null,null,{"$f":"IF(TRIM(DU103)=\"\", \"\", IF(VLOOKUP(DU103,'Footnotes list'!$D$9:$E$58,2,FALSE)=0,\"\",VLOOKUP(DU103,'Footnotes list'!$D$9:$E$58,2,FALSE) ) )","v":""},null,null,null,null,{"$f":"IF(TRIM(DZ103)=\"\", \"\", IF(VLOOKUP(DZ103,'Footnotes list'!$D$9:$E$58,2,FALSE)=0,\"\",VLOOKUP(DZ103,'Footnotes list'!$D$9:$E$58,2,FALSE) ) )","v":""},null,null,null,null,{"$f":"IF(TRIM(EE103)=\"\", \"\", IF(VLOOKUP(EE103,'Footnotes list'!$D$9:$E$58,2,FALSE)=0,\"\",VLOOKUP(EE103,'Footnotes list'!$D$9:$E$58,2,FALSE) ) )","v":""},null,null,null,null,{"$f":"IF(TRIM(EJ103)=\"\", \"\", IF(VLOOKUP(EJ103,'Footnotes list'!$D$9:$E$58,2,FALSE)=0,\"\",VLOOKUP(EJ103,'Footnotes list'!$D$9:$E$58,2,FALSE) ) )","v":""},null,null,null,null,{"$f":"IF(TRIM(EO103)=\"\", \"\", IF(VLOOKUP(EO103,'Footnotes list'!$D$9:$E$58,2,FALSE)=0,\"\",VLOOKUP(EO103,'Footnotes list'!$D$9:$E$58,2,FALSE) ) )","v":""},null,null,null,null,{"$f":"IF(TRIM(ET103)=\"\", \"\", IF(VLOOKUP(ET103,'Footnotes list'!$D$9:$E$58,2,FALSE)=0,\"\",VLOOKUP(ET103,'Footnotes list'!$D$9:$E$58,2,FALSE) ) )","v":""},null,null,null,null,{"$f":"IF(TRIM(EY103)=\"\", \"\", IF(VLOOKUP(EY103,'Footnotes list'!$D$9:$E$58,2,FALSE)=0,\"\",VLOOKUP(EY103,'Footnotes list'!$D$9:$E$58,2,FALSE) ) )","v":""}]
[null,null,"C27","ES_CS","environmental specific services",null,null,null,null,null,{"$f":"IF(TRIM(J104)=\"\", \"\", IF(VLOOKUP(J104,'Footnotes list'!$D$9:$E$58,2,FALSE)=0,\"\",VLOOKUP(J104,'Footnotes list'!$D$9:$E$58,2,FALSE) ) )","v":""},null,null,null,null,{"$f":"IF(TRIM(O104)=\"\", \"\", IF(VLOOKUP(O104,'Footnotes list'!$D$9:$E$58,2,FALSE)=0,\"\",VLOOKUP(O104,'Footnotes list'!$D$9:$E$58,2,FALSE) ) )","v":""},null,null,null,null,{"$f":"IF(TRIM(T104)=\"\", \"\", IF(VLOOKUP(T104,'Footnotes list'!$D$9:$E$58,2,FALSE)=0,\"\",VLOOKUP(T104,'Footnotes list'!$D$9:$E$58,2,FALSE) ) )","v":""},null,null,null,null,{"$f":"IF(TRIM(Y104)=\"\", \"\", IF(VLOOKUP(Y104,'Footnotes list'!$D$9:$E$58,2,FALSE)=0,\"\",VLOOKUP(Y104,'Footnotes list'!$D$9:$E$58,2,FALSE) ) )","v":""},null,null,null,null,{"$f":"IF(TRIM(AD104)=\"\", \"\", IF(VLOOKUP(AD104,'Footnotes list'!$D$9:$E$58,2,FALSE)=0,\"\",VLOOKUP(AD104,'Footnotes list'!$D$9:$E$58,2,FALSE) ) )","v":""},null,null,null,null,{"$f":"IF(TRIM(AI104)=\"\", \"\", IF(VLOOKUP(AI104,'Footnotes list'!$D$9:$E$58,2,FALSE)=0,\"\",VLOOKUP(AI104,'Footnotes list'!$D$9:$E$58,2,FALSE) ) )","v":""},null,null,null,null,{"$f":"IF(TRIM(AN104)=\"\", \"\", IF(VLOOKUP(AN104,'Footnotes list'!$D$9:$E$58,2,FALSE)=0,\"\",VLOOKUP(AN104,'Footnotes list'!$D$9:$E$58,2,FALSE) ) )","v":""},null,null,null,null,{"$f":"IF(TRIM(AS104)=\"\", \"\", IF(VLOOKUP(AS104,'Footnotes list'!$D$9:$E$58,2,FALSE)=0,\"\",VLOOKUP(AS104,'Footnotes list'!$D$9:$E$58,2,FALSE) ) )","v":""},null,null,null,null,{"$f":"IF(TRIM(AX104)=\"\", \"\", IF(VLOOKUP(AX104,'Footnotes list'!$D$9:$E$58,2,FALSE)=0,\"\",VLOOKUP(AX104,'Footnotes list'!$D$9:$E$58,2,FALSE) ) )","v":""},null,null,null,null,{"$f":"IF(TRIM(BC104)=\"\", \"\", IF(VLOOKUP(BC104,'Footnotes list'!$D$9:$E$58,2,FALSE)=0,\"\",VLOOKUP(BC104,'Footnotes list'!$D$9:$E$58,2,FALSE) ) )","v":""},null,null,null,null,{"$f":"IF(TRIM(BH104)=\"\", \"\", IF(VLOOKUP(BH104,'Footnotes list'!$D$9:$E$58,2,FALSE)=0,\"\",VLOOKUP(BH104,'Footnotes list'!$D$9:$E$58,2,FALSE) ) )","v":""},null,null,null,null,{"$f":"IF(TRIM(BM104)=\"\", \"\", IF(VLOOKUP(BM104,'Footnotes list'!$D$9:$E$58,2,FALSE)=0,\"\",VLOOKUP(BM104,'Footnotes list'!$D$9:$E$58,2,FALSE) ) )","v":""},null,null,null,null,{"$f":"IF(TRIM(BR104)=\"\", \"\", IF(VLOOKUP(BR104,'Footnotes list'!$D$9:$E$58,2,FALSE)=0,\"\",VLOOKUP(BR104,'Footnotes list'!$D$9:$E$58,2,FALSE) ) )","v":""},null,null,null,null,{"$f":"IF(TRIM(BW104)=\"\", \"\", IF(VLOOKUP(BW104,'Footnotes list'!$D$9:$E$58,2,FALSE)=0,\"\",VLOOKUP(BW104,'Footnotes list'!$D$9:$E$58,2,FALSE) ) )","v":""},null,null,null,null,{"$f":"IF(TRIM(CB104)=\"\", \"\", IF(VLOOKUP(CB104,'Footnotes list'!$D$9:$E$58,2,FALSE)=0,\"\",VLOOKUP(CB104,'Footnotes list'!$D$9:$E$58,2,FALSE) ) )","v":""},null,null,null,null,{"$f":"IF(TRIM(CG104)=\"\", \"\", IF(VLOOKUP(CG104,'Footnotes list'!$D$9:$E$58,2,FALSE)=0,\"\",VLOOKUP(CG104,'Footnotes list'!$D$9:$E$58,2,FALSE) ) )","v":""},null,null,null,null,{"$f":"IF(TRIM(CL104)=\"\", \"\", IF(VLOOKUP(CL104,'Footnotes list'!$D$9:$E$58,2,FALSE)=0,\"\",VLOOKUP(CL104,'Footnotes list'!$D$9:$E$58,2,FALSE) ) )","v":""},null,null,null,null,{"$f":"IF(TRIM(CQ104)=\"\", \"\", IF(VLOOKUP(CQ104,'Footnotes list'!$D$9:$E$58,2,FALSE)=0,\"\",VLOOKUP(CQ104,'Footnotes list'!$D$9:$E$58,2,FALSE) ) )","v":""},null,null,null,null,{"$f":"IF(TRIM(CV104)=\"\", \"\", IF(VLOOKUP(CV104,'Footnotes list'!$D$9:$E$58,2,FALSE)=0,\"\",VLOOKUP(CV104,'Footnotes list'!$D$9:$E$58,2,FALSE) ) )","v":""},null,null,null,null,{"$f":"IF(TRIM(DA104)=\"\", \"\", IF(VLOOKUP(DA104,'Footnotes list'!$D$9:$E$58,2,FALSE)=0,\"\",VLOOKUP(DA104,'Footnotes list'!$D$9:$E$58,2,FALSE) ) )","v":""},null,null,null,null,{"$f":"IF(TRIM(DF104)=\"\", \"\", IF(VLOOKUP(DF104,'Footnotes list'!$D$9:$E$58,2,FALSE)=0,\"\",VLOOKUP(DF104,'Footnotes list'!$D$9:$E$58,2,FALSE) ) )","v":""},null,null,null,null,{"$f":"IF(TRIM(DK104)=\"\", \"\", IF(VLOOKUP(DK104,'Footnotes list'!$D$9:$E$58,2,FALSE)=0,\"\",VLOOKUP(DK104,'Footnotes list'!$D$9:$E$58,2,FALSE) ) )","v":""},null,null,null,null,{"$f":"IF(TRIM(DP104)=\"\", \"\", IF(VLOOKUP(DP104,'Footnotes list'!$D$9:$E$58,2,FALSE)=0,\"\",VLOOKUP(DP104,'Footnotes list'!$D$9:$E$58,2,FALSE) ) )","v":""},null,null,null,null,{"$f":"IF(TRIM(DU104)=\"\", \"\", IF(VLOOKUP(DU104,'Footnotes list'!$D$9:$E$58,2,FALSE)=0,\"\",VLOOKUP(DU104,'Footnotes list'!$D$9:$E$58,2,FALSE) ) )","v":""},null,null,null,null,{"$f":"IF(TRIM(DZ104)=\"\", \"\", IF(VLOOKUP(DZ104,'Footnotes list'!$D$9:$E$58,2,FALSE)=0,\"\",VLOOKUP(DZ104,'Footnotes list'!$D$9:$E$58,2,FALSE) ) )","v":""},null,null,null,null,{"$f":"IF(TRIM(EE104)=\"\", \"\", IF(VLOOKUP(EE104,'Footnotes list'!$D$9:$E$58,2,FALSE)=0,\"\",VLOOKUP(EE104,'Footnotes list'!$D$9:$E$58,2,FALSE) ) )","v":""},null,null,null,null,{"$f":"IF(TRIM(EJ104)=\"\", \"\", IF(VLOOKUP(EJ104,'Footnotes list'!$D$9:$E$58,2,FALSE)=0,\"\",VLOOKUP(EJ104,'Footnotes list'!$D$9:$E$58,2,FALSE) ) )","v":""},null,null,null,null,{"$f":"IF(TRIM(EO104)=\"\", \"\", IF(VLOOKUP(EO104,'Footnotes list'!$D$9:$E$58,2,FALSE)=0,\"\",VLOOKUP(EO104,'Footnotes list'!$D$9:$E$58,2,FALSE) ) )","v":""},null,null,null,null,{"$f":"IF(TRIM(ET104)=\"\", \"\", IF(VLOOKUP(ET104,'Footnotes list'!$D$9:$E$58,2,FALSE)=0,\"\",VLOOKUP(ET104,'Footnotes list'!$D$9:$E$58,2,FALSE) ) )","v":""},null,null,null,null,{"$f":"IF(TRIM(EY104)=\"\", \"\", IF(VLOOKUP(EY104,'Footnotes list'!$D$9:$E$58,2,FALSE)=0,\"\",VLOOKUP(EY104,'Footnotes list'!$D$9:$E$58,2,FALSE) ) )","v":""}]
[null,null,"C27","C_REP","cleaner and resource efficient products",null,null,null,null,null,{"$f":"IF(TRIM(J105)=\"\", \"\", IF(VLOOKUP(J105,'Footnotes list'!$D$9:$E$58,2,FALSE)=0,\"\",VLOOKUP(J105,'Footnotes list'!$D$9:$E$58,2,FALSE) ) )","v":""},null,null,null,null,{"$f":"IF(TRIM(O105)=\"\", \"\", IF(VLOOKUP(O105,'Footnotes list'!$D$9:$E$58,2,FALSE)=0,\"\",VLOOKUP(O105,'Footnotes list'!$D$9:$E$58,2,FALSE) ) )","v":""},null,null,null,null,{"$f":"IF(TRIM(T105)=\"\", \"\", IF(VLOOKUP(T105,'Footnotes list'!$D$9:$E$58,2,FALSE)=0,\"\",VLOOKUP(T105,'Footnotes list'!$D$9:$E$58,2,FALSE) ) )","v":""},null,null,null,null,{"$f":"IF(TRIM(Y105)=\"\", \"\", IF(VLOOKUP(Y105,'Footnotes list'!$D$9:$E$58,2,FALSE)=0,\"\",VLOOKUP(Y105,'Footnotes list'!$D$9:$E$58,2,FALSE) ) )","v":""},null,null,null,null,{"$f":"IF(TRIM(AD105)=\"\", \"\", IF(VLOOKUP(AD105,'Footnotes list'!$D$9:$E$58,2,FALSE)=0,\"\",VLOOKUP(AD105,'Footnotes list'!$D$9:$E$58,2,FALSE) ) )","v":""},null,null,null,null,{"$f":"IF(TRIM(AI105)=\"\", \"\", IF(VLOOKUP(AI105,'Footnotes list'!$D$9:$E$58,2,FALSE)=0,\"\",VLOOKUP(AI105,'Footnotes list'!$D$9:$E$58,2,FALSE) ) )","v":""},null,null,null,null,{"$f":"IF(TRIM(AN105)=\"\", \"\", IF(VLOOKUP(AN105,'Footnotes list'!$D$9:$E$58,2,FALSE)=0,\"\",VLOOKUP(AN105,'Footnotes list'!$D$9:$E$58,2,FALSE) ) )","v":""},null,null,null,null,{"$f":"IF(TRIM(AS105)=\"\", \"\", IF(VLOOKUP(AS105,'Footnotes list'!$D$9:$E$58,2,FALSE)=0,\"\",VLOOKUP(AS105,'Footnotes list'!$D$9:$E$58,2,FALSE) ) )","v":""},null,null,null,null,{"$f":"IF(TRIM(AX105)=\"\", \"\", IF(VLOOKUP(AX105,'Footnotes list'!$D$9:$E$58,2,FALSE)=0,\"\",VLOOKUP(AX105,'Footnotes list'!$D$9:$E$58,2,FALSE) ) )","v":""},null,null,null,null,{"$f":"IF(TRIM(BC105)=\"\", \"\", IF(VLOOKUP(BC105,'Footnotes list'!$D$9:$E$58,2,FALSE)=0,\"\",VLOOKUP(BC105,'Footnotes list'!$D$9:$E$58,2,FALSE) ) )","v":""},null,null,null,null,{"$f":"IF(TRIM(BH105)=\"\", \"\", IF(VLOOKUP(BH105,'Footnotes list'!$D$9:$E$58,2,FALSE)=0,\"\",VLOOKUP(BH105,'Footnotes list'!$D$9:$E$58,2,FALSE) ) )","v":""},null,null,null,null,{"$f":"IF(TRIM(BM105)=\"\", \"\", IF(VLOOKUP(BM105,'Footnotes list'!$D$9:$E$58,2,FALSE)=0,\"\",VLOOKUP(BM105,'Footnotes list'!$D$9:$E$58,2,FALSE) ) )","v":""},null,null,null,null,{"$f":"IF(TRIM(BR105)=\"\", \"\", IF(VLOOKUP(BR105,'Footnotes list'!$D$9:$E$58,2,FALSE)=0,\"\",VLOOKUP(BR105,'Footnotes list'!$D$9:$E$58,2,FALSE) ) )","v":""},null,null,null,null,{"$f":"IF(TRIM(BW105)=\"\", \"\", IF(VLOOKUP(BW105,'Footnotes list'!$D$9:$E$58,2,FALSE)=0,\"\",VLOOKUP(BW105,'Footnotes list'!$D$9:$E$58,2,FALSE) ) )","v":""},null,null,null,null,{"$f":"IF(TRIM(CB105)=\"\", \"\", IF(VLOOKUP(CB105,'Footnotes list'!$D$9:$E$58,2,FALSE)=0,\"\",VLOOKUP(CB105,'Footnotes list'!$D$9:$E$58,2,FALSE) ) )","v":""},null,null,null,null,{"$f":"IF(TRIM(CG105)=\"\", \"\", IF(VLOOKUP(CG105,'Footnotes list'!$D$9:$E$58,2,FALSE)=0,\"\",VLOOKUP(CG105,'Footnotes list'!$D$9:$E$58,2,FALSE) ) )","v":""},null,null,null,null,{"$f":"IF(TRIM(CL105)=\"\", \"\", IF(VLOOKUP(CL105,'Footnotes list'!$D$9:$E$58,2,FALSE)=0,\"\",VLOOKUP(CL105,'Footnotes list'!$D$9:$E$58,2,FALSE) ) )","v":""},null,null,null,null,{"$f":"IF(TRIM(CQ105)=\"\", \"\", IF(VLOOKUP(CQ105,'Footnotes list'!$D$9:$E$58,2,FALSE)=0,\"\",VLOOKUP(CQ105,'Footnotes list'!$D$9:$E$58,2,FALSE) ) )","v":""},null,null,null,null,{"$f":"IF(TRIM(CV105)=\"\", \"\", IF(VLOOKUP(CV105,'Footnotes list'!$D$9:$E$58,2,FALSE)=0,\"\",VLOOKUP(CV105,'Footnotes list'!$D$9:$E$58,2,FALSE) ) )","v":""},null,null,null,null,{"$f":"IF(TRIM(DA105)=\"\", \"\", IF(VLOOKUP(DA105,'Footnotes list'!$D$9:$E$58,2,FALSE)=0,\"\",VLOOKUP(DA105,'Footnotes list'!$D$9:$E$58,2,FALSE) ) )","v":""},null,null,null,null,{"$f":"IF(TRIM(DF105)=\"\", \"\", IF(VLOOKUP(DF105,'Footnotes list'!$D$9:$E$58,2,FALSE)=0,\"\",VLOOKUP(DF105,'Footnotes list'!$D$9:$E$58,2,FALSE) ) )","v":""},null,null,null,null,{"$f":"IF(TRIM(DK105)=\"\", \"\", IF(VLOOKUP(DK105,'Footnotes list'!$D$9:$E$58,2,FALSE)=0,\"\",VLOOKUP(DK105,'Footnotes list'!$D$9:$E$58,2,FALSE) ) )","v":""},null,null,null,null,{"$f":"IF(TRIM(DP105)=\"\", \"\", IF(VLOOKUP(DP105,'Footnotes list'!$D$9:$E$58,2,FALSE)=0,\"\",VLOOKUP(DP105,'Footnotes list'!$D$9:$E$58,2,FALSE) ) )","v":""},null,null,null,null,{"$f":"IF(TRIM(DU105)=\"\", \"\", IF(VLOOKUP(DU105,'Footnotes list'!$D$9:$E$58,2,FALSE)=0,\"\",VLOOKUP(DU105,'Footnotes list'!$D$9:$E$58,2,FALSE) ) )","v":""},null,null,null,null,{"$f":"IF(TRIM(DZ105)=\"\", \"\", IF(VLOOKUP(DZ105,'Footnotes list'!$D$9:$E$58,2,FALSE)=0,\"\",VLOOKUP(DZ105,'Footnotes list'!$D$9:$E$58,2,FALSE) ) )","v":""},null,null,null,null,{"$f":"IF(TRIM(EE105)=\"\", \"\", IF(VLOOKUP(EE105,'Footnotes list'!$D$9:$E$58,2,FALSE)=0,\"\",VLOOKUP(EE105,'Footnotes list'!$D$9:$E$58,2,FALSE) ) )","v":""},null,null,null,null,{"$f":"IF(TRIM(EJ105)=\"\", \"\", IF(VLOOKUP(EJ105,'Footnotes list'!$D$9:$E$58,2,FALSE)=0,\"\",VLOOKUP(EJ105,'Footnotes list'!$D$9:$E$58,2,FALSE) ) )","v":""},null,null,null,null,{"$f":"IF(TRIM(EO105)=\"\", \"\", IF(VLOOKUP(EO105,'Footnotes list'!$D$9:$E$58,2,FALSE)=0,\"\",VLOOKUP(EO105,'Footnotes list'!$D$9:$E$58,2,FALSE) ) )","v":""},null,null,null,null,{"$f":"IF(TRIM(ET105)=\"\", \"\", IF(VLOOKUP(ET105,'Footnotes list'!$D$9:$E$58,2,FALSE)=0,\"\",VLOOKUP(ET105,'Footnotes list'!$D$9:$E$58,2,FALSE) ) )","v":""},null,null,null,null,{"$f":"IF(TRIM(EY105)=\"\", \"\", IF(VLOOKUP(EY105,'Footnotes list'!$D$9:$E$58,2,FALSE)=0,\"\",VLOOKUP(EY105,'Footnotes list'!$D$9:$E$58,2,FALSE) ) )","v":""}]
[null,null,"C28","TOT_EGSS","Total C28 - Manufacture of machinery and equipment n.e.c., of which:",null,null,null,null,null,{"$f":"IF(TRIM(J106)=\"\", \"\", IF(VLOOKUP(J106,'Footnotes list'!$D$9:$E$58,2,FALSE)=0,\"\",VLOOKUP(J106,'Footnotes list'!$D$9:$E$58,2,FALSE) ) )","v":""},null,null,null,null,{"$f":"IF(TRIM(O106)=\"\", \"\", IF(VLOOKUP(O106,'Footnotes list'!$D$9:$E$58,2,FALSE)=0,\"\",VLOOKUP(O106,'Footnotes list'!$D$9:$E$58,2,FALSE) ) )","v":""},null,null,null,null,{"$f":"IF(TRIM(T106)=\"\", \"\", IF(VLOOKUP(T106,'Footnotes list'!$D$9:$E$58,2,FALSE)=0,\"\",VLOOKUP(T106,'Footnotes list'!$D$9:$E$58,2,FALSE) ) )","v":""},null,null,null,null,{"$f":"IF(TRIM(Y106)=\"\", \"\", IF(VLOOKUP(Y106,'Footnotes list'!$D$9:$E$58,2,FALSE)=0,\"\",VLOOKUP(Y106,'Footnotes list'!$D$9:$E$58,2,FALSE) ) )","v":""},null,null,null,null,{"$f":"IF(TRIM(AD106)=\"\", \"\", IF(VLOOKUP(AD106,'Footnotes list'!$D$9:$E$58,2,FALSE)=0,\"\",VLOOKUP(AD106,'Footnotes list'!$D$9:$E$58,2,FALSE) ) )","v":""},null,null,null,null,{"$f":"IF(TRIM(AI106)=\"\", \"\", IF(VLOOKUP(AI106,'Footnotes list'!$D$9:$E$58,2,FALSE)=0,\"\",VLOOKUP(AI106,'Footnotes list'!$D$9:$E$58,2,FALSE) ) )","v":""},null,null,null,null,{"$f":"IF(TRIM(AN106)=\"\", \"\", IF(VLOOKUP(AN106,'Footnotes list'!$D$9:$E$58,2,FALSE)=0,\"\",VLOOKUP(AN106,'Footnotes list'!$D$9:$E$58,2,FALSE) ) )","v":""},null,null,null,null,{"$f":"IF(TRIM(AS106)=\"\", \"\", IF(VLOOKUP(AS106,'Footnotes list'!$D$9:$E$58,2,FALSE)=0,\"\",VLOOKUP(AS106,'Footnotes list'!$D$9:$E$58,2,FALSE) ) )","v":""},null,null,null,null,{"$f":"IF(TRIM(AX106)=\"\", \"\", IF(VLOOKUP(AX106,'Footnotes list'!$D$9:$E$58,2,FALSE)=0,\"\",VLOOKUP(AX106,'Footnotes list'!$D$9:$E$58,2,FALSE) ) )","v":""},null,null,null,null,{"$f":"IF(TRIM(BC106)=\"\", \"\", IF(VLOOKUP(BC106,'Footnotes list'!$D$9:$E$58,2,FALSE)=0,\"\",VLOOKUP(BC106,'Footnotes list'!$D$9:$E$58,2,FALSE) ) )","v":""},null,null,null,null,{"$f":"IF(TRIM(BH106)=\"\", \"\", IF(VLOOKUP(BH106,'Footnotes list'!$D$9:$E$58,2,FALSE)=0,\"\",VLOOKUP(BH106,'Footnotes list'!$D$9:$E$58,2,FALSE) ) )","v":""},null,null,null,null,{"$f":"IF(TRIM(BM106)=\"\", \"\", IF(VLOOKUP(BM106,'Footnotes list'!$D$9:$E$58,2,FALSE)=0,\"\",VLOOKUP(BM106,'Footnotes list'!$D$9:$E$58,2,FALSE) ) )","v":""},null,null,null,null,{"$f":"IF(TRIM(BR106)=\"\", \"\", IF(VLOOKUP(BR106,'Footnotes list'!$D$9:$E$58,2,FALSE)=0,\"\",VLOOKUP(BR106,'Footnotes list'!$D$9:$E$58,2,FALSE) ) )","v":""},null,null,null,null,{"$f":"IF(TRIM(BW106)=\"\", \"\", IF(VLOOKUP(BW106,'Footnotes list'!$D$9:$E$58,2,FALSE)=0,\"\",VLOOKUP(BW106,'Footnotes list'!$D$9:$E$58,2,FALSE) ) )","v":""},null,null,null,null,{"$f":"IF(TRIM(CB106)=\"\", \"\", IF(VLOOKUP(CB106,'Footnotes list'!$D$9:$E$58,2,FALSE)=0,\"\",VLOOKUP(CB106,'Footnotes list'!$D$9:$E$58,2,FALSE) ) )","v":""},null,null,null,null,{"$f":"IF(TRIM(CG106)=\"\", \"\", IF(VLOOKUP(CG106,'Footnotes list'!$D$9:$E$58,2,FALSE)=0,\"\",VLOOKUP(CG106,'Footnotes list'!$D$9:$E$58,2,FALSE) ) )","v":""},null,null,null,null,{"$f":"IF(TRIM(CL106)=\"\", \"\", IF(VLOOKUP(CL106,'Footnotes list'!$D$9:$E$58,2,FALSE)=0,\"\",VLOOKUP(CL106,'Footnotes list'!$D$9:$E$58,2,FALSE) ) )","v":""},null,null,null,null,{"$f":"IF(TRIM(CQ106)=\"\", \"\", IF(VLOOKUP(CQ106,'Footnotes list'!$D$9:$E$58,2,FALSE)=0,\"\",VLOOKUP(CQ106,'Footnotes list'!$D$9:$E$58,2,FALSE) ) )","v":""},null,null,null,null,{"$f":"IF(TRIM(CV106)=\"\", \"\", IF(VLOOKUP(CV106,'Footnotes list'!$D$9:$E$58,2,FALSE)=0,\"\",VLOOKUP(CV106,'Footnotes list'!$D$9:$E$58,2,FALSE) ) )","v":""},null,null,null,null,{"$f":"IF(TRIM(DA106)=\"\", \"\", IF(VLOOKUP(DA106,'Footnotes list'!$D$9:$E$58,2,FALSE)=0,\"\",VLOOKUP(DA106,'Footnotes list'!$D$9:$E$58,2,FALSE) ) )","v":""},null,null,null,null,{"$f":"IF(TRIM(DF106)=\"\", \"\", IF(VLOOKUP(DF106,'Footnotes list'!$D$9:$E$58,2,FALSE)=0,\"\",VLOOKUP(DF106,'Footnotes list'!$D$9:$E$58,2,FALSE) ) )","v":""},null,null,null,null,{"$f":"IF(TRIM(DK106)=\"\", \"\", IF(VLOOKUP(DK106,'Footnotes list'!$D$9:$E$58,2,FALSE)=0,\"\",VLOOKUP(DK106,'Footnotes list'!$D$9:$E$58,2,FALSE) ) )","v":""},null,null,null,null,{"$f":"IF(TRIM(DP106)=\"\", \"\", IF(VLOOKUP(DP106,'Footnotes list'!$D$9:$E$58,2,FALSE)=0,\"\",VLOOKUP(DP106,'Footnotes list'!$D$9:$E$58,2,FALSE) ) )","v":""},null,null,null,null,{"$f":"IF(TRIM(DU106)=\"\", \"\", IF(VLOOKUP(DU106,'Footnotes list'!$D$9:$E$58,2,FALSE)=0,\"\",VLOOKUP(DU106,'Footnotes list'!$D$9:$E$58,2,FALSE) ) )","v":""},null,null,null,null,{"$f":"IF(TRIM(DZ106)=\"\", \"\", IF(VLOOKUP(DZ106,'Footnotes list'!$D$9:$E$58,2,FALSE)=0,\"\",VLOOKUP(DZ106,'Footnotes list'!$D$9:$E$58,2,FALSE) ) )","v":""},null,null,null,null,{"$f":"IF(TRIM(EE106)=\"\", \"\", IF(VLOOKUP(EE106,'Footnotes list'!$D$9:$E$58,2,FALSE)=0,\"\",VLOOKUP(EE106,'Footnotes list'!$D$9:$E$58,2,FALSE) ) )","v":""},null,null,null,null,{"$f":"IF(TRIM(EJ106)=\"\", \"\", IF(VLOOKUP(EJ106,'Footnotes list'!$D$9:$E$58,2,FALSE)=0,\"\",VLOOKUP(EJ106,'Footnotes list'!$D$9:$E$58,2,FALSE) ) )","v":""},null,null,null,null,{"$f":"IF(TRIM(EO106)=\"\", \"\", IF(VLOOKUP(EO106,'Footnotes list'!$D$9:$E$58,2,FALSE)=0,\"\",VLOOKUP(EO106,'Footnotes list'!$D$9:$E$58,2,FALSE) ) )","v":""},null,null,null,null,{"$f":"IF(TRIM(ET106)=\"\", \"\", IF(VLOOKUP(ET106,'Footnotes list'!$D$9:$E$58,2,FALSE)=0,\"\",VLOOKUP(ET106,'Footnotes list'!$D$9:$E$58,2,FALSE) ) )","v":""},null,null,null,null,{"$f":"IF(TRIM(EY106)=\"\", \"\", IF(VLOOKUP(EY106,'Footnotes list'!$D$9:$E$58,2,FALSE)=0,\"\",VLOOKUP(EY106,'Footnotes list'!$D$9:$E$58,2,FALSE) ) )","v":""}]
[null,null,"C28","ANC","ancillary activities",null,null,null,null,null,{"$f":"IF(TRIM(J107)=\"\", \"\", IF(VLOOKUP(J107,'Footnotes list'!$D$9:$E$58,2,FALSE)=0,\"\",VLOOKUP(J107,'Footnotes list'!$D$9:$E$58,2,FALSE) ) )","v":""},null,null,null,null,{"$f":"IF(TRIM(O107)=\"\", \"\", IF(VLOOKUP(O107,'Footnotes list'!$D$9:$E$58,2,FALSE)=0,\"\",VLOOKUP(O107,'Footnotes list'!$D$9:$E$58,2,FALSE) ) )","v":""},null,null,null,null,{"$f":"IF(TRIM(T107)=\"\", \"\", IF(VLOOKUP(T107,'Footnotes list'!$D$9:$E$58,2,FALSE)=0,\"\",VLOOKUP(T107,'Footnotes list'!$D$9:$E$58,2,FALSE) ) )","v":""},null,null,null,null,{"$f":"IF(TRIM(Y107)=\"\", \"\", IF(VLOOKUP(Y107,'Footnotes list'!$D$9:$E$58,2,FALSE)=0,\"\",VLOOKUP(Y107,'Footnotes list'!$D$9:$E$58,2,FALSE) ) )","v":""},null,null,null,null,{"$f":"IF(TRIM(AD107)=\"\", \"\", IF(VLOOKUP(AD107,'Footnotes list'!$D$9:$E$58,2,FALSE)=0,\"\",VLOOKUP(AD107,'Footnotes list'!$D$9:$E$58,2,FALSE) ) )","v":""},null,null,null,null,{"$f":"IF(TRIM(AI107)=\"\", \"\", IF(VLOOKUP(AI107,'Footnotes list'!$D$9:$E$58,2,FALSE)=0,\"\",VLOOKUP(AI107,'Footnotes list'!$D$9:$E$58,2,FALSE) ) )","v":""},null,null,null,null,{"$f":"IF(TRIM(AN107)=\"\", \"\", IF(VLOOKUP(AN107,'Footnotes list'!$D$9:$E$58,2,FALSE)=0,\"\",VLOOKUP(AN107,'Footnotes list'!$D$9:$E$58,2,FALSE) ) )","v":""},null,null,null,null,{"$f":"IF(TRIM(AS107)=\"\", \"\", IF(VLOOKUP(AS107,'Footnotes list'!$D$9:$E$58,2,FALSE)=0,\"\",VLOOKUP(AS107,'Footnotes list'!$D$9:$E$58,2,FALSE) ) )","v":""},null,null,null,null,{"$f":"IF(TRIM(AX107)=\"\", \"\", IF(VLOOKUP(AX107,'Footnotes list'!$D$9:$E$58,2,FALSE)=0,\"\",VLOOKUP(AX107,'Footnotes list'!$D$9:$E$58,2,FALSE) ) )","v":""},null,null,null,null,{"$f":"IF(TRIM(BC107)=\"\", \"\", IF(VLOOKUP(BC107,'Footnotes list'!$D$9:$E$58,2,FALSE)=0,\"\",VLOOKUP(BC107,'Footnotes list'!$D$9:$E$58,2,FALSE) ) )","v":""},null,null,null,null,{"$f":"IF(TRIM(BH107)=\"\", \"\", IF(VLOOKUP(BH107,'Footnotes list'!$D$9:$E$58,2,FALSE)=0,\"\",VLOOKUP(BH107,'Footnotes list'!$D$9:$E$58,2,FALSE) ) )","v":""},null,null,null,null,{"$f":"IF(TRIM(BM107)=\"\", \"\", IF(VLOOKUP(BM107,'Footnotes list'!$D$9:$E$58,2,FALSE)=0,\"\",VLOOKUP(BM107,'Footnotes list'!$D$9:$E$58,2,FALSE) ) )","v":""},null,null,null,null,{"$f":"IF(TRIM(BR107)=\"\", \"\", IF(VLOOKUP(BR107,'Footnotes list'!$D$9:$E$58,2,FALSE)=0,\"\",VLOOKUP(BR107,'Footnotes list'!$D$9:$E$58,2,FALSE) ) )","v":""},null,null,null,null,{"$f":"IF(TRIM(BW107)=\"\", \"\", IF(VLOOKUP(BW107,'Footnotes list'!$D$9:$E$58,2,FALSE)=0,\"\",VLOOKUP(BW107,'Footnotes list'!$D$9:$E$58,2,FALSE) ) )","v":""},null,null,null,null,{"$f":"IF(TRIM(CB107)=\"\", \"\", IF(VLOOKUP(CB107,'Footnotes list'!$D$9:$E$58,2,FALSE)=0,\"\",VLOOKUP(CB107,'Footnotes list'!$D$9:$E$58,2,FALSE) ) )","v":""},null,null,null,null,{"$f":"IF(TRIM(CG107)=\"\", \"\", IF(VLOOKUP(CG107,'Footnotes list'!$D$9:$E$58,2,FALSE)=0,\"\",VLOOKUP(CG107,'Footnotes list'!$D$9:$E$58,2,FALSE) ) )","v":""},null,null,null,null,{"$f":"IF(TRIM(CL107)=\"\", \"\", IF(VLOOKUP(CL107,'Footnotes list'!$D$9:$E$58,2,FALSE)=0,\"\",VLOOKUP(CL107,'Footnotes list'!$D$9:$E$58,2,FALSE) ) )","v":""},null,null,null,null,{"$f":"IF(TRIM(CQ107)=\"\", \"\", IF(VLOOKUP(CQ107,'Footnotes list'!$D$9:$E$58,2,FALSE)=0,\"\",VLOOKUP(CQ107,'Footnotes list'!$D$9:$E$58,2,FALSE) ) )","v":""},null,null,null,null,{"$f":"IF(TRIM(CV107)=\"\", \"\", IF(VLOOKUP(CV107,'Footnotes list'!$D$9:$E$58,2,FALSE)=0,\"\",VLOOKUP(CV107,'Footnotes list'!$D$9:$E$58,2,FALSE) ) )","v":""},null,null,null,null,{"$f":"IF(TRIM(DA107)=\"\", \"\", IF(VLOOKUP(DA107,'Footnotes list'!$D$9:$E$58,2,FALSE)=0,\"\",VLOOKUP(DA107,'Footnotes list'!$D$9:$E$58,2,FALSE) ) )","v":""},null,null,null,null,{"$f":"IF(TRIM(DF107)=\"\", \"\", IF(VLOOKUP(DF107,'Footnotes list'!$D$9:$E$58,2,FALSE)=0,\"\",VLOOKUP(DF107,'Footnotes list'!$D$9:$E$58,2,FALSE) ) )","v":""},null,null,null,null,{"$f":"IF(TRIM(DK107)=\"\", \"\", IF(VLOOKUP(DK107,'Footnotes list'!$D$9:$E$58,2,FALSE)=0,\"\",VLOOKUP(DK107,'Footnotes list'!$D$9:$E$58,2,FALSE) ) )","v":""},null,null,null,null,{"$f":"IF(TRIM(DP107)=\"\", \"\", IF(VLOOKUP(DP107,'Footnotes list'!$D$9:$E$58,2,FALSE)=0,\"\",VLOOKUP(DP107,'Footnotes list'!$D$9:$E$58,2,FALSE) ) )","v":""},null,null,null,null,{"$f":"IF(TRIM(DU107)=\"\", \"\", IF(VLOOKUP(DU107,'Footnotes list'!$D$9:$E$58,2,FALSE)=0,\"\",VLOOKUP(DU107,'Footnotes list'!$D$9:$E$58,2,FALSE) ) )","v":""},null,null,null,null,{"$f":"IF(TRIM(DZ107)=\"\", \"\", IF(VLOOKUP(DZ107,'Footnotes list'!$D$9:$E$58,2,FALSE)=0,\"\",VLOOKUP(DZ107,'Footnotes list'!$D$9:$E$58,2,FALSE) ) )","v":""},null,null,null,null,{"$f":"IF(TRIM(EE107)=\"\", \"\", IF(VLOOKUP(EE107,'Footnotes list'!$D$9:$E$58,2,FALSE)=0,\"\",VLOOKUP(EE107,'Footnotes list'!$D$9:$E$58,2,FALSE) ) )","v":""},null,null,null,null,{"$f":"IF(TRIM(EJ107)=\"\", \"\", IF(VLOOKUP(EJ107,'Footnotes list'!$D$9:$E$58,2,FALSE)=0,\"\",VLOOKUP(EJ107,'Footnotes list'!$D$9:$E$58,2,FALSE) ) )","v":""},null,null,null,null,{"$f":"IF(TRIM(EO107)=\"\", \"\", IF(VLOOKUP(EO107,'Footnotes list'!$D$9:$E$58,2,FALSE)=0,\"\",VLOOKUP(EO107,'Footnotes list'!$D$9:$E$58,2,FALSE) ) )","v":""},null,null,null,null,{"$f":"IF(TRIM(ET107)=\"\", \"\", IF(VLOOKUP(ET107,'Footnotes list'!$D$9:$E$58,2,FALSE)=0,\"\",VLOOKUP(ET107,'Footnotes list'!$D$9:$E$58,2,FALSE) ) )","v":""},null,null,null,null,{"$f":"IF(TRIM(EY107)=\"\", \"\", IF(VLOOKUP(EY107,'Footnotes list'!$D$9:$E$58,2,FALSE)=0,\"\",VLOOKUP(EY107,'Footnotes list'!$D$9:$E$58,2,FALSE) ) )","v":""}]
[null,null,"C28","NMKT","non-market activities",null,null,null,null,null,{"$f":"IF(TRIM(J108)=\"\", \"\", IF(VLOOKUP(J108,'Footnotes list'!$D$9:$E$58,2,FALSE)=0,\"\",VLOOKUP(J108,'Footnotes list'!$D$9:$E$58,2,FALSE) ) )","v":""},null,null,null,null,{"$f":"IF(TRIM(O108)=\"\", \"\", IF(VLOOKUP(O108,'Footnotes list'!$D$9:$E$58,2,FALSE)=0,\"\",VLOOKUP(O108,'Footnotes list'!$D$9:$E$58,2,FALSE) ) )","v":""},null,null,null,null,{"$f":"IF(TRIM(T108)=\"\", \"\", IF(VLOOKUP(T108,'Footnotes list'!$D$9:$E$58,2,FALSE)=0,\"\",VLOOKUP(T108,'Footnotes list'!$D$9:$E$58,2,FALSE) ) )","v":""},null,null,null,null,{"$f":"IF(TRIM(Y108)=\"\", \"\", IF(VLOOKUP(Y108,'Footnotes list'!$D$9:$E$58,2,FALSE)=0,\"\",VLOOKUP(Y108,'Footnotes list'!$D$9:$E$58,2,FALSE) ) )","v":""},null,null,null,null,{"$f":"IF(TRIM(AD108)=\"\", \"\", IF(VLOOKUP(AD108,'Footnotes list'!$D$9:$E$58,2,FALSE)=0,\"\",VLOOKUP(AD108,'Footnotes list'!$D$9:$E$58,2,FALSE) ) )","v":""},null,null,null,null,{"$f":"IF(TRIM(AI108)=\"\", \"\", IF(VLOOKUP(AI108,'Footnotes list'!$D$9:$E$58,2,FALSE)=0,\"\",VLOOKUP(AI108,'Footnotes list'!$D$9:$E$58,2,FALSE) ) )","v":""},null,null,null,null,{"$f":"IF(TRIM(AN108)=\"\", \"\", IF(VLOOKUP(AN108,'Footnotes list'!$D$9:$E$58,2,FALSE)=0,\"\",VLOOKUP(AN108,'Footnotes list'!$D$9:$E$58,2,FALSE) ) )","v":""},null,null,null,null,{"$f":"IF(TRIM(AS108)=\"\", \"\", IF(VLOOKUP(AS108,'Footnotes list'!$D$9:$E$58,2,FALSE)=0,\"\",VLOOKUP(AS108,'Footnotes list'!$D$9:$E$58,2,FALSE) ) )","v":""},null,null,null,null,{"$f":"IF(TRIM(AX108)=\"\", \"\", IF(VLOOKUP(AX108,'Footnotes list'!$D$9:$E$58,2,FALSE)=0,\"\",VLOOKUP(AX108,'Footnotes list'!$D$9:$E$58,2,FALSE) ) )","v":""},null,null,null,null,{"$f":"IF(TRIM(BC108)=\"\", \"\", IF(VLOOKUP(BC108,'Footnotes list'!$D$9:$E$58,2,FALSE)=0,\"\",VLOOKUP(BC108,'Footnotes list'!$D$9:$E$58,2,FALSE) ) )","v":""},null,null,null,null,{"$f":"IF(TRIM(BH108)=\"\", \"\", IF(VLOOKUP(BH108,'Footnotes list'!$D$9:$E$58,2,FALSE)=0,\"\",VLOOKUP(BH108,'Footnotes list'!$D$9:$E$58,2,FALSE) ) )","v":""},null,null,null,null,{"$f":"IF(TRIM(BM108)=\"\", \"\", IF(VLOOKUP(BM108,'Footnotes list'!$D$9:$E$58,2,FALSE)=0,\"\",VLOOKUP(BM108,'Footnotes list'!$D$9:$E$58,2,FALSE) ) )","v":""},null,null,null,null,{"$f":"IF(TRIM(BR108)=\"\", \"\", IF(VLOOKUP(BR108,'Footnotes list'!$D$9:$E$58,2,FALSE)=0,\"\",VLOOKUP(BR108,'Footnotes list'!$D$9:$E$58,2,FALSE) ) )","v":""},null,null,null,null,{"$f":"IF(TRIM(BW108)=\"\", \"\", IF(VLOOKUP(BW108,'Footnotes list'!$D$9:$E$58,2,FALSE)=0,\"\",VLOOKUP(BW108,'Footnotes list'!$D$9:$E$58,2,FALSE) ) )","v":""},null,null,null,null,{"$f":"IF(TRIM(CB108)=\"\", \"\", IF(VLOOKUP(CB108,'Footnotes list'!$D$9:$E$58,2,FALSE)=0,\"\",VLOOKUP(CB108,'Footnotes list'!$D$9:$E$58,2,FALSE) ) )","v":""},null,null,null,null,{"$f":"IF(TRIM(CG108)=\"\", \"\", IF(VLOOKUP(CG108,'Footnotes list'!$D$9:$E$58,2,FALSE)=0,\"\",VLOOKUP(CG108,'Footnotes list'!$D$9:$E$58,2,FALSE) ) )","v":""},null,null,null,null,{"$f":"IF(TRIM(CL108)=\"\", \"\", IF(VLOOKUP(CL108,'Footnotes list'!$D$9:$E$58,2,FALSE)=0,\"\",VLOOKUP(CL108,'Footnotes list'!$D$9:$E$58,2,FALSE) ) )","v":""},null,null,null,null,{"$f":"IF(TRIM(CQ108)=\"\", \"\", IF(VLOOKUP(CQ108,'Footnotes list'!$D$9:$E$58,2,FALSE)=0,\"\",VLOOKUP(CQ108,'Footnotes list'!$D$9:$E$58,2,FALSE) ) )","v":""},null,null,null,null,{"$f":"IF(TRIM(CV108)=\"\", \"\", IF(VLOOKUP(CV108,'Footnotes list'!$D$9:$E$58,2,FALSE)=0,\"\",VLOOKUP(CV108,'Footnotes list'!$D$9:$E$58,2,FALSE) ) )","v":""},null,null,null,null,{"$f":"IF(TRIM(DA108)=\"\", \"\", IF(VLOOKUP(DA108,'Footnotes list'!$D$9:$E$58,2,FALSE)=0,\"\",VLOOKUP(DA108,'Footnotes list'!$D$9:$E$58,2,FALSE) ) )","v":""},null,null,null,null,{"$f":"IF(TRIM(DF108)=\"\", \"\", IF(VLOOKUP(DF108,'Footnotes list'!$D$9:$E$58,2,FALSE)=0,\"\",VLOOKUP(DF108,'Footnotes list'!$D$9:$E$58,2,FALSE) ) )","v":""},null,null,null,null,{"$f":"IF(TRIM(DK108)=\"\", \"\", IF(VLOOKUP(DK108,'Footnotes list'!$D$9:$E$58,2,FALSE)=0,\"\",VLOOKUP(DK108,'Footnotes list'!$D$9:$E$58,2,FALSE) ) )","v":""},null,null,null,null,{"$f":"IF(TRIM(DP108)=\"\", \"\", IF(VLOOKUP(DP108,'Footnotes list'!$D$9:$E$58,2,FALSE)=0,\"\",VLOOKUP(DP108,'Footnotes list'!$D$9:$E$58,2,FALSE) ) )","v":""},null,null,null,null,{"$f":"IF(TRIM(DU108)=\"\", \"\", IF(VLOOKUP(DU108,'Footnotes list'!$D$9:$E$58,2,FALSE)=0,\"\",VLOOKUP(DU108,'Footnotes list'!$D$9:$E$58,2,FALSE) ) )","v":""},null,null,null,null,{"$f":"IF(TRIM(DZ108)=\"\", \"\", IF(VLOOKUP(DZ108,'Footnotes list'!$D$9:$E$58,2,FALSE)=0,\"\",VLOOKUP(DZ108,'Footnotes list'!$D$9:$E$58,2,FALSE) ) )","v":""},null,null,null,null,{"$f":"IF(TRIM(EE108)=\"\", \"\", IF(VLOOKUP(EE108,'Footnotes list'!$D$9:$E$58,2,FALSE)=0,\"\",VLOOKUP(EE108,'Footnotes list'!$D$9:$E$58,2,FALSE) ) )","v":""},null,null,null,null,{"$f":"IF(TRIM(EJ108)=\"\", \"\", IF(VLOOKUP(EJ108,'Footnotes list'!$D$9:$E$58,2,FALSE)=0,\"\",VLOOKUP(EJ108,'Footnotes list'!$D$9:$E$58,2,FALSE) ) )","v":""},null,null,null,null,{"$f":"IF(TRIM(EO108)=\"\", \"\", IF(VLOOKUP(EO108,'Footnotes list'!$D$9:$E$58,2,FALSE)=0,\"\",VLOOKUP(EO108,'Footnotes list'!$D$9:$E$58,2,FALSE) ) )","v":""},null,null,null,null,{"$f":"IF(TRIM(ET108)=\"\", \"\", IF(VLOOKUP(ET108,'Footnotes list'!$D$9:$E$58,2,FALSE)=0,\"\",VLOOKUP(ET108,'Footnotes list'!$D$9:$E$58,2,FALSE) ) )","v":""},null,null,null,null,{"$f":"IF(TRIM(EY108)=\"\", \"\", IF(VLOOKUP(EY108,'Footnotes list'!$D$9:$E$58,2,FALSE)=0,\"\",VLOOKUP(EY108,'Footnotes list'!$D$9:$E$58,2,FALSE) ) )","v":""}]
[null,null,"C28","OWN_USE","activities for own final use",null,null,null,null,null,{"$f":"IF(TRIM(J109)=\"\", \"\", IF(VLOOKUP(J109,'Footnotes list'!$D$9:$E$58,2,FALSE)=0,\"\",VLOOKUP(J109,'Footnotes list'!$D$9:$E$58,2,FALSE) ) )","v":""},null,null,null,null,{"$f":"IF(TRIM(O109)=\"\", \"\", IF(VLOOKUP(O109,'Footnotes list'!$D$9:$E$58,2,FALSE)=0,\"\",VLOOKUP(O109,'Footnotes list'!$D$9:$E$58,2,FALSE) ) )","v":""},null,null,null,null,{"$f":"IF(TRIM(T109)=\"\", \"\", IF(VLOOKUP(T109,'Footnotes list'!$D$9:$E$58,2,FALSE)=0,\"\",VLOOKUP(T109,'Footnotes list'!$D$9:$E$58,2,FALSE) ) )","v":""},null,null,null,null,{"$f":"IF(TRIM(Y109)=\"\", \"\", IF(VLOOKUP(Y109,'Footnotes list'!$D$9:$E$58,2,FALSE)=0,\"\",VLOOKUP(Y109,'Footnotes list'!$D$9:$E$58,2,FALSE) ) )","v":""},null,null,null,null,{"$f":"IF(TRIM(AD109)=\"\", \"\", IF(VLOOKUP(AD109,'Footnotes list'!$D$9:$E$58,2,FALSE)=0,\"\",VLOOKUP(AD109,'Footnotes list'!$D$9:$E$58,2,FALSE) ) )","v":""},null,null,null,null,{"$f":"IF(TRIM(AI109)=\"\", \"\", IF(VLOOKUP(AI109,'Footnotes list'!$D$9:$E$58,2,FALSE)=0,\"\",VLOOKUP(AI109,'Footnotes list'!$D$9:$E$58,2,FALSE) ) )","v":""},null,null,null,null,{"$f":"IF(TRIM(AN109)=\"\", \"\", IF(VLOOKUP(AN109,'Footnotes list'!$D$9:$E$58,2,FALSE)=0,\"\",VLOOKUP(AN109,'Footnotes list'!$D$9:$E$58,2,FALSE) ) )","v":""},null,null,null,null,{"$f":"IF(TRIM(AS109)=\"\", \"\", IF(VLOOKUP(AS109,'Footnotes list'!$D$9:$E$58,2,FALSE)=0,\"\",VLOOKUP(AS109,'Footnotes list'!$D$9:$E$58,2,FALSE) ) )","v":""},null,null,null,null,{"$f":"IF(TRIM(AX109)=\"\", \"\", IF(VLOOKUP(AX109,'Footnotes list'!$D$9:$E$58,2,FALSE)=0,\"\",VLOOKUP(AX109,'Footnotes list'!$D$9:$E$58,2,FALSE) ) )","v":""},null,null,null,null,{"$f":"IF(TRIM(BC109)=\"\", \"\", IF(VLOOKUP(BC109,'Footnotes list'!$D$9:$E$58,2,FALSE)=0,\"\",VLOOKUP(BC109,'Footnotes list'!$D$9:$E$58,2,FALSE) ) )","v":""},null,null,null,null,{"$f":"IF(TRIM(BH109)=\"\", \"\", IF(VLOOKUP(BH109,'Footnotes list'!$D$9:$E$58,2,FALSE)=0,\"\",VLOOKUP(BH109,'Footnotes list'!$D$9:$E$58,2,FALSE) ) )","v":""},null,null,null,null,{"$f":"IF(TRIM(BM109)=\"\", \"\", IF(VLOOKUP(BM109,'Footnotes list'!$D$9:$E$58,2,FALSE)=0,\"\",VLOOKUP(BM109,'Footnotes list'!$D$9:$E$58,2,FALSE) ) )","v":""},null,null,null,null,{"$f":"IF(TRIM(BR109)=\"\", \"\", IF(VLOOKUP(BR109,'Footnotes list'!$D$9:$E$58,2,FALSE)=0,\"\",VLOOKUP(BR109,'Footnotes list'!$D$9:$E$58,2,FALSE) ) )","v":""},null,null,null,null,{"$f":"IF(TRIM(BW109)=\"\", \"\", IF(VLOOKUP(BW109,'Footnotes list'!$D$9:$E$58,2,FALSE)=0,\"\",VLOOKUP(BW109,'Footnotes list'!$D$9:$E$58,2,FALSE) ) )","v":""},null,null,null,null,{"$f":"IF(TRIM(CB109)=\"\", \"\", IF(VLOOKUP(CB109,'Footnotes list'!$D$9:$E$58,2,FALSE)=0,\"\",VLOOKUP(CB109,'Footnotes list'!$D$9:$E$58,2,FALSE) ) )","v":""},null,null,null,null,{"$f":"IF(TRIM(CG109)=\"\", \"\", IF(VLOOKUP(CG109,'Footnotes list'!$D$9:$E$58,2,FALSE)=0,\"\",VLOOKUP(CG109,'Footnotes list'!$D$9:$E$58,2,FALSE) ) )","v":""},null,null,null,null,{"$f":"IF(TRIM(CL109)=\"\", \"\", IF(VLOOKUP(CL109,'Footnotes list'!$D$9:$E$58,2,FALSE)=0,\"\",VLOOKUP(CL109,'Footnotes list'!$D$9:$E$58,2,FALSE) ) )","v":""},null,null,null,null,{"$f":"IF(TRIM(CQ109)=\"\", \"\", IF(VLOOKUP(CQ109,'Footnotes list'!$D$9:$E$58,2,FALSE)=0,\"\",VLOOKUP(CQ109,'Footnotes list'!$D$9:$E$58,2,FALSE) ) )","v":""},null,null,null,null,{"$f":"IF(TRIM(CV109)=\"\", \"\", IF(VLOOKUP(CV109,'Footnotes list'!$D$9:$E$58,2,FALSE)=0,\"\",VLOOKUP(CV109,'Footnotes list'!$D$9:$E$58,2,FALSE) ) )","v":""},null,null,null,null,{"$f":"IF(TRIM(DA109)=\"\", \"\", IF(VLOOKUP(DA109,'Footnotes list'!$D$9:$E$58,2,FALSE)=0,\"\",VLOOKUP(DA109,'Footnotes list'!$D$9:$E$58,2,FALSE) ) )","v":""},null,null,null,null,{"$f":"IF(TRIM(DF109)=\"\", \"\", IF(VLOOKUP(DF109,'Footnotes list'!$D$9:$E$58,2,FALSE)=0,\"\",VLOOKUP(DF109,'Footnotes list'!$D$9:$E$58,2,FALSE) ) )","v":""},null,null,null,null,{"$f":"IF(TRIM(DK109)=\"\", \"\", IF(VLOOKUP(DK109,'Footnotes list'!$D$9:$E$58,2,FALSE)=0,\"\",VLOOKUP(DK109,'Footnotes list'!$D$9:$E$58,2,FALSE) ) )","v":""},null,null,null,null,{"$f":"IF(TRIM(DP109)=\"\", \"\", IF(VLOOKUP(DP109,'Footnotes list'!$D$9:$E$58,2,FALSE)=0,\"\",VLOOKUP(DP109,'Footnotes list'!$D$9:$E$58,2,FALSE) ) )","v":""},null,null,null,null,{"$f":"IF(TRIM(DU109)=\"\", \"\", IF(VLOOKUP(DU109,'Footnotes list'!$D$9:$E$58,2,FALSE)=0,\"\",VLOOKUP(DU109,'Footnotes list'!$D$9:$E$58,2,FALSE) ) )","v":""},null,null,null,null,{"$f":"IF(TRIM(DZ109)=\"\", \"\", IF(VLOOKUP(DZ109,'Footnotes list'!$D$9:$E$58,2,FALSE)=0,\"\",VLOOKUP(DZ109,'Footnotes list'!$D$9:$E$58,2,FALSE) ) )","v":""},null,null,null,null,{"$f":"IF(TRIM(EE109)=\"\", \"\", IF(VLOOKUP(EE109,'Footnotes list'!$D$9:$E$58,2,FALSE)=0,\"\",VLOOKUP(EE109,'Footnotes list'!$D$9:$E$58,2,FALSE) ) )","v":""},null,null,null,null,{"$f":"IF(TRIM(EJ109)=\"\", \"\", IF(VLOOKUP(EJ109,'Footnotes list'!$D$9:$E$58,2,FALSE)=0,\"\",VLOOKUP(EJ109,'Footnotes list'!$D$9:$E$58,2,FALSE) ) )","v":""},null,null,null,null,{"$f":"IF(TRIM(EO109)=\"\", \"\", IF(VLOOKUP(EO109,'Footnotes list'!$D$9:$E$58,2,FALSE)=0,\"\",VLOOKUP(EO109,'Footnotes list'!$D$9:$E$58,2,FALSE) ) )","v":""},null,null,null,null,{"$f":"IF(TRIM(ET109)=\"\", \"\", IF(VLOOKUP(ET109,'Footnotes list'!$D$9:$E$58,2,FALSE)=0,\"\",VLOOKUP(ET109,'Footnotes list'!$D$9:$E$58,2,FALSE) ) )","v":""},null,null,null,null,{"$f":"IF(TRIM(EY109)=\"\", \"\", IF(VLOOKUP(EY109,'Footnotes list'!$D$9:$E$58,2,FALSE)=0,\"\",VLOOKUP(EY109,'Footnotes list'!$D$9:$E$58,2,FALSE) ) )","v":""}]
[null,null,"C28","MKT","market activities, including:",null,null,null,null,null,{"$f":"IF(TRIM(J110)=\"\", \"\", IF(VLOOKUP(J110,'Footnotes list'!$D$9:$E$58,2,FALSE)=0,\"\",VLOOKUP(J110,'Footnotes list'!$D$9:$E$58,2,FALSE) ) )","v":""},null,null,null,null,{"$f":"IF(TRIM(O110)=\"\", \"\", IF(VLOOKUP(O110,'Footnotes list'!$D$9:$E$58,2,FALSE)=0,\"\",VLOOKUP(O110,'Footnotes list'!$D$9:$E$58,2,FALSE) ) )","v":""},null,null,null,null,{"$f":"IF(TRIM(T110)=\"\", \"\", IF(VLOOKUP(T110,'Footnotes list'!$D$9:$E$58,2,FALSE)=0,\"\",VLOOKUP(T110,'Footnotes list'!$D$9:$E$58,2,FALSE) ) )","v":""},null,null,null,null,{"$f":"IF(TRIM(Y110)=\"\", \"\", IF(VLOOKUP(Y110,'Footnotes list'!$D$9:$E$58,2,FALSE)=0,\"\",VLOOKUP(Y110,'Footnotes list'!$D$9:$E$58,2,FALSE) ) )","v":""},null,null,null,null,{"$f":"IF(TRIM(AD110)=\"\", \"\", IF(VLOOKUP(AD110,'Footnotes list'!$D$9:$E$58,2,FALSE)=0,\"\",VLOOKUP(AD110,'Footnotes list'!$D$9:$E$58,2,FALSE) ) )","v":""},null,null,null,null,{"$f":"IF(TRIM(AI110)=\"\", \"\", IF(VLOOKUP(AI110,'Footnotes list'!$D$9:$E$58,2,FALSE)=0,\"\",VLOOKUP(AI110,'Footnotes list'!$D$9:$E$58,2,FALSE) ) )","v":""},null,null,null,null,{"$f":"IF(TRIM(AN110)=\"\", \"\", IF(VLOOKUP(AN110,'Footnotes list'!$D$9:$E$58,2,FALSE)=0,\"\",VLOOKUP(AN110,'Footnotes list'!$D$9:$E$58,2,FALSE) ) )","v":""},null,null,null,null,{"$f":"IF(TRIM(AS110)=\"\", \"\", IF(VLOOKUP(AS110,'Footnotes list'!$D$9:$E$58,2,FALSE)=0,\"\",VLOOKUP(AS110,'Footnotes list'!$D$9:$E$58,2,FALSE) ) )","v":""},null,null,null,null,{"$f":"IF(TRIM(AX110)=\"\", \"\", IF(VLOOKUP(AX110,'Footnotes list'!$D$9:$E$58,2,FALSE)=0,\"\",VLOOKUP(AX110,'Footnotes list'!$D$9:$E$58,2,FALSE) ) )","v":""},null,null,null,null,{"$f":"IF(TRIM(BC110)=\"\", \"\", IF(VLOOKUP(BC110,'Footnotes list'!$D$9:$E$58,2,FALSE)=0,\"\",VLOOKUP(BC110,'Footnotes list'!$D$9:$E$58,2,FALSE) ) )","v":""},null,null,null,null,{"$f":"IF(TRIM(BH110)=\"\", \"\", IF(VLOOKUP(BH110,'Footnotes list'!$D$9:$E$58,2,FALSE)=0,\"\",VLOOKUP(BH110,'Footnotes list'!$D$9:$E$58,2,FALSE) ) )","v":""},null,null,null,null,{"$f":"IF(TRIM(BM110)=\"\", \"\", IF(VLOOKUP(BM110,'Footnotes list'!$D$9:$E$58,2,FALSE)=0,\"\",VLOOKUP(BM110,'Footnotes list'!$D$9:$E$58,2,FALSE) ) )","v":""},null,null,null,null,{"$f":"IF(TRIM(BR110)=\"\", \"\", IF(VLOOKUP(BR110,'Footnotes list'!$D$9:$E$58,2,FALSE)=0,\"\",VLOOKUP(BR110,'Footnotes list'!$D$9:$E$58,2,FALSE) ) )","v":""},null,null,null,null,{"$f":"IF(TRIM(BW110)=\"\", \"\", IF(VLOOKUP(BW110,'Footnotes list'!$D$9:$E$58,2,FALSE)=0,\"\",VLOOKUP(BW110,'Footnotes list'!$D$9:$E$58,2,FALSE) ) )","v":""},null,null,null,null,{"$f":"IF(TRIM(CB110)=\"\", \"\", IF(VLOOKUP(CB110,'Footnotes list'!$D$9:$E$58,2,FALSE)=0,\"\",VLOOKUP(CB110,'Footnotes list'!$D$9:$E$58,2,FALSE) ) )","v":""},null,null,null,null,{"$f":"IF(TRIM(CG110)=\"\", \"\", IF(VLOOKUP(CG110,'Footnotes list'!$D$9:$E$58,2,FALSE)=0,\"\",VLOOKUP(CG110,'Footnotes list'!$D$9:$E$58,2,FALSE) ) )","v":""},null,null,null,null,{"$f":"IF(TRIM(CL110)=\"\", \"\", IF(VLOOKUP(CL110,'Footnotes list'!$D$9:$E$58,2,FALSE)=0,\"\",VLOOKUP(CL110,'Footnotes list'!$D$9:$E$58,2,FALSE) ) )","v":""},null,null,null,null,{"$f":"IF(TRIM(CQ110)=\"\", \"\", IF(VLOOKUP(CQ110,'Footnotes list'!$D$9:$E$58,2,FALSE)=0,\"\",VLOOKUP(CQ110,'Footnotes list'!$D$9:$E$58,2,FALSE) ) )","v":""},null,null,null,null,{"$f":"IF(TRIM(CV110)=\"\", \"\", IF(VLOOKUP(CV110,'Footnotes list'!$D$9:$E$58,2,FALSE)=0,\"\",VLOOKUP(CV110,'Footnotes list'!$D$9:$E$58,2,FALSE) ) )","v":""},null,null,null,null,{"$f":"IF(TRIM(DA110)=\"\", \"\", IF(VLOOKUP(DA110,'Footnotes list'!$D$9:$E$58,2,FALSE)=0,\"\",VLOOKUP(DA110,'Footnotes list'!$D$9:$E$58,2,FALSE) ) )","v":""},null,null,null,null,{"$f":"IF(TRIM(DF110)=\"\", \"\", IF(VLOOKUP(DF110,'Footnotes list'!$D$9:$E$58,2,FALSE)=0,\"\",VLOOKUP(DF110,'Footnotes list'!$D$9:$E$58,2,FALSE) ) )","v":""},null,null,null,null,{"$f":"IF(TRIM(DK110)=\"\", \"\", IF(VLOOKUP(DK110,'Footnotes list'!$D$9:$E$58,2,FALSE)=0,\"\",VLOOKUP(DK110,'Footnotes list'!$D$9:$E$58,2,FALSE) ) )","v":""},null,null,null,null,{"$f":"IF(TRIM(DP110)=\"\", \"\", IF(VLOOKUP(DP110,'Footnotes list'!$D$9:$E$58,2,FALSE)=0,\"\",VLOOKUP(DP110,'Footnotes list'!$D$9:$E$58,2,FALSE) ) )","v":""},null,null,null,null,{"$f":"IF(TRIM(DU110)=\"\", \"\", IF(VLOOKUP(DU110,'Footnotes list'!$D$9:$E$58,2,FALSE)=0,\"\",VLOOKUP(DU110,'Footnotes list'!$D$9:$E$58,2,FALSE) ) )","v":""},null,null,null,null,{"$f":"IF(TRIM(DZ110)=\"\", \"\", IF(VLOOKUP(DZ110,'Footnotes list'!$D$9:$E$58,2,FALSE)=0,\"\",VLOOKUP(DZ110,'Footnotes list'!$D$9:$E$58,2,FALSE) ) )","v":""},null,null,null,null,{"$f":"IF(TRIM(EE110)=\"\", \"\", IF(VLOOKUP(EE110,'Footnotes list'!$D$9:$E$58,2,FALSE)=0,\"\",VLOOKUP(EE110,'Footnotes list'!$D$9:$E$58,2,FALSE) ) )","v":""},null,null,null,null,{"$f":"IF(TRIM(EJ110)=\"\", \"\", IF(VLOOKUP(EJ110,'Footnotes list'!$D$9:$E$58,2,FALSE)=0,\"\",VLOOKUP(EJ110,'Footnotes list'!$D$9:$E$58,2,FALSE) ) )","v":""},null,null,null,null,{"$f":"IF(TRIM(EO110)=\"\", \"\", IF(VLOOKUP(EO110,'Footnotes list'!$D$9:$E$58,2,FALSE)=0,\"\",VLOOKUP(EO110,'Footnotes list'!$D$9:$E$58,2,FALSE) ) )","v":""},null,null,null,null,{"$f":"IF(TRIM(ET110)=\"\", \"\", IF(VLOOKUP(ET110,'Footnotes list'!$D$9:$E$58,2,FALSE)=0,\"\",VLOOKUP(ET110,'Footnotes list'!$D$9:$E$58,2,FALSE) ) )","v":""},null,null,null,null,{"$f":"IF(TRIM(EY110)=\"\", \"\", IF(VLOOKUP(EY110,'Footnotes list'!$D$9:$E$58,2,FALSE)=0,\"\",VLOOKUP(EY110,'Footnotes list'!$D$9:$E$58,2,FALSE) ) )","v":""}]
[null,null,"C28","ES_CS","environmental specific services",null,null,null,null,null,{"$f":"IF(TRIM(J111)=\"\", \"\", IF(VLOOKUP(J111,'Footnotes list'!$D$9:$E$58,2,FALSE)=0,\"\",VLOOKUP(J111,'Footnotes list'!$D$9:$E$58,2,FALSE) ) )","v":""},null,null,null,null,{"$f":"IF(TRIM(O111)=\"\", \"\", IF(VLOOKUP(O111,'Footnotes list'!$D$9:$E$58,2,FALSE)=0,\"\",VLOOKUP(O111,'Footnotes list'!$D$9:$E$58,2,FALSE) ) )","v":""},null,null,null,null,{"$f":"IF(TRIM(T111)=\"\", \"\", IF(VLOOKUP(T111,'Footnotes list'!$D$9:$E$58,2,FALSE)=0,\"\",VLOOKUP(T111,'Footnotes list'!$D$9:$E$58,2,FALSE) ) )","v":""},null,null,null,null,{"$f":"IF(TRIM(Y111)=\"\", \"\", IF(VLOOKUP(Y111,'Footnotes list'!$D$9:$E$58,2,FALSE)=0,\"\",VLOOKUP(Y111,'Footnotes list'!$D$9:$E$58,2,FALSE) ) )","v":""},null,null,null,null,{"$f":"IF(TRIM(AD111)=\"\", \"\", IF(VLOOKUP(AD111,'Footnotes list'!$D$9:$E$58,2,FALSE)=0,\"\",VLOOKUP(AD111,'Footnotes list'!$D$9:$E$58,2,FALSE) ) )","v":""},null,null,null,null,{"$f":"IF(TRIM(AI111)=\"\", \"\", IF(VLOOKUP(AI111,'Footnotes list'!$D$9:$E$58,2,FALSE)=0,\"\",VLOOKUP(AI111,'Footnotes list'!$D$9:$E$58,2,FALSE) ) )","v":""},null,null,null,null,{"$f":"IF(TRIM(AN111)=\"\", \"\", IF(VLOOKUP(AN111,'Footnotes list'!$D$9:$E$58,2,FALSE)=0,\"\",VLOOKUP(AN111,'Footnotes list'!$D$9:$E$58,2,FALSE) ) )","v":""},null,null,null,null,{"$f":"IF(TRIM(AS111)=\"\", \"\", IF(VLOOKUP(AS111,'Footnotes list'!$D$9:$E$58,2,FALSE)=0,\"\",VLOOKUP(AS111,'Footnotes list'!$D$9:$E$58,2,FALSE) ) )","v":""},null,null,null,null,{"$f":"IF(TRIM(AX111)=\"\", \"\", IF(VLOOKUP(AX111,'Footnotes list'!$D$9:$E$58,2,FALSE)=0,\"\",VLOOKUP(AX111,'Footnotes list'!$D$9:$E$58,2,FALSE) ) )","v":""},null,null,null,null,{"$f":"IF(TRIM(BC111)=\"\", \"\", IF(VLOOKUP(BC111,'Footnotes list'!$D$9:$E$58,2,FALSE)=0,\"\",VLOOKUP(BC111,'Footnotes list'!$D$9:$E$58,2,FALSE) ) )","v":""},null,null,null,null,{"$f":"IF(TRIM(BH111)=\"\", \"\", IF(VLOOKUP(BH111,'Footnotes list'!$D$9:$E$58,2,FALSE)=0,\"\",VLOOKUP(BH111,'Footnotes list'!$D$9:$E$58,2,FALSE) ) )","v":""},null,null,null,null,{"$f":"IF(TRIM(BM111)=\"\", \"\", IF(VLOOKUP(BM111,'Footnotes list'!$D$9:$E$58,2,FALSE)=0,\"\",VLOOKUP(BM111,'Footnotes list'!$D$9:$E$58,2,FALSE) ) )","v":""},null,null,null,null,{"$f":"IF(TRIM(BR111)=\"\", \"\", IF(VLOOKUP(BR111,'Footnotes list'!$D$9:$E$58,2,FALSE)=0,\"\",VLOOKUP(BR111,'Footnotes list'!$D$9:$E$58,2,FALSE) ) )","v":""},null,null,null,null,{"$f":"IF(TRIM(BW111)=\"\", \"\", IF(VLOOKUP(BW111,'Footnotes list'!$D$9:$E$58,2,FALSE)=0,\"\",VLOOKUP(BW111,'Footnotes list'!$D$9:$E$58,2,FALSE) ) )","v":""},null,null,null,null,{"$f":"IF(TRIM(CB111)=\"\", \"\", IF(VLOOKUP(CB111,'Footnotes list'!$D$9:$E$58,2,FALSE)=0,\"\",VLOOKUP(CB111,'Footnotes list'!$D$9:$E$58,2,FALSE) ) )","v":""},null,null,null,null,{"$f":"IF(TRIM(CG111)=\"\", \"\", IF(VLOOKUP(CG111,'Footnotes list'!$D$9:$E$58,2,FALSE)=0,\"\",VLOOKUP(CG111,'Footnotes list'!$D$9:$E$58,2,FALSE) ) )","v":""},null,null,null,null,{"$f":"IF(TRIM(CL111)=\"\", \"\", IF(VLOOKUP(CL111,'Footnotes list'!$D$9:$E$58,2,FALSE)=0,\"\",VLOOKUP(CL111,'Footnotes list'!$D$9:$E$58,2,FALSE) ) )","v":""},null,null,null,null,{"$f":"IF(TRIM(CQ111)=\"\", \"\", IF(VLOOKUP(CQ111,'Footnotes list'!$D$9:$E$58,2,FALSE)=0,\"\",VLOOKUP(CQ111,'Footnotes list'!$D$9:$E$58,2,FALSE) ) )","v":""},null,null,null,null,{"$f":"IF(TRIM(CV111)=\"\", \"\", IF(VLOOKUP(CV111,'Footnotes list'!$D$9:$E$58,2,FALSE)=0,\"\",VLOOKUP(CV111,'Footnotes list'!$D$9:$E$58,2,FALSE) ) )","v":""},null,null,null,null,{"$f":"IF(TRIM(DA111)=\"\", \"\", IF(VLOOKUP(DA111,'Footnotes list'!$D$9:$E$58,2,FALSE)=0,\"\",VLOOKUP(DA111,'Footnotes list'!$D$9:$E$58,2,FALSE) ) )","v":""},null,null,null,null,{"$f":"IF(TRIM(DF111)=\"\", \"\", IF(VLOOKUP(DF111,'Footnotes list'!$D$9:$E$58,2,FALSE)=0,\"\",VLOOKUP(DF111,'Footnotes list'!$D$9:$E$58,2,FALSE) ) )","v":""},null,null,null,null,{"$f":"IF(TRIM(DK111)=\"\", \"\", IF(VLOOKUP(DK111,'Footnotes list'!$D$9:$E$58,2,FALSE)=0,\"\",VLOOKUP(DK111,'Footnotes list'!$D$9:$E$58,2,FALSE) ) )","v":""},null,null,null,null,{"$f":"IF(TRIM(DP111)=\"\", \"\", IF(VLOOKUP(DP111,'Footnotes list'!$D$9:$E$58,2,FALSE)=0,\"\",VLOOKUP(DP111,'Footnotes list'!$D$9:$E$58,2,FALSE) ) )","v":""},null,null,null,null,{"$f":"IF(TRIM(DU111)=\"\", \"\", IF(VLOOKUP(DU111,'Footnotes list'!$D$9:$E$58,2,FALSE)=0,\"\",VLOOKUP(DU111,'Footnotes list'!$D$9:$E$58,2,FALSE) ) )","v":""},null,null,null,null,{"$f":"IF(TRIM(DZ111)=\"\", \"\", IF(VLOOKUP(DZ111,'Footnotes list'!$D$9:$E$58,2,FALSE)=0,\"\",VLOOKUP(DZ111,'Footnotes list'!$D$9:$E$58,2,FALSE) ) )","v":""},null,null,null,null,{"$f":"IF(TRIM(EE111)=\"\", \"\", IF(VLOOKUP(EE111,'Footnotes list'!$D$9:$E$58,2,FALSE)=0,\"\",VLOOKUP(EE111,'Footnotes list'!$D$9:$E$58,2,FALSE) ) )","v":""},null,null,null,null,{"$f":"IF(TRIM(EJ111)=\"\", \"\", IF(VLOOKUP(EJ111,'Footnotes list'!$D$9:$E$58,2,FALSE)=0,\"\",VLOOKUP(EJ111,'Footnotes list'!$D$9:$E$58,2,FALSE) ) )","v":""},null,null,null,null,{"$f":"IF(TRIM(EO111)=\"\", \"\", IF(VLOOKUP(EO111,'Footnotes list'!$D$9:$E$58,2,FALSE)=0,\"\",VLOOKUP(EO111,'Footnotes list'!$D$9:$E$58,2,FALSE) ) )","v":""},null,null,null,null,{"$f":"IF(TRIM(ET111)=\"\", \"\", IF(VLOOKUP(ET111,'Footnotes list'!$D$9:$E$58,2,FALSE)=0,\"\",VLOOKUP(ET111,'Footnotes list'!$D$9:$E$58,2,FALSE) ) )","v":""},null,null,null,null,{"$f":"IF(TRIM(EY111)=\"\", \"\", IF(VLOOKUP(EY111,'Footnotes list'!$D$9:$E$58,2,FALSE)=0,\"\",VLOOKUP(EY111,'Footnotes list'!$D$9:$E$58,2,FALSE) ) )","v":""}]
[null,null,"C28","C_REP","cleaner and resource efficient products",null,null,null,null,null,{"$f":"IF(TRIM(J112)=\"\", \"\", IF(VLOOKUP(J112,'Footnotes list'!$D$9:$E$58,2,FALSE)=0,\"\",VLOOKUP(J112,'Footnotes list'!$D$9:$E$58,2,FALSE) ) )","v":""},null,null,null,null,{"$f":"IF(TRIM(O112)=\"\", \"\", IF(VLOOKUP(O112,'Footnotes list'!$D$9:$E$58,2,FALSE)=0,\"\",VLOOKUP(O112,'Footnotes list'!$D$9:$E$58,2,FALSE) ) )","v":""},null,null,null,null,{"$f":"IF(TRIM(T112)=\"\", \"\", IF(VLOOKUP(T112,'Footnotes list'!$D$9:$E$58,2,FALSE)=0,\"\",VLOOKUP(T112,'Footnotes list'!$D$9:$E$58,2,FALSE) ) )","v":""},null,null,null,null,{"$f":"IF(TRIM(Y112)=\"\", \"\", IF(VLOOKUP(Y112,'Footnotes list'!$D$9:$E$58,2,FALSE)=0,\"\",VLOOKUP(Y112,'Footnotes list'!$D$9:$E$58,2,FALSE) ) )","v":""},null,null,null,null,{"$f":"IF(TRIM(AD112)=\"\", \"\", IF(VLOOKUP(AD112,'Footnotes list'!$D$9:$E$58,2,FALSE)=0,\"\",VLOOKUP(AD112,'Footnotes list'!$D$9:$E$58,2,FALSE) ) )","v":""},null,null,null,null,{"$f":"IF(TRIM(AI112)=\"\", \"\", IF(VLOOKUP(AI112,'Footnotes list'!$D$9:$E$58,2,FALSE)=0,\"\",VLOOKUP(AI112,'Footnotes list'!$D$9:$E$58,2,FALSE) ) )","v":""},null,null,null,null,{"$f":"IF(TRIM(AN112)=\"\", \"\", IF(VLOOKUP(AN112,'Footnotes list'!$D$9:$E$58,2,FALSE)=0,\"\",VLOOKUP(AN112,'Footnotes list'!$D$9:$E$58,2,FALSE) ) )","v":""},null,null,null,null,{"$f":"IF(TRIM(AS112)=\"\", \"\", IF(VLOOKUP(AS112,'Footnotes list'!$D$9:$E$58,2,FALSE)=0,\"\",VLOOKUP(AS112,'Footnotes list'!$D$9:$E$58,2,FALSE) ) )","v":""},null,null,null,null,{"$f":"IF(TRIM(AX112)=\"\", \"\", IF(VLOOKUP(AX112,'Footnotes list'!$D$9:$E$58,2,FALSE)=0,\"\",VLOOKUP(AX112,'Footnotes list'!$D$9:$E$58,2,FALSE) ) )","v":""},null,null,null,null,{"$f":"IF(TRIM(BC112)=\"\", \"\", IF(VLOOKUP(BC112,'Footnotes list'!$D$9:$E$58,2,FALSE)=0,\"\",VLOOKUP(BC112,'Footnotes list'!$D$9:$E$58,2,FALSE) ) )","v":""},null,null,null,null,{"$f":"IF(TRIM(BH112)=\"\", \"\", IF(VLOOKUP(BH112,'Footnotes list'!$D$9:$E$58,2,FALSE)=0,\"\",VLOOKUP(BH112,'Footnotes list'!$D$9:$E$58,2,FALSE) ) )","v":""},null,null,null,null,{"$f":"IF(TRIM(BM112)=\"\", \"\", IF(VLOOKUP(BM112,'Footnotes list'!$D$9:$E$58,2,FALSE)=0,\"\",VLOOKUP(BM112,'Footnotes list'!$D$9:$E$58,2,FALSE) ) )","v":""},null,null,null,null,{"$f":"IF(TRIM(BR112)=\"\", \"\", IF(VLOOKUP(BR112,'Footnotes list'!$D$9:$E$58,2,FALSE)=0,\"\",VLOOKUP(BR112,'Footnotes list'!$D$9:$E$58,2,FALSE) ) )","v":""},null,null,null,null,{"$f":"IF(TRIM(BW112)=\"\", \"\", IF(VLOOKUP(BW112,'Footnotes list'!$D$9:$E$58,2,FALSE)=0,\"\",VLOOKUP(BW112,'Footnotes list'!$D$9:$E$58,2,FALSE) ) )","v":""},null,null,null,null,{"$f":"IF(TRIM(CB112)=\"\", \"\", IF(VLOOKUP(CB112,'Footnotes list'!$D$9:$E$58,2,FALSE)=0,\"\",VLOOKUP(CB112,'Footnotes list'!$D$9:$E$58,2,FALSE) ) )","v":""},null,null,null,null,{"$f":"IF(TRIM(CG112)=\"\", \"\", IF(VLOOKUP(CG112,'Footnotes list'!$D$9:$E$58,2,FALSE)=0,\"\",VLOOKUP(CG112,'Footnotes list'!$D$9:$E$58,2,FALSE) ) )","v":""},null,null,null,null,{"$f":"IF(TRIM(CL112)=\"\", \"\", IF(VLOOKUP(CL112,'Footnotes list'!$D$9:$E$58,2,FALSE)=0,\"\",VLOOKUP(CL112,'Footnotes list'!$D$9:$E$58,2,FALSE) ) )","v":""},null,null,null,null,{"$f":"IF(TRIM(CQ112)=\"\", \"\", IF(VLOOKUP(CQ112,'Footnotes list'!$D$9:$E$58,2,FALSE)=0,\"\",VLOOKUP(CQ112,'Footnotes list'!$D$9:$E$58,2,FALSE) ) )","v":""},null,null,null,null,{"$f":"IF(TRIM(CV112)=\"\", \"\", IF(VLOOKUP(CV112,'Footnotes list'!$D$9:$E$58,2,FALSE)=0,\"\",VLOOKUP(CV112,'Footnotes list'!$D$9:$E$58,2,FALSE) ) )","v":""},null,null,null,null,{"$f":"IF(TRIM(DA112)=\"\", \"\", IF(VLOOKUP(DA112,'Footnotes list'!$D$9:$E$58,2,FALSE)=0,\"\",VLOOKUP(DA112,'Footnotes list'!$D$9:$E$58,2,FALSE) ) )","v":""},null,null,null,null,{"$f":"IF(TRIM(DF112)=\"\", \"\", IF(VLOOKUP(DF112,'Footnotes list'!$D$9:$E$58,2,FALSE)=0,\"\",VLOOKUP(DF112,'Footnotes list'!$D$9:$E$58,2,FALSE) ) )","v":""},null,null,null,null,{"$f":"IF(TRIM(DK112)=\"\", \"\", IF(VLOOKUP(DK112,'Footnotes list'!$D$9:$E$58,2,FALSE)=0,\"\",VLOOKUP(DK112,'Footnotes list'!$D$9:$E$58,2,FALSE) ) )","v":""},null,null,null,null,{"$f":"IF(TRIM(DP112)=\"\", \"\", IF(VLOOKUP(DP112,'Footnotes list'!$D$9:$E$58,2,FALSE)=0,\"\",VLOOKUP(DP112,'Footnotes list'!$D$9:$E$58,2,FALSE) ) )","v":""},null,null,null,null,{"$f":"IF(TRIM(DU112)=\"\", \"\", IF(VLOOKUP(DU112,'Footnotes list'!$D$9:$E$58,2,FALSE)=0,\"\",VLOOKUP(DU112,'Footnotes list'!$D$9:$E$58,2,FALSE) ) )","v":""},null,null,null,null,{"$f":"IF(TRIM(DZ112)=\"\", \"\", IF(VLOOKUP(DZ112,'Footnotes list'!$D$9:$E$58,2,FALSE)=0,\"\",VLOOKUP(DZ112,'Footnotes list'!$D$9:$E$58,2,FALSE) ) )","v":""},null,null,null,null,{"$f":"IF(TRIM(EE112)=\"\", \"\", IF(VLOOKUP(EE112,'Footnotes list'!$D$9:$E$58,2,FALSE)=0,\"\",VLOOKUP(EE112,'Footnotes list'!$D$9:$E$58,2,FALSE) ) )","v":""},null,null,null,null,{"$f":"IF(TRIM(EJ112)=\"\", \"\", IF(VLOOKUP(EJ112,'Footnotes list'!$D$9:$E$58,2,FALSE)=0,\"\",VLOOKUP(EJ112,'Footnotes list'!$D$9:$E$58,2,FALSE) ) )","v":""},null,null,null,null,{"$f":"IF(TRIM(EO112)=\"\", \"\", IF(VLOOKUP(EO112,'Footnotes list'!$D$9:$E$58,2,FALSE)=0,\"\",VLOOKUP(EO112,'Footnotes list'!$D$9:$E$58,2,FALSE) ) )","v":""},null,null,null,null,{"$f":"IF(TRIM(ET112)=\"\", \"\", IF(VLOOKUP(ET112,'Footnotes list'!$D$9:$E$58,2,FALSE)=0,\"\",VLOOKUP(ET112,'Footnotes list'!$D$9:$E$58,2,FALSE) ) )","v":""},null,null,null,null,{"$f":"IF(TRIM(EY112)=\"\", \"\", IF(VLOOKUP(EY112,'Footnotes list'!$D$9:$E$58,2,FALSE)=0,\"\",VLOOKUP(EY112,'Footnotes list'!$D$9:$E$58,2,FALSE) ) )","v":""}]
[null,null,"C29_C30","TOT_EGSS","Total C29 - C30 Manufacture of transport equipment, of which:",null,null,null,null,null,{"$f":"IF(TRIM(J113)=\"\", \"\", IF(VLOOKUP(J113,'Footnotes list'!$D$9:$E$58,2,FALSE)=0,\"\",VLOOKUP(J113,'Footnotes list'!$D$9:$E$58,2,FALSE) ) )","v":""},null,null,null,null,{"$f":"IF(TRIM(O113)=\"\", \"\", IF(VLOOKUP(O113,'Footnotes list'!$D$9:$E$58,2,FALSE)=0,\"\",VLOOKUP(O113,'Footnotes list'!$D$9:$E$58,2,FALSE) ) )","v":""},null,null,null,null,{"$f":"IF(TRIM(T113)=\"\", \"\", IF(VLOOKUP(T113,'Footnotes list'!$D$9:$E$58,2,FALSE)=0,\"\",VLOOKUP(T113,'Footnotes list'!$D$9:$E$58,2,FALSE) ) )","v":""},null,null,null,null,{"$f":"IF(TRIM(Y113)=\"\", \"\", IF(VLOOKUP(Y113,'Footnotes list'!$D$9:$E$58,2,FALSE)=0,\"\",VLOOKUP(Y113,'Footnotes list'!$D$9:$E$58,2,FALSE) ) )","v":""},null,null,null,null,{"$f":"IF(TRIM(AD113)=\"\", \"\", IF(VLOOKUP(AD113,'Footnotes list'!$D$9:$E$58,2,FALSE)=0,\"\",VLOOKUP(AD113,'Footnotes list'!$D$9:$E$58,2,FALSE) ) )","v":""},null,null,null,null,{"$f":"IF(TRIM(AI113)=\"\", \"\", IF(VLOOKUP(AI113,'Footnotes list'!$D$9:$E$58,2,FALSE)=0,\"\",VLOOKUP(AI113,'Footnotes list'!$D$9:$E$58,2,FALSE) ) )","v":""},null,null,null,null,{"$f":"IF(TRIM(AN113)=\"\", \"\", IF(VLOOKUP(AN113,'Footnotes list'!$D$9:$E$58,2,FALSE)=0,\"\",VLOOKUP(AN113,'Footnotes list'!$D$9:$E$58,2,FALSE) ) )","v":""},null,null,null,null,{"$f":"IF(TRIM(AS113)=\"\", \"\", IF(VLOOKUP(AS113,'Footnotes list'!$D$9:$E$58,2,FALSE)=0,\"\",VLOOKUP(AS113,'Footnotes list'!$D$9:$E$58,2,FALSE) ) )","v":""},null,null,null,null,{"$f":"IF(TRIM(AX113)=\"\", \"\", IF(VLOOKUP(AX113,'Footnotes list'!$D$9:$E$58,2,FALSE)=0,\"\",VLOOKUP(AX113,'Footnotes list'!$D$9:$E$58,2,FALSE) ) )","v":""},null,null,null,null,{"$f":"IF(TRIM(BC113)=\"\", \"\", IF(VLOOKUP(BC113,'Footnotes list'!$D$9:$E$58,2,FALSE)=0,\"\",VLOOKUP(BC113,'Footnotes list'!$D$9:$E$58,2,FALSE) ) )","v":""},null,null,null,null,{"$f":"IF(TRIM(BH113)=\"\", \"\", IF(VLOOKUP(BH113,'Footnotes list'!$D$9:$E$58,2,FALSE)=0,\"\",VLOOKUP(BH113,'Footnotes list'!$D$9:$E$58,2,FALSE) ) )","v":""},null,null,null,null,{"$f":"IF(TRIM(BM113)=\"\", \"\", IF(VLOOKUP(BM113,'Footnotes list'!$D$9:$E$58,2,FALSE)=0,\"\",VLOOKUP(BM113,'Footnotes list'!$D$9:$E$58,2,FALSE) ) )","v":""},null,null,null,null,{"$f":"IF(TRIM(BR113)=\"\", \"\", IF(VLOOKUP(BR113,'Footnotes list'!$D$9:$E$58,2,FALSE)=0,\"\",VLOOKUP(BR113,'Footnotes list'!$D$9:$E$58,2,FALSE) ) )","v":""},null,null,null,null,{"$f":"IF(TRIM(BW113)=\"\", \"\", IF(VLOOKUP(BW113,'Footnotes list'!$D$9:$E$58,2,FALSE)=0,\"\",VLOOKUP(BW113,'Footnotes list'!$D$9:$E$58,2,FALSE) ) )","v":""},null,null,null,null,{"$f":"IF(TRIM(CB113)=\"\", \"\", IF(VLOOKUP(CB113,'Footnotes list'!$D$9:$E$58,2,FALSE)=0,\"\",VLOOKUP(CB113,'Footnotes list'!$D$9:$E$58,2,FALSE) ) )","v":""},null,null,null,null,{"$f":"IF(TRIM(CG113)=\"\", \"\", IF(VLOOKUP(CG113,'Footnotes list'!$D$9:$E$58,2,FALSE)=0,\"\",VLOOKUP(CG113,'Footnotes list'!$D$9:$E$58,2,FALSE) ) )","v":""},null,null,null,null,{"$f":"IF(TRIM(CL113)=\"\", \"\", IF(VLOOKUP(CL113,'Footnotes list'!$D$9:$E$58,2,FALSE)=0,\"\",VLOOKUP(CL113,'Footnotes list'!$D$9:$E$58,2,FALSE) ) )","v":""},null,null,null,null,{"$f":"IF(TRIM(CQ113)=\"\", \"\", IF(VLOOKUP(CQ113,'Footnotes list'!$D$9:$E$58,2,FALSE)=0,\"\",VLOOKUP(CQ113,'Footnotes list'!$D$9:$E$58,2,FALSE) ) )","v":""},null,null,null,null,{"$f":"IF(TRIM(CV113)=\"\", \"\", IF(VLOOKUP(CV113,'Footnotes list'!$D$9:$E$58,2,FALSE)=0,\"\",VLOOKUP(CV113,'Footnotes list'!$D$9:$E$58,2,FALSE) ) )","v":""},null,null,null,null,{"$f":"IF(TRIM(DA113)=\"\", \"\", IF(VLOOKUP(DA113,'Footnotes list'!$D$9:$E$58,2,FALSE)=0,\"\",VLOOKUP(DA113,'Footnotes list'!$D$9:$E$58,2,FALSE) ) )","v":""},null,null,null,null,{"$f":"IF(TRIM(DF113)=\"\", \"\", IF(VLOOKUP(DF113,'Footnotes list'!$D$9:$E$58,2,FALSE)=0,\"\",VLOOKUP(DF113,'Footnotes list'!$D$9:$E$58,2,FALSE) ) )","v":""},null,null,null,null,{"$f":"IF(TRIM(DK113)=\"\", \"\", IF(VLOOKUP(DK113,'Footnotes list'!$D$9:$E$58,2,FALSE)=0,\"\",VLOOKUP(DK113,'Footnotes list'!$D$9:$E$58,2,FALSE) ) )","v":""},null,null,null,null,{"$f":"IF(TRIM(DP113)=\"\", \"\", IF(VLOOKUP(DP113,'Footnotes list'!$D$9:$E$58,2,FALSE)=0,\"\",VLOOKUP(DP113,'Footnotes list'!$D$9:$E$58,2,FALSE) ) )","v":""},null,null,null,null,{"$f":"IF(TRIM(DU113)=\"\", \"\", IF(VLOOKUP(DU113,'Footnotes list'!$D$9:$E$58,2,FALSE)=0,\"\",VLOOKUP(DU113,'Footnotes list'!$D$9:$E$58,2,FALSE) ) )","v":""},null,null,null,null,{"$f":"IF(TRIM(DZ113)=\"\", \"\", IF(VLOOKUP(DZ113,'Footnotes list'!$D$9:$E$58,2,FALSE)=0,\"\",VLOOKUP(DZ113,'Footnotes list'!$D$9:$E$58,2,FALSE) ) )","v":""},null,null,null,null,{"$f":"IF(TRIM(EE113)=\"\", \"\", IF(VLOOKUP(EE113,'Footnotes list'!$D$9:$E$58,2,FALSE)=0,\"\",VLOOKUP(EE113,'Footnotes list'!$D$9:$E$58,2,FALSE) ) )","v":""},null,null,null,null,{"$f":"IF(TRIM(EJ113)=\"\", \"\", IF(VLOOKUP(EJ113,'Footnotes list'!$D$9:$E$58,2,FALSE)=0,\"\",VLOOKUP(EJ113,'Footnotes list'!$D$9:$E$58,2,FALSE) ) )","v":""},null,null,null,null,{"$f":"IF(TRIM(EO113)=\"\", \"\", IF(VLOOKUP(EO113,'Footnotes list'!$D$9:$E$58,2,FALSE)=0,\"\",VLOOKUP(EO113,'Footnotes list'!$D$9:$E$58,2,FALSE) ) )","v":""},null,null,null,null,{"$f":"IF(TRIM(ET113)=\"\", \"\", IF(VLOOKUP(ET113,'Footnotes list'!$D$9:$E$58,2,FALSE)=0,\"\",VLOOKUP(ET113,'Footnotes list'!$D$9:$E$58,2,FALSE) ) )","v":""},null,null,null,null,{"$f":"IF(TRIM(EY113)=\"\", \"\", IF(VLOOKUP(EY113,'Footnotes list'!$D$9:$E$58,2,FALSE)=0,\"\",VLOOKUP(EY113,'Footnotes list'!$D$9:$E$58,2,FALSE) ) )","v":""}]
[null,null,"C29_C30","ANC","ancillary activities",null,null,null,null,null,{"$f":"IF(TRIM(J114)=\"\", \"\", IF(VLOOKUP(J114,'Footnotes list'!$D$9:$E$58,2,FALSE)=0,\"\",VLOOKUP(J114,'Footnotes list'!$D$9:$E$58,2,FALSE) ) )","v":""},null,null,null,null,{"$f":"IF(TRIM(O114)=\"\", \"\", IF(VLOOKUP(O114,'Footnotes list'!$D$9:$E$58,2,FALSE)=0,\"\",VLOOKUP(O114,'Footnotes list'!$D$9:$E$58,2,FALSE) ) )","v":""},null,null,null,null,{"$f":"IF(TRIM(T114)=\"\", \"\", IF(VLOOKUP(T114,'Footnotes list'!$D$9:$E$58,2,FALSE)=0,\"\",VLOOKUP(T114,'Footnotes list'!$D$9:$E$58,2,FALSE) ) )","v":""},null,null,null,null,{"$f":"IF(TRIM(Y114)=\"\", \"\", IF(VLOOKUP(Y114,'Footnotes list'!$D$9:$E$58,2,FALSE)=0,\"\",VLOOKUP(Y114,'Footnotes list'!$D$9:$E$58,2,FALSE) ) )","v":""},null,null,null,null,{"$f":"IF(TRIM(AD114)=\"\", \"\", IF(VLOOKUP(AD114,'Footnotes list'!$D$9:$E$58,2,FALSE)=0,\"\",VLOOKUP(AD114,'Footnotes list'!$D$9:$E$58,2,FALSE) ) )","v":""},null,null,null,null,{"$f":"IF(TRIM(AI114)=\"\", \"\", IF(VLOOKUP(AI114,'Footnotes list'!$D$9:$E$58,2,FALSE)=0,\"\",VLOOKUP(AI114,'Footnotes list'!$D$9:$E$58,2,FALSE) ) )","v":""},null,null,null,null,{"$f":"IF(TRIM(AN114)=\"\", \"\", IF(VLOOKUP(AN114,'Footnotes list'!$D$9:$E$58,2,FALSE)=0,\"\",VLOOKUP(AN114,'Footnotes list'!$D$9:$E$58,2,FALSE) ) )","v":""},null,null,null,null,{"$f":"IF(TRIM(AS114)=\"\", \"\", IF(VLOOKUP(AS114,'Footnotes list'!$D$9:$E$58,2,FALSE)=0,\"\",VLOOKUP(AS114,'Footnotes list'!$D$9:$E$58,2,FALSE) ) )","v":""},null,null,null,null,{"$f":"IF(TRIM(AX114)=\"\", \"\", IF(VLOOKUP(AX114,'Footnotes list'!$D$9:$E$58,2,FALSE)=0,\"\",VLOOKUP(AX114,'Footnotes list'!$D$9:$E$58,2,FALSE) ) )","v":""},null,null,null,null,{"$f":"IF(TRIM(BC114)=\"\", \"\", IF(VLOOKUP(BC114,'Footnotes list'!$D$9:$E$58,2,FALSE)=0,\"\",VLOOKUP(BC114,'Footnotes list'!$D$9:$E$58,2,FALSE) ) )","v":""},null,null,null,null,{"$f":"IF(TRIM(BH114)=\"\", \"\", IF(VLOOKUP(BH114,'Footnotes list'!$D$9:$E$58,2,FALSE)=0,\"\",VLOOKUP(BH114,'Footnotes list'!$D$9:$E$58,2,FALSE) ) )","v":""},null,null,null,null,{"$f":"IF(TRIM(BM114)=\"\", \"\", IF(VLOOKUP(BM114,'Footnotes list'!$D$9:$E$58,2,FALSE)=0,\"\",VLOOKUP(BM114,'Footnotes list'!$D$9:$E$58,2,FALSE) ) )","v":""},null,null,null,null,{"$f":"IF(TRIM(BR114)=\"\", \"\", IF(VLOOKUP(BR114,'Footnotes list'!$D$9:$E$58,2,FALSE)=0,\"\",VLOOKUP(BR114,'Footnotes list'!$D$9:$E$58,2,FALSE) ) )","v":""},null,null,null,null,{"$f":"IF(TRIM(BW114)=\"\", \"\", IF(VLOOKUP(BW114,'Footnotes list'!$D$9:$E$58,2,FALSE)=0,\"\",VLOOKUP(BW114,'Footnotes list'!$D$9:$E$58,2,FALSE) ) )","v":""},null,null,null,null,{"$f":"IF(TRIM(CB114)=\"\", \"\", IF(VLOOKUP(CB114,'Footnotes list'!$D$9:$E$58,2,FALSE)=0,\"\",VLOOKUP(CB114,'Footnotes list'!$D$9:$E$58,2,FALSE) ) )","v":""},null,null,null,null,{"$f":"IF(TRIM(CG114)=\"\", \"\", IF(VLOOKUP(CG114,'Footnotes list'!$D$9:$E$58,2,FALSE)=0,\"\",VLOOKUP(CG114,'Footnotes list'!$D$9:$E$58,2,FALSE) ) )","v":""},null,null,null,null,{"$f":"IF(TRIM(CL114)=\"\", \"\", IF(VLOOKUP(CL114,'Footnotes list'!$D$9:$E$58,2,FALSE)=0,\"\",VLOOKUP(CL114,'Footnotes list'!$D$9:$E$58,2,FALSE) ) )","v":""},null,null,null,null,{"$f":"IF(TRIM(CQ114)=\"\", \"\", IF(VLOOKUP(CQ114,'Footnotes list'!$D$9:$E$58,2,FALSE)=0,\"\",VLOOKUP(CQ114,'Footnotes list'!$D$9:$E$58,2,FALSE) ) )","v":""},null,null,null,null,{"$f":"IF(TRIM(CV114)=\"\", \"\", IF(VLOOKUP(CV114,'Footnotes list'!$D$9:$E$58,2,FALSE)=0,\"\",VLOOKUP(CV114,'Footnotes list'!$D$9:$E$58,2,FALSE) ) )","v":""},null,null,null,null,{"$f":"IF(TRIM(DA114)=\"\", \"\", IF(VLOOKUP(DA114,'Footnotes list'!$D$9:$E$58,2,FALSE)=0,\"\",VLOOKUP(DA114,'Footnotes list'!$D$9:$E$58,2,FALSE) ) )","v":""},null,null,null,null,{"$f":"IF(TRIM(DF114)=\"\", \"\", IF(VLOOKUP(DF114,'Footnotes list'!$D$9:$E$58,2,FALSE)=0,\"\",VLOOKUP(DF114,'Footnotes list'!$D$9:$E$58,2,FALSE) ) )","v":""},null,null,null,null,{"$f":"IF(TRIM(DK114)=\"\", \"\", IF(VLOOKUP(DK114,'Footnotes list'!$D$9:$E$58,2,FALSE)=0,\"\",VLOOKUP(DK114,'Footnotes list'!$D$9:$E$58,2,FALSE) ) )","v":""},null,null,null,null,{"$f":"IF(TRIM(DP114)=\"\", \"\", IF(VLOOKUP(DP114,'Footnotes list'!$D$9:$E$58,2,FALSE)=0,\"\",VLOOKUP(DP114,'Footnotes list'!$D$9:$E$58,2,FALSE) ) )","v":""},null,null,null,null,{"$f":"IF(TRIM(DU114)=\"\", \"\", IF(VLOOKUP(DU114,'Footnotes list'!$D$9:$E$58,2,FALSE)=0,\"\",VLOOKUP(DU114,'Footnotes list'!$D$9:$E$58,2,FALSE) ) )","v":""},null,null,null,null,{"$f":"IF(TRIM(DZ114)=\"\", \"\", IF(VLOOKUP(DZ114,'Footnotes list'!$D$9:$E$58,2,FALSE)=0,\"\",VLOOKUP(DZ114,'Footnotes list'!$D$9:$E$58,2,FALSE) ) )","v":""},null,null,null,null,{"$f":"IF(TRIM(EE114)=\"\", \"\", IF(VLOOKUP(EE114,'Footnotes list'!$D$9:$E$58,2,FALSE)=0,\"\",VLOOKUP(EE114,'Footnotes list'!$D$9:$E$58,2,FALSE) ) )","v":""},null,null,null,null,{"$f":"IF(TRIM(EJ114)=\"\", \"\", IF(VLOOKUP(EJ114,'Footnotes list'!$D$9:$E$58,2,FALSE)=0,\"\",VLOOKUP(EJ114,'Footnotes list'!$D$9:$E$58,2,FALSE) ) )","v":""},null,null,null,null,{"$f":"IF(TRIM(EO114)=\"\", \"\", IF(VLOOKUP(EO114,'Footnotes list'!$D$9:$E$58,2,FALSE)=0,\"\",VLOOKUP(EO114,'Footnotes list'!$D$9:$E$58,2,FALSE) ) )","v":""},null,null,null,null,{"$f":"IF(TRIM(ET114)=\"\", \"\", IF(VLOOKUP(ET114,'Footnotes list'!$D$9:$E$58,2,FALSE)=0,\"\",VLOOKUP(ET114,'Footnotes list'!$D$9:$E$58,2,FALSE) ) )","v":""},null,null,null,null,{"$f":"IF(TRIM(EY114)=\"\", \"\", IF(VLOOKUP(EY114,'Footnotes list'!$D$9:$E$58,2,FALSE)=0,\"\",VLOOKUP(EY114,'Footnotes list'!$D$9:$E$58,2,FALSE) ) )","v":""}]
[null,null,"C29_C30","NMKT","non-market activities",null,null,null,null,null,{"$f":"IF(TRIM(J115)=\"\", \"\", IF(VLOOKUP(J115,'Footnotes list'!$D$9:$E$58,2,FALSE)=0,\"\",VLOOKUP(J115,'Footnotes list'!$D$9:$E$58,2,FALSE) ) )","v":""},null,null,null,null,{"$f":"IF(TRIM(O115)=\"\", \"\", IF(VLOOKUP(O115,'Footnotes list'!$D$9:$E$58,2,FALSE)=0,\"\",VLOOKUP(O115,'Footnotes list'!$D$9:$E$58,2,FALSE) ) )","v":""},null,null,null,null,{"$f":"IF(TRIM(T115)=\"\", \"\", IF(VLOOKUP(T115,'Footnotes list'!$D$9:$E$58,2,FALSE)=0,\"\",VLOOKUP(T115,'Footnotes list'!$D$9:$E$58,2,FALSE) ) )","v":""},null,null,null,null,{"$f":"IF(TRIM(Y115)=\"\", \"\", IF(VLOOKUP(Y115,'Footnotes list'!$D$9:$E$58,2,FALSE)=0,\"\",VLOOKUP(Y115,'Footnotes list'!$D$9:$E$58,2,FALSE) ) )","v":""},null,null,null,null,{"$f":"IF(TRIM(AD115)=\"\", \"\", IF(VLOOKUP(AD115,'Footnotes list'!$D$9:$E$58,2,FALSE)=0,\"\",VLOOKUP(AD115,'Footnotes list'!$D$9:$E$58,2,FALSE) ) )","v":""},null,null,null,null,{"$f":"IF(TRIM(AI115)=\"\", \"\", IF(VLOOKUP(AI115,'Footnotes list'!$D$9:$E$58,2,FALSE)=0,\"\",VLOOKUP(AI115,'Footnotes list'!$D$9:$E$58,2,FALSE) ) )","v":""},null,null,null,null,{"$f":"IF(TRIM(AN115)=\"\", \"\", IF(VLOOKUP(AN115,'Footnotes list'!$D$9:$E$58,2,FALSE)=0,\"\",VLOOKUP(AN115,'Footnotes list'!$D$9:$E$58,2,FALSE) ) )","v":""},null,null,null,null,{"$f":"IF(TRIM(AS115)=\"\", \"\", IF(VLOOKUP(AS115,'Footnotes list'!$D$9:$E$58,2,FALSE)=0,\"\",VLOOKUP(AS115,'Footnotes list'!$D$9:$E$58,2,FALSE) ) )","v":""},null,null,null,null,{"$f":"IF(TRIM(AX115)=\"\", \"\", IF(VLOOKUP(AX115,'Footnotes list'!$D$9:$E$58,2,FALSE)=0,\"\",VLOOKUP(AX115,'Footnotes list'!$D$9:$E$58,2,FALSE) ) )","v":""},null,null,null,null,{"$f":"IF(TRIM(BC115)=\"\", \"\", IF(VLOOKUP(BC115,'Footnotes list'!$D$9:$E$58,2,FALSE)=0,\"\",VLOOKUP(BC115,'Footnotes list'!$D$9:$E$58,2,FALSE) ) )","v":""},null,null,null,null,{"$f":"IF(TRIM(BH115)=\"\", \"\", IF(VLOOKUP(BH115,'Footnotes list'!$D$9:$E$58,2,FALSE)=0,\"\",VLOOKUP(BH115,'Footnotes list'!$D$9:$E$58,2,FALSE) ) )","v":""},null,null,null,null,{"$f":"IF(TRIM(BM115)=\"\", \"\", IF(VLOOKUP(BM115,'Footnotes list'!$D$9:$E$58,2,FALSE)=0,\"\",VLOOKUP(BM115,'Footnotes list'!$D$9:$E$58,2,FALSE) ) )","v":""},null,null,null,null,{"$f":"IF(TRIM(BR115)=\"\", \"\", IF(VLOOKUP(BR115,'Footnotes list'!$D$9:$E$58,2,FALSE)=0,\"\",VLOOKUP(BR115,'Footnotes list'!$D$9:$E$58,2,FALSE) ) )","v":""},null,null,null,null,{"$f":"IF(TRIM(BW115)=\"\", \"\", IF(VLOOKUP(BW115,'Footnotes list'!$D$9:$E$58,2,FALSE)=0,\"\",VLOOKUP(BW115,'Footnotes list'!$D$9:$E$58,2,FALSE) ) )","v":""},null,null,null,null,{"$f":"IF(TRIM(CB115)=\"\", \"\", IF(VLOOKUP(CB115,'Footnotes list'!$D$9:$E$58,2,FALSE)=0,\"\",VLOOKUP(CB115,'Footnotes list'!$D$9:$E$58,2,FALSE) ) )","v":""},null,null,null,null,{"$f":"IF(TRIM(CG115)=\"\", \"\", IF(VLOOKUP(CG115,'Footnotes list'!$D$9:$E$58,2,FALSE)=0,\"\",VLOOKUP(CG115,'Footnotes list'!$D$9:$E$58,2,FALSE) ) )","v":""},null,null,null,null,{"$f":"IF(TRIM(CL115)=\"\", \"\", IF(VLOOKUP(CL115,'Footnotes list'!$D$9:$E$58,2,FALSE)=0,\"\",VLOOKUP(CL115,'Footnotes list'!$D$9:$E$58,2,FALSE) ) )","v":""},null,null,null,null,{"$f":"IF(TRIM(CQ115)=\"\", \"\", IF(VLOOKUP(CQ115,'Footnotes list'!$D$9:$E$58,2,FALSE)=0,\"\",VLOOKUP(CQ115,'Footnotes list'!$D$9:$E$58,2,FALSE) ) )","v":""},null,null,null,null,{"$f":"IF(TRIM(CV115)=\"\", \"\", IF(VLOOKUP(CV115,'Footnotes list'!$D$9:$E$58,2,FALSE)=0,\"\",VLOOKUP(CV115,'Footnotes list'!$D$9:$E$58,2,FALSE) ) )","v":""},null,null,null,null,{"$f":"IF(TRIM(DA115)=\"\", \"\", IF(VLOOKUP(DA115,'Footnotes list'!$D$9:$E$58,2,FALSE)=0,\"\",VLOOKUP(DA115,'Footnotes list'!$D$9:$E$58,2,FALSE) ) )","v":""},null,null,null,null,{"$f":"IF(TRIM(DF115)=\"\", \"\", IF(VLOOKUP(DF115,'Footnotes list'!$D$9:$E$58,2,FALSE)=0,\"\",VLOOKUP(DF115,'Footnotes list'!$D$9:$E$58,2,FALSE) ) )","v":""},null,null,null,null,{"$f":"IF(TRIM(DK115)=\"\", \"\", IF(VLOOKUP(DK115,'Footnotes list'!$D$9:$E$58,2,FALSE)=0,\"\",VLOOKUP(DK115,'Footnotes list'!$D$9:$E$58,2,FALSE) ) )","v":""},null,null,null,null,{"$f":"IF(TRIM(DP115)=\"\", \"\", IF(VLOOKUP(DP115,'Footnotes list'!$D$9:$E$58,2,FALSE)=0,\"\",VLOOKUP(DP115,'Footnotes list'!$D$9:$E$58,2,FALSE) ) )","v":""},null,null,null,null,{"$f":"IF(TRIM(DU115)=\"\", \"\", IF(VLOOKUP(DU115,'Footnotes list'!$D$9:$E$58,2,FALSE)=0,\"\",VLOOKUP(DU115,'Footnotes list'!$D$9:$E$58,2,FALSE) ) )","v":""},null,null,null,null,{"$f":"IF(TRIM(DZ115)=\"\", \"\", IF(VLOOKUP(DZ115,'Footnotes list'!$D$9:$E$58,2,FALSE)=0,\"\",VLOOKUP(DZ115,'Footnotes list'!$D$9:$E$58,2,FALSE) ) )","v":""},null,null,null,null,{"$f":"IF(TRIM(EE115)=\"\", \"\", IF(VLOOKUP(EE115,'Footnotes list'!$D$9:$E$58,2,FALSE)=0,\"\",VLOOKUP(EE115,'Footnotes list'!$D$9:$E$58,2,FALSE) ) )","v":""},null,null,null,null,{"$f":"IF(TRIM(EJ115)=\"\", \"\", IF(VLOOKUP(EJ115,'Footnotes list'!$D$9:$E$58,2,FALSE)=0,\"\",VLOOKUP(EJ115,'Footnotes list'!$D$9:$E$58,2,FALSE) ) )","v":""},null,null,null,null,{"$f":"IF(TRIM(EO115)=\"\", \"\", IF(VLOOKUP(EO115,'Footnotes list'!$D$9:$E$58,2,FALSE)=0,\"\",VLOOKUP(EO115,'Footnotes list'!$D$9:$E$58,2,FALSE) ) )","v":""},null,null,null,null,{"$f":"IF(TRIM(ET115)=\"\", \"\", IF(VLOOKUP(ET115,'Footnotes list'!$D$9:$E$58,2,FALSE)=0,\"\",VLOOKUP(ET115,'Footnotes list'!$D$9:$E$58,2,FALSE) ) )","v":""},null,null,null,null,{"$f":"IF(TRIM(EY115)=\"\", \"\", IF(VLOOKUP(EY115,'Footnotes list'!$D$9:$E$58,2,FALSE)=0,\"\",VLOOKUP(EY115,'Footnotes list'!$D$9:$E$58,2,FALSE) ) )","v":""}]
[null,null,"C29_C30","OWN_USE","activities for own final use",null,null,null,null,null,{"$f":"IF(TRIM(J116)=\"\", \"\", IF(VLOOKUP(J116,'Footnotes list'!$D$9:$E$58,2,FALSE)=0,\"\",VLOOKUP(J116,'Footnotes list'!$D$9:$E$58,2,FALSE) ) )","v":""},null,null,null,null,{"$f":"IF(TRIM(O116)=\"\", \"\", IF(VLOOKUP(O116,'Footnotes list'!$D$9:$E$58,2,FALSE)=0,\"\",VLOOKUP(O116,'Footnotes list'!$D$9:$E$58,2,FALSE) ) )","v":""},null,null,null,null,{"$f":"IF(TRIM(T116)=\"\", \"\", IF(VLOOKUP(T116,'Footnotes list'!$D$9:$E$58,2,FALSE)=0,\"\",VLOOKUP(T116,'Footnotes list'!$D$9:$E$58,2,FALSE) ) )","v":""},null,null,null,null,{"$f":"IF(TRIM(Y116)=\"\", \"\", IF(VLOOKUP(Y116,'Footnotes list'!$D$9:$E$58,2,FALSE)=0,\"\",VLOOKUP(Y116,'Footnotes list'!$D$9:$E$58,2,FALSE) ) )","v":""},null,null,null,null,{"$f":"IF(TRIM(AD116)=\"\", \"\", IF(VLOOKUP(AD116,'Footnotes list'!$D$9:$E$58,2,FALSE)=0,\"\",VLOOKUP(AD116,'Footnotes list'!$D$9:$E$58,2,FALSE) ) )","v":""},null,null,null,null,{"$f":"IF(TRIM(AI116)=\"\", \"\", IF(VLOOKUP(AI116,'Footnotes list'!$D$9:$E$58,2,FALSE)=0,\"\",VLOOKUP(AI116,'Footnotes list'!$D$9:$E$58,2,FALSE) ) )","v":""},null,null,null,null,{"$f":"IF(TRIM(AN116)=\"\", \"\", IF(VLOOKUP(AN116,'Footnotes list'!$D$9:$E$58,2,FALSE)=0,\"\",VLOOKUP(AN116,'Footnotes list'!$D$9:$E$58,2,FALSE) ) )","v":""},null,null,null,null,{"$f":"IF(TRIM(AS116)=\"\", \"\", IF(VLOOKUP(AS116,'Footnotes list'!$D$9:$E$58,2,FALSE)=0,\"\",VLOOKUP(AS116,'Footnotes list'!$D$9:$E$58,2,FALSE) ) )","v":""},null,null,null,null,{"$f":"IF(TRIM(AX116)=\"\", \"\", IF(VLOOKUP(AX116,'Footnotes list'!$D$9:$E$58,2,FALSE)=0,\"\",VLOOKUP(AX116,'Footnotes list'!$D$9:$E$58,2,FALSE) ) )","v":""},null,null,null,null,{"$f":"IF(TRIM(BC116)=\"\", \"\", IF(VLOOKUP(BC116,'Footnotes list'!$D$9:$E$58,2,FALSE)=0,\"\",VLOOKUP(BC116,'Footnotes list'!$D$9:$E$58,2,FALSE) ) )","v":""},null,null,null,null,{"$f":"IF(TRIM(BH116)=\"\", \"\", IF(VLOOKUP(BH116,'Footnotes list'!$D$9:$E$58,2,FALSE)=0,\"\",VLOOKUP(BH116,'Footnotes list'!$D$9:$E$58,2,FALSE) ) )","v":""},null,null,null,null,{"$f":"IF(TRIM(BM116)=\"\", \"\", IF(VLOOKUP(BM116,'Footnotes list'!$D$9:$E$58,2,FALSE)=0,\"\",VLOOKUP(BM116,'Footnotes list'!$D$9:$E$58,2,FALSE) ) )","v":""},null,null,null,null,{"$f":"IF(TRIM(BR116)=\"\", \"\", IF(VLOOKUP(BR116,'Footnotes list'!$D$9:$E$58,2,FALSE)=0,\"\",VLOOKUP(BR116,'Footnotes list'!$D$9:$E$58,2,FALSE) ) )","v":""},null,null,null,null,{"$f":"IF(TRIM(BW116)=\"\", \"\", IF(VLOOKUP(BW116,'Footnotes list'!$D$9:$E$58,2,FALSE)=0,\"\",VLOOKUP(BW116,'Footnotes list'!$D$9:$E$58,2,FALSE) ) )","v":""},null,null,null,null,{"$f":"IF(TRIM(CB116)=\"\", \"\", IF(VLOOKUP(CB116,'Footnotes list'!$D$9:$E$58,2,FALSE)=0,\"\",VLOOKUP(CB116,'Footnotes list'!$D$9:$E$58,2,FALSE) ) )","v":""},null,null,null,null,{"$f":"IF(TRIM(CG116)=\"\", \"\", IF(VLOOKUP(CG116,'Footnotes list'!$D$9:$E$58,2,FALSE)=0,\"\",VLOOKUP(CG116,'Footnotes list'!$D$9:$E$58,2,FALSE) ) )","v":""},null,null,null,null,{"$f":"IF(TRIM(CL116)=\"\", \"\", IF(VLOOKUP(CL116,'Footnotes list'!$D$9:$E$58,2,FALSE)=0,\"\",VLOOKUP(CL116,'Footnotes list'!$D$9:$E$58,2,FALSE) ) )","v":""},null,null,null,null,{"$f":"IF(TRIM(CQ116)=\"\", \"\", IF(VLOOKUP(CQ116,'Footnotes list'!$D$9:$E$58,2,FALSE)=0,\"\",VLOOKUP(CQ116,'Footnotes list'!$D$9:$E$58,2,FALSE) ) )","v":""},null,null,null,null,{"$f":"IF(TRIM(CV116)=\"\", \"\", IF(VLOOKUP(CV116,'Footnotes list'!$D$9:$E$58,2,FALSE)=0,\"\",VLOOKUP(CV116,'Footnotes list'!$D$9:$E$58,2,FALSE) ) )","v":""},null,null,null,null,{"$f":"IF(TRIM(DA116)=\"\", \"\", IF(VLOOKUP(DA116,'Footnotes list'!$D$9:$E$58,2,FALSE)=0,\"\",VLOOKUP(DA116,'Footnotes list'!$D$9:$E$58,2,FALSE) ) )","v":""},null,null,null,null,{"$f":"IF(TRIM(DF116)=\"\", \"\", IF(VLOOKUP(DF116,'Footnotes list'!$D$9:$E$58,2,FALSE)=0,\"\",VLOOKUP(DF116,'Footnotes list'!$D$9:$E$58,2,FALSE) ) )","v":""},null,null,null,null,{"$f":"IF(TRIM(DK116)=\"\", \"\", IF(VLOOKUP(DK116,'Footnotes list'!$D$9:$E$58,2,FALSE)=0,\"\",VLOOKUP(DK116,'Footnotes list'!$D$9:$E$58,2,FALSE) ) )","v":""},null,null,null,null,{"$f":"IF(TRIM(DP116)=\"\", \"\", IF(VLOOKUP(DP116,'Footnotes list'!$D$9:$E$58,2,FALSE)=0,\"\",VLOOKUP(DP116,'Footnotes list'!$D$9:$E$58,2,FALSE) ) )","v":""},null,null,null,null,{"$f":"IF(TRIM(DU116)=\"\", \"\", IF(VLOOKUP(DU116,'Footnotes list'!$D$9:$E$58,2,FALSE)=0,\"\",VLOOKUP(DU116,'Footnotes list'!$D$9:$E$58,2,FALSE) ) )","v":""},null,null,null,null,{"$f":"IF(TRIM(DZ116)=\"\", \"\", IF(VLOOKUP(DZ116,'Footnotes list'!$D$9:$E$58,2,FALSE)=0,\"\",VLOOKUP(DZ116,'Footnotes list'!$D$9:$E$58,2,FALSE) ) )","v":""},null,null,null,null,{"$f":"IF(TRIM(EE116)=\"\", \"\", IF(VLOOKUP(EE116,'Footnotes list'!$D$9:$E$58,2,FALSE)=0,\"\",VLOOKUP(EE116,'Footnotes list'!$D$9:$E$58,2,FALSE) ) )","v":""},null,null,null,null,{"$f":"IF(TRIM(EJ116)=\"\", \"\", IF(VLOOKUP(EJ116,'Footnotes list'!$D$9:$E$58,2,FALSE)=0,\"\",VLOOKUP(EJ116,'Footnotes list'!$D$9:$E$58,2,FALSE) ) )","v":""},null,null,null,null,{"$f":"IF(TRIM(EO116)=\"\", \"\", IF(VLOOKUP(EO116,'Footnotes list'!$D$9:$E$58,2,FALSE)=0,\"\",VLOOKUP(EO116,'Footnotes list'!$D$9:$E$58,2,FALSE) ) )","v":""},null,null,null,null,{"$f":"IF(TRIM(ET116)=\"\", \"\", IF(VLOOKUP(ET116,'Footnotes list'!$D$9:$E$58,2,FALSE)=0,\"\",VLOOKUP(ET116,'Footnotes list'!$D$9:$E$58,2,FALSE) ) )","v":""},null,null,null,null,{"$f":"IF(TRIM(EY116)=\"\", \"\", IF(VLOOKUP(EY116,'Footnotes list'!$D$9:$E$58,2,FALSE)=0,\"\",VLOOKUP(EY116,'Footnotes list'!$D$9:$E$58,2,FALSE) ) )","v":""}]
[null,null,"C29_C30","MKT","market activities, including:",null,null,null,null,null,{"$f":"IF(TRIM(J117)=\"\", \"\", IF(VLOOKUP(J117,'Footnotes list'!$D$9:$E$58,2,FALSE)=0,\"\",VLOOKUP(J117,'Footnotes list'!$D$9:$E$58,2,FALSE) ) )","v":""},null,null,null,null,{"$f":"IF(TRIM(O117)=\"\", \"\", IF(VLOOKUP(O117,'Footnotes list'!$D$9:$E$58,2,FALSE)=0,\"\",VLOOKUP(O117,'Footnotes list'!$D$9:$E$58,2,FALSE) ) )","v":""},null,null,null,null,{"$f":"IF(TRIM(T117)=\"\", \"\", IF(VLOOKUP(T117,'Footnotes list'!$D$9:$E$58,2,FALSE)=0,\"\",VLOOKUP(T117,'Footnotes list'!$D$9:$E$58,2,FALSE) ) )","v":""},null,null,null,null,{"$f":"IF(TRIM(Y117)=\"\", \"\", IF(VLOOKUP(Y117,'Footnotes list'!$D$9:$E$58,2,FALSE)=0,\"\",VLOOKUP(Y117,'Footnotes list'!$D$9:$E$58,2,FALSE) ) )","v":""},null,null,null,null,{"$f":"IF(TRIM(AD117)=\"\", \"\", IF(VLOOKUP(AD117,'Footnotes list'!$D$9:$E$58,2,FALSE)=0,\"\",VLOOKUP(AD117,'Footnotes list'!$D$9:$E$58,2,FALSE) ) )","v":""},null,null,null,null,{"$f":"IF(TRIM(AI117)=\"\", \"\", IF(VLOOKUP(AI117,'Footnotes list'!$D$9:$E$58,2,FALSE)=0,\"\",VLOOKUP(AI117,'Footnotes list'!$D$9:$E$58,2,FALSE) ) )","v":""},null,null,null,null,{"$f":"IF(TRIM(AN117)=\"\", \"\", IF(VLOOKUP(AN117,'Footnotes list'!$D$9:$E$58,2,FALSE)=0,\"\",VLOOKUP(AN117,'Footnotes list'!$D$9:$E$58,2,FALSE) ) )","v":""},null,null,null,null,{"$f":"IF(TRIM(AS117)=\"\", \"\", IF(VLOOKUP(AS117,'Footnotes list'!$D$9:$E$58,2,FALSE)=0,\"\",VLOOKUP(AS117,'Footnotes list'!$D$9:$E$58,2,FALSE) ) )","v":""},null,null,null,null,{"$f":"IF(TRIM(AX117)=\"\", \"\", IF(VLOOKUP(AX117,'Footnotes list'!$D$9:$E$58,2,FALSE)=0,\"\",VLOOKUP(AX117,'Footnotes list'!$D$9:$E$58,2,FALSE) ) )","v":""},null,null,null,null,{"$f":"IF(TRIM(BC117)=\"\", \"\", IF(VLOOKUP(BC117,'Footnotes list'!$D$9:$E$58,2,FALSE)=0,\"\",VLOOKUP(BC117,'Footnotes list'!$D$9:$E$58,2,FALSE) ) )","v":""},null,null,null,null,{"$f":"IF(TRIM(BH117)=\"\", \"\", IF(VLOOKUP(BH117,'Footnotes list'!$D$9:$E$58,2,FALSE)=0,\"\",VLOOKUP(BH117,'Footnotes list'!$D$9:$E$58,2,FALSE) ) )","v":""},null,null,null,null,{"$f":"IF(TRIM(BM117)=\"\", \"\", IF(VLOOKUP(BM117,'Footnotes list'!$D$9:$E$58,2,FALSE)=0,\"\",VLOOKUP(BM117,'Footnotes list'!$D$9:$E$58,2,FALSE) ) )","v":""},null,null,null,null,{"$f":"IF(TRIM(BR117)=\"\", \"\", IF(VLOOKUP(BR117,'Footnotes list'!$D$9:$E$58,2,FALSE)=0,\"\",VLOOKUP(BR117,'Footnotes list'!$D$9:$E$58,2,FALSE) ) )","v":""},null,null,null,null,{"$f":"IF(TRIM(BW117)=\"\", \"\", IF(VLOOKUP(BW117,'Footnotes list'!$D$9:$E$58,2,FALSE)=0,\"\",VLOOKUP(BW117,'Footnotes list'!$D$9:$E$58,2,FALSE) ) )","v":""},null,null,null,null,{"$f":"IF(TRIM(CB117)=\"\", \"\", IF(VLOOKUP(CB117,'Footnotes list'!$D$9:$E$58,2,FALSE)=0,\"\",VLOOKUP(CB117,'Footnotes list'!$D$9:$E$58,2,FALSE) ) )","v":""},null,null,null,null,{"$f":"IF(TRIM(CG117)=\"\", \"\", IF(VLOOKUP(CG117,'Footnotes list'!$D$9:$E$58,2,FALSE)=0,\"\",VLOOKUP(CG117,'Footnotes list'!$D$9:$E$58,2,FALSE) ) )","v":""},null,null,null,null,{"$f":"IF(TRIM(CL117)=\"\", \"\", IF(VLOOKUP(CL117,'Footnotes list'!$D$9:$E$58,2,FALSE)=0,\"\",VLOOKUP(CL117,'Footnotes list'!$D$9:$E$58,2,FALSE) ) )","v":""},null,null,null,null,{"$f":"IF(TRIM(CQ117)=\"\", \"\", IF(VLOOKUP(CQ117,'Footnotes list'!$D$9:$E$58,2,FALSE)=0,\"\",VLOOKUP(CQ117,'Footnotes list'!$D$9:$E$58,2,FALSE) ) )","v":""},null,null,null,null,{"$f":"IF(TRIM(CV117)=\"\", \"\", IF(VLOOKUP(CV117,'Footnotes list'!$D$9:$E$58,2,FALSE)=0,\"\",VLOOKUP(CV117,'Footnotes list'!$D$9:$E$58,2,FALSE) ) )","v":""},null,null,null,null,{"$f":"IF(TRIM(DA117)=\"\", \"\", IF(VLOOKUP(DA117,'Footnotes list'!$D$9:$E$58,2,FALSE)=0,\"\",VLOOKUP(DA117,'Footnotes list'!$D$9:$E$58,2,FALSE) ) )","v":""},null,null,null,null,{"$f":"IF(TRIM(DF117)=\"\", \"\", IF(VLOOKUP(DF117,'Footnotes list'!$D$9:$E$58,2,FALSE)=0,\"\",VLOOKUP(DF117,'Footnotes list'!$D$9:$E$58,2,FALSE) ) )","v":""},null,null,null,null,{"$f":"IF(TRIM(DK117)=\"\", \"\", IF(VLOOKUP(DK117,'Footnotes list'!$D$9:$E$58,2,FALSE)=0,\"\",VLOOKUP(DK117,'Footnotes list'!$D$9:$E$58,2,FALSE) ) )","v":""},null,null,null,null,{"$f":"IF(TRIM(DP117)=\"\", \"\", IF(VLOOKUP(DP117,'Footnotes list'!$D$9:$E$58,2,FALSE)=0,\"\",VLOOKUP(DP117,'Footnotes list'!$D$9:$E$58,2,FALSE) ) )","v":""},null,null,null,null,{"$f":"IF(TRIM(DU117)=\"\", \"\", IF(VLOOKUP(DU117,'Footnotes list'!$D$9:$E$58,2,FALSE)=0,\"\",VLOOKUP(DU117,'Footnotes list'!$D$9:$E$58,2,FALSE) ) )","v":""},null,null,null,null,{"$f":"IF(TRIM(DZ117)=\"\", \"\", IF(VLOOKUP(DZ117,'Footnotes list'!$D$9:$E$58,2,FALSE)=0,\"\",VLOOKUP(DZ117,'Footnotes list'!$D$9:$E$58,2,FALSE) ) )","v":""},null,null,null,null,{"$f":"IF(TRIM(EE117)=\"\", \"\", IF(VLOOKUP(EE117,'Footnotes list'!$D$9:$E$58,2,FALSE)=0,\"\",VLOOKUP(EE117,'Footnotes list'!$D$9:$E$58,2,FALSE) ) )","v":""},null,null,null,null,{"$f":"IF(TRIM(EJ117)=\"\", \"\", IF(VLOOKUP(EJ117,'Footnotes list'!$D$9:$E$58,2,FALSE)=0,\"\",VLOOKUP(EJ117,'Footnotes list'!$D$9:$E$58,2,FALSE) ) )","v":""},null,null,null,null,{"$f":"IF(TRIM(EO117)=\"\", \"\", IF(VLOOKUP(EO117,'Footnotes list'!$D$9:$E$58,2,FALSE)=0,\"\",VLOOKUP(EO117,'Footnotes list'!$D$9:$E$58,2,FALSE) ) )","v":""},null,null,null,null,{"$f":"IF(TRIM(ET117)=\"\", \"\", IF(VLOOKUP(ET117,'Footnotes list'!$D$9:$E$58,2,FALSE)=0,\"\",VLOOKUP(ET117,'Footnotes list'!$D$9:$E$58,2,FALSE) ) )","v":""},null,null,null,null,{"$f":"IF(TRIM(EY117)=\"\", \"\", IF(VLOOKUP(EY117,'Footnotes list'!$D$9:$E$58,2,FALSE)=0,\"\",VLOOKUP(EY117,'Footnotes list'!$D$9:$E$58,2,FALSE) ) )","v":""}]
[null,null,"C29_C30","ES_CS","environmental specific services",null,null,null,null,null,{"$f":"IF(TRIM(J118)=\"\", \"\", IF(VLOOKUP(J118,'Footnotes list'!$D$9:$E$58,2,FALSE)=0,\"\",VLOOKUP(J118,'Footnotes list'!$D$9:$E$58,2,FALSE) ) )","v":""},null,null,null,null,{"$f":"IF(TRIM(O118)=\"\", \"\", IF(VLOOKUP(O118,'Footnotes list'!$D$9:$E$58,2,FALSE)=0,\"\",VLOOKUP(O118,'Footnotes list'!$D$9:$E$58,2,FALSE) ) )","v":""},null,null,null,null,{"$f":"IF(TRIM(T118)=\"\", \"\", IF(VLOOKUP(T118,'Footnotes list'!$D$9:$E$58,2,FALSE)=0,\"\",VLOOKUP(T118,'Footnotes list'!$D$9:$E$58,2,FALSE) ) )","v":""},null,null,null,null,{"$f":"IF(TRIM(Y118)=\"\", \"\", IF(VLOOKUP(Y118,'Footnotes list'!$D$9:$E$58,2,FALSE)=0,\"\",VLOOKUP(Y118,'Footnotes list'!$D$9:$E$58,2,FALSE) ) )","v":""},null,null,null,null,{"$f":"IF(TRIM(AD118)=\"\", \"\", IF(VLOOKUP(AD118,'Footnotes list'!$D$9:$E$58,2,FALSE)=0,\"\",VLOOKUP(AD118,'Footnotes list'!$D$9:$E$58,2,FALSE) ) )","v":""},null,null,null,null,{"$f":"IF(TRIM(AI118)=\"\", \"\", IF(VLOOKUP(AI118,'Footnotes list'!$D$9:$E$58,2,FALSE)=0,\"\",VLOOKUP(AI118,'Footnotes list'!$D$9:$E$58,2,FALSE) ) )","v":""},null,null,null,null,{"$f":"IF(TRIM(AN118)=\"\", \"\", IF(VLOOKUP(AN118,'Footnotes list'!$D$9:$E$58,2,FALSE)=0,\"\",VLOOKUP(AN118,'Footnotes list'!$D$9:$E$58,2,FALSE) ) )","v":""},null,null,null,null,{"$f":"IF(TRIM(AS118)=\"\", \"\", IF(VLOOKUP(AS118,'Footnotes list'!$D$9:$E$58,2,FALSE)=0,\"\",VLOOKUP(AS118,'Footnotes list'!$D$9:$E$58,2,FALSE) ) )","v":""},null,null,null,null,{"$f":"IF(TRIM(AX118)=\"\", \"\", IF(VLOOKUP(AX118,'Footnotes list'!$D$9:$E$58,2,FALSE)=0,\"\",VLOOKUP(AX118,'Footnotes list'!$D$9:$E$58,2,FALSE) ) )","v":""},null,null,null,null,{"$f":"IF(TRIM(BC118)=\"\", \"\", IF(VLOOKUP(BC118,'Footnotes list'!$D$9:$E$58,2,FALSE)=0,\"\",VLOOKUP(BC118,'Footnotes list'!$D$9:$E$58,2,FALSE) ) )","v":""},null,null,null,null,{"$f":"IF(TRIM(BH118)=\"\", \"\", IF(VLOOKUP(BH118,'Footnotes list'!$D$9:$E$58,2,FALSE)=0,\"\",VLOOKUP(BH118,'Footnotes list'!$D$9:$E$58,2,FALSE) ) )","v":""},null,null,null,null,{"$f":"IF(TRIM(BM118)=\"\", \"\", IF(VLOOKUP(BM118,'Footnotes list'!$D$9:$E$58,2,FALSE)=0,\"\",VLOOKUP(BM118,'Footnotes list'!$D$9:$E$58,2,FALSE) ) )","v":""},null,null,null,null,{"$f":"IF(TRIM(BR118)=\"\", \"\", IF(VLOOKUP(BR118,'Footnotes list'!$D$9:$E$58,2,FALSE)=0,\"\",VLOOKUP(BR118,'Footnotes list'!$D$9:$E$58,2,FALSE) ) )","v":""},null,null,null,null,{"$f":"IF(TRIM(BW118)=\"\", \"\", IF(VLOOKUP(BW118,'Footnotes list'!$D$9:$E$58,2,FALSE)=0,\"\",VLOOKUP(BW118,'Footnotes list'!$D$9:$E$58,2,FALSE) ) )","v":""},null,null,null,null,{"$f":"IF(TRIM(CB118)=\"\", \"\", IF(VLOOKUP(CB118,'Footnotes list'!$D$9:$E$58,2,FALSE)=0,\"\",VLOOKUP(CB118,'Footnotes list'!$D$9:$E$58,2,FALSE) ) )","v":""},null,null,null,null,{"$f":"IF(TRIM(CG118)=\"\", \"\", IF(VLOOKUP(CG118,'Footnotes list'!$D$9:$E$58,2,FALSE)=0,\"\",VLOOKUP(CG118,'Footnotes list'!$D$9:$E$58,2,FALSE) ) )","v":""},null,null,null,null,{"$f":"IF(TRIM(CL118)=\"\", \"\", IF(VLOOKUP(CL118,'Footnotes list'!$D$9:$E$58,2,FALSE)=0,\"\",VLOOKUP(CL118,'Footnotes list'!$D$9:$E$58,2,FALSE) ) )","v":""},null,null,null,null,{"$f":"IF(TRIM(CQ118)=\"\", \"\", IF(VLOOKUP(CQ118,'Footnotes list'!$D$9:$E$58,2,FALSE)=0,\"\",VLOOKUP(CQ118,'Footnotes list'!$D$9:$E$58,2,FALSE) ) )","v":""},null,null,null,null,{"$f":"IF(TRIM(CV118)=\"\", \"\", IF(VLOOKUP(CV118,'Footnotes list'!$D$9:$E$58,2,FALSE)=0,\"\",VLOOKUP(CV118,'Footnotes list'!$D$9:$E$58,2,FALSE) ) )","v":""},null,null,null,null,{"$f":"IF(TRIM(DA118)=\"\", \"\", IF(VLOOKUP(DA118,'Footnotes list'!$D$9:$E$58,2,FALSE)=0,\"\",VLOOKUP(DA118,'Footnotes list'!$D$9:$E$58,2,FALSE) ) )","v":""},null,null,null,null,{"$f":"IF(TRIM(DF118)=\"\", \"\", IF(VLOOKUP(DF118,'Footnotes list'!$D$9:$E$58,2,FALSE)=0,\"\",VLOOKUP(DF118,'Footnotes list'!$D$9:$E$58,2,FALSE) ) )","v":""},null,null,null,null,{"$f":"IF(TRIM(DK118)=\"\", \"\", IF(VLOOKUP(DK118,'Footnotes list'!$D$9:$E$58,2,FALSE)=0,\"\",VLOOKUP(DK118,'Footnotes list'!$D$9:$E$58,2,FALSE) ) )","v":""},null,null,null,null,{"$f":"IF(TRIM(DP118)=\"\", \"\", IF(VLOOKUP(DP118,'Footnotes list'!$D$9:$E$58,2,FALSE)=0,\"\",VLOOKUP(DP118,'Footnotes list'!$D$9:$E$58,2,FALSE) ) )","v":""},null,null,null,null,{"$f":"IF(TRIM(DU118)=\"\", \"\", IF(VLOOKUP(DU118,'Footnotes list'!$D$9:$E$58,2,FALSE)=0,\"\",VLOOKUP(DU118,'Footnotes list'!$D$9:$E$58,2,FALSE) ) )","v":""},null,null,null,null,{"$f":"IF(TRIM(DZ118)=\"\", \"\", IF(VLOOKUP(DZ118,'Footnotes list'!$D$9:$E$58,2,FALSE)=0,\"\",VLOOKUP(DZ118,'Footnotes list'!$D$9:$E$58,2,FALSE) ) )","v":""},null,null,null,null,{"$f":"IF(TRIM(EE118)=\"\", \"\", IF(VLOOKUP(EE118,'Footnotes list'!$D$9:$E$58,2,FALSE)=0,\"\",VLOOKUP(EE118,'Footnotes list'!$D$9:$E$58,2,FALSE) ) )","v":""},null,null,null,null,{"$f":"IF(TRIM(EJ118)=\"\", \"\", IF(VLOOKUP(EJ118,'Footnotes list'!$D$9:$E$58,2,FALSE)=0,\"\",VLOOKUP(EJ118,'Footnotes list'!$D$9:$E$58,2,FALSE) ) )","v":""},null,null,null,null,{"$f":"IF(TRIM(EO118)=\"\", \"\", IF(VLOOKUP(EO118,'Footnotes list'!$D$9:$E$58,2,FALSE)=0,\"\",VLOOKUP(EO118,'Footnotes list'!$D$9:$E$58,2,FALSE) ) )","v":""},null,null,null,null,{"$f":"IF(TRIM(ET118)=\"\", \"\", IF(VLOOKUP(ET118,'Footnotes list'!$D$9:$E$58,2,FALSE)=0,\"\",VLOOKUP(ET118,'Footnotes list'!$D$9:$E$58,2,FALSE) ) )","v":""},null,null,null,null,{"$f":"IF(TRIM(EY118)=\"\", \"\", IF(VLOOKUP(EY118,'Footnotes list'!$D$9:$E$58,2,FALSE)=0,\"\",VLOOKUP(EY118,'Footnotes list'!$D$9:$E$58,2,FALSE) ) )","v":""}]
[null,null,"C29_C30","C_REP","cleaner and resource efficient products",null,null,null,null,null,{"$f":"IF(TRIM(J119)=\"\", \"\", IF(VLOOKUP(J119,'Footnotes list'!$D$9:$E$58,2,FALSE)=0,\"\",VLOOKUP(J119,'Footnotes list'!$D$9:$E$58,2,FALSE) ) )","v":""},null,null,null,null,{"$f":"IF(TRIM(O119)=\"\", \"\", IF(VLOOKUP(O119,'Footnotes list'!$D$9:$E$58,2,FALSE)=0,\"\",VLOOKUP(O119,'Footnotes list'!$D$9:$E$58,2,FALSE) ) )","v":""},null,null,null,null,{"$f":"IF(TRIM(T119)=\"\", \"\", IF(VLOOKUP(T119,'Footnotes list'!$D$9:$E$58,2,FALSE)=0,\"\",VLOOKUP(T119,'Footnotes list'!$D$9:$E$58,2,FALSE) ) )","v":""},null,null,null,null,{"$f":"IF(TRIM(Y119)=\"\", \"\", IF(VLOOKUP(Y119,'Footnotes list'!$D$9:$E$58,2,FALSE)=0,\"\",VLOOKUP(Y119,'Footnotes list'!$D$9:$E$58,2,FALSE) ) )","v":""},null,null,null,null,{"$f":"IF(TRIM(AD119)=\"\", \"\", IF(VLOOKUP(AD119,'Footnotes list'!$D$9:$E$58,2,FALSE)=0,\"\",VLOOKUP(AD119,'Footnotes list'!$D$9:$E$58,2,FALSE) ) )","v":""},null,null,null,null,{"$f":"IF(TRIM(AI119)=\"\", \"\", IF(VLOOKUP(AI119,'Footnotes list'!$D$9:$E$58,2,FALSE)=0,\"\",VLOOKUP(AI119,'Footnotes list'!$D$9:$E$58,2,FALSE) ) )","v":""},null,null,null,null,{"$f":"IF(TRIM(AN119)=\"\", \"\", IF(VLOOKUP(AN119,'Footnotes list'!$D$9:$E$58,2,FALSE)=0,\"\",VLOOKUP(AN119,'Footnotes list'!$D$9:$E$58,2,FALSE) ) )","v":""},null,null,null,null,{"$f":"IF(TRIM(AS119)=\"\", \"\", IF(VLOOKUP(AS119,'Footnotes list'!$D$9:$E$58,2,FALSE)=0,\"\",VLOOKUP(AS119,'Footnotes list'!$D$9:$E$58,2,FALSE) ) )","v":""},null,null,null,null,{"$f":"IF(TRIM(AX119)=\"\", \"\", IF(VLOOKUP(AX119,'Footnotes list'!$D$9:$E$58,2,FALSE)=0,\"\",VLOOKUP(AX119,'Footnotes list'!$D$9:$E$58,2,FALSE) ) )","v":""},null,null,null,null,{"$f":"IF(TRIM(BC119)=\"\", \"\", IF(VLOOKUP(BC119,'Footnotes list'!$D$9:$E$58,2,FALSE)=0,\"\",VLOOKUP(BC119,'Footnotes list'!$D$9:$E$58,2,FALSE) ) )","v":""},null,null,null,null,{"$f":"IF(TRIM(BH119)=\"\", \"\", IF(VLOOKUP(BH119,'Footnotes list'!$D$9:$E$58,2,FALSE)=0,\"\",VLOOKUP(BH119,'Footnotes list'!$D$9:$E$58,2,FALSE) ) )","v":""},null,null,null,null,{"$f":"IF(TRIM(BM119)=\"\", \"\", IF(VLOOKUP(BM119,'Footnotes list'!$D$9:$E$58,2,FALSE)=0,\"\",VLOOKUP(BM119,'Footnotes list'!$D$9:$E$58,2,FALSE) ) )","v":""},null,null,null,null,{"$f":"IF(TRIM(BR119)=\"\", \"\", IF(VLOOKUP(BR119,'Footnotes list'!$D$9:$E$58,2,FALSE)=0,\"\",VLOOKUP(BR119,'Footnotes list'!$D$9:$E$58,2,FALSE) ) )","v":""},null,null,null,null,{"$f":"IF(TRIM(BW119)=\"\", \"\", IF(VLOOKUP(BW119,'Footnotes list'!$D$9:$E$58,2,FALSE)=0,\"\",VLOOKUP(BW119,'Footnotes list'!$D$9:$E$58,2,FALSE) ) )","v":""},null,null,null,null,{"$f":"IF(TRIM(CB119)=\"\", \"\", IF(VLOOKUP(CB119,'Footnotes list'!$D$9:$E$58,2,FALSE)=0,\"\",VLOOKUP(CB119,'Footnotes list'!$D$9:$E$58,2,FALSE) ) )","v":""},null,null,null,null,{"$f":"IF(TRIM(CG119)=\"\", \"\", IF(VLOOKUP(CG119,'Footnotes list'!$D$9:$E$58,2,FALSE)=0,\"\",VLOOKUP(CG119,'Footnotes list'!$D$9:$E$58,2,FALSE) ) )","v":""},null,null,null,null,{"$f":"IF(TRIM(CL119)=\"\", \"\", IF(VLOOKUP(CL119,'Footnotes list'!$D$9:$E$58,2,FALSE)=0,\"\",VLOOKUP(CL119,'Footnotes list'!$D$9:$E$58,2,FALSE) ) )","v":""},null,null,null,null,{"$f":"IF(TRIM(CQ119)=\"\", \"\", IF(VLOOKUP(CQ119,'Footnotes list'!$D$9:$E$58,2,FALSE)=0,\"\",VLOOKUP(CQ119,'Footnotes list'!$D$9:$E$58,2,FALSE) ) )","v":""},null,null,null,null,{"$f":"IF(TRIM(CV119)=\"\", \"\", IF(VLOOKUP(CV119,'Footnotes list'!$D$9:$E$58,2,FALSE)=0,\"\",VLOOKUP(CV119,'Footnotes list'!$D$9:$E$58,2,FALSE) ) )","v":""},null,null,null,null,{"$f":"IF(TRIM(DA119)=\"\", \"\", IF(VLOOKUP(DA119,'Footnotes list'!$D$9:$E$58,2,FALSE)=0,\"\",VLOOKUP(DA119,'Footnotes list'!$D$9:$E$58,2,FALSE) ) )","v":""},null,null,null,null,{"$f":"IF(TRIM(DF119)=\"\", \"\", IF(VLOOKUP(DF119,'Footnotes list'!$D$9:$E$58,2,FALSE)=0,\"\",VLOOKUP(DF119,'Footnotes list'!$D$9:$E$58,2,FALSE) ) )","v":""},null,null,null,null,{"$f":"IF(TRIM(DK119)=\"\", \"\", IF(VLOOKUP(DK119,'Footnotes list'!$D$9:$E$58,2,FALSE)=0,\"\",VLOOKUP(DK119,'Footnotes list'!$D$9:$E$58,2,FALSE) ) )","v":""},null,null,null,null,{"$f":"IF(TRIM(DP119)=\"\", \"\", IF(VLOOKUP(DP119,'Footnotes list'!$D$9:$E$58,2,FALSE)=0,\"\",VLOOKUP(DP119,'Footnotes list'!$D$9:$E$58,2,FALSE) ) )","v":""},null,null,null,null,{"$f":"IF(TRIM(DU119)=\"\", \"\", IF(VLOOKUP(DU119,'Footnotes list'!$D$9:$E$58,2,FALSE)=0,\"\",VLOOKUP(DU119,'Footnotes list'!$D$9:$E$58,2,FALSE) ) )","v":""},null,null,null,null,{"$f":"IF(TRIM(DZ119)=\"\", \"\", IF(VLOOKUP(DZ119,'Footnotes list'!$D$9:$E$58,2,FALSE)=0,\"\",VLOOKUP(DZ119,'Footnotes list'!$D$9:$E$58,2,FALSE) ) )","v":""},null,null,null,null,{"$f":"IF(TRIM(EE119)=\"\", \"\", IF(VLOOKUP(EE119,'Footnotes list'!$D$9:$E$58,2,FALSE)=0,\"\",VLOOKUP(EE119,'Footnotes list'!$D$9:$E$58,2,FALSE) ) )","v":""},null,null,null,null,{"$f":"IF(TRIM(EJ119)=\"\", \"\", IF(VLOOKUP(EJ119,'Footnotes list'!$D$9:$E$58,2,FALSE)=0,\"\",VLOOKUP(EJ119,'Footnotes list'!$D$9:$E$58,2,FALSE) ) )","v":""},null,null,null,null,{"$f":"IF(TRIM(EO119)=\"\", \"\", IF(VLOOKUP(EO119,'Footnotes list'!$D$9:$E$58,2,FALSE)=0,\"\",VLOOKUP(EO119,'Footnotes list'!$D$9:$E$58,2,FALSE) ) )","v":""},null,null,null,null,{"$f":"IF(TRIM(ET119)=\"\", \"\", IF(VLOOKUP(ET119,'Footnotes list'!$D$9:$E$58,2,FALSE)=0,\"\",VLOOKUP(ET119,'Footnotes list'!$D$9:$E$58,2,FALSE) ) )","v":""},null,null,null,null,{"$f":"IF(TRIM(EY119)=\"\", \"\", IF(VLOOKUP(EY119,'Footnotes list'!$D$9:$E$58,2,FALSE)=0,\"\",VLOOKUP(EY119,'Footnotes list'!$D$9:$E$58,2,FALSE) ) )","v":""}]
[null,null,"C31-C33","TOT_EGSS","Total C31 - C33 Manufacture of furniture; other manufacturing; repair and installation of machinery and equipment, of which:",null,null,null,null,null,{"$f":"IF(TRIM(J120)=\"\", \"\", IF(VLOOKUP(J120,'Footnotes list'!$D$9:$E$58,2,FALSE)=0,\"\",VLOOKUP(J120,'Footnotes list'!$D$9:$E$58,2,FALSE) ) )","v":""},null,null,null,null,{"$f":"IF(TRIM(O120)=\"\", \"\", IF(VLOOKUP(O120,'Footnotes list'!$D$9:$E$58,2,FALSE)=0,\"\",VLOOKUP(O120,'Footnotes list'!$D$9:$E$58,2,FALSE) ) )","v":""},null,null,null,null,{"$f":"IF(TRIM(T120)=\"\", \"\", IF(VLOOKUP(T120,'Footnotes list'!$D$9:$E$58,2,FALSE)=0,\"\",VLOOKUP(T120,'Footnotes list'!$D$9:$E$58,2,FALSE) ) )","v":""},null,null,null,null,{"$f":"IF(TRIM(Y120)=\"\", \"\", IF(VLOOKUP(Y120,'Footnotes list'!$D$9:$E$58,2,FALSE)=0,\"\",VLOOKUP(Y120,'Footnotes list'!$D$9:$E$58,2,FALSE) ) )","v":""},null,null,null,null,{"$f":"IF(TRIM(AD120)=\"\", \"\", IF(VLOOKUP(AD120,'Footnotes list'!$D$9:$E$58,2,FALSE)=0,\"\",VLOOKUP(AD120,'Footnotes list'!$D$9:$E$58,2,FALSE) ) )","v":""},null,null,null,null,{"$f":"IF(TRIM(AI120)=\"\", \"\", IF(VLOOKUP(AI120,'Footnotes list'!$D$9:$E$58,2,FALSE)=0,\"\",VLOOKUP(AI120,'Footnotes list'!$D$9:$E$58,2,FALSE) ) )","v":""},null,null,null,null,{"$f":"IF(TRIM(AN120)=\"\", \"\", IF(VLOOKUP(AN120,'Footnotes list'!$D$9:$E$58,2,FALSE)=0,\"\",VLOOKUP(AN120,'Footnotes list'!$D$9:$E$58,2,FALSE) ) )","v":""},null,null,null,null,{"$f":"IF(TRIM(AS120)=\"\", \"\", IF(VLOOKUP(AS120,'Footnotes list'!$D$9:$E$58,2,FALSE)=0,\"\",VLOOKUP(AS120,'Footnotes list'!$D$9:$E$58,2,FALSE) ) )","v":""},null,null,null,null,{"$f":"IF(TRIM(AX120)=\"\", \"\", IF(VLOOKUP(AX120,'Footnotes list'!$D$9:$E$58,2,FALSE)=0,\"\",VLOOKUP(AX120,'Footnotes list'!$D$9:$E$58,2,FALSE) ) )","v":""},null,null,null,null,{"$f":"IF(TRIM(BC120)=\"\", \"\", IF(VLOOKUP(BC120,'Footnotes list'!$D$9:$E$58,2,FALSE)=0,\"\",VLOOKUP(BC120,'Footnotes list'!$D$9:$E$58,2,FALSE) ) )","v":""},null,null,null,null,{"$f":"IF(TRIM(BH120)=\"\", \"\", IF(VLOOKUP(BH120,'Footnotes list'!$D$9:$E$58,2,FALSE)=0,\"\",VLOOKUP(BH120,'Footnotes list'!$D$9:$E$58,2,FALSE) ) )","v":""},null,null,null,null,{"$f":"IF(TRIM(BM120)=\"\", \"\", IF(VLOOKUP(BM120,'Footnotes list'!$D$9:$E$58,2,FALSE)=0,\"\",VLOOKUP(BM120,'Footnotes list'!$D$9:$E$58,2,FALSE) ) )","v":""},null,null,null,null,{"$f":"IF(TRIM(BR120)=\"\", \"\", IF(VLOOKUP(BR120,'Footnotes list'!$D$9:$E$58,2,FALSE)=0,\"\",VLOOKUP(BR120,'Footnotes list'!$D$9:$E$58,2,FALSE) ) )","v":""},null,null,null,null,{"$f":"IF(TRIM(BW120)=\"\", \"\", IF(VLOOKUP(BW120,'Footnotes list'!$D$9:$E$58,2,FALSE)=0,\"\",VLOOKUP(BW120,'Footnotes list'!$D$9:$E$58,2,FALSE) ) )","v":""},null,null,null,null,{"$f":"IF(TRIM(CB120)=\"\", \"\", IF(VLOOKUP(CB120,'Footnotes list'!$D$9:$E$58,2,FALSE)=0,\"\",VLOOKUP(CB120,'Footnotes list'!$D$9:$E$58,2,FALSE) ) )","v":""},null,null,null,null,{"$f":"IF(TRIM(CG120)=\"\", \"\", IF(VLOOKUP(CG120,'Footnotes list'!$D$9:$E$58,2,FALSE)=0,\"\",VLOOKUP(CG120,'Footnotes list'!$D$9:$E$58,2,FALSE) ) )","v":""},null,null,null,null,{"$f":"IF(TRIM(CL120)=\"\", \"\", IF(VLOOKUP(CL120,'Footnotes list'!$D$9:$E$58,2,FALSE)=0,\"\",VLOOKUP(CL120,'Footnotes list'!$D$9:$E$58,2,FALSE) ) )","v":""},null,null,null,null,{"$f":"IF(TRIM(CQ120)=\"\", \"\", IF(VLOOKUP(CQ120,'Footnotes list'!$D$9:$E$58,2,FALSE)=0,\"\",VLOOKUP(CQ120,'Footnotes list'!$D$9:$E$58,2,FALSE) ) )","v":""},null,null,null,null,{"$f":"IF(TRIM(CV120)=\"\", \"\", IF(VLOOKUP(CV120,'Footnotes list'!$D$9:$E$58,2,FALSE)=0,\"\",VLOOKUP(CV120,'Footnotes list'!$D$9:$E$58,2,FALSE) ) )","v":""},null,null,null,null,{"$f":"IF(TRIM(DA120)=\"\", \"\", IF(VLOOKUP(DA120,'Footnotes list'!$D$9:$E$58,2,FALSE)=0,\"\",VLOOKUP(DA120,'Footnotes list'!$D$9:$E$58,2,FALSE) ) )","v":""},null,null,null,null,{"$f":"IF(TRIM(DF120)=\"\", \"\", IF(VLOOKUP(DF120,'Footnotes list'!$D$9:$E$58,2,FALSE)=0,\"\",VLOOKUP(DF120,'Footnotes list'!$D$9:$E$58,2,FALSE) ) )","v":""},null,null,null,null,{"$f":"IF(TRIM(DK120)=\"\", \"\", IF(VLOOKUP(DK120,'Footnotes list'!$D$9:$E$58,2,FALSE)=0,\"\",VLOOKUP(DK120,'Footnotes list'!$D$9:$E$58,2,FALSE) ) )","v":""},null,null,null,null,{"$f":"IF(TRIM(DP120)=\"\", \"\", IF(VLOOKUP(DP120,'Footnotes list'!$D$9:$E$58,2,FALSE)=0,\"\",VLOOKUP(DP120,'Footnotes list'!$D$9:$E$58,2,FALSE) ) )","v":""},null,null,null,null,{"$f":"IF(TRIM(DU120)=\"\", \"\", IF(VLOOKUP(DU120,'Footnotes list'!$D$9:$E$58,2,FALSE)=0,\"\",VLOOKUP(DU120,'Footnotes list'!$D$9:$E$58,2,FALSE) ) )","v":""},null,null,null,null,{"$f":"IF(TRIM(DZ120)=\"\", \"\", IF(VLOOKUP(DZ120,'Footnotes list'!$D$9:$E$58,2,FALSE)=0,\"\",VLOOKUP(DZ120,'Footnotes list'!$D$9:$E$58,2,FALSE) ) )","v":""},null,null,null,null,{"$f":"IF(TRIM(EE120)=\"\", \"\", IF(VLOOKUP(EE120,'Footnotes list'!$D$9:$E$58,2,FALSE)=0,\"\",VLOOKUP(EE120,'Footnotes list'!$D$9:$E$58,2,FALSE) ) )","v":""},null,null,null,null,{"$f":"IF(TRIM(EJ120)=\"\", \"\", IF(VLOOKUP(EJ120,'Footnotes list'!$D$9:$E$58,2,FALSE)=0,\"\",VLOOKUP(EJ120,'Footnotes list'!$D$9:$E$58,2,FALSE) ) )","v":""},null,null,null,null,{"$f":"IF(TRIM(EO120)=\"\", \"\", IF(VLOOKUP(EO120,'Footnotes list'!$D$9:$E$58,2,FALSE)=0,\"\",VLOOKUP(EO120,'Footnotes list'!$D$9:$E$58,2,FALSE) ) )","v":""},null,null,null,null,{"$f":"IF(TRIM(ET120)=\"\", \"\", IF(VLOOKUP(ET120,'Footnotes list'!$D$9:$E$58,2,FALSE)=0,\"\",VLOOKUP(ET120,'Footnotes list'!$D$9:$E$58,2,FALSE) ) )","v":""},null,null,null,null,{"$f":"IF(TRIM(EY120)=\"\", \"\", IF(VLOOKUP(EY120,'Footnotes list'!$D$9:$E$58,2,FALSE)=0,\"\",VLOOKUP(EY120,'Footnotes list'!$D$9:$E$58,2,FALSE) ) )","v":""}]
[null,null,"C31-C33","ANC","ancillary activities",null,null,null,null,null,{"$f":"IF(TRIM(J121)=\"\", \"\", IF(VLOOKUP(J121,'Footnotes list'!$D$9:$E$58,2,FALSE)=0,\"\",VLOOKUP(J121,'Footnotes list'!$D$9:$E$58,2,FALSE) ) )","v":""},null,null,null,null,{"$f":"IF(TRIM(O121)=\"\", \"\", IF(VLOOKUP(O121,'Footnotes list'!$D$9:$E$58,2,FALSE)=0,\"\",VLOOKUP(O121,'Footnotes list'!$D$9:$E$58,2,FALSE) ) )","v":""},null,null,null,null,{"$f":"IF(TRIM(T121)=\"\", \"\", IF(VLOOKUP(T121,'Footnotes list'!$D$9:$E$58,2,FALSE)=0,\"\",VLOOKUP(T121,'Footnotes list'!$D$9:$E$58,2,FALSE) ) )","v":""},null,null,null,null,{"$f":"IF(TRIM(Y121)=\"\", \"\", IF(VLOOKUP(Y121,'Footnotes list'!$D$9:$E$58,2,FALSE)=0,\"\",VLOOKUP(Y121,'Footnotes list'!$D$9:$E$58,2,FALSE) ) )","v":""},null,null,null,null,{"$f":"IF(TRIM(AD121)=\"\", \"\", IF(VLOOKUP(AD121,'Footnotes list'!$D$9:$E$58,2,FALSE)=0,\"\",VLOOKUP(AD121,'Footnotes list'!$D$9:$E$58,2,FALSE) ) )","v":""},null,null,null,null,{"$f":"IF(TRIM(AI121)=\"\", \"\", IF(VLOOKUP(AI121,'Footnotes list'!$D$9:$E$58,2,FALSE)=0,\"\",VLOOKUP(AI121,'Footnotes list'!$D$9:$E$58,2,FALSE) ) )","v":""},null,null,null,null,{"$f":"IF(TRIM(AN121)=\"\", \"\", IF(VLOOKUP(AN121,'Footnotes list'!$D$9:$E$58,2,FALSE)=0,\"\",VLOOKUP(AN121,'Footnotes list'!$D$9:$E$58,2,FALSE) ) )","v":""},null,null,null,null,{"$f":"IF(TRIM(AS121)=\"\", \"\", IF(VLOOKUP(AS121,'Footnotes list'!$D$9:$E$58,2,FALSE)=0,\"\",VLOOKUP(AS121,'Footnotes list'!$D$9:$E$58,2,FALSE) ) )","v":""},null,null,null,null,{"$f":"IF(TRIM(AX121)=\"\", \"\", IF(VLOOKUP(AX121,'Footnotes list'!$D$9:$E$58,2,FALSE)=0,\"\",VLOOKUP(AX121,'Footnotes list'!$D$9:$E$58,2,FALSE) ) )","v":""},null,null,null,null,{"$f":"IF(TRIM(BC121)=\"\", \"\", IF(VLOOKUP(BC121,'Footnotes list'!$D$9:$E$58,2,FALSE)=0,\"\",VLOOKUP(BC121,'Footnotes list'!$D$9:$E$58,2,FALSE) ) )","v":""},null,null,null,null,{"$f":"IF(TRIM(BH121)=\"\", \"\", IF(VLOOKUP(BH121,'Footnotes list'!$D$9:$E$58,2,FALSE)=0,\"\",VLOOKUP(BH121,'Footnotes list'!$D$9:$E$58,2,FALSE) ) )","v":""},null,null,null,null,{"$f":"IF(TRIM(BM121)=\"\", \"\", IF(VLOOKUP(BM121,'Footnotes list'!$D$9:$E$58,2,FALSE)=0,\"\",VLOOKUP(BM121,'Footnotes list'!$D$9:$E$58,2,FALSE) ) )","v":""},null,null,null,null,{"$f":"IF(TRIM(BR121)=\"\", \"\", IF(VLOOKUP(BR121,'Footnotes list'!$D$9:$E$58,2,FALSE)=0,\"\",VLOOKUP(BR121,'Footnotes list'!$D$9:$E$58,2,FALSE) ) )","v":""},null,null,null,null,{"$f":"IF(TRIM(BW121)=\"\", \"\", IF(VLOOKUP(BW121,'Footnotes list'!$D$9:$E$58,2,FALSE)=0,\"\",VLOOKUP(BW121,'Footnotes list'!$D$9:$E$58,2,FALSE) ) )","v":""},null,null,null,null,{"$f":"IF(TRIM(CB121)=\"\", \"\", IF(VLOOKUP(CB121,'Footnotes list'!$D$9:$E$58,2,FALSE)=0,\"\",VLOOKUP(CB121,'Footnotes list'!$D$9:$E$58,2,FALSE) ) )","v":""},null,null,null,null,{"$f":"IF(TRIM(CG121)=\"\", \"\", IF(VLOOKUP(CG121,'Footnotes list'!$D$9:$E$58,2,FALSE)=0,\"\",VLOOKUP(CG121,'Footnotes list'!$D$9:$E$58,2,FALSE) ) )","v":""},null,null,null,null,{"$f":"IF(TRIM(CL121)=\"\", \"\", IF(VLOOKUP(CL121,'Footnotes list'!$D$9:$E$58,2,FALSE)=0,\"\",VLOOKUP(CL121,'Footnotes list'!$D$9:$E$58,2,FALSE) ) )","v":""},null,null,null,null,{"$f":"IF(TRIM(CQ121)=\"\", \"\", IF(VLOOKUP(CQ121,'Footnotes list'!$D$9:$E$58,2,FALSE)=0,\"\",VLOOKUP(CQ121,'Footnotes list'!$D$9:$E$58,2,FALSE) ) )","v":""},null,null,null,null,{"$f":"IF(TRIM(CV121)=\"\", \"\", IF(VLOOKUP(CV121,'Footnotes list'!$D$9:$E$58,2,FALSE)=0,\"\",VLOOKUP(CV121,'Footnotes list'!$D$9:$E$58,2,FALSE) ) )","v":""},null,null,null,null,{"$f":"IF(TRIM(DA121)=\"\", \"\", IF(VLOOKUP(DA121,'Footnotes list'!$D$9:$E$58,2,FALSE)=0,\"\",VLOOKUP(DA121,'Footnotes list'!$D$9:$E$58,2,FALSE) ) )","v":""},null,null,null,null,{"$f":"IF(TRIM(DF121)=\"\", \"\", IF(VLOOKUP(DF121,'Footnotes list'!$D$9:$E$58,2,FALSE)=0,\"\",VLOOKUP(DF121,'Footnotes list'!$D$9:$E$58,2,FALSE) ) )","v":""},null,null,null,null,{"$f":"IF(TRIM(DK121)=\"\", \"\", IF(VLOOKUP(DK121,'Footnotes list'!$D$9:$E$58,2,FALSE)=0,\"\",VLOOKUP(DK121,'Footnotes list'!$D$9:$E$58,2,FALSE) ) )","v":""},null,null,null,null,{"$f":"IF(TRIM(DP121)=\"\", \"\", IF(VLOOKUP(DP121,'Footnotes list'!$D$9:$E$58,2,FALSE)=0,\"\",VLOOKUP(DP121,'Footnotes list'!$D$9:$E$58,2,FALSE) ) )","v":""},null,null,null,null,{"$f":"IF(TRIM(DU121)=\"\", \"\", IF(VLOOKUP(DU121,'Footnotes list'!$D$9:$E$58,2,FALSE)=0,\"\",VLOOKUP(DU121,'Footnotes list'!$D$9:$E$58,2,FALSE) ) )","v":""},null,null,null,null,{"$f":"IF(TRIM(DZ121)=\"\", \"\", IF(VLOOKUP(DZ121,'Footnotes list'!$D$9:$E$58,2,FALSE)=0,\"\",VLOOKUP(DZ121,'Footnotes list'!$D$9:$E$58,2,FALSE) ) )","v":""},null,null,null,null,{"$f":"IF(TRIM(EE121)=\"\", \"\", IF(VLOOKUP(EE121,'Footnotes list'!$D$9:$E$58,2,FALSE)=0,\"\",VLOOKUP(EE121,'Footnotes list'!$D$9:$E$58,2,FALSE) ) )","v":""},null,null,null,null,{"$f":"IF(TRIM(EJ121)=\"\", \"\", IF(VLOOKUP(EJ121,'Footnotes list'!$D$9:$E$58,2,FALSE)=0,\"\",VLOOKUP(EJ121,'Footnotes list'!$D$9:$E$58,2,FALSE) ) )","v":""},null,null,null,null,{"$f":"IF(TRIM(EO121)=\"\", \"\", IF(VLOOKUP(EO121,'Footnotes list'!$D$9:$E$58,2,FALSE)=0,\"\",VLOOKUP(EO121,'Footnotes list'!$D$9:$E$58,2,FALSE) ) )","v":""},null,null,null,null,{"$f":"IF(TRIM(ET121)=\"\", \"\", IF(VLOOKUP(ET121,'Footnotes list'!$D$9:$E$58,2,FALSE)=0,\"\",VLOOKUP(ET121,'Footnotes list'!$D$9:$E$58,2,FALSE) ) )","v":""},null,null,null,null,{"$f":"IF(TRIM(EY121)=\"\", \"\", IF(VLOOKUP(EY121,'Footnotes list'!$D$9:$E$58,2,FALSE)=0,\"\",VLOOKUP(EY121,'Footnotes list'!$D$9:$E$58,2,FALSE) ) )","v":""}]
[null,null,"C31-C33","NMKT","non-market activities",null,null,null,null,null,{"$f":"IF(TRIM(J122)=\"\", \"\", IF(VLOOKUP(J122,'Footnotes list'!$D$9:$E$58,2,FALSE)=0,\"\",VLOOKUP(J122,'Footnotes list'!$D$9:$E$58,2,FALSE) ) )","v":""},null,null,null,null,{"$f":"IF(TRIM(O122)=\"\", \"\", IF(VLOOKUP(O122,'Footnotes list'!$D$9:$E$58,2,FALSE)=0,\"\",VLOOKUP(O122,'Footnotes list'!$D$9:$E$58,2,FALSE) ) )","v":""},null,null,null,null,{"$f":"IF(TRIM(T122)=\"\", \"\", IF(VLOOKUP(T122,'Footnotes list'!$D$9:$E$58,2,FALSE)=0,\"\",VLOOKUP(T122,'Footnotes list'!$D$9:$E$58,2,FALSE) ) )","v":""},null,null,null,null,{"$f":"IF(TRIM(Y122)=\"\", \"\", IF(VLOOKUP(Y122,'Footnotes list'!$D$9:$E$58,2,FALSE)=0,\"\",VLOOKUP(Y122,'Footnotes list'!$D$9:$E$58,2,FALSE) ) )","v":""},null,null,null,null,{"$f":"IF(TRIM(AD122)=\"\", \"\", IF(VLOOKUP(AD122,'Footnotes list'!$D$9:$E$58,2,FALSE)=0,\"\",VLOOKUP(AD122,'Footnotes list'!$D$9:$E$58,2,FALSE) ) )","v":""},null,null,null,null,{"$f":"IF(TRIM(AI122)=\"\", \"\", IF(VLOOKUP(AI122,'Footnotes list'!$D$9:$E$58,2,FALSE)=0,\"\",VLOOKUP(AI122,'Footnotes list'!$D$9:$E$58,2,FALSE) ) )","v":""},null,null,null,null,{"$f":"IF(TRIM(AN122)=\"\", \"\", IF(VLOOKUP(AN122,'Footnotes list'!$D$9:$E$58,2,FALSE)=0,\"\",VLOOKUP(AN122,'Footnotes list'!$D$9:$E$58,2,FALSE) ) )","v":""},null,null,null,null,{"$f":"IF(TRIM(AS122)=\"\", \"\", IF(VLOOKUP(AS122,'Footnotes list'!$D$9:$E$58,2,FALSE)=0,\"\",VLOOKUP(AS122,'Footnotes list'!$D$9:$E$58,2,FALSE) ) )","v":""},null,null,null,null,{"$f":"IF(TRIM(AX122)=\"\", \"\", IF(VLOOKUP(AX122,'Footnotes list'!$D$9:$E$58,2,FALSE)=0,\"\",VLOOKUP(AX122,'Footnotes list'!$D$9:$E$58,2,FALSE) ) )","v":""},null,null,null,null,{"$f":"IF(TRIM(BC122)=\"\", \"\", IF(VLOOKUP(BC122,'Footnotes list'!$D$9:$E$58,2,FALSE)=0,\"\",VLOOKUP(BC122,'Footnotes list'!$D$9:$E$58,2,FALSE) ) )","v":""},null,null,null,null,{"$f":"IF(TRIM(BH122)=\"\", \"\", IF(VLOOKUP(BH122,'Footnotes list'!$D$9:$E$58,2,FALSE)=0,\"\",VLOOKUP(BH122,'Footnotes list'!$D$9:$E$58,2,FALSE) ) )","v":""},null,null,null,null,{"$f":"IF(TRIM(BM122)=\"\", \"\", IF(VLOOKUP(BM122,'Footnotes list'!$D$9:$E$58,2,FALSE)=0,\"\",VLOOKUP(BM122,'Footnotes list'!$D$9:$E$58,2,FALSE) ) )","v":""},null,null,null,null,{"$f":"IF(TRIM(BR122)=\"\", \"\", IF(VLOOKUP(BR122,'Footnotes list'!$D$9:$E$58,2,FALSE)=0,\"\",VLOOKUP(BR122,'Footnotes list'!$D$9:$E$58,2,FALSE) ) )","v":""},null,null,null,null,{"$f":"IF(TRIM(BW122)=\"\", \"\", IF(VLOOKUP(BW122,'Footnotes list'!$D$9:$E$58,2,FALSE)=0,\"\",VLOOKUP(BW122,'Footnotes list'!$D$9:$E$58,2,FALSE) ) )","v":""},null,null,null,null,{"$f":"IF(TRIM(CB122)=\"\", \"\", IF(VLOOKUP(CB122,'Footnotes list'!$D$9:$E$58,2,FALSE)=0,\"\",VLOOKUP(CB122,'Footnotes list'!$D$9:$E$58,2,FALSE) ) )","v":""},null,null,null,null,{"$f":"IF(TRIM(CG122)=\"\", \"\", IF(VLOOKUP(CG122,'Footnotes list'!$D$9:$E$58,2,FALSE)=0,\"\",VLOOKUP(CG122,'Footnotes list'!$D$9:$E$58,2,FALSE) ) )","v":""},null,null,null,null,{"$f":"IF(TRIM(CL122)=\"\", \"\", IF(VLOOKUP(CL122,'Footnotes list'!$D$9:$E$58,2,FALSE)=0,\"\",VLOOKUP(CL122,'Footnotes list'!$D$9:$E$58,2,FALSE) ) )","v":""},null,null,null,null,{"$f":"IF(TRIM(CQ122)=\"\", \"\", IF(VLOOKUP(CQ122,'Footnotes list'!$D$9:$E$58,2,FALSE)=0,\"\",VLOOKUP(CQ122,'Footnotes list'!$D$9:$E$58,2,FALSE) ) )","v":""},null,null,null,null,{"$f":"IF(TRIM(CV122)=\"\", \"\", IF(VLOOKUP(CV122,'Footnotes list'!$D$9:$E$58,2,FALSE)=0,\"\",VLOOKUP(CV122,'Footnotes list'!$D$9:$E$58,2,FALSE) ) )","v":""},null,null,null,null,{"$f":"IF(TRIM(DA122)=\"\", \"\", IF(VLOOKUP(DA122,'Footnotes list'!$D$9:$E$58,2,FALSE)=0,\"\",VLOOKUP(DA122,'Footnotes list'!$D$9:$E$58,2,FALSE) ) )","v":""},null,null,null,null,{"$f":"IF(TRIM(DF122)=\"\", \"\", IF(VLOOKUP(DF122,'Footnotes list'!$D$9:$E$58,2,FALSE)=0,\"\",VLOOKUP(DF122,'Footnotes list'!$D$9:$E$58,2,FALSE) ) )","v":""},null,null,null,null,{"$f":"IF(TRIM(DK122)=\"\", \"\", IF(VLOOKUP(DK122,'Footnotes list'!$D$9:$E$58,2,FALSE)=0,\"\",VLOOKUP(DK122,'Footnotes list'!$D$9:$E$58,2,FALSE) ) )","v":""},null,null,null,null,{"$f":"IF(TRIM(DP122)=\"\", \"\", IF(VLOOKUP(DP122,'Footnotes list'!$D$9:$E$58,2,FALSE)=0,\"\",VLOOKUP(DP122,'Footnotes list'!$D$9:$E$58,2,FALSE) ) )","v":""},null,null,null,null,{"$f":"IF(TRIM(DU122)=\"\", \"\", IF(VLOOKUP(DU122,'Footnotes list'!$D$9:$E$58,2,FALSE)=0,\"\",VLOOKUP(DU122,'Footnotes list'!$D$9:$E$58,2,FALSE) ) )","v":""},null,null,null,null,{"$f":"IF(TRIM(DZ122)=\"\", \"\", IF(VLOOKUP(DZ122,'Footnotes list'!$D$9:$E$58,2,FALSE)=0,\"\",VLOOKUP(DZ122,'Footnotes list'!$D$9:$E$58,2,FALSE) ) )","v":""},null,null,null,null,{"$f":"IF(TRIM(EE122)=\"\", \"\", IF(VLOOKUP(EE122,'Footnotes list'!$D$9:$E$58,2,FALSE)=0,\"\",VLOOKUP(EE122,'Footnotes list'!$D$9:$E$58,2,FALSE) ) )","v":""},null,null,null,null,{"$f":"IF(TRIM(EJ122)=\"\", \"\", IF(VLOOKUP(EJ122,'Footnotes list'!$D$9:$E$58,2,FALSE)=0,\"\",VLOOKUP(EJ122,'Footnotes list'!$D$9:$E$58,2,FALSE) ) )","v":""},null,null,null,null,{"$f":"IF(TRIM(EO122)=\"\", \"\", IF(VLOOKUP(EO122,'Footnotes list'!$D$9:$E$58,2,FALSE)=0,\"\",VLOOKUP(EO122,'Footnotes list'!$D$9:$E$58,2,FALSE) ) )","v":""},null,null,null,null,{"$f":"IF(TRIM(ET122)=\"\", \"\", IF(VLOOKUP(ET122,'Footnotes list'!$D$9:$E$58,2,FALSE)=0,\"\",VLOOKUP(ET122,'Footnotes list'!$D$9:$E$58,2,FALSE) ) )","v":""},null,null,null,null,{"$f":"IF(TRIM(EY122)=\"\", \"\", IF(VLOOKUP(EY122,'Footnotes list'!$D$9:$E$58,2,FALSE)=0,\"\",VLOOKUP(EY122,'Footnotes list'!$D$9:$E$58,2,FALSE) ) )","v":""}]
[null,null,"C31-C33","OWN_USE","activities for own final use",null,null,null,null,null,{"$f":"IF(TRIM(J123)=\"\", \"\", IF(VLOOKUP(J123,'Footnotes list'!$D$9:$E$58,2,FALSE)=0,\"\",VLOOKUP(J123,'Footnotes list'!$D$9:$E$58,2,FALSE) ) )","v":""},null,null,null,null,{"$f":"IF(TRIM(O123)=\"\", \"\", IF(VLOOKUP(O123,'Footnotes list'!$D$9:$E$58,2,FALSE)=0,\"\",VLOOKUP(O123,'Footnotes list'!$D$9:$E$58,2,FALSE) ) )","v":""},null,null,null,null,{"$f":"IF(TRIM(T123)=\"\", \"\", IF(VLOOKUP(T123,'Footnotes list'!$D$9:$E$58,2,FALSE)=0,\"\",VLOOKUP(T123,'Footnotes list'!$D$9:$E$58,2,FALSE) ) )","v":""},null,null,null,null,{"$f":"IF(TRIM(Y123)=\"\", \"\", IF(VLOOKUP(Y123,'Footnotes list'!$D$9:$E$58,2,FALSE)=0,\"\",VLOOKUP(Y123,'Footnotes list'!$D$9:$E$58,2,FALSE) ) )","v":""},null,null,null,null,{"$f":"IF(TRIM(AD123)=\"\", \"\", IF(VLOOKUP(AD123,'Footnotes list'!$D$9:$E$58,2,FALSE)=0,\"\",VLOOKUP(AD123,'Footnotes list'!$D$9:$E$58,2,FALSE) ) )","v":""},null,null,null,null,{"$f":"IF(TRIM(AI123)=\"\", \"\", IF(VLOOKUP(AI123,'Footnotes list'!$D$9:$E$58,2,FALSE)=0,\"\",VLOOKUP(AI123,'Footnotes list'!$D$9:$E$58,2,FALSE) ) )","v":""},null,null,null,null,{"$f":"IF(TRIM(AN123)=\"\", \"\", IF(VLOOKUP(AN123,'Footnotes list'!$D$9:$E$58,2,FALSE)=0,\"\",VLOOKUP(AN123,'Footnotes list'!$D$9:$E$58,2,FALSE) ) )","v":""},null,null,null,null,{"$f":"IF(TRIM(AS123)=\"\", \"\", IF(VLOOKUP(AS123,'Footnotes list'!$D$9:$E$58,2,FALSE)=0,\"\",VLOOKUP(AS123,'Footnotes list'!$D$9:$E$58,2,FALSE) ) )","v":""},null,null,null,null,{"$f":"IF(TRIM(AX123)=\"\", \"\", IF(VLOOKUP(AX123,'Footnotes list'!$D$9:$E$58,2,FALSE)=0,\"\",VLOOKUP(AX123,'Footnotes list'!$D$9:$E$58,2,FALSE) ) )","v":""},null,null,null,null,{"$f":"IF(TRIM(BC123)=\"\", \"\", IF(VLOOKUP(BC123,'Footnotes list'!$D$9:$E$58,2,FALSE)=0,\"\",VLOOKUP(BC123,'Footnotes list'!$D$9:$E$58,2,FALSE) ) )","v":""},null,null,null,null,{"$f":"IF(TRIM(BH123)=\"\", \"\", IF(VLOOKUP(BH123,'Footnotes list'!$D$9:$E$58,2,FALSE)=0,\"\",VLOOKUP(BH123,'Footnotes list'!$D$9:$E$58,2,FALSE) ) )","v":""},null,null,null,null,{"$f":"IF(TRIM(BM123)=\"\", \"\", IF(VLOOKUP(BM123,'Footnotes list'!$D$9:$E$58,2,FALSE)=0,\"\",VLOOKUP(BM123,'Footnotes list'!$D$9:$E$58,2,FALSE) ) )","v":""},null,null,null,null,{"$f":"IF(TRIM(BR123)=\"\", \"\", IF(VLOOKUP(BR123,'Footnotes list'!$D$9:$E$58,2,FALSE)=0,\"\",VLOOKUP(BR123,'Footnotes list'!$D$9:$E$58,2,FALSE) ) )","v":""},null,null,null,null,{"$f":"IF(TRIM(BW123)=\"\", \"\", IF(VLOOKUP(BW123,'Footnotes list'!$D$9:$E$58,2,FALSE)=0,\"\",VLOOKUP(BW123,'Footnotes list'!$D$9:$E$58,2,FALSE) ) )","v":""},null,null,null,null,{"$f":"IF(TRIM(CB123)=\"\", \"\", IF(VLOOKUP(CB123,'Footnotes list'!$D$9:$E$58,2,FALSE)=0,\"\",VLOOKUP(CB123,'Footnotes list'!$D$9:$E$58,2,FALSE) ) )","v":""},null,null,null,null,{"$f":"IF(TRIM(CG123)=\"\", \"\", IF(VLOOKUP(CG123,'Footnotes list'!$D$9:$E$58,2,FALSE)=0,\"\",VLOOKUP(CG123,'Footnotes list'!$D$9:$E$58,2,FALSE) ) )","v":""},null,null,null,null,{"$f":"IF(TRIM(CL123)=\"\", \"\", IF(VLOOKUP(CL123,'Footnotes list'!$D$9:$E$58,2,FALSE)=0,\"\",VLOOKUP(CL123,'Footnotes list'!$D$9:$E$58,2,FALSE) ) )","v":""},null,null,null,null,{"$f":"IF(TRIM(CQ123)=\"\", \"\", IF(VLOOKUP(CQ123,'Footnotes list'!$D$9:$E$58,2,FALSE)=0,\"\",VLOOKUP(CQ123,'Footnotes list'!$D$9:$E$58,2,FALSE) ) )","v":""},null,null,null,null,{"$f":"IF(TRIM(CV123)=\"\", \"\", IF(VLOOKUP(CV123,'Footnotes list'!$D$9:$E$58,2,FALSE)=0,\"\",VLOOKUP(CV123,'Footnotes list'!$D$9:$E$58,2,FALSE) ) )","v":""},null,null,null,null,{"$f":"IF(TRIM(DA123)=\"\", \"\", IF(VLOOKUP(DA123,'Footnotes list'!$D$9:$E$58,2,FALSE)=0,\"\",VLOOKUP(DA123,'Footnotes list'!$D$9:$E$58,2,FALSE) ) )","v":""},null,null,null,null,{"$f":"IF(TRIM(DF123)=\"\", \"\", IF(VLOOKUP(DF123,'Footnotes list'!$D$9:$E$58,2,FALSE)=0,\"\",VLOOKUP(DF123,'Footnotes list'!$D$9:$E$58,2,FALSE) ) )","v":""},null,null,null,null,{"$f":"IF(TRIM(DK123)=\"\", \"\", IF(VLOOKUP(DK123,'Footnotes list'!$D$9:$E$58,2,FALSE)=0,\"\",VLOOKUP(DK123,'Footnotes list'!$D$9:$E$58,2,FALSE) ) )","v":""},null,null,null,null,{"$f":"IF(TRIM(DP123)=\"\", \"\", IF(VLOOKUP(DP123,'Footnotes list'!$D$9:$E$58,2,FALSE)=0,\"\",VLOOKUP(DP123,'Footnotes list'!$D$9:$E$58,2,FALSE) ) )","v":""},null,null,null,null,{"$f":"IF(TRIM(DU123)=\"\", \"\", IF(VLOOKUP(DU123,'Footnotes list'!$D$9:$E$58,2,FALSE)=0,\"\",VLOOKUP(DU123,'Footnotes list'!$D$9:$E$58,2,FALSE) ) )","v":""},null,null,null,null,{"$f":"IF(TRIM(DZ123)=\"\", \"\", IF(VLOOKUP(DZ123,'Footnotes list'!$D$9:$E$58,2,FALSE)=0,\"\",VLOOKUP(DZ123,'Footnotes list'!$D$9:$E$58,2,FALSE) ) )","v":""},null,null,null,null,{"$f":"IF(TRIM(EE123)=\"\", \"\", IF(VLOOKUP(EE123,'Footnotes list'!$D$9:$E$58,2,FALSE)=0,\"\",VLOOKUP(EE123,'Footnotes list'!$D$9:$E$58,2,FALSE) ) )","v":""},null,null,null,null,{"$f":"IF(TRIM(EJ123)=\"\", \"\", IF(VLOOKUP(EJ123,'Footnotes list'!$D$9:$E$58,2,FALSE)=0,\"\",VLOOKUP(EJ123,'Footnotes list'!$D$9:$E$58,2,FALSE) ) )","v":""},null,null,null,null,{"$f":"IF(TRIM(EO123)=\"\", \"\", IF(VLOOKUP(EO123,'Footnotes list'!$D$9:$E$58,2,FALSE)=0,\"\",VLOOKUP(EO123,'Footnotes list'!$D$9:$E$58,2,FALSE) ) )","v":""},null,null,null,null,{"$f":"IF(TRIM(ET123)=\"\", \"\", IF(VLOOKUP(ET123,'Footnotes list'!$D$9:$E$58,2,FALSE)=0,\"\",VLOOKUP(ET123,'Footnotes list'!$D$9:$E$58,2,FALSE) ) )","v":""},null,null,null,null,{"$f":"IF(TRIM(EY123)=\"\", \"\", IF(VLOOKUP(EY123,'Footnotes list'!$D$9:$E$58,2,FALSE)=0,\"\",VLOOKUP(EY123,'Footnotes list'!$D$9:$E$58,2,FALSE) ) )","v":""}]
[null,null,"C31-C33","MKT","market activities, including:",null,null,null,null,null,{"$f":"IF(TRIM(J124)=\"\", \"\", IF(VLOOKUP(J124,'Footnotes list'!$D$9:$E$58,2,FALSE)=0,\"\",VLOOKUP(J124,'Footnotes list'!$D$9:$E$58,2,FALSE) ) )","v":""},null,null,null,null,{"$f":"IF(TRIM(O124)=\"\", \"\", IF(VLOOKUP(O124,'Footnotes list'!$D$9:$E$58,2,FALSE)=0,\"\",VLOOKUP(O124,'Footnotes list'!$D$9:$E$58,2,FALSE) ) )","v":""},null,null,null,null,{"$f":"IF(TRIM(T124)=\"\", \"\", IF(VLOOKUP(T124,'Footnotes list'!$D$9:$E$58,2,FALSE)=0,\"\",VLOOKUP(T124,'Footnotes list'!$D$9:$E$58,2,FALSE) ) )","v":""},null,null,null,null,{"$f":"IF(TRIM(Y124)=\"\", \"\", IF(VLOOKUP(Y124,'Footnotes list'!$D$9:$E$58,2,FALSE)=0,\"\",VLOOKUP(Y124,'Footnotes list'!$D$9:$E$58,2,FALSE) ) )","v":""},null,null,null,null,{"$f":"IF(TRIM(AD124)=\"\", \"\", IF(VLOOKUP(AD124,'Footnotes list'!$D$9:$E$58,2,FALSE)=0,\"\",VLOOKUP(AD124,'Footnotes list'!$D$9:$E$58,2,FALSE) ) )","v":""},null,null,null,null,{"$f":"IF(TRIM(AI124)=\"\", \"\", IF(VLOOKUP(AI124,'Footnotes list'!$D$9:$E$58,2,FALSE)=0,\"\",VLOOKUP(AI124,'Footnotes list'!$D$9:$E$58,2,FALSE) ) )","v":""},null,null,null,null,{"$f":"IF(TRIM(AN124)=\"\", \"\", IF(VLOOKUP(AN124,'Footnotes list'!$D$9:$E$58,2,FALSE)=0,\"\",VLOOKUP(AN124,'Footnotes list'!$D$9:$E$58,2,FALSE) ) )","v":""},null,null,null,null,{"$f":"IF(TRIM(AS124)=\"\", \"\", IF(VLOOKUP(AS124,'Footnotes list'!$D$9:$E$58,2,FALSE)=0,\"\",VLOOKUP(AS124,'Footnotes list'!$D$9:$E$58,2,FALSE) ) )","v":""},null,null,null,null,{"$f":"IF(TRIM(AX124)=\"\", \"\", IF(VLOOKUP(AX124,'Footnotes list'!$D$9:$E$58,2,FALSE)=0,\"\",VLOOKUP(AX124,'Footnotes list'!$D$9:$E$58,2,FALSE) ) )","v":""},null,null,null,null,{"$f":"IF(TRIM(BC124)=\"\", \"\", IF(VLOOKUP(BC124,'Footnotes list'!$D$9:$E$58,2,FALSE)=0,\"\",VLOOKUP(BC124,'Footnotes list'!$D$9:$E$58,2,FALSE) ) )","v":""},null,null,null,null,{"$f":"IF(TRIM(BH124)=\"\", \"\", IF(VLOOKUP(BH124,'Footnotes list'!$D$9:$E$58,2,FALSE)=0,\"\",VLOOKUP(BH124,'Footnotes list'!$D$9:$E$58,2,FALSE) ) )","v":""},null,null,null,null,{"$f":"IF(TRIM(BM124)=\"\", \"\", IF(VLOOKUP(BM124,'Footnotes list'!$D$9:$E$58,2,FALSE)=0,\"\",VLOOKUP(BM124,'Footnotes list'!$D$9:$E$58,2,FALSE) ) )","v":""},null,null,null,null,{"$f":"IF(TRIM(BR124)=\"\", \"\", IF(VLOOKUP(BR124,'Footnotes list'!$D$9:$E$58,2,FALSE)=0,\"\",VLOOKUP(BR124,'Footnotes list'!$D$9:$E$58,2,FALSE) ) )","v":""},null,null,null,null,{"$f":"IF(TRIM(BW124)=\"\", \"\", IF(VLOOKUP(BW124,'Footnotes list'!$D$9:$E$58,2,FALSE)=0,\"\",VLOOKUP(BW124,'Footnotes list'!$D$9:$E$58,2,FALSE) ) )","v":""},null,null,null,null,{"$f":"IF(TRIM(CB124)=\"\", \"\", IF(VLOOKUP(CB124,'Footnotes list'!$D$9:$E$58,2,FALSE)=0,\"\",VLOOKUP(CB124,'Footnotes list'!$D$9:$E$58,2,FALSE) ) )","v":""},null,null,null,null,{"$f":"IF(TRIM(CG124)=\"\", \"\", IF(VLOOKUP(CG124,'Footnotes list'!$D$9:$E$58,2,FALSE)=0,\"\",VLOOKUP(CG124,'Footnotes list'!$D$9:$E$58,2,FALSE) ) )","v":""},null,null,null,null,{"$f":"IF(TRIM(CL124)=\"\", \"\", IF(VLOOKUP(CL124,'Footnotes list'!$D$9:$E$58,2,FALSE)=0,\"\",VLOOKUP(CL124,'Footnotes list'!$D$9:$E$58,2,FALSE) ) )","v":""},null,null,null,null,{"$f":"IF(TRIM(CQ124)=\"\", \"\", IF(VLOOKUP(CQ124,'Footnotes list'!$D$9:$E$58,2,FALSE)=0,\"\",VLOOKUP(CQ124,'Footnotes list'!$D$9:$E$58,2,FALSE) ) )","v":""},null,null,null,null,{"$f":"IF(TRIM(CV124)=\"\", \"\", IF(VLOOKUP(CV124,'Footnotes list'!$D$9:$E$58,2,FALSE)=0,\"\",VLOOKUP(CV124,'Footnotes list'!$D$9:$E$58,2,FALSE) ) )","v":""},null,null,null,null,{"$f":"IF(TRIM(DA124)=\"\", \"\", IF(VLOOKUP(DA124,'Footnotes list'!$D$9:$E$58,2,FALSE)=0,\"\",VLOOKUP(DA124,'Footnotes list'!$D$9:$E$58,2,FALSE) ) )","v":""},null,null,null,null,{"$f":"IF(TRIM(DF124)=\"\", \"\", IF(VLOOKUP(DF124,'Footnotes list'!$D$9:$E$58,2,FALSE)=0,\"\",VLOOKUP(DF124,'Footnotes list'!$D$9:$E$58,2,FALSE) ) )","v":""},null,null,null,null,{"$f":"IF(TRIM(DK124)=\"\", \"\", IF(VLOOKUP(DK124,'Footnotes list'!$D$9:$E$58,2,FALSE)=0,\"\",VLOOKUP(DK124,'Footnotes list'!$D$9:$E$58,2,FALSE) ) )","v":""},null,null,null,null,{"$f":"IF(TRIM(DP124)=\"\", \"\", IF(VLOOKUP(DP124,'Footnotes list'!$D$9:$E$58,2,FALSE)=0,\"\",VLOOKUP(DP124,'Footnotes list'!$D$9:$E$58,2,FALSE) ) )","v":""},null,null,null,null,{"$f":"IF(TRIM(DU124)=\"\", \"\", IF(VLOOKUP(DU124,'Footnotes list'!$D$9:$E$58,2,FALSE)=0,\"\",VLOOKUP(DU124,'Footnotes list'!$D$9:$E$58,2,FALSE) ) )","v":""},null,null,null,null,{"$f":"IF(TRIM(DZ124)=\"\", \"\", IF(VLOOKUP(DZ124,'Footnotes list'!$D$9:$E$58,2,FALSE)=0,\"\",VLOOKUP(DZ124,'Footnotes list'!$D$9:$E$58,2,FALSE) ) )","v":""},null,null,null,null,{"$f":"IF(TRIM(EE124)=\"\", \"\", IF(VLOOKUP(EE124,'Footnotes list'!$D$9:$E$58,2,FALSE)=0,\"\",VLOOKUP(EE124,'Footnotes list'!$D$9:$E$58,2,FALSE) ) )","v":""},null,null,null,null,{"$f":"IF(TRIM(EJ124)=\"\", \"\", IF(VLOOKUP(EJ124,'Footnotes list'!$D$9:$E$58,2,FALSE)=0,\"\",VLOOKUP(EJ124,'Footnotes list'!$D$9:$E$58,2,FALSE) ) )","v":""},null,null,null,null,{"$f":"IF(TRIM(EO124)=\"\", \"\", IF(VLOOKUP(EO124,'Footnotes list'!$D$9:$E$58,2,FALSE)=0,\"\",VLOOKUP(EO124,'Footnotes list'!$D$9:$E$58,2,FALSE) ) )","v":""},null,null,null,null,{"$f":"IF(TRIM(ET124)=\"\", \"\", IF(VLOOKUP(ET124,'Footnotes list'!$D$9:$E$58,2,FALSE)=0,\"\",VLOOKUP(ET124,'Footnotes list'!$D$9:$E$58,2,FALSE) ) )","v":""},null,null,null,null,{"$f":"IF(TRIM(EY124)=\"\", \"\", IF(VLOOKUP(EY124,'Footnotes list'!$D$9:$E$58,2,FALSE)=0,\"\",VLOOKUP(EY124,'Footnotes list'!$D$9:$E$58,2,FALSE) ) )","v":""}]
[null,null,"C31-C33","ES_CS","environmental specific services",null,null,null,null,null,{"$f":"IF(TRIM(J125)=\"\", \"\", IF(VLOOKUP(J125,'Footnotes list'!$D$9:$E$58,2,FALSE)=0,\"\",VLOOKUP(J125,'Footnotes list'!$D$9:$E$58,2,FALSE) ) )","v":""},null,null,null,null,{"$f":"IF(TRIM(O125)=\"\", \"\", IF(VLOOKUP(O125,'Footnotes list'!$D$9:$E$58,2,FALSE)=0,\"\",VLOOKUP(O125,'Footnotes list'!$D$9:$E$58,2,FALSE) ) )","v":""},null,null,null,null,{"$f":"IF(TRIM(T125)=\"\", \"\", IF(VLOOKUP(T125,'Footnotes list'!$D$9:$E$58,2,FALSE)=0,\"\",VLOOKUP(T125,'Footnotes list'!$D$9:$E$58,2,FALSE) ) )","v":""},null,null,null,null,{"$f":"IF(TRIM(Y125)=\"\", \"\", IF(VLOOKUP(Y125,'Footnotes list'!$D$9:$E$58,2,FALSE)=0,\"\",VLOOKUP(Y125,'Footnotes list'!$D$9:$E$58,2,FALSE) ) )","v":""},null,null,null,null,{"$f":"IF(TRIM(AD125)=\"\", \"\", IF(VLOOKUP(AD125,'Footnotes list'!$D$9:$E$58,2,FALSE)=0,\"\",VLOOKUP(AD125,'Footnotes list'!$D$9:$E$58,2,FALSE) ) )","v":""},null,null,null,null,{"$f":"IF(TRIM(AI125)=\"\", \"\", IF(VLOOKUP(AI125,'Footnotes list'!$D$9:$E$58,2,FALSE)=0,\"\",VLOOKUP(AI125,'Footnotes list'!$D$9:$E$58,2,FALSE) ) )","v":""},null,null,null,null,{"$f":"IF(TRIM(AN125)=\"\", \"\", IF(VLOOKUP(AN125,'Footnotes list'!$D$9:$E$58,2,FALSE)=0,\"\",VLOOKUP(AN125,'Footnotes list'!$D$9:$E$58,2,FALSE) ) )","v":""},null,null,null,null,{"$f":"IF(TRIM(AS125)=\"\", \"\", IF(VLOOKUP(AS125,'Footnotes list'!$D$9:$E$58,2,FALSE)=0,\"\",VLOOKUP(AS125,'Footnotes list'!$D$9:$E$58,2,FALSE) ) )","v":""},null,null,null,null,{"$f":"IF(TRIM(AX125)=\"\", \"\", IF(VLOOKUP(AX125,'Footnotes list'!$D$9:$E$58,2,FALSE)=0,\"\",VLOOKUP(AX125,'Footnotes list'!$D$9:$E$58,2,FALSE) ) )","v":""},null,null,null,null,{"$f":"IF(TRIM(BC125)=\"\", \"\", IF(VLOOKUP(BC125,'Footnotes list'!$D$9:$E$58,2,FALSE)=0,\"\",VLOOKUP(BC125,'Footnotes list'!$D$9:$E$58,2,FALSE) ) )","v":""},null,null,null,null,{"$f":"IF(TRIM(BH125)=\"\", \"\", IF(VLOOKUP(BH125,'Footnotes list'!$D$9:$E$58,2,FALSE)=0,\"\",VLOOKUP(BH125,'Footnotes list'!$D$9:$E$58,2,FALSE) ) )","v":""},null,null,null,null,{"$f":"IF(TRIM(BM125)=\"\", \"\", IF(VLOOKUP(BM125,'Footnotes list'!$D$9:$E$58,2,FALSE)=0,\"\",VLOOKUP(BM125,'Footnotes list'!$D$9:$E$58,2,FALSE) ) )","v":""},null,null,null,null,{"$f":"IF(TRIM(BR125)=\"\", \"\", IF(VLOOKUP(BR125,'Footnotes list'!$D$9:$E$58,2,FALSE)=0,\"\",VLOOKUP(BR125,'Footnotes list'!$D$9:$E$58,2,FALSE) ) )","v":""},null,null,null,null,{"$f":"IF(TRIM(BW125)=\"\", \"\", IF(VLOOKUP(BW125,'Footnotes list'!$D$9:$E$58,2,FALSE)=0,\"\",VLOOKUP(BW125,'Footnotes list'!$D$9:$E$58,2,FALSE) ) )","v":""},null,null,null,null,{"$f":"IF(TRIM(CB125)=\"\", \"\", IF(VLOOKUP(CB125,'Footnotes list'!$D$9:$E$58,2,FALSE)=0,\"\",VLOOKUP(CB125,'Footnotes list'!$D$9:$E$58,2,FALSE) ) )","v":""},null,null,null,null,{"$f":"IF(TRIM(CG125)=\"\", \"\", IF(VLOOKUP(CG125,'Footnotes list'!$D$9:$E$58,2,FALSE)=0,\"\",VLOOKUP(CG125,'Footnotes list'!$D$9:$E$58,2,FALSE) ) )","v":""},null,null,null,null,{"$f":"IF(TRIM(CL125)=\"\", \"\", IF(VLOOKUP(CL125,'Footnotes list'!$D$9:$E$58,2,FALSE)=0,\"\",VLOOKUP(CL125,'Footnotes list'!$D$9:$E$58,2,FALSE) ) )","v":""},null,null,null,null,{"$f":"IF(TRIM(CQ125)=\"\", \"\", IF(VLOOKUP(CQ125,'Footnotes list'!$D$9:$E$58,2,FALSE)=0,\"\",VLOOKUP(CQ125,'Footnotes list'!$D$9:$E$58,2,FALSE) ) )","v":""},null,null,null,null,{"$f":"IF(TRIM(CV125)=\"\", \"\", IF(VLOOKUP(CV125,'Footnotes list'!$D$9:$E$58,2,FALSE)=0,\"\",VLOOKUP(CV125,'Footnotes list'!$D$9:$E$58,2,FALSE) ) )","v":""},null,null,null,null,{"$f":"IF(TRIM(DA125)=\"\", \"\", IF(VLOOKUP(DA125,'Footnotes list'!$D$9:$E$58,2,FALSE)=0,\"\",VLOOKUP(DA125,'Footnotes list'!$D$9:$E$58,2,FALSE) ) )","v":""},null,null,null,null,{"$f":"IF(TRIM(DF125)=\"\", \"\", IF(VLOOKUP(DF125,'Footnotes list'!$D$9:$E$58,2,FALSE)=0,\"\",VLOOKUP(DF125,'Footnotes list'!$D$9:$E$58,2,FALSE) ) )","v":""},null,null,null,null,{"$f":"IF(TRIM(DK125)=\"\", \"\", IF(VLOOKUP(DK125,'Footnotes list'!$D$9:$E$58,2,FALSE)=0,\"\",VLOOKUP(DK125,'Footnotes list'!$D$9:$E$58,2,FALSE) ) )","v":""},null,null,null,null,{"$f":"IF(TRIM(DP125)=\"\", \"\", IF(VLOOKUP(DP125,'Footnotes list'!$D$9:$E$58,2,FALSE)=0,\"\",VLOOKUP(DP125,'Footnotes list'!$D$9:$E$58,2,FALSE) ) )","v":""},null,null,null,null,{"$f":"IF(TRIM(DU125)=\"\", \"\", IF(VLOOKUP(DU125,'Footnotes list'!$D$9:$E$58,2,FALSE)=0,\"\",VLOOKUP(DU125,'Footnotes list'!$D$9:$E$58,2,FALSE) ) )","v":""},null,null,null,null,{"$f":"IF(TRIM(DZ125)=\"\", \"\", IF(VLOOKUP(DZ125,'Footnotes list'!$D$9:$E$58,2,FALSE)=0,\"\",VLOOKUP(DZ125,'Footnotes list'!$D$9:$E$58,2,FALSE) ) )","v":""},null,null,null,null,{"$f":"IF(TRIM(EE125)=\"\", \"\", IF(VLOOKUP(EE125,'Footnotes list'!$D$9:$E$58,2,FALSE)=0,\"\",VLOOKUP(EE125,'Footnotes list'!$D$9:$E$58,2,FALSE) ) )","v":""},null,null,null,null,{"$f":"IF(TRIM(EJ125)=\"\", \"\", IF(VLOOKUP(EJ125,'Footnotes list'!$D$9:$E$58,2,FALSE)=0,\"\",VLOOKUP(EJ125,'Footnotes list'!$D$9:$E$58,2,FALSE) ) )","v":""},null,null,null,null,{"$f":"IF(TRIM(EO125)=\"\", \"\", IF(VLOOKUP(EO125,'Footnotes list'!$D$9:$E$58,2,FALSE)=0,\"\",VLOOKUP(EO125,'Footnotes list'!$D$9:$E$58,2,FALSE) ) )","v":""},null,null,null,null,{"$f":"IF(TRIM(ET125)=\"\", \"\", IF(VLOOKUP(ET125,'Footnotes list'!$D$9:$E$58,2,FALSE)=0,\"\",VLOOKUP(ET125,'Footnotes list'!$D$9:$E$58,2,FALSE) ) )","v":""},null,null,null,null,{"$f":"IF(TRIM(EY125)=\"\", \"\", IF(VLOOKUP(EY125,'Footnotes list'!$D$9:$E$58,2,FALSE)=0,\"\",VLOOKUP(EY125,'Footnotes list'!$D$9:$E$58,2,FALSE) ) )","v":""}]
[null,null,"C31-C33","C_REP","cleaner and resource efficient products",null,null,null,null,null,{"$f":"IF(TRIM(J126)=\"\", \"\", IF(VLOOKUP(J126,'Footnotes list'!$D$9:$E$58,2,FALSE)=0,\"\",VLOOKUP(J126,'Footnotes list'!$D$9:$E$58,2,FALSE) ) )","v":""},null,null,null,null,{"$f":"IF(TRIM(O126)=\"\", \"\", IF(VLOOKUP(O126,'Footnotes list'!$D$9:$E$58,2,FALSE)=0,\"\",VLOOKUP(O126,'Footnotes list'!$D$9:$E$58,2,FALSE) ) )","v":""},null,null,null,null,{"$f":"IF(TRIM(T126)=\"\", \"\", IF(VLOOKUP(T126,'Footnotes list'!$D$9:$E$58,2,FALSE)=0,\"\",VLOOKUP(T126,'Footnotes list'!$D$9:$E$58,2,FALSE) ) )","v":""},null,null,null,null,{"$f":"IF(TRIM(Y126)=\"\", \"\", IF(VLOOKUP(Y126,'Footnotes list'!$D$9:$E$58,2,FALSE)=0,\"\",VLOOKUP(Y126,'Footnotes list'!$D$9:$E$58,2,FALSE) ) )","v":""},null,null,null,null,{"$f":"IF(TRIM(AD126)=\"\", \"\", IF(VLOOKUP(AD126,'Footnotes list'!$D$9:$E$58,2,FALSE)=0,\"\",VLOOKUP(AD126,'Footnotes list'!$D$9:$E$58,2,FALSE) ) )","v":""},null,null,null,null,{"$f":"IF(TRIM(AI126)=\"\", \"\", IF(VLOOKUP(AI126,'Footnotes list'!$D$9:$E$58,2,FALSE)=0,\"\",VLOOKUP(AI126,'Footnotes list'!$D$9:$E$58,2,FALSE) ) )","v":""},null,null,null,null,{"$f":"IF(TRIM(AN126)=\"\", \"\", IF(VLOOKUP(AN126,'Footnotes list'!$D$9:$E$58,2,FALSE)=0,\"\",VLOOKUP(AN126,'Footnotes list'!$D$9:$E$58,2,FALSE) ) )","v":""},null,null,null,null,{"$f":"IF(TRIM(AS126)=\"\", \"\", IF(VLOOKUP(AS126,'Footnotes list'!$D$9:$E$58,2,FALSE)=0,\"\",VLOOKUP(AS126,'Footnotes list'!$D$9:$E$58,2,FALSE) ) )","v":""},null,null,null,null,{"$f":"IF(TRIM(AX126)=\"\", \"\", IF(VLOOKUP(AX126,'Footnotes list'!$D$9:$E$58,2,FALSE)=0,\"\",VLOOKUP(AX126,'Footnotes list'!$D$9:$E$58,2,FALSE) ) )","v":""},null,null,null,null,{"$f":"IF(TRIM(BC126)=\"\", \"\", IF(VLOOKUP(BC126,'Footnotes list'!$D$9:$E$58,2,FALSE)=0,\"\",VLOOKUP(BC126,'Footnotes list'!$D$9:$E$58,2,FALSE) ) )","v":""},null,null,null,null,{"$f":"IF(TRIM(BH126)=\"\", \"\", IF(VLOOKUP(BH126,'Footnotes list'!$D$9:$E$58,2,FALSE)=0,\"\",VLOOKUP(BH126,'Footnotes list'!$D$9:$E$58,2,FALSE) ) )","v":""},null,null,null,null,{"$f":"IF(TRIM(BM126)=\"\", \"\", IF(VLOOKUP(BM126,'Footnotes list'!$D$9:$E$58,2,FALSE)=0,\"\",VLOOKUP(BM126,'Footnotes list'!$D$9:$E$58,2,FALSE) ) )","v":""},null,null,null,null,{"$f":"IF(TRIM(BR126)=\"\", \"\", IF(VLOOKUP(BR126,'Footnotes list'!$D$9:$E$58,2,FALSE)=0,\"\",VLOOKUP(BR126,'Footnotes list'!$D$9:$E$58,2,FALSE) ) )","v":""},null,null,null,null,{"$f":"IF(TRIM(BW126)=\"\", \"\", IF(VLOOKUP(BW126,'Footnotes list'!$D$9:$E$58,2,FALSE)=0,\"\",VLOOKUP(BW126,'Footnotes list'!$D$9:$E$58,2,FALSE) ) )","v":""},null,null,null,null,{"$f":"IF(TRIM(CB126)=\"\", \"\", IF(VLOOKUP(CB126,'Footnotes list'!$D$9:$E$58,2,FALSE)=0,\"\",VLOOKUP(CB126,'Footnotes list'!$D$9:$E$58,2,FALSE) ) )","v":""},null,null,null,null,{"$f":"IF(TRIM(CG126)=\"\", \"\", IF(VLOOKUP(CG126,'Footnotes list'!$D$9:$E$58,2,FALSE)=0,\"\",VLOOKUP(CG126,'Footnotes list'!$D$9:$E$58,2,FALSE) ) )","v":""},null,null,null,null,{"$f":"IF(TRIM(CL126)=\"\", \"\", IF(VLOOKUP(CL126,'Footnotes list'!$D$9:$E$58,2,FALSE)=0,\"\",VLOOKUP(CL126,'Footnotes list'!$D$9:$E$58,2,FALSE) ) )","v":""},null,null,null,null,{"$f":"IF(TRIM(CQ126)=\"\", \"\", IF(VLOOKUP(CQ126,'Footnotes list'!$D$9:$E$58,2,FALSE)=0,\"\",VLOOKUP(CQ126,'Footnotes list'!$D$9:$E$58,2,FALSE) ) )","v":""},null,null,null,null,{"$f":"IF(TRIM(CV126)=\"\", \"\", IF(VLOOKUP(CV126,'Footnotes list'!$D$9:$E$58,2,FALSE)=0,\"\",VLOOKUP(CV126,'Footnotes list'!$D$9:$E$58,2,FALSE) ) )","v":""},null,null,null,null,{"$f":"IF(TRIM(DA126)=\"\", \"\", IF(VLOOKUP(DA126,'Footnotes list'!$D$9:$E$58,2,FALSE)=0,\"\",VLOOKUP(DA126,'Footnotes list'!$D$9:$E$58,2,FALSE) ) )","v":""},null,null,null,null,{"$f":"IF(TRIM(DF126)=\"\", \"\", IF(VLOOKUP(DF126,'Footnotes list'!$D$9:$E$58,2,FALSE)=0,\"\",VLOOKUP(DF126,'Footnotes list'!$D$9:$E$58,2,FALSE) ) )","v":""},null,null,null,null,{"$f":"IF(TRIM(DK126)=\"\", \"\", IF(VLOOKUP(DK126,'Footnotes list'!$D$9:$E$58,2,FALSE)=0,\"\",VLOOKUP(DK126,'Footnotes list'!$D$9:$E$58,2,FALSE) ) )","v":""},null,null,null,null,{"$f":"IF(TRIM(DP126)=\"\", \"\", IF(VLOOKUP(DP126,'Footnotes list'!$D$9:$E$58,2,FALSE)=0,\"\",VLOOKUP(DP126,'Footnotes list'!$D$9:$E$58,2,FALSE) ) )","v":""},null,null,null,null,{"$f":"IF(TRIM(DU126)=\"\", \"\", IF(VLOOKUP(DU126,'Footnotes list'!$D$9:$E$58,2,FALSE)=0,\"\",VLOOKUP(DU126,'Footnotes list'!$D$9:$E$58,2,FALSE) ) )","v":""},null,null,null,null,{"$f":"IF(TRIM(DZ126)=\"\", \"\", IF(VLOOKUP(DZ126,'Footnotes list'!$D$9:$E$58,2,FALSE)=0,\"\",VLOOKUP(DZ126,'Footnotes list'!$D$9:$E$58,2,FALSE) ) )","v":""},null,null,null,null,{"$f":"IF(TRIM(EE126)=\"\", \"\", IF(VLOOKUP(EE126,'Footnotes list'!$D$9:$E$58,2,FALSE)=0,\"\",VLOOKUP(EE126,'Footnotes list'!$D$9:$E$58,2,FALSE) ) )","v":""},null,null,null,null,{"$f":"IF(TRIM(EJ126)=\"\", \"\", IF(VLOOKUP(EJ126,'Footnotes list'!$D$9:$E$58,2,FALSE)=0,\"\",VLOOKUP(EJ126,'Footnotes list'!$D$9:$E$58,2,FALSE) ) )","v":""},null,null,null,null,{"$f":"IF(TRIM(EO126)=\"\", \"\", IF(VLOOKUP(EO126,'Footnotes list'!$D$9:$E$58,2,FALSE)=0,\"\",VLOOKUP(EO126,'Footnotes list'!$D$9:$E$58,2,FALSE) ) )","v":""},null,null,null,null,{"$f":"IF(TRIM(ET126)=\"\", \"\", IF(VLOOKUP(ET126,'Footnotes list'!$D$9:$E$58,2,FALSE)=0,\"\",VLOOKUP(ET126,'Footnotes list'!$D$9:$E$58,2,FALSE) ) )","v":""},null,null,null,null,{"$f":"IF(TRIM(EY126)=\"\", \"\", IF(VLOOKUP(EY126,'Footnotes list'!$D$9:$E$58,2,FALSE)=0,\"\",VLOOKUP(EY126,'Footnotes list'!$D$9:$E$58,2,FALSE) ) )","v":""}]
[null,null,"D","TOT_EGSS","Total D - Electricity, gas, steam and air conditioning supply, of which:",null,null,null,null,null,{"$f":"IF(TRIM(J127)=\"\", \"\", IF(VLOOKUP(J127,'Footnotes list'!$D$9:$E$58,2,FALSE)=0,\"\",VLOOKUP(J127,'Footnotes list'!$D$9:$E$58,2,FALSE) ) )","v":""},null,null,null,null,{"$f":"IF(TRIM(O127)=\"\", \"\", IF(VLOOKUP(O127,'Footnotes list'!$D$9:$E$58,2,FALSE)=0,\"\",VLOOKUP(O127,'Footnotes list'!$D$9:$E$58,2,FALSE) ) )","v":""},null,null,null,null,{"$f":"IF(TRIM(T127)=\"\", \"\", IF(VLOOKUP(T127,'Footnotes list'!$D$9:$E$58,2,FALSE)=0,\"\",VLOOKUP(T127,'Footnotes list'!$D$9:$E$58,2,FALSE) ) )","v":""},null,null,null,null,{"$f":"IF(TRIM(Y127)=\"\", \"\", IF(VLOOKUP(Y127,'Footnotes list'!$D$9:$E$58,2,FALSE)=0,\"\",VLOOKUP(Y127,'Footnotes list'!$D$9:$E$58,2,FALSE) ) )","v":""},null,null,null,null,{"$f":"IF(TRIM(AD127)=\"\", \"\", IF(VLOOKUP(AD127,'Footnotes list'!$D$9:$E$58,2,FALSE)=0,\"\",VLOOKUP(AD127,'Footnotes list'!$D$9:$E$58,2,FALSE) ) )","v":""},null,null,null,null,{"$f":"IF(TRIM(AI127)=\"\", \"\", IF(VLOOKUP(AI127,'Footnotes list'!$D$9:$E$58,2,FALSE)=0,\"\",VLOOKUP(AI127,'Footnotes list'!$D$9:$E$58,2,FALSE) ) )","v":""},null,null,null,null,{"$f":"IF(TRIM(AN127)=\"\", \"\", IF(VLOOKUP(AN127,'Footnotes list'!$D$9:$E$58,2,FALSE)=0,\"\",VLOOKUP(AN127,'Footnotes list'!$D$9:$E$58,2,FALSE) ) )","v":""},null,null,null,null,{"$f":"IF(TRIM(AS127)=\"\", \"\", IF(VLOOKUP(AS127,'Footnotes list'!$D$9:$E$58,2,FALSE)=0,\"\",VLOOKUP(AS127,'Footnotes list'!$D$9:$E$58,2,FALSE) ) )","v":""},null,null,null,null,{"$f":"IF(TRIM(AX127)=\"\", \"\", IF(VLOOKUP(AX127,'Footnotes list'!$D$9:$E$58,2,FALSE)=0,\"\",VLOOKUP(AX127,'Footnotes list'!$D$9:$E$58,2,FALSE) ) )","v":""},null,null,null,null,{"$f":"IF(TRIM(BC127)=\"\", \"\", IF(VLOOKUP(BC127,'Footnotes list'!$D$9:$E$58,2,FALSE)=0,\"\",VLOOKUP(BC127,'Footnotes list'!$D$9:$E$58,2,FALSE) ) )","v":""},null,null,null,null,{"$f":"IF(TRIM(BH127)=\"\", \"\", IF(VLOOKUP(BH127,'Footnotes list'!$D$9:$E$58,2,FALSE)=0,\"\",VLOOKUP(BH127,'Footnotes list'!$D$9:$E$58,2,FALSE) ) )","v":""},null,null,null,null,{"$f":"IF(TRIM(BM127)=\"\", \"\", IF(VLOOKUP(BM127,'Footnotes list'!$D$9:$E$58,2,FALSE)=0,\"\",VLOOKUP(BM127,'Footnotes list'!$D$9:$E$58,2,FALSE) ) )","v":""},null,null,null,null,{"$f":"IF(TRIM(BR127)=\"\", \"\", IF(VLOOKUP(BR127,'Footnotes list'!$D$9:$E$58,2,FALSE)=0,\"\",VLOOKUP(BR127,'Footnotes list'!$D$9:$E$58,2,FALSE) ) )","v":""},null,null,null,null,{"$f":"IF(TRIM(BW127)=\"\", \"\", IF(VLOOKUP(BW127,'Footnotes list'!$D$9:$E$58,2,FALSE)=0,\"\",VLOOKUP(BW127,'Footnotes list'!$D$9:$E$58,2,FALSE) ) )","v":""},null,null,null,null,{"$f":"IF(TRIM(CB127)=\"\", \"\", IF(VLOOKUP(CB127,'Footnotes list'!$D$9:$E$58,2,FALSE)=0,\"\",VLOOKUP(CB127,'Footnotes list'!$D$9:$E$58,2,FALSE) ) )","v":""},null,null,null,null,{"$f":"IF(TRIM(CG127)=\"\", \"\", IF(VLOOKUP(CG127,'Footnotes list'!$D$9:$E$58,2,FALSE)=0,\"\",VLOOKUP(CG127,'Footnotes list'!$D$9:$E$58,2,FALSE) ) )","v":""},null,null,null,null,{"$f":"IF(TRIM(CL127)=\"\", \"\", IF(VLOOKUP(CL127,'Footnotes list'!$D$9:$E$58,2,FALSE)=0,\"\",VLOOKUP(CL127,'Footnotes list'!$D$9:$E$58,2,FALSE) ) )","v":""},null,null,null,null,{"$f":"IF(TRIM(CQ127)=\"\", \"\", IF(VLOOKUP(CQ127,'Footnotes list'!$D$9:$E$58,2,FALSE)=0,\"\",VLOOKUP(CQ127,'Footnotes list'!$D$9:$E$58,2,FALSE) ) )","v":""},null,null,null,null,{"$f":"IF(TRIM(CV127)=\"\", \"\", IF(VLOOKUP(CV127,'Footnotes list'!$D$9:$E$58,2,FALSE)=0,\"\",VLOOKUP(CV127,'Footnotes list'!$D$9:$E$58,2,FALSE) ) )","v":""},null,null,null,null,{"$f":"IF(TRIM(DA127)=\"\", \"\", IF(VLOOKUP(DA127,'Footnotes list'!$D$9:$E$58,2,FALSE)=0,\"\",VLOOKUP(DA127,'Footnotes list'!$D$9:$E$58,2,FALSE) ) )","v":""},null,null,null,null,{"$f":"IF(TRIM(DF127)=\"\", \"\", IF(VLOOKUP(DF127,'Footnotes list'!$D$9:$E$58,2,FALSE)=0,\"\",VLOOKUP(DF127,'Footnotes list'!$D$9:$E$58,2,FALSE) ) )","v":""},null,null,null,null,{"$f":"IF(TRIM(DK127)=\"\", \"\", IF(VLOOKUP(DK127,'Footnotes list'!$D$9:$E$58,2,FALSE)=0,\"\",VLOOKUP(DK127,'Footnotes list'!$D$9:$E$58,2,FALSE) ) )","v":""},null,null,null,null,{"$f":"IF(TRIM(DP127)=\"\", \"\", IF(VLOOKUP(DP127,'Footnotes list'!$D$9:$E$58,2,FALSE)=0,\"\",VLOOKUP(DP127,'Footnotes list'!$D$9:$E$58,2,FALSE) ) )","v":""},null,null,null,null,{"$f":"IF(TRIM(DU127)=\"\", \"\", IF(VLOOKUP(DU127,'Footnotes list'!$D$9:$E$58,2,FALSE)=0,\"\",VLOOKUP(DU127,'Footnotes list'!$D$9:$E$58,2,FALSE) ) )","v":""},null,null,null,null,{"$f":"IF(TRIM(DZ127)=\"\", \"\", IF(VLOOKUP(DZ127,'Footnotes list'!$D$9:$E$58,2,FALSE)=0,\"\",VLOOKUP(DZ127,'Footnotes list'!$D$9:$E$58,2,FALSE) ) )","v":""},null,null,null,null,{"$f":"IF(TRIM(EE127)=\"\", \"\", IF(VLOOKUP(EE127,'Footnotes list'!$D$9:$E$58,2,FALSE)=0,\"\",VLOOKUP(EE127,'Footnotes list'!$D$9:$E$58,2,FALSE) ) )","v":""},null,null,null,null,{"$f":"IF(TRIM(EJ127)=\"\", \"\", IF(VLOOKUP(EJ127,'Footnotes list'!$D$9:$E$58,2,FALSE)=0,\"\",VLOOKUP(EJ127,'Footnotes list'!$D$9:$E$58,2,FALSE) ) )","v":""},null,null,null,null,{"$f":"IF(TRIM(EO127)=\"\", \"\", IF(VLOOKUP(EO127,'Footnotes list'!$D$9:$E$58,2,FALSE)=0,\"\",VLOOKUP(EO127,'Footnotes list'!$D$9:$E$58,2,FALSE) ) )","v":""},null,null,null,null,{"$f":"IF(TRIM(ET127)=\"\", \"\", IF(VLOOKUP(ET127,'Footnotes list'!$D$9:$E$58,2,FALSE)=0,\"\",VLOOKUP(ET127,'Footnotes list'!$D$9:$E$58,2,FALSE) ) )","v":""},null,null,null,null,{"$f":"IF(TRIM(EY127)=\"\", \"\", IF(VLOOKUP(EY127,'Footnotes list'!$D$9:$E$58,2,FALSE)=0,\"\",VLOOKUP(EY127,'Footnotes list'!$D$9:$E$58,2,FALSE) ) )","v":""}]
[null,null,"D","ANC","ancillary activities",null,null,null,null,null,{"$f":"IF(TRIM(J128)=\"\", \"\", IF(VLOOKUP(J128,'Footnotes list'!$D$9:$E$58,2,FALSE)=0,\"\",VLOOKUP(J128,'Footnotes list'!$D$9:$E$58,2,FALSE) ) )","v":""},null,null,null,null,{"$f":"IF(TRIM(O128)=\"\", \"\", IF(VLOOKUP(O128,'Footnotes list'!$D$9:$E$58,2,FALSE)=0,\"\",VLOOKUP(O128,'Footnotes list'!$D$9:$E$58,2,FALSE) ) )","v":""},null,null,null,null,{"$f":"IF(TRIM(T128)=\"\", \"\", IF(VLOOKUP(T128,'Footnotes list'!$D$9:$E$58,2,FALSE)=0,\"\",VLOOKUP(T128,'Footnotes list'!$D$9:$E$58,2,FALSE) ) )","v":""},null,null,null,null,{"$f":"IF(TRIM(Y128)=\"\", \"\", IF(VLOOKUP(Y128,'Footnotes list'!$D$9:$E$58,2,FALSE)=0,\"\",VLOOKUP(Y128,'Footnotes list'!$D$9:$E$58,2,FALSE) ) )","v":""},null,null,null,null,{"$f":"IF(TRIM(AD128)=\"\", \"\", IF(VLOOKUP(AD128,'Footnotes list'!$D$9:$E$58,2,FALSE)=0,\"\",VLOOKUP(AD128,'Footnotes list'!$D$9:$E$58,2,FALSE) ) )","v":""},null,null,null,null,{"$f":"IF(TRIM(AI128)=\"\", \"\", IF(VLOOKUP(AI128,'Footnotes list'!$D$9:$E$58,2,FALSE)=0,\"\",VLOOKUP(AI128,'Footnotes list'!$D$9:$E$58,2,FALSE) ) )","v":""},null,null,null,null,{"$f":"IF(TRIM(AN128)=\"\", \"\", IF(VLOOKUP(AN128,'Footnotes list'!$D$9:$E$58,2,FALSE)=0,\"\",VLOOKUP(AN128,'Footnotes list'!$D$9:$E$58,2,FALSE) ) )","v":""},null,null,null,null,{"$f":"IF(TRIM(AS128)=\"\", \"\", IF(VLOOKUP(AS128,'Footnotes list'!$D$9:$E$58,2,FALSE)=0,\"\",VLOOKUP(AS128,'Footnotes list'!$D$9:$E$58,2,FALSE) ) )","v":""},null,null,null,null,{"$f":"IF(TRIM(AX128)=\"\", \"\", IF(VLOOKUP(AX128,'Footnotes list'!$D$9:$E$58,2,FALSE)=0,\"\",VLOOKUP(AX128,'Footnotes list'!$D$9:$E$58,2,FALSE) ) )","v":""},null,null,null,null,{"$f":"IF(TRIM(BC128)=\"\", \"\", IF(VLOOKUP(BC128,'Footnotes list'!$D$9:$E$58,2,FALSE)=0,\"\",VLOOKUP(BC128,'Footnotes list'!$D$9:$E$58,2,FALSE) ) )","v":""},null,null,null,null,{"$f":"IF(TRIM(BH128)=\"\", \"\", IF(VLOOKUP(BH128,'Footnotes list'!$D$9:$E$58,2,FALSE)=0,\"\",VLOOKUP(BH128,'Footnotes list'!$D$9:$E$58,2,FALSE) ) )","v":""},null,null,null,null,{"$f":"IF(TRIM(BM128)=\"\", \"\", IF(VLOOKUP(BM128,'Footnotes list'!$D$9:$E$58,2,FALSE)=0,\"\",VLOOKUP(BM128,'Footnotes list'!$D$9:$E$58,2,FALSE) ) )","v":""},null,null,null,null,{"$f":"IF(TRIM(BR128)=\"\", \"\", IF(VLOOKUP(BR128,'Footnotes list'!$D$9:$E$58,2,FALSE)=0,\"\",VLOOKUP(BR128,'Footnotes list'!$D$9:$E$58,2,FALSE) ) )","v":""},null,null,null,null,{"$f":"IF(TRIM(BW128)=\"\", \"\", IF(VLOOKUP(BW128,'Footnotes list'!$D$9:$E$58,2,FALSE)=0,\"\",VLOOKUP(BW128,'Footnotes list'!$D$9:$E$58,2,FALSE) ) )","v":""},null,null,null,null,{"$f":"IF(TRIM(CB128)=\"\", \"\", IF(VLOOKUP(CB128,'Footnotes list'!$D$9:$E$58,2,FALSE)=0,\"\",VLOOKUP(CB128,'Footnotes list'!$D$9:$E$58,2,FALSE) ) )","v":""},null,null,null,null,{"$f":"IF(TRIM(CG128)=\"\", \"\", IF(VLOOKUP(CG128,'Footnotes list'!$D$9:$E$58,2,FALSE)=0,\"\",VLOOKUP(CG128,'Footnotes list'!$D$9:$E$58,2,FALSE) ) )","v":""},null,null,null,null,{"$f":"IF(TRIM(CL128)=\"\", \"\", IF(VLOOKUP(CL128,'Footnotes list'!$D$9:$E$58,2,FALSE)=0,\"\",VLOOKUP(CL128,'Footnotes list'!$D$9:$E$58,2,FALSE) ) )","v":""},null,null,null,null,{"$f":"IF(TRIM(CQ128)=\"\", \"\", IF(VLOOKUP(CQ128,'Footnotes list'!$D$9:$E$58,2,FALSE)=0,\"\",VLOOKUP(CQ128,'Footnotes list'!$D$9:$E$58,2,FALSE) ) )","v":""},null,null,null,null,{"$f":"IF(TRIM(CV128)=\"\", \"\", IF(VLOOKUP(CV128,'Footnotes list'!$D$9:$E$58,2,FALSE)=0,\"\",VLOOKUP(CV128,'Footnotes list'!$D$9:$E$58,2,FALSE) ) )","v":""},null,null,null,null,{"$f":"IF(TRIM(DA128)=\"\", \"\", IF(VLOOKUP(DA128,'Footnotes list'!$D$9:$E$58,2,FALSE)=0,\"\",VLOOKUP(DA128,'Footnotes list'!$D$9:$E$58,2,FALSE) ) )","v":""},null,null,null,null,{"$f":"IF(TRIM(DF128)=\"\", \"\", IF(VLOOKUP(DF128,'Footnotes list'!$D$9:$E$58,2,FALSE)=0,\"\",VLOOKUP(DF128,'Footnotes list'!$D$9:$E$58,2,FALSE) ) )","v":""},null,null,null,null,{"$f":"IF(TRIM(DK128)=\"\", \"\", IF(VLOOKUP(DK128,'Footnotes list'!$D$9:$E$58,2,FALSE)=0,\"\",VLOOKUP(DK128,'Footnotes list'!$D$9:$E$58,2,FALSE) ) )","v":""},null,null,null,null,{"$f":"IF(TRIM(DP128)=\"\", \"\", IF(VLOOKUP(DP128,'Footnotes list'!$D$9:$E$58,2,FALSE)=0,\"\",VLOOKUP(DP128,'Footnotes list'!$D$9:$E$58,2,FALSE) ) )","v":""},null,null,null,null,{"$f":"IF(TRIM(DU128)=\"\", \"\", IF(VLOOKUP(DU128,'Footnotes list'!$D$9:$E$58,2,FALSE)=0,\"\",VLOOKUP(DU128,'Footnotes list'!$D$9:$E$58,2,FALSE) ) )","v":""},null,null,null,null,{"$f":"IF(TRIM(DZ128)=\"\", \"\", IF(VLOOKUP(DZ128,'Footnotes list'!$D$9:$E$58,2,FALSE)=0,\"\",VLOOKUP(DZ128,'Footnotes list'!$D$9:$E$58,2,FALSE) ) )","v":""},null,null,null,null,{"$f":"IF(TRIM(EE128)=\"\", \"\", IF(VLOOKUP(EE128,'Footnotes list'!$D$9:$E$58,2,FALSE)=0,\"\",VLOOKUP(EE128,'Footnotes list'!$D$9:$E$58,2,FALSE) ) )","v":""},null,null,null,null,{"$f":"IF(TRIM(EJ128)=\"\", \"\", IF(VLOOKUP(EJ128,'Footnotes list'!$D$9:$E$58,2,FALSE)=0,\"\",VLOOKUP(EJ128,'Footnotes list'!$D$9:$E$58,2,FALSE) ) )","v":""},null,null,null,null,{"$f":"IF(TRIM(EO128)=\"\", \"\", IF(VLOOKUP(EO128,'Footnotes list'!$D$9:$E$58,2,FALSE)=0,\"\",VLOOKUP(EO128,'Footnotes list'!$D$9:$E$58,2,FALSE) ) )","v":""},null,null,null,null,{"$f":"IF(TRIM(ET128)=\"\", \"\", IF(VLOOKUP(ET128,'Footnotes list'!$D$9:$E$58,2,FALSE)=0,\"\",VLOOKUP(ET128,'Footnotes list'!$D$9:$E$58,2,FALSE) ) )","v":""},null,null,null,null,{"$f":"IF(TRIM(EY128)=\"\", \"\", IF(VLOOKUP(EY128,'Footnotes list'!$D$9:$E$58,2,FALSE)=0,\"\",VLOOKUP(EY128,'Footnotes list'!$D$9:$E$58,2,FALSE) ) )","v":""}]
[null,null,"D","NMKT","non-market activities",null,null,null,null,null,{"$f":"IF(TRIM(J129)=\"\", \"\", IF(VLOOKUP(J129,'Footnotes list'!$D$9:$E$58,2,FALSE)=0,\"\",VLOOKUP(J129,'Footnotes list'!$D$9:$E$58,2,FALSE) ) )","v":""},null,null,null,null,{"$f":"IF(TRIM(O129)=\"\", \"\", IF(VLOOKUP(O129,'Footnotes list'!$D$9:$E$58,2,FALSE)=0,\"\",VLOOKUP(O129,'Footnotes list'!$D$9:$E$58,2,FALSE) ) )","v":""},null,null,null,null,{"$f":"IF(TRIM(T129)=\"\", \"\", IF(VLOOKUP(T129,'Footnotes list'!$D$9:$E$58,2,FALSE)=0,\"\",VLOOKUP(T129,'Footnotes list'!$D$9:$E$58,2,FALSE) ) )","v":""},null,null,null,null,{"$f":"IF(TRIM(Y129)=\"\", \"\", IF(VLOOKUP(Y129,'Footnotes list'!$D$9:$E$58,2,FALSE)=0,\"\",VLOOKUP(Y129,'Footnotes list'!$D$9:$E$58,2,FALSE) ) )","v":""},null,null,null,null,{"$f":"IF(TRIM(AD129)=\"\", \"\", IF(VLOOKUP(AD129,'Footnotes list'!$D$9:$E$58,2,FALSE)=0,\"\",VLOOKUP(AD129,'Footnotes list'!$D$9:$E$58,2,FALSE) ) )","v":""},null,null,null,null,{"$f":"IF(TRIM(AI129)=\"\", \"\", IF(VLOOKUP(AI129,'Footnotes list'!$D$9:$E$58,2,FALSE)=0,\"\",VLOOKUP(AI129,'Footnotes list'!$D$9:$E$58,2,FALSE) ) )","v":""},null,null,null,null,{"$f":"IF(TRIM(AN129)=\"\", \"\", IF(VLOOKUP(AN129,'Footnotes list'!$D$9:$E$58,2,FALSE)=0,\"\",VLOOKUP(AN129,'Footnotes list'!$D$9:$E$58,2,FALSE) ) )","v":""},null,null,null,null,{"$f":"IF(TRIM(AS129)=\"\", \"\", IF(VLOOKUP(AS129,'Footnotes list'!$D$9:$E$58,2,FALSE)=0,\"\",VLOOKUP(AS129,'Footnotes list'!$D$9:$E$58,2,FALSE) ) )","v":""},null,null,null,null,{"$f":"IF(TRIM(AX129)=\"\", \"\", IF(VLOOKUP(AX129,'Footnotes list'!$D$9:$E$58,2,FALSE)=0,\"\",VLOOKUP(AX129,'Footnotes list'!$D$9:$E$58,2,FALSE) ) )","v":""},null,null,null,null,{"$f":"IF(TRIM(BC129)=\"\", \"\", IF(VLOOKUP(BC129,'Footnotes list'!$D$9:$E$58,2,FALSE)=0,\"\",VLOOKUP(BC129,'Footnotes list'!$D$9:$E$58,2,FALSE) ) )","v":""},null,null,null,null,{"$f":"IF(TRIM(BH129)=\"\", \"\", IF(VLOOKUP(BH129,'Footnotes list'!$D$9:$E$58,2,FALSE)=0,\"\",VLOOKUP(BH129,'Footnotes list'!$D$9:$E$58,2,FALSE) ) )","v":""},null,null,null,null,{"$f":"IF(TRIM(BM129)=\"\", \"\", IF(VLOOKUP(BM129,'Footnotes list'!$D$9:$E$58,2,FALSE)=0,\"\",VLOOKUP(BM129,'Footnotes list'!$D$9:$E$58,2,FALSE) ) )","v":""},null,null,null,null,{"$f":"IF(TRIM(BR129)=\"\", \"\", IF(VLOOKUP(BR129,'Footnotes list'!$D$9:$E$58,2,FALSE)=0,\"\",VLOOKUP(BR129,'Footnotes list'!$D$9:$E$58,2,FALSE) ) )","v":""},null,null,null,null,{"$f":"IF(TRIM(BW129)=\"\", \"\", IF(VLOOKUP(BW129,'Footnotes list'!$D$9:$E$58,2,FALSE)=0,\"\",VLOOKUP(BW129,'Footnotes list'!$D$9:$E$58,2,FALSE) ) )","v":""},null,null,null,null,{"$f":"IF(TRIM(CB129)=\"\", \"\", IF(VLOOKUP(CB129,'Footnotes list'!$D$9:$E$58,2,FALSE)=0,\"\",VLOOKUP(CB129,'Footnotes list'!$D$9:$E$58,2,FALSE) ) )","v":""},null,null,null,null,{"$f":"IF(TRIM(CG129)=\"\", \"\", IF(VLOOKUP(CG129,'Footnotes list'!$D$9:$E$58,2,FALSE)=0,\"\",VLOOKUP(CG129,'Footnotes list'!$D$9:$E$58,2,FALSE) ) )","v":""},null,null,null,null,{"$f":"IF(TRIM(CL129)=\"\", \"\", IF(VLOOKUP(CL129,'Footnotes list'!$D$9:$E$58,2,FALSE)=0,\"\",VLOOKUP(CL129,'Footnotes list'!$D$9:$E$58,2,FALSE) ) )","v":""},null,null,null,null,{"$f":"IF(TRIM(CQ129)=\"\", \"\", IF(VLOOKUP(CQ129,'Footnotes list'!$D$9:$E$58,2,FALSE)=0,\"\",VLOOKUP(CQ129,'Footnotes list'!$D$9:$E$58,2,FALSE) ) )","v":""},null,null,null,null,{"$f":"IF(TRIM(CV129)=\"\", \"\", IF(VLOOKUP(CV129,'Footnotes list'!$D$9:$E$58,2,FALSE)=0,\"\",VLOOKUP(CV129,'Footnotes list'!$D$9:$E$58,2,FALSE) ) )","v":""},null,null,null,null,{"$f":"IF(TRIM(DA129)=\"\", \"\", IF(VLOOKUP(DA129,'Footnotes list'!$D$9:$E$58,2,FALSE)=0,\"\",VLOOKUP(DA129,'Footnotes list'!$D$9:$E$58,2,FALSE) ) )","v":""},null,null,null,null,{"$f":"IF(TRIM(DF129)=\"\", \"\", IF(VLOOKUP(DF129,'Footnotes list'!$D$9:$E$58,2,FALSE)=0,\"\",VLOOKUP(DF129,'Footnotes list'!$D$9:$E$58,2,FALSE) ) )","v":""},null,null,null,null,{"$f":"IF(TRIM(DK129)=\"\", \"\", IF(VLOOKUP(DK129,'Footnotes list'!$D$9:$E$58,2,FALSE)=0,\"\",VLOOKUP(DK129,'Footnotes list'!$D$9:$E$58,2,FALSE) ) )","v":""},null,null,null,null,{"$f":"IF(TRIM(DP129)=\"\", \"\", IF(VLOOKUP(DP129,'Footnotes list'!$D$9:$E$58,2,FALSE)=0,\"\",VLOOKUP(DP129,'Footnotes list'!$D$9:$E$58,2,FALSE) ) )","v":""},null,null,null,null,{"$f":"IF(TRIM(DU129)=\"\", \"\", IF(VLOOKUP(DU129,'Footnotes list'!$D$9:$E$58,2,FALSE)=0,\"\",VLOOKUP(DU129,'Footnotes list'!$D$9:$E$58,2,FALSE) ) )","v":""},null,null,null,null,{"$f":"IF(TRIM(DZ129)=\"\", \"\", IF(VLOOKUP(DZ129,'Footnotes list'!$D$9:$E$58,2,FALSE)=0,\"\",VLOOKUP(DZ129,'Footnotes list'!$D$9:$E$58,2,FALSE) ) )","v":""},null,null,null,null,{"$f":"IF(TRIM(EE129)=\"\", \"\", IF(VLOOKUP(EE129,'Footnotes list'!$D$9:$E$58,2,FALSE)=0,\"\",VLOOKUP(EE129,'Footnotes list'!$D$9:$E$58,2,FALSE) ) )","v":""},null,null,null,null,{"$f":"IF(TRIM(EJ129)=\"\", \"\", IF(VLOOKUP(EJ129,'Footnotes list'!$D$9:$E$58,2,FALSE)=0,\"\",VLOOKUP(EJ129,'Footnotes list'!$D$9:$E$58,2,FALSE) ) )","v":""},null,null,null,null,{"$f":"IF(TRIM(EO129)=\"\", \"\", IF(VLOOKUP(EO129,'Footnotes list'!$D$9:$E$58,2,FALSE)=0,\"\",VLOOKUP(EO129,'Footnotes list'!$D$9:$E$58,2,FALSE) ) )","v":""},null,null,null,null,{"$f":"IF(TRIM(ET129)=\"\", \"\", IF(VLOOKUP(ET129,'Footnotes list'!$D$9:$E$58,2,FALSE)=0,\"\",VLOOKUP(ET129,'Footnotes list'!$D$9:$E$58,2,FALSE) ) )","v":""},null,null,null,null,{"$f":"IF(TRIM(EY129)=\"\", \"\", IF(VLOOKUP(EY129,'Footnotes list'!$D$9:$E$58,2,FALSE)=0,\"\",VLOOKUP(EY129,'Footnotes list'!$D$9:$E$58,2,FALSE) ) )","v":""}]
[null,null,"D","OWN_USE","activities for own final use",null,null,null,null,null,{"$f":"IF(TRIM(J130)=\"\", \"\", IF(VLOOKUP(J130,'Footnotes list'!$D$9:$E$58,2,FALSE)=0,\"\",VLOOKUP(J130,'Footnotes list'!$D$9:$E$58,2,FALSE) ) )","v":""},null,null,null,null,{"$f":"IF(TRIM(O130)=\"\", \"\", IF(VLOOKUP(O130,'Footnotes list'!$D$9:$E$58,2,FALSE)=0,\"\",VLOOKUP(O130,'Footnotes list'!$D$9:$E$58,2,FALSE) ) )","v":""},null,null,null,null,{"$f":"IF(TRIM(T130)=\"\", \"\", IF(VLOOKUP(T130,'Footnotes list'!$D$9:$E$58,2,FALSE)=0,\"\",VLOOKUP(T130,'Footnotes list'!$D$9:$E$58,2,FALSE) ) )","v":""},null,null,null,null,{"$f":"IF(TRIM(Y130)=\"\", \"\", IF(VLOOKUP(Y130,'Footnotes list'!$D$9:$E$58,2,FALSE)=0,\"\",VLOOKUP(Y130,'Footnotes list'!$D$9:$E$58,2,FALSE) ) )","v":""},null,null,null,null,{"$f":"IF(TRIM(AD130)=\"\", \"\", IF(VLOOKUP(AD130,'Footnotes list'!$D$9:$E$58,2,FALSE)=0,\"\",VLOOKUP(AD130,'Footnotes list'!$D$9:$E$58,2,FALSE) ) )","v":""},null,null,null,null,{"$f":"IF(TRIM(AI130)=\"\", \"\", IF(VLOOKUP(AI130,'Footnotes list'!$D$9:$E$58,2,FALSE)=0,\"\",VLOOKUP(AI130,'Footnotes list'!$D$9:$E$58,2,FALSE) ) )","v":""},null,null,null,null,{"$f":"IF(TRIM(AN130)=\"\", \"\", IF(VLOOKUP(AN130,'Footnotes list'!$D$9:$E$58,2,FALSE)=0,\"\",VLOOKUP(AN130,'Footnotes list'!$D$9:$E$58,2,FALSE) ) )","v":""},null,null,null,null,{"$f":"IF(TRIM(AS130)=\"\", \"\", IF(VLOOKUP(AS130,'Footnotes list'!$D$9:$E$58,2,FALSE)=0,\"\",VLOOKUP(AS130,'Footnotes list'!$D$9:$E$58,2,FALSE) ) )","v":""},null,null,null,null,{"$f":"IF(TRIM(AX130)=\"\", \"\", IF(VLOOKUP(AX130,'Footnotes list'!$D$9:$E$58,2,FALSE)=0,\"\",VLOOKUP(AX130,'Footnotes list'!$D$9:$E$58,2,FALSE) ) )","v":""},null,null,null,null,{"$f":"IF(TRIM(BC130)=\"\", \"\", IF(VLOOKUP(BC130,'Footnotes list'!$D$9:$E$58,2,FALSE)=0,\"\",VLOOKUP(BC130,'Footnotes list'!$D$9:$E$58,2,FALSE) ) )","v":""},null,null,null,null,{"$f":"IF(TRIM(BH130)=\"\", \"\", IF(VLOOKUP(BH130,'Footnotes list'!$D$9:$E$58,2,FALSE)=0,\"\",VLOOKUP(BH130,'Footnotes list'!$D$9:$E$58,2,FALSE) ) )","v":""},null,null,null,null,{"$f":"IF(TRIM(BM130)=\"\", \"\", IF(VLOOKUP(BM130,'Footnotes list'!$D$9:$E$58,2,FALSE)=0,\"\",VLOOKUP(BM130,'Footnotes list'!$D$9:$E$58,2,FALSE) ) )","v":""},null,null,null,null,{"$f":"IF(TRIM(BR130)=\"\", \"\", IF(VLOOKUP(BR130,'Footnotes list'!$D$9:$E$58,2,FALSE)=0,\"\",VLOOKUP(BR130,'Footnotes list'!$D$9:$E$58,2,FALSE) ) )","v":""},null,null,null,null,{"$f":"IF(TRIM(BW130)=\"\", \"\", IF(VLOOKUP(BW130,'Footnotes list'!$D$9:$E$58,2,FALSE)=0,\"\",VLOOKUP(BW130,'Footnotes list'!$D$9:$E$58,2,FALSE) ) )","v":""},null,null,null,null,{"$f":"IF(TRIM(CB130)=\"\", \"\", IF(VLOOKUP(CB130,'Footnotes list'!$D$9:$E$58,2,FALSE)=0,\"\",VLOOKUP(CB130,'Footnotes list'!$D$9:$E$58,2,FALSE) ) )","v":""},null,null,null,null,{"$f":"IF(TRIM(CG130)=\"\", \"\", IF(VLOOKUP(CG130,'Footnotes list'!$D$9:$E$58,2,FALSE)=0,\"\",VLOOKUP(CG130,'Footnotes list'!$D$9:$E$58,2,FALSE) ) )","v":""},null,null,null,null,{"$f":"IF(TRIM(CL130)=\"\", \"\", IF(VLOOKUP(CL130,'Footnotes list'!$D$9:$E$58,2,FALSE)=0,\"\",VLOOKUP(CL130,'Footnotes list'!$D$9:$E$58,2,FALSE) ) )","v":""},null,null,null,null,{"$f":"IF(TRIM(CQ130)=\"\", \"\", IF(VLOOKUP(CQ130,'Footnotes list'!$D$9:$E$58,2,FALSE)=0,\"\",VLOOKUP(CQ130,'Footnotes list'!$D$9:$E$58,2,FALSE) ) )","v":""},null,null,null,null,{"$f":"IF(TRIM(CV130)=\"\", \"\", IF(VLOOKUP(CV130,'Footnotes list'!$D$9:$E$58,2,FALSE)=0,\"\",VLOOKUP(CV130,'Footnotes list'!$D$9:$E$58,2,FALSE) ) )","v":""},null,null,null,null,{"$f":"IF(TRIM(DA130)=\"\", \"\", IF(VLOOKUP(DA130,'Footnotes list'!$D$9:$E$58,2,FALSE)=0,\"\",VLOOKUP(DA130,'Footnotes list'!$D$9:$E$58,2,FALSE) ) )","v":""},null,null,null,null,{"$f":"IF(TRIM(DF130)=\"\", \"\", IF(VLOOKUP(DF130,'Footnotes list'!$D$9:$E$58,2,FALSE)=0,\"\",VLOOKUP(DF130,'Footnotes list'!$D$9:$E$58,2,FALSE) ) )","v":""},null,null,null,null,{"$f":"IF(TRIM(DK130)=\"\", \"\", IF(VLOOKUP(DK130,'Footnotes list'!$D$9:$E$58,2,FALSE)=0,\"\",VLOOKUP(DK130,'Footnotes list'!$D$9:$E$58,2,FALSE) ) )","v":""},null,null,null,null,{"$f":"IF(TRIM(DP130)=\"\", \"\", IF(VLOOKUP(DP130,'Footnotes list'!$D$9:$E$58,2,FALSE)=0,\"\",VLOOKUP(DP130,'Footnotes list'!$D$9:$E$58,2,FALSE) ) )","v":""},null,null,null,null,{"$f":"IF(TRIM(DU130)=\"\", \"\", IF(VLOOKUP(DU130,'Footnotes list'!$D$9:$E$58,2,FALSE)=0,\"\",VLOOKUP(DU130,'Footnotes list'!$D$9:$E$58,2,FALSE) ) )","v":""},null,null,null,null,{"$f":"IF(TRIM(DZ130)=\"\", \"\", IF(VLOOKUP(DZ130,'Footnotes list'!$D$9:$E$58,2,FALSE)=0,\"\",VLOOKUP(DZ130,'Footnotes list'!$D$9:$E$58,2,FALSE) ) )","v":""},null,null,null,null,{"$f":"IF(TRIM(EE130)=\"\", \"\", IF(VLOOKUP(EE130,'Footnotes list'!$D$9:$E$58,2,FALSE)=0,\"\",VLOOKUP(EE130,'Footnotes list'!$D$9:$E$58,2,FALSE) ) )","v":""},null,null,null,null,{"$f":"IF(TRIM(EJ130)=\"\", \"\", IF(VLOOKUP(EJ130,'Footnotes list'!$D$9:$E$58,2,FALSE)=0,\"\",VLOOKUP(EJ130,'Footnotes list'!$D$9:$E$58,2,FALSE) ) )","v":""},null,null,null,null,{"$f":"IF(TRIM(EO130)=\"\", \"\", IF(VLOOKUP(EO130,'Footnotes list'!$D$9:$E$58,2,FALSE)=0,\"\",VLOOKUP(EO130,'Footnotes list'!$D$9:$E$58,2,FALSE) ) )","v":""},null,null,null,null,{"$f":"IF(TRIM(ET130)=\"\", \"\", IF(VLOOKUP(ET130,'Footnotes list'!$D$9:$E$58,2,FALSE)=0,\"\",VLOOKUP(ET130,'Footnotes list'!$D$9:$E$58,2,FALSE) ) )","v":""},null,null,null,null,{"$f":"IF(TRIM(EY130)=\"\", \"\", IF(VLOOKUP(EY130,'Footnotes list'!$D$9:$E$58,2,FALSE)=0,\"\",VLOOKUP(EY130,'Footnotes list'!$D$9:$E$58,2,FALSE) ) )","v":""}]
[null,null,"D","MKT","market activities, including:",null,null,null,null,null,{"$f":"IF(TRIM(J131)=\"\", \"\", IF(VLOOKUP(J131,'Footnotes list'!$D$9:$E$58,2,FALSE)=0,\"\",VLOOKUP(J131,'Footnotes list'!$D$9:$E$58,2,FALSE) ) )","v":""},null,null,null,null,{"$f":"IF(TRIM(O131)=\"\", \"\", IF(VLOOKUP(O131,'Footnotes list'!$D$9:$E$58,2,FALSE)=0,\"\",VLOOKUP(O131,'Footnotes list'!$D$9:$E$58,2,FALSE) ) )","v":""},null,null,null,null,{"$f":"IF(TRIM(T131)=\"\", \"\", IF(VLOOKUP(T131,'Footnotes list'!$D$9:$E$58,2,FALSE)=0,\"\",VLOOKUP(T131,'Footnotes list'!$D$9:$E$58,2,FALSE) ) )","v":""},null,null,null,null,{"$f":"IF(TRIM(Y131)=\"\", \"\", IF(VLOOKUP(Y131,'Footnotes list'!$D$9:$E$58,2,FALSE)=0,\"\",VLOOKUP(Y131,'Footnotes list'!$D$9:$E$58,2,FALSE) ) )","v":""},null,null,null,null,{"$f":"IF(TRIM(AD131)=\"\", \"\", IF(VLOOKUP(AD131,'Footnotes list'!$D$9:$E$58,2,FALSE)=0,\"\",VLOOKUP(AD131,'Footnotes list'!$D$9:$E$58,2,FALSE) ) )","v":""},null,null,null,null,{"$f":"IF(TRIM(AI131)=\"\", \"\", IF(VLOOKUP(AI131,'Footnotes list'!$D$9:$E$58,2,FALSE)=0,\"\",VLOOKUP(AI131,'Footnotes list'!$D$9:$E$58,2,FALSE) ) )","v":""},null,null,null,null,{"$f":"IF(TRIM(AN131)=\"\", \"\", IF(VLOOKUP(AN131,'Footnotes list'!$D$9:$E$58,2,FALSE)=0,\"\",VLOOKUP(AN131,'Footnotes list'!$D$9:$E$58,2,FALSE) ) )","v":""},null,null,null,null,{"$f":"IF(TRIM(AS131)=\"\", \"\", IF(VLOOKUP(AS131,'Footnotes list'!$D$9:$E$58,2,FALSE)=0,\"\",VLOOKUP(AS131,'Footnotes list'!$D$9:$E$58,2,FALSE) ) )","v":""},null,null,null,null,{"$f":"IF(TRIM(AX131)=\"\", \"\", IF(VLOOKUP(AX131,'Footnotes list'!$D$9:$E$58,2,FALSE)=0,\"\",VLOOKUP(AX131,'Footnotes list'!$D$9:$E$58,2,FALSE) ) )","v":""},null,null,null,null,{"$f":"IF(TRIM(BC131)=\"\", \"\", IF(VLOOKUP(BC131,'Footnotes list'!$D$9:$E$58,2,FALSE)=0,\"\",VLOOKUP(BC131,'Footnotes list'!$D$9:$E$58,2,FALSE) ) )","v":""},null,null,null,null,{"$f":"IF(TRIM(BH131)=\"\", \"\", IF(VLOOKUP(BH131,'Footnotes list'!$D$9:$E$58,2,FALSE)=0,\"\",VLOOKUP(BH131,'Footnotes list'!$D$9:$E$58,2,FALSE) ) )","v":""},null,null,null,null,{"$f":"IF(TRIM(BM131)=\"\", \"\", IF(VLOOKUP(BM131,'Footnotes list'!$D$9:$E$58,2,FALSE)=0,\"\",VLOOKUP(BM131,'Footnotes list'!$D$9:$E$58,2,FALSE) ) )","v":""},null,null,null,null,{"$f":"IF(TRIM(BR131)=\"\", \"\", IF(VLOOKUP(BR131,'Footnotes list'!$D$9:$E$58,2,FALSE)=0,\"\",VLOOKUP(BR131,'Footnotes list'!$D$9:$E$58,2,FALSE) ) )","v":""},null,null,null,null,{"$f":"IF(TRIM(BW131)=\"\", \"\", IF(VLOOKUP(BW131,'Footnotes list'!$D$9:$E$58,2,FALSE)=0,\"\",VLOOKUP(BW131,'Footnotes list'!$D$9:$E$58,2,FALSE) ) )","v":""},null,null,null,null,{"$f":"IF(TRIM(CB131)=\"\", \"\", IF(VLOOKUP(CB131,'Footnotes list'!$D$9:$E$58,2,FALSE)=0,\"\",VLOOKUP(CB131,'Footnotes list'!$D$9:$E$58,2,FALSE) ) )","v":""},null,null,null,null,{"$f":"IF(TRIM(CG131)=\"\", \"\", IF(VLOOKUP(CG131,'Footnotes list'!$D$9:$E$58,2,FALSE)=0,\"\",VLOOKUP(CG131,'Footnotes list'!$D$9:$E$58,2,FALSE) ) )","v":""},null,null,null,null,{"$f":"IF(TRIM(CL131)=\"\", \"\", IF(VLOOKUP(CL131,'Footnotes list'!$D$9:$E$58,2,FALSE)=0,\"\",VLOOKUP(CL131,'Footnotes list'!$D$9:$E$58,2,FALSE) ) )","v":""},null,null,null,null,{"$f":"IF(TRIM(CQ131)=\"\", \"\", IF(VLOOKUP(CQ131,'Footnotes list'!$D$9:$E$58,2,FALSE)=0,\"\",VLOOKUP(CQ131,'Footnotes list'!$D$9:$E$58,2,FALSE) ) )","v":""},null,null,null,null,{"$f":"IF(TRIM(CV131)=\"\", \"\", IF(VLOOKUP(CV131,'Footnotes list'!$D$9:$E$58,2,FALSE)=0,\"\",VLOOKUP(CV131,'Footnotes list'!$D$9:$E$58,2,FALSE) ) )","v":""},null,null,null,null,{"$f":"IF(TRIM(DA131)=\"\", \"\", IF(VLOOKUP(DA131,'Footnotes list'!$D$9:$E$58,2,FALSE)=0,\"\",VLOOKUP(DA131,'Footnotes list'!$D$9:$E$58,2,FALSE) ) )","v":""},null,null,null,null,{"$f":"IF(TRIM(DF131)=\"\", \"\", IF(VLOOKUP(DF131,'Footnotes list'!$D$9:$E$58,2,FALSE)=0,\"\",VLOOKUP(DF131,'Footnotes list'!$D$9:$E$58,2,FALSE) ) )","v":""},null,null,null,null,{"$f":"IF(TRIM(DK131)=\"\", \"\", IF(VLOOKUP(DK131,'Footnotes list'!$D$9:$E$58,2,FALSE)=0,\"\",VLOOKUP(DK131,'Footnotes list'!$D$9:$E$58,2,FALSE) ) )","v":""},null,null,null,null,{"$f":"IF(TRIM(DP131)=\"\", \"\", IF(VLOOKUP(DP131,'Footnotes list'!$D$9:$E$58,2,FALSE)=0,\"\",VLOOKUP(DP131,'Footnotes list'!$D$9:$E$58,2,FALSE) ) )","v":""},null,null,null,null,{"$f":"IF(TRIM(DU131)=\"\", \"\", IF(VLOOKUP(DU131,'Footnotes list'!$D$9:$E$58,2,FALSE)=0,\"\",VLOOKUP(DU131,'Footnotes list'!$D$9:$E$58,2,FALSE) ) )","v":""},null,null,null,null,{"$f":"IF(TRIM(DZ131)=\"\", \"\", IF(VLOOKUP(DZ131,'Footnotes list'!$D$9:$E$58,2,FALSE)=0,\"\",VLOOKUP(DZ131,'Footnotes list'!$D$9:$E$58,2,FALSE) ) )","v":""},null,null,null,null,{"$f":"IF(TRIM(EE131)=\"\", \"\", IF(VLOOKUP(EE131,'Footnotes list'!$D$9:$E$58,2,FALSE)=0,\"\",VLOOKUP(EE131,'Footnotes list'!$D$9:$E$58,2,FALSE) ) )","v":""},null,null,null,null,{"$f":"IF(TRIM(EJ131)=\"\", \"\", IF(VLOOKUP(EJ131,'Footnotes list'!$D$9:$E$58,2,FALSE)=0,\"\",VLOOKUP(EJ131,'Footnotes list'!$D$9:$E$58,2,FALSE) ) )","v":""},null,null,null,null,{"$f":"IF(TRIM(EO131)=\"\", \"\", IF(VLOOKUP(EO131,'Footnotes list'!$D$9:$E$58,2,FALSE)=0,\"\",VLOOKUP(EO131,'Footnotes list'!$D$9:$E$58,2,FALSE) ) )","v":""},null,null,null,null,{"$f":"IF(TRIM(ET131)=\"\", \"\", IF(VLOOKUP(ET131,'Footnotes list'!$D$9:$E$58,2,FALSE)=0,\"\",VLOOKUP(ET131,'Footnotes list'!$D$9:$E$58,2,FALSE) ) )","v":""},null,null,null,null,{"$f":"IF(TRIM(EY131)=\"\", \"\", IF(VLOOKUP(EY131,'Footnotes list'!$D$9:$E$58,2,FALSE)=0,\"\",VLOOKUP(EY131,'Footnotes list'!$D$9:$E$58,2,FALSE) ) )","v":""}]
[null,null,"D","ES_CS","environmental specific services",null,null,null,null,null,{"$f":"IF(TRIM(J132)=\"\", \"\", IF(VLOOKUP(J132,'Footnotes list'!$D$9:$E$58,2,FALSE)=0,\"\",VLOOKUP(J132,'Footnotes list'!$D$9:$E$58,2,FALSE) ) )","v":""},null,null,null,null,{"$f":"IF(TRIM(O132)=\"\", \"\", IF(VLOOKUP(O132,'Footnotes list'!$D$9:$E$58,2,FALSE)=0,\"\",VLOOKUP(O132,'Footnotes list'!$D$9:$E$58,2,FALSE) ) )","v":""},null,null,null,null,{"$f":"IF(TRIM(T132)=\"\", \"\", IF(VLOOKUP(T132,'Footnotes list'!$D$9:$E$58,2,FALSE)=0,\"\",VLOOKUP(T132,'Footnotes list'!$D$9:$E$58,2,FALSE) ) )","v":""},null,null,null,null,{"$f":"IF(TRIM(Y132)=\"\", \"\", IF(VLOOKUP(Y132,'Footnotes list'!$D$9:$E$58,2,FALSE)=0,\"\",VLOOKUP(Y132,'Footnotes list'!$D$9:$E$58,2,FALSE) ) )","v":""},null,null,null,null,{"$f":"IF(TRIM(AD132)=\"\", \"\", IF(VLOOKUP(AD132,'Footnotes list'!$D$9:$E$58,2,FALSE)=0,\"\",VLOOKUP(AD132,'Footnotes list'!$D$9:$E$58,2,FALSE) ) )","v":""},null,null,null,null,{"$f":"IF(TRIM(AI132)=\"\", \"\", IF(VLOOKUP(AI132,'Footnotes list'!$D$9:$E$58,2,FALSE)=0,\"\",VLOOKUP(AI132,'Footnotes list'!$D$9:$E$58,2,FALSE) ) )","v":""},null,null,null,null,{"$f":"IF(TRIM(AN132)=\"\", \"\", IF(VLOOKUP(AN132,'Footnotes list'!$D$9:$E$58,2,FALSE)=0,\"\",VLOOKUP(AN132,'Footnotes list'!$D$9:$E$58,2,FALSE) ) )","v":""},null,null,null,null,{"$f":"IF(TRIM(AS132)=\"\", \"\", IF(VLOOKUP(AS132,'Footnotes list'!$D$9:$E$58,2,FALSE)=0,\"\",VLOOKUP(AS132,'Footnotes list'!$D$9:$E$58,2,FALSE) ) )","v":""},null,null,null,null,{"$f":"IF(TRIM(AX132)=\"\", \"\", IF(VLOOKUP(AX132,'Footnotes list'!$D$9:$E$58,2,FALSE)=0,\"\",VLOOKUP(AX132,'Footnotes list'!$D$9:$E$58,2,FALSE) ) )","v":""},null,null,null,null,{"$f":"IF(TRIM(BC132)=\"\", \"\", IF(VLOOKUP(BC132,'Footnotes list'!$D$9:$E$58,2,FALSE)=0,\"\",VLOOKUP(BC132,'Footnotes list'!$D$9:$E$58,2,FALSE) ) )","v":""},null,null,null,null,{"$f":"IF(TRIM(BH132)=\"\", \"\", IF(VLOOKUP(BH132,'Footnotes list'!$D$9:$E$58,2,FALSE)=0,\"\",VLOOKUP(BH132,'Footnotes list'!$D$9:$E$58,2,FALSE) ) )","v":""},null,null,null,null,{"$f":"IF(TRIM(BM132)=\"\", \"\", IF(VLOOKUP(BM132,'Footnotes list'!$D$9:$E$58,2,FALSE)=0,\"\",VLOOKUP(BM132,'Footnotes list'!$D$9:$E$58,2,FALSE) ) )","v":""},null,null,null,null,{"$f":"IF(TRIM(BR132)=\"\", \"\", IF(VLOOKUP(BR132,'Footnotes list'!$D$9:$E$58,2,FALSE)=0,\"\",VLOOKUP(BR132,'Footnotes list'!$D$9:$E$58,2,FALSE) ) )","v":""},null,null,null,null,{"$f":"IF(TRIM(BW132)=\"\", \"\", IF(VLOOKUP(BW132,'Footnotes list'!$D$9:$E$58,2,FALSE)=0,\"\",VLOOKUP(BW132,'Footnotes list'!$D$9:$E$58,2,FALSE) ) )","v":""},null,null,null,null,{"$f":"IF(TRIM(CB132)=\"\", \"\", IF(VLOOKUP(CB132,'Footnotes list'!$D$9:$E$58,2,FALSE)=0,\"\",VLOOKUP(CB132,'Footnotes list'!$D$9:$E$58,2,FALSE) ) )","v":""},null,null,null,null,{"$f":"IF(TRIM(CG132)=\"\", \"\", IF(VLOOKUP(CG132,'Footnotes list'!$D$9:$E$58,2,FALSE)=0,\"\",VLOOKUP(CG132,'Footnotes list'!$D$9:$E$58,2,FALSE) ) )","v":""},null,null,null,null,{"$f":"IF(TRIM(CL132)=\"\", \"\", IF(VLOOKUP(CL132,'Footnotes list'!$D$9:$E$58,2,FALSE)=0,\"\",VLOOKUP(CL132,'Footnotes list'!$D$9:$E$58,2,FALSE) ) )","v":""},null,null,null,null,{"$f":"IF(TRIM(CQ132)=\"\", \"\", IF(VLOOKUP(CQ132,'Footnotes list'!$D$9:$E$58,2,FALSE)=0,\"\",VLOOKUP(CQ132,'Footnotes list'!$D$9:$E$58,2,FALSE) ) )","v":""},null,null,null,null,{"$f":"IF(TRIM(CV132)=\"\", \"\", IF(VLOOKUP(CV132,'Footnotes list'!$D$9:$E$58,2,FALSE)=0,\"\",VLOOKUP(CV132,'Footnotes list'!$D$9:$E$58,2,FALSE) ) )","v":""},null,null,null,null,{"$f":"IF(TRIM(DA132)=\"\", \"\", IF(VLOOKUP(DA132,'Footnotes list'!$D$9:$E$58,2,FALSE)=0,\"\",VLOOKUP(DA132,'Footnotes list'!$D$9:$E$58,2,FALSE) ) )","v":""},null,null,null,null,{"$f":"IF(TRIM(DF132)=\"\", \"\", IF(VLOOKUP(DF132,'Footnotes list'!$D$9:$E$58,2,FALSE)=0,\"\",VLOOKUP(DF132,'Footnotes list'!$D$9:$E$58,2,FALSE) ) )","v":""},null,null,null,null,{"$f":"IF(TRIM(DK132)=\"\", \"\", IF(VLOOKUP(DK132,'Footnotes list'!$D$9:$E$58,2,FALSE)=0,\"\",VLOOKUP(DK132,'Footnotes list'!$D$9:$E$58,2,FALSE) ) )","v":""},null,null,null,null,{"$f":"IF(TRIM(DP132)=\"\", \"\", IF(VLOOKUP(DP132,'Footnotes list'!$D$9:$E$58,2,FALSE)=0,\"\",VLOOKUP(DP132,'Footnotes list'!$D$9:$E$58,2,FALSE) ) )","v":""},null,null,null,null,{"$f":"IF(TRIM(DU132)=\"\", \"\", IF(VLOOKUP(DU132,'Footnotes list'!$D$9:$E$58,2,FALSE)=0,\"\",VLOOKUP(DU132,'Footnotes list'!$D$9:$E$58,2,FALSE) ) )","v":""},null,null,null,null,{"$f":"IF(TRIM(DZ132)=\"\", \"\", IF(VLOOKUP(DZ132,'Footnotes list'!$D$9:$E$58,2,FALSE)=0,\"\",VLOOKUP(DZ132,'Footnotes list'!$D$9:$E$58,2,FALSE) ) )","v":""},null,null,null,null,{"$f":"IF(TRIM(EE132)=\"\", \"\", IF(VLOOKUP(EE132,'Footnotes list'!$D$9:$E$58,2,FALSE)=0,\"\",VLOOKUP(EE132,'Footnotes list'!$D$9:$E$58,2,FALSE) ) )","v":""},null,null,null,null,{"$f":"IF(TRIM(EJ132)=\"\", \"\", IF(VLOOKUP(EJ132,'Footnotes list'!$D$9:$E$58,2,FALSE)=0,\"\",VLOOKUP(EJ132,'Footnotes list'!$D$9:$E$58,2,FALSE) ) )","v":""},null,null,null,null,{"$f":"IF(TRIM(EO132)=\"\", \"\", IF(VLOOKUP(EO132,'Footnotes list'!$D$9:$E$58,2,FALSE)=0,\"\",VLOOKUP(EO132,'Footnotes list'!$D$9:$E$58,2,FALSE) ) )","v":""},null,null,null,null,{"$f":"IF(TRIM(ET132)=\"\", \"\", IF(VLOOKUP(ET132,'Footnotes list'!$D$9:$E$58,2,FALSE)=0,\"\",VLOOKUP(ET132,'Footnotes list'!$D$9:$E$58,2,FALSE) ) )","v":""},null,null,null,null,{"$f":"IF(TRIM(EY132)=\"\", \"\", IF(VLOOKUP(EY132,'Footnotes list'!$D$9:$E$58,2,FALSE)=0,\"\",VLOOKUP(EY132,'Footnotes list'!$D$9:$E$58,2,FALSE) ) )","v":""}]
[null,null,"D","C_REP","cleaner and resource efficient products",null,null,null,null,null,{"$f":"IF(TRIM(J133)=\"\", \"\", IF(VLOOKUP(J133,'Footnotes list'!$D$9:$E$58,2,FALSE)=0,\"\",VLOOKUP(J133,'Footnotes list'!$D$9:$E$58,2,FALSE) ) )","v":""},null,null,null,null,{"$f":"IF(TRIM(O133)=\"\", \"\", IF(VLOOKUP(O133,'Footnotes list'!$D$9:$E$58,2,FALSE)=0,\"\",VLOOKUP(O133,'Footnotes list'!$D$9:$E$58,2,FALSE) ) )","v":""},null,null,null,null,{"$f":"IF(TRIM(T133)=\"\", \"\", IF(VLOOKUP(T133,'Footnotes list'!$D$9:$E$58,2,FALSE)=0,\"\",VLOOKUP(T133,'Footnotes list'!$D$9:$E$58,2,FALSE) ) )","v":""},null,null,null,null,{"$f":"IF(TRIM(Y133)=\"\", \"\", IF(VLOOKUP(Y133,'Footnotes list'!$D$9:$E$58,2,FALSE)=0,\"\",VLOOKUP(Y133,'Footnotes list'!$D$9:$E$58,2,FALSE) ) )","v":""},null,null,null,null,{"$f":"IF(TRIM(AD133)=\"\", \"\", IF(VLOOKUP(AD133,'Footnotes list'!$D$9:$E$58,2,FALSE)=0,\"\",VLOOKUP(AD133,'Footnotes list'!$D$9:$E$58,2,FALSE) ) )","v":""},null,null,null,null,{"$f":"IF(TRIM(AI133)=\"\", \"\", IF(VLOOKUP(AI133,'Footnotes list'!$D$9:$E$58,2,FALSE)=0,\"\",VLOOKUP(AI133,'Footnotes list'!$D$9:$E$58,2,FALSE) ) )","v":""},null,null,null,null,{"$f":"IF(TRIM(AN133)=\"\", \"\", IF(VLOOKUP(AN133,'Footnotes list'!$D$9:$E$58,2,FALSE)=0,\"\",VLOOKUP(AN133,'Footnotes list'!$D$9:$E$58,2,FALSE) ) )","v":""},null,null,null,null,{"$f":"IF(TRIM(AS133)=\"\", \"\", IF(VLOOKUP(AS133,'Footnotes list'!$D$9:$E$58,2,FALSE)=0,\"\",VLOOKUP(AS133,'Footnotes list'!$D$9:$E$58,2,FALSE) ) )","v":""},null,null,null,null,{"$f":"IF(TRIM(AX133)=\"\", \"\", IF(VLOOKUP(AX133,'Footnotes list'!$D$9:$E$58,2,FALSE)=0,\"\",VLOOKUP(AX133,'Footnotes list'!$D$9:$E$58,2,FALSE) ) )","v":""},null,null,null,null,{"$f":"IF(TRIM(BC133)=\"\", \"\", IF(VLOOKUP(BC133,'Footnotes list'!$D$9:$E$58,2,FALSE)=0,\"\",VLOOKUP(BC133,'Footnotes list'!$D$9:$E$58,2,FALSE) ) )","v":""},null,null,null,null,{"$f":"IF(TRIM(BH133)=\"\", \"\", IF(VLOOKUP(BH133,'Footnotes list'!$D$9:$E$58,2,FALSE)=0,\"\",VLOOKUP(BH133,'Footnotes list'!$D$9:$E$58,2,FALSE) ) )","v":""},null,null,null,null,{"$f":"IF(TRIM(BM133)=\"\", \"\", IF(VLOOKUP(BM133,'Footnotes list'!$D$9:$E$58,2,FALSE)=0,\"\",VLOOKUP(BM133,'Footnotes list'!$D$9:$E$58,2,FALSE) ) )","v":""},null,null,null,null,{"$f":"IF(TRIM(BR133)=\"\", \"\", IF(VLOOKUP(BR133,'Footnotes list'!$D$9:$E$58,2,FALSE)=0,\"\",VLOOKUP(BR133,'Footnotes list'!$D$9:$E$58,2,FALSE) ) )","v":""},null,null,null,null,{"$f":"IF(TRIM(BW133)=\"\", \"\", IF(VLOOKUP(BW133,'Footnotes list'!$D$9:$E$58,2,FALSE)=0,\"\",VLOOKUP(BW133,'Footnotes list'!$D$9:$E$58,2,FALSE) ) )","v":""},null,null,null,null,{"$f":"IF(TRIM(CB133)=\"\", \"\", IF(VLOOKUP(CB133,'Footnotes list'!$D$9:$E$58,2,FALSE)=0,\"\",VLOOKUP(CB133,'Footnotes list'!$D$9:$E$58,2,FALSE) ) )","v":""},null,null,null,null,{"$f":"IF(TRIM(CG133)=\"\", \"\", IF(VLOOKUP(CG133,'Footnotes list'!$D$9:$E$58,2,FALSE)=0,\"\",VLOOKUP(CG133,'Footnotes list'!$D$9:$E$58,2,FALSE) ) )","v":""},null,null,null,null,{"$f":"IF(TRIM(CL133)=\"\", \"\", IF(VLOOKUP(CL133,'Footnotes list'!$D$9:$E$58,2,FALSE)=0,\"\",VLOOKUP(CL133,'Footnotes list'!$D$9:$E$58,2,FALSE) ) )","v":""},null,null,null,null,{"$f":"IF(TRIM(CQ133)=\"\", \"\", IF(VLOOKUP(CQ133,'Footnotes list'!$D$9:$E$58,2,FALSE)=0,\"\",VLOOKUP(CQ133,'Footnotes list'!$D$9:$E$58,2,FALSE) ) )","v":""},null,null,null,null,{"$f":"IF(TRIM(CV133)=\"\", \"\", IF(VLOOKUP(CV133,'Footnotes list'!$D$9:$E$58,2,FALSE)=0,\"\",VLOOKUP(CV133,'Footnotes list'!$D$9:$E$58,2,FALSE) ) )","v":""},null,null,null,null,{"$f":"IF(TRIM(DA133)=\"\", \"\", IF(VLOOKUP(DA133,'Footnotes list'!$D$9:$E$58,2,FALSE)=0,\"\",VLOOKUP(DA133,'Footnotes list'!$D$9:$E$58,2,FALSE) ) )","v":""},null,null,null,null,{"$f":"IF(TRIM(DF133)=\"\", \"\", IF(VLOOKUP(DF133,'Footnotes list'!$D$9:$E$58,2,FALSE)=0,\"\",VLOOKUP(DF133,'Footnotes list'!$D$9:$E$58,2,FALSE) ) )","v":""},null,null,null,null,{"$f":"IF(TRIM(DK133)=\"\", \"\", IF(VLOOKUP(DK133,'Footnotes list'!$D$9:$E$58,2,FALSE)=0,\"\",VLOOKUP(DK133,'Footnotes list'!$D$9:$E$58,2,FALSE) ) )","v":""},null,null,null,null,{"$f":"IF(TRIM(DP133)=\"\", \"\", IF(VLOOKUP(DP133,'Footnotes list'!$D$9:$E$58,2,FALSE)=0,\"\",VLOOKUP(DP133,'Footnotes list'!$D$9:$E$58,2,FALSE) ) )","v":""},null,null,null,null,{"$f":"IF(TRIM(DU133)=\"\", \"\", IF(VLOOKUP(DU133,'Footnotes list'!$D$9:$E$58,2,FALSE)=0,\"\",VLOOKUP(DU133,'Footnotes list'!$D$9:$E$58,2,FALSE) ) )","v":""},null,null,null,null,{"$f":"IF(TRIM(DZ133)=\"\", \"\", IF(VLOOKUP(DZ133,'Footnotes list'!$D$9:$E$58,2,FALSE)=0,\"\",VLOOKUP(DZ133,'Footnotes list'!$D$9:$E$58,2,FALSE) ) )","v":""},null,null,null,null,{"$f":"IF(TRIM(EE133)=\"\", \"\", IF(VLOOKUP(EE133,'Footnotes list'!$D$9:$E$58,2,FALSE)=0,\"\",VLOOKUP(EE133,'Footnotes list'!$D$9:$E$58,2,FALSE) ) )","v":""},null,null,null,null,{"$f":"IF(TRIM(EJ133)=\"\", \"\", IF(VLOOKUP(EJ133,'Footnotes list'!$D$9:$E$58,2,FALSE)=0,\"\",VLOOKUP(EJ133,'Footnotes list'!$D$9:$E$58,2,FALSE) ) )","v":""},null,null,null,null,{"$f":"IF(TRIM(EO133)=\"\", \"\", IF(VLOOKUP(EO133,'Footnotes list'!$D$9:$E$58,2,FALSE)=0,\"\",VLOOKUP(EO133,'Footnotes list'!$D$9:$E$58,2,FALSE) ) )","v":""},null,null,null,null,{"$f":"IF(TRIM(ET133)=\"\", \"\", IF(VLOOKUP(ET133,'Footnotes list'!$D$9:$E$58,2,FALSE)=0,\"\",VLOOKUP(ET133,'Footnotes list'!$D$9:$E$58,2,FALSE) ) )","v":""},null,null,null,null,{"$f":"IF(TRIM(EY133)=\"\", \"\", IF(VLOOKUP(EY133,'Footnotes list'!$D$9:$E$58,2,FALSE)=0,\"\",VLOOKUP(EY133,'Footnotes list'!$D$9:$E$58,2,FALSE) ) )","v":""}]
[null,null,"E","TOT_EGSS","Total E - Water supply; sewerage, waste management and remediation activities, of which:",null,null,null,null,null,{"$f":"IF(TRIM(J134)=\"\", \"\", IF(VLOOKUP(J134,'Footnotes list'!$D$9:$E$58,2,FALSE)=0,\"\",VLOOKUP(J134,'Footnotes list'!$D$9:$E$58,2,FALSE) ) )","v":""},null,null,null,null,{"$f":"IF(TRIM(O134)=\"\", \"\", IF(VLOOKUP(O134,'Footnotes list'!$D$9:$E$58,2,FALSE)=0,\"\",VLOOKUP(O134,'Footnotes list'!$D$9:$E$58,2,FALSE) ) )","v":""},null,null,null,null,{"$f":"IF(TRIM(T134)=\"\", \"\", IF(VLOOKUP(T134,'Footnotes list'!$D$9:$E$58,2,FALSE)=0,\"\",VLOOKUP(T134,'Footnotes list'!$D$9:$E$58,2,FALSE) ) )","v":""},null,null,null,null,{"$f":"IF(TRIM(Y134)=\"\", \"\", IF(VLOOKUP(Y134,'Footnotes list'!$D$9:$E$58,2,FALSE)=0,\"\",VLOOKUP(Y134,'Footnotes list'!$D$9:$E$58,2,FALSE) ) )","v":""},null,null,null,null,{"$f":"IF(TRIM(AD134)=\"\", \"\", IF(VLOOKUP(AD134,'Footnotes list'!$D$9:$E$58,2,FALSE)=0,\"\",VLOOKUP(AD134,'Footnotes list'!$D$9:$E$58,2,FALSE) ) )","v":""},null,null,null,null,{"$f":"IF(TRIM(AI134)=\"\", \"\", IF(VLOOKUP(AI134,'Footnotes list'!$D$9:$E$58,2,FALSE)=0,\"\",VLOOKUP(AI134,'Footnotes list'!$D$9:$E$58,2,FALSE) ) )","v":""},null,null,null,null,{"$f":"IF(TRIM(AN134)=\"\", \"\", IF(VLOOKUP(AN134,'Footnotes list'!$D$9:$E$58,2,FALSE)=0,\"\",VLOOKUP(AN134,'Footnotes list'!$D$9:$E$58,2,FALSE) ) )","v":""},null,null,null,null,{"$f":"IF(TRIM(AS134)=\"\", \"\", IF(VLOOKUP(AS134,'Footnotes list'!$D$9:$E$58,2,FALSE)=0,\"\",VLOOKUP(AS134,'Footnotes list'!$D$9:$E$58,2,FALSE) ) )","v":""},null,null,null,null,{"$f":"IF(TRIM(AX134)=\"\", \"\", IF(VLOOKUP(AX134,'Footnotes list'!$D$9:$E$58,2,FALSE)=0,\"\",VLOOKUP(AX134,'Footnotes list'!$D$9:$E$58,2,FALSE) ) )","v":""},null,null,null,null,{"$f":"IF(TRIM(BC134)=\"\", \"\", IF(VLOOKUP(BC134,'Footnotes list'!$D$9:$E$58,2,FALSE)=0,\"\",VLOOKUP(BC134,'Footnotes list'!$D$9:$E$58,2,FALSE) ) )","v":""},null,null,null,null,{"$f":"IF(TRIM(BH134)=\"\", \"\", IF(VLOOKUP(BH134,'Footnotes list'!$D$9:$E$58,2,FALSE)=0,\"\",VLOOKUP(BH134,'Footnotes list'!$D$9:$E$58,2,FALSE) ) )","v":""},null,null,null,null,{"$f":"IF(TRIM(BM134)=\"\", \"\", IF(VLOOKUP(BM134,'Footnotes list'!$D$9:$E$58,2,FALSE)=0,\"\",VLOOKUP(BM134,'Footnotes list'!$D$9:$E$58,2,FALSE) ) )","v":""},null,null,null,null,{"$f":"IF(TRIM(BR134)=\"\", \"\", IF(VLOOKUP(BR134,'Footnotes list'!$D$9:$E$58,2,FALSE)=0,\"\",VLOOKUP(BR134,'Footnotes list'!$D$9:$E$58,2,FALSE) ) )","v":""},null,null,null,null,{"$f":"IF(TRIM(BW134)=\"\", \"\", IF(VLOOKUP(BW134,'Footnotes list'!$D$9:$E$58,2,FALSE)=0,\"\",VLOOKUP(BW134,'Footnotes list'!$D$9:$E$58,2,FALSE) ) )","v":""},null,null,null,null,{"$f":"IF(TRIM(CB134)=\"\", \"\", IF(VLOOKUP(CB134,'Footnotes list'!$D$9:$E$58,2,FALSE)=0,\"\",VLOOKUP(CB134,'Footnotes list'!$D$9:$E$58,2,FALSE) ) )","v":""},null,null,null,null,{"$f":"IF(TRIM(CG134)=\"\", \"\", IF(VLOOKUP(CG134,'Footnotes list'!$D$9:$E$58,2,FALSE)=0,\"\",VLOOKUP(CG134,'Footnotes list'!$D$9:$E$58,2,FALSE) ) )","v":""},null,null,null,null,{"$f":"IF(TRIM(CL134)=\"\", \"\", IF(VLOOKUP(CL134,'Footnotes list'!$D$9:$E$58,2,FALSE)=0,\"\",VLOOKUP(CL134,'Footnotes list'!$D$9:$E$58,2,FALSE) ) )","v":""},null,null,null,null,{"$f":"IF(TRIM(CQ134)=\"\", \"\", IF(VLOOKUP(CQ134,'Footnotes list'!$D$9:$E$58,2,FALSE)=0,\"\",VLOOKUP(CQ134,'Footnotes list'!$D$9:$E$58,2,FALSE) ) )","v":""},null,null,null,null,{"$f":"IF(TRIM(CV134)=\"\", \"\", IF(VLOOKUP(CV134,'Footnotes list'!$D$9:$E$58,2,FALSE)=0,\"\",VLOOKUP(CV134,'Footnotes list'!$D$9:$E$58,2,FALSE) ) )","v":""},null,null,null,null,{"$f":"IF(TRIM(DA134)=\"\", \"\", IF(VLOOKUP(DA134,'Footnotes list'!$D$9:$E$58,2,FALSE)=0,\"\",VLOOKUP(DA134,'Footnotes list'!$D$9:$E$58,2,FALSE) ) )","v":""},null,null,null,null,{"$f":"IF(TRIM(DF134)=\"\", \"\", IF(VLOOKUP(DF134,'Footnotes list'!$D$9:$E$58,2,FALSE)=0,\"\",VLOOKUP(DF134,'Footnotes list'!$D$9:$E$58,2,FALSE) ) )","v":""},null,null,null,null,{"$f":"IF(TRIM(DK134)=\"\", \"\", IF(VLOOKUP(DK134,'Footnotes list'!$D$9:$E$58,2,FALSE)=0,\"\",VLOOKUP(DK134,'Footnotes list'!$D$9:$E$58,2,FALSE) ) )","v":""},null,null,null,null,{"$f":"IF(TRIM(DP134)=\"\", \"\", IF(VLOOKUP(DP134,'Footnotes list'!$D$9:$E$58,2,FALSE)=0,\"\",VLOOKUP(DP134,'Footnotes list'!$D$9:$E$58,2,FALSE) ) )","v":""},null,null,null,null,{"$f":"IF(TRIM(DU134)=\"\", \"\", IF(VLOOKUP(DU134,'Footnotes list'!$D$9:$E$58,2,FALSE)=0,\"\",VLOOKUP(DU134,'Footnotes list'!$D$9:$E$58,2,FALSE) ) )","v":""},null,null,null,null,{"$f":"IF(TRIM(DZ134)=\"\", \"\", IF(VLOOKUP(DZ134,'Footnotes list'!$D$9:$E$58,2,FALSE)=0,\"\",VLOOKUP(DZ134,'Footnotes list'!$D$9:$E$58,2,FALSE) ) )","v":""},null,null,null,null,{"$f":"IF(TRIM(EE134)=\"\", \"\", IF(VLOOKUP(EE134,'Footnotes list'!$D$9:$E$58,2,FALSE)=0,\"\",VLOOKUP(EE134,'Footnotes list'!$D$9:$E$58,2,FALSE) ) )","v":""},null,null,null,null,{"$f":"IF(TRIM(EJ134)=\"\", \"\", IF(VLOOKUP(EJ134,'Footnotes list'!$D$9:$E$58,2,FALSE)=0,\"\",VLOOKUP(EJ134,'Footnotes list'!$D$9:$E$58,2,FALSE) ) )","v":""},null,null,null,null,{"$f":"IF(TRIM(EO134)=\"\", \"\", IF(VLOOKUP(EO134,'Footnotes list'!$D$9:$E$58,2,FALSE)=0,\"\",VLOOKUP(EO134,'Footnotes list'!$D$9:$E$58,2,FALSE) ) )","v":""},null,null,null,null,{"$f":"IF(TRIM(ET134)=\"\", \"\", IF(VLOOKUP(ET134,'Footnotes list'!$D$9:$E$58,2,FALSE)=0,\"\",VLOOKUP(ET134,'Footnotes list'!$D$9:$E$58,2,FALSE) ) )","v":""},null,null,null,null,{"$f":"IF(TRIM(EY134)=\"\", \"\", IF(VLOOKUP(EY134,'Footnotes list'!$D$9:$E$58,2,FALSE)=0,\"\",VLOOKUP(EY134,'Footnotes list'!$D$9:$E$58,2,FALSE) ) )","v":""}]
[null,null,"E","ANC","ancillary activities",null,null,null,null,null,{"$f":"IF(TRIM(J135)=\"\", \"\", IF(VLOOKUP(J135,'Footnotes list'!$D$9:$E$58,2,FALSE)=0,\"\",VLOOKUP(J135,'Footnotes list'!$D$9:$E$58,2,FALSE) ) )","v":""},null,null,null,null,{"$f":"IF(TRIM(O135)=\"\", \"\", IF(VLOOKUP(O135,'Footnotes list'!$D$9:$E$58,2,FALSE)=0,\"\",VLOOKUP(O135,'Footnotes list'!$D$9:$E$58,2,FALSE) ) )","v":""},null,null,null,null,{"$f":"IF(TRIM(T135)=\"\", \"\", IF(VLOOKUP(T135,'Footnotes list'!$D$9:$E$58,2,FALSE)=0,\"\",VLOOKUP(T135,'Footnotes list'!$D$9:$E$58,2,FALSE) ) )","v":""},null,null,null,null,{"$f":"IF(TRIM(Y135)=\"\", \"\", IF(VLOOKUP(Y135,'Footnotes list'!$D$9:$E$58,2,FALSE)=0,\"\",VLOOKUP(Y135,'Footnotes list'!$D$9:$E$58,2,FALSE) ) )","v":""},null,null,null,null,{"$f":"IF(TRIM(AD135)=\"\", \"\", IF(VLOOKUP(AD135,'Footnotes list'!$D$9:$E$58,2,FALSE)=0,\"\",VLOOKUP(AD135,'Footnotes list'!$D$9:$E$58,2,FALSE) ) )","v":""},null,null,null,null,{"$f":"IF(TRIM(AI135)=\"\", \"\", IF(VLOOKUP(AI135,'Footnotes list'!$D$9:$E$58,2,FALSE)=0,\"\",VLOOKUP(AI135,'Footnotes list'!$D$9:$E$58,2,FALSE) ) )","v":""},null,null,null,null,{"$f":"IF(TRIM(AN135)=\"\", \"\", IF(VLOOKUP(AN135,'Footnotes list'!$D$9:$E$58,2,FALSE)=0,\"\",VLOOKUP(AN135,'Footnotes list'!$D$9:$E$58,2,FALSE) ) )","v":""},null,null,null,null,{"$f":"IF(TRIM(AS135)=\"\", \"\", IF(VLOOKUP(AS135,'Footnotes list'!$D$9:$E$58,2,FALSE)=0,\"\",VLOOKUP(AS135,'Footnotes list'!$D$9:$E$58,2,FALSE) ) )","v":""},null,null,null,null,{"$f":"IF(TRIM(AX135)=\"\", \"\", IF(VLOOKUP(AX135,'Footnotes list'!$D$9:$E$58,2,FALSE)=0,\"\",VLOOKUP(AX135,'Footnotes list'!$D$9:$E$58,2,FALSE) ) )","v":""},null,null,null,null,{"$f":"IF(TRIM(BC135)=\"\", \"\", IF(VLOOKUP(BC135,'Footnotes list'!$D$9:$E$58,2,FALSE)=0,\"\",VLOOKUP(BC135,'Footnotes list'!$D$9:$E$58,2,FALSE) ) )","v":""},null,null,null,null,{"$f":"IF(TRIM(BH135)=\"\", \"\", IF(VLOOKUP(BH135,'Footnotes list'!$D$9:$E$58,2,FALSE)=0,\"\",VLOOKUP(BH135,'Footnotes list'!$D$9:$E$58,2,FALSE) ) )","v":""},null,null,null,null,{"$f":"IF(TRIM(BM135)=\"\", \"\", IF(VLOOKUP(BM135,'Footnotes list'!$D$9:$E$58,2,FALSE)=0,\"\",VLOOKUP(BM135,'Footnotes list'!$D$9:$E$58,2,FALSE) ) )","v":""},null,null,null,null,{"$f":"IF(TRIM(BR135)=\"\", \"\", IF(VLOOKUP(BR135,'Footnotes list'!$D$9:$E$58,2,FALSE)=0,\"\",VLOOKUP(BR135,'Footnotes list'!$D$9:$E$58,2,FALSE) ) )","v":""},null,null,null,null,{"$f":"IF(TRIM(BW135)=\"\", \"\", IF(VLOOKUP(BW135,'Footnotes list'!$D$9:$E$58,2,FALSE)=0,\"\",VLOOKUP(BW135,'Footnotes list'!$D$9:$E$58,2,FALSE) ) )","v":""},null,null,null,null,{"$f":"IF(TRIM(CB135)=\"\", \"\", IF(VLOOKUP(CB135,'Footnotes list'!$D$9:$E$58,2,FALSE)=0,\"\",VLOOKUP(CB135,'Footnotes list'!$D$9:$E$58,2,FALSE) ) )","v":""},null,null,null,null,{"$f":"IF(TRIM(CG135)=\"\", \"\", IF(VLOOKUP(CG135,'Footnotes list'!$D$9:$E$58,2,FALSE)=0,\"\",VLOOKUP(CG135,'Footnotes list'!$D$9:$E$58,2,FALSE) ) )","v":""},null,null,null,null,{"$f":"IF(TRIM(CL135)=\"\", \"\", IF(VLOOKUP(CL135,'Footnotes list'!$D$9:$E$58,2,FALSE)=0,\"\",VLOOKUP(CL135,'Footnotes list'!$D$9:$E$58,2,FALSE) ) )","v":""},null,null,null,null,{"$f":"IF(TRIM(CQ135)=\"\", \"\", IF(VLOOKUP(CQ135,'Footnotes list'!$D$9:$E$58,2,FALSE)=0,\"\",VLOOKUP(CQ135,'Footnotes list'!$D$9:$E$58,2,FALSE) ) )","v":""},null,null,null,null,{"$f":"IF(TRIM(CV135)=\"\", \"\", IF(VLOOKUP(CV135,'Footnotes list'!$D$9:$E$58,2,FALSE)=0,\"\",VLOOKUP(CV135,'Footnotes list'!$D$9:$E$58,2,FALSE) ) )","v":""},null,null,null,null,{"$f":"IF(TRIM(DA135)=\"\", \"\", IF(VLOOKUP(DA135,'Footnotes list'!$D$9:$E$58,2,FALSE)=0,\"\",VLOOKUP(DA135,'Footnotes list'!$D$9:$E$58,2,FALSE) ) )","v":""},null,null,null,null,{"$f":"IF(TRIM(DF135)=\"\", \"\", IF(VLOOKUP(DF135,'Footnotes list'!$D$9:$E$58,2,FALSE)=0,\"\",VLOOKUP(DF135,'Footnotes list'!$D$9:$E$58,2,FALSE) ) )","v":""},null,null,null,null,{"$f":"IF(TRIM(DK135)=\"\", \"\", IF(VLOOKUP(DK135,'Footnotes list'!$D$9:$E$58,2,FALSE)=0,\"\",VLOOKUP(DK135,'Footnotes list'!$D$9:$E$58,2,FALSE) ) )","v":""},null,null,null,null,{"$f":"IF(TRIM(DP135)=\"\", \"\", IF(VLOOKUP(DP135,'Footnotes list'!$D$9:$E$58,2,FALSE)=0,\"\",VLOOKUP(DP135,'Footnotes list'!$D$9:$E$58,2,FALSE) ) )","v":""},null,null,null,null,{"$f":"IF(TRIM(DU135)=\"\", \"\", IF(VLOOKUP(DU135,'Footnotes list'!$D$9:$E$58,2,FALSE)=0,\"\",VLOOKUP(DU135,'Footnotes list'!$D$9:$E$58,2,FALSE) ) )","v":""},null,null,null,null,{"$f":"IF(TRIM(DZ135)=\"\", \"\", IF(VLOOKUP(DZ135,'Footnotes list'!$D$9:$E$58,2,FALSE)=0,\"\",VLOOKUP(DZ135,'Footnotes list'!$D$9:$E$58,2,FALSE) ) )","v":""},null,null,null,null,{"$f":"IF(TRIM(EE135)=\"\", \"\", IF(VLOOKUP(EE135,'Footnotes list'!$D$9:$E$58,2,FALSE)=0,\"\",VLOOKUP(EE135,'Footnotes list'!$D$9:$E$58,2,FALSE) ) )","v":""},null,null,null,null,{"$f":"IF(TRIM(EJ135)=\"\", \"\", IF(VLOOKUP(EJ135,'Footnotes list'!$D$9:$E$58,2,FALSE)=0,\"\",VLOOKUP(EJ135,'Footnotes list'!$D$9:$E$58,2,FALSE) ) )","v":""},null,null,null,null,{"$f":"IF(TRIM(EO135)=\"\", \"\", IF(VLOOKUP(EO135,'Footnotes list'!$D$9:$E$58,2,FALSE)=0,\"\",VLOOKUP(EO135,'Footnotes list'!$D$9:$E$58,2,FALSE) ) )","v":""},null,null,null,null,{"$f":"IF(TRIM(ET135)=\"\", \"\", IF(VLOOKUP(ET135,'Footnotes list'!$D$9:$E$58,2,FALSE)=0,\"\",VLOOKUP(ET135,'Footnotes list'!$D$9:$E$58,2,FALSE) ) )","v":""},null,null,null,null,{"$f":"IF(TRIM(EY135)=\"\", \"\", IF(VLOOKUP(EY135,'Footnotes list'!$D$9:$E$58,2,FALSE)=0,\"\",VLOOKUP(EY135,'Footnotes list'!$D$9:$E$58,2,FALSE) ) )","v":""}]
[null,null,"E","NMKT","non-market activities",null,null,null,null,null,{"$f":"IF(TRIM(J136)=\"\", \"\", IF(VLOOKUP(J136,'Footnotes list'!$D$9:$E$58,2,FALSE)=0,\"\",VLOOKUP(J136,'Footnotes list'!$D$9:$E$58,2,FALSE) ) )","v":""},null,null,null,null,{"$f":"IF(TRIM(O136)=\"\", \"\", IF(VLOOKUP(O136,'Footnotes list'!$D$9:$E$58,2,FALSE)=0,\"\",VLOOKUP(O136,'Footnotes list'!$D$9:$E$58,2,FALSE) ) )","v":""},null,null,null,null,{"$f":"IF(TRIM(T136)=\"\", \"\", IF(VLOOKUP(T136,'Footnotes list'!$D$9:$E$58,2,FALSE)=0,\"\",VLOOKUP(T136,'Footnotes list'!$D$9:$E$58,2,FALSE) ) )","v":""},null,null,null,null,{"$f":"IF(TRIM(Y136)=\"\", \"\", IF(VLOOKUP(Y136,'Footnotes list'!$D$9:$E$58,2,FALSE)=0,\"\",VLOOKUP(Y136,'Footnotes list'!$D$9:$E$58,2,FALSE) ) )","v":""},null,null,null,null,{"$f":"IF(TRIM(AD136)=\"\", \"\", IF(VLOOKUP(AD136,'Footnotes list'!$D$9:$E$58,2,FALSE)=0,\"\",VLOOKUP(AD136,'Footnotes list'!$D$9:$E$58,2,FALSE) ) )","v":""},null,null,null,null,{"$f":"IF(TRIM(AI136)=\"\", \"\", IF(VLOOKUP(AI136,'Footnotes list'!$D$9:$E$58,2,FALSE)=0,\"\",VLOOKUP(AI136,'Footnotes list'!$D$9:$E$58,2,FALSE) ) )","v":""},null,null,null,null,{"$f":"IF(TRIM(AN136)=\"\", \"\", IF(VLOOKUP(AN136,'Footnotes list'!$D$9:$E$58,2,FALSE)=0,\"\",VLOOKUP(AN136,'Footnotes list'!$D$9:$E$58,2,FALSE) ) )","v":""},null,null,null,null,{"$f":"IF(TRIM(AS136)=\"\", \"\", IF(VLOOKUP(AS136,'Footnotes list'!$D$9:$E$58,2,FALSE)=0,\"\",VLOOKUP(AS136,'Footnotes list'!$D$9:$E$58,2,FALSE) ) )","v":""},null,null,null,null,{"$f":"IF(TRIM(AX136)=\"\", \"\", IF(VLOOKUP(AX136,'Footnotes list'!$D$9:$E$58,2,FALSE)=0,\"\",VLOOKUP(AX136,'Footnotes list'!$D$9:$E$58,2,FALSE) ) )","v":""},null,null,null,null,{"$f":"IF(TRIM(BC136)=\"\", \"\", IF(VLOOKUP(BC136,'Footnotes list'!$D$9:$E$58,2,FALSE)=0,\"\",VLOOKUP(BC136,'Footnotes list'!$D$9:$E$58,2,FALSE) ) )","v":""},null,null,null,null,{"$f":"IF(TRIM(BH136)=\"\", \"\", IF(VLOOKUP(BH136,'Footnotes list'!$D$9:$E$58,2,FALSE)=0,\"\",VLOOKUP(BH136,'Footnotes list'!$D$9:$E$58,2,FALSE) ) )","v":""},null,null,null,null,{"$f":"IF(TRIM(BM136)=\"\", \"\", IF(VLOOKUP(BM136,'Footnotes list'!$D$9:$E$58,2,FALSE)=0,\"\",VLOOKUP(BM136,'Footnotes list'!$D$9:$E$58,2,FALSE) ) )","v":""},null,null,null,null,{"$f":"IF(TRIM(BR136)=\"\", \"\", IF(VLOOKUP(BR136,'Footnotes list'!$D$9:$E$58,2,FALSE)=0,\"\",VLOOKUP(BR136,'Footnotes list'!$D$9:$E$58,2,FALSE) ) )","v":""},null,null,null,null,{"$f":"IF(TRIM(BW136)=\"\", \"\", IF(VLOOKUP(BW136,'Footnotes list'!$D$9:$E$58,2,FALSE)=0,\"\",VLOOKUP(BW136,'Footnotes list'!$D$9:$E$58,2,FALSE) ) )","v":""},null,null,null,null,{"$f":"IF(TRIM(CB136)=\"\", \"\", IF(VLOOKUP(CB136,'Footnotes list'!$D$9:$E$58,2,FALSE)=0,\"\",VLOOKUP(CB136,'Footnotes list'!$D$9:$E$58,2,FALSE) ) )","v":""},null,null,null,null,{"$f":"IF(TRIM(CG136)=\"\", \"\", IF(VLOOKUP(CG136,'Footnotes list'!$D$9:$E$58,2,FALSE)=0,\"\",VLOOKUP(CG136,'Footnotes list'!$D$9:$E$58,2,FALSE) ) )","v":""},null,null,null,null,{"$f":"IF(TRIM(CL136)=\"\", \"\", IF(VLOOKUP(CL136,'Footnotes list'!$D$9:$E$58,2,FALSE)=0,\"\",VLOOKUP(CL136,'Footnotes list'!$D$9:$E$58,2,FALSE) ) )","v":""},null,null,null,null,{"$f":"IF(TRIM(CQ136)=\"\", \"\", IF(VLOOKUP(CQ136,'Footnotes list'!$D$9:$E$58,2,FALSE)=0,\"\",VLOOKUP(CQ136,'Footnotes list'!$D$9:$E$58,2,FALSE) ) )","v":""},null,null,null,null,{"$f":"IF(TRIM(CV136)=\"\", \"\", IF(VLOOKUP(CV136,'Footnotes list'!$D$9:$E$58,2,FALSE)=0,\"\",VLOOKUP(CV136,'Footnotes list'!$D$9:$E$58,2,FALSE) ) )","v":""},null,null,null,null,{"$f":"IF(TRIM(DA136)=\"\", \"\", IF(VLOOKUP(DA136,'Footnotes list'!$D$9:$E$58,2,FALSE)=0,\"\",VLOOKUP(DA136,'Footnotes list'!$D$9:$E$58,2,FALSE) ) )","v":""},null,null,null,null,{"$f":"IF(TRIM(DF136)=\"\", \"\", IF(VLOOKUP(DF136,'Footnotes list'!$D$9:$E$58,2,FALSE)=0,\"\",VLOOKUP(DF136,'Footnotes list'!$D$9:$E$58,2,FALSE) ) )","v":""},null,null,null,null,{"$f":"IF(TRIM(DK136)=\"\", \"\", IF(VLOOKUP(DK136,'Footnotes list'!$D$9:$E$58,2,FALSE)=0,\"\",VLOOKUP(DK136,'Footnotes list'!$D$9:$E$58,2,FALSE) ) )","v":""},null,null,null,null,{"$f":"IF(TRIM(DP136)=\"\", \"\", IF(VLOOKUP(DP136,'Footnotes list'!$D$9:$E$58,2,FALSE)=0,\"\",VLOOKUP(DP136,'Footnotes list'!$D$9:$E$58,2,FALSE) ) )","v":""},null,null,null,null,{"$f":"IF(TRIM(DU136)=\"\", \"\", IF(VLOOKUP(DU136,'Footnotes list'!$D$9:$E$58,2,FALSE)=0,\"\",VLOOKUP(DU136,'Footnotes list'!$D$9:$E$58,2,FALSE) ) )","v":""},null,null,null,null,{"$f":"IF(TRIM(DZ136)=\"\", \"\", IF(VLOOKUP(DZ136,'Footnotes list'!$D$9:$E$58,2,FALSE)=0,\"\",VLOOKUP(DZ136,'Footnotes list'!$D$9:$E$58,2,FALSE) ) )","v":""},null,null,null,null,{"$f":"IF(TRIM(EE136)=\"\", \"\", IF(VLOOKUP(EE136,'Footnotes list'!$D$9:$E$58,2,FALSE)=0,\"\",VLOOKUP(EE136,'Footnotes list'!$D$9:$E$58,2,FALSE) ) )","v":""},null,null,null,null,{"$f":"IF(TRIM(EJ136)=\"\", \"\", IF(VLOOKUP(EJ136,'Footnotes list'!$D$9:$E$58,2,FALSE)=0,\"\",VLOOKUP(EJ136,'Footnotes list'!$D$9:$E$58,2,FALSE) ) )","v":""},null,null,null,null,{"$f":"IF(TRIM(EO136)=\"\", \"\", IF(VLOOKUP(EO136,'Footnotes list'!$D$9:$E$58,2,FALSE)=0,\"\",VLOOKUP(EO136,'Footnotes list'!$D$9:$E$58,2,FALSE) ) )","v":""},null,null,null,null,{"$f":"IF(TRIM(ET136)=\"\", \"\", IF(VLOOKUP(ET136,'Footnotes list'!$D$9:$E$58,2,FALSE)=0,\"\",VLOOKUP(ET136,'Footnotes list'!$D$9:$E$58,2,FALSE) ) )","v":""},null,null,null,null,{"$f":"IF(TRIM(EY136)=\"\", \"\", IF(VLOOKUP(EY136,'Footnotes list'!$D$9:$E$58,2,FALSE)=0,\"\",VLOOKUP(EY136,'Footnotes list'!$D$9:$E$58,2,FALSE) ) )","v":""}]
[null,null,"E","OWN_USE","activities for own final use",null,null,null,null,null,{"$f":"IF(TRIM(J137)=\"\", \"\", IF(VLOOKUP(J137,'Footnotes list'!$D$9:$E$58,2,FALSE)=0,\"\",VLOOKUP(J137,'Footnotes list'!$D$9:$E$58,2,FALSE) ) )","v":""},null,null,null,null,{"$f":"IF(TRIM(O137)=\"\", \"\", IF(VLOOKUP(O137,'Footnotes list'!$D$9:$E$58,2,FALSE)=0,\"\",VLOOKUP(O137,'Footnotes list'!$D$9:$E$58,2,FALSE) ) )","v":""},null,null,null,null,{"$f":"IF(TRIM(T137)=\"\", \"\", IF(VLOOKUP(T137,'Footnotes list'!$D$9:$E$58,2,FALSE)=0,\"\",VLOOKUP(T137,'Footnotes list'!$D$9:$E$58,2,FALSE) ) )","v":""},null,null,null,null,{"$f":"IF(TRIM(Y137)=\"\", \"\", IF(VLOOKUP(Y137,'Footnotes list'!$D$9:$E$58,2,FALSE)=0,\"\",VLOOKUP(Y137,'Footnotes list'!$D$9:$E$58,2,FALSE) ) )","v":""},null,null,null,null,{"$f":"IF(TRIM(AD137)=\"\", \"\", IF(VLOOKUP(AD137,'Footnotes list'!$D$9:$E$58,2,FALSE)=0,\"\",VLOOKUP(AD137,'Footnotes list'!$D$9:$E$58,2,FALSE) ) )","v":""},null,null,null,null,{"$f":"IF(TRIM(AI137)=\"\", \"\", IF(VLOOKUP(AI137,'Footnotes list'!$D$9:$E$58,2,FALSE)=0,\"\",VLOOKUP(AI137,'Footnotes list'!$D$9:$E$58,2,FALSE) ) )","v":""},null,null,null,null,{"$f":"IF(TRIM(AN137)=\"\", \"\", IF(VLOOKUP(AN137,'Footnotes list'!$D$9:$E$58,2,FALSE)=0,\"\",VLOOKUP(AN137,'Footnotes list'!$D$9:$E$58,2,FALSE) ) )","v":""},null,null,null,null,{"$f":"IF(TRIM(AS137)=\"\", \"\", IF(VLOOKUP(AS137,'Footnotes list'!$D$9:$E$58,2,FALSE)=0,\"\",VLOOKUP(AS137,'Footnotes list'!$D$9:$E$58,2,FALSE) ) )","v":""},null,null,null,null,{"$f":"IF(TRIM(AX137)=\"\", \"\", IF(VLOOKUP(AX137,'Footnotes list'!$D$9:$E$58,2,FALSE)=0,\"\",VLOOKUP(AX137,'Footnotes list'!$D$9:$E$58,2,FALSE) ) )","v":""},null,null,null,null,{"$f":"IF(TRIM(BC137)=\"\", \"\", IF(VLOOKUP(BC137,'Footnotes list'!$D$9:$E$58,2,FALSE)=0,\"\",VLOOKUP(BC137,'Footnotes list'!$D$9:$E$58,2,FALSE) ) )","v":""},null,null,null,null,{"$f":"IF(TRIM(BH137)=\"\", \"\", IF(VLOOKUP(BH137,'Footnotes list'!$D$9:$E$58,2,FALSE)=0,\"\",VLOOKUP(BH137,'Footnotes list'!$D$9:$E$58,2,FALSE) ) )","v":""},null,null,null,null,{"$f":"IF(TRIM(BM137)=\"\", \"\", IF(VLOOKUP(BM137,'Footnotes list'!$D$9:$E$58,2,FALSE)=0,\"\",VLOOKUP(BM137,'Footnotes list'!$D$9:$E$58,2,FALSE) ) )","v":""},null,null,null,null,{"$f":"IF(TRIM(BR137)=\"\", \"\", IF(VLOOKUP(BR137,'Footnotes list'!$D$9:$E$58,2,FALSE)=0,\"\",VLOOKUP(BR137,'Footnotes list'!$D$9:$E$58,2,FALSE) ) )","v":""},null,null,null,null,{"$f":"IF(TRIM(BW137)=\"\", \"\", IF(VLOOKUP(BW137,'Footnotes list'!$D$9:$E$58,2,FALSE)=0,\"\",VLOOKUP(BW137,'Footnotes list'!$D$9:$E$58,2,FALSE) ) )","v":""},null,null,null,null,{"$f":"IF(TRIM(CB137)=\"\", \"\", IF(VLOOKUP(CB137,'Footnotes list'!$D$9:$E$58,2,FALSE)=0,\"\",VLOOKUP(CB137,'Footnotes list'!$D$9:$E$58,2,FALSE) ) )","v":""},null,null,null,null,{"$f":"IF(TRIM(CG137)=\"\", \"\", IF(VLOOKUP(CG137,'Footnotes list'!$D$9:$E$58,2,FALSE)=0,\"\",VLOOKUP(CG137,'Footnotes list'!$D$9:$E$58,2,FALSE) ) )","v":""},null,null,null,null,{"$f":"IF(TRIM(CL137)=\"\", \"\", IF(VLOOKUP(CL137,'Footnotes list'!$D$9:$E$58,2,FALSE)=0,\"\",VLOOKUP(CL137,'Footnotes list'!$D$9:$E$58,2,FALSE) ) )","v":""},null,null,null,null,{"$f":"IF(TRIM(CQ137)=\"\", \"\", IF(VLOOKUP(CQ137,'Footnotes list'!$D$9:$E$58,2,FALSE)=0,\"\",VLOOKUP(CQ137,'Footnotes list'!$D$9:$E$58,2,FALSE) ) )","v":""},null,null,null,null,{"$f":"IF(TRIM(CV137)=\"\", \"\", IF(VLOOKUP(CV137,'Footnotes list'!$D$9:$E$58,2,FALSE)=0,\"\",VLOOKUP(CV137,'Footnotes list'!$D$9:$E$58,2,FALSE) ) )","v":""},null,null,null,null,{"$f":"IF(TRIM(DA137)=\"\", \"\", IF(VLOOKUP(DA137,'Footnotes list'!$D$9:$E$58,2,FALSE)=0,\"\",VLOOKUP(DA137,'Footnotes list'!$D$9:$E$58,2,FALSE) ) )","v":""},null,null,null,null,{"$f":"IF(TRIM(DF137)=\"\", \"\", IF(VLOOKUP(DF137,'Footnotes list'!$D$9:$E$58,2,FALSE)=0,\"\",VLOOKUP(DF137,'Footnotes list'!$D$9:$E$58,2,FALSE) ) )","v":""},null,null,null,null,{"$f":"IF(TRIM(DK137)=\"\", \"\", IF(VLOOKUP(DK137,'Footnotes list'!$D$9:$E$58,2,FALSE)=0,\"\",VLOOKUP(DK137,'Footnotes list'!$D$9:$E$58,2,FALSE) ) )","v":""},null,null,null,null,{"$f":"IF(TRIM(DP137)=\"\", \"\", IF(VLOOKUP(DP137,'Footnotes list'!$D$9:$E$58,2,FALSE)=0,\"\",VLOOKUP(DP137,'Footnotes list'!$D$9:$E$58,2,FALSE) ) )","v":""},null,null,null,null,{"$f":"IF(TRIM(DU137)=\"\", \"\", IF(VLOOKUP(DU137,'Footnotes list'!$D$9:$E$58,2,FALSE)=0,\"\",VLOOKUP(DU137,'Footnotes list'!$D$9:$E$58,2,FALSE) ) )","v":""},null,null,null,null,{"$f":"IF(TRIM(DZ137)=\"\", \"\", IF(VLOOKUP(DZ137,'Footnotes list'!$D$9:$E$58,2,FALSE)=0,\"\",VLOOKUP(DZ137,'Footnotes list'!$D$9:$E$58,2,FALSE) ) )","v":""},null,null,null,null,{"$f":"IF(TRIM(EE137)=\"\", \"\", IF(VLOOKUP(EE137,'Footnotes list'!$D$9:$E$58,2,FALSE)=0,\"\",VLOOKUP(EE137,'Footnotes list'!$D$9:$E$58,2,FALSE) ) )","v":""},null,null,null,null,{"$f":"IF(TRIM(EJ137)=\"\", \"\", IF(VLOOKUP(EJ137,'Footnotes list'!$D$9:$E$58,2,FALSE)=0,\"\",VLOOKUP(EJ137,'Footnotes list'!$D$9:$E$58,2,FALSE) ) )","v":""},null,null,null,null,{"$f":"IF(TRIM(EO137)=\"\", \"\", IF(VLOOKUP(EO137,'Footnotes list'!$D$9:$E$58,2,FALSE)=0,\"\",VLOOKUP(EO137,'Footnotes list'!$D$9:$E$58,2,FALSE) ) )","v":""},null,null,null,null,{"$f":"IF(TRIM(ET137)=\"\", \"\", IF(VLOOKUP(ET137,'Footnotes list'!$D$9:$E$58,2,FALSE)=0,\"\",VLOOKUP(ET137,'Footnotes list'!$D$9:$E$58,2,FALSE) ) )","v":""},null,null,null,null,{"$f":"IF(TRIM(EY137)=\"\", \"\", IF(VLOOKUP(EY137,'Footnotes list'!$D$9:$E$58,2,FALSE)=0,\"\",VLOOKUP(EY137,'Footnotes list'!$D$9:$E$58,2,FALSE) ) )","v":""}]
[null,null,"E","MKT","market activities, including:",null,null,null,null,null,{"$f":"IF(TRIM(J138)=\"\", \"\", IF(VLOOKUP(J138,'Footnotes list'!$D$9:$E$58,2,FALSE)=0,\"\",VLOOKUP(J138,'Footnotes list'!$D$9:$E$58,2,FALSE) ) )","v":""},null,null,null,null,{"$f":"IF(TRIM(O138)=\"\", \"\", IF(VLOOKUP(O138,'Footnotes list'!$D$9:$E$58,2,FALSE)=0,\"\",VLOOKUP(O138,'Footnotes list'!$D$9:$E$58,2,FALSE) ) )","v":""},null,null,null,null,{"$f":"IF(TRIM(T138)=\"\", \"\", IF(VLOOKUP(T138,'Footnotes list'!$D$9:$E$58,2,FALSE)=0,\"\",VLOOKUP(T138,'Footnotes list'!$D$9:$E$58,2,FALSE) ) )","v":""},null,null,null,null,{"$f":"IF(TRIM(Y138)=\"\", \"\", IF(VLOOKUP(Y138,'Footnotes list'!$D$9:$E$58,2,FALSE)=0,\"\",VLOOKUP(Y138,'Footnotes list'!$D$9:$E$58,2,FALSE) ) )","v":""},null,null,null,null,{"$f":"IF(TRIM(AD138)=\"\", \"\", IF(VLOOKUP(AD138,'Footnotes list'!$D$9:$E$58,2,FALSE)=0,\"\",VLOOKUP(AD138,'Footnotes list'!$D$9:$E$58,2,FALSE) ) )","v":""},null,null,null,null,{"$f":"IF(TRIM(AI138)=\"\", \"\", IF(VLOOKUP(AI138,'Footnotes list'!$D$9:$E$58,2,FALSE)=0,\"\",VLOOKUP(AI138,'Footnotes list'!$D$9:$E$58,2,FALSE) ) )","v":""},null,null,null,null,{"$f":"IF(TRIM(AN138)=\"\", \"\", IF(VLOOKUP(AN138,'Footnotes list'!$D$9:$E$58,2,FALSE)=0,\"\",VLOOKUP(AN138,'Footnotes list'!$D$9:$E$58,2,FALSE) ) )","v":""},null,null,null,null,{"$f":"IF(TRIM(AS138)=\"\", \"\", IF(VLOOKUP(AS138,'Footnotes list'!$D$9:$E$58,2,FALSE)=0,\"\",VLOOKUP(AS138,'Footnotes list'!$D$9:$E$58,2,FALSE) ) )","v":""},null,null,null,null,{"$f":"IF(TRIM(AX138)=\"\", \"\", IF(VLOOKUP(AX138,'Footnotes list'!$D$9:$E$58,2,FALSE)=0,\"\",VLOOKUP(AX138,'Footnotes list'!$D$9:$E$58,2,FALSE) ) )","v":""},null,null,null,null,{"$f":"IF(TRIM(BC138)=\"\", \"\", IF(VLOOKUP(BC138,'Footnotes list'!$D$9:$E$58,2,FALSE)=0,\"\",VLOOKUP(BC138,'Footnotes list'!$D$9:$E$58,2,FALSE) ) )","v":""},null,null,null,null,{"$f":"IF(TRIM(BH138)=\"\", \"\", IF(VLOOKUP(BH138,'Footnotes list'!$D$9:$E$58,2,FALSE)=0,\"\",VLOOKUP(BH138,'Footnotes list'!$D$9:$E$58,2,FALSE) ) )","v":""},null,null,null,null,{"$f":"IF(TRIM(BM138)=\"\", \"\", IF(VLOOKUP(BM138,'Footnotes list'!$D$9:$E$58,2,FALSE)=0,\"\",VLOOKUP(BM138,'Footnotes list'!$D$9:$E$58,2,FALSE) ) )","v":""},null,null,null,null,{"$f":"IF(TRIM(BR138)=\"\", \"\", IF(VLOOKUP(BR138,'Footnotes list'!$D$9:$E$58,2,FALSE)=0,\"\",VLOOKUP(BR138,'Footnotes list'!$D$9:$E$58,2,FALSE) ) )","v":""},null,null,null,null,{"$f":"IF(TRIM(BW138)=\"\", \"\", IF(VLOOKUP(BW138,'Footnotes list'!$D$9:$E$58,2,FALSE)=0,\"\",VLOOKUP(BW138,'Footnotes list'!$D$9:$E$58,2,FALSE) ) )","v":""},null,null,null,null,{"$f":"IF(TRIM(CB138)=\"\", \"\", IF(VLOOKUP(CB138,'Footnotes list'!$D$9:$E$58,2,FALSE)=0,\"\",VLOOKUP(CB138,'Footnotes list'!$D$9:$E$58,2,FALSE) ) )","v":""},null,null,null,null,{"$f":"IF(TRIM(CG138)=\"\", \"\", IF(VLOOKUP(CG138,'Footnotes list'!$D$9:$E$58,2,FALSE)=0,\"\",VLOOKUP(CG138,'Footnotes list'!$D$9:$E$58,2,FALSE) ) )","v":""},null,null,null,null,{"$f":"IF(TRIM(CL138)=\"\", \"\", IF(VLOOKUP(CL138,'Footnotes list'!$D$9:$E$58,2,FALSE)=0,\"\",VLOOKUP(CL138,'Footnotes list'!$D$9:$E$58,2,FALSE) ) )","v":""},null,null,null,null,{"$f":"IF(TRIM(CQ138)=\"\", \"\", IF(VLOOKUP(CQ138,'Footnotes list'!$D$9:$E$58,2,FALSE)=0,\"\",VLOOKUP(CQ138,'Footnotes list'!$D$9:$E$58,2,FALSE) ) )","v":""},null,null,null,null,{"$f":"IF(TRIM(CV138)=\"\", \"\", IF(VLOOKUP(CV138,'Footnotes list'!$D$9:$E$58,2,FALSE)=0,\"\",VLOOKUP(CV138,'Footnotes list'!$D$9:$E$58,2,FALSE) ) )","v":""},null,null,null,null,{"$f":"IF(TRIM(DA138)=\"\", \"\", IF(VLOOKUP(DA138,'Footnotes list'!$D$9:$E$58,2,FALSE)=0,\"\",VLOOKUP(DA138,'Footnotes list'!$D$9:$E$58,2,FALSE) ) )","v":""},null,null,null,null,{"$f":"IF(TRIM(DF138)=\"\", \"\", IF(VLOOKUP(DF138,'Footnotes list'!$D$9:$E$58,2,FALSE)=0,\"\",VLOOKUP(DF138,'Footnotes list'!$D$9:$E$58,2,FALSE) ) )","v":""},null,null,null,null,{"$f":"IF(TRIM(DK138)=\"\", \"\", IF(VLOOKUP(DK138,'Footnotes list'!$D$9:$E$58,2,FALSE)=0,\"\",VLOOKUP(DK138,'Footnotes list'!$D$9:$E$58,2,FALSE) ) )","v":""},null,null,null,null,{"$f":"IF(TRIM(DP138)=\"\", \"\", IF(VLOOKUP(DP138,'Footnotes list'!$D$9:$E$58,2,FALSE)=0,\"\",VLOOKUP(DP138,'Footnotes list'!$D$9:$E$58,2,FALSE) ) )","v":""},null,null,null,null,{"$f":"IF(TRIM(DU138)=\"\", \"\", IF(VLOOKUP(DU138,'Footnotes list'!$D$9:$E$58,2,FALSE)=0,\"\",VLOOKUP(DU138,'Footnotes list'!$D$9:$E$58,2,FALSE) ) )","v":""},null,null,null,null,{"$f":"IF(TRIM(DZ138)=\"\", \"\", IF(VLOOKUP(DZ138,'Footnotes list'!$D$9:$E$58,2,FALSE)=0,\"\",VLOOKUP(DZ138,'Footnotes list'!$D$9:$E$58,2,FALSE) ) )","v":""},null,null,null,null,{"$f":"IF(TRIM(EE138)=\"\", \"\", IF(VLOOKUP(EE138,'Footnotes list'!$D$9:$E$58,2,FALSE)=0,\"\",VLOOKUP(EE138,'Footnotes list'!$D$9:$E$58,2,FALSE) ) )","v":""},null,null,null,null,{"$f":"IF(TRIM(EJ138)=\"\", \"\", IF(VLOOKUP(EJ138,'Footnotes list'!$D$9:$E$58,2,FALSE)=0,\"\",VLOOKUP(EJ138,'Footnotes list'!$D$9:$E$58,2,FALSE) ) )","v":""},null,null,null,null,{"$f":"IF(TRIM(EO138)=\"\", \"\", IF(VLOOKUP(EO138,'Footnotes list'!$D$9:$E$58,2,FALSE)=0,\"\",VLOOKUP(EO138,'Footnotes list'!$D$9:$E$58,2,FALSE) ) )","v":""},5,null,null,null,{"$f":"IF(TRIM(ET138)=\"\", \"\", IF(VLOOKUP(ET138,'Footnotes list'!$D$9:$E$58,2,FALSE)=0,\"\",VLOOKUP(ET138,'Footnotes list'!$D$9:$E$58,2,FALSE) ) )","v":""},null,null,null,null,{"$f":"IF(TRIM(EY138)=\"\", \"\", IF(VLOOKUP(EY138,'Footnotes list'!$D$9:$E$58,2,FALSE)=0,\"\",VLOOKUP(EY138,'Footnotes list'!$D$9:$E$58,2,FALSE) ) )","v":""}]
[null,null,"E","ES_CS","environmental specific services",null,null,null,null,null,{"$f":"IF(TRIM(J139)=\"\", \"\", IF(VLOOKUP(J139,'Footnotes list'!$D$9:$E$58,2,FALSE)=0,\"\",VLOOKUP(J139,'Footnotes list'!$D$9:$E$58,2,FALSE) ) )","v":""},null,null,null,null,{"$f":"IF(TRIM(O139)=\"\", \"\", IF(VLOOKUP(O139,'Footnotes list'!$D$9:$E$58,2,FALSE)=0,\"\",VLOOKUP(O139,'Footnotes list'!$D$9:$E$58,2,FALSE) ) )","v":""},null,null,null,null,{"$f":"IF(TRIM(T139)=\"\", \"\", IF(VLOOKUP(T139,'Footnotes list'!$D$9:$E$58,2,FALSE)=0,\"\",VLOOKUP(T139,'Footnotes list'!$D$9:$E$58,2,FALSE) ) )","v":""},null,null,null,null,{"$f":"IF(TRIM(Y139)=\"\", \"\", IF(VLOOKUP(Y139,'Footnotes list'!$D$9:$E$58,2,FALSE)=0,\"\",VLOOKUP(Y139,'Footnotes list'!$D$9:$E$58,2,FALSE) ) )","v":""},null,null,null,null,{"$f":"IF(TRIM(AD139)=\"\", \"\", IF(VLOOKUP(AD139,'Footnotes list'!$D$9:$E$58,2,FALSE)=0,\"\",VLOOKUP(AD139,'Footnotes list'!$D$9:$E$58,2,FALSE) ) )","v":""},null,null,null,null,{"$f":"IF(TRIM(AI139)=\"\", \"\", IF(VLOOKUP(AI139,'Footnotes list'!$D$9:$E$58,2,FALSE)=0,\"\",VLOOKUP(AI139,'Footnotes list'!$D$9:$E$58,2,FALSE) ) )","v":""},null,null,null,null,{"$f":"IF(TRIM(AN139)=\"\", \"\", IF(VLOOKUP(AN139,'Footnotes list'!$D$9:$E$58,2,FALSE)=0,\"\",VLOOKUP(AN139,'Footnotes list'!$D$9:$E$58,2,FALSE) ) )","v":""},null,null,null,null,{"$f":"IF(TRIM(AS139)=\"\", \"\", IF(VLOOKUP(AS139,'Footnotes list'!$D$9:$E$58,2,FALSE)=0,\"\",VLOOKUP(AS139,'Footnotes list'!$D$9:$E$58,2,FALSE) ) )","v":""},null,null,null,null,{"$f":"IF(TRIM(AX139)=\"\", \"\", IF(VLOOKUP(AX139,'Footnotes list'!$D$9:$E$58,2,FALSE)=0,\"\",VLOOKUP(AX139,'Footnotes list'!$D$9:$E$58,2,FALSE) ) )","v":""},null,null,null,null,{"$f":"IF(TRIM(BC139)=\"\", \"\", IF(VLOOKUP(BC139,'Footnotes list'!$D$9:$E$58,2,FALSE)=0,\"\",VLOOKUP(BC139,'Footnotes list'!$D$9:$E$58,2,FALSE) ) )","v":""},null,null,null,null,{"$f":"IF(TRIM(BH139)=\"\", \"\", IF(VLOOKUP(BH139,'Footnotes list'!$D$9:$E$58,2,FALSE)=0,\"\",VLOOKUP(BH139,'Footnotes list'!$D$9:$E$58,2,FALSE) ) )","v":""},null,null,null,null,{"$f":"IF(TRIM(BM139)=\"\", \"\", IF(VLOOKUP(BM139,'Footnotes list'!$D$9:$E$58,2,FALSE)=0,\"\",VLOOKUP(BM139,'Footnotes list'!$D$9:$E$58,2,FALSE) ) )","v":""},null,null,null,null,{"$f":"IF(TRIM(BR139)=\"\", \"\", IF(VLOOKUP(BR139,'Footnotes list'!$D$9:$E$58,2,FALSE)=0,\"\",VLOOKUP(BR139,'Footnotes list'!$D$9:$E$58,2,FALSE) ) )","v":""},null,null,null,null,{"$f":"IF(TRIM(BW139)=\"\", \"\", IF(VLOOKUP(BW139,'Footnotes list'!$D$9:$E$58,2,FALSE)=0,\"\",VLOOKUP(BW139,'Footnotes list'!$D$9:$E$58,2,FALSE) ) )","v":""},null,null,null,null,{"$f":"IF(TRIM(CB139)=\"\", \"\", IF(VLOOKUP(CB139,'Footnotes list'!$D$9:$E$58,2,FALSE)=0,\"\",VLOOKUP(CB139,'Footnotes list'!$D$9:$E$58,2,FALSE) ) )","v":""},null,null,null,null,{"$f":"IF(TRIM(CG139)=\"\", \"\", IF(VLOOKUP(CG139,'Footnotes list'!$D$9:$E$58,2,FALSE)=0,\"\",VLOOKUP(CG139,'Footnotes list'!$D$9:$E$58,2,FALSE) ) )","v":""},null,null,null,null,{"$f":"IF(TRIM(CL139)=\"\", \"\", IF(VLOOKUP(CL139,'Footnotes list'!$D$9:$E$58,2,FALSE)=0,\"\",VLOOKUP(CL139,'Footnotes list'!$D$9:$E$58,2,FALSE) ) )","v":""},null,null,null,null,{"$f":"IF(TRIM(CQ139)=\"\", \"\", IF(VLOOKUP(CQ139,'Footnotes list'!$D$9:$E$58,2,FALSE)=0,\"\",VLOOKUP(CQ139,'Footnotes list'!$D$9:$E$58,2,FALSE) ) )","v":""},null,null,null,null,{"$f":"IF(TRIM(CV139)=\"\", \"\", IF(VLOOKUP(CV139,'Footnotes list'!$D$9:$E$58,2,FALSE)=0,\"\",VLOOKUP(CV139,'Footnotes list'!$D$9:$E$58,2,FALSE) ) )","v":""},null,null,null,null,{"$f":"IF(TRIM(DA139)=\"\", \"\", IF(VLOOKUP(DA139,'Footnotes list'!$D$9:$E$58,2,FALSE)=0,\"\",VLOOKUP(DA139,'Footnotes list'!$D$9:$E$58,2,FALSE) ) )","v":""},null,null,null,null,{"$f":"IF(TRIM(DF139)=\"\", \"\", IF(VLOOKUP(DF139,'Footnotes list'!$D$9:$E$58,2,FALSE)=0,\"\",VLOOKUP(DF139,'Footnotes list'!$D$9:$E$58,2,FALSE) ) )","v":""},null,null,null,null,{"$f":"IF(TRIM(DK139)=\"\", \"\", IF(VLOOKUP(DK139,'Footnotes list'!$D$9:$E$58,2,FALSE)=0,\"\",VLOOKUP(DK139,'Footnotes list'!$D$9:$E$58,2,FALSE) ) )","v":""},null,null,null,null,{"$f":"IF(TRIM(DP139)=\"\", \"\", IF(VLOOKUP(DP139,'Footnotes list'!$D$9:$E$58,2,FALSE)=0,\"\",VLOOKUP(DP139,'Footnotes list'!$D$9:$E$58,2,FALSE) ) )","v":""},null,null,null,null,{"$f":"IF(TRIM(DU139)=\"\", \"\", IF(VLOOKUP(DU139,'Footnotes list'!$D$9:$E$58,2,FALSE)=0,\"\",VLOOKUP(DU139,'Footnotes list'!$D$9:$E$58,2,FALSE) ) )","v":""},null,null,null,null,{"$f":"IF(TRIM(DZ139)=\"\", \"\", IF(VLOOKUP(DZ139,'Footnotes list'!$D$9:$E$58,2,FALSE)=0,\"\",VLOOKUP(DZ139,'Footnotes list'!$D$9:$E$58,2,FALSE) ) )","v":""},null,null,null,null,{"$f":"IF(TRIM(EE139)=\"\", \"\", IF(VLOOKUP(EE139,'Footnotes list'!$D$9:$E$58,2,FALSE)=0,\"\",VLOOKUP(EE139,'Footnotes list'!$D$9:$E$58,2,FALSE) ) )","v":""},null,null,null,null,{"$f":"IF(TRIM(EJ139)=\"\", \"\", IF(VLOOKUP(EJ139,'Footnotes list'!$D$9:$E$58,2,FALSE)=0,\"\",VLOOKUP(EJ139,'Footnotes list'!$D$9:$E$58,2,FALSE) ) )","v":""},null,null,null,null,{"$f":"IF(TRIM(EO139)=\"\", \"\", IF(VLOOKUP(EO139,'Footnotes list'!$D$9:$E$58,2,FALSE)=0,\"\",VLOOKUP(EO139,'Footnotes list'!$D$9:$E$58,2,FALSE) ) )","v":""},null,null,null,null,{"$f":"IF(TRIM(ET139)=\"\", \"\", IF(VLOOKUP(ET139,'Footnotes list'!$D$9:$E$58,2,FALSE)=0,\"\",VLOOKUP(ET139,'Footnotes list'!$D$9:$E$58,2,FALSE) ) )","v":""},null,null,null,null,{"$f":"IF(TRIM(EY139)=\"\", \"\", IF(VLOOKUP(EY139,'Footnotes list'!$D$9:$E$58,2,FALSE)=0,\"\",VLOOKUP(EY139,'Footnotes list'!$D$9:$E$58,2,FALSE) ) )","v":""}]
[null,null,"E","C_REP","cleaner and resource efficient products",null,null,null,null,null,{"$f":"IF(TRIM(J140)=\"\", \"\", IF(VLOOKUP(J140,'Footnotes list'!$D$9:$E$58,2,FALSE)=0,\"\",VLOOKUP(J140,'Footnotes list'!$D$9:$E$58,2,FALSE) ) )","v":""},null,null,null,null,{"$f":"IF(TRIM(O140)=\"\", \"\", IF(VLOOKUP(O140,'Footnotes list'!$D$9:$E$58,2,FALSE)=0,\"\",VLOOKUP(O140,'Footnotes list'!$D$9:$E$58,2,FALSE) ) )","v":""},null,null,null,null,{"$f":"IF(TRIM(T140)=\"\", \"\", IF(VLOOKUP(T140,'Footnotes list'!$D$9:$E$58,2,FALSE)=0,\"\",VLOOKUP(T140,'Footnotes list'!$D$9:$E$58,2,FALSE) ) )","v":""},null,null,null,null,{"$f":"IF(TRIM(Y140)=\"\", \"\", IF(VLOOKUP(Y140,'Footnotes list'!$D$9:$E$58,2,FALSE)=0,\"\",VLOOKUP(Y140,'Footnotes list'!$D$9:$E$58,2,FALSE) ) )","v":""},null,null,null,null,{"$f":"IF(TRIM(AD140)=\"\", \"\", IF(VLOOKUP(AD140,'Footnotes list'!$D$9:$E$58,2,FALSE)=0,\"\",VLOOKUP(AD140,'Footnotes list'!$D$9:$E$58,2,FALSE) ) )","v":""},null,null,null,null,{"$f":"IF(TRIM(AI140)=\"\", \"\", IF(VLOOKUP(AI140,'Footnotes list'!$D$9:$E$58,2,FALSE)=0,\"\",VLOOKUP(AI140,'Footnotes list'!$D$9:$E$58,2,FALSE) ) )","v":""},null,null,null,null,{"$f":"IF(TRIM(AN140)=\"\", \"\", IF(VLOOKUP(AN140,'Footnotes list'!$D$9:$E$58,2,FALSE)=0,\"\",VLOOKUP(AN140,'Footnotes list'!$D$9:$E$58,2,FALSE) ) )","v":""},null,null,null,null,{"$f":"IF(TRIM(AS140)=\"\", \"\", IF(VLOOKUP(AS140,'Footnotes list'!$D$9:$E$58,2,FALSE)=0,\"\",VLOOKUP(AS140,'Footnotes list'!$D$9:$E$58,2,FALSE) ) )","v":""},null,null,null,null,{"$f":"IF(TRIM(AX140)=\"\", \"\", IF(VLOOKUP(AX140,'Footnotes list'!$D$9:$E$58,2,FALSE)=0,\"\",VLOOKUP(AX140,'Footnotes list'!$D$9:$E$58,2,FALSE) ) )","v":""},null,null,null,null,{"$f":"IF(TRIM(BC140)=\"\", \"\", IF(VLOOKUP(BC140,'Footnotes list'!$D$9:$E$58,2,FALSE)=0,\"\",VLOOKUP(BC140,'Footnotes list'!$D$9:$E$58,2,FALSE) ) )","v":""},null,null,null,null,{"$f":"IF(TRIM(BH140)=\"\", \"\", IF(VLOOKUP(BH140,'Footnotes list'!$D$9:$E$58,2,FALSE)=0,\"\",VLOOKUP(BH140,'Footnotes list'!$D$9:$E$58,2,FALSE) ) )","v":""},null,null,null,null,{"$f":"IF(TRIM(BM140)=\"\", \"\", IF(VLOOKUP(BM140,'Footnotes list'!$D$9:$E$58,2,FALSE)=0,\"\",VLOOKUP(BM140,'Footnotes list'!$D$9:$E$58,2,FALSE) ) )","v":""},null,null,null,null,{"$f":"IF(TRIM(BR140)=\"\", \"\", IF(VLOOKUP(BR140,'Footnotes list'!$D$9:$E$58,2,FALSE)=0,\"\",VLOOKUP(BR140,'Footnotes list'!$D$9:$E$58,2,FALSE) ) )","v":""},null,null,null,null,{"$f":"IF(TRIM(BW140)=\"\", \"\", IF(VLOOKUP(BW140,'Footnotes list'!$D$9:$E$58,2,FALSE)=0,\"\",VLOOKUP(BW140,'Footnotes list'!$D$9:$E$58,2,FALSE) ) )","v":""},null,null,null,null,{"$f":"IF(TRIM(CB140)=\"\", \"\", IF(VLOOKUP(CB140,'Footnotes list'!$D$9:$E$58,2,FALSE)=0,\"\",VLOOKUP(CB140,'Footnotes list'!$D$9:$E$58,2,FALSE) ) )","v":""},null,null,null,null,{"$f":"IF(TRIM(CG140)=\"\", \"\", IF(VLOOKUP(CG140,'Footnotes list'!$D$9:$E$58,2,FALSE)=0,\"\",VLOOKUP(CG140,'Footnotes list'!$D$9:$E$58,2,FALSE) ) )","v":""},null,null,null,null,{"$f":"IF(TRIM(CL140)=\"\", \"\", IF(VLOOKUP(CL140,'Footnotes list'!$D$9:$E$58,2,FALSE)=0,\"\",VLOOKUP(CL140,'Footnotes list'!$D$9:$E$58,2,FALSE) ) )","v":""},null,null,null,null,{"$f":"IF(TRIM(CQ140)=\"\", \"\", IF(VLOOKUP(CQ140,'Footnotes list'!$D$9:$E$58,2,FALSE)=0,\"\",VLOOKUP(CQ140,'Footnotes list'!$D$9:$E$58,2,FALSE) ) )","v":""},null,null,null,null,{"$f":"IF(TRIM(CV140)=\"\", \"\", IF(VLOOKUP(CV140,'Footnotes list'!$D$9:$E$58,2,FALSE)=0,\"\",VLOOKUP(CV140,'Footnotes list'!$D$9:$E$58,2,FALSE) ) )","v":""},null,null,null,null,{"$f":"IF(TRIM(DA140)=\"\", \"\", IF(VLOOKUP(DA140,'Footnotes list'!$D$9:$E$58,2,FALSE)=0,\"\",VLOOKUP(DA140,'Footnotes list'!$D$9:$E$58,2,FALSE) ) )","v":""},null,null,null,null,{"$f":"IF(TRIM(DF140)=\"\", \"\", IF(VLOOKUP(DF140,'Footnotes list'!$D$9:$E$58,2,FALSE)=0,\"\",VLOOKUP(DF140,'Footnotes list'!$D$9:$E$58,2,FALSE) ) )","v":""},null,null,null,null,{"$f":"IF(TRIM(DK140)=\"\", \"\", IF(VLOOKUP(DK140,'Footnotes list'!$D$9:$E$58,2,FALSE)=0,\"\",VLOOKUP(DK140,'Footnotes list'!$D$9:$E$58,2,FALSE) ) )","v":""},null,null,null,null,{"$f":"IF(TRIM(DP140)=\"\", \"\", IF(VLOOKUP(DP140,'Footnotes list'!$D$9:$E$58,2,FALSE)=0,\"\",VLOOKUP(DP140,'Footnotes list'!$D$9:$E$58,2,FALSE) ) )","v":""},null,null,null,null,{"$f":"IF(TRIM(DU140)=\"\", \"\", IF(VLOOKUP(DU140,'Footnotes list'!$D$9:$E$58,2,FALSE)=0,\"\",VLOOKUP(DU140,'Footnotes list'!$D$9:$E$58,2,FALSE) ) )","v":""},null,null,null,null,{"$f":"IF(TRIM(DZ140)=\"\", \"\", IF(VLOOKUP(DZ140,'Footnotes list'!$D$9:$E$58,2,FALSE)=0,\"\",VLOOKUP(DZ140,'Footnotes list'!$D$9:$E$58,2,FALSE) ) )","v":""},null,null,null,null,{"$f":"IF(TRIM(EE140)=\"\", \"\", IF(VLOOKUP(EE140,'Footnotes list'!$D$9:$E$58,2,FALSE)=0,\"\",VLOOKUP(EE140,'Footnotes list'!$D$9:$E$58,2,FALSE) ) )","v":""},null,null,null,null,{"$f":"IF(TRIM(EJ140)=\"\", \"\", IF(VLOOKUP(EJ140,'Footnotes list'!$D$9:$E$58,2,FALSE)=0,\"\",VLOOKUP(EJ140,'Footnotes list'!$D$9:$E$58,2,FALSE) ) )","v":""},null,null,null,null,{"$f":"IF(TRIM(EO140)=\"\", \"\", IF(VLOOKUP(EO140,'Footnotes list'!$D$9:$E$58,2,FALSE)=0,\"\",VLOOKUP(EO140,'Footnotes list'!$D$9:$E$58,2,FALSE) ) )","v":""},null,null,null,null,{"$f":"IF(TRIM(ET140)=\"\", \"\", IF(VLOOKUP(ET140,'Footnotes list'!$D$9:$E$58,2,FALSE)=0,\"\",VLOOKUP(ET140,'Footnotes list'!$D$9:$E$58,2,FALSE) ) )","v":""},null,null,null,null,{"$f":"IF(TRIM(EY140)=\"\", \"\", IF(VLOOKUP(EY140,'Footnotes list'!$D$9:$E$58,2,FALSE)=0,\"\",VLOOKUP(EY140,'Footnotes list'!$D$9:$E$58,2,FALSE) ) )","v":""}]
[null,null,"E36","TOT_EGSS","Total E36 - Water collection, treatment and supply, of which:",null,null,null,null,null,{"$f":"IF(TRIM(J141)=\"\", \"\", IF(VLOOKUP(J141,'Footnotes list'!$D$9:$E$58,2,FALSE)=0,\"\",VLOOKUP(J141,'Footnotes list'!$D$9:$E$58,2,FALSE) ) )","v":""},null,null,null,null,{"$f":"IF(TRIM(O141)=\"\", \"\", IF(VLOOKUP(O141,'Footnotes list'!$D$9:$E$58,2,FALSE)=0,\"\",VLOOKUP(O141,'Footnotes list'!$D$9:$E$58,2,FALSE) ) )","v":""},null,null,null,null,{"$f":"IF(TRIM(T141)=\"\", \"\", IF(VLOOKUP(T141,'Footnotes list'!$D$9:$E$58,2,FALSE)=0,\"\",VLOOKUP(T141,'Footnotes list'!$D$9:$E$58,2,FALSE) ) )","v":""},null,null,null,null,{"$f":"IF(TRIM(Y141)=\"\", \"\", IF(VLOOKUP(Y141,'Footnotes list'!$D$9:$E$58,2,FALSE)=0,\"\",VLOOKUP(Y141,'Footnotes list'!$D$9:$E$58,2,FALSE) ) )","v":""},null,null,null,null,{"$f":"IF(TRIM(AD141)=\"\", \"\", IF(VLOOKUP(AD141,'Footnotes list'!$D$9:$E$58,2,FALSE)=0,\"\",VLOOKUP(AD141,'Footnotes list'!$D$9:$E$58,2,FALSE) ) )","v":""},null,null,null,null,{"$f":"IF(TRIM(AI141)=\"\", \"\", IF(VLOOKUP(AI141,'Footnotes list'!$D$9:$E$58,2,FALSE)=0,\"\",VLOOKUP(AI141,'Footnotes list'!$D$9:$E$58,2,FALSE) ) )","v":""},null,null,null,null,{"$f":"IF(TRIM(AN141)=\"\", \"\", IF(VLOOKUP(AN141,'Footnotes list'!$D$9:$E$58,2,FALSE)=0,\"\",VLOOKUP(AN141,'Footnotes list'!$D$9:$E$58,2,FALSE) ) )","v":""},null,null,null,null,{"$f":"IF(TRIM(AS141)=\"\", \"\", IF(VLOOKUP(AS141,'Footnotes list'!$D$9:$E$58,2,FALSE)=0,\"\",VLOOKUP(AS141,'Footnotes list'!$D$9:$E$58,2,FALSE) ) )","v":""},null,null,null,null,{"$f":"IF(TRIM(AX141)=\"\", \"\", IF(VLOOKUP(AX141,'Footnotes list'!$D$9:$E$58,2,FALSE)=0,\"\",VLOOKUP(AX141,'Footnotes list'!$D$9:$E$58,2,FALSE) ) )","v":""},null,null,null,null,{"$f":"IF(TRIM(BC141)=\"\", \"\", IF(VLOOKUP(BC141,'Footnotes list'!$D$9:$E$58,2,FALSE)=0,\"\",VLOOKUP(BC141,'Footnotes list'!$D$9:$E$58,2,FALSE) ) )","v":""},null,null,null,null,{"$f":"IF(TRIM(BH141)=\"\", \"\", IF(VLOOKUP(BH141,'Footnotes list'!$D$9:$E$58,2,FALSE)=0,\"\",VLOOKUP(BH141,'Footnotes list'!$D$9:$E$58,2,FALSE) ) )","v":""},null,null,null,null,{"$f":"IF(TRIM(BM141)=\"\", \"\", IF(VLOOKUP(BM141,'Footnotes list'!$D$9:$E$58,2,FALSE)=0,\"\",VLOOKUP(BM141,'Footnotes list'!$D$9:$E$58,2,FALSE) ) )","v":""},null,null,null,null,{"$f":"IF(TRIM(BR141)=\"\", \"\", IF(VLOOKUP(BR141,'Footnotes list'!$D$9:$E$58,2,FALSE)=0,\"\",VLOOKUP(BR141,'Footnotes list'!$D$9:$E$58,2,FALSE) ) )","v":""},null,null,null,null,{"$f":"IF(TRIM(BW141)=\"\", \"\", IF(VLOOKUP(BW141,'Footnotes list'!$D$9:$E$58,2,FALSE)=0,\"\",VLOOKUP(BW141,'Footnotes list'!$D$9:$E$58,2,FALSE) ) )","v":""},null,null,null,null,{"$f":"IF(TRIM(CB141)=\"\", \"\", IF(VLOOKUP(CB141,'Footnotes list'!$D$9:$E$58,2,FALSE)=0,\"\",VLOOKUP(CB141,'Footnotes list'!$D$9:$E$58,2,FALSE) ) )","v":""},null,null,null,null,{"$f":"IF(TRIM(CG141)=\"\", \"\", IF(VLOOKUP(CG141,'Footnotes list'!$D$9:$E$58,2,FALSE)=0,\"\",VLOOKUP(CG141,'Footnotes list'!$D$9:$E$58,2,FALSE) ) )","v":""},null,null,null,null,{"$f":"IF(TRIM(CL141)=\"\", \"\", IF(VLOOKUP(CL141,'Footnotes list'!$D$9:$E$58,2,FALSE)=0,\"\",VLOOKUP(CL141,'Footnotes list'!$D$9:$E$58,2,FALSE) ) )","v":""},null,null,null,null,{"$f":"IF(TRIM(CQ141)=\"\", \"\", IF(VLOOKUP(CQ141,'Footnotes list'!$D$9:$E$58,2,FALSE)=0,\"\",VLOOKUP(CQ141,'Footnotes list'!$D$9:$E$58,2,FALSE) ) )","v":""},null,null,null,null,{"$f":"IF(TRIM(CV141)=\"\", \"\", IF(VLOOKUP(CV141,'Footnotes list'!$D$9:$E$58,2,FALSE)=0,\"\",VLOOKUP(CV141,'Footnotes list'!$D$9:$E$58,2,FALSE) ) )","v":""},null,null,null,null,{"$f":"IF(TRIM(DA141)=\"\", \"\", IF(VLOOKUP(DA141,'Footnotes list'!$D$9:$E$58,2,FALSE)=0,\"\",VLOOKUP(DA141,'Footnotes list'!$D$9:$E$58,2,FALSE) ) )","v":""},null,null,null,null,{"$f":"IF(TRIM(DF141)=\"\", \"\", IF(VLOOKUP(DF141,'Footnotes list'!$D$9:$E$58,2,FALSE)=0,\"\",VLOOKUP(DF141,'Footnotes list'!$D$9:$E$58,2,FALSE) ) )","v":""},null,null,null,null,{"$f":"IF(TRIM(DK141)=\"\", \"\", IF(VLOOKUP(DK141,'Footnotes list'!$D$9:$E$58,2,FALSE)=0,\"\",VLOOKUP(DK141,'Footnotes list'!$D$9:$E$58,2,FALSE) ) )","v":""},null,null,null,null,{"$f":"IF(TRIM(DP141)=\"\", \"\", IF(VLOOKUP(DP141,'Footnotes list'!$D$9:$E$58,2,FALSE)=0,\"\",VLOOKUP(DP141,'Footnotes list'!$D$9:$E$58,2,FALSE) ) )","v":""},null,null,null,null,{"$f":"IF(TRIM(DU141)=\"\", \"\", IF(VLOOKUP(DU141,'Footnotes list'!$D$9:$E$58,2,FALSE)=0,\"\",VLOOKUP(DU141,'Footnotes list'!$D$9:$E$58,2,FALSE) ) )","v":""},null,null,null,null,{"$f":"IF(TRIM(DZ141)=\"\", \"\", IF(VLOOKUP(DZ141,'Footnotes list'!$D$9:$E$58,2,FALSE)=0,\"\",VLOOKUP(DZ141,'Footnotes list'!$D$9:$E$58,2,FALSE) ) )","v":""},null,null,null,null,{"$f":"IF(TRIM(EE141)=\"\", \"\", IF(VLOOKUP(EE141,'Footnotes list'!$D$9:$E$58,2,FALSE)=0,\"\",VLOOKUP(EE141,'Footnotes list'!$D$9:$E$58,2,FALSE) ) )","v":""},null,null,null,null,{"$f":"IF(TRIM(EJ141)=\"\", \"\", IF(VLOOKUP(EJ141,'Footnotes list'!$D$9:$E$58,2,FALSE)=0,\"\",VLOOKUP(EJ141,'Footnotes list'!$D$9:$E$58,2,FALSE) ) )","v":""},null,null,null,null,{"$f":"IF(TRIM(EO141)=\"\", \"\", IF(VLOOKUP(EO141,'Footnotes list'!$D$9:$E$58,2,FALSE)=0,\"\",VLOOKUP(EO141,'Footnotes list'!$D$9:$E$58,2,FALSE) ) )","v":""},null,null,null,null,{"$f":"IF(TRIM(ET141)=\"\", \"\", IF(VLOOKUP(ET141,'Footnotes list'!$D$9:$E$58,2,FALSE)=0,\"\",VLOOKUP(ET141,'Footnotes list'!$D$9:$E$58,2,FALSE) ) )","v":""},null,null,null,null,{"$f":"IF(TRIM(EY141)=\"\", \"\", IF(VLOOKUP(EY141,'Footnotes list'!$D$9:$E$58,2,FALSE)=0,\"\",VLOOKUP(EY141,'Footnotes list'!$D$9:$E$58,2,FALSE) ) )","v":""}]
[null,null,"E36","ANC","ancillary activities",null,null,null,null,null,{"$f":"IF(TRIM(J142)=\"\", \"\", IF(VLOOKUP(J142,'Footnotes list'!$D$9:$E$58,2,FALSE)=0,\"\",VLOOKUP(J142,'Footnotes list'!$D$9:$E$58,2,FALSE) ) )","v":""},null,null,null,null,{"$f":"IF(TRIM(O142)=\"\", \"\", IF(VLOOKUP(O142,'Footnotes list'!$D$9:$E$58,2,FALSE)=0,\"\",VLOOKUP(O142,'Footnotes list'!$D$9:$E$58,2,FALSE) ) )","v":""},null,null,null,null,{"$f":"IF(TRIM(T142)=\"\", \"\", IF(VLOOKUP(T142,'Footnotes list'!$D$9:$E$58,2,FALSE)=0,\"\",VLOOKUP(T142,'Footnotes list'!$D$9:$E$58,2,FALSE) ) )","v":""},null,null,null,null,{"$f":"IF(TRIM(Y142)=\"\", \"\", IF(VLOOKUP(Y142,'Footnotes list'!$D$9:$E$58,2,FALSE)=0,\"\",VLOOKUP(Y142,'Footnotes list'!$D$9:$E$58,2,FALSE) ) )","v":""},null,null,null,null,{"$f":"IF(TRIM(AD142)=\"\", \"\", IF(VLOOKUP(AD142,'Footnotes list'!$D$9:$E$58,2,FALSE)=0,\"\",VLOOKUP(AD142,'Footnotes list'!$D$9:$E$58,2,FALSE) ) )","v":""},null,null,null,null,{"$f":"IF(TRIM(AI142)=\"\", \"\", IF(VLOOKUP(AI142,'Footnotes list'!$D$9:$E$58,2,FALSE)=0,\"\",VLOOKUP(AI142,'Footnotes list'!$D$9:$E$58,2,FALSE) ) )","v":""},null,null,null,null,{"$f":"IF(TRIM(AN142)=\"\", \"\", IF(VLOOKUP(AN142,'Footnotes list'!$D$9:$E$58,2,FALSE)=0,\"\",VLOOKUP(AN142,'Footnotes list'!$D$9:$E$58,2,FALSE) ) )","v":""},null,null,null,null,{"$f":"IF(TRIM(AS142)=\"\", \"\", IF(VLOOKUP(AS142,'Footnotes list'!$D$9:$E$58,2,FALSE)=0,\"\",VLOOKUP(AS142,'Footnotes list'!$D$9:$E$58,2,FALSE) ) )","v":""},null,null,null,null,{"$f":"IF(TRIM(AX142)=\"\", \"\", IF(VLOOKUP(AX142,'Footnotes list'!$D$9:$E$58,2,FALSE)=0,\"\",VLOOKUP(AX142,'Footnotes list'!$D$9:$E$58,2,FALSE) ) )","v":""},null,null,null,null,{"$f":"IF(TRIM(BC142)=\"\", \"\", IF(VLOOKUP(BC142,'Footnotes list'!$D$9:$E$58,2,FALSE)=0,\"\",VLOOKUP(BC142,'Footnotes list'!$D$9:$E$58,2,FALSE) ) )","v":""},null,null,null,null,{"$f":"IF(TRIM(BH142)=\"\", \"\", IF(VLOOKUP(BH142,'Footnotes list'!$D$9:$E$58,2,FALSE)=0,\"\",VLOOKUP(BH142,'Footnotes list'!$D$9:$E$58,2,FALSE) ) )","v":""},null,null,null,null,{"$f":"IF(TRIM(BM142)=\"\", \"\", IF(VLOOKUP(BM142,'Footnotes list'!$D$9:$E$58,2,FALSE)=0,\"\",VLOOKUP(BM142,'Footnotes list'!$D$9:$E$58,2,FALSE) ) )","v":""},null,null,null,null,{"$f":"IF(TRIM(BR142)=\"\", \"\", IF(VLOOKUP(BR142,'Footnotes list'!$D$9:$E$58,2,FALSE)=0,\"\",VLOOKUP(BR142,'Footnotes list'!$D$9:$E$58,2,FALSE) ) )","v":""},null,null,null,null,{"$f":"IF(TRIM(BW142)=\"\", \"\", IF(VLOOKUP(BW142,'Footnotes list'!$D$9:$E$58,2,FALSE)=0,\"\",VLOOKUP(BW142,'Footnotes list'!$D$9:$E$58,2,FALSE) ) )","v":""},null,null,null,null,{"$f":"IF(TRIM(CB142)=\"\", \"\", IF(VLOOKUP(CB142,'Footnotes list'!$D$9:$E$58,2,FALSE)=0,\"\",VLOOKUP(CB142,'Footnotes list'!$D$9:$E$58,2,FALSE) ) )","v":""},null,null,null,null,{"$f":"IF(TRIM(CG142)=\"\", \"\", IF(VLOOKUP(CG142,'Footnotes list'!$D$9:$E$58,2,FALSE)=0,\"\",VLOOKUP(CG142,'Footnotes list'!$D$9:$E$58,2,FALSE) ) )","v":""},null,null,null,null,{"$f":"IF(TRIM(CL142)=\"\", \"\", IF(VLOOKUP(CL142,'Footnotes list'!$D$9:$E$58,2,FALSE)=0,\"\",VLOOKUP(CL142,'Footnotes list'!$D$9:$E$58,2,FALSE) ) )","v":""},null,null,null,null,{"$f":"IF(TRIM(CQ142)=\"\", \"\", IF(VLOOKUP(CQ142,'Footnotes list'!$D$9:$E$58,2,FALSE)=0,\"\",VLOOKUP(CQ142,'Footnotes list'!$D$9:$E$58,2,FALSE) ) )","v":""},null,null,null,null,{"$f":"IF(TRIM(CV142)=\"\", \"\", IF(VLOOKUP(CV142,'Footnotes list'!$D$9:$E$58,2,FALSE)=0,\"\",VLOOKUP(CV142,'Footnotes list'!$D$9:$E$58,2,FALSE) ) )","v":""},null,null,null,null,{"$f":"IF(TRIM(DA142)=\"\", \"\", IF(VLOOKUP(DA142,'Footnotes list'!$D$9:$E$58,2,FALSE)=0,\"\",VLOOKUP(DA142,'Footnotes list'!$D$9:$E$58,2,FALSE) ) )","v":""},null,null,null,null,{"$f":"IF(TRIM(DF142)=\"\", \"\", IF(VLOOKUP(DF142,'Footnotes list'!$D$9:$E$58,2,FALSE)=0,\"\",VLOOKUP(DF142,'Footnotes list'!$D$9:$E$58,2,FALSE) ) )","v":""},null,null,null,null,{"$f":"IF(TRIM(DK142)=\"\", \"\", IF(VLOOKUP(DK142,'Footnotes list'!$D$9:$E$58,2,FALSE)=0,\"\",VLOOKUP(DK142,'Footnotes list'!$D$9:$E$58,2,FALSE) ) )","v":""},null,null,null,null,{"$f":"IF(TRIM(DP142)=\"\", \"\", IF(VLOOKUP(DP142,'Footnotes list'!$D$9:$E$58,2,FALSE)=0,\"\",VLOOKUP(DP142,'Footnotes list'!$D$9:$E$58,2,FALSE) ) )","v":""},null,null,null,null,{"$f":"IF(TRIM(DU142)=\"\", \"\", IF(VLOOKUP(DU142,'Footnotes list'!$D$9:$E$58,2,FALSE)=0,\"\",VLOOKUP(DU142,'Footnotes list'!$D$9:$E$58,2,FALSE) ) )","v":""},null,null,null,null,{"$f":"IF(TRIM(DZ142)=\"\", \"\", IF(VLOOKUP(DZ142,'Footnotes list'!$D$9:$E$58,2,FALSE)=0,\"\",VLOOKUP(DZ142,'Footnotes list'!$D$9:$E$58,2,FALSE) ) )","v":""},null,null,null,null,{"$f":"IF(TRIM(EE142)=\"\", \"\", IF(VLOOKUP(EE142,'Footnotes list'!$D$9:$E$58,2,FALSE)=0,\"\",VLOOKUP(EE142,'Footnotes list'!$D$9:$E$58,2,FALSE) ) )","v":""},null,null,null,null,{"$f":"IF(TRIM(EJ142)=\"\", \"\", IF(VLOOKUP(EJ142,'Footnotes list'!$D$9:$E$58,2,FALSE)=0,\"\",VLOOKUP(EJ142,'Footnotes list'!$D$9:$E$58,2,FALSE) ) )","v":""},null,null,null,null,{"$f":"IF(TRIM(EO142)=\"\", \"\", IF(VLOOKUP(EO142,'Footnotes list'!$D$9:$E$58,2,FALSE)=0,\"\",VLOOKUP(EO142,'Footnotes list'!$D$9:$E$58,2,FALSE) ) )","v":""},null,null,null,null,{"$f":"IF(TRIM(ET142)=\"\", \"\", IF(VLOOKUP(ET142,'Footnotes list'!$D$9:$E$58,2,FALSE)=0,\"\",VLOOKUP(ET142,'Footnotes list'!$D$9:$E$58,2,FALSE) ) )","v":""},null,null,null,null,{"$f":"IF(TRIM(EY142)=\"\", \"\", IF(VLOOKUP(EY142,'Footnotes list'!$D$9:$E$58,2,FALSE)=0,\"\",VLOOKUP(EY142,'Footnotes list'!$D$9:$E$58,2,FALSE) ) )","v":""}]
[null,null,"E36","NMKT","non-market activities",null,null,null,null,null,{"$f":"IF(TRIM(J143)=\"\", \"\", IF(VLOOKUP(J143,'Footnotes list'!$D$9:$E$58,2,FALSE)=0,\"\",VLOOKUP(J143,'Footnotes list'!$D$9:$E$58,2,FALSE) ) )","v":""},null,null,null,null,{"$f":"IF(TRIM(O143)=\"\", \"\", IF(VLOOKUP(O143,'Footnotes list'!$D$9:$E$58,2,FALSE)=0,\"\",VLOOKUP(O143,'Footnotes list'!$D$9:$E$58,2,FALSE) ) )","v":""},null,null,null,null,{"$f":"IF(TRIM(T143)=\"\", \"\", IF(VLOOKUP(T143,'Footnotes list'!$D$9:$E$58,2,FALSE)=0,\"\",VLOOKUP(T143,'Footnotes list'!$D$9:$E$58,2,FALSE) ) )","v":""},null,null,null,null,{"$f":"IF(TRIM(Y143)=\"\", \"\", IF(VLOOKUP(Y143,'Footnotes list'!$D$9:$E$58,2,FALSE)=0,\"\",VLOOKUP(Y143,'Footnotes list'!$D$9:$E$58,2,FALSE) ) )","v":""},null,null,null,null,{"$f":"IF(TRIM(AD143)=\"\", \"\", IF(VLOOKUP(AD143,'Footnotes list'!$D$9:$E$58,2,FALSE)=0,\"\",VLOOKUP(AD143,'Footnotes list'!$D$9:$E$58,2,FALSE) ) )","v":""},null,null,null,null,{"$f":"IF(TRIM(AI143)=\"\", \"\", IF(VLOOKUP(AI143,'Footnotes list'!$D$9:$E$58,2,FALSE)=0,\"\",VLOOKUP(AI143,'Footnotes list'!$D$9:$E$58,2,FALSE) ) )","v":""},null,null,null,null,{"$f":"IF(TRIM(AN143)=\"\", \"\", IF(VLOOKUP(AN143,'Footnotes list'!$D$9:$E$58,2,FALSE)=0,\"\",VLOOKUP(AN143,'Footnotes list'!$D$9:$E$58,2,FALSE) ) )","v":""},null,null,null,null,{"$f":"IF(TRIM(AS143)=\"\", \"\", IF(VLOOKUP(AS143,'Footnotes list'!$D$9:$E$58,2,FALSE)=0,\"\",VLOOKUP(AS143,'Footnotes list'!$D$9:$E$58,2,FALSE) ) )","v":""},null,null,null,null,{"$f":"IF(TRIM(AX143)=\"\", \"\", IF(VLOOKUP(AX143,'Footnotes list'!$D$9:$E$58,2,FALSE)=0,\"\",VLOOKUP(AX143,'Footnotes list'!$D$9:$E$58,2,FALSE) ) )","v":""},null,null,null,null,{"$f":"IF(TRIM(BC143)=\"\", \"\", IF(VLOOKUP(BC143,'Footnotes list'!$D$9:$E$58,2,FALSE)=0,\"\",VLOOKUP(BC143,'Footnotes list'!$D$9:$E$58,2,FALSE) ) )","v":""},null,null,null,null,{"$f":"IF(TRIM(BH143)=\"\", \"\", IF(VLOOKUP(BH143,'Footnotes list'!$D$9:$E$58,2,FALSE)=0,\"\",VLOOKUP(BH143,'Footnotes list'!$D$9:$E$58,2,FALSE) ) )","v":""},null,null,null,null,{"$f":"IF(TRIM(BM143)=\"\", \"\", IF(VLOOKUP(BM143,'Footnotes list'!$D$9:$E$58,2,FALSE)=0,\"\",VLOOKUP(BM143,'Footnotes list'!$D$9:$E$58,2,FALSE) ) )","v":""},null,null,null,null,{"$f":"IF(TRIM(BR143)=\"\", \"\", IF(VLOOKUP(BR143,'Footnotes list'!$D$9:$E$58,2,FALSE)=0,\"\",VLOOKUP(BR143,'Footnotes list'!$D$9:$E$58,2,FALSE) ) )","v":""},null,null,null,null,{"$f":"IF(TRIM(BW143)=\"\", \"\", IF(VLOOKUP(BW143,'Footnotes list'!$D$9:$E$58,2,FALSE)=0,\"\",VLOOKUP(BW143,'Footnotes list'!$D$9:$E$58,2,FALSE) ) )","v":""},null,null,null,null,{"$f":"IF(TRIM(CB143)=\"\", \"\", IF(VLOOKUP(CB143,'Footnotes list'!$D$9:$E$58,2,FALSE)=0,\"\",VLOOKUP(CB143,'Footnotes list'!$D$9:$E$58,2,FALSE) ) )","v":""},null,null,null,null,{"$f":"IF(TRIM(CG143)=\"\", \"\", IF(VLOOKUP(CG143,'Footnotes list'!$D$9:$E$58,2,FALSE)=0,\"\",VLOOKUP(CG143,'Footnotes list'!$D$9:$E$58,2,FALSE) ) )","v":""},null,null,null,null,{"$f":"IF(TRIM(CL143)=\"\", \"\", IF(VLOOKUP(CL143,'Footnotes list'!$D$9:$E$58,2,FALSE)=0,\"\",VLOOKUP(CL143,'Footnotes list'!$D$9:$E$58,2,FALSE) ) )","v":""},null,null,null,null,{"$f":"IF(TRIM(CQ143)=\"\", \"\", IF(VLOOKUP(CQ143,'Footnotes list'!$D$9:$E$58,2,FALSE)=0,\"\",VLOOKUP(CQ143,'Footnotes list'!$D$9:$E$58,2,FALSE) ) )","v":""},null,null,null,null,{"$f":"IF(TRIM(CV143)=\"\", \"\", IF(VLOOKUP(CV143,'Footnotes list'!$D$9:$E$58,2,FALSE)=0,\"\",VLOOKUP(CV143,'Footnotes list'!$D$9:$E$58,2,FALSE) ) )","v":""},null,null,null,null,{"$f":"IF(TRIM(DA143)=\"\", \"\", IF(VLOOKUP(DA143,'Footnotes list'!$D$9:$E$58,2,FALSE)=0,\"\",VLOOKUP(DA143,'Footnotes list'!$D$9:$E$58,2,FALSE) ) )","v":""},null,null,null,null,{"$f":"IF(TRIM(DF143)=\"\", \"\", IF(VLOOKUP(DF143,'Footnotes list'!$D$9:$E$58,2,FALSE)=0,\"\",VLOOKUP(DF143,'Footnotes list'!$D$9:$E$58,2,FALSE) ) )","v":""},null,null,null,null,{"$f":"IF(TRIM(DK143)=\"\", \"\", IF(VLOOKUP(DK143,'Footnotes list'!$D$9:$E$58,2,FALSE)=0,\"\",VLOOKUP(DK143,'Footnotes list'!$D$9:$E$58,2,FALSE) ) )","v":""},null,null,null,null,{"$f":"IF(TRIM(DP143)=\"\", \"\", IF(VLOOKUP(DP143,'Footnotes list'!$D$9:$E$58,2,FALSE)=0,\"\",VLOOKUP(DP143,'Footnotes list'!$D$9:$E$58,2,FALSE) ) )","v":""},null,null,null,null,{"$f":"IF(TRIM(DU143)=\"\", \"\", IF(VLOOKUP(DU143,'Footnotes list'!$D$9:$E$58,2,FALSE)=0,\"\",VLOOKUP(DU143,'Footnotes list'!$D$9:$E$58,2,FALSE) ) )","v":""},null,null,null,null,{"$f":"IF(TRIM(DZ143)=\"\", \"\", IF(VLOOKUP(DZ143,'Footnotes list'!$D$9:$E$58,2,FALSE)=0,\"\",VLOOKUP(DZ143,'Footnotes list'!$D$9:$E$58,2,FALSE) ) )","v":""},null,null,null,null,{"$f":"IF(TRIM(EE143)=\"\", \"\", IF(VLOOKUP(EE143,'Footnotes list'!$D$9:$E$58,2,FALSE)=0,\"\",VLOOKUP(EE143,'Footnotes list'!$D$9:$E$58,2,FALSE) ) )","v":""},null,null,null,null,{"$f":"IF(TRIM(EJ143)=\"\", \"\", IF(VLOOKUP(EJ143,'Footnotes list'!$D$9:$E$58,2,FALSE)=0,\"\",VLOOKUP(EJ143,'Footnotes list'!$D$9:$E$58,2,FALSE) ) )","v":""},null,null,null,null,{"$f":"IF(TRIM(EO143)=\"\", \"\", IF(VLOOKUP(EO143,'Footnotes list'!$D$9:$E$58,2,FALSE)=0,\"\",VLOOKUP(EO143,'Footnotes list'!$D$9:$E$58,2,FALSE) ) )","v":""},null,null,null,null,{"$f":"IF(TRIM(ET143)=\"\", \"\", IF(VLOOKUP(ET143,'Footnotes list'!$D$9:$E$58,2,FALSE)=0,\"\",VLOOKUP(ET143,'Footnotes list'!$D$9:$E$58,2,FALSE) ) )","v":""},null,null,null,null,{"$f":"IF(TRIM(EY143)=\"\", \"\", IF(VLOOKUP(EY143,'Footnotes list'!$D$9:$E$58,2,FALSE)=0,\"\",VLOOKUP(EY143,'Footnotes list'!$D$9:$E$58,2,FALSE) ) )","v":""}]
[null,null,"E36","OWN_USE","activities for own final use",null,null,null,null,null,{"$f":"IF(TRIM(J144)=\"\", \"\", IF(VLOOKUP(J144,'Footnotes list'!$D$9:$E$58,2,FALSE)=0,\"\",VLOOKUP(J144,'Footnotes list'!$D$9:$E$58,2,FALSE) ) )","v":""},null,null,null,null,{"$f":"IF(TRIM(O144)=\"\", \"\", IF(VLOOKUP(O144,'Footnotes list'!$D$9:$E$58,2,FALSE)=0,\"\",VLOOKUP(O144,'Footnotes list'!$D$9:$E$58,2,FALSE) ) )","v":""},null,null,null,null,{"$f":"IF(TRIM(T144)=\"\", \"\", IF(VLOOKUP(T144,'Footnotes list'!$D$9:$E$58,2,FALSE)=0,\"\",VLOOKUP(T144,'Footnotes list'!$D$9:$E$58,2,FALSE) ) )","v":""},null,null,null,null,{"$f":"IF(TRIM(Y144)=\"\", \"\", IF(VLOOKUP(Y144,'Footnotes list'!$D$9:$E$58,2,FALSE)=0,\"\",VLOOKUP(Y144,'Footnotes list'!$D$9:$E$58,2,FALSE) ) )","v":""},null,null,null,null,{"$f":"IF(TRIM(AD144)=\"\", \"\", IF(VLOOKUP(AD144,'Footnotes list'!$D$9:$E$58,2,FALSE)=0,\"\",VLOOKUP(AD144,'Footnotes list'!$D$9:$E$58,2,FALSE) ) )","v":""},null,null,null,null,{"$f":"IF(TRIM(AI144)=\"\", \"\", IF(VLOOKUP(AI144,'Footnotes list'!$D$9:$E$58,2,FALSE)=0,\"\",VLOOKUP(AI144,'Footnotes list'!$D$9:$E$58,2,FALSE) ) )","v":""},null,null,null,null,{"$f":"IF(TRIM(AN144)=\"\", \"\", IF(VLOOKUP(AN144,'Footnotes list'!$D$9:$E$58,2,FALSE)=0,\"\",VLOOKUP(AN144,'Footnotes list'!$D$9:$E$58,2,FALSE) ) )","v":""},null,null,null,null,{"$f":"IF(TRIM(AS144)=\"\", \"\", IF(VLOOKUP(AS144,'Footnotes list'!$D$9:$E$58,2,FALSE)=0,\"\",VLOOKUP(AS144,'Footnotes list'!$D$9:$E$58,2,FALSE) ) )","v":""},null,null,null,null,{"$f":"IF(TRIM(AX144)=\"\", \"\", IF(VLOOKUP(AX144,'Footnotes list'!$D$9:$E$58,2,FALSE)=0,\"\",VLOOKUP(AX144,'Footnotes list'!$D$9:$E$58,2,FALSE) ) )","v":""},null,null,null,null,{"$f":"IF(TRIM(BC144)=\"\", \"\", IF(VLOOKUP(BC144,'Footnotes list'!$D$9:$E$58,2,FALSE)=0,\"\",VLOOKUP(BC144,'Footnotes list'!$D$9:$E$58,2,FALSE) ) )","v":""},null,null,null,null,{"$f":"IF(TRIM(BH144)=\"\", \"\", IF(VLOOKUP(BH144,'Footnotes list'!$D$9:$E$58,2,FALSE)=0,\"\",VLOOKUP(BH144,'Footnotes list'!$D$9:$E$58,2,FALSE) ) )","v":""},null,null,null,null,{"$f":"IF(TRIM(BM144)=\"\", \"\", IF(VLOOKUP(BM144,'Footnotes list'!$D$9:$E$58,2,FALSE)=0,\"\",VLOOKUP(BM144,'Footnotes list'!$D$9:$E$58,2,FALSE) ) )","v":""},null,null,null,null,{"$f":"IF(TRIM(BR144)=\"\", \"\", IF(VLOOKUP(BR144,'Footnotes list'!$D$9:$E$58,2,FALSE)=0,\"\",VLOOKUP(BR144,'Footnotes list'!$D$9:$E$58,2,FALSE) ) )","v":""},null,null,null,null,{"$f":"IF(TRIM(BW144)=\"\", \"\", IF(VLOOKUP(BW144,'Footnotes list'!$D$9:$E$58,2,FALSE)=0,\"\",VLOOKUP(BW144,'Footnotes list'!$D$9:$E$58,2,FALSE) ) )","v":""},null,null,null,null,{"$f":"IF(TRIM(CB144)=\"\", \"\", IF(VLOOKUP(CB144,'Footnotes list'!$D$9:$E$58,2,FALSE)=0,\"\",VLOOKUP(CB144,'Footnotes list'!$D$9:$E$58,2,FALSE) ) )","v":""},null,null,null,null,{"$f":"IF(TRIM(CG144)=\"\", \"\", IF(VLOOKUP(CG144,'Footnotes list'!$D$9:$E$58,2,FALSE)=0,\"\",VLOOKUP(CG144,'Footnotes list'!$D$9:$E$58,2,FALSE) ) )","v":""},null,null,null,null,{"$f":"IF(TRIM(CL144)=\"\", \"\", IF(VLOOKUP(CL144,'Footnotes list'!$D$9:$E$58,2,FALSE)=0,\"\",VLOOKUP(CL144,'Footnotes list'!$D$9:$E$58,2,FALSE) ) )","v":""},null,null,null,null,{"$f":"IF(TRIM(CQ144)=\"\", \"\", IF(VLOOKUP(CQ144,'Footnotes list'!$D$9:$E$58,2,FALSE)=0,\"\",VLOOKUP(CQ144,'Footnotes list'!$D$9:$E$58,2,FALSE) ) )","v":""},null,null,null,null,{"$f":"IF(TRIM(CV144)=\"\", \"\", IF(VLOOKUP(CV144,'Footnotes list'!$D$9:$E$58,2,FALSE)=0,\"\",VLOOKUP(CV144,'Footnotes list'!$D$9:$E$58,2,FALSE) ) )","v":""},null,null,null,null,{"$f":"IF(TRIM(DA144)=\"\", \"\", IF(VLOOKUP(DA144,'Footnotes list'!$D$9:$E$58,2,FALSE)=0,\"\",VLOOKUP(DA144,'Footnotes list'!$D$9:$E$58,2,FALSE) ) )","v":""},null,null,null,null,{"$f":"IF(TRIM(DF144)=\"\", \"\", IF(VLOOKUP(DF144,'Footnotes list'!$D$9:$E$58,2,FALSE)=0,\"\",VLOOKUP(DF144,'Footnotes list'!$D$9:$E$58,2,FALSE) ) )","v":""},null,null,null,null,{"$f":"IF(TRIM(DK144)=\"\", \"\", IF(VLOOKUP(DK144,'Footnotes list'!$D$9:$E$58,2,FALSE)=0,\"\",VLOOKUP(DK144,'Footnotes list'!$D$9:$E$58,2,FALSE) ) )","v":""},null,null,null,null,{"$f":"IF(TRIM(DP144)=\"\", \"\", IF(VLOOKUP(DP144,'Footnotes list'!$D$9:$E$58,2,FALSE)=0,\"\",VLOOKUP(DP144,'Footnotes list'!$D$9:$E$58,2,FALSE) ) )","v":""},null,null,null,null,{"$f":"IF(TRIM(DU144)=\"\", \"\", IF(VLOOKUP(DU144,'Footnotes list'!$D$9:$E$58,2,FALSE)=0,\"\",VLOOKUP(DU144,'Footnotes list'!$D$9:$E$58,2,FALSE) ) )","v":""},null,null,null,null,{"$f":"IF(TRIM(DZ144)=\"\", \"\", IF(VLOOKUP(DZ144,'Footnotes list'!$D$9:$E$58,2,FALSE)=0,\"\",VLOOKUP(DZ144,'Footnotes list'!$D$9:$E$58,2,FALSE) ) )","v":""},null,null,null,null,{"$f":"IF(TRIM(EE144)=\"\", \"\", IF(VLOOKUP(EE144,'Footnotes list'!$D$9:$E$58,2,FALSE)=0,\"\",VLOOKUP(EE144,'Footnotes list'!$D$9:$E$58,2,FALSE) ) )","v":""},null,null,null,null,{"$f":"IF(TRIM(EJ144)=\"\", \"\", IF(VLOOKUP(EJ144,'Footnotes list'!$D$9:$E$58,2,FALSE)=0,\"\",VLOOKUP(EJ144,'Footnotes list'!$D$9:$E$58,2,FALSE) ) )","v":""},null,null,null,null,{"$f":"IF(TRIM(EO144)=\"\", \"\", IF(VLOOKUP(EO144,'Footnotes list'!$D$9:$E$58,2,FALSE)=0,\"\",VLOOKUP(EO144,'Footnotes list'!$D$9:$E$58,2,FALSE) ) )","v":""},null,null,null,null,{"$f":"IF(TRIM(ET144)=\"\", \"\", IF(VLOOKUP(ET144,'Footnotes list'!$D$9:$E$58,2,FALSE)=0,\"\",VLOOKUP(ET144,'Footnotes list'!$D$9:$E$58,2,FALSE) ) )","v":""},null,null,null,null,{"$f":"IF(TRIM(EY144)=\"\", \"\", IF(VLOOKUP(EY144,'Footnotes list'!$D$9:$E$58,2,FALSE)=0,\"\",VLOOKUP(EY144,'Footnotes list'!$D$9:$E$58,2,FALSE) ) )","v":""}]
[null,null,"E36","MKT","market activities, including:",null,null,null,null,null,{"$f":"IF(TRIM(J145)=\"\", \"\", IF(VLOOKUP(J145,'Footnotes list'!$D$9:$E$58,2,FALSE)=0,\"\",VLOOKUP(J145,'Footnotes list'!$D$9:$E$58,2,FALSE) ) )","v":""},null,null,null,null,{"$f":"IF(TRIM(O145)=\"\", \"\", IF(VLOOKUP(O145,'Footnotes list'!$D$9:$E$58,2,FALSE)=0,\"\",VLOOKUP(O145,'Footnotes list'!$D$9:$E$58,2,FALSE) ) )","v":""},null,null,null,null,{"$f":"IF(TRIM(T145)=\"\", \"\", IF(VLOOKUP(T145,'Footnotes list'!$D$9:$E$58,2,FALSE)=0,\"\",VLOOKUP(T145,'Footnotes list'!$D$9:$E$58,2,FALSE) ) )","v":""},null,null,null,null,{"$f":"IF(TRIM(Y145)=\"\", \"\", IF(VLOOKUP(Y145,'Footnotes list'!$D$9:$E$58,2,FALSE)=0,\"\",VLOOKUP(Y145,'Footnotes list'!$D$9:$E$58,2,FALSE) ) )","v":""},null,null,null,null,{"$f":"IF(TRIM(AD145)=\"\", \"\", IF(VLOOKUP(AD145,'Footnotes list'!$D$9:$E$58,2,FALSE)=0,\"\",VLOOKUP(AD145,'Footnotes list'!$D$9:$E$58,2,FALSE) ) )","v":""},null,null,null,null,{"$f":"IF(TRIM(AI145)=\"\", \"\", IF(VLOOKUP(AI145,'Footnotes list'!$D$9:$E$58,2,FALSE)=0,\"\",VLOOKUP(AI145,'Footnotes list'!$D$9:$E$58,2,FALSE) ) )","v":""},null,null,null,null,{"$f":"IF(TRIM(AN145)=\"\", \"\", IF(VLOOKUP(AN145,'Footnotes list'!$D$9:$E$58,2,FALSE)=0,\"\",VLOOKUP(AN145,'Footnotes list'!$D$9:$E$58,2,FALSE) ) )","v":""},null,null,null,null,{"$f":"IF(TRIM(AS145)=\"\", \"\", IF(VLOOKUP(AS145,'Footnotes list'!$D$9:$E$58,2,FALSE)=0,\"\",VLOOKUP(AS145,'Footnotes list'!$D$9:$E$58,2,FALSE) ) )","v":""},null,null,null,null,{"$f":"IF(TRIM(AX145)=\"\", \"\", IF(VLOOKUP(AX145,'Footnotes list'!$D$9:$E$58,2,FALSE)=0,\"\",VLOOKUP(AX145,'Footnotes list'!$D$9:$E$58,2,FALSE) ) )","v":""},null,null,null,null,{"$f":"IF(TRIM(BC145)=\"\", \"\", IF(VLOOKUP(BC145,'Footnotes list'!$D$9:$E$58,2,FALSE)=0,\"\",VLOOKUP(BC145,'Footnotes list'!$D$9:$E$58,2,FALSE) ) )","v":""},null,null,null,null,{"$f":"IF(TRIM(BH145)=\"\", \"\", IF(VLOOKUP(BH145,'Footnotes list'!$D$9:$E$58,2,FALSE)=0,\"\",VLOOKUP(BH145,'Footnotes list'!$D$9:$E$58,2,FALSE) ) )","v":""},null,null,null,null,{"$f":"IF(TRIM(BM145)=\"\", \"\", IF(VLOOKUP(BM145,'Footnotes list'!$D$9:$E$58,2,FALSE)=0,\"\",VLOOKUP(BM145,'Footnotes list'!$D$9:$E$58,2,FALSE) ) )","v":""},null,null,null,null,{"$f":"IF(TRIM(BR145)=\"\", \"\", IF(VLOOKUP(BR145,'Footnotes list'!$D$9:$E$58,2,FALSE)=0,\"\",VLOOKUP(BR145,'Footnotes list'!$D$9:$E$58,2,FALSE) ) )","v":""},null,null,null,null,{"$f":"IF(TRIM(BW145)=\"\", \"\", IF(VLOOKUP(BW145,'Footnotes list'!$D$9:$E$58,2,FALSE)=0,\"\",VLOOKUP(BW145,'Footnotes list'!$D$9:$E$58,2,FALSE) ) )","v":""},null,null,null,null,{"$f":"IF(TRIM(CB145)=\"\", \"\", IF(VLOOKUP(CB145,'Footnotes list'!$D$9:$E$58,2,FALSE)=0,\"\",VLOOKUP(CB145,'Footnotes list'!$D$9:$E$58,2,FALSE) ) )","v":""},null,null,null,null,{"$f":"IF(TRIM(CG145)=\"\", \"\", IF(VLOOKUP(CG145,'Footnotes list'!$D$9:$E$58,2,FALSE)=0,\"\",VLOOKUP(CG145,'Footnotes list'!$D$9:$E$58,2,FALSE) ) )","v":""},null,null,null,null,{"$f":"IF(TRIM(CL145)=\"\", \"\", IF(VLOOKUP(CL145,'Footnotes list'!$D$9:$E$58,2,FALSE)=0,\"\",VLOOKUP(CL145,'Footnotes list'!$D$9:$E$58,2,FALSE) ) )","v":""},null,null,null,null,{"$f":"IF(TRIM(CQ145)=\"\", \"\", IF(VLOOKUP(CQ145,'Footnotes list'!$D$9:$E$58,2,FALSE)=0,\"\",VLOOKUP(CQ145,'Footnotes list'!$D$9:$E$58,2,FALSE) ) )","v":""},null,null,null,null,{"$f":"IF(TRIM(CV145)=\"\", \"\", IF(VLOOKUP(CV145,'Footnotes list'!$D$9:$E$58,2,FALSE)=0,\"\",VLOOKUP(CV145,'Footnotes list'!$D$9:$E$58,2,FALSE) ) )","v":""},null,null,null,null,{"$f":"IF(TRIM(DA145)=\"\", \"\", IF(VLOOKUP(DA145,'Footnotes list'!$D$9:$E$58,2,FALSE)=0,\"\",VLOOKUP(DA145,'Footnotes list'!$D$9:$E$58,2,FALSE) ) )","v":""},null,null,null,null,{"$f":"IF(TRIM(DF145)=\"\", \"\", IF(VLOOKUP(DF145,'Footnotes list'!$D$9:$E$58,2,FALSE)=0,\"\",VLOOKUP(DF145,'Footnotes list'!$D$9:$E$58,2,FALSE) ) )","v":""},null,null,null,null,{"$f":"IF(TRIM(DK145)=\"\", \"\", IF(VLOOKUP(DK145,'Footnotes list'!$D$9:$E$58,2,FALSE)=0,\"\",VLOOKUP(DK145,'Footnotes list'!$D$9:$E$58,2,FALSE) ) )","v":""},null,null,null,null,{"$f":"IF(TRIM(DP145)=\"\", \"\", IF(VLOOKUP(DP145,'Footnotes list'!$D$9:$E$58,2,FALSE)=0,\"\",VLOOKUP(DP145,'Footnotes list'!$D$9:$E$58,2,FALSE) ) )","v":""},null,null,null,null,{"$f":"IF(TRIM(DU145)=\"\", \"\", IF(VLOOKUP(DU145,'Footnotes list'!$D$9:$E$58,2,FALSE)=0,\"\",VLOOKUP(DU145,'Footnotes list'!$D$9:$E$58,2,FALSE) ) )","v":""},null,null,null,null,{"$f":"IF(TRIM(DZ145)=\"\", \"\", IF(VLOOKUP(DZ145,'Footnotes list'!$D$9:$E$58,2,FALSE)=0,\"\",VLOOKUP(DZ145,'Footnotes list'!$D$9:$E$58,2,FALSE) ) )","v":""},null,null,null,null,{"$f":"IF(TRIM(EE145)=\"\", \"\", IF(VLOOKUP(EE145,'Footnotes list'!$D$9:$E$58,2,FALSE)=0,\"\",VLOOKUP(EE145,'Footnotes list'!$D$9:$E$58,2,FALSE) ) )","v":""},null,null,null,null,{"$f":"IF(TRIM(EJ145)=\"\", \"\", IF(VLOOKUP(EJ145,'Footnotes list'!$D$9:$E$58,2,FALSE)=0,\"\",VLOOKUP(EJ145,'Footnotes list'!$D$9:$E$58,2,FALSE) ) )","v":""},null,null,null,null,{"$f":"IF(TRIM(EO145)=\"\", \"\", IF(VLOOKUP(EO145,'Footnotes list'!$D$9:$E$58,2,FALSE)=0,\"\",VLOOKUP(EO145,'Footnotes list'!$D$9:$E$58,2,FALSE) ) )","v":""},null,null,null,null,{"$f":"IF(TRIM(ET145)=\"\", \"\", IF(VLOOKUP(ET145,'Footnotes list'!$D$9:$E$58,2,FALSE)=0,\"\",VLOOKUP(ET145,'Footnotes list'!$D$9:$E$58,2,FALSE) ) )","v":""},null,null,null,null,{"$f":"IF(TRIM(EY145)=\"\", \"\", IF(VLOOKUP(EY145,'Footnotes list'!$D$9:$E$58,2,FALSE)=0,\"\",VLOOKUP(EY145,'Footnotes list'!$D$9:$E$58,2,FALSE) ) )","v":""}]
[null,null,"E36","ES_CS","environmental specific services",null,null,null,null,null,{"$f":"IF(TRIM(J146)=\"\", \"\", IF(VLOOKUP(J146,'Footnotes list'!$D$9:$E$58,2,FALSE)=0,\"\",VLOOKUP(J146,'Footnotes list'!$D$9:$E$58,2,FALSE) ) )","v":""},null,null,null,null,{"$f":"IF(TRIM(O146)=\"\", \"\", IF(VLOOKUP(O146,'Footnotes list'!$D$9:$E$58,2,FALSE)=0,\"\",VLOOKUP(O146,'Footnotes list'!$D$9:$E$58,2,FALSE) ) )","v":""},null,null,null,null,{"$f":"IF(TRIM(T146)=\"\", \"\", IF(VLOOKUP(T146,'Footnotes list'!$D$9:$E$58,2,FALSE)=0,\"\",VLOOKUP(T146,'Footnotes list'!$D$9:$E$58,2,FALSE) ) )","v":""},null,null,null,null,{"$f":"IF(TRIM(Y146)=\"\", \"\", IF(VLOOKUP(Y146,'Footnotes list'!$D$9:$E$58,2,FALSE)=0,\"\",VLOOKUP(Y146,'Footnotes list'!$D$9:$E$58,2,FALSE) ) )","v":""},null,null,null,null,{"$f":"IF(TRIM(AD146)=\"\", \"\", IF(VLOOKUP(AD146,'Footnotes list'!$D$9:$E$58,2,FALSE)=0,\"\",VLOOKUP(AD146,'Footnotes list'!$D$9:$E$58,2,FALSE) ) )","v":""},null,null,null,null,{"$f":"IF(TRIM(AI146)=\"\", \"\", IF(VLOOKUP(AI146,'Footnotes list'!$D$9:$E$58,2,FALSE)=0,\"\",VLOOKUP(AI146,'Footnotes list'!$D$9:$E$58,2,FALSE) ) )","v":""},null,null,null,null,{"$f":"IF(TRIM(AN146)=\"\", \"\", IF(VLOOKUP(AN146,'Footnotes list'!$D$9:$E$58,2,FALSE)=0,\"\",VLOOKUP(AN146,'Footnotes list'!$D$9:$E$58,2,FALSE) ) )","v":""},null,null,null,null,{"$f":"IF(TRIM(AS146)=\"\", \"\", IF(VLOOKUP(AS146,'Footnotes list'!$D$9:$E$58,2,FALSE)=0,\"\",VLOOKUP(AS146,'Footnotes list'!$D$9:$E$58,2,FALSE) ) )","v":""},null,null,null,null,{"$f":"IF(TRIM(AX146)=\"\", \"\", IF(VLOOKUP(AX146,'Footnotes list'!$D$9:$E$58,2,FALSE)=0,\"\",VLOOKUP(AX146,'Footnotes list'!$D$9:$E$58,2,FALSE) ) )","v":""},null,null,null,null,{"$f":"IF(TRIM(BC146)=\"\", \"\", IF(VLOOKUP(BC146,'Footnotes list'!$D$9:$E$58,2,FALSE)=0,\"\",VLOOKUP(BC146,'Footnotes list'!$D$9:$E$58,2,FALSE) ) )","v":""},null,null,null,null,{"$f":"IF(TRIM(BH146)=\"\", \"\", IF(VLOOKUP(BH146,'Footnotes list'!$D$9:$E$58,2,FALSE)=0,\"\",VLOOKUP(BH146,'Footnotes list'!$D$9:$E$58,2,FALSE) ) )","v":""},null,null,null,null,{"$f":"IF(TRIM(BM146)=\"\", \"\", IF(VLOOKUP(BM146,'Footnotes list'!$D$9:$E$58,2,FALSE)=0,\"\",VLOOKUP(BM146,'Footnotes list'!$D$9:$E$58,2,FALSE) ) )","v":""},null,null,null,null,{"$f":"IF(TRIM(BR146)=\"\", \"\", IF(VLOOKUP(BR146,'Footnotes list'!$D$9:$E$58,2,FALSE)=0,\"\",VLOOKUP(BR146,'Footnotes list'!$D$9:$E$58,2,FALSE) ) )","v":""},null,null,null,null,{"$f":"IF(TRIM(BW146)=\"\", \"\", IF(VLOOKUP(BW146,'Footnotes list'!$D$9:$E$58,2,FALSE)=0,\"\",VLOOKUP(BW146,'Footnotes list'!$D$9:$E$58,2,FALSE) ) )","v":""},null,null,null,null,{"$f":"IF(TRIM(CB146)=\"\", \"\", IF(VLOOKUP(CB146,'Footnotes list'!$D$9:$E$58,2,FALSE)=0,\"\",VLOOKUP(CB146,'Footnotes list'!$D$9:$E$58,2,FALSE) ) )","v":""},null,null,null,null,{"$f":"IF(TRIM(CG146)=\"\", \"\", IF(VLOOKUP(CG146,'Footnotes list'!$D$9:$E$58,2,FALSE)=0,\"\",VLOOKUP(CG146,'Footnotes list'!$D$9:$E$58,2,FALSE) ) )","v":""},null,null,null,null,{"$f":"IF(TRIM(CL146)=\"\", \"\", IF(VLOOKUP(CL146,'Footnotes list'!$D$9:$E$58,2,FALSE)=0,\"\",VLOOKUP(CL146,'Footnotes list'!$D$9:$E$58,2,FALSE) ) )","v":""},null,null,null,null,{"$f":"IF(TRIM(CQ146)=\"\", \"\", IF(VLOOKUP(CQ146,'Footnotes list'!$D$9:$E$58,2,FALSE)=0,\"\",VLOOKUP(CQ146,'Footnotes list'!$D$9:$E$58,2,FALSE) ) )","v":""},null,null,null,null,{"$f":"IF(TRIM(CV146)=\"\", \"\", IF(VLOOKUP(CV146,'Footnotes list'!$D$9:$E$58,2,FALSE)=0,\"\",VLOOKUP(CV146,'Footnotes list'!$D$9:$E$58,2,FALSE) ) )","v":""},null,null,null,null,{"$f":"IF(TRIM(DA146)=\"\", \"\", IF(VLOOKUP(DA146,'Footnotes list'!$D$9:$E$58,2,FALSE)=0,\"\",VLOOKUP(DA146,'Footnotes list'!$D$9:$E$58,2,FALSE) ) )","v":""},null,null,null,null,{"$f":"IF(TRIM(DF146)=\"\", \"\", IF(VLOOKUP(DF146,'Footnotes list'!$D$9:$E$58,2,FALSE)=0,\"\",VLOOKUP(DF146,'Footnotes list'!$D$9:$E$58,2,FALSE) ) )","v":""},null,null,null,null,{"$f":"IF(TRIM(DK146)=\"\", \"\", IF(VLOOKUP(DK146,'Footnotes list'!$D$9:$E$58,2,FALSE)=0,\"\",VLOOKUP(DK146,'Footnotes list'!$D$9:$E$58,2,FALSE) ) )","v":""},null,null,null,null,{"$f":"IF(TRIM(DP146)=\"\", \"\", IF(VLOOKUP(DP146,'Footnotes list'!$D$9:$E$58,2,FALSE)=0,\"\",VLOOKUP(DP146,'Footnotes list'!$D$9:$E$58,2,FALSE) ) )","v":""},null,null,null,null,{"$f":"IF(TRIM(DU146)=\"\", \"\", IF(VLOOKUP(DU146,'Footnotes list'!$D$9:$E$58,2,FALSE)=0,\"\",VLOOKUP(DU146,'Footnotes list'!$D$9:$E$58,2,FALSE) ) )","v":""},null,null,null,null,{"$f":"IF(TRIM(DZ146)=\"\", \"\", IF(VLOOKUP(DZ146,'Footnotes list'!$D$9:$E$58,2,FALSE)=0,\"\",VLOOKUP(DZ146,'Footnotes list'!$D$9:$E$58,2,FALSE) ) )","v":""},null,null,null,null,{"$f":"IF(TRIM(EE146)=\"\", \"\", IF(VLOOKUP(EE146,'Footnotes list'!$D$9:$E$58,2,FALSE)=0,\"\",VLOOKUP(EE146,'Footnotes list'!$D$9:$E$58,2,FALSE) ) )","v":""},null,null,null,null,{"$f":"IF(TRIM(EJ146)=\"\", \"\", IF(VLOOKUP(EJ146,'Footnotes list'!$D$9:$E$58,2,FALSE)=0,\"\",VLOOKUP(EJ146,'Footnotes list'!$D$9:$E$58,2,FALSE) ) )","v":""},null,null,null,null,{"$f":"IF(TRIM(EO146)=\"\", \"\", IF(VLOOKUP(EO146,'Footnotes list'!$D$9:$E$58,2,FALSE)=0,\"\",VLOOKUP(EO146,'Footnotes list'!$D$9:$E$58,2,FALSE) ) )","v":""},null,null,null,null,{"$f":"IF(TRIM(ET146)=\"\", \"\", IF(VLOOKUP(ET146,'Footnotes list'!$D$9:$E$58,2,FALSE)=0,\"\",VLOOKUP(ET146,'Footnotes list'!$D$9:$E$58,2,FALSE) ) )","v":""},null,null,null,null,{"$f":"IF(TRIM(EY146)=\"\", \"\", IF(VLOOKUP(EY146,'Footnotes list'!$D$9:$E$58,2,FALSE)=0,\"\",VLOOKUP(EY146,'Footnotes list'!$D$9:$E$58,2,FALSE) ) )","v":""}]
[null,null,"E36","C_REP","cleaner and resource efficient products",null,null,null,null,null,{"$f":"IF(TRIM(J147)=\"\", \"\", IF(VLOOKUP(J147,'Footnotes list'!$D$9:$E$58,2,FALSE)=0,\"\",VLOOKUP(J147,'Footnotes list'!$D$9:$E$58,2,FALSE) ) )","v":""},null,null,null,null,{"$f":"IF(TRIM(O147)=\"\", \"\", IF(VLOOKUP(O147,'Footnotes list'!$D$9:$E$58,2,FALSE)=0,\"\",VLOOKUP(O147,'Footnotes list'!$D$9:$E$58,2,FALSE) ) )","v":""},null,null,null,null,{"$f":"IF(TRIM(T147)=\"\", \"\", IF(VLOOKUP(T147,'Footnotes list'!$D$9:$E$58,2,FALSE)=0,\"\",VLOOKUP(T147,'Footnotes list'!$D$9:$E$58,2,FALSE) ) )","v":""},null,null,null,null,{"$f":"IF(TRIM(Y147)=\"\", \"\", IF(VLOOKUP(Y147,'Footnotes list'!$D$9:$E$58,2,FALSE)=0,\"\",VLOOKUP(Y147,'Footnotes list'!$D$9:$E$58,2,FALSE) ) )","v":""},null,null,null,null,{"$f":"IF(TRIM(AD147)=\"\", \"\", IF(VLOOKUP(AD147,'Footnotes list'!$D$9:$E$58,2,FALSE)=0,\"\",VLOOKUP(AD147,'Footnotes list'!$D$9:$E$58,2,FALSE) ) )","v":""},null,null,null,null,{"$f":"IF(TRIM(AI147)=\"\", \"\", IF(VLOOKUP(AI147,'Footnotes list'!$D$9:$E$58,2,FALSE)=0,\"\",VLOOKUP(AI147,'Footnotes list'!$D$9:$E$58,2,FALSE) ) )","v":""},null,null,null,null,{"$f":"IF(TRIM(AN147)=\"\", \"\", IF(VLOOKUP(AN147,'Footnotes list'!$D$9:$E$58,2,FALSE)=0,\"\",VLOOKUP(AN147,'Footnotes list'!$D$9:$E$58,2,FALSE) ) )","v":""},null,null,null,null,{"$f":"IF(TRIM(AS147)=\"\", \"\", IF(VLOOKUP(AS147,'Footnotes list'!$D$9:$E$58,2,FALSE)=0,\"\",VLOOKUP(AS147,'Footnotes list'!$D$9:$E$58,2,FALSE) ) )","v":""},null,null,null,null,{"$f":"IF(TRIM(AX147)=\"\", \"\", IF(VLOOKUP(AX147,'Footnotes list'!$D$9:$E$58,2,FALSE)=0,\"\",VLOOKUP(AX147,'Footnotes list'!$D$9:$E$58,2,FALSE) ) )","v":""},null,null,null,null,{"$f":"IF(TRIM(BC147)=\"\", \"\", IF(VLOOKUP(BC147,'Footnotes list'!$D$9:$E$58,2,FALSE)=0,\"\",VLOOKUP(BC147,'Footnotes list'!$D$9:$E$58,2,FALSE) ) )","v":""},null,null,null,null,{"$f":"IF(TRIM(BH147)=\"\", \"\", IF(VLOOKUP(BH147,'Footnotes list'!$D$9:$E$58,2,FALSE)=0,\"\",VLOOKUP(BH147,'Footnotes list'!$D$9:$E$58,2,FALSE) ) )","v":""},null,null,null,null,{"$f":"IF(TRIM(BM147)=\"\", \"\", IF(VLOOKUP(BM147,'Footnotes list'!$D$9:$E$58,2,FALSE)=0,\"\",VLOOKUP(BM147,'Footnotes list'!$D$9:$E$58,2,FALSE) ) )","v":""},null,null,null,null,{"$f":"IF(TRIM(BR147)=\"\", \"\", IF(VLOOKUP(BR147,'Footnotes list'!$D$9:$E$58,2,FALSE)=0,\"\",VLOOKUP(BR147,'Footnotes list'!$D$9:$E$58,2,FALSE) ) )","v":""},null,null,null,null,{"$f":"IF(TRIM(BW147)=\"\", \"\", IF(VLOOKUP(BW147,'Footnotes list'!$D$9:$E$58,2,FALSE)=0,\"\",VLOOKUP(BW147,'Footnotes list'!$D$9:$E$58,2,FALSE) ) )","v":""},null,null,null,null,{"$f":"IF(TRIM(CB147)=\"\", \"\", IF(VLOOKUP(CB147,'Footnotes list'!$D$9:$E$58,2,FALSE)=0,\"\",VLOOKUP(CB147,'Footnotes list'!$D$9:$E$58,2,FALSE) ) )","v":""},null,null,null,null,{"$f":"IF(TRIM(CG147)=\"\", \"\", IF(VLOOKUP(CG147,'Footnotes list'!$D$9:$E$58,2,FALSE)=0,\"\",VLOOKUP(CG147,'Footnotes list'!$D$9:$E$58,2,FALSE) ) )","v":""},null,null,null,null,{"$f":"IF(TRIM(CL147)=\"\", \"\", IF(VLOOKUP(CL147,'Footnotes list'!$D$9:$E$58,2,FALSE)=0,\"\",VLOOKUP(CL147,'Footnotes list'!$D$9:$E$58,2,FALSE) ) )","v":""},null,null,null,null,{"$f":"IF(TRIM(CQ147)=\"\", \"\", IF(VLOOKUP(CQ147,'Footnotes list'!$D$9:$E$58,2,FALSE)=0,\"\",VLOOKUP(CQ147,'Footnotes list'!$D$9:$E$58,2,FALSE) ) )","v":""},null,null,null,null,{"$f":"IF(TRIM(CV147)=\"\", \"\", IF(VLOOKUP(CV147,'Footnotes list'!$D$9:$E$58,2,FALSE)=0,\"\",VLOOKUP(CV147,'Footnotes list'!$D$9:$E$58,2,FALSE) ) )","v":""},null,null,null,null,{"$f":"IF(TRIM(DA147)=\"\", \"\", IF(VLOOKUP(DA147,'Footnotes list'!$D$9:$E$58,2,FALSE)=0,\"\",VLOOKUP(DA147,'Footnotes list'!$D$9:$E$58,2,FALSE) ) )","v":""},null,null,null,null,{"$f":"IF(TRIM(DF147)=\"\", \"\", IF(VLOOKUP(DF147,'Footnotes list'!$D$9:$E$58,2,FALSE)=0,\"\",VLOOKUP(DF147,'Footnotes list'!$D$9:$E$58,2,FALSE) ) )","v":""},null,null,null,null,{"$f":"IF(TRIM(DK147)=\"\", \"\", IF(VLOOKUP(DK147,'Footnotes list'!$D$9:$E$58,2,FALSE)=0,\"\",VLOOKUP(DK147,'Footnotes list'!$D$9:$E$58,2,FALSE) ) )","v":""},null,null,null,null,{"$f":"IF(TRIM(DP147)=\"\", \"\", IF(VLOOKUP(DP147,'Footnotes list'!$D$9:$E$58,2,FALSE)=0,\"\",VLOOKUP(DP147,'Footnotes list'!$D$9:$E$58,2,FALSE) ) )","v":""},null,null,null,null,{"$f":"IF(TRIM(DU147)=\"\", \"\", IF(VLOOKUP(DU147,'Footnotes list'!$D$9:$E$58,2,FALSE)=0,\"\",VLOOKUP(DU147,'Footnotes list'!$D$9:$E$58,2,FALSE) ) )","v":""},null,null,null,null,{"$f":"IF(TRIM(DZ147)=\"\", \"\", IF(VLOOKUP(DZ147,'Footnotes list'!$D$9:$E$58,2,FALSE)=0,\"\",VLOOKUP(DZ147,'Footnotes list'!$D$9:$E$58,2,FALSE) ) )","v":""},null,null,null,null,{"$f":"IF(TRIM(EE147)=\"\", \"\", IF(VLOOKUP(EE147,'Footnotes list'!$D$9:$E$58,2,FALSE)=0,\"\",VLOOKUP(EE147,'Footnotes list'!$D$9:$E$58,2,FALSE) ) )","v":""},null,null,null,null,{"$f":"IF(TRIM(EJ147)=\"\", \"\", IF(VLOOKUP(EJ147,'Footnotes list'!$D$9:$E$58,2,FALSE)=0,\"\",VLOOKUP(EJ147,'Footnotes list'!$D$9:$E$58,2,FALSE) ) )","v":""},null,null,null,null,{"$f":"IF(TRIM(EO147)=\"\", \"\", IF(VLOOKUP(EO147,'Footnotes list'!$D$9:$E$58,2,FALSE)=0,\"\",VLOOKUP(EO147,'Footnotes list'!$D$9:$E$58,2,FALSE) ) )","v":""},null,null,null,null,{"$f":"IF(TRIM(ET147)=\"\", \"\", IF(VLOOKUP(ET147,'Footnotes list'!$D$9:$E$58,2,FALSE)=0,\"\",VLOOKUP(ET147,'Footnotes list'!$D$9:$E$58,2,FALSE) ) )","v":""},null,null,null,null,{"$f":"IF(TRIM(EY147)=\"\", \"\", IF(VLOOKUP(EY147,'Footnotes list'!$D$9:$E$58,2,FALSE)=0,\"\",VLOOKUP(EY147,'Footnotes list'!$D$9:$E$58,2,FALSE) ) )","v":""}]
[null,null,"E37","TOT_EGSS","Total E37 - Sewerage, of which:",null,null,null,null,null,{"$f":"IF(TRIM(J148)=\"\", \"\", IF(VLOOKUP(J148,'Footnotes list'!$D$9:$E$58,2,FALSE)=0,\"\",VLOOKUP(J148,'Footnotes list'!$D$9:$E$58,2,FALSE) ) )","v":""},null,null,null,null,{"$f":"IF(TRIM(O148)=\"\", \"\", IF(VLOOKUP(O148,'Footnotes list'!$D$9:$E$58,2,FALSE)=0,\"\",VLOOKUP(O148,'Footnotes list'!$D$9:$E$58,2,FALSE) ) )","v":""},null,null,null,null,{"$f":"IF(TRIM(T148)=\"\", \"\", IF(VLOOKUP(T148,'Footnotes list'!$D$9:$E$58,2,FALSE)=0,\"\",VLOOKUP(T148,'Footnotes list'!$D$9:$E$58,2,FALSE) ) )","v":""},null,null,null,null,{"$f":"IF(TRIM(Y148)=\"\", \"\", IF(VLOOKUP(Y148,'Footnotes list'!$D$9:$E$58,2,FALSE)=0,\"\",VLOOKUP(Y148,'Footnotes list'!$D$9:$E$58,2,FALSE) ) )","v":""},null,null,null,null,{"$f":"IF(TRIM(AD148)=\"\", \"\", IF(VLOOKUP(AD148,'Footnotes list'!$D$9:$E$58,2,FALSE)=0,\"\",VLOOKUP(AD148,'Footnotes list'!$D$9:$E$58,2,FALSE) ) )","v":""},null,null,null,null,{"$f":"IF(TRIM(AI148)=\"\", \"\", IF(VLOOKUP(AI148,'Footnotes list'!$D$9:$E$58,2,FALSE)=0,\"\",VLOOKUP(AI148,'Footnotes list'!$D$9:$E$58,2,FALSE) ) )","v":""},null,null,null,null,{"$f":"IF(TRIM(AN148)=\"\", \"\", IF(VLOOKUP(AN148,'Footnotes list'!$D$9:$E$58,2,FALSE)=0,\"\",VLOOKUP(AN148,'Footnotes list'!$D$9:$E$58,2,FALSE) ) )","v":""},null,null,null,null,{"$f":"IF(TRIM(AS148)=\"\", \"\", IF(VLOOKUP(AS148,'Footnotes list'!$D$9:$E$58,2,FALSE)=0,\"\",VLOOKUP(AS148,'Footnotes list'!$D$9:$E$58,2,FALSE) ) )","v":""},null,null,null,null,{"$f":"IF(TRIM(AX148)=\"\", \"\", IF(VLOOKUP(AX148,'Footnotes list'!$D$9:$E$58,2,FALSE)=0,\"\",VLOOKUP(AX148,'Footnotes list'!$D$9:$E$58,2,FALSE) ) )","v":""},null,null,null,null,{"$f":"IF(TRIM(BC148)=\"\", \"\", IF(VLOOKUP(BC148,'Footnotes list'!$D$9:$E$58,2,FALSE)=0,\"\",VLOOKUP(BC148,'Footnotes list'!$D$9:$E$58,2,FALSE) ) )","v":""},null,null,null,null,{"$f":"IF(TRIM(BH148)=\"\", \"\", IF(VLOOKUP(BH148,'Footnotes list'!$D$9:$E$58,2,FALSE)=0,\"\",VLOOKUP(BH148,'Footnotes list'!$D$9:$E$58,2,FALSE) ) )","v":""},null,null,null,null,{"$f":"IF(TRIM(BM148)=\"\", \"\", IF(VLOOKUP(BM148,'Footnotes list'!$D$9:$E$58,2,FALSE)=0,\"\",VLOOKUP(BM148,'Footnotes list'!$D$9:$E$58,2,FALSE) ) )","v":""},null,null,null,null,{"$f":"IF(TRIM(BR148)=\"\", \"\", IF(VLOOKUP(BR148,'Footnotes list'!$D$9:$E$58,2,FALSE)=0,\"\",VLOOKUP(BR148,'Footnotes list'!$D$9:$E$58,2,FALSE) ) )","v":""},null,null,null,null,{"$f":"IF(TRIM(BW148)=\"\", \"\", IF(VLOOKUP(BW148,'Footnotes list'!$D$9:$E$58,2,FALSE)=0,\"\",VLOOKUP(BW148,'Footnotes list'!$D$9:$E$58,2,FALSE) ) )","v":""},null,null,null,null,{"$f":"IF(TRIM(CB148)=\"\", \"\", IF(VLOOKUP(CB148,'Footnotes list'!$D$9:$E$58,2,FALSE)=0,\"\",VLOOKUP(CB148,'Footnotes list'!$D$9:$E$58,2,FALSE) ) )","v":""},null,null,null,null,{"$f":"IF(TRIM(CG148)=\"\", \"\", IF(VLOOKUP(CG148,'Footnotes list'!$D$9:$E$58,2,FALSE)=0,\"\",VLOOKUP(CG148,'Footnotes list'!$D$9:$E$58,2,FALSE) ) )","v":""},null,null,null,null,{"$f":"IF(TRIM(CL148)=\"\", \"\", IF(VLOOKUP(CL148,'Footnotes list'!$D$9:$E$58,2,FALSE)=0,\"\",VLOOKUP(CL148,'Footnotes list'!$D$9:$E$58,2,FALSE) ) )","v":""},null,null,null,null,{"$f":"IF(TRIM(CQ148)=\"\", \"\", IF(VLOOKUP(CQ148,'Footnotes list'!$D$9:$E$58,2,FALSE)=0,\"\",VLOOKUP(CQ148,'Footnotes list'!$D$9:$E$58,2,FALSE) ) )","v":""},null,null,null,null,{"$f":"IF(TRIM(CV148)=\"\", \"\", IF(VLOOKUP(CV148,'Footnotes list'!$D$9:$E$58,2,FALSE)=0,\"\",VLOOKUP(CV148,'Footnotes list'!$D$9:$E$58,2,FALSE) ) )","v":""},null,null,null,null,{"$f":"IF(TRIM(DA148)=\"\", \"\", IF(VLOOKUP(DA148,'Footnotes list'!$D$9:$E$58,2,FALSE)=0,\"\",VLOOKUP(DA148,'Footnotes list'!$D$9:$E$58,2,FALSE) ) )","v":""},null,null,null,null,{"$f":"IF(TRIM(DF148)=\"\", \"\", IF(VLOOKUP(DF148,'Footnotes list'!$D$9:$E$58,2,FALSE)=0,\"\",VLOOKUP(DF148,'Footnotes list'!$D$9:$E$58,2,FALSE) ) )","v":""},null,null,null,null,{"$f":"IF(TRIM(DK148)=\"\", \"\", IF(VLOOKUP(DK148,'Footnotes list'!$D$9:$E$58,2,FALSE)=0,\"\",VLOOKUP(DK148,'Footnotes list'!$D$9:$E$58,2,FALSE) ) )","v":""},null,null,null,null,{"$f":"IF(TRIM(DP148)=\"\", \"\", IF(VLOOKUP(DP148,'Footnotes list'!$D$9:$E$58,2,FALSE)=0,\"\",VLOOKUP(DP148,'Footnotes list'!$D$9:$E$58,2,FALSE) ) )","v":""},null,null,null,null,{"$f":"IF(TRIM(DU148)=\"\", \"\", IF(VLOOKUP(DU148,'Footnotes list'!$D$9:$E$58,2,FALSE)=0,\"\",VLOOKUP(DU148,'Footnotes list'!$D$9:$E$58,2,FALSE) ) )","v":""},null,null,null,null,{"$f":"IF(TRIM(DZ148)=\"\", \"\", IF(VLOOKUP(DZ148,'Footnotes list'!$D$9:$E$58,2,FALSE)=0,\"\",VLOOKUP(DZ148,'Footnotes list'!$D$9:$E$58,2,FALSE) ) )","v":""},null,null,null,null,{"$f":"IF(TRIM(EE148)=\"\", \"\", IF(VLOOKUP(EE148,'Footnotes list'!$D$9:$E$58,2,FALSE)=0,\"\",VLOOKUP(EE148,'Footnotes list'!$D$9:$E$58,2,FALSE) ) )","v":""},null,null,null,null,{"$f":"IF(TRIM(EJ148)=\"\", \"\", IF(VLOOKUP(EJ148,'Footnotes list'!$D$9:$E$58,2,FALSE)=0,\"\",VLOOKUP(EJ148,'Footnotes list'!$D$9:$E$58,2,FALSE) ) )","v":""},null,null,null,null,{"$f":"IF(TRIM(EO148)=\"\", \"\", IF(VLOOKUP(EO148,'Footnotes list'!$D$9:$E$58,2,FALSE)=0,\"\",VLOOKUP(EO148,'Footnotes list'!$D$9:$E$58,2,FALSE) ) )","v":""},null,null,null,null,{"$f":"IF(TRIM(ET148)=\"\", \"\", IF(VLOOKUP(ET148,'Footnotes list'!$D$9:$E$58,2,FALSE)=0,\"\",VLOOKUP(ET148,'Footnotes list'!$D$9:$E$58,2,FALSE) ) )","v":""},null,null,null,null,{"$f":"IF(TRIM(EY148)=\"\", \"\", IF(VLOOKUP(EY148,'Footnotes list'!$D$9:$E$58,2,FALSE)=0,\"\",VLOOKUP(EY148,'Footnotes list'!$D$9:$E$58,2,FALSE) ) )","v":""}]
[null,null,"E37","ANC","ancillary activities",null,null,null,null,null,{"$f":"IF(TRIM(J149)=\"\", \"\", IF(VLOOKUP(J149,'Footnotes list'!$D$9:$E$58,2,FALSE)=0,\"\",VLOOKUP(J149,'Footnotes list'!$D$9:$E$58,2,FALSE) ) )","v":""},null,null,null,null,{"$f":"IF(TRIM(O149)=\"\", \"\", IF(VLOOKUP(O149,'Footnotes list'!$D$9:$E$58,2,FALSE)=0,\"\",VLOOKUP(O149,'Footnotes list'!$D$9:$E$58,2,FALSE) ) )","v":""},null,null,null,null,{"$f":"IF(TRIM(T149)=\"\", \"\", IF(VLOOKUP(T149,'Footnotes list'!$D$9:$E$58,2,FALSE)=0,\"\",VLOOKUP(T149,'Footnotes list'!$D$9:$E$58,2,FALSE) ) )","v":""},null,null,null,null,{"$f":"IF(TRIM(Y149)=\"\", \"\", IF(VLOOKUP(Y149,'Footnotes list'!$D$9:$E$58,2,FALSE)=0,\"\",VLOOKUP(Y149,'Footnotes list'!$D$9:$E$58,2,FALSE) ) )","v":""},null,null,null,null,{"$f":"IF(TRIM(AD149)=\"\", \"\", IF(VLOOKUP(AD149,'Footnotes list'!$D$9:$E$58,2,FALSE)=0,\"\",VLOOKUP(AD149,'Footnotes list'!$D$9:$E$58,2,FALSE) ) )","v":""},null,null,null,null,{"$f":"IF(TRIM(AI149)=\"\", \"\", IF(VLOOKUP(AI149,'Footnotes list'!$D$9:$E$58,2,FALSE)=0,\"\",VLOOKUP(AI149,'Footnotes list'!$D$9:$E$58,2,FALSE) ) )","v":""},null,null,null,null,{"$f":"IF(TRIM(AN149)=\"\", \"\", IF(VLOOKUP(AN149,'Footnotes list'!$D$9:$E$58,2,FALSE)=0,\"\",VLOOKUP(AN149,'Footnotes list'!$D$9:$E$58,2,FALSE) ) )","v":""},null,null,null,null,{"$f":"IF(TRIM(AS149)=\"\", \"\", IF(VLOOKUP(AS149,'Footnotes list'!$D$9:$E$58,2,FALSE)=0,\"\",VLOOKUP(AS149,'Footnotes list'!$D$9:$E$58,2,FALSE) ) )","v":""},null,null,null,null,{"$f":"IF(TRIM(AX149)=\"\", \"\", IF(VLOOKUP(AX149,'Footnotes list'!$D$9:$E$58,2,FALSE)=0,\"\",VLOOKUP(AX149,'Footnotes list'!$D$9:$E$58,2,FALSE) ) )","v":""},null,null,null,null,{"$f":"IF(TRIM(BC149)=\"\", \"\", IF(VLOOKUP(BC149,'Footnotes list'!$D$9:$E$58,2,FALSE)=0,\"\",VLOOKUP(BC149,'Footnotes list'!$D$9:$E$58,2,FALSE) ) )","v":""},null,null,null,null,{"$f":"IF(TRIM(BH149)=\"\", \"\", IF(VLOOKUP(BH149,'Footnotes list'!$D$9:$E$58,2,FALSE)=0,\"\",VLOOKUP(BH149,'Footnotes list'!$D$9:$E$58,2,FALSE) ) )","v":""},null,null,null,null,{"$f":"IF(TRIM(BM149)=\"\", \"\", IF(VLOOKUP(BM149,'Footnotes list'!$D$9:$E$58,2,FALSE)=0,\"\",VLOOKUP(BM149,'Footnotes list'!$D$9:$E$58,2,FALSE) ) )","v":""},null,null,null,null,{"$f":"IF(TRIM(BR149)=\"\", \"\", IF(VLOOKUP(BR149,'Footnotes list'!$D$9:$E$58,2,FALSE)=0,\"\",VLOOKUP(BR149,'Footnotes list'!$D$9:$E$58,2,FALSE) ) )","v":""},null,null,null,null,{"$f":"IF(TRIM(BW149)=\"\", \"\", IF(VLOOKUP(BW149,'Footnotes list'!$D$9:$E$58,2,FALSE)=0,\"\",VLOOKUP(BW149,'Footnotes list'!$D$9:$E$58,2,FALSE) ) )","v":""},null,null,null,null,{"$f":"IF(TRIM(CB149)=\"\", \"\", IF(VLOOKUP(CB149,'Footnotes list'!$D$9:$E$58,2,FALSE)=0,\"\",VLOOKUP(CB149,'Footnotes list'!$D$9:$E$58,2,FALSE) ) )","v":""},null,null,null,null,{"$f":"IF(TRIM(CG149)=\"\", \"\", IF(VLOOKUP(CG149,'Footnotes list'!$D$9:$E$58,2,FALSE)=0,\"\",VLOOKUP(CG149,'Footnotes list'!$D$9:$E$58,2,FALSE) ) )","v":""},null,null,null,null,{"$f":"IF(TRIM(CL149)=\"\", \"\", IF(VLOOKUP(CL149,'Footnotes list'!$D$9:$E$58,2,FALSE)=0,\"\",VLOOKUP(CL149,'Footnotes list'!$D$9:$E$58,2,FALSE) ) )","v":""},null,null,null,null,{"$f":"IF(TRIM(CQ149)=\"\", \"\", IF(VLOOKUP(CQ149,'Footnotes list'!$D$9:$E$58,2,FALSE)=0,\"\",VLOOKUP(CQ149,'Footnotes list'!$D$9:$E$58,2,FALSE) ) )","v":""},null,null,null,null,{"$f":"IF(TRIM(CV149)=\"\", \"\", IF(VLOOKUP(CV149,'Footnotes list'!$D$9:$E$58,2,FALSE)=0,\"\",VLOOKUP(CV149,'Footnotes list'!$D$9:$E$58,2,FALSE) ) )","v":""},null,null,null,null,{"$f":"IF(TRIM(DA149)=\"\", \"\", IF(VLOOKUP(DA149,'Footnotes list'!$D$9:$E$58,2,FALSE)=0,\"\",VLOOKUP(DA149,'Footnotes list'!$D$9:$E$58,2,FALSE) ) )","v":""},null,null,null,null,{"$f":"IF(TRIM(DF149)=\"\", \"\", IF(VLOOKUP(DF149,'Footnotes list'!$D$9:$E$58,2,FALSE)=0,\"\",VLOOKUP(DF149,'Footnotes list'!$D$9:$E$58,2,FALSE) ) )","v":""},null,null,null,null,{"$f":"IF(TRIM(DK149)=\"\", \"\", IF(VLOOKUP(DK149,'Footnotes list'!$D$9:$E$58,2,FALSE)=0,\"\",VLOOKUP(DK149,'Footnotes list'!$D$9:$E$58,2,FALSE) ) )","v":""},null,null,null,null,{"$f":"IF(TRIM(DP149)=\"\", \"\", IF(VLOOKUP(DP149,'Footnotes list'!$D$9:$E$58,2,FALSE)=0,\"\",VLOOKUP(DP149,'Footnotes list'!$D$9:$E$58,2,FALSE) ) )","v":""},null,null,null,null,{"$f":"IF(TRIM(DU149)=\"\", \"\", IF(VLOOKUP(DU149,'Footnotes list'!$D$9:$E$58,2,FALSE)=0,\"\",VLOOKUP(DU149,'Footnotes list'!$D$9:$E$58,2,FALSE) ) )","v":""},null,null,null,null,{"$f":"IF(TRIM(DZ149)=\"\", \"\", IF(VLOOKUP(DZ149,'Footnotes list'!$D$9:$E$58,2,FALSE)=0,\"\",VLOOKUP(DZ149,'Footnotes list'!$D$9:$E$58,2,FALSE) ) )","v":""},null,null,null,null,{"$f":"IF(TRIM(EE149)=\"\", \"\", IF(VLOOKUP(EE149,'Footnotes list'!$D$9:$E$58,2,FALSE)=0,\"\",VLOOKUP(EE149,'Footnotes list'!$D$9:$E$58,2,FALSE) ) )","v":""},null,null,null,null,{"$f":"IF(TRIM(EJ149)=\"\", \"\", IF(VLOOKUP(EJ149,'Footnotes list'!$D$9:$E$58,2,FALSE)=0,\"\",VLOOKUP(EJ149,'Footnotes list'!$D$9:$E$58,2,FALSE) ) )","v":""},null,null,null,null,{"$f":"IF(TRIM(EO149)=\"\", \"\", IF(VLOOKUP(EO149,'Footnotes list'!$D$9:$E$58,2,FALSE)=0,\"\",VLOOKUP(EO149,'Footnotes list'!$D$9:$E$58,2,FALSE) ) )","v":""},null,null,null,null,{"$f":"IF(TRIM(ET149)=\"\", \"\", IF(VLOOKUP(ET149,'Footnotes list'!$D$9:$E$58,2,FALSE)=0,\"\",VLOOKUP(ET149,'Footnotes list'!$D$9:$E$58,2,FALSE) ) )","v":""},null,null,null,null,{"$f":"IF(TRIM(EY149)=\"\", \"\", IF(VLOOKUP(EY149,'Footnotes list'!$D$9:$E$58,2,FALSE)=0,\"\",VLOOKUP(EY149,'Footnotes list'!$D$9:$E$58,2,FALSE) ) )","v":""}]
[null,null,"E37","NMKT","non-market activities",null,null,null,null,null,{"$f":"IF(TRIM(J150)=\"\", \"\", IF(VLOOKUP(J150,'Footnotes list'!$D$9:$E$58,2,FALSE)=0,\"\",VLOOKUP(J150,'Footnotes list'!$D$9:$E$58,2,FALSE) ) )","v":""},null,null,null,null,{"$f":"IF(TRIM(O150)=\"\", \"\", IF(VLOOKUP(O150,'Footnotes list'!$D$9:$E$58,2,FALSE)=0,\"\",VLOOKUP(O150,'Footnotes list'!$D$9:$E$58,2,FALSE) ) )","v":""},null,null,null,null,{"$f":"IF(TRIM(T150)=\"\", \"\", IF(VLOOKUP(T150,'Footnotes list'!$D$9:$E$58,2,FALSE)=0,\"\",VLOOKUP(T150,'Footnotes list'!$D$9:$E$58,2,FALSE) ) )","v":""},null,null,null,null,{"$f":"IF(TRIM(Y150)=\"\", \"\", IF(VLOOKUP(Y150,'Footnotes list'!$D$9:$E$58,2,FALSE)=0,\"\",VLOOKUP(Y150,'Footnotes list'!$D$9:$E$58,2,FALSE) ) )","v":""},null,null,null,null,{"$f":"IF(TRIM(AD150)=\"\", \"\", IF(VLOOKUP(AD150,'Footnotes list'!$D$9:$E$58,2,FALSE)=0,\"\",VLOOKUP(AD150,'Footnotes list'!$D$9:$E$58,2,FALSE) ) )","v":""},null,null,null,null,{"$f":"IF(TRIM(AI150)=\"\", \"\", IF(VLOOKUP(AI150,'Footnotes list'!$D$9:$E$58,2,FALSE)=0,\"\",VLOOKUP(AI150,'Footnotes list'!$D$9:$E$58,2,FALSE) ) )","v":""},null,null,null,null,{"$f":"IF(TRIM(AN150)=\"\", \"\", IF(VLOOKUP(AN150,'Footnotes list'!$D$9:$E$58,2,FALSE)=0,\"\",VLOOKUP(AN150,'Footnotes list'!$D$9:$E$58,2,FALSE) ) )","v":""},null,null,null,null,{"$f":"IF(TRIM(AS150)=\"\", \"\", IF(VLOOKUP(AS150,'Footnotes list'!$D$9:$E$58,2,FALSE)=0,\"\",VLOOKUP(AS150,'Footnotes list'!$D$9:$E$58,2,FALSE) ) )","v":""},null,null,null,null,{"$f":"IF(TRIM(AX150)=\"\", \"\", IF(VLOOKUP(AX150,'Footnotes list'!$D$9:$E$58,2,FALSE)=0,\"\",VLOOKUP(AX150,'Footnotes list'!$D$9:$E$58,2,FALSE) ) )","v":""},null,null,null,null,{"$f":"IF(TRIM(BC150)=\"\", \"\", IF(VLOOKUP(BC150,'Footnotes list'!$D$9:$E$58,2,FALSE)=0,\"\",VLOOKUP(BC150,'Footnotes list'!$D$9:$E$58,2,FALSE) ) )","v":""},null,null,null,null,{"$f":"IF(TRIM(BH150)=\"\", \"\", IF(VLOOKUP(BH150,'Footnotes list'!$D$9:$E$58,2,FALSE)=0,\"\",VLOOKUP(BH150,'Footnotes list'!$D$9:$E$58,2,FALSE) ) )","v":""},null,null,null,null,{"$f":"IF(TRIM(BM150)=\"\", \"\", IF(VLOOKUP(BM150,'Footnotes list'!$D$9:$E$58,2,FALSE)=0,\"\",VLOOKUP(BM150,'Footnotes list'!$D$9:$E$58,2,FALSE) ) )","v":""},null,null,null,null,{"$f":"IF(TRIM(BR150)=\"\", \"\", IF(VLOOKUP(BR150,'Footnotes list'!$D$9:$E$58,2,FALSE)=0,\"\",VLOOKUP(BR150,'Footnotes list'!$D$9:$E$58,2,FALSE) ) )","v":""},null,null,null,null,{"$f":"IF(TRIM(BW150)=\"\", \"\", IF(VLOOKUP(BW150,'Footnotes list'!$D$9:$E$58,2,FALSE)=0,\"\",VLOOKUP(BW150,'Footnotes list'!$D$9:$E$58,2,FALSE) ) )","v":""},null,null,null,null,{"$f":"IF(TRIM(CB150)=\"\", \"\", IF(VLOOKUP(CB150,'Footnotes list'!$D$9:$E$58,2,FALSE)=0,\"\",VLOOKUP(CB150,'Footnotes list'!$D$9:$E$58,2,FALSE) ) )","v":""},null,null,null,null,{"$f":"IF(TRIM(CG150)=\"\", \"\", IF(VLOOKUP(CG150,'Footnotes list'!$D$9:$E$58,2,FALSE)=0,\"\",VLOOKUP(CG150,'Footnotes list'!$D$9:$E$58,2,FALSE) ) )","v":""},null,null,null,null,{"$f":"IF(TRIM(CL150)=\"\", \"\", IF(VLOOKUP(CL150,'Footnotes list'!$D$9:$E$58,2,FALSE)=0,\"\",VLOOKUP(CL150,'Footnotes list'!$D$9:$E$58,2,FALSE) ) )","v":""},null,null,null,null,{"$f":"IF(TRIM(CQ150)=\"\", \"\", IF(VLOOKUP(CQ150,'Footnotes list'!$D$9:$E$58,2,FALSE)=0,\"\",VLOOKUP(CQ150,'Footnotes list'!$D$9:$E$58,2,FALSE) ) )","v":""},null,null,null,null,{"$f":"IF(TRIM(CV150)=\"\", \"\", IF(VLOOKUP(CV150,'Footnotes list'!$D$9:$E$58,2,FALSE)=0,\"\",VLOOKUP(CV150,'Footnotes list'!$D$9:$E$58,2,FALSE) ) )","v":""},null,null,null,null,{"$f":"IF(TRIM(DA150)=\"\", \"\", IF(VLOOKUP(DA150,'Footnotes list'!$D$9:$E$58,2,FALSE)=0,\"\",VLOOKUP(DA150,'Footnotes list'!$D$9:$E$58,2,FALSE) ) )","v":""},null,null,null,null,{"$f":"IF(TRIM(DF150)=\"\", \"\", IF(VLOOKUP(DF150,'Footnotes list'!$D$9:$E$58,2,FALSE)=0,\"\",VLOOKUP(DF150,'Footnotes list'!$D$9:$E$58,2,FALSE) ) )","v":""},null,null,null,null,{"$f":"IF(TRIM(DK150)=\"\", \"\", IF(VLOOKUP(DK150,'Footnotes list'!$D$9:$E$58,2,FALSE)=0,\"\",VLOOKUP(DK150,'Footnotes list'!$D$9:$E$58,2,FALSE) ) )","v":""},null,null,null,null,{"$f":"IF(TRIM(DP150)=\"\", \"\", IF(VLOOKUP(DP150,'Footnotes list'!$D$9:$E$58,2,FALSE)=0,\"\",VLOOKUP(DP150,'Footnotes list'!$D$9:$E$58,2,FALSE) ) )","v":""},null,null,null,null,{"$f":"IF(TRIM(DU150)=\"\", \"\", IF(VLOOKUP(DU150,'Footnotes list'!$D$9:$E$58,2,FALSE)=0,\"\",VLOOKUP(DU150,'Footnotes list'!$D$9:$E$58,2,FALSE) ) )","v":""},null,null,null,null,{"$f":"IF(TRIM(DZ150)=\"\", \"\", IF(VLOOKUP(DZ150,'Footnotes list'!$D$9:$E$58,2,FALSE)=0,\"\",VLOOKUP(DZ150,'Footnotes list'!$D$9:$E$58,2,FALSE) ) )","v":""},null,null,null,null,{"$f":"IF(TRIM(EE150)=\"\", \"\", IF(VLOOKUP(EE150,'Footnotes list'!$D$9:$E$58,2,FALSE)=0,\"\",VLOOKUP(EE150,'Footnotes list'!$D$9:$E$58,2,FALSE) ) )","v":""},null,null,null,null,{"$f":"IF(TRIM(EJ150)=\"\", \"\", IF(VLOOKUP(EJ150,'Footnotes list'!$D$9:$E$58,2,FALSE)=0,\"\",VLOOKUP(EJ150,'Footnotes list'!$D$9:$E$58,2,FALSE) ) )","v":""},null,null,null,null,{"$f":"IF(TRIM(EO150)=\"\", \"\", IF(VLOOKUP(EO150,'Footnotes list'!$D$9:$E$58,2,FALSE)=0,\"\",VLOOKUP(EO150,'Footnotes list'!$D$9:$E$58,2,FALSE) ) )","v":""},null,null,null,null,{"$f":"IF(TRIM(ET150)=\"\", \"\", IF(VLOOKUP(ET150,'Footnotes list'!$D$9:$E$58,2,FALSE)=0,\"\",VLOOKUP(ET150,'Footnotes list'!$D$9:$E$58,2,FALSE) ) )","v":""},null,null,null,null,{"$f":"IF(TRIM(EY150)=\"\", \"\", IF(VLOOKUP(EY150,'Footnotes list'!$D$9:$E$58,2,FALSE)=0,\"\",VLOOKUP(EY150,'Footnotes list'!$D$9:$E$58,2,FALSE) ) )","v":""}]
[null,null,"E37","OWN_USE","activities for own final use",null,null,null,null,null,{"$f":"IF(TRIM(J151)=\"\", \"\", IF(VLOOKUP(J151,'Footnotes list'!$D$9:$E$58,2,FALSE)=0,\"\",VLOOKUP(J151,'Footnotes list'!$D$9:$E$58,2,FALSE) ) )","v":""},null,null,null,null,{"$f":"IF(TRIM(O151)=\"\", \"\", IF(VLOOKUP(O151,'Footnotes list'!$D$9:$E$58,2,FALSE)=0,\"\",VLOOKUP(O151,'Footnotes list'!$D$9:$E$58,2,FALSE) ) )","v":""},null,null,null,null,{"$f":"IF(TRIM(T151)=\"\", \"\", IF(VLOOKUP(T151,'Footnotes list'!$D$9:$E$58,2,FALSE)=0,\"\",VLOOKUP(T151,'Footnotes list'!$D$9:$E$58,2,FALSE) ) )","v":""},null,null,null,null,{"$f":"IF(TRIM(Y151)=\"\", \"\", IF(VLOOKUP(Y151,'Footnotes list'!$D$9:$E$58,2,FALSE)=0,\"\",VLOOKUP(Y151,'Footnotes list'!$D$9:$E$58,2,FALSE) ) )","v":""},null,null,null,null,{"$f":"IF(TRIM(AD151)=\"\", \"\", IF(VLOOKUP(AD151,'Footnotes list'!$D$9:$E$58,2,FALSE)=0,\"\",VLOOKUP(AD151,'Footnotes list'!$D$9:$E$58,2,FALSE) ) )","v":""},null,null,null,null,{"$f":"IF(TRIM(AI151)=\"\", \"\", IF(VLOOKUP(AI151,'Footnotes list'!$D$9:$E$58,2,FALSE)=0,\"\",VLOOKUP(AI151,'Footnotes list'!$D$9:$E$58,2,FALSE) ) )","v":""},null,null,null,null,{"$f":"IF(TRIM(AN151)=\"\", \"\", IF(VLOOKUP(AN151,'Footnotes list'!$D$9:$E$58,2,FALSE)=0,\"\",VLOOKUP(AN151,'Footnotes list'!$D$9:$E$58,2,FALSE) ) )","v":""},null,null,null,null,{"$f":"IF(TRIM(AS151)=\"\", \"\", IF(VLOOKUP(AS151,'Footnotes list'!$D$9:$E$58,2,FALSE)=0,\"\",VLOOKUP(AS151,'Footnotes list'!$D$9:$E$58,2,FALSE) ) )","v":""},null,null,null,null,{"$f":"IF(TRIM(AX151)=\"\", \"\", IF(VLOOKUP(AX151,'Footnotes list'!$D$9:$E$58,2,FALSE)=0,\"\",VLOOKUP(AX151,'Footnotes list'!$D$9:$E$58,2,FALSE) ) )","v":""},null,null,null,null,{"$f":"IF(TRIM(BC151)=\"\", \"\", IF(VLOOKUP(BC151,'Footnotes list'!$D$9:$E$58,2,FALSE)=0,\"\",VLOOKUP(BC151,'Footnotes list'!$D$9:$E$58,2,FALSE) ) )","v":""},null,null,null,null,{"$f":"IF(TRIM(BH151)=\"\", \"\", IF(VLOOKUP(BH151,'Footnotes list'!$D$9:$E$58,2,FALSE)=0,\"\",VLOOKUP(BH151,'Footnotes list'!$D$9:$E$58,2,FALSE) ) )","v":""},null,null,null,null,{"$f":"IF(TRIM(BM151)=\"\", \"\", IF(VLOOKUP(BM151,'Footnotes list'!$D$9:$E$58,2,FALSE)=0,\"\",VLOOKUP(BM151,'Footnotes list'!$D$9:$E$58,2,FALSE) ) )","v":""},null,null,null,null,{"$f":"IF(TRIM(BR151)=\"\", \"\", IF(VLOOKUP(BR151,'Footnotes list'!$D$9:$E$58,2,FALSE)=0,\"\",VLOOKUP(BR151,'Footnotes list'!$D$9:$E$58,2,FALSE) ) )","v":""},null,null,null,null,{"$f":"IF(TRIM(BW151)=\"\", \"\", IF(VLOOKUP(BW151,'Footnotes list'!$D$9:$E$58,2,FALSE)=0,\"\",VLOOKUP(BW151,'Footnotes list'!$D$9:$E$58,2,FALSE) ) )","v":""},null,null,null,null,{"$f":"IF(TRIM(CB151)=\"\", \"\", IF(VLOOKUP(CB151,'Footnotes list'!$D$9:$E$58,2,FALSE)=0,\"\",VLOOKUP(CB151,'Footnotes list'!$D$9:$E$58,2,FALSE) ) )","v":""},null,null,null,null,{"$f":"IF(TRIM(CG151)=\"\", \"\", IF(VLOOKUP(CG151,'Footnotes list'!$D$9:$E$58,2,FALSE)=0,\"\",VLOOKUP(CG151,'Footnotes list'!$D$9:$E$58,2,FALSE) ) )","v":""},null,null,null,null,{"$f":"IF(TRIM(CL151)=\"\", \"\", IF(VLOOKUP(CL151,'Footnotes list'!$D$9:$E$58,2,FALSE)=0,\"\",VLOOKUP(CL151,'Footnotes list'!$D$9:$E$58,2,FALSE) ) )","v":""},null,null,null,null,{"$f":"IF(TRIM(CQ151)=\"\", \"\", IF(VLOOKUP(CQ151,'Footnotes list'!$D$9:$E$58,2,FALSE)=0,\"\",VLOOKUP(CQ151,'Footnotes list'!$D$9:$E$58,2,FALSE) ) )","v":""},null,null,null,null,{"$f":"IF(TRIM(CV151)=\"\", \"\", IF(VLOOKUP(CV151,'Footnotes list'!$D$9:$E$58,2,FALSE)=0,\"\",VLOOKUP(CV151,'Footnotes list'!$D$9:$E$58,2,FALSE) ) )","v":""},null,null,null,null,{"$f":"IF(TRIM(DA151)=\"\", \"\", IF(VLOOKUP(DA151,'Footnotes list'!$D$9:$E$58,2,FALSE)=0,\"\",VLOOKUP(DA151,'Footnotes list'!$D$9:$E$58,2,FALSE) ) )","v":""},null,null,null,null,{"$f":"IF(TRIM(DF151)=\"\", \"\", IF(VLOOKUP(DF151,'Footnotes list'!$D$9:$E$58,2,FALSE)=0,\"\",VLOOKUP(DF151,'Footnotes list'!$D$9:$E$58,2,FALSE) ) )","v":""},null,null,null,null,{"$f":"IF(TRIM(DK151)=\"\", \"\", IF(VLOOKUP(DK151,'Footnotes list'!$D$9:$E$58,2,FALSE)=0,\"\",VLOOKUP(DK151,'Footnotes list'!$D$9:$E$58,2,FALSE) ) )","v":""},null,null,null,null,{"$f":"IF(TRIM(DP151)=\"\", \"\", IF(VLOOKUP(DP151,'Footnotes list'!$D$9:$E$58,2,FALSE)=0,\"\",VLOOKUP(DP151,'Footnotes list'!$D$9:$E$58,2,FALSE) ) )","v":""},null,null,null,null,{"$f":"IF(TRIM(DU151)=\"\", \"\", IF(VLOOKUP(DU151,'Footnotes list'!$D$9:$E$58,2,FALSE)=0,\"\",VLOOKUP(DU151,'Footnotes list'!$D$9:$E$58,2,FALSE) ) )","v":""},null,null,null,null,{"$f":"IF(TRIM(DZ151)=\"\", \"\", IF(VLOOKUP(DZ151,'Footnotes list'!$D$9:$E$58,2,FALSE)=0,\"\",VLOOKUP(DZ151,'Footnotes list'!$D$9:$E$58,2,FALSE) ) )","v":""},null,null,null,null,{"$f":"IF(TRIM(EE151)=\"\", \"\", IF(VLOOKUP(EE151,'Footnotes list'!$D$9:$E$58,2,FALSE)=0,\"\",VLOOKUP(EE151,'Footnotes list'!$D$9:$E$58,2,FALSE) ) )","v":""},null,null,null,null,{"$f":"IF(TRIM(EJ151)=\"\", \"\", IF(VLOOKUP(EJ151,'Footnotes list'!$D$9:$E$58,2,FALSE)=0,\"\",VLOOKUP(EJ151,'Footnotes list'!$D$9:$E$58,2,FALSE) ) )","v":""},null,null,null,null,{"$f":"IF(TRIM(EO151)=\"\", \"\", IF(VLOOKUP(EO151,'Footnotes list'!$D$9:$E$58,2,FALSE)=0,\"\",VLOOKUP(EO151,'Footnotes list'!$D$9:$E$58,2,FALSE) ) )","v":""},null,null,null,null,{"$f":"IF(TRIM(ET151)=\"\", \"\", IF(VLOOKUP(ET151,'Footnotes list'!$D$9:$E$58,2,FALSE)=0,\"\",VLOOKUP(ET151,'Footnotes list'!$D$9:$E$58,2,FALSE) ) )","v":""},null,null,null,null,{"$f":"IF(TRIM(EY151)=\"\", \"\", IF(VLOOKUP(EY151,'Footnotes list'!$D$9:$E$58,2,FALSE)=0,\"\",VLOOKUP(EY151,'Footnotes list'!$D$9:$E$58,2,FALSE) ) )","v":""}]
[null,null,"E37","MKT","market activities, including:",null,null,null,null,null,{"$f":"IF(TRIM(J152)=\"\", \"\", IF(VLOOKUP(J152,'Footnotes list'!$D$9:$E$58,2,FALSE)=0,\"\",VLOOKUP(J152,'Footnotes list'!$D$9:$E$58,2,FALSE) ) )","v":""},null,null,null,null,{"$f":"IF(TRIM(O152)=\"\", \"\", IF(VLOOKUP(O152,'Footnotes list'!$D$9:$E$58,2,FALSE)=0,\"\",VLOOKUP(O152,'Footnotes list'!$D$9:$E$58,2,FALSE) ) )","v":""},null,null,null,null,{"$f":"IF(TRIM(T152)=\"\", \"\", IF(VLOOKUP(T152,'Footnotes list'!$D$9:$E$58,2,FALSE)=0,\"\",VLOOKUP(T152,'Footnotes list'!$D$9:$E$58,2,FALSE) ) )","v":""},null,null,null,null,{"$f":"IF(TRIM(Y152)=\"\", \"\", IF(VLOOKUP(Y152,'Footnotes list'!$D$9:$E$58,2,FALSE)=0,\"\",VLOOKUP(Y152,'Footnotes list'!$D$9:$E$58,2,FALSE) ) )","v":""},null,null,null,null,{"$f":"IF(TRIM(AD152)=\"\", \"\", IF(VLOOKUP(AD152,'Footnotes list'!$D$9:$E$58,2,FALSE)=0,\"\",VLOOKUP(AD152,'Footnotes list'!$D$9:$E$58,2,FALSE) ) )","v":""},null,null,null,null,{"$f":"IF(TRIM(AI152)=\"\", \"\", IF(VLOOKUP(AI152,'Footnotes list'!$D$9:$E$58,2,FALSE)=0,\"\",VLOOKUP(AI152,'Footnotes list'!$D$9:$E$58,2,FALSE) ) )","v":""},null,null,null,null,{"$f":"IF(TRIM(AN152)=\"\", \"\", IF(VLOOKUP(AN152,'Footnotes list'!$D$9:$E$58,2,FALSE)=0,\"\",VLOOKUP(AN152,'Footnotes list'!$D$9:$E$58,2,FALSE) ) )","v":""},null,null,null,null,{"$f":"IF(TRIM(AS152)=\"\", \"\", IF(VLOOKUP(AS152,'Footnotes list'!$D$9:$E$58,2,FALSE)=0,\"\",VLOOKUP(AS152,'Footnotes list'!$D$9:$E$58,2,FALSE) ) )","v":""},null,null,null,null,{"$f":"IF(TRIM(AX152)=\"\", \"\", IF(VLOOKUP(AX152,'Footnotes list'!$D$9:$E$58,2,FALSE)=0,\"\",VLOOKUP(AX152,'Footnotes list'!$D$9:$E$58,2,FALSE) ) )","v":""},null,null,null,null,{"$f":"IF(TRIM(BC152)=\"\", \"\", IF(VLOOKUP(BC152,'Footnotes list'!$D$9:$E$58,2,FALSE)=0,\"\",VLOOKUP(BC152,'Footnotes list'!$D$9:$E$58,2,FALSE) ) )","v":""},null,null,null,null,{"$f":"IF(TRIM(BH152)=\"\", \"\", IF(VLOOKUP(BH152,'Footnotes list'!$D$9:$E$58,2,FALSE)=0,\"\",VLOOKUP(BH152,'Footnotes list'!$D$9:$E$58,2,FALSE) ) )","v":""},null,null,null,null,{"$f":"IF(TRIM(BM152)=\"\", \"\", IF(VLOOKUP(BM152,'Footnotes list'!$D$9:$E$58,2,FALSE)=0,\"\",VLOOKUP(BM152,'Footnotes list'!$D$9:$E$58,2,FALSE) ) )","v":""},null,null,null,null,{"$f":"IF(TRIM(BR152)=\"\", \"\", IF(VLOOKUP(BR152,'Footnotes list'!$D$9:$E$58,2,FALSE)=0,\"\",VLOOKUP(BR152,'Footnotes list'!$D$9:$E$58,2,FALSE) ) )","v":""},null,null,null,null,{"$f":"IF(TRIM(BW152)=\"\", \"\", IF(VLOOKUP(BW152,'Footnotes list'!$D$9:$E$58,2,FALSE)=0,\"\",VLOOKUP(BW152,'Footnotes list'!$D$9:$E$58,2,FALSE) ) )","v":""},null,null,null,null,{"$f":"IF(TRIM(CB152)=\"\", \"\", IF(VLOOKUP(CB152,'Footnotes list'!$D$9:$E$58,2,FALSE)=0,\"\",VLOOKUP(CB152,'Footnotes list'!$D$9:$E$58,2,FALSE) ) )","v":""},null,null,null,null,{"$f":"IF(TRIM(CG152)=\"\", \"\", IF(VLOOKUP(CG152,'Footnotes list'!$D$9:$E$58,2,FALSE)=0,\"\",VLOOKUP(CG152,'Footnotes list'!$D$9:$E$58,2,FALSE) ) )","v":""},null,null,null,null,{"$f":"IF(TRIM(CL152)=\"\", \"\", IF(VLOOKUP(CL152,'Footnotes list'!$D$9:$E$58,2,FALSE)=0,\"\",VLOOKUP(CL152,'Footnotes list'!$D$9:$E$58,2,FALSE) ) )","v":""},null,null,null,null,{"$f":"IF(TRIM(CQ152)=\"\", \"\", IF(VLOOKUP(CQ152,'Footnotes list'!$D$9:$E$58,2,FALSE)=0,\"\",VLOOKUP(CQ152,'Footnotes list'!$D$9:$E$58,2,FALSE) ) )","v":""},null,null,null,null,{"$f":"IF(TRIM(CV152)=\"\", \"\", IF(VLOOKUP(CV152,'Footnotes list'!$D$9:$E$58,2,FALSE)=0,\"\",VLOOKUP(CV152,'Footnotes list'!$D$9:$E$58,2,FALSE) ) )","v":""},null,null,null,null,{"$f":"IF(TRIM(DA152)=\"\", \"\", IF(VLOOKUP(DA152,'Footnotes list'!$D$9:$E$58,2,FALSE)=0,\"\",VLOOKUP(DA152,'Footnotes list'!$D$9:$E$58,2,FALSE) ) )","v":""},null,null,null,null,{"$f":"IF(TRIM(DF152)=\"\", \"\", IF(VLOOKUP(DF152,'Footnotes list'!$D$9:$E$58,2,FALSE)=0,\"\",VLOOKUP(DF152,'Footnotes list'!$D$9:$E$58,2,FALSE) ) )","v":""},null,null,null,null,{"$f":"IF(TRIM(DK152)=\"\", \"\", IF(VLOOKUP(DK152,'Footnotes list'!$D$9:$E$58,2,FALSE)=0,\"\",VLOOKUP(DK152,'Footnotes list'!$D$9:$E$58,2,FALSE) ) )","v":""},null,null,null,null,{"$f":"IF(TRIM(DP152)=\"\", \"\", IF(VLOOKUP(DP152,'Footnotes list'!$D$9:$E$58,2,FALSE)=0,\"\",VLOOKUP(DP152,'Footnotes list'!$D$9:$E$58,2,FALSE) ) )","v":""},null,null,null,null,{"$f":"IF(TRIM(DU152)=\"\", \"\", IF(VLOOKUP(DU152,'Footnotes list'!$D$9:$E$58,2,FALSE)=0,\"\",VLOOKUP(DU152,'Footnotes list'!$D$9:$E$58,2,FALSE) ) )","v":""},null,null,null,null,{"$f":"IF(TRIM(DZ152)=\"\", \"\", IF(VLOOKUP(DZ152,'Footnotes list'!$D$9:$E$58,2,FALSE)=0,\"\",VLOOKUP(DZ152,'Footnotes list'!$D$9:$E$58,2,FALSE) ) )","v":""},null,null,null,null,{"$f":"IF(TRIM(EE152)=\"\", \"\", IF(VLOOKUP(EE152,'Footnotes list'!$D$9:$E$58,2,FALSE)=0,\"\",VLOOKUP(EE152,'Footnotes list'!$D$9:$E$58,2,FALSE) ) )","v":""},null,null,null,null,{"$f":"IF(TRIM(EJ152)=\"\", \"\", IF(VLOOKUP(EJ152,'Footnotes list'!$D$9:$E$58,2,FALSE)=0,\"\",VLOOKUP(EJ152,'Footnotes list'!$D$9:$E$58,2,FALSE) ) )","v":""},null,null,null,null,{"$f":"IF(TRIM(EO152)=\"\", \"\", IF(VLOOKUP(EO152,'Footnotes list'!$D$9:$E$58,2,FALSE)=0,\"\",VLOOKUP(EO152,'Footnotes list'!$D$9:$E$58,2,FALSE) ) )","v":""},null,null,null,null,{"$f":"IF(TRIM(ET152)=\"\", \"\", IF(VLOOKUP(ET152,'Footnotes list'!$D$9:$E$58,2,FALSE)=0,\"\",VLOOKUP(ET152,'Footnotes list'!$D$9:$E$58,2,FALSE) ) )","v":""},null,null,null,null,{"$f":"IF(TRIM(EY152)=\"\", \"\", IF(VLOOKUP(EY152,'Footnotes list'!$D$9:$E$58,2,FALSE)=0,\"\",VLOOKUP(EY152,'Footnotes list'!$D$9:$E$58,2,FALSE) ) )","v":""}]
[null,null,"E37","ES_CS","environmental specific services",null,null,null,null,null,{"$f":"IF(TRIM(J153)=\"\", \"\", IF(VLOOKUP(J153,'Footnotes list'!$D$9:$E$58,2,FALSE)=0,\"\",VLOOKUP(J153,'Footnotes list'!$D$9:$E$58,2,FALSE) ) )","v":""},null,null,null,null,{"$f":"IF(TRIM(O153)=\"\", \"\", IF(VLOOKUP(O153,'Footnotes list'!$D$9:$E$58,2,FALSE)=0,\"\",VLOOKUP(O153,'Footnotes list'!$D$9:$E$58,2,FALSE) ) )","v":""},null,null,null,null,{"$f":"IF(TRIM(T153)=\"\", \"\", IF(VLOOKUP(T153,'Footnotes list'!$D$9:$E$58,2,FALSE)=0,\"\",VLOOKUP(T153,'Footnotes list'!$D$9:$E$58,2,FALSE) ) )","v":""},null,null,null,null,{"$f":"IF(TRIM(Y153)=\"\", \"\", IF(VLOOKUP(Y153,'Footnotes list'!$D$9:$E$58,2,FALSE)=0,\"\",VLOOKUP(Y153,'Footnotes list'!$D$9:$E$58,2,FALSE) ) )","v":""},null,null,null,null,{"$f":"IF(TRIM(AD153)=\"\", \"\", IF(VLOOKUP(AD153,'Footnotes list'!$D$9:$E$58,2,FALSE)=0,\"\",VLOOKUP(AD153,'Footnotes list'!$D$9:$E$58,2,FALSE) ) )","v":""},null,null,null,null,{"$f":"IF(TRIM(AI153)=\"\", \"\", IF(VLOOKUP(AI153,'Footnotes list'!$D$9:$E$58,2,FALSE)=0,\"\",VLOOKUP(AI153,'Footnotes list'!$D$9:$E$58,2,FALSE) ) )","v":""},null,null,null,null,{"$f":"IF(TRIM(AN153)=\"\", \"\", IF(VLOOKUP(AN153,'Footnotes list'!$D$9:$E$58,2,FALSE)=0,\"\",VLOOKUP(AN153,'Footnotes list'!$D$9:$E$58,2,FALSE) ) )","v":""},null,null,null,null,{"$f":"IF(TRIM(AS153)=\"\", \"\", IF(VLOOKUP(AS153,'Footnotes list'!$D$9:$E$58,2,FALSE)=0,\"\",VLOOKUP(AS153,'Footnotes list'!$D$9:$E$58,2,FALSE) ) )","v":""},null,null,null,null,{"$f":"IF(TRIM(AX153)=\"\", \"\", IF(VLOOKUP(AX153,'Footnotes list'!$D$9:$E$58,2,FALSE)=0,\"\",VLOOKUP(AX153,'Footnotes list'!$D$9:$E$58,2,FALSE) ) )","v":""},null,null,null,null,{"$f":"IF(TRIM(BC153)=\"\", \"\", IF(VLOOKUP(BC153,'Footnotes list'!$D$9:$E$58,2,FALSE)=0,\"\",VLOOKUP(BC153,'Footnotes list'!$D$9:$E$58,2,FALSE) ) )","v":""},null,null,null,null,{"$f":"IF(TRIM(BH153)=\"\", \"\", IF(VLOOKUP(BH153,'Footnotes list'!$D$9:$E$58,2,FALSE)=0,\"\",VLOOKUP(BH153,'Footnotes list'!$D$9:$E$58,2,FALSE) ) )","v":""},null,null,null,null,{"$f":"IF(TRIM(BM153)=\"\", \"\", IF(VLOOKUP(BM153,'Footnotes list'!$D$9:$E$58,2,FALSE)=0,\"\",VLOOKUP(BM153,'Footnotes list'!$D$9:$E$58,2,FALSE) ) )","v":""},null,null,null,null,{"$f":"IF(TRIM(BR153)=\"\", \"\", IF(VLOOKUP(BR153,'Footnotes list'!$D$9:$E$58,2,FALSE)=0,\"\",VLOOKUP(BR153,'Footnotes list'!$D$9:$E$58,2,FALSE) ) )","v":""},null,null,null,null,{"$f":"IF(TRIM(BW153)=\"\", \"\", IF(VLOOKUP(BW153,'Footnotes list'!$D$9:$E$58,2,FALSE)=0,\"\",VLOOKUP(BW153,'Footnotes list'!$D$9:$E$58,2,FALSE) ) )","v":""},null,null,null,null,{"$f":"IF(TRIM(CB153)=\"\", \"\", IF(VLOOKUP(CB153,'Footnotes list'!$D$9:$E$58,2,FALSE)=0,\"\",VLOOKUP(CB153,'Footnotes list'!$D$9:$E$58,2,FALSE) ) )","v":""},null,null,null,null,{"$f":"IF(TRIM(CG153)=\"\", \"\", IF(VLOOKUP(CG153,'Footnotes list'!$D$9:$E$58,2,FALSE)=0,\"\",VLOOKUP(CG153,'Footnotes list'!$D$9:$E$58,2,FALSE) ) )","v":""},null,null,null,null,{"$f":"IF(TRIM(CL153)=\"\", \"\", IF(VLOOKUP(CL153,'Footnotes list'!$D$9:$E$58,2,FALSE)=0,\"\",VLOOKUP(CL153,'Footnotes list'!$D$9:$E$58,2,FALSE) ) )","v":""},null,null,null,null,{"$f":"IF(TRIM(CQ153)=\"\", \"\", IF(VLOOKUP(CQ153,'Footnotes list'!$D$9:$E$58,2,FALSE)=0,\"\",VLOOKUP(CQ153,'Footnotes list'!$D$9:$E$58,2,FALSE) ) )","v":""},null,null,null,null,{"$f":"IF(TRIM(CV153)=\"\", \"\", IF(VLOOKUP(CV153,'Footnotes list'!$D$9:$E$58,2,FALSE)=0,\"\",VLOOKUP(CV153,'Footnotes list'!$D$9:$E$58,2,FALSE) ) )","v":""},null,null,null,null,{"$f":"IF(TRIM(DA153)=\"\", \"\", IF(VLOOKUP(DA153,'Footnotes list'!$D$9:$E$58,2,FALSE)=0,\"\",VLOOKUP(DA153,'Footnotes list'!$D$9:$E$58,2,FALSE) ) )","v":""},null,null,null,null,{"$f":"IF(TRIM(DF153)=\"\", \"\", IF(VLOOKUP(DF153,'Footnotes list'!$D$9:$E$58,2,FALSE)=0,\"\",VLOOKUP(DF153,'Footnotes list'!$D$9:$E$58,2,FALSE) ) )","v":""},null,null,null,null,{"$f":"IF(TRIM(DK153)=\"\", \"\", IF(VLOOKUP(DK153,'Footnotes list'!$D$9:$E$58,2,FALSE)=0,\"\",VLOOKUP(DK153,'Footnotes list'!$D$9:$E$58,2,FALSE) ) )","v":""},null,null,null,null,{"$f":"IF(TRIM(DP153)=\"\", \"\", IF(VLOOKUP(DP153,'Footnotes list'!$D$9:$E$58,2,FALSE)=0,\"\",VLOOKUP(DP153,'Footnotes list'!$D$9:$E$58,2,FALSE) ) )","v":""},null,null,null,null,{"$f":"IF(TRIM(DU153)=\"\", \"\", IF(VLOOKUP(DU153,'Footnotes list'!$D$9:$E$58,2,FALSE)=0,\"\",VLOOKUP(DU153,'Footnotes list'!$D$9:$E$58,2,FALSE) ) )","v":""},null,null,null,null,{"$f":"IF(TRIM(DZ153)=\"\", \"\", IF(VLOOKUP(DZ153,'Footnotes list'!$D$9:$E$58,2,FALSE)=0,\"\",VLOOKUP(DZ153,'Footnotes list'!$D$9:$E$58,2,FALSE) ) )","v":""},null,null,null,null,{"$f":"IF(TRIM(EE153)=\"\", \"\", IF(VLOOKUP(EE153,'Footnotes list'!$D$9:$E$58,2,FALSE)=0,\"\",VLOOKUP(EE153,'Footnotes list'!$D$9:$E$58,2,FALSE) ) )","v":""},null,null,null,null,{"$f":"IF(TRIM(EJ153)=\"\", \"\", IF(VLOOKUP(EJ153,'Footnotes list'!$D$9:$E$58,2,FALSE)=0,\"\",VLOOKUP(EJ153,'Footnotes list'!$D$9:$E$58,2,FALSE) ) )","v":""},null,null,null,null,{"$f":"IF(TRIM(EO153)=\"\", \"\", IF(VLOOKUP(EO153,'Footnotes list'!$D$9:$E$58,2,FALSE)=0,\"\",VLOOKUP(EO153,'Footnotes list'!$D$9:$E$58,2,FALSE) ) )","v":""},null,null,null,null,{"$f":"IF(TRIM(ET153)=\"\", \"\", IF(VLOOKUP(ET153,'Footnotes list'!$D$9:$E$58,2,FALSE)=0,\"\",VLOOKUP(ET153,'Footnotes list'!$D$9:$E$58,2,FALSE) ) )","v":""},null,null,null,null,{"$f":"IF(TRIM(EY153)=\"\", \"\", IF(VLOOKUP(EY153,'Footnotes list'!$D$9:$E$58,2,FALSE)=0,\"\",VLOOKUP(EY153,'Footnotes list'!$D$9:$E$58,2,FALSE) ) )","v":""}]
[null,null,"E37","C_REP","cleaner and resource efficient products",null,null,null,null,null,{"$f":"IF(TRIM(J154)=\"\", \"\", IF(VLOOKUP(J154,'Footnotes list'!$D$9:$E$58,2,FALSE)=0,\"\",VLOOKUP(J154,'Footnotes list'!$D$9:$E$58,2,FALSE) ) )","v":""},null,null,null,null,{"$f":"IF(TRIM(O154)=\"\", \"\", IF(VLOOKUP(O154,'Footnotes list'!$D$9:$E$58,2,FALSE)=0,\"\",VLOOKUP(O154,'Footnotes list'!$D$9:$E$58,2,FALSE) ) )","v":""},null,null,null,null,{"$f":"IF(TRIM(T154)=\"\", \"\", IF(VLOOKUP(T154,'Footnotes list'!$D$9:$E$58,2,FALSE)=0,\"\",VLOOKUP(T154,'Footnotes list'!$D$9:$E$58,2,FALSE) ) )","v":""},null,null,null,null,{"$f":"IF(TRIM(Y154)=\"\", \"\", IF(VLOOKUP(Y154,'Footnotes list'!$D$9:$E$58,2,FALSE)=0,\"\",VLOOKUP(Y154,'Footnotes list'!$D$9:$E$58,2,FALSE) ) )","v":""},null,null,null,null,{"$f":"IF(TRIM(AD154)=\"\", \"\", IF(VLOOKUP(AD154,'Footnotes list'!$D$9:$E$58,2,FALSE)=0,\"\",VLOOKUP(AD154,'Footnotes list'!$D$9:$E$58,2,FALSE) ) )","v":""},null,null,null,null,{"$f":"IF(TRIM(AI154)=\"\", \"\", IF(VLOOKUP(AI154,'Footnotes list'!$D$9:$E$58,2,FALSE)=0,\"\",VLOOKUP(AI154,'Footnotes list'!$D$9:$E$58,2,FALSE) ) )","v":""},null,null,null,null,{"$f":"IF(TRIM(AN154)=\"\", \"\", IF(VLOOKUP(AN154,'Footnotes list'!$D$9:$E$58,2,FALSE)=0,\"\",VLOOKUP(AN154,'Footnotes list'!$D$9:$E$58,2,FALSE) ) )","v":""},null,null,null,null,{"$f":"IF(TRIM(AS154)=\"\", \"\", IF(VLOOKUP(AS154,'Footnotes list'!$D$9:$E$58,2,FALSE)=0,\"\",VLOOKUP(AS154,'Footnotes list'!$D$9:$E$58,2,FALSE) ) )","v":""},null,null,null,null,{"$f":"IF(TRIM(AX154)=\"\", \"\", IF(VLOOKUP(AX154,'Footnotes list'!$D$9:$E$58,2,FALSE)=0,\"\",VLOOKUP(AX154,'Footnotes list'!$D$9:$E$58,2,FALSE) ) )","v":""},null,null,null,null,{"$f":"IF(TRIM(BC154)=\"\", \"\", IF(VLOOKUP(BC154,'Footnotes list'!$D$9:$E$58,2,FALSE)=0,\"\",VLOOKUP(BC154,'Footnotes list'!$D$9:$E$58,2,FALSE) ) )","v":""},null,null,null,null,{"$f":"IF(TRIM(BH154)=\"\", \"\", IF(VLOOKUP(BH154,'Footnotes list'!$D$9:$E$58,2,FALSE)=0,\"\",VLOOKUP(BH154,'Footnotes list'!$D$9:$E$58,2,FALSE) ) )","v":""},null,null,null,null,{"$f":"IF(TRIM(BM154)=\"\", \"\", IF(VLOOKUP(BM154,'Footnotes list'!$D$9:$E$58,2,FALSE)=0,\"\",VLOOKUP(BM154,'Footnotes list'!$D$9:$E$58,2,FALSE) ) )","v":""},null,null,null,null,{"$f":"IF(TRIM(BR154)=\"\", \"\", IF(VLOOKUP(BR154,'Footnotes list'!$D$9:$E$58,2,FALSE)=0,\"\",VLOOKUP(BR154,'Footnotes list'!$D$9:$E$58,2,FALSE) ) )","v":""},null,null,null,null,{"$f":"IF(TRIM(BW154)=\"\", \"\", IF(VLOOKUP(BW154,'Footnotes list'!$D$9:$E$58,2,FALSE)=0,\"\",VLOOKUP(BW154,'Footnotes list'!$D$9:$E$58,2,FALSE) ) )","v":""},null,null,null,null,{"$f":"IF(TRIM(CB154)=\"\", \"\", IF(VLOOKUP(CB154,'Footnotes list'!$D$9:$E$58,2,FALSE)=0,\"\",VLOOKUP(CB154,'Footnotes list'!$D$9:$E$58,2,FALSE) ) )","v":""},null,null,null,null,{"$f":"IF(TRIM(CG154)=\"\", \"\", IF(VLOOKUP(CG154,'Footnotes list'!$D$9:$E$58,2,FALSE)=0,\"\",VLOOKUP(CG154,'Footnotes list'!$D$9:$E$58,2,FALSE) ) )","v":""},null,null,null,null,{"$f":"IF(TRIM(CL154)=\"\", \"\", IF(VLOOKUP(CL154,'Footnotes list'!$D$9:$E$58,2,FALSE)=0,\"\",VLOOKUP(CL154,'Footnotes list'!$D$9:$E$58,2,FALSE) ) )","v":""},null,null,null,null,{"$f":"IF(TRIM(CQ154)=\"\", \"\", IF(VLOOKUP(CQ154,'Footnotes list'!$D$9:$E$58,2,FALSE)=0,\"\",VLOOKUP(CQ154,'Footnotes list'!$D$9:$E$58,2,FALSE) ) )","v":""},null,null,null,null,{"$f":"IF(TRIM(CV154)=\"\", \"\", IF(VLOOKUP(CV154,'Footnotes list'!$D$9:$E$58,2,FALSE)=0,\"\",VLOOKUP(CV154,'Footnotes list'!$D$9:$E$58,2,FALSE) ) )","v":""},null,null,null,null,{"$f":"IF(TRIM(DA154)=\"\", \"\", IF(VLOOKUP(DA154,'Footnotes list'!$D$9:$E$58,2,FALSE)=0,\"\",VLOOKUP(DA154,'Footnotes list'!$D$9:$E$58,2,FALSE) ) )","v":""},null,null,null,null,{"$f":"IF(TRIM(DF154)=\"\", \"\", IF(VLOOKUP(DF154,'Footnotes list'!$D$9:$E$58,2,FALSE)=0,\"\",VLOOKUP(DF154,'Footnotes list'!$D$9:$E$58,2,FALSE) ) )","v":""},null,null,null,null,{"$f":"IF(TRIM(DK154)=\"\", \"\", IF(VLOOKUP(DK154,'Footnotes list'!$D$9:$E$58,2,FALSE)=0,\"\",VLOOKUP(DK154,'Footnotes list'!$D$9:$E$58,2,FALSE) ) )","v":""},null,null,null,null,{"$f":"IF(TRIM(DP154)=\"\", \"\", IF(VLOOKUP(DP154,'Footnotes list'!$D$9:$E$58,2,FALSE)=0,\"\",VLOOKUP(DP154,'Footnotes list'!$D$9:$E$58,2,FALSE) ) )","v":""},null,null,null,null,{"$f":"IF(TRIM(DU154)=\"\", \"\", IF(VLOOKUP(DU154,'Footnotes list'!$D$9:$E$58,2,FALSE)=0,\"\",VLOOKUP(DU154,'Footnotes list'!$D$9:$E$58,2,FALSE) ) )","v":""},null,null,null,null,{"$f":"IF(TRIM(DZ154)=\"\", \"\", IF(VLOOKUP(DZ154,'Footnotes list'!$D$9:$E$58,2,FALSE)=0,\"\",VLOOKUP(DZ154,'Footnotes list'!$D$9:$E$58,2,FALSE) ) )","v":""},null,null,null,null,{"$f":"IF(TRIM(EE154)=\"\", \"\", IF(VLOOKUP(EE154,'Footnotes list'!$D$9:$E$58,2,FALSE)=0,\"\",VLOOKUP(EE154,'Footnotes list'!$D$9:$E$58,2,FALSE) ) )","v":""},null,null,null,null,{"$f":"IF(TRIM(EJ154)=\"\", \"\", IF(VLOOKUP(EJ154,'Footnotes list'!$D$9:$E$58,2,FALSE)=0,\"\",VLOOKUP(EJ154,'Footnotes list'!$D$9:$E$58,2,FALSE) ) )","v":""},null,null,null,null,{"$f":"IF(TRIM(EO154)=\"\", \"\", IF(VLOOKUP(EO154,'Footnotes list'!$D$9:$E$58,2,FALSE)=0,\"\",VLOOKUP(EO154,'Footnotes list'!$D$9:$E$58,2,FALSE) ) )","v":""},null,null,null,null,{"$f":"IF(TRIM(ET154)=\"\", \"\", IF(VLOOKUP(ET154,'Footnotes list'!$D$9:$E$58,2,FALSE)=0,\"\",VLOOKUP(ET154,'Footnotes list'!$D$9:$E$58,2,FALSE) ) )","v":""},null,null,null,null,{"$f":"IF(TRIM(EY154)=\"\", \"\", IF(VLOOKUP(EY154,'Footnotes list'!$D$9:$E$58,2,FALSE)=0,\"\",VLOOKUP(EY154,'Footnotes list'!$D$9:$E$58,2,FALSE) ) )","v":""}]
[null,null,"E38","TOT_EGSS","Total E38 - Waste collection, treatment and disposal activities; materials recovery, of which:",null,null,null,null,null,{"$f":"IF(TRIM(J155)=\"\", \"\", IF(VLOOKUP(J155,'Footnotes list'!$D$9:$E$58,2,FALSE)=0,\"\",VLOOKUP(J155,'Footnotes list'!$D$9:$E$58,2,FALSE) ) )","v":""},null,null,null,null,{"$f":"IF(TRIM(O155)=\"\", \"\", IF(VLOOKUP(O155,'Footnotes list'!$D$9:$E$58,2,FALSE)=0,\"\",VLOOKUP(O155,'Footnotes list'!$D$9:$E$58,2,FALSE) ) )","v":""},null,null,null,null,{"$f":"IF(TRIM(T155)=\"\", \"\", IF(VLOOKUP(T155,'Footnotes list'!$D$9:$E$58,2,FALSE)=0,\"\",VLOOKUP(T155,'Footnotes list'!$D$9:$E$58,2,FALSE) ) )","v":""},null,null,null,null,{"$f":"IF(TRIM(Y155)=\"\", \"\", IF(VLOOKUP(Y155,'Footnotes list'!$D$9:$E$58,2,FALSE)=0,\"\",VLOOKUP(Y155,'Footnotes list'!$D$9:$E$58,2,FALSE) ) )","v":""},null,null,null,null,{"$f":"IF(TRIM(AD155)=\"\", \"\", IF(VLOOKUP(AD155,'Footnotes list'!$D$9:$E$58,2,FALSE)=0,\"\",VLOOKUP(AD155,'Footnotes list'!$D$9:$E$58,2,FALSE) ) )","v":""},null,null,null,null,{"$f":"IF(TRIM(AI155)=\"\", \"\", IF(VLOOKUP(AI155,'Footnotes list'!$D$9:$E$58,2,FALSE)=0,\"\",VLOOKUP(AI155,'Footnotes list'!$D$9:$E$58,2,FALSE) ) )","v":""},null,null,null,null,{"$f":"IF(TRIM(AN155)=\"\", \"\", IF(VLOOKUP(AN155,'Footnotes list'!$D$9:$E$58,2,FALSE)=0,\"\",VLOOKUP(AN155,'Footnotes list'!$D$9:$E$58,2,FALSE) ) )","v":""},null,null,null,null,{"$f":"IF(TRIM(AS155)=\"\", \"\", IF(VLOOKUP(AS155,'Footnotes list'!$D$9:$E$58,2,FALSE)=0,\"\",VLOOKUP(AS155,'Footnotes list'!$D$9:$E$58,2,FALSE) ) )","v":""},null,null,null,null,{"$f":"IF(TRIM(AX155)=\"\", \"\", IF(VLOOKUP(AX155,'Footnotes list'!$D$9:$E$58,2,FALSE)=0,\"\",VLOOKUP(AX155,'Footnotes list'!$D$9:$E$58,2,FALSE) ) )","v":""},null,null,null,null,{"$f":"IF(TRIM(BC155)=\"\", \"\", IF(VLOOKUP(BC155,'Footnotes list'!$D$9:$E$58,2,FALSE)=0,\"\",VLOOKUP(BC155,'Footnotes list'!$D$9:$E$58,2,FALSE) ) )","v":""},null,null,null,null,{"$f":"IF(TRIM(BH155)=\"\", \"\", IF(VLOOKUP(BH155,'Footnotes list'!$D$9:$E$58,2,FALSE)=0,\"\",VLOOKUP(BH155,'Footnotes list'!$D$9:$E$58,2,FALSE) ) )","v":""},null,null,null,null,{"$f":"IF(TRIM(BM155)=\"\", \"\", IF(VLOOKUP(BM155,'Footnotes list'!$D$9:$E$58,2,FALSE)=0,\"\",VLOOKUP(BM155,'Footnotes list'!$D$9:$E$58,2,FALSE) ) )","v":""},null,null,null,null,{"$f":"IF(TRIM(BR155)=\"\", \"\", IF(VLOOKUP(BR155,'Footnotes list'!$D$9:$E$58,2,FALSE)=0,\"\",VLOOKUP(BR155,'Footnotes list'!$D$9:$E$58,2,FALSE) ) )","v":""},null,null,null,null,{"$f":"IF(TRIM(BW155)=\"\", \"\", IF(VLOOKUP(BW155,'Footnotes list'!$D$9:$E$58,2,FALSE)=0,\"\",VLOOKUP(BW155,'Footnotes list'!$D$9:$E$58,2,FALSE) ) )","v":""},null,null,null,null,{"$f":"IF(TRIM(CB155)=\"\", \"\", IF(VLOOKUP(CB155,'Footnotes list'!$D$9:$E$58,2,FALSE)=0,\"\",VLOOKUP(CB155,'Footnotes list'!$D$9:$E$58,2,FALSE) ) )","v":""},null,null,null,null,{"$f":"IF(TRIM(CG155)=\"\", \"\", IF(VLOOKUP(CG155,'Footnotes list'!$D$9:$E$58,2,FALSE)=0,\"\",VLOOKUP(CG155,'Footnotes list'!$D$9:$E$58,2,FALSE) ) )","v":""},null,null,null,null,{"$f":"IF(TRIM(CL155)=\"\", \"\", IF(VLOOKUP(CL155,'Footnotes list'!$D$9:$E$58,2,FALSE)=0,\"\",VLOOKUP(CL155,'Footnotes list'!$D$9:$E$58,2,FALSE) ) )","v":""},null,null,null,null,{"$f":"IF(TRIM(CQ155)=\"\", \"\", IF(VLOOKUP(CQ155,'Footnotes list'!$D$9:$E$58,2,FALSE)=0,\"\",VLOOKUP(CQ155,'Footnotes list'!$D$9:$E$58,2,FALSE) ) )","v":""},null,null,null,null,{"$f":"IF(TRIM(CV155)=\"\", \"\", IF(VLOOKUP(CV155,'Footnotes list'!$D$9:$E$58,2,FALSE)=0,\"\",VLOOKUP(CV155,'Footnotes list'!$D$9:$E$58,2,FALSE) ) )","v":""},null,null,null,null,{"$f":"IF(TRIM(DA155)=\"\", \"\", IF(VLOOKUP(DA155,'Footnotes list'!$D$9:$E$58,2,FALSE)=0,\"\",VLOOKUP(DA155,'Footnotes list'!$D$9:$E$58,2,FALSE) ) )","v":""},null,null,null,null,{"$f":"IF(TRIM(DF155)=\"\", \"\", IF(VLOOKUP(DF155,'Footnotes list'!$D$9:$E$58,2,FALSE)=0,\"\",VLOOKUP(DF155,'Footnotes list'!$D$9:$E$58,2,FALSE) ) )","v":""},null,null,null,null,{"$f":"IF(TRIM(DK155)=\"\", \"\", IF(VLOOKUP(DK155,'Footnotes list'!$D$9:$E$58,2,FALSE)=0,\"\",VLOOKUP(DK155,'Footnotes list'!$D$9:$E$58,2,FALSE) ) )","v":""},null,null,null,null,{"$f":"IF(TRIM(DP155)=\"\", \"\", IF(VLOOKUP(DP155,'Footnotes list'!$D$9:$E$58,2,FALSE)=0,\"\",VLOOKUP(DP155,'Footnotes list'!$D$9:$E$58,2,FALSE) ) )","v":""},null,null,null,null,{"$f":"IF(TRIM(DU155)=\"\", \"\", IF(VLOOKUP(DU155,'Footnotes list'!$D$9:$E$58,2,FALSE)=0,\"\",VLOOKUP(DU155,'Footnotes list'!$D$9:$E$58,2,FALSE) ) )","v":""},null,null,null,null,{"$f":"IF(TRIM(DZ155)=\"\", \"\", IF(VLOOKUP(DZ155,'Footnotes list'!$D$9:$E$58,2,FALSE)=0,\"\",VLOOKUP(DZ155,'Footnotes list'!$D$9:$E$58,2,FALSE) ) )","v":""},null,null,null,null,{"$f":"IF(TRIM(EE155)=\"\", \"\", IF(VLOOKUP(EE155,'Footnotes list'!$D$9:$E$58,2,FALSE)=0,\"\",VLOOKUP(EE155,'Footnotes list'!$D$9:$E$58,2,FALSE) ) )","v":""},null,null,null,null,{"$f":"IF(TRIM(EJ155)=\"\", \"\", IF(VLOOKUP(EJ155,'Footnotes list'!$D$9:$E$58,2,FALSE)=0,\"\",VLOOKUP(EJ155,'Footnotes list'!$D$9:$E$58,2,FALSE) ) )","v":""},null,null,null,null,{"$f":"IF(TRIM(EO155)=\"\", \"\", IF(VLOOKUP(EO155,'Footnotes list'!$D$9:$E$58,2,FALSE)=0,\"\",VLOOKUP(EO155,'Footnotes list'!$D$9:$E$58,2,FALSE) ) )","v":""},null,null,null,null,{"$f":"IF(TRIM(ET155)=\"\", \"\", IF(VLOOKUP(ET155,'Footnotes list'!$D$9:$E$58,2,FALSE)=0,\"\",VLOOKUP(ET155,'Footnotes list'!$D$9:$E$58,2,FALSE) ) )","v":""},null,null,null,null,{"$f":"IF(TRIM(EY155)=\"\", \"\", IF(VLOOKUP(EY155,'Footnotes list'!$D$9:$E$58,2,FALSE)=0,\"\",VLOOKUP(EY155,'Footnotes list'!$D$9:$E$58,2,FALSE) ) )","v":""}]
[null,null,"E38","ANC","ancillary activities",null,null,null,null,null,{"$f":"IF(TRIM(J156)=\"\", \"\", IF(VLOOKUP(J156,'Footnotes list'!$D$9:$E$58,2,FALSE)=0,\"\",VLOOKUP(J156,'Footnotes list'!$D$9:$E$58,2,FALSE) ) )","v":""},null,null,null,null,{"$f":"IF(TRIM(O156)=\"\", \"\", IF(VLOOKUP(O156,'Footnotes list'!$D$9:$E$58,2,FALSE)=0,\"\",VLOOKUP(O156,'Footnotes list'!$D$9:$E$58,2,FALSE) ) )","v":""},null,null,null,null,{"$f":"IF(TRIM(T156)=\"\", \"\", IF(VLOOKUP(T156,'Footnotes list'!$D$9:$E$58,2,FALSE)=0,\"\",VLOOKUP(T156,'Footnotes list'!$D$9:$E$58,2,FALSE) ) )","v":""},null,null,null,null,{"$f":"IF(TRIM(Y156)=\"\", \"\", IF(VLOOKUP(Y156,'Footnotes list'!$D$9:$E$58,2,FALSE)=0,\"\",VLOOKUP(Y156,'Footnotes list'!$D$9:$E$58,2,FALSE) ) )","v":""},null,null,null,null,{"$f":"IF(TRIM(AD156)=\"\", \"\", IF(VLOOKUP(AD156,'Footnotes list'!$D$9:$E$58,2,FALSE)=0,\"\",VLOOKUP(AD156,'Footnotes list'!$D$9:$E$58,2,FALSE) ) )","v":""},null,null,null,null,{"$f":"IF(TRIM(AI156)=\"\", \"\", IF(VLOOKUP(AI156,'Footnotes list'!$D$9:$E$58,2,FALSE)=0,\"\",VLOOKUP(AI156,'Footnotes list'!$D$9:$E$58,2,FALSE) ) )","v":""},null,null,null,null,{"$f":"IF(TRIM(AN156)=\"\", \"\", IF(VLOOKUP(AN156,'Footnotes list'!$D$9:$E$58,2,FALSE)=0,\"\",VLOOKUP(AN156,'Footnotes list'!$D$9:$E$58,2,FALSE) ) )","v":""},null,null,null,null,{"$f":"IF(TRIM(AS156)=\"\", \"\", IF(VLOOKUP(AS156,'Footnotes list'!$D$9:$E$58,2,FALSE)=0,\"\",VLOOKUP(AS156,'Footnotes list'!$D$9:$E$58,2,FALSE) ) )","v":""},null,null,null,null,{"$f":"IF(TRIM(AX156)=\"\", \"\", IF(VLOOKUP(AX156,'Footnotes list'!$D$9:$E$58,2,FALSE)=0,\"\",VLOOKUP(AX156,'Footnotes list'!$D$9:$E$58,2,FALSE) ) )","v":""},null,null,null,null,{"$f":"IF(TRIM(BC156)=\"\", \"\", IF(VLOOKUP(BC156,'Footnotes list'!$D$9:$E$58,2,FALSE)=0,\"\",VLOOKUP(BC156,'Footnotes list'!$D$9:$E$58,2,FALSE) ) )","v":""},null,null,null,null,{"$f":"IF(TRIM(BH156)=\"\", \"\", IF(VLOOKUP(BH156,'Footnotes list'!$D$9:$E$58,2,FALSE)=0,\"\",VLOOKUP(BH156,'Footnotes list'!$D$9:$E$58,2,FALSE) ) )","v":""},null,null,null,null,{"$f":"IF(TRIM(BM156)=\"\", \"\", IF(VLOOKUP(BM156,'Footnotes list'!$D$9:$E$58,2,FALSE)=0,\"\",VLOOKUP(BM156,'Footnotes list'!$D$9:$E$58,2,FALSE) ) )","v":""},null,null,null,null,{"$f":"IF(TRIM(BR156)=\"\", \"\", IF(VLOOKUP(BR156,'Footnotes list'!$D$9:$E$58,2,FALSE)=0,\"\",VLOOKUP(BR156,'Footnotes list'!$D$9:$E$58,2,FALSE) ) )","v":""},null,null,null,null,{"$f":"IF(TRIM(BW156)=\"\", \"\", IF(VLOOKUP(BW156,'Footnotes list'!$D$9:$E$58,2,FALSE)=0,\"\",VLOOKUP(BW156,'Footnotes list'!$D$9:$E$58,2,FALSE) ) )","v":""},null,null,null,null,{"$f":"IF(TRIM(CB156)=\"\", \"\", IF(VLOOKUP(CB156,'Footnotes list'!$D$9:$E$58,2,FALSE)=0,\"\",VLOOKUP(CB156,'Footnotes list'!$D$9:$E$58,2,FALSE) ) )","v":""},null,null,null,null,{"$f":"IF(TRIM(CG156)=\"\", \"\", IF(VLOOKUP(CG156,'Footnotes list'!$D$9:$E$58,2,FALSE)=0,\"\",VLOOKUP(CG156,'Footnotes list'!$D$9:$E$58,2,FALSE) ) )","v":""},null,null,null,null,{"$f":"IF(TRIM(CL156)=\"\", \"\", IF(VLOOKUP(CL156,'Footnotes list'!$D$9:$E$58,2,FALSE)=0,\"\",VLOOKUP(CL156,'Footnotes list'!$D$9:$E$58,2,FALSE) ) )","v":""},null,null,null,null,{"$f":"IF(TRIM(CQ156)=\"\", \"\", IF(VLOOKUP(CQ156,'Footnotes list'!$D$9:$E$58,2,FALSE)=0,\"\",VLOOKUP(CQ156,'Footnotes list'!$D$9:$E$58,2,FALSE) ) )","v":""},null,null,null,null,{"$f":"IF(TRIM(CV156)=\"\", \"\", IF(VLOOKUP(CV156,'Footnotes list'!$D$9:$E$58,2,FALSE)=0,\"\",VLOOKUP(CV156,'Footnotes list'!$D$9:$E$58,2,FALSE) ) )","v":""},null,null,null,null,{"$f":"IF(TRIM(DA156)=\"\", \"\", IF(VLOOKUP(DA156,'Footnotes list'!$D$9:$E$58,2,FALSE)=0,\"\",VLOOKUP(DA156,'Footnotes list'!$D$9:$E$58,2,FALSE) ) )","v":""},null,null,null,null,{"$f":"IF(TRIM(DF156)=\"\", \"\", IF(VLOOKUP(DF156,'Footnotes list'!$D$9:$E$58,2,FALSE)=0,\"\",VLOOKUP(DF156,'Footnotes list'!$D$9:$E$58,2,FALSE) ) )","v":""},null,null,null,null,{"$f":"IF(TRIM(DK156)=\"\", \"\", IF(VLOOKUP(DK156,'Footnotes list'!$D$9:$E$58,2,FALSE)=0,\"\",VLOOKUP(DK156,'Footnotes list'!$D$9:$E$58,2,FALSE) ) )","v":""},null,null,null,null,{"$f":"IF(TRIM(DP156)=\"\", \"\", IF(VLOOKUP(DP156,'Footnotes list'!$D$9:$E$58,2,FALSE)=0,\"\",VLOOKUP(DP156,'Footnotes list'!$D$9:$E$58,2,FALSE) ) )","v":""},null,null,null,null,{"$f":"IF(TRIM(DU156)=\"\", \"\", IF(VLOOKUP(DU156,'Footnotes list'!$D$9:$E$58,2,FALSE)=0,\"\",VLOOKUP(DU156,'Footnotes list'!$D$9:$E$58,2,FALSE) ) )","v":""},null,null,null,null,{"$f":"IF(TRIM(DZ156)=\"\", \"\", IF(VLOOKUP(DZ156,'Footnotes list'!$D$9:$E$58,2,FALSE)=0,\"\",VLOOKUP(DZ156,'Footnotes list'!$D$9:$E$58,2,FALSE) ) )","v":""},null,null,null,null,{"$f":"IF(TRIM(EE156)=\"\", \"\", IF(VLOOKUP(EE156,'Footnotes list'!$D$9:$E$58,2,FALSE)=0,\"\",VLOOKUP(EE156,'Footnotes list'!$D$9:$E$58,2,FALSE) ) )","v":""},null,null,null,null,{"$f":"IF(TRIM(EJ156)=\"\", \"\", IF(VLOOKUP(EJ156,'Footnotes list'!$D$9:$E$58,2,FALSE)=0,\"\",VLOOKUP(EJ156,'Footnotes list'!$D$9:$E$58,2,FALSE) ) )","v":""},null,null,null,null,{"$f":"IF(TRIM(EO156)=\"\", \"\", IF(VLOOKUP(EO156,'Footnotes list'!$D$9:$E$58,2,FALSE)=0,\"\",VLOOKUP(EO156,'Footnotes list'!$D$9:$E$58,2,FALSE) ) )","v":""},null,null,null,null,{"$f":"IF(TRIM(ET156)=\"\", \"\", IF(VLOOKUP(ET156,'Footnotes list'!$D$9:$E$58,2,FALSE)=0,\"\",VLOOKUP(ET156,'Footnotes list'!$D$9:$E$58,2,FALSE) ) )","v":""},null,null,null,null,{"$f":"IF(TRIM(EY156)=\"\", \"\", IF(VLOOKUP(EY156,'Footnotes list'!$D$9:$E$58,2,FALSE)=0,\"\",VLOOKUP(EY156,'Footnotes list'!$D$9:$E$58,2,FALSE) ) )","v":""}]
[null,null,"E38","NMKT","non-market activities",null,null,null,null,null,{"$f":"IF(TRIM(J157)=\"\", \"\", IF(VLOOKUP(J157,'Footnotes list'!$D$9:$E$58,2,FALSE)=0,\"\",VLOOKUP(J157,'Footnotes list'!$D$9:$E$58,2,FALSE) ) )","v":""},null,null,null,null,{"$f":"IF(TRIM(O157)=\"\", \"\", IF(VLOOKUP(O157,'Footnotes list'!$D$9:$E$58,2,FALSE)=0,\"\",VLOOKUP(O157,'Footnotes list'!$D$9:$E$58,2,FALSE) ) )","v":""},null,null,null,null,{"$f":"IF(TRIM(T157)=\"\", \"\", IF(VLOOKUP(T157,'Footnotes list'!$D$9:$E$58,2,FALSE)=0,\"\",VLOOKUP(T157,'Footnotes list'!$D$9:$E$58,2,FALSE) ) )","v":""},null,null,null,null,{"$f":"IF(TRIM(Y157)=\"\", \"\", IF(VLOOKUP(Y157,'Footnotes list'!$D$9:$E$58,2,FALSE)=0,\"\",VLOOKUP(Y157,'Footnotes list'!$D$9:$E$58,2,FALSE) ) )","v":""},null,null,null,null,{"$f":"IF(TRIM(AD157)=\"\", \"\", IF(VLOOKUP(AD157,'Footnotes list'!$D$9:$E$58,2,FALSE)=0,\"\",VLOOKUP(AD157,'Footnotes list'!$D$9:$E$58,2,FALSE) ) )","v":""},null,null,null,null,{"$f":"IF(TRIM(AI157)=\"\", \"\", IF(VLOOKUP(AI157,'Footnotes list'!$D$9:$E$58,2,FALSE)=0,\"\",VLOOKUP(AI157,'Footnotes list'!$D$9:$E$58,2,FALSE) ) )","v":""},null,null,null,null,{"$f":"IF(TRIM(AN157)=\"\", \"\", IF(VLOOKUP(AN157,'Footnotes list'!$D$9:$E$58,2,FALSE)=0,\"\",VLOOKUP(AN157,'Footnotes list'!$D$9:$E$58,2,FALSE) ) )","v":""},null,null,null,null,{"$f":"IF(TRIM(AS157)=\"\", \"\", IF(VLOOKUP(AS157,'Footnotes list'!$D$9:$E$58,2,FALSE)=0,\"\",VLOOKUP(AS157,'Footnotes list'!$D$9:$E$58,2,FALSE) ) )","v":""},null,null,null,null,{"$f":"IF(TRIM(AX157)=\"\", \"\", IF(VLOOKUP(AX157,'Footnotes list'!$D$9:$E$58,2,FALSE)=0,\"\",VLOOKUP(AX157,'Footnotes list'!$D$9:$E$58,2,FALSE) ) )","v":""},null,null,null,null,{"$f":"IF(TRIM(BC157)=\"\", \"\", IF(VLOOKUP(BC157,'Footnotes list'!$D$9:$E$58,2,FALSE)=0,\"\",VLOOKUP(BC157,'Footnotes list'!$D$9:$E$58,2,FALSE) ) )","v":""},null,null,null,null,{"$f":"IF(TRIM(BH157)=\"\", \"\", IF(VLOOKUP(BH157,'Footnotes list'!$D$9:$E$58,2,FALSE)=0,\"\",VLOOKUP(BH157,'Footnotes list'!$D$9:$E$58,2,FALSE) ) )","v":""},null,null,null,null,{"$f":"IF(TRIM(BM157)=\"\", \"\", IF(VLOOKUP(BM157,'Footnotes list'!$D$9:$E$58,2,FALSE)=0,\"\",VLOOKUP(BM157,'Footnotes list'!$D$9:$E$58,2,FALSE) ) )","v":""},null,null,null,null,{"$f":"IF(TRIM(BR157)=\"\", \"\", IF(VLOOKUP(BR157,'Footnotes list'!$D$9:$E$58,2,FALSE)=0,\"\",VLOOKUP(BR157,'Footnotes list'!$D$9:$E$58,2,FALSE) ) )","v":""},null,null,null,null,{"$f":"IF(TRIM(BW157)=\"\", \"\", IF(VLOOKUP(BW157,'Footnotes list'!$D$9:$E$58,2,FALSE)=0,\"\",VLOOKUP(BW157,'Footnotes list'!$D$9:$E$58,2,FALSE) ) )","v":""},null,null,null,null,{"$f":"IF(TRIM(CB157)=\"\", \"\", IF(VLOOKUP(CB157,'Footnotes list'!$D$9:$E$58,2,FALSE)=0,\"\",VLOOKUP(CB157,'Footnotes list'!$D$9:$E$58,2,FALSE) ) )","v":""},null,null,null,null,{"$f":"IF(TRIM(CG157)=\"\", \"\", IF(VLOOKUP(CG157,'Footnotes list'!$D$9:$E$58,2,FALSE)=0,\"\",VLOOKUP(CG157,'Footnotes list'!$D$9:$E$58,2,FALSE) ) )","v":""},null,null,null,null,{"$f":"IF(TRIM(CL157)=\"\", \"\", IF(VLOOKUP(CL157,'Footnotes list'!$D$9:$E$58,2,FALSE)=0,\"\",VLOOKUP(CL157,'Footnotes list'!$D$9:$E$58,2,FALSE) ) )","v":""},null,null,null,null,{"$f":"IF(TRIM(CQ157)=\"\", \"\", IF(VLOOKUP(CQ157,'Footnotes list'!$D$9:$E$58,2,FALSE)=0,\"\",VLOOKUP(CQ157,'Footnotes list'!$D$9:$E$58,2,FALSE) ) )","v":""},null,null,null,null,{"$f":"IF(TRIM(CV157)=\"\", \"\", IF(VLOOKUP(CV157,'Footnotes list'!$D$9:$E$58,2,FALSE)=0,\"\",VLOOKUP(CV157,'Footnotes list'!$D$9:$E$58,2,FALSE) ) )","v":""},null,null,null,null,{"$f":"IF(TRIM(DA157)=\"\", \"\", IF(VLOOKUP(DA157,'Footnotes list'!$D$9:$E$58,2,FALSE)=0,\"\",VLOOKUP(DA157,'Footnotes list'!$D$9:$E$58,2,FALSE) ) )","v":""},null,null,null,null,{"$f":"IF(TRIM(DF157)=\"\", \"\", IF(VLOOKUP(DF157,'Footnotes list'!$D$9:$E$58,2,FALSE)=0,\"\",VLOOKUP(DF157,'Footnotes list'!$D$9:$E$58,2,FALSE) ) )","v":""},null,null,null,null,{"$f":"IF(TRIM(DK157)=\"\", \"\", IF(VLOOKUP(DK157,'Footnotes list'!$D$9:$E$58,2,FALSE)=0,\"\",VLOOKUP(DK157,'Footnotes list'!$D$9:$E$58,2,FALSE) ) )","v":""},null,null,null,null,{"$f":"IF(TRIM(DP157)=\"\", \"\", IF(VLOOKUP(DP157,'Footnotes list'!$D$9:$E$58,2,FALSE)=0,\"\",VLOOKUP(DP157,'Footnotes list'!$D$9:$E$58,2,FALSE) ) )","v":""},null,null,null,null,{"$f":"IF(TRIM(DU157)=\"\", \"\", IF(VLOOKUP(DU157,'Footnotes list'!$D$9:$E$58,2,FALSE)=0,\"\",VLOOKUP(DU157,'Footnotes list'!$D$9:$E$58,2,FALSE) ) )","v":""},null,null,null,null,{"$f":"IF(TRIM(DZ157)=\"\", \"\", IF(VLOOKUP(DZ157,'Footnotes list'!$D$9:$E$58,2,FALSE)=0,\"\",VLOOKUP(DZ157,'Footnotes list'!$D$9:$E$58,2,FALSE) ) )","v":""},null,null,null,null,{"$f":"IF(TRIM(EE157)=\"\", \"\", IF(VLOOKUP(EE157,'Footnotes list'!$D$9:$E$58,2,FALSE)=0,\"\",VLOOKUP(EE157,'Footnotes list'!$D$9:$E$58,2,FALSE) ) )","v":""},null,null,null,null,{"$f":"IF(TRIM(EJ157)=\"\", \"\", IF(VLOOKUP(EJ157,'Footnotes list'!$D$9:$E$58,2,FALSE)=0,\"\",VLOOKUP(EJ157,'Footnotes list'!$D$9:$E$58,2,FALSE) ) )","v":""},null,null,null,null,{"$f":"IF(TRIM(EO157)=\"\", \"\", IF(VLOOKUP(EO157,'Footnotes list'!$D$9:$E$58,2,FALSE)=0,\"\",VLOOKUP(EO157,'Footnotes list'!$D$9:$E$58,2,FALSE) ) )","v":""},null,null,null,null,{"$f":"IF(TRIM(ET157)=\"\", \"\", IF(VLOOKUP(ET157,'Footnotes list'!$D$9:$E$58,2,FALSE)=0,\"\",VLOOKUP(ET157,'Footnotes list'!$D$9:$E$58,2,FALSE) ) )","v":""},null,null,null,null,{"$f":"IF(TRIM(EY157)=\"\", \"\", IF(VLOOKUP(EY157,'Footnotes list'!$D$9:$E$58,2,FALSE)=0,\"\",VLOOKUP(EY157,'Footnotes list'!$D$9:$E$58,2,FALSE) ) )","v":""}]
[null,null,"E38","OWN_USE","activities for own final use",null,null,null,null,null,{"$f":"IF(TRIM(J158)=\"\", \"\", IF(VLOOKUP(J158,'Footnotes list'!$D$9:$E$58,2,FALSE)=0,\"\",VLOOKUP(J158,'Footnotes list'!$D$9:$E$58,2,FALSE) ) )","v":""},null,null,null,null,{"$f":"IF(TRIM(O158)=\"\", \"\", IF(VLOOKUP(O158,'Footnotes list'!$D$9:$E$58,2,FALSE)=0,\"\",VLOOKUP(O158,'Footnotes list'!$D$9:$E$58,2,FALSE) ) )","v":""},null,null,null,null,{"$f":"IF(TRIM(T158)=\"\", \"\", IF(VLOOKUP(T158,'Footnotes list'!$D$9:$E$58,2,FALSE)=0,\"\",VLOOKUP(T158,'Footnotes list'!$D$9:$E$58,2,FALSE) ) )","v":""},null,null,null,null,{"$f":"IF(TRIM(Y158)=\"\", \"\", IF(VLOOKUP(Y158,'Footnotes list'!$D$9:$E$58,2,FALSE)=0,\"\",VLOOKUP(Y158,'Footnotes list'!$D$9:$E$58,2,FALSE) ) )","v":""},null,null,null,null,{"$f":"IF(TRIM(AD158)=\"\", \"\", IF(VLOOKUP(AD158,'Footnotes list'!$D$9:$E$58,2,FALSE)=0,\"\",VLOOKUP(AD158,'Footnotes list'!$D$9:$E$58,2,FALSE) ) )","v":""},null,null,null,null,{"$f":"IF(TRIM(AI158)=\"\", \"\", IF(VLOOKUP(AI158,'Footnotes list'!$D$9:$E$58,2,FALSE)=0,\"\",VLOOKUP(AI158,'Footnotes list'!$D$9:$E$58,2,FALSE) ) )","v":""},null,null,null,null,{"$f":"IF(TRIM(AN158)=\"\", \"\", IF(VLOOKUP(AN158,'Footnotes list'!$D$9:$E$58,2,FALSE)=0,\"\",VLOOKUP(AN158,'Footnotes list'!$D$9:$E$58,2,FALSE) ) )","v":""},null,null,null,null,{"$f":"IF(TRIM(AS158)=\"\", \"\", IF(VLOOKUP(AS158,'Footnotes list'!$D$9:$E$58,2,FALSE)=0,\"\",VLOOKUP(AS158,'Footnotes list'!$D$9:$E$58,2,FALSE) ) )","v":""},null,null,null,null,{"$f":"IF(TRIM(AX158)=\"\", \"\", IF(VLOOKUP(AX158,'Footnotes list'!$D$9:$E$58,2,FALSE)=0,\"\",VLOOKUP(AX158,'Footnotes list'!$D$9:$E$58,2,FALSE) ) )","v":""},null,null,null,null,{"$f":"IF(TRIM(BC158)=\"\", \"\", IF(VLOOKUP(BC158,'Footnotes list'!$D$9:$E$58,2,FALSE)=0,\"\",VLOOKUP(BC158,'Footnotes list'!$D$9:$E$58,2,FALSE) ) )","v":""},null,null,null,null,{"$f":"IF(TRIM(BH158)=\"\", \"\", IF(VLOOKUP(BH158,'Footnotes list'!$D$9:$E$58,2,FALSE)=0,\"\",VLOOKUP(BH158,'Footnotes list'!$D$9:$E$58,2,FALSE) ) )","v":""},null,null,null,null,{"$f":"IF(TRIM(BM158)=\"\", \"\", IF(VLOOKUP(BM158,'Footnotes list'!$D$9:$E$58,2,FALSE)=0,\"\",VLOOKUP(BM158,'Footnotes list'!$D$9:$E$58,2,FALSE) ) )","v":""},null,null,null,null,{"$f":"IF(TRIM(BR158)=\"\", \"\", IF(VLOOKUP(BR158,'Footnotes list'!$D$9:$E$58,2,FALSE)=0,\"\",VLOOKUP(BR158,'Footnotes list'!$D$9:$E$58,2,FALSE) ) )","v":""},null,null,null,null,{"$f":"IF(TRIM(BW158)=\"\", \"\", IF(VLOOKUP(BW158,'Footnotes list'!$D$9:$E$58,2,FALSE)=0,\"\",VLOOKUP(BW158,'Footnotes list'!$D$9:$E$58,2,FALSE) ) )","v":""},null,null,null,null,{"$f":"IF(TRIM(CB158)=\"\", \"\", IF(VLOOKUP(CB158,'Footnotes list'!$D$9:$E$58,2,FALSE)=0,\"\",VLOOKUP(CB158,'Footnotes list'!$D$9:$E$58,2,FALSE) ) )","v":""},null,null,null,null,{"$f":"IF(TRIM(CG158)=\"\", \"\", IF(VLOOKUP(CG158,'Footnotes list'!$D$9:$E$58,2,FALSE)=0,\"\",VLOOKUP(CG158,'Footnotes list'!$D$9:$E$58,2,FALSE) ) )","v":""},null,null,null,null,{"$f":"IF(TRIM(CL158)=\"\", \"\", IF(VLOOKUP(CL158,'Footnotes list'!$D$9:$E$58,2,FALSE)=0,\"\",VLOOKUP(CL158,'Footnotes list'!$D$9:$E$58,2,FALSE) ) )","v":""},null,null,null,null,{"$f":"IF(TRIM(CQ158)=\"\", \"\", IF(VLOOKUP(CQ158,'Footnotes list'!$D$9:$E$58,2,FALSE)=0,\"\",VLOOKUP(CQ158,'Footnotes list'!$D$9:$E$58,2,FALSE) ) )","v":""},null,null,null,null,{"$f":"IF(TRIM(CV158)=\"\", \"\", IF(VLOOKUP(CV158,'Footnotes list'!$D$9:$E$58,2,FALSE)=0,\"\",VLOOKUP(CV158,'Footnotes list'!$D$9:$E$58,2,FALSE) ) )","v":""},null,null,null,null,{"$f":"IF(TRIM(DA158)=\"\", \"\", IF(VLOOKUP(DA158,'Footnotes list'!$D$9:$E$58,2,FALSE)=0,\"\",VLOOKUP(DA158,'Footnotes list'!$D$9:$E$58,2,FALSE) ) )","v":""},null,null,null,null,{"$f":"IF(TRIM(DF158)=\"\", \"\", IF(VLOOKUP(DF158,'Footnotes list'!$D$9:$E$58,2,FALSE)=0,\"\",VLOOKUP(DF158,'Footnotes list'!$D$9:$E$58,2,FALSE) ) )","v":""},null,null,null,null,{"$f":"IF(TRIM(DK158)=\"\", \"\", IF(VLOOKUP(DK158,'Footnotes list'!$D$9:$E$58,2,FALSE)=0,\"\",VLOOKUP(DK158,'Footnotes list'!$D$9:$E$58,2,FALSE) ) )","v":""},null,null,null,null,{"$f":"IF(TRIM(DP158)=\"\", \"\", IF(VLOOKUP(DP158,'Footnotes list'!$D$9:$E$58,2,FALSE)=0,\"\",VLOOKUP(DP158,'Footnotes list'!$D$9:$E$58,2,FALSE) ) )","v":""},null,null,null,null,{"$f":"IF(TRIM(DU158)=\"\", \"\", IF(VLOOKUP(DU158,'Footnotes list'!$D$9:$E$58,2,FALSE)=0,\"\",VLOOKUP(DU158,'Footnotes list'!$D$9:$E$58,2,FALSE) ) )","v":""},null,null,null,null,{"$f":"IF(TRIM(DZ158)=\"\", \"\", IF(VLOOKUP(DZ158,'Footnotes list'!$D$9:$E$58,2,FALSE)=0,\"\",VLOOKUP(DZ158,'Footnotes list'!$D$9:$E$58,2,FALSE) ) )","v":""},null,null,null,null,{"$f":"IF(TRIM(EE158)=\"\", \"\", IF(VLOOKUP(EE158,'Footnotes list'!$D$9:$E$58,2,FALSE)=0,\"\",VLOOKUP(EE158,'Footnotes list'!$D$9:$E$58,2,FALSE) ) )","v":""},null,null,null,null,{"$f":"IF(TRIM(EJ158)=\"\", \"\", IF(VLOOKUP(EJ158,'Footnotes list'!$D$9:$E$58,2,FALSE)=0,\"\",VLOOKUP(EJ158,'Footnotes list'!$D$9:$E$58,2,FALSE) ) )","v":""},null,null,null,null,{"$f":"IF(TRIM(EO158)=\"\", \"\", IF(VLOOKUP(EO158,'Footnotes list'!$D$9:$E$58,2,FALSE)=0,\"\",VLOOKUP(EO158,'Footnotes list'!$D$9:$E$58,2,FALSE) ) )","v":""},null,null,null,null,{"$f":"IF(TRIM(ET158)=\"\", \"\", IF(VLOOKUP(ET158,'Footnotes list'!$D$9:$E$58,2,FALSE)=0,\"\",VLOOKUP(ET158,'Footnotes list'!$D$9:$E$58,2,FALSE) ) )","v":""},null,null,null,null,{"$f":"IF(TRIM(EY158)=\"\", \"\", IF(VLOOKUP(EY158,'Footnotes list'!$D$9:$E$58,2,FALSE)=0,\"\",VLOOKUP(EY158,'Footnotes list'!$D$9:$E$58,2,FALSE) ) )","v":""}]
[null,null,"E38","MKT","market activities, including:",null,null,null,null,null,{"$f":"IF(TRIM(J159)=\"\", \"\", IF(VLOOKUP(J159,'Footnotes list'!$D$9:$E$58,2,FALSE)=0,\"\",VLOOKUP(J159,'Footnotes list'!$D$9:$E$58,2,FALSE) ) )","v":""},null,null,null,null,{"$f":"IF(TRIM(O159)=\"\", \"\", IF(VLOOKUP(O159,'Footnotes list'!$D$9:$E$58,2,FALSE)=0,\"\",VLOOKUP(O159,'Footnotes list'!$D$9:$E$58,2,FALSE) ) )","v":""},null,null,null,null,{"$f":"IF(TRIM(T159)=\"\", \"\", IF(VLOOKUP(T159,'Footnotes list'!$D$9:$E$58,2,FALSE)=0,\"\",VLOOKUP(T159,'Footnotes list'!$D$9:$E$58,2,FALSE) ) )","v":""},null,null,null,null,{"$f":"IF(TRIM(Y159)=\"\", \"\", IF(VLOOKUP(Y159,'Footnotes list'!$D$9:$E$58,2,FALSE)=0,\"\",VLOOKUP(Y159,'Footnotes list'!$D$9:$E$58,2,FALSE) ) )","v":""},null,null,null,null,{"$f":"IF(TRIM(AD159)=\"\", \"\", IF(VLOOKUP(AD159,'Footnotes list'!$D$9:$E$58,2,FALSE)=0,\"\",VLOOKUP(AD159,'Footnotes list'!$D$9:$E$58,2,FALSE) ) )","v":""},null,null,null,null,{"$f":"IF(TRIM(AI159)=\"\", \"\", IF(VLOOKUP(AI159,'Footnotes list'!$D$9:$E$58,2,FALSE)=0,\"\",VLOOKUP(AI159,'Footnotes list'!$D$9:$E$58,2,FALSE) ) )","v":""},null,null,null,null,{"$f":"IF(TRIM(AN159)=\"\", \"\", IF(VLOOKUP(AN159,'Footnotes list'!$D$9:$E$58,2,FALSE)=0,\"\",VLOOKUP(AN159,'Footnotes list'!$D$9:$E$58,2,FALSE) ) )","v":""},null,null,null,null,{"$f":"IF(TRIM(AS159)=\"\", \"\", IF(VLOOKUP(AS159,'Footnotes list'!$D$9:$E$58,2,FALSE)=0,\"\",VLOOKUP(AS159,'Footnotes list'!$D$9:$E$58,2,FALSE) ) )","v":""},null,null,null,null,{"$f":"IF(TRIM(AX159)=\"\", \"\", IF(VLOOKUP(AX159,'Footnotes list'!$D$9:$E$58,2,FALSE)=0,\"\",VLOOKUP(AX159,'Footnotes list'!$D$9:$E$58,2,FALSE) ) )","v":""},null,null,null,null,{"$f":"IF(TRIM(BC159)=\"\", \"\", IF(VLOOKUP(BC159,'Footnotes list'!$D$9:$E$58,2,FALSE)=0,\"\",VLOOKUP(BC159,'Footnotes list'!$D$9:$E$58,2,FALSE) ) )","v":""},null,null,null,null,{"$f":"IF(TRIM(BH159)=\"\", \"\", IF(VLOOKUP(BH159,'Footnotes list'!$D$9:$E$58,2,FALSE)=0,\"\",VLOOKUP(BH159,'Footnotes list'!$D$9:$E$58,2,FALSE) ) )","v":""},null,null,null,null,{"$f":"IF(TRIM(BM159)=\"\", \"\", IF(VLOOKUP(BM159,'Footnotes list'!$D$9:$E$58,2,FALSE)=0,\"\",VLOOKUP(BM159,'Footnotes list'!$D$9:$E$58,2,FALSE) ) )","v":""},null,null,null,null,{"$f":"IF(TRIM(BR159)=\"\", \"\", IF(VLOOKUP(BR159,'Footnotes list'!$D$9:$E$58,2,FALSE)=0,\"\",VLOOKUP(BR159,'Footnotes list'!$D$9:$E$58,2,FALSE) ) )","v":""},null,null,null,null,{"$f":"IF(TRIM(BW159)=\"\", \"\", IF(VLOOKUP(BW159,'Footnotes list'!$D$9:$E$58,2,FALSE)=0,\"\",VLOOKUP(BW159,'Footnotes list'!$D$9:$E$58,2,FALSE) ) )","v":""},null,null,null,null,{"$f":"IF(TRIM(CB159)=\"\", \"\", IF(VLOOKUP(CB159,'Footnotes list'!$D$9:$E$58,2,FALSE)=0,\"\",VLOOKUP(CB159,'Footnotes list'!$D$9:$E$58,2,FALSE) ) )","v":""},null,null,null,null,{"$f":"IF(TRIM(CG159)=\"\", \"\", IF(VLOOKUP(CG159,'Footnotes list'!$D$9:$E$58,2,FALSE)=0,\"\",VLOOKUP(CG159,'Footnotes list'!$D$9:$E$58,2,FALSE) ) )","v":""},null,null,null,null,{"$f":"IF(TRIM(CL159)=\"\", \"\", IF(VLOOKUP(CL159,'Footnotes list'!$D$9:$E$58,2,FALSE)=0,\"\",VLOOKUP(CL159,'Footnotes list'!$D$9:$E$58,2,FALSE) ) )","v":""},null,null,null,null,{"$f":"IF(TRIM(CQ159)=\"\", \"\", IF(VLOOKUP(CQ159,'Footnotes list'!$D$9:$E$58,2,FALSE)=0,\"\",VLOOKUP(CQ159,'Footnotes list'!$D$9:$E$58,2,FALSE) ) )","v":""},null,null,null,null,{"$f":"IF(TRIM(CV159)=\"\", \"\", IF(VLOOKUP(CV159,'Footnotes list'!$D$9:$E$58,2,FALSE)=0,\"\",VLOOKUP(CV159,'Footnotes list'!$D$9:$E$58,2,FALSE) ) )","v":""},null,null,null,null,{"$f":"IF(TRIM(DA159)=\"\", \"\", IF(VLOOKUP(DA159,'Footnotes list'!$D$9:$E$58,2,FALSE)=0,\"\",VLOOKUP(DA159,'Footnotes list'!$D$9:$E$58,2,FALSE) ) )","v":""},null,null,null,null,{"$f":"IF(TRIM(DF159)=\"\", \"\", IF(VLOOKUP(DF159,'Footnotes list'!$D$9:$E$58,2,FALSE)=0,\"\",VLOOKUP(DF159,'Footnotes list'!$D$9:$E$58,2,FALSE) ) )","v":""},null,null,null,null,{"$f":"IF(TRIM(DK159)=\"\", \"\", IF(VLOOKUP(DK159,'Footnotes list'!$D$9:$E$58,2,FALSE)=0,\"\",VLOOKUP(DK159,'Footnotes list'!$D$9:$E$58,2,FALSE) ) )","v":""},null,null,null,null,{"$f":"IF(TRIM(DP159)=\"\", \"\", IF(VLOOKUP(DP159,'Footnotes list'!$D$9:$E$58,2,FALSE)=0,\"\",VLOOKUP(DP159,'Footnotes list'!$D$9:$E$58,2,FALSE) ) )","v":""},null,null,null,null,{"$f":"IF(TRIM(DU159)=\"\", \"\", IF(VLOOKUP(DU159,'Footnotes list'!$D$9:$E$58,2,FALSE)=0,\"\",VLOOKUP(DU159,'Footnotes list'!$D$9:$E$58,2,FALSE) ) )","v":""},null,null,null,null,{"$f":"IF(TRIM(DZ159)=\"\", \"\", IF(VLOOKUP(DZ159,'Footnotes list'!$D$9:$E$58,2,FALSE)=0,\"\",VLOOKUP(DZ159,'Footnotes list'!$D$9:$E$58,2,FALSE) ) )","v":""},null,null,null,null,{"$f":"IF(TRIM(EE159)=\"\", \"\", IF(VLOOKUP(EE159,'Footnotes list'!$D$9:$E$58,2,FALSE)=0,\"\",VLOOKUP(EE159,'Footnotes list'!$D$9:$E$58,2,FALSE) ) )","v":""},null,null,null,null,{"$f":"IF(TRIM(EJ159)=\"\", \"\", IF(VLOOKUP(EJ159,'Footnotes list'!$D$9:$E$58,2,FALSE)=0,\"\",VLOOKUP(EJ159,'Footnotes list'!$D$9:$E$58,2,FALSE) ) )","v":""},null,null,null,null,{"$f":"IF(TRIM(EO159)=\"\", \"\", IF(VLOOKUP(EO159,'Footnotes list'!$D$9:$E$58,2,FALSE)=0,\"\",VLOOKUP(EO159,'Footnotes list'!$D$9:$E$58,2,FALSE) ) )","v":""},null,null,null,null,{"$f":"IF(TRIM(ET159)=\"\", \"\", IF(VLOOKUP(ET159,'Footnotes list'!$D$9:$E$58,2,FALSE)=0,\"\",VLOOKUP(ET159,'Footnotes list'!$D$9:$E$58,2,FALSE) ) )","v":""},null,null,null,null,{"$f":"IF(TRIM(EY159)=\"\", \"\", IF(VLOOKUP(EY159,'Footnotes list'!$D$9:$E$58,2,FALSE)=0,\"\",VLOOKUP(EY159,'Footnotes list'!$D$9:$E$58,2,FALSE) ) )","v":""}]
[null,null,"E38","ES_CS","environmental specific services",null,null,null,null,null,{"$f":"IF(TRIM(J160)=\"\", \"\", IF(VLOOKUP(J160,'Footnotes list'!$D$9:$E$58,2,FALSE)=0,\"\",VLOOKUP(J160,'Footnotes list'!$D$9:$E$58,2,FALSE) ) )","v":""},null,null,null,null,{"$f":"IF(TRIM(O160)=\"\", \"\", IF(VLOOKUP(O160,'Footnotes list'!$D$9:$E$58,2,FALSE)=0,\"\",VLOOKUP(O160,'Footnotes list'!$D$9:$E$58,2,FALSE) ) )","v":""},null,null,null,null,{"$f":"IF(TRIM(T160)=\"\", \"\", IF(VLOOKUP(T160,'Footnotes list'!$D$9:$E$58,2,FALSE)=0,\"\",VLOOKUP(T160,'Footnotes list'!$D$9:$E$58,2,FALSE) ) )","v":""},null,null,null,null,{"$f":"IF(TRIM(Y160)=\"\", \"\", IF(VLOOKUP(Y160,'Footnotes list'!$D$9:$E$58,2,FALSE)=0,\"\",VLOOKUP(Y160,'Footnotes list'!$D$9:$E$58,2,FALSE) ) )","v":""},null,null,null,null,{"$f":"IF(TRIM(AD160)=\"\", \"\", IF(VLOOKUP(AD160,'Footnotes list'!$D$9:$E$58,2,FALSE)=0,\"\",VLOOKUP(AD160,'Footnotes list'!$D$9:$E$58,2,FALSE) ) )","v":""},null,null,null,null,{"$f":"IF(TRIM(AI160)=\"\", \"\", IF(VLOOKUP(AI160,'Footnotes list'!$D$9:$E$58,2,FALSE)=0,\"\",VLOOKUP(AI160,'Footnotes list'!$D$9:$E$58,2,FALSE) ) )","v":""},null,null,null,null,{"$f":"IF(TRIM(AN160)=\"\", \"\", IF(VLOOKUP(AN160,'Footnotes list'!$D$9:$E$58,2,FALSE)=0,\"\",VLOOKUP(AN160,'Footnotes list'!$D$9:$E$58,2,FALSE) ) )","v":""},null,null,null,null,{"$f":"IF(TRIM(AS160)=\"\", \"\", IF(VLOOKUP(AS160,'Footnotes list'!$D$9:$E$58,2,FALSE)=0,\"\",VLOOKUP(AS160,'Footnotes list'!$D$9:$E$58,2,FALSE) ) )","v":""},null,null,null,null,{"$f":"IF(TRIM(AX160)=\"\", \"\", IF(VLOOKUP(AX160,'Footnotes list'!$D$9:$E$58,2,FALSE)=0,\"\",VLOOKUP(AX160,'Footnotes list'!$D$9:$E$58,2,FALSE) ) )","v":""},null,null,null,null,{"$f":"IF(TRIM(BC160)=\"\", \"\", IF(VLOOKUP(BC160,'Footnotes list'!$D$9:$E$58,2,FALSE)=0,\"\",VLOOKUP(BC160,'Footnotes list'!$D$9:$E$58,2,FALSE) ) )","v":""},null,null,null,null,{"$f":"IF(TRIM(BH160)=\"\", \"\", IF(VLOOKUP(BH160,'Footnotes list'!$D$9:$E$58,2,FALSE)=0,\"\",VLOOKUP(BH160,'Footnotes list'!$D$9:$E$58,2,FALSE) ) )","v":""},null,null,null,null,{"$f":"IF(TRIM(BM160)=\"\", \"\", IF(VLOOKUP(BM160,'Footnotes list'!$D$9:$E$58,2,FALSE)=0,\"\",VLOOKUP(BM160,'Footnotes list'!$D$9:$E$58,2,FALSE) ) )","v":""},null,null,null,null,{"$f":"IF(TRIM(BR160)=\"\", \"\", IF(VLOOKUP(BR160,'Footnotes list'!$D$9:$E$58,2,FALSE)=0,\"\",VLOOKUP(BR160,'Footnotes list'!$D$9:$E$58,2,FALSE) ) )","v":""},null,null,null,null,{"$f":"IF(TRIM(BW160)=\"\", \"\", IF(VLOOKUP(BW160,'Footnotes list'!$D$9:$E$58,2,FALSE)=0,\"\",VLOOKUP(BW160,'Footnotes list'!$D$9:$E$58,2,FALSE) ) )","v":""},null,null,null,null,{"$f":"IF(TRIM(CB160)=\"\", \"\", IF(VLOOKUP(CB160,'Footnotes list'!$D$9:$E$58,2,FALSE)=0,\"\",VLOOKUP(CB160,'Footnotes list'!$D$9:$E$58,2,FALSE) ) )","v":""},null,null,null,null,{"$f":"IF(TRIM(CG160)=\"\", \"\", IF(VLOOKUP(CG160,'Footnotes list'!$D$9:$E$58,2,FALSE)=0,\"\",VLOOKUP(CG160,'Footnotes list'!$D$9:$E$58,2,FALSE) ) )","v":""},null,null,null,null,{"$f":"IF(TRIM(CL160)=\"\", \"\", IF(VLOOKUP(CL160,'Footnotes list'!$D$9:$E$58,2,FALSE)=0,\"\",VLOOKUP(CL160,'Footnotes list'!$D$9:$E$58,2,FALSE) ) )","v":""},null,null,null,null,{"$f":"IF(TRIM(CQ160)=\"\", \"\", IF(VLOOKUP(CQ160,'Footnotes list'!$D$9:$E$58,2,FALSE)=0,\"\",VLOOKUP(CQ160,'Footnotes list'!$D$9:$E$58,2,FALSE) ) )","v":""},null,null,null,null,{"$f":"IF(TRIM(CV160)=\"\", \"\", IF(VLOOKUP(CV160,'Footnotes list'!$D$9:$E$58,2,FALSE)=0,\"\",VLOOKUP(CV160,'Footnotes list'!$D$9:$E$58,2,FALSE) ) )","v":""},null,null,null,null,{"$f":"IF(TRIM(DA160)=\"\", \"\", IF(VLOOKUP(DA160,'Footnotes list'!$D$9:$E$58,2,FALSE)=0,\"\",VLOOKUP(DA160,'Footnotes list'!$D$9:$E$58,2,FALSE) ) )","v":""},null,null,null,null,{"$f":"IF(TRIM(DF160)=\"\", \"\", IF(VLOOKUP(DF160,'Footnotes list'!$D$9:$E$58,2,FALSE)=0,\"\",VLOOKUP(DF160,'Footnotes list'!$D$9:$E$58,2,FALSE) ) )","v":""},null,null,null,null,{"$f":"IF(TRIM(DK160)=\"\", \"\", IF(VLOOKUP(DK160,'Footnotes list'!$D$9:$E$58,2,FALSE)=0,\"\",VLOOKUP(DK160,'Footnotes list'!$D$9:$E$58,2,FALSE) ) )","v":""},null,null,null,null,{"$f":"IF(TRIM(DP160)=\"\", \"\", IF(VLOOKUP(DP160,'Footnotes list'!$D$9:$E$58,2,FALSE)=0,\"\",VLOOKUP(DP160,'Footnotes list'!$D$9:$E$58,2,FALSE) ) )","v":""},null,null,null,null,{"$f":"IF(TRIM(DU160)=\"\", \"\", IF(VLOOKUP(DU160,'Footnotes list'!$D$9:$E$58,2,FALSE)=0,\"\",VLOOKUP(DU160,'Footnotes list'!$D$9:$E$58,2,FALSE) ) )","v":""},null,null,null,null,{"$f":"IF(TRIM(DZ160)=\"\", \"\", IF(VLOOKUP(DZ160,'Footnotes list'!$D$9:$E$58,2,FALSE)=0,\"\",VLOOKUP(DZ160,'Footnotes list'!$D$9:$E$58,2,FALSE) ) )","v":""},null,null,null,null,{"$f":"IF(TRIM(EE160)=\"\", \"\", IF(VLOOKUP(EE160,'Footnotes list'!$D$9:$E$58,2,FALSE)=0,\"\",VLOOKUP(EE160,'Footnotes list'!$D$9:$E$58,2,FALSE) ) )","v":""},null,null,null,null,{"$f":"IF(TRIM(EJ160)=\"\", \"\", IF(VLOOKUP(EJ160,'Footnotes list'!$D$9:$E$58,2,FALSE)=0,\"\",VLOOKUP(EJ160,'Footnotes list'!$D$9:$E$58,2,FALSE) ) )","v":""},null,null,null,null,{"$f":"IF(TRIM(EO160)=\"\", \"\", IF(VLOOKUP(EO160,'Footnotes list'!$D$9:$E$58,2,FALSE)=0,\"\",VLOOKUP(EO160,'Footnotes list'!$D$9:$E$58,2,FALSE) ) )","v":""},null,null,null,null,{"$f":"IF(TRIM(ET160)=\"\", \"\", IF(VLOOKUP(ET160,'Footnotes list'!$D$9:$E$58,2,FALSE)=0,\"\",VLOOKUP(ET160,'Footnotes list'!$D$9:$E$58,2,FALSE) ) )","v":""},null,null,null,null,{"$f":"IF(TRIM(EY160)=\"\", \"\", IF(VLOOKUP(EY160,'Footnotes list'!$D$9:$E$58,2,FALSE)=0,\"\",VLOOKUP(EY160,'Footnotes list'!$D$9:$E$58,2,FALSE) ) )","v":""}]
[null,null,"E38","C_REP","cleaner and resource efficient products",null,null,null,null,null,{"$f":"IF(TRIM(J161)=\"\", \"\", IF(VLOOKUP(J161,'Footnotes list'!$D$9:$E$58,2,FALSE)=0,\"\",VLOOKUP(J161,'Footnotes list'!$D$9:$E$58,2,FALSE) ) )","v":""},null,null,null,null,{"$f":"IF(TRIM(O161)=\"\", \"\", IF(VLOOKUP(O161,'Footnotes list'!$D$9:$E$58,2,FALSE)=0,\"\",VLOOKUP(O161,'Footnotes list'!$D$9:$E$58,2,FALSE) ) )","v":""},null,null,null,null,{"$f":"IF(TRIM(T161)=\"\", \"\", IF(VLOOKUP(T161,'Footnotes list'!$D$9:$E$58,2,FALSE)=0,\"\",VLOOKUP(T161,'Footnotes list'!$D$9:$E$58,2,FALSE) ) )","v":""},null,null,null,null,{"$f":"IF(TRIM(Y161)=\"\", \"\", IF(VLOOKUP(Y161,'Footnotes list'!$D$9:$E$58,2,FALSE)=0,\"\",VLOOKUP(Y161,'Footnotes list'!$D$9:$E$58,2,FALSE) ) )","v":""},null,null,null,null,{"$f":"IF(TRIM(AD161)=\"\", \"\", IF(VLOOKUP(AD161,'Footnotes list'!$D$9:$E$58,2,FALSE)=0,\"\",VLOOKUP(AD161,'Footnotes list'!$D$9:$E$58,2,FALSE) ) )","v":""},null,null,null,null,{"$f":"IF(TRIM(AI161)=\"\", \"\", IF(VLOOKUP(AI161,'Footnotes list'!$D$9:$E$58,2,FALSE)=0,\"\",VLOOKUP(AI161,'Footnotes list'!$D$9:$E$58,2,FALSE) ) )","v":""},null,null,null,null,{"$f":"IF(TRIM(AN161)=\"\", \"\", IF(VLOOKUP(AN161,'Footnotes list'!$D$9:$E$58,2,FALSE)=0,\"\",VLOOKUP(AN161,'Footnotes list'!$D$9:$E$58,2,FALSE) ) )","v":""},null,null,null,null,{"$f":"IF(TRIM(AS161)=\"\", \"\", IF(VLOOKUP(AS161,'Footnotes list'!$D$9:$E$58,2,FALSE)=0,\"\",VLOOKUP(AS161,'Footnotes list'!$D$9:$E$58,2,FALSE) ) )","v":""},null,null,null,null,{"$f":"IF(TRIM(AX161)=\"\", \"\", IF(VLOOKUP(AX161,'Footnotes list'!$D$9:$E$58,2,FALSE)=0,\"\",VLOOKUP(AX161,'Footnotes list'!$D$9:$E$58,2,FALSE) ) )","v":""},null,null,null,null,{"$f":"IF(TRIM(BC161)=\"\", \"\", IF(VLOOKUP(BC161,'Footnotes list'!$D$9:$E$58,2,FALSE)=0,\"\",VLOOKUP(BC161,'Footnotes list'!$D$9:$E$58,2,FALSE) ) )","v":""},null,null,null,null,{"$f":"IF(TRIM(BH161)=\"\", \"\", IF(VLOOKUP(BH161,'Footnotes list'!$D$9:$E$58,2,FALSE)=0,\"\",VLOOKUP(BH161,'Footnotes list'!$D$9:$E$58,2,FALSE) ) )","v":""},null,null,null,null,{"$f":"IF(TRIM(BM161)=\"\", \"\", IF(VLOOKUP(BM161,'Footnotes list'!$D$9:$E$58,2,FALSE)=0,\"\",VLOOKUP(BM161,'Footnotes list'!$D$9:$E$58,2,FALSE) ) )","v":""},null,null,null,null,{"$f":"IF(TRIM(BR161)=\"\", \"\", IF(VLOOKUP(BR161,'Footnotes list'!$D$9:$E$58,2,FALSE)=0,\"\",VLOOKUP(BR161,'Footnotes list'!$D$9:$E$58,2,FALSE) ) )","v":""},null,null,null,null,{"$f":"IF(TRIM(BW161)=\"\", \"\", IF(VLOOKUP(BW161,'Footnotes list'!$D$9:$E$58,2,FALSE)=0,\"\",VLOOKUP(BW161,'Footnotes list'!$D$9:$E$58,2,FALSE) ) )","v":""},null,null,null,null,{"$f":"IF(TRIM(CB161)=\"\", \"\", IF(VLOOKUP(CB161,'Footnotes list'!$D$9:$E$58,2,FALSE)=0,\"\",VLOOKUP(CB161,'Footnotes list'!$D$9:$E$58,2,FALSE) ) )","v":""},null,null,null,null,{"$f":"IF(TRIM(CG161)=\"\", \"\", IF(VLOOKUP(CG161,'Footnotes list'!$D$9:$E$58,2,FALSE)=0,\"\",VLOOKUP(CG161,'Footnotes list'!$D$9:$E$58,2,FALSE) ) )","v":""},null,null,null,null,{"$f":"IF(TRIM(CL161)=\"\", \"\", IF(VLOOKUP(CL161,'Footnotes list'!$D$9:$E$58,2,FALSE)=0,\"\",VLOOKUP(CL161,'Footnotes list'!$D$9:$E$58,2,FALSE) ) )","v":""},null,null,null,null,{"$f":"IF(TRIM(CQ161)=\"\", \"\", IF(VLOOKUP(CQ161,'Footnotes list'!$D$9:$E$58,2,FALSE)=0,\"\",VLOOKUP(CQ161,'Footnotes list'!$D$9:$E$58,2,FALSE) ) )","v":""},null,null,null,null,{"$f":"IF(TRIM(CV161)=\"\", \"\", IF(VLOOKUP(CV161,'Footnotes list'!$D$9:$E$58,2,FALSE)=0,\"\",VLOOKUP(CV161,'Footnotes list'!$D$9:$E$58,2,FALSE) ) )","v":""},null,null,null,null,{"$f":"IF(TRIM(DA161)=\"\", \"\", IF(VLOOKUP(DA161,'Footnotes list'!$D$9:$E$58,2,FALSE)=0,\"\",VLOOKUP(DA161,'Footnotes list'!$D$9:$E$58,2,FALSE) ) )","v":""},null,null,null,null,{"$f":"IF(TRIM(DF161)=\"\", \"\", IF(VLOOKUP(DF161,'Footnotes list'!$D$9:$E$58,2,FALSE)=0,\"\",VLOOKUP(DF161,'Footnotes list'!$D$9:$E$58,2,FALSE) ) )","v":""},null,null,null,null,{"$f":"IF(TRIM(DK161)=\"\", \"\", IF(VLOOKUP(DK161,'Footnotes list'!$D$9:$E$58,2,FALSE)=0,\"\",VLOOKUP(DK161,'Footnotes list'!$D$9:$E$58,2,FALSE) ) )","v":""},null,null,null,null,{"$f":"IF(TRIM(DP161)=\"\", \"\", IF(VLOOKUP(DP161,'Footnotes list'!$D$9:$E$58,2,FALSE)=0,\"\",VLOOKUP(DP161,'Footnotes list'!$D$9:$E$58,2,FALSE) ) )","v":""},null,null,null,null,{"$f":"IF(TRIM(DU161)=\"\", \"\", IF(VLOOKUP(DU161,'Footnotes list'!$D$9:$E$58,2,FALSE)=0,\"\",VLOOKUP(DU161,'Footnotes list'!$D$9:$E$58,2,FALSE) ) )","v":""},null,null,null,null,{"$f":"IF(TRIM(DZ161)=\"\", \"\", IF(VLOOKUP(DZ161,'Footnotes list'!$D$9:$E$58,2,FALSE)=0,\"\",VLOOKUP(DZ161,'Footnotes list'!$D$9:$E$58,2,FALSE) ) )","v":""},null,null,null,null,{"$f":"IF(TRIM(EE161)=\"\", \"\", IF(VLOOKUP(EE161,'Footnotes list'!$D$9:$E$58,2,FALSE)=0,\"\",VLOOKUP(EE161,'Footnotes list'!$D$9:$E$58,2,FALSE) ) )","v":""},null,null,null,null,{"$f":"IF(TRIM(EJ161)=\"\", \"\", IF(VLOOKUP(EJ161,'Footnotes list'!$D$9:$E$58,2,FALSE)=0,\"\",VLOOKUP(EJ161,'Footnotes list'!$D$9:$E$58,2,FALSE) ) )","v":""},null,null,null,null,{"$f":"IF(TRIM(EO161)=\"\", \"\", IF(VLOOKUP(EO161,'Footnotes list'!$D$9:$E$58,2,FALSE)=0,\"\",VLOOKUP(EO161,'Footnotes list'!$D$9:$E$58,2,FALSE) ) )","v":""},null,null,null,null,{"$f":"IF(TRIM(ET161)=\"\", \"\", IF(VLOOKUP(ET161,'Footnotes list'!$D$9:$E$58,2,FALSE)=0,\"\",VLOOKUP(ET161,'Footnotes list'!$D$9:$E$58,2,FALSE) ) )","v":""},null,null,null,null,{"$f":"IF(TRIM(EY161)=\"\", \"\", IF(VLOOKUP(EY161,'Footnotes list'!$D$9:$E$58,2,FALSE)=0,\"\",VLOOKUP(EY161,'Footnotes list'!$D$9:$E$58,2,FALSE) ) )","v":""}]
[null,null,"E39","TOT_EGSS","Total E39 - Remediation activities and other waste management services, of which:",null,null,null,null,null,{"$f":"IF(TRIM(J162)=\"\", \"\", IF(VLOOKUP(J162,'Footnotes list'!$D$9:$E$58,2,FALSE)=0,\"\",VLOOKUP(J162,'Footnotes list'!$D$9:$E$58,2,FALSE) ) )","v":""},null,null,null,null,{"$f":"IF(TRIM(O162)=\"\", \"\", IF(VLOOKUP(O162,'Footnotes list'!$D$9:$E$58,2,FALSE)=0,\"\",VLOOKUP(O162,'Footnotes list'!$D$9:$E$58,2,FALSE) ) )","v":""},null,null,null,null,{"$f":"IF(TRIM(T162)=\"\", \"\", IF(VLOOKUP(T162,'Footnotes list'!$D$9:$E$58,2,FALSE)=0,\"\",VLOOKUP(T162,'Footnotes list'!$D$9:$E$58,2,FALSE) ) )","v":""},null,null,null,null,{"$f":"IF(TRIM(Y162)=\"\", \"\", IF(VLOOKUP(Y162,'Footnotes list'!$D$9:$E$58,2,FALSE)=0,\"\",VLOOKUP(Y162,'Footnotes list'!$D$9:$E$58,2,FALSE) ) )","v":""},null,null,null,null,{"$f":"IF(TRIM(AD162)=\"\", \"\", IF(VLOOKUP(AD162,'Footnotes list'!$D$9:$E$58,2,FALSE)=0,\"\",VLOOKUP(AD162,'Footnotes list'!$D$9:$E$58,2,FALSE) ) )","v":""},null,null,null,null,{"$f":"IF(TRIM(AI162)=\"\", \"\", IF(VLOOKUP(AI162,'Footnotes list'!$D$9:$E$58,2,FALSE)=0,\"\",VLOOKUP(AI162,'Footnotes list'!$D$9:$E$58,2,FALSE) ) )","v":""},null,null,null,null,{"$f":"IF(TRIM(AN162)=\"\", \"\", IF(VLOOKUP(AN162,'Footnotes list'!$D$9:$E$58,2,FALSE)=0,\"\",VLOOKUP(AN162,'Footnotes list'!$D$9:$E$58,2,FALSE) ) )","v":""},null,null,null,null,{"$f":"IF(TRIM(AS162)=\"\", \"\", IF(VLOOKUP(AS162,'Footnotes list'!$D$9:$E$58,2,FALSE)=0,\"\",VLOOKUP(AS162,'Footnotes list'!$D$9:$E$58,2,FALSE) ) )","v":""},null,null,null,null,{"$f":"IF(TRIM(AX162)=\"\", \"\", IF(VLOOKUP(AX162,'Footnotes list'!$D$9:$E$58,2,FALSE)=0,\"\",VLOOKUP(AX162,'Footnotes list'!$D$9:$E$58,2,FALSE) ) )","v":""},null,null,null,null,{"$f":"IF(TRIM(BC162)=\"\", \"\", IF(VLOOKUP(BC162,'Footnotes list'!$D$9:$E$58,2,FALSE)=0,\"\",VLOOKUP(BC162,'Footnotes list'!$D$9:$E$58,2,FALSE) ) )","v":""},null,null,null,null,{"$f":"IF(TRIM(BH162)=\"\", \"\", IF(VLOOKUP(BH162,'Footnotes list'!$D$9:$E$58,2,FALSE)=0,\"\",VLOOKUP(BH162,'Footnotes list'!$D$9:$E$58,2,FALSE) ) )","v":""},null,null,null,null,{"$f":"IF(TRIM(BM162)=\"\", \"\", IF(VLOOKUP(BM162,'Footnotes list'!$D$9:$E$58,2,FALSE)=0,\"\",VLOOKUP(BM162,'Footnotes list'!$D$9:$E$58,2,FALSE) ) )","v":""},null,null,null,null,{"$f":"IF(TRIM(BR162)=\"\", \"\", IF(VLOOKUP(BR162,'Footnotes list'!$D$9:$E$58,2,FALSE)=0,\"\",VLOOKUP(BR162,'Footnotes list'!$D$9:$E$58,2,FALSE) ) )","v":""},null,null,null,null,{"$f":"IF(TRIM(BW162)=\"\", \"\", IF(VLOOKUP(BW162,'Footnotes list'!$D$9:$E$58,2,FALSE)=0,\"\",VLOOKUP(BW162,'Footnotes list'!$D$9:$E$58,2,FALSE) ) )","v":""},null,null,null,null,{"$f":"IF(TRIM(CB162)=\"\", \"\", IF(VLOOKUP(CB162,'Footnotes list'!$D$9:$E$58,2,FALSE)=0,\"\",VLOOKUP(CB162,'Footnotes list'!$D$9:$E$58,2,FALSE) ) )","v":""},null,null,null,null,{"$f":"IF(TRIM(CG162)=\"\", \"\", IF(VLOOKUP(CG162,'Footnotes list'!$D$9:$E$58,2,FALSE)=0,\"\",VLOOKUP(CG162,'Footnotes list'!$D$9:$E$58,2,FALSE) ) )","v":""},null,null,null,null,{"$f":"IF(TRIM(CL162)=\"\", \"\", IF(VLOOKUP(CL162,'Footnotes list'!$D$9:$E$58,2,FALSE)=0,\"\",VLOOKUP(CL162,'Footnotes list'!$D$9:$E$58,2,FALSE) ) )","v":""},null,null,null,null,{"$f":"IF(TRIM(CQ162)=\"\", \"\", IF(VLOOKUP(CQ162,'Footnotes list'!$D$9:$E$58,2,FALSE)=0,\"\",VLOOKUP(CQ162,'Footnotes list'!$D$9:$E$58,2,FALSE) ) )","v":""},null,null,null,null,{"$f":"IF(TRIM(CV162)=\"\", \"\", IF(VLOOKUP(CV162,'Footnotes list'!$D$9:$E$58,2,FALSE)=0,\"\",VLOOKUP(CV162,'Footnotes list'!$D$9:$E$58,2,FALSE) ) )","v":""},null,null,null,null,{"$f":"IF(TRIM(DA162)=\"\", \"\", IF(VLOOKUP(DA162,'Footnotes list'!$D$9:$E$58,2,FALSE)=0,\"\",VLOOKUP(DA162,'Footnotes list'!$D$9:$E$58,2,FALSE) ) )","v":""},null,null,null,null,{"$f":"IF(TRIM(DF162)=\"\", \"\", IF(VLOOKUP(DF162,'Footnotes list'!$D$9:$E$58,2,FALSE)=0,\"\",VLOOKUP(DF162,'Footnotes list'!$D$9:$E$58,2,FALSE) ) )","v":""},null,null,null,null,{"$f":"IF(TRIM(DK162)=\"\", \"\", IF(VLOOKUP(DK162,'Footnotes list'!$D$9:$E$58,2,FALSE)=0,\"\",VLOOKUP(DK162,'Footnotes list'!$D$9:$E$58,2,FALSE) ) )","v":""},null,null,null,null,{"$f":"IF(TRIM(DP162)=\"\", \"\", IF(VLOOKUP(DP162,'Footnotes list'!$D$9:$E$58,2,FALSE)=0,\"\",VLOOKUP(DP162,'Footnotes list'!$D$9:$E$58,2,FALSE) ) )","v":""},null,null,null,null,{"$f":"IF(TRIM(DU162)=\"\", \"\", IF(VLOOKUP(DU162,'Footnotes list'!$D$9:$E$58,2,FALSE)=0,\"\",VLOOKUP(DU162,'Footnotes list'!$D$9:$E$58,2,FALSE) ) )","v":""},null,null,null,null,{"$f":"IF(TRIM(DZ162)=\"\", \"\", IF(VLOOKUP(DZ162,'Footnotes list'!$D$9:$E$58,2,FALSE)=0,\"\",VLOOKUP(DZ162,'Footnotes list'!$D$9:$E$58,2,FALSE) ) )","v":""},null,null,null,null,{"$f":"IF(TRIM(EE162)=\"\", \"\", IF(VLOOKUP(EE162,'Footnotes list'!$D$9:$E$58,2,FALSE)=0,\"\",VLOOKUP(EE162,'Footnotes list'!$D$9:$E$58,2,FALSE) ) )","v":""},null,null,null,null,{"$f":"IF(TRIM(EJ162)=\"\", \"\", IF(VLOOKUP(EJ162,'Footnotes list'!$D$9:$E$58,2,FALSE)=0,\"\",VLOOKUP(EJ162,'Footnotes list'!$D$9:$E$58,2,FALSE) ) )","v":""},null,null,null,null,{"$f":"IF(TRIM(EO162)=\"\", \"\", IF(VLOOKUP(EO162,'Footnotes list'!$D$9:$E$58,2,FALSE)=0,\"\",VLOOKUP(EO162,'Footnotes list'!$D$9:$E$58,2,FALSE) ) )","v":""},null,null,null,null,{"$f":"IF(TRIM(ET162)=\"\", \"\", IF(VLOOKUP(ET162,'Footnotes list'!$D$9:$E$58,2,FALSE)=0,\"\",VLOOKUP(ET162,'Footnotes list'!$D$9:$E$58,2,FALSE) ) )","v":""},null,null,null,null,{"$f":"IF(TRIM(EY162)=\"\", \"\", IF(VLOOKUP(EY162,'Footnotes list'!$D$9:$E$58,2,FALSE)=0,\"\",VLOOKUP(EY162,'Footnotes list'!$D$9:$E$58,2,FALSE) ) )","v":""}]
[null,null,"E39","ANC","ancillary activities",null,null,null,null,null,{"$f":"IF(TRIM(J163)=\"\", \"\", IF(VLOOKUP(J163,'Footnotes list'!$D$9:$E$58,2,FALSE)=0,\"\",VLOOKUP(J163,'Footnotes list'!$D$9:$E$58,2,FALSE) ) )","v":""},null,null,null,null,{"$f":"IF(TRIM(O163)=\"\", \"\", IF(VLOOKUP(O163,'Footnotes list'!$D$9:$E$58,2,FALSE)=0,\"\",VLOOKUP(O163,'Footnotes list'!$D$9:$E$58,2,FALSE) ) )","v":""},null,null,null,null,{"$f":"IF(TRIM(T163)=\"\", \"\", IF(VLOOKUP(T163,'Footnotes list'!$D$9:$E$58,2,FALSE)=0,\"\",VLOOKUP(T163,'Footnotes list'!$D$9:$E$58,2,FALSE) ) )","v":""},null,null,null,null,{"$f":"IF(TRIM(Y163)=\"\", \"\", IF(VLOOKUP(Y163,'Footnotes list'!$D$9:$E$58,2,FALSE)=0,\"\",VLOOKUP(Y163,'Footnotes list'!$D$9:$E$58,2,FALSE) ) )","v":""},null,null,null,null,{"$f":"IF(TRIM(AD163)=\"\", \"\", IF(VLOOKUP(AD163,'Footnotes list'!$D$9:$E$58,2,FALSE)=0,\"\",VLOOKUP(AD163,'Footnotes list'!$D$9:$E$58,2,FALSE) ) )","v":""},null,null,null,null,{"$f":"IF(TRIM(AI163)=\"\", \"\", IF(VLOOKUP(AI163,'Footnotes list'!$D$9:$E$58,2,FALSE)=0,\"\",VLOOKUP(AI163,'Footnotes list'!$D$9:$E$58,2,FALSE) ) )","v":""},null,null,null,null,{"$f":"IF(TRIM(AN163)=\"\", \"\", IF(VLOOKUP(AN163,'Footnotes list'!$D$9:$E$58,2,FALSE)=0,\"\",VLOOKUP(AN163,'Footnotes list'!$D$9:$E$58,2,FALSE) ) )","v":""},null,null,null,null,{"$f":"IF(TRIM(AS163)=\"\", \"\", IF(VLOOKUP(AS163,'Footnotes list'!$D$9:$E$58,2,FALSE)=0,\"\",VLOOKUP(AS163,'Footnotes list'!$D$9:$E$58,2,FALSE) ) )","v":""},null,null,null,null,{"$f":"IF(TRIM(AX163)=\"\", \"\", IF(VLOOKUP(AX163,'Footnotes list'!$D$9:$E$58,2,FALSE)=0,\"\",VLOOKUP(AX163,'Footnotes list'!$D$9:$E$58,2,FALSE) ) )","v":""},null,null,null,null,{"$f":"IF(TRIM(BC163)=\"\", \"\", IF(VLOOKUP(BC163,'Footnotes list'!$D$9:$E$58,2,FALSE)=0,\"\",VLOOKUP(BC163,'Footnotes list'!$D$9:$E$58,2,FALSE) ) )","v":""},null,null,null,null,{"$f":"IF(TRIM(BH163)=\"\", \"\", IF(VLOOKUP(BH163,'Footnotes list'!$D$9:$E$58,2,FALSE)=0,\"\",VLOOKUP(BH163,'Footnotes list'!$D$9:$E$58,2,FALSE) ) )","v":""},null,null,null,null,{"$f":"IF(TRIM(BM163)=\"\", \"\", IF(VLOOKUP(BM163,'Footnotes list'!$D$9:$E$58,2,FALSE)=0,\"\",VLOOKUP(BM163,'Footnotes list'!$D$9:$E$58,2,FALSE) ) )","v":""},null,null,null,null,{"$f":"IF(TRIM(BR163)=\"\", \"\", IF(VLOOKUP(BR163,'Footnotes list'!$D$9:$E$58,2,FALSE)=0,\"\",VLOOKUP(BR163,'Footnotes list'!$D$9:$E$58,2,FALSE) ) )","v":""},null,null,null,null,{"$f":"IF(TRIM(BW163)=\"\", \"\", IF(VLOOKUP(BW163,'Footnotes list'!$D$9:$E$58,2,FALSE)=0,\"\",VLOOKUP(BW163,'Footnotes list'!$D$9:$E$58,2,FALSE) ) )","v":""},null,null,null,null,{"$f":"IF(TRIM(CB163)=\"\", \"\", IF(VLOOKUP(CB163,'Footnotes list'!$D$9:$E$58,2,FALSE)=0,\"\",VLOOKUP(CB163,'Footnotes list'!$D$9:$E$58,2,FALSE) ) )","v":""},null,null,null,null,{"$f":"IF(TRIM(CG163)=\"\", \"\", IF(VLOOKUP(CG163,'Footnotes list'!$D$9:$E$58,2,FALSE)=0,\"\",VLOOKUP(CG163,'Footnotes list'!$D$9:$E$58,2,FALSE) ) )","v":""},null,null,null,null,{"$f":"IF(TRIM(CL163)=\"\", \"\", IF(VLOOKUP(CL163,'Footnotes list'!$D$9:$E$58,2,FALSE)=0,\"\",VLOOKUP(CL163,'Footnotes list'!$D$9:$E$58,2,FALSE) ) )","v":""},null,null,null,null,{"$f":"IF(TRIM(CQ163)=\"\", \"\", IF(VLOOKUP(CQ163,'Footnotes list'!$D$9:$E$58,2,FALSE)=0,\"\",VLOOKUP(CQ163,'Footnotes list'!$D$9:$E$58,2,FALSE) ) )","v":""},null,null,null,null,{"$f":"IF(TRIM(CV163)=\"\", \"\", IF(VLOOKUP(CV163,'Footnotes list'!$D$9:$E$58,2,FALSE)=0,\"\",VLOOKUP(CV163,'Footnotes list'!$D$9:$E$58,2,FALSE) ) )","v":""},null,null,null,null,{"$f":"IF(TRIM(DA163)=\"\", \"\", IF(VLOOKUP(DA163,'Footnotes list'!$D$9:$E$58,2,FALSE)=0,\"\",VLOOKUP(DA163,'Footnotes list'!$D$9:$E$58,2,FALSE) ) )","v":""},null,null,null,null,{"$f":"IF(TRIM(DF163)=\"\", \"\", IF(VLOOKUP(DF163,'Footnotes list'!$D$9:$E$58,2,FALSE)=0,\"\",VLOOKUP(DF163,'Footnotes list'!$D$9:$E$58,2,FALSE) ) )","v":""},null,null,null,null,{"$f":"IF(TRIM(DK163)=\"\", \"\", IF(VLOOKUP(DK163,'Footnotes list'!$D$9:$E$58,2,FALSE)=0,\"\",VLOOKUP(DK163,'Footnotes list'!$D$9:$E$58,2,FALSE) ) )","v":""},null,null,null,null,{"$f":"IF(TRIM(DP163)=\"\", \"\", IF(VLOOKUP(DP163,'Footnotes list'!$D$9:$E$58,2,FALSE)=0,\"\",VLOOKUP(DP163,'Footnotes list'!$D$9:$E$58,2,FALSE) ) )","v":""},null,null,null,null,{"$f":"IF(TRIM(DU163)=\"\", \"\", IF(VLOOKUP(DU163,'Footnotes list'!$D$9:$E$58,2,FALSE)=0,\"\",VLOOKUP(DU163,'Footnotes list'!$D$9:$E$58,2,FALSE) ) )","v":""},null,null,null,null,{"$f":"IF(TRIM(DZ163)=\"\", \"\", IF(VLOOKUP(DZ163,'Footnotes list'!$D$9:$E$58,2,FALSE)=0,\"\",VLOOKUP(DZ163,'Footnotes list'!$D$9:$E$58,2,FALSE) ) )","v":""},null,null,null,null,{"$f":"IF(TRIM(EE163)=\"\", \"\", IF(VLOOKUP(EE163,'Footnotes list'!$D$9:$E$58,2,FALSE)=0,\"\",VLOOKUP(EE163,'Footnotes list'!$D$9:$E$58,2,FALSE) ) )","v":""},null,null,null,null,{"$f":"IF(TRIM(EJ163)=\"\", \"\", IF(VLOOKUP(EJ163,'Footnotes list'!$D$9:$E$58,2,FALSE)=0,\"\",VLOOKUP(EJ163,'Footnotes list'!$D$9:$E$58,2,FALSE) ) )","v":""},null,null,null,null,{"$f":"IF(TRIM(EO163)=\"\", \"\", IF(VLOOKUP(EO163,'Footnotes list'!$D$9:$E$58,2,FALSE)=0,\"\",VLOOKUP(EO163,'Footnotes list'!$D$9:$E$58,2,FALSE) ) )","v":""},null,null,null,null,{"$f":"IF(TRIM(ET163)=\"\", \"\", IF(VLOOKUP(ET163,'Footnotes list'!$D$9:$E$58,2,FALSE)=0,\"\",VLOOKUP(ET163,'Footnotes list'!$D$9:$E$58,2,FALSE) ) )","v":""},null,null,null,null,{"$f":"IF(TRIM(EY163)=\"\", \"\", IF(VLOOKUP(EY163,'Footnotes list'!$D$9:$E$58,2,FALSE)=0,\"\",VLOOKUP(EY163,'Footnotes list'!$D$9:$E$58,2,FALSE) ) )","v":""}]
[null,null,"E39","NMKT","non-market activities",null,null,null,null,null,{"$f":"IF(TRIM(J164)=\"\", \"\", IF(VLOOKUP(J164,'Footnotes list'!$D$9:$E$58,2,FALSE)=0,\"\",VLOOKUP(J164,'Footnotes list'!$D$9:$E$58,2,FALSE) ) )","v":""},null,null,null,null,{"$f":"IF(TRIM(O164)=\"\", \"\", IF(VLOOKUP(O164,'Footnotes list'!$D$9:$E$58,2,FALSE)=0,\"\",VLOOKUP(O164,'Footnotes list'!$D$9:$E$58,2,FALSE) ) )","v":""},null,null,null,null,{"$f":"IF(TRIM(T164)=\"\", \"\", IF(VLOOKUP(T164,'Footnotes list'!$D$9:$E$58,2,FALSE)=0,\"\",VLOOKUP(T164,'Footnotes list'!$D$9:$E$58,2,FALSE) ) )","v":""},null,null,null,null,{"$f":"IF(TRIM(Y164)=\"\", \"\", IF(VLOOKUP(Y164,'Footnotes list'!$D$9:$E$58,2,FALSE)=0,\"\",VLOOKUP(Y164,'Footnotes list'!$D$9:$E$58,2,FALSE) ) )","v":""},null,null,null,null,{"$f":"IF(TRIM(AD164)=\"\", \"\", IF(VLOOKUP(AD164,'Footnotes list'!$D$9:$E$58,2,FALSE)=0,\"\",VLOOKUP(AD164,'Footnotes list'!$D$9:$E$58,2,FALSE) ) )","v":""},null,null,null,null,{"$f":"IF(TRIM(AI164)=\"\", \"\", IF(VLOOKUP(AI164,'Footnotes list'!$D$9:$E$58,2,FALSE)=0,\"\",VLOOKUP(AI164,'Footnotes list'!$D$9:$E$58,2,FALSE) ) )","v":""},null,null,null,null,{"$f":"IF(TRIM(AN164)=\"\", \"\", IF(VLOOKUP(AN164,'Footnotes list'!$D$9:$E$58,2,FALSE)=0,\"\",VLOOKUP(AN164,'Footnotes list'!$D$9:$E$58,2,FALSE) ) )","v":""},null,null,null,null,{"$f":"IF(TRIM(AS164)=\"\", \"\", IF(VLOOKUP(AS164,'Footnotes list'!$D$9:$E$58,2,FALSE)=0,\"\",VLOOKUP(AS164,'Footnotes list'!$D$9:$E$58,2,FALSE) ) )","v":""},null,null,null,null,{"$f":"IF(TRIM(AX164)=\"\", \"\", IF(VLOOKUP(AX164,'Footnotes list'!$D$9:$E$58,2,FALSE)=0,\"\",VLOOKUP(AX164,'Footnotes list'!$D$9:$E$58,2,FALSE) ) )","v":""},null,null,null,null,{"$f":"IF(TRIM(BC164)=\"\", \"\", IF(VLOOKUP(BC164,'Footnotes list'!$D$9:$E$58,2,FALSE)=0,\"\",VLOOKUP(BC164,'Footnotes list'!$D$9:$E$58,2,FALSE) ) )","v":""},null,null,null,null,{"$f":"IF(TRIM(BH164)=\"\", \"\", IF(VLOOKUP(BH164,'Footnotes list'!$D$9:$E$58,2,FALSE)=0,\"\",VLOOKUP(BH164,'Footnotes list'!$D$9:$E$58,2,FALSE) ) )","v":""},null,null,null,null,{"$f":"IF(TRIM(BM164)=\"\", \"\", IF(VLOOKUP(BM164,'Footnotes list'!$D$9:$E$58,2,FALSE)=0,\"\",VLOOKUP(BM164,'Footnotes list'!$D$9:$E$58,2,FALSE) ) )","v":""},null,null,null,null,{"$f":"IF(TRIM(BR164)=\"\", \"\", IF(VLOOKUP(BR164,'Footnotes list'!$D$9:$E$58,2,FALSE)=0,\"\",VLOOKUP(BR164,'Footnotes list'!$D$9:$E$58,2,FALSE) ) )","v":""},null,null,null,null,{"$f":"IF(TRIM(BW164)=\"\", \"\", IF(VLOOKUP(BW164,'Footnotes list'!$D$9:$E$58,2,FALSE)=0,\"\",VLOOKUP(BW164,'Footnotes list'!$D$9:$E$58,2,FALSE) ) )","v":""},null,null,null,null,{"$f":"IF(TRIM(CB164)=\"\", \"\", IF(VLOOKUP(CB164,'Footnotes list'!$D$9:$E$58,2,FALSE)=0,\"\",VLOOKUP(CB164,'Footnotes list'!$D$9:$E$58,2,FALSE) ) )","v":""},null,null,null,null,{"$f":"IF(TRIM(CG164)=\"\", \"\", IF(VLOOKUP(CG164,'Footnotes list'!$D$9:$E$58,2,FALSE)=0,\"\",VLOOKUP(CG164,'Footnotes list'!$D$9:$E$58,2,FALSE) ) )","v":""},null,null,null,null,{"$f":"IF(TRIM(CL164)=\"\", \"\", IF(VLOOKUP(CL164,'Footnotes list'!$D$9:$E$58,2,FALSE)=0,\"\",VLOOKUP(CL164,'Footnotes list'!$D$9:$E$58,2,FALSE) ) )","v":""},null,null,null,null,{"$f":"IF(TRIM(CQ164)=\"\", \"\", IF(VLOOKUP(CQ164,'Footnotes list'!$D$9:$E$58,2,FALSE)=0,\"\",VLOOKUP(CQ164,'Footnotes list'!$D$9:$E$58,2,FALSE) ) )","v":""},null,null,null,null,{"$f":"IF(TRIM(CV164)=\"\", \"\", IF(VLOOKUP(CV164,'Footnotes list'!$D$9:$E$58,2,FALSE)=0,\"\",VLOOKUP(CV164,'Footnotes list'!$D$9:$E$58,2,FALSE) ) )","v":""},null,null,null,null,{"$f":"IF(TRIM(DA164)=\"\", \"\", IF(VLOOKUP(DA164,'Footnotes list'!$D$9:$E$58,2,FALSE)=0,\"\",VLOOKUP(DA164,'Footnotes list'!$D$9:$E$58,2,FALSE) ) )","v":""},null,null,null,null,{"$f":"IF(TRIM(DF164)=\"\", \"\", IF(VLOOKUP(DF164,'Footnotes list'!$D$9:$E$58,2,FALSE)=0,\"\",VLOOKUP(DF164,'Footnotes list'!$D$9:$E$58,2,FALSE) ) )","v":""},null,null,null,null,{"$f":"IF(TRIM(DK164)=\"\", \"\", IF(VLOOKUP(DK164,'Footnotes list'!$D$9:$E$58,2,FALSE)=0,\"\",VLOOKUP(DK164,'Footnotes list'!$D$9:$E$58,2,FALSE) ) )","v":""},null,null,null,null,{"$f":"IF(TRIM(DP164)=\"\", \"\", IF(VLOOKUP(DP164,'Footnotes list'!$D$9:$E$58,2,FALSE)=0,\"\",VLOOKUP(DP164,'Footnotes list'!$D$9:$E$58,2,FALSE) ) )","v":""},null,null,null,null,{"$f":"IF(TRIM(DU164)=\"\", \"\", IF(VLOOKUP(DU164,'Footnotes list'!$D$9:$E$58,2,FALSE)=0,\"\",VLOOKUP(DU164,'Footnotes list'!$D$9:$E$58,2,FALSE) ) )","v":""},null,null,null,null,{"$f":"IF(TRIM(DZ164)=\"\", \"\", IF(VLOOKUP(DZ164,'Footnotes list'!$D$9:$E$58,2,FALSE)=0,\"\",VLOOKUP(DZ164,'Footnotes list'!$D$9:$E$58,2,FALSE) ) )","v":""},null,null,null,null,{"$f":"IF(TRIM(EE164)=\"\", \"\", IF(VLOOKUP(EE164,'Footnotes list'!$D$9:$E$58,2,FALSE)=0,\"\",VLOOKUP(EE164,'Footnotes list'!$D$9:$E$58,2,FALSE) ) )","v":""},null,null,null,null,{"$f":"IF(TRIM(EJ164)=\"\", \"\", IF(VLOOKUP(EJ164,'Footnotes list'!$D$9:$E$58,2,FALSE)=0,\"\",VLOOKUP(EJ164,'Footnotes list'!$D$9:$E$58,2,FALSE) ) )","v":""},null,null,null,null,{"$f":"IF(TRIM(EO164)=\"\", \"\", IF(VLOOKUP(EO164,'Footnotes list'!$D$9:$E$58,2,FALSE)=0,\"\",VLOOKUP(EO164,'Footnotes list'!$D$9:$E$58,2,FALSE) ) )","v":""},null,null,null,null,{"$f":"IF(TRIM(ET164)=\"\", \"\", IF(VLOOKUP(ET164,'Footnotes list'!$D$9:$E$58,2,FALSE)=0,\"\",VLOOKUP(ET164,'Footnotes list'!$D$9:$E$58,2,FALSE) ) )","v":""},null,null,null,null,{"$f":"IF(TRIM(EY164)=\"\", \"\", IF(VLOOKUP(EY164,'Footnotes list'!$D$9:$E$58,2,FALSE)=0,\"\",VLOOKUP(EY164,'Footnotes list'!$D$9:$E$58,2,FALSE) ) )","v":""}]
[null,null,"E39","OWN_USE","activities for own final use",null,null,null,null,null,{"$f":"IF(TRIM(J165)=\"\", \"\", IF(VLOOKUP(J165,'Footnotes list'!$D$9:$E$58,2,FALSE)=0,\"\",VLOOKUP(J165,'Footnotes list'!$D$9:$E$58,2,FALSE) ) )","v":""},null,null,null,null,{"$f":"IF(TRIM(O165)=\"\", \"\", IF(VLOOKUP(O165,'Footnotes list'!$D$9:$E$58,2,FALSE)=0,\"\",VLOOKUP(O165,'Footnotes list'!$D$9:$E$58,2,FALSE) ) )","v":""},null,null,null,null,{"$f":"IF(TRIM(T165)=\"\", \"\", IF(VLOOKUP(T165,'Footnotes list'!$D$9:$E$58,2,FALSE)=0,\"\",VLOOKUP(T165,'Footnotes list'!$D$9:$E$58,2,FALSE) ) )","v":""},null,null,null,null,{"$f":"IF(TRIM(Y165)=\"\", \"\", IF(VLOOKUP(Y165,'Footnotes list'!$D$9:$E$58,2,FALSE)=0,\"\",VLOOKUP(Y165,'Footnotes list'!$D$9:$E$58,2,FALSE) ) )","v":""},null,null,null,null,{"$f":"IF(TRIM(AD165)=\"\", \"\", IF(VLOOKUP(AD165,'Footnotes list'!$D$9:$E$58,2,FALSE)=0,\"\",VLOOKUP(AD165,'Footnotes list'!$D$9:$E$58,2,FALSE) ) )","v":""},null,null,null,null,{"$f":"IF(TRIM(AI165)=\"\", \"\", IF(VLOOKUP(AI165,'Footnotes list'!$D$9:$E$58,2,FALSE)=0,\"\",VLOOKUP(AI165,'Footnotes list'!$D$9:$E$58,2,FALSE) ) )","v":""},null,null,null,null,{"$f":"IF(TRIM(AN165)=\"\", \"\", IF(VLOOKUP(AN165,'Footnotes list'!$D$9:$E$58,2,FALSE)=0,\"\",VLOOKUP(AN165,'Footnotes list'!$D$9:$E$58,2,FALSE) ) )","v":""},null,null,null,null,{"$f":"IF(TRIM(AS165)=\"\", \"\", IF(VLOOKUP(AS165,'Footnotes list'!$D$9:$E$58,2,FALSE)=0,\"\",VLOOKUP(AS165,'Footnotes list'!$D$9:$E$58,2,FALSE) ) )","v":""},null,null,null,null,{"$f":"IF(TRIM(AX165)=\"\", \"\", IF(VLOOKUP(AX165,'Footnotes list'!$D$9:$E$58,2,FALSE)=0,\"\",VLOOKUP(AX165,'Footnotes list'!$D$9:$E$58,2,FALSE) ) )","v":""},null,null,null,null,{"$f":"IF(TRIM(BC165)=\"\", \"\", IF(VLOOKUP(BC165,'Footnotes list'!$D$9:$E$58,2,FALSE)=0,\"\",VLOOKUP(BC165,'Footnotes list'!$D$9:$E$58,2,FALSE) ) )","v":""},null,null,null,null,{"$f":"IF(TRIM(BH165)=\"\", \"\", IF(VLOOKUP(BH165,'Footnotes list'!$D$9:$E$58,2,FALSE)=0,\"\",VLOOKUP(BH165,'Footnotes list'!$D$9:$E$58,2,FALSE) ) )","v":""},null,null,null,null,{"$f":"IF(TRIM(BM165)=\"\", \"\", IF(VLOOKUP(BM165,'Footnotes list'!$D$9:$E$58,2,FALSE)=0,\"\",VLOOKUP(BM165,'Footnotes list'!$D$9:$E$58,2,FALSE) ) )","v":""},null,null,null,null,{"$f":"IF(TRIM(BR165)=\"\", \"\", IF(VLOOKUP(BR165,'Footnotes list'!$D$9:$E$58,2,FALSE)=0,\"\",VLOOKUP(BR165,'Footnotes list'!$D$9:$E$58,2,FALSE) ) )","v":""},null,null,null,null,{"$f":"IF(TRIM(BW165)=\"\", \"\", IF(VLOOKUP(BW165,'Footnotes list'!$D$9:$E$58,2,FALSE)=0,\"\",VLOOKUP(BW165,'Footnotes list'!$D$9:$E$58,2,FALSE) ) )","v":""},null,null,null,null,{"$f":"IF(TRIM(CB165)=\"\", \"\", IF(VLOOKUP(CB165,'Footnotes list'!$D$9:$E$58,2,FALSE)=0,\"\",VLOOKUP(CB165,'Footnotes list'!$D$9:$E$58,2,FALSE) ) )","v":""},null,null,null,null,{"$f":"IF(TRIM(CG165)=\"\", \"\", IF(VLOOKUP(CG165,'Footnotes list'!$D$9:$E$58,2,FALSE)=0,\"\",VLOOKUP(CG165,'Footnotes list'!$D$9:$E$58,2,FALSE) ) )","v":""},null,null,null,null,{"$f":"IF(TRIM(CL165)=\"\", \"\", IF(VLOOKUP(CL165,'Footnotes list'!$D$9:$E$58,2,FALSE)=0,\"\",VLOOKUP(CL165,'Footnotes list'!$D$9:$E$58,2,FALSE) ) )","v":""},null,null,null,null,{"$f":"IF(TRIM(CQ165)=\"\", \"\", IF(VLOOKUP(CQ165,'Footnotes list'!$D$9:$E$58,2,FALSE)=0,\"\",VLOOKUP(CQ165,'Footnotes list'!$D$9:$E$58,2,FALSE) ) )","v":""},null,null,null,null,{"$f":"IF(TRIM(CV165)=\"\", \"\", IF(VLOOKUP(CV165,'Footnotes list'!$D$9:$E$58,2,FALSE)=0,\"\",VLOOKUP(CV165,'Footnotes list'!$D$9:$E$58,2,FALSE) ) )","v":""},null,null,null,null,{"$f":"IF(TRIM(DA165)=\"\", \"\", IF(VLOOKUP(DA165,'Footnotes list'!$D$9:$E$58,2,FALSE)=0,\"\",VLOOKUP(DA165,'Footnotes list'!$D$9:$E$58,2,FALSE) ) )","v":""},null,null,null,null,{"$f":"IF(TRIM(DF165)=\"\", \"\", IF(VLOOKUP(DF165,'Footnotes list'!$D$9:$E$58,2,FALSE)=0,\"\",VLOOKUP(DF165,'Footnotes list'!$D$9:$E$58,2,FALSE) ) )","v":""},null,null,null,null,{"$f":"IF(TRIM(DK165)=\"\", \"\", IF(VLOOKUP(DK165,'Footnotes list'!$D$9:$E$58,2,FALSE)=0,\"\",VLOOKUP(DK165,'Footnotes list'!$D$9:$E$58,2,FALSE) ) )","v":""},null,null,null,null,{"$f":"IF(TRIM(DP165)=\"\", \"\", IF(VLOOKUP(DP165,'Footnotes list'!$D$9:$E$58,2,FALSE)=0,\"\",VLOOKUP(DP165,'Footnotes list'!$D$9:$E$58,2,FALSE) ) )","v":""},null,null,null,null,{"$f":"IF(TRIM(DU165)=\"\", \"\", IF(VLOOKUP(DU165,'Footnotes list'!$D$9:$E$58,2,FALSE)=0,\"\",VLOOKUP(DU165,'Footnotes list'!$D$9:$E$58,2,FALSE) ) )","v":""},null,null,null,null,{"$f":"IF(TRIM(DZ165)=\"\", \"\", IF(VLOOKUP(DZ165,'Footnotes list'!$D$9:$E$58,2,FALSE)=0,\"\",VLOOKUP(DZ165,'Footnotes list'!$D$9:$E$58,2,FALSE) ) )","v":""},null,null,null,null,{"$f":"IF(TRIM(EE165)=\"\", \"\", IF(VLOOKUP(EE165,'Footnotes list'!$D$9:$E$58,2,FALSE)=0,\"\",VLOOKUP(EE165,'Footnotes list'!$D$9:$E$58,2,FALSE) ) )","v":""},null,null,null,null,{"$f":"IF(TRIM(EJ165)=\"\", \"\", IF(VLOOKUP(EJ165,'Footnotes list'!$D$9:$E$58,2,FALSE)=0,\"\",VLOOKUP(EJ165,'Footnotes list'!$D$9:$E$58,2,FALSE) ) )","v":""},null,null,null,null,{"$f":"IF(TRIM(EO165)=\"\", \"\", IF(VLOOKUP(EO165,'Footnotes list'!$D$9:$E$58,2,FALSE)=0,\"\",VLOOKUP(EO165,'Footnotes list'!$D$9:$E$58,2,FALSE) ) )","v":""},null,null,null,null,{"$f":"IF(TRIM(ET165)=\"\", \"\", IF(VLOOKUP(ET165,'Footnotes list'!$D$9:$E$58,2,FALSE)=0,\"\",VLOOKUP(ET165,'Footnotes list'!$D$9:$E$58,2,FALSE) ) )","v":""},null,null,null,null,{"$f":"IF(TRIM(EY165)=\"\", \"\", IF(VLOOKUP(EY165,'Footnotes list'!$D$9:$E$58,2,FALSE)=0,\"\",VLOOKUP(EY165,'Footnotes list'!$D$9:$E$58,2,FALSE) ) )","v":""}]
[null,null,"E39","MKT","market activities, including:",null,null,null,null,null,{"$f":"IF(TRIM(J166)=\"\", \"\", IF(VLOOKUP(J166,'Footnotes list'!$D$9:$E$58,2,FALSE)=0,\"\",VLOOKUP(J166,'Footnotes list'!$D$9:$E$58,2,FALSE) ) )","v":""},null,null,null,null,{"$f":"IF(TRIM(O166)=\"\", \"\", IF(VLOOKUP(O166,'Footnotes list'!$D$9:$E$58,2,FALSE)=0,\"\",VLOOKUP(O166,'Footnotes list'!$D$9:$E$58,2,FALSE) ) )","v":""},null,null,null,null,{"$f":"IF(TRIM(T166)=\"\", \"\", IF(VLOOKUP(T166,'Footnotes list'!$D$9:$E$58,2,FALSE)=0,\"\",VLOOKUP(T166,'Footnotes list'!$D$9:$E$58,2,FALSE) ) )","v":""},null,null,null,null,{"$f":"IF(TRIM(Y166)=\"\", \"\", IF(VLOOKUP(Y166,'Footnotes list'!$D$9:$E$58,2,FALSE)=0,\"\",VLOOKUP(Y166,'Footnotes list'!$D$9:$E$58,2,FALSE) ) )","v":""},null,null,null,null,{"$f":"IF(TRIM(AD166)=\"\", \"\", IF(VLOOKUP(AD166,'Footnotes list'!$D$9:$E$58,2,FALSE)=0,\"\",VLOOKUP(AD166,'Footnotes list'!$D$9:$E$58,2,FALSE) ) )","v":""},null,null,null,null,{"$f":"IF(TRIM(AI166)=\"\", \"\", IF(VLOOKUP(AI166,'Footnotes list'!$D$9:$E$58,2,FALSE)=0,\"\",VLOOKUP(AI166,'Footnotes list'!$D$9:$E$58,2,FALSE) ) )","v":""},null,null,null,null,{"$f":"IF(TRIM(AN166)=\"\", \"\", IF(VLOOKUP(AN166,'Footnotes list'!$D$9:$E$58,2,FALSE)=0,\"\",VLOOKUP(AN166,'Footnotes list'!$D$9:$E$58,2,FALSE) ) )","v":""},null,null,null,null,{"$f":"IF(TRIM(AS166)=\"\", \"\", IF(VLOOKUP(AS166,'Footnotes list'!$D$9:$E$58,2,FALSE)=0,\"\",VLOOKUP(AS166,'Footnotes list'!$D$9:$E$58,2,FALSE) ) )","v":""},null,null,null,null,{"$f":"IF(TRIM(AX166)=\"\", \"\", IF(VLOOKUP(AX166,'Footnotes list'!$D$9:$E$58,2,FALSE)=0,\"\",VLOOKUP(AX166,'Footnotes list'!$D$9:$E$58,2,FALSE) ) )","v":""},null,null,null,null,{"$f":"IF(TRIM(BC166)=\"\", \"\", IF(VLOOKUP(BC166,'Footnotes list'!$D$9:$E$58,2,FALSE)=0,\"\",VLOOKUP(BC166,'Footnotes list'!$D$9:$E$58,2,FALSE) ) )","v":""},null,null,null,null,{"$f":"IF(TRIM(BH166)=\"\", \"\", IF(VLOOKUP(BH166,'Footnotes list'!$D$9:$E$58,2,FALSE)=0,\"\",VLOOKUP(BH166,'Footnotes list'!$D$9:$E$58,2,FALSE) ) )","v":""},null,null,null,null,{"$f":"IF(TRIM(BM166)=\"\", \"\", IF(VLOOKUP(BM166,'Footnotes list'!$D$9:$E$58,2,FALSE)=0,\"\",VLOOKUP(BM166,'Footnotes list'!$D$9:$E$58,2,FALSE) ) )","v":""},null,null,null,null,{"$f":"IF(TRIM(BR166)=\"\", \"\", IF(VLOOKUP(BR166,'Footnotes list'!$D$9:$E$58,2,FALSE)=0,\"\",VLOOKUP(BR166,'Footnotes list'!$D$9:$E$58,2,FALSE) ) )","v":""},null,null,null,null,{"$f":"IF(TRIM(BW166)=\"\", \"\", IF(VLOOKUP(BW166,'Footnotes list'!$D$9:$E$58,2,FALSE)=0,\"\",VLOOKUP(BW166,'Footnotes list'!$D$9:$E$58,2,FALSE) ) )","v":""},null,null,null,null,{"$f":"IF(TRIM(CB166)=\"\", \"\", IF(VLOOKUP(CB166,'Footnotes list'!$D$9:$E$58,2,FALSE)=0,\"\",VLOOKUP(CB166,'Footnotes list'!$D$9:$E$58,2,FALSE) ) )","v":""},null,null,null,null,{"$f":"IF(TRIM(CG166)=\"\", \"\", IF(VLOOKUP(CG166,'Footnotes list'!$D$9:$E$58,2,FALSE)=0,\"\",VLOOKUP(CG166,'Footnotes list'!$D$9:$E$58,2,FALSE) ) )","v":""},null,null,null,null,{"$f":"IF(TRIM(CL166)=\"\", \"\", IF(VLOOKUP(CL166,'Footnotes list'!$D$9:$E$58,2,FALSE)=0,\"\",VLOOKUP(CL166,'Footnotes list'!$D$9:$E$58,2,FALSE) ) )","v":""},null,null,null,null,{"$f":"IF(TRIM(CQ166)=\"\", \"\", IF(VLOOKUP(CQ166,'Footnotes list'!$D$9:$E$58,2,FALSE)=0,\"\",VLOOKUP(CQ166,'Footnotes list'!$D$9:$E$58,2,FALSE) ) )","v":""},null,null,null,null,{"$f":"IF(TRIM(CV166)=\"\", \"\", IF(VLOOKUP(CV166,'Footnotes list'!$D$9:$E$58,2,FALSE)=0,\"\",VLOOKUP(CV166,'Footnotes list'!$D$9:$E$58,2,FALSE) ) )","v":""},null,null,null,null,{"$f":"IF(TRIM(DA166)=\"\", \"\", IF(VLOOKUP(DA166,'Footnotes list'!$D$9:$E$58,2,FALSE)=0,\"\",VLOOKUP(DA166,'Footnotes list'!$D$9:$E$58,2,FALSE) ) )","v":""},null,null,null,null,{"$f":"IF(TRIM(DF166)=\"\", \"\", IF(VLOOKUP(DF166,'Footnotes list'!$D$9:$E$58,2,FALSE)=0,\"\",VLOOKUP(DF166,'Footnotes list'!$D$9:$E$58,2,FALSE) ) )","v":""},null,null,null,null,{"$f":"IF(TRIM(DK166)=\"\", \"\", IF(VLOOKUP(DK166,'Footnotes list'!$D$9:$E$58,2,FALSE)=0,\"\",VLOOKUP(DK166,'Footnotes list'!$D$9:$E$58,2,FALSE) ) )","v":""},null,null,null,null,{"$f":"IF(TRIM(DP166)=\"\", \"\", IF(VLOOKUP(DP166,'Footnotes list'!$D$9:$E$58,2,FALSE)=0,\"\",VLOOKUP(DP166,'Footnotes list'!$D$9:$E$58,2,FALSE) ) )","v":""},null,null,null,null,{"$f":"IF(TRIM(DU166)=\"\", \"\", IF(VLOOKUP(DU166,'Footnotes list'!$D$9:$E$58,2,FALSE)=0,\"\",VLOOKUP(DU166,'Footnotes list'!$D$9:$E$58,2,FALSE) ) )","v":""},null,null,null,null,{"$f":"IF(TRIM(DZ166)=\"\", \"\", IF(VLOOKUP(DZ166,'Footnotes list'!$D$9:$E$58,2,FALSE)=0,\"\",VLOOKUP(DZ166,'Footnotes list'!$D$9:$E$58,2,FALSE) ) )","v":""},null,null,null,null,{"$f":"IF(TRIM(EE166)=\"\", \"\", IF(VLOOKUP(EE166,'Footnotes list'!$D$9:$E$58,2,FALSE)=0,\"\",VLOOKUP(EE166,'Footnotes list'!$D$9:$E$58,2,FALSE) ) )","v":""},null,null,null,null,{"$f":"IF(TRIM(EJ166)=\"\", \"\", IF(VLOOKUP(EJ166,'Footnotes list'!$D$9:$E$58,2,FALSE)=0,\"\",VLOOKUP(EJ166,'Footnotes list'!$D$9:$E$58,2,FALSE) ) )","v":""},null,null,null,null,{"$f":"IF(TRIM(EO166)=\"\", \"\", IF(VLOOKUP(EO166,'Footnotes list'!$D$9:$E$58,2,FALSE)=0,\"\",VLOOKUP(EO166,'Footnotes list'!$D$9:$E$58,2,FALSE) ) )","v":""},null,null,null,null,{"$f":"IF(TRIM(ET166)=\"\", \"\", IF(VLOOKUP(ET166,'Footnotes list'!$D$9:$E$58,2,FALSE)=0,\"\",VLOOKUP(ET166,'Footnotes list'!$D$9:$E$58,2,FALSE) ) )","v":""},null,null,null,null,{"$f":"IF(TRIM(EY166)=\"\", \"\", IF(VLOOKUP(EY166,'Footnotes list'!$D$9:$E$58,2,FALSE)=0,\"\",VLOOKUP(EY166,'Footnotes list'!$D$9:$E$58,2,FALSE) ) )","v":""}]
[null,null,"E39","ES_CS","environmental specific services",null,null,null,null,null,{"$f":"IF(TRIM(J167)=\"\", \"\", IF(VLOOKUP(J167,'Footnotes list'!$D$9:$E$58,2,FALSE)=0,\"\",VLOOKUP(J167,'Footnotes list'!$D$9:$E$58,2,FALSE) ) )","v":""},null,null,null,null,{"$f":"IF(TRIM(O167)=\"\", \"\", IF(VLOOKUP(O167,'Footnotes list'!$D$9:$E$58,2,FALSE)=0,\"\",VLOOKUP(O167,'Footnotes list'!$D$9:$E$58,2,FALSE) ) )","v":""},null,null,null,null,{"$f":"IF(TRIM(T167)=\"\", \"\", IF(VLOOKUP(T167,'Footnotes list'!$D$9:$E$58,2,FALSE)=0,\"\",VLOOKUP(T167,'Footnotes list'!$D$9:$E$58,2,FALSE) ) )","v":""},null,null,null,null,{"$f":"IF(TRIM(Y167)=\"\", \"\", IF(VLOOKUP(Y167,'Footnotes list'!$D$9:$E$58,2,FALSE)=0,\"\",VLOOKUP(Y167,'Footnotes list'!$D$9:$E$58,2,FALSE) ) )","v":""},null,null,null,null,{"$f":"IF(TRIM(AD167)=\"\", \"\", IF(VLOOKUP(AD167,'Footnotes list'!$D$9:$E$58,2,FALSE)=0,\"\",VLOOKUP(AD167,'Footnotes list'!$D$9:$E$58,2,FALSE) ) )","v":""},null,null,null,null,{"$f":"IF(TRIM(AI167)=\"\", \"\", IF(VLOOKUP(AI167,'Footnotes list'!$D$9:$E$58,2,FALSE)=0,\"\",VLOOKUP(AI167,'Footnotes list'!$D$9:$E$58,2,FALSE) ) )","v":""},null,null,null,null,{"$f":"IF(TRIM(AN167)=\"\", \"\", IF(VLOOKUP(AN167,'Footnotes list'!$D$9:$E$58,2,FALSE)=0,\"\",VLOOKUP(AN167,'Footnotes list'!$D$9:$E$58,2,FALSE) ) )","v":""},null,null,null,null,{"$f":"IF(TRIM(AS167)=\"\", \"\", IF(VLOOKUP(AS167,'Footnotes list'!$D$9:$E$58,2,FALSE)=0,\"\",VLOOKUP(AS167,'Footnotes list'!$D$9:$E$58,2,FALSE) ) )","v":""},null,null,null,null,{"$f":"IF(TRIM(AX167)=\"\", \"\", IF(VLOOKUP(AX167,'Footnotes list'!$D$9:$E$58,2,FALSE)=0,\"\",VLOOKUP(AX167,'Footnotes list'!$D$9:$E$58,2,FALSE) ) )","v":""},null,null,null,null,{"$f":"IF(TRIM(BC167)=\"\", \"\", IF(VLOOKUP(BC167,'Footnotes list'!$D$9:$E$58,2,FALSE)=0,\"\",VLOOKUP(BC167,'Footnotes list'!$D$9:$E$58,2,FALSE) ) )","v":""},null,null,null,null,{"$f":"IF(TRIM(BH167)=\"\", \"\", IF(VLOOKUP(BH167,'Footnotes list'!$D$9:$E$58,2,FALSE)=0,\"\",VLOOKUP(BH167,'Footnotes list'!$D$9:$E$58,2,FALSE) ) )","v":""},null,null,null,null,{"$f":"IF(TRIM(BM167)=\"\", \"\", IF(VLOOKUP(BM167,'Footnotes list'!$D$9:$E$58,2,FALSE)=0,\"\",VLOOKUP(BM167,'Footnotes list'!$D$9:$E$58,2,FALSE) ) )","v":""},null,null,null,null,{"$f":"IF(TRIM(BR167)=\"\", \"\", IF(VLOOKUP(BR167,'Footnotes list'!$D$9:$E$58,2,FALSE)=0,\"\",VLOOKUP(BR167,'Footnotes list'!$D$9:$E$58,2,FALSE) ) )","v":""},null,null,null,null,{"$f":"IF(TRIM(BW167)=\"\", \"\", IF(VLOOKUP(BW167,'Footnotes list'!$D$9:$E$58,2,FALSE)=0,\"\",VLOOKUP(BW167,'Footnotes list'!$D$9:$E$58,2,FALSE) ) )","v":""},null,null,null,null,{"$f":"IF(TRIM(CB167)=\"\", \"\", IF(VLOOKUP(CB167,'Footnotes list'!$D$9:$E$58,2,FALSE)=0,\"\",VLOOKUP(CB167,'Footnotes list'!$D$9:$E$58,2,FALSE) ) )","v":""},null,null,null,null,{"$f":"IF(TRIM(CG167)=\"\", \"\", IF(VLOOKUP(CG167,'Footnotes list'!$D$9:$E$58,2,FALSE)=0,\"\",VLOOKUP(CG167,'Footnotes list'!$D$9:$E$58,2,FALSE) ) )","v":""},null,null,null,null,{"$f":"IF(TRIM(CL167)=\"\", \"\", IF(VLOOKUP(CL167,'Footnotes list'!$D$9:$E$58,2,FALSE)=0,\"\",VLOOKUP(CL167,'Footnotes list'!$D$9:$E$58,2,FALSE) ) )","v":""},null,null,null,null,{"$f":"IF(TRIM(CQ167)=\"\", \"\", IF(VLOOKUP(CQ167,'Footnotes list'!$D$9:$E$58,2,FALSE)=0,\"\",VLOOKUP(CQ167,'Footnotes list'!$D$9:$E$58,2,FALSE) ) )","v":""},null,null,null,null,{"$f":"IF(TRIM(CV167)=\"\", \"\", IF(VLOOKUP(CV167,'Footnotes list'!$D$9:$E$58,2,FALSE)=0,\"\",VLOOKUP(CV167,'Footnotes list'!$D$9:$E$58,2,FALSE) ) )","v":""},null,null,null,null,{"$f":"IF(TRIM(DA167)=\"\", \"\", IF(VLOOKUP(DA167,'Footnotes list'!$D$9:$E$58,2,FALSE)=0,\"\",VLOOKUP(DA167,'Footnotes list'!$D$9:$E$58,2,FALSE) ) )","v":""},null,null,null,null,{"$f":"IF(TRIM(DF167)=\"\", \"\", IF(VLOOKUP(DF167,'Footnotes list'!$D$9:$E$58,2,FALSE)=0,\"\",VLOOKUP(DF167,'Footnotes list'!$D$9:$E$58,2,FALSE) ) )","v":""},null,null,null,null,{"$f":"IF(TRIM(DK167)=\"\", \"\", IF(VLOOKUP(DK167,'Footnotes list'!$D$9:$E$58,2,FALSE)=0,\"\",VLOOKUP(DK167,'Footnotes list'!$D$9:$E$58,2,FALSE) ) )","v":""},null,null,null,null,{"$f":"IF(TRIM(DP167)=\"\", \"\", IF(VLOOKUP(DP167,'Footnotes list'!$D$9:$E$58,2,FALSE)=0,\"\",VLOOKUP(DP167,'Footnotes list'!$D$9:$E$58,2,FALSE) ) )","v":""},null,null,null,null,{"$f":"IF(TRIM(DU167)=\"\", \"\", IF(VLOOKUP(DU167,'Footnotes list'!$D$9:$E$58,2,FALSE)=0,\"\",VLOOKUP(DU167,'Footnotes list'!$D$9:$E$58,2,FALSE) ) )","v":""},null,null,null,null,{"$f":"IF(TRIM(DZ167)=\"\", \"\", IF(VLOOKUP(DZ167,'Footnotes list'!$D$9:$E$58,2,FALSE)=0,\"\",VLOOKUP(DZ167,'Footnotes list'!$D$9:$E$58,2,FALSE) ) )","v":""},null,null,null,null,{"$f":"IF(TRIM(EE167)=\"\", \"\", IF(VLOOKUP(EE167,'Footnotes list'!$D$9:$E$58,2,FALSE)=0,\"\",VLOOKUP(EE167,'Footnotes list'!$D$9:$E$58,2,FALSE) ) )","v":""},null,null,null,null,{"$f":"IF(TRIM(EJ167)=\"\", \"\", IF(VLOOKUP(EJ167,'Footnotes list'!$D$9:$E$58,2,FALSE)=0,\"\",VLOOKUP(EJ167,'Footnotes list'!$D$9:$E$58,2,FALSE) ) )","v":""},null,null,null,null,{"$f":"IF(TRIM(EO167)=\"\", \"\", IF(VLOOKUP(EO167,'Footnotes list'!$D$9:$E$58,2,FALSE)=0,\"\",VLOOKUP(EO167,'Footnotes list'!$D$9:$E$58,2,FALSE) ) )","v":""},null,null,null,null,{"$f":"IF(TRIM(ET167)=\"\", \"\", IF(VLOOKUP(ET167,'Footnotes list'!$D$9:$E$58,2,FALSE)=0,\"\",VLOOKUP(ET167,'Footnotes list'!$D$9:$E$58,2,FALSE) ) )","v":""},null,null,null,null,{"$f":"IF(TRIM(EY167)=\"\", \"\", IF(VLOOKUP(EY167,'Footnotes list'!$D$9:$E$58,2,FALSE)=0,\"\",VLOOKUP(EY167,'Footnotes list'!$D$9:$E$58,2,FALSE) ) )","v":""}]
[null,null,"E39","C_REP","cleaner and resource efficient products",null,null,null,null,null,{"$f":"IF(TRIM(J168)=\"\", \"\", IF(VLOOKUP(J168,'Footnotes list'!$D$9:$E$58,2,FALSE)=0,\"\",VLOOKUP(J168,'Footnotes list'!$D$9:$E$58,2,FALSE) ) )","v":""},null,null,null,null,{"$f":"IF(TRIM(O168)=\"\", \"\", IF(VLOOKUP(O168,'Footnotes list'!$D$9:$E$58,2,FALSE)=0,\"\",VLOOKUP(O168,'Footnotes list'!$D$9:$E$58,2,FALSE) ) )","v":""},null,null,null,null,{"$f":"IF(TRIM(T168)=\"\", \"\", IF(VLOOKUP(T168,'Footnotes list'!$D$9:$E$58,2,FALSE)=0,\"\",VLOOKUP(T168,'Footnotes list'!$D$9:$E$58,2,FALSE) ) )","v":""},null,null,null,null,{"$f":"IF(TRIM(Y168)=\"\", \"\", IF(VLOOKUP(Y168,'Footnotes list'!$D$9:$E$58,2,FALSE)=0,\"\",VLOOKUP(Y168,'Footnotes list'!$D$9:$E$58,2,FALSE) ) )","v":""},null,null,null,null,{"$f":"IF(TRIM(AD168)=\"\", \"\", IF(VLOOKUP(AD168,'Footnotes list'!$D$9:$E$58,2,FALSE)=0,\"\",VLOOKUP(AD168,'Footnotes list'!$D$9:$E$58,2,FALSE) ) )","v":""},null,null,null,null,{"$f":"IF(TRIM(AI168)=\"\", \"\", IF(VLOOKUP(AI168,'Footnotes list'!$D$9:$E$58,2,FALSE)=0,\"\",VLOOKUP(AI168,'Footnotes list'!$D$9:$E$58,2,FALSE) ) )","v":""},null,null,null,null,{"$f":"IF(TRIM(AN168)=\"\", \"\", IF(VLOOKUP(AN168,'Footnotes list'!$D$9:$E$58,2,FALSE)=0,\"\",VLOOKUP(AN168,'Footnotes list'!$D$9:$E$58,2,FALSE) ) )","v":""},null,null,null,null,{"$f":"IF(TRIM(AS168)=\"\", \"\", IF(VLOOKUP(AS168,'Footnotes list'!$D$9:$E$58,2,FALSE)=0,\"\",VLOOKUP(AS168,'Footnotes list'!$D$9:$E$58,2,FALSE) ) )","v":""},null,null,null,null,{"$f":"IF(TRIM(AX168)=\"\", \"\", IF(VLOOKUP(AX168,'Footnotes list'!$D$9:$E$58,2,FALSE)=0,\"\",VLOOKUP(AX168,'Footnotes list'!$D$9:$E$58,2,FALSE) ) )","v":""},null,null,null,null,{"$f":"IF(TRIM(BC168)=\"\", \"\", IF(VLOOKUP(BC168,'Footnotes list'!$D$9:$E$58,2,FALSE)=0,\"\",VLOOKUP(BC168,'Footnotes list'!$D$9:$E$58,2,FALSE) ) )","v":""},null,null,null,null,{"$f":"IF(TRIM(BH168)=\"\", \"\", IF(VLOOKUP(BH168,'Footnotes list'!$D$9:$E$58,2,FALSE)=0,\"\",VLOOKUP(BH168,'Footnotes list'!$D$9:$E$58,2,FALSE) ) )","v":""},null,null,null,null,{"$f":"IF(TRIM(BM168)=\"\", \"\", IF(VLOOKUP(BM168,'Footnotes list'!$D$9:$E$58,2,FALSE)=0,\"\",VLOOKUP(BM168,'Footnotes list'!$D$9:$E$58,2,FALSE) ) )","v":""},null,null,null,null,{"$f":"IF(TRIM(BR168)=\"\", \"\", IF(VLOOKUP(BR168,'Footnotes list'!$D$9:$E$58,2,FALSE)=0,\"\",VLOOKUP(BR168,'Footnotes list'!$D$9:$E$58,2,FALSE) ) )","v":""},null,null,null,null,{"$f":"IF(TRIM(BW168)=\"\", \"\", IF(VLOOKUP(BW168,'Footnotes list'!$D$9:$E$58,2,FALSE)=0,\"\",VLOOKUP(BW168,'Footnotes list'!$D$9:$E$58,2,FALSE) ) )","v":""},null,null,null,null,{"$f":"IF(TRIM(CB168)=\"\", \"\", IF(VLOOKUP(CB168,'Footnotes list'!$D$9:$E$58,2,FALSE)=0,\"\",VLOOKUP(CB168,'Footnotes list'!$D$9:$E$58,2,FALSE) ) )","v":""},null,null,null,null,{"$f":"IF(TRIM(CG168)=\"\", \"\", IF(VLOOKUP(CG168,'Footnotes list'!$D$9:$E$58,2,FALSE)=0,\"\",VLOOKUP(CG168,'Footnotes list'!$D$9:$E$58,2,FALSE) ) )","v":""},null,null,null,null,{"$f":"IF(TRIM(CL168)=\"\", \"\", IF(VLOOKUP(CL168,'Footnotes list'!$D$9:$E$58,2,FALSE)=0,\"\",VLOOKUP(CL168,'Footnotes list'!$D$9:$E$58,2,FALSE) ) )","v":""},null,null,null,null,{"$f":"IF(TRIM(CQ168)=\"\", \"\", IF(VLOOKUP(CQ168,'Footnotes list'!$D$9:$E$58,2,FALSE)=0,\"\",VLOOKUP(CQ168,'Footnotes list'!$D$9:$E$58,2,FALSE) ) )","v":""},null,null,null,null,{"$f":"IF(TRIM(CV168)=\"\", \"\", IF(VLOOKUP(CV168,'Footnotes list'!$D$9:$E$58,2,FALSE)=0,\"\",VLOOKUP(CV168,'Footnotes list'!$D$9:$E$58,2,FALSE) ) )","v":""},null,null,null,null,{"$f":"IF(TRIM(DA168)=\"\", \"\", IF(VLOOKUP(DA168,'Footnotes list'!$D$9:$E$58,2,FALSE)=0,\"\",VLOOKUP(DA168,'Footnotes list'!$D$9:$E$58,2,FALSE) ) )","v":""},null,null,null,null,{"$f":"IF(TRIM(DF168)=\"\", \"\", IF(VLOOKUP(DF168,'Footnotes list'!$D$9:$E$58,2,FALSE)=0,\"\",VLOOKUP(DF168,'Footnotes list'!$D$9:$E$58,2,FALSE) ) )","v":""},null,null,null,null,{"$f":"IF(TRIM(DK168)=\"\", \"\", IF(VLOOKUP(DK168,'Footnotes list'!$D$9:$E$58,2,FALSE)=0,\"\",VLOOKUP(DK168,'Footnotes list'!$D$9:$E$58,2,FALSE) ) )","v":""},null,null,null,null,{"$f":"IF(TRIM(DP168)=\"\", \"\", IF(VLOOKUP(DP168,'Footnotes list'!$D$9:$E$58,2,FALSE)=0,\"\",VLOOKUP(DP168,'Footnotes list'!$D$9:$E$58,2,FALSE) ) )","v":""},null,null,null,null,{"$f":"IF(TRIM(DU168)=\"\", \"\", IF(VLOOKUP(DU168,'Footnotes list'!$D$9:$E$58,2,FALSE)=0,\"\",VLOOKUP(DU168,'Footnotes list'!$D$9:$E$58,2,FALSE) ) )","v":""},null,null,null,null,{"$f":"IF(TRIM(DZ168)=\"\", \"\", IF(VLOOKUP(DZ168,'Footnotes list'!$D$9:$E$58,2,FALSE)=0,\"\",VLOOKUP(DZ168,'Footnotes list'!$D$9:$E$58,2,FALSE) ) )","v":""},null,null,null,null,{"$f":"IF(TRIM(EE168)=\"\", \"\", IF(VLOOKUP(EE168,'Footnotes list'!$D$9:$E$58,2,FALSE)=0,\"\",VLOOKUP(EE168,'Footnotes list'!$D$9:$E$58,2,FALSE) ) )","v":""},null,null,null,null,{"$f":"IF(TRIM(EJ168)=\"\", \"\", IF(VLOOKUP(EJ168,'Footnotes list'!$D$9:$E$58,2,FALSE)=0,\"\",VLOOKUP(EJ168,'Footnotes list'!$D$9:$E$58,2,FALSE) ) )","v":""},null,null,null,null,{"$f":"IF(TRIM(EO168)=\"\", \"\", IF(VLOOKUP(EO168,'Footnotes list'!$D$9:$E$58,2,FALSE)=0,\"\",VLOOKUP(EO168,'Footnotes list'!$D$9:$E$58,2,FALSE) ) )","v":""},null,null,null,null,{"$f":"IF(TRIM(ET168)=\"\", \"\", IF(VLOOKUP(ET168,'Footnotes list'!$D$9:$E$58,2,FALSE)=0,\"\",VLOOKUP(ET168,'Footnotes list'!$D$9:$E$58,2,FALSE) ) )","v":""},null,null,null,null,{"$f":"IF(TRIM(EY168)=\"\", \"\", IF(VLOOKUP(EY168,'Footnotes list'!$D$9:$E$58,2,FALSE)=0,\"\",VLOOKUP(EY168,'Footnotes list'!$D$9:$E$58,2,FALSE) ) )","v":""}]
[null,null,"F","TOT_EGSS","Total F - Construction, of which:",null,null,null,null,null,{"$f":"IF(TRIM(J169)=\"\", \"\", IF(VLOOKUP(J169,'Footnotes list'!$D$9:$E$58,2,FALSE)=0,\"\",VLOOKUP(J169,'Footnotes list'!$D$9:$E$58,2,FALSE) ) )","v":""},null,null,null,null,{"$f":"IF(TRIM(O169)=\"\", \"\", IF(VLOOKUP(O169,'Footnotes list'!$D$9:$E$58,2,FALSE)=0,\"\",VLOOKUP(O169,'Footnotes list'!$D$9:$E$58,2,FALSE) ) )","v":""},null,null,null,null,{"$f":"IF(TRIM(T169)=\"\", \"\", IF(VLOOKUP(T169,'Footnotes list'!$D$9:$E$58,2,FALSE)=0,\"\",VLOOKUP(T169,'Footnotes list'!$D$9:$E$58,2,FALSE) ) )","v":""},null,null,null,null,{"$f":"IF(TRIM(Y169)=\"\", \"\", IF(VLOOKUP(Y169,'Footnotes list'!$D$9:$E$58,2,FALSE)=0,\"\",VLOOKUP(Y169,'Footnotes list'!$D$9:$E$58,2,FALSE) ) )","v":""},null,null,null,null,{"$f":"IF(TRIM(AD169)=\"\", \"\", IF(VLOOKUP(AD169,'Footnotes list'!$D$9:$E$58,2,FALSE)=0,\"\",VLOOKUP(AD169,'Footnotes list'!$D$9:$E$58,2,FALSE) ) )","v":""},null,null,null,null,{"$f":"IF(TRIM(AI169)=\"\", \"\", IF(VLOOKUP(AI169,'Footnotes list'!$D$9:$E$58,2,FALSE)=0,\"\",VLOOKUP(AI169,'Footnotes list'!$D$9:$E$58,2,FALSE) ) )","v":""},null,null,null,null,{"$f":"IF(TRIM(AN169)=\"\", \"\", IF(VLOOKUP(AN169,'Footnotes list'!$D$9:$E$58,2,FALSE)=0,\"\",VLOOKUP(AN169,'Footnotes list'!$D$9:$E$58,2,FALSE) ) )","v":""},null,null,null,null,{"$f":"IF(TRIM(AS169)=\"\", \"\", IF(VLOOKUP(AS169,'Footnotes list'!$D$9:$E$58,2,FALSE)=0,\"\",VLOOKUP(AS169,'Footnotes list'!$D$9:$E$58,2,FALSE) ) )","v":""},null,null,null,null,{"$f":"IF(TRIM(AX169)=\"\", \"\", IF(VLOOKUP(AX169,'Footnotes list'!$D$9:$E$58,2,FALSE)=0,\"\",VLOOKUP(AX169,'Footnotes list'!$D$9:$E$58,2,FALSE) ) )","v":""},null,null,null,null,{"$f":"IF(TRIM(BC169)=\"\", \"\", IF(VLOOKUP(BC169,'Footnotes list'!$D$9:$E$58,2,FALSE)=0,\"\",VLOOKUP(BC169,'Footnotes list'!$D$9:$E$58,2,FALSE) ) )","v":""},null,null,null,null,{"$f":"IF(TRIM(BH169)=\"\", \"\", IF(VLOOKUP(BH169,'Footnotes list'!$D$9:$E$58,2,FALSE)=0,\"\",VLOOKUP(BH169,'Footnotes list'!$D$9:$E$58,2,FALSE) ) )","v":""},null,null,null,null,{"$f":"IF(TRIM(BM169)=\"\", \"\", IF(VLOOKUP(BM169,'Footnotes list'!$D$9:$E$58,2,FALSE)=0,\"\",VLOOKUP(BM169,'Footnotes list'!$D$9:$E$58,2,FALSE) ) )","v":""},null,null,null,null,{"$f":"IF(TRIM(BR169)=\"\", \"\", IF(VLOOKUP(BR169,'Footnotes list'!$D$9:$E$58,2,FALSE)=0,\"\",VLOOKUP(BR169,'Footnotes list'!$D$9:$E$58,2,FALSE) ) )","v":""},null,null,null,null,{"$f":"IF(TRIM(BW169)=\"\", \"\", IF(VLOOKUP(BW169,'Footnotes list'!$D$9:$E$58,2,FALSE)=0,\"\",VLOOKUP(BW169,'Footnotes list'!$D$9:$E$58,2,FALSE) ) )","v":""},null,null,null,null,{"$f":"IF(TRIM(CB169)=\"\", \"\", IF(VLOOKUP(CB169,'Footnotes list'!$D$9:$E$58,2,FALSE)=0,\"\",VLOOKUP(CB169,'Footnotes list'!$D$9:$E$58,2,FALSE) ) )","v":""},null,null,null,null,{"$f":"IF(TRIM(CG169)=\"\", \"\", IF(VLOOKUP(CG169,'Footnotes list'!$D$9:$E$58,2,FALSE)=0,\"\",VLOOKUP(CG169,'Footnotes list'!$D$9:$E$58,2,FALSE) ) )","v":""},null,null,null,null,{"$f":"IF(TRIM(CL169)=\"\", \"\", IF(VLOOKUP(CL169,'Footnotes list'!$D$9:$E$58,2,FALSE)=0,\"\",VLOOKUP(CL169,'Footnotes list'!$D$9:$E$58,2,FALSE) ) )","v":""},null,null,null,null,{"$f":"IF(TRIM(CQ169)=\"\", \"\", IF(VLOOKUP(CQ169,'Footnotes list'!$D$9:$E$58,2,FALSE)=0,\"\",VLOOKUP(CQ169,'Footnotes list'!$D$9:$E$58,2,FALSE) ) )","v":""},null,null,null,null,{"$f":"IF(TRIM(CV169)=\"\", \"\", IF(VLOOKUP(CV169,'Footnotes list'!$D$9:$E$58,2,FALSE)=0,\"\",VLOOKUP(CV169,'Footnotes list'!$D$9:$E$58,2,FALSE) ) )","v":""},null,null,null,null,{"$f":"IF(TRIM(DA169)=\"\", \"\", IF(VLOOKUP(DA169,'Footnotes list'!$D$9:$E$58,2,FALSE)=0,\"\",VLOOKUP(DA169,'Footnotes list'!$D$9:$E$58,2,FALSE) ) )","v":""},null,null,null,null,{"$f":"IF(TRIM(DF169)=\"\", \"\", IF(VLOOKUP(DF169,'Footnotes list'!$D$9:$E$58,2,FALSE)=0,\"\",VLOOKUP(DF169,'Footnotes list'!$D$9:$E$58,2,FALSE) ) )","v":""},null,null,null,null,{"$f":"IF(TRIM(DK169)=\"\", \"\", IF(VLOOKUP(DK169,'Footnotes list'!$D$9:$E$58,2,FALSE)=0,\"\",VLOOKUP(DK169,'Footnotes list'!$D$9:$E$58,2,FALSE) ) )","v":""},null,null,null,null,{"$f":"IF(TRIM(DP169)=\"\", \"\", IF(VLOOKUP(DP169,'Footnotes list'!$D$9:$E$58,2,FALSE)=0,\"\",VLOOKUP(DP169,'Footnotes list'!$D$9:$E$58,2,FALSE) ) )","v":""},null,null,null,null,{"$f":"IF(TRIM(DU169)=\"\", \"\", IF(VLOOKUP(DU169,'Footnotes list'!$D$9:$E$58,2,FALSE)=0,\"\",VLOOKUP(DU169,'Footnotes list'!$D$9:$E$58,2,FALSE) ) )","v":""},null,null,null,null,{"$f":"IF(TRIM(DZ169)=\"\", \"\", IF(VLOOKUP(DZ169,'Footnotes list'!$D$9:$E$58,2,FALSE)=0,\"\",VLOOKUP(DZ169,'Footnotes list'!$D$9:$E$58,2,FALSE) ) )","v":""},null,null,null,null,{"$f":"IF(TRIM(EE169)=\"\", \"\", IF(VLOOKUP(EE169,'Footnotes list'!$D$9:$E$58,2,FALSE)=0,\"\",VLOOKUP(EE169,'Footnotes list'!$D$9:$E$58,2,FALSE) ) )","v":""},null,null,null,null,{"$f":"IF(TRIM(EJ169)=\"\", \"\", IF(VLOOKUP(EJ169,'Footnotes list'!$D$9:$E$58,2,FALSE)=0,\"\",VLOOKUP(EJ169,'Footnotes list'!$D$9:$E$58,2,FALSE) ) )","v":""},null,null,null,null,{"$f":"IF(TRIM(EO169)=\"\", \"\", IF(VLOOKUP(EO169,'Footnotes list'!$D$9:$E$58,2,FALSE)=0,\"\",VLOOKUP(EO169,'Footnotes list'!$D$9:$E$58,2,FALSE) ) )","v":""},null,null,null,null,{"$f":"IF(TRIM(ET169)=\"\", \"\", IF(VLOOKUP(ET169,'Footnotes list'!$D$9:$E$58,2,FALSE)=0,\"\",VLOOKUP(ET169,'Footnotes list'!$D$9:$E$58,2,FALSE) ) )","v":""},null,null,null,null,{"$f":"IF(TRIM(EY169)=\"\", \"\", IF(VLOOKUP(EY169,'Footnotes list'!$D$9:$E$58,2,FALSE)=0,\"\",VLOOKUP(EY169,'Footnotes list'!$D$9:$E$58,2,FALSE) ) )","v":""}]
[null,null,"F","ANC","ancillary activities",null,null,null,null,null,{"$f":"IF(TRIM(J170)=\"\", \"\", IF(VLOOKUP(J170,'Footnotes list'!$D$9:$E$58,2,FALSE)=0,\"\",VLOOKUP(J170,'Footnotes list'!$D$9:$E$58,2,FALSE) ) )","v":""},null,null,null,null,{"$f":"IF(TRIM(O170)=\"\", \"\", IF(VLOOKUP(O170,'Footnotes list'!$D$9:$E$58,2,FALSE)=0,\"\",VLOOKUP(O170,'Footnotes list'!$D$9:$E$58,2,FALSE) ) )","v":""},null,null,null,null,{"$f":"IF(TRIM(T170)=\"\", \"\", IF(VLOOKUP(T170,'Footnotes list'!$D$9:$E$58,2,FALSE)=0,\"\",VLOOKUP(T170,'Footnotes list'!$D$9:$E$58,2,FALSE) ) )","v":""},null,null,null,null,{"$f":"IF(TRIM(Y170)=\"\", \"\", IF(VLOOKUP(Y170,'Footnotes list'!$D$9:$E$58,2,FALSE)=0,\"\",VLOOKUP(Y170,'Footnotes list'!$D$9:$E$58,2,FALSE) ) )","v":""},null,null,null,null,{"$f":"IF(TRIM(AD170)=\"\", \"\", IF(VLOOKUP(AD170,'Footnotes list'!$D$9:$E$58,2,FALSE)=0,\"\",VLOOKUP(AD170,'Footnotes list'!$D$9:$E$58,2,FALSE) ) )","v":""},null,null,null,null,{"$f":"IF(TRIM(AI170)=\"\", \"\", IF(VLOOKUP(AI170,'Footnotes list'!$D$9:$E$58,2,FALSE)=0,\"\",VLOOKUP(AI170,'Footnotes list'!$D$9:$E$58,2,FALSE) ) )","v":""},null,null,null,null,{"$f":"IF(TRIM(AN170)=\"\", \"\", IF(VLOOKUP(AN170,'Footnotes list'!$D$9:$E$58,2,FALSE)=0,\"\",VLOOKUP(AN170,'Footnotes list'!$D$9:$E$58,2,FALSE) ) )","v":""},null,null,null,null,{"$f":"IF(TRIM(AS170)=\"\", \"\", IF(VLOOKUP(AS170,'Footnotes list'!$D$9:$E$58,2,FALSE)=0,\"\",VLOOKUP(AS170,'Footnotes list'!$D$9:$E$58,2,FALSE) ) )","v":""},null,null,null,null,{"$f":"IF(TRIM(AX170)=\"\", \"\", IF(VLOOKUP(AX170,'Footnotes list'!$D$9:$E$58,2,FALSE)=0,\"\",VLOOKUP(AX170,'Footnotes list'!$D$9:$E$58,2,FALSE) ) )","v":""},null,null,null,null,{"$f":"IF(TRIM(BC170)=\"\", \"\", IF(VLOOKUP(BC170,'Footnotes list'!$D$9:$E$58,2,FALSE)=0,\"\",VLOOKUP(BC170,'Footnotes list'!$D$9:$E$58,2,FALSE) ) )","v":""},null,null,null,null,{"$f":"IF(TRIM(BH170)=\"\", \"\", IF(VLOOKUP(BH170,'Footnotes list'!$D$9:$E$58,2,FALSE)=0,\"\",VLOOKUP(BH170,'Footnotes list'!$D$9:$E$58,2,FALSE) ) )","v":""},null,null,null,null,{"$f":"IF(TRIM(BM170)=\"\", \"\", IF(VLOOKUP(BM170,'Footnotes list'!$D$9:$E$58,2,FALSE)=0,\"\",VLOOKUP(BM170,'Footnotes list'!$D$9:$E$58,2,FALSE) ) )","v":""},null,null,null,null,{"$f":"IF(TRIM(BR170)=\"\", \"\", IF(VLOOKUP(BR170,'Footnotes list'!$D$9:$E$58,2,FALSE)=0,\"\",VLOOKUP(BR170,'Footnotes list'!$D$9:$E$58,2,FALSE) ) )","v":""},null,null,null,null,{"$f":"IF(TRIM(BW170)=\"\", \"\", IF(VLOOKUP(BW170,'Footnotes list'!$D$9:$E$58,2,FALSE)=0,\"\",VLOOKUP(BW170,'Footnotes list'!$D$9:$E$58,2,FALSE) ) )","v":""},null,null,null,null,{"$f":"IF(TRIM(CB170)=\"\", \"\", IF(VLOOKUP(CB170,'Footnotes list'!$D$9:$E$58,2,FALSE)=0,\"\",VLOOKUP(CB170,'Footnotes list'!$D$9:$E$58,2,FALSE) ) )","v":""},null,null,null,null,{"$f":"IF(TRIM(CG170)=\"\", \"\", IF(VLOOKUP(CG170,'Footnotes list'!$D$9:$E$58,2,FALSE)=0,\"\",VLOOKUP(CG170,'Footnotes list'!$D$9:$E$58,2,FALSE) ) )","v":""},null,null,null,null,{"$f":"IF(TRIM(CL170)=\"\", \"\", IF(VLOOKUP(CL170,'Footnotes list'!$D$9:$E$58,2,FALSE)=0,\"\",VLOOKUP(CL170,'Footnotes list'!$D$9:$E$58,2,FALSE) ) )","v":""},null,null,null,null,{"$f":"IF(TRIM(CQ170)=\"\", \"\", IF(VLOOKUP(CQ170,'Footnotes list'!$D$9:$E$58,2,FALSE)=0,\"\",VLOOKUP(CQ170,'Footnotes list'!$D$9:$E$58,2,FALSE) ) )","v":""},null,null,null,null,{"$f":"IF(TRIM(CV170)=\"\", \"\", IF(VLOOKUP(CV170,'Footnotes list'!$D$9:$E$58,2,FALSE)=0,\"\",VLOOKUP(CV170,'Footnotes list'!$D$9:$E$58,2,FALSE) ) )","v":""},null,null,null,null,{"$f":"IF(TRIM(DA170)=\"\", \"\", IF(VLOOKUP(DA170,'Footnotes list'!$D$9:$E$58,2,FALSE)=0,\"\",VLOOKUP(DA170,'Footnotes list'!$D$9:$E$58,2,FALSE) ) )","v":""},null,null,null,null,{"$f":"IF(TRIM(DF170)=\"\", \"\", IF(VLOOKUP(DF170,'Footnotes list'!$D$9:$E$58,2,FALSE)=0,\"\",VLOOKUP(DF170,'Footnotes list'!$D$9:$E$58,2,FALSE) ) )","v":""},null,null,null,null,{"$f":"IF(TRIM(DK170)=\"\", \"\", IF(VLOOKUP(DK170,'Footnotes list'!$D$9:$E$58,2,FALSE)=0,\"\",VLOOKUP(DK170,'Footnotes list'!$D$9:$E$58,2,FALSE) ) )","v":""},null,null,null,null,{"$f":"IF(TRIM(DP170)=\"\", \"\", IF(VLOOKUP(DP170,'Footnotes list'!$D$9:$E$58,2,FALSE)=0,\"\",VLOOKUP(DP170,'Footnotes list'!$D$9:$E$58,2,FALSE) ) )","v":""},null,null,null,null,{"$f":"IF(TRIM(DU170)=\"\", \"\", IF(VLOOKUP(DU170,'Footnotes list'!$D$9:$E$58,2,FALSE)=0,\"\",VLOOKUP(DU170,'Footnotes list'!$D$9:$E$58,2,FALSE) ) )","v":""},null,null,null,null,{"$f":"IF(TRIM(DZ170)=\"\", \"\", IF(VLOOKUP(DZ170,'Footnotes list'!$D$9:$E$58,2,FALSE)=0,\"\",VLOOKUP(DZ170,'Footnotes list'!$D$9:$E$58,2,FALSE) ) )","v":""},null,null,null,null,{"$f":"IF(TRIM(EE170)=\"\", \"\", IF(VLOOKUP(EE170,'Footnotes list'!$D$9:$E$58,2,FALSE)=0,\"\",VLOOKUP(EE170,'Footnotes list'!$D$9:$E$58,2,FALSE) ) )","v":""},null,null,null,null,{"$f":"IF(TRIM(EJ170)=\"\", \"\", IF(VLOOKUP(EJ170,'Footnotes list'!$D$9:$E$58,2,FALSE)=0,\"\",VLOOKUP(EJ170,'Footnotes list'!$D$9:$E$58,2,FALSE) ) )","v":""},null,null,null,null,{"$f":"IF(TRIM(EO170)=\"\", \"\", IF(VLOOKUP(EO170,'Footnotes list'!$D$9:$E$58,2,FALSE)=0,\"\",VLOOKUP(EO170,'Footnotes list'!$D$9:$E$58,2,FALSE) ) )","v":""},null,null,null,null,{"$f":"IF(TRIM(ET170)=\"\", \"\", IF(VLOOKUP(ET170,'Footnotes list'!$D$9:$E$58,2,FALSE)=0,\"\",VLOOKUP(ET170,'Footnotes list'!$D$9:$E$58,2,FALSE) ) )","v":""},null,null,null,null,{"$f":"IF(TRIM(EY170)=\"\", \"\", IF(VLOOKUP(EY170,'Footnotes list'!$D$9:$E$58,2,FALSE)=0,\"\",VLOOKUP(EY170,'Footnotes list'!$D$9:$E$58,2,FALSE) ) )","v":""}]
[null,null,"F","NMKT","non-market activities",null,null,null,null,null,{"$f":"IF(TRIM(J171)=\"\", \"\", IF(VLOOKUP(J171,'Footnotes list'!$D$9:$E$58,2,FALSE)=0,\"\",VLOOKUP(J171,'Footnotes list'!$D$9:$E$58,2,FALSE) ) )","v":""},null,null,null,null,{"$f":"IF(TRIM(O171)=\"\", \"\", IF(VLOOKUP(O171,'Footnotes list'!$D$9:$E$58,2,FALSE)=0,\"\",VLOOKUP(O171,'Footnotes list'!$D$9:$E$58,2,FALSE) ) )","v":""},null,null,null,null,{"$f":"IF(TRIM(T171)=\"\", \"\", IF(VLOOKUP(T171,'Footnotes list'!$D$9:$E$58,2,FALSE)=0,\"\",VLOOKUP(T171,'Footnotes list'!$D$9:$E$58,2,FALSE) ) )","v":""},null,null,null,null,{"$f":"IF(TRIM(Y171)=\"\", \"\", IF(VLOOKUP(Y171,'Footnotes list'!$D$9:$E$58,2,FALSE)=0,\"\",VLOOKUP(Y171,'Footnotes list'!$D$9:$E$58,2,FALSE) ) )","v":""},null,null,null,null,{"$f":"IF(TRIM(AD171)=\"\", \"\", IF(VLOOKUP(AD171,'Footnotes list'!$D$9:$E$58,2,FALSE)=0,\"\",VLOOKUP(AD171,'Footnotes list'!$D$9:$E$58,2,FALSE) ) )","v":""},null,null,null,null,{"$f":"IF(TRIM(AI171)=\"\", \"\", IF(VLOOKUP(AI171,'Footnotes list'!$D$9:$E$58,2,FALSE)=0,\"\",VLOOKUP(AI171,'Footnotes list'!$D$9:$E$58,2,FALSE) ) )","v":""},null,null,null,null,{"$f":"IF(TRIM(AN171)=\"\", \"\", IF(VLOOKUP(AN171,'Footnotes list'!$D$9:$E$58,2,FALSE)=0,\"\",VLOOKUP(AN171,'Footnotes list'!$D$9:$E$58,2,FALSE) ) )","v":""},null,null,null,null,{"$f":"IF(TRIM(AS171)=\"\", \"\", IF(VLOOKUP(AS171,'Footnotes list'!$D$9:$E$58,2,FALSE)=0,\"\",VLOOKUP(AS171,'Footnotes list'!$D$9:$E$58,2,FALSE) ) )","v":""},null,null,null,null,{"$f":"IF(TRIM(AX171)=\"\", \"\", IF(VLOOKUP(AX171,'Footnotes list'!$D$9:$E$58,2,FALSE)=0,\"\",VLOOKUP(AX171,'Footnotes list'!$D$9:$E$58,2,FALSE) ) )","v":""},null,null,null,null,{"$f":"IF(TRIM(BC171)=\"\", \"\", IF(VLOOKUP(BC171,'Footnotes list'!$D$9:$E$58,2,FALSE)=0,\"\",VLOOKUP(BC171,'Footnotes list'!$D$9:$E$58,2,FALSE) ) )","v":""},null,null,null,null,{"$f":"IF(TRIM(BH171)=\"\", \"\", IF(VLOOKUP(BH171,'Footnotes list'!$D$9:$E$58,2,FALSE)=0,\"\",VLOOKUP(BH171,'Footnotes list'!$D$9:$E$58,2,FALSE) ) )","v":""},null,null,null,null,{"$f":"IF(TRIM(BM171)=\"\", \"\", IF(VLOOKUP(BM171,'Footnotes list'!$D$9:$E$58,2,FALSE)=0,\"\",VLOOKUP(BM171,'Footnotes list'!$D$9:$E$58,2,FALSE) ) )","v":""},null,null,null,null,{"$f":"IF(TRIM(BR171)=\"\", \"\", IF(VLOOKUP(BR171,'Footnotes list'!$D$9:$E$58,2,FALSE)=0,\"\",VLOOKUP(BR171,'Footnotes list'!$D$9:$E$58,2,FALSE) ) )","v":""},null,null,null,null,{"$f":"IF(TRIM(BW171)=\"\", \"\", IF(VLOOKUP(BW171,'Footnotes list'!$D$9:$E$58,2,FALSE)=0,\"\",VLOOKUP(BW171,'Footnotes list'!$D$9:$E$58,2,FALSE) ) )","v":""},null,null,null,null,{"$f":"IF(TRIM(CB171)=\"\", \"\", IF(VLOOKUP(CB171,'Footnotes list'!$D$9:$E$58,2,FALSE)=0,\"\",VLOOKUP(CB171,'Footnotes list'!$D$9:$E$58,2,FALSE) ) )","v":""},null,null,null,null,{"$f":"IF(TRIM(CG171)=\"\", \"\", IF(VLOOKUP(CG171,'Footnotes list'!$D$9:$E$58,2,FALSE)=0,\"\",VLOOKUP(CG171,'Footnotes list'!$D$9:$E$58,2,FALSE) ) )","v":""},null,null,null,null,{"$f":"IF(TRIM(CL171)=\"\", \"\", IF(VLOOKUP(CL171,'Footnotes list'!$D$9:$E$58,2,FALSE)=0,\"\",VLOOKUP(CL171,'Footnotes list'!$D$9:$E$58,2,FALSE) ) )","v":""},null,null,null,null,{"$f":"IF(TRIM(CQ171)=\"\", \"\", IF(VLOOKUP(CQ171,'Footnotes list'!$D$9:$E$58,2,FALSE)=0,\"\",VLOOKUP(CQ171,'Footnotes list'!$D$9:$E$58,2,FALSE) ) )","v":""},null,null,null,null,{"$f":"IF(TRIM(CV171)=\"\", \"\", IF(VLOOKUP(CV171,'Footnotes list'!$D$9:$E$58,2,FALSE)=0,\"\",VLOOKUP(CV171,'Footnotes list'!$D$9:$E$58,2,FALSE) ) )","v":""},null,null,null,null,{"$f":"IF(TRIM(DA171)=\"\", \"\", IF(VLOOKUP(DA171,'Footnotes list'!$D$9:$E$58,2,FALSE)=0,\"\",VLOOKUP(DA171,'Footnotes list'!$D$9:$E$58,2,FALSE) ) )","v":""},null,null,null,null,{"$f":"IF(TRIM(DF171)=\"\", \"\", IF(VLOOKUP(DF171,'Footnotes list'!$D$9:$E$58,2,FALSE)=0,\"\",VLOOKUP(DF171,'Footnotes list'!$D$9:$E$58,2,FALSE) ) )","v":""},null,null,null,null,{"$f":"IF(TRIM(DK171)=\"\", \"\", IF(VLOOKUP(DK171,'Footnotes list'!$D$9:$E$58,2,FALSE)=0,\"\",VLOOKUP(DK171,'Footnotes list'!$D$9:$E$58,2,FALSE) ) )","v":""},null,null,null,null,{"$f":"IF(TRIM(DP171)=\"\", \"\", IF(VLOOKUP(DP171,'Footnotes list'!$D$9:$E$58,2,FALSE)=0,\"\",VLOOKUP(DP171,'Footnotes list'!$D$9:$E$58,2,FALSE) ) )","v":""},null,null,null,null,{"$f":"IF(TRIM(DU171)=\"\", \"\", IF(VLOOKUP(DU171,'Footnotes list'!$D$9:$E$58,2,FALSE)=0,\"\",VLOOKUP(DU171,'Footnotes list'!$D$9:$E$58,2,FALSE) ) )","v":""},null,null,null,null,{"$f":"IF(TRIM(DZ171)=\"\", \"\", IF(VLOOKUP(DZ171,'Footnotes list'!$D$9:$E$58,2,FALSE)=0,\"\",VLOOKUP(DZ171,'Footnotes list'!$D$9:$E$58,2,FALSE) ) )","v":""},null,null,null,null,{"$f":"IF(TRIM(EE171)=\"\", \"\", IF(VLOOKUP(EE171,'Footnotes list'!$D$9:$E$58,2,FALSE)=0,\"\",VLOOKUP(EE171,'Footnotes list'!$D$9:$E$58,2,FALSE) ) )","v":""},null,null,null,null,{"$f":"IF(TRIM(EJ171)=\"\", \"\", IF(VLOOKUP(EJ171,'Footnotes list'!$D$9:$E$58,2,FALSE)=0,\"\",VLOOKUP(EJ171,'Footnotes list'!$D$9:$E$58,2,FALSE) ) )","v":""},null,null,null,null,{"$f":"IF(TRIM(EO171)=\"\", \"\", IF(VLOOKUP(EO171,'Footnotes list'!$D$9:$E$58,2,FALSE)=0,\"\",VLOOKUP(EO171,'Footnotes list'!$D$9:$E$58,2,FALSE) ) )","v":""},null,null,null,null,{"$f":"IF(TRIM(ET171)=\"\", \"\", IF(VLOOKUP(ET171,'Footnotes list'!$D$9:$E$58,2,FALSE)=0,\"\",VLOOKUP(ET171,'Footnotes list'!$D$9:$E$58,2,FALSE) ) )","v":""},null,null,null,null,{"$f":"IF(TRIM(EY171)=\"\", \"\", IF(VLOOKUP(EY171,'Footnotes list'!$D$9:$E$58,2,FALSE)=0,\"\",VLOOKUP(EY171,'Footnotes list'!$D$9:$E$58,2,FALSE) ) )","v":""}]
[null,null,"F","OWN_USE","activities for own final use",null,null,null,null,null,{"$f":"IF(TRIM(J172)=\"\", \"\", IF(VLOOKUP(J172,'Footnotes list'!$D$9:$E$58,2,FALSE)=0,\"\",VLOOKUP(J172,'Footnotes list'!$D$9:$E$58,2,FALSE) ) )","v":""},null,null,null,null,{"$f":"IF(TRIM(O172)=\"\", \"\", IF(VLOOKUP(O172,'Footnotes list'!$D$9:$E$58,2,FALSE)=0,\"\",VLOOKUP(O172,'Footnotes list'!$D$9:$E$58,2,FALSE) ) )","v":""},null,null,null,null,{"$f":"IF(TRIM(T172)=\"\", \"\", IF(VLOOKUP(T172,'Footnotes list'!$D$9:$E$58,2,FALSE)=0,\"\",VLOOKUP(T172,'Footnotes list'!$D$9:$E$58,2,FALSE) ) )","v":""},null,null,null,null,{"$f":"IF(TRIM(Y172)=\"\", \"\", IF(VLOOKUP(Y172,'Footnotes list'!$D$9:$E$58,2,FALSE)=0,\"\",VLOOKUP(Y172,'Footnotes list'!$D$9:$E$58,2,FALSE) ) )","v":""},null,null,null,null,{"$f":"IF(TRIM(AD172)=\"\", \"\", IF(VLOOKUP(AD172,'Footnotes list'!$D$9:$E$58,2,FALSE)=0,\"\",VLOOKUP(AD172,'Footnotes list'!$D$9:$E$58,2,FALSE) ) )","v":""},null,null,null,null,{"$f":"IF(TRIM(AI172)=\"\", \"\", IF(VLOOKUP(AI172,'Footnotes list'!$D$9:$E$58,2,FALSE)=0,\"\",VLOOKUP(AI172,'Footnotes list'!$D$9:$E$58,2,FALSE) ) )","v":""},null,null,null,null,{"$f":"IF(TRIM(AN172)=\"\", \"\", IF(VLOOKUP(AN172,'Footnotes list'!$D$9:$E$58,2,FALSE)=0,\"\",VLOOKUP(AN172,'Footnotes list'!$D$9:$E$58,2,FALSE) ) )","v":""},null,null,null,null,{"$f":"IF(TRIM(AS172)=\"\", \"\", IF(VLOOKUP(AS172,'Footnotes list'!$D$9:$E$58,2,FALSE)=0,\"\",VLOOKUP(AS172,'Footnotes list'!$D$9:$E$58,2,FALSE) ) )","v":""},null,null,null,null,{"$f":"IF(TRIM(AX172)=\"\", \"\", IF(VLOOKUP(AX172,'Footnotes list'!$D$9:$E$58,2,FALSE)=0,\"\",VLOOKUP(AX172,'Footnotes list'!$D$9:$E$58,2,FALSE) ) )","v":""},null,null,null,null,{"$f":"IF(TRIM(BC172)=\"\", \"\", IF(VLOOKUP(BC172,'Footnotes list'!$D$9:$E$58,2,FALSE)=0,\"\",VLOOKUP(BC172,'Footnotes list'!$D$9:$E$58,2,FALSE) ) )","v":""},null,null,null,null,{"$f":"IF(TRIM(BH172)=\"\", \"\", IF(VLOOKUP(BH172,'Footnotes list'!$D$9:$E$58,2,FALSE)=0,\"\",VLOOKUP(BH172,'Footnotes list'!$D$9:$E$58,2,FALSE) ) )","v":""},null,null,null,null,{"$f":"IF(TRIM(BM172)=\"\", \"\", IF(VLOOKUP(BM172,'Footnotes list'!$D$9:$E$58,2,FALSE)=0,\"\",VLOOKUP(BM172,'Footnotes list'!$D$9:$E$58,2,FALSE) ) )","v":""},null,null,null,null,{"$f":"IF(TRIM(BR172)=\"\", \"\", IF(VLOOKUP(BR172,'Footnotes list'!$D$9:$E$58,2,FALSE)=0,\"\",VLOOKUP(BR172,'Footnotes list'!$D$9:$E$58,2,FALSE) ) )","v":""},null,null,null,null,{"$f":"IF(TRIM(BW172)=\"\", \"\", IF(VLOOKUP(BW172,'Footnotes list'!$D$9:$E$58,2,FALSE)=0,\"\",VLOOKUP(BW172,'Footnotes list'!$D$9:$E$58,2,FALSE) ) )","v":""},null,null,null,null,{"$f":"IF(TRIM(CB172)=\"\", \"\", IF(VLOOKUP(CB172,'Footnotes list'!$D$9:$E$58,2,FALSE)=0,\"\",VLOOKUP(CB172,'Footnotes list'!$D$9:$E$58,2,FALSE) ) )","v":""},null,null,null,null,{"$f":"IF(TRIM(CG172)=\"\", \"\", IF(VLOOKUP(CG172,'Footnotes list'!$D$9:$E$58,2,FALSE)=0,\"\",VLOOKUP(CG172,'Footnotes list'!$D$9:$E$58,2,FALSE) ) )","v":""},null,null,null,null,{"$f":"IF(TRIM(CL172)=\"\", \"\", IF(VLOOKUP(CL172,'Footnotes list'!$D$9:$E$58,2,FALSE)=0,\"\",VLOOKUP(CL172,'Footnotes list'!$D$9:$E$58,2,FALSE) ) )","v":""},null,null,null,null,{"$f":"IF(TRIM(CQ172)=\"\", \"\", IF(VLOOKUP(CQ172,'Footnotes list'!$D$9:$E$58,2,FALSE)=0,\"\",VLOOKUP(CQ172,'Footnotes list'!$D$9:$E$58,2,FALSE) ) )","v":""},null,null,null,null,{"$f":"IF(TRIM(CV172)=\"\", \"\", IF(VLOOKUP(CV172,'Footnotes list'!$D$9:$E$58,2,FALSE)=0,\"\",VLOOKUP(CV172,'Footnotes list'!$D$9:$E$58,2,FALSE) ) )","v":""},null,null,null,null,{"$f":"IF(TRIM(DA172)=\"\", \"\", IF(VLOOKUP(DA172,'Footnotes list'!$D$9:$E$58,2,FALSE)=0,\"\",VLOOKUP(DA172,'Footnotes list'!$D$9:$E$58,2,FALSE) ) )","v":""},null,null,null,null,{"$f":"IF(TRIM(DF172)=\"\", \"\", IF(VLOOKUP(DF172,'Footnotes list'!$D$9:$E$58,2,FALSE)=0,\"\",VLOOKUP(DF172,'Footnotes list'!$D$9:$E$58,2,FALSE) ) )","v":""},null,null,null,null,{"$f":"IF(TRIM(DK172)=\"\", \"\", IF(VLOOKUP(DK172,'Footnotes list'!$D$9:$E$58,2,FALSE)=0,\"\",VLOOKUP(DK172,'Footnotes list'!$D$9:$E$58,2,FALSE) ) )","v":""},null,null,null,null,{"$f":"IF(TRIM(DP172)=\"\", \"\", IF(VLOOKUP(DP172,'Footnotes list'!$D$9:$E$58,2,FALSE)=0,\"\",VLOOKUP(DP172,'Footnotes list'!$D$9:$E$58,2,FALSE) ) )","v":""},null,null,null,null,{"$f":"IF(TRIM(DU172)=\"\", \"\", IF(VLOOKUP(DU172,'Footnotes list'!$D$9:$E$58,2,FALSE)=0,\"\",VLOOKUP(DU172,'Footnotes list'!$D$9:$E$58,2,FALSE) ) )","v":""},null,null,null,null,{"$f":"IF(TRIM(DZ172)=\"\", \"\", IF(VLOOKUP(DZ172,'Footnotes list'!$D$9:$E$58,2,FALSE)=0,\"\",VLOOKUP(DZ172,'Footnotes list'!$D$9:$E$58,2,FALSE) ) )","v":""},null,null,null,null,{"$f":"IF(TRIM(EE172)=\"\", \"\", IF(VLOOKUP(EE172,'Footnotes list'!$D$9:$E$58,2,FALSE)=0,\"\",VLOOKUP(EE172,'Footnotes list'!$D$9:$E$58,2,FALSE) ) )","v":""},null,null,null,null,{"$f":"IF(TRIM(EJ172)=\"\", \"\", IF(VLOOKUP(EJ172,'Footnotes list'!$D$9:$E$58,2,FALSE)=0,\"\",VLOOKUP(EJ172,'Footnotes list'!$D$9:$E$58,2,FALSE) ) )","v":""},null,null,null,null,{"$f":"IF(TRIM(EO172)=\"\", \"\", IF(VLOOKUP(EO172,'Footnotes list'!$D$9:$E$58,2,FALSE)=0,\"\",VLOOKUP(EO172,'Footnotes list'!$D$9:$E$58,2,FALSE) ) )","v":""},null,null,null,null,{"$f":"IF(TRIM(ET172)=\"\", \"\", IF(VLOOKUP(ET172,'Footnotes list'!$D$9:$E$58,2,FALSE)=0,\"\",VLOOKUP(ET172,'Footnotes list'!$D$9:$E$58,2,FALSE) ) )","v":""},null,null,null,null,{"$f":"IF(TRIM(EY172)=\"\", \"\", IF(VLOOKUP(EY172,'Footnotes list'!$D$9:$E$58,2,FALSE)=0,\"\",VLOOKUP(EY172,'Footnotes list'!$D$9:$E$58,2,FALSE) ) )","v":""}]
[null,null,"F","MKT","market activities, including:",null,null,null,null,null,{"$f":"IF(TRIM(J173)=\"\", \"\", IF(VLOOKUP(J173,'Footnotes list'!$D$9:$E$58,2,FALSE)=0,\"\",VLOOKUP(J173,'Footnotes list'!$D$9:$E$58,2,FALSE) ) )","v":""},null,null,null,null,{"$f":"IF(TRIM(O173)=\"\", \"\", IF(VLOOKUP(O173,'Footnotes list'!$D$9:$E$58,2,FALSE)=0,\"\",VLOOKUP(O173,'Footnotes list'!$D$9:$E$58,2,FALSE) ) )","v":""},null,null,null,null,{"$f":"IF(TRIM(T173)=\"\", \"\", IF(VLOOKUP(T173,'Footnotes list'!$D$9:$E$58,2,FALSE)=0,\"\",VLOOKUP(T173,'Footnotes list'!$D$9:$E$58,2,FALSE) ) )","v":""},null,null,null,null,{"$f":"IF(TRIM(Y173)=\"\", \"\", IF(VLOOKUP(Y173,'Footnotes list'!$D$9:$E$58,2,FALSE)=0,\"\",VLOOKUP(Y173,'Footnotes list'!$D$9:$E$58,2,FALSE) ) )","v":""},null,null,null,null,{"$f":"IF(TRIM(AD173)=\"\", \"\", IF(VLOOKUP(AD173,'Footnotes list'!$D$9:$E$58,2,FALSE)=0,\"\",VLOOKUP(AD173,'Footnotes list'!$D$9:$E$58,2,FALSE) ) )","v":""},null,null,null,null,{"$f":"IF(TRIM(AI173)=\"\", \"\", IF(VLOOKUP(AI173,'Footnotes list'!$D$9:$E$58,2,FALSE)=0,\"\",VLOOKUP(AI173,'Footnotes list'!$D$9:$E$58,2,FALSE) ) )","v":""},null,null,null,null,{"$f":"IF(TRIM(AN173)=\"\", \"\", IF(VLOOKUP(AN173,'Footnotes list'!$D$9:$E$58,2,FALSE)=0,\"\",VLOOKUP(AN173,'Footnotes list'!$D$9:$E$58,2,FALSE) ) )","v":""},null,null,null,null,{"$f":"IF(TRIM(AS173)=\"\", \"\", IF(VLOOKUP(AS173,'Footnotes list'!$D$9:$E$58,2,FALSE)=0,\"\",VLOOKUP(AS173,'Footnotes list'!$D$9:$E$58,2,FALSE) ) )","v":""},null,null,null,null,{"$f":"IF(TRIM(AX173)=\"\", \"\", IF(VLOOKUP(AX173,'Footnotes list'!$D$9:$E$58,2,FALSE)=0,\"\",VLOOKUP(AX173,'Footnotes list'!$D$9:$E$58,2,FALSE) ) )","v":""},null,null,null,null,{"$f":"IF(TRIM(BC173)=\"\", \"\", IF(VLOOKUP(BC173,'Footnotes list'!$D$9:$E$58,2,FALSE)=0,\"\",VLOOKUP(BC173,'Footnotes list'!$D$9:$E$58,2,FALSE) ) )","v":""},null,null,null,null,{"$f":"IF(TRIM(BH173)=\"\", \"\", IF(VLOOKUP(BH173,'Footnotes list'!$D$9:$E$58,2,FALSE)=0,\"\",VLOOKUP(BH173,'Footnotes list'!$D$9:$E$58,2,FALSE) ) )","v":""},null,null,null,null,{"$f":"IF(TRIM(BM173)=\"\", \"\", IF(VLOOKUP(BM173,'Footnotes list'!$D$9:$E$58,2,FALSE)=0,\"\",VLOOKUP(BM173,'Footnotes list'!$D$9:$E$58,2,FALSE) ) )","v":""},null,null,null,null,{"$f":"IF(TRIM(BR173)=\"\", \"\", IF(VLOOKUP(BR173,'Footnotes list'!$D$9:$E$58,2,FALSE)=0,\"\",VLOOKUP(BR173,'Footnotes list'!$D$9:$E$58,2,FALSE) ) )","v":""},null,null,null,null,{"$f":"IF(TRIM(BW173)=\"\", \"\", IF(VLOOKUP(BW173,'Footnotes list'!$D$9:$E$58,2,FALSE)=0,\"\",VLOOKUP(BW173,'Footnotes list'!$D$9:$E$58,2,FALSE) ) )","v":""},null,null,null,null,{"$f":"IF(TRIM(CB173)=\"\", \"\", IF(VLOOKUP(CB173,'Footnotes list'!$D$9:$E$58,2,FALSE)=0,\"\",VLOOKUP(CB173,'Footnotes list'!$D$9:$E$58,2,FALSE) ) )","v":""},null,null,null,null,{"$f":"IF(TRIM(CG173)=\"\", \"\", IF(VLOOKUP(CG173,'Footnotes list'!$D$9:$E$58,2,FALSE)=0,\"\",VLOOKUP(CG173,'Footnotes list'!$D$9:$E$58,2,FALSE) ) )","v":""},null,null,null,null,{"$f":"IF(TRIM(CL173)=\"\", \"\", IF(VLOOKUP(CL173,'Footnotes list'!$D$9:$E$58,2,FALSE)=0,\"\",VLOOKUP(CL173,'Footnotes list'!$D$9:$E$58,2,FALSE) ) )","v":""},null,null,null,null,{"$f":"IF(TRIM(CQ173)=\"\", \"\", IF(VLOOKUP(CQ173,'Footnotes list'!$D$9:$E$58,2,FALSE)=0,\"\",VLOOKUP(CQ173,'Footnotes list'!$D$9:$E$58,2,FALSE) ) )","v":""},null,null,null,null,{"$f":"IF(TRIM(CV173)=\"\", \"\", IF(VLOOKUP(CV173,'Footnotes list'!$D$9:$E$58,2,FALSE)=0,\"\",VLOOKUP(CV173,'Footnotes list'!$D$9:$E$58,2,FALSE) ) )","v":""},null,null,null,null,{"$f":"IF(TRIM(DA173)=\"\", \"\", IF(VLOOKUP(DA173,'Footnotes list'!$D$9:$E$58,2,FALSE)=0,\"\",VLOOKUP(DA173,'Footnotes list'!$D$9:$E$58,2,FALSE) ) )","v":""},null,null,null,null,{"$f":"IF(TRIM(DF173)=\"\", \"\", IF(VLOOKUP(DF173,'Footnotes list'!$D$9:$E$58,2,FALSE)=0,\"\",VLOOKUP(DF173,'Footnotes list'!$D$9:$E$58,2,FALSE) ) )","v":""},null,null,null,null,{"$f":"IF(TRIM(DK173)=\"\", \"\", IF(VLOOKUP(DK173,'Footnotes list'!$D$9:$E$58,2,FALSE)=0,\"\",VLOOKUP(DK173,'Footnotes list'!$D$9:$E$58,2,FALSE) ) )","v":""},null,null,null,null,{"$f":"IF(TRIM(DP173)=\"\", \"\", IF(VLOOKUP(DP173,'Footnotes list'!$D$9:$E$58,2,FALSE)=0,\"\",VLOOKUP(DP173,'Footnotes list'!$D$9:$E$58,2,FALSE) ) )","v":""},null,null,null,null,{"$f":"IF(TRIM(DU173)=\"\", \"\", IF(VLOOKUP(DU173,'Footnotes list'!$D$9:$E$58,2,FALSE)=0,\"\",VLOOKUP(DU173,'Footnotes list'!$D$9:$E$58,2,FALSE) ) )","v":""},null,null,null,null,{"$f":"IF(TRIM(DZ173)=\"\", \"\", IF(VLOOKUP(DZ173,'Footnotes list'!$D$9:$E$58,2,FALSE)=0,\"\",VLOOKUP(DZ173,'Footnotes list'!$D$9:$E$58,2,FALSE) ) )","v":""},null,null,null,null,{"$f":"IF(TRIM(EE173)=\"\", \"\", IF(VLOOKUP(EE173,'Footnotes list'!$D$9:$E$58,2,FALSE)=0,\"\",VLOOKUP(EE173,'Footnotes list'!$D$9:$E$58,2,FALSE) ) )","v":""},null,null,null,null,{"$f":"IF(TRIM(EJ173)=\"\", \"\", IF(VLOOKUP(EJ173,'Footnotes list'!$D$9:$E$58,2,FALSE)=0,\"\",VLOOKUP(EJ173,'Footnotes list'!$D$9:$E$58,2,FALSE) ) )","v":""},null,null,null,null,{"$f":"IF(TRIM(EO173)=\"\", \"\", IF(VLOOKUP(EO173,'Footnotes list'!$D$9:$E$58,2,FALSE)=0,\"\",VLOOKUP(EO173,'Footnotes list'!$D$9:$E$58,2,FALSE) ) )","v":""},null,null,null,null,{"$f":"IF(TRIM(ET173)=\"\", \"\", IF(VLOOKUP(ET173,'Footnotes list'!$D$9:$E$58,2,FALSE)=0,\"\",VLOOKUP(ET173,'Footnotes list'!$D$9:$E$58,2,FALSE) ) )","v":""},null,null,null,null,{"$f":"IF(TRIM(EY173)=\"\", \"\", IF(VLOOKUP(EY173,'Footnotes list'!$D$9:$E$58,2,FALSE)=0,\"\",VLOOKUP(EY173,'Footnotes list'!$D$9:$E$58,2,FALSE) ) )","v":""}]
[null,null,"F","ES_CS","environmental specific services",null,null,null,null,null,{"$f":"IF(TRIM(J174)=\"\", \"\", IF(VLOOKUP(J174,'Footnotes list'!$D$9:$E$58,2,FALSE)=0,\"\",VLOOKUP(J174,'Footnotes list'!$D$9:$E$58,2,FALSE) ) )","v":""},null,null,null,null,{"$f":"IF(TRIM(O174)=\"\", \"\", IF(VLOOKUP(O174,'Footnotes list'!$D$9:$E$58,2,FALSE)=0,\"\",VLOOKUP(O174,'Footnotes list'!$D$9:$E$58,2,FALSE) ) )","v":""},null,null,null,null,{"$f":"IF(TRIM(T174)=\"\", \"\", IF(VLOOKUP(T174,'Footnotes list'!$D$9:$E$58,2,FALSE)=0,\"\",VLOOKUP(T174,'Footnotes list'!$D$9:$E$58,2,FALSE) ) )","v":""},null,null,null,null,{"$f":"IF(TRIM(Y174)=\"\", \"\", IF(VLOOKUP(Y174,'Footnotes list'!$D$9:$E$58,2,FALSE)=0,\"\",VLOOKUP(Y174,'Footnotes list'!$D$9:$E$58,2,FALSE) ) )","v":""},null,null,null,null,{"$f":"IF(TRIM(AD174)=\"\", \"\", IF(VLOOKUP(AD174,'Footnotes list'!$D$9:$E$58,2,FALSE)=0,\"\",VLOOKUP(AD174,'Footnotes list'!$D$9:$E$58,2,FALSE) ) )","v":""},null,null,null,null,{"$f":"IF(TRIM(AI174)=\"\", \"\", IF(VLOOKUP(AI174,'Footnotes list'!$D$9:$E$58,2,FALSE)=0,\"\",VLOOKUP(AI174,'Footnotes list'!$D$9:$E$58,2,FALSE) ) )","v":""},null,null,null,null,{"$f":"IF(TRIM(AN174)=\"\", \"\", IF(VLOOKUP(AN174,'Footnotes list'!$D$9:$E$58,2,FALSE)=0,\"\",VLOOKUP(AN174,'Footnotes list'!$D$9:$E$58,2,FALSE) ) )","v":""},null,null,null,null,{"$f":"IF(TRIM(AS174)=\"\", \"\", IF(VLOOKUP(AS174,'Footnotes list'!$D$9:$E$58,2,FALSE)=0,\"\",VLOOKUP(AS174,'Footnotes list'!$D$9:$E$58,2,FALSE) ) )","v":""},null,null,null,null,{"$f":"IF(TRIM(AX174)=\"\", \"\", IF(VLOOKUP(AX174,'Footnotes list'!$D$9:$E$58,2,FALSE)=0,\"\",VLOOKUP(AX174,'Footnotes list'!$D$9:$E$58,2,FALSE) ) )","v":""},null,null,null,null,{"$f":"IF(TRIM(BC174)=\"\", \"\", IF(VLOOKUP(BC174,'Footnotes list'!$D$9:$E$58,2,FALSE)=0,\"\",VLOOKUP(BC174,'Footnotes list'!$D$9:$E$58,2,FALSE) ) )","v":""},null,null,null,null,{"$f":"IF(TRIM(BH174)=\"\", \"\", IF(VLOOKUP(BH174,'Footnotes list'!$D$9:$E$58,2,FALSE)=0,\"\",VLOOKUP(BH174,'Footnotes list'!$D$9:$E$58,2,FALSE) ) )","v":""},null,null,null,null,{"$f":"IF(TRIM(BM174)=\"\", \"\", IF(VLOOKUP(BM174,'Footnotes list'!$D$9:$E$58,2,FALSE)=0,\"\",VLOOKUP(BM174,'Footnotes list'!$D$9:$E$58,2,FALSE) ) )","v":""},null,null,null,null,{"$f":"IF(TRIM(BR174)=\"\", \"\", IF(VLOOKUP(BR174,'Footnotes list'!$D$9:$E$58,2,FALSE)=0,\"\",VLOOKUP(BR174,'Footnotes list'!$D$9:$E$58,2,FALSE) ) )","v":""},null,null,null,null,{"$f":"IF(TRIM(BW174)=\"\", \"\", IF(VLOOKUP(BW174,'Footnotes list'!$D$9:$E$58,2,FALSE)=0,\"\",VLOOKUP(BW174,'Footnotes list'!$D$9:$E$58,2,FALSE) ) )","v":""},null,null,null,null,{"$f":"IF(TRIM(CB174)=\"\", \"\", IF(VLOOKUP(CB174,'Footnotes list'!$D$9:$E$58,2,FALSE)=0,\"\",VLOOKUP(CB174,'Footnotes list'!$D$9:$E$58,2,FALSE) ) )","v":""},null,null,null,null,{"$f":"IF(TRIM(CG174)=\"\", \"\", IF(VLOOKUP(CG174,'Footnotes list'!$D$9:$E$58,2,FALSE)=0,\"\",VLOOKUP(CG174,'Footnotes list'!$D$9:$E$58,2,FALSE) ) )","v":""},null,null,null,null,{"$f":"IF(TRIM(CL174)=\"\", \"\", IF(VLOOKUP(CL174,'Footnotes list'!$D$9:$E$58,2,FALSE)=0,\"\",VLOOKUP(CL174,'Footnotes list'!$D$9:$E$58,2,FALSE) ) )","v":""},null,null,null,null,{"$f":"IF(TRIM(CQ174)=\"\", \"\", IF(VLOOKUP(CQ174,'Footnotes list'!$D$9:$E$58,2,FALSE)=0,\"\",VLOOKUP(CQ174,'Footnotes list'!$D$9:$E$58,2,FALSE) ) )","v":""},null,null,null,null,{"$f":"IF(TRIM(CV174)=\"\", \"\", IF(VLOOKUP(CV174,'Footnotes list'!$D$9:$E$58,2,FALSE)=0,\"\",VLOOKUP(CV174,'Footnotes list'!$D$9:$E$58,2,FALSE) ) )","v":""},null,null,null,null,{"$f":"IF(TRIM(DA174)=\"\", \"\", IF(VLOOKUP(DA174,'Footnotes list'!$D$9:$E$58,2,FALSE)=0,\"\",VLOOKUP(DA174,'Footnotes list'!$D$9:$E$58,2,FALSE) ) )","v":""},null,null,null,null,{"$f":"IF(TRIM(DF174)=\"\", \"\", IF(VLOOKUP(DF174,'Footnotes list'!$D$9:$E$58,2,FALSE)=0,\"\",VLOOKUP(DF174,'Footnotes list'!$D$9:$E$58,2,FALSE) ) )","v":""},null,null,null,null,{"$f":"IF(TRIM(DK174)=\"\", \"\", IF(VLOOKUP(DK174,'Footnotes list'!$D$9:$E$58,2,FALSE)=0,\"\",VLOOKUP(DK174,'Footnotes list'!$D$9:$E$58,2,FALSE) ) )","v":""},null,null,null,null,{"$f":"IF(TRIM(DP174)=\"\", \"\", IF(VLOOKUP(DP174,'Footnotes list'!$D$9:$E$58,2,FALSE)=0,\"\",VLOOKUP(DP174,'Footnotes list'!$D$9:$E$58,2,FALSE) ) )","v":""},null,null,null,null,{"$f":"IF(TRIM(DU174)=\"\", \"\", IF(VLOOKUP(DU174,'Footnotes list'!$D$9:$E$58,2,FALSE)=0,\"\",VLOOKUP(DU174,'Footnotes list'!$D$9:$E$58,2,FALSE) ) )","v":""},null,null,null,null,{"$f":"IF(TRIM(DZ174)=\"\", \"\", IF(VLOOKUP(DZ174,'Footnotes list'!$D$9:$E$58,2,FALSE)=0,\"\",VLOOKUP(DZ174,'Footnotes list'!$D$9:$E$58,2,FALSE) ) )","v":""},null,null,null,null,{"$f":"IF(TRIM(EE174)=\"\", \"\", IF(VLOOKUP(EE174,'Footnotes list'!$D$9:$E$58,2,FALSE)=0,\"\",VLOOKUP(EE174,'Footnotes list'!$D$9:$E$58,2,FALSE) ) )","v":""},null,null,null,null,{"$f":"IF(TRIM(EJ174)=\"\", \"\", IF(VLOOKUP(EJ174,'Footnotes list'!$D$9:$E$58,2,FALSE)=0,\"\",VLOOKUP(EJ174,'Footnotes list'!$D$9:$E$58,2,FALSE) ) )","v":""},null,null,null,null,{"$f":"IF(TRIM(EO174)=\"\", \"\", IF(VLOOKUP(EO174,'Footnotes list'!$D$9:$E$58,2,FALSE)=0,\"\",VLOOKUP(EO174,'Footnotes list'!$D$9:$E$58,2,FALSE) ) )","v":""},null,null,null,null,{"$f":"IF(TRIM(ET174)=\"\", \"\", IF(VLOOKUP(ET174,'Footnotes list'!$D$9:$E$58,2,FALSE)=0,\"\",VLOOKUP(ET174,'Footnotes list'!$D$9:$E$58,2,FALSE) ) )","v":""},null,null,null,null,{"$f":"IF(TRIM(EY174)=\"\", \"\", IF(VLOOKUP(EY174,'Footnotes list'!$D$9:$E$58,2,FALSE)=0,\"\",VLOOKUP(EY174,'Footnotes list'!$D$9:$E$58,2,FALSE) ) )","v":""}]
[null,null,"F","C_REP","cleaner and resource efficient products",null,null,null,null,null,{"$f":"IF(TRIM(J175)=\"\", \"\", IF(VLOOKUP(J175,'Footnotes list'!$D$9:$E$58,2,FALSE)=0,\"\",VLOOKUP(J175,'Footnotes list'!$D$9:$E$58,2,FALSE) ) )","v":""},null,null,null,null,{"$f":"IF(TRIM(O175)=\"\", \"\", IF(VLOOKUP(O175,'Footnotes list'!$D$9:$E$58,2,FALSE)=0,\"\",VLOOKUP(O175,'Footnotes list'!$D$9:$E$58,2,FALSE) ) )","v":""},null,null,null,null,{"$f":"IF(TRIM(T175)=\"\", \"\", IF(VLOOKUP(T175,'Footnotes list'!$D$9:$E$58,2,FALSE)=0,\"\",VLOOKUP(T175,'Footnotes list'!$D$9:$E$58,2,FALSE) ) )","v":""},null,null,null,null,{"$f":"IF(TRIM(Y175)=\"\", \"\", IF(VLOOKUP(Y175,'Footnotes list'!$D$9:$E$58,2,FALSE)=0,\"\",VLOOKUP(Y175,'Footnotes list'!$D$9:$E$58,2,FALSE) ) )","v":""},null,null,null,null,{"$f":"IF(TRIM(AD175)=\"\", \"\", IF(VLOOKUP(AD175,'Footnotes list'!$D$9:$E$58,2,FALSE)=0,\"\",VLOOKUP(AD175,'Footnotes list'!$D$9:$E$58,2,FALSE) ) )","v":""},null,null,null,null,{"$f":"IF(TRIM(AI175)=\"\", \"\", IF(VLOOKUP(AI175,'Footnotes list'!$D$9:$E$58,2,FALSE)=0,\"\",VLOOKUP(AI175,'Footnotes list'!$D$9:$E$58,2,FALSE) ) )","v":""},null,null,null,null,{"$f":"IF(TRIM(AN175)=\"\", \"\", IF(VLOOKUP(AN175,'Footnotes list'!$D$9:$E$58,2,FALSE)=0,\"\",VLOOKUP(AN175,'Footnotes list'!$D$9:$E$58,2,FALSE) ) )","v":""},null,null,null,null,{"$f":"IF(TRIM(AS175)=\"\", \"\", IF(VLOOKUP(AS175,'Footnotes list'!$D$9:$E$58,2,FALSE)=0,\"\",VLOOKUP(AS175,'Footnotes list'!$D$9:$E$58,2,FALSE) ) )","v":""},null,null,null,null,{"$f":"IF(TRIM(AX175)=\"\", \"\", IF(VLOOKUP(AX175,'Footnotes list'!$D$9:$E$58,2,FALSE)=0,\"\",VLOOKUP(AX175,'Footnotes list'!$D$9:$E$58,2,FALSE) ) )","v":""},null,null,null,null,{"$f":"IF(TRIM(BC175)=\"\", \"\", IF(VLOOKUP(BC175,'Footnotes list'!$D$9:$E$58,2,FALSE)=0,\"\",VLOOKUP(BC175,'Footnotes list'!$D$9:$E$58,2,FALSE) ) )","v":""},null,null,null,null,{"$f":"IF(TRIM(BH175)=\"\", \"\", IF(VLOOKUP(BH175,'Footnotes list'!$D$9:$E$58,2,FALSE)=0,\"\",VLOOKUP(BH175,'Footnotes list'!$D$9:$E$58,2,FALSE) ) )","v":""},null,null,null,null,{"$f":"IF(TRIM(BM175)=\"\", \"\", IF(VLOOKUP(BM175,'Footnotes list'!$D$9:$E$58,2,FALSE)=0,\"\",VLOOKUP(BM175,'Footnotes list'!$D$9:$E$58,2,FALSE) ) )","v":""},null,null,null,null,{"$f":"IF(TRIM(BR175)=\"\", \"\", IF(VLOOKUP(BR175,'Footnotes list'!$D$9:$E$58,2,FALSE)=0,\"\",VLOOKUP(BR175,'Footnotes list'!$D$9:$E$58,2,FALSE) ) )","v":""},null,null,null,null,{"$f":"IF(TRIM(BW175)=\"\", \"\", IF(VLOOKUP(BW175,'Footnotes list'!$D$9:$E$58,2,FALSE)=0,\"\",VLOOKUP(BW175,'Footnotes list'!$D$9:$E$58,2,FALSE) ) )","v":""},null,null,null,null,{"$f":"IF(TRIM(CB175)=\"\", \"\", IF(VLOOKUP(CB175,'Footnotes list'!$D$9:$E$58,2,FALSE)=0,\"\",VLOOKUP(CB175,'Footnotes list'!$D$9:$E$58,2,FALSE) ) )","v":""},null,null,null,null,{"$f":"IF(TRIM(CG175)=\"\", \"\", IF(VLOOKUP(CG175,'Footnotes list'!$D$9:$E$58,2,FALSE)=0,\"\",VLOOKUP(CG175,'Footnotes list'!$D$9:$E$58,2,FALSE) ) )","v":""},null,null,null,null,{"$f":"IF(TRIM(CL175)=\"\", \"\", IF(VLOOKUP(CL175,'Footnotes list'!$D$9:$E$58,2,FALSE)=0,\"\",VLOOKUP(CL175,'Footnotes list'!$D$9:$E$58,2,FALSE) ) )","v":""},null,null,null,null,{"$f":"IF(TRIM(CQ175)=\"\", \"\", IF(VLOOKUP(CQ175,'Footnotes list'!$D$9:$E$58,2,FALSE)=0,\"\",VLOOKUP(CQ175,'Footnotes list'!$D$9:$E$58,2,FALSE) ) )","v":""},null,null,null,null,{"$f":"IF(TRIM(CV175)=\"\", \"\", IF(VLOOKUP(CV175,'Footnotes list'!$D$9:$E$58,2,FALSE)=0,\"\",VLOOKUP(CV175,'Footnotes list'!$D$9:$E$58,2,FALSE) ) )","v":""},null,null,null,null,{"$f":"IF(TRIM(DA175)=\"\", \"\", IF(VLOOKUP(DA175,'Footnotes list'!$D$9:$E$58,2,FALSE)=0,\"\",VLOOKUP(DA175,'Footnotes list'!$D$9:$E$58,2,FALSE) ) )","v":""},null,null,null,null,{"$f":"IF(TRIM(DF175)=\"\", \"\", IF(VLOOKUP(DF175,'Footnotes list'!$D$9:$E$58,2,FALSE)=0,\"\",VLOOKUP(DF175,'Footnotes list'!$D$9:$E$58,2,FALSE) ) )","v":""},null,null,null,null,{"$f":"IF(TRIM(DK175)=\"\", \"\", IF(VLOOKUP(DK175,'Footnotes list'!$D$9:$E$58,2,FALSE)=0,\"\",VLOOKUP(DK175,'Footnotes list'!$D$9:$E$58,2,FALSE) ) )","v":""},null,null,null,null,{"$f":"IF(TRIM(DP175)=\"\", \"\", IF(VLOOKUP(DP175,'Footnotes list'!$D$9:$E$58,2,FALSE)=0,\"\",VLOOKUP(DP175,'Footnotes list'!$D$9:$E$58,2,FALSE) ) )","v":""},null,null,null,null,{"$f":"IF(TRIM(DU175)=\"\", \"\", IF(VLOOKUP(DU175,'Footnotes list'!$D$9:$E$58,2,FALSE)=0,\"\",VLOOKUP(DU175,'Footnotes list'!$D$9:$E$58,2,FALSE) ) )","v":""},null,null,null,null,{"$f":"IF(TRIM(DZ175)=\"\", \"\", IF(VLOOKUP(DZ175,'Footnotes list'!$D$9:$E$58,2,FALSE)=0,\"\",VLOOKUP(DZ175,'Footnotes list'!$D$9:$E$58,2,FALSE) ) )","v":""},null,null,null,null,{"$f":"IF(TRIM(EE175)=\"\", \"\", IF(VLOOKUP(EE175,'Footnotes list'!$D$9:$E$58,2,FALSE)=0,\"\",VLOOKUP(EE175,'Footnotes list'!$D$9:$E$58,2,FALSE) ) )","v":""},null,null,null,null,{"$f":"IF(TRIM(EJ175)=\"\", \"\", IF(VLOOKUP(EJ175,'Footnotes list'!$D$9:$E$58,2,FALSE)=0,\"\",VLOOKUP(EJ175,'Footnotes list'!$D$9:$E$58,2,FALSE) ) )","v":""},null,null,null,null,{"$f":"IF(TRIM(EO175)=\"\", \"\", IF(VLOOKUP(EO175,'Footnotes list'!$D$9:$E$58,2,FALSE)=0,\"\",VLOOKUP(EO175,'Footnotes list'!$D$9:$E$58,2,FALSE) ) )","v":""},null,null,null,null,{"$f":"IF(TRIM(ET175)=\"\", \"\", IF(VLOOKUP(ET175,'Footnotes list'!$D$9:$E$58,2,FALSE)=0,\"\",VLOOKUP(ET175,'Footnotes list'!$D$9:$E$58,2,FALSE) ) )","v":""},null,null,null,null,{"$f":"IF(TRIM(EY175)=\"\", \"\", IF(VLOOKUP(EY175,'Footnotes list'!$D$9:$E$58,2,FALSE)=0,\"\",VLOOKUP(EY175,'Footnotes list'!$D$9:$E$58,2,FALSE) ) )","v":""}]
[null,null,"G","TOT_EGSS","Total G - Wholesale and retail trade, of which:",null,null,null,null,null,{"$f":"IF(TRIM(J176)=\"\", \"\", IF(VLOOKUP(J176,'Footnotes list'!$D$9:$E$58,2,FALSE)=0,\"\",VLOOKUP(J176,'Footnotes list'!$D$9:$E$58,2,FALSE) ) )","v":""},null,null,null,null,{"$f":"IF(TRIM(O176)=\"\", \"\", IF(VLOOKUP(O176,'Footnotes list'!$D$9:$E$58,2,FALSE)=0,\"\",VLOOKUP(O176,'Footnotes list'!$D$9:$E$58,2,FALSE) ) )","v":""},null,null,null,null,{"$f":"IF(TRIM(T176)=\"\", \"\", IF(VLOOKUP(T176,'Footnotes list'!$D$9:$E$58,2,FALSE)=0,\"\",VLOOKUP(T176,'Footnotes list'!$D$9:$E$58,2,FALSE) ) )","v":""},null,null,null,null,{"$f":"IF(TRIM(Y176)=\"\", \"\", IF(VLOOKUP(Y176,'Footnotes list'!$D$9:$E$58,2,FALSE)=0,\"\",VLOOKUP(Y176,'Footnotes list'!$D$9:$E$58,2,FALSE) ) )","v":""},null,null,null,null,{"$f":"IF(TRIM(AD176)=\"\", \"\", IF(VLOOKUP(AD176,'Footnotes list'!$D$9:$E$58,2,FALSE)=0,\"\",VLOOKUP(AD176,'Footnotes list'!$D$9:$E$58,2,FALSE) ) )","v":""},null,null,null,null,{"$f":"IF(TRIM(AI176)=\"\", \"\", IF(VLOOKUP(AI176,'Footnotes list'!$D$9:$E$58,2,FALSE)=0,\"\",VLOOKUP(AI176,'Footnotes list'!$D$9:$E$58,2,FALSE) ) )","v":""},null,null,null,null,{"$f":"IF(TRIM(AN176)=\"\", \"\", IF(VLOOKUP(AN176,'Footnotes list'!$D$9:$E$58,2,FALSE)=0,\"\",VLOOKUP(AN176,'Footnotes list'!$D$9:$E$58,2,FALSE) ) )","v":""},null,null,null,null,{"$f":"IF(TRIM(AS176)=\"\", \"\", IF(VLOOKUP(AS176,'Footnotes list'!$D$9:$E$58,2,FALSE)=0,\"\",VLOOKUP(AS176,'Footnotes list'!$D$9:$E$58,2,FALSE) ) )","v":""},null,null,null,null,{"$f":"IF(TRIM(AX176)=\"\", \"\", IF(VLOOKUP(AX176,'Footnotes list'!$D$9:$E$58,2,FALSE)=0,\"\",VLOOKUP(AX176,'Footnotes list'!$D$9:$E$58,2,FALSE) ) )","v":""},null,null,null,null,{"$f":"IF(TRIM(BC176)=\"\", \"\", IF(VLOOKUP(BC176,'Footnotes list'!$D$9:$E$58,2,FALSE)=0,\"\",VLOOKUP(BC176,'Footnotes list'!$D$9:$E$58,2,FALSE) ) )","v":""},null,null,null,null,{"$f":"IF(TRIM(BH176)=\"\", \"\", IF(VLOOKUP(BH176,'Footnotes list'!$D$9:$E$58,2,FALSE)=0,\"\",VLOOKUP(BH176,'Footnotes list'!$D$9:$E$58,2,FALSE) ) )","v":""},null,null,null,null,{"$f":"IF(TRIM(BM176)=\"\", \"\", IF(VLOOKUP(BM176,'Footnotes list'!$D$9:$E$58,2,FALSE)=0,\"\",VLOOKUP(BM176,'Footnotes list'!$D$9:$E$58,2,FALSE) ) )","v":""},null,null,null,null,{"$f":"IF(TRIM(BR176)=\"\", \"\", IF(VLOOKUP(BR176,'Footnotes list'!$D$9:$E$58,2,FALSE)=0,\"\",VLOOKUP(BR176,'Footnotes list'!$D$9:$E$58,2,FALSE) ) )","v":""},null,null,null,null,{"$f":"IF(TRIM(BW176)=\"\", \"\", IF(VLOOKUP(BW176,'Footnotes list'!$D$9:$E$58,2,FALSE)=0,\"\",VLOOKUP(BW176,'Footnotes list'!$D$9:$E$58,2,FALSE) ) )","v":""},null,null,null,null,{"$f":"IF(TRIM(CB176)=\"\", \"\", IF(VLOOKUP(CB176,'Footnotes list'!$D$9:$E$58,2,FALSE)=0,\"\",VLOOKUP(CB176,'Footnotes list'!$D$9:$E$58,2,FALSE) ) )","v":""},null,null,null,null,{"$f":"IF(TRIM(CG176)=\"\", \"\", IF(VLOOKUP(CG176,'Footnotes list'!$D$9:$E$58,2,FALSE)=0,\"\",VLOOKUP(CG176,'Footnotes list'!$D$9:$E$58,2,FALSE) ) )","v":""},null,null,null,null,{"$f":"IF(TRIM(CL176)=\"\", \"\", IF(VLOOKUP(CL176,'Footnotes list'!$D$9:$E$58,2,FALSE)=0,\"\",VLOOKUP(CL176,'Footnotes list'!$D$9:$E$58,2,FALSE) ) )","v":""},null,null,null,null,{"$f":"IF(TRIM(CQ176)=\"\", \"\", IF(VLOOKUP(CQ176,'Footnotes list'!$D$9:$E$58,2,FALSE)=0,\"\",VLOOKUP(CQ176,'Footnotes list'!$D$9:$E$58,2,FALSE) ) )","v":""},null,null,null,null,{"$f":"IF(TRIM(CV176)=\"\", \"\", IF(VLOOKUP(CV176,'Footnotes list'!$D$9:$E$58,2,FALSE)=0,\"\",VLOOKUP(CV176,'Footnotes list'!$D$9:$E$58,2,FALSE) ) )","v":""},null,null,null,null,{"$f":"IF(TRIM(DA176)=\"\", \"\", IF(VLOOKUP(DA176,'Footnotes list'!$D$9:$E$58,2,FALSE)=0,\"\",VLOOKUP(DA176,'Footnotes list'!$D$9:$E$58,2,FALSE) ) )","v":""},null,null,null,null,{"$f":"IF(TRIM(DF176)=\"\", \"\", IF(VLOOKUP(DF176,'Footnotes list'!$D$9:$E$58,2,FALSE)=0,\"\",VLOOKUP(DF176,'Footnotes list'!$D$9:$E$58,2,FALSE) ) )","v":""},null,null,null,null,{"$f":"IF(TRIM(DK176)=\"\", \"\", IF(VLOOKUP(DK176,'Footnotes list'!$D$9:$E$58,2,FALSE)=0,\"\",VLOOKUP(DK176,'Footnotes list'!$D$9:$E$58,2,FALSE) ) )","v":""},null,null,null,null,{"$f":"IF(TRIM(DP176)=\"\", \"\", IF(VLOOKUP(DP176,'Footnotes list'!$D$9:$E$58,2,FALSE)=0,\"\",VLOOKUP(DP176,'Footnotes list'!$D$9:$E$58,2,FALSE) ) )","v":""},null,null,null,null,{"$f":"IF(TRIM(DU176)=\"\", \"\", IF(VLOOKUP(DU176,'Footnotes list'!$D$9:$E$58,2,FALSE)=0,\"\",VLOOKUP(DU176,'Footnotes list'!$D$9:$E$58,2,FALSE) ) )","v":""},null,null,null,null,{"$f":"IF(TRIM(DZ176)=\"\", \"\", IF(VLOOKUP(DZ176,'Footnotes list'!$D$9:$E$58,2,FALSE)=0,\"\",VLOOKUP(DZ176,'Footnotes list'!$D$9:$E$58,2,FALSE) ) )","v":""},null,null,null,null,{"$f":"IF(TRIM(EE176)=\"\", \"\", IF(VLOOKUP(EE176,'Footnotes list'!$D$9:$E$58,2,FALSE)=0,\"\",VLOOKUP(EE176,'Footnotes list'!$D$9:$E$58,2,FALSE) ) )","v":""},null,null,null,null,{"$f":"IF(TRIM(EJ176)=\"\", \"\", IF(VLOOKUP(EJ176,'Footnotes list'!$D$9:$E$58,2,FALSE)=0,\"\",VLOOKUP(EJ176,'Footnotes list'!$D$9:$E$58,2,FALSE) ) )","v":""},null,null,null,null,{"$f":"IF(TRIM(EO176)=\"\", \"\", IF(VLOOKUP(EO176,'Footnotes list'!$D$9:$E$58,2,FALSE)=0,\"\",VLOOKUP(EO176,'Footnotes list'!$D$9:$E$58,2,FALSE) ) )","v":""},null,null,null,null,{"$f":"IF(TRIM(ET176)=\"\", \"\", IF(VLOOKUP(ET176,'Footnotes list'!$D$9:$E$58,2,FALSE)=0,\"\",VLOOKUP(ET176,'Footnotes list'!$D$9:$E$58,2,FALSE) ) )","v":""},null,null,null,null,{"$f":"IF(TRIM(EY176)=\"\", \"\", IF(VLOOKUP(EY176,'Footnotes list'!$D$9:$E$58,2,FALSE)=0,\"\",VLOOKUP(EY176,'Footnotes list'!$D$9:$E$58,2,FALSE) ) )","v":""}]
[null,null,"G","ANC","ancillary activities",null,null,null,null,null,{"$f":"IF(TRIM(J177)=\"\", \"\", IF(VLOOKUP(J177,'Footnotes list'!$D$9:$E$58,2,FALSE)=0,\"\",VLOOKUP(J177,'Footnotes list'!$D$9:$E$58,2,FALSE) ) )","v":""},null,null,null,null,{"$f":"IF(TRIM(O177)=\"\", \"\", IF(VLOOKUP(O177,'Footnotes list'!$D$9:$E$58,2,FALSE)=0,\"\",VLOOKUP(O177,'Footnotes list'!$D$9:$E$58,2,FALSE) ) )","v":""},null,null,null,null,{"$f":"IF(TRIM(T177)=\"\", \"\", IF(VLOOKUP(T177,'Footnotes list'!$D$9:$E$58,2,FALSE)=0,\"\",VLOOKUP(T177,'Footnotes list'!$D$9:$E$58,2,FALSE) ) )","v":""},null,null,null,null,{"$f":"IF(TRIM(Y177)=\"\", \"\", IF(VLOOKUP(Y177,'Footnotes list'!$D$9:$E$58,2,FALSE)=0,\"\",VLOOKUP(Y177,'Footnotes list'!$D$9:$E$58,2,FALSE) ) )","v":""},null,null,null,null,{"$f":"IF(TRIM(AD177)=\"\", \"\", IF(VLOOKUP(AD177,'Footnotes list'!$D$9:$E$58,2,FALSE)=0,\"\",VLOOKUP(AD177,'Footnotes list'!$D$9:$E$58,2,FALSE) ) )","v":""},null,null,null,null,{"$f":"IF(TRIM(AI177)=\"\", \"\", IF(VLOOKUP(AI177,'Footnotes list'!$D$9:$E$58,2,FALSE)=0,\"\",VLOOKUP(AI177,'Footnotes list'!$D$9:$E$58,2,FALSE) ) )","v":""},null,null,null,null,{"$f":"IF(TRIM(AN177)=\"\", \"\", IF(VLOOKUP(AN177,'Footnotes list'!$D$9:$E$58,2,FALSE)=0,\"\",VLOOKUP(AN177,'Footnotes list'!$D$9:$E$58,2,FALSE) ) )","v":""},null,null,null,null,{"$f":"IF(TRIM(AS177)=\"\", \"\", IF(VLOOKUP(AS177,'Footnotes list'!$D$9:$E$58,2,FALSE)=0,\"\",VLOOKUP(AS177,'Footnotes list'!$D$9:$E$58,2,FALSE) ) )","v":""},null,null,null,null,{"$f":"IF(TRIM(AX177)=\"\", \"\", IF(VLOOKUP(AX177,'Footnotes list'!$D$9:$E$58,2,FALSE)=0,\"\",VLOOKUP(AX177,'Footnotes list'!$D$9:$E$58,2,FALSE) ) )","v":""},null,null,null,null,{"$f":"IF(TRIM(BC177)=\"\", \"\", IF(VLOOKUP(BC177,'Footnotes list'!$D$9:$E$58,2,FALSE)=0,\"\",VLOOKUP(BC177,'Footnotes list'!$D$9:$E$58,2,FALSE) ) )","v":""},null,null,null,null,{"$f":"IF(TRIM(BH177)=\"\", \"\", IF(VLOOKUP(BH177,'Footnotes list'!$D$9:$E$58,2,FALSE)=0,\"\",VLOOKUP(BH177,'Footnotes list'!$D$9:$E$58,2,FALSE) ) )","v":""},null,null,null,null,{"$f":"IF(TRIM(BM177)=\"\", \"\", IF(VLOOKUP(BM177,'Footnotes list'!$D$9:$E$58,2,FALSE)=0,\"\",VLOOKUP(BM177,'Footnotes list'!$D$9:$E$58,2,FALSE) ) )","v":""},null,null,null,null,{"$f":"IF(TRIM(BR177)=\"\", \"\", IF(VLOOKUP(BR177,'Footnotes list'!$D$9:$E$58,2,FALSE)=0,\"\",VLOOKUP(BR177,'Footnotes list'!$D$9:$E$58,2,FALSE) ) )","v":""},null,null,null,null,{"$f":"IF(TRIM(BW177)=\"\", \"\", IF(VLOOKUP(BW177,'Footnotes list'!$D$9:$E$58,2,FALSE)=0,\"\",VLOOKUP(BW177,'Footnotes list'!$D$9:$E$58,2,FALSE) ) )","v":""},null,null,null,null,{"$f":"IF(TRIM(CB177)=\"\", \"\", IF(VLOOKUP(CB177,'Footnotes list'!$D$9:$E$58,2,FALSE)=0,\"\",VLOOKUP(CB177,'Footnotes list'!$D$9:$E$58,2,FALSE) ) )","v":""},null,null,null,null,{"$f":"IF(TRIM(CG177)=\"\", \"\", IF(VLOOKUP(CG177,'Footnotes list'!$D$9:$E$58,2,FALSE)=0,\"\",VLOOKUP(CG177,'Footnotes list'!$D$9:$E$58,2,FALSE) ) )","v":""},null,null,null,null,{"$f":"IF(TRIM(CL177)=\"\", \"\", IF(VLOOKUP(CL177,'Footnotes list'!$D$9:$E$58,2,FALSE)=0,\"\",VLOOKUP(CL177,'Footnotes list'!$D$9:$E$58,2,FALSE) ) )","v":""},null,null,null,null,{"$f":"IF(TRIM(CQ177)=\"\", \"\", IF(VLOOKUP(CQ177,'Footnotes list'!$D$9:$E$58,2,FALSE)=0,\"\",VLOOKUP(CQ177,'Footnotes list'!$D$9:$E$58,2,FALSE) ) )","v":""},null,null,null,null,{"$f":"IF(TRIM(CV177)=\"\", \"\", IF(VLOOKUP(CV177,'Footnotes list'!$D$9:$E$58,2,FALSE)=0,\"\",VLOOKUP(CV177,'Footnotes list'!$D$9:$E$58,2,FALSE) ) )","v":""},null,null,null,null,{"$f":"IF(TRIM(DA177)=\"\", \"\", IF(VLOOKUP(DA177,'Footnotes list'!$D$9:$E$58,2,FALSE)=0,\"\",VLOOKUP(DA177,'Footnotes list'!$D$9:$E$58,2,FALSE) ) )","v":""},null,null,null,null,{"$f":"IF(TRIM(DF177)=\"\", \"\", IF(VLOOKUP(DF177,'Footnotes list'!$D$9:$E$58,2,FALSE)=0,\"\",VLOOKUP(DF177,'Footnotes list'!$D$9:$E$58,2,FALSE) ) )","v":""},null,null,null,null,{"$f":"IF(TRIM(DK177)=\"\", \"\", IF(VLOOKUP(DK177,'Footnotes list'!$D$9:$E$58,2,FALSE)=0,\"\",VLOOKUP(DK177,'Footnotes list'!$D$9:$E$58,2,FALSE) ) )","v":""},null,null,null,null,{"$f":"IF(TRIM(DP177)=\"\", \"\", IF(VLOOKUP(DP177,'Footnotes list'!$D$9:$E$58,2,FALSE)=0,\"\",VLOOKUP(DP177,'Footnotes list'!$D$9:$E$58,2,FALSE) ) )","v":""},null,null,null,null,{"$f":"IF(TRIM(DU177)=\"\", \"\", IF(VLOOKUP(DU177,'Footnotes list'!$D$9:$E$58,2,FALSE)=0,\"\",VLOOKUP(DU177,'Footnotes list'!$D$9:$E$58,2,FALSE) ) )","v":""},null,null,null,null,{"$f":"IF(TRIM(DZ177)=\"\", \"\", IF(VLOOKUP(DZ177,'Footnotes list'!$D$9:$E$58,2,FALSE)=0,\"\",VLOOKUP(DZ177,'Footnotes list'!$D$9:$E$58,2,FALSE) ) )","v":""},null,null,null,null,{"$f":"IF(TRIM(EE177)=\"\", \"\", IF(VLOOKUP(EE177,'Footnotes list'!$D$9:$E$58,2,FALSE)=0,\"\",VLOOKUP(EE177,'Footnotes list'!$D$9:$E$58,2,FALSE) ) )","v":""},null,null,null,null,{"$f":"IF(TRIM(EJ177)=\"\", \"\", IF(VLOOKUP(EJ177,'Footnotes list'!$D$9:$E$58,2,FALSE)=0,\"\",VLOOKUP(EJ177,'Footnotes list'!$D$9:$E$58,2,FALSE) ) )","v":""},null,null,null,null,{"$f":"IF(TRIM(EO177)=\"\", \"\", IF(VLOOKUP(EO177,'Footnotes list'!$D$9:$E$58,2,FALSE)=0,\"\",VLOOKUP(EO177,'Footnotes list'!$D$9:$E$58,2,FALSE) ) )","v":""},null,null,null,null,{"$f":"IF(TRIM(ET177)=\"\", \"\", IF(VLOOKUP(ET177,'Footnotes list'!$D$9:$E$58,2,FALSE)=0,\"\",VLOOKUP(ET177,'Footnotes list'!$D$9:$E$58,2,FALSE) ) )","v":""},null,null,null,null,{"$f":"IF(TRIM(EY177)=\"\", \"\", IF(VLOOKUP(EY177,'Footnotes list'!$D$9:$E$58,2,FALSE)=0,\"\",VLOOKUP(EY177,'Footnotes list'!$D$9:$E$58,2,FALSE) ) )","v":""}]
[null,null,"G","NMKT","non-market activities",null,null,null,null,null,{"$f":"IF(TRIM(J178)=\"\", \"\", IF(VLOOKUP(J178,'Footnotes list'!$D$9:$E$58,2,FALSE)=0,\"\",VLOOKUP(J178,'Footnotes list'!$D$9:$E$58,2,FALSE) ) )","v":""},null,null,null,null,{"$f":"IF(TRIM(O178)=\"\", \"\", IF(VLOOKUP(O178,'Footnotes list'!$D$9:$E$58,2,FALSE)=0,\"\",VLOOKUP(O178,'Footnotes list'!$D$9:$E$58,2,FALSE) ) )","v":""},null,null,null,null,{"$f":"IF(TRIM(T178)=\"\", \"\", IF(VLOOKUP(T178,'Footnotes list'!$D$9:$E$58,2,FALSE)=0,\"\",VLOOKUP(T178,'Footnotes list'!$D$9:$E$58,2,FALSE) ) )","v":""},null,null,null,null,{"$f":"IF(TRIM(Y178)=\"\", \"\", IF(VLOOKUP(Y178,'Footnotes list'!$D$9:$E$58,2,FALSE)=0,\"\",VLOOKUP(Y178,'Footnotes list'!$D$9:$E$58,2,FALSE) ) )","v":""},null,null,null,null,{"$f":"IF(TRIM(AD178)=\"\", \"\", IF(VLOOKUP(AD178,'Footnotes list'!$D$9:$E$58,2,FALSE)=0,\"\",VLOOKUP(AD178,'Footnotes list'!$D$9:$E$58,2,FALSE) ) )","v":""},null,null,null,null,{"$f":"IF(TRIM(AI178)=\"\", \"\", IF(VLOOKUP(AI178,'Footnotes list'!$D$9:$E$58,2,FALSE)=0,\"\",VLOOKUP(AI178,'Footnotes list'!$D$9:$E$58,2,FALSE) ) )","v":""},null,null,null,null,{"$f":"IF(TRIM(AN178)=\"\", \"\", IF(VLOOKUP(AN178,'Footnotes list'!$D$9:$E$58,2,FALSE)=0,\"\",VLOOKUP(AN178,'Footnotes list'!$D$9:$E$58,2,FALSE) ) )","v":""},null,null,null,null,{"$f":"IF(TRIM(AS178)=\"\", \"\", IF(VLOOKUP(AS178,'Footnotes list'!$D$9:$E$58,2,FALSE)=0,\"\",VLOOKUP(AS178,'Footnotes list'!$D$9:$E$58,2,FALSE) ) )","v":""},null,null,null,null,{"$f":"IF(TRIM(AX178)=\"\", \"\", IF(VLOOKUP(AX178,'Footnotes list'!$D$9:$E$58,2,FALSE)=0,\"\",VLOOKUP(AX178,'Footnotes list'!$D$9:$E$58,2,FALSE) ) )","v":""},null,null,null,null,{"$f":"IF(TRIM(BC178)=\"\", \"\", IF(VLOOKUP(BC178,'Footnotes list'!$D$9:$E$58,2,FALSE)=0,\"\",VLOOKUP(BC178,'Footnotes list'!$D$9:$E$58,2,FALSE) ) )","v":""},null,null,null,null,{"$f":"IF(TRIM(BH178)=\"\", \"\", IF(VLOOKUP(BH178,'Footnotes list'!$D$9:$E$58,2,FALSE)=0,\"\",VLOOKUP(BH178,'Footnotes list'!$D$9:$E$58,2,FALSE) ) )","v":""},null,null,null,null,{"$f":"IF(TRIM(BM178)=\"\", \"\", IF(VLOOKUP(BM178,'Footnotes list'!$D$9:$E$58,2,FALSE)=0,\"\",VLOOKUP(BM178,'Footnotes list'!$D$9:$E$58,2,FALSE) ) )","v":""},null,null,null,null,{"$f":"IF(TRIM(BR178)=\"\", \"\", IF(VLOOKUP(BR178,'Footnotes list'!$D$9:$E$58,2,FALSE)=0,\"\",VLOOKUP(BR178,'Footnotes list'!$D$9:$E$58,2,FALSE) ) )","v":""},null,null,null,null,{"$f":"IF(TRIM(BW178)=\"\", \"\", IF(VLOOKUP(BW178,'Footnotes list'!$D$9:$E$58,2,FALSE)=0,\"\",VLOOKUP(BW178,'Footnotes list'!$D$9:$E$58,2,FALSE) ) )","v":""},null,null,null,null,{"$f":"IF(TRIM(CB178)=\"\", \"\", IF(VLOOKUP(CB178,'Footnotes list'!$D$9:$E$58,2,FALSE)=0,\"\",VLOOKUP(CB178,'Footnotes list'!$D$9:$E$58,2,FALSE) ) )","v":""},null,null,null,null,{"$f":"IF(TRIM(CG178)=\"\", \"\", IF(VLOOKUP(CG178,'Footnotes list'!$D$9:$E$58,2,FALSE)=0,\"\",VLOOKUP(CG178,'Footnotes list'!$D$9:$E$58,2,FALSE) ) )","v":""},null,null,null,null,{"$f":"IF(TRIM(CL178)=\"\", \"\", IF(VLOOKUP(CL178,'Footnotes list'!$D$9:$E$58,2,FALSE)=0,\"\",VLOOKUP(CL178,'Footnotes list'!$D$9:$E$58,2,FALSE) ) )","v":""},null,null,null,null,{"$f":"IF(TRIM(CQ178)=\"\", \"\", IF(VLOOKUP(CQ178,'Footnotes list'!$D$9:$E$58,2,FALSE)=0,\"\",VLOOKUP(CQ178,'Footnotes list'!$D$9:$E$58,2,FALSE) ) )","v":""},null,null,null,null,{"$f":"IF(TRIM(CV178)=\"\", \"\", IF(VLOOKUP(CV178,'Footnotes list'!$D$9:$E$58,2,FALSE)=0,\"\",VLOOKUP(CV178,'Footnotes list'!$D$9:$E$58,2,FALSE) ) )","v":""},null,null,null,null,{"$f":"IF(TRIM(DA178)=\"\", \"\", IF(VLOOKUP(DA178,'Footnotes list'!$D$9:$E$58,2,FALSE)=0,\"\",VLOOKUP(DA178,'Footnotes list'!$D$9:$E$58,2,FALSE) ) )","v":""},null,null,null,null,{"$f":"IF(TRIM(DF178)=\"\", \"\", IF(VLOOKUP(DF178,'Footnotes list'!$D$9:$E$58,2,FALSE)=0,\"\",VLOOKUP(DF178,'Footnotes list'!$D$9:$E$58,2,FALSE) ) )","v":""},null,null,null,null,{"$f":"IF(TRIM(DK178)=\"\", \"\", IF(VLOOKUP(DK178,'Footnotes list'!$D$9:$E$58,2,FALSE)=0,\"\",VLOOKUP(DK178,'Footnotes list'!$D$9:$E$58,2,FALSE) ) )","v":""},null,null,null,null,{"$f":"IF(TRIM(DP178)=\"\", \"\", IF(VLOOKUP(DP178,'Footnotes list'!$D$9:$E$58,2,FALSE)=0,\"\",VLOOKUP(DP178,'Footnotes list'!$D$9:$E$58,2,FALSE) ) )","v":""},null,null,null,null,{"$f":"IF(TRIM(DU178)=\"\", \"\", IF(VLOOKUP(DU178,'Footnotes list'!$D$9:$E$58,2,FALSE)=0,\"\",VLOOKUP(DU178,'Footnotes list'!$D$9:$E$58,2,FALSE) ) )","v":""},null,null,null,null,{"$f":"IF(TRIM(DZ178)=\"\", \"\", IF(VLOOKUP(DZ178,'Footnotes list'!$D$9:$E$58,2,FALSE)=0,\"\",VLOOKUP(DZ178,'Footnotes list'!$D$9:$E$58,2,FALSE) ) )","v":""},null,null,null,null,{"$f":"IF(TRIM(EE178)=\"\", \"\", IF(VLOOKUP(EE178,'Footnotes list'!$D$9:$E$58,2,FALSE)=0,\"\",VLOOKUP(EE178,'Footnotes list'!$D$9:$E$58,2,FALSE) ) )","v":""},null,null,null,null,{"$f":"IF(TRIM(EJ178)=\"\", \"\", IF(VLOOKUP(EJ178,'Footnotes list'!$D$9:$E$58,2,FALSE)=0,\"\",VLOOKUP(EJ178,'Footnotes list'!$D$9:$E$58,2,FALSE) ) )","v":""},null,null,null,null,{"$f":"IF(TRIM(EO178)=\"\", \"\", IF(VLOOKUP(EO178,'Footnotes list'!$D$9:$E$58,2,FALSE)=0,\"\",VLOOKUP(EO178,'Footnotes list'!$D$9:$E$58,2,FALSE) ) )","v":""},null,null,null,null,{"$f":"IF(TRIM(ET178)=\"\", \"\", IF(VLOOKUP(ET178,'Footnotes list'!$D$9:$E$58,2,FALSE)=0,\"\",VLOOKUP(ET178,'Footnotes list'!$D$9:$E$58,2,FALSE) ) )","v":""},null,null,null,null,{"$f":"IF(TRIM(EY178)=\"\", \"\", IF(VLOOKUP(EY178,'Footnotes list'!$D$9:$E$58,2,FALSE)=0,\"\",VLOOKUP(EY178,'Footnotes list'!$D$9:$E$58,2,FALSE) ) )","v":""}]
[null,null,"G","OWN_USE","activities for own final use",null,null,null,null,null,{"$f":"IF(TRIM(J179)=\"\", \"\", IF(VLOOKUP(J179,'Footnotes list'!$D$9:$E$58,2,FALSE)=0,\"\",VLOOKUP(J179,'Footnotes list'!$D$9:$E$58,2,FALSE) ) )","v":""},null,null,null,null,{"$f":"IF(TRIM(O179)=\"\", \"\", IF(VLOOKUP(O179,'Footnotes list'!$D$9:$E$58,2,FALSE)=0,\"\",VLOOKUP(O179,'Footnotes list'!$D$9:$E$58,2,FALSE) ) )","v":""},null,null,null,null,{"$f":"IF(TRIM(T179)=\"\", \"\", IF(VLOOKUP(T179,'Footnotes list'!$D$9:$E$58,2,FALSE)=0,\"\",VLOOKUP(T179,'Footnotes list'!$D$9:$E$58,2,FALSE) ) )","v":""},null,null,null,null,{"$f":"IF(TRIM(Y179)=\"\", \"\", IF(VLOOKUP(Y179,'Footnotes list'!$D$9:$E$58,2,FALSE)=0,\"\",VLOOKUP(Y179,'Footnotes list'!$D$9:$E$58,2,FALSE) ) )","v":""},null,null,null,null,{"$f":"IF(TRIM(AD179)=\"\", \"\", IF(VLOOKUP(AD179,'Footnotes list'!$D$9:$E$58,2,FALSE)=0,\"\",VLOOKUP(AD179,'Footnotes list'!$D$9:$E$58,2,FALSE) ) )","v":""},null,null,null,null,{"$f":"IF(TRIM(AI179)=\"\", \"\", IF(VLOOKUP(AI179,'Footnotes list'!$D$9:$E$58,2,FALSE)=0,\"\",VLOOKUP(AI179,'Footnotes list'!$D$9:$E$58,2,FALSE) ) )","v":""},null,null,null,null,{"$f":"IF(TRIM(AN179)=\"\", \"\", IF(VLOOKUP(AN179,'Footnotes list'!$D$9:$E$58,2,FALSE)=0,\"\",VLOOKUP(AN179,'Footnotes list'!$D$9:$E$58,2,FALSE) ) )","v":""},null,null,null,null,{"$f":"IF(TRIM(AS179)=\"\", \"\", IF(VLOOKUP(AS179,'Footnotes list'!$D$9:$E$58,2,FALSE)=0,\"\",VLOOKUP(AS179,'Footnotes list'!$D$9:$E$58,2,FALSE) ) )","v":""},null,null,null,null,{"$f":"IF(TRIM(AX179)=\"\", \"\", IF(VLOOKUP(AX179,'Footnotes list'!$D$9:$E$58,2,FALSE)=0,\"\",VLOOKUP(AX179,'Footnotes list'!$D$9:$E$58,2,FALSE) ) )","v":""},null,null,null,null,{"$f":"IF(TRIM(BC179)=\"\", \"\", IF(VLOOKUP(BC179,'Footnotes list'!$D$9:$E$58,2,FALSE)=0,\"\",VLOOKUP(BC179,'Footnotes list'!$D$9:$E$58,2,FALSE) ) )","v":""},null,null,null,null,{"$f":"IF(TRIM(BH179)=\"\", \"\", IF(VLOOKUP(BH179,'Footnotes list'!$D$9:$E$58,2,FALSE)=0,\"\",VLOOKUP(BH179,'Footnotes list'!$D$9:$E$58,2,FALSE) ) )","v":""},null,null,null,null,{"$f":"IF(TRIM(BM179)=\"\", \"\", IF(VLOOKUP(BM179,'Footnotes list'!$D$9:$E$58,2,FALSE)=0,\"\",VLOOKUP(BM179,'Footnotes list'!$D$9:$E$58,2,FALSE) ) )","v":""},null,null,null,null,{"$f":"IF(TRIM(BR179)=\"\", \"\", IF(VLOOKUP(BR179,'Footnotes list'!$D$9:$E$58,2,FALSE)=0,\"\",VLOOKUP(BR179,'Footnotes list'!$D$9:$E$58,2,FALSE) ) )","v":""},null,null,null,null,{"$f":"IF(TRIM(BW179)=\"\", \"\", IF(VLOOKUP(BW179,'Footnotes list'!$D$9:$E$58,2,FALSE)=0,\"\",VLOOKUP(BW179,'Footnotes list'!$D$9:$E$58,2,FALSE) ) )","v":""},null,null,null,null,{"$f":"IF(TRIM(CB179)=\"\", \"\", IF(VLOOKUP(CB179,'Footnotes list'!$D$9:$E$58,2,FALSE)=0,\"\",VLOOKUP(CB179,'Footnotes list'!$D$9:$E$58,2,FALSE) ) )","v":""},null,null,null,null,{"$f":"IF(TRIM(CG179)=\"\", \"\", IF(VLOOKUP(CG179,'Footnotes list'!$D$9:$E$58,2,FALSE)=0,\"\",VLOOKUP(CG179,'Footnotes list'!$D$9:$E$58,2,FALSE) ) )","v":""},null,null,null,null,{"$f":"IF(TRIM(CL179)=\"\", \"\", IF(VLOOKUP(CL179,'Footnotes list'!$D$9:$E$58,2,FALSE)=0,\"\",VLOOKUP(CL179,'Footnotes list'!$D$9:$E$58,2,FALSE) ) )","v":""},null,null,null,null,{"$f":"IF(TRIM(CQ179)=\"\", \"\", IF(VLOOKUP(CQ179,'Footnotes list'!$D$9:$E$58,2,FALSE)=0,\"\",VLOOKUP(CQ179,'Footnotes list'!$D$9:$E$58,2,FALSE) ) )","v":""},null,null,null,null,{"$f":"IF(TRIM(CV179)=\"\", \"\", IF(VLOOKUP(CV179,'Footnotes list'!$D$9:$E$58,2,FALSE)=0,\"\",VLOOKUP(CV179,'Footnotes list'!$D$9:$E$58,2,FALSE) ) )","v":""},null,null,null,null,{"$f":"IF(TRIM(DA179)=\"\", \"\", IF(VLOOKUP(DA179,'Footnotes list'!$D$9:$E$58,2,FALSE)=0,\"\",VLOOKUP(DA179,'Footnotes list'!$D$9:$E$58,2,FALSE) ) )","v":""},null,null,null,null,{"$f":"IF(TRIM(DF179)=\"\", \"\", IF(VLOOKUP(DF179,'Footnotes list'!$D$9:$E$58,2,FALSE)=0,\"\",VLOOKUP(DF179,'Footnotes list'!$D$9:$E$58,2,FALSE) ) )","v":""},null,null,null,null,{"$f":"IF(TRIM(DK179)=\"\", \"\", IF(VLOOKUP(DK179,'Footnotes list'!$D$9:$E$58,2,FALSE)=0,\"\",VLOOKUP(DK179,'Footnotes list'!$D$9:$E$58,2,FALSE) ) )","v":""},null,null,null,null,{"$f":"IF(TRIM(DP179)=\"\", \"\", IF(VLOOKUP(DP179,'Footnotes list'!$D$9:$E$58,2,FALSE)=0,\"\",VLOOKUP(DP179,'Footnotes list'!$D$9:$E$58,2,FALSE) ) )","v":""},null,null,null,null,{"$f":"IF(TRIM(DU179)=\"\", \"\", IF(VLOOKUP(DU179,'Footnotes list'!$D$9:$E$58,2,FALSE)=0,\"\",VLOOKUP(DU179,'Footnotes list'!$D$9:$E$58,2,FALSE) ) )","v":""},null,null,null,null,{"$f":"IF(TRIM(DZ179)=\"\", \"\", IF(VLOOKUP(DZ179,'Footnotes list'!$D$9:$E$58,2,FALSE)=0,\"\",VLOOKUP(DZ179,'Footnotes list'!$D$9:$E$58,2,FALSE) ) )","v":""},null,null,null,null,{"$f":"IF(TRIM(EE179)=\"\", \"\", IF(VLOOKUP(EE179,'Footnotes list'!$D$9:$E$58,2,FALSE)=0,\"\",VLOOKUP(EE179,'Footnotes list'!$D$9:$E$58,2,FALSE) ) )","v":""},null,null,null,null,{"$f":"IF(TRIM(EJ179)=\"\", \"\", IF(VLOOKUP(EJ179,'Footnotes list'!$D$9:$E$58,2,FALSE)=0,\"\",VLOOKUP(EJ179,'Footnotes list'!$D$9:$E$58,2,FALSE) ) )","v":""},null,null,null,null,{"$f":"IF(TRIM(EO179)=\"\", \"\", IF(VLOOKUP(EO179,'Footnotes list'!$D$9:$E$58,2,FALSE)=0,\"\",VLOOKUP(EO179,'Footnotes list'!$D$9:$E$58,2,FALSE) ) )","v":""},null,null,null,null,{"$f":"IF(TRIM(ET179)=\"\", \"\", IF(VLOOKUP(ET179,'Footnotes list'!$D$9:$E$58,2,FALSE)=0,\"\",VLOOKUP(ET179,'Footnotes list'!$D$9:$E$58,2,FALSE) ) )","v":""},null,null,null,null,{"$f":"IF(TRIM(EY179)=\"\", \"\", IF(VLOOKUP(EY179,'Footnotes list'!$D$9:$E$58,2,FALSE)=0,\"\",VLOOKUP(EY179,'Footnotes list'!$D$9:$E$58,2,FALSE) ) )","v":""}]
[null,null,"G","MKT","market activities, including:",null,null,null,null,null,{"$f":"IF(TRIM(J180)=\"\", \"\", IF(VLOOKUP(J180,'Footnotes list'!$D$9:$E$58,2,FALSE)=0,\"\",VLOOKUP(J180,'Footnotes list'!$D$9:$E$58,2,FALSE) ) )","v":""},null,null,null,null,{"$f":"IF(TRIM(O180)=\"\", \"\", IF(VLOOKUP(O180,'Footnotes list'!$D$9:$E$58,2,FALSE)=0,\"\",VLOOKUP(O180,'Footnotes list'!$D$9:$E$58,2,FALSE) ) )","v":""},null,null,null,null,{"$f":"IF(TRIM(T180)=\"\", \"\", IF(VLOOKUP(T180,'Footnotes list'!$D$9:$E$58,2,FALSE)=0,\"\",VLOOKUP(T180,'Footnotes list'!$D$9:$E$58,2,FALSE) ) )","v":""},null,null,null,null,{"$f":"IF(TRIM(Y180)=\"\", \"\", IF(VLOOKUP(Y180,'Footnotes list'!$D$9:$E$58,2,FALSE)=0,\"\",VLOOKUP(Y180,'Footnotes list'!$D$9:$E$58,2,FALSE) ) )","v":""},null,null,null,null,{"$f":"IF(TRIM(AD180)=\"\", \"\", IF(VLOOKUP(AD180,'Footnotes list'!$D$9:$E$58,2,FALSE)=0,\"\",VLOOKUP(AD180,'Footnotes list'!$D$9:$E$58,2,FALSE) ) )","v":""},null,null,null,null,{"$f":"IF(TRIM(AI180)=\"\", \"\", IF(VLOOKUP(AI180,'Footnotes list'!$D$9:$E$58,2,FALSE)=0,\"\",VLOOKUP(AI180,'Footnotes list'!$D$9:$E$58,2,FALSE) ) )","v":""},null,null,null,null,{"$f":"IF(TRIM(AN180)=\"\", \"\", IF(VLOOKUP(AN180,'Footnotes list'!$D$9:$E$58,2,FALSE)=0,\"\",VLOOKUP(AN180,'Footnotes list'!$D$9:$E$58,2,FALSE) ) )","v":""},null,null,null,null,{"$f":"IF(TRIM(AS180)=\"\", \"\", IF(VLOOKUP(AS180,'Footnotes list'!$D$9:$E$58,2,FALSE)=0,\"\",VLOOKUP(AS180,'Footnotes list'!$D$9:$E$58,2,FALSE) ) )","v":""},null,null,null,null,{"$f":"IF(TRIM(AX180)=\"\", \"\", IF(VLOOKUP(AX180,'Footnotes list'!$D$9:$E$58,2,FALSE)=0,\"\",VLOOKUP(AX180,'Footnotes list'!$D$9:$E$58,2,FALSE) ) )","v":""},null,null,null,null,{"$f":"IF(TRIM(BC180)=\"\", \"\", IF(VLOOKUP(BC180,'Footnotes list'!$D$9:$E$58,2,FALSE)=0,\"\",VLOOKUP(BC180,'Footnotes list'!$D$9:$E$58,2,FALSE) ) )","v":""},null,null,null,null,{"$f":"IF(TRIM(BH180)=\"\", \"\", IF(VLOOKUP(BH180,'Footnotes list'!$D$9:$E$58,2,FALSE)=0,\"\",VLOOKUP(BH180,'Footnotes list'!$D$9:$E$58,2,FALSE) ) )","v":""},null,null,null,null,{"$f":"IF(TRIM(BM180)=\"\", \"\", IF(VLOOKUP(BM180,'Footnotes list'!$D$9:$E$58,2,FALSE)=0,\"\",VLOOKUP(BM180,'Footnotes list'!$D$9:$E$58,2,FALSE) ) )","v":""},null,null,null,null,{"$f":"IF(TRIM(BR180)=\"\", \"\", IF(VLOOKUP(BR180,'Footnotes list'!$D$9:$E$58,2,FALSE)=0,\"\",VLOOKUP(BR180,'Footnotes list'!$D$9:$E$58,2,FALSE) ) )","v":""},null,null,null,null,{"$f":"IF(TRIM(BW180)=\"\", \"\", IF(VLOOKUP(BW180,'Footnotes list'!$D$9:$E$58,2,FALSE)=0,\"\",VLOOKUP(BW180,'Footnotes list'!$D$9:$E$58,2,FALSE) ) )","v":""},null,null,null,null,{"$f":"IF(TRIM(CB180)=\"\", \"\", IF(VLOOKUP(CB180,'Footnotes list'!$D$9:$E$58,2,FALSE)=0,\"\",VLOOKUP(CB180,'Footnotes list'!$D$9:$E$58,2,FALSE) ) )","v":""},null,null,null,null,{"$f":"IF(TRIM(CG180)=\"\", \"\", IF(VLOOKUP(CG180,'Footnotes list'!$D$9:$E$58,2,FALSE)=0,\"\",VLOOKUP(CG180,'Footnotes list'!$D$9:$E$58,2,FALSE) ) )","v":""},null,null,null,null,{"$f":"IF(TRIM(CL180)=\"\", \"\", IF(VLOOKUP(CL180,'Footnotes list'!$D$9:$E$58,2,FALSE)=0,\"\",VLOOKUP(CL180,'Footnotes list'!$D$9:$E$58,2,FALSE) ) )","v":""},null,null,null,null,{"$f":"IF(TRIM(CQ180)=\"\", \"\", IF(VLOOKUP(CQ180,'Footnotes list'!$D$9:$E$58,2,FALSE)=0,\"\",VLOOKUP(CQ180,'Footnotes list'!$D$9:$E$58,2,FALSE) ) )","v":""},null,null,null,null,{"$f":"IF(TRIM(CV180)=\"\", \"\", IF(VLOOKUP(CV180,'Footnotes list'!$D$9:$E$58,2,FALSE)=0,\"\",VLOOKUP(CV180,'Footnotes list'!$D$9:$E$58,2,FALSE) ) )","v":""},null,null,null,null,{"$f":"IF(TRIM(DA180)=\"\", \"\", IF(VLOOKUP(DA180,'Footnotes list'!$D$9:$E$58,2,FALSE)=0,\"\",VLOOKUP(DA180,'Footnotes list'!$D$9:$E$58,2,FALSE) ) )","v":""},null,null,null,null,{"$f":"IF(TRIM(DF180)=\"\", \"\", IF(VLOOKUP(DF180,'Footnotes list'!$D$9:$E$58,2,FALSE)=0,\"\",VLOOKUP(DF180,'Footnotes list'!$D$9:$E$58,2,FALSE) ) )","v":""},null,null,null,null,{"$f":"IF(TRIM(DK180)=\"\", \"\", IF(VLOOKUP(DK180,'Footnotes list'!$D$9:$E$58,2,FALSE)=0,\"\",VLOOKUP(DK180,'Footnotes list'!$D$9:$E$58,2,FALSE) ) )","v":""},null,null,null,null,{"$f":"IF(TRIM(DP180)=\"\", \"\", IF(VLOOKUP(DP180,'Footnotes list'!$D$9:$E$58,2,FALSE)=0,\"\",VLOOKUP(DP180,'Footnotes list'!$D$9:$E$58,2,FALSE) ) )","v":""},null,null,null,null,{"$f":"IF(TRIM(DU180)=\"\", \"\", IF(VLOOKUP(DU180,'Footnotes list'!$D$9:$E$58,2,FALSE)=0,\"\",VLOOKUP(DU180,'Footnotes list'!$D$9:$E$58,2,FALSE) ) )","v":""},null,null,null,null,{"$f":"IF(TRIM(DZ180)=\"\", \"\", IF(VLOOKUP(DZ180,'Footnotes list'!$D$9:$E$58,2,FALSE)=0,\"\",VLOOKUP(DZ180,'Footnotes list'!$D$9:$E$58,2,FALSE) ) )","v":""},null,null,null,null,{"$f":"IF(TRIM(EE180)=\"\", \"\", IF(VLOOKUP(EE180,'Footnotes list'!$D$9:$E$58,2,FALSE)=0,\"\",VLOOKUP(EE180,'Footnotes list'!$D$9:$E$58,2,FALSE) ) )","v":""},null,null,null,null,{"$f":"IF(TRIM(EJ180)=\"\", \"\", IF(VLOOKUP(EJ180,'Footnotes list'!$D$9:$E$58,2,FALSE)=0,\"\",VLOOKUP(EJ180,'Footnotes list'!$D$9:$E$58,2,FALSE) ) )","v":""},null,null,null,null,{"$f":"IF(TRIM(EO180)=\"\", \"\", IF(VLOOKUP(EO180,'Footnotes list'!$D$9:$E$58,2,FALSE)=0,\"\",VLOOKUP(EO180,'Footnotes list'!$D$9:$E$58,2,FALSE) ) )","v":""},null,null,null,null,{"$f":"IF(TRIM(ET180)=\"\", \"\", IF(VLOOKUP(ET180,'Footnotes list'!$D$9:$E$58,2,FALSE)=0,\"\",VLOOKUP(ET180,'Footnotes list'!$D$9:$E$58,2,FALSE) ) )","v":""},null,null,null,null,{"$f":"IF(TRIM(EY180)=\"\", \"\", IF(VLOOKUP(EY180,'Footnotes list'!$D$9:$E$58,2,FALSE)=0,\"\",VLOOKUP(EY180,'Footnotes list'!$D$9:$E$58,2,FALSE) ) )","v":""}]
[null,null,"G","ES_CS","environmental specific services",null,null,null,null,null,{"$f":"IF(TRIM(J181)=\"\", \"\", IF(VLOOKUP(J181,'Footnotes list'!$D$9:$E$58,2,FALSE)=0,\"\",VLOOKUP(J181,'Footnotes list'!$D$9:$E$58,2,FALSE) ) )","v":""},null,null,null,null,{"$f":"IF(TRIM(O181)=\"\", \"\", IF(VLOOKUP(O181,'Footnotes list'!$D$9:$E$58,2,FALSE)=0,\"\",VLOOKUP(O181,'Footnotes list'!$D$9:$E$58,2,FALSE) ) )","v":""},null,null,null,null,{"$f":"IF(TRIM(T181)=\"\", \"\", IF(VLOOKUP(T181,'Footnotes list'!$D$9:$E$58,2,FALSE)=0,\"\",VLOOKUP(T181,'Footnotes list'!$D$9:$E$58,2,FALSE) ) )","v":""},null,null,null,null,{"$f":"IF(TRIM(Y181)=\"\", \"\", IF(VLOOKUP(Y181,'Footnotes list'!$D$9:$E$58,2,FALSE)=0,\"\",VLOOKUP(Y181,'Footnotes list'!$D$9:$E$58,2,FALSE) ) )","v":""},null,null,null,null,{"$f":"IF(TRIM(AD181)=\"\", \"\", IF(VLOOKUP(AD181,'Footnotes list'!$D$9:$E$58,2,FALSE)=0,\"\",VLOOKUP(AD181,'Footnotes list'!$D$9:$E$58,2,FALSE) ) )","v":""},null,null,null,null,{"$f":"IF(TRIM(AI181)=\"\", \"\", IF(VLOOKUP(AI181,'Footnotes list'!$D$9:$E$58,2,FALSE)=0,\"\",VLOOKUP(AI181,'Footnotes list'!$D$9:$E$58,2,FALSE) ) )","v":""},null,null,null,null,{"$f":"IF(TRIM(AN181)=\"\", \"\", IF(VLOOKUP(AN181,'Footnotes list'!$D$9:$E$58,2,FALSE)=0,\"\",VLOOKUP(AN181,'Footnotes list'!$D$9:$E$58,2,FALSE) ) )","v":""},null,null,null,null,{"$f":"IF(TRIM(AS181)=\"\", \"\", IF(VLOOKUP(AS181,'Footnotes list'!$D$9:$E$58,2,FALSE)=0,\"\",VLOOKUP(AS181,'Footnotes list'!$D$9:$E$58,2,FALSE) ) )","v":""},null,null,null,null,{"$f":"IF(TRIM(AX181)=\"\", \"\", IF(VLOOKUP(AX181,'Footnotes list'!$D$9:$E$58,2,FALSE)=0,\"\",VLOOKUP(AX181,'Footnotes list'!$D$9:$E$58,2,FALSE) ) )","v":""},null,null,null,null,{"$f":"IF(TRIM(BC181)=\"\", \"\", IF(VLOOKUP(BC181,'Footnotes list'!$D$9:$E$58,2,FALSE)=0,\"\",VLOOKUP(BC181,'Footnotes list'!$D$9:$E$58,2,FALSE) ) )","v":""},null,null,null,null,{"$f":"IF(TRIM(BH181)=\"\", \"\", IF(VLOOKUP(BH181,'Footnotes list'!$D$9:$E$58,2,FALSE)=0,\"\",VLOOKUP(BH181,'Footnotes list'!$D$9:$E$58,2,FALSE) ) )","v":""},null,null,null,null,{"$f":"IF(TRIM(BM181)=\"\", \"\", IF(VLOOKUP(BM181,'Footnotes list'!$D$9:$E$58,2,FALSE)=0,\"\",VLOOKUP(BM181,'Footnotes list'!$D$9:$E$58,2,FALSE) ) )","v":""},null,null,null,null,{"$f":"IF(TRIM(BR181)=\"\", \"\", IF(VLOOKUP(BR181,'Footnotes list'!$D$9:$E$58,2,FALSE)=0,\"\",VLOOKUP(BR181,'Footnotes list'!$D$9:$E$58,2,FALSE) ) )","v":""},null,null,null,null,{"$f":"IF(TRIM(BW181)=\"\", \"\", IF(VLOOKUP(BW181,'Footnotes list'!$D$9:$E$58,2,FALSE)=0,\"\",VLOOKUP(BW181,'Footnotes list'!$D$9:$E$58,2,FALSE) ) )","v":""},null,null,null,null,{"$f":"IF(TRIM(CB181)=\"\", \"\", IF(VLOOKUP(CB181,'Footnotes list'!$D$9:$E$58,2,FALSE)=0,\"\",VLOOKUP(CB181,'Footnotes list'!$D$9:$E$58,2,FALSE) ) )","v":""},null,null,null,null,{"$f":"IF(TRIM(CG181)=\"\", \"\", IF(VLOOKUP(CG181,'Footnotes list'!$D$9:$E$58,2,FALSE)=0,\"\",VLOOKUP(CG181,'Footnotes list'!$D$9:$E$58,2,FALSE) ) )","v":""},null,null,null,null,{"$f":"IF(TRIM(CL181)=\"\", \"\", IF(VLOOKUP(CL181,'Footnotes list'!$D$9:$E$58,2,FALSE)=0,\"\",VLOOKUP(CL181,'Footnotes list'!$D$9:$E$58,2,FALSE) ) )","v":""},null,null,null,null,{"$f":"IF(TRIM(CQ181)=\"\", \"\", IF(VLOOKUP(CQ181,'Footnotes list'!$D$9:$E$58,2,FALSE)=0,\"\",VLOOKUP(CQ181,'Footnotes list'!$D$9:$E$58,2,FALSE) ) )","v":""},null,null,null,null,{"$f":"IF(TRIM(CV181)=\"\", \"\", IF(VLOOKUP(CV181,'Footnotes list'!$D$9:$E$58,2,FALSE)=0,\"\",VLOOKUP(CV181,'Footnotes list'!$D$9:$E$58,2,FALSE) ) )","v":""},null,null,null,null,{"$f":"IF(TRIM(DA181)=\"\", \"\", IF(VLOOKUP(DA181,'Footnotes list'!$D$9:$E$58,2,FALSE)=0,\"\",VLOOKUP(DA181,'Footnotes list'!$D$9:$E$58,2,FALSE) ) )","v":""},null,null,null,null,{"$f":"IF(TRIM(DF181)=\"\", \"\", IF(VLOOKUP(DF181,'Footnotes list'!$D$9:$E$58,2,FALSE)=0,\"\",VLOOKUP(DF181,'Footnotes list'!$D$9:$E$58,2,FALSE) ) )","v":""},null,null,null,null,{"$f":"IF(TRIM(DK181)=\"\", \"\", IF(VLOOKUP(DK181,'Footnotes list'!$D$9:$E$58,2,FALSE)=0,\"\",VLOOKUP(DK181,'Footnotes list'!$D$9:$E$58,2,FALSE) ) )","v":""},null,null,null,null,{"$f":"IF(TRIM(DP181)=\"\", \"\", IF(VLOOKUP(DP181,'Footnotes list'!$D$9:$E$58,2,FALSE)=0,\"\",VLOOKUP(DP181,'Footnotes list'!$D$9:$E$58,2,FALSE) ) )","v":""},null,null,null,null,{"$f":"IF(TRIM(DU181)=\"\", \"\", IF(VLOOKUP(DU181,'Footnotes list'!$D$9:$E$58,2,FALSE)=0,\"\",VLOOKUP(DU181,'Footnotes list'!$D$9:$E$58,2,FALSE) ) )","v":""},null,null,null,null,{"$f":"IF(TRIM(DZ181)=\"\", \"\", IF(VLOOKUP(DZ181,'Footnotes list'!$D$9:$E$58,2,FALSE)=0,\"\",VLOOKUP(DZ181,'Footnotes list'!$D$9:$E$58,2,FALSE) ) )","v":""},null,null,null,null,{"$f":"IF(TRIM(EE181)=\"\", \"\", IF(VLOOKUP(EE181,'Footnotes list'!$D$9:$E$58,2,FALSE)=0,\"\",VLOOKUP(EE181,'Footnotes list'!$D$9:$E$58,2,FALSE) ) )","v":""},null,null,null,null,{"$f":"IF(TRIM(EJ181)=\"\", \"\", IF(VLOOKUP(EJ181,'Footnotes list'!$D$9:$E$58,2,FALSE)=0,\"\",VLOOKUP(EJ181,'Footnotes list'!$D$9:$E$58,2,FALSE) ) )","v":""},null,null,null,null,{"$f":"IF(TRIM(EO181)=\"\", \"\", IF(VLOOKUP(EO181,'Footnotes list'!$D$9:$E$58,2,FALSE)=0,\"\",VLOOKUP(EO181,'Footnotes list'!$D$9:$E$58,2,FALSE) ) )","v":""},null,null,null,null,{"$f":"IF(TRIM(ET181)=\"\", \"\", IF(VLOOKUP(ET181,'Footnotes list'!$D$9:$E$58,2,FALSE)=0,\"\",VLOOKUP(ET181,'Footnotes list'!$D$9:$E$58,2,FALSE) ) )","v":""},null,null,null,null,{"$f":"IF(TRIM(EY181)=\"\", \"\", IF(VLOOKUP(EY181,'Footnotes list'!$D$9:$E$58,2,FALSE)=0,\"\",VLOOKUP(EY181,'Footnotes list'!$D$9:$E$58,2,FALSE) ) )","v":""}]
[null,null,"G","C_REP","cleaner and resource efficient products",null,null,null,null,null,{"$f":"IF(TRIM(J182)=\"\", \"\", IF(VLOOKUP(J182,'Footnotes list'!$D$9:$E$58,2,FALSE)=0,\"\",VLOOKUP(J182,'Footnotes list'!$D$9:$E$58,2,FALSE) ) )","v":""},null,null,null,null,{"$f":"IF(TRIM(O182)=\"\", \"\", IF(VLOOKUP(O182,'Footnotes list'!$D$9:$E$58,2,FALSE)=0,\"\",VLOOKUP(O182,'Footnotes list'!$D$9:$E$58,2,FALSE) ) )","v":""},null,null,null,null,{"$f":"IF(TRIM(T182)=\"\", \"\", IF(VLOOKUP(T182,'Footnotes list'!$D$9:$E$58,2,FALSE)=0,\"\",VLOOKUP(T182,'Footnotes list'!$D$9:$E$58,2,FALSE) ) )","v":""},null,null,null,null,{"$f":"IF(TRIM(Y182)=\"\", \"\", IF(VLOOKUP(Y182,'Footnotes list'!$D$9:$E$58,2,FALSE)=0,\"\",VLOOKUP(Y182,'Footnotes list'!$D$9:$E$58,2,FALSE) ) )","v":""},null,null,null,null,{"$f":"IF(TRIM(AD182)=\"\", \"\", IF(VLOOKUP(AD182,'Footnotes list'!$D$9:$E$58,2,FALSE)=0,\"\",VLOOKUP(AD182,'Footnotes list'!$D$9:$E$58,2,FALSE) ) )","v":""},null,null,null,null,{"$f":"IF(TRIM(AI182)=\"\", \"\", IF(VLOOKUP(AI182,'Footnotes list'!$D$9:$E$58,2,FALSE)=0,\"\",VLOOKUP(AI182,'Footnotes list'!$D$9:$E$58,2,FALSE) ) )","v":""},null,null,null,null,{"$f":"IF(TRIM(AN182)=\"\", \"\", IF(VLOOKUP(AN182,'Footnotes list'!$D$9:$E$58,2,FALSE)=0,\"\",VLOOKUP(AN182,'Footnotes list'!$D$9:$E$58,2,FALSE) ) )","v":""},null,null,null,null,{"$f":"IF(TRIM(AS182)=\"\", \"\", IF(VLOOKUP(AS182,'Footnotes list'!$D$9:$E$58,2,FALSE)=0,\"\",VLOOKUP(AS182,'Footnotes list'!$D$9:$E$58,2,FALSE) ) )","v":""},null,null,null,null,{"$f":"IF(TRIM(AX182)=\"\", \"\", IF(VLOOKUP(AX182,'Footnotes list'!$D$9:$E$58,2,FALSE)=0,\"\",VLOOKUP(AX182,'Footnotes list'!$D$9:$E$58,2,FALSE) ) )","v":""},null,null,null,null,{"$f":"IF(TRIM(BC182)=\"\", \"\", IF(VLOOKUP(BC182,'Footnotes list'!$D$9:$E$58,2,FALSE)=0,\"\",VLOOKUP(BC182,'Footnotes list'!$D$9:$E$58,2,FALSE) ) )","v":""},null,null,null,null,{"$f":"IF(TRIM(BH182)=\"\", \"\", IF(VLOOKUP(BH182,'Footnotes list'!$D$9:$E$58,2,FALSE)=0,\"\",VLOOKUP(BH182,'Footnotes list'!$D$9:$E$58,2,FALSE) ) )","v":""},null,null,null,null,{"$f":"IF(TRIM(BM182)=\"\", \"\", IF(VLOOKUP(BM182,'Footnotes list'!$D$9:$E$58,2,FALSE)=0,\"\",VLOOKUP(BM182,'Footnotes list'!$D$9:$E$58,2,FALSE) ) )","v":""},null,null,null,null,{"$f":"IF(TRIM(BR182)=\"\", \"\", IF(VLOOKUP(BR182,'Footnotes list'!$D$9:$E$58,2,FALSE)=0,\"\",VLOOKUP(BR182,'Footnotes list'!$D$9:$E$58,2,FALSE) ) )","v":""},null,null,null,null,{"$f":"IF(TRIM(BW182)=\"\", \"\", IF(VLOOKUP(BW182,'Footnotes list'!$D$9:$E$58,2,FALSE)=0,\"\",VLOOKUP(BW182,'Footnotes list'!$D$9:$E$58,2,FALSE) ) )","v":""},null,null,null,null,{"$f":"IF(TRIM(CB182)=\"\", \"\", IF(VLOOKUP(CB182,'Footnotes list'!$D$9:$E$58,2,FALSE)=0,\"\",VLOOKUP(CB182,'Footnotes list'!$D$9:$E$58,2,FALSE) ) )","v":""},null,null,null,null,{"$f":"IF(TRIM(CG182)=\"\", \"\", IF(VLOOKUP(CG182,'Footnotes list'!$D$9:$E$58,2,FALSE)=0,\"\",VLOOKUP(CG182,'Footnotes list'!$D$9:$E$58,2,FALSE) ) )","v":""},null,null,null,null,{"$f":"IF(TRIM(CL182)=\"\", \"\", IF(VLOOKUP(CL182,'Footnotes list'!$D$9:$E$58,2,FALSE)=0,\"\",VLOOKUP(CL182,'Footnotes list'!$D$9:$E$58,2,FALSE) ) )","v":""},null,null,null,null,{"$f":"IF(TRIM(CQ182)=\"\", \"\", IF(VLOOKUP(CQ182,'Footnotes list'!$D$9:$E$58,2,FALSE)=0,\"\",VLOOKUP(CQ182,'Footnotes list'!$D$9:$E$58,2,FALSE) ) )","v":""},null,null,null,null,{"$f":"IF(TRIM(CV182)=\"\", \"\", IF(VLOOKUP(CV182,'Footnotes list'!$D$9:$E$58,2,FALSE)=0,\"\",VLOOKUP(CV182,'Footnotes list'!$D$9:$E$58,2,FALSE) ) )","v":""},null,null,null,null,{"$f":"IF(TRIM(DA182)=\"\", \"\", IF(VLOOKUP(DA182,'Footnotes list'!$D$9:$E$58,2,FALSE)=0,\"\",VLOOKUP(DA182,'Footnotes list'!$D$9:$E$58,2,FALSE) ) )","v":""},null,null,null,null,{"$f":"IF(TRIM(DF182)=\"\", \"\", IF(VLOOKUP(DF182,'Footnotes list'!$D$9:$E$58,2,FALSE)=0,\"\",VLOOKUP(DF182,'Footnotes list'!$D$9:$E$58,2,FALSE) ) )","v":""},null,null,null,null,{"$f":"IF(TRIM(DK182)=\"\", \"\", IF(VLOOKUP(DK182,'Footnotes list'!$D$9:$E$58,2,FALSE)=0,\"\",VLOOKUP(DK182,'Footnotes list'!$D$9:$E$58,2,FALSE) ) )","v":""},null,null,null,null,{"$f":"IF(TRIM(DP182)=\"\", \"\", IF(VLOOKUP(DP182,'Footnotes list'!$D$9:$E$58,2,FALSE)=0,\"\",VLOOKUP(DP182,'Footnotes list'!$D$9:$E$58,2,FALSE) ) )","v":""},null,null,null,null,{"$f":"IF(TRIM(DU182)=\"\", \"\", IF(VLOOKUP(DU182,'Footnotes list'!$D$9:$E$58,2,FALSE)=0,\"\",VLOOKUP(DU182,'Footnotes list'!$D$9:$E$58,2,FALSE) ) )","v":""},null,null,null,null,{"$f":"IF(TRIM(DZ182)=\"\", \"\", IF(VLOOKUP(DZ182,'Footnotes list'!$D$9:$E$58,2,FALSE)=0,\"\",VLOOKUP(DZ182,'Footnotes list'!$D$9:$E$58,2,FALSE) ) )","v":""},null,null,null,null,{"$f":"IF(TRIM(EE182)=\"\", \"\", IF(VLOOKUP(EE182,'Footnotes list'!$D$9:$E$58,2,FALSE)=0,\"\",VLOOKUP(EE182,'Footnotes list'!$D$9:$E$58,2,FALSE) ) )","v":""},null,null,null,null,{"$f":"IF(TRIM(EJ182)=\"\", \"\", IF(VLOOKUP(EJ182,'Footnotes list'!$D$9:$E$58,2,FALSE)=0,\"\",VLOOKUP(EJ182,'Footnotes list'!$D$9:$E$58,2,FALSE) ) )","v":""},null,null,null,null,{"$f":"IF(TRIM(EO182)=\"\", \"\", IF(VLOOKUP(EO182,'Footnotes list'!$D$9:$E$58,2,FALSE)=0,\"\",VLOOKUP(EO182,'Footnotes list'!$D$9:$E$58,2,FALSE) ) )","v":""},null,null,null,null,{"$f":"IF(TRIM(ET182)=\"\", \"\", IF(VLOOKUP(ET182,'Footnotes list'!$D$9:$E$58,2,FALSE)=0,\"\",VLOOKUP(ET182,'Footnotes list'!$D$9:$E$58,2,FALSE) ) )","v":""},null,null,null,null,{"$f":"IF(TRIM(EY182)=\"\", \"\", IF(VLOOKUP(EY182,'Footnotes list'!$D$9:$E$58,2,FALSE)=0,\"\",VLOOKUP(EY182,'Footnotes list'!$D$9:$E$58,2,FALSE) ) )","v":""}]
[null,null,"H","TOT_EGSS","Total H - Transportation and storage, of which:",null,null,null,null,null,{"$f":"IF(TRIM(J183)=\"\", \"\", IF(VLOOKUP(J183,'Footnotes list'!$D$9:$E$58,2,FALSE)=0,\"\",VLOOKUP(J183,'Footnotes list'!$D$9:$E$58,2,FALSE) ) )","v":""},null,null,null,null,{"$f":"IF(TRIM(O183)=\"\", \"\", IF(VLOOKUP(O183,'Footnotes list'!$D$9:$E$58,2,FALSE)=0,\"\",VLOOKUP(O183,'Footnotes list'!$D$9:$E$58,2,FALSE) ) )","v":""},null,null,null,null,{"$f":"IF(TRIM(T183)=\"\", \"\", IF(VLOOKUP(T183,'Footnotes list'!$D$9:$E$58,2,FALSE)=0,\"\",VLOOKUP(T183,'Footnotes list'!$D$9:$E$58,2,FALSE) ) )","v":""},null,null,null,null,{"$f":"IF(TRIM(Y183)=\"\", \"\", IF(VLOOKUP(Y183,'Footnotes list'!$D$9:$E$58,2,FALSE)=0,\"\",VLOOKUP(Y183,'Footnotes list'!$D$9:$E$58,2,FALSE) ) )","v":""},null,null,null,null,{"$f":"IF(TRIM(AD183)=\"\", \"\", IF(VLOOKUP(AD183,'Footnotes list'!$D$9:$E$58,2,FALSE)=0,\"\",VLOOKUP(AD183,'Footnotes list'!$D$9:$E$58,2,FALSE) ) )","v":""},null,null,null,null,{"$f":"IF(TRIM(AI183)=\"\", \"\", IF(VLOOKUP(AI183,'Footnotes list'!$D$9:$E$58,2,FALSE)=0,\"\",VLOOKUP(AI183,'Footnotes list'!$D$9:$E$58,2,FALSE) ) )","v":""},null,null,null,null,{"$f":"IF(TRIM(AN183)=\"\", \"\", IF(VLOOKUP(AN183,'Footnotes list'!$D$9:$E$58,2,FALSE)=0,\"\",VLOOKUP(AN183,'Footnotes list'!$D$9:$E$58,2,FALSE) ) )","v":""},null,null,null,null,{"$f":"IF(TRIM(AS183)=\"\", \"\", IF(VLOOKUP(AS183,'Footnotes list'!$D$9:$E$58,2,FALSE)=0,\"\",VLOOKUP(AS183,'Footnotes list'!$D$9:$E$58,2,FALSE) ) )","v":""},null,null,null,null,{"$f":"IF(TRIM(AX183)=\"\", \"\", IF(VLOOKUP(AX183,'Footnotes list'!$D$9:$E$58,2,FALSE)=0,\"\",VLOOKUP(AX183,'Footnotes list'!$D$9:$E$58,2,FALSE) ) )","v":""},null,null,null,null,{"$f":"IF(TRIM(BC183)=\"\", \"\", IF(VLOOKUP(BC183,'Footnotes list'!$D$9:$E$58,2,FALSE)=0,\"\",VLOOKUP(BC183,'Footnotes list'!$D$9:$E$58,2,FALSE) ) )","v":""},null,null,null,null,{"$f":"IF(TRIM(BH183)=\"\", \"\", IF(VLOOKUP(BH183,'Footnotes list'!$D$9:$E$58,2,FALSE)=0,\"\",VLOOKUP(BH183,'Footnotes list'!$D$9:$E$58,2,FALSE) ) )","v":""},null,null,null,null,{"$f":"IF(TRIM(BM183)=\"\", \"\", IF(VLOOKUP(BM183,'Footnotes list'!$D$9:$E$58,2,FALSE)=0,\"\",VLOOKUP(BM183,'Footnotes list'!$D$9:$E$58,2,FALSE) ) )","v":""},null,null,null,null,{"$f":"IF(TRIM(BR183)=\"\", \"\", IF(VLOOKUP(BR183,'Footnotes list'!$D$9:$E$58,2,FALSE)=0,\"\",VLOOKUP(BR183,'Footnotes list'!$D$9:$E$58,2,FALSE) ) )","v":""},null,null,null,null,{"$f":"IF(TRIM(BW183)=\"\", \"\", IF(VLOOKUP(BW183,'Footnotes list'!$D$9:$E$58,2,FALSE)=0,\"\",VLOOKUP(BW183,'Footnotes list'!$D$9:$E$58,2,FALSE) ) )","v":""},null,null,null,null,{"$f":"IF(TRIM(CB183)=\"\", \"\", IF(VLOOKUP(CB183,'Footnotes list'!$D$9:$E$58,2,FALSE)=0,\"\",VLOOKUP(CB183,'Footnotes list'!$D$9:$E$58,2,FALSE) ) )","v":""},null,null,null,null,{"$f":"IF(TRIM(CG183)=\"\", \"\", IF(VLOOKUP(CG183,'Footnotes list'!$D$9:$E$58,2,FALSE)=0,\"\",VLOOKUP(CG183,'Footnotes list'!$D$9:$E$58,2,FALSE) ) )","v":""},null,null,null,null,{"$f":"IF(TRIM(CL183)=\"\", \"\", IF(VLOOKUP(CL183,'Footnotes list'!$D$9:$E$58,2,FALSE)=0,\"\",VLOOKUP(CL183,'Footnotes list'!$D$9:$E$58,2,FALSE) ) )","v":""},null,null,null,null,{"$f":"IF(TRIM(CQ183)=\"\", \"\", IF(VLOOKUP(CQ183,'Footnotes list'!$D$9:$E$58,2,FALSE)=0,\"\",VLOOKUP(CQ183,'Footnotes list'!$D$9:$E$58,2,FALSE) ) )","v":""},null,null,null,null,{"$f":"IF(TRIM(CV183)=\"\", \"\", IF(VLOOKUP(CV183,'Footnotes list'!$D$9:$E$58,2,FALSE)=0,\"\",VLOOKUP(CV183,'Footnotes list'!$D$9:$E$58,2,FALSE) ) )","v":""},null,null,null,null,{"$f":"IF(TRIM(DA183)=\"\", \"\", IF(VLOOKUP(DA183,'Footnotes list'!$D$9:$E$58,2,FALSE)=0,\"\",VLOOKUP(DA183,'Footnotes list'!$D$9:$E$58,2,FALSE) ) )","v":""},null,null,null,null,{"$f":"IF(TRIM(DF183)=\"\", \"\", IF(VLOOKUP(DF183,'Footnotes list'!$D$9:$E$58,2,FALSE)=0,\"\",VLOOKUP(DF183,'Footnotes list'!$D$9:$E$58,2,FALSE) ) )","v":""},null,null,null,null,{"$f":"IF(TRIM(DK183)=\"\", \"\", IF(VLOOKUP(DK183,'Footnotes list'!$D$9:$E$58,2,FALSE)=0,\"\",VLOOKUP(DK183,'Footnotes list'!$D$9:$E$58,2,FALSE) ) )","v":""},null,null,null,null,{"$f":"IF(TRIM(DP183)=\"\", \"\", IF(VLOOKUP(DP183,'Footnotes list'!$D$9:$E$58,2,FALSE)=0,\"\",VLOOKUP(DP183,'Footnotes list'!$D$9:$E$58,2,FALSE) ) )","v":""},null,null,null,null,{"$f":"IF(TRIM(DU183)=\"\", \"\", IF(VLOOKUP(DU183,'Footnotes list'!$D$9:$E$58,2,FALSE)=0,\"\",VLOOKUP(DU183,'Footnotes list'!$D$9:$E$58,2,FALSE) ) )","v":""},null,null,null,null,{"$f":"IF(TRIM(DZ183)=\"\", \"\", IF(VLOOKUP(DZ183,'Footnotes list'!$D$9:$E$58,2,FALSE)=0,\"\",VLOOKUP(DZ183,'Footnotes list'!$D$9:$E$58,2,FALSE) ) )","v":""},null,null,null,null,{"$f":"IF(TRIM(EE183)=\"\", \"\", IF(VLOOKUP(EE183,'Footnotes list'!$D$9:$E$58,2,FALSE)=0,\"\",VLOOKUP(EE183,'Footnotes list'!$D$9:$E$58,2,FALSE) ) )","v":""},null,null,null,null,{"$f":"IF(TRIM(EJ183)=\"\", \"\", IF(VLOOKUP(EJ183,'Footnotes list'!$D$9:$E$58,2,FALSE)=0,\"\",VLOOKUP(EJ183,'Footnotes list'!$D$9:$E$58,2,FALSE) ) )","v":""},null,null,null,null,{"$f":"IF(TRIM(EO183)=\"\", \"\", IF(VLOOKUP(EO183,'Footnotes list'!$D$9:$E$58,2,FALSE)=0,\"\",VLOOKUP(EO183,'Footnotes list'!$D$9:$E$58,2,FALSE) ) )","v":""},null,null,null,null,{"$f":"IF(TRIM(ET183)=\"\", \"\", IF(VLOOKUP(ET183,'Footnotes list'!$D$9:$E$58,2,FALSE)=0,\"\",VLOOKUP(ET183,'Footnotes list'!$D$9:$E$58,2,FALSE) ) )","v":""},null,null,null,null,{"$f":"IF(TRIM(EY183)=\"\", \"\", IF(VLOOKUP(EY183,'Footnotes list'!$D$9:$E$58,2,FALSE)=0,\"\",VLOOKUP(EY183,'Footnotes list'!$D$9:$E$58,2,FALSE) ) )","v":""}]
[null,null,"H","ANC","ancillary activities",null,null,null,null,null,{"$f":"IF(TRIM(J184)=\"\", \"\", IF(VLOOKUP(J184,'Footnotes list'!$D$9:$E$58,2,FALSE)=0,\"\",VLOOKUP(J184,'Footnotes list'!$D$9:$E$58,2,FALSE) ) )","v":""},null,null,null,null,{"$f":"IF(TRIM(O184)=\"\", \"\", IF(VLOOKUP(O184,'Footnotes list'!$D$9:$E$58,2,FALSE)=0,\"\",VLOOKUP(O184,'Footnotes list'!$D$9:$E$58,2,FALSE) ) )","v":""},null,null,null,null,{"$f":"IF(TRIM(T184)=\"\", \"\", IF(VLOOKUP(T184,'Footnotes list'!$D$9:$E$58,2,FALSE)=0,\"\",VLOOKUP(T184,'Footnotes list'!$D$9:$E$58,2,FALSE) ) )","v":""},null,null,null,null,{"$f":"IF(TRIM(Y184)=\"\", \"\", IF(VLOOKUP(Y184,'Footnotes list'!$D$9:$E$58,2,FALSE)=0,\"\",VLOOKUP(Y184,'Footnotes list'!$D$9:$E$58,2,FALSE) ) )","v":""},null,null,null,null,{"$f":"IF(TRIM(AD184)=\"\", \"\", IF(VLOOKUP(AD184,'Footnotes list'!$D$9:$E$58,2,FALSE)=0,\"\",VLOOKUP(AD184,'Footnotes list'!$D$9:$E$58,2,FALSE) ) )","v":""},null,null,null,null,{"$f":"IF(TRIM(AI184)=\"\", \"\", IF(VLOOKUP(AI184,'Footnotes list'!$D$9:$E$58,2,FALSE)=0,\"\",VLOOKUP(AI184,'Footnotes list'!$D$9:$E$58,2,FALSE) ) )","v":""},null,null,null,null,{"$f":"IF(TRIM(AN184)=\"\", \"\", IF(VLOOKUP(AN184,'Footnotes list'!$D$9:$E$58,2,FALSE)=0,\"\",VLOOKUP(AN184,'Footnotes list'!$D$9:$E$58,2,FALSE) ) )","v":""},null,null,null,null,{"$f":"IF(TRIM(AS184)=\"\", \"\", IF(VLOOKUP(AS184,'Footnotes list'!$D$9:$E$58,2,FALSE)=0,\"\",VLOOKUP(AS184,'Footnotes list'!$D$9:$E$58,2,FALSE) ) )","v":""},null,null,null,null,{"$f":"IF(TRIM(AX184)=\"\", \"\", IF(VLOOKUP(AX184,'Footnotes list'!$D$9:$E$58,2,FALSE)=0,\"\",VLOOKUP(AX184,'Footnotes list'!$D$9:$E$58,2,FALSE) ) )","v":""},null,null,null,null,{"$f":"IF(TRIM(BC184)=\"\", \"\", IF(VLOOKUP(BC184,'Footnotes list'!$D$9:$E$58,2,FALSE)=0,\"\",VLOOKUP(BC184,'Footnotes list'!$D$9:$E$58,2,FALSE) ) )","v":""},null,null,null,null,{"$f":"IF(TRIM(BH184)=\"\", \"\", IF(VLOOKUP(BH184,'Footnotes list'!$D$9:$E$58,2,FALSE)=0,\"\",VLOOKUP(BH184,'Footnotes list'!$D$9:$E$58,2,FALSE) ) )","v":""},null,null,null,null,{"$f":"IF(TRIM(BM184)=\"\", \"\", IF(VLOOKUP(BM184,'Footnotes list'!$D$9:$E$58,2,FALSE)=0,\"\",VLOOKUP(BM184,'Footnotes list'!$D$9:$E$58,2,FALSE) ) )","v":""},null,null,null,null,{"$f":"IF(TRIM(BR184)=\"\", \"\", IF(VLOOKUP(BR184,'Footnotes list'!$D$9:$E$58,2,FALSE)=0,\"\",VLOOKUP(BR184,'Footnotes list'!$D$9:$E$58,2,FALSE) ) )","v":""},null,null,null,null,{"$f":"IF(TRIM(BW184)=\"\", \"\", IF(VLOOKUP(BW184,'Footnotes list'!$D$9:$E$58,2,FALSE)=0,\"\",VLOOKUP(BW184,'Footnotes list'!$D$9:$E$58,2,FALSE) ) )","v":""},null,null,null,null,{"$f":"IF(TRIM(CB184)=\"\", \"\", IF(VLOOKUP(CB184,'Footnotes list'!$D$9:$E$58,2,FALSE)=0,\"\",VLOOKUP(CB184,'Footnotes list'!$D$9:$E$58,2,FALSE) ) )","v":""},null,null,null,null,{"$f":"IF(TRIM(CG184)=\"\", \"\", IF(VLOOKUP(CG184,'Footnotes list'!$D$9:$E$58,2,FALSE)=0,\"\",VLOOKUP(CG184,'Footnotes list'!$D$9:$E$58,2,FALSE) ) )","v":""},null,null,null,null,{"$f":"IF(TRIM(CL184)=\"\", \"\", IF(VLOOKUP(CL184,'Footnotes list'!$D$9:$E$58,2,FALSE)=0,\"\",VLOOKUP(CL184,'Footnotes list'!$D$9:$E$58,2,FALSE) ) )","v":""},null,null,null,null,{"$f":"IF(TRIM(CQ184)=\"\", \"\", IF(VLOOKUP(CQ184,'Footnotes list'!$D$9:$E$58,2,FALSE)=0,\"\",VLOOKUP(CQ184,'Footnotes list'!$D$9:$E$58,2,FALSE) ) )","v":""},null,null,null,null,{"$f":"IF(TRIM(CV184)=\"\", \"\", IF(VLOOKUP(CV184,'Footnotes list'!$D$9:$E$58,2,FALSE)=0,\"\",VLOOKUP(CV184,'Footnotes list'!$D$9:$E$58,2,FALSE) ) )","v":""},null,null,null,null,{"$f":"IF(TRIM(DA184)=\"\", \"\", IF(VLOOKUP(DA184,'Footnotes list'!$D$9:$E$58,2,FALSE)=0,\"\",VLOOKUP(DA184,'Footnotes list'!$D$9:$E$58,2,FALSE) ) )","v":""},null,null,null,null,{"$f":"IF(TRIM(DF184)=\"\", \"\", IF(VLOOKUP(DF184,'Footnotes list'!$D$9:$E$58,2,FALSE)=0,\"\",VLOOKUP(DF184,'Footnotes list'!$D$9:$E$58,2,FALSE) ) )","v":""},null,null,null,null,{"$f":"IF(TRIM(DK184)=\"\", \"\", IF(VLOOKUP(DK184,'Footnotes list'!$D$9:$E$58,2,FALSE)=0,\"\",VLOOKUP(DK184,'Footnotes list'!$D$9:$E$58,2,FALSE) ) )","v":""},null,null,null,null,{"$f":"IF(TRIM(DP184)=\"\", \"\", IF(VLOOKUP(DP184,'Footnotes list'!$D$9:$E$58,2,FALSE)=0,\"\",VLOOKUP(DP184,'Footnotes list'!$D$9:$E$58,2,FALSE) ) )","v":""},null,null,null,null,{"$f":"IF(TRIM(DU184)=\"\", \"\", IF(VLOOKUP(DU184,'Footnotes list'!$D$9:$E$58,2,FALSE)=0,\"\",VLOOKUP(DU184,'Footnotes list'!$D$9:$E$58,2,FALSE) ) )","v":""},null,null,null,null,{"$f":"IF(TRIM(DZ184)=\"\", \"\", IF(VLOOKUP(DZ184,'Footnotes list'!$D$9:$E$58,2,FALSE)=0,\"\",VLOOKUP(DZ184,'Footnotes list'!$D$9:$E$58,2,FALSE) ) )","v":""},null,null,null,null,{"$f":"IF(TRIM(EE184)=\"\", \"\", IF(VLOOKUP(EE184,'Footnotes list'!$D$9:$E$58,2,FALSE)=0,\"\",VLOOKUP(EE184,'Footnotes list'!$D$9:$E$58,2,FALSE) ) )","v":""},null,null,null,null,{"$f":"IF(TRIM(EJ184)=\"\", \"\", IF(VLOOKUP(EJ184,'Footnotes list'!$D$9:$E$58,2,FALSE)=0,\"\",VLOOKUP(EJ184,'Footnotes list'!$D$9:$E$58,2,FALSE) ) )","v":""},null,null,null,null,{"$f":"IF(TRIM(EO184)=\"\", \"\", IF(VLOOKUP(EO184,'Footnotes list'!$D$9:$E$58,2,FALSE)=0,\"\",VLOOKUP(EO184,'Footnotes list'!$D$9:$E$58,2,FALSE) ) )","v":""},null,null,null,null,{"$f":"IF(TRIM(ET184)=\"\", \"\", IF(VLOOKUP(ET184,'Footnotes list'!$D$9:$E$58,2,FALSE)=0,\"\",VLOOKUP(ET184,'Footnotes list'!$D$9:$E$58,2,FALSE) ) )","v":""},null,null,null,null,{"$f":"IF(TRIM(EY184)=\"\", \"\", IF(VLOOKUP(EY184,'Footnotes list'!$D$9:$E$58,2,FALSE)=0,\"\",VLOOKUP(EY184,'Footnotes list'!$D$9:$E$58,2,FALSE) ) )","v":""}]
[null,null,"H","NMKT","non-market activities",null,null,null,null,null,{"$f":"IF(TRIM(J185)=\"\", \"\", IF(VLOOKUP(J185,'Footnotes list'!$D$9:$E$58,2,FALSE)=0,\"\",VLOOKUP(J185,'Footnotes list'!$D$9:$E$58,2,FALSE) ) )","v":""},null,null,null,null,{"$f":"IF(TRIM(O185)=\"\", \"\", IF(VLOOKUP(O185,'Footnotes list'!$D$9:$E$58,2,FALSE)=0,\"\",VLOOKUP(O185,'Footnotes list'!$D$9:$E$58,2,FALSE) ) )","v":""},null,null,null,null,{"$f":"IF(TRIM(T185)=\"\", \"\", IF(VLOOKUP(T185,'Footnotes list'!$D$9:$E$58,2,FALSE)=0,\"\",VLOOKUP(T185,'Footnotes list'!$D$9:$E$58,2,FALSE) ) )","v":""},null,null,null,null,{"$f":"IF(TRIM(Y185)=\"\", \"\", IF(VLOOKUP(Y185,'Footnotes list'!$D$9:$E$58,2,FALSE)=0,\"\",VLOOKUP(Y185,'Footnotes list'!$D$9:$E$58,2,FALSE) ) )","v":""},null,null,null,null,{"$f":"IF(TRIM(AD185)=\"\", \"\", IF(VLOOKUP(AD185,'Footnotes list'!$D$9:$E$58,2,FALSE)=0,\"\",VLOOKUP(AD185,'Footnotes list'!$D$9:$E$58,2,FALSE) ) )","v":""},null,null,null,null,{"$f":"IF(TRIM(AI185)=\"\", \"\", IF(VLOOKUP(AI185,'Footnotes list'!$D$9:$E$58,2,FALSE)=0,\"\",VLOOKUP(AI185,'Footnotes list'!$D$9:$E$58,2,FALSE) ) )","v":""},null,null,null,null,{"$f":"IF(TRIM(AN185)=\"\", \"\", IF(VLOOKUP(AN185,'Footnotes list'!$D$9:$E$58,2,FALSE)=0,\"\",VLOOKUP(AN185,'Footnotes list'!$D$9:$E$58,2,FALSE) ) )","v":""},null,null,null,null,{"$f":"IF(TRIM(AS185)=\"\", \"\", IF(VLOOKUP(AS185,'Footnotes list'!$D$9:$E$58,2,FALSE)=0,\"\",VLOOKUP(AS185,'Footnotes list'!$D$9:$E$58,2,FALSE) ) )","v":""},null,null,null,null,{"$f":"IF(TRIM(AX185)=\"\", \"\", IF(VLOOKUP(AX185,'Footnotes list'!$D$9:$E$58,2,FALSE)=0,\"\",VLOOKUP(AX185,'Footnotes list'!$D$9:$E$58,2,FALSE) ) )","v":""},null,null,null,null,{"$f":"IF(TRIM(BC185)=\"\", \"\", IF(VLOOKUP(BC185,'Footnotes list'!$D$9:$E$58,2,FALSE)=0,\"\",VLOOKUP(BC185,'Footnotes list'!$D$9:$E$58,2,FALSE) ) )","v":""},null,null,null,null,{"$f":"IF(TRIM(BH185)=\"\", \"\", IF(VLOOKUP(BH185,'Footnotes list'!$D$9:$E$58,2,FALSE)=0,\"\",VLOOKUP(BH185,'Footnotes list'!$D$9:$E$58,2,FALSE) ) )","v":""},null,null,null,null,{"$f":"IF(TRIM(BM185)=\"\", \"\", IF(VLOOKUP(BM185,'Footnotes list'!$D$9:$E$58,2,FALSE)=0,\"\",VLOOKUP(BM185,'Footnotes list'!$D$9:$E$58,2,FALSE) ) )","v":""},null,null,null,null,{"$f":"IF(TRIM(BR185)=\"\", \"\", IF(VLOOKUP(BR185,'Footnotes list'!$D$9:$E$58,2,FALSE)=0,\"\",VLOOKUP(BR185,'Footnotes list'!$D$9:$E$58,2,FALSE) ) )","v":""},null,null,null,null,{"$f":"IF(TRIM(BW185)=\"\", \"\", IF(VLOOKUP(BW185,'Footnotes list'!$D$9:$E$58,2,FALSE)=0,\"\",VLOOKUP(BW185,'Footnotes list'!$D$9:$E$58,2,FALSE) ) )","v":""},null,null,null,null,{"$f":"IF(TRIM(CB185)=\"\", \"\", IF(VLOOKUP(CB185,'Footnotes list'!$D$9:$E$58,2,FALSE)=0,\"\",VLOOKUP(CB185,'Footnotes list'!$D$9:$E$58,2,FALSE) ) )","v":""},null,null,null,null,{"$f":"IF(TRIM(CG185)=\"\", \"\", IF(VLOOKUP(CG185,'Footnotes list'!$D$9:$E$58,2,FALSE)=0,\"\",VLOOKUP(CG185,'Footnotes list'!$D$9:$E$58,2,FALSE) ) )","v":""},null,null,null,null,{"$f":"IF(TRIM(CL185)=\"\", \"\", IF(VLOOKUP(CL185,'Footnotes list'!$D$9:$E$58,2,FALSE)=0,\"\",VLOOKUP(CL185,'Footnotes list'!$D$9:$E$58,2,FALSE) ) )","v":""},null,null,null,null,{"$f":"IF(TRIM(CQ185)=\"\", \"\", IF(VLOOKUP(CQ185,'Footnotes list'!$D$9:$E$58,2,FALSE)=0,\"\",VLOOKUP(CQ185,'Footnotes list'!$D$9:$E$58,2,FALSE) ) )","v":""},null,null,null,null,{"$f":"IF(TRIM(CV185)=\"\", \"\", IF(VLOOKUP(CV185,'Footnotes list'!$D$9:$E$58,2,FALSE)=0,\"\",VLOOKUP(CV185,'Footnotes list'!$D$9:$E$58,2,FALSE) ) )","v":""},null,null,null,null,{"$f":"IF(TRIM(DA185)=\"\", \"\", IF(VLOOKUP(DA185,'Footnotes list'!$D$9:$E$58,2,FALSE)=0,\"\",VLOOKUP(DA185,'Footnotes list'!$D$9:$E$58,2,FALSE) ) )","v":""},null,null,null,null,{"$f":"IF(TRIM(DF185)=\"\", \"\", IF(VLOOKUP(DF185,'Footnotes list'!$D$9:$E$58,2,FALSE)=0,\"\",VLOOKUP(DF185,'Footnotes list'!$D$9:$E$58,2,FALSE) ) )","v":""},null,null,null,null,{"$f":"IF(TRIM(DK185)=\"\", \"\", IF(VLOOKUP(DK185,'Footnotes list'!$D$9:$E$58,2,FALSE)=0,\"\",VLOOKUP(DK185,'Footnotes list'!$D$9:$E$58,2,FALSE) ) )","v":""},null,null,null,null,{"$f":"IF(TRIM(DP185)=\"\", \"\", IF(VLOOKUP(DP185,'Footnotes list'!$D$9:$E$58,2,FALSE)=0,\"\",VLOOKUP(DP185,'Footnotes list'!$D$9:$E$58,2,FALSE) ) )","v":""},null,null,null,null,{"$f":"IF(TRIM(DU185)=\"\", \"\", IF(VLOOKUP(DU185,'Footnotes list'!$D$9:$E$58,2,FALSE)=0,\"\",VLOOKUP(DU185,'Footnotes list'!$D$9:$E$58,2,FALSE) ) )","v":""},null,null,null,null,{"$f":"IF(TRIM(DZ185)=\"\", \"\", IF(VLOOKUP(DZ185,'Footnotes list'!$D$9:$E$58,2,FALSE)=0,\"\",VLOOKUP(DZ185,'Footnotes list'!$D$9:$E$58,2,FALSE) ) )","v":""},null,null,null,null,{"$f":"IF(TRIM(EE185)=\"\", \"\", IF(VLOOKUP(EE185,'Footnotes list'!$D$9:$E$58,2,FALSE)=0,\"\",VLOOKUP(EE185,'Footnotes list'!$D$9:$E$58,2,FALSE) ) )","v":""},null,null,null,null,{"$f":"IF(TRIM(EJ185)=\"\", \"\", IF(VLOOKUP(EJ185,'Footnotes list'!$D$9:$E$58,2,FALSE)=0,\"\",VLOOKUP(EJ185,'Footnotes list'!$D$9:$E$58,2,FALSE) ) )","v":""},null,null,null,null,{"$f":"IF(TRIM(EO185)=\"\", \"\", IF(VLOOKUP(EO185,'Footnotes list'!$D$9:$E$58,2,FALSE)=0,\"\",VLOOKUP(EO185,'Footnotes list'!$D$9:$E$58,2,FALSE) ) )","v":""},null,null,null,null,{"$f":"IF(TRIM(ET185)=\"\", \"\", IF(VLOOKUP(ET185,'Footnotes list'!$D$9:$E$58,2,FALSE)=0,\"\",VLOOKUP(ET185,'Footnotes list'!$D$9:$E$58,2,FALSE) ) )","v":""},null,null,null,null,{"$f":"IF(TRIM(EY185)=\"\", \"\", IF(VLOOKUP(EY185,'Footnotes list'!$D$9:$E$58,2,FALSE)=0,\"\",VLOOKUP(EY185,'Footnotes list'!$D$9:$E$58,2,FALSE) ) )","v":""}]
[null,null,"H","OWN_USE","activities for own final use",null,null,null,null,null,{"$f":"IF(TRIM(J186)=\"\", \"\", IF(VLOOKUP(J186,'Footnotes list'!$D$9:$E$58,2,FALSE)=0,\"\",VLOOKUP(J186,'Footnotes list'!$D$9:$E$58,2,FALSE) ) )","v":""},null,null,null,null,{"$f":"IF(TRIM(O186)=\"\", \"\", IF(VLOOKUP(O186,'Footnotes list'!$D$9:$E$58,2,FALSE)=0,\"\",VLOOKUP(O186,'Footnotes list'!$D$9:$E$58,2,FALSE) ) )","v":""},null,null,null,null,{"$f":"IF(TRIM(T186)=\"\", \"\", IF(VLOOKUP(T186,'Footnotes list'!$D$9:$E$58,2,FALSE)=0,\"\",VLOOKUP(T186,'Footnotes list'!$D$9:$E$58,2,FALSE) ) )","v":""},null,null,null,null,{"$f":"IF(TRIM(Y186)=\"\", \"\", IF(VLOOKUP(Y186,'Footnotes list'!$D$9:$E$58,2,FALSE)=0,\"\",VLOOKUP(Y186,'Footnotes list'!$D$9:$E$58,2,FALSE) ) )","v":""},null,null,null,null,{"$f":"IF(TRIM(AD186)=\"\", \"\", IF(VLOOKUP(AD186,'Footnotes list'!$D$9:$E$58,2,FALSE)=0,\"\",VLOOKUP(AD186,'Footnotes list'!$D$9:$E$58,2,FALSE) ) )","v":""},null,null,null,null,{"$f":"IF(TRIM(AI186)=\"\", \"\", IF(VLOOKUP(AI186,'Footnotes list'!$D$9:$E$58,2,FALSE)=0,\"\",VLOOKUP(AI186,'Footnotes list'!$D$9:$E$58,2,FALSE) ) )","v":""},null,null,null,null,{"$f":"IF(TRIM(AN186)=\"\", \"\", IF(VLOOKUP(AN186,'Footnotes list'!$D$9:$E$58,2,FALSE)=0,\"\",VLOOKUP(AN186,'Footnotes list'!$D$9:$E$58,2,FALSE) ) )","v":""},null,null,null,null,{"$f":"IF(TRIM(AS186)=\"\", \"\", IF(VLOOKUP(AS186,'Footnotes list'!$D$9:$E$58,2,FALSE)=0,\"\",VLOOKUP(AS186,'Footnotes list'!$D$9:$E$58,2,FALSE) ) )","v":""},null,null,null,null,{"$f":"IF(TRIM(AX186)=\"\", \"\", IF(VLOOKUP(AX186,'Footnotes list'!$D$9:$E$58,2,FALSE)=0,\"\",VLOOKUP(AX186,'Footnotes list'!$D$9:$E$58,2,FALSE) ) )","v":""},null,null,null,null,{"$f":"IF(TRIM(BC186)=\"\", \"\", IF(VLOOKUP(BC186,'Footnotes list'!$D$9:$E$58,2,FALSE)=0,\"\",VLOOKUP(BC186,'Footnotes list'!$D$9:$E$58,2,FALSE) ) )","v":""},null,null,null,null,{"$f":"IF(TRIM(BH186)=\"\", \"\", IF(VLOOKUP(BH186,'Footnotes list'!$D$9:$E$58,2,FALSE)=0,\"\",VLOOKUP(BH186,'Footnotes list'!$D$9:$E$58,2,FALSE) ) )","v":""},null,null,null,null,{"$f":"IF(TRIM(BM186)=\"\", \"\", IF(VLOOKUP(BM186,'Footnotes list'!$D$9:$E$58,2,FALSE)=0,\"\",VLOOKUP(BM186,'Footnotes list'!$D$9:$E$58,2,FALSE) ) )","v":""},null,null,null,null,{"$f":"IF(TRIM(BR186)=\"\", \"\", IF(VLOOKUP(BR186,'Footnotes list'!$D$9:$E$58,2,FALSE)=0,\"\",VLOOKUP(BR186,'Footnotes list'!$D$9:$E$58,2,FALSE) ) )","v":""},null,null,null,null,{"$f":"IF(TRIM(BW186)=\"\", \"\", IF(VLOOKUP(BW186,'Footnotes list'!$D$9:$E$58,2,FALSE)=0,\"\",VLOOKUP(BW186,'Footnotes list'!$D$9:$E$58,2,FALSE) ) )","v":""},null,null,null,null,{"$f":"IF(TRIM(CB186)=\"\", \"\", IF(VLOOKUP(CB186,'Footnotes list'!$D$9:$E$58,2,FALSE)=0,\"\",VLOOKUP(CB186,'Footnotes list'!$D$9:$E$58,2,FALSE) ) )","v":""},null,null,null,null,{"$f":"IF(TRIM(CG186)=\"\", \"\", IF(VLOOKUP(CG186,'Footnotes list'!$D$9:$E$58,2,FALSE)=0,\"\",VLOOKUP(CG186,'Footnotes list'!$D$9:$E$58,2,FALSE) ) )","v":""},null,null,null,null,{"$f":"IF(TRIM(CL186)=\"\", \"\", IF(VLOOKUP(CL186,'Footnotes list'!$D$9:$E$58,2,FALSE)=0,\"\",VLOOKUP(CL186,'Footnotes list'!$D$9:$E$58,2,FALSE) ) )","v":""},null,null,null,null,{"$f":"IF(TRIM(CQ186)=\"\", \"\", IF(VLOOKUP(CQ186,'Footnotes list'!$D$9:$E$58,2,FALSE)=0,\"\",VLOOKUP(CQ186,'Footnotes list'!$D$9:$E$58,2,FALSE) ) )","v":""},null,null,null,null,{"$f":"IF(TRIM(CV186)=\"\", \"\", IF(VLOOKUP(CV186,'Footnotes list'!$D$9:$E$58,2,FALSE)=0,\"\",VLOOKUP(CV186,'Footnotes list'!$D$9:$E$58,2,FALSE) ) )","v":""},null,null,null,null,{"$f":"IF(TRIM(DA186)=\"\", \"\", IF(VLOOKUP(DA186,'Footnotes list'!$D$9:$E$58,2,FALSE)=0,\"\",VLOOKUP(DA186,'Footnotes list'!$D$9:$E$58,2,FALSE) ) )","v":""},null,null,null,null,{"$f":"IF(TRIM(DF186)=\"\", \"\", IF(VLOOKUP(DF186,'Footnotes list'!$D$9:$E$58,2,FALSE)=0,\"\",VLOOKUP(DF186,'Footnotes list'!$D$9:$E$58,2,FALSE) ) )","v":""},null,null,null,null,{"$f":"IF(TRIM(DK186)=\"\", \"\", IF(VLOOKUP(DK186,'Footnotes list'!$D$9:$E$58,2,FALSE)=0,\"\",VLOOKUP(DK186,'Footnotes list'!$D$9:$E$58,2,FALSE) ) )","v":""},null,null,null,null,{"$f":"IF(TRIM(DP186)=\"\", \"\", IF(VLOOKUP(DP186,'Footnotes list'!$D$9:$E$58,2,FALSE)=0,\"\",VLOOKUP(DP186,'Footnotes list'!$D$9:$E$58,2,FALSE) ) )","v":""},null,null,null,null,{"$f":"IF(TRIM(DU186)=\"\", \"\", IF(VLOOKUP(DU186,'Footnotes list'!$D$9:$E$58,2,FALSE)=0,\"\",VLOOKUP(DU186,'Footnotes list'!$D$9:$E$58,2,FALSE) ) )","v":""},null,null,null,null,{"$f":"IF(TRIM(DZ186)=\"\", \"\", IF(VLOOKUP(DZ186,'Footnotes list'!$D$9:$E$58,2,FALSE)=0,\"\",VLOOKUP(DZ186,'Footnotes list'!$D$9:$E$58,2,FALSE) ) )","v":""},null,null,null,null,{"$f":"IF(TRIM(EE186)=\"\", \"\", IF(VLOOKUP(EE186,'Footnotes list'!$D$9:$E$58,2,FALSE)=0,\"\",VLOOKUP(EE186,'Footnotes list'!$D$9:$E$58,2,FALSE) ) )","v":""},null,null,null,null,{"$f":"IF(TRIM(EJ186)=\"\", \"\", IF(VLOOKUP(EJ186,'Footnotes list'!$D$9:$E$58,2,FALSE)=0,\"\",VLOOKUP(EJ186,'Footnotes list'!$D$9:$E$58,2,FALSE) ) )","v":""},null,null,null,null,{"$f":"IF(TRIM(EO186)=\"\", \"\", IF(VLOOKUP(EO186,'Footnotes list'!$D$9:$E$58,2,FALSE)=0,\"\",VLOOKUP(EO186,'Footnotes list'!$D$9:$E$58,2,FALSE) ) )","v":""},null,null,null,null,{"$f":"IF(TRIM(ET186)=\"\", \"\", IF(VLOOKUP(ET186,'Footnotes list'!$D$9:$E$58,2,FALSE)=0,\"\",VLOOKUP(ET186,'Footnotes list'!$D$9:$E$58,2,FALSE) ) )","v":""},null,null,null,null,{"$f":"IF(TRIM(EY186)=\"\", \"\", IF(VLOOKUP(EY186,'Footnotes list'!$D$9:$E$58,2,FALSE)=0,\"\",VLOOKUP(EY186,'Footnotes list'!$D$9:$E$58,2,FALSE) ) )","v":""}]
[null,null,"H","MKT","market activities, including:",null,null,null,null,null,{"$f":"IF(TRIM(J187)=\"\", \"\", IF(VLOOKUP(J187,'Footnotes list'!$D$9:$E$58,2,FALSE)=0,\"\",VLOOKUP(J187,'Footnotes list'!$D$9:$E$58,2,FALSE) ) )","v":""},null,null,null,null,{"$f":"IF(TRIM(O187)=\"\", \"\", IF(VLOOKUP(O187,'Footnotes list'!$D$9:$E$58,2,FALSE)=0,\"\",VLOOKUP(O187,'Footnotes list'!$D$9:$E$58,2,FALSE) ) )","v":""},null,null,null,null,{"$f":"IF(TRIM(T187)=\"\", \"\", IF(VLOOKUP(T187,'Footnotes list'!$D$9:$E$58,2,FALSE)=0,\"\",VLOOKUP(T187,'Footnotes list'!$D$9:$E$58,2,FALSE) ) )","v":""},null,null,null,null,{"$f":"IF(TRIM(Y187)=\"\", \"\", IF(VLOOKUP(Y187,'Footnotes list'!$D$9:$E$58,2,FALSE)=0,\"\",VLOOKUP(Y187,'Footnotes list'!$D$9:$E$58,2,FALSE) ) )","v":""},null,null,null,null,{"$f":"IF(TRIM(AD187)=\"\", \"\", IF(VLOOKUP(AD187,'Footnotes list'!$D$9:$E$58,2,FALSE)=0,\"\",VLOOKUP(AD187,'Footnotes list'!$D$9:$E$58,2,FALSE) ) )","v":""},null,null,null,null,{"$f":"IF(TRIM(AI187)=\"\", \"\", IF(VLOOKUP(AI187,'Footnotes list'!$D$9:$E$58,2,FALSE)=0,\"\",VLOOKUP(AI187,'Footnotes list'!$D$9:$E$58,2,FALSE) ) )","v":""},null,null,null,null,{"$f":"IF(TRIM(AN187)=\"\", \"\", IF(VLOOKUP(AN187,'Footnotes list'!$D$9:$E$58,2,FALSE)=0,\"\",VLOOKUP(AN187,'Footnotes list'!$D$9:$E$58,2,FALSE) ) )","v":""},null,null,null,null,{"$f":"IF(TRIM(AS187)=\"\", \"\", IF(VLOOKUP(AS187,'Footnotes list'!$D$9:$E$58,2,FALSE)=0,\"\",VLOOKUP(AS187,'Footnotes list'!$D$9:$E$58,2,FALSE) ) )","v":""},null,null,null,null,{"$f":"IF(TRIM(AX187)=\"\", \"\", IF(VLOOKUP(AX187,'Footnotes list'!$D$9:$E$58,2,FALSE)=0,\"\",VLOOKUP(AX187,'Footnotes list'!$D$9:$E$58,2,FALSE) ) )","v":""},null,null,null,null,{"$f":"IF(TRIM(BC187)=\"\", \"\", IF(VLOOKUP(BC187,'Footnotes list'!$D$9:$E$58,2,FALSE)=0,\"\",VLOOKUP(BC187,'Footnotes list'!$D$9:$E$58,2,FALSE) ) )","v":""},null,null,null,null,{"$f":"IF(TRIM(BH187)=\"\", \"\", IF(VLOOKUP(BH187,'Footnotes list'!$D$9:$E$58,2,FALSE)=0,\"\",VLOOKUP(BH187,'Footnotes list'!$D$9:$E$58,2,FALSE) ) )","v":""},null,null,null,null,{"$f":"IF(TRIM(BM187)=\"\", \"\", IF(VLOOKUP(BM187,'Footnotes list'!$D$9:$E$58,2,FALSE)=0,\"\",VLOOKUP(BM187,'Footnotes list'!$D$9:$E$58,2,FALSE) ) )","v":""},null,null,null,null,{"$f":"IF(TRIM(BR187)=\"\", \"\", IF(VLOOKUP(BR187,'Footnotes list'!$D$9:$E$58,2,FALSE)=0,\"\",VLOOKUP(BR187,'Footnotes list'!$D$9:$E$58,2,FALSE) ) )","v":""},null,null,null,null,{"$f":"IF(TRIM(BW187)=\"\", \"\", IF(VLOOKUP(BW187,'Footnotes list'!$D$9:$E$58,2,FALSE)=0,\"\",VLOOKUP(BW187,'Footnotes list'!$D$9:$E$58,2,FALSE) ) )","v":""},null,null,null,null,{"$f":"IF(TRIM(CB187)=\"\", \"\", IF(VLOOKUP(CB187,'Footnotes list'!$D$9:$E$58,2,FALSE)=0,\"\",VLOOKUP(CB187,'Footnotes list'!$D$9:$E$58,2,FALSE) ) )","v":""},null,null,null,null,{"$f":"IF(TRIM(CG187)=\"\", \"\", IF(VLOOKUP(CG187,'Footnotes list'!$D$9:$E$58,2,FALSE)=0,\"\",VLOOKUP(CG187,'Footnotes list'!$D$9:$E$58,2,FALSE) ) )","v":""},null,null,null,null,{"$f":"IF(TRIM(CL187)=\"\", \"\", IF(VLOOKUP(CL187,'Footnotes list'!$D$9:$E$58,2,FALSE)=0,\"\",VLOOKUP(CL187,'Footnotes list'!$D$9:$E$58,2,FALSE) ) )","v":""},null,null,null,null,{"$f":"IF(TRIM(CQ187)=\"\", \"\", IF(VLOOKUP(CQ187,'Footnotes list'!$D$9:$E$58,2,FALSE)=0,\"\",VLOOKUP(CQ187,'Footnotes list'!$D$9:$E$58,2,FALSE) ) )","v":""},null,null,null,null,{"$f":"IF(TRIM(CV187)=\"\", \"\", IF(VLOOKUP(CV187,'Footnotes list'!$D$9:$E$58,2,FALSE)=0,\"\",VLOOKUP(CV187,'Footnotes list'!$D$9:$E$58,2,FALSE) ) )","v":""},null,null,null,null,{"$f":"IF(TRIM(DA187)=\"\", \"\", IF(VLOOKUP(DA187,'Footnotes list'!$D$9:$E$58,2,FALSE)=0,\"\",VLOOKUP(DA187,'Footnotes list'!$D$9:$E$58,2,FALSE) ) )","v":""},null,null,null,null,{"$f":"IF(TRIM(DF187)=\"\", \"\", IF(VLOOKUP(DF187,'Footnotes list'!$D$9:$E$58,2,FALSE)=0,\"\",VLOOKUP(DF187,'Footnotes list'!$D$9:$E$58,2,FALSE) ) )","v":""},null,null,null,null,{"$f":"IF(TRIM(DK187)=\"\", \"\", IF(VLOOKUP(DK187,'Footnotes list'!$D$9:$E$58,2,FALSE)=0,\"\",VLOOKUP(DK187,'Footnotes list'!$D$9:$E$58,2,FALSE) ) )","v":""},null,null,null,null,{"$f":"IF(TRIM(DP187)=\"\", \"\", IF(VLOOKUP(DP187,'Footnotes list'!$D$9:$E$58,2,FALSE)=0,\"\",VLOOKUP(DP187,'Footnotes list'!$D$9:$E$58,2,FALSE) ) )","v":""},null,null,null,null,{"$f":"IF(TRIM(DU187)=\"\", \"\", IF(VLOOKUP(DU187,'Footnotes list'!$D$9:$E$58,2,FALSE)=0,\"\",VLOOKUP(DU187,'Footnotes list'!$D$9:$E$58,2,FALSE) ) )","v":""},null,null,null,null,{"$f":"IF(TRIM(DZ187)=\"\", \"\", IF(VLOOKUP(DZ187,'Footnotes list'!$D$9:$E$58,2,FALSE)=0,\"\",VLOOKUP(DZ187,'Footnotes list'!$D$9:$E$58,2,FALSE) ) )","v":""},null,null,null,null,{"$f":"IF(TRIM(EE187)=\"\", \"\", IF(VLOOKUP(EE187,'Footnotes list'!$D$9:$E$58,2,FALSE)=0,\"\",VLOOKUP(EE187,'Footnotes list'!$D$9:$E$58,2,FALSE) ) )","v":""},null,null,null,null,{"$f":"IF(TRIM(EJ187)=\"\", \"\", IF(VLOOKUP(EJ187,'Footnotes list'!$D$9:$E$58,2,FALSE)=0,\"\",VLOOKUP(EJ187,'Footnotes list'!$D$9:$E$58,2,FALSE) ) )","v":""},null,null,null,null,{"$f":"IF(TRIM(EO187)=\"\", \"\", IF(VLOOKUP(EO187,'Footnotes list'!$D$9:$E$58,2,FALSE)=0,\"\",VLOOKUP(EO187,'Footnotes list'!$D$9:$E$58,2,FALSE) ) )","v":""},null,null,null,null,{"$f":"IF(TRIM(ET187)=\"\", \"\", IF(VLOOKUP(ET187,'Footnotes list'!$D$9:$E$58,2,FALSE)=0,\"\",VLOOKUP(ET187,'Footnotes list'!$D$9:$E$58,2,FALSE) ) )","v":""},null,null,null,null,{"$f":"IF(TRIM(EY187)=\"\", \"\", IF(VLOOKUP(EY187,'Footnotes list'!$D$9:$E$58,2,FALSE)=0,\"\",VLOOKUP(EY187,'Footnotes list'!$D$9:$E$58,2,FALSE) ) )","v":""}]
[null,null,"H","ES_CS","environmental specific services",null,null,null,null,null,{"$f":"IF(TRIM(J188)=\"\", \"\", IF(VLOOKUP(J188,'Footnotes list'!$D$9:$E$58,2,FALSE)=0,\"\",VLOOKUP(J188,'Footnotes list'!$D$9:$E$58,2,FALSE) ) )","v":""},null,null,null,null,{"$f":"IF(TRIM(O188)=\"\", \"\", IF(VLOOKUP(O188,'Footnotes list'!$D$9:$E$58,2,FALSE)=0,\"\",VLOOKUP(O188,'Footnotes list'!$D$9:$E$58,2,FALSE) ) )","v":""},null,null,null,null,{"$f":"IF(TRIM(T188)=\"\", \"\", IF(VLOOKUP(T188,'Footnotes list'!$D$9:$E$58,2,FALSE)=0,\"\",VLOOKUP(T188,'Footnotes list'!$D$9:$E$58,2,FALSE) ) )","v":""},null,null,null,null,{"$f":"IF(TRIM(Y188)=\"\", \"\", IF(VLOOKUP(Y188,'Footnotes list'!$D$9:$E$58,2,FALSE)=0,\"\",VLOOKUP(Y188,'Footnotes list'!$D$9:$E$58,2,FALSE) ) )","v":""},null,null,null,null,{"$f":"IF(TRIM(AD188)=\"\", \"\", IF(VLOOKUP(AD188,'Footnotes list'!$D$9:$E$58,2,FALSE)=0,\"\",VLOOKUP(AD188,'Footnotes list'!$D$9:$E$58,2,FALSE) ) )","v":""},null,null,null,null,{"$f":"IF(TRIM(AI188)=\"\", \"\", IF(VLOOKUP(AI188,'Footnotes list'!$D$9:$E$58,2,FALSE)=0,\"\",VLOOKUP(AI188,'Footnotes list'!$D$9:$E$58,2,FALSE) ) )","v":""},null,null,null,null,{"$f":"IF(TRIM(AN188)=\"\", \"\", IF(VLOOKUP(AN188,'Footnotes list'!$D$9:$E$58,2,FALSE)=0,\"\",VLOOKUP(AN188,'Footnotes list'!$D$9:$E$58,2,FALSE) ) )","v":""},null,null,null,null,{"$f":"IF(TRIM(AS188)=\"\", \"\", IF(VLOOKUP(AS188,'Footnotes list'!$D$9:$E$58,2,FALSE)=0,\"\",VLOOKUP(AS188,'Footnotes list'!$D$9:$E$58,2,FALSE) ) )","v":""},null,null,null,null,{"$f":"IF(TRIM(AX188)=\"\", \"\", IF(VLOOKUP(AX188,'Footnotes list'!$D$9:$E$58,2,FALSE)=0,\"\",VLOOKUP(AX188,'Footnotes list'!$D$9:$E$58,2,FALSE) ) )","v":""},null,null,null,null,{"$f":"IF(TRIM(BC188)=\"\", \"\", IF(VLOOKUP(BC188,'Footnotes list'!$D$9:$E$58,2,FALSE)=0,\"\",VLOOKUP(BC188,'Footnotes list'!$D$9:$E$58,2,FALSE) ) )","v":""},null,null,null,null,{"$f":"IF(TRIM(BH188)=\"\", \"\", IF(VLOOKUP(BH188,'Footnotes list'!$D$9:$E$58,2,FALSE)=0,\"\",VLOOKUP(BH188,'Footnotes list'!$D$9:$E$58,2,FALSE) ) )","v":""},null,null,null,null,{"$f":"IF(TRIM(BM188)=\"\", \"\", IF(VLOOKUP(BM188,'Footnotes list'!$D$9:$E$58,2,FALSE)=0,\"\",VLOOKUP(BM188,'Footnotes list'!$D$9:$E$58,2,FALSE) ) )","v":""},null,null,null,null,{"$f":"IF(TRIM(BR188)=\"\", \"\", IF(VLOOKUP(BR188,'Footnotes list'!$D$9:$E$58,2,FALSE)=0,\"\",VLOOKUP(BR188,'Footnotes list'!$D$9:$E$58,2,FALSE) ) )","v":""},null,null,null,null,{"$f":"IF(TRIM(BW188)=\"\", \"\", IF(VLOOKUP(BW188,'Footnotes list'!$D$9:$E$58,2,FALSE)=0,\"\",VLOOKUP(BW188,'Footnotes list'!$D$9:$E$58,2,FALSE) ) )","v":""},null,null,null,null,{"$f":"IF(TRIM(CB188)=\"\", \"\", IF(VLOOKUP(CB188,'Footnotes list'!$D$9:$E$58,2,FALSE)=0,\"\",VLOOKUP(CB188,'Footnotes list'!$D$9:$E$58,2,FALSE) ) )","v":""},null,null,null,null,{"$f":"IF(TRIM(CG188)=\"\", \"\", IF(VLOOKUP(CG188,'Footnotes list'!$D$9:$E$58,2,FALSE)=0,\"\",VLOOKUP(CG188,'Footnotes list'!$D$9:$E$58,2,FALSE) ) )","v":""},null,null,null,null,{"$f":"IF(TRIM(CL188)=\"\", \"\", IF(VLOOKUP(CL188,'Footnotes list'!$D$9:$E$58,2,FALSE)=0,\"\",VLOOKUP(CL188,'Footnotes list'!$D$9:$E$58,2,FALSE) ) )","v":""},null,null,null,null,{"$f":"IF(TRIM(CQ188)=\"\", \"\", IF(VLOOKUP(CQ188,'Footnotes list'!$D$9:$E$58,2,FALSE)=0,\"\",VLOOKUP(CQ188,'Footnotes list'!$D$9:$E$58,2,FALSE) ) )","v":""},null,null,null,null,{"$f":"IF(TRIM(CV188)=\"\", \"\", IF(VLOOKUP(CV188,'Footnotes list'!$D$9:$E$58,2,FALSE)=0,\"\",VLOOKUP(CV188,'Footnotes list'!$D$9:$E$58,2,FALSE) ) )","v":""},null,null,null,null,{"$f":"IF(TRIM(DA188)=\"\", \"\", IF(VLOOKUP(DA188,'Footnotes list'!$D$9:$E$58,2,FALSE)=0,\"\",VLOOKUP(DA188,'Footnotes list'!$D$9:$E$58,2,FALSE) ) )","v":""},null,null,null,null,{"$f":"IF(TRIM(DF188)=\"\", \"\", IF(VLOOKUP(DF188,'Footnotes list'!$D$9:$E$58,2,FALSE)=0,\"\",VLOOKUP(DF188,'Footnotes list'!$D$9:$E$58,2,FALSE) ) )","v":""},null,null,null,null,{"$f":"IF(TRIM(DK188)=\"\", \"\", IF(VLOOKUP(DK188,'Footnotes list'!$D$9:$E$58,2,FALSE)=0,\"\",VLOOKUP(DK188,'Footnotes list'!$D$9:$E$58,2,FALSE) ) )","v":""},null,null,null,null,{"$f":"IF(TRIM(DP188)=\"\", \"\", IF(VLOOKUP(DP188,'Footnotes list'!$D$9:$E$58,2,FALSE)=0,\"\",VLOOKUP(DP188,'Footnotes list'!$D$9:$E$58,2,FALSE) ) )","v":""},null,null,null,null,{"$f":"IF(TRIM(DU188)=\"\", \"\", IF(VLOOKUP(DU188,'Footnotes list'!$D$9:$E$58,2,FALSE)=0,\"\",VLOOKUP(DU188,'Footnotes list'!$D$9:$E$58,2,FALSE) ) )","v":""},null,null,null,null,{"$f":"IF(TRIM(DZ188)=\"\", \"\", IF(VLOOKUP(DZ188,'Footnotes list'!$D$9:$E$58,2,FALSE)=0,\"\",VLOOKUP(DZ188,'Footnotes list'!$D$9:$E$58,2,FALSE) ) )","v":""},null,null,null,null,{"$f":"IF(TRIM(EE188)=\"\", \"\", IF(VLOOKUP(EE188,'Footnotes list'!$D$9:$E$58,2,FALSE)=0,\"\",VLOOKUP(EE188,'Footnotes list'!$D$9:$E$58,2,FALSE) ) )","v":""},null,null,null,null,{"$f":"IF(TRIM(EJ188)=\"\", \"\", IF(VLOOKUP(EJ188,'Footnotes list'!$D$9:$E$58,2,FALSE)=0,\"\",VLOOKUP(EJ188,'Footnotes list'!$D$9:$E$58,2,FALSE) ) )","v":""},null,null,null,null,{"$f":"IF(TRIM(EO188)=\"\", \"\", IF(VLOOKUP(EO188,'Footnotes list'!$D$9:$E$58,2,FALSE)=0,\"\",VLOOKUP(EO188,'Footnotes list'!$D$9:$E$58,2,FALSE) ) )","v":""},null,null,null,null,{"$f":"IF(TRIM(ET188)=\"\", \"\", IF(VLOOKUP(ET188,'Footnotes list'!$D$9:$E$58,2,FALSE)=0,\"\",VLOOKUP(ET188,'Footnotes list'!$D$9:$E$58,2,FALSE) ) )","v":""},null,null,null,null,{"$f":"IF(TRIM(EY188)=\"\", \"\", IF(VLOOKUP(EY188,'Footnotes list'!$D$9:$E$58,2,FALSE)=0,\"\",VLOOKUP(EY188,'Footnotes list'!$D$9:$E$58,2,FALSE) ) )","v":""}]
[null,null,"H","C_REP","cleaner and resource efficient products",null,null,null,null,null,{"$f":"IF(TRIM(J189)=\"\", \"\", IF(VLOOKUP(J189,'Footnotes list'!$D$9:$E$58,2,FALSE)=0,\"\",VLOOKUP(J189,'Footnotes list'!$D$9:$E$58,2,FALSE) ) )","v":""},null,null,null,null,{"$f":"IF(TRIM(O189)=\"\", \"\", IF(VLOOKUP(O189,'Footnotes list'!$D$9:$E$58,2,FALSE)=0,\"\",VLOOKUP(O189,'Footnotes list'!$D$9:$E$58,2,FALSE) ) )","v":""},null,null,null,null,{"$f":"IF(TRIM(T189)=\"\", \"\", IF(VLOOKUP(T189,'Footnotes list'!$D$9:$E$58,2,FALSE)=0,\"\",VLOOKUP(T189,'Footnotes list'!$D$9:$E$58,2,FALSE) ) )","v":""},null,null,null,null,{"$f":"IF(TRIM(Y189)=\"\", \"\", IF(VLOOKUP(Y189,'Footnotes list'!$D$9:$E$58,2,FALSE)=0,\"\",VLOOKUP(Y189,'Footnotes list'!$D$9:$E$58,2,FALSE) ) )","v":""},null,null,null,null,{"$f":"IF(TRIM(AD189)=\"\", \"\", IF(VLOOKUP(AD189,'Footnotes list'!$D$9:$E$58,2,FALSE)=0,\"\",VLOOKUP(AD189,'Footnotes list'!$D$9:$E$58,2,FALSE) ) )","v":""},null,null,null,null,{"$f":"IF(TRIM(AI189)=\"\", \"\", IF(VLOOKUP(AI189,'Footnotes list'!$D$9:$E$58,2,FALSE)=0,\"\",VLOOKUP(AI189,'Footnotes list'!$D$9:$E$58,2,FALSE) ) )","v":""},null,null,null,null,{"$f":"IF(TRIM(AN189)=\"\", \"\", IF(VLOOKUP(AN189,'Footnotes list'!$D$9:$E$58,2,FALSE)=0,\"\",VLOOKUP(AN189,'Footnotes list'!$D$9:$E$58,2,FALSE) ) )","v":""},null,null,null,null,{"$f":"IF(TRIM(AS189)=\"\", \"\", IF(VLOOKUP(AS189,'Footnotes list'!$D$9:$E$58,2,FALSE)=0,\"\",VLOOKUP(AS189,'Footnotes list'!$D$9:$E$58,2,FALSE) ) )","v":""},null,null,null,null,{"$f":"IF(TRIM(AX189)=\"\", \"\", IF(VLOOKUP(AX189,'Footnotes list'!$D$9:$E$58,2,FALSE)=0,\"\",VLOOKUP(AX189,'Footnotes list'!$D$9:$E$58,2,FALSE) ) )","v":""},null,null,null,null,{"$f":"IF(TRIM(BC189)=\"\", \"\", IF(VLOOKUP(BC189,'Footnotes list'!$D$9:$E$58,2,FALSE)=0,\"\",VLOOKUP(BC189,'Footnotes list'!$D$9:$E$58,2,FALSE) ) )","v":""},null,null,null,null,{"$f":"IF(TRIM(BH189)=\"\", \"\", IF(VLOOKUP(BH189,'Footnotes list'!$D$9:$E$58,2,FALSE)=0,\"\",VLOOKUP(BH189,'Footnotes list'!$D$9:$E$58,2,FALSE) ) )","v":""},null,null,null,null,{"$f":"IF(TRIM(BM189)=\"\", \"\", IF(VLOOKUP(BM189,'Footnotes list'!$D$9:$E$58,2,FALSE)=0,\"\",VLOOKUP(BM189,'Footnotes list'!$D$9:$E$58,2,FALSE) ) )","v":""},null,null,null,null,{"$f":"IF(TRIM(BR189)=\"\", \"\", IF(VLOOKUP(BR189,'Footnotes list'!$D$9:$E$58,2,FALSE)=0,\"\",VLOOKUP(BR189,'Footnotes list'!$D$9:$E$58,2,FALSE) ) )","v":""},null,null,null,null,{"$f":"IF(TRIM(BW189)=\"\", \"\", IF(VLOOKUP(BW189,'Footnotes list'!$D$9:$E$58,2,FALSE)=0,\"\",VLOOKUP(BW189,'Footnotes list'!$D$9:$E$58,2,FALSE) ) )","v":""},null,null,null,null,{"$f":"IF(TRIM(CB189)=\"\", \"\", IF(VLOOKUP(CB189,'Footnotes list'!$D$9:$E$58,2,FALSE)=0,\"\",VLOOKUP(CB189,'Footnotes list'!$D$9:$E$58,2,FALSE) ) )","v":""},null,null,null,null,{"$f":"IF(TRIM(CG189)=\"\", \"\", IF(VLOOKUP(CG189,'Footnotes list'!$D$9:$E$58,2,FALSE)=0,\"\",VLOOKUP(CG189,'Footnotes list'!$D$9:$E$58,2,FALSE) ) )","v":""},null,null,null,null,{"$f":"IF(TRIM(CL189)=\"\", \"\", IF(VLOOKUP(CL189,'Footnotes list'!$D$9:$E$58,2,FALSE)=0,\"\",VLOOKUP(CL189,'Footnotes list'!$D$9:$E$58,2,FALSE) ) )","v":""},null,null,null,null,{"$f":"IF(TRIM(CQ189)=\"\", \"\", IF(VLOOKUP(CQ189,'Footnotes list'!$D$9:$E$58,2,FALSE)=0,\"\",VLOOKUP(CQ189,'Footnotes list'!$D$9:$E$58,2,FALSE) ) )","v":""},null,null,null,null,{"$f":"IF(TRIM(CV189)=\"\", \"\", IF(VLOOKUP(CV189,'Footnotes list'!$D$9:$E$58,2,FALSE)=0,\"\",VLOOKUP(CV189,'Footnotes list'!$D$9:$E$58,2,FALSE) ) )","v":""},null,null,null,null,{"$f":"IF(TRIM(DA189)=\"\", \"\", IF(VLOOKUP(DA189,'Footnotes list'!$D$9:$E$58,2,FALSE)=0,\"\",VLOOKUP(DA189,'Footnotes list'!$D$9:$E$58,2,FALSE) ) )","v":""},null,null,null,null,{"$f":"IF(TRIM(DF189)=\"\", \"\", IF(VLOOKUP(DF189,'Footnotes list'!$D$9:$E$58,2,FALSE)=0,\"\",VLOOKUP(DF189,'Footnotes list'!$D$9:$E$58,2,FALSE) ) )","v":""},null,null,null,null,{"$f":"IF(TRIM(DK189)=\"\", \"\", IF(VLOOKUP(DK189,'Footnotes list'!$D$9:$E$58,2,FALSE)=0,\"\",VLOOKUP(DK189,'Footnotes list'!$D$9:$E$58,2,FALSE) ) )","v":""},null,null,null,null,{"$f":"IF(TRIM(DP189)=\"\", \"\", IF(VLOOKUP(DP189,'Footnotes list'!$D$9:$E$58,2,FALSE)=0,\"\",VLOOKUP(DP189,'Footnotes list'!$D$9:$E$58,2,FALSE) ) )","v":""},null,null,null,null,{"$f":"IF(TRIM(DU189)=\"\", \"\", IF(VLOOKUP(DU189,'Footnotes list'!$D$9:$E$58,2,FALSE)=0,\"\",VLOOKUP(DU189,'Footnotes list'!$D$9:$E$58,2,FALSE) ) )","v":""},null,null,null,null,{"$f":"IF(TRIM(DZ189)=\"\", \"\", IF(VLOOKUP(DZ189,'Footnotes list'!$D$9:$E$58,2,FALSE)=0,\"\",VLOOKUP(DZ189,'Footnotes list'!$D$9:$E$58,2,FALSE) ) )","v":""},null,null,null,null,{"$f":"IF(TRIM(EE189)=\"\", \"\", IF(VLOOKUP(EE189,'Footnotes list'!$D$9:$E$58,2,FALSE)=0,\"\",VLOOKUP(EE189,'Footnotes list'!$D$9:$E$58,2,FALSE) ) )","v":""},null,null,null,null,{"$f":"IF(TRIM(EJ189)=\"\", \"\", IF(VLOOKUP(EJ189,'Footnotes list'!$D$9:$E$58,2,FALSE)=0,\"\",VLOOKUP(EJ189,'Footnotes list'!$D$9:$E$58,2,FALSE) ) )","v":""},null,null,null,null,{"$f":"IF(TRIM(EO189)=\"\", \"\", IF(VLOOKUP(EO189,'Footnotes list'!$D$9:$E$58,2,FALSE)=0,\"\",VLOOKUP(EO189,'Footnotes list'!$D$9:$E$58,2,FALSE) ) )","v":""},null,null,null,null,{"$f":"IF(TRIM(ET189)=\"\", \"\", IF(VLOOKUP(ET189,'Footnotes list'!$D$9:$E$58,2,FALSE)=0,\"\",VLOOKUP(ET189,'Footnotes list'!$D$9:$E$58,2,FALSE) ) )","v":""},null,null,null,null,{"$f":"IF(TRIM(EY189)=\"\", \"\", IF(VLOOKUP(EY189,'Footnotes list'!$D$9:$E$58,2,FALSE)=0,\"\",VLOOKUP(EY189,'Footnotes list'!$D$9:$E$58,2,FALSE) ) )","v":""}]
[null,null,"I","TOT_EGSS","Total I - Accommodation and food service activities, of which:",null,null,null,null,null,{"$f":"IF(TRIM(J190)=\"\", \"\", IF(VLOOKUP(J190,'Footnotes list'!$D$9:$E$58,2,FALSE)=0,\"\",VLOOKUP(J190,'Footnotes list'!$D$9:$E$58,2,FALSE) ) )","v":""},null,null,null,null,{"$f":"IF(TRIM(O190)=\"\", \"\", IF(VLOOKUP(O190,'Footnotes list'!$D$9:$E$58,2,FALSE)=0,\"\",VLOOKUP(O190,'Footnotes list'!$D$9:$E$58,2,FALSE) ) )","v":""},null,null,null,null,{"$f":"IF(TRIM(T190)=\"\", \"\", IF(VLOOKUP(T190,'Footnotes list'!$D$9:$E$58,2,FALSE)=0,\"\",VLOOKUP(T190,'Footnotes list'!$D$9:$E$58,2,FALSE) ) )","v":""},null,null,null,null,{"$f":"IF(TRIM(Y190)=\"\", \"\", IF(VLOOKUP(Y190,'Footnotes list'!$D$9:$E$58,2,FALSE)=0,\"\",VLOOKUP(Y190,'Footnotes list'!$D$9:$E$58,2,FALSE) ) )","v":""},null,null,null,null,{"$f":"IF(TRIM(AD190)=\"\", \"\", IF(VLOOKUP(AD190,'Footnotes list'!$D$9:$E$58,2,FALSE)=0,\"\",VLOOKUP(AD190,'Footnotes list'!$D$9:$E$58,2,FALSE) ) )","v":""},null,null,null,null,{"$f":"IF(TRIM(AI190)=\"\", \"\", IF(VLOOKUP(AI190,'Footnotes list'!$D$9:$E$58,2,FALSE)=0,\"\",VLOOKUP(AI190,'Footnotes list'!$D$9:$E$58,2,FALSE) ) )","v":""},null,null,null,null,{"$f":"IF(TRIM(AN190)=\"\", \"\", IF(VLOOKUP(AN190,'Footnotes list'!$D$9:$E$58,2,FALSE)=0,\"\",VLOOKUP(AN190,'Footnotes list'!$D$9:$E$58,2,FALSE) ) )","v":""},null,null,null,null,{"$f":"IF(TRIM(AS190)=\"\", \"\", IF(VLOOKUP(AS190,'Footnotes list'!$D$9:$E$58,2,FALSE)=0,\"\",VLOOKUP(AS190,'Footnotes list'!$D$9:$E$58,2,FALSE) ) )","v":""},null,null,null,null,{"$f":"IF(TRIM(AX190)=\"\", \"\", IF(VLOOKUP(AX190,'Footnotes list'!$D$9:$E$58,2,FALSE)=0,\"\",VLOOKUP(AX190,'Footnotes list'!$D$9:$E$58,2,FALSE) ) )","v":""},null,null,null,null,{"$f":"IF(TRIM(BC190)=\"\", \"\", IF(VLOOKUP(BC190,'Footnotes list'!$D$9:$E$58,2,FALSE)=0,\"\",VLOOKUP(BC190,'Footnotes list'!$D$9:$E$58,2,FALSE) ) )","v":""},null,null,null,null,{"$f":"IF(TRIM(BH190)=\"\", \"\", IF(VLOOKUP(BH190,'Footnotes list'!$D$9:$E$58,2,FALSE)=0,\"\",VLOOKUP(BH190,'Footnotes list'!$D$9:$E$58,2,FALSE) ) )","v":""},null,null,null,null,{"$f":"IF(TRIM(BM190)=\"\", \"\", IF(VLOOKUP(BM190,'Footnotes list'!$D$9:$E$58,2,FALSE)=0,\"\",VLOOKUP(BM190,'Footnotes list'!$D$9:$E$58,2,FALSE) ) )","v":""},null,null,null,null,{"$f":"IF(TRIM(BR190)=\"\", \"\", IF(VLOOKUP(BR190,'Footnotes list'!$D$9:$E$58,2,FALSE)=0,\"\",VLOOKUP(BR190,'Footnotes list'!$D$9:$E$58,2,FALSE) ) )","v":""},null,null,null,null,{"$f":"IF(TRIM(BW190)=\"\", \"\", IF(VLOOKUP(BW190,'Footnotes list'!$D$9:$E$58,2,FALSE)=0,\"\",VLOOKUP(BW190,'Footnotes list'!$D$9:$E$58,2,FALSE) ) )","v":""},null,null,null,null,{"$f":"IF(TRIM(CB190)=\"\", \"\", IF(VLOOKUP(CB190,'Footnotes list'!$D$9:$E$58,2,FALSE)=0,\"\",VLOOKUP(CB190,'Footnotes list'!$D$9:$E$58,2,FALSE) ) )","v":""},null,null,null,null,{"$f":"IF(TRIM(CG190)=\"\", \"\", IF(VLOOKUP(CG190,'Footnotes list'!$D$9:$E$58,2,FALSE)=0,\"\",VLOOKUP(CG190,'Footnotes list'!$D$9:$E$58,2,FALSE) ) )","v":""},null,null,null,null,{"$f":"IF(TRIM(CL190)=\"\", \"\", IF(VLOOKUP(CL190,'Footnotes list'!$D$9:$E$58,2,FALSE)=0,\"\",VLOOKUP(CL190,'Footnotes list'!$D$9:$E$58,2,FALSE) ) )","v":""},null,null,null,null,{"$f":"IF(TRIM(CQ190)=\"\", \"\", IF(VLOOKUP(CQ190,'Footnotes list'!$D$9:$E$58,2,FALSE)=0,\"\",VLOOKUP(CQ190,'Footnotes list'!$D$9:$E$58,2,FALSE) ) )","v":""},null,null,null,null,{"$f":"IF(TRIM(CV190)=\"\", \"\", IF(VLOOKUP(CV190,'Footnotes list'!$D$9:$E$58,2,FALSE)=0,\"\",VLOOKUP(CV190,'Footnotes list'!$D$9:$E$58,2,FALSE) ) )","v":""},null,null,null,null,{"$f":"IF(TRIM(DA190)=\"\", \"\", IF(VLOOKUP(DA190,'Footnotes list'!$D$9:$E$58,2,FALSE)=0,\"\",VLOOKUP(DA190,'Footnotes list'!$D$9:$E$58,2,FALSE) ) )","v":""},null,null,null,null,{"$f":"IF(TRIM(DF190)=\"\", \"\", IF(VLOOKUP(DF190,'Footnotes list'!$D$9:$E$58,2,FALSE)=0,\"\",VLOOKUP(DF190,'Footnotes list'!$D$9:$E$58,2,FALSE) ) )","v":""},null,null,null,null,{"$f":"IF(TRIM(DK190)=\"\", \"\", IF(VLOOKUP(DK190,'Footnotes list'!$D$9:$E$58,2,FALSE)=0,\"\",VLOOKUP(DK190,'Footnotes list'!$D$9:$E$58,2,FALSE) ) )","v":""},null,null,null,null,{"$f":"IF(TRIM(DP190)=\"\", \"\", IF(VLOOKUP(DP190,'Footnotes list'!$D$9:$E$58,2,FALSE)=0,\"\",VLOOKUP(DP190,'Footnotes list'!$D$9:$E$58,2,FALSE) ) )","v":""},null,null,null,null,{"$f":"IF(TRIM(DU190)=\"\", \"\", IF(VLOOKUP(DU190,'Footnotes list'!$D$9:$E$58,2,FALSE)=0,\"\",VLOOKUP(DU190,'Footnotes list'!$D$9:$E$58,2,FALSE) ) )","v":""},null,null,null,null,{"$f":"IF(TRIM(DZ190)=\"\", \"\", IF(VLOOKUP(DZ190,'Footnotes list'!$D$9:$E$58,2,FALSE)=0,\"\",VLOOKUP(DZ190,'Footnotes list'!$D$9:$E$58,2,FALSE) ) )","v":""},null,null,null,null,{"$f":"IF(TRIM(EE190)=\"\", \"\", IF(VLOOKUP(EE190,'Footnotes list'!$D$9:$E$58,2,FALSE)=0,\"\",VLOOKUP(EE190,'Footnotes list'!$D$9:$E$58,2,FALSE) ) )","v":""},null,null,null,null,{"$f":"IF(TRIM(EJ190)=\"\", \"\", IF(VLOOKUP(EJ190,'Footnotes list'!$D$9:$E$58,2,FALSE)=0,\"\",VLOOKUP(EJ190,'Footnotes list'!$D$9:$E$58,2,FALSE) ) )","v":""},null,null,null,null,{"$f":"IF(TRIM(EO190)=\"\", \"\", IF(VLOOKUP(EO190,'Footnotes list'!$D$9:$E$58,2,FALSE)=0,\"\",VLOOKUP(EO190,'Footnotes list'!$D$9:$E$58,2,FALSE) ) )","v":""},null,null,null,null,{"$f":"IF(TRIM(ET190)=\"\", \"\", IF(VLOOKUP(ET190,'Footnotes list'!$D$9:$E$58,2,FALSE)=0,\"\",VLOOKUP(ET190,'Footnotes list'!$D$9:$E$58,2,FALSE) ) )","v":""},null,null,null,null,{"$f":"IF(TRIM(EY190)=\"\", \"\", IF(VLOOKUP(EY190,'Footnotes list'!$D$9:$E$58,2,FALSE)=0,\"\",VLOOKUP(EY190,'Footnotes list'!$D$9:$E$58,2,FALSE) ) )","v":""}]
[null,null,"I","ANC","ancillary activities",null,null,null,null,null,{"$f":"IF(TRIM(J191)=\"\", \"\", IF(VLOOKUP(J191,'Footnotes list'!$D$9:$E$58,2,FALSE)=0,\"\",VLOOKUP(J191,'Footnotes list'!$D$9:$E$58,2,FALSE) ) )","v":""},null,null,null,null,{"$f":"IF(TRIM(O191)=\"\", \"\", IF(VLOOKUP(O191,'Footnotes list'!$D$9:$E$58,2,FALSE)=0,\"\",VLOOKUP(O191,'Footnotes list'!$D$9:$E$58,2,FALSE) ) )","v":""},null,null,null,null,{"$f":"IF(TRIM(T191)=\"\", \"\", IF(VLOOKUP(T191,'Footnotes list'!$D$9:$E$58,2,FALSE)=0,\"\",VLOOKUP(T191,'Footnotes list'!$D$9:$E$58,2,FALSE) ) )","v":""},null,null,null,null,{"$f":"IF(TRIM(Y191)=\"\", \"\", IF(VLOOKUP(Y191,'Footnotes list'!$D$9:$E$58,2,FALSE)=0,\"\",VLOOKUP(Y191,'Footnotes list'!$D$9:$E$58,2,FALSE) ) )","v":""},null,null,null,null,{"$f":"IF(TRIM(AD191)=\"\", \"\", IF(VLOOKUP(AD191,'Footnotes list'!$D$9:$E$58,2,FALSE)=0,\"\",VLOOKUP(AD191,'Footnotes list'!$D$9:$E$58,2,FALSE) ) )","v":""},null,null,null,null,{"$f":"IF(TRIM(AI191)=\"\", \"\", IF(VLOOKUP(AI191,'Footnotes list'!$D$9:$E$58,2,FALSE)=0,\"\",VLOOKUP(AI191,'Footnotes list'!$D$9:$E$58,2,FALSE) ) )","v":""},null,null,null,null,{"$f":"IF(TRIM(AN191)=\"\", \"\", IF(VLOOKUP(AN191,'Footnotes list'!$D$9:$E$58,2,FALSE)=0,\"\",VLOOKUP(AN191,'Footnotes list'!$D$9:$E$58,2,FALSE) ) )","v":""},null,null,null,null,{"$f":"IF(TRIM(AS191)=\"\", \"\", IF(VLOOKUP(AS191,'Footnotes list'!$D$9:$E$58,2,FALSE)=0,\"\",VLOOKUP(AS191,'Footnotes list'!$D$9:$E$58,2,FALSE) ) )","v":""},null,null,null,null,{"$f":"IF(TRIM(AX191)=\"\", \"\", IF(VLOOKUP(AX191,'Footnotes list'!$D$9:$E$58,2,FALSE)=0,\"\",VLOOKUP(AX191,'Footnotes list'!$D$9:$E$58,2,FALSE) ) )","v":""},null,null,null,null,{"$f":"IF(TRIM(BC191)=\"\", \"\", IF(VLOOKUP(BC191,'Footnotes list'!$D$9:$E$58,2,FALSE)=0,\"\",VLOOKUP(BC191,'Footnotes list'!$D$9:$E$58,2,FALSE) ) )","v":""},null,null,null,null,{"$f":"IF(TRIM(BH191)=\"\", \"\", IF(VLOOKUP(BH191,'Footnotes list'!$D$9:$E$58,2,FALSE)=0,\"\",VLOOKUP(BH191,'Footnotes list'!$D$9:$E$58,2,FALSE) ) )","v":""},null,null,null,null,{"$f":"IF(TRIM(BM191)=\"\", \"\", IF(VLOOKUP(BM191,'Footnotes list'!$D$9:$E$58,2,FALSE)=0,\"\",VLOOKUP(BM191,'Footnotes list'!$D$9:$E$58,2,FALSE) ) )","v":""},null,null,null,null,{"$f":"IF(TRIM(BR191)=\"\", \"\", IF(VLOOKUP(BR191,'Footnotes list'!$D$9:$E$58,2,FALSE)=0,\"\",VLOOKUP(BR191,'Footnotes list'!$D$9:$E$58,2,FALSE) ) )","v":""},null,null,null,null,{"$f":"IF(TRIM(BW191)=\"\", \"\", IF(VLOOKUP(BW191,'Footnotes list'!$D$9:$E$58,2,FALSE)=0,\"\",VLOOKUP(BW191,'Footnotes list'!$D$9:$E$58,2,FALSE) ) )","v":""},null,null,null,null,{"$f":"IF(TRIM(CB191)=\"\", \"\", IF(VLOOKUP(CB191,'Footnotes list'!$D$9:$E$58,2,FALSE)=0,\"\",VLOOKUP(CB191,'Footnotes list'!$D$9:$E$58,2,FALSE) ) )","v":""},null,null,null,null,{"$f":"IF(TRIM(CG191)=\"\", \"\", IF(VLOOKUP(CG191,'Footnotes list'!$D$9:$E$58,2,FALSE)=0,\"\",VLOOKUP(CG191,'Footnotes list'!$D$9:$E$58,2,FALSE) ) )","v":""},null,null,null,null,{"$f":"IF(TRIM(CL191)=\"\", \"\", IF(VLOOKUP(CL191,'Footnotes list'!$D$9:$E$58,2,FALSE)=0,\"\",VLOOKUP(CL191,'Footnotes list'!$D$9:$E$58,2,FALSE) ) )","v":""},null,null,null,null,{"$f":"IF(TRIM(CQ191)=\"\", \"\", IF(VLOOKUP(CQ191,'Footnotes list'!$D$9:$E$58,2,FALSE)=0,\"\",VLOOKUP(CQ191,'Footnotes list'!$D$9:$E$58,2,FALSE) ) )","v":""},null,null,null,null,{"$f":"IF(TRIM(CV191)=\"\", \"\", IF(VLOOKUP(CV191,'Footnotes list'!$D$9:$E$58,2,FALSE)=0,\"\",VLOOKUP(CV191,'Footnotes list'!$D$9:$E$58,2,FALSE) ) )","v":""},null,null,null,null,{"$f":"IF(TRIM(DA191)=\"\", \"\", IF(VLOOKUP(DA191,'Footnotes list'!$D$9:$E$58,2,FALSE)=0,\"\",VLOOKUP(DA191,'Footnotes list'!$D$9:$E$58,2,FALSE) ) )","v":""},null,null,null,null,{"$f":"IF(TRIM(DF191)=\"\", \"\", IF(VLOOKUP(DF191,'Footnotes list'!$D$9:$E$58,2,FALSE)=0,\"\",VLOOKUP(DF191,'Footnotes list'!$D$9:$E$58,2,FALSE) ) )","v":""},null,null,null,null,{"$f":"IF(TRIM(DK191)=\"\", \"\", IF(VLOOKUP(DK191,'Footnotes list'!$D$9:$E$58,2,FALSE)=0,\"\",VLOOKUP(DK191,'Footnotes list'!$D$9:$E$58,2,FALSE) ) )","v":""},null,null,null,null,{"$f":"IF(TRIM(DP191)=\"\", \"\", IF(VLOOKUP(DP191,'Footnotes list'!$D$9:$E$58,2,FALSE)=0,\"\",VLOOKUP(DP191,'Footnotes list'!$D$9:$E$58,2,FALSE) ) )","v":""},null,null,null,null,{"$f":"IF(TRIM(DU191)=\"\", \"\", IF(VLOOKUP(DU191,'Footnotes list'!$D$9:$E$58,2,FALSE)=0,\"\",VLOOKUP(DU191,'Footnotes list'!$D$9:$E$58,2,FALSE) ) )","v":""},null,null,null,null,{"$f":"IF(TRIM(DZ191)=\"\", \"\", IF(VLOOKUP(DZ191,'Footnotes list'!$D$9:$E$58,2,FALSE)=0,\"\",VLOOKUP(DZ191,'Footnotes list'!$D$9:$E$58,2,FALSE) ) )","v":""},null,null,null,null,{"$f":"IF(TRIM(EE191)=\"\", \"\", IF(VLOOKUP(EE191,'Footnotes list'!$D$9:$E$58,2,FALSE)=0,\"\",VLOOKUP(EE191,'Footnotes list'!$D$9:$E$58,2,FALSE) ) )","v":""},null,null,null,null,{"$f":"IF(TRIM(EJ191)=\"\", \"\", IF(VLOOKUP(EJ191,'Footnotes list'!$D$9:$E$58,2,FALSE)=0,\"\",VLOOKUP(EJ191,'Footnotes list'!$D$9:$E$58,2,FALSE) ) )","v":""},null,null,null,null,{"$f":"IF(TRIM(EO191)=\"\", \"\", IF(VLOOKUP(EO191,'Footnotes list'!$D$9:$E$58,2,FALSE)=0,\"\",VLOOKUP(EO191,'Footnotes list'!$D$9:$E$58,2,FALSE) ) )","v":""},null,null,null,null,{"$f":"IF(TRIM(ET191)=\"\", \"\", IF(VLOOKUP(ET191,'Footnotes list'!$D$9:$E$58,2,FALSE)=0,\"\",VLOOKUP(ET191,'Footnotes list'!$D$9:$E$58,2,FALSE) ) )","v":""},null,null,null,null,{"$f":"IF(TRIM(EY191)=\"\", \"\", IF(VLOOKUP(EY191,'Footnotes list'!$D$9:$E$58,2,FALSE)=0,\"\",VLOOKUP(EY191,'Footnotes list'!$D$9:$E$58,2,FALSE) ) )","v":""}]
[null,null,"I","NMKT","non-market activities",null,null,null,null,null,{"$f":"IF(TRIM(J192)=\"\", \"\", IF(VLOOKUP(J192,'Footnotes list'!$D$9:$E$58,2,FALSE)=0,\"\",VLOOKUP(J192,'Footnotes list'!$D$9:$E$58,2,FALSE) ) )","v":""},null,null,null,null,{"$f":"IF(TRIM(O192)=\"\", \"\", IF(VLOOKUP(O192,'Footnotes list'!$D$9:$E$58,2,FALSE)=0,\"\",VLOOKUP(O192,'Footnotes list'!$D$9:$E$58,2,FALSE) ) )","v":""},null,null,null,null,{"$f":"IF(TRIM(T192)=\"\", \"\", IF(VLOOKUP(T192,'Footnotes list'!$D$9:$E$58,2,FALSE)=0,\"\",VLOOKUP(T192,'Footnotes list'!$D$9:$E$58,2,FALSE) ) )","v":""},null,null,null,null,{"$f":"IF(TRIM(Y192)=\"\", \"\", IF(VLOOKUP(Y192,'Footnotes list'!$D$9:$E$58,2,FALSE)=0,\"\",VLOOKUP(Y192,'Footnotes list'!$D$9:$E$58,2,FALSE) ) )","v":""},null,null,null,null,{"$f":"IF(TRIM(AD192)=\"\", \"\", IF(VLOOKUP(AD192,'Footnotes list'!$D$9:$E$58,2,FALSE)=0,\"\",VLOOKUP(AD192,'Footnotes list'!$D$9:$E$58,2,FALSE) ) )","v":""},null,null,null,null,{"$f":"IF(TRIM(AI192)=\"\", \"\", IF(VLOOKUP(AI192,'Footnotes list'!$D$9:$E$58,2,FALSE)=0,\"\",VLOOKUP(AI192,'Footnotes list'!$D$9:$E$58,2,FALSE) ) )","v":""},null,null,null,null,{"$f":"IF(TRIM(AN192)=\"\", \"\", IF(VLOOKUP(AN192,'Footnotes list'!$D$9:$E$58,2,FALSE)=0,\"\",VLOOKUP(AN192,'Footnotes list'!$D$9:$E$58,2,FALSE) ) )","v":""},null,null,null,null,{"$f":"IF(TRIM(AS192)=\"\", \"\", IF(VLOOKUP(AS192,'Footnotes list'!$D$9:$E$58,2,FALSE)=0,\"\",VLOOKUP(AS192,'Footnotes list'!$D$9:$E$58,2,FALSE) ) )","v":""},null,null,null,null,{"$f":"IF(TRIM(AX192)=\"\", \"\", IF(VLOOKUP(AX192,'Footnotes list'!$D$9:$E$58,2,FALSE)=0,\"\",VLOOKUP(AX192,'Footnotes list'!$D$9:$E$58,2,FALSE) ) )","v":""},null,null,null,null,{"$f":"IF(TRIM(BC192)=\"\", \"\", IF(VLOOKUP(BC192,'Footnotes list'!$D$9:$E$58,2,FALSE)=0,\"\",VLOOKUP(BC192,'Footnotes list'!$D$9:$E$58,2,FALSE) ) )","v":""},null,null,null,null,{"$f":"IF(TRIM(BH192)=\"\", \"\", IF(VLOOKUP(BH192,'Footnotes list'!$D$9:$E$58,2,FALSE)=0,\"\",VLOOKUP(BH192,'Footnotes list'!$D$9:$E$58,2,FALSE) ) )","v":""},null,null,null,null,{"$f":"IF(TRIM(BM192)=\"\", \"\", IF(VLOOKUP(BM192,'Footnotes list'!$D$9:$E$58,2,FALSE)=0,\"\",VLOOKUP(BM192,'Footnotes list'!$D$9:$E$58,2,FALSE) ) )","v":""},null,null,null,null,{"$f":"IF(TRIM(BR192)=\"\", \"\", IF(VLOOKUP(BR192,'Footnotes list'!$D$9:$E$58,2,FALSE)=0,\"\",VLOOKUP(BR192,'Footnotes list'!$D$9:$E$58,2,FALSE) ) )","v":""},null,null,null,null,{"$f":"IF(TRIM(BW192)=\"\", \"\", IF(VLOOKUP(BW192,'Footnotes list'!$D$9:$E$58,2,FALSE)=0,\"\",VLOOKUP(BW192,'Footnotes list'!$D$9:$E$58,2,FALSE) ) )","v":""},null,null,null,null,{"$f":"IF(TRIM(CB192)=\"\", \"\", IF(VLOOKUP(CB192,'Footnotes list'!$D$9:$E$58,2,FALSE)=0,\"\",VLOOKUP(CB192,'Footnotes list'!$D$9:$E$58,2,FALSE) ) )","v":""},null,null,null,null,{"$f":"IF(TRIM(CG192)=\"\", \"\", IF(VLOOKUP(CG192,'Footnotes list'!$D$9:$E$58,2,FALSE)=0,\"\",VLOOKUP(CG192,'Footnotes list'!$D$9:$E$58,2,FALSE) ) )","v":""},null,null,null,null,{"$f":"IF(TRIM(CL192)=\"\", \"\", IF(VLOOKUP(CL192,'Footnotes list'!$D$9:$E$58,2,FALSE)=0,\"\",VLOOKUP(CL192,'Footnotes list'!$D$9:$E$58,2,FALSE) ) )","v":""},null,null,null,null,{"$f":"IF(TRIM(CQ192)=\"\", \"\", IF(VLOOKUP(CQ192,'Footnotes list'!$D$9:$E$58,2,FALSE)=0,\"\",VLOOKUP(CQ192,'Footnotes list'!$D$9:$E$58,2,FALSE) ) )","v":""},null,null,null,null,{"$f":"IF(TRIM(CV192)=\"\", \"\", IF(VLOOKUP(CV192,'Footnotes list'!$D$9:$E$58,2,FALSE)=0,\"\",VLOOKUP(CV192,'Footnotes list'!$D$9:$E$58,2,FALSE) ) )","v":""},null,null,null,null,{"$f":"IF(TRIM(DA192)=\"\", \"\", IF(VLOOKUP(DA192,'Footnotes list'!$D$9:$E$58,2,FALSE)=0,\"\",VLOOKUP(DA192,'Footnotes list'!$D$9:$E$58,2,FALSE) ) )","v":""},null,null,null,null,{"$f":"IF(TRIM(DF192)=\"\", \"\", IF(VLOOKUP(DF192,'Footnotes list'!$D$9:$E$58,2,FALSE)=0,\"\",VLOOKUP(DF192,'Footnotes list'!$D$9:$E$58,2,FALSE) ) )","v":""},null,null,null,null,{"$f":"IF(TRIM(DK192)=\"\", \"\", IF(VLOOKUP(DK192,'Footnotes list'!$D$9:$E$58,2,FALSE)=0,\"\",VLOOKUP(DK192,'Footnotes list'!$D$9:$E$58,2,FALSE) ) )","v":""},null,null,null,null,{"$f":"IF(TRIM(DP192)=\"\", \"\", IF(VLOOKUP(DP192,'Footnotes list'!$D$9:$E$58,2,FALSE)=0,\"\",VLOOKUP(DP192,'Footnotes list'!$D$9:$E$58,2,FALSE) ) )","v":""},null,null,null,null,{"$f":"IF(TRIM(DU192)=\"\", \"\", IF(VLOOKUP(DU192,'Footnotes list'!$D$9:$E$58,2,FALSE)=0,\"\",VLOOKUP(DU192,'Footnotes list'!$D$9:$E$58,2,FALSE) ) )","v":""},null,null,null,null,{"$f":"IF(TRIM(DZ192)=\"\", \"\", IF(VLOOKUP(DZ192,'Footnotes list'!$D$9:$E$58,2,FALSE)=0,\"\",VLOOKUP(DZ192,'Footnotes list'!$D$9:$E$58,2,FALSE) ) )","v":""},null,null,null,null,{"$f":"IF(TRIM(EE192)=\"\", \"\", IF(VLOOKUP(EE192,'Footnotes list'!$D$9:$E$58,2,FALSE)=0,\"\",VLOOKUP(EE192,'Footnotes list'!$D$9:$E$58,2,FALSE) ) )","v":""},null,null,null,null,{"$f":"IF(TRIM(EJ192)=\"\", \"\", IF(VLOOKUP(EJ192,'Footnotes list'!$D$9:$E$58,2,FALSE)=0,\"\",VLOOKUP(EJ192,'Footnotes list'!$D$9:$E$58,2,FALSE) ) )","v":""},null,null,null,null,{"$f":"IF(TRIM(EO192)=\"\", \"\", IF(VLOOKUP(EO192,'Footnotes list'!$D$9:$E$58,2,FALSE)=0,\"\",VLOOKUP(EO192,'Footnotes list'!$D$9:$E$58,2,FALSE) ) )","v":""},null,null,null,null,{"$f":"IF(TRIM(ET192)=\"\", \"\", IF(VLOOKUP(ET192,'Footnotes list'!$D$9:$E$58,2,FALSE)=0,\"\",VLOOKUP(ET192,'Footnotes list'!$D$9:$E$58,2,FALSE) ) )","v":""},null,null,null,null,{"$f":"IF(TRIM(EY192)=\"\", \"\", IF(VLOOKUP(EY192,'Footnotes list'!$D$9:$E$58,2,FALSE)=0,\"\",VLOOKUP(EY192,'Footnotes list'!$D$9:$E$58,2,FALSE) ) )","v":""}]
[null,null,"I","OWN_USE","activities for own final use",null,null,null,null,null,{"$f":"IF(TRIM(J193)=\"\", \"\", IF(VLOOKUP(J193,'Footnotes list'!$D$9:$E$58,2,FALSE)=0,\"\",VLOOKUP(J193,'Footnotes list'!$D$9:$E$58,2,FALSE) ) )","v":""},null,null,null,null,{"$f":"IF(TRIM(O193)=\"\", \"\", IF(VLOOKUP(O193,'Footnotes list'!$D$9:$E$58,2,FALSE)=0,\"\",VLOOKUP(O193,'Footnotes list'!$D$9:$E$58,2,FALSE) ) )","v":""},null,null,null,null,{"$f":"IF(TRIM(T193)=\"\", \"\", IF(VLOOKUP(T193,'Footnotes list'!$D$9:$E$58,2,FALSE)=0,\"\",VLOOKUP(T193,'Footnotes list'!$D$9:$E$58,2,FALSE) ) )","v":""},null,null,null,null,{"$f":"IF(TRIM(Y193)=\"\", \"\", IF(VLOOKUP(Y193,'Footnotes list'!$D$9:$E$58,2,FALSE)=0,\"\",VLOOKUP(Y193,'Footnotes list'!$D$9:$E$58,2,FALSE) ) )","v":""},null,null,null,null,{"$f":"IF(TRIM(AD193)=\"\", \"\", IF(VLOOKUP(AD193,'Footnotes list'!$D$9:$E$58,2,FALSE)=0,\"\",VLOOKUP(AD193,'Footnotes list'!$D$9:$E$58,2,FALSE) ) )","v":""},null,null,null,null,{"$f":"IF(TRIM(AI193)=\"\", \"\", IF(VLOOKUP(AI193,'Footnotes list'!$D$9:$E$58,2,FALSE)=0,\"\",VLOOKUP(AI193,'Footnotes list'!$D$9:$E$58,2,FALSE) ) )","v":""},null,null,null,null,{"$f":"IF(TRIM(AN193)=\"\", \"\", IF(VLOOKUP(AN193,'Footnotes list'!$D$9:$E$58,2,FALSE)=0,\"\",VLOOKUP(AN193,'Footnotes list'!$D$9:$E$58,2,FALSE) ) )","v":""},null,null,null,null,{"$f":"IF(TRIM(AS193)=\"\", \"\", IF(VLOOKUP(AS193,'Footnotes list'!$D$9:$E$58,2,FALSE)=0,\"\",VLOOKUP(AS193,'Footnotes list'!$D$9:$E$58,2,FALSE) ) )","v":""},null,null,null,null,{"$f":"IF(TRIM(AX193)=\"\", \"\", IF(VLOOKUP(AX193,'Footnotes list'!$D$9:$E$58,2,FALSE)=0,\"\",VLOOKUP(AX193,'Footnotes list'!$D$9:$E$58,2,FALSE) ) )","v":""},null,null,null,null,{"$f":"IF(TRIM(BC193)=\"\", \"\", IF(VLOOKUP(BC193,'Footnotes list'!$D$9:$E$58,2,FALSE)=0,\"\",VLOOKUP(BC193,'Footnotes list'!$D$9:$E$58,2,FALSE) ) )","v":""},null,null,null,null,{"$f":"IF(TRIM(BH193)=\"\", \"\", IF(VLOOKUP(BH193,'Footnotes list'!$D$9:$E$58,2,FALSE)=0,\"\",VLOOKUP(BH193,'Footnotes list'!$D$9:$E$58,2,FALSE) ) )","v":""},null,null,null,null,{"$f":"IF(TRIM(BM193)=\"\", \"\", IF(VLOOKUP(BM193,'Footnotes list'!$D$9:$E$58,2,FALSE)=0,\"\",VLOOKUP(BM193,'Footnotes list'!$D$9:$E$58,2,FALSE) ) )","v":""},null,null,null,null,{"$f":"IF(TRIM(BR193)=\"\", \"\", IF(VLOOKUP(BR193,'Footnotes list'!$D$9:$E$58,2,FALSE)=0,\"\",VLOOKUP(BR193,'Footnotes list'!$D$9:$E$58,2,FALSE) ) )","v":""},null,null,null,null,{"$f":"IF(TRIM(BW193)=\"\", \"\", IF(VLOOKUP(BW193,'Footnotes list'!$D$9:$E$58,2,FALSE)=0,\"\",VLOOKUP(BW193,'Footnotes list'!$D$9:$E$58,2,FALSE) ) )","v":""},null,null,null,null,{"$f":"IF(TRIM(CB193)=\"\", \"\", IF(VLOOKUP(CB193,'Footnotes list'!$D$9:$E$58,2,FALSE)=0,\"\",VLOOKUP(CB193,'Footnotes list'!$D$9:$E$58,2,FALSE) ) )","v":""},null,null,null,null,{"$f":"IF(TRIM(CG193)=\"\", \"\", IF(VLOOKUP(CG193,'Footnotes list'!$D$9:$E$58,2,FALSE)=0,\"\",VLOOKUP(CG193,'Footnotes list'!$D$9:$E$58,2,FALSE) ) )","v":""},null,null,null,null,{"$f":"IF(TRIM(CL193)=\"\", \"\", IF(VLOOKUP(CL193,'Footnotes list'!$D$9:$E$58,2,FALSE)=0,\"\",VLOOKUP(CL193,'Footnotes list'!$D$9:$E$58,2,FALSE) ) )","v":""},null,null,null,null,{"$f":"IF(TRIM(CQ193)=\"\", \"\", IF(VLOOKUP(CQ193,'Footnotes list'!$D$9:$E$58,2,FALSE)=0,\"\",VLOOKUP(CQ193,'Footnotes list'!$D$9:$E$58,2,FALSE) ) )","v":""},null,null,null,null,{"$f":"IF(TRIM(CV193)=\"\", \"\", IF(VLOOKUP(CV193,'Footnotes list'!$D$9:$E$58,2,FALSE)=0,\"\",VLOOKUP(CV193,'Footnotes list'!$D$9:$E$58,2,FALSE) ) )","v":""},null,null,null,null,{"$f":"IF(TRIM(DA193)=\"\", \"\", IF(VLOOKUP(DA193,'Footnotes list'!$D$9:$E$58,2,FALSE)=0,\"\",VLOOKUP(DA193,'Footnotes list'!$D$9:$E$58,2,FALSE) ) )","v":""},null,null,null,null,{"$f":"IF(TRIM(DF193)=\"\", \"\", IF(VLOOKUP(DF193,'Footnotes list'!$D$9:$E$58,2,FALSE)=0,\"\",VLOOKUP(DF193,'Footnotes list'!$D$9:$E$58,2,FALSE) ) )","v":""},null,null,null,null,{"$f":"IF(TRIM(DK193)=\"\", \"\", IF(VLOOKUP(DK193,'Footnotes list'!$D$9:$E$58,2,FALSE)=0,\"\",VLOOKUP(DK193,'Footnotes list'!$D$9:$E$58,2,FALSE) ) )","v":""},null,null,null,null,{"$f":"IF(TRIM(DP193)=\"\", \"\", IF(VLOOKUP(DP193,'Footnotes list'!$D$9:$E$58,2,FALSE)=0,\"\",VLOOKUP(DP193,'Footnotes list'!$D$9:$E$58,2,FALSE) ) )","v":""},null,null,null,null,{"$f":"IF(TRIM(DU193)=\"\", \"\", IF(VLOOKUP(DU193,'Footnotes list'!$D$9:$E$58,2,FALSE)=0,\"\",VLOOKUP(DU193,'Footnotes list'!$D$9:$E$58,2,FALSE) ) )","v":""},null,null,null,null,{"$f":"IF(TRIM(DZ193)=\"\", \"\", IF(VLOOKUP(DZ193,'Footnotes list'!$D$9:$E$58,2,FALSE)=0,\"\",VLOOKUP(DZ193,'Footnotes list'!$D$9:$E$58,2,FALSE) ) )","v":""},null,null,null,null,{"$f":"IF(TRIM(EE193)=\"\", \"\", IF(VLOOKUP(EE193,'Footnotes list'!$D$9:$E$58,2,FALSE)=0,\"\",VLOOKUP(EE193,'Footnotes list'!$D$9:$E$58,2,FALSE) ) )","v":""},null,null,null,null,{"$f":"IF(TRIM(EJ193)=\"\", \"\", IF(VLOOKUP(EJ193,'Footnotes list'!$D$9:$E$58,2,FALSE)=0,\"\",VLOOKUP(EJ193,'Footnotes list'!$D$9:$E$58,2,FALSE) ) )","v":""},null,null,null,null,{"$f":"IF(TRIM(EO193)=\"\", \"\", IF(VLOOKUP(EO193,'Footnotes list'!$D$9:$E$58,2,FALSE)=0,\"\",VLOOKUP(EO193,'Footnotes list'!$D$9:$E$58,2,FALSE) ) )","v":""},null,null,null,null,{"$f":"IF(TRIM(ET193)=\"\", \"\", IF(VLOOKUP(ET193,'Footnotes list'!$D$9:$E$58,2,FALSE)=0,\"\",VLOOKUP(ET193,'Footnotes list'!$D$9:$E$58,2,FALSE) ) )","v":""},null,null,null,null,{"$f":"IF(TRIM(EY193)=\"\", \"\", IF(VLOOKUP(EY193,'Footnotes list'!$D$9:$E$58,2,FALSE)=0,\"\",VLOOKUP(EY193,'Footnotes list'!$D$9:$E$58,2,FALSE) ) )","v":""}]
[null,null,"I","MKT","market activities, including:",null,null,null,null,null,{"$f":"IF(TRIM(J194)=\"\", \"\", IF(VLOOKUP(J194,'Footnotes list'!$D$9:$E$58,2,FALSE)=0,\"\",VLOOKUP(J194,'Footnotes list'!$D$9:$E$58,2,FALSE) ) )","v":""},null,null,null,null,{"$f":"IF(TRIM(O194)=\"\", \"\", IF(VLOOKUP(O194,'Footnotes list'!$D$9:$E$58,2,FALSE)=0,\"\",VLOOKUP(O194,'Footnotes list'!$D$9:$E$58,2,FALSE) ) )","v":""},null,null,null,null,{"$f":"IF(TRIM(T194)=\"\", \"\", IF(VLOOKUP(T194,'Footnotes list'!$D$9:$E$58,2,FALSE)=0,\"\",VLOOKUP(T194,'Footnotes list'!$D$9:$E$58,2,FALSE) ) )","v":""},null,null,null,null,{"$f":"IF(TRIM(Y194)=\"\", \"\", IF(VLOOKUP(Y194,'Footnotes list'!$D$9:$E$58,2,FALSE)=0,\"\",VLOOKUP(Y194,'Footnotes list'!$D$9:$E$58,2,FALSE) ) )","v":""},null,null,null,null,{"$f":"IF(TRIM(AD194)=\"\", \"\", IF(VLOOKUP(AD194,'Footnotes list'!$D$9:$E$58,2,FALSE)=0,\"\",VLOOKUP(AD194,'Footnotes list'!$D$9:$E$58,2,FALSE) ) )","v":""},null,null,null,null,{"$f":"IF(TRIM(AI194)=\"\", \"\", IF(VLOOKUP(AI194,'Footnotes list'!$D$9:$E$58,2,FALSE)=0,\"\",VLOOKUP(AI194,'Footnotes list'!$D$9:$E$58,2,FALSE) ) )","v":""},null,null,null,null,{"$f":"IF(TRIM(AN194)=\"\", \"\", IF(VLOOKUP(AN194,'Footnotes list'!$D$9:$E$58,2,FALSE)=0,\"\",VLOOKUP(AN194,'Footnotes list'!$D$9:$E$58,2,FALSE) ) )","v":""},null,null,null,null,{"$f":"IF(TRIM(AS194)=\"\", \"\", IF(VLOOKUP(AS194,'Footnotes list'!$D$9:$E$58,2,FALSE)=0,\"\",VLOOKUP(AS194,'Footnotes list'!$D$9:$E$58,2,FALSE) ) )","v":""},null,null,null,null,{"$f":"IF(TRIM(AX194)=\"\", \"\", IF(VLOOKUP(AX194,'Footnotes list'!$D$9:$E$58,2,FALSE)=0,\"\",VLOOKUP(AX194,'Footnotes list'!$D$9:$E$58,2,FALSE) ) )","v":""},null,null,null,null,{"$f":"IF(TRIM(BC194)=\"\", \"\", IF(VLOOKUP(BC194,'Footnotes list'!$D$9:$E$58,2,FALSE)=0,\"\",VLOOKUP(BC194,'Footnotes list'!$D$9:$E$58,2,FALSE) ) )","v":""},null,null,null,null,{"$f":"IF(TRIM(BH194)=\"\", \"\", IF(VLOOKUP(BH194,'Footnotes list'!$D$9:$E$58,2,FALSE)=0,\"\",VLOOKUP(BH194,'Footnotes list'!$D$9:$E$58,2,FALSE) ) )","v":""},null,null,null,null,{"$f":"IF(TRIM(BM194)=\"\", \"\", IF(VLOOKUP(BM194,'Footnotes list'!$D$9:$E$58,2,FALSE)=0,\"\",VLOOKUP(BM194,'Footnotes list'!$D$9:$E$58,2,FALSE) ) )","v":""},null,null,null,null,{"$f":"IF(TRIM(BR194)=\"\", \"\", IF(VLOOKUP(BR194,'Footnotes list'!$D$9:$E$58,2,FALSE)=0,\"\",VLOOKUP(BR194,'Footnotes list'!$D$9:$E$58,2,FALSE) ) )","v":""},null,null,null,null,{"$f":"IF(TRIM(BW194)=\"\", \"\", IF(VLOOKUP(BW194,'Footnotes list'!$D$9:$E$58,2,FALSE)=0,\"\",VLOOKUP(BW194,'Footnotes list'!$D$9:$E$58,2,FALSE) ) )","v":""},null,null,null,null,{"$f":"IF(TRIM(CB194)=\"\", \"\", IF(VLOOKUP(CB194,'Footnotes list'!$D$9:$E$58,2,FALSE)=0,\"\",VLOOKUP(CB194,'Footnotes list'!$D$9:$E$58,2,FALSE) ) )","v":""},null,null,null,null,{"$f":"IF(TRIM(CG194)=\"\", \"\", IF(VLOOKUP(CG194,'Footnotes list'!$D$9:$E$58,2,FALSE)=0,\"\",VLOOKUP(CG194,'Footnotes list'!$D$9:$E$58,2,FALSE) ) )","v":""},null,null,null,null,{"$f":"IF(TRIM(CL194)=\"\", \"\", IF(VLOOKUP(CL194,'Footnotes list'!$D$9:$E$58,2,FALSE)=0,\"\",VLOOKUP(CL194,'Footnotes list'!$D$9:$E$58,2,FALSE) ) )","v":""},null,null,null,null,{"$f":"IF(TRIM(CQ194)=\"\", \"\", IF(VLOOKUP(CQ194,'Footnotes list'!$D$9:$E$58,2,FALSE)=0,\"\",VLOOKUP(CQ194,'Footnotes list'!$D$9:$E$58,2,FALSE) ) )","v":""},null,null,null,null,{"$f":"IF(TRIM(CV194)=\"\", \"\", IF(VLOOKUP(CV194,'Footnotes list'!$D$9:$E$58,2,FALSE)=0,\"\",VLOOKUP(CV194,'Footnotes list'!$D$9:$E$58,2,FALSE) ) )","v":""},null,null,null,null,{"$f":"IF(TRIM(DA194)=\"\", \"\", IF(VLOOKUP(DA194,'Footnotes list'!$D$9:$E$58,2,FALSE)=0,\"\",VLOOKUP(DA194,'Footnotes list'!$D$9:$E$58,2,FALSE) ) )","v":""},null,null,null,null,{"$f":"IF(TRIM(DF194)=\"\", \"\", IF(VLOOKUP(DF194,'Footnotes list'!$D$9:$E$58,2,FALSE)=0,\"\",VLOOKUP(DF194,'Footnotes list'!$D$9:$E$58,2,FALSE) ) )","v":""},null,null,null,null,{"$f":"IF(TRIM(DK194)=\"\", \"\", IF(VLOOKUP(DK194,'Footnotes list'!$D$9:$E$58,2,FALSE)=0,\"\",VLOOKUP(DK194,'Footnotes list'!$D$9:$E$58,2,FALSE) ) )","v":""},null,null,null,null,{"$f":"IF(TRIM(DP194)=\"\", \"\", IF(VLOOKUP(DP194,'Footnotes list'!$D$9:$E$58,2,FALSE)=0,\"\",VLOOKUP(DP194,'Footnotes list'!$D$9:$E$58,2,FALSE) ) )","v":""},null,null,null,null,{"$f":"IF(TRIM(DU194)=\"\", \"\", IF(VLOOKUP(DU194,'Footnotes list'!$D$9:$E$58,2,FALSE)=0,\"\",VLOOKUP(DU194,'Footnotes list'!$D$9:$E$58,2,FALSE) ) )","v":""},null,null,null,null,{"$f":"IF(TRIM(DZ194)=\"\", \"\", IF(VLOOKUP(DZ194,'Footnotes list'!$D$9:$E$58,2,FALSE)=0,\"\",VLOOKUP(DZ194,'Footnotes list'!$D$9:$E$58,2,FALSE) ) )","v":""},null,null,null,null,{"$f":"IF(TRIM(EE194)=\"\", \"\", IF(VLOOKUP(EE194,'Footnotes list'!$D$9:$E$58,2,FALSE)=0,\"\",VLOOKUP(EE194,'Footnotes list'!$D$9:$E$58,2,FALSE) ) )","v":""},null,null,null,null,{"$f":"IF(TRIM(EJ194)=\"\", \"\", IF(VLOOKUP(EJ194,'Footnotes list'!$D$9:$E$58,2,FALSE)=0,\"\",VLOOKUP(EJ194,'Footnotes list'!$D$9:$E$58,2,FALSE) ) )","v":""},null,null,null,null,{"$f":"IF(TRIM(EO194)=\"\", \"\", IF(VLOOKUP(EO194,'Footnotes list'!$D$9:$E$58,2,FALSE)=0,\"\",VLOOKUP(EO194,'Footnotes list'!$D$9:$E$58,2,FALSE) ) )","v":""},null,null,null,null,{"$f":"IF(TRIM(ET194)=\"\", \"\", IF(VLOOKUP(ET194,'Footnotes list'!$D$9:$E$58,2,FALSE)=0,\"\",VLOOKUP(ET194,'Footnotes list'!$D$9:$E$58,2,FALSE) ) )","v":""},null,null,null,null,{"$f":"IF(TRIM(EY194)=\"\", \"\", IF(VLOOKUP(EY194,'Footnotes list'!$D$9:$E$58,2,FALSE)=0,\"\",VLOOKUP(EY194,'Footnotes list'!$D$9:$E$58,2,FALSE) ) )","v":""}]
[null,null,"I","ES_CS","environmental specific services",null,null,null,null,null,{"$f":"IF(TRIM(J195)=\"\", \"\", IF(VLOOKUP(J195,'Footnotes list'!$D$9:$E$58,2,FALSE)=0,\"\",VLOOKUP(J195,'Footnotes list'!$D$9:$E$58,2,FALSE) ) )","v":""},null,null,null,null,{"$f":"IF(TRIM(O195)=\"\", \"\", IF(VLOOKUP(O195,'Footnotes list'!$D$9:$E$58,2,FALSE)=0,\"\",VLOOKUP(O195,'Footnotes list'!$D$9:$E$58,2,FALSE) ) )","v":""},null,null,null,null,{"$f":"IF(TRIM(T195)=\"\", \"\", IF(VLOOKUP(T195,'Footnotes list'!$D$9:$E$58,2,FALSE)=0,\"\",VLOOKUP(T195,'Footnotes list'!$D$9:$E$58,2,FALSE) ) )","v":""},null,null,null,null,{"$f":"IF(TRIM(Y195)=\"\", \"\", IF(VLOOKUP(Y195,'Footnotes list'!$D$9:$E$58,2,FALSE)=0,\"\",VLOOKUP(Y195,'Footnotes list'!$D$9:$E$58,2,FALSE) ) )","v":""},null,null,null,null,{"$f":"IF(TRIM(AD195)=\"\", \"\", IF(VLOOKUP(AD195,'Footnotes list'!$D$9:$E$58,2,FALSE)=0,\"\",VLOOKUP(AD195,'Footnotes list'!$D$9:$E$58,2,FALSE) ) )","v":""},null,null,null,null,{"$f":"IF(TRIM(AI195)=\"\", \"\", IF(VLOOKUP(AI195,'Footnotes list'!$D$9:$E$58,2,FALSE)=0,\"\",VLOOKUP(AI195,'Footnotes list'!$D$9:$E$58,2,FALSE) ) )","v":""},null,null,null,null,{"$f":"IF(TRIM(AN195)=\"\", \"\", IF(VLOOKUP(AN195,'Footnotes list'!$D$9:$E$58,2,FALSE)=0,\"\",VLOOKUP(AN195,'Footnotes list'!$D$9:$E$58,2,FALSE) ) )","v":""},null,null,null,null,{"$f":"IF(TRIM(AS195)=\"\", \"\", IF(VLOOKUP(AS195,'Footnotes list'!$D$9:$E$58,2,FALSE)=0,\"\",VLOOKUP(AS195,'Footnotes list'!$D$9:$E$58,2,FALSE) ) )","v":""},null,null,null,null,{"$f":"IF(TRIM(AX195)=\"\", \"\", IF(VLOOKUP(AX195,'Footnotes list'!$D$9:$E$58,2,FALSE)=0,\"\",VLOOKUP(AX195,'Footnotes list'!$D$9:$E$58,2,FALSE) ) )","v":""},null,null,null,null,{"$f":"IF(TRIM(BC195)=\"\", \"\", IF(VLOOKUP(BC195,'Footnotes list'!$D$9:$E$58,2,FALSE)=0,\"\",VLOOKUP(BC195,'Footnotes list'!$D$9:$E$58,2,FALSE) ) )","v":""},null,null,null,null,{"$f":"IF(TRIM(BH195)=\"\", \"\", IF(VLOOKUP(BH195,'Footnotes list'!$D$9:$E$58,2,FALSE)=0,\"\",VLOOKUP(BH195,'Footnotes list'!$D$9:$E$58,2,FALSE) ) )","v":""},null,null,null,null,{"$f":"IF(TRIM(BM195)=\"\", \"\", IF(VLOOKUP(BM195,'Footnotes list'!$D$9:$E$58,2,FALSE)=0,\"\",VLOOKUP(BM195,'Footnotes list'!$D$9:$E$58,2,FALSE) ) )","v":""},null,null,null,null,{"$f":"IF(TRIM(BR195)=\"\", \"\", IF(VLOOKUP(BR195,'Footnotes list'!$D$9:$E$58,2,FALSE)=0,\"\",VLOOKUP(BR195,'Footnotes list'!$D$9:$E$58,2,FALSE) ) )","v":""},null,null,null,null,{"$f":"IF(TRIM(BW195)=\"\", \"\", IF(VLOOKUP(BW195,'Footnotes list'!$D$9:$E$58,2,FALSE)=0,\"\",VLOOKUP(BW195,'Footnotes list'!$D$9:$E$58,2,FALSE) ) )","v":""},null,null,null,null,{"$f":"IF(TRIM(CB195)=\"\", \"\", IF(VLOOKUP(CB195,'Footnotes list'!$D$9:$E$58,2,FALSE)=0,\"\",VLOOKUP(CB195,'Footnotes list'!$D$9:$E$58,2,FALSE) ) )","v":""},null,null,null,null,{"$f":"IF(TRIM(CG195)=\"\", \"\", IF(VLOOKUP(CG195,'Footnotes list'!$D$9:$E$58,2,FALSE)=0,\"\",VLOOKUP(CG195,'Footnotes list'!$D$9:$E$58,2,FALSE) ) )","v":""},null,null,null,null,{"$f":"IF(TRIM(CL195)=\"\", \"\", IF(VLOOKUP(CL195,'Footnotes list'!$D$9:$E$58,2,FALSE)=0,\"\",VLOOKUP(CL195,'Footnotes list'!$D$9:$E$58,2,FALSE) ) )","v":""},null,null,null,null,{"$f":"IF(TRIM(CQ195)=\"\", \"\", IF(VLOOKUP(CQ195,'Footnotes list'!$D$9:$E$58,2,FALSE)=0,\"\",VLOOKUP(CQ195,'Footnotes list'!$D$9:$E$58,2,FALSE) ) )","v":""},null,null,null,null,{"$f":"IF(TRIM(CV195)=\"\", \"\", IF(VLOOKUP(CV195,'Footnotes list'!$D$9:$E$58,2,FALSE)=0,\"\",VLOOKUP(CV195,'Footnotes list'!$D$9:$E$58,2,FALSE) ) )","v":""},null,null,null,null,{"$f":"IF(TRIM(DA195)=\"\", \"\", IF(VLOOKUP(DA195,'Footnotes list'!$D$9:$E$58,2,FALSE)=0,\"\",VLOOKUP(DA195,'Footnotes list'!$D$9:$E$58,2,FALSE) ) )","v":""},null,null,null,null,{"$f":"IF(TRIM(DF195)=\"\", \"\", IF(VLOOKUP(DF195,'Footnotes list'!$D$9:$E$58,2,FALSE)=0,\"\",VLOOKUP(DF195,'Footnotes list'!$D$9:$E$58,2,FALSE) ) )","v":""},null,null,null,null,{"$f":"IF(TRIM(DK195)=\"\", \"\", IF(VLOOKUP(DK195,'Footnotes list'!$D$9:$E$58,2,FALSE)=0,\"\",VLOOKUP(DK195,'Footnotes list'!$D$9:$E$58,2,FALSE) ) )","v":""},null,null,null,null,{"$f":"IF(TRIM(DP195)=\"\", \"\", IF(VLOOKUP(DP195,'Footnotes list'!$D$9:$E$58,2,FALSE)=0,\"\",VLOOKUP(DP195,'Footnotes list'!$D$9:$E$58,2,FALSE) ) )","v":""},null,null,null,null,{"$f":"IF(TRIM(DU195)=\"\", \"\", IF(VLOOKUP(DU195,'Footnotes list'!$D$9:$E$58,2,FALSE)=0,\"\",VLOOKUP(DU195,'Footnotes list'!$D$9:$E$58,2,FALSE) ) )","v":""},null,null,null,null,{"$f":"IF(TRIM(DZ195)=\"\", \"\", IF(VLOOKUP(DZ195,'Footnotes list'!$D$9:$E$58,2,FALSE)=0,\"\",VLOOKUP(DZ195,'Footnotes list'!$D$9:$E$58,2,FALSE) ) )","v":""},null,null,null,null,{"$f":"IF(TRIM(EE195)=\"\", \"\", IF(VLOOKUP(EE195,'Footnotes list'!$D$9:$E$58,2,FALSE)=0,\"\",VLOOKUP(EE195,'Footnotes list'!$D$9:$E$58,2,FALSE) ) )","v":""},null,null,null,null,{"$f":"IF(TRIM(EJ195)=\"\", \"\", IF(VLOOKUP(EJ195,'Footnotes list'!$D$9:$E$58,2,FALSE)=0,\"\",VLOOKUP(EJ195,'Footnotes list'!$D$9:$E$58,2,FALSE) ) )","v":""},null,null,null,null,{"$f":"IF(TRIM(EO195)=\"\", \"\", IF(VLOOKUP(EO195,'Footnotes list'!$D$9:$E$58,2,FALSE)=0,\"\",VLOOKUP(EO195,'Footnotes list'!$D$9:$E$58,2,FALSE) ) )","v":""},null,null,null,null,{"$f":"IF(TRIM(ET195)=\"\", \"\", IF(VLOOKUP(ET195,'Footnotes list'!$D$9:$E$58,2,FALSE)=0,\"\",VLOOKUP(ET195,'Footnotes list'!$D$9:$E$58,2,FALSE) ) )","v":""},null,null,null,null,{"$f":"IF(TRIM(EY195)=\"\", \"\", IF(VLOOKUP(EY195,'Footnotes list'!$D$9:$E$58,2,FALSE)=0,\"\",VLOOKUP(EY195,'Footnotes list'!$D$9:$E$58,2,FALSE) ) )","v":""}]
[null,null,"I","C_REP","cleaner and resource efficient products",null,null,null,null,null,{"$f":"IF(TRIM(J196)=\"\", \"\", IF(VLOOKUP(J196,'Footnotes list'!$D$9:$E$58,2,FALSE)=0,\"\",VLOOKUP(J196,'Footnotes list'!$D$9:$E$58,2,FALSE) ) )","v":""},null,null,null,null,{"$f":"IF(TRIM(O196)=\"\", \"\", IF(VLOOKUP(O196,'Footnotes list'!$D$9:$E$58,2,FALSE)=0,\"\",VLOOKUP(O196,'Footnotes list'!$D$9:$E$58,2,FALSE) ) )","v":""},null,null,null,null,{"$f":"IF(TRIM(T196)=\"\", \"\", IF(VLOOKUP(T196,'Footnotes list'!$D$9:$E$58,2,FALSE)=0,\"\",VLOOKUP(T196,'Footnotes list'!$D$9:$E$58,2,FALSE) ) )","v":""},null,null,null,null,{"$f":"IF(TRIM(Y196)=\"\", \"\", IF(VLOOKUP(Y196,'Footnotes list'!$D$9:$E$58,2,FALSE)=0,\"\",VLOOKUP(Y196,'Footnotes list'!$D$9:$E$58,2,FALSE) ) )","v":""},null,null,null,null,{"$f":"IF(TRIM(AD196)=\"\", \"\", IF(VLOOKUP(AD196,'Footnotes list'!$D$9:$E$58,2,FALSE)=0,\"\",VLOOKUP(AD196,'Footnotes list'!$D$9:$E$58,2,FALSE) ) )","v":""},null,null,null,null,{"$f":"IF(TRIM(AI196)=\"\", \"\", IF(VLOOKUP(AI196,'Footnotes list'!$D$9:$E$58,2,FALSE)=0,\"\",VLOOKUP(AI196,'Footnotes list'!$D$9:$E$58,2,FALSE) ) )","v":""},null,null,null,null,{"$f":"IF(TRIM(AN196)=\"\", \"\", IF(VLOOKUP(AN196,'Footnotes list'!$D$9:$E$58,2,FALSE)=0,\"\",VLOOKUP(AN196,'Footnotes list'!$D$9:$E$58,2,FALSE) ) )","v":""},null,null,null,null,{"$f":"IF(TRIM(AS196)=\"\", \"\", IF(VLOOKUP(AS196,'Footnotes list'!$D$9:$E$58,2,FALSE)=0,\"\",VLOOKUP(AS196,'Footnotes list'!$D$9:$E$58,2,FALSE) ) )","v":""},null,null,null,null,{"$f":"IF(TRIM(AX196)=\"\", \"\", IF(VLOOKUP(AX196,'Footnotes list'!$D$9:$E$58,2,FALSE)=0,\"\",VLOOKUP(AX196,'Footnotes list'!$D$9:$E$58,2,FALSE) ) )","v":""},null,null,null,null,{"$f":"IF(TRIM(BC196)=\"\", \"\", IF(VLOOKUP(BC196,'Footnotes list'!$D$9:$E$58,2,FALSE)=0,\"\",VLOOKUP(BC196,'Footnotes list'!$D$9:$E$58,2,FALSE) ) )","v":""},null,null,null,null,{"$f":"IF(TRIM(BH196)=\"\", \"\", IF(VLOOKUP(BH196,'Footnotes list'!$D$9:$E$58,2,FALSE)=0,\"\",VLOOKUP(BH196,'Footnotes list'!$D$9:$E$58,2,FALSE) ) )","v":""},null,null,null,null,{"$f":"IF(TRIM(BM196)=\"\", \"\", IF(VLOOKUP(BM196,'Footnotes list'!$D$9:$E$58,2,FALSE)=0,\"\",VLOOKUP(BM196,'Footnotes list'!$D$9:$E$58,2,FALSE) ) )","v":""},null,null,null,null,{"$f":"IF(TRIM(BR196)=\"\", \"\", IF(VLOOKUP(BR196,'Footnotes list'!$D$9:$E$58,2,FALSE)=0,\"\",VLOOKUP(BR196,'Footnotes list'!$D$9:$E$58,2,FALSE) ) )","v":""},null,null,null,null,{"$f":"IF(TRIM(BW196)=\"\", \"\", IF(VLOOKUP(BW196,'Footnotes list'!$D$9:$E$58,2,FALSE)=0,\"\",VLOOKUP(BW196,'Footnotes list'!$D$9:$E$58,2,FALSE) ) )","v":""},null,null,null,null,{"$f":"IF(TRIM(CB196)=\"\", \"\", IF(VLOOKUP(CB196,'Footnotes list'!$D$9:$E$58,2,FALSE)=0,\"\",VLOOKUP(CB196,'Footnotes list'!$D$9:$E$58,2,FALSE) ) )","v":""},null,null,null,null,{"$f":"IF(TRIM(CG196)=\"\", \"\", IF(VLOOKUP(CG196,'Footnotes list'!$D$9:$E$58,2,FALSE)=0,\"\",VLOOKUP(CG196,'Footnotes list'!$D$9:$E$58,2,FALSE) ) )","v":""},null,null,null,null,{"$f":"IF(TRIM(CL196)=\"\", \"\", IF(VLOOKUP(CL196,'Footnotes list'!$D$9:$E$58,2,FALSE)=0,\"\",VLOOKUP(CL196,'Footnotes list'!$D$9:$E$58,2,FALSE) ) )","v":""},null,null,null,null,{"$f":"IF(TRIM(CQ196)=\"\", \"\", IF(VLOOKUP(CQ196,'Footnotes list'!$D$9:$E$58,2,FALSE)=0,\"\",VLOOKUP(CQ196,'Footnotes list'!$D$9:$E$58,2,FALSE) ) )","v":""},null,null,null,null,{"$f":"IF(TRIM(CV196)=\"\", \"\", IF(VLOOKUP(CV196,'Footnotes list'!$D$9:$E$58,2,FALSE)=0,\"\",VLOOKUP(CV196,'Footnotes list'!$D$9:$E$58,2,FALSE) ) )","v":""},null,null,null,null,{"$f":"IF(TRIM(DA196)=\"\", \"\", IF(VLOOKUP(DA196,'Footnotes list'!$D$9:$E$58,2,FALSE)=0,\"\",VLOOKUP(DA196,'Footnotes list'!$D$9:$E$58,2,FALSE) ) )","v":""},null,null,null,null,{"$f":"IF(TRIM(DF196)=\"\", \"\", IF(VLOOKUP(DF196,'Footnotes list'!$D$9:$E$58,2,FALSE)=0,\"\",VLOOKUP(DF196,'Footnotes list'!$D$9:$E$58,2,FALSE) ) )","v":""},null,null,null,null,{"$f":"IF(TRIM(DK196)=\"\", \"\", IF(VLOOKUP(DK196,'Footnotes list'!$D$9:$E$58,2,FALSE)=0,\"\",VLOOKUP(DK196,'Footnotes list'!$D$9:$E$58,2,FALSE) ) )","v":""},null,null,null,null,{"$f":"IF(TRIM(DP196)=\"\", \"\", IF(VLOOKUP(DP196,'Footnotes list'!$D$9:$E$58,2,FALSE)=0,\"\",VLOOKUP(DP196,'Footnotes list'!$D$9:$E$58,2,FALSE) ) )","v":""},null,null,null,null,{"$f":"IF(TRIM(DU196)=\"\", \"\", IF(VLOOKUP(DU196,'Footnotes list'!$D$9:$E$58,2,FALSE)=0,\"\",VLOOKUP(DU196,'Footnotes list'!$D$9:$E$58,2,FALSE) ) )","v":""},null,null,null,null,{"$f":"IF(TRIM(DZ196)=\"\", \"\", IF(VLOOKUP(DZ196,'Footnotes list'!$D$9:$E$58,2,FALSE)=0,\"\",VLOOKUP(DZ196,'Footnotes list'!$D$9:$E$58,2,FALSE) ) )","v":""},null,null,null,null,{"$f":"IF(TRIM(EE196)=\"\", \"\", IF(VLOOKUP(EE196,'Footnotes list'!$D$9:$E$58,2,FALSE)=0,\"\",VLOOKUP(EE196,'Footnotes list'!$D$9:$E$58,2,FALSE) ) )","v":""},null,null,null,null,{"$f":"IF(TRIM(EJ196)=\"\", \"\", IF(VLOOKUP(EJ196,'Footnotes list'!$D$9:$E$58,2,FALSE)=0,\"\",VLOOKUP(EJ196,'Footnotes list'!$D$9:$E$58,2,FALSE) ) )","v":""},null,null,null,null,{"$f":"IF(TRIM(EO196)=\"\", \"\", IF(VLOOKUP(EO196,'Footnotes list'!$D$9:$E$58,2,FALSE)=0,\"\",VLOOKUP(EO196,'Footnotes list'!$D$9:$E$58,2,FALSE) ) )","v":""},null,null,null,null,{"$f":"IF(TRIM(ET196)=\"\", \"\", IF(VLOOKUP(ET196,'Footnotes list'!$D$9:$E$58,2,FALSE)=0,\"\",VLOOKUP(ET196,'Footnotes list'!$D$9:$E$58,2,FALSE) ) )","v":""},null,null,null,null,{"$f":"IF(TRIM(EY196)=\"\", \"\", IF(VLOOKUP(EY196,'Footnotes list'!$D$9:$E$58,2,FALSE)=0,\"\",VLOOKUP(EY196,'Footnotes list'!$D$9:$E$58,2,FALSE) ) )","v":""}]
[null,null,"J","TOT_EGSS","Total J - Information and communication, of which:",null,null,null,null,null,{"$f":"IF(TRIM(J197)=\"\", \"\", IF(VLOOKUP(J197,'Footnotes list'!$D$9:$E$58,2,FALSE)=0,\"\",VLOOKUP(J197,'Footnotes list'!$D$9:$E$58,2,FALSE) ) )","v":""},null,null,null,null,{"$f":"IF(TRIM(O197)=\"\", \"\", IF(VLOOKUP(O197,'Footnotes list'!$D$9:$E$58,2,FALSE)=0,\"\",VLOOKUP(O197,'Footnotes list'!$D$9:$E$58,2,FALSE) ) )","v":""},null,null,null,null,{"$f":"IF(TRIM(T197)=\"\", \"\", IF(VLOOKUP(T197,'Footnotes list'!$D$9:$E$58,2,FALSE)=0,\"\",VLOOKUP(T197,'Footnotes list'!$D$9:$E$58,2,FALSE) ) )","v":""},null,null,null,null,{"$f":"IF(TRIM(Y197)=\"\", \"\", IF(VLOOKUP(Y197,'Footnotes list'!$D$9:$E$58,2,FALSE)=0,\"\",VLOOKUP(Y197,'Footnotes list'!$D$9:$E$58,2,FALSE) ) )","v":""},null,null,null,null,{"$f":"IF(TRIM(AD197)=\"\", \"\", IF(VLOOKUP(AD197,'Footnotes list'!$D$9:$E$58,2,FALSE)=0,\"\",VLOOKUP(AD197,'Footnotes list'!$D$9:$E$58,2,FALSE) ) )","v":""},null,null,null,null,{"$f":"IF(TRIM(AI197)=\"\", \"\", IF(VLOOKUP(AI197,'Footnotes list'!$D$9:$E$58,2,FALSE)=0,\"\",VLOOKUP(AI197,'Footnotes list'!$D$9:$E$58,2,FALSE) ) )","v":""},null,null,null,null,{"$f":"IF(TRIM(AN197)=\"\", \"\", IF(VLOOKUP(AN197,'Footnotes list'!$D$9:$E$58,2,FALSE)=0,\"\",VLOOKUP(AN197,'Footnotes list'!$D$9:$E$58,2,FALSE) ) )","v":""},null,null,null,null,{"$f":"IF(TRIM(AS197)=\"\", \"\", IF(VLOOKUP(AS197,'Footnotes list'!$D$9:$E$58,2,FALSE)=0,\"\",VLOOKUP(AS197,'Footnotes list'!$D$9:$E$58,2,FALSE) ) )","v":""},null,null,null,null,{"$f":"IF(TRIM(AX197)=\"\", \"\", IF(VLOOKUP(AX197,'Footnotes list'!$D$9:$E$58,2,FALSE)=0,\"\",VLOOKUP(AX197,'Footnotes list'!$D$9:$E$58,2,FALSE) ) )","v":""},null,null,null,null,{"$f":"IF(TRIM(BC197)=\"\", \"\", IF(VLOOKUP(BC197,'Footnotes list'!$D$9:$E$58,2,FALSE)=0,\"\",VLOOKUP(BC197,'Footnotes list'!$D$9:$E$58,2,FALSE) ) )","v":""},null,null,null,null,{"$f":"IF(TRIM(BH197)=\"\", \"\", IF(VLOOKUP(BH197,'Footnotes list'!$D$9:$E$58,2,FALSE)=0,\"\",VLOOKUP(BH197,'Footnotes list'!$D$9:$E$58,2,FALSE) ) )","v":""},null,null,null,null,{"$f":"IF(TRIM(BM197)=\"\", \"\", IF(VLOOKUP(BM197,'Footnotes list'!$D$9:$E$58,2,FALSE)=0,\"\",VLOOKUP(BM197,'Footnotes list'!$D$9:$E$58,2,FALSE) ) )","v":""},null,null,null,null,{"$f":"IF(TRIM(BR197)=\"\", \"\", IF(VLOOKUP(BR197,'Footnotes list'!$D$9:$E$58,2,FALSE)=0,\"\",VLOOKUP(BR197,'Footnotes list'!$D$9:$E$58,2,FALSE) ) )","v":""},null,null,null,null,{"$f":"IF(TRIM(BW197)=\"\", \"\", IF(VLOOKUP(BW197,'Footnotes list'!$D$9:$E$58,2,FALSE)=0,\"\",VLOOKUP(BW197,'Footnotes list'!$D$9:$E$58,2,FALSE) ) )","v":""},null,null,null,null,{"$f":"IF(TRIM(CB197)=\"\", \"\", IF(VLOOKUP(CB197,'Footnotes list'!$D$9:$E$58,2,FALSE)=0,\"\",VLOOKUP(CB197,'Footnotes list'!$D$9:$E$58,2,FALSE) ) )","v":""},null,null,null,null,{"$f":"IF(TRIM(CG197)=\"\", \"\", IF(VLOOKUP(CG197,'Footnotes list'!$D$9:$E$58,2,FALSE)=0,\"\",VLOOKUP(CG197,'Footnotes list'!$D$9:$E$58,2,FALSE) ) )","v":""},null,null,null,null,{"$f":"IF(TRIM(CL197)=\"\", \"\", IF(VLOOKUP(CL197,'Footnotes list'!$D$9:$E$58,2,FALSE)=0,\"\",VLOOKUP(CL197,'Footnotes list'!$D$9:$E$58,2,FALSE) ) )","v":""},null,null,null,null,{"$f":"IF(TRIM(CQ197)=\"\", \"\", IF(VLOOKUP(CQ197,'Footnotes list'!$D$9:$E$58,2,FALSE)=0,\"\",VLOOKUP(CQ197,'Footnotes list'!$D$9:$E$58,2,FALSE) ) )","v":""},null,null,null,null,{"$f":"IF(TRIM(CV197)=\"\", \"\", IF(VLOOKUP(CV197,'Footnotes list'!$D$9:$E$58,2,FALSE)=0,\"\",VLOOKUP(CV197,'Footnotes list'!$D$9:$E$58,2,FALSE) ) )","v":""},null,null,null,null,{"$f":"IF(TRIM(DA197)=\"\", \"\", IF(VLOOKUP(DA197,'Footnotes list'!$D$9:$E$58,2,FALSE)=0,\"\",VLOOKUP(DA197,'Footnotes list'!$D$9:$E$58,2,FALSE) ) )","v":""},null,null,null,null,{"$f":"IF(TRIM(DF197)=\"\", \"\", IF(VLOOKUP(DF197,'Footnotes list'!$D$9:$E$58,2,FALSE)=0,\"\",VLOOKUP(DF197,'Footnotes list'!$D$9:$E$58,2,FALSE) ) )","v":""},null,null,null,null,{"$f":"IF(TRIM(DK197)=\"\", \"\", IF(VLOOKUP(DK197,'Footnotes list'!$D$9:$E$58,2,FALSE)=0,\"\",VLOOKUP(DK197,'Footnotes list'!$D$9:$E$58,2,FALSE) ) )","v":""},null,null,null,null,{"$f":"IF(TRIM(DP197)=\"\", \"\", IF(VLOOKUP(DP197,'Footnotes list'!$D$9:$E$58,2,FALSE)=0,\"\",VLOOKUP(DP197,'Footnotes list'!$D$9:$E$58,2,FALSE) ) )","v":""},null,null,null,null,{"$f":"IF(TRIM(DU197)=\"\", \"\", IF(VLOOKUP(DU197,'Footnotes list'!$D$9:$E$58,2,FALSE)=0,\"\",VLOOKUP(DU197,'Footnotes list'!$D$9:$E$58,2,FALSE) ) )","v":""},null,null,null,null,{"$f":"IF(TRIM(DZ197)=\"\", \"\", IF(VLOOKUP(DZ197,'Footnotes list'!$D$9:$E$58,2,FALSE)=0,\"\",VLOOKUP(DZ197,'Footnotes list'!$D$9:$E$58,2,FALSE) ) )","v":""},null,null,null,null,{"$f":"IF(TRIM(EE197)=\"\", \"\", IF(VLOOKUP(EE197,'Footnotes list'!$D$9:$E$58,2,FALSE)=0,\"\",VLOOKUP(EE197,'Footnotes list'!$D$9:$E$58,2,FALSE) ) )","v":""},null,null,null,null,{"$f":"IF(TRIM(EJ197)=\"\", \"\", IF(VLOOKUP(EJ197,'Footnotes list'!$D$9:$E$58,2,FALSE)=0,\"\",VLOOKUP(EJ197,'Footnotes list'!$D$9:$E$58,2,FALSE) ) )","v":""},null,null,null,null,{"$f":"IF(TRIM(EO197)=\"\", \"\", IF(VLOOKUP(EO197,'Footnotes list'!$D$9:$E$58,2,FALSE)=0,\"\",VLOOKUP(EO197,'Footnotes list'!$D$9:$E$58,2,FALSE) ) )","v":""},null,null,null,null,{"$f":"IF(TRIM(ET197)=\"\", \"\", IF(VLOOKUP(ET197,'Footnotes list'!$D$9:$E$58,2,FALSE)=0,\"\",VLOOKUP(ET197,'Footnotes list'!$D$9:$E$58,2,FALSE) ) )","v":""},null,null,null,null,{"$f":"IF(TRIM(EY197)=\"\", \"\", IF(VLOOKUP(EY197,'Footnotes list'!$D$9:$E$58,2,FALSE)=0,\"\",VLOOKUP(EY197,'Footnotes list'!$D$9:$E$58,2,FALSE) ) )","v":""}]
[null,null,"J","ANC","ancillary activities",null,null,null,null,null,{"$f":"IF(TRIM(J198)=\"\", \"\", IF(VLOOKUP(J198,'Footnotes list'!$D$9:$E$58,2,FALSE)=0,\"\",VLOOKUP(J198,'Footnotes list'!$D$9:$E$58,2,FALSE) ) )","v":""},null,null,null,null,{"$f":"IF(TRIM(O198)=\"\", \"\", IF(VLOOKUP(O198,'Footnotes list'!$D$9:$E$58,2,FALSE)=0,\"\",VLOOKUP(O198,'Footnotes list'!$D$9:$E$58,2,FALSE) ) )","v":""},null,null,null,null,{"$f":"IF(TRIM(T198)=\"\", \"\", IF(VLOOKUP(T198,'Footnotes list'!$D$9:$E$58,2,FALSE)=0,\"\",VLOOKUP(T198,'Footnotes list'!$D$9:$E$58,2,FALSE) ) )","v":""},null,null,null,null,{"$f":"IF(TRIM(Y198)=\"\", \"\", IF(VLOOKUP(Y198,'Footnotes list'!$D$9:$E$58,2,FALSE)=0,\"\",VLOOKUP(Y198,'Footnotes list'!$D$9:$E$58,2,FALSE) ) )","v":""},null,null,null,null,{"$f":"IF(TRIM(AD198)=\"\", \"\", IF(VLOOKUP(AD198,'Footnotes list'!$D$9:$E$58,2,FALSE)=0,\"\",VLOOKUP(AD198,'Footnotes list'!$D$9:$E$58,2,FALSE) ) )","v":""},null,null,null,null,{"$f":"IF(TRIM(AI198)=\"\", \"\", IF(VLOOKUP(AI198,'Footnotes list'!$D$9:$E$58,2,FALSE)=0,\"\",VLOOKUP(AI198,'Footnotes list'!$D$9:$E$58,2,FALSE) ) )","v":""},null,null,null,null,{"$f":"IF(TRIM(AN198)=\"\", \"\", IF(VLOOKUP(AN198,'Footnotes list'!$D$9:$E$58,2,FALSE)=0,\"\",VLOOKUP(AN198,'Footnotes list'!$D$9:$E$58,2,FALSE) ) )","v":""},null,null,null,null,{"$f":"IF(TRIM(AS198)=\"\", \"\", IF(VLOOKUP(AS198,'Footnotes list'!$D$9:$E$58,2,FALSE)=0,\"\",VLOOKUP(AS198,'Footnotes list'!$D$9:$E$58,2,FALSE) ) )","v":""},null,null,null,null,{"$f":"IF(TRIM(AX198)=\"\", \"\", IF(VLOOKUP(AX198,'Footnotes list'!$D$9:$E$58,2,FALSE)=0,\"\",VLOOKUP(AX198,'Footnotes list'!$D$9:$E$58,2,FALSE) ) )","v":""},null,null,null,null,{"$f":"IF(TRIM(BC198)=\"\", \"\", IF(VLOOKUP(BC198,'Footnotes list'!$D$9:$E$58,2,FALSE)=0,\"\",VLOOKUP(BC198,'Footnotes list'!$D$9:$E$58,2,FALSE) ) )","v":""},null,null,null,null,{"$f":"IF(TRIM(BH198)=\"\", \"\", IF(VLOOKUP(BH198,'Footnotes list'!$D$9:$E$58,2,FALSE)=0,\"\",VLOOKUP(BH198,'Footnotes list'!$D$9:$E$58,2,FALSE) ) )","v":""},null,null,null,null,{"$f":"IF(TRIM(BM198)=\"\", \"\", IF(VLOOKUP(BM198,'Footnotes list'!$D$9:$E$58,2,FALSE)=0,\"\",VLOOKUP(BM198,'Footnotes list'!$D$9:$E$58,2,FALSE) ) )","v":""},null,null,null,null,{"$f":"IF(TRIM(BR198)=\"\", \"\", IF(VLOOKUP(BR198,'Footnotes list'!$D$9:$E$58,2,FALSE)=0,\"\",VLOOKUP(BR198,'Footnotes list'!$D$9:$E$58,2,FALSE) ) )","v":""},null,null,null,null,{"$f":"IF(TRIM(BW198)=\"\", \"\", IF(VLOOKUP(BW198,'Footnotes list'!$D$9:$E$58,2,FALSE)=0,\"\",VLOOKUP(BW198,'Footnotes list'!$D$9:$E$58,2,FALSE) ) )","v":""},null,null,null,null,{"$f":"IF(TRIM(CB198)=\"\", \"\", IF(VLOOKUP(CB198,'Footnotes list'!$D$9:$E$58,2,FALSE)=0,\"\",VLOOKUP(CB198,'Footnotes list'!$D$9:$E$58,2,FALSE) ) )","v":""},null,null,null,null,{"$f":"IF(TRIM(CG198)=\"\", \"\", IF(VLOOKUP(CG198,'Footnotes list'!$D$9:$E$58,2,FALSE)=0,\"\",VLOOKUP(CG198,'Footnotes list'!$D$9:$E$58,2,FALSE) ) )","v":""},null,null,null,null,{"$f":"IF(TRIM(CL198)=\"\", \"\", IF(VLOOKUP(CL198,'Footnotes list'!$D$9:$E$58,2,FALSE)=0,\"\",VLOOKUP(CL198,'Footnotes list'!$D$9:$E$58,2,FALSE) ) )","v":""},null,null,null,null,{"$f":"IF(TRIM(CQ198)=\"\", \"\", IF(VLOOKUP(CQ198,'Footnotes list'!$D$9:$E$58,2,FALSE)=0,\"\",VLOOKUP(CQ198,'Footnotes list'!$D$9:$E$58,2,FALSE) ) )","v":""},null,null,null,null,{"$f":"IF(TRIM(CV198)=\"\", \"\", IF(VLOOKUP(CV198,'Footnotes list'!$D$9:$E$58,2,FALSE)=0,\"\",VLOOKUP(CV198,'Footnotes list'!$D$9:$E$58,2,FALSE) ) )","v":""},null,null,null,null,{"$f":"IF(TRIM(DA198)=\"\", \"\", IF(VLOOKUP(DA198,'Footnotes list'!$D$9:$E$58,2,FALSE)=0,\"\",VLOOKUP(DA198,'Footnotes list'!$D$9:$E$58,2,FALSE) ) )","v":""},null,null,null,null,{"$f":"IF(TRIM(DF198)=\"\", \"\", IF(VLOOKUP(DF198,'Footnotes list'!$D$9:$E$58,2,FALSE)=0,\"\",VLOOKUP(DF198,'Footnotes list'!$D$9:$E$58,2,FALSE) ) )","v":""},null,null,null,null,{"$f":"IF(TRIM(DK198)=\"\", \"\", IF(VLOOKUP(DK198,'Footnotes list'!$D$9:$E$58,2,FALSE)=0,\"\",VLOOKUP(DK198,'Footnotes list'!$D$9:$E$58,2,FALSE) ) )","v":""},null,null,null,null,{"$f":"IF(TRIM(DP198)=\"\", \"\", IF(VLOOKUP(DP198,'Footnotes list'!$D$9:$E$58,2,FALSE)=0,\"\",VLOOKUP(DP198,'Footnotes list'!$D$9:$E$58,2,FALSE) ) )","v":""},null,null,null,null,{"$f":"IF(TRIM(DU198)=\"\", \"\", IF(VLOOKUP(DU198,'Footnotes list'!$D$9:$E$58,2,FALSE)=0,\"\",VLOOKUP(DU198,'Footnotes list'!$D$9:$E$58,2,FALSE) ) )","v":""},null,null,null,null,{"$f":"IF(TRIM(DZ198)=\"\", \"\", IF(VLOOKUP(DZ198,'Footnotes list'!$D$9:$E$58,2,FALSE)=0,\"\",VLOOKUP(DZ198,'Footnotes list'!$D$9:$E$58,2,FALSE) ) )","v":""},null,null,null,null,{"$f":"IF(TRIM(EE198)=\"\", \"\", IF(VLOOKUP(EE198,'Footnotes list'!$D$9:$E$58,2,FALSE)=0,\"\",VLOOKUP(EE198,'Footnotes list'!$D$9:$E$58,2,FALSE) ) )","v":""},null,null,null,null,{"$f":"IF(TRIM(EJ198)=\"\", \"\", IF(VLOOKUP(EJ198,'Footnotes list'!$D$9:$E$58,2,FALSE)=0,\"\",VLOOKUP(EJ198,'Footnotes list'!$D$9:$E$58,2,FALSE) ) )","v":""},null,null,null,null,{"$f":"IF(TRIM(EO198)=\"\", \"\", IF(VLOOKUP(EO198,'Footnotes list'!$D$9:$E$58,2,FALSE)=0,\"\",VLOOKUP(EO198,'Footnotes list'!$D$9:$E$58,2,FALSE) ) )","v":""},null,null,null,null,{"$f":"IF(TRIM(ET198)=\"\", \"\", IF(VLOOKUP(ET198,'Footnotes list'!$D$9:$E$58,2,FALSE)=0,\"\",VLOOKUP(ET198,'Footnotes list'!$D$9:$E$58,2,FALSE) ) )","v":""},null,null,null,null,{"$f":"IF(TRIM(EY198)=\"\", \"\", IF(VLOOKUP(EY198,'Footnotes list'!$D$9:$E$58,2,FALSE)=0,\"\",VLOOKUP(EY198,'Footnotes list'!$D$9:$E$58,2,FALSE) ) )","v":""}]
[null,null,"J","NMKT","non-market activities",null,null,null,null,null,{"$f":"IF(TRIM(J199)=\"\", \"\", IF(VLOOKUP(J199,'Footnotes list'!$D$9:$E$58,2,FALSE)=0,\"\",VLOOKUP(J199,'Footnotes list'!$D$9:$E$58,2,FALSE) ) )","v":""},null,null,null,null,{"$f":"IF(TRIM(O199)=\"\", \"\", IF(VLOOKUP(O199,'Footnotes list'!$D$9:$E$58,2,FALSE)=0,\"\",VLOOKUP(O199,'Footnotes list'!$D$9:$E$58,2,FALSE) ) )","v":""},null,null,null,null,{"$f":"IF(TRIM(T199)=\"\", \"\", IF(VLOOKUP(T199,'Footnotes list'!$D$9:$E$58,2,FALSE)=0,\"\",VLOOKUP(T199,'Footnotes list'!$D$9:$E$58,2,FALSE) ) )","v":""},null,null,null,null,{"$f":"IF(TRIM(Y199)=\"\", \"\", IF(VLOOKUP(Y199,'Footnotes list'!$D$9:$E$58,2,FALSE)=0,\"\",VLOOKUP(Y199,'Footnotes list'!$D$9:$E$58,2,FALSE) ) )","v":""},null,null,null,null,{"$f":"IF(TRIM(AD199)=\"\", \"\", IF(VLOOKUP(AD199,'Footnotes list'!$D$9:$E$58,2,FALSE)=0,\"\",VLOOKUP(AD199,'Footnotes list'!$D$9:$E$58,2,FALSE) ) )","v":""},null,null,null,null,{"$f":"IF(TRIM(AI199)=\"\", \"\", IF(VLOOKUP(AI199,'Footnotes list'!$D$9:$E$58,2,FALSE)=0,\"\",VLOOKUP(AI199,'Footnotes list'!$D$9:$E$58,2,FALSE) ) )","v":""},null,null,null,null,{"$f":"IF(TRIM(AN199)=\"\", \"\", IF(VLOOKUP(AN199,'Footnotes list'!$D$9:$E$58,2,FALSE)=0,\"\",VLOOKUP(AN199,'Footnotes list'!$D$9:$E$58,2,FALSE) ) )","v":""},null,null,null,null,{"$f":"IF(TRIM(AS199)=\"\", \"\", IF(VLOOKUP(AS199,'Footnotes list'!$D$9:$E$58,2,FALSE)=0,\"\",VLOOKUP(AS199,'Footnotes list'!$D$9:$E$58,2,FALSE) ) )","v":""},null,null,null,null,{"$f":"IF(TRIM(AX199)=\"\", \"\", IF(VLOOKUP(AX199,'Footnotes list'!$D$9:$E$58,2,FALSE)=0,\"\",VLOOKUP(AX199,'Footnotes list'!$D$9:$E$58,2,FALSE) ) )","v":""},null,null,null,null,{"$f":"IF(TRIM(BC199)=\"\", \"\", IF(VLOOKUP(BC199,'Footnotes list'!$D$9:$E$58,2,FALSE)=0,\"\",VLOOKUP(BC199,'Footnotes list'!$D$9:$E$58,2,FALSE) ) )","v":""},null,null,null,null,{"$f":"IF(TRIM(BH199)=\"\", \"\", IF(VLOOKUP(BH199,'Footnotes list'!$D$9:$E$58,2,FALSE)=0,\"\",VLOOKUP(BH199,'Footnotes list'!$D$9:$E$58,2,FALSE) ) )","v":""},null,null,null,null,{"$f":"IF(TRIM(BM199)=\"\", \"\", IF(VLOOKUP(BM199,'Footnotes list'!$D$9:$E$58,2,FALSE)=0,\"\",VLOOKUP(BM199,'Footnotes list'!$D$9:$E$58,2,FALSE) ) )","v":""},null,null,null,null,{"$f":"IF(TRIM(BR199)=\"\", \"\", IF(VLOOKUP(BR199,'Footnotes list'!$D$9:$E$58,2,FALSE)=0,\"\",VLOOKUP(BR199,'Footnotes list'!$D$9:$E$58,2,FALSE) ) )","v":""},null,null,null,null,{"$f":"IF(TRIM(BW199)=\"\", \"\", IF(VLOOKUP(BW199,'Footnotes list'!$D$9:$E$58,2,FALSE)=0,\"\",VLOOKUP(BW199,'Footnotes list'!$D$9:$E$58,2,FALSE) ) )","v":""},null,null,null,null,{"$f":"IF(TRIM(CB199)=\"\", \"\", IF(VLOOKUP(CB199,'Footnotes list'!$D$9:$E$58,2,FALSE)=0,\"\",VLOOKUP(CB199,'Footnotes list'!$D$9:$E$58,2,FALSE) ) )","v":""},null,null,null,null,{"$f":"IF(TRIM(CG199)=\"\", \"\", IF(VLOOKUP(CG199,'Footnotes list'!$D$9:$E$58,2,FALSE)=0,\"\",VLOOKUP(CG199,'Footnotes list'!$D$9:$E$58,2,FALSE) ) )","v":""},null,null,null,null,{"$f":"IF(TRIM(CL199)=\"\", \"\", IF(VLOOKUP(CL199,'Footnotes list'!$D$9:$E$58,2,FALSE)=0,\"\",VLOOKUP(CL199,'Footnotes list'!$D$9:$E$58,2,FALSE) ) )","v":""},null,null,null,null,{"$f":"IF(TRIM(CQ199)=\"\", \"\", IF(VLOOKUP(CQ199,'Footnotes list'!$D$9:$E$58,2,FALSE)=0,\"\",VLOOKUP(CQ199,'Footnotes list'!$D$9:$E$58,2,FALSE) ) )","v":""},null,null,null,null,{"$f":"IF(TRIM(CV199)=\"\", \"\", IF(VLOOKUP(CV199,'Footnotes list'!$D$9:$E$58,2,FALSE)=0,\"\",VLOOKUP(CV199,'Footnotes list'!$D$9:$E$58,2,FALSE) ) )","v":""},null,null,null,null,{"$f":"IF(TRIM(DA199)=\"\", \"\", IF(VLOOKUP(DA199,'Footnotes list'!$D$9:$E$58,2,FALSE)=0,\"\",VLOOKUP(DA199,'Footnotes list'!$D$9:$E$58,2,FALSE) ) )","v":""},null,null,null,null,{"$f":"IF(TRIM(DF199)=\"\", \"\", IF(VLOOKUP(DF199,'Footnotes list'!$D$9:$E$58,2,FALSE)=0,\"\",VLOOKUP(DF199,'Footnotes list'!$D$9:$E$58,2,FALSE) ) )","v":""},null,null,null,null,{"$f":"IF(TRIM(DK199)=\"\", \"\", IF(VLOOKUP(DK199,'Footnotes list'!$D$9:$E$58,2,FALSE)=0,\"\",VLOOKUP(DK199,'Footnotes list'!$D$9:$E$58,2,FALSE) ) )","v":""},null,null,null,null,{"$f":"IF(TRIM(DP199)=\"\", \"\", IF(VLOOKUP(DP199,'Footnotes list'!$D$9:$E$58,2,FALSE)=0,\"\",VLOOKUP(DP199,'Footnotes list'!$D$9:$E$58,2,FALSE) ) )","v":""},null,null,null,null,{"$f":"IF(TRIM(DU199)=\"\", \"\", IF(VLOOKUP(DU199,'Footnotes list'!$D$9:$E$58,2,FALSE)=0,\"\",VLOOKUP(DU199,'Footnotes list'!$D$9:$E$58,2,FALSE) ) )","v":""},null,null,null,null,{"$f":"IF(TRIM(DZ199)=\"\", \"\", IF(VLOOKUP(DZ199,'Footnotes list'!$D$9:$E$58,2,FALSE)=0,\"\",VLOOKUP(DZ199,'Footnotes list'!$D$9:$E$58,2,FALSE) ) )","v":""},null,null,null,null,{"$f":"IF(TRIM(EE199)=\"\", \"\", IF(VLOOKUP(EE199,'Footnotes list'!$D$9:$E$58,2,FALSE)=0,\"\",VLOOKUP(EE199,'Footnotes list'!$D$9:$E$58,2,FALSE) ) )","v":""},null,null,null,null,{"$f":"IF(TRIM(EJ199)=\"\", \"\", IF(VLOOKUP(EJ199,'Footnotes list'!$D$9:$E$58,2,FALSE)=0,\"\",VLOOKUP(EJ199,'Footnotes list'!$D$9:$E$58,2,FALSE) ) )","v":""},null,null,null,null,{"$f":"IF(TRIM(EO199)=\"\", \"\", IF(VLOOKUP(EO199,'Footnotes list'!$D$9:$E$58,2,FALSE)=0,\"\",VLOOKUP(EO199,'Footnotes list'!$D$9:$E$58,2,FALSE) ) )","v":""},null,null,null,null,{"$f":"IF(TRIM(ET199)=\"\", \"\", IF(VLOOKUP(ET199,'Footnotes list'!$D$9:$E$58,2,FALSE)=0,\"\",VLOOKUP(ET199,'Footnotes list'!$D$9:$E$58,2,FALSE) ) )","v":""},null,null,null,null,{"$f":"IF(TRIM(EY199)=\"\", \"\", IF(VLOOKUP(EY199,'Footnotes list'!$D$9:$E$58,2,FALSE)=0,\"\",VLOOKUP(EY199,'Footnotes list'!$D$9:$E$58,2,FALSE) ) )","v":""}]
[null,null,"J","OWN_USE","activities for own final use",null,null,null,null,null,{"$f":"IF(TRIM(J200)=\"\", \"\", IF(VLOOKUP(J200,'Footnotes list'!$D$9:$E$58,2,FALSE)=0,\"\",VLOOKUP(J200,'Footnotes list'!$D$9:$E$58,2,FALSE) ) )","v":""},null,null,null,null,{"$f":"IF(TRIM(O200)=\"\", \"\", IF(VLOOKUP(O200,'Footnotes list'!$D$9:$E$58,2,FALSE)=0,\"\",VLOOKUP(O200,'Footnotes list'!$D$9:$E$58,2,FALSE) ) )","v":""},null,null,null,null,{"$f":"IF(TRIM(T200)=\"\", \"\", IF(VLOOKUP(T200,'Footnotes list'!$D$9:$E$58,2,FALSE)=0,\"\",VLOOKUP(T200,'Footnotes list'!$D$9:$E$58,2,FALSE) ) )","v":""},null,null,null,null,{"$f":"IF(TRIM(Y200)=\"\", \"\", IF(VLOOKUP(Y200,'Footnotes list'!$D$9:$E$58,2,FALSE)=0,\"\",VLOOKUP(Y200,'Footnotes list'!$D$9:$E$58,2,FALSE) ) )","v":""},null,null,null,null,{"$f":"IF(TRIM(AD200)=\"\", \"\", IF(VLOOKUP(AD200,'Footnotes list'!$D$9:$E$58,2,FALSE)=0,\"\",VLOOKUP(AD200,'Footnotes list'!$D$9:$E$58,2,FALSE) ) )","v":""},null,null,null,null,{"$f":"IF(TRIM(AI200)=\"\", \"\", IF(VLOOKUP(AI200,'Footnotes list'!$D$9:$E$58,2,FALSE)=0,\"\",VLOOKUP(AI200,'Footnotes list'!$D$9:$E$58,2,FALSE) ) )","v":""},null,null,null,null,{"$f":"IF(TRIM(AN200)=\"\", \"\", IF(VLOOKUP(AN200,'Footnotes list'!$D$9:$E$58,2,FALSE)=0,\"\",VLOOKUP(AN200,'Footnotes list'!$D$9:$E$58,2,FALSE) ) )","v":""},null,null,null,null,{"$f":"IF(TRIM(AS200)=\"\", \"\", IF(VLOOKUP(AS200,'Footnotes list'!$D$9:$E$58,2,FALSE)=0,\"\",VLOOKUP(AS200,'Footnotes list'!$D$9:$E$58,2,FALSE) ) )","v":""},null,null,null,null,{"$f":"IF(TRIM(AX200)=\"\", \"\", IF(VLOOKUP(AX200,'Footnotes list'!$D$9:$E$58,2,FALSE)=0,\"\",VLOOKUP(AX200,'Footnotes list'!$D$9:$E$58,2,FALSE) ) )","v":""},null,null,null,null,{"$f":"IF(TRIM(BC200)=\"\", \"\", IF(VLOOKUP(BC200,'Footnotes list'!$D$9:$E$58,2,FALSE)=0,\"\",VLOOKUP(BC200,'Footnotes list'!$D$9:$E$58,2,FALSE) ) )","v":""},null,null,null,null,{"$f":"IF(TRIM(BH200)=\"\", \"\", IF(VLOOKUP(BH200,'Footnotes list'!$D$9:$E$58,2,FALSE)=0,\"\",VLOOKUP(BH200,'Footnotes list'!$D$9:$E$58,2,FALSE) ) )","v":""},null,null,null,null,{"$f":"IF(TRIM(BM200)=\"\", \"\", IF(VLOOKUP(BM200,'Footnotes list'!$D$9:$E$58,2,FALSE)=0,\"\",VLOOKUP(BM200,'Footnotes list'!$D$9:$E$58,2,FALSE) ) )","v":""},null,null,null,null,{"$f":"IF(TRIM(BR200)=\"\", \"\", IF(VLOOKUP(BR200,'Footnotes list'!$D$9:$E$58,2,FALSE)=0,\"\",VLOOKUP(BR200,'Footnotes list'!$D$9:$E$58,2,FALSE) ) )","v":""},null,null,null,null,{"$f":"IF(TRIM(BW200)=\"\", \"\", IF(VLOOKUP(BW200,'Footnotes list'!$D$9:$E$58,2,FALSE)=0,\"\",VLOOKUP(BW200,'Footnotes list'!$D$9:$E$58,2,FALSE) ) )","v":""},null,null,null,null,{"$f":"IF(TRIM(CB200)=\"\", \"\", IF(VLOOKUP(CB200,'Footnotes list'!$D$9:$E$58,2,FALSE)=0,\"\",VLOOKUP(CB200,'Footnotes list'!$D$9:$E$58,2,FALSE) ) )","v":""},null,null,null,null,{"$f":"IF(TRIM(CG200)=\"\", \"\", IF(VLOOKUP(CG200,'Footnotes list'!$D$9:$E$58,2,FALSE)=0,\"\",VLOOKUP(CG200,'Footnotes list'!$D$9:$E$58,2,FALSE) ) )","v":""},null,null,null,null,{"$f":"IF(TRIM(CL200)=\"\", \"\", IF(VLOOKUP(CL200,'Footnotes list'!$D$9:$E$58,2,FALSE)=0,\"\",VLOOKUP(CL200,'Footnotes list'!$D$9:$E$58,2,FALSE) ) )","v":""},null,null,null,null,{"$f":"IF(TRIM(CQ200)=\"\", \"\", IF(VLOOKUP(CQ200,'Footnotes list'!$D$9:$E$58,2,FALSE)=0,\"\",VLOOKUP(CQ200,'Footnotes list'!$D$9:$E$58,2,FALSE) ) )","v":""},null,null,null,null,{"$f":"IF(TRIM(CV200)=\"\", \"\", IF(VLOOKUP(CV200,'Footnotes list'!$D$9:$E$58,2,FALSE)=0,\"\",VLOOKUP(CV200,'Footnotes list'!$D$9:$E$58,2,FALSE) ) )","v":""},null,null,null,null,{"$f":"IF(TRIM(DA200)=\"\", \"\", IF(VLOOKUP(DA200,'Footnotes list'!$D$9:$E$58,2,FALSE)=0,\"\",VLOOKUP(DA200,'Footnotes list'!$D$9:$E$58,2,FALSE) ) )","v":""},null,null,null,null,{"$f":"IF(TRIM(DF200)=\"\", \"\", IF(VLOOKUP(DF200,'Footnotes list'!$D$9:$E$58,2,FALSE)=0,\"\",VLOOKUP(DF200,'Footnotes list'!$D$9:$E$58,2,FALSE) ) )","v":""},null,null,null,null,{"$f":"IF(TRIM(DK200)=\"\", \"\", IF(VLOOKUP(DK200,'Footnotes list'!$D$9:$E$58,2,FALSE)=0,\"\",VLOOKUP(DK200,'Footnotes list'!$D$9:$E$58,2,FALSE) ) )","v":""},null,null,null,null,{"$f":"IF(TRIM(DP200)=\"\", \"\", IF(VLOOKUP(DP200,'Footnotes list'!$D$9:$E$58,2,FALSE)=0,\"\",VLOOKUP(DP200,'Footnotes list'!$D$9:$E$58,2,FALSE) ) )","v":""},null,null,null,null,{"$f":"IF(TRIM(DU200)=\"\", \"\", IF(VLOOKUP(DU200,'Footnotes list'!$D$9:$E$58,2,FALSE)=0,\"\",VLOOKUP(DU200,'Footnotes list'!$D$9:$E$58,2,FALSE) ) )","v":""},null,null,null,null,{"$f":"IF(TRIM(DZ200)=\"\", \"\", IF(VLOOKUP(DZ200,'Footnotes list'!$D$9:$E$58,2,FALSE)=0,\"\",VLOOKUP(DZ200,'Footnotes list'!$D$9:$E$58,2,FALSE) ) )","v":""},null,null,null,null,{"$f":"IF(TRIM(EE200)=\"\", \"\", IF(VLOOKUP(EE200,'Footnotes list'!$D$9:$E$58,2,FALSE)=0,\"\",VLOOKUP(EE200,'Footnotes list'!$D$9:$E$58,2,FALSE) ) )","v":""},null,null,null,null,{"$f":"IF(TRIM(EJ200)=\"\", \"\", IF(VLOOKUP(EJ200,'Footnotes list'!$D$9:$E$58,2,FALSE)=0,\"\",VLOOKUP(EJ200,'Footnotes list'!$D$9:$E$58,2,FALSE) ) )","v":""},null,null,null,null,{"$f":"IF(TRIM(EO200)=\"\", \"\", IF(VLOOKUP(EO200,'Footnotes list'!$D$9:$E$58,2,FALSE)=0,\"\",VLOOKUP(EO200,'Footnotes list'!$D$9:$E$58,2,FALSE) ) )","v":""},null,null,null,null,{"$f":"IF(TRIM(ET200)=\"\", \"\", IF(VLOOKUP(ET200,'Footnotes list'!$D$9:$E$58,2,FALSE)=0,\"\",VLOOKUP(ET200,'Footnotes list'!$D$9:$E$58,2,FALSE) ) )","v":""},null,null,null,null,{"$f":"IF(TRIM(EY200)=\"\", \"\", IF(VLOOKUP(EY200,'Footnotes list'!$D$9:$E$58,2,FALSE)=0,\"\",VLOOKUP(EY200,'Footnotes list'!$D$9:$E$58,2,FALSE) ) )","v":""}]
[null,null,"J","MKT","market activities, including:",null,null,null,null,null,{"$f":"IF(TRIM(J201)=\"\", \"\", IF(VLOOKUP(J201,'Footnotes list'!$D$9:$E$58,2,FALSE)=0,\"\",VLOOKUP(J201,'Footnotes list'!$D$9:$E$58,2,FALSE) ) )","v":""},null,null,null,null,{"$f":"IF(TRIM(O201)=\"\", \"\", IF(VLOOKUP(O201,'Footnotes list'!$D$9:$E$58,2,FALSE)=0,\"\",VLOOKUP(O201,'Footnotes list'!$D$9:$E$58,2,FALSE) ) )","v":""},null,null,null,null,{"$f":"IF(TRIM(T201)=\"\", \"\", IF(VLOOKUP(T201,'Footnotes list'!$D$9:$E$58,2,FALSE)=0,\"\",VLOOKUP(T201,'Footnotes list'!$D$9:$E$58,2,FALSE) ) )","v":""},null,null,null,null,{"$f":"IF(TRIM(Y201)=\"\", \"\", IF(VLOOKUP(Y201,'Footnotes list'!$D$9:$E$58,2,FALSE)=0,\"\",VLOOKUP(Y201,'Footnotes list'!$D$9:$E$58,2,FALSE) ) )","v":""},null,null,null,null,{"$f":"IF(TRIM(AD201)=\"\", \"\", IF(VLOOKUP(AD201,'Footnotes list'!$D$9:$E$58,2,FALSE)=0,\"\",VLOOKUP(AD201,'Footnotes list'!$D$9:$E$58,2,FALSE) ) )","v":""},null,null,null,null,{"$f":"IF(TRIM(AI201)=\"\", \"\", IF(VLOOKUP(AI201,'Footnotes list'!$D$9:$E$58,2,FALSE)=0,\"\",VLOOKUP(AI201,'Footnotes list'!$D$9:$E$58,2,FALSE) ) )","v":""},null,null,null,null,{"$f":"IF(TRIM(AN201)=\"\", \"\", IF(VLOOKUP(AN201,'Footnotes list'!$D$9:$E$58,2,FALSE)=0,\"\",VLOOKUP(AN201,'Footnotes list'!$D$9:$E$58,2,FALSE) ) )","v":""},null,null,null,null,{"$f":"IF(TRIM(AS201)=\"\", \"\", IF(VLOOKUP(AS201,'Footnotes list'!$D$9:$E$58,2,FALSE)=0,\"\",VLOOKUP(AS201,'Footnotes list'!$D$9:$E$58,2,FALSE) ) )","v":""},null,null,null,null,{"$f":"IF(TRIM(AX201)=\"\", \"\", IF(VLOOKUP(AX201,'Footnotes list'!$D$9:$E$58,2,FALSE)=0,\"\",VLOOKUP(AX201,'Footnotes list'!$D$9:$E$58,2,FALSE) ) )","v":""},null,null,null,null,{"$f":"IF(TRIM(BC201)=\"\", \"\", IF(VLOOKUP(BC201,'Footnotes list'!$D$9:$E$58,2,FALSE)=0,\"\",VLOOKUP(BC201,'Footnotes list'!$D$9:$E$58,2,FALSE) ) )","v":""},null,null,null,null,{"$f":"IF(TRIM(BH201)=\"\", \"\", IF(VLOOKUP(BH201,'Footnotes list'!$D$9:$E$58,2,FALSE)=0,\"\",VLOOKUP(BH201,'Footnotes list'!$D$9:$E$58,2,FALSE) ) )","v":""},null,null,null,null,{"$f":"IF(TRIM(BM201)=\"\", \"\", IF(VLOOKUP(BM201,'Footnotes list'!$D$9:$E$58,2,FALSE)=0,\"\",VLOOKUP(BM201,'Footnotes list'!$D$9:$E$58,2,FALSE) ) )","v":""},null,null,null,null,{"$f":"IF(TRIM(BR201)=\"\", \"\", IF(VLOOKUP(BR201,'Footnotes list'!$D$9:$E$58,2,FALSE)=0,\"\",VLOOKUP(BR201,'Footnotes list'!$D$9:$E$58,2,FALSE) ) )","v":""},null,null,null,null,{"$f":"IF(TRIM(BW201)=\"\", \"\", IF(VLOOKUP(BW201,'Footnotes list'!$D$9:$E$58,2,FALSE)=0,\"\",VLOOKUP(BW201,'Footnotes list'!$D$9:$E$58,2,FALSE) ) )","v":""},null,null,null,null,{"$f":"IF(TRIM(CB201)=\"\", \"\", IF(VLOOKUP(CB201,'Footnotes list'!$D$9:$E$58,2,FALSE)=0,\"\",VLOOKUP(CB201,'Footnotes list'!$D$9:$E$58,2,FALSE) ) )","v":""},null,null,null,null,{"$f":"IF(TRIM(CG201)=\"\", \"\", IF(VLOOKUP(CG201,'Footnotes list'!$D$9:$E$58,2,FALSE)=0,\"\",VLOOKUP(CG201,'Footnotes list'!$D$9:$E$58,2,FALSE) ) )","v":""},null,null,null,null,{"$f":"IF(TRIM(CL201)=\"\", \"\", IF(VLOOKUP(CL201,'Footnotes list'!$D$9:$E$58,2,FALSE)=0,\"\",VLOOKUP(CL201,'Footnotes list'!$D$9:$E$58,2,FALSE) ) )","v":""},null,null,null,null,{"$f":"IF(TRIM(CQ201)=\"\", \"\", IF(VLOOKUP(CQ201,'Footnotes list'!$D$9:$E$58,2,FALSE)=0,\"\",VLOOKUP(CQ201,'Footnotes list'!$D$9:$E$58,2,FALSE) ) )","v":""},null,null,null,null,{"$f":"IF(TRIM(CV201)=\"\", \"\", IF(VLOOKUP(CV201,'Footnotes list'!$D$9:$E$58,2,FALSE)=0,\"\",VLOOKUP(CV201,'Footnotes list'!$D$9:$E$58,2,FALSE) ) )","v":""},null,null,null,null,{"$f":"IF(TRIM(DA201)=\"\", \"\", IF(VLOOKUP(DA201,'Footnotes list'!$D$9:$E$58,2,FALSE)=0,\"\",VLOOKUP(DA201,'Footnotes list'!$D$9:$E$58,2,FALSE) ) )","v":""},null,null,null,null,{"$f":"IF(TRIM(DF201)=\"\", \"\", IF(VLOOKUP(DF201,'Footnotes list'!$D$9:$E$58,2,FALSE)=0,\"\",VLOOKUP(DF201,'Footnotes list'!$D$9:$E$58,2,FALSE) ) )","v":""},null,null,null,null,{"$f":"IF(TRIM(DK201)=\"\", \"\", IF(VLOOKUP(DK201,'Footnotes list'!$D$9:$E$58,2,FALSE)=0,\"\",VLOOKUP(DK201,'Footnotes list'!$D$9:$E$58,2,FALSE) ) )","v":""},null,null,null,null,{"$f":"IF(TRIM(DP201)=\"\", \"\", IF(VLOOKUP(DP201,'Footnotes list'!$D$9:$E$58,2,FALSE)=0,\"\",VLOOKUP(DP201,'Footnotes list'!$D$9:$E$58,2,FALSE) ) )","v":""},null,null,null,null,{"$f":"IF(TRIM(DU201)=\"\", \"\", IF(VLOOKUP(DU201,'Footnotes list'!$D$9:$E$58,2,FALSE)=0,\"\",VLOOKUP(DU201,'Footnotes list'!$D$9:$E$58,2,FALSE) ) )","v":""},null,null,null,null,{"$f":"IF(TRIM(DZ201)=\"\", \"\", IF(VLOOKUP(DZ201,'Footnotes list'!$D$9:$E$58,2,FALSE)=0,\"\",VLOOKUP(DZ201,'Footnotes list'!$D$9:$E$58,2,FALSE) ) )","v":""},null,null,null,null,{"$f":"IF(TRIM(EE201)=\"\", \"\", IF(VLOOKUP(EE201,'Footnotes list'!$D$9:$E$58,2,FALSE)=0,\"\",VLOOKUP(EE201,'Footnotes list'!$D$9:$E$58,2,FALSE) ) )","v":""},null,null,null,null,{"$f":"IF(TRIM(EJ201)=\"\", \"\", IF(VLOOKUP(EJ201,'Footnotes list'!$D$9:$E$58,2,FALSE)=0,\"\",VLOOKUP(EJ201,'Footnotes list'!$D$9:$E$58,2,FALSE) ) )","v":""},null,null,null,null,{"$f":"IF(TRIM(EO201)=\"\", \"\", IF(VLOOKUP(EO201,'Footnotes list'!$D$9:$E$58,2,FALSE)=0,\"\",VLOOKUP(EO201,'Footnotes list'!$D$9:$E$58,2,FALSE) ) )","v":""},null,null,null,null,{"$f":"IF(TRIM(ET201)=\"\", \"\", IF(VLOOKUP(ET201,'Footnotes list'!$D$9:$E$58,2,FALSE)=0,\"\",VLOOKUP(ET201,'Footnotes list'!$D$9:$E$58,2,FALSE) ) )","v":""},null,null,null,null,{"$f":"IF(TRIM(EY201)=\"\", \"\", IF(VLOOKUP(EY201,'Footnotes list'!$D$9:$E$58,2,FALSE)=0,\"\",VLOOKUP(EY201,'Footnotes list'!$D$9:$E$58,2,FALSE) ) )","v":""}]
[null,null,"J","ES_CS","environmental specific services",null,null,null,null,null,{"$f":"IF(TRIM(J202)=\"\", \"\", IF(VLOOKUP(J202,'Footnotes list'!$D$9:$E$58,2,FALSE)=0,\"\",VLOOKUP(J202,'Footnotes list'!$D$9:$E$58,2,FALSE) ) )","v":""},null,null,null,null,{"$f":"IF(TRIM(O202)=\"\", \"\", IF(VLOOKUP(O202,'Footnotes list'!$D$9:$E$58,2,FALSE)=0,\"\",VLOOKUP(O202,'Footnotes list'!$D$9:$E$58,2,FALSE) ) )","v":""},null,null,null,null,{"$f":"IF(TRIM(T202)=\"\", \"\", IF(VLOOKUP(T202,'Footnotes list'!$D$9:$E$58,2,FALSE)=0,\"\",VLOOKUP(T202,'Footnotes list'!$D$9:$E$58,2,FALSE) ) )","v":""},null,null,null,null,{"$f":"IF(TRIM(Y202)=\"\", \"\", IF(VLOOKUP(Y202,'Footnotes list'!$D$9:$E$58,2,FALSE)=0,\"\",VLOOKUP(Y202,'Footnotes list'!$D$9:$E$58,2,FALSE) ) )","v":""},null,null,null,null,{"$f":"IF(TRIM(AD202)=\"\", \"\", IF(VLOOKUP(AD202,'Footnotes list'!$D$9:$E$58,2,FALSE)=0,\"\",VLOOKUP(AD202,'Footnotes list'!$D$9:$E$58,2,FALSE) ) )","v":""},null,null,null,null,{"$f":"IF(TRIM(AI202)=\"\", \"\", IF(VLOOKUP(AI202,'Footnotes list'!$D$9:$E$58,2,FALSE)=0,\"\",VLOOKUP(AI202,'Footnotes list'!$D$9:$E$58,2,FALSE) ) )","v":""},null,null,null,null,{"$f":"IF(TRIM(AN202)=\"\", \"\", IF(VLOOKUP(AN202,'Footnotes list'!$D$9:$E$58,2,FALSE)=0,\"\",VLOOKUP(AN202,'Footnotes list'!$D$9:$E$58,2,FALSE) ) )","v":""},null,null,null,null,{"$f":"IF(TRIM(AS202)=\"\", \"\", IF(VLOOKUP(AS202,'Footnotes list'!$D$9:$E$58,2,FALSE)=0,\"\",VLOOKUP(AS202,'Footnotes list'!$D$9:$E$58,2,FALSE) ) )","v":""},null,null,null,null,{"$f":"IF(TRIM(AX202)=\"\", \"\", IF(VLOOKUP(AX202,'Footnotes list'!$D$9:$E$58,2,FALSE)=0,\"\",VLOOKUP(AX202,'Footnotes list'!$D$9:$E$58,2,FALSE) ) )","v":""},null,null,null,null,{"$f":"IF(TRIM(BC202)=\"\", \"\", IF(VLOOKUP(BC202,'Footnotes list'!$D$9:$E$58,2,FALSE)=0,\"\",VLOOKUP(BC202,'Footnotes list'!$D$9:$E$58,2,FALSE) ) )","v":""},null,null,null,null,{"$f":"IF(TRIM(BH202)=\"\", \"\", IF(VLOOKUP(BH202,'Footnotes list'!$D$9:$E$58,2,FALSE)=0,\"\",VLOOKUP(BH202,'Footnotes list'!$D$9:$E$58,2,FALSE) ) )","v":""},null,null,null,null,{"$f":"IF(TRIM(BM202)=\"\", \"\", IF(VLOOKUP(BM202,'Footnotes list'!$D$9:$E$58,2,FALSE)=0,\"\",VLOOKUP(BM202,'Footnotes list'!$D$9:$E$58,2,FALSE) ) )","v":""},null,null,null,null,{"$f":"IF(TRIM(BR202)=\"\", \"\", IF(VLOOKUP(BR202,'Footnotes list'!$D$9:$E$58,2,FALSE)=0,\"\",VLOOKUP(BR202,'Footnotes list'!$D$9:$E$58,2,FALSE) ) )","v":""},null,null,null,null,{"$f":"IF(TRIM(BW202)=\"\", \"\", IF(VLOOKUP(BW202,'Footnotes list'!$D$9:$E$58,2,FALSE)=0,\"\",VLOOKUP(BW202,'Footnotes list'!$D$9:$E$58,2,FALSE) ) )","v":""},null,null,null,null,{"$f":"IF(TRIM(CB202)=\"\", \"\", IF(VLOOKUP(CB202,'Footnotes list'!$D$9:$E$58,2,FALSE)=0,\"\",VLOOKUP(CB202,'Footnotes list'!$D$9:$E$58,2,FALSE) ) )","v":""},null,null,null,null,{"$f":"IF(TRIM(CG202)=\"\", \"\", IF(VLOOKUP(CG202,'Footnotes list'!$D$9:$E$58,2,FALSE)=0,\"\",VLOOKUP(CG202,'Footnotes list'!$D$9:$E$58,2,FALSE) ) )","v":""},null,null,null,null,{"$f":"IF(TRIM(CL202)=\"\", \"\", IF(VLOOKUP(CL202,'Footnotes list'!$D$9:$E$58,2,FALSE)=0,\"\",VLOOKUP(CL202,'Footnotes list'!$D$9:$E$58,2,FALSE) ) )","v":""},null,null,null,null,{"$f":"IF(TRIM(CQ202)=\"\", \"\", IF(VLOOKUP(CQ202,'Footnotes list'!$D$9:$E$58,2,FALSE)=0,\"\",VLOOKUP(CQ202,'Footnotes list'!$D$9:$E$58,2,FALSE) ) )","v":""},null,null,null,null,{"$f":"IF(TRIM(CV202)=\"\", \"\", IF(VLOOKUP(CV202,'Footnotes list'!$D$9:$E$58,2,FALSE)=0,\"\",VLOOKUP(CV202,'Footnotes list'!$D$9:$E$58,2,FALSE) ) )","v":""},null,null,null,null,{"$f":"IF(TRIM(DA202)=\"\", \"\", IF(VLOOKUP(DA202,'Footnotes list'!$D$9:$E$58,2,FALSE)=0,\"\",VLOOKUP(DA202,'Footnotes list'!$D$9:$E$58,2,FALSE) ) )","v":""},null,null,null,null,{"$f":"IF(TRIM(DF202)=\"\", \"\", IF(VLOOKUP(DF202,'Footnotes list'!$D$9:$E$58,2,FALSE)=0,\"\",VLOOKUP(DF202,'Footnotes list'!$D$9:$E$58,2,FALSE) ) )","v":""},null,null,null,null,{"$f":"IF(TRIM(DK202)=\"\", \"\", IF(VLOOKUP(DK202,'Footnotes list'!$D$9:$E$58,2,FALSE)=0,\"\",VLOOKUP(DK202,'Footnotes list'!$D$9:$E$58,2,FALSE) ) )","v":""},null,null,null,null,{"$f":"IF(TRIM(DP202)=\"\", \"\", IF(VLOOKUP(DP202,'Footnotes list'!$D$9:$E$58,2,FALSE)=0,\"\",VLOOKUP(DP202,'Footnotes list'!$D$9:$E$58,2,FALSE) ) )","v":""},null,null,null,null,{"$f":"IF(TRIM(DU202)=\"\", \"\", IF(VLOOKUP(DU202,'Footnotes list'!$D$9:$E$58,2,FALSE)=0,\"\",VLOOKUP(DU202,'Footnotes list'!$D$9:$E$58,2,FALSE) ) )","v":""},null,null,null,null,{"$f":"IF(TRIM(DZ202)=\"\", \"\", IF(VLOOKUP(DZ202,'Footnotes list'!$D$9:$E$58,2,FALSE)=0,\"\",VLOOKUP(DZ202,'Footnotes list'!$D$9:$E$58,2,FALSE) ) )","v":""},null,null,null,null,{"$f":"IF(TRIM(EE202)=\"\", \"\", IF(VLOOKUP(EE202,'Footnotes list'!$D$9:$E$58,2,FALSE)=0,\"\",VLOOKUP(EE202,'Footnotes list'!$D$9:$E$58,2,FALSE) ) )","v":""},null,null,null,null,{"$f":"IF(TRIM(EJ202)=\"\", \"\", IF(VLOOKUP(EJ202,'Footnotes list'!$D$9:$E$58,2,FALSE)=0,\"\",VLOOKUP(EJ202,'Footnotes list'!$D$9:$E$58,2,FALSE) ) )","v":""},null,null,null,null,{"$f":"IF(TRIM(EO202)=\"\", \"\", IF(VLOOKUP(EO202,'Footnotes list'!$D$9:$E$58,2,FALSE)=0,\"\",VLOOKUP(EO202,'Footnotes list'!$D$9:$E$58,2,FALSE) ) )","v":""},null,null,null,null,{"$f":"IF(TRIM(ET202)=\"\", \"\", IF(VLOOKUP(ET202,'Footnotes list'!$D$9:$E$58,2,FALSE)=0,\"\",VLOOKUP(ET202,'Footnotes list'!$D$9:$E$58,2,FALSE) ) )","v":""},null,null,null,null,{"$f":"IF(TRIM(EY202)=\"\", \"\", IF(VLOOKUP(EY202,'Footnotes list'!$D$9:$E$58,2,FALSE)=0,\"\",VLOOKUP(EY202,'Footnotes list'!$D$9:$E$58,2,FALSE) ) )","v":""}]
[null,null,"J","C_REP","cleaner and resource efficient products",null,null,null,null,null,{"$f":"IF(TRIM(J203)=\"\", \"\", IF(VLOOKUP(J203,'Footnotes list'!$D$9:$E$58,2,FALSE)=0,\"\",VLOOKUP(J203,'Footnotes list'!$D$9:$E$58,2,FALSE) ) )","v":""},null,null,null,null,{"$f":"IF(TRIM(O203)=\"\", \"\", IF(VLOOKUP(O203,'Footnotes list'!$D$9:$E$58,2,FALSE)=0,\"\",VLOOKUP(O203,'Footnotes list'!$D$9:$E$58,2,FALSE) ) )","v":""},null,null,null,null,{"$f":"IF(TRIM(T203)=\"\", \"\", IF(VLOOKUP(T203,'Footnotes list'!$D$9:$E$58,2,FALSE)=0,\"\",VLOOKUP(T203,'Footnotes list'!$D$9:$E$58,2,FALSE) ) )","v":""},null,null,null,null,{"$f":"IF(TRIM(Y203)=\"\", \"\", IF(VLOOKUP(Y203,'Footnotes list'!$D$9:$E$58,2,FALSE)=0,\"\",VLOOKUP(Y203,'Footnotes list'!$D$9:$E$58,2,FALSE) ) )","v":""},null,null,null,null,{"$f":"IF(TRIM(AD203)=\"\", \"\", IF(VLOOKUP(AD203,'Footnotes list'!$D$9:$E$58,2,FALSE)=0,\"\",VLOOKUP(AD203,'Footnotes list'!$D$9:$E$58,2,FALSE) ) )","v":""},null,null,null,null,{"$f":"IF(TRIM(AI203)=\"\", \"\", IF(VLOOKUP(AI203,'Footnotes list'!$D$9:$E$58,2,FALSE)=0,\"\",VLOOKUP(AI203,'Footnotes list'!$D$9:$E$58,2,FALSE) ) )","v":""},null,null,null,null,{"$f":"IF(TRIM(AN203)=\"\", \"\", IF(VLOOKUP(AN203,'Footnotes list'!$D$9:$E$58,2,FALSE)=0,\"\",VLOOKUP(AN203,'Footnotes list'!$D$9:$E$58,2,FALSE) ) )","v":""},null,null,null,null,{"$f":"IF(TRIM(AS203)=\"\", \"\", IF(VLOOKUP(AS203,'Footnotes list'!$D$9:$E$58,2,FALSE)=0,\"\",VLOOKUP(AS203,'Footnotes list'!$D$9:$E$58,2,FALSE) ) )","v":""},null,null,null,null,{"$f":"IF(TRIM(AX203)=\"\", \"\", IF(VLOOKUP(AX203,'Footnotes list'!$D$9:$E$58,2,FALSE)=0,\"\",VLOOKUP(AX203,'Footnotes list'!$D$9:$E$58,2,FALSE) ) )","v":""},null,null,null,null,{"$f":"IF(TRIM(BC203)=\"\", \"\", IF(VLOOKUP(BC203,'Footnotes list'!$D$9:$E$58,2,FALSE)=0,\"\",VLOOKUP(BC203,'Footnotes list'!$D$9:$E$58,2,FALSE) ) )","v":""},null,null,null,null,{"$f":"IF(TRIM(BH203)=\"\", \"\", IF(VLOOKUP(BH203,'Footnotes list'!$D$9:$E$58,2,FALSE)=0,\"\",VLOOKUP(BH203,'Footnotes list'!$D$9:$E$58,2,FALSE) ) )","v":""},null,null,null,null,{"$f":"IF(TRIM(BM203)=\"\", \"\", IF(VLOOKUP(BM203,'Footnotes list'!$D$9:$E$58,2,FALSE)=0,\"\",VLOOKUP(BM203,'Footnotes list'!$D$9:$E$58,2,FALSE) ) )","v":""},null,null,null,null,{"$f":"IF(TRIM(BR203)=\"\", \"\", IF(VLOOKUP(BR203,'Footnotes list'!$D$9:$E$58,2,FALSE)=0,\"\",VLOOKUP(BR203,'Footnotes list'!$D$9:$E$58,2,FALSE) ) )","v":""},null,null,null,null,{"$f":"IF(TRIM(BW203)=\"\", \"\", IF(VLOOKUP(BW203,'Footnotes list'!$D$9:$E$58,2,FALSE)=0,\"\",VLOOKUP(BW203,'Footnotes list'!$D$9:$E$58,2,FALSE) ) )","v":""},null,null,null,null,{"$f":"IF(TRIM(CB203)=\"\", \"\", IF(VLOOKUP(CB203,'Footnotes list'!$D$9:$E$58,2,FALSE)=0,\"\",VLOOKUP(CB203,'Footnotes list'!$D$9:$E$58,2,FALSE) ) )","v":""},null,null,null,null,{"$f":"IF(TRIM(CG203)=\"\", \"\", IF(VLOOKUP(CG203,'Footnotes list'!$D$9:$E$58,2,FALSE)=0,\"\",VLOOKUP(CG203,'Footnotes list'!$D$9:$E$58,2,FALSE) ) )","v":""},null,null,null,null,{"$f":"IF(TRIM(CL203)=\"\", \"\", IF(VLOOKUP(CL203,'Footnotes list'!$D$9:$E$58,2,FALSE)=0,\"\",VLOOKUP(CL203,'Footnotes list'!$D$9:$E$58,2,FALSE) ) )","v":""},null,null,null,null,{"$f":"IF(TRIM(CQ203)=\"\", \"\", IF(VLOOKUP(CQ203,'Footnotes list'!$D$9:$E$58,2,FALSE)=0,\"\",VLOOKUP(CQ203,'Footnotes list'!$D$9:$E$58,2,FALSE) ) )","v":""},null,null,null,null,{"$f":"IF(TRIM(CV203)=\"\", \"\", IF(VLOOKUP(CV203,'Footnotes list'!$D$9:$E$58,2,FALSE)=0,\"\",VLOOKUP(CV203,'Footnotes list'!$D$9:$E$58,2,FALSE) ) )","v":""},null,null,null,null,{"$f":"IF(TRIM(DA203)=\"\", \"\", IF(VLOOKUP(DA203,'Footnotes list'!$D$9:$E$58,2,FALSE)=0,\"\",VLOOKUP(DA203,'Footnotes list'!$D$9:$E$58,2,FALSE) ) )","v":""},null,null,null,null,{"$f":"IF(TRIM(DF203)=\"\", \"\", IF(VLOOKUP(DF203,'Footnotes list'!$D$9:$E$58,2,FALSE)=0,\"\",VLOOKUP(DF203,'Footnotes list'!$D$9:$E$58,2,FALSE) ) )","v":""},null,null,null,null,{"$f":"IF(TRIM(DK203)=\"\", \"\", IF(VLOOKUP(DK203,'Footnotes list'!$D$9:$E$58,2,FALSE)=0,\"\",VLOOKUP(DK203,'Footnotes list'!$D$9:$E$58,2,FALSE) ) )","v":""},null,null,null,null,{"$f":"IF(TRIM(DP203)=\"\", \"\", IF(VLOOKUP(DP203,'Footnotes list'!$D$9:$E$58,2,FALSE)=0,\"\",VLOOKUP(DP203,'Footnotes list'!$D$9:$E$58,2,FALSE) ) )","v":""},null,null,null,null,{"$f":"IF(TRIM(DU203)=\"\", \"\", IF(VLOOKUP(DU203,'Footnotes list'!$D$9:$E$58,2,FALSE)=0,\"\",VLOOKUP(DU203,'Footnotes list'!$D$9:$E$58,2,FALSE) ) )","v":""},null,null,null,null,{"$f":"IF(TRIM(DZ203)=\"\", \"\", IF(VLOOKUP(DZ203,'Footnotes list'!$D$9:$E$58,2,FALSE)=0,\"\",VLOOKUP(DZ203,'Footnotes list'!$D$9:$E$58,2,FALSE) ) )","v":""},null,null,null,null,{"$f":"IF(TRIM(EE203)=\"\", \"\", IF(VLOOKUP(EE203,'Footnotes list'!$D$9:$E$58,2,FALSE)=0,\"\",VLOOKUP(EE203,'Footnotes list'!$D$9:$E$58,2,FALSE) ) )","v":""},null,null,null,null,{"$f":"IF(TRIM(EJ203)=\"\", \"\", IF(VLOOKUP(EJ203,'Footnotes list'!$D$9:$E$58,2,FALSE)=0,\"\",VLOOKUP(EJ203,'Footnotes list'!$D$9:$E$58,2,FALSE) ) )","v":""},null,null,null,null,{"$f":"IF(TRIM(EO203)=\"\", \"\", IF(VLOOKUP(EO203,'Footnotes list'!$D$9:$E$58,2,FALSE)=0,\"\",VLOOKUP(EO203,'Footnotes list'!$D$9:$E$58,2,FALSE) ) )","v":""},null,null,null,null,{"$f":"IF(TRIM(ET203)=\"\", \"\", IF(VLOOKUP(ET203,'Footnotes list'!$D$9:$E$58,2,FALSE)=0,\"\",VLOOKUP(ET203,'Footnotes list'!$D$9:$E$58,2,FALSE) ) )","v":""},null,null,null,null,{"$f":"IF(TRIM(EY203)=\"\", \"\", IF(VLOOKUP(EY203,'Footnotes list'!$D$9:$E$58,2,FALSE)=0,\"\",VLOOKUP(EY203,'Footnotes list'!$D$9:$E$58,2,FALSE) ) )","v":""}]
[null,null,"K","TOT_EGSS","Total K - Financial and insurance activities, of which:",null,null,null,null,null,{"$f":"IF(TRIM(J204)=\"\", \"\", IF(VLOOKUP(J204,'Footnotes list'!$D$9:$E$58,2,FALSE)=0,\"\",VLOOKUP(J204,'Footnotes list'!$D$9:$E$58,2,FALSE) ) )","v":""},null,null,null,null,{"$f":"IF(TRIM(O204)=\"\", \"\", IF(VLOOKUP(O204,'Footnotes list'!$D$9:$E$58,2,FALSE)=0,\"\",VLOOKUP(O204,'Footnotes list'!$D$9:$E$58,2,FALSE) ) )","v":""},null,null,null,null,{"$f":"IF(TRIM(T204)=\"\", \"\", IF(VLOOKUP(T204,'Footnotes list'!$D$9:$E$58,2,FALSE)=0,\"\",VLOOKUP(T204,'Footnotes list'!$D$9:$E$58,2,FALSE) ) )","v":""},null,null,null,null,{"$f":"IF(TRIM(Y204)=\"\", \"\", IF(VLOOKUP(Y204,'Footnotes list'!$D$9:$E$58,2,FALSE)=0,\"\",VLOOKUP(Y204,'Footnotes list'!$D$9:$E$58,2,FALSE) ) )","v":""},null,null,null,null,{"$f":"IF(TRIM(AD204)=\"\", \"\", IF(VLOOKUP(AD204,'Footnotes list'!$D$9:$E$58,2,FALSE)=0,\"\",VLOOKUP(AD204,'Footnotes list'!$D$9:$E$58,2,FALSE) ) )","v":""},null,null,null,null,{"$f":"IF(TRIM(AI204)=\"\", \"\", IF(VLOOKUP(AI204,'Footnotes list'!$D$9:$E$58,2,FALSE)=0,\"\",VLOOKUP(AI204,'Footnotes list'!$D$9:$E$58,2,FALSE) ) )","v":""},null,null,null,null,{"$f":"IF(TRIM(AN204)=\"\", \"\", IF(VLOOKUP(AN204,'Footnotes list'!$D$9:$E$58,2,FALSE)=0,\"\",VLOOKUP(AN204,'Footnotes list'!$D$9:$E$58,2,FALSE) ) )","v":""},null,null,null,null,{"$f":"IF(TRIM(AS204)=\"\", \"\", IF(VLOOKUP(AS204,'Footnotes list'!$D$9:$E$58,2,FALSE)=0,\"\",VLOOKUP(AS204,'Footnotes list'!$D$9:$E$58,2,FALSE) ) )","v":""},null,null,null,null,{"$f":"IF(TRIM(AX204)=\"\", \"\", IF(VLOOKUP(AX204,'Footnotes list'!$D$9:$E$58,2,FALSE)=0,\"\",VLOOKUP(AX204,'Footnotes list'!$D$9:$E$58,2,FALSE) ) )","v":""},null,null,null,null,{"$f":"IF(TRIM(BC204)=\"\", \"\", IF(VLOOKUP(BC204,'Footnotes list'!$D$9:$E$58,2,FALSE)=0,\"\",VLOOKUP(BC204,'Footnotes list'!$D$9:$E$58,2,FALSE) ) )","v":""},null,null,null,null,{"$f":"IF(TRIM(BH204)=\"\", \"\", IF(VLOOKUP(BH204,'Footnotes list'!$D$9:$E$58,2,FALSE)=0,\"\",VLOOKUP(BH204,'Footnotes list'!$D$9:$E$58,2,FALSE) ) )","v":""},null,null,null,null,{"$f":"IF(TRIM(BM204)=\"\", \"\", IF(VLOOKUP(BM204,'Footnotes list'!$D$9:$E$58,2,FALSE)=0,\"\",VLOOKUP(BM204,'Footnotes list'!$D$9:$E$58,2,FALSE) ) )","v":""},null,null,null,null,{"$f":"IF(TRIM(BR204)=\"\", \"\", IF(VLOOKUP(BR204,'Footnotes list'!$D$9:$E$58,2,FALSE)=0,\"\",VLOOKUP(BR204,'Footnotes list'!$D$9:$E$58,2,FALSE) ) )","v":""},null,null,null,null,{"$f":"IF(TRIM(BW204)=\"\", \"\", IF(VLOOKUP(BW204,'Footnotes list'!$D$9:$E$58,2,FALSE)=0,\"\",VLOOKUP(BW204,'Footnotes list'!$D$9:$E$58,2,FALSE) ) )","v":""},null,null,null,null,{"$f":"IF(TRIM(CB204)=\"\", \"\", IF(VLOOKUP(CB204,'Footnotes list'!$D$9:$E$58,2,FALSE)=0,\"\",VLOOKUP(CB204,'Footnotes list'!$D$9:$E$58,2,FALSE) ) )","v":""},null,null,null,null,{"$f":"IF(TRIM(CG204)=\"\", \"\", IF(VLOOKUP(CG204,'Footnotes list'!$D$9:$E$58,2,FALSE)=0,\"\",VLOOKUP(CG204,'Footnotes list'!$D$9:$E$58,2,FALSE) ) )","v":""},null,null,null,null,{"$f":"IF(TRIM(CL204)=\"\", \"\", IF(VLOOKUP(CL204,'Footnotes list'!$D$9:$E$58,2,FALSE)=0,\"\",VLOOKUP(CL204,'Footnotes list'!$D$9:$E$58,2,FALSE) ) )","v":""},null,null,null,null,{"$f":"IF(TRIM(CQ204)=\"\", \"\", IF(VLOOKUP(CQ204,'Footnotes list'!$D$9:$E$58,2,FALSE)=0,\"\",VLOOKUP(CQ204,'Footnotes list'!$D$9:$E$58,2,FALSE) ) )","v":""},null,null,null,null,{"$f":"IF(TRIM(CV204)=\"\", \"\", IF(VLOOKUP(CV204,'Footnotes list'!$D$9:$E$58,2,FALSE)=0,\"\",VLOOKUP(CV204,'Footnotes list'!$D$9:$E$58,2,FALSE) ) )","v":""},null,null,null,null,{"$f":"IF(TRIM(DA204)=\"\", \"\", IF(VLOOKUP(DA204,'Footnotes list'!$D$9:$E$58,2,FALSE)=0,\"\",VLOOKUP(DA204,'Footnotes list'!$D$9:$E$58,2,FALSE) ) )","v":""},null,null,null,null,{"$f":"IF(TRIM(DF204)=\"\", \"\", IF(VLOOKUP(DF204,'Footnotes list'!$D$9:$E$58,2,FALSE)=0,\"\",VLOOKUP(DF204,'Footnotes list'!$D$9:$E$58,2,FALSE) ) )","v":""},null,null,null,null,{"$f":"IF(TRIM(DK204)=\"\", \"\", IF(VLOOKUP(DK204,'Footnotes list'!$D$9:$E$58,2,FALSE)=0,\"\",VLOOKUP(DK204,'Footnotes list'!$D$9:$E$58,2,FALSE) ) )","v":""},null,null,null,null,{"$f":"IF(TRIM(DP204)=\"\", \"\", IF(VLOOKUP(DP204,'Footnotes list'!$D$9:$E$58,2,FALSE)=0,\"\",VLOOKUP(DP204,'Footnotes list'!$D$9:$E$58,2,FALSE) ) )","v":""},null,null,null,null,{"$f":"IF(TRIM(DU204)=\"\", \"\", IF(VLOOKUP(DU204,'Footnotes list'!$D$9:$E$58,2,FALSE)=0,\"\",VLOOKUP(DU204,'Footnotes list'!$D$9:$E$58,2,FALSE) ) )","v":""},null,null,null,null,{"$f":"IF(TRIM(DZ204)=\"\", \"\", IF(VLOOKUP(DZ204,'Footnotes list'!$D$9:$E$58,2,FALSE)=0,\"\",VLOOKUP(DZ204,'Footnotes list'!$D$9:$E$58,2,FALSE) ) )","v":""},null,null,null,null,{"$f":"IF(TRIM(EE204)=\"\", \"\", IF(VLOOKUP(EE204,'Footnotes list'!$D$9:$E$58,2,FALSE)=0,\"\",VLOOKUP(EE204,'Footnotes list'!$D$9:$E$58,2,FALSE) ) )","v":""},null,null,null,null,{"$f":"IF(TRIM(EJ204)=\"\", \"\", IF(VLOOKUP(EJ204,'Footnotes list'!$D$9:$E$58,2,FALSE)=0,\"\",VLOOKUP(EJ204,'Footnotes list'!$D$9:$E$58,2,FALSE) ) )","v":""},null,null,null,null,{"$f":"IF(TRIM(EO204)=\"\", \"\", IF(VLOOKUP(EO204,'Footnotes list'!$D$9:$E$58,2,FALSE)=0,\"\",VLOOKUP(EO204,'Footnotes list'!$D$9:$E$58,2,FALSE) ) )","v":""},null,null,null,null,{"$f":"IF(TRIM(ET204)=\"\", \"\", IF(VLOOKUP(ET204,'Footnotes list'!$D$9:$E$58,2,FALSE)=0,\"\",VLOOKUP(ET204,'Footnotes list'!$D$9:$E$58,2,FALSE) ) )","v":""},null,null,null,null,{"$f":"IF(TRIM(EY204)=\"\", \"\", IF(VLOOKUP(EY204,'Footnotes list'!$D$9:$E$58,2,FALSE)=0,\"\",VLOOKUP(EY204,'Footnotes list'!$D$9:$E$58,2,FALSE) ) )","v":""}]
[null,null,"K","ANC","ancillary activities",null,null,null,null,null,{"$f":"IF(TRIM(J205)=\"\", \"\", IF(VLOOKUP(J205,'Footnotes list'!$D$9:$E$58,2,FALSE)=0,\"\",VLOOKUP(J205,'Footnotes list'!$D$9:$E$58,2,FALSE) ) )","v":""},null,null,null,null,{"$f":"IF(TRIM(O205)=\"\", \"\", IF(VLOOKUP(O205,'Footnotes list'!$D$9:$E$58,2,FALSE)=0,\"\",VLOOKUP(O205,'Footnotes list'!$D$9:$E$58,2,FALSE) ) )","v":""},null,null,null,null,{"$f":"IF(TRIM(T205)=\"\", \"\", IF(VLOOKUP(T205,'Footnotes list'!$D$9:$E$58,2,FALSE)=0,\"\",VLOOKUP(T205,'Footnotes list'!$D$9:$E$58,2,FALSE) ) )","v":""},null,null,null,null,{"$f":"IF(TRIM(Y205)=\"\", \"\", IF(VLOOKUP(Y205,'Footnotes list'!$D$9:$E$58,2,FALSE)=0,\"\",VLOOKUP(Y205,'Footnotes list'!$D$9:$E$58,2,FALSE) ) )","v":""},null,null,null,null,{"$f":"IF(TRIM(AD205)=\"\", \"\", IF(VLOOKUP(AD205,'Footnotes list'!$D$9:$E$58,2,FALSE)=0,\"\",VLOOKUP(AD205,'Footnotes list'!$D$9:$E$58,2,FALSE) ) )","v":""},null,null,null,null,{"$f":"IF(TRIM(AI205)=\"\", \"\", IF(VLOOKUP(AI205,'Footnotes list'!$D$9:$E$58,2,FALSE)=0,\"\",VLOOKUP(AI205,'Footnotes list'!$D$9:$E$58,2,FALSE) ) )","v":""},null,null,null,null,{"$f":"IF(TRIM(AN205)=\"\", \"\", IF(VLOOKUP(AN205,'Footnotes list'!$D$9:$E$58,2,FALSE)=0,\"\",VLOOKUP(AN205,'Footnotes list'!$D$9:$E$58,2,FALSE) ) )","v":""},null,null,null,null,{"$f":"IF(TRIM(AS205)=\"\", \"\", IF(VLOOKUP(AS205,'Footnotes list'!$D$9:$E$58,2,FALSE)=0,\"\",VLOOKUP(AS205,'Footnotes list'!$D$9:$E$58,2,FALSE) ) )","v":""},null,null,null,null,{"$f":"IF(TRIM(AX205)=\"\", \"\", IF(VLOOKUP(AX205,'Footnotes list'!$D$9:$E$58,2,FALSE)=0,\"\",VLOOKUP(AX205,'Footnotes list'!$D$9:$E$58,2,FALSE) ) )","v":""},null,null,null,null,{"$f":"IF(TRIM(BC205)=\"\", \"\", IF(VLOOKUP(BC205,'Footnotes list'!$D$9:$E$58,2,FALSE)=0,\"\",VLOOKUP(BC205,'Footnotes list'!$D$9:$E$58,2,FALSE) ) )","v":""},null,null,null,null,{"$f":"IF(TRIM(BH205)=\"\", \"\", IF(VLOOKUP(BH205,'Footnotes list'!$D$9:$E$58,2,FALSE)=0,\"\",VLOOKUP(BH205,'Footnotes list'!$D$9:$E$58,2,FALSE) ) )","v":""},null,null,null,null,{"$f":"IF(TRIM(BM205)=\"\", \"\", IF(VLOOKUP(BM205,'Footnotes list'!$D$9:$E$58,2,FALSE)=0,\"\",VLOOKUP(BM205,'Footnotes list'!$D$9:$E$58,2,FALSE) ) )","v":""},null,null,null,null,{"$f":"IF(TRIM(BR205)=\"\", \"\", IF(VLOOKUP(BR205,'Footnotes list'!$D$9:$E$58,2,FALSE)=0,\"\",VLOOKUP(BR205,'Footnotes list'!$D$9:$E$58,2,FALSE) ) )","v":""},null,null,null,null,{"$f":"IF(TRIM(BW205)=\"\", \"\", IF(VLOOKUP(BW205,'Footnotes list'!$D$9:$E$58,2,FALSE)=0,\"\",VLOOKUP(BW205,'Footnotes list'!$D$9:$E$58,2,FALSE) ) )","v":""},null,null,null,null,{"$f":"IF(TRIM(CB205)=\"\", \"\", IF(VLOOKUP(CB205,'Footnotes list'!$D$9:$E$58,2,FALSE)=0,\"\",VLOOKUP(CB205,'Footnotes list'!$D$9:$E$58,2,FALSE) ) )","v":""},null,null,null,null,{"$f":"IF(TRIM(CG205)=\"\", \"\", IF(VLOOKUP(CG205,'Footnotes list'!$D$9:$E$58,2,FALSE)=0,\"\",VLOOKUP(CG205,'Footnotes list'!$D$9:$E$58,2,FALSE) ) )","v":""},null,null,null,null,{"$f":"IF(TRIM(CL205)=\"\", \"\", IF(VLOOKUP(CL205,'Footnotes list'!$D$9:$E$58,2,FALSE)=0,\"\",VLOOKUP(CL205,'Footnotes list'!$D$9:$E$58,2,FALSE) ) )","v":""},null,null,null,null,{"$f":"IF(TRIM(CQ205)=\"\", \"\", IF(VLOOKUP(CQ205,'Footnotes list'!$D$9:$E$58,2,FALSE)=0,\"\",VLOOKUP(CQ205,'Footnotes list'!$D$9:$E$58,2,FALSE) ) )","v":""},null,null,null,null,{"$f":"IF(TRIM(CV205)=\"\", \"\", IF(VLOOKUP(CV205,'Footnotes list'!$D$9:$E$58,2,FALSE)=0,\"\",VLOOKUP(CV205,'Footnotes list'!$D$9:$E$58,2,FALSE) ) )","v":""},null,null,null,null,{"$f":"IF(TRIM(DA205)=\"\", \"\", IF(VLOOKUP(DA205,'Footnotes list'!$D$9:$E$58,2,FALSE)=0,\"\",VLOOKUP(DA205,'Footnotes list'!$D$9:$E$58,2,FALSE) ) )","v":""},null,null,null,null,{"$f":"IF(TRIM(DF205)=\"\", \"\", IF(VLOOKUP(DF205,'Footnotes list'!$D$9:$E$58,2,FALSE)=0,\"\",VLOOKUP(DF205,'Footnotes list'!$D$9:$E$58,2,FALSE) ) )","v":""},null,null,null,null,{"$f":"IF(TRIM(DK205)=\"\", \"\", IF(VLOOKUP(DK205,'Footnotes list'!$D$9:$E$58,2,FALSE)=0,\"\",VLOOKUP(DK205,'Footnotes list'!$D$9:$E$58,2,FALSE) ) )","v":""},null,null,null,null,{"$f":"IF(TRIM(DP205)=\"\", \"\", IF(VLOOKUP(DP205,'Footnotes list'!$D$9:$E$58,2,FALSE)=0,\"\",VLOOKUP(DP205,'Footnotes list'!$D$9:$E$58,2,FALSE) ) )","v":""},null,null,null,null,{"$f":"IF(TRIM(DU205)=\"\", \"\", IF(VLOOKUP(DU205,'Footnotes list'!$D$9:$E$58,2,FALSE)=0,\"\",VLOOKUP(DU205,'Footnotes list'!$D$9:$E$58,2,FALSE) ) )","v":""},null,null,null,null,{"$f":"IF(TRIM(DZ205)=\"\", \"\", IF(VLOOKUP(DZ205,'Footnotes list'!$D$9:$E$58,2,FALSE)=0,\"\",VLOOKUP(DZ205,'Footnotes list'!$D$9:$E$58,2,FALSE) ) )","v":""},null,null,null,null,{"$f":"IF(TRIM(EE205)=\"\", \"\", IF(VLOOKUP(EE205,'Footnotes list'!$D$9:$E$58,2,FALSE)=0,\"\",VLOOKUP(EE205,'Footnotes list'!$D$9:$E$58,2,FALSE) ) )","v":""},null,null,null,null,{"$f":"IF(TRIM(EJ205)=\"\", \"\", IF(VLOOKUP(EJ205,'Footnotes list'!$D$9:$E$58,2,FALSE)=0,\"\",VLOOKUP(EJ205,'Footnotes list'!$D$9:$E$58,2,FALSE) ) )","v":""},null,null,null,null,{"$f":"IF(TRIM(EO205)=\"\", \"\", IF(VLOOKUP(EO205,'Footnotes list'!$D$9:$E$58,2,FALSE)=0,\"\",VLOOKUP(EO205,'Footnotes list'!$D$9:$E$58,2,FALSE) ) )","v":""},null,null,null,null,{"$f":"IF(TRIM(ET205)=\"\", \"\", IF(VLOOKUP(ET205,'Footnotes list'!$D$9:$E$58,2,FALSE)=0,\"\",VLOOKUP(ET205,'Footnotes list'!$D$9:$E$58,2,FALSE) ) )","v":""},null,null,null,null,{"$f":"IF(TRIM(EY205)=\"\", \"\", IF(VLOOKUP(EY205,'Footnotes list'!$D$9:$E$58,2,FALSE)=0,\"\",VLOOKUP(EY205,'Footnotes list'!$D$9:$E$58,2,FALSE) ) )","v":""}]
[null,null,"K","NMKT","non-market activities",null,null,null,null,null,{"$f":"IF(TRIM(J206)=\"\", \"\", IF(VLOOKUP(J206,'Footnotes list'!$D$9:$E$58,2,FALSE)=0,\"\",VLOOKUP(J206,'Footnotes list'!$D$9:$E$58,2,FALSE) ) )","v":""},null,null,null,null,{"$f":"IF(TRIM(O206)=\"\", \"\", IF(VLOOKUP(O206,'Footnotes list'!$D$9:$E$58,2,FALSE)=0,\"\",VLOOKUP(O206,'Footnotes list'!$D$9:$E$58,2,FALSE) ) )","v":""},null,null,null,null,{"$f":"IF(TRIM(T206)=\"\", \"\", IF(VLOOKUP(T206,'Footnotes list'!$D$9:$E$58,2,FALSE)=0,\"\",VLOOKUP(T206,'Footnotes list'!$D$9:$E$58,2,FALSE) ) )","v":""},null,null,null,null,{"$f":"IF(TRIM(Y206)=\"\", \"\", IF(VLOOKUP(Y206,'Footnotes list'!$D$9:$E$58,2,FALSE)=0,\"\",VLOOKUP(Y206,'Footnotes list'!$D$9:$E$58,2,FALSE) ) )","v":""},null,null,null,null,{"$f":"IF(TRIM(AD206)=\"\", \"\", IF(VLOOKUP(AD206,'Footnotes list'!$D$9:$E$58,2,FALSE)=0,\"\",VLOOKUP(AD206,'Footnotes list'!$D$9:$E$58,2,FALSE) ) )","v":""},null,null,null,null,{"$f":"IF(TRIM(AI206)=\"\", \"\", IF(VLOOKUP(AI206,'Footnotes list'!$D$9:$E$58,2,FALSE)=0,\"\",VLOOKUP(AI206,'Footnotes list'!$D$9:$E$58,2,FALSE) ) )","v":""},null,null,null,null,{"$f":"IF(TRIM(AN206)=\"\", \"\", IF(VLOOKUP(AN206,'Footnotes list'!$D$9:$E$58,2,FALSE)=0,\"\",VLOOKUP(AN206,'Footnotes list'!$D$9:$E$58,2,FALSE) ) )","v":""},null,null,null,null,{"$f":"IF(TRIM(AS206)=\"\", \"\", IF(VLOOKUP(AS206,'Footnotes list'!$D$9:$E$58,2,FALSE)=0,\"\",VLOOKUP(AS206,'Footnotes list'!$D$9:$E$58,2,FALSE) ) )","v":""},null,null,null,null,{"$f":"IF(TRIM(AX206)=\"\", \"\", IF(VLOOKUP(AX206,'Footnotes list'!$D$9:$E$58,2,FALSE)=0,\"\",VLOOKUP(AX206,'Footnotes list'!$D$9:$E$58,2,FALSE) ) )","v":""},null,null,null,null,{"$f":"IF(TRIM(BC206)=\"\", \"\", IF(VLOOKUP(BC206,'Footnotes list'!$D$9:$E$58,2,FALSE)=0,\"\",VLOOKUP(BC206,'Footnotes list'!$D$9:$E$58,2,FALSE) ) )","v":""},null,null,null,null,{"$f":"IF(TRIM(BH206)=\"\", \"\", IF(VLOOKUP(BH206,'Footnotes list'!$D$9:$E$58,2,FALSE)=0,\"\",VLOOKUP(BH206,'Footnotes list'!$D$9:$E$58,2,FALSE) ) )","v":""},null,null,null,null,{"$f":"IF(TRIM(BM206)=\"\", \"\", IF(VLOOKUP(BM206,'Footnotes list'!$D$9:$E$58,2,FALSE)=0,\"\",VLOOKUP(BM206,'Footnotes list'!$D$9:$E$58,2,FALSE) ) )","v":""},null,null,null,null,{"$f":"IF(TRIM(BR206)=\"\", \"\", IF(VLOOKUP(BR206,'Footnotes list'!$D$9:$E$58,2,FALSE)=0,\"\",VLOOKUP(BR206,'Footnotes list'!$D$9:$E$58,2,FALSE) ) )","v":""},null,null,null,null,{"$f":"IF(TRIM(BW206)=\"\", \"\", IF(VLOOKUP(BW206,'Footnotes list'!$D$9:$E$58,2,FALSE)=0,\"\",VLOOKUP(BW206,'Footnotes list'!$D$9:$E$58,2,FALSE) ) )","v":""},null,null,null,null,{"$f":"IF(TRIM(CB206)=\"\", \"\", IF(VLOOKUP(CB206,'Footnotes list'!$D$9:$E$58,2,FALSE)=0,\"\",VLOOKUP(CB206,'Footnotes list'!$D$9:$E$58,2,FALSE) ) )","v":""},null,null,null,null,{"$f":"IF(TRIM(CG206)=\"\", \"\", IF(VLOOKUP(CG206,'Footnotes list'!$D$9:$E$58,2,FALSE)=0,\"\",VLOOKUP(CG206,'Footnotes list'!$D$9:$E$58,2,FALSE) ) )","v":""},null,null,null,null,{"$f":"IF(TRIM(CL206)=\"\", \"\", IF(VLOOKUP(CL206,'Footnotes list'!$D$9:$E$58,2,FALSE)=0,\"\",VLOOKUP(CL206,'Footnotes list'!$D$9:$E$58,2,FALSE) ) )","v":""},null,null,null,null,{"$f":"IF(TRIM(CQ206)=\"\", \"\", IF(VLOOKUP(CQ206,'Footnotes list'!$D$9:$E$58,2,FALSE)=0,\"\",VLOOKUP(CQ206,'Footnotes list'!$D$9:$E$58,2,FALSE) ) )","v":""},null,null,null,null,{"$f":"IF(TRIM(CV206)=\"\", \"\", IF(VLOOKUP(CV206,'Footnotes list'!$D$9:$E$58,2,FALSE)=0,\"\",VLOOKUP(CV206,'Footnotes list'!$D$9:$E$58,2,FALSE) ) )","v":""},null,null,null,null,{"$f":"IF(TRIM(DA206)=\"\", \"\", IF(VLOOKUP(DA206,'Footnotes list'!$D$9:$E$58,2,FALSE)=0,\"\",VLOOKUP(DA206,'Footnotes list'!$D$9:$E$58,2,FALSE) ) )","v":""},null,null,null,null,{"$f":"IF(TRIM(DF206)=\"\", \"\", IF(VLOOKUP(DF206,'Footnotes list'!$D$9:$E$58,2,FALSE)=0,\"\",VLOOKUP(DF206,'Footnotes list'!$D$9:$E$58,2,FALSE) ) )","v":""},null,null,null,null,{"$f":"IF(TRIM(DK206)=\"\", \"\", IF(VLOOKUP(DK206,'Footnotes list'!$D$9:$E$58,2,FALSE)=0,\"\",VLOOKUP(DK206,'Footnotes list'!$D$9:$E$58,2,FALSE) ) )","v":""},null,null,null,null,{"$f":"IF(TRIM(DP206)=\"\", \"\", IF(VLOOKUP(DP206,'Footnotes list'!$D$9:$E$58,2,FALSE)=0,\"\",VLOOKUP(DP206,'Footnotes list'!$D$9:$E$58,2,FALSE) ) )","v":""},null,null,null,null,{"$f":"IF(TRIM(DU206)=\"\", \"\", IF(VLOOKUP(DU206,'Footnotes list'!$D$9:$E$58,2,FALSE)=0,\"\",VLOOKUP(DU206,'Footnotes list'!$D$9:$E$58,2,FALSE) ) )","v":""},null,null,null,null,{"$f":"IF(TRIM(DZ206)=\"\", \"\", IF(VLOOKUP(DZ206,'Footnotes list'!$D$9:$E$58,2,FALSE)=0,\"\",VLOOKUP(DZ206,'Footnotes list'!$D$9:$E$58,2,FALSE) ) )","v":""},null,null,null,null,{"$f":"IF(TRIM(EE206)=\"\", \"\", IF(VLOOKUP(EE206,'Footnotes list'!$D$9:$E$58,2,FALSE)=0,\"\",VLOOKUP(EE206,'Footnotes list'!$D$9:$E$58,2,FALSE) ) )","v":""},null,null,null,null,{"$f":"IF(TRIM(EJ206)=\"\", \"\", IF(VLOOKUP(EJ206,'Footnotes list'!$D$9:$E$58,2,FALSE)=0,\"\",VLOOKUP(EJ206,'Footnotes list'!$D$9:$E$58,2,FALSE) ) )","v":""},null,null,null,null,{"$f":"IF(TRIM(EO206)=\"\", \"\", IF(VLOOKUP(EO206,'Footnotes list'!$D$9:$E$58,2,FALSE)=0,\"\",VLOOKUP(EO206,'Footnotes list'!$D$9:$E$58,2,FALSE) ) )","v":""},null,null,null,null,{"$f":"IF(TRIM(ET206)=\"\", \"\", IF(VLOOKUP(ET206,'Footnotes list'!$D$9:$E$58,2,FALSE)=0,\"\",VLOOKUP(ET206,'Footnotes list'!$D$9:$E$58,2,FALSE) ) )","v":""},null,null,null,null,{"$f":"IF(TRIM(EY206)=\"\", \"\", IF(VLOOKUP(EY206,'Footnotes list'!$D$9:$E$58,2,FALSE)=0,\"\",VLOOKUP(EY206,'Footnotes list'!$D$9:$E$58,2,FALSE) ) )","v":""}]
[null,null,"K","OWN_USE","activities for own final use",null,null,null,null,null,{"$f":"IF(TRIM(J207)=\"\", \"\", IF(VLOOKUP(J207,'Footnotes list'!$D$9:$E$58,2,FALSE)=0,\"\",VLOOKUP(J207,'Footnotes list'!$D$9:$E$58,2,FALSE) ) )","v":""},null,null,null,null,{"$f":"IF(TRIM(O207)=\"\", \"\", IF(VLOOKUP(O207,'Footnotes list'!$D$9:$E$58,2,FALSE)=0,\"\",VLOOKUP(O207,'Footnotes list'!$D$9:$E$58,2,FALSE) ) )","v":""},null,null,null,null,{"$f":"IF(TRIM(T207)=\"\", \"\", IF(VLOOKUP(T207,'Footnotes list'!$D$9:$E$58,2,FALSE)=0,\"\",VLOOKUP(T207,'Footnotes list'!$D$9:$E$58,2,FALSE) ) )","v":""},null,null,null,null,{"$f":"IF(TRIM(Y207)=\"\", \"\", IF(VLOOKUP(Y207,'Footnotes list'!$D$9:$E$58,2,FALSE)=0,\"\",VLOOKUP(Y207,'Footnotes list'!$D$9:$E$58,2,FALSE) ) )","v":""},null,null,null,null,{"$f":"IF(TRIM(AD207)=\"\", \"\", IF(VLOOKUP(AD207,'Footnotes list'!$D$9:$E$58,2,FALSE)=0,\"\",VLOOKUP(AD207,'Footnotes list'!$D$9:$E$58,2,FALSE) ) )","v":""},null,null,null,null,{"$f":"IF(TRIM(AI207)=\"\", \"\", IF(VLOOKUP(AI207,'Footnotes list'!$D$9:$E$58,2,FALSE)=0,\"\",VLOOKUP(AI207,'Footnotes list'!$D$9:$E$58,2,FALSE) ) )","v":""},null,null,null,null,{"$f":"IF(TRIM(AN207)=\"\", \"\", IF(VLOOKUP(AN207,'Footnotes list'!$D$9:$E$58,2,FALSE)=0,\"\",VLOOKUP(AN207,'Footnotes list'!$D$9:$E$58,2,FALSE) ) )","v":""},null,null,null,null,{"$f":"IF(TRIM(AS207)=\"\", \"\", IF(VLOOKUP(AS207,'Footnotes list'!$D$9:$E$58,2,FALSE)=0,\"\",VLOOKUP(AS207,'Footnotes list'!$D$9:$E$58,2,FALSE) ) )","v":""},null,null,null,null,{"$f":"IF(TRIM(AX207)=\"\", \"\", IF(VLOOKUP(AX207,'Footnotes list'!$D$9:$E$58,2,FALSE)=0,\"\",VLOOKUP(AX207,'Footnotes list'!$D$9:$E$58,2,FALSE) ) )","v":""},null,null,null,null,{"$f":"IF(TRIM(BC207)=\"\", \"\", IF(VLOOKUP(BC207,'Footnotes list'!$D$9:$E$58,2,FALSE)=0,\"\",VLOOKUP(BC207,'Footnotes list'!$D$9:$E$58,2,FALSE) ) )","v":""},null,null,null,null,{"$f":"IF(TRIM(BH207)=\"\", \"\", IF(VLOOKUP(BH207,'Footnotes list'!$D$9:$E$58,2,FALSE)=0,\"\",VLOOKUP(BH207,'Footnotes list'!$D$9:$E$58,2,FALSE) ) )","v":""},null,null,null,null,{"$f":"IF(TRIM(BM207)=\"\", \"\", IF(VLOOKUP(BM207,'Footnotes list'!$D$9:$E$58,2,FALSE)=0,\"\",VLOOKUP(BM207,'Footnotes list'!$D$9:$E$58,2,FALSE) ) )","v":""},null,null,null,null,{"$f":"IF(TRIM(BR207)=\"\", \"\", IF(VLOOKUP(BR207,'Footnotes list'!$D$9:$E$58,2,FALSE)=0,\"\",VLOOKUP(BR207,'Footnotes list'!$D$9:$E$58,2,FALSE) ) )","v":""},null,null,null,null,{"$f":"IF(TRIM(BW207)=\"\", \"\", IF(VLOOKUP(BW207,'Footnotes list'!$D$9:$E$58,2,FALSE)=0,\"\",VLOOKUP(BW207,'Footnotes list'!$D$9:$E$58,2,FALSE) ) )","v":""},null,null,null,null,{"$f":"IF(TRIM(CB207)=\"\", \"\", IF(VLOOKUP(CB207,'Footnotes list'!$D$9:$E$58,2,FALSE)=0,\"\",VLOOKUP(CB207,'Footnotes list'!$D$9:$E$58,2,FALSE) ) )","v":""},null,null,null,null,{"$f":"IF(TRIM(CG207)=\"\", \"\", IF(VLOOKUP(CG207,'Footnotes list'!$D$9:$E$58,2,FALSE)=0,\"\",VLOOKUP(CG207,'Footnotes list'!$D$9:$E$58,2,FALSE) ) )","v":""},null,null,null,null,{"$f":"IF(TRIM(CL207)=\"\", \"\", IF(VLOOKUP(CL207,'Footnotes list'!$D$9:$E$58,2,FALSE)=0,\"\",VLOOKUP(CL207,'Footnotes list'!$D$9:$E$58,2,FALSE) ) )","v":""},null,null,null,null,{"$f":"IF(TRIM(CQ207)=\"\", \"\", IF(VLOOKUP(CQ207,'Footnotes list'!$D$9:$E$58,2,FALSE)=0,\"\",VLOOKUP(CQ207,'Footnotes list'!$D$9:$E$58,2,FALSE) ) )","v":""},null,null,null,null,{"$f":"IF(TRIM(CV207)=\"\", \"\", IF(VLOOKUP(CV207,'Footnotes list'!$D$9:$E$58,2,FALSE)=0,\"\",VLOOKUP(CV207,'Footnotes list'!$D$9:$E$58,2,FALSE) ) )","v":""},null,null,null,null,{"$f":"IF(TRIM(DA207)=\"\", \"\", IF(VLOOKUP(DA207,'Footnotes list'!$D$9:$E$58,2,FALSE)=0,\"\",VLOOKUP(DA207,'Footnotes list'!$D$9:$E$58,2,FALSE) ) )","v":""},null,null,null,null,{"$f":"IF(TRIM(DF207)=\"\", \"\", IF(VLOOKUP(DF207,'Footnotes list'!$D$9:$E$58,2,FALSE)=0,\"\",VLOOKUP(DF207,'Footnotes list'!$D$9:$E$58,2,FALSE) ) )","v":""},null,null,null,null,{"$f":"IF(TRIM(DK207)=\"\", \"\", IF(VLOOKUP(DK207,'Footnotes list'!$D$9:$E$58,2,FALSE)=0,\"\",VLOOKUP(DK207,'Footnotes list'!$D$9:$E$58,2,FALSE) ) )","v":""},null,null,null,null,{"$f":"IF(TRIM(DP207)=\"\", \"\", IF(VLOOKUP(DP207,'Footnotes list'!$D$9:$E$58,2,FALSE)=0,\"\",VLOOKUP(DP207,'Footnotes list'!$D$9:$E$58,2,FALSE) ) )","v":""},null,null,null,null,{"$f":"IF(TRIM(DU207)=\"\", \"\", IF(VLOOKUP(DU207,'Footnotes list'!$D$9:$E$58,2,FALSE)=0,\"\",VLOOKUP(DU207,'Footnotes list'!$D$9:$E$58,2,FALSE) ) )","v":""},null,null,null,null,{"$f":"IF(TRIM(DZ207)=\"\", \"\", IF(VLOOKUP(DZ207,'Footnotes list'!$D$9:$E$58,2,FALSE)=0,\"\",VLOOKUP(DZ207,'Footnotes list'!$D$9:$E$58,2,FALSE) ) )","v":""},null,null,null,null,{"$f":"IF(TRIM(EE207)=\"\", \"\", IF(VLOOKUP(EE207,'Footnotes list'!$D$9:$E$58,2,FALSE)=0,\"\",VLOOKUP(EE207,'Footnotes list'!$D$9:$E$58,2,FALSE) ) )","v":""},null,null,null,null,{"$f":"IF(TRIM(EJ207)=\"\", \"\", IF(VLOOKUP(EJ207,'Footnotes list'!$D$9:$E$58,2,FALSE)=0,\"\",VLOOKUP(EJ207,'Footnotes list'!$D$9:$E$58,2,FALSE) ) )","v":""},null,null,null,null,{"$f":"IF(TRIM(EO207)=\"\", \"\", IF(VLOOKUP(EO207,'Footnotes list'!$D$9:$E$58,2,FALSE)=0,\"\",VLOOKUP(EO207,'Footnotes list'!$D$9:$E$58,2,FALSE) ) )","v":""},null,null,null,null,{"$f":"IF(TRIM(ET207)=\"\", \"\", IF(VLOOKUP(ET207,'Footnotes list'!$D$9:$E$58,2,FALSE)=0,\"\",VLOOKUP(ET207,'Footnotes list'!$D$9:$E$58,2,FALSE) ) )","v":""},null,null,null,null,{"$f":"IF(TRIM(EY207)=\"\", \"\", IF(VLOOKUP(EY207,'Footnotes list'!$D$9:$E$58,2,FALSE)=0,\"\",VLOOKUP(EY207,'Footnotes list'!$D$9:$E$58,2,FALSE) ) )","v":""}]
[null,null,"K","MKT","market activities, including:",null,null,null,null,null,{"$f":"IF(TRIM(J208)=\"\", \"\", IF(VLOOKUP(J208,'Footnotes list'!$D$9:$E$58,2,FALSE)=0,\"\",VLOOKUP(J208,'Footnotes list'!$D$9:$E$58,2,FALSE) ) )","v":""},null,null,null,null,{"$f":"IF(TRIM(O208)=\"\", \"\", IF(VLOOKUP(O208,'Footnotes list'!$D$9:$E$58,2,FALSE)=0,\"\",VLOOKUP(O208,'Footnotes list'!$D$9:$E$58,2,FALSE) ) )","v":""},null,null,null,null,{"$f":"IF(TRIM(T208)=\"\", \"\", IF(VLOOKUP(T208,'Footnotes list'!$D$9:$E$58,2,FALSE)=0,\"\",VLOOKUP(T208,'Footnotes list'!$D$9:$E$58,2,FALSE) ) )","v":""},null,null,null,null,{"$f":"IF(TRIM(Y208)=\"\", \"\", IF(VLOOKUP(Y208,'Footnotes list'!$D$9:$E$58,2,FALSE)=0,\"\",VLOOKUP(Y208,'Footnotes list'!$D$9:$E$58,2,FALSE) ) )","v":""},null,null,null,null,{"$f":"IF(TRIM(AD208)=\"\", \"\", IF(VLOOKUP(AD208,'Footnotes list'!$D$9:$E$58,2,FALSE)=0,\"\",VLOOKUP(AD208,'Footnotes list'!$D$9:$E$58,2,FALSE) ) )","v":""},null,null,null,null,{"$f":"IF(TRIM(AI208)=\"\", \"\", IF(VLOOKUP(AI208,'Footnotes list'!$D$9:$E$58,2,FALSE)=0,\"\",VLOOKUP(AI208,'Footnotes list'!$D$9:$E$58,2,FALSE) ) )","v":""},null,null,null,null,{"$f":"IF(TRIM(AN208)=\"\", \"\", IF(VLOOKUP(AN208,'Footnotes list'!$D$9:$E$58,2,FALSE)=0,\"\",VLOOKUP(AN208,'Footnotes list'!$D$9:$E$58,2,FALSE) ) )","v":""},null,null,null,null,{"$f":"IF(TRIM(AS208)=\"\", \"\", IF(VLOOKUP(AS208,'Footnotes list'!$D$9:$E$58,2,FALSE)=0,\"\",VLOOKUP(AS208,'Footnotes list'!$D$9:$E$58,2,FALSE) ) )","v":""},null,null,null,null,{"$f":"IF(TRIM(AX208)=\"\", \"\", IF(VLOOKUP(AX208,'Footnotes list'!$D$9:$E$58,2,FALSE)=0,\"\",VLOOKUP(AX208,'Footnotes list'!$D$9:$E$58,2,FALSE) ) )","v":""},null,null,null,null,{"$f":"IF(TRIM(BC208)=\"\", \"\", IF(VLOOKUP(BC208,'Footnotes list'!$D$9:$E$58,2,FALSE)=0,\"\",VLOOKUP(BC208,'Footnotes list'!$D$9:$E$58,2,FALSE) ) )","v":""},null,null,null,null,{"$f":"IF(TRIM(BH208)=\"\", \"\", IF(VLOOKUP(BH208,'Footnotes list'!$D$9:$E$58,2,FALSE)=0,\"\",VLOOKUP(BH208,'Footnotes list'!$D$9:$E$58,2,FALSE) ) )","v":""},null,null,null,null,{"$f":"IF(TRIM(BM208)=\"\", \"\", IF(VLOOKUP(BM208,'Footnotes list'!$D$9:$E$58,2,FALSE)=0,\"\",VLOOKUP(BM208,'Footnotes list'!$D$9:$E$58,2,FALSE) ) )","v":""},null,null,null,null,{"$f":"IF(TRIM(BR208)=\"\", \"\", IF(VLOOKUP(BR208,'Footnotes list'!$D$9:$E$58,2,FALSE)=0,\"\",VLOOKUP(BR208,'Footnotes list'!$D$9:$E$58,2,FALSE) ) )","v":""},null,null,null,null,{"$f":"IF(TRIM(BW208)=\"\", \"\", IF(VLOOKUP(BW208,'Footnotes list'!$D$9:$E$58,2,FALSE)=0,\"\",VLOOKUP(BW208,'Footnotes list'!$D$9:$E$58,2,FALSE) ) )","v":""},null,null,null,null,{"$f":"IF(TRIM(CB208)=\"\", \"\", IF(VLOOKUP(CB208,'Footnotes list'!$D$9:$E$58,2,FALSE)=0,\"\",VLOOKUP(CB208,'Footnotes list'!$D$9:$E$58,2,FALSE) ) )","v":""},null,null,null,null,{"$f":"IF(TRIM(CG208)=\"\", \"\", IF(VLOOKUP(CG208,'Footnotes list'!$D$9:$E$58,2,FALSE)=0,\"\",VLOOKUP(CG208,'Footnotes list'!$D$9:$E$58,2,FALSE) ) )","v":""},null,null,null,null,{"$f":"IF(TRIM(CL208)=\"\", \"\", IF(VLOOKUP(CL208,'Footnotes list'!$D$9:$E$58,2,FALSE)=0,\"\",VLOOKUP(CL208,'Footnotes list'!$D$9:$E$58,2,FALSE) ) )","v":""},null,null,null,null,{"$f":"IF(TRIM(CQ208)=\"\", \"\", IF(VLOOKUP(CQ208,'Footnotes list'!$D$9:$E$58,2,FALSE)=0,\"\",VLOOKUP(CQ208,'Footnotes list'!$D$9:$E$58,2,FALSE) ) )","v":""},null,null,null,null,{"$f":"IF(TRIM(CV208)=\"\", \"\", IF(VLOOKUP(CV208,'Footnotes list'!$D$9:$E$58,2,FALSE)=0,\"\",VLOOKUP(CV208,'Footnotes list'!$D$9:$E$58,2,FALSE) ) )","v":""},null,null,null,null,{"$f":"IF(TRIM(DA208)=\"\", \"\", IF(VLOOKUP(DA208,'Footnotes list'!$D$9:$E$58,2,FALSE)=0,\"\",VLOOKUP(DA208,'Footnotes list'!$D$9:$E$58,2,FALSE) ) )","v":""},null,null,null,null,{"$f":"IF(TRIM(DF208)=\"\", \"\", IF(VLOOKUP(DF208,'Footnotes list'!$D$9:$E$58,2,FALSE)=0,\"\",VLOOKUP(DF208,'Footnotes list'!$D$9:$E$58,2,FALSE) ) )","v":""},null,null,null,null,{"$f":"IF(TRIM(DK208)=\"\", \"\", IF(VLOOKUP(DK208,'Footnotes list'!$D$9:$E$58,2,FALSE)=0,\"\",VLOOKUP(DK208,'Footnotes list'!$D$9:$E$58,2,FALSE) ) )","v":""},null,null,null,null,{"$f":"IF(TRIM(DP208)=\"\", \"\", IF(VLOOKUP(DP208,'Footnotes list'!$D$9:$E$58,2,FALSE)=0,\"\",VLOOKUP(DP208,'Footnotes list'!$D$9:$E$58,2,FALSE) ) )","v":""},null,null,null,null,{"$f":"IF(TRIM(DU208)=\"\", \"\", IF(VLOOKUP(DU208,'Footnotes list'!$D$9:$E$58,2,FALSE)=0,\"\",VLOOKUP(DU208,'Footnotes list'!$D$9:$E$58,2,FALSE) ) )","v":""},null,null,null,null,{"$f":"IF(TRIM(DZ208)=\"\", \"\", IF(VLOOKUP(DZ208,'Footnotes list'!$D$9:$E$58,2,FALSE)=0,\"\",VLOOKUP(DZ208,'Footnotes list'!$D$9:$E$58,2,FALSE) ) )","v":""},null,null,null,null,{"$f":"IF(TRIM(EE208)=\"\", \"\", IF(VLOOKUP(EE208,'Footnotes list'!$D$9:$E$58,2,FALSE)=0,\"\",VLOOKUP(EE208,'Footnotes list'!$D$9:$E$58,2,FALSE) ) )","v":""},null,null,null,null,{"$f":"IF(TRIM(EJ208)=\"\", \"\", IF(VLOOKUP(EJ208,'Footnotes list'!$D$9:$E$58,2,FALSE)=0,\"\",VLOOKUP(EJ208,'Footnotes list'!$D$9:$E$58,2,FALSE) ) )","v":""},null,null,null,null,{"$f":"IF(TRIM(EO208)=\"\", \"\", IF(VLOOKUP(EO208,'Footnotes list'!$D$9:$E$58,2,FALSE)=0,\"\",VLOOKUP(EO208,'Footnotes list'!$D$9:$E$58,2,FALSE) ) )","v":""},null,null,null,null,{"$f":"IF(TRIM(ET208)=\"\", \"\", IF(VLOOKUP(ET208,'Footnotes list'!$D$9:$E$58,2,FALSE)=0,\"\",VLOOKUP(ET208,'Footnotes list'!$D$9:$E$58,2,FALSE) ) )","v":""},null,null,null,null,{"$f":"IF(TRIM(EY208)=\"\", \"\", IF(VLOOKUP(EY208,'Footnotes list'!$D$9:$E$58,2,FALSE)=0,\"\",VLOOKUP(EY208,'Footnotes list'!$D$9:$E$58,2,FALSE) ) )","v":""}]
[null,null,"K","ES_CS","environmental specific services",null,null,null,null,null,{"$f":"IF(TRIM(J209)=\"\", \"\", IF(VLOOKUP(J209,'Footnotes list'!$D$9:$E$58,2,FALSE)=0,\"\",VLOOKUP(J209,'Footnotes list'!$D$9:$E$58,2,FALSE) ) )","v":""},null,null,null,null,{"$f":"IF(TRIM(O209)=\"\", \"\", IF(VLOOKUP(O209,'Footnotes list'!$D$9:$E$58,2,FALSE)=0,\"\",VLOOKUP(O209,'Footnotes list'!$D$9:$E$58,2,FALSE) ) )","v":""},null,null,null,null,{"$f":"IF(TRIM(T209)=\"\", \"\", IF(VLOOKUP(T209,'Footnotes list'!$D$9:$E$58,2,FALSE)=0,\"\",VLOOKUP(T209,'Footnotes list'!$D$9:$E$58,2,FALSE) ) )","v":""},null,null,null,null,{"$f":"IF(TRIM(Y209)=\"\", \"\", IF(VLOOKUP(Y209,'Footnotes list'!$D$9:$E$58,2,FALSE)=0,\"\",VLOOKUP(Y209,'Footnotes list'!$D$9:$E$58,2,FALSE) ) )","v":""},null,null,null,null,{"$f":"IF(TRIM(AD209)=\"\", \"\", IF(VLOOKUP(AD209,'Footnotes list'!$D$9:$E$58,2,FALSE)=0,\"\",VLOOKUP(AD209,'Footnotes list'!$D$9:$E$58,2,FALSE) ) )","v":""},null,null,null,null,{"$f":"IF(TRIM(AI209)=\"\", \"\", IF(VLOOKUP(AI209,'Footnotes list'!$D$9:$E$58,2,FALSE)=0,\"\",VLOOKUP(AI209,'Footnotes list'!$D$9:$E$58,2,FALSE) ) )","v":""},null,null,null,null,{"$f":"IF(TRIM(AN209)=\"\", \"\", IF(VLOOKUP(AN209,'Footnotes list'!$D$9:$E$58,2,FALSE)=0,\"\",VLOOKUP(AN209,'Footnotes list'!$D$9:$E$58,2,FALSE) ) )","v":""},null,null,null,null,{"$f":"IF(TRIM(AS209)=\"\", \"\", IF(VLOOKUP(AS209,'Footnotes list'!$D$9:$E$58,2,FALSE)=0,\"\",VLOOKUP(AS209,'Footnotes list'!$D$9:$E$58,2,FALSE) ) )","v":""},null,null,null,null,{"$f":"IF(TRIM(AX209)=\"\", \"\", IF(VLOOKUP(AX209,'Footnotes list'!$D$9:$E$58,2,FALSE)=0,\"\",VLOOKUP(AX209,'Footnotes list'!$D$9:$E$58,2,FALSE) ) )","v":""},null,null,null,null,{"$f":"IF(TRIM(BC209)=\"\", \"\", IF(VLOOKUP(BC209,'Footnotes list'!$D$9:$E$58,2,FALSE)=0,\"\",VLOOKUP(BC209,'Footnotes list'!$D$9:$E$58,2,FALSE) ) )","v":""},null,null,null,null,{"$f":"IF(TRIM(BH209)=\"\", \"\", IF(VLOOKUP(BH209,'Footnotes list'!$D$9:$E$58,2,FALSE)=0,\"\",VLOOKUP(BH209,'Footnotes list'!$D$9:$E$58,2,FALSE) ) )","v":""},null,null,null,null,{"$f":"IF(TRIM(BM209)=\"\", \"\", IF(VLOOKUP(BM209,'Footnotes list'!$D$9:$E$58,2,FALSE)=0,\"\",VLOOKUP(BM209,'Footnotes list'!$D$9:$E$58,2,FALSE) ) )","v":""},null,null,null,null,{"$f":"IF(TRIM(BR209)=\"\", \"\", IF(VLOOKUP(BR209,'Footnotes list'!$D$9:$E$58,2,FALSE)=0,\"\",VLOOKUP(BR209,'Footnotes list'!$D$9:$E$58,2,FALSE) ) )","v":""},null,null,null,null,{"$f":"IF(TRIM(BW209)=\"\", \"\", IF(VLOOKUP(BW209,'Footnotes list'!$D$9:$E$58,2,FALSE)=0,\"\",VLOOKUP(BW209,'Footnotes list'!$D$9:$E$58,2,FALSE) ) )","v":""},null,null,null,null,{"$f":"IF(TRIM(CB209)=\"\", \"\", IF(VLOOKUP(CB209,'Footnotes list'!$D$9:$E$58,2,FALSE)=0,\"\",VLOOKUP(CB209,'Footnotes list'!$D$9:$E$58,2,FALSE) ) )","v":""},null,null,null,null,{"$f":"IF(TRIM(CG209)=\"\", \"\", IF(VLOOKUP(CG209,'Footnotes list'!$D$9:$E$58,2,FALSE)=0,\"\",VLOOKUP(CG209,'Footnotes list'!$D$9:$E$58,2,FALSE) ) )","v":""},null,null,null,null,{"$f":"IF(TRIM(CL209)=\"\", \"\", IF(VLOOKUP(CL209,'Footnotes list'!$D$9:$E$58,2,FALSE)=0,\"\",VLOOKUP(CL209,'Footnotes list'!$D$9:$E$58,2,FALSE) ) )","v":""},null,null,null,null,{"$f":"IF(TRIM(CQ209)=\"\", \"\", IF(VLOOKUP(CQ209,'Footnotes list'!$D$9:$E$58,2,FALSE)=0,\"\",VLOOKUP(CQ209,'Footnotes list'!$D$9:$E$58,2,FALSE) ) )","v":""},null,null,null,null,{"$f":"IF(TRIM(CV209)=\"\", \"\", IF(VLOOKUP(CV209,'Footnotes list'!$D$9:$E$58,2,FALSE)=0,\"\",VLOOKUP(CV209,'Footnotes list'!$D$9:$E$58,2,FALSE) ) )","v":""},null,null,null,null,{"$f":"IF(TRIM(DA209)=\"\", \"\", IF(VLOOKUP(DA209,'Footnotes list'!$D$9:$E$58,2,FALSE)=0,\"\",VLOOKUP(DA209,'Footnotes list'!$D$9:$E$58,2,FALSE) ) )","v":""},null,null,null,null,{"$f":"IF(TRIM(DF209)=\"\", \"\", IF(VLOOKUP(DF209,'Footnotes list'!$D$9:$E$58,2,FALSE)=0,\"\",VLOOKUP(DF209,'Footnotes list'!$D$9:$E$58,2,FALSE) ) )","v":""},null,null,null,null,{"$f":"IF(TRIM(DK209)=\"\", \"\", IF(VLOOKUP(DK209,'Footnotes list'!$D$9:$E$58,2,FALSE)=0,\"\",VLOOKUP(DK209,'Footnotes list'!$D$9:$E$58,2,FALSE) ) )","v":""},null,null,null,null,{"$f":"IF(TRIM(DP209)=\"\", \"\", IF(VLOOKUP(DP209,'Footnotes list'!$D$9:$E$58,2,FALSE)=0,\"\",VLOOKUP(DP209,'Footnotes list'!$D$9:$E$58,2,FALSE) ) )","v":""},null,null,null,null,{"$f":"IF(TRIM(DU209)=\"\", \"\", IF(VLOOKUP(DU209,'Footnotes list'!$D$9:$E$58,2,FALSE)=0,\"\",VLOOKUP(DU209,'Footnotes list'!$D$9:$E$58,2,FALSE) ) )","v":""},null,null,null,null,{"$f":"IF(TRIM(DZ209)=\"\", \"\", IF(VLOOKUP(DZ209,'Footnotes list'!$D$9:$E$58,2,FALSE)=0,\"\",VLOOKUP(DZ209,'Footnotes list'!$D$9:$E$58,2,FALSE) ) )","v":""},null,null,null,null,{"$f":"IF(TRIM(EE209)=\"\", \"\", IF(VLOOKUP(EE209,'Footnotes list'!$D$9:$E$58,2,FALSE)=0,\"\",VLOOKUP(EE209,'Footnotes list'!$D$9:$E$58,2,FALSE) ) )","v":""},null,null,null,null,{"$f":"IF(TRIM(EJ209)=\"\", \"\", IF(VLOOKUP(EJ209,'Footnotes list'!$D$9:$E$58,2,FALSE)=0,\"\",VLOOKUP(EJ209,'Footnotes list'!$D$9:$E$58,2,FALSE) ) )","v":""},null,null,null,null,{"$f":"IF(TRIM(EO209)=\"\", \"\", IF(VLOOKUP(EO209,'Footnotes list'!$D$9:$E$58,2,FALSE)=0,\"\",VLOOKUP(EO209,'Footnotes list'!$D$9:$E$58,2,FALSE) ) )","v":""},null,null,null,null,{"$f":"IF(TRIM(ET209)=\"\", \"\", IF(VLOOKUP(ET209,'Footnotes list'!$D$9:$E$58,2,FALSE)=0,\"\",VLOOKUP(ET209,'Footnotes list'!$D$9:$E$58,2,FALSE) ) )","v":""},null,null,null,null,{"$f":"IF(TRIM(EY209)=\"\", \"\", IF(VLOOKUP(EY209,'Footnotes list'!$D$9:$E$58,2,FALSE)=0,\"\",VLOOKUP(EY209,'Footnotes list'!$D$9:$E$58,2,FALSE) ) )","v":""}]
[null,null,"K","C_REP","cleaner and resource efficient products",null,null,null,null,null,{"$f":"IF(TRIM(J210)=\"\", \"\", IF(VLOOKUP(J210,'Footnotes list'!$D$9:$E$58,2,FALSE)=0,\"\",VLOOKUP(J210,'Footnotes list'!$D$9:$E$58,2,FALSE) ) )","v":""},null,null,null,null,{"$f":"IF(TRIM(O210)=\"\", \"\", IF(VLOOKUP(O210,'Footnotes list'!$D$9:$E$58,2,FALSE)=0,\"\",VLOOKUP(O210,'Footnotes list'!$D$9:$E$58,2,FALSE) ) )","v":""},null,null,null,null,{"$f":"IF(TRIM(T210)=\"\", \"\", IF(VLOOKUP(T210,'Footnotes list'!$D$9:$E$58,2,FALSE)=0,\"\",VLOOKUP(T210,'Footnotes list'!$D$9:$E$58,2,FALSE) ) )","v":""},null,null,null,null,{"$f":"IF(TRIM(Y210)=\"\", \"\", IF(VLOOKUP(Y210,'Footnotes list'!$D$9:$E$58,2,FALSE)=0,\"\",VLOOKUP(Y210,'Footnotes list'!$D$9:$E$58,2,FALSE) ) )","v":""},null,null,null,null,{"$f":"IF(TRIM(AD210)=\"\", \"\", IF(VLOOKUP(AD210,'Footnotes list'!$D$9:$E$58,2,FALSE)=0,\"\",VLOOKUP(AD210,'Footnotes list'!$D$9:$E$58,2,FALSE) ) )","v":""},null,null,null,null,{"$f":"IF(TRIM(AI210)=\"\", \"\", IF(VLOOKUP(AI210,'Footnotes list'!$D$9:$E$58,2,FALSE)=0,\"\",VLOOKUP(AI210,'Footnotes list'!$D$9:$E$58,2,FALSE) ) )","v":""},null,null,null,null,{"$f":"IF(TRIM(AN210)=\"\", \"\", IF(VLOOKUP(AN210,'Footnotes list'!$D$9:$E$58,2,FALSE)=0,\"\",VLOOKUP(AN210,'Footnotes list'!$D$9:$E$58,2,FALSE) ) )","v":""},null,null,null,null,{"$f":"IF(TRIM(AS210)=\"\", \"\", IF(VLOOKUP(AS210,'Footnotes list'!$D$9:$E$58,2,FALSE)=0,\"\",VLOOKUP(AS210,'Footnotes list'!$D$9:$E$58,2,FALSE) ) )","v":""},null,null,null,null,{"$f":"IF(TRIM(AX210)=\"\", \"\", IF(VLOOKUP(AX210,'Footnotes list'!$D$9:$E$58,2,FALSE)=0,\"\",VLOOKUP(AX210,'Footnotes list'!$D$9:$E$58,2,FALSE) ) )","v":""},null,null,null,null,{"$f":"IF(TRIM(BC210)=\"\", \"\", IF(VLOOKUP(BC210,'Footnotes list'!$D$9:$E$58,2,FALSE)=0,\"\",VLOOKUP(BC210,'Footnotes list'!$D$9:$E$58,2,FALSE) ) )","v":""},null,null,null,null,{"$f":"IF(TRIM(BH210)=\"\", \"\", IF(VLOOKUP(BH210,'Footnotes list'!$D$9:$E$58,2,FALSE)=0,\"\",VLOOKUP(BH210,'Footnotes list'!$D$9:$E$58,2,FALSE) ) )","v":""},null,null,null,null,{"$f":"IF(TRIM(BM210)=\"\", \"\", IF(VLOOKUP(BM210,'Footnotes list'!$D$9:$E$58,2,FALSE)=0,\"\",VLOOKUP(BM210,'Footnotes list'!$D$9:$E$58,2,FALSE) ) )","v":""},null,null,null,null,{"$f":"IF(TRIM(BR210)=\"\", \"\", IF(VLOOKUP(BR210,'Footnotes list'!$D$9:$E$58,2,FALSE)=0,\"\",VLOOKUP(BR210,'Footnotes list'!$D$9:$E$58,2,FALSE) ) )","v":""},null,null,null,null,{"$f":"IF(TRIM(BW210)=\"\", \"\", IF(VLOOKUP(BW210,'Footnotes list'!$D$9:$E$58,2,FALSE)=0,\"\",VLOOKUP(BW210,'Footnotes list'!$D$9:$E$58,2,FALSE) ) )","v":""},null,null,null,null,{"$f":"IF(TRIM(CB210)=\"\", \"\", IF(VLOOKUP(CB210,'Footnotes list'!$D$9:$E$58,2,FALSE)=0,\"\",VLOOKUP(CB210,'Footnotes list'!$D$9:$E$58,2,FALSE) ) )","v":""},null,null,null,null,{"$f":"IF(TRIM(CG210)=\"\", \"\", IF(VLOOKUP(CG210,'Footnotes list'!$D$9:$E$58,2,FALSE)=0,\"\",VLOOKUP(CG210,'Footnotes list'!$D$9:$E$58,2,FALSE) ) )","v":""},null,null,null,null,{"$f":"IF(TRIM(CL210)=\"\", \"\", IF(VLOOKUP(CL210,'Footnotes list'!$D$9:$E$58,2,FALSE)=0,\"\",VLOOKUP(CL210,'Footnotes list'!$D$9:$E$58,2,FALSE) ) )","v":""},null,null,null,null,{"$f":"IF(TRIM(CQ210)=\"\", \"\", IF(VLOOKUP(CQ210,'Footnotes list'!$D$9:$E$58,2,FALSE)=0,\"\",VLOOKUP(CQ210,'Footnotes list'!$D$9:$E$58,2,FALSE) ) )","v":""},null,null,null,null,{"$f":"IF(TRIM(CV210)=\"\", \"\", IF(VLOOKUP(CV210,'Footnotes list'!$D$9:$E$58,2,FALSE)=0,\"\",VLOOKUP(CV210,'Footnotes list'!$D$9:$E$58,2,FALSE) ) )","v":""},null,null,null,null,{"$f":"IF(TRIM(DA210)=\"\", \"\", IF(VLOOKUP(DA210,'Footnotes list'!$D$9:$E$58,2,FALSE)=0,\"\",VLOOKUP(DA210,'Footnotes list'!$D$9:$E$58,2,FALSE) ) )","v":""},null,null,null,null,{"$f":"IF(TRIM(DF210)=\"\", \"\", IF(VLOOKUP(DF210,'Footnotes list'!$D$9:$E$58,2,FALSE)=0,\"\",VLOOKUP(DF210,'Footnotes list'!$D$9:$E$58,2,FALSE) ) )","v":""},null,null,null,null,{"$f":"IF(TRIM(DK210)=\"\", \"\", IF(VLOOKUP(DK210,'Footnotes list'!$D$9:$E$58,2,FALSE)=0,\"\",VLOOKUP(DK210,'Footnotes list'!$D$9:$E$58,2,FALSE) ) )","v":""},null,null,null,null,{"$f":"IF(TRIM(DP210)=\"\", \"\", IF(VLOOKUP(DP210,'Footnotes list'!$D$9:$E$58,2,FALSE)=0,\"\",VLOOKUP(DP210,'Footnotes list'!$D$9:$E$58,2,FALSE) ) )","v":""},null,null,null,null,{"$f":"IF(TRIM(DU210)=\"\", \"\", IF(VLOOKUP(DU210,'Footnotes list'!$D$9:$E$58,2,FALSE)=0,\"\",VLOOKUP(DU210,'Footnotes list'!$D$9:$E$58,2,FALSE) ) )","v":""},null,null,null,null,{"$f":"IF(TRIM(DZ210)=\"\", \"\", IF(VLOOKUP(DZ210,'Footnotes list'!$D$9:$E$58,2,FALSE)=0,\"\",VLOOKUP(DZ210,'Footnotes list'!$D$9:$E$58,2,FALSE) ) )","v":""},null,null,null,null,{"$f":"IF(TRIM(EE210)=\"\", \"\", IF(VLOOKUP(EE210,'Footnotes list'!$D$9:$E$58,2,FALSE)=0,\"\",VLOOKUP(EE210,'Footnotes list'!$D$9:$E$58,2,FALSE) ) )","v":""},null,null,null,null,{"$f":"IF(TRIM(EJ210)=\"\", \"\", IF(VLOOKUP(EJ210,'Footnotes list'!$D$9:$E$58,2,FALSE)=0,\"\",VLOOKUP(EJ210,'Footnotes list'!$D$9:$E$58,2,FALSE) ) )","v":""},null,null,null,null,{"$f":"IF(TRIM(EO210)=\"\", \"\", IF(VLOOKUP(EO210,'Footnotes list'!$D$9:$E$58,2,FALSE)=0,\"\",VLOOKUP(EO210,'Footnotes list'!$D$9:$E$58,2,FALSE) ) )","v":""},null,null,null,null,{"$f":"IF(TRIM(ET210)=\"\", \"\", IF(VLOOKUP(ET210,'Footnotes list'!$D$9:$E$58,2,FALSE)=0,\"\",VLOOKUP(ET210,'Footnotes list'!$D$9:$E$58,2,FALSE) ) )","v":""},null,null,null,null,{"$f":"IF(TRIM(EY210)=\"\", \"\", IF(VLOOKUP(EY210,'Footnotes list'!$D$9:$E$58,2,FALSE)=0,\"\",VLOOKUP(EY210,'Footnotes list'!$D$9:$E$58,2,FALSE) ) )","v":""}]
[null,null,"L","TOT_EGSS","Total L - Real estate activities, of which:",null,null,null,null,null,{"$f":"IF(TRIM(J211)=\"\", \"\", IF(VLOOKUP(J211,'Footnotes list'!$D$9:$E$58,2,FALSE)=0,\"\",VLOOKUP(J211,'Footnotes list'!$D$9:$E$58,2,FALSE) ) )","v":""},null,null,null,null,{"$f":"IF(TRIM(O211)=\"\", \"\", IF(VLOOKUP(O211,'Footnotes list'!$D$9:$E$58,2,FALSE)=0,\"\",VLOOKUP(O211,'Footnotes list'!$D$9:$E$58,2,FALSE) ) )","v":""},null,null,null,null,{"$f":"IF(TRIM(T211)=\"\", \"\", IF(VLOOKUP(T211,'Footnotes list'!$D$9:$E$58,2,FALSE)=0,\"\",VLOOKUP(T211,'Footnotes list'!$D$9:$E$58,2,FALSE) ) )","v":""},null,null,null,null,{"$f":"IF(TRIM(Y211)=\"\", \"\", IF(VLOOKUP(Y211,'Footnotes list'!$D$9:$E$58,2,FALSE)=0,\"\",VLOOKUP(Y211,'Footnotes list'!$D$9:$E$58,2,FALSE) ) )","v":""},null,null,null,null,{"$f":"IF(TRIM(AD211)=\"\", \"\", IF(VLOOKUP(AD211,'Footnotes list'!$D$9:$E$58,2,FALSE)=0,\"\",VLOOKUP(AD211,'Footnotes list'!$D$9:$E$58,2,FALSE) ) )","v":""},null,null,null,null,{"$f":"IF(TRIM(AI211)=\"\", \"\", IF(VLOOKUP(AI211,'Footnotes list'!$D$9:$E$58,2,FALSE)=0,\"\",VLOOKUP(AI211,'Footnotes list'!$D$9:$E$58,2,FALSE) ) )","v":""},null,null,null,null,{"$f":"IF(TRIM(AN211)=\"\", \"\", IF(VLOOKUP(AN211,'Footnotes list'!$D$9:$E$58,2,FALSE)=0,\"\",VLOOKUP(AN211,'Footnotes list'!$D$9:$E$58,2,FALSE) ) )","v":""},null,null,null,null,{"$f":"IF(TRIM(AS211)=\"\", \"\", IF(VLOOKUP(AS211,'Footnotes list'!$D$9:$E$58,2,FALSE)=0,\"\",VLOOKUP(AS211,'Footnotes list'!$D$9:$E$58,2,FALSE) ) )","v":""},null,null,null,null,{"$f":"IF(TRIM(AX211)=\"\", \"\", IF(VLOOKUP(AX211,'Footnotes list'!$D$9:$E$58,2,FALSE)=0,\"\",VLOOKUP(AX211,'Footnotes list'!$D$9:$E$58,2,FALSE) ) )","v":""},null,null,null,null,{"$f":"IF(TRIM(BC211)=\"\", \"\", IF(VLOOKUP(BC211,'Footnotes list'!$D$9:$E$58,2,FALSE)=0,\"\",VLOOKUP(BC211,'Footnotes list'!$D$9:$E$58,2,FALSE) ) )","v":""},null,null,null,null,{"$f":"IF(TRIM(BH211)=\"\", \"\", IF(VLOOKUP(BH211,'Footnotes list'!$D$9:$E$58,2,FALSE)=0,\"\",VLOOKUP(BH211,'Footnotes list'!$D$9:$E$58,2,FALSE) ) )","v":""},null,null,null,null,{"$f":"IF(TRIM(BM211)=\"\", \"\", IF(VLOOKUP(BM211,'Footnotes list'!$D$9:$E$58,2,FALSE)=0,\"\",VLOOKUP(BM211,'Footnotes list'!$D$9:$E$58,2,FALSE) ) )","v":""},null,null,null,null,{"$f":"IF(TRIM(BR211)=\"\", \"\", IF(VLOOKUP(BR211,'Footnotes list'!$D$9:$E$58,2,FALSE)=0,\"\",VLOOKUP(BR211,'Footnotes list'!$D$9:$E$58,2,FALSE) ) )","v":""},null,null,null,null,{"$f":"IF(TRIM(BW211)=\"\", \"\", IF(VLOOKUP(BW211,'Footnotes list'!$D$9:$E$58,2,FALSE)=0,\"\",VLOOKUP(BW211,'Footnotes list'!$D$9:$E$58,2,FALSE) ) )","v":""},null,null,null,null,{"$f":"IF(TRIM(CB211)=\"\", \"\", IF(VLOOKUP(CB211,'Footnotes list'!$D$9:$E$58,2,FALSE)=0,\"\",VLOOKUP(CB211,'Footnotes list'!$D$9:$E$58,2,FALSE) ) )","v":""},null,null,null,null,{"$f":"IF(TRIM(CG211)=\"\", \"\", IF(VLOOKUP(CG211,'Footnotes list'!$D$9:$E$58,2,FALSE)=0,\"\",VLOOKUP(CG211,'Footnotes list'!$D$9:$E$58,2,FALSE) ) )","v":""},null,null,null,null,{"$f":"IF(TRIM(CL211)=\"\", \"\", IF(VLOOKUP(CL211,'Footnotes list'!$D$9:$E$58,2,FALSE)=0,\"\",VLOOKUP(CL211,'Footnotes list'!$D$9:$E$58,2,FALSE) ) )","v":""},null,null,null,null,{"$f":"IF(TRIM(CQ211)=\"\", \"\", IF(VLOOKUP(CQ211,'Footnotes list'!$D$9:$E$58,2,FALSE)=0,\"\",VLOOKUP(CQ211,'Footnotes list'!$D$9:$E$58,2,FALSE) ) )","v":""},null,null,null,null,{"$f":"IF(TRIM(CV211)=\"\", \"\", IF(VLOOKUP(CV211,'Footnotes list'!$D$9:$E$58,2,FALSE)=0,\"\",VLOOKUP(CV211,'Footnotes list'!$D$9:$E$58,2,FALSE) ) )","v":""},null,null,null,null,{"$f":"IF(TRIM(DA211)=\"\", \"\", IF(VLOOKUP(DA211,'Footnotes list'!$D$9:$E$58,2,FALSE)=0,\"\",VLOOKUP(DA211,'Footnotes list'!$D$9:$E$58,2,FALSE) ) )","v":""},null,null,null,null,{"$f":"IF(TRIM(DF211)=\"\", \"\", IF(VLOOKUP(DF211,'Footnotes list'!$D$9:$E$58,2,FALSE)=0,\"\",VLOOKUP(DF211,'Footnotes list'!$D$9:$E$58,2,FALSE) ) )","v":""},null,null,null,null,{"$f":"IF(TRIM(DK211)=\"\", \"\", IF(VLOOKUP(DK211,'Footnotes list'!$D$9:$E$58,2,FALSE)=0,\"\",VLOOKUP(DK211,'Footnotes list'!$D$9:$E$58,2,FALSE) ) )","v":""},null,null,null,null,{"$f":"IF(TRIM(DP211)=\"\", \"\", IF(VLOOKUP(DP211,'Footnotes list'!$D$9:$E$58,2,FALSE)=0,\"\",VLOOKUP(DP211,'Footnotes list'!$D$9:$E$58,2,FALSE) ) )","v":""},null,null,null,null,{"$f":"IF(TRIM(DU211)=\"\", \"\", IF(VLOOKUP(DU211,'Footnotes list'!$D$9:$E$58,2,FALSE)=0,\"\",VLOOKUP(DU211,'Footnotes list'!$D$9:$E$58,2,FALSE) ) )","v":""},null,null,null,null,{"$f":"IF(TRIM(DZ211)=\"\", \"\", IF(VLOOKUP(DZ211,'Footnotes list'!$D$9:$E$58,2,FALSE)=0,\"\",VLOOKUP(DZ211,'Footnotes list'!$D$9:$E$58,2,FALSE) ) )","v":""},null,null,null,null,{"$f":"IF(TRIM(EE211)=\"\", \"\", IF(VLOOKUP(EE211,'Footnotes list'!$D$9:$E$58,2,FALSE)=0,\"\",VLOOKUP(EE211,'Footnotes list'!$D$9:$E$58,2,FALSE) ) )","v":""},null,null,null,null,{"$f":"IF(TRIM(EJ211)=\"\", \"\", IF(VLOOKUP(EJ211,'Footnotes list'!$D$9:$E$58,2,FALSE)=0,\"\",VLOOKUP(EJ211,'Footnotes list'!$D$9:$E$58,2,FALSE) ) )","v":""},null,null,null,null,{"$f":"IF(TRIM(EO211)=\"\", \"\", IF(VLOOKUP(EO211,'Footnotes list'!$D$9:$E$58,2,FALSE)=0,\"\",VLOOKUP(EO211,'Footnotes list'!$D$9:$E$58,2,FALSE) ) )","v":""},null,null,null,null,{"$f":"IF(TRIM(ET211)=\"\", \"\", IF(VLOOKUP(ET211,'Footnotes list'!$D$9:$E$58,2,FALSE)=0,\"\",VLOOKUP(ET211,'Footnotes list'!$D$9:$E$58,2,FALSE) ) )","v":""},null,null,null,null,{"$f":"IF(TRIM(EY211)=\"\", \"\", IF(VLOOKUP(EY211,'Footnotes list'!$D$9:$E$58,2,FALSE)=0,\"\",VLOOKUP(EY211,'Footnotes list'!$D$9:$E$58,2,FALSE) ) )","v":""}]
[null,null,"L","ANC","ancillary activities",null,null,null,null,null,{"$f":"IF(TRIM(J212)=\"\", \"\", IF(VLOOKUP(J212,'Footnotes list'!$D$9:$E$58,2,FALSE)=0,\"\",VLOOKUP(J212,'Footnotes list'!$D$9:$E$58,2,FALSE) ) )","v":""},null,null,null,null,{"$f":"IF(TRIM(O212)=\"\", \"\", IF(VLOOKUP(O212,'Footnotes list'!$D$9:$E$58,2,FALSE)=0,\"\",VLOOKUP(O212,'Footnotes list'!$D$9:$E$58,2,FALSE) ) )","v":""},null,null,null,null,{"$f":"IF(TRIM(T212)=\"\", \"\", IF(VLOOKUP(T212,'Footnotes list'!$D$9:$E$58,2,FALSE)=0,\"\",VLOOKUP(T212,'Footnotes list'!$D$9:$E$58,2,FALSE) ) )","v":""},null,null,null,null,{"$f":"IF(TRIM(Y212)=\"\", \"\", IF(VLOOKUP(Y212,'Footnotes list'!$D$9:$E$58,2,FALSE)=0,\"\",VLOOKUP(Y212,'Footnotes list'!$D$9:$E$58,2,FALSE) ) )","v":""},null,null,null,null,{"$f":"IF(TRIM(AD212)=\"\", \"\", IF(VLOOKUP(AD212,'Footnotes list'!$D$9:$E$58,2,FALSE)=0,\"\",VLOOKUP(AD212,'Footnotes list'!$D$9:$E$58,2,FALSE) ) )","v":""},null,null,null,null,{"$f":"IF(TRIM(AI212)=\"\", \"\", IF(VLOOKUP(AI212,'Footnotes list'!$D$9:$E$58,2,FALSE)=0,\"\",VLOOKUP(AI212,'Footnotes list'!$D$9:$E$58,2,FALSE) ) )","v":""},null,null,null,null,{"$f":"IF(TRIM(AN212)=\"\", \"\", IF(VLOOKUP(AN212,'Footnotes list'!$D$9:$E$58,2,FALSE)=0,\"\",VLOOKUP(AN212,'Footnotes list'!$D$9:$E$58,2,FALSE) ) )","v":""},null,null,null,null,{"$f":"IF(TRIM(AS212)=\"\", \"\", IF(VLOOKUP(AS212,'Footnotes list'!$D$9:$E$58,2,FALSE)=0,\"\",VLOOKUP(AS212,'Footnotes list'!$D$9:$E$58,2,FALSE) ) )","v":""},null,null,null,null,{"$f":"IF(TRIM(AX212)=\"\", \"\", IF(VLOOKUP(AX212,'Footnotes list'!$D$9:$E$58,2,FALSE)=0,\"\",VLOOKUP(AX212,'Footnotes list'!$D$9:$E$58,2,FALSE) ) )","v":""},null,null,null,null,{"$f":"IF(TRIM(BC212)=\"\", \"\", IF(VLOOKUP(BC212,'Footnotes list'!$D$9:$E$58,2,FALSE)=0,\"\",VLOOKUP(BC212,'Footnotes list'!$D$9:$E$58,2,FALSE) ) )","v":""},null,null,null,null,{"$f":"IF(TRIM(BH212)=\"\", \"\", IF(VLOOKUP(BH212,'Footnotes list'!$D$9:$E$58,2,FALSE)=0,\"\",VLOOKUP(BH212,'Footnotes list'!$D$9:$E$58,2,FALSE) ) )","v":""},null,null,null,null,{"$f":"IF(TRIM(BM212)=\"\", \"\", IF(VLOOKUP(BM212,'Footnotes list'!$D$9:$E$58,2,FALSE)=0,\"\",VLOOKUP(BM212,'Footnotes list'!$D$9:$E$58,2,FALSE) ) )","v":""},null,null,null,null,{"$f":"IF(TRIM(BR212)=\"\", \"\", IF(VLOOKUP(BR212,'Footnotes list'!$D$9:$E$58,2,FALSE)=0,\"\",VLOOKUP(BR212,'Footnotes list'!$D$9:$E$58,2,FALSE) ) )","v":""},null,null,null,null,{"$f":"IF(TRIM(BW212)=\"\", \"\", IF(VLOOKUP(BW212,'Footnotes list'!$D$9:$E$58,2,FALSE)=0,\"\",VLOOKUP(BW212,'Footnotes list'!$D$9:$E$58,2,FALSE) ) )","v":""},null,null,null,null,{"$f":"IF(TRIM(CB212)=\"\", \"\", IF(VLOOKUP(CB212,'Footnotes list'!$D$9:$E$58,2,FALSE)=0,\"\",VLOOKUP(CB212,'Footnotes list'!$D$9:$E$58,2,FALSE) ) )","v":""},null,null,null,null,{"$f":"IF(TRIM(CG212)=\"\", \"\", IF(VLOOKUP(CG212,'Footnotes list'!$D$9:$E$58,2,FALSE)=0,\"\",VLOOKUP(CG212,'Footnotes list'!$D$9:$E$58,2,FALSE) ) )","v":""},null,null,null,null,{"$f":"IF(TRIM(CL212)=\"\", \"\", IF(VLOOKUP(CL212,'Footnotes list'!$D$9:$E$58,2,FALSE)=0,\"\",VLOOKUP(CL212,'Footnotes list'!$D$9:$E$58,2,FALSE) ) )","v":""},null,null,null,null,{"$f":"IF(TRIM(CQ212)=\"\", \"\", IF(VLOOKUP(CQ212,'Footnotes list'!$D$9:$E$58,2,FALSE)=0,\"\",VLOOKUP(CQ212,'Footnotes list'!$D$9:$E$58,2,FALSE) ) )","v":""},null,null,null,null,{"$f":"IF(TRIM(CV212)=\"\", \"\", IF(VLOOKUP(CV212,'Footnotes list'!$D$9:$E$58,2,FALSE)=0,\"\",VLOOKUP(CV212,'Footnotes list'!$D$9:$E$58,2,FALSE) ) )","v":""},null,null,null,null,{"$f":"IF(TRIM(DA212)=\"\", \"\", IF(VLOOKUP(DA212,'Footnotes list'!$D$9:$E$58,2,FALSE)=0,\"\",VLOOKUP(DA212,'Footnotes list'!$D$9:$E$58,2,FALSE) ) )","v":""},null,null,null,null,{"$f":"IF(TRIM(DF212)=\"\", \"\", IF(VLOOKUP(DF212,'Footnotes list'!$D$9:$E$58,2,FALSE)=0,\"\",VLOOKUP(DF212,'Footnotes list'!$D$9:$E$58,2,FALSE) ) )","v":""},null,null,null,null,{"$f":"IF(TRIM(DK212)=\"\", \"\", IF(VLOOKUP(DK212,'Footnotes list'!$D$9:$E$58,2,FALSE)=0,\"\",VLOOKUP(DK212,'Footnotes list'!$D$9:$E$58,2,FALSE) ) )","v":""},null,null,null,null,{"$f":"IF(TRIM(DP212)=\"\", \"\", IF(VLOOKUP(DP212,'Footnotes list'!$D$9:$E$58,2,FALSE)=0,\"\",VLOOKUP(DP212,'Footnotes list'!$D$9:$E$58,2,FALSE) ) )","v":""},null,null,null,null,{"$f":"IF(TRIM(DU212)=\"\", \"\", IF(VLOOKUP(DU212,'Footnotes list'!$D$9:$E$58,2,FALSE)=0,\"\",VLOOKUP(DU212,'Footnotes list'!$D$9:$E$58,2,FALSE) ) )","v":""},null,null,null,null,{"$f":"IF(TRIM(DZ212)=\"\", \"\", IF(VLOOKUP(DZ212,'Footnotes list'!$D$9:$E$58,2,FALSE)=0,\"\",VLOOKUP(DZ212,'Footnotes list'!$D$9:$E$58,2,FALSE) ) )","v":""},null,null,null,null,{"$f":"IF(TRIM(EE212)=\"\", \"\", IF(VLOOKUP(EE212,'Footnotes list'!$D$9:$E$58,2,FALSE)=0,\"\",VLOOKUP(EE212,'Footnotes list'!$D$9:$E$58,2,FALSE) ) )","v":""},null,null,null,null,{"$f":"IF(TRIM(EJ212)=\"\", \"\", IF(VLOOKUP(EJ212,'Footnotes list'!$D$9:$E$58,2,FALSE)=0,\"\",VLOOKUP(EJ212,'Footnotes list'!$D$9:$E$58,2,FALSE) ) )","v":""},null,null,null,null,{"$f":"IF(TRIM(EO212)=\"\", \"\", IF(VLOOKUP(EO212,'Footnotes list'!$D$9:$E$58,2,FALSE)=0,\"\",VLOOKUP(EO212,'Footnotes list'!$D$9:$E$58,2,FALSE) ) )","v":""},null,null,null,null,{"$f":"IF(TRIM(ET212)=\"\", \"\", IF(VLOOKUP(ET212,'Footnotes list'!$D$9:$E$58,2,FALSE)=0,\"\",VLOOKUP(ET212,'Footnotes list'!$D$9:$E$58,2,FALSE) ) )","v":""},null,null,null,null,{"$f":"IF(TRIM(EY212)=\"\", \"\", IF(VLOOKUP(EY212,'Footnotes list'!$D$9:$E$58,2,FALSE)=0,\"\",VLOOKUP(EY212,'Footnotes list'!$D$9:$E$58,2,FALSE) ) )","v":""}]
[null,null,"L","NMKT","non-market activities",null,null,null,null,null,{"$f":"IF(TRIM(J213)=\"\", \"\", IF(VLOOKUP(J213,'Footnotes list'!$D$9:$E$58,2,FALSE)=0,\"\",VLOOKUP(J213,'Footnotes list'!$D$9:$E$58,2,FALSE) ) )","v":""},null,null,null,null,{"$f":"IF(TRIM(O213)=\"\", \"\", IF(VLOOKUP(O213,'Footnotes list'!$D$9:$E$58,2,FALSE)=0,\"\",VLOOKUP(O213,'Footnotes list'!$D$9:$E$58,2,FALSE) ) )","v":""},null,null,null,null,{"$f":"IF(TRIM(T213)=\"\", \"\", IF(VLOOKUP(T213,'Footnotes list'!$D$9:$E$58,2,FALSE)=0,\"\",VLOOKUP(T213,'Footnotes list'!$D$9:$E$58,2,FALSE) ) )","v":""},null,null,null,null,{"$f":"IF(TRIM(Y213)=\"\", \"\", IF(VLOOKUP(Y213,'Footnotes list'!$D$9:$E$58,2,FALSE)=0,\"\",VLOOKUP(Y213,'Footnotes list'!$D$9:$E$58,2,FALSE) ) )","v":""},null,null,null,null,{"$f":"IF(TRIM(AD213)=\"\", \"\", IF(VLOOKUP(AD213,'Footnotes list'!$D$9:$E$58,2,FALSE)=0,\"\",VLOOKUP(AD213,'Footnotes list'!$D$9:$E$58,2,FALSE) ) )","v":""},null,null,null,null,{"$f":"IF(TRIM(AI213)=\"\", \"\", IF(VLOOKUP(AI213,'Footnotes list'!$D$9:$E$58,2,FALSE)=0,\"\",VLOOKUP(AI213,'Footnotes list'!$D$9:$E$58,2,FALSE) ) )","v":""},null,null,null,null,{"$f":"IF(TRIM(AN213)=\"\", \"\", IF(VLOOKUP(AN213,'Footnotes list'!$D$9:$E$58,2,FALSE)=0,\"\",VLOOKUP(AN213,'Footnotes list'!$D$9:$E$58,2,FALSE) ) )","v":""},null,null,null,null,{"$f":"IF(TRIM(AS213)=\"\", \"\", IF(VLOOKUP(AS213,'Footnotes list'!$D$9:$E$58,2,FALSE)=0,\"\",VLOOKUP(AS213,'Footnotes list'!$D$9:$E$58,2,FALSE) ) )","v":""},null,null,null,null,{"$f":"IF(TRIM(AX213)=\"\", \"\", IF(VLOOKUP(AX213,'Footnotes list'!$D$9:$E$58,2,FALSE)=0,\"\",VLOOKUP(AX213,'Footnotes list'!$D$9:$E$58,2,FALSE) ) )","v":""},null,null,null,null,{"$f":"IF(TRIM(BC213)=\"\", \"\", IF(VLOOKUP(BC213,'Footnotes list'!$D$9:$E$58,2,FALSE)=0,\"\",VLOOKUP(BC213,'Footnotes list'!$D$9:$E$58,2,FALSE) ) )","v":""},null,null,null,null,{"$f":"IF(TRIM(BH213)=\"\", \"\", IF(VLOOKUP(BH213,'Footnotes list'!$D$9:$E$58,2,FALSE)=0,\"\",VLOOKUP(BH213,'Footnotes list'!$D$9:$E$58,2,FALSE) ) )","v":""},null,null,null,null,{"$f":"IF(TRIM(BM213)=\"\", \"\", IF(VLOOKUP(BM213,'Footnotes list'!$D$9:$E$58,2,FALSE)=0,\"\",VLOOKUP(BM213,'Footnotes list'!$D$9:$E$58,2,FALSE) ) )","v":""},null,null,null,null,{"$f":"IF(TRIM(BR213)=\"\", \"\", IF(VLOOKUP(BR213,'Footnotes list'!$D$9:$E$58,2,FALSE)=0,\"\",VLOOKUP(BR213,'Footnotes list'!$D$9:$E$58,2,FALSE) ) )","v":""},null,null,null,null,{"$f":"IF(TRIM(BW213)=\"\", \"\", IF(VLOOKUP(BW213,'Footnotes list'!$D$9:$E$58,2,FALSE)=0,\"\",VLOOKUP(BW213,'Footnotes list'!$D$9:$E$58,2,FALSE) ) )","v":""},null,null,null,null,{"$f":"IF(TRIM(CB213)=\"\", \"\", IF(VLOOKUP(CB213,'Footnotes list'!$D$9:$E$58,2,FALSE)=0,\"\",VLOOKUP(CB213,'Footnotes list'!$D$9:$E$58,2,FALSE) ) )","v":""},null,null,null,null,{"$f":"IF(TRIM(CG213)=\"\", \"\", IF(VLOOKUP(CG213,'Footnotes list'!$D$9:$E$58,2,FALSE)=0,\"\",VLOOKUP(CG213,'Footnotes list'!$D$9:$E$58,2,FALSE) ) )","v":""},null,null,null,null,{"$f":"IF(TRIM(CL213)=\"\", \"\", IF(VLOOKUP(CL213,'Footnotes list'!$D$9:$E$58,2,FALSE)=0,\"\",VLOOKUP(CL213,'Footnotes list'!$D$9:$E$58,2,FALSE) ) )","v":""},null,null,null,null,{"$f":"IF(TRIM(CQ213)=\"\", \"\", IF(VLOOKUP(CQ213,'Footnotes list'!$D$9:$E$58,2,FALSE)=0,\"\",VLOOKUP(CQ213,'Footnotes list'!$D$9:$E$58,2,FALSE) ) )","v":""},null,null,null,null,{"$f":"IF(TRIM(CV213)=\"\", \"\", IF(VLOOKUP(CV213,'Footnotes list'!$D$9:$E$58,2,FALSE)=0,\"\",VLOOKUP(CV213,'Footnotes list'!$D$9:$E$58,2,FALSE) ) )","v":""},null,null,null,null,{"$f":"IF(TRIM(DA213)=\"\", \"\", IF(VLOOKUP(DA213,'Footnotes list'!$D$9:$E$58,2,FALSE)=0,\"\",VLOOKUP(DA213,'Footnotes list'!$D$9:$E$58,2,FALSE) ) )","v":""},null,null,null,null,{"$f":"IF(TRIM(DF213)=\"\", \"\", IF(VLOOKUP(DF213,'Footnotes list'!$D$9:$E$58,2,FALSE)=0,\"\",VLOOKUP(DF213,'Footnotes list'!$D$9:$E$58,2,FALSE) ) )","v":""},null,null,null,null,{"$f":"IF(TRIM(DK213)=\"\", \"\", IF(VLOOKUP(DK213,'Footnotes list'!$D$9:$E$58,2,FALSE)=0,\"\",VLOOKUP(DK213,'Footnotes list'!$D$9:$E$58,2,FALSE) ) )","v":""},null,null,null,null,{"$f":"IF(TRIM(DP213)=\"\", \"\", IF(VLOOKUP(DP213,'Footnotes list'!$D$9:$E$58,2,FALSE)=0,\"\",VLOOKUP(DP213,'Footnotes list'!$D$9:$E$58,2,FALSE) ) )","v":""},null,null,null,null,{"$f":"IF(TRIM(DU213)=\"\", \"\", IF(VLOOKUP(DU213,'Footnotes list'!$D$9:$E$58,2,FALSE)=0,\"\",VLOOKUP(DU213,'Footnotes list'!$D$9:$E$58,2,FALSE) ) )","v":""},null,null,null,null,{"$f":"IF(TRIM(DZ213)=\"\", \"\", IF(VLOOKUP(DZ213,'Footnotes list'!$D$9:$E$58,2,FALSE)=0,\"\",VLOOKUP(DZ213,'Footnotes list'!$D$9:$E$58,2,FALSE) ) )","v":""},null,null,null,null,{"$f":"IF(TRIM(EE213)=\"\", \"\", IF(VLOOKUP(EE213,'Footnotes list'!$D$9:$E$58,2,FALSE)=0,\"\",VLOOKUP(EE213,'Footnotes list'!$D$9:$E$58,2,FALSE) ) )","v":""},null,null,null,null,{"$f":"IF(TRIM(EJ213)=\"\", \"\", IF(VLOOKUP(EJ213,'Footnotes list'!$D$9:$E$58,2,FALSE)=0,\"\",VLOOKUP(EJ213,'Footnotes list'!$D$9:$E$58,2,FALSE) ) )","v":""},null,null,null,null,{"$f":"IF(TRIM(EO213)=\"\", \"\", IF(VLOOKUP(EO213,'Footnotes list'!$D$9:$E$58,2,FALSE)=0,\"\",VLOOKUP(EO213,'Footnotes list'!$D$9:$E$58,2,FALSE) ) )","v":""},null,null,null,null,{"$f":"IF(TRIM(ET213)=\"\", \"\", IF(VLOOKUP(ET213,'Footnotes list'!$D$9:$E$58,2,FALSE)=0,\"\",VLOOKUP(ET213,'Footnotes list'!$D$9:$E$58,2,FALSE) ) )","v":""},null,null,null,null,{"$f":"IF(TRIM(EY213)=\"\", \"\", IF(VLOOKUP(EY213,'Footnotes list'!$D$9:$E$58,2,FALSE)=0,\"\",VLOOKUP(EY213,'Footnotes list'!$D$9:$E$58,2,FALSE) ) )","v":""}]
[null,null,"L","OWN_USE","activities for own final use",null,null,null,null,null,{"$f":"IF(TRIM(J214)=\"\", \"\", IF(VLOOKUP(J214,'Footnotes list'!$D$9:$E$58,2,FALSE)=0,\"\",VLOOKUP(J214,'Footnotes list'!$D$9:$E$58,2,FALSE) ) )","v":""},null,null,null,null,{"$f":"IF(TRIM(O214)=\"\", \"\", IF(VLOOKUP(O214,'Footnotes list'!$D$9:$E$58,2,FALSE)=0,\"\",VLOOKUP(O214,'Footnotes list'!$D$9:$E$58,2,FALSE) ) )","v":""},null,null,null,null,{"$f":"IF(TRIM(T214)=\"\", \"\", IF(VLOOKUP(T214,'Footnotes list'!$D$9:$E$58,2,FALSE)=0,\"\",VLOOKUP(T214,'Footnotes list'!$D$9:$E$58,2,FALSE) ) )","v":""},null,null,null,null,{"$f":"IF(TRIM(Y214)=\"\", \"\", IF(VLOOKUP(Y214,'Footnotes list'!$D$9:$E$58,2,FALSE)=0,\"\",VLOOKUP(Y214,'Footnotes list'!$D$9:$E$58,2,FALSE) ) )","v":""},null,null,null,null,{"$f":"IF(TRIM(AD214)=\"\", \"\", IF(VLOOKUP(AD214,'Footnotes list'!$D$9:$E$58,2,FALSE)=0,\"\",VLOOKUP(AD214,'Footnotes list'!$D$9:$E$58,2,FALSE) ) )","v":""},null,null,null,null,{"$f":"IF(TRIM(AI214)=\"\", \"\", IF(VLOOKUP(AI214,'Footnotes list'!$D$9:$E$58,2,FALSE)=0,\"\",VLOOKUP(AI214,'Footnotes list'!$D$9:$E$58,2,FALSE) ) )","v":""},null,null,null,null,{"$f":"IF(TRIM(AN214)=\"\", \"\", IF(VLOOKUP(AN214,'Footnotes list'!$D$9:$E$58,2,FALSE)=0,\"\",VLOOKUP(AN214,'Footnotes list'!$D$9:$E$58,2,FALSE) ) )","v":""},null,null,null,null,{"$f":"IF(TRIM(AS214)=\"\", \"\", IF(VLOOKUP(AS214,'Footnotes list'!$D$9:$E$58,2,FALSE)=0,\"\",VLOOKUP(AS214,'Footnotes list'!$D$9:$E$58,2,FALSE) ) )","v":""},null,null,null,null,{"$f":"IF(TRIM(AX214)=\"\", \"\", IF(VLOOKUP(AX214,'Footnotes list'!$D$9:$E$58,2,FALSE)=0,\"\",VLOOKUP(AX214,'Footnotes list'!$D$9:$E$58,2,FALSE) ) )","v":""},null,null,null,null,{"$f":"IF(TRIM(BC214)=\"\", \"\", IF(VLOOKUP(BC214,'Footnotes list'!$D$9:$E$58,2,FALSE)=0,\"\",VLOOKUP(BC214,'Footnotes list'!$D$9:$E$58,2,FALSE) ) )","v":""},null,null,null,null,{"$f":"IF(TRIM(BH214)=\"\", \"\", IF(VLOOKUP(BH214,'Footnotes list'!$D$9:$E$58,2,FALSE)=0,\"\",VLOOKUP(BH214,'Footnotes list'!$D$9:$E$58,2,FALSE) ) )","v":""},null,null,null,null,{"$f":"IF(TRIM(BM214)=\"\", \"\", IF(VLOOKUP(BM214,'Footnotes list'!$D$9:$E$58,2,FALSE)=0,\"\",VLOOKUP(BM214,'Footnotes list'!$D$9:$E$58,2,FALSE) ) )","v":""},null,null,null,null,{"$f":"IF(TRIM(BR214)=\"\", \"\", IF(VLOOKUP(BR214,'Footnotes list'!$D$9:$E$58,2,FALSE)=0,\"\",VLOOKUP(BR214,'Footnotes list'!$D$9:$E$58,2,FALSE) ) )","v":""},null,null,null,null,{"$f":"IF(TRIM(BW214)=\"\", \"\", IF(VLOOKUP(BW214,'Footnotes list'!$D$9:$E$58,2,FALSE)=0,\"\",VLOOKUP(BW214,'Footnotes list'!$D$9:$E$58,2,FALSE) ) )","v":""},null,null,null,null,{"$f":"IF(TRIM(CB214)=\"\", \"\", IF(VLOOKUP(CB214,'Footnotes list'!$D$9:$E$58,2,FALSE)=0,\"\",VLOOKUP(CB214,'Footnotes list'!$D$9:$E$58,2,FALSE) ) )","v":""},null,null,null,null,{"$f":"IF(TRIM(CG214)=\"\", \"\", IF(VLOOKUP(CG214,'Footnotes list'!$D$9:$E$58,2,FALSE)=0,\"\",VLOOKUP(CG214,'Footnotes list'!$D$9:$E$58,2,FALSE) ) )","v":""},null,null,null,null,{"$f":"IF(TRIM(CL214)=\"\", \"\", IF(VLOOKUP(CL214,'Footnotes list'!$D$9:$E$58,2,FALSE)=0,\"\",VLOOKUP(CL214,'Footnotes list'!$D$9:$E$58,2,FALSE) ) )","v":""},null,null,null,null,{"$f":"IF(TRIM(CQ214)=\"\", \"\", IF(VLOOKUP(CQ214,'Footnotes list'!$D$9:$E$58,2,FALSE)=0,\"\",VLOOKUP(CQ214,'Footnotes list'!$D$9:$E$58,2,FALSE) ) )","v":""},null,null,null,null,{"$f":"IF(TRIM(CV214)=\"\", \"\", IF(VLOOKUP(CV214,'Footnotes list'!$D$9:$E$58,2,FALSE)=0,\"\",VLOOKUP(CV214,'Footnotes list'!$D$9:$E$58,2,FALSE) ) )","v":""},null,null,null,null,{"$f":"IF(TRIM(DA214)=\"\", \"\", IF(VLOOKUP(DA214,'Footnotes list'!$D$9:$E$58,2,FALSE)=0,\"\",VLOOKUP(DA214,'Footnotes list'!$D$9:$E$58,2,FALSE) ) )","v":""},null,null,null,null,{"$f":"IF(TRIM(DF214)=\"\", \"\", IF(VLOOKUP(DF214,'Footnotes list'!$D$9:$E$58,2,FALSE)=0,\"\",VLOOKUP(DF214,'Footnotes list'!$D$9:$E$58,2,FALSE) ) )","v":""},null,null,null,null,{"$f":"IF(TRIM(DK214)=\"\", \"\", IF(VLOOKUP(DK214,'Footnotes list'!$D$9:$E$58,2,FALSE)=0,\"\",VLOOKUP(DK214,'Footnotes list'!$D$9:$E$58,2,FALSE) ) )","v":""},null,null,null,null,{"$f":"IF(TRIM(DP214)=\"\", \"\", IF(VLOOKUP(DP214,'Footnotes list'!$D$9:$E$58,2,FALSE)=0,\"\",VLOOKUP(DP214,'Footnotes list'!$D$9:$E$58,2,FALSE) ) )","v":""},null,null,null,null,{"$f":"IF(TRIM(DU214)=\"\", \"\", IF(VLOOKUP(DU214,'Footnotes list'!$D$9:$E$58,2,FALSE)=0,\"\",VLOOKUP(DU214,'Footnotes list'!$D$9:$E$58,2,FALSE) ) )","v":""},null,null,null,null,{"$f":"IF(TRIM(DZ214)=\"\", \"\", IF(VLOOKUP(DZ214,'Footnotes list'!$D$9:$E$58,2,FALSE)=0,\"\",VLOOKUP(DZ214,'Footnotes list'!$D$9:$E$58,2,FALSE) ) )","v":""},null,null,null,null,{"$f":"IF(TRIM(EE214)=\"\", \"\", IF(VLOOKUP(EE214,'Footnotes list'!$D$9:$E$58,2,FALSE)=0,\"\",VLOOKUP(EE214,'Footnotes list'!$D$9:$E$58,2,FALSE) ) )","v":""},null,null,null,null,{"$f":"IF(TRIM(EJ214)=\"\", \"\", IF(VLOOKUP(EJ214,'Footnotes list'!$D$9:$E$58,2,FALSE)=0,\"\",VLOOKUP(EJ214,'Footnotes list'!$D$9:$E$58,2,FALSE) ) )","v":""},null,null,null,null,{"$f":"IF(TRIM(EO214)=\"\", \"\", IF(VLOOKUP(EO214,'Footnotes list'!$D$9:$E$58,2,FALSE)=0,\"\",VLOOKUP(EO214,'Footnotes list'!$D$9:$E$58,2,FALSE) ) )","v":""},null,null,null,null,{"$f":"IF(TRIM(ET214)=\"\", \"\", IF(VLOOKUP(ET214,'Footnotes list'!$D$9:$E$58,2,FALSE)=0,\"\",VLOOKUP(ET214,'Footnotes list'!$D$9:$E$58,2,FALSE) ) )","v":""},null,null,null,null,{"$f":"IF(TRIM(EY214)=\"\", \"\", IF(VLOOKUP(EY214,'Footnotes list'!$D$9:$E$58,2,FALSE)=0,\"\",VLOOKUP(EY214,'Footnotes list'!$D$9:$E$58,2,FALSE) ) )","v":""}]
[null,null,"L","MKT","market activities, including:",null,null,null,null,null,{"$f":"IF(TRIM(J215)=\"\", \"\", IF(VLOOKUP(J215,'Footnotes list'!$D$9:$E$58,2,FALSE)=0,\"\",VLOOKUP(J215,'Footnotes list'!$D$9:$E$58,2,FALSE) ) )","v":""},null,null,null,null,{"$f":"IF(TRIM(O215)=\"\", \"\", IF(VLOOKUP(O215,'Footnotes list'!$D$9:$E$58,2,FALSE)=0,\"\",VLOOKUP(O215,'Footnotes list'!$D$9:$E$58,2,FALSE) ) )","v":""},null,null,null,null,{"$f":"IF(TRIM(T215)=\"\", \"\", IF(VLOOKUP(T215,'Footnotes list'!$D$9:$E$58,2,FALSE)=0,\"\",VLOOKUP(T215,'Footnotes list'!$D$9:$E$58,2,FALSE) ) )","v":""},null,null,null,null,{"$f":"IF(TRIM(Y215)=\"\", \"\", IF(VLOOKUP(Y215,'Footnotes list'!$D$9:$E$58,2,FALSE)=0,\"\",VLOOKUP(Y215,'Footnotes list'!$D$9:$E$58,2,FALSE) ) )","v":""},null,null,null,null,{"$f":"IF(TRIM(AD215)=\"\", \"\", IF(VLOOKUP(AD215,'Footnotes list'!$D$9:$E$58,2,FALSE)=0,\"\",VLOOKUP(AD215,'Footnotes list'!$D$9:$E$58,2,FALSE) ) )","v":""},null,null,null,null,{"$f":"IF(TRIM(AI215)=\"\", \"\", IF(VLOOKUP(AI215,'Footnotes list'!$D$9:$E$58,2,FALSE)=0,\"\",VLOOKUP(AI215,'Footnotes list'!$D$9:$E$58,2,FALSE) ) )","v":""},null,null,null,null,{"$f":"IF(TRIM(AN215)=\"\", \"\", IF(VLOOKUP(AN215,'Footnotes list'!$D$9:$E$58,2,FALSE)=0,\"\",VLOOKUP(AN215,'Footnotes list'!$D$9:$E$58,2,FALSE) ) )","v":""},null,null,null,null,{"$f":"IF(TRIM(AS215)=\"\", \"\", IF(VLOOKUP(AS215,'Footnotes list'!$D$9:$E$58,2,FALSE)=0,\"\",VLOOKUP(AS215,'Footnotes list'!$D$9:$E$58,2,FALSE) ) )","v":""},null,null,null,null,{"$f":"IF(TRIM(AX215)=\"\", \"\", IF(VLOOKUP(AX215,'Footnotes list'!$D$9:$E$58,2,FALSE)=0,\"\",VLOOKUP(AX215,'Footnotes list'!$D$9:$E$58,2,FALSE) ) )","v":""},null,null,null,null,{"$f":"IF(TRIM(BC215)=\"\", \"\", IF(VLOOKUP(BC215,'Footnotes list'!$D$9:$E$58,2,FALSE)=0,\"\",VLOOKUP(BC215,'Footnotes list'!$D$9:$E$58,2,FALSE) ) )","v":""},null,null,null,null,{"$f":"IF(TRIM(BH215)=\"\", \"\", IF(VLOOKUP(BH215,'Footnotes list'!$D$9:$E$58,2,FALSE)=0,\"\",VLOOKUP(BH215,'Footnotes list'!$D$9:$E$58,2,FALSE) ) )","v":""},null,null,null,null,{"$f":"IF(TRIM(BM215)=\"\", \"\", IF(VLOOKUP(BM215,'Footnotes list'!$D$9:$E$58,2,FALSE)=0,\"\",VLOOKUP(BM215,'Footnotes list'!$D$9:$E$58,2,FALSE) ) )","v":""},null,null,null,null,{"$f":"IF(TRIM(BR215)=\"\", \"\", IF(VLOOKUP(BR215,'Footnotes list'!$D$9:$E$58,2,FALSE)=0,\"\",VLOOKUP(BR215,'Footnotes list'!$D$9:$E$58,2,FALSE) ) )","v":""},null,null,null,null,{"$f":"IF(TRIM(BW215)=\"\", \"\", IF(VLOOKUP(BW215,'Footnotes list'!$D$9:$E$58,2,FALSE)=0,\"\",VLOOKUP(BW215,'Footnotes list'!$D$9:$E$58,2,FALSE) ) )","v":""},null,null,null,null,{"$f":"IF(TRIM(CB215)=\"\", \"\", IF(VLOOKUP(CB215,'Footnotes list'!$D$9:$E$58,2,FALSE)=0,\"\",VLOOKUP(CB215,'Footnotes list'!$D$9:$E$58,2,FALSE) ) )","v":""},null,null,null,null,{"$f":"IF(TRIM(CG215)=\"\", \"\", IF(VLOOKUP(CG215,'Footnotes list'!$D$9:$E$58,2,FALSE)=0,\"\",VLOOKUP(CG215,'Footnotes list'!$D$9:$E$58,2,FALSE) ) )","v":""},null,null,null,null,{"$f":"IF(TRIM(CL215)=\"\", \"\", IF(VLOOKUP(CL215,'Footnotes list'!$D$9:$E$58,2,FALSE)=0,\"\",VLOOKUP(CL215,'Footnotes list'!$D$9:$E$58,2,FALSE) ) )","v":""},null,null,null,null,{"$f":"IF(TRIM(CQ215)=\"\", \"\", IF(VLOOKUP(CQ215,'Footnotes list'!$D$9:$E$58,2,FALSE)=0,\"\",VLOOKUP(CQ215,'Footnotes list'!$D$9:$E$58,2,FALSE) ) )","v":""},null,null,null,null,{"$f":"IF(TRIM(CV215)=\"\", \"\", IF(VLOOKUP(CV215,'Footnotes list'!$D$9:$E$58,2,FALSE)=0,\"\",VLOOKUP(CV215,'Footnotes list'!$D$9:$E$58,2,FALSE) ) )","v":""},null,null,null,null,{"$f":"IF(TRIM(DA215)=\"\", \"\", IF(VLOOKUP(DA215,'Footnotes list'!$D$9:$E$58,2,FALSE)=0,\"\",VLOOKUP(DA215,'Footnotes list'!$D$9:$E$58,2,FALSE) ) )","v":""},null,null,null,null,{"$f":"IF(TRIM(DF215)=\"\", \"\", IF(VLOOKUP(DF215,'Footnotes list'!$D$9:$E$58,2,FALSE)=0,\"\",VLOOKUP(DF215,'Footnotes list'!$D$9:$E$58,2,FALSE) ) )","v":""},null,null,null,null,{"$f":"IF(TRIM(DK215)=\"\", \"\", IF(VLOOKUP(DK215,'Footnotes list'!$D$9:$E$58,2,FALSE)=0,\"\",VLOOKUP(DK215,'Footnotes list'!$D$9:$E$58,2,FALSE) ) )","v":""},null,null,null,null,{"$f":"IF(TRIM(DP215)=\"\", \"\", IF(VLOOKUP(DP215,'Footnotes list'!$D$9:$E$58,2,FALSE)=0,\"\",VLOOKUP(DP215,'Footnotes list'!$D$9:$E$58,2,FALSE) ) )","v":""},null,null,null,null,{"$f":"IF(TRIM(DU215)=\"\", \"\", IF(VLOOKUP(DU215,'Footnotes list'!$D$9:$E$58,2,FALSE)=0,\"\",VLOOKUP(DU215,'Footnotes list'!$D$9:$E$58,2,FALSE) ) )","v":""},null,null,null,null,{"$f":"IF(TRIM(DZ215)=\"\", \"\", IF(VLOOKUP(DZ215,'Footnotes list'!$D$9:$E$58,2,FALSE)=0,\"\",VLOOKUP(DZ215,'Footnotes list'!$D$9:$E$58,2,FALSE) ) )","v":""},null,null,null,null,{"$f":"IF(TRIM(EE215)=\"\", \"\", IF(VLOOKUP(EE215,'Footnotes list'!$D$9:$E$58,2,FALSE)=0,\"\",VLOOKUP(EE215,'Footnotes list'!$D$9:$E$58,2,FALSE) ) )","v":""},null,null,null,null,{"$f":"IF(TRIM(EJ215)=\"\", \"\", IF(VLOOKUP(EJ215,'Footnotes list'!$D$9:$E$58,2,FALSE)=0,\"\",VLOOKUP(EJ215,'Footnotes list'!$D$9:$E$58,2,FALSE) ) )","v":""},null,null,null,null,{"$f":"IF(TRIM(EO215)=\"\", \"\", IF(VLOOKUP(EO215,'Footnotes list'!$D$9:$E$58,2,FALSE)=0,\"\",VLOOKUP(EO215,'Footnotes list'!$D$9:$E$58,2,FALSE) ) )","v":""},null,null,null,null,{"$f":"IF(TRIM(ET215)=\"\", \"\", IF(VLOOKUP(ET215,'Footnotes list'!$D$9:$E$58,2,FALSE)=0,\"\",VLOOKUP(ET215,'Footnotes list'!$D$9:$E$58,2,FALSE) ) )","v":""},null,null,null,null,{"$f":"IF(TRIM(EY215)=\"\", \"\", IF(VLOOKUP(EY215,'Footnotes list'!$D$9:$E$58,2,FALSE)=0,\"\",VLOOKUP(EY215,'Footnotes list'!$D$9:$E$58,2,FALSE) ) )","v":""}]
[null,null,"L","ES_CS","environmental specific services",null,null,null,null,null,{"$f":"IF(TRIM(J216)=\"\", \"\", IF(VLOOKUP(J216,'Footnotes list'!$D$9:$E$58,2,FALSE)=0,\"\",VLOOKUP(J216,'Footnotes list'!$D$9:$E$58,2,FALSE) ) )","v":""},null,null,null,null,{"$f":"IF(TRIM(O216)=\"\", \"\", IF(VLOOKUP(O216,'Footnotes list'!$D$9:$E$58,2,FALSE)=0,\"\",VLOOKUP(O216,'Footnotes list'!$D$9:$E$58,2,FALSE) ) )","v":""},null,null,null,null,{"$f":"IF(TRIM(T216)=\"\", \"\", IF(VLOOKUP(T216,'Footnotes list'!$D$9:$E$58,2,FALSE)=0,\"\",VLOOKUP(T216,'Footnotes list'!$D$9:$E$58,2,FALSE) ) )","v":""},null,null,null,null,{"$f":"IF(TRIM(Y216)=\"\", \"\", IF(VLOOKUP(Y216,'Footnotes list'!$D$9:$E$58,2,FALSE)=0,\"\",VLOOKUP(Y216,'Footnotes list'!$D$9:$E$58,2,FALSE) ) )","v":""},null,null,null,null,{"$f":"IF(TRIM(AD216)=\"\", \"\", IF(VLOOKUP(AD216,'Footnotes list'!$D$9:$E$58,2,FALSE)=0,\"\",VLOOKUP(AD216,'Footnotes list'!$D$9:$E$58,2,FALSE) ) )","v":""},null,null,null,null,{"$f":"IF(TRIM(AI216)=\"\", \"\", IF(VLOOKUP(AI216,'Footnotes list'!$D$9:$E$58,2,FALSE)=0,\"\",VLOOKUP(AI216,'Footnotes list'!$D$9:$E$58,2,FALSE) ) )","v":""},null,null,null,null,{"$f":"IF(TRIM(AN216)=\"\", \"\", IF(VLOOKUP(AN216,'Footnotes list'!$D$9:$E$58,2,FALSE)=0,\"\",VLOOKUP(AN216,'Footnotes list'!$D$9:$E$58,2,FALSE) ) )","v":""},null,null,null,null,{"$f":"IF(TRIM(AS216)=\"\", \"\", IF(VLOOKUP(AS216,'Footnotes list'!$D$9:$E$58,2,FALSE)=0,\"\",VLOOKUP(AS216,'Footnotes list'!$D$9:$E$58,2,FALSE) ) )","v":""},null,null,null,null,{"$f":"IF(TRIM(AX216)=\"\", \"\", IF(VLOOKUP(AX216,'Footnotes list'!$D$9:$E$58,2,FALSE)=0,\"\",VLOOKUP(AX216,'Footnotes list'!$D$9:$E$58,2,FALSE) ) )","v":""},null,null,null,null,{"$f":"IF(TRIM(BC216)=\"\", \"\", IF(VLOOKUP(BC216,'Footnotes list'!$D$9:$E$58,2,FALSE)=0,\"\",VLOOKUP(BC216,'Footnotes list'!$D$9:$E$58,2,FALSE) ) )","v":""},null,null,null,null,{"$f":"IF(TRIM(BH216)=\"\", \"\", IF(VLOOKUP(BH216,'Footnotes list'!$D$9:$E$58,2,FALSE)=0,\"\",VLOOKUP(BH216,'Footnotes list'!$D$9:$E$58,2,FALSE) ) )","v":""},null,null,null,null,{"$f":"IF(TRIM(BM216)=\"\", \"\", IF(VLOOKUP(BM216,'Footnotes list'!$D$9:$E$58,2,FALSE)=0,\"\",VLOOKUP(BM216,'Footnotes list'!$D$9:$E$58,2,FALSE) ) )","v":""},null,null,null,null,{"$f":"IF(TRIM(BR216)=\"\", \"\", IF(VLOOKUP(BR216,'Footnotes list'!$D$9:$E$58,2,FALSE)=0,\"\",VLOOKUP(BR216,'Footnotes list'!$D$9:$E$58,2,FALSE) ) )","v":""},null,null,null,null,{"$f":"IF(TRIM(BW216)=\"\", \"\", IF(VLOOKUP(BW216,'Footnotes list'!$D$9:$E$58,2,FALSE)=0,\"\",VLOOKUP(BW216,'Footnotes list'!$D$9:$E$58,2,FALSE) ) )","v":""},null,null,null,null,{"$f":"IF(TRIM(CB216)=\"\", \"\", IF(VLOOKUP(CB216,'Footnotes list'!$D$9:$E$58,2,FALSE)=0,\"\",VLOOKUP(CB216,'Footnotes list'!$D$9:$E$58,2,FALSE) ) )","v":""},null,null,null,null,{"$f":"IF(TRIM(CG216)=\"\", \"\", IF(VLOOKUP(CG216,'Footnotes list'!$D$9:$E$58,2,FALSE)=0,\"\",VLOOKUP(CG216,'Footnotes list'!$D$9:$E$58,2,FALSE) ) )","v":""},null,null,null,null,{"$f":"IF(TRIM(CL216)=\"\", \"\", IF(VLOOKUP(CL216,'Footnotes list'!$D$9:$E$58,2,FALSE)=0,\"\",VLOOKUP(CL216,'Footnotes list'!$D$9:$E$58,2,FALSE) ) )","v":""},null,null,null,null,{"$f":"IF(TRIM(CQ216)=\"\", \"\", IF(VLOOKUP(CQ216,'Footnotes list'!$D$9:$E$58,2,FALSE)=0,\"\",VLOOKUP(CQ216,'Footnotes list'!$D$9:$E$58,2,FALSE) ) )","v":""},null,null,null,null,{"$f":"IF(TRIM(CV216)=\"\", \"\", IF(VLOOKUP(CV216,'Footnotes list'!$D$9:$E$58,2,FALSE)=0,\"\",VLOOKUP(CV216,'Footnotes list'!$D$9:$E$58,2,FALSE) ) )","v":""},null,null,null,null,{"$f":"IF(TRIM(DA216)=\"\", \"\", IF(VLOOKUP(DA216,'Footnotes list'!$D$9:$E$58,2,FALSE)=0,\"\",VLOOKUP(DA216,'Footnotes list'!$D$9:$E$58,2,FALSE) ) )","v":""},null,null,null,null,{"$f":"IF(TRIM(DF216)=\"\", \"\", IF(VLOOKUP(DF216,'Footnotes list'!$D$9:$E$58,2,FALSE)=0,\"\",VLOOKUP(DF216,'Footnotes list'!$D$9:$E$58,2,FALSE) ) )","v":""},null,null,null,null,{"$f":"IF(TRIM(DK216)=\"\", \"\", IF(VLOOKUP(DK216,'Footnotes list'!$D$9:$E$58,2,FALSE)=0,\"\",VLOOKUP(DK216,'Footnotes list'!$D$9:$E$58,2,FALSE) ) )","v":""},null,null,null,null,{"$f":"IF(TRIM(DP216)=\"\", \"\", IF(VLOOKUP(DP216,'Footnotes list'!$D$9:$E$58,2,FALSE)=0,\"\",VLOOKUP(DP216,'Footnotes list'!$D$9:$E$58,2,FALSE) ) )","v":""},null,null,null,null,{"$f":"IF(TRIM(DU216)=\"\", \"\", IF(VLOOKUP(DU216,'Footnotes list'!$D$9:$E$58,2,FALSE)=0,\"\",VLOOKUP(DU216,'Footnotes list'!$D$9:$E$58,2,FALSE) ) )","v":""},null,null,null,null,{"$f":"IF(TRIM(DZ216)=\"\", \"\", IF(VLOOKUP(DZ216,'Footnotes list'!$D$9:$E$58,2,FALSE)=0,\"\",VLOOKUP(DZ216,'Footnotes list'!$D$9:$E$58,2,FALSE) ) )","v":""},null,null,null,null,{"$f":"IF(TRIM(EE216)=\"\", \"\", IF(VLOOKUP(EE216,'Footnotes list'!$D$9:$E$58,2,FALSE)=0,\"\",VLOOKUP(EE216,'Footnotes list'!$D$9:$E$58,2,FALSE) ) )","v":""},null,null,null,null,{"$f":"IF(TRIM(EJ216)=\"\", \"\", IF(VLOOKUP(EJ216,'Footnotes list'!$D$9:$E$58,2,FALSE)=0,\"\",VLOOKUP(EJ216,'Footnotes list'!$D$9:$E$58,2,FALSE) ) )","v":""},null,null,null,null,{"$f":"IF(TRIM(EO216)=\"\", \"\", IF(VLOOKUP(EO216,'Footnotes list'!$D$9:$E$58,2,FALSE)=0,\"\",VLOOKUP(EO216,'Footnotes list'!$D$9:$E$58,2,FALSE) ) )","v":""},null,null,null,null,{"$f":"IF(TRIM(ET216)=\"\", \"\", IF(VLOOKUP(ET216,'Footnotes list'!$D$9:$E$58,2,FALSE)=0,\"\",VLOOKUP(ET216,'Footnotes list'!$D$9:$E$58,2,FALSE) ) )","v":""},null,null,null,null,{"$f":"IF(TRIM(EY216)=\"\", \"\", IF(VLOOKUP(EY216,'Footnotes list'!$D$9:$E$58,2,FALSE)=0,\"\",VLOOKUP(EY216,'Footnotes list'!$D$9:$E$58,2,FALSE) ) )","v":""}]
[null,null,"L","C_REP","cleaner and resource efficient products",null,null,null,null,null,{"$f":"IF(TRIM(J217)=\"\", \"\", IF(VLOOKUP(J217,'Footnotes list'!$D$9:$E$58,2,FALSE)=0,\"\",VLOOKUP(J217,'Footnotes list'!$D$9:$E$58,2,FALSE) ) )","v":""},null,null,null,null,{"$f":"IF(TRIM(O217)=\"\", \"\", IF(VLOOKUP(O217,'Footnotes list'!$D$9:$E$58,2,FALSE)=0,\"\",VLOOKUP(O217,'Footnotes list'!$D$9:$E$58,2,FALSE) ) )","v":""},null,null,null,null,{"$f":"IF(TRIM(T217)=\"\", \"\", IF(VLOOKUP(T217,'Footnotes list'!$D$9:$E$58,2,FALSE)=0,\"\",VLOOKUP(T217,'Footnotes list'!$D$9:$E$58,2,FALSE) ) )","v":""},null,null,null,null,{"$f":"IF(TRIM(Y217)=\"\", \"\", IF(VLOOKUP(Y217,'Footnotes list'!$D$9:$E$58,2,FALSE)=0,\"\",VLOOKUP(Y217,'Footnotes list'!$D$9:$E$58,2,FALSE) ) )","v":""},null,null,null,null,{"$f":"IF(TRIM(AD217)=\"\", \"\", IF(VLOOKUP(AD217,'Footnotes list'!$D$9:$E$58,2,FALSE)=0,\"\",VLOOKUP(AD217,'Footnotes list'!$D$9:$E$58,2,FALSE) ) )","v":""},null,null,null,null,{"$f":"IF(TRIM(AI217)=\"\", \"\", IF(VLOOKUP(AI217,'Footnotes list'!$D$9:$E$58,2,FALSE)=0,\"\",VLOOKUP(AI217,'Footnotes list'!$D$9:$E$58,2,FALSE) ) )","v":""},null,null,null,null,{"$f":"IF(TRIM(AN217)=\"\", \"\", IF(VLOOKUP(AN217,'Footnotes list'!$D$9:$E$58,2,FALSE)=0,\"\",VLOOKUP(AN217,'Footnotes list'!$D$9:$E$58,2,FALSE) ) )","v":""},null,null,null,null,{"$f":"IF(TRIM(AS217)=\"\", \"\", IF(VLOOKUP(AS217,'Footnotes list'!$D$9:$E$58,2,FALSE)=0,\"\",VLOOKUP(AS217,'Footnotes list'!$D$9:$E$58,2,FALSE) ) )","v":""},null,null,null,null,{"$f":"IF(TRIM(AX217)=\"\", \"\", IF(VLOOKUP(AX217,'Footnotes list'!$D$9:$E$58,2,FALSE)=0,\"\",VLOOKUP(AX217,'Footnotes list'!$D$9:$E$58,2,FALSE) ) )","v":""},null,null,null,null,{"$f":"IF(TRIM(BC217)=\"\", \"\", IF(VLOOKUP(BC217,'Footnotes list'!$D$9:$E$58,2,FALSE)=0,\"\",VLOOKUP(BC217,'Footnotes list'!$D$9:$E$58,2,FALSE) ) )","v":""},null,null,null,null,{"$f":"IF(TRIM(BH217)=\"\", \"\", IF(VLOOKUP(BH217,'Footnotes list'!$D$9:$E$58,2,FALSE)=0,\"\",VLOOKUP(BH217,'Footnotes list'!$D$9:$E$58,2,FALSE) ) )","v":""},null,null,null,null,{"$f":"IF(TRIM(BM217)=\"\", \"\", IF(VLOOKUP(BM217,'Footnotes list'!$D$9:$E$58,2,FALSE)=0,\"\",VLOOKUP(BM217,'Footnotes list'!$D$9:$E$58,2,FALSE) ) )","v":""},null,null,null,null,{"$f":"IF(TRIM(BR217)=\"\", \"\", IF(VLOOKUP(BR217,'Footnotes list'!$D$9:$E$58,2,FALSE)=0,\"\",VLOOKUP(BR217,'Footnotes list'!$D$9:$E$58,2,FALSE) ) )","v":""},null,null,null,null,{"$f":"IF(TRIM(BW217)=\"\", \"\", IF(VLOOKUP(BW217,'Footnotes list'!$D$9:$E$58,2,FALSE)=0,\"\",VLOOKUP(BW217,'Footnotes list'!$D$9:$E$58,2,FALSE) ) )","v":""},null,null,null,null,{"$f":"IF(TRIM(CB217)=\"\", \"\", IF(VLOOKUP(CB217,'Footnotes list'!$D$9:$E$58,2,FALSE)=0,\"\",VLOOKUP(CB217,'Footnotes list'!$D$9:$E$58,2,FALSE) ) )","v":""},null,null,null,null,{"$f":"IF(TRIM(CG217)=\"\", \"\", IF(VLOOKUP(CG217,'Footnotes list'!$D$9:$E$58,2,FALSE)=0,\"\",VLOOKUP(CG217,'Footnotes list'!$D$9:$E$58,2,FALSE) ) )","v":""},null,null,null,null,{"$f":"IF(TRIM(CL217)=\"\", \"\", IF(VLOOKUP(CL217,'Footnotes list'!$D$9:$E$58,2,FALSE)=0,\"\",VLOOKUP(CL217,'Footnotes list'!$D$9:$E$58,2,FALSE) ) )","v":""},null,null,null,null,{"$f":"IF(TRIM(CQ217)=\"\", \"\", IF(VLOOKUP(CQ217,'Footnotes list'!$D$9:$E$58,2,FALSE)=0,\"\",VLOOKUP(CQ217,'Footnotes list'!$D$9:$E$58,2,FALSE) ) )","v":""},null,null,null,null,{"$f":"IF(TRIM(CV217)=\"\", \"\", IF(VLOOKUP(CV217,'Footnotes list'!$D$9:$E$58,2,FALSE)=0,\"\",VLOOKUP(CV217,'Footnotes list'!$D$9:$E$58,2,FALSE) ) )","v":""},null,null,null,null,{"$f":"IF(TRIM(DA217)=\"\", \"\", IF(VLOOKUP(DA217,'Footnotes list'!$D$9:$E$58,2,FALSE)=0,\"\",VLOOKUP(DA217,'Footnotes list'!$D$9:$E$58,2,FALSE) ) )","v":""},null,null,null,null,{"$f":"IF(TRIM(DF217)=\"\", \"\", IF(VLOOKUP(DF217,'Footnotes list'!$D$9:$E$58,2,FALSE)=0,\"\",VLOOKUP(DF217,'Footnotes list'!$D$9:$E$58,2,FALSE) ) )","v":""},null,null,null,null,{"$f":"IF(TRIM(DK217)=\"\", \"\", IF(VLOOKUP(DK217,'Footnotes list'!$D$9:$E$58,2,FALSE)=0,\"\",VLOOKUP(DK217,'Footnotes list'!$D$9:$E$58,2,FALSE) ) )","v":""},null,null,null,null,{"$f":"IF(TRIM(DP217)=\"\", \"\", IF(VLOOKUP(DP217,'Footnotes list'!$D$9:$E$58,2,FALSE)=0,\"\",VLOOKUP(DP217,'Footnotes list'!$D$9:$E$58,2,FALSE) ) )","v":""},null,null,null,null,{"$f":"IF(TRIM(DU217)=\"\", \"\", IF(VLOOKUP(DU217,'Footnotes list'!$D$9:$E$58,2,FALSE)=0,\"\",VLOOKUP(DU217,'Footnotes list'!$D$9:$E$58,2,FALSE) ) )","v":""},null,null,null,null,{"$f":"IF(TRIM(DZ217)=\"\", \"\", IF(VLOOKUP(DZ217,'Footnotes list'!$D$9:$E$58,2,FALSE)=0,\"\",VLOOKUP(DZ217,'Footnotes list'!$D$9:$E$58,2,FALSE) ) )","v":""},null,null,null,null,{"$f":"IF(TRIM(EE217)=\"\", \"\", IF(VLOOKUP(EE217,'Footnotes list'!$D$9:$E$58,2,FALSE)=0,\"\",VLOOKUP(EE217,'Footnotes list'!$D$9:$E$58,2,FALSE) ) )","v":""},null,null,null,null,{"$f":"IF(TRIM(EJ217)=\"\", \"\", IF(VLOOKUP(EJ217,'Footnotes list'!$D$9:$E$58,2,FALSE)=0,\"\",VLOOKUP(EJ217,'Footnotes list'!$D$9:$E$58,2,FALSE) ) )","v":""},null,null,null,null,{"$f":"IF(TRIM(EO217)=\"\", \"\", IF(VLOOKUP(EO217,'Footnotes list'!$D$9:$E$58,2,FALSE)=0,\"\",VLOOKUP(EO217,'Footnotes list'!$D$9:$E$58,2,FALSE) ) )","v":""},null,null,null,null,{"$f":"IF(TRIM(ET217)=\"\", \"\", IF(VLOOKUP(ET217,'Footnotes list'!$D$9:$E$58,2,FALSE)=0,\"\",VLOOKUP(ET217,'Footnotes list'!$D$9:$E$58,2,FALSE) ) )","v":""},null,null,null,null,{"$f":"IF(TRIM(EY217)=\"\", \"\", IF(VLOOKUP(EY217,'Footnotes list'!$D$9:$E$58,2,FALSE)=0,\"\",VLOOKUP(EY217,'Footnotes list'!$D$9:$E$58,2,FALSE) ) )","v":""}]
[null,null,"M","TOT_EGSS","Total M - Professional, scientific and technical activities, of which:",null,null,null,null,null,{"$f":"IF(TRIM(J218)=\"\", \"\", IF(VLOOKUP(J218,'Footnotes list'!$D$9:$E$58,2,FALSE)=0,\"\",VLOOKUP(J218,'Footnotes list'!$D$9:$E$58,2,FALSE) ) )","v":""},null,null,null,null,{"$f":"IF(TRIM(O218)=\"\", \"\", IF(VLOOKUP(O218,'Footnotes list'!$D$9:$E$58,2,FALSE)=0,\"\",VLOOKUP(O218,'Footnotes list'!$D$9:$E$58,2,FALSE) ) )","v":""},null,null,null,null,{"$f":"IF(TRIM(T218)=\"\", \"\", IF(VLOOKUP(T218,'Footnotes list'!$D$9:$E$58,2,FALSE)=0,\"\",VLOOKUP(T218,'Footnotes list'!$D$9:$E$58,2,FALSE) ) )","v":""},null,null,null,null,{"$f":"IF(TRIM(Y218)=\"\", \"\", IF(VLOOKUP(Y218,'Footnotes list'!$D$9:$E$58,2,FALSE)=0,\"\",VLOOKUP(Y218,'Footnotes list'!$D$9:$E$58,2,FALSE) ) )","v":""},null,null,null,null,{"$f":"IF(TRIM(AD218)=\"\", \"\", IF(VLOOKUP(AD218,'Footnotes list'!$D$9:$E$58,2,FALSE)=0,\"\",VLOOKUP(AD218,'Footnotes list'!$D$9:$E$58,2,FALSE) ) )","v":""},null,null,null,null,{"$f":"IF(TRIM(AI218)=\"\", \"\", IF(VLOOKUP(AI218,'Footnotes list'!$D$9:$E$58,2,FALSE)=0,\"\",VLOOKUP(AI218,'Footnotes list'!$D$9:$E$58,2,FALSE) ) )","v":""},null,null,null,null,{"$f":"IF(TRIM(AN218)=\"\", \"\", IF(VLOOKUP(AN218,'Footnotes list'!$D$9:$E$58,2,FALSE)=0,\"\",VLOOKUP(AN218,'Footnotes list'!$D$9:$E$58,2,FALSE) ) )","v":""},null,null,null,null,{"$f":"IF(TRIM(AS218)=\"\", \"\", IF(VLOOKUP(AS218,'Footnotes list'!$D$9:$E$58,2,FALSE)=0,\"\",VLOOKUP(AS218,'Footnotes list'!$D$9:$E$58,2,FALSE) ) )","v":""},null,null,null,null,{"$f":"IF(TRIM(AX218)=\"\", \"\", IF(VLOOKUP(AX218,'Footnotes list'!$D$9:$E$58,2,FALSE)=0,\"\",VLOOKUP(AX218,'Footnotes list'!$D$9:$E$58,2,FALSE) ) )","v":""},null,null,null,null,{"$f":"IF(TRIM(BC218)=\"\", \"\", IF(VLOOKUP(BC218,'Footnotes list'!$D$9:$E$58,2,FALSE)=0,\"\",VLOOKUP(BC218,'Footnotes list'!$D$9:$E$58,2,FALSE) ) )","v":""},null,null,null,null,{"$f":"IF(TRIM(BH218)=\"\", \"\", IF(VLOOKUP(BH218,'Footnotes list'!$D$9:$E$58,2,FALSE)=0,\"\",VLOOKUP(BH218,'Footnotes list'!$D$9:$E$58,2,FALSE) ) )","v":""},null,null,null,null,{"$f":"IF(TRIM(BM218)=\"\", \"\", IF(VLOOKUP(BM218,'Footnotes list'!$D$9:$E$58,2,FALSE)=0,\"\",VLOOKUP(BM218,'Footnotes list'!$D$9:$E$58,2,FALSE) ) )","v":""},null,null,null,null,{"$f":"IF(TRIM(BR218)=\"\", \"\", IF(VLOOKUP(BR218,'Footnotes list'!$D$9:$E$58,2,FALSE)=0,\"\",VLOOKUP(BR218,'Footnotes list'!$D$9:$E$58,2,FALSE) ) )","v":""},null,null,null,null,{"$f":"IF(TRIM(BW218)=\"\", \"\", IF(VLOOKUP(BW218,'Footnotes list'!$D$9:$E$58,2,FALSE)=0,\"\",VLOOKUP(BW218,'Footnotes list'!$D$9:$E$58,2,FALSE) ) )","v":""},null,null,null,null,{"$f":"IF(TRIM(CB218)=\"\", \"\", IF(VLOOKUP(CB218,'Footnotes list'!$D$9:$E$58,2,FALSE)=0,\"\",VLOOKUP(CB218,'Footnotes list'!$D$9:$E$58,2,FALSE) ) )","v":""},null,null,null,null,{"$f":"IF(TRIM(CG218)=\"\", \"\", IF(VLOOKUP(CG218,'Footnotes list'!$D$9:$E$58,2,FALSE)=0,\"\",VLOOKUP(CG218,'Footnotes list'!$D$9:$E$58,2,FALSE) ) )","v":""},null,null,null,null,{"$f":"IF(TRIM(CL218)=\"\", \"\", IF(VLOOKUP(CL218,'Footnotes list'!$D$9:$E$58,2,FALSE)=0,\"\",VLOOKUP(CL218,'Footnotes list'!$D$9:$E$58,2,FALSE) ) )","v":""},null,null,null,null,{"$f":"IF(TRIM(CQ218)=\"\", \"\", IF(VLOOKUP(CQ218,'Footnotes list'!$D$9:$E$58,2,FALSE)=0,\"\",VLOOKUP(CQ218,'Footnotes list'!$D$9:$E$58,2,FALSE) ) )","v":""},null,null,null,null,{"$f":"IF(TRIM(CV218)=\"\", \"\", IF(VLOOKUP(CV218,'Footnotes list'!$D$9:$E$58,2,FALSE)=0,\"\",VLOOKUP(CV218,'Footnotes list'!$D$9:$E$58,2,FALSE) ) )","v":""},null,null,null,null,{"$f":"IF(TRIM(DA218)=\"\", \"\", IF(VLOOKUP(DA218,'Footnotes list'!$D$9:$E$58,2,FALSE)=0,\"\",VLOOKUP(DA218,'Footnotes list'!$D$9:$E$58,2,FALSE) ) )","v":""},null,null,null,null,{"$f":"IF(TRIM(DF218)=\"\", \"\", IF(VLOOKUP(DF218,'Footnotes list'!$D$9:$E$58,2,FALSE)=0,\"\",VLOOKUP(DF218,'Footnotes list'!$D$9:$E$58,2,FALSE) ) )","v":""},null,null,null,null,{"$f":"IF(TRIM(DK218)=\"\", \"\", IF(VLOOKUP(DK218,'Footnotes list'!$D$9:$E$58,2,FALSE)=0,\"\",VLOOKUP(DK218,'Footnotes list'!$D$9:$E$58,2,FALSE) ) )","v":""},null,null,null,null,{"$f":"IF(TRIM(DP218)=\"\", \"\", IF(VLOOKUP(DP218,'Footnotes list'!$D$9:$E$58,2,FALSE)=0,\"\",VLOOKUP(DP218,'Footnotes list'!$D$9:$E$58,2,FALSE) ) )","v":""},null,null,null,null,{"$f":"IF(TRIM(DU218)=\"\", \"\", IF(VLOOKUP(DU218,'Footnotes list'!$D$9:$E$58,2,FALSE)=0,\"\",VLOOKUP(DU218,'Footnotes list'!$D$9:$E$58,2,FALSE) ) )","v":""},null,null,null,null,{"$f":"IF(TRIM(DZ218)=\"\", \"\", IF(VLOOKUP(DZ218,'Footnotes list'!$D$9:$E$58,2,FALSE)=0,\"\",VLOOKUP(DZ218,'Footnotes list'!$D$9:$E$58,2,FALSE) ) )","v":""},null,null,null,null,{"$f":"IF(TRIM(EE218)=\"\", \"\", IF(VLOOKUP(EE218,'Footnotes list'!$D$9:$E$58,2,FALSE)=0,\"\",VLOOKUP(EE218,'Footnotes list'!$D$9:$E$58,2,FALSE) ) )","v":""},null,null,null,null,{"$f":"IF(TRIM(EJ218)=\"\", \"\", IF(VLOOKUP(EJ218,'Footnotes list'!$D$9:$E$58,2,FALSE)=0,\"\",VLOOKUP(EJ218,'Footnotes list'!$D$9:$E$58,2,FALSE) ) )","v":""},null,null,null,null,{"$f":"IF(TRIM(EO218)=\"\", \"\", IF(VLOOKUP(EO218,'Footnotes list'!$D$9:$E$58,2,FALSE)=0,\"\",VLOOKUP(EO218,'Footnotes list'!$D$9:$E$58,2,FALSE) ) )","v":""},null,null,null,null,{"$f":"IF(TRIM(ET218)=\"\", \"\", IF(VLOOKUP(ET218,'Footnotes list'!$D$9:$E$58,2,FALSE)=0,\"\",VLOOKUP(ET218,'Footnotes list'!$D$9:$E$58,2,FALSE) ) )","v":""},null,null,null,null,{"$f":"IF(TRIM(EY218)=\"\", \"\", IF(VLOOKUP(EY218,'Footnotes list'!$D$9:$E$58,2,FALSE)=0,\"\",VLOOKUP(EY218,'Footnotes list'!$D$9:$E$58,2,FALSE) ) )","v":""}]
[null,null,"M","ANC","ancillary activities",null,null,null,null,null,{"$f":"IF(TRIM(J219)=\"\", \"\", IF(VLOOKUP(J219,'Footnotes list'!$D$9:$E$58,2,FALSE)=0,\"\",VLOOKUP(J219,'Footnotes list'!$D$9:$E$58,2,FALSE) ) )","v":""},null,null,null,null,{"$f":"IF(TRIM(O219)=\"\", \"\", IF(VLOOKUP(O219,'Footnotes list'!$D$9:$E$58,2,FALSE)=0,\"\",VLOOKUP(O219,'Footnotes list'!$D$9:$E$58,2,FALSE) ) )","v":""},null,null,null,null,{"$f":"IF(TRIM(T219)=\"\", \"\", IF(VLOOKUP(T219,'Footnotes list'!$D$9:$E$58,2,FALSE)=0,\"\",VLOOKUP(T219,'Footnotes list'!$D$9:$E$58,2,FALSE) ) )","v":""},null,null,null,null,{"$f":"IF(TRIM(Y219)=\"\", \"\", IF(VLOOKUP(Y219,'Footnotes list'!$D$9:$E$58,2,FALSE)=0,\"\",VLOOKUP(Y219,'Footnotes list'!$D$9:$E$58,2,FALSE) ) )","v":""},null,null,null,null,{"$f":"IF(TRIM(AD219)=\"\", \"\", IF(VLOOKUP(AD219,'Footnotes list'!$D$9:$E$58,2,FALSE)=0,\"\",VLOOKUP(AD219,'Footnotes list'!$D$9:$E$58,2,FALSE) ) )","v":""},null,null,null,null,{"$f":"IF(TRIM(AI219)=\"\", \"\", IF(VLOOKUP(AI219,'Footnotes list'!$D$9:$E$58,2,FALSE)=0,\"\",VLOOKUP(AI219,'Footnotes list'!$D$9:$E$58,2,FALSE) ) )","v":""},null,null,null,null,{"$f":"IF(TRIM(AN219)=\"\", \"\", IF(VLOOKUP(AN219,'Footnotes list'!$D$9:$E$58,2,FALSE)=0,\"\",VLOOKUP(AN219,'Footnotes list'!$D$9:$E$58,2,FALSE) ) )","v":""},null,null,null,null,{"$f":"IF(TRIM(AS219)=\"\", \"\", IF(VLOOKUP(AS219,'Footnotes list'!$D$9:$E$58,2,FALSE)=0,\"\",VLOOKUP(AS219,'Footnotes list'!$D$9:$E$58,2,FALSE) ) )","v":""},null,null,null,null,{"$f":"IF(TRIM(AX219)=\"\", \"\", IF(VLOOKUP(AX219,'Footnotes list'!$D$9:$E$58,2,FALSE)=0,\"\",VLOOKUP(AX219,'Footnotes list'!$D$9:$E$58,2,FALSE) ) )","v":""},null,null,null,null,{"$f":"IF(TRIM(BC219)=\"\", \"\", IF(VLOOKUP(BC219,'Footnotes list'!$D$9:$E$58,2,FALSE)=0,\"\",VLOOKUP(BC219,'Footnotes list'!$D$9:$E$58,2,FALSE) ) )","v":""},null,null,null,null,{"$f":"IF(TRIM(BH219)=\"\", \"\", IF(VLOOKUP(BH219,'Footnotes list'!$D$9:$E$58,2,FALSE)=0,\"\",VLOOKUP(BH219,'Footnotes list'!$D$9:$E$58,2,FALSE) ) )","v":""},null,null,null,null,{"$f":"IF(TRIM(BM219)=\"\", \"\", IF(VLOOKUP(BM219,'Footnotes list'!$D$9:$E$58,2,FALSE)=0,\"\",VLOOKUP(BM219,'Footnotes list'!$D$9:$E$58,2,FALSE) ) )","v":""},null,null,null,null,{"$f":"IF(TRIM(BR219)=\"\", \"\", IF(VLOOKUP(BR219,'Footnotes list'!$D$9:$E$58,2,FALSE)=0,\"\",VLOOKUP(BR219,'Footnotes list'!$D$9:$E$58,2,FALSE) ) )","v":""},null,null,null,null,{"$f":"IF(TRIM(BW219)=\"\", \"\", IF(VLOOKUP(BW219,'Footnotes list'!$D$9:$E$58,2,FALSE)=0,\"\",VLOOKUP(BW219,'Footnotes list'!$D$9:$E$58,2,FALSE) ) )","v":""},null,null,null,null,{"$f":"IF(TRIM(CB219)=\"\", \"\", IF(VLOOKUP(CB219,'Footnotes list'!$D$9:$E$58,2,FALSE)=0,\"\",VLOOKUP(CB219,'Footnotes list'!$D$9:$E$58,2,FALSE) ) )","v":""},null,null,null,null,{"$f":"IF(TRIM(CG219)=\"\", \"\", IF(VLOOKUP(CG219,'Footnotes list'!$D$9:$E$58,2,FALSE)=0,\"\",VLOOKUP(CG219,'Footnotes list'!$D$9:$E$58,2,FALSE) ) )","v":""},null,null,null,null,{"$f":"IF(TRIM(CL219)=\"\", \"\", IF(VLOOKUP(CL219,'Footnotes list'!$D$9:$E$58,2,FALSE)=0,\"\",VLOOKUP(CL219,'Footnotes list'!$D$9:$E$58,2,FALSE) ) )","v":""},null,null,null,null,{"$f":"IF(TRIM(CQ219)=\"\", \"\", IF(VLOOKUP(CQ219,'Footnotes list'!$D$9:$E$58,2,FALSE)=0,\"\",VLOOKUP(CQ219,'Footnotes list'!$D$9:$E$58,2,FALSE) ) )","v":""},null,null,null,null,{"$f":"IF(TRIM(CV219)=\"\", \"\", IF(VLOOKUP(CV219,'Footnotes list'!$D$9:$E$58,2,FALSE)=0,\"\",VLOOKUP(CV219,'Footnotes list'!$D$9:$E$58,2,FALSE) ) )","v":""},null,null,null,null,{"$f":"IF(TRIM(DA219)=\"\", \"\", IF(VLOOKUP(DA219,'Footnotes list'!$D$9:$E$58,2,FALSE)=0,\"\",VLOOKUP(DA219,'Footnotes list'!$D$9:$E$58,2,FALSE) ) )","v":""},null,null,null,null,{"$f":"IF(TRIM(DF219)=\"\", \"\", IF(VLOOKUP(DF219,'Footnotes list'!$D$9:$E$58,2,FALSE)=0,\"\",VLOOKUP(DF219,'Footnotes list'!$D$9:$E$58,2,FALSE) ) )","v":""},null,null,null,null,{"$f":"IF(TRIM(DK219)=\"\", \"\", IF(VLOOKUP(DK219,'Footnotes list'!$D$9:$E$58,2,FALSE)=0,\"\",VLOOKUP(DK219,'Footnotes list'!$D$9:$E$58,2,FALSE) ) )","v":""},null,null,null,null,{"$f":"IF(TRIM(DP219)=\"\", \"\", IF(VLOOKUP(DP219,'Footnotes list'!$D$9:$E$58,2,FALSE)=0,\"\",VLOOKUP(DP219,'Footnotes list'!$D$9:$E$58,2,FALSE) ) )","v":""},null,null,null,null,{"$f":"IF(TRIM(DU219)=\"\", \"\", IF(VLOOKUP(DU219,'Footnotes list'!$D$9:$E$58,2,FALSE)=0,\"\",VLOOKUP(DU219,'Footnotes list'!$D$9:$E$58,2,FALSE) ) )","v":""},null,null,null,null,{"$f":"IF(TRIM(DZ219)=\"\", \"\", IF(VLOOKUP(DZ219,'Footnotes list'!$D$9:$E$58,2,FALSE)=0,\"\",VLOOKUP(DZ219,'Footnotes list'!$D$9:$E$58,2,FALSE) ) )","v":""},null,null,null,null,{"$f":"IF(TRIM(EE219)=\"\", \"\", IF(VLOOKUP(EE219,'Footnotes list'!$D$9:$E$58,2,FALSE)=0,\"\",VLOOKUP(EE219,'Footnotes list'!$D$9:$E$58,2,FALSE) ) )","v":""},null,null,null,null,{"$f":"IF(TRIM(EJ219)=\"\", \"\", IF(VLOOKUP(EJ219,'Footnotes list'!$D$9:$E$58,2,FALSE)=0,\"\",VLOOKUP(EJ219,'Footnotes list'!$D$9:$E$58,2,FALSE) ) )","v":""},null,null,null,null,{"$f":"IF(TRIM(EO219)=\"\", \"\", IF(VLOOKUP(EO219,'Footnotes list'!$D$9:$E$58,2,FALSE)=0,\"\",VLOOKUP(EO219,'Footnotes list'!$D$9:$E$58,2,FALSE) ) )","v":""},null,null,null,null,{"$f":"IF(TRIM(ET219)=\"\", \"\", IF(VLOOKUP(ET219,'Footnotes list'!$D$9:$E$58,2,FALSE)=0,\"\",VLOOKUP(ET219,'Footnotes list'!$D$9:$E$58,2,FALSE) ) )","v":""},null,null,null,null,{"$f":"IF(TRIM(EY219)=\"\", \"\", IF(VLOOKUP(EY219,'Footnotes list'!$D$9:$E$58,2,FALSE)=0,\"\",VLOOKUP(EY219,'Footnotes list'!$D$9:$E$58,2,FALSE) ) )","v":""}]
[null,null,"M","NMKT","non-market activities",null,null,null,null,null,{"$f":"IF(TRIM(J220)=\"\", \"\", IF(VLOOKUP(J220,'Footnotes list'!$D$9:$E$58,2,FALSE)=0,\"\",VLOOKUP(J220,'Footnotes list'!$D$9:$E$58,2,FALSE) ) )","v":""},null,null,null,null,{"$f":"IF(TRIM(O220)=\"\", \"\", IF(VLOOKUP(O220,'Footnotes list'!$D$9:$E$58,2,FALSE)=0,\"\",VLOOKUP(O220,'Footnotes list'!$D$9:$E$58,2,FALSE) ) )","v":""},null,null,null,null,{"$f":"IF(TRIM(T220)=\"\", \"\", IF(VLOOKUP(T220,'Footnotes list'!$D$9:$E$58,2,FALSE)=0,\"\",VLOOKUP(T220,'Footnotes list'!$D$9:$E$58,2,FALSE) ) )","v":""},null,null,null,null,{"$f":"IF(TRIM(Y220)=\"\", \"\", IF(VLOOKUP(Y220,'Footnotes list'!$D$9:$E$58,2,FALSE)=0,\"\",VLOOKUP(Y220,'Footnotes list'!$D$9:$E$58,2,FALSE) ) )","v":""},null,null,null,null,{"$f":"IF(TRIM(AD220)=\"\", \"\", IF(VLOOKUP(AD220,'Footnotes list'!$D$9:$E$58,2,FALSE)=0,\"\",VLOOKUP(AD220,'Footnotes list'!$D$9:$E$58,2,FALSE) ) )","v":""},null,null,null,null,{"$f":"IF(TRIM(AI220)=\"\", \"\", IF(VLOOKUP(AI220,'Footnotes list'!$D$9:$E$58,2,FALSE)=0,\"\",VLOOKUP(AI220,'Footnotes list'!$D$9:$E$58,2,FALSE) ) )","v":""},null,null,null,null,{"$f":"IF(TRIM(AN220)=\"\", \"\", IF(VLOOKUP(AN220,'Footnotes list'!$D$9:$E$58,2,FALSE)=0,\"\",VLOOKUP(AN220,'Footnotes list'!$D$9:$E$58,2,FALSE) ) )","v":""},null,null,null,null,{"$f":"IF(TRIM(AS220)=\"\", \"\", IF(VLOOKUP(AS220,'Footnotes list'!$D$9:$E$58,2,FALSE)=0,\"\",VLOOKUP(AS220,'Footnotes list'!$D$9:$E$58,2,FALSE) ) )","v":""},null,null,null,null,{"$f":"IF(TRIM(AX220)=\"\", \"\", IF(VLOOKUP(AX220,'Footnotes list'!$D$9:$E$58,2,FALSE)=0,\"\",VLOOKUP(AX220,'Footnotes list'!$D$9:$E$58,2,FALSE) ) )","v":""},null,null,null,null,{"$f":"IF(TRIM(BC220)=\"\", \"\", IF(VLOOKUP(BC220,'Footnotes list'!$D$9:$E$58,2,FALSE)=0,\"\",VLOOKUP(BC220,'Footnotes list'!$D$9:$E$58,2,FALSE) ) )","v":""},null,null,null,null,{"$f":"IF(TRIM(BH220)=\"\", \"\", IF(VLOOKUP(BH220,'Footnotes list'!$D$9:$E$58,2,FALSE)=0,\"\",VLOOKUP(BH220,'Footnotes list'!$D$9:$E$58,2,FALSE) ) )","v":""},null,null,null,null,{"$f":"IF(TRIM(BM220)=\"\", \"\", IF(VLOOKUP(BM220,'Footnotes list'!$D$9:$E$58,2,FALSE)=0,\"\",VLOOKUP(BM220,'Footnotes list'!$D$9:$E$58,2,FALSE) ) )","v":""},null,null,null,null,{"$f":"IF(TRIM(BR220)=\"\", \"\", IF(VLOOKUP(BR220,'Footnotes list'!$D$9:$E$58,2,FALSE)=0,\"\",VLOOKUP(BR220,'Footnotes list'!$D$9:$E$58,2,FALSE) ) )","v":""},null,null,null,null,{"$f":"IF(TRIM(BW220)=\"\", \"\", IF(VLOOKUP(BW220,'Footnotes list'!$D$9:$E$58,2,FALSE)=0,\"\",VLOOKUP(BW220,'Footnotes list'!$D$9:$E$58,2,FALSE) ) )","v":""},null,null,null,null,{"$f":"IF(TRIM(CB220)=\"\", \"\", IF(VLOOKUP(CB220,'Footnotes list'!$D$9:$E$58,2,FALSE)=0,\"\",VLOOKUP(CB220,'Footnotes list'!$D$9:$E$58,2,FALSE) ) )","v":""},null,null,null,null,{"$f":"IF(TRIM(CG220)=\"\", \"\", IF(VLOOKUP(CG220,'Footnotes list'!$D$9:$E$58,2,FALSE)=0,\"\",VLOOKUP(CG220,'Footnotes list'!$D$9:$E$58,2,FALSE) ) )","v":""},null,null,null,null,{"$f":"IF(TRIM(CL220)=\"\", \"\", IF(VLOOKUP(CL220,'Footnotes list'!$D$9:$E$58,2,FALSE)=0,\"\",VLOOKUP(CL220,'Footnotes list'!$D$9:$E$58,2,FALSE) ) )","v":""},null,null,null,null,{"$f":"IF(TRIM(CQ220)=\"\", \"\", IF(VLOOKUP(CQ220,'Footnotes list'!$D$9:$E$58,2,FALSE)=0,\"\",VLOOKUP(CQ220,'Footnotes list'!$D$9:$E$58,2,FALSE) ) )","v":""},null,null,null,null,{"$f":"IF(TRIM(CV220)=\"\", \"\", IF(VLOOKUP(CV220,'Footnotes list'!$D$9:$E$58,2,FALSE)=0,\"\",VLOOKUP(CV220,'Footnotes list'!$D$9:$E$58,2,FALSE) ) )","v":""},null,null,null,null,{"$f":"IF(TRIM(DA220)=\"\", \"\", IF(VLOOKUP(DA220,'Footnotes list'!$D$9:$E$58,2,FALSE)=0,\"\",VLOOKUP(DA220,'Footnotes list'!$D$9:$E$58,2,FALSE) ) )","v":""},null,null,null,null,{"$f":"IF(TRIM(DF220)=\"\", \"\", IF(VLOOKUP(DF220,'Footnotes list'!$D$9:$E$58,2,FALSE)=0,\"\",VLOOKUP(DF220,'Footnotes list'!$D$9:$E$58,2,FALSE) ) )","v":""},null,null,null,null,{"$f":"IF(TRIM(DK220)=\"\", \"\", IF(VLOOKUP(DK220,'Footnotes list'!$D$9:$E$58,2,FALSE)=0,\"\",VLOOKUP(DK220,'Footnotes list'!$D$9:$E$58,2,FALSE) ) )","v":""},null,null,null,null,{"$f":"IF(TRIM(DP220)=\"\", \"\", IF(VLOOKUP(DP220,'Footnotes list'!$D$9:$E$58,2,FALSE)=0,\"\",VLOOKUP(DP220,'Footnotes list'!$D$9:$E$58,2,FALSE) ) )","v":""},null,null,null,null,{"$f":"IF(TRIM(DU220)=\"\", \"\", IF(VLOOKUP(DU220,'Footnotes list'!$D$9:$E$58,2,FALSE)=0,\"\",VLOOKUP(DU220,'Footnotes list'!$D$9:$E$58,2,FALSE) ) )","v":""},null,null,null,null,{"$f":"IF(TRIM(DZ220)=\"\", \"\", IF(VLOOKUP(DZ220,'Footnotes list'!$D$9:$E$58,2,FALSE)=0,\"\",VLOOKUP(DZ220,'Footnotes list'!$D$9:$E$58,2,FALSE) ) )","v":""},null,null,null,null,{"$f":"IF(TRIM(EE220)=\"\", \"\", IF(VLOOKUP(EE220,'Footnotes list'!$D$9:$E$58,2,FALSE)=0,\"\",VLOOKUP(EE220,'Footnotes list'!$D$9:$E$58,2,FALSE) ) )","v":""},null,null,null,null,{"$f":"IF(TRIM(EJ220)=\"\", \"\", IF(VLOOKUP(EJ220,'Footnotes list'!$D$9:$E$58,2,FALSE)=0,\"\",VLOOKUP(EJ220,'Footnotes list'!$D$9:$E$58,2,FALSE) ) )","v":""},null,null,null,null,{"$f":"IF(TRIM(EO220)=\"\", \"\", IF(VLOOKUP(EO220,'Footnotes list'!$D$9:$E$58,2,FALSE)=0,\"\",VLOOKUP(EO220,'Footnotes list'!$D$9:$E$58,2,FALSE) ) )","v":""},null,null,null,null,{"$f":"IF(TRIM(ET220)=\"\", \"\", IF(VLOOKUP(ET220,'Footnotes list'!$D$9:$E$58,2,FALSE)=0,\"\",VLOOKUP(ET220,'Footnotes list'!$D$9:$E$58,2,FALSE) ) )","v":""},null,null,null,null,{"$f":"IF(TRIM(EY220)=\"\", \"\", IF(VLOOKUP(EY220,'Footnotes list'!$D$9:$E$58,2,FALSE)=0,\"\",VLOOKUP(EY220,'Footnotes list'!$D$9:$E$58,2,FALSE) ) )","v":""}]
[null,null,"M","OWN_USE","activities for own final use",null,null,null,null,null,{"$f":"IF(TRIM(J221)=\"\", \"\", IF(VLOOKUP(J221,'Footnotes list'!$D$9:$E$58,2,FALSE)=0,\"\",VLOOKUP(J221,'Footnotes list'!$D$9:$E$58,2,FALSE) ) )","v":""},null,null,null,null,{"$f":"IF(TRIM(O221)=\"\", \"\", IF(VLOOKUP(O221,'Footnotes list'!$D$9:$E$58,2,FALSE)=0,\"\",VLOOKUP(O221,'Footnotes list'!$D$9:$E$58,2,FALSE) ) )","v":""},null,null,null,null,{"$f":"IF(TRIM(T221)=\"\", \"\", IF(VLOOKUP(T221,'Footnotes list'!$D$9:$E$58,2,FALSE)=0,\"\",VLOOKUP(T221,'Footnotes list'!$D$9:$E$58,2,FALSE) ) )","v":""},null,null,null,null,{"$f":"IF(TRIM(Y221)=\"\", \"\", IF(VLOOKUP(Y221,'Footnotes list'!$D$9:$E$58,2,FALSE)=0,\"\",VLOOKUP(Y221,'Footnotes list'!$D$9:$E$58,2,FALSE) ) )","v":""},null,null,null,null,{"$f":"IF(TRIM(AD221)=\"\", \"\", IF(VLOOKUP(AD221,'Footnotes list'!$D$9:$E$58,2,FALSE)=0,\"\",VLOOKUP(AD221,'Footnotes list'!$D$9:$E$58,2,FALSE) ) )","v":""},null,null,null,null,{"$f":"IF(TRIM(AI221)=\"\", \"\", IF(VLOOKUP(AI221,'Footnotes list'!$D$9:$E$58,2,FALSE)=0,\"\",VLOOKUP(AI221,'Footnotes list'!$D$9:$E$58,2,FALSE) ) )","v":""},null,null,null,null,{"$f":"IF(TRIM(AN221)=\"\", \"\", IF(VLOOKUP(AN221,'Footnotes list'!$D$9:$E$58,2,FALSE)=0,\"\",VLOOKUP(AN221,'Footnotes list'!$D$9:$E$58,2,FALSE) ) )","v":""},null,null,null,null,{"$f":"IF(TRIM(AS221)=\"\", \"\", IF(VLOOKUP(AS221,'Footnotes list'!$D$9:$E$58,2,FALSE)=0,\"\",VLOOKUP(AS221,'Footnotes list'!$D$9:$E$58,2,FALSE) ) )","v":""},null,null,null,null,{"$f":"IF(TRIM(AX221)=\"\", \"\", IF(VLOOKUP(AX221,'Footnotes list'!$D$9:$E$58,2,FALSE)=0,\"\",VLOOKUP(AX221,'Footnotes list'!$D$9:$E$58,2,FALSE) ) )","v":""},null,null,null,null,{"$f":"IF(TRIM(BC221)=\"\", \"\", IF(VLOOKUP(BC221,'Footnotes list'!$D$9:$E$58,2,FALSE)=0,\"\",VLOOKUP(BC221,'Footnotes list'!$D$9:$E$58,2,FALSE) ) )","v":""},null,null,null,null,{"$f":"IF(TRIM(BH221)=\"\", \"\", IF(VLOOKUP(BH221,'Footnotes list'!$D$9:$E$58,2,FALSE)=0,\"\",VLOOKUP(BH221,'Footnotes list'!$D$9:$E$58,2,FALSE) ) )","v":""},null,null,null,null,{"$f":"IF(TRIM(BM221)=\"\", \"\", IF(VLOOKUP(BM221,'Footnotes list'!$D$9:$E$58,2,FALSE)=0,\"\",VLOOKUP(BM221,'Footnotes list'!$D$9:$E$58,2,FALSE) ) )","v":""},null,null,null,null,{"$f":"IF(TRIM(BR221)=\"\", \"\", IF(VLOOKUP(BR221,'Footnotes list'!$D$9:$E$58,2,FALSE)=0,\"\",VLOOKUP(BR221,'Footnotes list'!$D$9:$E$58,2,FALSE) ) )","v":""},null,null,null,null,{"$f":"IF(TRIM(BW221)=\"\", \"\", IF(VLOOKUP(BW221,'Footnotes list'!$D$9:$E$58,2,FALSE)=0,\"\",VLOOKUP(BW221,'Footnotes list'!$D$9:$E$58,2,FALSE) ) )","v":""},null,null,null,null,{"$f":"IF(TRIM(CB221)=\"\", \"\", IF(VLOOKUP(CB221,'Footnotes list'!$D$9:$E$58,2,FALSE)=0,\"\",VLOOKUP(CB221,'Footnotes list'!$D$9:$E$58,2,FALSE) ) )","v":""},null,null,null,null,{"$f":"IF(TRIM(CG221)=\"\", \"\", IF(VLOOKUP(CG221,'Footnotes list'!$D$9:$E$58,2,FALSE)=0,\"\",VLOOKUP(CG221,'Footnotes list'!$D$9:$E$58,2,FALSE) ) )","v":""},null,null,null,null,{"$f":"IF(TRIM(CL221)=\"\", \"\", IF(VLOOKUP(CL221,'Footnotes list'!$D$9:$E$58,2,FALSE)=0,\"\",VLOOKUP(CL221,'Footnotes list'!$D$9:$E$58,2,FALSE) ) )","v":""},null,null,null,null,{"$f":"IF(TRIM(CQ221)=\"\", \"\", IF(VLOOKUP(CQ221,'Footnotes list'!$D$9:$E$58,2,FALSE)=0,\"\",VLOOKUP(CQ221,'Footnotes list'!$D$9:$E$58,2,FALSE) ) )","v":""},null,null,null,null,{"$f":"IF(TRIM(CV221)=\"\", \"\", IF(VLOOKUP(CV221,'Footnotes list'!$D$9:$E$58,2,FALSE)=0,\"\",VLOOKUP(CV221,'Footnotes list'!$D$9:$E$58,2,FALSE) ) )","v":""},null,null,null,null,{"$f":"IF(TRIM(DA221)=\"\", \"\", IF(VLOOKUP(DA221,'Footnotes list'!$D$9:$E$58,2,FALSE)=0,\"\",VLOOKUP(DA221,'Footnotes list'!$D$9:$E$58,2,FALSE) ) )","v":""},null,null,null,null,{"$f":"IF(TRIM(DF221)=\"\", \"\", IF(VLOOKUP(DF221,'Footnotes list'!$D$9:$E$58,2,FALSE)=0,\"\",VLOOKUP(DF221,'Footnotes list'!$D$9:$E$58,2,FALSE) ) )","v":""},null,null,null,null,{"$f":"IF(TRIM(DK221)=\"\", \"\", IF(VLOOKUP(DK221,'Footnotes list'!$D$9:$E$58,2,FALSE)=0,\"\",VLOOKUP(DK221,'Footnotes list'!$D$9:$E$58,2,FALSE) ) )","v":""},null,null,null,null,{"$f":"IF(TRIM(DP221)=\"\", \"\", IF(VLOOKUP(DP221,'Footnotes list'!$D$9:$E$58,2,FALSE)=0,\"\",VLOOKUP(DP221,'Footnotes list'!$D$9:$E$58,2,FALSE) ) )","v":""},null,null,null,null,{"$f":"IF(TRIM(DU221)=\"\", \"\", IF(VLOOKUP(DU221,'Footnotes list'!$D$9:$E$58,2,FALSE)=0,\"\",VLOOKUP(DU221,'Footnotes list'!$D$9:$E$58,2,FALSE) ) )","v":""},null,null,null,null,{"$f":"IF(TRIM(DZ221)=\"\", \"\", IF(VLOOKUP(DZ221,'Footnotes list'!$D$9:$E$58,2,FALSE)=0,\"\",VLOOKUP(DZ221,'Footnotes list'!$D$9:$E$58,2,FALSE) ) )","v":""},null,null,null,null,{"$f":"IF(TRIM(EE221)=\"\", \"\", IF(VLOOKUP(EE221,'Footnotes list'!$D$9:$E$58,2,FALSE)=0,\"\",VLOOKUP(EE221,'Footnotes list'!$D$9:$E$58,2,FALSE) ) )","v":""},null,null,null,null,{"$f":"IF(TRIM(EJ221)=\"\", \"\", IF(VLOOKUP(EJ221,'Footnotes list'!$D$9:$E$58,2,FALSE)=0,\"\",VLOOKUP(EJ221,'Footnotes list'!$D$9:$E$58,2,FALSE) ) )","v":""},null,null,null,null,{"$f":"IF(TRIM(EO221)=\"\", \"\", IF(VLOOKUP(EO221,'Footnotes list'!$D$9:$E$58,2,FALSE)=0,\"\",VLOOKUP(EO221,'Footnotes list'!$D$9:$E$58,2,FALSE) ) )","v":""},null,null,null,null,{"$f":"IF(TRIM(ET221)=\"\", \"\", IF(VLOOKUP(ET221,'Footnotes list'!$D$9:$E$58,2,FALSE)=0,\"\",VLOOKUP(ET221,'Footnotes list'!$D$9:$E$58,2,FALSE) ) )","v":""},null,null,null,null,{"$f":"IF(TRIM(EY221)=\"\", \"\", IF(VLOOKUP(EY221,'Footnotes list'!$D$9:$E$58,2,FALSE)=0,\"\",VLOOKUP(EY221,'Footnotes list'!$D$9:$E$58,2,FALSE) ) )","v":""}]
[null,null,"M","MKT","market activities, including:",null,null,null,null,null,{"$f":"IF(TRIM(J222)=\"\", \"\", IF(VLOOKUP(J222,'Footnotes list'!$D$9:$E$58,2,FALSE)=0,\"\",VLOOKUP(J222,'Footnotes list'!$D$9:$E$58,2,FALSE) ) )","v":""},null,null,null,null,{"$f":"IF(TRIM(O222)=\"\", \"\", IF(VLOOKUP(O222,'Footnotes list'!$D$9:$E$58,2,FALSE)=0,\"\",VLOOKUP(O222,'Footnotes list'!$D$9:$E$58,2,FALSE) ) )","v":""},null,null,null,null,{"$f":"IF(TRIM(T222)=\"\", \"\", IF(VLOOKUP(T222,'Footnotes list'!$D$9:$E$58,2,FALSE)=0,\"\",VLOOKUP(T222,'Footnotes list'!$D$9:$E$58,2,FALSE) ) )","v":""},null,null,null,null,{"$f":"IF(TRIM(Y222)=\"\", \"\", IF(VLOOKUP(Y222,'Footnotes list'!$D$9:$E$58,2,FALSE)=0,\"\",VLOOKUP(Y222,'Footnotes list'!$D$9:$E$58,2,FALSE) ) )","v":""},null,null,null,null,{"$f":"IF(TRIM(AD222)=\"\", \"\", IF(VLOOKUP(AD222,'Footnotes list'!$D$9:$E$58,2,FALSE)=0,\"\",VLOOKUP(AD222,'Footnotes list'!$D$9:$E$58,2,FALSE) ) )","v":""},null,null,null,null,{"$f":"IF(TRIM(AI222)=\"\", \"\", IF(VLOOKUP(AI222,'Footnotes list'!$D$9:$E$58,2,FALSE)=0,\"\",VLOOKUP(AI222,'Footnotes list'!$D$9:$E$58,2,FALSE) ) )","v":""},null,null,null,null,{"$f":"IF(TRIM(AN222)=\"\", \"\", IF(VLOOKUP(AN222,'Footnotes list'!$D$9:$E$58,2,FALSE)=0,\"\",VLOOKUP(AN222,'Footnotes list'!$D$9:$E$58,2,FALSE) ) )","v":""},null,null,null,null,{"$f":"IF(TRIM(AS222)=\"\", \"\", IF(VLOOKUP(AS222,'Footnotes list'!$D$9:$E$58,2,FALSE)=0,\"\",VLOOKUP(AS222,'Footnotes list'!$D$9:$E$58,2,FALSE) ) )","v":""},null,null,null,null,{"$f":"IF(TRIM(AX222)=\"\", \"\", IF(VLOOKUP(AX222,'Footnotes list'!$D$9:$E$58,2,FALSE)=0,\"\",VLOOKUP(AX222,'Footnotes list'!$D$9:$E$58,2,FALSE) ) )","v":""},null,null,null,null,{"$f":"IF(TRIM(BC222)=\"\", \"\", IF(VLOOKUP(BC222,'Footnotes list'!$D$9:$E$58,2,FALSE)=0,\"\",VLOOKUP(BC222,'Footnotes list'!$D$9:$E$58,2,FALSE) ) )","v":""},null,null,null,null,{"$f":"IF(TRIM(BH222)=\"\", \"\", IF(VLOOKUP(BH222,'Footnotes list'!$D$9:$E$58,2,FALSE)=0,\"\",VLOOKUP(BH222,'Footnotes list'!$D$9:$E$58,2,FALSE) ) )","v":""},null,null,null,null,{"$f":"IF(TRIM(BM222)=\"\", \"\", IF(VLOOKUP(BM222,'Footnotes list'!$D$9:$E$58,2,FALSE)=0,\"\",VLOOKUP(BM222,'Footnotes list'!$D$9:$E$58,2,FALSE) ) )","v":""},null,null,null,null,{"$f":"IF(TRIM(BR222)=\"\", \"\", IF(VLOOKUP(BR222,'Footnotes list'!$D$9:$E$58,2,FALSE)=0,\"\",VLOOKUP(BR222,'Footnotes list'!$D$9:$E$58,2,FALSE) ) )","v":""},null,null,null,null,{"$f":"IF(TRIM(BW222)=\"\", \"\", IF(VLOOKUP(BW222,'Footnotes list'!$D$9:$E$58,2,FALSE)=0,\"\",VLOOKUP(BW222,'Footnotes list'!$D$9:$E$58,2,FALSE) ) )","v":""},null,null,null,null,{"$f":"IF(TRIM(CB222)=\"\", \"\", IF(VLOOKUP(CB222,'Footnotes list'!$D$9:$E$58,2,FALSE)=0,\"\",VLOOKUP(CB222,'Footnotes list'!$D$9:$E$58,2,FALSE) ) )","v":""},null,null,null,null,{"$f":"IF(TRIM(CG222)=\"\", \"\", IF(VLOOKUP(CG222,'Footnotes list'!$D$9:$E$58,2,FALSE)=0,\"\",VLOOKUP(CG222,'Footnotes list'!$D$9:$E$58,2,FALSE) ) )","v":""},null,null,null,null,{"$f":"IF(TRIM(CL222)=\"\", \"\", IF(VLOOKUP(CL222,'Footnotes list'!$D$9:$E$58,2,FALSE)=0,\"\",VLOOKUP(CL222,'Footnotes list'!$D$9:$E$58,2,FALSE) ) )","v":""},null,null,null,null,{"$f":"IF(TRIM(CQ222)=\"\", \"\", IF(VLOOKUP(CQ222,'Footnotes list'!$D$9:$E$58,2,FALSE)=0,\"\",VLOOKUP(CQ222,'Footnotes list'!$D$9:$E$58,2,FALSE) ) )","v":""},null,null,null,null,{"$f":"IF(TRIM(CV222)=\"\", \"\", IF(VLOOKUP(CV222,'Footnotes list'!$D$9:$E$58,2,FALSE)=0,\"\",VLOOKUP(CV222,'Footnotes list'!$D$9:$E$58,2,FALSE) ) )","v":""},null,null,null,null,{"$f":"IF(TRIM(DA222)=\"\", \"\", IF(VLOOKUP(DA222,'Footnotes list'!$D$9:$E$58,2,FALSE)=0,\"\",VLOOKUP(DA222,'Footnotes list'!$D$9:$E$58,2,FALSE) ) )","v":""},null,null,null,null,{"$f":"IF(TRIM(DF222)=\"\", \"\", IF(VLOOKUP(DF222,'Footnotes list'!$D$9:$E$58,2,FALSE)=0,\"\",VLOOKUP(DF222,'Footnotes list'!$D$9:$E$58,2,FALSE) ) )","v":""},null,null,null,null,{"$f":"IF(TRIM(DK222)=\"\", \"\", IF(VLOOKUP(DK222,'Footnotes list'!$D$9:$E$58,2,FALSE)=0,\"\",VLOOKUP(DK222,'Footnotes list'!$D$9:$E$58,2,FALSE) ) )","v":""},null,null,null,null,{"$f":"IF(TRIM(DP222)=\"\", \"\", IF(VLOOKUP(DP222,'Footnotes list'!$D$9:$E$58,2,FALSE)=0,\"\",VLOOKUP(DP222,'Footnotes list'!$D$9:$E$58,2,FALSE) ) )","v":""},null,null,null,null,{"$f":"IF(TRIM(DU222)=\"\", \"\", IF(VLOOKUP(DU222,'Footnotes list'!$D$9:$E$58,2,FALSE)=0,\"\",VLOOKUP(DU222,'Footnotes list'!$D$9:$E$58,2,FALSE) ) )","v":""},null,null,null,null,{"$f":"IF(TRIM(DZ222)=\"\", \"\", IF(VLOOKUP(DZ222,'Footnotes list'!$D$9:$E$58,2,FALSE)=0,\"\",VLOOKUP(DZ222,'Footnotes list'!$D$9:$E$58,2,FALSE) ) )","v":""},null,null,null,null,{"$f":"IF(TRIM(EE222)=\"\", \"\", IF(VLOOKUP(EE222,'Footnotes list'!$D$9:$E$58,2,FALSE)=0,\"\",VLOOKUP(EE222,'Footnotes list'!$D$9:$E$58,2,FALSE) ) )","v":""},null,null,null,null,{"$f":"IF(TRIM(EJ222)=\"\", \"\", IF(VLOOKUP(EJ222,'Footnotes list'!$D$9:$E$58,2,FALSE)=0,\"\",VLOOKUP(EJ222,'Footnotes list'!$D$9:$E$58,2,FALSE) ) )","v":""},null,null,null,null,{"$f":"IF(TRIM(EO222)=\"\", \"\", IF(VLOOKUP(EO222,'Footnotes list'!$D$9:$E$58,2,FALSE)=0,\"\",VLOOKUP(EO222,'Footnotes list'!$D$9:$E$58,2,FALSE) ) )","v":""},null,null,null,null,{"$f":"IF(TRIM(ET222)=\"\", \"\", IF(VLOOKUP(ET222,'Footnotes list'!$D$9:$E$58,2,FALSE)=0,\"\",VLOOKUP(ET222,'Footnotes list'!$D$9:$E$58,2,FALSE) ) )","v":""},null,null,null,null,{"$f":"IF(TRIM(EY222)=\"\", \"\", IF(VLOOKUP(EY222,'Footnotes list'!$D$9:$E$58,2,FALSE)=0,\"\",VLOOKUP(EY222,'Footnotes list'!$D$9:$E$58,2,FALSE) ) )","v":""}]
[null,null,"M","ES_CS","environmental specific services",null,null,null,null,null,{"$f":"IF(TRIM(J223)=\"\", \"\", IF(VLOOKUP(J223,'Footnotes list'!$D$9:$E$58,2,FALSE)=0,\"\",VLOOKUP(J223,'Footnotes list'!$D$9:$E$58,2,FALSE) ) )","v":""},null,null,null,null,{"$f":"IF(TRIM(O223)=\"\", \"\", IF(VLOOKUP(O223,'Footnotes list'!$D$9:$E$58,2,FALSE)=0,\"\",VLOOKUP(O223,'Footnotes list'!$D$9:$E$58,2,FALSE) ) )","v":""},null,null,null,null,{"$f":"IF(TRIM(T223)=\"\", \"\", IF(VLOOKUP(T223,'Footnotes list'!$D$9:$E$58,2,FALSE)=0,\"\",VLOOKUP(T223,'Footnotes list'!$D$9:$E$58,2,FALSE) ) )","v":""},null,null,null,null,{"$f":"IF(TRIM(Y223)=\"\", \"\", IF(VLOOKUP(Y223,'Footnotes list'!$D$9:$E$58,2,FALSE)=0,\"\",VLOOKUP(Y223,'Footnotes list'!$D$9:$E$58,2,FALSE) ) )","v":""},null,null,null,null,{"$f":"IF(TRIM(AD223)=\"\", \"\", IF(VLOOKUP(AD223,'Footnotes list'!$D$9:$E$58,2,FALSE)=0,\"\",VLOOKUP(AD223,'Footnotes list'!$D$9:$E$58,2,FALSE) ) )","v":""},null,null,null,null,{"$f":"IF(TRIM(AI223)=\"\", \"\", IF(VLOOKUP(AI223,'Footnotes list'!$D$9:$E$58,2,FALSE)=0,\"\",VLOOKUP(AI223,'Footnotes list'!$D$9:$E$58,2,FALSE) ) )","v":""},null,null,null,null,{"$f":"IF(TRIM(AN223)=\"\", \"\", IF(VLOOKUP(AN223,'Footnotes list'!$D$9:$E$58,2,FALSE)=0,\"\",VLOOKUP(AN223,'Footnotes list'!$D$9:$E$58,2,FALSE) ) )","v":""},null,null,null,null,{"$f":"IF(TRIM(AS223)=\"\", \"\", IF(VLOOKUP(AS223,'Footnotes list'!$D$9:$E$58,2,FALSE)=0,\"\",VLOOKUP(AS223,'Footnotes list'!$D$9:$E$58,2,FALSE) ) )","v":""},null,null,null,null,{"$f":"IF(TRIM(AX223)=\"\", \"\", IF(VLOOKUP(AX223,'Footnotes list'!$D$9:$E$58,2,FALSE)=0,\"\",VLOOKUP(AX223,'Footnotes list'!$D$9:$E$58,2,FALSE) ) )","v":""},null,null,null,null,{"$f":"IF(TRIM(BC223)=\"\", \"\", IF(VLOOKUP(BC223,'Footnotes list'!$D$9:$E$58,2,FALSE)=0,\"\",VLOOKUP(BC223,'Footnotes list'!$D$9:$E$58,2,FALSE) ) )","v":""},null,null,null,null,{"$f":"IF(TRIM(BH223)=\"\", \"\", IF(VLOOKUP(BH223,'Footnotes list'!$D$9:$E$58,2,FALSE)=0,\"\",VLOOKUP(BH223,'Footnotes list'!$D$9:$E$58,2,FALSE) ) )","v":""},null,null,null,null,{"$f":"IF(TRIM(BM223)=\"\", \"\", IF(VLOOKUP(BM223,'Footnotes list'!$D$9:$E$58,2,FALSE)=0,\"\",VLOOKUP(BM223,'Footnotes list'!$D$9:$E$58,2,FALSE) ) )","v":""},null,null,null,null,{"$f":"IF(TRIM(BR223)=\"\", \"\", IF(VLOOKUP(BR223,'Footnotes list'!$D$9:$E$58,2,FALSE)=0,\"\",VLOOKUP(BR223,'Footnotes list'!$D$9:$E$58,2,FALSE) ) )","v":""},null,null,null,null,{"$f":"IF(TRIM(BW223)=\"\", \"\", IF(VLOOKUP(BW223,'Footnotes list'!$D$9:$E$58,2,FALSE)=0,\"\",VLOOKUP(BW223,'Footnotes list'!$D$9:$E$58,2,FALSE) ) )","v":""},null,null,null,null,{"$f":"IF(TRIM(CB223)=\"\", \"\", IF(VLOOKUP(CB223,'Footnotes list'!$D$9:$E$58,2,FALSE)=0,\"\",VLOOKUP(CB223,'Footnotes list'!$D$9:$E$58,2,FALSE) ) )","v":""},null,null,null,null,{"$f":"IF(TRIM(CG223)=\"\", \"\", IF(VLOOKUP(CG223,'Footnotes list'!$D$9:$E$58,2,FALSE)=0,\"\",VLOOKUP(CG223,'Footnotes list'!$D$9:$E$58,2,FALSE) ) )","v":""},null,null,null,null,{"$f":"IF(TRIM(CL223)=\"\", \"\", IF(VLOOKUP(CL223,'Footnotes list'!$D$9:$E$58,2,FALSE)=0,\"\",VLOOKUP(CL223,'Footnotes list'!$D$9:$E$58,2,FALSE) ) )","v":""},null,null,null,null,{"$f":"IF(TRIM(CQ223)=\"\", \"\", IF(VLOOKUP(CQ223,'Footnotes list'!$D$9:$E$58,2,FALSE)=0,\"\",VLOOKUP(CQ223,'Footnotes list'!$D$9:$E$58,2,FALSE) ) )","v":""},null,null,null,null,{"$f":"IF(TRIM(CV223)=\"\", \"\", IF(VLOOKUP(CV223,'Footnotes list'!$D$9:$E$58,2,FALSE)=0,\"\",VLOOKUP(CV223,'Footnotes list'!$D$9:$E$58,2,FALSE) ) )","v":""},null,null,null,null,{"$f":"IF(TRIM(DA223)=\"\", \"\", IF(VLOOKUP(DA223,'Footnotes list'!$D$9:$E$58,2,FALSE)=0,\"\",VLOOKUP(DA223,'Footnotes list'!$D$9:$E$58,2,FALSE) ) )","v":""},null,null,null,null,{"$f":"IF(TRIM(DF223)=\"\", \"\", IF(VLOOKUP(DF223,'Footnotes list'!$D$9:$E$58,2,FALSE)=0,\"\",VLOOKUP(DF223,'Footnotes list'!$D$9:$E$58,2,FALSE) ) )","v":""},null,null,null,null,{"$f":"IF(TRIM(DK223)=\"\", \"\", IF(VLOOKUP(DK223,'Footnotes list'!$D$9:$E$58,2,FALSE)=0,\"\",VLOOKUP(DK223,'Footnotes list'!$D$9:$E$58,2,FALSE) ) )","v":""},null,null,null,null,{"$f":"IF(TRIM(DP223)=\"\", \"\", IF(VLOOKUP(DP223,'Footnotes list'!$D$9:$E$58,2,FALSE)=0,\"\",VLOOKUP(DP223,'Footnotes list'!$D$9:$E$58,2,FALSE) ) )","v":""},null,null,null,null,{"$f":"IF(TRIM(DU223)=\"\", \"\", IF(VLOOKUP(DU223,'Footnotes list'!$D$9:$E$58,2,FALSE)=0,\"\",VLOOKUP(DU223,'Footnotes list'!$D$9:$E$58,2,FALSE) ) )","v":""},null,null,null,null,{"$f":"IF(TRIM(DZ223)=\"\", \"\", IF(VLOOKUP(DZ223,'Footnotes list'!$D$9:$E$58,2,FALSE)=0,\"\",VLOOKUP(DZ223,'Footnotes list'!$D$9:$E$58,2,FALSE) ) )","v":""},null,null,null,null,{"$f":"IF(TRIM(EE223)=\"\", \"\", IF(VLOOKUP(EE223,'Footnotes list'!$D$9:$E$58,2,FALSE)=0,\"\",VLOOKUP(EE223,'Footnotes list'!$D$9:$E$58,2,FALSE) ) )","v":""},null,null,null,null,{"$f":"IF(TRIM(EJ223)=\"\", \"\", IF(VLOOKUP(EJ223,'Footnotes list'!$D$9:$E$58,2,FALSE)=0,\"\",VLOOKUP(EJ223,'Footnotes list'!$D$9:$E$58,2,FALSE) ) )","v":""},null,null,null,null,{"$f":"IF(TRIM(EO223)=\"\", \"\", IF(VLOOKUP(EO223,'Footnotes list'!$D$9:$E$58,2,FALSE)=0,\"\",VLOOKUP(EO223,'Footnotes list'!$D$9:$E$58,2,FALSE) ) )","v":""},null,null,null,null,{"$f":"IF(TRIM(ET223)=\"\", \"\", IF(VLOOKUP(ET223,'Footnotes list'!$D$9:$E$58,2,FALSE)=0,\"\",VLOOKUP(ET223,'Footnotes list'!$D$9:$E$58,2,FALSE) ) )","v":""},null,null,null,null,{"$f":"IF(TRIM(EY223)=\"\", \"\", IF(VLOOKUP(EY223,'Footnotes list'!$D$9:$E$58,2,FALSE)=0,\"\",VLOOKUP(EY223,'Footnotes list'!$D$9:$E$58,2,FALSE) ) )","v":""}]
[null,null,"M","C_REP","cleaner and resource efficient products",null,null,null,null,null,{"$f":"IF(TRIM(J224)=\"\", \"\", IF(VLOOKUP(J224,'Footnotes list'!$D$9:$E$58,2,FALSE)=0,\"\",VLOOKUP(J224,'Footnotes list'!$D$9:$E$58,2,FALSE) ) )","v":""},null,null,null,null,{"$f":"IF(TRIM(O224)=\"\", \"\", IF(VLOOKUP(O224,'Footnotes list'!$D$9:$E$58,2,FALSE)=0,\"\",VLOOKUP(O224,'Footnotes list'!$D$9:$E$58,2,FALSE) ) )","v":""},null,null,null,null,{"$f":"IF(TRIM(T224)=\"\", \"\", IF(VLOOKUP(T224,'Footnotes list'!$D$9:$E$58,2,FALSE)=0,\"\",VLOOKUP(T224,'Footnotes list'!$D$9:$E$58,2,FALSE) ) )","v":""},null,null,null,null,{"$f":"IF(TRIM(Y224)=\"\", \"\", IF(VLOOKUP(Y224,'Footnotes list'!$D$9:$E$58,2,FALSE)=0,\"\",VLOOKUP(Y224,'Footnotes list'!$D$9:$E$58,2,FALSE) ) )","v":""},null,null,null,null,{"$f":"IF(TRIM(AD224)=\"\", \"\", IF(VLOOKUP(AD224,'Footnotes list'!$D$9:$E$58,2,FALSE)=0,\"\",VLOOKUP(AD224,'Footnotes list'!$D$9:$E$58,2,FALSE) ) )","v":""},null,null,null,null,{"$f":"IF(TRIM(AI224)=\"\", \"\", IF(VLOOKUP(AI224,'Footnotes list'!$D$9:$E$58,2,FALSE)=0,\"\",VLOOKUP(AI224,'Footnotes list'!$D$9:$E$58,2,FALSE) ) )","v":""},null,null,null,null,{"$f":"IF(TRIM(AN224)=\"\", \"\", IF(VLOOKUP(AN224,'Footnotes list'!$D$9:$E$58,2,FALSE)=0,\"\",VLOOKUP(AN224,'Footnotes list'!$D$9:$E$58,2,FALSE) ) )","v":""},null,null,null,null,{"$f":"IF(TRIM(AS224)=\"\", \"\", IF(VLOOKUP(AS224,'Footnotes list'!$D$9:$E$58,2,FALSE)=0,\"\",VLOOKUP(AS224,'Footnotes list'!$D$9:$E$58,2,FALSE) ) )","v":""},null,null,null,null,{"$f":"IF(TRIM(AX224)=\"\", \"\", IF(VLOOKUP(AX224,'Footnotes list'!$D$9:$E$58,2,FALSE)=0,\"\",VLOOKUP(AX224,'Footnotes list'!$D$9:$E$58,2,FALSE) ) )","v":""},null,null,null,null,{"$f":"IF(TRIM(BC224)=\"\", \"\", IF(VLOOKUP(BC224,'Footnotes list'!$D$9:$E$58,2,FALSE)=0,\"\",VLOOKUP(BC224,'Footnotes list'!$D$9:$E$58,2,FALSE) ) )","v":""},null,null,null,null,{"$f":"IF(TRIM(BH224)=\"\", \"\", IF(VLOOKUP(BH224,'Footnotes list'!$D$9:$E$58,2,FALSE)=0,\"\",VLOOKUP(BH224,'Footnotes list'!$D$9:$E$58,2,FALSE) ) )","v":""},null,null,null,null,{"$f":"IF(TRIM(BM224)=\"\", \"\", IF(VLOOKUP(BM224,'Footnotes list'!$D$9:$E$58,2,FALSE)=0,\"\",VLOOKUP(BM224,'Footnotes list'!$D$9:$E$58,2,FALSE) ) )","v":""},null,null,null,null,{"$f":"IF(TRIM(BR224)=\"\", \"\", IF(VLOOKUP(BR224,'Footnotes list'!$D$9:$E$58,2,FALSE)=0,\"\",VLOOKUP(BR224,'Footnotes list'!$D$9:$E$58,2,FALSE) ) )","v":""},null,null,null,null,{"$f":"IF(TRIM(BW224)=\"\", \"\", IF(VLOOKUP(BW224,'Footnotes list'!$D$9:$E$58,2,FALSE)=0,\"\",VLOOKUP(BW224,'Footnotes list'!$D$9:$E$58,2,FALSE) ) )","v":""},null,null,null,null,{"$f":"IF(TRIM(CB224)=\"\", \"\", IF(VLOOKUP(CB224,'Footnotes list'!$D$9:$E$58,2,FALSE)=0,\"\",VLOOKUP(CB224,'Footnotes list'!$D$9:$E$58,2,FALSE) ) )","v":""},null,null,null,null,{"$f":"IF(TRIM(CG224)=\"\", \"\", IF(VLOOKUP(CG224,'Footnotes list'!$D$9:$E$58,2,FALSE)=0,\"\",VLOOKUP(CG224,'Footnotes list'!$D$9:$E$58,2,FALSE) ) )","v":""},null,null,null,null,{"$f":"IF(TRIM(CL224)=\"\", \"\", IF(VLOOKUP(CL224,'Footnotes list'!$D$9:$E$58,2,FALSE)=0,\"\",VLOOKUP(CL224,'Footnotes list'!$D$9:$E$58,2,FALSE) ) )","v":""},null,null,null,null,{"$f":"IF(TRIM(CQ224)=\"\", \"\", IF(VLOOKUP(CQ224,'Footnotes list'!$D$9:$E$58,2,FALSE)=0,\"\",VLOOKUP(CQ224,'Footnotes list'!$D$9:$E$58,2,FALSE) ) )","v":""},null,null,null,null,{"$f":"IF(TRIM(CV224)=\"\", \"\", IF(VLOOKUP(CV224,'Footnotes list'!$D$9:$E$58,2,FALSE)=0,\"\",VLOOKUP(CV224,'Footnotes list'!$D$9:$E$58,2,FALSE) ) )","v":""},null,null,null,null,{"$f":"IF(TRIM(DA224)=\"\", \"\", IF(VLOOKUP(DA224,'Footnotes list'!$D$9:$E$58,2,FALSE)=0,\"\",VLOOKUP(DA224,'Footnotes list'!$D$9:$E$58,2,FALSE) ) )","v":""},null,null,null,null,{"$f":"IF(TRIM(DF224)=\"\", \"\", IF(VLOOKUP(DF224,'Footnotes list'!$D$9:$E$58,2,FALSE)=0,\"\",VLOOKUP(DF224,'Footnotes list'!$D$9:$E$58,2,FALSE) ) )","v":""},null,null,null,null,{"$f":"IF(TRIM(DK224)=\"\", \"\", IF(VLOOKUP(DK224,'Footnotes list'!$D$9:$E$58,2,FALSE)=0,\"\",VLOOKUP(DK224,'Footnotes list'!$D$9:$E$58,2,FALSE) ) )","v":""},null,null,null,null,{"$f":"IF(TRIM(DP224)=\"\", \"\", IF(VLOOKUP(DP224,'Footnotes list'!$D$9:$E$58,2,FALSE)=0,\"\",VLOOKUP(DP224,'Footnotes list'!$D$9:$E$58,2,FALSE) ) )","v":""},null,null,null,null,{"$f":"IF(TRIM(DU224)=\"\", \"\", IF(VLOOKUP(DU224,'Footnotes list'!$D$9:$E$58,2,FALSE)=0,\"\",VLOOKUP(DU224,'Footnotes list'!$D$9:$E$58,2,FALSE) ) )","v":""},null,null,null,null,{"$f":"IF(TRIM(DZ224)=\"\", \"\", IF(VLOOKUP(DZ224,'Footnotes list'!$D$9:$E$58,2,FALSE)=0,\"\",VLOOKUP(DZ224,'Footnotes list'!$D$9:$E$58,2,FALSE) ) )","v":""},null,null,null,null,{"$f":"IF(TRIM(EE224)=\"\", \"\", IF(VLOOKUP(EE224,'Footnotes list'!$D$9:$E$58,2,FALSE)=0,\"\",VLOOKUP(EE224,'Footnotes list'!$D$9:$E$58,2,FALSE) ) )","v":""},null,null,null,null,{"$f":"IF(TRIM(EJ224)=\"\", \"\", IF(VLOOKUP(EJ224,'Footnotes list'!$D$9:$E$58,2,FALSE)=0,\"\",VLOOKUP(EJ224,'Footnotes list'!$D$9:$E$58,2,FALSE) ) )","v":""},null,null,null,null,{"$f":"IF(TRIM(EO224)=\"\", \"\", IF(VLOOKUP(EO224,'Footnotes list'!$D$9:$E$58,2,FALSE)=0,\"\",VLOOKUP(EO224,'Footnotes list'!$D$9:$E$58,2,FALSE) ) )","v":""},null,null,null,null,{"$f":"IF(TRIM(ET224)=\"\", \"\", IF(VLOOKUP(ET224,'Footnotes list'!$D$9:$E$58,2,FALSE)=0,\"\",VLOOKUP(ET224,'Footnotes list'!$D$9:$E$58,2,FALSE) ) )","v":""},null,null,null,null,{"$f":"IF(TRIM(EY224)=\"\", \"\", IF(VLOOKUP(EY224,'Footnotes list'!$D$9:$E$58,2,FALSE)=0,\"\",VLOOKUP(EY224,'Footnotes list'!$D$9:$E$58,2,FALSE) ) )","v":""}]
[null,null,"M69_M70","TOT_EGSS","Total M69-M70 - Legal and accounting activities; Activities of head offices; management consultancy activities, of which:",null,null,null,null,null,{"$f":"IF(TRIM(J225)=\"\", \"\", IF(VLOOKUP(J225,'Footnotes list'!$D$9:$E$58,2,FALSE)=0,\"\",VLOOKUP(J225,'Footnotes list'!$D$9:$E$58,2,FALSE) ) )","v":""},null,null,null,null,{"$f":"IF(TRIM(O225)=\"\", \"\", IF(VLOOKUP(O225,'Footnotes list'!$D$9:$E$58,2,FALSE)=0,\"\",VLOOKUP(O225,'Footnotes list'!$D$9:$E$58,2,FALSE) ) )","v":""},null,null,null,null,{"$f":"IF(TRIM(T225)=\"\", \"\", IF(VLOOKUP(T225,'Footnotes list'!$D$9:$E$58,2,FALSE)=0,\"\",VLOOKUP(T225,'Footnotes list'!$D$9:$E$58,2,FALSE) ) )","v":""},null,null,null,null,{"$f":"IF(TRIM(Y225)=\"\", \"\", IF(VLOOKUP(Y225,'Footnotes list'!$D$9:$E$58,2,FALSE)=0,\"\",VLOOKUP(Y225,'Footnotes list'!$D$9:$E$58,2,FALSE) ) )","v":""},null,null,null,null,{"$f":"IF(TRIM(AD225)=\"\", \"\", IF(VLOOKUP(AD225,'Footnotes list'!$D$9:$E$58,2,FALSE)=0,\"\",VLOOKUP(AD225,'Footnotes list'!$D$9:$E$58,2,FALSE) ) )","v":""},null,null,null,null,{"$f":"IF(TRIM(AI225)=\"\", \"\", IF(VLOOKUP(AI225,'Footnotes list'!$D$9:$E$58,2,FALSE)=0,\"\",VLOOKUP(AI225,'Footnotes list'!$D$9:$E$58,2,FALSE) ) )","v":""},null,null,null,null,{"$f":"IF(TRIM(AN225)=\"\", \"\", IF(VLOOKUP(AN225,'Footnotes list'!$D$9:$E$58,2,FALSE)=0,\"\",VLOOKUP(AN225,'Footnotes list'!$D$9:$E$58,2,FALSE) ) )","v":""},null,null,null,null,{"$f":"IF(TRIM(AS225)=\"\", \"\", IF(VLOOKUP(AS225,'Footnotes list'!$D$9:$E$58,2,FALSE)=0,\"\",VLOOKUP(AS225,'Footnotes list'!$D$9:$E$58,2,FALSE) ) )","v":""},null,null,null,null,{"$f":"IF(TRIM(AX225)=\"\", \"\", IF(VLOOKUP(AX225,'Footnotes list'!$D$9:$E$58,2,FALSE)=0,\"\",VLOOKUP(AX225,'Footnotes list'!$D$9:$E$58,2,FALSE) ) )","v":""},null,null,null,null,{"$f":"IF(TRIM(BC225)=\"\", \"\", IF(VLOOKUP(BC225,'Footnotes list'!$D$9:$E$58,2,FALSE)=0,\"\",VLOOKUP(BC225,'Footnotes list'!$D$9:$E$58,2,FALSE) ) )","v":""},null,null,null,null,{"$f":"IF(TRIM(BH225)=\"\", \"\", IF(VLOOKUP(BH225,'Footnotes list'!$D$9:$E$58,2,FALSE)=0,\"\",VLOOKUP(BH225,'Footnotes list'!$D$9:$E$58,2,FALSE) ) )","v":""},null,null,null,null,{"$f":"IF(TRIM(BM225)=\"\", \"\", IF(VLOOKUP(BM225,'Footnotes list'!$D$9:$E$58,2,FALSE)=0,\"\",VLOOKUP(BM225,'Footnotes list'!$D$9:$E$58,2,FALSE) ) )","v":""},null,null,null,null,{"$f":"IF(TRIM(BR225)=\"\", \"\", IF(VLOOKUP(BR225,'Footnotes list'!$D$9:$E$58,2,FALSE)=0,\"\",VLOOKUP(BR225,'Footnotes list'!$D$9:$E$58,2,FALSE) ) )","v":""},null,null,null,null,{"$f":"IF(TRIM(BW225)=\"\", \"\", IF(VLOOKUP(BW225,'Footnotes list'!$D$9:$E$58,2,FALSE)=0,\"\",VLOOKUP(BW225,'Footnotes list'!$D$9:$E$58,2,FALSE) ) )","v":""},null,null,null,null,{"$f":"IF(TRIM(CB225)=\"\", \"\", IF(VLOOKUP(CB225,'Footnotes list'!$D$9:$E$58,2,FALSE)=0,\"\",VLOOKUP(CB225,'Footnotes list'!$D$9:$E$58,2,FALSE) ) )","v":""},null,null,null,null,{"$f":"IF(TRIM(CG225)=\"\", \"\", IF(VLOOKUP(CG225,'Footnotes list'!$D$9:$E$58,2,FALSE)=0,\"\",VLOOKUP(CG225,'Footnotes list'!$D$9:$E$58,2,FALSE) ) )","v":""},null,null,null,null,{"$f":"IF(TRIM(CL225)=\"\", \"\", IF(VLOOKUP(CL225,'Footnotes list'!$D$9:$E$58,2,FALSE)=0,\"\",VLOOKUP(CL225,'Footnotes list'!$D$9:$E$58,2,FALSE) ) )","v":""},null,null,null,null,{"$f":"IF(TRIM(CQ225)=\"\", \"\", IF(VLOOKUP(CQ225,'Footnotes list'!$D$9:$E$58,2,FALSE)=0,\"\",VLOOKUP(CQ225,'Footnotes list'!$D$9:$E$58,2,FALSE) ) )","v":""},null,null,null,null,{"$f":"IF(TRIM(CV225)=\"\", \"\", IF(VLOOKUP(CV225,'Footnotes list'!$D$9:$E$58,2,FALSE)=0,\"\",VLOOKUP(CV225,'Footnotes list'!$D$9:$E$58,2,FALSE) ) )","v":""},null,null,null,null,{"$f":"IF(TRIM(DA225)=\"\", \"\", IF(VLOOKUP(DA225,'Footnotes list'!$D$9:$E$58,2,FALSE)=0,\"\",VLOOKUP(DA225,'Footnotes list'!$D$9:$E$58,2,FALSE) ) )","v":""},null,null,null,null,{"$f":"IF(TRIM(DF225)=\"\", \"\", IF(VLOOKUP(DF225,'Footnotes list'!$D$9:$E$58,2,FALSE)=0,\"\",VLOOKUP(DF225,'Footnotes list'!$D$9:$E$58,2,FALSE) ) )","v":""},null,null,null,null,{"$f":"IF(TRIM(DK225)=\"\", \"\", IF(VLOOKUP(DK225,'Footnotes list'!$D$9:$E$58,2,FALSE)=0,\"\",VLOOKUP(DK225,'Footnotes list'!$D$9:$E$58,2,FALSE) ) )","v":""},null,null,null,null,{"$f":"IF(TRIM(DP225)=\"\", \"\", IF(VLOOKUP(DP225,'Footnotes list'!$D$9:$E$58,2,FALSE)=0,\"\",VLOOKUP(DP225,'Footnotes list'!$D$9:$E$58,2,FALSE) ) )","v":""},null,null,null,null,{"$f":"IF(TRIM(DU225)=\"\", \"\", IF(VLOOKUP(DU225,'Footnotes list'!$D$9:$E$58,2,FALSE)=0,\"\",VLOOKUP(DU225,'Footnotes list'!$D$9:$E$58,2,FALSE) ) )","v":""},null,null,null,null,{"$f":"IF(TRIM(DZ225)=\"\", \"\", IF(VLOOKUP(DZ225,'Footnotes list'!$D$9:$E$58,2,FALSE)=0,\"\",VLOOKUP(DZ225,'Footnotes list'!$D$9:$E$58,2,FALSE) ) )","v":""},null,null,null,null,{"$f":"IF(TRIM(EE225)=\"\", \"\", IF(VLOOKUP(EE225,'Footnotes list'!$D$9:$E$58,2,FALSE)=0,\"\",VLOOKUP(EE225,'Footnotes list'!$D$9:$E$58,2,FALSE) ) )","v":""},null,null,null,null,{"$f":"IF(TRIM(EJ225)=\"\", \"\", IF(VLOOKUP(EJ225,'Footnotes list'!$D$9:$E$58,2,FALSE)=0,\"\",VLOOKUP(EJ225,'Footnotes list'!$D$9:$E$58,2,FALSE) ) )","v":""},null,null,null,null,{"$f":"IF(TRIM(EO225)=\"\", \"\", IF(VLOOKUP(EO225,'Footnotes list'!$D$9:$E$58,2,FALSE)=0,\"\",VLOOKUP(EO225,'Footnotes list'!$D$9:$E$58,2,FALSE) ) )","v":""},null,null,null,null,{"$f":"IF(TRIM(ET225)=\"\", \"\", IF(VLOOKUP(ET225,'Footnotes list'!$D$9:$E$58,2,FALSE)=0,\"\",VLOOKUP(ET225,'Footnotes list'!$D$9:$E$58,2,FALSE) ) )","v":""},null,null,null,null,{"$f":"IF(TRIM(EY225)=\"\", \"\", IF(VLOOKUP(EY225,'Footnotes list'!$D$9:$E$58,2,FALSE)=0,\"\",VLOOKUP(EY225,'Footnotes list'!$D$9:$E$58,2,FALSE) ) )","v":""}]
[null,null,"M69_M70","ANC","ancillary activities",null,null,null,null,null,{"$f":"IF(TRIM(J226)=\"\", \"\", IF(VLOOKUP(J226,'Footnotes list'!$D$9:$E$58,2,FALSE)=0,\"\",VLOOKUP(J226,'Footnotes list'!$D$9:$E$58,2,FALSE) ) )","v":""},null,null,null,null,{"$f":"IF(TRIM(O226)=\"\", \"\", IF(VLOOKUP(O226,'Footnotes list'!$D$9:$E$58,2,FALSE)=0,\"\",VLOOKUP(O226,'Footnotes list'!$D$9:$E$58,2,FALSE) ) )","v":""},null,null,null,null,{"$f":"IF(TRIM(T226)=\"\", \"\", IF(VLOOKUP(T226,'Footnotes list'!$D$9:$E$58,2,FALSE)=0,\"\",VLOOKUP(T226,'Footnotes list'!$D$9:$E$58,2,FALSE) ) )","v":""},null,null,null,null,{"$f":"IF(TRIM(Y226)=\"\", \"\", IF(VLOOKUP(Y226,'Footnotes list'!$D$9:$E$58,2,FALSE)=0,\"\",VLOOKUP(Y226,'Footnotes list'!$D$9:$E$58,2,FALSE) ) )","v":""},null,null,null,null,{"$f":"IF(TRIM(AD226)=\"\", \"\", IF(VLOOKUP(AD226,'Footnotes list'!$D$9:$E$58,2,FALSE)=0,\"\",VLOOKUP(AD226,'Footnotes list'!$D$9:$E$58,2,FALSE) ) )","v":""},null,null,null,null,{"$f":"IF(TRIM(AI226)=\"\", \"\", IF(VLOOKUP(AI226,'Footnotes list'!$D$9:$E$58,2,FALSE)=0,\"\",VLOOKUP(AI226,'Footnotes list'!$D$9:$E$58,2,FALSE) ) )","v":""},null,null,null,null,{"$f":"IF(TRIM(AN226)=\"\", \"\", IF(VLOOKUP(AN226,'Footnotes list'!$D$9:$E$58,2,FALSE)=0,\"\",VLOOKUP(AN226,'Footnotes list'!$D$9:$E$58,2,FALSE) ) )","v":""},null,null,null,null,{"$f":"IF(TRIM(AS226)=\"\", \"\", IF(VLOOKUP(AS226,'Footnotes list'!$D$9:$E$58,2,FALSE)=0,\"\",VLOOKUP(AS226,'Footnotes list'!$D$9:$E$58,2,FALSE) ) )","v":""},null,null,null,null,{"$f":"IF(TRIM(AX226)=\"\", \"\", IF(VLOOKUP(AX226,'Footnotes list'!$D$9:$E$58,2,FALSE)=0,\"\",VLOOKUP(AX226,'Footnotes list'!$D$9:$E$58,2,FALSE) ) )","v":""},null,null,null,null,{"$f":"IF(TRIM(BC226)=\"\", \"\", IF(VLOOKUP(BC226,'Footnotes list'!$D$9:$E$58,2,FALSE)=0,\"\",VLOOKUP(BC226,'Footnotes list'!$D$9:$E$58,2,FALSE) ) )","v":""},null,null,null,null,{"$f":"IF(TRIM(BH226)=\"\", \"\", IF(VLOOKUP(BH226,'Footnotes list'!$D$9:$E$58,2,FALSE)=0,\"\",VLOOKUP(BH226,'Footnotes list'!$D$9:$E$58,2,FALSE) ) )","v":""},null,null,null,null,{"$f":"IF(TRIM(BM226)=\"\", \"\", IF(VLOOKUP(BM226,'Footnotes list'!$D$9:$E$58,2,FALSE)=0,\"\",VLOOKUP(BM226,'Footnotes list'!$D$9:$E$58,2,FALSE) ) )","v":""},null,null,null,null,{"$f":"IF(TRIM(BR226)=\"\", \"\", IF(VLOOKUP(BR226,'Footnotes list'!$D$9:$E$58,2,FALSE)=0,\"\",VLOOKUP(BR226,'Footnotes list'!$D$9:$E$58,2,FALSE) ) )","v":""},null,null,null,null,{"$f":"IF(TRIM(BW226)=\"\", \"\", IF(VLOOKUP(BW226,'Footnotes list'!$D$9:$E$58,2,FALSE)=0,\"\",VLOOKUP(BW226,'Footnotes list'!$D$9:$E$58,2,FALSE) ) )","v":""},null,null,null,null,{"$f":"IF(TRIM(CB226)=\"\", \"\", IF(VLOOKUP(CB226,'Footnotes list'!$D$9:$E$58,2,FALSE)=0,\"\",VLOOKUP(CB226,'Footnotes list'!$D$9:$E$58,2,FALSE) ) )","v":""},null,null,null,null,{"$f":"IF(TRIM(CG226)=\"\", \"\", IF(VLOOKUP(CG226,'Footnotes list'!$D$9:$E$58,2,FALSE)=0,\"\",VLOOKUP(CG226,'Footnotes list'!$D$9:$E$58,2,FALSE) ) )","v":""},null,null,null,null,{"$f":"IF(TRIM(CL226)=\"\", \"\", IF(VLOOKUP(CL226,'Footnotes list'!$D$9:$E$58,2,FALSE)=0,\"\",VLOOKUP(CL226,'Footnotes list'!$D$9:$E$58,2,FALSE) ) )","v":""},null,null,null,null,{"$f":"IF(TRIM(CQ226)=\"\", \"\", IF(VLOOKUP(CQ226,'Footnotes list'!$D$9:$E$58,2,FALSE)=0,\"\",VLOOKUP(CQ226,'Footnotes list'!$D$9:$E$58,2,FALSE) ) )","v":""},null,null,null,null,{"$f":"IF(TRIM(CV226)=\"\", \"\", IF(VLOOKUP(CV226,'Footnotes list'!$D$9:$E$58,2,FALSE)=0,\"\",VLOOKUP(CV226,'Footnotes list'!$D$9:$E$58,2,FALSE) ) )","v":""},null,null,null,null,{"$f":"IF(TRIM(DA226)=\"\", \"\", IF(VLOOKUP(DA226,'Footnotes list'!$D$9:$E$58,2,FALSE)=0,\"\",VLOOKUP(DA226,'Footnotes list'!$D$9:$E$58,2,FALSE) ) )","v":""},null,null,null,null,{"$f":"IF(TRIM(DF226)=\"\", \"\", IF(VLOOKUP(DF226,'Footnotes list'!$D$9:$E$58,2,FALSE)=0,\"\",VLOOKUP(DF226,'Footnotes list'!$D$9:$E$58,2,FALSE) ) )","v":""},null,null,null,null,{"$f":"IF(TRIM(DK226)=\"\", \"\", IF(VLOOKUP(DK226,'Footnotes list'!$D$9:$E$58,2,FALSE)=0,\"\",VLOOKUP(DK226,'Footnotes list'!$D$9:$E$58,2,FALSE) ) )","v":""},null,null,null,null,{"$f":"IF(TRIM(DP226)=\"\", \"\", IF(VLOOKUP(DP226,'Footnotes list'!$D$9:$E$58,2,FALSE)=0,\"\",VLOOKUP(DP226,'Footnotes list'!$D$9:$E$58,2,FALSE) ) )","v":""},null,null,null,null,{"$f":"IF(TRIM(DU226)=\"\", \"\", IF(VLOOKUP(DU226,'Footnotes list'!$D$9:$E$58,2,FALSE)=0,\"\",VLOOKUP(DU226,'Footnotes list'!$D$9:$E$58,2,FALSE) ) )","v":""},null,null,null,null,{"$f":"IF(TRIM(DZ226)=\"\", \"\", IF(VLOOKUP(DZ226,'Footnotes list'!$D$9:$E$58,2,FALSE)=0,\"\",VLOOKUP(DZ226,'Footnotes list'!$D$9:$E$58,2,FALSE) ) )","v":""},null,null,null,null,{"$f":"IF(TRIM(EE226)=\"\", \"\", IF(VLOOKUP(EE226,'Footnotes list'!$D$9:$E$58,2,FALSE)=0,\"\",VLOOKUP(EE226,'Footnotes list'!$D$9:$E$58,2,FALSE) ) )","v":""},null,null,null,null,{"$f":"IF(TRIM(EJ226)=\"\", \"\", IF(VLOOKUP(EJ226,'Footnotes list'!$D$9:$E$58,2,FALSE)=0,\"\",VLOOKUP(EJ226,'Footnotes list'!$D$9:$E$58,2,FALSE) ) )","v":""},null,null,null,null,{"$f":"IF(TRIM(EO226)=\"\", \"\", IF(VLOOKUP(EO226,'Footnotes list'!$D$9:$E$58,2,FALSE)=0,\"\",VLOOKUP(EO226,'Footnotes list'!$D$9:$E$58,2,FALSE) ) )","v":""},null,null,null,null,{"$f":"IF(TRIM(ET226)=\"\", \"\", IF(VLOOKUP(ET226,'Footnotes list'!$D$9:$E$58,2,FALSE)=0,\"\",VLOOKUP(ET226,'Footnotes list'!$D$9:$E$58,2,FALSE) ) )","v":""},null,null,null,null,{"$f":"IF(TRIM(EY226)=\"\", \"\", IF(VLOOKUP(EY226,'Footnotes list'!$D$9:$E$58,2,FALSE)=0,\"\",VLOOKUP(EY226,'Footnotes list'!$D$9:$E$58,2,FALSE) ) )","v":""}]
[null,null,"M69_M70","NMKT","non-market activities",null,null,null,null,null,{"$f":"IF(TRIM(J227)=\"\", \"\", IF(VLOOKUP(J227,'Footnotes list'!$D$9:$E$58,2,FALSE)=0,\"\",VLOOKUP(J227,'Footnotes list'!$D$9:$E$58,2,FALSE) ) )","v":""},null,null,null,null,{"$f":"IF(TRIM(O227)=\"\", \"\", IF(VLOOKUP(O227,'Footnotes list'!$D$9:$E$58,2,FALSE)=0,\"\",VLOOKUP(O227,'Footnotes list'!$D$9:$E$58,2,FALSE) ) )","v":""},null,null,null,null,{"$f":"IF(TRIM(T227)=\"\", \"\", IF(VLOOKUP(T227,'Footnotes list'!$D$9:$E$58,2,FALSE)=0,\"\",VLOOKUP(T227,'Footnotes list'!$D$9:$E$58,2,FALSE) ) )","v":""},null,null,null,null,{"$f":"IF(TRIM(Y227)=\"\", \"\", IF(VLOOKUP(Y227,'Footnotes list'!$D$9:$E$58,2,FALSE)=0,\"\",VLOOKUP(Y227,'Footnotes list'!$D$9:$E$58,2,FALSE) ) )","v":""},null,null,null,null,{"$f":"IF(TRIM(AD227)=\"\", \"\", IF(VLOOKUP(AD227,'Footnotes list'!$D$9:$E$58,2,FALSE)=0,\"\",VLOOKUP(AD227,'Footnotes list'!$D$9:$E$58,2,FALSE) ) )","v":""},null,null,null,null,{"$f":"IF(TRIM(AI227)=\"\", \"\", IF(VLOOKUP(AI227,'Footnotes list'!$D$9:$E$58,2,FALSE)=0,\"\",VLOOKUP(AI227,'Footnotes list'!$D$9:$E$58,2,FALSE) ) )","v":""},null,null,null,null,{"$f":"IF(TRIM(AN227)=\"\", \"\", IF(VLOOKUP(AN227,'Footnotes list'!$D$9:$E$58,2,FALSE)=0,\"\",VLOOKUP(AN227,'Footnotes list'!$D$9:$E$58,2,FALSE) ) )","v":""},null,null,null,null,{"$f":"IF(TRIM(AS227)=\"\", \"\", IF(VLOOKUP(AS227,'Footnotes list'!$D$9:$E$58,2,FALSE)=0,\"\",VLOOKUP(AS227,'Footnotes list'!$D$9:$E$58,2,FALSE) ) )","v":""},null,null,null,null,{"$f":"IF(TRIM(AX227)=\"\", \"\", IF(VLOOKUP(AX227,'Footnotes list'!$D$9:$E$58,2,FALSE)=0,\"\",VLOOKUP(AX227,'Footnotes list'!$D$9:$E$58,2,FALSE) ) )","v":""},null,null,null,null,{"$f":"IF(TRIM(BC227)=\"\", \"\", IF(VLOOKUP(BC227,'Footnotes list'!$D$9:$E$58,2,FALSE)=0,\"\",VLOOKUP(BC227,'Footnotes list'!$D$9:$E$58,2,FALSE) ) )","v":""},null,null,null,null,{"$f":"IF(TRIM(BH227)=\"\", \"\", IF(VLOOKUP(BH227,'Footnotes list'!$D$9:$E$58,2,FALSE)=0,\"\",VLOOKUP(BH227,'Footnotes list'!$D$9:$E$58,2,FALSE) ) )","v":""},null,null,null,null,{"$f":"IF(TRIM(BM227)=\"\", \"\", IF(VLOOKUP(BM227,'Footnotes list'!$D$9:$E$58,2,FALSE)=0,\"\",VLOOKUP(BM227,'Footnotes list'!$D$9:$E$58,2,FALSE) ) )","v":""},null,null,null,null,{"$f":"IF(TRIM(BR227)=\"\", \"\", IF(VLOOKUP(BR227,'Footnotes list'!$D$9:$E$58,2,FALSE)=0,\"\",VLOOKUP(BR227,'Footnotes list'!$D$9:$E$58,2,FALSE) ) )","v":""},null,null,null,null,{"$f":"IF(TRIM(BW227)=\"\", \"\", IF(VLOOKUP(BW227,'Footnotes list'!$D$9:$E$58,2,FALSE)=0,\"\",VLOOKUP(BW227,'Footnotes list'!$D$9:$E$58,2,FALSE) ) )","v":""},null,null,null,null,{"$f":"IF(TRIM(CB227)=\"\", \"\", IF(VLOOKUP(CB227,'Footnotes list'!$D$9:$E$58,2,FALSE)=0,\"\",VLOOKUP(CB227,'Footnotes list'!$D$9:$E$58,2,FALSE) ) )","v":""},null,null,null,null,{"$f":"IF(TRIM(CG227)=\"\", \"\", IF(VLOOKUP(CG227,'Footnotes list'!$D$9:$E$58,2,FALSE)=0,\"\",VLOOKUP(CG227,'Footnotes list'!$D$9:$E$58,2,FALSE) ) )","v":""},null,null,null,null,{"$f":"IF(TRIM(CL227)=\"\", \"\", IF(VLOOKUP(CL227,'Footnotes list'!$D$9:$E$58,2,FALSE)=0,\"\",VLOOKUP(CL227,'Footnotes list'!$D$9:$E$58,2,FALSE) ) )","v":""},null,null,null,null,{"$f":"IF(TRIM(CQ227)=\"\", \"\", IF(VLOOKUP(CQ227,'Footnotes list'!$D$9:$E$58,2,FALSE)=0,\"\",VLOOKUP(CQ227,'Footnotes list'!$D$9:$E$58,2,FALSE) ) )","v":""},null,null,null,null,{"$f":"IF(TRIM(CV227)=\"\", \"\", IF(VLOOKUP(CV227,'Footnotes list'!$D$9:$E$58,2,FALSE)=0,\"\",VLOOKUP(CV227,'Footnotes list'!$D$9:$E$58,2,FALSE) ) )","v":""},null,null,null,null,{"$f":"IF(TRIM(DA227)=\"\", \"\", IF(VLOOKUP(DA227,'Footnotes list'!$D$9:$E$58,2,FALSE)=0,\"\",VLOOKUP(DA227,'Footnotes list'!$D$9:$E$58,2,FALSE) ) )","v":""},null,null,null,null,{"$f":"IF(TRIM(DF227)=\"\", \"\", IF(VLOOKUP(DF227,'Footnotes list'!$D$9:$E$58,2,FALSE)=0,\"\",VLOOKUP(DF227,'Footnotes list'!$D$9:$E$58,2,FALSE) ) )","v":""},null,null,null,null,{"$f":"IF(TRIM(DK227)=\"\", \"\", IF(VLOOKUP(DK227,'Footnotes list'!$D$9:$E$58,2,FALSE)=0,\"\",VLOOKUP(DK227,'Footnotes list'!$D$9:$E$58,2,FALSE) ) )","v":""},null,null,null,null,{"$f":"IF(TRIM(DP227)=\"\", \"\", IF(VLOOKUP(DP227,'Footnotes list'!$D$9:$E$58,2,FALSE)=0,\"\",VLOOKUP(DP227,'Footnotes list'!$D$9:$E$58,2,FALSE) ) )","v":""},null,null,null,null,{"$f":"IF(TRIM(DU227)=\"\", \"\", IF(VLOOKUP(DU227,'Footnotes list'!$D$9:$E$58,2,FALSE)=0,\"\",VLOOKUP(DU227,'Footnotes list'!$D$9:$E$58,2,FALSE) ) )","v":""},null,null,null,null,{"$f":"IF(TRIM(DZ227)=\"\", \"\", IF(VLOOKUP(DZ227,'Footnotes list'!$D$9:$E$58,2,FALSE)=0,\"\",VLOOKUP(DZ227,'Footnotes list'!$D$9:$E$58,2,FALSE) ) )","v":""},null,null,null,null,{"$f":"IF(TRIM(EE227)=\"\", \"\", IF(VLOOKUP(EE227,'Footnotes list'!$D$9:$E$58,2,FALSE)=0,\"\",VLOOKUP(EE227,'Footnotes list'!$D$9:$E$58,2,FALSE) ) )","v":""},null,null,null,null,{"$f":"IF(TRIM(EJ227)=\"\", \"\", IF(VLOOKUP(EJ227,'Footnotes list'!$D$9:$E$58,2,FALSE)=0,\"\",VLOOKUP(EJ227,'Footnotes list'!$D$9:$E$58,2,FALSE) ) )","v":""},null,null,null,null,{"$f":"IF(TRIM(EO227)=\"\", \"\", IF(VLOOKUP(EO227,'Footnotes list'!$D$9:$E$58,2,FALSE)=0,\"\",VLOOKUP(EO227,'Footnotes list'!$D$9:$E$58,2,FALSE) ) )","v":""},null,null,null,null,{"$f":"IF(TRIM(ET227)=\"\", \"\", IF(VLOOKUP(ET227,'Footnotes list'!$D$9:$E$58,2,FALSE)=0,\"\",VLOOKUP(ET227,'Footnotes list'!$D$9:$E$58,2,FALSE) ) )","v":""},null,null,null,null,{"$f":"IF(TRIM(EY227)=\"\", \"\", IF(VLOOKUP(EY227,'Footnotes list'!$D$9:$E$58,2,FALSE)=0,\"\",VLOOKUP(EY227,'Footnotes list'!$D$9:$E$58,2,FALSE) ) )","v":""}]
[null,null,"M69_M70","OWN_USE","activities for own final use",null,null,null,null,null,{"$f":"IF(TRIM(J228)=\"\", \"\", IF(VLOOKUP(J228,'Footnotes list'!$D$9:$E$58,2,FALSE)=0,\"\",VLOOKUP(J228,'Footnotes list'!$D$9:$E$58,2,FALSE) ) )","v":""},null,null,null,null,{"$f":"IF(TRIM(O228)=\"\", \"\", IF(VLOOKUP(O228,'Footnotes list'!$D$9:$E$58,2,FALSE)=0,\"\",VLOOKUP(O228,'Footnotes list'!$D$9:$E$58,2,FALSE) ) )","v":""},null,null,null,null,{"$f":"IF(TRIM(T228)=\"\", \"\", IF(VLOOKUP(T228,'Footnotes list'!$D$9:$E$58,2,FALSE)=0,\"\",VLOOKUP(T228,'Footnotes list'!$D$9:$E$58,2,FALSE) ) )","v":""},null,null,null,null,{"$f":"IF(TRIM(Y228)=\"\", \"\", IF(VLOOKUP(Y228,'Footnotes list'!$D$9:$E$58,2,FALSE)=0,\"\",VLOOKUP(Y228,'Footnotes list'!$D$9:$E$58,2,FALSE) ) )","v":""},null,null,null,null,{"$f":"IF(TRIM(AD228)=\"\", \"\", IF(VLOOKUP(AD228,'Footnotes list'!$D$9:$E$58,2,FALSE)=0,\"\",VLOOKUP(AD228,'Footnotes list'!$D$9:$E$58,2,FALSE) ) )","v":""},null,null,null,null,{"$f":"IF(TRIM(AI228)=\"\", \"\", IF(VLOOKUP(AI228,'Footnotes list'!$D$9:$E$58,2,FALSE)=0,\"\",VLOOKUP(AI228,'Footnotes list'!$D$9:$E$58,2,FALSE) ) )","v":""},null,null,null,null,{"$f":"IF(TRIM(AN228)=\"\", \"\", IF(VLOOKUP(AN228,'Footnotes list'!$D$9:$E$58,2,FALSE)=0,\"\",VLOOKUP(AN228,'Footnotes list'!$D$9:$E$58,2,FALSE) ) )","v":""},null,null,null,null,{"$f":"IF(TRIM(AS228)=\"\", \"\", IF(VLOOKUP(AS228,'Footnotes list'!$D$9:$E$58,2,FALSE)=0,\"\",VLOOKUP(AS228,'Footnotes list'!$D$9:$E$58,2,FALSE) ) )","v":""},null,null,null,null,{"$f":"IF(TRIM(AX228)=\"\", \"\", IF(VLOOKUP(AX228,'Footnotes list'!$D$9:$E$58,2,FALSE)=0,\"\",VLOOKUP(AX228,'Footnotes list'!$D$9:$E$58,2,FALSE) ) )","v":""},null,null,null,null,{"$f":"IF(TRIM(BC228)=\"\", \"\", IF(VLOOKUP(BC228,'Footnotes list'!$D$9:$E$58,2,FALSE)=0,\"\",VLOOKUP(BC228,'Footnotes list'!$D$9:$E$58,2,FALSE) ) )","v":""},null,null,null,null,{"$f":"IF(TRIM(BH228)=\"\", \"\", IF(VLOOKUP(BH228,'Footnotes list'!$D$9:$E$58,2,FALSE)=0,\"\",VLOOKUP(BH228,'Footnotes list'!$D$9:$E$58,2,FALSE) ) )","v":""},null,null,null,null,{"$f":"IF(TRIM(BM228)=\"\", \"\", IF(VLOOKUP(BM228,'Footnotes list'!$D$9:$E$58,2,FALSE)=0,\"\",VLOOKUP(BM228,'Footnotes list'!$D$9:$E$58,2,FALSE) ) )","v":""},null,null,null,null,{"$f":"IF(TRIM(BR228)=\"\", \"\", IF(VLOOKUP(BR228,'Footnotes list'!$D$9:$E$58,2,FALSE)=0,\"\",VLOOKUP(BR228,'Footnotes list'!$D$9:$E$58,2,FALSE) ) )","v":""},null,null,null,null,{"$f":"IF(TRIM(BW228)=\"\", \"\", IF(VLOOKUP(BW228,'Footnotes list'!$D$9:$E$58,2,FALSE)=0,\"\",VLOOKUP(BW228,'Footnotes list'!$D$9:$E$58,2,FALSE) ) )","v":""},null,null,null,null,{"$f":"IF(TRIM(CB228)=\"\", \"\", IF(VLOOKUP(CB228,'Footnotes list'!$D$9:$E$58,2,FALSE)=0,\"\",VLOOKUP(CB228,'Footnotes list'!$D$9:$E$58,2,FALSE) ) )","v":""},null,null,null,null,{"$f":"IF(TRIM(CG228)=\"\", \"\", IF(VLOOKUP(CG228,'Footnotes list'!$D$9:$E$58,2,FALSE)=0,\"\",VLOOKUP(CG228,'Footnotes list'!$D$9:$E$58,2,FALSE) ) )","v":""},null,null,null,null,{"$f":"IF(TRIM(CL228)=\"\", \"\", IF(VLOOKUP(CL228,'Footnotes list'!$D$9:$E$58,2,FALSE)=0,\"\",VLOOKUP(CL228,'Footnotes list'!$D$9:$E$58,2,FALSE) ) )","v":""},null,null,null,null,{"$f":"IF(TRIM(CQ228)=\"\", \"\", IF(VLOOKUP(CQ228,'Footnotes list'!$D$9:$E$58,2,FALSE)=0,\"\",VLOOKUP(CQ228,'Footnotes list'!$D$9:$E$58,2,FALSE) ) )","v":""},null,null,null,null,{"$f":"IF(TRIM(CV228)=\"\", \"\", IF(VLOOKUP(CV228,'Footnotes list'!$D$9:$E$58,2,FALSE)=0,\"\",VLOOKUP(CV228,'Footnotes list'!$D$9:$E$58,2,FALSE) ) )","v":""},null,null,null,null,{"$f":"IF(TRIM(DA228)=\"\", \"\", IF(VLOOKUP(DA228,'Footnotes list'!$D$9:$E$58,2,FALSE)=0,\"\",VLOOKUP(DA228,'Footnotes list'!$D$9:$E$58,2,FALSE) ) )","v":""},null,null,null,null,{"$f":"IF(TRIM(DF228)=\"\", \"\", IF(VLOOKUP(DF228,'Footnotes list'!$D$9:$E$58,2,FALSE)=0,\"\",VLOOKUP(DF228,'Footnotes list'!$D$9:$E$58,2,FALSE) ) )","v":""},null,null,null,null,{"$f":"IF(TRIM(DK228)=\"\", \"\", IF(VLOOKUP(DK228,'Footnotes list'!$D$9:$E$58,2,FALSE)=0,\"\",VLOOKUP(DK228,'Footnotes list'!$D$9:$E$58,2,FALSE) ) )","v":""},null,null,null,null,{"$f":"IF(TRIM(DP228)=\"\", \"\", IF(VLOOKUP(DP228,'Footnotes list'!$D$9:$E$58,2,FALSE)=0,\"\",VLOOKUP(DP228,'Footnotes list'!$D$9:$E$58,2,FALSE) ) )","v":""},null,null,null,null,{"$f":"IF(TRIM(DU228)=\"\", \"\", IF(VLOOKUP(DU228,'Footnotes list'!$D$9:$E$58,2,FALSE)=0,\"\",VLOOKUP(DU228,'Footnotes list'!$D$9:$E$58,2,FALSE) ) )","v":""},null,null,null,null,{"$f":"IF(TRIM(DZ228)=\"\", \"\", IF(VLOOKUP(DZ228,'Footnotes list'!$D$9:$E$58,2,FALSE)=0,\"\",VLOOKUP(DZ228,'Footnotes list'!$D$9:$E$58,2,FALSE) ) )","v":""},null,null,null,null,{"$f":"IF(TRIM(EE228)=\"\", \"\", IF(VLOOKUP(EE228,'Footnotes list'!$D$9:$E$58,2,FALSE)=0,\"\",VLOOKUP(EE228,'Footnotes list'!$D$9:$E$58,2,FALSE) ) )","v":""},null,null,null,null,{"$f":"IF(TRIM(EJ228)=\"\", \"\", IF(VLOOKUP(EJ228,'Footnotes list'!$D$9:$E$58,2,FALSE)=0,\"\",VLOOKUP(EJ228,'Footnotes list'!$D$9:$E$58,2,FALSE) ) )","v":""},null,null,null,null,{"$f":"IF(TRIM(EO228)=\"\", \"\", IF(VLOOKUP(EO228,'Footnotes list'!$D$9:$E$58,2,FALSE)=0,\"\",VLOOKUP(EO228,'Footnotes list'!$D$9:$E$58,2,FALSE) ) )","v":""},null,null,null,null,{"$f":"IF(TRIM(ET228)=\"\", \"\", IF(VLOOKUP(ET228,'Footnotes list'!$D$9:$E$58,2,FALSE)=0,\"\",VLOOKUP(ET228,'Footnotes list'!$D$9:$E$58,2,FALSE) ) )","v":""},null,null,null,null,{"$f":"IF(TRIM(EY228)=\"\", \"\", IF(VLOOKUP(EY228,'Footnotes list'!$D$9:$E$58,2,FALSE)=0,\"\",VLOOKUP(EY228,'Footnotes list'!$D$9:$E$58,2,FALSE) ) )","v":""}]
[null,null,"M69_M70","MKT","market activities, including:",null,null,null,null,null,{"$f":"IF(TRIM(J229)=\"\", \"\", IF(VLOOKUP(J229,'Footnotes list'!$D$9:$E$58,2,FALSE)=0,\"\",VLOOKUP(J229,'Footnotes list'!$D$9:$E$58,2,FALSE) ) )","v":""},null,null,null,null,{"$f":"IF(TRIM(O229)=\"\", \"\", IF(VLOOKUP(O229,'Footnotes list'!$D$9:$E$58,2,FALSE)=0,\"\",VLOOKUP(O229,'Footnotes list'!$D$9:$E$58,2,FALSE) ) )","v":""},null,null,null,null,{"$f":"IF(TRIM(T229)=\"\", \"\", IF(VLOOKUP(T229,'Footnotes list'!$D$9:$E$58,2,FALSE)=0,\"\",VLOOKUP(T229,'Footnotes list'!$D$9:$E$58,2,FALSE) ) )","v":""},null,null,null,null,{"$f":"IF(TRIM(Y229)=\"\", \"\", IF(VLOOKUP(Y229,'Footnotes list'!$D$9:$E$58,2,FALSE)=0,\"\",VLOOKUP(Y229,'Footnotes list'!$D$9:$E$58,2,FALSE) ) )","v":""},null,null,null,null,{"$f":"IF(TRIM(AD229)=\"\", \"\", IF(VLOOKUP(AD229,'Footnotes list'!$D$9:$E$58,2,FALSE)=0,\"\",VLOOKUP(AD229,'Footnotes list'!$D$9:$E$58,2,FALSE) ) )","v":""},null,null,null,null,{"$f":"IF(TRIM(AI229)=\"\", \"\", IF(VLOOKUP(AI229,'Footnotes list'!$D$9:$E$58,2,FALSE)=0,\"\",VLOOKUP(AI229,'Footnotes list'!$D$9:$E$58,2,FALSE) ) )","v":""},null,null,null,null,{"$f":"IF(TRIM(AN229)=\"\", \"\", IF(VLOOKUP(AN229,'Footnotes list'!$D$9:$E$58,2,FALSE)=0,\"\",VLOOKUP(AN229,'Footnotes list'!$D$9:$E$58,2,FALSE) ) )","v":""},null,null,null,null,{"$f":"IF(TRIM(AS229)=\"\", \"\", IF(VLOOKUP(AS229,'Footnotes list'!$D$9:$E$58,2,FALSE)=0,\"\",VLOOKUP(AS229,'Footnotes list'!$D$9:$E$58,2,FALSE) ) )","v":""},null,null,null,null,{"$f":"IF(TRIM(AX229)=\"\", \"\", IF(VLOOKUP(AX229,'Footnotes list'!$D$9:$E$58,2,FALSE)=0,\"\",VLOOKUP(AX229,'Footnotes list'!$D$9:$E$58,2,FALSE) ) )","v":""},null,null,null,null,{"$f":"IF(TRIM(BC229)=\"\", \"\", IF(VLOOKUP(BC229,'Footnotes list'!$D$9:$E$58,2,FALSE)=0,\"\",VLOOKUP(BC229,'Footnotes list'!$D$9:$E$58,2,FALSE) ) )","v":""},null,null,null,null,{"$f":"IF(TRIM(BH229)=\"\", \"\", IF(VLOOKUP(BH229,'Footnotes list'!$D$9:$E$58,2,FALSE)=0,\"\",VLOOKUP(BH229,'Footnotes list'!$D$9:$E$58,2,FALSE) ) )","v":""},null,null,null,null,{"$f":"IF(TRIM(BM229)=\"\", \"\", IF(VLOOKUP(BM229,'Footnotes list'!$D$9:$E$58,2,FALSE)=0,\"\",VLOOKUP(BM229,'Footnotes list'!$D$9:$E$58,2,FALSE) ) )","v":""},null,null,null,null,{"$f":"IF(TRIM(BR229)=\"\", \"\", IF(VLOOKUP(BR229,'Footnotes list'!$D$9:$E$58,2,FALSE)=0,\"\",VLOOKUP(BR229,'Footnotes list'!$D$9:$E$58,2,FALSE) ) )","v":""},null,null,null,null,{"$f":"IF(TRIM(BW229)=\"\", \"\", IF(VLOOKUP(BW229,'Footnotes list'!$D$9:$E$58,2,FALSE)=0,\"\",VLOOKUP(BW229,'Footnotes list'!$D$9:$E$58,2,FALSE) ) )","v":""},null,null,null,null,{"$f":"IF(TRIM(CB229)=\"\", \"\", IF(VLOOKUP(CB229,'Footnotes list'!$D$9:$E$58,2,FALSE)=0,\"\",VLOOKUP(CB229,'Footnotes list'!$D$9:$E$58,2,FALSE) ) )","v":""},null,null,null,null,{"$f":"IF(TRIM(CG229)=\"\", \"\", IF(VLOOKUP(CG229,'Footnotes list'!$D$9:$E$58,2,FALSE)=0,\"\",VLOOKUP(CG229,'Footnotes list'!$D$9:$E$58,2,FALSE) ) )","v":""},null,null,null,null,{"$f":"IF(TRIM(CL229)=\"\", \"\", IF(VLOOKUP(CL229,'Footnotes list'!$D$9:$E$58,2,FALSE)=0,\"\",VLOOKUP(CL229,'Footnotes list'!$D$9:$E$58,2,FALSE) ) )","v":""},null,null,null,null,{"$f":"IF(TRIM(CQ229)=\"\", \"\", IF(VLOOKUP(CQ229,'Footnotes list'!$D$9:$E$58,2,FALSE)=0,\"\",VLOOKUP(CQ229,'Footnotes list'!$D$9:$E$58,2,FALSE) ) )","v":""},null,null,null,null,{"$f":"IF(TRIM(CV229)=\"\", \"\", IF(VLOOKUP(CV229,'Footnotes list'!$D$9:$E$58,2,FALSE)=0,\"\",VLOOKUP(CV229,'Footnotes list'!$D$9:$E$58,2,FALSE) ) )","v":""},null,null,null,null,{"$f":"IF(TRIM(DA229)=\"\", \"\", IF(VLOOKUP(DA229,'Footnotes list'!$D$9:$E$58,2,FALSE)=0,\"\",VLOOKUP(DA229,'Footnotes list'!$D$9:$E$58,2,FALSE) ) )","v":""},null,null,null,null,{"$f":"IF(TRIM(DF229)=\"\", \"\", IF(VLOOKUP(DF229,'Footnotes list'!$D$9:$E$58,2,FALSE)=0,\"\",VLOOKUP(DF229,'Footnotes list'!$D$9:$E$58,2,FALSE) ) )","v":""},null,null,null,null,{"$f":"IF(TRIM(DK229)=\"\", \"\", IF(VLOOKUP(DK229,'Footnotes list'!$D$9:$E$58,2,FALSE)=0,\"\",VLOOKUP(DK229,'Footnotes list'!$D$9:$E$58,2,FALSE) ) )","v":""},null,null,null,null,{"$f":"IF(TRIM(DP229)=\"\", \"\", IF(VLOOKUP(DP229,'Footnotes list'!$D$9:$E$58,2,FALSE)=0,\"\",VLOOKUP(DP229,'Footnotes list'!$D$9:$E$58,2,FALSE) ) )","v":""},null,null,null,null,{"$f":"IF(TRIM(DU229)=\"\", \"\", IF(VLOOKUP(DU229,'Footnotes list'!$D$9:$E$58,2,FALSE)=0,\"\",VLOOKUP(DU229,'Footnotes list'!$D$9:$E$58,2,FALSE) ) )","v":""},null,null,null,null,{"$f":"IF(TRIM(DZ229)=\"\", \"\", IF(VLOOKUP(DZ229,'Footnotes list'!$D$9:$E$58,2,FALSE)=0,\"\",VLOOKUP(DZ229,'Footnotes list'!$D$9:$E$58,2,FALSE) ) )","v":""},null,null,null,null,{"$f":"IF(TRIM(EE229)=\"\", \"\", IF(VLOOKUP(EE229,'Footnotes list'!$D$9:$E$58,2,FALSE)=0,\"\",VLOOKUP(EE229,'Footnotes list'!$D$9:$E$58,2,FALSE) ) )","v":""},null,null,null,null,{"$f":"IF(TRIM(EJ229)=\"\", \"\", IF(VLOOKUP(EJ229,'Footnotes list'!$D$9:$E$58,2,FALSE)=0,\"\",VLOOKUP(EJ229,'Footnotes list'!$D$9:$E$58,2,FALSE) ) )","v":""},null,null,null,null,{"$f":"IF(TRIM(EO229)=\"\", \"\", IF(VLOOKUP(EO229,'Footnotes list'!$D$9:$E$58,2,FALSE)=0,\"\",VLOOKUP(EO229,'Footnotes list'!$D$9:$E$58,2,FALSE) ) )","v":""},null,null,null,null,{"$f":"IF(TRIM(ET229)=\"\", \"\", IF(VLOOKUP(ET229,'Footnotes list'!$D$9:$E$58,2,FALSE)=0,\"\",VLOOKUP(ET229,'Footnotes list'!$D$9:$E$58,2,FALSE) ) )","v":""},null,null,null,null,{"$f":"IF(TRIM(EY229)=\"\", \"\", IF(VLOOKUP(EY229,'Footnotes list'!$D$9:$E$58,2,FALSE)=0,\"\",VLOOKUP(EY229,'Footnotes list'!$D$9:$E$58,2,FALSE) ) )","v":""}]
[null,null,"M69_M70","ES_CS","environmental specific services",null,null,null,null,null,{"$f":"IF(TRIM(J230)=\"\", \"\", IF(VLOOKUP(J230,'Footnotes list'!$D$9:$E$58,2,FALSE)=0,\"\",VLOOKUP(J230,'Footnotes list'!$D$9:$E$58,2,FALSE) ) )","v":""},null,null,null,null,{"$f":"IF(TRIM(O230)=\"\", \"\", IF(VLOOKUP(O230,'Footnotes list'!$D$9:$E$58,2,FALSE)=0,\"\",VLOOKUP(O230,'Footnotes list'!$D$9:$E$58,2,FALSE) ) )","v":""},null,null,null,null,{"$f":"IF(TRIM(T230)=\"\", \"\", IF(VLOOKUP(T230,'Footnotes list'!$D$9:$E$58,2,FALSE)=0,\"\",VLOOKUP(T230,'Footnotes list'!$D$9:$E$58,2,FALSE) ) )","v":""},null,null,null,null,{"$f":"IF(TRIM(Y230)=\"\", \"\", IF(VLOOKUP(Y230,'Footnotes list'!$D$9:$E$58,2,FALSE)=0,\"\",VLOOKUP(Y230,'Footnotes list'!$D$9:$E$58,2,FALSE) ) )","v":""},null,null,null,null,{"$f":"IF(TRIM(AD230)=\"\", \"\", IF(VLOOKUP(AD230,'Footnotes list'!$D$9:$E$58,2,FALSE)=0,\"\",VLOOKUP(AD230,'Footnotes list'!$D$9:$E$58,2,FALSE) ) )","v":""},null,null,null,null,{"$f":"IF(TRIM(AI230)=\"\", \"\", IF(VLOOKUP(AI230,'Footnotes list'!$D$9:$E$58,2,FALSE)=0,\"\",VLOOKUP(AI230,'Footnotes list'!$D$9:$E$58,2,FALSE) ) )","v":""},null,null,null,null,{"$f":"IF(TRIM(AN230)=\"\", \"\", IF(VLOOKUP(AN230,'Footnotes list'!$D$9:$E$58,2,FALSE)=0,\"\",VLOOKUP(AN230,'Footnotes list'!$D$9:$E$58,2,FALSE) ) )","v":""},null,null,null,null,{"$f":"IF(TRIM(AS230)=\"\", \"\", IF(VLOOKUP(AS230,'Footnotes list'!$D$9:$E$58,2,FALSE)=0,\"\",VLOOKUP(AS230,'Footnotes list'!$D$9:$E$58,2,FALSE) ) )","v":""},null,null,null,null,{"$f":"IF(TRIM(AX230)=\"\", \"\", IF(VLOOKUP(AX230,'Footnotes list'!$D$9:$E$58,2,FALSE)=0,\"\",VLOOKUP(AX230,'Footnotes list'!$D$9:$E$58,2,FALSE) ) )","v":""},null,null,null,null,{"$f":"IF(TRIM(BC230)=\"\", \"\", IF(VLOOKUP(BC230,'Footnotes list'!$D$9:$E$58,2,FALSE)=0,\"\",VLOOKUP(BC230,'Footnotes list'!$D$9:$E$58,2,FALSE) ) )","v":""},null,null,null,null,{"$f":"IF(TRIM(BH230)=\"\", \"\", IF(VLOOKUP(BH230,'Footnotes list'!$D$9:$E$58,2,FALSE)=0,\"\",VLOOKUP(BH230,'Footnotes list'!$D$9:$E$58,2,FALSE) ) )","v":""},null,null,null,null,{"$f":"IF(TRIM(BM230)=\"\", \"\", IF(VLOOKUP(BM230,'Footnotes list'!$D$9:$E$58,2,FALSE)=0,\"\",VLOOKUP(BM230,'Footnotes list'!$D$9:$E$58,2,FALSE) ) )","v":""},null,null,null,null,{"$f":"IF(TRIM(BR230)=\"\", \"\", IF(VLOOKUP(BR230,'Footnotes list'!$D$9:$E$58,2,FALSE)=0,\"\",VLOOKUP(BR230,'Footnotes list'!$D$9:$E$58,2,FALSE) ) )","v":""},null,null,null,null,{"$f":"IF(TRIM(BW230)=\"\", \"\", IF(VLOOKUP(BW230,'Footnotes list'!$D$9:$E$58,2,FALSE)=0,\"\",VLOOKUP(BW230,'Footnotes list'!$D$9:$E$58,2,FALSE) ) )","v":""},null,null,null,null,{"$f":"IF(TRIM(CB230)=\"\", \"\", IF(VLOOKUP(CB230,'Footnotes list'!$D$9:$E$58,2,FALSE)=0,\"\",VLOOKUP(CB230,'Footnotes list'!$D$9:$E$58,2,FALSE) ) )","v":""},null,null,null,null,{"$f":"IF(TRIM(CG230)=\"\", \"\", IF(VLOOKUP(CG230,'Footnotes list'!$D$9:$E$58,2,FALSE)=0,\"\",VLOOKUP(CG230,'Footnotes list'!$D$9:$E$58,2,FALSE) ) )","v":""},null,null,null,null,{"$f":"IF(TRIM(CL230)=\"\", \"\", IF(VLOOKUP(CL230,'Footnotes list'!$D$9:$E$58,2,FALSE)=0,\"\",VLOOKUP(CL230,'Footnotes list'!$D$9:$E$58,2,FALSE) ) )","v":""},null,null,null,null,{"$f":"IF(TRIM(CQ230)=\"\", \"\", IF(VLOOKUP(CQ230,'Footnotes list'!$D$9:$E$58,2,FALSE)=0,\"\",VLOOKUP(CQ230,'Footnotes list'!$D$9:$E$58,2,FALSE) ) )","v":""},null,null,null,null,{"$f":"IF(TRIM(CV230)=\"\", \"\", IF(VLOOKUP(CV230,'Footnotes list'!$D$9:$E$58,2,FALSE)=0,\"\",VLOOKUP(CV230,'Footnotes list'!$D$9:$E$58,2,FALSE) ) )","v":""},null,null,null,null,{"$f":"IF(TRIM(DA230)=\"\", \"\", IF(VLOOKUP(DA230,'Footnotes list'!$D$9:$E$58,2,FALSE)=0,\"\",VLOOKUP(DA230,'Footnotes list'!$D$9:$E$58,2,FALSE) ) )","v":""},null,null,null,null,{"$f":"IF(TRIM(DF230)=\"\", \"\", IF(VLOOKUP(DF230,'Footnotes list'!$D$9:$E$58,2,FALSE)=0,\"\",VLOOKUP(DF230,'Footnotes list'!$D$9:$E$58,2,FALSE) ) )","v":""},null,null,null,null,{"$f":"IF(TRIM(DK230)=\"\", \"\", IF(VLOOKUP(DK230,'Footnotes list'!$D$9:$E$58,2,FALSE)=0,\"\",VLOOKUP(DK230,'Footnotes list'!$D$9:$E$58,2,FALSE) ) )","v":""},null,null,null,null,{"$f":"IF(TRIM(DP230)=\"\", \"\", IF(VLOOKUP(DP230,'Footnotes list'!$D$9:$E$58,2,FALSE)=0,\"\",VLOOKUP(DP230,'Footnotes list'!$D$9:$E$58,2,FALSE) ) )","v":""},null,null,null,null,{"$f":"IF(TRIM(DU230)=\"\", \"\", IF(VLOOKUP(DU230,'Footnotes list'!$D$9:$E$58,2,FALSE)=0,\"\",VLOOKUP(DU230,'Footnotes list'!$D$9:$E$58,2,FALSE) ) )","v":""},null,null,null,null,{"$f":"IF(TRIM(DZ230)=\"\", \"\", IF(VLOOKUP(DZ230,'Footnotes list'!$D$9:$E$58,2,FALSE)=0,\"\",VLOOKUP(DZ230,'Footnotes list'!$D$9:$E$58,2,FALSE) ) )","v":""},null,null,null,null,{"$f":"IF(TRIM(EE230)=\"\", \"\", IF(VLOOKUP(EE230,'Footnotes list'!$D$9:$E$58,2,FALSE)=0,\"\",VLOOKUP(EE230,'Footnotes list'!$D$9:$E$58,2,FALSE) ) )","v":""},null,null,null,null,{"$f":"IF(TRIM(EJ230)=\"\", \"\", IF(VLOOKUP(EJ230,'Footnotes list'!$D$9:$E$58,2,FALSE)=0,\"\",VLOOKUP(EJ230,'Footnotes list'!$D$9:$E$58,2,FALSE) ) )","v":""},null,null,null,null,{"$f":"IF(TRIM(EO230)=\"\", \"\", IF(VLOOKUP(EO230,'Footnotes list'!$D$9:$E$58,2,FALSE)=0,\"\",VLOOKUP(EO230,'Footnotes list'!$D$9:$E$58,2,FALSE) ) )","v":""},null,null,null,null,{"$f":"IF(TRIM(ET230)=\"\", \"\", IF(VLOOKUP(ET230,'Footnotes list'!$D$9:$E$58,2,FALSE)=0,\"\",VLOOKUP(ET230,'Footnotes list'!$D$9:$E$58,2,FALSE) ) )","v":""},null,null,null,null,{"$f":"IF(TRIM(EY230)=\"\", \"\", IF(VLOOKUP(EY230,'Footnotes list'!$D$9:$E$58,2,FALSE)=0,\"\",VLOOKUP(EY230,'Footnotes list'!$D$9:$E$58,2,FALSE) ) )","v":""}]
[null,null,"M69_M70","C_REP","cleaner and resource efficient products",null,null,null,null,null,{"$f":"IF(TRIM(J231)=\"\", \"\", IF(VLOOKUP(J231,'Footnotes list'!$D$9:$E$58,2,FALSE)=0,\"\",VLOOKUP(J231,'Footnotes list'!$D$9:$E$58,2,FALSE) ) )","v":""},null,null,null,null,{"$f":"IF(TRIM(O231)=\"\", \"\", IF(VLOOKUP(O231,'Footnotes list'!$D$9:$E$58,2,FALSE)=0,\"\",VLOOKUP(O231,'Footnotes list'!$D$9:$E$58,2,FALSE) ) )","v":""},null,null,null,null,{"$f":"IF(TRIM(T231)=\"\", \"\", IF(VLOOKUP(T231,'Footnotes list'!$D$9:$E$58,2,FALSE)=0,\"\",VLOOKUP(T231,'Footnotes list'!$D$9:$E$58,2,FALSE) ) )","v":""},null,null,null,null,{"$f":"IF(TRIM(Y231)=\"\", \"\", IF(VLOOKUP(Y231,'Footnotes list'!$D$9:$E$58,2,FALSE)=0,\"\",VLOOKUP(Y231,'Footnotes list'!$D$9:$E$58,2,FALSE) ) )","v":""},null,null,null,null,{"$f":"IF(TRIM(AD231)=\"\", \"\", IF(VLOOKUP(AD231,'Footnotes list'!$D$9:$E$58,2,FALSE)=0,\"\",VLOOKUP(AD231,'Footnotes list'!$D$9:$E$58,2,FALSE) ) )","v":""},null,null,null,null,{"$f":"IF(TRIM(AI231)=\"\", \"\", IF(VLOOKUP(AI231,'Footnotes list'!$D$9:$E$58,2,FALSE)=0,\"\",VLOOKUP(AI231,'Footnotes list'!$D$9:$E$58,2,FALSE) ) )","v":""},null,null,null,null,{"$f":"IF(TRIM(AN231)=\"\", \"\", IF(VLOOKUP(AN231,'Footnotes list'!$D$9:$E$58,2,FALSE)=0,\"\",VLOOKUP(AN231,'Footnotes list'!$D$9:$E$58,2,FALSE) ) )","v":""},null,null,null,null,{"$f":"IF(TRIM(AS231)=\"\", \"\", IF(VLOOKUP(AS231,'Footnotes list'!$D$9:$E$58,2,FALSE)=0,\"\",VLOOKUP(AS231,'Footnotes list'!$D$9:$E$58,2,FALSE) ) )","v":""},null,null,null,null,{"$f":"IF(TRIM(AX231)=\"\", \"\", IF(VLOOKUP(AX231,'Footnotes list'!$D$9:$E$58,2,FALSE)=0,\"\",VLOOKUP(AX231,'Footnotes list'!$D$9:$E$58,2,FALSE) ) )","v":""},null,null,null,null,{"$f":"IF(TRIM(BC231)=\"\", \"\", IF(VLOOKUP(BC231,'Footnotes list'!$D$9:$E$58,2,FALSE)=0,\"\",VLOOKUP(BC231,'Footnotes list'!$D$9:$E$58,2,FALSE) ) )","v":""},null,null,null,null,{"$f":"IF(TRIM(BH231)=\"\", \"\", IF(VLOOKUP(BH231,'Footnotes list'!$D$9:$E$58,2,FALSE)=0,\"\",VLOOKUP(BH231,'Footnotes list'!$D$9:$E$58,2,FALSE) ) )","v":""},null,null,null,null,{"$f":"IF(TRIM(BM231)=\"\", \"\", IF(VLOOKUP(BM231,'Footnotes list'!$D$9:$E$58,2,FALSE)=0,\"\",VLOOKUP(BM231,'Footnotes list'!$D$9:$E$58,2,FALSE) ) )","v":""},null,null,null,null,{"$f":"IF(TRIM(BR231)=\"\", \"\", IF(VLOOKUP(BR231,'Footnotes list'!$D$9:$E$58,2,FALSE)=0,\"\",VLOOKUP(BR231,'Footnotes list'!$D$9:$E$58,2,FALSE) ) )","v":""},null,null,null,null,{"$f":"IF(TRIM(BW231)=\"\", \"\", IF(VLOOKUP(BW231,'Footnotes list'!$D$9:$E$58,2,FALSE)=0,\"\",VLOOKUP(BW231,'Footnotes list'!$D$9:$E$58,2,FALSE) ) )","v":""},null,null,null,null,{"$f":"IF(TRIM(CB231)=\"\", \"\", IF(VLOOKUP(CB231,'Footnotes list'!$D$9:$E$58,2,FALSE)=0,\"\",VLOOKUP(CB231,'Footnotes list'!$D$9:$E$58,2,FALSE) ) )","v":""},null,null,null,null,{"$f":"IF(TRIM(CG231)=\"\", \"\", IF(VLOOKUP(CG231,'Footnotes list'!$D$9:$E$58,2,FALSE)=0,\"\",VLOOKUP(CG231,'Footnotes list'!$D$9:$E$58,2,FALSE) ) )","v":""},null,null,null,null,{"$f":"IF(TRIM(CL231)=\"\", \"\", IF(VLOOKUP(CL231,'Footnotes list'!$D$9:$E$58,2,FALSE)=0,\"\",VLOOKUP(CL231,'Footnotes list'!$D$9:$E$58,2,FALSE) ) )","v":""},null,null,null,null,{"$f":"IF(TRIM(CQ231)=\"\", \"\", IF(VLOOKUP(CQ231,'Footnotes list'!$D$9:$E$58,2,FALSE)=0,\"\",VLOOKUP(CQ231,'Footnotes list'!$D$9:$E$58,2,FALSE) ) )","v":""},null,null,null,null,{"$f":"IF(TRIM(CV231)=\"\", \"\", IF(VLOOKUP(CV231,'Footnotes list'!$D$9:$E$58,2,FALSE)=0,\"\",VLOOKUP(CV231,'Footnotes list'!$D$9:$E$58,2,FALSE) ) )","v":""},null,null,null,null,{"$f":"IF(TRIM(DA231)=\"\", \"\", IF(VLOOKUP(DA231,'Footnotes list'!$D$9:$E$58,2,FALSE)=0,\"\",VLOOKUP(DA231,'Footnotes list'!$D$9:$E$58,2,FALSE) ) )","v":""},null,null,null,null,{"$f":"IF(TRIM(DF231)=\"\", \"\", IF(VLOOKUP(DF231,'Footnotes list'!$D$9:$E$58,2,FALSE)=0,\"\",VLOOKUP(DF231,'Footnotes list'!$D$9:$E$58,2,FALSE) ) )","v":""},null,null,null,null,{"$f":"IF(TRIM(DK231)=\"\", \"\", IF(VLOOKUP(DK231,'Footnotes list'!$D$9:$E$58,2,FALSE)=0,\"\",VLOOKUP(DK231,'Footnotes list'!$D$9:$E$58,2,FALSE) ) )","v":""},null,null,null,null,{"$f":"IF(TRIM(DP231)=\"\", \"\", IF(VLOOKUP(DP231,'Footnotes list'!$D$9:$E$58,2,FALSE)=0,\"\",VLOOKUP(DP231,'Footnotes list'!$D$9:$E$58,2,FALSE) ) )","v":""},null,null,null,null,{"$f":"IF(TRIM(DU231)=\"\", \"\", IF(VLOOKUP(DU231,'Footnotes list'!$D$9:$E$58,2,FALSE)=0,\"\",VLOOKUP(DU231,'Footnotes list'!$D$9:$E$58,2,FALSE) ) )","v":""},null,null,null,null,{"$f":"IF(TRIM(DZ231)=\"\", \"\", IF(VLOOKUP(DZ231,'Footnotes list'!$D$9:$E$58,2,FALSE)=0,\"\",VLOOKUP(DZ231,'Footnotes list'!$D$9:$E$58,2,FALSE) ) )","v":""},null,null,null,null,{"$f":"IF(TRIM(EE231)=\"\", \"\", IF(VLOOKUP(EE231,'Footnotes list'!$D$9:$E$58,2,FALSE)=0,\"\",VLOOKUP(EE231,'Footnotes list'!$D$9:$E$58,2,FALSE) ) )","v":""},null,null,null,null,{"$f":"IF(TRIM(EJ231)=\"\", \"\", IF(VLOOKUP(EJ231,'Footnotes list'!$D$9:$E$58,2,FALSE)=0,\"\",VLOOKUP(EJ231,'Footnotes list'!$D$9:$E$58,2,FALSE) ) )","v":""},null,null,null,null,{"$f":"IF(TRIM(EO231)=\"\", \"\", IF(VLOOKUP(EO231,'Footnotes list'!$D$9:$E$58,2,FALSE)=0,\"\",VLOOKUP(EO231,'Footnotes list'!$D$9:$E$58,2,FALSE) ) )","v":""},null,null,null,null,{"$f":"IF(TRIM(ET231)=\"\", \"\", IF(VLOOKUP(ET231,'Footnotes list'!$D$9:$E$58,2,FALSE)=0,\"\",VLOOKUP(ET231,'Footnotes list'!$D$9:$E$58,2,FALSE) ) )","v":""},null,null,null,null,{"$f":"IF(TRIM(EY231)=\"\", \"\", IF(VLOOKUP(EY231,'Footnotes list'!$D$9:$E$58,2,FALSE)=0,\"\",VLOOKUP(EY231,'Footnotes list'!$D$9:$E$58,2,FALSE) ) )","v":""}]
[null,null,"M71","TOT_EGSS","Total M71 - Architectural and engineering activities; technical testing and analysis, of which:",null,null,null,null,null,{"$f":"IF(TRIM(J232)=\"\", \"\", IF(VLOOKUP(J232,'Footnotes list'!$D$9:$E$58,2,FALSE)=0,\"\",VLOOKUP(J232,'Footnotes list'!$D$9:$E$58,2,FALSE) ) )","v":""},null,null,null,null,{"$f":"IF(TRIM(O232)=\"\", \"\", IF(VLOOKUP(O232,'Footnotes list'!$D$9:$E$58,2,FALSE)=0,\"\",VLOOKUP(O232,'Footnotes list'!$D$9:$E$58,2,FALSE) ) )","v":""},null,null,null,null,{"$f":"IF(TRIM(T232)=\"\", \"\", IF(VLOOKUP(T232,'Footnotes list'!$D$9:$E$58,2,FALSE)=0,\"\",VLOOKUP(T232,'Footnotes list'!$D$9:$E$58,2,FALSE) ) )","v":""},null,null,null,null,{"$f":"IF(TRIM(Y232)=\"\", \"\", IF(VLOOKUP(Y232,'Footnotes list'!$D$9:$E$58,2,FALSE)=0,\"\",VLOOKUP(Y232,'Footnotes list'!$D$9:$E$58,2,FALSE) ) )","v":""},null,null,null,null,{"$f":"IF(TRIM(AD232)=\"\", \"\", IF(VLOOKUP(AD232,'Footnotes list'!$D$9:$E$58,2,FALSE)=0,\"\",VLOOKUP(AD232,'Footnotes list'!$D$9:$E$58,2,FALSE) ) )","v":""},null,null,null,null,{"$f":"IF(TRIM(AI232)=\"\", \"\", IF(VLOOKUP(AI232,'Footnotes list'!$D$9:$E$58,2,FALSE)=0,\"\",VLOOKUP(AI232,'Footnotes list'!$D$9:$E$58,2,FALSE) ) )","v":""},null,null,null,null,{"$f":"IF(TRIM(AN232)=\"\", \"\", IF(VLOOKUP(AN232,'Footnotes list'!$D$9:$E$58,2,FALSE)=0,\"\",VLOOKUP(AN232,'Footnotes list'!$D$9:$E$58,2,FALSE) ) )","v":""},null,null,null,null,{"$f":"IF(TRIM(AS232)=\"\", \"\", IF(VLOOKUP(AS232,'Footnotes list'!$D$9:$E$58,2,FALSE)=0,\"\",VLOOKUP(AS232,'Footnotes list'!$D$9:$E$58,2,FALSE) ) )","v":""},null,null,null,null,{"$f":"IF(TRIM(AX232)=\"\", \"\", IF(VLOOKUP(AX232,'Footnotes list'!$D$9:$E$58,2,FALSE)=0,\"\",VLOOKUP(AX232,'Footnotes list'!$D$9:$E$58,2,FALSE) ) )","v":""},null,null,null,null,{"$f":"IF(TRIM(BC232)=\"\", \"\", IF(VLOOKUP(BC232,'Footnotes list'!$D$9:$E$58,2,FALSE)=0,\"\",VLOOKUP(BC232,'Footnotes list'!$D$9:$E$58,2,FALSE) ) )","v":""},null,null,null,null,{"$f":"IF(TRIM(BH232)=\"\", \"\", IF(VLOOKUP(BH232,'Footnotes list'!$D$9:$E$58,2,FALSE)=0,\"\",VLOOKUP(BH232,'Footnotes list'!$D$9:$E$58,2,FALSE) ) )","v":""},null,null,null,null,{"$f":"IF(TRIM(BM232)=\"\", \"\", IF(VLOOKUP(BM232,'Footnotes list'!$D$9:$E$58,2,FALSE)=0,\"\",VLOOKUP(BM232,'Footnotes list'!$D$9:$E$58,2,FALSE) ) )","v":""},null,null,null,null,{"$f":"IF(TRIM(BR232)=\"\", \"\", IF(VLOOKUP(BR232,'Footnotes list'!$D$9:$E$58,2,FALSE)=0,\"\",VLOOKUP(BR232,'Footnotes list'!$D$9:$E$58,2,FALSE) ) )","v":""},null,null,null,null,{"$f":"IF(TRIM(BW232)=\"\", \"\", IF(VLOOKUP(BW232,'Footnotes list'!$D$9:$E$58,2,FALSE)=0,\"\",VLOOKUP(BW232,'Footnotes list'!$D$9:$E$58,2,FALSE) ) )","v":""},null,null,null,null,{"$f":"IF(TRIM(CB232)=\"\", \"\", IF(VLOOKUP(CB232,'Footnotes list'!$D$9:$E$58,2,FALSE)=0,\"\",VLOOKUP(CB232,'Footnotes list'!$D$9:$E$58,2,FALSE) ) )","v":""},null,null,null,null,{"$f":"IF(TRIM(CG232)=\"\", \"\", IF(VLOOKUP(CG232,'Footnotes list'!$D$9:$E$58,2,FALSE)=0,\"\",VLOOKUP(CG232,'Footnotes list'!$D$9:$E$58,2,FALSE) ) )","v":""},null,null,null,null,{"$f":"IF(TRIM(CL232)=\"\", \"\", IF(VLOOKUP(CL232,'Footnotes list'!$D$9:$E$58,2,FALSE)=0,\"\",VLOOKUP(CL232,'Footnotes list'!$D$9:$E$58,2,FALSE) ) )","v":""},null,null,null,null,{"$f":"IF(TRIM(CQ232)=\"\", \"\", IF(VLOOKUP(CQ232,'Footnotes list'!$D$9:$E$58,2,FALSE)=0,\"\",VLOOKUP(CQ232,'Footnotes list'!$D$9:$E$58,2,FALSE) ) )","v":""},null,null,null,null,{"$f":"IF(TRIM(CV232)=\"\", \"\", IF(VLOOKUP(CV232,'Footnotes list'!$D$9:$E$58,2,FALSE)=0,\"\",VLOOKUP(CV232,'Footnotes list'!$D$9:$E$58,2,FALSE) ) )","v":""},null,null,null,null,{"$f":"IF(TRIM(DA232)=\"\", \"\", IF(VLOOKUP(DA232,'Footnotes list'!$D$9:$E$58,2,FALSE)=0,\"\",VLOOKUP(DA232,'Footnotes list'!$D$9:$E$58,2,FALSE) ) )","v":""},null,null,null,null,{"$f":"IF(TRIM(DF232)=\"\", \"\", IF(VLOOKUP(DF232,'Footnotes list'!$D$9:$E$58,2,FALSE)=0,\"\",VLOOKUP(DF232,'Footnotes list'!$D$9:$E$58,2,FALSE) ) )","v":""},null,null,null,null,{"$f":"IF(TRIM(DK232)=\"\", \"\", IF(VLOOKUP(DK232,'Footnotes list'!$D$9:$E$58,2,FALSE)=0,\"\",VLOOKUP(DK232,'Footnotes list'!$D$9:$E$58,2,FALSE) ) )","v":""},null,null,null,null,{"$f":"IF(TRIM(DP232)=\"\", \"\", IF(VLOOKUP(DP232,'Footnotes list'!$D$9:$E$58,2,FALSE)=0,\"\",VLOOKUP(DP232,'Footnotes list'!$D$9:$E$58,2,FALSE) ) )","v":""},null,null,null,null,{"$f":"IF(TRIM(DU232)=\"\", \"\", IF(VLOOKUP(DU232,'Footnotes list'!$D$9:$E$58,2,FALSE)=0,\"\",VLOOKUP(DU232,'Footnotes list'!$D$9:$E$58,2,FALSE) ) )","v":""},null,null,null,null,{"$f":"IF(TRIM(DZ232)=\"\", \"\", IF(VLOOKUP(DZ232,'Footnotes list'!$D$9:$E$58,2,FALSE)=0,\"\",VLOOKUP(DZ232,'Footnotes list'!$D$9:$E$58,2,FALSE) ) )","v":""},null,null,null,null,{"$f":"IF(TRIM(EE232)=\"\", \"\", IF(VLOOKUP(EE232,'Footnotes list'!$D$9:$E$58,2,FALSE)=0,\"\",VLOOKUP(EE232,'Footnotes list'!$D$9:$E$58,2,FALSE) ) )","v":""},null,null,null,null,{"$f":"IF(TRIM(EJ232)=\"\", \"\", IF(VLOOKUP(EJ232,'Footnotes list'!$D$9:$E$58,2,FALSE)=0,\"\",VLOOKUP(EJ232,'Footnotes list'!$D$9:$E$58,2,FALSE) ) )","v":""},null,null,null,null,{"$f":"IF(TRIM(EO232)=\"\", \"\", IF(VLOOKUP(EO232,'Footnotes list'!$D$9:$E$58,2,FALSE)=0,\"\",VLOOKUP(EO232,'Footnotes list'!$D$9:$E$58,2,FALSE) ) )","v":""},null,null,null,null,{"$f":"IF(TRIM(ET232)=\"\", \"\", IF(VLOOKUP(ET232,'Footnotes list'!$D$9:$E$58,2,FALSE)=0,\"\",VLOOKUP(ET232,'Footnotes list'!$D$9:$E$58,2,FALSE) ) )","v":""},null,null,null,null,{"$f":"IF(TRIM(EY232)=\"\", \"\", IF(VLOOKUP(EY232,'Footnotes list'!$D$9:$E$58,2,FALSE)=0,\"\",VLOOKUP(EY232,'Footnotes list'!$D$9:$E$58,2,FALSE) ) )","v":""}]
[null,null,"M71","ANC","ancillary activities",null,null,null,null,null,{"$f":"IF(TRIM(J233)=\"\", \"\", IF(VLOOKUP(J233,'Footnotes list'!$D$9:$E$58,2,FALSE)=0,\"\",VLOOKUP(J233,'Footnotes list'!$D$9:$E$58,2,FALSE) ) )","v":""},null,null,null,null,{"$f":"IF(TRIM(O233)=\"\", \"\", IF(VLOOKUP(O233,'Footnotes list'!$D$9:$E$58,2,FALSE)=0,\"\",VLOOKUP(O233,'Footnotes list'!$D$9:$E$58,2,FALSE) ) )","v":""},null,null,null,null,{"$f":"IF(TRIM(T233)=\"\", \"\", IF(VLOOKUP(T233,'Footnotes list'!$D$9:$E$58,2,FALSE)=0,\"\",VLOOKUP(T233,'Footnotes list'!$D$9:$E$58,2,FALSE) ) )","v":""},null,null,null,null,{"$f":"IF(TRIM(Y233)=\"\", \"\", IF(VLOOKUP(Y233,'Footnotes list'!$D$9:$E$58,2,FALSE)=0,\"\",VLOOKUP(Y233,'Footnotes list'!$D$9:$E$58,2,FALSE) ) )","v":""},null,null,null,null,{"$f":"IF(TRIM(AD233)=\"\", \"\", IF(VLOOKUP(AD233,'Footnotes list'!$D$9:$E$58,2,FALSE)=0,\"\",VLOOKUP(AD233,'Footnotes list'!$D$9:$E$58,2,FALSE) ) )","v":""},null,null,null,null,{"$f":"IF(TRIM(AI233)=\"\", \"\", IF(VLOOKUP(AI233,'Footnotes list'!$D$9:$E$58,2,FALSE)=0,\"\",VLOOKUP(AI233,'Footnotes list'!$D$9:$E$58,2,FALSE) ) )","v":""},null,null,null,null,{"$f":"IF(TRIM(AN233)=\"\", \"\", IF(VLOOKUP(AN233,'Footnotes list'!$D$9:$E$58,2,FALSE)=0,\"\",VLOOKUP(AN233,'Footnotes list'!$D$9:$E$58,2,FALSE) ) )","v":""},null,null,null,null,{"$f":"IF(TRIM(AS233)=\"\", \"\", IF(VLOOKUP(AS233,'Footnotes list'!$D$9:$E$58,2,FALSE)=0,\"\",VLOOKUP(AS233,'Footnotes list'!$D$9:$E$58,2,FALSE) ) )","v":""},null,null,null,null,{"$f":"IF(TRIM(AX233)=\"\", \"\", IF(VLOOKUP(AX233,'Footnotes list'!$D$9:$E$58,2,FALSE)=0,\"\",VLOOKUP(AX233,'Footnotes list'!$D$9:$E$58,2,FALSE) ) )","v":""},null,null,null,null,{"$f":"IF(TRIM(BC233)=\"\", \"\", IF(VLOOKUP(BC233,'Footnotes list'!$D$9:$E$58,2,FALSE)=0,\"\",VLOOKUP(BC233,'Footnotes list'!$D$9:$E$58,2,FALSE) ) )","v":""},null,null,null,null,{"$f":"IF(TRIM(BH233)=\"\", \"\", IF(VLOOKUP(BH233,'Footnotes list'!$D$9:$E$58,2,FALSE)=0,\"\",VLOOKUP(BH233,'Footnotes list'!$D$9:$E$58,2,FALSE) ) )","v":""},null,null,null,null,{"$f":"IF(TRIM(BM233)=\"\", \"\", IF(VLOOKUP(BM233,'Footnotes list'!$D$9:$E$58,2,FALSE)=0,\"\",VLOOKUP(BM233,'Footnotes list'!$D$9:$E$58,2,FALSE) ) )","v":""},null,null,null,null,{"$f":"IF(TRIM(BR233)=\"\", \"\", IF(VLOOKUP(BR233,'Footnotes list'!$D$9:$E$58,2,FALSE)=0,\"\",VLOOKUP(BR233,'Footnotes list'!$D$9:$E$58,2,FALSE) ) )","v":""},null,null,null,null,{"$f":"IF(TRIM(BW233)=\"\", \"\", IF(VLOOKUP(BW233,'Footnotes list'!$D$9:$E$58,2,FALSE)=0,\"\",VLOOKUP(BW233,'Footnotes list'!$D$9:$E$58,2,FALSE) ) )","v":""},null,null,null,null,{"$f":"IF(TRIM(CB233)=\"\", \"\", IF(VLOOKUP(CB233,'Footnotes list'!$D$9:$E$58,2,FALSE)=0,\"\",VLOOKUP(CB233,'Footnotes list'!$D$9:$E$58,2,FALSE) ) )","v":""},null,null,null,null,{"$f":"IF(TRIM(CG233)=\"\", \"\", IF(VLOOKUP(CG233,'Footnotes list'!$D$9:$E$58,2,FALSE)=0,\"\",VLOOKUP(CG233,'Footnotes list'!$D$9:$E$58,2,FALSE) ) )","v":""},null,null,null,null,{"$f":"IF(TRIM(CL233)=\"\", \"\", IF(VLOOKUP(CL233,'Footnotes list'!$D$9:$E$58,2,FALSE)=0,\"\",VLOOKUP(CL233,'Footnotes list'!$D$9:$E$58,2,FALSE) ) )","v":""},null,null,null,null,{"$f":"IF(TRIM(CQ233)=\"\", \"\", IF(VLOOKUP(CQ233,'Footnotes list'!$D$9:$E$58,2,FALSE)=0,\"\",VLOOKUP(CQ233,'Footnotes list'!$D$9:$E$58,2,FALSE) ) )","v":""},null,null,null,null,{"$f":"IF(TRIM(CV233)=\"\", \"\", IF(VLOOKUP(CV233,'Footnotes list'!$D$9:$E$58,2,FALSE)=0,\"\",VLOOKUP(CV233,'Footnotes list'!$D$9:$E$58,2,FALSE) ) )","v":""},null,null,null,null,{"$f":"IF(TRIM(DA233)=\"\", \"\", IF(VLOOKUP(DA233,'Footnotes list'!$D$9:$E$58,2,FALSE)=0,\"\",VLOOKUP(DA233,'Footnotes list'!$D$9:$E$58,2,FALSE) ) )","v":""},null,null,null,null,{"$f":"IF(TRIM(DF233)=\"\", \"\", IF(VLOOKUP(DF233,'Footnotes list'!$D$9:$E$58,2,FALSE)=0,\"\",VLOOKUP(DF233,'Footnotes list'!$D$9:$E$58,2,FALSE) ) )","v":""},null,null,null,null,{"$f":"IF(TRIM(DK233)=\"\", \"\", IF(VLOOKUP(DK233,'Footnotes list'!$D$9:$E$58,2,FALSE)=0,\"\",VLOOKUP(DK233,'Footnotes list'!$D$9:$E$58,2,FALSE) ) )","v":""},null,null,null,null,{"$f":"IF(TRIM(DP233)=\"\", \"\", IF(VLOOKUP(DP233,'Footnotes list'!$D$9:$E$58,2,FALSE)=0,\"\",VLOOKUP(DP233,'Footnotes list'!$D$9:$E$58,2,FALSE) ) )","v":""},null,null,null,null,{"$f":"IF(TRIM(DU233)=\"\", \"\", IF(VLOOKUP(DU233,'Footnotes list'!$D$9:$E$58,2,FALSE)=0,\"\",VLOOKUP(DU233,'Footnotes list'!$D$9:$E$58,2,FALSE) ) )","v":""},null,null,null,null,{"$f":"IF(TRIM(DZ233)=\"\", \"\", IF(VLOOKUP(DZ233,'Footnotes list'!$D$9:$E$58,2,FALSE)=0,\"\",VLOOKUP(DZ233,'Footnotes list'!$D$9:$E$58,2,FALSE) ) )","v":""},null,null,null,null,{"$f":"IF(TRIM(EE233)=\"\", \"\", IF(VLOOKUP(EE233,'Footnotes list'!$D$9:$E$58,2,FALSE)=0,\"\",VLOOKUP(EE233,'Footnotes list'!$D$9:$E$58,2,FALSE) ) )","v":""},null,null,null,null,{"$f":"IF(TRIM(EJ233)=\"\", \"\", IF(VLOOKUP(EJ233,'Footnotes list'!$D$9:$E$58,2,FALSE)=0,\"\",VLOOKUP(EJ233,'Footnotes list'!$D$9:$E$58,2,FALSE) ) )","v":""},null,null,null,null,{"$f":"IF(TRIM(EO233)=\"\", \"\", IF(VLOOKUP(EO233,'Footnotes list'!$D$9:$E$58,2,FALSE)=0,\"\",VLOOKUP(EO233,'Footnotes list'!$D$9:$E$58,2,FALSE) ) )","v":""},null,null,null,null,{"$f":"IF(TRIM(ET233)=\"\", \"\", IF(VLOOKUP(ET233,'Footnotes list'!$D$9:$E$58,2,FALSE)=0,\"\",VLOOKUP(ET233,'Footnotes list'!$D$9:$E$58,2,FALSE) ) )","v":""},null,null,null,null,{"$f":"IF(TRIM(EY233)=\"\", \"\", IF(VLOOKUP(EY233,'Footnotes list'!$D$9:$E$58,2,FALSE)=0,\"\",VLOOKUP(EY233,'Footnotes list'!$D$9:$E$58,2,FALSE) ) )","v":""}]
[null,null,"M71","NMKT","non-market activities",null,null,null,null,null,{"$f":"IF(TRIM(J234)=\"\", \"\", IF(VLOOKUP(J234,'Footnotes list'!$D$9:$E$58,2,FALSE)=0,\"\",VLOOKUP(J234,'Footnotes list'!$D$9:$E$58,2,FALSE) ) )","v":""},null,null,null,null,{"$f":"IF(TRIM(O234)=\"\", \"\", IF(VLOOKUP(O234,'Footnotes list'!$D$9:$E$58,2,FALSE)=0,\"\",VLOOKUP(O234,'Footnotes list'!$D$9:$E$58,2,FALSE) ) )","v":""},null,null,null,null,{"$f":"IF(TRIM(T234)=\"\", \"\", IF(VLOOKUP(T234,'Footnotes list'!$D$9:$E$58,2,FALSE)=0,\"\",VLOOKUP(T234,'Footnotes list'!$D$9:$E$58,2,FALSE) ) )","v":""},null,null,null,null,{"$f":"IF(TRIM(Y234)=\"\", \"\", IF(VLOOKUP(Y234,'Footnotes list'!$D$9:$E$58,2,FALSE)=0,\"\",VLOOKUP(Y234,'Footnotes list'!$D$9:$E$58,2,FALSE) ) )","v":""},null,null,null,null,{"$f":"IF(TRIM(AD234)=\"\", \"\", IF(VLOOKUP(AD234,'Footnotes list'!$D$9:$E$58,2,FALSE)=0,\"\",VLOOKUP(AD234,'Footnotes list'!$D$9:$E$58,2,FALSE) ) )","v":""},null,null,null,null,{"$f":"IF(TRIM(AI234)=\"\", \"\", IF(VLOOKUP(AI234,'Footnotes list'!$D$9:$E$58,2,FALSE)=0,\"\",VLOOKUP(AI234,'Footnotes list'!$D$9:$E$58,2,FALSE) ) )","v":""},null,null,null,null,{"$f":"IF(TRIM(AN234)=\"\", \"\", IF(VLOOKUP(AN234,'Footnotes list'!$D$9:$E$58,2,FALSE)=0,\"\",VLOOKUP(AN234,'Footnotes list'!$D$9:$E$58,2,FALSE) ) )","v":""},null,null,null,null,{"$f":"IF(TRIM(AS234)=\"\", \"\", IF(VLOOKUP(AS234,'Footnotes list'!$D$9:$E$58,2,FALSE)=0,\"\",VLOOKUP(AS234,'Footnotes list'!$D$9:$E$58,2,FALSE) ) )","v":""},null,null,null,null,{"$f":"IF(TRIM(AX234)=\"\", \"\", IF(VLOOKUP(AX234,'Footnotes list'!$D$9:$E$58,2,FALSE)=0,\"\",VLOOKUP(AX234,'Footnotes list'!$D$9:$E$58,2,FALSE) ) )","v":""},null,null,null,null,{"$f":"IF(TRIM(BC234)=\"\", \"\", IF(VLOOKUP(BC234,'Footnotes list'!$D$9:$E$58,2,FALSE)=0,\"\",VLOOKUP(BC234,'Footnotes list'!$D$9:$E$58,2,FALSE) ) )","v":""},null,null,null,null,{"$f":"IF(TRIM(BH234)=\"\", \"\", IF(VLOOKUP(BH234,'Footnotes list'!$D$9:$E$58,2,FALSE)=0,\"\",VLOOKUP(BH234,'Footnotes list'!$D$9:$E$58,2,FALSE) ) )","v":""},null,null,null,null,{"$f":"IF(TRIM(BM234)=\"\", \"\", IF(VLOOKUP(BM234,'Footnotes list'!$D$9:$E$58,2,FALSE)=0,\"\",VLOOKUP(BM234,'Footnotes list'!$D$9:$E$58,2,FALSE) ) )","v":""},null,null,null,null,{"$f":"IF(TRIM(BR234)=\"\", \"\", IF(VLOOKUP(BR234,'Footnotes list'!$D$9:$E$58,2,FALSE)=0,\"\",VLOOKUP(BR234,'Footnotes list'!$D$9:$E$58,2,FALSE) ) )","v":""},null,null,null,null,{"$f":"IF(TRIM(BW234)=\"\", \"\", IF(VLOOKUP(BW234,'Footnotes list'!$D$9:$E$58,2,FALSE)=0,\"\",VLOOKUP(BW234,'Footnotes list'!$D$9:$E$58,2,FALSE) ) )","v":""},null,null,null,null,{"$f":"IF(TRIM(CB234)=\"\", \"\", IF(VLOOKUP(CB234,'Footnotes list'!$D$9:$E$58,2,FALSE)=0,\"\",VLOOKUP(CB234,'Footnotes list'!$D$9:$E$58,2,FALSE) ) )","v":""},null,null,null,null,{"$f":"IF(TRIM(CG234)=\"\", \"\", IF(VLOOKUP(CG234,'Footnotes list'!$D$9:$E$58,2,FALSE)=0,\"\",VLOOKUP(CG234,'Footnotes list'!$D$9:$E$58,2,FALSE) ) )","v":""},null,null,null,null,{"$f":"IF(TRIM(CL234)=\"\", \"\", IF(VLOOKUP(CL234,'Footnotes list'!$D$9:$E$58,2,FALSE)=0,\"\",VLOOKUP(CL234,'Footnotes list'!$D$9:$E$58,2,FALSE) ) )","v":""},null,null,null,null,{"$f":"IF(TRIM(CQ234)=\"\", \"\", IF(VLOOKUP(CQ234,'Footnotes list'!$D$9:$E$58,2,FALSE)=0,\"\",VLOOKUP(CQ234,'Footnotes list'!$D$9:$E$58,2,FALSE) ) )","v":""},null,null,null,null,{"$f":"IF(TRIM(CV234)=\"\", \"\", IF(VLOOKUP(CV234,'Footnotes list'!$D$9:$E$58,2,FALSE)=0,\"\",VLOOKUP(CV234,'Footnotes list'!$D$9:$E$58,2,FALSE) ) )","v":""},null,null,null,null,{"$f":"IF(TRIM(DA234)=\"\", \"\", IF(VLOOKUP(DA234,'Footnotes list'!$D$9:$E$58,2,FALSE)=0,\"\",VLOOKUP(DA234,'Footnotes list'!$D$9:$E$58,2,FALSE) ) )","v":""},null,null,null,null,{"$f":"IF(TRIM(DF234)=\"\", \"\", IF(VLOOKUP(DF234,'Footnotes list'!$D$9:$E$58,2,FALSE)=0,\"\",VLOOKUP(DF234,'Footnotes list'!$D$9:$E$58,2,FALSE) ) )","v":""},null,null,null,null,{"$f":"IF(TRIM(DK234)=\"\", \"\", IF(VLOOKUP(DK234,'Footnotes list'!$D$9:$E$58,2,FALSE)=0,\"\",VLOOKUP(DK234,'Footnotes list'!$D$9:$E$58,2,FALSE) ) )","v":""},null,null,null,null,{"$f":"IF(TRIM(DP234)=\"\", \"\", IF(VLOOKUP(DP234,'Footnotes list'!$D$9:$E$58,2,FALSE)=0,\"\",VLOOKUP(DP234,'Footnotes list'!$D$9:$E$58,2,FALSE) ) )","v":""},null,null,null,null,{"$f":"IF(TRIM(DU234)=\"\", \"\", IF(VLOOKUP(DU234,'Footnotes list'!$D$9:$E$58,2,FALSE)=0,\"\",VLOOKUP(DU234,'Footnotes list'!$D$9:$E$58,2,FALSE) ) )","v":""},null,null,null,null,{"$f":"IF(TRIM(DZ234)=\"\", \"\", IF(VLOOKUP(DZ234,'Footnotes list'!$D$9:$E$58,2,FALSE)=0,\"\",VLOOKUP(DZ234,'Footnotes list'!$D$9:$E$58,2,FALSE) ) )","v":""},null,null,null,null,{"$f":"IF(TRIM(EE234)=\"\", \"\", IF(VLOOKUP(EE234,'Footnotes list'!$D$9:$E$58,2,FALSE)=0,\"\",VLOOKUP(EE234,'Footnotes list'!$D$9:$E$58,2,FALSE) ) )","v":""},null,null,null,null,{"$f":"IF(TRIM(EJ234)=\"\", \"\", IF(VLOOKUP(EJ234,'Footnotes list'!$D$9:$E$58,2,FALSE)=0,\"\",VLOOKUP(EJ234,'Footnotes list'!$D$9:$E$58,2,FALSE) ) )","v":""},null,null,null,null,{"$f":"IF(TRIM(EO234)=\"\", \"\", IF(VLOOKUP(EO234,'Footnotes list'!$D$9:$E$58,2,FALSE)=0,\"\",VLOOKUP(EO234,'Footnotes list'!$D$9:$E$58,2,FALSE) ) )","v":""},null,null,null,null,{"$f":"IF(TRIM(ET234)=\"\", \"\", IF(VLOOKUP(ET234,'Footnotes list'!$D$9:$E$58,2,FALSE)=0,\"\",VLOOKUP(ET234,'Footnotes list'!$D$9:$E$58,2,FALSE) ) )","v":""},null,null,null,null,{"$f":"IF(TRIM(EY234)=\"\", \"\", IF(VLOOKUP(EY234,'Footnotes list'!$D$9:$E$58,2,FALSE)=0,\"\",VLOOKUP(EY234,'Footnotes list'!$D$9:$E$58,2,FALSE) ) )","v":""}]
[null,null,"M71","OWN_USE","activities for own final use",null,null,null,null,null,{"$f":"IF(TRIM(J235)=\"\", \"\", IF(VLOOKUP(J235,'Footnotes list'!$D$9:$E$58,2,FALSE)=0,\"\",VLOOKUP(J235,'Footnotes list'!$D$9:$E$58,2,FALSE) ) )","v":""},null,null,null,null,{"$f":"IF(TRIM(O235)=\"\", \"\", IF(VLOOKUP(O235,'Footnotes list'!$D$9:$E$58,2,FALSE)=0,\"\",VLOOKUP(O235,'Footnotes list'!$D$9:$E$58,2,FALSE) ) )","v":""},null,null,null,null,{"$f":"IF(TRIM(T235)=\"\", \"\", IF(VLOOKUP(T235,'Footnotes list'!$D$9:$E$58,2,FALSE)=0,\"\",VLOOKUP(T235,'Footnotes list'!$D$9:$E$58,2,FALSE) ) )","v":""},null,null,null,null,{"$f":"IF(TRIM(Y235)=\"\", \"\", IF(VLOOKUP(Y235,'Footnotes list'!$D$9:$E$58,2,FALSE)=0,\"\",VLOOKUP(Y235,'Footnotes list'!$D$9:$E$58,2,FALSE) ) )","v":""},null,null,null,null,{"$f":"IF(TRIM(AD235)=\"\", \"\", IF(VLOOKUP(AD235,'Footnotes list'!$D$9:$E$58,2,FALSE)=0,\"\",VLOOKUP(AD235,'Footnotes list'!$D$9:$E$58,2,FALSE) ) )","v":""},null,null,null,null,{"$f":"IF(TRIM(AI235)=\"\", \"\", IF(VLOOKUP(AI235,'Footnotes list'!$D$9:$E$58,2,FALSE)=0,\"\",VLOOKUP(AI235,'Footnotes list'!$D$9:$E$58,2,FALSE) ) )","v":""},null,null,null,null,{"$f":"IF(TRIM(AN235)=\"\", \"\", IF(VLOOKUP(AN235,'Footnotes list'!$D$9:$E$58,2,FALSE)=0,\"\",VLOOKUP(AN235,'Footnotes list'!$D$9:$E$58,2,FALSE) ) )","v":""},null,null,null,null,{"$f":"IF(TRIM(AS235)=\"\", \"\", IF(VLOOKUP(AS235,'Footnotes list'!$D$9:$E$58,2,FALSE)=0,\"\",VLOOKUP(AS235,'Footnotes list'!$D$9:$E$58,2,FALSE) ) )","v":""},null,null,null,null,{"$f":"IF(TRIM(AX235)=\"\", \"\", IF(VLOOKUP(AX235,'Footnotes list'!$D$9:$E$58,2,FALSE)=0,\"\",VLOOKUP(AX235,'Footnotes list'!$D$9:$E$58,2,FALSE) ) )","v":""},null,null,null,null,{"$f":"IF(TRIM(BC235)=\"\", \"\", IF(VLOOKUP(BC235,'Footnotes list'!$D$9:$E$58,2,FALSE)=0,\"\",VLOOKUP(BC235,'Footnotes list'!$D$9:$E$58,2,FALSE) ) )","v":""},null,null,null,null,{"$f":"IF(TRIM(BH235)=\"\", \"\", IF(VLOOKUP(BH235,'Footnotes list'!$D$9:$E$58,2,FALSE)=0,\"\",VLOOKUP(BH235,'Footnotes list'!$D$9:$E$58,2,FALSE) ) )","v":""},null,null,null,null,{"$f":"IF(TRIM(BM235)=\"\", \"\", IF(VLOOKUP(BM235,'Footnotes list'!$D$9:$E$58,2,FALSE)=0,\"\",VLOOKUP(BM235,'Footnotes list'!$D$9:$E$58,2,FALSE) ) )","v":""},null,null,null,null,{"$f":"IF(TRIM(BR235)=\"\", \"\", IF(VLOOKUP(BR235,'Footnotes list'!$D$9:$E$58,2,FALSE)=0,\"\",VLOOKUP(BR235,'Footnotes list'!$D$9:$E$58,2,FALSE) ) )","v":""},null,null,null,null,{"$f":"IF(TRIM(BW235)=\"\", \"\", IF(VLOOKUP(BW235,'Footnotes list'!$D$9:$E$58,2,FALSE)=0,\"\",VLOOKUP(BW235,'Footnotes list'!$D$9:$E$58,2,FALSE) ) )","v":""},null,null,null,null,{"$f":"IF(TRIM(CB235)=\"\", \"\", IF(VLOOKUP(CB235,'Footnotes list'!$D$9:$E$58,2,FALSE)=0,\"\",VLOOKUP(CB235,'Footnotes list'!$D$9:$E$58,2,FALSE) ) )","v":""},null,null,null,null,{"$f":"IF(TRIM(CG235)=\"\", \"\", IF(VLOOKUP(CG235,'Footnotes list'!$D$9:$E$58,2,FALSE)=0,\"\",VLOOKUP(CG235,'Footnotes list'!$D$9:$E$58,2,FALSE) ) )","v":""},null,null,null,null,{"$f":"IF(TRIM(CL235)=\"\", \"\", IF(VLOOKUP(CL235,'Footnotes list'!$D$9:$E$58,2,FALSE)=0,\"\",VLOOKUP(CL235,'Footnotes list'!$D$9:$E$58,2,FALSE) ) )","v":""},null,null,null,null,{"$f":"IF(TRIM(CQ235)=\"\", \"\", IF(VLOOKUP(CQ235,'Footnotes list'!$D$9:$E$58,2,FALSE)=0,\"\",VLOOKUP(CQ235,'Footnotes list'!$D$9:$E$58,2,FALSE) ) )","v":""},null,null,null,null,{"$f":"IF(TRIM(CV235)=\"\", \"\", IF(VLOOKUP(CV235,'Footnotes list'!$D$9:$E$58,2,FALSE)=0,\"\",VLOOKUP(CV235,'Footnotes list'!$D$9:$E$58,2,FALSE) ) )","v":""},null,null,null,null,{"$f":"IF(TRIM(DA235)=\"\", \"\", IF(VLOOKUP(DA235,'Footnotes list'!$D$9:$E$58,2,FALSE)=0,\"\",VLOOKUP(DA235,'Footnotes list'!$D$9:$E$58,2,FALSE) ) )","v":""},null,null,null,null,{"$f":"IF(TRIM(DF235)=\"\", \"\", IF(VLOOKUP(DF235,'Footnotes list'!$D$9:$E$58,2,FALSE)=0,\"\",VLOOKUP(DF235,'Footnotes list'!$D$9:$E$58,2,FALSE) ) )","v":""},null,null,null,null,{"$f":"IF(TRIM(DK235)=\"\", \"\", IF(VLOOKUP(DK235,'Footnotes list'!$D$9:$E$58,2,FALSE)=0,\"\",VLOOKUP(DK235,'Footnotes list'!$D$9:$E$58,2,FALSE) ) )","v":""},null,null,null,null,{"$f":"IF(TRIM(DP235)=\"\", \"\", IF(VLOOKUP(DP235,'Footnotes list'!$D$9:$E$58,2,FALSE)=0,\"\",VLOOKUP(DP235,'Footnotes list'!$D$9:$E$58,2,FALSE) ) )","v":""},null,null,null,null,{"$f":"IF(TRIM(DU235)=\"\", \"\", IF(VLOOKUP(DU235,'Footnotes list'!$D$9:$E$58,2,FALSE)=0,\"\",VLOOKUP(DU235,'Footnotes list'!$D$9:$E$58,2,FALSE) ) )","v":""},null,null,null,null,{"$f":"IF(TRIM(DZ235)=\"\", \"\", IF(VLOOKUP(DZ235,'Footnotes list'!$D$9:$E$58,2,FALSE)=0,\"\",VLOOKUP(DZ235,'Footnotes list'!$D$9:$E$58,2,FALSE) ) )","v":""},null,null,null,null,{"$f":"IF(TRIM(EE235)=\"\", \"\", IF(VLOOKUP(EE235,'Footnotes list'!$D$9:$E$58,2,FALSE)=0,\"\",VLOOKUP(EE235,'Footnotes list'!$D$9:$E$58,2,FALSE) ) )","v":""},null,null,null,null,{"$f":"IF(TRIM(EJ235)=\"\", \"\", IF(VLOOKUP(EJ235,'Footnotes list'!$D$9:$E$58,2,FALSE)=0,\"\",VLOOKUP(EJ235,'Footnotes list'!$D$9:$E$58,2,FALSE) ) )","v":""},null,null,null,null,{"$f":"IF(TRIM(EO235)=\"\", \"\", IF(VLOOKUP(EO235,'Footnotes list'!$D$9:$E$58,2,FALSE)=0,\"\",VLOOKUP(EO235,'Footnotes list'!$D$9:$E$58,2,FALSE) ) )","v":""},null,null,null,null,{"$f":"IF(TRIM(ET235)=\"\", \"\", IF(VLOOKUP(ET235,'Footnotes list'!$D$9:$E$58,2,FALSE)=0,\"\",VLOOKUP(ET235,'Footnotes list'!$D$9:$E$58,2,FALSE) ) )","v":""},null,null,null,null,{"$f":"IF(TRIM(EY235)=\"\", \"\", IF(VLOOKUP(EY235,'Footnotes list'!$D$9:$E$58,2,FALSE)=0,\"\",VLOOKUP(EY235,'Footnotes list'!$D$9:$E$58,2,FALSE) ) )","v":""}]
[null,null,"M71","MKT","market activities, including:",null,null,null,null,null,{"$f":"IF(TRIM(J236)=\"\", \"\", IF(VLOOKUP(J236,'Footnotes list'!$D$9:$E$58,2,FALSE)=0,\"\",VLOOKUP(J236,'Footnotes list'!$D$9:$E$58,2,FALSE) ) )","v":""},null,null,null,null,{"$f":"IF(TRIM(O236)=\"\", \"\", IF(VLOOKUP(O236,'Footnotes list'!$D$9:$E$58,2,FALSE)=0,\"\",VLOOKUP(O236,'Footnotes list'!$D$9:$E$58,2,FALSE) ) )","v":""},null,null,null,null,{"$f":"IF(TRIM(T236)=\"\", \"\", IF(VLOOKUP(T236,'Footnotes list'!$D$9:$E$58,2,FALSE)=0,\"\",VLOOKUP(T236,'Footnotes list'!$D$9:$E$58,2,FALSE) ) )","v":""},null,null,null,null,{"$f":"IF(TRIM(Y236)=\"\", \"\", IF(VLOOKUP(Y236,'Footnotes list'!$D$9:$E$58,2,FALSE)=0,\"\",VLOOKUP(Y236,'Footnotes list'!$D$9:$E$58,2,FALSE) ) )","v":""},null,null,null,null,{"$f":"IF(TRIM(AD236)=\"\", \"\", IF(VLOOKUP(AD236,'Footnotes list'!$D$9:$E$58,2,FALSE)=0,\"\",VLOOKUP(AD236,'Footnotes list'!$D$9:$E$58,2,FALSE) ) )","v":""},null,null,null,null,{"$f":"IF(TRIM(AI236)=\"\", \"\", IF(VLOOKUP(AI236,'Footnotes list'!$D$9:$E$58,2,FALSE)=0,\"\",VLOOKUP(AI236,'Footnotes list'!$D$9:$E$58,2,FALSE) ) )","v":""},null,null,null,null,{"$f":"IF(TRIM(AN236)=\"\", \"\", IF(VLOOKUP(AN236,'Footnotes list'!$D$9:$E$58,2,FALSE)=0,\"\",VLOOKUP(AN236,'Footnotes list'!$D$9:$E$58,2,FALSE) ) )","v":""},null,null,null,null,{"$f":"IF(TRIM(AS236)=\"\", \"\", IF(VLOOKUP(AS236,'Footnotes list'!$D$9:$E$58,2,FALSE)=0,\"\",VLOOKUP(AS236,'Footnotes list'!$D$9:$E$58,2,FALSE) ) )","v":""},null,null,null,null,{"$f":"IF(TRIM(AX236)=\"\", \"\", IF(VLOOKUP(AX236,'Footnotes list'!$D$9:$E$58,2,FALSE)=0,\"\",VLOOKUP(AX236,'Footnotes list'!$D$9:$E$58,2,FALSE) ) )","v":""},null,null,null,null,{"$f":"IF(TRIM(BC236)=\"\", \"\", IF(VLOOKUP(BC236,'Footnotes list'!$D$9:$E$58,2,FALSE)=0,\"\",VLOOKUP(BC236,'Footnotes list'!$D$9:$E$58,2,FALSE) ) )","v":""},null,null,null,null,{"$f":"IF(TRIM(BH236)=\"\", \"\", IF(VLOOKUP(BH236,'Footnotes list'!$D$9:$E$58,2,FALSE)=0,\"\",VLOOKUP(BH236,'Footnotes list'!$D$9:$E$58,2,FALSE) ) )","v":""},null,null,null,null,{"$f":"IF(TRIM(BM236)=\"\", \"\", IF(VLOOKUP(BM236,'Footnotes list'!$D$9:$E$58,2,FALSE)=0,\"\",VLOOKUP(BM236,'Footnotes list'!$D$9:$E$58,2,FALSE) ) )","v":""},null,null,null,null,{"$f":"IF(TRIM(BR236)=\"\", \"\", IF(VLOOKUP(BR236,'Footnotes list'!$D$9:$E$58,2,FALSE)=0,\"\",VLOOKUP(BR236,'Footnotes list'!$D$9:$E$58,2,FALSE) ) )","v":""},null,null,null,null,{"$f":"IF(TRIM(BW236)=\"\", \"\", IF(VLOOKUP(BW236,'Footnotes list'!$D$9:$E$58,2,FALSE)=0,\"\",VLOOKUP(BW236,'Footnotes list'!$D$9:$E$58,2,FALSE) ) )","v":""},null,null,null,null,{"$f":"IF(TRIM(CB236)=\"\", \"\", IF(VLOOKUP(CB236,'Footnotes list'!$D$9:$E$58,2,FALSE)=0,\"\",VLOOKUP(CB236,'Footnotes list'!$D$9:$E$58,2,FALSE) ) )","v":""},null,null,null,null,{"$f":"IF(TRIM(CG236)=\"\", \"\", IF(VLOOKUP(CG236,'Footnotes list'!$D$9:$E$58,2,FALSE)=0,\"\",VLOOKUP(CG236,'Footnotes list'!$D$9:$E$58,2,FALSE) ) )","v":""},null,null,null,null,{"$f":"IF(TRIM(CL236)=\"\", \"\", IF(VLOOKUP(CL236,'Footnotes list'!$D$9:$E$58,2,FALSE)=0,\"\",VLOOKUP(CL236,'Footnotes list'!$D$9:$E$58,2,FALSE) ) )","v":""},null,null,null,null,{"$f":"IF(TRIM(CQ236)=\"\", \"\", IF(VLOOKUP(CQ236,'Footnotes list'!$D$9:$E$58,2,FALSE)=0,\"\",VLOOKUP(CQ236,'Footnotes list'!$D$9:$E$58,2,FALSE) ) )","v":""},null,null,null,null,{"$f":"IF(TRIM(CV236)=\"\", \"\", IF(VLOOKUP(CV236,'Footnotes list'!$D$9:$E$58,2,FALSE)=0,\"\",VLOOKUP(CV236,'Footnotes list'!$D$9:$E$58,2,FALSE) ) )","v":""},null,null,null,null,{"$f":"IF(TRIM(DA236)=\"\", \"\", IF(VLOOKUP(DA236,'Footnotes list'!$D$9:$E$58,2,FALSE)=0,\"\",VLOOKUP(DA236,'Footnotes list'!$D$9:$E$58,2,FALSE) ) )","v":""},null,null,null,null,{"$f":"IF(TRIM(DF236)=\"\", \"\", IF(VLOOKUP(DF236,'Footnotes list'!$D$9:$E$58,2,FALSE)=0,\"\",VLOOKUP(DF236,'Footnotes list'!$D$9:$E$58,2,FALSE) ) )","v":""},null,null,null,null,{"$f":"IF(TRIM(DK236)=\"\", \"\", IF(VLOOKUP(DK236,'Footnotes list'!$D$9:$E$58,2,FALSE)=0,\"\",VLOOKUP(DK236,'Footnotes list'!$D$9:$E$58,2,FALSE) ) )","v":""},null,null,null,null,{"$f":"IF(TRIM(DP236)=\"\", \"\", IF(VLOOKUP(DP236,'Footnotes list'!$D$9:$E$58,2,FALSE)=0,\"\",VLOOKUP(DP236,'Footnotes list'!$D$9:$E$58,2,FALSE) ) )","v":""},null,null,null,null,{"$f":"IF(TRIM(DU236)=\"\", \"\", IF(VLOOKUP(DU236,'Footnotes list'!$D$9:$E$58,2,FALSE)=0,\"\",VLOOKUP(DU236,'Footnotes list'!$D$9:$E$58,2,FALSE) ) )","v":""},null,null,null,null,{"$f":"IF(TRIM(DZ236)=\"\", \"\", IF(VLOOKUP(DZ236,'Footnotes list'!$D$9:$E$58,2,FALSE)=0,\"\",VLOOKUP(DZ236,'Footnotes list'!$D$9:$E$58,2,FALSE) ) )","v":""},null,null,null,null,{"$f":"IF(TRIM(EE236)=\"\", \"\", IF(VLOOKUP(EE236,'Footnotes list'!$D$9:$E$58,2,FALSE)=0,\"\",VLOOKUP(EE236,'Footnotes list'!$D$9:$E$58,2,FALSE) ) )","v":""},null,null,null,null,{"$f":"IF(TRIM(EJ236)=\"\", \"\", IF(VLOOKUP(EJ236,'Footnotes list'!$D$9:$E$58,2,FALSE)=0,\"\",VLOOKUP(EJ236,'Footnotes list'!$D$9:$E$58,2,FALSE) ) )","v":""},null,null,null,null,{"$f":"IF(TRIM(EO236)=\"\", \"\", IF(VLOOKUP(EO236,'Footnotes list'!$D$9:$E$58,2,FALSE)=0,\"\",VLOOKUP(EO236,'Footnotes list'!$D$9:$E$58,2,FALSE) ) )","v":""},null,null,null,null,{"$f":"IF(TRIM(ET236)=\"\", \"\", IF(VLOOKUP(ET236,'Footnotes list'!$D$9:$E$58,2,FALSE)=0,\"\",VLOOKUP(ET236,'Footnotes list'!$D$9:$E$58,2,FALSE) ) )","v":""},null,null,null,null,{"$f":"IF(TRIM(EY236)=\"\", \"\", IF(VLOOKUP(EY236,'Footnotes list'!$D$9:$E$58,2,FALSE)=0,\"\",VLOOKUP(EY236,'Footnotes list'!$D$9:$E$58,2,FALSE) ) )","v":""}]
[null,null,"M71","ES_CS","environmental specific services",null,null,null,null,null,{"$f":"IF(TRIM(J237)=\"\", \"\", IF(VLOOKUP(J237,'Footnotes list'!$D$9:$E$58,2,FALSE)=0,\"\",VLOOKUP(J237,'Footnotes list'!$D$9:$E$58,2,FALSE) ) )","v":""},null,null,null,null,{"$f":"IF(TRIM(O237)=\"\", \"\", IF(VLOOKUP(O237,'Footnotes list'!$D$9:$E$58,2,FALSE)=0,\"\",VLOOKUP(O237,'Footnotes list'!$D$9:$E$58,2,FALSE) ) )","v":""},null,null,null,null,{"$f":"IF(TRIM(T237)=\"\", \"\", IF(VLOOKUP(T237,'Footnotes list'!$D$9:$E$58,2,FALSE)=0,\"\",VLOOKUP(T237,'Footnotes list'!$D$9:$E$58,2,FALSE) ) )","v":""},null,null,null,null,{"$f":"IF(TRIM(Y237)=\"\", \"\", IF(VLOOKUP(Y237,'Footnotes list'!$D$9:$E$58,2,FALSE)=0,\"\",VLOOKUP(Y237,'Footnotes list'!$D$9:$E$58,2,FALSE) ) )","v":""},null,null,null,null,{"$f":"IF(TRIM(AD237)=\"\", \"\", IF(VLOOKUP(AD237,'Footnotes list'!$D$9:$E$58,2,FALSE)=0,\"\",VLOOKUP(AD237,'Footnotes list'!$D$9:$E$58,2,FALSE) ) )","v":""},null,null,null,null,{"$f":"IF(TRIM(AI237)=\"\", \"\", IF(VLOOKUP(AI237,'Footnotes list'!$D$9:$E$58,2,FALSE)=0,\"\",VLOOKUP(AI237,'Footnotes list'!$D$9:$E$58,2,FALSE) ) )","v":""},null,null,null,null,{"$f":"IF(TRIM(AN237)=\"\", \"\", IF(VLOOKUP(AN237,'Footnotes list'!$D$9:$E$58,2,FALSE)=0,\"\",VLOOKUP(AN237,'Footnotes list'!$D$9:$E$58,2,FALSE) ) )","v":""},null,null,null,null,{"$f":"IF(TRIM(AS237)=\"\", \"\", IF(VLOOKUP(AS237,'Footnotes list'!$D$9:$E$58,2,FALSE)=0,\"\",VLOOKUP(AS237,'Footnotes list'!$D$9:$E$58,2,FALSE) ) )","v":""},null,null,null,null,{"$f":"IF(TRIM(AX237)=\"\", \"\", IF(VLOOKUP(AX237,'Footnotes list'!$D$9:$E$58,2,FALSE)=0,\"\",VLOOKUP(AX237,'Footnotes list'!$D$9:$E$58,2,FALSE) ) )","v":""},null,null,null,null,{"$f":"IF(TRIM(BC237)=\"\", \"\", IF(VLOOKUP(BC237,'Footnotes list'!$D$9:$E$58,2,FALSE)=0,\"\",VLOOKUP(BC237,'Footnotes list'!$D$9:$E$58,2,FALSE) ) )","v":""},null,null,null,null,{"$f":"IF(TRIM(BH237)=\"\", \"\", IF(VLOOKUP(BH237,'Footnotes list'!$D$9:$E$58,2,FALSE)=0,\"\",VLOOKUP(BH237,'Footnotes list'!$D$9:$E$58,2,FALSE) ) )","v":""},null,null,null,null,{"$f":"IF(TRIM(BM237)=\"\", \"\", IF(VLOOKUP(BM237,'Footnotes list'!$D$9:$E$58,2,FALSE)=0,\"\",VLOOKUP(BM237,'Footnotes list'!$D$9:$E$58,2,FALSE) ) )","v":""},null,null,null,null,{"$f":"IF(TRIM(BR237)=\"\", \"\", IF(VLOOKUP(BR237,'Footnotes list'!$D$9:$E$58,2,FALSE)=0,\"\",VLOOKUP(BR237,'Footnotes list'!$D$9:$E$58,2,FALSE) ) )","v":""},null,null,null,null,{"$f":"IF(TRIM(BW237)=\"\", \"\", IF(VLOOKUP(BW237,'Footnotes list'!$D$9:$E$58,2,FALSE)=0,\"\",VLOOKUP(BW237,'Footnotes list'!$D$9:$E$58,2,FALSE) ) )","v":""},null,null,null,null,{"$f":"IF(TRIM(CB237)=\"\", \"\", IF(VLOOKUP(CB237,'Footnotes list'!$D$9:$E$58,2,FALSE)=0,\"\",VLOOKUP(CB237,'Footnotes list'!$D$9:$E$58,2,FALSE) ) )","v":""},null,null,null,null,{"$f":"IF(TRIM(CG237)=\"\", \"\", IF(VLOOKUP(CG237,'Footnotes list'!$D$9:$E$58,2,FALSE)=0,\"\",VLOOKUP(CG237,'Footnotes list'!$D$9:$E$58,2,FALSE) ) )","v":""},null,null,null,null,{"$f":"IF(TRIM(CL237)=\"\", \"\", IF(VLOOKUP(CL237,'Footnotes list'!$D$9:$E$58,2,FALSE)=0,\"\",VLOOKUP(CL237,'Footnotes list'!$D$9:$E$58,2,FALSE) ) )","v":""},null,null,null,null,{"$f":"IF(TRIM(CQ237)=\"\", \"\", IF(VLOOKUP(CQ237,'Footnotes list'!$D$9:$E$58,2,FALSE)=0,\"\",VLOOKUP(CQ237,'Footnotes list'!$D$9:$E$58,2,FALSE) ) )","v":""},null,null,null,null,{"$f":"IF(TRIM(CV237)=\"\", \"\", IF(VLOOKUP(CV237,'Footnotes list'!$D$9:$E$58,2,FALSE)=0,\"\",VLOOKUP(CV237,'Footnotes list'!$D$9:$E$58,2,FALSE) ) )","v":""},null,null,null,null,{"$f":"IF(TRIM(DA237)=\"\", \"\", IF(VLOOKUP(DA237,'Footnotes list'!$D$9:$E$58,2,FALSE)=0,\"\",VLOOKUP(DA237,'Footnotes list'!$D$9:$E$58,2,FALSE) ) )","v":""},null,null,null,null,{"$f":"IF(TRIM(DF237)=\"\", \"\", IF(VLOOKUP(DF237,'Footnotes list'!$D$9:$E$58,2,FALSE)=0,\"\",VLOOKUP(DF237,'Footnotes list'!$D$9:$E$58,2,FALSE) ) )","v":""},null,null,null,null,{"$f":"IF(TRIM(DK237)=\"\", \"\", IF(VLOOKUP(DK237,'Footnotes list'!$D$9:$E$58,2,FALSE)=0,\"\",VLOOKUP(DK237,'Footnotes list'!$D$9:$E$58,2,FALSE) ) )","v":""},null,null,null,null,{"$f":"IF(TRIM(DP237)=\"\", \"\", IF(VLOOKUP(DP237,'Footnotes list'!$D$9:$E$58,2,FALSE)=0,\"\",VLOOKUP(DP237,'Footnotes list'!$D$9:$E$58,2,FALSE) ) )","v":""},null,null,null,null,{"$f":"IF(TRIM(DU237)=\"\", \"\", IF(VLOOKUP(DU237,'Footnotes list'!$D$9:$E$58,2,FALSE)=0,\"\",VLOOKUP(DU237,'Footnotes list'!$D$9:$E$58,2,FALSE) ) )","v":""},null,null,null,null,{"$f":"IF(TRIM(DZ237)=\"\", \"\", IF(VLOOKUP(DZ237,'Footnotes list'!$D$9:$E$58,2,FALSE)=0,\"\",VLOOKUP(DZ237,'Footnotes list'!$D$9:$E$58,2,FALSE) ) )","v":""},null,null,null,null,{"$f":"IF(TRIM(EE237)=\"\", \"\", IF(VLOOKUP(EE237,'Footnotes list'!$D$9:$E$58,2,FALSE)=0,\"\",VLOOKUP(EE237,'Footnotes list'!$D$9:$E$58,2,FALSE) ) )","v":""},null,null,null,null,{"$f":"IF(TRIM(EJ237)=\"\", \"\", IF(VLOOKUP(EJ237,'Footnotes list'!$D$9:$E$58,2,FALSE)=0,\"\",VLOOKUP(EJ237,'Footnotes list'!$D$9:$E$58,2,FALSE) ) )","v":""},null,null,null,null,{"$f":"IF(TRIM(EO237)=\"\", \"\", IF(VLOOKUP(EO237,'Footnotes list'!$D$9:$E$58,2,FALSE)=0,\"\",VLOOKUP(EO237,'Footnotes list'!$D$9:$E$58,2,FALSE) ) )","v":""},null,null,null,null,{"$f":"IF(TRIM(ET237)=\"\", \"\", IF(VLOOKUP(ET237,'Footnotes list'!$D$9:$E$58,2,FALSE)=0,\"\",VLOOKUP(ET237,'Footnotes list'!$D$9:$E$58,2,FALSE) ) )","v":""},null,null,null,null,{"$f":"IF(TRIM(EY237)=\"\", \"\", IF(VLOOKUP(EY237,'Footnotes list'!$D$9:$E$58,2,FALSE)=0,\"\",VLOOKUP(EY237,'Footnotes list'!$D$9:$E$58,2,FALSE) ) )","v":""}]
[null,null,"M71","C_REP","cleaner and resource efficient products",null,null,null,null,null,{"$f":"IF(TRIM(J238)=\"\", \"\", IF(VLOOKUP(J238,'Footnotes list'!$D$9:$E$58,2,FALSE)=0,\"\",VLOOKUP(J238,'Footnotes list'!$D$9:$E$58,2,FALSE) ) )","v":""},null,null,null,null,{"$f":"IF(TRIM(O238)=\"\", \"\", IF(VLOOKUP(O238,'Footnotes list'!$D$9:$E$58,2,FALSE)=0,\"\",VLOOKUP(O238,'Footnotes list'!$D$9:$E$58,2,FALSE) ) )","v":""},null,null,null,null,{"$f":"IF(TRIM(T238)=\"\", \"\", IF(VLOOKUP(T238,'Footnotes list'!$D$9:$E$58,2,FALSE)=0,\"\",VLOOKUP(T238,'Footnotes list'!$D$9:$E$58,2,FALSE) ) )","v":""},null,null,null,null,{"$f":"IF(TRIM(Y238)=\"\", \"\", IF(VLOOKUP(Y238,'Footnotes list'!$D$9:$E$58,2,FALSE)=0,\"\",VLOOKUP(Y238,'Footnotes list'!$D$9:$E$58,2,FALSE) ) )","v":""},null,null,null,null,{"$f":"IF(TRIM(AD238)=\"\", \"\", IF(VLOOKUP(AD238,'Footnotes list'!$D$9:$E$58,2,FALSE)=0,\"\",VLOOKUP(AD238,'Footnotes list'!$D$9:$E$58,2,FALSE) ) )","v":""},null,null,null,null,{"$f":"IF(TRIM(AI238)=\"\", \"\", IF(VLOOKUP(AI238,'Footnotes list'!$D$9:$E$58,2,FALSE)=0,\"\",VLOOKUP(AI238,'Footnotes list'!$D$9:$E$58,2,FALSE) ) )","v":""},null,null,null,null,{"$f":"IF(TRIM(AN238)=\"\", \"\", IF(VLOOKUP(AN238,'Footnotes list'!$D$9:$E$58,2,FALSE)=0,\"\",VLOOKUP(AN238,'Footnotes list'!$D$9:$E$58,2,FALSE) ) )","v":""},null,null,null,null,{"$f":"IF(TRIM(AS238)=\"\", \"\", IF(VLOOKUP(AS238,'Footnotes list'!$D$9:$E$58,2,FALSE)=0,\"\",VLOOKUP(AS238,'Footnotes list'!$D$9:$E$58,2,FALSE) ) )","v":""},null,null,null,null,{"$f":"IF(TRIM(AX238)=\"\", \"\", IF(VLOOKUP(AX238,'Footnotes list'!$D$9:$E$58,2,FALSE)=0,\"\",VLOOKUP(AX238,'Footnotes list'!$D$9:$E$58,2,FALSE) ) )","v":""},null,null,null,null,{"$f":"IF(TRIM(BC238)=\"\", \"\", IF(VLOOKUP(BC238,'Footnotes list'!$D$9:$E$58,2,FALSE)=0,\"\",VLOOKUP(BC238,'Footnotes list'!$D$9:$E$58,2,FALSE) ) )","v":""},null,null,null,null,{"$f":"IF(TRIM(BH238)=\"\", \"\", IF(VLOOKUP(BH238,'Footnotes list'!$D$9:$E$58,2,FALSE)=0,\"\",VLOOKUP(BH238,'Footnotes list'!$D$9:$E$58,2,FALSE) ) )","v":""},null,null,null,null,{"$f":"IF(TRIM(BM238)=\"\", \"\", IF(VLOOKUP(BM238,'Footnotes list'!$D$9:$E$58,2,FALSE)=0,\"\",VLOOKUP(BM238,'Footnotes list'!$D$9:$E$58,2,FALSE) ) )","v":""},null,null,null,null,{"$f":"IF(TRIM(BR238)=\"\", \"\", IF(VLOOKUP(BR238,'Footnotes list'!$D$9:$E$58,2,FALSE)=0,\"\",VLOOKUP(BR238,'Footnotes list'!$D$9:$E$58,2,FALSE) ) )","v":""},null,null,null,null,{"$f":"IF(TRIM(BW238)=\"\", \"\", IF(VLOOKUP(BW238,'Footnotes list'!$D$9:$E$58,2,FALSE)=0,\"\",VLOOKUP(BW238,'Footnotes list'!$D$9:$E$58,2,FALSE) ) )","v":""},null,null,null,null,{"$f":"IF(TRIM(CB238)=\"\", \"\", IF(VLOOKUP(CB238,'Footnotes list'!$D$9:$E$58,2,FALSE)=0,\"\",VLOOKUP(CB238,'Footnotes list'!$D$9:$E$58,2,FALSE) ) )","v":""},null,null,null,null,{"$f":"IF(TRIM(CG238)=\"\", \"\", IF(VLOOKUP(CG238,'Footnotes list'!$D$9:$E$58,2,FALSE)=0,\"\",VLOOKUP(CG238,'Footnotes list'!$D$9:$E$58,2,FALSE) ) )","v":""},null,null,null,null,{"$f":"IF(TRIM(CL238)=\"\", \"\", IF(VLOOKUP(CL238,'Footnotes list'!$D$9:$E$58,2,FALSE)=0,\"\",VLOOKUP(CL238,'Footnotes list'!$D$9:$E$58,2,FALSE) ) )","v":""},null,null,null,null,{"$f":"IF(TRIM(CQ238)=\"\", \"\", IF(VLOOKUP(CQ238,'Footnotes list'!$D$9:$E$58,2,FALSE)=0,\"\",VLOOKUP(CQ238,'Footnotes list'!$D$9:$E$58,2,FALSE) ) )","v":""},null,null,null,null,{"$f":"IF(TRIM(CV238)=\"\", \"\", IF(VLOOKUP(CV238,'Footnotes list'!$D$9:$E$58,2,FALSE)=0,\"\",VLOOKUP(CV238,'Footnotes list'!$D$9:$E$58,2,FALSE) ) )","v":""},null,null,null,null,{"$f":"IF(TRIM(DA238)=\"\", \"\", IF(VLOOKUP(DA238,'Footnotes list'!$D$9:$E$58,2,FALSE)=0,\"\",VLOOKUP(DA238,'Footnotes list'!$D$9:$E$58,2,FALSE) ) )","v":""},null,null,null,null,{"$f":"IF(TRIM(DF238)=\"\", \"\", IF(VLOOKUP(DF238,'Footnotes list'!$D$9:$E$58,2,FALSE)=0,\"\",VLOOKUP(DF238,'Footnotes list'!$D$9:$E$58,2,FALSE) ) )","v":""},null,null,null,null,{"$f":"IF(TRIM(DK238)=\"\", \"\", IF(VLOOKUP(DK238,'Footnotes list'!$D$9:$E$58,2,FALSE)=0,\"\",VLOOKUP(DK238,'Footnotes list'!$D$9:$E$58,2,FALSE) ) )","v":""},null,null,null,null,{"$f":"IF(TRIM(DP238)=\"\", \"\", IF(VLOOKUP(DP238,'Footnotes list'!$D$9:$E$58,2,FALSE)=0,\"\",VLOOKUP(DP238,'Footnotes list'!$D$9:$E$58,2,FALSE) ) )","v":""},null,null,null,null,{"$f":"IF(TRIM(DU238)=\"\", \"\", IF(VLOOKUP(DU238,'Footnotes list'!$D$9:$E$58,2,FALSE)=0,\"\",VLOOKUP(DU238,'Footnotes list'!$D$9:$E$58,2,FALSE) ) )","v":""},null,null,null,null,{"$f":"IF(TRIM(DZ238)=\"\", \"\", IF(VLOOKUP(DZ238,'Footnotes list'!$D$9:$E$58,2,FALSE)=0,\"\",VLOOKUP(DZ238,'Footnotes list'!$D$9:$E$58,2,FALSE) ) )","v":""},null,null,null,null,{"$f":"IF(TRIM(EE238)=\"\", \"\", IF(VLOOKUP(EE238,'Footnotes list'!$D$9:$E$58,2,FALSE)=0,\"\",VLOOKUP(EE238,'Footnotes list'!$D$9:$E$58,2,FALSE) ) )","v":""},null,null,null,null,{"$f":"IF(TRIM(EJ238)=\"\", \"\", IF(VLOOKUP(EJ238,'Footnotes list'!$D$9:$E$58,2,FALSE)=0,\"\",VLOOKUP(EJ238,'Footnotes list'!$D$9:$E$58,2,FALSE) ) )","v":""},null,null,null,null,{"$f":"IF(TRIM(EO238)=\"\", \"\", IF(VLOOKUP(EO238,'Footnotes list'!$D$9:$E$58,2,FALSE)=0,\"\",VLOOKUP(EO238,'Footnotes list'!$D$9:$E$58,2,FALSE) ) )","v":""},null,null,null,null,{"$f":"IF(TRIM(ET238)=\"\", \"\", IF(VLOOKUP(ET238,'Footnotes list'!$D$9:$E$58,2,FALSE)=0,\"\",VLOOKUP(ET238,'Footnotes list'!$D$9:$E$58,2,FALSE) ) )","v":""},null,null,null,null,{"$f":"IF(TRIM(EY238)=\"\", \"\", IF(VLOOKUP(EY238,'Footnotes list'!$D$9:$E$58,2,FALSE)=0,\"\",VLOOKUP(EY238,'Footnotes list'!$D$9:$E$58,2,FALSE) ) )","v":""}]
[null,null,"M72","TOT_EGSS","Total M72 - Scientific research and development, of which:",null,null,null,null,null,{"$f":"IF(TRIM(J239)=\"\", \"\", IF(VLOOKUP(J239,'Footnotes list'!$D$9:$E$58,2,FALSE)=0,\"\",VLOOKUP(J239,'Footnotes list'!$D$9:$E$58,2,FALSE) ) )","v":""},null,null,null,null,{"$f":"IF(TRIM(O239)=\"\", \"\", IF(VLOOKUP(O239,'Footnotes list'!$D$9:$E$58,2,FALSE)=0,\"\",VLOOKUP(O239,'Footnotes list'!$D$9:$E$58,2,FALSE) ) )","v":""},null,null,null,null,{"$f":"IF(TRIM(T239)=\"\", \"\", IF(VLOOKUP(T239,'Footnotes list'!$D$9:$E$58,2,FALSE)=0,\"\",VLOOKUP(T239,'Footnotes list'!$D$9:$E$58,2,FALSE) ) )","v":""},null,null,null,null,{"$f":"IF(TRIM(Y239)=\"\", \"\", IF(VLOOKUP(Y239,'Footnotes list'!$D$9:$E$58,2,FALSE)=0,\"\",VLOOKUP(Y239,'Footnotes list'!$D$9:$E$58,2,FALSE) ) )","v":""},null,null,null,null,{"$f":"IF(TRIM(AD239)=\"\", \"\", IF(VLOOKUP(AD239,'Footnotes list'!$D$9:$E$58,2,FALSE)=0,\"\",VLOOKUP(AD239,'Footnotes list'!$D$9:$E$58,2,FALSE) ) )","v":""},null,null,null,null,{"$f":"IF(TRIM(AI239)=\"\", \"\", IF(VLOOKUP(AI239,'Footnotes list'!$D$9:$E$58,2,FALSE)=0,\"\",VLOOKUP(AI239,'Footnotes list'!$D$9:$E$58,2,FALSE) ) )","v":""},null,null,null,null,{"$f":"IF(TRIM(AN239)=\"\", \"\", IF(VLOOKUP(AN239,'Footnotes list'!$D$9:$E$58,2,FALSE)=0,\"\",VLOOKUP(AN239,'Footnotes list'!$D$9:$E$58,2,FALSE) ) )","v":""},null,null,null,null,{"$f":"IF(TRIM(AS239)=\"\", \"\", IF(VLOOKUP(AS239,'Footnotes list'!$D$9:$E$58,2,FALSE)=0,\"\",VLOOKUP(AS239,'Footnotes list'!$D$9:$E$58,2,FALSE) ) )","v":""},null,null,null,null,{"$f":"IF(TRIM(AX239)=\"\", \"\", IF(VLOOKUP(AX239,'Footnotes list'!$D$9:$E$58,2,FALSE)=0,\"\",VLOOKUP(AX239,'Footnotes list'!$D$9:$E$58,2,FALSE) ) )","v":""},null,null,null,null,{"$f":"IF(TRIM(BC239)=\"\", \"\", IF(VLOOKUP(BC239,'Footnotes list'!$D$9:$E$58,2,FALSE)=0,\"\",VLOOKUP(BC239,'Footnotes list'!$D$9:$E$58,2,FALSE) ) )","v":""},null,null,null,null,{"$f":"IF(TRIM(BH239)=\"\", \"\", IF(VLOOKUP(BH239,'Footnotes list'!$D$9:$E$58,2,FALSE)=0,\"\",VLOOKUP(BH239,'Footnotes list'!$D$9:$E$58,2,FALSE) ) )","v":""},null,null,null,null,{"$f":"IF(TRIM(BM239)=\"\", \"\", IF(VLOOKUP(BM239,'Footnotes list'!$D$9:$E$58,2,FALSE)=0,\"\",VLOOKUP(BM239,'Footnotes list'!$D$9:$E$58,2,FALSE) ) )","v":""},null,null,null,null,{"$f":"IF(TRIM(BR239)=\"\", \"\", IF(VLOOKUP(BR239,'Footnotes list'!$D$9:$E$58,2,FALSE)=0,\"\",VLOOKUP(BR239,'Footnotes list'!$D$9:$E$58,2,FALSE) ) )","v":""},null,null,null,null,{"$f":"IF(TRIM(BW239)=\"\", \"\", IF(VLOOKUP(BW239,'Footnotes list'!$D$9:$E$58,2,FALSE)=0,\"\",VLOOKUP(BW239,'Footnotes list'!$D$9:$E$58,2,FALSE) ) )","v":""},null,null,null,null,{"$f":"IF(TRIM(CB239)=\"\", \"\", IF(VLOOKUP(CB239,'Footnotes list'!$D$9:$E$58,2,FALSE)=0,\"\",VLOOKUP(CB239,'Footnotes list'!$D$9:$E$58,2,FALSE) ) )","v":""},null,null,null,null,{"$f":"IF(TRIM(CG239)=\"\", \"\", IF(VLOOKUP(CG239,'Footnotes list'!$D$9:$E$58,2,FALSE)=0,\"\",VLOOKUP(CG239,'Footnotes list'!$D$9:$E$58,2,FALSE) ) )","v":""},null,null,null,null,{"$f":"IF(TRIM(CL239)=\"\", \"\", IF(VLOOKUP(CL239,'Footnotes list'!$D$9:$E$58,2,FALSE)=0,\"\",VLOOKUP(CL239,'Footnotes list'!$D$9:$E$58,2,FALSE) ) )","v":""},null,null,null,null,{"$f":"IF(TRIM(CQ239)=\"\", \"\", IF(VLOOKUP(CQ239,'Footnotes list'!$D$9:$E$58,2,FALSE)=0,\"\",VLOOKUP(CQ239,'Footnotes list'!$D$9:$E$58,2,FALSE) ) )","v":""},null,null,null,null,{"$f":"IF(TRIM(CV239)=\"\", \"\", IF(VLOOKUP(CV239,'Footnotes list'!$D$9:$E$58,2,FALSE)=0,\"\",VLOOKUP(CV239,'Footnotes list'!$D$9:$E$58,2,FALSE) ) )","v":""},null,null,null,null,{"$f":"IF(TRIM(DA239)=\"\", \"\", IF(VLOOKUP(DA239,'Footnotes list'!$D$9:$E$58,2,FALSE)=0,\"\",VLOOKUP(DA239,'Footnotes list'!$D$9:$E$58,2,FALSE) ) )","v":""},null,null,null,null,{"$f":"IF(TRIM(DF239)=\"\", \"\", IF(VLOOKUP(DF239,'Footnotes list'!$D$9:$E$58,2,FALSE)=0,\"\",VLOOKUP(DF239,'Footnotes list'!$D$9:$E$58,2,FALSE) ) )","v":""},null,null,null,null,{"$f":"IF(TRIM(DK239)=\"\", \"\", IF(VLOOKUP(DK239,'Footnotes list'!$D$9:$E$58,2,FALSE)=0,\"\",VLOOKUP(DK239,'Footnotes list'!$D$9:$E$58,2,FALSE) ) )","v":""},null,null,null,null,{"$f":"IF(TRIM(DP239)=\"\", \"\", IF(VLOOKUP(DP239,'Footnotes list'!$D$9:$E$58,2,FALSE)=0,\"\",VLOOKUP(DP239,'Footnotes list'!$D$9:$E$58,2,FALSE) ) )","v":""},null,null,null,null,{"$f":"IF(TRIM(DU239)=\"\", \"\", IF(VLOOKUP(DU239,'Footnotes list'!$D$9:$E$58,2,FALSE)=0,\"\",VLOOKUP(DU239,'Footnotes list'!$D$9:$E$58,2,FALSE) ) )","v":""},null,null,null,null,{"$f":"IF(TRIM(DZ239)=\"\", \"\", IF(VLOOKUP(DZ239,'Footnotes list'!$D$9:$E$58,2,FALSE)=0,\"\",VLOOKUP(DZ239,'Footnotes list'!$D$9:$E$58,2,FALSE) ) )","v":""},null,null,null,null,{"$f":"IF(TRIM(EE239)=\"\", \"\", IF(VLOOKUP(EE239,'Footnotes list'!$D$9:$E$58,2,FALSE)=0,\"\",VLOOKUP(EE239,'Footnotes list'!$D$9:$E$58,2,FALSE) ) )","v":""},null,null,null,null,{"$f":"IF(TRIM(EJ239)=\"\", \"\", IF(VLOOKUP(EJ239,'Footnotes list'!$D$9:$E$58,2,FALSE)=0,\"\",VLOOKUP(EJ239,'Footnotes list'!$D$9:$E$58,2,FALSE) ) )","v":""},null,null,null,null,{"$f":"IF(TRIM(EO239)=\"\", \"\", IF(VLOOKUP(EO239,'Footnotes list'!$D$9:$E$58,2,FALSE)=0,\"\",VLOOKUP(EO239,'Footnotes list'!$D$9:$E$58,2,FALSE) ) )","v":""},null,null,null,null,{"$f":"IF(TRIM(ET239)=\"\", \"\", IF(VLOOKUP(ET239,'Footnotes list'!$D$9:$E$58,2,FALSE)=0,\"\",VLOOKUP(ET239,'Footnotes list'!$D$9:$E$58,2,FALSE) ) )","v":""},null,null,null,null,{"$f":"IF(TRIM(EY239)=\"\", \"\", IF(VLOOKUP(EY239,'Footnotes list'!$D$9:$E$58,2,FALSE)=0,\"\",VLOOKUP(EY239,'Footnotes list'!$D$9:$E$58,2,FALSE) ) )","v":""}]
[null,null,"M72","ANC","ancillary activities",null,null,null,null,null,{"$f":"IF(TRIM(J240)=\"\", \"\", IF(VLOOKUP(J240,'Footnotes list'!$D$9:$E$58,2,FALSE)=0,\"\",VLOOKUP(J240,'Footnotes list'!$D$9:$E$58,2,FALSE) ) )","v":""},null,null,null,null,{"$f":"IF(TRIM(O240)=\"\", \"\", IF(VLOOKUP(O240,'Footnotes list'!$D$9:$E$58,2,FALSE)=0,\"\",VLOOKUP(O240,'Footnotes list'!$D$9:$E$58,2,FALSE) ) )","v":""},null,null,null,null,{"$f":"IF(TRIM(T240)=\"\", \"\", IF(VLOOKUP(T240,'Footnotes list'!$D$9:$E$58,2,FALSE)=0,\"\",VLOOKUP(T240,'Footnotes list'!$D$9:$E$58,2,FALSE) ) )","v":""},null,null,null,null,{"$f":"IF(TRIM(Y240)=\"\", \"\", IF(VLOOKUP(Y240,'Footnotes list'!$D$9:$E$58,2,FALSE)=0,\"\",VLOOKUP(Y240,'Footnotes list'!$D$9:$E$58,2,FALSE) ) )","v":""},null,null,null,null,{"$f":"IF(TRIM(AD240)=\"\", \"\", IF(VLOOKUP(AD240,'Footnotes list'!$D$9:$E$58,2,FALSE)=0,\"\",VLOOKUP(AD240,'Footnotes list'!$D$9:$E$58,2,FALSE) ) )","v":""},null,null,null,null,{"$f":"IF(TRIM(AI240)=\"\", \"\", IF(VLOOKUP(AI240,'Footnotes list'!$D$9:$E$58,2,FALSE)=0,\"\",VLOOKUP(AI240,'Footnotes list'!$D$9:$E$58,2,FALSE) ) )","v":""},null,null,null,null,{"$f":"IF(TRIM(AN240)=\"\", \"\", IF(VLOOKUP(AN240,'Footnotes list'!$D$9:$E$58,2,FALSE)=0,\"\",VLOOKUP(AN240,'Footnotes list'!$D$9:$E$58,2,FALSE) ) )","v":""},null,null,null,null,{"$f":"IF(TRIM(AS240)=\"\", \"\", IF(VLOOKUP(AS240,'Footnotes list'!$D$9:$E$58,2,FALSE)=0,\"\",VLOOKUP(AS240,'Footnotes list'!$D$9:$E$58,2,FALSE) ) )","v":""},null,null,null,null,{"$f":"IF(TRIM(AX240)=\"\", \"\", IF(VLOOKUP(AX240,'Footnotes list'!$D$9:$E$58,2,FALSE)=0,\"\",VLOOKUP(AX240,'Footnotes list'!$D$9:$E$58,2,FALSE) ) )","v":""},null,null,null,null,{"$f":"IF(TRIM(BC240)=\"\", \"\", IF(VLOOKUP(BC240,'Footnotes list'!$D$9:$E$58,2,FALSE)=0,\"\",VLOOKUP(BC240,'Footnotes list'!$D$9:$E$58,2,FALSE) ) )","v":""},null,null,null,null,{"$f":"IF(TRIM(BH240)=\"\", \"\", IF(VLOOKUP(BH240,'Footnotes list'!$D$9:$E$58,2,FALSE)=0,\"\",VLOOKUP(BH240,'Footnotes list'!$D$9:$E$58,2,FALSE) ) )","v":""},null,null,null,null,{"$f":"IF(TRIM(BM240)=\"\", \"\", IF(VLOOKUP(BM240,'Footnotes list'!$D$9:$E$58,2,FALSE)=0,\"\",VLOOKUP(BM240,'Footnotes list'!$D$9:$E$58,2,FALSE) ) )","v":""},null,null,null,null,{"$f":"IF(TRIM(BR240)=\"\", \"\", IF(VLOOKUP(BR240,'Footnotes list'!$D$9:$E$58,2,FALSE)=0,\"\",VLOOKUP(BR240,'Footnotes list'!$D$9:$E$58,2,FALSE) ) )","v":""},null,null,null,null,{"$f":"IF(TRIM(BW240)=\"\", \"\", IF(VLOOKUP(BW240,'Footnotes list'!$D$9:$E$58,2,FALSE)=0,\"\",VLOOKUP(BW240,'Footnotes list'!$D$9:$E$58,2,FALSE) ) )","v":""},null,null,null,null,{"$f":"IF(TRIM(CB240)=\"\", \"\", IF(VLOOKUP(CB240,'Footnotes list'!$D$9:$E$58,2,FALSE)=0,\"\",VLOOKUP(CB240,'Footnotes list'!$D$9:$E$58,2,FALSE) ) )","v":""},null,null,null,null,{"$f":"IF(TRIM(CG240)=\"\", \"\", IF(VLOOKUP(CG240,'Footnotes list'!$D$9:$E$58,2,FALSE)=0,\"\",VLOOKUP(CG240,'Footnotes list'!$D$9:$E$58,2,FALSE) ) )","v":""},null,null,null,null,{"$f":"IF(TRIM(CL240)=\"\", \"\", IF(VLOOKUP(CL240,'Footnotes list'!$D$9:$E$58,2,FALSE)=0,\"\",VLOOKUP(CL240,'Footnotes list'!$D$9:$E$58,2,FALSE) ) )","v":""},null,null,null,null,{"$f":"IF(TRIM(CQ240)=\"\", \"\", IF(VLOOKUP(CQ240,'Footnotes list'!$D$9:$E$58,2,FALSE)=0,\"\",VLOOKUP(CQ240,'Footnotes list'!$D$9:$E$58,2,FALSE) ) )","v":""},null,null,null,null,{"$f":"IF(TRIM(CV240)=\"\", \"\", IF(VLOOKUP(CV240,'Footnotes list'!$D$9:$E$58,2,FALSE)=0,\"\",VLOOKUP(CV240,'Footnotes list'!$D$9:$E$58,2,FALSE) ) )","v":""},null,null,null,null,{"$f":"IF(TRIM(DA240)=\"\", \"\", IF(VLOOKUP(DA240,'Footnotes list'!$D$9:$E$58,2,FALSE)=0,\"\",VLOOKUP(DA240,'Footnotes list'!$D$9:$E$58,2,FALSE) ) )","v":""},null,null,null,null,{"$f":"IF(TRIM(DF240)=\"\", \"\", IF(VLOOKUP(DF240,'Footnotes list'!$D$9:$E$58,2,FALSE)=0,\"\",VLOOKUP(DF240,'Footnotes list'!$D$9:$E$58,2,FALSE) ) )","v":""},null,null,null,null,{"$f":"IF(TRIM(DK240)=\"\", \"\", IF(VLOOKUP(DK240,'Footnotes list'!$D$9:$E$58,2,FALSE)=0,\"\",VLOOKUP(DK240,'Footnotes list'!$D$9:$E$58,2,FALSE) ) )","v":""},null,null,null,null,{"$f":"IF(TRIM(DP240)=\"\", \"\", IF(VLOOKUP(DP240,'Footnotes list'!$D$9:$E$58,2,FALSE)=0,\"\",VLOOKUP(DP240,'Footnotes list'!$D$9:$E$58,2,FALSE) ) )","v":""},null,null,null,null,{"$f":"IF(TRIM(DU240)=\"\", \"\", IF(VLOOKUP(DU240,'Footnotes list'!$D$9:$E$58,2,FALSE)=0,\"\",VLOOKUP(DU240,'Footnotes list'!$D$9:$E$58,2,FALSE) ) )","v":""},null,null,null,null,{"$f":"IF(TRIM(DZ240)=\"\", \"\", IF(VLOOKUP(DZ240,'Footnotes list'!$D$9:$E$58,2,FALSE)=0,\"\",VLOOKUP(DZ240,'Footnotes list'!$D$9:$E$58,2,FALSE) ) )","v":""},null,null,null,null,{"$f":"IF(TRIM(EE240)=\"\", \"\", IF(VLOOKUP(EE240,'Footnotes list'!$D$9:$E$58,2,FALSE)=0,\"\",VLOOKUP(EE240,'Footnotes list'!$D$9:$E$58,2,FALSE) ) )","v":""},null,null,null,null,{"$f":"IF(TRIM(EJ240)=\"\", \"\", IF(VLOOKUP(EJ240,'Footnotes list'!$D$9:$E$58,2,FALSE)=0,\"\",VLOOKUP(EJ240,'Footnotes list'!$D$9:$E$58,2,FALSE) ) )","v":""},null,null,null,null,{"$f":"IF(TRIM(EO240)=\"\", \"\", IF(VLOOKUP(EO240,'Footnotes list'!$D$9:$E$58,2,FALSE)=0,\"\",VLOOKUP(EO240,'Footnotes list'!$D$9:$E$58,2,FALSE) ) )","v":""},null,null,null,null,{"$f":"IF(TRIM(ET240)=\"\", \"\", IF(VLOOKUP(ET240,'Footnotes list'!$D$9:$E$58,2,FALSE)=0,\"\",VLOOKUP(ET240,'Footnotes list'!$D$9:$E$58,2,FALSE) ) )","v":""},null,null,null,null,{"$f":"IF(TRIM(EY240)=\"\", \"\", IF(VLOOKUP(EY240,'Footnotes list'!$D$9:$E$58,2,FALSE)=0,\"\",VLOOKUP(EY240,'Footnotes list'!$D$9:$E$58,2,FALSE) ) )","v":""}]
[null,null,"M72","NMKT","non-market activities",null,null,null,null,null,{"$f":"IF(TRIM(J241)=\"\", \"\", IF(VLOOKUP(J241,'Footnotes list'!$D$9:$E$58,2,FALSE)=0,\"\",VLOOKUP(J241,'Footnotes list'!$D$9:$E$58,2,FALSE) ) )","v":""},null,null,null,null,{"$f":"IF(TRIM(O241)=\"\", \"\", IF(VLOOKUP(O241,'Footnotes list'!$D$9:$E$58,2,FALSE)=0,\"\",VLOOKUP(O241,'Footnotes list'!$D$9:$E$58,2,FALSE) ) )","v":""},null,null,null,null,{"$f":"IF(TRIM(T241)=\"\", \"\", IF(VLOOKUP(T241,'Footnotes list'!$D$9:$E$58,2,FALSE)=0,\"\",VLOOKUP(T241,'Footnotes list'!$D$9:$E$58,2,FALSE) ) )","v":""},null,null,null,null,{"$f":"IF(TRIM(Y241)=\"\", \"\", IF(VLOOKUP(Y241,'Footnotes list'!$D$9:$E$58,2,FALSE)=0,\"\",VLOOKUP(Y241,'Footnotes list'!$D$9:$E$58,2,FALSE) ) )","v":""},null,null,null,null,{"$f":"IF(TRIM(AD241)=\"\", \"\", IF(VLOOKUP(AD241,'Footnotes list'!$D$9:$E$58,2,FALSE)=0,\"\",VLOOKUP(AD241,'Footnotes list'!$D$9:$E$58,2,FALSE) ) )","v":""},null,null,null,null,{"$f":"IF(TRIM(AI241)=\"\", \"\", IF(VLOOKUP(AI241,'Footnotes list'!$D$9:$E$58,2,FALSE)=0,\"\",VLOOKUP(AI241,'Footnotes list'!$D$9:$E$58,2,FALSE) ) )","v":""},null,null,null,null,{"$f":"IF(TRIM(AN241)=\"\", \"\", IF(VLOOKUP(AN241,'Footnotes list'!$D$9:$E$58,2,FALSE)=0,\"\",VLOOKUP(AN241,'Footnotes list'!$D$9:$E$58,2,FALSE) ) )","v":""},null,null,null,null,{"$f":"IF(TRIM(AS241)=\"\", \"\", IF(VLOOKUP(AS241,'Footnotes list'!$D$9:$E$58,2,FALSE)=0,\"\",VLOOKUP(AS241,'Footnotes list'!$D$9:$E$58,2,FALSE) ) )","v":""},null,null,null,null,{"$f":"IF(TRIM(AX241)=\"\", \"\", IF(VLOOKUP(AX241,'Footnotes list'!$D$9:$E$58,2,FALSE)=0,\"\",VLOOKUP(AX241,'Footnotes list'!$D$9:$E$58,2,FALSE) ) )","v":""},null,null,null,null,{"$f":"IF(TRIM(BC241)=\"\", \"\", IF(VLOOKUP(BC241,'Footnotes list'!$D$9:$E$58,2,FALSE)=0,\"\",VLOOKUP(BC241,'Footnotes list'!$D$9:$E$58,2,FALSE) ) )","v":""},null,null,null,null,{"$f":"IF(TRIM(BH241)=\"\", \"\", IF(VLOOKUP(BH241,'Footnotes list'!$D$9:$E$58,2,FALSE)=0,\"\",VLOOKUP(BH241,'Footnotes list'!$D$9:$E$58,2,FALSE) ) )","v":""},null,null,null,null,{"$f":"IF(TRIM(BM241)=\"\", \"\", IF(VLOOKUP(BM241,'Footnotes list'!$D$9:$E$58,2,FALSE)=0,\"\",VLOOKUP(BM241,'Footnotes list'!$D$9:$E$58,2,FALSE) ) )","v":""},null,null,null,null,{"$f":"IF(TRIM(BR241)=\"\", \"\", IF(VLOOKUP(BR241,'Footnotes list'!$D$9:$E$58,2,FALSE)=0,\"\",VLOOKUP(BR241,'Footnotes list'!$D$9:$E$58,2,FALSE) ) )","v":""},null,null,null,null,{"$f":"IF(TRIM(BW241)=\"\", \"\", IF(VLOOKUP(BW241,'Footnotes list'!$D$9:$E$58,2,FALSE)=0,\"\",VLOOKUP(BW241,'Footnotes list'!$D$9:$E$58,2,FALSE) ) )","v":""},null,null,null,null,{"$f":"IF(TRIM(CB241)=\"\", \"\", IF(VLOOKUP(CB241,'Footnotes list'!$D$9:$E$58,2,FALSE)=0,\"\",VLOOKUP(CB241,'Footnotes list'!$D$9:$E$58,2,FALSE) ) )","v":""},null,null,null,null,{"$f":"IF(TRIM(CG241)=\"\", \"\", IF(VLOOKUP(CG241,'Footnotes list'!$D$9:$E$58,2,FALSE)=0,\"\",VLOOKUP(CG241,'Footnotes list'!$D$9:$E$58,2,FALSE) ) )","v":""},null,null,null,null,{"$f":"IF(TRIM(CL241)=\"\", \"\", IF(VLOOKUP(CL241,'Footnotes list'!$D$9:$E$58,2,FALSE)=0,\"\",VLOOKUP(CL241,'Footnotes list'!$D$9:$E$58,2,FALSE) ) )","v":""},null,null,null,null,{"$f":"IF(TRIM(CQ241)=\"\", \"\", IF(VLOOKUP(CQ241,'Footnotes list'!$D$9:$E$58,2,FALSE)=0,\"\",VLOOKUP(CQ241,'Footnotes list'!$D$9:$E$58,2,FALSE) ) )","v":""},null,null,null,null,{"$f":"IF(TRIM(CV241)=\"\", \"\", IF(VLOOKUP(CV241,'Footnotes list'!$D$9:$E$58,2,FALSE)=0,\"\",VLOOKUP(CV241,'Footnotes list'!$D$9:$E$58,2,FALSE) ) )","v":""},null,null,null,null,{"$f":"IF(TRIM(DA241)=\"\", \"\", IF(VLOOKUP(DA241,'Footnotes list'!$D$9:$E$58,2,FALSE)=0,\"\",VLOOKUP(DA241,'Footnotes list'!$D$9:$E$58,2,FALSE) ) )","v":""},null,null,null,null,{"$f":"IF(TRIM(DF241)=\"\", \"\", IF(VLOOKUP(DF241,'Footnotes list'!$D$9:$E$58,2,FALSE)=0,\"\",VLOOKUP(DF241,'Footnotes list'!$D$9:$E$58,2,FALSE) ) )","v":""},null,null,null,null,{"$f":"IF(TRIM(DK241)=\"\", \"\", IF(VLOOKUP(DK241,'Footnotes list'!$D$9:$E$58,2,FALSE)=0,\"\",VLOOKUP(DK241,'Footnotes list'!$D$9:$E$58,2,FALSE) ) )","v":""},null,null,null,null,{"$f":"IF(TRIM(DP241)=\"\", \"\", IF(VLOOKUP(DP241,'Footnotes list'!$D$9:$E$58,2,FALSE)=0,\"\",VLOOKUP(DP241,'Footnotes list'!$D$9:$E$58,2,FALSE) ) )","v":""},null,null,null,null,{"$f":"IF(TRIM(DU241)=\"\", \"\", IF(VLOOKUP(DU241,'Footnotes list'!$D$9:$E$58,2,FALSE)=0,\"\",VLOOKUP(DU241,'Footnotes list'!$D$9:$E$58,2,FALSE) ) )","v":""},null,null,null,null,{"$f":"IF(TRIM(DZ241)=\"\", \"\", IF(VLOOKUP(DZ241,'Footnotes list'!$D$9:$E$58,2,FALSE)=0,\"\",VLOOKUP(DZ241,'Footnotes list'!$D$9:$E$58,2,FALSE) ) )","v":""},null,null,null,null,{"$f":"IF(TRIM(EE241)=\"\", \"\", IF(VLOOKUP(EE241,'Footnotes list'!$D$9:$E$58,2,FALSE)=0,\"\",VLOOKUP(EE241,'Footnotes list'!$D$9:$E$58,2,FALSE) ) )","v":""},null,null,null,null,{"$f":"IF(TRIM(EJ241)=\"\", \"\", IF(VLOOKUP(EJ241,'Footnotes list'!$D$9:$E$58,2,FALSE)=0,\"\",VLOOKUP(EJ241,'Footnotes list'!$D$9:$E$58,2,FALSE) ) )","v":""},null,null,null,null,{"$f":"IF(TRIM(EO241)=\"\", \"\", IF(VLOOKUP(EO241,'Footnotes list'!$D$9:$E$58,2,FALSE)=0,\"\",VLOOKUP(EO241,'Footnotes list'!$D$9:$E$58,2,FALSE) ) )","v":""},null,null,null,null,{"$f":"IF(TRIM(ET241)=\"\", \"\", IF(VLOOKUP(ET241,'Footnotes list'!$D$9:$E$58,2,FALSE)=0,\"\",VLOOKUP(ET241,'Footnotes list'!$D$9:$E$58,2,FALSE) ) )","v":""},null,null,null,null,{"$f":"IF(TRIM(EY241)=\"\", \"\", IF(VLOOKUP(EY241,'Footnotes list'!$D$9:$E$58,2,FALSE)=0,\"\",VLOOKUP(EY241,'Footnotes list'!$D$9:$E$58,2,FALSE) ) )","v":""}]
[null,null,"M72","OWN_USE","activities for own final use",null,null,null,null,null,{"$f":"IF(TRIM(J242)=\"\", \"\", IF(VLOOKUP(J242,'Footnotes list'!$D$9:$E$58,2,FALSE)=0,\"\",VLOOKUP(J242,'Footnotes list'!$D$9:$E$58,2,FALSE) ) )","v":""},null,null,null,null,{"$f":"IF(TRIM(O242)=\"\", \"\", IF(VLOOKUP(O242,'Footnotes list'!$D$9:$E$58,2,FALSE)=0,\"\",VLOOKUP(O242,'Footnotes list'!$D$9:$E$58,2,FALSE) ) )","v":""},null,null,null,null,{"$f":"IF(TRIM(T242)=\"\", \"\", IF(VLOOKUP(T242,'Footnotes list'!$D$9:$E$58,2,FALSE)=0,\"\",VLOOKUP(T242,'Footnotes list'!$D$9:$E$58,2,FALSE) ) )","v":""},null,null,null,null,{"$f":"IF(TRIM(Y242)=\"\", \"\", IF(VLOOKUP(Y242,'Footnotes list'!$D$9:$E$58,2,FALSE)=0,\"\",VLOOKUP(Y242,'Footnotes list'!$D$9:$E$58,2,FALSE) ) )","v":""},null,null,null,null,{"$f":"IF(TRIM(AD242)=\"\", \"\", IF(VLOOKUP(AD242,'Footnotes list'!$D$9:$E$58,2,FALSE)=0,\"\",VLOOKUP(AD242,'Footnotes list'!$D$9:$E$58,2,FALSE) ) )","v":""},null,null,null,null,{"$f":"IF(TRIM(AI242)=\"\", \"\", IF(VLOOKUP(AI242,'Footnotes list'!$D$9:$E$58,2,FALSE)=0,\"\",VLOOKUP(AI242,'Footnotes list'!$D$9:$E$58,2,FALSE) ) )","v":""},null,null,null,null,{"$f":"IF(TRIM(AN242)=\"\", \"\", IF(VLOOKUP(AN242,'Footnotes list'!$D$9:$E$58,2,FALSE)=0,\"\",VLOOKUP(AN242,'Footnotes list'!$D$9:$E$58,2,FALSE) ) )","v":""},null,null,null,null,{"$f":"IF(TRIM(AS242)=\"\", \"\", IF(VLOOKUP(AS242,'Footnotes list'!$D$9:$E$58,2,FALSE)=0,\"\",VLOOKUP(AS242,'Footnotes list'!$D$9:$E$58,2,FALSE) ) )","v":""},null,null,null,null,{"$f":"IF(TRIM(AX242)=\"\", \"\", IF(VLOOKUP(AX242,'Footnotes list'!$D$9:$E$58,2,FALSE)=0,\"\",VLOOKUP(AX242,'Footnotes list'!$D$9:$E$58,2,FALSE) ) )","v":""},null,null,null,null,{"$f":"IF(TRIM(BC242)=\"\", \"\", IF(VLOOKUP(BC242,'Footnotes list'!$D$9:$E$58,2,FALSE)=0,\"\",VLOOKUP(BC242,'Footnotes list'!$D$9:$E$58,2,FALSE) ) )","v":""},null,null,null,null,{"$f":"IF(TRIM(BH242)=\"\", \"\", IF(VLOOKUP(BH242,'Footnotes list'!$D$9:$E$58,2,FALSE)=0,\"\",VLOOKUP(BH242,'Footnotes list'!$D$9:$E$58,2,FALSE) ) )","v":""},null,null,null,null,{"$f":"IF(TRIM(BM242)=\"\", \"\", IF(VLOOKUP(BM242,'Footnotes list'!$D$9:$E$58,2,FALSE)=0,\"\",VLOOKUP(BM242,'Footnotes list'!$D$9:$E$58,2,FALSE) ) )","v":""},null,null,null,null,{"$f":"IF(TRIM(BR242)=\"\", \"\", IF(VLOOKUP(BR242,'Footnotes list'!$D$9:$E$58,2,FALSE)=0,\"\",VLOOKUP(BR242,'Footnotes list'!$D$9:$E$58,2,FALSE) ) )","v":""},null,null,null,null,{"$f":"IF(TRIM(BW242)=\"\", \"\", IF(VLOOKUP(BW242,'Footnotes list'!$D$9:$E$58,2,FALSE)=0,\"\",VLOOKUP(BW242,'Footnotes list'!$D$9:$E$58,2,FALSE) ) )","v":""},null,null,null,null,{"$f":"IF(TRIM(CB242)=\"\", \"\", IF(VLOOKUP(CB242,'Footnotes list'!$D$9:$E$58,2,FALSE)=0,\"\",VLOOKUP(CB242,'Footnotes list'!$D$9:$E$58,2,FALSE) ) )","v":""},null,null,null,null,{"$f":"IF(TRIM(CG242)=\"\", \"\", IF(VLOOKUP(CG242,'Footnotes list'!$D$9:$E$58,2,FALSE)=0,\"\",VLOOKUP(CG242,'Footnotes list'!$D$9:$E$58,2,FALSE) ) )","v":""},null,null,null,null,{"$f":"IF(TRIM(CL242)=\"\", \"\", IF(VLOOKUP(CL242,'Footnotes list'!$D$9:$E$58,2,FALSE)=0,\"\",VLOOKUP(CL242,'Footnotes list'!$D$9:$E$58,2,FALSE) ) )","v":""},null,null,null,null,{"$f":"IF(TRIM(CQ242)=\"\", \"\", IF(VLOOKUP(CQ242,'Footnotes list'!$D$9:$E$58,2,FALSE)=0,\"\",VLOOKUP(CQ242,'Footnotes list'!$D$9:$E$58,2,FALSE) ) )","v":""},null,null,null,null,{"$f":"IF(TRIM(CV242)=\"\", \"\", IF(VLOOKUP(CV242,'Footnotes list'!$D$9:$E$58,2,FALSE)=0,\"\",VLOOKUP(CV242,'Footnotes list'!$D$9:$E$58,2,FALSE) ) )","v":""},null,null,null,null,{"$f":"IF(TRIM(DA242)=\"\", \"\", IF(VLOOKUP(DA242,'Footnotes list'!$D$9:$E$58,2,FALSE)=0,\"\",VLOOKUP(DA242,'Footnotes list'!$D$9:$E$58,2,FALSE) ) )","v":""},null,null,null,null,{"$f":"IF(TRIM(DF242)=\"\", \"\", IF(VLOOKUP(DF242,'Footnotes list'!$D$9:$E$58,2,FALSE)=0,\"\",VLOOKUP(DF242,'Footnotes list'!$D$9:$E$58,2,FALSE) ) )","v":""},null,null,null,null,{"$f":"IF(TRIM(DK242)=\"\", \"\", IF(VLOOKUP(DK242,'Footnotes list'!$D$9:$E$58,2,FALSE)=0,\"\",VLOOKUP(DK242,'Footnotes list'!$D$9:$E$58,2,FALSE) ) )","v":""},null,null,null,null,{"$f":"IF(TRIM(DP242)=\"\", \"\", IF(VLOOKUP(DP242,'Footnotes list'!$D$9:$E$58,2,FALSE)=0,\"\",VLOOKUP(DP242,'Footnotes list'!$D$9:$E$58,2,FALSE) ) )","v":""},null,null,null,null,{"$f":"IF(TRIM(DU242)=\"\", \"\", IF(VLOOKUP(DU242,'Footnotes list'!$D$9:$E$58,2,FALSE)=0,\"\",VLOOKUP(DU242,'Footnotes list'!$D$9:$E$58,2,FALSE) ) )","v":""},null,null,null,null,{"$f":"IF(TRIM(DZ242)=\"\", \"\", IF(VLOOKUP(DZ242,'Footnotes list'!$D$9:$E$58,2,FALSE)=0,\"\",VLOOKUP(DZ242,'Footnotes list'!$D$9:$E$58,2,FALSE) ) )","v":""},null,null,null,null,{"$f":"IF(TRIM(EE242)=\"\", \"\", IF(VLOOKUP(EE242,'Footnotes list'!$D$9:$E$58,2,FALSE)=0,\"\",VLOOKUP(EE242,'Footnotes list'!$D$9:$E$58,2,FALSE) ) )","v":""},null,null,null,null,{"$f":"IF(TRIM(EJ242)=\"\", \"\", IF(VLOOKUP(EJ242,'Footnotes list'!$D$9:$E$58,2,FALSE)=0,\"\",VLOOKUP(EJ242,'Footnotes list'!$D$9:$E$58,2,FALSE) ) )","v":""},null,null,null,null,{"$f":"IF(TRIM(EO242)=\"\", \"\", IF(VLOOKUP(EO242,'Footnotes list'!$D$9:$E$58,2,FALSE)=0,\"\",VLOOKUP(EO242,'Footnotes list'!$D$9:$E$58,2,FALSE) ) )","v":""},null,null,null,null,{"$f":"IF(TRIM(ET242)=\"\", \"\", IF(VLOOKUP(ET242,'Footnotes list'!$D$9:$E$58,2,FALSE)=0,\"\",VLOOKUP(ET242,'Footnotes list'!$D$9:$E$58,2,FALSE) ) )","v":""},null,null,null,null,{"$f":"IF(TRIM(EY242)=\"\", \"\", IF(VLOOKUP(EY242,'Footnotes list'!$D$9:$E$58,2,FALSE)=0,\"\",VLOOKUP(EY242,'Footnotes list'!$D$9:$E$58,2,FALSE) ) )","v":""}]
[null,null,"M72","MKT","market activities, including:",null,null,null,null,null,{"$f":"IF(TRIM(J243)=\"\", \"\", IF(VLOOKUP(J243,'Footnotes list'!$D$9:$E$58,2,FALSE)=0,\"\",VLOOKUP(J243,'Footnotes list'!$D$9:$E$58,2,FALSE) ) )","v":""},null,null,null,null,{"$f":"IF(TRIM(O243)=\"\", \"\", IF(VLOOKUP(O243,'Footnotes list'!$D$9:$E$58,2,FALSE)=0,\"\",VLOOKUP(O243,'Footnotes list'!$D$9:$E$58,2,FALSE) ) )","v":""},null,null,null,null,{"$f":"IF(TRIM(T243)=\"\", \"\", IF(VLOOKUP(T243,'Footnotes list'!$D$9:$E$58,2,FALSE)=0,\"\",VLOOKUP(T243,'Footnotes list'!$D$9:$E$58,2,FALSE) ) )","v":""},null,null,null,null,{"$f":"IF(TRIM(Y243)=\"\", \"\", IF(VLOOKUP(Y243,'Footnotes list'!$D$9:$E$58,2,FALSE)=0,\"\",VLOOKUP(Y243,'Footnotes list'!$D$9:$E$58,2,FALSE) ) )","v":""},null,null,null,null,{"$f":"IF(TRIM(AD243)=\"\", \"\", IF(VLOOKUP(AD243,'Footnotes list'!$D$9:$E$58,2,FALSE)=0,\"\",VLOOKUP(AD243,'Footnotes list'!$D$9:$E$58,2,FALSE) ) )","v":""},null,null,null,null,{"$f":"IF(TRIM(AI243)=\"\", \"\", IF(VLOOKUP(AI243,'Footnotes list'!$D$9:$E$58,2,FALSE)=0,\"\",VLOOKUP(AI243,'Footnotes list'!$D$9:$E$58,2,FALSE) ) )","v":""},null,null,null,null,{"$f":"IF(TRIM(AN243)=\"\", \"\", IF(VLOOKUP(AN243,'Footnotes list'!$D$9:$E$58,2,FALSE)=0,\"\",VLOOKUP(AN243,'Footnotes list'!$D$9:$E$58,2,FALSE) ) )","v":""},null,null,null,null,{"$f":"IF(TRIM(AS243)=\"\", \"\", IF(VLOOKUP(AS243,'Footnotes list'!$D$9:$E$58,2,FALSE)=0,\"\",VLOOKUP(AS243,'Footnotes list'!$D$9:$E$58,2,FALSE) ) )","v":""},null,null,null,null,{"$f":"IF(TRIM(AX243)=\"\", \"\", IF(VLOOKUP(AX243,'Footnotes list'!$D$9:$E$58,2,FALSE)=0,\"\",VLOOKUP(AX243,'Footnotes list'!$D$9:$E$58,2,FALSE) ) )","v":""},null,null,null,null,{"$f":"IF(TRIM(BC243)=\"\", \"\", IF(VLOOKUP(BC243,'Footnotes list'!$D$9:$E$58,2,FALSE)=0,\"\",VLOOKUP(BC243,'Footnotes list'!$D$9:$E$58,2,FALSE) ) )","v":""},null,null,null,null,{"$f":"IF(TRIM(BH243)=\"\", \"\", IF(VLOOKUP(BH243,'Footnotes list'!$D$9:$E$58,2,FALSE)=0,\"\",VLOOKUP(BH243,'Footnotes list'!$D$9:$E$58,2,FALSE) ) )","v":""},null,null,null,null,{"$f":"IF(TRIM(BM243)=\"\", \"\", IF(VLOOKUP(BM243,'Footnotes list'!$D$9:$E$58,2,FALSE)=0,\"\",VLOOKUP(BM243,'Footnotes list'!$D$9:$E$58,2,FALSE) ) )","v":""},null,null,null,null,{"$f":"IF(TRIM(BR243)=\"\", \"\", IF(VLOOKUP(BR243,'Footnotes list'!$D$9:$E$58,2,FALSE)=0,\"\",VLOOKUP(BR243,'Footnotes list'!$D$9:$E$58,2,FALSE) ) )","v":""},null,null,null,null,{"$f":"IF(TRIM(BW243)=\"\", \"\", IF(VLOOKUP(BW243,'Footnotes list'!$D$9:$E$58,2,FALSE)=0,\"\",VLOOKUP(BW243,'Footnotes list'!$D$9:$E$58,2,FALSE) ) )","v":""},null,null,null,null,{"$f":"IF(TRIM(CB243)=\"\", \"\", IF(VLOOKUP(CB243,'Footnotes list'!$D$9:$E$58,2,FALSE)=0,\"\",VLOOKUP(CB243,'Footnotes list'!$D$9:$E$58,2,FALSE) ) )","v":""},null,null,null,null,{"$f":"IF(TRIM(CG243)=\"\", \"\", IF(VLOOKUP(CG243,'Footnotes list'!$D$9:$E$58,2,FALSE)=0,\"\",VLOOKUP(CG243,'Footnotes list'!$D$9:$E$58,2,FALSE) ) )","v":""},null,null,null,null,{"$f":"IF(TRIM(CL243)=\"\", \"\", IF(VLOOKUP(CL243,'Footnotes list'!$D$9:$E$58,2,FALSE)=0,\"\",VLOOKUP(CL243,'Footnotes list'!$D$9:$E$58,2,FALSE) ) )","v":""},null,null,null,null,{"$f":"IF(TRIM(CQ243)=\"\", \"\", IF(VLOOKUP(CQ243,'Footnotes list'!$D$9:$E$58,2,FALSE)=0,\"\",VLOOKUP(CQ243,'Footnotes list'!$D$9:$E$58,2,FALSE) ) )","v":""},null,null,null,null,{"$f":"IF(TRIM(CV243)=\"\", \"\", IF(VLOOKUP(CV243,'Footnotes list'!$D$9:$E$58,2,FALSE)=0,\"\",VLOOKUP(CV243,'Footnotes list'!$D$9:$E$58,2,FALSE) ) )","v":""},null,null,null,null,{"$f":"IF(TRIM(DA243)=\"\", \"\", IF(VLOOKUP(DA243,'Footnotes list'!$D$9:$E$58,2,FALSE)=0,\"\",VLOOKUP(DA243,'Footnotes list'!$D$9:$E$58,2,FALSE) ) )","v":""},null,null,null,null,{"$f":"IF(TRIM(DF243)=\"\", \"\", IF(VLOOKUP(DF243,'Footnotes list'!$D$9:$E$58,2,FALSE)=0,\"\",VLOOKUP(DF243,'Footnotes list'!$D$9:$E$58,2,FALSE) ) )","v":""},null,null,null,null,{"$f":"IF(TRIM(DK243)=\"\", \"\", IF(VLOOKUP(DK243,'Footnotes list'!$D$9:$E$58,2,FALSE)=0,\"\",VLOOKUP(DK243,'Footnotes list'!$D$9:$E$58,2,FALSE) ) )","v":""},null,null,null,null,{"$f":"IF(TRIM(DP243)=\"\", \"\", IF(VLOOKUP(DP243,'Footnotes list'!$D$9:$E$58,2,FALSE)=0,\"\",VLOOKUP(DP243,'Footnotes list'!$D$9:$E$58,2,FALSE) ) )","v":""},null,null,null,null,{"$f":"IF(TRIM(DU243)=\"\", \"\", IF(VLOOKUP(DU243,'Footnotes list'!$D$9:$E$58,2,FALSE)=0,\"\",VLOOKUP(DU243,'Footnotes list'!$D$9:$E$58,2,FALSE) ) )","v":""},null,null,null,null,{"$f":"IF(TRIM(DZ243)=\"\", \"\", IF(VLOOKUP(DZ243,'Footnotes list'!$D$9:$E$58,2,FALSE)=0,\"\",VLOOKUP(DZ243,'Footnotes list'!$D$9:$E$58,2,FALSE) ) )","v":""},null,null,null,null,{"$f":"IF(TRIM(EE243)=\"\", \"\", IF(VLOOKUP(EE243,'Footnotes list'!$D$9:$E$58,2,FALSE)=0,\"\",VLOOKUP(EE243,'Footnotes list'!$D$9:$E$58,2,FALSE) ) )","v":""},null,null,null,null,{"$f":"IF(TRIM(EJ243)=\"\", \"\", IF(VLOOKUP(EJ243,'Footnotes list'!$D$9:$E$58,2,FALSE)=0,\"\",VLOOKUP(EJ243,'Footnotes list'!$D$9:$E$58,2,FALSE) ) )","v":""},null,null,null,null,{"$f":"IF(TRIM(EO243)=\"\", \"\", IF(VLOOKUP(EO243,'Footnotes list'!$D$9:$E$58,2,FALSE)=0,\"\",VLOOKUP(EO243,'Footnotes list'!$D$9:$E$58,2,FALSE) ) )","v":""},null,null,null,null,{"$f":"IF(TRIM(ET243)=\"\", \"\", IF(VLOOKUP(ET243,'Footnotes list'!$D$9:$E$58,2,FALSE)=0,\"\",VLOOKUP(ET243,'Footnotes list'!$D$9:$E$58,2,FALSE) ) )","v":""},null,null,null,null,{"$f":"IF(TRIM(EY243)=\"\", \"\", IF(VLOOKUP(EY243,'Footnotes list'!$D$9:$E$58,2,FALSE)=0,\"\",VLOOKUP(EY243,'Footnotes list'!$D$9:$E$58,2,FALSE) ) )","v":""}]
[null,null,"M72","ES_CS","environmental specific services",null,null,null,null,null,{"$f":"IF(TRIM(J244)=\"\", \"\", IF(VLOOKUP(J244,'Footnotes list'!$D$9:$E$58,2,FALSE)=0,\"\",VLOOKUP(J244,'Footnotes list'!$D$9:$E$58,2,FALSE) ) )","v":""},null,null,null,null,{"$f":"IF(TRIM(O244)=\"\", \"\", IF(VLOOKUP(O244,'Footnotes list'!$D$9:$E$58,2,FALSE)=0,\"\",VLOOKUP(O244,'Footnotes list'!$D$9:$E$58,2,FALSE) ) )","v":""},null,null,null,null,{"$f":"IF(TRIM(T244)=\"\", \"\", IF(VLOOKUP(T244,'Footnotes list'!$D$9:$E$58,2,FALSE)=0,\"\",VLOOKUP(T244,'Footnotes list'!$D$9:$E$58,2,FALSE) ) )","v":""},null,null,null,null,{"$f":"IF(TRIM(Y244)=\"\", \"\", IF(VLOOKUP(Y244,'Footnotes list'!$D$9:$E$58,2,FALSE)=0,\"\",VLOOKUP(Y244,'Footnotes list'!$D$9:$E$58,2,FALSE) ) )","v":""},null,null,null,null,{"$f":"IF(TRIM(AD244)=\"\", \"\", IF(VLOOKUP(AD244,'Footnotes list'!$D$9:$E$58,2,FALSE)=0,\"\",VLOOKUP(AD244,'Footnotes list'!$D$9:$E$58,2,FALSE) ) )","v":""},null,null,null,null,{"$f":"IF(TRIM(AI244)=\"\", \"\", IF(VLOOKUP(AI244,'Footnotes list'!$D$9:$E$58,2,FALSE)=0,\"\",VLOOKUP(AI244,'Footnotes list'!$D$9:$E$58,2,FALSE) ) )","v":""},null,null,null,null,{"$f":"IF(TRIM(AN244)=\"\", \"\", IF(VLOOKUP(AN244,'Footnotes list'!$D$9:$E$58,2,FALSE)=0,\"\",VLOOKUP(AN244,'Footnotes list'!$D$9:$E$58,2,FALSE) ) )","v":""},null,null,null,null,{"$f":"IF(TRIM(AS244)=\"\", \"\", IF(VLOOKUP(AS244,'Footnotes list'!$D$9:$E$58,2,FALSE)=0,\"\",VLOOKUP(AS244,'Footnotes list'!$D$9:$E$58,2,FALSE) ) )","v":""},null,null,null,null,{"$f":"IF(TRIM(AX244)=\"\", \"\", IF(VLOOKUP(AX244,'Footnotes list'!$D$9:$E$58,2,FALSE)=0,\"\",VLOOKUP(AX244,'Footnotes list'!$D$9:$E$58,2,FALSE) ) )","v":""},null,null,null,null,{"$f":"IF(TRIM(BC244)=\"\", \"\", IF(VLOOKUP(BC244,'Footnotes list'!$D$9:$E$58,2,FALSE)=0,\"\",VLOOKUP(BC244,'Footnotes list'!$D$9:$E$58,2,FALSE) ) )","v":""},null,null,null,null,{"$f":"IF(TRIM(BH244)=\"\", \"\", IF(VLOOKUP(BH244,'Footnotes list'!$D$9:$E$58,2,FALSE)=0,\"\",VLOOKUP(BH244,'Footnotes list'!$D$9:$E$58,2,FALSE) ) )","v":""},null,null,null,null,{"$f":"IF(TRIM(BM244)=\"\", \"\", IF(VLOOKUP(BM244,'Footnotes list'!$D$9:$E$58,2,FALSE)=0,\"\",VLOOKUP(BM244,'Footnotes list'!$D$9:$E$58,2,FALSE) ) )","v":""},null,null,null,null,{"$f":"IF(TRIM(BR244)=\"\", \"\", IF(VLOOKUP(BR244,'Footnotes list'!$D$9:$E$58,2,FALSE)=0,\"\",VLOOKUP(BR244,'Footnotes list'!$D$9:$E$58,2,FALSE) ) )","v":""},null,null,null,null,{"$f":"IF(TRIM(BW244)=\"\", \"\", IF(VLOOKUP(BW244,'Footnotes list'!$D$9:$E$58,2,FALSE)=0,\"\",VLOOKUP(BW244,'Footnotes list'!$D$9:$E$58,2,FALSE) ) )","v":""},null,null,null,null,{"$f":"IF(TRIM(CB244)=\"\", \"\", IF(VLOOKUP(CB244,'Footnotes list'!$D$9:$E$58,2,FALSE)=0,\"\",VLOOKUP(CB244,'Footnotes list'!$D$9:$E$58,2,FALSE) ) )","v":""},null,null,null,null,{"$f":"IF(TRIM(CG244)=\"\", \"\", IF(VLOOKUP(CG244,'Footnotes list'!$D$9:$E$58,2,FALSE)=0,\"\",VLOOKUP(CG244,'Footnotes list'!$D$9:$E$58,2,FALSE) ) )","v":""},null,null,null,null,{"$f":"IF(TRIM(CL244)=\"\", \"\", IF(VLOOKUP(CL244,'Footnotes list'!$D$9:$E$58,2,FALSE)=0,\"\",VLOOKUP(CL244,'Footnotes list'!$D$9:$E$58,2,FALSE) ) )","v":""},null,null,null,null,{"$f":"IF(TRIM(CQ244)=\"\", \"\", IF(VLOOKUP(CQ244,'Footnotes list'!$D$9:$E$58,2,FALSE)=0,\"\",VLOOKUP(CQ244,'Footnotes list'!$D$9:$E$58,2,FALSE) ) )","v":""},null,null,null,null,{"$f":"IF(TRIM(CV244)=\"\", \"\", IF(VLOOKUP(CV244,'Footnotes list'!$D$9:$E$58,2,FALSE)=0,\"\",VLOOKUP(CV244,'Footnotes list'!$D$9:$E$58,2,FALSE) ) )","v":""},null,null,null,null,{"$f":"IF(TRIM(DA244)=\"\", \"\", IF(VLOOKUP(DA244,'Footnotes list'!$D$9:$E$58,2,FALSE)=0,\"\",VLOOKUP(DA244,'Footnotes list'!$D$9:$E$58,2,FALSE) ) )","v":""},null,null,null,null,{"$f":"IF(TRIM(DF244)=\"\", \"\", IF(VLOOKUP(DF244,'Footnotes list'!$D$9:$E$58,2,FALSE)=0,\"\",VLOOKUP(DF244,'Footnotes list'!$D$9:$E$58,2,FALSE) ) )","v":""},null,null,null,null,{"$f":"IF(TRIM(DK244)=\"\", \"\", IF(VLOOKUP(DK244,'Footnotes list'!$D$9:$E$58,2,FALSE)=0,\"\",VLOOKUP(DK244,'Footnotes list'!$D$9:$E$58,2,FALSE) ) )","v":""},null,null,null,null,{"$f":"IF(TRIM(DP244)=\"\", \"\", IF(VLOOKUP(DP244,'Footnotes list'!$D$9:$E$58,2,FALSE)=0,\"\",VLOOKUP(DP244,'Footnotes list'!$D$9:$E$58,2,FALSE) ) )","v":""},null,null,null,null,{"$f":"IF(TRIM(DU244)=\"\", \"\", IF(VLOOKUP(DU244,'Footnotes list'!$D$9:$E$58,2,FALSE)=0,\"\",VLOOKUP(DU244,'Footnotes list'!$D$9:$E$58,2,FALSE) ) )","v":""},null,null,null,null,{"$f":"IF(TRIM(DZ244)=\"\", \"\", IF(VLOOKUP(DZ244,'Footnotes list'!$D$9:$E$58,2,FALSE)=0,\"\",VLOOKUP(DZ244,'Footnotes list'!$D$9:$E$58,2,FALSE) ) )","v":""},null,null,null,null,{"$f":"IF(TRIM(EE244)=\"\", \"\", IF(VLOOKUP(EE244,'Footnotes list'!$D$9:$E$58,2,FALSE)=0,\"\",VLOOKUP(EE244,'Footnotes list'!$D$9:$E$58,2,FALSE) ) )","v":""},null,null,null,null,{"$f":"IF(TRIM(EJ244)=\"\", \"\", IF(VLOOKUP(EJ244,'Footnotes list'!$D$9:$E$58,2,FALSE)=0,\"\",VLOOKUP(EJ244,'Footnotes list'!$D$9:$E$58,2,FALSE) ) )","v":""},null,null,null,null,{"$f":"IF(TRIM(EO244)=\"\", \"\", IF(VLOOKUP(EO244,'Footnotes list'!$D$9:$E$58,2,FALSE)=0,\"\",VLOOKUP(EO244,'Footnotes list'!$D$9:$E$58,2,FALSE) ) )","v":""},null,null,null,null,{"$f":"IF(TRIM(ET244)=\"\", \"\", IF(VLOOKUP(ET244,'Footnotes list'!$D$9:$E$58,2,FALSE)=0,\"\",VLOOKUP(ET244,'Footnotes list'!$D$9:$E$58,2,FALSE) ) )","v":""},null,null,null,null,{"$f":"IF(TRIM(EY244)=\"\", \"\", IF(VLOOKUP(EY244,'Footnotes list'!$D$9:$E$58,2,FALSE)=0,\"\",VLOOKUP(EY244,'Footnotes list'!$D$9:$E$58,2,FALSE) ) )","v":""}]
[null,null,"M72","C_REP","cleaner and resource efficient products",null,null,null,null,null,{"$f":"IF(TRIM(J245)=\"\", \"\", IF(VLOOKUP(J245,'Footnotes list'!$D$9:$E$58,2,FALSE)=0,\"\",VLOOKUP(J245,'Footnotes list'!$D$9:$E$58,2,FALSE) ) )","v":""},null,null,null,null,{"$f":"IF(TRIM(O245)=\"\", \"\", IF(VLOOKUP(O245,'Footnotes list'!$D$9:$E$58,2,FALSE)=0,\"\",VLOOKUP(O245,'Footnotes list'!$D$9:$E$58,2,FALSE) ) )","v":""},null,null,null,null,{"$f":"IF(TRIM(T245)=\"\", \"\", IF(VLOOKUP(T245,'Footnotes list'!$D$9:$E$58,2,FALSE)=0,\"\",VLOOKUP(T245,'Footnotes list'!$D$9:$E$58,2,FALSE) ) )","v":""},null,null,null,null,{"$f":"IF(TRIM(Y245)=\"\", \"\", IF(VLOOKUP(Y245,'Footnotes list'!$D$9:$E$58,2,FALSE)=0,\"\",VLOOKUP(Y245,'Footnotes list'!$D$9:$E$58,2,FALSE) ) )","v":""},null,null,null,null,{"$f":"IF(TRIM(AD245)=\"\", \"\", IF(VLOOKUP(AD245,'Footnotes list'!$D$9:$E$58,2,FALSE)=0,\"\",VLOOKUP(AD245,'Footnotes list'!$D$9:$E$58,2,FALSE) ) )","v":""},null,null,null,null,{"$f":"IF(TRIM(AI245)=\"\", \"\", IF(VLOOKUP(AI245,'Footnotes list'!$D$9:$E$58,2,FALSE)=0,\"\",VLOOKUP(AI245,'Footnotes list'!$D$9:$E$58,2,FALSE) ) )","v":""},null,null,null,null,{"$f":"IF(TRIM(AN245)=\"\", \"\", IF(VLOOKUP(AN245,'Footnotes list'!$D$9:$E$58,2,FALSE)=0,\"\",VLOOKUP(AN245,'Footnotes list'!$D$9:$E$58,2,FALSE) ) )","v":""},null,null,null,null,{"$f":"IF(TRIM(AS245)=\"\", \"\", IF(VLOOKUP(AS245,'Footnotes list'!$D$9:$E$58,2,FALSE)=0,\"\",VLOOKUP(AS245,'Footnotes list'!$D$9:$E$58,2,FALSE) ) )","v":""},null,null,null,null,{"$f":"IF(TRIM(AX245)=\"\", \"\", IF(VLOOKUP(AX245,'Footnotes list'!$D$9:$E$58,2,FALSE)=0,\"\",VLOOKUP(AX245,'Footnotes list'!$D$9:$E$58,2,FALSE) ) )","v":""},null,null,null,null,{"$f":"IF(TRIM(BC245)=\"\", \"\", IF(VLOOKUP(BC245,'Footnotes list'!$D$9:$E$58,2,FALSE)=0,\"\",VLOOKUP(BC245,'Footnotes list'!$D$9:$E$58,2,FALSE) ) )","v":""},null,null,null,null,{"$f":"IF(TRIM(BH245)=\"\", \"\", IF(VLOOKUP(BH245,'Footnotes list'!$D$9:$E$58,2,FALSE)=0,\"\",VLOOKUP(BH245,'Footnotes list'!$D$9:$E$58,2,FALSE) ) )","v":""},null,null,null,null,{"$f":"IF(TRIM(BM245)=\"\", \"\", IF(VLOOKUP(BM245,'Footnotes list'!$D$9:$E$58,2,FALSE)=0,\"\",VLOOKUP(BM245,'Footnotes list'!$D$9:$E$58,2,FALSE) ) )","v":""},null,null,null,null,{"$f":"IF(TRIM(BR245)=\"\", \"\", IF(VLOOKUP(BR245,'Footnotes list'!$D$9:$E$58,2,FALSE)=0,\"\",VLOOKUP(BR245,'Footnotes list'!$D$9:$E$58,2,FALSE) ) )","v":""},null,null,null,null,{"$f":"IF(TRIM(BW245)=\"\", \"\", IF(VLOOKUP(BW245,'Footnotes list'!$D$9:$E$58,2,FALSE)=0,\"\",VLOOKUP(BW245,'Footnotes list'!$D$9:$E$58,2,FALSE) ) )","v":""},null,null,null,null,{"$f":"IF(TRIM(CB245)=\"\", \"\", IF(VLOOKUP(CB245,'Footnotes list'!$D$9:$E$58,2,FALSE)=0,\"\",VLOOKUP(CB245,'Footnotes list'!$D$9:$E$58,2,FALSE) ) )","v":""},null,null,null,null,{"$f":"IF(TRIM(CG245)=\"\", \"\", IF(VLOOKUP(CG245,'Footnotes list'!$D$9:$E$58,2,FALSE)=0,\"\",VLOOKUP(CG245,'Footnotes list'!$D$9:$E$58,2,FALSE) ) )","v":""},null,null,null,null,{"$f":"IF(TRIM(CL245)=\"\", \"\", IF(VLOOKUP(CL245,'Footnotes list'!$D$9:$E$58,2,FALSE)=0,\"\",VLOOKUP(CL245,'Footnotes list'!$D$9:$E$58,2,FALSE) ) )","v":""},null,null,null,null,{"$f":"IF(TRIM(CQ245)=\"\", \"\", IF(VLOOKUP(CQ245,'Footnotes list'!$D$9:$E$58,2,FALSE)=0,\"\",VLOOKUP(CQ245,'Footnotes list'!$D$9:$E$58,2,FALSE) ) )","v":""},null,null,null,null,{"$f":"IF(TRIM(CV245)=\"\", \"\", IF(VLOOKUP(CV245,'Footnotes list'!$D$9:$E$58,2,FALSE)=0,\"\",VLOOKUP(CV245,'Footnotes list'!$D$9:$E$58,2,FALSE) ) )","v":""},null,null,null,null,{"$f":"IF(TRIM(DA245)=\"\", \"\", IF(VLOOKUP(DA245,'Footnotes list'!$D$9:$E$58,2,FALSE)=0,\"\",VLOOKUP(DA245,'Footnotes list'!$D$9:$E$58,2,FALSE) ) )","v":""},null,null,null,null,{"$f":"IF(TRIM(DF245)=\"\", \"\", IF(VLOOKUP(DF245,'Footnotes list'!$D$9:$E$58,2,FALSE)=0,\"\",VLOOKUP(DF245,'Footnotes list'!$D$9:$E$58,2,FALSE) ) )","v":""},null,null,null,null,{"$f":"IF(TRIM(DK245)=\"\", \"\", IF(VLOOKUP(DK245,'Footnotes list'!$D$9:$E$58,2,FALSE)=0,\"\",VLOOKUP(DK245,'Footnotes list'!$D$9:$E$58,2,FALSE) ) )","v":""},null,null,null,null,{"$f":"IF(TRIM(DP245)=\"\", \"\", IF(VLOOKUP(DP245,'Footnotes list'!$D$9:$E$58,2,FALSE)=0,\"\",VLOOKUP(DP245,'Footnotes list'!$D$9:$E$58,2,FALSE) ) )","v":""},null,null,null,null,{"$f":"IF(TRIM(DU245)=\"\", \"\", IF(VLOOKUP(DU245,'Footnotes list'!$D$9:$E$58,2,FALSE)=0,\"\",VLOOKUP(DU245,'Footnotes list'!$D$9:$E$58,2,FALSE) ) )","v":""},null,null,null,null,{"$f":"IF(TRIM(DZ245)=\"\", \"\", IF(VLOOKUP(DZ245,'Footnotes list'!$D$9:$E$58,2,FALSE)=0,\"\",VLOOKUP(DZ245,'Footnotes list'!$D$9:$E$58,2,FALSE) ) )","v":""},null,null,null,null,{"$f":"IF(TRIM(EE245)=\"\", \"\", IF(VLOOKUP(EE245,'Footnotes list'!$D$9:$E$58,2,FALSE)=0,\"\",VLOOKUP(EE245,'Footnotes list'!$D$9:$E$58,2,FALSE) ) )","v":""},null,null,null,null,{"$f":"IF(TRIM(EJ245)=\"\", \"\", IF(VLOOKUP(EJ245,'Footnotes list'!$D$9:$E$58,2,FALSE)=0,\"\",VLOOKUP(EJ245,'Footnotes list'!$D$9:$E$58,2,FALSE) ) )","v":""},null,null,null,null,{"$f":"IF(TRIM(EO245)=\"\", \"\", IF(VLOOKUP(EO245,'Footnotes list'!$D$9:$E$58,2,FALSE)=0,\"\",VLOOKUP(EO245,'Footnotes list'!$D$9:$E$58,2,FALSE) ) )","v":""},null,null,null,null,{"$f":"IF(TRIM(ET245)=\"\", \"\", IF(VLOOKUP(ET245,'Footnotes list'!$D$9:$E$58,2,FALSE)=0,\"\",VLOOKUP(ET245,'Footnotes list'!$D$9:$E$58,2,FALSE) ) )","v":""},null,null,null,null,{"$f":"IF(TRIM(EY245)=\"\", \"\", IF(VLOOKUP(EY245,'Footnotes list'!$D$9:$E$58,2,FALSE)=0,\"\",VLOOKUP(EY245,'Footnotes list'!$D$9:$E$58,2,FALSE) ) )","v":""}]
[null,null,"M73-M75","TOT_EGSS","Total M73-M75 - Advertising and market research; Other professional, scientific and technical activities; Veterinary activities, of which:",null,null,null,null,null,{"$f":"IF(TRIM(J246)=\"\", \"\", IF(VLOOKUP(J246,'Footnotes list'!$D$9:$E$58,2,FALSE)=0,\"\",VLOOKUP(J246,'Footnotes list'!$D$9:$E$58,2,FALSE) ) )","v":""},null,null,null,null,{"$f":"IF(TRIM(O246)=\"\", \"\", IF(VLOOKUP(O246,'Footnotes list'!$D$9:$E$58,2,FALSE)=0,\"\",VLOOKUP(O246,'Footnotes list'!$D$9:$E$58,2,FALSE) ) )","v":""},null,null,null,null,{"$f":"IF(TRIM(T246)=\"\", \"\", IF(VLOOKUP(T246,'Footnotes list'!$D$9:$E$58,2,FALSE)=0,\"\",VLOOKUP(T246,'Footnotes list'!$D$9:$E$58,2,FALSE) ) )","v":""},null,null,null,null,{"$f":"IF(TRIM(Y246)=\"\", \"\", IF(VLOOKUP(Y246,'Footnotes list'!$D$9:$E$58,2,FALSE)=0,\"\",VLOOKUP(Y246,'Footnotes list'!$D$9:$E$58,2,FALSE) ) )","v":""},null,null,null,null,{"$f":"IF(TRIM(AD246)=\"\", \"\", IF(VLOOKUP(AD246,'Footnotes list'!$D$9:$E$58,2,FALSE)=0,\"\",VLOOKUP(AD246,'Footnotes list'!$D$9:$E$58,2,FALSE) ) )","v":""},null,null,null,null,{"$f":"IF(TRIM(AI246)=\"\", \"\", IF(VLOOKUP(AI246,'Footnotes list'!$D$9:$E$58,2,FALSE)=0,\"\",VLOOKUP(AI246,'Footnotes list'!$D$9:$E$58,2,FALSE) ) )","v":""},null,null,null,null,{"$f":"IF(TRIM(AN246)=\"\", \"\", IF(VLOOKUP(AN246,'Footnotes list'!$D$9:$E$58,2,FALSE)=0,\"\",VLOOKUP(AN246,'Footnotes list'!$D$9:$E$58,2,FALSE) ) )","v":""},null,null,null,null,{"$f":"IF(TRIM(AS246)=\"\", \"\", IF(VLOOKUP(AS246,'Footnotes list'!$D$9:$E$58,2,FALSE)=0,\"\",VLOOKUP(AS246,'Footnotes list'!$D$9:$E$58,2,FALSE) ) )","v":""},null,null,null,null,{"$f":"IF(TRIM(AX246)=\"\", \"\", IF(VLOOKUP(AX246,'Footnotes list'!$D$9:$E$58,2,FALSE)=0,\"\",VLOOKUP(AX246,'Footnotes list'!$D$9:$E$58,2,FALSE) ) )","v":""},null,null,null,null,{"$f":"IF(TRIM(BC246)=\"\", \"\", IF(VLOOKUP(BC246,'Footnotes list'!$D$9:$E$58,2,FALSE)=0,\"\",VLOOKUP(BC246,'Footnotes list'!$D$9:$E$58,2,FALSE) ) )","v":""},null,null,null,null,{"$f":"IF(TRIM(BH246)=\"\", \"\", IF(VLOOKUP(BH246,'Footnotes list'!$D$9:$E$58,2,FALSE)=0,\"\",VLOOKUP(BH246,'Footnotes list'!$D$9:$E$58,2,FALSE) ) )","v":""},null,null,null,null,{"$f":"IF(TRIM(BM246)=\"\", \"\", IF(VLOOKUP(BM246,'Footnotes list'!$D$9:$E$58,2,FALSE)=0,\"\",VLOOKUP(BM246,'Footnotes list'!$D$9:$E$58,2,FALSE) ) )","v":""},null,null,null,null,{"$f":"IF(TRIM(BR246)=\"\", \"\", IF(VLOOKUP(BR246,'Footnotes list'!$D$9:$E$58,2,FALSE)=0,\"\",VLOOKUP(BR246,'Footnotes list'!$D$9:$E$58,2,FALSE) ) )","v":""},null,null,null,null,{"$f":"IF(TRIM(BW246)=\"\", \"\", IF(VLOOKUP(BW246,'Footnotes list'!$D$9:$E$58,2,FALSE)=0,\"\",VLOOKUP(BW246,'Footnotes list'!$D$9:$E$58,2,FALSE) ) )","v":""},null,null,null,null,{"$f":"IF(TRIM(CB246)=\"\", \"\", IF(VLOOKUP(CB246,'Footnotes list'!$D$9:$E$58,2,FALSE)=0,\"\",VLOOKUP(CB246,'Footnotes list'!$D$9:$E$58,2,FALSE) ) )","v":""},null,null,null,null,{"$f":"IF(TRIM(CG246)=\"\", \"\", IF(VLOOKUP(CG246,'Footnotes list'!$D$9:$E$58,2,FALSE)=0,\"\",VLOOKUP(CG246,'Footnotes list'!$D$9:$E$58,2,FALSE) ) )","v":""},null,null,null,null,{"$f":"IF(TRIM(CL246)=\"\", \"\", IF(VLOOKUP(CL246,'Footnotes list'!$D$9:$E$58,2,FALSE)=0,\"\",VLOOKUP(CL246,'Footnotes list'!$D$9:$E$58,2,FALSE) ) )","v":""},null,null,null,null,{"$f":"IF(TRIM(CQ246)=\"\", \"\", IF(VLOOKUP(CQ246,'Footnotes list'!$D$9:$E$58,2,FALSE)=0,\"\",VLOOKUP(CQ246,'Footnotes list'!$D$9:$E$58,2,FALSE) ) )","v":""},null,null,null,null,{"$f":"IF(TRIM(CV246)=\"\", \"\", IF(VLOOKUP(CV246,'Footnotes list'!$D$9:$E$58,2,FALSE)=0,\"\",VLOOKUP(CV246,'Footnotes list'!$D$9:$E$58,2,FALSE) ) )","v":""},null,null,null,null,{"$f":"IF(TRIM(DA246)=\"\", \"\", IF(VLOOKUP(DA246,'Footnotes list'!$D$9:$E$58,2,FALSE)=0,\"\",VLOOKUP(DA246,'Footnotes list'!$D$9:$E$58,2,FALSE) ) )","v":""},null,null,null,null,{"$f":"IF(TRIM(DF246)=\"\", \"\", IF(VLOOKUP(DF246,'Footnotes list'!$D$9:$E$58,2,FALSE)=0,\"\",VLOOKUP(DF246,'Footnotes list'!$D$9:$E$58,2,FALSE) ) )","v":""},null,null,null,null,{"$f":"IF(TRIM(DK246)=\"\", \"\", IF(VLOOKUP(DK246,'Footnotes list'!$D$9:$E$58,2,FALSE)=0,\"\",VLOOKUP(DK246,'Footnotes list'!$D$9:$E$58,2,FALSE) ) )","v":""},null,null,null,null,{"$f":"IF(TRIM(DP246)=\"\", \"\", IF(VLOOKUP(DP246,'Footnotes list'!$D$9:$E$58,2,FALSE)=0,\"\",VLOOKUP(DP246,'Footnotes list'!$D$9:$E$58,2,FALSE) ) )","v":""},null,null,null,null,{"$f":"IF(TRIM(DU246)=\"\", \"\", IF(VLOOKUP(DU246,'Footnotes list'!$D$9:$E$58,2,FALSE)=0,\"\",VLOOKUP(DU246,'Footnotes list'!$D$9:$E$58,2,FALSE) ) )","v":""},null,null,null,null,{"$f":"IF(TRIM(DZ246)=\"\", \"\", IF(VLOOKUP(DZ246,'Footnotes list'!$D$9:$E$58,2,FALSE)=0,\"\",VLOOKUP(DZ246,'Footnotes list'!$D$9:$E$58,2,FALSE) ) )","v":""},null,null,null,null,{"$f":"IF(TRIM(EE246)=\"\", \"\", IF(VLOOKUP(EE246,'Footnotes list'!$D$9:$E$58,2,FALSE)=0,\"\",VLOOKUP(EE246,'Footnotes list'!$D$9:$E$58,2,FALSE) ) )","v":""},null,null,null,null,{"$f":"IF(TRIM(EJ246)=\"\", \"\", IF(VLOOKUP(EJ246,'Footnotes list'!$D$9:$E$58,2,FALSE)=0,\"\",VLOOKUP(EJ246,'Footnotes list'!$D$9:$E$58,2,FALSE) ) )","v":""},null,null,null,null,{"$f":"IF(TRIM(EO246)=\"\", \"\", IF(VLOOKUP(EO246,'Footnotes list'!$D$9:$E$58,2,FALSE)=0,\"\",VLOOKUP(EO246,'Footnotes list'!$D$9:$E$58,2,FALSE) ) )","v":""},null,null,null,null,{"$f":"IF(TRIM(ET246)=\"\", \"\", IF(VLOOKUP(ET246,'Footnotes list'!$D$9:$E$58,2,FALSE)=0,\"\",VLOOKUP(ET246,'Footnotes list'!$D$9:$E$58,2,FALSE) ) )","v":""},null,null,null,null,{"$f":"IF(TRIM(EY246)=\"\", \"\", IF(VLOOKUP(EY246,'Footnotes list'!$D$9:$E$58,2,FALSE)=0,\"\",VLOOKUP(EY246,'Footnotes list'!$D$9:$E$58,2,FALSE) ) )","v":""}]
[null,null,"M73-M75","ANC","ancillary activities",null,null,null,null,null,{"$f":"IF(TRIM(J247)=\"\", \"\", IF(VLOOKUP(J247,'Footnotes list'!$D$9:$E$58,2,FALSE)=0,\"\",VLOOKUP(J247,'Footnotes list'!$D$9:$E$58,2,FALSE) ) )","v":""},null,null,null,null,{"$f":"IF(TRIM(O247)=\"\", \"\", IF(VLOOKUP(O247,'Footnotes list'!$D$9:$E$58,2,FALSE)=0,\"\",VLOOKUP(O247,'Footnotes list'!$D$9:$E$58,2,FALSE) ) )","v":""},null,null,null,null,{"$f":"IF(TRIM(T247)=\"\", \"\", IF(VLOOKUP(T247,'Footnotes list'!$D$9:$E$58,2,FALSE)=0,\"\",VLOOKUP(T247,'Footnotes list'!$D$9:$E$58,2,FALSE) ) )","v":""},null,null,null,null,{"$f":"IF(TRIM(Y247)=\"\", \"\", IF(VLOOKUP(Y247,'Footnotes list'!$D$9:$E$58,2,FALSE)=0,\"\",VLOOKUP(Y247,'Footnotes list'!$D$9:$E$58,2,FALSE) ) )","v":""},null,null,null,null,{"$f":"IF(TRIM(AD247)=\"\", \"\", IF(VLOOKUP(AD247,'Footnotes list'!$D$9:$E$58,2,FALSE)=0,\"\",VLOOKUP(AD247,'Footnotes list'!$D$9:$E$58,2,FALSE) ) )","v":""},null,null,null,null,{"$f":"IF(TRIM(AI247)=\"\", \"\", IF(VLOOKUP(AI247,'Footnotes list'!$D$9:$E$58,2,FALSE)=0,\"\",VLOOKUP(AI247,'Footnotes list'!$D$9:$E$58,2,FALSE) ) )","v":""},null,null,null,null,{"$f":"IF(TRIM(AN247)=\"\", \"\", IF(VLOOKUP(AN247,'Footnotes list'!$D$9:$E$58,2,FALSE)=0,\"\",VLOOKUP(AN247,'Footnotes list'!$D$9:$E$58,2,FALSE) ) )","v":""},null,null,null,null,{"$f":"IF(TRIM(AS247)=\"\", \"\", IF(VLOOKUP(AS247,'Footnotes list'!$D$9:$E$58,2,FALSE)=0,\"\",VLOOKUP(AS247,'Footnotes list'!$D$9:$E$58,2,FALSE) ) )","v":""},null,null,null,null,{"$f":"IF(TRIM(AX247)=\"\", \"\", IF(VLOOKUP(AX247,'Footnotes list'!$D$9:$E$58,2,FALSE)=0,\"\",VLOOKUP(AX247,'Footnotes list'!$D$9:$E$58,2,FALSE) ) )","v":""},null,null,null,null,{"$f":"IF(TRIM(BC247)=\"\", \"\", IF(VLOOKUP(BC247,'Footnotes list'!$D$9:$E$58,2,FALSE)=0,\"\",VLOOKUP(BC247,'Footnotes list'!$D$9:$E$58,2,FALSE) ) )","v":""},null,null,null,null,{"$f":"IF(TRIM(BH247)=\"\", \"\", IF(VLOOKUP(BH247,'Footnotes list'!$D$9:$E$58,2,FALSE)=0,\"\",VLOOKUP(BH247,'Footnotes list'!$D$9:$E$58,2,FALSE) ) )","v":""},null,null,null,null,{"$f":"IF(TRIM(BM247)=\"\", \"\", IF(VLOOKUP(BM247,'Footnotes list'!$D$9:$E$58,2,FALSE)=0,\"\",VLOOKUP(BM247,'Footnotes list'!$D$9:$E$58,2,FALSE) ) )","v":""},null,null,null,null,{"$f":"IF(TRIM(BR247)=\"\", \"\", IF(VLOOKUP(BR247,'Footnotes list'!$D$9:$E$58,2,FALSE)=0,\"\",VLOOKUP(BR247,'Footnotes list'!$D$9:$E$58,2,FALSE) ) )","v":""},null,null,null,null,{"$f":"IF(TRIM(BW247)=\"\", \"\", IF(VLOOKUP(BW247,'Footnotes list'!$D$9:$E$58,2,FALSE)=0,\"\",VLOOKUP(BW247,'Footnotes list'!$D$9:$E$58,2,FALSE) ) )","v":""},null,null,null,null,{"$f":"IF(TRIM(CB247)=\"\", \"\", IF(VLOOKUP(CB247,'Footnotes list'!$D$9:$E$58,2,FALSE)=0,\"\",VLOOKUP(CB247,'Footnotes list'!$D$9:$E$58,2,FALSE) ) )","v":""},null,null,null,null,{"$f":"IF(TRIM(CG247)=\"\", \"\", IF(VLOOKUP(CG247,'Footnotes list'!$D$9:$E$58,2,FALSE)=0,\"\",VLOOKUP(CG247,'Footnotes list'!$D$9:$E$58,2,FALSE) ) )","v":""},null,null,null,null,{"$f":"IF(TRIM(CL247)=\"\", \"\", IF(VLOOKUP(CL247,'Footnotes list'!$D$9:$E$58,2,FALSE)=0,\"\",VLOOKUP(CL247,'Footnotes list'!$D$9:$E$58,2,FALSE) ) )","v":""},null,null,null,null,{"$f":"IF(TRIM(CQ247)=\"\", \"\", IF(VLOOKUP(CQ247,'Footnotes list'!$D$9:$E$58,2,FALSE)=0,\"\",VLOOKUP(CQ247,'Footnotes list'!$D$9:$E$58,2,FALSE) ) )","v":""},null,null,null,null,{"$f":"IF(TRIM(CV247)=\"\", \"\", IF(VLOOKUP(CV247,'Footnotes list'!$D$9:$E$58,2,FALSE)=0,\"\",VLOOKUP(CV247,'Footnotes list'!$D$9:$E$58,2,FALSE) ) )","v":""},null,null,null,null,{"$f":"IF(TRIM(DA247)=\"\", \"\", IF(VLOOKUP(DA247,'Footnotes list'!$D$9:$E$58,2,FALSE)=0,\"\",VLOOKUP(DA247,'Footnotes list'!$D$9:$E$58,2,FALSE) ) )","v":""},null,null,null,null,{"$f":"IF(TRIM(DF247)=\"\", \"\", IF(VLOOKUP(DF247,'Footnotes list'!$D$9:$E$58,2,FALSE)=0,\"\",VLOOKUP(DF247,'Footnotes list'!$D$9:$E$58,2,FALSE) ) )","v":""},null,null,null,null,{"$f":"IF(TRIM(DK247)=\"\", \"\", IF(VLOOKUP(DK247,'Footnotes list'!$D$9:$E$58,2,FALSE)=0,\"\",VLOOKUP(DK247,'Footnotes list'!$D$9:$E$58,2,FALSE) ) )","v":""},null,null,null,null,{"$f":"IF(TRIM(DP247)=\"\", \"\", IF(VLOOKUP(DP247,'Footnotes list'!$D$9:$E$58,2,FALSE)=0,\"\",VLOOKUP(DP247,'Footnotes list'!$D$9:$E$58,2,FALSE) ) )","v":""},null,null,null,null,{"$f":"IF(TRIM(DU247)=\"\", \"\", IF(VLOOKUP(DU247,'Footnotes list'!$D$9:$E$58,2,FALSE)=0,\"\",VLOOKUP(DU247,'Footnotes list'!$D$9:$E$58,2,FALSE) ) )","v":""},null,null,null,null,{"$f":"IF(TRIM(DZ247)=\"\", \"\", IF(VLOOKUP(DZ247,'Footnotes list'!$D$9:$E$58,2,FALSE)=0,\"\",VLOOKUP(DZ247,'Footnotes list'!$D$9:$E$58,2,FALSE) ) )","v":""},null,null,null,null,{"$f":"IF(TRIM(EE247)=\"\", \"\", IF(VLOOKUP(EE247,'Footnotes list'!$D$9:$E$58,2,FALSE)=0,\"\",VLOOKUP(EE247,'Footnotes list'!$D$9:$E$58,2,FALSE) ) )","v":""},null,null,null,null,{"$f":"IF(TRIM(EJ247)=\"\", \"\", IF(VLOOKUP(EJ247,'Footnotes list'!$D$9:$E$58,2,FALSE)=0,\"\",VLOOKUP(EJ247,'Footnotes list'!$D$9:$E$58,2,FALSE) ) )","v":""},null,null,null,null,{"$f":"IF(TRIM(EO247)=\"\", \"\", IF(VLOOKUP(EO247,'Footnotes list'!$D$9:$E$58,2,FALSE)=0,\"\",VLOOKUP(EO247,'Footnotes list'!$D$9:$E$58,2,FALSE) ) )","v":""},null,null,null,null,{"$f":"IF(TRIM(ET247)=\"\", \"\", IF(VLOOKUP(ET247,'Footnotes list'!$D$9:$E$58,2,FALSE)=0,\"\",VLOOKUP(ET247,'Footnotes list'!$D$9:$E$58,2,FALSE) ) )","v":""},null,null,null,null,{"$f":"IF(TRIM(EY247)=\"\", \"\", IF(VLOOKUP(EY247,'Footnotes list'!$D$9:$E$58,2,FALSE)=0,\"\",VLOOKUP(EY247,'Footnotes list'!$D$9:$E$58,2,FALSE) ) )","v":""}]
[null,null,"M73-M75","NMKT","non-market activities",null,null,null,null,null,{"$f":"IF(TRIM(J248)=\"\", \"\", IF(VLOOKUP(J248,'Footnotes list'!$D$9:$E$58,2,FALSE)=0,\"\",VLOOKUP(J248,'Footnotes list'!$D$9:$E$58,2,FALSE) ) )","v":""},null,null,null,null,{"$f":"IF(TRIM(O248)=\"\", \"\", IF(VLOOKUP(O248,'Footnotes list'!$D$9:$E$58,2,FALSE)=0,\"\",VLOOKUP(O248,'Footnotes list'!$D$9:$E$58,2,FALSE) ) )","v":""},null,null,null,null,{"$f":"IF(TRIM(T248)=\"\", \"\", IF(VLOOKUP(T248,'Footnotes list'!$D$9:$E$58,2,FALSE)=0,\"\",VLOOKUP(T248,'Footnotes list'!$D$9:$E$58,2,FALSE) ) )","v":""},null,null,null,null,{"$f":"IF(TRIM(Y248)=\"\", \"\", IF(VLOOKUP(Y248,'Footnotes list'!$D$9:$E$58,2,FALSE)=0,\"\",VLOOKUP(Y248,'Footnotes list'!$D$9:$E$58,2,FALSE) ) )","v":""},null,null,null,null,{"$f":"IF(TRIM(AD248)=\"\", \"\", IF(VLOOKUP(AD248,'Footnotes list'!$D$9:$E$58,2,FALSE)=0,\"\",VLOOKUP(AD248,'Footnotes list'!$D$9:$E$58,2,FALSE) ) )","v":""},null,null,null,null,{"$f":"IF(TRIM(AI248)=\"\", \"\", IF(VLOOKUP(AI248,'Footnotes list'!$D$9:$E$58,2,FALSE)=0,\"\",VLOOKUP(AI248,'Footnotes list'!$D$9:$E$58,2,FALSE) ) )","v":""},null,null,null,null,{"$f":"IF(TRIM(AN248)=\"\", \"\", IF(VLOOKUP(AN248,'Footnotes list'!$D$9:$E$58,2,FALSE)=0,\"\",VLOOKUP(AN248,'Footnotes list'!$D$9:$E$58,2,FALSE) ) )","v":""},null,null,null,null,{"$f":"IF(TRIM(AS248)=\"\", \"\", IF(VLOOKUP(AS248,'Footnotes list'!$D$9:$E$58,2,FALSE)=0,\"\",VLOOKUP(AS248,'Footnotes list'!$D$9:$E$58,2,FALSE) ) )","v":""},null,null,null,null,{"$f":"IF(TRIM(AX248)=\"\", \"\", IF(VLOOKUP(AX248,'Footnotes list'!$D$9:$E$58,2,FALSE)=0,\"\",VLOOKUP(AX248,'Footnotes list'!$D$9:$E$58,2,FALSE) ) )","v":""},null,null,null,null,{"$f":"IF(TRIM(BC248)=\"\", \"\", IF(VLOOKUP(BC248,'Footnotes list'!$D$9:$E$58,2,FALSE)=0,\"\",VLOOKUP(BC248,'Footnotes list'!$D$9:$E$58,2,FALSE) ) )","v":""},null,null,null,null,{"$f":"IF(TRIM(BH248)=\"\", \"\", IF(VLOOKUP(BH248,'Footnotes list'!$D$9:$E$58,2,FALSE)=0,\"\",VLOOKUP(BH248,'Footnotes list'!$D$9:$E$58,2,FALSE) ) )","v":""},null,null,null,null,{"$f":"IF(TRIM(BM248)=\"\", \"\", IF(VLOOKUP(BM248,'Footnotes list'!$D$9:$E$58,2,FALSE)=0,\"\",VLOOKUP(BM248,'Footnotes list'!$D$9:$E$58,2,FALSE) ) )","v":""},null,null,null,null,{"$f":"IF(TRIM(BR248)=\"\", \"\", IF(VLOOKUP(BR248,'Footnotes list'!$D$9:$E$58,2,FALSE)=0,\"\",VLOOKUP(BR248,'Footnotes list'!$D$9:$E$58,2,FALSE) ) )","v":""},null,null,null,null,{"$f":"IF(TRIM(BW248)=\"\", \"\", IF(VLOOKUP(BW248,'Footnotes list'!$D$9:$E$58,2,FALSE)=0,\"\",VLOOKUP(BW248,'Footnotes list'!$D$9:$E$58,2,FALSE) ) )","v":""},null,null,null,null,{"$f":"IF(TRIM(CB248)=\"\", \"\", IF(VLOOKUP(CB248,'Footnotes list'!$D$9:$E$58,2,FALSE)=0,\"\",VLOOKUP(CB248,'Footnotes list'!$D$9:$E$58,2,FALSE) ) )","v":""},null,null,null,null,{"$f":"IF(TRIM(CG248)=\"\", \"\", IF(VLOOKUP(CG248,'Footnotes list'!$D$9:$E$58,2,FALSE)=0,\"\",VLOOKUP(CG248,'Footnotes list'!$D$9:$E$58,2,FALSE) ) )","v":""},null,null,null,null,{"$f":"IF(TRIM(CL248)=\"\", \"\", IF(VLOOKUP(CL248,'Footnotes list'!$D$9:$E$58,2,FALSE)=0,\"\",VLOOKUP(CL248,'Footnotes list'!$D$9:$E$58,2,FALSE) ) )","v":""},null,null,null,null,{"$f":"IF(TRIM(CQ248)=\"\", \"\", IF(VLOOKUP(CQ248,'Footnotes list'!$D$9:$E$58,2,FALSE)=0,\"\",VLOOKUP(CQ248,'Footnotes list'!$D$9:$E$58,2,FALSE) ) )","v":""},null,null,null,null,{"$f":"IF(TRIM(CV248)=\"\", \"\", IF(VLOOKUP(CV248,'Footnotes list'!$D$9:$E$58,2,FALSE)=0,\"\",VLOOKUP(CV248,'Footnotes list'!$D$9:$E$58,2,FALSE) ) )","v":""},null,null,null,null,{"$f":"IF(TRIM(DA248)=\"\", \"\", IF(VLOOKUP(DA248,'Footnotes list'!$D$9:$E$58,2,FALSE)=0,\"\",VLOOKUP(DA248,'Footnotes list'!$D$9:$E$58,2,FALSE) ) )","v":""},null,null,null,null,{"$f":"IF(TRIM(DF248)=\"\", \"\", IF(VLOOKUP(DF248,'Footnotes list'!$D$9:$E$58,2,FALSE)=0,\"\",VLOOKUP(DF248,'Footnotes list'!$D$9:$E$58,2,FALSE) ) )","v":""},null,null,null,null,{"$f":"IF(TRIM(DK248)=\"\", \"\", IF(VLOOKUP(DK248,'Footnotes list'!$D$9:$E$58,2,FALSE)=0,\"\",VLOOKUP(DK248,'Footnotes list'!$D$9:$E$58,2,FALSE) ) )","v":""},null,null,null,null,{"$f":"IF(TRIM(DP248)=\"\", \"\", IF(VLOOKUP(DP248,'Footnotes list'!$D$9:$E$58,2,FALSE)=0,\"\",VLOOKUP(DP248,'Footnotes list'!$D$9:$E$58,2,FALSE) ) )","v":""},null,null,null,null,{"$f":"IF(TRIM(DU248)=\"\", \"\", IF(VLOOKUP(DU248,'Footnotes list'!$D$9:$E$58,2,FALSE)=0,\"\",VLOOKUP(DU248,'Footnotes list'!$D$9:$E$58,2,FALSE) ) )","v":""},null,null,null,null,{"$f":"IF(TRIM(DZ248)=\"\", \"\", IF(VLOOKUP(DZ248,'Footnotes list'!$D$9:$E$58,2,FALSE)=0,\"\",VLOOKUP(DZ248,'Footnotes list'!$D$9:$E$58,2,FALSE) ) )","v":""},null,null,null,null,{"$f":"IF(TRIM(EE248)=\"\", \"\", IF(VLOOKUP(EE248,'Footnotes list'!$D$9:$E$58,2,FALSE)=0,\"\",VLOOKUP(EE248,'Footnotes list'!$D$9:$E$58,2,FALSE) ) )","v":""},null,null,null,null,{"$f":"IF(TRIM(EJ248)=\"\", \"\", IF(VLOOKUP(EJ248,'Footnotes list'!$D$9:$E$58,2,FALSE)=0,\"\",VLOOKUP(EJ248,'Footnotes list'!$D$9:$E$58,2,FALSE) ) )","v":""},null,null,null,null,{"$f":"IF(TRIM(EO248)=\"\", \"\", IF(VLOOKUP(EO248,'Footnotes list'!$D$9:$E$58,2,FALSE)=0,\"\",VLOOKUP(EO248,'Footnotes list'!$D$9:$E$58,2,FALSE) ) )","v":""},null,null,null,null,{"$f":"IF(TRIM(ET248)=\"\", \"\", IF(VLOOKUP(ET248,'Footnotes list'!$D$9:$E$58,2,FALSE)=0,\"\",VLOOKUP(ET248,'Footnotes list'!$D$9:$E$58,2,FALSE) ) )","v":""},null,null,null,null,{"$f":"IF(TRIM(EY248)=\"\", \"\", IF(VLOOKUP(EY248,'Footnotes list'!$D$9:$E$58,2,FALSE)=0,\"\",VLOOKUP(EY248,'Footnotes list'!$D$9:$E$58,2,FALSE) ) )","v":""}]
[null,null,"M73-M75","OWN_USE","activities for own final use",null,null,null,null,null,{"$f":"IF(TRIM(J249)=\"\", \"\", IF(VLOOKUP(J249,'Footnotes list'!$D$9:$E$58,2,FALSE)=0,\"\",VLOOKUP(J249,'Footnotes list'!$D$9:$E$58,2,FALSE) ) )","v":""},null,null,null,null,{"$f":"IF(TRIM(O249)=\"\", \"\", IF(VLOOKUP(O249,'Footnotes list'!$D$9:$E$58,2,FALSE)=0,\"\",VLOOKUP(O249,'Footnotes list'!$D$9:$E$58,2,FALSE) ) )","v":""},null,null,null,null,{"$f":"IF(TRIM(T249)=\"\", \"\", IF(VLOOKUP(T249,'Footnotes list'!$D$9:$E$58,2,FALSE)=0,\"\",VLOOKUP(T249,'Footnotes list'!$D$9:$E$58,2,FALSE) ) )","v":""},null,null,null,null,{"$f":"IF(TRIM(Y249)=\"\", \"\", IF(VLOOKUP(Y249,'Footnotes list'!$D$9:$E$58,2,FALSE)=0,\"\",VLOOKUP(Y249,'Footnotes list'!$D$9:$E$58,2,FALSE) ) )","v":""},null,null,null,null,{"$f":"IF(TRIM(AD249)=\"\", \"\", IF(VLOOKUP(AD249,'Footnotes list'!$D$9:$E$58,2,FALSE)=0,\"\",VLOOKUP(AD249,'Footnotes list'!$D$9:$E$58,2,FALSE) ) )","v":""},null,null,null,null,{"$f":"IF(TRIM(AI249)=\"\", \"\", IF(VLOOKUP(AI249,'Footnotes list'!$D$9:$E$58,2,FALSE)=0,\"\",VLOOKUP(AI249,'Footnotes list'!$D$9:$E$58,2,FALSE) ) )","v":""},null,null,null,null,{"$f":"IF(TRIM(AN249)=\"\", \"\", IF(VLOOKUP(AN249,'Footnotes list'!$D$9:$E$58,2,FALSE)=0,\"\",VLOOKUP(AN249,'Footnotes list'!$D$9:$E$58,2,FALSE) ) )","v":""},null,null,null,null,{"$f":"IF(TRIM(AS249)=\"\", \"\", IF(VLOOKUP(AS249,'Footnotes list'!$D$9:$E$58,2,FALSE)=0,\"\",VLOOKUP(AS249,'Footnotes list'!$D$9:$E$58,2,FALSE) ) )","v":""},null,null,null,null,{"$f":"IF(TRIM(AX249)=\"\", \"\", IF(VLOOKUP(AX249,'Footnotes list'!$D$9:$E$58,2,FALSE)=0,\"\",VLOOKUP(AX249,'Footnotes list'!$D$9:$E$58,2,FALSE) ) )","v":""},null,null,null,null,{"$f":"IF(TRIM(BC249)=\"\", \"\", IF(VLOOKUP(BC249,'Footnotes list'!$D$9:$E$58,2,FALSE)=0,\"\",VLOOKUP(BC249,'Footnotes list'!$D$9:$E$58,2,FALSE) ) )","v":""},null,null,null,null,{"$f":"IF(TRIM(BH249)=\"\", \"\", IF(VLOOKUP(BH249,'Footnotes list'!$D$9:$E$58,2,FALSE)=0,\"\",VLOOKUP(BH249,'Footnotes list'!$D$9:$E$58,2,FALSE) ) )","v":""},null,null,null,null,{"$f":"IF(TRIM(BM249)=\"\", \"\", IF(VLOOKUP(BM249,'Footnotes list'!$D$9:$E$58,2,FALSE)=0,\"\",VLOOKUP(BM249,'Footnotes list'!$D$9:$E$58,2,FALSE) ) )","v":""},null,null,null,null,{"$f":"IF(TRIM(BR249)=\"\", \"\", IF(VLOOKUP(BR249,'Footnotes list'!$D$9:$E$58,2,FALSE)=0,\"\",VLOOKUP(BR249,'Footnotes list'!$D$9:$E$58,2,FALSE) ) )","v":""},null,null,null,null,{"$f":"IF(TRIM(BW249)=\"\", \"\", IF(VLOOKUP(BW249,'Footnotes list'!$D$9:$E$58,2,FALSE)=0,\"\",VLOOKUP(BW249,'Footnotes list'!$D$9:$E$58,2,FALSE) ) )","v":""},null,null,null,null,{"$f":"IF(TRIM(CB249)=\"\", \"\", IF(VLOOKUP(CB249,'Footnotes list'!$D$9:$E$58,2,FALSE)=0,\"\",VLOOKUP(CB249,'Footnotes list'!$D$9:$E$58,2,FALSE) ) )","v":""},null,null,null,null,{"$f":"IF(TRIM(CG249)=\"\", \"\", IF(VLOOKUP(CG249,'Footnotes list'!$D$9:$E$58,2,FALSE)=0,\"\",VLOOKUP(CG249,'Footnotes list'!$D$9:$E$58,2,FALSE) ) )","v":""},null,null,null,null,{"$f":"IF(TRIM(CL249)=\"\", \"\", IF(VLOOKUP(CL249,'Footnotes list'!$D$9:$E$58,2,FALSE)=0,\"\",VLOOKUP(CL249,'Footnotes list'!$D$9:$E$58,2,FALSE) ) )","v":""},null,null,null,null,{"$f":"IF(TRIM(CQ249)=\"\", \"\", IF(VLOOKUP(CQ249,'Footnotes list'!$D$9:$E$58,2,FALSE)=0,\"\",VLOOKUP(CQ249,'Footnotes list'!$D$9:$E$58,2,FALSE) ) )","v":""},null,null,null,null,{"$f":"IF(TRIM(CV249)=\"\", \"\", IF(VLOOKUP(CV249,'Footnotes list'!$D$9:$E$58,2,FALSE)=0,\"\",VLOOKUP(CV249,'Footnotes list'!$D$9:$E$58,2,FALSE) ) )","v":""},null,null,null,null,{"$f":"IF(TRIM(DA249)=\"\", \"\", IF(VLOOKUP(DA249,'Footnotes list'!$D$9:$E$58,2,FALSE)=0,\"\",VLOOKUP(DA249,'Footnotes list'!$D$9:$E$58,2,FALSE) ) )","v":""},null,null,null,null,{"$f":"IF(TRIM(DF249)=\"\", \"\", IF(VLOOKUP(DF249,'Footnotes list'!$D$9:$E$58,2,FALSE)=0,\"\",VLOOKUP(DF249,'Footnotes list'!$D$9:$E$58,2,FALSE) ) )","v":""},null,null,null,null,{"$f":"IF(TRIM(DK249)=\"\", \"\", IF(VLOOKUP(DK249,'Footnotes list'!$D$9:$E$58,2,FALSE)=0,\"\",VLOOKUP(DK249,'Footnotes list'!$D$9:$E$58,2,FALSE) ) )","v":""},null,null,null,null,{"$f":"IF(TRIM(DP249)=\"\", \"\", IF(VLOOKUP(DP249,'Footnotes list'!$D$9:$E$58,2,FALSE)=0,\"\",VLOOKUP(DP249,'Footnotes list'!$D$9:$E$58,2,FALSE) ) )","v":""},null,null,null,null,{"$f":"IF(TRIM(DU249)=\"\", \"\", IF(VLOOKUP(DU249,'Footnotes list'!$D$9:$E$58,2,FALSE)=0,\"\",VLOOKUP(DU249,'Footnotes list'!$D$9:$E$58,2,FALSE) ) )","v":""},null,null,null,null,{"$f":"IF(TRIM(DZ249)=\"\", \"\", IF(VLOOKUP(DZ249,'Footnotes list'!$D$9:$E$58,2,FALSE)=0,\"\",VLOOKUP(DZ249,'Footnotes list'!$D$9:$E$58,2,FALSE) ) )","v":""},null,null,null,null,{"$f":"IF(TRIM(EE249)=\"\", \"\", IF(VLOOKUP(EE249,'Footnotes list'!$D$9:$E$58,2,FALSE)=0,\"\",VLOOKUP(EE249,'Footnotes list'!$D$9:$E$58,2,FALSE) ) )","v":""},null,null,null,null,{"$f":"IF(TRIM(EJ249)=\"\", \"\", IF(VLOOKUP(EJ249,'Footnotes list'!$D$9:$E$58,2,FALSE)=0,\"\",VLOOKUP(EJ249,'Footnotes list'!$D$9:$E$58,2,FALSE) ) )","v":""},null,null,null,null,{"$f":"IF(TRIM(EO249)=\"\", \"\", IF(VLOOKUP(EO249,'Footnotes list'!$D$9:$E$58,2,FALSE)=0,\"\",VLOOKUP(EO249,'Footnotes list'!$D$9:$E$58,2,FALSE) ) )","v":""},null,null,null,null,{"$f":"IF(TRIM(ET249)=\"\", \"\", IF(VLOOKUP(ET249,'Footnotes list'!$D$9:$E$58,2,FALSE)=0,\"\",VLOOKUP(ET249,'Footnotes list'!$D$9:$E$58,2,FALSE) ) )","v":""},null,null,null,null,{"$f":"IF(TRIM(EY249)=\"\", \"\", IF(VLOOKUP(EY249,'Footnotes list'!$D$9:$E$58,2,FALSE)=0,\"\",VLOOKUP(EY249,'Footnotes list'!$D$9:$E$58,2,FALSE) ) )","v":""}]
[null,null,"M73-M75","MKT","market activities, including:",null,null,null,null,null,{"$f":"IF(TRIM(J250)=\"\", \"\", IF(VLOOKUP(J250,'Footnotes list'!$D$9:$E$58,2,FALSE)=0,\"\",VLOOKUP(J250,'Footnotes list'!$D$9:$E$58,2,FALSE) ) )","v":""},null,null,null,null,{"$f":"IF(TRIM(O250)=\"\", \"\", IF(VLOOKUP(O250,'Footnotes list'!$D$9:$E$58,2,FALSE)=0,\"\",VLOOKUP(O250,'Footnotes list'!$D$9:$E$58,2,FALSE) ) )","v":""},null,null,null,null,{"$f":"IF(TRIM(T250)=\"\", \"\", IF(VLOOKUP(T250,'Footnotes list'!$D$9:$E$58,2,FALSE)=0,\"\",VLOOKUP(T250,'Footnotes list'!$D$9:$E$58,2,FALSE) ) )","v":""},null,null,null,null,{"$f":"IF(TRIM(Y250)=\"\", \"\", IF(VLOOKUP(Y250,'Footnotes list'!$D$9:$E$58,2,FALSE)=0,\"\",VLOOKUP(Y250,'Footnotes list'!$D$9:$E$58,2,FALSE) ) )","v":""},null,null,null,null,{"$f":"IF(TRIM(AD250)=\"\", \"\", IF(VLOOKUP(AD250,'Footnotes list'!$D$9:$E$58,2,FALSE)=0,\"\",VLOOKUP(AD250,'Footnotes list'!$D$9:$E$58,2,FALSE) ) )","v":""},null,null,null,null,{"$f":"IF(TRIM(AI250)=\"\", \"\", IF(VLOOKUP(AI250,'Footnotes list'!$D$9:$E$58,2,FALSE)=0,\"\",VLOOKUP(AI250,'Footnotes list'!$D$9:$E$58,2,FALSE) ) )","v":""},null,null,null,null,{"$f":"IF(TRIM(AN250)=\"\", \"\", IF(VLOOKUP(AN250,'Footnotes list'!$D$9:$E$58,2,FALSE)=0,\"\",VLOOKUP(AN250,'Footnotes list'!$D$9:$E$58,2,FALSE) ) )","v":""},null,null,null,null,{"$f":"IF(TRIM(AS250)=\"\", \"\", IF(VLOOKUP(AS250,'Footnotes list'!$D$9:$E$58,2,FALSE)=0,\"\",VLOOKUP(AS250,'Footnotes list'!$D$9:$E$58,2,FALSE) ) )","v":""},null,null,null,null,{"$f":"IF(TRIM(AX250)=\"\", \"\", IF(VLOOKUP(AX250,'Footnotes list'!$D$9:$E$58,2,FALSE)=0,\"\",VLOOKUP(AX250,'Footnotes list'!$D$9:$E$58,2,FALSE) ) )","v":""},null,null,null,null,{"$f":"IF(TRIM(BC250)=\"\", \"\", IF(VLOOKUP(BC250,'Footnotes list'!$D$9:$E$58,2,FALSE)=0,\"\",VLOOKUP(BC250,'Footnotes list'!$D$9:$E$58,2,FALSE) ) )","v":""},null,null,null,null,{"$f":"IF(TRIM(BH250)=\"\", \"\", IF(VLOOKUP(BH250,'Footnotes list'!$D$9:$E$58,2,FALSE)=0,\"\",VLOOKUP(BH250,'Footnotes list'!$D$9:$E$58,2,FALSE) ) )","v":""},null,null,null,null,{"$f":"IF(TRIM(BM250)=\"\", \"\", IF(VLOOKUP(BM250,'Footnotes list'!$D$9:$E$58,2,FALSE)=0,\"\",VLOOKUP(BM250,'Footnotes list'!$D$9:$E$58,2,FALSE) ) )","v":""},null,null,null,null,{"$f":"IF(TRIM(BR250)=\"\", \"\", IF(VLOOKUP(BR250,'Footnotes list'!$D$9:$E$58,2,FALSE)=0,\"\",VLOOKUP(BR250,'Footnotes list'!$D$9:$E$58,2,FALSE) ) )","v":""},null,null,null,null,{"$f":"IF(TRIM(BW250)=\"\", \"\", IF(VLOOKUP(BW250,'Footnotes list'!$D$9:$E$58,2,FALSE)=0,\"\",VLOOKUP(BW250,'Footnotes list'!$D$9:$E$58,2,FALSE) ) )","v":""},null,null,null,null,{"$f":"IF(TRIM(CB250)=\"\", \"\", IF(VLOOKUP(CB250,'Footnotes list'!$D$9:$E$58,2,FALSE)=0,\"\",VLOOKUP(CB250,'Footnotes list'!$D$9:$E$58,2,FALSE) ) )","v":""},null,null,null,null,{"$f":"IF(TRIM(CG250)=\"\", \"\", IF(VLOOKUP(CG250,'Footnotes list'!$D$9:$E$58,2,FALSE)=0,\"\",VLOOKUP(CG250,'Footnotes list'!$D$9:$E$58,2,FALSE) ) )","v":""},null,null,null,null,{"$f":"IF(TRIM(CL250)=\"\", \"\", IF(VLOOKUP(CL250,'Footnotes list'!$D$9:$E$58,2,FALSE)=0,\"\",VLOOKUP(CL250,'Footnotes list'!$D$9:$E$58,2,FALSE) ) )","v":""},null,null,null,null,{"$f":"IF(TRIM(CQ250)=\"\", \"\", IF(VLOOKUP(CQ250,'Footnotes list'!$D$9:$E$58,2,FALSE)=0,\"\",VLOOKUP(CQ250,'Footnotes list'!$D$9:$E$58,2,FALSE) ) )","v":""},null,null,null,null,{"$f":"IF(TRIM(CV250)=\"\", \"\", IF(VLOOKUP(CV250,'Footnotes list'!$D$9:$E$58,2,FALSE)=0,\"\",VLOOKUP(CV250,'Footnotes list'!$D$9:$E$58,2,FALSE) ) )","v":""},null,null,null,null,{"$f":"IF(TRIM(DA250)=\"\", \"\", IF(VLOOKUP(DA250,'Footnotes list'!$D$9:$E$58,2,FALSE)=0,\"\",VLOOKUP(DA250,'Footnotes list'!$D$9:$E$58,2,FALSE) ) )","v":""},null,null,null,null,{"$f":"IF(TRIM(DF250)=\"\", \"\", IF(VLOOKUP(DF250,'Footnotes list'!$D$9:$E$58,2,FALSE)=0,\"\",VLOOKUP(DF250,'Footnotes list'!$D$9:$E$58,2,FALSE) ) )","v":""},null,null,null,null,{"$f":"IF(TRIM(DK250)=\"\", \"\", IF(VLOOKUP(DK250,'Footnotes list'!$D$9:$E$58,2,FALSE)=0,\"\",VLOOKUP(DK250,'Footnotes list'!$D$9:$E$58,2,FALSE) ) )","v":""},null,null,null,null,{"$f":"IF(TRIM(DP250)=\"\", \"\", IF(VLOOKUP(DP250,'Footnotes list'!$D$9:$E$58,2,FALSE)=0,\"\",VLOOKUP(DP250,'Footnotes list'!$D$9:$E$58,2,FALSE) ) )","v":""},null,null,null,null,{"$f":"IF(TRIM(DU250)=\"\", \"\", IF(VLOOKUP(DU250,'Footnotes list'!$D$9:$E$58,2,FALSE)=0,\"\",VLOOKUP(DU250,'Footnotes list'!$D$9:$E$58,2,FALSE) ) )","v":""},null,null,null,null,{"$f":"IF(TRIM(DZ250)=\"\", \"\", IF(VLOOKUP(DZ250,'Footnotes list'!$D$9:$E$58,2,FALSE)=0,\"\",VLOOKUP(DZ250,'Footnotes list'!$D$9:$E$58,2,FALSE) ) )","v":""},null,null,null,null,{"$f":"IF(TRIM(EE250)=\"\", \"\", IF(VLOOKUP(EE250,'Footnotes list'!$D$9:$E$58,2,FALSE)=0,\"\",VLOOKUP(EE250,'Footnotes list'!$D$9:$E$58,2,FALSE) ) )","v":""},null,null,null,null,{"$f":"IF(TRIM(EJ250)=\"\", \"\", IF(VLOOKUP(EJ250,'Footnotes list'!$D$9:$E$58,2,FALSE)=0,\"\",VLOOKUP(EJ250,'Footnotes list'!$D$9:$E$58,2,FALSE) ) )","v":""},null,null,null,null,{"$f":"IF(TRIM(EO250)=\"\", \"\", IF(VLOOKUP(EO250,'Footnotes list'!$D$9:$E$58,2,FALSE)=0,\"\",VLOOKUP(EO250,'Footnotes list'!$D$9:$E$58,2,FALSE) ) )","v":""},null,null,null,null,{"$f":"IF(TRIM(ET250)=\"\", \"\", IF(VLOOKUP(ET250,'Footnotes list'!$D$9:$E$58,2,FALSE)=0,\"\",VLOOKUP(ET250,'Footnotes list'!$D$9:$E$58,2,FALSE) ) )","v":""},null,null,null,null,{"$f":"IF(TRIM(EY250)=\"\", \"\", IF(VLOOKUP(EY250,'Footnotes list'!$D$9:$E$58,2,FALSE)=0,\"\",VLOOKUP(EY250,'Footnotes list'!$D$9:$E$58,2,FALSE) ) )","v":""}]
[null,null,"M73-M75","ES_CS","environmental specific services",null,null,null,null,null,{"$f":"IF(TRIM(J251)=\"\", \"\", IF(VLOOKUP(J251,'Footnotes list'!$D$9:$E$58,2,FALSE)=0,\"\",VLOOKUP(J251,'Footnotes list'!$D$9:$E$58,2,FALSE) ) )","v":""},null,null,null,null,{"$f":"IF(TRIM(O251)=\"\", \"\", IF(VLOOKUP(O251,'Footnotes list'!$D$9:$E$58,2,FALSE)=0,\"\",VLOOKUP(O251,'Footnotes list'!$D$9:$E$58,2,FALSE) ) )","v":""},null,null,null,null,{"$f":"IF(TRIM(T251)=\"\", \"\", IF(VLOOKUP(T251,'Footnotes list'!$D$9:$E$58,2,FALSE)=0,\"\",VLOOKUP(T251,'Footnotes list'!$D$9:$E$58,2,FALSE) ) )","v":""},null,null,null,null,{"$f":"IF(TRIM(Y251)=\"\", \"\", IF(VLOOKUP(Y251,'Footnotes list'!$D$9:$E$58,2,FALSE)=0,\"\",VLOOKUP(Y251,'Footnotes list'!$D$9:$E$58,2,FALSE) ) )","v":""},null,null,null,null,{"$f":"IF(TRIM(AD251)=\"\", \"\", IF(VLOOKUP(AD251,'Footnotes list'!$D$9:$E$58,2,FALSE)=0,\"\",VLOOKUP(AD251,'Footnotes list'!$D$9:$E$58,2,FALSE) ) )","v":""},null,null,null,null,{"$f":"IF(TRIM(AI251)=\"\", \"\", IF(VLOOKUP(AI251,'Footnotes list'!$D$9:$E$58,2,FALSE)=0,\"\",VLOOKUP(AI251,'Footnotes list'!$D$9:$E$58,2,FALSE) ) )","v":""},null,null,null,null,{"$f":"IF(TRIM(AN251)=\"\", \"\", IF(VLOOKUP(AN251,'Footnotes list'!$D$9:$E$58,2,FALSE)=0,\"\",VLOOKUP(AN251,'Footnotes list'!$D$9:$E$58,2,FALSE) ) )","v":""},null,null,null,null,{"$f":"IF(TRIM(AS251)=\"\", \"\", IF(VLOOKUP(AS251,'Footnotes list'!$D$9:$E$58,2,FALSE)=0,\"\",VLOOKUP(AS251,'Footnotes list'!$D$9:$E$58,2,FALSE) ) )","v":""},null,null,null,null,{"$f":"IF(TRIM(AX251)=\"\", \"\", IF(VLOOKUP(AX251,'Footnotes list'!$D$9:$E$58,2,FALSE)=0,\"\",VLOOKUP(AX251,'Footnotes list'!$D$9:$E$58,2,FALSE) ) )","v":""},null,null,null,null,{"$f":"IF(TRIM(BC251)=\"\", \"\", IF(VLOOKUP(BC251,'Footnotes list'!$D$9:$E$58,2,FALSE)=0,\"\",VLOOKUP(BC251,'Footnotes list'!$D$9:$E$58,2,FALSE) ) )","v":""},null,null,null,null,{"$f":"IF(TRIM(BH251)=\"\", \"\", IF(VLOOKUP(BH251,'Footnotes list'!$D$9:$E$58,2,FALSE)=0,\"\",VLOOKUP(BH251,'Footnotes list'!$D$9:$E$58,2,FALSE) ) )","v":""},null,null,null,null,{"$f":"IF(TRIM(BM251)=\"\", \"\", IF(VLOOKUP(BM251,'Footnotes list'!$D$9:$E$58,2,FALSE)=0,\"\",VLOOKUP(BM251,'Footnotes list'!$D$9:$E$58,2,FALSE) ) )","v":""},null,null,null,null,{"$f":"IF(TRIM(BR251)=\"\", \"\", IF(VLOOKUP(BR251,'Footnotes list'!$D$9:$E$58,2,FALSE)=0,\"\",VLOOKUP(BR251,'Footnotes list'!$D$9:$E$58,2,FALSE) ) )","v":""},null,null,null,null,{"$f":"IF(TRIM(BW251)=\"\", \"\", IF(VLOOKUP(BW251,'Footnotes list'!$D$9:$E$58,2,FALSE)=0,\"\",VLOOKUP(BW251,'Footnotes list'!$D$9:$E$58,2,FALSE) ) )","v":""},null,null,null,null,{"$f":"IF(TRIM(CB251)=\"\", \"\", IF(VLOOKUP(CB251,'Footnotes list'!$D$9:$E$58,2,FALSE)=0,\"\",VLOOKUP(CB251,'Footnotes list'!$D$9:$E$58,2,FALSE) ) )","v":""},null,null,null,null,{"$f":"IF(TRIM(CG251)=\"\", \"\", IF(VLOOKUP(CG251,'Footnotes list'!$D$9:$E$58,2,FALSE)=0,\"\",VLOOKUP(CG251,'Footnotes list'!$D$9:$E$58,2,FALSE) ) )","v":""},null,null,null,null,{"$f":"IF(TRIM(CL251)=\"\", \"\", IF(VLOOKUP(CL251,'Footnotes list'!$D$9:$E$58,2,FALSE)=0,\"\",VLOOKUP(CL251,'Footnotes list'!$D$9:$E$58,2,FALSE) ) )","v":""},null,null,null,null,{"$f":"IF(TRIM(CQ251)=\"\", \"\", IF(VLOOKUP(CQ251,'Footnotes list'!$D$9:$E$58,2,FALSE)=0,\"\",VLOOKUP(CQ251,'Footnotes list'!$D$9:$E$58,2,FALSE) ) )","v":""},null,null,null,null,{"$f":"IF(TRIM(CV251)=\"\", \"\", IF(VLOOKUP(CV251,'Footnotes list'!$D$9:$E$58,2,FALSE)=0,\"\",VLOOKUP(CV251,'Footnotes list'!$D$9:$E$58,2,FALSE) ) )","v":""},null,null,null,null,{"$f":"IF(TRIM(DA251)=\"\", \"\", IF(VLOOKUP(DA251,'Footnotes list'!$D$9:$E$58,2,FALSE)=0,\"\",VLOOKUP(DA251,'Footnotes list'!$D$9:$E$58,2,FALSE) ) )","v":""},null,null,null,null,{"$f":"IF(TRIM(DF251)=\"\", \"\", IF(VLOOKUP(DF251,'Footnotes list'!$D$9:$E$58,2,FALSE)=0,\"\",VLOOKUP(DF251,'Footnotes list'!$D$9:$E$58,2,FALSE) ) )","v":""},null,null,null,null,{"$f":"IF(TRIM(DK251)=\"\", \"\", IF(VLOOKUP(DK251,'Footnotes list'!$D$9:$E$58,2,FALSE)=0,\"\",VLOOKUP(DK251,'Footnotes list'!$D$9:$E$58,2,FALSE) ) )","v":""},null,null,null,null,{"$f":"IF(TRIM(DP251)=\"\", \"\", IF(VLOOKUP(DP251,'Footnotes list'!$D$9:$E$58,2,FALSE)=0,\"\",VLOOKUP(DP251,'Footnotes list'!$D$9:$E$58,2,FALSE) ) )","v":""},null,null,null,null,{"$f":"IF(TRIM(DU251)=\"\", \"\", IF(VLOOKUP(DU251,'Footnotes list'!$D$9:$E$58,2,FALSE)=0,\"\",VLOOKUP(DU251,'Footnotes list'!$D$9:$E$58,2,FALSE) ) )","v":""},null,null,null,null,{"$f":"IF(TRIM(DZ251)=\"\", \"\", IF(VLOOKUP(DZ251,'Footnotes list'!$D$9:$E$58,2,FALSE)=0,\"\",VLOOKUP(DZ251,'Footnotes list'!$D$9:$E$58,2,FALSE) ) )","v":""},null,null,null,null,{"$f":"IF(TRIM(EE251)=\"\", \"\", IF(VLOOKUP(EE251,'Footnotes list'!$D$9:$E$58,2,FALSE)=0,\"\",VLOOKUP(EE251,'Footnotes list'!$D$9:$E$58,2,FALSE) ) )","v":""},null,null,null,null,{"$f":"IF(TRIM(EJ251)=\"\", \"\", IF(VLOOKUP(EJ251,'Footnotes list'!$D$9:$E$58,2,FALSE)=0,\"\",VLOOKUP(EJ251,'Footnotes list'!$D$9:$E$58,2,FALSE) ) )","v":""},null,null,null,null,{"$f":"IF(TRIM(EO251)=\"\", \"\", IF(VLOOKUP(EO251,'Footnotes list'!$D$9:$E$58,2,FALSE)=0,\"\",VLOOKUP(EO251,'Footnotes list'!$D$9:$E$58,2,FALSE) ) )","v":""},null,null,null,null,{"$f":"IF(TRIM(ET251)=\"\", \"\", IF(VLOOKUP(ET251,'Footnotes list'!$D$9:$E$58,2,FALSE)=0,\"\",VLOOKUP(ET251,'Footnotes list'!$D$9:$E$58,2,FALSE) ) )","v":""},null,null,null,null,{"$f":"IF(TRIM(EY251)=\"\", \"\", IF(VLOOKUP(EY251,'Footnotes list'!$D$9:$E$58,2,FALSE)=0,\"\",VLOOKUP(EY251,'Footnotes list'!$D$9:$E$58,2,FALSE) ) )","v":""}]
[null,null,"M73-M75","C_REP","cleaner and resource efficient products",null,null,null,null,null,{"$f":"IF(TRIM(J252)=\"\", \"\", IF(VLOOKUP(J252,'Footnotes list'!$D$9:$E$58,2,FALSE)=0,\"\",VLOOKUP(J252,'Footnotes list'!$D$9:$E$58,2,FALSE) ) )","v":""},null,null,null,null,{"$f":"IF(TRIM(O252)=\"\", \"\", IF(VLOOKUP(O252,'Footnotes list'!$D$9:$E$58,2,FALSE)=0,\"\",VLOOKUP(O252,'Footnotes list'!$D$9:$E$58,2,FALSE) ) )","v":""},null,null,null,null,{"$f":"IF(TRIM(T252)=\"\", \"\", IF(VLOOKUP(T252,'Footnotes list'!$D$9:$E$58,2,FALSE)=0,\"\",VLOOKUP(T252,'Footnotes list'!$D$9:$E$58,2,FALSE) ) )","v":""},null,null,null,null,{"$f":"IF(TRIM(Y252)=\"\", \"\", IF(VLOOKUP(Y252,'Footnotes list'!$D$9:$E$58,2,FALSE)=0,\"\",VLOOKUP(Y252,'Footnotes list'!$D$9:$E$58,2,FALSE) ) )","v":""},null,null,null,null,{"$f":"IF(TRIM(AD252)=\"\", \"\", IF(VLOOKUP(AD252,'Footnotes list'!$D$9:$E$58,2,FALSE)=0,\"\",VLOOKUP(AD252,'Footnotes list'!$D$9:$E$58,2,FALSE) ) )","v":""},null,null,null,null,{"$f":"IF(TRIM(AI252)=\"\", \"\", IF(VLOOKUP(AI252,'Footnotes list'!$D$9:$E$58,2,FALSE)=0,\"\",VLOOKUP(AI252,'Footnotes list'!$D$9:$E$58,2,FALSE) ) )","v":""},null,null,null,null,{"$f":"IF(TRIM(AN252)=\"\", \"\", IF(VLOOKUP(AN252,'Footnotes list'!$D$9:$E$58,2,FALSE)=0,\"\",VLOOKUP(AN252,'Footnotes list'!$D$9:$E$58,2,FALSE) ) )","v":""},null,null,null,null,{"$f":"IF(TRIM(AS252)=\"\", \"\", IF(VLOOKUP(AS252,'Footnotes list'!$D$9:$E$58,2,FALSE)=0,\"\",VLOOKUP(AS252,'Footnotes list'!$D$9:$E$58,2,FALSE) ) )","v":""},null,null,null,null,{"$f":"IF(TRIM(AX252)=\"\", \"\", IF(VLOOKUP(AX252,'Footnotes list'!$D$9:$E$58,2,FALSE)=0,\"\",VLOOKUP(AX252,'Footnotes list'!$D$9:$E$58,2,FALSE) ) )","v":""},null,null,null,null,{"$f":"IF(TRIM(BC252)=\"\", \"\", IF(VLOOKUP(BC252,'Footnotes list'!$D$9:$E$58,2,FALSE)=0,\"\",VLOOKUP(BC252,'Footnotes list'!$D$9:$E$58,2,FALSE) ) )","v":""},null,null,null,null,{"$f":"IF(TRIM(BH252)=\"\", \"\", IF(VLOOKUP(BH252,'Footnotes list'!$D$9:$E$58,2,FALSE)=0,\"\",VLOOKUP(BH252,'Footnotes list'!$D$9:$E$58,2,FALSE) ) )","v":""},null,null,null,null,{"$f":"IF(TRIM(BM252)=\"\", \"\", IF(VLOOKUP(BM252,'Footnotes list'!$D$9:$E$58,2,FALSE)=0,\"\",VLOOKUP(BM252,'Footnotes list'!$D$9:$E$58,2,FALSE) ) )","v":""},null,null,null,null,{"$f":"IF(TRIM(BR252)=\"\", \"\", IF(VLOOKUP(BR252,'Footnotes list'!$D$9:$E$58,2,FALSE)=0,\"\",VLOOKUP(BR252,'Footnotes list'!$D$9:$E$58,2,FALSE) ) )","v":""},null,null,null,null,{"$f":"IF(TRIM(BW252)=\"\", \"\", IF(VLOOKUP(BW252,'Footnotes list'!$D$9:$E$58,2,FALSE)=0,\"\",VLOOKUP(BW252,'Footnotes list'!$D$9:$E$58,2,FALSE) ) )","v":""},null,null,null,null,{"$f":"IF(TRIM(CB252)=\"\", \"\", IF(VLOOKUP(CB252,'Footnotes list'!$D$9:$E$58,2,FALSE)=0,\"\",VLOOKUP(CB252,'Footnotes list'!$D$9:$E$58,2,FALSE) ) )","v":""},null,null,null,null,{"$f":"IF(TRIM(CG252)=\"\", \"\", IF(VLOOKUP(CG252,'Footnotes list'!$D$9:$E$58,2,FALSE)=0,\"\",VLOOKUP(CG252,'Footnotes list'!$D$9:$E$58,2,FALSE) ) )","v":""},null,null,null,null,{"$f":"IF(TRIM(CL252)=\"\", \"\", IF(VLOOKUP(CL252,'Footnotes list'!$D$9:$E$58,2,FALSE)=0,\"\",VLOOKUP(CL252,'Footnotes list'!$D$9:$E$58,2,FALSE) ) )","v":""},null,null,null,null,{"$f":"IF(TRIM(CQ252)=\"\", \"\", IF(VLOOKUP(CQ252,'Footnotes list'!$D$9:$E$58,2,FALSE)=0,\"\",VLOOKUP(CQ252,'Footnotes list'!$D$9:$E$58,2,FALSE) ) )","v":""},null,null,null,null,{"$f":"IF(TRIM(CV252)=\"\", \"\", IF(VLOOKUP(CV252,'Footnotes list'!$D$9:$E$58,2,FALSE)=0,\"\",VLOOKUP(CV252,'Footnotes list'!$D$9:$E$58,2,FALSE) ) )","v":""},null,null,null,null,{"$f":"IF(TRIM(DA252)=\"\", \"\", IF(VLOOKUP(DA252,'Footnotes list'!$D$9:$E$58,2,FALSE)=0,\"\",VLOOKUP(DA252,'Footnotes list'!$D$9:$E$58,2,FALSE) ) )","v":""},null,null,null,null,{"$f":"IF(TRIM(DF252)=\"\", \"\", IF(VLOOKUP(DF252,'Footnotes list'!$D$9:$E$58,2,FALSE)=0,\"\",VLOOKUP(DF252,'Footnotes list'!$D$9:$E$58,2,FALSE) ) )","v":""},null,null,null,null,{"$f":"IF(TRIM(DK252)=\"\", \"\", IF(VLOOKUP(DK252,'Footnotes list'!$D$9:$E$58,2,FALSE)=0,\"\",VLOOKUP(DK252,'Footnotes list'!$D$9:$E$58,2,FALSE) ) )","v":""},null,null,null,null,{"$f":"IF(TRIM(DP252)=\"\", \"\", IF(VLOOKUP(DP252,'Footnotes list'!$D$9:$E$58,2,FALSE)=0,\"\",VLOOKUP(DP252,'Footnotes list'!$D$9:$E$58,2,FALSE) ) )","v":""},null,null,null,null,{"$f":"IF(TRIM(DU252)=\"\", \"\", IF(VLOOKUP(DU252,'Footnotes list'!$D$9:$E$58,2,FALSE)=0,\"\",VLOOKUP(DU252,'Footnotes list'!$D$9:$E$58,2,FALSE) ) )","v":""},null,null,null,null,{"$f":"IF(TRIM(DZ252)=\"\", \"\", IF(VLOOKUP(DZ252,'Footnotes list'!$D$9:$E$58,2,FALSE)=0,\"\",VLOOKUP(DZ252,'Footnotes list'!$D$9:$E$58,2,FALSE) ) )","v":""},null,null,null,null,{"$f":"IF(TRIM(EE252)=\"\", \"\", IF(VLOOKUP(EE252,'Footnotes list'!$D$9:$E$58,2,FALSE)=0,\"\",VLOOKUP(EE252,'Footnotes list'!$D$9:$E$58,2,FALSE) ) )","v":""},null,null,null,null,{"$f":"IF(TRIM(EJ252)=\"\", \"\", IF(VLOOKUP(EJ252,'Footnotes list'!$D$9:$E$58,2,FALSE)=0,\"\",VLOOKUP(EJ252,'Footnotes list'!$D$9:$E$58,2,FALSE) ) )","v":""},null,null,null,null,{"$f":"IF(TRIM(EO252)=\"\", \"\", IF(VLOOKUP(EO252,'Footnotes list'!$D$9:$E$58,2,FALSE)=0,\"\",VLOOKUP(EO252,'Footnotes list'!$D$9:$E$58,2,FALSE) ) )","v":""},null,null,null,null,{"$f":"IF(TRIM(ET252)=\"\", \"\", IF(VLOOKUP(ET252,'Footnotes list'!$D$9:$E$58,2,FALSE)=0,\"\",VLOOKUP(ET252,'Footnotes list'!$D$9:$E$58,2,FALSE) ) )","v":""},null,null,null,null,{"$f":"IF(TRIM(EY252)=\"\", \"\", IF(VLOOKUP(EY252,'Footnotes list'!$D$9:$E$58,2,FALSE)=0,\"\",VLOOKUP(EY252,'Footnotes list'!$D$9:$E$58,2,FALSE) ) )","v":""}]
[null,null,"N","TOT_EGSS","Total N - Administrative and support service activities, of which:",null,null,null,null,null,{"$f":"IF(TRIM(J253)=\"\", \"\", IF(VLOOKUP(J253,'Footnotes list'!$D$9:$E$58,2,FALSE)=0,\"\",VLOOKUP(J253,'Footnotes list'!$D$9:$E$58,2,FALSE) ) )","v":""},null,null,null,null,{"$f":"IF(TRIM(O253)=\"\", \"\", IF(VLOOKUP(O253,'Footnotes list'!$D$9:$E$58,2,FALSE)=0,\"\",VLOOKUP(O253,'Footnotes list'!$D$9:$E$58,2,FALSE) ) )","v":""},null,null,null,null,{"$f":"IF(TRIM(T253)=\"\", \"\", IF(VLOOKUP(T253,'Footnotes list'!$D$9:$E$58,2,FALSE)=0,\"\",VLOOKUP(T253,'Footnotes list'!$D$9:$E$58,2,FALSE) ) )","v":""},null,null,null,null,{"$f":"IF(TRIM(Y253)=\"\", \"\", IF(VLOOKUP(Y253,'Footnotes list'!$D$9:$E$58,2,FALSE)=0,\"\",VLOOKUP(Y253,'Footnotes list'!$D$9:$E$58,2,FALSE) ) )","v":""},null,null,null,null,{"$f":"IF(TRIM(AD253)=\"\", \"\", IF(VLOOKUP(AD253,'Footnotes list'!$D$9:$E$58,2,FALSE)=0,\"\",VLOOKUP(AD253,'Footnotes list'!$D$9:$E$58,2,FALSE) ) )","v":""},null,null,null,null,{"$f":"IF(TRIM(AI253)=\"\", \"\", IF(VLOOKUP(AI253,'Footnotes list'!$D$9:$E$58,2,FALSE)=0,\"\",VLOOKUP(AI253,'Footnotes list'!$D$9:$E$58,2,FALSE) ) )","v":""},null,null,null,null,{"$f":"IF(TRIM(AN253)=\"\", \"\", IF(VLOOKUP(AN253,'Footnotes list'!$D$9:$E$58,2,FALSE)=0,\"\",VLOOKUP(AN253,'Footnotes list'!$D$9:$E$58,2,FALSE) ) )","v":""},null,null,null,null,{"$f":"IF(TRIM(AS253)=\"\", \"\", IF(VLOOKUP(AS253,'Footnotes list'!$D$9:$E$58,2,FALSE)=0,\"\",VLOOKUP(AS253,'Footnotes list'!$D$9:$E$58,2,FALSE) ) )","v":""},null,null,null,null,{"$f":"IF(TRIM(AX253)=\"\", \"\", IF(VLOOKUP(AX253,'Footnotes list'!$D$9:$E$58,2,FALSE)=0,\"\",VLOOKUP(AX253,'Footnotes list'!$D$9:$E$58,2,FALSE) ) )","v":""},null,null,null,null,{"$f":"IF(TRIM(BC253)=\"\", \"\", IF(VLOOKUP(BC253,'Footnotes list'!$D$9:$E$58,2,FALSE)=0,\"\",VLOOKUP(BC253,'Footnotes list'!$D$9:$E$58,2,FALSE) ) )","v":""},null,null,null,null,{"$f":"IF(TRIM(BH253)=\"\", \"\", IF(VLOOKUP(BH253,'Footnotes list'!$D$9:$E$58,2,FALSE)=0,\"\",VLOOKUP(BH253,'Footnotes list'!$D$9:$E$58,2,FALSE) ) )","v":""},null,null,null,null,{"$f":"IF(TRIM(BM253)=\"\", \"\", IF(VLOOKUP(BM253,'Footnotes list'!$D$9:$E$58,2,FALSE)=0,\"\",VLOOKUP(BM253,'Footnotes list'!$D$9:$E$58,2,FALSE) ) )","v":""},null,null,null,null,{"$f":"IF(TRIM(BR253)=\"\", \"\", IF(VLOOKUP(BR253,'Footnotes list'!$D$9:$E$58,2,FALSE)=0,\"\",VLOOKUP(BR253,'Footnotes list'!$D$9:$E$58,2,FALSE) ) )","v":""},null,null,null,null,{"$f":"IF(TRIM(BW253)=\"\", \"\", IF(VLOOKUP(BW253,'Footnotes list'!$D$9:$E$58,2,FALSE)=0,\"\",VLOOKUP(BW253,'Footnotes list'!$D$9:$E$58,2,FALSE) ) )","v":""},null,null,null,null,{"$f":"IF(TRIM(CB253)=\"\", \"\", IF(VLOOKUP(CB253,'Footnotes list'!$D$9:$E$58,2,FALSE)=0,\"\",VLOOKUP(CB253,'Footnotes list'!$D$9:$E$58,2,FALSE) ) )","v":""},null,null,null,null,{"$f":"IF(TRIM(CG253)=\"\", \"\", IF(VLOOKUP(CG253,'Footnotes list'!$D$9:$E$58,2,FALSE)=0,\"\",VLOOKUP(CG253,'Footnotes list'!$D$9:$E$58,2,FALSE) ) )","v":""},null,null,null,null,{"$f":"IF(TRIM(CL253)=\"\", \"\", IF(VLOOKUP(CL253,'Footnotes list'!$D$9:$E$58,2,FALSE)=0,\"\",VLOOKUP(CL253,'Footnotes list'!$D$9:$E$58,2,FALSE) ) )","v":""},null,null,null,null,{"$f":"IF(TRIM(CQ253)=\"\", \"\", IF(VLOOKUP(CQ253,'Footnotes list'!$D$9:$E$58,2,FALSE)=0,\"\",VLOOKUP(CQ253,'Footnotes list'!$D$9:$E$58,2,FALSE) ) )","v":""},null,null,null,null,{"$f":"IF(TRIM(CV253)=\"\", \"\", IF(VLOOKUP(CV253,'Footnotes list'!$D$9:$E$58,2,FALSE)=0,\"\",VLOOKUP(CV253,'Footnotes list'!$D$9:$E$58,2,FALSE) ) )","v":""},null,null,null,null,{"$f":"IF(TRIM(DA253)=\"\", \"\", IF(VLOOKUP(DA253,'Footnotes list'!$D$9:$E$58,2,FALSE)=0,\"\",VLOOKUP(DA253,'Footnotes list'!$D$9:$E$58,2,FALSE) ) )","v":""},null,null,null,null,{"$f":"IF(TRIM(DF253)=\"\", \"\", IF(VLOOKUP(DF253,'Footnotes list'!$D$9:$E$58,2,FALSE)=0,\"\",VLOOKUP(DF253,'Footnotes list'!$D$9:$E$58,2,FALSE) ) )","v":""},null,null,null,null,{"$f":"IF(TRIM(DK253)=\"\", \"\", IF(VLOOKUP(DK253,'Footnotes list'!$D$9:$E$58,2,FALSE)=0,\"\",VLOOKUP(DK253,'Footnotes list'!$D$9:$E$58,2,FALSE) ) )","v":""},null,null,null,null,{"$f":"IF(TRIM(DP253)=\"\", \"\", IF(VLOOKUP(DP253,'Footnotes list'!$D$9:$E$58,2,FALSE)=0,\"\",VLOOKUP(DP253,'Footnotes list'!$D$9:$E$58,2,FALSE) ) )","v":""},null,null,null,null,{"$f":"IF(TRIM(DU253)=\"\", \"\", IF(VLOOKUP(DU253,'Footnotes list'!$D$9:$E$58,2,FALSE)=0,\"\",VLOOKUP(DU253,'Footnotes list'!$D$9:$E$58,2,FALSE) ) )","v":""},null,null,null,null,{"$f":"IF(TRIM(DZ253)=\"\", \"\", IF(VLOOKUP(DZ253,'Footnotes list'!$D$9:$E$58,2,FALSE)=0,\"\",VLOOKUP(DZ253,'Footnotes list'!$D$9:$E$58,2,FALSE) ) )","v":""},null,null,null,null,{"$f":"IF(TRIM(EE253)=\"\", \"\", IF(VLOOKUP(EE253,'Footnotes list'!$D$9:$E$58,2,FALSE)=0,\"\",VLOOKUP(EE253,'Footnotes list'!$D$9:$E$58,2,FALSE) ) )","v":""},null,null,null,null,{"$f":"IF(TRIM(EJ253)=\"\", \"\", IF(VLOOKUP(EJ253,'Footnotes list'!$D$9:$E$58,2,FALSE)=0,\"\",VLOOKUP(EJ253,'Footnotes list'!$D$9:$E$58,2,FALSE) ) )","v":""},null,null,null,null,{"$f":"IF(TRIM(EO253)=\"\", \"\", IF(VLOOKUP(EO253,'Footnotes list'!$D$9:$E$58,2,FALSE)=0,\"\",VLOOKUP(EO253,'Footnotes list'!$D$9:$E$58,2,FALSE) ) )","v":""},null,null,null,null,{"$f":"IF(TRIM(ET253)=\"\", \"\", IF(VLOOKUP(ET253,'Footnotes list'!$D$9:$E$58,2,FALSE)=0,\"\",VLOOKUP(ET253,'Footnotes list'!$D$9:$E$58,2,FALSE) ) )","v":""},null,null,null,null,{"$f":"IF(TRIM(EY253)=\"\", \"\", IF(VLOOKUP(EY253,'Footnotes list'!$D$9:$E$58,2,FALSE)=0,\"\",VLOOKUP(EY253,'Footnotes list'!$D$9:$E$58,2,FALSE) ) )","v":""}]
[null,null,"N","ANC","ancillary activities",null,null,null,null,null,{"$f":"IF(TRIM(J254)=\"\", \"\", IF(VLOOKUP(J254,'Footnotes list'!$D$9:$E$58,2,FALSE)=0,\"\",VLOOKUP(J254,'Footnotes list'!$D$9:$E$58,2,FALSE) ) )","v":""},null,null,null,null,{"$f":"IF(TRIM(O254)=\"\", \"\", IF(VLOOKUP(O254,'Footnotes list'!$D$9:$E$58,2,FALSE)=0,\"\",VLOOKUP(O254,'Footnotes list'!$D$9:$E$58,2,FALSE) ) )","v":""},null,null,null,null,{"$f":"IF(TRIM(T254)=\"\", \"\", IF(VLOOKUP(T254,'Footnotes list'!$D$9:$E$58,2,FALSE)=0,\"\",VLOOKUP(T254,'Footnotes list'!$D$9:$E$58,2,FALSE) ) )","v":""},null,null,null,null,{"$f":"IF(TRIM(Y254)=\"\", \"\", IF(VLOOKUP(Y254,'Footnotes list'!$D$9:$E$58,2,FALSE)=0,\"\",VLOOKUP(Y254,'Footnotes list'!$D$9:$E$58,2,FALSE) ) )","v":""},null,null,null,null,{"$f":"IF(TRIM(AD254)=\"\", \"\", IF(VLOOKUP(AD254,'Footnotes list'!$D$9:$E$58,2,FALSE)=0,\"\",VLOOKUP(AD254,'Footnotes list'!$D$9:$E$58,2,FALSE) ) )","v":""},null,null,null,null,{"$f":"IF(TRIM(AI254)=\"\", \"\", IF(VLOOKUP(AI254,'Footnotes list'!$D$9:$E$58,2,FALSE)=0,\"\",VLOOKUP(AI254,'Footnotes list'!$D$9:$E$58,2,FALSE) ) )","v":""},null,null,null,null,{"$f":"IF(TRIM(AN254)=\"\", \"\", IF(VLOOKUP(AN254,'Footnotes list'!$D$9:$E$58,2,FALSE)=0,\"\",VLOOKUP(AN254,'Footnotes list'!$D$9:$E$58,2,FALSE) ) )","v":""},null,null,null,null,{"$f":"IF(TRIM(AS254)=\"\", \"\", IF(VLOOKUP(AS254,'Footnotes list'!$D$9:$E$58,2,FALSE)=0,\"\",VLOOKUP(AS254,'Footnotes list'!$D$9:$E$58,2,FALSE) ) )","v":""},null,null,null,null,{"$f":"IF(TRIM(AX254)=\"\", \"\", IF(VLOOKUP(AX254,'Footnotes list'!$D$9:$E$58,2,FALSE)=0,\"\",VLOOKUP(AX254,'Footnotes list'!$D$9:$E$58,2,FALSE) ) )","v":""},null,null,null,null,{"$f":"IF(TRIM(BC254)=\"\", \"\", IF(VLOOKUP(BC254,'Footnotes list'!$D$9:$E$58,2,FALSE)=0,\"\",VLOOKUP(BC254,'Footnotes list'!$D$9:$E$58,2,FALSE) ) )","v":""},null,null,null,null,{"$f":"IF(TRIM(BH254)=\"\", \"\", IF(VLOOKUP(BH254,'Footnotes list'!$D$9:$E$58,2,FALSE)=0,\"\",VLOOKUP(BH254,'Footnotes list'!$D$9:$E$58,2,FALSE) ) )","v":""},null,null,null,null,{"$f":"IF(TRIM(BM254)=\"\", \"\", IF(VLOOKUP(BM254,'Footnotes list'!$D$9:$E$58,2,FALSE)=0,\"\",VLOOKUP(BM254,'Footnotes list'!$D$9:$E$58,2,FALSE) ) )","v":""},null,null,null,null,{"$f":"IF(TRIM(BR254)=\"\", \"\", IF(VLOOKUP(BR254,'Footnotes list'!$D$9:$E$58,2,FALSE)=0,\"\",VLOOKUP(BR254,'Footnotes list'!$D$9:$E$58,2,FALSE) ) )","v":""},null,null,null,null,{"$f":"IF(TRIM(BW254)=\"\", \"\", IF(VLOOKUP(BW254,'Footnotes list'!$D$9:$E$58,2,FALSE)=0,\"\",VLOOKUP(BW254,'Footnotes list'!$D$9:$E$58,2,FALSE) ) )","v":""},null,null,null,null,{"$f":"IF(TRIM(CB254)=\"\", \"\", IF(VLOOKUP(CB254,'Footnotes list'!$D$9:$E$58,2,FALSE)=0,\"\",VLOOKUP(CB254,'Footnotes list'!$D$9:$E$58,2,FALSE) ) )","v":""},null,null,null,null,{"$f":"IF(TRIM(CG254)=\"\", \"\", IF(VLOOKUP(CG254,'Footnotes list'!$D$9:$E$58,2,FALSE)=0,\"\",VLOOKUP(CG254,'Footnotes list'!$D$9:$E$58,2,FALSE) ) )","v":""},null,null,null,null,{"$f":"IF(TRIM(CL254)=\"\", \"\", IF(VLOOKUP(CL254,'Footnotes list'!$D$9:$E$58,2,FALSE)=0,\"\",VLOOKUP(CL254,'Footnotes list'!$D$9:$E$58,2,FALSE) ) )","v":""},null,null,null,null,{"$f":"IF(TRIM(CQ254)=\"\", \"\", IF(VLOOKUP(CQ254,'Footnotes list'!$D$9:$E$58,2,FALSE)=0,\"\",VLOOKUP(CQ254,'Footnotes list'!$D$9:$E$58,2,FALSE) ) )","v":""},null,null,null,null,{"$f":"IF(TRIM(CV254)=\"\", \"\", IF(VLOOKUP(CV254,'Footnotes list'!$D$9:$E$58,2,FALSE)=0,\"\",VLOOKUP(CV254,'Footnotes list'!$D$9:$E$58,2,FALSE) ) )","v":""},null,null,null,null,{"$f":"IF(TRIM(DA254)=\"\", \"\", IF(VLOOKUP(DA254,'Footnotes list'!$D$9:$E$58,2,FALSE)=0,\"\",VLOOKUP(DA254,'Footnotes list'!$D$9:$E$58,2,FALSE) ) )","v":""},null,null,null,null,{"$f":"IF(TRIM(DF254)=\"\", \"\", IF(VLOOKUP(DF254,'Footnotes list'!$D$9:$E$58,2,FALSE)=0,\"\",VLOOKUP(DF254,'Footnotes list'!$D$9:$E$58,2,FALSE) ) )","v":""},null,null,null,null,{"$f":"IF(TRIM(DK254)=\"\", \"\", IF(VLOOKUP(DK254,'Footnotes list'!$D$9:$E$58,2,FALSE)=0,\"\",VLOOKUP(DK254,'Footnotes list'!$D$9:$E$58,2,FALSE) ) )","v":""},null,null,null,null,{"$f":"IF(TRIM(DP254)=\"\", \"\", IF(VLOOKUP(DP254,'Footnotes list'!$D$9:$E$58,2,FALSE)=0,\"\",VLOOKUP(DP254,'Footnotes list'!$D$9:$E$58,2,FALSE) ) )","v":""},null,null,null,null,{"$f":"IF(TRIM(DU254)=\"\", \"\", IF(VLOOKUP(DU254,'Footnotes list'!$D$9:$E$58,2,FALSE)=0,\"\",VLOOKUP(DU254,'Footnotes list'!$D$9:$E$58,2,FALSE) ) )","v":""},null,null,null,null,{"$f":"IF(TRIM(DZ254)=\"\", \"\", IF(VLOOKUP(DZ254,'Footnotes list'!$D$9:$E$58,2,FALSE)=0,\"\",VLOOKUP(DZ254,'Footnotes list'!$D$9:$E$58,2,FALSE) ) )","v":""},null,null,null,null,{"$f":"IF(TRIM(EE254)=\"\", \"\", IF(VLOOKUP(EE254,'Footnotes list'!$D$9:$E$58,2,FALSE)=0,\"\",VLOOKUP(EE254,'Footnotes list'!$D$9:$E$58,2,FALSE) ) )","v":""},null,null,null,null,{"$f":"IF(TRIM(EJ254)=\"\", \"\", IF(VLOOKUP(EJ254,'Footnotes list'!$D$9:$E$58,2,FALSE)=0,\"\",VLOOKUP(EJ254,'Footnotes list'!$D$9:$E$58,2,FALSE) ) )","v":""},null,null,null,null,{"$f":"IF(TRIM(EO254)=\"\", \"\", IF(VLOOKUP(EO254,'Footnotes list'!$D$9:$E$58,2,FALSE)=0,\"\",VLOOKUP(EO254,'Footnotes list'!$D$9:$E$58,2,FALSE) ) )","v":""},null,null,null,null,{"$f":"IF(TRIM(ET254)=\"\", \"\", IF(VLOOKUP(ET254,'Footnotes list'!$D$9:$E$58,2,FALSE)=0,\"\",VLOOKUP(ET254,'Footnotes list'!$D$9:$E$58,2,FALSE) ) )","v":""},null,null,null,null,{"$f":"IF(TRIM(EY254)=\"\", \"\", IF(VLOOKUP(EY254,'Footnotes list'!$D$9:$E$58,2,FALSE)=0,\"\",VLOOKUP(EY254,'Footnotes list'!$D$9:$E$58,2,FALSE) ) )","v":""}]
[null,null,"N","NMKT","non-market activities",null,null,null,null,null,{"$f":"IF(TRIM(J255)=\"\", \"\", IF(VLOOKUP(J255,'Footnotes list'!$D$9:$E$58,2,FALSE)=0,\"\",VLOOKUP(J255,'Footnotes list'!$D$9:$E$58,2,FALSE) ) )","v":""},null,null,null,null,{"$f":"IF(TRIM(O255)=\"\", \"\", IF(VLOOKUP(O255,'Footnotes list'!$D$9:$E$58,2,FALSE)=0,\"\",VLOOKUP(O255,'Footnotes list'!$D$9:$E$58,2,FALSE) ) )","v":""},null,null,null,null,{"$f":"IF(TRIM(T255)=\"\", \"\", IF(VLOOKUP(T255,'Footnotes list'!$D$9:$E$58,2,FALSE)=0,\"\",VLOOKUP(T255,'Footnotes list'!$D$9:$E$58,2,FALSE) ) )","v":""},null,null,null,null,{"$f":"IF(TRIM(Y255)=\"\", \"\", IF(VLOOKUP(Y255,'Footnotes list'!$D$9:$E$58,2,FALSE)=0,\"\",VLOOKUP(Y255,'Footnotes list'!$D$9:$E$58,2,FALSE) ) )","v":""},null,null,null,null,{"$f":"IF(TRIM(AD255)=\"\", \"\", IF(VLOOKUP(AD255,'Footnotes list'!$D$9:$E$58,2,FALSE)=0,\"\",VLOOKUP(AD255,'Footnotes list'!$D$9:$E$58,2,FALSE) ) )","v":""},null,null,null,null,{"$f":"IF(TRIM(AI255)=\"\", \"\", IF(VLOOKUP(AI255,'Footnotes list'!$D$9:$E$58,2,FALSE)=0,\"\",VLOOKUP(AI255,'Footnotes list'!$D$9:$E$58,2,FALSE) ) )","v":""},null,null,null,null,{"$f":"IF(TRIM(AN255)=\"\", \"\", IF(VLOOKUP(AN255,'Footnotes list'!$D$9:$E$58,2,FALSE)=0,\"\",VLOOKUP(AN255,'Footnotes list'!$D$9:$E$58,2,FALSE) ) )","v":""},null,null,null,null,{"$f":"IF(TRIM(AS255)=\"\", \"\", IF(VLOOKUP(AS255,'Footnotes list'!$D$9:$E$58,2,FALSE)=0,\"\",VLOOKUP(AS255,'Footnotes list'!$D$9:$E$58,2,FALSE) ) )","v":""},null,null,null,null,{"$f":"IF(TRIM(AX255)=\"\", \"\", IF(VLOOKUP(AX255,'Footnotes list'!$D$9:$E$58,2,FALSE)=0,\"\",VLOOKUP(AX255,'Footnotes list'!$D$9:$E$58,2,FALSE) ) )","v":""},null,null,null,null,{"$f":"IF(TRIM(BC255)=\"\", \"\", IF(VLOOKUP(BC255,'Footnotes list'!$D$9:$E$58,2,FALSE)=0,\"\",VLOOKUP(BC255,'Footnotes list'!$D$9:$E$58,2,FALSE) ) )","v":""},null,null,null,null,{"$f":"IF(TRIM(BH255)=\"\", \"\", IF(VLOOKUP(BH255,'Footnotes list'!$D$9:$E$58,2,FALSE)=0,\"\",VLOOKUP(BH255,'Footnotes list'!$D$9:$E$58,2,FALSE) ) )","v":""},null,null,null,null,{"$f":"IF(TRIM(BM255)=\"\", \"\", IF(VLOOKUP(BM255,'Footnotes list'!$D$9:$E$58,2,FALSE)=0,\"\",VLOOKUP(BM255,'Footnotes list'!$D$9:$E$58,2,FALSE) ) )","v":""},null,null,null,null,{"$f":"IF(TRIM(BR255)=\"\", \"\", IF(VLOOKUP(BR255,'Footnotes list'!$D$9:$E$58,2,FALSE)=0,\"\",VLOOKUP(BR255,'Footnotes list'!$D$9:$E$58,2,FALSE) ) )","v":""},null,null,null,null,{"$f":"IF(TRIM(BW255)=\"\", \"\", IF(VLOOKUP(BW255,'Footnotes list'!$D$9:$E$58,2,FALSE)=0,\"\",VLOOKUP(BW255,'Footnotes list'!$D$9:$E$58,2,FALSE) ) )","v":""},null,null,null,null,{"$f":"IF(TRIM(CB255)=\"\", \"\", IF(VLOOKUP(CB255,'Footnotes list'!$D$9:$E$58,2,FALSE)=0,\"\",VLOOKUP(CB255,'Footnotes list'!$D$9:$E$58,2,FALSE) ) )","v":""},null,null,null,null,{"$f":"IF(TRIM(CG255)=\"\", \"\", IF(VLOOKUP(CG255,'Footnotes list'!$D$9:$E$58,2,FALSE)=0,\"\",VLOOKUP(CG255,'Footnotes list'!$D$9:$E$58,2,FALSE) ) )","v":""},null,null,null,null,{"$f":"IF(TRIM(CL255)=\"\", \"\", IF(VLOOKUP(CL255,'Footnotes list'!$D$9:$E$58,2,FALSE)=0,\"\",VLOOKUP(CL255,'Footnotes list'!$D$9:$E$58,2,FALSE) ) )","v":""},null,null,null,null,{"$f":"IF(TRIM(CQ255)=\"\", \"\", IF(VLOOKUP(CQ255,'Footnotes list'!$D$9:$E$58,2,FALSE)=0,\"\",VLOOKUP(CQ255,'Footnotes list'!$D$9:$E$58,2,FALSE) ) )","v":""},null,null,null,null,{"$f":"IF(TRIM(CV255)=\"\", \"\", IF(VLOOKUP(CV255,'Footnotes list'!$D$9:$E$58,2,FALSE)=0,\"\",VLOOKUP(CV255,'Footnotes list'!$D$9:$E$58,2,FALSE) ) )","v":""},null,null,null,null,{"$f":"IF(TRIM(DA255)=\"\", \"\", IF(VLOOKUP(DA255,'Footnotes list'!$D$9:$E$58,2,FALSE)=0,\"\",VLOOKUP(DA255,'Footnotes list'!$D$9:$E$58,2,FALSE) ) )","v":""},null,null,null,null,{"$f":"IF(TRIM(DF255)=\"\", \"\", IF(VLOOKUP(DF255,'Footnotes list'!$D$9:$E$58,2,FALSE)=0,\"\",VLOOKUP(DF255,'Footnotes list'!$D$9:$E$58,2,FALSE) ) )","v":""},null,null,null,null,{"$f":"IF(TRIM(DK255)=\"\", \"\", IF(VLOOKUP(DK255,'Footnotes list'!$D$9:$E$58,2,FALSE)=0,\"\",VLOOKUP(DK255,'Footnotes list'!$D$9:$E$58,2,FALSE) ) )","v":""},null,null,null,null,{"$f":"IF(TRIM(DP255)=\"\", \"\", IF(VLOOKUP(DP255,'Footnotes list'!$D$9:$E$58,2,FALSE)=0,\"\",VLOOKUP(DP255,'Footnotes list'!$D$9:$E$58,2,FALSE) ) )","v":""},null,null,null,null,{"$f":"IF(TRIM(DU255)=\"\", \"\", IF(VLOOKUP(DU255,'Footnotes list'!$D$9:$E$58,2,FALSE)=0,\"\",VLOOKUP(DU255,'Footnotes list'!$D$9:$E$58,2,FALSE) ) )","v":""},null,null,null,null,{"$f":"IF(TRIM(DZ255)=\"\", \"\", IF(VLOOKUP(DZ255,'Footnotes list'!$D$9:$E$58,2,FALSE)=0,\"\",VLOOKUP(DZ255,'Footnotes list'!$D$9:$E$58,2,FALSE) ) )","v":""},null,null,null,null,{"$f":"IF(TRIM(EE255)=\"\", \"\", IF(VLOOKUP(EE255,'Footnotes list'!$D$9:$E$58,2,FALSE)=0,\"\",VLOOKUP(EE255,'Footnotes list'!$D$9:$E$58,2,FALSE) ) )","v":""},null,null,null,null,{"$f":"IF(TRIM(EJ255)=\"\", \"\", IF(VLOOKUP(EJ255,'Footnotes list'!$D$9:$E$58,2,FALSE)=0,\"\",VLOOKUP(EJ255,'Footnotes list'!$D$9:$E$58,2,FALSE) ) )","v":""},null,null,null,null,{"$f":"IF(TRIM(EO255)=\"\", \"\", IF(VLOOKUP(EO255,'Footnotes list'!$D$9:$E$58,2,FALSE)=0,\"\",VLOOKUP(EO255,'Footnotes list'!$D$9:$E$58,2,FALSE) ) )","v":""},null,null,null,null,{"$f":"IF(TRIM(ET255)=\"\", \"\", IF(VLOOKUP(ET255,'Footnotes list'!$D$9:$E$58,2,FALSE)=0,\"\",VLOOKUP(ET255,'Footnotes list'!$D$9:$E$58,2,FALSE) ) )","v":""},null,null,null,null,{"$f":"IF(TRIM(EY255)=\"\", \"\", IF(VLOOKUP(EY255,'Footnotes list'!$D$9:$E$58,2,FALSE)=0,\"\",VLOOKUP(EY255,'Footnotes list'!$D$9:$E$58,2,FALSE) ) )","v":""}]
[null,null,"N","OWN_USE","activities for own final use",null,null,null,null,null,{"$f":"IF(TRIM(J256)=\"\", \"\", IF(VLOOKUP(J256,'Footnotes list'!$D$9:$E$58,2,FALSE)=0,\"\",VLOOKUP(J256,'Footnotes list'!$D$9:$E$58,2,FALSE) ) )","v":""},null,null,null,null,{"$f":"IF(TRIM(O256)=\"\", \"\", IF(VLOOKUP(O256,'Footnotes list'!$D$9:$E$58,2,FALSE)=0,\"\",VLOOKUP(O256,'Footnotes list'!$D$9:$E$58,2,FALSE) ) )","v":""},null,null,null,null,{"$f":"IF(TRIM(T256)=\"\", \"\", IF(VLOOKUP(T256,'Footnotes list'!$D$9:$E$58,2,FALSE)=0,\"\",VLOOKUP(T256,'Footnotes list'!$D$9:$E$58,2,FALSE) ) )","v":""},null,null,null,null,{"$f":"IF(TRIM(Y256)=\"\", \"\", IF(VLOOKUP(Y256,'Footnotes list'!$D$9:$E$58,2,FALSE)=0,\"\",VLOOKUP(Y256,'Footnotes list'!$D$9:$E$58,2,FALSE) ) )","v":""},null,null,null,null,{"$f":"IF(TRIM(AD256)=\"\", \"\", IF(VLOOKUP(AD256,'Footnotes list'!$D$9:$E$58,2,FALSE)=0,\"\",VLOOKUP(AD256,'Footnotes list'!$D$9:$E$58,2,FALSE) ) )","v":""},null,null,null,null,{"$f":"IF(TRIM(AI256)=\"\", \"\", IF(VLOOKUP(AI256,'Footnotes list'!$D$9:$E$58,2,FALSE)=0,\"\",VLOOKUP(AI256,'Footnotes list'!$D$9:$E$58,2,FALSE) ) )","v":""},null,null,null,null,{"$f":"IF(TRIM(AN256)=\"\", \"\", IF(VLOOKUP(AN256,'Footnotes list'!$D$9:$E$58,2,FALSE)=0,\"\",VLOOKUP(AN256,'Footnotes list'!$D$9:$E$58,2,FALSE) ) )","v":""},null,null,null,null,{"$f":"IF(TRIM(AS256)=\"\", \"\", IF(VLOOKUP(AS256,'Footnotes list'!$D$9:$E$58,2,FALSE)=0,\"\",VLOOKUP(AS256,'Footnotes list'!$D$9:$E$58,2,FALSE) ) )","v":""},null,null,null,null,{"$f":"IF(TRIM(AX256)=\"\", \"\", IF(VLOOKUP(AX256,'Footnotes list'!$D$9:$E$58,2,FALSE)=0,\"\",VLOOKUP(AX256,'Footnotes list'!$D$9:$E$58,2,FALSE) ) )","v":""},null,null,null,null,{"$f":"IF(TRIM(BC256)=\"\", \"\", IF(VLOOKUP(BC256,'Footnotes list'!$D$9:$E$58,2,FALSE)=0,\"\",VLOOKUP(BC256,'Footnotes list'!$D$9:$E$58,2,FALSE) ) )","v":""},null,null,null,null,{"$f":"IF(TRIM(BH256)=\"\", \"\", IF(VLOOKUP(BH256,'Footnotes list'!$D$9:$E$58,2,FALSE)=0,\"\",VLOOKUP(BH256,'Footnotes list'!$D$9:$E$58,2,FALSE) ) )","v":""},null,null,null,null,{"$f":"IF(TRIM(BM256)=\"\", \"\", IF(VLOOKUP(BM256,'Footnotes list'!$D$9:$E$58,2,FALSE)=0,\"\",VLOOKUP(BM256,'Footnotes list'!$D$9:$E$58,2,FALSE) ) )","v":""},null,null,null,null,{"$f":"IF(TRIM(BR256)=\"\", \"\", IF(VLOOKUP(BR256,'Footnotes list'!$D$9:$E$58,2,FALSE)=0,\"\",VLOOKUP(BR256,'Footnotes list'!$D$9:$E$58,2,FALSE) ) )","v":""},null,null,null,null,{"$f":"IF(TRIM(BW256)=\"\", \"\", IF(VLOOKUP(BW256,'Footnotes list'!$D$9:$E$58,2,FALSE)=0,\"\",VLOOKUP(BW256,'Footnotes list'!$D$9:$E$58,2,FALSE) ) )","v":""},null,null,null,null,{"$f":"IF(TRIM(CB256)=\"\", \"\", IF(VLOOKUP(CB256,'Footnotes list'!$D$9:$E$58,2,FALSE)=0,\"\",VLOOKUP(CB256,'Footnotes list'!$D$9:$E$58,2,FALSE) ) )","v":""},null,null,null,null,{"$f":"IF(TRIM(CG256)=\"\", \"\", IF(VLOOKUP(CG256,'Footnotes list'!$D$9:$E$58,2,FALSE)=0,\"\",VLOOKUP(CG256,'Footnotes list'!$D$9:$E$58,2,FALSE) ) )","v":""},null,null,null,null,{"$f":"IF(TRIM(CL256)=\"\", \"\", IF(VLOOKUP(CL256,'Footnotes list'!$D$9:$E$58,2,FALSE)=0,\"\",VLOOKUP(CL256,'Footnotes list'!$D$9:$E$58,2,FALSE) ) )","v":""},null,null,null,null,{"$f":"IF(TRIM(CQ256)=\"\", \"\", IF(VLOOKUP(CQ256,'Footnotes list'!$D$9:$E$58,2,FALSE)=0,\"\",VLOOKUP(CQ256,'Footnotes list'!$D$9:$E$58,2,FALSE) ) )","v":""},null,null,null,null,{"$f":"IF(TRIM(CV256)=\"\", \"\", IF(VLOOKUP(CV256,'Footnotes list'!$D$9:$E$58,2,FALSE)=0,\"\",VLOOKUP(CV256,'Footnotes list'!$D$9:$E$58,2,FALSE) ) )","v":""},null,null,null,null,{"$f":"IF(TRIM(DA256)=\"\", \"\", IF(VLOOKUP(DA256,'Footnotes list'!$D$9:$E$58,2,FALSE)=0,\"\",VLOOKUP(DA256,'Footnotes list'!$D$9:$E$58,2,FALSE) ) )","v":""},null,null,null,null,{"$f":"IF(TRIM(DF256)=\"\", \"\", IF(VLOOKUP(DF256,'Footnotes list'!$D$9:$E$58,2,FALSE)=0,\"\",VLOOKUP(DF256,'Footnotes list'!$D$9:$E$58,2,FALSE) ) )","v":""},null,null,null,null,{"$f":"IF(TRIM(DK256)=\"\", \"\", IF(VLOOKUP(DK256,'Footnotes list'!$D$9:$E$58,2,FALSE)=0,\"\",VLOOKUP(DK256,'Footnotes list'!$D$9:$E$58,2,FALSE) ) )","v":""},null,null,null,null,{"$f":"IF(TRIM(DP256)=\"\", \"\", IF(VLOOKUP(DP256,'Footnotes list'!$D$9:$E$58,2,FALSE)=0,\"\",VLOOKUP(DP256,'Footnotes list'!$D$9:$E$58,2,FALSE) ) )","v":""},null,null,null,null,{"$f":"IF(TRIM(DU256)=\"\", \"\", IF(VLOOKUP(DU256,'Footnotes list'!$D$9:$E$58,2,FALSE)=0,\"\",VLOOKUP(DU256,'Footnotes list'!$D$9:$E$58,2,FALSE) ) )","v":""},null,null,null,null,{"$f":"IF(TRIM(DZ256)=\"\", \"\", IF(VLOOKUP(DZ256,'Footnotes list'!$D$9:$E$58,2,FALSE)=0,\"\",VLOOKUP(DZ256,'Footnotes list'!$D$9:$E$58,2,FALSE) ) )","v":""},null,null,null,null,{"$f":"IF(TRIM(EE256)=\"\", \"\", IF(VLOOKUP(EE256,'Footnotes list'!$D$9:$E$58,2,FALSE)=0,\"\",VLOOKUP(EE256,'Footnotes list'!$D$9:$E$58,2,FALSE) ) )","v":""},null,null,null,null,{"$f":"IF(TRIM(EJ256)=\"\", \"\", IF(VLOOKUP(EJ256,'Footnotes list'!$D$9:$E$58,2,FALSE)=0,\"\",VLOOKUP(EJ256,'Footnotes list'!$D$9:$E$58,2,FALSE) ) )","v":""},null,null,null,null,{"$f":"IF(TRIM(EO256)=\"\", \"\", IF(VLOOKUP(EO256,'Footnotes list'!$D$9:$E$58,2,FALSE)=0,\"\",VLOOKUP(EO256,'Footnotes list'!$D$9:$E$58,2,FALSE) ) )","v":""},null,null,null,null,{"$f":"IF(TRIM(ET256)=\"\", \"\", IF(VLOOKUP(ET256,'Footnotes list'!$D$9:$E$58,2,FALSE)=0,\"\",VLOOKUP(ET256,'Footnotes list'!$D$9:$E$58,2,FALSE) ) )","v":""},null,null,null,null,{"$f":"IF(TRIM(EY256)=\"\", \"\", IF(VLOOKUP(EY256,'Footnotes list'!$D$9:$E$58,2,FALSE)=0,\"\",VLOOKUP(EY256,'Footnotes list'!$D$9:$E$58,2,FALSE) ) )","v":""}]
[null,null,"N","MKT","market activities, including:",null,null,null,null,null,{"$f":"IF(TRIM(J257)=\"\", \"\", IF(VLOOKUP(J257,'Footnotes list'!$D$9:$E$58,2,FALSE)=0,\"\",VLOOKUP(J257,'Footnotes list'!$D$9:$E$58,2,FALSE) ) )","v":""},null,null,null,null,{"$f":"IF(TRIM(O257)=\"\", \"\", IF(VLOOKUP(O257,'Footnotes list'!$D$9:$E$58,2,FALSE)=0,\"\",VLOOKUP(O257,'Footnotes list'!$D$9:$E$58,2,FALSE) ) )","v":""},null,null,null,null,{"$f":"IF(TRIM(T257)=\"\", \"\", IF(VLOOKUP(T257,'Footnotes list'!$D$9:$E$58,2,FALSE)=0,\"\",VLOOKUP(T257,'Footnotes list'!$D$9:$E$58,2,FALSE) ) )","v":""},null,null,null,null,{"$f":"IF(TRIM(Y257)=\"\", \"\", IF(VLOOKUP(Y257,'Footnotes list'!$D$9:$E$58,2,FALSE)=0,\"\",VLOOKUP(Y257,'Footnotes list'!$D$9:$E$58,2,FALSE) ) )","v":""},null,null,null,null,{"$f":"IF(TRIM(AD257)=\"\", \"\", IF(VLOOKUP(AD257,'Footnotes list'!$D$9:$E$58,2,FALSE)=0,\"\",VLOOKUP(AD257,'Footnotes list'!$D$9:$E$58,2,FALSE) ) )","v":""},null,null,null,null,{"$f":"IF(TRIM(AI257)=\"\", \"\", IF(VLOOKUP(AI257,'Footnotes list'!$D$9:$E$58,2,FALSE)=0,\"\",VLOOKUP(AI257,'Footnotes list'!$D$9:$E$58,2,FALSE) ) )","v":""},null,null,null,null,{"$f":"IF(TRIM(AN257)=\"\", \"\", IF(VLOOKUP(AN257,'Footnotes list'!$D$9:$E$58,2,FALSE)=0,\"\",VLOOKUP(AN257,'Footnotes list'!$D$9:$E$58,2,FALSE) ) )","v":""},null,null,null,null,{"$f":"IF(TRIM(AS257)=\"\", \"\", IF(VLOOKUP(AS257,'Footnotes list'!$D$9:$E$58,2,FALSE)=0,\"\",VLOOKUP(AS257,'Footnotes list'!$D$9:$E$58,2,FALSE) ) )","v":""},null,null,null,null,{"$f":"IF(TRIM(AX257)=\"\", \"\", IF(VLOOKUP(AX257,'Footnotes list'!$D$9:$E$58,2,FALSE)=0,\"\",VLOOKUP(AX257,'Footnotes list'!$D$9:$E$58,2,FALSE) ) )","v":""},null,null,null,null,{"$f":"IF(TRIM(BC257)=\"\", \"\", IF(VLOOKUP(BC257,'Footnotes list'!$D$9:$E$58,2,FALSE)=0,\"\",VLOOKUP(BC257,'Footnotes list'!$D$9:$E$58,2,FALSE) ) )","v":""},null,null,null,null,{"$f":"IF(TRIM(BH257)=\"\", \"\", IF(VLOOKUP(BH257,'Footnotes list'!$D$9:$E$58,2,FALSE)=0,\"\",VLOOKUP(BH257,'Footnotes list'!$D$9:$E$58,2,FALSE) ) )","v":""},null,null,null,null,{"$f":"IF(TRIM(BM257)=\"\", \"\", IF(VLOOKUP(BM257,'Footnotes list'!$D$9:$E$58,2,FALSE)=0,\"\",VLOOKUP(BM257,'Footnotes list'!$D$9:$E$58,2,FALSE) ) )","v":""},null,null,null,null,{"$f":"IF(TRIM(BR257)=\"\", \"\", IF(VLOOKUP(BR257,'Footnotes list'!$D$9:$E$58,2,FALSE)=0,\"\",VLOOKUP(BR257,'Footnotes list'!$D$9:$E$58,2,FALSE) ) )","v":""},null,null,null,null,{"$f":"IF(TRIM(BW257)=\"\", \"\", IF(VLOOKUP(BW257,'Footnotes list'!$D$9:$E$58,2,FALSE)=0,\"\",VLOOKUP(BW257,'Footnotes list'!$D$9:$E$58,2,FALSE) ) )","v":""},null,null,null,null,{"$f":"IF(TRIM(CB257)=\"\", \"\", IF(VLOOKUP(CB257,'Footnotes list'!$D$9:$E$58,2,FALSE)=0,\"\",VLOOKUP(CB257,'Footnotes list'!$D$9:$E$58,2,FALSE) ) )","v":""},null,null,null,null,{"$f":"IF(TRIM(CG257)=\"\", \"\", IF(VLOOKUP(CG257,'Footnotes list'!$D$9:$E$58,2,FALSE)=0,\"\",VLOOKUP(CG257,'Footnotes list'!$D$9:$E$58,2,FALSE) ) )","v":""},null,null,null,null,{"$f":"IF(TRIM(CL257)=\"\", \"\", IF(VLOOKUP(CL257,'Footnotes list'!$D$9:$E$58,2,FALSE)=0,\"\",VLOOKUP(CL257,'Footnotes list'!$D$9:$E$58,2,FALSE) ) )","v":""},null,null,null,null,{"$f":"IF(TRIM(CQ257)=\"\", \"\", IF(VLOOKUP(CQ257,'Footnotes list'!$D$9:$E$58,2,FALSE)=0,\"\",VLOOKUP(CQ257,'Footnotes list'!$D$9:$E$58,2,FALSE) ) )","v":""},null,null,null,null,{"$f":"IF(TRIM(CV257)=\"\", \"\", IF(VLOOKUP(CV257,'Footnotes list'!$D$9:$E$58,2,FALSE)=0,\"\",VLOOKUP(CV257,'Footnotes list'!$D$9:$E$58,2,FALSE) ) )","v":""},null,null,null,null,{"$f":"IF(TRIM(DA257)=\"\", \"\", IF(VLOOKUP(DA257,'Footnotes list'!$D$9:$E$58,2,FALSE)=0,\"\",VLOOKUP(DA257,'Footnotes list'!$D$9:$E$58,2,FALSE) ) )","v":""},null,null,null,null,{"$f":"IF(TRIM(DF257)=\"\", \"\", IF(VLOOKUP(DF257,'Footnotes list'!$D$9:$E$58,2,FALSE)=0,\"\",VLOOKUP(DF257,'Footnotes list'!$D$9:$E$58,2,FALSE) ) )","v":""},null,null,null,null,{"$f":"IF(TRIM(DK257)=\"\", \"\", IF(VLOOKUP(DK257,'Footnotes list'!$D$9:$E$58,2,FALSE)=0,\"\",VLOOKUP(DK257,'Footnotes list'!$D$9:$E$58,2,FALSE) ) )","v":""},null,null,null,null,{"$f":"IF(TRIM(DP257)=\"\", \"\", IF(VLOOKUP(DP257,'Footnotes list'!$D$9:$E$58,2,FALSE)=0,\"\",VLOOKUP(DP257,'Footnotes list'!$D$9:$E$58,2,FALSE) ) )","v":""},null,null,null,null,{"$f":"IF(TRIM(DU257)=\"\", \"\", IF(VLOOKUP(DU257,'Footnotes list'!$D$9:$E$58,2,FALSE)=0,\"\",VLOOKUP(DU257,'Footnotes list'!$D$9:$E$58,2,FALSE) ) )","v":""},null,null,null,null,{"$f":"IF(TRIM(DZ257)=\"\", \"\", IF(VLOOKUP(DZ257,'Footnotes list'!$D$9:$E$58,2,FALSE)=0,\"\",VLOOKUP(DZ257,'Footnotes list'!$D$9:$E$58,2,FALSE) ) )","v":""},null,null,null,null,{"$f":"IF(TRIM(EE257)=\"\", \"\", IF(VLOOKUP(EE257,'Footnotes list'!$D$9:$E$58,2,FALSE)=0,\"\",VLOOKUP(EE257,'Footnotes list'!$D$9:$E$58,2,FALSE) ) )","v":""},null,null,null,null,{"$f":"IF(TRIM(EJ257)=\"\", \"\", IF(VLOOKUP(EJ257,'Footnotes list'!$D$9:$E$58,2,FALSE)=0,\"\",VLOOKUP(EJ257,'Footnotes list'!$D$9:$E$58,2,FALSE) ) )","v":""},null,null,null,null,{"$f":"IF(TRIM(EO257)=\"\", \"\", IF(VLOOKUP(EO257,'Footnotes list'!$D$9:$E$58,2,FALSE)=0,\"\",VLOOKUP(EO257,'Footnotes list'!$D$9:$E$58,2,FALSE) ) )","v":""},null,null,null,null,{"$f":"IF(TRIM(ET257)=\"\", \"\", IF(VLOOKUP(ET257,'Footnotes list'!$D$9:$E$58,2,FALSE)=0,\"\",VLOOKUP(ET257,'Footnotes list'!$D$9:$E$58,2,FALSE) ) )","v":""},null,null,null,null,{"$f":"IF(TRIM(EY257)=\"\", \"\", IF(VLOOKUP(EY257,'Footnotes list'!$D$9:$E$58,2,FALSE)=0,\"\",VLOOKUP(EY257,'Footnotes list'!$D$9:$E$58,2,FALSE) ) )","v":""}]
[null,null,"N","ES_CS","environmental specific services",null,null,null,null,null,{"$f":"IF(TRIM(J258)=\"\", \"\", IF(VLOOKUP(J258,'Footnotes list'!$D$9:$E$58,2,FALSE)=0,\"\",VLOOKUP(J258,'Footnotes list'!$D$9:$E$58,2,FALSE) ) )","v":""},null,null,null,null,{"$f":"IF(TRIM(O258)=\"\", \"\", IF(VLOOKUP(O258,'Footnotes list'!$D$9:$E$58,2,FALSE)=0,\"\",VLOOKUP(O258,'Footnotes list'!$D$9:$E$58,2,FALSE) ) )","v":""},null,null,null,null,{"$f":"IF(TRIM(T258)=\"\", \"\", IF(VLOOKUP(T258,'Footnotes list'!$D$9:$E$58,2,FALSE)=0,\"\",VLOOKUP(T258,'Footnotes list'!$D$9:$E$58,2,FALSE) ) )","v":""},null,null,null,null,{"$f":"IF(TRIM(Y258)=\"\", \"\", IF(VLOOKUP(Y258,'Footnotes list'!$D$9:$E$58,2,FALSE)=0,\"\",VLOOKUP(Y258,'Footnotes list'!$D$9:$E$58,2,FALSE) ) )","v":""},null,null,null,null,{"$f":"IF(TRIM(AD258)=\"\", \"\", IF(VLOOKUP(AD258,'Footnotes list'!$D$9:$E$58,2,FALSE)=0,\"\",VLOOKUP(AD258,'Footnotes list'!$D$9:$E$58,2,FALSE) ) )","v":""},null,null,null,null,{"$f":"IF(TRIM(AI258)=\"\", \"\", IF(VLOOKUP(AI258,'Footnotes list'!$D$9:$E$58,2,FALSE)=0,\"\",VLOOKUP(AI258,'Footnotes list'!$D$9:$E$58,2,FALSE) ) )","v":""},null,null,null,null,{"$f":"IF(TRIM(AN258)=\"\", \"\", IF(VLOOKUP(AN258,'Footnotes list'!$D$9:$E$58,2,FALSE)=0,\"\",VLOOKUP(AN258,'Footnotes list'!$D$9:$E$58,2,FALSE) ) )","v":""},null,null,null,null,{"$f":"IF(TRIM(AS258)=\"\", \"\", IF(VLOOKUP(AS258,'Footnotes list'!$D$9:$E$58,2,FALSE)=0,\"\",VLOOKUP(AS258,'Footnotes list'!$D$9:$E$58,2,FALSE) ) )","v":""},null,null,null,null,{"$f":"IF(TRIM(AX258)=\"\", \"\", IF(VLOOKUP(AX258,'Footnotes list'!$D$9:$E$58,2,FALSE)=0,\"\",VLOOKUP(AX258,'Footnotes list'!$D$9:$E$58,2,FALSE) ) )","v":""},null,null,null,null,{"$f":"IF(TRIM(BC258)=\"\", \"\", IF(VLOOKUP(BC258,'Footnotes list'!$D$9:$E$58,2,FALSE)=0,\"\",VLOOKUP(BC258,'Footnotes list'!$D$9:$E$58,2,FALSE) ) )","v":""},null,null,null,null,{"$f":"IF(TRIM(BH258)=\"\", \"\", IF(VLOOKUP(BH258,'Footnotes list'!$D$9:$E$58,2,FALSE)=0,\"\",VLOOKUP(BH258,'Footnotes list'!$D$9:$E$58,2,FALSE) ) )","v":""},null,null,null,null,{"$f":"IF(TRIM(BM258)=\"\", \"\", IF(VLOOKUP(BM258,'Footnotes list'!$D$9:$E$58,2,FALSE)=0,\"\",VLOOKUP(BM258,'Footnotes list'!$D$9:$E$58,2,FALSE) ) )","v":""},null,null,null,null,{"$f":"IF(TRIM(BR258)=\"\", \"\", IF(VLOOKUP(BR258,'Footnotes list'!$D$9:$E$58,2,FALSE)=0,\"\",VLOOKUP(BR258,'Footnotes list'!$D$9:$E$58,2,FALSE) ) )","v":""},null,null,null,null,{"$f":"IF(TRIM(BW258)=\"\", \"\", IF(VLOOKUP(BW258,'Footnotes list'!$D$9:$E$58,2,FALSE)=0,\"\",VLOOKUP(BW258,'Footnotes list'!$D$9:$E$58,2,FALSE) ) )","v":""},null,null,null,null,{"$f":"IF(TRIM(CB258)=\"\", \"\", IF(VLOOKUP(CB258,'Footnotes list'!$D$9:$E$58,2,FALSE)=0,\"\",VLOOKUP(CB258,'Footnotes list'!$D$9:$E$58,2,FALSE) ) )","v":""},null,null,null,null,{"$f":"IF(TRIM(CG258)=\"\", \"\", IF(VLOOKUP(CG258,'Footnotes list'!$D$9:$E$58,2,FALSE)=0,\"\",VLOOKUP(CG258,'Footnotes list'!$D$9:$E$58,2,FALSE) ) )","v":""},null,null,null,null,{"$f":"IF(TRIM(CL258)=\"\", \"\", IF(VLOOKUP(CL258,'Footnotes list'!$D$9:$E$58,2,FALSE)=0,\"\",VLOOKUP(CL258,'Footnotes list'!$D$9:$E$58,2,FALSE) ) )","v":""},null,null,null,null,{"$f":"IF(TRIM(CQ258)=\"\", \"\", IF(VLOOKUP(CQ258,'Footnotes list'!$D$9:$E$58,2,FALSE)=0,\"\",VLOOKUP(CQ258,'Footnotes list'!$D$9:$E$58,2,FALSE) ) )","v":""},null,null,null,null,{"$f":"IF(TRIM(CV258)=\"\", \"\", IF(VLOOKUP(CV258,'Footnotes list'!$D$9:$E$58,2,FALSE)=0,\"\",VLOOKUP(CV258,'Footnotes list'!$D$9:$E$58,2,FALSE) ) )","v":""},null,null,null,null,{"$f":"IF(TRIM(DA258)=\"\", \"\", IF(VLOOKUP(DA258,'Footnotes list'!$D$9:$E$58,2,FALSE)=0,\"\",VLOOKUP(DA258,'Footnotes list'!$D$9:$E$58,2,FALSE) ) )","v":""},null,null,null,null,{"$f":"IF(TRIM(DF258)=\"\", \"\", IF(VLOOKUP(DF258,'Footnotes list'!$D$9:$E$58,2,FALSE)=0,\"\",VLOOKUP(DF258,'Footnotes list'!$D$9:$E$58,2,FALSE) ) )","v":""},null,null,null,null,{"$f":"IF(TRIM(DK258)=\"\", \"\", IF(VLOOKUP(DK258,'Footnotes list'!$D$9:$E$58,2,FALSE)=0,\"\",VLOOKUP(DK258,'Footnotes list'!$D$9:$E$58,2,FALSE) ) )","v":""},null,null,null,null,{"$f":"IF(TRIM(DP258)=\"\", \"\", IF(VLOOKUP(DP258,'Footnotes list'!$D$9:$E$58,2,FALSE)=0,\"\",VLOOKUP(DP258,'Footnotes list'!$D$9:$E$58,2,FALSE) ) )","v":""},null,null,null,null,{"$f":"IF(TRIM(DU258)=\"\", \"\", IF(VLOOKUP(DU258,'Footnotes list'!$D$9:$E$58,2,FALSE)=0,\"\",VLOOKUP(DU258,'Footnotes list'!$D$9:$E$58,2,FALSE) ) )","v":""},null,null,null,null,{"$f":"IF(TRIM(DZ258)=\"\", \"\", IF(VLOOKUP(DZ258,'Footnotes list'!$D$9:$E$58,2,FALSE)=0,\"\",VLOOKUP(DZ258,'Footnotes list'!$D$9:$E$58,2,FALSE) ) )","v":""},null,null,null,null,{"$f":"IF(TRIM(EE258)=\"\", \"\", IF(VLOOKUP(EE258,'Footnotes list'!$D$9:$E$58,2,FALSE)=0,\"\",VLOOKUP(EE258,'Footnotes list'!$D$9:$E$58,2,FALSE) ) )","v":""},null,null,null,null,{"$f":"IF(TRIM(EJ258)=\"\", \"\", IF(VLOOKUP(EJ258,'Footnotes list'!$D$9:$E$58,2,FALSE)=0,\"\",VLOOKUP(EJ258,'Footnotes list'!$D$9:$E$58,2,FALSE) ) )","v":""},null,null,null,null,{"$f":"IF(TRIM(EO258)=\"\", \"\", IF(VLOOKUP(EO258,'Footnotes list'!$D$9:$E$58,2,FALSE)=0,\"\",VLOOKUP(EO258,'Footnotes list'!$D$9:$E$58,2,FALSE) ) )","v":""},null,null,null,null,{"$f":"IF(TRIM(ET258)=\"\", \"\", IF(VLOOKUP(ET258,'Footnotes list'!$D$9:$E$58,2,FALSE)=0,\"\",VLOOKUP(ET258,'Footnotes list'!$D$9:$E$58,2,FALSE) ) )","v":""},null,null,null,null,{"$f":"IF(TRIM(EY258)=\"\", \"\", IF(VLOOKUP(EY258,'Footnotes list'!$D$9:$E$58,2,FALSE)=0,\"\",VLOOKUP(EY258,'Footnotes list'!$D$9:$E$58,2,FALSE) ) )","v":""}]
[null,null,"N","C_REP","cleaner and resource efficient products",null,null,null,null,null,{"$f":"IF(TRIM(J259)=\"\", \"\", IF(VLOOKUP(J259,'Footnotes list'!$D$9:$E$58,2,FALSE)=0,\"\",VLOOKUP(J259,'Footnotes list'!$D$9:$E$58,2,FALSE) ) )","v":""},null,null,null,null,{"$f":"IF(TRIM(O259)=\"\", \"\", IF(VLOOKUP(O259,'Footnotes list'!$D$9:$E$58,2,FALSE)=0,\"\",VLOOKUP(O259,'Footnotes list'!$D$9:$E$58,2,FALSE) ) )","v":""},null,null,null,null,{"$f":"IF(TRIM(T259)=\"\", \"\", IF(VLOOKUP(T259,'Footnotes list'!$D$9:$E$58,2,FALSE)=0,\"\",VLOOKUP(T259,'Footnotes list'!$D$9:$E$58,2,FALSE) ) )","v":""},null,null,null,null,{"$f":"IF(TRIM(Y259)=\"\", \"\", IF(VLOOKUP(Y259,'Footnotes list'!$D$9:$E$58,2,FALSE)=0,\"\",VLOOKUP(Y259,'Footnotes list'!$D$9:$E$58,2,FALSE) ) )","v":""},null,null,null,null,{"$f":"IF(TRIM(AD259)=\"\", \"\", IF(VLOOKUP(AD259,'Footnotes list'!$D$9:$E$58,2,FALSE)=0,\"\",VLOOKUP(AD259,'Footnotes list'!$D$9:$E$58,2,FALSE) ) )","v":""},null,null,null,null,{"$f":"IF(TRIM(AI259)=\"\", \"\", IF(VLOOKUP(AI259,'Footnotes list'!$D$9:$E$58,2,FALSE)=0,\"\",VLOOKUP(AI259,'Footnotes list'!$D$9:$E$58,2,FALSE) ) )","v":""},null,null,null,null,{"$f":"IF(TRIM(AN259)=\"\", \"\", IF(VLOOKUP(AN259,'Footnotes list'!$D$9:$E$58,2,FALSE)=0,\"\",VLOOKUP(AN259,'Footnotes list'!$D$9:$E$58,2,FALSE) ) )","v":""},null,null,null,null,{"$f":"IF(TRIM(AS259)=\"\", \"\", IF(VLOOKUP(AS259,'Footnotes list'!$D$9:$E$58,2,FALSE)=0,\"\",VLOOKUP(AS259,'Footnotes list'!$D$9:$E$58,2,FALSE) ) )","v":""},null,null,null,null,{"$f":"IF(TRIM(AX259)=\"\", \"\", IF(VLOOKUP(AX259,'Footnotes list'!$D$9:$E$58,2,FALSE)=0,\"\",VLOOKUP(AX259,'Footnotes list'!$D$9:$E$58,2,FALSE) ) )","v":""},null,null,null,null,{"$f":"IF(TRIM(BC259)=\"\", \"\", IF(VLOOKUP(BC259,'Footnotes list'!$D$9:$E$58,2,FALSE)=0,\"\",VLOOKUP(BC259,'Footnotes list'!$D$9:$E$58,2,FALSE) ) )","v":""},null,null,null,null,{"$f":"IF(TRIM(BH259)=\"\", \"\", IF(VLOOKUP(BH259,'Footnotes list'!$D$9:$E$58,2,FALSE)=0,\"\",VLOOKUP(BH259,'Footnotes list'!$D$9:$E$58,2,FALSE) ) )","v":""},null,null,null,null,{"$f":"IF(TRIM(BM259)=\"\", \"\", IF(VLOOKUP(BM259,'Footnotes list'!$D$9:$E$58,2,FALSE)=0,\"\",VLOOKUP(BM259,'Footnotes list'!$D$9:$E$58,2,FALSE) ) )","v":""},null,null,null,null,{"$f":"IF(TRIM(BR259)=\"\", \"\", IF(VLOOKUP(BR259,'Footnotes list'!$D$9:$E$58,2,FALSE)=0,\"\",VLOOKUP(BR259,'Footnotes list'!$D$9:$E$58,2,FALSE) ) )","v":""},null,null,null,null,{"$f":"IF(TRIM(BW259)=\"\", \"\", IF(VLOOKUP(BW259,'Footnotes list'!$D$9:$E$58,2,FALSE)=0,\"\",VLOOKUP(BW259,'Footnotes list'!$D$9:$E$58,2,FALSE) ) )","v":""},null,null,null,null,{"$f":"IF(TRIM(CB259)=\"\", \"\", IF(VLOOKUP(CB259,'Footnotes list'!$D$9:$E$58,2,FALSE)=0,\"\",VLOOKUP(CB259,'Footnotes list'!$D$9:$E$58,2,FALSE) ) )","v":""},null,null,null,null,{"$f":"IF(TRIM(CG259)=\"\", \"\", IF(VLOOKUP(CG259,'Footnotes list'!$D$9:$E$58,2,FALSE)=0,\"\",VLOOKUP(CG259,'Footnotes list'!$D$9:$E$58,2,FALSE) ) )","v":""},null,null,null,null,{"$f":"IF(TRIM(CL259)=\"\", \"\", IF(VLOOKUP(CL259,'Footnotes list'!$D$9:$E$58,2,FALSE)=0,\"\",VLOOKUP(CL259,'Footnotes list'!$D$9:$E$58,2,FALSE) ) )","v":""},null,null,null,null,{"$f":"IF(TRIM(CQ259)=\"\", \"\", IF(VLOOKUP(CQ259,'Footnotes list'!$D$9:$E$58,2,FALSE)=0,\"\",VLOOKUP(CQ259,'Footnotes list'!$D$9:$E$58,2,FALSE) ) )","v":""},null,null,null,null,{"$f":"IF(TRIM(CV259)=\"\", \"\", IF(VLOOKUP(CV259,'Footnotes list'!$D$9:$E$58,2,FALSE)=0,\"\",VLOOKUP(CV259,'Footnotes list'!$D$9:$E$58,2,FALSE) ) )","v":""},null,null,null,null,{"$f":"IF(TRIM(DA259)=\"\", \"\", IF(VLOOKUP(DA259,'Footnotes list'!$D$9:$E$58,2,FALSE)=0,\"\",VLOOKUP(DA259,'Footnotes list'!$D$9:$E$58,2,FALSE) ) )","v":""},null,null,null,null,{"$f":"IF(TRIM(DF259)=\"\", \"\", IF(VLOOKUP(DF259,'Footnotes list'!$D$9:$E$58,2,FALSE)=0,\"\",VLOOKUP(DF259,'Footnotes list'!$D$9:$E$58,2,FALSE) ) )","v":""},null,null,null,null,{"$f":"IF(TRIM(DK259)=\"\", \"\", IF(VLOOKUP(DK259,'Footnotes list'!$D$9:$E$58,2,FALSE)=0,\"\",VLOOKUP(DK259,'Footnotes list'!$D$9:$E$58,2,FALSE) ) )","v":""},null,null,null,null,{"$f":"IF(TRIM(DP259)=\"\", \"\", IF(VLOOKUP(DP259,'Footnotes list'!$D$9:$E$58,2,FALSE)=0,\"\",VLOOKUP(DP259,'Footnotes list'!$D$9:$E$58,2,FALSE) ) )","v":""},null,null,null,null,{"$f":"IF(TRIM(DU259)=\"\", \"\", IF(VLOOKUP(DU259,'Footnotes list'!$D$9:$E$58,2,FALSE)=0,\"\",VLOOKUP(DU259,'Footnotes list'!$D$9:$E$58,2,FALSE) ) )","v":""},null,null,null,null,{"$f":"IF(TRIM(DZ259)=\"\", \"\", IF(VLOOKUP(DZ259,'Footnotes list'!$D$9:$E$58,2,FALSE)=0,\"\",VLOOKUP(DZ259,'Footnotes list'!$D$9:$E$58,2,FALSE) ) )","v":""},null,null,null,null,{"$f":"IF(TRIM(EE259)=\"\", \"\", IF(VLOOKUP(EE259,'Footnotes list'!$D$9:$E$58,2,FALSE)=0,\"\",VLOOKUP(EE259,'Footnotes list'!$D$9:$E$58,2,FALSE) ) )","v":""},null,null,null,null,{"$f":"IF(TRIM(EJ259)=\"\", \"\", IF(VLOOKUP(EJ259,'Footnotes list'!$D$9:$E$58,2,FALSE)=0,\"\",VLOOKUP(EJ259,'Footnotes list'!$D$9:$E$58,2,FALSE) ) )","v":""},null,null,null,null,{"$f":"IF(TRIM(EO259)=\"\", \"\", IF(VLOOKUP(EO259,'Footnotes list'!$D$9:$E$58,2,FALSE)=0,\"\",VLOOKUP(EO259,'Footnotes list'!$D$9:$E$58,2,FALSE) ) )","v":""},null,null,null,null,{"$f":"IF(TRIM(ET259)=\"\", \"\", IF(VLOOKUP(ET259,'Footnotes list'!$D$9:$E$58,2,FALSE)=0,\"\",VLOOKUP(ET259,'Footnotes list'!$D$9:$E$58,2,FALSE) ) )","v":""},null,null,null,null,{"$f":"IF(TRIM(EY259)=\"\", \"\", IF(VLOOKUP(EY259,'Footnotes list'!$D$9:$E$58,2,FALSE)=0,\"\",VLOOKUP(EY259,'Footnotes list'!$D$9:$E$58,2,FALSE) ) )","v":""}]
[null,null,"O","TOT_EGSS","Total O - Public administration and defence, compulsory social security, of which:",null,null,null,null,null,{"$f":"IF(TRIM(J260)=\"\", \"\", IF(VLOOKUP(J260,'Footnotes list'!$D$9:$E$58,2,FALSE)=0,\"\",VLOOKUP(J260,'Footnotes list'!$D$9:$E$58,2,FALSE) ) )","v":""},null,null,null,null,{"$f":"IF(TRIM(O260)=\"\", \"\", IF(VLOOKUP(O260,'Footnotes list'!$D$9:$E$58,2,FALSE)=0,\"\",VLOOKUP(O260,'Footnotes list'!$D$9:$E$58,2,FALSE) ) )","v":""},null,null,null,null,{"$f":"IF(TRIM(T260)=\"\", \"\", IF(VLOOKUP(T260,'Footnotes list'!$D$9:$E$58,2,FALSE)=0,\"\",VLOOKUP(T260,'Footnotes list'!$D$9:$E$58,2,FALSE) ) )","v":""},null,null,null,null,{"$f":"IF(TRIM(Y260)=\"\", \"\", IF(VLOOKUP(Y260,'Footnotes list'!$D$9:$E$58,2,FALSE)=0,\"\",VLOOKUP(Y260,'Footnotes list'!$D$9:$E$58,2,FALSE) ) )","v":""},null,null,null,null,{"$f":"IF(TRIM(AD260)=\"\", \"\", IF(VLOOKUP(AD260,'Footnotes list'!$D$9:$E$58,2,FALSE)=0,\"\",VLOOKUP(AD260,'Footnotes list'!$D$9:$E$58,2,FALSE) ) )","v":""},null,null,null,null,{"$f":"IF(TRIM(AI260)=\"\", \"\", IF(VLOOKUP(AI260,'Footnotes list'!$D$9:$E$58,2,FALSE)=0,\"\",VLOOKUP(AI260,'Footnotes list'!$D$9:$E$58,2,FALSE) ) )","v":""},null,null,null,null,{"$f":"IF(TRIM(AN260)=\"\", \"\", IF(VLOOKUP(AN260,'Footnotes list'!$D$9:$E$58,2,FALSE)=0,\"\",VLOOKUP(AN260,'Footnotes list'!$D$9:$E$58,2,FALSE) ) )","v":""},null,null,null,null,{"$f":"IF(TRIM(AS260)=\"\", \"\", IF(VLOOKUP(AS260,'Footnotes list'!$D$9:$E$58,2,FALSE)=0,\"\",VLOOKUP(AS260,'Footnotes list'!$D$9:$E$58,2,FALSE) ) )","v":""},null,null,null,null,{"$f":"IF(TRIM(AX260)=\"\", \"\", IF(VLOOKUP(AX260,'Footnotes list'!$D$9:$E$58,2,FALSE)=0,\"\",VLOOKUP(AX260,'Footnotes list'!$D$9:$E$58,2,FALSE) ) )","v":""},null,null,null,null,{"$f":"IF(TRIM(BC260)=\"\", \"\", IF(VLOOKUP(BC260,'Footnotes list'!$D$9:$E$58,2,FALSE)=0,\"\",VLOOKUP(BC260,'Footnotes list'!$D$9:$E$58,2,FALSE) ) )","v":""},null,null,null,null,{"$f":"IF(TRIM(BH260)=\"\", \"\", IF(VLOOKUP(BH260,'Footnotes list'!$D$9:$E$58,2,FALSE)=0,\"\",VLOOKUP(BH260,'Footnotes list'!$D$9:$E$58,2,FALSE) ) )","v":""},null,null,null,null,{"$f":"IF(TRIM(BM260)=\"\", \"\", IF(VLOOKUP(BM260,'Footnotes list'!$D$9:$E$58,2,FALSE)=0,\"\",VLOOKUP(BM260,'Footnotes list'!$D$9:$E$58,2,FALSE) ) )","v":""},null,null,null,null,{"$f":"IF(TRIM(BR260)=\"\", \"\", IF(VLOOKUP(BR260,'Footnotes list'!$D$9:$E$58,2,FALSE)=0,\"\",VLOOKUP(BR260,'Footnotes list'!$D$9:$E$58,2,FALSE) ) )","v":""},null,null,null,null,{"$f":"IF(TRIM(BW260)=\"\", \"\", IF(VLOOKUP(BW260,'Footnotes list'!$D$9:$E$58,2,FALSE)=0,\"\",VLOOKUP(BW260,'Footnotes list'!$D$9:$E$58,2,FALSE) ) )","v":""},null,null,null,null,{"$f":"IF(TRIM(CB260)=\"\", \"\", IF(VLOOKUP(CB260,'Footnotes list'!$D$9:$E$58,2,FALSE)=0,\"\",VLOOKUP(CB260,'Footnotes list'!$D$9:$E$58,2,FALSE) ) )","v":""},null,null,null,null,{"$f":"IF(TRIM(CG260)=\"\", \"\", IF(VLOOKUP(CG260,'Footnotes list'!$D$9:$E$58,2,FALSE)=0,\"\",VLOOKUP(CG260,'Footnotes list'!$D$9:$E$58,2,FALSE) ) )","v":""},null,null,null,null,{"$f":"IF(TRIM(CL260)=\"\", \"\", IF(VLOOKUP(CL260,'Footnotes list'!$D$9:$E$58,2,FALSE)=0,\"\",VLOOKUP(CL260,'Footnotes list'!$D$9:$E$58,2,FALSE) ) )","v":""},null,null,null,null,{"$f":"IF(TRIM(CQ260)=\"\", \"\", IF(VLOOKUP(CQ260,'Footnotes list'!$D$9:$E$58,2,FALSE)=0,\"\",VLOOKUP(CQ260,'Footnotes list'!$D$9:$E$58,2,FALSE) ) )","v":""},null,null,null,null,{"$f":"IF(TRIM(CV260)=\"\", \"\", IF(VLOOKUP(CV260,'Footnotes list'!$D$9:$E$58,2,FALSE)=0,\"\",VLOOKUP(CV260,'Footnotes list'!$D$9:$E$58,2,FALSE) ) )","v":""},null,null,null,null,{"$f":"IF(TRIM(DA260)=\"\", \"\", IF(VLOOKUP(DA260,'Footnotes list'!$D$9:$E$58,2,FALSE)=0,\"\",VLOOKUP(DA260,'Footnotes list'!$D$9:$E$58,2,FALSE) ) )","v":""},null,null,null,null,{"$f":"IF(TRIM(DF260)=\"\", \"\", IF(VLOOKUP(DF260,'Footnotes list'!$D$9:$E$58,2,FALSE)=0,\"\",VLOOKUP(DF260,'Footnotes list'!$D$9:$E$58,2,FALSE) ) )","v":""},null,null,null,null,{"$f":"IF(TRIM(DK260)=\"\", \"\", IF(VLOOKUP(DK260,'Footnotes list'!$D$9:$E$58,2,FALSE)=0,\"\",VLOOKUP(DK260,'Footnotes list'!$D$9:$E$58,2,FALSE) ) )","v":""},null,null,null,null,{"$f":"IF(TRIM(DP260)=\"\", \"\", IF(VLOOKUP(DP260,'Footnotes list'!$D$9:$E$58,2,FALSE)=0,\"\",VLOOKUP(DP260,'Footnotes list'!$D$9:$E$58,2,FALSE) ) )","v":""},null,null,null,null,{"$f":"IF(TRIM(DU260)=\"\", \"\", IF(VLOOKUP(DU260,'Footnotes list'!$D$9:$E$58,2,FALSE)=0,\"\",VLOOKUP(DU260,'Footnotes list'!$D$9:$E$58,2,FALSE) ) )","v":""},null,null,null,null,{"$f":"IF(TRIM(DZ260)=\"\", \"\", IF(VLOOKUP(DZ260,'Footnotes list'!$D$9:$E$58,2,FALSE)=0,\"\",VLOOKUP(DZ260,'Footnotes list'!$D$9:$E$58,2,FALSE) ) )","v":""},null,null,null,null,{"$f":"IF(TRIM(EE260)=\"\", \"\", IF(VLOOKUP(EE260,'Footnotes list'!$D$9:$E$58,2,FALSE)=0,\"\",VLOOKUP(EE260,'Footnotes list'!$D$9:$E$58,2,FALSE) ) )","v":""},null,null,null,null,{"$f":"IF(TRIM(EJ260)=\"\", \"\", IF(VLOOKUP(EJ260,'Footnotes list'!$D$9:$E$58,2,FALSE)=0,\"\",VLOOKUP(EJ260,'Footnotes list'!$D$9:$E$58,2,FALSE) ) )","v":""},null,null,null,null,{"$f":"IF(TRIM(EO260)=\"\", \"\", IF(VLOOKUP(EO260,'Footnotes list'!$D$9:$E$58,2,FALSE)=0,\"\",VLOOKUP(EO260,'Footnotes list'!$D$9:$E$58,2,FALSE) ) )","v":""},null,null,null,null,{"$f":"IF(TRIM(ET260)=\"\", \"\", IF(VLOOKUP(ET260,'Footnotes list'!$D$9:$E$58,2,FALSE)=0,\"\",VLOOKUP(ET260,'Footnotes list'!$D$9:$E$58,2,FALSE) ) )","v":""},null,null,null,null,{"$f":"IF(TRIM(EY260)=\"\", \"\", IF(VLOOKUP(EY260,'Footnotes list'!$D$9:$E$58,2,FALSE)=0,\"\",VLOOKUP(EY260,'Footnotes list'!$D$9:$E$58,2,FALSE) ) )","v":""}]
[null,null,"O","ANC","ancillary activities",null,null,null,null,null,{"$f":"IF(TRIM(J261)=\"\", \"\", IF(VLOOKUP(J261,'Footnotes list'!$D$9:$E$58,2,FALSE)=0,\"\",VLOOKUP(J261,'Footnotes list'!$D$9:$E$58,2,FALSE) ) )","v":""},null,null,null,null,{"$f":"IF(TRIM(O261)=\"\", \"\", IF(VLOOKUP(O261,'Footnotes list'!$D$9:$E$58,2,FALSE)=0,\"\",VLOOKUP(O261,'Footnotes list'!$D$9:$E$58,2,FALSE) ) )","v":""},null,null,null,null,{"$f":"IF(TRIM(T261)=\"\", \"\", IF(VLOOKUP(T261,'Footnotes list'!$D$9:$E$58,2,FALSE)=0,\"\",VLOOKUP(T261,'Footnotes list'!$D$9:$E$58,2,FALSE) ) )","v":""},null,null,null,null,{"$f":"IF(TRIM(Y261)=\"\", \"\", IF(VLOOKUP(Y261,'Footnotes list'!$D$9:$E$58,2,FALSE)=0,\"\",VLOOKUP(Y261,'Footnotes list'!$D$9:$E$58,2,FALSE) ) )","v":""},null,null,null,null,{"$f":"IF(TRIM(AD261)=\"\", \"\", IF(VLOOKUP(AD261,'Footnotes list'!$D$9:$E$58,2,FALSE)=0,\"\",VLOOKUP(AD261,'Footnotes list'!$D$9:$E$58,2,FALSE) ) )","v":""},null,null,null,null,{"$f":"IF(TRIM(AI261)=\"\", \"\", IF(VLOOKUP(AI261,'Footnotes list'!$D$9:$E$58,2,FALSE)=0,\"\",VLOOKUP(AI261,'Footnotes list'!$D$9:$E$58,2,FALSE) ) )","v":""},null,null,null,null,{"$f":"IF(TRIM(AN261)=\"\", \"\", IF(VLOOKUP(AN261,'Footnotes list'!$D$9:$E$58,2,FALSE)=0,\"\",VLOOKUP(AN261,'Footnotes list'!$D$9:$E$58,2,FALSE) ) )","v":""},null,null,null,null,{"$f":"IF(TRIM(AS261)=\"\", \"\", IF(VLOOKUP(AS261,'Footnotes list'!$D$9:$E$58,2,FALSE)=0,\"\",VLOOKUP(AS261,'Footnotes list'!$D$9:$E$58,2,FALSE) ) )","v":""},null,null,null,null,{"$f":"IF(TRIM(AX261)=\"\", \"\", IF(VLOOKUP(AX261,'Footnotes list'!$D$9:$E$58,2,FALSE)=0,\"\",VLOOKUP(AX261,'Footnotes list'!$D$9:$E$58,2,FALSE) ) )","v":""},null,null,null,null,{"$f":"IF(TRIM(BC261)=\"\", \"\", IF(VLOOKUP(BC261,'Footnotes list'!$D$9:$E$58,2,FALSE)=0,\"\",VLOOKUP(BC261,'Footnotes list'!$D$9:$E$58,2,FALSE) ) )","v":""},null,null,null,null,{"$f":"IF(TRIM(BH261)=\"\", \"\", IF(VLOOKUP(BH261,'Footnotes list'!$D$9:$E$58,2,FALSE)=0,\"\",VLOOKUP(BH261,'Footnotes list'!$D$9:$E$58,2,FALSE) ) )","v":""},null,null,null,null,{"$f":"IF(TRIM(BM261)=\"\", \"\", IF(VLOOKUP(BM261,'Footnotes list'!$D$9:$E$58,2,FALSE)=0,\"\",VLOOKUP(BM261,'Footnotes list'!$D$9:$E$58,2,FALSE) ) )","v":""},null,null,null,null,{"$f":"IF(TRIM(BR261)=\"\", \"\", IF(VLOOKUP(BR261,'Footnotes list'!$D$9:$E$58,2,FALSE)=0,\"\",VLOOKUP(BR261,'Footnotes list'!$D$9:$E$58,2,FALSE) ) )","v":""},null,null,null,null,{"$f":"IF(TRIM(BW261)=\"\", \"\", IF(VLOOKUP(BW261,'Footnotes list'!$D$9:$E$58,2,FALSE)=0,\"\",VLOOKUP(BW261,'Footnotes list'!$D$9:$E$58,2,FALSE) ) )","v":""},null,null,null,null,{"$f":"IF(TRIM(CB261)=\"\", \"\", IF(VLOOKUP(CB261,'Footnotes list'!$D$9:$E$58,2,FALSE)=0,\"\",VLOOKUP(CB261,'Footnotes list'!$D$9:$E$58,2,FALSE) ) )","v":""},null,null,null,null,{"$f":"IF(TRIM(CG261)=\"\", \"\", IF(VLOOKUP(CG261,'Footnotes list'!$D$9:$E$58,2,FALSE)=0,\"\",VLOOKUP(CG261,'Footnotes list'!$D$9:$E$58,2,FALSE) ) )","v":""},null,null,null,null,{"$f":"IF(TRIM(CL261)=\"\", \"\", IF(VLOOKUP(CL261,'Footnotes list'!$D$9:$E$58,2,FALSE)=0,\"\",VLOOKUP(CL261,'Footnotes list'!$D$9:$E$58,2,FALSE) ) )","v":""},null,null,null,null,{"$f":"IF(TRIM(CQ261)=\"\", \"\", IF(VLOOKUP(CQ261,'Footnotes list'!$D$9:$E$58,2,FALSE)=0,\"\",VLOOKUP(CQ261,'Footnotes list'!$D$9:$E$58,2,FALSE) ) )","v":""},null,null,null,null,{"$f":"IF(TRIM(CV261)=\"\", \"\", IF(VLOOKUP(CV261,'Footnotes list'!$D$9:$E$58,2,FALSE)=0,\"\",VLOOKUP(CV261,'Footnotes list'!$D$9:$E$58,2,FALSE) ) )","v":""},null,null,null,null,{"$f":"IF(TRIM(DA261)=\"\", \"\", IF(VLOOKUP(DA261,'Footnotes list'!$D$9:$E$58,2,FALSE)=0,\"\",VLOOKUP(DA261,'Footnotes list'!$D$9:$E$58,2,FALSE) ) )","v":""},null,null,null,null,{"$f":"IF(TRIM(DF261)=\"\", \"\", IF(VLOOKUP(DF261,'Footnotes list'!$D$9:$E$58,2,FALSE)=0,\"\",VLOOKUP(DF261,'Footnotes list'!$D$9:$E$58,2,FALSE) ) )","v":""},null,null,null,null,{"$f":"IF(TRIM(DK261)=\"\", \"\", IF(VLOOKUP(DK261,'Footnotes list'!$D$9:$E$58,2,FALSE)=0,\"\",VLOOKUP(DK261,'Footnotes list'!$D$9:$E$58,2,FALSE) ) )","v":""},null,null,null,null,{"$f":"IF(TRIM(DP261)=\"\", \"\", IF(VLOOKUP(DP261,'Footnotes list'!$D$9:$E$58,2,FALSE)=0,\"\",VLOOKUP(DP261,'Footnotes list'!$D$9:$E$58,2,FALSE) ) )","v":""},null,null,null,null,{"$f":"IF(TRIM(DU261)=\"\", \"\", IF(VLOOKUP(DU261,'Footnotes list'!$D$9:$E$58,2,FALSE)=0,\"\",VLOOKUP(DU261,'Footnotes list'!$D$9:$E$58,2,FALSE) ) )","v":""},null,null,null,null,{"$f":"IF(TRIM(DZ261)=\"\", \"\", IF(VLOOKUP(DZ261,'Footnotes list'!$D$9:$E$58,2,FALSE)=0,\"\",VLOOKUP(DZ261,'Footnotes list'!$D$9:$E$58,2,FALSE) ) )","v":""},null,null,null,null,{"$f":"IF(TRIM(EE261)=\"\", \"\", IF(VLOOKUP(EE261,'Footnotes list'!$D$9:$E$58,2,FALSE)=0,\"\",VLOOKUP(EE261,'Footnotes list'!$D$9:$E$58,2,FALSE) ) )","v":""},null,null,null,null,{"$f":"IF(TRIM(EJ261)=\"\", \"\", IF(VLOOKUP(EJ261,'Footnotes list'!$D$9:$E$58,2,FALSE)=0,\"\",VLOOKUP(EJ261,'Footnotes list'!$D$9:$E$58,2,FALSE) ) )","v":""},null,null,null,null,{"$f":"IF(TRIM(EO261)=\"\", \"\", IF(VLOOKUP(EO261,'Footnotes list'!$D$9:$E$58,2,FALSE)=0,\"\",VLOOKUP(EO261,'Footnotes list'!$D$9:$E$58,2,FALSE) ) )","v":""},null,null,null,null,{"$f":"IF(TRIM(ET261)=\"\", \"\", IF(VLOOKUP(ET261,'Footnotes list'!$D$9:$E$58,2,FALSE)=0,\"\",VLOOKUP(ET261,'Footnotes list'!$D$9:$E$58,2,FALSE) ) )","v":""},null,null,null,null,{"$f":"IF(TRIM(EY261)=\"\", \"\", IF(VLOOKUP(EY261,'Footnotes list'!$D$9:$E$58,2,FALSE)=0,\"\",VLOOKUP(EY261,'Footnotes list'!$D$9:$E$58,2,FALSE) ) )","v":""}]
[null,null,"O","NMKT","non-market activities",null,null,null,null,null,{"$f":"IF(TRIM(J262)=\"\", \"\", IF(VLOOKUP(J262,'Footnotes list'!$D$9:$E$58,2,FALSE)=0,\"\",VLOOKUP(J262,'Footnotes list'!$D$9:$E$58,2,FALSE) ) )","v":""},null,null,null,null,{"$f":"IF(TRIM(O262)=\"\", \"\", IF(VLOOKUP(O262,'Footnotes list'!$D$9:$E$58,2,FALSE)=0,\"\",VLOOKUP(O262,'Footnotes list'!$D$9:$E$58,2,FALSE) ) )","v":""},null,null,null,null,{"$f":"IF(TRIM(T262)=\"\", \"\", IF(VLOOKUP(T262,'Footnotes list'!$D$9:$E$58,2,FALSE)=0,\"\",VLOOKUP(T262,'Footnotes list'!$D$9:$E$58,2,FALSE) ) )","v":""},null,null,null,null,{"$f":"IF(TRIM(Y262)=\"\", \"\", IF(VLOOKUP(Y262,'Footnotes list'!$D$9:$E$58,2,FALSE)=0,\"\",VLOOKUP(Y262,'Footnotes list'!$D$9:$E$58,2,FALSE) ) )","v":""},null,null,null,null,{"$f":"IF(TRIM(AD262)=\"\", \"\", IF(VLOOKUP(AD262,'Footnotes list'!$D$9:$E$58,2,FALSE)=0,\"\",VLOOKUP(AD262,'Footnotes list'!$D$9:$E$58,2,FALSE) ) )","v":""},null,null,null,null,{"$f":"IF(TRIM(AI262)=\"\", \"\", IF(VLOOKUP(AI262,'Footnotes list'!$D$9:$E$58,2,FALSE)=0,\"\",VLOOKUP(AI262,'Footnotes list'!$D$9:$E$58,2,FALSE) ) )","v":""},null,null,null,null,{"$f":"IF(TRIM(AN262)=\"\", \"\", IF(VLOOKUP(AN262,'Footnotes list'!$D$9:$E$58,2,FALSE)=0,\"\",VLOOKUP(AN262,'Footnotes list'!$D$9:$E$58,2,FALSE) ) )","v":""},null,null,null,null,{"$f":"IF(TRIM(AS262)=\"\", \"\", IF(VLOOKUP(AS262,'Footnotes list'!$D$9:$E$58,2,FALSE)=0,\"\",VLOOKUP(AS262,'Footnotes list'!$D$9:$E$58,2,FALSE) ) )","v":""},null,null,null,null,{"$f":"IF(TRIM(AX262)=\"\", \"\", IF(VLOOKUP(AX262,'Footnotes list'!$D$9:$E$58,2,FALSE)=0,\"\",VLOOKUP(AX262,'Footnotes list'!$D$9:$E$58,2,FALSE) ) )","v":""},null,null,null,null,{"$f":"IF(TRIM(BC262)=\"\", \"\", IF(VLOOKUP(BC262,'Footnotes list'!$D$9:$E$58,2,FALSE)=0,\"\",VLOOKUP(BC262,'Footnotes list'!$D$9:$E$58,2,FALSE) ) )","v":""},null,null,null,null,{"$f":"IF(TRIM(BH262)=\"\", \"\", IF(VLOOKUP(BH262,'Footnotes list'!$D$9:$E$58,2,FALSE)=0,\"\",VLOOKUP(BH262,'Footnotes list'!$D$9:$E$58,2,FALSE) ) )","v":""},null,null,null,null,{"$f":"IF(TRIM(BM262)=\"\", \"\", IF(VLOOKUP(BM262,'Footnotes list'!$D$9:$E$58,2,FALSE)=0,\"\",VLOOKUP(BM262,'Footnotes list'!$D$9:$E$58,2,FALSE) ) )","v":""},null,null,null,null,{"$f":"IF(TRIM(BR262)=\"\", \"\", IF(VLOOKUP(BR262,'Footnotes list'!$D$9:$E$58,2,FALSE)=0,\"\",VLOOKUP(BR262,'Footnotes list'!$D$9:$E$58,2,FALSE) ) )","v":""},null,null,null,null,{"$f":"IF(TRIM(BW262)=\"\", \"\", IF(VLOOKUP(BW262,'Footnotes list'!$D$9:$E$58,2,FALSE)=0,\"\",VLOOKUP(BW262,'Footnotes list'!$D$9:$E$58,2,FALSE) ) )","v":""},null,null,null,null,{"$f":"IF(TRIM(CB262)=\"\", \"\", IF(VLOOKUP(CB262,'Footnotes list'!$D$9:$E$58,2,FALSE)=0,\"\",VLOOKUP(CB262,'Footnotes list'!$D$9:$E$58,2,FALSE) ) )","v":""},null,null,null,null,{"$f":"IF(TRIM(CG262)=\"\", \"\", IF(VLOOKUP(CG262,'Footnotes list'!$D$9:$E$58,2,FALSE)=0,\"\",VLOOKUP(CG262,'Footnotes list'!$D$9:$E$58,2,FALSE) ) )","v":""},null,null,null,null,{"$f":"IF(TRIM(CL262)=\"\", \"\", IF(VLOOKUP(CL262,'Footnotes list'!$D$9:$E$58,2,FALSE)=0,\"\",VLOOKUP(CL262,'Footnotes list'!$D$9:$E$58,2,FALSE) ) )","v":""},null,null,null,null,{"$f":"IF(TRIM(CQ262)=\"\", \"\", IF(VLOOKUP(CQ262,'Footnotes list'!$D$9:$E$58,2,FALSE)=0,\"\",VLOOKUP(CQ262,'Footnotes list'!$D$9:$E$58,2,FALSE) ) )","v":""},null,null,null,null,{"$f":"IF(TRIM(CV262)=\"\", \"\", IF(VLOOKUP(CV262,'Footnotes list'!$D$9:$E$58,2,FALSE)=0,\"\",VLOOKUP(CV262,'Footnotes list'!$D$9:$E$58,2,FALSE) ) )","v":""},null,null,null,null,{"$f":"IF(TRIM(DA262)=\"\", \"\", IF(VLOOKUP(DA262,'Footnotes list'!$D$9:$E$58,2,FALSE)=0,\"\",VLOOKUP(DA262,'Footnotes list'!$D$9:$E$58,2,FALSE) ) )","v":""},null,null,null,null,{"$f":"IF(TRIM(DF262)=\"\", \"\", IF(VLOOKUP(DF262,'Footnotes list'!$D$9:$E$58,2,FALSE)=0,\"\",VLOOKUP(DF262,'Footnotes list'!$D$9:$E$58,2,FALSE) ) )","v":""},null,null,null,null,{"$f":"IF(TRIM(DK262)=\"\", \"\", IF(VLOOKUP(DK262,'Footnotes list'!$D$9:$E$58,2,FALSE)=0,\"\",VLOOKUP(DK262,'Footnotes list'!$D$9:$E$58,2,FALSE) ) )","v":""},null,null,null,null,{"$f":"IF(TRIM(DP262)=\"\", \"\", IF(VLOOKUP(DP262,'Footnotes list'!$D$9:$E$58,2,FALSE)=0,\"\",VLOOKUP(DP262,'Footnotes list'!$D$9:$E$58,2,FALSE) ) )","v":""},null,null,null,null,{"$f":"IF(TRIM(DU262)=\"\", \"\", IF(VLOOKUP(DU262,'Footnotes list'!$D$9:$E$58,2,FALSE)=0,\"\",VLOOKUP(DU262,'Footnotes list'!$D$9:$E$58,2,FALSE) ) )","v":""},null,null,null,null,{"$f":"IF(TRIM(DZ262)=\"\", \"\", IF(VLOOKUP(DZ262,'Footnotes list'!$D$9:$E$58,2,FALSE)=0,\"\",VLOOKUP(DZ262,'Footnotes list'!$D$9:$E$58,2,FALSE) ) )","v":""},null,null,null,null,{"$f":"IF(TRIM(EE262)=\"\", \"\", IF(VLOOKUP(EE262,'Footnotes list'!$D$9:$E$58,2,FALSE)=0,\"\",VLOOKUP(EE262,'Footnotes list'!$D$9:$E$58,2,FALSE) ) )","v":""},null,null,null,null,{"$f":"IF(TRIM(EJ262)=\"\", \"\", IF(VLOOKUP(EJ262,'Footnotes list'!$D$9:$E$58,2,FALSE)=0,\"\",VLOOKUP(EJ262,'Footnotes list'!$D$9:$E$58,2,FALSE) ) )","v":""},null,null,null,null,{"$f":"IF(TRIM(EO262)=\"\", \"\", IF(VLOOKUP(EO262,'Footnotes list'!$D$9:$E$58,2,FALSE)=0,\"\",VLOOKUP(EO262,'Footnotes list'!$D$9:$E$58,2,FALSE) ) )","v":""},null,null,null,null,{"$f":"IF(TRIM(ET262)=\"\", \"\", IF(VLOOKUP(ET262,'Footnotes list'!$D$9:$E$58,2,FALSE)=0,\"\",VLOOKUP(ET262,'Footnotes list'!$D$9:$E$58,2,FALSE) ) )","v":""},null,null,null,null,{"$f":"IF(TRIM(EY262)=\"\", \"\", IF(VLOOKUP(EY262,'Footnotes list'!$D$9:$E$58,2,FALSE)=0,\"\",VLOOKUP(EY262,'Footnotes list'!$D$9:$E$58,2,FALSE) ) )","v":""}]
[null,null,"O","OWN_USE","activities for own final use",null,null,null,null,null,{"$f":"IF(TRIM(J263)=\"\", \"\", IF(VLOOKUP(J263,'Footnotes list'!$D$9:$E$58,2,FALSE)=0,\"\",VLOOKUP(J263,'Footnotes list'!$D$9:$E$58,2,FALSE) ) )","v":""},null,null,null,null,{"$f":"IF(TRIM(O263)=\"\", \"\", IF(VLOOKUP(O263,'Footnotes list'!$D$9:$E$58,2,FALSE)=0,\"\",VLOOKUP(O263,'Footnotes list'!$D$9:$E$58,2,FALSE) ) )","v":""},null,null,null,null,{"$f":"IF(TRIM(T263)=\"\", \"\", IF(VLOOKUP(T263,'Footnotes list'!$D$9:$E$58,2,FALSE)=0,\"\",VLOOKUP(T263,'Footnotes list'!$D$9:$E$58,2,FALSE) ) )","v":""},null,null,null,null,{"$f":"IF(TRIM(Y263)=\"\", \"\", IF(VLOOKUP(Y263,'Footnotes list'!$D$9:$E$58,2,FALSE)=0,\"\",VLOOKUP(Y263,'Footnotes list'!$D$9:$E$58,2,FALSE) ) )","v":""},null,null,null,null,{"$f":"IF(TRIM(AD263)=\"\", \"\", IF(VLOOKUP(AD263,'Footnotes list'!$D$9:$E$58,2,FALSE)=0,\"\",VLOOKUP(AD263,'Footnotes list'!$D$9:$E$58,2,FALSE) ) )","v":""},null,null,null,null,{"$f":"IF(TRIM(AI263)=\"\", \"\", IF(VLOOKUP(AI263,'Footnotes list'!$D$9:$E$58,2,FALSE)=0,\"\",VLOOKUP(AI263,'Footnotes list'!$D$9:$E$58,2,FALSE) ) )","v":""},null,null,null,null,{"$f":"IF(TRIM(AN263)=\"\", \"\", IF(VLOOKUP(AN263,'Footnotes list'!$D$9:$E$58,2,FALSE)=0,\"\",VLOOKUP(AN263,'Footnotes list'!$D$9:$E$58,2,FALSE) ) )","v":""},null,null,null,null,{"$f":"IF(TRIM(AS263)=\"\", \"\", IF(VLOOKUP(AS263,'Footnotes list'!$D$9:$E$58,2,FALSE)=0,\"\",VLOOKUP(AS263,'Footnotes list'!$D$9:$E$58,2,FALSE) ) )","v":""},null,null,null,null,{"$f":"IF(TRIM(AX263)=\"\", \"\", IF(VLOOKUP(AX263,'Footnotes list'!$D$9:$E$58,2,FALSE)=0,\"\",VLOOKUP(AX263,'Footnotes list'!$D$9:$E$58,2,FALSE) ) )","v":""},null,null,null,null,{"$f":"IF(TRIM(BC263)=\"\", \"\", IF(VLOOKUP(BC263,'Footnotes list'!$D$9:$E$58,2,FALSE)=0,\"\",VLOOKUP(BC263,'Footnotes list'!$D$9:$E$58,2,FALSE) ) )","v":""},null,null,null,null,{"$f":"IF(TRIM(BH263)=\"\", \"\", IF(VLOOKUP(BH263,'Footnotes list'!$D$9:$E$58,2,FALSE)=0,\"\",VLOOKUP(BH263,'Footnotes list'!$D$9:$E$58,2,FALSE) ) )","v":""},null,null,null,null,{"$f":"IF(TRIM(BM263)=\"\", \"\", IF(VLOOKUP(BM263,'Footnotes list'!$D$9:$E$58,2,FALSE)=0,\"\",VLOOKUP(BM263,'Footnotes list'!$D$9:$E$58,2,FALSE) ) )","v":""},null,null,null,null,{"$f":"IF(TRIM(BR263)=\"\", \"\", IF(VLOOKUP(BR263,'Footnotes list'!$D$9:$E$58,2,FALSE)=0,\"\",VLOOKUP(BR263,'Footnotes list'!$D$9:$E$58,2,FALSE) ) )","v":""},null,null,null,null,{"$f":"IF(TRIM(BW263)=\"\", \"\", IF(VLOOKUP(BW263,'Footnotes list'!$D$9:$E$58,2,FALSE)=0,\"\",VLOOKUP(BW263,'Footnotes list'!$D$9:$E$58,2,FALSE) ) )","v":""},null,null,null,null,{"$f":"IF(TRIM(CB263)=\"\", \"\", IF(VLOOKUP(CB263,'Footnotes list'!$D$9:$E$58,2,FALSE)=0,\"\",VLOOKUP(CB263,'Footnotes list'!$D$9:$E$58,2,FALSE) ) )","v":""},null,null,null,null,{"$f":"IF(TRIM(CG263)=\"\", \"\", IF(VLOOKUP(CG263,'Footnotes list'!$D$9:$E$58,2,FALSE)=0,\"\",VLOOKUP(CG263,'Footnotes list'!$D$9:$E$58,2,FALSE) ) )","v":""},null,null,null,null,{"$f":"IF(TRIM(CL263)=\"\", \"\", IF(VLOOKUP(CL263,'Footnotes list'!$D$9:$E$58,2,FALSE)=0,\"\",VLOOKUP(CL263,'Footnotes list'!$D$9:$E$58,2,FALSE) ) )","v":""},null,null,null,null,{"$f":"IF(TRIM(CQ263)=\"\", \"\", IF(VLOOKUP(CQ263,'Footnotes list'!$D$9:$E$58,2,FALSE)=0,\"\",VLOOKUP(CQ263,'Footnotes list'!$D$9:$E$58,2,FALSE) ) )","v":""},null,null,null,null,{"$f":"IF(TRIM(CV263)=\"\", \"\", IF(VLOOKUP(CV263,'Footnotes list'!$D$9:$E$58,2,FALSE)=0,\"\",VLOOKUP(CV263,'Footnotes list'!$D$9:$E$58,2,FALSE) ) )","v":""},null,null,null,null,{"$f":"IF(TRIM(DA263)=\"\", \"\", IF(VLOOKUP(DA263,'Footnotes list'!$D$9:$E$58,2,FALSE)=0,\"\",VLOOKUP(DA263,'Footnotes list'!$D$9:$E$58,2,FALSE) ) )","v":""},null,null,null,null,{"$f":"IF(TRIM(DF263)=\"\", \"\", IF(VLOOKUP(DF263,'Footnotes list'!$D$9:$E$58,2,FALSE)=0,\"\",VLOOKUP(DF263,'Footnotes list'!$D$9:$E$58,2,FALSE) ) )","v":""},null,null,null,null,{"$f":"IF(TRIM(DK263)=\"\", \"\", IF(VLOOKUP(DK263,'Footnotes list'!$D$9:$E$58,2,FALSE)=0,\"\",VLOOKUP(DK263,'Footnotes list'!$D$9:$E$58,2,FALSE) ) )","v":""},null,null,null,null,{"$f":"IF(TRIM(DP263)=\"\", \"\", IF(VLOOKUP(DP263,'Footnotes list'!$D$9:$E$58,2,FALSE)=0,\"\",VLOOKUP(DP263,'Footnotes list'!$D$9:$E$58,2,FALSE) ) )","v":""},null,null,null,null,{"$f":"IF(TRIM(DU263)=\"\", \"\", IF(VLOOKUP(DU263,'Footnotes list'!$D$9:$E$58,2,FALSE)=0,\"\",VLOOKUP(DU263,'Footnotes list'!$D$9:$E$58,2,FALSE) ) )","v":""},null,null,null,null,{"$f":"IF(TRIM(DZ263)=\"\", \"\", IF(VLOOKUP(DZ263,'Footnotes list'!$D$9:$E$58,2,FALSE)=0,\"\",VLOOKUP(DZ263,'Footnotes list'!$D$9:$E$58,2,FALSE) ) )","v":""},null,null,null,null,{"$f":"IF(TRIM(EE263)=\"\", \"\", IF(VLOOKUP(EE263,'Footnotes list'!$D$9:$E$58,2,FALSE)=0,\"\",VLOOKUP(EE263,'Footnotes list'!$D$9:$E$58,2,FALSE) ) )","v":""},null,null,null,null,{"$f":"IF(TRIM(EJ263)=\"\", \"\", IF(VLOOKUP(EJ263,'Footnotes list'!$D$9:$E$58,2,FALSE)=0,\"\",VLOOKUP(EJ263,'Footnotes list'!$D$9:$E$58,2,FALSE) ) )","v":""},null,null,null,null,{"$f":"IF(TRIM(EO263)=\"\", \"\", IF(VLOOKUP(EO263,'Footnotes list'!$D$9:$E$58,2,FALSE)=0,\"\",VLOOKUP(EO263,'Footnotes list'!$D$9:$E$58,2,FALSE) ) )","v":""},null,null,null,null,{"$f":"IF(TRIM(ET263)=\"\", \"\", IF(VLOOKUP(ET263,'Footnotes list'!$D$9:$E$58,2,FALSE)=0,\"\",VLOOKUP(ET263,'Footnotes list'!$D$9:$E$58,2,FALSE) ) )","v":""},null,null,null,null,{"$f":"IF(TRIM(EY263)=\"\", \"\", IF(VLOOKUP(EY263,'Footnotes list'!$D$9:$E$58,2,FALSE)=0,\"\",VLOOKUP(EY263,'Footnotes list'!$D$9:$E$58,2,FALSE) ) )","v":""}]
[null,null,"O","MKT","market activities, including:",null,null,null,null,null,{"$f":"IF(TRIM(J264)=\"\", \"\", IF(VLOOKUP(J264,'Footnotes list'!$D$9:$E$58,2,FALSE)=0,\"\",VLOOKUP(J264,'Footnotes list'!$D$9:$E$58,2,FALSE) ) )","v":""},null,null,null,null,{"$f":"IF(TRIM(O264)=\"\", \"\", IF(VLOOKUP(O264,'Footnotes list'!$D$9:$E$58,2,FALSE)=0,\"\",VLOOKUP(O264,'Footnotes list'!$D$9:$E$58,2,FALSE) ) )","v":""},null,null,null,null,{"$f":"IF(TRIM(T264)=\"\", \"\", IF(VLOOKUP(T264,'Footnotes list'!$D$9:$E$58,2,FALSE)=0,\"\",VLOOKUP(T264,'Footnotes list'!$D$9:$E$58,2,FALSE) ) )","v":""},null,null,null,null,{"$f":"IF(TRIM(Y264)=\"\", \"\", IF(VLOOKUP(Y264,'Footnotes list'!$D$9:$E$58,2,FALSE)=0,\"\",VLOOKUP(Y264,'Footnotes list'!$D$9:$E$58,2,FALSE) ) )","v":""},null,null,null,null,{"$f":"IF(TRIM(AD264)=\"\", \"\", IF(VLOOKUP(AD264,'Footnotes list'!$D$9:$E$58,2,FALSE)=0,\"\",VLOOKUP(AD264,'Footnotes list'!$D$9:$E$58,2,FALSE) ) )","v":""},null,null,null,null,{"$f":"IF(TRIM(AI264)=\"\", \"\", IF(VLOOKUP(AI264,'Footnotes list'!$D$9:$E$58,2,FALSE)=0,\"\",VLOOKUP(AI264,'Footnotes list'!$D$9:$E$58,2,FALSE) ) )","v":""},null,null,null,null,{"$f":"IF(TRIM(AN264)=\"\", \"\", IF(VLOOKUP(AN264,'Footnotes list'!$D$9:$E$58,2,FALSE)=0,\"\",VLOOKUP(AN264,'Footnotes list'!$D$9:$E$58,2,FALSE) ) )","v":""},null,null,null,null,{"$f":"IF(TRIM(AS264)=\"\", \"\", IF(VLOOKUP(AS264,'Footnotes list'!$D$9:$E$58,2,FALSE)=0,\"\",VLOOKUP(AS264,'Footnotes list'!$D$9:$E$58,2,FALSE) ) )","v":""},null,null,null,null,{"$f":"IF(TRIM(AX264)=\"\", \"\", IF(VLOOKUP(AX264,'Footnotes list'!$D$9:$E$58,2,FALSE)=0,\"\",VLOOKUP(AX264,'Footnotes list'!$D$9:$E$58,2,FALSE) ) )","v":""},null,null,null,null,{"$f":"IF(TRIM(BC264)=\"\", \"\", IF(VLOOKUP(BC264,'Footnotes list'!$D$9:$E$58,2,FALSE)=0,\"\",VLOOKUP(BC264,'Footnotes list'!$D$9:$E$58,2,FALSE) ) )","v":""},null,null,null,null,{"$f":"IF(TRIM(BH264)=\"\", \"\", IF(VLOOKUP(BH264,'Footnotes list'!$D$9:$E$58,2,FALSE)=0,\"\",VLOOKUP(BH264,'Footnotes list'!$D$9:$E$58,2,FALSE) ) )","v":""},null,null,null,null,{"$f":"IF(TRIM(BM264)=\"\", \"\", IF(VLOOKUP(BM264,'Footnotes list'!$D$9:$E$58,2,FALSE)=0,\"\",VLOOKUP(BM264,'Footnotes list'!$D$9:$E$58,2,FALSE) ) )","v":""},null,null,null,null,{"$f":"IF(TRIM(BR264)=\"\", \"\", IF(VLOOKUP(BR264,'Footnotes list'!$D$9:$E$58,2,FALSE)=0,\"\",VLOOKUP(BR264,'Footnotes list'!$D$9:$E$58,2,FALSE) ) )","v":""},null,null,null,null,{"$f":"IF(TRIM(BW264)=\"\", \"\", IF(VLOOKUP(BW264,'Footnotes list'!$D$9:$E$58,2,FALSE)=0,\"\",VLOOKUP(BW264,'Footnotes list'!$D$9:$E$58,2,FALSE) ) )","v":""},null,null,null,null,{"$f":"IF(TRIM(CB264)=\"\", \"\", IF(VLOOKUP(CB264,'Footnotes list'!$D$9:$E$58,2,FALSE)=0,\"\",VLOOKUP(CB264,'Footnotes list'!$D$9:$E$58,2,FALSE) ) )","v":""},null,null,null,null,{"$f":"IF(TRIM(CG264)=\"\", \"\", IF(VLOOKUP(CG264,'Footnotes list'!$D$9:$E$58,2,FALSE)=0,\"\",VLOOKUP(CG264,'Footnotes list'!$D$9:$E$58,2,FALSE) ) )","v":""},null,null,null,null,{"$f":"IF(TRIM(CL264)=\"\", \"\", IF(VLOOKUP(CL264,'Footnotes list'!$D$9:$E$58,2,FALSE)=0,\"\",VLOOKUP(CL264,'Footnotes list'!$D$9:$E$58,2,FALSE) ) )","v":""},null,null,null,null,{"$f":"IF(TRIM(CQ264)=\"\", \"\", IF(VLOOKUP(CQ264,'Footnotes list'!$D$9:$E$58,2,FALSE)=0,\"\",VLOOKUP(CQ264,'Footnotes list'!$D$9:$E$58,2,FALSE) ) )","v":""},null,null,null,null,{"$f":"IF(TRIM(CV264)=\"\", \"\", IF(VLOOKUP(CV264,'Footnotes list'!$D$9:$E$58,2,FALSE)=0,\"\",VLOOKUP(CV264,'Footnotes list'!$D$9:$E$58,2,FALSE) ) )","v":""},null,null,null,null,{"$f":"IF(TRIM(DA264)=\"\", \"\", IF(VLOOKUP(DA264,'Footnotes list'!$D$9:$E$58,2,FALSE)=0,\"\",VLOOKUP(DA264,'Footnotes list'!$D$9:$E$58,2,FALSE) ) )","v":""},null,null,null,null,{"$f":"IF(TRIM(DF264)=\"\", \"\", IF(VLOOKUP(DF264,'Footnotes list'!$D$9:$E$58,2,FALSE)=0,\"\",VLOOKUP(DF264,'Footnotes list'!$D$9:$E$58,2,FALSE) ) )","v":""},null,null,null,null,{"$f":"IF(TRIM(DK264)=\"\", \"\", IF(VLOOKUP(DK264,'Footnotes list'!$D$9:$E$58,2,FALSE)=0,\"\",VLOOKUP(DK264,'Footnotes list'!$D$9:$E$58,2,FALSE) ) )","v":""},null,null,null,null,{"$f":"IF(TRIM(DP264)=\"\", \"\", IF(VLOOKUP(DP264,'Footnotes list'!$D$9:$E$58,2,FALSE)=0,\"\",VLOOKUP(DP264,'Footnotes list'!$D$9:$E$58,2,FALSE) ) )","v":""},null,null,null,null,{"$f":"IF(TRIM(DU264)=\"\", \"\", IF(VLOOKUP(DU264,'Footnotes list'!$D$9:$E$58,2,FALSE)=0,\"\",VLOOKUP(DU264,'Footnotes list'!$D$9:$E$58,2,FALSE) ) )","v":""},null,null,null,null,{"$f":"IF(TRIM(DZ264)=\"\", \"\", IF(VLOOKUP(DZ264,'Footnotes list'!$D$9:$E$58,2,FALSE)=0,\"\",VLOOKUP(DZ264,'Footnotes list'!$D$9:$E$58,2,FALSE) ) )","v":""},null,null,null,null,{"$f":"IF(TRIM(EE264)=\"\", \"\", IF(VLOOKUP(EE264,'Footnotes list'!$D$9:$E$58,2,FALSE)=0,\"\",VLOOKUP(EE264,'Footnotes list'!$D$9:$E$58,2,FALSE) ) )","v":""},null,null,null,null,{"$f":"IF(TRIM(EJ264)=\"\", \"\", IF(VLOOKUP(EJ264,'Footnotes list'!$D$9:$E$58,2,FALSE)=0,\"\",VLOOKUP(EJ264,'Footnotes list'!$D$9:$E$58,2,FALSE) ) )","v":""},null,null,null,null,{"$f":"IF(TRIM(EO264)=\"\", \"\", IF(VLOOKUP(EO264,'Footnotes list'!$D$9:$E$58,2,FALSE)=0,\"\",VLOOKUP(EO264,'Footnotes list'!$D$9:$E$58,2,FALSE) ) )","v":""},null,null,null,null,{"$f":"IF(TRIM(ET264)=\"\", \"\", IF(VLOOKUP(ET264,'Footnotes list'!$D$9:$E$58,2,FALSE)=0,\"\",VLOOKUP(ET264,'Footnotes list'!$D$9:$E$58,2,FALSE) ) )","v":""},null,null,null,null,{"$f":"IF(TRIM(EY264)=\"\", \"\", IF(VLOOKUP(EY264,'Footnotes list'!$D$9:$E$58,2,FALSE)=0,\"\",VLOOKUP(EY264,'Footnotes list'!$D$9:$E$58,2,FALSE) ) )","v":""}]
[null,null,"O","ES_CS","environmental specific services",null,null,null,null,null,{"$f":"IF(TRIM(J265)=\"\", \"\", IF(VLOOKUP(J265,'Footnotes list'!$D$9:$E$58,2,FALSE)=0,\"\",VLOOKUP(J265,'Footnotes list'!$D$9:$E$58,2,FALSE) ) )","v":""},null,null,null,null,{"$f":"IF(TRIM(O265)=\"\", \"\", IF(VLOOKUP(O265,'Footnotes list'!$D$9:$E$58,2,FALSE)=0,\"\",VLOOKUP(O265,'Footnotes list'!$D$9:$E$58,2,FALSE) ) )","v":""},null,null,null,null,{"$f":"IF(TRIM(T265)=\"\", \"\", IF(VLOOKUP(T265,'Footnotes list'!$D$9:$E$58,2,FALSE)=0,\"\",VLOOKUP(T265,'Footnotes list'!$D$9:$E$58,2,FALSE) ) )","v":""},null,null,null,null,{"$f":"IF(TRIM(Y265)=\"\", \"\", IF(VLOOKUP(Y265,'Footnotes list'!$D$9:$E$58,2,FALSE)=0,\"\",VLOOKUP(Y265,'Footnotes list'!$D$9:$E$58,2,FALSE) ) )","v":""},null,null,null,null,{"$f":"IF(TRIM(AD265)=\"\", \"\", IF(VLOOKUP(AD265,'Footnotes list'!$D$9:$E$58,2,FALSE)=0,\"\",VLOOKUP(AD265,'Footnotes list'!$D$9:$E$58,2,FALSE) ) )","v":""},null,null,null,null,{"$f":"IF(TRIM(AI265)=\"\", \"\", IF(VLOOKUP(AI265,'Footnotes list'!$D$9:$E$58,2,FALSE)=0,\"\",VLOOKUP(AI265,'Footnotes list'!$D$9:$E$58,2,FALSE) ) )","v":""},null,null,null,null,{"$f":"IF(TRIM(AN265)=\"\", \"\", IF(VLOOKUP(AN265,'Footnotes list'!$D$9:$E$58,2,FALSE)=0,\"\",VLOOKUP(AN265,'Footnotes list'!$D$9:$E$58,2,FALSE) ) )","v":""},null,null,null,null,{"$f":"IF(TRIM(AS265)=\"\", \"\", IF(VLOOKUP(AS265,'Footnotes list'!$D$9:$E$58,2,FALSE)=0,\"\",VLOOKUP(AS265,'Footnotes list'!$D$9:$E$58,2,FALSE) ) )","v":""},null,null,null,null,{"$f":"IF(TRIM(AX265)=\"\", \"\", IF(VLOOKUP(AX265,'Footnotes list'!$D$9:$E$58,2,FALSE)=0,\"\",VLOOKUP(AX265,'Footnotes list'!$D$9:$E$58,2,FALSE) ) )","v":""},null,null,null,null,{"$f":"IF(TRIM(BC265)=\"\", \"\", IF(VLOOKUP(BC265,'Footnotes list'!$D$9:$E$58,2,FALSE)=0,\"\",VLOOKUP(BC265,'Footnotes list'!$D$9:$E$58,2,FALSE) ) )","v":""},null,null,null,null,{"$f":"IF(TRIM(BH265)=\"\", \"\", IF(VLOOKUP(BH265,'Footnotes list'!$D$9:$E$58,2,FALSE)=0,\"\",VLOOKUP(BH265,'Footnotes list'!$D$9:$E$58,2,FALSE) ) )","v":""},null,null,null,null,{"$f":"IF(TRIM(BM265)=\"\", \"\", IF(VLOOKUP(BM265,'Footnotes list'!$D$9:$E$58,2,FALSE)=0,\"\",VLOOKUP(BM265,'Footnotes list'!$D$9:$E$58,2,FALSE) ) )","v":""},null,null,null,null,{"$f":"IF(TRIM(BR265)=\"\", \"\", IF(VLOOKUP(BR265,'Footnotes list'!$D$9:$E$58,2,FALSE)=0,\"\",VLOOKUP(BR265,'Footnotes list'!$D$9:$E$58,2,FALSE) ) )","v":""},null,null,null,null,{"$f":"IF(TRIM(BW265)=\"\", \"\", IF(VLOOKUP(BW265,'Footnotes list'!$D$9:$E$58,2,FALSE)=0,\"\",VLOOKUP(BW265,'Footnotes list'!$D$9:$E$58,2,FALSE) ) )","v":""},null,null,null,null,{"$f":"IF(TRIM(CB265)=\"\", \"\", IF(VLOOKUP(CB265,'Footnotes list'!$D$9:$E$58,2,FALSE)=0,\"\",VLOOKUP(CB265,'Footnotes list'!$D$9:$E$58,2,FALSE) ) )","v":""},null,null,null,null,{"$f":"IF(TRIM(CG265)=\"\", \"\", IF(VLOOKUP(CG265,'Footnotes list'!$D$9:$E$58,2,FALSE)=0,\"\",VLOOKUP(CG265,'Footnotes list'!$D$9:$E$58,2,FALSE) ) )","v":""},null,null,null,null,{"$f":"IF(TRIM(CL265)=\"\", \"\", IF(VLOOKUP(CL265,'Footnotes list'!$D$9:$E$58,2,FALSE)=0,\"\",VLOOKUP(CL265,'Footnotes list'!$D$9:$E$58,2,FALSE) ) )","v":""},null,null,null,null,{"$f":"IF(TRIM(CQ265)=\"\", \"\", IF(VLOOKUP(CQ265,'Footnotes list'!$D$9:$E$58,2,FALSE)=0,\"\",VLOOKUP(CQ265,'Footnotes list'!$D$9:$E$58,2,FALSE) ) )","v":""},null,null,null,null,{"$f":"IF(TRIM(CV265)=\"\", \"\", IF(VLOOKUP(CV265,'Footnotes list'!$D$9:$E$58,2,FALSE)=0,\"\",VLOOKUP(CV265,'Footnotes list'!$D$9:$E$58,2,FALSE) ) )","v":""},null,null,null,null,{"$f":"IF(TRIM(DA265)=\"\", \"\", IF(VLOOKUP(DA265,'Footnotes list'!$D$9:$E$58,2,FALSE)=0,\"\",VLOOKUP(DA265,'Footnotes list'!$D$9:$E$58,2,FALSE) ) )","v":""},null,null,null,null,{"$f":"IF(TRIM(DF265)=\"\", \"\", IF(VLOOKUP(DF265,'Footnotes list'!$D$9:$E$58,2,FALSE)=0,\"\",VLOOKUP(DF265,'Footnotes list'!$D$9:$E$58,2,FALSE) ) )","v":""},null,null,null,null,{"$f":"IF(TRIM(DK265)=\"\", \"\", IF(VLOOKUP(DK265,'Footnotes list'!$D$9:$E$58,2,FALSE)=0,\"\",VLOOKUP(DK265,'Footnotes list'!$D$9:$E$58,2,FALSE) ) )","v":""},null,null,null,null,{"$f":"IF(TRIM(DP265)=\"\", \"\", IF(VLOOKUP(DP265,'Footnotes list'!$D$9:$E$58,2,FALSE)=0,\"\",VLOOKUP(DP265,'Footnotes list'!$D$9:$E$58,2,FALSE) ) )","v":""},null,null,null,null,{"$f":"IF(TRIM(DU265)=\"\", \"\", IF(VLOOKUP(DU265,'Footnotes list'!$D$9:$E$58,2,FALSE)=0,\"\",VLOOKUP(DU265,'Footnotes list'!$D$9:$E$58,2,FALSE) ) )","v":""},null,null,null,null,{"$f":"IF(TRIM(DZ265)=\"\", \"\", IF(VLOOKUP(DZ265,'Footnotes list'!$D$9:$E$58,2,FALSE)=0,\"\",VLOOKUP(DZ265,'Footnotes list'!$D$9:$E$58,2,FALSE) ) )","v":""},null,null,null,null,{"$f":"IF(TRIM(EE265)=\"\", \"\", IF(VLOOKUP(EE265,'Footnotes list'!$D$9:$E$58,2,FALSE)=0,\"\",VLOOKUP(EE265,'Footnotes list'!$D$9:$E$58,2,FALSE) ) )","v":""},null,null,null,null,{"$f":"IF(TRIM(EJ265)=\"\", \"\", IF(VLOOKUP(EJ265,'Footnotes list'!$D$9:$E$58,2,FALSE)=0,\"\",VLOOKUP(EJ265,'Footnotes list'!$D$9:$E$58,2,FALSE) ) )","v":""},null,null,null,null,{"$f":"IF(TRIM(EO265)=\"\", \"\", IF(VLOOKUP(EO265,'Footnotes list'!$D$9:$E$58,2,FALSE)=0,\"\",VLOOKUP(EO265,'Footnotes list'!$D$9:$E$58,2,FALSE) ) )","v":""},null,null,null,null,{"$f":"IF(TRIM(ET265)=\"\", \"\", IF(VLOOKUP(ET265,'Footnotes list'!$D$9:$E$58,2,FALSE)=0,\"\",VLOOKUP(ET265,'Footnotes list'!$D$9:$E$58,2,FALSE) ) )","v":""},null,null,null,null,{"$f":"IF(TRIM(EY265)=\"\", \"\", IF(VLOOKUP(EY265,'Footnotes list'!$D$9:$E$58,2,FALSE)=0,\"\",VLOOKUP(EY265,'Footnotes list'!$D$9:$E$58,2,FALSE) ) )","v":""}]
[null,null,"O","C_REP","cleaner and resource efficient products",null,null,null,null,null,{"$f":"IF(TRIM(J266)=\"\", \"\", IF(VLOOKUP(J266,'Footnotes list'!$D$9:$E$58,2,FALSE)=0,\"\",VLOOKUP(J266,'Footnotes list'!$D$9:$E$58,2,FALSE) ) )","v":""},null,null,null,null,{"$f":"IF(TRIM(O266)=\"\", \"\", IF(VLOOKUP(O266,'Footnotes list'!$D$9:$E$58,2,FALSE)=0,\"\",VLOOKUP(O266,'Footnotes list'!$D$9:$E$58,2,FALSE) ) )","v":""},null,null,null,null,{"$f":"IF(TRIM(T266)=\"\", \"\", IF(VLOOKUP(T266,'Footnotes list'!$D$9:$E$58,2,FALSE)=0,\"\",VLOOKUP(T266,'Footnotes list'!$D$9:$E$58,2,FALSE) ) )","v":""},null,null,null,null,{"$f":"IF(TRIM(Y266)=\"\", \"\", IF(VLOOKUP(Y266,'Footnotes list'!$D$9:$E$58,2,FALSE)=0,\"\",VLOOKUP(Y266,'Footnotes list'!$D$9:$E$58,2,FALSE) ) )","v":""},null,null,null,null,{"$f":"IF(TRIM(AD266)=\"\", \"\", IF(VLOOKUP(AD266,'Footnotes list'!$D$9:$E$58,2,FALSE)=0,\"\",VLOOKUP(AD266,'Footnotes list'!$D$9:$E$58,2,FALSE) ) )","v":""},null,null,null,null,{"$f":"IF(TRIM(AI266)=\"\", \"\", IF(VLOOKUP(AI266,'Footnotes list'!$D$9:$E$58,2,FALSE)=0,\"\",VLOOKUP(AI266,'Footnotes list'!$D$9:$E$58,2,FALSE) ) )","v":""},null,null,null,null,{"$f":"IF(TRIM(AN266)=\"\", \"\", IF(VLOOKUP(AN266,'Footnotes list'!$D$9:$E$58,2,FALSE)=0,\"\",VLOOKUP(AN266,'Footnotes list'!$D$9:$E$58,2,FALSE) ) )","v":""},null,null,null,null,{"$f":"IF(TRIM(AS266)=\"\", \"\", IF(VLOOKUP(AS266,'Footnotes list'!$D$9:$E$58,2,FALSE)=0,\"\",VLOOKUP(AS266,'Footnotes list'!$D$9:$E$58,2,FALSE) ) )","v":""},null,null,null,null,{"$f":"IF(TRIM(AX266)=\"\", \"\", IF(VLOOKUP(AX266,'Footnotes list'!$D$9:$E$58,2,FALSE)=0,\"\",VLOOKUP(AX266,'Footnotes list'!$D$9:$E$58,2,FALSE) ) )","v":""},null,null,null,null,{"$f":"IF(TRIM(BC266)=\"\", \"\", IF(VLOOKUP(BC266,'Footnotes list'!$D$9:$E$58,2,FALSE)=0,\"\",VLOOKUP(BC266,'Footnotes list'!$D$9:$E$58,2,FALSE) ) )","v":""},null,null,null,null,{"$f":"IF(TRIM(BH266)=\"\", \"\", IF(VLOOKUP(BH266,'Footnotes list'!$D$9:$E$58,2,FALSE)=0,\"\",VLOOKUP(BH266,'Footnotes list'!$D$9:$E$58,2,FALSE) ) )","v":""},null,null,null,null,{"$f":"IF(TRIM(BM266)=\"\", \"\", IF(VLOOKUP(BM266,'Footnotes list'!$D$9:$E$58,2,FALSE)=0,\"\",VLOOKUP(BM266,'Footnotes list'!$D$9:$E$58,2,FALSE) ) )","v":""},null,null,null,null,{"$f":"IF(TRIM(BR266)=\"\", \"\", IF(VLOOKUP(BR266,'Footnotes list'!$D$9:$E$58,2,FALSE)=0,\"\",VLOOKUP(BR266,'Footnotes list'!$D$9:$E$58,2,FALSE) ) )","v":""},null,null,null,null,{"$f":"IF(TRIM(BW266)=\"\", \"\", IF(VLOOKUP(BW266,'Footnotes list'!$D$9:$E$58,2,FALSE)=0,\"\",VLOOKUP(BW266,'Footnotes list'!$D$9:$E$58,2,FALSE) ) )","v":""},null,null,null,null,{"$f":"IF(TRIM(CB266)=\"\", \"\", IF(VLOOKUP(CB266,'Footnotes list'!$D$9:$E$58,2,FALSE)=0,\"\",VLOOKUP(CB266,'Footnotes list'!$D$9:$E$58,2,FALSE) ) )","v":""},null,null,null,null,{"$f":"IF(TRIM(CG266)=\"\", \"\", IF(VLOOKUP(CG266,'Footnotes list'!$D$9:$E$58,2,FALSE)=0,\"\",VLOOKUP(CG266,'Footnotes list'!$D$9:$E$58,2,FALSE) ) )","v":""},null,null,null,null,{"$f":"IF(TRIM(CL266)=\"\", \"\", IF(VLOOKUP(CL266,'Footnotes list'!$D$9:$E$58,2,FALSE)=0,\"\",VLOOKUP(CL266,'Footnotes list'!$D$9:$E$58,2,FALSE) ) )","v":""},null,null,null,null,{"$f":"IF(TRIM(CQ266)=\"\", \"\", IF(VLOOKUP(CQ266,'Footnotes list'!$D$9:$E$58,2,FALSE)=0,\"\",VLOOKUP(CQ266,'Footnotes list'!$D$9:$E$58,2,FALSE) ) )","v":""},null,null,null,null,{"$f":"IF(TRIM(CV266)=\"\", \"\", IF(VLOOKUP(CV266,'Footnotes list'!$D$9:$E$58,2,FALSE)=0,\"\",VLOOKUP(CV266,'Footnotes list'!$D$9:$E$58,2,FALSE) ) )","v":""},null,null,null,null,{"$f":"IF(TRIM(DA266)=\"\", \"\", IF(VLOOKUP(DA266,'Footnotes list'!$D$9:$E$58,2,FALSE)=0,\"\",VLOOKUP(DA266,'Footnotes list'!$D$9:$E$58,2,FALSE) ) )","v":""},null,null,null,null,{"$f":"IF(TRIM(DF266)=\"\", \"\", IF(VLOOKUP(DF266,'Footnotes list'!$D$9:$E$58,2,FALSE)=0,\"\",VLOOKUP(DF266,'Footnotes list'!$D$9:$E$58,2,FALSE) ) )","v":""},null,null,null,null,{"$f":"IF(TRIM(DK266)=\"\", \"\", IF(VLOOKUP(DK266,'Footnotes list'!$D$9:$E$58,2,FALSE)=0,\"\",VLOOKUP(DK266,'Footnotes list'!$D$9:$E$58,2,FALSE) ) )","v":""},null,null,null,null,{"$f":"IF(TRIM(DP266)=\"\", \"\", IF(VLOOKUP(DP266,'Footnotes list'!$D$9:$E$58,2,FALSE)=0,\"\",VLOOKUP(DP266,'Footnotes list'!$D$9:$E$58,2,FALSE) ) )","v":""},null,null,null,null,{"$f":"IF(TRIM(DU266)=\"\", \"\", IF(VLOOKUP(DU266,'Footnotes list'!$D$9:$E$58,2,FALSE)=0,\"\",VLOOKUP(DU266,'Footnotes list'!$D$9:$E$58,2,FALSE) ) )","v":""},null,null,null,null,{"$f":"IF(TRIM(DZ266)=\"\", \"\", IF(VLOOKUP(DZ266,'Footnotes list'!$D$9:$E$58,2,FALSE)=0,\"\",VLOOKUP(DZ266,'Footnotes list'!$D$9:$E$58,2,FALSE) ) )","v":""},null,null,null,null,{"$f":"IF(TRIM(EE266)=\"\", \"\", IF(VLOOKUP(EE266,'Footnotes list'!$D$9:$E$58,2,FALSE)=0,\"\",VLOOKUP(EE266,'Footnotes list'!$D$9:$E$58,2,FALSE) ) )","v":""},null,null,null,null,{"$f":"IF(TRIM(EJ266)=\"\", \"\", IF(VLOOKUP(EJ266,'Footnotes list'!$D$9:$E$58,2,FALSE)=0,\"\",VLOOKUP(EJ266,'Footnotes list'!$D$9:$E$58,2,FALSE) ) )","v":""},null,null,null,null,{"$f":"IF(TRIM(EO266)=\"\", \"\", IF(VLOOKUP(EO266,'Footnotes list'!$D$9:$E$58,2,FALSE)=0,\"\",VLOOKUP(EO266,'Footnotes list'!$D$9:$E$58,2,FALSE) ) )","v":""},null,null,null,null,{"$f":"IF(TRIM(ET266)=\"\", \"\", IF(VLOOKUP(ET266,'Footnotes list'!$D$9:$E$58,2,FALSE)=0,\"\",VLOOKUP(ET266,'Footnotes list'!$D$9:$E$58,2,FALSE) ) )","v":""},null,null,null,null,{"$f":"IF(TRIM(EY266)=\"\", \"\", IF(VLOOKUP(EY266,'Footnotes list'!$D$9:$E$58,2,FALSE)=0,\"\",VLOOKUP(EY266,'Footnotes list'!$D$9:$E$58,2,FALSE) ) )","v":""}]
[null,null,"P","TOT_EGSS","Total P - Education, of which:",null,null,null,null,null,{"$f":"IF(TRIM(J267)=\"\", \"\", IF(VLOOKUP(J267,'Footnotes list'!$D$9:$E$58,2,FALSE)=0,\"\",VLOOKUP(J267,'Footnotes list'!$D$9:$E$58,2,FALSE) ) )","v":""},null,null,null,null,{"$f":"IF(TRIM(O267)=\"\", \"\", IF(VLOOKUP(O267,'Footnotes list'!$D$9:$E$58,2,FALSE)=0,\"\",VLOOKUP(O267,'Footnotes list'!$D$9:$E$58,2,FALSE) ) )","v":""},null,null,null,null,{"$f":"IF(TRIM(T267)=\"\", \"\", IF(VLOOKUP(T267,'Footnotes list'!$D$9:$E$58,2,FALSE)=0,\"\",VLOOKUP(T267,'Footnotes list'!$D$9:$E$58,2,FALSE) ) )","v":""},null,null,null,null,{"$f":"IF(TRIM(Y267)=\"\", \"\", IF(VLOOKUP(Y267,'Footnotes list'!$D$9:$E$58,2,FALSE)=0,\"\",VLOOKUP(Y267,'Footnotes list'!$D$9:$E$58,2,FALSE) ) )","v":""},null,null,null,null,{"$f":"IF(TRIM(AD267)=\"\", \"\", IF(VLOOKUP(AD267,'Footnotes list'!$D$9:$E$58,2,FALSE)=0,\"\",VLOOKUP(AD267,'Footnotes list'!$D$9:$E$58,2,FALSE) ) )","v":""},null,null,null,null,{"$f":"IF(TRIM(AI267)=\"\", \"\", IF(VLOOKUP(AI267,'Footnotes list'!$D$9:$E$58,2,FALSE)=0,\"\",VLOOKUP(AI267,'Footnotes list'!$D$9:$E$58,2,FALSE) ) )","v":""},null,null,null,null,{"$f":"IF(TRIM(AN267)=\"\", \"\", IF(VLOOKUP(AN267,'Footnotes list'!$D$9:$E$58,2,FALSE)=0,\"\",VLOOKUP(AN267,'Footnotes list'!$D$9:$E$58,2,FALSE) ) )","v":""},null,null,null,null,{"$f":"IF(TRIM(AS267)=\"\", \"\", IF(VLOOKUP(AS267,'Footnotes list'!$D$9:$E$58,2,FALSE)=0,\"\",VLOOKUP(AS267,'Footnotes list'!$D$9:$E$58,2,FALSE) ) )","v":""},null,null,null,null,{"$f":"IF(TRIM(AX267)=\"\", \"\", IF(VLOOKUP(AX267,'Footnotes list'!$D$9:$E$58,2,FALSE)=0,\"\",VLOOKUP(AX267,'Footnotes list'!$D$9:$E$58,2,FALSE) ) )","v":""},null,null,null,null,{"$f":"IF(TRIM(BC267)=\"\", \"\", IF(VLOOKUP(BC267,'Footnotes list'!$D$9:$E$58,2,FALSE)=0,\"\",VLOOKUP(BC267,'Footnotes list'!$D$9:$E$58,2,FALSE) ) )","v":""},null,null,null,null,{"$f":"IF(TRIM(BH267)=\"\", \"\", IF(VLOOKUP(BH267,'Footnotes list'!$D$9:$E$58,2,FALSE)=0,\"\",VLOOKUP(BH267,'Footnotes list'!$D$9:$E$58,2,FALSE) ) )","v":""},null,null,null,null,{"$f":"IF(TRIM(BM267)=\"\", \"\", IF(VLOOKUP(BM267,'Footnotes list'!$D$9:$E$58,2,FALSE)=0,\"\",VLOOKUP(BM267,'Footnotes list'!$D$9:$E$58,2,FALSE) ) )","v":""},null,null,null,null,{"$f":"IF(TRIM(BR267)=\"\", \"\", IF(VLOOKUP(BR267,'Footnotes list'!$D$9:$E$58,2,FALSE)=0,\"\",VLOOKUP(BR267,'Footnotes list'!$D$9:$E$58,2,FALSE) ) )","v":""},null,null,null,null,{"$f":"IF(TRIM(BW267)=\"\", \"\", IF(VLOOKUP(BW267,'Footnotes list'!$D$9:$E$58,2,FALSE)=0,\"\",VLOOKUP(BW267,'Footnotes list'!$D$9:$E$58,2,FALSE) ) )","v":""},null,null,null,null,{"$f":"IF(TRIM(CB267)=\"\", \"\", IF(VLOOKUP(CB267,'Footnotes list'!$D$9:$E$58,2,FALSE)=0,\"\",VLOOKUP(CB267,'Footnotes list'!$D$9:$E$58,2,FALSE) ) )","v":""},null,null,null,null,{"$f":"IF(TRIM(CG267)=\"\", \"\", IF(VLOOKUP(CG267,'Footnotes list'!$D$9:$E$58,2,FALSE)=0,\"\",VLOOKUP(CG267,'Footnotes list'!$D$9:$E$58,2,FALSE) ) )","v":""},null,null,null,null,{"$f":"IF(TRIM(CL267)=\"\", \"\", IF(VLOOKUP(CL267,'Footnotes list'!$D$9:$E$58,2,FALSE)=0,\"\",VLOOKUP(CL267,'Footnotes list'!$D$9:$E$58,2,FALSE) ) )","v":""},null,null,null,null,{"$f":"IF(TRIM(CQ267)=\"\", \"\", IF(VLOOKUP(CQ267,'Footnotes list'!$D$9:$E$58,2,FALSE)=0,\"\",VLOOKUP(CQ267,'Footnotes list'!$D$9:$E$58,2,FALSE) ) )","v":""},null,null,null,null,{"$f":"IF(TRIM(CV267)=\"\", \"\", IF(VLOOKUP(CV267,'Footnotes list'!$D$9:$E$58,2,FALSE)=0,\"\",VLOOKUP(CV267,'Footnotes list'!$D$9:$E$58,2,FALSE) ) )","v":""},null,null,null,null,{"$f":"IF(TRIM(DA267)=\"\", \"\", IF(VLOOKUP(DA267,'Footnotes list'!$D$9:$E$58,2,FALSE)=0,\"\",VLOOKUP(DA267,'Footnotes list'!$D$9:$E$58,2,FALSE) ) )","v":""},null,null,null,null,{"$f":"IF(TRIM(DF267)=\"\", \"\", IF(VLOOKUP(DF267,'Footnotes list'!$D$9:$E$58,2,FALSE)=0,\"\",VLOOKUP(DF267,'Footnotes list'!$D$9:$E$58,2,FALSE) ) )","v":""},null,null,null,null,{"$f":"IF(TRIM(DK267)=\"\", \"\", IF(VLOOKUP(DK267,'Footnotes list'!$D$9:$E$58,2,FALSE)=0,\"\",VLOOKUP(DK267,'Footnotes list'!$D$9:$E$58,2,FALSE) ) )","v":""},null,null,null,null,{"$f":"IF(TRIM(DP267)=\"\", \"\", IF(VLOOKUP(DP267,'Footnotes list'!$D$9:$E$58,2,FALSE)=0,\"\",VLOOKUP(DP267,'Footnotes list'!$D$9:$E$58,2,FALSE) ) )","v":""},null,null,null,null,{"$f":"IF(TRIM(DU267)=\"\", \"\", IF(VLOOKUP(DU267,'Footnotes list'!$D$9:$E$58,2,FALSE)=0,\"\",VLOOKUP(DU267,'Footnotes list'!$D$9:$E$58,2,FALSE) ) )","v":""},null,null,null,null,{"$f":"IF(TRIM(DZ267)=\"\", \"\", IF(VLOOKUP(DZ267,'Footnotes list'!$D$9:$E$58,2,FALSE)=0,\"\",VLOOKUP(DZ267,'Footnotes list'!$D$9:$E$58,2,FALSE) ) )","v":""},null,null,null,null,{"$f":"IF(TRIM(EE267)=\"\", \"\", IF(VLOOKUP(EE267,'Footnotes list'!$D$9:$E$58,2,FALSE)=0,\"\",VLOOKUP(EE267,'Footnotes list'!$D$9:$E$58,2,FALSE) ) )","v":""},null,null,null,null,{"$f":"IF(TRIM(EJ267)=\"\", \"\", IF(VLOOKUP(EJ267,'Footnotes list'!$D$9:$E$58,2,FALSE)=0,\"\",VLOOKUP(EJ267,'Footnotes list'!$D$9:$E$58,2,FALSE) ) )","v":""},null,null,null,null,{"$f":"IF(TRIM(EO267)=\"\", \"\", IF(VLOOKUP(EO267,'Footnotes list'!$D$9:$E$58,2,FALSE)=0,\"\",VLOOKUP(EO267,'Footnotes list'!$D$9:$E$58,2,FALSE) ) )","v":""},null,null,null,null,{"$f":"IF(TRIM(ET267)=\"\", \"\", IF(VLOOKUP(ET267,'Footnotes list'!$D$9:$E$58,2,FALSE)=0,\"\",VLOOKUP(ET267,'Footnotes list'!$D$9:$E$58,2,FALSE) ) )","v":""},null,null,null,null,{"$f":"IF(TRIM(EY267)=\"\", \"\", IF(VLOOKUP(EY267,'Footnotes list'!$D$9:$E$58,2,FALSE)=0,\"\",VLOOKUP(EY267,'Footnotes list'!$D$9:$E$58,2,FALSE) ) )","v":""}]
[null,null,"P","ANC","ancillary activities",null,null,null,null,null,{"$f":"IF(TRIM(J268)=\"\", \"\", IF(VLOOKUP(J268,'Footnotes list'!$D$9:$E$58,2,FALSE)=0,\"\",VLOOKUP(J268,'Footnotes list'!$D$9:$E$58,2,FALSE) ) )","v":""},null,null,null,null,{"$f":"IF(TRIM(O268)=\"\", \"\", IF(VLOOKUP(O268,'Footnotes list'!$D$9:$E$58,2,FALSE)=0,\"\",VLOOKUP(O268,'Footnotes list'!$D$9:$E$58,2,FALSE) ) )","v":""},null,null,null,null,{"$f":"IF(TRIM(T268)=\"\", \"\", IF(VLOOKUP(T268,'Footnotes list'!$D$9:$E$58,2,FALSE)=0,\"\",VLOOKUP(T268,'Footnotes list'!$D$9:$E$58,2,FALSE) ) )","v":""},null,null,null,null,{"$f":"IF(TRIM(Y268)=\"\", \"\", IF(VLOOKUP(Y268,'Footnotes list'!$D$9:$E$58,2,FALSE)=0,\"\",VLOOKUP(Y268,'Footnotes list'!$D$9:$E$58,2,FALSE) ) )","v":""},null,null,null,null,{"$f":"IF(TRIM(AD268)=\"\", \"\", IF(VLOOKUP(AD268,'Footnotes list'!$D$9:$E$58,2,FALSE)=0,\"\",VLOOKUP(AD268,'Footnotes list'!$D$9:$E$58,2,FALSE) ) )","v":""},null,null,null,null,{"$f":"IF(TRIM(AI268)=\"\", \"\", IF(VLOOKUP(AI268,'Footnotes list'!$D$9:$E$58,2,FALSE)=0,\"\",VLOOKUP(AI268,'Footnotes list'!$D$9:$E$58,2,FALSE) ) )","v":""},null,null,null,null,{"$f":"IF(TRIM(AN268)=\"\", \"\", IF(VLOOKUP(AN268,'Footnotes list'!$D$9:$E$58,2,FALSE)=0,\"\",VLOOKUP(AN268,'Footnotes list'!$D$9:$E$58,2,FALSE) ) )","v":""},null,null,null,null,{"$f":"IF(TRIM(AS268)=\"\", \"\", IF(VLOOKUP(AS268,'Footnotes list'!$D$9:$E$58,2,FALSE)=0,\"\",VLOOKUP(AS268,'Footnotes list'!$D$9:$E$58,2,FALSE) ) )","v":""},null,null,null,null,{"$f":"IF(TRIM(AX268)=\"\", \"\", IF(VLOOKUP(AX268,'Footnotes list'!$D$9:$E$58,2,FALSE)=0,\"\",VLOOKUP(AX268,'Footnotes list'!$D$9:$E$58,2,FALSE) ) )","v":""},null,null,null,null,{"$f":"IF(TRIM(BC268)=\"\", \"\", IF(VLOOKUP(BC268,'Footnotes list'!$D$9:$E$58,2,FALSE)=0,\"\",VLOOKUP(BC268,'Footnotes list'!$D$9:$E$58,2,FALSE) ) )","v":""},null,null,null,null,{"$f":"IF(TRIM(BH268)=\"\", \"\", IF(VLOOKUP(BH268,'Footnotes list'!$D$9:$E$58,2,FALSE)=0,\"\",VLOOKUP(BH268,'Footnotes list'!$D$9:$E$58,2,FALSE) ) )","v":""},null,null,null,null,{"$f":"IF(TRIM(BM268)=\"\", \"\", IF(VLOOKUP(BM268,'Footnotes list'!$D$9:$E$58,2,FALSE)=0,\"\",VLOOKUP(BM268,'Footnotes list'!$D$9:$E$58,2,FALSE) ) )","v":""},null,null,null,null,{"$f":"IF(TRIM(BR268)=\"\", \"\", IF(VLOOKUP(BR268,'Footnotes list'!$D$9:$E$58,2,FALSE)=0,\"\",VLOOKUP(BR268,'Footnotes list'!$D$9:$E$58,2,FALSE) ) )","v":""},null,null,null,null,{"$f":"IF(TRIM(BW268)=\"\", \"\", IF(VLOOKUP(BW268,'Footnotes list'!$D$9:$E$58,2,FALSE)=0,\"\",VLOOKUP(BW268,'Footnotes list'!$D$9:$E$58,2,FALSE) ) )","v":""},null,null,null,null,{"$f":"IF(TRIM(CB268)=\"\", \"\", IF(VLOOKUP(CB268,'Footnotes list'!$D$9:$E$58,2,FALSE)=0,\"\",VLOOKUP(CB268,'Footnotes list'!$D$9:$E$58,2,FALSE) ) )","v":""},null,null,null,null,{"$f":"IF(TRIM(CG268)=\"\", \"\", IF(VLOOKUP(CG268,'Footnotes list'!$D$9:$E$58,2,FALSE)=0,\"\",VLOOKUP(CG268,'Footnotes list'!$D$9:$E$58,2,FALSE) ) )","v":""},null,null,null,null,{"$f":"IF(TRIM(CL268)=\"\", \"\", IF(VLOOKUP(CL268,'Footnotes list'!$D$9:$E$58,2,FALSE)=0,\"\",VLOOKUP(CL268,'Footnotes list'!$D$9:$E$58,2,FALSE) ) )","v":""},null,null,null,null,{"$f":"IF(TRIM(CQ268)=\"\", \"\", IF(VLOOKUP(CQ268,'Footnotes list'!$D$9:$E$58,2,FALSE)=0,\"\",VLOOKUP(CQ268,'Footnotes list'!$D$9:$E$58,2,FALSE) ) )","v":""},null,null,null,null,{"$f":"IF(TRIM(CV268)=\"\", \"\", IF(VLOOKUP(CV268,'Footnotes list'!$D$9:$E$58,2,FALSE)=0,\"\",VLOOKUP(CV268,'Footnotes list'!$D$9:$E$58,2,FALSE) ) )","v":""},null,null,null,null,{"$f":"IF(TRIM(DA268)=\"\", \"\", IF(VLOOKUP(DA268,'Footnotes list'!$D$9:$E$58,2,FALSE)=0,\"\",VLOOKUP(DA268,'Footnotes list'!$D$9:$E$58,2,FALSE) ) )","v":""},null,null,null,null,{"$f":"IF(TRIM(DF268)=\"\", \"\", IF(VLOOKUP(DF268,'Footnotes list'!$D$9:$E$58,2,FALSE)=0,\"\",VLOOKUP(DF268,'Footnotes list'!$D$9:$E$58,2,FALSE) ) )","v":""},null,null,null,null,{"$f":"IF(TRIM(DK268)=\"\", \"\", IF(VLOOKUP(DK268,'Footnotes list'!$D$9:$E$58,2,FALSE)=0,\"\",VLOOKUP(DK268,'Footnotes list'!$D$9:$E$58,2,FALSE) ) )","v":""},null,null,null,null,{"$f":"IF(TRIM(DP268)=\"\", \"\", IF(VLOOKUP(DP268,'Footnotes list'!$D$9:$E$58,2,FALSE)=0,\"\",VLOOKUP(DP268,'Footnotes list'!$D$9:$E$58,2,FALSE) ) )","v":""},null,null,null,null,{"$f":"IF(TRIM(DU268)=\"\", \"\", IF(VLOOKUP(DU268,'Footnotes list'!$D$9:$E$58,2,FALSE)=0,\"\",VLOOKUP(DU268,'Footnotes list'!$D$9:$E$58,2,FALSE) ) )","v":""},null,null,null,null,{"$f":"IF(TRIM(DZ268)=\"\", \"\", IF(VLOOKUP(DZ268,'Footnotes list'!$D$9:$E$58,2,FALSE)=0,\"\",VLOOKUP(DZ268,'Footnotes list'!$D$9:$E$58,2,FALSE) ) )","v":""},null,null,null,null,{"$f":"IF(TRIM(EE268)=\"\", \"\", IF(VLOOKUP(EE268,'Footnotes list'!$D$9:$E$58,2,FALSE)=0,\"\",VLOOKUP(EE268,'Footnotes list'!$D$9:$E$58,2,FALSE) ) )","v":""},null,null,null,null,{"$f":"IF(TRIM(EJ268)=\"\", \"\", IF(VLOOKUP(EJ268,'Footnotes list'!$D$9:$E$58,2,FALSE)=0,\"\",VLOOKUP(EJ268,'Footnotes list'!$D$9:$E$58,2,FALSE) ) )","v":""},null,null,null,null,{"$f":"IF(TRIM(EO268)=\"\", \"\", IF(VLOOKUP(EO268,'Footnotes list'!$D$9:$E$58,2,FALSE)=0,\"\",VLOOKUP(EO268,'Footnotes list'!$D$9:$E$58,2,FALSE) ) )","v":""},null,null,null,null,{"$f":"IF(TRIM(ET268)=\"\", \"\", IF(VLOOKUP(ET268,'Footnotes list'!$D$9:$E$58,2,FALSE)=0,\"\",VLOOKUP(ET268,'Footnotes list'!$D$9:$E$58,2,FALSE) ) )","v":""},null,null,null,null,{"$f":"IF(TRIM(EY268)=\"\", \"\", IF(VLOOKUP(EY268,'Footnotes list'!$D$9:$E$58,2,FALSE)=0,\"\",VLOOKUP(EY268,'Footnotes list'!$D$9:$E$58,2,FALSE) ) )","v":""}]
[null,null,"P","NMKT","non-market activities",null,null,null,null,null,{"$f":"IF(TRIM(J269)=\"\", \"\", IF(VLOOKUP(J269,'Footnotes list'!$D$9:$E$58,2,FALSE)=0,\"\",VLOOKUP(J269,'Footnotes list'!$D$9:$E$58,2,FALSE) ) )","v":""},null,null,null,null,{"$f":"IF(TRIM(O269)=\"\", \"\", IF(VLOOKUP(O269,'Footnotes list'!$D$9:$E$58,2,FALSE)=0,\"\",VLOOKUP(O269,'Footnotes list'!$D$9:$E$58,2,FALSE) ) )","v":""},null,null,null,null,{"$f":"IF(TRIM(T269)=\"\", \"\", IF(VLOOKUP(T269,'Footnotes list'!$D$9:$E$58,2,FALSE)=0,\"\",VLOOKUP(T269,'Footnotes list'!$D$9:$E$58,2,FALSE) ) )","v":""},null,null,null,null,{"$f":"IF(TRIM(Y269)=\"\", \"\", IF(VLOOKUP(Y269,'Footnotes list'!$D$9:$E$58,2,FALSE)=0,\"\",VLOOKUP(Y269,'Footnotes list'!$D$9:$E$58,2,FALSE) ) )","v":""},null,null,null,null,{"$f":"IF(TRIM(AD269)=\"\", \"\", IF(VLOOKUP(AD269,'Footnotes list'!$D$9:$E$58,2,FALSE)=0,\"\",VLOOKUP(AD269,'Footnotes list'!$D$9:$E$58,2,FALSE) ) )","v":""},null,null,null,null,{"$f":"IF(TRIM(AI269)=\"\", \"\", IF(VLOOKUP(AI269,'Footnotes list'!$D$9:$E$58,2,FALSE)=0,\"\",VLOOKUP(AI269,'Footnotes list'!$D$9:$E$58,2,FALSE) ) )","v":""},null,null,null,null,{"$f":"IF(TRIM(AN269)=\"\", \"\", IF(VLOOKUP(AN269,'Footnotes list'!$D$9:$E$58,2,FALSE)=0,\"\",VLOOKUP(AN269,'Footnotes list'!$D$9:$E$58,2,FALSE) ) )","v":""},null,null,null,null,{"$f":"IF(TRIM(AS269)=\"\", \"\", IF(VLOOKUP(AS269,'Footnotes list'!$D$9:$E$58,2,FALSE)=0,\"\",VLOOKUP(AS269,'Footnotes list'!$D$9:$E$58,2,FALSE) ) )","v":""},null,null,null,null,{"$f":"IF(TRIM(AX269)=\"\", \"\", IF(VLOOKUP(AX269,'Footnotes list'!$D$9:$E$58,2,FALSE)=0,\"\",VLOOKUP(AX269,'Footnotes list'!$D$9:$E$58,2,FALSE) ) )","v":""},null,null,null,null,{"$f":"IF(TRIM(BC269)=\"\", \"\", IF(VLOOKUP(BC269,'Footnotes list'!$D$9:$E$58,2,FALSE)=0,\"\",VLOOKUP(BC269,'Footnotes list'!$D$9:$E$58,2,FALSE) ) )","v":""},null,null,null,null,{"$f":"IF(TRIM(BH269)=\"\", \"\", IF(VLOOKUP(BH269,'Footnotes list'!$D$9:$E$58,2,FALSE)=0,\"\",VLOOKUP(BH269,'Footnotes list'!$D$9:$E$58,2,FALSE) ) )","v":""},null,null,null,null,{"$f":"IF(TRIM(BM269)=\"\", \"\", IF(VLOOKUP(BM269,'Footnotes list'!$D$9:$E$58,2,FALSE)=0,\"\",VLOOKUP(BM269,'Footnotes list'!$D$9:$E$58,2,FALSE) ) )","v":""},null,null,null,null,{"$f":"IF(TRIM(BR269)=\"\", \"\", IF(VLOOKUP(BR269,'Footnotes list'!$D$9:$E$58,2,FALSE)=0,\"\",VLOOKUP(BR269,'Footnotes list'!$D$9:$E$58,2,FALSE) ) )","v":""},null,null,null,null,{"$f":"IF(TRIM(BW269)=\"\", \"\", IF(VLOOKUP(BW269,'Footnotes list'!$D$9:$E$58,2,FALSE)=0,\"\",VLOOKUP(BW269,'Footnotes list'!$D$9:$E$58,2,FALSE) ) )","v":""},null,null,null,null,{"$f":"IF(TRIM(CB269)=\"\", \"\", IF(VLOOKUP(CB269,'Footnotes list'!$D$9:$E$58,2,FALSE)=0,\"\",VLOOKUP(CB269,'Footnotes list'!$D$9:$E$58,2,FALSE) ) )","v":""},null,null,null,null,{"$f":"IF(TRIM(CG269)=\"\", \"\", IF(VLOOKUP(CG269,'Footnotes list'!$D$9:$E$58,2,FALSE)=0,\"\",VLOOKUP(CG269,'Footnotes list'!$D$9:$E$58,2,FALSE) ) )","v":""},null,null,null,null,{"$f":"IF(TRIM(CL269)=\"\", \"\", IF(VLOOKUP(CL269,'Footnotes list'!$D$9:$E$58,2,FALSE)=0,\"\",VLOOKUP(CL269,'Footnotes list'!$D$9:$E$58,2,FALSE) ) )","v":""},null,null,null,null,{"$f":"IF(TRIM(CQ269)=\"\", \"\", IF(VLOOKUP(CQ269,'Footnotes list'!$D$9:$E$58,2,FALSE)=0,\"\",VLOOKUP(CQ269,'Footnotes list'!$D$9:$E$58,2,FALSE) ) )","v":""},null,null,null,null,{"$f":"IF(TRIM(CV269)=\"\", \"\", IF(VLOOKUP(CV269,'Footnotes list'!$D$9:$E$58,2,FALSE)=0,\"\",VLOOKUP(CV269,'Footnotes list'!$D$9:$E$58,2,FALSE) ) )","v":""},null,null,null,null,{"$f":"IF(TRIM(DA269)=\"\", \"\", IF(VLOOKUP(DA269,'Footnotes list'!$D$9:$E$58,2,FALSE)=0,\"\",VLOOKUP(DA269,'Footnotes list'!$D$9:$E$58,2,FALSE) ) )","v":""},null,null,null,null,{"$f":"IF(TRIM(DF269)=\"\", \"\", IF(VLOOKUP(DF269,'Footnotes list'!$D$9:$E$58,2,FALSE)=0,\"\",VLOOKUP(DF269,'Footnotes list'!$D$9:$E$58,2,FALSE) ) )","v":""},null,null,null,null,{"$f":"IF(TRIM(DK269)=\"\", \"\", IF(VLOOKUP(DK269,'Footnotes list'!$D$9:$E$58,2,FALSE)=0,\"\",VLOOKUP(DK269,'Footnotes list'!$D$9:$E$58,2,FALSE) ) )","v":""},null,null,null,null,{"$f":"IF(TRIM(DP269)=\"\", \"\", IF(VLOOKUP(DP269,'Footnotes list'!$D$9:$E$58,2,FALSE)=0,\"\",VLOOKUP(DP269,'Footnotes list'!$D$9:$E$58,2,FALSE) ) )","v":""},null,null,null,null,{"$f":"IF(TRIM(DU269)=\"\", \"\", IF(VLOOKUP(DU269,'Footnotes list'!$D$9:$E$58,2,FALSE)=0,\"\",VLOOKUP(DU269,'Footnotes list'!$D$9:$E$58,2,FALSE) ) )","v":""},null,null,null,null,{"$f":"IF(TRIM(DZ269)=\"\", \"\", IF(VLOOKUP(DZ269,'Footnotes list'!$D$9:$E$58,2,FALSE)=0,\"\",VLOOKUP(DZ269,'Footnotes list'!$D$9:$E$58,2,FALSE) ) )","v":""},null,null,null,null,{"$f":"IF(TRIM(EE269)=\"\", \"\", IF(VLOOKUP(EE269,'Footnotes list'!$D$9:$E$58,2,FALSE)=0,\"\",VLOOKUP(EE269,'Footnotes list'!$D$9:$E$58,2,FALSE) ) )","v":""},null,null,null,null,{"$f":"IF(TRIM(EJ269)=\"\", \"\", IF(VLOOKUP(EJ269,'Footnotes list'!$D$9:$E$58,2,FALSE)=0,\"\",VLOOKUP(EJ269,'Footnotes list'!$D$9:$E$58,2,FALSE) ) )","v":""},null,null,null,null,{"$f":"IF(TRIM(EO269)=\"\", \"\", IF(VLOOKUP(EO269,'Footnotes list'!$D$9:$E$58,2,FALSE)=0,\"\",VLOOKUP(EO269,'Footnotes list'!$D$9:$E$58,2,FALSE) ) )","v":""},null,null,null,null,{"$f":"IF(TRIM(ET269)=\"\", \"\", IF(VLOOKUP(ET269,'Footnotes list'!$D$9:$E$58,2,FALSE)=0,\"\",VLOOKUP(ET269,'Footnotes list'!$D$9:$E$58,2,FALSE) ) )","v":""},null,null,null,null,{"$f":"IF(TRIM(EY269)=\"\", \"\", IF(VLOOKUP(EY269,'Footnotes list'!$D$9:$E$58,2,FALSE)=0,\"\",VLOOKUP(EY269,'Footnotes list'!$D$9:$E$58,2,FALSE) ) )","v":""}]
[null,null,"P","OWN_USE","activities for own final use",null,null,null,null,null,{"$f":"IF(TRIM(J270)=\"\", \"\", IF(VLOOKUP(J270,'Footnotes list'!$D$9:$E$58,2,FALSE)=0,\"\",VLOOKUP(J270,'Footnotes list'!$D$9:$E$58,2,FALSE) ) )","v":""},null,null,null,null,{"$f":"IF(TRIM(O270)=\"\", \"\", IF(VLOOKUP(O270,'Footnotes list'!$D$9:$E$58,2,FALSE)=0,\"\",VLOOKUP(O270,'Footnotes list'!$D$9:$E$58,2,FALSE) ) )","v":""},null,null,null,null,{"$f":"IF(TRIM(T270)=\"\", \"\", IF(VLOOKUP(T270,'Footnotes list'!$D$9:$E$58,2,FALSE)=0,\"\",VLOOKUP(T270,'Footnotes list'!$D$9:$E$58,2,FALSE) ) )","v":""},null,null,null,null,{"$f":"IF(TRIM(Y270)=\"\", \"\", IF(VLOOKUP(Y270,'Footnotes list'!$D$9:$E$58,2,FALSE)=0,\"\",VLOOKUP(Y270,'Footnotes list'!$D$9:$E$58,2,FALSE) ) )","v":""},null,null,null,null,{"$f":"IF(TRIM(AD270)=\"\", \"\", IF(VLOOKUP(AD270,'Footnotes list'!$D$9:$E$58,2,FALSE)=0,\"\",VLOOKUP(AD270,'Footnotes list'!$D$9:$E$58,2,FALSE) ) )","v":""},null,null,null,null,{"$f":"IF(TRIM(AI270)=\"\", \"\", IF(VLOOKUP(AI270,'Footnotes list'!$D$9:$E$58,2,FALSE)=0,\"\",VLOOKUP(AI270,'Footnotes list'!$D$9:$E$58,2,FALSE) ) )","v":""},null,null,null,null,{"$f":"IF(TRIM(AN270)=\"\", \"\", IF(VLOOKUP(AN270,'Footnotes list'!$D$9:$E$58,2,FALSE)=0,\"\",VLOOKUP(AN270,'Footnotes list'!$D$9:$E$58,2,FALSE) ) )","v":""},null,null,null,null,{"$f":"IF(TRIM(AS270)=\"\", \"\", IF(VLOOKUP(AS270,'Footnotes list'!$D$9:$E$58,2,FALSE)=0,\"\",VLOOKUP(AS270,'Footnotes list'!$D$9:$E$58,2,FALSE) ) )","v":""},null,null,null,null,{"$f":"IF(TRIM(AX270)=\"\", \"\", IF(VLOOKUP(AX270,'Footnotes list'!$D$9:$E$58,2,FALSE)=0,\"\",VLOOKUP(AX270,'Footnotes list'!$D$9:$E$58,2,FALSE) ) )","v":""},null,null,null,null,{"$f":"IF(TRIM(BC270)=\"\", \"\", IF(VLOOKUP(BC270,'Footnotes list'!$D$9:$E$58,2,FALSE)=0,\"\",VLOOKUP(BC270,'Footnotes list'!$D$9:$E$58,2,FALSE) ) )","v":""},null,null,null,null,{"$f":"IF(TRIM(BH270)=\"\", \"\", IF(VLOOKUP(BH270,'Footnotes list'!$D$9:$E$58,2,FALSE)=0,\"\",VLOOKUP(BH270,'Footnotes list'!$D$9:$E$58,2,FALSE) ) )","v":""},null,null,null,null,{"$f":"IF(TRIM(BM270)=\"\", \"\", IF(VLOOKUP(BM270,'Footnotes list'!$D$9:$E$58,2,FALSE)=0,\"\",VLOOKUP(BM270,'Footnotes list'!$D$9:$E$58,2,FALSE) ) )","v":""},null,null,null,null,{"$f":"IF(TRIM(BR270)=\"\", \"\", IF(VLOOKUP(BR270,'Footnotes list'!$D$9:$E$58,2,FALSE)=0,\"\",VLOOKUP(BR270,'Footnotes list'!$D$9:$E$58,2,FALSE) ) )","v":""},null,null,null,null,{"$f":"IF(TRIM(BW270)=\"\", \"\", IF(VLOOKUP(BW270,'Footnotes list'!$D$9:$E$58,2,FALSE)=0,\"\",VLOOKUP(BW270,'Footnotes list'!$D$9:$E$58,2,FALSE) ) )","v":""},null,null,null,null,{"$f":"IF(TRIM(CB270)=\"\", \"\", IF(VLOOKUP(CB270,'Footnotes list'!$D$9:$E$58,2,FALSE)=0,\"\",VLOOKUP(CB270,'Footnotes list'!$D$9:$E$58,2,FALSE) ) )","v":""},null,null,null,null,{"$f":"IF(TRIM(CG270)=\"\", \"\", IF(VLOOKUP(CG270,'Footnotes list'!$D$9:$E$58,2,FALSE)=0,\"\",VLOOKUP(CG270,'Footnotes list'!$D$9:$E$58,2,FALSE) ) )","v":""},null,null,null,null,{"$f":"IF(TRIM(CL270)=\"\", \"\", IF(VLOOKUP(CL270,'Footnotes list'!$D$9:$E$58,2,FALSE)=0,\"\",VLOOKUP(CL270,'Footnotes list'!$D$9:$E$58,2,FALSE) ) )","v":""},null,null,null,null,{"$f":"IF(TRIM(CQ270)=\"\", \"\", IF(VLOOKUP(CQ270,'Footnotes list'!$D$9:$E$58,2,FALSE)=0,\"\",VLOOKUP(CQ270,'Footnotes list'!$D$9:$E$58,2,FALSE) ) )","v":""},null,null,null,null,{"$f":"IF(TRIM(CV270)=\"\", \"\", IF(VLOOKUP(CV270,'Footnotes list'!$D$9:$E$58,2,FALSE)=0,\"\",VLOOKUP(CV270,'Footnotes list'!$D$9:$E$58,2,FALSE) ) )","v":""},null,null,null,null,{"$f":"IF(TRIM(DA270)=\"\", \"\", IF(VLOOKUP(DA270,'Footnotes list'!$D$9:$E$58,2,FALSE)=0,\"\",VLOOKUP(DA270,'Footnotes list'!$D$9:$E$58,2,FALSE) ) )","v":""},null,null,null,null,{"$f":"IF(TRIM(DF270)=\"\", \"\", IF(VLOOKUP(DF270,'Footnotes list'!$D$9:$E$58,2,FALSE)=0,\"\",VLOOKUP(DF270,'Footnotes list'!$D$9:$E$58,2,FALSE) ) )","v":""},null,null,null,null,{"$f":"IF(TRIM(DK270)=\"\", \"\", IF(VLOOKUP(DK270,'Footnotes list'!$D$9:$E$58,2,FALSE)=0,\"\",VLOOKUP(DK270,'Footnotes list'!$D$9:$E$58,2,FALSE) ) )","v":""},null,null,null,null,{"$f":"IF(TRIM(DP270)=\"\", \"\", IF(VLOOKUP(DP270,'Footnotes list'!$D$9:$E$58,2,FALSE)=0,\"\",VLOOKUP(DP270,'Footnotes list'!$D$9:$E$58,2,FALSE) ) )","v":""},null,null,null,null,{"$f":"IF(TRIM(DU270)=\"\", \"\", IF(VLOOKUP(DU270,'Footnotes list'!$D$9:$E$58,2,FALSE)=0,\"\",VLOOKUP(DU270,'Footnotes list'!$D$9:$E$58,2,FALSE) ) )","v":""},null,null,null,null,{"$f":"IF(TRIM(DZ270)=\"\", \"\", IF(VLOOKUP(DZ270,'Footnotes list'!$D$9:$E$58,2,FALSE)=0,\"\",VLOOKUP(DZ270,'Footnotes list'!$D$9:$E$58,2,FALSE) ) )","v":""},null,null,null,null,{"$f":"IF(TRIM(EE270)=\"\", \"\", IF(VLOOKUP(EE270,'Footnotes list'!$D$9:$E$58,2,FALSE)=0,\"\",VLOOKUP(EE270,'Footnotes list'!$D$9:$E$58,2,FALSE) ) )","v":""},null,null,null,null,{"$f":"IF(TRIM(EJ270)=\"\", \"\", IF(VLOOKUP(EJ270,'Footnotes list'!$D$9:$E$58,2,FALSE)=0,\"\",VLOOKUP(EJ270,'Footnotes list'!$D$9:$E$58,2,FALSE) ) )","v":""},null,null,null,null,{"$f":"IF(TRIM(EO270)=\"\", \"\", IF(VLOOKUP(EO270,'Footnotes list'!$D$9:$E$58,2,FALSE)=0,\"\",VLOOKUP(EO270,'Footnotes list'!$D$9:$E$58,2,FALSE) ) )","v":""},null,null,null,null,{"$f":"IF(TRIM(ET270)=\"\", \"\", IF(VLOOKUP(ET270,'Footnotes list'!$D$9:$E$58,2,FALSE)=0,\"\",VLOOKUP(ET270,'Footnotes list'!$D$9:$E$58,2,FALSE) ) )","v":""},null,null,null,null,{"$f":"IF(TRIM(EY270)=\"\", \"\", IF(VLOOKUP(EY270,'Footnotes list'!$D$9:$E$58,2,FALSE)=0,\"\",VLOOKUP(EY270,'Footnotes list'!$D$9:$E$58,2,FALSE) ) )","v":""}]
[null,null,"P","MKT","market activities, including:",null,null,null,null,null,{"$f":"IF(TRIM(J271)=\"\", \"\", IF(VLOOKUP(J271,'Footnotes list'!$D$9:$E$58,2,FALSE)=0,\"\",VLOOKUP(J271,'Footnotes list'!$D$9:$E$58,2,FALSE) ) )","v":""},null,null,null,null,{"$f":"IF(TRIM(O271)=\"\", \"\", IF(VLOOKUP(O271,'Footnotes list'!$D$9:$E$58,2,FALSE)=0,\"\",VLOOKUP(O271,'Footnotes list'!$D$9:$E$58,2,FALSE) ) )","v":""},null,null,null,null,{"$f":"IF(TRIM(T271)=\"\", \"\", IF(VLOOKUP(T271,'Footnotes list'!$D$9:$E$58,2,FALSE)=0,\"\",VLOOKUP(T271,'Footnotes list'!$D$9:$E$58,2,FALSE) ) )","v":""},null,null,null,null,{"$f":"IF(TRIM(Y271)=\"\", \"\", IF(VLOOKUP(Y271,'Footnotes list'!$D$9:$E$58,2,FALSE)=0,\"\",VLOOKUP(Y271,'Footnotes list'!$D$9:$E$58,2,FALSE) ) )","v":""},null,null,null,null,{"$f":"IF(TRIM(AD271)=\"\", \"\", IF(VLOOKUP(AD271,'Footnotes list'!$D$9:$E$58,2,FALSE)=0,\"\",VLOOKUP(AD271,'Footnotes list'!$D$9:$E$58,2,FALSE) ) )","v":""},null,null,null,null,{"$f":"IF(TRIM(AI271)=\"\", \"\", IF(VLOOKUP(AI271,'Footnotes list'!$D$9:$E$58,2,FALSE)=0,\"\",VLOOKUP(AI271,'Footnotes list'!$D$9:$E$58,2,FALSE) ) )","v":""},null,null,null,null,{"$f":"IF(TRIM(AN271)=\"\", \"\", IF(VLOOKUP(AN271,'Footnotes list'!$D$9:$E$58,2,FALSE)=0,\"\",VLOOKUP(AN271,'Footnotes list'!$D$9:$E$58,2,FALSE) ) )","v":""},null,null,null,null,{"$f":"IF(TRIM(AS271)=\"\", \"\", IF(VLOOKUP(AS271,'Footnotes list'!$D$9:$E$58,2,FALSE)=0,\"\",VLOOKUP(AS271,'Footnotes list'!$D$9:$E$58,2,FALSE) ) )","v":""},null,null,null,null,{"$f":"IF(TRIM(AX271)=\"\", \"\", IF(VLOOKUP(AX271,'Footnotes list'!$D$9:$E$58,2,FALSE)=0,\"\",VLOOKUP(AX271,'Footnotes list'!$D$9:$E$58,2,FALSE) ) )","v":""},null,null,null,null,{"$f":"IF(TRIM(BC271)=\"\", \"\", IF(VLOOKUP(BC271,'Footnotes list'!$D$9:$E$58,2,FALSE)=0,\"\",VLOOKUP(BC271,'Footnotes list'!$D$9:$E$58,2,FALSE) ) )","v":""},null,null,null,null,{"$f":"IF(TRIM(BH271)=\"\", \"\", IF(VLOOKUP(BH271,'Footnotes list'!$D$9:$E$58,2,FALSE)=0,\"\",VLOOKUP(BH271,'Footnotes list'!$D$9:$E$58,2,FALSE) ) )","v":""},null,null,null,null,{"$f":"IF(TRIM(BM271)=\"\", \"\", IF(VLOOKUP(BM271,'Footnotes list'!$D$9:$E$58,2,FALSE)=0,\"\",VLOOKUP(BM271,'Footnotes list'!$D$9:$E$58,2,FALSE) ) )","v":""},null,null,null,null,{"$f":"IF(TRIM(BR271)=\"\", \"\", IF(VLOOKUP(BR271,'Footnotes list'!$D$9:$E$58,2,FALSE)=0,\"\",VLOOKUP(BR271,'Footnotes list'!$D$9:$E$58,2,FALSE) ) )","v":""},null,null,null,null,{"$f":"IF(TRIM(BW271)=\"\", \"\", IF(VLOOKUP(BW271,'Footnotes list'!$D$9:$E$58,2,FALSE)=0,\"\",VLOOKUP(BW271,'Footnotes list'!$D$9:$E$58,2,FALSE) ) )","v":""},null,null,null,null,{"$f":"IF(TRIM(CB271)=\"\", \"\", IF(VLOOKUP(CB271,'Footnotes list'!$D$9:$E$58,2,FALSE)=0,\"\",VLOOKUP(CB271,'Footnotes list'!$D$9:$E$58,2,FALSE) ) )","v":""},null,null,null,null,{"$f":"IF(TRIM(CG271)=\"\", \"\", IF(VLOOKUP(CG271,'Footnotes list'!$D$9:$E$58,2,FALSE)=0,\"\",VLOOKUP(CG271,'Footnotes list'!$D$9:$E$58,2,FALSE) ) )","v":""},null,null,null,null,{"$f":"IF(TRIM(CL271)=\"\", \"\", IF(VLOOKUP(CL271,'Footnotes list'!$D$9:$E$58,2,FALSE)=0,\"\",VLOOKUP(CL271,'Footnotes list'!$D$9:$E$58,2,FALSE) ) )","v":""},null,null,null,null,{"$f":"IF(TRIM(CQ271)=\"\", \"\", IF(VLOOKUP(CQ271,'Footnotes list'!$D$9:$E$58,2,FALSE)=0,\"\",VLOOKUP(CQ271,'Footnotes list'!$D$9:$E$58,2,FALSE) ) )","v":""},null,null,null,null,{"$f":"IF(TRIM(CV271)=\"\", \"\", IF(VLOOKUP(CV271,'Footnotes list'!$D$9:$E$58,2,FALSE)=0,\"\",VLOOKUP(CV271,'Footnotes list'!$D$9:$E$58,2,FALSE) ) )","v":""},null,null,null,null,{"$f":"IF(TRIM(DA271)=\"\", \"\", IF(VLOOKUP(DA271,'Footnotes list'!$D$9:$E$58,2,FALSE)=0,\"\",VLOOKUP(DA271,'Footnotes list'!$D$9:$E$58,2,FALSE) ) )","v":""},null,null,null,null,{"$f":"IF(TRIM(DF271)=\"\", \"\", IF(VLOOKUP(DF271,'Footnotes list'!$D$9:$E$58,2,FALSE)=0,\"\",VLOOKUP(DF271,'Footnotes list'!$D$9:$E$58,2,FALSE) ) )","v":""},null,null,null,null,{"$f":"IF(TRIM(DK271)=\"\", \"\", IF(VLOOKUP(DK271,'Footnotes list'!$D$9:$E$58,2,FALSE)=0,\"\",VLOOKUP(DK271,'Footnotes list'!$D$9:$E$58,2,FALSE) ) )","v":""},null,null,null,null,{"$f":"IF(TRIM(DP271)=\"\", \"\", IF(VLOOKUP(DP271,'Footnotes list'!$D$9:$E$58,2,FALSE)=0,\"\",VLOOKUP(DP271,'Footnotes list'!$D$9:$E$58,2,FALSE) ) )","v":""},null,null,null,null,{"$f":"IF(TRIM(DU271)=\"\", \"\", IF(VLOOKUP(DU271,'Footnotes list'!$D$9:$E$58,2,FALSE)=0,\"\",VLOOKUP(DU271,'Footnotes list'!$D$9:$E$58,2,FALSE) ) )","v":""},null,null,null,null,{"$f":"IF(TRIM(DZ271)=\"\", \"\", IF(VLOOKUP(DZ271,'Footnotes list'!$D$9:$E$58,2,FALSE)=0,\"\",VLOOKUP(DZ271,'Footnotes list'!$D$9:$E$58,2,FALSE) ) )","v":""},null,null,null,null,{"$f":"IF(TRIM(EE271)=\"\", \"\", IF(VLOOKUP(EE271,'Footnotes list'!$D$9:$E$58,2,FALSE)=0,\"\",VLOOKUP(EE271,'Footnotes list'!$D$9:$E$58,2,FALSE) ) )","v":""},null,null,null,null,{"$f":"IF(TRIM(EJ271)=\"\", \"\", IF(VLOOKUP(EJ271,'Footnotes list'!$D$9:$E$58,2,FALSE)=0,\"\",VLOOKUP(EJ271,'Footnotes list'!$D$9:$E$58,2,FALSE) ) )","v":""},null,null,null,null,{"$f":"IF(TRIM(EO271)=\"\", \"\", IF(VLOOKUP(EO271,'Footnotes list'!$D$9:$E$58,2,FALSE)=0,\"\",VLOOKUP(EO271,'Footnotes list'!$D$9:$E$58,2,FALSE) ) )","v":""},null,null,null,null,{"$f":"IF(TRIM(ET271)=\"\", \"\", IF(VLOOKUP(ET271,'Footnotes list'!$D$9:$E$58,2,FALSE)=0,\"\",VLOOKUP(ET271,'Footnotes list'!$D$9:$E$58,2,FALSE) ) )","v":""},null,null,null,null,{"$f":"IF(TRIM(EY271)=\"\", \"\", IF(VLOOKUP(EY271,'Footnotes list'!$D$9:$E$58,2,FALSE)=0,\"\",VLOOKUP(EY271,'Footnotes list'!$D$9:$E$58,2,FALSE) ) )","v":""}]
[null,null,"P","ES_CS","environmental specific services",null,null,null,null,null,{"$f":"IF(TRIM(J272)=\"\", \"\", IF(VLOOKUP(J272,'Footnotes list'!$D$9:$E$58,2,FALSE)=0,\"\",VLOOKUP(J272,'Footnotes list'!$D$9:$E$58,2,FALSE) ) )","v":""},null,null,null,null,{"$f":"IF(TRIM(O272)=\"\", \"\", IF(VLOOKUP(O272,'Footnotes list'!$D$9:$E$58,2,FALSE)=0,\"\",VLOOKUP(O272,'Footnotes list'!$D$9:$E$58,2,FALSE) ) )","v":""},null,null,null,null,{"$f":"IF(TRIM(T272)=\"\", \"\", IF(VLOOKUP(T272,'Footnotes list'!$D$9:$E$58,2,FALSE)=0,\"\",VLOOKUP(T272,'Footnotes list'!$D$9:$E$58,2,FALSE) ) )","v":""},null,null,null,null,{"$f":"IF(TRIM(Y272)=\"\", \"\", IF(VLOOKUP(Y272,'Footnotes list'!$D$9:$E$58,2,FALSE)=0,\"\",VLOOKUP(Y272,'Footnotes list'!$D$9:$E$58,2,FALSE) ) )","v":""},null,null,null,null,{"$f":"IF(TRIM(AD272)=\"\", \"\", IF(VLOOKUP(AD272,'Footnotes list'!$D$9:$E$58,2,FALSE)=0,\"\",VLOOKUP(AD272,'Footnotes list'!$D$9:$E$58,2,FALSE) ) )","v":""},null,null,null,null,{"$f":"IF(TRIM(AI272)=\"\", \"\", IF(VLOOKUP(AI272,'Footnotes list'!$D$9:$E$58,2,FALSE)=0,\"\",VLOOKUP(AI272,'Footnotes list'!$D$9:$E$58,2,FALSE) ) )","v":""},null,null,null,null,{"$f":"IF(TRIM(AN272)=\"\", \"\", IF(VLOOKUP(AN272,'Footnotes list'!$D$9:$E$58,2,FALSE)=0,\"\",VLOOKUP(AN272,'Footnotes list'!$D$9:$E$58,2,FALSE) ) )","v":""},null,null,null,null,{"$f":"IF(TRIM(AS272)=\"\", \"\", IF(VLOOKUP(AS272,'Footnotes list'!$D$9:$E$58,2,FALSE)=0,\"\",VLOOKUP(AS272,'Footnotes list'!$D$9:$E$58,2,FALSE) ) )","v":""},null,null,null,null,{"$f":"IF(TRIM(AX272)=\"\", \"\", IF(VLOOKUP(AX272,'Footnotes list'!$D$9:$E$58,2,FALSE)=0,\"\",VLOOKUP(AX272,'Footnotes list'!$D$9:$E$58,2,FALSE) ) )","v":""},null,null,null,null,{"$f":"IF(TRIM(BC272)=\"\", \"\", IF(VLOOKUP(BC272,'Footnotes list'!$D$9:$E$58,2,FALSE)=0,\"\",VLOOKUP(BC272,'Footnotes list'!$D$9:$E$58,2,FALSE) ) )","v":""},null,null,null,null,{"$f":"IF(TRIM(BH272)=\"\", \"\", IF(VLOOKUP(BH272,'Footnotes list'!$D$9:$E$58,2,FALSE)=0,\"\",VLOOKUP(BH272,'Footnotes list'!$D$9:$E$58,2,FALSE) ) )","v":""},null,null,null,null,{"$f":"IF(TRIM(BM272)=\"\", \"\", IF(VLOOKUP(BM272,'Footnotes list'!$D$9:$E$58,2,FALSE)=0,\"\",VLOOKUP(BM272,'Footnotes list'!$D$9:$E$58,2,FALSE) ) )","v":""},null,null,null,null,{"$f":"IF(TRIM(BR272)=\"\", \"\", IF(VLOOKUP(BR272,'Footnotes list'!$D$9:$E$58,2,FALSE)=0,\"\",VLOOKUP(BR272,'Footnotes list'!$D$9:$E$58,2,FALSE) ) )","v":""},null,null,null,null,{"$f":"IF(TRIM(BW272)=\"\", \"\", IF(VLOOKUP(BW272,'Footnotes list'!$D$9:$E$58,2,FALSE)=0,\"\",VLOOKUP(BW272,'Footnotes list'!$D$9:$E$58,2,FALSE) ) )","v":""},null,null,null,null,{"$f":"IF(TRIM(CB272)=\"\", \"\", IF(VLOOKUP(CB272,'Footnotes list'!$D$9:$E$58,2,FALSE)=0,\"\",VLOOKUP(CB272,'Footnotes list'!$D$9:$E$58,2,FALSE) ) )","v":""},null,null,null,null,{"$f":"IF(TRIM(CG272)=\"\", \"\", IF(VLOOKUP(CG272,'Footnotes list'!$D$9:$E$58,2,FALSE)=0,\"\",VLOOKUP(CG272,'Footnotes list'!$D$9:$E$58,2,FALSE) ) )","v":""},null,null,null,null,{"$f":"IF(TRIM(CL272)=\"\", \"\", IF(VLOOKUP(CL272,'Footnotes list'!$D$9:$E$58,2,FALSE)=0,\"\",VLOOKUP(CL272,'Footnotes list'!$D$9:$E$58,2,FALSE) ) )","v":""},null,null,null,null,{"$f":"IF(TRIM(CQ272)=\"\", \"\", IF(VLOOKUP(CQ272,'Footnotes list'!$D$9:$E$58,2,FALSE)=0,\"\",VLOOKUP(CQ272,'Footnotes list'!$D$9:$E$58,2,FALSE) ) )","v":""},null,null,null,null,{"$f":"IF(TRIM(CV272)=\"\", \"\", IF(VLOOKUP(CV272,'Footnotes list'!$D$9:$E$58,2,FALSE)=0,\"\",VLOOKUP(CV272,'Footnotes list'!$D$9:$E$58,2,FALSE) ) )","v":""},null,null,null,null,{"$f":"IF(TRIM(DA272)=\"\", \"\", IF(VLOOKUP(DA272,'Footnotes list'!$D$9:$E$58,2,FALSE)=0,\"\",VLOOKUP(DA272,'Footnotes list'!$D$9:$E$58,2,FALSE) ) )","v":""},null,null,null,null,{"$f":"IF(TRIM(DF272)=\"\", \"\", IF(VLOOKUP(DF272,'Footnotes list'!$D$9:$E$58,2,FALSE)=0,\"\",VLOOKUP(DF272,'Footnotes list'!$D$9:$E$58,2,FALSE) ) )","v":""},null,null,null,null,{"$f":"IF(TRIM(DK272)=\"\", \"\", IF(VLOOKUP(DK272,'Footnotes list'!$D$9:$E$58,2,FALSE)=0,\"\",VLOOKUP(DK272,'Footnotes list'!$D$9:$E$58,2,FALSE) ) )","v":""},null,null,null,null,{"$f":"IF(TRIM(DP272)=\"\", \"\", IF(VLOOKUP(DP272,'Footnotes list'!$D$9:$E$58,2,FALSE)=0,\"\",VLOOKUP(DP272,'Footnotes list'!$D$9:$E$58,2,FALSE) ) )","v":""},null,null,null,null,{"$f":"IF(TRIM(DU272)=\"\", \"\", IF(VLOOKUP(DU272,'Footnotes list'!$D$9:$E$58,2,FALSE)=0,\"\",VLOOKUP(DU272,'Footnotes list'!$D$9:$E$58,2,FALSE) ) )","v":""},null,null,null,null,{"$f":"IF(TRIM(DZ272)=\"\", \"\", IF(VLOOKUP(DZ272,'Footnotes list'!$D$9:$E$58,2,FALSE)=0,\"\",VLOOKUP(DZ272,'Footnotes list'!$D$9:$E$58,2,FALSE) ) )","v":""},null,null,null,null,{"$f":"IF(TRIM(EE272)=\"\", \"\", IF(VLOOKUP(EE272,'Footnotes list'!$D$9:$E$58,2,FALSE)=0,\"\",VLOOKUP(EE272,'Footnotes list'!$D$9:$E$58,2,FALSE) ) )","v":""},null,null,null,null,{"$f":"IF(TRIM(EJ272)=\"\", \"\", IF(VLOOKUP(EJ272,'Footnotes list'!$D$9:$E$58,2,FALSE)=0,\"\",VLOOKUP(EJ272,'Footnotes list'!$D$9:$E$58,2,FALSE) ) )","v":""},null,null,null,null,{"$f":"IF(TRIM(EO272)=\"\", \"\", IF(VLOOKUP(EO272,'Footnotes list'!$D$9:$E$58,2,FALSE)=0,\"\",VLOOKUP(EO272,'Footnotes list'!$D$9:$E$58,2,FALSE) ) )","v":""},null,null,null,null,{"$f":"IF(TRIM(ET272)=\"\", \"\", IF(VLOOKUP(ET272,'Footnotes list'!$D$9:$E$58,2,FALSE)=0,\"\",VLOOKUP(ET272,'Footnotes list'!$D$9:$E$58,2,FALSE) ) )","v":""},null,null,null,null,{"$f":"IF(TRIM(EY272)=\"\", \"\", IF(VLOOKUP(EY272,'Footnotes list'!$D$9:$E$58,2,FALSE)=0,\"\",VLOOKUP(EY272,'Footnotes list'!$D$9:$E$58,2,FALSE) ) )","v":""}]
[null,null,"P","C_REP","cleaner and resource efficient products",null,null,null,null,null,{"$f":"IF(TRIM(J273)=\"\", \"\", IF(VLOOKUP(J273,'Footnotes list'!$D$9:$E$58,2,FALSE)=0,\"\",VLOOKUP(J273,'Footnotes list'!$D$9:$E$58,2,FALSE) ) )","v":""},null,null,null,null,{"$f":"IF(TRIM(O273)=\"\", \"\", IF(VLOOKUP(O273,'Footnotes list'!$D$9:$E$58,2,FALSE)=0,\"\",VLOOKUP(O273,'Footnotes list'!$D$9:$E$58,2,FALSE) ) )","v":""},null,null,null,null,{"$f":"IF(TRIM(T273)=\"\", \"\", IF(VLOOKUP(T273,'Footnotes list'!$D$9:$E$58,2,FALSE)=0,\"\",VLOOKUP(T273,'Footnotes list'!$D$9:$E$58,2,FALSE) ) )","v":""},null,null,null,null,{"$f":"IF(TRIM(Y273)=\"\", \"\", IF(VLOOKUP(Y273,'Footnotes list'!$D$9:$E$58,2,FALSE)=0,\"\",VLOOKUP(Y273,'Footnotes list'!$D$9:$E$58,2,FALSE) ) )","v":""},null,null,null,null,{"$f":"IF(TRIM(AD273)=\"\", \"\", IF(VLOOKUP(AD273,'Footnotes list'!$D$9:$E$58,2,FALSE)=0,\"\",VLOOKUP(AD273,'Footnotes list'!$D$9:$E$58,2,FALSE) ) )","v":""},null,null,null,null,{"$f":"IF(TRIM(AI273)=\"\", \"\", IF(VLOOKUP(AI273,'Footnotes list'!$D$9:$E$58,2,FALSE)=0,\"\",VLOOKUP(AI273,'Footnotes list'!$D$9:$E$58,2,FALSE) ) )","v":""},null,null,null,null,{"$f":"IF(TRIM(AN273)=\"\", \"\", IF(VLOOKUP(AN273,'Footnotes list'!$D$9:$E$58,2,FALSE)=0,\"\",VLOOKUP(AN273,'Footnotes list'!$D$9:$E$58,2,FALSE) ) )","v":""},null,null,null,null,{"$f":"IF(TRIM(AS273)=\"\", \"\", IF(VLOOKUP(AS273,'Footnotes list'!$D$9:$E$58,2,FALSE)=0,\"\",VLOOKUP(AS273,'Footnotes list'!$D$9:$E$58,2,FALSE) ) )","v":""},null,null,null,null,{"$f":"IF(TRIM(AX273)=\"\", \"\", IF(VLOOKUP(AX273,'Footnotes list'!$D$9:$E$58,2,FALSE)=0,\"\",VLOOKUP(AX273,'Footnotes list'!$D$9:$E$58,2,FALSE) ) )","v":""},null,null,null,null,{"$f":"IF(TRIM(BC273)=\"\", \"\", IF(VLOOKUP(BC273,'Footnotes list'!$D$9:$E$58,2,FALSE)=0,\"\",VLOOKUP(BC273,'Footnotes list'!$D$9:$E$58,2,FALSE) ) )","v":""},null,null,null,null,{"$f":"IF(TRIM(BH273)=\"\", \"\", IF(VLOOKUP(BH273,'Footnotes list'!$D$9:$E$58,2,FALSE)=0,\"\",VLOOKUP(BH273,'Footnotes list'!$D$9:$E$58,2,FALSE) ) )","v":""},null,null,null,null,{"$f":"IF(TRIM(BM273)=\"\", \"\", IF(VLOOKUP(BM273,'Footnotes list'!$D$9:$E$58,2,FALSE)=0,\"\",VLOOKUP(BM273,'Footnotes list'!$D$9:$E$58,2,FALSE) ) )","v":""},null,null,null,null,{"$f":"IF(TRIM(BR273)=\"\", \"\", IF(VLOOKUP(BR273,'Footnotes list'!$D$9:$E$58,2,FALSE)=0,\"\",VLOOKUP(BR273,'Footnotes list'!$D$9:$E$58,2,FALSE) ) )","v":""},null,null,null,null,{"$f":"IF(TRIM(BW273)=\"\", \"\", IF(VLOOKUP(BW273,'Footnotes list'!$D$9:$E$58,2,FALSE)=0,\"\",VLOOKUP(BW273,'Footnotes list'!$D$9:$E$58,2,FALSE) ) )","v":""},null,null,null,null,{"$f":"IF(TRIM(CB273)=\"\", \"\", IF(VLOOKUP(CB273,'Footnotes list'!$D$9:$E$58,2,FALSE)=0,\"\",VLOOKUP(CB273,'Footnotes list'!$D$9:$E$58,2,FALSE) ) )","v":""},null,null,null,null,{"$f":"IF(TRIM(CG273)=\"\", \"\", IF(VLOOKUP(CG273,'Footnotes list'!$D$9:$E$58,2,FALSE)=0,\"\",VLOOKUP(CG273,'Footnotes list'!$D$9:$E$58,2,FALSE) ) )","v":""},null,null,null,null,{"$f":"IF(TRIM(CL273)=\"\", \"\", IF(VLOOKUP(CL273,'Footnotes list'!$D$9:$E$58,2,FALSE)=0,\"\",VLOOKUP(CL273,'Footnotes list'!$D$9:$E$58,2,FALSE) ) )","v":""},null,null,null,null,{"$f":"IF(TRIM(CQ273)=\"\", \"\", IF(VLOOKUP(CQ273,'Footnotes list'!$D$9:$E$58,2,FALSE)=0,\"\",VLOOKUP(CQ273,'Footnotes list'!$D$9:$E$58,2,FALSE) ) )","v":""},null,null,null,null,{"$f":"IF(TRIM(CV273)=\"\", \"\", IF(VLOOKUP(CV273,'Footnotes list'!$D$9:$E$58,2,FALSE)=0,\"\",VLOOKUP(CV273,'Footnotes list'!$D$9:$E$58,2,FALSE) ) )","v":""},null,null,null,null,{"$f":"IF(TRIM(DA273)=\"\", \"\", IF(VLOOKUP(DA273,'Footnotes list'!$D$9:$E$58,2,FALSE)=0,\"\",VLOOKUP(DA273,'Footnotes list'!$D$9:$E$58,2,FALSE) ) )","v":""},null,null,null,null,{"$f":"IF(TRIM(DF273)=\"\", \"\", IF(VLOOKUP(DF273,'Footnotes list'!$D$9:$E$58,2,FALSE)=0,\"\",VLOOKUP(DF273,'Footnotes list'!$D$9:$E$58,2,FALSE) ) )","v":""},null,null,null,null,{"$f":"IF(TRIM(DK273)=\"\", \"\", IF(VLOOKUP(DK273,'Footnotes list'!$D$9:$E$58,2,FALSE)=0,\"\",VLOOKUP(DK273,'Footnotes list'!$D$9:$E$58,2,FALSE) ) )","v":""},null,null,null,null,{"$f":"IF(TRIM(DP273)=\"\", \"\", IF(VLOOKUP(DP273,'Footnotes list'!$D$9:$E$58,2,FALSE)=0,\"\",VLOOKUP(DP273,'Footnotes list'!$D$9:$E$58,2,FALSE) ) )","v":""},null,null,null,null,{"$f":"IF(TRIM(DU273)=\"\", \"\", IF(VLOOKUP(DU273,'Footnotes list'!$D$9:$E$58,2,FALSE)=0,\"\",VLOOKUP(DU273,'Footnotes list'!$D$9:$E$58,2,FALSE) ) )","v":""},null,null,null,null,{"$f":"IF(TRIM(DZ273)=\"\", \"\", IF(VLOOKUP(DZ273,'Footnotes list'!$D$9:$E$58,2,FALSE)=0,\"\",VLOOKUP(DZ273,'Footnotes list'!$D$9:$E$58,2,FALSE) ) )","v":""},null,null,null,null,{"$f":"IF(TRIM(EE273)=\"\", \"\", IF(VLOOKUP(EE273,'Footnotes list'!$D$9:$E$58,2,FALSE)=0,\"\",VLOOKUP(EE273,'Footnotes list'!$D$9:$E$58,2,FALSE) ) )","v":""},null,null,null,null,{"$f":"IF(TRIM(EJ273)=\"\", \"\", IF(VLOOKUP(EJ273,'Footnotes list'!$D$9:$E$58,2,FALSE)=0,\"\",VLOOKUP(EJ273,'Footnotes list'!$D$9:$E$58,2,FALSE) ) )","v":""},null,null,null,null,{"$f":"IF(TRIM(EO273)=\"\", \"\", IF(VLOOKUP(EO273,'Footnotes list'!$D$9:$E$58,2,FALSE)=0,\"\",VLOOKUP(EO273,'Footnotes list'!$D$9:$E$58,2,FALSE) ) )","v":""},null,null,null,null,{"$f":"IF(TRIM(ET273)=\"\", \"\", IF(VLOOKUP(ET273,'Footnotes list'!$D$9:$E$58,2,FALSE)=0,\"\",VLOOKUP(ET273,'Footnotes list'!$D$9:$E$58,2,FALSE) ) )","v":""},null,null,null,null,{"$f":"IF(TRIM(EY273)=\"\", \"\", IF(VLOOKUP(EY273,'Footnotes list'!$D$9:$E$58,2,FALSE)=0,\"\",VLOOKUP(EY273,'Footnotes list'!$D$9:$E$58,2,FALSE) ) )","v":""}]
[null,null,"Q","TOT_EGSS","Total Q - Human health and social work activities, of which:",null,null,null,null,null,{"$f":"IF(TRIM(J274)=\"\", \"\", IF(VLOOKUP(J274,'Footnotes list'!$D$9:$E$58,2,FALSE)=0,\"\",VLOOKUP(J274,'Footnotes list'!$D$9:$E$58,2,FALSE) ) )","v":""},null,null,null,null,{"$f":"IF(TRIM(O274)=\"\", \"\", IF(VLOOKUP(O274,'Footnotes list'!$D$9:$E$58,2,FALSE)=0,\"\",VLOOKUP(O274,'Footnotes list'!$D$9:$E$58,2,FALSE) ) )","v":""},null,null,null,null,{"$f":"IF(TRIM(T274)=\"\", \"\", IF(VLOOKUP(T274,'Footnotes list'!$D$9:$E$58,2,FALSE)=0,\"\",VLOOKUP(T274,'Footnotes list'!$D$9:$E$58,2,FALSE) ) )","v":""},null,null,null,null,{"$f":"IF(TRIM(Y274)=\"\", \"\", IF(VLOOKUP(Y274,'Footnotes list'!$D$9:$E$58,2,FALSE)=0,\"\",VLOOKUP(Y274,'Footnotes list'!$D$9:$E$58,2,FALSE) ) )","v":""},null,null,null,null,{"$f":"IF(TRIM(AD274)=\"\", \"\", IF(VLOOKUP(AD274,'Footnotes list'!$D$9:$E$58,2,FALSE)=0,\"\",VLOOKUP(AD274,'Footnotes list'!$D$9:$E$58,2,FALSE) ) )","v":""},null,null,null,null,{"$f":"IF(TRIM(AI274)=\"\", \"\", IF(VLOOKUP(AI274,'Footnotes list'!$D$9:$E$58,2,FALSE)=0,\"\",VLOOKUP(AI274,'Footnotes list'!$D$9:$E$58,2,FALSE) ) )","v":""},null,null,null,null,{"$f":"IF(TRIM(AN274)=\"\", \"\", IF(VLOOKUP(AN274,'Footnotes list'!$D$9:$E$58,2,FALSE)=0,\"\",VLOOKUP(AN274,'Footnotes list'!$D$9:$E$58,2,FALSE) ) )","v":""},null,null,null,null,{"$f":"IF(TRIM(AS274)=\"\", \"\", IF(VLOOKUP(AS274,'Footnotes list'!$D$9:$E$58,2,FALSE)=0,\"\",VLOOKUP(AS274,'Footnotes list'!$D$9:$E$58,2,FALSE) ) )","v":""},null,null,null,null,{"$f":"IF(TRIM(AX274)=\"\", \"\", IF(VLOOKUP(AX274,'Footnotes list'!$D$9:$E$58,2,FALSE)=0,\"\",VLOOKUP(AX274,'Footnotes list'!$D$9:$E$58,2,FALSE) ) )","v":""},null,null,null,null,{"$f":"IF(TRIM(BC274)=\"\", \"\", IF(VLOOKUP(BC274,'Footnotes list'!$D$9:$E$58,2,FALSE)=0,\"\",VLOOKUP(BC274,'Footnotes list'!$D$9:$E$58,2,FALSE) ) )","v":""},null,null,null,null,{"$f":"IF(TRIM(BH274)=\"\", \"\", IF(VLOOKUP(BH274,'Footnotes list'!$D$9:$E$58,2,FALSE)=0,\"\",VLOOKUP(BH274,'Footnotes list'!$D$9:$E$58,2,FALSE) ) )","v":""},null,null,null,null,{"$f":"IF(TRIM(BM274)=\"\", \"\", IF(VLOOKUP(BM274,'Footnotes list'!$D$9:$E$58,2,FALSE)=0,\"\",VLOOKUP(BM274,'Footnotes list'!$D$9:$E$58,2,FALSE) ) )","v":""},null,null,null,null,{"$f":"IF(TRIM(BR274)=\"\", \"\", IF(VLOOKUP(BR274,'Footnotes list'!$D$9:$E$58,2,FALSE)=0,\"\",VLOOKUP(BR274,'Footnotes list'!$D$9:$E$58,2,FALSE) ) )","v":""},null,null,null,null,{"$f":"IF(TRIM(BW274)=\"\", \"\", IF(VLOOKUP(BW274,'Footnotes list'!$D$9:$E$58,2,FALSE)=0,\"\",VLOOKUP(BW274,'Footnotes list'!$D$9:$E$58,2,FALSE) ) )","v":""},null,null,null,null,{"$f":"IF(TRIM(CB274)=\"\", \"\", IF(VLOOKUP(CB274,'Footnotes list'!$D$9:$E$58,2,FALSE)=0,\"\",VLOOKUP(CB274,'Footnotes list'!$D$9:$E$58,2,FALSE) ) )","v":""},null,null,null,null,{"$f":"IF(TRIM(CG274)=\"\", \"\", IF(VLOOKUP(CG274,'Footnotes list'!$D$9:$E$58,2,FALSE)=0,\"\",VLOOKUP(CG274,'Footnotes list'!$D$9:$E$58,2,FALSE) ) )","v":""},null,null,null,null,{"$f":"IF(TRIM(CL274)=\"\", \"\", IF(VLOOKUP(CL274,'Footnotes list'!$D$9:$E$58,2,FALSE)=0,\"\",VLOOKUP(CL274,'Footnotes list'!$D$9:$E$58,2,FALSE) ) )","v":""},null,null,null,null,{"$f":"IF(TRIM(CQ274)=\"\", \"\", IF(VLOOKUP(CQ274,'Footnotes list'!$D$9:$E$58,2,FALSE)=0,\"\",VLOOKUP(CQ274,'Footnotes list'!$D$9:$E$58,2,FALSE) ) )","v":""},null,null,null,null,{"$f":"IF(TRIM(CV274)=\"\", \"\", IF(VLOOKUP(CV274,'Footnotes list'!$D$9:$E$58,2,FALSE)=0,\"\",VLOOKUP(CV274,'Footnotes list'!$D$9:$E$58,2,FALSE) ) )","v":""},null,null,null,null,{"$f":"IF(TRIM(DA274)=\"\", \"\", IF(VLOOKUP(DA274,'Footnotes list'!$D$9:$E$58,2,FALSE)=0,\"\",VLOOKUP(DA274,'Footnotes list'!$D$9:$E$58,2,FALSE) ) )","v":""},null,null,null,null,{"$f":"IF(TRIM(DF274)=\"\", \"\", IF(VLOOKUP(DF274,'Footnotes list'!$D$9:$E$58,2,FALSE)=0,\"\",VLOOKUP(DF274,'Footnotes list'!$D$9:$E$58,2,FALSE) ) )","v":""},null,null,null,null,{"$f":"IF(TRIM(DK274)=\"\", \"\", IF(VLOOKUP(DK274,'Footnotes list'!$D$9:$E$58,2,FALSE)=0,\"\",VLOOKUP(DK274,'Footnotes list'!$D$9:$E$58,2,FALSE) ) )","v":""},null,null,null,null,{"$f":"IF(TRIM(DP274)=\"\", \"\", IF(VLOOKUP(DP274,'Footnotes list'!$D$9:$E$58,2,FALSE)=0,\"\",VLOOKUP(DP274,'Footnotes list'!$D$9:$E$58,2,FALSE) ) )","v":""},null,null,null,null,{"$f":"IF(TRIM(DU274)=\"\", \"\", IF(VLOOKUP(DU274,'Footnotes list'!$D$9:$E$58,2,FALSE)=0,\"\",VLOOKUP(DU274,'Footnotes list'!$D$9:$E$58,2,FALSE) ) )","v":""},null,null,null,null,{"$f":"IF(TRIM(DZ274)=\"\", \"\", IF(VLOOKUP(DZ274,'Footnotes list'!$D$9:$E$58,2,FALSE)=0,\"\",VLOOKUP(DZ274,'Footnotes list'!$D$9:$E$58,2,FALSE) ) )","v":""},null,null,null,null,{"$f":"IF(TRIM(EE274)=\"\", \"\", IF(VLOOKUP(EE274,'Footnotes list'!$D$9:$E$58,2,FALSE)=0,\"\",VLOOKUP(EE274,'Footnotes list'!$D$9:$E$58,2,FALSE) ) )","v":""},null,null,null,null,{"$f":"IF(TRIM(EJ274)=\"\", \"\", IF(VLOOKUP(EJ274,'Footnotes list'!$D$9:$E$58,2,FALSE)=0,\"\",VLOOKUP(EJ274,'Footnotes list'!$D$9:$E$58,2,FALSE) ) )","v":""},null,null,null,null,{"$f":"IF(TRIM(EO274)=\"\", \"\", IF(VLOOKUP(EO274,'Footnotes list'!$D$9:$E$58,2,FALSE)=0,\"\",VLOOKUP(EO274,'Footnotes list'!$D$9:$E$58,2,FALSE) ) )","v":""},null,null,null,null,{"$f":"IF(TRIM(ET274)=\"\", \"\", IF(VLOOKUP(ET274,'Footnotes list'!$D$9:$E$58,2,FALSE)=0,\"\",VLOOKUP(ET274,'Footnotes list'!$D$9:$E$58,2,FALSE) ) )","v":""},null,null,null,null,{"$f":"IF(TRIM(EY274)=\"\", \"\", IF(VLOOKUP(EY274,'Footnotes list'!$D$9:$E$58,2,FALSE)=0,\"\",VLOOKUP(EY274,'Footnotes list'!$D$9:$E$58,2,FALSE) ) )","v":""}]
[null,null,"Q","ANC","ancillary activities",null,null,null,null,null,{"$f":"IF(TRIM(J275)=\"\", \"\", IF(VLOOKUP(J275,'Footnotes list'!$D$9:$E$58,2,FALSE)=0,\"\",VLOOKUP(J275,'Footnotes list'!$D$9:$E$58,2,FALSE) ) )","v":""},null,null,null,null,{"$f":"IF(TRIM(O275)=\"\", \"\", IF(VLOOKUP(O275,'Footnotes list'!$D$9:$E$58,2,FALSE)=0,\"\",VLOOKUP(O275,'Footnotes list'!$D$9:$E$58,2,FALSE) ) )","v":""},null,null,null,null,{"$f":"IF(TRIM(T275)=\"\", \"\", IF(VLOOKUP(T275,'Footnotes list'!$D$9:$E$58,2,FALSE)=0,\"\",VLOOKUP(T275,'Footnotes list'!$D$9:$E$58,2,FALSE) ) )","v":""},null,null,null,null,{"$f":"IF(TRIM(Y275)=\"\", \"\", IF(VLOOKUP(Y275,'Footnotes list'!$D$9:$E$58,2,FALSE)=0,\"\",VLOOKUP(Y275,'Footnotes list'!$D$9:$E$58,2,FALSE) ) )","v":""},null,null,null,null,{"$f":"IF(TRIM(AD275)=\"\", \"\", IF(VLOOKUP(AD275,'Footnotes list'!$D$9:$E$58,2,FALSE)=0,\"\",VLOOKUP(AD275,'Footnotes list'!$D$9:$E$58,2,FALSE) ) )","v":""},null,null,null,null,{"$f":"IF(TRIM(AI275)=\"\", \"\", IF(VLOOKUP(AI275,'Footnotes list'!$D$9:$E$58,2,FALSE)=0,\"\",VLOOKUP(AI275,'Footnotes list'!$D$9:$E$58,2,FALSE) ) )","v":""},null,null,null,null,{"$f":"IF(TRIM(AN275)=\"\", \"\", IF(VLOOKUP(AN275,'Footnotes list'!$D$9:$E$58,2,FALSE)=0,\"\",VLOOKUP(AN275,'Footnotes list'!$D$9:$E$58,2,FALSE) ) )","v":""},null,null,null,null,{"$f":"IF(TRIM(AS275)=\"\", \"\", IF(VLOOKUP(AS275,'Footnotes list'!$D$9:$E$58,2,FALSE)=0,\"\",VLOOKUP(AS275,'Footnotes list'!$D$9:$E$58,2,FALSE) ) )","v":""},null,null,null,null,{"$f":"IF(TRIM(AX275)=\"\", \"\", IF(VLOOKUP(AX275,'Footnotes list'!$D$9:$E$58,2,FALSE)=0,\"\",VLOOKUP(AX275,'Footnotes list'!$D$9:$E$58,2,FALSE) ) )","v":""},null,null,null,null,{"$f":"IF(TRIM(BC275)=\"\", \"\", IF(VLOOKUP(BC275,'Footnotes list'!$D$9:$E$58,2,FALSE)=0,\"\",VLOOKUP(BC275,'Footnotes list'!$D$9:$E$58,2,FALSE) ) )","v":""},null,null,null,null,{"$f":"IF(TRIM(BH275)=\"\", \"\", IF(VLOOKUP(BH275,'Footnotes list'!$D$9:$E$58,2,FALSE)=0,\"\",VLOOKUP(BH275,'Footnotes list'!$D$9:$E$58,2,FALSE) ) )","v":""},null,null,null,null,{"$f":"IF(TRIM(BM275)=\"\", \"\", IF(VLOOKUP(BM275,'Footnotes list'!$D$9:$E$58,2,FALSE)=0,\"\",VLOOKUP(BM275,'Footnotes list'!$D$9:$E$58,2,FALSE) ) )","v":""},null,null,null,null,{"$f":"IF(TRIM(BR275)=\"\", \"\", IF(VLOOKUP(BR275,'Footnotes list'!$D$9:$E$58,2,FALSE)=0,\"\",VLOOKUP(BR275,'Footnotes list'!$D$9:$E$58,2,FALSE) ) )","v":""},null,null,null,null,{"$f":"IF(TRIM(BW275)=\"\", \"\", IF(VLOOKUP(BW275,'Footnotes list'!$D$9:$E$58,2,FALSE)=0,\"\",VLOOKUP(BW275,'Footnotes list'!$D$9:$E$58,2,FALSE) ) )","v":""},null,null,null,null,{"$f":"IF(TRIM(CB275)=\"\", \"\", IF(VLOOKUP(CB275,'Footnotes list'!$D$9:$E$58,2,FALSE)=0,\"\",VLOOKUP(CB275,'Footnotes list'!$D$9:$E$58,2,FALSE) ) )","v":""},null,null,null,null,{"$f":"IF(TRIM(CG275)=\"\", \"\", IF(VLOOKUP(CG275,'Footnotes list'!$D$9:$E$58,2,FALSE)=0,\"\",VLOOKUP(CG275,'Footnotes list'!$D$9:$E$58,2,FALSE) ) )","v":""},null,null,null,null,{"$f":"IF(TRIM(CL275)=\"\", \"\", IF(VLOOKUP(CL275,'Footnotes list'!$D$9:$E$58,2,FALSE)=0,\"\",VLOOKUP(CL275,'Footnotes list'!$D$9:$E$58,2,FALSE) ) )","v":""},null,null,null,null,{"$f":"IF(TRIM(CQ275)=\"\", \"\", IF(VLOOKUP(CQ275,'Footnotes list'!$D$9:$E$58,2,FALSE)=0,\"\",VLOOKUP(CQ275,'Footnotes list'!$D$9:$E$58,2,FALSE) ) )","v":""},null,null,null,null,{"$f":"IF(TRIM(CV275)=\"\", \"\", IF(VLOOKUP(CV275,'Footnotes list'!$D$9:$E$58,2,FALSE)=0,\"\",VLOOKUP(CV275,'Footnotes list'!$D$9:$E$58,2,FALSE) ) )","v":""},null,null,null,null,{"$f":"IF(TRIM(DA275)=\"\", \"\", IF(VLOOKUP(DA275,'Footnotes list'!$D$9:$E$58,2,FALSE)=0,\"\",VLOOKUP(DA275,'Footnotes list'!$D$9:$E$58,2,FALSE) ) )","v":""},null,null,null,null,{"$f":"IF(TRIM(DF275)=\"\", \"\", IF(VLOOKUP(DF275,'Footnotes list'!$D$9:$E$58,2,FALSE)=0,\"\",VLOOKUP(DF275,'Footnotes list'!$D$9:$E$58,2,FALSE) ) )","v":""},null,null,null,null,{"$f":"IF(TRIM(DK275)=\"\", \"\", IF(VLOOKUP(DK275,'Footnotes list'!$D$9:$E$58,2,FALSE)=0,\"\",VLOOKUP(DK275,'Footnotes list'!$D$9:$E$58,2,FALSE) ) )","v":""},null,null,null,null,{"$f":"IF(TRIM(DP275)=\"\", \"\", IF(VLOOKUP(DP275,'Footnotes list'!$D$9:$E$58,2,FALSE)=0,\"\",VLOOKUP(DP275,'Footnotes list'!$D$9:$E$58,2,FALSE) ) )","v":""},null,null,null,null,{"$f":"IF(TRIM(DU275)=\"\", \"\", IF(VLOOKUP(DU275,'Footnotes list'!$D$9:$E$58,2,FALSE)=0,\"\",VLOOKUP(DU275,'Footnotes list'!$D$9:$E$58,2,FALSE) ) )","v":""},null,null,null,null,{"$f":"IF(TRIM(DZ275)=\"\", \"\", IF(VLOOKUP(DZ275,'Footnotes list'!$D$9:$E$58,2,FALSE)=0,\"\",VLOOKUP(DZ275,'Footnotes list'!$D$9:$E$58,2,FALSE) ) )","v":""},null,null,null,null,{"$f":"IF(TRIM(EE275)=\"\", \"\", IF(VLOOKUP(EE275,'Footnotes list'!$D$9:$E$58,2,FALSE)=0,\"\",VLOOKUP(EE275,'Footnotes list'!$D$9:$E$58,2,FALSE) ) )","v":""},null,null,null,null,{"$f":"IF(TRIM(EJ275)=\"\", \"\", IF(VLOOKUP(EJ275,'Footnotes list'!$D$9:$E$58,2,FALSE)=0,\"\",VLOOKUP(EJ275,'Footnotes list'!$D$9:$E$58,2,FALSE) ) )","v":""},null,null,null,null,{"$f":"IF(TRIM(EO275)=\"\", \"\", IF(VLOOKUP(EO275,'Footnotes list'!$D$9:$E$58,2,FALSE)=0,\"\",VLOOKUP(EO275,'Footnotes list'!$D$9:$E$58,2,FALSE) ) )","v":""},null,null,null,null,{"$f":"IF(TRIM(ET275)=\"\", \"\", IF(VLOOKUP(ET275,'Footnotes list'!$D$9:$E$58,2,FALSE)=0,\"\",VLOOKUP(ET275,'Footnotes list'!$D$9:$E$58,2,FALSE) ) )","v":""},null,null,null,null,{"$f":"IF(TRIM(EY275)=\"\", \"\", IF(VLOOKUP(EY275,'Footnotes list'!$D$9:$E$58,2,FALSE)=0,\"\",VLOOKUP(EY275,'Footnotes list'!$D$9:$E$58,2,FALSE) ) )","v":""}]
[null,null,"Q","NMKT","non-market activities",null,null,null,null,null,{"$f":"IF(TRIM(J276)=\"\", \"\", IF(VLOOKUP(J276,'Footnotes list'!$D$9:$E$58,2,FALSE)=0,\"\",VLOOKUP(J276,'Footnotes list'!$D$9:$E$58,2,FALSE) ) )","v":""},null,null,null,null,{"$f":"IF(TRIM(O276)=\"\", \"\", IF(VLOOKUP(O276,'Footnotes list'!$D$9:$E$58,2,FALSE)=0,\"\",VLOOKUP(O276,'Footnotes list'!$D$9:$E$58,2,FALSE) ) )","v":""},null,null,null,null,{"$f":"IF(TRIM(T276)=\"\", \"\", IF(VLOOKUP(T276,'Footnotes list'!$D$9:$E$58,2,FALSE)=0,\"\",VLOOKUP(T276,'Footnotes list'!$D$9:$E$58,2,FALSE) ) )","v":""},null,null,null,null,{"$f":"IF(TRIM(Y276)=\"\", \"\", IF(VLOOKUP(Y276,'Footnotes list'!$D$9:$E$58,2,FALSE)=0,\"\",VLOOKUP(Y276,'Footnotes list'!$D$9:$E$58,2,FALSE) ) )","v":""},null,null,null,null,{"$f":"IF(TRIM(AD276)=\"\", \"\", IF(VLOOKUP(AD276,'Footnotes list'!$D$9:$E$58,2,FALSE)=0,\"\",VLOOKUP(AD276,'Footnotes list'!$D$9:$E$58,2,FALSE) ) )","v":""},null,null,null,null,{"$f":"IF(TRIM(AI276)=\"\", \"\", IF(VLOOKUP(AI276,'Footnotes list'!$D$9:$E$58,2,FALSE)=0,\"\",VLOOKUP(AI276,'Footnotes list'!$D$9:$E$58,2,FALSE) ) )","v":""},null,null,null,null,{"$f":"IF(TRIM(AN276)=\"\", \"\", IF(VLOOKUP(AN276,'Footnotes list'!$D$9:$E$58,2,FALSE)=0,\"\",VLOOKUP(AN276,'Footnotes list'!$D$9:$E$58,2,FALSE) ) )","v":""},null,null,null,null,{"$f":"IF(TRIM(AS276)=\"\", \"\", IF(VLOOKUP(AS276,'Footnotes list'!$D$9:$E$58,2,FALSE)=0,\"\",VLOOKUP(AS276,'Footnotes list'!$D$9:$E$58,2,FALSE) ) )","v":""},null,null,null,null,{"$f":"IF(TRIM(AX276)=\"\", \"\", IF(VLOOKUP(AX276,'Footnotes list'!$D$9:$E$58,2,FALSE)=0,\"\",VLOOKUP(AX276,'Footnotes list'!$D$9:$E$58,2,FALSE) ) )","v":""},null,null,null,null,{"$f":"IF(TRIM(BC276)=\"\", \"\", IF(VLOOKUP(BC276,'Footnotes list'!$D$9:$E$58,2,FALSE)=0,\"\",VLOOKUP(BC276,'Footnotes list'!$D$9:$E$58,2,FALSE) ) )","v":""},null,null,null,null,{"$f":"IF(TRIM(BH276)=\"\", \"\", IF(VLOOKUP(BH276,'Footnotes list'!$D$9:$E$58,2,FALSE)=0,\"\",VLOOKUP(BH276,'Footnotes list'!$D$9:$E$58,2,FALSE) ) )","v":""},null,null,null,null,{"$f":"IF(TRIM(BM276)=\"\", \"\", IF(VLOOKUP(BM276,'Footnotes list'!$D$9:$E$58,2,FALSE)=0,\"\",VLOOKUP(BM276,'Footnotes list'!$D$9:$E$58,2,FALSE) ) )","v":""},null,null,null,null,{"$f":"IF(TRIM(BR276)=\"\", \"\", IF(VLOOKUP(BR276,'Footnotes list'!$D$9:$E$58,2,FALSE)=0,\"\",VLOOKUP(BR276,'Footnotes list'!$D$9:$E$58,2,FALSE) ) )","v":""},null,null,null,null,{"$f":"IF(TRIM(BW276)=\"\", \"\", IF(VLOOKUP(BW276,'Footnotes list'!$D$9:$E$58,2,FALSE)=0,\"\",VLOOKUP(BW276,'Footnotes list'!$D$9:$E$58,2,FALSE) ) )","v":""},null,null,null,null,{"$f":"IF(TRIM(CB276)=\"\", \"\", IF(VLOOKUP(CB276,'Footnotes list'!$D$9:$E$58,2,FALSE)=0,\"\",VLOOKUP(CB276,'Footnotes list'!$D$9:$E$58,2,FALSE) ) )","v":""},null,null,null,null,{"$f":"IF(TRIM(CG276)=\"\", \"\", IF(VLOOKUP(CG276,'Footnotes list'!$D$9:$E$58,2,FALSE)=0,\"\",VLOOKUP(CG276,'Footnotes list'!$D$9:$E$58,2,FALSE) ) )","v":""},null,null,null,null,{"$f":"IF(TRIM(CL276)=\"\", \"\", IF(VLOOKUP(CL276,'Footnotes list'!$D$9:$E$58,2,FALSE)=0,\"\",VLOOKUP(CL276,'Footnotes list'!$D$9:$E$58,2,FALSE) ) )","v":""},null,null,null,null,{"$f":"IF(TRIM(CQ276)=\"\", \"\", IF(VLOOKUP(CQ276,'Footnotes list'!$D$9:$E$58,2,FALSE)=0,\"\",VLOOKUP(CQ276,'Footnotes list'!$D$9:$E$58,2,FALSE) ) )","v":""},null,null,null,null,{"$f":"IF(TRIM(CV276)=\"\", \"\", IF(VLOOKUP(CV276,'Footnotes list'!$D$9:$E$58,2,FALSE)=0,\"\",VLOOKUP(CV276,'Footnotes list'!$D$9:$E$58,2,FALSE) ) )","v":""},null,null,null,null,{"$f":"IF(TRIM(DA276)=\"\", \"\", IF(VLOOKUP(DA276,'Footnotes list'!$D$9:$E$58,2,FALSE)=0,\"\",VLOOKUP(DA276,'Footnotes list'!$D$9:$E$58,2,FALSE) ) )","v":""},null,null,null,null,{"$f":"IF(TRIM(DF276)=\"\", \"\", IF(VLOOKUP(DF276,'Footnotes list'!$D$9:$E$58,2,FALSE)=0,\"\",VLOOKUP(DF276,'Footnotes list'!$D$9:$E$58,2,FALSE) ) )","v":""},null,null,null,null,{"$f":"IF(TRIM(DK276)=\"\", \"\", IF(VLOOKUP(DK276,'Footnotes list'!$D$9:$E$58,2,FALSE)=0,\"\",VLOOKUP(DK276,'Footnotes list'!$D$9:$E$58,2,FALSE) ) )","v":""},null,null,null,null,{"$f":"IF(TRIM(DP276)=\"\", \"\", IF(VLOOKUP(DP276,'Footnotes list'!$D$9:$E$58,2,FALSE)=0,\"\",VLOOKUP(DP276,'Footnotes list'!$D$9:$E$58,2,FALSE) ) )","v":""},null,null,null,null,{"$f":"IF(TRIM(DU276)=\"\", \"\", IF(VLOOKUP(DU276,'Footnotes list'!$D$9:$E$58,2,FALSE)=0,\"\",VLOOKUP(DU276,'Footnotes list'!$D$9:$E$58,2,FALSE) ) )","v":""},null,null,null,null,{"$f":"IF(TRIM(DZ276)=\"\", \"\", IF(VLOOKUP(DZ276,'Footnotes list'!$D$9:$E$58,2,FALSE)=0,\"\",VLOOKUP(DZ276,'Footnotes list'!$D$9:$E$58,2,FALSE) ) )","v":""},null,null,null,null,{"$f":"IF(TRIM(EE276)=\"\", \"\", IF(VLOOKUP(EE276,'Footnotes list'!$D$9:$E$58,2,FALSE)=0,\"\",VLOOKUP(EE276,'Footnotes list'!$D$9:$E$58,2,FALSE) ) )","v":""},null,null,null,null,{"$f":"IF(TRIM(EJ276)=\"\", \"\", IF(VLOOKUP(EJ276,'Footnotes list'!$D$9:$E$58,2,FALSE)=0,\"\",VLOOKUP(EJ276,'Footnotes list'!$D$9:$E$58,2,FALSE) ) )","v":""},null,null,null,null,{"$f":"IF(TRIM(EO276)=\"\", \"\", IF(VLOOKUP(EO276,'Footnotes list'!$D$9:$E$58,2,FALSE)=0,\"\",VLOOKUP(EO276,'Footnotes list'!$D$9:$E$58,2,FALSE) ) )","v":""},null,null,null,null,{"$f":"IF(TRIM(ET276)=\"\", \"\", IF(VLOOKUP(ET276,'Footnotes list'!$D$9:$E$58,2,FALSE)=0,\"\",VLOOKUP(ET276,'Footnotes list'!$D$9:$E$58,2,FALSE) ) )","v":""},null,null,null,null,{"$f":"IF(TRIM(EY276)=\"\", \"\", IF(VLOOKUP(EY276,'Footnotes list'!$D$9:$E$58,2,FALSE)=0,\"\",VLOOKUP(EY276,'Footnotes list'!$D$9:$E$58,2,FALSE) ) )","v":""}]
[null,null,"Q","OWN_USE","activities for own final use",null,null,null,null,null,{"$f":"IF(TRIM(J277)=\"\", \"\", IF(VLOOKUP(J277,'Footnotes list'!$D$9:$E$58,2,FALSE)=0,\"\",VLOOKUP(J277,'Footnotes list'!$D$9:$E$58,2,FALSE) ) )","v":""},null,null,null,null,{"$f":"IF(TRIM(O277)=\"\", \"\", IF(VLOOKUP(O277,'Footnotes list'!$D$9:$E$58,2,FALSE)=0,\"\",VLOOKUP(O277,'Footnotes list'!$D$9:$E$58,2,FALSE) ) )","v":""},null,null,null,null,{"$f":"IF(TRIM(T277)=\"\", \"\", IF(VLOOKUP(T277,'Footnotes list'!$D$9:$E$58,2,FALSE)=0,\"\",VLOOKUP(T277,'Footnotes list'!$D$9:$E$58,2,FALSE) ) )","v":""},null,null,null,null,{"$f":"IF(TRIM(Y277)=\"\", \"\", IF(VLOOKUP(Y277,'Footnotes list'!$D$9:$E$58,2,FALSE)=0,\"\",VLOOKUP(Y277,'Footnotes list'!$D$9:$E$58,2,FALSE) ) )","v":""},null,null,null,null,{"$f":"IF(TRIM(AD277)=\"\", \"\", IF(VLOOKUP(AD277,'Footnotes list'!$D$9:$E$58,2,FALSE)=0,\"\",VLOOKUP(AD277,'Footnotes list'!$D$9:$E$58,2,FALSE) ) )","v":""},null,null,null,null,{"$f":"IF(TRIM(AI277)=\"\", \"\", IF(VLOOKUP(AI277,'Footnotes list'!$D$9:$E$58,2,FALSE)=0,\"\",VLOOKUP(AI277,'Footnotes list'!$D$9:$E$58,2,FALSE) ) )","v":""},null,null,null,null,{"$f":"IF(TRIM(AN277)=\"\", \"\", IF(VLOOKUP(AN277,'Footnotes list'!$D$9:$E$58,2,FALSE)=0,\"\",VLOOKUP(AN277,'Footnotes list'!$D$9:$E$58,2,FALSE) ) )","v":""},null,null,null,null,{"$f":"IF(TRIM(AS277)=\"\", \"\", IF(VLOOKUP(AS277,'Footnotes list'!$D$9:$E$58,2,FALSE)=0,\"\",VLOOKUP(AS277,'Footnotes list'!$D$9:$E$58,2,FALSE) ) )","v":""},null,null,null,null,{"$f":"IF(TRIM(AX277)=\"\", \"\", IF(VLOOKUP(AX277,'Footnotes list'!$D$9:$E$58,2,FALSE)=0,\"\",VLOOKUP(AX277,'Footnotes list'!$D$9:$E$58,2,FALSE) ) )","v":""},null,null,null,null,{"$f":"IF(TRIM(BC277)=\"\", \"\", IF(VLOOKUP(BC277,'Footnotes list'!$D$9:$E$58,2,FALSE)=0,\"\",VLOOKUP(BC277,'Footnotes list'!$D$9:$E$58,2,FALSE) ) )","v":""},null,null,null,null,{"$f":"IF(TRIM(BH277)=\"\", \"\", IF(VLOOKUP(BH277,'Footnotes list'!$D$9:$E$58,2,FALSE)=0,\"\",VLOOKUP(BH277,'Footnotes list'!$D$9:$E$58,2,FALSE) ) )","v":""},null,null,null,null,{"$f":"IF(TRIM(BM277)=\"\", \"\", IF(VLOOKUP(BM277,'Footnotes list'!$D$9:$E$58,2,FALSE)=0,\"\",VLOOKUP(BM277,'Footnotes list'!$D$9:$E$58,2,FALSE) ) )","v":""},null,null,null,null,{"$f":"IF(TRIM(BR277)=\"\", \"\", IF(VLOOKUP(BR277,'Footnotes list'!$D$9:$E$58,2,FALSE)=0,\"\",VLOOKUP(BR277,'Footnotes list'!$D$9:$E$58,2,FALSE) ) )","v":""},null,null,null,null,{"$f":"IF(TRIM(BW277)=\"\", \"\", IF(VLOOKUP(BW277,'Footnotes list'!$D$9:$E$58,2,FALSE)=0,\"\",VLOOKUP(BW277,'Footnotes list'!$D$9:$E$58,2,FALSE) ) )","v":""},null,null,null,null,{"$f":"IF(TRIM(CB277)=\"\", \"\", IF(VLOOKUP(CB277,'Footnotes list'!$D$9:$E$58,2,FALSE)=0,\"\",VLOOKUP(CB277,'Footnotes list'!$D$9:$E$58,2,FALSE) ) )","v":""},null,null,null,null,{"$f":"IF(TRIM(CG277)=\"\", \"\", IF(VLOOKUP(CG277,'Footnotes list'!$D$9:$E$58,2,FALSE)=0,\"\",VLOOKUP(CG277,'Footnotes list'!$D$9:$E$58,2,FALSE) ) )","v":""},null,null,null,null,{"$f":"IF(TRIM(CL277)=\"\", \"\", IF(VLOOKUP(CL277,'Footnotes list'!$D$9:$E$58,2,FALSE)=0,\"\",VLOOKUP(CL277,'Footnotes list'!$D$9:$E$58,2,FALSE) ) )","v":""},null,null,null,null,{"$f":"IF(TRIM(CQ277)=\"\", \"\", IF(VLOOKUP(CQ277,'Footnotes list'!$D$9:$E$58,2,FALSE)=0,\"\",VLOOKUP(CQ277,'Footnotes list'!$D$9:$E$58,2,FALSE) ) )","v":""},null,null,null,null,{"$f":"IF(TRIM(CV277)=\"\", \"\", IF(VLOOKUP(CV277,'Footnotes list'!$D$9:$E$58,2,FALSE)=0,\"\",VLOOKUP(CV277,'Footnotes list'!$D$9:$E$58,2,FALSE) ) )","v":""},null,null,null,null,{"$f":"IF(TRIM(DA277)=\"\", \"\", IF(VLOOKUP(DA277,'Footnotes list'!$D$9:$E$58,2,FALSE)=0,\"\",VLOOKUP(DA277,'Footnotes list'!$D$9:$E$58,2,FALSE) ) )","v":""},null,null,null,null,{"$f":"IF(TRIM(DF277)=\"\", \"\", IF(VLOOKUP(DF277,'Footnotes list'!$D$9:$E$58,2,FALSE)=0,\"\",VLOOKUP(DF277,'Footnotes list'!$D$9:$E$58,2,FALSE) ) )","v":""},null,null,null,null,{"$f":"IF(TRIM(DK277)=\"\", \"\", IF(VLOOKUP(DK277,'Footnotes list'!$D$9:$E$58,2,FALSE)=0,\"\",VLOOKUP(DK277,'Footnotes list'!$D$9:$E$58,2,FALSE) ) )","v":""},null,null,null,null,{"$f":"IF(TRIM(DP277)=\"\", \"\", IF(VLOOKUP(DP277,'Footnotes list'!$D$9:$E$58,2,FALSE)=0,\"\",VLOOKUP(DP277,'Footnotes list'!$D$9:$E$58,2,FALSE) ) )","v":""},null,null,null,null,{"$f":"IF(TRIM(DU277)=\"\", \"\", IF(VLOOKUP(DU277,'Footnotes list'!$D$9:$E$58,2,FALSE)=0,\"\",VLOOKUP(DU277,'Footnotes list'!$D$9:$E$58,2,FALSE) ) )","v":""},null,null,null,null,{"$f":"IF(TRIM(DZ277)=\"\", \"\", IF(VLOOKUP(DZ277,'Footnotes list'!$D$9:$E$58,2,FALSE)=0,\"\",VLOOKUP(DZ277,'Footnotes list'!$D$9:$E$58,2,FALSE) ) )","v":""},null,null,null,null,{"$f":"IF(TRIM(EE277)=\"\", \"\", IF(VLOOKUP(EE277,'Footnotes list'!$D$9:$E$58,2,FALSE)=0,\"\",VLOOKUP(EE277,'Footnotes list'!$D$9:$E$58,2,FALSE) ) )","v":""},null,null,null,null,{"$f":"IF(TRIM(EJ277)=\"\", \"\", IF(VLOOKUP(EJ277,'Footnotes list'!$D$9:$E$58,2,FALSE)=0,\"\",VLOOKUP(EJ277,'Footnotes list'!$D$9:$E$58,2,FALSE) ) )","v":""},null,null,null,null,{"$f":"IF(TRIM(EO277)=\"\", \"\", IF(VLOOKUP(EO277,'Footnotes list'!$D$9:$E$58,2,FALSE)=0,\"\",VLOOKUP(EO277,'Footnotes list'!$D$9:$E$58,2,FALSE) ) )","v":""},null,null,null,null,{"$f":"IF(TRIM(ET277)=\"\", \"\", IF(VLOOKUP(ET277,'Footnotes list'!$D$9:$E$58,2,FALSE)=0,\"\",VLOOKUP(ET277,'Footnotes list'!$D$9:$E$58,2,FALSE) ) )","v":""},null,null,null,null,{"$f":"IF(TRIM(EY277)=\"\", \"\", IF(VLOOKUP(EY277,'Footnotes list'!$D$9:$E$58,2,FALSE)=0,\"\",VLOOKUP(EY277,'Footnotes list'!$D$9:$E$58,2,FALSE) ) )","v":""}]
[null,null,"Q","MKT","market activities, including:",null,null,null,null,null,{"$f":"IF(TRIM(J278)=\"\", \"\", IF(VLOOKUP(J278,'Footnotes list'!$D$9:$E$58,2,FALSE)=0,\"\",VLOOKUP(J278,'Footnotes list'!$D$9:$E$58,2,FALSE) ) )","v":""},null,null,null,null,{"$f":"IF(TRIM(O278)=\"\", \"\", IF(VLOOKUP(O278,'Footnotes list'!$D$9:$E$58,2,FALSE)=0,\"\",VLOOKUP(O278,'Footnotes list'!$D$9:$E$58,2,FALSE) ) )","v":""},null,null,null,null,{"$f":"IF(TRIM(T278)=\"\", \"\", IF(VLOOKUP(T278,'Footnotes list'!$D$9:$E$58,2,FALSE)=0,\"\",VLOOKUP(T278,'Footnotes list'!$D$9:$E$58,2,FALSE) ) )","v":""},null,null,null,null,{"$f":"IF(TRIM(Y278)=\"\", \"\", IF(VLOOKUP(Y278,'Footnotes list'!$D$9:$E$58,2,FALSE)=0,\"\",VLOOKUP(Y278,'Footnotes list'!$D$9:$E$58,2,FALSE) ) )","v":""},null,null,null,null,{"$f":"IF(TRIM(AD278)=\"\", \"\", IF(VLOOKUP(AD278,'Footnotes list'!$D$9:$E$58,2,FALSE)=0,\"\",VLOOKUP(AD278,'Footnotes list'!$D$9:$E$58,2,FALSE) ) )","v":""},null,null,null,null,{"$f":"IF(TRIM(AI278)=\"\", \"\", IF(VLOOKUP(AI278,'Footnotes list'!$D$9:$E$58,2,FALSE)=0,\"\",VLOOKUP(AI278,'Footnotes list'!$D$9:$E$58,2,FALSE) ) )","v":""},null,null,null,null,{"$f":"IF(TRIM(AN278)=\"\", \"\", IF(VLOOKUP(AN278,'Footnotes list'!$D$9:$E$58,2,FALSE)=0,\"\",VLOOKUP(AN278,'Footnotes list'!$D$9:$E$58,2,FALSE) ) )","v":""},null,null,null,null,{"$f":"IF(TRIM(AS278)=\"\", \"\", IF(VLOOKUP(AS278,'Footnotes list'!$D$9:$E$58,2,FALSE)=0,\"\",VLOOKUP(AS278,'Footnotes list'!$D$9:$E$58,2,FALSE) ) )","v":""},null,null,null,null,{"$f":"IF(TRIM(AX278)=\"\", \"\", IF(VLOOKUP(AX278,'Footnotes list'!$D$9:$E$58,2,FALSE)=0,\"\",VLOOKUP(AX278,'Footnotes list'!$D$9:$E$58,2,FALSE) ) )","v":""},null,null,null,null,{"$f":"IF(TRIM(BC278)=\"\", \"\", IF(VLOOKUP(BC278,'Footnotes list'!$D$9:$E$58,2,FALSE)=0,\"\",VLOOKUP(BC278,'Footnotes list'!$D$9:$E$58,2,FALSE) ) )","v":""},null,null,null,null,{"$f":"IF(TRIM(BH278)=\"\", \"\", IF(VLOOKUP(BH278,'Footnotes list'!$D$9:$E$58,2,FALSE)=0,\"\",VLOOKUP(BH278,'Footnotes list'!$D$9:$E$58,2,FALSE) ) )","v":""},null,null,null,null,{"$f":"IF(TRIM(BM278)=\"\", \"\", IF(VLOOKUP(BM278,'Footnotes list'!$D$9:$E$58,2,FALSE)=0,\"\",VLOOKUP(BM278,'Footnotes list'!$D$9:$E$58,2,FALSE) ) )","v":""},null,null,null,null,{"$f":"IF(TRIM(BR278)=\"\", \"\", IF(VLOOKUP(BR278,'Footnotes list'!$D$9:$E$58,2,FALSE)=0,\"\",VLOOKUP(BR278,'Footnotes list'!$D$9:$E$58,2,FALSE) ) )","v":""},null,null,null,null,{"$f":"IF(TRIM(BW278)=\"\", \"\", IF(VLOOKUP(BW278,'Footnotes list'!$D$9:$E$58,2,FALSE)=0,\"\",VLOOKUP(BW278,'Footnotes list'!$D$9:$E$58,2,FALSE) ) )","v":""},null,null,null,null,{"$f":"IF(TRIM(CB278)=\"\", \"\", IF(VLOOKUP(CB278,'Footnotes list'!$D$9:$E$58,2,FALSE)=0,\"\",VLOOKUP(CB278,'Footnotes list'!$D$9:$E$58,2,FALSE) ) )","v":""},null,null,null,null,{"$f":"IF(TRIM(CG278)=\"\", \"\", IF(VLOOKUP(CG278,'Footnotes list'!$D$9:$E$58,2,FALSE)=0,\"\",VLOOKUP(CG278,'Footnotes list'!$D$9:$E$58,2,FALSE) ) )","v":""},null,null,null,null,{"$f":"IF(TRIM(CL278)=\"\", \"\", IF(VLOOKUP(CL278,'Footnotes list'!$D$9:$E$58,2,FALSE)=0,\"\",VLOOKUP(CL278,'Footnotes list'!$D$9:$E$58,2,FALSE) ) )","v":""},null,null,null,null,{"$f":"IF(TRIM(CQ278)=\"\", \"\", IF(VLOOKUP(CQ278,'Footnotes list'!$D$9:$E$58,2,FALSE)=0,\"\",VLOOKUP(CQ278,'Footnotes list'!$D$9:$E$58,2,FALSE) ) )","v":""},null,null,null,null,{"$f":"IF(TRIM(CV278)=\"\", \"\", IF(VLOOKUP(CV278,'Footnotes list'!$D$9:$E$58,2,FALSE)=0,\"\",VLOOKUP(CV278,'Footnotes list'!$D$9:$E$58,2,FALSE) ) )","v":""},null,null,null,null,{"$f":"IF(TRIM(DA278)=\"\", \"\", IF(VLOOKUP(DA278,'Footnotes list'!$D$9:$E$58,2,FALSE)=0,\"\",VLOOKUP(DA278,'Footnotes list'!$D$9:$E$58,2,FALSE) ) )","v":""},null,null,null,null,{"$f":"IF(TRIM(DF278)=\"\", \"\", IF(VLOOKUP(DF278,'Footnotes list'!$D$9:$E$58,2,FALSE)=0,\"\",VLOOKUP(DF278,'Footnotes list'!$D$9:$E$58,2,FALSE) ) )","v":""},null,null,null,null,{"$f":"IF(TRIM(DK278)=\"\", \"\", IF(VLOOKUP(DK278,'Footnotes list'!$D$9:$E$58,2,FALSE)=0,\"\",VLOOKUP(DK278,'Footnotes list'!$D$9:$E$58,2,FALSE) ) )","v":""},null,null,null,null,{"$f":"IF(TRIM(DP278)=\"\", \"\", IF(VLOOKUP(DP278,'Footnotes list'!$D$9:$E$58,2,FALSE)=0,\"\",VLOOKUP(DP278,'Footnotes list'!$D$9:$E$58,2,FALSE) ) )","v":""},null,null,null,null,{"$f":"IF(TRIM(DU278)=\"\", \"\", IF(VLOOKUP(DU278,'Footnotes list'!$D$9:$E$58,2,FALSE)=0,\"\",VLOOKUP(DU278,'Footnotes list'!$D$9:$E$58,2,FALSE) ) )","v":""},null,null,null,null,{"$f":"IF(TRIM(DZ278)=\"\", \"\", IF(VLOOKUP(DZ278,'Footnotes list'!$D$9:$E$58,2,FALSE)=0,\"\",VLOOKUP(DZ278,'Footnotes list'!$D$9:$E$58,2,FALSE) ) )","v":""},null,null,null,null,{"$f":"IF(TRIM(EE278)=\"\", \"\", IF(VLOOKUP(EE278,'Footnotes list'!$D$9:$E$58,2,FALSE)=0,\"\",VLOOKUP(EE278,'Footnotes list'!$D$9:$E$58,2,FALSE) ) )","v":""},null,null,null,null,{"$f":"IF(TRIM(EJ278)=\"\", \"\", IF(VLOOKUP(EJ278,'Footnotes list'!$D$9:$E$58,2,FALSE)=0,\"\",VLOOKUP(EJ278,'Footnotes list'!$D$9:$E$58,2,FALSE) ) )","v":""},null,null,null,null,{"$f":"IF(TRIM(EO278)=\"\", \"\", IF(VLOOKUP(EO278,'Footnotes list'!$D$9:$E$58,2,FALSE)=0,\"\",VLOOKUP(EO278,'Footnotes list'!$D$9:$E$58,2,FALSE) ) )","v":""},null,null,null,null,{"$f":"IF(TRIM(ET278)=\"\", \"\", IF(VLOOKUP(ET278,'Footnotes list'!$D$9:$E$58,2,FALSE)=0,\"\",VLOOKUP(ET278,'Footnotes list'!$D$9:$E$58,2,FALSE) ) )","v":""},null,null,null,null,{"$f":"IF(TRIM(EY278)=\"\", \"\", IF(VLOOKUP(EY278,'Footnotes list'!$D$9:$E$58,2,FALSE)=0,\"\",VLOOKUP(EY278,'Footnotes list'!$D$9:$E$58,2,FALSE) ) )","v":""}]
[null,null,"Q","ES_CS","environmental specific services",null,null,null,null,null,{"$f":"IF(TRIM(J279)=\"\", \"\", IF(VLOOKUP(J279,'Footnotes list'!$D$9:$E$58,2,FALSE)=0,\"\",VLOOKUP(J279,'Footnotes list'!$D$9:$E$58,2,FALSE) ) )","v":""},null,null,null,null,{"$f":"IF(TRIM(O279)=\"\", \"\", IF(VLOOKUP(O279,'Footnotes list'!$D$9:$E$58,2,FALSE)=0,\"\",VLOOKUP(O279,'Footnotes list'!$D$9:$E$58,2,FALSE) ) )","v":""},null,null,null,null,{"$f":"IF(TRIM(T279)=\"\", \"\", IF(VLOOKUP(T279,'Footnotes list'!$D$9:$E$58,2,FALSE)=0,\"\",VLOOKUP(T279,'Footnotes list'!$D$9:$E$58,2,FALSE) ) )","v":""},null,null,null,null,{"$f":"IF(TRIM(Y279)=\"\", \"\", IF(VLOOKUP(Y279,'Footnotes list'!$D$9:$E$58,2,FALSE)=0,\"\",VLOOKUP(Y279,'Footnotes list'!$D$9:$E$58,2,FALSE) ) )","v":""},null,null,null,null,{"$f":"IF(TRIM(AD279)=\"\", \"\", IF(VLOOKUP(AD279,'Footnotes list'!$D$9:$E$58,2,FALSE)=0,\"\",VLOOKUP(AD279,'Footnotes list'!$D$9:$E$58,2,FALSE) ) )","v":""},null,null,null,null,{"$f":"IF(TRIM(AI279)=\"\", \"\", IF(VLOOKUP(AI279,'Footnotes list'!$D$9:$E$58,2,FALSE)=0,\"\",VLOOKUP(AI279,'Footnotes list'!$D$9:$E$58,2,FALSE) ) )","v":""},null,null,null,null,{"$f":"IF(TRIM(AN279)=\"\", \"\", IF(VLOOKUP(AN279,'Footnotes list'!$D$9:$E$58,2,FALSE)=0,\"\",VLOOKUP(AN279,'Footnotes list'!$D$9:$E$58,2,FALSE) ) )","v":""},null,null,null,null,{"$f":"IF(TRIM(AS279)=\"\", \"\", IF(VLOOKUP(AS279,'Footnotes list'!$D$9:$E$58,2,FALSE)=0,\"\",VLOOKUP(AS279,'Footnotes list'!$D$9:$E$58,2,FALSE) ) )","v":""},null,null,null,null,{"$f":"IF(TRIM(AX279)=\"\", \"\", IF(VLOOKUP(AX279,'Footnotes list'!$D$9:$E$58,2,FALSE)=0,\"\",VLOOKUP(AX279,'Footnotes list'!$D$9:$E$58,2,FALSE) ) )","v":""},null,null,null,null,{"$f":"IF(TRIM(BC279)=\"\", \"\", IF(VLOOKUP(BC279,'Footnotes list'!$D$9:$E$58,2,FALSE)=0,\"\",VLOOKUP(BC279,'Footnotes list'!$D$9:$E$58,2,FALSE) ) )","v":""},null,null,null,null,{"$f":"IF(TRIM(BH279)=\"\", \"\", IF(VLOOKUP(BH279,'Footnotes list'!$D$9:$E$58,2,FALSE)=0,\"\",VLOOKUP(BH279,'Footnotes list'!$D$9:$E$58,2,FALSE) ) )","v":""},null,null,null,null,{"$f":"IF(TRIM(BM279)=\"\", \"\", IF(VLOOKUP(BM279,'Footnotes list'!$D$9:$E$58,2,FALSE)=0,\"\",VLOOKUP(BM279,'Footnotes list'!$D$9:$E$58,2,FALSE) ) )","v":""},null,null,null,null,{"$f":"IF(TRIM(BR279)=\"\", \"\", IF(VLOOKUP(BR279,'Footnotes list'!$D$9:$E$58,2,FALSE)=0,\"\",VLOOKUP(BR279,'Footnotes list'!$D$9:$E$58,2,FALSE) ) )","v":""},null,null,null,null,{"$f":"IF(TRIM(BW279)=\"\", \"\", IF(VLOOKUP(BW279,'Footnotes list'!$D$9:$E$58,2,FALSE)=0,\"\",VLOOKUP(BW279,'Footnotes list'!$D$9:$E$58,2,FALSE) ) )","v":""},null,null,null,null,{"$f":"IF(TRIM(CB279)=\"\", \"\", IF(VLOOKUP(CB279,'Footnotes list'!$D$9:$E$58,2,FALSE)=0,\"\",VLOOKUP(CB279,'Footnotes list'!$D$9:$E$58,2,FALSE) ) )","v":""},null,null,null,null,{"$f":"IF(TRIM(CG279)=\"\", \"\", IF(VLOOKUP(CG279,'Footnotes list'!$D$9:$E$58,2,FALSE)=0,\"\",VLOOKUP(CG279,'Footnotes list'!$D$9:$E$58,2,FALSE) ) )","v":""},null,null,null,null,{"$f":"IF(TRIM(CL279)=\"\", \"\", IF(VLOOKUP(CL279,'Footnotes list'!$D$9:$E$58,2,FALSE)=0,\"\",VLOOKUP(CL279,'Footnotes list'!$D$9:$E$58,2,FALSE) ) )","v":""},null,null,null,null,{"$f":"IF(TRIM(CQ279)=\"\", \"\", IF(VLOOKUP(CQ279,'Footnotes list'!$D$9:$E$58,2,FALSE)=0,\"\",VLOOKUP(CQ279,'Footnotes list'!$D$9:$E$58,2,FALSE) ) )","v":""},null,null,null,null,{"$f":"IF(TRIM(CV279)=\"\", \"\", IF(VLOOKUP(CV279,'Footnotes list'!$D$9:$E$58,2,FALSE)=0,\"\",VLOOKUP(CV279,'Footnotes list'!$D$9:$E$58,2,FALSE) ) )","v":""},null,null,null,null,{"$f":"IF(TRIM(DA279)=\"\", \"\", IF(VLOOKUP(DA279,'Footnotes list'!$D$9:$E$58,2,FALSE)=0,\"\",VLOOKUP(DA279,'Footnotes list'!$D$9:$E$58,2,FALSE) ) )","v":""},null,null,null,null,{"$f":"IF(TRIM(DF279)=\"\", \"\", IF(VLOOKUP(DF279,'Footnotes list'!$D$9:$E$58,2,FALSE)=0,\"\",VLOOKUP(DF279,'Footnotes list'!$D$9:$E$58,2,FALSE) ) )","v":""},null,null,null,null,{"$f":"IF(TRIM(DK279)=\"\", \"\", IF(VLOOKUP(DK279,'Footnotes list'!$D$9:$E$58,2,FALSE)=0,\"\",VLOOKUP(DK279,'Footnotes list'!$D$9:$E$58,2,FALSE) ) )","v":""},null,null,null,null,{"$f":"IF(TRIM(DP279)=\"\", \"\", IF(VLOOKUP(DP279,'Footnotes list'!$D$9:$E$58,2,FALSE)=0,\"\",VLOOKUP(DP279,'Footnotes list'!$D$9:$E$58,2,FALSE) ) )","v":""},null,null,null,null,{"$f":"IF(TRIM(DU279)=\"\", \"\", IF(VLOOKUP(DU279,'Footnotes list'!$D$9:$E$58,2,FALSE)=0,\"\",VLOOKUP(DU279,'Footnotes list'!$D$9:$E$58,2,FALSE) ) )","v":""},null,null,null,null,{"$f":"IF(TRIM(DZ279)=\"\", \"\", IF(VLOOKUP(DZ279,'Footnotes list'!$D$9:$E$58,2,FALSE)=0,\"\",VLOOKUP(DZ279,'Footnotes list'!$D$9:$E$58,2,FALSE) ) )","v":""},null,null,null,null,{"$f":"IF(TRIM(EE279)=\"\", \"\", IF(VLOOKUP(EE279,'Footnotes list'!$D$9:$E$58,2,FALSE)=0,\"\",VLOOKUP(EE279,'Footnotes list'!$D$9:$E$58,2,FALSE) ) )","v":""},null,null,null,null,{"$f":"IF(TRIM(EJ279)=\"\", \"\", IF(VLOOKUP(EJ279,'Footnotes list'!$D$9:$E$58,2,FALSE)=0,\"\",VLOOKUP(EJ279,'Footnotes list'!$D$9:$E$58,2,FALSE) ) )","v":""},null,null,null,null,{"$f":"IF(TRIM(EO279)=\"\", \"\", IF(VLOOKUP(EO279,'Footnotes list'!$D$9:$E$58,2,FALSE)=0,\"\",VLOOKUP(EO279,'Footnotes list'!$D$9:$E$58,2,FALSE) ) )","v":""},null,null,null,null,{"$f":"IF(TRIM(ET279)=\"\", \"\", IF(VLOOKUP(ET279,'Footnotes list'!$D$9:$E$58,2,FALSE)=0,\"\",VLOOKUP(ET279,'Footnotes list'!$D$9:$E$58,2,FALSE) ) )","v":""},null,null,null,null,{"$f":"IF(TRIM(EY279)=\"\", \"\", IF(VLOOKUP(EY279,'Footnotes list'!$D$9:$E$58,2,FALSE)=0,\"\",VLOOKUP(EY279,'Footnotes list'!$D$9:$E$58,2,FALSE) ) )","v":""}]
[null,null,"Q","C_REP","cleaner and resource efficient products",null,null,null,null,null,{"$f":"IF(TRIM(J280)=\"\", \"\", IF(VLOOKUP(J280,'Footnotes list'!$D$9:$E$58,2,FALSE)=0,\"\",VLOOKUP(J280,'Footnotes list'!$D$9:$E$58,2,FALSE) ) )","v":""},null,null,null,null,{"$f":"IF(TRIM(O280)=\"\", \"\", IF(VLOOKUP(O280,'Footnotes list'!$D$9:$E$58,2,FALSE)=0,\"\",VLOOKUP(O280,'Footnotes list'!$D$9:$E$58,2,FALSE) ) )","v":""},null,null,null,null,{"$f":"IF(TRIM(T280)=\"\", \"\", IF(VLOOKUP(T280,'Footnotes list'!$D$9:$E$58,2,FALSE)=0,\"\",VLOOKUP(T280,'Footnotes list'!$D$9:$E$58,2,FALSE) ) )","v":""},null,null,null,null,{"$f":"IF(TRIM(Y280)=\"\", \"\", IF(VLOOKUP(Y280,'Footnotes list'!$D$9:$E$58,2,FALSE)=0,\"\",VLOOKUP(Y280,'Footnotes list'!$D$9:$E$58,2,FALSE) ) )","v":""},null,null,null,null,{"$f":"IF(TRIM(AD280)=\"\", \"\", IF(VLOOKUP(AD280,'Footnotes list'!$D$9:$E$58,2,FALSE)=0,\"\",VLOOKUP(AD280,'Footnotes list'!$D$9:$E$58,2,FALSE) ) )","v":""},null,null,null,null,{"$f":"IF(TRIM(AI280)=\"\", \"\", IF(VLOOKUP(AI280,'Footnotes list'!$D$9:$E$58,2,FALSE)=0,\"\",VLOOKUP(AI280,'Footnotes list'!$D$9:$E$58,2,FALSE) ) )","v":""},null,null,null,null,{"$f":"IF(TRIM(AN280)=\"\", \"\", IF(VLOOKUP(AN280,'Footnotes list'!$D$9:$E$58,2,FALSE)=0,\"\",VLOOKUP(AN280,'Footnotes list'!$D$9:$E$58,2,FALSE) ) )","v":""},null,null,null,null,{"$f":"IF(TRIM(AS280)=\"\", \"\", IF(VLOOKUP(AS280,'Footnotes list'!$D$9:$E$58,2,FALSE)=0,\"\",VLOOKUP(AS280,'Footnotes list'!$D$9:$E$58,2,FALSE) ) )","v":""},null,null,null,null,{"$f":"IF(TRIM(AX280)=\"\", \"\", IF(VLOOKUP(AX280,'Footnotes list'!$D$9:$E$58,2,FALSE)=0,\"\",VLOOKUP(AX280,'Footnotes list'!$D$9:$E$58,2,FALSE) ) )","v":""},null,null,null,null,{"$f":"IF(TRIM(BC280)=\"\", \"\", IF(VLOOKUP(BC280,'Footnotes list'!$D$9:$E$58,2,FALSE)=0,\"\",VLOOKUP(BC280,'Footnotes list'!$D$9:$E$58,2,FALSE) ) )","v":""},null,null,null,null,{"$f":"IF(TRIM(BH280)=\"\", \"\", IF(VLOOKUP(BH280,'Footnotes list'!$D$9:$E$58,2,FALSE)=0,\"\",VLOOKUP(BH280,'Footnotes list'!$D$9:$E$58,2,FALSE) ) )","v":""},null,null,null,null,{"$f":"IF(TRIM(BM280)=\"\", \"\", IF(VLOOKUP(BM280,'Footnotes list'!$D$9:$E$58,2,FALSE)=0,\"\",VLOOKUP(BM280,'Footnotes list'!$D$9:$E$58,2,FALSE) ) )","v":""},null,null,null,null,{"$f":"IF(TRIM(BR280)=\"\", \"\", IF(VLOOKUP(BR280,'Footnotes list'!$D$9:$E$58,2,FALSE)=0,\"\",VLOOKUP(BR280,'Footnotes list'!$D$9:$E$58,2,FALSE) ) )","v":""},null,null,null,null,{"$f":"IF(TRIM(BW280)=\"\", \"\", IF(VLOOKUP(BW280,'Footnotes list'!$D$9:$E$58,2,FALSE)=0,\"\",VLOOKUP(BW280,'Footnotes list'!$D$9:$E$58,2,FALSE) ) )","v":""},null,null,null,null,{"$f":"IF(TRIM(CB280)=\"\", \"\", IF(VLOOKUP(CB280,'Footnotes list'!$D$9:$E$58,2,FALSE)=0,\"\",VLOOKUP(CB280,'Footnotes list'!$D$9:$E$58,2,FALSE) ) )","v":""},null,null,null,null,{"$f":"IF(TRIM(CG280)=\"\", \"\", IF(VLOOKUP(CG280,'Footnotes list'!$D$9:$E$58,2,FALSE)=0,\"\",VLOOKUP(CG280,'Footnotes list'!$D$9:$E$58,2,FALSE) ) )","v":""},null,null,null,null,{"$f":"IF(TRIM(CL280)=\"\", \"\", IF(VLOOKUP(CL280,'Footnotes list'!$D$9:$E$58,2,FALSE)=0,\"\",VLOOKUP(CL280,'Footnotes list'!$D$9:$E$58,2,FALSE) ) )","v":""},null,null,null,null,{"$f":"IF(TRIM(CQ280)=\"\", \"\", IF(VLOOKUP(CQ280,'Footnotes list'!$D$9:$E$58,2,FALSE)=0,\"\",VLOOKUP(CQ280,'Footnotes list'!$D$9:$E$58,2,FALSE) ) )","v":""},null,null,null,null,{"$f":"IF(TRIM(CV280)=\"\", \"\", IF(VLOOKUP(CV280,'Footnotes list'!$D$9:$E$58,2,FALSE)=0,\"\",VLOOKUP(CV280,'Footnotes list'!$D$9:$E$58,2,FALSE) ) )","v":""},null,null,null,null,{"$f":"IF(TRIM(DA280)=\"\", \"\", IF(VLOOKUP(DA280,'Footnotes list'!$D$9:$E$58,2,FALSE)=0,\"\",VLOOKUP(DA280,'Footnotes list'!$D$9:$E$58,2,FALSE) ) )","v":""},null,null,null,null,{"$f":"IF(TRIM(DF280)=\"\", \"\", IF(VLOOKUP(DF280,'Footnotes list'!$D$9:$E$58,2,FALSE)=0,\"\",VLOOKUP(DF280,'Footnotes list'!$D$9:$E$58,2,FALSE) ) )","v":""},null,null,null,null,{"$f":"IF(TRIM(DK280)=\"\", \"\", IF(VLOOKUP(DK280,'Footnotes list'!$D$9:$E$58,2,FALSE)=0,\"\",VLOOKUP(DK280,'Footnotes list'!$D$9:$E$58,2,FALSE) ) )","v":""},null,null,null,null,{"$f":"IF(TRIM(DP280)=\"\", \"\", IF(VLOOKUP(DP280,'Footnotes list'!$D$9:$E$58,2,FALSE)=0,\"\",VLOOKUP(DP280,'Footnotes list'!$D$9:$E$58,2,FALSE) ) )","v":""},null,null,null,null,{"$f":"IF(TRIM(DU280)=\"\", \"\", IF(VLOOKUP(DU280,'Footnotes list'!$D$9:$E$58,2,FALSE)=0,\"\",VLOOKUP(DU280,'Footnotes list'!$D$9:$E$58,2,FALSE) ) )","v":""},null,null,null,null,{"$f":"IF(TRIM(DZ280)=\"\", \"\", IF(VLOOKUP(DZ280,'Footnotes list'!$D$9:$E$58,2,FALSE)=0,\"\",VLOOKUP(DZ280,'Footnotes list'!$D$9:$E$58,2,FALSE) ) )","v":""},null,null,null,null,{"$f":"IF(TRIM(EE280)=\"\", \"\", IF(VLOOKUP(EE280,'Footnotes list'!$D$9:$E$58,2,FALSE)=0,\"\",VLOOKUP(EE280,'Footnotes list'!$D$9:$E$58,2,FALSE) ) )","v":""},null,null,null,null,{"$f":"IF(TRIM(EJ280)=\"\", \"\", IF(VLOOKUP(EJ280,'Footnotes list'!$D$9:$E$58,2,FALSE)=0,\"\",VLOOKUP(EJ280,'Footnotes list'!$D$9:$E$58,2,FALSE) ) )","v":""},null,null,null,null,{"$f":"IF(TRIM(EO280)=\"\", \"\", IF(VLOOKUP(EO280,'Footnotes list'!$D$9:$E$58,2,FALSE)=0,\"\",VLOOKUP(EO280,'Footnotes list'!$D$9:$E$58,2,FALSE) ) )","v":""},null,null,null,null,{"$f":"IF(TRIM(ET280)=\"\", \"\", IF(VLOOKUP(ET280,'Footnotes list'!$D$9:$E$58,2,FALSE)=0,\"\",VLOOKUP(ET280,'Footnotes list'!$D$9:$E$58,2,FALSE) ) )","v":""},null,null,null,null,{"$f":"IF(TRIM(EY280)=\"\", \"\", IF(VLOOKUP(EY280,'Footnotes list'!$D$9:$E$58,2,FALSE)=0,\"\",VLOOKUP(EY280,'Footnotes list'!$D$9:$E$58,2,FALSE) ) )","v":""}]
[null,null,"R","TOT_EGSS","Total R - Arts, entertainment and recreation, of which:",null,null,null,null,null,{"$f":"IF(TRIM(J281)=\"\", \"\", IF(VLOOKUP(J281,'Footnotes list'!$D$9:$E$58,2,FALSE)=0,\"\",VLOOKUP(J281,'Footnotes list'!$D$9:$E$58,2,FALSE) ) )","v":""},null,null,null,null,{"$f":"IF(TRIM(O281)=\"\", \"\", IF(VLOOKUP(O281,'Footnotes list'!$D$9:$E$58,2,FALSE)=0,\"\",VLOOKUP(O281,'Footnotes list'!$D$9:$E$58,2,FALSE) ) )","v":""},null,null,null,null,{"$f":"IF(TRIM(T281)=\"\", \"\", IF(VLOOKUP(T281,'Footnotes list'!$D$9:$E$58,2,FALSE)=0,\"\",VLOOKUP(T281,'Footnotes list'!$D$9:$E$58,2,FALSE) ) )","v":""},null,null,null,null,{"$f":"IF(TRIM(Y281)=\"\", \"\", IF(VLOOKUP(Y281,'Footnotes list'!$D$9:$E$58,2,FALSE)=0,\"\",VLOOKUP(Y281,'Footnotes list'!$D$9:$E$58,2,FALSE) ) )","v":""},null,null,null,null,{"$f":"IF(TRIM(AD281)=\"\", \"\", IF(VLOOKUP(AD281,'Footnotes list'!$D$9:$E$58,2,FALSE)=0,\"\",VLOOKUP(AD281,'Footnotes list'!$D$9:$E$58,2,FALSE) ) )","v":""},null,null,null,null,{"$f":"IF(TRIM(AI281)=\"\", \"\", IF(VLOOKUP(AI281,'Footnotes list'!$D$9:$E$58,2,FALSE)=0,\"\",VLOOKUP(AI281,'Footnotes list'!$D$9:$E$58,2,FALSE) ) )","v":""},null,null,null,null,{"$f":"IF(TRIM(AN281)=\"\", \"\", IF(VLOOKUP(AN281,'Footnotes list'!$D$9:$E$58,2,FALSE)=0,\"\",VLOOKUP(AN281,'Footnotes list'!$D$9:$E$58,2,FALSE) ) )","v":""},null,null,null,null,{"$f":"IF(TRIM(AS281)=\"\", \"\", IF(VLOOKUP(AS281,'Footnotes list'!$D$9:$E$58,2,FALSE)=0,\"\",VLOOKUP(AS281,'Footnotes list'!$D$9:$E$58,2,FALSE) ) )","v":""},null,null,null,null,{"$f":"IF(TRIM(AX281)=\"\", \"\", IF(VLOOKUP(AX281,'Footnotes list'!$D$9:$E$58,2,FALSE)=0,\"\",VLOOKUP(AX281,'Footnotes list'!$D$9:$E$58,2,FALSE) ) )","v":""},null,null,null,null,{"$f":"IF(TRIM(BC281)=\"\", \"\", IF(VLOOKUP(BC281,'Footnotes list'!$D$9:$E$58,2,FALSE)=0,\"\",VLOOKUP(BC281,'Footnotes list'!$D$9:$E$58,2,FALSE) ) )","v":""},null,null,null,null,{"$f":"IF(TRIM(BH281)=\"\", \"\", IF(VLOOKUP(BH281,'Footnotes list'!$D$9:$E$58,2,FALSE)=0,\"\",VLOOKUP(BH281,'Footnotes list'!$D$9:$E$58,2,FALSE) ) )","v":""},null,null,null,null,{"$f":"IF(TRIM(BM281)=\"\", \"\", IF(VLOOKUP(BM281,'Footnotes list'!$D$9:$E$58,2,FALSE)=0,\"\",VLOOKUP(BM281,'Footnotes list'!$D$9:$E$58,2,FALSE) ) )","v":""},null,null,null,null,{"$f":"IF(TRIM(BR281)=\"\", \"\", IF(VLOOKUP(BR281,'Footnotes list'!$D$9:$E$58,2,FALSE)=0,\"\",VLOOKUP(BR281,'Footnotes list'!$D$9:$E$58,2,FALSE) ) )","v":""},null,null,null,null,{"$f":"IF(TRIM(BW281)=\"\", \"\", IF(VLOOKUP(BW281,'Footnotes list'!$D$9:$E$58,2,FALSE)=0,\"\",VLOOKUP(BW281,'Footnotes list'!$D$9:$E$58,2,FALSE) ) )","v":""},null,null,null,null,{"$f":"IF(TRIM(CB281)=\"\", \"\", IF(VLOOKUP(CB281,'Footnotes list'!$D$9:$E$58,2,FALSE)=0,\"\",VLOOKUP(CB281,'Footnotes list'!$D$9:$E$58,2,FALSE) ) )","v":""},null,null,null,null,{"$f":"IF(TRIM(CG281)=\"\", \"\", IF(VLOOKUP(CG281,'Footnotes list'!$D$9:$E$58,2,FALSE)=0,\"\",VLOOKUP(CG281,'Footnotes list'!$D$9:$E$58,2,FALSE) ) )","v":""},null,null,null,null,{"$f":"IF(TRIM(CL281)=\"\", \"\", IF(VLOOKUP(CL281,'Footnotes list'!$D$9:$E$58,2,FALSE)=0,\"\",VLOOKUP(CL281,'Footnotes list'!$D$9:$E$58,2,FALSE) ) )","v":""},null,null,null,null,{"$f":"IF(TRIM(CQ281)=\"\", \"\", IF(VLOOKUP(CQ281,'Footnotes list'!$D$9:$E$58,2,FALSE)=0,\"\",VLOOKUP(CQ281,'Footnotes list'!$D$9:$E$58,2,FALSE) ) )","v":""},null,null,null,null,{"$f":"IF(TRIM(CV281)=\"\", \"\", IF(VLOOKUP(CV281,'Footnotes list'!$D$9:$E$58,2,FALSE)=0,\"\",VLOOKUP(CV281,'Footnotes list'!$D$9:$E$58,2,FALSE) ) )","v":""},null,null,null,null,{"$f":"IF(TRIM(DA281)=\"\", \"\", IF(VLOOKUP(DA281,'Footnotes list'!$D$9:$E$58,2,FALSE)=0,\"\",VLOOKUP(DA281,'Footnotes list'!$D$9:$E$58,2,FALSE) ) )","v":""},null,null,null,null,{"$f":"IF(TRIM(DF281)=\"\", \"\", IF(VLOOKUP(DF281,'Footnotes list'!$D$9:$E$58,2,FALSE)=0,\"\",VLOOKUP(DF281,'Footnotes list'!$D$9:$E$58,2,FALSE) ) )","v":""},null,null,null,null,{"$f":"IF(TRIM(DK281)=\"\", \"\", IF(VLOOKUP(DK281,'Footnotes list'!$D$9:$E$58,2,FALSE)=0,\"\",VLOOKUP(DK281,'Footnotes list'!$D$9:$E$58,2,FALSE) ) )","v":""},null,null,null,null,{"$f":"IF(TRIM(DP281)=\"\", \"\", IF(VLOOKUP(DP281,'Footnotes list'!$D$9:$E$58,2,FALSE)=0,\"\",VLOOKUP(DP281,'Footnotes list'!$D$9:$E$58,2,FALSE) ) )","v":""},null,null,null,null,{"$f":"IF(TRIM(DU281)=\"\", \"\", IF(VLOOKUP(DU281,'Footnotes list'!$D$9:$E$58,2,FALSE)=0,\"\",VLOOKUP(DU281,'Footnotes list'!$D$9:$E$58,2,FALSE) ) )","v":""},null,null,null,null,{"$f":"IF(TRIM(DZ281)=\"\", \"\", IF(VLOOKUP(DZ281,'Footnotes list'!$D$9:$E$58,2,FALSE)=0,\"\",VLOOKUP(DZ281,'Footnotes list'!$D$9:$E$58,2,FALSE) ) )","v":""},null,null,null,null,{"$f":"IF(TRIM(EE281)=\"\", \"\", IF(VLOOKUP(EE281,'Footnotes list'!$D$9:$E$58,2,FALSE)=0,\"\",VLOOKUP(EE281,'Footnotes list'!$D$9:$E$58,2,FALSE) ) )","v":""},null,null,null,null,{"$f":"IF(TRIM(EJ281)=\"\", \"\", IF(VLOOKUP(EJ281,'Footnotes list'!$D$9:$E$58,2,FALSE)=0,\"\",VLOOKUP(EJ281,'Footnotes list'!$D$9:$E$58,2,FALSE) ) )","v":""},null,null,null,null,{"$f":"IF(TRIM(EO281)=\"\", \"\", IF(VLOOKUP(EO281,'Footnotes list'!$D$9:$E$58,2,FALSE)=0,\"\",VLOOKUP(EO281,'Footnotes list'!$D$9:$E$58,2,FALSE) ) )","v":""},null,null,null,null,{"$f":"IF(TRIM(ET281)=\"\", \"\", IF(VLOOKUP(ET281,'Footnotes list'!$D$9:$E$58,2,FALSE)=0,\"\",VLOOKUP(ET281,'Footnotes list'!$D$9:$E$58,2,FALSE) ) )","v":""},null,null,null,null,{"$f":"IF(TRIM(EY281)=\"\", \"\", IF(VLOOKUP(EY281,'Footnotes list'!$D$9:$E$58,2,FALSE)=0,\"\",VLOOKUP(EY281,'Footnotes list'!$D$9:$E$58,2,FALSE) ) )","v":""}]
[null,null,"R","ANC","ancillary activities",null,null,null,null,null,{"$f":"IF(TRIM(J282)=\"\", \"\", IF(VLOOKUP(J282,'Footnotes list'!$D$9:$E$58,2,FALSE)=0,\"\",VLOOKUP(J282,'Footnotes list'!$D$9:$E$58,2,FALSE) ) )","v":""},null,null,null,null,{"$f":"IF(TRIM(O282)=\"\", \"\", IF(VLOOKUP(O282,'Footnotes list'!$D$9:$E$58,2,FALSE)=0,\"\",VLOOKUP(O282,'Footnotes list'!$D$9:$E$58,2,FALSE) ) )","v":""},null,null,null,null,{"$f":"IF(TRIM(T282)=\"\", \"\", IF(VLOOKUP(T282,'Footnotes list'!$D$9:$E$58,2,FALSE)=0,\"\",VLOOKUP(T282,'Footnotes list'!$D$9:$E$58,2,FALSE) ) )","v":""},null,null,null,null,{"$f":"IF(TRIM(Y282)=\"\", \"\", IF(VLOOKUP(Y282,'Footnotes list'!$D$9:$E$58,2,FALSE)=0,\"\",VLOOKUP(Y282,'Footnotes list'!$D$9:$E$58,2,FALSE) ) )","v":""},null,null,null,null,{"$f":"IF(TRIM(AD282)=\"\", \"\", IF(VLOOKUP(AD282,'Footnotes list'!$D$9:$E$58,2,FALSE)=0,\"\",VLOOKUP(AD282,'Footnotes list'!$D$9:$E$58,2,FALSE) ) )","v":""},null,null,null,null,{"$f":"IF(TRIM(AI282)=\"\", \"\", IF(VLOOKUP(AI282,'Footnotes list'!$D$9:$E$58,2,FALSE)=0,\"\",VLOOKUP(AI282,'Footnotes list'!$D$9:$E$58,2,FALSE) ) )","v":""},null,null,null,null,{"$f":"IF(TRIM(AN282)=\"\", \"\", IF(VLOOKUP(AN282,'Footnotes list'!$D$9:$E$58,2,FALSE)=0,\"\",VLOOKUP(AN282,'Footnotes list'!$D$9:$E$58,2,FALSE) ) )","v":""},null,null,null,null,{"$f":"IF(TRIM(AS282)=\"\", \"\", IF(VLOOKUP(AS282,'Footnotes list'!$D$9:$E$58,2,FALSE)=0,\"\",VLOOKUP(AS282,'Footnotes list'!$D$9:$E$58,2,FALSE) ) )","v":""},null,null,null,null,{"$f":"IF(TRIM(AX282)=\"\", \"\", IF(VLOOKUP(AX282,'Footnotes list'!$D$9:$E$58,2,FALSE)=0,\"\",VLOOKUP(AX282,'Footnotes list'!$D$9:$E$58,2,FALSE) ) )","v":""},null,null,null,null,{"$f":"IF(TRIM(BC282)=\"\", \"\", IF(VLOOKUP(BC282,'Footnotes list'!$D$9:$E$58,2,FALSE)=0,\"\",VLOOKUP(BC282,'Footnotes list'!$D$9:$E$58,2,FALSE) ) )","v":""},null,null,null,null,{"$f":"IF(TRIM(BH282)=\"\", \"\", IF(VLOOKUP(BH282,'Footnotes list'!$D$9:$E$58,2,FALSE)=0,\"\",VLOOKUP(BH282,'Footnotes list'!$D$9:$E$58,2,FALSE) ) )","v":""},null,null,null,null,{"$f":"IF(TRIM(BM282)=\"\", \"\", IF(VLOOKUP(BM282,'Footnotes list'!$D$9:$E$58,2,FALSE)=0,\"\",VLOOKUP(BM282,'Footnotes list'!$D$9:$E$58,2,FALSE) ) )","v":""},null,null,null,null,{"$f":"IF(TRIM(BR282)=\"\", \"\", IF(VLOOKUP(BR282,'Footnotes list'!$D$9:$E$58,2,FALSE)=0,\"\",VLOOKUP(BR282,'Footnotes list'!$D$9:$E$58,2,FALSE) ) )","v":""},null,null,null,null,{"$f":"IF(TRIM(BW282)=\"\", \"\", IF(VLOOKUP(BW282,'Footnotes list'!$D$9:$E$58,2,FALSE)=0,\"\",VLOOKUP(BW282,'Footnotes list'!$D$9:$E$58,2,FALSE) ) )","v":""},null,null,null,null,{"$f":"IF(TRIM(CB282)=\"\", \"\", IF(VLOOKUP(CB282,'Footnotes list'!$D$9:$E$58,2,FALSE)=0,\"\",VLOOKUP(CB282,'Footnotes list'!$D$9:$E$58,2,FALSE) ) )","v":""},null,null,null,null,{"$f":"IF(TRIM(CG282)=\"\", \"\", IF(VLOOKUP(CG282,'Footnotes list'!$D$9:$E$58,2,FALSE)=0,\"\",VLOOKUP(CG282,'Footnotes list'!$D$9:$E$58,2,FALSE) ) )","v":""},null,null,null,null,{"$f":"IF(TRIM(CL282)=\"\", \"\", IF(VLOOKUP(CL282,'Footnotes list'!$D$9:$E$58,2,FALSE)=0,\"\",VLOOKUP(CL282,'Footnotes list'!$D$9:$E$58,2,FALSE) ) )","v":""},null,null,null,null,{"$f":"IF(TRIM(CQ282)=\"\", \"\", IF(VLOOKUP(CQ282,'Footnotes list'!$D$9:$E$58,2,FALSE)=0,\"\",VLOOKUP(CQ282,'Footnotes list'!$D$9:$E$58,2,FALSE) ) )","v":""},null,null,null,null,{"$f":"IF(TRIM(CV282)=\"\", \"\", IF(VLOOKUP(CV282,'Footnotes list'!$D$9:$E$58,2,FALSE)=0,\"\",VLOOKUP(CV282,'Footnotes list'!$D$9:$E$58,2,FALSE) ) )","v":""},null,null,null,null,{"$f":"IF(TRIM(DA282)=\"\", \"\", IF(VLOOKUP(DA282,'Footnotes list'!$D$9:$E$58,2,FALSE)=0,\"\",VLOOKUP(DA282,'Footnotes list'!$D$9:$E$58,2,FALSE) ) )","v":""},null,null,null,null,{"$f":"IF(TRIM(DF282)=\"\", \"\", IF(VLOOKUP(DF282,'Footnotes list'!$D$9:$E$58,2,FALSE)=0,\"\",VLOOKUP(DF282,'Footnotes list'!$D$9:$E$58,2,FALSE) ) )","v":""},null,null,null,null,{"$f":"IF(TRIM(DK282)=\"\", \"\", IF(VLOOKUP(DK282,'Footnotes list'!$D$9:$E$58,2,FALSE)=0,\"\",VLOOKUP(DK282,'Footnotes list'!$D$9:$E$58,2,FALSE) ) )","v":""},null,null,null,null,{"$f":"IF(TRIM(DP282)=\"\", \"\", IF(VLOOKUP(DP282,'Footnotes list'!$D$9:$E$58,2,FALSE)=0,\"\",VLOOKUP(DP282,'Footnotes list'!$D$9:$E$58,2,FALSE) ) )","v":""},null,null,null,null,{"$f":"IF(TRIM(DU282)=\"\", \"\", IF(VLOOKUP(DU282,'Footnotes list'!$D$9:$E$58,2,FALSE)=0,\"\",VLOOKUP(DU282,'Footnotes list'!$D$9:$E$58,2,FALSE) ) )","v":""},null,null,null,null,{"$f":"IF(TRIM(DZ282)=\"\", \"\", IF(VLOOKUP(DZ282,'Footnotes list'!$D$9:$E$58,2,FALSE)=0,\"\",VLOOKUP(DZ282,'Footnotes list'!$D$9:$E$58,2,FALSE) ) )","v":""},null,null,null,null,{"$f":"IF(TRIM(EE282)=\"\", \"\", IF(VLOOKUP(EE282,'Footnotes list'!$D$9:$E$58,2,FALSE)=0,\"\",VLOOKUP(EE282,'Footnotes list'!$D$9:$E$58,2,FALSE) ) )","v":""},null,null,null,null,{"$f":"IF(TRIM(EJ282)=\"\", \"\", IF(VLOOKUP(EJ282,'Footnotes list'!$D$9:$E$58,2,FALSE)=0,\"\",VLOOKUP(EJ282,'Footnotes list'!$D$9:$E$58,2,FALSE) ) )","v":""},null,null,null,null,{"$f":"IF(TRIM(EO282)=\"\", \"\", IF(VLOOKUP(EO282,'Footnotes list'!$D$9:$E$58,2,FALSE)=0,\"\",VLOOKUP(EO282,'Footnotes list'!$D$9:$E$58,2,FALSE) ) )","v":""},null,null,null,null,{"$f":"IF(TRIM(ET282)=\"\", \"\", IF(VLOOKUP(ET282,'Footnotes list'!$D$9:$E$58,2,FALSE)=0,\"\",VLOOKUP(ET282,'Footnotes list'!$D$9:$E$58,2,FALSE) ) )","v":""},null,null,null,null,{"$f":"IF(TRIM(EY282)=\"\", \"\", IF(VLOOKUP(EY282,'Footnotes list'!$D$9:$E$58,2,FALSE)=0,\"\",VLOOKUP(EY282,'Footnotes list'!$D$9:$E$58,2,FALSE) ) )","v":""}]
[null,null,"R","NMKT","non-market activities",null,null,null,null,null,{"$f":"IF(TRIM(J283)=\"\", \"\", IF(VLOOKUP(J283,'Footnotes list'!$D$9:$E$58,2,FALSE)=0,\"\",VLOOKUP(J283,'Footnotes list'!$D$9:$E$58,2,FALSE) ) )","v":""},null,null,null,null,{"$f":"IF(TRIM(O283)=\"\", \"\", IF(VLOOKUP(O283,'Footnotes list'!$D$9:$E$58,2,FALSE)=0,\"\",VLOOKUP(O283,'Footnotes list'!$D$9:$E$58,2,FALSE) ) )","v":""},null,null,null,null,{"$f":"IF(TRIM(T283)=\"\", \"\", IF(VLOOKUP(T283,'Footnotes list'!$D$9:$E$58,2,FALSE)=0,\"\",VLOOKUP(T283,'Footnotes list'!$D$9:$E$58,2,FALSE) ) )","v":""},null,null,null,null,{"$f":"IF(TRIM(Y283)=\"\", \"\", IF(VLOOKUP(Y283,'Footnotes list'!$D$9:$E$58,2,FALSE)=0,\"\",VLOOKUP(Y283,'Footnotes list'!$D$9:$E$58,2,FALSE) ) )","v":""},null,null,null,null,{"$f":"IF(TRIM(AD283)=\"\", \"\", IF(VLOOKUP(AD283,'Footnotes list'!$D$9:$E$58,2,FALSE)=0,\"\",VLOOKUP(AD283,'Footnotes list'!$D$9:$E$58,2,FALSE) ) )","v":""},null,null,null,null,{"$f":"IF(TRIM(AI283)=\"\", \"\", IF(VLOOKUP(AI283,'Footnotes list'!$D$9:$E$58,2,FALSE)=0,\"\",VLOOKUP(AI283,'Footnotes list'!$D$9:$E$58,2,FALSE) ) )","v":""},null,null,null,null,{"$f":"IF(TRIM(AN283)=\"\", \"\", IF(VLOOKUP(AN283,'Footnotes list'!$D$9:$E$58,2,FALSE)=0,\"\",VLOOKUP(AN283,'Footnotes list'!$D$9:$E$58,2,FALSE) ) )","v":""},null,null,null,null,{"$f":"IF(TRIM(AS283)=\"\", \"\", IF(VLOOKUP(AS283,'Footnotes list'!$D$9:$E$58,2,FALSE)=0,\"\",VLOOKUP(AS283,'Footnotes list'!$D$9:$E$58,2,FALSE) ) )","v":""},null,null,null,null,{"$f":"IF(TRIM(AX283)=\"\", \"\", IF(VLOOKUP(AX283,'Footnotes list'!$D$9:$E$58,2,FALSE)=0,\"\",VLOOKUP(AX283,'Footnotes list'!$D$9:$E$58,2,FALSE) ) )","v":""},null,null,null,null,{"$f":"IF(TRIM(BC283)=\"\", \"\", IF(VLOOKUP(BC283,'Footnotes list'!$D$9:$E$58,2,FALSE)=0,\"\",VLOOKUP(BC283,'Footnotes list'!$D$9:$E$58,2,FALSE) ) )","v":""},null,null,null,null,{"$f":"IF(TRIM(BH283)=\"\", \"\", IF(VLOOKUP(BH283,'Footnotes list'!$D$9:$E$58,2,FALSE)=0,\"\",VLOOKUP(BH283,'Footnotes list'!$D$9:$E$58,2,FALSE) ) )","v":""},null,null,null,null,{"$f":"IF(TRIM(BM283)=\"\", \"\", IF(VLOOKUP(BM283,'Footnotes list'!$D$9:$E$58,2,FALSE)=0,\"\",VLOOKUP(BM283,'Footnotes list'!$D$9:$E$58,2,FALSE) ) )","v":""},null,null,null,null,{"$f":"IF(TRIM(BR283)=\"\", \"\", IF(VLOOKUP(BR283,'Footnotes list'!$D$9:$E$58,2,FALSE)=0,\"\",VLOOKUP(BR283,'Footnotes list'!$D$9:$E$58,2,FALSE) ) )","v":""},null,null,null,null,{"$f":"IF(TRIM(BW283)=\"\", \"\", IF(VLOOKUP(BW283,'Footnotes list'!$D$9:$E$58,2,FALSE)=0,\"\",VLOOKUP(BW283,'Footnotes list'!$D$9:$E$58,2,FALSE) ) )","v":""},null,null,null,null,{"$f":"IF(TRIM(CB283)=\"\", \"\", IF(VLOOKUP(CB283,'Footnotes list'!$D$9:$E$58,2,FALSE)=0,\"\",VLOOKUP(CB283,'Footnotes list'!$D$9:$E$58,2,FALSE) ) )","v":""},null,null,null,null,{"$f":"IF(TRIM(CG283)=\"\", \"\", IF(VLOOKUP(CG283,'Footnotes list'!$D$9:$E$58,2,FALSE)=0,\"\",VLOOKUP(CG283,'Footnotes list'!$D$9:$E$58,2,FALSE) ) )","v":""},null,null,null,null,{"$f":"IF(TRIM(CL283)=\"\", \"\", IF(VLOOKUP(CL283,'Footnotes list'!$D$9:$E$58,2,FALSE)=0,\"\",VLOOKUP(CL283,'Footnotes list'!$D$9:$E$58,2,FALSE) ) )","v":""},null,null,null,null,{"$f":"IF(TRIM(CQ283)=\"\", \"\", IF(VLOOKUP(CQ283,'Footnotes list'!$D$9:$E$58,2,FALSE)=0,\"\",VLOOKUP(CQ283,'Footnotes list'!$D$9:$E$58,2,FALSE) ) )","v":""},null,null,null,null,{"$f":"IF(TRIM(CV283)=\"\", \"\", IF(VLOOKUP(CV283,'Footnotes list'!$D$9:$E$58,2,FALSE)=0,\"\",VLOOKUP(CV283,'Footnotes list'!$D$9:$E$58,2,FALSE) ) )","v":""},null,null,null,null,{"$f":"IF(TRIM(DA283)=\"\", \"\", IF(VLOOKUP(DA283,'Footnotes list'!$D$9:$E$58,2,FALSE)=0,\"\",VLOOKUP(DA283,'Footnotes list'!$D$9:$E$58,2,FALSE) ) )","v":""},null,null,null,null,{"$f":"IF(TRIM(DF283)=\"\", \"\", IF(VLOOKUP(DF283,'Footnotes list'!$D$9:$E$58,2,FALSE)=0,\"\",VLOOKUP(DF283,'Footnotes list'!$D$9:$E$58,2,FALSE) ) )","v":""},null,null,null,null,{"$f":"IF(TRIM(DK283)=\"\", \"\", IF(VLOOKUP(DK283,'Footnotes list'!$D$9:$E$58,2,FALSE)=0,\"\",VLOOKUP(DK283,'Footnotes list'!$D$9:$E$58,2,FALSE) ) )","v":""},null,null,null,null,{"$f":"IF(TRIM(DP283)=\"\", \"\", IF(VLOOKUP(DP283,'Footnotes list'!$D$9:$E$58,2,FALSE)=0,\"\",VLOOKUP(DP283,'Footnotes list'!$D$9:$E$58,2,FALSE) ) )","v":""},null,null,null,null,{"$f":"IF(TRIM(DU283)=\"\", \"\", IF(VLOOKUP(DU283,'Footnotes list'!$D$9:$E$58,2,FALSE)=0,\"\",VLOOKUP(DU283,'Footnotes list'!$D$9:$E$58,2,FALSE) ) )","v":""},null,null,null,null,{"$f":"IF(TRIM(DZ283)=\"\", \"\", IF(VLOOKUP(DZ283,'Footnotes list'!$D$9:$E$58,2,FALSE)=0,\"\",VLOOKUP(DZ283,'Footnotes list'!$D$9:$E$58,2,FALSE) ) )","v":""},null,null,null,null,{"$f":"IF(TRIM(EE283)=\"\", \"\", IF(VLOOKUP(EE283,'Footnotes list'!$D$9:$E$58,2,FALSE)=0,\"\",VLOOKUP(EE283,'Footnotes list'!$D$9:$E$58,2,FALSE) ) )","v":""},null,null,null,null,{"$f":"IF(TRIM(EJ283)=\"\", \"\", IF(VLOOKUP(EJ283,'Footnotes list'!$D$9:$E$58,2,FALSE)=0,\"\",VLOOKUP(EJ283,'Footnotes list'!$D$9:$E$58,2,FALSE) ) )","v":""},null,null,null,null,{"$f":"IF(TRIM(EO283)=\"\", \"\", IF(VLOOKUP(EO283,'Footnotes list'!$D$9:$E$58,2,FALSE)=0,\"\",VLOOKUP(EO283,'Footnotes list'!$D$9:$E$58,2,FALSE) ) )","v":""},null,null,null,null,{"$f":"IF(TRIM(ET283)=\"\", \"\", IF(VLOOKUP(ET283,'Footnotes list'!$D$9:$E$58,2,FALSE)=0,\"\",VLOOKUP(ET283,'Footnotes list'!$D$9:$E$58,2,FALSE) ) )","v":""},null,null,null,null,{"$f":"IF(TRIM(EY283)=\"\", \"\", IF(VLOOKUP(EY283,'Footnotes list'!$D$9:$E$58,2,FALSE)=0,\"\",VLOOKUP(EY283,'Footnotes list'!$D$9:$E$58,2,FALSE) ) )","v":""}]
[null,null,"R","OWN_USE","activities for own final use",null,null,null,null,null,{"$f":"IF(TRIM(J284)=\"\", \"\", IF(VLOOKUP(J284,'Footnotes list'!$D$9:$E$58,2,FALSE)=0,\"\",VLOOKUP(J284,'Footnotes list'!$D$9:$E$58,2,FALSE) ) )","v":""},null,null,null,null,{"$f":"IF(TRIM(O284)=\"\", \"\", IF(VLOOKUP(O284,'Footnotes list'!$D$9:$E$58,2,FALSE)=0,\"\",VLOOKUP(O284,'Footnotes list'!$D$9:$E$58,2,FALSE) ) )","v":""},null,null,null,null,{"$f":"IF(TRIM(T284)=\"\", \"\", IF(VLOOKUP(T284,'Footnotes list'!$D$9:$E$58,2,FALSE)=0,\"\",VLOOKUP(T284,'Footnotes list'!$D$9:$E$58,2,FALSE) ) )","v":""},null,null,null,null,{"$f":"IF(TRIM(Y284)=\"\", \"\", IF(VLOOKUP(Y284,'Footnotes list'!$D$9:$E$58,2,FALSE)=0,\"\",VLOOKUP(Y284,'Footnotes list'!$D$9:$E$58,2,FALSE) ) )","v":""},null,null,null,null,{"$f":"IF(TRIM(AD284)=\"\", \"\", IF(VLOOKUP(AD284,'Footnotes list'!$D$9:$E$58,2,FALSE)=0,\"\",VLOOKUP(AD284,'Footnotes list'!$D$9:$E$58,2,FALSE) ) )","v":""},null,null,null,null,{"$f":"IF(TRIM(AI284)=\"\", \"\", IF(VLOOKUP(AI284,'Footnotes list'!$D$9:$E$58,2,FALSE)=0,\"\",VLOOKUP(AI284,'Footnotes list'!$D$9:$E$58,2,FALSE) ) )","v":""},null,null,null,null,{"$f":"IF(TRIM(AN284)=\"\", \"\", IF(VLOOKUP(AN284,'Footnotes list'!$D$9:$E$58,2,FALSE)=0,\"\",VLOOKUP(AN284,'Footnotes list'!$D$9:$E$58,2,FALSE) ) )","v":""},null,null,null,null,{"$f":"IF(TRIM(AS284)=\"\", \"\", IF(VLOOKUP(AS284,'Footnotes list'!$D$9:$E$58,2,FALSE)=0,\"\",VLOOKUP(AS284,'Footnotes list'!$D$9:$E$58,2,FALSE) ) )","v":""},null,null,null,null,{"$f":"IF(TRIM(AX284)=\"\", \"\", IF(VLOOKUP(AX284,'Footnotes list'!$D$9:$E$58,2,FALSE)=0,\"\",VLOOKUP(AX284,'Footnotes list'!$D$9:$E$58,2,FALSE) ) )","v":""},null,null,null,null,{"$f":"IF(TRIM(BC284)=\"\", \"\", IF(VLOOKUP(BC284,'Footnotes list'!$D$9:$E$58,2,FALSE)=0,\"\",VLOOKUP(BC284,'Footnotes list'!$D$9:$E$58,2,FALSE) ) )","v":""},null,null,null,null,{"$f":"IF(TRIM(BH284)=\"\", \"\", IF(VLOOKUP(BH284,'Footnotes list'!$D$9:$E$58,2,FALSE)=0,\"\",VLOOKUP(BH284,'Footnotes list'!$D$9:$E$58,2,FALSE) ) )","v":""},null,null,null,null,{"$f":"IF(TRIM(BM284)=\"\", \"\", IF(VLOOKUP(BM284,'Footnotes list'!$D$9:$E$58,2,FALSE)=0,\"\",VLOOKUP(BM284,'Footnotes list'!$D$9:$E$58,2,FALSE) ) )","v":""},null,null,null,null,{"$f":"IF(TRIM(BR284)=\"\", \"\", IF(VLOOKUP(BR284,'Footnotes list'!$D$9:$E$58,2,FALSE)=0,\"\",VLOOKUP(BR284,'Footnotes list'!$D$9:$E$58,2,FALSE) ) )","v":""},null,null,null,null,{"$f":"IF(TRIM(BW284)=\"\", \"\", IF(VLOOKUP(BW284,'Footnotes list'!$D$9:$E$58,2,FALSE)=0,\"\",VLOOKUP(BW284,'Footnotes list'!$D$9:$E$58,2,FALSE) ) )","v":""},null,null,null,null,{"$f":"IF(TRIM(CB284)=\"\", \"\", IF(VLOOKUP(CB284,'Footnotes list'!$D$9:$E$58,2,FALSE)=0,\"\",VLOOKUP(CB284,'Footnotes list'!$D$9:$E$58,2,FALSE) ) )","v":""},null,null,null,null,{"$f":"IF(TRIM(CG284)=\"\", \"\", IF(VLOOKUP(CG284,'Footnotes list'!$D$9:$E$58,2,FALSE)=0,\"\",VLOOKUP(CG284,'Footnotes list'!$D$9:$E$58,2,FALSE) ) )","v":""},null,null,null,null,{"$f":"IF(TRIM(CL284)=\"\", \"\", IF(VLOOKUP(CL284,'Footnotes list'!$D$9:$E$58,2,FALSE)=0,\"\",VLOOKUP(CL284,'Footnotes list'!$D$9:$E$58,2,FALSE) ) )","v":""},null,null,null,null,{"$f":"IF(TRIM(CQ284)=\"\", \"\", IF(VLOOKUP(CQ284,'Footnotes list'!$D$9:$E$58,2,FALSE)=0,\"\",VLOOKUP(CQ284,'Footnotes list'!$D$9:$E$58,2,FALSE) ) )","v":""},null,null,null,null,{"$f":"IF(TRIM(CV284)=\"\", \"\", IF(VLOOKUP(CV284,'Footnotes list'!$D$9:$E$58,2,FALSE)=0,\"\",VLOOKUP(CV284,'Footnotes list'!$D$9:$E$58,2,FALSE) ) )","v":""},null,null,null,null,{"$f":"IF(TRIM(DA284)=\"\", \"\", IF(VLOOKUP(DA284,'Footnotes list'!$D$9:$E$58,2,FALSE)=0,\"\",VLOOKUP(DA284,'Footnotes list'!$D$9:$E$58,2,FALSE) ) )","v":""},null,null,null,null,{"$f":"IF(TRIM(DF284)=\"\", \"\", IF(VLOOKUP(DF284,'Footnotes list'!$D$9:$E$58,2,FALSE)=0,\"\",VLOOKUP(DF284,'Footnotes list'!$D$9:$E$58,2,FALSE) ) )","v":""},null,null,null,null,{"$f":"IF(TRIM(DK284)=\"\", \"\", IF(VLOOKUP(DK284,'Footnotes list'!$D$9:$E$58,2,FALSE)=0,\"\",VLOOKUP(DK284,'Footnotes list'!$D$9:$E$58,2,FALSE) ) )","v":""},null,null,null,null,{"$f":"IF(TRIM(DP284)=\"\", \"\", IF(VLOOKUP(DP284,'Footnotes list'!$D$9:$E$58,2,FALSE)=0,\"\",VLOOKUP(DP284,'Footnotes list'!$D$9:$E$58,2,FALSE) ) )","v":""},null,null,null,null,{"$f":"IF(TRIM(DU284)=\"\", \"\", IF(VLOOKUP(DU284,'Footnotes list'!$D$9:$E$58,2,FALSE)=0,\"\",VLOOKUP(DU284,'Footnotes list'!$D$9:$E$58,2,FALSE) ) )","v":""},null,null,null,null,{"$f":"IF(TRIM(DZ284)=\"\", \"\", IF(VLOOKUP(DZ284,'Footnotes list'!$D$9:$E$58,2,FALSE)=0,\"\",VLOOKUP(DZ284,'Footnotes list'!$D$9:$E$58,2,FALSE) ) )","v":""},null,null,null,null,{"$f":"IF(TRIM(EE284)=\"\", \"\", IF(VLOOKUP(EE284,'Footnotes list'!$D$9:$E$58,2,FALSE)=0,\"\",VLOOKUP(EE284,'Footnotes list'!$D$9:$E$58,2,FALSE) ) )","v":""},null,null,null,null,{"$f":"IF(TRIM(EJ284)=\"\", \"\", IF(VLOOKUP(EJ284,'Footnotes list'!$D$9:$E$58,2,FALSE)=0,\"\",VLOOKUP(EJ284,'Footnotes list'!$D$9:$E$58,2,FALSE) ) )","v":""},null,null,null,null,{"$f":"IF(TRIM(EO284)=\"\", \"\", IF(VLOOKUP(EO284,'Footnotes list'!$D$9:$E$58,2,FALSE)=0,\"\",VLOOKUP(EO284,'Footnotes list'!$D$9:$E$58,2,FALSE) ) )","v":""},null,null,null,null,{"$f":"IF(TRIM(ET284)=\"\", \"\", IF(VLOOKUP(ET284,'Footnotes list'!$D$9:$E$58,2,FALSE)=0,\"\",VLOOKUP(ET284,'Footnotes list'!$D$9:$E$58,2,FALSE) ) )","v":""},null,null,null,null,{"$f":"IF(TRIM(EY284)=\"\", \"\", IF(VLOOKUP(EY284,'Footnotes list'!$D$9:$E$58,2,FALSE)=0,\"\",VLOOKUP(EY284,'Footnotes list'!$D$9:$E$58,2,FALSE) ) )","v":""}]
[null,null,"R","MKT","market activities, including:",null,null,null,null,null,{"$f":"IF(TRIM(J285)=\"\", \"\", IF(VLOOKUP(J285,'Footnotes list'!$D$9:$E$58,2,FALSE)=0,\"\",VLOOKUP(J285,'Footnotes list'!$D$9:$E$58,2,FALSE) ) )","v":""},null,null,null,null,{"$f":"IF(TRIM(O285)=\"\", \"\", IF(VLOOKUP(O285,'Footnotes list'!$D$9:$E$58,2,FALSE)=0,\"\",VLOOKUP(O285,'Footnotes list'!$D$9:$E$58,2,FALSE) ) )","v":""},null,null,null,null,{"$f":"IF(TRIM(T285)=\"\", \"\", IF(VLOOKUP(T285,'Footnotes list'!$D$9:$E$58,2,FALSE)=0,\"\",VLOOKUP(T285,'Footnotes list'!$D$9:$E$58,2,FALSE) ) )","v":""},null,null,null,null,{"$f":"IF(TRIM(Y285)=\"\", \"\", IF(VLOOKUP(Y285,'Footnotes list'!$D$9:$E$58,2,FALSE)=0,\"\",VLOOKUP(Y285,'Footnotes list'!$D$9:$E$58,2,FALSE) ) )","v":""},null,null,null,null,{"$f":"IF(TRIM(AD285)=\"\", \"\", IF(VLOOKUP(AD285,'Footnotes list'!$D$9:$E$58,2,FALSE)=0,\"\",VLOOKUP(AD285,'Footnotes list'!$D$9:$E$58,2,FALSE) ) )","v":""},null,null,null,null,{"$f":"IF(TRIM(AI285)=\"\", \"\", IF(VLOOKUP(AI285,'Footnotes list'!$D$9:$E$58,2,FALSE)=0,\"\",VLOOKUP(AI285,'Footnotes list'!$D$9:$E$58,2,FALSE) ) )","v":""},null,null,null,null,{"$f":"IF(TRIM(AN285)=\"\", \"\", IF(VLOOKUP(AN285,'Footnotes list'!$D$9:$E$58,2,FALSE)=0,\"\",VLOOKUP(AN285,'Footnotes list'!$D$9:$E$58,2,FALSE) ) )","v":""},null,null,null,null,{"$f":"IF(TRIM(AS285)=\"\", \"\", IF(VLOOKUP(AS285,'Footnotes list'!$D$9:$E$58,2,FALSE)=0,\"\",VLOOKUP(AS285,'Footnotes list'!$D$9:$E$58,2,FALSE) ) )","v":""},null,null,null,null,{"$f":"IF(TRIM(AX285)=\"\", \"\", IF(VLOOKUP(AX285,'Footnotes list'!$D$9:$E$58,2,FALSE)=0,\"\",VLOOKUP(AX285,'Footnotes list'!$D$9:$E$58,2,FALSE) ) )","v":""},null,null,null,null,{"$f":"IF(TRIM(BC285)=\"\", \"\", IF(VLOOKUP(BC285,'Footnotes list'!$D$9:$E$58,2,FALSE)=0,\"\",VLOOKUP(BC285,'Footnotes list'!$D$9:$E$58,2,FALSE) ) )","v":""},null,null,null,null,{"$f":"IF(TRIM(BH285)=\"\", \"\", IF(VLOOKUP(BH285,'Footnotes list'!$D$9:$E$58,2,FALSE)=0,\"\",VLOOKUP(BH285,'Footnotes list'!$D$9:$E$58,2,FALSE) ) )","v":""},null,null,null,null,{"$f":"IF(TRIM(BM285)=\"\", \"\", IF(VLOOKUP(BM285,'Footnotes list'!$D$9:$E$58,2,FALSE)=0,\"\",VLOOKUP(BM285,'Footnotes list'!$D$9:$E$58,2,FALSE) ) )","v":""},null,null,null,null,{"$f":"IF(TRIM(BR285)=\"\", \"\", IF(VLOOKUP(BR285,'Footnotes list'!$D$9:$E$58,2,FALSE)=0,\"\",VLOOKUP(BR285,'Footnotes list'!$D$9:$E$58,2,FALSE) ) )","v":""},null,null,null,null,{"$f":"IF(TRIM(BW285)=\"\", \"\", IF(VLOOKUP(BW285,'Footnotes list'!$D$9:$E$58,2,FALSE)=0,\"\",VLOOKUP(BW285,'Footnotes list'!$D$9:$E$58,2,FALSE) ) )","v":""},null,null,null,null,{"$f":"IF(TRIM(CB285)=\"\", \"\", IF(VLOOKUP(CB285,'Footnotes list'!$D$9:$E$58,2,FALSE)=0,\"\",VLOOKUP(CB285,'Footnotes list'!$D$9:$E$58,2,FALSE) ) )","v":""},null,null,null,null,{"$f":"IF(TRIM(CG285)=\"\", \"\", IF(VLOOKUP(CG285,'Footnotes list'!$D$9:$E$58,2,FALSE)=0,\"\",VLOOKUP(CG285,'Footnotes list'!$D$9:$E$58,2,FALSE) ) )","v":""},null,null,null,null,{"$f":"IF(TRIM(CL285)=\"\", \"\", IF(VLOOKUP(CL285,'Footnotes list'!$D$9:$E$58,2,FALSE)=0,\"\",VLOOKUP(CL285,'Footnotes list'!$D$9:$E$58,2,FALSE) ) )","v":""},null,null,null,null,{"$f":"IF(TRIM(CQ285)=\"\", \"\", IF(VLOOKUP(CQ285,'Footnotes list'!$D$9:$E$58,2,FALSE)=0,\"\",VLOOKUP(CQ285,'Footnotes list'!$D$9:$E$58,2,FALSE) ) )","v":""},null,null,null,null,{"$f":"IF(TRIM(CV285)=\"\", \"\", IF(VLOOKUP(CV285,'Footnotes list'!$D$9:$E$58,2,FALSE)=0,\"\",VLOOKUP(CV285,'Footnotes list'!$D$9:$E$58,2,FALSE) ) )","v":""},null,null,null,null,{"$f":"IF(TRIM(DA285)=\"\", \"\", IF(VLOOKUP(DA285,'Footnotes list'!$D$9:$E$58,2,FALSE)=0,\"\",VLOOKUP(DA285,'Footnotes list'!$D$9:$E$58,2,FALSE) ) )","v":""},null,null,null,null,{"$f":"IF(TRIM(DF285)=\"\", \"\", IF(VLOOKUP(DF285,'Footnotes list'!$D$9:$E$58,2,FALSE)=0,\"\",VLOOKUP(DF285,'Footnotes list'!$D$9:$E$58,2,FALSE) ) )","v":""},null,null,null,null,{"$f":"IF(TRIM(DK285)=\"\", \"\", IF(VLOOKUP(DK285,'Footnotes list'!$D$9:$E$58,2,FALSE)=0,\"\",VLOOKUP(DK285,'Footnotes list'!$D$9:$E$58,2,FALSE) ) )","v":""},null,null,null,null,{"$f":"IF(TRIM(DP285)=\"\", \"\", IF(VLOOKUP(DP285,'Footnotes list'!$D$9:$E$58,2,FALSE)=0,\"\",VLOOKUP(DP285,'Footnotes list'!$D$9:$E$58,2,FALSE) ) )","v":""},null,null,null,null,{"$f":"IF(TRIM(DU285)=\"\", \"\", IF(VLOOKUP(DU285,'Footnotes list'!$D$9:$E$58,2,FALSE)=0,\"\",VLOOKUP(DU285,'Footnotes list'!$D$9:$E$58,2,FALSE) ) )","v":""},null,null,null,null,{"$f":"IF(TRIM(DZ285)=\"\", \"\", IF(VLOOKUP(DZ285,'Footnotes list'!$D$9:$E$58,2,FALSE)=0,\"\",VLOOKUP(DZ285,'Footnotes list'!$D$9:$E$58,2,FALSE) ) )","v":""},null,null,null,null,{"$f":"IF(TRIM(EE285)=\"\", \"\", IF(VLOOKUP(EE285,'Footnotes list'!$D$9:$E$58,2,FALSE)=0,\"\",VLOOKUP(EE285,'Footnotes list'!$D$9:$E$58,2,FALSE) ) )","v":""},null,null,null,null,{"$f":"IF(TRIM(EJ285)=\"\", \"\", IF(VLOOKUP(EJ285,'Footnotes list'!$D$9:$E$58,2,FALSE)=0,\"\",VLOOKUP(EJ285,'Footnotes list'!$D$9:$E$58,2,FALSE) ) )","v":""},null,null,null,null,{"$f":"IF(TRIM(EO285)=\"\", \"\", IF(VLOOKUP(EO285,'Footnotes list'!$D$9:$E$58,2,FALSE)=0,\"\",VLOOKUP(EO285,'Footnotes list'!$D$9:$E$58,2,FALSE) ) )","v":""},null,null,null,null,{"$f":"IF(TRIM(ET285)=\"\", \"\", IF(VLOOKUP(ET285,'Footnotes list'!$D$9:$E$58,2,FALSE)=0,\"\",VLOOKUP(ET285,'Footnotes list'!$D$9:$E$58,2,FALSE) ) )","v":""},null,null,null,null,{"$f":"IF(TRIM(EY285)=\"\", \"\", IF(VLOOKUP(EY285,'Footnotes list'!$D$9:$E$58,2,FALSE)=0,\"\",VLOOKUP(EY285,'Footnotes list'!$D$9:$E$58,2,FALSE) ) )","v":""}]
[null,null,"R","ES_CS","environmental specific services",null,null,null,null,null,{"$f":"IF(TRIM(J286)=\"\", \"\", IF(VLOOKUP(J286,'Footnotes list'!$D$9:$E$58,2,FALSE)=0,\"\",VLOOKUP(J286,'Footnotes list'!$D$9:$E$58,2,FALSE) ) )","v":""},null,null,null,null,{"$f":"IF(TRIM(O286)=\"\", \"\", IF(VLOOKUP(O286,'Footnotes list'!$D$9:$E$58,2,FALSE)=0,\"\",VLOOKUP(O286,'Footnotes list'!$D$9:$E$58,2,FALSE) ) )","v":""},null,null,null,null,{"$f":"IF(TRIM(T286)=\"\", \"\", IF(VLOOKUP(T286,'Footnotes list'!$D$9:$E$58,2,FALSE)=0,\"\",VLOOKUP(T286,'Footnotes list'!$D$9:$E$58,2,FALSE) ) )","v":""},null,null,null,null,{"$f":"IF(TRIM(Y286)=\"\", \"\", IF(VLOOKUP(Y286,'Footnotes list'!$D$9:$E$58,2,FALSE)=0,\"\",VLOOKUP(Y286,'Footnotes list'!$D$9:$E$58,2,FALSE) ) )","v":""},null,null,null,null,{"$f":"IF(TRIM(AD286)=\"\", \"\", IF(VLOOKUP(AD286,'Footnotes list'!$D$9:$E$58,2,FALSE)=0,\"\",VLOOKUP(AD286,'Footnotes list'!$D$9:$E$58,2,FALSE) ) )","v":""},null,null,null,null,{"$f":"IF(TRIM(AI286)=\"\", \"\", IF(VLOOKUP(AI286,'Footnotes list'!$D$9:$E$58,2,FALSE)=0,\"\",VLOOKUP(AI286,'Footnotes list'!$D$9:$E$58,2,FALSE) ) )","v":""},null,null,null,null,{"$f":"IF(TRIM(AN286)=\"\", \"\", IF(VLOOKUP(AN286,'Footnotes list'!$D$9:$E$58,2,FALSE)=0,\"\",VLOOKUP(AN286,'Footnotes list'!$D$9:$E$58,2,FALSE) ) )","v":""},null,null,null,null,{"$f":"IF(TRIM(AS286)=\"\", \"\", IF(VLOOKUP(AS286,'Footnotes list'!$D$9:$E$58,2,FALSE)=0,\"\",VLOOKUP(AS286,'Footnotes list'!$D$9:$E$58,2,FALSE) ) )","v":""},null,null,null,null,{"$f":"IF(TRIM(AX286)=\"\", \"\", IF(VLOOKUP(AX286,'Footnotes list'!$D$9:$E$58,2,FALSE)=0,\"\",VLOOKUP(AX286,'Footnotes list'!$D$9:$E$58,2,FALSE) ) )","v":""},null,null,null,null,{"$f":"IF(TRIM(BC286)=\"\", \"\", IF(VLOOKUP(BC286,'Footnotes list'!$D$9:$E$58,2,FALSE)=0,\"\",VLOOKUP(BC286,'Footnotes list'!$D$9:$E$58,2,FALSE) ) )","v":""},null,null,null,null,{"$f":"IF(TRIM(BH286)=\"\", \"\", IF(VLOOKUP(BH286,'Footnotes list'!$D$9:$E$58,2,FALSE)=0,\"\",VLOOKUP(BH286,'Footnotes list'!$D$9:$E$58,2,FALSE) ) )","v":""},null,null,null,null,{"$f":"IF(TRIM(BM286)=\"\", \"\", IF(VLOOKUP(BM286,'Footnotes list'!$D$9:$E$58,2,FALSE)=0,\"\",VLOOKUP(BM286,'Footnotes list'!$D$9:$E$58,2,FALSE) ) )","v":""},null,null,null,null,{"$f":"IF(TRIM(BR286)=\"\", \"\", IF(VLOOKUP(BR286,'Footnotes list'!$D$9:$E$58,2,FALSE)=0,\"\",VLOOKUP(BR286,'Footnotes list'!$D$9:$E$58,2,FALSE) ) )","v":""},null,null,null,null,{"$f":"IF(TRIM(BW286)=\"\", \"\", IF(VLOOKUP(BW286,'Footnotes list'!$D$9:$E$58,2,FALSE)=0,\"\",VLOOKUP(BW286,'Footnotes list'!$D$9:$E$58,2,FALSE) ) )","v":""},null,null,null,null,{"$f":"IF(TRIM(CB286)=\"\", \"\", IF(VLOOKUP(CB286,'Footnotes list'!$D$9:$E$58,2,FALSE)=0,\"\",VLOOKUP(CB286,'Footnotes list'!$D$9:$E$58,2,FALSE) ) )","v":""},null,null,null,null,{"$f":"IF(TRIM(CG286)=\"\", \"\", IF(VLOOKUP(CG286,'Footnotes list'!$D$9:$E$58,2,FALSE)=0,\"\",VLOOKUP(CG286,'Footnotes list'!$D$9:$E$58,2,FALSE) ) )","v":""},null,null,null,null,{"$f":"IF(TRIM(CL286)=\"\", \"\", IF(VLOOKUP(CL286,'Footnotes list'!$D$9:$E$58,2,FALSE)=0,\"\",VLOOKUP(CL286,'Footnotes list'!$D$9:$E$58,2,FALSE) ) )","v":""},null,null,null,null,{"$f":"IF(TRIM(CQ286)=\"\", \"\", IF(VLOOKUP(CQ286,'Footnotes list'!$D$9:$E$58,2,FALSE)=0,\"\",VLOOKUP(CQ286,'Footnotes list'!$D$9:$E$58,2,FALSE) ) )","v":""},null,null,null,null,{"$f":"IF(TRIM(CV286)=\"\", \"\", IF(VLOOKUP(CV286,'Footnotes list'!$D$9:$E$58,2,FALSE)=0,\"\",VLOOKUP(CV286,'Footnotes list'!$D$9:$E$58,2,FALSE) ) )","v":""},null,null,null,null,{"$f":"IF(TRIM(DA286)=\"\", \"\", IF(VLOOKUP(DA286,'Footnotes list'!$D$9:$E$58,2,FALSE)=0,\"\",VLOOKUP(DA286,'Footnotes list'!$D$9:$E$58,2,FALSE) ) )","v":""},null,null,null,null,{"$f":"IF(TRIM(DF286)=\"\", \"\", IF(VLOOKUP(DF286,'Footnotes list'!$D$9:$E$58,2,FALSE)=0,\"\",VLOOKUP(DF286,'Footnotes list'!$D$9:$E$58,2,FALSE) ) )","v":""},null,null,null,null,{"$f":"IF(TRIM(DK286)=\"\", \"\", IF(VLOOKUP(DK286,'Footnotes list'!$D$9:$E$58,2,FALSE)=0,\"\",VLOOKUP(DK286,'Footnotes list'!$D$9:$E$58,2,FALSE) ) )","v":""},null,null,null,null,{"$f":"IF(TRIM(DP286)=\"\", \"\", IF(VLOOKUP(DP286,'Footnotes list'!$D$9:$E$58,2,FALSE)=0,\"\",VLOOKUP(DP286,'Footnotes list'!$D$9:$E$58,2,FALSE) ) )","v":""},null,null,null,null,{"$f":"IF(TRIM(DU286)=\"\", \"\", IF(VLOOKUP(DU286,'Footnotes list'!$D$9:$E$58,2,FALSE)=0,\"\",VLOOKUP(DU286,'Footnotes list'!$D$9:$E$58,2,FALSE) ) )","v":""},null,null,null,null,{"$f":"IF(TRIM(DZ286)=\"\", \"\", IF(VLOOKUP(DZ286,'Footnotes list'!$D$9:$E$58,2,FALSE)=0,\"\",VLOOKUP(DZ286,'Footnotes list'!$D$9:$E$58,2,FALSE) ) )","v":""},null,null,null,null,{"$f":"IF(TRIM(EE286)=\"\", \"\", IF(VLOOKUP(EE286,'Footnotes list'!$D$9:$E$58,2,FALSE)=0,\"\",VLOOKUP(EE286,'Footnotes list'!$D$9:$E$58,2,FALSE) ) )","v":""},null,null,null,null,{"$f":"IF(TRIM(EJ286)=\"\", \"\", IF(VLOOKUP(EJ286,'Footnotes list'!$D$9:$E$58,2,FALSE)=0,\"\",VLOOKUP(EJ286,'Footnotes list'!$D$9:$E$58,2,FALSE) ) )","v":""},null,null,null,null,{"$f":"IF(TRIM(EO286)=\"\", \"\", IF(VLOOKUP(EO286,'Footnotes list'!$D$9:$E$58,2,FALSE)=0,\"\",VLOOKUP(EO286,'Footnotes list'!$D$9:$E$58,2,FALSE) ) )","v":""},null,null,null,null,{"$f":"IF(TRIM(ET286)=\"\", \"\", IF(VLOOKUP(ET286,'Footnotes list'!$D$9:$E$58,2,FALSE)=0,\"\",VLOOKUP(ET286,'Footnotes list'!$D$9:$E$58,2,FALSE) ) )","v":""},null,null,null,null,{"$f":"IF(TRIM(EY286)=\"\", \"\", IF(VLOOKUP(EY286,'Footnotes list'!$D$9:$E$58,2,FALSE)=0,\"\",VLOOKUP(EY286,'Footnotes list'!$D$9:$E$58,2,FALSE) ) )","v":""}]
[null,null,"R","C_REP","cleaner and resource efficient products",null,null,null,null,null,{"$f":"IF(TRIM(J287)=\"\", \"\", IF(VLOOKUP(J287,'Footnotes list'!$D$9:$E$58,2,FALSE)=0,\"\",VLOOKUP(J287,'Footnotes list'!$D$9:$E$58,2,FALSE) ) )","v":""},null,null,null,null,{"$f":"IF(TRIM(O287)=\"\", \"\", IF(VLOOKUP(O287,'Footnotes list'!$D$9:$E$58,2,FALSE)=0,\"\",VLOOKUP(O287,'Footnotes list'!$D$9:$E$58,2,FALSE) ) )","v":""},null,null,null,null,{"$f":"IF(TRIM(T287)=\"\", \"\", IF(VLOOKUP(T287,'Footnotes list'!$D$9:$E$58,2,FALSE)=0,\"\",VLOOKUP(T287,'Footnotes list'!$D$9:$E$58,2,FALSE) ) )","v":""},null,null,null,null,{"$f":"IF(TRIM(Y287)=\"\", \"\", IF(VLOOKUP(Y287,'Footnotes list'!$D$9:$E$58,2,FALSE)=0,\"\",VLOOKUP(Y287,'Footnotes list'!$D$9:$E$58,2,FALSE) ) )","v":""},null,null,null,null,{"$f":"IF(TRIM(AD287)=\"\", \"\", IF(VLOOKUP(AD287,'Footnotes list'!$D$9:$E$58,2,FALSE)=0,\"\",VLOOKUP(AD287,'Footnotes list'!$D$9:$E$58,2,FALSE) ) )","v":""},null,null,null,null,{"$f":"IF(TRIM(AI287)=\"\", \"\", IF(VLOOKUP(AI287,'Footnotes list'!$D$9:$E$58,2,FALSE)=0,\"\",VLOOKUP(AI287,'Footnotes list'!$D$9:$E$58,2,FALSE) ) )","v":""},null,null,null,null,{"$f":"IF(TRIM(AN287)=\"\", \"\", IF(VLOOKUP(AN287,'Footnotes list'!$D$9:$E$58,2,FALSE)=0,\"\",VLOOKUP(AN287,'Footnotes list'!$D$9:$E$58,2,FALSE) ) )","v":""},null,null,null,null,{"$f":"IF(TRIM(AS287)=\"\", \"\", IF(VLOOKUP(AS287,'Footnotes list'!$D$9:$E$58,2,FALSE)=0,\"\",VLOOKUP(AS287,'Footnotes list'!$D$9:$E$58,2,FALSE) ) )","v":""},null,null,null,null,{"$f":"IF(TRIM(AX287)=\"\", \"\", IF(VLOOKUP(AX287,'Footnotes list'!$D$9:$E$58,2,FALSE)=0,\"\",VLOOKUP(AX287,'Footnotes list'!$D$9:$E$58,2,FALSE) ) )","v":""},null,null,null,null,{"$f":"IF(TRIM(BC287)=\"\", \"\", IF(VLOOKUP(BC287,'Footnotes list'!$D$9:$E$58,2,FALSE)=0,\"\",VLOOKUP(BC287,'Footnotes list'!$D$9:$E$58,2,FALSE) ) )","v":""},null,null,null,null,{"$f":"IF(TRIM(BH287)=\"\", \"\", IF(VLOOKUP(BH287,'Footnotes list'!$D$9:$E$58,2,FALSE)=0,\"\",VLOOKUP(BH287,'Footnotes list'!$D$9:$E$58,2,FALSE) ) )","v":""},null,null,null,null,{"$f":"IF(TRIM(BM287)=\"\", \"\", IF(VLOOKUP(BM287,'Footnotes list'!$D$9:$E$58,2,FALSE)=0,\"\",VLOOKUP(BM287,'Footnotes list'!$D$9:$E$58,2,FALSE) ) )","v":""},null,null,null,null,{"$f":"IF(TRIM(BR287)=\"\", \"\", IF(VLOOKUP(BR287,'Footnotes list'!$D$9:$E$58,2,FALSE)=0,\"\",VLOOKUP(BR287,'Footnotes list'!$D$9:$E$58,2,FALSE) ) )","v":""},null,null,null,null,{"$f":"IF(TRIM(BW287)=\"\", \"\", IF(VLOOKUP(BW287,'Footnotes list'!$D$9:$E$58,2,FALSE)=0,\"\",VLOOKUP(BW287,'Footnotes list'!$D$9:$E$58,2,FALSE) ) )","v":""},null,null,null,null,{"$f":"IF(TRIM(CB287)=\"\", \"\", IF(VLOOKUP(CB287,'Footnotes list'!$D$9:$E$58,2,FALSE)=0,\"\",VLOOKUP(CB287,'Footnotes list'!$D$9:$E$58,2,FALSE) ) )","v":""},null,null,null,null,{"$f":"IF(TRIM(CG287)=\"\", \"\", IF(VLOOKUP(CG287,'Footnotes list'!$D$9:$E$58,2,FALSE)=0,\"\",VLOOKUP(CG287,'Footnotes list'!$D$9:$E$58,2,FALSE) ) )","v":""},null,null,null,null,{"$f":"IF(TRIM(CL287)=\"\", \"\", IF(VLOOKUP(CL287,'Footnotes list'!$D$9:$E$58,2,FALSE)=0,\"\",VLOOKUP(CL287,'Footnotes list'!$D$9:$E$58,2,FALSE) ) )","v":""},null,null,null,null,{"$f":"IF(TRIM(CQ287)=\"\", \"\", IF(VLOOKUP(CQ287,'Footnotes list'!$D$9:$E$58,2,FALSE)=0,\"\",VLOOKUP(CQ287,'Footnotes list'!$D$9:$E$58,2,FALSE) ) )","v":""},null,null,null,null,{"$f":"IF(TRIM(CV287)=\"\", \"\", IF(VLOOKUP(CV287,'Footnotes list'!$D$9:$E$58,2,FALSE)=0,\"\",VLOOKUP(CV287,'Footnotes list'!$D$9:$E$58,2,FALSE) ) )","v":""},null,null,null,null,{"$f":"IF(TRIM(DA287)=\"\", \"\", IF(VLOOKUP(DA287,'Footnotes list'!$D$9:$E$58,2,FALSE)=0,\"\",VLOOKUP(DA287,'Footnotes list'!$D$9:$E$58,2,FALSE) ) )","v":""},null,null,null,null,{"$f":"IF(TRIM(DF287)=\"\", \"\", IF(VLOOKUP(DF287,'Footnotes list'!$D$9:$E$58,2,FALSE)=0,\"\",VLOOKUP(DF287,'Footnotes list'!$D$9:$E$58,2,FALSE) ) )","v":""},null,null,null,null,{"$f":"IF(TRIM(DK287)=\"\", \"\", IF(VLOOKUP(DK287,'Footnotes list'!$D$9:$E$58,2,FALSE)=0,\"\",VLOOKUP(DK287,'Footnotes list'!$D$9:$E$58,2,FALSE) ) )","v":""},null,null,null,null,{"$f":"IF(TRIM(DP287)=\"\", \"\", IF(VLOOKUP(DP287,'Footnotes list'!$D$9:$E$58,2,FALSE)=0,\"\",VLOOKUP(DP287,'Footnotes list'!$D$9:$E$58,2,FALSE) ) )","v":""},null,null,null,null,{"$f":"IF(TRIM(DU287)=\"\", \"\", IF(VLOOKUP(DU287,'Footnotes list'!$D$9:$E$58,2,FALSE)=0,\"\",VLOOKUP(DU287,'Footnotes list'!$D$9:$E$58,2,FALSE) ) )","v":""},null,null,null,null,{"$f":"IF(TRIM(DZ287)=\"\", \"\", IF(VLOOKUP(DZ287,'Footnotes list'!$D$9:$E$58,2,FALSE)=0,\"\",VLOOKUP(DZ287,'Footnotes list'!$D$9:$E$58,2,FALSE) ) )","v":""},null,null,null,null,{"$f":"IF(TRIM(EE287)=\"\", \"\", IF(VLOOKUP(EE287,'Footnotes list'!$D$9:$E$58,2,FALSE)=0,\"\",VLOOKUP(EE287,'Footnotes list'!$D$9:$E$58,2,FALSE) ) )","v":""},null,null,null,null,{"$f":"IF(TRIM(EJ287)=\"\", \"\", IF(VLOOKUP(EJ287,'Footnotes list'!$D$9:$E$58,2,FALSE)=0,\"\",VLOOKUP(EJ287,'Footnotes list'!$D$9:$E$58,2,FALSE) ) )","v":""},null,null,null,null,{"$f":"IF(TRIM(EO287)=\"\", \"\", IF(VLOOKUP(EO287,'Footnotes list'!$D$9:$E$58,2,FALSE)=0,\"\",VLOOKUP(EO287,'Footnotes list'!$D$9:$E$58,2,FALSE) ) )","v":""},null,null,null,null,{"$f":"IF(TRIM(ET287)=\"\", \"\", IF(VLOOKUP(ET287,'Footnotes list'!$D$9:$E$58,2,FALSE)=0,\"\",VLOOKUP(ET287,'Footnotes list'!$D$9:$E$58,2,FALSE) ) )","v":""},null,null,null,null,{"$f":"IF(TRIM(EY287)=\"\", \"\", IF(VLOOKUP(EY287,'Footnotes list'!$D$9:$E$58,2,FALSE)=0,\"\",VLOOKUP(EY287,'Footnotes list'!$D$9:$E$58,2,FALSE) ) )","v":""}]
[null,null,"S","TOT_EGSS","Total S - Other service activities, of which:",null,null,null,null,null,{"$f":"IF(TRIM(J288)=\"\", \"\", IF(VLOOKUP(J288,'Footnotes list'!$D$9:$E$58,2,FALSE)=0,\"\",VLOOKUP(J288,'Footnotes list'!$D$9:$E$58,2,FALSE) ) )","v":""},null,null,null,null,{"$f":"IF(TRIM(O288)=\"\", \"\", IF(VLOOKUP(O288,'Footnotes list'!$D$9:$E$58,2,FALSE)=0,\"\",VLOOKUP(O288,'Footnotes list'!$D$9:$E$58,2,FALSE) ) )","v":""},null,null,null,null,{"$f":"IF(TRIM(T288)=\"\", \"\", IF(VLOOKUP(T288,'Footnotes list'!$D$9:$E$58,2,FALSE)=0,\"\",VLOOKUP(T288,'Footnotes list'!$D$9:$E$58,2,FALSE) ) )","v":""},null,null,null,null,{"$f":"IF(TRIM(Y288)=\"\", \"\", IF(VLOOKUP(Y288,'Footnotes list'!$D$9:$E$58,2,FALSE)=0,\"\",VLOOKUP(Y288,'Footnotes list'!$D$9:$E$58,2,FALSE) ) )","v":""},null,null,null,null,{"$f":"IF(TRIM(AD288)=\"\", \"\", IF(VLOOKUP(AD288,'Footnotes list'!$D$9:$E$58,2,FALSE)=0,\"\",VLOOKUP(AD288,'Footnotes list'!$D$9:$E$58,2,FALSE) ) )","v":""},null,null,null,null,{"$f":"IF(TRIM(AI288)=\"\", \"\", IF(VLOOKUP(AI288,'Footnotes list'!$D$9:$E$58,2,FALSE)=0,\"\",VLOOKUP(AI288,'Footnotes list'!$D$9:$E$58,2,FALSE) ) )","v":""},null,null,null,null,{"$f":"IF(TRIM(AN288)=\"\", \"\", IF(VLOOKUP(AN288,'Footnotes list'!$D$9:$E$58,2,FALSE)=0,\"\",VLOOKUP(AN288,'Footnotes list'!$D$9:$E$58,2,FALSE) ) )","v":""},null,null,null,null,{"$f":"IF(TRIM(AS288)=\"\", \"\", IF(VLOOKUP(AS288,'Footnotes list'!$D$9:$E$58,2,FALSE)=0,\"\",VLOOKUP(AS288,'Footnotes list'!$D$9:$E$58,2,FALSE) ) )","v":""},null,null,null,null,{"$f":"IF(TRIM(AX288)=\"\", \"\", IF(VLOOKUP(AX288,'Footnotes list'!$D$9:$E$58,2,FALSE)=0,\"\",VLOOKUP(AX288,'Footnotes list'!$D$9:$E$58,2,FALSE) ) )","v":""},null,null,null,null,{"$f":"IF(TRIM(BC288)=\"\", \"\", IF(VLOOKUP(BC288,'Footnotes list'!$D$9:$E$58,2,FALSE)=0,\"\",VLOOKUP(BC288,'Footnotes list'!$D$9:$E$58,2,FALSE) ) )","v":""},null,null,null,null,{"$f":"IF(TRIM(BH288)=\"\", \"\", IF(VLOOKUP(BH288,'Footnotes list'!$D$9:$E$58,2,FALSE)=0,\"\",VLOOKUP(BH288,'Footnotes list'!$D$9:$E$58,2,FALSE) ) )","v":""},null,null,null,null,{"$f":"IF(TRIM(BM288)=\"\", \"\", IF(VLOOKUP(BM288,'Footnotes list'!$D$9:$E$58,2,FALSE)=0,\"\",VLOOKUP(BM288,'Footnotes list'!$D$9:$E$58,2,FALSE) ) )","v":""},null,null,null,null,{"$f":"IF(TRIM(BR288)=\"\", \"\", IF(VLOOKUP(BR288,'Footnotes list'!$D$9:$E$58,2,FALSE)=0,\"\",VLOOKUP(BR288,'Footnotes list'!$D$9:$E$58,2,FALSE) ) )","v":""},null,null,null,null,{"$f":"IF(TRIM(BW288)=\"\", \"\", IF(VLOOKUP(BW288,'Footnotes list'!$D$9:$E$58,2,FALSE)=0,\"\",VLOOKUP(BW288,'Footnotes list'!$D$9:$E$58,2,FALSE) ) )","v":""},null,null,null,null,{"$f":"IF(TRIM(CB288)=\"\", \"\", IF(VLOOKUP(CB288,'Footnotes list'!$D$9:$E$58,2,FALSE)=0,\"\",VLOOKUP(CB288,'Footnotes list'!$D$9:$E$58,2,FALSE) ) )","v":""},null,null,null,null,{"$f":"IF(TRIM(CG288)=\"\", \"\", IF(VLOOKUP(CG288,'Footnotes list'!$D$9:$E$58,2,FALSE)=0,\"\",VLOOKUP(CG288,'Footnotes list'!$D$9:$E$58,2,FALSE) ) )","v":""},null,null,null,null,{"$f":"IF(TRIM(CL288)=\"\", \"\", IF(VLOOKUP(CL288,'Footnotes list'!$D$9:$E$58,2,FALSE)=0,\"\",VLOOKUP(CL288,'Footnotes list'!$D$9:$E$58,2,FALSE) ) )","v":""},null,null,null,null,{"$f":"IF(TRIM(CQ288)=\"\", \"\", IF(VLOOKUP(CQ288,'Footnotes list'!$D$9:$E$58,2,FALSE)=0,\"\",VLOOKUP(CQ288,'Footnotes list'!$D$9:$E$58,2,FALSE) ) )","v":""},null,null,null,null,{"$f":"IF(TRIM(CV288)=\"\", \"\", IF(VLOOKUP(CV288,'Footnotes list'!$D$9:$E$58,2,FALSE)=0,\"\",VLOOKUP(CV288,'Footnotes list'!$D$9:$E$58,2,FALSE) ) )","v":""},null,null,null,null,{"$f":"IF(TRIM(DA288)=\"\", \"\", IF(VLOOKUP(DA288,'Footnotes list'!$D$9:$E$58,2,FALSE)=0,\"\",VLOOKUP(DA288,'Footnotes list'!$D$9:$E$58,2,FALSE) ) )","v":""},null,null,null,null,{"$f":"IF(TRIM(DF288)=\"\", \"\", IF(VLOOKUP(DF288,'Footnotes list'!$D$9:$E$58,2,FALSE)=0,\"\",VLOOKUP(DF288,'Footnotes list'!$D$9:$E$58,2,FALSE) ) )","v":""},null,null,null,null,{"$f":"IF(TRIM(DK288)=\"\", \"\", IF(VLOOKUP(DK288,'Footnotes list'!$D$9:$E$58,2,FALSE)=0,\"\",VLOOKUP(DK288,'Footnotes list'!$D$9:$E$58,2,FALSE) ) )","v":""},null,null,null,null,{"$f":"IF(TRIM(DP288)=\"\", \"\", IF(VLOOKUP(DP288,'Footnotes list'!$D$9:$E$58,2,FALSE)=0,\"\",VLOOKUP(DP288,'Footnotes list'!$D$9:$E$58,2,FALSE) ) )","v":""},null,null,null,null,{"$f":"IF(TRIM(DU288)=\"\", \"\", IF(VLOOKUP(DU288,'Footnotes list'!$D$9:$E$58,2,FALSE)=0,\"\",VLOOKUP(DU288,'Footnotes list'!$D$9:$E$58,2,FALSE) ) )","v":""},null,null,null,null,{"$f":"IF(TRIM(DZ288)=\"\", \"\", IF(VLOOKUP(DZ288,'Footnotes list'!$D$9:$E$58,2,FALSE)=0,\"\",VLOOKUP(DZ288,'Footnotes list'!$D$9:$E$58,2,FALSE) ) )","v":""},null,null,null,null,{"$f":"IF(TRIM(EE288)=\"\", \"\", IF(VLOOKUP(EE288,'Footnotes list'!$D$9:$E$58,2,FALSE)=0,\"\",VLOOKUP(EE288,'Footnotes list'!$D$9:$E$58,2,FALSE) ) )","v":""},null,null,null,null,{"$f":"IF(TRIM(EJ288)=\"\", \"\", IF(VLOOKUP(EJ288,'Footnotes list'!$D$9:$E$58,2,FALSE)=0,\"\",VLOOKUP(EJ288,'Footnotes list'!$D$9:$E$58,2,FALSE) ) )","v":""},null,null,null,null,{"$f":"IF(TRIM(EO288)=\"\", \"\", IF(VLOOKUP(EO288,'Footnotes list'!$D$9:$E$58,2,FALSE)=0,\"\",VLOOKUP(EO288,'Footnotes list'!$D$9:$E$58,2,FALSE) ) )","v":""},null,null,null,null,{"$f":"IF(TRIM(ET288)=\"\", \"\", IF(VLOOKUP(ET288,'Footnotes list'!$D$9:$E$58,2,FALSE)=0,\"\",VLOOKUP(ET288,'Footnotes list'!$D$9:$E$58,2,FALSE) ) )","v":""},null,null,null,null,{"$f":"IF(TRIM(EY288)=\"\", \"\", IF(VLOOKUP(EY288,'Footnotes list'!$D$9:$E$58,2,FALSE)=0,\"\",VLOOKUP(EY288,'Footnotes list'!$D$9:$E$58,2,FALSE) ) )","v":""}]
[null,null,"S","ANC","ancillary activities",null,null,null,null,null,{"$f":"IF(TRIM(J289)=\"\", \"\", IF(VLOOKUP(J289,'Footnotes list'!$D$9:$E$58,2,FALSE)=0,\"\",VLOOKUP(J289,'Footnotes list'!$D$9:$E$58,2,FALSE) ) )","v":""},null,null,null,null,{"$f":"IF(TRIM(O289)=\"\", \"\", IF(VLOOKUP(O289,'Footnotes list'!$D$9:$E$58,2,FALSE)=0,\"\",VLOOKUP(O289,'Footnotes list'!$D$9:$E$58,2,FALSE) ) )","v":""},null,null,null,null,{"$f":"IF(TRIM(T289)=\"\", \"\", IF(VLOOKUP(T289,'Footnotes list'!$D$9:$E$58,2,FALSE)=0,\"\",VLOOKUP(T289,'Footnotes list'!$D$9:$E$58,2,FALSE) ) )","v":""},null,null,null,null,{"$f":"IF(TRIM(Y289)=\"\", \"\", IF(VLOOKUP(Y289,'Footnotes list'!$D$9:$E$58,2,FALSE)=0,\"\",VLOOKUP(Y289,'Footnotes list'!$D$9:$E$58,2,FALSE) ) )","v":""},null,null,null,null,{"$f":"IF(TRIM(AD289)=\"\", \"\", IF(VLOOKUP(AD289,'Footnotes list'!$D$9:$E$58,2,FALSE)=0,\"\",VLOOKUP(AD289,'Footnotes list'!$D$9:$E$58,2,FALSE) ) )","v":""},null,null,null,null,{"$f":"IF(TRIM(AI289)=\"\", \"\", IF(VLOOKUP(AI289,'Footnotes list'!$D$9:$E$58,2,FALSE)=0,\"\",VLOOKUP(AI289,'Footnotes list'!$D$9:$E$58,2,FALSE) ) )","v":""},null,null,null,null,{"$f":"IF(TRIM(AN289)=\"\", \"\", IF(VLOOKUP(AN289,'Footnotes list'!$D$9:$E$58,2,FALSE)=0,\"\",VLOOKUP(AN289,'Footnotes list'!$D$9:$E$58,2,FALSE) ) )","v":""},null,null,null,null,{"$f":"IF(TRIM(AS289)=\"\", \"\", IF(VLOOKUP(AS289,'Footnotes list'!$D$9:$E$58,2,FALSE)=0,\"\",VLOOKUP(AS289,'Footnotes list'!$D$9:$E$58,2,FALSE) ) )","v":""},null,null,null,null,{"$f":"IF(TRIM(AX289)=\"\", \"\", IF(VLOOKUP(AX289,'Footnotes list'!$D$9:$E$58,2,FALSE)=0,\"\",VLOOKUP(AX289,'Footnotes list'!$D$9:$E$58,2,FALSE) ) )","v":""},null,null,null,null,{"$f":"IF(TRIM(BC289)=\"\", \"\", IF(VLOOKUP(BC289,'Footnotes list'!$D$9:$E$58,2,FALSE)=0,\"\",VLOOKUP(BC289,'Footnotes list'!$D$9:$E$58,2,FALSE) ) )","v":""},null,null,null,null,{"$f":"IF(TRIM(BH289)=\"\", \"\", IF(VLOOKUP(BH289,'Footnotes list'!$D$9:$E$58,2,FALSE)=0,\"\",VLOOKUP(BH289,'Footnotes list'!$D$9:$E$58,2,FALSE) ) )","v":""},null,null,null,null,{"$f":"IF(TRIM(BM289)=\"\", \"\", IF(VLOOKUP(BM289,'Footnotes list'!$D$9:$E$58,2,FALSE)=0,\"\",VLOOKUP(BM289,'Footnotes list'!$D$9:$E$58,2,FALSE) ) )","v":""},null,null,null,null,{"$f":"IF(TRIM(BR289)=\"\", \"\", IF(VLOOKUP(BR289,'Footnotes list'!$D$9:$E$58,2,FALSE)=0,\"\",VLOOKUP(BR289,'Footnotes list'!$D$9:$E$58,2,FALSE) ) )","v":""},null,null,null,null,{"$f":"IF(TRIM(BW289)=\"\", \"\", IF(VLOOKUP(BW289,'Footnotes list'!$D$9:$E$58,2,FALSE)=0,\"\",VLOOKUP(BW289,'Footnotes list'!$D$9:$E$58,2,FALSE) ) )","v":""},null,null,null,null,{"$f":"IF(TRIM(CB289)=\"\", \"\", IF(VLOOKUP(CB289,'Footnotes list'!$D$9:$E$58,2,FALSE)=0,\"\",VLOOKUP(CB289,'Footnotes list'!$D$9:$E$58,2,FALSE) ) )","v":""},null,null,null,null,{"$f":"IF(TRIM(CG289)=\"\", \"\", IF(VLOOKUP(CG289,'Footnotes list'!$D$9:$E$58,2,FALSE)=0,\"\",VLOOKUP(CG289,'Footnotes list'!$D$9:$E$58,2,FALSE) ) )","v":""},null,null,null,null,{"$f":"IF(TRIM(CL289)=\"\", \"\", IF(VLOOKUP(CL289,'Footnotes list'!$D$9:$E$58,2,FALSE)=0,\"\",VLOOKUP(CL289,'Footnotes list'!$D$9:$E$58,2,FALSE) ) )","v":""},null,null,null,null,{"$f":"IF(TRIM(CQ289)=\"\", \"\", IF(VLOOKUP(CQ289,'Footnotes list'!$D$9:$E$58,2,FALSE)=0,\"\",VLOOKUP(CQ289,'Footnotes list'!$D$9:$E$58,2,FALSE) ) )","v":""},null,null,null,null,{"$f":"IF(TRIM(CV289)=\"\", \"\", IF(VLOOKUP(CV289,'Footnotes list'!$D$9:$E$58,2,FALSE)=0,\"\",VLOOKUP(CV289,'Footnotes list'!$D$9:$E$58,2,FALSE) ) )","v":""},null,null,null,null,{"$f":"IF(TRIM(DA289)=\"\", \"\", IF(VLOOKUP(DA289,'Footnotes list'!$D$9:$E$58,2,FALSE)=0,\"\",VLOOKUP(DA289,'Footnotes list'!$D$9:$E$58,2,FALSE) ) )","v":""},null,null,null,null,{"$f":"IF(TRIM(DF289)=\"\", \"\", IF(VLOOKUP(DF289,'Footnotes list'!$D$9:$E$58,2,FALSE)=0,\"\",VLOOKUP(DF289,'Footnotes list'!$D$9:$E$58,2,FALSE) ) )","v":""},null,null,null,null,{"$f":"IF(TRIM(DK289)=\"\", \"\", IF(VLOOKUP(DK289,'Footnotes list'!$D$9:$E$58,2,FALSE)=0,\"\",VLOOKUP(DK289,'Footnotes list'!$D$9:$E$58,2,FALSE) ) )","v":""},null,null,null,null,{"$f":"IF(TRIM(DP289)=\"\", \"\", IF(VLOOKUP(DP289,'Footnotes list'!$D$9:$E$58,2,FALSE)=0,\"\",VLOOKUP(DP289,'Footnotes list'!$D$9:$E$58,2,FALSE) ) )","v":""},null,null,null,null,{"$f":"IF(TRIM(DU289)=\"\", \"\", IF(VLOOKUP(DU289,'Footnotes list'!$D$9:$E$58,2,FALSE)=0,\"\",VLOOKUP(DU289,'Footnotes list'!$D$9:$E$58,2,FALSE) ) )","v":""},null,null,null,null,{"$f":"IF(TRIM(DZ289)=\"\", \"\", IF(VLOOKUP(DZ289,'Footnotes list'!$D$9:$E$58,2,FALSE)=0,\"\",VLOOKUP(DZ289,'Footnotes list'!$D$9:$E$58,2,FALSE) ) )","v":""},null,null,null,null,{"$f":"IF(TRIM(EE289)=\"\", \"\", IF(VLOOKUP(EE289,'Footnotes list'!$D$9:$E$58,2,FALSE)=0,\"\",VLOOKUP(EE289,'Footnotes list'!$D$9:$E$58,2,FALSE) ) )","v":""},null,null,null,null,{"$f":"IF(TRIM(EJ289)=\"\", \"\", IF(VLOOKUP(EJ289,'Footnotes list'!$D$9:$E$58,2,FALSE)=0,\"\",VLOOKUP(EJ289,'Footnotes list'!$D$9:$E$58,2,FALSE) ) )","v":""},null,null,null,null,{"$f":"IF(TRIM(EO289)=\"\", \"\", IF(VLOOKUP(EO289,'Footnotes list'!$D$9:$E$58,2,FALSE)=0,\"\",VLOOKUP(EO289,'Footnotes list'!$D$9:$E$58,2,FALSE) ) )","v":""},null,null,null,null,{"$f":"IF(TRIM(ET289)=\"\", \"\", IF(VLOOKUP(ET289,'Footnotes list'!$D$9:$E$58,2,FALSE)=0,\"\",VLOOKUP(ET289,'Footnotes list'!$D$9:$E$58,2,FALSE) ) )","v":""},null,null,null,null,{"$f":"IF(TRIM(EY289)=\"\", \"\", IF(VLOOKUP(EY289,'Footnotes list'!$D$9:$E$58,2,FALSE)=0,\"\",VLOOKUP(EY289,'Footnotes list'!$D$9:$E$58,2,FALSE) ) )","v":""}]
[null,null,"S","NMKT","non-market activities",null,null,null,null,null,{"$f":"IF(TRIM(J290)=\"\", \"\", IF(VLOOKUP(J290,'Footnotes list'!$D$9:$E$58,2,FALSE)=0,\"\",VLOOKUP(J290,'Footnotes list'!$D$9:$E$58,2,FALSE) ) )","v":""},null,null,null,null,{"$f":"IF(TRIM(O290)=\"\", \"\", IF(VLOOKUP(O290,'Footnotes list'!$D$9:$E$58,2,FALSE)=0,\"\",VLOOKUP(O290,'Footnotes list'!$D$9:$E$58,2,FALSE) ) )","v":""},null,null,null,null,{"$f":"IF(TRIM(T290)=\"\", \"\", IF(VLOOKUP(T290,'Footnotes list'!$D$9:$E$58,2,FALSE)=0,\"\",VLOOKUP(T290,'Footnotes list'!$D$9:$E$58,2,FALSE) ) )","v":""},null,null,null,null,{"$f":"IF(TRIM(Y290)=\"\", \"\", IF(VLOOKUP(Y290,'Footnotes list'!$D$9:$E$58,2,FALSE)=0,\"\",VLOOKUP(Y290,'Footnotes list'!$D$9:$E$58,2,FALSE) ) )","v":""},null,null,null,null,{"$f":"IF(TRIM(AD290)=\"\", \"\", IF(VLOOKUP(AD290,'Footnotes list'!$D$9:$E$58,2,FALSE)=0,\"\",VLOOKUP(AD290,'Footnotes list'!$D$9:$E$58,2,FALSE) ) )","v":""},null,null,null,null,{"$f":"IF(TRIM(AI290)=\"\", \"\", IF(VLOOKUP(AI290,'Footnotes list'!$D$9:$E$58,2,FALSE)=0,\"\",VLOOKUP(AI290,'Footnotes list'!$D$9:$E$58,2,FALSE) ) )","v":""},null,null,null,null,{"$f":"IF(TRIM(AN290)=\"\", \"\", IF(VLOOKUP(AN290,'Footnotes list'!$D$9:$E$58,2,FALSE)=0,\"\",VLOOKUP(AN290,'Footnotes list'!$D$9:$E$58,2,FALSE) ) )","v":""},null,null,null,null,{"$f":"IF(TRIM(AS290)=\"\", \"\", IF(VLOOKUP(AS290,'Footnotes list'!$D$9:$E$58,2,FALSE)=0,\"\",VLOOKUP(AS290,'Footnotes list'!$D$9:$E$58,2,FALSE) ) )","v":""},null,null,null,null,{"$f":"IF(TRIM(AX290)=\"\", \"\", IF(VLOOKUP(AX290,'Footnotes list'!$D$9:$E$58,2,FALSE)=0,\"\",VLOOKUP(AX290,'Footnotes list'!$D$9:$E$58,2,FALSE) ) )","v":""},null,null,null,null,{"$f":"IF(TRIM(BC290)=\"\", \"\", IF(VLOOKUP(BC290,'Footnotes list'!$D$9:$E$58,2,FALSE)=0,\"\",VLOOKUP(BC290,'Footnotes list'!$D$9:$E$58,2,FALSE) ) )","v":""},null,null,null,null,{"$f":"IF(TRIM(BH290)=\"\", \"\", IF(VLOOKUP(BH290,'Footnotes list'!$D$9:$E$58,2,FALSE)=0,\"\",VLOOKUP(BH290,'Footnotes list'!$D$9:$E$58,2,FALSE) ) )","v":""},null,null,null,null,{"$f":"IF(TRIM(BM290)=\"\", \"\", IF(VLOOKUP(BM290,'Footnotes list'!$D$9:$E$58,2,FALSE)=0,\"\",VLOOKUP(BM290,'Footnotes list'!$D$9:$E$58,2,FALSE) ) )","v":""},null,null,null,null,{"$f":"IF(TRIM(BR290)=\"\", \"\", IF(VLOOKUP(BR290,'Footnotes list'!$D$9:$E$58,2,FALSE)=0,\"\",VLOOKUP(BR290,'Footnotes list'!$D$9:$E$58,2,FALSE) ) )","v":""},null,null,null,null,{"$f":"IF(TRIM(BW290)=\"\", \"\", IF(VLOOKUP(BW290,'Footnotes list'!$D$9:$E$58,2,FALSE)=0,\"\",VLOOKUP(BW290,'Footnotes list'!$D$9:$E$58,2,FALSE) ) )","v":""},null,null,null,null,{"$f":"IF(TRIM(CB290)=\"\", \"\", IF(VLOOKUP(CB290,'Footnotes list'!$D$9:$E$58,2,FALSE)=0,\"\",VLOOKUP(CB290,'Footnotes list'!$D$9:$E$58,2,FALSE) ) )","v":""},null,null,null,null,{"$f":"IF(TRIM(CG290)=\"\", \"\", IF(VLOOKUP(CG290,'Footnotes list'!$D$9:$E$58,2,FALSE)=0,\"\",VLOOKUP(CG290,'Footnotes list'!$D$9:$E$58,2,FALSE) ) )","v":""},null,null,null,null,{"$f":"IF(TRIM(CL290)=\"\", \"\", IF(VLOOKUP(CL290,'Footnotes list'!$D$9:$E$58,2,FALSE)=0,\"\",VLOOKUP(CL290,'Footnotes list'!$D$9:$E$58,2,FALSE) ) )","v":""},null,null,null,null,{"$f":"IF(TRIM(CQ290)=\"\", \"\", IF(VLOOKUP(CQ290,'Footnotes list'!$D$9:$E$58,2,FALSE)=0,\"\",VLOOKUP(CQ290,'Footnotes list'!$D$9:$E$58,2,FALSE) ) )","v":""},null,null,null,null,{"$f":"IF(TRIM(CV290)=\"\", \"\", IF(VLOOKUP(CV290,'Footnotes list'!$D$9:$E$58,2,FALSE)=0,\"\",VLOOKUP(CV290,'Footnotes list'!$D$9:$E$58,2,FALSE) ) )","v":""},null,null,null,null,{"$f":"IF(TRIM(DA290)=\"\", \"\", IF(VLOOKUP(DA290,'Footnotes list'!$D$9:$E$58,2,FALSE)=0,\"\",VLOOKUP(DA290,'Footnotes list'!$D$9:$E$58,2,FALSE) ) )","v":""},null,null,null,null,{"$f":"IF(TRIM(DF290)=\"\", \"\", IF(VLOOKUP(DF290,'Footnotes list'!$D$9:$E$58,2,FALSE)=0,\"\",VLOOKUP(DF290,'Footnotes list'!$D$9:$E$58,2,FALSE) ) )","v":""},null,null,null,null,{"$f":"IF(TRIM(DK290)=\"\", \"\", IF(VLOOKUP(DK290,'Footnotes list'!$D$9:$E$58,2,FALSE)=0,\"\",VLOOKUP(DK290,'Footnotes list'!$D$9:$E$58,2,FALSE) ) )","v":""},null,null,null,null,{"$f":"IF(TRIM(DP290)=\"\", \"\", IF(VLOOKUP(DP290,'Footnotes list'!$D$9:$E$58,2,FALSE)=0,\"\",VLOOKUP(DP290,'Footnotes list'!$D$9:$E$58,2,FALSE) ) )","v":""},null,null,null,null,{"$f":"IF(TRIM(DU290)=\"\", \"\", IF(VLOOKUP(DU290,'Footnotes list'!$D$9:$E$58,2,FALSE)=0,\"\",VLOOKUP(DU290,'Footnotes list'!$D$9:$E$58,2,FALSE) ) )","v":""},null,null,null,null,{"$f":"IF(TRIM(DZ290)=\"\", \"\", IF(VLOOKUP(DZ290,'Footnotes list'!$D$9:$E$58,2,FALSE)=0,\"\",VLOOKUP(DZ290,'Footnotes list'!$D$9:$E$58,2,FALSE) ) )","v":""},null,null,null,null,{"$f":"IF(TRIM(EE290)=\"\", \"\", IF(VLOOKUP(EE290,'Footnotes list'!$D$9:$E$58,2,FALSE)=0,\"\",VLOOKUP(EE290,'Footnotes list'!$D$9:$E$58,2,FALSE) ) )","v":""},null,null,null,null,{"$f":"IF(TRIM(EJ290)=\"\", \"\", IF(VLOOKUP(EJ290,'Footnotes list'!$D$9:$E$58,2,FALSE)=0,\"\",VLOOKUP(EJ290,'Footnotes list'!$D$9:$E$58,2,FALSE) ) )","v":""},null,null,null,null,{"$f":"IF(TRIM(EO290)=\"\", \"\", IF(VLOOKUP(EO290,'Footnotes list'!$D$9:$E$58,2,FALSE)=0,\"\",VLOOKUP(EO290,'Footnotes list'!$D$9:$E$58,2,FALSE) ) )","v":""},null,null,null,null,{"$f":"IF(TRIM(ET290)=\"\", \"\", IF(VLOOKUP(ET290,'Footnotes list'!$D$9:$E$58,2,FALSE)=0,\"\",VLOOKUP(ET290,'Footnotes list'!$D$9:$E$58,2,FALSE) ) )","v":""},null,null,null,null,{"$f":"IF(TRIM(EY290)=\"\", \"\", IF(VLOOKUP(EY290,'Footnotes list'!$D$9:$E$58,2,FALSE)=0,\"\",VLOOKUP(EY290,'Footnotes list'!$D$9:$E$58,2,FALSE) ) )","v":""}]
[null,null,"S","OWN_USE","activities for own final use",null,null,null,null,null,{"$f":"IF(TRIM(J291)=\"\", \"\", IF(VLOOKUP(J291,'Footnotes list'!$D$9:$E$58,2,FALSE)=0,\"\",VLOOKUP(J291,'Footnotes list'!$D$9:$E$58,2,FALSE) ) )","v":""},null,null,null,null,{"$f":"IF(TRIM(O291)=\"\", \"\", IF(VLOOKUP(O291,'Footnotes list'!$D$9:$E$58,2,FALSE)=0,\"\",VLOOKUP(O291,'Footnotes list'!$D$9:$E$58,2,FALSE) ) )","v":""},null,null,null,null,{"$f":"IF(TRIM(T291)=\"\", \"\", IF(VLOOKUP(T291,'Footnotes list'!$D$9:$E$58,2,FALSE)=0,\"\",VLOOKUP(T291,'Footnotes list'!$D$9:$E$58,2,FALSE) ) )","v":""},null,null,null,null,{"$f":"IF(TRIM(Y291)=\"\", \"\", IF(VLOOKUP(Y291,'Footnotes list'!$D$9:$E$58,2,FALSE)=0,\"\",VLOOKUP(Y291,'Footnotes list'!$D$9:$E$58,2,FALSE) ) )","v":""},null,null,null,null,{"$f":"IF(TRIM(AD291)=\"\", \"\", IF(VLOOKUP(AD291,'Footnotes list'!$D$9:$E$58,2,FALSE)=0,\"\",VLOOKUP(AD291,'Footnotes list'!$D$9:$E$58,2,FALSE) ) )","v":""},null,null,null,null,{"$f":"IF(TRIM(AI291)=\"\", \"\", IF(VLOOKUP(AI291,'Footnotes list'!$D$9:$E$58,2,FALSE)=0,\"\",VLOOKUP(AI291,'Footnotes list'!$D$9:$E$58,2,FALSE) ) )","v":""},null,null,null,null,{"$f":"IF(TRIM(AN291)=\"\", \"\", IF(VLOOKUP(AN291,'Footnotes list'!$D$9:$E$58,2,FALSE)=0,\"\",VLOOKUP(AN291,'Footnotes list'!$D$9:$E$58,2,FALSE) ) )","v":""},null,null,null,null,{"$f":"IF(TRIM(AS291)=\"\", \"\", IF(VLOOKUP(AS291,'Footnotes list'!$D$9:$E$58,2,FALSE)=0,\"\",VLOOKUP(AS291,'Footnotes list'!$D$9:$E$58,2,FALSE) ) )","v":""},null,null,null,null,{"$f":"IF(TRIM(AX291)=\"\", \"\", IF(VLOOKUP(AX291,'Footnotes list'!$D$9:$E$58,2,FALSE)=0,\"\",VLOOKUP(AX291,'Footnotes list'!$D$9:$E$58,2,FALSE) ) )","v":""},null,null,null,null,{"$f":"IF(TRIM(BC291)=\"\", \"\", IF(VLOOKUP(BC291,'Footnotes list'!$D$9:$E$58,2,FALSE)=0,\"\",VLOOKUP(BC291,'Footnotes list'!$D$9:$E$58,2,FALSE) ) )","v":""},null,null,null,null,{"$f":"IF(TRIM(BH291)=\"\", \"\", IF(VLOOKUP(BH291,'Footnotes list'!$D$9:$E$58,2,FALSE)=0,\"\",VLOOKUP(BH291,'Footnotes list'!$D$9:$E$58,2,FALSE) ) )","v":""},null,null,null,null,{"$f":"IF(TRIM(BM291)=\"\", \"\", IF(VLOOKUP(BM291,'Footnotes list'!$D$9:$E$58,2,FALSE)=0,\"\",VLOOKUP(BM291,'Footnotes list'!$D$9:$E$58,2,FALSE) ) )","v":""},null,null,null,null,{"$f":"IF(TRIM(BR291)=\"\", \"\", IF(VLOOKUP(BR291,'Footnotes list'!$D$9:$E$58,2,FALSE)=0,\"\",VLOOKUP(BR291,'Footnotes list'!$D$9:$E$58,2,FALSE) ) )","v":""},null,null,null,null,{"$f":"IF(TRIM(BW291)=\"\", \"\", IF(VLOOKUP(BW291,'Footnotes list'!$D$9:$E$58,2,FALSE)=0,\"\",VLOOKUP(BW291,'Footnotes list'!$D$9:$E$58,2,FALSE) ) )","v":""},null,null,null,null,{"$f":"IF(TRIM(CB291)=\"\", \"\", IF(VLOOKUP(CB291,'Footnotes list'!$D$9:$E$58,2,FALSE)=0,\"\",VLOOKUP(CB291,'Footnotes list'!$D$9:$E$58,2,FALSE) ) )","v":""},null,null,null,null,{"$f":"IF(TRIM(CG291)=\"\", \"\", IF(VLOOKUP(CG291,'Footnotes list'!$D$9:$E$58,2,FALSE)=0,\"\",VLOOKUP(CG291,'Footnotes list'!$D$9:$E$58,2,FALSE) ) )","v":""},null,null,null,null,{"$f":"IF(TRIM(CL291)=\"\", \"\", IF(VLOOKUP(CL291,'Footnotes list'!$D$9:$E$58,2,FALSE)=0,\"\",VLOOKUP(CL291,'Footnotes list'!$D$9:$E$58,2,FALSE) ) )","v":""},null,null,null,null,{"$f":"IF(TRIM(CQ291)=\"\", \"\", IF(VLOOKUP(CQ291,'Footnotes list'!$D$9:$E$58,2,FALSE)=0,\"\",VLOOKUP(CQ291,'Footnotes list'!$D$9:$E$58,2,FALSE) ) )","v":""},null,null,null,null,{"$f":"IF(TRIM(CV291)=\"\", \"\", IF(VLOOKUP(CV291,'Footnotes list'!$D$9:$E$58,2,FALSE)=0,\"\",VLOOKUP(CV291,'Footnotes list'!$D$9:$E$58,2,FALSE) ) )","v":""},null,null,null,null,{"$f":"IF(TRIM(DA291)=\"\", \"\", IF(VLOOKUP(DA291,'Footnotes list'!$D$9:$E$58,2,FALSE)=0,\"\",VLOOKUP(DA291,'Footnotes list'!$D$9:$E$58,2,FALSE) ) )","v":""},null,null,null,null,{"$f":"IF(TRIM(DF291)=\"\", \"\", IF(VLOOKUP(DF291,'Footnotes list'!$D$9:$E$58,2,FALSE)=0,\"\",VLOOKUP(DF291,'Footnotes list'!$D$9:$E$58,2,FALSE) ) )","v":""},null,null,null,null,{"$f":"IF(TRIM(DK291)=\"\", \"\", IF(VLOOKUP(DK291,'Footnotes list'!$D$9:$E$58,2,FALSE)=0,\"\",VLOOKUP(DK291,'Footnotes list'!$D$9:$E$58,2,FALSE) ) )","v":""},null,null,null,null,{"$f":"IF(TRIM(DP291)=\"\", \"\", IF(VLOOKUP(DP291,'Footnotes list'!$D$9:$E$58,2,FALSE)=0,\"\",VLOOKUP(DP291,'Footnotes list'!$D$9:$E$58,2,FALSE) ) )","v":""},null,null,null,null,{"$f":"IF(TRIM(DU291)=\"\", \"\", IF(VLOOKUP(DU291,'Footnotes list'!$D$9:$E$58,2,FALSE)=0,\"\",VLOOKUP(DU291,'Footnotes list'!$D$9:$E$58,2,FALSE) ) )","v":""},null,null,null,null,{"$f":"IF(TRIM(DZ291)=\"\", \"\", IF(VLOOKUP(DZ291,'Footnotes list'!$D$9:$E$58,2,FALSE)=0,\"\",VLOOKUP(DZ291,'Footnotes list'!$D$9:$E$58,2,FALSE) ) )","v":""},null,null,null,null,{"$f":"IF(TRIM(EE291)=\"\", \"\", IF(VLOOKUP(EE291,'Footnotes list'!$D$9:$E$58,2,FALSE)=0,\"\",VLOOKUP(EE291,'Footnotes list'!$D$9:$E$58,2,FALSE) ) )","v":""},null,null,null,null,{"$f":"IF(TRIM(EJ291)=\"\", \"\", IF(VLOOKUP(EJ291,'Footnotes list'!$D$9:$E$58,2,FALSE)=0,\"\",VLOOKUP(EJ291,'Footnotes list'!$D$9:$E$58,2,FALSE) ) )","v":""},null,null,null,null,{"$f":"IF(TRIM(EO291)=\"\", \"\", IF(VLOOKUP(EO291,'Footnotes list'!$D$9:$E$58,2,FALSE)=0,\"\",VLOOKUP(EO291,'Footnotes list'!$D$9:$E$58,2,FALSE) ) )","v":""},null,null,null,null,{"$f":"IF(TRIM(ET291)=\"\", \"\", IF(VLOOKUP(ET291,'Footnotes list'!$D$9:$E$58,2,FALSE)=0,\"\",VLOOKUP(ET291,'Footnotes list'!$D$9:$E$58,2,FALSE) ) )","v":""},null,null,null,null,{"$f":"IF(TRIM(EY291)=\"\", \"\", IF(VLOOKUP(EY291,'Footnotes list'!$D$9:$E$58,2,FALSE)=0,\"\",VLOOKUP(EY291,'Footnotes list'!$D$9:$E$58,2,FALSE) ) )","v":""}]
[null,null,"S","MKT","market activities, including:",null,null,null,null,null,{"$f":"IF(TRIM(J292)=\"\", \"\", IF(VLOOKUP(J292,'Footnotes list'!$D$9:$E$58,2,FALSE)=0,\"\",VLOOKUP(J292,'Footnotes list'!$D$9:$E$58,2,FALSE) ) )","v":""},null,null,null,null,{"$f":"IF(TRIM(O292)=\"\", \"\", IF(VLOOKUP(O292,'Footnotes list'!$D$9:$E$58,2,FALSE)=0,\"\",VLOOKUP(O292,'Footnotes list'!$D$9:$E$58,2,FALSE) ) )","v":""},null,null,null,null,{"$f":"IF(TRIM(T292)=\"\", \"\", IF(VLOOKUP(T292,'Footnotes list'!$D$9:$E$58,2,FALSE)=0,\"\",VLOOKUP(T292,'Footnotes list'!$D$9:$E$58,2,FALSE) ) )","v":""},null,null,null,null,{"$f":"IF(TRIM(Y292)=\"\", \"\", IF(VLOOKUP(Y292,'Footnotes list'!$D$9:$E$58,2,FALSE)=0,\"\",VLOOKUP(Y292,'Footnotes list'!$D$9:$E$58,2,FALSE) ) )","v":""},null,null,null,null,{"$f":"IF(TRIM(AD292)=\"\", \"\", IF(VLOOKUP(AD292,'Footnotes list'!$D$9:$E$58,2,FALSE)=0,\"\",VLOOKUP(AD292,'Footnotes list'!$D$9:$E$58,2,FALSE) ) )","v":""},null,null,null,null,{"$f":"IF(TRIM(AI292)=\"\", \"\", IF(VLOOKUP(AI292,'Footnotes list'!$D$9:$E$58,2,FALSE)=0,\"\",VLOOKUP(AI292,'Footnotes list'!$D$9:$E$58,2,FALSE) ) )","v":""},null,null,null,null,{"$f":"IF(TRIM(AN292)=\"\", \"\", IF(VLOOKUP(AN292,'Footnotes list'!$D$9:$E$58,2,FALSE)=0,\"\",VLOOKUP(AN292,'Footnotes list'!$D$9:$E$58,2,FALSE) ) )","v":""},null,null,null,null,{"$f":"IF(TRIM(AS292)=\"\", \"\", IF(VLOOKUP(AS292,'Footnotes list'!$D$9:$E$58,2,FALSE)=0,\"\",VLOOKUP(AS292,'Footnotes list'!$D$9:$E$58,2,FALSE) ) )","v":""},null,null,null,null,{"$f":"IF(TRIM(AX292)=\"\", \"\", IF(VLOOKUP(AX292,'Footnotes list'!$D$9:$E$58,2,FALSE)=0,\"\",VLOOKUP(AX292,'Footnotes list'!$D$9:$E$58,2,FALSE) ) )","v":""},null,null,null,null,{"$f":"IF(TRIM(BC292)=\"\", \"\", IF(VLOOKUP(BC292,'Footnotes list'!$D$9:$E$58,2,FALSE)=0,\"\",VLOOKUP(BC292,'Footnotes list'!$D$9:$E$58,2,FALSE) ) )","v":""},null,null,null,null,{"$f":"IF(TRIM(BH292)=\"\", \"\", IF(VLOOKUP(BH292,'Footnotes list'!$D$9:$E$58,2,FALSE)=0,\"\",VLOOKUP(BH292,'Footnotes list'!$D$9:$E$58,2,FALSE) ) )","v":""},null,null,null,null,{"$f":"IF(TRIM(BM292)=\"\", \"\", IF(VLOOKUP(BM292,'Footnotes list'!$D$9:$E$58,2,FALSE)=0,\"\",VLOOKUP(BM292,'Footnotes list'!$D$9:$E$58,2,FALSE) ) )","v":""},null,null,null,null,{"$f":"IF(TRIM(BR292)=\"\", \"\", IF(VLOOKUP(BR292,'Footnotes list'!$D$9:$E$58,2,FALSE)=0,\"\",VLOOKUP(BR292,'Footnotes list'!$D$9:$E$58,2,FALSE) ) )","v":""},null,null,null,null,{"$f":"IF(TRIM(BW292)=\"\", \"\", IF(VLOOKUP(BW292,'Footnotes list'!$D$9:$E$58,2,FALSE)=0,\"\",VLOOKUP(BW292,'Footnotes list'!$D$9:$E$58,2,FALSE) ) )","v":""},null,null,null,null,{"$f":"IF(TRIM(CB292)=\"\", \"\", IF(VLOOKUP(CB292,'Footnotes list'!$D$9:$E$58,2,FALSE)=0,\"\",VLOOKUP(CB292,'Footnotes list'!$D$9:$E$58,2,FALSE) ) )","v":""},null,null,null,null,{"$f":"IF(TRIM(CG292)=\"\", \"\", IF(VLOOKUP(CG292,'Footnotes list'!$D$9:$E$58,2,FALSE)=0,\"\",VLOOKUP(CG292,'Footnotes list'!$D$9:$E$58,2,FALSE) ) )","v":""},null,null,null,null,{"$f":"IF(TRIM(CL292)=\"\", \"\", IF(VLOOKUP(CL292,'Footnotes list'!$D$9:$E$58,2,FALSE)=0,\"\",VLOOKUP(CL292,'Footnotes list'!$D$9:$E$58,2,FALSE) ) )","v":""},null,null,null,null,{"$f":"IF(TRIM(CQ292)=\"\", \"\", IF(VLOOKUP(CQ292,'Footnotes list'!$D$9:$E$58,2,FALSE)=0,\"\",VLOOKUP(CQ292,'Footnotes list'!$D$9:$E$58,2,FALSE) ) )","v":""},null,null,null,null,{"$f":"IF(TRIM(CV292)=\"\", \"\", IF(VLOOKUP(CV292,'Footnotes list'!$D$9:$E$58,2,FALSE)=0,\"\",VLOOKUP(CV292,'Footnotes list'!$D$9:$E$58,2,FALSE) ) )","v":""},null,null,null,null,{"$f":"IF(TRIM(DA292)=\"\", \"\", IF(VLOOKUP(DA292,'Footnotes list'!$D$9:$E$58,2,FALSE)=0,\"\",VLOOKUP(DA292,'Footnotes list'!$D$9:$E$58,2,FALSE) ) )","v":""},null,null,null,null,{"$f":"IF(TRIM(DF292)=\"\", \"\", IF(VLOOKUP(DF292,'Footnotes list'!$D$9:$E$58,2,FALSE)=0,\"\",VLOOKUP(DF292,'Footnotes list'!$D$9:$E$58,2,FALSE) ) )","v":""},null,null,null,null,{"$f":"IF(TRIM(DK292)=\"\", \"\", IF(VLOOKUP(DK292,'Footnotes list'!$D$9:$E$58,2,FALSE)=0,\"\",VLOOKUP(DK292,'Footnotes list'!$D$9:$E$58,2,FALSE) ) )","v":""},null,null,null,null,{"$f":"IF(TRIM(DP292)=\"\", \"\", IF(VLOOKUP(DP292,'Footnotes list'!$D$9:$E$58,2,FALSE)=0,\"\",VLOOKUP(DP292,'Footnotes list'!$D$9:$E$58,2,FALSE) ) )","v":""},null,null,null,null,{"$f":"IF(TRIM(DU292)=\"\", \"\", IF(VLOOKUP(DU292,'Footnotes list'!$D$9:$E$58,2,FALSE)=0,\"\",VLOOKUP(DU292,'Footnotes list'!$D$9:$E$58,2,FALSE) ) )","v":""},null,null,null,null,{"$f":"IF(TRIM(DZ292)=\"\", \"\", IF(VLOOKUP(DZ292,'Footnotes list'!$D$9:$E$58,2,FALSE)=0,\"\",VLOOKUP(DZ292,'Footnotes list'!$D$9:$E$58,2,FALSE) ) )","v":""},null,null,null,null,{"$f":"IF(TRIM(EE292)=\"\", \"\", IF(VLOOKUP(EE292,'Footnotes list'!$D$9:$E$58,2,FALSE)=0,\"\",VLOOKUP(EE292,'Footnotes list'!$D$9:$E$58,2,FALSE) ) )","v":""},null,null,null,null,{"$f":"IF(TRIM(EJ292)=\"\", \"\", IF(VLOOKUP(EJ292,'Footnotes list'!$D$9:$E$58,2,FALSE)=0,\"\",VLOOKUP(EJ292,'Footnotes list'!$D$9:$E$58,2,FALSE) ) )","v":""},null,null,null,null,{"$f":"IF(TRIM(EO292)=\"\", \"\", IF(VLOOKUP(EO292,'Footnotes list'!$D$9:$E$58,2,FALSE)=0,\"\",VLOOKUP(EO292,'Footnotes list'!$D$9:$E$58,2,FALSE) ) )","v":""},null,null,null,null,{"$f":"IF(TRIM(ET292)=\"\", \"\", IF(VLOOKUP(ET292,'Footnotes list'!$D$9:$E$58,2,FALSE)=0,\"\",VLOOKUP(ET292,'Footnotes list'!$D$9:$E$58,2,FALSE) ) )","v":""},null,null,null,null,{"$f":"IF(TRIM(EY292)=\"\", \"\", IF(VLOOKUP(EY292,'Footnotes list'!$D$9:$E$58,2,FALSE)=0,\"\",VLOOKUP(EY292,'Footnotes list'!$D$9:$E$58,2,FALSE) ) )","v":""}]
[null,null,"S","ES_CS","environmental specific services",null,null,null,null,null,{"$f":"IF(TRIM(J293)=\"\", \"\", IF(VLOOKUP(J293,'Footnotes list'!$D$9:$E$58,2,FALSE)=0,\"\",VLOOKUP(J293,'Footnotes list'!$D$9:$E$58,2,FALSE) ) )","v":""},null,null,null,null,{"$f":"IF(TRIM(O293)=\"\", \"\", IF(VLOOKUP(O293,'Footnotes list'!$D$9:$E$58,2,FALSE)=0,\"\",VLOOKUP(O293,'Footnotes list'!$D$9:$E$58,2,FALSE) ) )","v":""},null,null,null,null,{"$f":"IF(TRIM(T293)=\"\", \"\", IF(VLOOKUP(T293,'Footnotes list'!$D$9:$E$58,2,FALSE)=0,\"\",VLOOKUP(T293,'Footnotes list'!$D$9:$E$58,2,FALSE) ) )","v":""},null,null,null,null,{"$f":"IF(TRIM(Y293)=\"\", \"\", IF(VLOOKUP(Y293,'Footnotes list'!$D$9:$E$58,2,FALSE)=0,\"\",VLOOKUP(Y293,'Footnotes list'!$D$9:$E$58,2,FALSE) ) )","v":""},null,null,null,null,{"$f":"IF(TRIM(AD293)=\"\", \"\", IF(VLOOKUP(AD293,'Footnotes list'!$D$9:$E$58,2,FALSE)=0,\"\",VLOOKUP(AD293,'Footnotes list'!$D$9:$E$58,2,FALSE) ) )","v":""},null,null,null,null,{"$f":"IF(TRIM(AI293)=\"\", \"\", IF(VLOOKUP(AI293,'Footnotes list'!$D$9:$E$58,2,FALSE)=0,\"\",VLOOKUP(AI293,'Footnotes list'!$D$9:$E$58,2,FALSE) ) )","v":""},null,null,null,null,{"$f":"IF(TRIM(AN293)=\"\", \"\", IF(VLOOKUP(AN293,'Footnotes list'!$D$9:$E$58,2,FALSE)=0,\"\",VLOOKUP(AN293,'Footnotes list'!$D$9:$E$58,2,FALSE) ) )","v":""},null,null,null,null,{"$f":"IF(TRIM(AS293)=\"\", \"\", IF(VLOOKUP(AS293,'Footnotes list'!$D$9:$E$58,2,FALSE)=0,\"\",VLOOKUP(AS293,'Footnotes list'!$D$9:$E$58,2,FALSE) ) )","v":""},null,null,null,null,{"$f":"IF(TRIM(AX293)=\"\", \"\", IF(VLOOKUP(AX293,'Footnotes list'!$D$9:$E$58,2,FALSE)=0,\"\",VLOOKUP(AX293,'Footnotes list'!$D$9:$E$58,2,FALSE) ) )","v":""},null,null,null,null,{"$f":"IF(TRIM(BC293)=\"\", \"\", IF(VLOOKUP(BC293,'Footnotes list'!$D$9:$E$58,2,FALSE)=0,\"\",VLOOKUP(BC293,'Footnotes list'!$D$9:$E$58,2,FALSE) ) )","v":""},null,null,null,null,{"$f":"IF(TRIM(BH293)=\"\", \"\", IF(VLOOKUP(BH293,'Footnotes list'!$D$9:$E$58,2,FALSE)=0,\"\",VLOOKUP(BH293,'Footnotes list'!$D$9:$E$58,2,FALSE) ) )","v":""},null,null,null,null,{"$f":"IF(TRIM(BM293)=\"\", \"\", IF(VLOOKUP(BM293,'Footnotes list'!$D$9:$E$58,2,FALSE)=0,\"\",VLOOKUP(BM293,'Footnotes list'!$D$9:$E$58,2,FALSE) ) )","v":""},null,null,null,null,{"$f":"IF(TRIM(BR293)=\"\", \"\", IF(VLOOKUP(BR293,'Footnotes list'!$D$9:$E$58,2,FALSE)=0,\"\",VLOOKUP(BR293,'Footnotes list'!$D$9:$E$58,2,FALSE) ) )","v":""},null,null,null,null,{"$f":"IF(TRIM(BW293)=\"\", \"\", IF(VLOOKUP(BW293,'Footnotes list'!$D$9:$E$58,2,FALSE)=0,\"\",VLOOKUP(BW293,'Footnotes list'!$D$9:$E$58,2,FALSE) ) )","v":""},null,null,null,null,{"$f":"IF(TRIM(CB293)=\"\", \"\", IF(VLOOKUP(CB293,'Footnotes list'!$D$9:$E$58,2,FALSE)=0,\"\",VLOOKUP(CB293,'Footnotes list'!$D$9:$E$58,2,FALSE) ) )","v":""},null,null,null,null,{"$f":"IF(TRIM(CG293)=\"\", \"\", IF(VLOOKUP(CG293,'Footnotes list'!$D$9:$E$58,2,FALSE)=0,\"\",VLOOKUP(CG293,'Footnotes list'!$D$9:$E$58,2,FALSE) ) )","v":""},null,null,null,null,{"$f":"IF(TRIM(CL293)=\"\", \"\", IF(VLOOKUP(CL293,'Footnotes list'!$D$9:$E$58,2,FALSE)=0,\"\",VLOOKUP(CL293,'Footnotes list'!$D$9:$E$58,2,FALSE) ) )","v":""},null,null,null,null,{"$f":"IF(TRIM(CQ293)=\"\", \"\", IF(VLOOKUP(CQ293,'Footnotes list'!$D$9:$E$58,2,FALSE)=0,\"\",VLOOKUP(CQ293,'Footnotes list'!$D$9:$E$58,2,FALSE) ) )","v":""},null,null,null,null,{"$f":"IF(TRIM(CV293)=\"\", \"\", IF(VLOOKUP(CV293,'Footnotes list'!$D$9:$E$58,2,FALSE)=0,\"\",VLOOKUP(CV293,'Footnotes list'!$D$9:$E$58,2,FALSE) ) )","v":""},null,null,null,null,{"$f":"IF(TRIM(DA293)=\"\", \"\", IF(VLOOKUP(DA293,'Footnotes list'!$D$9:$E$58,2,FALSE)=0,\"\",VLOOKUP(DA293,'Footnotes list'!$D$9:$E$58,2,FALSE) ) )","v":""},null,null,null,null,{"$f":"IF(TRIM(DF293)=\"\", \"\", IF(VLOOKUP(DF293,'Footnotes list'!$D$9:$E$58,2,FALSE)=0,\"\",VLOOKUP(DF293,'Footnotes list'!$D$9:$E$58,2,FALSE) ) )","v":""},null,null,null,null,{"$f":"IF(TRIM(DK293)=\"\", \"\", IF(VLOOKUP(DK293,'Footnotes list'!$D$9:$E$58,2,FALSE)=0,\"\",VLOOKUP(DK293,'Footnotes list'!$D$9:$E$58,2,FALSE) ) )","v":""},null,null,null,null,{"$f":"IF(TRIM(DP293)=\"\", \"\", IF(VLOOKUP(DP293,'Footnotes list'!$D$9:$E$58,2,FALSE)=0,\"\",VLOOKUP(DP293,'Footnotes list'!$D$9:$E$58,2,FALSE) ) )","v":""},null,null,null,null,{"$f":"IF(TRIM(DU293)=\"\", \"\", IF(VLOOKUP(DU293,'Footnotes list'!$D$9:$E$58,2,FALSE)=0,\"\",VLOOKUP(DU293,'Footnotes list'!$D$9:$E$58,2,FALSE) ) )","v":""},null,null,null,null,{"$f":"IF(TRIM(DZ293)=\"\", \"\", IF(VLOOKUP(DZ293,'Footnotes list'!$D$9:$E$58,2,FALSE)=0,\"\",VLOOKUP(DZ293,'Footnotes list'!$D$9:$E$58,2,FALSE) ) )","v":""},null,null,null,null,{"$f":"IF(TRIM(EE293)=\"\", \"\", IF(VLOOKUP(EE293,'Footnotes list'!$D$9:$E$58,2,FALSE)=0,\"\",VLOOKUP(EE293,'Footnotes list'!$D$9:$E$58,2,FALSE) ) )","v":""},null,null,null,null,{"$f":"IF(TRIM(EJ293)=\"\", \"\", IF(VLOOKUP(EJ293,'Footnotes list'!$D$9:$E$58,2,FALSE)=0,\"\",VLOOKUP(EJ293,'Footnotes list'!$D$9:$E$58,2,FALSE) ) )","v":""},null,null,null,null,{"$f":"IF(TRIM(EO293)=\"\", \"\", IF(VLOOKUP(EO293,'Footnotes list'!$D$9:$E$58,2,FALSE)=0,\"\",VLOOKUP(EO293,'Footnotes list'!$D$9:$E$58,2,FALSE) ) )","v":""},null,null,null,null,{"$f":"IF(TRIM(ET293)=\"\", \"\", IF(VLOOKUP(ET293,'Footnotes list'!$D$9:$E$58,2,FALSE)=0,\"\",VLOOKUP(ET293,'Footnotes list'!$D$9:$E$58,2,FALSE) ) )","v":""},null,null,null,null,{"$f":"IF(TRIM(EY293)=\"\", \"\", IF(VLOOKUP(EY293,'Footnotes list'!$D$9:$E$58,2,FALSE)=0,\"\",VLOOKUP(EY293,'Footnotes list'!$D$9:$E$58,2,FALSE) ) )","v":""}]
[null,null,"S","C_REP","cleaner and resource efficient products",null,null,null,null,null,{"$f":"IF(TRIM(J294)=\"\", \"\", IF(VLOOKUP(J294,'Footnotes list'!$D$9:$E$58,2,FALSE)=0,\"\",VLOOKUP(J294,'Footnotes list'!$D$9:$E$58,2,FALSE) ) )","v":""},null,null,null,null,{"$f":"IF(TRIM(O294)=\"\", \"\", IF(VLOOKUP(O294,'Footnotes list'!$D$9:$E$58,2,FALSE)=0,\"\",VLOOKUP(O294,'Footnotes list'!$D$9:$E$58,2,FALSE) ) )","v":""},null,null,null,null,{"$f":"IF(TRIM(T294)=\"\", \"\", IF(VLOOKUP(T294,'Footnotes list'!$D$9:$E$58,2,FALSE)=0,\"\",VLOOKUP(T294,'Footnotes list'!$D$9:$E$58,2,FALSE) ) )","v":""},null,null,null,null,{"$f":"IF(TRIM(Y294)=\"\", \"\", IF(VLOOKUP(Y294,'Footnotes list'!$D$9:$E$58,2,FALSE)=0,\"\",VLOOKUP(Y294,'Footnotes list'!$D$9:$E$58,2,FALSE) ) )","v":""},null,null,null,null,{"$f":"IF(TRIM(AD294)=\"\", \"\", IF(VLOOKUP(AD294,'Footnotes list'!$D$9:$E$58,2,FALSE)=0,\"\",VLOOKUP(AD294,'Footnotes list'!$D$9:$E$58,2,FALSE) ) )","v":""},null,null,null,null,{"$f":"IF(TRIM(AI294)=\"\", \"\", IF(VLOOKUP(AI294,'Footnotes list'!$D$9:$E$58,2,FALSE)=0,\"\",VLOOKUP(AI294,'Footnotes list'!$D$9:$E$58,2,FALSE) ) )","v":""},null,null,null,null,{"$f":"IF(TRIM(AN294)=\"\", \"\", IF(VLOOKUP(AN294,'Footnotes list'!$D$9:$E$58,2,FALSE)=0,\"\",VLOOKUP(AN294,'Footnotes list'!$D$9:$E$58,2,FALSE) ) )","v":""},null,null,null,null,{"$f":"IF(TRIM(AS294)=\"\", \"\", IF(VLOOKUP(AS294,'Footnotes list'!$D$9:$E$58,2,FALSE)=0,\"\",VLOOKUP(AS294,'Footnotes list'!$D$9:$E$58,2,FALSE) ) )","v":""},null,null,null,null,{"$f":"IF(TRIM(AX294)=\"\", \"\", IF(VLOOKUP(AX294,'Footnotes list'!$D$9:$E$58,2,FALSE)=0,\"\",VLOOKUP(AX294,'Footnotes list'!$D$9:$E$58,2,FALSE) ) )","v":""},null,null,null,null,{"$f":"IF(TRIM(BC294)=\"\", \"\", IF(VLOOKUP(BC294,'Footnotes list'!$D$9:$E$58,2,FALSE)=0,\"\",VLOOKUP(BC294,'Footnotes list'!$D$9:$E$58,2,FALSE) ) )","v":""},null,null,null,null,{"$f":"IF(TRIM(BH294)=\"\", \"\", IF(VLOOKUP(BH294,'Footnotes list'!$D$9:$E$58,2,FALSE)=0,\"\",VLOOKUP(BH294,'Footnotes list'!$D$9:$E$58,2,FALSE) ) )","v":""},null,null,null,null,{"$f":"IF(TRIM(BM294)=\"\", \"\", IF(VLOOKUP(BM294,'Footnotes list'!$D$9:$E$58,2,FALSE)=0,\"\",VLOOKUP(BM294,'Footnotes list'!$D$9:$E$58,2,FALSE) ) )","v":""},null,null,null,null,{"$f":"IF(TRIM(BR294)=\"\", \"\", IF(VLOOKUP(BR294,'Footnotes list'!$D$9:$E$58,2,FALSE)=0,\"\",VLOOKUP(BR294,'Footnotes list'!$D$9:$E$58,2,FALSE) ) )","v":""},null,null,null,null,{"$f":"IF(TRIM(BW294)=\"\", \"\", IF(VLOOKUP(BW294,'Footnotes list'!$D$9:$E$58,2,FALSE)=0,\"\",VLOOKUP(BW294,'Footnotes list'!$D$9:$E$58,2,FALSE) ) )","v":""},null,null,null,null,{"$f":"IF(TRIM(CB294)=\"\", \"\", IF(VLOOKUP(CB294,'Footnotes list'!$D$9:$E$58,2,FALSE)=0,\"\",VLOOKUP(CB294,'Footnotes list'!$D$9:$E$58,2,FALSE) ) )","v":""},null,null,null,null,{"$f":"IF(TRIM(CG294)=\"\", \"\", IF(VLOOKUP(CG294,'Footnotes list'!$D$9:$E$58,2,FALSE)=0,\"\",VLOOKUP(CG294,'Footnotes list'!$D$9:$E$58,2,FALSE) ) )","v":""},null,null,null,null,{"$f":"IF(TRIM(CL294)=\"\", \"\", IF(VLOOKUP(CL294,'Footnotes list'!$D$9:$E$58,2,FALSE)=0,\"\",VLOOKUP(CL294,'Footnotes list'!$D$9:$E$58,2,FALSE) ) )","v":""},null,null,null,null,{"$f":"IF(TRIM(CQ294)=\"\", \"\", IF(VLOOKUP(CQ294,'Footnotes list'!$D$9:$E$58,2,FALSE)=0,\"\",VLOOKUP(CQ294,'Footnotes list'!$D$9:$E$58,2,FALSE) ) )","v":""},null,null,null,null,{"$f":"IF(TRIM(CV294)=\"\", \"\", IF(VLOOKUP(CV294,'Footnotes list'!$D$9:$E$58,2,FALSE)=0,\"\",VLOOKUP(CV294,'Footnotes list'!$D$9:$E$58,2,FALSE) ) )","v":""},null,null,null,null,{"$f":"IF(TRIM(DA294)=\"\", \"\", IF(VLOOKUP(DA294,'Footnotes list'!$D$9:$E$58,2,FALSE)=0,\"\",VLOOKUP(DA294,'Footnotes list'!$D$9:$E$58,2,FALSE) ) )","v":""},null,null,null,null,{"$f":"IF(TRIM(DF294)=\"\", \"\", IF(VLOOKUP(DF294,'Footnotes list'!$D$9:$E$58,2,FALSE)=0,\"\",VLOOKUP(DF294,'Footnotes list'!$D$9:$E$58,2,FALSE) ) )","v":""},null,null,null,null,{"$f":"IF(TRIM(DK294)=\"\", \"\", IF(VLOOKUP(DK294,'Footnotes list'!$D$9:$E$58,2,FALSE)=0,\"\",VLOOKUP(DK294,'Footnotes list'!$D$9:$E$58,2,FALSE) ) )","v":""},null,null,null,null,{"$f":"IF(TRIM(DP294)=\"\", \"\", IF(VLOOKUP(DP294,'Footnotes list'!$D$9:$E$58,2,FALSE)=0,\"\",VLOOKUP(DP294,'Footnotes list'!$D$9:$E$58,2,FALSE) ) )","v":""},null,null,null,null,{"$f":"IF(TRIM(DU294)=\"\", \"\", IF(VLOOKUP(DU294,'Footnotes list'!$D$9:$E$58,2,FALSE)=0,\"\",VLOOKUP(DU294,'Footnotes list'!$D$9:$E$58,2,FALSE) ) )","v":""},null,null,null,null,{"$f":"IF(TRIM(DZ294)=\"\", \"\", IF(VLOOKUP(DZ294,'Footnotes list'!$D$9:$E$58,2,FALSE)=0,\"\",VLOOKUP(DZ294,'Footnotes list'!$D$9:$E$58,2,FALSE) ) )","v":""},null,null,null,null,{"$f":"IF(TRIM(EE294)=\"\", \"\", IF(VLOOKUP(EE294,'Footnotes list'!$D$9:$E$58,2,FALSE)=0,\"\",VLOOKUP(EE294,'Footnotes list'!$D$9:$E$58,2,FALSE) ) )","v":""},null,null,null,null,{"$f":"IF(TRIM(EJ294)=\"\", \"\", IF(VLOOKUP(EJ294,'Footnotes list'!$D$9:$E$58,2,FALSE)=0,\"\",VLOOKUP(EJ294,'Footnotes list'!$D$9:$E$58,2,FALSE) ) )","v":""},null,null,null,null,{"$f":"IF(TRIM(EO294)=\"\", \"\", IF(VLOOKUP(EO294,'Footnotes list'!$D$9:$E$58,2,FALSE)=0,\"\",VLOOKUP(EO294,'Footnotes list'!$D$9:$E$58,2,FALSE) ) )","v":""},null,null,null,null,{"$f":"IF(TRIM(ET294)=\"\", \"\", IF(VLOOKUP(ET294,'Footnotes list'!$D$9:$E$58,2,FALSE)=0,\"\",VLOOKUP(ET294,'Footnotes list'!$D$9:$E$58,2,FALSE) ) )","v":""},null,null,null,null,{"$f":"IF(TRIM(EY294)=\"\", \"\", IF(VLOOKUP(EY294,'Footnotes list'!$D$9:$E$58,2,FALSE)=0,\"\",VLOOKUP(EY294,'Footnotes list'!$D$9:$E$58,2,FALSE) ) )","v":""}]
[null,null,"T","TOT_EGSS","Total T - Activities of households as employers; undifferentiated goods- and services-producing activities of households for own use, of which:",null,null,null,null,null,{"$f":"IF(TRIM(J295)=\"\", \"\", IF(VLOOKUP(J295,'Footnotes list'!$D$9:$E$58,2,FALSE)=0,\"\",VLOOKUP(J295,'Footnotes list'!$D$9:$E$58,2,FALSE) ) )","v":""},null,null,null,null,{"$f":"IF(TRIM(O295)=\"\", \"\", IF(VLOOKUP(O295,'Footnotes list'!$D$9:$E$58,2,FALSE)=0,\"\",VLOOKUP(O295,'Footnotes list'!$D$9:$E$58,2,FALSE) ) )","v":""},null,null,null,null,{"$f":"IF(TRIM(T295)=\"\", \"\", IF(VLOOKUP(T295,'Footnotes list'!$D$9:$E$58,2,FALSE)=0,\"\",VLOOKUP(T295,'Footnotes list'!$D$9:$E$58,2,FALSE) ) )","v":""},null,null,null,null,{"$f":"IF(TRIM(Y295)=\"\", \"\", IF(VLOOKUP(Y295,'Footnotes list'!$D$9:$E$58,2,FALSE)=0,\"\",VLOOKUP(Y295,'Footnotes list'!$D$9:$E$58,2,FALSE) ) )","v":""},null,null,null,null,{"$f":"IF(TRIM(AD295)=\"\", \"\", IF(VLOOKUP(AD295,'Footnotes list'!$D$9:$E$58,2,FALSE)=0,\"\",VLOOKUP(AD295,'Footnotes list'!$D$9:$E$58,2,FALSE) ) )","v":""},null,null,null,null,{"$f":"IF(TRIM(AI295)=\"\", \"\", IF(VLOOKUP(AI295,'Footnotes list'!$D$9:$E$58,2,FALSE)=0,\"\",VLOOKUP(AI295,'Footnotes list'!$D$9:$E$58,2,FALSE) ) )","v":""},null,null,null,null,{"$f":"IF(TRIM(AN295)=\"\", \"\", IF(VLOOKUP(AN295,'Footnotes list'!$D$9:$E$58,2,FALSE)=0,\"\",VLOOKUP(AN295,'Footnotes list'!$D$9:$E$58,2,FALSE) ) )","v":""},null,null,null,null,{"$f":"IF(TRIM(AS295)=\"\", \"\", IF(VLOOKUP(AS295,'Footnotes list'!$D$9:$E$58,2,FALSE)=0,\"\",VLOOKUP(AS295,'Footnotes list'!$D$9:$E$58,2,FALSE) ) )","v":""},null,null,null,null,{"$f":"IF(TRIM(AX295)=\"\", \"\", IF(VLOOKUP(AX295,'Footnotes list'!$D$9:$E$58,2,FALSE)=0,\"\",VLOOKUP(AX295,'Footnotes list'!$D$9:$E$58,2,FALSE) ) )","v":""},null,null,null,null,{"$f":"IF(TRIM(BC295)=\"\", \"\", IF(VLOOKUP(BC295,'Footnotes list'!$D$9:$E$58,2,FALSE)=0,\"\",VLOOKUP(BC295,'Footnotes list'!$D$9:$E$58,2,FALSE) ) )","v":""},null,null,null,null,{"$f":"IF(TRIM(BH295)=\"\", \"\", IF(VLOOKUP(BH295,'Footnotes list'!$D$9:$E$58,2,FALSE)=0,\"\",VLOOKUP(BH295,'Footnotes list'!$D$9:$E$58,2,FALSE) ) )","v":""},null,null,null,null,{"$f":"IF(TRIM(BM295)=\"\", \"\", IF(VLOOKUP(BM295,'Footnotes list'!$D$9:$E$58,2,FALSE)=0,\"\",VLOOKUP(BM295,'Footnotes list'!$D$9:$E$58,2,FALSE) ) )","v":""},null,null,null,null,{"$f":"IF(TRIM(BR295)=\"\", \"\", IF(VLOOKUP(BR295,'Footnotes list'!$D$9:$E$58,2,FALSE)=0,\"\",VLOOKUP(BR295,'Footnotes list'!$D$9:$E$58,2,FALSE) ) )","v":""},null,null,null,null,{"$f":"IF(TRIM(BW295)=\"\", \"\", IF(VLOOKUP(BW295,'Footnotes list'!$D$9:$E$58,2,FALSE)=0,\"\",VLOOKUP(BW295,'Footnotes list'!$D$9:$E$58,2,FALSE) ) )","v":""},null,null,null,null,{"$f":"IF(TRIM(CB295)=\"\", \"\", IF(VLOOKUP(CB295,'Footnotes list'!$D$9:$E$58,2,FALSE)=0,\"\",VLOOKUP(CB295,'Footnotes list'!$D$9:$E$58,2,FALSE) ) )","v":""},null,null,null,null,{"$f":"IF(TRIM(CG295)=\"\", \"\", IF(VLOOKUP(CG295,'Footnotes list'!$D$9:$E$58,2,FALSE)=0,\"\",VLOOKUP(CG295,'Footnotes list'!$D$9:$E$58,2,FALSE) ) )","v":""},null,null,null,null,{"$f":"IF(TRIM(CL295)=\"\", \"\", IF(VLOOKUP(CL295,'Footnotes list'!$D$9:$E$58,2,FALSE)=0,\"\",VLOOKUP(CL295,'Footnotes list'!$D$9:$E$58,2,FALSE) ) )","v":""},null,null,null,null,{"$f":"IF(TRIM(CQ295)=\"\", \"\", IF(VLOOKUP(CQ295,'Footnotes list'!$D$9:$E$58,2,FALSE)=0,\"\",VLOOKUP(CQ295,'Footnotes list'!$D$9:$E$58,2,FALSE) ) )","v":""},null,null,null,null,{"$f":"IF(TRIM(CV295)=\"\", \"\", IF(VLOOKUP(CV295,'Footnotes list'!$D$9:$E$58,2,FALSE)=0,\"\",VLOOKUP(CV295,'Footnotes list'!$D$9:$E$58,2,FALSE) ) )","v":""},null,null,null,null,{"$f":"IF(TRIM(DA295)=\"\", \"\", IF(VLOOKUP(DA295,'Footnotes list'!$D$9:$E$58,2,FALSE)=0,\"\",VLOOKUP(DA295,'Footnotes list'!$D$9:$E$58,2,FALSE) ) )","v":""},null,null,null,null,{"$f":"IF(TRIM(DF295)=\"\", \"\", IF(VLOOKUP(DF295,'Footnotes list'!$D$9:$E$58,2,FALSE)=0,\"\",VLOOKUP(DF295,'Footnotes list'!$D$9:$E$58,2,FALSE) ) )","v":""},null,null,null,null,{"$f":"IF(TRIM(DK295)=\"\", \"\", IF(VLOOKUP(DK295,'Footnotes list'!$D$9:$E$58,2,FALSE)=0,\"\",VLOOKUP(DK295,'Footnotes list'!$D$9:$E$58,2,FALSE) ) )","v":""},null,null,null,null,{"$f":"IF(TRIM(DP295)=\"\", \"\", IF(VLOOKUP(DP295,'Footnotes list'!$D$9:$E$58,2,FALSE)=0,\"\",VLOOKUP(DP295,'Footnotes list'!$D$9:$E$58,2,FALSE) ) )","v":""},null,null,null,null,{"$f":"IF(TRIM(DU295)=\"\", \"\", IF(VLOOKUP(DU295,'Footnotes list'!$D$9:$E$58,2,FALSE)=0,\"\",VLOOKUP(DU295,'Footnotes list'!$D$9:$E$58,2,FALSE) ) )","v":""},null,null,null,null,{"$f":"IF(TRIM(DZ295)=\"\", \"\", IF(VLOOKUP(DZ295,'Footnotes list'!$D$9:$E$58,2,FALSE)=0,\"\",VLOOKUP(DZ295,'Footnotes list'!$D$9:$E$58,2,FALSE) ) )","v":""},null,null,null,null,{"$f":"IF(TRIM(EE295)=\"\", \"\", IF(VLOOKUP(EE295,'Footnotes list'!$D$9:$E$58,2,FALSE)=0,\"\",VLOOKUP(EE295,'Footnotes list'!$D$9:$E$58,2,FALSE) ) )","v":""},null,null,null,null,{"$f":"IF(TRIM(EJ295)=\"\", \"\", IF(VLOOKUP(EJ295,'Footnotes list'!$D$9:$E$58,2,FALSE)=0,\"\",VLOOKUP(EJ295,'Footnotes list'!$D$9:$E$58,2,FALSE) ) )","v":""},null,null,null,null,{"$f":"IF(TRIM(EO295)=\"\", \"\", IF(VLOOKUP(EO295,'Footnotes list'!$D$9:$E$58,2,FALSE)=0,\"\",VLOOKUP(EO295,'Footnotes list'!$D$9:$E$58,2,FALSE) ) )","v":""},null,null,null,null,{"$f":"IF(TRIM(ET295)=\"\", \"\", IF(VLOOKUP(ET295,'Footnotes list'!$D$9:$E$58,2,FALSE)=0,\"\",VLOOKUP(ET295,'Footnotes list'!$D$9:$E$58,2,FALSE) ) )","v":""},null,null,null,null,{"$f":"IF(TRIM(EY295)=\"\", \"\", IF(VLOOKUP(EY295,'Footnotes list'!$D$9:$E$58,2,FALSE)=0,\"\",VLOOKUP(EY295,'Footnotes list'!$D$9:$E$58,2,FALSE) ) )","v":""}]
[null,null,"T","ANC","ancillary activities",null,null,null,null,null,{"$f":"IF(TRIM(J296)=\"\", \"\", IF(VLOOKUP(J296,'Footnotes list'!$D$9:$E$58,2,FALSE)=0,\"\",VLOOKUP(J296,'Footnotes list'!$D$9:$E$58,2,FALSE) ) )","v":""},null,null,null,null,{"$f":"IF(TRIM(O296)=\"\", \"\", IF(VLOOKUP(O296,'Footnotes list'!$D$9:$E$58,2,FALSE)=0,\"\",VLOOKUP(O296,'Footnotes list'!$D$9:$E$58,2,FALSE) ) )","v":""},null,null,null,null,{"$f":"IF(TRIM(T296)=\"\", \"\", IF(VLOOKUP(T296,'Footnotes list'!$D$9:$E$58,2,FALSE)=0,\"\",VLOOKUP(T296,'Footnotes list'!$D$9:$E$58,2,FALSE) ) )","v":""},null,null,null,null,{"$f":"IF(TRIM(Y296)=\"\", \"\", IF(VLOOKUP(Y296,'Footnotes list'!$D$9:$E$58,2,FALSE)=0,\"\",VLOOKUP(Y296,'Footnotes list'!$D$9:$E$58,2,FALSE) ) )","v":""},null,null,null,null,{"$f":"IF(TRIM(AD296)=\"\", \"\", IF(VLOOKUP(AD296,'Footnotes list'!$D$9:$E$58,2,FALSE)=0,\"\",VLOOKUP(AD296,'Footnotes list'!$D$9:$E$58,2,FALSE) ) )","v":""},null,null,null,null,{"$f":"IF(TRIM(AI296)=\"\", \"\", IF(VLOOKUP(AI296,'Footnotes list'!$D$9:$E$58,2,FALSE)=0,\"\",VLOOKUP(AI296,'Footnotes list'!$D$9:$E$58,2,FALSE) ) )","v":""},null,null,null,null,{"$f":"IF(TRIM(AN296)=\"\", \"\", IF(VLOOKUP(AN296,'Footnotes list'!$D$9:$E$58,2,FALSE)=0,\"\",VLOOKUP(AN296,'Footnotes list'!$D$9:$E$58,2,FALSE) ) )","v":""},null,null,null,null,{"$f":"IF(TRIM(AS296)=\"\", \"\", IF(VLOOKUP(AS296,'Footnotes list'!$D$9:$E$58,2,FALSE)=0,\"\",VLOOKUP(AS296,'Footnotes list'!$D$9:$E$58,2,FALSE) ) )","v":""},null,null,null,null,{"$f":"IF(TRIM(AX296)=\"\", \"\", IF(VLOOKUP(AX296,'Footnotes list'!$D$9:$E$58,2,FALSE)=0,\"\",VLOOKUP(AX296,'Footnotes list'!$D$9:$E$58,2,FALSE) ) )","v":""},null,null,null,null,{"$f":"IF(TRIM(BC296)=\"\", \"\", IF(VLOOKUP(BC296,'Footnotes list'!$D$9:$E$58,2,FALSE)=0,\"\",VLOOKUP(BC296,'Footnotes list'!$D$9:$E$58,2,FALSE) ) )","v":""},null,null,null,null,{"$f":"IF(TRIM(BH296)=\"\", \"\", IF(VLOOKUP(BH296,'Footnotes list'!$D$9:$E$58,2,FALSE)=0,\"\",VLOOKUP(BH296,'Footnotes list'!$D$9:$E$58,2,FALSE) ) )","v":""},null,null,null,null,{"$f":"IF(TRIM(BM296)=\"\", \"\", IF(VLOOKUP(BM296,'Footnotes list'!$D$9:$E$58,2,FALSE)=0,\"\",VLOOKUP(BM296,'Footnotes list'!$D$9:$E$58,2,FALSE) ) )","v":""},null,null,null,null,{"$f":"IF(TRIM(BR296)=\"\", \"\", IF(VLOOKUP(BR296,'Footnotes list'!$D$9:$E$58,2,FALSE)=0,\"\",VLOOKUP(BR296,'Footnotes list'!$D$9:$E$58,2,FALSE) ) )","v":""},null,null,null,null,{"$f":"IF(TRIM(BW296)=\"\", \"\", IF(VLOOKUP(BW296,'Footnotes list'!$D$9:$E$58,2,FALSE)=0,\"\",VLOOKUP(BW296,'Footnotes list'!$D$9:$E$58,2,FALSE) ) )","v":""},null,null,null,null,{"$f":"IF(TRIM(CB296)=\"\", \"\", IF(VLOOKUP(CB296,'Footnotes list'!$D$9:$E$58,2,FALSE)=0,\"\",VLOOKUP(CB296,'Footnotes list'!$D$9:$E$58,2,FALSE) ) )","v":""},null,null,null,null,{"$f":"IF(TRIM(CG296)=\"\", \"\", IF(VLOOKUP(CG296,'Footnotes list'!$D$9:$E$58,2,FALSE)=0,\"\",VLOOKUP(CG296,'Footnotes list'!$D$9:$E$58,2,FALSE) ) )","v":""},null,null,null,null,{"$f":"IF(TRIM(CL296)=\"\", \"\", IF(VLOOKUP(CL296,'Footnotes list'!$D$9:$E$58,2,FALSE)=0,\"\",VLOOKUP(CL296,'Footnotes list'!$D$9:$E$58,2,FALSE) ) )","v":""},null,null,null,null,{"$f":"IF(TRIM(CQ296)=\"\", \"\", IF(VLOOKUP(CQ296,'Footnotes list'!$D$9:$E$58,2,FALSE)=0,\"\",VLOOKUP(CQ296,'Footnotes list'!$D$9:$E$58,2,FALSE) ) )","v":""},null,null,null,null,{"$f":"IF(TRIM(CV296)=\"\", \"\", IF(VLOOKUP(CV296,'Footnotes list'!$D$9:$E$58,2,FALSE)=0,\"\",VLOOKUP(CV296,'Footnotes list'!$D$9:$E$58,2,FALSE) ) )","v":""},null,null,null,null,{"$f":"IF(TRIM(DA296)=\"\", \"\", IF(VLOOKUP(DA296,'Footnotes list'!$D$9:$E$58,2,FALSE)=0,\"\",VLOOKUP(DA296,'Footnotes list'!$D$9:$E$58,2,FALSE) ) )","v":""},null,null,null,null,{"$f":"IF(TRIM(DF296)=\"\", \"\", IF(VLOOKUP(DF296,'Footnotes list'!$D$9:$E$58,2,FALSE)=0,\"\",VLOOKUP(DF296,'Footnotes list'!$D$9:$E$58,2,FALSE) ) )","v":""},null,null,null,null,{"$f":"IF(TRIM(DK296)=\"\", \"\", IF(VLOOKUP(DK296,'Footnotes list'!$D$9:$E$58,2,FALSE)=0,\"\",VLOOKUP(DK296,'Footnotes list'!$D$9:$E$58,2,FALSE) ) )","v":""},null,null,null,null,{"$f":"IF(TRIM(DP296)=\"\", \"\", IF(VLOOKUP(DP296,'Footnotes list'!$D$9:$E$58,2,FALSE)=0,\"\",VLOOKUP(DP296,'Footnotes list'!$D$9:$E$58,2,FALSE) ) )","v":""},null,null,null,null,{"$f":"IF(TRIM(DU296)=\"\", \"\", IF(VLOOKUP(DU296,'Footnotes list'!$D$9:$E$58,2,FALSE)=0,\"\",VLOOKUP(DU296,'Footnotes list'!$D$9:$E$58,2,FALSE) ) )","v":""},null,null,null,null,{"$f":"IF(TRIM(DZ296)=\"\", \"\", IF(VLOOKUP(DZ296,'Footnotes list'!$D$9:$E$58,2,FALSE)=0,\"\",VLOOKUP(DZ296,'Footnotes list'!$D$9:$E$58,2,FALSE) ) )","v":""},null,null,null,null,{"$f":"IF(TRIM(EE296)=\"\", \"\", IF(VLOOKUP(EE296,'Footnotes list'!$D$9:$E$58,2,FALSE)=0,\"\",VLOOKUP(EE296,'Footnotes list'!$D$9:$E$58,2,FALSE) ) )","v":""},null,null,null,null,{"$f":"IF(TRIM(EJ296)=\"\", \"\", IF(VLOOKUP(EJ296,'Footnotes list'!$D$9:$E$58,2,FALSE)=0,\"\",VLOOKUP(EJ296,'Footnotes list'!$D$9:$E$58,2,FALSE) ) )","v":""},null,null,null,null,{"$f":"IF(TRIM(EO296)=\"\", \"\", IF(VLOOKUP(EO296,'Footnotes list'!$D$9:$E$58,2,FALSE)=0,\"\",VLOOKUP(EO296,'Footnotes list'!$D$9:$E$58,2,FALSE) ) )","v":""},null,null,null,null,{"$f":"IF(TRIM(ET296)=\"\", \"\", IF(VLOOKUP(ET296,'Footnotes list'!$D$9:$E$58,2,FALSE)=0,\"\",VLOOKUP(ET296,'Footnotes list'!$D$9:$E$58,2,FALSE) ) )","v":""},null,null,null,null,{"$f":"IF(TRIM(EY296)=\"\", \"\", IF(VLOOKUP(EY296,'Footnotes list'!$D$9:$E$58,2,FALSE)=0,\"\",VLOOKUP(EY296,'Footnotes list'!$D$9:$E$58,2,FALSE) ) )","v":""}]
[null,null,"T","NMKT","non-market activities",null,null,null,null,null,{"$f":"IF(TRIM(J297)=\"\", \"\", IF(VLOOKUP(J297,'Footnotes list'!$D$9:$E$58,2,FALSE)=0,\"\",VLOOKUP(J297,'Footnotes list'!$D$9:$E$58,2,FALSE) ) )","v":""},null,null,null,null,{"$f":"IF(TRIM(O297)=\"\", \"\", IF(VLOOKUP(O297,'Footnotes list'!$D$9:$E$58,2,FALSE)=0,\"\",VLOOKUP(O297,'Footnotes list'!$D$9:$E$58,2,FALSE) ) )","v":""},null,null,null,null,{"$f":"IF(TRIM(T297)=\"\", \"\", IF(VLOOKUP(T297,'Footnotes list'!$D$9:$E$58,2,FALSE)=0,\"\",VLOOKUP(T297,'Footnotes list'!$D$9:$E$58,2,FALSE) ) )","v":""},null,null,null,null,{"$f":"IF(TRIM(Y297)=\"\", \"\", IF(VLOOKUP(Y297,'Footnotes list'!$D$9:$E$58,2,FALSE)=0,\"\",VLOOKUP(Y297,'Footnotes list'!$D$9:$E$58,2,FALSE) ) )","v":""},null,null,null,null,{"$f":"IF(TRIM(AD297)=\"\", \"\", IF(VLOOKUP(AD297,'Footnotes list'!$D$9:$E$58,2,FALSE)=0,\"\",VLOOKUP(AD297,'Footnotes list'!$D$9:$E$58,2,FALSE) ) )","v":""},null,null,null,null,{"$f":"IF(TRIM(AI297)=\"\", \"\", IF(VLOOKUP(AI297,'Footnotes list'!$D$9:$E$58,2,FALSE)=0,\"\",VLOOKUP(AI297,'Footnotes list'!$D$9:$E$58,2,FALSE) ) )","v":""},null,null,null,null,{"$f":"IF(TRIM(AN297)=\"\", \"\", IF(VLOOKUP(AN297,'Footnotes list'!$D$9:$E$58,2,FALSE)=0,\"\",VLOOKUP(AN297,'Footnotes list'!$D$9:$E$58,2,FALSE) ) )","v":""},null,null,null,null,{"$f":"IF(TRIM(AS297)=\"\", \"\", IF(VLOOKUP(AS297,'Footnotes list'!$D$9:$E$58,2,FALSE)=0,\"\",VLOOKUP(AS297,'Footnotes list'!$D$9:$E$58,2,FALSE) ) )","v":""},null,null,null,null,{"$f":"IF(TRIM(AX297)=\"\", \"\", IF(VLOOKUP(AX297,'Footnotes list'!$D$9:$E$58,2,FALSE)=0,\"\",VLOOKUP(AX297,'Footnotes list'!$D$9:$E$58,2,FALSE) ) )","v":""},null,null,null,null,{"$f":"IF(TRIM(BC297)=\"\", \"\", IF(VLOOKUP(BC297,'Footnotes list'!$D$9:$E$58,2,FALSE)=0,\"\",VLOOKUP(BC297,'Footnotes list'!$D$9:$E$58,2,FALSE) ) )","v":""},null,null,null,null,{"$f":"IF(TRIM(BH297)=\"\", \"\", IF(VLOOKUP(BH297,'Footnotes list'!$D$9:$E$58,2,FALSE)=0,\"\",VLOOKUP(BH297,'Footnotes list'!$D$9:$E$58,2,FALSE) ) )","v":""},null,null,null,null,{"$f":"IF(TRIM(BM297)=\"\", \"\", IF(VLOOKUP(BM297,'Footnotes list'!$D$9:$E$58,2,FALSE)=0,\"\",VLOOKUP(BM297,'Footnotes list'!$D$9:$E$58,2,FALSE) ) )","v":""},null,null,null,null,{"$f":"IF(TRIM(BR297)=\"\", \"\", IF(VLOOKUP(BR297,'Footnotes list'!$D$9:$E$58,2,FALSE)=0,\"\",VLOOKUP(BR297,'Footnotes list'!$D$9:$E$58,2,FALSE) ) )","v":""},null,null,null,null,{"$f":"IF(TRIM(BW297)=\"\", \"\", IF(VLOOKUP(BW297,'Footnotes list'!$D$9:$E$58,2,FALSE)=0,\"\",VLOOKUP(BW297,'Footnotes list'!$D$9:$E$58,2,FALSE) ) )","v":""},null,null,null,null,{"$f":"IF(TRIM(CB297)=\"\", \"\", IF(VLOOKUP(CB297,'Footnotes list'!$D$9:$E$58,2,FALSE)=0,\"\",VLOOKUP(CB297,'Footnotes list'!$D$9:$E$58,2,FALSE) ) )","v":""},null,null,null,null,{"$f":"IF(TRIM(CG297)=\"\", \"\", IF(VLOOKUP(CG297,'Footnotes list'!$D$9:$E$58,2,FALSE)=0,\"\",VLOOKUP(CG297,'Footnotes list'!$D$9:$E$58,2,FALSE) ) )","v":""},null,null,null,null,{"$f":"IF(TRIM(CL297)=\"\", \"\", IF(VLOOKUP(CL297,'Footnotes list'!$D$9:$E$58,2,FALSE)=0,\"\",VLOOKUP(CL297,'Footnotes list'!$D$9:$E$58,2,FALSE) ) )","v":""},null,null,null,null,{"$f":"IF(TRIM(CQ297)=\"\", \"\", IF(VLOOKUP(CQ297,'Footnotes list'!$D$9:$E$58,2,FALSE)=0,\"\",VLOOKUP(CQ297,'Footnotes list'!$D$9:$E$58,2,FALSE) ) )","v":""},null,null,null,null,{"$f":"IF(TRIM(CV297)=\"\", \"\", IF(VLOOKUP(CV297,'Footnotes list'!$D$9:$E$58,2,FALSE)=0,\"\",VLOOKUP(CV297,'Footnotes list'!$D$9:$E$58,2,FALSE) ) )","v":""},null,null,null,null,{"$f":"IF(TRIM(DA297)=\"\", \"\", IF(VLOOKUP(DA297,'Footnotes list'!$D$9:$E$58,2,FALSE)=0,\"\",VLOOKUP(DA297,'Footnotes list'!$D$9:$E$58,2,FALSE) ) )","v":""},null,null,null,null,{"$f":"IF(TRIM(DF297)=\"\", \"\", IF(VLOOKUP(DF297,'Footnotes list'!$D$9:$E$58,2,FALSE)=0,\"\",VLOOKUP(DF297,'Footnotes list'!$D$9:$E$58,2,FALSE) ) )","v":""},null,null,null,null,{"$f":"IF(TRIM(DK297)=\"\", \"\", IF(VLOOKUP(DK297,'Footnotes list'!$D$9:$E$58,2,FALSE)=0,\"\",VLOOKUP(DK297,'Footnotes list'!$D$9:$E$58,2,FALSE) ) )","v":""},null,null,null,null,{"$f":"IF(TRIM(DP297)=\"\", \"\", IF(VLOOKUP(DP297,'Footnotes list'!$D$9:$E$58,2,FALSE)=0,\"\",VLOOKUP(DP297,'Footnotes list'!$D$9:$E$58,2,FALSE) ) )","v":""},null,null,null,null,{"$f":"IF(TRIM(DU297)=\"\", \"\", IF(VLOOKUP(DU297,'Footnotes list'!$D$9:$E$58,2,FALSE)=0,\"\",VLOOKUP(DU297,'Footnotes list'!$D$9:$E$58,2,FALSE) ) )","v":""},null,null,null,null,{"$f":"IF(TRIM(DZ297)=\"\", \"\", IF(VLOOKUP(DZ297,'Footnotes list'!$D$9:$E$58,2,FALSE)=0,\"\",VLOOKUP(DZ297,'Footnotes list'!$D$9:$E$58,2,FALSE) ) )","v":""},null,null,null,null,{"$f":"IF(TRIM(EE297)=\"\", \"\", IF(VLOOKUP(EE297,'Footnotes list'!$D$9:$E$58,2,FALSE)=0,\"\",VLOOKUP(EE297,'Footnotes list'!$D$9:$E$58,2,FALSE) ) )","v":""},null,null,null,null,{"$f":"IF(TRIM(EJ297)=\"\", \"\", IF(VLOOKUP(EJ297,'Footnotes list'!$D$9:$E$58,2,FALSE)=0,\"\",VLOOKUP(EJ297,'Footnotes list'!$D$9:$E$58,2,FALSE) ) )","v":""},null,null,null,null,{"$f":"IF(TRIM(EO297)=\"\", \"\", IF(VLOOKUP(EO297,'Footnotes list'!$D$9:$E$58,2,FALSE)=0,\"\",VLOOKUP(EO297,'Footnotes list'!$D$9:$E$58,2,FALSE) ) )","v":""},null,null,null,null,{"$f":"IF(TRIM(ET297)=\"\", \"\", IF(VLOOKUP(ET297,'Footnotes list'!$D$9:$E$58,2,FALSE)=0,\"\",VLOOKUP(ET297,'Footnotes list'!$D$9:$E$58,2,FALSE) ) )","v":""},null,null,null,null,{"$f":"IF(TRIM(EY297)=\"\", \"\", IF(VLOOKUP(EY297,'Footnotes list'!$D$9:$E$58,2,FALSE)=0,\"\",VLOOKUP(EY297,'Footnotes list'!$D$9:$E$58,2,FALSE) ) )","v":""}]
[null,null,"T","OWN_USE","activities for own final use",null,null,null,null,null,{"$f":"IF(TRIM(J298)=\"\", \"\", IF(VLOOKUP(J298,'Footnotes list'!$D$9:$E$58,2,FALSE)=0,\"\",VLOOKUP(J298,'Footnotes list'!$D$9:$E$58,2,FALSE) ) )","v":""},null,null,null,null,{"$f":"IF(TRIM(O298)=\"\", \"\", IF(VLOOKUP(O298,'Footnotes list'!$D$9:$E$58,2,FALSE)=0,\"\",VLOOKUP(O298,'Footnotes list'!$D$9:$E$58,2,FALSE) ) )","v":""},null,null,null,null,{"$f":"IF(TRIM(T298)=\"\", \"\", IF(VLOOKUP(T298,'Footnotes list'!$D$9:$E$58,2,FALSE)=0,\"\",VLOOKUP(T298,'Footnotes list'!$D$9:$E$58,2,FALSE) ) )","v":""},null,null,null,null,{"$f":"IF(TRIM(Y298)=\"\", \"\", IF(VLOOKUP(Y298,'Footnotes list'!$D$9:$E$58,2,FALSE)=0,\"\",VLOOKUP(Y298,'Footnotes list'!$D$9:$E$58,2,FALSE) ) )","v":""},null,null,null,null,{"$f":"IF(TRIM(AD298)=\"\", \"\", IF(VLOOKUP(AD298,'Footnotes list'!$D$9:$E$58,2,FALSE)=0,\"\",VLOOKUP(AD298,'Footnotes list'!$D$9:$E$58,2,FALSE) ) )","v":""},null,null,null,null,{"$f":"IF(TRIM(AI298)=\"\", \"\", IF(VLOOKUP(AI298,'Footnotes list'!$D$9:$E$58,2,FALSE)=0,\"\",VLOOKUP(AI298,'Footnotes list'!$D$9:$E$58,2,FALSE) ) )","v":""},null,null,null,null,{"$f":"IF(TRIM(AN298)=\"\", \"\", IF(VLOOKUP(AN298,'Footnotes list'!$D$9:$E$58,2,FALSE)=0,\"\",VLOOKUP(AN298,'Footnotes list'!$D$9:$E$58,2,FALSE) ) )","v":""},null,null,null,null,{"$f":"IF(TRIM(AS298)=\"\", \"\", IF(VLOOKUP(AS298,'Footnotes list'!$D$9:$E$58,2,FALSE)=0,\"\",VLOOKUP(AS298,'Footnotes list'!$D$9:$E$58,2,FALSE) ) )","v":""},null,null,null,null,{"$f":"IF(TRIM(AX298)=\"\", \"\", IF(VLOOKUP(AX298,'Footnotes list'!$D$9:$E$58,2,FALSE)=0,\"\",VLOOKUP(AX298,'Footnotes list'!$D$9:$E$58,2,FALSE) ) )","v":""},null,null,null,null,{"$f":"IF(TRIM(BC298)=\"\", \"\", IF(VLOOKUP(BC298,'Footnotes list'!$D$9:$E$58,2,FALSE)=0,\"\",VLOOKUP(BC298,'Footnotes list'!$D$9:$E$58,2,FALSE) ) )","v":""},null,null,null,null,{"$f":"IF(TRIM(BH298)=\"\", \"\", IF(VLOOKUP(BH298,'Footnotes list'!$D$9:$E$58,2,FALSE)=0,\"\",VLOOKUP(BH298,'Footnotes list'!$D$9:$E$58,2,FALSE) ) )","v":""},null,null,null,null,{"$f":"IF(TRIM(BM298)=\"\", \"\", IF(VLOOKUP(BM298,'Footnotes list'!$D$9:$E$58,2,FALSE)=0,\"\",VLOOKUP(BM298,'Footnotes list'!$D$9:$E$58,2,FALSE) ) )","v":""},null,null,null,null,{"$f":"IF(TRIM(BR298)=\"\", \"\", IF(VLOOKUP(BR298,'Footnotes list'!$D$9:$E$58,2,FALSE)=0,\"\",VLOOKUP(BR298,'Footnotes list'!$D$9:$E$58,2,FALSE) ) )","v":""},null,null,null,null,{"$f":"IF(TRIM(BW298)=\"\", \"\", IF(VLOOKUP(BW298,'Footnotes list'!$D$9:$E$58,2,FALSE)=0,\"\",VLOOKUP(BW298,'Footnotes list'!$D$9:$E$58,2,FALSE) ) )","v":""},null,null,null,null,{"$f":"IF(TRIM(CB298)=\"\", \"\", IF(VLOOKUP(CB298,'Footnotes list'!$D$9:$E$58,2,FALSE)=0,\"\",VLOOKUP(CB298,'Footnotes list'!$D$9:$E$58,2,FALSE) ) )","v":""},null,null,null,null,{"$f":"IF(TRIM(CG298)=\"\", \"\", IF(VLOOKUP(CG298,'Footnotes list'!$D$9:$E$58,2,FALSE)=0,\"\",VLOOKUP(CG298,'Footnotes list'!$D$9:$E$58,2,FALSE) ) )","v":""},null,null,null,null,{"$f":"IF(TRIM(CL298)=\"\", \"\", IF(VLOOKUP(CL298,'Footnotes list'!$D$9:$E$58,2,FALSE)=0,\"\",VLOOKUP(CL298,'Footnotes list'!$D$9:$E$58,2,FALSE) ) )","v":""},null,null,null,null,{"$f":"IF(TRIM(CQ298)=\"\", \"\", IF(VLOOKUP(CQ298,'Footnotes list'!$D$9:$E$58,2,FALSE)=0,\"\",VLOOKUP(CQ298,'Footnotes list'!$D$9:$E$58,2,FALSE) ) )","v":""},null,null,null,null,{"$f":"IF(TRIM(CV298)=\"\", \"\", IF(VLOOKUP(CV298,'Footnotes list'!$D$9:$E$58,2,FALSE)=0,\"\",VLOOKUP(CV298,'Footnotes list'!$D$9:$E$58,2,FALSE) ) )","v":""},null,null,null,null,{"$f":"IF(TRIM(DA298)=\"\", \"\", IF(VLOOKUP(DA298,'Footnotes list'!$D$9:$E$58,2,FALSE)=0,\"\",VLOOKUP(DA298,'Footnotes list'!$D$9:$E$58,2,FALSE) ) )","v":""},null,null,null,null,{"$f":"IF(TRIM(DF298)=\"\", \"\", IF(VLOOKUP(DF298,'Footnotes list'!$D$9:$E$58,2,FALSE)=0,\"\",VLOOKUP(DF298,'Footnotes list'!$D$9:$E$58,2,FALSE) ) )","v":""},null,null,null,null,{"$f":"IF(TRIM(DK298)=\"\", \"\", IF(VLOOKUP(DK298,'Footnotes list'!$D$9:$E$58,2,FALSE)=0,\"\",VLOOKUP(DK298,'Footnotes list'!$D$9:$E$58,2,FALSE) ) )","v":""},null,null,null,null,{"$f":"IF(TRIM(DP298)=\"\", \"\", IF(VLOOKUP(DP298,'Footnotes list'!$D$9:$E$58,2,FALSE)=0,\"\",VLOOKUP(DP298,'Footnotes list'!$D$9:$E$58,2,FALSE) ) )","v":""},null,null,null,null,{"$f":"IF(TRIM(DU298)=\"\", \"\", IF(VLOOKUP(DU298,'Footnotes list'!$D$9:$E$58,2,FALSE)=0,\"\",VLOOKUP(DU298,'Footnotes list'!$D$9:$E$58,2,FALSE) ) )","v":""},null,null,null,null,{"$f":"IF(TRIM(DZ298)=\"\", \"\", IF(VLOOKUP(DZ298,'Footnotes list'!$D$9:$E$58,2,FALSE)=0,\"\",VLOOKUP(DZ298,'Footnotes list'!$D$9:$E$58,2,FALSE) ) )","v":""},null,null,null,null,{"$f":"IF(TRIM(EE298)=\"\", \"\", IF(VLOOKUP(EE298,'Footnotes list'!$D$9:$E$58,2,FALSE)=0,\"\",VLOOKUP(EE298,'Footnotes list'!$D$9:$E$58,2,FALSE) ) )","v":""},null,null,null,null,{"$f":"IF(TRIM(EJ298)=\"\", \"\", IF(VLOOKUP(EJ298,'Footnotes list'!$D$9:$E$58,2,FALSE)=0,\"\",VLOOKUP(EJ298,'Footnotes list'!$D$9:$E$58,2,FALSE) ) )","v":""},null,null,null,null,{"$f":"IF(TRIM(EO298)=\"\", \"\", IF(VLOOKUP(EO298,'Footnotes list'!$D$9:$E$58,2,FALSE)=0,\"\",VLOOKUP(EO298,'Footnotes list'!$D$9:$E$58,2,FALSE) ) )","v":""},null,null,null,null,{"$f":"IF(TRIM(ET298)=\"\", \"\", IF(VLOOKUP(ET298,'Footnotes list'!$D$9:$E$58,2,FALSE)=0,\"\",VLOOKUP(ET298,'Footnotes list'!$D$9:$E$58,2,FALSE) ) )","v":""},null,null,null,null,{"$f":"IF(TRIM(EY298)=\"\", \"\", IF(VLOOKUP(EY298,'Footnotes list'!$D$9:$E$58,2,FALSE)=0,\"\",VLOOKUP(EY298,'Footnotes list'!$D$9:$E$58,2,FALSE) ) )","v":""}]
[null,null,"T","MKT","market activities, including:",null,null,null,null,null,{"$f":"IF(TRIM(J299)=\"\", \"\", IF(VLOOKUP(J299,'Footnotes list'!$D$9:$E$58,2,FALSE)=0,\"\",VLOOKUP(J299,'Footnotes list'!$D$9:$E$58,2,FALSE) ) )","v":""},null,null,null,null,{"$f":"IF(TRIM(O299)=\"\", \"\", IF(VLOOKUP(O299,'Footnotes list'!$D$9:$E$58,2,FALSE)=0,\"\",VLOOKUP(O299,'Footnotes list'!$D$9:$E$58,2,FALSE) ) )","v":""},null,null,null,null,{"$f":"IF(TRIM(T299)=\"\", \"\", IF(VLOOKUP(T299,'Footnotes list'!$D$9:$E$58,2,FALSE)=0,\"\",VLOOKUP(T299,'Footnotes list'!$D$9:$E$58,2,FALSE) ) )","v":""},null,null,null,null,{"$f":"IF(TRIM(Y299)=\"\", \"\", IF(VLOOKUP(Y299,'Footnotes list'!$D$9:$E$58,2,FALSE)=0,\"\",VLOOKUP(Y299,'Footnotes list'!$D$9:$E$58,2,FALSE) ) )","v":""},null,null,null,null,{"$f":"IF(TRIM(AD299)=\"\", \"\", IF(VLOOKUP(AD299,'Footnotes list'!$D$9:$E$58,2,FALSE)=0,\"\",VLOOKUP(AD299,'Footnotes list'!$D$9:$E$58,2,FALSE) ) )","v":""},null,null,null,null,{"$f":"IF(TRIM(AI299)=\"\", \"\", IF(VLOOKUP(AI299,'Footnotes list'!$D$9:$E$58,2,FALSE)=0,\"\",VLOOKUP(AI299,'Footnotes list'!$D$9:$E$58,2,FALSE) ) )","v":""},null,null,null,null,{"$f":"IF(TRIM(AN299)=\"\", \"\", IF(VLOOKUP(AN299,'Footnotes list'!$D$9:$E$58,2,FALSE)=0,\"\",VLOOKUP(AN299,'Footnotes list'!$D$9:$E$58,2,FALSE) ) )","v":""},null,null,null,null,{"$f":"IF(TRIM(AS299)=\"\", \"\", IF(VLOOKUP(AS299,'Footnotes list'!$D$9:$E$58,2,FALSE)=0,\"\",VLOOKUP(AS299,'Footnotes list'!$D$9:$E$58,2,FALSE) ) )","v":""},null,null,null,null,{"$f":"IF(TRIM(AX299)=\"\", \"\", IF(VLOOKUP(AX299,'Footnotes list'!$D$9:$E$58,2,FALSE)=0,\"\",VLOOKUP(AX299,'Footnotes list'!$D$9:$E$58,2,FALSE) ) )","v":""},null,null,null,null,{"$f":"IF(TRIM(BC299)=\"\", \"\", IF(VLOOKUP(BC299,'Footnotes list'!$D$9:$E$58,2,FALSE)=0,\"\",VLOOKUP(BC299,'Footnotes list'!$D$9:$E$58,2,FALSE) ) )","v":""},null,null,null,null,{"$f":"IF(TRIM(BH299)=\"\", \"\", IF(VLOOKUP(BH299,'Footnotes list'!$D$9:$E$58,2,FALSE)=0,\"\",VLOOKUP(BH299,'Footnotes list'!$D$9:$E$58,2,FALSE) ) )","v":""},null,null,null,null,{"$f":"IF(TRIM(BM299)=\"\", \"\", IF(VLOOKUP(BM299,'Footnotes list'!$D$9:$E$58,2,FALSE)=0,\"\",VLOOKUP(BM299,'Footnotes list'!$D$9:$E$58,2,FALSE) ) )","v":""},null,null,null,null,{"$f":"IF(TRIM(BR299)=\"\", \"\", IF(VLOOKUP(BR299,'Footnotes list'!$D$9:$E$58,2,FALSE)=0,\"\",VLOOKUP(BR299,'Footnotes list'!$D$9:$E$58,2,FALSE) ) )","v":""},null,null,null,null,{"$f":"IF(TRIM(BW299)=\"\", \"\", IF(VLOOKUP(BW299,'Footnotes list'!$D$9:$E$58,2,FALSE)=0,\"\",VLOOKUP(BW299,'Footnotes list'!$D$9:$E$58,2,FALSE) ) )","v":""},null,null,null,null,{"$f":"IF(TRIM(CB299)=\"\", \"\", IF(VLOOKUP(CB299,'Footnotes list'!$D$9:$E$58,2,FALSE)=0,\"\",VLOOKUP(CB299,'Footnotes list'!$D$9:$E$58,2,FALSE) ) )","v":""},null,null,null,null,{"$f":"IF(TRIM(CG299)=\"\", \"\", IF(VLOOKUP(CG299,'Footnotes list'!$D$9:$E$58,2,FALSE)=0,\"\",VLOOKUP(CG299,'Footnotes list'!$D$9:$E$58,2,FALSE) ) )","v":""},null,null,null,null,{"$f":"IF(TRIM(CL299)=\"\", \"\", IF(VLOOKUP(CL299,'Footnotes list'!$D$9:$E$58,2,FALSE)=0,\"\",VLOOKUP(CL299,'Footnotes list'!$D$9:$E$58,2,FALSE) ) )","v":""},null,null,null,null,{"$f":"IF(TRIM(CQ299)=\"\", \"\", IF(VLOOKUP(CQ299,'Footnotes list'!$D$9:$E$58,2,FALSE)=0,\"\",VLOOKUP(CQ299,'Footnotes list'!$D$9:$E$58,2,FALSE) ) )","v":""},null,null,null,null,{"$f":"IF(TRIM(CV299)=\"\", \"\", IF(VLOOKUP(CV299,'Footnotes list'!$D$9:$E$58,2,FALSE)=0,\"\",VLOOKUP(CV299,'Footnotes list'!$D$9:$E$58,2,FALSE) ) )","v":""},null,null,null,null,{"$f":"IF(TRIM(DA299)=\"\", \"\", IF(VLOOKUP(DA299,'Footnotes list'!$D$9:$E$58,2,FALSE)=0,\"\",VLOOKUP(DA299,'Footnotes list'!$D$9:$E$58,2,FALSE) ) )","v":""},null,null,null,null,{"$f":"IF(TRIM(DF299)=\"\", \"\", IF(VLOOKUP(DF299,'Footnotes list'!$D$9:$E$58,2,FALSE)=0,\"\",VLOOKUP(DF299,'Footnotes list'!$D$9:$E$58,2,FALSE) ) )","v":""},null,null,null,null,{"$f":"IF(TRIM(DK299)=\"\", \"\", IF(VLOOKUP(DK299,'Footnotes list'!$D$9:$E$58,2,FALSE)=0,\"\",VLOOKUP(DK299,'Footnotes list'!$D$9:$E$58,2,FALSE) ) )","v":""},null,null,null,null,{"$f":"IF(TRIM(DP299)=\"\", \"\", IF(VLOOKUP(DP299,'Footnotes list'!$D$9:$E$58,2,FALSE)=0,\"\",VLOOKUP(DP299,'Footnotes list'!$D$9:$E$58,2,FALSE) ) )","v":""},null,null,null,null,{"$f":"IF(TRIM(DU299)=\"\", \"\", IF(VLOOKUP(DU299,'Footnotes list'!$D$9:$E$58,2,FALSE)=0,\"\",VLOOKUP(DU299,'Footnotes list'!$D$9:$E$58,2,FALSE) ) )","v":""},null,null,null,null,{"$f":"IF(TRIM(DZ299)=\"\", \"\", IF(VLOOKUP(DZ299,'Footnotes list'!$D$9:$E$58,2,FALSE)=0,\"\",VLOOKUP(DZ299,'Footnotes list'!$D$9:$E$58,2,FALSE) ) )","v":""},null,null,null,null,{"$f":"IF(TRIM(EE299)=\"\", \"\", IF(VLOOKUP(EE299,'Footnotes list'!$D$9:$E$58,2,FALSE)=0,\"\",VLOOKUP(EE299,'Footnotes list'!$D$9:$E$58,2,FALSE) ) )","v":""},null,null,null,null,{"$f":"IF(TRIM(EJ299)=\"\", \"\", IF(VLOOKUP(EJ299,'Footnotes list'!$D$9:$E$58,2,FALSE)=0,\"\",VLOOKUP(EJ299,'Footnotes list'!$D$9:$E$58,2,FALSE) ) )","v":""},null,null,null,null,{"$f":"IF(TRIM(EO299)=\"\", \"\", IF(VLOOKUP(EO299,'Footnotes list'!$D$9:$E$58,2,FALSE)=0,\"\",VLOOKUP(EO299,'Footnotes list'!$D$9:$E$58,2,FALSE) ) )","v":""},null,null,null,null,{"$f":"IF(TRIM(ET299)=\"\", \"\", IF(VLOOKUP(ET299,'Footnotes list'!$D$9:$E$58,2,FALSE)=0,\"\",VLOOKUP(ET299,'Footnotes list'!$D$9:$E$58,2,FALSE) ) )","v":""},null,null,null,null,{"$f":"IF(TRIM(EY299)=\"\", \"\", IF(VLOOKUP(EY299,'Footnotes list'!$D$9:$E$58,2,FALSE)=0,\"\",VLOOKUP(EY299,'Footnotes list'!$D$9:$E$58,2,FALSE) ) )","v":""}]
[null,null,"T","ES_CS","environmental specific services",null,null,null,null,null,{"$f":"IF(TRIM(J300)=\"\", \"\", IF(VLOOKUP(J300,'Footnotes list'!$D$9:$E$58,2,FALSE)=0,\"\",VLOOKUP(J300,'Footnotes list'!$D$9:$E$58,2,FALSE) ) )","v":""},null,null,null,null,{"$f":"IF(TRIM(O300)=\"\", \"\", IF(VLOOKUP(O300,'Footnotes list'!$D$9:$E$58,2,FALSE)=0,\"\",VLOOKUP(O300,'Footnotes list'!$D$9:$E$58,2,FALSE) ) )","v":""},null,null,null,null,{"$f":"IF(TRIM(T300)=\"\", \"\", IF(VLOOKUP(T300,'Footnotes list'!$D$9:$E$58,2,FALSE)=0,\"\",VLOOKUP(T300,'Footnotes list'!$D$9:$E$58,2,FALSE) ) )","v":""},null,null,null,null,{"$f":"IF(TRIM(Y300)=\"\", \"\", IF(VLOOKUP(Y300,'Footnotes list'!$D$9:$E$58,2,FALSE)=0,\"\",VLOOKUP(Y300,'Footnotes list'!$D$9:$E$58,2,FALSE) ) )","v":""},null,null,null,null,{"$f":"IF(TRIM(AD300)=\"\", \"\", IF(VLOOKUP(AD300,'Footnotes list'!$D$9:$E$58,2,FALSE)=0,\"\",VLOOKUP(AD300,'Footnotes list'!$D$9:$E$58,2,FALSE) ) )","v":""},null,null,null,null,{"$f":"IF(TRIM(AI300)=\"\", \"\", IF(VLOOKUP(AI300,'Footnotes list'!$D$9:$E$58,2,FALSE)=0,\"\",VLOOKUP(AI300,'Footnotes list'!$D$9:$E$58,2,FALSE) ) )","v":""},null,null,null,null,{"$f":"IF(TRIM(AN300)=\"\", \"\", IF(VLOOKUP(AN300,'Footnotes list'!$D$9:$E$58,2,FALSE)=0,\"\",VLOOKUP(AN300,'Footnotes list'!$D$9:$E$58,2,FALSE) ) )","v":""},null,null,null,null,{"$f":"IF(TRIM(AS300)=\"\", \"\", IF(VLOOKUP(AS300,'Footnotes list'!$D$9:$E$58,2,FALSE)=0,\"\",VLOOKUP(AS300,'Footnotes list'!$D$9:$E$58,2,FALSE) ) )","v":""},null,null,null,null,{"$f":"IF(TRIM(AX300)=\"\", \"\", IF(VLOOKUP(AX300,'Footnotes list'!$D$9:$E$58,2,FALSE)=0,\"\",VLOOKUP(AX300,'Footnotes list'!$D$9:$E$58,2,FALSE) ) )","v":""},null,null,null,null,{"$f":"IF(TRIM(BC300)=\"\", \"\", IF(VLOOKUP(BC300,'Footnotes list'!$D$9:$E$58,2,FALSE)=0,\"\",VLOOKUP(BC300,'Footnotes list'!$D$9:$E$58,2,FALSE) ) )","v":""},null,null,null,null,{"$f":"IF(TRIM(BH300)=\"\", \"\", IF(VLOOKUP(BH300,'Footnotes list'!$D$9:$E$58,2,FALSE)=0,\"\",VLOOKUP(BH300,'Footnotes list'!$D$9:$E$58,2,FALSE) ) )","v":""},null,null,null,null,{"$f":"IF(TRIM(BM300)=\"\", \"\", IF(VLOOKUP(BM300,'Footnotes list'!$D$9:$E$58,2,FALSE)=0,\"\",VLOOKUP(BM300,'Footnotes list'!$D$9:$E$58,2,FALSE) ) )","v":""},null,null,null,null,{"$f":"IF(TRIM(BR300)=\"\", \"\", IF(VLOOKUP(BR300,'Footnotes list'!$D$9:$E$58,2,FALSE)=0,\"\",VLOOKUP(BR300,'Footnotes list'!$D$9:$E$58,2,FALSE) ) )","v":""},null,null,null,null,{"$f":"IF(TRIM(BW300)=\"\", \"\", IF(VLOOKUP(BW300,'Footnotes list'!$D$9:$E$58,2,FALSE)=0,\"\",VLOOKUP(BW300,'Footnotes list'!$D$9:$E$58,2,FALSE) ) )","v":""},null,null,null,null,{"$f":"IF(TRIM(CB300)=\"\", \"\", IF(VLOOKUP(CB300,'Footnotes list'!$D$9:$E$58,2,FALSE)=0,\"\",VLOOKUP(CB300,'Footnotes list'!$D$9:$E$58,2,FALSE) ) )","v":""},null,null,null,null,{"$f":"IF(TRIM(CG300)=\"\", \"\", IF(VLOOKUP(CG300,'Footnotes list'!$D$9:$E$58,2,FALSE)=0,\"\",VLOOKUP(CG300,'Footnotes list'!$D$9:$E$58,2,FALSE) ) )","v":""},null,null,null,null,{"$f":"IF(TRIM(CL300)=\"\", \"\", IF(VLOOKUP(CL300,'Footnotes list'!$D$9:$E$58,2,FALSE)=0,\"\",VLOOKUP(CL300,'Footnotes list'!$D$9:$E$58,2,FALSE) ) )","v":""},null,null,null,null,{"$f":"IF(TRIM(CQ300)=\"\", \"\", IF(VLOOKUP(CQ300,'Footnotes list'!$D$9:$E$58,2,FALSE)=0,\"\",VLOOKUP(CQ300,'Footnotes list'!$D$9:$E$58,2,FALSE) ) )","v":""},null,null,null,null,{"$f":"IF(TRIM(CV300)=\"\", \"\", IF(VLOOKUP(CV300,'Footnotes list'!$D$9:$E$58,2,FALSE)=0,\"\",VLOOKUP(CV300,'Footnotes list'!$D$9:$E$58,2,FALSE) ) )","v":""},null,null,null,null,{"$f":"IF(TRIM(DA300)=\"\", \"\", IF(VLOOKUP(DA300,'Footnotes list'!$D$9:$E$58,2,FALSE)=0,\"\",VLOOKUP(DA300,'Footnotes list'!$D$9:$E$58,2,FALSE) ) )","v":""},null,null,null,null,{"$f":"IF(TRIM(DF300)=\"\", \"\", IF(VLOOKUP(DF300,'Footnotes list'!$D$9:$E$58,2,FALSE)=0,\"\",VLOOKUP(DF300,'Footnotes list'!$D$9:$E$58,2,FALSE) ) )","v":""},null,null,null,null,{"$f":"IF(TRIM(DK300)=\"\", \"\", IF(VLOOKUP(DK300,'Footnotes list'!$D$9:$E$58,2,FALSE)=0,\"\",VLOOKUP(DK300,'Footnotes list'!$D$9:$E$58,2,FALSE) ) )","v":""},null,null,null,null,{"$f":"IF(TRIM(DP300)=\"\", \"\", IF(VLOOKUP(DP300,'Footnotes list'!$D$9:$E$58,2,FALSE)=0,\"\",VLOOKUP(DP300,'Footnotes list'!$D$9:$E$58,2,FALSE) ) )","v":""},null,null,null,null,{"$f":"IF(TRIM(DU300)=\"\", \"\", IF(VLOOKUP(DU300,'Footnotes list'!$D$9:$E$58,2,FALSE)=0,\"\",VLOOKUP(DU300,'Footnotes list'!$D$9:$E$58,2,FALSE) ) )","v":""},null,null,null,null,{"$f":"IF(TRIM(DZ300)=\"\", \"\", IF(VLOOKUP(DZ300,'Footnotes list'!$D$9:$E$58,2,FALSE)=0,\"\",VLOOKUP(DZ300,'Footnotes list'!$D$9:$E$58,2,FALSE) ) )","v":""},null,null,null,null,{"$f":"IF(TRIM(EE300)=\"\", \"\", IF(VLOOKUP(EE300,'Footnotes list'!$D$9:$E$58,2,FALSE)=0,\"\",VLOOKUP(EE300,'Footnotes list'!$D$9:$E$58,2,FALSE) ) )","v":""},null,null,null,null,{"$f":"IF(TRIM(EJ300)=\"\", \"\", IF(VLOOKUP(EJ300,'Footnotes list'!$D$9:$E$58,2,FALSE)=0,\"\",VLOOKUP(EJ300,'Footnotes list'!$D$9:$E$58,2,FALSE) ) )","v":""},null,null,null,null,{"$f":"IF(TRIM(EO300)=\"\", \"\", IF(VLOOKUP(EO300,'Footnotes list'!$D$9:$E$58,2,FALSE)=0,\"\",VLOOKUP(EO300,'Footnotes list'!$D$9:$E$58,2,FALSE) ) )","v":""},null,null,null,null,{"$f":"IF(TRIM(ET300)=\"\", \"\", IF(VLOOKUP(ET300,'Footnotes list'!$D$9:$E$58,2,FALSE)=0,\"\",VLOOKUP(ET300,'Footnotes list'!$D$9:$E$58,2,FALSE) ) )","v":""},null,null,null,null,{"$f":"IF(TRIM(EY300)=\"\", \"\", IF(VLOOKUP(EY300,'Footnotes list'!$D$9:$E$58,2,FALSE)=0,\"\",VLOOKUP(EY300,'Footnotes list'!$D$9:$E$58,2,FALSE) ) )","v":""}]
[null,null,"T","C_REP","cleaner and resource efficient products",null,null,null,null,null,{"$f":"IF(TRIM(J301)=\"\", \"\", IF(VLOOKUP(J301,'Footnotes list'!$D$9:$E$58,2,FALSE)=0,\"\",VLOOKUP(J301,'Footnotes list'!$D$9:$E$58,2,FALSE) ) )","v":""},null,null,null,null,{"$f":"IF(TRIM(O301)=\"\", \"\", IF(VLOOKUP(O301,'Footnotes list'!$D$9:$E$58,2,FALSE)=0,\"\",VLOOKUP(O301,'Footnotes list'!$D$9:$E$58,2,FALSE) ) )","v":""},null,null,null,null,{"$f":"IF(TRIM(T301)=\"\", \"\", IF(VLOOKUP(T301,'Footnotes list'!$D$9:$E$58,2,FALSE)=0,\"\",VLOOKUP(T301,'Footnotes list'!$D$9:$E$58,2,FALSE) ) )","v":""},null,null,null,null,{"$f":"IF(TRIM(Y301)=\"\", \"\", IF(VLOOKUP(Y301,'Footnotes list'!$D$9:$E$58,2,FALSE)=0,\"\",VLOOKUP(Y301,'Footnotes list'!$D$9:$E$58,2,FALSE) ) )","v":""},null,null,null,null,{"$f":"IF(TRIM(AD301)=\"\", \"\", IF(VLOOKUP(AD301,'Footnotes list'!$D$9:$E$58,2,FALSE)=0,\"\",VLOOKUP(AD301,'Footnotes list'!$D$9:$E$58,2,FALSE) ) )","v":""},null,null,null,null,{"$f":"IF(TRIM(AI301)=\"\", \"\", IF(VLOOKUP(AI301,'Footnotes list'!$D$9:$E$58,2,FALSE)=0,\"\",VLOOKUP(AI301,'Footnotes list'!$D$9:$E$58,2,FALSE) ) )","v":""},null,null,null,null,{"$f":"IF(TRIM(AN301)=\"\", \"\", IF(VLOOKUP(AN301,'Footnotes list'!$D$9:$E$58,2,FALSE)=0,\"\",VLOOKUP(AN301,'Footnotes list'!$D$9:$E$58,2,FALSE) ) )","v":""},null,null,null,null,{"$f":"IF(TRIM(AS301)=\"\", \"\", IF(VLOOKUP(AS301,'Footnotes list'!$D$9:$E$58,2,FALSE)=0,\"\",VLOOKUP(AS301,'Footnotes list'!$D$9:$E$58,2,FALSE) ) )","v":""},null,null,null,null,{"$f":"IF(TRIM(AX301)=\"\", \"\", IF(VLOOKUP(AX301,'Footnotes list'!$D$9:$E$58,2,FALSE)=0,\"\",VLOOKUP(AX301,'Footnotes list'!$D$9:$E$58,2,FALSE) ) )","v":""},null,null,null,null,{"$f":"IF(TRIM(BC301)=\"\", \"\", IF(VLOOKUP(BC301,'Footnotes list'!$D$9:$E$58,2,FALSE)=0,\"\",VLOOKUP(BC301,'Footnotes list'!$D$9:$E$58,2,FALSE) ) )","v":""},null,null,null,null,{"$f":"IF(TRIM(BH301)=\"\", \"\", IF(VLOOKUP(BH301,'Footnotes list'!$D$9:$E$58,2,FALSE)=0,\"\",VLOOKUP(BH301,'Footnotes list'!$D$9:$E$58,2,FALSE) ) )","v":""},null,null,null,null,{"$f":"IF(TRIM(BM301)=\"\", \"\", IF(VLOOKUP(BM301,'Footnotes list'!$D$9:$E$58,2,FALSE)=0,\"\",VLOOKUP(BM301,'Footnotes list'!$D$9:$E$58,2,FALSE) ) )","v":""},null,null,null,null,{"$f":"IF(TRIM(BR301)=\"\", \"\", IF(VLOOKUP(BR301,'Footnotes list'!$D$9:$E$58,2,FALSE)=0,\"\",VLOOKUP(BR301,'Footnotes list'!$D$9:$E$58,2,FALSE) ) )","v":""},null,null,null,null,{"$f":"IF(TRIM(BW301)=\"\", \"\", IF(VLOOKUP(BW301,'Footnotes list'!$D$9:$E$58,2,FALSE)=0,\"\",VLOOKUP(BW301,'Footnotes list'!$D$9:$E$58,2,FALSE) ) )","v":""},null,null,null,null,{"$f":"IF(TRIM(CB301)=\"\", \"\", IF(VLOOKUP(CB301,'Footnotes list'!$D$9:$E$58,2,FALSE)=0,\"\",VLOOKUP(CB301,'Footnotes list'!$D$9:$E$58,2,FALSE) ) )","v":""},null,null,null,null,{"$f":"IF(TRIM(CG301)=\"\", \"\", IF(VLOOKUP(CG301,'Footnotes list'!$D$9:$E$58,2,FALSE)=0,\"\",VLOOKUP(CG301,'Footnotes list'!$D$9:$E$58,2,FALSE) ) )","v":""},null,null,null,null,{"$f":"IF(TRIM(CL301)=\"\", \"\", IF(VLOOKUP(CL301,'Footnotes list'!$D$9:$E$58,2,FALSE)=0,\"\",VLOOKUP(CL301,'Footnotes list'!$D$9:$E$58,2,FALSE) ) )","v":""},null,null,null,null,{"$f":"IF(TRIM(CQ301)=\"\", \"\", IF(VLOOKUP(CQ301,'Footnotes list'!$D$9:$E$58,2,FALSE)=0,\"\",VLOOKUP(CQ301,'Footnotes list'!$D$9:$E$58,2,FALSE) ) )","v":""},null,null,null,null,{"$f":"IF(TRIM(CV301)=\"\", \"\", IF(VLOOKUP(CV301,'Footnotes list'!$D$9:$E$58,2,FALSE)=0,\"\",VLOOKUP(CV301,'Footnotes list'!$D$9:$E$58,2,FALSE) ) )","v":""},null,null,null,null,{"$f":"IF(TRIM(DA301)=\"\", \"\", IF(VLOOKUP(DA301,'Footnotes list'!$D$9:$E$58,2,FALSE)=0,\"\",VLOOKUP(DA301,'Footnotes list'!$D$9:$E$58,2,FALSE) ) )","v":""},null,null,null,null,{"$f":"IF(TRIM(DF301)=\"\", \"\", IF(VLOOKUP(DF301,'Footnotes list'!$D$9:$E$58,2,FALSE)=0,\"\",VLOOKUP(DF301,'Footnotes list'!$D$9:$E$58,2,FALSE) ) )","v":""},null,null,null,null,{"$f":"IF(TRIM(DK301)=\"\", \"\", IF(VLOOKUP(DK301,'Footnotes list'!$D$9:$E$58,2,FALSE)=0,\"\",VLOOKUP(DK301,'Footnotes list'!$D$9:$E$58,2,FALSE) ) )","v":""},null,null,null,null,{"$f":"IF(TRIM(DP301)=\"\", \"\", IF(VLOOKUP(DP301,'Footnotes list'!$D$9:$E$58,2,FALSE)=0,\"\",VLOOKUP(DP301,'Footnotes list'!$D$9:$E$58,2,FALSE) ) )","v":""},null,null,null,null,{"$f":"IF(TRIM(DU301)=\"\", \"\", IF(VLOOKUP(DU301,'Footnotes list'!$D$9:$E$58,2,FALSE)=0,\"\",VLOOKUP(DU301,'Footnotes list'!$D$9:$E$58,2,FALSE) ) )","v":""},null,null,null,null,{"$f":"IF(TRIM(DZ301)=\"\", \"\", IF(VLOOKUP(DZ301,'Footnotes list'!$D$9:$E$58,2,FALSE)=0,\"\",VLOOKUP(DZ301,'Footnotes list'!$D$9:$E$58,2,FALSE) ) )","v":""},null,null,null,null,{"$f":"IF(TRIM(EE301)=\"\", \"\", IF(VLOOKUP(EE301,'Footnotes list'!$D$9:$E$58,2,FALSE)=0,\"\",VLOOKUP(EE301,'Footnotes list'!$D$9:$E$58,2,FALSE) ) )","v":""},null,null,null,null,{"$f":"IF(TRIM(EJ301)=\"\", \"\", IF(VLOOKUP(EJ301,'Footnotes list'!$D$9:$E$58,2,FALSE)=0,\"\",VLOOKUP(EJ301,'Footnotes list'!$D$9:$E$58,2,FALSE) ) )","v":""},null,null,null,null,{"$f":"IF(TRIM(EO301)=\"\", \"\", IF(VLOOKUP(EO301,'Footnotes list'!$D$9:$E$58,2,FALSE)=0,\"\",VLOOKUP(EO301,'Footnotes list'!$D$9:$E$58,2,FALSE) ) )","v":""},null,null,null,null,{"$f":"IF(TRIM(ET301)=\"\", \"\", IF(VLOOKUP(ET301,'Footnotes list'!$D$9:$E$58,2,FALSE)=0,\"\",VLOOKUP(ET301,'Footnotes list'!$D$9:$E$58,2,FALSE) ) )","v":""},null,null,null,null,{"$f":"IF(TRIM(EY301)=\"\", \"\", IF(VLOOKUP(EY301,'Footnotes list'!$D$9:$E$58,2,FALSE)=0,\"\",VLOOKUP(EY301,'Footnotes list'!$D$9:$E$58,2,FALSE) ) )","v":""}]
[null,null,"U","TOT_EGSS","Total U - Activities of extraterritorial organizations and bodies, of which:",null,null,null,null,null,{"$f":"IF(TRIM(J302)=\"\", \"\", IF(VLOOKUP(J302,'Footnotes list'!$D$9:$E$58,2,FALSE)=0,\"\",VLOOKUP(J302,'Footnotes list'!$D$9:$E$58,2,FALSE) ) )","v":""},null,null,null,null,{"$f":"IF(TRIM(O302)=\"\", \"\", IF(VLOOKUP(O302,'Footnotes list'!$D$9:$E$58,2,FALSE)=0,\"\",VLOOKUP(O302,'Footnotes list'!$D$9:$E$58,2,FALSE) ) )","v":""},null,null,null,null,{"$f":"IF(TRIM(T302)=\"\", \"\", IF(VLOOKUP(T302,'Footnotes list'!$D$9:$E$58,2,FALSE)=0,\"\",VLOOKUP(T302,'Footnotes list'!$D$9:$E$58,2,FALSE) ) )","v":""},null,null,null,null,{"$f":"IF(TRIM(Y302)=\"\", \"\", IF(VLOOKUP(Y302,'Footnotes list'!$D$9:$E$58,2,FALSE)=0,\"\",VLOOKUP(Y302,'Footnotes list'!$D$9:$E$58,2,FALSE) ) )","v":""},null,null,null,null,{"$f":"IF(TRIM(AD302)=\"\", \"\", IF(VLOOKUP(AD302,'Footnotes list'!$D$9:$E$58,2,FALSE)=0,\"\",VLOOKUP(AD302,'Footnotes list'!$D$9:$E$58,2,FALSE) ) )","v":""},null,null,null,null,{"$f":"IF(TRIM(AI302)=\"\", \"\", IF(VLOOKUP(AI302,'Footnotes list'!$D$9:$E$58,2,FALSE)=0,\"\",VLOOKUP(AI302,'Footnotes list'!$D$9:$E$58,2,FALSE) ) )","v":""},null,null,null,null,{"$f":"IF(TRIM(AN302)=\"\", \"\", IF(VLOOKUP(AN302,'Footnotes list'!$D$9:$E$58,2,FALSE)=0,\"\",VLOOKUP(AN302,'Footnotes list'!$D$9:$E$58,2,FALSE) ) )","v":""},null,null,null,null,{"$f":"IF(TRIM(AS302)=\"\", \"\", IF(VLOOKUP(AS302,'Footnotes list'!$D$9:$E$58,2,FALSE)=0,\"\",VLOOKUP(AS302,'Footnotes list'!$D$9:$E$58,2,FALSE) ) )","v":""},null,null,null,null,{"$f":"IF(TRIM(AX302)=\"\", \"\", IF(VLOOKUP(AX302,'Footnotes list'!$D$9:$E$58,2,FALSE)=0,\"\",VLOOKUP(AX302,'Footnotes list'!$D$9:$E$58,2,FALSE) ) )","v":""},null,null,null,null,{"$f":"IF(TRIM(BC302)=\"\", \"\", IF(VLOOKUP(BC302,'Footnotes list'!$D$9:$E$58,2,FALSE)=0,\"\",VLOOKUP(BC302,'Footnotes list'!$D$9:$E$58,2,FALSE) ) )","v":""},null,null,null,null,{"$f":"IF(TRIM(BH302)=\"\", \"\", IF(VLOOKUP(BH302,'Footnotes list'!$D$9:$E$58,2,FALSE)=0,\"\",VLOOKUP(BH302,'Footnotes list'!$D$9:$E$58,2,FALSE) ) )","v":""},null,null,null,null,{"$f":"IF(TRIM(BM302)=\"\", \"\", IF(VLOOKUP(BM302,'Footnotes list'!$D$9:$E$58,2,FALSE)=0,\"\",VLOOKUP(BM302,'Footnotes list'!$D$9:$E$58,2,FALSE) ) )","v":""},null,null,null,null,{"$f":"IF(TRIM(BR302)=\"\", \"\", IF(VLOOKUP(BR302,'Footnotes list'!$D$9:$E$58,2,FALSE)=0,\"\",VLOOKUP(BR302,'Footnotes list'!$D$9:$E$58,2,FALSE) ) )","v":""},null,null,null,null,{"$f":"IF(TRIM(BW302)=\"\", \"\", IF(VLOOKUP(BW302,'Footnotes list'!$D$9:$E$58,2,FALSE)=0,\"\",VLOOKUP(BW302,'Footnotes list'!$D$9:$E$58,2,FALSE) ) )","v":""},null,null,null,null,{"$f":"IF(TRIM(CB302)=\"\", \"\", IF(VLOOKUP(CB302,'Footnotes list'!$D$9:$E$58,2,FALSE)=0,\"\",VLOOKUP(CB302,'Footnotes list'!$D$9:$E$58,2,FALSE) ) )","v":""},null,null,null,null,{"$f":"IF(TRIM(CG302)=\"\", \"\", IF(VLOOKUP(CG302,'Footnotes list'!$D$9:$E$58,2,FALSE)=0,\"\",VLOOKUP(CG302,'Footnotes list'!$D$9:$E$58,2,FALSE) ) )","v":""},null,null,null,null,{"$f":"IF(TRIM(CL302)=\"\", \"\", IF(VLOOKUP(CL302,'Footnotes list'!$D$9:$E$58,2,FALSE)=0,\"\",VLOOKUP(CL302,'Footnotes list'!$D$9:$E$58,2,FALSE) ) )","v":""},null,null,null,null,{"$f":"IF(TRIM(CQ302)=\"\", \"\", IF(VLOOKUP(CQ302,'Footnotes list'!$D$9:$E$58,2,FALSE)=0,\"\",VLOOKUP(CQ302,'Footnotes list'!$D$9:$E$58,2,FALSE) ) )","v":""},null,null,null,null,{"$f":"IF(TRIM(CV302)=\"\", \"\", IF(VLOOKUP(CV302,'Footnotes list'!$D$9:$E$58,2,FALSE)=0,\"\",VLOOKUP(CV302,'Footnotes list'!$D$9:$E$58,2,FALSE) ) )","v":""},null,null,null,null,{"$f":"IF(TRIM(DA302)=\"\", \"\", IF(VLOOKUP(DA302,'Footnotes list'!$D$9:$E$58,2,FALSE)=0,\"\",VLOOKUP(DA302,'Footnotes list'!$D$9:$E$58,2,FALSE) ) )","v":""},null,null,null,null,{"$f":"IF(TRIM(DF302)=\"\", \"\", IF(VLOOKUP(DF302,'Footnotes list'!$D$9:$E$58,2,FALSE)=0,\"\",VLOOKUP(DF302,'Footnotes list'!$D$9:$E$58,2,FALSE) ) )","v":""},null,null,null,null,{"$f":"IF(TRIM(DK302)=\"\", \"\", IF(VLOOKUP(DK302,'Footnotes list'!$D$9:$E$58,2,FALSE)=0,\"\",VLOOKUP(DK302,'Footnotes list'!$D$9:$E$58,2,FALSE) ) )","v":""},null,null,null,null,{"$f":"IF(TRIM(DP302)=\"\", \"\", IF(VLOOKUP(DP302,'Footnotes list'!$D$9:$E$58,2,FALSE)=0,\"\",VLOOKUP(DP302,'Footnotes list'!$D$9:$E$58,2,FALSE) ) )","v":""},null,null,null,null,{"$f":"IF(TRIM(DU302)=\"\", \"\", IF(VLOOKUP(DU302,'Footnotes list'!$D$9:$E$58,2,FALSE)=0,\"\",VLOOKUP(DU302,'Footnotes list'!$D$9:$E$58,2,FALSE) ) )","v":""},null,null,null,null,{"$f":"IF(TRIM(DZ302)=\"\", \"\", IF(VLOOKUP(DZ302,'Footnotes list'!$D$9:$E$58,2,FALSE)=0,\"\",VLOOKUP(DZ302,'Footnotes list'!$D$9:$E$58,2,FALSE) ) )","v":""},null,null,null,null,{"$f":"IF(TRIM(EE302)=\"\", \"\", IF(VLOOKUP(EE302,'Footnotes list'!$D$9:$E$58,2,FALSE)=0,\"\",VLOOKUP(EE302,'Footnotes list'!$D$9:$E$58,2,FALSE) ) )","v":""},null,null,null,null,{"$f":"IF(TRIM(EJ302)=\"\", \"\", IF(VLOOKUP(EJ302,'Footnotes list'!$D$9:$E$58,2,FALSE)=0,\"\",VLOOKUP(EJ302,'Footnotes list'!$D$9:$E$58,2,FALSE) ) )","v":""},null,null,null,null,{"$f":"IF(TRIM(EO302)=\"\", \"\", IF(VLOOKUP(EO302,'Footnotes list'!$D$9:$E$58,2,FALSE)=0,\"\",VLOOKUP(EO302,'Footnotes list'!$D$9:$E$58,2,FALSE) ) )","v":""},null,null,null,null,{"$f":"IF(TRIM(ET302)=\"\", \"\", IF(VLOOKUP(ET302,'Footnotes list'!$D$9:$E$58,2,FALSE)=0,\"\",VLOOKUP(ET302,'Footnotes list'!$D$9:$E$58,2,FALSE) ) )","v":""},null,null,null,null,{"$f":"IF(TRIM(EY302)=\"\", \"\", IF(VLOOKUP(EY302,'Footnotes list'!$D$9:$E$58,2,FALSE)=0,\"\",VLOOKUP(EY302,'Footnotes list'!$D$9:$E$58,2,FALSE) ) )","v":""}]
[null,null,"U","ANC","ancillary activities",null,null,null,null,null,{"$f":"IF(TRIM(J303)=\"\", \"\", IF(VLOOKUP(J303,'Footnotes list'!$D$9:$E$58,2,FALSE)=0,\"\",VLOOKUP(J303,'Footnotes list'!$D$9:$E$58,2,FALSE) ) )","v":""},null,null,null,null,{"$f":"IF(TRIM(O303)=\"\", \"\", IF(VLOOKUP(O303,'Footnotes list'!$D$9:$E$58,2,FALSE)=0,\"\",VLOOKUP(O303,'Footnotes list'!$D$9:$E$58,2,FALSE) ) )","v":""},null,null,null,null,{"$f":"IF(TRIM(T303)=\"\", \"\", IF(VLOOKUP(T303,'Footnotes list'!$D$9:$E$58,2,FALSE)=0,\"\",VLOOKUP(T303,'Footnotes list'!$D$9:$E$58,2,FALSE) ) )","v":""},null,null,null,null,{"$f":"IF(TRIM(Y303)=\"\", \"\", IF(VLOOKUP(Y303,'Footnotes list'!$D$9:$E$58,2,FALSE)=0,\"\",VLOOKUP(Y303,'Footnotes list'!$D$9:$E$58,2,FALSE) ) )","v":""},null,null,null,null,{"$f":"IF(TRIM(AD303)=\"\", \"\", IF(VLOOKUP(AD303,'Footnotes list'!$D$9:$E$58,2,FALSE)=0,\"\",VLOOKUP(AD303,'Footnotes list'!$D$9:$E$58,2,FALSE) ) )","v":""},null,null,null,null,{"$f":"IF(TRIM(AI303)=\"\", \"\", IF(VLOOKUP(AI303,'Footnotes list'!$D$9:$E$58,2,FALSE)=0,\"\",VLOOKUP(AI303,'Footnotes list'!$D$9:$E$58,2,FALSE) ) )","v":""},null,null,null,null,{"$f":"IF(TRIM(AN303)=\"\", \"\", IF(VLOOKUP(AN303,'Footnotes list'!$D$9:$E$58,2,FALSE)=0,\"\",VLOOKUP(AN303,'Footnotes list'!$D$9:$E$58,2,FALSE) ) )","v":""},null,null,null,null,{"$f":"IF(TRIM(AS303)=\"\", \"\", IF(VLOOKUP(AS303,'Footnotes list'!$D$9:$E$58,2,FALSE)=0,\"\",VLOOKUP(AS303,'Footnotes list'!$D$9:$E$58,2,FALSE) ) )","v":""},null,null,null,null,{"$f":"IF(TRIM(AX303)=\"\", \"\", IF(VLOOKUP(AX303,'Footnotes list'!$D$9:$E$58,2,FALSE)=0,\"\",VLOOKUP(AX303,'Footnotes list'!$D$9:$E$58,2,FALSE) ) )","v":""},null,null,null,null,{"$f":"IF(TRIM(BC303)=\"\", \"\", IF(VLOOKUP(BC303,'Footnotes list'!$D$9:$E$58,2,FALSE)=0,\"\",VLOOKUP(BC303,'Footnotes list'!$D$9:$E$58,2,FALSE) ) )","v":""},null,null,null,null,{"$f":"IF(TRIM(BH303)=\"\", \"\", IF(VLOOKUP(BH303,'Footnotes list'!$D$9:$E$58,2,FALSE)=0,\"\",VLOOKUP(BH303,'Footnotes list'!$D$9:$E$58,2,FALSE) ) )","v":""},null,null,null,null,{"$f":"IF(TRIM(BM303)=\"\", \"\", IF(VLOOKUP(BM303,'Footnotes list'!$D$9:$E$58,2,FALSE)=0,\"\",VLOOKUP(BM303,'Footnotes list'!$D$9:$E$58,2,FALSE) ) )","v":""},null,null,null,null,{"$f":"IF(TRIM(BR303)=\"\", \"\", IF(VLOOKUP(BR303,'Footnotes list'!$D$9:$E$58,2,FALSE)=0,\"\",VLOOKUP(BR303,'Footnotes list'!$D$9:$E$58,2,FALSE) ) )","v":""},null,null,null,null,{"$f":"IF(TRIM(BW303)=\"\", \"\", IF(VLOOKUP(BW303,'Footnotes list'!$D$9:$E$58,2,FALSE)=0,\"\",VLOOKUP(BW303,'Footnotes list'!$D$9:$E$58,2,FALSE) ) )","v":""},null,null,null,null,{"$f":"IF(TRIM(CB303)=\"\", \"\", IF(VLOOKUP(CB303,'Footnotes list'!$D$9:$E$58,2,FALSE)=0,\"\",VLOOKUP(CB303,'Footnotes list'!$D$9:$E$58,2,FALSE) ) )","v":""},null,null,null,null,{"$f":"IF(TRIM(CG303)=\"\", \"\", IF(VLOOKUP(CG303,'Footnotes list'!$D$9:$E$58,2,FALSE)=0,\"\",VLOOKUP(CG303,'Footnotes list'!$D$9:$E$58,2,FALSE) ) )","v":""},null,null,null,null,{"$f":"IF(TRIM(CL303)=\"\", \"\", IF(VLOOKUP(CL303,'Footnotes list'!$D$9:$E$58,2,FALSE)=0,\"\",VLOOKUP(CL303,'Footnotes list'!$D$9:$E$58,2,FALSE) ) )","v":""},null,null,null,null,{"$f":"IF(TRIM(CQ303)=\"\", \"\", IF(VLOOKUP(CQ303,'Footnotes list'!$D$9:$E$58,2,FALSE)=0,\"\",VLOOKUP(CQ303,'Footnotes list'!$D$9:$E$58,2,FALSE) ) )","v":""},null,null,null,null,{"$f":"IF(TRIM(CV303)=\"\", \"\", IF(VLOOKUP(CV303,'Footnotes list'!$D$9:$E$58,2,FALSE)=0,\"\",VLOOKUP(CV303,'Footnotes list'!$D$9:$E$58,2,FALSE) ) )","v":""},null,null,null,null,{"$f":"IF(TRIM(DA303)=\"\", \"\", IF(VLOOKUP(DA303,'Footnotes list'!$D$9:$E$58,2,FALSE)=0,\"\",VLOOKUP(DA303,'Footnotes list'!$D$9:$E$58,2,FALSE) ) )","v":""},null,null,null,null,{"$f":"IF(TRIM(DF303)=\"\", \"\", IF(VLOOKUP(DF303,'Footnotes list'!$D$9:$E$58,2,FALSE)=0,\"\",VLOOKUP(DF303,'Footnotes list'!$D$9:$E$58,2,FALSE) ) )","v":""},null,null,null,null,{"$f":"IF(TRIM(DK303)=\"\", \"\", IF(VLOOKUP(DK303,'Footnotes list'!$D$9:$E$58,2,FALSE)=0,\"\",VLOOKUP(DK303,'Footnotes list'!$D$9:$E$58,2,FALSE) ) )","v":""},null,null,null,null,{"$f":"IF(TRIM(DP303)=\"\", \"\", IF(VLOOKUP(DP303,'Footnotes list'!$D$9:$E$58,2,FALSE)=0,\"\",VLOOKUP(DP303,'Footnotes list'!$D$9:$E$58,2,FALSE) ) )","v":""},null,null,null,null,{"$f":"IF(TRIM(DU303)=\"\", \"\", IF(VLOOKUP(DU303,'Footnotes list'!$D$9:$E$58,2,FALSE)=0,\"\",VLOOKUP(DU303,'Footnotes list'!$D$9:$E$58,2,FALSE) ) )","v":""},null,null,null,null,{"$f":"IF(TRIM(DZ303)=\"\", \"\", IF(VLOOKUP(DZ303,'Footnotes list'!$D$9:$E$58,2,FALSE)=0,\"\",VLOOKUP(DZ303,'Footnotes list'!$D$9:$E$58,2,FALSE) ) )","v":""},null,null,null,null,{"$f":"IF(TRIM(EE303)=\"\", \"\", IF(VLOOKUP(EE303,'Footnotes list'!$D$9:$E$58,2,FALSE)=0,\"\",VLOOKUP(EE303,'Footnotes list'!$D$9:$E$58,2,FALSE) ) )","v":""},null,null,null,null,{"$f":"IF(TRIM(EJ303)=\"\", \"\", IF(VLOOKUP(EJ303,'Footnotes list'!$D$9:$E$58,2,FALSE)=0,\"\",VLOOKUP(EJ303,'Footnotes list'!$D$9:$E$58,2,FALSE) ) )","v":""},null,null,null,null,{"$f":"IF(TRIM(EO303)=\"\", \"\", IF(VLOOKUP(EO303,'Footnotes list'!$D$9:$E$58,2,FALSE)=0,\"\",VLOOKUP(EO303,'Footnotes list'!$D$9:$E$58,2,FALSE) ) )","v":""},null,null,null,null,{"$f":"IF(TRIM(ET303)=\"\", \"\", IF(VLOOKUP(ET303,'Footnotes list'!$D$9:$E$58,2,FALSE)=0,\"\",VLOOKUP(ET303,'Footnotes list'!$D$9:$E$58,2,FALSE) ) )","v":""},null,null,null,null,{"$f":"IF(TRIM(EY303)=\"\", \"\", IF(VLOOKUP(EY303,'Footnotes list'!$D$9:$E$58,2,FALSE)=0,\"\",VLOOKUP(EY303,'Footnotes list'!$D$9:$E$58,2,FALSE) ) )","v":""}]
[null,null,"U","NMKT","non-market activities",null,null,null,null,null,{"$f":"IF(TRIM(J304)=\"\", \"\", IF(VLOOKUP(J304,'Footnotes list'!$D$9:$E$58,2,FALSE)=0,\"\",VLOOKUP(J304,'Footnotes list'!$D$9:$E$58,2,FALSE) ) )","v":""},null,null,null,null,{"$f":"IF(TRIM(O304)=\"\", \"\", IF(VLOOKUP(O304,'Footnotes list'!$D$9:$E$58,2,FALSE)=0,\"\",VLOOKUP(O304,'Footnotes list'!$D$9:$E$58,2,FALSE) ) )","v":""},null,null,null,null,{"$f":"IF(TRIM(T304)=\"\", \"\", IF(VLOOKUP(T304,'Footnotes list'!$D$9:$E$58,2,FALSE)=0,\"\",VLOOKUP(T304,'Footnotes list'!$D$9:$E$58,2,FALSE) ) )","v":""},null,null,null,null,{"$f":"IF(TRIM(Y304)=\"\", \"\", IF(VLOOKUP(Y304,'Footnotes list'!$D$9:$E$58,2,FALSE)=0,\"\",VLOOKUP(Y304,'Footnotes list'!$D$9:$E$58,2,FALSE) ) )","v":""},null,null,null,null,{"$f":"IF(TRIM(AD304)=\"\", \"\", IF(VLOOKUP(AD304,'Footnotes list'!$D$9:$E$58,2,FALSE)=0,\"\",VLOOKUP(AD304,'Footnotes list'!$D$9:$E$58,2,FALSE) ) )","v":""},null,null,null,null,{"$f":"IF(TRIM(AI304)=\"\", \"\", IF(VLOOKUP(AI304,'Footnotes list'!$D$9:$E$58,2,FALSE)=0,\"\",VLOOKUP(AI304,'Footnotes list'!$D$9:$E$58,2,FALSE) ) )","v":""},null,null,null,null,{"$f":"IF(TRIM(AN304)=\"\", \"\", IF(VLOOKUP(AN304,'Footnotes list'!$D$9:$E$58,2,FALSE)=0,\"\",VLOOKUP(AN304,'Footnotes list'!$D$9:$E$58,2,FALSE) ) )","v":""},null,null,null,null,{"$f":"IF(TRIM(AS304)=\"\", \"\", IF(VLOOKUP(AS304,'Footnotes list'!$D$9:$E$58,2,FALSE)=0,\"\",VLOOKUP(AS304,'Footnotes list'!$D$9:$E$58,2,FALSE) ) )","v":""},null,null,null,null,{"$f":"IF(TRIM(AX304)=\"\", \"\", IF(VLOOKUP(AX304,'Footnotes list'!$D$9:$E$58,2,FALSE)=0,\"\",VLOOKUP(AX304,'Footnotes list'!$D$9:$E$58,2,FALSE) ) )","v":""},null,null,null,null,{"$f":"IF(TRIM(BC304)=\"\", \"\", IF(VLOOKUP(BC304,'Footnotes list'!$D$9:$E$58,2,FALSE)=0,\"\",VLOOKUP(BC304,'Footnotes list'!$D$9:$E$58,2,FALSE) ) )","v":""},null,null,null,null,{"$f":"IF(TRIM(BH304)=\"\", \"\", IF(VLOOKUP(BH304,'Footnotes list'!$D$9:$E$58,2,FALSE)=0,\"\",VLOOKUP(BH304,'Footnotes list'!$D$9:$E$58,2,FALSE) ) )","v":""},null,null,null,null,{"$f":"IF(TRIM(BM304)=\"\", \"\", IF(VLOOKUP(BM304,'Footnotes list'!$D$9:$E$58,2,FALSE)=0,\"\",VLOOKUP(BM304,'Footnotes list'!$D$9:$E$58,2,FALSE) ) )","v":""},null,null,null,null,{"$f":"IF(TRIM(BR304)=\"\", \"\", IF(VLOOKUP(BR304,'Footnotes list'!$D$9:$E$58,2,FALSE)=0,\"\",VLOOKUP(BR304,'Footnotes list'!$D$9:$E$58,2,FALSE) ) )","v":""},null,null,null,null,{"$f":"IF(TRIM(BW304)=\"\", \"\", IF(VLOOKUP(BW304,'Footnotes list'!$D$9:$E$58,2,FALSE)=0,\"\",VLOOKUP(BW304,'Footnotes list'!$D$9:$E$58,2,FALSE) ) )","v":""},null,null,null,null,{"$f":"IF(TRIM(CB304)=\"\", \"\", IF(VLOOKUP(CB304,'Footnotes list'!$D$9:$E$58,2,FALSE)=0,\"\",VLOOKUP(CB304,'Footnotes list'!$D$9:$E$58,2,FALSE) ) )","v":""},null,null,null,null,{"$f":"IF(TRIM(CG304)=\"\", \"\", IF(VLOOKUP(CG304,'Footnotes list'!$D$9:$E$58,2,FALSE)=0,\"\",VLOOKUP(CG304,'Footnotes list'!$D$9:$E$58,2,FALSE) ) )","v":""},null,null,null,null,{"$f":"IF(TRIM(CL304)=\"\", \"\", IF(VLOOKUP(CL304,'Footnotes list'!$D$9:$E$58,2,FALSE)=0,\"\",VLOOKUP(CL304,'Footnotes list'!$D$9:$E$58,2,FALSE) ) )","v":""},null,null,null,null,{"$f":"IF(TRIM(CQ304)=\"\", \"\", IF(VLOOKUP(CQ304,'Footnotes list'!$D$9:$E$58,2,FALSE)=0,\"\",VLOOKUP(CQ304,'Footnotes list'!$D$9:$E$58,2,FALSE) ) )","v":""},null,null,null,null,{"$f":"IF(TRIM(CV304)=\"\", \"\", IF(VLOOKUP(CV304,'Footnotes list'!$D$9:$E$58,2,FALSE)=0,\"\",VLOOKUP(CV304,'Footnotes list'!$D$9:$E$58,2,FALSE) ) )","v":""},null,null,null,null,{"$f":"IF(TRIM(DA304)=\"\", \"\", IF(VLOOKUP(DA304,'Footnotes list'!$D$9:$E$58,2,FALSE)=0,\"\",VLOOKUP(DA304,'Footnotes list'!$D$9:$E$58,2,FALSE) ) )","v":""},null,null,null,null,{"$f":"IF(TRIM(DF304)=\"\", \"\", IF(VLOOKUP(DF304,'Footnotes list'!$D$9:$E$58,2,FALSE)=0,\"\",VLOOKUP(DF304,'Footnotes list'!$D$9:$E$58,2,FALSE) ) )","v":""},null,null,null,null,{"$f":"IF(TRIM(DK304)=\"\", \"\", IF(VLOOKUP(DK304,'Footnotes list'!$D$9:$E$58,2,FALSE)=0,\"\",VLOOKUP(DK304,'Footnotes list'!$D$9:$E$58,2,FALSE) ) )","v":""},null,null,null,null,{"$f":"IF(TRIM(DP304)=\"\", \"\", IF(VLOOKUP(DP304,'Footnotes list'!$D$9:$E$58,2,FALSE)=0,\"\",VLOOKUP(DP304,'Footnotes list'!$D$9:$E$58,2,FALSE) ) )","v":""},null,null,null,null,{"$f":"IF(TRIM(DU304)=\"\", \"\", IF(VLOOKUP(DU304,'Footnotes list'!$D$9:$E$58,2,FALSE)=0,\"\",VLOOKUP(DU304,'Footnotes list'!$D$9:$E$58,2,FALSE) ) )","v":""},null,null,null,null,{"$f":"IF(TRIM(DZ304)=\"\", \"\", IF(VLOOKUP(DZ304,'Footnotes list'!$D$9:$E$58,2,FALSE)=0,\"\",VLOOKUP(DZ304,'Footnotes list'!$D$9:$E$58,2,FALSE) ) )","v":""},null,null,null,null,{"$f":"IF(TRIM(EE304)=\"\", \"\", IF(VLOOKUP(EE304,'Footnotes list'!$D$9:$E$58,2,FALSE)=0,\"\",VLOOKUP(EE304,'Footnotes list'!$D$9:$E$58,2,FALSE) ) )","v":""},null,null,null,null,{"$f":"IF(TRIM(EJ304)=\"\", \"\", IF(VLOOKUP(EJ304,'Footnotes list'!$D$9:$E$58,2,FALSE)=0,\"\",VLOOKUP(EJ304,'Footnotes list'!$D$9:$E$58,2,FALSE) ) )","v":""},null,null,null,null,{"$f":"IF(TRIM(EO304)=\"\", \"\", IF(VLOOKUP(EO304,'Footnotes list'!$D$9:$E$58,2,FALSE)=0,\"\",VLOOKUP(EO304,'Footnotes list'!$D$9:$E$58,2,FALSE) ) )","v":""},null,null,null,null,{"$f":"IF(TRIM(ET304)=\"\", \"\", IF(VLOOKUP(ET304,'Footnotes list'!$D$9:$E$58,2,FALSE)=0,\"\",VLOOKUP(ET304,'Footnotes list'!$D$9:$E$58,2,FALSE) ) )","v":""},null,null,null,null,{"$f":"IF(TRIM(EY304)=\"\", \"\", IF(VLOOKUP(EY304,'Footnotes list'!$D$9:$E$58,2,FALSE)=0,\"\",VLOOKUP(EY304,'Footnotes list'!$D$9:$E$58,2,FALSE) ) )","v":""}]
[null,null,"U","OWN_USE","activities for own final use",null,null,null,null,null,{"$f":"IF(TRIM(J305)=\"\", \"\", IF(VLOOKUP(J305,'Footnotes list'!$D$9:$E$58,2,FALSE)=0,\"\",VLOOKUP(J305,'Footnotes list'!$D$9:$E$58,2,FALSE) ) )","v":""},null,null,null,null,{"$f":"IF(TRIM(O305)=\"\", \"\", IF(VLOOKUP(O305,'Footnotes list'!$D$9:$E$58,2,FALSE)=0,\"\",VLOOKUP(O305,'Footnotes list'!$D$9:$E$58,2,FALSE) ) )","v":""},null,null,null,null,{"$f":"IF(TRIM(T305)=\"\", \"\", IF(VLOOKUP(T305,'Footnotes list'!$D$9:$E$58,2,FALSE)=0,\"\",VLOOKUP(T305,'Footnotes list'!$D$9:$E$58,2,FALSE) ) )","v":""},null,null,null,null,{"$f":"IF(TRIM(Y305)=\"\", \"\", IF(VLOOKUP(Y305,'Footnotes list'!$D$9:$E$58,2,FALSE)=0,\"\",VLOOKUP(Y305,'Footnotes list'!$D$9:$E$58,2,FALSE) ) )","v":""},null,null,null,null,{"$f":"IF(TRIM(AD305)=\"\", \"\", IF(VLOOKUP(AD305,'Footnotes list'!$D$9:$E$58,2,FALSE)=0,\"\",VLOOKUP(AD305,'Footnotes list'!$D$9:$E$58,2,FALSE) ) )","v":""},null,null,null,null,{"$f":"IF(TRIM(AI305)=\"\", \"\", IF(VLOOKUP(AI305,'Footnotes list'!$D$9:$E$58,2,FALSE)=0,\"\",VLOOKUP(AI305,'Footnotes list'!$D$9:$E$58,2,FALSE) ) )","v":""},null,null,null,null,{"$f":"IF(TRIM(AN305)=\"\", \"\", IF(VLOOKUP(AN305,'Footnotes list'!$D$9:$E$58,2,FALSE)=0,\"\",VLOOKUP(AN305,'Footnotes list'!$D$9:$E$58,2,FALSE) ) )","v":""},null,null,null,null,{"$f":"IF(TRIM(AS305)=\"\", \"\", IF(VLOOKUP(AS305,'Footnotes list'!$D$9:$E$58,2,FALSE)=0,\"\",VLOOKUP(AS305,'Footnotes list'!$D$9:$E$58,2,FALSE) ) )","v":""},null,null,null,null,{"$f":"IF(TRIM(AX305)=\"\", \"\", IF(VLOOKUP(AX305,'Footnotes list'!$D$9:$E$58,2,FALSE)=0,\"\",VLOOKUP(AX305,'Footnotes list'!$D$9:$E$58,2,FALSE) ) )","v":""},null,null,null,null,{"$f":"IF(TRIM(BC305)=\"\", \"\", IF(VLOOKUP(BC305,'Footnotes list'!$D$9:$E$58,2,FALSE)=0,\"\",VLOOKUP(BC305,'Footnotes list'!$D$9:$E$58,2,FALSE) ) )","v":""},null,null,null,null,{"$f":"IF(TRIM(BH305)=\"\", \"\", IF(VLOOKUP(BH305,'Footnotes list'!$D$9:$E$58,2,FALSE)=0,\"\",VLOOKUP(BH305,'Footnotes list'!$D$9:$E$58,2,FALSE) ) )","v":""},null,null,null,null,{"$f":"IF(TRIM(BM305)=\"\", \"\", IF(VLOOKUP(BM305,'Footnotes list'!$D$9:$E$58,2,FALSE)=0,\"\",VLOOKUP(BM305,'Footnotes list'!$D$9:$E$58,2,FALSE) ) )","v":""},null,null,null,null,{"$f":"IF(TRIM(BR305)=\"\", \"\", IF(VLOOKUP(BR305,'Footnotes list'!$D$9:$E$58,2,FALSE)=0,\"\",VLOOKUP(BR305,'Footnotes list'!$D$9:$E$58,2,FALSE) ) )","v":""},null,null,null,null,{"$f":"IF(TRIM(BW305)=\"\", \"\", IF(VLOOKUP(BW305,'Footnotes list'!$D$9:$E$58,2,FALSE)=0,\"\",VLOOKUP(BW305,'Footnotes list'!$D$9:$E$58,2,FALSE) ) )","v":""},null,null,null,null,{"$f":"IF(TRIM(CB305)=\"\", \"\", IF(VLOOKUP(CB305,'Footnotes list'!$D$9:$E$58,2,FALSE)=0,\"\",VLOOKUP(CB305,'Footnotes list'!$D$9:$E$58,2,FALSE) ) )","v":""},null,null,null,null,{"$f":"IF(TRIM(CG305)=\"\", \"\", IF(VLOOKUP(CG305,'Footnotes list'!$D$9:$E$58,2,FALSE)=0,\"\",VLOOKUP(CG305,'Footnotes list'!$D$9:$E$58,2,FALSE) ) )","v":""},null,null,null,null,{"$f":"IF(TRIM(CL305)=\"\", \"\", IF(VLOOKUP(CL305,'Footnotes list'!$D$9:$E$58,2,FALSE)=0,\"\",VLOOKUP(CL305,'Footnotes list'!$D$9:$E$58,2,FALSE) ) )","v":""},null,null,null,null,{"$f":"IF(TRIM(CQ305)=\"\", \"\", IF(VLOOKUP(CQ305,'Footnotes list'!$D$9:$E$58,2,FALSE)=0,\"\",VLOOKUP(CQ305,'Footnotes list'!$D$9:$E$58,2,FALSE) ) )","v":""},null,null,null,null,{"$f":"IF(TRIM(CV305)=\"\", \"\", IF(VLOOKUP(CV305,'Footnotes list'!$D$9:$E$58,2,FALSE)=0,\"\",VLOOKUP(CV305,'Footnotes list'!$D$9:$E$58,2,FALSE) ) )","v":""},null,null,null,null,{"$f":"IF(TRIM(DA305)=\"\", \"\", IF(VLOOKUP(DA305,'Footnotes list'!$D$9:$E$58,2,FALSE)=0,\"\",VLOOKUP(DA305,'Footnotes list'!$D$9:$E$58,2,FALSE) ) )","v":""},null,null,null,null,{"$f":"IF(TRIM(DF305)=\"\", \"\", IF(VLOOKUP(DF305,'Footnotes list'!$D$9:$E$58,2,FALSE)=0,\"\",VLOOKUP(DF305,'Footnotes list'!$D$9:$E$58,2,FALSE) ) )","v":""},null,null,null,null,{"$f":"IF(TRIM(DK305)=\"\", \"\", IF(VLOOKUP(DK305,'Footnotes list'!$D$9:$E$58,2,FALSE)=0,\"\",VLOOKUP(DK305,'Footnotes list'!$D$9:$E$58,2,FALSE) ) )","v":""},null,null,null,null,{"$f":"IF(TRIM(DP305)=\"\", \"\", IF(VLOOKUP(DP305,'Footnotes list'!$D$9:$E$58,2,FALSE)=0,\"\",VLOOKUP(DP305,'Footnotes list'!$D$9:$E$58,2,FALSE) ) )","v":""},null,null,null,null,{"$f":"IF(TRIM(DU305)=\"\", \"\", IF(VLOOKUP(DU305,'Footnotes list'!$D$9:$E$58,2,FALSE)=0,\"\",VLOOKUP(DU305,'Footnotes list'!$D$9:$E$58,2,FALSE) ) )","v":""},null,null,null,null,{"$f":"IF(TRIM(DZ305)=\"\", \"\", IF(VLOOKUP(DZ305,'Footnotes list'!$D$9:$E$58,2,FALSE)=0,\"\",VLOOKUP(DZ305,'Footnotes list'!$D$9:$E$58,2,FALSE) ) )","v":""},null,null,null,null,{"$f":"IF(TRIM(EE305)=\"\", \"\", IF(VLOOKUP(EE305,'Footnotes list'!$D$9:$E$58,2,FALSE)=0,\"\",VLOOKUP(EE305,'Footnotes list'!$D$9:$E$58,2,FALSE) ) )","v":""},null,null,null,null,{"$f":"IF(TRIM(EJ305)=\"\", \"\", IF(VLOOKUP(EJ305,'Footnotes list'!$D$9:$E$58,2,FALSE)=0,\"\",VLOOKUP(EJ305,'Footnotes list'!$D$9:$E$58,2,FALSE) ) )","v":""},null,null,null,null,{"$f":"IF(TRIM(EO305)=\"\", \"\", IF(VLOOKUP(EO305,'Footnotes list'!$D$9:$E$58,2,FALSE)=0,\"\",VLOOKUP(EO305,'Footnotes list'!$D$9:$E$58,2,FALSE) ) )","v":""},null,null,null,null,{"$f":"IF(TRIM(ET305)=\"\", \"\", IF(VLOOKUP(ET305,'Footnotes list'!$D$9:$E$58,2,FALSE)=0,\"\",VLOOKUP(ET305,'Footnotes list'!$D$9:$E$58,2,FALSE) ) )","v":""},null,null,null,null,{"$f":"IF(TRIM(EY305)=\"\", \"\", IF(VLOOKUP(EY305,'Footnotes list'!$D$9:$E$58,2,FALSE)=0,\"\",VLOOKUP(EY305,'Footnotes list'!$D$9:$E$58,2,FALSE) ) )","v":""}]
[null,null,"U","MKT","market activities, including:",null,null,null,null,null,{"$f":"IF(TRIM(J306)=\"\", \"\", IF(VLOOKUP(J306,'Footnotes list'!$D$9:$E$58,2,FALSE)=0,\"\",VLOOKUP(J306,'Footnotes list'!$D$9:$E$58,2,FALSE) ) )","v":""},null,null,null,null,{"$f":"IF(TRIM(O306)=\"\", \"\", IF(VLOOKUP(O306,'Footnotes list'!$D$9:$E$58,2,FALSE)=0,\"\",VLOOKUP(O306,'Footnotes list'!$D$9:$E$58,2,FALSE) ) )","v":""},null,null,null,null,{"$f":"IF(TRIM(T306)=\"\", \"\", IF(VLOOKUP(T306,'Footnotes list'!$D$9:$E$58,2,FALSE)=0,\"\",VLOOKUP(T306,'Footnotes list'!$D$9:$E$58,2,FALSE) ) )","v":""},null,null,null,null,{"$f":"IF(TRIM(Y306)=\"\", \"\", IF(VLOOKUP(Y306,'Footnotes list'!$D$9:$E$58,2,FALSE)=0,\"\",VLOOKUP(Y306,'Footnotes list'!$D$9:$E$58,2,FALSE) ) )","v":""},null,null,null,null,{"$f":"IF(TRIM(AD306)=\"\", \"\", IF(VLOOKUP(AD306,'Footnotes list'!$D$9:$E$58,2,FALSE)=0,\"\",VLOOKUP(AD306,'Footnotes list'!$D$9:$E$58,2,FALSE) ) )","v":""},null,null,null,null,{"$f":"IF(TRIM(AI306)=\"\", \"\", IF(VLOOKUP(AI306,'Footnotes list'!$D$9:$E$58,2,FALSE)=0,\"\",VLOOKUP(AI306,'Footnotes list'!$D$9:$E$58,2,FALSE) ) )","v":""},null,null,null,null,{"$f":"IF(TRIM(AN306)=\"\", \"\", IF(VLOOKUP(AN306,'Footnotes list'!$D$9:$E$58,2,FALSE)=0,\"\",VLOOKUP(AN306,'Footnotes list'!$D$9:$E$58,2,FALSE) ) )","v":""},null,null,null,null,{"$f":"IF(TRIM(AS306)=\"\", \"\", IF(VLOOKUP(AS306,'Footnotes list'!$D$9:$E$58,2,FALSE)=0,\"\",VLOOKUP(AS306,'Footnotes list'!$D$9:$E$58,2,FALSE) ) )","v":""},null,null,null,null,{"$f":"IF(TRIM(AX306)=\"\", \"\", IF(VLOOKUP(AX306,'Footnotes list'!$D$9:$E$58,2,FALSE)=0,\"\",VLOOKUP(AX306,'Footnotes list'!$D$9:$E$58,2,FALSE) ) )","v":""},null,null,null,null,{"$f":"IF(TRIM(BC306)=\"\", \"\", IF(VLOOKUP(BC306,'Footnotes list'!$D$9:$E$58,2,FALSE)=0,\"\",VLOOKUP(BC306,'Footnotes list'!$D$9:$E$58,2,FALSE) ) )","v":""},null,null,null,null,{"$f":"IF(TRIM(BH306)=\"\", \"\", IF(VLOOKUP(BH306,'Footnotes list'!$D$9:$E$58,2,FALSE)=0,\"\",VLOOKUP(BH306,'Footnotes list'!$D$9:$E$58,2,FALSE) ) )","v":""},null,null,null,null,{"$f":"IF(TRIM(BM306)=\"\", \"\", IF(VLOOKUP(BM306,'Footnotes list'!$D$9:$E$58,2,FALSE)=0,\"\",VLOOKUP(BM306,'Footnotes list'!$D$9:$E$58,2,FALSE) ) )","v":""},null,null,null,null,{"$f":"IF(TRIM(BR306)=\"\", \"\", IF(VLOOKUP(BR306,'Footnotes list'!$D$9:$E$58,2,FALSE)=0,\"\",VLOOKUP(BR306,'Footnotes list'!$D$9:$E$58,2,FALSE) ) )","v":""},null,null,null,null,{"$f":"IF(TRIM(BW306)=\"\", \"\", IF(VLOOKUP(BW306,'Footnotes list'!$D$9:$E$58,2,FALSE)=0,\"\",VLOOKUP(BW306,'Footnotes list'!$D$9:$E$58,2,FALSE) ) )","v":""},null,null,null,null,{"$f":"IF(TRIM(CB306)=\"\", \"\", IF(VLOOKUP(CB306,'Footnotes list'!$D$9:$E$58,2,FALSE)=0,\"\",VLOOKUP(CB306,'Footnotes list'!$D$9:$E$58,2,FALSE) ) )","v":""},null,null,null,null,{"$f":"IF(TRIM(CG306)=\"\", \"\", IF(VLOOKUP(CG306,'Footnotes list'!$D$9:$E$58,2,FALSE)=0,\"\",VLOOKUP(CG306,'Footnotes list'!$D$9:$E$58,2,FALSE) ) )","v":""},null,null,null,null,{"$f":"IF(TRIM(CL306)=\"\", \"\", IF(VLOOKUP(CL306,'Footnotes list'!$D$9:$E$58,2,FALSE)=0,\"\",VLOOKUP(CL306,'Footnotes list'!$D$9:$E$58,2,FALSE) ) )","v":""},null,null,null,null,{"$f":"IF(TRIM(CQ306)=\"\", \"\", IF(VLOOKUP(CQ306,'Footnotes list'!$D$9:$E$58,2,FALSE)=0,\"\",VLOOKUP(CQ306,'Footnotes list'!$D$9:$E$58,2,FALSE) ) )","v":""},null,null,null,null,{"$f":"IF(TRIM(CV306)=\"\", \"\", IF(VLOOKUP(CV306,'Footnotes list'!$D$9:$E$58,2,FALSE)=0,\"\",VLOOKUP(CV306,'Footnotes list'!$D$9:$E$58,2,FALSE) ) )","v":""},null,null,null,null,{"$f":"IF(TRIM(DA306)=\"\", \"\", IF(VLOOKUP(DA306,'Footnotes list'!$D$9:$E$58,2,FALSE)=0,\"\",VLOOKUP(DA306,'Footnotes list'!$D$9:$E$58,2,FALSE) ) )","v":""},null,null,null,null,{"$f":"IF(TRIM(DF306)=\"\", \"\", IF(VLOOKUP(DF306,'Footnotes list'!$D$9:$E$58,2,FALSE)=0,\"\",VLOOKUP(DF306,'Footnotes list'!$D$9:$E$58,2,FALSE) ) )","v":""},null,null,null,null,{"$f":"IF(TRIM(DK306)=\"\", \"\", IF(VLOOKUP(DK306,'Footnotes list'!$D$9:$E$58,2,FALSE)=0,\"\",VLOOKUP(DK306,'Footnotes list'!$D$9:$E$58,2,FALSE) ) )","v":""},null,null,null,null,{"$f":"IF(TRIM(DP306)=\"\", \"\", IF(VLOOKUP(DP306,'Footnotes list'!$D$9:$E$58,2,FALSE)=0,\"\",VLOOKUP(DP306,'Footnotes list'!$D$9:$E$58,2,FALSE) ) )","v":""},null,null,null,null,{"$f":"IF(TRIM(DU306)=\"\", \"\", IF(VLOOKUP(DU306,'Footnotes list'!$D$9:$E$58,2,FALSE)=0,\"\",VLOOKUP(DU306,'Footnotes list'!$D$9:$E$58,2,FALSE) ) )","v":""},null,null,null,null,{"$f":"IF(TRIM(DZ306)=\"\", \"\", IF(VLOOKUP(DZ306,'Footnotes list'!$D$9:$E$58,2,FALSE)=0,\"\",VLOOKUP(DZ306,'Footnotes list'!$D$9:$E$58,2,FALSE) ) )","v":""},null,null,null,null,{"$f":"IF(TRIM(EE306)=\"\", \"\", IF(VLOOKUP(EE306,'Footnotes list'!$D$9:$E$58,2,FALSE)=0,\"\",VLOOKUP(EE306,'Footnotes list'!$D$9:$E$58,2,FALSE) ) )","v":""},null,null,null,null,{"$f":"IF(TRIM(EJ306)=\"\", \"\", IF(VLOOKUP(EJ306,'Footnotes list'!$D$9:$E$58,2,FALSE)=0,\"\",VLOOKUP(EJ306,'Footnotes list'!$D$9:$E$58,2,FALSE) ) )","v":""},null,null,null,null,{"$f":"IF(TRIM(EO306)=\"\", \"\", IF(VLOOKUP(EO306,'Footnotes list'!$D$9:$E$58,2,FALSE)=0,\"\",VLOOKUP(EO306,'Footnotes list'!$D$9:$E$58,2,FALSE) ) )","v":""},null,null,null,null,{"$f":"IF(TRIM(ET306)=\"\", \"\", IF(VLOOKUP(ET306,'Footnotes list'!$D$9:$E$58,2,FALSE)=0,\"\",VLOOKUP(ET306,'Footnotes list'!$D$9:$E$58,2,FALSE) ) )","v":""},null,null,null,null,{"$f":"IF(TRIM(EY306)=\"\", \"\", IF(VLOOKUP(EY306,'Footnotes list'!$D$9:$E$58,2,FALSE)=0,\"\",VLOOKUP(EY306,'Footnotes list'!$D$9:$E$58,2,FALSE) ) )","v":""}]
[null,null,"U","ES_CS","environmental specific services",null,null,null,null,null,{"$f":"IF(TRIM(J307)=\"\", \"\", IF(VLOOKUP(J307,'Footnotes list'!$D$9:$E$58,2,FALSE)=0,\"\",VLOOKUP(J307,'Footnotes list'!$D$9:$E$58,2,FALSE) ) )","v":""},null,null,null,null,{"$f":"IF(TRIM(O307)=\"\", \"\", IF(VLOOKUP(O307,'Footnotes list'!$D$9:$E$58,2,FALSE)=0,\"\",VLOOKUP(O307,'Footnotes list'!$D$9:$E$58,2,FALSE) ) )","v":""},null,null,null,null,{"$f":"IF(TRIM(T307)=\"\", \"\", IF(VLOOKUP(T307,'Footnotes list'!$D$9:$E$58,2,FALSE)=0,\"\",VLOOKUP(T307,'Footnotes list'!$D$9:$E$58,2,FALSE) ) )","v":""},null,null,null,null,{"$f":"IF(TRIM(Y307)=\"\", \"\", IF(VLOOKUP(Y307,'Footnotes list'!$D$9:$E$58,2,FALSE)=0,\"\",VLOOKUP(Y307,'Footnotes list'!$D$9:$E$58,2,FALSE) ) )","v":""},null,null,null,null,{"$f":"IF(TRIM(AD307)=\"\", \"\", IF(VLOOKUP(AD307,'Footnotes list'!$D$9:$E$58,2,FALSE)=0,\"\",VLOOKUP(AD307,'Footnotes list'!$D$9:$E$58,2,FALSE) ) )","v":""},null,null,null,null,{"$f":"IF(TRIM(AI307)=\"\", \"\", IF(VLOOKUP(AI307,'Footnotes list'!$D$9:$E$58,2,FALSE)=0,\"\",VLOOKUP(AI307,'Footnotes list'!$D$9:$E$58,2,FALSE) ) )","v":""},null,null,null,null,{"$f":"IF(TRIM(AN307)=\"\", \"\", IF(VLOOKUP(AN307,'Footnotes list'!$D$9:$E$58,2,FALSE)=0,\"\",VLOOKUP(AN307,'Footnotes list'!$D$9:$E$58,2,FALSE) ) )","v":""},null,null,null,null,{"$f":"IF(TRIM(AS307)=\"\", \"\", IF(VLOOKUP(AS307,'Footnotes list'!$D$9:$E$58,2,FALSE)=0,\"\",VLOOKUP(AS307,'Footnotes list'!$D$9:$E$58,2,FALSE) ) )","v":""},null,null,null,null,{"$f":"IF(TRIM(AX307)=\"\", \"\", IF(VLOOKUP(AX307,'Footnotes list'!$D$9:$E$58,2,FALSE)=0,\"\",VLOOKUP(AX307,'Footnotes list'!$D$9:$E$58,2,FALSE) ) )","v":""},null,null,null,null,{"$f":"IF(TRIM(BC307)=\"\", \"\", IF(VLOOKUP(BC307,'Footnotes list'!$D$9:$E$58,2,FALSE)=0,\"\",VLOOKUP(BC307,'Footnotes list'!$D$9:$E$58,2,FALSE) ) )","v":""},null,null,null,null,{"$f":"IF(TRIM(BH307)=\"\", \"\", IF(VLOOKUP(BH307,'Footnotes list'!$D$9:$E$58,2,FALSE)=0,\"\",VLOOKUP(BH307,'Footnotes list'!$D$9:$E$58,2,FALSE) ) )","v":""},null,null,null,null,{"$f":"IF(TRIM(BM307)=\"\", \"\", IF(VLOOKUP(BM307,'Footnotes list'!$D$9:$E$58,2,FALSE)=0,\"\",VLOOKUP(BM307,'Footnotes list'!$D$9:$E$58,2,FALSE) ) )","v":""},null,null,null,null,{"$f":"IF(TRIM(BR307)=\"\", \"\", IF(VLOOKUP(BR307,'Footnotes list'!$D$9:$E$58,2,FALSE)=0,\"\",VLOOKUP(BR307,'Footnotes list'!$D$9:$E$58,2,FALSE) ) )","v":""},null,null,null,null,{"$f":"IF(TRIM(BW307)=\"\", \"\", IF(VLOOKUP(BW307,'Footnotes list'!$D$9:$E$58,2,FALSE)=0,\"\",VLOOKUP(BW307,'Footnotes list'!$D$9:$E$58,2,FALSE) ) )","v":""},null,null,null,null,{"$f":"IF(TRIM(CB307)=\"\", \"\", IF(VLOOKUP(CB307,'Footnotes list'!$D$9:$E$58,2,FALSE)=0,\"\",VLOOKUP(CB307,'Footnotes list'!$D$9:$E$58,2,FALSE) ) )","v":""},null,null,null,null,{"$f":"IF(TRIM(CG307)=\"\", \"\", IF(VLOOKUP(CG307,'Footnotes list'!$D$9:$E$58,2,FALSE)=0,\"\",VLOOKUP(CG307,'Footnotes list'!$D$9:$E$58,2,FALSE) ) )","v":""},null,null,null,null,{"$f":"IF(TRIM(CL307)=\"\", \"\", IF(VLOOKUP(CL307,'Footnotes list'!$D$9:$E$58,2,FALSE)=0,\"\",VLOOKUP(CL307,'Footnotes list'!$D$9:$E$58,2,FALSE) ) )","v":""},null,null,null,null,{"$f":"IF(TRIM(CQ307)=\"\", \"\", IF(VLOOKUP(CQ307,'Footnotes list'!$D$9:$E$58,2,FALSE)=0,\"\",VLOOKUP(CQ307,'Footnotes list'!$D$9:$E$58,2,FALSE) ) )","v":""},null,null,null,null,{"$f":"IF(TRIM(CV307)=\"\", \"\", IF(VLOOKUP(CV307,'Footnotes list'!$D$9:$E$58,2,FALSE)=0,\"\",VLOOKUP(CV307,'Footnotes list'!$D$9:$E$58,2,FALSE) ) )","v":""},null,null,null,null,{"$f":"IF(TRIM(DA307)=\"\", \"\", IF(VLOOKUP(DA307,'Footnotes list'!$D$9:$E$58,2,FALSE)=0,\"\",VLOOKUP(DA307,'Footnotes list'!$D$9:$E$58,2,FALSE) ) )","v":""},null,null,null,null,{"$f":"IF(TRIM(DF307)=\"\", \"\", IF(VLOOKUP(DF307,'Footnotes list'!$D$9:$E$58,2,FALSE)=0,\"\",VLOOKUP(DF307,'Footnotes list'!$D$9:$E$58,2,FALSE) ) )","v":""},null,null,null,null,{"$f":"IF(TRIM(DK307)=\"\", \"\", IF(VLOOKUP(DK307,'Footnotes list'!$D$9:$E$58,2,FALSE)=0,\"\",VLOOKUP(DK307,'Footnotes list'!$D$9:$E$58,2,FALSE) ) )","v":""},null,null,null,null,{"$f":"IF(TRIM(DP307)=\"\", \"\", IF(VLOOKUP(DP307,'Footnotes list'!$D$9:$E$58,2,FALSE)=0,\"\",VLOOKUP(DP307,'Footnotes list'!$D$9:$E$58,2,FALSE) ) )","v":""},null,null,null,null,{"$f":"IF(TRIM(DU307)=\"\", \"\", IF(VLOOKUP(DU307,'Footnotes list'!$D$9:$E$58,2,FALSE)=0,\"\",VLOOKUP(DU307,'Footnotes list'!$D$9:$E$58,2,FALSE) ) )","v":""},null,null,null,null,{"$f":"IF(TRIM(DZ307)=\"\", \"\", IF(VLOOKUP(DZ307,'Footnotes list'!$D$9:$E$58,2,FALSE)=0,\"\",VLOOKUP(DZ307,'Footnotes list'!$D$9:$E$58,2,FALSE) ) )","v":""},null,null,null,null,{"$f":"IF(TRIM(EE307)=\"\", \"\", IF(VLOOKUP(EE307,'Footnotes list'!$D$9:$E$58,2,FALSE)=0,\"\",VLOOKUP(EE307,'Footnotes list'!$D$9:$E$58,2,FALSE) ) )","v":""},null,null,null,null,{"$f":"IF(TRIM(EJ307)=\"\", \"\", IF(VLOOKUP(EJ307,'Footnotes list'!$D$9:$E$58,2,FALSE)=0,\"\",VLOOKUP(EJ307,'Footnotes list'!$D$9:$E$58,2,FALSE) ) )","v":""},null,null,null,null,{"$f":"IF(TRIM(EO307)=\"\", \"\", IF(VLOOKUP(EO307,'Footnotes list'!$D$9:$E$58,2,FALSE)=0,\"\",VLOOKUP(EO307,'Footnotes list'!$D$9:$E$58,2,FALSE) ) )","v":""},null,null,null,null,{"$f":"IF(TRIM(ET307)=\"\", \"\", IF(VLOOKUP(ET307,'Footnotes list'!$D$9:$E$58,2,FALSE)=0,\"\",VLOOKUP(ET307,'Footnotes list'!$D$9:$E$58,2,FALSE) ) )","v":""},null,null,null,null,{"$f":"IF(TRIM(EY307)=\"\", \"\", IF(VLOOKUP(EY307,'Footnotes list'!$D$9:$E$58,2,FALSE)=0,\"\",VLOOKUP(EY307,'Footnotes list'!$D$9:$E$58,2,FALSE) ) )","v":""}]
[null,null,"U","C_REP","cleaner and resource efficient products",null,null,null,null,null,{"$f":"IF(TRIM(J308)=\"\", \"\", IF(VLOOKUP(J308,'Footnotes list'!$D$9:$E$58,2,FALSE)=0,\"\",VLOOKUP(J308,'Footnotes list'!$D$9:$E$58,2,FALSE) ) )","v":""},null,null,null,null,{"$f":"IF(TRIM(O308)=\"\", \"\", IF(VLOOKUP(O308,'Footnotes list'!$D$9:$E$58,2,FALSE)=0,\"\",VLOOKUP(O308,'Footnotes list'!$D$9:$E$58,2,FALSE) ) )","v":""},null,null,null,null,{"$f":"IF(TRIM(T308)=\"\", \"\", IF(VLOOKUP(T308,'Footnotes list'!$D$9:$E$58,2,FALSE)=0,\"\",VLOOKUP(T308,'Footnotes list'!$D$9:$E$58,2,FALSE) ) )","v":""},null,null,null,null,{"$f":"IF(TRIM(Y308)=\"\", \"\", IF(VLOOKUP(Y308,'Footnotes list'!$D$9:$E$58,2,FALSE)=0,\"\",VLOOKUP(Y308,'Footnotes list'!$D$9:$E$58,2,FALSE) ) )","v":""},null,null,null,null,{"$f":"IF(TRIM(AD308)=\"\", \"\", IF(VLOOKUP(AD308,'Footnotes list'!$D$9:$E$58,2,FALSE)=0,\"\",VLOOKUP(AD308,'Footnotes list'!$D$9:$E$58,2,FALSE) ) )","v":""},null,null,null,null,{"$f":"IF(TRIM(AI308)=\"\", \"\", IF(VLOOKUP(AI308,'Footnotes list'!$D$9:$E$58,2,FALSE)=0,\"\",VLOOKUP(AI308,'Footnotes list'!$D$9:$E$58,2,FALSE) ) )","v":""},null,null,null,null,{"$f":"IF(TRIM(AN308)=\"\", \"\", IF(VLOOKUP(AN308,'Footnotes list'!$D$9:$E$58,2,FALSE)=0,\"\",VLOOKUP(AN308,'Footnotes list'!$D$9:$E$58,2,FALSE) ) )","v":""},null,null,null,null,{"$f":"IF(TRIM(AS308)=\"\", \"\", IF(VLOOKUP(AS308,'Footnotes list'!$D$9:$E$58,2,FALSE)=0,\"\",VLOOKUP(AS308,'Footnotes list'!$D$9:$E$58,2,FALSE) ) )","v":""},null,null,null,null,{"$f":"IF(TRIM(AX308)=\"\", \"\", IF(VLOOKUP(AX308,'Footnotes list'!$D$9:$E$58,2,FALSE)=0,\"\",VLOOKUP(AX308,'Footnotes list'!$D$9:$E$58,2,FALSE) ) )","v":""},null,null,null,null,{"$f":"IF(TRIM(BC308)=\"\", \"\", IF(VLOOKUP(BC308,'Footnotes list'!$D$9:$E$58,2,FALSE)=0,\"\",VLOOKUP(BC308,'Footnotes list'!$D$9:$E$58,2,FALSE) ) )","v":""},null,null,null,null,{"$f":"IF(TRIM(BH308)=\"\", \"\", IF(VLOOKUP(BH308,'Footnotes list'!$D$9:$E$58,2,FALSE)=0,\"\",VLOOKUP(BH308,'Footnotes list'!$D$9:$E$58,2,FALSE) ) )","v":""},null,null,null,null,{"$f":"IF(TRIM(BM308)=\"\", \"\", IF(VLOOKUP(BM308,'Footnotes list'!$D$9:$E$58,2,FALSE)=0,\"\",VLOOKUP(BM308,'Footnotes list'!$D$9:$E$58,2,FALSE) ) )","v":""},null,null,null,null,{"$f":"IF(TRIM(BR308)=\"\", \"\", IF(VLOOKUP(BR308,'Footnotes list'!$D$9:$E$58,2,FALSE)=0,\"\",VLOOKUP(BR308,'Footnotes list'!$D$9:$E$58,2,FALSE) ) )","v":""},null,null,null,null,{"$f":"IF(TRIM(BW308)=\"\", \"\", IF(VLOOKUP(BW308,'Footnotes list'!$D$9:$E$58,2,FALSE)=0,\"\",VLOOKUP(BW308,'Footnotes list'!$D$9:$E$58,2,FALSE) ) )","v":""},null,null,null,null,{"$f":"IF(TRIM(CB308)=\"\", \"\", IF(VLOOKUP(CB308,'Footnotes list'!$D$9:$E$58,2,FALSE)=0,\"\",VLOOKUP(CB308,'Footnotes list'!$D$9:$E$58,2,FALSE) ) )","v":""},null,null,null,null,{"$f":"IF(TRIM(CG308)=\"\", \"\", IF(VLOOKUP(CG308,'Footnotes list'!$D$9:$E$58,2,FALSE)=0,\"\",VLOOKUP(CG308,'Footnotes list'!$D$9:$E$58,2,FALSE) ) )","v":""},null,null,null,null,{"$f":"IF(TRIM(CL308)=\"\", \"\", IF(VLOOKUP(CL308,'Footnotes list'!$D$9:$E$58,2,FALSE)=0,\"\",VLOOKUP(CL308,'Footnotes list'!$D$9:$E$58,2,FALSE) ) )","v":""},null,null,null,null,{"$f":"IF(TRIM(CQ308)=\"\", \"\", IF(VLOOKUP(CQ308,'Footnotes list'!$D$9:$E$58,2,FALSE)=0,\"\",VLOOKUP(CQ308,'Footnotes list'!$D$9:$E$58,2,FALSE) ) )","v":""},null,null,null,null,{"$f":"IF(TRIM(CV308)=\"\", \"\", IF(VLOOKUP(CV308,'Footnotes list'!$D$9:$E$58,2,FALSE)=0,\"\",VLOOKUP(CV308,'Footnotes list'!$D$9:$E$58,2,FALSE) ) )","v":""},null,null,null,null,{"$f":"IF(TRIM(DA308)=\"\", \"\", IF(VLOOKUP(DA308,'Footnotes list'!$D$9:$E$58,2,FALSE)=0,\"\",VLOOKUP(DA308,'Footnotes list'!$D$9:$E$58,2,FALSE) ) )","v":""},null,null,null,null,{"$f":"IF(TRIM(DF308)=\"\", \"\", IF(VLOOKUP(DF308,'Footnotes list'!$D$9:$E$58,2,FALSE)=0,\"\",VLOOKUP(DF308,'Footnotes list'!$D$9:$E$58,2,FALSE) ) )","v":""},null,null,null,null,{"$f":"IF(TRIM(DK308)=\"\", \"\", IF(VLOOKUP(DK308,'Footnotes list'!$D$9:$E$58,2,FALSE)=0,\"\",VLOOKUP(DK308,'Footnotes list'!$D$9:$E$58,2,FALSE) ) )","v":""},null,null,null,null,{"$f":"IF(TRIM(DP308)=\"\", \"\", IF(VLOOKUP(DP308,'Footnotes list'!$D$9:$E$58,2,FALSE)=0,\"\",VLOOKUP(DP308,'Footnotes list'!$D$9:$E$58,2,FALSE) ) )","v":""},null,null,null,null,{"$f":"IF(TRIM(DU308)=\"\", \"\", IF(VLOOKUP(DU308,'Footnotes list'!$D$9:$E$58,2,FALSE)=0,\"\",VLOOKUP(DU308,'Footnotes list'!$D$9:$E$58,2,FALSE) ) )","v":""},null,null,null,null,{"$f":"IF(TRIM(DZ308)=\"\", \"\", IF(VLOOKUP(DZ308,'Footnotes list'!$D$9:$E$58,2,FALSE)=0,\"\",VLOOKUP(DZ308,'Footnotes list'!$D$9:$E$58,2,FALSE) ) )","v":""},null,null,null,null,{"$f":"IF(TRIM(EE308)=\"\", \"\", IF(VLOOKUP(EE308,'Footnotes list'!$D$9:$E$58,2,FALSE)=0,\"\",VLOOKUP(EE308,'Footnotes list'!$D$9:$E$58,2,FALSE) ) )","v":""},null,null,null,null,{"$f":"IF(TRIM(EJ308)=\"\", \"\", IF(VLOOKUP(EJ308,'Footnotes list'!$D$9:$E$58,2,FALSE)=0,\"\",VLOOKUP(EJ308,'Footnotes list'!$D$9:$E$58,2,FALSE) ) )","v":""},null,null,null,null,{"$f":"IF(TRIM(EO308)=\"\", \"\", IF(VLOOKUP(EO308,'Footnotes list'!$D$9:$E$58,2,FALSE)=0,\"\",VLOOKUP(EO308,'Footnotes list'!$D$9:$E$58,2,FALSE) ) )","v":""},null,null,null,null,{"$f":"IF(TRIM(ET308)=\"\", \"\", IF(VLOOKUP(ET308,'Footnotes list'!$D$9:$E$58,2,FALSE)=0,\"\",VLOOKUP(ET308,'Footnotes list'!$D$9:$E$58,2,FALSE) ) )","v":""},null,null,null,null,{"$f":"IF(TRIM(EY308)=\"\", \"\", IF(VLOOKUP(EY308,'Footnotes list'!$D$9:$E$58,2,FALSE)=0,\"\",VLOOKUP(EY308,'Footnotes list'!$D$9:$E$58,2,FALSE) ) )","v":""}]
[null,null,"G-I_K_L_N_Q-U","TOT_EGSS","Total G + H + I + K + L + N + Q + R + S + T + U -Services (except information and communication, professional, scientific and technical activities, public administration and defence; compulsory social security and education), of which:",null,null,null,null,null,{"$f":"IF(TRIM(J309)=\"\", \"\", IF(VLOOKUP(J309,'Footnotes list'!$D$9:$E$58,2,FALSE)=0,\"\",VLOOKUP(J309,'Footnotes list'!$D$9:$E$58,2,FALSE) ) )","v":""},null,null,null,null,{"$f":"IF(TRIM(O309)=\"\", \"\", IF(VLOOKUP(O309,'Footnotes list'!$D$9:$E$58,2,FALSE)=0,\"\",VLOOKUP(O309,'Footnotes list'!$D$9:$E$58,2,FALSE) ) )","v":""},null,null,null,null,{"$f":"IF(TRIM(T309)=\"\", \"\", IF(VLOOKUP(T309,'Footnotes list'!$D$9:$E$58,2,FALSE)=0,\"\",VLOOKUP(T309,'Footnotes list'!$D$9:$E$58,2,FALSE) ) )","v":""},null,null,null,null,{"$f":"IF(TRIM(Y309)=\"\", \"\", IF(VLOOKUP(Y309,'Footnotes list'!$D$9:$E$58,2,FALSE)=0,\"\",VLOOKUP(Y309,'Footnotes list'!$D$9:$E$58,2,FALSE) ) )","v":""},null,null,null,null,{"$f":"IF(TRIM(AD309)=\"\", \"\", IF(VLOOKUP(AD309,'Footnotes list'!$D$9:$E$58,2,FALSE)=0,\"\",VLOOKUP(AD309,'Footnotes list'!$D$9:$E$58,2,FALSE) ) )","v":""},null,null,null,null,{"$f":"IF(TRIM(AI309)=\"\", \"\", IF(VLOOKUP(AI309,'Footnotes list'!$D$9:$E$58,2,FALSE)=0,\"\",VLOOKUP(AI309,'Footnotes list'!$D$9:$E$58,2,FALSE) ) )","v":""},null,null,null,null,{"$f":"IF(TRIM(AN309)=\"\", \"\", IF(VLOOKUP(AN309,'Footnotes list'!$D$9:$E$58,2,FALSE)=0,\"\",VLOOKUP(AN309,'Footnotes list'!$D$9:$E$58,2,FALSE) ) )","v":""},null,null,null,null,{"$f":"IF(TRIM(AS309)=\"\", \"\", IF(VLOOKUP(AS309,'Footnotes list'!$D$9:$E$58,2,FALSE)=0,\"\",VLOOKUP(AS309,'Footnotes list'!$D$9:$E$58,2,FALSE) ) )","v":""},null,null,null,null,{"$f":"IF(TRIM(AX309)=\"\", \"\", IF(VLOOKUP(AX309,'Footnotes list'!$D$9:$E$58,2,FALSE)=0,\"\",VLOOKUP(AX309,'Footnotes list'!$D$9:$E$58,2,FALSE) ) )","v":""},null,null,null,null,{"$f":"IF(TRIM(BC309)=\"\", \"\", IF(VLOOKUP(BC309,'Footnotes list'!$D$9:$E$58,2,FALSE)=0,\"\",VLOOKUP(BC309,'Footnotes list'!$D$9:$E$58,2,FALSE) ) )","v":""},null,null,null,null,{"$f":"IF(TRIM(BH309)=\"\", \"\", IF(VLOOKUP(BH309,'Footnotes list'!$D$9:$E$58,2,FALSE)=0,\"\",VLOOKUP(BH309,'Footnotes list'!$D$9:$E$58,2,FALSE) ) )","v":""},null,null,null,null,{"$f":"IF(TRIM(BM309)=\"\", \"\", IF(VLOOKUP(BM309,'Footnotes list'!$D$9:$E$58,2,FALSE)=0,\"\",VLOOKUP(BM309,'Footnotes list'!$D$9:$E$58,2,FALSE) ) )","v":""},null,null,null,null,{"$f":"IF(TRIM(BR309)=\"\", \"\", IF(VLOOKUP(BR309,'Footnotes list'!$D$9:$E$58,2,FALSE)=0,\"\",VLOOKUP(BR309,'Footnotes list'!$D$9:$E$58,2,FALSE) ) )","v":""},null,null,null,null,{"$f":"IF(TRIM(BW309)=\"\", \"\", IF(VLOOKUP(BW309,'Footnotes list'!$D$9:$E$58,2,FALSE)=0,\"\",VLOOKUP(BW309,'Footnotes list'!$D$9:$E$58,2,FALSE) ) )","v":""},null,null,null,null,{"$f":"IF(TRIM(CB309)=\"\", \"\", IF(VLOOKUP(CB309,'Footnotes list'!$D$9:$E$58,2,FALSE)=0,\"\",VLOOKUP(CB309,'Footnotes list'!$D$9:$E$58,2,FALSE) ) )","v":""},null,null,null,null,{"$f":"IF(TRIM(CG309)=\"\", \"\", IF(VLOOKUP(CG309,'Footnotes list'!$D$9:$E$58,2,FALSE)=0,\"\",VLOOKUP(CG309,'Footnotes list'!$D$9:$E$58,2,FALSE) ) )","v":""},null,null,null,null,{"$f":"IF(TRIM(CL309)=\"\", \"\", IF(VLOOKUP(CL309,'Footnotes list'!$D$9:$E$58,2,FALSE)=0,\"\",VLOOKUP(CL309,'Footnotes list'!$D$9:$E$58,2,FALSE) ) )","v":""},null,null,null,null,{"$f":"IF(TRIM(CQ309)=\"\", \"\", IF(VLOOKUP(CQ309,'Footnotes list'!$D$9:$E$58,2,FALSE)=0,\"\",VLOOKUP(CQ309,'Footnotes list'!$D$9:$E$58,2,FALSE) ) )","v":""},null,null,null,null,{"$f":"IF(TRIM(CV309)=\"\", \"\", IF(VLOOKUP(CV309,'Footnotes list'!$D$9:$E$58,2,FALSE)=0,\"\",VLOOKUP(CV309,'Footnotes list'!$D$9:$E$58,2,FALSE) ) )","v":""},null,null,null,null,{"$f":"IF(TRIM(DA309)=\"\", \"\", IF(VLOOKUP(DA309,'Footnotes list'!$D$9:$E$58,2,FALSE)=0,\"\",VLOOKUP(DA309,'Footnotes list'!$D$9:$E$58,2,FALSE) ) )","v":""},null,null,null,null,{"$f":"IF(TRIM(DF309)=\"\", \"\", IF(VLOOKUP(DF309,'Footnotes list'!$D$9:$E$58,2,FALSE)=0,\"\",VLOOKUP(DF309,'Footnotes list'!$D$9:$E$58,2,FALSE) ) )","v":""},null,null,null,null,{"$f":"IF(TRIM(DK309)=\"\", \"\", IF(VLOOKUP(DK309,'Footnotes list'!$D$9:$E$58,2,FALSE)=0,\"\",VLOOKUP(DK309,'Footnotes list'!$D$9:$E$58,2,FALSE) ) )","v":""},null,null,null,null,{"$f":"IF(TRIM(DP309)=\"\", \"\", IF(VLOOKUP(DP309,'Footnotes list'!$D$9:$E$58,2,FALSE)=0,\"\",VLOOKUP(DP309,'Footnotes list'!$D$9:$E$58,2,FALSE) ) )","v":""},null,null,null,null,{"$f":"IF(TRIM(DU309)=\"\", \"\", IF(VLOOKUP(DU309,'Footnotes list'!$D$9:$E$58,2,FALSE)=0,\"\",VLOOKUP(DU309,'Footnotes list'!$D$9:$E$58,2,FALSE) ) )","v":""},null,null,null,null,{"$f":"IF(TRIM(DZ309)=\"\", \"\", IF(VLOOKUP(DZ309,'Footnotes list'!$D$9:$E$58,2,FALSE)=0,\"\",VLOOKUP(DZ309,'Footnotes list'!$D$9:$E$58,2,FALSE) ) )","v":""},null,null,null,null,{"$f":"IF(TRIM(EE309)=\"\", \"\", IF(VLOOKUP(EE309,'Footnotes list'!$D$9:$E$58,2,FALSE)=0,\"\",VLOOKUP(EE309,'Footnotes list'!$D$9:$E$58,2,FALSE) ) )","v":""},null,null,null,null,{"$f":"IF(TRIM(EJ309)=\"\", \"\", IF(VLOOKUP(EJ309,'Footnotes list'!$D$9:$E$58,2,FALSE)=0,\"\",VLOOKUP(EJ309,'Footnotes list'!$D$9:$E$58,2,FALSE) ) )","v":""},null,null,null,null,{"$f":"IF(TRIM(EO309)=\"\", \"\", IF(VLOOKUP(EO309,'Footnotes list'!$D$9:$E$58,2,FALSE)=0,\"\",VLOOKUP(EO309,'Footnotes list'!$D$9:$E$58,2,FALSE) ) )","v":""},null,null,null,null,{"$f":"IF(TRIM(ET309)=\"\", \"\", IF(VLOOKUP(ET309,'Footnotes list'!$D$9:$E$58,2,FALSE)=0,\"\",VLOOKUP(ET309,'Footnotes list'!$D$9:$E$58,2,FALSE) ) )","v":""},null,null,null,null,{"$f":"IF(TRIM(EY309)=\"\", \"\", IF(VLOOKUP(EY309,'Footnotes list'!$D$9:$E$58,2,FALSE)=0,\"\",VLOOKUP(EY309,'Footnotes list'!$D$9:$E$58,2,FALSE) ) )","v":""}]
[null,null,"G-I_K_L_N_Q-U","ANC","ancillary activities",null,null,null,null,null,{"$f":"IF(TRIM(J310)=\"\", \"\", IF(VLOOKUP(J310,'Footnotes list'!$D$9:$E$58,2,FALSE)=0,\"\",VLOOKUP(J310,'Footnotes list'!$D$9:$E$58,2,FALSE) ) )","v":""},null,null,null,null,{"$f":"IF(TRIM(O310)=\"\", \"\", IF(VLOOKUP(O310,'Footnotes list'!$D$9:$E$58,2,FALSE)=0,\"\",VLOOKUP(O310,'Footnotes list'!$D$9:$E$58,2,FALSE) ) )","v":""},null,null,null,null,{"$f":"IF(TRIM(T310)=\"\", \"\", IF(VLOOKUP(T310,'Footnotes list'!$D$9:$E$58,2,FALSE)=0,\"\",VLOOKUP(T310,'Footnotes list'!$D$9:$E$58,2,FALSE) ) )","v":""},null,null,null,null,{"$f":"IF(TRIM(Y310)=\"\", \"\", IF(VLOOKUP(Y310,'Footnotes list'!$D$9:$E$58,2,FALSE)=0,\"\",VLOOKUP(Y310,'Footnotes list'!$D$9:$E$58,2,FALSE) ) )","v":""},null,null,null,null,{"$f":"IF(TRIM(AD310)=\"\", \"\", IF(VLOOKUP(AD310,'Footnotes list'!$D$9:$E$58,2,FALSE)=0,\"\",VLOOKUP(AD310,'Footnotes list'!$D$9:$E$58,2,FALSE) ) )","v":""},null,null,null,null,{"$f":"IF(TRIM(AI310)=\"\", \"\", IF(VLOOKUP(AI310,'Footnotes list'!$D$9:$E$58,2,FALSE)=0,\"\",VLOOKUP(AI310,'Footnotes list'!$D$9:$E$58,2,FALSE) ) )","v":""},null,null,null,null,{"$f":"IF(TRIM(AN310)=\"\", \"\", IF(VLOOKUP(AN310,'Footnotes list'!$D$9:$E$58,2,FALSE)=0,\"\",VLOOKUP(AN310,'Footnotes list'!$D$9:$E$58,2,FALSE) ) )","v":""},null,null,null,null,{"$f":"IF(TRIM(AS310)=\"\", \"\", IF(VLOOKUP(AS310,'Footnotes list'!$D$9:$E$58,2,FALSE)=0,\"\",VLOOKUP(AS310,'Footnotes list'!$D$9:$E$58,2,FALSE) ) )","v":""},null,null,null,null,{"$f":"IF(TRIM(AX310)=\"\", \"\", IF(VLOOKUP(AX310,'Footnotes list'!$D$9:$E$58,2,FALSE)=0,\"\",VLOOKUP(AX310,'Footnotes list'!$D$9:$E$58,2,FALSE) ) )","v":""},null,null,null,null,{"$f":"IF(TRIM(BC310)=\"\", \"\", IF(VLOOKUP(BC310,'Footnotes list'!$D$9:$E$58,2,FALSE)=0,\"\",VLOOKUP(BC310,'Footnotes list'!$D$9:$E$58,2,FALSE) ) )","v":""},null,null,null,null,{"$f":"IF(TRIM(BH310)=\"\", \"\", IF(VLOOKUP(BH310,'Footnotes list'!$D$9:$E$58,2,FALSE)=0,\"\",VLOOKUP(BH310,'Footnotes list'!$D$9:$E$58,2,FALSE) ) )","v":""},null,null,null,null,{"$f":"IF(TRIM(BM310)=\"\", \"\", IF(VLOOKUP(BM310,'Footnotes list'!$D$9:$E$58,2,FALSE)=0,\"\",VLOOKUP(BM310,'Footnotes list'!$D$9:$E$58,2,FALSE) ) )","v":""},null,null,null,null,{"$f":"IF(TRIM(BR310)=\"\", \"\", IF(VLOOKUP(BR310,'Footnotes list'!$D$9:$E$58,2,FALSE)=0,\"\",VLOOKUP(BR310,'Footnotes list'!$D$9:$E$58,2,FALSE) ) )","v":""},null,null,null,null,{"$f":"IF(TRIM(BW310)=\"\", \"\", IF(VLOOKUP(BW310,'Footnotes list'!$D$9:$E$58,2,FALSE)=0,\"\",VLOOKUP(BW310,'Footnotes list'!$D$9:$E$58,2,FALSE) ) )","v":""},null,null,null,null,{"$f":"IF(TRIM(CB310)=\"\", \"\", IF(VLOOKUP(CB310,'Footnotes list'!$D$9:$E$58,2,FALSE)=0,\"\",VLOOKUP(CB310,'Footnotes list'!$D$9:$E$58,2,FALSE) ) )","v":""},null,null,null,null,{"$f":"IF(TRIM(CG310)=\"\", \"\", IF(VLOOKUP(CG310,'Footnotes list'!$D$9:$E$58,2,FALSE)=0,\"\",VLOOKUP(CG310,'Footnotes list'!$D$9:$E$58,2,FALSE) ) )","v":""},null,null,null,null,{"$f":"IF(TRIM(CL310)=\"\", \"\", IF(VLOOKUP(CL310,'Footnotes list'!$D$9:$E$58,2,FALSE)=0,\"\",VLOOKUP(CL310,'Footnotes list'!$D$9:$E$58,2,FALSE) ) )","v":""},null,null,null,null,{"$f":"IF(TRIM(CQ310)=\"\", \"\", IF(VLOOKUP(CQ310,'Footnotes list'!$D$9:$E$58,2,FALSE)=0,\"\",VLOOKUP(CQ310,'Footnotes list'!$D$9:$E$58,2,FALSE) ) )","v":""},null,null,null,null,{"$f":"IF(TRIM(CV310)=\"\", \"\", IF(VLOOKUP(CV310,'Footnotes list'!$D$9:$E$58,2,FALSE)=0,\"\",VLOOKUP(CV310,'Footnotes list'!$D$9:$E$58,2,FALSE) ) )","v":""},null,null,null,null,{"$f":"IF(TRIM(DA310)=\"\", \"\", IF(VLOOKUP(DA310,'Footnotes list'!$D$9:$E$58,2,FALSE)=0,\"\",VLOOKUP(DA310,'Footnotes list'!$D$9:$E$58,2,FALSE) ) )","v":""},null,null,null,null,{"$f":"IF(TRIM(DF310)=\"\", \"\", IF(VLOOKUP(DF310,'Footnotes list'!$D$9:$E$58,2,FALSE)=0,\"\",VLOOKUP(DF310,'Footnotes list'!$D$9:$E$58,2,FALSE) ) )","v":""},null,null,null,null,{"$f":"IF(TRIM(DK310)=\"\", \"\", IF(VLOOKUP(DK310,'Footnotes list'!$D$9:$E$58,2,FALSE)=0,\"\",VLOOKUP(DK310,'Footnotes list'!$D$9:$E$58,2,FALSE) ) )","v":""},null,null,null,null,{"$f":"IF(TRIM(DP310)=\"\", \"\", IF(VLOOKUP(DP310,'Footnotes list'!$D$9:$E$58,2,FALSE)=0,\"\",VLOOKUP(DP310,'Footnotes list'!$D$9:$E$58,2,FALSE) ) )","v":""},null,null,null,null,{"$f":"IF(TRIM(DU310)=\"\", \"\", IF(VLOOKUP(DU310,'Footnotes list'!$D$9:$E$58,2,FALSE)=0,\"\",VLOOKUP(DU310,'Footnotes list'!$D$9:$E$58,2,FALSE) ) )","v":""},null,null,null,null,{"$f":"IF(TRIM(DZ310)=\"\", \"\", IF(VLOOKUP(DZ310,'Footnotes list'!$D$9:$E$58,2,FALSE)=0,\"\",VLOOKUP(DZ310,'Footnotes list'!$D$9:$E$58,2,FALSE) ) )","v":""},null,null,null,null,{"$f":"IF(TRIM(EE310)=\"\", \"\", IF(VLOOKUP(EE310,'Footnotes list'!$D$9:$E$58,2,FALSE)=0,\"\",VLOOKUP(EE310,'Footnotes list'!$D$9:$E$58,2,FALSE) ) )","v":""},null,null,null,null,{"$f":"IF(TRIM(EJ310)=\"\", \"\", IF(VLOOKUP(EJ310,'Footnotes list'!$D$9:$E$58,2,FALSE)=0,\"\",VLOOKUP(EJ310,'Footnotes list'!$D$9:$E$58,2,FALSE) ) )","v":""},null,null,null,null,{"$f":"IF(TRIM(EO310)=\"\", \"\", IF(VLOOKUP(EO310,'Footnotes list'!$D$9:$E$58,2,FALSE)=0,\"\",VLOOKUP(EO310,'Footnotes list'!$D$9:$E$58,2,FALSE) ) )","v":""},null,null,null,null,{"$f":"IF(TRIM(ET310)=\"\", \"\", IF(VLOOKUP(ET310,'Footnotes list'!$D$9:$E$58,2,FALSE)=0,\"\",VLOOKUP(ET310,'Footnotes list'!$D$9:$E$58,2,FALSE) ) )","v":""},null,null,null,null,{"$f":"IF(TRIM(EY310)=\"\", \"\", IF(VLOOKUP(EY310,'Footnotes list'!$D$9:$E$58,2,FALSE)=0,\"\",VLOOKUP(EY310,'Footnotes list'!$D$9:$E$58,2,FALSE) ) )","v":""}]
[null,null,"G-I_K_L_N_Q-U","NMKT","non-market activities",null,null,null,null,null,{"$f":"IF(TRIM(J311)=\"\", \"\", IF(VLOOKUP(J311,'Footnotes list'!$D$9:$E$58,2,FALSE)=0,\"\",VLOOKUP(J311,'Footnotes list'!$D$9:$E$58,2,FALSE) ) )","v":""},null,null,null,null,{"$f":"IF(TRIM(O311)=\"\", \"\", IF(VLOOKUP(O311,'Footnotes list'!$D$9:$E$58,2,FALSE)=0,\"\",VLOOKUP(O311,'Footnotes list'!$D$9:$E$58,2,FALSE) ) )","v":""},null,null,null,null,{"$f":"IF(TRIM(T311)=\"\", \"\", IF(VLOOKUP(T311,'Footnotes list'!$D$9:$E$58,2,FALSE)=0,\"\",VLOOKUP(T311,'Footnotes list'!$D$9:$E$58,2,FALSE) ) )","v":""},null,null,null,null,{"$f":"IF(TRIM(Y311)=\"\", \"\", IF(VLOOKUP(Y311,'Footnotes list'!$D$9:$E$58,2,FALSE)=0,\"\",VLOOKUP(Y311,'Footnotes list'!$D$9:$E$58,2,FALSE) ) )","v":""},null,null,null,null,{"$f":"IF(TRIM(AD311)=\"\", \"\", IF(VLOOKUP(AD311,'Footnotes list'!$D$9:$E$58,2,FALSE)=0,\"\",VLOOKUP(AD311,'Footnotes list'!$D$9:$E$58,2,FALSE) ) )","v":""},null,null,null,null,{"$f":"IF(TRIM(AI311)=\"\", \"\", IF(VLOOKUP(AI311,'Footnotes list'!$D$9:$E$58,2,FALSE)=0,\"\",VLOOKUP(AI311,'Footnotes list'!$D$9:$E$58,2,FALSE) ) )","v":""},null,null,null,null,{"$f":"IF(TRIM(AN311)=\"\", \"\", IF(VLOOKUP(AN311,'Footnotes list'!$D$9:$E$58,2,FALSE)=0,\"\",VLOOKUP(AN311,'Footnotes list'!$D$9:$E$58,2,FALSE) ) )","v":""},null,null,null,null,{"$f":"IF(TRIM(AS311)=\"\", \"\", IF(VLOOKUP(AS311,'Footnotes list'!$D$9:$E$58,2,FALSE)=0,\"\",VLOOKUP(AS311,'Footnotes list'!$D$9:$E$58,2,FALSE) ) )","v":""},null,null,null,null,{"$f":"IF(TRIM(AX311)=\"\", \"\", IF(VLOOKUP(AX311,'Footnotes list'!$D$9:$E$58,2,FALSE)=0,\"\",VLOOKUP(AX311,'Footnotes list'!$D$9:$E$58,2,FALSE) ) )","v":""},null,null,null,null,{"$f":"IF(TRIM(BC311)=\"\", \"\", IF(VLOOKUP(BC311,'Footnotes list'!$D$9:$E$58,2,FALSE)=0,\"\",VLOOKUP(BC311,'Footnotes list'!$D$9:$E$58,2,FALSE) ) )","v":""},null,null,null,null,{"$f":"IF(TRIM(BH311)=\"\", \"\", IF(VLOOKUP(BH311,'Footnotes list'!$D$9:$E$58,2,FALSE)=0,\"\",VLOOKUP(BH311,'Footnotes list'!$D$9:$E$58,2,FALSE) ) )","v":""},null,null,null,null,{"$f":"IF(TRIM(BM311)=\"\", \"\", IF(VLOOKUP(BM311,'Footnotes list'!$D$9:$E$58,2,FALSE)=0,\"\",VLOOKUP(BM311,'Footnotes list'!$D$9:$E$58,2,FALSE) ) )","v":""},null,null,null,null,{"$f":"IF(TRIM(BR311)=\"\", \"\", IF(VLOOKUP(BR311,'Footnotes list'!$D$9:$E$58,2,FALSE)=0,\"\",VLOOKUP(BR311,'Footnotes list'!$D$9:$E$58,2,FALSE) ) )","v":""},null,null,null,null,{"$f":"IF(TRIM(BW311)=\"\", \"\", IF(VLOOKUP(BW311,'Footnotes list'!$D$9:$E$58,2,FALSE)=0,\"\",VLOOKUP(BW311,'Footnotes list'!$D$9:$E$58,2,FALSE) ) )","v":""},null,null,null,null,{"$f":"IF(TRIM(CB311)=\"\", \"\", IF(VLOOKUP(CB311,'Footnotes list'!$D$9:$E$58,2,FALSE)=0,\"\",VLOOKUP(CB311,'Footnotes list'!$D$9:$E$58,2,FALSE) ) )","v":""},null,null,null,null,{"$f":"IF(TRIM(CG311)=\"\", \"\", IF(VLOOKUP(CG311,'Footnotes list'!$D$9:$E$58,2,FALSE)=0,\"\",VLOOKUP(CG311,'Footnotes list'!$D$9:$E$58,2,FALSE) ) )","v":""},null,null,null,null,{"$f":"IF(TRIM(CL311)=\"\", \"\", IF(VLOOKUP(CL311,'Footnotes list'!$D$9:$E$58,2,FALSE)=0,\"\",VLOOKUP(CL311,'Footnotes list'!$D$9:$E$58,2,FALSE) ) )","v":""},null,null,null,null,{"$f":"IF(TRIM(CQ311)=\"\", \"\", IF(VLOOKUP(CQ311,'Footnotes list'!$D$9:$E$58,2,FALSE)=0,\"\",VLOOKUP(CQ311,'Footnotes list'!$D$9:$E$58,2,FALSE) ) )","v":""},null,null,null,null,{"$f":"IF(TRIM(CV311)=\"\", \"\", IF(VLOOKUP(CV311,'Footnotes list'!$D$9:$E$58,2,FALSE)=0,\"\",VLOOKUP(CV311,'Footnotes list'!$D$9:$E$58,2,FALSE) ) )","v":""},null,null,null,null,{"$f":"IF(TRIM(DA311)=\"\", \"\", IF(VLOOKUP(DA311,'Footnotes list'!$D$9:$E$58,2,FALSE)=0,\"\",VLOOKUP(DA311,'Footnotes list'!$D$9:$E$58,2,FALSE) ) )","v":""},null,null,null,null,{"$f":"IF(TRIM(DF311)=\"\", \"\", IF(VLOOKUP(DF311,'Footnotes list'!$D$9:$E$58,2,FALSE)=0,\"\",VLOOKUP(DF311,'Footnotes list'!$D$9:$E$58,2,FALSE) ) )","v":""},null,null,null,null,{"$f":"IF(TRIM(DK311)=\"\", \"\", IF(VLOOKUP(DK311,'Footnotes list'!$D$9:$E$58,2,FALSE)=0,\"\",VLOOKUP(DK311,'Footnotes list'!$D$9:$E$58,2,FALSE) ) )","v":""},null,null,null,null,{"$f":"IF(TRIM(DP311)=\"\", \"\", IF(VLOOKUP(DP311,'Footnotes list'!$D$9:$E$58,2,FALSE)=0,\"\",VLOOKUP(DP311,'Footnotes list'!$D$9:$E$58,2,FALSE) ) )","v":""},null,null,null,null,{"$f":"IF(TRIM(DU311)=\"\", \"\", IF(VLOOKUP(DU311,'Footnotes list'!$D$9:$E$58,2,FALSE)=0,\"\",VLOOKUP(DU311,'Footnotes list'!$D$9:$E$58,2,FALSE) ) )","v":""},null,null,null,null,{"$f":"IF(TRIM(DZ311)=\"\", \"\", IF(VLOOKUP(DZ311,'Footnotes list'!$D$9:$E$58,2,FALSE)=0,\"\",VLOOKUP(DZ311,'Footnotes list'!$D$9:$E$58,2,FALSE) ) )","v":""},null,null,null,null,{"$f":"IF(TRIM(EE311)=\"\", \"\", IF(VLOOKUP(EE311,'Footnotes list'!$D$9:$E$58,2,FALSE)=0,\"\",VLOOKUP(EE311,'Footnotes list'!$D$9:$E$58,2,FALSE) ) )","v":""},null,null,null,null,{"$f":"IF(TRIM(EJ311)=\"\", \"\", IF(VLOOKUP(EJ311,'Footnotes list'!$D$9:$E$58,2,FALSE)=0,\"\",VLOOKUP(EJ311,'Footnotes list'!$D$9:$E$58,2,FALSE) ) )","v":""},null,null,null,null,{"$f":"IF(TRIM(EO311)=\"\", \"\", IF(VLOOKUP(EO311,'Footnotes list'!$D$9:$E$58,2,FALSE)=0,\"\",VLOOKUP(EO311,'Footnotes list'!$D$9:$E$58,2,FALSE) ) )","v":""},null,null,null,null,{"$f":"IF(TRIM(ET311)=\"\", \"\", IF(VLOOKUP(ET311,'Footnotes list'!$D$9:$E$58,2,FALSE)=0,\"\",VLOOKUP(ET311,'Footnotes list'!$D$9:$E$58,2,FALSE) ) )","v":""},null,null,null,null,{"$f":"IF(TRIM(EY311)=\"\", \"\", IF(VLOOKUP(EY311,'Footnotes list'!$D$9:$E$58,2,FALSE)=0,\"\",VLOOKUP(EY311,'Footnotes list'!$D$9:$E$58,2,FALSE) ) )","v":""}]
[null,null,"G-I_K_L_N_Q-U","OWN_USE","activities for own final use",null,null,null,null,null,{"$f":"IF(TRIM(J312)=\"\", \"\", IF(VLOOKUP(J312,'Footnotes list'!$D$9:$E$58,2,FALSE)=0,\"\",VLOOKUP(J312,'Footnotes list'!$D$9:$E$58,2,FALSE) ) )","v":""},null,null,null,null,{"$f":"IF(TRIM(O312)=\"\", \"\", IF(VLOOKUP(O312,'Footnotes list'!$D$9:$E$58,2,FALSE)=0,\"\",VLOOKUP(O312,'Footnotes list'!$D$9:$E$58,2,FALSE) ) )","v":""},null,null,null,null,{"$f":"IF(TRIM(T312)=\"\", \"\", IF(VLOOKUP(T312,'Footnotes list'!$D$9:$E$58,2,FALSE)=0,\"\",VLOOKUP(T312,'Footnotes list'!$D$9:$E$58,2,FALSE) ) )","v":""},null,null,null,null,{"$f":"IF(TRIM(Y312)=\"\", \"\", IF(VLOOKUP(Y312,'Footnotes list'!$D$9:$E$58,2,FALSE)=0,\"\",VLOOKUP(Y312,'Footnotes list'!$D$9:$E$58,2,FALSE) ) )","v":""},null,null,null,null,{"$f":"IF(TRIM(AD312)=\"\", \"\", IF(VLOOKUP(AD312,'Footnotes list'!$D$9:$E$58,2,FALSE)=0,\"\",VLOOKUP(AD312,'Footnotes list'!$D$9:$E$58,2,FALSE) ) )","v":""},null,null,null,null,{"$f":"IF(TRIM(AI312)=\"\", \"\", IF(VLOOKUP(AI312,'Footnotes list'!$D$9:$E$58,2,FALSE)=0,\"\",VLOOKUP(AI312,'Footnotes list'!$D$9:$E$58,2,FALSE) ) )","v":""},null,null,null,null,{"$f":"IF(TRIM(AN312)=\"\", \"\", IF(VLOOKUP(AN312,'Footnotes list'!$D$9:$E$58,2,FALSE)=0,\"\",VLOOKUP(AN312,'Footnotes list'!$D$9:$E$58,2,FALSE) ) )","v":""},null,null,null,null,{"$f":"IF(TRIM(AS312)=\"\", \"\", IF(VLOOKUP(AS312,'Footnotes list'!$D$9:$E$58,2,FALSE)=0,\"\",VLOOKUP(AS312,'Footnotes list'!$D$9:$E$58,2,FALSE) ) )","v":""},null,null,null,null,{"$f":"IF(TRIM(AX312)=\"\", \"\", IF(VLOOKUP(AX312,'Footnotes list'!$D$9:$E$58,2,FALSE)=0,\"\",VLOOKUP(AX312,'Footnotes list'!$D$9:$E$58,2,FALSE) ) )","v":""},null,null,null,null,{"$f":"IF(TRIM(BC312)=\"\", \"\", IF(VLOOKUP(BC312,'Footnotes list'!$D$9:$E$58,2,FALSE)=0,\"\",VLOOKUP(BC312,'Footnotes list'!$D$9:$E$58,2,FALSE) ) )","v":""},null,null,null,null,{"$f":"IF(TRIM(BH312)=\"\", \"\", IF(VLOOKUP(BH312,'Footnotes list'!$D$9:$E$58,2,FALSE)=0,\"\",VLOOKUP(BH312,'Footnotes list'!$D$9:$E$58,2,FALSE) ) )","v":""},null,null,null,null,{"$f":"IF(TRIM(BM312)=\"\", \"\", IF(VLOOKUP(BM312,'Footnotes list'!$D$9:$E$58,2,FALSE)=0,\"\",VLOOKUP(BM312,'Footnotes list'!$D$9:$E$58,2,FALSE) ) )","v":""},null,null,null,null,{"$f":"IF(TRIM(BR312)=\"\", \"\", IF(VLOOKUP(BR312,'Footnotes list'!$D$9:$E$58,2,FALSE)=0,\"\",VLOOKUP(BR312,'Footnotes list'!$D$9:$E$58,2,FALSE) ) )","v":""},null,null,null,null,{"$f":"IF(TRIM(BW312)=\"\", \"\", IF(VLOOKUP(BW312,'Footnotes list'!$D$9:$E$58,2,FALSE)=0,\"\",VLOOKUP(BW312,'Footnotes list'!$D$9:$E$58,2,FALSE) ) )","v":""},null,null,null,null,{"$f":"IF(TRIM(CB312)=\"\", \"\", IF(VLOOKUP(CB312,'Footnotes list'!$D$9:$E$58,2,FALSE)=0,\"\",VLOOKUP(CB312,'Footnotes list'!$D$9:$E$58,2,FALSE) ) )","v":""},null,null,null,null,{"$f":"IF(TRIM(CG312)=\"\", \"\", IF(VLOOKUP(CG312,'Footnotes list'!$D$9:$E$58,2,FALSE)=0,\"\",VLOOKUP(CG312,'Footnotes list'!$D$9:$E$58,2,FALSE) ) )","v":""},null,null,null,null,{"$f":"IF(TRIM(CL312)=\"\", \"\", IF(VLOOKUP(CL312,'Footnotes list'!$D$9:$E$58,2,FALSE)=0,\"\",VLOOKUP(CL312,'Footnotes list'!$D$9:$E$58,2,FALSE) ) )","v":""},null,null,null,null,{"$f":"IF(TRIM(CQ312)=\"\", \"\", IF(VLOOKUP(CQ312,'Footnotes list'!$D$9:$E$58,2,FALSE)=0,\"\",VLOOKUP(CQ312,'Footnotes list'!$D$9:$E$58,2,FALSE) ) )","v":""},null,null,null,null,{"$f":"IF(TRIM(CV312)=\"\", \"\", IF(VLOOKUP(CV312,'Footnotes list'!$D$9:$E$58,2,FALSE)=0,\"\",VLOOKUP(CV312,'Footnotes list'!$D$9:$E$58,2,FALSE) ) )","v":""},null,null,null,null,{"$f":"IF(TRIM(DA312)=\"\", \"\", IF(VLOOKUP(DA312,'Footnotes list'!$D$9:$E$58,2,FALSE)=0,\"\",VLOOKUP(DA312,'Footnotes list'!$D$9:$E$58,2,FALSE) ) )","v":""},null,null,null,null,{"$f":"IF(TRIM(DF312)=\"\", \"\", IF(VLOOKUP(DF312,'Footnotes list'!$D$9:$E$58,2,FALSE)=0,\"\",VLOOKUP(DF312,'Footnotes list'!$D$9:$E$58,2,FALSE) ) )","v":""},null,null,null,null,{"$f":"IF(TRIM(DK312)=\"\", \"\", IF(VLOOKUP(DK312,'Footnotes list'!$D$9:$E$58,2,FALSE)=0,\"\",VLOOKUP(DK312,'Footnotes list'!$D$9:$E$58,2,FALSE) ) )","v":""},null,null,null,null,{"$f":"IF(TRIM(DP312)=\"\", \"\", IF(VLOOKUP(DP312,'Footnotes list'!$D$9:$E$58,2,FALSE)=0,\"\",VLOOKUP(DP312,'Footnotes list'!$D$9:$E$58,2,FALSE) ) )","v":""},null,null,null,null,{"$f":"IF(TRIM(DU312)=\"\", \"\", IF(VLOOKUP(DU312,'Footnotes list'!$D$9:$E$58,2,FALSE)=0,\"\",VLOOKUP(DU312,'Footnotes list'!$D$9:$E$58,2,FALSE) ) )","v":""},null,null,null,null,{"$f":"IF(TRIM(DZ312)=\"\", \"\", IF(VLOOKUP(DZ312,'Footnotes list'!$D$9:$E$58,2,FALSE)=0,\"\",VLOOKUP(DZ312,'Footnotes list'!$D$9:$E$58,2,FALSE) ) )","v":""},null,null,null,null,{"$f":"IF(TRIM(EE312)=\"\", \"\", IF(VLOOKUP(EE312,'Footnotes list'!$D$9:$E$58,2,FALSE)=0,\"\",VLOOKUP(EE312,'Footnotes list'!$D$9:$E$58,2,FALSE) ) )","v":""},null,null,null,null,{"$f":"IF(TRIM(EJ312)=\"\", \"\", IF(VLOOKUP(EJ312,'Footnotes list'!$D$9:$E$58,2,FALSE)=0,\"\",VLOOKUP(EJ312,'Footnotes list'!$D$9:$E$58,2,FALSE) ) )","v":""},null,null,null,null,{"$f":"IF(TRIM(EO312)=\"\", \"\", IF(VLOOKUP(EO312,'Footnotes list'!$D$9:$E$58,2,FALSE)=0,\"\",VLOOKUP(EO312,'Footnotes list'!$D$9:$E$58,2,FALSE) ) )","v":""},null,null,null,null,{"$f":"IF(TRIM(ET312)=\"\", \"\", IF(VLOOKUP(ET312,'Footnotes list'!$D$9:$E$58,2,FALSE)=0,\"\",VLOOKUP(ET312,'Footnotes list'!$D$9:$E$58,2,FALSE) ) )","v":""},null,null,null,null,{"$f":"IF(TRIM(EY312)=\"\", \"\", IF(VLOOKUP(EY312,'Footnotes list'!$D$9:$E$58,2,FALSE)=0,\"\",VLOOKUP(EY312,'Footnotes list'!$D$9:$E$58,2,FALSE) ) )","v":""}]
[null,null,"G-I_K_L_N_Q-U","MKT","market activities, including:",null,null,null,null,null,{"$f":"IF(TRIM(J313)=\"\", \"\", IF(VLOOKUP(J313,'Footnotes list'!$D$9:$E$58,2,FALSE)=0,\"\",VLOOKUP(J313,'Footnotes list'!$D$9:$E$58,2,FALSE) ) )","v":""},null,null,null,null,{"$f":"IF(TRIM(O313)=\"\", \"\", IF(VLOOKUP(O313,'Footnotes list'!$D$9:$E$58,2,FALSE)=0,\"\",VLOOKUP(O313,'Footnotes list'!$D$9:$E$58,2,FALSE) ) )","v":""},null,null,null,null,{"$f":"IF(TRIM(T313)=\"\", \"\", IF(VLOOKUP(T313,'Footnotes list'!$D$9:$E$58,2,FALSE)=0,\"\",VLOOKUP(T313,'Footnotes list'!$D$9:$E$58,2,FALSE) ) )","v":""},null,null,null,null,{"$f":"IF(TRIM(Y313)=\"\", \"\", IF(VLOOKUP(Y313,'Footnotes list'!$D$9:$E$58,2,FALSE)=0,\"\",VLOOKUP(Y313,'Footnotes list'!$D$9:$E$58,2,FALSE) ) )","v":""},null,null,null,null,{"$f":"IF(TRIM(AD313)=\"\", \"\", IF(VLOOKUP(AD313,'Footnotes list'!$D$9:$E$58,2,FALSE)=0,\"\",VLOOKUP(AD313,'Footnotes list'!$D$9:$E$58,2,FALSE) ) )","v":""},null,null,null,null,{"$f":"IF(TRIM(AI313)=\"\", \"\", IF(VLOOKUP(AI313,'Footnotes list'!$D$9:$E$58,2,FALSE)=0,\"\",VLOOKUP(AI313,'Footnotes list'!$D$9:$E$58,2,FALSE) ) )","v":""},null,null,null,null,{"$f":"IF(TRIM(AN313)=\"\", \"\", IF(VLOOKUP(AN313,'Footnotes list'!$D$9:$E$58,2,FALSE)=0,\"\",VLOOKUP(AN313,'Footnotes list'!$D$9:$E$58,2,FALSE) ) )","v":""},null,null,null,null,{"$f":"IF(TRIM(AS313)=\"\", \"\", IF(VLOOKUP(AS313,'Footnotes list'!$D$9:$E$58,2,FALSE)=0,\"\",VLOOKUP(AS313,'Footnotes list'!$D$9:$E$58,2,FALSE) ) )","v":""},null,null,null,null,{"$f":"IF(TRIM(AX313)=\"\", \"\", IF(VLOOKUP(AX313,'Footnotes list'!$D$9:$E$58,2,FALSE)=0,\"\",VLOOKUP(AX313,'Footnotes list'!$D$9:$E$58,2,FALSE) ) )","v":""},null,null,null,null,{"$f":"IF(TRIM(BC313)=\"\", \"\", IF(VLOOKUP(BC313,'Footnotes list'!$D$9:$E$58,2,FALSE)=0,\"\",VLOOKUP(BC313,'Footnotes list'!$D$9:$E$58,2,FALSE) ) )","v":""},null,null,null,null,{"$f":"IF(TRIM(BH313)=\"\", \"\", IF(VLOOKUP(BH313,'Footnotes list'!$D$9:$E$58,2,FALSE)=0,\"\",VLOOKUP(BH313,'Footnotes list'!$D$9:$E$58,2,FALSE) ) )","v":""},null,null,null,null,{"$f":"IF(TRIM(BM313)=\"\", \"\", IF(VLOOKUP(BM313,'Footnotes list'!$D$9:$E$58,2,FALSE)=0,\"\",VLOOKUP(BM313,'Footnotes list'!$D$9:$E$58,2,FALSE) ) )","v":""},null,null,null,null,{"$f":"IF(TRIM(BR313)=\"\", \"\", IF(VLOOKUP(BR313,'Footnotes list'!$D$9:$E$58,2,FALSE)=0,\"\",VLOOKUP(BR313,'Footnotes list'!$D$9:$E$58,2,FALSE) ) )","v":""},null,null,null,null,{"$f":"IF(TRIM(BW313)=\"\", \"\", IF(VLOOKUP(BW313,'Footnotes list'!$D$9:$E$58,2,FALSE)=0,\"\",VLOOKUP(BW313,'Footnotes list'!$D$9:$E$58,2,FALSE) ) )","v":""},null,null,null,null,{"$f":"IF(TRIM(CB313)=\"\", \"\", IF(VLOOKUP(CB313,'Footnotes list'!$D$9:$E$58,2,FALSE)=0,\"\",VLOOKUP(CB313,'Footnotes list'!$D$9:$E$58,2,FALSE) ) )","v":""},null,null,null,null,{"$f":"IF(TRIM(CG313)=\"\", \"\", IF(VLOOKUP(CG313,'Footnotes list'!$D$9:$E$58,2,FALSE)=0,\"\",VLOOKUP(CG313,'Footnotes list'!$D$9:$E$58,2,FALSE) ) )","v":""},null,null,null,null,{"$f":"IF(TRIM(CL313)=\"\", \"\", IF(VLOOKUP(CL313,'Footnotes list'!$D$9:$E$58,2,FALSE)=0,\"\",VLOOKUP(CL313,'Footnotes list'!$D$9:$E$58,2,FALSE) ) )","v":""},null,null,null,null,{"$f":"IF(TRIM(CQ313)=\"\", \"\", IF(VLOOKUP(CQ313,'Footnotes list'!$D$9:$E$58,2,FALSE)=0,\"\",VLOOKUP(CQ313,'Footnotes list'!$D$9:$E$58,2,FALSE) ) )","v":""},null,null,null,null,{"$f":"IF(TRIM(CV313)=\"\", \"\", IF(VLOOKUP(CV313,'Footnotes list'!$D$9:$E$58,2,FALSE)=0,\"\",VLOOKUP(CV313,'Footnotes list'!$D$9:$E$58,2,FALSE) ) )","v":""},null,null,null,null,{"$f":"IF(TRIM(DA313)=\"\", \"\", IF(VLOOKUP(DA313,'Footnotes list'!$D$9:$E$58,2,FALSE)=0,\"\",VLOOKUP(DA313,'Footnotes list'!$D$9:$E$58,2,FALSE) ) )","v":""},null,null,null,null,{"$f":"IF(TRIM(DF313)=\"\", \"\", IF(VLOOKUP(DF313,'Footnotes list'!$D$9:$E$58,2,FALSE)=0,\"\",VLOOKUP(DF313,'Footnotes list'!$D$9:$E$58,2,FALSE) ) )","v":""},null,null,null,null,{"$f":"IF(TRIM(DK313)=\"\", \"\", IF(VLOOKUP(DK313,'Footnotes list'!$D$9:$E$58,2,FALSE)=0,\"\",VLOOKUP(DK313,'Footnotes list'!$D$9:$E$58,2,FALSE) ) )","v":""},null,null,null,null,{"$f":"IF(TRIM(DP313)=\"\", \"\", IF(VLOOKUP(DP313,'Footnotes list'!$D$9:$E$58,2,FALSE)=0,\"\",VLOOKUP(DP313,'Footnotes list'!$D$9:$E$58,2,FALSE) ) )","v":""},null,null,null,null,{"$f":"IF(TRIM(DU313)=\"\", \"\", IF(VLOOKUP(DU313,'Footnotes list'!$D$9:$E$58,2,FALSE)=0,\"\",VLOOKUP(DU313,'Footnotes list'!$D$9:$E$58,2,FALSE) ) )","v":""},null,null,null,null,{"$f":"IF(TRIM(DZ313)=\"\", \"\", IF(VLOOKUP(DZ313,'Footnotes list'!$D$9:$E$58,2,FALSE)=0,\"\",VLOOKUP(DZ313,'Footnotes list'!$D$9:$E$58,2,FALSE) ) )","v":""},null,null,null,null,{"$f":"IF(TRIM(EE313)=\"\", \"\", IF(VLOOKUP(EE313,'Footnotes list'!$D$9:$E$58,2,FALSE)=0,\"\",VLOOKUP(EE313,'Footnotes list'!$D$9:$E$58,2,FALSE) ) )","v":""},null,null,null,null,{"$f":"IF(TRIM(EJ313)=\"\", \"\", IF(VLOOKUP(EJ313,'Footnotes list'!$D$9:$E$58,2,FALSE)=0,\"\",VLOOKUP(EJ313,'Footnotes list'!$D$9:$E$58,2,FALSE) ) )","v":""},null,null,null,null,{"$f":"IF(TRIM(EO313)=\"\", \"\", IF(VLOOKUP(EO313,'Footnotes list'!$D$9:$E$58,2,FALSE)=0,\"\",VLOOKUP(EO313,'Footnotes list'!$D$9:$E$58,2,FALSE) ) )","v":""},null,null,null,null,{"$f":"IF(TRIM(ET313)=\"\", \"\", IF(VLOOKUP(ET313,'Footnotes list'!$D$9:$E$58,2,FALSE)=0,\"\",VLOOKUP(ET313,'Footnotes list'!$D$9:$E$58,2,FALSE) ) )","v":""},null,null,null,null,{"$f":"IF(TRIM(EY313)=\"\", \"\", IF(VLOOKUP(EY313,'Footnotes list'!$D$9:$E$58,2,FALSE)=0,\"\",VLOOKUP(EY313,'Footnotes list'!$D$9:$E$58,2,FALSE) ) )","v":""}]
[null,null,"G-I_K_L_N_Q-U","ES_CS","environmental specific services",null,null,null,null,null,{"$f":"IF(TRIM(J314)=\"\", \"\", IF(VLOOKUP(J314,'Footnotes list'!$D$9:$E$58,2,FALSE)=0,\"\",VLOOKUP(J314,'Footnotes list'!$D$9:$E$58,2,FALSE) ) )","v":""},null,null,null,null,{"$f":"IF(TRIM(O314)=\"\", \"\", IF(VLOOKUP(O314,'Footnotes list'!$D$9:$E$58,2,FALSE)=0,\"\",VLOOKUP(O314,'Footnotes list'!$D$9:$E$58,2,FALSE) ) )","v":""},null,null,null,null,{"$f":"IF(TRIM(T314)=\"\", \"\", IF(VLOOKUP(T314,'Footnotes list'!$D$9:$E$58,2,FALSE)=0,\"\",VLOOKUP(T314,'Footnotes list'!$D$9:$E$58,2,FALSE) ) )","v":""},null,null,null,null,{"$f":"IF(TRIM(Y314)=\"\", \"\", IF(VLOOKUP(Y314,'Footnotes list'!$D$9:$E$58,2,FALSE)=0,\"\",VLOOKUP(Y314,'Footnotes list'!$D$9:$E$58,2,FALSE) ) )","v":""},null,null,null,null,{"$f":"IF(TRIM(AD314)=\"\", \"\", IF(VLOOKUP(AD314,'Footnotes list'!$D$9:$E$58,2,FALSE)=0,\"\",VLOOKUP(AD314,'Footnotes list'!$D$9:$E$58,2,FALSE) ) )","v":""},null,null,null,null,{"$f":"IF(TRIM(AI314)=\"\", \"\", IF(VLOOKUP(AI314,'Footnotes list'!$D$9:$E$58,2,FALSE)=0,\"\",VLOOKUP(AI314,'Footnotes list'!$D$9:$E$58,2,FALSE) ) )","v":""},null,null,null,null,{"$f":"IF(TRIM(AN314)=\"\", \"\", IF(VLOOKUP(AN314,'Footnotes list'!$D$9:$E$58,2,FALSE)=0,\"\",VLOOKUP(AN314,'Footnotes list'!$D$9:$E$58,2,FALSE) ) )","v":""},null,null,null,null,{"$f":"IF(TRIM(AS314)=\"\", \"\", IF(VLOOKUP(AS314,'Footnotes list'!$D$9:$E$58,2,FALSE)=0,\"\",VLOOKUP(AS314,'Footnotes list'!$D$9:$E$58,2,FALSE) ) )","v":""},null,null,null,null,{"$f":"IF(TRIM(AX314)=\"\", \"\", IF(VLOOKUP(AX314,'Footnotes list'!$D$9:$E$58,2,FALSE)=0,\"\",VLOOKUP(AX314,'Footnotes list'!$D$9:$E$58,2,FALSE) ) )","v":""},null,null,null,null,{"$f":"IF(TRIM(BC314)=\"\", \"\", IF(VLOOKUP(BC314,'Footnotes list'!$D$9:$E$58,2,FALSE)=0,\"\",VLOOKUP(BC314,'Footnotes list'!$D$9:$E$58,2,FALSE) ) )","v":""},null,null,null,null,{"$f":"IF(TRIM(BH314)=\"\", \"\", IF(VLOOKUP(BH314,'Footnotes list'!$D$9:$E$58,2,FALSE)=0,\"\",VLOOKUP(BH314,'Footnotes list'!$D$9:$E$58,2,FALSE) ) )","v":""},null,null,null,null,{"$f":"IF(TRIM(BM314)=\"\", \"\", IF(VLOOKUP(BM314,'Footnotes list'!$D$9:$E$58,2,FALSE)=0,\"\",VLOOKUP(BM314,'Footnotes list'!$D$9:$E$58,2,FALSE) ) )","v":""},null,null,null,null,{"$f":"IF(TRIM(BR314)=\"\", \"\", IF(VLOOKUP(BR314,'Footnotes list'!$D$9:$E$58,2,FALSE)=0,\"\",VLOOKUP(BR314,'Footnotes list'!$D$9:$E$58,2,FALSE) ) )","v":""},null,null,null,null,{"$f":"IF(TRIM(BW314)=\"\", \"\", IF(VLOOKUP(BW314,'Footnotes list'!$D$9:$E$58,2,FALSE)=0,\"\",VLOOKUP(BW314,'Footnotes list'!$D$9:$E$58,2,FALSE) ) )","v":""},null,null,null,null,{"$f":"IF(TRIM(CB314)=\"\", \"\", IF(VLOOKUP(CB314,'Footnotes list'!$D$9:$E$58,2,FALSE)=0,\"\",VLOOKUP(CB314,'Footnotes list'!$D$9:$E$58,2,FALSE) ) )","v":""},null,null,null,null,{"$f":"IF(TRIM(CG314)=\"\", \"\", IF(VLOOKUP(CG314,'Footnotes list'!$D$9:$E$58,2,FALSE)=0,\"\",VLOOKUP(CG314,'Footnotes list'!$D$9:$E$58,2,FALSE) ) )","v":""},null,null,null,null,{"$f":"IF(TRIM(CL314)=\"\", \"\", IF(VLOOKUP(CL314,'Footnotes list'!$D$9:$E$58,2,FALSE)=0,\"\",VLOOKUP(CL314,'Footnotes list'!$D$9:$E$58,2,FALSE) ) )","v":""},null,null,null,null,{"$f":"IF(TRIM(CQ314)=\"\", \"\", IF(VLOOKUP(CQ314,'Footnotes list'!$D$9:$E$58,2,FALSE)=0,\"\",VLOOKUP(CQ314,'Footnotes list'!$D$9:$E$58,2,FALSE) ) )","v":""},null,null,null,null,{"$f":"IF(TRIM(CV314)=\"\", \"\", IF(VLOOKUP(CV314,'Footnotes list'!$D$9:$E$58,2,FALSE)=0,\"\",VLOOKUP(CV314,'Footnotes list'!$D$9:$E$58,2,FALSE) ) )","v":""},null,null,null,null,{"$f":"IF(TRIM(DA314)=\"\", \"\", IF(VLOOKUP(DA314,'Footnotes list'!$D$9:$E$58,2,FALSE)=0,\"\",VLOOKUP(DA314,'Footnotes list'!$D$9:$E$58,2,FALSE) ) )","v":""},null,null,null,null,{"$f":"IF(TRIM(DF314)=\"\", \"\", IF(VLOOKUP(DF314,'Footnotes list'!$D$9:$E$58,2,FALSE)=0,\"\",VLOOKUP(DF314,'Footnotes list'!$D$9:$E$58,2,FALSE) ) )","v":""},null,null,null,null,{"$f":"IF(TRIM(DK314)=\"\", \"\", IF(VLOOKUP(DK314,'Footnotes list'!$D$9:$E$58,2,FALSE)=0,\"\",VLOOKUP(DK314,'Footnotes list'!$D$9:$E$58,2,FALSE) ) )","v":""},null,null,null,null,{"$f":"IF(TRIM(DP314)=\"\", \"\", IF(VLOOKUP(DP314,'Footnotes list'!$D$9:$E$58,2,FALSE)=0,\"\",VLOOKUP(DP314,'Footnotes list'!$D$9:$E$58,2,FALSE) ) )","v":""},null,null,null,null,{"$f":"IF(TRIM(DU314)=\"\", \"\", IF(VLOOKUP(DU314,'Footnotes list'!$D$9:$E$58,2,FALSE)=0,\"\",VLOOKUP(DU314,'Footnotes list'!$D$9:$E$58,2,FALSE) ) )","v":""},null,null,null,null,{"$f":"IF(TRIM(DZ314)=\"\", \"\", IF(VLOOKUP(DZ314,'Footnotes list'!$D$9:$E$58,2,FALSE)=0,\"\",VLOOKUP(DZ314,'Footnotes list'!$D$9:$E$58,2,FALSE) ) )","v":""},null,null,null,null,{"$f":"IF(TRIM(EE314)=\"\", \"\", IF(VLOOKUP(EE314,'Footnotes list'!$D$9:$E$58,2,FALSE)=0,\"\",VLOOKUP(EE314,'Footnotes list'!$D$9:$E$58,2,FALSE) ) )","v":""},null,null,null,null,{"$f":"IF(TRIM(EJ314)=\"\", \"\", IF(VLOOKUP(EJ314,'Footnotes list'!$D$9:$E$58,2,FALSE)=0,\"\",VLOOKUP(EJ314,'Footnotes list'!$D$9:$E$58,2,FALSE) ) )","v":""},null,null,null,null,{"$f":"IF(TRIM(EO314)=\"\", \"\", IF(VLOOKUP(EO314,'Footnotes list'!$D$9:$E$58,2,FALSE)=0,\"\",VLOOKUP(EO314,'Footnotes list'!$D$9:$E$58,2,FALSE) ) )","v":""},null,null,null,null,{"$f":"IF(TRIM(ET314)=\"\", \"\", IF(VLOOKUP(ET314,'Footnotes list'!$D$9:$E$58,2,FALSE)=0,\"\",VLOOKUP(ET314,'Footnotes list'!$D$9:$E$58,2,FALSE) ) )","v":""},null,null,null,null,{"$f":"IF(TRIM(EY314)=\"\", \"\", IF(VLOOKUP(EY314,'Footnotes list'!$D$9:$E$58,2,FALSE)=0,\"\",VLOOKUP(EY314,'Footnotes list'!$D$9:$E$58,2,FALSE) ) )","v":""}]
[null,null,"G-I_K_L_N_Q-U","C_REP","cleaner and resource efficient products",null,null,null,null,null,{"$f":"IF(TRIM(J315)=\"\", \"\", IF(VLOOKUP(J315,'Footnotes list'!$D$9:$E$58,2,FALSE)=0,\"\",VLOOKUP(J315,'Footnotes list'!$D$9:$E$58,2,FALSE) ) )","v":""},null,null,null,null,{"$f":"IF(TRIM(O315)=\"\", \"\", IF(VLOOKUP(O315,'Footnotes list'!$D$9:$E$58,2,FALSE)=0,\"\",VLOOKUP(O315,'Footnotes list'!$D$9:$E$58,2,FALSE) ) )","v":""},null,null,null,null,{"$f":"IF(TRIM(T315)=\"\", \"\", IF(VLOOKUP(T315,'Footnotes list'!$D$9:$E$58,2,FALSE)=0,\"\",VLOOKUP(T315,'Footnotes list'!$D$9:$E$58,2,FALSE) ) )","v":""},null,null,null,null,{"$f":"IF(TRIM(Y315)=\"\", \"\", IF(VLOOKUP(Y315,'Footnotes list'!$D$9:$E$58,2,FALSE)=0,\"\",VLOOKUP(Y315,'Footnotes list'!$D$9:$E$58,2,FALSE) ) )","v":""},null,null,null,null,{"$f":"IF(TRIM(AD315)=\"\", \"\", IF(VLOOKUP(AD315,'Footnotes list'!$D$9:$E$58,2,FALSE)=0,\"\",VLOOKUP(AD315,'Footnotes list'!$D$9:$E$58,2,FALSE) ) )","v":""},null,null,null,null,{"$f":"IF(TRIM(AI315)=\"\", \"\", IF(VLOOKUP(AI315,'Footnotes list'!$D$9:$E$58,2,FALSE)=0,\"\",VLOOKUP(AI315,'Footnotes list'!$D$9:$E$58,2,FALSE) ) )","v":""},null,null,null,null,{"$f":"IF(TRIM(AN315)=\"\", \"\", IF(VLOOKUP(AN315,'Footnotes list'!$D$9:$E$58,2,FALSE)=0,\"\",VLOOKUP(AN315,'Footnotes list'!$D$9:$E$58,2,FALSE) ) )","v":""},null,null,null,null,{"$f":"IF(TRIM(AS315)=\"\", \"\", IF(VLOOKUP(AS315,'Footnotes list'!$D$9:$E$58,2,FALSE)=0,\"\",VLOOKUP(AS315,'Footnotes list'!$D$9:$E$58,2,FALSE) ) )","v":""},null,null,null,null,{"$f":"IF(TRIM(AX315)=\"\", \"\", IF(VLOOKUP(AX315,'Footnotes list'!$D$9:$E$58,2,FALSE)=0,\"\",VLOOKUP(AX315,'Footnotes list'!$D$9:$E$58,2,FALSE) ) )","v":""},null,null,null,null,{"$f":"IF(TRIM(BC315)=\"\", \"\", IF(VLOOKUP(BC315,'Footnotes list'!$D$9:$E$58,2,FALSE)=0,\"\",VLOOKUP(BC315,'Footnotes list'!$D$9:$E$58,2,FALSE) ) )","v":""},null,null,null,null,{"$f":"IF(TRIM(BH315)=\"\", \"\", IF(VLOOKUP(BH315,'Footnotes list'!$D$9:$E$58,2,FALSE)=0,\"\",VLOOKUP(BH315,'Footnotes list'!$D$9:$E$58,2,FALSE) ) )","v":""},null,null,null,null,{"$f":"IF(TRIM(BM315)=\"\", \"\", IF(VLOOKUP(BM315,'Footnotes list'!$D$9:$E$58,2,FALSE)=0,\"\",VLOOKUP(BM315,'Footnotes list'!$D$9:$E$58,2,FALSE) ) )","v":""},null,null,null,null,{"$f":"IF(TRIM(BR315)=\"\", \"\", IF(VLOOKUP(BR315,'Footnotes list'!$D$9:$E$58,2,FALSE)=0,\"\",VLOOKUP(BR315,'Footnotes list'!$D$9:$E$58,2,FALSE) ) )","v":""},null,null,null,null,{"$f":"IF(TRIM(BW315)=\"\", \"\", IF(VLOOKUP(BW315,'Footnotes list'!$D$9:$E$58,2,FALSE)=0,\"\",VLOOKUP(BW315,'Footnotes list'!$D$9:$E$58,2,FALSE) ) )","v":""},null,null,null,null,{"$f":"IF(TRIM(CB315)=\"\", \"\", IF(VLOOKUP(CB315,'Footnotes list'!$D$9:$E$58,2,FALSE)=0,\"\",VLOOKUP(CB315,'Footnotes list'!$D$9:$E$58,2,FALSE) ) )","v":""},null,null,null,null,{"$f":"IF(TRIM(CG315)=\"\", \"\", IF(VLOOKUP(CG315,'Footnotes list'!$D$9:$E$58,2,FALSE)=0,\"\",VLOOKUP(CG315,'Footnotes list'!$D$9:$E$58,2,FALSE) ) )","v":""},null,null,null,null,{"$f":"IF(TRIM(CL315)=\"\", \"\", IF(VLOOKUP(CL315,'Footnotes list'!$D$9:$E$58,2,FALSE)=0,\"\",VLOOKUP(CL315,'Footnotes list'!$D$9:$E$58,2,FALSE) ) )","v":""},null,null,null,null,{"$f":"IF(TRIM(CQ315)=\"\", \"\", IF(VLOOKUP(CQ315,'Footnotes list'!$D$9:$E$58,2,FALSE)=0,\"\",VLOOKUP(CQ315,'Footnotes list'!$D$9:$E$58,2,FALSE) ) )","v":""},null,null,null,null,{"$f":"IF(TRIM(CV315)=\"\", \"\", IF(VLOOKUP(CV315,'Footnotes list'!$D$9:$E$58,2,FALSE)=0,\"\",VLOOKUP(CV315,'Footnotes list'!$D$9:$E$58,2,FALSE) ) )","v":""},null,null,null,null,{"$f":"IF(TRIM(DA315)=\"\", \"\", IF(VLOOKUP(DA315,'Footnotes list'!$D$9:$E$58,2,FALSE)=0,\"\",VLOOKUP(DA315,'Footnotes list'!$D$9:$E$58,2,FALSE) ) )","v":""},null,null,null,null,{"$f":"IF(TRIM(DF315)=\"\", \"\", IF(VLOOKUP(DF315,'Footnotes list'!$D$9:$E$58,2,FALSE)=0,\"\",VLOOKUP(DF315,'Footnotes list'!$D$9:$E$58,2,FALSE) ) )","v":""},null,null,null,null,{"$f":"IF(TRIM(DK315)=\"\", \"\", IF(VLOOKUP(DK315,'Footnotes list'!$D$9:$E$58,2,FALSE)=0,\"\",VLOOKUP(DK315,'Footnotes list'!$D$9:$E$58,2,FALSE) ) )","v":""},null,null,null,null,{"$f":"IF(TRIM(DP315)=\"\", \"\", IF(VLOOKUP(DP315,'Footnotes list'!$D$9:$E$58,2,FALSE)=0,\"\",VLOOKUP(DP315,'Footnotes list'!$D$9:$E$58,2,FALSE) ) )","v":""},null,null,null,null,{"$f":"IF(TRIM(DU315)=\"\", \"\", IF(VLOOKUP(DU315,'Footnotes list'!$D$9:$E$58,2,FALSE)=0,\"\",VLOOKUP(DU315,'Footnotes list'!$D$9:$E$58,2,FALSE) ) )","v":""},null,null,null,null,{"$f":"IF(TRIM(DZ315)=\"\", \"\", IF(VLOOKUP(DZ315,'Footnotes list'!$D$9:$E$58,2,FALSE)=0,\"\",VLOOKUP(DZ315,'Footnotes list'!$D$9:$E$58,2,FALSE) ) )","v":""},null,null,null,null,{"$f":"IF(TRIM(EE315)=\"\", \"\", IF(VLOOKUP(EE315,'Footnotes list'!$D$9:$E$58,2,FALSE)=0,\"\",VLOOKUP(EE315,'Footnotes list'!$D$9:$E$58,2,FALSE) ) )","v":""},null,null,null,null,{"$f":"IF(TRIM(EJ315)=\"\", \"\", IF(VLOOKUP(EJ315,'Footnotes list'!$D$9:$E$58,2,FALSE)=0,\"\",VLOOKUP(EJ315,'Footnotes list'!$D$9:$E$58,2,FALSE) ) )","v":""},null,null,null,null,{"$f":"IF(TRIM(EO315)=\"\", \"\", IF(VLOOKUP(EO315,'Footnotes list'!$D$9:$E$58,2,FALSE)=0,\"\",VLOOKUP(EO315,'Footnotes list'!$D$9:$E$58,2,FALSE) ) )","v":""},null,null,null,null,{"$f":"IF(TRIM(ET315)=\"\", \"\", IF(VLOOKUP(ET315,'Footnotes list'!$D$9:$E$58,2,FALSE)=0,\"\",VLOOKUP(ET315,'Footnotes list'!$D$9:$E$58,2,FALSE) ) )","v":""},null,null,null,null,{"$f":"IF(TRIM(EY315)=\"\", \"\", IF(VLOOKUP(EY315,'Footnotes list'!$D$9:$E$58,2,FALSE)=0,\"\",VLOOKUP(EY315,'Footnotes list'!$D$9:$E$58,2,FALSE) ) )","v":""}]
[]
[null,null,null,"Grey: Automatic calculation. Formula can be overwritten (with \"unlock formulas\")"]
[null,null,null,"Cyan: Non Mandatory variables"]
[null,null,null,"Light yellow: Footnotes (only to be filled-in when relevant)"]

{"sheet":"GROSS VALUE ADDED","index":8,"n_rows":319,"n_cols":156,"rows_kept":319,"cut":false,"hidden":false,"merged":[[316,3,316,5],[4,132,4,135],[5,134,5,135],[4,137,4,140],[5,139,5,140],[4,142,4,145],[5,144,5,145],[4,147,4,150],[5,149,5,150],[4,82,4,85],[5,84,5,85],[4,87,4,90],[5,89,5,90],[4,92,4,95],[5,94,5,95],[4,97,4,100],[5,99,5,100],[4,102,4,105],[5,104,5,105],[4,57,4,60],[5,59,5,60],[4,62,4,65],[5,64,5,65],[4,67,4,70],[4,152,4,155],[5,154,5,155],[4,107,4,110],[5,109,5,110],[4,112,4,115],[5,114,5,115],[4,117,4,120],[5,119,5,120],[4,122,4,125],[5,124,5,125],[4,127,4,130],[5,129,5,130],[5,69,5,70],[4,72,4,75],[5,74,5,75],[4,77,4,80],[5,79,5,80],[4,32,4,35],[5,34,5,35],[4,37,4,40],[5,39,5,40],[4,42,4,45],[5,44,5,45],[4,47,4,50],[5,49,5,50],[4,52,4,55],[5,54,5,55],[4,7,4,10],[5,9,5,10],[4,12,4,15],[5,14,5,15],[4,17,4,20],[5,19,5,20],[4,22,4,25],[5,24,5,25],[4,27,4,30],[5,29,5,30],[288,4,288,5],[289,4,289,5],[290,4,290,5],[291,4,291,5],[292,4,292,5],[293,4,293,5],[284,4,284,5],[285,4,285,5],[286,4,286,5],[287,4,287,5],[298,4,298,5],[299,4,299,5],[300,4,300,5],[301,4,301,5],[294,4,294,5],[295,4,295,5],[296,4,296,5],[297,4,297,5],[302,4,302,5],[303,4,303,5],[304,4,304,5],[305,4,305,5],[306,4,306,5],[307,4,307,5],[252,4,252,5],[253,4,253,5],[254,4,254,5],[255,4,255,5],[263,4,263,5],[264,4,264,5],[265,4,265,5],[270,4,270,5],[271,4,271,5],[272,4,272,5],[273,4,273,5],[266,4,266,5],[267,4,267,5],[268,4,268,5],[269,4,269,5],[280,4,280,5],[281,4,281,5],[282,4,282,5],[283,4,283,5],[246,4,246,5],[247,4,247,5],[248,4,248,5],[249,4,249,5],[250,4,250,5],[251,4,251,5],[260,4,260,5],[261,4,261,5],[262,4,262,5],[256,4,256,5],[257,4,257,5],[258,4,258,5],[259,4,259,5],[274,4,274,5],[275,4,275,5],[276,4,276,5],[277,4,277,5],[278,4,278,5],[279,4,279,5],[214,4,214,5],[215,4,215,5],[216,4,216,5],[217,4,217,5],[232,4,232,5],[233,4,233,5],[234,4,234,5],[235,4,235,5],[236,4,236,5],[237,4,237,5],[228,4,228,5],[229,4,229,5],[230,4,230,5],[231,4,231,5],[242,4,242,5],[243,4,243,5],[244,4,244,5],[245,4,245,5],[210,4,210,5],[211,4,211,5],[212,4,212,5],[213,4,213,5],[224,4,224,5],[225,4,225,5],[226,4,226,5],[227,4,227,5],[218,4,218,5],[219,4,219,5],[220,4,220,5],[221,4,221,5],[222,4,222,5],[223,4,223,5],[238,4,238,5],[239,4,239,5],[240,4,240,5],[241,4,241,5],[181,4,181,5],[172,4,172,5],[173,4,173,5],[174,4,174,5],[175,4,175,5],[186,4,186,5],[187,4,187,5],[188,4,188,5],[189,4,189,5],[182,4,182,5],[183,4,183,5],[184,4,184,5],[185,4,185,5],[196,4,196,5],[197,4,197,5],[198,4,198,5],[199,4,199,5],[190,4,190,5],[191,4,191,5],[192,4,192,5],[193,4,193,5],[194,4,194,5],[195,4,195,5],[204,4,204,5],[205,4,205,5],[206,4,206,5],[207,4,207,5],[208,4,208,5],[209,4,209,5],[200,4,200,5],[201,4,201,5],[202,4,202,5],[203,4,203,5],[148,4,148,5],[149,4,149,5],[150,4,150,5],[151,4,151,5],[152,4,152,5],[153,4,153,5],[144,4,144,5],[145,4,145,5],[146,4,146,5],[147,4,147,5],[158,4,158,5],[159,4,159,5],[160,4,160,5],[161,4,161,5],[154,4,154,5],[155,4,155,5],[156,4,156,5],[157,4,157,5],[168,4,168,5],[169,4,169,5],[170,4,170,5],[171,4,171,5],[162,4,162,5],[163,4,163,5],[164,4,164,5],[165,4,165,5],[166,4,166,5],[167,4,167,5],[176,4,176,5],[177,4,177,5],[178,4,178,5],[179,4,179,5],[180,4,180,5],[112,4,112,5],[113,4,113,5],[114,4,114,5],[115,4,115,5],[123,4,123,5],[124,4,124,5],[125,4,125,5],[130,4,130,5],[131,4,131,5],[132,4,132,5],[133,4,133,5],[126,4,126,5],[127,4,127,5],[128,4,128,5],[129,4,129,5],[140,4,140,5],[141,4,141,5],[142,4,142,5],[143,4,143,5],[106,4,106,5],[107,4,107,5],[108,4,108,5],[109,4,109,5],[110,4,110,5],[111,4,111,5],[120,4,120,5],[121,4,121,5],[122,4,122,5],[116,4,116,5],[117,4,117,5],[118,4,118,5],[119,4,119,5],[134,4,134,5],[135,4,135,5],[136,4,136,5],[137,4,137,5],[138,4,138,5],[139,4,139,5],[74,4,74,5],[75,4,75,5],[76,4,76,5],[77,4,77,5],[92,4,92,5],[93,4,93,5],[94,4,94,5],[95,4,95,5],[96,4,96,5],[97,4,97,5],[88,4,88,5],[89,4,89,5],[90,4,90,5],[91,4,91,5],[102,4,102,5],[103,4,103,5],[104,4,104,5],[105,4,105,5],[37,4,37,5],[38,4,38,5],[39,4,39,5],[40,4,40,5],[41,4,41,5],[56,4,56,5],[57,4,57,5],[58,4,58,5],[59,4,59,5],[50,4,50,5],[51,4,51,5],[52,4,52,5],[53,4,53,5],[54,4,54,5],[55,4,55,5],[79,4,79,5],[80,4,80,5],[81,4,81,5],[82,4,82,5],[83,4,83,5],[63,4,63,5],[46,4,46,5],[47,4,47,5],[101,4,101,5],[64,4,64,5],[65,4,65,5],[66,4,66,5],[67,4,67,5],[68,4,68,5],[70,4,70,5],[71,4,71,5],[72,4,72,5],[8,4,8,5],[9,4,9,5],[10,4,10,5],[11,4,11,5],[28,4,28,5],[29,4,29,5],[30,4,30,5],[22,4,22,5],[23,4,23,5],[24,4,24,5],[25,4,25,5],[26,4,26,5],[27,4,27,5],[33,4,33,5],[34,4,34,5],[35,4,35,5],[308,4,308,5],[309,4,309,5],[310,4,310,5],[311,4,311,5],[12,4,12,5],[13,4,13,5],[48,4,48,5],[49,4,49,5],[42,4,42,5],[43,4,43,5],[44,4,44,5],[45,4,45,5],[98,4,98,5],[99,4,99,5],[100,4,100,5],[73,4,73,5],[84,4,84,5],[85,4,85,5],[86,4,86,5],[87,4,87,5],[78,4,78,5],[1,6,3,70],[1,71,3,145],[1,146,3,150],[1,151,3,155],[312,4,312,5],[313,4,313,5],[314,4,314,5],[5,4,5,5],[7,4,7,5],[18,4,18,5],[19,4,19,5],[20,4,20,5],[21,4,21,5],[14,4,14,5],[15,4,15,5],[16,4,16,5],[17,4,17,5],[69,4,69,5],[60,4,60,5],[61,4,61,5],[62,4,62,5],[31,4,31,5],[36,4,36,5],[32,4,32,5]]}
[]
[null,null,null,"Country:",{"$f":"\"\" &'GETTING STARTED'!G9","v":""},{"$f":"\"\" &'GETTING STARTED'!E9","v":""},null,null,null,null,null,null,null,null,null,null,null,null,null,null,null,null,null,null,null,null,null,null,null,null,null,null,null,null,null,null,null,null,null,null,null,null,null,null,null,null,null,null,null,null,null,null,null,null,null,null,null,null,null,null,null,null,null,null,null,null,null,null,null,null,null,null,null,null,null,null,null,null,null,null,null,null,null,null,null,null,null,null,null,null,null,null,null,null,null,null,null,null,null,null,null,null,null,null,null,null,null,null,null,null,null,null,null,null,null,null,null,null,null,null,null,null,null,null,null,null,null,null,null,null,null,null,null,null,null,null,null,null,null,null,null,null,null,null,null,null,null,null,null,null,null,"MEMO"]
[null,null,null,"Year:",{"$f":"\"\" &'GETTING STARTED'!E10","v":""},null,"A. Environmental Protection",null,null,null,null,null,null,null,null,null,null,null,null,null,null,null,null,null,null,null,null,null,null,null,null,null,null,null,null,null,null,null,null,null,null,null,null,null,null,null,null,null,null,null,null,null,null,null,null,null,null,null,null,null,null,null,null,null,null,null,null,null,null,null,null,"B. Resources Management",null,null,null,null,null,null,null,null,null,null,null,null,null,null,null,null,null,null,null,null,null,null,null,null,null,null,null,null,null,null,null,null,null,null,null,null,null,null,null,null,null,null,null,null,null,null,null,null,null,null,null,null,null,null,null,null,null,null,null,null,null,null,null,null,null,null,null,null,null,null,null,null,null,null,null,null,null,null,null,"ITEM"]
[null,null,null,"Unit:","MIO_NAC","Million units of national currency"]
[null,null,null,"Characteristic / variable","B1G","GROSS VALUE ADDED","CEPA 1",null,null,null,null,"CEPA 1.1.2 and 1.2.2",null,null,null,null,"CEPA 2",null,null,null,null,"CEPA 3",null,null,null,null,"CEPA 4",null,null,null,null,"CEPA 5",null,null,null,null,"CEPA 6",null,null,null,null,"CEPA 7 + CEPA 8 + CEPA 9",null,null,null,null,"CEPA 7",null,null,null,null,"CEPA 8",null,null,null,null,"CEPA 8.1.2",null,null,null,null,"CEPA 9",null,null,null,null,"CEPA 1-9",null,null,null,null,"CReMA 10",null,null,null,null,"CReMA 11",null,null,null,null,"CReMA   11 A",null,null,null,null,"CReMA 11 B",null,null,null,null,"CReMA 13 ",null,null,null,null,"CReMA 13 A",null,null,null,null,"CReMA 13 B",null,null,null,null,"CReMA 13 C",null,null,null,null,"CReMA 14",null,null,null,null,"CReMA 12 + CReMA 15 + CReMA 16",null,null,null,null,"CReMA 12",null,null,null,null,"CReMA 15",null,null,null,null,"CReMA 15.5.1",null,null,null,null,"CReMA 16",null,null,null,null,"CReMA 10-16",null,null,null,null,"CEPA 1-9 and CReMA 10-16",null,null,null,null,"CREMA13B_MEMO"]
[null,null,null,null,"EGSS - GROSS VALUE ADDED",null,"Protection of ambient air and climate ","Standard footnote","Confidentiality footnote","Explanatory footnote",null,"Protection of climate and ozone layer (as a subgroup of protection of ambient air and climate)","Standard footnote","Confidentiality footnote","Explanatory footnote",null,"Wastewater management","Standard footnote","Confidentiality footnote","Explanatory footnote",null,"Waste management ","Standard footnote","Confidentiality footnote","Explanatory footnote",null,"Protection and remediation of soil, groundwater and surface water ","Standard footnote","Confidentiality footnote","Explanatory footnote",null,"Noise and vibration abatement ","Standard footnote","Confidentiality footnote","Explanatory footnote",null,"Protection of biodiversity and landscapes ","Standard footnote","Confidentiality footnote","Explanatory footnote",null,"Protection against radiation; Research and development (R&D) and Other","Standard footnote","Confidentiality footnote","Explanatory footnote",null,"Protection against radiation ","Standard footnote","Confidentiality footnote","Explanatory footnote",null,"Research and development (R&D) for environmental protection","Standard footnote","Confidentiality footnote","Explanatory footnote",null,"R&D for the protection of climate and ozone layer (as a subgroup of research and development for environmental protection)","Standard footnote","Confidentiality footnote","Explanatory footnote",null,"Other","Standard footnote","Confidentiality footnote","Explanatory footnote",null,"Total CEPA","Standard footnote","Confidentiality footnote","Explanatory footnote",null,"Management of waters","Standard footnote","Confidentiality footnote","Explanatory footnote",null,"Management of forest resources","Standard footnote","Confidentiality footnote","Explanatory footnote",null,"Management of forest areas","Standard footnote","Confidentiality footnote","Explanatory footnote",null,"Minimisation of the intake of  forest resources","Standard footnote","Confidentiality footnote","Explanatory footnote",null,"Management of fossil energy resources","Standard footnote","Confidentiality footnote","Explanatory footnote",null,"Production of energy from renewable sources","Standard footnote","Confidentiality footnote","Explanatory footnote",null,"Heat/Energy saving and management","Standard footnote","Confidentiality footnote","Explanatory footnote",null,"Minimisation of the intake of fossil resources as raw material ","Standard footnote","Confidentiality footnote","Explanatory footnote",null,"Management of minerals","Standard footnote","Confidentiality footnote","Explanatory footnote",null,"Management of wild flora and fauna; Research and development (R&D) and Other","Standard footnote","Confidentiality footnote","Explanatory footnote",null,"Management of wild flora and fauna","Standard footnote","Confidentiality footnote","Explanatory footnote",null,"Research and development (R&D) for resource management","Standard footnote","Confidentiality footnote","Explanatory footnote",null,"R&D for the production of energy from renewable sources (as a subgroup of R& D for resource management) ","Standard footnote","Confidentiality footnote","Explanatory footnote",null,"Other","Standard footnote","Confidentiality footnote","Explanatory footnote",null,"Total CReMA","Standard footnote","Confidentiality footnote","Explanatory footnote",null,"TOTAL CEPA and CReMA","Standard footnote","Confidentiality footnote","Explanatory footnote",null,"Part of GVA related to energy-efficiency measures undertaken for the construction of the NZEBs","Standard footnote","Confidentiality footnote","Explanatory footnote"]
[null,null,null,null,null,null,"CEPA1",null,null,null,null,"CEPA112_122",null,null,null,null,"CEPA2",null,null,null,null,"CEPA3",null,null,null,null,"CEPA4",null,null,null,null,"CEPA5",null,null,null,null,"CEPA6",null,null,null,null,"CEPA7-9",null,null,null,null,"CEPA7",null,null,null,null,"CEPA8",null,null,null,null,"CEPA812",null,null,null,null,"CEPA9",null,null,null,null,"TOT_CEPA",null,null,null,null,"CREMA10",null,null,null,null,"CREMA11",null,null,null,null,"CREMA11A",null,null,null,null,"CREMA11B",null,null,null,null,"CREMA13",null,null,null,null,"CREMA13A",null,null,null,null,"CREMA13B",null,null,null,null,"CREMA13C",null,null,null,null,"CREMA14",null,null,null,null,"CREMA12_15_16",null,null,null,null,"CREMA12",null,null,null,null,"CREMA15",null,null,null,null,"CREMA15A",null,null,null,null,"CREMA16",null,null,null,null,"TOT_CREMA",null,null,null,null,"TOTAL",null,null,null,null,"CREMA13B_MEMO"]
[null,null,"TOTAL","TOT_EGSS","Total gross value added, of which:",null,{"$f":"G15+G22+G29+G127+G134+G169+G197+G218+G260+G267+G309","v":0},null,null,null,{"$f":"IF(TRIM(J8)=\"\", \"\", IF(VLOOKUP(J8,'Footnotes list'!$D$9:$E$58,2,FALSE)=0,\"\",VLOOKUP(J8,'Footnotes list'!$D$9:$E$58,2,FALSE) ) )","v":""},null,null,null,null,{"$f":"IF(TRIM(O8)=\"\", \"\", IF(VLOOKUP(O8,'Footnotes list'!$D$9:$E$58,2,FALSE)=0,\"\",VLOOKUP(O8,'Footnotes list'!$D$9:$E$58,2,FALSE) ) )","v":""},{"$f":"Q15+Q22+Q29+Q127+Q134+Q169+Q197+Q218+Q260+Q267+Q309","v":0},null,null,null,{"$f":"IF(TRIM(T8)=\"\", \"\", IF(VLOOKUP(T8,'Footnotes list'!$D$9:$E$58,2,FALSE)=0,\"\",VLOOKUP(T8,'Footnotes list'!$D$9:$E$58,2,FALSE) ) )","v":""},{"$f":"V15+V22+V29+V127+V134+V169+V197+V218+V260+V267+V309","v":0},null,null,null,{"$f":"IF(TRIM(Y8)=\"\", \"\", IF(VLOOKUP(Y8,'Footnotes list'!$D$9:$E$58,2,FALSE)=0,\"\",VLOOKUP(Y8,'Footnotes list'!$D$9:$E$58,2,FALSE) ) )","v":""},{"$f":"AA15+AA22+AA29+AA127+AA134+AA169+AA197+AA218+AA260+AA267+AA309","v":0},null,null,null,{"$f":"IF(TRIM(AD8)=\"\", \"\", IF(VLOOKUP(AD8,'Footnotes list'!$D$9:$E$58,2,FALSE)=0,\"\",VLOOKUP(AD8,'Footnotes list'!$D$9:$E$58,2,FALSE) ) )","v":""},{"$f":"AF15+AF22+AF29+AF127+AF134+AF169+AF197+AF218+AF260+AF267+AF309","v":0},null,null,null,{"$f":"IF(TRIM(AI8)=\"\", \"\", IF(VLOOKUP(AI8,'Footnotes list'!$D$9:$E$58,2,FALSE)=0,\"\",VLOOKUP(AI8,'Footnotes list'!$D$9:$E$58,2,FALSE) ) )","v":""},{"$f":"AK15+AK22+AK29+AK127+AK134+AK169+AK197+AK218+AK260+AK267+AK309","v":0},null,null,null,{"$f":"IF(TRIM(AN8)=\"\", \"\", IF(VLOOKUP(AN8,'Footnotes list'!$D$9:$E$58,2,FALSE)=0,\"\",VLOOKUP(AN8,'Footnotes list'!$D$9:$E$58,2,FALSE) ) )","v":""},{"$f":"AP15+AP22+AP29+AP127+AP134+AP169+AP197+AP218+AP260+AP267+AP309","v":0},null,null,null,{"$f":"IF(TRIM(AS8)=\"\", \"\", IF(VLOOKUP(AS8,'Footnotes list'!$D$9:$E$58,2,FALSE)=0,\"\",VLOOKUP(AS8,'Footnotes list'!$D$9:$E$58,2,FALSE) ) )","v":""},null,null,null,null,{"$f":"IF(TRIM(AX8)=\"\", \"\", IF(VLOOKUP(AX8,'Footnotes list'!$D$9:$E$58,2,FALSE)=0,\"\",VLOOKUP(AX8,'Footnotes list'!$D$9:$E$58,2,FALSE) ) )","v":""},null,null,null,null,{"$f":"IF(TRIM(BC8)=\"\", \"\", IF(VLOOKUP(BC8,'Footnotes list'!$D$9:$E$58,2,FALSE)=0,\"\",VLOOKUP(BC8,'Footnotes list'!$D$9:$E$58,2,FALSE) ) )","v":""},null,null,null,null,{"$f":"IF(TRIM(BH8)=\"\", \"\", IF(VLOOKUP(BH8,'Footnotes list'!$D$9:$E$58,2,FALSE)=0,\"\",VLOOKUP(BH8,'Footnotes list'!$D$9:$E$58,2,FALSE) ) )","v":""},null,null,null,null,{"$f":"IF(TRIM(BM8)=\"\", \"\", IF(VLOOKUP(BM8,'Footnotes list'!$D$9:$E$58,2,FALSE)=0,\"\",VLOOKUP(BM8,'Footnotes list'!$D$9:$E$58,2,FALSE) ) )","v":""},{"$f":"G8+Q8+V8+AA8+AF8+AK8+AP8","v":0},null,null,null,{"$f":"IF(TRIM(BR8)=\"\", \"\", IF(VLOOKUP(BR8,'Footnotes list'!$D$9:$E$58,2,FALSE)=0,\"\",VLOOKUP(BR8,'Footnotes list'!$D$9:$E$58,2,FALSE) ) )","v":""},{"$f":"BT15+BT22+BT29+BT127+BT134+BT169+BT197+BT218+BT260+BT267+BT309","v":0},null,null,null,{"$f":"IF(TRIM(BW8)=\"\", \"\", IF(VLOOKUP(BW8,'Footnotes list'!$D$9:$E$58,2,FALSE)=0,\"\",VLOOKUP(BW8,'Footnotes list'!$D$9:$E$58,2,FALSE) ) )","v":""},{"$f":"BY15+BY22+BY29+BY127+BY134+BY169+BY197+BY218+BY260+BY267+BY309","v":0},null,null,null,{"$f":"IF(TRIM(CB8)=\"\", \"\", IF(VLOOKUP(CB8,'Footnotes list'!$D$9:$E$58,2,FALSE)=0,\"\",VLOOKUP(CB8,'Footnotes list'!$D$9:$E$58,2,FALSE) ) )","v":""},null,null,null,null,{"$f":"IF(TRIM(CG8)=\"\", \"\", IF(VLOOKUP(CG8,'Footnotes list'!$D$9:$E$58,2,FALSE)=0,\"\",VLOOKUP(CG8,'Footnotes list'!$D$9:$E$58,2,FALSE) ) )","v":""},null,null,null,null,{"$f":"IF(TRIM(CL8)=\"\", \"\", IF(VLOOKUP(CL8,'Footnotes list'!$D$9:$E$58,2,FALSE)=0,\"\",VLOOKUP(CL8,'Footnotes list'!$D$9:$E$58,2,FALSE) ) )","v":""},{"$f":"CN15+CN22+CN29+CN127+CN134+CN169+CN197+CN218+CN260+CN267+CN309","v":0},null,null,null,{"$f":"IF(TRIM(CQ8)=\"\", \"\", IF(VLOOKUP(CQ8,'Footnotes list'!$D$9:$E$58,2,FALSE)=0,\"\",VLOOKUP(CQ8,'Footnotes list'!$D$9:$E$58,2,FALSE) ) )","v":""},{"$f":"CS15+CS22+CS29+CS127+CS134+CS169+CS197+CS218+CS260+CS267+CS309","v":0},null,null,null,{"$f":"IF(TRIM(CV8)=\"\", \"\", IF(VLOOKUP(CV8,'Footnotes list'!$D$9:$E$58,2,FALSE)=0,\"\",VLOOKUP(CV8,'Footnotes list'!$D$9:$E$58,2,FALSE) ) )","v":""},{"$f":"CX15+CX22+CX29+CX127+CX134+CX169+CX197+CX218+CX260+CX267+CX309","v":0},null,null,null,{"$f":"IF(TRIM(DA8)=\"\", \"\", IF(VLOOKUP(DA8,'Footnotes list'!$D$9:$E$58,2,FALSE)=0,\"\",VLOOKUP(DA8,'Footnotes list'!$D$9:$E$58,2,FALSE) ) )","v":""},{"$f":"DC15+DC22+DC29+DC127+DC134+DC169+DC197+DC218+DC260+DC267+DC309","v":0},null,null,null,{"$f":"IF(TRIM(DF8)=\"\", \"\", IF(VLOOKUP(DF8,'Footnotes list'!$D$9:$E$58,2,FALSE)=0,\"\",VLOOKUP(DF8,'Footnotes list'!$D$9:$E$58,2,FALSE) ) )","v":""},{"$f":"DH15+DH22+DH29+DH127+DH134+DH169+DH197+DH218+DH260+DH267+DH309","v":0},null,null,null,{"$f":"IF(TRIM(DK8)=\"\", \"\", IF(VLOOKUP(DK8,'Footnotes list'!$D$9:$E$58,2,FALSE)=0,\"\",VLOOKUP(DK8,'Footnotes list'!$D$9:$E$58,2,FALSE) ) )","v":""},{"$f":"DM15+DM22+DM29+DM127+DM134+DM169+DM197+DM218+DM260+DM267+DM309","v":0},null,null,null,{"$f":"IF(TRIM(DP8)=\"\", \"\", IF(VLOOKUP(DP8,'Footnotes list'!$D$9:$E$58,2,FALSE)=0,\"\",VLOOKUP(DP8,'Footnotes list'!$D$9:$E$58,2,FALSE) ) )","v":""},null,null,null,null,{"$f":"IF(TRIM(DU8)=\"\", \"\", IF(VLOOKUP(DU8,'Footnotes list'!$D$9:$E$58,2,FALSE)=0,\"\",VLOOKUP(DU8,'Footnotes list'!$D$9:$E$58,2,FALSE) ) )","v":""},null,null,null,null,{"$f":"IF(TRIM(DZ8)=\"\", \"\", IF(VLOOKUP(DZ8,'Footnotes list'!$D$9:$E$58,2,FALSE)=0,\"\",VLOOKUP(DZ8,'Footnotes list'!$D$9:$E$58,2,FALSE) ) )","v":""},null,null,null,null,{"$f":"IF(TRIM(EE8)=\"\", \"\", IF(VLOOKUP(EE8,'Footnotes list'!$D$9:$E$58,2,FALSE)=0,\"\",VLOOKUP(EE8,'Footnotes list'!$D$9:$E$58,2,FALSE) ) )","v":""},null,null,null,null,{"$f":"IF(TRIM(EJ8)=\"\", \"\", IF(VLOOKUP(EJ8,'Footnotes list'!$D$9:$E$58,2,FALSE)=0,\"\",VLOOKUP(EJ8,'Footnotes list'!$D$9:$E$58,2,FALSE) ) )","v":""},{"$f":"DM8+DH8+CN8+BY8+BT8","v":0},null,null,null,{"$f":"IF(TRIM(EO8)=\"\", \"\", IF(VLOOKUP(EO8,'Footnotes list'!$D$9:$E$58,2,FALSE)=0,\"\",VLOOKUP(EO8,'Footnotes list'!$D$9:$E$58,2,FALSE) ) )","v":""},{"$f":"EL8+BO8","v":0},null,null,null,{"$f":"IF(TRIM(ET8)=\"\", \"\", IF(VLOOKUP(ET8,'Footnotes list'!$D$9:$E$58,2,FALSE)=0,\"\",VLOOKUP(ET8,'Footnotes list'!$D$9:$E$58,2,FALSE) ) )","v":""},null,null,null,null,{"$f":"IF(TRIM(EY8)=\"\", \"\", IF(VLOOKUP(EY8,'Footnotes list'!$D$9:$E$58,2,FALSE)=0,\"\",VLOOKUP(EY8,'Footnotes list'!$D$9:$E$58,2,FALSE) ) )","v":""}]
[null,null,"TOTAL","ANC","ancillary activities",null,null,null,null,null,{"$f":"IF(TRIM(J9)=\"\", \"\", IF(VLOOKUP(J9,'Footnotes list'!$D$9:$E$58,2,FALSE)=0,\"\",VLOOKUP(J9,'Footnotes list'!$D$9:$E$58,2,FALSE) ) )","v":""},null,null,null,null,{"$f":"IF(TRIM(O9)=\"\", \"\", IF(VLOOKUP(O9,'Footnotes list'!$D$9:$E$58,2,FALSE)=0,\"\",VLOOKUP(O9,'Footnotes list'!$D$9:$E$58,2,FALSE) ) )","v":""},null,null,null,null,{"$f":"IF(TRIM(T9)=\"\", \"\", IF(VLOOKUP(T9,'Footnotes list'!$D$9:$E$58,2,FALSE)=0,\"\",VLOOKUP(T9,'Footnotes list'!$D$9:$E$58,2,FALSE) ) )","v":""},null,null,null,null,{"$f":"IF(TRIM(Y9)=\"\", \"\", IF(VLOOKUP(Y9,'Footnotes list'!$D$9:$E$58,2,FALSE)=0,\"\",VLOOKUP(Y9,'Footnotes list'!$D$9:$E$58,2,FALSE) ) )","v":""},null,null,null,null,{"$f":"IF(TRIM(AD9)=\"\", \"\", IF(VLOOKUP(AD9,'Footnotes list'!$D$9:$E$58,2,FALSE)=0,\"\",VLOOKUP(AD9,'Footnotes list'!$D$9:$E$58,2,FALSE) ) )","v":""},null,null,null,null,{"$f":"IF(TRIM(AI9)=\"\", \"\", IF(VLOOKUP(AI9,'Footnotes list'!$D$9:$E$58,2,FALSE)=0,\"\",VLOOKUP(AI9,'Footnotes list'!$D$9:$E$58,2,FALSE) ) )","v":""},null,null,null,null,{"$f":"IF(TRIM(AN9)=\"\", \"\", IF(VLOOKUP(AN9,'Footnotes list'!$D$9:$E$58,2,FALSE)=0,\"\",VLOOKUP(AN9,'Footnotes list'!$D$9:$E$58,2,FALSE) ) )","v":""},null,null,null,null,{"$f":"IF(TRIM(AS9)=\"\", \"\", IF(VLOOKUP(AS9,'Footnotes list'!$D$9:$E$58,2,FALSE)=0,\"\",VLOOKUP(AS9,'Footnotes list'!$D$9:$E$58,2,FALSE) ) )","v":""},null,null,null,null,{"$f":"IF(TRIM(AX9)=\"\", \"\", IF(VLOOKUP(AX9,'Footnotes list'!$D$9:$E$58,2,FALSE)=0,\"\",VLOOKUP(AX9,'Footnotes list'!$D$9:$E$58,2,FALSE) ) )","v":""},null,null,null,null,{"$f":"IF(TRIM(BC9)=\"\", \"\", IF(VLOOKUP(BC9,'Footnotes list'!$D$9:$E$58,2,FALSE)=0,\"\",VLOOKUP(BC9,'Footnotes list'!$D$9:$E$58,2,FALSE) ) )","v":""},null,null,null,null,{"$f":"IF(TRIM(BH9)=\"\", \"\", IF(VLOOKUP(BH9,'Footnotes list'!$D$9:$E$58,2,FALSE)=0,\"\",VLOOKUP(BH9,'Footnotes list'!$D$9:$E$58,2,FALSE) ) )","v":""},null,null,null,null,{"$f":"IF(TRIM(BM9)=\"\", \"\", IF(VLOOKUP(BM9,'Footnotes list'!$D$9:$E$58,2,FALSE)=0,\"\",VLOOKUP(BM9,'Footnotes list'!$D$9:$E$58,2,FALSE) ) )","v":""},null,null,null,null,{"$f":"IF(TRIM(BR9)=\"\", \"\", IF(VLOOKUP(BR9,'Footnotes list'!$D$9:$E$58,2,FALSE)=0,\"\",VLOOKUP(BR9,'Footnotes list'!$D$9:$E$58,2,FALSE) ) )","v":""},null,null,null,null,{"$f":"IF(TRIM(BW9)=\"\", \"\", IF(VLOOKUP(BW9,'Footnotes list'!$D$9:$E$58,2,FALSE)=0,\"\",VLOOKUP(BW9,'Footnotes list'!$D$9:$E$58,2,FALSE) ) )","v":""},null,null,null,null,{"$f":"IF(TRIM(CB9)=\"\", \"\", IF(VLOOKUP(CB9,'Footnotes list'!$D$9:$E$58,2,FALSE)=0,\"\",VLOOKUP(CB9,'Footnotes list'!$D$9:$E$58,2,FALSE) ) )","v":""},null,null,null,null,{"$f":"IF(TRIM(CG9)=\"\", \"\", IF(VLOOKUP(CG9,'Footnotes list'!$D$9:$E$58,2,FALSE)=0,\"\",VLOOKUP(CG9,'Footnotes list'!$D$9:$E$58,2,FALSE) ) )","v":""},null,null,null,null,{"$f":"IF(TRIM(CL9)=\"\", \"\", IF(VLOOKUP(CL9,'Footnotes list'!$D$9:$E$58,2,FALSE)=0,\"\",VLOOKUP(CL9,'Footnotes list'!$D$9:$E$58,2,FALSE) ) )","v":""},null,null,null,null,{"$f":"IF(TRIM(CQ9)=\"\", \"\", IF(VLOOKUP(CQ9,'Footnotes list'!$D$9:$E$58,2,FALSE)=0,\"\",VLOOKUP(CQ9,'Footnotes list'!$D$9:$E$58,2,FALSE) ) )","v":""},null,null,null,null,{"$f":"IF(TRIM(CV9)=\"\", \"\", IF(VLOOKUP(CV9,'Footnotes list'!$D$9:$E$58,2,FALSE)=0,\"\",VLOOKUP(CV9,'Footnotes list'!$D$9:$E$58,2,FALSE) ) )","v":""},null,null,null,null,{"$f":"IF(TRIM(DA9)=\"\", \"\", IF(VLOOKUP(DA9,'Footnotes list'!$D$9:$E$58,2,FALSE)=0,\"\",VLOOKUP(DA9,'Footnotes list'!$D$9:$E$58,2,FALSE) ) )","v":""},null,null,null,null,{"$f":"IF(TRIM(DF9)=\"\", \"\", IF(VLOOKUP(DF9,'Footnotes list'!$D$9:$E$58,2,FALSE)=0,\"\",VLOOKUP(DF9,'Footnotes list'!$D$9:$E$58,2,FALSE) ) )","v":""},null,null,null,null,{"$f":"IF(TRIM(DK9)=\"\", \"\", IF(VLOOKUP(DK9,'Footnotes list'!$D$9:$E$58,2,FALSE)=0,\"\",VLOOKUP(DK9,'Footnotes list'!$D$9:$E$58,2,FALSE) ) )","v":""},null,null,null,null,{"$f":"IF(TRIM(DP9)=\"\", \"\", IF(VLOOKUP(DP9,'Footnotes list'!$D$9:$E$58,2,FALSE)=0,\"\",VLOOKUP(DP9,'Footnotes list'!$D$9:$E$58,2,FALSE) ) )","v":""},null,null,null,null,{"$f":"IF(TRIM(DU9)=\"\", \"\", IF(VLOOKUP(DU9,'Footnotes list'!$D$9:$E$58,2,FALSE)=0,\"\",VLOOKUP(DU9,'Footnotes list'!$D$9:$E$58,2,FALSE) ) )","v":""},null,null,null,null,{"$f":"IF(TRIM(DZ9)=\"\", \"\", IF(VLOOKUP(DZ9,'Footnotes list'!$D$9:$E$58,2,FALSE)=0,\"\",VLOOKUP(DZ9,'Footnotes list'!$D$9:$E$58,2,FALSE) ) )","v":""},null,null,null,null,{"$f":"IF(TRIM(EE9)=\"\", \"\", IF(VLOOKUP(EE9,'Footnotes list'!$D$9:$E$58,2,FALSE)=0,\"\",VLOOKUP(EE9,'Footnotes list'!$D$9:$E$58,2,FALSE) ) )","v":""},null,null,null,null,{"$f":"IF(TRIM(EJ9)=\"\", \"\", IF(VLOOKUP(EJ9,'Footnotes list'!$D$9:$E$58,2,FALSE)=0,\"\",VLOOKUP(EJ9,'Footnotes list'!$D$9:$E$58,2,FALSE) ) )","v":""},null,null,null,null,{"$f":"IF(TRIM(EO9)=\"\", \"\", IF(VLOOKUP(EO9,'Footnotes list'!$D$9:$E$58,2,FALSE)=0,\"\",VLOOKUP(EO9,'Footnotes list'!$D$9:$E$58,2,FALSE) ) )","v":""},null,null,null,null,{"$f":"IF(TRIM(ET9)=\"\", \"\", IF(VLOOKUP(ET9,'Footnotes list'!$D$9:$E$58,2,FALSE)=0,\"\",VLOOKUP(ET9,'Footnotes list'!$D$9:$E$58,2,FALSE) ) )","v":""},null,null,null,null,{"$f":"IF(TRIM(EY9)=\"\", \"\", IF(VLOOKUP(EY9,'Footnotes list'!$D$9:$E$58,2,FALSE)=0,\"\",VLOOKUP(EY9,'Footnotes list'!$D$9:$E$58,2,FALSE) ) )","v":""}]
[null,null,"TOTAL","NMKT","non-market activities",null,null,null,null,null,{"$f":"IF(TRIM(J10)=\"\", \"\", IF(VLOOKUP(J10,'Footnotes list'!$D$9:$E$58,2,FALSE)=0,\"\",VLOOKUP(J10,'Footnotes list'!$D$9:$E$58,2,FALSE) ) )","v":""},null,null,null,null,{"$f":"IF(TRIM(O10)=\"\", \"\", IF(VLOOKUP(O10,'Footnotes list'!$D$9:$E$58,2,FALSE)=0,\"\",VLOOKUP(O10,'Footnotes list'!$D$9:$E$58,2,FALSE) ) )","v":""},null,null,null,null,{"$f":"IF(TRIM(T10)=\"\", \"\", IF(VLOOKUP(T10,'Footnotes list'!$D$9:$E$58,2,FALSE)=0,\"\",VLOOKUP(T10,'Footnotes list'!$D$9:$E$58,2,FALSE) ) )","v":""},null,null,null,null,{"$f":"IF(TRIM(Y10)=\"\", \"\", IF(VLOOKUP(Y10,'Footnotes list'!$D$9:$E$58,2,FALSE)=0,\"\",VLOOKUP(Y10,'Footnotes list'!$D$9:$E$58,2,FALSE) ) )","v":""},null,null,null,null,{"$f":"IF(TRIM(AD10)=\"\", \"\", IF(VLOOKUP(AD10,'Footnotes list'!$D$9:$E$58,2,FALSE)=0,\"\",VLOOKUP(AD10,'Footnotes list'!$D$9:$E$58,2,FALSE) ) )","v":""},null,null,null,null,{"$f":"IF(TRIM(AI10)=\"\", \"\", IF(VLOOKUP(AI10,'Footnotes list'!$D$9:$E$58,2,FALSE)=0,\"\",VLOOKUP(AI10,'Footnotes list'!$D$9:$E$58,2,FALSE) ) )","v":""},null,null,null,null,{"$f":"IF(TRIM(AN10)=\"\", \"\", IF(VLOOKUP(AN10,'Footnotes list'!$D$9:$E$58,2,FALSE)=0,\"\",VLOOKUP(AN10,'Footnotes list'!$D$9:$E$58,2,FALSE) ) )","v":""},null,null,null,null,{"$f":"IF(TRIM(AS10)=\"\", \"\", IF(VLOOKUP(AS10,'Footnotes list'!$D$9:$E$58,2,FALSE)=0,\"\",VLOOKUP(AS10,'Footnotes list'!$D$9:$E$58,2,FALSE) ) )","v":""},null,null,null,null,{"$f":"IF(TRIM(AX10)=\"\", \"\", IF(VLOOKUP(AX10,'Footnotes list'!$D$9:$E$58,2,FALSE)=0,\"\",VLOOKUP(AX10,'Footnotes list'!$D$9:$E$58,2,FALSE) ) )","v":""},null,null,null,null,{"$f":"IF(TRIM(BC10)=\"\", \"\", IF(VLOOKUP(BC10,'Footnotes list'!$D$9:$E$58,2,FALSE)=0,\"\",VLOOKUP(BC10,'Footnotes list'!$D$9:$E$58,2,FALSE) ) )","v":""},null,null,null,null,{"$f":"IF(TRIM(BH10)=\"\", \"\", IF(VLOOKUP(BH10,'Footnotes list'!$D$9:$E$58,2,FALSE)=0,\"\",VLOOKUP(BH10,'Footnotes list'!$D$9:$E$58,2,FALSE) ) )","v":""},null,null,null,null,{"$f":"IF(TRIM(BM10)=\"\", \"\", IF(VLOOKUP(BM10,'Footnotes list'!$D$9:$E$58,2,FALSE)=0,\"\",VLOOKUP(BM10,'Footnotes list'!$D$9:$E$58,2,FALSE) ) )","v":""},null,null,null,null,{"$f":"IF(TRIM(BR10)=\"\", \"\", IF(VLOOKUP(BR10,'Footnotes list'!$D$9:$E$58,2,FALSE)=0,\"\",VLOOKUP(BR10,'Footnotes list'!$D$9:$E$58,2,FALSE) ) )","v":""},null,null,null,null,{"$f":"IF(TRIM(BW10)=\"\", \"\", IF(VLOOKUP(BW10,'Footnotes list'!$D$9:$E$58,2,FALSE)=0,\"\",VLOOKUP(BW10,'Footnotes list'!$D$9:$E$58,2,FALSE) ) )","v":""},null,null,null,null,{"$f":"IF(TRIM(CB10)=\"\", \"\", IF(VLOOKUP(CB10,'Footnotes list'!$D$9:$E$58,2,FALSE)=0,\"\",VLOOKUP(CB10,'Footnotes list'!$D$9:$E$58,2,FALSE) ) )","v":""},null,null,null,null,{"$f":"IF(TRIM(CG10)=\"\", \"\", IF(VLOOKUP(CG10,'Footnotes list'!$D$9:$E$58,2,FALSE)=0,\"\",VLOOKUP(CG10,'Footnotes list'!$D$9:$E$58,2,FALSE) ) )","v":""},null,null,null,null,{"$f":"IF(TRIM(CL10)=\"\", \"\", IF(VLOOKUP(CL10,'Footnotes list'!$D$9:$E$58,2,FALSE)=0,\"\",VLOOKUP(CL10,'Footnotes list'!$D$9:$E$58,2,FALSE) ) )","v":""},null,null,null,null,{"$f":"IF(TRIM(CQ10)=\"\", \"\", IF(VLOOKUP(CQ10,'Footnotes list'!$D$9:$E$58,2,FALSE)=0,\"\",VLOOKUP(CQ10,'Footnotes list'!$D$9:$E$58,2,FALSE) ) )","v":""},null,null,null,null,{"$f":"IF(TRIM(CV10)=\"\", \"\", IF(VLOOKUP(CV10,'Footnotes list'!$D$9:$E$58,2,FALSE)=0,\"\",VLOOKUP(CV10,'Footnotes list'!$D$9:$E$58,2,FALSE) ) )","v":""},null,null,null,null,{"$f":"IF(TRIM(DA10)=\"\", \"\", IF(VLOOKUP(DA10,'Footnotes list'!$D$9:$E$58,2,FALSE)=0,\"\",VLOOKUP(DA10,'Footnotes list'!$D$9:$E$58,2,FALSE) ) )","v":""},null,null,null,null,{"$f":"IF(TRIM(DF10)=\"\", \"\", IF(VLOOKUP(DF10,'Footnotes list'!$D$9:$E$58,2,FALSE)=0,\"\",VLOOKUP(DF10,'Footnotes list'!$D$9:$E$58,2,FALSE) ) )","v":""},null,null,null,null,{"$f":"IF(TRIM(DK10)=\"\", \"\", IF(VLOOKUP(DK10,'Footnotes list'!$D$9:$E$58,2,FALSE)=0,\"\",VLOOKUP(DK10,'Footnotes list'!$D$9:$E$58,2,FALSE) ) )","v":""},null,null,null,null,{"$f":"IF(TRIM(DP10)=\"\", \"\", IF(VLOOKUP(DP10,'Footnotes list'!$D$9:$E$58,2,FALSE)=0,\"\",VLOOKUP(DP10,'Footnotes list'!$D$9:$E$58,2,FALSE) ) )","v":""},null,null,null,null,{"$f":"IF(TRIM(DU10)=\"\", \"\", IF(VLOOKUP(DU10,'Footnotes list'!$D$9:$E$58,2,FALSE)=0,\"\",VLOOKUP(DU10,'Footnotes list'!$D$9:$E$58,2,FALSE) ) )","v":""},null,null,null,null,{"$f":"IF(TRIM(DZ10)=\"\", \"\", IF(VLOOKUP(DZ10,'Footnotes list'!$D$9:$E$58,2,FALSE)=0,\"\",VLOOKUP(DZ10,'Footnotes list'!$D$9:$E$58,2,FALSE) ) )","v":""},null,null,null,null,{"$f":"IF(TRIM(EE10)=\"\", \"\", IF(VLOOKUP(EE10,'Footnotes list'!$D$9:$E$58,2,FALSE)=0,\"\",VLOOKUP(EE10,'Footnotes list'!$D$9:$E$58,2,FALSE) ) )","v":""},null,null,null,null,{"$f":"IF(TRIM(EJ10)=\"\", \"\", IF(VLOOKUP(EJ10,'Footnotes list'!$D$9:$E$58,2,FALSE)=0,\"\",VLOOKUP(EJ10,'Footnotes list'!$D$9:$E$58,2,FALSE) ) )","v":""},null,null,null,null,{"$f":"IF(TRIM(EO10)=\"\", \"\", IF(VLOOKUP(EO10,'Footnotes list'!$D$9:$E$58,2,FALSE)=0,\"\",VLOOKUP(EO10,'Footnotes list'!$D$9:$E$58,2,FALSE) ) )","v":""},null,null,null,null,{"$f":"IF(TRIM(ET10)=\"\", \"\", IF(VLOOKUP(ET10,'Footnotes list'!$D$9:$E$58,2,FALSE)=0,\"\",VLOOKUP(ET10,'Footnotes list'!$D$9:$E$58,2,FALSE) ) )","v":""},null,null,null,null,{"$f":"IF(TRIM(EY10)=\"\", \"\", IF(VLOOKUP(EY10,'Footnotes list'!$D$9:$E$58,2,FALSE)=0,\"\",VLOOKUP(EY10,'Footnotes list'!$D$9:$E$58,2,FALSE) ) )","v":""}]
[null,null,"TOTAL","OWN_USE","activities for own final use",null,null,null,null,null,{"$f":"IF(TRIM(J11)=\"\", \"\", IF(VLOOKUP(J11,'Footnotes list'!$D$9:$E$58,2,FALSE)=0,\"\",VLOOKUP(J11,'Footnotes list'!$D$9:$E$58,2,FALSE) ) )","v":""},null,null,null,null,{"$f":"IF(TRIM(O11)=\"\", \"\", IF(VLOOKUP(O11,'Footnotes list'!$D$9:$E$58,2,FALSE)=0,\"\",VLOOKUP(O11,'Footnotes list'!$D$9:$E$58,2,FALSE) ) )","v":""},null,null,null,null,{"$f":"IF(TRIM(T11)=\"\", \"\", IF(VLOOKUP(T11,'Footnotes list'!$D$9:$E$58,2,FALSE)=0,\"\",VLOOKUP(T11,'Footnotes list'!$D$9:$E$58,2,FALSE) ) )","v":""},null,null,null,null,{"$f":"IF(TRIM(Y11)=\"\", \"\", IF(VLOOKUP(Y11,'Footnotes list'!$D$9:$E$58,2,FALSE)=0,\"\",VLOOKUP(Y11,'Footnotes list'!$D$9:$E$58,2,FALSE) ) )","v":""},null,null,null,null,{"$f":"IF(TRIM(AD11)=\"\", \"\", IF(VLOOKUP(AD11,'Footnotes list'!$D$9:$E$58,2,FALSE)=0,\"\",VLOOKUP(AD11,'Footnotes list'!$D$9:$E$58,2,FALSE) ) )","v":""},null,null,null,null,{"$f":"IF(TRIM(AI11)=\"\", \"\", IF(VLOOKUP(AI11,'Footnotes list'!$D$9:$E$58,2,FALSE)=0,\"\",VLOOKUP(AI11,'Footnotes list'!$D$9:$E$58,2,FALSE) ) )","v":""},null,null,null,null,{"$f":"IF(TRIM(AN11)=\"\", \"\", IF(VLOOKUP(AN11,'Footnotes list'!$D$9:$E$58,2,FALSE)=0,\"\",VLOOKUP(AN11,'Footnotes list'!$D$9:$E$58,2,FALSE) ) )","v":""},null,null,null,null,{"$f":"IF(TRIM(AS11)=\"\", \"\", IF(VLOOKUP(AS11,'Footnotes list'!$D$9:$E$58,2,FALSE)=0,\"\",VLOOKUP(AS11,'Footnotes list'!$D$9:$E$58,2,FALSE) ) )","v":""},null,null,null,null,{"$f":"IF(TRIM(AX11)=\"\", \"\", IF(VLOOKUP(AX11,'Footnotes list'!$D$9:$E$58,2,FALSE)=0,\"\",VLOOKUP(AX11,'Footnotes list'!$D$9:$E$58,2,FALSE) ) )","v":""},null,null,null,null,{"$f":"IF(TRIM(BC11)=\"\", \"\", IF(VLOOKUP(BC11,'Footnotes list'!$D$9:$E$58,2,FALSE)=0,\"\",VLOOKUP(BC11,'Footnotes list'!$D$9:$E$58,2,FALSE) ) )","v":""},null,null,null,null,{"$f":"IF(TRIM(BH11)=\"\", \"\", IF(VLOOKUP(BH11,'Footnotes list'!$D$9:$E$58,2,FALSE)=0,\"\",VLOOKUP(BH11,'Footnotes list'!$D$9:$E$58,2,FALSE) ) )","v":""},null,null,null,null,{"$f":"IF(TRIM(BM11)=\"\", \"\", IF(VLOOKUP(BM11,'Footnotes list'!$D$9:$E$58,2,FALSE)=0,\"\",VLOOKUP(BM11,'Footnotes list'!$D$9:$E$58,2,FALSE) ) )","v":""},null,null,null,null,{"$f":"IF(TRIM(BR11)=\"\", \"\", IF(VLOOKUP(BR11,'Footnotes list'!$D$9:$E$58,2,FALSE)=0,\"\",VLOOKUP(BR11,'Footnotes list'!$D$9:$E$58,2,FALSE) ) )","v":""},null,null,null,null,{"$f":"IF(TRIM(BW11)=\"\", \"\", IF(VLOOKUP(BW11,'Footnotes list'!$D$9:$E$58,2,FALSE)=0,\"\",VLOOKUP(BW11,'Footnotes list'!$D$9:$E$58,2,FALSE) ) )","v":""},null,null,null,null,{"$f":"IF(TRIM(CB11)=\"\", \"\", IF(VLOOKUP(CB11,'Footnotes list'!$D$9:$E$58,2,FALSE)=0,\"\",VLOOKUP(CB11,'Footnotes list'!$D$9:$E$58,2,FALSE) ) )","v":""},null,null,null,null,{"$f":"IF(TRIM(CG11)=\"\", \"\", IF(VLOOKUP(CG11,'Footnotes list'!$D$9:$E$58,2,FALSE)=0,\"\",VLOOKUP(CG11,'Footnotes list'!$D$9:$E$58,2,FALSE) ) )","v":""},null,null,null,null,{"$f":"IF(TRIM(CL11)=\"\", \"\", IF(VLOOKUP(CL11,'Footnotes list'!$D$9:$E$58,2,FALSE)=0,\"\",VLOOKUP(CL11,'Footnotes list'!$D$9:$E$58,2,FALSE) ) )","v":""},null,null,null,null,{"$f":"IF(TRIM(CQ11)=\"\", \"\", IF(VLOOKUP(CQ11,'Footnotes list'!$D$9:$E$58,2,FALSE)=0,\"\",VLOOKUP(CQ11,'Footnotes list'!$D$9:$E$58,2,FALSE) ) )","v":""},null,null,null,null,{"$f":"IF(TRIM(CV11)=\"\", \"\", IF(VLOOKUP(CV11,'Footnotes list'!$D$9:$E$58,2,FALSE)=0,\"\",VLOOKUP(CV11,'Footnotes list'!$D$9:$E$58,2,FALSE) ) )","v":""},null,null,null,null,{"$f":"IF(TRIM(DA11)=\"\", \"\", IF(VLOOKUP(DA11,'Footnotes list'!$D$9:$E$58,2,FALSE)=0,\"\",VLOOKUP(DA11,'Footnotes list'!$D$9:$E$58,2,FALSE) ) )","v":""},null,null,null,null,{"$f":"IF(TRIM(DF11)=\"\", \"\", IF(VLOOKUP(DF11,'Footnotes list'!$D$9:$E$58,2,FALSE)=0,\"\",VLOOKUP(DF11,'Footnotes list'!$D$9:$E$58,2,FALSE) ) )","v":""},null,null,null,null,{"$f":"IF(TRIM(DK11)=\"\", \"\", IF(VLOOKUP(DK11,'Footnotes list'!$D$9:$E$58,2,FALSE)=0,\"\",VLOOKUP(DK11,'Footnotes list'!$D$9:$E$58,2,FALSE) ) )","v":""},null,null,null,null,{"$f":"IF(TRIM(DP11)=\"\", \"\", IF(VLOOKUP(DP11,'Footnotes list'!$D$9:$E$58,2,FALSE)=0,\"\",VLOOKUP(DP11,'Footnotes list'!$D$9:$E$58,2,FALSE) ) )","v":""},null,null,null,null,{"$f":"IF(TRIM(DU11)=\"\", \"\", IF(VLOOKUP(DU11,'Footnotes list'!$D$9:$E$58,2,FALSE)=0,\"\",VLOOKUP(DU11,'Footnotes list'!$D$9:$E$58,2,FALSE) ) )","v":""},null,null,null,null,{"$f":"IF(TRIM(DZ11)=\"\", \"\", IF(VLOOKUP(DZ11,'Footnotes list'!$D$9:$E$58,2,FALSE)=0,\"\",VLOOKUP(DZ11,'Footnotes list'!$D$9:$E$58,2,FALSE) ) )","v":""},null,null,null,null,{"$f":"IF(TRIM(EE11)=\"\", \"\", IF(VLOOKUP(EE11,'Footnotes list'!$D$9:$E$58,2,FALSE)=0,\"\",VLOOKUP(EE11,'Footnotes list'!$D$9:$E$58,2,FALSE) ) )","v":""},null,null,null,null,{"$f":"IF(TRIM(EJ11)=\"\", \"\", IF(VLOOKUP(EJ11,'Footnotes list'!$D$9:$E$58,2,FALSE)=0,\"\",VLOOKUP(EJ11,'Footnotes list'!$D$9:$E$58,2,FALSE) ) )","v":""},null,null,null,null,{"$f":"IF(TRIM(EO11)=\"\", \"\", IF(VLOOKUP(EO11,'Footnotes list'!$D$9:$E$58,2,FALSE)=0,\"\",VLOOKUP(EO11,'Footnotes list'!$D$9:$E$58,2,FALSE) ) )","v":""},null,null,null,null,{"$f":"IF(TRIM(ET11)=\"\", \"\", IF(VLOOKUP(ET11,'Footnotes list'!$D$9:$E$58,2,FALSE)=0,\"\",VLOOKUP(ET11,'Footnotes list'!$D$9:$E$58,2,FALSE) ) )","v":""},null,null,null,null,{"$f":"IF(TRIM(EY11)=\"\", \"\", IF(VLOOKUP(EY11,'Footnotes list'!$D$9:$E$58,2,FALSE)=0,\"\",VLOOKUP(EY11,'Footnotes list'!$D$9:$E$58,2,FALSE) ) )","v":""}]
[null,null,"TOTAL","MKT","market activities, including:",null,{"$f":"G19+G26+G33+G131+G138+G173+G201+G222+G264+G271+G313","v":0},null,null,null,{"$f":"IF(TRIM(J12)=\"\", \"\", IF(VLOOKUP(J12,'Footnotes list'!$D$9:$E$58,2,FALSE)=0,\"\",VLOOKUP(J12,'Footnotes list'!$D$9:$E$58,2,FALSE) ) )","v":""},null,null,null,null,{"$f":"IF(TRIM(O12)=\"\", \"\", IF(VLOOKUP(O12,'Footnotes list'!$D$9:$E$58,2,FALSE)=0,\"\",VLOOKUP(O12,'Footnotes list'!$D$9:$E$58,2,FALSE) ) )","v":""},{"$f":"Q19+Q26+Q33+Q131+Q138+Q173+Q201+Q222+Q264+Q271+Q313","v":0},null,null,null,{"$f":"IF(TRIM(T12)=\"\", \"\", IF(VLOOKUP(T12,'Footnotes list'!$D$9:$E$58,2,FALSE)=0,\"\",VLOOKUP(T12,'Footnotes list'!$D$9:$E$58,2,FALSE) ) )","v":""},{"$f":"V19+V26+V33+V131+V138+V173+V201+V222+V264+V271+V313","v":0},null,null,null,{"$f":"IF(TRIM(Y12)=\"\", \"\", IF(VLOOKUP(Y12,'Footnotes list'!$D$9:$E$58,2,FALSE)=0,\"\",VLOOKUP(Y12,'Footnotes list'!$D$9:$E$58,2,FALSE) ) )","v":""},{"$f":"AA19+AA26+AA33+AA131+AA138+AA173+AA201+AA222+AA264+AA271+AA313","v":0},null,null,null,{"$f":"IF(TRIM(AD12)=\"\", \"\", IF(VLOOKUP(AD12,'Footnotes list'!$D$9:$E$58,2,FALSE)=0,\"\",VLOOKUP(AD12,'Footnotes list'!$D$9:$E$58,2,FALSE) ) )","v":""},{"$f":"AF19+AF26+AF33+AF131+AF138+AF173+AF201+AF222+AF264+AF271+AF313","v":0},null,null,null,{"$f":"IF(TRIM(AI12)=\"\", \"\", IF(VLOOKUP(AI12,'Footnotes list'!$D$9:$E$58,2,FALSE)=0,\"\",VLOOKUP(AI12,'Footnotes list'!$D$9:$E$58,2,FALSE) ) )","v":""},{"$f":"AK19+AK26+AK33+AK131+AK138+AK173+AK201+AK222+AK264+AK271+AK313","v":0},null,null,null,{"$f":"IF(TRIM(AN12)=\"\", \"\", IF(VLOOKUP(AN12,'Footnotes list'!$D$9:$E$58,2,FALSE)=0,\"\",VLOOKUP(AN12,'Footnotes list'!$D$9:$E$58,2,FALSE) ) )","v":""},{"$f":"AP19+AP26+AP33+AP131+AP138+AP173+AP201+AP222+AP264+AP271+AP313","v":0},null,null,null,{"$f":"IF(TRIM(AS12)=\"\", \"\", IF(VLOOKUP(AS12,'Footnotes list'!$D$9:$E$58,2,FALSE)=0,\"\",VLOOKUP(AS12,'Footnotes list'!$D$9:$E$58,2,FALSE) ) )","v":""},null,null,null,null,{"$f":"IF(TRIM(AX12)=\"\", \"\", IF(VLOOKUP(AX12,'Footnotes list'!$D$9:$E$58,2,FALSE)=0,\"\",VLOOKUP(AX12,'Footnotes list'!$D$9:$E$58,2,FALSE) ) )","v":""},null,null,null,null,{"$f":"IF(TRIM(BC12)=\"\", \"\", IF(VLOOKUP(BC12,'Footnotes list'!$D$9:$E$58,2,FALSE)=0,\"\",VLOOKUP(BC12,'Footnotes list'!$D$9:$E$58,2,FALSE) ) )","v":""},null,null,null,null,{"$f":"IF(TRIM(BH12)=\"\", \"\", IF(VLOOKUP(BH12,'Footnotes list'!$D$9:$E$58,2,FALSE)=0,\"\",VLOOKUP(BH12,'Footnotes list'!$D$9:$E$58,2,FALSE) ) )","v":""},null,null,null,null,{"$f":"IF(TRIM(BM12)=\"\", \"\", IF(VLOOKUP(BM12,'Footnotes list'!$D$9:$E$58,2,FALSE)=0,\"\",VLOOKUP(BM12,'Footnotes list'!$D$9:$E$58,2,FALSE) ) )","v":""},{"$f":"G12+Q12+V12+AA12+AF12+AK12+AP12","v":0},null,null,null,{"$f":"IF(TRIM(BR12)=\"\", \"\", IF(VLOOKUP(BR12,'Footnotes list'!$D$9:$E$58,2,FALSE)=0,\"\",VLOOKUP(BR12,'Footnotes list'!$D$9:$E$58,2,FALSE) ) )","v":""},{"$f":"BT19+BT26+BT33+BT131+BT138+BT173+BT201+BT222+BT264+BT271+BT313","v":0},null,null,null,{"$f":"IF(TRIM(BW12)=\"\", \"\", IF(VLOOKUP(BW12,'Footnotes list'!$D$9:$E$58,2,FALSE)=0,\"\",VLOOKUP(BW12,'Footnotes list'!$D$9:$E$58,2,FALSE) ) )","v":""},{"$f":"BY19+BY26+BY33+BY131+BY138+BY173+BY201+BY222+BY264+BY271+BY313","v":0},null,null,null,{"$f":"IF(TRIM(CB12)=\"\", \"\", IF(VLOOKUP(CB12,'Footnotes list'!$D$9:$E$58,2,FALSE)=0,\"\",VLOOKUP(CB12,'Footnotes list'!$D$9:$E$58,2,FALSE) ) )","v":""},null,null,null,null,{"$f":"IF(TRIM(CG12)=\"\", \"\", IF(VLOOKUP(CG12,'Footnotes list'!$D$9:$E$58,2,FALSE)=0,\"\",VLOOKUP(CG12,'Footnotes list'!$D$9:$E$58,2,FALSE) ) )","v":""},null,null,null,null,{"$f":"IF(TRIM(CL12)=\"\", \"\", IF(VLOOKUP(CL12,'Footnotes list'!$D$9:$E$58,2,FALSE)=0,\"\",VLOOKUP(CL12,'Footnotes list'!$D$9:$E$58,2,FALSE) ) )","v":""},{"$f":"CN19+CN26+CN33+CN131+CN138+CN173+CN201+CN222+CN264+CN271+CN313","v":0},null,null,null,{"$f":"IF(TRIM(CQ12)=\"\", \"\", IF(VLOOKUP(CQ12,'Footnotes list'!$D$9:$E$58,2,FALSE)=0,\"\",VLOOKUP(CQ12,'Footnotes list'!$D$9:$E$58,2,FALSE) ) )","v":""},{"$f":"CS19+CS26+CS33+CS131+CS138+CS173+CS201+CS222+CS264+CS271+CS313","v":0},null,null,null,{"$f":"IF(TRIM(CV12)=\"\", \"\", IF(VLOOKUP(CV12,'Footnotes list'!$D$9:$E$58,2,FALSE)=0,\"\",VLOOKUP(CV12,'Footnotes list'!$D$9:$E$58,2,FALSE) ) )","v":""},{"$f":"CX19+CX26+CX33+CX131+CX138+CX173+CX201+CX222+CX264+CX271+CX313","v":0},null,null,null,{"$f":"IF(TRIM(DA12)=\"\", \"\", IF(VLOOKUP(DA12,'Footnotes list'!$D$9:$E$58,2,FALSE)=0,\"\",VLOOKUP(DA12,'Footnotes list'!$D$9:$E$58,2,FALSE) ) )","v":""},{"$f":"DC19+DC26+DC33+DC131+DC138+DC173+DC201+DC222+DC264+DC271+DC313","v":0},null,null,null,{"$f":"IF(TRIM(DF12)=\"\", \"\", IF(VLOOKUP(DF12,'Footnotes list'!$D$9:$E$58,2,FALSE)=0,\"\",VLOOKUP(DF12,'Footnotes list'!$D$9:$E$58,2,FALSE) ) )","v":""},{"$f":"DH19+DH26+DH33+DH131+DH138+DH173+DH201+DH222+DH264+DH271+DH313","v":0},null,null,null,{"$f":"IF(TRIM(DK12)=\"\", \"\", IF(VLOOKUP(DK12,'Footnotes list'!$D$9:$E$58,2,FALSE)=0,\"\",VLOOKUP(DK12,'Footnotes list'!$D$9:$E$58,2,FALSE) ) )","v":""},{"$f":"DM19+DM26+DM33+DM131+DM138+DM173+DM201+DM222+DM264+DM271+DM313","v":0},null,null,null,{"$f":"IF(TRIM(DP12)=\"\", \"\", IF(VLOOKUP(DP12,'Footnotes list'!$D$9:$E$58,2,FALSE)=0,\"\",VLOOKUP(DP12,'Footnotes list'!$D$9:$E$58,2,FALSE) ) )","v":""},null,null,null,null,{"$f":"IF(TRIM(DU12)=\"\", \"\", IF(VLOOKUP(DU12,'Footnotes list'!$D$9:$E$58,2,FALSE)=0,\"\",VLOOKUP(DU12,'Footnotes list'!$D$9:$E$58,2,FALSE) ) )","v":""},null,null,null,null,{"$f":"IF(TRIM(DZ12)=\"\", \"\", IF(VLOOKUP(DZ12,'Footnotes list'!$D$9:$E$58,2,FALSE)=0,\"\",VLOOKUP(DZ12,'Footnotes list'!$D$9:$E$58,2,FALSE) ) )","v":""},null,null,null,null,{"$f":"IF(TRIM(EE12)=\"\", \"\", IF(VLOOKUP(EE12,'Footnotes list'!$D$9:$E$58,2,FALSE)=0,\"\",VLOOKUP(EE12,'Footnotes list'!$D$9:$E$58,2,FALSE) ) )","v":""},null,null,null,null,{"$f":"IF(TRIM(EJ12)=\"\", \"\", IF(VLOOKUP(EJ12,'Footnotes list'!$D$9:$E$58,2,FALSE)=0,\"\",VLOOKUP(EJ12,'Footnotes list'!$D$9:$E$58,2,FALSE) ) )","v":""},{"$f":"DM12+DH12+CN12+BY12+BT12","v":0},null,null,null,{"$f":"IF(TRIM(EO12)=\"\", \"\", IF(VLOOKUP(EO12,'Footnotes list'!$D$9:$E$58,2,FALSE)=0,\"\",VLOOKUP(EO12,'Footnotes list'!$D$9:$E$58,2,FALSE) ) )","v":""},{"$f":"EL12+BO12","v":0},null,null,null,{"$f":"IF(TRIM(ET12)=\"\", \"\", IF(VLOOKUP(ET12,'Footnotes list'!$D$9:$E$58,2,FALSE)=0,\"\",VLOOKUP(ET12,'Footnotes list'!$D$9:$E$58,2,FALSE) ) )","v":""},null,null,null,null,{"$f":"IF(TRIM(EY12)=\"\", \"\", IF(VLOOKUP(EY12,'Footnotes list'!$D$9:$E$58,2,FALSE)=0,\"\",VLOOKUP(EY12,'Footnotes list'!$D$9:$E$58,2,FALSE) ) )","v":""}]
[null,null,"TOTAL","ES_CS","environmental specific services",null,null,null,null,null,{"$f":"IF(TRIM(J13)=\"\", \"\", IF(VLOOKUP(J13,'Footnotes list'!$D$9:$E$58,2,FALSE)=0,\"\",VLOOKUP(J13,'Footnotes list'!$D$9:$E$58,2,FALSE) ) )","v":""},null,null,null,null,{"$f":"IF(TRIM(O13)=\"\", \"\", IF(VLOOKUP(O13,'Footnotes list'!$D$9:$E$58,2,FALSE)=0,\"\",VLOOKUP(O13,'Footnotes list'!$D$9:$E$58,2,FALSE) ) )","v":""},null,null,null,null,{"$f":"IF(TRIM(T13)=\"\", \"\", IF(VLOOKUP(T13,'Footnotes list'!$D$9:$E$58,2,FALSE)=0,\"\",VLOOKUP(T13,'Footnotes list'!$D$9:$E$58,2,FALSE) ) )","v":""},null,null,null,null,{"$f":"IF(TRIM(Y13)=\"\", \"\", IF(VLOOKUP(Y13,'Footnotes list'!$D$9:$E$58,2,FALSE)=0,\"\",VLOOKUP(Y13,'Footnotes list'!$D$9:$E$58,2,FALSE) ) )","v":""},null,null,null,null,{"$f":"IF(TRIM(AD13)=\"\", \"\", IF(VLOOKUP(AD13,'Footnotes list'!$D$9:$E$58,2,FALSE)=0,\"\",VLOOKUP(AD13,'Footnotes list'!$D$9:$E$58,2,FALSE) ) )","v":""},null,null,null,null,{"$f":"IF(TRIM(AI13)=\"\", \"\", IF(VLOOKUP(AI13,'Footnotes list'!$D$9:$E$58,2,FALSE)=0,\"\",VLOOKUP(AI13,'Footnotes list'!$D$9:$E$58,2,FALSE) ) )","v":""},null,null,null,null,{"$f":"IF(TRIM(AN13)=\"\", \"\", IF(VLOOKUP(AN13,'Footnotes list'!$D$9:$E$58,2,FALSE)=0,\"\",VLOOKUP(AN13,'Footnotes list'!$D$9:$E$58,2,FALSE) ) )","v":""},null,null,null,null,{"$f":"IF(TRIM(AS13)=\"\", \"\", IF(VLOOKUP(AS13,'Footnotes list'!$D$9:$E$58,2,FALSE)=0,\"\",VLOOKUP(AS13,'Footnotes list'!$D$9:$E$58,2,FALSE) ) )","v":""},null,null,null,null,{"$f":"IF(TRIM(AX13)=\"\", \"\", IF(VLOOKUP(AX13,'Footnotes list'!$D$9:$E$58,2,FALSE)=0,\"\",VLOOKUP(AX13,'Footnotes list'!$D$9:$E$58,2,FALSE) ) )","v":""},null,null,null,null,{"$f":"IF(TRIM(BC13)=\"\", \"\", IF(VLOOKUP(BC13,'Footnotes list'!$D$9:$E$58,2,FALSE)=0,\"\",VLOOKUP(BC13,'Footnotes list'!$D$9:$E$58,2,FALSE) ) )","v":""},null,null,null,null,{"$f":"IF(TRIM(BH13)=\"\", \"\", IF(VLOOKUP(BH13,'Footnotes list'!$D$9:$E$58,2,FALSE)=0,\"\",VLOOKUP(BH13,'Footnotes list'!$D$9:$E$58,2,FALSE) ) )","v":""},null,null,null,null,{"$f":"IF(TRIM(BM13)=\"\", \"\", IF(VLOOKUP(BM13,'Footnotes list'!$D$9:$E$58,2,FALSE)=0,\"\",VLOOKUP(BM13,'Footnotes list'!$D$9:$E$58,2,FALSE) ) )","v":""},null,null,null,null,{"$f":"IF(TRIM(BR13)=\"\", \"\", IF(VLOOKUP(BR13,'Footnotes list'!$D$9:$E$58,2,FALSE)=0,\"\",VLOOKUP(BR13,'Footnotes list'!$D$9:$E$58,2,FALSE) ) )","v":""},null,null,null,null,{"$f":"IF(TRIM(BW13)=\"\", \"\", IF(VLOOKUP(BW13,'Footnotes list'!$D$9:$E$58,2,FALSE)=0,\"\",VLOOKUP(BW13,'Footnotes list'!$D$9:$E$58,2,FALSE) ) )","v":""},null,null,null,null,{"$f":"IF(TRIM(CB13)=\"\", \"\", IF(VLOOKUP(CB13,'Footnotes list'!$D$9:$E$58,2,FALSE)=0,\"\",VLOOKUP(CB13,'Footnotes list'!$D$9:$E$58,2,FALSE) ) )","v":""},null,null,null,null,{"$f":"IF(TRIM(CG13)=\"\", \"\", IF(VLOOKUP(CG13,'Footnotes list'!$D$9:$E$58,2,FALSE)=0,\"\",VLOOKUP(CG13,'Footnotes list'!$D$9:$E$58,2,FALSE) ) )","v":""},null,null,null,null,{"$f":"IF(TRIM(CL13)=\"\", \"\", IF(VLOOKUP(CL13,'Footnotes list'!$D$9:$E$58,2,FALSE)=0,\"\",VLOOKUP(CL13,'Footnotes list'!$D$9:$E$58,2,FALSE) ) )","v":""},null,null,null,null,{"$f":"IF(TRIM(CQ13)=\"\", \"\", IF(VLOOKUP(CQ13,'Footnotes list'!$D$9:$E$58,2,FALSE)=0,\"\",VLOOKUP(CQ13,'Footnotes list'!$D$9:$E$58,2,FALSE) ) )","v":""},null,null,null,null,{"$f":"IF(TRIM(CV13)=\"\", \"\", IF(VLOOKUP(CV13,'Footnotes list'!$D$9:$E$58,2,FALSE)=0,\"\",VLOOKUP(CV13,'Footnotes list'!$D$9:$E$58,2,FALSE) ) )","v":""},null,null,null,null,{"$f":"IF(TRIM(DA13)=\"\", \"\", IF(VLOOKUP(DA13,'Footnotes list'!$D$9:$E$58,2,FALSE)=0,\"\",VLOOKUP(DA13,'Footnotes list'!$D$9:$E$58,2,FALSE) ) )","v":""},null,null,null,null,{"$f":"IF(TRIM(DF13)=\"\", \"\", IF(VLOOKUP(DF13,'Footnotes list'!$D$9:$E$58,2,FALSE)=0,\"\",VLOOKUP(DF13,'Footnotes list'!$D$9:$E$58,2,FALSE) ) )","v":""},null,null,null,null,{"$f":"IF(TRIM(DK13)=\"\", \"\", IF(VLOOKUP(DK13,'Footnotes list'!$D$9:$E$58,2,FALSE)=0,\"\",VLOOKUP(DK13,'Footnotes list'!$D$9:$E$58,2,FALSE) ) )","v":""},null,null,null,null,{"$f":"IF(TRIM(DP13)=\"\", \"\", IF(VLOOKUP(DP13,'Footnotes list'!$D$9:$E$58,2,FALSE)=0,\"\",VLOOKUP(DP13,'Footnotes list'!$D$9:$E$58,2,FALSE) ) )","v":""},null,null,null,null,{"$f":"IF(TRIM(DU13)=\"\", \"\", IF(VLOOKUP(DU13,'Footnotes list'!$D$9:$E$58,2,FALSE)=0,\"\",VLOOKUP(DU13,'Footnotes list'!$D$9:$E$58,2,FALSE) ) )","v":""},null,null,null,null,{"$f":"IF(TRIM(DZ13)=\"\", \"\", IF(VLOOKUP(DZ13,'Footnotes list'!$D$9:$E$58,2,FALSE)=0,\"\",VLOOKUP(DZ13,'Footnotes list'!$D$9:$E$58,2,FALSE) ) )","v":""},null,null,null,null,{"$f":"IF(TRIM(EE13)=\"\", \"\", IF(VLOOKUP(EE13,'Footnotes list'!$D$9:$E$58,2,FALSE)=0,\"\",VLOOKUP(EE13,'Footnotes list'!$D$9:$E$58,2,FALSE) ) )","v":""},null,null,null,null,{"$f":"IF(TRIM(EJ13)=\"\", \"\", IF(VLOOKUP(EJ13,'Footnotes list'!$D$9:$E$58,2,FALSE)=0,\"\",VLOOKUP(EJ13,'Footnotes list'!$D$9:$E$58,2,FALSE) ) )","v":""},null,null,null,null,{"$f":"IF(TRIM(EO13)=\"\", \"\", IF(VLOOKUP(EO13,'Footnotes list'!$D$9:$E$58,2,FALSE)=0,\"\",VLOOKUP(EO13,'Footnotes list'!$D$9:$E$58,2,FALSE) ) )","v":""},null,null,null,null,{"$f":"IF(TRIM(ET13)=\"\", \"\", IF(VLOOKUP(ET13,'Footnotes list'!$D$9:$E$58,2,FALSE)=0,\"\",VLOOKUP(ET13,'Footnotes list'!$D$9:$E$58,2,FALSE) ) )","v":""},null,null,null,null,{"$f":"IF(TRIM(EY13)=\"\", \"\", IF(VLOOKUP(EY13,'Footnotes list'!$D$9:$E$58,2,FALSE)=0,\"\",VLOOKUP(EY13,'Footnotes list'!$D$9:$E$58,2,FALSE) ) )","v":""}]
[null,null,"TOTAL","C_REP","cleaner and resource efficient products",null,null,null,null,null,{"$f":"IF(TRIM(J14)=\"\", \"\", IF(VLOOKUP(J14,'Footnotes list'!$D$9:$E$58,2,FALSE)=0,\"\",VLOOKUP(J14,'Footnotes list'!$D$9:$E$58,2,FALSE) ) )","v":""},null,null,null,null,{"$f":"IF(TRIM(O14)=\"\", \"\", IF(VLOOKUP(O14,'Footnotes list'!$D$9:$E$58,2,FALSE)=0,\"\",VLOOKUP(O14,'Footnotes list'!$D$9:$E$58,2,FALSE) ) )","v":""},null,null,null,null,{"$f":"IF(TRIM(T14)=\"\", \"\", IF(VLOOKUP(T14,'Footnotes list'!$D$9:$E$58,2,FALSE)=0,\"\",VLOOKUP(T14,'Footnotes list'!$D$9:$E$58,2,FALSE) ) )","v":""},null,null,null,null,{"$f":"IF(TRIM(Y14)=\"\", \"\", IF(VLOOKUP(Y14,'Footnotes list'!$D$9:$E$58,2,FALSE)=0,\"\",VLOOKUP(Y14,'Footnotes list'!$D$9:$E$58,2,FALSE) ) )","v":""},null,null,null,null,{"$f":"IF(TRIM(AD14)=\"\", \"\", IF(VLOOKUP(AD14,'Footnotes list'!$D$9:$E$58,2,FALSE)=0,\"\",VLOOKUP(AD14,'Footnotes list'!$D$9:$E$58,2,FALSE) ) )","v":""},null,null,null,null,{"$f":"IF(TRIM(AI14)=\"\", \"\", IF(VLOOKUP(AI14,'Footnotes list'!$D$9:$E$58,2,FALSE)=0,\"\",VLOOKUP(AI14,'Footnotes list'!$D$9:$E$58,2,FALSE) ) )","v":""},null,null,null,null,{"$f":"IF(TRIM(AN14)=\"\", \"\", IF(VLOOKUP(AN14,'Footnotes list'!$D$9:$E$58,2,FALSE)=0,\"\",VLOOKUP(AN14,'Footnotes list'!$D$9:$E$58,2,FALSE) ) )","v":""},null,null,null,null,{"$f":"IF(TRIM(AS14)=\"\", \"\", IF(VLOOKUP(AS14,'Footnotes list'!$D$9:$E$58,2,FALSE)=0,\"\",VLOOKUP(AS14,'Footnotes list'!$D$9:$E$58,2,FALSE) ) )","v":""},null,null,null,null,{"$f":"IF(TRIM(AX14)=\"\", \"\", IF(VLOOKUP(AX14,'Footnotes list'!$D$9:$E$58,2,FALSE)=0,\"\",VLOOKUP(AX14,'Footnotes list'!$D$9:$E$58,2,FALSE) ) )","v":""},null,null,null,null,{"$f":"IF(TRIM(BC14)=\"\", \"\", IF(VLOOKUP(BC14,'Footnotes list'!$D$9:$E$58,2,FALSE)=0,\"\",VLOOKUP(BC14,'Footnotes list'!$D$9:$E$58,2,FALSE) ) )","v":""},null,null,null,null,{"$f":"IF(TRIM(BH14)=\"\", \"\", IF(VLOOKUP(BH14,'Footnotes list'!$D$9:$E$58,2,FALSE)=0,\"\",VLOOKUP(BH14,'Footnotes list'!$D$9:$E$58,2,FALSE) ) )","v":""},null,null,null,null,{"$f":"IF(TRIM(BM14)=\"\", \"\", IF(VLOOKUP(BM14,'Footnotes list'!$D$9:$E$58,2,FALSE)=0,\"\",VLOOKUP(BM14,'Footnotes list'!$D$9:$E$58,2,FALSE) ) )","v":""},null,null,null,null,{"$f":"IF(TRIM(BR14)=\"\", \"\", IF(VLOOKUP(BR14,'Footnotes list'!$D$9:$E$58,2,FALSE)=0,\"\",VLOOKUP(BR14,'Footnotes list'!$D$9:$E$58,2,FALSE) ) )","v":""},null,null,null,null,{"$f":"IF(TRIM(BW14)=\"\", \"\", IF(VLOOKUP(BW14,'Footnotes list'!$D$9:$E$58,2,FALSE)=0,\"\",VLOOKUP(BW14,'Footnotes list'!$D$9:$E$58,2,FALSE) ) )","v":""},null,null,null,null,{"$f":"IF(TRIM(CB14)=\"\", \"\", IF(VLOOKUP(CB14,'Footnotes list'!$D$9:$E$58,2,FALSE)=0,\"\",VLOOKUP(CB14,'Footnotes list'!$D$9:$E$58,2,FALSE) ) )","v":""},null,null,null,null,{"$f":"IF(TRIM(CG14)=\"\", \"\", IF(VLOOKUP(CG14,'Footnotes list'!$D$9:$E$58,2,FALSE)=0,\"\",VLOOKUP(CG14,'Footnotes list'!$D$9:$E$58,2,FALSE) ) )","v":""},null,null,null,null,{"$f":"IF(TRIM(CL14)=\"\", \"\", IF(VLOOKUP(CL14,'Footnotes list'!$D$9:$E$58,2,FALSE)=0,\"\",VLOOKUP(CL14,'Footnotes list'!$D$9:$E$58,2,FALSE) ) )","v":""},null,null,null,null,{"$f":"IF(TRIM(CQ14)=\"\", \"\", IF(VLOOKUP(CQ14,'Footnotes list'!$D$9:$E$58,2,FALSE)=0,\"\",VLOOKUP(CQ14,'Footnotes list'!$D$9:$E$58,2,FALSE) ) )","v":""},null,null,null,null,{"$f":"IF(TRIM(CV14)=\"\", \"\", IF(VLOOKUP(CV14,'Footnotes list'!$D$9:$E$58,2,FALSE)=0,\"\",VLOOKUP(CV14,'Footnotes list'!$D$9:$E$58,2,FALSE) ) )","v":""},null,null,null,null,{"$f":"IF(TRIM(DA14)=\"\", \"\", IF(VLOOKUP(DA14,'Footnotes list'!$D$9:$E$58,2,FALSE)=0,\"\",VLOOKUP(DA14,'Footnotes list'!$D$9:$E$58,2,FALSE) ) )","v":""},null,null,null,null,{"$f":"IF(TRIM(DF14)=\"\", \"\", IF(VLOOKUP(DF14,'Footnotes list'!$D$9:$E$58,2,FALSE)=0,\"\",VLOOKUP(DF14,'Footnotes list'!$D$9:$E$58,2,FALSE) ) )","v":""},null,null,null,null,{"$f":"IF(TRIM(DK14)=\"\", \"\", IF(VLOOKUP(DK14,'Footnotes list'!$D$9:$E$58,2,FALSE)=0,\"\",VLOOKUP(DK14,'Footnotes list'!$D$9:$E$58,2,FALSE) ) )","v":""},null,null,null,null,{"$f":"IF(TRIM(DP14)=\"\", \"\", IF(VLOOKUP(DP14,'Footnotes list'!$D$9:$E$58,2,FALSE)=0,\"\",VLOOKUP(DP14,'Footnotes list'!$D$9:$E$58,2,FALSE) ) )","v":""},null,null,null,null,{"$f":"IF(TRIM(DU14)=\"\", \"\", IF(VLOOKUP(DU14,'Footnotes list'!$D$9:$E$58,2,FALSE)=0,\"\",VLOOKUP(DU14,'Footnotes list'!$D$9:$E$58,2,FALSE) ) )","v":""},null,null,null,null,{"$f":"IF(TRIM(DZ14)=\"\", \"\", IF(VLOOKUP(DZ14,'Footnotes list'!$D$9:$E$58,2,FALSE)=0,\"\",VLOOKUP(DZ14,'Footnotes list'!$D$9:$E$58,2,FALSE) ) )","v":""},null,null,null,null,{"$f":"IF(TRIM(EE14)=\"\", \"\", IF(VLOOKUP(EE14,'Footnotes list'!$D$9:$E$58,2,FALSE)=0,\"\",VLOOKUP(EE14,'Footnotes list'!$D$9:$E$58,2,FALSE) ) )","v":""},null,null,null,null,{"$f":"IF(TRIM(EJ14)=\"\", \"\", IF(VLOOKUP(EJ14,'Footnotes list'!$D$9:$E$58,2,FALSE)=0,\"\",VLOOKUP(EJ14,'Footnotes list'!$D$9:$E$58,2,FALSE) ) )","v":""},null,null,null,null,{"$f":"IF(TRIM(EO14)=\"\", \"\", IF(VLOOKUP(EO14,'Footnotes list'!$D$9:$E$58,2,FALSE)=0,\"\",VLOOKUP(EO14,'Footnotes list'!$D$9:$E$58,2,FALSE) ) )","v":""},null,null,null,null,{"$f":"IF(TRIM(ET14)=\"\", \"\", IF(VLOOKUP(ET14,'Footnotes list'!$D$9:$E$58,2,FALSE)=0,\"\",VLOOKUP(ET14,'Footnotes list'!$D$9:$E$58,2,FALSE) ) )","v":""},null,null,null,null,{"$f":"IF(TRIM(EY14)=\"\", \"\", IF(VLOOKUP(EY14,'Footnotes list'!$D$9:$E$58,2,FALSE)=0,\"\",VLOOKUP(EY14,'Footnotes list'!$D$9:$E$58,2,FALSE) ) )","v":""}]
[null,null,"A","TOT_EGSS","Total A - Agriculture, forestry and fishing, of which:",null,null,null,null,null,{"$f":"IF(TRIM(J15)=\"\", \"\", IF(VLOOKUP(J15,'Footnotes list'!$D$9:$E$58,2,FALSE)=0,\"\",VLOOKUP(J15,'Footnotes list'!$D$9:$E$58,2,FALSE) ) )","v":""},null,null,null,null,{"$f":"IF(TRIM(O15)=\"\", \"\", IF(VLOOKUP(O15,'Footnotes list'!$D$9:$E$58,2,FALSE)=0,\"\",VLOOKUP(O15,'Footnotes list'!$D$9:$E$58,2,FALSE) ) )","v":""},null,null,null,null,{"$f":"IF(TRIM(T15)=\"\", \"\", IF(VLOOKUP(T15,'Footnotes list'!$D$9:$E$58,2,FALSE)=0,\"\",VLOOKUP(T15,'Footnotes list'!$D$9:$E$58,2,FALSE) ) )","v":""},null,null,null,null,{"$f":"IF(TRIM(Y15)=\"\", \"\", IF(VLOOKUP(Y15,'Footnotes list'!$D$9:$E$58,2,FALSE)=0,\"\",VLOOKUP(Y15,'Footnotes list'!$D$9:$E$58,2,FALSE) ) )","v":""},null,null,null,null,{"$f":"IF(TRIM(AD15)=\"\", \"\", IF(VLOOKUP(AD15,'Footnotes list'!$D$9:$E$58,2,FALSE)=0,\"\",VLOOKUP(AD15,'Footnotes list'!$D$9:$E$58,2,FALSE) ) )","v":""},null,null,null,null,{"$f":"IF(TRIM(AI15)=\"\", \"\", IF(VLOOKUP(AI15,'Footnotes list'!$D$9:$E$58,2,FALSE)=0,\"\",VLOOKUP(AI15,'Footnotes list'!$D$9:$E$58,2,FALSE) ) )","v":""},null,null,null,null,{"$f":"IF(TRIM(AN15)=\"\", \"\", IF(VLOOKUP(AN15,'Footnotes list'!$D$9:$E$58,2,FALSE)=0,\"\",VLOOKUP(AN15,'Footnotes list'!$D$9:$E$58,2,FALSE) ) )","v":""},null,null,null,null,{"$f":"IF(TRIM(AS15)=\"\", \"\", IF(VLOOKUP(AS15,'Footnotes list'!$D$9:$E$58,2,FALSE)=0,\"\",VLOOKUP(AS15,'Footnotes list'!$D$9:$E$58,2,FALSE) ) )","v":""},null,null,null,null,{"$f":"IF(TRIM(AX15)=\"\", \"\", IF(VLOOKUP(AX15,'Footnotes list'!$D$9:$E$58,2,FALSE)=0,\"\",VLOOKUP(AX15,'Footnotes list'!$D$9:$E$58,2,FALSE) ) )","v":""},null,null,null,null,{"$f":"IF(TRIM(BC15)=\"\", \"\", IF(VLOOKUP(BC15,'Footnotes list'!$D$9:$E$58,2,FALSE)=0,\"\",VLOOKUP(BC15,'Footnotes list'!$D$9:$E$58,2,FALSE) ) )","v":""},null,null,null,null,{"$f":"IF(TRIM(BH15)=\"\", \"\", IF(VLOOKUP(BH15,'Footnotes list'!$D$9:$E$58,2,FALSE)=0,\"\",VLOOKUP(BH15,'Footnotes list'!$D$9:$E$58,2,FALSE) ) )","v":""},null,null,null,null,{"$f":"IF(TRIM(BM15)=\"\", \"\", IF(VLOOKUP(BM15,'Footnotes list'!$D$9:$E$58,2,FALSE)=0,\"\",VLOOKUP(BM15,'Footnotes list'!$D$9:$E$58,2,FALSE) ) )","v":""},null,null,null,null,{"$f":"IF(TRIM(BR15)=\"\", \"\", IF(VLOOKUP(BR15,'Footnotes list'!$D$9:$E$58,2,FALSE)=0,\"\",VLOOKUP(BR15,'Footnotes list'!$D$9:$E$58,2,FALSE) ) )","v":""},null,null,null,null,{"$f":"IF(TRIM(BW15)=\"\", \"\", IF(VLOOKUP(BW15,'Footnotes list'!$D$9:$E$58,2,FALSE)=0,\"\",VLOOKUP(BW15,'Footnotes list'!$D$9:$E$58,2,FALSE) ) )","v":""},null,null,null,null,{"$f":"IF(TRIM(CB15)=\"\", \"\", IF(VLOOKUP(CB15,'Footnotes list'!$D$9:$E$58,2,FALSE)=0,\"\",VLOOKUP(CB15,'Footnotes list'!$D$9:$E$58,2,FALSE) ) )","v":""},null,null,null,null,{"$f":"IF(TRIM(CG15)=\"\", \"\", IF(VLOOKUP(CG15,'Footnotes list'!$D$9:$E$58,2,FALSE)=0,\"\",VLOOKUP(CG15,'Footnotes list'!$D$9:$E$58,2,FALSE) ) )","v":""},null,null,null,null,{"$f":"IF(TRIM(CL15)=\"\", \"\", IF(VLOOKUP(CL15,'Footnotes list'!$D$9:$E$58,2,FALSE)=0,\"\",VLOOKUP(CL15,'Footnotes list'!$D$9:$E$58,2,FALSE) ) )","v":""},null,null,null,null,{"$f":"IF(TRIM(CQ15)=\"\", \"\", IF(VLOOKUP(CQ15,'Footnotes list'!$D$9:$E$58,2,FALSE)=0,\"\",VLOOKUP(CQ15,'Footnotes list'!$D$9:$E$58,2,FALSE) ) )","v":""},null,null,null,null,{"$f":"IF(TRIM(CV15)=\"\", \"\", IF(VLOOKUP(CV15,'Footnotes list'!$D$9:$E$58,2,FALSE)=0,\"\",VLOOKUP(CV15,'Footnotes list'!$D$9:$E$58,2,FALSE) ) )","v":""},null,null,null,null,{"$f":"IF(TRIM(DA15)=\"\", \"\", IF(VLOOKUP(DA15,'Footnotes list'!$D$9:$E$58,2,FALSE)=0,\"\",VLOOKUP(DA15,'Footnotes list'!$D$9:$E$58,2,FALSE) ) )","v":""},null,null,null,null,{"$f":"IF(TRIM(DF15)=\"\", \"\", IF(VLOOKUP(DF15,'Footnotes list'!$D$9:$E$58,2,FALSE)=0,\"\",VLOOKUP(DF15,'Footnotes list'!$D$9:$E$58,2,FALSE) ) )","v":""},null,null,null,null,{"$f":"IF(TRIM(DK15)=\"\", \"\", IF(VLOOKUP(DK15,'Footnotes list'!$D$9:$E$58,2,FALSE)=0,\"\",VLOOKUP(DK15,'Footnotes list'!$D$9:$E$58,2,FALSE) ) )","v":""},null,null,null,null,{"$f":"IF(TRIM(DP15)=\"\", \"\", IF(VLOOKUP(DP15,'Footnotes list'!$D$9:$E$58,2,FALSE)=0,\"\",VLOOKUP(DP15,'Footnotes list'!$D$9:$E$58,2,FALSE) ) )","v":""},null,null,null,null,{"$f":"IF(TRIM(DU15)=\"\", \"\", IF(VLOOKUP(DU15,'Footnotes list'!$D$9:$E$58,2,FALSE)=0,\"\",VLOOKUP(DU15,'Footnotes list'!$D$9:$E$58,2,FALSE) ) )","v":""},null,null,null,null,{"$f":"IF(TRIM(DZ15)=\"\", \"\", IF(VLOOKUP(DZ15,'Footnotes list'!$D$9:$E$58,2,FALSE)=0,\"\",VLOOKUP(DZ15,'Footnotes list'!$D$9:$E$58,2,FALSE) ) )","v":""},null,null,null,null,{"$f":"IF(TRIM(EE15)=\"\", \"\", IF(VLOOKUP(EE15,'Footnotes list'!$D$9:$E$58,2,FALSE)=0,\"\",VLOOKUP(EE15,'Footnotes list'!$D$9:$E$58,2,FALSE) ) )","v":""},null,null,null,null,{"$f":"IF(TRIM(EJ15)=\"\", \"\", IF(VLOOKUP(EJ15,'Footnotes list'!$D$9:$E$58,2,FALSE)=0,\"\",VLOOKUP(EJ15,'Footnotes list'!$D$9:$E$58,2,FALSE) ) )","v":""},null,null,null,null,{"$f":"IF(TRIM(EO15)=\"\", \"\", IF(VLOOKUP(EO15,'Footnotes list'!$D$9:$E$58,2,FALSE)=0,\"\",VLOOKUP(EO15,'Footnotes list'!$D$9:$E$58,2,FALSE) ) )","v":""},null,null,null,null,{"$f":"IF(TRIM(ET15)=\"\", \"\", IF(VLOOKUP(ET15,'Footnotes list'!$D$9:$E$58,2,FALSE)=0,\"\",VLOOKUP(ET15,'Footnotes list'!$D$9:$E$58,2,FALSE) ) )","v":""},null,null,null,null,{"$f":"IF(TRIM(EY15)=\"\", \"\", IF(VLOOKUP(EY15,'Footnotes list'!$D$9:$E$58,2,FALSE)=0,\"\",VLOOKUP(EY15,'Footnotes list'!$D$9:$E$58,2,FALSE) ) )","v":""}]
[null,null,"A","ANC","ancillary activities",null,null,null,null,null,{"$f":"IF(TRIM(J16)=\"\", \"\", IF(VLOOKUP(J16,'Footnotes list'!$D$9:$E$58,2,FALSE)=0,\"\",VLOOKUP(J16,'Footnotes list'!$D$9:$E$58,2,FALSE) ) )","v":""},null,null,null,null,{"$f":"IF(TRIM(O16)=\"\", \"\", IF(VLOOKUP(O16,'Footnotes list'!$D$9:$E$58,2,FALSE)=0,\"\",VLOOKUP(O16,'Footnotes list'!$D$9:$E$58,2,FALSE) ) )","v":""},null,null,null,null,{"$f":"IF(TRIM(T16)=\"\", \"\", IF(VLOOKUP(T16,'Footnotes list'!$D$9:$E$58,2,FALSE)=0,\"\",VLOOKUP(T16,'Footnotes list'!$D$9:$E$58,2,FALSE) ) )","v":""},null,null,null,null,{"$f":"IF(TRIM(Y16)=\"\", \"\", IF(VLOOKUP(Y16,'Footnotes list'!$D$9:$E$58,2,FALSE)=0,\"\",VLOOKUP(Y16,'Footnotes list'!$D$9:$E$58,2,FALSE) ) )","v":""},null,null,null,null,{"$f":"IF(TRIM(AD16)=\"\", \"\", IF(VLOOKUP(AD16,'Footnotes list'!$D$9:$E$58,2,FALSE)=0,\"\",VLOOKUP(AD16,'Footnotes list'!$D$9:$E$58,2,FALSE) ) )","v":""},null,null,null,null,{"$f":"IF(TRIM(AI16)=\"\", \"\", IF(VLOOKUP(AI16,'Footnotes list'!$D$9:$E$58,2,FALSE)=0,\"\",VLOOKUP(AI16,'Footnotes list'!$D$9:$E$58,2,FALSE) ) )","v":""},null,null,null,null,{"$f":"IF(TRIM(AN16)=\"\", \"\", IF(VLOOKUP(AN16,'Footnotes list'!$D$9:$E$58,2,FALSE)=0,\"\",VLOOKUP(AN16,'Footnotes list'!$D$9:$E$58,2,FALSE) ) )","v":""},null,null,null,null,{"$f":"IF(TRIM(AS16)=\"\", \"\", IF(VLOOKUP(AS16,'Footnotes list'!$D$9:$E$58,2,FALSE)=0,\"\",VLOOKUP(AS16,'Footnotes list'!$D$9:$E$58,2,FALSE) ) )","v":""},null,null,null,null,{"$f":"IF(TRIM(AX16)=\"\", \"\", IF(VLOOKUP(AX16,'Footnotes list'!$D$9:$E$58,2,FALSE)=0,\"\",VLOOKUP(AX16,'Footnotes list'!$D$9:$E$58,2,FALSE) ) )","v":""},null,null,null,null,{"$f":"IF(TRIM(BC16)=\"\", \"\", IF(VLOOKUP(BC16,'Footnotes list'!$D$9:$E$58,2,FALSE)=0,\"\",VLOOKUP(BC16,'Footnotes list'!$D$9:$E$58,2,FALSE) ) )","v":""},null,null,null,null,{"$f":"IF(TRIM(BH16)=\"\", \"\", IF(VLOOKUP(BH16,'Footnotes list'!$D$9:$E$58,2,FALSE)=0,\"\",VLOOKUP(BH16,'Footnotes list'!$D$9:$E$58,2,FALSE) ) )","v":""},null,null,null,null,{"$f":"IF(TRIM(BM16)=\"\", \"\", IF(VLOOKUP(BM16,'Footnotes list'!$D$9:$E$58,2,FALSE)=0,\"\",VLOOKUP(BM16,'Footnotes list'!$D$9:$E$58,2,FALSE) ) )","v":""},null,null,null,null,{"$f":"IF(TRIM(BR16)=\"\", \"\", IF(VLOOKUP(BR16,'Footnotes list'!$D$9:$E$58,2,FALSE)=0,\"\",VLOOKUP(BR16,'Footnotes list'!$D$9:$E$58,2,FALSE) ) )","v":""},null,null,null,null,{"$f":"IF(TRIM(BW16)=\"\", \"\", IF(VLOOKUP(BW16,'Footnotes list'!$D$9:$E$58,2,FALSE)=0,\"\",VLOOKUP(BW16,'Footnotes list'!$D$9:$E$58,2,FALSE) ) )","v":""},null,null,null,null,{"$f":"IF(TRIM(CB16)=\"\", \"\", IF(VLOOKUP(CB16,'Footnotes list'!$D$9:$E$58,2,FALSE)=0,\"\",VLOOKUP(CB16,'Footnotes list'!$D$9:$E$58,2,FALSE) ) )","v":""},null,null,null,null,{"$f":"IF(TRIM(CG16)=\"\", \"\", IF(VLOOKUP(CG16,'Footnotes list'!$D$9:$E$58,2,FALSE)=0,\"\",VLOOKUP(CG16,'Footnotes list'!$D$9:$E$58,2,FALSE) ) )","v":""},null,null,null,null,{"$f":"IF(TRIM(CL16)=\"\", \"\", IF(VLOOKUP(CL16,'Footnotes list'!$D$9:$E$58,2,FALSE)=0,\"\",VLOOKUP(CL16,'Footnotes list'!$D$9:$E$58,2,FALSE) ) )","v":""},null,null,null,null,{"$f":"IF(TRIM(CQ16)=\"\", \"\", IF(VLOOKUP(CQ16,'Footnotes list'!$D$9:$E$58,2,FALSE)=0,\"\",VLOOKUP(CQ16,'Footnotes list'!$D$9:$E$58,2,FALSE) ) )","v":""},null,null,null,null,{"$f":"IF(TRIM(CV16)=\"\", \"\", IF(VLOOKUP(CV16,'Footnotes list'!$D$9:$E$58,2,FALSE)=0,\"\",VLOOKUP(CV16,'Footnotes list'!$D$9:$E$58,2,FALSE) ) )","v":""},null,null,null,null,{"$f":"IF(TRIM(DA16)=\"\", \"\", IF(VLOOKUP(DA16,'Footnotes list'!$D$9:$E$58,2,FALSE)=0,\"\",VLOOKUP(DA16,'Footnotes list'!$D$9:$E$58,2,FALSE) ) )","v":""},null,null,null,null,{"$f":"IF(TRIM(DF16)=\"\", \"\", IF(VLOOKUP(DF16,'Footnotes list'!$D$9:$E$58,2,FALSE)=0,\"\",VLOOKUP(DF16,'Footnotes list'!$D$9:$E$58,2,FALSE) ) )","v":""},null,null,null,null,{"$f":"IF(TRIM(DK16)=\"\", \"\", IF(VLOOKUP(DK16,'Footnotes list'!$D$9:$E$58,2,FALSE)=0,\"\",VLOOKUP(DK16,'Footnotes list'!$D$9:$E$58,2,FALSE) ) )","v":""},null,null,null,null,{"$f":"IF(TRIM(DP16)=\"\", \"\", IF(VLOOKUP(DP16,'Footnotes list'!$D$9:$E$58,2,FALSE)=0,\"\",VLOOKUP(DP16,'Footnotes list'!$D$9:$E$58,2,FALSE) ) )","v":""},null,null,null,null,{"$f":"IF(TRIM(DU16)=\"\", \"\", IF(VLOOKUP(DU16,'Footnotes list'!$D$9:$E$58,2,FALSE)=0,\"\",VLOOKUP(DU16,'Footnotes list'!$D$9:$E$58,2,FALSE) ) )","v":""},null,null,null,null,{"$f":"IF(TRIM(DZ16)=\"\", \"\", IF(VLOOKUP(DZ16,'Footnotes list'!$D$9:$E$58,2,FALSE)=0,\"\",VLOOKUP(DZ16,'Footnotes list'!$D$9:$E$58,2,FALSE) ) )","v":""},null,null,null,null,{"$f":"IF(TRIM(EE16)=\"\", \"\", IF(VLOOKUP(EE16,'Footnotes list'!$D$9:$E$58,2,FALSE)=0,\"\",VLOOKUP(EE16,'Footnotes list'!$D$9:$E$58,2,FALSE) ) )","v":""},null,null,null,null,{"$f":"IF(TRIM(EJ16)=\"\", \"\", IF(VLOOKUP(EJ16,'Footnotes list'!$D$9:$E$58,2,FALSE)=0,\"\",VLOOKUP(EJ16,'Footnotes list'!$D$9:$E$58,2,FALSE) ) )","v":""},null,null,null,null,{"$f":"IF(TRIM(EO16)=\"\", \"\", IF(VLOOKUP(EO16,'Footnotes list'!$D$9:$E$58,2,FALSE)=0,\"\",VLOOKUP(EO16,'Footnotes list'!$D$9:$E$58,2,FALSE) ) )","v":""},null,null,null,null,{"$f":"IF(TRIM(ET16)=\"\", \"\", IF(VLOOKUP(ET16,'Footnotes list'!$D$9:$E$58,2,FALSE)=0,\"\",VLOOKUP(ET16,'Footnotes list'!$D$9:$E$58,2,FALSE) ) )","v":""},null,null,null,null,{"$f":"IF(TRIM(EY16)=\"\", \"\", IF(VLOOKUP(EY16,'Footnotes list'!$D$9:$E$58,2,FALSE)=0,\"\",VLOOKUP(EY16,'Footnotes list'!$D$9:$E$58,2,FALSE) ) )","v":""}]
[null,null,"A","NMKT","non-market activities",null,null,null,null,null,{"$f":"IF(TRIM(J17)=\"\", \"\", IF(VLOOKUP(J17,'Footnotes list'!$D$9:$E$58,2,FALSE)=0,\"\",VLOOKUP(J17,'Footnotes list'!$D$9:$E$58,2,FALSE) ) )","v":""},null,null,null,null,{"$f":"IF(TRIM(O17)=\"\", \"\", IF(VLOOKUP(O17,'Footnotes list'!$D$9:$E$58,2,FALSE)=0,\"\",VLOOKUP(O17,'Footnotes list'!$D$9:$E$58,2,FALSE) ) )","v":""},null,null,null,null,{"$f":"IF(TRIM(T17)=\"\", \"\", IF(VLOOKUP(T17,'Footnotes list'!$D$9:$E$58,2,FALSE)=0,\"\",VLOOKUP(T17,'Footnotes list'!$D$9:$E$58,2,FALSE) ) )","v":""},null,null,null,null,{"$f":"IF(TRIM(Y17)=\"\", \"\", IF(VLOOKUP(Y17,'Footnotes list'!$D$9:$E$58,2,FALSE)=0,\"\",VLOOKUP(Y17,'Footnotes list'!$D$9:$E$58,2,FALSE) ) )","v":""},null,null,null,null,{"$f":"IF(TRIM(AD17)=\"\", \"\", IF(VLOOKUP(AD17,'Footnotes list'!$D$9:$E$58,2,FALSE)=0,\"\",VLOOKUP(AD17,'Footnotes list'!$D$9:$E$58,2,FALSE) ) )","v":""},null,null,null,null,{"$f":"IF(TRIM(AI17)=\"\", \"\", IF(VLOOKUP(AI17,'Footnotes list'!$D$9:$E$58,2,FALSE)=0,\"\",VLOOKUP(AI17,'Footnotes list'!$D$9:$E$58,2,FALSE) ) )","v":""},null,null,null,null,{"$f":"IF(TRIM(AN17)=\"\", \"\", IF(VLOOKUP(AN17,'Footnotes list'!$D$9:$E$58,2,FALSE)=0,\"\",VLOOKUP(AN17,'Footnotes list'!$D$9:$E$58,2,FALSE) ) )","v":""},null,null,null,null,{"$f":"IF(TRIM(AS17)=\"\", \"\", IF(VLOOKUP(AS17,'Footnotes list'!$D$9:$E$58,2,FALSE)=0,\"\",VLOOKUP(AS17,'Footnotes list'!$D$9:$E$58,2,FALSE) ) )","v":""},null,null,null,null,{"$f":"IF(TRIM(AX17)=\"\", \"\", IF(VLOOKUP(AX17,'Footnotes list'!$D$9:$E$58,2,FALSE)=0,\"\",VLOOKUP(AX17,'Footnotes list'!$D$9:$E$58,2,FALSE) ) )","v":""},null,null,null,null,{"$f":"IF(TRIM(BC17)=\"\", \"\", IF(VLOOKUP(BC17,'Footnotes list'!$D$9:$E$58,2,FALSE)=0,\"\",VLOOKUP(BC17,'Footnotes list'!$D$9:$E$58,2,FALSE) ) )","v":""},null,null,null,null,{"$f":"IF(TRIM(BH17)=\"\", \"\", IF(VLOOKUP(BH17,'Footnotes list'!$D$9:$E$58,2,FALSE)=0,\"\",VLOOKUP(BH17,'Footnotes list'!$D$9:$E$58,2,FALSE) ) )","v":""},null,null,null,null,{"$f":"IF(TRIM(BM17)=\"\", \"\", IF(VLOOKUP(BM17,'Footnotes list'!$D$9:$E$58,2,FALSE)=0,\"\",VLOOKUP(BM17,'Footnotes list'!$D$9:$E$58,2,FALSE) ) )","v":""},null,null,null,null,{"$f":"IF(TRIM(BR17)=\"\", \"\", IF(VLOOKUP(BR17,'Footnotes list'!$D$9:$E$58,2,FALSE)=0,\"\",VLOOKUP(BR17,'Footnotes list'!$D$9:$E$58,2,FALSE) ) )","v":""},null,null,null,null,{"$f":"IF(TRIM(BW17)=\"\", \"\", IF(VLOOKUP(BW17,'Footnotes list'!$D$9:$E$58,2,FALSE)=0,\"\",VLOOKUP(BW17,'Footnotes list'!$D$9:$E$58,2,FALSE) ) )","v":""},null,null,null,null,{"$f":"IF(TRIM(CB17)=\"\", \"\", IF(VLOOKUP(CB17,'Footnotes list'!$D$9:$E$58,2,FALSE)=0,\"\",VLOOKUP(CB17,'Footnotes list'!$D$9:$E$58,2,FALSE) ) )","v":""},null,null,null,null,{"$f":"IF(TRIM(CG17)=\"\", \"\", IF(VLOOKUP(CG17,'Footnotes list'!$D$9:$E$58,2,FALSE)=0,\"\",VLOOKUP(CG17,'Footnotes list'!$D$9:$E$58,2,FALSE) ) )","v":""},null,null,null,null,{"$f":"IF(TRIM(CL17)=\"\", \"\", IF(VLOOKUP(CL17,'Footnotes list'!$D$9:$E$58,2,FALSE)=0,\"\",VLOOKUP(CL17,'Footnotes list'!$D$9:$E$58,2,FALSE) ) )","v":""},null,null,null,null,{"$f":"IF(TRIM(CQ17)=\"\", \"\", IF(VLOOKUP(CQ17,'Footnotes list'!$D$9:$E$58,2,FALSE)=0,\"\",VLOOKUP(CQ17,'Footnotes list'!$D$9:$E$58,2,FALSE) ) )","v":""},null,null,null,null,{"$f":"IF(TRIM(CV17)=\"\", \"\", IF(VLOOKUP(CV17,'Footnotes list'!$D$9:$E$58,2,FALSE)=0,\"\",VLOOKUP(CV17,'Footnotes list'!$D$9:$E$58,2,FALSE) ) )","v":""},null,null,null,null,{"$f":"IF(TRIM(DA17)=\"\", \"\", IF(VLOOKUP(DA17,'Footnotes list'!$D$9:$E$58,2,FALSE)=0,\"\",VLOOKUP(DA17,'Footnotes list'!$D$9:$E$58,2,FALSE) ) )","v":""},null,null,null,null,{"$f":"IF(TRIM(DF17)=\"\", \"\", IF(VLOOKUP(DF17,'Footnotes list'!$D$9:$E$58,2,FALSE)=0,\"\",VLOOKUP(DF17,'Footnotes list'!$D$9:$E$58,2,FALSE) ) )","v":""},null,null,null,null,{"$f":"IF(TRIM(DK17)=\"\", \"\", IF(VLOOKUP(DK17,'Footnotes list'!$D$9:$E$58,2,FALSE)=0,\"\",VLOOKUP(DK17,'Footnotes list'!$D$9:$E$58,2,FALSE) ) )","v":""},null,null,null,null,{"$f":"IF(TRIM(DP17)=\"\", \"\", IF(VLOOKUP(DP17,'Footnotes list'!$D$9:$E$58,2,FALSE)=0,\"\",VLOOKUP(DP17,'Footnotes list'!$D$9:$E$58,2,FALSE) ) )","v":""},null,null,null,null,{"$f":"IF(TRIM(DU17)=\"\", \"\", IF(VLOOKUP(DU17,'Footnotes list'!$D$9:$E$58,2,FALSE)=0,\"\",VLOOKUP(DU17,'Footnotes list'!$D$9:$E$58,2,FALSE) ) )","v":""},null,null,null,null,{"$f":"IF(TRIM(DZ17)=\"\", \"\", IF(VLOOKUP(DZ17,'Footnotes list'!$D$9:$E$58,2,FALSE)=0,\"\",VLOOKUP(DZ17,'Footnotes list'!$D$9:$E$58,2,FALSE) ) )","v":""},null,null,null,null,{"$f":"IF(TRIM(EE17)=\"\", \"\", IF(VLOOKUP(EE17,'Footnotes list'!$D$9:$E$58,2,FALSE)=0,\"\",VLOOKUP(EE17,'Footnotes list'!$D$9:$E$58,2,FALSE) ) )","v":""},null,null,null,null,{"$f":"IF(TRIM(EJ17)=\"\", \"\", IF(VLOOKUP(EJ17,'Footnotes list'!$D$9:$E$58,2,FALSE)=0,\"\",VLOOKUP(EJ17,'Footnotes list'!$D$9:$E$58,2,FALSE) ) )","v":""},null,null,null,null,{"$f":"IF(TRIM(EO17)=\"\", \"\", IF(VLOOKUP(EO17,'Footnotes list'!$D$9:$E$58,2,FALSE)=0,\"\",VLOOKUP(EO17,'Footnotes list'!$D$9:$E$58,2,FALSE) ) )","v":""},null,null,null,null,{"$f":"IF(TRIM(ET17)=\"\", \"\", IF(VLOOKUP(ET17,'Footnotes list'!$D$9:$E$58,2,FALSE)=0,\"\",VLOOKUP(ET17,'Footnotes list'!$D$9:$E$58,2,FALSE) ) )","v":""},null,null,null,null,{"$f":"IF(TRIM(EY17)=\"\", \"\", IF(VLOOKUP(EY17,'Footnotes list'!$D$9:$E$58,2,FALSE)=0,\"\",VLOOKUP(EY17,'Footnotes list'!$D$9:$E$58,2,FALSE) ) )","v":""}]
[null,null,"A","OWN_USE","activities for own final use",null,null,null,null,null,{"$f":"IF(TRIM(J18)=\"\", \"\", IF(VLOOKUP(J18,'Footnotes list'!$D$9:$E$58,2,FALSE)=0,\"\",VLOOKUP(J18,'Footnotes list'!$D$9:$E$58,2,FALSE) ) )","v":""},null,null,null,null,{"$f":"IF(TRIM(O18)=\"\", \"\", IF(VLOOKUP(O18,'Footnotes list'!$D$9:$E$58,2,FALSE)=0,\"\",VLOOKUP(O18,'Footnotes list'!$D$9:$E$58,2,FALSE) ) )","v":""},null,null,null,null,{"$f":"IF(TRIM(T18)=\"\", \"\", IF(VLOOKUP(T18,'Footnotes list'!$D$9:$E$58,2,FALSE)=0,\"\",VLOOKUP(T18,'Footnotes list'!$D$9:$E$58,2,FALSE) ) )","v":""},null,null,null,null,{"$f":"IF(TRIM(Y18)=\"\", \"\", IF(VLOOKUP(Y18,'Footnotes list'!$D$9:$E$58,2,FALSE)=0,\"\",VLOOKUP(Y18,'Footnotes list'!$D$9:$E$58,2,FALSE) ) )","v":""},null,null,null,null,{"$f":"IF(TRIM(AD18)=\"\", \"\", IF(VLOOKUP(AD18,'Footnotes list'!$D$9:$E$58,2,FALSE)=0,\"\",VLOOKUP(AD18,'Footnotes list'!$D$9:$E$58,2,FALSE) ) )","v":""},null,null,null,null,{"$f":"IF(TRIM(AI18)=\"\", \"\", IF(VLOOKUP(AI18,'Footnotes list'!$D$9:$E$58,2,FALSE)=0,\"\",VLOOKUP(AI18,'Footnotes list'!$D$9:$E$58,2,FALSE) ) )","v":""},null,null,null,null,{"$f":"IF(TRIM(AN18)=\"\", \"\", IF(VLOOKUP(AN18,'Footnotes list'!$D$9:$E$58,2,FALSE)=0,\"\",VLOOKUP(AN18,'Footnotes list'!$D$9:$E$58,2,FALSE) ) )","v":""},null,null,null,null,{"$f":"IF(TRIM(AS18)=\"\", \"\", IF(VLOOKUP(AS18,'Footnotes list'!$D$9:$E$58,2,FALSE)=0,\"\",VLOOKUP(AS18,'Footnotes list'!$D$9:$E$58,2,FALSE) ) )","v":""},null,null,null,null,{"$f":"IF(TRIM(AX18)=\"\", \"\", IF(VLOOKUP(AX18,'Footnotes list'!$D$9:$E$58,2,FALSE)=0,\"\",VLOOKUP(AX18,'Footnotes list'!$D$9:$E$58,2,FALSE) ) )","v":""},null,null,null,null,{"$f":"IF(TRIM(BC18)=\"\", \"\", IF(VLOOKUP(BC18,'Footnotes list'!$D$9:$E$58,2,FALSE)=0,\"\",VLOOKUP(BC18,'Footnotes list'!$D$9:$E$58,2,FALSE) ) )","v":""},null,null,null,null,{"$f":"IF(TRIM(BH18)=\"\", \"\", IF(VLOOKUP(BH18,'Footnotes list'!$D$9:$E$58,2,FALSE)=0,\"\",VLOOKUP(BH18,'Footnotes list'!$D$9:$E$58,2,FALSE) ) )","v":""},null,null,null,null,{"$f":"IF(TRIM(BM18)=\"\", \"\", IF(VLOOKUP(BM18,'Footnotes list'!$D$9:$E$58,2,FALSE)=0,\"\",VLOOKUP(BM18,'Footnotes list'!$D$9:$E$58,2,FALSE) ) )","v":""},null,null,null,null,{"$f":"IF(TRIM(BR18)=\"\", \"\", IF(VLOOKUP(BR18,'Footnotes list'!$D$9:$E$58,2,FALSE)=0,\"\",VLOOKUP(BR18,'Footnotes list'!$D$9:$E$58,2,FALSE) ) )","v":""},null,null,null,null,{"$f":"IF(TRIM(BW18)=\"\", \"\", IF(VLOOKUP(BW18,'Footnotes list'!$D$9:$E$58,2,FALSE)=0,\"\",VLOOKUP(BW18,'Footnotes list'!$D$9:$E$58,2,FALSE) ) )","v":""},null,null,null,null,{"$f":"IF(TRIM(CB18)=\"\", \"\", IF(VLOOKUP(CB18,'Footnotes list'!$D$9:$E$58,2,FALSE)=0,\"\",VLOOKUP(CB18,'Footnotes list'!$D$9:$E$58,2,FALSE) ) )","v":""},null,null,null,null,{"$f":"IF(TRIM(CG18)=\"\", \"\", IF(VLOOKUP(CG18,'Footnotes list'!$D$9:$E$58,2,FALSE)=0,\"\",VLOOKUP(CG18,'Footnotes list'!$D$9:$E$58,2,FALSE) ) )","v":""},null,null,null,null,{"$f":"IF(TRIM(CL18)=\"\", \"\", IF(VLOOKUP(CL18,'Footnotes list'!$D$9:$E$58,2,FALSE)=0,\"\",VLOOKUP(CL18,'Footnotes list'!$D$9:$E$58,2,FALSE) ) )","v":""},null,null,null,null,{"$f":"IF(TRIM(CQ18)=\"\", \"\", IF(VLOOKUP(CQ18,'Footnotes list'!$D$9:$E$58,2,FALSE)=0,\"\",VLOOKUP(CQ18,'Footnotes list'!$D$9:$E$58,2,FALSE) ) )","v":""},null,null,null,null,{"$f":"IF(TRIM(CV18)=\"\", \"\", IF(VLOOKUP(CV18,'Footnotes list'!$D$9:$E$58,2,FALSE)=0,\"\",VLOOKUP(CV18,'Footnotes list'!$D$9:$E$58,2,FALSE) ) )","v":""},null,null,null,null,{"$f":"IF(TRIM(DA18)=\"\", \"\", IF(VLOOKUP(DA18,'Footnotes list'!$D$9:$E$58,2,FALSE)=0,\"\",VLOOKUP(DA18,'Footnotes list'!$D$9:$E$58,2,FALSE) ) )","v":""},null,null,null,null,{"$f":"IF(TRIM(DF18)=\"\", \"\", IF(VLOOKUP(DF18,'Footnotes list'!$D$9:$E$58,2,FALSE)=0,\"\",VLOOKUP(DF18,'Footnotes list'!$D$9:$E$58,2,FALSE) ) )","v":""},null,null,null,null,{"$f":"IF(TRIM(DK18)=\"\", \"\", IF(VLOOKUP(DK18,'Footnotes list'!$D$9:$E$58,2,FALSE)=0,\"\",VLOOKUP(DK18,'Footnotes list'!$D$9:$E$58,2,FALSE) ) )","v":""},null,null,null,null,{"$f":"IF(TRIM(DP18)=\"\", \"\", IF(VLOOKUP(DP18,'Footnotes list'!$D$9:$E$58,2,FALSE)=0,\"\",VLOOKUP(DP18,'Footnotes list'!$D$9:$E$58,2,FALSE) ) )","v":""},null,null,null,null,{"$f":"IF(TRIM(DU18)=\"\", \"\", IF(VLOOKUP(DU18,'Footnotes list'!$D$9:$E$58,2,FALSE)=0,\"\",VLOOKUP(DU18,'Footnotes list'!$D$9:$E$58,2,FALSE) ) )","v":""},null,null,null,null,{"$f":"IF(TRIM(DZ18)=\"\", \"\", IF(VLOOKUP(DZ18,'Footnotes list'!$D$9:$E$58,2,FALSE)=0,\"\",VLOOKUP(DZ18,'Footnotes list'!$D$9:$E$58,2,FALSE) ) )","v":""},null,null,null,null,{"$f":"IF(TRIM(EE18)=\"\", \"\", IF(VLOOKUP(EE18,'Footnotes list'!$D$9:$E$58,2,FALSE)=0,\"\",VLOOKUP(EE18,'Footnotes list'!$D$9:$E$58,2,FALSE) ) )","v":""},null,null,null,null,{"$f":"IF(TRIM(EJ18)=\"\", \"\", IF(VLOOKUP(EJ18,'Footnotes list'!$D$9:$E$58,2,FALSE)=0,\"\",VLOOKUP(EJ18,'Footnotes list'!$D$9:$E$58,2,FALSE) ) )","v":""},null,null,null,null,{"$f":"IF(TRIM(EO18)=\"\", \"\", IF(VLOOKUP(EO18,'Footnotes list'!$D$9:$E$58,2,FALSE)=0,\"\",VLOOKUP(EO18,'Footnotes list'!$D$9:$E$58,2,FALSE) ) )","v":""},null,null,null,null,{"$f":"IF(TRIM(ET18)=\"\", \"\", IF(VLOOKUP(ET18,'Footnotes list'!$D$9:$E$58,2,FALSE)=0,\"\",VLOOKUP(ET18,'Footnotes list'!$D$9:$E$58,2,FALSE) ) )","v":""},null,null,null,null,{"$f":"IF(TRIM(EY18)=\"\", \"\", IF(VLOOKUP(EY18,'Footnotes list'!$D$9:$E$58,2,FALSE)=0,\"\",VLOOKUP(EY18,'Footnotes list'!$D$9:$E$58,2,FALSE) ) )","v":""}]
[null,null,"A","MKT","market activities, Including:",null,null,null,null,null,{"$f":"IF(TRIM(J19)=\"\", \"\", IF(VLOOKUP(J19,'Footnotes list'!$D$9:$E$58,2,FALSE)=0,\"\",VLOOKUP(J19,'Footnotes list'!$D$9:$E$58,2,FALSE) ) )","v":""},null,null,null,null,{"$f":"IF(TRIM(O19)=\"\", \"\", IF(VLOOKUP(O19,'Footnotes list'!$D$9:$E$58,2,FALSE)=0,\"\",VLOOKUP(O19,'Footnotes list'!$D$9:$E$58,2,FALSE) ) )","v":""},null,null,null,null,{"$f":"IF(TRIM(T19)=\"\", \"\", IF(VLOOKUP(T19,'Footnotes list'!$D$9:$E$58,2,FALSE)=0,\"\",VLOOKUP(T19,'Footnotes list'!$D$9:$E$58,2,FALSE) ) )","v":""},null,null,null,null,{"$f":"IF(TRIM(Y19)=\"\", \"\", IF(VLOOKUP(Y19,'Footnotes list'!$D$9:$E$58,2,FALSE)=0,\"\",VLOOKUP(Y19,'Footnotes list'!$D$9:$E$58,2,FALSE) ) )","v":""},null,null,null,null,{"$f":"IF(TRIM(AD19)=\"\", \"\", IF(VLOOKUP(AD19,'Footnotes list'!$D$9:$E$58,2,FALSE)=0,\"\",VLOOKUP(AD19,'Footnotes list'!$D$9:$E$58,2,FALSE) ) )","v":""},null,null,null,null,{"$f":"IF(TRIM(AI19)=\"\", \"\", IF(VLOOKUP(AI19,'Footnotes list'!$D$9:$E$58,2,FALSE)=0,\"\",VLOOKUP(AI19,'Footnotes list'!$D$9:$E$58,2,FALSE) ) )","v":""},null,null,null,null,{"$f":"IF(TRIM(AN19)=\"\", \"\", IF(VLOOKUP(AN19,'Footnotes list'!$D$9:$E$58,2,FALSE)=0,\"\",VLOOKUP(AN19,'Footnotes list'!$D$9:$E$58,2,FALSE) ) )","v":""},null,null,null,null,{"$f":"IF(TRIM(AS19)=\"\", \"\", IF(VLOOKUP(AS19,'Footnotes list'!$D$9:$E$58,2,FALSE)=0,\"\",VLOOKUP(AS19,'Footnotes list'!$D$9:$E$58,2,FALSE) ) )","v":""},null,null,null,null,{"$f":"IF(TRIM(AX19)=\"\", \"\", IF(VLOOKUP(AX19,'Footnotes list'!$D$9:$E$58,2,FALSE)=0,\"\",VLOOKUP(AX19,'Footnotes list'!$D$9:$E$58,2,FALSE) ) )","v":""},null,null,null,null,{"$f":"IF(TRIM(BC19)=\"\", \"\", IF(VLOOKUP(BC19,'Footnotes list'!$D$9:$E$58,2,FALSE)=0,\"\",VLOOKUP(BC19,'Footnotes list'!$D$9:$E$58,2,FALSE) ) )","v":""},null,null,null,null,{"$f":"IF(TRIM(BH19)=\"\", \"\", IF(VLOOKUP(BH19,'Footnotes list'!$D$9:$E$58,2,FALSE)=0,\"\",VLOOKUP(BH19,'Footnotes list'!$D$9:$E$58,2,FALSE) ) )","v":""},null,null,null,null,{"$f":"IF(TRIM(BM19)=\"\", \"\", IF(VLOOKUP(BM19,'Footnotes list'!$D$9:$E$58,2,FALSE)=0,\"\",VLOOKUP(BM19,'Footnotes list'!$D$9:$E$58,2,FALSE) ) )","v":""},null,null,null,null,{"$f":"IF(TRIM(BR19)=\"\", \"\", IF(VLOOKUP(BR19,'Footnotes list'!$D$9:$E$58,2,FALSE)=0,\"\",VLOOKUP(BR19,'Footnotes list'!$D$9:$E$58,2,FALSE) ) )","v":""},null,null,null,null,{"$f":"IF(TRIM(BW19)=\"\", \"\", IF(VLOOKUP(BW19,'Footnotes list'!$D$9:$E$58,2,FALSE)=0,\"\",VLOOKUP(BW19,'Footnotes list'!$D$9:$E$58,2,FALSE) ) )","v":""},null,null,null,null,{"$f":"IF(TRIM(CB19)=\"\", \"\", IF(VLOOKUP(CB19,'Footnotes list'!$D$9:$E$58,2,FALSE)=0,\"\",VLOOKUP(CB19,'Footnotes list'!$D$9:$E$58,2,FALSE) ) )","v":""},null,null,null,null,{"$f":"IF(TRIM(CG19)=\"\", \"\", IF(VLOOKUP(CG19,'Footnotes list'!$D$9:$E$58,2,FALSE)=0,\"\",VLOOKUP(CG19,'Footnotes list'!$D$9:$E$58,2,FALSE) ) )","v":""},null,null,null,null,{"$f":"IF(TRIM(CL19)=\"\", \"\", IF(VLOOKUP(CL19,'Footnotes list'!$D$9:$E$58,2,FALSE)=0,\"\",VLOOKUP(CL19,'Footnotes list'!$D$9:$E$58,2,FALSE) ) )","v":""},null,null,null,null,{"$f":"IF(TRIM(CQ19)=\"\", \"\", IF(VLOOKUP(CQ19,'Footnotes list'!$D$9:$E$58,2,FALSE)=0,\"\",VLOOKUP(CQ19,'Footnotes list'!$D$9:$E$58,2,FALSE) ) )","v":""},null,null,null,null,{"$f":"IF(TRIM(CV19)=\"\", \"\", IF(VLOOKUP(CV19,'Footnotes list'!$D$9:$E$58,2,FALSE)=0,\"\",VLOOKUP(CV19,'Footnotes list'!$D$9:$E$58,2,FALSE) ) )","v":""},null,null,null,null,{"$f":"IF(TRIM(DA19)=\"\", \"\", IF(VLOOKUP(DA19,'Footnotes list'!$D$9:$E$58,2,FALSE)=0,\"\",VLOOKUP(DA19,'Footnotes list'!$D$9:$E$58,2,FALSE) ) )","v":""},null,null,null,null,{"$f":"IF(TRIM(DF19)=\"\", \"\", IF(VLOOKUP(DF19,'Footnotes list'!$D$9:$E$58,2,FALSE)=0,\"\",VLOOKUP(DF19,'Footnotes list'!$D$9:$E$58,2,FALSE) ) )","v":""},null,null,null,null,{"$f":"IF(TRIM(DK19)=\"\", \"\", IF(VLOOKUP(DK19,'Footnotes list'!$D$9:$E$58,2,FALSE)=0,\"\",VLOOKUP(DK19,'Footnotes list'!$D$9:$E$58,2,FALSE) ) )","v":""},null,null,null,null,{"$f":"IF(TRIM(DP19)=\"\", \"\", IF(VLOOKUP(DP19,'Footnotes list'!$D$9:$E$58,2,FALSE)=0,\"\",VLOOKUP(DP19,'Footnotes list'!$D$9:$E$58,2,FALSE) ) )","v":""},null,null,null,null,{"$f":"IF(TRIM(DU19)=\"\", \"\", IF(VLOOKUP(DU19,'Footnotes list'!$D$9:$E$58,2,FALSE)=0,\"\",VLOOKUP(DU19,'Footnotes list'!$D$9:$E$58,2,FALSE) ) )","v":""},null,null,null,null,{"$f":"IF(TRIM(DZ19)=\"\", \"\", IF(VLOOKUP(DZ19,'Footnotes list'!$D$9:$E$58,2,FALSE)=0,\"\",VLOOKUP(DZ19,'Footnotes list'!$D$9:$E$58,2,FALSE) ) )","v":""},null,null,null,null,{"$f":"IF(TRIM(EE19)=\"\", \"\", IF(VLOOKUP(EE19,'Footnotes list'!$D$9:$E$58,2,FALSE)=0,\"\",VLOOKUP(EE19,'Footnotes list'!$D$9:$E$58,2,FALSE) ) )","v":""},null,null,null,null,{"$f":"IF(TRIM(EJ19)=\"\", \"\", IF(VLOOKUP(EJ19,'Footnotes list'!$D$9:$E$58,2,FALSE)=0,\"\",VLOOKUP(EJ19,'Footnotes list'!$D$9:$E$58,2,FALSE) ) )","v":""},null,null,null,null,{"$f":"IF(TRIM(EO19)=\"\", \"\", IF(VLOOKUP(EO19,'Footnotes list'!$D$9:$E$58,2,FALSE)=0,\"\",VLOOKUP(EO19,'Footnotes list'!$D$9:$E$58,2,FALSE) ) )","v":""},null,null,null,null,{"$f":"IF(TRIM(ET19)=\"\", \"\", IF(VLOOKUP(ET19,'Footnotes list'!$D$9:$E$58,2,FALSE)=0,\"\",VLOOKUP(ET19,'Footnotes list'!$D$9:$E$58,2,FALSE) ) )","v":""},null,null,null,null,{"$f":"IF(TRIM(EY19)=\"\", \"\", IF(VLOOKUP(EY19,'Footnotes list'!$D$9:$E$58,2,FALSE)=0,\"\",VLOOKUP(EY19,'Footnotes list'!$D$9:$E$58,2,FALSE) ) )","v":""}]
[null,null,"A","ES_CS","environmental specific services",null,null,null,null,null,{"$f":"IF(TRIM(J20)=\"\", \"\", IF(VLOOKUP(J20,'Footnotes list'!$D$9:$E$58,2,FALSE)=0,\"\",VLOOKUP(J20,'Footnotes list'!$D$9:$E$58,2,FALSE) ) )","v":""},null,null,null,null,{"$f":"IF(TRIM(O20)=\"\", \"\", IF(VLOOKUP(O20,'Footnotes list'!$D$9:$E$58,2,FALSE)=0,\"\",VLOOKUP(O20,'Footnotes list'!$D$9:$E$58,2,FALSE) ) )","v":""},null,null,null,null,{"$f":"IF(TRIM(T20)=\"\", \"\", IF(VLOOKUP(T20,'Footnotes list'!$D$9:$E$58,2,FALSE)=0,\"\",VLOOKUP(T20,'Footnotes list'!$D$9:$E$58,2,FALSE) ) )","v":""},null,null,null,null,{"$f":"IF(TRIM(Y20)=\"\", \"\", IF(VLOOKUP(Y20,'Footnotes list'!$D$9:$E$58,2,FALSE)=0,\"\",VLOOKUP(Y20,'Footnotes list'!$D$9:$E$58,2,FALSE) ) )","v":""},null,null,null,null,{"$f":"IF(TRIM(AD20)=\"\", \"\", IF(VLOOKUP(AD20,'Footnotes list'!$D$9:$E$58,2,FALSE)=0,\"\",VLOOKUP(AD20,'Footnotes list'!$D$9:$E$58,2,FALSE) ) )","v":""},null,null,null,null,{"$f":"IF(TRIM(AI20)=\"\", \"\", IF(VLOOKUP(AI20,'Footnotes list'!$D$9:$E$58,2,FALSE)=0,\"\",VLOOKUP(AI20,'Footnotes list'!$D$9:$E$58,2,FALSE) ) )","v":""},null,null,null,null,{"$f":"IF(TRIM(AN20)=\"\", \"\", IF(VLOOKUP(AN20,'Footnotes list'!$D$9:$E$58,2,FALSE)=0,\"\",VLOOKUP(AN20,'Footnotes list'!$D$9:$E$58,2,FALSE) ) )","v":""},null,null,null,null,{"$f":"IF(TRIM(AS20)=\"\", \"\", IF(VLOOKUP(AS20,'Footnotes list'!$D$9:$E$58,2,FALSE)=0,\"\",VLOOKUP(AS20,'Footnotes list'!$D$9:$E$58,2,FALSE) ) )","v":""},null,null,null,null,{"$f":"IF(TRIM(AX20)=\"\", \"\", IF(VLOOKUP(AX20,'Footnotes list'!$D$9:$E$58,2,FALSE)=0,\"\",VLOOKUP(AX20,'Footnotes list'!$D$9:$E$58,2,FALSE) ) )","v":""},null,null,null,null,{"$f":"IF(TRIM(BC20)=\"\", \"\", IF(VLOOKUP(BC20,'Footnotes list'!$D$9:$E$58,2,FALSE)=0,\"\",VLOOKUP(BC20,'Footnotes list'!$D$9:$E$58,2,FALSE) ) )","v":""},null,null,null,null,{"$f":"IF(TRIM(BH20)=\"\", \"\", IF(VLOOKUP(BH20,'Footnotes list'!$D$9:$E$58,2,FALSE)=0,\"\",VLOOKUP(BH20,'Footnotes list'!$D$9:$E$58,2,FALSE) ) )","v":""},null,null,null,null,{"$f":"IF(TRIM(BM20)=\"\", \"\", IF(VLOOKUP(BM20,'Footnotes list'!$D$9:$E$58,2,FALSE)=0,\"\",VLOOKUP(BM20,'Footnotes list'!$D$9:$E$58,2,FALSE) ) )","v":""},null,null,null,null,{"$f":"IF(TRIM(BR20)=\"\", \"\", IF(VLOOKUP(BR20,'Footnotes list'!$D$9:$E$58,2,FALSE)=0,\"\",VLOOKUP(BR20,'Footnotes list'!$D$9:$E$58,2,FALSE) ) )","v":""},null,null,null,null,{"$f":"IF(TRIM(BW20)=\"\", \"\", IF(VLOOKUP(BW20,'Footnotes list'!$D$9:$E$58,2,FALSE)=0,\"\",VLOOKUP(BW20,'Footnotes list'!$D$9:$E$58,2,FALSE) ) )","v":""},null,null,null,null,{"$f":"IF(TRIM(CB20)=\"\", \"\", IF(VLOOKUP(CB20,'Footnotes list'!$D$9:$E$58,2,FALSE)=0,\"\",VLOOKUP(CB20,'Footnotes list'!$D$9:$E$58,2,FALSE) ) )","v":""},null,null,null,null,{"$f":"IF(TRIM(CG20)=\"\", \"\", IF(VLOOKUP(CG20,'Footnotes list'!$D$9:$E$58,2,FALSE)=0,\"\",VLOOKUP(CG20,'Footnotes list'!$D$9:$E$58,2,FALSE) ) )","v":""},null,null,null,null,{"$f":"IF(TRIM(CL20)=\"\", \"\", IF(VLOOKUP(CL20,'Footnotes list'!$D$9:$E$58,2,FALSE)=0,\"\",VLOOKUP(CL20,'Footnotes list'!$D$9:$E$58,2,FALSE) ) )","v":""},null,null,null,null,{"$f":"IF(TRIM(CQ20)=\"\", \"\", IF(VLOOKUP(CQ20,'Footnotes list'!$D$9:$E$58,2,FALSE)=0,\"\",VLOOKUP(CQ20,'Footnotes list'!$D$9:$E$58,2,FALSE) ) )","v":""},null,null,null,null,{"$f":"IF(TRIM(CV20)=\"\", \"\", IF(VLOOKUP(CV20,'Footnotes list'!$D$9:$E$58,2,FALSE)=0,\"\",VLOOKUP(CV20,'Footnotes list'!$D$9:$E$58,2,FALSE) ) )","v":""},null,null,null,null,{"$f":"IF(TRIM(DA20)=\"\", \"\", IF(VLOOKUP(DA20,'Footnotes list'!$D$9:$E$58,2,FALSE)=0,\"\",VLOOKUP(DA20,'Footnotes list'!$D$9:$E$58,2,FALSE) ) )","v":""},null,null,null,null,{"$f":"IF(TRIM(DF20)=\"\", \"\", IF(VLOOKUP(DF20,'Footnotes list'!$D$9:$E$58,2,FALSE)=0,\"\",VLOOKUP(DF20,'Footnotes list'!$D$9:$E$58,2,FALSE) ) )","v":""},null,null,null,null,{"$f":"IF(TRIM(DK20)=\"\", \"\", IF(VLOOKUP(DK20,'Footnotes list'!$D$9:$E$58,2,FALSE)=0,\"\",VLOOKUP(DK20,'Footnotes list'!$D$9:$E$58,2,FALSE) ) )","v":""},null,null,null,null,{"$f":"IF(TRIM(DP20)=\"\", \"\", IF(VLOOKUP(DP20,'Footnotes list'!$D$9:$E$58,2,FALSE)=0,\"\",VLOOKUP(DP20,'Footnotes list'!$D$9:$E$58,2,FALSE) ) )","v":""},null,null,null,null,{"$f":"IF(TRIM(DU20)=\"\", \"\", IF(VLOOKUP(DU20,'Footnotes list'!$D$9:$E$58,2,FALSE)=0,\"\",VLOOKUP(DU20,'Footnotes list'!$D$9:$E$58,2,FALSE) ) )","v":""},null,null,null,null,{"$f":"IF(TRIM(DZ20)=\"\", \"\", IF(VLOOKUP(DZ20,'Footnotes list'!$D$9:$E$58,2,FALSE)=0,\"\",VLOOKUP(DZ20,'Footnotes list'!$D$9:$E$58,2,FALSE) ) )","v":""},null,null,null,null,{"$f":"IF(TRIM(EE20)=\"\", \"\", IF(VLOOKUP(EE20,'Footnotes list'!$D$9:$E$58,2,FALSE)=0,\"\",VLOOKUP(EE20,'Footnotes list'!$D$9:$E$58,2,FALSE) ) )","v":""},null,null,null,null,{"$f":"IF(TRIM(EJ20)=\"\", \"\", IF(VLOOKUP(EJ20,'Footnotes list'!$D$9:$E$58,2,FALSE)=0,\"\",VLOOKUP(EJ20,'Footnotes list'!$D$9:$E$58,2,FALSE) ) )","v":""},null,null,null,null,{"$f":"IF(TRIM(EO20)=\"\", \"\", IF(VLOOKUP(EO20,'Footnotes list'!$D$9:$E$58,2,FALSE)=0,\"\",VLOOKUP(EO20,'Footnotes list'!$D$9:$E$58,2,FALSE) ) )","v":""},null,null,null,null,{"$f":"IF(TRIM(ET20)=\"\", \"\", IF(VLOOKUP(ET20,'Footnotes list'!$D$9:$E$58,2,FALSE)=0,\"\",VLOOKUP(ET20,'Footnotes list'!$D$9:$E$58,2,FALSE) ) )","v":""},null,null,null,null,{"$f":"IF(TRIM(EY20)=\"\", \"\", IF(VLOOKUP(EY20,'Footnotes list'!$D$9:$E$58,2,FALSE)=0,\"\",VLOOKUP(EY20,'Footnotes list'!$D$9:$E$58,2,FALSE) ) )","v":""}]
[null,null,"A","C_REP","cleaner and resource efficient products",null,null,null,null,null,{"$f":"IF(TRIM(J21)=\"\", \"\", IF(VLOOKUP(J21,'Footnotes list'!$D$9:$E$58,2,FALSE)=0,\"\",VLOOKUP(J21,'Footnotes list'!$D$9:$E$58,2,FALSE) ) )","v":""},null,null,null,null,{"$f":"IF(TRIM(O21)=\"\", \"\", IF(VLOOKUP(O21,'Footnotes list'!$D$9:$E$58,2,FALSE)=0,\"\",VLOOKUP(O21,'Footnotes list'!$D$9:$E$58,2,FALSE) ) )","v":""},null,null,null,null,{"$f":"IF(TRIM(T21)=\"\", \"\", IF(VLOOKUP(T21,'Footnotes list'!$D$9:$E$58,2,FALSE)=0,\"\",VLOOKUP(T21,'Footnotes list'!$D$9:$E$58,2,FALSE) ) )","v":""},null,null,null,null,{"$f":"IF(TRIM(Y21)=\"\", \"\", IF(VLOOKUP(Y21,'Footnotes list'!$D$9:$E$58,2,FALSE)=0,\"\",VLOOKUP(Y21,'Footnotes list'!$D$9:$E$58,2,FALSE) ) )","v":""},null,null,null,null,{"$f":"IF(TRIM(AD21)=\"\", \"\", IF(VLOOKUP(AD21,'Footnotes list'!$D$9:$E$58,2,FALSE)=0,\"\",VLOOKUP(AD21,'Footnotes list'!$D$9:$E$58,2,FALSE) ) )","v":""},null,null,null,null,{"$f":"IF(TRIM(AI21)=\"\", \"\", IF(VLOOKUP(AI21,'Footnotes list'!$D$9:$E$58,2,FALSE)=0,\"\",VLOOKUP(AI21,'Footnotes list'!$D$9:$E$58,2,FALSE) ) )","v":""},null,null,null,null,{"$f":"IF(TRIM(AN21)=\"\", \"\", IF(VLOOKUP(AN21,'Footnotes list'!$D$9:$E$58,2,FALSE)=0,\"\",VLOOKUP(AN21,'Footnotes list'!$D$9:$E$58,2,FALSE) ) )","v":""},null,null,null,null,{"$f":"IF(TRIM(AS21)=\"\", \"\", IF(VLOOKUP(AS21,'Footnotes list'!$D$9:$E$58,2,FALSE)=0,\"\",VLOOKUP(AS21,'Footnotes list'!$D$9:$E$58,2,FALSE) ) )","v":""},null,null,null,null,{"$f":"IF(TRIM(AX21)=\"\", \"\", IF(VLOOKUP(AX21,'Footnotes list'!$D$9:$E$58,2,FALSE)=0,\"\",VLOOKUP(AX21,'Footnotes list'!$D$9:$E$58,2,FALSE) ) )","v":""},null,null,null,null,{"$f":"IF(TRIM(BC21)=\"\", \"\", IF(VLOOKUP(BC21,'Footnotes list'!$D$9:$E$58,2,FALSE)=0,\"\",VLOOKUP(BC21,'Footnotes list'!$D$9:$E$58,2,FALSE) ) )","v":""},null,null,null,null,{"$f":"IF(TRIM(BH21)=\"\", \"\", IF(VLOOKUP(BH21,'Footnotes list'!$D$9:$E$58,2,FALSE)=0,\"\",VLOOKUP(BH21,'Footnotes list'!$D$9:$E$58,2,FALSE) ) )","v":""},null,null,null,null,{"$f":"IF(TRIM(BM21)=\"\", \"\", IF(VLOOKUP(BM21,'Footnotes list'!$D$9:$E$58,2,FALSE)=0,\"\",VLOOKUP(BM21,'Footnotes list'!$D$9:$E$58,2,FALSE) ) )","v":""},null,null,null,null,{"$f":"IF(TRIM(BR21)=\"\", \"\", IF(VLOOKUP(BR21,'Footnotes list'!$D$9:$E$58,2,FALSE)=0,\"\",VLOOKUP(BR21,'Footnotes list'!$D$9:$E$58,2,FALSE) ) )","v":""},null,null,null,null,{"$f":"IF(TRIM(BW21)=\"\", \"\", IF(VLOOKUP(BW21,'Footnotes list'!$D$9:$E$58,2,FALSE)=0,\"\",VLOOKUP(BW21,'Footnotes list'!$D$9:$E$58,2,FALSE) ) )","v":""},null,null,null,null,{"$f":"IF(TRIM(CB21)=\"\", \"\", IF(VLOOKUP(CB21,'Footnotes list'!$D$9:$E$58,2,FALSE)=0,\"\",VLOOKUP(CB21,'Footnotes list'!$D$9:$E$58,2,FALSE) ) )","v":""},null,null,null,null,{"$f":"IF(TRIM(CG21)=\"\", \"\", IF(VLOOKUP(CG21,'Footnotes list'!$D$9:$E$58,2,FALSE)=0,\"\",VLOOKUP(CG21,'Footnotes list'!$D$9:$E$58,2,FALSE) ) )","v":""},null,null,null,null,{"$f":"IF(TRIM(CL21)=\"\", \"\", IF(VLOOKUP(CL21,'Footnotes list'!$D$9:$E$58,2,FALSE)=0,\"\",VLOOKUP(CL21,'Footnotes list'!$D$9:$E$58,2,FALSE) ) )","v":""},null,null,null,null,{"$f":"IF(TRIM(CQ21)=\"\", \"\", IF(VLOOKUP(CQ21,'Footnotes list'!$D$9:$E$58,2,FALSE)=0,\"\",VLOOKUP(CQ21,'Footnotes list'!$D$9:$E$58,2,FALSE) ) )","v":""},null,null,null,null,{"$f":"IF(TRIM(CV21)=\"\", \"\", IF(VLOOKUP(CV21,'Footnotes list'!$D$9:$E$58,2,FALSE)=0,\"\",VLOOKUP(CV21,'Footnotes list'!$D$9:$E$58,2,FALSE) ) )","v":""},null,null,null,null,{"$f":"IF(TRIM(DA21)=\"\", \"\", IF(VLOOKUP(DA21,'Footnotes list'!$D$9:$E$58,2,FALSE)=0,\"\",VLOOKUP(DA21,'Footnotes list'!$D$9:$E$58,2,FALSE) ) )","v":""},null,null,null,null,{"$f":"IF(TRIM(DF21)=\"\", \"\", IF(VLOOKUP(DF21,'Footnotes list'!$D$9:$E$58,2,FALSE)=0,\"\",VLOOKUP(DF21,'Footnotes list'!$D$9:$E$58,2,FALSE) ) )","v":""},null,null,null,null,{"$f":"IF(TRIM(DK21)=\"\", \"\", IF(VLOOKUP(DK21,'Footnotes list'!$D$9:$E$58,2,FALSE)=0,\"\",VLOOKUP(DK21,'Footnotes list'!$D$9:$E$58,2,FALSE) ) )","v":""},null,null,null,null,{"$f":"IF(TRIM(DP21)=\"\", \"\", IF(VLOOKUP(DP21,'Footnotes list'!$D$9:$E$58,2,FALSE)=0,\"\",VLOOKUP(DP21,'Footnotes list'!$D$9:$E$58,2,FALSE) ) )","v":""},null,null,null,null,{"$f":"IF(TRIM(DU21)=\"\", \"\", IF(VLOOKUP(DU21,'Footnotes list'!$D$9:$E$58,2,FALSE)=0,\"\",VLOOKUP(DU21,'Footnotes list'!$D$9:$E$58,2,FALSE) ) )","v":""},null,null,null,null,{"$f":"IF(TRIM(DZ21)=\"\", \"\", IF(VLOOKUP(DZ21,'Footnotes list'!$D$9:$E$58,2,FALSE)=0,\"\",VLOOKUP(DZ21,'Footnotes list'!$D$9:$E$58,2,FALSE) ) )","v":""},null,null,null,null,{"$f":"IF(TRIM(EE21)=\"\", \"\", IF(VLOOKUP(EE21,'Footnotes list'!$D$9:$E$58,2,FALSE)=0,\"\",VLOOKUP(EE21,'Footnotes list'!$D$9:$E$58,2,FALSE) ) )","v":""},null,null,null,null,{"$f":"IF(TRIM(EJ21)=\"\", \"\", IF(VLOOKUP(EJ21,'Footnotes list'!$D$9:$E$58,2,FALSE)=0,\"\",VLOOKUP(EJ21,'Footnotes list'!$D$9:$E$58,2,FALSE) ) )","v":""},null,null,null,null,{"$f":"IF(TRIM(EO21)=\"\", \"\", IF(VLOOKUP(EO21,'Footnotes list'!$D$9:$E$58,2,FALSE)=0,\"\",VLOOKUP(EO21,'Footnotes list'!$D$9:$E$58,2,FALSE) ) )","v":""},null,null,null,null,{"$f":"IF(TRIM(ET21)=\"\", \"\", IF(VLOOKUP(ET21,'Footnotes list'!$D$9:$E$58,2,FALSE)=0,\"\",VLOOKUP(ET21,'Footnotes list'!$D$9:$E$58,2,FALSE) ) )","v":""},null,null,null,null,{"$f":"IF(TRIM(EY21)=\"\", \"\", IF(VLOOKUP(EY21,'Footnotes list'!$D$9:$E$58,2,FALSE)=0,\"\",VLOOKUP(EY21,'Footnotes list'!$D$9:$E$58,2,FALSE) ) )","v":""}]
[null,null,"B","TOT_EGSS","Total B - Mining and quarrying, of which:",null,null,null,null,null,{"$f":"IF(TRIM(J22)=\"\", \"\", IF(VLOOKUP(J22,'Footnotes list'!$D$9:$E$58,2,FALSE)=0,\"\",VLOOKUP(J22,'Footnotes list'!$D$9:$E$58,2,FALSE) ) )","v":""},null,null,null,null,{"$f":"IF(TRIM(O22)=\"\", \"\", IF(VLOOKUP(O22,'Footnotes list'!$D$9:$E$58,2,FALSE)=0,\"\",VLOOKUP(O22,'Footnotes list'!$D$9:$E$58,2,FALSE) ) )","v":""},null,null,null,null,{"$f":"IF(TRIM(T22)=\"\", \"\", IF(VLOOKUP(T22,'Footnotes list'!$D$9:$E$58,2,FALSE)=0,\"\",VLOOKUP(T22,'Footnotes list'!$D$9:$E$58,2,FALSE) ) )","v":""},null,null,null,null,{"$f":"IF(TRIM(Y22)=\"\", \"\", IF(VLOOKUP(Y22,'Footnotes list'!$D$9:$E$58,2,FALSE)=0,\"\",VLOOKUP(Y22,'Footnotes list'!$D$9:$E$58,2,FALSE) ) )","v":""},null,null,null,null,{"$f":"IF(TRIM(AD22)=\"\", \"\", IF(VLOOKUP(AD22,'Footnotes list'!$D$9:$E$58,2,FALSE)=0,\"\",VLOOKUP(AD22,'Footnotes list'!$D$9:$E$58,2,FALSE) ) )","v":""},null,null,null,null,{"$f":"IF(TRIM(AI22)=\"\", \"\", IF(VLOOKUP(AI22,'Footnotes list'!$D$9:$E$58,2,FALSE)=0,\"\",VLOOKUP(AI22,'Footnotes list'!$D$9:$E$58,2,FALSE) ) )","v":""},null,null,null,null,{"$f":"IF(TRIM(AN22)=\"\", \"\", IF(VLOOKUP(AN22,'Footnotes list'!$D$9:$E$58,2,FALSE)=0,\"\",VLOOKUP(AN22,'Footnotes list'!$D$9:$E$58,2,FALSE) ) )","v":""},null,null,null,null,{"$f":"IF(TRIM(AS22)=\"\", \"\", IF(VLOOKUP(AS22,'Footnotes list'!$D$9:$E$58,2,FALSE)=0,\"\",VLOOKUP(AS22,'Footnotes list'!$D$9:$E$58,2,FALSE) ) )","v":""},null,null,null,null,{"$f":"IF(TRIM(AX22)=\"\", \"\", IF(VLOOKUP(AX22,'Footnotes list'!$D$9:$E$58,2,FALSE)=0,\"\",VLOOKUP(AX22,'Footnotes list'!$D$9:$E$58,2,FALSE) ) )","v":""},null,null,null,null,{"$f":"IF(TRIM(BC22)=\"\", \"\", IF(VLOOKUP(BC22,'Footnotes list'!$D$9:$E$58,2,FALSE)=0,\"\",VLOOKUP(BC22,'Footnotes list'!$D$9:$E$58,2,FALSE) ) )","v":""},null,null,null,null,{"$f":"IF(TRIM(BH22)=\"\", \"\", IF(VLOOKUP(BH22,'Footnotes list'!$D$9:$E$58,2,FALSE)=0,\"\",VLOOKUP(BH22,'Footnotes list'!$D$9:$E$58,2,FALSE) ) )","v":""},null,null,null,null,{"$f":"IF(TRIM(BM22)=\"\", \"\", IF(VLOOKUP(BM22,'Footnotes list'!$D$9:$E$58,2,FALSE)=0,\"\",VLOOKUP(BM22,'Footnotes list'!$D$9:$E$58,2,FALSE) ) )","v":""},null,null,null,null,{"$f":"IF(TRIM(BR22)=\"\", \"\", IF(VLOOKUP(BR22,'Footnotes list'!$D$9:$E$58,2,FALSE)=0,\"\",VLOOKUP(BR22,'Footnotes list'!$D$9:$E$58,2,FALSE) ) )","v":""},null,null,null,null,{"$f":"IF(TRIM(BW22)=\"\", \"\", IF(VLOOKUP(BW22,'Footnotes list'!$D$9:$E$58,2,FALSE)=0,\"\",VLOOKUP(BW22,'Footnotes list'!$D$9:$E$58,2,FALSE) ) )","v":""},null,null,null,null,{"$f":"IF(TRIM(CB22)=\"\", \"\", IF(VLOOKUP(CB22,'Footnotes list'!$D$9:$E$58,2,FALSE)=0,\"\",VLOOKUP(CB22,'Footnotes list'!$D$9:$E$58,2,FALSE) ) )","v":""},null,null,null,null,{"$f":"IF(TRIM(CG22)=\"\", \"\", IF(VLOOKUP(CG22,'Footnotes list'!$D$9:$E$58,2,FALSE)=0,\"\",VLOOKUP(CG22,'Footnotes list'!$D$9:$E$58,2,FALSE) ) )","v":""},null,null,null,null,{"$f":"IF(TRIM(CL22)=\"\", \"\", IF(VLOOKUP(CL22,'Footnotes list'!$D$9:$E$58,2,FALSE)=0,\"\",VLOOKUP(CL22,'Footnotes list'!$D$9:$E$58,2,FALSE) ) )","v":""},null,null,null,null,{"$f":"IF(TRIM(CQ22)=\"\", \"\", IF(VLOOKUP(CQ22,'Footnotes list'!$D$9:$E$58,2,FALSE)=0,\"\",VLOOKUP(CQ22,'Footnotes list'!$D$9:$E$58,2,FALSE) ) )","v":""},null,null,null,null,{"$f":"IF(TRIM(CV22)=\"\", \"\", IF(VLOOKUP(CV22,'Footnotes list'!$D$9:$E$58,2,FALSE)=0,\"\",VLOOKUP(CV22,'Footnotes list'!$D$9:$E$58,2,FALSE) ) )","v":""},null,null,null,null,{"$f":"IF(TRIM(DA22)=\"\", \"\", IF(VLOOKUP(DA22,'Footnotes list'!$D$9:$E$58,2,FALSE)=0,\"\",VLOOKUP(DA22,'Footnotes list'!$D$9:$E$58,2,FALSE) ) )","v":""},null,null,null,null,{"$f":"IF(TRIM(DF22)=\"\", \"\", IF(VLOOKUP(DF22,'Footnotes list'!$D$9:$E$58,2,FALSE)=0,\"\",VLOOKUP(DF22,'Footnotes list'!$D$9:$E$58,2,FALSE) ) )","v":""},null,null,null,null,{"$f":"IF(TRIM(DK22)=\"\", \"\", IF(VLOOKUP(DK22,'Footnotes list'!$D$9:$E$58,2,FALSE)=0,\"\",VLOOKUP(DK22,'Footnotes list'!$D$9:$E$58,2,FALSE) ) )","v":""},null,null,null,null,{"$f":"IF(TRIM(DP22)=\"\", \"\", IF(VLOOKUP(DP22,'Footnotes list'!$D$9:$E$58,2,FALSE)=0,\"\",VLOOKUP(DP22,'Footnotes list'!$D$9:$E$58,2,FALSE) ) )","v":""},null,null,null,null,{"$f":"IF(TRIM(DU22)=\"\", \"\", IF(VLOOKUP(DU22,'Footnotes list'!$D$9:$E$58,2,FALSE)=0,\"\",VLOOKUP(DU22,'Footnotes list'!$D$9:$E$58,2,FALSE) ) )","v":""},null,null,null,null,{"$f":"IF(TRIM(DZ22)=\"\", \"\", IF(VLOOKUP(DZ22,'Footnotes list'!$D$9:$E$58,2,FALSE)=0,\"\",VLOOKUP(DZ22,'Footnotes list'!$D$9:$E$58,2,FALSE) ) )","v":""},null,null,null,null,{"$f":"IF(TRIM(EE22)=\"\", \"\", IF(VLOOKUP(EE22,'Footnotes list'!$D$9:$E$58,2,FALSE)=0,\"\",VLOOKUP(EE22,'Footnotes list'!$D$9:$E$58,2,FALSE) ) )","v":""},null,null,null,null,{"$f":"IF(TRIM(EJ22)=\"\", \"\", IF(VLOOKUP(EJ22,'Footnotes list'!$D$9:$E$58,2,FALSE)=0,\"\",VLOOKUP(EJ22,'Footnotes list'!$D$9:$E$58,2,FALSE) ) )","v":""},null,null,null,null,{"$f":"IF(TRIM(EO22)=\"\", \"\", IF(VLOOKUP(EO22,'Footnotes list'!$D$9:$E$58,2,FALSE)=0,\"\",VLOOKUP(EO22,'Footnotes list'!$D$9:$E$58,2,FALSE) ) )","v":""},null,null,null,null,{"$f":"IF(TRIM(ET22)=\"\", \"\", IF(VLOOKUP(ET22,'Footnotes list'!$D$9:$E$58,2,FALSE)=0,\"\",VLOOKUP(ET22,'Footnotes list'!$D$9:$E$58,2,FALSE) ) )","v":""},null,null,null,null,{"$f":"IF(TRIM(EY22)=\"\", \"\", IF(VLOOKUP(EY22,'Footnotes list'!$D$9:$E$58,2,FALSE)=0,\"\",VLOOKUP(EY22,'Footnotes list'!$D$9:$E$58,2,FALSE) ) )","v":""}]
[null,null,"B","ANC","ancillary activities",null,null,null,null,null,{"$f":"IF(TRIM(J23)=\"\", \"\", IF(VLOOKUP(J23,'Footnotes list'!$D$9:$E$58,2,FALSE)=0,\"\",VLOOKUP(J23,'Footnotes list'!$D$9:$E$58,2,FALSE) ) )","v":""},null,null,null,null,{"$f":"IF(TRIM(O23)=\"\", \"\", IF(VLOOKUP(O23,'Footnotes list'!$D$9:$E$58,2,FALSE)=0,\"\",VLOOKUP(O23,'Footnotes list'!$D$9:$E$58,2,FALSE) ) )","v":""},null,null,null,null,{"$f":"IF(TRIM(T23)=\"\", \"\", IF(VLOOKUP(T23,'Footnotes list'!$D$9:$E$58,2,FALSE)=0,\"\",VLOOKUP(T23,'Footnotes list'!$D$9:$E$58,2,FALSE) ) )","v":""},null,null,null,null,{"$f":"IF(TRIM(Y23)=\"\", \"\", IF(VLOOKUP(Y23,'Footnotes list'!$D$9:$E$58,2,FALSE)=0,\"\",VLOOKUP(Y23,'Footnotes list'!$D$9:$E$58,2,FALSE) ) )","v":""},null,null,null,null,{"$f":"IF(TRIM(AD23)=\"\", \"\", IF(VLOOKUP(AD23,'Footnotes list'!$D$9:$E$58,2,FALSE)=0,\"\",VLOOKUP(AD23,'Footnotes list'!$D$9:$E$58,2,FALSE) ) )","v":""},null,null,null,null,{"$f":"IF(TRIM(AI23)=\"\", \"\", IF(VLOOKUP(AI23,'Footnotes list'!$D$9:$E$58,2,FALSE)=0,\"\",VLOOKUP(AI23,'Footnotes list'!$D$9:$E$58,2,FALSE) ) )","v":""},null,null,null,null,{"$f":"IF(TRIM(AN23)=\"\", \"\", IF(VLOOKUP(AN23,'Footnotes list'!$D$9:$E$58,2,FALSE)=0,\"\",VLOOKUP(AN23,'Footnotes list'!$D$9:$E$58,2,FALSE) ) )","v":""},null,null,null,null,{"$f":"IF(TRIM(AS23)=\"\", \"\", IF(VLOOKUP(AS23,'Footnotes list'!$D$9:$E$58,2,FALSE)=0,\"\",VLOOKUP(AS23,'Footnotes list'!$D$9:$E$58,2,FALSE) ) )","v":""},null,null,null,null,{"$f":"IF(TRIM(AX23)=\"\", \"\", IF(VLOOKUP(AX23,'Footnotes list'!$D$9:$E$58,2,FALSE)=0,\"\",VLOOKUP(AX23,'Footnotes list'!$D$9:$E$58,2,FALSE) ) )","v":""},null,null,null,null,{"$f":"IF(TRIM(BC23)=\"\", \"\", IF(VLOOKUP(BC23,'Footnotes list'!$D$9:$E$58,2,FALSE)=0,\"\",VLOOKUP(BC23,'Footnotes list'!$D$9:$E$58,2,FALSE) ) )","v":""},null,null,null,null,{"$f":"IF(TRIM(BH23)=\"\", \"\", IF(VLOOKUP(BH23,'Footnotes list'!$D$9:$E$58,2,FALSE)=0,\"\",VLOOKUP(BH23,'Footnotes list'!$D$9:$E$58,2,FALSE) ) )","v":""},null,null,null,null,{"$f":"IF(TRIM(BM23)=\"\", \"\", IF(VLOOKUP(BM23,'Footnotes list'!$D$9:$E$58,2,FALSE)=0,\"\",VLOOKUP(BM23,'Footnotes list'!$D$9:$E$58,2,FALSE) ) )","v":""},null,null,null,null,{"$f":"IF(TRIM(BR23)=\"\", \"\", IF(VLOOKUP(BR23,'Footnotes list'!$D$9:$E$58,2,FALSE)=0,\"\",VLOOKUP(BR23,'Footnotes list'!$D$9:$E$58,2,FALSE) ) )","v":""},null,null,null,null,{"$f":"IF(TRIM(BW23)=\"\", \"\", IF(VLOOKUP(BW23,'Footnotes list'!$D$9:$E$58,2,FALSE)=0,\"\",VLOOKUP(BW23,'Footnotes list'!$D$9:$E$58,2,FALSE) ) )","v":""},null,null,null,null,{"$f":"IF(TRIM(CB23)=\"\", \"\", IF(VLOOKUP(CB23,'Footnotes list'!$D$9:$E$58,2,FALSE)=0,\"\",VLOOKUP(CB23,'Footnotes list'!$D$9:$E$58,2,FALSE) ) )","v":""},null,null,null,null,{"$f":"IF(TRIM(CG23)=\"\", \"\", IF(VLOOKUP(CG23,'Footnotes list'!$D$9:$E$58,2,FALSE)=0,\"\",VLOOKUP(CG23,'Footnotes list'!$D$9:$E$58,2,FALSE) ) )","v":""},null,null,null,null,{"$f":"IF(TRIM(CL23)=\"\", \"\", IF(VLOOKUP(CL23,'Footnotes list'!$D$9:$E$58,2,FALSE)=0,\"\",VLOOKUP(CL23,'Footnotes list'!$D$9:$E$58,2,FALSE) ) )","v":""},null,null,null,null,{"$f":"IF(TRIM(CQ23)=\"\", \"\", IF(VLOOKUP(CQ23,'Footnotes list'!$D$9:$E$58,2,FALSE)=0,\"\",VLOOKUP(CQ23,'Footnotes list'!$D$9:$E$58,2,FALSE) ) )","v":""},null,null,null,null,{"$f":"IF(TRIM(CV23)=\"\", \"\", IF(VLOOKUP(CV23,'Footnotes list'!$D$9:$E$58,2,FALSE)=0,\"\",VLOOKUP(CV23,'Footnotes list'!$D$9:$E$58,2,FALSE) ) )","v":""},null,null,null,null,{"$f":"IF(TRIM(DA23)=\"\", \"\", IF(VLOOKUP(DA23,'Footnotes list'!$D$9:$E$58,2,FALSE)=0,\"\",VLOOKUP(DA23,'Footnotes list'!$D$9:$E$58,2,FALSE) ) )","v":""},null,null,null,null,{"$f":"IF(TRIM(DF23)=\"\", \"\", IF(VLOOKUP(DF23,'Footnotes list'!$D$9:$E$58,2,FALSE)=0,\"\",VLOOKUP(DF23,'Footnotes list'!$D$9:$E$58,2,FALSE) ) )","v":""},null,null,null,null,{"$f":"IF(TRIM(DK23)=\"\", \"\", IF(VLOOKUP(DK23,'Footnotes list'!$D$9:$E$58,2,FALSE)=0,\"\",VLOOKUP(DK23,'Footnotes list'!$D$9:$E$58,2,FALSE) ) )","v":""},null,null,null,null,{"$f":"IF(TRIM(DP23)=\"\", \"\", IF(VLOOKUP(DP23,'Footnotes list'!$D$9:$E$58,2,FALSE)=0,\"\",VLOOKUP(DP23,'Footnotes list'!$D$9:$E$58,2,FALSE) ) )","v":""},null,null,null,null,{"$f":"IF(TRIM(DU23)=\"\", \"\", IF(VLOOKUP(DU23,'Footnotes list'!$D$9:$E$58,2,FALSE)=0,\"\",VLOOKUP(DU23,'Footnotes list'!$D$9:$E$58,2,FALSE) ) )","v":""},null,null,null,null,{"$f":"IF(TRIM(DZ23)=\"\", \"\", IF(VLOOKUP(DZ23,'Footnotes list'!$D$9:$E$58,2,FALSE)=0,\"\",VLOOKUP(DZ23,'Footnotes list'!$D$9:$E$58,2,FALSE) ) )","v":""},null,null,null,null,{"$f":"IF(TRIM(EE23)=\"\", \"\", IF(VLOOKUP(EE23,'Footnotes list'!$D$9:$E$58,2,FALSE)=0,\"\",VLOOKUP(EE23,'Footnotes list'!$D$9:$E$58,2,FALSE) ) )","v":""},null,null,null,null,{"$f":"IF(TRIM(EJ23)=\"\", \"\", IF(VLOOKUP(EJ23,'Footnotes list'!$D$9:$E$58,2,FALSE)=0,\"\",VLOOKUP(EJ23,'Footnotes list'!$D$9:$E$58,2,FALSE) ) )","v":""},null,null,null,null,{"$f":"IF(TRIM(EO23)=\"\", \"\", IF(VLOOKUP(EO23,'Footnotes list'!$D$9:$E$58,2,FALSE)=0,\"\",VLOOKUP(EO23,'Footnotes list'!$D$9:$E$58,2,FALSE) ) )","v":""},null,null,null,null,{"$f":"IF(TRIM(ET23)=\"\", \"\", IF(VLOOKUP(ET23,'Footnotes list'!$D$9:$E$58,2,FALSE)=0,\"\",VLOOKUP(ET23,'Footnotes list'!$D$9:$E$58,2,FALSE) ) )","v":""},null,null,null,null,{"$f":"IF(TRIM(EY23)=\"\", \"\", IF(VLOOKUP(EY23,'Footnotes list'!$D$9:$E$58,2,FALSE)=0,\"\",VLOOKUP(EY23,'Footnotes list'!$D$9:$E$58,2,FALSE) ) )","v":""}]
[null,null,"B","NMKT","non-market activities",null,null,null,null,null,{"$f":"IF(TRIM(J24)=\"\", \"\", IF(VLOOKUP(J24,'Footnotes list'!$D$9:$E$58,2,FALSE)=0,\"\",VLOOKUP(J24,'Footnotes list'!$D$9:$E$58,2,FALSE) ) )","v":""},null,null,null,null,{"$f":"IF(TRIM(O24)=\"\", \"\", IF(VLOOKUP(O24,'Footnotes list'!$D$9:$E$58,2,FALSE)=0,\"\",VLOOKUP(O24,'Footnotes list'!$D$9:$E$58,2,FALSE) ) )","v":""},null,null,null,null,{"$f":"IF(TRIM(T24)=\"\", \"\", IF(VLOOKUP(T24,'Footnotes list'!$D$9:$E$58,2,FALSE)=0,\"\",VLOOKUP(T24,'Footnotes list'!$D$9:$E$58,2,FALSE) ) )","v":""},null,null,null,null,{"$f":"IF(TRIM(Y24)=\"\", \"\", IF(VLOOKUP(Y24,'Footnotes list'!$D$9:$E$58,2,FALSE)=0,\"\",VLOOKUP(Y24,'Footnotes list'!$D$9:$E$58,2,FALSE) ) )","v":""},null,null,null,null,{"$f":"IF(TRIM(AD24)=\"\", \"\", IF(VLOOKUP(AD24,'Footnotes list'!$D$9:$E$58,2,FALSE)=0,\"\",VLOOKUP(AD24,'Footnotes list'!$D$9:$E$58,2,FALSE) ) )","v":""},null,null,null,null,{"$f":"IF(TRIM(AI24)=\"\", \"\", IF(VLOOKUP(AI24,'Footnotes list'!$D$9:$E$58,2,FALSE)=0,\"\",VLOOKUP(AI24,'Footnotes list'!$D$9:$E$58,2,FALSE) ) )","v":""},null,null,null,null,{"$f":"IF(TRIM(AN24)=\"\", \"\", IF(VLOOKUP(AN24,'Footnotes list'!$D$9:$E$58,2,FALSE)=0,\"\",VLOOKUP(AN24,'Footnotes list'!$D$9:$E$58,2,FALSE) ) )","v":""},null,null,null,null,{"$f":"IF(TRIM(AS24)=\"\", \"\", IF(VLOOKUP(AS24,'Footnotes list'!$D$9:$E$58,2,FALSE)=0,\"\",VLOOKUP(AS24,'Footnotes list'!$D$9:$E$58,2,FALSE) ) )","v":""},null,null,null,null,{"$f":"IF(TRIM(AX24)=\"\", \"\", IF(VLOOKUP(AX24,'Footnotes list'!$D$9:$E$58,2,FALSE)=0,\"\",VLOOKUP(AX24,'Footnotes list'!$D$9:$E$58,2,FALSE) ) )","v":""},null,null,null,null,{"$f":"IF(TRIM(BC24)=\"\", \"\", IF(VLOOKUP(BC24,'Footnotes list'!$D$9:$E$58,2,FALSE)=0,\"\",VLOOKUP(BC24,'Footnotes list'!$D$9:$E$58,2,FALSE) ) )","v":""},null,null,null,null,{"$f":"IF(TRIM(BH24)=\"\", \"\", IF(VLOOKUP(BH24,'Footnotes list'!$D$9:$E$58,2,FALSE)=0,\"\",VLOOKUP(BH24,'Footnotes list'!$D$9:$E$58,2,FALSE) ) )","v":""},null,null,null,null,{"$f":"IF(TRIM(BM24)=\"\", \"\", IF(VLOOKUP(BM24,'Footnotes list'!$D$9:$E$58,2,FALSE)=0,\"\",VLOOKUP(BM24,'Footnotes list'!$D$9:$E$58,2,FALSE) ) )","v":""},null,null,null,null,{"$f":"IF(TRIM(BR24)=\"\", \"\", IF(VLOOKUP(BR24,'Footnotes list'!$D$9:$E$58,2,FALSE)=0,\"\",VLOOKUP(BR24,'Footnotes list'!$D$9:$E$58,2,FALSE) ) )","v":""},null,null,null,null,{"$f":"IF(TRIM(BW24)=\"\", \"\", IF(VLOOKUP(BW24,'Footnotes list'!$D$9:$E$58,2,FALSE)=0,\"\",VLOOKUP(BW24,'Footnotes list'!$D$9:$E$58,2,FALSE) ) )","v":""},null,null,null,null,{"$f":"IF(TRIM(CB24)=\"\", \"\", IF(VLOOKUP(CB24,'Footnotes list'!$D$9:$E$58,2,FALSE)=0,\"\",VLOOKUP(CB24,'Footnotes list'!$D$9:$E$58,2,FALSE) ) )","v":""},null,null,null,null,{"$f":"IF(TRIM(CG24)=\"\", \"\", IF(VLOOKUP(CG24,'Footnotes list'!$D$9:$E$58,2,FALSE)=0,\"\",VLOOKUP(CG24,'Footnotes list'!$D$9:$E$58,2,FALSE) ) )","v":""},null,null,null,null,{"$f":"IF(TRIM(CL24)=\"\", \"\", IF(VLOOKUP(CL24,'Footnotes list'!$D$9:$E$58,2,FALSE)=0,\"\",VLOOKUP(CL24,'Footnotes list'!$D$9:$E$58,2,FALSE) ) )","v":""},null,null,null,null,{"$f":"IF(TRIM(CQ24)=\"\", \"\", IF(VLOOKUP(CQ24,'Footnotes list'!$D$9:$E$58,2,FALSE)=0,\"\",VLOOKUP(CQ24,'Footnotes list'!$D$9:$E$58,2,FALSE) ) )","v":""},null,null,null,null,{"$f":"IF(TRIM(CV24)=\"\", \"\", IF(VLOOKUP(CV24,'Footnotes list'!$D$9:$E$58,2,FALSE)=0,\"\",VLOOKUP(CV24,'Footnotes list'!$D$9:$E$58,2,FALSE) ) )","v":""},null,null,null,null,{"$f":"IF(TRIM(DA24)=\"\", \"\", IF(VLOOKUP(DA24,'Footnotes list'!$D$9:$E$58,2,FALSE)=0,\"\",VLOOKUP(DA24,'Footnotes list'!$D$9:$E$58,2,FALSE) ) )","v":""},null,null,null,null,{"$f":"IF(TRIM(DF24)=\"\", \"\", IF(VLOOKUP(DF24,'Footnotes list'!$D$9:$E$58,2,FALSE)=0,\"\",VLOOKUP(DF24,'Footnotes list'!$D$9:$E$58,2,FALSE) ) )","v":""},null,null,null,null,{"$f":"IF(TRIM(DK24)=\"\", \"\", IF(VLOOKUP(DK24,'Footnotes list'!$D$9:$E$58,2,FALSE)=0,\"\",VLOOKUP(DK24,'Footnotes list'!$D$9:$E$58,2,FALSE) ) )","v":""},null,null,null,null,{"$f":"IF(TRIM(DP24)=\"\", \"\", IF(VLOOKUP(DP24,'Footnotes list'!$D$9:$E$58,2,FALSE)=0,\"\",VLOOKUP(DP24,'Footnotes list'!$D$9:$E$58,2,FALSE) ) )","v":""},null,null,null,null,{"$f":"IF(TRIM(DU24)=\"\", \"\", IF(VLOOKUP(DU24,'Footnotes list'!$D$9:$E$58,2,FALSE)=0,\"\",VLOOKUP(DU24,'Footnotes list'!$D$9:$E$58,2,FALSE) ) )","v":""},null,null,null,null,{"$f":"IF(TRIM(DZ24)=\"\", \"\", IF(VLOOKUP(DZ24,'Footnotes list'!$D$9:$E$58,2,FALSE)=0,\"\",VLOOKUP(DZ24,'Footnotes list'!$D$9:$E$58,2,FALSE) ) )","v":""},null,null,null,null,{"$f":"IF(TRIM(EE24)=\"\", \"\", IF(VLOOKUP(EE24,'Footnotes list'!$D$9:$E$58,2,FALSE)=0,\"\",VLOOKUP(EE24,'Footnotes list'!$D$9:$E$58,2,FALSE) ) )","v":""},null,null,null,null,{"$f":"IF(TRIM(EJ24)=\"\", \"\", IF(VLOOKUP(EJ24,'Footnotes list'!$D$9:$E$58,2,FALSE)=0,\"\",VLOOKUP(EJ24,'Footnotes list'!$D$9:$E$58,2,FALSE) ) )","v":""},null,null,null,null,{"$f":"IF(TRIM(EO24)=\"\", \"\", IF(VLOOKUP(EO24,'Footnotes list'!$D$9:$E$58,2,FALSE)=0,\"\",VLOOKUP(EO24,'Footnotes list'!$D$9:$E$58,2,FALSE) ) )","v":""},null,null,null,null,{"$f":"IF(TRIM(ET24)=\"\", \"\", IF(VLOOKUP(ET24,'Footnotes list'!$D$9:$E$58,2,FALSE)=0,\"\",VLOOKUP(ET24,'Footnotes list'!$D$9:$E$58,2,FALSE) ) )","v":""},null,null,null,null,{"$f":"IF(TRIM(EY24)=\"\", \"\", IF(VLOOKUP(EY24,'Footnotes list'!$D$9:$E$58,2,FALSE)=0,\"\",VLOOKUP(EY24,'Footnotes list'!$D$9:$E$58,2,FALSE) ) )","v":""}]
[null,null,"B","OWN_USE","activities for own final use",null,null,null,null,null,{"$f":"IF(TRIM(J25)=\"\", \"\", IF(VLOOKUP(J25,'Footnotes list'!$D$9:$E$58,2,FALSE)=0,\"\",VLOOKUP(J25,'Footnotes list'!$D$9:$E$58,2,FALSE) ) )","v":""},null,null,null,null,{"$f":"IF(TRIM(O25)=\"\", \"\", IF(VLOOKUP(O25,'Footnotes list'!$D$9:$E$58,2,FALSE)=0,\"\",VLOOKUP(O25,'Footnotes list'!$D$9:$E$58,2,FALSE) ) )","v":""},null,null,null,null,{"$f":"IF(TRIM(T25)=\"\", \"\", IF(VLOOKUP(T25,'Footnotes list'!$D$9:$E$58,2,FALSE)=0,\"\",VLOOKUP(T25,'Footnotes list'!$D$9:$E$58,2,FALSE) ) )","v":""},null,null,null,null,{"$f":"IF(TRIM(Y25)=\"\", \"\", IF(VLOOKUP(Y25,'Footnotes list'!$D$9:$E$58,2,FALSE)=0,\"\",VLOOKUP(Y25,'Footnotes list'!$D$9:$E$58,2,FALSE) ) )","v":""},null,null,null,null,{"$f":"IF(TRIM(AD25)=\"\", \"\", IF(VLOOKUP(AD25,'Footnotes list'!$D$9:$E$58,2,FALSE)=0,\"\",VLOOKUP(AD25,'Footnotes list'!$D$9:$E$58,2,FALSE) ) )","v":""},null,null,null,null,{"$f":"IF(TRIM(AI25)=\"\", \"\", IF(VLOOKUP(AI25,'Footnotes list'!$D$9:$E$58,2,FALSE)=0,\"\",VLOOKUP(AI25,'Footnotes list'!$D$9:$E$58,2,FALSE) ) )","v":""},null,null,null,null,{"$f":"IF(TRIM(AN25)=\"\", \"\", IF(VLOOKUP(AN25,'Footnotes list'!$D$9:$E$58,2,FALSE)=0,\"\",VLOOKUP(AN25,'Footnotes list'!$D$9:$E$58,2,FALSE) ) )","v":""},null,null,null,null,{"$f":"IF(TRIM(AS25)=\"\", \"\", IF(VLOOKUP(AS25,'Footnotes list'!$D$9:$E$58,2,FALSE)=0,\"\",VLOOKUP(AS25,'Footnotes list'!$D$9:$E$58,2,FALSE) ) )","v":""},null,null,null,null,{"$f":"IF(TRIM(AX25)=\"\", \"\", IF(VLOOKUP(AX25,'Footnotes list'!$D$9:$E$58,2,FALSE)=0,\"\",VLOOKUP(AX25,'Footnotes list'!$D$9:$E$58,2,FALSE) ) )","v":""},null,null,null,null,{"$f":"IF(TRIM(BC25)=\"\", \"\", IF(VLOOKUP(BC25,'Footnotes list'!$D$9:$E$58,2,FALSE)=0,\"\",VLOOKUP(BC25,'Footnotes list'!$D$9:$E$58,2,FALSE) ) )","v":""},null,null,null,null,{"$f":"IF(TRIM(BH25)=\"\", \"\", IF(VLOOKUP(BH25,'Footnotes list'!$D$9:$E$58,2,FALSE)=0,\"\",VLOOKUP(BH25,'Footnotes list'!$D$9:$E$58,2,FALSE) ) )","v":""},null,null,null,null,{"$f":"IF(TRIM(BM25)=\"\", \"\", IF(VLOOKUP(BM25,'Footnotes list'!$D$9:$E$58,2,FALSE)=0,\"\",VLOOKUP(BM25,'Footnotes list'!$D$9:$E$58,2,FALSE) ) )","v":""},null,null,null,null,{"$f":"IF(TRIM(BR25)=\"\", \"\", IF(VLOOKUP(BR25,'Footnotes list'!$D$9:$E$58,2,FALSE)=0,\"\",VLOOKUP(BR25,'Footnotes list'!$D$9:$E$58,2,FALSE) ) )","v":""},null,null,null,null,{"$f":"IF(TRIM(BW25)=\"\", \"\", IF(VLOOKUP(BW25,'Footnotes list'!$D$9:$E$58,2,FALSE)=0,\"\",VLOOKUP(BW25,'Footnotes list'!$D$9:$E$58,2,FALSE) ) )","v":""},null,null,null,null,{"$f":"IF(TRIM(CB25)=\"\", \"\", IF(VLOOKUP(CB25,'Footnotes list'!$D$9:$E$58,2,FALSE)=0,\"\",VLOOKUP(CB25,'Footnotes list'!$D$9:$E$58,2,FALSE) ) )","v":""},null,null,null,null,{"$f":"IF(TRIM(CG25)=\"\", \"\", IF(VLOOKUP(CG25,'Footnotes list'!$D$9:$E$58,2,FALSE)=0,\"\",VLOOKUP(CG25,'Footnotes list'!$D$9:$E$58,2,FALSE) ) )","v":""},null,null,null,null,{"$f":"IF(TRIM(CL25)=\"\", \"\", IF(VLOOKUP(CL25,'Footnotes list'!$D$9:$E$58,2,FALSE)=0,\"\",VLOOKUP(CL25,'Footnotes list'!$D$9:$E$58,2,FALSE) ) )","v":""},null,null,null,null,{"$f":"IF(TRIM(CQ25)=\"\", \"\", IF(VLOOKUP(CQ25,'Footnotes list'!$D$9:$E$58,2,FALSE)=0,\"\",VLOOKUP(CQ25,'Footnotes list'!$D$9:$E$58,2,FALSE) ) )","v":""},null,null,null,null,{"$f":"IF(TRIM(CV25)=\"\", \"\", IF(VLOOKUP(CV25,'Footnotes list'!$D$9:$E$58,2,FALSE)=0,\"\",VLOOKUP(CV25,'Footnotes list'!$D$9:$E$58,2,FALSE) ) )","v":""},null,null,null,null,{"$f":"IF(TRIM(DA25)=\"\", \"\", IF(VLOOKUP(DA25,'Footnotes list'!$D$9:$E$58,2,FALSE)=0,\"\",VLOOKUP(DA25,'Footnotes list'!$D$9:$E$58,2,FALSE) ) )","v":""},null,null,null,null,{"$f":"IF(TRIM(DF25)=\"\", \"\", IF(VLOOKUP(DF25,'Footnotes list'!$D$9:$E$58,2,FALSE)=0,\"\",VLOOKUP(DF25,'Footnotes list'!$D$9:$E$58,2,FALSE) ) )","v":""},null,null,null,null,{"$f":"IF(TRIM(DK25)=\"\", \"\", IF(VLOOKUP(DK25,'Footnotes list'!$D$9:$E$58,2,FALSE)=0,\"\",VLOOKUP(DK25,'Footnotes list'!$D$9:$E$58,2,FALSE) ) )","v":""},null,null,null,null,{"$f":"IF(TRIM(DP25)=\"\", \"\", IF(VLOOKUP(DP25,'Footnotes list'!$D$9:$E$58,2,FALSE)=0,\"\",VLOOKUP(DP25,'Footnotes list'!$D$9:$E$58,2,FALSE) ) )","v":""},null,null,null,null,{"$f":"IF(TRIM(DU25)=\"\", \"\", IF(VLOOKUP(DU25,'Footnotes list'!$D$9:$E$58,2,FALSE)=0,\"\",VLOOKUP(DU25,'Footnotes list'!$D$9:$E$58,2,FALSE) ) )","v":""},null,null,null,null,{"$f":"IF(TRIM(DZ25)=\"\", \"\", IF(VLOOKUP(DZ25,'Footnotes list'!$D$9:$E$58,2,FALSE)=0,\"\",VLOOKUP(DZ25,'Footnotes list'!$D$9:$E$58,2,FALSE) ) )","v":""},null,null,null,null,{"$f":"IF(TRIM(EE25)=\"\", \"\", IF(VLOOKUP(EE25,'Footnotes list'!$D$9:$E$58,2,FALSE)=0,\"\",VLOOKUP(EE25,'Footnotes list'!$D$9:$E$58,2,FALSE) ) )","v":""},null,null,null,null,{"$f":"IF(TRIM(EJ25)=\"\", \"\", IF(VLOOKUP(EJ25,'Footnotes list'!$D$9:$E$58,2,FALSE)=0,\"\",VLOOKUP(EJ25,'Footnotes list'!$D$9:$E$58,2,FALSE) ) )","v":""},null,null,null,null,{"$f":"IF(TRIM(EO25)=\"\", \"\", IF(VLOOKUP(EO25,'Footnotes list'!$D$9:$E$58,2,FALSE)=0,\"\",VLOOKUP(EO25,'Footnotes list'!$D$9:$E$58,2,FALSE) ) )","v":""},null,null,null,null,{"$f":"IF(TRIM(ET25)=\"\", \"\", IF(VLOOKUP(ET25,'Footnotes list'!$D$9:$E$58,2,FALSE)=0,\"\",VLOOKUP(ET25,'Footnotes list'!$D$9:$E$58,2,FALSE) ) )","v":""},null,null,null,null,{"$f":"IF(TRIM(EY25)=\"\", \"\", IF(VLOOKUP(EY25,'Footnotes list'!$D$9:$E$58,2,FALSE)=0,\"\",VLOOKUP(EY25,'Footnotes list'!$D$9:$E$58,2,FALSE) ) )","v":""}]
[null,null,"B","MKT","market activities, including:",null,null,null,null,null,{"$f":"IF(TRIM(J26)=\"\", \"\", IF(VLOOKUP(J26,'Footnotes list'!$D$9:$E$58,2,FALSE)=0,\"\",VLOOKUP(J26,'Footnotes list'!$D$9:$E$58,2,FALSE) ) )","v":""},null,null,null,null,{"$f":"IF(TRIM(O26)=\"\", \"\", IF(VLOOKUP(O26,'Footnotes list'!$D$9:$E$58,2,FALSE)=0,\"\",VLOOKUP(O26,'Footnotes list'!$D$9:$E$58,2,FALSE) ) )","v":""},null,null,null,null,{"$f":"IF(TRIM(T26)=\"\", \"\", IF(VLOOKUP(T26,'Footnotes list'!$D$9:$E$58,2,FALSE)=0,\"\",VLOOKUP(T26,'Footnotes list'!$D$9:$E$58,2,FALSE) ) )","v":""},null,null,null,null,{"$f":"IF(TRIM(Y26)=\"\", \"\", IF(VLOOKUP(Y26,'Footnotes list'!$D$9:$E$58,2,FALSE)=0,\"\",VLOOKUP(Y26,'Footnotes list'!$D$9:$E$58,2,FALSE) ) )","v":""},null,null,null,null,{"$f":"IF(TRIM(AD26)=\"\", \"\", IF(VLOOKUP(AD26,'Footnotes list'!$D$9:$E$58,2,FALSE)=0,\"\",VLOOKUP(AD26,'Footnotes list'!$D$9:$E$58,2,FALSE) ) )","v":""},null,null,null,null,{"$f":"IF(TRIM(AI26)=\"\", \"\", IF(VLOOKUP(AI26,'Footnotes list'!$D$9:$E$58,2,FALSE)=0,\"\",VLOOKUP(AI26,'Footnotes list'!$D$9:$E$58,2,FALSE) ) )","v":""},null,null,null,null,{"$f":"IF(TRIM(AN26)=\"\", \"\", IF(VLOOKUP(AN26,'Footnotes list'!$D$9:$E$58,2,FALSE)=0,\"\",VLOOKUP(AN26,'Footnotes list'!$D$9:$E$58,2,FALSE) ) )","v":""},null,null,null,null,{"$f":"IF(TRIM(AS26)=\"\", \"\", IF(VLOOKUP(AS26,'Footnotes list'!$D$9:$E$58,2,FALSE)=0,\"\",VLOOKUP(AS26,'Footnotes list'!$D$9:$E$58,2,FALSE) ) )","v":""},null,null,null,null,{"$f":"IF(TRIM(AX26)=\"\", \"\", IF(VLOOKUP(AX26,'Footnotes list'!$D$9:$E$58,2,FALSE)=0,\"\",VLOOKUP(AX26,'Footnotes list'!$D$9:$E$58,2,FALSE) ) )","v":""},null,null,null,null,{"$f":"IF(TRIM(BC26)=\"\", \"\", IF(VLOOKUP(BC26,'Footnotes list'!$D$9:$E$58,2,FALSE)=0,\"\",VLOOKUP(BC26,'Footnotes list'!$D$9:$E$58,2,FALSE) ) )","v":""},null,null,null,null,{"$f":"IF(TRIM(BH26)=\"\", \"\", IF(VLOOKUP(BH26,'Footnotes list'!$D$9:$E$58,2,FALSE)=0,\"\",VLOOKUP(BH26,'Footnotes list'!$D$9:$E$58,2,FALSE) ) )","v":""},null,null,null,null,{"$f":"IF(TRIM(BM26)=\"\", \"\", IF(VLOOKUP(BM26,'Footnotes list'!$D$9:$E$58,2,FALSE)=0,\"\",VLOOKUP(BM26,'Footnotes list'!$D$9:$E$58,2,FALSE) ) )","v":""},null,null,null,null,{"$f":"IF(TRIM(BR26)=\"\", \"\", IF(VLOOKUP(BR26,'Footnotes list'!$D$9:$E$58,2,FALSE)=0,\"\",VLOOKUP(BR26,'Footnotes list'!$D$9:$E$58,2,FALSE) ) )","v":""},null,null,null,null,{"$f":"IF(TRIM(BW26)=\"\", \"\", IF(VLOOKUP(BW26,'Footnotes list'!$D$9:$E$58,2,FALSE)=0,\"\",VLOOKUP(BW26,'Footnotes list'!$D$9:$E$58,2,FALSE) ) )","v":""},null,null,null,null,{"$f":"IF(TRIM(CB26)=\"\", \"\", IF(VLOOKUP(CB26,'Footnotes list'!$D$9:$E$58,2,FALSE)=0,\"\",VLOOKUP(CB26,'Footnotes list'!$D$9:$E$58,2,FALSE) ) )","v":""},null,null,null,null,{"$f":"IF(TRIM(CG26)=\"\", \"\", IF(VLOOKUP(CG26,'Footnotes list'!$D$9:$E$58,2,FALSE)=0,\"\",VLOOKUP(CG26,'Footnotes list'!$D$9:$E$58,2,FALSE) ) )","v":""},null,null,null,null,{"$f":"IF(TRIM(CL26)=\"\", \"\", IF(VLOOKUP(CL26,'Footnotes list'!$D$9:$E$58,2,FALSE)=0,\"\",VLOOKUP(CL26,'Footnotes list'!$D$9:$E$58,2,FALSE) ) )","v":""},null,null,null,null,{"$f":"IF(TRIM(CQ26)=\"\", \"\", IF(VLOOKUP(CQ26,'Footnotes list'!$D$9:$E$58,2,FALSE)=0,\"\",VLOOKUP(CQ26,'Footnotes list'!$D$9:$E$58,2,FALSE) ) )","v":""},null,null,null,null,{"$f":"IF(TRIM(CV26)=\"\", \"\", IF(VLOOKUP(CV26,'Footnotes list'!$D$9:$E$58,2,FALSE)=0,\"\",VLOOKUP(CV26,'Footnotes list'!$D$9:$E$58,2,FALSE) ) )","v":""},null,null,null,null,{"$f":"IF(TRIM(DA26)=\"\", \"\", IF(VLOOKUP(DA26,'Footnotes list'!$D$9:$E$58,2,FALSE)=0,\"\",VLOOKUP(DA26,'Footnotes list'!$D$9:$E$58,2,FALSE) ) )","v":""},null,null,null,null,{"$f":"IF(TRIM(DF26)=\"\", \"\", IF(VLOOKUP(DF26,'Footnotes list'!$D$9:$E$58,2,FALSE)=0,\"\",VLOOKUP(DF26,'Footnotes list'!$D$9:$E$58,2,FALSE) ) )","v":""},null,null,null,null,{"$f":"IF(TRIM(DK26)=\"\", \"\", IF(VLOOKUP(DK26,'Footnotes list'!$D$9:$E$58,2,FALSE)=0,\"\",VLOOKUP(DK26,'Footnotes list'!$D$9:$E$58,2,FALSE) ) )","v":""},null,null,null,null,{"$f":"IF(TRIM(DP26)=\"\", \"\", IF(VLOOKUP(DP26,'Footnotes list'!$D$9:$E$58,2,FALSE)=0,\"\",VLOOKUP(DP26,'Footnotes list'!$D$9:$E$58,2,FALSE) ) )","v":""},null,null,null,null,{"$f":"IF(TRIM(DU26)=\"\", \"\", IF(VLOOKUP(DU26,'Footnotes list'!$D$9:$E$58,2,FALSE)=0,\"\",VLOOKUP(DU26,'Footnotes list'!$D$9:$E$58,2,FALSE) ) )","v":""},null,null,null,null,{"$f":"IF(TRIM(DZ26)=\"\", \"\", IF(VLOOKUP(DZ26,'Footnotes list'!$D$9:$E$58,2,FALSE)=0,\"\",VLOOKUP(DZ26,'Footnotes list'!$D$9:$E$58,2,FALSE) ) )","v":""},null,null,null,null,{"$f":"IF(TRIM(EE26)=\"\", \"\", IF(VLOOKUP(EE26,'Footnotes list'!$D$9:$E$58,2,FALSE)=0,\"\",VLOOKUP(EE26,'Footnotes list'!$D$9:$E$58,2,FALSE) ) )","v":""},null,null,null,null,{"$f":"IF(TRIM(EJ26)=\"\", \"\", IF(VLOOKUP(EJ26,'Footnotes list'!$D$9:$E$58,2,FALSE)=0,\"\",VLOOKUP(EJ26,'Footnotes list'!$D$9:$E$58,2,FALSE) ) )","v":""},null,null,null,null,{"$f":"IF(TRIM(EO26)=\"\", \"\", IF(VLOOKUP(EO26,'Footnotes list'!$D$9:$E$58,2,FALSE)=0,\"\",VLOOKUP(EO26,'Footnotes list'!$D$9:$E$58,2,FALSE) ) )","v":""},null,null,null,null,{"$f":"IF(TRIM(ET26)=\"\", \"\", IF(VLOOKUP(ET26,'Footnotes list'!$D$9:$E$58,2,FALSE)=0,\"\",VLOOKUP(ET26,'Footnotes list'!$D$9:$E$58,2,FALSE) ) )","v":""},null,null,null,null,{"$f":"IF(TRIM(EY26)=\"\", \"\", IF(VLOOKUP(EY26,'Footnotes list'!$D$9:$E$58,2,FALSE)=0,\"\",VLOOKUP(EY26,'Footnotes list'!$D$9:$E$58,2,FALSE) ) )","v":""}]
[null,null,"B","ES_CS","environmental specific services",null,null,null,null,null,{"$f":"IF(TRIM(J27)=\"\", \"\", IF(VLOOKUP(J27,'Footnotes list'!$D$9:$E$58,2,FALSE)=0,\"\",VLOOKUP(J27,'Footnotes list'!$D$9:$E$58,2,FALSE) ) )","v":""},null,null,null,null,{"$f":"IF(TRIM(O27)=\"\", \"\", IF(VLOOKUP(O27,'Footnotes list'!$D$9:$E$58,2,FALSE)=0,\"\",VLOOKUP(O27,'Footnotes list'!$D$9:$E$58,2,FALSE) ) )","v":""},null,null,null,null,{"$f":"IF(TRIM(T27)=\"\", \"\", IF(VLOOKUP(T27,'Footnotes list'!$D$9:$E$58,2,FALSE)=0,\"\",VLOOKUP(T27,'Footnotes list'!$D$9:$E$58,2,FALSE) ) )","v":""},null,null,null,null,{"$f":"IF(TRIM(Y27)=\"\", \"\", IF(VLOOKUP(Y27,'Footnotes list'!$D$9:$E$58,2,FALSE)=0,\"\",VLOOKUP(Y27,'Footnotes list'!$D$9:$E$58,2,FALSE) ) )","v":""},null,null,null,null,{"$f":"IF(TRIM(AD27)=\"\", \"\", IF(VLOOKUP(AD27,'Footnotes list'!$D$9:$E$58,2,FALSE)=0,\"\",VLOOKUP(AD27,'Footnotes list'!$D$9:$E$58,2,FALSE) ) )","v":""},null,null,null,null,{"$f":"IF(TRIM(AI27)=\"\", \"\", IF(VLOOKUP(AI27,'Footnotes list'!$D$9:$E$58,2,FALSE)=0,\"\",VLOOKUP(AI27,'Footnotes list'!$D$9:$E$58,2,FALSE) ) )","v":""},null,null,null,null,{"$f":"IF(TRIM(AN27)=\"\", \"\", IF(VLOOKUP(AN27,'Footnotes list'!$D$9:$E$58,2,FALSE)=0,\"\",VLOOKUP(AN27,'Footnotes list'!$D$9:$E$58,2,FALSE) ) )","v":""},null,null,null,null,{"$f":"IF(TRIM(AS27)=\"\", \"\", IF(VLOOKUP(AS27,'Footnotes list'!$D$9:$E$58,2,FALSE)=0,\"\",VLOOKUP(AS27,'Footnotes list'!$D$9:$E$58,2,FALSE) ) )","v":""},null,null,null,null,{"$f":"IF(TRIM(AX27)=\"\", \"\", IF(VLOOKUP(AX27,'Footnotes list'!$D$9:$E$58,2,FALSE)=0,\"\",VLOOKUP(AX27,'Footnotes list'!$D$9:$E$58,2,FALSE) ) )","v":""},null,null,null,null,{"$f":"IF(TRIM(BC27)=\"\", \"\", IF(VLOOKUP(BC27,'Footnotes list'!$D$9:$E$58,2,FALSE)=0,\"\",VLOOKUP(BC27,'Footnotes list'!$D$9:$E$58,2,FALSE) ) )","v":""},null,null,null,null,{"$f":"IF(TRIM(BH27)=\"\", \"\", IF(VLOOKUP(BH27,'Footnotes list'!$D$9:$E$58,2,FALSE)=0,\"\",VLOOKUP(BH27,'Footnotes list'!$D$9:$E$58,2,FALSE) ) )","v":""},null,null,null,null,{"$f":"IF(TRIM(BM27)=\"\", \"\", IF(VLOOKUP(BM27,'Footnotes list'!$D$9:$E$58,2,FALSE)=0,\"\",VLOOKUP(BM27,'Footnotes list'!$D$9:$E$58,2,FALSE) ) )","v":""},null,null,null,null,{"$f":"IF(TRIM(BR27)=\"\", \"\", IF(VLOOKUP(BR27,'Footnotes list'!$D$9:$E$58,2,FALSE)=0,\"\",VLOOKUP(BR27,'Footnotes list'!$D$9:$E$58,2,FALSE) ) )","v":""},null,null,null,null,{"$f":"IF(TRIM(BW27)=\"\", \"\", IF(VLOOKUP(BW27,'Footnotes list'!$D$9:$E$58,2,FALSE)=0,\"\",VLOOKUP(BW27,'Footnotes list'!$D$9:$E$58,2,FALSE) ) )","v":""},null,null,null,null,{"$f":"IF(TRIM(CB27)=\"\", \"\", IF(VLOOKUP(CB27,'Footnotes list'!$D$9:$E$58,2,FALSE)=0,\"\",VLOOKUP(CB27,'Footnotes list'!$D$9:$E$58,2,FALSE) ) )","v":""},null,null,null,null,{"$f":"IF(TRIM(CG27)=\"\", \"\", IF(VLOOKUP(CG27,'Footnotes list'!$D$9:$E$58,2,FALSE)=0,\"\",VLOOKUP(CG27,'Footnotes list'!$D$9:$E$58,2,FALSE) ) )","v":""},null,null,null,null,{"$f":"IF(TRIM(CL27)=\"\", \"\", IF(VLOOKUP(CL27,'Footnotes list'!$D$9:$E$58,2,FALSE)=0,\"\",VLOOKUP(CL27,'Footnotes list'!$D$9:$E$58,2,FALSE) ) )","v":""},null,null,null,null,{"$f":"IF(TRIM(CQ27)=\"\", \"\", IF(VLOOKUP(CQ27,'Footnotes list'!$D$9:$E$58,2,FALSE)=0,\"\",VLOOKUP(CQ27,'Footnotes list'!$D$9:$E$58,2,FALSE) ) )","v":""},null,null,null,null,{"$f":"IF(TRIM(CV27)=\"\", \"\", IF(VLOOKUP(CV27,'Footnotes list'!$D$9:$E$58,2,FALSE)=0,\"\",VLOOKUP(CV27,'Footnotes list'!$D$9:$E$58,2,FALSE) ) )","v":""},null,null,null,null,{"$f":"IF(TRIM(DA27)=\"\", \"\", IF(VLOOKUP(DA27,'Footnotes list'!$D$9:$E$58,2,FALSE)=0,\"\",VLOOKUP(DA27,'Footnotes list'!$D$9:$E$58,2,FALSE) ) )","v":""},null,null,null,null,{"$f":"IF(TRIM(DF27)=\"\", \"\", IF(VLOOKUP(DF27,'Footnotes list'!$D$9:$E$58,2,FALSE)=0,\"\",VLOOKUP(DF27,'Footnotes list'!$D$9:$E$58,2,FALSE) ) )","v":""},null,null,null,null,{"$f":"IF(TRIM(DK27)=\"\", \"\", IF(VLOOKUP(DK27,'Footnotes list'!$D$9:$E$58,2,FALSE)=0,\"\",VLOOKUP(DK27,'Footnotes list'!$D$9:$E$58,2,FALSE) ) )","v":""},null,null,null,null,{"$f":"IF(TRIM(DP27)=\"\", \"\", IF(VLOOKUP(DP27,'Footnotes list'!$D$9:$E$58,2,FALSE)=0,\"\",VLOOKUP(DP27,'Footnotes list'!$D$9:$E$58,2,FALSE) ) )","v":""},null,null,null,null,{"$f":"IF(TRIM(DU27)=\"\", \"\", IF(VLOOKUP(DU27,'Footnotes list'!$D$9:$E$58,2,FALSE)=0,\"\",VLOOKUP(DU27,'Footnotes list'!$D$9:$E$58,2,FALSE) ) )","v":""},null,null,null,null,{"$f":"IF(TRIM(DZ27)=\"\", \"\", IF(VLOOKUP(DZ27,'Footnotes list'!$D$9:$E$58,2,FALSE)=0,\"\",VLOOKUP(DZ27,'Footnotes list'!$D$9:$E$58,2,FALSE) ) )","v":""},null,null,null,null,{"$f":"IF(TRIM(EE27)=\"\", \"\", IF(VLOOKUP(EE27,'Footnotes list'!$D$9:$E$58,2,FALSE)=0,\"\",VLOOKUP(EE27,'Footnotes list'!$D$9:$E$58,2,FALSE) ) )","v":""},null,null,null,null,{"$f":"IF(TRIM(EJ27)=\"\", \"\", IF(VLOOKUP(EJ27,'Footnotes list'!$D$9:$E$58,2,FALSE)=0,\"\",VLOOKUP(EJ27,'Footnotes list'!$D$9:$E$58,2,FALSE) ) )","v":""},null,null,null,null,{"$f":"IF(TRIM(EO27)=\"\", \"\", IF(VLOOKUP(EO27,'Footnotes list'!$D$9:$E$58,2,FALSE)=0,\"\",VLOOKUP(EO27,'Footnotes list'!$D$9:$E$58,2,FALSE) ) )","v":""},null,null,null,null,{"$f":"IF(TRIM(ET27)=\"\", \"\", IF(VLOOKUP(ET27,'Footnotes list'!$D$9:$E$58,2,FALSE)=0,\"\",VLOOKUP(ET27,'Footnotes list'!$D$9:$E$58,2,FALSE) ) )","v":""},null,null,null,null,{"$f":"IF(TRIM(EY27)=\"\", \"\", IF(VLOOKUP(EY27,'Footnotes list'!$D$9:$E$58,2,FALSE)=0,\"\",VLOOKUP(EY27,'Footnotes list'!$D$9:$E$58,2,FALSE) ) )","v":""}]
[null,null,"B","C_REP","cleaner and resource efficient products",null,null,null,null,null,{"$f":"IF(TRIM(J28)=\"\", \"\", IF(VLOOKUP(J28,'Footnotes list'!$D$9:$E$58,2,FALSE)=0,\"\",VLOOKUP(J28,'Footnotes list'!$D$9:$E$58,2,FALSE) ) )","v":""},null,null,null,null,{"$f":"IF(TRIM(O28)=\"\", \"\", IF(VLOOKUP(O28,'Footnotes list'!$D$9:$E$58,2,FALSE)=0,\"\",VLOOKUP(O28,'Footnotes list'!$D$9:$E$58,2,FALSE) ) )","v":""},null,null,null,null,{"$f":"IF(TRIM(T28)=\"\", \"\", IF(VLOOKUP(T28,'Footnotes list'!$D$9:$E$58,2,FALSE)=0,\"\",VLOOKUP(T28,'Footnotes list'!$D$9:$E$58,2,FALSE) ) )","v":""},null,null,null,null,{"$f":"IF(TRIM(Y28)=\"\", \"\", IF(VLOOKUP(Y28,'Footnotes list'!$D$9:$E$58,2,FALSE)=0,\"\",VLOOKUP(Y28,'Footnotes list'!$D$9:$E$58,2,FALSE) ) )","v":""},null,null,null,null,{"$f":"IF(TRIM(AD28)=\"\", \"\", IF(VLOOKUP(AD28,'Footnotes list'!$D$9:$E$58,2,FALSE)=0,\"\",VLOOKUP(AD28,'Footnotes list'!$D$9:$E$58,2,FALSE) ) )","v":""},null,null,null,null,{"$f":"IF(TRIM(AI28)=\"\", \"\", IF(VLOOKUP(AI28,'Footnotes list'!$D$9:$E$58,2,FALSE)=0,\"\",VLOOKUP(AI28,'Footnotes list'!$D$9:$E$58,2,FALSE) ) )","v":""},null,null,null,null,{"$f":"IF(TRIM(AN28)=\"\", \"\", IF(VLOOKUP(AN28,'Footnotes list'!$D$9:$E$58,2,FALSE)=0,\"\",VLOOKUP(AN28,'Footnotes list'!$D$9:$E$58,2,FALSE) ) )","v":""},null,null,null,null,{"$f":"IF(TRIM(AS28)=\"\", \"\", IF(VLOOKUP(AS28,'Footnotes list'!$D$9:$E$58,2,FALSE)=0,\"\",VLOOKUP(AS28,'Footnotes list'!$D$9:$E$58,2,FALSE) ) )","v":""},null,null,null,null,{"$f":"IF(TRIM(AX28)=\"\", \"\", IF(VLOOKUP(AX28,'Footnotes list'!$D$9:$E$58,2,FALSE)=0,\"\",VLOOKUP(AX28,'Footnotes list'!$D$9:$E$58,2,FALSE) ) )","v":""},null,null,null,null,{"$f":"IF(TRIM(BC28)=\"\", \"\", IF(VLOOKUP(BC28,'Footnotes list'!$D$9:$E$58,2,FALSE)=0,\"\",VLOOKUP(BC28,'Footnotes list'!$D$9:$E$58,2,FALSE) ) )","v":""},null,null,null,null,{"$f":"IF(TRIM(BH28)=\"\", \"\", IF(VLOOKUP(BH28,'Footnotes list'!$D$9:$E$58,2,FALSE)=0,\"\",VLOOKUP(BH28,'Footnotes list'!$D$9:$E$58,2,FALSE) ) )","v":""},null,null,null,null,{"$f":"IF(TRIM(BM28)=\"\", \"\", IF(VLOOKUP(BM28,'Footnotes list'!$D$9:$E$58,2,FALSE)=0,\"\",VLOOKUP(BM28,'Footnotes list'!$D$9:$E$58,2,FALSE) ) )","v":""},null,null,null,null,{"$f":"IF(TRIM(BR28)=\"\", \"\", IF(VLOOKUP(BR28,'Footnotes list'!$D$9:$E$58,2,FALSE)=0,\"\",VLOOKUP(BR28,'Footnotes list'!$D$9:$E$58,2,FALSE) ) )","v":""},null,null,null,null,{"$f":"IF(TRIM(BW28)=\"\", \"\", IF(VLOOKUP(BW28,'Footnotes list'!$D$9:$E$58,2,FALSE)=0,\"\",VLOOKUP(BW28,'Footnotes list'!$D$9:$E$58,2,FALSE) ) )","v":""},null,null,null,null,{"$f":"IF(TRIM(CB28)=\"\", \"\", IF(VLOOKUP(CB28,'Footnotes list'!$D$9:$E$58,2,FALSE)=0,\"\",VLOOKUP(CB28,'Footnotes list'!$D$9:$E$58,2,FALSE) ) )","v":""},null,null,null,null,{"$f":"IF(TRIM(CG28)=\"\", \"\", IF(VLOOKUP(CG28,'Footnotes list'!$D$9:$E$58,2,FALSE)=0,\"\",VLOOKUP(CG28,'Footnotes list'!$D$9:$E$58,2,FALSE) ) )","v":""},null,null,null,null,{"$f":"IF(TRIM(CL28)=\"\", \"\", IF(VLOOKUP(CL28,'Footnotes list'!$D$9:$E$58,2,FALSE)=0,\"\",VLOOKUP(CL28,'Footnotes list'!$D$9:$E$58,2,FALSE) ) )","v":""},null,null,null,null,{"$f":"IF(TRIM(CQ28)=\"\", \"\", IF(VLOOKUP(CQ28,'Footnotes list'!$D$9:$E$58,2,FALSE)=0,\"\",VLOOKUP(CQ28,'Footnotes list'!$D$9:$E$58,2,FALSE) ) )","v":""},null,null,null,null,{"$f":"IF(TRIM(CV28)=\"\", \"\", IF(VLOOKUP(CV28,'Footnotes list'!$D$9:$E$58,2,FALSE)=0,\"\",VLOOKUP(CV28,'Footnotes list'!$D$9:$E$58,2,FALSE) ) )","v":""},null,null,null,null,{"$f":"IF(TRIM(DA28)=\"\", \"\", IF(VLOOKUP(DA28,'Footnotes list'!$D$9:$E$58,2,FALSE)=0,\"\",VLOOKUP(DA28,'Footnotes list'!$D$9:$E$58,2,FALSE) ) )","v":""},null,null,null,null,{"$f":"IF(TRIM(DF28)=\"\", \"\", IF(VLOOKUP(DF28,'Footnotes list'!$D$9:$E$58,2,FALSE)=0,\"\",VLOOKUP(DF28,'Footnotes list'!$D$9:$E$58,2,FALSE) ) )","v":""},null,null,null,null,{"$f":"IF(TRIM(DK28)=\"\", \"\", IF(VLOOKUP(DK28,'Footnotes list'!$D$9:$E$58,2,FALSE)=0,\"\",VLOOKUP(DK28,'Footnotes list'!$D$9:$E$58,2,FALSE) ) )","v":""},null,null,null,null,{"$f":"IF(TRIM(DP28)=\"\", \"\", IF(VLOOKUP(DP28,'Footnotes list'!$D$9:$E$58,2,FALSE)=0,\"\",VLOOKUP(DP28,'Footnotes list'!$D$9:$E$58,2,FALSE) ) )","v":""},null,null,null,null,{"$f":"IF(TRIM(DU28)=\"\", \"\", IF(VLOOKUP(DU28,'Footnotes list'!$D$9:$E$58,2,FALSE)=0,\"\",VLOOKUP(DU28,'Footnotes list'!$D$9:$E$58,2,FALSE) ) )","v":""},null,null,null,null,{"$f":"IF(TRIM(DZ28)=\"\", \"\", IF(VLOOKUP(DZ28,'Footnotes list'!$D$9:$E$58,2,FALSE)=0,\"\",VLOOKUP(DZ28,'Footnotes list'!$D$9:$E$58,2,FALSE) ) )","v":""},null,null,null,null,{"$f":"IF(TRIM(EE28)=\"\", \"\", IF(VLOOKUP(EE28,'Footnotes list'!$D$9:$E$58,2,FALSE)=0,\"\",VLOOKUP(EE28,'Footnotes list'!$D$9:$E$58,2,FALSE) ) )","v":""},null,null,null,null,{"$f":"IF(TRIM(EJ28)=\"\", \"\", IF(VLOOKUP(EJ28,'Footnotes list'!$D$9:$E$58,2,FALSE)=0,\"\",VLOOKUP(EJ28,'Footnotes list'!$D$9:$E$58,2,FALSE) ) )","v":""},null,null,null,null,{"$f":"IF(TRIM(EO28)=\"\", \"\", IF(VLOOKUP(EO28,'Footnotes list'!$D$9:$E$58,2,FALSE)=0,\"\",VLOOKUP(EO28,'Footnotes list'!$D$9:$E$58,2,FALSE) ) )","v":""},null,null,null,null,{"$f":"IF(TRIM(ET28)=\"\", \"\", IF(VLOOKUP(ET28,'Footnotes list'!$D$9:$E$58,2,FALSE)=0,\"\",VLOOKUP(ET28,'Footnotes list'!$D$9:$E$58,2,FALSE) ) )","v":""},null,null,null,null,{"$f":"IF(TRIM(EY28)=\"\", \"\", IF(VLOOKUP(EY28,'Footnotes list'!$D$9:$E$58,2,FALSE)=0,\"\",VLOOKUP(EY28,'Footnotes list'!$D$9:$E$58,2,FALSE) ) )","v":""}]
[null,null,"C","TOT_EGSS","Total C - Manufacturing, of which:",null,null,null,null,null,{"$f":"IF(TRIM(J29)=\"\", \"\", IF(VLOOKUP(J29,'Footnotes list'!$D$9:$E$58,2,FALSE)=0,\"\",VLOOKUP(J29,'Footnotes list'!$D$9:$E$58,2,FALSE) ) )","v":""},null,null,null,null,{"$f":"IF(TRIM(O29)=\"\", \"\", IF(VLOOKUP(O29,'Footnotes list'!$D$9:$E$58,2,FALSE)=0,\"\",VLOOKUP(O29,'Footnotes list'!$D$9:$E$58,2,FALSE) ) )","v":""},null,null,null,null,{"$f":"IF(TRIM(T29)=\"\", \"\", IF(VLOOKUP(T29,'Footnotes list'!$D$9:$E$58,2,FALSE)=0,\"\",VLOOKUP(T29,'Footnotes list'!$D$9:$E$58,2,FALSE) ) )","v":""},null,null,null,null,{"$f":"IF(TRIM(Y29)=\"\", \"\", IF(VLOOKUP(Y29,'Footnotes list'!$D$9:$E$58,2,FALSE)=0,\"\",VLOOKUP(Y29,'Footnotes list'!$D$9:$E$58,2,FALSE) ) )","v":""},null,null,null,null,{"$f":"IF(TRIM(AD29)=\"\", \"\", IF(VLOOKUP(AD29,'Footnotes list'!$D$9:$E$58,2,FALSE)=0,\"\",VLOOKUP(AD29,'Footnotes list'!$D$9:$E$58,2,FALSE) ) )","v":""},null,null,null,null,{"$f":"IF(TRIM(AI29)=\"\", \"\", IF(VLOOKUP(AI29,'Footnotes list'!$D$9:$E$58,2,FALSE)=0,\"\",VLOOKUP(AI29,'Footnotes list'!$D$9:$E$58,2,FALSE) ) )","v":""},null,null,null,null,{"$f":"IF(TRIM(AN29)=\"\", \"\", IF(VLOOKUP(AN29,'Footnotes list'!$D$9:$E$58,2,FALSE)=0,\"\",VLOOKUP(AN29,'Footnotes list'!$D$9:$E$58,2,FALSE) ) )","v":""},null,null,null,null,{"$f":"IF(TRIM(AS29)=\"\", \"\", IF(VLOOKUP(AS29,'Footnotes list'!$D$9:$E$58,2,FALSE)=0,\"\",VLOOKUP(AS29,'Footnotes list'!$D$9:$E$58,2,FALSE) ) )","v":""},null,null,null,null,{"$f":"IF(TRIM(AX29)=\"\", \"\", IF(VLOOKUP(AX29,'Footnotes list'!$D$9:$E$58,2,FALSE)=0,\"\",VLOOKUP(AX29,'Footnotes list'!$D$9:$E$58,2,FALSE) ) )","v":""},null,null,null,null,{"$f":"IF(TRIM(BC29)=\"\", \"\", IF(VLOOKUP(BC29,'Footnotes list'!$D$9:$E$58,2,FALSE)=0,\"\",VLOOKUP(BC29,'Footnotes list'!$D$9:$E$58,2,FALSE) ) )","v":""},null,null,null,null,{"$f":"IF(TRIM(BH29)=\"\", \"\", IF(VLOOKUP(BH29,'Footnotes list'!$D$9:$E$58,2,FALSE)=0,\"\",VLOOKUP(BH29,'Footnotes list'!$D$9:$E$58,2,FALSE) ) )","v":""},null,null,null,null,{"$f":"IF(TRIM(BM29)=\"\", \"\", IF(VLOOKUP(BM29,'Footnotes list'!$D$9:$E$58,2,FALSE)=0,\"\",VLOOKUP(BM29,'Footnotes list'!$D$9:$E$58,2,FALSE) ) )","v":""},null,null,null,null,{"$f":"IF(TRIM(BR29)=\"\", \"\", IF(VLOOKUP(BR29,'Footnotes list'!$D$9:$E$58,2,FALSE)=0,\"\",VLOOKUP(BR29,'Footnotes list'!$D$9:$E$58,2,FALSE) ) )","v":""},null,null,null,null,{"$f":"IF(TRIM(BW29)=\"\", \"\", IF(VLOOKUP(BW29,'Footnotes list'!$D$9:$E$58,2,FALSE)=0,\"\",VLOOKUP(BW29,'Footnotes list'!$D$9:$E$58,2,FALSE) ) )","v":""},null,null,null,null,{"$f":"IF(TRIM(CB29)=\"\", \"\", IF(VLOOKUP(CB29,'Footnotes list'!$D$9:$E$58,2,FALSE)=0,\"\",VLOOKUP(CB29,'Footnotes list'!$D$9:$E$58,2,FALSE) ) )","v":""},null,null,null,null,{"$f":"IF(TRIM(CG29)=\"\", \"\", IF(VLOOKUP(CG29,'Footnotes list'!$D$9:$E$58,2,FALSE)=0,\"\",VLOOKUP(CG29,'Footnotes list'!$D$9:$E$58,2,FALSE) ) )","v":""},null,null,null,null,{"$f":"IF(TRIM(CL29)=\"\", \"\", IF(VLOOKUP(CL29,'Footnotes list'!$D$9:$E$58,2,FALSE)=0,\"\",VLOOKUP(CL29,'Footnotes list'!$D$9:$E$58,2,FALSE) ) )","v":""},null,null,null,null,{"$f":"IF(TRIM(CQ29)=\"\", \"\", IF(VLOOKUP(CQ29,'Footnotes list'!$D$9:$E$58,2,FALSE)=0,\"\",VLOOKUP(CQ29,'Footnotes list'!$D$9:$E$58,2,FALSE) ) )","v":""},null,null,null,null,{"$f":"IF(TRIM(CV29)=\"\", \"\", IF(VLOOKUP(CV29,'Footnotes list'!$D$9:$E$58,2,FALSE)=0,\"\",VLOOKUP(CV29,'Footnotes list'!$D$9:$E$58,2,FALSE) ) )","v":""},null,null,null,null,{"$f":"IF(TRIM(DA29)=\"\", \"\", IF(VLOOKUP(DA29,'Footnotes list'!$D$9:$E$58,2,FALSE)=0,\"\",VLOOKUP(DA29,'Footnotes list'!$D$9:$E$58,2,FALSE) ) )","v":""},null,null,null,null,{"$f":"IF(TRIM(DF29)=\"\", \"\", IF(VLOOKUP(DF29,'Footnotes list'!$D$9:$E$58,2,FALSE)=0,\"\",VLOOKUP(DF29,'Footnotes list'!$D$9:$E$58,2,FALSE) ) )","v":""},null,null,null,null,{"$f":"IF(TRIM(DK29)=\"\", \"\", IF(VLOOKUP(DK29,'Footnotes list'!$D$9:$E$58,2,FALSE)=0,\"\",VLOOKUP(DK29,'Footnotes list'!$D$9:$E$58,2,FALSE) ) )","v":""},null,null,null,null,{"$f":"IF(TRIM(DP29)=\"\", \"\", IF(VLOOKUP(DP29,'Footnotes list'!$D$9:$E$58,2,FALSE)=0,\"\",VLOOKUP(DP29,'Footnotes list'!$D$9:$E$58,2,FALSE) ) )","v":""},null,null,null,null,{"$f":"IF(TRIM(DU29)=\"\", \"\", IF(VLOOKUP(DU29,'Footnotes list'!$D$9:$E$58,2,FALSE)=0,\"\",VLOOKUP(DU29,'Footnotes list'!$D$9:$E$58,2,FALSE) ) )","v":""},null,null,null,null,{"$f":"IF(TRIM(DZ29)=\"\", \"\", IF(VLOOKUP(DZ29,'Footnotes list'!$D$9:$E$58,2,FALSE)=0,\"\",VLOOKUP(DZ29,'Footnotes list'!$D$9:$E$58,2,FALSE) ) )","v":""},null,null,null,null,{"$f":"IF(TRIM(EE29)=\"\", \"\", IF(VLOOKUP(EE29,'Footnotes list'!$D$9:$E$58,2,FALSE)=0,\"\",VLOOKUP(EE29,'Footnotes list'!$D$9:$E$58,2,FALSE) ) )","v":""},null,null,null,null,{"$f":"IF(TRIM(EJ29)=\"\", \"\", IF(VLOOKUP(EJ29,'Footnotes list'!$D$9:$E$58,2,FALSE)=0,\"\",VLOOKUP(EJ29,'Footnotes list'!$D$9:$E$58,2,FALSE) ) )","v":""},null,null,null,null,{"$f":"IF(TRIM(EO29)=\"\", \"\", IF(VLOOKUP(EO29,'Footnotes list'!$D$9:$E$58,2,FALSE)=0,\"\",VLOOKUP(EO29,'Footnotes list'!$D$9:$E$58,2,FALSE) ) )","v":""},null,null,null,null,{"$f":"IF(TRIM(ET29)=\"\", \"\", IF(VLOOKUP(ET29,'Footnotes list'!$D$9:$E$58,2,FALSE)=0,\"\",VLOOKUP(ET29,'Footnotes list'!$D$9:$E$58,2,FALSE) ) )","v":""},null,null,null,null,{"$f":"IF(TRIM(EY29)=\"\", \"\", IF(VLOOKUP(EY29,'Footnotes list'!$D$9:$E$58,2,FALSE)=0,\"\",VLOOKUP(EY29,'Footnotes list'!$D$9:$E$58,2,FALSE) ) )","v":""}]
[null,null,"C","ANC","ancillary activities",null,null,null,null,null,{"$f":"IF(TRIM(J30)=\"\", \"\", IF(VLOOKUP(J30,'Footnotes list'!$D$9:$E$58,2,FALSE)=0,\"\",VLOOKUP(J30,'Footnotes list'!$D$9:$E$58,2,FALSE) ) )","v":""},null,null,null,null,{"$f":"IF(TRIM(O30)=\"\", \"\", IF(VLOOKUP(O30,'Footnotes list'!$D$9:$E$58,2,FALSE)=0,\"\",VLOOKUP(O30,'Footnotes list'!$D$9:$E$58,2,FALSE) ) )","v":""},null,null,null,null,{"$f":"IF(TRIM(T30)=\"\", \"\", IF(VLOOKUP(T30,'Footnotes list'!$D$9:$E$58,2,FALSE)=0,\"\",VLOOKUP(T30,'Footnotes list'!$D$9:$E$58,2,FALSE) ) )","v":""},null,null,null,null,{"$f":"IF(TRIM(Y30)=\"\", \"\", IF(VLOOKUP(Y30,'Footnotes list'!$D$9:$E$58,2,FALSE)=0,\"\",VLOOKUP(Y30,'Footnotes list'!$D$9:$E$58,2,FALSE) ) )","v":""},null,null,null,null,{"$f":"IF(TRIM(AD30)=\"\", \"\", IF(VLOOKUP(AD30,'Footnotes list'!$D$9:$E$58,2,FALSE)=0,\"\",VLOOKUP(AD30,'Footnotes list'!$D$9:$E$58,2,FALSE) ) )","v":""},null,null,null,null,{"$f":"IF(TRIM(AI30)=\"\", \"\", IF(VLOOKUP(AI30,'Footnotes list'!$D$9:$E$58,2,FALSE)=0,\"\",VLOOKUP(AI30,'Footnotes list'!$D$9:$E$58,2,FALSE) ) )","v":""},null,null,null,null,{"$f":"IF(TRIM(AN30)=\"\", \"\", IF(VLOOKUP(AN30,'Footnotes list'!$D$9:$E$58,2,FALSE)=0,\"\",VLOOKUP(AN30,'Footnotes list'!$D$9:$E$58,2,FALSE) ) )","v":""},null,null,null,null,{"$f":"IF(TRIM(AS30)=\"\", \"\", IF(VLOOKUP(AS30,'Footnotes list'!$D$9:$E$58,2,FALSE)=0,\"\",VLOOKUP(AS30,'Footnotes list'!$D$9:$E$58,2,FALSE) ) )","v":""},null,null,null,null,{"$f":"IF(TRIM(AX30)=\"\", \"\", IF(VLOOKUP(AX30,'Footnotes list'!$D$9:$E$58,2,FALSE)=0,\"\",VLOOKUP(AX30,'Footnotes list'!$D$9:$E$58,2,FALSE) ) )","v":""},null,null,null,null,{"$f":"IF(TRIM(BC30)=\"\", \"\", IF(VLOOKUP(BC30,'Footnotes list'!$D$9:$E$58,2,FALSE)=0,\"\",VLOOKUP(BC30,'Footnotes list'!$D$9:$E$58,2,FALSE) ) )","v":""},null,null,null,null,{"$f":"IF(TRIM(BH30)=\"\", \"\", IF(VLOOKUP(BH30,'Footnotes list'!$D$9:$E$58,2,FALSE)=0,\"\",VLOOKUP(BH30,'Footnotes list'!$D$9:$E$58,2,FALSE) ) )","v":""},null,null,null,null,{"$f":"IF(TRIM(BM30)=\"\", \"\", IF(VLOOKUP(BM30,'Footnotes list'!$D$9:$E$58,2,FALSE)=0,\"\",VLOOKUP(BM30,'Footnotes list'!$D$9:$E$58,2,FALSE) ) )","v":""},null,null,null,null,{"$f":"IF(TRIM(BR30)=\"\", \"\", IF(VLOOKUP(BR30,'Footnotes list'!$D$9:$E$58,2,FALSE)=0,\"\",VLOOKUP(BR30,'Footnotes list'!$D$9:$E$58,2,FALSE) ) )","v":""},null,null,null,null,{"$f":"IF(TRIM(BW30)=\"\", \"\", IF(VLOOKUP(BW30,'Footnotes list'!$D$9:$E$58,2,FALSE)=0,\"\",VLOOKUP(BW30,'Footnotes list'!$D$9:$E$58,2,FALSE) ) )","v":""},null,null,null,null,{"$f":"IF(TRIM(CB30)=\"\", \"\", IF(VLOOKUP(CB30,'Footnotes list'!$D$9:$E$58,2,FALSE)=0,\"\",VLOOKUP(CB30,'Footnotes list'!$D$9:$E$58,2,FALSE) ) )","v":""},null,null,null,null,{"$f":"IF(TRIM(CG30)=\"\", \"\", IF(VLOOKUP(CG30,'Footnotes list'!$D$9:$E$58,2,FALSE)=0,\"\",VLOOKUP(CG30,'Footnotes list'!$D$9:$E$58,2,FALSE) ) )","v":""},null,null,null,null,{"$f":"IF(TRIM(CL30)=\"\", \"\", IF(VLOOKUP(CL30,'Footnotes list'!$D$9:$E$58,2,FALSE)=0,\"\",VLOOKUP(CL30,'Footnotes list'!$D$9:$E$58,2,FALSE) ) )","v":""},null,null,null,null,{"$f":"IF(TRIM(CQ30)=\"\", \"\", IF(VLOOKUP(CQ30,'Footnotes list'!$D$9:$E$58,2,FALSE)=0,\"\",VLOOKUP(CQ30,'Footnotes list'!$D$9:$E$58,2,FALSE) ) )","v":""},null,null,null,null,{"$f":"IF(TRIM(CV30)=\"\", \"\", IF(VLOOKUP(CV30,'Footnotes list'!$D$9:$E$58,2,FALSE)=0,\"\",VLOOKUP(CV30,'Footnotes list'!$D$9:$E$58,2,FALSE) ) )","v":""},null,null,null,null,{"$f":"IF(TRIM(DA30)=\"\", \"\", IF(VLOOKUP(DA30,'Footnotes list'!$D$9:$E$58,2,FALSE)=0,\"\",VLOOKUP(DA30,'Footnotes list'!$D$9:$E$58,2,FALSE) ) )","v":""},null,null,null,null,{"$f":"IF(TRIM(DF30)=\"\", \"\", IF(VLOOKUP(DF30,'Footnotes list'!$D$9:$E$58,2,FALSE)=0,\"\",VLOOKUP(DF30,'Footnotes list'!$D$9:$E$58,2,FALSE) ) )","v":""},null,null,null,null,{"$f":"IF(TRIM(DK30)=\"\", \"\", IF(VLOOKUP(DK30,'Footnotes list'!$D$9:$E$58,2,FALSE)=0,\"\",VLOOKUP(DK30,'Footnotes list'!$D$9:$E$58,2,FALSE) ) )","v":""},null,null,null,null,{"$f":"IF(TRIM(DP30)=\"\", \"\", IF(VLOOKUP(DP30,'Footnotes list'!$D$9:$E$58,2,FALSE)=0,\"\",VLOOKUP(DP30,'Footnotes list'!$D$9:$E$58,2,FALSE) ) )","v":""},null,null,null,null,{"$f":"IF(TRIM(DU30)=\"\", \"\", IF(VLOOKUP(DU30,'Footnotes list'!$D$9:$E$58,2,FALSE)=0,\"\",VLOOKUP(DU30,'Footnotes list'!$D$9:$E$58,2,FALSE) ) )","v":""},null,null,null,null,{"$f":"IF(TRIM(DZ30)=\"\", \"\", IF(VLOOKUP(DZ30,'Footnotes list'!$D$9:$E$58,2,FALSE)=0,\"\",VLOOKUP(DZ30,'Footnotes list'!$D$9:$E$58,2,FALSE) ) )","v":""},null,null,null,null,{"$f":"IF(TRIM(EE30)=\"\", \"\", IF(VLOOKUP(EE30,'Footnotes list'!$D$9:$E$58,2,FALSE)=0,\"\",VLOOKUP(EE30,'Footnotes list'!$D$9:$E$58,2,FALSE) ) )","v":""},null,null,null,null,{"$f":"IF(TRIM(EJ30)=\"\", \"\", IF(VLOOKUP(EJ30,'Footnotes list'!$D$9:$E$58,2,FALSE)=0,\"\",VLOOKUP(EJ30,'Footnotes list'!$D$9:$E$58,2,FALSE) ) )","v":""},null,null,null,null,{"$f":"IF(TRIM(EO30)=\"\", \"\", IF(VLOOKUP(EO30,'Footnotes list'!$D$9:$E$58,2,FALSE)=0,\"\",VLOOKUP(EO30,'Footnotes list'!$D$9:$E$58,2,FALSE) ) )","v":""},null,null,null,null,{"$f":"IF(TRIM(ET30)=\"\", \"\", IF(VLOOKUP(ET30,'Footnotes list'!$D$9:$E$58,2,FALSE)=0,\"\",VLOOKUP(ET30,'Footnotes list'!$D$9:$E$58,2,FALSE) ) )","v":""},null,null,null,null,{"$f":"IF(TRIM(EY30)=\"\", \"\", IF(VLOOKUP(EY30,'Footnotes list'!$D$9:$E$58,2,FALSE)=0,\"\",VLOOKUP(EY30,'Footnotes list'!$D$9:$E$58,2,FALSE) ) )","v":""}]
[null,null,"C","NMKT","non-market activities",null,null,null,null,null,{"$f":"IF(TRIM(J31)=\"\", \"\", IF(VLOOKUP(J31,'Footnotes list'!$D$9:$E$58,2,FALSE)=0,\"\",VLOOKUP(J31,'Footnotes list'!$D$9:$E$58,2,FALSE) ) )","v":""},null,null,null,null,{"$f":"IF(TRIM(O31)=\"\", \"\", IF(VLOOKUP(O31,'Footnotes list'!$D$9:$E$58,2,FALSE)=0,\"\",VLOOKUP(O31,'Footnotes list'!$D$9:$E$58,2,FALSE) ) )","v":""},null,null,null,null,{"$f":"IF(TRIM(T31)=\"\", \"\", IF(VLOOKUP(T31,'Footnotes list'!$D$9:$E$58,2,FALSE)=0,\"\",VLOOKUP(T31,'Footnotes list'!$D$9:$E$58,2,FALSE) ) )","v":""},null,null,null,null,{"$f":"IF(TRIM(Y31)=\"\", \"\", IF(VLOOKUP(Y31,'Footnotes list'!$D$9:$E$58,2,FALSE)=0,\"\",VLOOKUP(Y31,'Footnotes list'!$D$9:$E$58,2,FALSE) ) )","v":""},null,null,null,null,{"$f":"IF(TRIM(AD31)=\"\", \"\", IF(VLOOKUP(AD31,'Footnotes list'!$D$9:$E$58,2,FALSE)=0,\"\",VLOOKUP(AD31,'Footnotes list'!$D$9:$E$58,2,FALSE) ) )","v":""},null,null,null,null,{"$f":"IF(TRIM(AI31)=\"\", \"\", IF(VLOOKUP(AI31,'Footnotes list'!$D$9:$E$58,2,FALSE)=0,\"\",VLOOKUP(AI31,'Footnotes list'!$D$9:$E$58,2,FALSE) ) )","v":""},null,null,null,null,{"$f":"IF(TRIM(AN31)=\"\", \"\", IF(VLOOKUP(AN31,'Footnotes list'!$D$9:$E$58,2,FALSE)=0,\"\",VLOOKUP(AN31,'Footnotes list'!$D$9:$E$58,2,FALSE) ) )","v":""},null,null,null,null,{"$f":"IF(TRIM(AS31)=\"\", \"\", IF(VLOOKUP(AS31,'Footnotes list'!$D$9:$E$58,2,FALSE)=0,\"\",VLOOKUP(AS31,'Footnotes list'!$D$9:$E$58,2,FALSE) ) )","v":""},null,null,null,null,{"$f":"IF(TRIM(AX31)=\"\", \"\", IF(VLOOKUP(AX31,'Footnotes list'!$D$9:$E$58,2,FALSE)=0,\"\",VLOOKUP(AX31,'Footnotes list'!$D$9:$E$58,2,FALSE) ) )","v":""},null,null,null,null,{"$f":"IF(TRIM(BC31)=\"\", \"\", IF(VLOOKUP(BC31,'Footnotes list'!$D$9:$E$58,2,FALSE)=0,\"\",VLOOKUP(BC31,'Footnotes list'!$D$9:$E$58,2,FALSE) ) )","v":""},null,null,null,null,{"$f":"IF(TRIM(BH31)=\"\", \"\", IF(VLOOKUP(BH31,'Footnotes list'!$D$9:$E$58,2,FALSE)=0,\"\",VLOOKUP(BH31,'Footnotes list'!$D$9:$E$58,2,FALSE) ) )","v":""},null,null,null,null,{"$f":"IF(TRIM(BM31)=\"\", \"\", IF(VLOOKUP(BM31,'Footnotes list'!$D$9:$E$58,2,FALSE)=0,\"\",VLOOKUP(BM31,'Footnotes list'!$D$9:$E$58,2,FALSE) ) )","v":""},null,null,null,null,{"$f":"IF(TRIM(BR31)=\"\", \"\", IF(VLOOKUP(BR31,'Footnotes list'!$D$9:$E$58,2,FALSE)=0,\"\",VLOOKUP(BR31,'Footnotes list'!$D$9:$E$58,2,FALSE) ) )","v":""},null,null,null,null,{"$f":"IF(TRIM(BW31)=\"\", \"\", IF(VLOOKUP(BW31,'Footnotes list'!$D$9:$E$58,2,FALSE)=0,\"\",VLOOKUP(BW31,'Footnotes list'!$D$9:$E$58,2,FALSE) ) )","v":""},null,null,null,null,{"$f":"IF(TRIM(CB31)=\"\", \"\", IF(VLOOKUP(CB31,'Footnotes list'!$D$9:$E$58,2,FALSE)=0,\"\",VLOOKUP(CB31,'Footnotes list'!$D$9:$E$58,2,FALSE) ) )","v":""},null,null,null,null,{"$f":"IF(TRIM(CG31)=\"\", \"\", IF(VLOOKUP(CG31,'Footnotes list'!$D$9:$E$58,2,FALSE)=0,\"\",VLOOKUP(CG31,'Footnotes list'!$D$9:$E$58,2,FALSE) ) )","v":""},null,null,null,null,{"$f":"IF(TRIM(CL31)=\"\", \"\", IF(VLOOKUP(CL31,'Footnotes list'!$D$9:$E$58,2,FALSE)=0,\"\",VLOOKUP(CL31,'Footnotes list'!$D$9:$E$58,2,FALSE) ) )","v":""},null,null,null,null,{"$f":"IF(TRIM(CQ31)=\"\", \"\", IF(VLOOKUP(CQ31,'Footnotes list'!$D$9:$E$58,2,FALSE)=0,\"\",VLOOKUP(CQ31,'Footnotes list'!$D$9:$E$58,2,FALSE) ) )","v":""},null,null,null,null,{"$f":"IF(TRIM(CV31)=\"\", \"\", IF(VLOOKUP(CV31,'Footnotes list'!$D$9:$E$58,2,FALSE)=0,\"\",VLOOKUP(CV31,'Footnotes list'!$D$9:$E$58,2,FALSE) ) )","v":""},null,null,null,null,{"$f":"IF(TRIM(DA31)=\"\", \"\", IF(VLOOKUP(DA31,'Footnotes list'!$D$9:$E$58,2,FALSE)=0,\"\",VLOOKUP(DA31,'Footnotes list'!$D$9:$E$58,2,FALSE) ) )","v":""},null,null,null,null,{"$f":"IF(TRIM(DF31)=\"\", \"\", IF(VLOOKUP(DF31,'Footnotes list'!$D$9:$E$58,2,FALSE)=0,\"\",VLOOKUP(DF31,'Footnotes list'!$D$9:$E$58,2,FALSE) ) )","v":""},null,null,null,null,{"$f":"IF(TRIM(DK31)=\"\", \"\", IF(VLOOKUP(DK31,'Footnotes list'!$D$9:$E$58,2,FALSE)=0,\"\",VLOOKUP(DK31,'Footnotes list'!$D$9:$E$58,2,FALSE) ) )","v":""},null,null,null,null,{"$f":"IF(TRIM(DP31)=\"\", \"\", IF(VLOOKUP(DP31,'Footnotes list'!$D$9:$E$58,2,FALSE)=0,\"\",VLOOKUP(DP31,'Footnotes list'!$D$9:$E$58,2,FALSE) ) )","v":""},null,null,null,null,{"$f":"IF(TRIM(DU31)=\"\", \"\", IF(VLOOKUP(DU31,'Footnotes list'!$D$9:$E$58,2,FALSE)=0,\"\",VLOOKUP(DU31,'Footnotes list'!$D$9:$E$58,2,FALSE) ) )","v":""},null,null,null,null,{"$f":"IF(TRIM(DZ31)=\"\", \"\", IF(VLOOKUP(DZ31,'Footnotes list'!$D$9:$E$58,2,FALSE)=0,\"\",VLOOKUP(DZ31,'Footnotes list'!$D$9:$E$58,2,FALSE) ) )","v":""},null,null,null,null,{"$f":"IF(TRIM(EE31)=\"\", \"\", IF(VLOOKUP(EE31,'Footnotes list'!$D$9:$E$58,2,FALSE)=0,\"\",VLOOKUP(EE31,'Footnotes list'!$D$9:$E$58,2,FALSE) ) )","v":""},null,null,null,null,{"$f":"IF(TRIM(EJ31)=\"\", \"\", IF(VLOOKUP(EJ31,'Footnotes list'!$D$9:$E$58,2,FALSE)=0,\"\",VLOOKUP(EJ31,'Footnotes list'!$D$9:$E$58,2,FALSE) ) )","v":""},null,null,null,null,{"$f":"IF(TRIM(EO31)=\"\", \"\", IF(VLOOKUP(EO31,'Footnotes list'!$D$9:$E$58,2,FALSE)=0,\"\",VLOOKUP(EO31,'Footnotes list'!$D$9:$E$58,2,FALSE) ) )","v":""},null,null,null,null,{"$f":"IF(TRIM(ET31)=\"\", \"\", IF(VLOOKUP(ET31,'Footnotes list'!$D$9:$E$58,2,FALSE)=0,\"\",VLOOKUP(ET31,'Footnotes list'!$D$9:$E$58,2,FALSE) ) )","v":""},null,null,null,null,{"$f":"IF(TRIM(EY31)=\"\", \"\", IF(VLOOKUP(EY31,'Footnotes list'!$D$9:$E$58,2,FALSE)=0,\"\",VLOOKUP(EY31,'Footnotes list'!$D$9:$E$58,2,FALSE) ) )","v":""}]
[null,null,"C","OWN_USE","activities for own final use",null,null,null,null,null,{"$f":"IF(TRIM(J32)=\"\", \"\", IF(VLOOKUP(J32,'Footnotes list'!$D$9:$E$58,2,FALSE)=0,\"\",VLOOKUP(J32,'Footnotes list'!$D$9:$E$58,2,FALSE) ) )","v":""},null,null,null,null,{"$f":"IF(TRIM(O32)=\"\", \"\", IF(VLOOKUP(O32,'Footnotes list'!$D$9:$E$58,2,FALSE)=0,\"\",VLOOKUP(O32,'Footnotes list'!$D$9:$E$58,2,FALSE) ) )","v":""},null,null,null,null,{"$f":"IF(TRIM(T32)=\"\", \"\", IF(VLOOKUP(T32,'Footnotes list'!$D$9:$E$58,2,FALSE)=0,\"\",VLOOKUP(T32,'Footnotes list'!$D$9:$E$58,2,FALSE) ) )","v":""},null,null,null,null,{"$f":"IF(TRIM(Y32)=\"\", \"\", IF(VLOOKUP(Y32,'Footnotes list'!$D$9:$E$58,2,FALSE)=0,\"\",VLOOKUP(Y32,'Footnotes list'!$D$9:$E$58,2,FALSE) ) )","v":""},null,null,null,null,{"$f":"IF(TRIM(AD32)=\"\", \"\", IF(VLOOKUP(AD32,'Footnotes list'!$D$9:$E$58,2,FALSE)=0,\"\",VLOOKUP(AD32,'Footnotes list'!$D$9:$E$58,2,FALSE) ) )","v":""},null,null,null,null,{"$f":"IF(TRIM(AI32)=\"\", \"\", IF(VLOOKUP(AI32,'Footnotes list'!$D$9:$E$58,2,FALSE)=0,\"\",VLOOKUP(AI32,'Footnotes list'!$D$9:$E$58,2,FALSE) ) )","v":""},null,null,null,null,{"$f":"IF(TRIM(AN32)=\"\", \"\", IF(VLOOKUP(AN32,'Footnotes list'!$D$9:$E$58,2,FALSE)=0,\"\",VLOOKUP(AN32,'Footnotes list'!$D$9:$E$58,2,FALSE) ) )","v":""},null,null,null,null,{"$f":"IF(TRIM(AS32)=\"\", \"\", IF(VLOOKUP(AS32,'Footnotes list'!$D$9:$E$58,2,FALSE)=0,\"\",VLOOKUP(AS32,'Footnotes list'!$D$9:$E$58,2,FALSE) ) )","v":""},null,null,null,null,{"$f":"IF(TRIM(AX32)=\"\", \"\", IF(VLOOKUP(AX32,'Footnotes list'!$D$9:$E$58,2,FALSE)=0,\"\",VLOOKUP(AX32,'Footnotes list'!$D$9:$E$58,2,FALSE) ) )","v":""},null,null,null,null,{"$f":"IF(TRIM(BC32)=\"\", \"\", IF(VLOOKUP(BC32,'Footnotes list'!$D$9:$E$58,2,FALSE)=0,\"\",VLOOKUP(BC32,'Footnotes list'!$D$9:$E$58,2,FALSE) ) )","v":""},null,null,null,null,{"$f":"IF(TRIM(BH32)=\"\", \"\", IF(VLOOKUP(BH32,'Footnotes list'!$D$9:$E$58,2,FALSE)=0,\"\",VLOOKUP(BH32,'Footnotes list'!$D$9:$E$58,2,FALSE) ) )","v":""},null,null,null,null,{"$f":"IF(TRIM(BM32)=\"\", \"\", IF(VLOOKUP(BM32,'Footnotes list'!$D$9:$E$58,2,FALSE)=0,\"\",VLOOKUP(BM32,'Footnotes list'!$D$9:$E$58,2,FALSE) ) )","v":""},null,null,null,null,{"$f":"IF(TRIM(BR32)=\"\", \"\", IF(VLOOKUP(BR32,'Footnotes list'!$D$9:$E$58,2,FALSE)=0,\"\",VLOOKUP(BR32,'Footnotes list'!$D$9:$E$58,2,FALSE) ) )","v":""},null,null,null,null,{"$f":"IF(TRIM(BW32)=\"\", \"\", IF(VLOOKUP(BW32,'Footnotes list'!$D$9:$E$58,2,FALSE)=0,\"\",VLOOKUP(BW32,'Footnotes list'!$D$9:$E$58,2,FALSE) ) )","v":""},null,null,null,null,{"$f":"IF(TRIM(CB32)=\"\", \"\", IF(VLOOKUP(CB32,'Footnotes list'!$D$9:$E$58,2,FALSE)=0,\"\",VLOOKUP(CB32,'Footnotes list'!$D$9:$E$58,2,FALSE) ) )","v":""},null,null,null,null,{"$f":"IF(TRIM(CG32)=\"\", \"\", IF(VLOOKUP(CG32,'Footnotes list'!$D$9:$E$58,2,FALSE)=0,\"\",VLOOKUP(CG32,'Footnotes list'!$D$9:$E$58,2,FALSE) ) )","v":""},null,null,null,null,{"$f":"IF(TRIM(CL32)=\"\", \"\", IF(VLOOKUP(CL32,'Footnotes list'!$D$9:$E$58,2,FALSE)=0,\"\",VLOOKUP(CL32,'Footnotes list'!$D$9:$E$58,2,FALSE) ) )","v":""},null,null,null,null,{"$f":"IF(TRIM(CQ32)=\"\", \"\", IF(VLOOKUP(CQ32,'Footnotes list'!$D$9:$E$58,2,FALSE)=0,\"\",VLOOKUP(CQ32,'Footnotes list'!$D$9:$E$58,2,FALSE) ) )","v":""},null,null,null,null,{"$f":"IF(TRIM(CV32)=\"\", \"\", IF(VLOOKUP(CV32,'Footnotes list'!$D$9:$E$58,2,FALSE)=0,\"\",VLOOKUP(CV32,'Footnotes list'!$D$9:$E$58,2,FALSE) ) )","v":""},null,null,null,null,{"$f":"IF(TRIM(DA32)=\"\", \"\", IF(VLOOKUP(DA32,'Footnotes list'!$D$9:$E$58,2,FALSE)=0,\"\",VLOOKUP(DA32,'Footnotes list'!$D$9:$E$58,2,FALSE) ) )","v":""},null,null,null,null,{"$f":"IF(TRIM(DF32)=\"\", \"\", IF(VLOOKUP(DF32,'Footnotes list'!$D$9:$E$58,2,FALSE)=0,\"\",VLOOKUP(DF32,'Footnotes list'!$D$9:$E$58,2,FALSE) ) )","v":""},null,null,null,null,{"$f":"IF(TRIM(DK32)=\"\", \"\", IF(VLOOKUP(DK32,'Footnotes list'!$D$9:$E$58,2,FALSE)=0,\"\",VLOOKUP(DK32,'Footnotes list'!$D$9:$E$58,2,FALSE) ) )","v":""},null,null,null,null,{"$f":"IF(TRIM(DP32)=\"\", \"\", IF(VLOOKUP(DP32,'Footnotes list'!$D$9:$E$58,2,FALSE)=0,\"\",VLOOKUP(DP32,'Footnotes list'!$D$9:$E$58,2,FALSE) ) )","v":""},null,null,null,null,{"$f":"IF(TRIM(DU32)=\"\", \"\", IF(VLOOKUP(DU32,'Footnotes list'!$D$9:$E$58,2,FALSE)=0,\"\",VLOOKUP(DU32,'Footnotes list'!$D$9:$E$58,2,FALSE) ) )","v":""},null,null,null,null,{"$f":"IF(TRIM(DZ32)=\"\", \"\", IF(VLOOKUP(DZ32,'Footnotes list'!$D$9:$E$58,2,FALSE)=0,\"\",VLOOKUP(DZ32,'Footnotes list'!$D$9:$E$58,2,FALSE) ) )","v":""},null,null,null,null,{"$f":"IF(TRIM(EE32)=\"\", \"\", IF(VLOOKUP(EE32,'Footnotes list'!$D$9:$E$58,2,FALSE)=0,\"\",VLOOKUP(EE32,'Footnotes list'!$D$9:$E$58,2,FALSE) ) )","v":""},null,null,null,null,{"$f":"IF(TRIM(EJ32)=\"\", \"\", IF(VLOOKUP(EJ32,'Footnotes list'!$D$9:$E$58,2,FALSE)=0,\"\",VLOOKUP(EJ32,'Footnotes list'!$D$9:$E$58,2,FALSE) ) )","v":""},null,null,null,null,{"$f":"IF(TRIM(EO32)=\"\", \"\", IF(VLOOKUP(EO32,'Footnotes list'!$D$9:$E$58,2,FALSE)=0,\"\",VLOOKUP(EO32,'Footnotes list'!$D$9:$E$58,2,FALSE) ) )","v":""},null,null,null,null,{"$f":"IF(TRIM(ET32)=\"\", \"\", IF(VLOOKUP(ET32,'Footnotes list'!$D$9:$E$58,2,FALSE)=0,\"\",VLOOKUP(ET32,'Footnotes list'!$D$9:$E$58,2,FALSE) ) )","v":""},null,null,null,null,{"$f":"IF(TRIM(EY32)=\"\", \"\", IF(VLOOKUP(EY32,'Footnotes list'!$D$9:$E$58,2,FALSE)=0,\"\",VLOOKUP(EY32,'Footnotes list'!$D$9:$E$58,2,FALSE) ) )","v":""}]
[null,null,"C","MKT","market activities, including:",null,null,null,null,null,{"$f":"IF(TRIM(J33)=\"\", \"\", IF(VLOOKUP(J33,'Footnotes list'!$D$9:$E$58,2,FALSE)=0,\"\",VLOOKUP(J33,'Footnotes list'!$D$9:$E$58,2,FALSE) ) )","v":""},null,null,null,null,{"$f":"IF(TRIM(O33)=\"\", \"\", IF(VLOOKUP(O33,'Footnotes list'!$D$9:$E$58,2,FALSE)=0,\"\",VLOOKUP(O33,'Footnotes list'!$D$9:$E$58,2,FALSE) ) )","v":""},null,null,null,null,{"$f":"IF(TRIM(T33)=\"\", \"\", IF(VLOOKUP(T33,'Footnotes list'!$D$9:$E$58,2,FALSE)=0,\"\",VLOOKUP(T33,'Footnotes list'!$D$9:$E$58,2,FALSE) ) )","v":""},null,null,null,null,{"$f":"IF(TRIM(Y33)=\"\", \"\", IF(VLOOKUP(Y33,'Footnotes list'!$D$9:$E$58,2,FALSE)=0,\"\",VLOOKUP(Y33,'Footnotes list'!$D$9:$E$58,2,FALSE) ) )","v":""},null,null,null,null,{"$f":"IF(TRIM(AD33)=\"\", \"\", IF(VLOOKUP(AD33,'Footnotes list'!$D$9:$E$58,2,FALSE)=0,\"\",VLOOKUP(AD33,'Footnotes list'!$D$9:$E$58,2,FALSE) ) )","v":""},null,null,null,null,{"$f":"IF(TRIM(AI33)=\"\", \"\", IF(VLOOKUP(AI33,'Footnotes list'!$D$9:$E$58,2,FALSE)=0,\"\",VLOOKUP(AI33,'Footnotes list'!$D$9:$E$58,2,FALSE) ) )","v":""},null,null,null,null,{"$f":"IF(TRIM(AN33)=\"\", \"\", IF(VLOOKUP(AN33,'Footnotes list'!$D$9:$E$58,2,FALSE)=0,\"\",VLOOKUP(AN33,'Footnotes list'!$D$9:$E$58,2,FALSE) ) )","v":""},null,null,null,null,{"$f":"IF(TRIM(AS33)=\"\", \"\", IF(VLOOKUP(AS33,'Footnotes list'!$D$9:$E$58,2,FALSE)=0,\"\",VLOOKUP(AS33,'Footnotes list'!$D$9:$E$58,2,FALSE) ) )","v":""},null,null,null,null,{"$f":"IF(TRIM(AX33)=\"\", \"\", IF(VLOOKUP(AX33,'Footnotes list'!$D$9:$E$58,2,FALSE)=0,\"\",VLOOKUP(AX33,'Footnotes list'!$D$9:$E$58,2,FALSE) ) )","v":""},null,null,null,null,{"$f":"IF(TRIM(BC33)=\"\", \"\", IF(VLOOKUP(BC33,'Footnotes list'!$D$9:$E$58,2,FALSE)=0,\"\",VLOOKUP(BC33,'Footnotes list'!$D$9:$E$58,2,FALSE) ) )","v":""},null,null,null,null,{"$f":"IF(TRIM(BH33)=\"\", \"\", IF(VLOOKUP(BH33,'Footnotes list'!$D$9:$E$58,2,FALSE)=0,\"\",VLOOKUP(BH33,'Footnotes list'!$D$9:$E$58,2,FALSE) ) )","v":""},null,null,null,null,{"$f":"IF(TRIM(BM33)=\"\", \"\", IF(VLOOKUP(BM33,'Footnotes list'!$D$9:$E$58,2,FALSE)=0,\"\",VLOOKUP(BM33,'Footnotes list'!$D$9:$E$58,2,FALSE) ) )","v":""},null,null,null,null,{"$f":"IF(TRIM(BR33)=\"\", \"\", IF(VLOOKUP(BR33,'Footnotes list'!$D$9:$E$58,2,FALSE)=0,\"\",VLOOKUP(BR33,'Footnotes list'!$D$9:$E$58,2,FALSE) ) )","v":""},null,null,null,null,{"$f":"IF(TRIM(BW33)=\"\", \"\", IF(VLOOKUP(BW33,'Footnotes list'!$D$9:$E$58,2,FALSE)=0,\"\",VLOOKUP(BW33,'Footnotes list'!$D$9:$E$58,2,FALSE) ) )","v":""},null,null,null,null,{"$f":"IF(TRIM(CB33)=\"\", \"\", IF(VLOOKUP(CB33,'Footnotes list'!$D$9:$E$58,2,FALSE)=0,\"\",VLOOKUP(CB33,'Footnotes list'!$D$9:$E$58,2,FALSE) ) )","v":""},null,null,null,null,{"$f":"IF(TRIM(CG33)=\"\", \"\", IF(VLOOKUP(CG33,'Footnotes list'!$D$9:$E$58,2,FALSE)=0,\"\",VLOOKUP(CG33,'Footnotes list'!$D$9:$E$58,2,FALSE) ) )","v":""},null,null,null,null,{"$f":"IF(TRIM(CL33)=\"\", \"\", IF(VLOOKUP(CL33,'Footnotes list'!$D$9:$E$58,2,FALSE)=0,\"\",VLOOKUP(CL33,'Footnotes list'!$D$9:$E$58,2,FALSE) ) )","v":""},null,null,null,null,{"$f":"IF(TRIM(CQ33)=\"\", \"\", IF(VLOOKUP(CQ33,'Footnotes list'!$D$9:$E$58,2,FALSE)=0,\"\",VLOOKUP(CQ33,'Footnotes list'!$D$9:$E$58,2,FALSE) ) )","v":""},null,null,null,null,{"$f":"IF(TRIM(CV33)=\"\", \"\", IF(VLOOKUP(CV33,'Footnotes list'!$D$9:$E$58,2,FALSE)=0,\"\",VLOOKUP(CV33,'Footnotes list'!$D$9:$E$58,2,FALSE) ) )","v":""},null,null,null,null,{"$f":"IF(TRIM(DA33)=\"\", \"\", IF(VLOOKUP(DA33,'Footnotes list'!$D$9:$E$58,2,FALSE)=0,\"\",VLOOKUP(DA33,'Footnotes list'!$D$9:$E$58,2,FALSE) ) )","v":""},null,null,null,null,{"$f":"IF(TRIM(DF33)=\"\", \"\", IF(VLOOKUP(DF33,'Footnotes list'!$D$9:$E$58,2,FALSE)=0,\"\",VLOOKUP(DF33,'Footnotes list'!$D$9:$E$58,2,FALSE) ) )","v":""},null,null,null,null,{"$f":"IF(TRIM(DK33)=\"\", \"\", IF(VLOOKUP(DK33,'Footnotes list'!$D$9:$E$58,2,FALSE)=0,\"\",VLOOKUP(DK33,'Footnotes list'!$D$9:$E$58,2,FALSE) ) )","v":""},null,null,null,null,{"$f":"IF(TRIM(DP33)=\"\", \"\", IF(VLOOKUP(DP33,'Footnotes list'!$D$9:$E$58,2,FALSE)=0,\"\",VLOOKUP(DP33,'Footnotes list'!$D$9:$E$58,2,FALSE) ) )","v":""},null,null,null,null,{"$f":"IF(TRIM(DU33)=\"\", \"\", IF(VLOOKUP(DU33,'Footnotes list'!$D$9:$E$58,2,FALSE)=0,\"\",VLOOKUP(DU33,'Footnotes list'!$D$9:$E$58,2,FALSE) ) )","v":""},null,null,null,null,{"$f":"IF(TRIM(DZ33)=\"\", \"\", IF(VLOOKUP(DZ33,'Footnotes list'!$D$9:$E$58,2,FALSE)=0,\"\",VLOOKUP(DZ33,'Footnotes list'!$D$9:$E$58,2,FALSE) ) )","v":""},null,null,null,null,{"$f":"IF(TRIM(EE33)=\"\", \"\", IF(VLOOKUP(EE33,'Footnotes list'!$D$9:$E$58,2,FALSE)=0,\"\",VLOOKUP(EE33,'Footnotes list'!$D$9:$E$58,2,FALSE) ) )","v":""},null,null,null,null,{"$f":"IF(TRIM(EJ33)=\"\", \"\", IF(VLOOKUP(EJ33,'Footnotes list'!$D$9:$E$58,2,FALSE)=0,\"\",VLOOKUP(EJ33,'Footnotes list'!$D$9:$E$58,2,FALSE) ) )","v":""},null,null,null,null,{"$f":"IF(TRIM(EO33)=\"\", \"\", IF(VLOOKUP(EO33,'Footnotes list'!$D$9:$E$58,2,FALSE)=0,\"\",VLOOKUP(EO33,'Footnotes list'!$D$9:$E$58,2,FALSE) ) )","v":""},null,null,null,null,{"$f":"IF(TRIM(ET33)=\"\", \"\", IF(VLOOKUP(ET33,'Footnotes list'!$D$9:$E$58,2,FALSE)=0,\"\",VLOOKUP(ET33,'Footnotes list'!$D$9:$E$58,2,FALSE) ) )","v":""},null,null,null,null,{"$f":"IF(TRIM(EY33)=\"\", \"\", IF(VLOOKUP(EY33,'Footnotes list'!$D$9:$E$58,2,FALSE)=0,\"\",VLOOKUP(EY33,'Footnotes list'!$D$9:$E$58,2,FALSE) ) )","v":""}]
[null,null,"C","ES_CS","environmental specific services",null,null,null,null,null,{"$f":"IF(TRIM(J34)=\"\", \"\", IF(VLOOKUP(J34,'Footnotes list'!$D$9:$E$58,2,FALSE)=0,\"\",VLOOKUP(J34,'Footnotes list'!$D$9:$E$58,2,FALSE) ) )","v":""},null,null,null,null,{"$f":"IF(TRIM(O34)=\"\", \"\", IF(VLOOKUP(O34,'Footnotes list'!$D$9:$E$58,2,FALSE)=0,\"\",VLOOKUP(O34,'Footnotes list'!$D$9:$E$58,2,FALSE) ) )","v":""},null,null,null,null,{"$f":"IF(TRIM(T34)=\"\", \"\", IF(VLOOKUP(T34,'Footnotes list'!$D$9:$E$58,2,FALSE)=0,\"\",VLOOKUP(T34,'Footnotes list'!$D$9:$E$58,2,FALSE) ) )","v":""},null,null,null,null,{"$f":"IF(TRIM(Y34)=\"\", \"\", IF(VLOOKUP(Y34,'Footnotes list'!$D$9:$E$58,2,FALSE)=0,\"\",VLOOKUP(Y34,'Footnotes list'!$D$9:$E$58,2,FALSE) ) )","v":""},null,null,null,null,{"$f":"IF(TRIM(AD34)=\"\", \"\", IF(VLOOKUP(AD34,'Footnotes list'!$D$9:$E$58,2,FALSE)=0,\"\",VLOOKUP(AD34,'Footnotes list'!$D$9:$E$58,2,FALSE) ) )","v":""},null,null,null,null,{"$f":"IF(TRIM(AI34)=\"\", \"\", IF(VLOOKUP(AI34,'Footnotes list'!$D$9:$E$58,2,FALSE)=0,\"\",VLOOKUP(AI34,'Footnotes list'!$D$9:$E$58,2,FALSE) ) )","v":""},null,null,null,null,{"$f":"IF(TRIM(AN34)=\"\", \"\", IF(VLOOKUP(AN34,'Footnotes list'!$D$9:$E$58,2,FALSE)=0,\"\",VLOOKUP(AN34,'Footnotes list'!$D$9:$E$58,2,FALSE) ) )","v":""},null,null,null,null,{"$f":"IF(TRIM(AS34)=\"\", \"\", IF(VLOOKUP(AS34,'Footnotes list'!$D$9:$E$58,2,FALSE)=0,\"\",VLOOKUP(AS34,'Footnotes list'!$D$9:$E$58,2,FALSE) ) )","v":""},null,null,null,null,{"$f":"IF(TRIM(AX34)=\"\", \"\", IF(VLOOKUP(AX34,'Footnotes list'!$D$9:$E$58,2,FALSE)=0,\"\",VLOOKUP(AX34,'Footnotes list'!$D$9:$E$58,2,FALSE) ) )","v":""},null,null,null,null,{"$f":"IF(TRIM(BC34)=\"\", \"\", IF(VLOOKUP(BC34,'Footnotes list'!$D$9:$E$58,2,FALSE)=0,\"\",VLOOKUP(BC34,'Footnotes list'!$D$9:$E$58,2,FALSE) ) )","v":""},null,null,null,null,{"$f":"IF(TRIM(BH34)=\"\", \"\", IF(VLOOKUP(BH34,'Footnotes list'!$D$9:$E$58,2,FALSE)=0,\"\",VLOOKUP(BH34,'Footnotes list'!$D$9:$E$58,2,FALSE) ) )","v":""},null,null,null,null,{"$f":"IF(TRIM(BM34)=\"\", \"\", IF(VLOOKUP(BM34,'Footnotes list'!$D$9:$E$58,2,FALSE)=0,\"\",VLOOKUP(BM34,'Footnotes list'!$D$9:$E$58,2,FALSE) ) )","v":""},null,null,null,null,{"$f":"IF(TRIM(BR34)=\"\", \"\", IF(VLOOKUP(BR34,'Footnotes list'!$D$9:$E$58,2,FALSE)=0,\"\",VLOOKUP(BR34,'Footnotes list'!$D$9:$E$58,2,FALSE) ) )","v":""},null,null,null,null,{"$f":"IF(TRIM(BW34)=\"\", \"\", IF(VLOOKUP(BW34,'Footnotes list'!$D$9:$E$58,2,FALSE)=0,\"\",VLOOKUP(BW34,'Footnotes list'!$D$9:$E$58,2,FALSE) ) )","v":""},null,null,null,null,{"$f":"IF(TRIM(CB34)=\"\", \"\", IF(VLOOKUP(CB34,'Footnotes list'!$D$9:$E$58,2,FALSE)=0,\"\",VLOOKUP(CB34,'Footnotes list'!$D$9:$E$58,2,FALSE) ) )","v":""},null,null,null,null,{"$f":"IF(TRIM(CG34)=\"\", \"\", IF(VLOOKUP(CG34,'Footnotes list'!$D$9:$E$58,2,FALSE)=0,\"\",VLOOKUP(CG34,'Footnotes list'!$D$9:$E$58,2,FALSE) ) )","v":""},null,null,null,null,{"$f":"IF(TRIM(CL34)=\"\", \"\", IF(VLOOKUP(CL34,'Footnotes list'!$D$9:$E$58,2,FALSE)=0,\"\",VLOOKUP(CL34,'Footnotes list'!$D$9:$E$58,2,FALSE) ) )","v":""},null,null,null,null,{"$f":"IF(TRIM(CQ34)=\"\", \"\", IF(VLOOKUP(CQ34,'Footnotes list'!$D$9:$E$58,2,FALSE)=0,\"\",VLOOKUP(CQ34,'Footnotes list'!$D$9:$E$58,2,FALSE) ) )","v":""},null,null,null,null,{"$f":"IF(TRIM(CV34)=\"\", \"\", IF(VLOOKUP(CV34,'Footnotes list'!$D$9:$E$58,2,FALSE)=0,\"\",VLOOKUP(CV34,'Footnotes list'!$D$9:$E$58,2,FALSE) ) )","v":""},null,null,null,null,{"$f":"IF(TRIM(DA34)=\"\", \"\", IF(VLOOKUP(DA34,'Footnotes list'!$D$9:$E$58,2,FALSE)=0,\"\",VLOOKUP(DA34,'Footnotes list'!$D$9:$E$58,2,FALSE) ) )","v":""},null,null,null,null,{"$f":"IF(TRIM(DF34)=\"\", \"\", IF(VLOOKUP(DF34,'Footnotes list'!$D$9:$E$58,2,FALSE)=0,\"\",VLOOKUP(DF34,'Footnotes list'!$D$9:$E$58,2,FALSE) ) )","v":""},null,null,null,null,{"$f":"IF(TRIM(DK34)=\"\", \"\", IF(VLOOKUP(DK34,'Footnotes list'!$D$9:$E$58,2,FALSE)=0,\"\",VLOOKUP(DK34,'Footnotes list'!$D$9:$E$58,2,FALSE) ) )","v":""},null,null,null,null,{"$f":"IF(TRIM(DP34)=\"\", \"\", IF(VLOOKUP(DP34,'Footnotes list'!$D$9:$E$58,2,FALSE)=0,\"\",VLOOKUP(DP34,'Footnotes list'!$D$9:$E$58,2,FALSE) ) )","v":""},null,null,null,null,{"$f":"IF(TRIM(DU34)=\"\", \"\", IF(VLOOKUP(DU34,'Footnotes list'!$D$9:$E$58,2,FALSE)=0,\"\",VLOOKUP(DU34,'Footnotes list'!$D$9:$E$58,2,FALSE) ) )","v":""},null,null,null,null,{"$f":"IF(TRIM(DZ34)=\"\", \"\", IF(VLOOKUP(DZ34,'Footnotes list'!$D$9:$E$58,2,FALSE)=0,\"\",VLOOKUP(DZ34,'Footnotes list'!$D$9:$E$58,2,FALSE) ) )","v":""},null,null,null,null,{"$f":"IF(TRIM(EE34)=\"\", \"\", IF(VLOOKUP(EE34,'Footnotes list'!$D$9:$E$58,2,FALSE)=0,\"\",VLOOKUP(EE34,'Footnotes list'!$D$9:$E$58,2,FALSE) ) )","v":""},null,null,null,null,{"$f":"IF(TRIM(EJ34)=\"\", \"\", IF(VLOOKUP(EJ34,'Footnotes list'!$D$9:$E$58,2,FALSE)=0,\"\",VLOOKUP(EJ34,'Footnotes list'!$D$9:$E$58,2,FALSE) ) )","v":""},null,null,null,null,{"$f":"IF(TRIM(EO34)=\"\", \"\", IF(VLOOKUP(EO34,'Footnotes list'!$D$9:$E$58,2,FALSE)=0,\"\",VLOOKUP(EO34,'Footnotes list'!$D$9:$E$58,2,FALSE) ) )","v":""},null,null,null,null,{"$f":"IF(TRIM(ET34)=\"\", \"\", IF(VLOOKUP(ET34,'Footnotes list'!$D$9:$E$58,2,FALSE)=0,\"\",VLOOKUP(ET34,'Footnotes list'!$D$9:$E$58,2,FALSE) ) )","v":""},null,null,null,null,{"$f":"IF(TRIM(EY34)=\"\", \"\", IF(VLOOKUP(EY34,'Footnotes list'!$D$9:$E$58,2,FALSE)=0,\"\",VLOOKUP(EY34,'Footnotes list'!$D$9:$E$58,2,FALSE) ) )","v":""}]
[null,null,"C","C_REP","cleaner and resource efficient products",null,null,null,null,null,{"$f":"IF(TRIM(J35)=\"\", \"\", IF(VLOOKUP(J35,'Footnotes list'!$D$9:$E$58,2,FALSE)=0,\"\",VLOOKUP(J35,'Footnotes list'!$D$9:$E$58,2,FALSE) ) )","v":""},null,null,null,null,{"$f":"IF(TRIM(O35)=\"\", \"\", IF(VLOOKUP(O35,'Footnotes list'!$D$9:$E$58,2,FALSE)=0,\"\",VLOOKUP(O35,'Footnotes list'!$D$9:$E$58,2,FALSE) ) )","v":""},null,null,null,null,{"$f":"IF(TRIM(T35)=\"\", \"\", IF(VLOOKUP(T35,'Footnotes list'!$D$9:$E$58,2,FALSE)=0,\"\",VLOOKUP(T35,'Footnotes list'!$D$9:$E$58,2,FALSE) ) )","v":""},null,null,null,null,{"$f":"IF(TRIM(Y35)=\"\", \"\", IF(VLOOKUP(Y35,'Footnotes list'!$D$9:$E$58,2,FALSE)=0,\"\",VLOOKUP(Y35,'Footnotes list'!$D$9:$E$58,2,FALSE) ) )","v":""},null,null,null,null,{"$f":"IF(TRIM(AD35)=\"\", \"\", IF(VLOOKUP(AD35,'Footnotes list'!$D$9:$E$58,2,FALSE)=0,\"\",VLOOKUP(AD35,'Footnotes list'!$D$9:$E$58,2,FALSE) ) )","v":""},null,null,null,null,{"$f":"IF(TRIM(AI35)=\"\", \"\", IF(VLOOKUP(AI35,'Footnotes list'!$D$9:$E$58,2,FALSE)=0,\"\",VLOOKUP(AI35,'Footnotes list'!$D$9:$E$58,2,FALSE) ) )","v":""},null,null,null,null,{"$f":"IF(TRIM(AN35)=\"\", \"\", IF(VLOOKUP(AN35,'Footnotes list'!$D$9:$E$58,2,FALSE)=0,\"\",VLOOKUP(AN35,'Footnotes list'!$D$9:$E$58,2,FALSE) ) )","v":""},null,null,null,null,{"$f":"IF(TRIM(AS35)=\"\", \"\", IF(VLOOKUP(AS35,'Footnotes list'!$D$9:$E$58,2,FALSE)=0,\"\",VLOOKUP(AS35,'Footnotes list'!$D$9:$E$58,2,FALSE) ) )","v":""},null,null,null,null,{"$f":"IF(TRIM(AX35)=\"\", \"\", IF(VLOOKUP(AX35,'Footnotes list'!$D$9:$E$58,2,FALSE)=0,\"\",VLOOKUP(AX35,'Footnotes list'!$D$9:$E$58,2,FALSE) ) )","v":""},null,null,null,null,{"$f":"IF(TRIM(BC35)=\"\", \"\", IF(VLOOKUP(BC35,'Footnotes list'!$D$9:$E$58,2,FALSE)=0,\"\",VLOOKUP(BC35,'Footnotes list'!$D$9:$E$58,2,FALSE) ) )","v":""},null,null,null,null,{"$f":"IF(TRIM(BH35)=\"\", \"\", IF(VLOOKUP(BH35,'Footnotes list'!$D$9:$E$58,2,FALSE)=0,\"\",VLOOKUP(BH35,'Footnotes list'!$D$9:$E$58,2,FALSE) ) )","v":""},null,null,null,null,{"$f":"IF(TRIM(BM35)=\"\", \"\", IF(VLOOKUP(BM35,'Footnotes list'!$D$9:$E$58,2,FALSE)=0,\"\",VLOOKUP(BM35,'Footnotes list'!$D$9:$E$58,2,FALSE) ) )","v":""},null,null,null,null,{"$f":"IF(TRIM(BR35)=\"\", \"\", IF(VLOOKUP(BR35,'Footnotes list'!$D$9:$E$58,2,FALSE)=0,\"\",VLOOKUP(BR35,'Footnotes list'!$D$9:$E$58,2,FALSE) ) )","v":""},null,null,null,null,{"$f":"IF(TRIM(BW35)=\"\", \"\", IF(VLOOKUP(BW35,'Footnotes list'!$D$9:$E$58,2,FALSE)=0,\"\",VLOOKUP(BW35,'Footnotes list'!$D$9:$E$58,2,FALSE) ) )","v":""},null,null,null,null,{"$f":"IF(TRIM(CB35)=\"\", \"\", IF(VLOOKUP(CB35,'Footnotes list'!$D$9:$E$58,2,FALSE)=0,\"\",VLOOKUP(CB35,'Footnotes list'!$D$9:$E$58,2,FALSE) ) )","v":""},null,null,null,null,{"$f":"IF(TRIM(CG35)=\"\", \"\", IF(VLOOKUP(CG35,'Footnotes list'!$D$9:$E$58,2,FALSE)=0,\"\",VLOOKUP(CG35,'Footnotes list'!$D$9:$E$58,2,FALSE) ) )","v":""},null,null,null,null,{"$f":"IF(TRIM(CL35)=\"\", \"\", IF(VLOOKUP(CL35,'Footnotes list'!$D$9:$E$58,2,FALSE)=0,\"\",VLOOKUP(CL35,'Footnotes list'!$D$9:$E$58,2,FALSE) ) )","v":""},null,null,null,null,{"$f":"IF(TRIM(CQ35)=\"\", \"\", IF(VLOOKUP(CQ35,'Footnotes list'!$D$9:$E$58,2,FALSE)=0,\"\",VLOOKUP(CQ35,'Footnotes list'!$D$9:$E$58,2,FALSE) ) )","v":""},null,null,null,null,{"$f":"IF(TRIM(CV35)=\"\", \"\", IF(VLOOKUP(CV35,'Footnotes list'!$D$9:$E$58,2,FALSE)=0,\"\",VLOOKUP(CV35,'Footnotes list'!$D$9:$E$58,2,FALSE) ) )","v":""},null,null,null,null,{"$f":"IF(TRIM(DA35)=\"\", \"\", IF(VLOOKUP(DA35,'Footnotes list'!$D$9:$E$58,2,FALSE)=0,\"\",VLOOKUP(DA35,'Footnotes list'!$D$9:$E$58,2,FALSE) ) )","v":""},null,null,null,null,{"$f":"IF(TRIM(DF35)=\"\", \"\", IF(VLOOKUP(DF35,'Footnotes list'!$D$9:$E$58,2,FALSE)=0,\"\",VLOOKUP(DF35,'Footnotes list'!$D$9:$E$58,2,FALSE) ) )","v":""},null,null,null,null,{"$f":"IF(TRIM(DK35)=\"\", \"\", IF(VLOOKUP(DK35,'Footnotes list'!$D$9:$E$58,2,FALSE)=0,\"\",VLOOKUP(DK35,'Footnotes list'!$D$9:$E$58,2,FALSE) ) )","v":""},null,null,null,null,{"$f":"IF(TRIM(DP35)=\"\", \"\", IF(VLOOKUP(DP35,'Footnotes list'!$D$9:$E$58,2,FALSE)=0,\"\",VLOOKUP(DP35,'Footnotes list'!$D$9:$E$58,2,FALSE) ) )","v":""},null,null,null,null,{"$f":"IF(TRIM(DU35)=\"\", \"\", IF(VLOOKUP(DU35,'Footnotes list'!$D$9:$E$58,2,FALSE)=0,\"\",VLOOKUP(DU35,'Footnotes list'!$D$9:$E$58,2,FALSE) ) )","v":""},null,null,null,null,{"$f":"IF(TRIM(DZ35)=\"\", \"\", IF(VLOOKUP(DZ35,'Footnotes list'!$D$9:$E$58,2,FALSE)=0,\"\",VLOOKUP(DZ35,'Footnotes list'!$D$9:$E$58,2,FALSE) ) )","v":""},null,null,null,null,{"$f":"IF(TRIM(EE35)=\"\", \"\", IF(VLOOKUP(EE35,'Footnotes list'!$D$9:$E$58,2,FALSE)=0,\"\",VLOOKUP(EE35,'Footnotes list'!$D$9:$E$58,2,FALSE) ) )","v":""},null,null,null,null,{"$f":"IF(TRIM(EJ35)=\"\", \"\", IF(VLOOKUP(EJ35,'Footnotes list'!$D$9:$E$58,2,FALSE)=0,\"\",VLOOKUP(EJ35,'Footnotes list'!$D$9:$E$58,2,FALSE) ) )","v":""},null,null,null,null,{"$f":"IF(TRIM(EO35)=\"\", \"\", IF(VLOOKUP(EO35,'Footnotes list'!$D$9:$E$58,2,FALSE)=0,\"\",VLOOKUP(EO35,'Footnotes list'!$D$9:$E$58,2,FALSE) ) )","v":""},null,null,null,null,{"$f":"IF(TRIM(ET35)=\"\", \"\", IF(VLOOKUP(ET35,'Footnotes list'!$D$9:$E$58,2,FALSE)=0,\"\",VLOOKUP(ET35,'Footnotes list'!$D$9:$E$58,2,FALSE) ) )","v":""},null,null,null,null,{"$f":"IF(TRIM(EY35)=\"\", \"\", IF(VLOOKUP(EY35,'Footnotes list'!$D$9:$E$58,2,FALSE)=0,\"\",VLOOKUP(EY35,'Footnotes list'!$D$9:$E$58,2,FALSE) ) )","v":""}]
[null,null,"C10-C12","TOT_EGSS","Total  C10 - C12 - Manufacture of food products, beverages and tobacco products, of which:",null,null,null,null,null,{"$f":"IF(TRIM(J36)=\"\", \"\", IF(VLOOKUP(J36,'Footnotes list'!$D$9:$E$58,2,FALSE)=0,\"\",VLOOKUP(J36,'Footnotes list'!$D$9:$E$58,2,FALSE) ) )","v":""},null,null,null,null,{"$f":"IF(TRIM(O36)=\"\", \"\", IF(VLOOKUP(O36,'Footnotes list'!$D$9:$E$58,2,FALSE)=0,\"\",VLOOKUP(O36,'Footnotes list'!$D$9:$E$58,2,FALSE) ) )","v":""},null,null,null,null,{"$f":"IF(TRIM(T36)=\"\", \"\", IF(VLOOKUP(T36,'Footnotes list'!$D$9:$E$58,2,FALSE)=0,\"\",VLOOKUP(T36,'Footnotes list'!$D$9:$E$58,2,FALSE) ) )","v":""},null,null,null,null,{"$f":"IF(TRIM(Y36)=\"\", \"\", IF(VLOOKUP(Y36,'Footnotes list'!$D$9:$E$58,2,FALSE)=0,\"\",VLOOKUP(Y36,'Footnotes list'!$D$9:$E$58,2,FALSE) ) )","v":""},null,null,null,null,{"$f":"IF(TRIM(AD36)=\"\", \"\", IF(VLOOKUP(AD36,'Footnotes list'!$D$9:$E$58,2,FALSE)=0,\"\",VLOOKUP(AD36,'Footnotes list'!$D$9:$E$58,2,FALSE) ) )","v":""},null,null,null,null,{"$f":"IF(TRIM(AI36)=\"\", \"\", IF(VLOOKUP(AI36,'Footnotes list'!$D$9:$E$58,2,FALSE)=0,\"\",VLOOKUP(AI36,'Footnotes list'!$D$9:$E$58,2,FALSE) ) )","v":""},null,null,null,null,{"$f":"IF(TRIM(AN36)=\"\", \"\", IF(VLOOKUP(AN36,'Footnotes list'!$D$9:$E$58,2,FALSE)=0,\"\",VLOOKUP(AN36,'Footnotes list'!$D$9:$E$58,2,FALSE) ) )","v":""},null,null,null,null,{"$f":"IF(TRIM(AS36)=\"\", \"\", IF(VLOOKUP(AS36,'Footnotes list'!$D$9:$E$58,2,FALSE)=0,\"\",VLOOKUP(AS36,'Footnotes list'!$D$9:$E$58,2,FALSE) ) )","v":""},null,null,null,null,{"$f":"IF(TRIM(AX36)=\"\", \"\", IF(VLOOKUP(AX36,'Footnotes list'!$D$9:$E$58,2,FALSE)=0,\"\",VLOOKUP(AX36,'Footnotes list'!$D$9:$E$58,2,FALSE) ) )","v":""},null,null,null,null,{"$f":"IF(TRIM(BC36)=\"\", \"\", IF(VLOOKUP(BC36,'Footnotes list'!$D$9:$E$58,2,FALSE)=0,\"\",VLOOKUP(BC36,'Footnotes list'!$D$9:$E$58,2,FALSE) ) )","v":""},null,null,null,null,{"$f":"IF(TRIM(BH36)=\"\", \"\", IF(VLOOKUP(BH36,'Footnotes list'!$D$9:$E$58,2,FALSE)=0,\"\",VLOOKUP(BH36,'Footnotes list'!$D$9:$E$58,2,FALSE) ) )","v":""},null,null,null,null,{"$f":"IF(TRIM(BM36)=\"\", \"\", IF(VLOOKUP(BM36,'Footnotes list'!$D$9:$E$58,2,FALSE)=0,\"\",VLOOKUP(BM36,'Footnotes list'!$D$9:$E$58,2,FALSE) ) )","v":""},null,null,null,null,{"$f":"IF(TRIM(BR36)=\"\", \"\", IF(VLOOKUP(BR36,'Footnotes list'!$D$9:$E$58,2,FALSE)=0,\"\",VLOOKUP(BR36,'Footnotes list'!$D$9:$E$58,2,FALSE) ) )","v":""},null,null,null,null,{"$f":"IF(TRIM(BW36)=\"\", \"\", IF(VLOOKUP(BW36,'Footnotes list'!$D$9:$E$58,2,FALSE)=0,\"\",VLOOKUP(BW36,'Footnotes list'!$D$9:$E$58,2,FALSE) ) )","v":""},null,null,null,null,{"$f":"IF(TRIM(CB36)=\"\", \"\", IF(VLOOKUP(CB36,'Footnotes list'!$D$9:$E$58,2,FALSE)=0,\"\",VLOOKUP(CB36,'Footnotes list'!$D$9:$E$58,2,FALSE) ) )","v":""},null,null,null,null,{"$f":"IF(TRIM(CG36)=\"\", \"\", IF(VLOOKUP(CG36,'Footnotes list'!$D$9:$E$58,2,FALSE)=0,\"\",VLOOKUP(CG36,'Footnotes list'!$D$9:$E$58,2,FALSE) ) )","v":""},null,null,null,null,{"$f":"IF(TRIM(CL36)=\"\", \"\", IF(VLOOKUP(CL36,'Footnotes list'!$D$9:$E$58,2,FALSE)=0,\"\",VLOOKUP(CL36,'Footnotes list'!$D$9:$E$58,2,FALSE) ) )","v":""},null,null,null,null,{"$f":"IF(TRIM(CQ36)=\"\", \"\", IF(VLOOKUP(CQ36,'Footnotes list'!$D$9:$E$58,2,FALSE)=0,\"\",VLOOKUP(CQ36,'Footnotes list'!$D$9:$E$58,2,FALSE) ) )","v":""},null,null,null,null,{"$f":"IF(TRIM(CV36)=\"\", \"\", IF(VLOOKUP(CV36,'Footnotes list'!$D$9:$E$58,2,FALSE)=0,\"\",VLOOKUP(CV36,'Footnotes list'!$D$9:$E$58,2,FALSE) ) )","v":""},null,null,null,null,{"$f":"IF(TRIM(DA36)=\"\", \"\", IF(VLOOKUP(DA36,'Footnotes list'!$D$9:$E$58,2,FALSE)=0,\"\",VLOOKUP(DA36,'Footnotes list'!$D$9:$E$58,2,FALSE) ) )","v":""},null,null,null,null,{"$f":"IF(TRIM(DF36)=\"\", \"\", IF(VLOOKUP(DF36,'Footnotes list'!$D$9:$E$58,2,FALSE)=0,\"\",VLOOKUP(DF36,'Footnotes list'!$D$9:$E$58,2,FALSE) ) )","v":""},null,null,null,null,{"$f":"IF(TRIM(DK36)=\"\", \"\", IF(VLOOKUP(DK36,'Footnotes list'!$D$9:$E$58,2,FALSE)=0,\"\",VLOOKUP(DK36,'Footnotes list'!$D$9:$E$58,2,FALSE) ) )","v":""},null,null,null,null,{"$f":"IF(TRIM(DP36)=\"\", \"\", IF(VLOOKUP(DP36,'Footnotes list'!$D$9:$E$58,2,FALSE)=0,\"\",VLOOKUP(DP36,'Footnotes list'!$D$9:$E$58,2,FALSE) ) )","v":""},null,null,null,null,{"$f":"IF(TRIM(DU36)=\"\", \"\", IF(VLOOKUP(DU36,'Footnotes list'!$D$9:$E$58,2,FALSE)=0,\"\",VLOOKUP(DU36,'Footnotes list'!$D$9:$E$58,2,FALSE) ) )","v":""},null,null,null,null,{"$f":"IF(TRIM(DZ36)=\"\", \"\", IF(VLOOKUP(DZ36,'Footnotes list'!$D$9:$E$58,2,FALSE)=0,\"\",VLOOKUP(DZ36,'Footnotes list'!$D$9:$E$58,2,FALSE) ) )","v":""},null,null,null,null,{"$f":"IF(TRIM(EE36)=\"\", \"\", IF(VLOOKUP(EE36,'Footnotes list'!$D$9:$E$58,2,FALSE)=0,\"\",VLOOKUP(EE36,'Footnotes list'!$D$9:$E$58,2,FALSE) ) )","v":""},null,null,null,null,{"$f":"IF(TRIM(EJ36)=\"\", \"\", IF(VLOOKUP(EJ36,'Footnotes list'!$D$9:$E$58,2,FALSE)=0,\"\",VLOOKUP(EJ36,'Footnotes list'!$D$9:$E$58,2,FALSE) ) )","v":""},null,null,null,null,{"$f":"IF(TRIM(EO36)=\"\", \"\", IF(VLOOKUP(EO36,'Footnotes list'!$D$9:$E$58,2,FALSE)=0,\"\",VLOOKUP(EO36,'Footnotes list'!$D$9:$E$58,2,FALSE) ) )","v":""},null,null,null,null,{"$f":"IF(TRIM(ET36)=\"\", \"\", IF(VLOOKUP(ET36,'Footnotes list'!$D$9:$E$58,2,FALSE)=0,\"\",VLOOKUP(ET36,'Footnotes list'!$D$9:$E$58,2,FALSE) ) )","v":""},null,null,null,null,{"$f":"IF(TRIM(EY36)=\"\", \"\", IF(VLOOKUP(EY36,'Footnotes list'!$D$9:$E$58,2,FALSE)=0,\"\",VLOOKUP(EY36,'Footnotes list'!$D$9:$E$58,2,FALSE) ) )","v":""}]
[null,null,"C10-C12","ANC","ancillary activities",null,null,null,null,null,{"$f":"IF(TRIM(J37)=\"\", \"\", IF(VLOOKUP(J37,'Footnotes list'!$D$9:$E$58,2,FALSE)=0,\"\",VLOOKUP(J37,'Footnotes list'!$D$9:$E$58,2,FALSE) ) )","v":""},null,null,null,null,{"$f":"IF(TRIM(O37)=\"\", \"\", IF(VLOOKUP(O37,'Footnotes list'!$D$9:$E$58,2,FALSE)=0,\"\",VLOOKUP(O37,'Footnotes list'!$D$9:$E$58,2,FALSE) ) )","v":""},null,null,null,null,{"$f":"IF(TRIM(T37)=\"\", \"\", IF(VLOOKUP(T37,'Footnotes list'!$D$9:$E$58,2,FALSE)=0,\"\",VLOOKUP(T37,'Footnotes list'!$D$9:$E$58,2,FALSE) ) )","v":""},null,null,null,null,{"$f":"IF(TRIM(Y37)=\"\", \"\", IF(VLOOKUP(Y37,'Footnotes list'!$D$9:$E$58,2,FALSE)=0,\"\",VLOOKUP(Y37,'Footnotes list'!$D$9:$E$58,2,FALSE) ) )","v":""},null,null,null,null,{"$f":"IF(TRIM(AD37)=\"\", \"\", IF(VLOOKUP(AD37,'Footnotes list'!$D$9:$E$58,2,FALSE)=0,\"\",VLOOKUP(AD37,'Footnotes list'!$D$9:$E$58,2,FALSE) ) )","v":""},null,null,null,null,{"$f":"IF(TRIM(AI37)=\"\", \"\", IF(VLOOKUP(AI37,'Footnotes list'!$D$9:$E$58,2,FALSE)=0,\"\",VLOOKUP(AI37,'Footnotes list'!$D$9:$E$58,2,FALSE) ) )","v":""},null,null,null,null,{"$f":"IF(TRIM(AN37)=\"\", \"\", IF(VLOOKUP(AN37,'Footnotes list'!$D$9:$E$58,2,FALSE)=0,\"\",VLOOKUP(AN37,'Footnotes list'!$D$9:$E$58,2,FALSE) ) )","v":""},null,null,null,null,{"$f":"IF(TRIM(AS37)=\"\", \"\", IF(VLOOKUP(AS37,'Footnotes list'!$D$9:$E$58,2,FALSE)=0,\"\",VLOOKUP(AS37,'Footnotes list'!$D$9:$E$58,2,FALSE) ) )","v":""},null,null,null,null,{"$f":"IF(TRIM(AX37)=\"\", \"\", IF(VLOOKUP(AX37,'Footnotes list'!$D$9:$E$58,2,FALSE)=0,\"\",VLOOKUP(AX37,'Footnotes list'!$D$9:$E$58,2,FALSE) ) )","v":""},null,null,null,null,{"$f":"IF(TRIM(BC37)=\"\", \"\", IF(VLOOKUP(BC37,'Footnotes list'!$D$9:$E$58,2,FALSE)=0,\"\",VLOOKUP(BC37,'Footnotes list'!$D$9:$E$58,2,FALSE) ) )","v":""},null,null,null,null,{"$f":"IF(TRIM(BH37)=\"\", \"\", IF(VLOOKUP(BH37,'Footnotes list'!$D$9:$E$58,2,FALSE)=0,\"\",VLOOKUP(BH37,'Footnotes list'!$D$9:$E$58,2,FALSE) ) )","v":""},null,null,null,null,{"$f":"IF(TRIM(BM37)=\"\", \"\", IF(VLOOKUP(BM37,'Footnotes list'!$D$9:$E$58,2,FALSE)=0,\"\",VLOOKUP(BM37,'Footnotes list'!$D$9:$E$58,2,FALSE) ) )","v":""},null,null,null,null,{"$f":"IF(TRIM(BR37)=\"\", \"\", IF(VLOOKUP(BR37,'Footnotes list'!$D$9:$E$58,2,FALSE)=0,\"\",VLOOKUP(BR37,'Footnotes list'!$D$9:$E$58,2,FALSE) ) )","v":""},null,null,null,null,{"$f":"IF(TRIM(BW37)=\"\", \"\", IF(VLOOKUP(BW37,'Footnotes list'!$D$9:$E$58,2,FALSE)=0,\"\",VLOOKUP(BW37,'Footnotes list'!$D$9:$E$58,2,FALSE) ) )","v":""},null,null,null,null,{"$f":"IF(TRIM(CB37)=\"\", \"\", IF(VLOOKUP(CB37,'Footnotes list'!$D$9:$E$58,2,FALSE)=0,\"\",VLOOKUP(CB37,'Footnotes list'!$D$9:$E$58,2,FALSE) ) )","v":""},null,null,null,null,{"$f":"IF(TRIM(CG37)=\"\", \"\", IF(VLOOKUP(CG37,'Footnotes list'!$D$9:$E$58,2,FALSE)=0,\"\",VLOOKUP(CG37,'Footnotes list'!$D$9:$E$58,2,FALSE) ) )","v":""},null,null,null,null,{"$f":"IF(TRIM(CL37)=\"\", \"\", IF(VLOOKUP(CL37,'Footnotes list'!$D$9:$E$58,2,FALSE)=0,\"\",VLOOKUP(CL37,'Footnotes list'!$D$9:$E$58,2,FALSE) ) )","v":""},null,null,null,null,{"$f":"IF(TRIM(CQ37)=\"\", \"\", IF(VLOOKUP(CQ37,'Footnotes list'!$D$9:$E$58,2,FALSE)=0,\"\",VLOOKUP(CQ37,'Footnotes list'!$D$9:$E$58,2,FALSE) ) )","v":""},null,null,null,null,{"$f":"IF(TRIM(CV37)=\"\", \"\", IF(VLOOKUP(CV37,'Footnotes list'!$D$9:$E$58,2,FALSE)=0,\"\",VLOOKUP(CV37,'Footnotes list'!$D$9:$E$58,2,FALSE) ) )","v":""},null,null,null,null,{"$f":"IF(TRIM(DA37)=\"\", \"\", IF(VLOOKUP(DA37,'Footnotes list'!$D$9:$E$58,2,FALSE)=0,\"\",VLOOKUP(DA37,'Footnotes list'!$D$9:$E$58,2,FALSE) ) )","v":""},null,null,null,null,{"$f":"IF(TRIM(DF37)=\"\", \"\", IF(VLOOKUP(DF37,'Footnotes list'!$D$9:$E$58,2,FALSE)=0,\"\",VLOOKUP(DF37,'Footnotes list'!$D$9:$E$58,2,FALSE) ) )","v":""},null,null,null,null,{"$f":"IF(TRIM(DK37)=\"\", \"\", IF(VLOOKUP(DK37,'Footnotes list'!$D$9:$E$58,2,FALSE)=0,\"\",VLOOKUP(DK37,'Footnotes list'!$D$9:$E$58,2,FALSE) ) )","v":""},null,null,null,null,{"$f":"IF(TRIM(DP37)=\"\", \"\", IF(VLOOKUP(DP37,'Footnotes list'!$D$9:$E$58,2,FALSE)=0,\"\",VLOOKUP(DP37,'Footnotes list'!$D$9:$E$58,2,FALSE) ) )","v":""},null,null,null,null,{"$f":"IF(TRIM(DU37)=\"\", \"\", IF(VLOOKUP(DU37,'Footnotes list'!$D$9:$E$58,2,FALSE)=0,\"\",VLOOKUP(DU37,'Footnotes list'!$D$9:$E$58,2,FALSE) ) )","v":""},null,null,null,null,{"$f":"IF(TRIM(DZ37)=\"\", \"\", IF(VLOOKUP(DZ37,'Footnotes list'!$D$9:$E$58,2,FALSE)=0,\"\",VLOOKUP(DZ37,'Footnotes list'!$D$9:$E$58,2,FALSE) ) )","v":""},null,null,null,null,{"$f":"IF(TRIM(EE37)=\"\", \"\", IF(VLOOKUP(EE37,'Footnotes list'!$D$9:$E$58,2,FALSE)=0,\"\",VLOOKUP(EE37,'Footnotes list'!$D$9:$E$58,2,FALSE) ) )","v":""},null,null,null,null,{"$f":"IF(TRIM(EJ37)=\"\", \"\", IF(VLOOKUP(EJ37,'Footnotes list'!$D$9:$E$58,2,FALSE)=0,\"\",VLOOKUP(EJ37,'Footnotes list'!$D$9:$E$58,2,FALSE) ) )","v":""},null,null,null,null,{"$f":"IF(TRIM(EO37)=\"\", \"\", IF(VLOOKUP(EO37,'Footnotes list'!$D$9:$E$58,2,FALSE)=0,\"\",VLOOKUP(EO37,'Footnotes list'!$D$9:$E$58,2,FALSE) ) )","v":""},null,null,null,null,{"$f":"IF(TRIM(ET37)=\"\", \"\", IF(VLOOKUP(ET37,'Footnotes list'!$D$9:$E$58,2,FALSE)=0,\"\",VLOOKUP(ET37,'Footnotes list'!$D$9:$E$58,2,FALSE) ) )","v":""},null,null,null,null,{"$f":"IF(TRIM(EY37)=\"\", \"\", IF(VLOOKUP(EY37,'Footnotes list'!$D$9:$E$58,2,FALSE)=0,\"\",VLOOKUP(EY37,'Footnotes list'!$D$9:$E$58,2,FALSE) ) )","v":""}]
[null,null,"C10-C12","NMKT","non-market activities",null,null,null,null,null,{"$f":"IF(TRIM(J38)=\"\", \"\", IF(VLOOKUP(J38,'Footnotes list'!$D$9:$E$58,2,FALSE)=0,\"\",VLOOKUP(J38,'Footnotes list'!$D$9:$E$58,2,FALSE) ) )","v":""},null,null,null,null,{"$f":"IF(TRIM(O38)=\"\", \"\", IF(VLOOKUP(O38,'Footnotes list'!$D$9:$E$58,2,FALSE)=0,\"\",VLOOKUP(O38,'Footnotes list'!$D$9:$E$58,2,FALSE) ) )","v":""},null,null,null,null,{"$f":"IF(TRIM(T38)=\"\", \"\", IF(VLOOKUP(T38,'Footnotes list'!$D$9:$E$58,2,FALSE)=0,\"\",VLOOKUP(T38,'Footnotes list'!$D$9:$E$58,2,FALSE) ) )","v":""},null,null,null,null,{"$f":"IF(TRIM(Y38)=\"\", \"\", IF(VLOOKUP(Y38,'Footnotes list'!$D$9:$E$58,2,FALSE)=0,\"\",VLOOKUP(Y38,'Footnotes list'!$D$9:$E$58,2,FALSE) ) )","v":""},null,null,null,null,{"$f":"IF(TRIM(AD38)=\"\", \"\", IF(VLOOKUP(AD38,'Footnotes list'!$D$9:$E$58,2,FALSE)=0,\"\",VLOOKUP(AD38,'Footnotes list'!$D$9:$E$58,2,FALSE) ) )","v":""},null,null,null,null,{"$f":"IF(TRIM(AI38)=\"\", \"\", IF(VLOOKUP(AI38,'Footnotes list'!$D$9:$E$58,2,FALSE)=0,\"\",VLOOKUP(AI38,'Footnotes list'!$D$9:$E$58,2,FALSE) ) )","v":""},null,null,null,null,{"$f":"IF(TRIM(AN38)=\"\", \"\", IF(VLOOKUP(AN38,'Footnotes list'!$D$9:$E$58,2,FALSE)=0,\"\",VLOOKUP(AN38,'Footnotes list'!$D$9:$E$58,2,FALSE) ) )","v":""},null,null,null,null,{"$f":"IF(TRIM(AS38)=\"\", \"\", IF(VLOOKUP(AS38,'Footnotes list'!$D$9:$E$58,2,FALSE)=0,\"\",VLOOKUP(AS38,'Footnotes list'!$D$9:$E$58,2,FALSE) ) )","v":""},null,null,null,null,{"$f":"IF(TRIM(AX38)=\"\", \"\", IF(VLOOKUP(AX38,'Footnotes list'!$D$9:$E$58,2,FALSE)=0,\"\",VLOOKUP(AX38,'Footnotes list'!$D$9:$E$58,2,FALSE) ) )","v":""},null,null,null,null,{"$f":"IF(TRIM(BC38)=\"\", \"\", IF(VLOOKUP(BC38,'Footnotes list'!$D$9:$E$58,2,FALSE)=0,\"\",VLOOKUP(BC38,'Footnotes list'!$D$9:$E$58,2,FALSE) ) )","v":""},null,null,null,null,{"$f":"IF(TRIM(BH38)=\"\", \"\", IF(VLOOKUP(BH38,'Footnotes list'!$D$9:$E$58,2,FALSE)=0,\"\",VLOOKUP(BH38,'Footnotes list'!$D$9:$E$58,2,FALSE) ) )","v":""},null,null,null,null,{"$f":"IF(TRIM(BM38)=\"\", \"\", IF(VLOOKUP(BM38,'Footnotes list'!$D$9:$E$58,2,FALSE)=0,\"\",VLOOKUP(BM38,'Footnotes list'!$D$9:$E$58,2,FALSE) ) )","v":""},null,null,null,null,{"$f":"IF(TRIM(BR38)=\"\", \"\", IF(VLOOKUP(BR38,'Footnotes list'!$D$9:$E$58,2,FALSE)=0,\"\",VLOOKUP(BR38,'Footnotes list'!$D$9:$E$58,2,FALSE) ) )","v":""},null,null,null,null,{"$f":"IF(TRIM(BW38)=\"\", \"\", IF(VLOOKUP(BW38,'Footnotes list'!$D$9:$E$58,2,FALSE)=0,\"\",VLOOKUP(BW38,'Footnotes list'!$D$9:$E$58,2,FALSE) ) )","v":""},null,null,null,null,{"$f":"IF(TRIM(CB38)=\"\", \"\", IF(VLOOKUP(CB38,'Footnotes list'!$D$9:$E$58,2,FALSE)=0,\"\",VLOOKUP(CB38,'Footnotes list'!$D$9:$E$58,2,FALSE) ) )","v":""},null,null,null,null,{"$f":"IF(TRIM(CG38)=\"\", \"\", IF(VLOOKUP(CG38,'Footnotes list'!$D$9:$E$58,2,FALSE)=0,\"\",VLOOKUP(CG38,'Footnotes list'!$D$9:$E$58,2,FALSE) ) )","v":""},null,null,null,null,{"$f":"IF(TRIM(CL38)=\"\", \"\", IF(VLOOKUP(CL38,'Footnotes list'!$D$9:$E$58,2,FALSE)=0,\"\",VLOOKUP(CL38,'Footnotes list'!$D$9:$E$58,2,FALSE) ) )","v":""},null,null,null,null,{"$f":"IF(TRIM(CQ38)=\"\", \"\", IF(VLOOKUP(CQ38,'Footnotes list'!$D$9:$E$58,2,FALSE)=0,\"\",VLOOKUP(CQ38,'Footnotes list'!$D$9:$E$58,2,FALSE) ) )","v":""},null,null,null,null,{"$f":"IF(TRIM(CV38)=\"\", \"\", IF(VLOOKUP(CV38,'Footnotes list'!$D$9:$E$58,2,FALSE)=0,\"\",VLOOKUP(CV38,'Footnotes list'!$D$9:$E$58,2,FALSE) ) )","v":""},null,null,null,null,{"$f":"IF(TRIM(DA38)=\"\", \"\", IF(VLOOKUP(DA38,'Footnotes list'!$D$9:$E$58,2,FALSE)=0,\"\",VLOOKUP(DA38,'Footnotes list'!$D$9:$E$58,2,FALSE) ) )","v":""},null,null,null,null,{"$f":"IF(TRIM(DF38)=\"\", \"\", IF(VLOOKUP(DF38,'Footnotes list'!$D$9:$E$58,2,FALSE)=0,\"\",VLOOKUP(DF38,'Footnotes list'!$D$9:$E$58,2,FALSE) ) )","v":""},null,null,null,null,{"$f":"IF(TRIM(DK38)=\"\", \"\", IF(VLOOKUP(DK38,'Footnotes list'!$D$9:$E$58,2,FALSE)=0,\"\",VLOOKUP(DK38,'Footnotes list'!$D$9:$E$58,2,FALSE) ) )","v":""},null,null,null,null,{"$f":"IF(TRIM(DP38)=\"\", \"\", IF(VLOOKUP(DP38,'Footnotes list'!$D$9:$E$58,2,FALSE)=0,\"\",VLOOKUP(DP38,'Footnotes list'!$D$9:$E$58,2,FALSE) ) )","v":""},null,null,null,null,{"$f":"IF(TRIM(DU38)=\"\", \"\", IF(VLOOKUP(DU38,'Footnotes list'!$D$9:$E$58,2,FALSE)=0,\"\",VLOOKUP(DU38,'Footnotes list'!$D$9:$E$58,2,FALSE) ) )","v":""},null,null,null,null,{"$f":"IF(TRIM(DZ38)=\"\", \"\", IF(VLOOKUP(DZ38,'Footnotes list'!$D$9:$E$58,2,FALSE)=0,\"\",VLOOKUP(DZ38,'Footnotes list'!$D$9:$E$58,2,FALSE) ) )","v":""},null,null,null,null,{"$f":"IF(TRIM(EE38)=\"\", \"\", IF(VLOOKUP(EE38,'Footnotes list'!$D$9:$E$58,2,FALSE)=0,\"\",VLOOKUP(EE38,'Footnotes list'!$D$9:$E$58,2,FALSE) ) )","v":""},null,null,null,null,{"$f":"IF(TRIM(EJ38)=\"\", \"\", IF(VLOOKUP(EJ38,'Footnotes list'!$D$9:$E$58,2,FALSE)=0,\"\",VLOOKUP(EJ38,'Footnotes list'!$D$9:$E$58,2,FALSE) ) )","v":""},null,null,null,null,{"$f":"IF(TRIM(EO38)=\"\", \"\", IF(VLOOKUP(EO38,'Footnotes list'!$D$9:$E$58,2,FALSE)=0,\"\",VLOOKUP(EO38,'Footnotes list'!$D$9:$E$58,2,FALSE) ) )","v":""},null,null,null,null,{"$f":"IF(TRIM(ET38)=\"\", \"\", IF(VLOOKUP(ET38,'Footnotes list'!$D$9:$E$58,2,FALSE)=0,\"\",VLOOKUP(ET38,'Footnotes list'!$D$9:$E$58,2,FALSE) ) )","v":""},null,null,null,null,{"$f":"IF(TRIM(EY38)=\"\", \"\", IF(VLOOKUP(EY38,'Footnotes list'!$D$9:$E$58,2,FALSE)=0,\"\",VLOOKUP(EY38,'Footnotes list'!$D$9:$E$58,2,FALSE) ) )","v":""}]
[null,null,"C10-C12","OWN_USE","activities for own final use",null,null,null,null,null,{"$f":"IF(TRIM(J39)=\"\", \"\", IF(VLOOKUP(J39,'Footnotes list'!$D$9:$E$58,2,FALSE)=0,\"\",VLOOKUP(J39,'Footnotes list'!$D$9:$E$58,2,FALSE) ) )","v":""},null,null,null,null,{"$f":"IF(TRIM(O39)=\"\", \"\", IF(VLOOKUP(O39,'Footnotes list'!$D$9:$E$58,2,FALSE)=0,\"\",VLOOKUP(O39,'Footnotes list'!$D$9:$E$58,2,FALSE) ) )","v":""},null,null,null,null,{"$f":"IF(TRIM(T39)=\"\", \"\", IF(VLOOKUP(T39,'Footnotes list'!$D$9:$E$58,2,FALSE)=0,\"\",VLOOKUP(T39,'Footnotes list'!$D$9:$E$58,2,FALSE) ) )","v":""},null,null,null,null,{"$f":"IF(TRIM(Y39)=\"\", \"\", IF(VLOOKUP(Y39,'Footnotes list'!$D$9:$E$58,2,FALSE)=0,\"\",VLOOKUP(Y39,'Footnotes list'!$D$9:$E$58,2,FALSE) ) )","v":""},null,null,null,null,{"$f":"IF(TRIM(AD39)=\"\", \"\", IF(VLOOKUP(AD39,'Footnotes list'!$D$9:$E$58,2,FALSE)=0,\"\",VLOOKUP(AD39,'Footnotes list'!$D$9:$E$58,2,FALSE) ) )","v":""},null,null,null,null,{"$f":"IF(TRIM(AI39)=\"\", \"\", IF(VLOOKUP(AI39,'Footnotes list'!$D$9:$E$58,2,FALSE)=0,\"\",VLOOKUP(AI39,'Footnotes list'!$D$9:$E$58,2,FALSE) ) )","v":""},null,null,null,null,{"$f":"IF(TRIM(AN39)=\"\", \"\", IF(VLOOKUP(AN39,'Footnotes list'!$D$9:$E$58,2,FALSE)=0,\"\",VLOOKUP(AN39,'Footnotes list'!$D$9:$E$58,2,FALSE) ) )","v":""},null,null,null,null,{"$f":"IF(TRIM(AS39)=\"\", \"\", IF(VLOOKUP(AS39,'Footnotes list'!$D$9:$E$58,2,FALSE)=0,\"\",VLOOKUP(AS39,'Footnotes list'!$D$9:$E$58,2,FALSE) ) )","v":""},null,null,null,null,{"$f":"IF(TRIM(AX39)=\"\", \"\", IF(VLOOKUP(AX39,'Footnotes list'!$D$9:$E$58,2,FALSE)=0,\"\",VLOOKUP(AX39,'Footnotes list'!$D$9:$E$58,2,FALSE) ) )","v":""},null,null,null,null,{"$f":"IF(TRIM(BC39)=\"\", \"\", IF(VLOOKUP(BC39,'Footnotes list'!$D$9:$E$58,2,FALSE)=0,\"\",VLOOKUP(BC39,'Footnotes list'!$D$9:$E$58,2,FALSE) ) )","v":""},null,null,null,null,{"$f":"IF(TRIM(BH39)=\"\", \"\", IF(VLOOKUP(BH39,'Footnotes list'!$D$9:$E$58,2,FALSE)=0,\"\",VLOOKUP(BH39,'Footnotes list'!$D$9:$E$58,2,FALSE) ) )","v":""},null,null,null,null,{"$f":"IF(TRIM(BM39)=\"\", \"\", IF(VLOOKUP(BM39,'Footnotes list'!$D$9:$E$58,2,FALSE)=0,\"\",VLOOKUP(BM39,'Footnotes list'!$D$9:$E$58,2,FALSE) ) )","v":""},null,null,null,null,{"$f":"IF(TRIM(BR39)=\"\", \"\", IF(VLOOKUP(BR39,'Footnotes list'!$D$9:$E$58,2,FALSE)=0,\"\",VLOOKUP(BR39,'Footnotes list'!$D$9:$E$58,2,FALSE) ) )","v":""},null,null,null,null,{"$f":"IF(TRIM(BW39)=\"\", \"\", IF(VLOOKUP(BW39,'Footnotes list'!$D$9:$E$58,2,FALSE)=0,\"\",VLOOKUP(BW39,'Footnotes list'!$D$9:$E$58,2,FALSE) ) )","v":""},null,null,null,null,{"$f":"IF(TRIM(CB39)=\"\", \"\", IF(VLOOKUP(CB39,'Footnotes list'!$D$9:$E$58,2,FALSE)=0,\"\",VLOOKUP(CB39,'Footnotes list'!$D$9:$E$58,2,FALSE) ) )","v":""},null,null,null,null,{"$f":"IF(TRIM(CG39)=\"\", \"\", IF(VLOOKUP(CG39,'Footnotes list'!$D$9:$E$58,2,FALSE)=0,\"\",VLOOKUP(CG39,'Footnotes list'!$D$9:$E$58,2,FALSE) ) )","v":""},null,null,null,null,{"$f":"IF(TRIM(CL39)=\"\", \"\", IF(VLOOKUP(CL39,'Footnotes list'!$D$9:$E$58,2,FALSE)=0,\"\",VLOOKUP(CL39,'Footnotes list'!$D$9:$E$58,2,FALSE) ) )","v":""},null,null,null,null,{"$f":"IF(TRIM(CQ39)=\"\", \"\", IF(VLOOKUP(CQ39,'Footnotes list'!$D$9:$E$58,2,FALSE)=0,\"\",VLOOKUP(CQ39,'Footnotes list'!$D$9:$E$58,2,FALSE) ) )","v":""},null,null,null,null,{"$f":"IF(TRIM(CV39)=\"\", \"\", IF(VLOOKUP(CV39,'Footnotes list'!$D$9:$E$58,2,FALSE)=0,\"\",VLOOKUP(CV39,'Footnotes list'!$D$9:$E$58,2,FALSE) ) )","v":""},null,null,null,null,{"$f":"IF(TRIM(DA39)=\"\", \"\", IF(VLOOKUP(DA39,'Footnotes list'!$D$9:$E$58,2,FALSE)=0,\"\",VLOOKUP(DA39,'Footnotes list'!$D$9:$E$58,2,FALSE) ) )","v":""},null,null,null,null,{"$f":"IF(TRIM(DF39)=\"\", \"\", IF(VLOOKUP(DF39,'Footnotes list'!$D$9:$E$58,2,FALSE)=0,\"\",VLOOKUP(DF39,'Footnotes list'!$D$9:$E$58,2,FALSE) ) )","v":""},null,null,null,null,{"$f":"IF(TRIM(DK39)=\"\", \"\", IF(VLOOKUP(DK39,'Footnotes list'!$D$9:$E$58,2,FALSE)=0,\"\",VLOOKUP(DK39,'Footnotes list'!$D$9:$E$58,2,FALSE) ) )","v":""},null,null,null,null,{"$f":"IF(TRIM(DP39)=\"\", \"\", IF(VLOOKUP(DP39,'Footnotes list'!$D$9:$E$58,2,FALSE)=0,\"\",VLOOKUP(DP39,'Footnotes list'!$D$9:$E$58,2,FALSE) ) )","v":""},null,null,null,null,{"$f":"IF(TRIM(DU39)=\"\", \"\", IF(VLOOKUP(DU39,'Footnotes list'!$D$9:$E$58,2,FALSE)=0,\"\",VLOOKUP(DU39,'Footnotes list'!$D$9:$E$58,2,FALSE) ) )","v":""},null,null,null,null,{"$f":"IF(TRIM(DZ39)=\"\", \"\", IF(VLOOKUP(DZ39,'Footnotes list'!$D$9:$E$58,2,FALSE)=0,\"\",VLOOKUP(DZ39,'Footnotes list'!$D$9:$E$58,2,FALSE) ) )","v":""},null,null,null,null,{"$f":"IF(TRIM(EE39)=\"\", \"\", IF(VLOOKUP(EE39,'Footnotes list'!$D$9:$E$58,2,FALSE)=0,\"\",VLOOKUP(EE39,'Footnotes list'!$D$9:$E$58,2,FALSE) ) )","v":""},null,null,null,null,{"$f":"IF(TRIM(EJ39)=\"\", \"\", IF(VLOOKUP(EJ39,'Footnotes list'!$D$9:$E$58,2,FALSE)=0,\"\",VLOOKUP(EJ39,'Footnotes list'!$D$9:$E$58,2,FALSE) ) )","v":""},null,null,null,null,{"$f":"IF(TRIM(EO39)=\"\", \"\", IF(VLOOKUP(EO39,'Footnotes list'!$D$9:$E$58,2,FALSE)=0,\"\",VLOOKUP(EO39,'Footnotes list'!$D$9:$E$58,2,FALSE) ) )","v":""},null,null,null,null,{"$f":"IF(TRIM(ET39)=\"\", \"\", IF(VLOOKUP(ET39,'Footnotes list'!$D$9:$E$58,2,FALSE)=0,\"\",VLOOKUP(ET39,'Footnotes list'!$D$9:$E$58,2,FALSE) ) )","v":""},null,null,null,null,{"$f":"IF(TRIM(EY39)=\"\", \"\", IF(VLOOKUP(EY39,'Footnotes list'!$D$9:$E$58,2,FALSE)=0,\"\",VLOOKUP(EY39,'Footnotes list'!$D$9:$E$58,2,FALSE) ) )","v":""}]
[null,null,"C10-C12","MKT","market activities, including:",null,null,null,null,null,{"$f":"IF(TRIM(J40)=\"\", \"\", IF(VLOOKUP(J40,'Footnotes list'!$D$9:$E$58,2,FALSE)=0,\"\",VLOOKUP(J40,'Footnotes list'!$D$9:$E$58,2,FALSE) ) )","v":""},null,null,null,null,{"$f":"IF(TRIM(O40)=\"\", \"\", IF(VLOOKUP(O40,'Footnotes list'!$D$9:$E$58,2,FALSE)=0,\"\",VLOOKUP(O40,'Footnotes list'!$D$9:$E$58,2,FALSE) ) )","v":""},null,null,null,null,{"$f":"IF(TRIM(T40)=\"\", \"\", IF(VLOOKUP(T40,'Footnotes list'!$D$9:$E$58,2,FALSE)=0,\"\",VLOOKUP(T40,'Footnotes list'!$D$9:$E$58,2,FALSE) ) )","v":""},null,null,null,null,{"$f":"IF(TRIM(Y40)=\"\", \"\", IF(VLOOKUP(Y40,'Footnotes list'!$D$9:$E$58,2,FALSE)=0,\"\",VLOOKUP(Y40,'Footnotes list'!$D$9:$E$58,2,FALSE) ) )","v":""},null,null,null,null,{"$f":"IF(TRIM(AD40)=\"\", \"\", IF(VLOOKUP(AD40,'Footnotes list'!$D$9:$E$58,2,FALSE)=0,\"\",VLOOKUP(AD40,'Footnotes list'!$D$9:$E$58,2,FALSE) ) )","v":""},null,null,null,null,{"$f":"IF(TRIM(AI40)=\"\", \"\", IF(VLOOKUP(AI40,'Footnotes list'!$D$9:$E$58,2,FALSE)=0,\"\",VLOOKUP(AI40,'Footnotes list'!$D$9:$E$58,2,FALSE) ) )","v":""},null,null,null,null,{"$f":"IF(TRIM(AN40)=\"\", \"\", IF(VLOOKUP(AN40,'Footnotes list'!$D$9:$E$58,2,FALSE)=0,\"\",VLOOKUP(AN40,'Footnotes list'!$D$9:$E$58,2,FALSE) ) )","v":""},null,null,null,null,{"$f":"IF(TRIM(AS40)=\"\", \"\", IF(VLOOKUP(AS40,'Footnotes list'!$D$9:$E$58,2,FALSE)=0,\"\",VLOOKUP(AS40,'Footnotes list'!$D$9:$E$58,2,FALSE) ) )","v":""},null,null,null,null,{"$f":"IF(TRIM(AX40)=\"\", \"\", IF(VLOOKUP(AX40,'Footnotes list'!$D$9:$E$58,2,FALSE)=0,\"\",VLOOKUP(AX40,'Footnotes list'!$D$9:$E$58,2,FALSE) ) )","v":""},null,null,null,null,{"$f":"IF(TRIM(BC40)=\"\", \"\", IF(VLOOKUP(BC40,'Footnotes list'!$D$9:$E$58,2,FALSE)=0,\"\",VLOOKUP(BC40,'Footnotes list'!$D$9:$E$58,2,FALSE) ) )","v":""},null,null,null,null,{"$f":"IF(TRIM(BH40)=\"\", \"\", IF(VLOOKUP(BH40,'Footnotes list'!$D$9:$E$58,2,FALSE)=0,\"\",VLOOKUP(BH40,'Footnotes list'!$D$9:$E$58,2,FALSE) ) )","v":""},null,null,null,null,{"$f":"IF(TRIM(BM40)=\"\", \"\", IF(VLOOKUP(BM40,'Footnotes list'!$D$9:$E$58,2,FALSE)=0,\"\",VLOOKUP(BM40,'Footnotes list'!$D$9:$E$58,2,FALSE) ) )","v":""},null,null,null,null,{"$f":"IF(TRIM(BR40)=\"\", \"\", IF(VLOOKUP(BR40,'Footnotes list'!$D$9:$E$58,2,FALSE)=0,\"\",VLOOKUP(BR40,'Footnotes list'!$D$9:$E$58,2,FALSE) ) )","v":""},null,null,null,null,{"$f":"IF(TRIM(BW40)=\"\", \"\", IF(VLOOKUP(BW40,'Footnotes list'!$D$9:$E$58,2,FALSE)=0,\"\",VLOOKUP(BW40,'Footnotes list'!$D$9:$E$58,2,FALSE) ) )","v":""},null,null,null,null,{"$f":"IF(TRIM(CB40)=\"\", \"\", IF(VLOOKUP(CB40,'Footnotes list'!$D$9:$E$58,2,FALSE)=0,\"\",VLOOKUP(CB40,'Footnotes list'!$D$9:$E$58,2,FALSE) ) )","v":""},null,null,null,null,{"$f":"IF(TRIM(CG40)=\"\", \"\", IF(VLOOKUP(CG40,'Footnotes list'!$D$9:$E$58,2,FALSE)=0,\"\",VLOOKUP(CG40,'Footnotes list'!$D$9:$E$58,2,FALSE) ) )","v":""},null,null,null,null,{"$f":"IF(TRIM(CL40)=\"\", \"\", IF(VLOOKUP(CL40,'Footnotes list'!$D$9:$E$58,2,FALSE)=0,\"\",VLOOKUP(CL40,'Footnotes list'!$D$9:$E$58,2,FALSE) ) )","v":""},null,null,null,null,{"$f":"IF(TRIM(CQ40)=\"\", \"\", IF(VLOOKUP(CQ40,'Footnotes list'!$D$9:$E$58,2,FALSE)=0,\"\",VLOOKUP(CQ40,'Footnotes list'!$D$9:$E$58,2,FALSE) ) )","v":""},null,null,null,null,{"$f":"IF(TRIM(CV40)=\"\", \"\", IF(VLOOKUP(CV40,'Footnotes list'!$D$9:$E$58,2,FALSE)=0,\"\",VLOOKUP(CV40,'Footnotes list'!$D$9:$E$58,2,FALSE) ) )","v":""},null,null,null,null,{"$f":"IF(TRIM(DA40)=\"\", \"\", IF(VLOOKUP(DA40,'Footnotes list'!$D$9:$E$58,2,FALSE)=0,\"\",VLOOKUP(DA40,'Footnotes list'!$D$9:$E$58,2,FALSE) ) )","v":""},null,null,null,null,{"$f":"IF(TRIM(DF40)=\"\", \"\", IF(VLOOKUP(DF40,'Footnotes list'!$D$9:$E$58,2,FALSE)=0,\"\",VLOOKUP(DF40,'Footnotes list'!$D$9:$E$58,2,FALSE) ) )","v":""},null,null,null,null,{"$f":"IF(TRIM(DK40)=\"\", \"\", IF(VLOOKUP(DK40,'Footnotes list'!$D$9:$E$58,2,FALSE)=0,\"\",VLOOKUP(DK40,'Footnotes list'!$D$9:$E$58,2,FALSE) ) )","v":""},null,null,null,null,{"$f":"IF(TRIM(DP40)=\"\", \"\", IF(VLOOKUP(DP40,'Footnotes list'!$D$9:$E$58,2,FALSE)=0,\"\",VLOOKUP(DP40,'Footnotes list'!$D$9:$E$58,2,FALSE) ) )","v":""},null,null,null,null,{"$f":"IF(TRIM(DU40)=\"\", \"\", IF(VLOOKUP(DU40,'Footnotes list'!$D$9:$E$58,2,FALSE)=0,\"\",VLOOKUP(DU40,'Footnotes list'!$D$9:$E$58,2,FALSE) ) )","v":""},null,null,null,null,{"$f":"IF(TRIM(DZ40)=\"\", \"\", IF(VLOOKUP(DZ40,'Footnotes list'!$D$9:$E$58,2,FALSE)=0,\"\",VLOOKUP(DZ40,'Footnotes list'!$D$9:$E$58,2,FALSE) ) )","v":""},null,null,null,null,{"$f":"IF(TRIM(EE40)=\"\", \"\", IF(VLOOKUP(EE40,'Footnotes list'!$D$9:$E$58,2,FALSE)=0,\"\",VLOOKUP(EE40,'Footnotes list'!$D$9:$E$58,2,FALSE) ) )","v":""},null,null,null,null,{"$f":"IF(TRIM(EJ40)=\"\", \"\", IF(VLOOKUP(EJ40,'Footnotes list'!$D$9:$E$58,2,FALSE)=0,\"\",VLOOKUP(EJ40,'Footnotes list'!$D$9:$E$58,2,FALSE) ) )","v":""},null,null,null,null,{"$f":"IF(TRIM(EO40)=\"\", \"\", IF(VLOOKUP(EO40,'Footnotes list'!$D$9:$E$58,2,FALSE)=0,\"\",VLOOKUP(EO40,'Footnotes list'!$D$9:$E$58,2,FALSE) ) )","v":""},null,null,null,null,{"$f":"IF(TRIM(ET40)=\"\", \"\", IF(VLOOKUP(ET40,'Footnotes list'!$D$9:$E$58,2,FALSE)=0,\"\",VLOOKUP(ET40,'Footnotes list'!$D$9:$E$58,2,FALSE) ) )","v":""},null,null,null,null,{"$f":"IF(TRIM(EY40)=\"\", \"\", IF(VLOOKUP(EY40,'Footnotes list'!$D$9:$E$58,2,FALSE)=0,\"\",VLOOKUP(EY40,'Footnotes list'!$D$9:$E$58,2,FALSE) ) )","v":""}]
[null,null,"C10-C12","ES_CS","environmental specific services",null,null,null,null,null,{"$f":"IF(TRIM(J41)=\"\", \"\", IF(VLOOKUP(J41,'Footnotes list'!$D$9:$E$58,2,FALSE)=0,\"\",VLOOKUP(J41,'Footnotes list'!$D$9:$E$58,2,FALSE) ) )","v":""},null,null,null,null,{"$f":"IF(TRIM(O41)=\"\", \"\", IF(VLOOKUP(O41,'Footnotes list'!$D$9:$E$58,2,FALSE)=0,\"\",VLOOKUP(O41,'Footnotes list'!$D$9:$E$58,2,FALSE) ) )","v":""},null,null,null,null,{"$f":"IF(TRIM(T41)=\"\", \"\", IF(VLOOKUP(T41,'Footnotes list'!$D$9:$E$58,2,FALSE)=0,\"\",VLOOKUP(T41,'Footnotes list'!$D$9:$E$58,2,FALSE) ) )","v":""},null,null,null,null,{"$f":"IF(TRIM(Y41)=\"\", \"\", IF(VLOOKUP(Y41,'Footnotes list'!$D$9:$E$58,2,FALSE)=0,\"\",VLOOKUP(Y41,'Footnotes list'!$D$9:$E$58,2,FALSE) ) )","v":""},null,null,null,null,{"$f":"IF(TRIM(AD41)=\"\", \"\", IF(VLOOKUP(AD41,'Footnotes list'!$D$9:$E$58,2,FALSE)=0,\"\",VLOOKUP(AD41,'Footnotes list'!$D$9:$E$58,2,FALSE) ) )","v":""},null,null,null,null,{"$f":"IF(TRIM(AI41)=\"\", \"\", IF(VLOOKUP(AI41,'Footnotes list'!$D$9:$E$58,2,FALSE)=0,\"\",VLOOKUP(AI41,'Footnotes list'!$D$9:$E$58,2,FALSE) ) )","v":""},null,null,null,null,{"$f":"IF(TRIM(AN41)=\"\", \"\", IF(VLOOKUP(AN41,'Footnotes list'!$D$9:$E$58,2,FALSE)=0,\"\",VLOOKUP(AN41,'Footnotes list'!$D$9:$E$58,2,FALSE) ) )","v":""},null,null,null,null,{"$f":"IF(TRIM(AS41)=\"\", \"\", IF(VLOOKUP(AS41,'Footnotes list'!$D$9:$E$58,2,FALSE)=0,\"\",VLOOKUP(AS41,'Footnotes list'!$D$9:$E$58,2,FALSE) ) )","v":""},null,null,null,null,{"$f":"IF(TRIM(AX41)=\"\", \"\", IF(VLOOKUP(AX41,'Footnotes list'!$D$9:$E$58,2,FALSE)=0,\"\",VLOOKUP(AX41,'Footnotes list'!$D$9:$E$58,2,FALSE) ) )","v":""},null,null,null,null,{"$f":"IF(TRIM(BC41)=\"\", \"\", IF(VLOOKUP(BC41,'Footnotes list'!$D$9:$E$58,2,FALSE)=0,\"\",VLOOKUP(BC41,'Footnotes list'!$D$9:$E$58,2,FALSE) ) )","v":""},null,null,null,null,{"$f":"IF(TRIM(BH41)=\"\", \"\", IF(VLOOKUP(BH41,'Footnotes list'!$D$9:$E$58,2,FALSE)=0,\"\",VLOOKUP(BH41,'Footnotes list'!$D$9:$E$58,2,FALSE) ) )","v":""},null,null,null,null,{"$f":"IF(TRIM(BM41)=\"\", \"\", IF(VLOOKUP(BM41,'Footnotes list'!$D$9:$E$58,2,FALSE)=0,\"\",VLOOKUP(BM41,'Footnotes list'!$D$9:$E$58,2,FALSE) ) )","v":""},null,null,null,null,{"$f":"IF(TRIM(BR41)=\"\", \"\", IF(VLOOKUP(BR41,'Footnotes list'!$D$9:$E$58,2,FALSE)=0,\"\",VLOOKUP(BR41,'Footnotes list'!$D$9:$E$58,2,FALSE) ) )","v":""},null,null,null,null,{"$f":"IF(TRIM(BW41)=\"\", \"\", IF(VLOOKUP(BW41,'Footnotes list'!$D$9:$E$58,2,FALSE)=0,\"\",VLOOKUP(BW41,'Footnotes list'!$D$9:$E$58,2,FALSE) ) )","v":""},null,null,null,null,{"$f":"IF(TRIM(CB41)=\"\", \"\", IF(VLOOKUP(CB41,'Footnotes list'!$D$9:$E$58,2,FALSE)=0,\"\",VLOOKUP(CB41,'Footnotes list'!$D$9:$E$58,2,FALSE) ) )","v":""},null,null,null,null,{"$f":"IF(TRIM(CG41)=\"\", \"\", IF(VLOOKUP(CG41,'Footnotes list'!$D$9:$E$58,2,FALSE)=0,\"\",VLOOKUP(CG41,'Footnotes list'!$D$9:$E$58,2,FALSE) ) )","v":""},null,null,null,null,{"$f":"IF(TRIM(CL41)=\"\", \"\", IF(VLOOKUP(CL41,'Footnotes list'!$D$9:$E$58,2,FALSE)=0,\"\",VLOOKUP(CL41,'Footnotes list'!$D$9:$E$58,2,FALSE) ) )","v":""},null,null,null,null,{"$f":"IF(TRIM(CQ41)=\"\", \"\", IF(VLOOKUP(CQ41,'Footnotes list'!$D$9:$E$58,2,FALSE)=0,\"\",VLOOKUP(CQ41,'Footnotes list'!$D$9:$E$58,2,FALSE) ) )","v":""},null,null,null,null,{"$f":"IF(TRIM(CV41)=\"\", \"\", IF(VLOOKUP(CV41,'Footnotes list'!$D$9:$E$58,2,FALSE)=0,\"\",VLOOKUP(CV41,'Footnotes list'!$D$9:$E$58,2,FALSE) ) )","v":""},null,null,null,null,{"$f":"IF(TRIM(DA41)=\"\", \"\", IF(VLOOKUP(DA41,'Footnotes list'!$D$9:$E$58,2,FALSE)=0,\"\",VLOOKUP(DA41,'Footnotes list'!$D$9:$E$58,2,FALSE) ) )","v":""},null,null,null,null,{"$f":"IF(TRIM(DF41)=\"\", \"\", IF(VLOOKUP(DF41,'Footnotes list'!$D$9:$E$58,2,FALSE)=0,\"\",VLOOKUP(DF41,'Footnotes list'!$D$9:$E$58,2,FALSE) ) )","v":""},null,null,null,null,{"$f":"IF(TRIM(DK41)=\"\", \"\", IF(VLOOKUP(DK41,'Footnotes list'!$D$9:$E$58,2,FALSE)=0,\"\",VLOOKUP(DK41,'Footnotes list'!$D$9:$E$58,2,FALSE) ) )","v":""},null,null,null,null,{"$f":"IF(TRIM(DP41)=\"\", \"\", IF(VLOOKUP(DP41,'Footnotes list'!$D$9:$E$58,2,FALSE)=0,\"\",VLOOKUP(DP41,'Footnotes list'!$D$9:$E$58,2,FALSE) ) )","v":""},null,null,null,null,{"$f":"IF(TRIM(DU41)=\"\", \"\", IF(VLOOKUP(DU41,'Footnotes list'!$D$9:$E$58,2,FALSE)=0,\"\",VLOOKUP(DU41,'Footnotes list'!$D$9:$E$58,2,FALSE) ) )","v":""},null,null,null,null,{"$f":"IF(TRIM(DZ41)=\"\", \"\", IF(VLOOKUP(DZ41,'Footnotes list'!$D$9:$E$58,2,FALSE)=0,\"\",VLOOKUP(DZ41,'Footnotes list'!$D$9:$E$58,2,FALSE) ) )","v":""},null,null,null,null,{"$f":"IF(TRIM(EE41)=\"\", \"\", IF(VLOOKUP(EE41,'Footnotes list'!$D$9:$E$58,2,FALSE)=0,\"\",VLOOKUP(EE41,'Footnotes list'!$D$9:$E$58,2,FALSE) ) )","v":""},null,null,null,null,{"$f":"IF(TRIM(EJ41)=\"\", \"\", IF(VLOOKUP(EJ41,'Footnotes list'!$D$9:$E$58,2,FALSE)=0,\"\",VLOOKUP(EJ41,'Footnotes list'!$D$9:$E$58,2,FALSE) ) )","v":""},null,null,null,null,{"$f":"IF(TRIM(EO41)=\"\", \"\", IF(VLOOKUP(EO41,'Footnotes list'!$D$9:$E$58,2,FALSE)=0,\"\",VLOOKUP(EO41,'Footnotes list'!$D$9:$E$58,2,FALSE) ) )","v":""},null,null,null,null,{"$f":"IF(TRIM(ET41)=\"\", \"\", IF(VLOOKUP(ET41,'Footnotes list'!$D$9:$E$58,2,FALSE)=0,\"\",VLOOKUP(ET41,'Footnotes list'!$D$9:$E$58,2,FALSE) ) )","v":""},null,null,null,null,{"$f":"IF(TRIM(EY41)=\"\", \"\", IF(VLOOKUP(EY41,'Footnotes list'!$D$9:$E$58,2,FALSE)=0,\"\",VLOOKUP(EY41,'Footnotes list'!$D$9:$E$58,2,FALSE) ) )","v":""}]
[null,null,"C10-C12","C_REP","cleaner and resource efficient products",null,null,null,null,null,{"$f":"IF(TRIM(J42)=\"\", \"\", IF(VLOOKUP(J42,'Footnotes list'!$D$9:$E$58,2,FALSE)=0,\"\",VLOOKUP(J42,'Footnotes list'!$D$9:$E$58,2,FALSE) ) )","v":""},null,null,null,null,{"$f":"IF(TRIM(O42)=\"\", \"\", IF(VLOOKUP(O42,'Footnotes list'!$D$9:$E$58,2,FALSE)=0,\"\",VLOOKUP(O42,'Footnotes list'!$D$9:$E$58,2,FALSE) ) )","v":""},null,null,null,null,{"$f":"IF(TRIM(T42)=\"\", \"\", IF(VLOOKUP(T42,'Footnotes list'!$D$9:$E$58,2,FALSE)=0,\"\",VLOOKUP(T42,'Footnotes list'!$D$9:$E$58,2,FALSE) ) )","v":""},null,null,null,null,{"$f":"IF(TRIM(Y42)=\"\", \"\", IF(VLOOKUP(Y42,'Footnotes list'!$D$9:$E$58,2,FALSE)=0,\"\",VLOOKUP(Y42,'Footnotes list'!$D$9:$E$58,2,FALSE) ) )","v":""},null,null,null,null,{"$f":"IF(TRIM(AD42)=\"\", \"\", IF(VLOOKUP(AD42,'Footnotes list'!$D$9:$E$58,2,FALSE)=0,\"\",VLOOKUP(AD42,'Footnotes list'!$D$9:$E$58,2,FALSE) ) )","v":""},null,null,null,null,{"$f":"IF(TRIM(AI42)=\"\", \"\", IF(VLOOKUP(AI42,'Footnotes list'!$D$9:$E$58,2,FALSE)=0,\"\",VLOOKUP(AI42,'Footnotes list'!$D$9:$E$58,2,FALSE) ) )","v":""},null,null,null,null,{"$f":"IF(TRIM(AN42)=\"\", \"\", IF(VLOOKUP(AN42,'Footnotes list'!$D$9:$E$58,2,FALSE)=0,\"\",VLOOKUP(AN42,'Footnotes list'!$D$9:$E$58,2,FALSE) ) )","v":""},null,null,null,null,{"$f":"IF(TRIM(AS42)=\"\", \"\", IF(VLOOKUP(AS42,'Footnotes list'!$D$9:$E$58,2,FALSE)=0,\"\",VLOOKUP(AS42,'Footnotes list'!$D$9:$E$58,2,FALSE) ) )","v":""},null,null,null,null,{"$f":"IF(TRIM(AX42)=\"\", \"\", IF(VLOOKUP(AX42,'Footnotes list'!$D$9:$E$58,2,FALSE)=0,\"\",VLOOKUP(AX42,'Footnotes list'!$D$9:$E$58,2,FALSE) ) )","v":""},null,null,null,null,{"$f":"IF(TRIM(BC42)=\"\", \"\", IF(VLOOKUP(BC42,'Footnotes list'!$D$9:$E$58,2,FALSE)=0,\"\",VLOOKUP(BC42,'Footnotes list'!$D$9:$E$58,2,FALSE) ) )","v":""},null,null,null,null,{"$f":"IF(TRIM(BH42)=\"\", \"\", IF(VLOOKUP(BH42,'Footnotes list'!$D$9:$E$58,2,FALSE)=0,\"\",VLOOKUP(BH42,'Footnotes list'!$D$9:$E$58,2,FALSE) ) )","v":""},null,null,null,null,{"$f":"IF(TRIM(BM42)=\"\", \"\", IF(VLOOKUP(BM42,'Footnotes list'!$D$9:$E$58,2,FALSE)=0,\"\",VLOOKUP(BM42,'Footnotes list'!$D$9:$E$58,2,FALSE) ) )","v":""},null,null,null,null,{"$f":"IF(TRIM(BR42)=\"\", \"\", IF(VLOOKUP(BR42,'Footnotes list'!$D$9:$E$58,2,FALSE)=0,\"\",VLOOKUP(BR42,'Footnotes list'!$D$9:$E$58,2,FALSE) ) )","v":""},null,null,null,null,{"$f":"IF(TRIM(BW42)=\"\", \"\", IF(VLOOKUP(BW42,'Footnotes list'!$D$9:$E$58,2,FALSE)=0,\"\",VLOOKUP(BW42,'Footnotes list'!$D$9:$E$58,2,FALSE) ) )","v":""},null,null,null,null,{"$f":"IF(TRIM(CB42)=\"\", \"\", IF(VLOOKUP(CB42,'Footnotes list'!$D$9:$E$58,2,FALSE)=0,\"\",VLOOKUP(CB42,'Footnotes list'!$D$9:$E$58,2,FALSE) ) )","v":""},null,null,null,null,{"$f":"IF(TRIM(CG42)=\"\", \"\", IF(VLOOKUP(CG42,'Footnotes list'!$D$9:$E$58,2,FALSE)=0,\"\",VLOOKUP(CG42,'Footnotes list'!$D$9:$E$58,2,FALSE) ) )","v":""},null,null,null,null,{"$f":"IF(TRIM(CL42)=\"\", \"\", IF(VLOOKUP(CL42,'Footnotes list'!$D$9:$E$58,2,FALSE)=0,\"\",VLOOKUP(CL42,'Footnotes list'!$D$9:$E$58,2,FALSE) ) )","v":""},null,null,null,null,{"$f":"IF(TRIM(CQ42)=\"\", \"\", IF(VLOOKUP(CQ42,'Footnotes list'!$D$9:$E$58,2,FALSE)=0,\"\",VLOOKUP(CQ42,'Footnotes list'!$D$9:$E$58,2,FALSE) ) )","v":""},null,null,null,null,{"$f":"IF(TRIM(CV42)=\"\", \"\", IF(VLOOKUP(CV42,'Footnotes list'!$D$9:$E$58,2,FALSE)=0,\"\",VLOOKUP(CV42,'Footnotes list'!$D$9:$E$58,2,FALSE) ) )","v":""},null,null,null,null,{"$f":"IF(TRIM(DA42)=\"\", \"\", IF(VLOOKUP(DA42,'Footnotes list'!$D$9:$E$58,2,FALSE)=0,\"\",VLOOKUP(DA42,'Footnotes list'!$D$9:$E$58,2,FALSE) ) )","v":""},null,null,null,null,{"$f":"IF(TRIM(DF42)=\"\", \"\", IF(VLOOKUP(DF42,'Footnotes list'!$D$9:$E$58,2,FALSE)=0,\"\",VLOOKUP(DF42,'Footnotes list'!$D$9:$E$58,2,FALSE) ) )","v":""},null,null,null,null,{"$f":"IF(TRIM(DK42)=\"\", \"\", IF(VLOOKUP(DK42,'Footnotes list'!$D$9:$E$58,2,FALSE)=0,\"\",VLOOKUP(DK42,'Footnotes list'!$D$9:$E$58,2,FALSE) ) )","v":""},null,null,null,null,{"$f":"IF(TRIM(DP42)=\"\", \"\", IF(VLOOKUP(DP42,'Footnotes list'!$D$9:$E$58,2,FALSE)=0,\"\",VLOOKUP(DP42,'Footnotes list'!$D$9:$E$58,2,FALSE) ) )","v":""},null,null,null,null,{"$f":"IF(TRIM(DU42)=\"\", \"\", IF(VLOOKUP(DU42,'Footnotes list'!$D$9:$E$58,2,FALSE)=0,\"\",VLOOKUP(DU42,'Footnotes list'!$D$9:$E$58,2,FALSE) ) )","v":""},null,null,null,null,{"$f":"IF(TRIM(DZ42)=\"\", \"\", IF(VLOOKUP(DZ42,'Footnotes list'!$D$9:$E$58,2,FALSE)=0,\"\",VLOOKUP(DZ42,'Footnotes list'!$D$9:$E$58,2,FALSE) ) )","v":""},null,null,null,null,{"$f":"IF(TRIM(EE42)=\"\", \"\", IF(VLOOKUP(EE42,'Footnotes list'!$D$9:$E$58,2,FALSE)=0,\"\",VLOOKUP(EE42,'Footnotes list'!$D$9:$E$58,2,FALSE) ) )","v":""},null,null,null,null,{"$f":"IF(TRIM(EJ42)=\"\", \"\", IF(VLOOKUP(EJ42,'Footnotes list'!$D$9:$E$58,2,FALSE)=0,\"\",VLOOKUP(EJ42,'Footnotes list'!$D$9:$E$58,2,FALSE) ) )","v":""},null,null,null,null,{"$f":"IF(TRIM(EO42)=\"\", \"\", IF(VLOOKUP(EO42,'Footnotes list'!$D$9:$E$58,2,FALSE)=0,\"\",VLOOKUP(EO42,'Footnotes list'!$D$9:$E$58,2,FALSE) ) )","v":""},null,null,null,null,{"$f":"IF(TRIM(ET42)=\"\", \"\", IF(VLOOKUP(ET42,'Footnotes list'!$D$9:$E$58,2,FALSE)=0,\"\",VLOOKUP(ET42,'Footnotes list'!$D$9:$E$58,2,FALSE) ) )","v":""},null,null,null,null,{"$f":"IF(TRIM(EY42)=\"\", \"\", IF(VLOOKUP(EY42,'Footnotes list'!$D$9:$E$58,2,FALSE)=0,\"\",VLOOKUP(EY42,'Footnotes list'!$D$9:$E$58,2,FALSE) ) )","v":""}]
[null,null,"C13-C15","TOT_EGSS","Total C13 - C15 Manufacture of textiles, wearing apparel, leather and related products, of which:",null,null,null,null,null,{"$f":"IF(TRIM(J43)=\"\", \"\", IF(VLOOKUP(J43,'Footnotes list'!$D$9:$E$58,2,FALSE)=0,\"\",VLOOKUP(J43,'Footnotes list'!$D$9:$E$58,2,FALSE) ) )","v":""},null,null,null,null,{"$f":"IF(TRIM(O43)=\"\", \"\", IF(VLOOKUP(O43,'Footnotes list'!$D$9:$E$58,2,FALSE)=0,\"\",VLOOKUP(O43,'Footnotes list'!$D$9:$E$58,2,FALSE) ) )","v":""},null,null,null,null,{"$f":"IF(TRIM(T43)=\"\", \"\", IF(VLOOKUP(T43,'Footnotes list'!$D$9:$E$58,2,FALSE)=0,\"\",VLOOKUP(T43,'Footnotes list'!$D$9:$E$58,2,FALSE) ) )","v":""},null,null,null,null,{"$f":"IF(TRIM(Y43)=\"\", \"\", IF(VLOOKUP(Y43,'Footnotes list'!$D$9:$E$58,2,FALSE)=0,\"\",VLOOKUP(Y43,'Footnotes list'!$D$9:$E$58,2,FALSE) ) )","v":""},null,null,null,null,{"$f":"IF(TRIM(AD43)=\"\", \"\", IF(VLOOKUP(AD43,'Footnotes list'!$D$9:$E$58,2,FALSE)=0,\"\",VLOOKUP(AD43,'Footnotes list'!$D$9:$E$58,2,FALSE) ) )","v":""},null,null,null,null,{"$f":"IF(TRIM(AI43)=\"\", \"\", IF(VLOOKUP(AI43,'Footnotes list'!$D$9:$E$58,2,FALSE)=0,\"\",VLOOKUP(AI43,'Footnotes list'!$D$9:$E$58,2,FALSE) ) )","v":""},null,null,null,null,{"$f":"IF(TRIM(AN43)=\"\", \"\", IF(VLOOKUP(AN43,'Footnotes list'!$D$9:$E$58,2,FALSE)=0,\"\",VLOOKUP(AN43,'Footnotes list'!$D$9:$E$58,2,FALSE) ) )","v":""},null,null,null,null,{"$f":"IF(TRIM(AS43)=\"\", \"\", IF(VLOOKUP(AS43,'Footnotes list'!$D$9:$E$58,2,FALSE)=0,\"\",VLOOKUP(AS43,'Footnotes list'!$D$9:$E$58,2,FALSE) ) )","v":""},null,null,null,null,{"$f":"IF(TRIM(AX43)=\"\", \"\", IF(VLOOKUP(AX43,'Footnotes list'!$D$9:$E$58,2,FALSE)=0,\"\",VLOOKUP(AX43,'Footnotes list'!$D$9:$E$58,2,FALSE) ) )","v":""},null,null,null,null,{"$f":"IF(TRIM(BC43)=\"\", \"\", IF(VLOOKUP(BC43,'Footnotes list'!$D$9:$E$58,2,FALSE)=0,\"\",VLOOKUP(BC43,'Footnotes list'!$D$9:$E$58,2,FALSE) ) )","v":""},null,null,null,null,{"$f":"IF(TRIM(BH43)=\"\", \"\", IF(VLOOKUP(BH43,'Footnotes list'!$D$9:$E$58,2,FALSE)=0,\"\",VLOOKUP(BH43,'Footnotes list'!$D$9:$E$58,2,FALSE) ) )","v":""},null,null,null,null,{"$f":"IF(TRIM(BM43)=\"\", \"\", IF(VLOOKUP(BM43,'Footnotes list'!$D$9:$E$58,2,FALSE)=0,\"\",VLOOKUP(BM43,'Footnotes list'!$D$9:$E$58,2,FALSE) ) )","v":""},null,null,null,null,{"$f":"IF(TRIM(BR43)=\"\", \"\", IF(VLOOKUP(BR43,'Footnotes list'!$D$9:$E$58,2,FALSE)=0,\"\",VLOOKUP(BR43,'Footnotes list'!$D$9:$E$58,2,FALSE) ) )","v":""},null,null,null,null,{"$f":"IF(TRIM(BW43)=\"\", \"\", IF(VLOOKUP(BW43,'Footnotes list'!$D$9:$E$58,2,FALSE)=0,\"\",VLOOKUP(BW43,'Footnotes list'!$D$9:$E$58,2,FALSE) ) )","v":""},null,null,null,null,{"$f":"IF(TRIM(CB43)=\"\", \"\", IF(VLOOKUP(CB43,'Footnotes list'!$D$9:$E$58,2,FALSE)=0,\"\",VLOOKUP(CB43,'Footnotes list'!$D$9:$E$58,2,FALSE) ) )","v":""},null,null,null,null,{"$f":"IF(TRIM(CG43)=\"\", \"\", IF(VLOOKUP(CG43,'Footnotes list'!$D$9:$E$58,2,FALSE)=0,\"\",VLOOKUP(CG43,'Footnotes list'!$D$9:$E$58,2,FALSE) ) )","v":""},null,null,null,null,{"$f":"IF(TRIM(CL43)=\"\", \"\", IF(VLOOKUP(CL43,'Footnotes list'!$D$9:$E$58,2,FALSE)=0,\"\",VLOOKUP(CL43,'Footnotes list'!$D$9:$E$58,2,FALSE) ) )","v":""},null,null,null,null,{"$f":"IF(TRIM(CQ43)=\"\", \"\", IF(VLOOKUP(CQ43,'Footnotes list'!$D$9:$E$58,2,FALSE)=0,\"\",VLOOKUP(CQ43,'Footnotes list'!$D$9:$E$58,2,FALSE) ) )","v":""},null,null,null,null,{"$f":"IF(TRIM(CV43)=\"\", \"\", IF(VLOOKUP(CV43,'Footnotes list'!$D$9:$E$58,2,FALSE)=0,\"\",VLOOKUP(CV43,'Footnotes list'!$D$9:$E$58,2,FALSE) ) )","v":""},null,null,null,null,{"$f":"IF(TRIM(DA43)=\"\", \"\", IF(VLOOKUP(DA43,'Footnotes list'!$D$9:$E$58,2,FALSE)=0,\"\",VLOOKUP(DA43,'Footnotes list'!$D$9:$E$58,2,FALSE) ) )","v":""},null,null,null,null,{"$f":"IF(TRIM(DF43)=\"\", \"\", IF(VLOOKUP(DF43,'Footnotes list'!$D$9:$E$58,2,FALSE)=0,\"\",VLOOKUP(DF43,'Footnotes list'!$D$9:$E$58,2,FALSE) ) )","v":""},null,null,null,null,{"$f":"IF(TRIM(DK43)=\"\", \"\", IF(VLOOKUP(DK43,'Footnotes list'!$D$9:$E$58,2,FALSE)=0,\"\",VLOOKUP(DK43,'Footnotes list'!$D$9:$E$58,2,FALSE) ) )","v":""},null,null,null,null,{"$f":"IF(TRIM(DP43)=\"\", \"\", IF(VLOOKUP(DP43,'Footnotes list'!$D$9:$E$58,2,FALSE)=0,\"\",VLOOKUP(DP43,'Footnotes list'!$D$9:$E$58,2,FALSE) ) )","v":""},null,null,null,null,{"$f":"IF(TRIM(DU43)=\"\", \"\", IF(VLOOKUP(DU43,'Footnotes list'!$D$9:$E$58,2,FALSE)=0,\"\",VLOOKUP(DU43,'Footnotes list'!$D$9:$E$58,2,FALSE) ) )","v":""},null,null,null,null,{"$f":"IF(TRIM(DZ43)=\"\", \"\", IF(VLOOKUP(DZ43,'Footnotes list'!$D$9:$E$58,2,FALSE)=0,\"\",VLOOKUP(DZ43,'Footnotes list'!$D$9:$E$58,2,FALSE) ) )","v":""},null,null,null,null,{"$f":"IF(TRIM(EE43)=\"\", \"\", IF(VLOOKUP(EE43,'Footnotes list'!$D$9:$E$58,2,FALSE)=0,\"\",VLOOKUP(EE43,'Footnotes list'!$D$9:$E$58,2,FALSE) ) )","v":""},null,null,null,null,{"$f":"IF(TRIM(EJ43)=\"\", \"\", IF(VLOOKUP(EJ43,'Footnotes list'!$D$9:$E$58,2,FALSE)=0,\"\",VLOOKUP(EJ43,'Footnotes list'!$D$9:$E$58,2,FALSE) ) )","v":""},null,null,null,null,{"$f":"IF(TRIM(EO43)=\"\", \"\", IF(VLOOKUP(EO43,'Footnotes list'!$D$9:$E$58,2,FALSE)=0,\"\",VLOOKUP(EO43,'Footnotes list'!$D$9:$E$58,2,FALSE) ) )","v":""},null,null,null,null,{"$f":"IF(TRIM(ET43)=\"\", \"\", IF(VLOOKUP(ET43,'Footnotes list'!$D$9:$E$58,2,FALSE)=0,\"\",VLOOKUP(ET43,'Footnotes list'!$D$9:$E$58,2,FALSE) ) )","v":""},null,null,null,null,{"$f":"IF(TRIM(EY43)=\"\", \"\", IF(VLOOKUP(EY43,'Footnotes list'!$D$9:$E$58,2,FALSE)=0,\"\",VLOOKUP(EY43,'Footnotes list'!$D$9:$E$58,2,FALSE) ) )","v":""}]
[null,null,"C13-C15","ANC","ancillary activities",null,null,null,null,null,{"$f":"IF(TRIM(J44)=\"\", \"\", IF(VLOOKUP(J44,'Footnotes list'!$D$9:$E$58,2,FALSE)=0,\"\",VLOOKUP(J44,'Footnotes list'!$D$9:$E$58,2,FALSE) ) )","v":""},null,null,null,null,{"$f":"IF(TRIM(O44)=\"\", \"\", IF(VLOOKUP(O44,'Footnotes list'!$D$9:$E$58,2,FALSE)=0,\"\",VLOOKUP(O44,'Footnotes list'!$D$9:$E$58,2,FALSE) ) )","v":""},null,null,null,null,{"$f":"IF(TRIM(T44)=\"\", \"\", IF(VLOOKUP(T44,'Footnotes list'!$D$9:$E$58,2,FALSE)=0,\"\",VLOOKUP(T44,'Footnotes list'!$D$9:$E$58,2,FALSE) ) )","v":""},null,null,null,null,{"$f":"IF(TRIM(Y44)=\"\", \"\", IF(VLOOKUP(Y44,'Footnotes list'!$D$9:$E$58,2,FALSE)=0,\"\",VLOOKUP(Y44,'Footnotes list'!$D$9:$E$58,2,FALSE) ) )","v":""},null,null,null,null,{"$f":"IF(TRIM(AD44)=\"\", \"\", IF(VLOOKUP(AD44,'Footnotes list'!$D$9:$E$58,2,FALSE)=0,\"\",VLOOKUP(AD44,'Footnotes list'!$D$9:$E$58,2,FALSE) ) )","v":""},null,null,null,null,{"$f":"IF(TRIM(AI44)=\"\", \"\", IF(VLOOKUP(AI44,'Footnotes list'!$D$9:$E$58,2,FALSE)=0,\"\",VLOOKUP(AI44,'Footnotes list'!$D$9:$E$58,2,FALSE) ) )","v":""},null,null,null,null,{"$f":"IF(TRIM(AN44)=\"\", \"\", IF(VLOOKUP(AN44,'Footnotes list'!$D$9:$E$58,2,FALSE)=0,\"\",VLOOKUP(AN44,'Footnotes list'!$D$9:$E$58,2,FALSE) ) )","v":""},null,null,null,null,{"$f":"IF(TRIM(AS44)=\"\", \"\", IF(VLOOKUP(AS44,'Footnotes list'!$D$9:$E$58,2,FALSE)=0,\"\",VLOOKUP(AS44,'Footnotes list'!$D$9:$E$58,2,FALSE) ) )","v":""},null,null,null,null,{"$f":"IF(TRIM(AX44)=\"\", \"\", IF(VLOOKUP(AX44,'Footnotes list'!$D$9:$E$58,2,FALSE)=0,\"\",VLOOKUP(AX44,'Footnotes list'!$D$9:$E$58,2,FALSE) ) )","v":""},null,null,null,null,{"$f":"IF(TRIM(BC44)=\"\", \"\", IF(VLOOKUP(BC44,'Footnotes list'!$D$9:$E$58,2,FALSE)=0,\"\",VLOOKUP(BC44,'Footnotes list'!$D$9:$E$58,2,FALSE) ) )","v":""},null,null,null,null,{"$f":"IF(TRIM(BH44)=\"\", \"\", IF(VLOOKUP(BH44,'Footnotes list'!$D$9:$E$58,2,FALSE)=0,\"\",VLOOKUP(BH44,'Footnotes list'!$D$9:$E$58,2,FALSE) ) )","v":""},null,null,null,null,{"$f":"IF(TRIM(BM44)=\"\", \"\", IF(VLOOKUP(BM44,'Footnotes list'!$D$9:$E$58,2,FALSE)=0,\"\",VLOOKUP(BM44,'Footnotes list'!$D$9:$E$58,2,FALSE) ) )","v":""},null,null,null,null,{"$f":"IF(TRIM(BR44)=\"\", \"\", IF(VLOOKUP(BR44,'Footnotes list'!$D$9:$E$58,2,FALSE)=0,\"\",VLOOKUP(BR44,'Footnotes list'!$D$9:$E$58,2,FALSE) ) )","v":""},null,null,null,null,{"$f":"IF(TRIM(BW44)=\"\", \"\", IF(VLOOKUP(BW44,'Footnotes list'!$D$9:$E$58,2,FALSE)=0,\"\",VLOOKUP(BW44,'Footnotes list'!$D$9:$E$58,2,FALSE) ) )","v":""},null,null,null,null,{"$f":"IF(TRIM(CB44)=\"\", \"\", IF(VLOOKUP(CB44,'Footnotes list'!$D$9:$E$58,2,FALSE)=0,\"\",VLOOKUP(CB44,'Footnotes list'!$D$9:$E$58,2,FALSE) ) )","v":""},null,null,null,null,{"$f":"IF(TRIM(CG44)=\"\", \"\", IF(VLOOKUP(CG44,'Footnotes list'!$D$9:$E$58,2,FALSE)=0,\"\",VLOOKUP(CG44,'Footnotes list'!$D$9:$E$58,2,FALSE) ) )","v":""},null,null,null,null,{"$f":"IF(TRIM(CL44)=\"\", \"\", IF(VLOOKUP(CL44,'Footnotes list'!$D$9:$E$58,2,FALSE)=0,\"\",VLOOKUP(CL44,'Footnotes list'!$D$9:$E$58,2,FALSE) ) )","v":""},null,null,null,null,{"$f":"IF(TRIM(CQ44)=\"\", \"\", IF(VLOOKUP(CQ44,'Footnotes list'!$D$9:$E$58,2,FALSE)=0,\"\",VLOOKUP(CQ44,'Footnotes list'!$D$9:$E$58,2,FALSE) ) )","v":""},null,null,null,null,{"$f":"IF(TRIM(CV44)=\"\", \"\", IF(VLOOKUP(CV44,'Footnotes list'!$D$9:$E$58,2,FALSE)=0,\"\",VLOOKUP(CV44,'Footnotes list'!$D$9:$E$58,2,FALSE) ) )","v":""},null,null,null,null,{"$f":"IF(TRIM(DA44)=\"\", \"\", IF(VLOOKUP(DA44,'Footnotes list'!$D$9:$E$58,2,FALSE)=0,\"\",VLOOKUP(DA44,'Footnotes list'!$D$9:$E$58,2,FALSE) ) )","v":""},null,null,null,null,{"$f":"IF(TRIM(DF44)=\"\", \"\", IF(VLOOKUP(DF44,'Footnotes list'!$D$9:$E$58,2,FALSE)=0,\"\",VLOOKUP(DF44,'Footnotes list'!$D$9:$E$58,2,FALSE) ) )","v":""},null,null,null,null,{"$f":"IF(TRIM(DK44)=\"\", \"\", IF(VLOOKUP(DK44,'Footnotes list'!$D$9:$E$58,2,FALSE)=0,\"\",VLOOKUP(DK44,'Footnotes list'!$D$9:$E$58,2,FALSE) ) )","v":""},null,null,null,null,{"$f":"IF(TRIM(DP44)=\"\", \"\", IF(VLOOKUP(DP44,'Footnotes list'!$D$9:$E$58,2,FALSE)=0,\"\",VLOOKUP(DP44,'Footnotes list'!$D$9:$E$58,2,FALSE) ) )","v":""},null,null,null,null,{"$f":"IF(TRIM(DU44)=\"\", \"\", IF(VLOOKUP(DU44,'Footnotes list'!$D$9:$E$58,2,FALSE)=0,\"\",VLOOKUP(DU44,'Footnotes list'!$D$9:$E$58,2,FALSE) ) )","v":""},null,null,null,null,{"$f":"IF(TRIM(DZ44)=\"\", \"\", IF(VLOOKUP(DZ44,'Footnotes list'!$D$9:$E$58,2,FALSE)=0,\"\",VLOOKUP(DZ44,'Footnotes list'!$D$9:$E$58,2,FALSE) ) )","v":""},null,null,null,null,{"$f":"IF(TRIM(EE44)=\"\", \"\", IF(VLOOKUP(EE44,'Footnotes list'!$D$9:$E$58,2,FALSE)=0,\"\",VLOOKUP(EE44,'Footnotes list'!$D$9:$E$58,2,FALSE) ) )","v":""},null,null,null,null,{"$f":"IF(TRIM(EJ44)=\"\", \"\", IF(VLOOKUP(EJ44,'Footnotes list'!$D$9:$E$58,2,FALSE)=0,\"\",VLOOKUP(EJ44,'Footnotes list'!$D$9:$E$58,2,FALSE) ) )","v":""},null,null,null,null,{"$f":"IF(TRIM(EO44)=\"\", \"\", IF(VLOOKUP(EO44,'Footnotes list'!$D$9:$E$58,2,FALSE)=0,\"\",VLOOKUP(EO44,'Footnotes list'!$D$9:$E$58,2,FALSE) ) )","v":""},null,null,null,null,{"$f":"IF(TRIM(ET44)=\"\", \"\", IF(VLOOKUP(ET44,'Footnotes list'!$D$9:$E$58,2,FALSE)=0,\"\",VLOOKUP(ET44,'Footnotes list'!$D$9:$E$58,2,FALSE) ) )","v":""},null,null,null,null,{"$f":"IF(TRIM(EY44)=\"\", \"\", IF(VLOOKUP(EY44,'Footnotes list'!$D$9:$E$58,2,FALSE)=0,\"\",VLOOKUP(EY44,'Footnotes list'!$D$9:$E$58,2,FALSE) ) )","v":""}]
[null,null,"C13-C15","NMKT","non-market activities",null,null,null,null,null,{"$f":"IF(TRIM(J45)=\"\", \"\", IF(VLOOKUP(J45,'Footnotes list'!$D$9:$E$58,2,FALSE)=0,\"\",VLOOKUP(J45,'Footnotes list'!$D$9:$E$58,2,FALSE) ) )","v":""},null,null,null,null,{"$f":"IF(TRIM(O45)=\"\", \"\", IF(VLOOKUP(O45,'Footnotes list'!$D$9:$E$58,2,FALSE)=0,\"\",VLOOKUP(O45,'Footnotes list'!$D$9:$E$58,2,FALSE) ) )","v":""},null,null,null,null,{"$f":"IF(TRIM(T45)=\"\", \"\", IF(VLOOKUP(T45,'Footnotes list'!$D$9:$E$58,2,FALSE)=0,\"\",VLOOKUP(T45,'Footnotes list'!$D$9:$E$58,2,FALSE) ) )","v":""},null,null,null,null,{"$f":"IF(TRIM(Y45)=\"\", \"\", IF(VLOOKUP(Y45,'Footnotes list'!$D$9:$E$58,2,FALSE)=0,\"\",VLOOKUP(Y45,'Footnotes list'!$D$9:$E$58,2,FALSE) ) )","v":""},null,null,null,null,{"$f":"IF(TRIM(AD45)=\"\", \"\", IF(VLOOKUP(AD45,'Footnotes list'!$D$9:$E$58,2,FALSE)=0,\"\",VLOOKUP(AD45,'Footnotes list'!$D$9:$E$58,2,FALSE) ) )","v":""},null,null,null,null,{"$f":"IF(TRIM(AI45)=\"\", \"\", IF(VLOOKUP(AI45,'Footnotes list'!$D$9:$E$58,2,FALSE)=0,\"\",VLOOKUP(AI45,'Footnotes list'!$D$9:$E$58,2,FALSE) ) )","v":""},null,null,null,null,{"$f":"IF(TRIM(AN45)=\"\", \"\", IF(VLOOKUP(AN45,'Footnotes list'!$D$9:$E$58,2,FALSE)=0,\"\",VLOOKUP(AN45,'Footnotes list'!$D$9:$E$58,2,FALSE) ) )","v":""},null,null,null,null,{"$f":"IF(TRIM(AS45)=\"\", \"\", IF(VLOOKUP(AS45,'Footnotes list'!$D$9:$E$58,2,FALSE)=0,\"\",VLOOKUP(AS45,'Footnotes list'!$D$9:$E$58,2,FALSE) ) )","v":""},null,null,null,null,{"$f":"IF(TRIM(AX45)=\"\", \"\", IF(VLOOKUP(AX45,'Footnotes list'!$D$9:$E$58,2,FALSE)=0,\"\",VLOOKUP(AX45,'Footnotes list'!$D$9:$E$58,2,FALSE) ) )","v":""},null,null,null,null,{"$f":"IF(TRIM(BC45)=\"\", \"\", IF(VLOOKUP(BC45,'Footnotes list'!$D$9:$E$58,2,FALSE)=0,\"\",VLOOKUP(BC45,'Footnotes list'!$D$9:$E$58,2,FALSE) ) )","v":""},null,null,null,null,{"$f":"IF(TRIM(BH45)=\"\", \"\", IF(VLOOKUP(BH45,'Footnotes list'!$D$9:$E$58,2,FALSE)=0,\"\",VLOOKUP(BH45,'Footnotes list'!$D$9:$E$58,2,FALSE) ) )","v":""},null,null,null,null,{"$f":"IF(TRIM(BM45)=\"\", \"\", IF(VLOOKUP(BM45,'Footnotes list'!$D$9:$E$58,2,FALSE)=0,\"\",VLOOKUP(BM45,'Footnotes list'!$D$9:$E$58,2,FALSE) ) )","v":""},null,null,null,null,{"$f":"IF(TRIM(BR45)=\"\", \"\", IF(VLOOKUP(BR45,'Footnotes list'!$D$9:$E$58,2,FALSE)=0,\"\",VLOOKUP(BR45,'Footnotes list'!$D$9:$E$58,2,FALSE) ) )","v":""},null,null,null,null,{"$f":"IF(TRIM(BW45)=\"\", \"\", IF(VLOOKUP(BW45,'Footnotes list'!$D$9:$E$58,2,FALSE)=0,\"\",VLOOKUP(BW45,'Footnotes list'!$D$9:$E$58,2,FALSE) ) )","v":""},null,null,null,null,{"$f":"IF(TRIM(CB45)=\"\", \"\", IF(VLOOKUP(CB45,'Footnotes list'!$D$9:$E$58,2,FALSE)=0,\"\",VLOOKUP(CB45,'Footnotes list'!$D$9:$E$58,2,FALSE) ) )","v":""},null,null,null,null,{"$f":"IF(TRIM(CG45)=\"\", \"\", IF(VLOOKUP(CG45,'Footnotes list'!$D$9:$E$58,2,FALSE)=0,\"\",VLOOKUP(CG45,'Footnotes list'!$D$9:$E$58,2,FALSE) ) )","v":""},null,null,null,null,{"$f":"IF(TRIM(CL45)=\"\", \"\", IF(VLOOKUP(CL45,'Footnotes list'!$D$9:$E$58,2,FALSE)=0,\"\",VLOOKUP(CL45,'Footnotes list'!$D$9:$E$58,2,FALSE) ) )","v":""},null,null,null,null,{"$f":"IF(TRIM(CQ45)=\"\", \"\", IF(VLOOKUP(CQ45,'Footnotes list'!$D$9:$E$58,2,FALSE)=0,\"\",VLOOKUP(CQ45,'Footnotes list'!$D$9:$E$58,2,FALSE) ) )","v":""},null,null,null,null,{"$f":"IF(TRIM(CV45)=\"\", \"\", IF(VLOOKUP(CV45,'Footnotes list'!$D$9:$E$58,2,FALSE)=0,\"\",VLOOKUP(CV45,'Footnotes list'!$D$9:$E$58,2,FALSE) ) )","v":""},null,null,null,null,{"$f":"IF(TRIM(DA45)=\"\", \"\", IF(VLOOKUP(DA45,'Footnotes list'!$D$9:$E$58,2,FALSE)=0,\"\",VLOOKUP(DA45,'Footnotes list'!$D$9:$E$58,2,FALSE) ) )","v":""},null,null,null,null,{"$f":"IF(TRIM(DF45)=\"\", \"\", IF(VLOOKUP(DF45,'Footnotes list'!$D$9:$E$58,2,FALSE)=0,\"\",VLOOKUP(DF45,'Footnotes list'!$D$9:$E$58,2,FALSE) ) )","v":""},null,null,null,null,{"$f":"IF(TRIM(DK45)=\"\", \"\", IF(VLOOKUP(DK45,'Footnotes list'!$D$9:$E$58,2,FALSE)=0,\"\",VLOOKUP(DK45,'Footnotes list'!$D$9:$E$58,2,FALSE) ) )","v":""},null,null,null,null,{"$f":"IF(TRIM(DP45)=\"\", \"\", IF(VLOOKUP(DP45,'Footnotes list'!$D$9:$E$58,2,FALSE)=0,\"\",VLOOKUP(DP45,'Footnotes list'!$D$9:$E$58,2,FALSE) ) )","v":""},null,null,null,null,{"$f":"IF(TRIM(DU45)=\"\", \"\", IF(VLOOKUP(DU45,'Footnotes list'!$D$9:$E$58,2,FALSE)=0,\"\",VLOOKUP(DU45,'Footnotes list'!$D$9:$E$58,2,FALSE) ) )","v":""},null,null,null,null,{"$f":"IF(TRIM(DZ45)=\"\", \"\", IF(VLOOKUP(DZ45,'Footnotes list'!$D$9:$E$58,2,FALSE)=0,\"\",VLOOKUP(DZ45,'Footnotes list'!$D$9:$E$58,2,FALSE) ) )","v":""},null,null,null,null,{"$f":"IF(TRIM(EE45)=\"\", \"\", IF(VLOOKUP(EE45,'Footnotes list'!$D$9:$E$58,2,FALSE)=0,\"\",VLOOKUP(EE45,'Footnotes list'!$D$9:$E$58,2,FALSE) ) )","v":""},null,null,null,null,{"$f":"IF(TRIM(EJ45)=\"\", \"\", IF(VLOOKUP(EJ45,'Footnotes list'!$D$9:$E$58,2,FALSE)=0,\"\",VLOOKUP(EJ45,'Footnotes list'!$D$9:$E$58,2,FALSE) ) )","v":""},null,null,null,null,{"$f":"IF(TRIM(EO45)=\"\", \"\", IF(VLOOKUP(EO45,'Footnotes list'!$D$9:$E$58,2,FALSE)=0,\"\",VLOOKUP(EO45,'Footnotes list'!$D$9:$E$58,2,FALSE) ) )","v":""},null,null,null,null,{"$f":"IF(TRIM(ET45)=\"\", \"\", IF(VLOOKUP(ET45,'Footnotes list'!$D$9:$E$58,2,FALSE)=0,\"\",VLOOKUP(ET45,'Footnotes list'!$D$9:$E$58,2,FALSE) ) )","v":""},null,null,null,null,{"$f":"IF(TRIM(EY45)=\"\", \"\", IF(VLOOKUP(EY45,'Footnotes list'!$D$9:$E$58,2,FALSE)=0,\"\",VLOOKUP(EY45,'Footnotes list'!$D$9:$E$58,2,FALSE) ) )","v":""}]
[null,null,"C13-C15","OWN_USE","activities for own final use",null,null,null,null,null,{"$f":"IF(TRIM(J46)=\"\", \"\", IF(VLOOKUP(J46,'Footnotes list'!$D$9:$E$58,2,FALSE)=0,\"\",VLOOKUP(J46,'Footnotes list'!$D$9:$E$58,2,FALSE) ) )","v":""},null,null,null,null,{"$f":"IF(TRIM(O46)=\"\", \"\", IF(VLOOKUP(O46,'Footnotes list'!$D$9:$E$58,2,FALSE)=0,\"\",VLOOKUP(O46,'Footnotes list'!$D$9:$E$58,2,FALSE) ) )","v":""},null,null,null,null,{"$f":"IF(TRIM(T46)=\"\", \"\", IF(VLOOKUP(T46,'Footnotes list'!$D$9:$E$58,2,FALSE)=0,\"\",VLOOKUP(T46,'Footnotes list'!$D$9:$E$58,2,FALSE) ) )","v":""},null,null,null,null,{"$f":"IF(TRIM(Y46)=\"\", \"\", IF(VLOOKUP(Y46,'Footnotes list'!$D$9:$E$58,2,FALSE)=0,\"\",VLOOKUP(Y46,'Footnotes list'!$D$9:$E$58,2,FALSE) ) )","v":""},null,null,null,null,{"$f":"IF(TRIM(AD46)=\"\", \"\", IF(VLOOKUP(AD46,'Footnotes list'!$D$9:$E$58,2,FALSE)=0,\"\",VLOOKUP(AD46,'Footnotes list'!$D$9:$E$58,2,FALSE) ) )","v":""},null,null,null,null,{"$f":"IF(TRIM(AI46)=\"\", \"\", IF(VLOOKUP(AI46,'Footnotes list'!$D$9:$E$58,2,FALSE)=0,\"\",VLOOKUP(AI46,'Footnotes list'!$D$9:$E$58,2,FALSE) ) )","v":""},null,null,null,null,{"$f":"IF(TRIM(AN46)=\"\", \"\", IF(VLOOKUP(AN46,'Footnotes list'!$D$9:$E$58,2,FALSE)=0,\"\",VLOOKUP(AN46,'Footnotes list'!$D$9:$E$58,2,FALSE) ) )","v":""},null,null,null,null,{"$f":"IF(TRIM(AS46)=\"\", \"\", IF(VLOOKUP(AS46,'Footnotes list'!$D$9:$E$58,2,FALSE)=0,\"\",VLOOKUP(AS46,'Footnotes list'!$D$9:$E$58,2,FALSE) ) )","v":""},null,null,null,null,{"$f":"IF(TRIM(AX46)=\"\", \"\", IF(VLOOKUP(AX46,'Footnotes list'!$D$9:$E$58,2,FALSE)=0,\"\",VLOOKUP(AX46,'Footnotes list'!$D$9:$E$58,2,FALSE) ) )","v":""},null,null,null,null,{"$f":"IF(TRIM(BC46)=\"\", \"\", IF(VLOOKUP(BC46,'Footnotes list'!$D$9:$E$58,2,FALSE)=0,\"\",VLOOKUP(BC46,'Footnotes list'!$D$9:$E$58,2,FALSE) ) )","v":""},null,null,null,null,{"$f":"IF(TRIM(BH46)=\"\", \"\", IF(VLOOKUP(BH46,'Footnotes list'!$D$9:$E$58,2,FALSE)=0,\"\",VLOOKUP(BH46,'Footnotes list'!$D$9:$E$58,2,FALSE) ) )","v":""},null,null,null,null,{"$f":"IF(TRIM(BM46)=\"\", \"\", IF(VLOOKUP(BM46,'Footnotes list'!$D$9:$E$58,2,FALSE)=0,\"\",VLOOKUP(BM46,'Footnotes list'!$D$9:$E$58,2,FALSE) ) )","v":""},null,null,null,null,{"$f":"IF(TRIM(BR46)=\"\", \"\", IF(VLOOKUP(BR46,'Footnotes list'!$D$9:$E$58,2,FALSE)=0,\"\",VLOOKUP(BR46,'Footnotes list'!$D$9:$E$58,2,FALSE) ) )","v":""},null,null,null,null,{"$f":"IF(TRIM(BW46)=\"\", \"\", IF(VLOOKUP(BW46,'Footnotes list'!$D$9:$E$58,2,FALSE)=0,\"\",VLOOKUP(BW46,'Footnotes list'!$D$9:$E$58,2,FALSE) ) )","v":""},null,null,null,null,{"$f":"IF(TRIM(CB46)=\"\", \"\", IF(VLOOKUP(CB46,'Footnotes list'!$D$9:$E$58,2,FALSE)=0,\"\",VLOOKUP(CB46,'Footnotes list'!$D$9:$E$58,2,FALSE) ) )","v":""},null,null,null,null,{"$f":"IF(TRIM(CG46)=\"\", \"\", IF(VLOOKUP(CG46,'Footnotes list'!$D$9:$E$58,2,FALSE)=0,\"\",VLOOKUP(CG46,'Footnotes list'!$D$9:$E$58,2,FALSE) ) )","v":""},null,null,null,null,{"$f":"IF(TRIM(CL46)=\"\", \"\", IF(VLOOKUP(CL46,'Footnotes list'!$D$9:$E$58,2,FALSE)=0,\"\",VLOOKUP(CL46,'Footnotes list'!$D$9:$E$58,2,FALSE) ) )","v":""},null,null,null,null,{"$f":"IF(TRIM(CQ46)=\"\", \"\", IF(VLOOKUP(CQ46,'Footnotes list'!$D$9:$E$58,2,FALSE)=0,\"\",VLOOKUP(CQ46,'Footnotes list'!$D$9:$E$58,2,FALSE) ) )","v":""},null,null,null,null,{"$f":"IF(TRIM(CV46)=\"\", \"\", IF(VLOOKUP(CV46,'Footnotes list'!$D$9:$E$58,2,FALSE)=0,\"\",VLOOKUP(CV46,'Footnotes list'!$D$9:$E$58,2,FALSE) ) )","v":""},null,null,null,null,{"$f":"IF(TRIM(DA46)=\"\", \"\", IF(VLOOKUP(DA46,'Footnotes list'!$D$9:$E$58,2,FALSE)=0,\"\",VLOOKUP(DA46,'Footnotes list'!$D$9:$E$58,2,FALSE) ) )","v":""},null,null,null,null,{"$f":"IF(TRIM(DF46)=\"\", \"\", IF(VLOOKUP(DF46,'Footnotes list'!$D$9:$E$58,2,FALSE)=0,\"\",VLOOKUP(DF46,'Footnotes list'!$D$9:$E$58,2,FALSE) ) )","v":""},null,null,null,null,{"$f":"IF(TRIM(DK46)=\"\", \"\", IF(VLOOKUP(DK46,'Footnotes list'!$D$9:$E$58,2,FALSE)=0,\"\",VLOOKUP(DK46,'Footnotes list'!$D$9:$E$58,2,FALSE) ) )","v":""},null,null,null,null,{"$f":"IF(TRIM(DP46)=\"\", \"\", IF(VLOOKUP(DP46,'Footnotes list'!$D$9:$E$58,2,FALSE)=0,\"\",VLOOKUP(DP46,'Footnotes list'!$D$9:$E$58,2,FALSE) ) )","v":""},null,null,null,null,{"$f":"IF(TRIM(DU46)=\"\", \"\", IF(VLOOKUP(DU46,'Footnotes list'!$D$9:$E$58,2,FALSE)=0,\"\",VLOOKUP(DU46,'Footnotes list'!$D$9:$E$58,2,FALSE) ) )","v":""},null,null,null,null,{"$f":"IF(TRIM(DZ46)=\"\", \"\", IF(VLOOKUP(DZ46,'Footnotes list'!$D$9:$E$58,2,FALSE)=0,\"\",VLOOKUP(DZ46,'Footnotes list'!$D$9:$E$58,2,FALSE) ) )","v":""},null,null,null,null,{"$f":"IF(TRIM(EE46)=\"\", \"\", IF(VLOOKUP(EE46,'Footnotes list'!$D$9:$E$58,2,FALSE)=0,\"\",VLOOKUP(EE46,'Footnotes list'!$D$9:$E$58,2,FALSE) ) )","v":""},null,null,null,null,{"$f":"IF(TRIM(EJ46)=\"\", \"\", IF(VLOOKUP(EJ46,'Footnotes list'!$D$9:$E$58,2,FALSE)=0,\"\",VLOOKUP(EJ46,'Footnotes list'!$D$9:$E$58,2,FALSE) ) )","v":""},null,null,null,null,{"$f":"IF(TRIM(EO46)=\"\", \"\", IF(VLOOKUP(EO46,'Footnotes list'!$D$9:$E$58,2,FALSE)=0,\"\",VLOOKUP(EO46,'Footnotes list'!$D$9:$E$58,2,FALSE) ) )","v":""},null,null,null,null,{"$f":"IF(TRIM(ET46)=\"\", \"\", IF(VLOOKUP(ET46,'Footnotes list'!$D$9:$E$58,2,FALSE)=0,\"\",VLOOKUP(ET46,'Footnotes list'!$D$9:$E$58,2,FALSE) ) )","v":""},null,null,null,null,{"$f":"IF(TRIM(EY46)=\"\", \"\", IF(VLOOKUP(EY46,'Footnotes list'!$D$9:$E$58,2,FALSE)=0,\"\",VLOOKUP(EY46,'Footnotes list'!$D$9:$E$58,2,FALSE) ) )","v":""}]
[null,null,"C13-C15","MKT","market activities, including:",null,null,null,null,null,{"$f":"IF(TRIM(J47)=\"\", \"\", IF(VLOOKUP(J47,'Footnotes list'!$D$9:$E$58,2,FALSE)=0,\"\",VLOOKUP(J47,'Footnotes list'!$D$9:$E$58,2,FALSE) ) )","v":""},null,null,null,null,{"$f":"IF(TRIM(O47)=\"\", \"\", IF(VLOOKUP(O47,'Footnotes list'!$D$9:$E$58,2,FALSE)=0,\"\",VLOOKUP(O47,'Footnotes list'!$D$9:$E$58,2,FALSE) ) )","v":""},null,null,null,null,{"$f":"IF(TRIM(T47)=\"\", \"\", IF(VLOOKUP(T47,'Footnotes list'!$D$9:$E$58,2,FALSE)=0,\"\",VLOOKUP(T47,'Footnotes list'!$D$9:$E$58,2,FALSE) ) )","v":""},null,null,null,null,{"$f":"IF(TRIM(Y47)=\"\", \"\", IF(VLOOKUP(Y47,'Footnotes list'!$D$9:$E$58,2,FALSE)=0,\"\",VLOOKUP(Y47,'Footnotes list'!$D$9:$E$58,2,FALSE) ) )","v":""},null,null,null,null,{"$f":"IF(TRIM(AD47)=\"\", \"\", IF(VLOOKUP(AD47,'Footnotes list'!$D$9:$E$58,2,FALSE)=0,\"\",VLOOKUP(AD47,'Footnotes list'!$D$9:$E$58,2,FALSE) ) )","v":""},null,null,null,null,{"$f":"IF(TRIM(AI47)=\"\", \"\", IF(VLOOKUP(AI47,'Footnotes list'!$D$9:$E$58,2,FALSE)=0,\"\",VLOOKUP(AI47,'Footnotes list'!$D$9:$E$58,2,FALSE) ) )","v":""},null,null,null,null,{"$f":"IF(TRIM(AN47)=\"\", \"\", IF(VLOOKUP(AN47,'Footnotes list'!$D$9:$E$58,2,FALSE)=0,\"\",VLOOKUP(AN47,'Footnotes list'!$D$9:$E$58,2,FALSE) ) )","v":""},null,null,null,null,{"$f":"IF(TRIM(AS47)=\"\", \"\", IF(VLOOKUP(AS47,'Footnotes list'!$D$9:$E$58,2,FALSE)=0,\"\",VLOOKUP(AS47,'Footnotes list'!$D$9:$E$58,2,FALSE) ) )","v":""},null,null,null,null,{"$f":"IF(TRIM(AX47)=\"\", \"\", IF(VLOOKUP(AX47,'Footnotes list'!$D$9:$E$58,2,FALSE)=0,\"\",VLOOKUP(AX47,'Footnotes list'!$D$9:$E$58,2,FALSE) ) )","v":""},null,null,null,null,{"$f":"IF(TRIM(BC47)=\"\", \"\", IF(VLOOKUP(BC47,'Footnotes list'!$D$9:$E$58,2,FALSE)=0,\"\",VLOOKUP(BC47,'Footnotes list'!$D$9:$E$58,2,FALSE) ) )","v":""},null,null,null,null,{"$f":"IF(TRIM(BH47)=\"\", \"\", IF(VLOOKUP(BH47,'Footnotes list'!$D$9:$E$58,2,FALSE)=0,\"\",VLOOKUP(BH47,'Footnotes list'!$D$9:$E$58,2,FALSE) ) )","v":""},null,null,null,null,{"$f":"IF(TRIM(BM47)=\"\", \"\", IF(VLOOKUP(BM47,'Footnotes list'!$D$9:$E$58,2,FALSE)=0,\"\",VLOOKUP(BM47,'Footnotes list'!$D$9:$E$58,2,FALSE) ) )","v":""},null,null,null,null,{"$f":"IF(TRIM(BR47)=\"\", \"\", IF(VLOOKUP(BR47,'Footnotes list'!$D$9:$E$58,2,FALSE)=0,\"\",VLOOKUP(BR47,'Footnotes list'!$D$9:$E$58,2,FALSE) ) )","v":""},null,null,null,null,{"$f":"IF(TRIM(BW47)=\"\", \"\", IF(VLOOKUP(BW47,'Footnotes list'!$D$9:$E$58,2,FALSE)=0,\"\",VLOOKUP(BW47,'Footnotes list'!$D$9:$E$58,2,FALSE) ) )","v":""},null,null,null,null,{"$f":"IF(TRIM(CB47)=\"\", \"\", IF(VLOOKUP(CB47,'Footnotes list'!$D$9:$E$58,2,FALSE)=0,\"\",VLOOKUP(CB47,'Footnotes list'!$D$9:$E$58,2,FALSE) ) )","v":""},null,null,null,null,{"$f":"IF(TRIM(CG47)=\"\", \"\", IF(VLOOKUP(CG47,'Footnotes list'!$D$9:$E$58,2,FALSE)=0,\"\",VLOOKUP(CG47,'Footnotes list'!$D$9:$E$58,2,FALSE) ) )","v":""},null,null,null,null,{"$f":"IF(TRIM(CL47)=\"\", \"\", IF(VLOOKUP(CL47,'Footnotes list'!$D$9:$E$58,2,FALSE)=0,\"\",VLOOKUP(CL47,'Footnotes list'!$D$9:$E$58,2,FALSE) ) )","v":""},null,null,null,null,{"$f":"IF(TRIM(CQ47)=\"\", \"\", IF(VLOOKUP(CQ47,'Footnotes list'!$D$9:$E$58,2,FALSE)=0,\"\",VLOOKUP(CQ47,'Footnotes list'!$D$9:$E$58,2,FALSE) ) )","v":""},null,null,null,null,{"$f":"IF(TRIM(CV47)=\"\", \"\", IF(VLOOKUP(CV47,'Footnotes list'!$D$9:$E$58,2,FALSE)=0,\"\",VLOOKUP(CV47,'Footnotes list'!$D$9:$E$58,2,FALSE) ) )","v":""},null,null,null,null,{"$f":"IF(TRIM(DA47)=\"\", \"\", IF(VLOOKUP(DA47,'Footnotes list'!$D$9:$E$58,2,FALSE)=0,\"\",VLOOKUP(DA47,'Footnotes list'!$D$9:$E$58,2,FALSE) ) )","v":""},null,null,null,null,{"$f":"IF(TRIM(DF47)=\"\", \"\", IF(VLOOKUP(DF47,'Footnotes list'!$D$9:$E$58,2,FALSE)=0,\"\",VLOOKUP(DF47,'Footnotes list'!$D$9:$E$58,2,FALSE) ) )","v":""},null,null,null,null,{"$f":"IF(TRIM(DK47)=\"\", \"\", IF(VLOOKUP(DK47,'Footnotes list'!$D$9:$E$58,2,FALSE)=0,\"\",VLOOKUP(DK47,'Footnotes list'!$D$9:$E$58,2,FALSE) ) )","v":""},null,null,null,null,{"$f":"IF(TRIM(DP47)=\"\", \"\", IF(VLOOKUP(DP47,'Footnotes list'!$D$9:$E$58,2,FALSE)=0,\"\",VLOOKUP(DP47,'Footnotes list'!$D$9:$E$58,2,FALSE) ) )","v":""},null,null,null,null,{"$f":"IF(TRIM(DU47)=\"\", \"\", IF(VLOOKUP(DU47,'Footnotes list'!$D$9:$E$58,2,FALSE)=0,\"\",VLOOKUP(DU47,'Footnotes list'!$D$9:$E$58,2,FALSE) ) )","v":""},null,null,null,null,{"$f":"IF(TRIM(DZ47)=\"\", \"\", IF(VLOOKUP(DZ47,'Footnotes list'!$D$9:$E$58,2,FALSE)=0,\"\",VLOOKUP(DZ47,'Footnotes list'!$D$9:$E$58,2,FALSE) ) )","v":""},null,null,null,null,{"$f":"IF(TRIM(EE47)=\"\", \"\", IF(VLOOKUP(EE47,'Footnotes list'!$D$9:$E$58,2,FALSE)=0,\"\",VLOOKUP(EE47,'Footnotes list'!$D$9:$E$58,2,FALSE) ) )","v":""},null,null,null,null,{"$f":"IF(TRIM(EJ47)=\"\", \"\", IF(VLOOKUP(EJ47,'Footnotes list'!$D$9:$E$58,2,FALSE)=0,\"\",VLOOKUP(EJ47,'Footnotes list'!$D$9:$E$58,2,FALSE) ) )","v":""},null,null,null,null,{"$f":"IF(TRIM(EO47)=\"\", \"\", IF(VLOOKUP(EO47,'Footnotes list'!$D$9:$E$58,2,FALSE)=0,\"\",VLOOKUP(EO47,'Footnotes list'!$D$9:$E$58,2,FALSE) ) )","v":""},null,null,null,null,{"$f":"IF(TRIM(ET47)=\"\", \"\", IF(VLOOKUP(ET47,'Footnotes list'!$D$9:$E$58,2,FALSE)=0,\"\",VLOOKUP(ET47,'Footnotes list'!$D$9:$E$58,2,FALSE) ) )","v":""},null,null,null,null,{"$f":"IF(TRIM(EY47)=\"\", \"\", IF(VLOOKUP(EY47,'Footnotes list'!$D$9:$E$58,2,FALSE)=0,\"\",VLOOKUP(EY47,'Footnotes list'!$D$9:$E$58,2,FALSE) ) )","v":""}]
[null,null,"C13-C15","ES_CS","environmental specific services",null,null,null,null,null,{"$f":"IF(TRIM(J48)=\"\", \"\", IF(VLOOKUP(J48,'Footnotes list'!$D$9:$E$58,2,FALSE)=0,\"\",VLOOKUP(J48,'Footnotes list'!$D$9:$E$58,2,FALSE) ) )","v":""},null,null,null,null,{"$f":"IF(TRIM(O48)=\"\", \"\", IF(VLOOKUP(O48,'Footnotes list'!$D$9:$E$58,2,FALSE)=0,\"\",VLOOKUP(O48,'Footnotes list'!$D$9:$E$58,2,FALSE) ) )","v":""},null,null,null,null,{"$f":"IF(TRIM(T48)=\"\", \"\", IF(VLOOKUP(T48,'Footnotes list'!$D$9:$E$58,2,FALSE)=0,\"\",VLOOKUP(T48,'Footnotes list'!$D$9:$E$58,2,FALSE) ) )","v":""},null,null,null,null,{"$f":"IF(TRIM(Y48)=\"\", \"\", IF(VLOOKUP(Y48,'Footnotes list'!$D$9:$E$58,2,FALSE)=0,\"\",VLOOKUP(Y48,'Footnotes list'!$D$9:$E$58,2,FALSE) ) )","v":""},null,null,null,null,{"$f":"IF(TRIM(AD48)=\"\", \"\", IF(VLOOKUP(AD48,'Footnotes list'!$D$9:$E$58,2,FALSE)=0,\"\",VLOOKUP(AD48,'Footnotes list'!$D$9:$E$58,2,FALSE) ) )","v":""},null,null,null,null,{"$f":"IF(TRIM(AI48)=\"\", \"\", IF(VLOOKUP(AI48,'Footnotes list'!$D$9:$E$58,2,FALSE)=0,\"\",VLOOKUP(AI48,'Footnotes list'!$D$9:$E$58,2,FALSE) ) )","v":""},null,null,null,null,{"$f":"IF(TRIM(AN48)=\"\", \"\", IF(VLOOKUP(AN48,'Footnotes list'!$D$9:$E$58,2,FALSE)=0,\"\",VLOOKUP(AN48,'Footnotes list'!$D$9:$E$58,2,FALSE) ) )","v":""},null,null,null,null,{"$f":"IF(TRIM(AS48)=\"\", \"\", IF(VLOOKUP(AS48,'Footnotes list'!$D$9:$E$58,2,FALSE)=0,\"\",VLOOKUP(AS48,'Footnotes list'!$D$9:$E$58,2,FALSE) ) )","v":""},null,null,null,null,{"$f":"IF(TRIM(AX48)=\"\", \"\", IF(VLOOKUP(AX48,'Footnotes list'!$D$9:$E$58,2,FALSE)=0,\"\",VLOOKUP(AX48,'Footnotes list'!$D$9:$E$58,2,FALSE) ) )","v":""},null,null,null,null,{"$f":"IF(TRIM(BC48)=\"\", \"\", IF(VLOOKUP(BC48,'Footnotes list'!$D$9:$E$58,2,FALSE)=0,\"\",VLOOKUP(BC48,'Footnotes list'!$D$9:$E$58,2,FALSE) ) )","v":""},null,null,null,null,{"$f":"IF(TRIM(BH48)=\"\", \"\", IF(VLOOKUP(BH48,'Footnotes list'!$D$9:$E$58,2,FALSE)=0,\"\",VLOOKUP(BH48,'Footnotes list'!$D$9:$E$58,2,FALSE) ) )","v":""},null,null,null,null,{"$f":"IF(TRIM(BM48)=\"\", \"\", IF(VLOOKUP(BM48,'Footnotes list'!$D$9:$E$58,2,FALSE)=0,\"\",VLOOKUP(BM48,'Footnotes list'!$D$9:$E$58,2,FALSE) ) )","v":""},null,null,null,null,{"$f":"IF(TRIM(BR48)=\"\", \"\", IF(VLOOKUP(BR48,'Footnotes list'!$D$9:$E$58,2,FALSE)=0,\"\",VLOOKUP(BR48,'Footnotes list'!$D$9:$E$58,2,FALSE) ) )","v":""},null,null,null,null,{"$f":"IF(TRIM(BW48)=\"\", \"\", IF(VLOOKUP(BW48,'Footnotes list'!$D$9:$E$58,2,FALSE)=0,\"\",VLOOKUP(BW48,'Footnotes list'!$D$9:$E$58,2,FALSE) ) )","v":""},null,null,null,null,{"$f":"IF(TRIM(CB48)=\"\", \"\", IF(VLOOKUP(CB48,'Footnotes list'!$D$9:$E$58,2,FALSE)=0,\"\",VLOOKUP(CB48,'Footnotes list'!$D$9:$E$58,2,FALSE) ) )","v":""},null,null,null,null,{"$f":"IF(TRIM(CG48)=\"\", \"\", IF(VLOOKUP(CG48,'Footnotes list'!$D$9:$E$58,2,FALSE)=0,\"\",VLOOKUP(CG48,'Footnotes list'!$D$9:$E$58,2,FALSE) ) )","v":""},null,null,null,null,{"$f":"IF(TRIM(CL48)=\"\", \"\", IF(VLOOKUP(CL48,'Footnotes list'!$D$9:$E$58,2,FALSE)=0,\"\",VLOOKUP(CL48,'Footnotes list'!$D$9:$E$58,2,FALSE) ) )","v":""},null,null,null,null,{"$f":"IF(TRIM(CQ48)=\"\", \"\", IF(VLOOKUP(CQ48,'Footnotes list'!$D$9:$E$58,2,FALSE)=0,\"\",VLOOKUP(CQ48,'Footnotes list'!$D$9:$E$58,2,FALSE) ) )","v":""},null,null,null,null,{"$f":"IF(TRIM(CV48)=\"\", \"\", IF(VLOOKUP(CV48,'Footnotes list'!$D$9:$E$58,2,FALSE)=0,\"\",VLOOKUP(CV48,'Footnotes list'!$D$9:$E$58,2,FALSE) ) )","v":""},null,null,null,null,{"$f":"IF(TRIM(DA48)=\"\", \"\", IF(VLOOKUP(DA48,'Footnotes list'!$D$9:$E$58,2,FALSE)=0,\"\",VLOOKUP(DA48,'Footnotes list'!$D$9:$E$58,2,FALSE) ) )","v":""},null,null,null,null,{"$f":"IF(TRIM(DF48)=\"\", \"\", IF(VLOOKUP(DF48,'Footnotes list'!$D$9:$E$58,2,FALSE)=0,\"\",VLOOKUP(DF48,'Footnotes list'!$D$9:$E$58,2,FALSE) ) )","v":""},null,null,null,null,{"$f":"IF(TRIM(DK48)=\"\", \"\", IF(VLOOKUP(DK48,'Footnotes list'!$D$9:$E$58,2,FALSE)=0,\"\",VLOOKUP(DK48,'Footnotes list'!$D$9:$E$58,2,FALSE) ) )","v":""},null,null,null,null,{"$f":"IF(TRIM(DP48)=\"\", \"\", IF(VLOOKUP(DP48,'Footnotes list'!$D$9:$E$58,2,FALSE)=0,\"\",VLOOKUP(DP48,'Footnotes list'!$D$9:$E$58,2,FALSE) ) )","v":""},null,null,null,null,{"$f":"IF(TRIM(DU48)=\"\", \"\", IF(VLOOKUP(DU48,'Footnotes list'!$D$9:$E$58,2,FALSE)=0,\"\",VLOOKUP(DU48,'Footnotes list'!$D$9:$E$58,2,FALSE) ) )","v":""},null,null,null,null,{"$f":"IF(TRIM(DZ48)=\"\", \"\", IF(VLOOKUP(DZ48,'Footnotes list'!$D$9:$E$58,2,FALSE)=0,\"\",VLOOKUP(DZ48,'Footnotes list'!$D$9:$E$58,2,FALSE) ) )","v":""},null,null,null,null,{"$f":"IF(TRIM(EE48)=\"\", \"\", IF(VLOOKUP(EE48,'Footnotes list'!$D$9:$E$58,2,FALSE)=0,\"\",VLOOKUP(EE48,'Footnotes list'!$D$9:$E$58,2,FALSE) ) )","v":""},null,null,null,null,{"$f":"IF(TRIM(EJ48)=\"\", \"\", IF(VLOOKUP(EJ48,'Footnotes list'!$D$9:$E$58,2,FALSE)=0,\"\",VLOOKUP(EJ48,'Footnotes list'!$D$9:$E$58,2,FALSE) ) )","v":""},null,null,null,null,{"$f":"IF(TRIM(EO48)=\"\", \"\", IF(VLOOKUP(EO48,'Footnotes list'!$D$9:$E$58,2,FALSE)=0,\"\",VLOOKUP(EO48,'Footnotes list'!$D$9:$E$58,2,FALSE) ) )","v":""},null,null,null,null,{"$f":"IF(TRIM(ET48)=\"\", \"\", IF(VLOOKUP(ET48,'Footnotes list'!$D$9:$E$58,2,FALSE)=0,\"\",VLOOKUP(ET48,'Footnotes list'!$D$9:$E$58,2,FALSE) ) )","v":""},null,null,null,null,{"$f":"IF(TRIM(EY48)=\"\", \"\", IF(VLOOKUP(EY48,'Footnotes list'!$D$9:$E$58,2,FALSE)=0,\"\",VLOOKUP(EY48,'Footnotes list'!$D$9:$E$58,2,FALSE) ) )","v":""}]
[null,null,"C13-C15","C_REP","cleaner and resource efficient products",null,null,null,null,null,{"$f":"IF(TRIM(J49)=\"\", \"\", IF(VLOOKUP(J49,'Footnotes list'!$D$9:$E$58,2,FALSE)=0,\"\",VLOOKUP(J49,'Footnotes list'!$D$9:$E$58,2,FALSE) ) )","v":""},null,null,null,null,{"$f":"IF(TRIM(O49)=\"\", \"\", IF(VLOOKUP(O49,'Footnotes list'!$D$9:$E$58,2,FALSE)=0,\"\",VLOOKUP(O49,'Footnotes list'!$D$9:$E$58,2,FALSE) ) )","v":""},null,null,null,null,{"$f":"IF(TRIM(T49)=\"\", \"\", IF(VLOOKUP(T49,'Footnotes list'!$D$9:$E$58,2,FALSE)=0,\"\",VLOOKUP(T49,'Footnotes list'!$D$9:$E$58,2,FALSE) ) )","v":""},null,null,null,null,{"$f":"IF(TRIM(Y49)=\"\", \"\", IF(VLOOKUP(Y49,'Footnotes list'!$D$9:$E$58,2,FALSE)=0,\"\",VLOOKUP(Y49,'Footnotes list'!$D$9:$E$58,2,FALSE) ) )","v":""},null,null,null,null,{"$f":"IF(TRIM(AD49)=\"\", \"\", IF(VLOOKUP(AD49,'Footnotes list'!$D$9:$E$58,2,FALSE)=0,\"\",VLOOKUP(AD49,'Footnotes list'!$D$9:$E$58,2,FALSE) ) )","v":""},null,null,null,null,{"$f":"IF(TRIM(AI49)=\"\", \"\", IF(VLOOKUP(AI49,'Footnotes list'!$D$9:$E$58,2,FALSE)=0,\"\",VLOOKUP(AI49,'Footnotes list'!$D$9:$E$58,2,FALSE) ) )","v":""},null,null,null,null,{"$f":"IF(TRIM(AN49)=\"\", \"\", IF(VLOOKUP(AN49,'Footnotes list'!$D$9:$E$58,2,FALSE)=0,\"\",VLOOKUP(AN49,'Footnotes list'!$D$9:$E$58,2,FALSE) ) )","v":""},null,null,null,null,{"$f":"IF(TRIM(AS49)=\"\", \"\", IF(VLOOKUP(AS49,'Footnotes list'!$D$9:$E$58,2,FALSE)=0,\"\",VLOOKUP(AS49,'Footnotes list'!$D$9:$E$58,2,FALSE) ) )","v":""},null,null,null,null,{"$f":"IF(TRIM(AX49)=\"\", \"\", IF(VLOOKUP(AX49,'Footnotes list'!$D$9:$E$58,2,FALSE)=0,\"\",VLOOKUP(AX49,'Footnotes list'!$D$9:$E$58,2,FALSE) ) )","v":""},null,null,null,null,{"$f":"IF(TRIM(BC49)=\"\", \"\", IF(VLOOKUP(BC49,'Footnotes list'!$D$9:$E$58,2,FALSE)=0,\"\",VLOOKUP(BC49,'Footnotes list'!$D$9:$E$58,2,FALSE) ) )","v":""},null,null,null,null,{"$f":"IF(TRIM(BH49)=\"\", \"\", IF(VLOOKUP(BH49,'Footnotes list'!$D$9:$E$58,2,FALSE)=0,\"\",VLOOKUP(BH49,'Footnotes list'!$D$9:$E$58,2,FALSE) ) )","v":""},null,null,null,null,{"$f":"IF(TRIM(BM49)=\"\", \"\", IF(VLOOKUP(BM49,'Footnotes list'!$D$9:$E$58,2,FALSE)=0,\"\",VLOOKUP(BM49,'Footnotes list'!$D$9:$E$58,2,FALSE) ) )","v":""},null,null,null,null,{"$f":"IF(TRIM(BR49)=\"\", \"\", IF(VLOOKUP(BR49,'Footnotes list'!$D$9:$E$58,2,FALSE)=0,\"\",VLOOKUP(BR49,'Footnotes list'!$D$9:$E$58,2,FALSE) ) )","v":""},null,null,null,null,{"$f":"IF(TRIM(BW49)=\"\", \"\", IF(VLOOKUP(BW49,'Footnotes list'!$D$9:$E$58,2,FALSE)=0,\"\",VLOOKUP(BW49,'Footnotes list'!$D$9:$E$58,2,FALSE) ) )","v":""},null,null,null,null,{"$f":"IF(TRIM(CB49)=\"\", \"\", IF(VLOOKUP(CB49,'Footnotes list'!$D$9:$E$58,2,FALSE)=0,\"\",VLOOKUP(CB49,'Footnotes list'!$D$9:$E$58,2,FALSE) ) )","v":""},null,null,null,null,{"$f":"IF(TRIM(CG49)=\"\", \"\", IF(VLOOKUP(CG49,'Footnotes list'!$D$9:$E$58,2,FALSE)=0,\"\",VLOOKUP(CG49,'Footnotes list'!$D$9:$E$58,2,FALSE) ) )","v":""},null,null,null,null,{"$f":"IF(TRIM(CL49)=\"\", \"\", IF(VLOOKUP(CL49,'Footnotes list'!$D$9:$E$58,2,FALSE)=0,\"\",VLOOKUP(CL49,'Footnotes list'!$D$9:$E$58,2,FALSE) ) )","v":""},null,null,null,null,{"$f":"IF(TRIM(CQ49)=\"\", \"\", IF(VLOOKUP(CQ49,'Footnotes list'!$D$9:$E$58,2,FALSE)=0,\"\",VLOOKUP(CQ49,'Footnotes list'!$D$9:$E$58,2,FALSE) ) )","v":""},null,null,null,null,{"$f":"IF(TRIM(CV49)=\"\", \"\", IF(VLOOKUP(CV49,'Footnotes list'!$D$9:$E$58,2,FALSE)=0,\"\",VLOOKUP(CV49,'Footnotes list'!$D$9:$E$58,2,FALSE) ) )","v":""},null,null,null,null,{"$f":"IF(TRIM(DA49)=\"\", \"\", IF(VLOOKUP(DA49,'Footnotes list'!$D$9:$E$58,2,FALSE)=0,\"\",VLOOKUP(DA49,'Footnotes list'!$D$9:$E$58,2,FALSE) ) )","v":""},null,null,null,null,{"$f":"IF(TRIM(DF49)=\"\", \"\", IF(VLOOKUP(DF49,'Footnotes list'!$D$9:$E$58,2,FALSE)=0,\"\",VLOOKUP(DF49,'Footnotes list'!$D$9:$E$58,2,FALSE) ) )","v":""},null,null,null,null,{"$f":"IF(TRIM(DK49)=\"\", \"\", IF(VLOOKUP(DK49,'Footnotes list'!$D$9:$E$58,2,FALSE)=0,\"\",VLOOKUP(DK49,'Footnotes list'!$D$9:$E$58,2,FALSE) ) )","v":""},null,null,null,null,{"$f":"IF(TRIM(DP49)=\"\", \"\", IF(VLOOKUP(DP49,'Footnotes list'!$D$9:$E$58,2,FALSE)=0,\"\",VLOOKUP(DP49,'Footnotes list'!$D$9:$E$58,2,FALSE) ) )","v":""},null,null,null,null,{"$f":"IF(TRIM(DU49)=\"\", \"\", IF(VLOOKUP(DU49,'Footnotes list'!$D$9:$E$58,2,FALSE)=0,\"\",VLOOKUP(DU49,'Footnotes list'!$D$9:$E$58,2,FALSE) ) )","v":""},null,null,null,null,{"$f":"IF(TRIM(DZ49)=\"\", \"\", IF(VLOOKUP(DZ49,'Footnotes list'!$D$9:$E$58,2,FALSE)=0,\"\",VLOOKUP(DZ49,'Footnotes list'!$D$9:$E$58,2,FALSE) ) )","v":""},null,null,null,null,{"$f":"IF(TRIM(EE49)=\"\", \"\", IF(VLOOKUP(EE49,'Footnotes list'!$D$9:$E$58,2,FALSE)=0,\"\",VLOOKUP(EE49,'Footnotes list'!$D$9:$E$58,2,FALSE) ) )","v":""},null,null,null,null,{"$f":"IF(TRIM(EJ49)=\"\", \"\", IF(VLOOKUP(EJ49,'Footnotes list'!$D$9:$E$58,2,FALSE)=0,\"\",VLOOKUP(EJ49,'Footnotes list'!$D$9:$E$58,2,FALSE) ) )","v":""},null,null,null,null,{"$f":"IF(TRIM(EO49)=\"\", \"\", IF(VLOOKUP(EO49,'Footnotes list'!$D$9:$E$58,2,FALSE)=0,\"\",VLOOKUP(EO49,'Footnotes list'!$D$9:$E$58,2,FALSE) ) )","v":""},null,null,null,null,{"$f":"IF(TRIM(ET49)=\"\", \"\", IF(VLOOKUP(ET49,'Footnotes list'!$D$9:$E$58,2,FALSE)=0,\"\",VLOOKUP(ET49,'Footnotes list'!$D$9:$E$58,2,FALSE) ) )","v":""},null,null,null,null,{"$f":"IF(TRIM(EY49)=\"\", \"\", IF(VLOOKUP(EY49,'Footnotes list'!$D$9:$E$58,2,FALSE)=0,\"\",VLOOKUP(EY49,'Footnotes list'!$D$9:$E$58,2,FALSE) ) )","v":""}]
[null,null,"C16-C18","TOT_EGSS","Total C16 - C18 Manufacture of wood and paper products, and printing, of which:",null,null,null,null,null,{"$f":"IF(TRIM(J50)=\"\", \"\", IF(VLOOKUP(J50,'Footnotes list'!$D$9:$E$58,2,FALSE)=0,\"\",VLOOKUP(J50,'Footnotes list'!$D$9:$E$58,2,FALSE) ) )","v":""},null,null,null,null,{"$f":"IF(TRIM(O50)=\"\", \"\", IF(VLOOKUP(O50,'Footnotes list'!$D$9:$E$58,2,FALSE)=0,\"\",VLOOKUP(O50,'Footnotes list'!$D$9:$E$58,2,FALSE) ) )","v":""},null,null,null,null,{"$f":"IF(TRIM(T50)=\"\", \"\", IF(VLOOKUP(T50,'Footnotes list'!$D$9:$E$58,2,FALSE)=0,\"\",VLOOKUP(T50,'Footnotes list'!$D$9:$E$58,2,FALSE) ) )","v":""},null,null,null,null,{"$f":"IF(TRIM(Y50)=\"\", \"\", IF(VLOOKUP(Y50,'Footnotes list'!$D$9:$E$58,2,FALSE)=0,\"\",VLOOKUP(Y50,'Footnotes list'!$D$9:$E$58,2,FALSE) ) )","v":""},null,null,null,null,{"$f":"IF(TRIM(AD50)=\"\", \"\", IF(VLOOKUP(AD50,'Footnotes list'!$D$9:$E$58,2,FALSE)=0,\"\",VLOOKUP(AD50,'Footnotes list'!$D$9:$E$58,2,FALSE) ) )","v":""},null,null,null,null,{"$f":"IF(TRIM(AI50)=\"\", \"\", IF(VLOOKUP(AI50,'Footnotes list'!$D$9:$E$58,2,FALSE)=0,\"\",VLOOKUP(AI50,'Footnotes list'!$D$9:$E$58,2,FALSE) ) )","v":""},null,null,null,null,{"$f":"IF(TRIM(AN50)=\"\", \"\", IF(VLOOKUP(AN50,'Footnotes list'!$D$9:$E$58,2,FALSE)=0,\"\",VLOOKUP(AN50,'Footnotes list'!$D$9:$E$58,2,FALSE) ) )","v":""},null,null,null,null,{"$f":"IF(TRIM(AS50)=\"\", \"\", IF(VLOOKUP(AS50,'Footnotes list'!$D$9:$E$58,2,FALSE)=0,\"\",VLOOKUP(AS50,'Footnotes list'!$D$9:$E$58,2,FALSE) ) )","v":""},null,null,null,null,{"$f":"IF(TRIM(AX50)=\"\", \"\", IF(VLOOKUP(AX50,'Footnotes list'!$D$9:$E$58,2,FALSE)=0,\"\",VLOOKUP(AX50,'Footnotes list'!$D$9:$E$58,2,FALSE) ) )","v":""},null,null,null,null,{"$f":"IF(TRIM(BC50)=\"\", \"\", IF(VLOOKUP(BC50,'Footnotes list'!$D$9:$E$58,2,FALSE)=0,\"\",VLOOKUP(BC50,'Footnotes list'!$D$9:$E$58,2,FALSE) ) )","v":""},null,null,null,null,{"$f":"IF(TRIM(BH50)=\"\", \"\", IF(VLOOKUP(BH50,'Footnotes list'!$D$9:$E$58,2,FALSE)=0,\"\",VLOOKUP(BH50,'Footnotes list'!$D$9:$E$58,2,FALSE) ) )","v":""},null,null,null,null,{"$f":"IF(TRIM(BM50)=\"\", \"\", IF(VLOOKUP(BM50,'Footnotes list'!$D$9:$E$58,2,FALSE)=0,\"\",VLOOKUP(BM50,'Footnotes list'!$D$9:$E$58,2,FALSE) ) )","v":""},null,null,null,null,{"$f":"IF(TRIM(BR50)=\"\", \"\", IF(VLOOKUP(BR50,'Footnotes list'!$D$9:$E$58,2,FALSE)=0,\"\",VLOOKUP(BR50,'Footnotes list'!$D$9:$E$58,2,FALSE) ) )","v":""},null,null,null,null,{"$f":"IF(TRIM(BW50)=\"\", \"\", IF(VLOOKUP(BW50,'Footnotes list'!$D$9:$E$58,2,FALSE)=0,\"\",VLOOKUP(BW50,'Footnotes list'!$D$9:$E$58,2,FALSE) ) )","v":""},null,null,null,null,{"$f":"IF(TRIM(CB50)=\"\", \"\", IF(VLOOKUP(CB50,'Footnotes list'!$D$9:$E$58,2,FALSE)=0,\"\",VLOOKUP(CB50,'Footnotes list'!$D$9:$E$58,2,FALSE) ) )","v":""},null,null,null,null,{"$f":"IF(TRIM(CG50)=\"\", \"\", IF(VLOOKUP(CG50,'Footnotes list'!$D$9:$E$58,2,FALSE)=0,\"\",VLOOKUP(CG50,'Footnotes list'!$D$9:$E$58,2,FALSE) ) )","v":""},null,null,null,null,{"$f":"IF(TRIM(CL50)=\"\", \"\", IF(VLOOKUP(CL50,'Footnotes list'!$D$9:$E$58,2,FALSE)=0,\"\",VLOOKUP(CL50,'Footnotes list'!$D$9:$E$58,2,FALSE) ) )","v":""},null,null,null,null,{"$f":"IF(TRIM(CQ50)=\"\", \"\", IF(VLOOKUP(CQ50,'Footnotes list'!$D$9:$E$58,2,FALSE)=0,\"\",VLOOKUP(CQ50,'Footnotes list'!$D$9:$E$58,2,FALSE) ) )","v":""},null,null,null,null,{"$f":"IF(TRIM(CV50)=\"\", \"\", IF(VLOOKUP(CV50,'Footnotes list'!$D$9:$E$58,2,FALSE)=0,\"\",VLOOKUP(CV50,'Footnotes list'!$D$9:$E$58,2,FALSE) ) )","v":""},null,null,null,null,{"$f":"IF(TRIM(DA50)=\"\", \"\", IF(VLOOKUP(DA50,'Footnotes list'!$D$9:$E$58,2,FALSE)=0,\"\",VLOOKUP(DA50,'Footnotes list'!$D$9:$E$58,2,FALSE) ) )","v":""},null,null,null,null,{"$f":"IF(TRIM(DF50)=\"\", \"\", IF(VLOOKUP(DF50,'Footnotes list'!$D$9:$E$58,2,FALSE)=0,\"\",VLOOKUP(DF50,'Footnotes list'!$D$9:$E$58,2,FALSE) ) )","v":""},null,null,null,null,{"$f":"IF(TRIM(DK50)=\"\", \"\", IF(VLOOKUP(DK50,'Footnotes list'!$D$9:$E$58,2,FALSE)=0,\"\",VLOOKUP(DK50,'Footnotes list'!$D$9:$E$58,2,FALSE) ) )","v":""},null,null,null,null,{"$f":"IF(TRIM(DP50)=\"\", \"\", IF(VLOOKUP(DP50,'Footnotes list'!$D$9:$E$58,2,FALSE)=0,\"\",VLOOKUP(DP50,'Footnotes list'!$D$9:$E$58,2,FALSE) ) )","v":""},null,null,null,null,{"$f":"IF(TRIM(DU50)=\"\", \"\", IF(VLOOKUP(DU50,'Footnotes list'!$D$9:$E$58,2,FALSE)=0,\"\",VLOOKUP(DU50,'Footnotes list'!$D$9:$E$58,2,FALSE) ) )","v":""},null,null,null,null,{"$f":"IF(TRIM(DZ50)=\"\", \"\", IF(VLOOKUP(DZ50,'Footnotes list'!$D$9:$E$58,2,FALSE)=0,\"\",VLOOKUP(DZ50,'Footnotes list'!$D$9:$E$58,2,FALSE) ) )","v":""},null,null,null,null,{"$f":"IF(TRIM(EE50)=\"\", \"\", IF(VLOOKUP(EE50,'Footnotes list'!$D$9:$E$58,2,FALSE)=0,\"\",VLOOKUP(EE50,'Footnotes list'!$D$9:$E$58,2,FALSE) ) )","v":""},null,null,null,null,{"$f":"IF(TRIM(EJ50)=\"\", \"\", IF(VLOOKUP(EJ50,'Footnotes list'!$D$9:$E$58,2,FALSE)=0,\"\",VLOOKUP(EJ50,'Footnotes list'!$D$9:$E$58,2,FALSE) ) )","v":""},null,null,null,null,{"$f":"IF(TRIM(EO50)=\"\", \"\", IF(VLOOKUP(EO50,'Footnotes list'!$D$9:$E$58,2,FALSE)=0,\"\",VLOOKUP(EO50,'Footnotes list'!$D$9:$E$58,2,FALSE) ) )","v":""},null,null,null,null,{"$f":"IF(TRIM(ET50)=\"\", \"\", IF(VLOOKUP(ET50,'Footnotes list'!$D$9:$E$58,2,FALSE)=0,\"\",VLOOKUP(ET50,'Footnotes list'!$D$9:$E$58,2,FALSE) ) )","v":""},null,null,null,null,{"$f":"IF(TRIM(EY50)=\"\", \"\", IF(VLOOKUP(EY50,'Footnotes list'!$D$9:$E$58,2,FALSE)=0,\"\",VLOOKUP(EY50,'Footnotes list'!$D$9:$E$58,2,FALSE) ) )","v":""}]
[null,null,"C16-C18","ANC","ancillary activities",null,null,null,null,null,{"$f":"IF(TRIM(J51)=\"\", \"\", IF(VLOOKUP(J51,'Footnotes list'!$D$9:$E$58,2,FALSE)=0,\"\",VLOOKUP(J51,'Footnotes list'!$D$9:$E$58,2,FALSE) ) )","v":""},null,null,null,null,{"$f":"IF(TRIM(O51)=\"\", \"\", IF(VLOOKUP(O51,'Footnotes list'!$D$9:$E$58,2,FALSE)=0,\"\",VLOOKUP(O51,'Footnotes list'!$D$9:$E$58,2,FALSE) ) )","v":""},null,null,null,null,{"$f":"IF(TRIM(T51)=\"\", \"\", IF(VLOOKUP(T51,'Footnotes list'!$D$9:$E$58,2,FALSE)=0,\"\",VLOOKUP(T51,'Footnotes list'!$D$9:$E$58,2,FALSE) ) )","v":""},null,null,null,null,{"$f":"IF(TRIM(Y51)=\"\", \"\", IF(VLOOKUP(Y51,'Footnotes list'!$D$9:$E$58,2,FALSE)=0,\"\",VLOOKUP(Y51,'Footnotes list'!$D$9:$E$58,2,FALSE) ) )","v":""},null,null,null,null,{"$f":"IF(TRIM(AD51)=\"\", \"\", IF(VLOOKUP(AD51,'Footnotes list'!$D$9:$E$58,2,FALSE)=0,\"\",VLOOKUP(AD51,'Footnotes list'!$D$9:$E$58,2,FALSE) ) )","v":""},null,null,null,null,{"$f":"IF(TRIM(AI51)=\"\", \"\", IF(VLOOKUP(AI51,'Footnotes list'!$D$9:$E$58,2,FALSE)=0,\"\",VLOOKUP(AI51,'Footnotes list'!$D$9:$E$58,2,FALSE) ) )","v":""},null,null,null,null,{"$f":"IF(TRIM(AN51)=\"\", \"\", IF(VLOOKUP(AN51,'Footnotes list'!$D$9:$E$58,2,FALSE)=0,\"\",VLOOKUP(AN51,'Footnotes list'!$D$9:$E$58,2,FALSE) ) )","v":""},null,null,null,null,{"$f":"IF(TRIM(AS51)=\"\", \"\", IF(VLOOKUP(AS51,'Footnotes list'!$D$9:$E$58,2,FALSE)=0,\"\",VLOOKUP(AS51,'Footnotes list'!$D$9:$E$58,2,FALSE) ) )","v":""},null,null,null,null,{"$f":"IF(TRIM(AX51)=\"\", \"\", IF(VLOOKUP(AX51,'Footnotes list'!$D$9:$E$58,2,FALSE)=0,\"\",VLOOKUP(AX51,'Footnotes list'!$D$9:$E$58,2,FALSE) ) )","v":""},null,null,null,null,{"$f":"IF(TRIM(BC51)=\"\", \"\", IF(VLOOKUP(BC51,'Footnotes list'!$D$9:$E$58,2,FALSE)=0,\"\",VLOOKUP(BC51,'Footnotes list'!$D$9:$E$58,2,FALSE) ) )","v":""},null,null,null,null,{"$f":"IF(TRIM(BH51)=\"\", \"\", IF(VLOOKUP(BH51,'Footnotes list'!$D$9:$E$58,2,FALSE)=0,\"\",VLOOKUP(BH51,'Footnotes list'!$D$9:$E$58,2,FALSE) ) )","v":""},null,null,null,null,{"$f":"IF(TRIM(BM51)=\"\", \"\", IF(VLOOKUP(BM51,'Footnotes list'!$D$9:$E$58,2,FALSE)=0,\"\",VLOOKUP(BM51,'Footnotes list'!$D$9:$E$58,2,FALSE) ) )","v":""},null,null,null,null,{"$f":"IF(TRIM(BR51)=\"\", \"\", IF(VLOOKUP(BR51,'Footnotes list'!$D$9:$E$58,2,FALSE)=0,\"\",VLOOKUP(BR51,'Footnotes list'!$D$9:$E$58,2,FALSE) ) )","v":""},null,null,null,null,{"$f":"IF(TRIM(BW51)=\"\", \"\", IF(VLOOKUP(BW51,'Footnotes list'!$D$9:$E$58,2,FALSE)=0,\"\",VLOOKUP(BW51,'Footnotes list'!$D$9:$E$58,2,FALSE) ) )","v":""},null,null,null,null,{"$f":"IF(TRIM(CB51)=\"\", \"\", IF(VLOOKUP(CB51,'Footnotes list'!$D$9:$E$58,2,FALSE)=0,\"\",VLOOKUP(CB51,'Footnotes list'!$D$9:$E$58,2,FALSE) ) )","v":""},null,null,null,null,{"$f":"IF(TRIM(CG51)=\"\", \"\", IF(VLOOKUP(CG51,'Footnotes list'!$D$9:$E$58,2,FALSE)=0,\"\",VLOOKUP(CG51,'Footnotes list'!$D$9:$E$58,2,FALSE) ) )","v":""},null,null,null,null,{"$f":"IF(TRIM(CL51)=\"\", \"\", IF(VLOOKUP(CL51,'Footnotes list'!$D$9:$E$58,2,FALSE)=0,\"\",VLOOKUP(CL51,'Footnotes list'!$D$9:$E$58,2,FALSE) ) )","v":""},null,null,null,null,{"$f":"IF(TRIM(CQ51)=\"\", \"\", IF(VLOOKUP(CQ51,'Footnotes list'!$D$9:$E$58,2,FALSE)=0,\"\",VLOOKUP(CQ51,'Footnotes list'!$D$9:$E$58,2,FALSE) ) )","v":""},null,null,null,null,{"$f":"IF(TRIM(CV51)=\"\", \"\", IF(VLOOKUP(CV51,'Footnotes list'!$D$9:$E$58,2,FALSE)=0,\"\",VLOOKUP(CV51,'Footnotes list'!$D$9:$E$58,2,FALSE) ) )","v":""},null,null,null,null,{"$f":"IF(TRIM(DA51)=\"\", \"\", IF(VLOOKUP(DA51,'Footnotes list'!$D$9:$E$58,2,FALSE)=0,\"\",VLOOKUP(DA51,'Footnotes list'!$D$9:$E$58,2,FALSE) ) )","v":""},null,null,null,null,{"$f":"IF(TRIM(DF51)=\"\", \"\", IF(VLOOKUP(DF51,'Footnotes list'!$D$9:$E$58,2,FALSE)=0,\"\",VLOOKUP(DF51,'Footnotes list'!$D$9:$E$58,2,FALSE) ) )","v":""},null,null,null,null,{"$f":"IF(TRIM(DK51)=\"\", \"\", IF(VLOOKUP(DK51,'Footnotes list'!$D$9:$E$58,2,FALSE)=0,\"\",VLOOKUP(DK51,'Footnotes list'!$D$9:$E$58,2,FALSE) ) )","v":""},null,null,null,null,{"$f":"IF(TRIM(DP51)=\"\", \"\", IF(VLOOKUP(DP51,'Footnotes list'!$D$9:$E$58,2,FALSE)=0,\"\",VLOOKUP(DP51,'Footnotes list'!$D$9:$E$58,2,FALSE) ) )","v":""},null,null,null,null,{"$f":"IF(TRIM(DU51)=\"\", \"\", IF(VLOOKUP(DU51,'Footnotes list'!$D$9:$E$58,2,FALSE)=0,\"\",VLOOKUP(DU51,'Footnotes list'!$D$9:$E$58,2,FALSE) ) )","v":""},null,null,null,null,{"$f":"IF(TRIM(DZ51)=\"\", \"\", IF(VLOOKUP(DZ51,'Footnotes list'!$D$9:$E$58,2,FALSE)=0,\"\",VLOOKUP(DZ51,'Footnotes list'!$D$9:$E$58,2,FALSE) ) )","v":""},null,null,null,null,{"$f":"IF(TRIM(EE51)=\"\", \"\", IF(VLOOKUP(EE51,'Footnotes list'!$D$9:$E$58,2,FALSE)=0,\"\",VLOOKUP(EE51,'Footnotes list'!$D$9:$E$58,2,FALSE) ) )","v":""},null,null,null,null,{"$f":"IF(TRIM(EJ51)=\"\", \"\", IF(VLOOKUP(EJ51,'Footnotes list'!$D$9:$E$58,2,FALSE)=0,\"\",VLOOKUP(EJ51,'Footnotes list'!$D$9:$E$58,2,FALSE) ) )","v":""},null,null,null,null,{"$f":"IF(TRIM(EO51)=\"\", \"\", IF(VLOOKUP(EO51,'Footnotes list'!$D$9:$E$58,2,FALSE)=0,\"\",VLOOKUP(EO51,'Footnotes list'!$D$9:$E$58,2,FALSE) ) )","v":""},null,null,null,null,{"$f":"IF(TRIM(ET51)=\"\", \"\", IF(VLOOKUP(ET51,'Footnotes list'!$D$9:$E$58,2,FALSE)=0,\"\",VLOOKUP(ET51,'Footnotes list'!$D$9:$E$58,2,FALSE) ) )","v":""},null,null,null,null,{"$f":"IF(TRIM(EY51)=\"\", \"\", IF(VLOOKUP(EY51,'Footnotes list'!$D$9:$E$58,2,FALSE)=0,\"\",VLOOKUP(EY51,'Footnotes list'!$D$9:$E$58,2,FALSE) ) )","v":""}]
[null,null,"C16-C18","NMKT","non-market activities",null,null,null,null,null,{"$f":"IF(TRIM(J52)=\"\", \"\", IF(VLOOKUP(J52,'Footnotes list'!$D$9:$E$58,2,FALSE)=0,\"\",VLOOKUP(J52,'Footnotes list'!$D$9:$E$58,2,FALSE) ) )","v":""},null,null,null,null,{"$f":"IF(TRIM(O52)=\"\", \"\", IF(VLOOKUP(O52,'Footnotes list'!$D$9:$E$58,2,FALSE)=0,\"\",VLOOKUP(O52,'Footnotes list'!$D$9:$E$58,2,FALSE) ) )","v":""},null,null,null,null,{"$f":"IF(TRIM(T52)=\"\", \"\", IF(VLOOKUP(T52,'Footnotes list'!$D$9:$E$58,2,FALSE)=0,\"\",VLOOKUP(T52,'Footnotes list'!$D$9:$E$58,2,FALSE) ) )","v":""},null,null,null,null,{"$f":"IF(TRIM(Y52)=\"\", \"\", IF(VLOOKUP(Y52,'Footnotes list'!$D$9:$E$58,2,FALSE)=0,\"\",VLOOKUP(Y52,'Footnotes list'!$D$9:$E$58,2,FALSE) ) )","v":""},null,null,null,null,{"$f":"IF(TRIM(AD52)=\"\", \"\", IF(VLOOKUP(AD52,'Footnotes list'!$D$9:$E$58,2,FALSE)=0,\"\",VLOOKUP(AD52,'Footnotes list'!$D$9:$E$58,2,FALSE) ) )","v":""},null,null,null,null,{"$f":"IF(TRIM(AI52)=\"\", \"\", IF(VLOOKUP(AI52,'Footnotes list'!$D$9:$E$58,2,FALSE)=0,\"\",VLOOKUP(AI52,'Footnotes list'!$D$9:$E$58,2,FALSE) ) )","v":""},null,null,null,null,{"$f":"IF(TRIM(AN52)=\"\", \"\", IF(VLOOKUP(AN52,'Footnotes list'!$D$9:$E$58,2,FALSE)=0,\"\",VLOOKUP(AN52,'Footnotes list'!$D$9:$E$58,2,FALSE) ) )","v":""},null,null,null,null,{"$f":"IF(TRIM(AS52)=\"\", \"\", IF(VLOOKUP(AS52,'Footnotes list'!$D$9:$E$58,2,FALSE)=0,\"\",VLOOKUP(AS52,'Footnotes list'!$D$9:$E$58,2,FALSE) ) )","v":""},null,null,null,null,{"$f":"IF(TRIM(AX52)=\"\", \"\", IF(VLOOKUP(AX52,'Footnotes list'!$D$9:$E$58,2,FALSE)=0,\"\",VLOOKUP(AX52,'Footnotes list'!$D$9:$E$58,2,FALSE) ) )","v":""},null,null,null,null,{"$f":"IF(TRIM(BC52)=\"\", \"\", IF(VLOOKUP(BC52,'Footnotes list'!$D$9:$E$58,2,FALSE)=0,\"\",VLOOKUP(BC52,'Footnotes list'!$D$9:$E$58,2,FALSE) ) )","v":""},null,null,null,null,{"$f":"IF(TRIM(BH52)=\"\", \"\", IF(VLOOKUP(BH52,'Footnotes list'!$D$9:$E$58,2,FALSE)=0,\"\",VLOOKUP(BH52,'Footnotes list'!$D$9:$E$58,2,FALSE) ) )","v":""},null,null,null,null,{"$f":"IF(TRIM(BM52)=\"\", \"\", IF(VLOOKUP(BM52,'Footnotes list'!$D$9:$E$58,2,FALSE)=0,\"\",VLOOKUP(BM52,'Footnotes list'!$D$9:$E$58,2,FALSE) ) )","v":""},null,null,null,null,{"$f":"IF(TRIM(BR52)=\"\", \"\", IF(VLOOKUP(BR52,'Footnotes list'!$D$9:$E$58,2,FALSE)=0,\"\",VLOOKUP(BR52,'Footnotes list'!$D$9:$E$58,2,FALSE) ) )","v":""},null,null,null,null,{"$f":"IF(TRIM(BW52)=\"\", \"\", IF(VLOOKUP(BW52,'Footnotes list'!$D$9:$E$58,2,FALSE)=0,\"\",VLOOKUP(BW52,'Footnotes list'!$D$9:$E$58,2,FALSE) ) )","v":""},null,null,null,null,{"$f":"IF(TRIM(CB52)=\"\", \"\", IF(VLOOKUP(CB52,'Footnotes list'!$D$9:$E$58,2,FALSE)=0,\"\",VLOOKUP(CB52,'Footnotes list'!$D$9:$E$58,2,FALSE) ) )","v":""},null,null,null,null,{"$f":"IF(TRIM(CG52)=\"\", \"\", IF(VLOOKUP(CG52,'Footnotes list'!$D$9:$E$58,2,FALSE)=0,\"\",VLOOKUP(CG52,'Footnotes list'!$D$9:$E$58,2,FALSE) ) )","v":""},null,null,null,null,{"$f":"IF(TRIM(CL52)=\"\", \"\", IF(VLOOKUP(CL52,'Footnotes list'!$D$9:$E$58,2,FALSE)=0,\"\",VLOOKUP(CL52,'Footnotes list'!$D$9:$E$58,2,FALSE) ) )","v":""},null,null,null,null,{"$f":"IF(TRIM(CQ52)=\"\", \"\", IF(VLOOKUP(CQ52,'Footnotes list'!$D$9:$E$58,2,FALSE)=0,\"\",VLOOKUP(CQ52,'Footnotes list'!$D$9:$E$58,2,FALSE) ) )","v":""},null,null,null,null,{"$f":"IF(TRIM(CV52)=\"\", \"\", IF(VLOOKUP(CV52,'Footnotes list'!$D$9:$E$58,2,FALSE)=0,\"\",VLOOKUP(CV52,'Footnotes list'!$D$9:$E$58,2,FALSE) ) )","v":""},null,null,null,null,{"$f":"IF(TRIM(DA52)=\"\", \"\", IF(VLOOKUP(DA52,'Footnotes list'!$D$9:$E$58,2,FALSE)=0,\"\",VLOOKUP(DA52,'Footnotes list'!$D$9:$E$58,2,FALSE) ) )","v":""},null,null,null,null,{"$f":"IF(TRIM(DF52)=\"\", \"\", IF(VLOOKUP(DF52,'Footnotes list'!$D$9:$E$58,2,FALSE)=0,\"\",VLOOKUP(DF52,'Footnotes list'!$D$9:$E$58,2,FALSE) ) )","v":""},null,null,null,null,{"$f":"IF(TRIM(DK52)=\"\", \"\", IF(VLOOKUP(DK52,'Footnotes list'!$D$9:$E$58,2,FALSE)=0,\"\",VLOOKUP(DK52,'Footnotes list'!$D$9:$E$58,2,FALSE) ) )","v":""},null,null,null,null,{"$f":"IF(TRIM(DP52)=\"\", \"\", IF(VLOOKUP(DP52,'Footnotes list'!$D$9:$E$58,2,FALSE)=0,\"\",VLOOKUP(DP52,'Footnotes list'!$D$9:$E$58,2,FALSE) ) )","v":""},null,null,null,null,{"$f":"IF(TRIM(DU52)=\"\", \"\", IF(VLOOKUP(DU52,'Footnotes list'!$D$9:$E$58,2,FALSE)=0,\"\",VLOOKUP(DU52,'Footnotes list'!$D$9:$E$58,2,FALSE) ) )","v":""},null,null,null,null,{"$f":"IF(TRIM(DZ52)=\"\", \"\", IF(VLOOKUP(DZ52,'Footnotes list'!$D$9:$E$58,2,FALSE)=0,\"\",VLOOKUP(DZ52,'Footnotes list'!$D$9:$E$58,2,FALSE) ) )","v":""},null,null,null,null,{"$f":"IF(TRIM(EE52)=\"\", \"\", IF(VLOOKUP(EE52,'Footnotes list'!$D$9:$E$58,2,FALSE)=0,\"\",VLOOKUP(EE52,'Footnotes list'!$D$9:$E$58,2,FALSE) ) )","v":""},null,null,null,null,{"$f":"IF(TRIM(EJ52)=\"\", \"\", IF(VLOOKUP(EJ52,'Footnotes list'!$D$9:$E$58,2,FALSE)=0,\"\",VLOOKUP(EJ52,'Footnotes list'!$D$9:$E$58,2,FALSE) ) )","v":""},null,null,null,null,{"$f":"IF(TRIM(EO52)=\"\", \"\", IF(VLOOKUP(EO52,'Footnotes list'!$D$9:$E$58,2,FALSE)=0,\"\",VLOOKUP(EO52,'Footnotes list'!$D$9:$E$58,2,FALSE) ) )","v":""},null,null,null,null,{"$f":"IF(TRIM(ET52)=\"\", \"\", IF(VLOOKUP(ET52,'Footnotes list'!$D$9:$E$58,2,FALSE)=0,\"\",VLOOKUP(ET52,'Footnotes list'!$D$9:$E$58,2,FALSE) ) )","v":""},null,null,null,null,{"$f":"IF(TRIM(EY52)=\"\", \"\", IF(VLOOKUP(EY52,'Footnotes list'!$D$9:$E$58,2,FALSE)=0,\"\",VLOOKUP(EY52,'Footnotes list'!$D$9:$E$58,2,FALSE) ) )","v":""}]
[null,null,"C16-C18","OWN_USE","activities for own final use",null,null,null,null,null,{"$f":"IF(TRIM(J53)=\"\", \"\", IF(VLOOKUP(J53,'Footnotes list'!$D$9:$E$58,2,FALSE)=0,\"\",VLOOKUP(J53,'Footnotes list'!$D$9:$E$58,2,FALSE) ) )","v":""},null,null,null,null,{"$f":"IF(TRIM(O53)=\"\", \"\", IF(VLOOKUP(O53,'Footnotes list'!$D$9:$E$58,2,FALSE)=0,\"\",VLOOKUP(O53,'Footnotes list'!$D$9:$E$58,2,FALSE) ) )","v":""},null,null,null,null,{"$f":"IF(TRIM(T53)=\"\", \"\", IF(VLOOKUP(T53,'Footnotes list'!$D$9:$E$58,2,FALSE)=0,\"\",VLOOKUP(T53,'Footnotes list'!$D$9:$E$58,2,FALSE) ) )","v":""},null,null,null,null,{"$f":"IF(TRIM(Y53)=\"\", \"\", IF(VLOOKUP(Y53,'Footnotes list'!$D$9:$E$58,2,FALSE)=0,\"\",VLOOKUP(Y53,'Footnotes list'!$D$9:$E$58,2,FALSE) ) )","v":""},null,null,null,null,{"$f":"IF(TRIM(AD53)=\"\", \"\", IF(VLOOKUP(AD53,'Footnotes list'!$D$9:$E$58,2,FALSE)=0,\"\",VLOOKUP(AD53,'Footnotes list'!$D$9:$E$58,2,FALSE) ) )","v":""},null,null,null,null,{"$f":"IF(TRIM(AI53)=\"\", \"\", IF(VLOOKUP(AI53,'Footnotes list'!$D$9:$E$58,2,FALSE)=0,\"\",VLOOKUP(AI53,'Footnotes list'!$D$9:$E$58,2,FALSE) ) )","v":""},null,null,null,null,{"$f":"IF(TRIM(AN53)=\"\", \"\", IF(VLOOKUP(AN53,'Footnotes list'!$D$9:$E$58,2,FALSE)=0,\"\",VLOOKUP(AN53,'Footnotes list'!$D$9:$E$58,2,FALSE) ) )","v":""},null,null,null,null,{"$f":"IF(TRIM(AS53)=\"\", \"\", IF(VLOOKUP(AS53,'Footnotes list'!$D$9:$E$58,2,FALSE)=0,\"\",VLOOKUP(AS53,'Footnotes list'!$D$9:$E$58,2,FALSE) ) )","v":""},null,null,null,null,{"$f":"IF(TRIM(AX53)=\"\", \"\", IF(VLOOKUP(AX53,'Footnotes list'!$D$9:$E$58,2,FALSE)=0,\"\",VLOOKUP(AX53,'Footnotes list'!$D$9:$E$58,2,FALSE) ) )","v":""},null,null,null,null,{"$f":"IF(TRIM(BC53)=\"\", \"\", IF(VLOOKUP(BC53,'Footnotes list'!$D$9:$E$58,2,FALSE)=0,\"\",VLOOKUP(BC53,'Footnotes list'!$D$9:$E$58,2,FALSE) ) )","v":""},null,null,null,null,{"$f":"IF(TRIM(BH53)=\"\", \"\", IF(VLOOKUP(BH53,'Footnotes list'!$D$9:$E$58,2,FALSE)=0,\"\",VLOOKUP(BH53,'Footnotes list'!$D$9:$E$58,2,FALSE) ) )","v":""},null,null,null,null,{"$f":"IF(TRIM(BM53)=\"\", \"\", IF(VLOOKUP(BM53,'Footnotes list'!$D$9:$E$58,2,FALSE)=0,\"\",VLOOKUP(BM53,'Footnotes list'!$D$9:$E$58,2,FALSE) ) )","v":""},null,null,null,null,{"$f":"IF(TRIM(BR53)=\"\", \"\", IF(VLOOKUP(BR53,'Footnotes list'!$D$9:$E$58,2,FALSE)=0,\"\",VLOOKUP(BR53,'Footnotes list'!$D$9:$E$58,2,FALSE) ) )","v":""},null,null,null,null,{"$f":"IF(TRIM(BW53)=\"\", \"\", IF(VLOOKUP(BW53,'Footnotes list'!$D$9:$E$58,2,FALSE)=0,\"\",VLOOKUP(BW53,'Footnotes list'!$D$9:$E$58,2,FALSE) ) )","v":""},null,null,null,null,{"$f":"IF(TRIM(CB53)=\"\", \"\", IF(VLOOKUP(CB53,'Footnotes list'!$D$9:$E$58,2,FALSE)=0,\"\",VLOOKUP(CB53,'Footnotes list'!$D$9:$E$58,2,FALSE) ) )","v":""},null,null,null,null,{"$f":"IF(TRIM(CG53)=\"\", \"\", IF(VLOOKUP(CG53,'Footnotes list'!$D$9:$E$58,2,FALSE)=0,\"\",VLOOKUP(CG53,'Footnotes list'!$D$9:$E$58,2,FALSE) ) )","v":""},null,null,null,null,{"$f":"IF(TRIM(CL53)=\"\", \"\", IF(VLOOKUP(CL53,'Footnotes list'!$D$9:$E$58,2,FALSE)=0,\"\",VLOOKUP(CL53,'Footnotes list'!$D$9:$E$58,2,FALSE) ) )","v":""},null,null,null,null,{"$f":"IF(TRIM(CQ53)=\"\", \"\", IF(VLOOKUP(CQ53,'Footnotes list'!$D$9:$E$58,2,FALSE)=0,\"\",VLOOKUP(CQ53,'Footnotes list'!$D$9:$E$58,2,FALSE) ) )","v":""},null,null,null,null,{"$f":"IF(TRIM(CV53)=\"\", \"\", IF(VLOOKUP(CV53,'Footnotes list'!$D$9:$E$58,2,FALSE)=0,\"\",VLOOKUP(CV53,'Footnotes list'!$D$9:$E$58,2,FALSE) ) )","v":""},null,null,null,null,{"$f":"IF(TRIM(DA53)=\"\", \"\", IF(VLOOKUP(DA53,'Footnotes list'!$D$9:$E$58,2,FALSE)=0,\"\",VLOOKUP(DA53,'Footnotes list'!$D$9:$E$58,2,FALSE) ) )","v":""},null,null,null,null,{"$f":"IF(TRIM(DF53)=\"\", \"\", IF(VLOOKUP(DF53,'Footnotes list'!$D$9:$E$58,2,FALSE)=0,\"\",VLOOKUP(DF53,'Footnotes list'!$D$9:$E$58,2,FALSE) ) )","v":""},null,null,null,null,{"$f":"IF(TRIM(DK53)=\"\", \"\", IF(VLOOKUP(DK53,'Footnotes list'!$D$9:$E$58,2,FALSE)=0,\"\",VLOOKUP(DK53,'Footnotes list'!$D$9:$E$58,2,FALSE) ) )","v":""},null,null,null,null,{"$f":"IF(TRIM(DP53)=\"\", \"\", IF(VLOOKUP(DP53,'Footnotes list'!$D$9:$E$58,2,FALSE)=0,\"\",VLOOKUP(DP53,'Footnotes list'!$D$9:$E$58,2,FALSE) ) )","v":""},null,null,null,null,{"$f":"IF(TRIM(DU53)=\"\", \"\", IF(VLOOKUP(DU53,'Footnotes list'!$D$9:$E$58,2,FALSE)=0,\"\",VLOOKUP(DU53,'Footnotes list'!$D$9:$E$58,2,FALSE) ) )","v":""},null,null,null,null,{"$f":"IF(TRIM(DZ53)=\"\", \"\", IF(VLOOKUP(DZ53,'Footnotes list'!$D$9:$E$58,2,FALSE)=0,\"\",VLOOKUP(DZ53,'Footnotes list'!$D$9:$E$58,2,FALSE) ) )","v":""},null,null,null,null,{"$f":"IF(TRIM(EE53)=\"\", \"\", IF(VLOOKUP(EE53,'Footnotes list'!$D$9:$E$58,2,FALSE)=0,\"\",VLOOKUP(EE53,'Footnotes list'!$D$9:$E$58,2,FALSE) ) )","v":""},null,null,null,null,{"$f":"IF(TRIM(EJ53)=\"\", \"\", IF(VLOOKUP(EJ53,'Footnotes list'!$D$9:$E$58,2,FALSE)=0,\"\",VLOOKUP(EJ53,'Footnotes list'!$D$9:$E$58,2,FALSE) ) )","v":""},null,null,null,null,{"$f":"IF(TRIM(EO53)=\"\", \"\", IF(VLOOKUP(EO53,'Footnotes list'!$D$9:$E$58,2,FALSE)=0,\"\",VLOOKUP(EO53,'Footnotes list'!$D$9:$E$58,2,FALSE) ) )","v":""},null,null,null,null,{"$f":"IF(TRIM(ET53)=\"\", \"\", IF(VLOOKUP(ET53,'Footnotes list'!$D$9:$E$58,2,FALSE)=0,\"\",VLOOKUP(ET53,'Footnotes list'!$D$9:$E$58,2,FALSE) ) )","v":""},null,null,null,null,{"$f":"IF(TRIM(EY53)=\"\", \"\", IF(VLOOKUP(EY53,'Footnotes list'!$D$9:$E$58,2,FALSE)=0,\"\",VLOOKUP(EY53,'Footnotes list'!$D$9:$E$58,2,FALSE) ) )","v":""}]
[null,null,"C16-C18","MKT","market activities, including:",null,null,null,null,null,{"$f":"IF(TRIM(J54)=\"\", \"\", IF(VLOOKUP(J54,'Footnotes list'!$D$9:$E$58,2,FALSE)=0,\"\",VLOOKUP(J54,'Footnotes list'!$D$9:$E$58,2,FALSE) ) )","v":""},null,null,null,null,{"$f":"IF(TRIM(O54)=\"\", \"\", IF(VLOOKUP(O54,'Footnotes list'!$D$9:$E$58,2,FALSE)=0,\"\",VLOOKUP(O54,'Footnotes list'!$D$9:$E$58,2,FALSE) ) )","v":""},null,null,null,null,{"$f":"IF(TRIM(T54)=\"\", \"\", IF(VLOOKUP(T54,'Footnotes list'!$D$9:$E$58,2,FALSE)=0,\"\",VLOOKUP(T54,'Footnotes list'!$D$9:$E$58,2,FALSE) ) )","v":""},null,null,null,null,{"$f":"IF(TRIM(Y54)=\"\", \"\", IF(VLOOKUP(Y54,'Footnotes list'!$D$9:$E$58,2,FALSE)=0,\"\",VLOOKUP(Y54,'Footnotes list'!$D$9:$E$58,2,FALSE) ) )","v":""},null,null,null,null,{"$f":"IF(TRIM(AD54)=\"\", \"\", IF(VLOOKUP(AD54,'Footnotes list'!$D$9:$E$58,2,FALSE)=0,\"\",VLOOKUP(AD54,'Footnotes list'!$D$9:$E$58,2,FALSE) ) )","v":""},null,null,null,null,{"$f":"IF(TRIM(AI54)=\"\", \"\", IF(VLOOKUP(AI54,'Footnotes list'!$D$9:$E$58,2,FALSE)=0,\"\",VLOOKUP(AI54,'Footnotes list'!$D$9:$E$58,2,FALSE) ) )","v":""},null,null,null,null,{"$f":"IF(TRIM(AN54)=\"\", \"\", IF(VLOOKUP(AN54,'Footnotes list'!$D$9:$E$58,2,FALSE)=0,\"\",VLOOKUP(AN54,'Footnotes list'!$D$9:$E$58,2,FALSE) ) )","v":""},null,null,null,null,{"$f":"IF(TRIM(AS54)=\"\", \"\", IF(VLOOKUP(AS54,'Footnotes list'!$D$9:$E$58,2,FALSE)=0,\"\",VLOOKUP(AS54,'Footnotes list'!$D$9:$E$58,2,FALSE) ) )","v":""},null,null,null,null,{"$f":"IF(TRIM(AX54)=\"\", \"\", IF(VLOOKUP(AX54,'Footnotes list'!$D$9:$E$58,2,FALSE)=0,\"\",VLOOKUP(AX54,'Footnotes list'!$D$9:$E$58,2,FALSE) ) )","v":""},null,null,null,null,{"$f":"IF(TRIM(BC54)=\"\", \"\", IF(VLOOKUP(BC54,'Footnotes list'!$D$9:$E$58,2,FALSE)=0,\"\",VLOOKUP(BC54,'Footnotes list'!$D$9:$E$58,2,FALSE) ) )","v":""},null,null,null,null,{"$f":"IF(TRIM(BH54)=\"\", \"\", IF(VLOOKUP(BH54,'Footnotes list'!$D$9:$E$58,2,FALSE)=0,\"\",VLOOKUP(BH54,'Footnotes list'!$D$9:$E$58,2,FALSE) ) )","v":""},null,null,null,null,{"$f":"IF(TRIM(BM54)=\"\", \"\", IF(VLOOKUP(BM54,'Footnotes list'!$D$9:$E$58,2,FALSE)=0,\"\",VLOOKUP(BM54,'Footnotes list'!$D$9:$E$58,2,FALSE) ) )","v":""},null,null,null,null,{"$f":"IF(TRIM(BR54)=\"\", \"\", IF(VLOOKUP(BR54,'Footnotes list'!$D$9:$E$58,2,FALSE)=0,\"\",VLOOKUP(BR54,'Footnotes list'!$D$9:$E$58,2,FALSE) ) )","v":""},null,null,null,null,{"$f":"IF(TRIM(BW54)=\"\", \"\", IF(VLOOKUP(BW54,'Footnotes list'!$D$9:$E$58,2,FALSE)=0,\"\",VLOOKUP(BW54,'Footnotes list'!$D$9:$E$58,2,FALSE) ) )","v":""},null,null,null,null,{"$f":"IF(TRIM(CB54)=\"\", \"\", IF(VLOOKUP(CB54,'Footnotes list'!$D$9:$E$58,2,FALSE)=0,\"\",VLOOKUP(CB54,'Footnotes list'!$D$9:$E$58,2,FALSE) ) )","v":""},null,null,null,null,{"$f":"IF(TRIM(CG54)=\"\", \"\", IF(VLOOKUP(CG54,'Footnotes list'!$D$9:$E$58,2,FALSE)=0,\"\",VLOOKUP(CG54,'Footnotes list'!$D$9:$E$58,2,FALSE) ) )","v":""},null,null,null,null,{"$f":"IF(TRIM(CL54)=\"\", \"\", IF(VLOOKUP(CL54,'Footnotes list'!$D$9:$E$58,2,FALSE)=0,\"\",VLOOKUP(CL54,'Footnotes list'!$D$9:$E$58,2,FALSE) ) )","v":""},null,null,null,null,{"$f":"IF(TRIM(CQ54)=\"\", \"\", IF(VLOOKUP(CQ54,'Footnotes list'!$D$9:$E$58,2,FALSE)=0,\"\",VLOOKUP(CQ54,'Footnotes list'!$D$9:$E$58,2,FALSE) ) )","v":""},null,null,null,null,{"$f":"IF(TRIM(CV54)=\"\", \"\", IF(VLOOKUP(CV54,'Footnotes list'!$D$9:$E$58,2,FALSE)=0,\"\",VLOOKUP(CV54,'Footnotes list'!$D$9:$E$58,2,FALSE) ) )","v":""},null,null,null,null,{"$f":"IF(TRIM(DA54)=\"\", \"\", IF(VLOOKUP(DA54,'Footnotes list'!$D$9:$E$58,2,FALSE)=0,\"\",VLOOKUP(DA54,'Footnotes list'!$D$9:$E$58,2,FALSE) ) )","v":""},null,null,null,null,{"$f":"IF(TRIM(DF54)=\"\", \"\", IF(VLOOKUP(DF54,'Footnotes list'!$D$9:$E$58,2,FALSE)=0,\"\",VLOOKUP(DF54,'Footnotes list'!$D$9:$E$58,2,FALSE) ) )","v":""},null,null,null,null,{"$f":"IF(TRIM(DK54)=\"\", \"\", IF(VLOOKUP(DK54,'Footnotes list'!$D$9:$E$58,2,FALSE)=0,\"\",VLOOKUP(DK54,'Footnotes list'!$D$9:$E$58,2,FALSE) ) )","v":""},null,null,null,null,{"$f":"IF(TRIM(DP54)=\"\", \"\", IF(VLOOKUP(DP54,'Footnotes list'!$D$9:$E$58,2,FALSE)=0,\"\",VLOOKUP(DP54,'Footnotes list'!$D$9:$E$58,2,FALSE) ) )","v":""},null,null,null,null,{"$f":"IF(TRIM(DU54)=\"\", \"\", IF(VLOOKUP(DU54,'Footnotes list'!$D$9:$E$58,2,FALSE)=0,\"\",VLOOKUP(DU54,'Footnotes list'!$D$9:$E$58,2,FALSE) ) )","v":""},null,null,null,null,{"$f":"IF(TRIM(DZ54)=\"\", \"\", IF(VLOOKUP(DZ54,'Footnotes list'!$D$9:$E$58,2,FALSE)=0,\"\",VLOOKUP(DZ54,'Footnotes list'!$D$9:$E$58,2,FALSE) ) )","v":""},null,null,null,null,{"$f":"IF(TRIM(EE54)=\"\", \"\", IF(VLOOKUP(EE54,'Footnotes list'!$D$9:$E$58,2,FALSE)=0,\"\",VLOOKUP(EE54,'Footnotes list'!$D$9:$E$58,2,FALSE) ) )","v":""},null,null,null,null,{"$f":"IF(TRIM(EJ54)=\"\", \"\", IF(VLOOKUP(EJ54,'Footnotes list'!$D$9:$E$58,2,FALSE)=0,\"\",VLOOKUP(EJ54,'Footnotes list'!$D$9:$E$58,2,FALSE) ) )","v":""},null,null,null,null,{"$f":"IF(TRIM(EO54)=\"\", \"\", IF(VLOOKUP(EO54,'Footnotes list'!$D$9:$E$58,2,FALSE)=0,\"\",VLOOKUP(EO54,'Footnotes list'!$D$9:$E$58,2,FALSE) ) )","v":""},null,null,null,null,{"$f":"IF(TRIM(ET54)=\"\", \"\", IF(VLOOKUP(ET54,'Footnotes list'!$D$9:$E$58,2,FALSE)=0,\"\",VLOOKUP(ET54,'Footnotes list'!$D$9:$E$58,2,FALSE) ) )","v":""},null,null,null,null,{"$f":"IF(TRIM(EY54)=\"\", \"\", IF(VLOOKUP(EY54,'Footnotes list'!$D$9:$E$58,2,FALSE)=0,\"\",VLOOKUP(EY54,'Footnotes list'!$D$9:$E$58,2,FALSE) ) )","v":""}]
[null,null,"C16-C18","ES_CS","environmental specific services",null,null,null,null,null,{"$f":"IF(TRIM(J55)=\"\", \"\", IF(VLOOKUP(J55,'Footnotes list'!$D$9:$E$58,2,FALSE)=0,\"\",VLOOKUP(J55,'Footnotes list'!$D$9:$E$58,2,FALSE) ) )","v":""},null,null,null,null,{"$f":"IF(TRIM(O55)=\"\", \"\", IF(VLOOKUP(O55,'Footnotes list'!$D$9:$E$58,2,FALSE)=0,\"\",VLOOKUP(O55,'Footnotes list'!$D$9:$E$58,2,FALSE) ) )","v":""},null,null,null,null,{"$f":"IF(TRIM(T55)=\"\", \"\", IF(VLOOKUP(T55,'Footnotes list'!$D$9:$E$58,2,FALSE)=0,\"\",VLOOKUP(T55,'Footnotes list'!$D$9:$E$58,2,FALSE) ) )","v":""},null,null,null,null,{"$f":"IF(TRIM(Y55)=\"\", \"\", IF(VLOOKUP(Y55,'Footnotes list'!$D$9:$E$58,2,FALSE)=0,\"\",VLOOKUP(Y55,'Footnotes list'!$D$9:$E$58,2,FALSE) ) )","v":""},null,null,null,null,{"$f":"IF(TRIM(AD55)=\"\", \"\", IF(VLOOKUP(AD55,'Footnotes list'!$D$9:$E$58,2,FALSE)=0,\"\",VLOOKUP(AD55,'Footnotes list'!$D$9:$E$58,2,FALSE) ) )","v":""},null,null,null,null,{"$f":"IF(TRIM(AI55)=\"\", \"\", IF(VLOOKUP(AI55,'Footnotes list'!$D$9:$E$58,2,FALSE)=0,\"\",VLOOKUP(AI55,'Footnotes list'!$D$9:$E$58,2,FALSE) ) )","v":""},null,null,null,null,{"$f":"IF(TRIM(AN55)=\"\", \"\", IF(VLOOKUP(AN55,'Footnotes list'!$D$9:$E$58,2,FALSE)=0,\"\",VLOOKUP(AN55,'Footnotes list'!$D$9:$E$58,2,FALSE) ) )","v":""},null,null,null,null,{"$f":"IF(TRIM(AS55)=\"\", \"\", IF(VLOOKUP(AS55,'Footnotes list'!$D$9:$E$58,2,FALSE)=0,\"\",VLOOKUP(AS55,'Footnotes list'!$D$9:$E$58,2,FALSE) ) )","v":""},null,null,null,null,{"$f":"IF(TRIM(AX55)=\"\", \"\", IF(VLOOKUP(AX55,'Footnotes list'!$D$9:$E$58,2,FALSE)=0,\"\",VLOOKUP(AX55,'Footnotes list'!$D$9:$E$58,2,FALSE) ) )","v":""},null,null,null,null,{"$f":"IF(TRIM(BC55)=\"\", \"\", IF(VLOOKUP(BC55,'Footnotes list'!$D$9:$E$58,2,FALSE)=0,\"\",VLOOKUP(BC55,'Footnotes list'!$D$9:$E$58,2,FALSE) ) )","v":""},null,null,null,null,{"$f":"IF(TRIM(BH55)=\"\", \"\", IF(VLOOKUP(BH55,'Footnotes list'!$D$9:$E$58,2,FALSE)=0,\"\",VLOOKUP(BH55,'Footnotes list'!$D$9:$E$58,2,FALSE) ) )","v":""},null,null,null,null,{"$f":"IF(TRIM(BM55)=\"\", \"\", IF(VLOOKUP(BM55,'Footnotes list'!$D$9:$E$58,2,FALSE)=0,\"\",VLOOKUP(BM55,'Footnotes list'!$D$9:$E$58,2,FALSE) ) )","v":""},null,null,null,null,{"$f":"IF(TRIM(BR55)=\"\", \"\", IF(VLOOKUP(BR55,'Footnotes list'!$D$9:$E$58,2,FALSE)=0,\"\",VLOOKUP(BR55,'Footnotes list'!$D$9:$E$58,2,FALSE) ) )","v":""},null,null,null,null,{"$f":"IF(TRIM(BW55)=\"\", \"\", IF(VLOOKUP(BW55,'Footnotes list'!$D$9:$E$58,2,FALSE)=0,\"\",VLOOKUP(BW55,'Footnotes list'!$D$9:$E$58,2,FALSE) ) )","v":""},null,null,null,null,{"$f":"IF(TRIM(CB55)=\"\", \"\", IF(VLOOKUP(CB55,'Footnotes list'!$D$9:$E$58,2,FALSE)=0,\"\",VLOOKUP(CB55,'Footnotes list'!$D$9:$E$58,2,FALSE) ) )","v":""},null,null,null,null,{"$f":"IF(TRIM(CG55)=\"\", \"\", IF(VLOOKUP(CG55,'Footnotes list'!$D$9:$E$58,2,FALSE)=0,\"\",VLOOKUP(CG55,'Footnotes list'!$D$9:$E$58,2,FALSE) ) )","v":""},null,null,null,null,{"$f":"IF(TRIM(CL55)=\"\", \"\", IF(VLOOKUP(CL55,'Footnotes list'!$D$9:$E$58,2,FALSE)=0,\"\",VLOOKUP(CL55,'Footnotes list'!$D$9:$E$58,2,FALSE) ) )","v":""},null,null,null,null,{"$f":"IF(TRIM(CQ55)=\"\", \"\", IF(VLOOKUP(CQ55,'Footnotes list'!$D$9:$E$58,2,FALSE)=0,\"\",VLOOKUP(CQ55,'Footnotes list'!$D$9:$E$58,2,FALSE) ) )","v":""},null,null,null,null,{"$f":"IF(TRIM(CV55)=\"\", \"\", IF(VLOOKUP(CV55,'Footnotes list'!$D$9:$E$58,2,FALSE)=0,\"\",VLOOKUP(CV55,'Footnotes list'!$D$9:$E$58,2,FALSE) ) )","v":""},null,null,null,null,{"$f":"IF(TRIM(DA55)=\"\", \"\", IF(VLOOKUP(DA55,'Footnotes list'!$D$9:$E$58,2,FALSE)=0,\"\",VLOOKUP(DA55,'Footnotes list'!$D$9:$E$58,2,FALSE) ) )","v":""},null,null,null,null,{"$f":"IF(TRIM(DF55)=\"\", \"\", IF(VLOOKUP(DF55,'Footnotes list'!$D$9:$E$58,2,FALSE)=0,\"\",VLOOKUP(DF55,'Footnotes list'!$D$9:$E$58,2,FALSE) ) )","v":""},null,null,null,null,{"$f":"IF(TRIM(DK55)=\"\", \"\", IF(VLOOKUP(DK55,'Footnotes list'!$D$9:$E$58,2,FALSE)=0,\"\",VLOOKUP(DK55,'Footnotes list'!$D$9:$E$58,2,FALSE) ) )","v":""},null,null,null,null,{"$f":"IF(TRIM(DP55)=\"\", \"\", IF(VLOOKUP(DP55,'Footnotes list'!$D$9:$E$58,2,FALSE)=0,\"\",VLOOKUP(DP55,'Footnotes list'!$D$9:$E$58,2,FALSE) ) )","v":""},null,null,null,null,{"$f":"IF(TRIM(DU55)=\"\", \"\", IF(VLOOKUP(DU55,'Footnotes list'!$D$9:$E$58,2,FALSE)=0,\"\",VLOOKUP(DU55,'Footnotes list'!$D$9:$E$58,2,FALSE) ) )","v":""},null,null,null,null,{"$f":"IF(TRIM(DZ55)=\"\", \"\", IF(VLOOKUP(DZ55,'Footnotes list'!$D$9:$E$58,2,FALSE)=0,\"\",VLOOKUP(DZ55,'Footnotes list'!$D$9:$E$58,2,FALSE) ) )","v":""},null,null,null,null,{"$f":"IF(TRIM(EE55)=\"\", \"\", IF(VLOOKUP(EE55,'Footnotes list'!$D$9:$E$58,2,FALSE)=0,\"\",VLOOKUP(EE55,'Footnotes list'!$D$9:$E$58,2,FALSE) ) )","v":""},null,null,null,null,{"$f":"IF(TRIM(EJ55)=\"\", \"\", IF(VLOOKUP(EJ55,'Footnotes list'!$D$9:$E$58,2,FALSE)=0,\"\",VLOOKUP(EJ55,'Footnotes list'!$D$9:$E$58,2,FALSE) ) )","v":""},null,null,null,null,{"$f":"IF(TRIM(EO55)=\"\", \"\", IF(VLOOKUP(EO55,'Footnotes list'!$D$9:$E$58,2,FALSE)=0,\"\",VLOOKUP(EO55,'Footnotes list'!$D$9:$E$58,2,FALSE) ) )","v":""},null,null,null,null,{"$f":"IF(TRIM(ET55)=\"\", \"\", IF(VLOOKUP(ET55,'Footnotes list'!$D$9:$E$58,2,FALSE)=0,\"\",VLOOKUP(ET55,'Footnotes list'!$D$9:$E$58,2,FALSE) ) )","v":""},null,null,null,null,{"$f":"IF(TRIM(EY55)=\"\", \"\", IF(VLOOKUP(EY55,'Footnotes list'!$D$9:$E$58,2,FALSE)=0,\"\",VLOOKUP(EY55,'Footnotes list'!$D$9:$E$58,2,FALSE) ) )","v":""}]
[null,null,"C16-C18","C_REP","cleaner and resource efficient products",null,null,null,null,null,{"$f":"IF(TRIM(J56)=\"\", \"\", IF(VLOOKUP(J56,'Footnotes list'!$D$9:$E$58,2,FALSE)=0,\"\",VLOOKUP(J56,'Footnotes list'!$D$9:$E$58,2,FALSE) ) )","v":""},null,null,null,null,{"$f":"IF(TRIM(O56)=\"\", \"\", IF(VLOOKUP(O56,'Footnotes list'!$D$9:$E$58,2,FALSE)=0,\"\",VLOOKUP(O56,'Footnotes list'!$D$9:$E$58,2,FALSE) ) )","v":""},null,null,null,null,{"$f":"IF(TRIM(T56)=\"\", \"\", IF(VLOOKUP(T56,'Footnotes list'!$D$9:$E$58,2,FALSE)=0,\"\",VLOOKUP(T56,'Footnotes list'!$D$9:$E$58,2,FALSE) ) )","v":""},null,null,null,null,{"$f":"IF(TRIM(Y56)=\"\", \"\", IF(VLOOKUP(Y56,'Footnotes list'!$D$9:$E$58,2,FALSE)=0,\"\",VLOOKUP(Y56,'Footnotes list'!$D$9:$E$58,2,FALSE) ) )","v":""},null,null,null,null,{"$f":"IF(TRIM(AD56)=\"\", \"\", IF(VLOOKUP(AD56,'Footnotes list'!$D$9:$E$58,2,FALSE)=0,\"\",VLOOKUP(AD56,'Footnotes list'!$D$9:$E$58,2,FALSE) ) )","v":""},null,null,null,null,{"$f":"IF(TRIM(AI56)=\"\", \"\", IF(VLOOKUP(AI56,'Footnotes list'!$D$9:$E$58,2,FALSE)=0,\"\",VLOOKUP(AI56,'Footnotes list'!$D$9:$E$58,2,FALSE) ) )","v":""},null,null,null,null,{"$f":"IF(TRIM(AN56)=\"\", \"\", IF(VLOOKUP(AN56,'Footnotes list'!$D$9:$E$58,2,FALSE)=0,\"\",VLOOKUP(AN56,'Footnotes list'!$D$9:$E$58,2,FALSE) ) )","v":""},null,null,null,null,{"$f":"IF(TRIM(AS56)=\"\", \"\", IF(VLOOKUP(AS56,'Footnotes list'!$D$9:$E$58,2,FALSE)=0,\"\",VLOOKUP(AS56,'Footnotes list'!$D$9:$E$58,2,FALSE) ) )","v":""},null,null,null,null,{"$f":"IF(TRIM(AX56)=\"\", \"\", IF(VLOOKUP(AX56,'Footnotes list'!$D$9:$E$58,2,FALSE)=0,\"\",VLOOKUP(AX56,'Footnotes list'!$D$9:$E$58,2,FALSE) ) )","v":""},null,null,null,null,{"$f":"IF(TRIM(BC56)=\"\", \"\", IF(VLOOKUP(BC56,'Footnotes list'!$D$9:$E$58,2,FALSE)=0,\"\",VLOOKUP(BC56,'Footnotes list'!$D$9:$E$58,2,FALSE) ) )","v":""},null,null,null,null,{"$f":"IF(TRIM(BH56)=\"\", \"\", IF(VLOOKUP(BH56,'Footnotes list'!$D$9:$E$58,2,FALSE)=0,\"\",VLOOKUP(BH56,'Footnotes list'!$D$9:$E$58,2,FALSE) ) )","v":""},null,null,null,null,{"$f":"IF(TRIM(BM56)=\"\", \"\", IF(VLOOKUP(BM56,'Footnotes list'!$D$9:$E$58,2,FALSE)=0,\"\",VLOOKUP(BM56,'Footnotes list'!$D$9:$E$58,2,FALSE) ) )","v":""},null,null,null,null,{"$f":"IF(TRIM(BR56)=\"\", \"\", IF(VLOOKUP(BR56,'Footnotes list'!$D$9:$E$58,2,FALSE)=0,\"\",VLOOKUP(BR56,'Footnotes list'!$D$9:$E$58,2,FALSE) ) )","v":""},null,null,null,null,{"$f":"IF(TRIM(BW56)=\"\", \"\", IF(VLOOKUP(BW56,'Footnotes list'!$D$9:$E$58,2,FALSE)=0,\"\",VLOOKUP(BW56,'Footnotes list'!$D$9:$E$58,2,FALSE) ) )","v":""},null,null,null,null,{"$f":"IF(TRIM(CB56)=\"\", \"\", IF(VLOOKUP(CB56,'Footnotes list'!$D$9:$E$58,2,FALSE)=0,\"\",VLOOKUP(CB56,'Footnotes list'!$D$9:$E$58,2,FALSE) ) )","v":""},null,null,null,null,{"$f":"IF(TRIM(CG56)=\"\", \"\", IF(VLOOKUP(CG56,'Footnotes list'!$D$9:$E$58,2,FALSE)=0,\"\",VLOOKUP(CG56,'Footnotes list'!$D$9:$E$58,2,FALSE) ) )","v":""},null,null,null,null,{"$f":"IF(TRIM(CL56)=\"\", \"\", IF(VLOOKUP(CL56,'Footnotes list'!$D$9:$E$58,2,FALSE)=0,\"\",VLOOKUP(CL56,'Footnotes list'!$D$9:$E$58,2,FALSE) ) )","v":""},null,null,null,null,{"$f":"IF(TRIM(CQ56)=\"\", \"\", IF(VLOOKUP(CQ56,'Footnotes list'!$D$9:$E$58,2,FALSE)=0,\"\",VLOOKUP(CQ56,'Footnotes list'!$D$9:$E$58,2,FALSE) ) )","v":""},null,null,null,null,{"$f":"IF(TRIM(CV56)=\"\", \"\", IF(VLOOKUP(CV56,'Footnotes list'!$D$9:$E$58,2,FALSE)=0,\"\",VLOOKUP(CV56,'Footnotes list'!$D$9:$E$58,2,FALSE) ) )","v":""},null,null,null,null,{"$f":"IF(TRIM(DA56)=\"\", \"\", IF(VLOOKUP(DA56,'Footnotes list'!$D$9:$E$58,2,FALSE)=0,\"\",VLOOKUP(DA56,'Footnotes list'!$D$9:$E$58,2,FALSE) ) )","v":""},null,null,null,null,{"$f":"IF(TRIM(DF56)=\"\", \"\", IF(VLOOKUP(DF56,'Footnotes list'!$D$9:$E$58,2,FALSE)=0,\"\",VLOOKUP(DF56,'Footnotes list'!$D$9:$E$58,2,FALSE) ) )","v":""},null,null,null,null,{"$f":"IF(TRIM(DK56)=\"\", \"\", IF(VLOOKUP(DK56,'Footnotes list'!$D$9:$E$58,2,FALSE)=0,\"\",VLOOKUP(DK56,'Footnotes list'!$D$9:$E$58,2,FALSE) ) )","v":""},null,null,null,null,{"$f":"IF(TRIM(DP56)=\"\", \"\", IF(VLOOKUP(DP56,'Footnotes list'!$D$9:$E$58,2,FALSE)=0,\"\",VLOOKUP(DP56,'Footnotes list'!$D$9:$E$58,2,FALSE) ) )","v":""},null,null,null,null,{"$f":"IF(TRIM(DU56)=\"\", \"\", IF(VLOOKUP(DU56,'Footnotes list'!$D$9:$E$58,2,FALSE)=0,\"\",VLOOKUP(DU56,'Footnotes list'!$D$9:$E$58,2,FALSE) ) )","v":""},null,null,null,null,{"$f":"IF(TRIM(DZ56)=\"\", \"\", IF(VLOOKUP(DZ56,'Footnotes list'!$D$9:$E$58,2,FALSE)=0,\"\",VLOOKUP(DZ56,'Footnotes list'!$D$9:$E$58,2,FALSE) ) )","v":""},null,null,null,null,{"$f":"IF(TRIM(EE56)=\"\", \"\", IF(VLOOKUP(EE56,'Footnotes list'!$D$9:$E$58,2,FALSE)=0,\"\",VLOOKUP(EE56,'Footnotes list'!$D$9:$E$58,2,FALSE) ) )","v":""},null,null,null,null,{"$f":"IF(TRIM(EJ56)=\"\", \"\", IF(VLOOKUP(EJ56,'Footnotes list'!$D$9:$E$58,2,FALSE)=0,\"\",VLOOKUP(EJ56,'Footnotes list'!$D$9:$E$58,2,FALSE) ) )","v":""},null,null,null,null,{"$f":"IF(TRIM(EO56)=\"\", \"\", IF(VLOOKUP(EO56,'Footnotes list'!$D$9:$E$58,2,FALSE)=0,\"\",VLOOKUP(EO56,'Footnotes list'!$D$9:$E$58,2,FALSE) ) )","v":""},null,null,null,null,{"$f":"IF(TRIM(ET56)=\"\", \"\", IF(VLOOKUP(ET56,'Footnotes list'!$D$9:$E$58,2,FALSE)=0,\"\",VLOOKUP(ET56,'Footnotes list'!$D$9:$E$58,2,FALSE) ) )","v":""},null,null,null,null,{"$f":"IF(TRIM(EY56)=\"\", \"\", IF(VLOOKUP(EY56,'Footnotes list'!$D$9:$E$58,2,FALSE)=0,\"\",VLOOKUP(EY56,'Footnotes list'!$D$9:$E$58,2,FALSE) ) )","v":""}]
[null,null,"C19","TOT_EGSS","Total C19 - Manufacture of coke and refined petroleum products, of which:",null,null,null,null,null,{"$f":"IF(TRIM(J57)=\"\", \"\", IF(VLOOKUP(J57,'Footnotes list'!$D$9:$E$58,2,FALSE)=0,\"\",VLOOKUP(J57,'Footnotes list'!$D$9:$E$58,2,FALSE) ) )","v":""},null,null,null,null,{"$f":"IF(TRIM(O57)=\"\", \"\", IF(VLOOKUP(O57,'Footnotes list'!$D$9:$E$58,2,FALSE)=0,\"\",VLOOKUP(O57,'Footnotes list'!$D$9:$E$58,2,FALSE) ) )","v":""},null,null,null,null,{"$f":"IF(TRIM(T57)=\"\", \"\", IF(VLOOKUP(T57,'Footnotes list'!$D$9:$E$58,2,FALSE)=0,\"\",VLOOKUP(T57,'Footnotes list'!$D$9:$E$58,2,FALSE) ) )","v":""},null,null,null,null,{"$f":"IF(TRIM(Y57)=\"\", \"\", IF(VLOOKUP(Y57,'Footnotes list'!$D$9:$E$58,2,FALSE)=0,\"\",VLOOKUP(Y57,'Footnotes list'!$D$9:$E$58,2,FALSE) ) )","v":""},null,null,null,null,{"$f":"IF(TRIM(AD57)=\"\", \"\", IF(VLOOKUP(AD57,'Footnotes list'!$D$9:$E$58,2,FALSE)=0,\"\",VLOOKUP(AD57,'Footnotes list'!$D$9:$E$58,2,FALSE) ) )","v":""},null,null,null,null,{"$f":"IF(TRIM(AI57)=\"\", \"\", IF(VLOOKUP(AI57,'Footnotes list'!$D$9:$E$58,2,FALSE)=0,\"\",VLOOKUP(AI57,'Footnotes list'!$D$9:$E$58,2,FALSE) ) )","v":""},null,null,null,null,{"$f":"IF(TRIM(AN57)=\"\", \"\", IF(VLOOKUP(AN57,'Footnotes list'!$D$9:$E$58,2,FALSE)=0,\"\",VLOOKUP(AN57,'Footnotes list'!$D$9:$E$58,2,FALSE) ) )","v":""},null,null,null,null,{"$f":"IF(TRIM(AS57)=\"\", \"\", IF(VLOOKUP(AS57,'Footnotes list'!$D$9:$E$58,2,FALSE)=0,\"\",VLOOKUP(AS57,'Footnotes list'!$D$9:$E$58,2,FALSE) ) )","v":""},null,null,null,null,{"$f":"IF(TRIM(AX57)=\"\", \"\", IF(VLOOKUP(AX57,'Footnotes list'!$D$9:$E$58,2,FALSE)=0,\"\",VLOOKUP(AX57,'Footnotes list'!$D$9:$E$58,2,FALSE) ) )","v":""},null,null,null,null,{"$f":"IF(TRIM(BC57)=\"\", \"\", IF(VLOOKUP(BC57,'Footnotes list'!$D$9:$E$58,2,FALSE)=0,\"\",VLOOKUP(BC57,'Footnotes list'!$D$9:$E$58,2,FALSE) ) )","v":""},null,null,null,null,{"$f":"IF(TRIM(BH57)=\"\", \"\", IF(VLOOKUP(BH57,'Footnotes list'!$D$9:$E$58,2,FALSE)=0,\"\",VLOOKUP(BH57,'Footnotes list'!$D$9:$E$58,2,FALSE) ) )","v":""},null,null,null,null,{"$f":"IF(TRIM(BM57)=\"\", \"\", IF(VLOOKUP(BM57,'Footnotes list'!$D$9:$E$58,2,FALSE)=0,\"\",VLOOKUP(BM57,'Footnotes list'!$D$9:$E$58,2,FALSE) ) )","v":""},null,null,null,null,{"$f":"IF(TRIM(BR57)=\"\", \"\", IF(VLOOKUP(BR57,'Footnotes list'!$D$9:$E$58,2,FALSE)=0,\"\",VLOOKUP(BR57,'Footnotes list'!$D$9:$E$58,2,FALSE) ) )","v":""},null,null,null,null,{"$f":"IF(TRIM(BW57)=\"\", \"\", IF(VLOOKUP(BW57,'Footnotes list'!$D$9:$E$58,2,FALSE)=0,\"\",VLOOKUP(BW57,'Footnotes list'!$D$9:$E$58,2,FALSE) ) )","v":""},null,null,null,null,{"$f":"IF(TRIM(CB57)=\"\", \"\", IF(VLOOKUP(CB57,'Footnotes list'!$D$9:$E$58,2,FALSE)=0,\"\",VLOOKUP(CB57,'Footnotes list'!$D$9:$E$58,2,FALSE) ) )","v":""},null,null,null,null,{"$f":"IF(TRIM(CG57)=\"\", \"\", IF(VLOOKUP(CG57,'Footnotes list'!$D$9:$E$58,2,FALSE)=0,\"\",VLOOKUP(CG57,'Footnotes list'!$D$9:$E$58,2,FALSE) ) )","v":""},null,null,null,null,{"$f":"IF(TRIM(CL57)=\"\", \"\", IF(VLOOKUP(CL57,'Footnotes list'!$D$9:$E$58,2,FALSE)=0,\"\",VLOOKUP(CL57,'Footnotes list'!$D$9:$E$58,2,FALSE) ) )","v":""},null,null,null,null,{"$f":"IF(TRIM(CQ57)=\"\", \"\", IF(VLOOKUP(CQ57,'Footnotes list'!$D$9:$E$58,2,FALSE)=0,\"\",VLOOKUP(CQ57,'Footnotes list'!$D$9:$E$58,2,FALSE) ) )","v":""},null,null,null,null,{"$f":"IF(TRIM(CV57)=\"\", \"\", IF(VLOOKUP(CV57,'Footnotes list'!$D$9:$E$58,2,FALSE)=0,\"\",VLOOKUP(CV57,'Footnotes list'!$D$9:$E$58,2,FALSE) ) )","v":""},null,null,null,null,{"$f":"IF(TRIM(DA57)=\"\", \"\", IF(VLOOKUP(DA57,'Footnotes list'!$D$9:$E$58,2,FALSE)=0,\"\",VLOOKUP(DA57,'Footnotes list'!$D$9:$E$58,2,FALSE) ) )","v":""},null,null,null,null,{"$f":"IF(TRIM(DF57)=\"\", \"\", IF(VLOOKUP(DF57,'Footnotes list'!$D$9:$E$58,2,FALSE)=0,\"\",VLOOKUP(DF57,'Footnotes list'!$D$9:$E$58,2,FALSE) ) )","v":""},null,null,null,null,{"$f":"IF(TRIM(DK57)=\"\", \"\", IF(VLOOKUP(DK57,'Footnotes list'!$D$9:$E$58,2,FALSE)=0,\"\",VLOOKUP(DK57,'Footnotes list'!$D$9:$E$58,2,FALSE) ) )","v":""},null,null,null,null,{"$f":"IF(TRIM(DP57)=\"\", \"\", IF(VLOOKUP(DP57,'Footnotes list'!$D$9:$E$58,2,FALSE)=0,\"\",VLOOKUP(DP57,'Footnotes list'!$D$9:$E$58,2,FALSE) ) )","v":""},null,null,null,null,{"$f":"IF(TRIM(DU57)=\"\", \"\", IF(VLOOKUP(DU57,'Footnotes list'!$D$9:$E$58,2,FALSE)=0,\"\",VLOOKUP(DU57,'Footnotes list'!$D$9:$E$58,2,FALSE) ) )","v":""},null,null,null,null,{"$f":"IF(TRIM(DZ57)=\"\", \"\", IF(VLOOKUP(DZ57,'Footnotes list'!$D$9:$E$58,2,FALSE)=0,\"\",VLOOKUP(DZ57,'Footnotes list'!$D$9:$E$58,2,FALSE) ) )","v":""},null,null,null,null,{"$f":"IF(TRIM(EE57)=\"\", \"\", IF(VLOOKUP(EE57,'Footnotes list'!$D$9:$E$58,2,FALSE)=0,\"\",VLOOKUP(EE57,'Footnotes list'!$D$9:$E$58,2,FALSE) ) )","v":""},null,null,null,null,{"$f":"IF(TRIM(EJ57)=\"\", \"\", IF(VLOOKUP(EJ57,'Footnotes list'!$D$9:$E$58,2,FALSE)=0,\"\",VLOOKUP(EJ57,'Footnotes list'!$D$9:$E$58,2,FALSE) ) )","v":""},null,null,null,null,{"$f":"IF(TRIM(EO57)=\"\", \"\", IF(VLOOKUP(EO57,'Footnotes list'!$D$9:$E$58,2,FALSE)=0,\"\",VLOOKUP(EO57,'Footnotes list'!$D$9:$E$58,2,FALSE) ) )","v":""},null,null,null,null,{"$f":"IF(TRIM(ET57)=\"\", \"\", IF(VLOOKUP(ET57,'Footnotes list'!$D$9:$E$58,2,FALSE)=0,\"\",VLOOKUP(ET57,'Footnotes list'!$D$9:$E$58,2,FALSE) ) )","v":""},null,null,null,null,{"$f":"IF(TRIM(EY57)=\"\", \"\", IF(VLOOKUP(EY57,'Footnotes list'!$D$9:$E$58,2,FALSE)=0,\"\",VLOOKUP(EY57,'Footnotes list'!$D$9:$E$58,2,FALSE) ) )","v":""}]
[null,null,"C19","ANC","ancillary activities",null,null,null,null,null,{"$f":"IF(TRIM(J58)=\"\", \"\", IF(VLOOKUP(J58,'Footnotes list'!$D$9:$E$58,2,FALSE)=0,\"\",VLOOKUP(J58,'Footnotes list'!$D$9:$E$58,2,FALSE) ) )","v":""},null,null,null,null,{"$f":"IF(TRIM(O58)=\"\", \"\", IF(VLOOKUP(O58,'Footnotes list'!$D$9:$E$58,2,FALSE)=0,\"\",VLOOKUP(O58,'Footnotes list'!$D$9:$E$58,2,FALSE) ) )","v":""},null,null,null,null,{"$f":"IF(TRIM(T58)=\"\", \"\", IF(VLOOKUP(T58,'Footnotes list'!$D$9:$E$58,2,FALSE)=0,\"\",VLOOKUP(T58,'Footnotes list'!$D$9:$E$58,2,FALSE) ) )","v":""},null,null,null,null,{"$f":"IF(TRIM(Y58)=\"\", \"\", IF(VLOOKUP(Y58,'Footnotes list'!$D$9:$E$58,2,FALSE)=0,\"\",VLOOKUP(Y58,'Footnotes list'!$D$9:$E$58,2,FALSE) ) )","v":""},null,null,null,null,{"$f":"IF(TRIM(AD58)=\"\", \"\", IF(VLOOKUP(AD58,'Footnotes list'!$D$9:$E$58,2,FALSE)=0,\"\",VLOOKUP(AD58,'Footnotes list'!$D$9:$E$58,2,FALSE) ) )","v":""},null,null,null,null,{"$f":"IF(TRIM(AI58)=\"\", \"\", IF(VLOOKUP(AI58,'Footnotes list'!$D$9:$E$58,2,FALSE)=0,\"\",VLOOKUP(AI58,'Footnotes list'!$D$9:$E$58,2,FALSE) ) )","v":""},null,null,null,null,{"$f":"IF(TRIM(AN58)=\"\", \"\", IF(VLOOKUP(AN58,'Footnotes list'!$D$9:$E$58,2,FALSE)=0,\"\",VLOOKUP(AN58,'Footnotes list'!$D$9:$E$58,2,FALSE) ) )","v":""},null,null,null,null,{"$f":"IF(TRIM(AS58)=\"\", \"\", IF(VLOOKUP(AS58,'Footnotes list'!$D$9:$E$58,2,FALSE)=0,\"\",VLOOKUP(AS58,'Footnotes list'!$D$9:$E$58,2,FALSE) ) )","v":""},null,null,null,null,{"$f":"IF(TRIM(AX58)=\"\", \"\", IF(VLOOKUP(AX58,'Footnotes list'!$D$9:$E$58,2,FALSE)=0,\"\",VLOOKUP(AX58,'Footnotes list'!$D$9:$E$58,2,FALSE) ) )","v":""},null,null,null,null,{"$f":"IF(TRIM(BC58)=\"\", \"\", IF(VLOOKUP(BC58,'Footnotes list'!$D$9:$E$58,2,FALSE)=0,\"\",VLOOKUP(BC58,'Footnotes list'!$D$9:$E$58,2,FALSE) ) )","v":""},null,null,null,null,{"$f":"IF(TRIM(BH58)=\"\", \"\", IF(VLOOKUP(BH58,'Footnotes list'!$D$9:$E$58,2,FALSE)=0,\"\",VLOOKUP(BH58,'Footnotes list'!$D$9:$E$58,2,FALSE) ) )","v":""},null,null,null,null,{"$f":"IF(TRIM(BM58)=\"\", \"\", IF(VLOOKUP(BM58,'Footnotes list'!$D$9:$E$58,2,FALSE)=0,\"\",VLOOKUP(BM58,'Footnotes list'!$D$9:$E$58,2,FALSE) ) )","v":""},null,null,null,null,{"$f":"IF(TRIM(BR58)=\"\", \"\", IF(VLOOKUP(BR58,'Footnotes list'!$D$9:$E$58,2,FALSE)=0,\"\",VLOOKUP(BR58,'Footnotes list'!$D$9:$E$58,2,FALSE) ) )","v":""},null,null,null,null,{"$f":"IF(TRIM(BW58)=\"\", \"\", IF(VLOOKUP(BW58,'Footnotes list'!$D$9:$E$58,2,FALSE)=0,\"\",VLOOKUP(BW58,'Footnotes list'!$D$9:$E$58,2,FALSE) ) )","v":""},null,null,null,null,{"$f":"IF(TRIM(CB58)=\"\", \"\", IF(VLOOKUP(CB58,'Footnotes list'!$D$9:$E$58,2,FALSE)=0,\"\",VLOOKUP(CB58,'Footnotes list'!$D$9:$E$58,2,FALSE) ) )","v":""},null,null,null,null,{"$f":"IF(TRIM(CG58)=\"\", \"\", IF(VLOOKUP(CG58,'Footnotes list'!$D$9:$E$58,2,FALSE)=0,\"\",VLOOKUP(CG58,'Footnotes list'!$D$9:$E$58,2,FALSE) ) )","v":""},null,null,null,null,{"$f":"IF(TRIM(CL58)=\"\", \"\", IF(VLOOKUP(CL58,'Footnotes list'!$D$9:$E$58,2,FALSE)=0,\"\",VLOOKUP(CL58,'Footnotes list'!$D$9:$E$58,2,FALSE) ) )","v":""},null,null,null,null,{"$f":"IF(TRIM(CQ58)=\"\", \"\", IF(VLOOKUP(CQ58,'Footnotes list'!$D$9:$E$58,2,FALSE)=0,\"\",VLOOKUP(CQ58,'Footnotes list'!$D$9:$E$58,2,FALSE) ) )","v":""},null,null,null,null,{"$f":"IF(TRIM(CV58)=\"\", \"\", IF(VLOOKUP(CV58,'Footnotes list'!$D$9:$E$58,2,FALSE)=0,\"\",VLOOKUP(CV58,'Footnotes list'!$D$9:$E$58,2,FALSE) ) )","v":""},null,null,null,null,{"$f":"IF(TRIM(DA58)=\"\", \"\", IF(VLOOKUP(DA58,'Footnotes list'!$D$9:$E$58,2,FALSE)=0,\"\",VLOOKUP(DA58,'Footnotes list'!$D$9:$E$58,2,FALSE) ) )","v":""},null,null,null,null,{"$f":"IF(TRIM(DF58)=\"\", \"\", IF(VLOOKUP(DF58,'Footnotes list'!$D$9:$E$58,2,FALSE)=0,\"\",VLOOKUP(DF58,'Footnotes list'!$D$9:$E$58,2,FALSE) ) )","v":""},null,null,null,null,{"$f":"IF(TRIM(DK58)=\"\", \"\", IF(VLOOKUP(DK58,'Footnotes list'!$D$9:$E$58,2,FALSE)=0,\"\",VLOOKUP(DK58,'Footnotes list'!$D$9:$E$58,2,FALSE) ) )","v":""},null,null,null,null,{"$f":"IF(TRIM(DP58)=\"\", \"\", IF(VLOOKUP(DP58,'Footnotes list'!$D$9:$E$58,2,FALSE)=0,\"\",VLOOKUP(DP58,'Footnotes list'!$D$9:$E$58,2,FALSE) ) )","v":""},null,null,null,null,{"$f":"IF(TRIM(DU58)=\"\", \"\", IF(VLOOKUP(DU58,'Footnotes list'!$D$9:$E$58,2,FALSE)=0,\"\",VLOOKUP(DU58,'Footnotes list'!$D$9:$E$58,2,FALSE) ) )","v":""},null,null,null,null,{"$f":"IF(TRIM(DZ58)=\"\", \"\", IF(VLOOKUP(DZ58,'Footnotes list'!$D$9:$E$58,2,FALSE)=0,\"\",VLOOKUP(DZ58,'Footnotes list'!$D$9:$E$58,2,FALSE) ) )","v":""},null,null,null,null,{"$f":"IF(TRIM(EE58)=\"\", \"\", IF(VLOOKUP(EE58,'Footnotes list'!$D$9:$E$58,2,FALSE)=0,\"\",VLOOKUP(EE58,'Footnotes list'!$D$9:$E$58,2,FALSE) ) )","v":""},null,null,null,null,{"$f":"IF(TRIM(EJ58)=\"\", \"\", IF(VLOOKUP(EJ58,'Footnotes list'!$D$9:$E$58,2,FALSE)=0,\"\",VLOOKUP(EJ58,'Footnotes list'!$D$9:$E$58,2,FALSE) ) )","v":""},null,null,null,null,{"$f":"IF(TRIM(EO58)=\"\", \"\", IF(VLOOKUP(EO58,'Footnotes list'!$D$9:$E$58,2,FALSE)=0,\"\",VLOOKUP(EO58,'Footnotes list'!$D$9:$E$58,2,FALSE) ) )","v":""},null,null,null,null,{"$f":"IF(TRIM(ET58)=\"\", \"\", IF(VLOOKUP(ET58,'Footnotes list'!$D$9:$E$58,2,FALSE)=0,\"\",VLOOKUP(ET58,'Footnotes list'!$D$9:$E$58,2,FALSE) ) )","v":""},null,null,null,null,{"$f":"IF(TRIM(EY58)=\"\", \"\", IF(VLOOKUP(EY58,'Footnotes list'!$D$9:$E$58,2,FALSE)=0,\"\",VLOOKUP(EY58,'Footnotes list'!$D$9:$E$58,2,FALSE) ) )","v":""}]
[null,null,"C19","NMKT","non-market activities",null,null,null,null,null,{"$f":"IF(TRIM(J59)=\"\", \"\", IF(VLOOKUP(J59,'Footnotes list'!$D$9:$E$58,2,FALSE)=0,\"\",VLOOKUP(J59,'Footnotes list'!$D$9:$E$58,2,FALSE) ) )","v":""},null,null,null,null,{"$f":"IF(TRIM(O59)=\"\", \"\", IF(VLOOKUP(O59,'Footnotes list'!$D$9:$E$58,2,FALSE)=0,\"\",VLOOKUP(O59,'Footnotes list'!$D$9:$E$58,2,FALSE) ) )","v":""},null,null,null,null,{"$f":"IF(TRIM(T59)=\"\", \"\", IF(VLOOKUP(T59,'Footnotes list'!$D$9:$E$58,2,FALSE)=0,\"\",VLOOKUP(T59,'Footnotes list'!$D$9:$E$58,2,FALSE) ) )","v":""},null,null,null,null,{"$f":"IF(TRIM(Y59)=\"\", \"\", IF(VLOOKUP(Y59,'Footnotes list'!$D$9:$E$58,2,FALSE)=0,\"\",VLOOKUP(Y59,'Footnotes list'!$D$9:$E$58,2,FALSE) ) )","v":""},null,null,null,null,{"$f":"IF(TRIM(AD59)=\"\", \"\", IF(VLOOKUP(AD59,'Footnotes list'!$D$9:$E$58,2,FALSE)=0,\"\",VLOOKUP(AD59,'Footnotes list'!$D$9:$E$58,2,FALSE) ) )","v":""},null,null,null,null,{"$f":"IF(TRIM(AI59)=\"\", \"\", IF(VLOOKUP(AI59,'Footnotes list'!$D$9:$E$58,2,FALSE)=0,\"\",VLOOKUP(AI59,'Footnotes list'!$D$9:$E$58,2,FALSE) ) )","v":""},null,null,null,null,{"$f":"IF(TRIM(AN59)=\"\", \"\", IF(VLOOKUP(AN59,'Footnotes list'!$D$9:$E$58,2,FALSE)=0,\"\",VLOOKUP(AN59,'Footnotes list'!$D$9:$E$58,2,FALSE) ) )","v":""},null,null,null,null,{"$f":"IF(TRIM(AS59)=\"\", \"\", IF(VLOOKUP(AS59,'Footnotes list'!$D$9:$E$58,2,FALSE)=0,\"\",VLOOKUP(AS59,'Footnotes list'!$D$9:$E$58,2,FALSE) ) )","v":""},null,null,null,null,{"$f":"IF(TRIM(AX59)=\"\", \"\", IF(VLOOKUP(AX59,'Footnotes list'!$D$9:$E$58,2,FALSE)=0,\"\",VLOOKUP(AX59,'Footnotes list'!$D$9:$E$58,2,FALSE) ) )","v":""},null,null,null,null,{"$f":"IF(TRIM(BC59)=\"\", \"\", IF(VLOOKUP(BC59,'Footnotes list'!$D$9:$E$58,2,FALSE)=0,\"\",VLOOKUP(BC59,'Footnotes list'!$D$9:$E$58,2,FALSE) ) )","v":""},null,null,null,null,{"$f":"IF(TRIM(BH59)=\"\", \"\", IF(VLOOKUP(BH59,'Footnotes list'!$D$9:$E$58,2,FALSE)=0,\"\",VLOOKUP(BH59,'Footnotes list'!$D$9:$E$58,2,FALSE) ) )","v":""},null,null,null,null,{"$f":"IF(TRIM(BM59)=\"\", \"\", IF(VLOOKUP(BM59,'Footnotes list'!$D$9:$E$58,2,FALSE)=0,\"\",VLOOKUP(BM59,'Footnotes list'!$D$9:$E$58,2,FALSE) ) )","v":""},null,null,null,null,{"$f":"IF(TRIM(BR59)=\"\", \"\", IF(VLOOKUP(BR59,'Footnotes list'!$D$9:$E$58,2,FALSE)=0,\"\",VLOOKUP(BR59,'Footnotes list'!$D$9:$E$58,2,FALSE) ) )","v":""},null,null,null,null,{"$f":"IF(TRIM(BW59)=\"\", \"\", IF(VLOOKUP(BW59,'Footnotes list'!$D$9:$E$58,2,FALSE)=0,\"\",VLOOKUP(BW59,'Footnotes list'!$D$9:$E$58,2,FALSE) ) )","v":""},null,null,null,null,{"$f":"IF(TRIM(CB59)=\"\", \"\", IF(VLOOKUP(CB59,'Footnotes list'!$D$9:$E$58,2,FALSE)=0,\"\",VLOOKUP(CB59,'Footnotes list'!$D$9:$E$58,2,FALSE) ) )","v":""},null,null,null,null,{"$f":"IF(TRIM(CG59)=\"\", \"\", IF(VLOOKUP(CG59,'Footnotes list'!$D$9:$E$58,2,FALSE)=0,\"\",VLOOKUP(CG59,'Footnotes list'!$D$9:$E$58,2,FALSE) ) )","v":""},null,null,null,null,{"$f":"IF(TRIM(CL59)=\"\", \"\", IF(VLOOKUP(CL59,'Footnotes list'!$D$9:$E$58,2,FALSE)=0,\"\",VLOOKUP(CL59,'Footnotes list'!$D$9:$E$58,2,FALSE) ) )","v":""},null,null,null,null,{"$f":"IF(TRIM(CQ59)=\"\", \"\", IF(VLOOKUP(CQ59,'Footnotes list'!$D$9:$E$58,2,FALSE)=0,\"\",VLOOKUP(CQ59,'Footnotes list'!$D$9:$E$58,2,FALSE) ) )","v":""},null,null,null,null,{"$f":"IF(TRIM(CV59)=\"\", \"\", IF(VLOOKUP(CV59,'Footnotes list'!$D$9:$E$58,2,FALSE)=0,\"\",VLOOKUP(CV59,'Footnotes list'!$D$9:$E$58,2,FALSE) ) )","v":""},null,null,null,null,{"$f":"IF(TRIM(DA59)=\"\", \"\", IF(VLOOKUP(DA59,'Footnotes list'!$D$9:$E$58,2,FALSE)=0,\"\",VLOOKUP(DA59,'Footnotes list'!$D$9:$E$58,2,FALSE) ) )","v":""},null,null,null,null,{"$f":"IF(TRIM(DF59)=\"\", \"\", IF(VLOOKUP(DF59,'Footnotes list'!$D$9:$E$58,2,FALSE)=0,\"\",VLOOKUP(DF59,'Footnotes list'!$D$9:$E$58,2,FALSE) ) )","v":""},null,null,null,null,{"$f":"IF(TRIM(DK59)=\"\", \"\", IF(VLOOKUP(DK59,'Footnotes list'!$D$9:$E$58,2,FALSE)=0,\"\",VLOOKUP(DK59,'Footnotes list'!$D$9:$E$58,2,FALSE) ) )","v":""},null,null,null,null,{"$f":"IF(TRIM(DP59)=\"\", \"\", IF(VLOOKUP(DP59,'Footnotes list'!$D$9:$E$58,2,FALSE)=0,\"\",VLOOKUP(DP59,'Footnotes list'!$D$9:$E$58,2,FALSE) ) )","v":""},null,null,null,null,{"$f":"IF(TRIM(DU59)=\"\", \"\", IF(VLOOKUP(DU59,'Footnotes list'!$D$9:$E$58,2,FALSE)=0,\"\",VLOOKUP(DU59,'Footnotes list'!$D$9:$E$58,2,FALSE) ) )","v":""},null,null,null,null,{"$f":"IF(TRIM(DZ59)=\"\", \"\", IF(VLOOKUP(DZ59,'Footnotes list'!$D$9:$E$58,2,FALSE)=0,\"\",VLOOKUP(DZ59,'Footnotes list'!$D$9:$E$58,2,FALSE) ) )","v":""},null,null,null,null,{"$f":"IF(TRIM(EE59)=\"\", \"\", IF(VLOOKUP(EE59,'Footnotes list'!$D$9:$E$58,2,FALSE)=0,\"\",VLOOKUP(EE59,'Footnotes list'!$D$9:$E$58,2,FALSE) ) )","v":""},null,null,null,null,{"$f":"IF(TRIM(EJ59)=\"\", \"\", IF(VLOOKUP(EJ59,'Footnotes list'!$D$9:$E$58,2,FALSE)=0,\"\",VLOOKUP(EJ59,'Footnotes list'!$D$9:$E$58,2,FALSE) ) )","v":""},null,null,null,null,{"$f":"IF(TRIM(EO59)=\"\", \"\", IF(VLOOKUP(EO59,'Footnotes list'!$D$9:$E$58,2,FALSE)=0,\"\",VLOOKUP(EO59,'Footnotes list'!$D$9:$E$58,2,FALSE) ) )","v":""},null,null,null,null,{"$f":"IF(TRIM(ET59)=\"\", \"\", IF(VLOOKUP(ET59,'Footnotes list'!$D$9:$E$58,2,FALSE)=0,\"\",VLOOKUP(ET59,'Footnotes list'!$D$9:$E$58,2,FALSE) ) )","v":""},null,null,null,null,{"$f":"IF(TRIM(EY59)=\"\", \"\", IF(VLOOKUP(EY59,'Footnotes list'!$D$9:$E$58,2,FALSE)=0,\"\",VLOOKUP(EY59,'Footnotes list'!$D$9:$E$58,2,FALSE) ) )","v":""}]
[null,null,"C19","OWN_USE","activities for own final use",null,null,null,null,null,{"$f":"IF(TRIM(J60)=\"\", \"\", IF(VLOOKUP(J60,'Footnotes list'!$D$9:$E$58,2,FALSE)=0,\"\",VLOOKUP(J60,'Footnotes list'!$D$9:$E$58,2,FALSE) ) )","v":""},null,null,null,null,{"$f":"IF(TRIM(O60)=\"\", \"\", IF(VLOOKUP(O60,'Footnotes list'!$D$9:$E$58,2,FALSE)=0,\"\",VLOOKUP(O60,'Footnotes list'!$D$9:$E$58,2,FALSE) ) )","v":""},null,null,null,null,{"$f":"IF(TRIM(T60)=\"\", \"\", IF(VLOOKUP(T60,'Footnotes list'!$D$9:$E$58,2,FALSE)=0,\"\",VLOOKUP(T60,'Footnotes list'!$D$9:$E$58,2,FALSE) ) )","v":""},null,null,null,null,{"$f":"IF(TRIM(Y60)=\"\", \"\", IF(VLOOKUP(Y60,'Footnotes list'!$D$9:$E$58,2,FALSE)=0,\"\",VLOOKUP(Y60,'Footnotes list'!$D$9:$E$58,2,FALSE) ) )","v":""},null,null,null,null,{"$f":"IF(TRIM(AD60)=\"\", \"\", IF(VLOOKUP(AD60,'Footnotes list'!$D$9:$E$58,2,FALSE)=0,\"\",VLOOKUP(AD60,'Footnotes list'!$D$9:$E$58,2,FALSE) ) )","v":""},null,null,null,null,{"$f":"IF(TRIM(AI60)=\"\", \"\", IF(VLOOKUP(AI60,'Footnotes list'!$D$9:$E$58,2,FALSE)=0,\"\",VLOOKUP(AI60,'Footnotes list'!$D$9:$E$58,2,FALSE) ) )","v":""},null,null,null,null,{"$f":"IF(TRIM(AN60)=\"\", \"\", IF(VLOOKUP(AN60,'Footnotes list'!$D$9:$E$58,2,FALSE)=0,\"\",VLOOKUP(AN60,'Footnotes list'!$D$9:$E$58,2,FALSE) ) )","v":""},null,null,null,null,{"$f":"IF(TRIM(AS60)=\"\", \"\", IF(VLOOKUP(AS60,'Footnotes list'!$D$9:$E$58,2,FALSE)=0,\"\",VLOOKUP(AS60,'Footnotes list'!$D$9:$E$58,2,FALSE) ) )","v":""},null,null,null,null,{"$f":"IF(TRIM(AX60)=\"\", \"\", IF(VLOOKUP(AX60,'Footnotes list'!$D$9:$E$58,2,FALSE)=0,\"\",VLOOKUP(AX60,'Footnotes list'!$D$9:$E$58,2,FALSE) ) )","v":""},null,null,null,null,{"$f":"IF(TRIM(BC60)=\"\", \"\", IF(VLOOKUP(BC60,'Footnotes list'!$D$9:$E$58,2,FALSE)=0,\"\",VLOOKUP(BC60,'Footnotes list'!$D$9:$E$58,2,FALSE) ) )","v":""},null,null,null,null,{"$f":"IF(TRIM(BH60)=\"\", \"\", IF(VLOOKUP(BH60,'Footnotes list'!$D$9:$E$58,2,FALSE)=0,\"\",VLOOKUP(BH60,'Footnotes list'!$D$9:$E$58,2,FALSE) ) )","v":""},null,null,null,null,{"$f":"IF(TRIM(BM60)=\"\", \"\", IF(VLOOKUP(BM60,'Footnotes list'!$D$9:$E$58,2,FALSE)=0,\"\",VLOOKUP(BM60,'Footnotes list'!$D$9:$E$58,2,FALSE) ) )","v":""},null,null,null,null,{"$f":"IF(TRIM(BR60)=\"\", \"\", IF(VLOOKUP(BR60,'Footnotes list'!$D$9:$E$58,2,FALSE)=0,\"\",VLOOKUP(BR60,'Footnotes list'!$D$9:$E$58,2,FALSE) ) )","v":""},null,null,null,null,{"$f":"IF(TRIM(BW60)=\"\", \"\", IF(VLOOKUP(BW60,'Footnotes list'!$D$9:$E$58,2,FALSE)=0,\"\",VLOOKUP(BW60,'Footnotes list'!$D$9:$E$58,2,FALSE) ) )","v":""},null,null,null,null,{"$f":"IF(TRIM(CB60)=\"\", \"\", IF(VLOOKUP(CB60,'Footnotes list'!$D$9:$E$58,2,FALSE)=0,\"\",VLOOKUP(CB60,'Footnotes list'!$D$9:$E$58,2,FALSE) ) )","v":""},null,null,null,null,{"$f":"IF(TRIM(CG60)=\"\", \"\", IF(VLOOKUP(CG60,'Footnotes list'!$D$9:$E$58,2,FALSE)=0,\"\",VLOOKUP(CG60,'Footnotes list'!$D$9:$E$58,2,FALSE) ) )","v":""},null,null,null,null,{"$f":"IF(TRIM(CL60)=\"\", \"\", IF(VLOOKUP(CL60,'Footnotes list'!$D$9:$E$58,2,FALSE)=0,\"\",VLOOKUP(CL60,'Footnotes list'!$D$9:$E$58,2,FALSE) ) )","v":""},null,null,null,null,{"$f":"IF(TRIM(CQ60)=\"\", \"\", IF(VLOOKUP(CQ60,'Footnotes list'!$D$9:$E$58,2,FALSE)=0,\"\",VLOOKUP(CQ60,'Footnotes list'!$D$9:$E$58,2,FALSE) ) )","v":""},null,null,null,null,{"$f":"IF(TRIM(CV60)=\"\", \"\", IF(VLOOKUP(CV60,'Footnotes list'!$D$9:$E$58,2,FALSE)=0,\"\",VLOOKUP(CV60,'Footnotes list'!$D$9:$E$58,2,FALSE) ) )","v":""},null,null,null,null,{"$f":"IF(TRIM(DA60)=\"\", \"\", IF(VLOOKUP(DA60,'Footnotes list'!$D$9:$E$58,2,FALSE)=0,\"\",VLOOKUP(DA60,'Footnotes list'!$D$9:$E$58,2,FALSE) ) )","v":""},null,null,null,null,{"$f":"IF(TRIM(DF60)=\"\", \"\", IF(VLOOKUP(DF60,'Footnotes list'!$D$9:$E$58,2,FALSE)=0,\"\",VLOOKUP(DF60,'Footnotes list'!$D$9:$E$58,2,FALSE) ) )","v":""},null,null,null,null,{"$f":"IF(TRIM(DK60)=\"\", \"\", IF(VLOOKUP(DK60,'Footnotes list'!$D$9:$E$58,2,FALSE)=0,\"\",VLOOKUP(DK60,'Footnotes list'!$D$9:$E$58,2,FALSE) ) )","v":""},null,null,null,null,{"$f":"IF(TRIM(DP60)=\"\", \"\", IF(VLOOKUP(DP60,'Footnotes list'!$D$9:$E$58,2,FALSE)=0,\"\",VLOOKUP(DP60,'Footnotes list'!$D$9:$E$58,2,FALSE) ) )","v":""},null,null,null,null,{"$f":"IF(TRIM(DU60)=\"\", \"\", IF(VLOOKUP(DU60,'Footnotes list'!$D$9:$E$58,2,FALSE)=0,\"\",VLOOKUP(DU60,'Footnotes list'!$D$9:$E$58,2,FALSE) ) )","v":""},null,null,null,null,{"$f":"IF(TRIM(DZ60)=\"\", \"\", IF(VLOOKUP(DZ60,'Footnotes list'!$D$9:$E$58,2,FALSE)=0,\"\",VLOOKUP(DZ60,'Footnotes list'!$D$9:$E$58,2,FALSE) ) )","v":""},null,null,null,null,{"$f":"IF(TRIM(EE60)=\"\", \"\", IF(VLOOKUP(EE60,'Footnotes list'!$D$9:$E$58,2,FALSE)=0,\"\",VLOOKUP(EE60,'Footnotes list'!$D$9:$E$58,2,FALSE) ) )","v":""},null,null,null,null,{"$f":"IF(TRIM(EJ60)=\"\", \"\", IF(VLOOKUP(EJ60,'Footnotes list'!$D$9:$E$58,2,FALSE)=0,\"\",VLOOKUP(EJ60,'Footnotes list'!$D$9:$E$58,2,FALSE) ) )","v":""},null,null,null,null,{"$f":"IF(TRIM(EO60)=\"\", \"\", IF(VLOOKUP(EO60,'Footnotes list'!$D$9:$E$58,2,FALSE)=0,\"\",VLOOKUP(EO60,'Footnotes list'!$D$9:$E$58,2,FALSE) ) )","v":""},null,null,null,null,{"$f":"IF(TRIM(ET60)=\"\", \"\", IF(VLOOKUP(ET60,'Footnotes list'!$D$9:$E$58,2,FALSE)=0,\"\",VLOOKUP(ET60,'Footnotes list'!$D$9:$E$58,2,FALSE) ) )","v":""},null,null,null,null,{"$f":"IF(TRIM(EY60)=\"\", \"\", IF(VLOOKUP(EY60,'Footnotes list'!$D$9:$E$58,2,FALSE)=0,\"\",VLOOKUP(EY60,'Footnotes list'!$D$9:$E$58,2,FALSE) ) )","v":""}]
[null,null,"C19","MKT","market activities, including:",null,null,null,null,null,{"$f":"IF(TRIM(J61)=\"\", \"\", IF(VLOOKUP(J61,'Footnotes list'!$D$9:$E$58,2,FALSE)=0,\"\",VLOOKUP(J61,'Footnotes list'!$D$9:$E$58,2,FALSE) ) )","v":""},null,null,null,null,{"$f":"IF(TRIM(O61)=\"\", \"\", IF(VLOOKUP(O61,'Footnotes list'!$D$9:$E$58,2,FALSE)=0,\"\",VLOOKUP(O61,'Footnotes list'!$D$9:$E$58,2,FALSE) ) )","v":""},null,null,null,null,{"$f":"IF(TRIM(T61)=\"\", \"\", IF(VLOOKUP(T61,'Footnotes list'!$D$9:$E$58,2,FALSE)=0,\"\",VLOOKUP(T61,'Footnotes list'!$D$9:$E$58,2,FALSE) ) )","v":""},null,null,null,null,{"$f":"IF(TRIM(Y61)=\"\", \"\", IF(VLOOKUP(Y61,'Footnotes list'!$D$9:$E$58,2,FALSE)=0,\"\",VLOOKUP(Y61,'Footnotes list'!$D$9:$E$58,2,FALSE) ) )","v":""},null,null,null,null,{"$f":"IF(TRIM(AD61)=\"\", \"\", IF(VLOOKUP(AD61,'Footnotes list'!$D$9:$E$58,2,FALSE)=0,\"\",VLOOKUP(AD61,'Footnotes list'!$D$9:$E$58,2,FALSE) ) )","v":""},null,null,null,null,{"$f":"IF(TRIM(AI61)=\"\", \"\", IF(VLOOKUP(AI61,'Footnotes list'!$D$9:$E$58,2,FALSE)=0,\"\",VLOOKUP(AI61,'Footnotes list'!$D$9:$E$58,2,FALSE) ) )","v":""},null,null,null,null,{"$f":"IF(TRIM(AN61)=\"\", \"\", IF(VLOOKUP(AN61,'Footnotes list'!$D$9:$E$58,2,FALSE)=0,\"\",VLOOKUP(AN61,'Footnotes list'!$D$9:$E$58,2,FALSE) ) )","v":""},null,null,null,null,{"$f":"IF(TRIM(AS61)=\"\", \"\", IF(VLOOKUP(AS61,'Footnotes list'!$D$9:$E$58,2,FALSE)=0,\"\",VLOOKUP(AS61,'Footnotes list'!$D$9:$E$58,2,FALSE) ) )","v":""},null,null,null,null,{"$f":"IF(TRIM(AX61)=\"\", \"\", IF(VLOOKUP(AX61,'Footnotes list'!$D$9:$E$58,2,FALSE)=0,\"\",VLOOKUP(AX61,'Footnotes list'!$D$9:$E$58,2,FALSE) ) )","v":""},null,null,null,null,{"$f":"IF(TRIM(BC61)=\"\", \"\", IF(VLOOKUP(BC61,'Footnotes list'!$D$9:$E$58,2,FALSE)=0,\"\",VLOOKUP(BC61,'Footnotes list'!$D$9:$E$58,2,FALSE) ) )","v":""},null,null,null,null,{"$f":"IF(TRIM(BH61)=\"\", \"\", IF(VLOOKUP(BH61,'Footnotes list'!$D$9:$E$58,2,FALSE)=0,\"\",VLOOKUP(BH61,'Footnotes list'!$D$9:$E$58,2,FALSE) ) )","v":""},null,null,null,null,{"$f":"IF(TRIM(BM61)=\"\", \"\", IF(VLOOKUP(BM61,'Footnotes list'!$D$9:$E$58,2,FALSE)=0,\"\",VLOOKUP(BM61,'Footnotes list'!$D$9:$E$58,2,FALSE) ) )","v":""},null,null,null,null,{"$f":"IF(TRIM(BR61)=\"\", \"\", IF(VLOOKUP(BR61,'Footnotes list'!$D$9:$E$58,2,FALSE)=0,\"\",VLOOKUP(BR61,'Footnotes list'!$D$9:$E$58,2,FALSE) ) )","v":""},null,null,null,null,{"$f":"IF(TRIM(BW61)=\"\", \"\", IF(VLOOKUP(BW61,'Footnotes list'!$D$9:$E$58,2,FALSE)=0,\"\",VLOOKUP(BW61,'Footnotes list'!$D$9:$E$58,2,FALSE) ) )","v":""},null,null,null,null,{"$f":"IF(TRIM(CB61)=\"\", \"\", IF(VLOOKUP(CB61,'Footnotes list'!$D$9:$E$58,2,FALSE)=0,\"\",VLOOKUP(CB61,'Footnotes list'!$D$9:$E$58,2,FALSE) ) )","v":""},null,null,null,null,{"$f":"IF(TRIM(CG61)=\"\", \"\", IF(VLOOKUP(CG61,'Footnotes list'!$D$9:$E$58,2,FALSE)=0,\"\",VLOOKUP(CG61,'Footnotes list'!$D$9:$E$58,2,FALSE) ) )","v":""},null,null,null,null,{"$f":"IF(TRIM(CL61)=\"\", \"\", IF(VLOOKUP(CL61,'Footnotes list'!$D$9:$E$58,2,FALSE)=0,\"\",VLOOKUP(CL61,'Footnotes list'!$D$9:$E$58,2,FALSE) ) )","v":""},null,null,null,null,{"$f":"IF(TRIM(CQ61)=\"\", \"\", IF(VLOOKUP(CQ61,'Footnotes list'!$D$9:$E$58,2,FALSE)=0,\"\",VLOOKUP(CQ61,'Footnotes list'!$D$9:$E$58,2,FALSE) ) )","v":""},null,null,null,null,{"$f":"IF(TRIM(CV61)=\"\", \"\", IF(VLOOKUP(CV61,'Footnotes list'!$D$9:$E$58,2,FALSE)=0,\"\",VLOOKUP(CV61,'Footnotes list'!$D$9:$E$58,2,FALSE) ) )","v":""},null,null,null,null,{"$f":"IF(TRIM(DA61)=\"\", \"\", IF(VLOOKUP(DA61,'Footnotes list'!$D$9:$E$58,2,FALSE)=0,\"\",VLOOKUP(DA61,'Footnotes list'!$D$9:$E$58,2,FALSE) ) )","v":""},null,null,null,null,{"$f":"IF(TRIM(DF61)=\"\", \"\", IF(VLOOKUP(DF61,'Footnotes list'!$D$9:$E$58,2,FALSE)=0,\"\",VLOOKUP(DF61,'Footnotes list'!$D$9:$E$58,2,FALSE) ) )","v":""},null,null,null,null,{"$f":"IF(TRIM(DK61)=\"\", \"\", IF(VLOOKUP(DK61,'Footnotes list'!$D$9:$E$58,2,FALSE)=0,\"\",VLOOKUP(DK61,'Footnotes list'!$D$9:$E$58,2,FALSE) ) )","v":""},null,null,null,null,{"$f":"IF(TRIM(DP61)=\"\", \"\", IF(VLOOKUP(DP61,'Footnotes list'!$D$9:$E$58,2,FALSE)=0,\"\",VLOOKUP(DP61,'Footnotes list'!$D$9:$E$58,2,FALSE) ) )","v":""},null,null,null,null,{"$f":"IF(TRIM(DU61)=\"\", \"\", IF(VLOOKUP(DU61,'Footnotes list'!$D$9:$E$58,2,FALSE)=0,\"\",VLOOKUP(DU61,'Footnotes list'!$D$9:$E$58,2,FALSE) ) )","v":""},null,null,null,null,{"$f":"IF(TRIM(DZ61)=\"\", \"\", IF(VLOOKUP(DZ61,'Footnotes list'!$D$9:$E$58,2,FALSE)=0,\"\",VLOOKUP(DZ61,'Footnotes list'!$D$9:$E$58,2,FALSE) ) )","v":""},null,null,null,null,{"$f":"IF(TRIM(EE61)=\"\", \"\", IF(VLOOKUP(EE61,'Footnotes list'!$D$9:$E$58,2,FALSE)=0,\"\",VLOOKUP(EE61,'Footnotes list'!$D$9:$E$58,2,FALSE) ) )","v":""},null,null,null,null,{"$f":"IF(TRIM(EJ61)=\"\", \"\", IF(VLOOKUP(EJ61,'Footnotes list'!$D$9:$E$58,2,FALSE)=0,\"\",VLOOKUP(EJ61,'Footnotes list'!$D$9:$E$58,2,FALSE) ) )","v":""},null,null,null,null,{"$f":"IF(TRIM(EO61)=\"\", \"\", IF(VLOOKUP(EO61,'Footnotes list'!$D$9:$E$58,2,FALSE)=0,\"\",VLOOKUP(EO61,'Footnotes list'!$D$9:$E$58,2,FALSE) ) )","v":""},null,null,null,null,{"$f":"IF(TRIM(ET61)=\"\", \"\", IF(VLOOKUP(ET61,'Footnotes list'!$D$9:$E$58,2,FALSE)=0,\"\",VLOOKUP(ET61,'Footnotes list'!$D$9:$E$58,2,FALSE) ) )","v":""},null,null,null,null,{"$f":"IF(TRIM(EY61)=\"\", \"\", IF(VLOOKUP(EY61,'Footnotes list'!$D$9:$E$58,2,FALSE)=0,\"\",VLOOKUP(EY61,'Footnotes list'!$D$9:$E$58,2,FALSE) ) )","v":""}]
[null,null,"C19","ES_CS","environmental specific services",null,null,null,null,null,{"$f":"IF(TRIM(J62)=\"\", \"\", IF(VLOOKUP(J62,'Footnotes list'!$D$9:$E$58,2,FALSE)=0,\"\",VLOOKUP(J62,'Footnotes list'!$D$9:$E$58,2,FALSE) ) )","v":""},null,null,null,null,{"$f":"IF(TRIM(O62)=\"\", \"\", IF(VLOOKUP(O62,'Footnotes list'!$D$9:$E$58,2,FALSE)=0,\"\",VLOOKUP(O62,'Footnotes list'!$D$9:$E$58,2,FALSE) ) )","v":""},null,null,null,null,{"$f":"IF(TRIM(T62)=\"\", \"\", IF(VLOOKUP(T62,'Footnotes list'!$D$9:$E$58,2,FALSE)=0,\"\",VLOOKUP(T62,'Footnotes list'!$D$9:$E$58,2,FALSE) ) )","v":""},null,null,null,null,{"$f":"IF(TRIM(Y62)=\"\", \"\", IF(VLOOKUP(Y62,'Footnotes list'!$D$9:$E$58,2,FALSE)=0,\"\",VLOOKUP(Y62,'Footnotes list'!$D$9:$E$58,2,FALSE) ) )","v":""},null,null,null,null,{"$f":"IF(TRIM(AD62)=\"\", \"\", IF(VLOOKUP(AD62,'Footnotes list'!$D$9:$E$58,2,FALSE)=0,\"\",VLOOKUP(AD62,'Footnotes list'!$D$9:$E$58,2,FALSE) ) )","v":""},null,null,null,null,{"$f":"IF(TRIM(AI62)=\"\", \"\", IF(VLOOKUP(AI62,'Footnotes list'!$D$9:$E$58,2,FALSE)=0,\"\",VLOOKUP(AI62,'Footnotes list'!$D$9:$E$58,2,FALSE) ) )","v":""},null,null,null,null,{"$f":"IF(TRIM(AN62)=\"\", \"\", IF(VLOOKUP(AN62,'Footnotes list'!$D$9:$E$58,2,FALSE)=0,\"\",VLOOKUP(AN62,'Footnotes list'!$D$9:$E$58,2,FALSE) ) )","v":""},null,null,null,null,{"$f":"IF(TRIM(AS62)=\"\", \"\", IF(VLOOKUP(AS62,'Footnotes list'!$D$9:$E$58,2,FALSE)=0,\"\",VLOOKUP(AS62,'Footnotes list'!$D$9:$E$58,2,FALSE) ) )","v":""},null,null,null,null,{"$f":"IF(TRIM(AX62)=\"\", \"\", IF(VLOOKUP(AX62,'Footnotes list'!$D$9:$E$58,2,FALSE)=0,\"\",VLOOKUP(AX62,'Footnotes list'!$D$9:$E$58,2,FALSE) ) )","v":""},null,null,null,null,{"$f":"IF(TRIM(BC62)=\"\", \"\", IF(VLOOKUP(BC62,'Footnotes list'!$D$9:$E$58,2,FALSE)=0,\"\",VLOOKUP(BC62,'Footnotes list'!$D$9:$E$58,2,FALSE) ) )","v":""},null,null,null,null,{"$f":"IF(TRIM(BH62)=\"\", \"\", IF(VLOOKUP(BH62,'Footnotes list'!$D$9:$E$58,2,FALSE)=0,\"\",VLOOKUP(BH62,'Footnotes list'!$D$9:$E$58,2,FALSE) ) )","v":""},null,null,null,null,{"$f":"IF(TRIM(BM62)=\"\", \"\", IF(VLOOKUP(BM62,'Footnotes list'!$D$9:$E$58,2,FALSE)=0,\"\",VLOOKUP(BM62,'Footnotes list'!$D$9:$E$58,2,FALSE) ) )","v":""},null,null,null,null,{"$f":"IF(TRIM(BR62)=\"\", \"\", IF(VLOOKUP(BR62,'Footnotes list'!$D$9:$E$58,2,FALSE)=0,\"\",VLOOKUP(BR62,'Footnotes list'!$D$9:$E$58,2,FALSE) ) )","v":""},null,null,null,null,{"$f":"IF(TRIM(BW62)=\"\", \"\", IF(VLOOKUP(BW62,'Footnotes list'!$D$9:$E$58,2,FALSE)=0,\"\",VLOOKUP(BW62,'Footnotes list'!$D$9:$E$58,2,FALSE) ) )","v":""},null,null,null,null,{"$f":"IF(TRIM(CB62)=\"\", \"\", IF(VLOOKUP(CB62,'Footnotes list'!$D$9:$E$58,2,FALSE)=0,\"\",VLOOKUP(CB62,'Footnotes list'!$D$9:$E$58,2,FALSE) ) )","v":""},null,null,null,null,{"$f":"IF(TRIM(CG62)=\"\", \"\", IF(VLOOKUP(CG62,'Footnotes list'!$D$9:$E$58,2,FALSE)=0,\"\",VLOOKUP(CG62,'Footnotes list'!$D$9:$E$58,2,FALSE) ) )","v":""},null,null,null,null,{"$f":"IF(TRIM(CL62)=\"\", \"\", IF(VLOOKUP(CL62,'Footnotes list'!$D$9:$E$58,2,FALSE)=0,\"\",VLOOKUP(CL62,'Footnotes list'!$D$9:$E$58,2,FALSE) ) )","v":""},null,null,null,null,{"$f":"IF(TRIM(CQ62)=\"\", \"\", IF(VLOOKUP(CQ62,'Footnotes list'!$D$9:$E$58,2,FALSE)=0,\"\",VLOOKUP(CQ62,'Footnotes list'!$D$9:$E$58,2,FALSE) ) )","v":""},null,null,null,null,{"$f":"IF(TRIM(CV62)=\"\", \"\", IF(VLOOKUP(CV62,'Footnotes list'!$D$9:$E$58,2,FALSE)=0,\"\",VLOOKUP(CV62,'Footnotes list'!$D$9:$E$58,2,FALSE) ) )","v":""},null,null,null,null,{"$f":"IF(TRIM(DA62)=\"\", \"\", IF(VLOOKUP(DA62,'Footnotes list'!$D$9:$E$58,2,FALSE)=0,\"\",VLOOKUP(DA62,'Footnotes list'!$D$9:$E$58,2,FALSE) ) )","v":""},null,null,null,null,{"$f":"IF(TRIM(DF62)=\"\", \"\", IF(VLOOKUP(DF62,'Footnotes list'!$D$9:$E$58,2,FALSE)=0,\"\",VLOOKUP(DF62,'Footnotes list'!$D$9:$E$58,2,FALSE) ) )","v":""},null,null,null,null,{"$f":"IF(TRIM(DK62)=\"\", \"\", IF(VLOOKUP(DK62,'Footnotes list'!$D$9:$E$58,2,FALSE)=0,\"\",VLOOKUP(DK62,'Footnotes list'!$D$9:$E$58,2,FALSE) ) )","v":""},null,null,null,null,{"$f":"IF(TRIM(DP62)=\"\", \"\", IF(VLOOKUP(DP62,'Footnotes list'!$D$9:$E$58,2,FALSE)=0,\"\",VLOOKUP(DP62,'Footnotes list'!$D$9:$E$58,2,FALSE) ) )","v":""},null,null,null,null,{"$f":"IF(TRIM(DU62)=\"\", \"\", IF(VLOOKUP(DU62,'Footnotes list'!$D$9:$E$58,2,FALSE)=0,\"\",VLOOKUP(DU62,'Footnotes list'!$D$9:$E$58,2,FALSE) ) )","v":""},null,null,null,null,{"$f":"IF(TRIM(DZ62)=\"\", \"\", IF(VLOOKUP(DZ62,'Footnotes list'!$D$9:$E$58,2,FALSE)=0,\"\",VLOOKUP(DZ62,'Footnotes list'!$D$9:$E$58,2,FALSE) ) )","v":""},null,null,null,null,{"$f":"IF(TRIM(EE62)=\"\", \"\", IF(VLOOKUP(EE62,'Footnotes list'!$D$9:$E$58,2,FALSE)=0,\"\",VLOOKUP(EE62,'Footnotes list'!$D$9:$E$58,2,FALSE) ) )","v":""},null,null,null,null,{"$f":"IF(TRIM(EJ62)=\"\", \"\", IF(VLOOKUP(EJ62,'Footnotes list'!$D$9:$E$58,2,FALSE)=0,\"\",VLOOKUP(EJ62,'Footnotes list'!$D$9:$E$58,2,FALSE) ) )","v":""},null,null,null,null,{"$f":"IF(TRIM(EO62)=\"\", \"\", IF(VLOOKUP(EO62,'Footnotes list'!$D$9:$E$58,2,FALSE)=0,\"\",VLOOKUP(EO62,'Footnotes list'!$D$9:$E$58,2,FALSE) ) )","v":""},null,null,null,null,{"$f":"IF(TRIM(ET62)=\"\", \"\", IF(VLOOKUP(ET62,'Footnotes list'!$D$9:$E$58,2,FALSE)=0,\"\",VLOOKUP(ET62,'Footnotes list'!$D$9:$E$58,2,FALSE) ) )","v":""},null,null,null,null,{"$f":"IF(TRIM(EY62)=\"\", \"\", IF(VLOOKUP(EY62,'Footnotes list'!$D$9:$E$58,2,FALSE)=0,\"\",VLOOKUP(EY62,'Footnotes list'!$D$9:$E$58,2,FALSE) ) )","v":""}]
[null,null,"C19","C_REP","cleaner and resource efficient products",null,null,null,null,null,{"$f":"IF(TRIM(J63)=\"\", \"\", IF(VLOOKUP(J63,'Footnotes list'!$D$9:$E$58,2,FALSE)=0,\"\",VLOOKUP(J63,'Footnotes list'!$D$9:$E$58,2,FALSE) ) )","v":""},null,null,null,null,{"$f":"IF(TRIM(O63)=\"\", \"\", IF(VLOOKUP(O63,'Footnotes list'!$D$9:$E$58,2,FALSE)=0,\"\",VLOOKUP(O63,'Footnotes list'!$D$9:$E$58,2,FALSE) ) )","v":""},null,null,null,null,{"$f":"IF(TRIM(T63)=\"\", \"\", IF(VLOOKUP(T63,'Footnotes list'!$D$9:$E$58,2,FALSE)=0,\"\",VLOOKUP(T63,'Footnotes list'!$D$9:$E$58,2,FALSE) ) )","v":""},null,null,null,null,{"$f":"IF(TRIM(Y63)=\"\", \"\", IF(VLOOKUP(Y63,'Footnotes list'!$D$9:$E$58,2,FALSE)=0,\"\",VLOOKUP(Y63,'Footnotes list'!$D$9:$E$58,2,FALSE) ) )","v":""},null,null,null,null,{"$f":"IF(TRIM(AD63)=\"\", \"\", IF(VLOOKUP(AD63,'Footnotes list'!$D$9:$E$58,2,FALSE)=0,\"\",VLOOKUP(AD63,'Footnotes list'!$D$9:$E$58,2,FALSE) ) )","v":""},null,null,null,null,{"$f":"IF(TRIM(AI63)=\"\", \"\", IF(VLOOKUP(AI63,'Footnotes list'!$D$9:$E$58,2,FALSE)=0,\"\",VLOOKUP(AI63,'Footnotes list'!$D$9:$E$58,2,FALSE) ) )","v":""},null,null,null,null,{"$f":"IF(TRIM(AN63)=\"\", \"\", IF(VLOOKUP(AN63,'Footnotes list'!$D$9:$E$58,2,FALSE)=0,\"\",VLOOKUP(AN63,'Footnotes list'!$D$9:$E$58,2,FALSE) ) )","v":""},null,null,null,null,{"$f":"IF(TRIM(AS63)=\"\", \"\", IF(VLOOKUP(AS63,'Footnotes list'!$D$9:$E$58,2,FALSE)=0,\"\",VLOOKUP(AS63,'Footnotes list'!$D$9:$E$58,2,FALSE) ) )","v":""},null,null,null,null,{"$f":"IF(TRIM(AX63)=\"\", \"\", IF(VLOOKUP(AX63,'Footnotes list'!$D$9:$E$58,2,FALSE)=0,\"\",VLOOKUP(AX63,'Footnotes list'!$D$9:$E$58,2,FALSE) ) )","v":""},null,null,null,null,{"$f":"IF(TRIM(BC63)=\"\", \"\", IF(VLOOKUP(BC63,'Footnotes list'!$D$9:$E$58,2,FALSE)=0,\"\",VLOOKUP(BC63,'Footnotes list'!$D$9:$E$58,2,FALSE) ) )","v":""},null,null,null,null,{"$f":"IF(TRIM(BH63)=\"\", \"\", IF(VLOOKUP(BH63,'Footnotes list'!$D$9:$E$58,2,FALSE)=0,\"\",VLOOKUP(BH63,'Footnotes list'!$D$9:$E$58,2,FALSE) ) )","v":""},null,null,null,null,{"$f":"IF(TRIM(BM63)=\"\", \"\", IF(VLOOKUP(BM63,'Footnotes list'!$D$9:$E$58,2,FALSE)=0,\"\",VLOOKUP(BM63,'Footnotes list'!$D$9:$E$58,2,FALSE) ) )","v":""},null,null,null,null,{"$f":"IF(TRIM(BR63)=\"\", \"\", IF(VLOOKUP(BR63,'Footnotes list'!$D$9:$E$58,2,FALSE)=0,\"\",VLOOKUP(BR63,'Footnotes list'!$D$9:$E$58,2,FALSE) ) )","v":""},null,null,null,null,{"$f":"IF(TRIM(BW63)=\"\", \"\", IF(VLOOKUP(BW63,'Footnotes list'!$D$9:$E$58,2,FALSE)=0,\"\",VLOOKUP(BW63,'Footnotes list'!$D$9:$E$58,2,FALSE) ) )","v":""},null,null,null,null,{"$f":"IF(TRIM(CB63)=\"\", \"\", IF(VLOOKUP(CB63,'Footnotes list'!$D$9:$E$58,2,FALSE)=0,\"\",VLOOKUP(CB63,'Footnotes list'!$D$9:$E$58,2,FALSE) ) )","v":""},null,null,null,null,{"$f":"IF(TRIM(CG63)=\"\", \"\", IF(VLOOKUP(CG63,'Footnotes list'!$D$9:$E$58,2,FALSE)=0,\"\",VLOOKUP(CG63,'Footnotes list'!$D$9:$E$58,2,FALSE) ) )","v":""},null,null,null,null,{"$f":"IF(TRIM(CL63)=\"\", \"\", IF(VLOOKUP(CL63,'Footnotes list'!$D$9:$E$58,2,FALSE)=0,\"\",VLOOKUP(CL63,'Footnotes list'!$D$9:$E$58,2,FALSE) ) )","v":""},null,null,null,null,{"$f":"IF(TRIM(CQ63)=\"\", \"\", IF(VLOOKUP(CQ63,'Footnotes list'!$D$9:$E$58,2,FALSE)=0,\"\",VLOOKUP(CQ63,'Footnotes list'!$D$9:$E$58,2,FALSE) ) )","v":""},null,null,null,null,{"$f":"IF(TRIM(CV63)=\"\", \"\", IF(VLOOKUP(CV63,'Footnotes list'!$D$9:$E$58,2,FALSE)=0,\"\",VLOOKUP(CV63,'Footnotes list'!$D$9:$E$58,2,FALSE) ) )","v":""},null,null,null,null,{"$f":"IF(TRIM(DA63)=\"\", \"\", IF(VLOOKUP(DA63,'Footnotes list'!$D$9:$E$58,2,FALSE)=0,\"\",VLOOKUP(DA63,'Footnotes list'!$D$9:$E$58,2,FALSE) ) )","v":""},null,null,null,null,{"$f":"IF(TRIM(DF63)=\"\", \"\", IF(VLOOKUP(DF63,'Footnotes list'!$D$9:$E$58,2,FALSE)=0,\"\",VLOOKUP(DF63,'Footnotes list'!$D$9:$E$58,2,FALSE) ) )","v":""},null,null,null,null,{"$f":"IF(TRIM(DK63)=\"\", \"\", IF(VLOOKUP(DK63,'Footnotes list'!$D$9:$E$58,2,FALSE)=0,\"\",VLOOKUP(DK63,'Footnotes list'!$D$9:$E$58,2,FALSE) ) )","v":""},null,null,null,null,{"$f":"IF(TRIM(DP63)=\"\", \"\", IF(VLOOKUP(DP63,'Footnotes list'!$D$9:$E$58,2,FALSE)=0,\"\",VLOOKUP(DP63,'Footnotes list'!$D$9:$E$58,2,FALSE) ) )","v":""},null,null,null,null,{"$f":"IF(TRIM(DU63)=\"\", \"\", IF(VLOOKUP(DU63,'Footnotes list'!$D$9:$E$58,2,FALSE)=0,\"\",VLOOKUP(DU63,'Footnotes list'!$D$9:$E$58,2,FALSE) ) )","v":""},null,null,null,null,{"$f":"IF(TRIM(DZ63)=\"\", \"\", IF(VLOOKUP(DZ63,'Footnotes list'!$D$9:$E$58,2,FALSE)=0,\"\",VLOOKUP(DZ63,'Footnotes list'!$D$9:$E$58,2,FALSE) ) )","v":""},null,null,null,null,{"$f":"IF(TRIM(EE63)=\"\", \"\", IF(VLOOKUP(EE63,'Footnotes list'!$D$9:$E$58,2,FALSE)=0,\"\",VLOOKUP(EE63,'Footnotes list'!$D$9:$E$58,2,FALSE) ) )","v":""},null,null,null,null,{"$f":"IF(TRIM(EJ63)=\"\", \"\", IF(VLOOKUP(EJ63,'Footnotes list'!$D$9:$E$58,2,FALSE)=0,\"\",VLOOKUP(EJ63,'Footnotes list'!$D$9:$E$58,2,FALSE) ) )","v":""},null,null,null,null,{"$f":"IF(TRIM(EO63)=\"\", \"\", IF(VLOOKUP(EO63,'Footnotes list'!$D$9:$E$58,2,FALSE)=0,\"\",VLOOKUP(EO63,'Footnotes list'!$D$9:$E$58,2,FALSE) ) )","v":""},null,null,null,null,{"$f":"IF(TRIM(ET63)=\"\", \"\", IF(VLOOKUP(ET63,'Footnotes list'!$D$9:$E$58,2,FALSE)=0,\"\",VLOOKUP(ET63,'Footnotes list'!$D$9:$E$58,2,FALSE) ) )","v":""},null,null,null,null,{"$f":"IF(TRIM(EY63)=\"\", \"\", IF(VLOOKUP(EY63,'Footnotes list'!$D$9:$E$58,2,FALSE)=0,\"\",VLOOKUP(EY63,'Footnotes list'!$D$9:$E$58,2,FALSE) ) )","v":""}]
[null,null,"C20","TOT_EGSS","Total C20 - Manufacture of chemicals and chemical products, of which:",null,null,null,null,null,{"$f":"IF(TRIM(J64)=\"\", \"\", IF(VLOOKUP(J64,'Footnotes list'!$D$9:$E$58,2,FALSE)=0,\"\",VLOOKUP(J64,'Footnotes list'!$D$9:$E$58,2,FALSE) ) )","v":""},null,null,null,null,{"$f":"IF(TRIM(O64)=\"\", \"\", IF(VLOOKUP(O64,'Footnotes list'!$D$9:$E$58,2,FALSE)=0,\"\",VLOOKUP(O64,'Footnotes list'!$D$9:$E$58,2,FALSE) ) )","v":""},null,null,null,null,{"$f":"IF(TRIM(T64)=\"\", \"\", IF(VLOOKUP(T64,'Footnotes list'!$D$9:$E$58,2,FALSE)=0,\"\",VLOOKUP(T64,'Footnotes list'!$D$9:$E$58,2,FALSE) ) )","v":""},null,null,null,null,{"$f":"IF(TRIM(Y64)=\"\", \"\", IF(VLOOKUP(Y64,'Footnotes list'!$D$9:$E$58,2,FALSE)=0,\"\",VLOOKUP(Y64,'Footnotes list'!$D$9:$E$58,2,FALSE) ) )","v":""},null,null,null,null,{"$f":"IF(TRIM(AD64)=\"\", \"\", IF(VLOOKUP(AD64,'Footnotes list'!$D$9:$E$58,2,FALSE)=0,\"\",VLOOKUP(AD64,'Footnotes list'!$D$9:$E$58,2,FALSE) ) )","v":""},null,null,null,null,{"$f":"IF(TRIM(AI64)=\"\", \"\", IF(VLOOKUP(AI64,'Footnotes list'!$D$9:$E$58,2,FALSE)=0,\"\",VLOOKUP(AI64,'Footnotes list'!$D$9:$E$58,2,FALSE) ) )","v":""},null,null,null,null,{"$f":"IF(TRIM(AN64)=\"\", \"\", IF(VLOOKUP(AN64,'Footnotes list'!$D$9:$E$58,2,FALSE)=0,\"\",VLOOKUP(AN64,'Footnotes list'!$D$9:$E$58,2,FALSE) ) )","v":""},null,null,null,null,{"$f":"IF(TRIM(AS64)=\"\", \"\", IF(VLOOKUP(AS64,'Footnotes list'!$D$9:$E$58,2,FALSE)=0,\"\",VLOOKUP(AS64,'Footnotes list'!$D$9:$E$58,2,FALSE) ) )","v":""},null,null,null,null,{"$f":"IF(TRIM(AX64)=\"\", \"\", IF(VLOOKUP(AX64,'Footnotes list'!$D$9:$E$58,2,FALSE)=0,\"\",VLOOKUP(AX64,'Footnotes list'!$D$9:$E$58,2,FALSE) ) )","v":""},null,null,null,null,{"$f":"IF(TRIM(BC64)=\"\", \"\", IF(VLOOKUP(BC64,'Footnotes list'!$D$9:$E$58,2,FALSE)=0,\"\",VLOOKUP(BC64,'Footnotes list'!$D$9:$E$58,2,FALSE) ) )","v":""},null,null,null,null,{"$f":"IF(TRIM(BH64)=\"\", \"\", IF(VLOOKUP(BH64,'Footnotes list'!$D$9:$E$58,2,FALSE)=0,\"\",VLOOKUP(BH64,'Footnotes list'!$D$9:$E$58,2,FALSE) ) )","v":""},null,null,null,null,{"$f":"IF(TRIM(BM64)=\"\", \"\", IF(VLOOKUP(BM64,'Footnotes list'!$D$9:$E$58,2,FALSE)=0,\"\",VLOOKUP(BM64,'Footnotes list'!$D$9:$E$58,2,FALSE) ) )","v":""},null,null,null,null,{"$f":"IF(TRIM(BR64)=\"\", \"\", IF(VLOOKUP(BR64,'Footnotes list'!$D$9:$E$58,2,FALSE)=0,\"\",VLOOKUP(BR64,'Footnotes list'!$D$9:$E$58,2,FALSE) ) )","v":""},null,null,null,null,{"$f":"IF(TRIM(BW64)=\"\", \"\", IF(VLOOKUP(BW64,'Footnotes list'!$D$9:$E$58,2,FALSE)=0,\"\",VLOOKUP(BW64,'Footnotes list'!$D$9:$E$58,2,FALSE) ) )","v":""},null,null,null,null,{"$f":"IF(TRIM(CB64)=\"\", \"\", IF(VLOOKUP(CB64,'Footnotes list'!$D$9:$E$58,2,FALSE)=0,\"\",VLOOKUP(CB64,'Footnotes list'!$D$9:$E$58,2,FALSE) ) )","v":""},null,null,null,null,{"$f":"IF(TRIM(CG64)=\"\", \"\", IF(VLOOKUP(CG64,'Footnotes list'!$D$9:$E$58,2,FALSE)=0,\"\",VLOOKUP(CG64,'Footnotes list'!$D$9:$E$58,2,FALSE) ) )","v":""},null,null,null,null,{"$f":"IF(TRIM(CL64)=\"\", \"\", IF(VLOOKUP(CL64,'Footnotes list'!$D$9:$E$58,2,FALSE)=0,\"\",VLOOKUP(CL64,'Footnotes list'!$D$9:$E$58,2,FALSE) ) )","v":""},null,null,null,null,{"$f":"IF(TRIM(CQ64)=\"\", \"\", IF(VLOOKUP(CQ64,'Footnotes list'!$D$9:$E$58,2,FALSE)=0,\"\",VLOOKUP(CQ64,'Footnotes list'!$D$9:$E$58,2,FALSE) ) )","v":""},null,null,null,null,{"$f":"IF(TRIM(CV64)=\"\", \"\", IF(VLOOKUP(CV64,'Footnotes list'!$D$9:$E$58,2,FALSE)=0,\"\",VLOOKUP(CV64,'Footnotes list'!$D$9:$E$58,2,FALSE) ) )","v":""},null,null,null,null,{"$f":"IF(TRIM(DA64)=\"\", \"\", IF(VLOOKUP(DA64,'Footnotes list'!$D$9:$E$58,2,FALSE)=0,\"\",VLOOKUP(DA64,'Footnotes list'!$D$9:$E$58,2,FALSE) ) )","v":""},null,null,null,null,{"$f":"IF(TRIM(DF64)=\"\", \"\", IF(VLOOKUP(DF64,'Footnotes list'!$D$9:$E$58,2,FALSE)=0,\"\",VLOOKUP(DF64,'Footnotes list'!$D$9:$E$58,2,FALSE) ) )","v":""},null,null,null,null,{"$f":"IF(TRIM(DK64)=\"\", \"\", IF(VLOOKUP(DK64,'Footnotes list'!$D$9:$E$58,2,FALSE)=0,\"\",VLOOKUP(DK64,'Footnotes list'!$D$9:$E$58,2,FALSE) ) )","v":""},null,null,null,null,{"$f":"IF(TRIM(DP64)=\"\", \"\", IF(VLOOKUP(DP64,'Footnotes list'!$D$9:$E$58,2,FALSE)=0,\"\",VLOOKUP(DP64,'Footnotes list'!$D$9:$E$58,2,FALSE) ) )","v":""},null,null,null,null,{"$f":"IF(TRIM(DU64)=\"\", \"\", IF(VLOOKUP(DU64,'Footnotes list'!$D$9:$E$58,2,FALSE)=0,\"\",VLOOKUP(DU64,'Footnotes list'!$D$9:$E$58,2,FALSE) ) )","v":""},null,null,null,null,{"$f":"IF(TRIM(DZ64)=\"\", \"\", IF(VLOOKUP(DZ64,'Footnotes list'!$D$9:$E$58,2,FALSE)=0,\"\",VLOOKUP(DZ64,'Footnotes list'!$D$9:$E$58,2,FALSE) ) )","v":""},null,null,null,null,{"$f":"IF(TRIM(EE64)=\"\", \"\", IF(VLOOKUP(EE64,'Footnotes list'!$D$9:$E$58,2,FALSE)=0,\"\",VLOOKUP(EE64,'Footnotes list'!$D$9:$E$58,2,FALSE) ) )","v":""},null,null,null,null,{"$f":"IF(TRIM(EJ64)=\"\", \"\", IF(VLOOKUP(EJ64,'Footnotes list'!$D$9:$E$58,2,FALSE)=0,\"\",VLOOKUP(EJ64,'Footnotes list'!$D$9:$E$58,2,FALSE) ) )","v":""},null,null,null,null,{"$f":"IF(TRIM(EO64)=\"\", \"\", IF(VLOOKUP(EO64,'Footnotes list'!$D$9:$E$58,2,FALSE)=0,\"\",VLOOKUP(EO64,'Footnotes list'!$D$9:$E$58,2,FALSE) ) )","v":""},null,null,null,null,{"$f":"IF(TRIM(ET64)=\"\", \"\", IF(VLOOKUP(ET64,'Footnotes list'!$D$9:$E$58,2,FALSE)=0,\"\",VLOOKUP(ET64,'Footnotes list'!$D$9:$E$58,2,FALSE) ) )","v":""},null,null,null,null,{"$f":"IF(TRIM(EY64)=\"\", \"\", IF(VLOOKUP(EY64,'Footnotes list'!$D$9:$E$58,2,FALSE)=0,\"\",VLOOKUP(EY64,'Footnotes list'!$D$9:$E$58,2,FALSE) ) )","v":""}]
[null,null,"C20","ANC","ancillary activities",null,null,null,null,null,{"$f":"IF(TRIM(J65)=\"\", \"\", IF(VLOOKUP(J65,'Footnotes list'!$D$9:$E$58,2,FALSE)=0,\"\",VLOOKUP(J65,'Footnotes list'!$D$9:$E$58,2,FALSE) ) )","v":""},null,null,null,null,{"$f":"IF(TRIM(O65)=\"\", \"\", IF(VLOOKUP(O65,'Footnotes list'!$D$9:$E$58,2,FALSE)=0,\"\",VLOOKUP(O65,'Footnotes list'!$D$9:$E$58,2,FALSE) ) )","v":""},null,null,null,null,{"$f":"IF(TRIM(T65)=\"\", \"\", IF(VLOOKUP(T65,'Footnotes list'!$D$9:$E$58,2,FALSE)=0,\"\",VLOOKUP(T65,'Footnotes list'!$D$9:$E$58,2,FALSE) ) )","v":""},null,null,null,null,{"$f":"IF(TRIM(Y65)=\"\", \"\", IF(VLOOKUP(Y65,'Footnotes list'!$D$9:$E$58,2,FALSE)=0,\"\",VLOOKUP(Y65,'Footnotes list'!$D$9:$E$58,2,FALSE) ) )","v":""},null,null,null,null,{"$f":"IF(TRIM(AD65)=\"\", \"\", IF(VLOOKUP(AD65,'Footnotes list'!$D$9:$E$58,2,FALSE)=0,\"\",VLOOKUP(AD65,'Footnotes list'!$D$9:$E$58,2,FALSE) ) )","v":""},null,null,null,null,{"$f":"IF(TRIM(AI65)=\"\", \"\", IF(VLOOKUP(AI65,'Footnotes list'!$D$9:$E$58,2,FALSE)=0,\"\",VLOOKUP(AI65,'Footnotes list'!$D$9:$E$58,2,FALSE) ) )","v":""},null,null,null,null,{"$f":"IF(TRIM(AN65)=\"\", \"\", IF(VLOOKUP(AN65,'Footnotes list'!$D$9:$E$58,2,FALSE)=0,\"\",VLOOKUP(AN65,'Footnotes list'!$D$9:$E$58,2,FALSE) ) )","v":""},null,null,null,null,{"$f":"IF(TRIM(AS65)=\"\", \"\", IF(VLOOKUP(AS65,'Footnotes list'!$D$9:$E$58,2,FALSE)=0,\"\",VLOOKUP(AS65,'Footnotes list'!$D$9:$E$58,2,FALSE) ) )","v":""},null,null,null,null,{"$f":"IF(TRIM(AX65)=\"\", \"\", IF(VLOOKUP(AX65,'Footnotes list'!$D$9:$E$58,2,FALSE)=0,\"\",VLOOKUP(AX65,'Footnotes list'!$D$9:$E$58,2,FALSE) ) )","v":""},null,null,null,null,{"$f":"IF(TRIM(BC65)=\"\", \"\", IF(VLOOKUP(BC65,'Footnotes list'!$D$9:$E$58,2,FALSE)=0,\"\",VLOOKUP(BC65,'Footnotes list'!$D$9:$E$58,2,FALSE) ) )","v":""},null,null,null,null,{"$f":"IF(TRIM(BH65)=\"\", \"\", IF(VLOOKUP(BH65,'Footnotes list'!$D$9:$E$58,2,FALSE)=0,\"\",VLOOKUP(BH65,'Footnotes list'!$D$9:$E$58,2,FALSE) ) )","v":""},null,null,null,null,{"$f":"IF(TRIM(BM65)=\"\", \"\", IF(VLOOKUP(BM65,'Footnotes list'!$D$9:$E$58,2,FALSE)=0,\"\",VLOOKUP(BM65,'Footnotes list'!$D$9:$E$58,2,FALSE) ) )","v":""},null,null,null,null,{"$f":"IF(TRIM(BR65)=\"\", \"\", IF(VLOOKUP(BR65,'Footnotes list'!$D$9:$E$58,2,FALSE)=0,\"\",VLOOKUP(BR65,'Footnotes list'!$D$9:$E$58,2,FALSE) ) )","v":""},null,null,null,null,{"$f":"IF(TRIM(BW65)=\"\", \"\", IF(VLOOKUP(BW65,'Footnotes list'!$D$9:$E$58,2,FALSE)=0,\"\",VLOOKUP(BW65,'Footnotes list'!$D$9:$E$58,2,FALSE) ) )","v":""},null,null,null,null,{"$f":"IF(TRIM(CB65)=\"\", \"\", IF(VLOOKUP(CB65,'Footnotes list'!$D$9:$E$58,2,FALSE)=0,\"\",VLOOKUP(CB65,'Footnotes list'!$D$9:$E$58,2,FALSE) ) )","v":""},null,null,null,null,{"$f":"IF(TRIM(CG65)=\"\", \"\", IF(VLOOKUP(CG65,'Footnotes list'!$D$9:$E$58,2,FALSE)=0,\"\",VLOOKUP(CG65,'Footnotes list'!$D$9:$E$58,2,FALSE) ) )","v":""},null,null,null,null,{"$f":"IF(TRIM(CL65)=\"\", \"\", IF(VLOOKUP(CL65,'Footnotes list'!$D$9:$E$58,2,FALSE)=0,\"\",VLOOKUP(CL65,'Footnotes list'!$D$9:$E$58,2,FALSE) ) )","v":""},null,null,null,null,{"$f":"IF(TRIM(CQ65)=\"\", \"\", IF(VLOOKUP(CQ65,'Footnotes list'!$D$9:$E$58,2,FALSE)=0,\"\",VLOOKUP(CQ65,'Footnotes list'!$D$9:$E$58,2,FALSE) ) )","v":""},null,null,null,null,{"$f":"IF(TRIM(CV65)=\"\", \"\", IF(VLOOKUP(CV65,'Footnotes list'!$D$9:$E$58,2,FALSE)=0,\"\",VLOOKUP(CV65,'Footnotes list'!$D$9:$E$58,2,FALSE) ) )","v":""},null,null,null,null,{"$f":"IF(TRIM(DA65)=\"\", \"\", IF(VLOOKUP(DA65,'Footnotes list'!$D$9:$E$58,2,FALSE)=0,\"\",VLOOKUP(DA65,'Footnotes list'!$D$9:$E$58,2,FALSE) ) )","v":""},null,null,null,null,{"$f":"IF(TRIM(DF65)=\"\", \"\", IF(VLOOKUP(DF65,'Footnotes list'!$D$9:$E$58,2,FALSE)=0,\"\",VLOOKUP(DF65,'Footnotes list'!$D$9:$E$58,2,FALSE) ) )","v":""},null,null,null,null,{"$f":"IF(TRIM(DK65)=\"\", \"\", IF(VLOOKUP(DK65,'Footnotes list'!$D$9:$E$58,2,FALSE)=0,\"\",VLOOKUP(DK65,'Footnotes list'!$D$9:$E$58,2,FALSE) ) )","v":""},null,null,null,null,{"$f":"IF(TRIM(DP65)=\"\", \"\", IF(VLOOKUP(DP65,'Footnotes list'!$D$9:$E$58,2,FALSE)=0,\"\",VLOOKUP(DP65,'Footnotes list'!$D$9:$E$58,2,FALSE) ) )","v":""},null,null,null,null,{"$f":"IF(TRIM(DU65)=\"\", \"\", IF(VLOOKUP(DU65,'Footnotes list'!$D$9:$E$58,2,FALSE)=0,\"\",VLOOKUP(DU65,'Footnotes list'!$D$9:$E$58,2,FALSE) ) )","v":""},null,null,null,null,{"$f":"IF(TRIM(DZ65)=\"\", \"\", IF(VLOOKUP(DZ65,'Footnotes list'!$D$9:$E$58,2,FALSE)=0,\"\",VLOOKUP(DZ65,'Footnotes list'!$D$9:$E$58,2,FALSE) ) )","v":""},null,null,null,null,{"$f":"IF(TRIM(EE65)=\"\", \"\", IF(VLOOKUP(EE65,'Footnotes list'!$D$9:$E$58,2,FALSE)=0,\"\",VLOOKUP(EE65,'Footnotes list'!$D$9:$E$58,2,FALSE) ) )","v":""},null,null,null,null,{"$f":"IF(TRIM(EJ65)=\"\", \"\", IF(VLOOKUP(EJ65,'Footnotes list'!$D$9:$E$58,2,FALSE)=0,\"\",VLOOKUP(EJ65,'Footnotes list'!$D$9:$E$58,2,FALSE) ) )","v":""},null,null,null,null,{"$f":"IF(TRIM(EO65)=\"\", \"\", IF(VLOOKUP(EO65,'Footnotes list'!$D$9:$E$58,2,FALSE)=0,\"\",VLOOKUP(EO65,'Footnotes list'!$D$9:$E$58,2,FALSE) ) )","v":""},null,null,null,null,{"$f":"IF(TRIM(ET65)=\"\", \"\", IF(VLOOKUP(ET65,'Footnotes list'!$D$9:$E$58,2,FALSE)=0,\"\",VLOOKUP(ET65,'Footnotes list'!$D$9:$E$58,2,FALSE) ) )","v":""},null,null,null,null,{"$f":"IF(TRIM(EY65)=\"\", \"\", IF(VLOOKUP(EY65,'Footnotes list'!$D$9:$E$58,2,FALSE)=0,\"\",VLOOKUP(EY65,'Footnotes list'!$D$9:$E$58,2,FALSE) ) )","v":""}]
[null,null,"C20","NMKT","non-market activities",null,null,null,null,null,{"$f":"IF(TRIM(J66)=\"\", \"\", IF(VLOOKUP(J66,'Footnotes list'!$D$9:$E$58,2,FALSE)=0,\"\",VLOOKUP(J66,'Footnotes list'!$D$9:$E$58,2,FALSE) ) )","v":""},null,null,null,null,{"$f":"IF(TRIM(O66)=\"\", \"\", IF(VLOOKUP(O66,'Footnotes list'!$D$9:$E$58,2,FALSE)=0,\"\",VLOOKUP(O66,'Footnotes list'!$D$9:$E$58,2,FALSE) ) )","v":""},null,null,null,null,{"$f":"IF(TRIM(T66)=\"\", \"\", IF(VLOOKUP(T66,'Footnotes list'!$D$9:$E$58,2,FALSE)=0,\"\",VLOOKUP(T66,'Footnotes list'!$D$9:$E$58,2,FALSE) ) )","v":""},null,null,null,null,{"$f":"IF(TRIM(Y66)=\"\", \"\", IF(VLOOKUP(Y66,'Footnotes list'!$D$9:$E$58,2,FALSE)=0,\"\",VLOOKUP(Y66,'Footnotes list'!$D$9:$E$58,2,FALSE) ) )","v":""},null,null,null,null,{"$f":"IF(TRIM(AD66)=\"\", \"\", IF(VLOOKUP(AD66,'Footnotes list'!$D$9:$E$58,2,FALSE)=0,\"\",VLOOKUP(AD66,'Footnotes list'!$D$9:$E$58,2,FALSE) ) )","v":""},null,null,null,null,{"$f":"IF(TRIM(AI66)=\"\", \"\", IF(VLOOKUP(AI66,'Footnotes list'!$D$9:$E$58,2,FALSE)=0,\"\",VLOOKUP(AI66,'Footnotes list'!$D$9:$E$58,2,FALSE) ) )","v":""},null,null,null,null,{"$f":"IF(TRIM(AN66)=\"\", \"\", IF(VLOOKUP(AN66,'Footnotes list'!$D$9:$E$58,2,FALSE)=0,\"\",VLOOKUP(AN66,'Footnotes list'!$D$9:$E$58,2,FALSE) ) )","v":""},null,null,null,null,{"$f":"IF(TRIM(AS66)=\"\", \"\", IF(VLOOKUP(AS66,'Footnotes list'!$D$9:$E$58,2,FALSE)=0,\"\",VLOOKUP(AS66,'Footnotes list'!$D$9:$E$58,2,FALSE) ) )","v":""},null,null,null,null,{"$f":"IF(TRIM(AX66)=\"\", \"\", IF(VLOOKUP(AX66,'Footnotes list'!$D$9:$E$58,2,FALSE)=0,\"\",VLOOKUP(AX66,'Footnotes list'!$D$9:$E$58,2,FALSE) ) )","v":""},null,null,null,null,{"$f":"IF(TRIM(BC66)=\"\", \"\", IF(VLOOKUP(BC66,'Footnotes list'!$D$9:$E$58,2,FALSE)=0,\"\",VLOOKUP(BC66,'Footnotes list'!$D$9:$E$58,2,FALSE) ) )","v":""},null,null,null,null,{"$f":"IF(TRIM(BH66)=\"\", \"\", IF(VLOOKUP(BH66,'Footnotes list'!$D$9:$E$58,2,FALSE)=0,\"\",VLOOKUP(BH66,'Footnotes list'!$D$9:$E$58,2,FALSE) ) )","v":""},null,null,null,null,{"$f":"IF(TRIM(BM66)=\"\", \"\", IF(VLOOKUP(BM66,'Footnotes list'!$D$9:$E$58,2,FALSE)=0,\"\",VLOOKUP(BM66,'Footnotes list'!$D$9:$E$58,2,FALSE) ) )","v":""},null,null,null,null,{"$f":"IF(TRIM(BR66)=\"\", \"\", IF(VLOOKUP(BR66,'Footnotes list'!$D$9:$E$58,2,FALSE)=0,\"\",VLOOKUP(BR66,'Footnotes list'!$D$9:$E$58,2,FALSE) ) )","v":""},null,null,null,null,{"$f":"IF(TRIM(BW66)=\"\", \"\", IF(VLOOKUP(BW66,'Footnotes list'!$D$9:$E$58,2,FALSE)=0,\"\",VLOOKUP(BW66,'Footnotes list'!$D$9:$E$58,2,FALSE) ) )","v":""},null,null,null,null,{"$f":"IF(TRIM(CB66)=\"\", \"\", IF(VLOOKUP(CB66,'Footnotes list'!$D$9:$E$58,2,FALSE)=0,\"\",VLOOKUP(CB66,'Footnotes list'!$D$9:$E$58,2,FALSE) ) )","v":""},null,null,null,null,{"$f":"IF(TRIM(CG66)=\"\", \"\", IF(VLOOKUP(CG66,'Footnotes list'!$D$9:$E$58,2,FALSE)=0,\"\",VLOOKUP(CG66,'Footnotes list'!$D$9:$E$58,2,FALSE) ) )","v":""},null,null,null,null,{"$f":"IF(TRIM(CL66)=\"\", \"\", IF(VLOOKUP(CL66,'Footnotes list'!$D$9:$E$58,2,FALSE)=0,\"\",VLOOKUP(CL66,'Footnotes list'!$D$9:$E$58,2,FALSE) ) )","v":""},null,null,null,null,{"$f":"IF(TRIM(CQ66)=\"\", \"\", IF(VLOOKUP(CQ66,'Footnotes list'!$D$9:$E$58,2,FALSE)=0,\"\",VLOOKUP(CQ66,'Footnotes list'!$D$9:$E$58,2,FALSE) ) )","v":""},null,null,null,null,{"$f":"IF(TRIM(CV66)=\"\", \"\", IF(VLOOKUP(CV66,'Footnotes list'!$D$9:$E$58,2,FALSE)=0,\"\",VLOOKUP(CV66,'Footnotes list'!$D$9:$E$58,2,FALSE) ) )","v":""},null,null,null,null,{"$f":"IF(TRIM(DA66)=\"\", \"\", IF(VLOOKUP(DA66,'Footnotes list'!$D$9:$E$58,2,FALSE)=0,\"\",VLOOKUP(DA66,'Footnotes list'!$D$9:$E$58,2,FALSE) ) )","v":""},null,null,null,null,{"$f":"IF(TRIM(DF66)=\"\", \"\", IF(VLOOKUP(DF66,'Footnotes list'!$D$9:$E$58,2,FALSE)=0,\"\",VLOOKUP(DF66,'Footnotes list'!$D$9:$E$58,2,FALSE) ) )","v":""},null,null,null,null,{"$f":"IF(TRIM(DK66)=\"\", \"\", IF(VLOOKUP(DK66,'Footnotes list'!$D$9:$E$58,2,FALSE)=0,\"\",VLOOKUP(DK66,'Footnotes list'!$D$9:$E$58,2,FALSE) ) )","v":""},null,null,null,null,{"$f":"IF(TRIM(DP66)=\"\", \"\", IF(VLOOKUP(DP66,'Footnotes list'!$D$9:$E$58,2,FALSE)=0,\"\",VLOOKUP(DP66,'Footnotes list'!$D$9:$E$58,2,FALSE) ) )","v":""},null,null,null,null,{"$f":"IF(TRIM(DU66)=\"\", \"\", IF(VLOOKUP(DU66,'Footnotes list'!$D$9:$E$58,2,FALSE)=0,\"\",VLOOKUP(DU66,'Footnotes list'!$D$9:$E$58,2,FALSE) ) )","v":""},null,null,null,null,{"$f":"IF(TRIM(DZ66)=\"\", \"\", IF(VLOOKUP(DZ66,'Footnotes list'!$D$9:$E$58,2,FALSE)=0,\"\",VLOOKUP(DZ66,'Footnotes list'!$D$9:$E$58,2,FALSE) ) )","v":""},null,null,null,null,{"$f":"IF(TRIM(EE66)=\"\", \"\", IF(VLOOKUP(EE66,'Footnotes list'!$D$9:$E$58,2,FALSE)=0,\"\",VLOOKUP(EE66,'Footnotes list'!$D$9:$E$58,2,FALSE) ) )","v":""},null,null,null,null,{"$f":"IF(TRIM(EJ66)=\"\", \"\", IF(VLOOKUP(EJ66,'Footnotes list'!$D$9:$E$58,2,FALSE)=0,\"\",VLOOKUP(EJ66,'Footnotes list'!$D$9:$E$58,2,FALSE) ) )","v":""},null,null,null,null,{"$f":"IF(TRIM(EO66)=\"\", \"\", IF(VLOOKUP(EO66,'Footnotes list'!$D$9:$E$58,2,FALSE)=0,\"\",VLOOKUP(EO66,'Footnotes list'!$D$9:$E$58,2,FALSE) ) )","v":""},null,null,null,null,{"$f":"IF(TRIM(ET66)=\"\", \"\", IF(VLOOKUP(ET66,'Footnotes list'!$D$9:$E$58,2,FALSE)=0,\"\",VLOOKUP(ET66,'Footnotes list'!$D$9:$E$58,2,FALSE) ) )","v":""},null,null,null,null,{"$f":"IF(TRIM(EY66)=\"\", \"\", IF(VLOOKUP(EY66,'Footnotes list'!$D$9:$E$58,2,FALSE)=0,\"\",VLOOKUP(EY66,'Footnotes list'!$D$9:$E$58,2,FALSE) ) )","v":""}]
[null,null,"C20","OWN_USE","activities for own final use",null,null,null,null,null,{"$f":"IF(TRIM(J67)=\"\", \"\", IF(VLOOKUP(J67,'Footnotes list'!$D$9:$E$58,2,FALSE)=0,\"\",VLOOKUP(J67,'Footnotes list'!$D$9:$E$58,2,FALSE) ) )","v":""},null,null,null,null,{"$f":"IF(TRIM(O67)=\"\", \"\", IF(VLOOKUP(O67,'Footnotes list'!$D$9:$E$58,2,FALSE)=0,\"\",VLOOKUP(O67,'Footnotes list'!$D$9:$E$58,2,FALSE) ) )","v":""},null,null,null,null,{"$f":"IF(TRIM(T67)=\"\", \"\", IF(VLOOKUP(T67,'Footnotes list'!$D$9:$E$58,2,FALSE)=0,\"\",VLOOKUP(T67,'Footnotes list'!$D$9:$E$58,2,FALSE) ) )","v":""},null,null,null,null,{"$f":"IF(TRIM(Y67)=\"\", \"\", IF(VLOOKUP(Y67,'Footnotes list'!$D$9:$E$58,2,FALSE)=0,\"\",VLOOKUP(Y67,'Footnotes list'!$D$9:$E$58,2,FALSE) ) )","v":""},null,null,null,null,{"$f":"IF(TRIM(AD67)=\"\", \"\", IF(VLOOKUP(AD67,'Footnotes list'!$D$9:$E$58,2,FALSE)=0,\"\",VLOOKUP(AD67,'Footnotes list'!$D$9:$E$58,2,FALSE) ) )","v":""},null,null,null,null,{"$f":"IF(TRIM(AI67)=\"\", \"\", IF(VLOOKUP(AI67,'Footnotes list'!$D$9:$E$58,2,FALSE)=0,\"\",VLOOKUP(AI67,'Footnotes list'!$D$9:$E$58,2,FALSE) ) )","v":""},null,null,null,null,{"$f":"IF(TRIM(AN67)=\"\", \"\", IF(VLOOKUP(AN67,'Footnotes list'!$D$9:$E$58,2,FALSE)=0,\"\",VLOOKUP(AN67,'Footnotes list'!$D$9:$E$58,2,FALSE) ) )","v":""},null,null,null,null,{"$f":"IF(TRIM(AS67)=\"\", \"\", IF(VLOOKUP(AS67,'Footnotes list'!$D$9:$E$58,2,FALSE)=0,\"\",VLOOKUP(AS67,'Footnotes list'!$D$9:$E$58,2,FALSE) ) )","v":""},null,null,null,null,{"$f":"IF(TRIM(AX67)=\"\", \"\", IF(VLOOKUP(AX67,'Footnotes list'!$D$9:$E$58,2,FALSE)=0,\"\",VLOOKUP(AX67,'Footnotes list'!$D$9:$E$58,2,FALSE) ) )","v":""},null,null,null,null,{"$f":"IF(TRIM(BC67)=\"\", \"\", IF(VLOOKUP(BC67,'Footnotes list'!$D$9:$E$58,2,FALSE)=0,\"\",VLOOKUP(BC67,'Footnotes list'!$D$9:$E$58,2,FALSE) ) )","v":""},null,null,null,null,{"$f":"IF(TRIM(BH67)=\"\", \"\", IF(VLOOKUP(BH67,'Footnotes list'!$D$9:$E$58,2,FALSE)=0,\"\",VLOOKUP(BH67,'Footnotes list'!$D$9:$E$58,2,FALSE) ) )","v":""},null,null,null,null,{"$f":"IF(TRIM(BM67)=\"\", \"\", IF(VLOOKUP(BM67,'Footnotes list'!$D$9:$E$58,2,FALSE)=0,\"\",VLOOKUP(BM67,'Footnotes list'!$D$9:$E$58,2,FALSE) ) )","v":""},null,null,null,null,{"$f":"IF(TRIM(BR67)=\"\", \"\", IF(VLOOKUP(BR67,'Footnotes list'!$D$9:$E$58,2,FALSE)=0,\"\",VLOOKUP(BR67,'Footnotes list'!$D$9:$E$58,2,FALSE) ) )","v":""},null,null,null,null,{"$f":"IF(TRIM(BW67)=\"\", \"\", IF(VLOOKUP(BW67,'Footnotes list'!$D$9:$E$58,2,FALSE)=0,\"\",VLOOKUP(BW67,'Footnotes list'!$D$9:$E$58,2,FALSE) ) )","v":""},null,null,null,null,{"$f":"IF(TRIM(CB67)=\"\", \"\", IF(VLOOKUP(CB67,'Footnotes list'!$D$9:$E$58,2,FALSE)=0,\"\",VLOOKUP(CB67,'Footnotes list'!$D$9:$E$58,2,FALSE) ) )","v":""},null,null,null,null,{"$f":"IF(TRIM(CG67)=\"\", \"\", IF(VLOOKUP(CG67,'Footnotes list'!$D$9:$E$58,2,FALSE)=0,\"\",VLOOKUP(CG67,'Footnotes list'!$D$9:$E$58,2,FALSE) ) )","v":""},null,null,null,null,{"$f":"IF(TRIM(CL67)=\"\", \"\", IF(VLOOKUP(CL67,'Footnotes list'!$D$9:$E$58,2,FALSE)=0,\"\",VLOOKUP(CL67,'Footnotes list'!$D$9:$E$58,2,FALSE) ) )","v":""},null,null,null,null,{"$f":"IF(TRIM(CQ67)=\"\", \"\", IF(VLOOKUP(CQ67,'Footnotes list'!$D$9:$E$58,2,FALSE)=0,\"\",VLOOKUP(CQ67,'Footnotes list'!$D$9:$E$58,2,FALSE) ) )","v":""},null,null,null,null,{"$f":"IF(TRIM(CV67)=\"\", \"\", IF(VLOOKUP(CV67,'Footnotes list'!$D$9:$E$58,2,FALSE)=0,\"\",VLOOKUP(CV67,'Footnotes list'!$D$9:$E$58,2,FALSE) ) )","v":""},null,null,null,null,{"$f":"IF(TRIM(DA67)=\"\", \"\", IF(VLOOKUP(DA67,'Footnotes list'!$D$9:$E$58,2,FALSE)=0,\"\",VLOOKUP(DA67,'Footnotes list'!$D$9:$E$58,2,FALSE) ) )","v":""},null,null,null,null,{"$f":"IF(TRIM(DF67)=\"\", \"\", IF(VLOOKUP(DF67,'Footnotes list'!$D$9:$E$58,2,FALSE)=0,\"\",VLOOKUP(DF67,'Footnotes list'!$D$9:$E$58,2,FALSE) ) )","v":""},null,null,null,null,{"$f":"IF(TRIM(DK67)=\"\", \"\", IF(VLOOKUP(DK67,'Footnotes list'!$D$9:$E$58,2,FALSE)=0,\"\",VLOOKUP(DK67,'Footnotes list'!$D$9:$E$58,2,FALSE) ) )","v":""},null,null,null,null,{"$f":"IF(TRIM(DP67)=\"\", \"\", IF(VLOOKUP(DP67,'Footnotes list'!$D$9:$E$58,2,FALSE)=0,\"\",VLOOKUP(DP67,'Footnotes list'!$D$9:$E$58,2,FALSE) ) )","v":""},null,null,null,null,{"$f":"IF(TRIM(DU67)=\"\", \"\", IF(VLOOKUP(DU67,'Footnotes list'!$D$9:$E$58,2,FALSE)=0,\"\",VLOOKUP(DU67,'Footnotes list'!$D$9:$E$58,2,FALSE) ) )","v":""},null,null,null,null,{"$f":"IF(TRIM(DZ67)=\"\", \"\", IF(VLOOKUP(DZ67,'Footnotes list'!$D$9:$E$58,2,FALSE)=0,\"\",VLOOKUP(DZ67,'Footnotes list'!$D$9:$E$58,2,FALSE) ) )","v":""},null,null,null,null,{"$f":"IF(TRIM(EE67)=\"\", \"\", IF(VLOOKUP(EE67,'Footnotes list'!$D$9:$E$58,2,FALSE)=0,\"\",VLOOKUP(EE67,'Footnotes list'!$D$9:$E$58,2,FALSE) ) )","v":""},null,null,null,null,{"$f":"IF(TRIM(EJ67)=\"\", \"\", IF(VLOOKUP(EJ67,'Footnotes list'!$D$9:$E$58,2,FALSE)=0,\"\",VLOOKUP(EJ67,'Footnotes list'!$D$9:$E$58,2,FALSE) ) )","v":""},null,null,null,null,{"$f":"IF(TRIM(EO67)=\"\", \"\", IF(VLOOKUP(EO67,'Footnotes list'!$D$9:$E$58,2,FALSE)=0,\"\",VLOOKUP(EO67,'Footnotes list'!$D$9:$E$58,2,FALSE) ) )","v":""},null,null,null,null,{"$f":"IF(TRIM(ET67)=\"\", \"\", IF(VLOOKUP(ET67,'Footnotes list'!$D$9:$E$58,2,FALSE)=0,\"\",VLOOKUP(ET67,'Footnotes list'!$D$9:$E$58,2,FALSE) ) )","v":""},null,null,null,null,{"$f":"IF(TRIM(EY67)=\"\", \"\", IF(VLOOKUP(EY67,'Footnotes list'!$D$9:$E$58,2,FALSE)=0,\"\",VLOOKUP(EY67,'Footnotes list'!$D$9:$E$58,2,FALSE) ) )","v":""}]
[null,null,"C20","MKT","market activities, including:",null,null,null,null,null,{"$f":"IF(TRIM(J68)=\"\", \"\", IF(VLOOKUP(J68,'Footnotes list'!$D$9:$E$58,2,FALSE)=0,\"\",VLOOKUP(J68,'Footnotes list'!$D$9:$E$58,2,FALSE) ) )","v":""},null,null,null,null,{"$f":"IF(TRIM(O68)=\"\", \"\", IF(VLOOKUP(O68,'Footnotes list'!$D$9:$E$58,2,FALSE)=0,\"\",VLOOKUP(O68,'Footnotes list'!$D$9:$E$58,2,FALSE) ) )","v":""},null,null,null,null,{"$f":"IF(TRIM(T68)=\"\", \"\", IF(VLOOKUP(T68,'Footnotes list'!$D$9:$E$58,2,FALSE)=0,\"\",VLOOKUP(T68,'Footnotes list'!$D$9:$E$58,2,FALSE) ) )","v":""},null,null,null,null,{"$f":"IF(TRIM(Y68)=\"\", \"\", IF(VLOOKUP(Y68,'Footnotes list'!$D$9:$E$58,2,FALSE)=0,\"\",VLOOKUP(Y68,'Footnotes list'!$D$9:$E$58,2,FALSE) ) )","v":""},null,null,null,null,{"$f":"IF(TRIM(AD68)=\"\", \"\", IF(VLOOKUP(AD68,'Footnotes list'!$D$9:$E$58,2,FALSE)=0,\"\",VLOOKUP(AD68,'Footnotes list'!$D$9:$E$58,2,FALSE) ) )","v":""},null,null,null,null,{"$f":"IF(TRIM(AI68)=\"\", \"\", IF(VLOOKUP(AI68,'Footnotes list'!$D$9:$E$58,2,FALSE)=0,\"\",VLOOKUP(AI68,'Footnotes list'!$D$9:$E$58,2,FALSE) ) )","v":""},null,null,null,null,{"$f":"IF(TRIM(AN68)=\"\", \"\", IF(VLOOKUP(AN68,'Footnotes list'!$D$9:$E$58,2,FALSE)=0,\"\",VLOOKUP(AN68,'Footnotes list'!$D$9:$E$58,2,FALSE) ) )","v":""},null,null,null,null,{"$f":"IF(TRIM(AS68)=\"\", \"\", IF(VLOOKUP(AS68,'Footnotes list'!$D$9:$E$58,2,FALSE)=0,\"\",VLOOKUP(AS68,'Footnotes list'!$D$9:$E$58,2,FALSE) ) )","v":""},null,null,null,null,{"$f":"IF(TRIM(AX68)=\"\", \"\", IF(VLOOKUP(AX68,'Footnotes list'!$D$9:$E$58,2,FALSE)=0,\"\",VLOOKUP(AX68,'Footnotes list'!$D$9:$E$58,2,FALSE) ) )","v":""},null,null,null,null,{"$f":"IF(TRIM(BC68)=\"\", \"\", IF(VLOOKUP(BC68,'Footnotes list'!$D$9:$E$58,2,FALSE)=0,\"\",VLOOKUP(BC68,'Footnotes list'!$D$9:$E$58,2,FALSE) ) )","v":""},null,null,null,null,{"$f":"IF(TRIM(BH68)=\"\", \"\", IF(VLOOKUP(BH68,'Footnotes list'!$D$9:$E$58,2,FALSE)=0,\"\",VLOOKUP(BH68,'Footnotes list'!$D$9:$E$58,2,FALSE) ) )","v":""},null,null,null,null,{"$f":"IF(TRIM(BM68)=\"\", \"\", IF(VLOOKUP(BM68,'Footnotes list'!$D$9:$E$58,2,FALSE)=0,\"\",VLOOKUP(BM68,'Footnotes list'!$D$9:$E$58,2,FALSE) ) )","v":""},null,null,null,null,{"$f":"IF(TRIM(BR68)=\"\", \"\", IF(VLOOKUP(BR68,'Footnotes list'!$D$9:$E$58,2,FALSE)=0,\"\",VLOOKUP(BR68,'Footnotes list'!$D$9:$E$58,2,FALSE) ) )","v":""},null,null,null,null,{"$f":"IF(TRIM(BW68)=\"\", \"\", IF(VLOOKUP(BW68,'Footnotes list'!$D$9:$E$58,2,FALSE)=0,\"\",VLOOKUP(BW68,'Footnotes list'!$D$9:$E$58,2,FALSE) ) )","v":""},null,null,null,null,{"$f":"IF(TRIM(CB68)=\"\", \"\", IF(VLOOKUP(CB68,'Footnotes list'!$D$9:$E$58,2,FALSE)=0,\"\",VLOOKUP(CB68,'Footnotes list'!$D$9:$E$58,2,FALSE) ) )","v":""},null,null,null,null,{"$f":"IF(TRIM(CG68)=\"\", \"\", IF(VLOOKUP(CG68,'Footnotes list'!$D$9:$E$58,2,FALSE)=0,\"\",VLOOKUP(CG68,'Footnotes list'!$D$9:$E$58,2,FALSE) ) )","v":""},null,null,null,null,{"$f":"IF(TRIM(CL68)=\"\", \"\", IF(VLOOKUP(CL68,'Footnotes list'!$D$9:$E$58,2,FALSE)=0,\"\",VLOOKUP(CL68,'Footnotes list'!$D$9:$E$58,2,FALSE) ) )","v":""},null,null,null,null,{"$f":"IF(TRIM(CQ68)=\"\", \"\", IF(VLOOKUP(CQ68,'Footnotes list'!$D$9:$E$58,2,FALSE)=0,\"\",VLOOKUP(CQ68,'Footnotes list'!$D$9:$E$58,2,FALSE) ) )","v":""},null,null,null,null,{"$f":"IF(TRIM(CV68)=\"\", \"\", IF(VLOOKUP(CV68,'Footnotes list'!$D$9:$E$58,2,FALSE)=0,\"\",VLOOKUP(CV68,'Footnotes list'!$D$9:$E$58,2,FALSE) ) )","v":""},null,null,null,null,{"$f":"IF(TRIM(DA68)=\"\", \"\", IF(VLOOKUP(DA68,'Footnotes list'!$D$9:$E$58,2,FALSE)=0,\"\",VLOOKUP(DA68,'Footnotes list'!$D$9:$E$58,2,FALSE) ) )","v":""},null,null,null,null,{"$f":"IF(TRIM(DF68)=\"\", \"\", IF(VLOOKUP(DF68,'Footnotes list'!$D$9:$E$58,2,FALSE)=0,\"\",VLOOKUP(DF68,'Footnotes list'!$D$9:$E$58,2,FALSE) ) )","v":""},null,null,null,null,{"$f":"IF(TRIM(DK68)=\"\", \"\", IF(VLOOKUP(DK68,'Footnotes list'!$D$9:$E$58,2,FALSE)=0,\"\",VLOOKUP(DK68,'Footnotes list'!$D$9:$E$58,2,FALSE) ) )","v":""},null,null,null,null,{"$f":"IF(TRIM(DP68)=\"\", \"\", IF(VLOOKUP(DP68,'Footnotes list'!$D$9:$E$58,2,FALSE)=0,\"\",VLOOKUP(DP68,'Footnotes list'!$D$9:$E$58,2,FALSE) ) )","v":""},null,null,null,null,{"$f":"IF(TRIM(DU68)=\"\", \"\", IF(VLOOKUP(DU68,'Footnotes list'!$D$9:$E$58,2,FALSE)=0,\"\",VLOOKUP(DU68,'Footnotes list'!$D$9:$E$58,2,FALSE) ) )","v":""},null,null,null,null,{"$f":"IF(TRIM(DZ68)=\"\", \"\", IF(VLOOKUP(DZ68,'Footnotes list'!$D$9:$E$58,2,FALSE)=0,\"\",VLOOKUP(DZ68,'Footnotes list'!$D$9:$E$58,2,FALSE) ) )","v":""},null,null,null,null,{"$f":"IF(TRIM(EE68)=\"\", \"\", IF(VLOOKUP(EE68,'Footnotes list'!$D$9:$E$58,2,FALSE)=0,\"\",VLOOKUP(EE68,'Footnotes list'!$D$9:$E$58,2,FALSE) ) )","v":""},null,null,null,null,{"$f":"IF(TRIM(EJ68)=\"\", \"\", IF(VLOOKUP(EJ68,'Footnotes list'!$D$9:$E$58,2,FALSE)=0,\"\",VLOOKUP(EJ68,'Footnotes list'!$D$9:$E$58,2,FALSE) ) )","v":""},null,null,null,null,{"$f":"IF(TRIM(EO68)=\"\", \"\", IF(VLOOKUP(EO68,'Footnotes list'!$D$9:$E$58,2,FALSE)=0,\"\",VLOOKUP(EO68,'Footnotes list'!$D$9:$E$58,2,FALSE) ) )","v":""},null,null,null,null,{"$f":"IF(TRIM(ET68)=\"\", \"\", IF(VLOOKUP(ET68,'Footnotes list'!$D$9:$E$58,2,FALSE)=0,\"\",VLOOKUP(ET68,'Footnotes list'!$D$9:$E$58,2,FALSE) ) )","v":""},null,null,null,null,{"$f":"IF(TRIM(EY68)=\"\", \"\", IF(VLOOKUP(EY68,'Footnotes list'!$D$9:$E$58,2,FALSE)=0,\"\",VLOOKUP(EY68,'Footnotes list'!$D$9:$E$58,2,FALSE) ) )","v":""}]
[null,null,"C20","ES_CS","environmental specific services",null,null,null,null,null,{"$f":"IF(TRIM(J69)=\"\", \"\", IF(VLOOKUP(J69,'Footnotes list'!$D$9:$E$58,2,FALSE)=0,\"\",VLOOKUP(J69,'Footnotes list'!$D$9:$E$58,2,FALSE) ) )","v":""},null,null,null,null,{"$f":"IF(TRIM(O69)=\"\", \"\", IF(VLOOKUP(O69,'Footnotes list'!$D$9:$E$58,2,FALSE)=0,\"\",VLOOKUP(O69,'Footnotes list'!$D$9:$E$58,2,FALSE) ) )","v":""},null,null,null,null,{"$f":"IF(TRIM(T69)=\"\", \"\", IF(VLOOKUP(T69,'Footnotes list'!$D$9:$E$58,2,FALSE)=0,\"\",VLOOKUP(T69,'Footnotes list'!$D$9:$E$58,2,FALSE) ) )","v":""},null,null,null,null,{"$f":"IF(TRIM(Y69)=\"\", \"\", IF(VLOOKUP(Y69,'Footnotes list'!$D$9:$E$58,2,FALSE)=0,\"\",VLOOKUP(Y69,'Footnotes list'!$D$9:$E$58,2,FALSE) ) )","v":""},null,null,null,null,{"$f":"IF(TRIM(AD69)=\"\", \"\", IF(VLOOKUP(AD69,'Footnotes list'!$D$9:$E$58,2,FALSE)=0,\"\",VLOOKUP(AD69,'Footnotes list'!$D$9:$E$58,2,FALSE) ) )","v":""},null,null,null,null,{"$f":"IF(TRIM(AI69)=\"\", \"\", IF(VLOOKUP(AI69,'Footnotes list'!$D$9:$E$58,2,FALSE)=0,\"\",VLOOKUP(AI69,'Footnotes list'!$D$9:$E$58,2,FALSE) ) )","v":""},null,null,null,null,{"$f":"IF(TRIM(AN69)=\"\", \"\", IF(VLOOKUP(AN69,'Footnotes list'!$D$9:$E$58,2,FALSE)=0,\"\",VLOOKUP(AN69,'Footnotes list'!$D$9:$E$58,2,FALSE) ) )","v":""},null,null,null,null,{"$f":"IF(TRIM(AS69)=\"\", \"\", IF(VLOOKUP(AS69,'Footnotes list'!$D$9:$E$58,2,FALSE)=0,\"\",VLOOKUP(AS69,'Footnotes list'!$D$9:$E$58,2,FALSE) ) )","v":""},null,null,null,null,{"$f":"IF(TRIM(AX69)=\"\", \"\", IF(VLOOKUP(AX69,'Footnotes list'!$D$9:$E$58,2,FALSE)=0,\"\",VLOOKUP(AX69,'Footnotes list'!$D$9:$E$58,2,FALSE) ) )","v":""},null,null,null,null,{"$f":"IF(TRIM(BC69)=\"\", \"\", IF(VLOOKUP(BC69,'Footnotes list'!$D$9:$E$58,2,FALSE)=0,\"\",VLOOKUP(BC69,'Footnotes list'!$D$9:$E$58,2,FALSE) ) )","v":""},null,null,null,null,{"$f":"IF(TRIM(BH69)=\"\", \"\", IF(VLOOKUP(BH69,'Footnotes list'!$D$9:$E$58,2,FALSE)=0,\"\",VLOOKUP(BH69,'Footnotes list'!$D$9:$E$58,2,FALSE) ) )","v":""},null,null,null,null,{"$f":"IF(TRIM(BM69)=\"\", \"\", IF(VLOOKUP(BM69,'Footnotes list'!$D$9:$E$58,2,FALSE)=0,\"\",VLOOKUP(BM69,'Footnotes list'!$D$9:$E$58,2,FALSE) ) )","v":""},null,null,null,null,{"$f":"IF(TRIM(BR69)=\"\", \"\", IF(VLOOKUP(BR69,'Footnotes list'!$D$9:$E$58,2,FALSE)=0,\"\",VLOOKUP(BR69,'Footnotes list'!$D$9:$E$58,2,FALSE) ) )","v":""},null,null,null,null,{"$f":"IF(TRIM(BW69)=\"\", \"\", IF(VLOOKUP(BW69,'Footnotes list'!$D$9:$E$58,2,FALSE)=0,\"\",VLOOKUP(BW69,'Footnotes list'!$D$9:$E$58,2,FALSE) ) )","v":""},null,null,null,null,{"$f":"IF(TRIM(CB69)=\"\", \"\", IF(VLOOKUP(CB69,'Footnotes list'!$D$9:$E$58,2,FALSE)=0,\"\",VLOOKUP(CB69,'Footnotes list'!$D$9:$E$58,2,FALSE) ) )","v":""},null,null,null,null,{"$f":"IF(TRIM(CG69)=\"\", \"\", IF(VLOOKUP(CG69,'Footnotes list'!$D$9:$E$58,2,FALSE)=0,\"\",VLOOKUP(CG69,'Footnotes list'!$D$9:$E$58,2,FALSE) ) )","v":""},null,null,null,null,{"$f":"IF(TRIM(CL69)=\"\", \"\", IF(VLOOKUP(CL69,'Footnotes list'!$D$9:$E$58,2,FALSE)=0,\"\",VLOOKUP(CL69,'Footnotes list'!$D$9:$E$58,2,FALSE) ) )","v":""},null,null,null,null,{"$f":"IF(TRIM(CQ69)=\"\", \"\", IF(VLOOKUP(CQ69,'Footnotes list'!$D$9:$E$58,2,FALSE)=0,\"\",VLOOKUP(CQ69,'Footnotes list'!$D$9:$E$58,2,FALSE) ) )","v":""},null,null,null,null,{"$f":"IF(TRIM(CV69)=\"\", \"\", IF(VLOOKUP(CV69,'Footnotes list'!$D$9:$E$58,2,FALSE)=0,\"\",VLOOKUP(CV69,'Footnotes list'!$D$9:$E$58,2,FALSE) ) )","v":""},null,null,null,null,{"$f":"IF(TRIM(DA69)=\"\", \"\", IF(VLOOKUP(DA69,'Footnotes list'!$D$9:$E$58,2,FALSE)=0,\"\",VLOOKUP(DA69,'Footnotes list'!$D$9:$E$58,2,FALSE) ) )","v":""},null,null,null,null,{"$f":"IF(TRIM(DF69)=\"\", \"\", IF(VLOOKUP(DF69,'Footnotes list'!$D$9:$E$58,2,FALSE)=0,\"\",VLOOKUP(DF69,'Footnotes list'!$D$9:$E$58,2,FALSE) ) )","v":""},null,null,null,null,{"$f":"IF(TRIM(DK69)=\"\", \"\", IF(VLOOKUP(DK69,'Footnotes list'!$D$9:$E$58,2,FALSE)=0,\"\",VLOOKUP(DK69,'Footnotes list'!$D$9:$E$58,2,FALSE) ) )","v":""},null,null,null,null,{"$f":"IF(TRIM(DP69)=\"\", \"\", IF(VLOOKUP(DP69,'Footnotes list'!$D$9:$E$58,2,FALSE)=0,\"\",VLOOKUP(DP69,'Footnotes list'!$D$9:$E$58,2,FALSE) ) )","v":""},null,null,null,null,{"$f":"IF(TRIM(DU69)=\"\", \"\", IF(VLOOKUP(DU69,'Footnotes list'!$D$9:$E$58,2,FALSE)=0,\"\",VLOOKUP(DU69,'Footnotes list'!$D$9:$E$58,2,FALSE) ) )","v":""},null,null,null,null,{"$f":"IF(TRIM(DZ69)=\"\", \"\", IF(VLOOKUP(DZ69,'Footnotes list'!$D$9:$E$58,2,FALSE)=0,\"\",VLOOKUP(DZ69,'Footnotes list'!$D$9:$E$58,2,FALSE) ) )","v":""},null,null,null,null,{"$f":"IF(TRIM(EE69)=\"\", \"\", IF(VLOOKUP(EE69,'Footnotes list'!$D$9:$E$58,2,FALSE)=0,\"\",VLOOKUP(EE69,'Footnotes list'!$D$9:$E$58,2,FALSE) ) )","v":""},null,null,null,null,{"$f":"IF(TRIM(EJ69)=\"\", \"\", IF(VLOOKUP(EJ69,'Footnotes list'!$D$9:$E$58,2,FALSE)=0,\"\",VLOOKUP(EJ69,'Footnotes list'!$D$9:$E$58,2,FALSE) ) )","v":""},null,null,null,null,{"$f":"IF(TRIM(EO69)=\"\", \"\", IF(VLOOKUP(EO69,'Footnotes list'!$D$9:$E$58,2,FALSE)=0,\"\",VLOOKUP(EO69,'Footnotes list'!$D$9:$E$58,2,FALSE) ) )","v":""},null,null,null,null,{"$f":"IF(TRIM(ET69)=\"\", \"\", IF(VLOOKUP(ET69,'Footnotes list'!$D$9:$E$58,2,FALSE)=0,\"\",VLOOKUP(ET69,'Footnotes list'!$D$9:$E$58,2,FALSE) ) )","v":""},null,null,null,null,{"$f":"IF(TRIM(EY69)=\"\", \"\", IF(VLOOKUP(EY69,'Footnotes list'!$D$9:$E$58,2,FALSE)=0,\"\",VLOOKUP(EY69,'Footnotes list'!$D$9:$E$58,2,FALSE) ) )","v":""}]
[null,null,"C20","C_REP","cleaner and resource efficient products",null,null,null,null,null,{"$f":"IF(TRIM(J70)=\"\", \"\", IF(VLOOKUP(J70,'Footnotes list'!$D$9:$E$58,2,FALSE)=0,\"\",VLOOKUP(J70,'Footnotes list'!$D$9:$E$58,2,FALSE) ) )","v":""},null,null,null,null,{"$f":"IF(TRIM(O70)=\"\", \"\", IF(VLOOKUP(O70,'Footnotes list'!$D$9:$E$58,2,FALSE)=0,\"\",VLOOKUP(O70,'Footnotes list'!$D$9:$E$58,2,FALSE) ) )","v":""},null,null,null,null,{"$f":"IF(TRIM(T70)=\"\", \"\", IF(VLOOKUP(T70,'Footnotes list'!$D$9:$E$58,2,FALSE)=0,\"\",VLOOKUP(T70,'Footnotes list'!$D$9:$E$58,2,FALSE) ) )","v":""},null,null,null,null,{"$f":"IF(TRIM(Y70)=\"\", \"\", IF(VLOOKUP(Y70,'Footnotes list'!$D$9:$E$58,2,FALSE)=0,\"\",VLOOKUP(Y70,'Footnotes list'!$D$9:$E$58,2,FALSE) ) )","v":""},null,null,null,null,{"$f":"IF(TRIM(AD70)=\"\", \"\", IF(VLOOKUP(AD70,'Footnotes list'!$D$9:$E$58,2,FALSE)=0,\"\",VLOOKUP(AD70,'Footnotes list'!$D$9:$E$58,2,FALSE) ) )","v":""},null,null,null,null,{"$f":"IF(TRIM(AI70)=\"\", \"\", IF(VLOOKUP(AI70,'Footnotes list'!$D$9:$E$58,2,FALSE)=0,\"\",VLOOKUP(AI70,'Footnotes list'!$D$9:$E$58,2,FALSE) ) )","v":""},null,null,null,null,{"$f":"IF(TRIM(AN70)=\"\", \"\", IF(VLOOKUP(AN70,'Footnotes list'!$D$9:$E$58,2,FALSE)=0,\"\",VLOOKUP(AN70,'Footnotes list'!$D$9:$E$58,2,FALSE) ) )","v":""},null,null,null,null,{"$f":"IF(TRIM(AS70)=\"\", \"\", IF(VLOOKUP(AS70,'Footnotes list'!$D$9:$E$58,2,FALSE)=0,\"\",VLOOKUP(AS70,'Footnotes list'!$D$9:$E$58,2,FALSE) ) )","v":""},null,null,null,null,{"$f":"IF(TRIM(AX70)=\"\", \"\", IF(VLOOKUP(AX70,'Footnotes list'!$D$9:$E$58,2,FALSE)=0,\"\",VLOOKUP(AX70,'Footnotes list'!$D$9:$E$58,2,FALSE) ) )","v":""},null,null,null,null,{"$f":"IF(TRIM(BC70)=\"\", \"\", IF(VLOOKUP(BC70,'Footnotes list'!$D$9:$E$58,2,FALSE)=0,\"\",VLOOKUP(BC70,'Footnotes list'!$D$9:$E$58,2,FALSE) ) )","v":""},null,null,null,null,{"$f":"IF(TRIM(BH70)=\"\", \"\", IF(VLOOKUP(BH70,'Footnotes list'!$D$9:$E$58,2,FALSE)=0,\"\",VLOOKUP(BH70,'Footnotes list'!$D$9:$E$58,2,FALSE) ) )","v":""},null,null,null,null,{"$f":"IF(TRIM(BM70)=\"\", \"\", IF(VLOOKUP(BM70,'Footnotes list'!$D$9:$E$58,2,FALSE)=0,\"\",VLOOKUP(BM70,'Footnotes list'!$D$9:$E$58,2,FALSE) ) )","v":""},null,null,null,null,{"$f":"IF(TRIM(BR70)=\"\", \"\", IF(VLOOKUP(BR70,'Footnotes list'!$D$9:$E$58,2,FALSE)=0,\"\",VLOOKUP(BR70,'Footnotes list'!$D$9:$E$58,2,FALSE) ) )","v":""},null,null,null,null,{"$f":"IF(TRIM(BW70)=\"\", \"\", IF(VLOOKUP(BW70,'Footnotes list'!$D$9:$E$58,2,FALSE)=0,\"\",VLOOKUP(BW70,'Footnotes list'!$D$9:$E$58,2,FALSE) ) )","v":""},null,null,null,null,{"$f":"IF(TRIM(CB70)=\"\", \"\", IF(VLOOKUP(CB70,'Footnotes list'!$D$9:$E$58,2,FALSE)=0,\"\",VLOOKUP(CB70,'Footnotes list'!$D$9:$E$58,2,FALSE) ) )","v":""},null,null,null,null,{"$f":"IF(TRIM(CG70)=\"\", \"\", IF(VLOOKUP(CG70,'Footnotes list'!$D$9:$E$58,2,FALSE)=0,\"\",VLOOKUP(CG70,'Footnotes list'!$D$9:$E$58,2,FALSE) ) )","v":""},null,null,null,null,{"$f":"IF(TRIM(CL70)=\"\", \"\", IF(VLOOKUP(CL70,'Footnotes list'!$D$9:$E$58,2,FALSE)=0,\"\",VLOOKUP(CL70,'Footnotes list'!$D$9:$E$58,2,FALSE) ) )","v":""},null,null,null,null,{"$f":"IF(TRIM(CQ70)=\"\", \"\", IF(VLOOKUP(CQ70,'Footnotes list'!$D$9:$E$58,2,FALSE)=0,\"\",VLOOKUP(CQ70,'Footnotes list'!$D$9:$E$58,2,FALSE) ) )","v":""},null,null,null,null,{"$f":"IF(TRIM(CV70)=\"\", \"\", IF(VLOOKUP(CV70,'Footnotes list'!$D$9:$E$58,2,FALSE)=0,\"\",VLOOKUP(CV70,'Footnotes list'!$D$9:$E$58,2,FALSE) ) )","v":""},null,null,null,null,{"$f":"IF(TRIM(DA70)=\"\", \"\", IF(VLOOKUP(DA70,'Footnotes list'!$D$9:$E$58,2,FALSE)=0,\"\",VLOOKUP(DA70,'Footnotes list'!$D$9:$E$58,2,FALSE) ) )","v":""},null,null,null,null,{"$f":"IF(TRIM(DF70)=\"\", \"\", IF(VLOOKUP(DF70,'Footnotes list'!$D$9:$E$58,2,FALSE)=0,\"\",VLOOKUP(DF70,'Footnotes list'!$D$9:$E$58,2,FALSE) ) )","v":""},null,null,null,null,{"$f":"IF(TRIM(DK70)=\"\", \"\", IF(VLOOKUP(DK70,'Footnotes list'!$D$9:$E$58,2,FALSE)=0,\"\",VLOOKUP(DK70,'Footnotes list'!$D$9:$E$58,2,FALSE) ) )","v":""},null,null,null,null,{"$f":"IF(TRIM(DP70)=\"\", \"\", IF(VLOOKUP(DP70,'Footnotes list'!$D$9:$E$58,2,FALSE)=0,\"\",VLOOKUP(DP70,'Footnotes list'!$D$9:$E$58,2,FALSE) ) )","v":""},null,null,null,null,{"$f":"IF(TRIM(DU70)=\"\", \"\", IF(VLOOKUP(DU70,'Footnotes list'!$D$9:$E$58,2,FALSE)=0,\"\",VLOOKUP(DU70,'Footnotes list'!$D$9:$E$58,2,FALSE) ) )","v":""},null,null,null,null,{"$f":"IF(TRIM(DZ70)=\"\", \"\", IF(VLOOKUP(DZ70,'Footnotes list'!$D$9:$E$58,2,FALSE)=0,\"\",VLOOKUP(DZ70,'Footnotes list'!$D$9:$E$58,2,FALSE) ) )","v":""},null,null,null,null,{"$f":"IF(TRIM(EE70)=\"\", \"\", IF(VLOOKUP(EE70,'Footnotes list'!$D$9:$E$58,2,FALSE)=0,\"\",VLOOKUP(EE70,'Footnotes list'!$D$9:$E$58,2,FALSE) ) )","v":""},null,null,null,null,{"$f":"IF(TRIM(EJ70)=\"\", \"\", IF(VLOOKUP(EJ70,'Footnotes list'!$D$9:$E$58,2,FALSE)=0,\"\",VLOOKUP(EJ70,'Footnotes list'!$D$9:$E$58,2,FALSE) ) )","v":""},null,null,null,null,{"$f":"IF(TRIM(EO70)=\"\", \"\", IF(VLOOKUP(EO70,'Footnotes list'!$D$9:$E$58,2,FALSE)=0,\"\",VLOOKUP(EO70,'Footnotes list'!$D$9:$E$58,2,FALSE) ) )","v":""},null,null,null,null,{"$f":"IF(TRIM(ET70)=\"\", \"\", IF(VLOOKUP(ET70,'Footnotes list'!$D$9:$E$58,2,FALSE)=0,\"\",VLOOKUP(ET70,'Footnotes list'!$D$9:$E$58,2,FALSE) ) )","v":""},null,null,null,null,{"$f":"IF(TRIM(EY70)=\"\", \"\", IF(VLOOKUP(EY70,'Footnotes list'!$D$9:$E$58,2,FALSE)=0,\"\",VLOOKUP(EY70,'Footnotes list'!$D$9:$E$58,2,FALSE) ) )","v":""}]
[null,null,"C21","TOT_EGSS","Total C21 - Manufacture of basic pharmaceutical products and pharmaceutical preparations, of which:",null,null,null,null,null,{"$f":"IF(TRIM(J71)=\"\", \"\", IF(VLOOKUP(J71,'Footnotes list'!$D$9:$E$58,2,FALSE)=0,\"\",VLOOKUP(J71,'Footnotes list'!$D$9:$E$58,2,FALSE) ) )","v":""},null,null,null,null,{"$f":"IF(TRIM(O71)=\"\", \"\", IF(VLOOKUP(O71,'Footnotes list'!$D$9:$E$58,2,FALSE)=0,\"\",VLOOKUP(O71,'Footnotes list'!$D$9:$E$58,2,FALSE) ) )","v":""},null,null,null,null,{"$f":"IF(TRIM(T71)=\"\", \"\", IF(VLOOKUP(T71,'Footnotes list'!$D$9:$E$58,2,FALSE)=0,\"\",VLOOKUP(T71,'Footnotes list'!$D$9:$E$58,2,FALSE) ) )","v":""},null,null,null,null,{"$f":"IF(TRIM(Y71)=\"\", \"\", IF(VLOOKUP(Y71,'Footnotes list'!$D$9:$E$58,2,FALSE)=0,\"\",VLOOKUP(Y71,'Footnotes list'!$D$9:$E$58,2,FALSE) ) )","v":""},null,null,null,null,{"$f":"IF(TRIM(AD71)=\"\", \"\", IF(VLOOKUP(AD71,'Footnotes list'!$D$9:$E$58,2,FALSE)=0,\"\",VLOOKUP(AD71,'Footnotes list'!$D$9:$E$58,2,FALSE) ) )","v":""},null,null,null,null,{"$f":"IF(TRIM(AI71)=\"\", \"\", IF(VLOOKUP(AI71,'Footnotes list'!$D$9:$E$58,2,FALSE)=0,\"\",VLOOKUP(AI71,'Footnotes list'!$D$9:$E$58,2,FALSE) ) )","v":""},null,null,null,null,{"$f":"IF(TRIM(AN71)=\"\", \"\", IF(VLOOKUP(AN71,'Footnotes list'!$D$9:$E$58,2,FALSE)=0,\"\",VLOOKUP(AN71,'Footnotes list'!$D$9:$E$58,2,FALSE) ) )","v":""},null,null,null,null,{"$f":"IF(TRIM(AS71)=\"\", \"\", IF(VLOOKUP(AS71,'Footnotes list'!$D$9:$E$58,2,FALSE)=0,\"\",VLOOKUP(AS71,'Footnotes list'!$D$9:$E$58,2,FALSE) ) )","v":""},null,null,null,null,{"$f":"IF(TRIM(AX71)=\"\", \"\", IF(VLOOKUP(AX71,'Footnotes list'!$D$9:$E$58,2,FALSE)=0,\"\",VLOOKUP(AX71,'Footnotes list'!$D$9:$E$58,2,FALSE) ) )","v":""},null,null,null,null,{"$f":"IF(TRIM(BC71)=\"\", \"\", IF(VLOOKUP(BC71,'Footnotes list'!$D$9:$E$58,2,FALSE)=0,\"\",VLOOKUP(BC71,'Footnotes list'!$D$9:$E$58,2,FALSE) ) )","v":""},null,null,null,null,{"$f":"IF(TRIM(BH71)=\"\", \"\", IF(VLOOKUP(BH71,'Footnotes list'!$D$9:$E$58,2,FALSE)=0,\"\",VLOOKUP(BH71,'Footnotes list'!$D$9:$E$58,2,FALSE) ) )","v":""},null,null,null,null,{"$f":"IF(TRIM(BM71)=\"\", \"\", IF(VLOOKUP(BM71,'Footnotes list'!$D$9:$E$58,2,FALSE)=0,\"\",VLOOKUP(BM71,'Footnotes list'!$D$9:$E$58,2,FALSE) ) )","v":""},null,null,null,null,{"$f":"IF(TRIM(BR71)=\"\", \"\", IF(VLOOKUP(BR71,'Footnotes list'!$D$9:$E$58,2,FALSE)=0,\"\",VLOOKUP(BR71,'Footnotes list'!$D$9:$E$58,2,FALSE) ) )","v":""},null,null,null,null,{"$f":"IF(TRIM(BW71)=\"\", \"\", IF(VLOOKUP(BW71,'Footnotes list'!$D$9:$E$58,2,FALSE)=0,\"\",VLOOKUP(BW71,'Footnotes list'!$D$9:$E$58,2,FALSE) ) )","v":""},null,null,null,null,{"$f":"IF(TRIM(CB71)=\"\", \"\", IF(VLOOKUP(CB71,'Footnotes list'!$D$9:$E$58,2,FALSE)=0,\"\",VLOOKUP(CB71,'Footnotes list'!$D$9:$E$58,2,FALSE) ) )","v":""},null,null,null,null,{"$f":"IF(TRIM(CG71)=\"\", \"\", IF(VLOOKUP(CG71,'Footnotes list'!$D$9:$E$58,2,FALSE)=0,\"\",VLOOKUP(CG71,'Footnotes list'!$D$9:$E$58,2,FALSE) ) )","v":""},null,null,null,null,{"$f":"IF(TRIM(CL71)=\"\", \"\", IF(VLOOKUP(CL71,'Footnotes list'!$D$9:$E$58,2,FALSE)=0,\"\",VLOOKUP(CL71,'Footnotes list'!$D$9:$E$58,2,FALSE) ) )","v":""},null,null,null,null,{"$f":"IF(TRIM(CQ71)=\"\", \"\", IF(VLOOKUP(CQ71,'Footnotes list'!$D$9:$E$58,2,FALSE)=0,\"\",VLOOKUP(CQ71,'Footnotes list'!$D$9:$E$58,2,FALSE) ) )","v":""},null,null,null,null,{"$f":"IF(TRIM(CV71)=\"\", \"\", IF(VLOOKUP(CV71,'Footnotes list'!$D$9:$E$58,2,FALSE)=0,\"\",VLOOKUP(CV71,'Footnotes list'!$D$9:$E$58,2,FALSE) ) )","v":""},null,null,null,null,{"$f":"IF(TRIM(DA71)=\"\", \"\", IF(VLOOKUP(DA71,'Footnotes list'!$D$9:$E$58,2,FALSE)=0,\"\",VLOOKUP(DA71,'Footnotes list'!$D$9:$E$58,2,FALSE) ) )","v":""},null,null,null,null,{"$f":"IF(TRIM(DF71)=\"\", \"\", IF(VLOOKUP(DF71,'Footnotes list'!$D$9:$E$58,2,FALSE)=0,\"\",VLOOKUP(DF71,'Footnotes list'!$D$9:$E$58,2,FALSE) ) )","v":""},null,null,null,null,{"$f":"IF(TRIM(DK71)=\"\", \"\", IF(VLOOKUP(DK71,'Footnotes list'!$D$9:$E$58,2,FALSE)=0,\"\",VLOOKUP(DK71,'Footnotes list'!$D$9:$E$58,2,FALSE) ) )","v":""},null,null,null,null,{"$f":"IF(TRIM(DP71)=\"\", \"\", IF(VLOOKUP(DP71,'Footnotes list'!$D$9:$E$58,2,FALSE)=0,\"\",VLOOKUP(DP71,'Footnotes list'!$D$9:$E$58,2,FALSE) ) )","v":""},null,null,null,null,{"$f":"IF(TRIM(DU71)=\"\", \"\", IF(VLOOKUP(DU71,'Footnotes list'!$D$9:$E$58,2,FALSE)=0,\"\",VLOOKUP(DU71,'Footnotes list'!$D$9:$E$58,2,FALSE) ) )","v":""},null,null,null,null,{"$f":"IF(TRIM(DZ71)=\"\", \"\", IF(VLOOKUP(DZ71,'Footnotes list'!$D$9:$E$58,2,FALSE)=0,\"\",VLOOKUP(DZ71,'Footnotes list'!$D$9:$E$58,2,FALSE) ) )","v":""},null,null,null,null,{"$f":"IF(TRIM(EE71)=\"\", \"\", IF(VLOOKUP(EE71,'Footnotes list'!$D$9:$E$58,2,FALSE)=0,\"\",VLOOKUP(EE71,'Footnotes list'!$D$9:$E$58,2,FALSE) ) )","v":""},null,null,null,null,{"$f":"IF(TRIM(EJ71)=\"\", \"\", IF(VLOOKUP(EJ71,'Footnotes list'!$D$9:$E$58,2,FALSE)=0,\"\",VLOOKUP(EJ71,'Footnotes list'!$D$9:$E$58,2,FALSE) ) )","v":""},null,null,null,null,{"$f":"IF(TRIM(EO71)=\"\", \"\", IF(VLOOKUP(EO71,'Footnotes list'!$D$9:$E$58,2,FALSE)=0,\"\",VLOOKUP(EO71,'Footnotes list'!$D$9:$E$58,2,FALSE) ) )","v":""},null,null,null,null,{"$f":"IF(TRIM(ET71)=\"\", \"\", IF(VLOOKUP(ET71,'Footnotes list'!$D$9:$E$58,2,FALSE)=0,\"\",VLOOKUP(ET71,'Footnotes list'!$D$9:$E$58,2,FALSE) ) )","v":""},null,null,null,null,{"$f":"IF(TRIM(EY71)=\"\", \"\", IF(VLOOKUP(EY71,'Footnotes list'!$D$9:$E$58,2,FALSE)=0,\"\",VLOOKUP(EY71,'Footnotes list'!$D$9:$E$58,2,FALSE) ) )","v":""}]
[null,null,"C21","ANC","ancillary activities",null,null,null,null,null,{"$f":"IF(TRIM(J72)=\"\", \"\", IF(VLOOKUP(J72,'Footnotes list'!$D$9:$E$58,2,FALSE)=0,\"\",VLOOKUP(J72,'Footnotes list'!$D$9:$E$58,2,FALSE) ) )","v":""},null,null,null,null,{"$f":"IF(TRIM(O72)=\"\", \"\", IF(VLOOKUP(O72,'Footnotes list'!$D$9:$E$58,2,FALSE)=0,\"\",VLOOKUP(O72,'Footnotes list'!$D$9:$E$58,2,FALSE) ) )","v":""},null,null,null,null,{"$f":"IF(TRIM(T72)=\"\", \"\", IF(VLOOKUP(T72,'Footnotes list'!$D$9:$E$58,2,FALSE)=0,\"\",VLOOKUP(T72,'Footnotes list'!$D$9:$E$58,2,FALSE) ) )","v":""},null,null,null,null,{"$f":"IF(TRIM(Y72)=\"\", \"\", IF(VLOOKUP(Y72,'Footnotes list'!$D$9:$E$58,2,FALSE)=0,\"\",VLOOKUP(Y72,'Footnotes list'!$D$9:$E$58,2,FALSE) ) )","v":""},null,null,null,null,{"$f":"IF(TRIM(AD72)=\"\", \"\", IF(VLOOKUP(AD72,'Footnotes list'!$D$9:$E$58,2,FALSE)=0,\"\",VLOOKUP(AD72,'Footnotes list'!$D$9:$E$58,2,FALSE) ) )","v":""},null,null,null,null,{"$f":"IF(TRIM(AI72)=\"\", \"\", IF(VLOOKUP(AI72,'Footnotes list'!$D$9:$E$58,2,FALSE)=0,\"\",VLOOKUP(AI72,'Footnotes list'!$D$9:$E$58,2,FALSE) ) )","v":""},null,null,null,null,{"$f":"IF(TRIM(AN72)=\"\", \"\", IF(VLOOKUP(AN72,'Footnotes list'!$D$9:$E$58,2,FALSE)=0,\"\",VLOOKUP(AN72,'Footnotes list'!$D$9:$E$58,2,FALSE) ) )","v":""},null,null,null,null,{"$f":"IF(TRIM(AS72)=\"\", \"\", IF(VLOOKUP(AS72,'Footnotes list'!$D$9:$E$58,2,FALSE)=0,\"\",VLOOKUP(AS72,'Footnotes list'!$D$9:$E$58,2,FALSE) ) )","v":""},null,null,null,null,{"$f":"IF(TRIM(AX72)=\"\", \"\", IF(VLOOKUP(AX72,'Footnotes list'!$D$9:$E$58,2,FALSE)=0,\"\",VLOOKUP(AX72,'Footnotes list'!$D$9:$E$58,2,FALSE) ) )","v":""},null,null,null,null,{"$f":"IF(TRIM(BC72)=\"\", \"\", IF(VLOOKUP(BC72,'Footnotes list'!$D$9:$E$58,2,FALSE)=0,\"\",VLOOKUP(BC72,'Footnotes list'!$D$9:$E$58,2,FALSE) ) )","v":""},null,null,null,null,{"$f":"IF(TRIM(BH72)=\"\", \"\", IF(VLOOKUP(BH72,'Footnotes list'!$D$9:$E$58,2,FALSE)=0,\"\",VLOOKUP(BH72,'Footnotes list'!$D$9:$E$58,2,FALSE) ) )","v":""},null,null,null,null,{"$f":"IF(TRIM(BM72)=\"\", \"\", IF(VLOOKUP(BM72,'Footnotes list'!$D$9:$E$58,2,FALSE)=0,\"\",VLOOKUP(BM72,'Footnotes list'!$D$9:$E$58,2,FALSE) ) )","v":""},null,null,null,null,{"$f":"IF(TRIM(BR72)=\"\", \"\", IF(VLOOKUP(BR72,'Footnotes list'!$D$9:$E$58,2,FALSE)=0,\"\",VLOOKUP(BR72,'Footnotes list'!$D$9:$E$58,2,FALSE) ) )","v":""},null,null,null,null,{"$f":"IF(TRIM(BW72)=\"\", \"\", IF(VLOOKUP(BW72,'Footnotes list'!$D$9:$E$58,2,FALSE)=0,\"\",VLOOKUP(BW72,'Footnotes list'!$D$9:$E$58,2,FALSE) ) )","v":""},null,null,null,null,{"$f":"IF(TRIM(CB72)=\"\", \"\", IF(VLOOKUP(CB72,'Footnotes list'!$D$9:$E$58,2,FALSE)=0,\"\",VLOOKUP(CB72,'Footnotes list'!$D$9:$E$58,2,FALSE) ) )","v":""},null,null,null,null,{"$f":"IF(TRIM(CG72)=\"\", \"\", IF(VLOOKUP(CG72,'Footnotes list'!$D$9:$E$58,2,FALSE)=0,\"\",VLOOKUP(CG72,'Footnotes list'!$D$9:$E$58,2,FALSE) ) )","v":""},null,null,null,null,{"$f":"IF(TRIM(CL72)=\"\", \"\", IF(VLOOKUP(CL72,'Footnotes list'!$D$9:$E$58,2,FALSE)=0,\"\",VLOOKUP(CL72,'Footnotes list'!$D$9:$E$58,2,FALSE) ) )","v":""},null,null,null,null,{"$f":"IF(TRIM(CQ72)=\"\", \"\", IF(VLOOKUP(CQ72,'Footnotes list'!$D$9:$E$58,2,FALSE)=0,\"\",VLOOKUP(CQ72,'Footnotes list'!$D$9:$E$58,2,FALSE) ) )","v":""},null,null,null,null,{"$f":"IF(TRIM(CV72)=\"\", \"\", IF(VLOOKUP(CV72,'Footnotes list'!$D$9:$E$58,2,FALSE)=0,\"\",VLOOKUP(CV72,'Footnotes list'!$D$9:$E$58,2,FALSE) ) )","v":""},null,null,null,null,{"$f":"IF(TRIM(DA72)=\"\", \"\", IF(VLOOKUP(DA72,'Footnotes list'!$D$9:$E$58,2,FALSE)=0,\"\",VLOOKUP(DA72,'Footnotes list'!$D$9:$E$58,2,FALSE) ) )","v":""},null,null,null,null,{"$f":"IF(TRIM(DF72)=\"\", \"\", IF(VLOOKUP(DF72,'Footnotes list'!$D$9:$E$58,2,FALSE)=0,\"\",VLOOKUP(DF72,'Footnotes list'!$D$9:$E$58,2,FALSE) ) )","v":""},null,null,null,null,{"$f":"IF(TRIM(DK72)=\"\", \"\", IF(VLOOKUP(DK72,'Footnotes list'!$D$9:$E$58,2,FALSE)=0,\"\",VLOOKUP(DK72,'Footnotes list'!$D$9:$E$58,2,FALSE) ) )","v":""},null,null,null,null,{"$f":"IF(TRIM(DP72)=\"\", \"\", IF(VLOOKUP(DP72,'Footnotes list'!$D$9:$E$58,2,FALSE)=0,\"\",VLOOKUP(DP72,'Footnotes list'!$D$9:$E$58,2,FALSE) ) )","v":""},null,null,null,null,{"$f":"IF(TRIM(DU72)=\"\", \"\", IF(VLOOKUP(DU72,'Footnotes list'!$D$9:$E$58,2,FALSE)=0,\"\",VLOOKUP(DU72,'Footnotes list'!$D$9:$E$58,2,FALSE) ) )","v":""},null,null,null,null,{"$f":"IF(TRIM(DZ72)=\"\", \"\", IF(VLOOKUP(DZ72,'Footnotes list'!$D$9:$E$58,2,FALSE)=0,\"\",VLOOKUP(DZ72,'Footnotes list'!$D$9:$E$58,2,FALSE) ) )","v":""},null,null,null,null,{"$f":"IF(TRIM(EE72)=\"\", \"\", IF(VLOOKUP(EE72,'Footnotes list'!$D$9:$E$58,2,FALSE)=0,\"\",VLOOKUP(EE72,'Footnotes list'!$D$9:$E$58,2,FALSE) ) )","v":""},null,null,null,null,{"$f":"IF(TRIM(EJ72)=\"\", \"\", IF(VLOOKUP(EJ72,'Footnotes list'!$D$9:$E$58,2,FALSE)=0,\"\",VLOOKUP(EJ72,'Footnotes list'!$D$9:$E$58,2,FALSE) ) )","v":""},null,null,null,null,{"$f":"IF(TRIM(EO72)=\"\", \"\", IF(VLOOKUP(EO72,'Footnotes list'!$D$9:$E$58,2,FALSE)=0,\"\",VLOOKUP(EO72,'Footnotes list'!$D$9:$E$58,2,FALSE) ) )","v":""},null,null,null,null,{"$f":"IF(TRIM(ET72)=\"\", \"\", IF(VLOOKUP(ET72,'Footnotes list'!$D$9:$E$58,2,FALSE)=0,\"\",VLOOKUP(ET72,'Footnotes list'!$D$9:$E$58,2,FALSE) ) )","v":""},null,null,null,null,{"$f":"IF(TRIM(EY72)=\"\", \"\", IF(VLOOKUP(EY72,'Footnotes list'!$D$9:$E$58,2,FALSE)=0,\"\",VLOOKUP(EY72,'Footnotes list'!$D$9:$E$58,2,FALSE) ) )","v":""}]
[null,null,"C21","NMKT","non-market activities",null,null,null,null,null,{"$f":"IF(TRIM(J73)=\"\", \"\", IF(VLOOKUP(J73,'Footnotes list'!$D$9:$E$58,2,FALSE)=0,\"\",VLOOKUP(J73,'Footnotes list'!$D$9:$E$58,2,FALSE) ) )","v":""},null,null,null,null,{"$f":"IF(TRIM(O73)=\"\", \"\", IF(VLOOKUP(O73,'Footnotes list'!$D$9:$E$58,2,FALSE)=0,\"\",VLOOKUP(O73,'Footnotes list'!$D$9:$E$58,2,FALSE) ) )","v":""},null,null,null,null,{"$f":"IF(TRIM(T73)=\"\", \"\", IF(VLOOKUP(T73,'Footnotes list'!$D$9:$E$58,2,FALSE)=0,\"\",VLOOKUP(T73,'Footnotes list'!$D$9:$E$58,2,FALSE) ) )","v":""},null,null,null,null,{"$f":"IF(TRIM(Y73)=\"\", \"\", IF(VLOOKUP(Y73,'Footnotes list'!$D$9:$E$58,2,FALSE)=0,\"\",VLOOKUP(Y73,'Footnotes list'!$D$9:$E$58,2,FALSE) ) )","v":""},null,null,null,null,{"$f":"IF(TRIM(AD73)=\"\", \"\", IF(VLOOKUP(AD73,'Footnotes list'!$D$9:$E$58,2,FALSE)=0,\"\",VLOOKUP(AD73,'Footnotes list'!$D$9:$E$58,2,FALSE) ) )","v":""},null,null,null,null,{"$f":"IF(TRIM(AI73)=\"\", \"\", IF(VLOOKUP(AI73,'Footnotes list'!$D$9:$E$58,2,FALSE)=0,\"\",VLOOKUP(AI73,'Footnotes list'!$D$9:$E$58,2,FALSE) ) )","v":""},null,null,null,null,{"$f":"IF(TRIM(AN73)=\"\", \"\", IF(VLOOKUP(AN73,'Footnotes list'!$D$9:$E$58,2,FALSE)=0,\"\",VLOOKUP(AN73,'Footnotes list'!$D$9:$E$58,2,FALSE) ) )","v":""},null,null,null,null,{"$f":"IF(TRIM(AS73)=\"\", \"\", IF(VLOOKUP(AS73,'Footnotes list'!$D$9:$E$58,2,FALSE)=0,\"\",VLOOKUP(AS73,'Footnotes list'!$D$9:$E$58,2,FALSE) ) )","v":""},null,null,null,null,{"$f":"IF(TRIM(AX73)=\"\", \"\", IF(VLOOKUP(AX73,'Footnotes list'!$D$9:$E$58,2,FALSE)=0,\"\",VLOOKUP(AX73,'Footnotes list'!$D$9:$E$58,2,FALSE) ) )","v":""},null,null,null,null,{"$f":"IF(TRIM(BC73)=\"\", \"\", IF(VLOOKUP(BC73,'Footnotes list'!$D$9:$E$58,2,FALSE)=0,\"\",VLOOKUP(BC73,'Footnotes list'!$D$9:$E$58,2,FALSE) ) )","v":""},null,null,null,null,{"$f":"IF(TRIM(BH73)=\"\", \"\", IF(VLOOKUP(BH73,'Footnotes list'!$D$9:$E$58,2,FALSE)=0,\"\",VLOOKUP(BH73,'Footnotes list'!$D$9:$E$58,2,FALSE) ) )","v":""},null,null,null,null,{"$f":"IF(TRIM(BM73)=\"\", \"\", IF(VLOOKUP(BM73,'Footnotes list'!$D$9:$E$58,2,FALSE)=0,\"\",VLOOKUP(BM73,'Footnotes list'!$D$9:$E$58,2,FALSE) ) )","v":""},null,null,null,null,{"$f":"IF(TRIM(BR73)=\"\", \"\", IF(VLOOKUP(BR73,'Footnotes list'!$D$9:$E$58,2,FALSE)=0,\"\",VLOOKUP(BR73,'Footnotes list'!$D$9:$E$58,2,FALSE) ) )","v":""},null,null,null,null,{"$f":"IF(TRIM(BW73)=\"\", \"\", IF(VLOOKUP(BW73,'Footnotes list'!$D$9:$E$58,2,FALSE)=0,\"\",VLOOKUP(BW73,'Footnotes list'!$D$9:$E$58,2,FALSE) ) )","v":""},null,null,null,null,{"$f":"IF(TRIM(CB73)=\"\", \"\", IF(VLOOKUP(CB73,'Footnotes list'!$D$9:$E$58,2,FALSE)=0,\"\",VLOOKUP(CB73,'Footnotes list'!$D$9:$E$58,2,FALSE) ) )","v":""},null,null,null,null,{"$f":"IF(TRIM(CG73)=\"\", \"\", IF(VLOOKUP(CG73,'Footnotes list'!$D$9:$E$58,2,FALSE)=0,\"\",VLOOKUP(CG73,'Footnotes list'!$D$9:$E$58,2,FALSE) ) )","v":""},null,null,null,null,{"$f":"IF(TRIM(CL73)=\"\", \"\", IF(VLOOKUP(CL73,'Footnotes list'!$D$9:$E$58,2,FALSE)=0,\"\",VLOOKUP(CL73,'Footnotes list'!$D$9:$E$58,2,FALSE) ) )","v":""},null,null,null,null,{"$f":"IF(TRIM(CQ73)=\"\", \"\", IF(VLOOKUP(CQ73,'Footnotes list'!$D$9:$E$58,2,FALSE)=0,\"\",VLOOKUP(CQ73,'Footnotes list'!$D$9:$E$58,2,FALSE) ) )","v":""},null,null,null,null,{"$f":"IF(TRIM(CV73)=\"\", \"\", IF(VLOOKUP(CV73,'Footnotes list'!$D$9:$E$58,2,FALSE)=0,\"\",VLOOKUP(CV73,'Footnotes list'!$D$9:$E$58,2,FALSE) ) )","v":""},null,null,null,null,{"$f":"IF(TRIM(DA73)=\"\", \"\", IF(VLOOKUP(DA73,'Footnotes list'!$D$9:$E$58,2,FALSE)=0,\"\",VLOOKUP(DA73,'Footnotes list'!$D$9:$E$58,2,FALSE) ) )","v":""},null,null,null,null,{"$f":"IF(TRIM(DF73)=\"\", \"\", IF(VLOOKUP(DF73,'Footnotes list'!$D$9:$E$58,2,FALSE)=0,\"\",VLOOKUP(DF73,'Footnotes list'!$D$9:$E$58,2,FALSE) ) )","v":""},null,null,null,null,{"$f":"IF(TRIM(DK73)=\"\", \"\", IF(VLOOKUP(DK73,'Footnotes list'!$D$9:$E$58,2,FALSE)=0,\"\",VLOOKUP(DK73,'Footnotes list'!$D$9:$E$58,2,FALSE) ) )","v":""},null,null,null,null,{"$f":"IF(TRIM(DP73)=\"\", \"\", IF(VLOOKUP(DP73,'Footnotes list'!$D$9:$E$58,2,FALSE)=0,\"\",VLOOKUP(DP73,'Footnotes list'!$D$9:$E$58,2,FALSE) ) )","v":""},null,null,null,null,{"$f":"IF(TRIM(DU73)=\"\", \"\", IF(VLOOKUP(DU73,'Footnotes list'!$D$9:$E$58,2,FALSE)=0,\"\",VLOOKUP(DU73,'Footnotes list'!$D$9:$E$58,2,FALSE) ) )","v":""},null,null,null,null,{"$f":"IF(TRIM(DZ73)=\"\", \"\", IF(VLOOKUP(DZ73,'Footnotes list'!$D$9:$E$58,2,FALSE)=0,\"\",VLOOKUP(DZ73,'Footnotes list'!$D$9:$E$58,2,FALSE) ) )","v":""},null,null,null,null,{"$f":"IF(TRIM(EE73)=\"\", \"\", IF(VLOOKUP(EE73,'Footnotes list'!$D$9:$E$58,2,FALSE)=0,\"\",VLOOKUP(EE73,'Footnotes list'!$D$9:$E$58,2,FALSE) ) )","v":""},null,null,null,null,{"$f":"IF(TRIM(EJ73)=\"\", \"\", IF(VLOOKUP(EJ73,'Footnotes list'!$D$9:$E$58,2,FALSE)=0,\"\",VLOOKUP(EJ73,'Footnotes list'!$D$9:$E$58,2,FALSE) ) )","v":""},null,null,null,null,{"$f":"IF(TRIM(EO73)=\"\", \"\", IF(VLOOKUP(EO73,'Footnotes list'!$D$9:$E$58,2,FALSE)=0,\"\",VLOOKUP(EO73,'Footnotes list'!$D$9:$E$58,2,FALSE) ) )","v":""},null,null,null,null,{"$f":"IF(TRIM(ET73)=\"\", \"\", IF(VLOOKUP(ET73,'Footnotes list'!$D$9:$E$58,2,FALSE)=0,\"\",VLOOKUP(ET73,'Footnotes list'!$D$9:$E$58,2,FALSE) ) )","v":""},null,null,null,null,{"$f":"IF(TRIM(EY73)=\"\", \"\", IF(VLOOKUP(EY73,'Footnotes list'!$D$9:$E$58,2,FALSE)=0,\"\",VLOOKUP(EY73,'Footnotes list'!$D$9:$E$58,2,FALSE) ) )","v":""}]
[null,null,"C21","OWN_USE","activities for own final use",null,null,null,null,null,{"$f":"IF(TRIM(J74)=\"\", \"\", IF(VLOOKUP(J74,'Footnotes list'!$D$9:$E$58,2,FALSE)=0,\"\",VLOOKUP(J74,'Footnotes list'!$D$9:$E$58,2,FALSE) ) )","v":""},null,null,null,null,{"$f":"IF(TRIM(O74)=\"\", \"\", IF(VLOOKUP(O74,'Footnotes list'!$D$9:$E$58,2,FALSE)=0,\"\",VLOOKUP(O74,'Footnotes list'!$D$9:$E$58,2,FALSE) ) )","v":""},null,null,null,null,{"$f":"IF(TRIM(T74)=\"\", \"\", IF(VLOOKUP(T74,'Footnotes list'!$D$9:$E$58,2,FALSE)=0,\"\",VLOOKUP(T74,'Footnotes list'!$D$9:$E$58,2,FALSE) ) )","v":""},null,null,null,null,{"$f":"IF(TRIM(Y74)=\"\", \"\", IF(VLOOKUP(Y74,'Footnotes list'!$D$9:$E$58,2,FALSE)=0,\"\",VLOOKUP(Y74,'Footnotes list'!$D$9:$E$58,2,FALSE) ) )","v":""},null,null,null,null,{"$f":"IF(TRIM(AD74)=\"\", \"\", IF(VLOOKUP(AD74,'Footnotes list'!$D$9:$E$58,2,FALSE)=0,\"\",VLOOKUP(AD74,'Footnotes list'!$D$9:$E$58,2,FALSE) ) )","v":""},null,null,null,null,{"$f":"IF(TRIM(AI74)=\"\", \"\", IF(VLOOKUP(AI74,'Footnotes list'!$D$9:$E$58,2,FALSE)=0,\"\",VLOOKUP(AI74,'Footnotes list'!$D$9:$E$58,2,FALSE) ) )","v":""},null,null,null,null,{"$f":"IF(TRIM(AN74)=\"\", \"\", IF(VLOOKUP(AN74,'Footnotes list'!$D$9:$E$58,2,FALSE)=0,\"\",VLOOKUP(AN74,'Footnotes list'!$D$9:$E$58,2,FALSE) ) )","v":""},null,null,null,null,{"$f":"IF(TRIM(AS74)=\"\", \"\", IF(VLOOKUP(AS74,'Footnotes list'!$D$9:$E$58,2,FALSE)=0,\"\",VLOOKUP(AS74,'Footnotes list'!$D$9:$E$58,2,FALSE) ) )","v":""},null,null,null,null,{"$f":"IF(TRIM(AX74)=\"\", \"\", IF(VLOOKUP(AX74,'Footnotes list'!$D$9:$E$58,2,FALSE)=0,\"\",VLOOKUP(AX74,'Footnotes list'!$D$9:$E$58,2,FALSE) ) )","v":""},null,null,null,null,{"$f":"IF(TRIM(BC74)=\"\", \"\", IF(VLOOKUP(BC74,'Footnotes list'!$D$9:$E$58,2,FALSE)=0,\"\",VLOOKUP(BC74,'Footnotes list'!$D$9:$E$58,2,FALSE) ) )","v":""},null,null,null,null,{"$f":"IF(TRIM(BH74)=\"\", \"\", IF(VLOOKUP(BH74,'Footnotes list'!$D$9:$E$58,2,FALSE)=0,\"\",VLOOKUP(BH74,'Footnotes list'!$D$9:$E$58,2,FALSE) ) )","v":""},null,null,null,null,{"$f":"IF(TRIM(BM74)=\"\", \"\", IF(VLOOKUP(BM74,'Footnotes list'!$D$9:$E$58,2,FALSE)=0,\"\",VLOOKUP(BM74,'Footnotes list'!$D$9:$E$58,2,FALSE) ) )","v":""},null,null,null,null,{"$f":"IF(TRIM(BR74)=\"\", \"\", IF(VLOOKUP(BR74,'Footnotes list'!$D$9:$E$58,2,FALSE)=0,\"\",VLOOKUP(BR74,'Footnotes list'!$D$9:$E$58,2,FALSE) ) )","v":""},null,null,null,null,{"$f":"IF(TRIM(BW74)=\"\", \"\", IF(VLOOKUP(BW74,'Footnotes list'!$D$9:$E$58,2,FALSE)=0,\"\",VLOOKUP(BW74,'Footnotes list'!$D$9:$E$58,2,FALSE) ) )","v":""},null,null,null,null,{"$f":"IF(TRIM(CB74)=\"\", \"\", IF(VLOOKUP(CB74,'Footnotes list'!$D$9:$E$58,2,FALSE)=0,\"\",VLOOKUP(CB74,'Footnotes list'!$D$9:$E$58,2,FALSE) ) )","v":""},null,null,null,null,{"$f":"IF(TRIM(CG74)=\"\", \"\", IF(VLOOKUP(CG74,'Footnotes list'!$D$9:$E$58,2,FALSE)=0,\"\",VLOOKUP(CG74,'Footnotes list'!$D$9:$E$58,2,FALSE) ) )","v":""},null,null,null,null,{"$f":"IF(TRIM(CL74)=\"\", \"\", IF(VLOOKUP(CL74,'Footnotes list'!$D$9:$E$58,2,FALSE)=0,\"\",VLOOKUP(CL74,'Footnotes list'!$D$9:$E$58,2,FALSE) ) )","v":""},null,null,null,null,{"$f":"IF(TRIM(CQ74)=\"\", \"\", IF(VLOOKUP(CQ74,'Footnotes list'!$D$9:$E$58,2,FALSE)=0,\"\",VLOOKUP(CQ74,'Footnotes list'!$D$9:$E$58,2,FALSE) ) )","v":""},null,null,null,null,{"$f":"IF(TRIM(CV74)=\"\", \"\", IF(VLOOKUP(CV74,'Footnotes list'!$D$9:$E$58,2,FALSE)=0,\"\",VLOOKUP(CV74,'Footnotes list'!$D$9:$E$58,2,FALSE) ) )","v":""},null,null,null,null,{"$f":"IF(TRIM(DA74)=\"\", \"\", IF(VLOOKUP(DA74,'Footnotes list'!$D$9:$E$58,2,FALSE)=0,\"\",VLOOKUP(DA74,'Footnotes list'!$D$9:$E$58,2,FALSE) ) )","v":""},null,null,null,null,{"$f":"IF(TRIM(DF74)=\"\", \"\", IF(VLOOKUP(DF74,'Footnotes list'!$D$9:$E$58,2,FALSE)=0,\"\",VLOOKUP(DF74,'Footnotes list'!$D$9:$E$58,2,FALSE) ) )","v":""},null,null,null,null,{"$f":"IF(TRIM(DK74)=\"\", \"\", IF(VLOOKUP(DK74,'Footnotes list'!$D$9:$E$58,2,FALSE)=0,\"\",VLOOKUP(DK74,'Footnotes list'!$D$9:$E$58,2,FALSE) ) )","v":""},null,null,null,null,{"$f":"IF(TRIM(DP74)=\"\", \"\", IF(VLOOKUP(DP74,'Footnotes list'!$D$9:$E$58,2,FALSE)=0,\"\",VLOOKUP(DP74,'Footnotes list'!$D$9:$E$58,2,FALSE) ) )","v":""},null,null,null,null,{"$f":"IF(TRIM(DU74)=\"\", \"\", IF(VLOOKUP(DU74,'Footnotes list'!$D$9:$E$58,2,FALSE)=0,\"\",VLOOKUP(DU74,'Footnotes list'!$D$9:$E$58,2,FALSE) ) )","v":""},null,null,null,null,{"$f":"IF(TRIM(DZ74)=\"\", \"\", IF(VLOOKUP(DZ74,'Footnotes list'!$D$9:$E$58,2,FALSE)=0,\"\",VLOOKUP(DZ74,'Footnotes list'!$D$9:$E$58,2,FALSE) ) )","v":""},null,null,null,null,{"$f":"IF(TRIM(EE74)=\"\", \"\", IF(VLOOKUP(EE74,'Footnotes list'!$D$9:$E$58,2,FALSE)=0,\"\",VLOOKUP(EE74,'Footnotes list'!$D$9:$E$58,2,FALSE) ) )","v":""},null,null,null,null,{"$f":"IF(TRIM(EJ74)=\"\", \"\", IF(VLOOKUP(EJ74,'Footnotes list'!$D$9:$E$58,2,FALSE)=0,\"\",VLOOKUP(EJ74,'Footnotes list'!$D$9:$E$58,2,FALSE) ) )","v":""},null,null,null,null,{"$f":"IF(TRIM(EO74)=\"\", \"\", IF(VLOOKUP(EO74,'Footnotes list'!$D$9:$E$58,2,FALSE)=0,\"\",VLOOKUP(EO74,'Footnotes list'!$D$9:$E$58,2,FALSE) ) )","v":""},null,null,null,null,{"$f":"IF(TRIM(ET74)=\"\", \"\", IF(VLOOKUP(ET74,'Footnotes list'!$D$9:$E$58,2,FALSE)=0,\"\",VLOOKUP(ET74,'Footnotes list'!$D$9:$E$58,2,FALSE) ) )","v":""},null,null,null,null,{"$f":"IF(TRIM(EY74)=\"\", \"\", IF(VLOOKUP(EY74,'Footnotes list'!$D$9:$E$58,2,FALSE)=0,\"\",VLOOKUP(EY74,'Footnotes list'!$D$9:$E$58,2,FALSE) ) )","v":""}]
[null,null,"C21","MKT","market activities, including:",null,null,null,null,null,{"$f":"IF(TRIM(J75)=\"\", \"\", IF(VLOOKUP(J75,'Footnotes list'!$D$9:$E$58,2,FALSE)=0,\"\",VLOOKUP(J75,'Footnotes list'!$D$9:$E$58,2,FALSE) ) )","v":""},null,null,null,null,{"$f":"IF(TRIM(O75)=\"\", \"\", IF(VLOOKUP(O75,'Footnotes list'!$D$9:$E$58,2,FALSE)=0,\"\",VLOOKUP(O75,'Footnotes list'!$D$9:$E$58,2,FALSE) ) )","v":""},null,null,null,null,{"$f":"IF(TRIM(T75)=\"\", \"\", IF(VLOOKUP(T75,'Footnotes list'!$D$9:$E$58,2,FALSE)=0,\"\",VLOOKUP(T75,'Footnotes list'!$D$9:$E$58,2,FALSE) ) )","v":""},null,null,null,null,{"$f":"IF(TRIM(Y75)=\"\", \"\", IF(VLOOKUP(Y75,'Footnotes list'!$D$9:$E$58,2,FALSE)=0,\"\",VLOOKUP(Y75,'Footnotes list'!$D$9:$E$58,2,FALSE) ) )","v":""},null,null,null,null,{"$f":"IF(TRIM(AD75)=\"\", \"\", IF(VLOOKUP(AD75,'Footnotes list'!$D$9:$E$58,2,FALSE)=0,\"\",VLOOKUP(AD75,'Footnotes list'!$D$9:$E$58,2,FALSE) ) )","v":""},null,null,null,null,{"$f":"IF(TRIM(AI75)=\"\", \"\", IF(VLOOKUP(AI75,'Footnotes list'!$D$9:$E$58,2,FALSE)=0,\"\",VLOOKUP(AI75,'Footnotes list'!$D$9:$E$58,2,FALSE) ) )","v":""},null,null,null,null,{"$f":"IF(TRIM(AN75)=\"\", \"\", IF(VLOOKUP(AN75,'Footnotes list'!$D$9:$E$58,2,FALSE)=0,\"\",VLOOKUP(AN75,'Footnotes list'!$D$9:$E$58,2,FALSE) ) )","v":""},null,null,null,null,{"$f":"IF(TRIM(AS75)=\"\", \"\", IF(VLOOKUP(AS75,'Footnotes list'!$D$9:$E$58,2,FALSE)=0,\"\",VLOOKUP(AS75,'Footnotes list'!$D$9:$E$58,2,FALSE) ) )","v":""},null,null,null,null,{"$f":"IF(TRIM(AX75)=\"\", \"\", IF(VLOOKUP(AX75,'Footnotes list'!$D$9:$E$58,2,FALSE)=0,\"\",VLOOKUP(AX75,'Footnotes list'!$D$9:$E$58,2,FALSE) ) )","v":""},null,null,null,null,{"$f":"IF(TRIM(BC75)=\"\", \"\", IF(VLOOKUP(BC75,'Footnotes list'!$D$9:$E$58,2,FALSE)=0,\"\",VLOOKUP(BC75,'Footnotes list'!$D$9:$E$58,2,FALSE) ) )","v":""},null,null,null,null,{"$f":"IF(TRIM(BH75)=\"\", \"\", IF(VLOOKUP(BH75,'Footnotes list'!$D$9:$E$58,2,FALSE)=0,\"\",VLOOKUP(BH75,'Footnotes list'!$D$9:$E$58,2,FALSE) ) )","v":""},null,null,null,null,{"$f":"IF(TRIM(BM75)=\"\", \"\", IF(VLOOKUP(BM75,'Footnotes list'!$D$9:$E$58,2,FALSE)=0,\"\",VLOOKUP(BM75,'Footnotes list'!$D$9:$E$58,2,FALSE) ) )","v":""},null,null,null,null,{"$f":"IF(TRIM(BR75)=\"\", \"\", IF(VLOOKUP(BR75,'Footnotes list'!$D$9:$E$58,2,FALSE)=0,\"\",VLOOKUP(BR75,'Footnotes list'!$D$9:$E$58,2,FALSE) ) )","v":""},null,null,null,null,{"$f":"IF(TRIM(BW75)=\"\", \"\", IF(VLOOKUP(BW75,'Footnotes list'!$D$9:$E$58,2,FALSE)=0,\"\",VLOOKUP(BW75,'Footnotes list'!$D$9:$E$58,2,FALSE) ) )","v":""},null,null,null,null,{"$f":"IF(TRIM(CB75)=\"\", \"\", IF(VLOOKUP(CB75,'Footnotes list'!$D$9:$E$58,2,FALSE)=0,\"\",VLOOKUP(CB75,'Footnotes list'!$D$9:$E$58,2,FALSE) ) )","v":""},null,null,null,null,{"$f":"IF(TRIM(CG75)=\"\", \"\", IF(VLOOKUP(CG75,'Footnotes list'!$D$9:$E$58,2,FALSE)=0,\"\",VLOOKUP(CG75,'Footnotes list'!$D$9:$E$58,2,FALSE) ) )","v":""},null,null,null,null,{"$f":"IF(TRIM(CL75)=\"\", \"\", IF(VLOOKUP(CL75,'Footnotes list'!$D$9:$E$58,2,FALSE)=0,\"\",VLOOKUP(CL75,'Footnotes list'!$D$9:$E$58,2,FALSE) ) )","v":""},null,null,null,null,{"$f":"IF(TRIM(CQ75)=\"\", \"\", IF(VLOOKUP(CQ75,'Footnotes list'!$D$9:$E$58,2,FALSE)=0,\"\",VLOOKUP(CQ75,'Footnotes list'!$D$9:$E$58,2,FALSE) ) )","v":""},null,null,null,null,{"$f":"IF(TRIM(CV75)=\"\", \"\", IF(VLOOKUP(CV75,'Footnotes list'!$D$9:$E$58,2,FALSE)=0,\"\",VLOOKUP(CV75,'Footnotes list'!$D$9:$E$58,2,FALSE) ) )","v":""},null,null,null,null,{"$f":"IF(TRIM(DA75)=\"\", \"\", IF(VLOOKUP(DA75,'Footnotes list'!$D$9:$E$58,2,FALSE)=0,\"\",VLOOKUP(DA75,'Footnotes list'!$D$9:$E$58,2,FALSE) ) )","v":""},null,null,null,null,{"$f":"IF(TRIM(DF75)=\"\", \"\", IF(VLOOKUP(DF75,'Footnotes list'!$D$9:$E$58,2,FALSE)=0,\"\",VLOOKUP(DF75,'Footnotes list'!$D$9:$E$58,2,FALSE) ) )","v":""},null,null,null,null,{"$f":"IF(TRIM(DK75)=\"\", \"\", IF(VLOOKUP(DK75,'Footnotes list'!$D$9:$E$58,2,FALSE)=0,\"\",VLOOKUP(DK75,'Footnotes list'!$D$9:$E$58,2,FALSE) ) )","v":""},null,null,null,null,{"$f":"IF(TRIM(DP75)=\"\", \"\", IF(VLOOKUP(DP75,'Footnotes list'!$D$9:$E$58,2,FALSE)=0,\"\",VLOOKUP(DP75,'Footnotes list'!$D$9:$E$58,2,FALSE) ) )","v":""},null,null,null,null,{"$f":"IF(TRIM(DU75)=\"\", \"\", IF(VLOOKUP(DU75,'Footnotes list'!$D$9:$E$58,2,FALSE)=0,\"\",VLOOKUP(DU75,'Footnotes list'!$D$9:$E$58,2,FALSE) ) )","v":""},null,null,null,null,{"$f":"IF(TRIM(DZ75)=\"\", \"\", IF(VLOOKUP(DZ75,'Footnotes list'!$D$9:$E$58,2,FALSE)=0,\"\",VLOOKUP(DZ75,'Footnotes list'!$D$9:$E$58,2,FALSE) ) )","v":""},null,null,null,null,{"$f":"IF(TRIM(EE75)=\"\", \"\", IF(VLOOKUP(EE75,'Footnotes list'!$D$9:$E$58,2,FALSE)=0,\"\",VLOOKUP(EE75,'Footnotes list'!$D$9:$E$58,2,FALSE) ) )","v":""},null,null,null,null,{"$f":"IF(TRIM(EJ75)=\"\", \"\", IF(VLOOKUP(EJ75,'Footnotes list'!$D$9:$E$58,2,FALSE)=0,\"\",VLOOKUP(EJ75,'Footnotes list'!$D$9:$E$58,2,FALSE) ) )","v":""},null,null,null,null,{"$f":"IF(TRIM(EO75)=\"\", \"\", IF(VLOOKUP(EO75,'Footnotes list'!$D$9:$E$58,2,FALSE)=0,\"\",VLOOKUP(EO75,'Footnotes list'!$D$9:$E$58,2,FALSE) ) )","v":""},null,null,null,null,{"$f":"IF(TRIM(ET75)=\"\", \"\", IF(VLOOKUP(ET75,'Footnotes list'!$D$9:$E$58,2,FALSE)=0,\"\",VLOOKUP(ET75,'Footnotes list'!$D$9:$E$58,2,FALSE) ) )","v":""},null,null,null,null,{"$f":"IF(TRIM(EY75)=\"\", \"\", IF(VLOOKUP(EY75,'Footnotes list'!$D$9:$E$58,2,FALSE)=0,\"\",VLOOKUP(EY75,'Footnotes list'!$D$9:$E$58,2,FALSE) ) )","v":""}]
[null,null,"C21","ES_CS","environmental specific services",null,null,null,null,null,{"$f":"IF(TRIM(J76)=\"\", \"\", IF(VLOOKUP(J76,'Footnotes list'!$D$9:$E$58,2,FALSE)=0,\"\",VLOOKUP(J76,'Footnotes list'!$D$9:$E$58,2,FALSE) ) )","v":""},null,null,null,null,{"$f":"IF(TRIM(O76)=\"\", \"\", IF(VLOOKUP(O76,'Footnotes list'!$D$9:$E$58,2,FALSE)=0,\"\",VLOOKUP(O76,'Footnotes list'!$D$9:$E$58,2,FALSE) ) )","v":""},null,null,null,null,{"$f":"IF(TRIM(T76)=\"\", \"\", IF(VLOOKUP(T76,'Footnotes list'!$D$9:$E$58,2,FALSE)=0,\"\",VLOOKUP(T76,'Footnotes list'!$D$9:$E$58,2,FALSE) ) )","v":""},null,null,null,null,{"$f":"IF(TRIM(Y76)=\"\", \"\", IF(VLOOKUP(Y76,'Footnotes list'!$D$9:$E$58,2,FALSE)=0,\"\",VLOOKUP(Y76,'Footnotes list'!$D$9:$E$58,2,FALSE) ) )","v":""},null,null,null,null,{"$f":"IF(TRIM(AD76)=\"\", \"\", IF(VLOOKUP(AD76,'Footnotes list'!$D$9:$E$58,2,FALSE)=0,\"\",VLOOKUP(AD76,'Footnotes list'!$D$9:$E$58,2,FALSE) ) )","v":""},null,null,null,null,{"$f":"IF(TRIM(AI76)=\"\", \"\", IF(VLOOKUP(AI76,'Footnotes list'!$D$9:$E$58,2,FALSE)=0,\"\",VLOOKUP(AI76,'Footnotes list'!$D$9:$E$58,2,FALSE) ) )","v":""},null,null,null,null,{"$f":"IF(TRIM(AN76)=\"\", \"\", IF(VLOOKUP(AN76,'Footnotes list'!$D$9:$E$58,2,FALSE)=0,\"\",VLOOKUP(AN76,'Footnotes list'!$D$9:$E$58,2,FALSE) ) )","v":""},null,null,null,null,{"$f":"IF(TRIM(AS76)=\"\", \"\", IF(VLOOKUP(AS76,'Footnotes list'!$D$9:$E$58,2,FALSE)=0,\"\",VLOOKUP(AS76,'Footnotes list'!$D$9:$E$58,2,FALSE) ) )","v":""},null,null,null,null,{"$f":"IF(TRIM(AX76)=\"\", \"\", IF(VLOOKUP(AX76,'Footnotes list'!$D$9:$E$58,2,FALSE)=0,\"\",VLOOKUP(AX76,'Footnotes list'!$D$9:$E$58,2,FALSE) ) )","v":""},null,null,null,null,{"$f":"IF(TRIM(BC76)=\"\", \"\", IF(VLOOKUP(BC76,'Footnotes list'!$D$9:$E$58,2,FALSE)=0,\"\",VLOOKUP(BC76,'Footnotes list'!$D$9:$E$58,2,FALSE) ) )","v":""},null,null,null,null,{"$f":"IF(TRIM(BH76)=\"\", \"\", IF(VLOOKUP(BH76,'Footnotes list'!$D$9:$E$58,2,FALSE)=0,\"\",VLOOKUP(BH76,'Footnotes list'!$D$9:$E$58,2,FALSE) ) )","v":""},null,null,null,null,{"$f":"IF(TRIM(BM76)=\"\", \"\", IF(VLOOKUP(BM76,'Footnotes list'!$D$9:$E$58,2,FALSE)=0,\"\",VLOOKUP(BM76,'Footnotes list'!$D$9:$E$58,2,FALSE) ) )","v":""},null,null,null,null,{"$f":"IF(TRIM(BR76)=\"\", \"\", IF(VLOOKUP(BR76,'Footnotes list'!$D$9:$E$58,2,FALSE)=0,\"\",VLOOKUP(BR76,'Footnotes list'!$D$9:$E$58,2,FALSE) ) )","v":""},null,null,null,null,{"$f":"IF(TRIM(BW76)=\"\", \"\", IF(VLOOKUP(BW76,'Footnotes list'!$D$9:$E$58,2,FALSE)=0,\"\",VLOOKUP(BW76,'Footnotes list'!$D$9:$E$58,2,FALSE) ) )","v":""},null,null,null,null,{"$f":"IF(TRIM(CB76)=\"\", \"\", IF(VLOOKUP(CB76,'Footnotes list'!$D$9:$E$58,2,FALSE)=0,\"\",VLOOKUP(CB76,'Footnotes list'!$D$9:$E$58,2,FALSE) ) )","v":""},null,null,null,null,{"$f":"IF(TRIM(CG76)=\"\", \"\", IF(VLOOKUP(CG76,'Footnotes list'!$D$9:$E$58,2,FALSE)=0,\"\",VLOOKUP(CG76,'Footnotes list'!$D$9:$E$58,2,FALSE) ) )","v":""},null,null,null,null,{"$f":"IF(TRIM(CL76)=\"\", \"\", IF(VLOOKUP(CL76,'Footnotes list'!$D$9:$E$58,2,FALSE)=0,\"\",VLOOKUP(CL76,'Footnotes list'!$D$9:$E$58,2,FALSE) ) )","v":""},null,null,null,null,{"$f":"IF(TRIM(CQ76)=\"\", \"\", IF(VLOOKUP(CQ76,'Footnotes list'!$D$9:$E$58,2,FALSE)=0,\"\",VLOOKUP(CQ76,'Footnotes list'!$D$9:$E$58,2,FALSE) ) )","v":""},null,null,null,null,{"$f":"IF(TRIM(CV76)=\"\", \"\", IF(VLOOKUP(CV76,'Footnotes list'!$D$9:$E$58,2,FALSE)=0,\"\",VLOOKUP(CV76,'Footnotes list'!$D$9:$E$58,2,FALSE) ) )","v":""},null,null,null,null,{"$f":"IF(TRIM(DA76)=\"\", \"\", IF(VLOOKUP(DA76,'Footnotes list'!$D$9:$E$58,2,FALSE)=0,\"\",VLOOKUP(DA76,'Footnotes list'!$D$9:$E$58,2,FALSE) ) )","v":""},null,null,null,null,{"$f":"IF(TRIM(DF76)=\"\", \"\", IF(VLOOKUP(DF76,'Footnotes list'!$D$9:$E$58,2,FALSE)=0,\"\",VLOOKUP(DF76,'Footnotes list'!$D$9:$E$58,2,FALSE) ) )","v":""},null,null,null,null,{"$f":"IF(TRIM(DK76)=\"\", \"\", IF(VLOOKUP(DK76,'Footnotes list'!$D$9:$E$58,2,FALSE)=0,\"\",VLOOKUP(DK76,'Footnotes list'!$D$9:$E$58,2,FALSE) ) )","v":""},null,null,null,null,{"$f":"IF(TRIM(DP76)=\"\", \"\", IF(VLOOKUP(DP76,'Footnotes list'!$D$9:$E$58,2,FALSE)=0,\"\",VLOOKUP(DP76,'Footnotes list'!$D$9:$E$58,2,FALSE) ) )","v":""},null,null,null,null,{"$f":"IF(TRIM(DU76)=\"\", \"\", IF(VLOOKUP(DU76,'Footnotes list'!$D$9:$E$58,2,FALSE)=0,\"\",VLOOKUP(DU76,'Footnotes list'!$D$9:$E$58,2,FALSE) ) )","v":""},null,null,null,null,{"$f":"IF(TRIM(DZ76)=\"\", \"\", IF(VLOOKUP(DZ76,'Footnotes list'!$D$9:$E$58,2,FALSE)=0,\"\",VLOOKUP(DZ76,'Footnotes list'!$D$9:$E$58,2,FALSE) ) )","v":""},null,null,null,null,{"$f":"IF(TRIM(EE76)=\"\", \"\", IF(VLOOKUP(EE76,'Footnotes list'!$D$9:$E$58,2,FALSE)=0,\"\",VLOOKUP(EE76,'Footnotes list'!$D$9:$E$58,2,FALSE) ) )","v":""},null,null,null,null,{"$f":"IF(TRIM(EJ76)=\"\", \"\", IF(VLOOKUP(EJ76,'Footnotes list'!$D$9:$E$58,2,FALSE)=0,\"\",VLOOKUP(EJ76,'Footnotes list'!$D$9:$E$58,2,FALSE) ) )","v":""},null,null,null,null,{"$f":"IF(TRIM(EO76)=\"\", \"\", IF(VLOOKUP(EO76,'Footnotes list'!$D$9:$E$58,2,FALSE)=0,\"\",VLOOKUP(EO76,'Footnotes list'!$D$9:$E$58,2,FALSE) ) )","v":""},null,null,null,null,{"$f":"IF(TRIM(ET76)=\"\", \"\", IF(VLOOKUP(ET76,'Footnotes list'!$D$9:$E$58,2,FALSE)=0,\"\",VLOOKUP(ET76,'Footnotes list'!$D$9:$E$58,2,FALSE) ) )","v":""},null,null,null,null,{"$f":"IF(TRIM(EY76)=\"\", \"\", IF(VLOOKUP(EY76,'Footnotes list'!$D$9:$E$58,2,FALSE)=0,\"\",VLOOKUP(EY76,'Footnotes list'!$D$9:$E$58,2,FALSE) ) )","v":""}]
[null,null,"C21","C_REP","cleaner and resource efficient products",null,null,null,null,null,{"$f":"IF(TRIM(J77)=\"\", \"\", IF(VLOOKUP(J77,'Footnotes list'!$D$9:$E$58,2,FALSE)=0,\"\",VLOOKUP(J77,'Footnotes list'!$D$9:$E$58,2,FALSE) ) )","v":""},null,null,null,null,{"$f":"IF(TRIM(O77)=\"\", \"\", IF(VLOOKUP(O77,'Footnotes list'!$D$9:$E$58,2,FALSE)=0,\"\",VLOOKUP(O77,'Footnotes list'!$D$9:$E$58,2,FALSE) ) )","v":""},null,null,null,null,{"$f":"IF(TRIM(T77)=\"\", \"\", IF(VLOOKUP(T77,'Footnotes list'!$D$9:$E$58,2,FALSE)=0,\"\",VLOOKUP(T77,'Footnotes list'!$D$9:$E$58,2,FALSE) ) )","v":""},null,null,null,null,{"$f":"IF(TRIM(Y77)=\"\", \"\", IF(VLOOKUP(Y77,'Footnotes list'!$D$9:$E$58,2,FALSE)=0,\"\",VLOOKUP(Y77,'Footnotes list'!$D$9:$E$58,2,FALSE) ) )","v":""},null,null,null,null,{"$f":"IF(TRIM(AD77)=\"\", \"\", IF(VLOOKUP(AD77,'Footnotes list'!$D$9:$E$58,2,FALSE)=0,\"\",VLOOKUP(AD77,'Footnotes list'!$D$9:$E$58,2,FALSE) ) )","v":""},null,null,null,null,{"$f":"IF(TRIM(AI77)=\"\", \"\", IF(VLOOKUP(AI77,'Footnotes list'!$D$9:$E$58,2,FALSE)=0,\"\",VLOOKUP(AI77,'Footnotes list'!$D$9:$E$58,2,FALSE) ) )","v":""},null,null,null,null,{"$f":"IF(TRIM(AN77)=\"\", \"\", IF(VLOOKUP(AN77,'Footnotes list'!$D$9:$E$58,2,FALSE)=0,\"\",VLOOKUP(AN77,'Footnotes list'!$D$9:$E$58,2,FALSE) ) )","v":""},null,null,null,null,{"$f":"IF(TRIM(AS77)=\"\", \"\", IF(VLOOKUP(AS77,'Footnotes list'!$D$9:$E$58,2,FALSE)=0,\"\",VLOOKUP(AS77,'Footnotes list'!$D$9:$E$58,2,FALSE) ) )","v":""},null,null,null,null,{"$f":"IF(TRIM(AX77)=\"\", \"\", IF(VLOOKUP(AX77,'Footnotes list'!$D$9:$E$58,2,FALSE)=0,\"\",VLOOKUP(AX77,'Footnotes list'!$D$9:$E$58,2,FALSE) ) )","v":""},null,null,null,null,{"$f":"IF(TRIM(BC77)=\"\", \"\", IF(VLOOKUP(BC77,'Footnotes list'!$D$9:$E$58,2,FALSE)=0,\"\",VLOOKUP(BC77,'Footnotes list'!$D$9:$E$58,2,FALSE) ) )","v":""},null,null,null,null,{"$f":"IF(TRIM(BH77)=\"\", \"\", IF(VLOOKUP(BH77,'Footnotes list'!$D$9:$E$58,2,FALSE)=0,\"\",VLOOKUP(BH77,'Footnotes list'!$D$9:$E$58,2,FALSE) ) )","v":""},null,null,null,null,{"$f":"IF(TRIM(BM77)=\"\", \"\", IF(VLOOKUP(BM77,'Footnotes list'!$D$9:$E$58,2,FALSE)=0,\"\",VLOOKUP(BM77,'Footnotes list'!$D$9:$E$58,2,FALSE) ) )","v":""},null,null,null,null,{"$f":"IF(TRIM(BR77)=\"\", \"\", IF(VLOOKUP(BR77,'Footnotes list'!$D$9:$E$58,2,FALSE)=0,\"\",VLOOKUP(BR77,'Footnotes list'!$D$9:$E$58,2,FALSE) ) )","v":""},null,null,null,null,{"$f":"IF(TRIM(BW77)=\"\", \"\", IF(VLOOKUP(BW77,'Footnotes list'!$D$9:$E$58,2,FALSE)=0,\"\",VLOOKUP(BW77,'Footnotes list'!$D$9:$E$58,2,FALSE) ) )","v":""},null,null,null,null,{"$f":"IF(TRIM(CB77)=\"\", \"\", IF(VLOOKUP(CB77,'Footnotes list'!$D$9:$E$58,2,FALSE)=0,\"\",VLOOKUP(CB77,'Footnotes list'!$D$9:$E$58,2,FALSE) ) )","v":""},null,null,null,null,{"$f":"IF(TRIM(CG77)=\"\", \"\", IF(VLOOKUP(CG77,'Footnotes list'!$D$9:$E$58,2,FALSE)=0,\"\",VLOOKUP(CG77,'Footnotes list'!$D$9:$E$58,2,FALSE) ) )","v":""},null,null,null,null,{"$f":"IF(TRIM(CL77)=\"\", \"\", IF(VLOOKUP(CL77,'Footnotes list'!$D$9:$E$58,2,FALSE)=0,\"\",VLOOKUP(CL77,'Footnotes list'!$D$9:$E$58,2,FALSE) ) )","v":""},null,null,null,null,{"$f":"IF(TRIM(CQ77)=\"\", \"\", IF(VLOOKUP(CQ77,'Footnotes list'!$D$9:$E$58,2,FALSE)=0,\"\",VLOOKUP(CQ77,'Footnotes list'!$D$9:$E$58,2,FALSE) ) )","v":""},null,null,null,null,{"$f":"IF(TRIM(CV77)=\"\", \"\", IF(VLOOKUP(CV77,'Footnotes list'!$D$9:$E$58,2,FALSE)=0,\"\",VLOOKUP(CV77,'Footnotes list'!$D$9:$E$58,2,FALSE) ) )","v":""},null,null,null,null,{"$f":"IF(TRIM(DA77)=\"\", \"\", IF(VLOOKUP(DA77,'Footnotes list'!$D$9:$E$58,2,FALSE)=0,\"\",VLOOKUP(DA77,'Footnotes list'!$D$9:$E$58,2,FALSE) ) )","v":""},null,null,null,null,{"$f":"IF(TRIM(DF77)=\"\", \"\", IF(VLOOKUP(DF77,'Footnotes list'!$D$9:$E$58,2,FALSE)=0,\"\",VLOOKUP(DF77,'Footnotes list'!$D$9:$E$58,2,FALSE) ) )","v":""},null,null,null,null,{"$f":"IF(TRIM(DK77)=\"\", \"\", IF(VLOOKUP(DK77,'Footnotes list'!$D$9:$E$58,2,FALSE)=0,\"\",VLOOKUP(DK77,'Footnotes list'!$D$9:$E$58,2,FALSE) ) )","v":""},null,null,null,null,{"$f":"IF(TRIM(DP77)=\"\", \"\", IF(VLOOKUP(DP77,'Footnotes list'!$D$9:$E$58,2,FALSE)=0,\"\",VLOOKUP(DP77,'Footnotes list'!$D$9:$E$58,2,FALSE) ) )","v":""},null,null,null,null,{"$f":"IF(TRIM(DU77)=\"\", \"\", IF(VLOOKUP(DU77,'Footnotes list'!$D$9:$E$58,2,FALSE)=0,\"\",VLOOKUP(DU77,'Footnotes list'!$D$9:$E$58,2,FALSE) ) )","v":""},null,null,null,null,{"$f":"IF(TRIM(DZ77)=\"\", \"\", IF(VLOOKUP(DZ77,'Footnotes list'!$D$9:$E$58,2,FALSE)=0,\"\",VLOOKUP(DZ77,'Footnotes list'!$D$9:$E$58,2,FALSE) ) )","v":""},null,null,null,null,{"$f":"IF(TRIM(EE77)=\"\", \"\", IF(VLOOKUP(EE77,'Footnotes list'!$D$9:$E$58,2,FALSE)=0,\"\",VLOOKUP(EE77,'Footnotes list'!$D$9:$E$58,2,FALSE) ) )","v":""},null,null,null,null,{"$f":"IF(TRIM(EJ77)=\"\", \"\", IF(VLOOKUP(EJ77,'Footnotes list'!$D$9:$E$58,2,FALSE)=0,\"\",VLOOKUP(EJ77,'Footnotes list'!$D$9:$E$58,2,FALSE) ) )","v":""},null,null,null,null,{"$f":"IF(TRIM(EO77)=\"\", \"\", IF(VLOOKUP(EO77,'Footnotes list'!$D$9:$E$58,2,FALSE)=0,\"\",VLOOKUP(EO77,'Footnotes list'!$D$9:$E$58,2,FALSE) ) )","v":""},null,null,null,null,{"$f":"IF(TRIM(ET77)=\"\", \"\", IF(VLOOKUP(ET77,'Footnotes list'!$D$9:$E$58,2,FALSE)=0,\"\",VLOOKUP(ET77,'Footnotes list'!$D$9:$E$58,2,FALSE) ) )","v":""},null,null,null,null,{"$f":"IF(TRIM(EY77)=\"\", \"\", IF(VLOOKUP(EY77,'Footnotes list'!$D$9:$E$58,2,FALSE)=0,\"\",VLOOKUP(EY77,'Footnotes list'!$D$9:$E$58,2,FALSE) ) )","v":""}]
[null,null,"C22_C23","TOT_EGSS","Total C22 - C23 Manufacture of rubber and plastic products, and other non-metallic mineral products, of which:",null,null,null,null,null,{"$f":"IF(TRIM(J78)=\"\", \"\", IF(VLOOKUP(J78,'Footnotes list'!$D$9:$E$58,2,FALSE)=0,\"\",VLOOKUP(J78,'Footnotes list'!$D$9:$E$58,2,FALSE) ) )","v":""},null,null,null,null,{"$f":"IF(TRIM(O78)=\"\", \"\", IF(VLOOKUP(O78,'Footnotes list'!$D$9:$E$58,2,FALSE)=0,\"\",VLOOKUP(O78,'Footnotes list'!$D$9:$E$58,2,FALSE) ) )","v":""},null,null,null,null,{"$f":"IF(TRIM(T78)=\"\", \"\", IF(VLOOKUP(T78,'Footnotes list'!$D$9:$E$58,2,FALSE)=0,\"\",VLOOKUP(T78,'Footnotes list'!$D$9:$E$58,2,FALSE) ) )","v":""},null,null,null,null,{"$f":"IF(TRIM(Y78)=\"\", \"\", IF(VLOOKUP(Y78,'Footnotes list'!$D$9:$E$58,2,FALSE)=0,\"\",VLOOKUP(Y78,'Footnotes list'!$D$9:$E$58,2,FALSE) ) )","v":""},null,null,null,null,{"$f":"IF(TRIM(AD78)=\"\", \"\", IF(VLOOKUP(AD78,'Footnotes list'!$D$9:$E$58,2,FALSE)=0,\"\",VLOOKUP(AD78,'Footnotes list'!$D$9:$E$58,2,FALSE) ) )","v":""},null,null,null,null,{"$f":"IF(TRIM(AI78)=\"\", \"\", IF(VLOOKUP(AI78,'Footnotes list'!$D$9:$E$58,2,FALSE)=0,\"\",VLOOKUP(AI78,'Footnotes list'!$D$9:$E$58,2,FALSE) ) )","v":""},null,null,null,null,{"$f":"IF(TRIM(AN78)=\"\", \"\", IF(VLOOKUP(AN78,'Footnotes list'!$D$9:$E$58,2,FALSE)=0,\"\",VLOOKUP(AN78,'Footnotes list'!$D$9:$E$58,2,FALSE) ) )","v":""},null,null,null,null,{"$f":"IF(TRIM(AS78)=\"\", \"\", IF(VLOOKUP(AS78,'Footnotes list'!$D$9:$E$58,2,FALSE)=0,\"\",VLOOKUP(AS78,'Footnotes list'!$D$9:$E$58,2,FALSE) ) )","v":""},null,null,null,null,{"$f":"IF(TRIM(AX78)=\"\", \"\", IF(VLOOKUP(AX78,'Footnotes list'!$D$9:$E$58,2,FALSE)=0,\"\",VLOOKUP(AX78,'Footnotes list'!$D$9:$E$58,2,FALSE) ) )","v":""},null,null,null,null,{"$f":"IF(TRIM(BC78)=\"\", \"\", IF(VLOOKUP(BC78,'Footnotes list'!$D$9:$E$58,2,FALSE)=0,\"\",VLOOKUP(BC78,'Footnotes list'!$D$9:$E$58,2,FALSE) ) )","v":""},null,null,null,null,{"$f":"IF(TRIM(BH78)=\"\", \"\", IF(VLOOKUP(BH78,'Footnotes list'!$D$9:$E$58,2,FALSE)=0,\"\",VLOOKUP(BH78,'Footnotes list'!$D$9:$E$58,2,FALSE) ) )","v":""},null,null,null,null,{"$f":"IF(TRIM(BM78)=\"\", \"\", IF(VLOOKUP(BM78,'Footnotes list'!$D$9:$E$58,2,FALSE)=0,\"\",VLOOKUP(BM78,'Footnotes list'!$D$9:$E$58,2,FALSE) ) )","v":""},null,null,null,null,{"$f":"IF(TRIM(BR78)=\"\", \"\", IF(VLOOKUP(BR78,'Footnotes list'!$D$9:$E$58,2,FALSE)=0,\"\",VLOOKUP(BR78,'Footnotes list'!$D$9:$E$58,2,FALSE) ) )","v":""},null,null,null,null,{"$f":"IF(TRIM(BW78)=\"\", \"\", IF(VLOOKUP(BW78,'Footnotes list'!$D$9:$E$58,2,FALSE)=0,\"\",VLOOKUP(BW78,'Footnotes list'!$D$9:$E$58,2,FALSE) ) )","v":""},null,null,null,null,{"$f":"IF(TRIM(CB78)=\"\", \"\", IF(VLOOKUP(CB78,'Footnotes list'!$D$9:$E$58,2,FALSE)=0,\"\",VLOOKUP(CB78,'Footnotes list'!$D$9:$E$58,2,FALSE) ) )","v":""},null,null,null,null,{"$f":"IF(TRIM(CG78)=\"\", \"\", IF(VLOOKUP(CG78,'Footnotes list'!$D$9:$E$58,2,FALSE)=0,\"\",VLOOKUP(CG78,'Footnotes list'!$D$9:$E$58,2,FALSE) ) )","v":""},null,null,null,null,{"$f":"IF(TRIM(CL78)=\"\", \"\", IF(VLOOKUP(CL78,'Footnotes list'!$D$9:$E$58,2,FALSE)=0,\"\",VLOOKUP(CL78,'Footnotes list'!$D$9:$E$58,2,FALSE) ) )","v":""},null,null,null,null,{"$f":"IF(TRIM(CQ78)=\"\", \"\", IF(VLOOKUP(CQ78,'Footnotes list'!$D$9:$E$58,2,FALSE)=0,\"\",VLOOKUP(CQ78,'Footnotes list'!$D$9:$E$58,2,FALSE) ) )","v":""},null,null,null,null,{"$f":"IF(TRIM(CV78)=\"\", \"\", IF(VLOOKUP(CV78,'Footnotes list'!$D$9:$E$58,2,FALSE)=0,\"\",VLOOKUP(CV78,'Footnotes list'!$D$9:$E$58,2,FALSE) ) )","v":""},null,null,null,null,{"$f":"IF(TRIM(DA78)=\"\", \"\", IF(VLOOKUP(DA78,'Footnotes list'!$D$9:$E$58,2,FALSE)=0,\"\",VLOOKUP(DA78,'Footnotes list'!$D$9:$E$58,2,FALSE) ) )","v":""},null,null,null,null,{"$f":"IF(TRIM(DF78)=\"\", \"\", IF(VLOOKUP(DF78,'Footnotes list'!$D$9:$E$58,2,FALSE)=0,\"\",VLOOKUP(DF78,'Footnotes list'!$D$9:$E$58,2,FALSE) ) )","v":""},null,null,null,null,{"$f":"IF(TRIM(DK78)=\"\", \"\", IF(VLOOKUP(DK78,'Footnotes list'!$D$9:$E$58,2,FALSE)=0,\"\",VLOOKUP(DK78,'Footnotes list'!$D$9:$E$58,2,FALSE) ) )","v":""},null,null,null,null,{"$f":"IF(TRIM(DP78)=\"\", \"\", IF(VLOOKUP(DP78,'Footnotes list'!$D$9:$E$58,2,FALSE)=0,\"\",VLOOKUP(DP78,'Footnotes list'!$D$9:$E$58,2,FALSE) ) )","v":""},null,null,null,null,{"$f":"IF(TRIM(DU78)=\"\", \"\", IF(VLOOKUP(DU78,'Footnotes list'!$D$9:$E$58,2,FALSE)=0,\"\",VLOOKUP(DU78,'Footnotes list'!$D$9:$E$58,2,FALSE) ) )","v":""},null,null,null,null,{"$f":"IF(TRIM(DZ78)=\"\", \"\", IF(VLOOKUP(DZ78,'Footnotes list'!$D$9:$E$58,2,FALSE)=0,\"\",VLOOKUP(DZ78,'Footnotes list'!$D$9:$E$58,2,FALSE) ) )","v":""},null,null,null,null,{"$f":"IF(TRIM(EE78)=\"\", \"\", IF(VLOOKUP(EE78,'Footnotes list'!$D$9:$E$58,2,FALSE)=0,\"\",VLOOKUP(EE78,'Footnotes list'!$D$9:$E$58,2,FALSE) ) )","v":""},null,null,null,null,{"$f":"IF(TRIM(EJ78)=\"\", \"\", IF(VLOOKUP(EJ78,'Footnotes list'!$D$9:$E$58,2,FALSE)=0,\"\",VLOOKUP(EJ78,'Footnotes list'!$D$9:$E$58,2,FALSE) ) )","v":""},null,null,null,null,{"$f":"IF(TRIM(EO78)=\"\", \"\", IF(VLOOKUP(EO78,'Footnotes list'!$D$9:$E$58,2,FALSE)=0,\"\",VLOOKUP(EO78,'Footnotes list'!$D$9:$E$58,2,FALSE) ) )","v":""},null,null,null,null,{"$f":"IF(TRIM(ET78)=\"\", \"\", IF(VLOOKUP(ET78,'Footnotes list'!$D$9:$E$58,2,FALSE)=0,\"\",VLOOKUP(ET78,'Footnotes list'!$D$9:$E$58,2,FALSE) ) )","v":""},null,null,null,null,{"$f":"IF(TRIM(EY78)=\"\", \"\", IF(VLOOKUP(EY78,'Footnotes list'!$D$9:$E$58,2,FALSE)=0,\"\",VLOOKUP(EY78,'Footnotes list'!$D$9:$E$58,2,FALSE) ) )","v":""}]
[null,null,"C22_C23","ANC","ancillary activities",null,null,null,null,null,{"$f":"IF(TRIM(J79)=\"\", \"\", IF(VLOOKUP(J79,'Footnotes list'!$D$9:$E$58,2,FALSE)=0,\"\",VLOOKUP(J79,'Footnotes list'!$D$9:$E$58,2,FALSE) ) )","v":""},null,null,null,null,{"$f":"IF(TRIM(O79)=\"\", \"\", IF(VLOOKUP(O79,'Footnotes list'!$D$9:$E$58,2,FALSE)=0,\"\",VLOOKUP(O79,'Footnotes list'!$D$9:$E$58,2,FALSE) ) )","v":""},null,null,null,null,{"$f":"IF(TRIM(T79)=\"\", \"\", IF(VLOOKUP(T79,'Footnotes list'!$D$9:$E$58,2,FALSE)=0,\"\",VLOOKUP(T79,'Footnotes list'!$D$9:$E$58,2,FALSE) ) )","v":""},null,null,null,null,{"$f":"IF(TRIM(Y79)=\"\", \"\", IF(VLOOKUP(Y79,'Footnotes list'!$D$9:$E$58,2,FALSE)=0,\"\",VLOOKUP(Y79,'Footnotes list'!$D$9:$E$58,2,FALSE) ) )","v":""},null,null,null,null,{"$f":"IF(TRIM(AD79)=\"\", \"\", IF(VLOOKUP(AD79,'Footnotes list'!$D$9:$E$58,2,FALSE)=0,\"\",VLOOKUP(AD79,'Footnotes list'!$D$9:$E$58,2,FALSE) ) )","v":""},null,null,null,null,{"$f":"IF(TRIM(AI79)=\"\", \"\", IF(VLOOKUP(AI79,'Footnotes list'!$D$9:$E$58,2,FALSE)=0,\"\",VLOOKUP(AI79,'Footnotes list'!$D$9:$E$58,2,FALSE) ) )","v":""},null,null,null,null,{"$f":"IF(TRIM(AN79)=\"\", \"\", IF(VLOOKUP(AN79,'Footnotes list'!$D$9:$E$58,2,FALSE)=0,\"\",VLOOKUP(AN79,'Footnotes list'!$D$9:$E$58,2,FALSE) ) )","v":""},null,null,null,null,{"$f":"IF(TRIM(AS79)=\"\", \"\", IF(VLOOKUP(AS79,'Footnotes list'!$D$9:$E$58,2,FALSE)=0,\"\",VLOOKUP(AS79,'Footnotes list'!$D$9:$E$58,2,FALSE) ) )","v":""},null,null,null,null,{"$f":"IF(TRIM(AX79)=\"\", \"\", IF(VLOOKUP(AX79,'Footnotes list'!$D$9:$E$58,2,FALSE)=0,\"\",VLOOKUP(AX79,'Footnotes list'!$D$9:$E$58,2,FALSE) ) )","v":""},null,null,null,null,{"$f":"IF(TRIM(BC79)=\"\", \"\", IF(VLOOKUP(BC79,'Footnotes list'!$D$9:$E$58,2,FALSE)=0,\"\",VLOOKUP(BC79,'Footnotes list'!$D$9:$E$58,2,FALSE) ) )","v":""},null,null,null,null,{"$f":"IF(TRIM(BH79)=\"\", \"\", IF(VLOOKUP(BH79,'Footnotes list'!$D$9:$E$58,2,FALSE)=0,\"\",VLOOKUP(BH79,'Footnotes list'!$D$9:$E$58,2,FALSE) ) )","v":""},null,null,null,null,{"$f":"IF(TRIM(BM79)=\"\", \"\", IF(VLOOKUP(BM79,'Footnotes list'!$D$9:$E$58,2,FALSE)=0,\"\",VLOOKUP(BM79,'Footnotes list'!$D$9:$E$58,2,FALSE) ) )","v":""},null,null,null,null,{"$f":"IF(TRIM(BR79)=\"\", \"\", IF(VLOOKUP(BR79,'Footnotes list'!$D$9:$E$58,2,FALSE)=0,\"\",VLOOKUP(BR79,'Footnotes list'!$D$9:$E$58,2,FALSE) ) )","v":""},null,null,null,null,{"$f":"IF(TRIM(BW79)=\"\", \"\", IF(VLOOKUP(BW79,'Footnotes list'!$D$9:$E$58,2,FALSE)=0,\"\",VLOOKUP(BW79,'Footnotes list'!$D$9:$E$58,2,FALSE) ) )","v":""},null,null,null,null,{"$f":"IF(TRIM(CB79)=\"\", \"\", IF(VLOOKUP(CB79,'Footnotes list'!$D$9:$E$58,2,FALSE)=0,\"\",VLOOKUP(CB79,'Footnotes list'!$D$9:$E$58,2,FALSE) ) )","v":""},null,null,null,null,{"$f":"IF(TRIM(CG79)=\"\", \"\", IF(VLOOKUP(CG79,'Footnotes list'!$D$9:$E$58,2,FALSE)=0,\"\",VLOOKUP(CG79,'Footnotes list'!$D$9:$E$58,2,FALSE) ) )","v":""},null,null,null,null,{"$f":"IF(TRIM(CL79)=\"\", \"\", IF(VLOOKUP(CL79,'Footnotes list'!$D$9:$E$58,2,FALSE)=0,\"\",VLOOKUP(CL79,'Footnotes list'!$D$9:$E$58,2,FALSE) ) )","v":""},null,null,null,null,{"$f":"IF(TRIM(CQ79)=\"\", \"\", IF(VLOOKUP(CQ79,'Footnotes list'!$D$9:$E$58,2,FALSE)=0,\"\",VLOOKUP(CQ79,'Footnotes list'!$D$9:$E$58,2,FALSE) ) )","v":""},null,null,null,null,{"$f":"IF(TRIM(CV79)=\"\", \"\", IF(VLOOKUP(CV79,'Footnotes list'!$D$9:$E$58,2,FALSE)=0,\"\",VLOOKUP(CV79,'Footnotes list'!$D$9:$E$58,2,FALSE) ) )","v":""},null,null,null,null,{"$f":"IF(TRIM(DA79)=\"\", \"\", IF(VLOOKUP(DA79,'Footnotes list'!$D$9:$E$58,2,FALSE)=0,\"\",VLOOKUP(DA79,'Footnotes list'!$D$9:$E$58,2,FALSE) ) )","v":""},null,null,null,null,{"$f":"IF(TRIM(DF79)=\"\", \"\", IF(VLOOKUP(DF79,'Footnotes list'!$D$9:$E$58,2,FALSE)=0,\"\",VLOOKUP(DF79,'Footnotes list'!$D$9:$E$58,2,FALSE) ) )","v":""},null,null,null,null,{"$f":"IF(TRIM(DK79)=\"\", \"\", IF(VLOOKUP(DK79,'Footnotes list'!$D$9:$E$58,2,FALSE)=0,\"\",VLOOKUP(DK79,'Footnotes list'!$D$9:$E$58,2,FALSE) ) )","v":""},null,null,null,null,{"$f":"IF(TRIM(DP79)=\"\", \"\", IF(VLOOKUP(DP79,'Footnotes list'!$D$9:$E$58,2,FALSE)=0,\"\",VLOOKUP(DP79,'Footnotes list'!$D$9:$E$58,2,FALSE) ) )","v":""},null,null,null,null,{"$f":"IF(TRIM(DU79)=\"\", \"\", IF(VLOOKUP(DU79,'Footnotes list'!$D$9:$E$58,2,FALSE)=0,\"\",VLOOKUP(DU79,'Footnotes list'!$D$9:$E$58,2,FALSE) ) )","v":""},null,null,null,null,{"$f":"IF(TRIM(DZ79)=\"\", \"\", IF(VLOOKUP(DZ79,'Footnotes list'!$D$9:$E$58,2,FALSE)=0,\"\",VLOOKUP(DZ79,'Footnotes list'!$D$9:$E$58,2,FALSE) ) )","v":""},null,null,null,null,{"$f":"IF(TRIM(EE79)=\"\", \"\", IF(VLOOKUP(EE79,'Footnotes list'!$D$9:$E$58,2,FALSE)=0,\"\",VLOOKUP(EE79,'Footnotes list'!$D$9:$E$58,2,FALSE) ) )","v":""},null,null,null,null,{"$f":"IF(TRIM(EJ79)=\"\", \"\", IF(VLOOKUP(EJ79,'Footnotes list'!$D$9:$E$58,2,FALSE)=0,\"\",VLOOKUP(EJ79,'Footnotes list'!$D$9:$E$58,2,FALSE) ) )","v":""},null,null,null,null,{"$f":"IF(TRIM(EO79)=\"\", \"\", IF(VLOOKUP(EO79,'Footnotes list'!$D$9:$E$58,2,FALSE)=0,\"\",VLOOKUP(EO79,'Footnotes list'!$D$9:$E$58,2,FALSE) ) )","v":""},null,null,null,null,{"$f":"IF(TRIM(ET79)=\"\", \"\", IF(VLOOKUP(ET79,'Footnotes list'!$D$9:$E$58,2,FALSE)=0,\"\",VLOOKUP(ET79,'Footnotes list'!$D$9:$E$58,2,FALSE) ) )","v":""},null,null,null,null,{"$f":"IF(TRIM(EY79)=\"\", \"\", IF(VLOOKUP(EY79,'Footnotes list'!$D$9:$E$58,2,FALSE)=0,\"\",VLOOKUP(EY79,'Footnotes list'!$D$9:$E$58,2,FALSE) ) )","v":""}]
[null,null,"C22_C23","NMKT","non-market activities",null,null,null,null,null,{"$f":"IF(TRIM(J80)=\"\", \"\", IF(VLOOKUP(J80,'Footnotes list'!$D$9:$E$58,2,FALSE)=0,\"\",VLOOKUP(J80,'Footnotes list'!$D$9:$E$58,2,FALSE) ) )","v":""},null,null,null,null,{"$f":"IF(TRIM(O80)=\"\", \"\", IF(VLOOKUP(O80,'Footnotes list'!$D$9:$E$58,2,FALSE)=0,\"\",VLOOKUP(O80,'Footnotes list'!$D$9:$E$58,2,FALSE) ) )","v":""},null,null,null,null,{"$f":"IF(TRIM(T80)=\"\", \"\", IF(VLOOKUP(T80,'Footnotes list'!$D$9:$E$58,2,FALSE)=0,\"\",VLOOKUP(T80,'Footnotes list'!$D$9:$E$58,2,FALSE) ) )","v":""},null,null,null,null,{"$f":"IF(TRIM(Y80)=\"\", \"\", IF(VLOOKUP(Y80,'Footnotes list'!$D$9:$E$58,2,FALSE)=0,\"\",VLOOKUP(Y80,'Footnotes list'!$D$9:$E$58,2,FALSE) ) )","v":""},null,null,null,null,{"$f":"IF(TRIM(AD80)=\"\", \"\", IF(VLOOKUP(AD80,'Footnotes list'!$D$9:$E$58,2,FALSE)=0,\"\",VLOOKUP(AD80,'Footnotes list'!$D$9:$E$58,2,FALSE) ) )","v":""},null,null,null,null,{"$f":"IF(TRIM(AI80)=\"\", \"\", IF(VLOOKUP(AI80,'Footnotes list'!$D$9:$E$58,2,FALSE)=0,\"\",VLOOKUP(AI80,'Footnotes list'!$D$9:$E$58,2,FALSE) ) )","v":""},null,null,null,null,{"$f":"IF(TRIM(AN80)=\"\", \"\", IF(VLOOKUP(AN80,'Footnotes list'!$D$9:$E$58,2,FALSE)=0,\"\",VLOOKUP(AN80,'Footnotes list'!$D$9:$E$58,2,FALSE) ) )","v":""},null,null,null,null,{"$f":"IF(TRIM(AS80)=\"\", \"\", IF(VLOOKUP(AS80,'Footnotes list'!$D$9:$E$58,2,FALSE)=0,\"\",VLOOKUP(AS80,'Footnotes list'!$D$9:$E$58,2,FALSE) ) )","v":""},null,null,null,null,{"$f":"IF(TRIM(AX80)=\"\", \"\", IF(VLOOKUP(AX80,'Footnotes list'!$D$9:$E$58,2,FALSE)=0,\"\",VLOOKUP(AX80,'Footnotes list'!$D$9:$E$58,2,FALSE) ) )","v":""},null,null,null,null,{"$f":"IF(TRIM(BC80)=\"\", \"\", IF(VLOOKUP(BC80,'Footnotes list'!$D$9:$E$58,2,FALSE)=0,\"\",VLOOKUP(BC80,'Footnotes list'!$D$9:$E$58,2,FALSE) ) )","v":""},null,null,null,null,{"$f":"IF(TRIM(BH80)=\"\", \"\", IF(VLOOKUP(BH80,'Footnotes list'!$D$9:$E$58,2,FALSE)=0,\"\",VLOOKUP(BH80,'Footnotes list'!$D$9:$E$58,2,FALSE) ) )","v":""},null,null,null,null,{"$f":"IF(TRIM(BM80)=\"\", \"\", IF(VLOOKUP(BM80,'Footnotes list'!$D$9:$E$58,2,FALSE)=0,\"\",VLOOKUP(BM80,'Footnotes list'!$D$9:$E$58,2,FALSE) ) )","v":""},null,null,null,null,{"$f":"IF(TRIM(BR80)=\"\", \"\", IF(VLOOKUP(BR80,'Footnotes list'!$D$9:$E$58,2,FALSE)=0,\"\",VLOOKUP(BR80,'Footnotes list'!$D$9:$E$58,2,FALSE) ) )","v":""},null,null,null,null,{"$f":"IF(TRIM(BW80)=\"\", \"\", IF(VLOOKUP(BW80,'Footnotes list'!$D$9:$E$58,2,FALSE)=0,\"\",VLOOKUP(BW80,'Footnotes list'!$D$9:$E$58,2,FALSE) ) )","v":""},null,null,null,null,{"$f":"IF(TRIM(CB80)=\"\", \"\", IF(VLOOKUP(CB80,'Footnotes list'!$D$9:$E$58,2,FALSE)=0,\"\",VLOOKUP(CB80,'Footnotes list'!$D$9:$E$58,2,FALSE) ) )","v":""},null,null,null,null,{"$f":"IF(TRIM(CG80)=\"\", \"\", IF(VLOOKUP(CG80,'Footnotes list'!$D$9:$E$58,2,FALSE)=0,\"\",VLOOKUP(CG80,'Footnotes list'!$D$9:$E$58,2,FALSE) ) )","v":""},null,null,null,null,{"$f":"IF(TRIM(CL80)=\"\", \"\", IF(VLOOKUP(CL80,'Footnotes list'!$D$9:$E$58,2,FALSE)=0,\"\",VLOOKUP(CL80,'Footnotes list'!$D$9:$E$58,2,FALSE) ) )","v":""},null,null,null,null,{"$f":"IF(TRIM(CQ80)=\"\", \"\", IF(VLOOKUP(CQ80,'Footnotes list'!$D$9:$E$58,2,FALSE)=0,\"\",VLOOKUP(CQ80,'Footnotes list'!$D$9:$E$58,2,FALSE) ) )","v":""},null,null,null,null,{"$f":"IF(TRIM(CV80)=\"\", \"\", IF(VLOOKUP(CV80,'Footnotes list'!$D$9:$E$58,2,FALSE)=0,\"\",VLOOKUP(CV80,'Footnotes list'!$D$9:$E$58,2,FALSE) ) )","v":""},null,null,null,null,{"$f":"IF(TRIM(DA80)=\"\", \"\", IF(VLOOKUP(DA80,'Footnotes list'!$D$9:$E$58,2,FALSE)=0,\"\",VLOOKUP(DA80,'Footnotes list'!$D$9:$E$58,2,FALSE) ) )","v":""},null,null,null,null,{"$f":"IF(TRIM(DF80)=\"\", \"\", IF(VLOOKUP(DF80,'Footnotes list'!$D$9:$E$58,2,FALSE)=0,\"\",VLOOKUP(DF80,'Footnotes list'!$D$9:$E$58,2,FALSE) ) )","v":""},null,null,null,null,{"$f":"IF(TRIM(DK80)=\"\", \"\", IF(VLOOKUP(DK80,'Footnotes list'!$D$9:$E$58,2,FALSE)=0,\"\",VLOOKUP(DK80,'Footnotes list'!$D$9:$E$58,2,FALSE) ) )","v":""},null,null,null,null,{"$f":"IF(TRIM(DP80)=\"\", \"\", IF(VLOOKUP(DP80,'Footnotes list'!$D$9:$E$58,2,FALSE)=0,\"\",VLOOKUP(DP80,'Footnotes list'!$D$9:$E$58,2,FALSE) ) )","v":""},null,null,null,null,{"$f":"IF(TRIM(DU80)=\"\", \"\", IF(VLOOKUP(DU80,'Footnotes list'!$D$9:$E$58,2,FALSE)=0,\"\",VLOOKUP(DU80,'Footnotes list'!$D$9:$E$58,2,FALSE) ) )","v":""},null,null,null,null,{"$f":"IF(TRIM(DZ80)=\"\", \"\", IF(VLOOKUP(DZ80,'Footnotes list'!$D$9:$E$58,2,FALSE)=0,\"\",VLOOKUP(DZ80,'Footnotes list'!$D$9:$E$58,2,FALSE) ) )","v":""},null,null,null,null,{"$f":"IF(TRIM(EE80)=\"\", \"\", IF(VLOOKUP(EE80,'Footnotes list'!$D$9:$E$58,2,FALSE)=0,\"\",VLOOKUP(EE80,'Footnotes list'!$D$9:$E$58,2,FALSE) ) )","v":""},null,null,null,null,{"$f":"IF(TRIM(EJ80)=\"\", \"\", IF(VLOOKUP(EJ80,'Footnotes list'!$D$9:$E$58,2,FALSE)=0,\"\",VLOOKUP(EJ80,'Footnotes list'!$D$9:$E$58,2,FALSE) ) )","v":""},null,null,null,null,{"$f":"IF(TRIM(EO80)=\"\", \"\", IF(VLOOKUP(EO80,'Footnotes list'!$D$9:$E$58,2,FALSE)=0,\"\",VLOOKUP(EO80,'Footnotes list'!$D$9:$E$58,2,FALSE) ) )","v":""},null,null,null,null,{"$f":"IF(TRIM(ET80)=\"\", \"\", IF(VLOOKUP(ET80,'Footnotes list'!$D$9:$E$58,2,FALSE)=0,\"\",VLOOKUP(ET80,'Footnotes list'!$D$9:$E$58,2,FALSE) ) )","v":""},null,null,null,null,{"$f":"IF(TRIM(EY80)=\"\", \"\", IF(VLOOKUP(EY80,'Footnotes list'!$D$9:$E$58,2,FALSE)=0,\"\",VLOOKUP(EY80,'Footnotes list'!$D$9:$E$58,2,FALSE) ) )","v":""}]
[null,null,"C22_C23","OWN_USE","activities for own final use",null,null,null,null,null,{"$f":"IF(TRIM(J81)=\"\", \"\", IF(VLOOKUP(J81,'Footnotes list'!$D$9:$E$58,2,FALSE)=0,\"\",VLOOKUP(J81,'Footnotes list'!$D$9:$E$58,2,FALSE) ) )","v":""},null,null,null,null,{"$f":"IF(TRIM(O81)=\"\", \"\", IF(VLOOKUP(O81,'Footnotes list'!$D$9:$E$58,2,FALSE)=0,\"\",VLOOKUP(O81,'Footnotes list'!$D$9:$E$58,2,FALSE) ) )","v":""},null,null,null,null,{"$f":"IF(TRIM(T81)=\"\", \"\", IF(VLOOKUP(T81,'Footnotes list'!$D$9:$E$58,2,FALSE)=0,\"\",VLOOKUP(T81,'Footnotes list'!$D$9:$E$58,2,FALSE) ) )","v":""},null,null,null,null,{"$f":"IF(TRIM(Y81)=\"\", \"\", IF(VLOOKUP(Y81,'Footnotes list'!$D$9:$E$58,2,FALSE)=0,\"\",VLOOKUP(Y81,'Footnotes list'!$D$9:$E$58,2,FALSE) ) )","v":""},null,null,null,null,{"$f":"IF(TRIM(AD81)=\"\", \"\", IF(VLOOKUP(AD81,'Footnotes list'!$D$9:$E$58,2,FALSE)=0,\"\",VLOOKUP(AD81,'Footnotes list'!$D$9:$E$58,2,FALSE) ) )","v":""},null,null,null,null,{"$f":"IF(TRIM(AI81)=\"\", \"\", IF(VLOOKUP(AI81,'Footnotes list'!$D$9:$E$58,2,FALSE)=0,\"\",VLOOKUP(AI81,'Footnotes list'!$D$9:$E$58,2,FALSE) ) )","v":""},null,null,null,null,{"$f":"IF(TRIM(AN81)=\"\", \"\", IF(VLOOKUP(AN81,'Footnotes list'!$D$9:$E$58,2,FALSE)=0,\"\",VLOOKUP(AN81,'Footnotes list'!$D$9:$E$58,2,FALSE) ) )","v":""},null,null,null,null,{"$f":"IF(TRIM(AS81)=\"\", \"\", IF(VLOOKUP(AS81,'Footnotes list'!$D$9:$E$58,2,FALSE)=0,\"\",VLOOKUP(AS81,'Footnotes list'!$D$9:$E$58,2,FALSE) ) )","v":""},null,null,null,null,{"$f":"IF(TRIM(AX81)=\"\", \"\", IF(VLOOKUP(AX81,'Footnotes list'!$D$9:$E$58,2,FALSE)=0,\"\",VLOOKUP(AX81,'Footnotes list'!$D$9:$E$58,2,FALSE) ) )","v":""},null,null,null,null,{"$f":"IF(TRIM(BC81)=\"\", \"\", IF(VLOOKUP(BC81,'Footnotes list'!$D$9:$E$58,2,FALSE)=0,\"\",VLOOKUP(BC81,'Footnotes list'!$D$9:$E$58,2,FALSE) ) )","v":""},null,null,null,null,{"$f":"IF(TRIM(BH81)=\"\", \"\", IF(VLOOKUP(BH81,'Footnotes list'!$D$9:$E$58,2,FALSE)=0,\"\",VLOOKUP(BH81,'Footnotes list'!$D$9:$E$58,2,FALSE) ) )","v":""},null,null,null,null,{"$f":"IF(TRIM(BM81)=\"\", \"\", IF(VLOOKUP(BM81,'Footnotes list'!$D$9:$E$58,2,FALSE)=0,\"\",VLOOKUP(BM81,'Footnotes list'!$D$9:$E$58,2,FALSE) ) )","v":""},null,null,null,null,{"$f":"IF(TRIM(BR81)=\"\", \"\", IF(VLOOKUP(BR81,'Footnotes list'!$D$9:$E$58,2,FALSE)=0,\"\",VLOOKUP(BR81,'Footnotes list'!$D$9:$E$58,2,FALSE) ) )","v":""},null,null,null,null,{"$f":"IF(TRIM(BW81)=\"\", \"\", IF(VLOOKUP(BW81,'Footnotes list'!$D$9:$E$58,2,FALSE)=0,\"\",VLOOKUP(BW81,'Footnotes list'!$D$9:$E$58,2,FALSE) ) )","v":""},null,null,null,null,{"$f":"IF(TRIM(CB81)=\"\", \"\", IF(VLOOKUP(CB81,'Footnotes list'!$D$9:$E$58,2,FALSE)=0,\"\",VLOOKUP(CB81,'Footnotes list'!$D$9:$E$58,2,FALSE) ) )","v":""},null,null,null,null,{"$f":"IF(TRIM(CG81)=\"\", \"\", IF(VLOOKUP(CG81,'Footnotes list'!$D$9:$E$58,2,FALSE)=0,\"\",VLOOKUP(CG81,'Footnotes list'!$D$9:$E$58,2,FALSE) ) )","v":""},null,null,null,null,{"$f":"IF(TRIM(CL81)=\"\", \"\", IF(VLOOKUP(CL81,'Footnotes list'!$D$9:$E$58,2,FALSE)=0,\"\",VLOOKUP(CL81,'Footnotes list'!$D$9:$E$58,2,FALSE) ) )","v":""},null,null,null,null,{"$f":"IF(TRIM(CQ81)=\"\", \"\", IF(VLOOKUP(CQ81,'Footnotes list'!$D$9:$E$58,2,FALSE)=0,\"\",VLOOKUP(CQ81,'Footnotes list'!$D$9:$E$58,2,FALSE) ) )","v":""},null,null,null,null,{"$f":"IF(TRIM(CV81)=\"\", \"\", IF(VLOOKUP(CV81,'Footnotes list'!$D$9:$E$58,2,FALSE)=0,\"\",VLOOKUP(CV81,'Footnotes list'!$D$9:$E$58,2,FALSE) ) )","v":""},null,null,null,null,{"$f":"IF(TRIM(DA81)=\"\", \"\", IF(VLOOKUP(DA81,'Footnotes list'!$D$9:$E$58,2,FALSE)=0,\"\",VLOOKUP(DA81,'Footnotes list'!$D$9:$E$58,2,FALSE) ) )","v":""},null,null,null,null,{"$f":"IF(TRIM(DF81)=\"\", \"\", IF(VLOOKUP(DF81,'Footnotes list'!$D$9:$E$58,2,FALSE)=0,\"\",VLOOKUP(DF81,'Footnotes list'!$D$9:$E$58,2,FALSE) ) )","v":""},null,null,null,null,{"$f":"IF(TRIM(DK81)=\"\", \"\", IF(VLOOKUP(DK81,'Footnotes list'!$D$9:$E$58,2,FALSE)=0,\"\",VLOOKUP(DK81,'Footnotes list'!$D$9:$E$58,2,FALSE) ) )","v":""},null,null,null,null,{"$f":"IF(TRIM(DP81)=\"\", \"\", IF(VLOOKUP(DP81,'Footnotes list'!$D$9:$E$58,2,FALSE)=0,\"\",VLOOKUP(DP81,'Footnotes list'!$D$9:$E$58,2,FALSE) ) )","v":""},null,null,null,null,{"$f":"IF(TRIM(DU81)=\"\", \"\", IF(VLOOKUP(DU81,'Footnotes list'!$D$9:$E$58,2,FALSE)=0,\"\",VLOOKUP(DU81,'Footnotes list'!$D$9:$E$58,2,FALSE) ) )","v":""},null,null,null,null,{"$f":"IF(TRIM(DZ81)=\"\", \"\", IF(VLOOKUP(DZ81,'Footnotes list'!$D$9:$E$58,2,FALSE)=0,\"\",VLOOKUP(DZ81,'Footnotes list'!$D$9:$E$58,2,FALSE) ) )","v":""},null,null,null,null,{"$f":"IF(TRIM(EE81)=\"\", \"\", IF(VLOOKUP(EE81,'Footnotes list'!$D$9:$E$58,2,FALSE)=0,\"\",VLOOKUP(EE81,'Footnotes list'!$D$9:$E$58,2,FALSE) ) )","v":""},null,null,null,null,{"$f":"IF(TRIM(EJ81)=\"\", \"\", IF(VLOOKUP(EJ81,'Footnotes list'!$D$9:$E$58,2,FALSE)=0,\"\",VLOOKUP(EJ81,'Footnotes list'!$D$9:$E$58,2,FALSE) ) )","v":""},null,null,null,null,{"$f":"IF(TRIM(EO81)=\"\", \"\", IF(VLOOKUP(EO81,'Footnotes list'!$D$9:$E$58,2,FALSE)=0,\"\",VLOOKUP(EO81,'Footnotes list'!$D$9:$E$58,2,FALSE) ) )","v":""},null,null,null,null,{"$f":"IF(TRIM(ET81)=\"\", \"\", IF(VLOOKUP(ET81,'Footnotes list'!$D$9:$E$58,2,FALSE)=0,\"\",VLOOKUP(ET81,'Footnotes list'!$D$9:$E$58,2,FALSE) ) )","v":""},null,null,null,null,{"$f":"IF(TRIM(EY81)=\"\", \"\", IF(VLOOKUP(EY81,'Footnotes list'!$D$9:$E$58,2,FALSE)=0,\"\",VLOOKUP(EY81,'Footnotes list'!$D$9:$E$58,2,FALSE) ) )","v":""}]
[null,null,"C22_C23","MKT","market activities, including:",null,null,null,null,null,{"$f":"IF(TRIM(J82)=\"\", \"\", IF(VLOOKUP(J82,'Footnotes list'!$D$9:$E$58,2,FALSE)=0,\"\",VLOOKUP(J82,'Footnotes list'!$D$9:$E$58,2,FALSE) ) )","v":""},null,null,null,null,{"$f":"IF(TRIM(O82)=\"\", \"\", IF(VLOOKUP(O82,'Footnotes list'!$D$9:$E$58,2,FALSE)=0,\"\",VLOOKUP(O82,'Footnotes list'!$D$9:$E$58,2,FALSE) ) )","v":""},null,null,null,null,{"$f":"IF(TRIM(T82)=\"\", \"\", IF(VLOOKUP(T82,'Footnotes list'!$D$9:$E$58,2,FALSE)=0,\"\",VLOOKUP(T82,'Footnotes list'!$D$9:$E$58,2,FALSE) ) )","v":""},null,null,null,null,{"$f":"IF(TRIM(Y82)=\"\", \"\", IF(VLOOKUP(Y82,'Footnotes list'!$D$9:$E$58,2,FALSE)=0,\"\",VLOOKUP(Y82,'Footnotes list'!$D$9:$E$58,2,FALSE) ) )","v":""},null,null,null,null,{"$f":"IF(TRIM(AD82)=\"\", \"\", IF(VLOOKUP(AD82,'Footnotes list'!$D$9:$E$58,2,FALSE)=0,\"\",VLOOKUP(AD82,'Footnotes list'!$D$9:$E$58,2,FALSE) ) )","v":""},null,null,null,null,{"$f":"IF(TRIM(AI82)=\"\", \"\", IF(VLOOKUP(AI82,'Footnotes list'!$D$9:$E$58,2,FALSE)=0,\"\",VLOOKUP(AI82,'Footnotes list'!$D$9:$E$58,2,FALSE) ) )","v":""},null,null,null,null,{"$f":"IF(TRIM(AN82)=\"\", \"\", IF(VLOOKUP(AN82,'Footnotes list'!$D$9:$E$58,2,FALSE)=0,\"\",VLOOKUP(AN82,'Footnotes list'!$D$9:$E$58,2,FALSE) ) )","v":""},null,null,null,null,{"$f":"IF(TRIM(AS82)=\"\", \"\", IF(VLOOKUP(AS82,'Footnotes list'!$D$9:$E$58,2,FALSE)=0,\"\",VLOOKUP(AS82,'Footnotes list'!$D$9:$E$58,2,FALSE) ) )","v":""},null,null,null,null,{"$f":"IF(TRIM(AX82)=\"\", \"\", IF(VLOOKUP(AX82,'Footnotes list'!$D$9:$E$58,2,FALSE)=0,\"\",VLOOKUP(AX82,'Footnotes list'!$D$9:$E$58,2,FALSE) ) )","v":""},null,null,null,null,{"$f":"IF(TRIM(BC82)=\"\", \"\", IF(VLOOKUP(BC82,'Footnotes list'!$D$9:$E$58,2,FALSE)=0,\"\",VLOOKUP(BC82,'Footnotes list'!$D$9:$E$58,2,FALSE) ) )","v":""},null,null,null,null,{"$f":"IF(TRIM(BH82)=\"\", \"\", IF(VLOOKUP(BH82,'Footnotes list'!$D$9:$E$58,2,FALSE)=0,\"\",VLOOKUP(BH82,'Footnotes list'!$D$9:$E$58,2,FALSE) ) )","v":""},null,null,null,null,{"$f":"IF(TRIM(BM82)=\"\", \"\", IF(VLOOKUP(BM82,'Footnotes list'!$D$9:$E$58,2,FALSE)=0,\"\",VLOOKUP(BM82,'Footnotes list'!$D$9:$E$58,2,FALSE) ) )","v":""},null,null,null,null,{"$f":"IF(TRIM(BR82)=\"\", \"\", IF(VLOOKUP(BR82,'Footnotes list'!$D$9:$E$58,2,FALSE)=0,\"\",VLOOKUP(BR82,'Footnotes list'!$D$9:$E$58,2,FALSE) ) )","v":""},null,null,null,null,{"$f":"IF(TRIM(BW82)=\"\", \"\", IF(VLOOKUP(BW82,'Footnotes list'!$D$9:$E$58,2,FALSE)=0,\"\",VLOOKUP(BW82,'Footnotes list'!$D$9:$E$58,2,FALSE) ) )","v":""},null,null,null,null,{"$f":"IF(TRIM(CB82)=\"\", \"\", IF(VLOOKUP(CB82,'Footnotes list'!$D$9:$E$58,2,FALSE)=0,\"\",VLOOKUP(CB82,'Footnotes list'!$D$9:$E$58,2,FALSE) ) )","v":""},null,null,null,null,{"$f":"IF(TRIM(CG82)=\"\", \"\", IF(VLOOKUP(CG82,'Footnotes list'!$D$9:$E$58,2,FALSE)=0,\"\",VLOOKUP(CG82,'Footnotes list'!$D$9:$E$58,2,FALSE) ) )","v":""},null,null,null,null,{"$f":"IF(TRIM(CL82)=\"\", \"\", IF(VLOOKUP(CL82,'Footnotes list'!$D$9:$E$58,2,FALSE)=0,\"\",VLOOKUP(CL82,'Footnotes list'!$D$9:$E$58,2,FALSE) ) )","v":""},null,null,null,null,{"$f":"IF(TRIM(CQ82)=\"\", \"\", IF(VLOOKUP(CQ82,'Footnotes list'!$D$9:$E$58,2,FALSE)=0,\"\",VLOOKUP(CQ82,'Footnotes list'!$D$9:$E$58,2,FALSE) ) )","v":""},null,null,null,null,{"$f":"IF(TRIM(CV82)=\"\", \"\", IF(VLOOKUP(CV82,'Footnotes list'!$D$9:$E$58,2,FALSE)=0,\"\",VLOOKUP(CV82,'Footnotes list'!$D$9:$E$58,2,FALSE) ) )","v":""},null,null,null,null,{"$f":"IF(TRIM(DA82)=\"\", \"\", IF(VLOOKUP(DA82,'Footnotes list'!$D$9:$E$58,2,FALSE)=0,\"\",VLOOKUP(DA82,'Footnotes list'!$D$9:$E$58,2,FALSE) ) )","v":""},null,null,null,null,{"$f":"IF(TRIM(DF82)=\"\", \"\", IF(VLOOKUP(DF82,'Footnotes list'!$D$9:$E$58,2,FALSE)=0,\"\",VLOOKUP(DF82,'Footnotes list'!$D$9:$E$58,2,FALSE) ) )","v":""},null,null,null,null,{"$f":"IF(TRIM(DK82)=\"\", \"\", IF(VLOOKUP(DK82,'Footnotes list'!$D$9:$E$58,2,FALSE)=0,\"\",VLOOKUP(DK82,'Footnotes list'!$D$9:$E$58,2,FALSE) ) )","v":""},null,null,null,null,{"$f":"IF(TRIM(DP82)=\"\", \"\", IF(VLOOKUP(DP82,'Footnotes list'!$D$9:$E$58,2,FALSE)=0,\"\",VLOOKUP(DP82,'Footnotes list'!$D$9:$E$58,2,FALSE) ) )","v":""},null,null,null,null,{"$f":"IF(TRIM(DU82)=\"\", \"\", IF(VLOOKUP(DU82,'Footnotes list'!$D$9:$E$58,2,FALSE)=0,\"\",VLOOKUP(DU82,'Footnotes list'!$D$9:$E$58,2,FALSE) ) )","v":""},null,null,null,null,{"$f":"IF(TRIM(DZ82)=\"\", \"\", IF(VLOOKUP(DZ82,'Footnotes list'!$D$9:$E$58,2,FALSE)=0,\"\",VLOOKUP(DZ82,'Footnotes list'!$D$9:$E$58,2,FALSE) ) )","v":""},null,null,null,null,{"$f":"IF(TRIM(EE82)=\"\", \"\", IF(VLOOKUP(EE82,'Footnotes list'!$D$9:$E$58,2,FALSE)=0,\"\",VLOOKUP(EE82,'Footnotes list'!$D$9:$E$58,2,FALSE) ) )","v":""},null,null,null,null,{"$f":"IF(TRIM(EJ82)=\"\", \"\", IF(VLOOKUP(EJ82,'Footnotes list'!$D$9:$E$58,2,FALSE)=0,\"\",VLOOKUP(EJ82,'Footnotes list'!$D$9:$E$58,2,FALSE) ) )","v":""},null,null,null,null,{"$f":"IF(TRIM(EO82)=\"\", \"\", IF(VLOOKUP(EO82,'Footnotes list'!$D$9:$E$58,2,FALSE)=0,\"\",VLOOKUP(EO82,'Footnotes list'!$D$9:$E$58,2,FALSE) ) )","v":""},null,null,null,null,{"$f":"IF(TRIM(ET82)=\"\", \"\", IF(VLOOKUP(ET82,'Footnotes list'!$D$9:$E$58,2,FALSE)=0,\"\",VLOOKUP(ET82,'Footnotes list'!$D$9:$E$58,2,FALSE) ) )","v":""},null,null,null,null,{"$f":"IF(TRIM(EY82)=\"\", \"\", IF(VLOOKUP(EY82,'Footnotes list'!$D$9:$E$58,2,FALSE)=0,\"\",VLOOKUP(EY82,'Footnotes list'!$D$9:$E$58,2,FALSE) ) )","v":""}]
[null,null,"C22_C23","ES_CS","environmental specific services",null,null,null,null,null,{"$f":"IF(TRIM(J83)=\"\", \"\", IF(VLOOKUP(J83,'Footnotes list'!$D$9:$E$58,2,FALSE)=0,\"\",VLOOKUP(J83,'Footnotes list'!$D$9:$E$58,2,FALSE) ) )","v":""},null,null,null,null,{"$f":"IF(TRIM(O83)=\"\", \"\", IF(VLOOKUP(O83,'Footnotes list'!$D$9:$E$58,2,FALSE)=0,\"\",VLOOKUP(O83,'Footnotes list'!$D$9:$E$58,2,FALSE) ) )","v":""},null,null,null,null,{"$f":"IF(TRIM(T83)=\"\", \"\", IF(VLOOKUP(T83,'Footnotes list'!$D$9:$E$58,2,FALSE)=0,\"\",VLOOKUP(T83,'Footnotes list'!$D$9:$E$58,2,FALSE) ) )","v":""},null,null,null,null,{"$f":"IF(TRIM(Y83)=\"\", \"\", IF(VLOOKUP(Y83,'Footnotes list'!$D$9:$E$58,2,FALSE)=0,\"\",VLOOKUP(Y83,'Footnotes list'!$D$9:$E$58,2,FALSE) ) )","v":""},null,null,null,null,{"$f":"IF(TRIM(AD83)=\"\", \"\", IF(VLOOKUP(AD83,'Footnotes list'!$D$9:$E$58,2,FALSE)=0,\"\",VLOOKUP(AD83,'Footnotes list'!$D$9:$E$58,2,FALSE) ) )","v":""},null,null,null,null,{"$f":"IF(TRIM(AI83)=\"\", \"\", IF(VLOOKUP(AI83,'Footnotes list'!$D$9:$E$58,2,FALSE)=0,\"\",VLOOKUP(AI83,'Footnotes list'!$D$9:$E$58,2,FALSE) ) )","v":""},null,null,null,null,{"$f":"IF(TRIM(AN83)=\"\", \"\", IF(VLOOKUP(AN83,'Footnotes list'!$D$9:$E$58,2,FALSE)=0,\"\",VLOOKUP(AN83,'Footnotes list'!$D$9:$E$58,2,FALSE) ) )","v":""},null,null,null,null,{"$f":"IF(TRIM(AS83)=\"\", \"\", IF(VLOOKUP(AS83,'Footnotes list'!$D$9:$E$58,2,FALSE)=0,\"\",VLOOKUP(AS83,'Footnotes list'!$D$9:$E$58,2,FALSE) ) )","v":""},null,null,null,null,{"$f":"IF(TRIM(AX83)=\"\", \"\", IF(VLOOKUP(AX83,'Footnotes list'!$D$9:$E$58,2,FALSE)=0,\"\",VLOOKUP(AX83,'Footnotes list'!$D$9:$E$58,2,FALSE) ) )","v":""},null,null,null,null,{"$f":"IF(TRIM(BC83)=\"\", \"\", IF(VLOOKUP(BC83,'Footnotes list'!$D$9:$E$58,2,FALSE)=0,\"\",VLOOKUP(BC83,'Footnotes list'!$D$9:$E$58,2,FALSE) ) )","v":""},null,null,null,null,{"$f":"IF(TRIM(BH83)=\"\", \"\", IF(VLOOKUP(BH83,'Footnotes list'!$D$9:$E$58,2,FALSE)=0,\"\",VLOOKUP(BH83,'Footnotes list'!$D$9:$E$58,2,FALSE) ) )","v":""},null,null,null,null,{"$f":"IF(TRIM(BM83)=\"\", \"\", IF(VLOOKUP(BM83,'Footnotes list'!$D$9:$E$58,2,FALSE)=0,\"\",VLOOKUP(BM83,'Footnotes list'!$D$9:$E$58,2,FALSE) ) )","v":""},null,null,null,null,{"$f":"IF(TRIM(BR83)=\"\", \"\", IF(VLOOKUP(BR83,'Footnotes list'!$D$9:$E$58,2,FALSE)=0,\"\",VLOOKUP(BR83,'Footnotes list'!$D$9:$E$58,2,FALSE) ) )","v":""},null,null,null,null,{"$f":"IF(TRIM(BW83)=\"\", \"\", IF(VLOOKUP(BW83,'Footnotes list'!$D$9:$E$58,2,FALSE)=0,\"\",VLOOKUP(BW83,'Footnotes list'!$D$9:$E$58,2,FALSE) ) )","v":""},null,null,null,null,{"$f":"IF(TRIM(CB83)=\"\", \"\", IF(VLOOKUP(CB83,'Footnotes list'!$D$9:$E$58,2,FALSE)=0,\"\",VLOOKUP(CB83,'Footnotes list'!$D$9:$E$58,2,FALSE) ) )","v":""},null,null,null,null,{"$f":"IF(TRIM(CG83)=\"\", \"\", IF(VLOOKUP(CG83,'Footnotes list'!$D$9:$E$58,2,FALSE)=0,\"\",VLOOKUP(CG83,'Footnotes list'!$D$9:$E$58,2,FALSE) ) )","v":""},null,null,null,null,{"$f":"IF(TRIM(CL83)=\"\", \"\", IF(VLOOKUP(CL83,'Footnotes list'!$D$9:$E$58,2,FALSE)=0,\"\",VLOOKUP(CL83,'Footnotes list'!$D$9:$E$58,2,FALSE) ) )","v":""},null,null,null,null,{"$f":"IF(TRIM(CQ83)=\"\", \"\", IF(VLOOKUP(CQ83,'Footnotes list'!$D$9:$E$58,2,FALSE)=0,\"\",VLOOKUP(CQ83,'Footnotes list'!$D$9:$E$58,2,FALSE) ) )","v":""},null,null,null,null,{"$f":"IF(TRIM(CV83)=\"\", \"\", IF(VLOOKUP(CV83,'Footnotes list'!$D$9:$E$58,2,FALSE)=0,\"\",VLOOKUP(CV83,'Footnotes list'!$D$9:$E$58,2,FALSE) ) )","v":""},null,null,null,null,{"$f":"IF(TRIM(DA83)=\"\", \"\", IF(VLOOKUP(DA83,'Footnotes list'!$D$9:$E$58,2,FALSE)=0,\"\",VLOOKUP(DA83,'Footnotes list'!$D$9:$E$58,2,FALSE) ) )","v":""},null,null,null,null,{"$f":"IF(TRIM(DF83)=\"\", \"\", IF(VLOOKUP(DF83,'Footnotes list'!$D$9:$E$58,2,FALSE)=0,\"\",VLOOKUP(DF83,'Footnotes list'!$D$9:$E$58,2,FALSE) ) )","v":""},null,null,null,null,{"$f":"IF(TRIM(DK83)=\"\", \"\", IF(VLOOKUP(DK83,'Footnotes list'!$D$9:$E$58,2,FALSE)=0,\"\",VLOOKUP(DK83,'Footnotes list'!$D$9:$E$58,2,FALSE) ) )","v":""},null,null,null,null,{"$f":"IF(TRIM(DP83)=\"\", \"\", IF(VLOOKUP(DP83,'Footnotes list'!$D$9:$E$58,2,FALSE)=0,\"\",VLOOKUP(DP83,'Footnotes list'!$D$9:$E$58,2,FALSE) ) )","v":""},null,null,null,null,{"$f":"IF(TRIM(DU83)=\"\", \"\", IF(VLOOKUP(DU83,'Footnotes list'!$D$9:$E$58,2,FALSE)=0,\"\",VLOOKUP(DU83,'Footnotes list'!$D$9:$E$58,2,FALSE) ) )","v":""},null,null,null,null,{"$f":"IF(TRIM(DZ83)=\"\", \"\", IF(VLOOKUP(DZ83,'Footnotes list'!$D$9:$E$58,2,FALSE)=0,\"\",VLOOKUP(DZ83,'Footnotes list'!$D$9:$E$58,2,FALSE) ) )","v":""},null,null,null,null,{"$f":"IF(TRIM(EE83)=\"\", \"\", IF(VLOOKUP(EE83,'Footnotes list'!$D$9:$E$58,2,FALSE)=0,\"\",VLOOKUP(EE83,'Footnotes list'!$D$9:$E$58,2,FALSE) ) )","v":""},null,null,null,null,{"$f":"IF(TRIM(EJ83)=\"\", \"\", IF(VLOOKUP(EJ83,'Footnotes list'!$D$9:$E$58,2,FALSE)=0,\"\",VLOOKUP(EJ83,'Footnotes list'!$D$9:$E$58,2,FALSE) ) )","v":""},null,null,null,null,{"$f":"IF(TRIM(EO83)=\"\", \"\", IF(VLOOKUP(EO83,'Footnotes list'!$D$9:$E$58,2,FALSE)=0,\"\",VLOOKUP(EO83,'Footnotes list'!$D$9:$E$58,2,FALSE) ) )","v":""},null,null,null,null,{"$f":"IF(TRIM(ET83)=\"\", \"\", IF(VLOOKUP(ET83,'Footnotes list'!$D$9:$E$58,2,FALSE)=0,\"\",VLOOKUP(ET83,'Footnotes list'!$D$9:$E$58,2,FALSE) ) )","v":""},null,null,null,null,{"$f":"IF(TRIM(EY83)=\"\", \"\", IF(VLOOKUP(EY83,'Footnotes list'!$D$9:$E$58,2,FALSE)=0,\"\",VLOOKUP(EY83,'Footnotes list'!$D$9:$E$58,2,FALSE) ) )","v":""}]
[null,null,"C22_C23","C_REP","cleaner and resource efficient products",null,null,null,null,null,{"$f":"IF(TRIM(J84)=\"\", \"\", IF(VLOOKUP(J84,'Footnotes list'!$D$9:$E$58,2,FALSE)=0,\"\",VLOOKUP(J84,'Footnotes list'!$D$9:$E$58,2,FALSE) ) )","v":""},null,null,null,null,{"$f":"IF(TRIM(O84)=\"\", \"\", IF(VLOOKUP(O84,'Footnotes list'!$D$9:$E$58,2,FALSE)=0,\"\",VLOOKUP(O84,'Footnotes list'!$D$9:$E$58,2,FALSE) ) )","v":""},null,null,null,null,{"$f":"IF(TRIM(T84)=\"\", \"\", IF(VLOOKUP(T84,'Footnotes list'!$D$9:$E$58,2,FALSE)=0,\"\",VLOOKUP(T84,'Footnotes list'!$D$9:$E$58,2,FALSE) ) )","v":""},null,null,null,null,{"$f":"IF(TRIM(Y84)=\"\", \"\", IF(VLOOKUP(Y84,'Footnotes list'!$D$9:$E$58,2,FALSE)=0,\"\",VLOOKUP(Y84,'Footnotes list'!$D$9:$E$58,2,FALSE) ) )","v":""},null,null,null,null,{"$f":"IF(TRIM(AD84)=\"\", \"\", IF(VLOOKUP(AD84,'Footnotes list'!$D$9:$E$58,2,FALSE)=0,\"\",VLOOKUP(AD84,'Footnotes list'!$D$9:$E$58,2,FALSE) ) )","v":""},null,null,null,null,{"$f":"IF(TRIM(AI84)=\"\", \"\", IF(VLOOKUP(AI84,'Footnotes list'!$D$9:$E$58,2,FALSE)=0,\"\",VLOOKUP(AI84,'Footnotes list'!$D$9:$E$58,2,FALSE) ) )","v":""},null,null,null,null,{"$f":"IF(TRIM(AN84)=\"\", \"\", IF(VLOOKUP(AN84,'Footnotes list'!$D$9:$E$58,2,FALSE)=0,\"\",VLOOKUP(AN84,'Footnotes list'!$D$9:$E$58,2,FALSE) ) )","v":""},null,null,null,null,{"$f":"IF(TRIM(AS84)=\"\", \"\", IF(VLOOKUP(AS84,'Footnotes list'!$D$9:$E$58,2,FALSE)=0,\"\",VLOOKUP(AS84,'Footnotes list'!$D$9:$E$58,2,FALSE) ) )","v":""},null,null,null,null,{"$f":"IF(TRIM(AX84)=\"\", \"\", IF(VLOOKUP(AX84,'Footnotes list'!$D$9:$E$58,2,FALSE)=0,\"\",VLOOKUP(AX84,'Footnotes list'!$D$9:$E$58,2,FALSE) ) )","v":""},null,null,null,null,{"$f":"IF(TRIM(BC84)=\"\", \"\", IF(VLOOKUP(BC84,'Footnotes list'!$D$9:$E$58,2,FALSE)=0,\"\",VLOOKUP(BC84,'Footnotes list'!$D$9:$E$58,2,FALSE) ) )","v":""},null,null,null,null,{"$f":"IF(TRIM(BH84)=\"\", \"\", IF(VLOOKUP(BH84,'Footnotes list'!$D$9:$E$58,2,FALSE)=0,\"\",VLOOKUP(BH84,'Footnotes list'!$D$9:$E$58,2,FALSE) ) )","v":""},null,null,null,null,{"$f":"IF(TRIM(BM84)=\"\", \"\", IF(VLOOKUP(BM84,'Footnotes list'!$D$9:$E$58,2,FALSE)=0,\"\",VLOOKUP(BM84,'Footnotes list'!$D$9:$E$58,2,FALSE) ) )","v":""},null,null,null,null,{"$f":"IF(TRIM(BR84)=\"\", \"\", IF(VLOOKUP(BR84,'Footnotes list'!$D$9:$E$58,2,FALSE)=0,\"\",VLOOKUP(BR84,'Footnotes list'!$D$9:$E$58,2,FALSE) ) )","v":""},null,null,null,null,{"$f":"IF(TRIM(BW84)=\"\", \"\", IF(VLOOKUP(BW84,'Footnotes list'!$D$9:$E$58,2,FALSE)=0,\"\",VLOOKUP(BW84,'Footnotes list'!$D$9:$E$58,2,FALSE) ) )","v":""},null,null,null,null,{"$f":"IF(TRIM(CB84)=\"\", \"\", IF(VLOOKUP(CB84,'Footnotes list'!$D$9:$E$58,2,FALSE)=0,\"\",VLOOKUP(CB84,'Footnotes list'!$D$9:$E$58,2,FALSE) ) )","v":""},null,null,null,null,{"$f":"IF(TRIM(CG84)=\"\", \"\", IF(VLOOKUP(CG84,'Footnotes list'!$D$9:$E$58,2,FALSE)=0,\"\",VLOOKUP(CG84,'Footnotes list'!$D$9:$E$58,2,FALSE) ) )","v":""},null,null,null,null,{"$f":"IF(TRIM(CL84)=\"\", \"\", IF(VLOOKUP(CL84,'Footnotes list'!$D$9:$E$58,2,FALSE)=0,\"\",VLOOKUP(CL84,'Footnotes list'!$D$9:$E$58,2,FALSE) ) )","v":""},null,null,null,null,{"$f":"IF(TRIM(CQ84)=\"\", \"\", IF(VLOOKUP(CQ84,'Footnotes list'!$D$9:$E$58,2,FALSE)=0,\"\",VLOOKUP(CQ84,'Footnotes list'!$D$9:$E$58,2,FALSE) ) )","v":""},null,null,null,null,{"$f":"IF(TRIM(CV84)=\"\", \"\", IF(VLOOKUP(CV84,'Footnotes list'!$D$9:$E$58,2,FALSE)=0,\"\",VLOOKUP(CV84,'Footnotes list'!$D$9:$E$58,2,FALSE) ) )","v":""},null,null,null,null,{"$f":"IF(TRIM(DA84)=\"\", \"\", IF(VLOOKUP(DA84,'Footnotes list'!$D$9:$E$58,2,FALSE)=0,\"\",VLOOKUP(DA84,'Footnotes list'!$D$9:$E$58,2,FALSE) ) )","v":""},null,null,null,null,{"$f":"IF(TRIM(DF84)=\"\", \"\", IF(VLOOKUP(DF84,'Footnotes list'!$D$9:$E$58,2,FALSE)=0,\"\",VLOOKUP(DF84,'Footnotes list'!$D$9:$E$58,2,FALSE) ) )","v":""},null,null,null,null,{"$f":"IF(TRIM(DK84)=\"\", \"\", IF(VLOOKUP(DK84,'Footnotes list'!$D$9:$E$58,2,FALSE)=0,\"\",VLOOKUP(DK84,'Footnotes list'!$D$9:$E$58,2,FALSE) ) )","v":""},null,null,null,null,{"$f":"IF(TRIM(DP84)=\"\", \"\", IF(VLOOKUP(DP84,'Footnotes list'!$D$9:$E$58,2,FALSE)=0,\"\",VLOOKUP(DP84,'Footnotes list'!$D$9:$E$58,2,FALSE) ) )","v":""},null,null,null,null,{"$f":"IF(TRIM(DU84)=\"\", \"\", IF(VLOOKUP(DU84,'Footnotes list'!$D$9:$E$58,2,FALSE)=0,\"\",VLOOKUP(DU84,'Footnotes list'!$D$9:$E$58,2,FALSE) ) )","v":""},null,null,null,null,{"$f":"IF(TRIM(DZ84)=\"\", \"\", IF(VLOOKUP(DZ84,'Footnotes list'!$D$9:$E$58,2,FALSE)=0,\"\",VLOOKUP(DZ84,'Footnotes list'!$D$9:$E$58,2,FALSE) ) )","v":""},null,null,null,null,{"$f":"IF(TRIM(EE84)=\"\", \"\", IF(VLOOKUP(EE84,'Footnotes list'!$D$9:$E$58,2,FALSE)=0,\"\",VLOOKUP(EE84,'Footnotes list'!$D$9:$E$58,2,FALSE) ) )","v":""},null,null,null,null,{"$f":"IF(TRIM(EJ84)=\"\", \"\", IF(VLOOKUP(EJ84,'Footnotes list'!$D$9:$E$58,2,FALSE)=0,\"\",VLOOKUP(EJ84,'Footnotes list'!$D$9:$E$58,2,FALSE) ) )","v":""},null,null,null,null,{"$f":"IF(TRIM(EO84)=\"\", \"\", IF(VLOOKUP(EO84,'Footnotes list'!$D$9:$E$58,2,FALSE)=0,\"\",VLOOKUP(EO84,'Footnotes list'!$D$9:$E$58,2,FALSE) ) )","v":""},null,null,null,null,{"$f":"IF(TRIM(ET84)=\"\", \"\", IF(VLOOKUP(ET84,'Footnotes list'!$D$9:$E$58,2,FALSE)=0,\"\",VLOOKUP(ET84,'Footnotes list'!$D$9:$E$58,2,FALSE) ) )","v":""},null,null,null,null,{"$f":"IF(TRIM(EY84)=\"\", \"\", IF(VLOOKUP(EY84,'Footnotes list'!$D$9:$E$58,2,FALSE)=0,\"\",VLOOKUP(EY84,'Footnotes list'!$D$9:$E$58,2,FALSE) ) )","v":""}]
[null,null,"C24_C25","TOT_EGSS","Total C24 - C25 Manufacture of basic metals and fabricated metal products, except machinery and equipment, of which:",null,null,null,null,null,{"$f":"IF(TRIM(J85)=\"\", \"\", IF(VLOOKUP(J85,'Footnotes list'!$D$9:$E$58,2,FALSE)=0,\"\",VLOOKUP(J85,'Footnotes list'!$D$9:$E$58,2,FALSE) ) )","v":""},null,null,null,null,{"$f":"IF(TRIM(O85)=\"\", \"\", IF(VLOOKUP(O85,'Footnotes list'!$D$9:$E$58,2,FALSE)=0,\"\",VLOOKUP(O85,'Footnotes list'!$D$9:$E$58,2,FALSE) ) )","v":""},null,null,null,null,{"$f":"IF(TRIM(T85)=\"\", \"\", IF(VLOOKUP(T85,'Footnotes list'!$D$9:$E$58,2,FALSE)=0,\"\",VLOOKUP(T85,'Footnotes list'!$D$9:$E$58,2,FALSE) ) )","v":""},null,null,null,null,{"$f":"IF(TRIM(Y85)=\"\", \"\", IF(VLOOKUP(Y85,'Footnotes list'!$D$9:$E$58,2,FALSE)=0,\"\",VLOOKUP(Y85,'Footnotes list'!$D$9:$E$58,2,FALSE) ) )","v":""},null,null,null,null,{"$f":"IF(TRIM(AD85)=\"\", \"\", IF(VLOOKUP(AD85,'Footnotes list'!$D$9:$E$58,2,FALSE)=0,\"\",VLOOKUP(AD85,'Footnotes list'!$D$9:$E$58,2,FALSE) ) )","v":""},null,null,null,null,{"$f":"IF(TRIM(AI85)=\"\", \"\", IF(VLOOKUP(AI85,'Footnotes list'!$D$9:$E$58,2,FALSE)=0,\"\",VLOOKUP(AI85,'Footnotes list'!$D$9:$E$58,2,FALSE) ) )","v":""},null,null,null,null,{"$f":"IF(TRIM(AN85)=\"\", \"\", IF(VLOOKUP(AN85,'Footnotes list'!$D$9:$E$58,2,FALSE)=0,\"\",VLOOKUP(AN85,'Footnotes list'!$D$9:$E$58,2,FALSE) ) )","v":""},null,null,null,null,{"$f":"IF(TRIM(AS85)=\"\", \"\", IF(VLOOKUP(AS85,'Footnotes list'!$D$9:$E$58,2,FALSE)=0,\"\",VLOOKUP(AS85,'Footnotes list'!$D$9:$E$58,2,FALSE) ) )","v":""},null,null,null,null,{"$f":"IF(TRIM(AX85)=\"\", \"\", IF(VLOOKUP(AX85,'Footnotes list'!$D$9:$E$58,2,FALSE)=0,\"\",VLOOKUP(AX85,'Footnotes list'!$D$9:$E$58,2,FALSE) ) )","v":""},null,null,null,null,{"$f":"IF(TRIM(BC85)=\"\", \"\", IF(VLOOKUP(BC85,'Footnotes list'!$D$9:$E$58,2,FALSE)=0,\"\",VLOOKUP(BC85,'Footnotes list'!$D$9:$E$58,2,FALSE) ) )","v":""},null,null,null,null,{"$f":"IF(TRIM(BH85)=\"\", \"\", IF(VLOOKUP(BH85,'Footnotes list'!$D$9:$E$58,2,FALSE)=0,\"\",VLOOKUP(BH85,'Footnotes list'!$D$9:$E$58,2,FALSE) ) )","v":""},null,null,null,null,{"$f":"IF(TRIM(BM85)=\"\", \"\", IF(VLOOKUP(BM85,'Footnotes list'!$D$9:$E$58,2,FALSE)=0,\"\",VLOOKUP(BM85,'Footnotes list'!$D$9:$E$58,2,FALSE) ) )","v":""},null,null,null,null,{"$f":"IF(TRIM(BR85)=\"\", \"\", IF(VLOOKUP(BR85,'Footnotes list'!$D$9:$E$58,2,FALSE)=0,\"\",VLOOKUP(BR85,'Footnotes list'!$D$9:$E$58,2,FALSE) ) )","v":""},null,null,null,null,{"$f":"IF(TRIM(BW85)=\"\", \"\", IF(VLOOKUP(BW85,'Footnotes list'!$D$9:$E$58,2,FALSE)=0,\"\",VLOOKUP(BW85,'Footnotes list'!$D$9:$E$58,2,FALSE) ) )","v":""},null,null,null,null,{"$f":"IF(TRIM(CB85)=\"\", \"\", IF(VLOOKUP(CB85,'Footnotes list'!$D$9:$E$58,2,FALSE)=0,\"\",VLOOKUP(CB85,'Footnotes list'!$D$9:$E$58,2,FALSE) ) )","v":""},null,null,null,null,{"$f":"IF(TRIM(CG85)=\"\", \"\", IF(VLOOKUP(CG85,'Footnotes list'!$D$9:$E$58,2,FALSE)=0,\"\",VLOOKUP(CG85,'Footnotes list'!$D$9:$E$58,2,FALSE) ) )","v":""},null,null,null,null,{"$f":"IF(TRIM(CL85)=\"\", \"\", IF(VLOOKUP(CL85,'Footnotes list'!$D$9:$E$58,2,FALSE)=0,\"\",VLOOKUP(CL85,'Footnotes list'!$D$9:$E$58,2,FALSE) ) )","v":""},null,null,null,null,{"$f":"IF(TRIM(CQ85)=\"\", \"\", IF(VLOOKUP(CQ85,'Footnotes list'!$D$9:$E$58,2,FALSE)=0,\"\",VLOOKUP(CQ85,'Footnotes list'!$D$9:$E$58,2,FALSE) ) )","v":""},null,null,null,null,{"$f":"IF(TRIM(CV85)=\"\", \"\", IF(VLOOKUP(CV85,'Footnotes list'!$D$9:$E$58,2,FALSE)=0,\"\",VLOOKUP(CV85,'Footnotes list'!$D$9:$E$58,2,FALSE) ) )","v":""},null,null,null,null,{"$f":"IF(TRIM(DA85)=\"\", \"\", IF(VLOOKUP(DA85,'Footnotes list'!$D$9:$E$58,2,FALSE)=0,\"\",VLOOKUP(DA85,'Footnotes list'!$D$9:$E$58,2,FALSE) ) )","v":""},null,null,null,null,{"$f":"IF(TRIM(DF85)=\"\", \"\", IF(VLOOKUP(DF85,'Footnotes list'!$D$9:$E$58,2,FALSE)=0,\"\",VLOOKUP(DF85,'Footnotes list'!$D$9:$E$58,2,FALSE) ) )","v":""},null,null,null,null,{"$f":"IF(TRIM(DK85)=\"\", \"\", IF(VLOOKUP(DK85,'Footnotes list'!$D$9:$E$58,2,FALSE)=0,\"\",VLOOKUP(DK85,'Footnotes list'!$D$9:$E$58,2,FALSE) ) )","v":""},null,null,null,null,{"$f":"IF(TRIM(DP85)=\"\", \"\", IF(VLOOKUP(DP85,'Footnotes list'!$D$9:$E$58,2,FALSE)=0,\"\",VLOOKUP(DP85,'Footnotes list'!$D$9:$E$58,2,FALSE) ) )","v":""},null,null,null,null,{"$f":"IF(TRIM(DU85)=\"\", \"\", IF(VLOOKUP(DU85,'Footnotes list'!$D$9:$E$58,2,FALSE)=0,\"\",VLOOKUP(DU85,'Footnotes list'!$D$9:$E$58,2,FALSE) ) )","v":""},null,null,null,null,{"$f":"IF(TRIM(DZ85)=\"\", \"\", IF(VLOOKUP(DZ85,'Footnotes list'!$D$9:$E$58,2,FALSE)=0,\"\",VLOOKUP(DZ85,'Footnotes list'!$D$9:$E$58,2,FALSE) ) )","v":""},null,null,null,null,{"$f":"IF(TRIM(EE85)=\"\", \"\", IF(VLOOKUP(EE85,'Footnotes list'!$D$9:$E$58,2,FALSE)=0,\"\",VLOOKUP(EE85,'Footnotes list'!$D$9:$E$58,2,FALSE) ) )","v":""},null,null,null,null,{"$f":"IF(TRIM(EJ85)=\"\", \"\", IF(VLOOKUP(EJ85,'Footnotes list'!$D$9:$E$58,2,FALSE)=0,\"\",VLOOKUP(EJ85,'Footnotes list'!$D$9:$E$58,2,FALSE) ) )","v":""},null,null,null,null,{"$f":"IF(TRIM(EO85)=\"\", \"\", IF(VLOOKUP(EO85,'Footnotes list'!$D$9:$E$58,2,FALSE)=0,\"\",VLOOKUP(EO85,'Footnotes list'!$D$9:$E$58,2,FALSE) ) )","v":""},null,null,null,null,{"$f":"IF(TRIM(ET85)=\"\", \"\", IF(VLOOKUP(ET85,'Footnotes list'!$D$9:$E$58,2,FALSE)=0,\"\",VLOOKUP(ET85,'Footnotes list'!$D$9:$E$58,2,FALSE) ) )","v":""},null,null,null,null,{"$f":"IF(TRIM(EY85)=\"\", \"\", IF(VLOOKUP(EY85,'Footnotes list'!$D$9:$E$58,2,FALSE)=0,\"\",VLOOKUP(EY85,'Footnotes list'!$D$9:$E$58,2,FALSE) ) )","v":""}]
[null,null,"C24_C25","ANC","ancillary activities",null,null,null,null,null,{"$f":"IF(TRIM(J86)=\"\", \"\", IF(VLOOKUP(J86,'Footnotes list'!$D$9:$E$58,2,FALSE)=0,\"\",VLOOKUP(J86,'Footnotes list'!$D$9:$E$58,2,FALSE) ) )","v":""},null,null,null,null,{"$f":"IF(TRIM(O86)=\"\", \"\", IF(VLOOKUP(O86,'Footnotes list'!$D$9:$E$58,2,FALSE)=0,\"\",VLOOKUP(O86,'Footnotes list'!$D$9:$E$58,2,FALSE) ) )","v":""},null,null,null,null,{"$f":"IF(TRIM(T86)=\"\", \"\", IF(VLOOKUP(T86,'Footnotes list'!$D$9:$E$58,2,FALSE)=0,\"\",VLOOKUP(T86,'Footnotes list'!$D$9:$E$58,2,FALSE) ) )","v":""},null,null,null,null,{"$f":"IF(TRIM(Y86)=\"\", \"\", IF(VLOOKUP(Y86,'Footnotes list'!$D$9:$E$58,2,FALSE)=0,\"\",VLOOKUP(Y86,'Footnotes list'!$D$9:$E$58,2,FALSE) ) )","v":""},null,null,null,null,{"$f":"IF(TRIM(AD86)=\"\", \"\", IF(VLOOKUP(AD86,'Footnotes list'!$D$9:$E$58,2,FALSE)=0,\"\",VLOOKUP(AD86,'Footnotes list'!$D$9:$E$58,2,FALSE) ) )","v":""},null,null,null,null,{"$f":"IF(TRIM(AI86)=\"\", \"\", IF(VLOOKUP(AI86,'Footnotes list'!$D$9:$E$58,2,FALSE)=0,\"\",VLOOKUP(AI86,'Footnotes list'!$D$9:$E$58,2,FALSE) ) )","v":""},null,null,null,null,{"$f":"IF(TRIM(AN86)=\"\", \"\", IF(VLOOKUP(AN86,'Footnotes list'!$D$9:$E$58,2,FALSE)=0,\"\",VLOOKUP(AN86,'Footnotes list'!$D$9:$E$58,2,FALSE) ) )","v":""},null,null,null,null,{"$f":"IF(TRIM(AS86)=\"\", \"\", IF(VLOOKUP(AS86,'Footnotes list'!$D$9:$E$58,2,FALSE)=0,\"\",VLOOKUP(AS86,'Footnotes list'!$D$9:$E$58,2,FALSE) ) )","v":""},null,null,null,null,{"$f":"IF(TRIM(AX86)=\"\", \"\", IF(VLOOKUP(AX86,'Footnotes list'!$D$9:$E$58,2,FALSE)=0,\"\",VLOOKUP(AX86,'Footnotes list'!$D$9:$E$58,2,FALSE) ) )","v":""},null,null,null,null,{"$f":"IF(TRIM(BC86)=\"\", \"\", IF(VLOOKUP(BC86,'Footnotes list'!$D$9:$E$58,2,FALSE)=0,\"\",VLOOKUP(BC86,'Footnotes list'!$D$9:$E$58,2,FALSE) ) )","v":""},null,null,null,null,{"$f":"IF(TRIM(BH86)=\"\", \"\", IF(VLOOKUP(BH86,'Footnotes list'!$D$9:$E$58,2,FALSE)=0,\"\",VLOOKUP(BH86,'Footnotes list'!$D$9:$E$58,2,FALSE) ) )","v":""},null,null,null,null,{"$f":"IF(TRIM(BM86)=\"\", \"\", IF(VLOOKUP(BM86,'Footnotes list'!$D$9:$E$58,2,FALSE)=0,\"\",VLOOKUP(BM86,'Footnotes list'!$D$9:$E$58,2,FALSE) ) )","v":""},null,null,null,null,{"$f":"IF(TRIM(BR86)=\"\", \"\", IF(VLOOKUP(BR86,'Footnotes list'!$D$9:$E$58,2,FALSE)=0,\"\",VLOOKUP(BR86,'Footnotes list'!$D$9:$E$58,2,FALSE) ) )","v":""},null,null,null,null,{"$f":"IF(TRIM(BW86)=\"\", \"\", IF(VLOOKUP(BW86,'Footnotes list'!$D$9:$E$58,2,FALSE)=0,\"\",VLOOKUP(BW86,'Footnotes list'!$D$9:$E$58,2,FALSE) ) )","v":""},null,null,null,null,{"$f":"IF(TRIM(CB86)=\"\", \"\", IF(VLOOKUP(CB86,'Footnotes list'!$D$9:$E$58,2,FALSE)=0,\"\",VLOOKUP(CB86,'Footnotes list'!$D$9:$E$58,2,FALSE) ) )","v":""},null,null,null,null,{"$f":"IF(TRIM(CG86)=\"\", \"\", IF(VLOOKUP(CG86,'Footnotes list'!$D$9:$E$58,2,FALSE)=0,\"\",VLOOKUP(CG86,'Footnotes list'!$D$9:$E$58,2,FALSE) ) )","v":""},null,null,null,null,{"$f":"IF(TRIM(CL86)=\"\", \"\", IF(VLOOKUP(CL86,'Footnotes list'!$D$9:$E$58,2,FALSE)=0,\"\",VLOOKUP(CL86,'Footnotes list'!$D$9:$E$58,2,FALSE) ) )","v":""},null,null,null,null,{"$f":"IF(TRIM(CQ86)=\"\", \"\", IF(VLOOKUP(CQ86,'Footnotes list'!$D$9:$E$58,2,FALSE)=0,\"\",VLOOKUP(CQ86,'Footnotes list'!$D$9:$E$58,2,FALSE) ) )","v":""},null,null,null,null,{"$f":"IF(TRIM(CV86)=\"\", \"\", IF(VLOOKUP(CV86,'Footnotes list'!$D$9:$E$58,2,FALSE)=0,\"\",VLOOKUP(CV86,'Footnotes list'!$D$9:$E$58,2,FALSE) ) )","v":""},null,null,null,null,{"$f":"IF(TRIM(DA86)=\"\", \"\", IF(VLOOKUP(DA86,'Footnotes list'!$D$9:$E$58,2,FALSE)=0,\"\",VLOOKUP(DA86,'Footnotes list'!$D$9:$E$58,2,FALSE) ) )","v":""},null,null,null,null,{"$f":"IF(TRIM(DF86)=\"\", \"\", IF(VLOOKUP(DF86,'Footnotes list'!$D$9:$E$58,2,FALSE)=0,\"\",VLOOKUP(DF86,'Footnotes list'!$D$9:$E$58,2,FALSE) ) )","v":""},null,null,null,null,{"$f":"IF(TRIM(DK86)=\"\", \"\", IF(VLOOKUP(DK86,'Footnotes list'!$D$9:$E$58,2,FALSE)=0,\"\",VLOOKUP(DK86,'Footnotes list'!$D$9:$E$58,2,FALSE) ) )","v":""},null,null,null,null,{"$f":"IF(TRIM(DP86)=\"\", \"\", IF(VLOOKUP(DP86,'Footnotes list'!$D$9:$E$58,2,FALSE)=0,\"\",VLOOKUP(DP86,'Footnotes list'!$D$9:$E$58,2,FALSE) ) )","v":""},null,null,null,null,{"$f":"IF(TRIM(DU86)=\"\", \"\", IF(VLOOKUP(DU86,'Footnotes list'!$D$9:$E$58,2,FALSE)=0,\"\",VLOOKUP(DU86,'Footnotes list'!$D$9:$E$58,2,FALSE) ) )","v":""},null,null,null,null,{"$f":"IF(TRIM(DZ86)=\"\", \"\", IF(VLOOKUP(DZ86,'Footnotes list'!$D$9:$E$58,2,FALSE)=0,\"\",VLOOKUP(DZ86,'Footnotes list'!$D$9:$E$58,2,FALSE) ) )","v":""},null,null,null,null,{"$f":"IF(TRIM(EE86)=\"\", \"\", IF(VLOOKUP(EE86,'Footnotes list'!$D$9:$E$58,2,FALSE)=0,\"\",VLOOKUP(EE86,'Footnotes list'!$D$9:$E$58,2,FALSE) ) )","v":""},null,null,null,null,{"$f":"IF(TRIM(EJ86)=\"\", \"\", IF(VLOOKUP(EJ86,'Footnotes list'!$D$9:$E$58,2,FALSE)=0,\"\",VLOOKUP(EJ86,'Footnotes list'!$D$9:$E$58,2,FALSE) ) )","v":""},null,null,null,null,{"$f":"IF(TRIM(EO86)=\"\", \"\", IF(VLOOKUP(EO86,'Footnotes list'!$D$9:$E$58,2,FALSE)=0,\"\",VLOOKUP(EO86,'Footnotes list'!$D$9:$E$58,2,FALSE) ) )","v":""},null,null,null,null,{"$f":"IF(TRIM(ET86)=\"\", \"\", IF(VLOOKUP(ET86,'Footnotes list'!$D$9:$E$58,2,FALSE)=0,\"\",VLOOKUP(ET86,'Footnotes list'!$D$9:$E$58,2,FALSE) ) )","v":""},null,null,null,null,{"$f":"IF(TRIM(EY86)=\"\", \"\", IF(VLOOKUP(EY86,'Footnotes list'!$D$9:$E$58,2,FALSE)=0,\"\",VLOOKUP(EY86,'Footnotes list'!$D$9:$E$58,2,FALSE) ) )","v":""}]
[null,null,"C24_C25","NMKT","non-market activities",null,null,null,null,null,{"$f":"IF(TRIM(J87)=\"\", \"\", IF(VLOOKUP(J87,'Footnotes list'!$D$9:$E$58,2,FALSE)=0,\"\",VLOOKUP(J87,'Footnotes list'!$D$9:$E$58,2,FALSE) ) )","v":""},null,null,null,null,{"$f":"IF(TRIM(O87)=\"\", \"\", IF(VLOOKUP(O87,'Footnotes list'!$D$9:$E$58,2,FALSE)=0,\"\",VLOOKUP(O87,'Footnotes list'!$D$9:$E$58,2,FALSE) ) )","v":""},null,null,null,null,{"$f":"IF(TRIM(T87)=\"\", \"\", IF(VLOOKUP(T87,'Footnotes list'!$D$9:$E$58,2,FALSE)=0,\"\",VLOOKUP(T87,'Footnotes list'!$D$9:$E$58,2,FALSE) ) )","v":""},null,null,null,null,{"$f":"IF(TRIM(Y87)=\"\", \"\", IF(VLOOKUP(Y87,'Footnotes list'!$D$9:$E$58,2,FALSE)=0,\"\",VLOOKUP(Y87,'Footnotes list'!$D$9:$E$58,2,FALSE) ) )","v":""},null,null,null,null,{"$f":"IF(TRIM(AD87)=\"\", \"\", IF(VLOOKUP(AD87,'Footnotes list'!$D$9:$E$58,2,FALSE)=0,\"\",VLOOKUP(AD87,'Footnotes list'!$D$9:$E$58,2,FALSE) ) )","v":""},null,null,null,null,{"$f":"IF(TRIM(AI87)=\"\", \"\", IF(VLOOKUP(AI87,'Footnotes list'!$D$9:$E$58,2,FALSE)=0,\"\",VLOOKUP(AI87,'Footnotes list'!$D$9:$E$58,2,FALSE) ) )","v":""},null,null,null,null,{"$f":"IF(TRIM(AN87)=\"\", \"\", IF(VLOOKUP(AN87,'Footnotes list'!$D$9:$E$58,2,FALSE)=0,\"\",VLOOKUP(AN87,'Footnotes list'!$D$9:$E$58,2,FALSE) ) )","v":""},null,null,null,null,{"$f":"IF(TRIM(AS87)=\"\", \"\", IF(VLOOKUP(AS87,'Footnotes list'!$D$9:$E$58,2,FALSE)=0,\"\",VLOOKUP(AS87,'Footnotes list'!$D$9:$E$58,2,FALSE) ) )","v":""},null,null,null,null,{"$f":"IF(TRIM(AX87)=\"\", \"\", IF(VLOOKUP(AX87,'Footnotes list'!$D$9:$E$58,2,FALSE)=0,\"\",VLOOKUP(AX87,'Footnotes list'!$D$9:$E$58,2,FALSE) ) )","v":""},null,null,null,null,{"$f":"IF(TRIM(BC87)=\"\", \"\", IF(VLOOKUP(BC87,'Footnotes list'!$D$9:$E$58,2,FALSE)=0,\"\",VLOOKUP(BC87,'Footnotes list'!$D$9:$E$58,2,FALSE) ) )","v":""},null,null,null,null,{"$f":"IF(TRIM(BH87)=\"\", \"\", IF(VLOOKUP(BH87,'Footnotes list'!$D$9:$E$58,2,FALSE)=0,\"\",VLOOKUP(BH87,'Footnotes list'!$D$9:$E$58,2,FALSE) ) )","v":""},null,null,null,null,{"$f":"IF(TRIM(BM87)=\"\", \"\", IF(VLOOKUP(BM87,'Footnotes list'!$D$9:$E$58,2,FALSE)=0,\"\",VLOOKUP(BM87,'Footnotes list'!$D$9:$E$58,2,FALSE) ) )","v":""},null,null,null,null,{"$f":"IF(TRIM(BR87)=\"\", \"\", IF(VLOOKUP(BR87,'Footnotes list'!$D$9:$E$58,2,FALSE)=0,\"\",VLOOKUP(BR87,'Footnotes list'!$D$9:$E$58,2,FALSE) ) )","v":""},null,null,null,null,{"$f":"IF(TRIM(BW87)=\"\", \"\", IF(VLOOKUP(BW87,'Footnotes list'!$D$9:$E$58,2,FALSE)=0,\"\",VLOOKUP(BW87,'Footnotes list'!$D$9:$E$58,2,FALSE) ) )","v":""},null,null,null,null,{"$f":"IF(TRIM(CB87)=\"\", \"\", IF(VLOOKUP(CB87,'Footnotes list'!$D$9:$E$58,2,FALSE)=0,\"\",VLOOKUP(CB87,'Footnotes list'!$D$9:$E$58,2,FALSE) ) )","v":""},null,null,null,null,{"$f":"IF(TRIM(CG87)=\"\", \"\", IF(VLOOKUP(CG87,'Footnotes list'!$D$9:$E$58,2,FALSE)=0,\"\",VLOOKUP(CG87,'Footnotes list'!$D$9:$E$58,2,FALSE) ) )","v":""},null,null,null,null,{"$f":"IF(TRIM(CL87)=\"\", \"\", IF(VLOOKUP(CL87,'Footnotes list'!$D$9:$E$58,2,FALSE)=0,\"\",VLOOKUP(CL87,'Footnotes list'!$D$9:$E$58,2,FALSE) ) )","v":""},null,null,null,null,{"$f":"IF(TRIM(CQ87)=\"\", \"\", IF(VLOOKUP(CQ87,'Footnotes list'!$D$9:$E$58,2,FALSE)=0,\"\",VLOOKUP(CQ87,'Footnotes list'!$D$9:$E$58,2,FALSE) ) )","v":""},null,null,null,null,{"$f":"IF(TRIM(CV87)=\"\", \"\", IF(VLOOKUP(CV87,'Footnotes list'!$D$9:$E$58,2,FALSE)=0,\"\",VLOOKUP(CV87,'Footnotes list'!$D$9:$E$58,2,FALSE) ) )","v":""},null,null,null,null,{"$f":"IF(TRIM(DA87)=\"\", \"\", IF(VLOOKUP(DA87,'Footnotes list'!$D$9:$E$58,2,FALSE)=0,\"\",VLOOKUP(DA87,'Footnotes list'!$D$9:$E$58,2,FALSE) ) )","v":""},null,null,null,null,{"$f":"IF(TRIM(DF87)=\"\", \"\", IF(VLOOKUP(DF87,'Footnotes list'!$D$9:$E$58,2,FALSE)=0,\"\",VLOOKUP(DF87,'Footnotes list'!$D$9:$E$58,2,FALSE) ) )","v":""},null,null,null,null,{"$f":"IF(TRIM(DK87)=\"\", \"\", IF(VLOOKUP(DK87,'Footnotes list'!$D$9:$E$58,2,FALSE)=0,\"\",VLOOKUP(DK87,'Footnotes list'!$D$9:$E$58,2,FALSE) ) )","v":""},null,null,null,null,{"$f":"IF(TRIM(DP87)=\"\", \"\", IF(VLOOKUP(DP87,'Footnotes list'!$D$9:$E$58,2,FALSE)=0,\"\",VLOOKUP(DP87,'Footnotes list'!$D$9:$E$58,2,FALSE) ) )","v":""},null,null,null,null,{"$f":"IF(TRIM(DU87)=\"\", \"\", IF(VLOOKUP(DU87,'Footnotes list'!$D$9:$E$58,2,FALSE)=0,\"\",VLOOKUP(DU87,'Footnotes list'!$D$9:$E$58,2,FALSE) ) )","v":""},null,null,null,null,{"$f":"IF(TRIM(DZ87)=\"\", \"\", IF(VLOOKUP(DZ87,'Footnotes list'!$D$9:$E$58,2,FALSE)=0,\"\",VLOOKUP(DZ87,'Footnotes list'!$D$9:$E$58,2,FALSE) ) )","v":""},null,null,null,null,{"$f":"IF(TRIM(EE87)=\"\", \"\", IF(VLOOKUP(EE87,'Footnotes list'!$D$9:$E$58,2,FALSE)=0,\"\",VLOOKUP(EE87,'Footnotes list'!$D$9:$E$58,2,FALSE) ) )","v":""},null,null,null,null,{"$f":"IF(TRIM(EJ87)=\"\", \"\", IF(VLOOKUP(EJ87,'Footnotes list'!$D$9:$E$58,2,FALSE)=0,\"\",VLOOKUP(EJ87,'Footnotes list'!$D$9:$E$58,2,FALSE) ) )","v":""},null,null,null,null,{"$f":"IF(TRIM(EO87)=\"\", \"\", IF(VLOOKUP(EO87,'Footnotes list'!$D$9:$E$58,2,FALSE)=0,\"\",VLOOKUP(EO87,'Footnotes list'!$D$9:$E$58,2,FALSE) ) )","v":""},null,null,null,null,{"$f":"IF(TRIM(ET87)=\"\", \"\", IF(VLOOKUP(ET87,'Footnotes list'!$D$9:$E$58,2,FALSE)=0,\"\",VLOOKUP(ET87,'Footnotes list'!$D$9:$E$58,2,FALSE) ) )","v":""},null,null,null,null,{"$f":"IF(TRIM(EY87)=\"\", \"\", IF(VLOOKUP(EY87,'Footnotes list'!$D$9:$E$58,2,FALSE)=0,\"\",VLOOKUP(EY87,'Footnotes list'!$D$9:$E$58,2,FALSE) ) )","v":""}]
[null,null,"C24_C25","OWN_USE","activities for own final use",null,null,null,null,null,{"$f":"IF(TRIM(J88)=\"\", \"\", IF(VLOOKUP(J88,'Footnotes list'!$D$9:$E$58,2,FALSE)=0,\"\",VLOOKUP(J88,'Footnotes list'!$D$9:$E$58,2,FALSE) ) )","v":""},null,null,null,null,{"$f":"IF(TRIM(O88)=\"\", \"\", IF(VLOOKUP(O88,'Footnotes list'!$D$9:$E$58,2,FALSE)=0,\"\",VLOOKUP(O88,'Footnotes list'!$D$9:$E$58,2,FALSE) ) )","v":""},null,null,null,null,{"$f":"IF(TRIM(T88)=\"\", \"\", IF(VLOOKUP(T88,'Footnotes list'!$D$9:$E$58,2,FALSE)=0,\"\",VLOOKUP(T88,'Footnotes list'!$D$9:$E$58,2,FALSE) ) )","v":""},null,null,null,null,{"$f":"IF(TRIM(Y88)=\"\", \"\", IF(VLOOKUP(Y88,'Footnotes list'!$D$9:$E$58,2,FALSE)=0,\"\",VLOOKUP(Y88,'Footnotes list'!$D$9:$E$58,2,FALSE) ) )","v":""},null,null,null,null,{"$f":"IF(TRIM(AD88)=\"\", \"\", IF(VLOOKUP(AD88,'Footnotes list'!$D$9:$E$58,2,FALSE)=0,\"\",VLOOKUP(AD88,'Footnotes list'!$D$9:$E$58,2,FALSE) ) )","v":""},null,null,null,null,{"$f":"IF(TRIM(AI88)=\"\", \"\", IF(VLOOKUP(AI88,'Footnotes list'!$D$9:$E$58,2,FALSE)=0,\"\",VLOOKUP(AI88,'Footnotes list'!$D$9:$E$58,2,FALSE) ) )","v":""},null,null,null,null,{"$f":"IF(TRIM(AN88)=\"\", \"\", IF(VLOOKUP(AN88,'Footnotes list'!$D$9:$E$58,2,FALSE)=0,\"\",VLOOKUP(AN88,'Footnotes list'!$D$9:$E$58,2,FALSE) ) )","v":""},null,null,null,null,{"$f":"IF(TRIM(AS88)=\"\", \"\", IF(VLOOKUP(AS88,'Footnotes list'!$D$9:$E$58,2,FALSE)=0,\"\",VLOOKUP(AS88,'Footnotes list'!$D$9:$E$58,2,FALSE) ) )","v":""},null,null,null,null,{"$f":"IF(TRIM(AX88)=\"\", \"\", IF(VLOOKUP(AX88,'Footnotes list'!$D$9:$E$58,2,FALSE)=0,\"\",VLOOKUP(AX88,'Footnotes list'!$D$9:$E$58,2,FALSE) ) )","v":""},null,null,null,null,{"$f":"IF(TRIM(BC88)=\"\", \"\", IF(VLOOKUP(BC88,'Footnotes list'!$D$9:$E$58,2,FALSE)=0,\"\",VLOOKUP(BC88,'Footnotes list'!$D$9:$E$58,2,FALSE) ) )","v":""},null,null,null,null,{"$f":"IF(TRIM(BH88)=\"\", \"\", IF(VLOOKUP(BH88,'Footnotes list'!$D$9:$E$58,2,FALSE)=0,\"\",VLOOKUP(BH88,'Footnotes list'!$D$9:$E$58,2,FALSE) ) )","v":""},null,null,null,null,{"$f":"IF(TRIM(BM88)=\"\", \"\", IF(VLOOKUP(BM88,'Footnotes list'!$D$9:$E$58,2,FALSE)=0,\"\",VLOOKUP(BM88,'Footnotes list'!$D$9:$E$58,2,FALSE) ) )","v":""},null,null,null,null,{"$f":"IF(TRIM(BR88)=\"\", \"\", IF(VLOOKUP(BR88,'Footnotes list'!$D$9:$E$58,2,FALSE)=0,\"\",VLOOKUP(BR88,'Footnotes list'!$D$9:$E$58,2,FALSE) ) )","v":""},null,null,null,null,{"$f":"IF(TRIM(BW88)=\"\", \"\", IF(VLOOKUP(BW88,'Footnotes list'!$D$9:$E$58,2,FALSE)=0,\"\",VLOOKUP(BW88,'Footnotes list'!$D$9:$E$58,2,FALSE) ) )","v":""},null,null,null,null,{"$f":"IF(TRIM(CB88)=\"\", \"\", IF(VLOOKUP(CB88,'Footnotes list'!$D$9:$E$58,2,FALSE)=0,\"\",VLOOKUP(CB88,'Footnotes list'!$D$9:$E$58,2,FALSE) ) )","v":""},null,null,null,null,{"$f":"IF(TRIM(CG88)=\"\", \"\", IF(VLOOKUP(CG88,'Footnotes list'!$D$9:$E$58,2,FALSE)=0,\"\",VLOOKUP(CG88,'Footnotes list'!$D$9:$E$58,2,FALSE) ) )","v":""},null,null,null,null,{"$f":"IF(TRIM(CL88)=\"\", \"\", IF(VLOOKUP(CL88,'Footnotes list'!$D$9:$E$58,2,FALSE)=0,\"\",VLOOKUP(CL88,'Footnotes list'!$D$9:$E$58,2,FALSE) ) )","v":""},null,null,null,null,{"$f":"IF(TRIM(CQ88)=\"\", \"\", IF(VLOOKUP(CQ88,'Footnotes list'!$D$9:$E$58,2,FALSE)=0,\"\",VLOOKUP(CQ88,'Footnotes list'!$D$9:$E$58,2,FALSE) ) )","v":""},null,null,null,null,{"$f":"IF(TRIM(CV88)=\"\", \"\", IF(VLOOKUP(CV88,'Footnotes list'!$D$9:$E$58,2,FALSE)=0,\"\",VLOOKUP(CV88,'Footnotes list'!$D$9:$E$58,2,FALSE) ) )","v":""},null,null,null,null,{"$f":"IF(TRIM(DA88)=\"\", \"\", IF(VLOOKUP(DA88,'Footnotes list'!$D$9:$E$58,2,FALSE)=0,\"\",VLOOKUP(DA88,'Footnotes list'!$D$9:$E$58,2,FALSE) ) )","v":""},null,null,null,null,{"$f":"IF(TRIM(DF88)=\"\", \"\", IF(VLOOKUP(DF88,'Footnotes list'!$D$9:$E$58,2,FALSE)=0,\"\",VLOOKUP(DF88,'Footnotes list'!$D$9:$E$58,2,FALSE) ) )","v":""},null,null,null,null,{"$f":"IF(TRIM(DK88)=\"\", \"\", IF(VLOOKUP(DK88,'Footnotes list'!$D$9:$E$58,2,FALSE)=0,\"\",VLOOKUP(DK88,'Footnotes list'!$D$9:$E$58,2,FALSE) ) )","v":""},null,null,null,null,{"$f":"IF(TRIM(DP88)=\"\", \"\", IF(VLOOKUP(DP88,'Footnotes list'!$D$9:$E$58,2,FALSE)=0,\"\",VLOOKUP(DP88,'Footnotes list'!$D$9:$E$58,2,FALSE) ) )","v":""},null,null,null,null,{"$f":"IF(TRIM(DU88)=\"\", \"\", IF(VLOOKUP(DU88,'Footnotes list'!$D$9:$E$58,2,FALSE)=0,\"\",VLOOKUP(DU88,'Footnotes list'!$D$9:$E$58,2,FALSE) ) )","v":""},null,null,null,null,{"$f":"IF(TRIM(DZ88)=\"\", \"\", IF(VLOOKUP(DZ88,'Footnotes list'!$D$9:$E$58,2,FALSE)=0,\"\",VLOOKUP(DZ88,'Footnotes list'!$D$9:$E$58,2,FALSE) ) )","v":""},null,null,null,null,{"$f":"IF(TRIM(EE88)=\"\", \"\", IF(VLOOKUP(EE88,'Footnotes list'!$D$9:$E$58,2,FALSE)=0,\"\",VLOOKUP(EE88,'Footnotes list'!$D$9:$E$58,2,FALSE) ) )","v":""},null,null,null,null,{"$f":"IF(TRIM(EJ88)=\"\", \"\", IF(VLOOKUP(EJ88,'Footnotes list'!$D$9:$E$58,2,FALSE)=0,\"\",VLOOKUP(EJ88,'Footnotes list'!$D$9:$E$58,2,FALSE) ) )","v":""},null,null,null,null,{"$f":"IF(TRIM(EO88)=\"\", \"\", IF(VLOOKUP(EO88,'Footnotes list'!$D$9:$E$58,2,FALSE)=0,\"\",VLOOKUP(EO88,'Footnotes list'!$D$9:$E$58,2,FALSE) ) )","v":""},null,null,null,null,{"$f":"IF(TRIM(ET88)=\"\", \"\", IF(VLOOKUP(ET88,'Footnotes list'!$D$9:$E$58,2,FALSE)=0,\"\",VLOOKUP(ET88,'Footnotes list'!$D$9:$E$58,2,FALSE) ) )","v":""},null,null,null,null,{"$f":"IF(TRIM(EY88)=\"\", \"\", IF(VLOOKUP(EY88,'Footnotes list'!$D$9:$E$58,2,FALSE)=0,\"\",VLOOKUP(EY88,'Footnotes list'!$D$9:$E$58,2,FALSE) ) )","v":""}]
[null,null,"C24_C25","MKT","market activities, including:",null,null,null,null,null,{"$f":"IF(TRIM(J89)=\"\", \"\", IF(VLOOKUP(J89,'Footnotes list'!$D$9:$E$58,2,FALSE)=0,\"\",VLOOKUP(J89,'Footnotes list'!$D$9:$E$58,2,FALSE) ) )","v":""},null,null,null,null,{"$f":"IF(TRIM(O89)=\"\", \"\", IF(VLOOKUP(O89,'Footnotes list'!$D$9:$E$58,2,FALSE)=0,\"\",VLOOKUP(O89,'Footnotes list'!$D$9:$E$58,2,FALSE) ) )","v":""},null,null,null,null,{"$f":"IF(TRIM(T89)=\"\", \"\", IF(VLOOKUP(T89,'Footnotes list'!$D$9:$E$58,2,FALSE)=0,\"\",VLOOKUP(T89,'Footnotes list'!$D$9:$E$58,2,FALSE) ) )","v":""},null,null,null,null,{"$f":"IF(TRIM(Y89)=\"\", \"\", IF(VLOOKUP(Y89,'Footnotes list'!$D$9:$E$58,2,FALSE)=0,\"\",VLOOKUP(Y89,'Footnotes list'!$D$9:$E$58,2,FALSE) ) )","v":""},null,null,null,null,{"$f":"IF(TRIM(AD89)=\"\", \"\", IF(VLOOKUP(AD89,'Footnotes list'!$D$9:$E$58,2,FALSE)=0,\"\",VLOOKUP(AD89,'Footnotes list'!$D$9:$E$58,2,FALSE) ) )","v":""},null,null,null,null,{"$f":"IF(TRIM(AI89)=\"\", \"\", IF(VLOOKUP(AI89,'Footnotes list'!$D$9:$E$58,2,FALSE)=0,\"\",VLOOKUP(AI89,'Footnotes list'!$D$9:$E$58,2,FALSE) ) )","v":""},null,null,null,null,{"$f":"IF(TRIM(AN89)=\"\", \"\", IF(VLOOKUP(AN89,'Footnotes list'!$D$9:$E$58,2,FALSE)=0,\"\",VLOOKUP(AN89,'Footnotes list'!$D$9:$E$58,2,FALSE) ) )","v":""},null,null,null,null,{"$f":"IF(TRIM(AS89)=\"\", \"\", IF(VLOOKUP(AS89,'Footnotes list'!$D$9:$E$58,2,FALSE)=0,\"\",VLOOKUP(AS89,'Footnotes list'!$D$9:$E$58,2,FALSE) ) )","v":""},null,null,null,null,{"$f":"IF(TRIM(AX89)=\"\", \"\", IF(VLOOKUP(AX89,'Footnotes list'!$D$9:$E$58,2,FALSE)=0,\"\",VLOOKUP(AX89,'Footnotes list'!$D$9:$E$58,2,FALSE) ) )","v":""},null,null,null,null,{"$f":"IF(TRIM(BC89)=\"\", \"\", IF(VLOOKUP(BC89,'Footnotes list'!$D$9:$E$58,2,FALSE)=0,\"\",VLOOKUP(BC89,'Footnotes list'!$D$9:$E$58,2,FALSE) ) )","v":""},null,null,null,null,{"$f":"IF(TRIM(BH89)=\"\", \"\", IF(VLOOKUP(BH89,'Footnotes list'!$D$9:$E$58,2,FALSE)=0,\"\",VLOOKUP(BH89,'Footnotes list'!$D$9:$E$58,2,FALSE) ) )","v":""},null,null,null,null,{"$f":"IF(TRIM(BM89)=\"\", \"\", IF(VLOOKUP(BM89,'Footnotes list'!$D$9:$E$58,2,FALSE)=0,\"\",VLOOKUP(BM89,'Footnotes list'!$D$9:$E$58,2,FALSE) ) )","v":""},null,null,null,null,{"$f":"IF(TRIM(BR89)=\"\", \"\", IF(VLOOKUP(BR89,'Footnotes list'!$D$9:$E$58,2,FALSE)=0,\"\",VLOOKUP(BR89,'Footnotes list'!$D$9:$E$58,2,FALSE) ) )","v":""},null,null,null,null,{"$f":"IF(TRIM(BW89)=\"\", \"\", IF(VLOOKUP(BW89,'Footnotes list'!$D$9:$E$58,2,FALSE)=0,\"\",VLOOKUP(BW89,'Footnotes list'!$D$9:$E$58,2,FALSE) ) )","v":""},null,null,null,null,{"$f":"IF(TRIM(CB89)=\"\", \"\", IF(VLOOKUP(CB89,'Footnotes list'!$D$9:$E$58,2,FALSE)=0,\"\",VLOOKUP(CB89,'Footnotes list'!$D$9:$E$58,2,FALSE) ) )","v":""},null,null,null,null,{"$f":"IF(TRIM(CG89)=\"\", \"\", IF(VLOOKUP(CG89,'Footnotes list'!$D$9:$E$58,2,FALSE)=0,\"\",VLOOKUP(CG89,'Footnotes list'!$D$9:$E$58,2,FALSE) ) )","v":""},null,null,null,null,{"$f":"IF(TRIM(CL89)=\"\", \"\", IF(VLOOKUP(CL89,'Footnotes list'!$D$9:$E$58,2,FALSE)=0,\"\",VLOOKUP(CL89,'Footnotes list'!$D$9:$E$58,2,FALSE) ) )","v":""},null,null,null,null,{"$f":"IF(TRIM(CQ89)=\"\", \"\", IF(VLOOKUP(CQ89,'Footnotes list'!$D$9:$E$58,2,FALSE)=0,\"\",VLOOKUP(CQ89,'Footnotes list'!$D$9:$E$58,2,FALSE) ) )","v":""},null,null,null,null,{"$f":"IF(TRIM(CV89)=\"\", \"\", IF(VLOOKUP(CV89,'Footnotes list'!$D$9:$E$58,2,FALSE)=0,\"\",VLOOKUP(CV89,'Footnotes list'!$D$9:$E$58,2,FALSE) ) )","v":""},null,null,null,null,{"$f":"IF(TRIM(DA89)=\"\", \"\", IF(VLOOKUP(DA89,'Footnotes list'!$D$9:$E$58,2,FALSE)=0,\"\",VLOOKUP(DA89,'Footnotes list'!$D$9:$E$58,2,FALSE) ) )","v":""},null,null,null,null,{"$f":"IF(TRIM(DF89)=\"\", \"\", IF(VLOOKUP(DF89,'Footnotes list'!$D$9:$E$58,2,FALSE)=0,\"\",VLOOKUP(DF89,'Footnotes list'!$D$9:$E$58,2,FALSE) ) )","v":""},null,null,null,null,{"$f":"IF(TRIM(DK89)=\"\", \"\", IF(VLOOKUP(DK89,'Footnotes list'!$D$9:$E$58,2,FALSE)=0,\"\",VLOOKUP(DK89,'Footnotes list'!$D$9:$E$58,2,FALSE) ) )","v":""},null,null,null,null,{"$f":"IF(TRIM(DP89)=\"\", \"\", IF(VLOOKUP(DP89,'Footnotes list'!$D$9:$E$58,2,FALSE)=0,\"\",VLOOKUP(DP89,'Footnotes list'!$D$9:$E$58,2,FALSE) ) )","v":""},null,null,null,null,{"$f":"IF(TRIM(DU89)=\"\", \"\", IF(VLOOKUP(DU89,'Footnotes list'!$D$9:$E$58,2,FALSE)=0,\"\",VLOOKUP(DU89,'Footnotes list'!$D$9:$E$58,2,FALSE) ) )","v":""},null,null,null,null,{"$f":"IF(TRIM(DZ89)=\"\", \"\", IF(VLOOKUP(DZ89,'Footnotes list'!$D$9:$E$58,2,FALSE)=0,\"\",VLOOKUP(DZ89,'Footnotes list'!$D$9:$E$58,2,FALSE) ) )","v":""},null,null,null,null,{"$f":"IF(TRIM(EE89)=\"\", \"\", IF(VLOOKUP(EE89,'Footnotes list'!$D$9:$E$58,2,FALSE)=0,\"\",VLOOKUP(EE89,'Footnotes list'!$D$9:$E$58,2,FALSE) ) )","v":""},null,null,null,null,{"$f":"IF(TRIM(EJ89)=\"\", \"\", IF(VLOOKUP(EJ89,'Footnotes list'!$D$9:$E$58,2,FALSE)=0,\"\",VLOOKUP(EJ89,'Footnotes list'!$D$9:$E$58,2,FALSE) ) )","v":""},null,null,null,null,{"$f":"IF(TRIM(EO89)=\"\", \"\", IF(VLOOKUP(EO89,'Footnotes list'!$D$9:$E$58,2,FALSE)=0,\"\",VLOOKUP(EO89,'Footnotes list'!$D$9:$E$58,2,FALSE) ) )","v":""},null,null,null,null,{"$f":"IF(TRIM(ET89)=\"\", \"\", IF(VLOOKUP(ET89,'Footnotes list'!$D$9:$E$58,2,FALSE)=0,\"\",VLOOKUP(ET89,'Footnotes list'!$D$9:$E$58,2,FALSE) ) )","v":""},null,null,null,null,{"$f":"IF(TRIM(EY89)=\"\", \"\", IF(VLOOKUP(EY89,'Footnotes list'!$D$9:$E$58,2,FALSE)=0,\"\",VLOOKUP(EY89,'Footnotes list'!$D$9:$E$58,2,FALSE) ) )","v":""}]
[null,null,"C24_C25","ES_CS","environmental specific services",null,null,null,null,null,{"$f":"IF(TRIM(J90)=\"\", \"\", IF(VLOOKUP(J90,'Footnotes list'!$D$9:$E$58,2,FALSE)=0,\"\",VLOOKUP(J90,'Footnotes list'!$D$9:$E$58,2,FALSE) ) )","v":""},null,null,null,null,{"$f":"IF(TRIM(O90)=\"\", \"\", IF(VLOOKUP(O90,'Footnotes list'!$D$9:$E$58,2,FALSE)=0,\"\",VLOOKUP(O90,'Footnotes list'!$D$9:$E$58,2,FALSE) ) )","v":""},null,null,null,null,{"$f":"IF(TRIM(T90)=\"\", \"\", IF(VLOOKUP(T90,'Footnotes list'!$D$9:$E$58,2,FALSE)=0,\"\",VLOOKUP(T90,'Footnotes list'!$D$9:$E$58,2,FALSE) ) )","v":""},null,null,null,null,{"$f":"IF(TRIM(Y90)=\"\", \"\", IF(VLOOKUP(Y90,'Footnotes list'!$D$9:$E$58,2,FALSE)=0,\"\",VLOOKUP(Y90,'Footnotes list'!$D$9:$E$58,2,FALSE) ) )","v":""},null,null,null,null,{"$f":"IF(TRIM(AD90)=\"\", \"\", IF(VLOOKUP(AD90,'Footnotes list'!$D$9:$E$58,2,FALSE)=0,\"\",VLOOKUP(AD90,'Footnotes list'!$D$9:$E$58,2,FALSE) ) )","v":""},null,null,null,null,{"$f":"IF(TRIM(AI90)=\"\", \"\", IF(VLOOKUP(AI90,'Footnotes list'!$D$9:$E$58,2,FALSE)=0,\"\",VLOOKUP(AI90,'Footnotes list'!$D$9:$E$58,2,FALSE) ) )","v":""},null,null,null,null,{"$f":"IF(TRIM(AN90)=\"\", \"\", IF(VLOOKUP(AN90,'Footnotes list'!$D$9:$E$58,2,FALSE)=0,\"\",VLOOKUP(AN90,'Footnotes list'!$D$9:$E$58,2,FALSE) ) )","v":""},null,null,null,null,{"$f":"IF(TRIM(AS90)=\"\", \"\", IF(VLOOKUP(AS90,'Footnotes list'!$D$9:$E$58,2,FALSE)=0,\"\",VLOOKUP(AS90,'Footnotes list'!$D$9:$E$58,2,FALSE) ) )","v":""},null,null,null,null,{"$f":"IF(TRIM(AX90)=\"\", \"\", IF(VLOOKUP(AX90,'Footnotes list'!$D$9:$E$58,2,FALSE)=0,\"\",VLOOKUP(AX90,'Footnotes list'!$D$9:$E$58,2,FALSE) ) )","v":""},null,null,null,null,{"$f":"IF(TRIM(BC90)=\"\", \"\", IF(VLOOKUP(BC90,'Footnotes list'!$D$9:$E$58,2,FALSE)=0,\"\",VLOOKUP(BC90,'Footnotes list'!$D$9:$E$58,2,FALSE) ) )","v":""},null,null,null,null,{"$f":"IF(TRIM(BH90)=\"\", \"\", IF(VLOOKUP(BH90,'Footnotes list'!$D$9:$E$58,2,FALSE)=0,\"\",VLOOKUP(BH90,'Footnotes list'!$D$9:$E$58,2,FALSE) ) )","v":""},null,null,null,null,{"$f":"IF(TRIM(BM90)=\"\", \"\", IF(VLOOKUP(BM90,'Footnotes list'!$D$9:$E$58,2,FALSE)=0,\"\",VLOOKUP(BM90,'Footnotes list'!$D$9:$E$58,2,FALSE) ) )","v":""},null,null,null,null,{"$f":"IF(TRIM(BR90)=\"\", \"\", IF(VLOOKUP(BR90,'Footnotes list'!$D$9:$E$58,2,FALSE)=0,\"\",VLOOKUP(BR90,'Footnotes list'!$D$9:$E$58,2,FALSE) ) )","v":""},null,null,null,null,{"$f":"IF(TRIM(BW90)=\"\", \"\", IF(VLOOKUP(BW90,'Footnotes list'!$D$9:$E$58,2,FALSE)=0,\"\",VLOOKUP(BW90,'Footnotes list'!$D$9:$E$58,2,FALSE) ) )","v":""},null,null,null,null,{"$f":"IF(TRIM(CB90)=\"\", \"\", IF(VLOOKUP(CB90,'Footnotes list'!$D$9:$E$58,2,FALSE)=0,\"\",VLOOKUP(CB90,'Footnotes list'!$D$9:$E$58,2,FALSE) ) )","v":""},null,null,null,null,{"$f":"IF(TRIM(CG90)=\"\", \"\", IF(VLOOKUP(CG90,'Footnotes list'!$D$9:$E$58,2,FALSE)=0,\"\",VLOOKUP(CG90,'Footnotes list'!$D$9:$E$58,2,FALSE) ) )","v":""},null,null,null,null,{"$f":"IF(TRIM(CL90)=\"\", \"\", IF(VLOOKUP(CL90,'Footnotes list'!$D$9:$E$58,2,FALSE)=0,\"\",VLOOKUP(CL90,'Footnotes list'!$D$9:$E$58,2,FALSE) ) )","v":""},null,null,null,null,{"$f":"IF(TRIM(CQ90)=\"\", \"\", IF(VLOOKUP(CQ90,'Footnotes list'!$D$9:$E$58,2,FALSE)=0,\"\",VLOOKUP(CQ90,'Footnotes list'!$D$9:$E$58,2,FALSE) ) )","v":""},null,null,null,null,{"$f":"IF(TRIM(CV90)=\"\", \"\", IF(VLOOKUP(CV90,'Footnotes list'!$D$9:$E$58,2,FALSE)=0,\"\",VLOOKUP(CV90,'Footnotes list'!$D$9:$E$58,2,FALSE) ) )","v":""},null,null,null,null,{"$f":"IF(TRIM(DA90)=\"\", \"\", IF(VLOOKUP(DA90,'Footnotes list'!$D$9:$E$58,2,FALSE)=0,\"\",VLOOKUP(DA90,'Footnotes list'!$D$9:$E$58,2,FALSE) ) )","v":""},null,null,null,null,{"$f":"IF(TRIM(DF90)=\"\", \"\", IF(VLOOKUP(DF90,'Footnotes list'!$D$9:$E$58,2,FALSE)=0,\"\",VLOOKUP(DF90,'Footnotes list'!$D$9:$E$58,2,FALSE) ) )","v":""},null,null,null,null,{"$f":"IF(TRIM(DK90)=\"\", \"\", IF(VLOOKUP(DK90,'Footnotes list'!$D$9:$E$58,2,FALSE)=0,\"\",VLOOKUP(DK90,'Footnotes list'!$D$9:$E$58,2,FALSE) ) )","v":""},null,null,null,null,{"$f":"IF(TRIM(DP90)=\"\", \"\", IF(VLOOKUP(DP90,'Footnotes list'!$D$9:$E$58,2,FALSE)=0,\"\",VLOOKUP(DP90,'Footnotes list'!$D$9:$E$58,2,FALSE) ) )","v":""},null,null,null,null,{"$f":"IF(TRIM(DU90)=\"\", \"\", IF(VLOOKUP(DU90,'Footnotes list'!$D$9:$E$58,2,FALSE)=0,\"\",VLOOKUP(DU90,'Footnotes list'!$D$9:$E$58,2,FALSE) ) )","v":""},null,null,null,null,{"$f":"IF(TRIM(DZ90)=\"\", \"\", IF(VLOOKUP(DZ90,'Footnotes list'!$D$9:$E$58,2,FALSE)=0,\"\",VLOOKUP(DZ90,'Footnotes list'!$D$9:$E$58,2,FALSE) ) )","v":""},null,null,null,null,{"$f":"IF(TRIM(EE90)=\"\", \"\", IF(VLOOKUP(EE90,'Footnotes list'!$D$9:$E$58,2,FALSE)=0,\"\",VLOOKUP(EE90,'Footnotes list'!$D$9:$E$58,2,FALSE) ) )","v":""},null,null,null,null,{"$f":"IF(TRIM(EJ90)=\"\", \"\", IF(VLOOKUP(EJ90,'Footnotes list'!$D$9:$E$58,2,FALSE)=0,\"\",VLOOKUP(EJ90,'Footnotes list'!$D$9:$E$58,2,FALSE) ) )","v":""},null,null,null,null,{"$f":"IF(TRIM(EO90)=\"\", \"\", IF(VLOOKUP(EO90,'Footnotes list'!$D$9:$E$58,2,FALSE)=0,\"\",VLOOKUP(EO90,'Footnotes list'!$D$9:$E$58,2,FALSE) ) )","v":""},null,null,null,null,{"$f":"IF(TRIM(ET90)=\"\", \"\", IF(VLOOKUP(ET90,'Footnotes list'!$D$9:$E$58,2,FALSE)=0,\"\",VLOOKUP(ET90,'Footnotes list'!$D$9:$E$58,2,FALSE) ) )","v":""},null,null,null,null,{"$f":"IF(TRIM(EY90)=\"\", \"\", IF(VLOOKUP(EY90,'Footnotes list'!$D$9:$E$58,2,FALSE)=0,\"\",VLOOKUP(EY90,'Footnotes list'!$D$9:$E$58,2,FALSE) ) )","v":""}]
[null,null,"C24_C25","C_REP","cleaner and resource efficient products",null,null,null,null,null,{"$f":"IF(TRIM(J91)=\"\", \"\", IF(VLOOKUP(J91,'Footnotes list'!$D$9:$E$58,2,FALSE)=0,\"\",VLOOKUP(J91,'Footnotes list'!$D$9:$E$58,2,FALSE) ) )","v":""},null,null,null,null,{"$f":"IF(TRIM(O91)=\"\", \"\", IF(VLOOKUP(O91,'Footnotes list'!$D$9:$E$58,2,FALSE)=0,\"\",VLOOKUP(O91,'Footnotes list'!$D$9:$E$58,2,FALSE) ) )","v":""},null,null,null,null,{"$f":"IF(TRIM(T91)=\"\", \"\", IF(VLOOKUP(T91,'Footnotes list'!$D$9:$E$58,2,FALSE)=0,\"\",VLOOKUP(T91,'Footnotes list'!$D$9:$E$58,2,FALSE) ) )","v":""},null,null,null,null,{"$f":"IF(TRIM(Y91)=\"\", \"\", IF(VLOOKUP(Y91,'Footnotes list'!$D$9:$E$58,2,FALSE)=0,\"\",VLOOKUP(Y91,'Footnotes list'!$D$9:$E$58,2,FALSE) ) )","v":""},null,null,null,null,{"$f":"IF(TRIM(AD91)=\"\", \"\", IF(VLOOKUP(AD91,'Footnotes list'!$D$9:$E$58,2,FALSE)=0,\"\",VLOOKUP(AD91,'Footnotes list'!$D$9:$E$58,2,FALSE) ) )","v":""},null,null,null,null,{"$f":"IF(TRIM(AI91)=\"\", \"\", IF(VLOOKUP(AI91,'Footnotes list'!$D$9:$E$58,2,FALSE)=0,\"\",VLOOKUP(AI91,'Footnotes list'!$D$9:$E$58,2,FALSE) ) )","v":""},null,null,null,null,{"$f":"IF(TRIM(AN91)=\"\", \"\", IF(VLOOKUP(AN91,'Footnotes list'!$D$9:$E$58,2,FALSE)=0,\"\",VLOOKUP(AN91,'Footnotes list'!$D$9:$E$58,2,FALSE) ) )","v":""},null,null,null,null,{"$f":"IF(TRIM(AS91)=\"\", \"\", IF(VLOOKUP(AS91,'Footnotes list'!$D$9:$E$58,2,FALSE)=0,\"\",VLOOKUP(AS91,'Footnotes list'!$D$9:$E$58,2,FALSE) ) )","v":""},null,null,null,null,{"$f":"IF(TRIM(AX91)=\"\", \"\", IF(VLOOKUP(AX91,'Footnotes list'!$D$9:$E$58,2,FALSE)=0,\"\",VLOOKUP(AX91,'Footnotes list'!$D$9:$E$58,2,FALSE) ) )","v":""},null,null,null,null,{"$f":"IF(TRIM(BC91)=\"\", \"\", IF(VLOOKUP(BC91,'Footnotes list'!$D$9:$E$58,2,FALSE)=0,\"\",VLOOKUP(BC91,'Footnotes list'!$D$9:$E$58,2,FALSE) ) )","v":""},null,null,null,null,{"$f":"IF(TRIM(BH91)=\"\", \"\", IF(VLOOKUP(BH91,'Footnotes list'!$D$9:$E$58,2,FALSE)=0,\"\",VLOOKUP(BH91,'Footnotes list'!$D$9:$E$58,2,FALSE) ) )","v":""},null,null,null,null,{"$f":"IF(TRIM(BM91)=\"\", \"\", IF(VLOOKUP(BM91,'Footnotes list'!$D$9:$E$58,2,FALSE)=0,\"\",VLOOKUP(BM91,'Footnotes list'!$D$9:$E$58,2,FALSE) ) )","v":""},null,null,null,null,{"$f":"IF(TRIM(BR91)=\"\", \"\", IF(VLOOKUP(BR91,'Footnotes list'!$D$9:$E$58,2,FALSE)=0,\"\",VLOOKUP(BR91,'Footnotes list'!$D$9:$E$58,2,FALSE) ) )","v":""},null,null,null,null,{"$f":"IF(TRIM(BW91)=\"\", \"\", IF(VLOOKUP(BW91,'Footnotes list'!$D$9:$E$58,2,FALSE)=0,\"\",VLOOKUP(BW91,'Footnotes list'!$D$9:$E$58,2,FALSE) ) )","v":""},null,null,null,null,{"$f":"IF(TRIM(CB91)=\"\", \"\", IF(VLOOKUP(CB91,'Footnotes list'!$D$9:$E$58,2,FALSE)=0,\"\",VLOOKUP(CB91,'Footnotes list'!$D$9:$E$58,2,FALSE) ) )","v":""},null,null,null,null,{"$f":"IF(TRIM(CG91)=\"\", \"\", IF(VLOOKUP(CG91,'Footnotes list'!$D$9:$E$58,2,FALSE)=0,\"\",VLOOKUP(CG91,'Footnotes list'!$D$9:$E$58,2,FALSE) ) )","v":""},null,null,null,null,{"$f":"IF(TRIM(CL91)=\"\", \"\", IF(VLOOKUP(CL91,'Footnotes list'!$D$9:$E$58,2,FALSE)=0,\"\",VLOOKUP(CL91,'Footnotes list'!$D$9:$E$58,2,FALSE) ) )","v":""},null,null,null,null,{"$f":"IF(TRIM(CQ91)=\"\", \"\", IF(VLOOKUP(CQ91,'Footnotes list'!$D$9:$E$58,2,FALSE)=0,\"\",VLOOKUP(CQ91,'Footnotes list'!$D$9:$E$58,2,FALSE) ) )","v":""},null,null,null,null,{"$f":"IF(TRIM(CV91)=\"\", \"\", IF(VLOOKUP(CV91,'Footnotes list'!$D$9:$E$58,2,FALSE)=0,\"\",VLOOKUP(CV91,'Footnotes list'!$D$9:$E$58,2,FALSE) ) )","v":""},null,null,null,null,{"$f":"IF(TRIM(DA91)=\"\", \"\", IF(VLOOKUP(DA91,'Footnotes list'!$D$9:$E$58,2,FALSE)=0,\"\",VLOOKUP(DA91,'Footnotes list'!$D$9:$E$58,2,FALSE) ) )","v":""},null,null,null,null,{"$f":"IF(TRIM(DF91)=\"\", \"\", IF(VLOOKUP(DF91,'Footnotes list'!$D$9:$E$58,2,FALSE)=0,\"\",VLOOKUP(DF91,'Footnotes list'!$D$9:$E$58,2,FALSE) ) )","v":""},null,null,null,null,{"$f":"IF(TRIM(DK91)=\"\", \"\", IF(VLOOKUP(DK91,'Footnotes list'!$D$9:$E$58,2,FALSE)=0,\"\",VLOOKUP(DK91,'Footnotes list'!$D$9:$E$58,2,FALSE) ) )","v":""},null,null,null,null,{"$f":"IF(TRIM(DP91)=\"\", \"\", IF(VLOOKUP(DP91,'Footnotes list'!$D$9:$E$58,2,FALSE)=0,\"\",VLOOKUP(DP91,'Footnotes list'!$D$9:$E$58,2,FALSE) ) )","v":""},null,null,null,null,{"$f":"IF(TRIM(DU91)=\"\", \"\", IF(VLOOKUP(DU91,'Footnotes list'!$D$9:$E$58,2,FALSE)=0,\"\",VLOOKUP(DU91,'Footnotes list'!$D$9:$E$58,2,FALSE) ) )","v":""},null,null,null,null,{"$f":"IF(TRIM(DZ91)=\"\", \"\", IF(VLOOKUP(DZ91,'Footnotes list'!$D$9:$E$58,2,FALSE)=0,\"\",VLOOKUP(DZ91,'Footnotes list'!$D$9:$E$58,2,FALSE) ) )","v":""},null,null,null,null,{"$f":"IF(TRIM(EE91)=\"\", \"\", IF(VLOOKUP(EE91,'Footnotes list'!$D$9:$E$58,2,FALSE)=0,\"\",VLOOKUP(EE91,'Footnotes list'!$D$9:$E$58,2,FALSE) ) )","v":""},null,null,null,null,{"$f":"IF(TRIM(EJ91)=\"\", \"\", IF(VLOOKUP(EJ91,'Footnotes list'!$D$9:$E$58,2,FALSE)=0,\"\",VLOOKUP(EJ91,'Footnotes list'!$D$9:$E$58,2,FALSE) ) )","v":""},null,null,null,null,{"$f":"IF(TRIM(EO91)=\"\", \"\", IF(VLOOKUP(EO91,'Footnotes list'!$D$9:$E$58,2,FALSE)=0,\"\",VLOOKUP(EO91,'Footnotes list'!$D$9:$E$58,2,FALSE) ) )","v":""},null,null,null,null,{"$f":"IF(TRIM(ET91)=\"\", \"\", IF(VLOOKUP(ET91,'Footnotes list'!$D$9:$E$58,2,FALSE)=0,\"\",VLOOKUP(ET91,'Footnotes list'!$D$9:$E$58,2,FALSE) ) )","v":""},null,null,null,null,{"$f":"IF(TRIM(EY91)=\"\", \"\", IF(VLOOKUP(EY91,'Footnotes list'!$D$9:$E$58,2,FALSE)=0,\"\",VLOOKUP(EY91,'Footnotes list'!$D$9:$E$58,2,FALSE) ) )","v":""}]
[null,null,"C26","TOT_EGSS","Total C26 - Manufacture of computer, electronic and optical products, of which:",null,null,null,null,null,{"$f":"IF(TRIM(J92)=\"\", \"\", IF(VLOOKUP(J92,'Footnotes list'!$D$9:$E$58,2,FALSE)=0,\"\",VLOOKUP(J92,'Footnotes list'!$D$9:$E$58,2,FALSE) ) )","v":""},null,null,null,null,{"$f":"IF(TRIM(O92)=\"\", \"\", IF(VLOOKUP(O92,'Footnotes list'!$D$9:$E$58,2,FALSE)=0,\"\",VLOOKUP(O92,'Footnotes list'!$D$9:$E$58,2,FALSE) ) )","v":""},null,null,null,null,{"$f":"IF(TRIM(T92)=\"\", \"\", IF(VLOOKUP(T92,'Footnotes list'!$D$9:$E$58,2,FALSE)=0,\"\",VLOOKUP(T92,'Footnotes list'!$D$9:$E$58,2,FALSE) ) )","v":""},null,null,null,null,{"$f":"IF(TRIM(Y92)=\"\", \"\", IF(VLOOKUP(Y92,'Footnotes list'!$D$9:$E$58,2,FALSE)=0,\"\",VLOOKUP(Y92,'Footnotes list'!$D$9:$E$58,2,FALSE) ) )","v":""},null,null,null,null,{"$f":"IF(TRIM(AD92)=\"\", \"\", IF(VLOOKUP(AD92,'Footnotes list'!$D$9:$E$58,2,FALSE)=0,\"\",VLOOKUP(AD92,'Footnotes list'!$D$9:$E$58,2,FALSE) ) )","v":""},null,null,null,null,{"$f":"IF(TRIM(AI92)=\"\", \"\", IF(VLOOKUP(AI92,'Footnotes list'!$D$9:$E$58,2,FALSE)=0,\"\",VLOOKUP(AI92,'Footnotes list'!$D$9:$E$58,2,FALSE) ) )","v":""},null,null,null,null,{"$f":"IF(TRIM(AN92)=\"\", \"\", IF(VLOOKUP(AN92,'Footnotes list'!$D$9:$E$58,2,FALSE)=0,\"\",VLOOKUP(AN92,'Footnotes list'!$D$9:$E$58,2,FALSE) ) )","v":""},null,null,null,null,{"$f":"IF(TRIM(AS92)=\"\", \"\", IF(VLOOKUP(AS92,'Footnotes list'!$D$9:$E$58,2,FALSE)=0,\"\",VLOOKUP(AS92,'Footnotes list'!$D$9:$E$58,2,FALSE) ) )","v":""},null,null,null,null,{"$f":"IF(TRIM(AX92)=\"\", \"\", IF(VLOOKUP(AX92,'Footnotes list'!$D$9:$E$58,2,FALSE)=0,\"\",VLOOKUP(AX92,'Footnotes list'!$D$9:$E$58,2,FALSE) ) )","v":""},null,null,null,null,{"$f":"IF(TRIM(BC92)=\"\", \"\", IF(VLOOKUP(BC92,'Footnotes list'!$D$9:$E$58,2,FALSE)=0,\"\",VLOOKUP(BC92,'Footnotes list'!$D$9:$E$58,2,FALSE) ) )","v":""},null,null,null,null,{"$f":"IF(TRIM(BH92)=\"\", \"\", IF(VLOOKUP(BH92,'Footnotes list'!$D$9:$E$58,2,FALSE)=0,\"\",VLOOKUP(BH92,'Footnotes list'!$D$9:$E$58,2,FALSE) ) )","v":""},null,null,null,null,{"$f":"IF(TRIM(BM92)=\"\", \"\", IF(VLOOKUP(BM92,'Footnotes list'!$D$9:$E$58,2,FALSE)=0,\"\",VLOOKUP(BM92,'Footnotes list'!$D$9:$E$58,2,FALSE) ) )","v":""},null,null,null,null,{"$f":"IF(TRIM(BR92)=\"\", \"\", IF(VLOOKUP(BR92,'Footnotes list'!$D$9:$E$58,2,FALSE)=0,\"\",VLOOKUP(BR92,'Footnotes list'!$D$9:$E$58,2,FALSE) ) )","v":""},null,null,null,null,{"$f":"IF(TRIM(BW92)=\"\", \"\", IF(VLOOKUP(BW92,'Footnotes list'!$D$9:$E$58,2,FALSE)=0,\"\",VLOOKUP(BW92,'Footnotes list'!$D$9:$E$58,2,FALSE) ) )","v":""},null,null,null,null,{"$f":"IF(TRIM(CB92)=\"\", \"\", IF(VLOOKUP(CB92,'Footnotes list'!$D$9:$E$58,2,FALSE)=0,\"\",VLOOKUP(CB92,'Footnotes list'!$D$9:$E$58,2,FALSE) ) )","v":""},null,null,null,null,{"$f":"IF(TRIM(CG92)=\"\", \"\", IF(VLOOKUP(CG92,'Footnotes list'!$D$9:$E$58,2,FALSE)=0,\"\",VLOOKUP(CG92,'Footnotes list'!$D$9:$E$58,2,FALSE) ) )","v":""},null,null,null,null,{"$f":"IF(TRIM(CL92)=\"\", \"\", IF(VLOOKUP(CL92,'Footnotes list'!$D$9:$E$58,2,FALSE)=0,\"\",VLOOKUP(CL92,'Footnotes list'!$D$9:$E$58,2,FALSE) ) )","v":""},null,null,null,null,{"$f":"IF(TRIM(CQ92)=\"\", \"\", IF(VLOOKUP(CQ92,'Footnotes list'!$D$9:$E$58,2,FALSE)=0,\"\",VLOOKUP(CQ92,'Footnotes list'!$D$9:$E$58,2,FALSE) ) )","v":""},null,null,null,null,{"$f":"IF(TRIM(CV92)=\"\", \"\", IF(VLOOKUP(CV92,'Footnotes list'!$D$9:$E$58,2,FALSE)=0,\"\",VLOOKUP(CV92,'Footnotes list'!$D$9:$E$58,2,FALSE) ) )","v":""},null,null,null,null,{"$f":"IF(TRIM(DA92)=\"\", \"\", IF(VLOOKUP(DA92,'Footnotes list'!$D$9:$E$58,2,FALSE)=0,\"\",VLOOKUP(DA92,'Footnotes list'!$D$9:$E$58,2,FALSE) ) )","v":""},null,null,null,null,{"$f":"IF(TRIM(DF92)=\"\", \"\", IF(VLOOKUP(DF92,'Footnotes list'!$D$9:$E$58,2,FALSE)=0,\"\",VLOOKUP(DF92,'Footnotes list'!$D$9:$E$58,2,FALSE) ) )","v":""},null,null,null,null,{"$f":"IF(TRIM(DK92)=\"\", \"\", IF(VLOOKUP(DK92,'Footnotes list'!$D$9:$E$58,2,FALSE)=0,\"\",VLOOKUP(DK92,'Footnotes list'!$D$9:$E$58,2,FALSE) ) )","v":""},null,null,null,null,{"$f":"IF(TRIM(DP92)=\"\", \"\", IF(VLOOKUP(DP92,'Footnotes list'!$D$9:$E$58,2,FALSE)=0,\"\",VLOOKUP(DP92,'Footnotes list'!$D$9:$E$58,2,FALSE) ) )","v":""},null,null,null,null,{"$f":"IF(TRIM(DU92)=\"\", \"\", IF(VLOOKUP(DU92,'Footnotes list'!$D$9:$E$58,2,FALSE)=0,\"\",VLOOKUP(DU92,'Footnotes list'!$D$9:$E$58,2,FALSE) ) )","v":""},null,null,null,null,{"$f":"IF(TRIM(DZ92)=\"\", \"\", IF(VLOOKUP(DZ92,'Footnotes list'!$D$9:$E$58,2,FALSE)=0,\"\",VLOOKUP(DZ92,'Footnotes list'!$D$9:$E$58,2,FALSE) ) )","v":""},null,null,null,null,{"$f":"IF(TRIM(EE92)=\"\", \"\", IF(VLOOKUP(EE92,'Footnotes list'!$D$9:$E$58,2,FALSE)=0,\"\",VLOOKUP(EE92,'Footnotes list'!$D$9:$E$58,2,FALSE) ) )","v":""},null,null,null,null,{"$f":"IF(TRIM(EJ92)=\"\", \"\", IF(VLOOKUP(EJ92,'Footnotes list'!$D$9:$E$58,2,FALSE)=0,\"\",VLOOKUP(EJ92,'Footnotes list'!$D$9:$E$58,2,FALSE) ) )","v":""},null,null,null,null,{"$f":"IF(TRIM(EO92)=\"\", \"\", IF(VLOOKUP(EO92,'Footnotes list'!$D$9:$E$58,2,FALSE)=0,\"\",VLOOKUP(EO92,'Footnotes list'!$D$9:$E$58,2,FALSE) ) )","v":""},null,null,null,null,{"$f":"IF(TRIM(ET92)=\"\", \"\", IF(VLOOKUP(ET92,'Footnotes list'!$D$9:$E$58,2,FALSE)=0,\"\",VLOOKUP(ET92,'Footnotes list'!$D$9:$E$58,2,FALSE) ) )","v":""},null,null,null,null,{"$f":"IF(TRIM(EY92)=\"\", \"\", IF(VLOOKUP(EY92,'Footnotes list'!$D$9:$E$58,2,FALSE)=0,\"\",VLOOKUP(EY92,'Footnotes list'!$D$9:$E$58,2,FALSE) ) )","v":""}]
[null,null,"C26","ANC","ancillary activities",null,null,null,null,null,{"$f":"IF(TRIM(J93)=\"\", \"\", IF(VLOOKUP(J93,'Footnotes list'!$D$9:$E$58,2,FALSE)=0,\"\",VLOOKUP(J93,'Footnotes list'!$D$9:$E$58,2,FALSE) ) )","v":""},null,null,null,null,{"$f":"IF(TRIM(O93)=\"\", \"\", IF(VLOOKUP(O93,'Footnotes list'!$D$9:$E$58,2,FALSE)=0,\"\",VLOOKUP(O93,'Footnotes list'!$D$9:$E$58,2,FALSE) ) )","v":""},null,null,null,null,{"$f":"IF(TRIM(T93)=\"\", \"\", IF(VLOOKUP(T93,'Footnotes list'!$D$9:$E$58,2,FALSE)=0,\"\",VLOOKUP(T93,'Footnotes list'!$D$9:$E$58,2,FALSE) ) )","v":""},null,null,null,null,{"$f":"IF(TRIM(Y93)=\"\", \"\", IF(VLOOKUP(Y93,'Footnotes list'!$D$9:$E$58,2,FALSE)=0,\"\",VLOOKUP(Y93,'Footnotes list'!$D$9:$E$58,2,FALSE) ) )","v":""},null,null,null,null,{"$f":"IF(TRIM(AD93)=\"\", \"\", IF(VLOOKUP(AD93,'Footnotes list'!$D$9:$E$58,2,FALSE)=0,\"\",VLOOKUP(AD93,'Footnotes list'!$D$9:$E$58,2,FALSE) ) )","v":""},null,null,null,null,{"$f":"IF(TRIM(AI93)=\"\", \"\", IF(VLOOKUP(AI93,'Footnotes list'!$D$9:$E$58,2,FALSE)=0,\"\",VLOOKUP(AI93,'Footnotes list'!$D$9:$E$58,2,FALSE) ) )","v":""},null,null,null,null,{"$f":"IF(TRIM(AN93)=\"\", \"\", IF(VLOOKUP(AN93,'Footnotes list'!$D$9:$E$58,2,FALSE)=0,\"\",VLOOKUP(AN93,'Footnotes list'!$D$9:$E$58,2,FALSE) ) )","v":""},null,null,null,null,{"$f":"IF(TRIM(AS93)=\"\", \"\", IF(VLOOKUP(AS93,'Footnotes list'!$D$9:$E$58,2,FALSE)=0,\"\",VLOOKUP(AS93,'Footnotes list'!$D$9:$E$58,2,FALSE) ) )","v":""},null,null,null,null,{"$f":"IF(TRIM(AX93)=\"\", \"\", IF(VLOOKUP(AX93,'Footnotes list'!$D$9:$E$58,2,FALSE)=0,\"\",VLOOKUP(AX93,'Footnotes list'!$D$9:$E$58,2,FALSE) ) )","v":""},null,null,null,null,{"$f":"IF(TRIM(BC93)=\"\", \"\", IF(VLOOKUP(BC93,'Footnotes list'!$D$9:$E$58,2,FALSE)=0,\"\",VLOOKUP(BC93,'Footnotes list'!$D$9:$E$58,2,FALSE) ) )","v":""},null,null,null,null,{"$f":"IF(TRIM(BH93)=\"\", \"\", IF(VLOOKUP(BH93,'Footnotes list'!$D$9:$E$58,2,FALSE)=0,\"\",VLOOKUP(BH93,'Footnotes list'!$D$9:$E$58,2,FALSE) ) )","v":""},null,null,null,null,{"$f":"IF(TRIM(BM93)=\"\", \"\", IF(VLOOKUP(BM93,'Footnotes list'!$D$9:$E$58,2,FALSE)=0,\"\",VLOOKUP(BM93,'Footnotes list'!$D$9:$E$58,2,FALSE) ) )","v":""},null,null,null,null,{"$f":"IF(TRIM(BR93)=\"\", \"\", IF(VLOOKUP(BR93,'Footnotes list'!$D$9:$E$58,2,FALSE)=0,\"\",VLOOKUP(BR93,'Footnotes list'!$D$9:$E$58,2,FALSE) ) )","v":""},null,null,null,null,{"$f":"IF(TRIM(BW93)=\"\", \"\", IF(VLOOKUP(BW93,'Footnotes list'!$D$9:$E$58,2,FALSE)=0,\"\",VLOOKUP(BW93,'Footnotes list'!$D$9:$E$58,2,FALSE) ) )","v":""},null,null,null,null,{"$f":"IF(TRIM(CB93)=\"\", \"\", IF(VLOOKUP(CB93,'Footnotes list'!$D$9:$E$58,2,FALSE)=0,\"\",VLOOKUP(CB93,'Footnotes list'!$D$9:$E$58,2,FALSE) ) )","v":""},null,null,null,null,{"$f":"IF(TRIM(CG93)=\"\", \"\", IF(VLOOKUP(CG93,'Footnotes list'!$D$9:$E$58,2,FALSE)=0,\"\",VLOOKUP(CG93,'Footnotes list'!$D$9:$E$58,2,FALSE) ) )","v":""},null,null,null,null,{"$f":"IF(TRIM(CL93)=\"\", \"\", IF(VLOOKUP(CL93,'Footnotes list'!$D$9:$E$58,2,FALSE)=0,\"\",VLOOKUP(CL93,'Footnotes list'!$D$9:$E$58,2,FALSE) ) )","v":""},null,null,null,null,{"$f":"IF(TRIM(CQ93)=\"\", \"\", IF(VLOOKUP(CQ93,'Footnotes list'!$D$9:$E$58,2,FALSE)=0,\"\",VLOOKUP(CQ93,'Footnotes list'!$D$9:$E$58,2,FALSE) ) )","v":""},null,null,null,null,{"$f":"IF(TRIM(CV93)=\"\", \"\", IF(VLOOKUP(CV93,'Footnotes list'!$D$9:$E$58,2,FALSE)=0,\"\",VLOOKUP(CV93,'Footnotes list'!$D$9:$E$58,2,FALSE) ) )","v":""},null,null,null,null,{"$f":"IF(TRIM(DA93)=\"\", \"\", IF(VLOOKUP(DA93,'Footnotes list'!$D$9:$E$58,2,FALSE)=0,\"\",VLOOKUP(DA93,'Footnotes list'!$D$9:$E$58,2,FALSE) ) )","v":""},null,null,null,null,{"$f":"IF(TRIM(DF93)=\"\", \"\", IF(VLOOKUP(DF93,'Footnotes list'!$D$9:$E$58,2,FALSE)=0,\"\",VLOOKUP(DF93,'Footnotes list'!$D$9:$E$58,2,FALSE) ) )","v":""},null,null,null,null,{"$f":"IF(TRIM(DK93)=\"\", \"\", IF(VLOOKUP(DK93,'Footnotes list'!$D$9:$E$58,2,FALSE)=0,\"\",VLOOKUP(DK93,'Footnotes list'!$D$9:$E$58,2,FALSE) ) )","v":""},null,null,null,null,{"$f":"IF(TRIM(DP93)=\"\", \"\", IF(VLOOKUP(DP93,'Footnotes list'!$D$9:$E$58,2,FALSE)=0,\"\",VLOOKUP(DP93,'Footnotes list'!$D$9:$E$58,2,FALSE) ) )","v":""},null,null,null,null,{"$f":"IF(TRIM(DU93)=\"\", \"\", IF(VLOOKUP(DU93,'Footnotes list'!$D$9:$E$58,2,FALSE)=0,\"\",VLOOKUP(DU93,'Footnotes list'!$D$9:$E$58,2,FALSE) ) )","v":""},null,null,null,null,{"$f":"IF(TRIM(DZ93)=\"\", \"\", IF(VLOOKUP(DZ93,'Footnotes list'!$D$9:$E$58,2,FALSE)=0,\"\",VLOOKUP(DZ93,'Footnotes list'!$D$9:$E$58,2,FALSE) ) )","v":""},null,null,null,null,{"$f":"IF(TRIM(EE93)=\"\", \"\", IF(VLOOKUP(EE93,'Footnotes list'!$D$9:$E$58,2,FALSE)=0,\"\",VLOOKUP(EE93,'Footnotes list'!$D$9:$E$58,2,FALSE) ) )","v":""},null,null,null,null,{"$f":"IF(TRIM(EJ93)=\"\", \"\", IF(VLOOKUP(EJ93,'Footnotes list'!$D$9:$E$58,2,FALSE)=0,\"\",VLOOKUP(EJ93,'Footnotes list'!$D$9:$E$58,2,FALSE) ) )","v":""},null,null,null,null,{"$f":"IF(TRIM(EO93)=\"\", \"\", IF(VLOOKUP(EO93,'Footnotes list'!$D$9:$E$58,2,FALSE)=0,\"\",VLOOKUP(EO93,'Footnotes list'!$D$9:$E$58,2,FALSE) ) )","v":""},null,null,null,null,{"$f":"IF(TRIM(ET93)=\"\", \"\", IF(VLOOKUP(ET93,'Footnotes list'!$D$9:$E$58,2,FALSE)=0,\"\",VLOOKUP(ET93,'Footnotes list'!$D$9:$E$58,2,FALSE) ) )","v":""},null,null,null,null,{"$f":"IF(TRIM(EY93)=\"\", \"\", IF(VLOOKUP(EY93,'Footnotes list'!$D$9:$E$58,2,FALSE)=0,\"\",VLOOKUP(EY93,'Footnotes list'!$D$9:$E$58,2,FALSE) ) )","v":""}]
[null,null,"C26","NMKT","non-market activities",null,null,null,null,null,{"$f":"IF(TRIM(J94)=\"\", \"\", IF(VLOOKUP(J94,'Footnotes list'!$D$9:$E$58,2,FALSE)=0,\"\",VLOOKUP(J94,'Footnotes list'!$D$9:$E$58,2,FALSE) ) )","v":""},null,null,null,null,{"$f":"IF(TRIM(O94)=\"\", \"\", IF(VLOOKUP(O94,'Footnotes list'!$D$9:$E$58,2,FALSE)=0,\"\",VLOOKUP(O94,'Footnotes list'!$D$9:$E$58,2,FALSE) ) )","v":""},null,null,null,null,{"$f":"IF(TRIM(T94)=\"\", \"\", IF(VLOOKUP(T94,'Footnotes list'!$D$9:$E$58,2,FALSE)=0,\"\",VLOOKUP(T94,'Footnotes list'!$D$9:$E$58,2,FALSE) ) )","v":""},null,null,null,null,{"$f":"IF(TRIM(Y94)=\"\", \"\", IF(VLOOKUP(Y94,'Footnotes list'!$D$9:$E$58,2,FALSE)=0,\"\",VLOOKUP(Y94,'Footnotes list'!$D$9:$E$58,2,FALSE) ) )","v":""},null,null,null,null,{"$f":"IF(TRIM(AD94)=\"\", \"\", IF(VLOOKUP(AD94,'Footnotes list'!$D$9:$E$58,2,FALSE)=0,\"\",VLOOKUP(AD94,'Footnotes list'!$D$9:$E$58,2,FALSE) ) )","v":""},null,null,null,null,{"$f":"IF(TRIM(AI94)=\"\", \"\", IF(VLOOKUP(AI94,'Footnotes list'!$D$9:$E$58,2,FALSE)=0,\"\",VLOOKUP(AI94,'Footnotes list'!$D$9:$E$58,2,FALSE) ) )","v":""},null,null,null,null,{"$f":"IF(TRIM(AN94)=\"\", \"\", IF(VLOOKUP(AN94,'Footnotes list'!$D$9:$E$58,2,FALSE)=0,\"\",VLOOKUP(AN94,'Footnotes list'!$D$9:$E$58,2,FALSE) ) )","v":""},null,null,null,null,{"$f":"IF(TRIM(AS94)=\"\", \"\", IF(VLOOKUP(AS94,'Footnotes list'!$D$9:$E$58,2,FALSE)=0,\"\",VLOOKUP(AS94,'Footnotes list'!$D$9:$E$58,2,FALSE) ) )","v":""},null,null,null,null,{"$f":"IF(TRIM(AX94)=\"\", \"\", IF(VLOOKUP(AX94,'Footnotes list'!$D$9:$E$58,2,FALSE)=0,\"\",VLOOKUP(AX94,'Footnotes list'!$D$9:$E$58,2,FALSE) ) )","v":""},null,null,null,null,{"$f":"IF(TRIM(BC94)=\"\", \"\", IF(VLOOKUP(BC94,'Footnotes list'!$D$9:$E$58,2,FALSE)=0,\"\",VLOOKUP(BC94,'Footnotes list'!$D$9:$E$58,2,FALSE) ) )","v":""},null,null,null,null,{"$f":"IF(TRIM(BH94)=\"\", \"\", IF(VLOOKUP(BH94,'Footnotes list'!$D$9:$E$58,2,FALSE)=0,\"\",VLOOKUP(BH94,'Footnotes list'!$D$9:$E$58,2,FALSE) ) )","v":""},null,null,null,null,{"$f":"IF(TRIM(BM94)=\"\", \"\", IF(VLOOKUP(BM94,'Footnotes list'!$D$9:$E$58,2,FALSE)=0,\"\",VLOOKUP(BM94,'Footnotes list'!$D$9:$E$58,2,FALSE) ) )","v":""},null,null,null,null,{"$f":"IF(TRIM(BR94)=\"\", \"\", IF(VLOOKUP(BR94,'Footnotes list'!$D$9:$E$58,2,FALSE)=0,\"\",VLOOKUP(BR94,'Footnotes list'!$D$9:$E$58,2,FALSE) ) )","v":""},null,null,null,null,{"$f":"IF(TRIM(BW94)=\"\", \"\", IF(VLOOKUP(BW94,'Footnotes list'!$D$9:$E$58,2,FALSE)=0,\"\",VLOOKUP(BW94,'Footnotes list'!$D$9:$E$58,2,FALSE) ) )","v":""},null,null,null,null,{"$f":"IF(TRIM(CB94)=\"\", \"\", IF(VLOOKUP(CB94,'Footnotes list'!$D$9:$E$58,2,FALSE)=0,\"\",VLOOKUP(CB94,'Footnotes list'!$D$9:$E$58,2,FALSE) ) )","v":""},null,null,null,null,{"$f":"IF(TRIM(CG94)=\"\", \"\", IF(VLOOKUP(CG94,'Footnotes list'!$D$9:$E$58,2,FALSE)=0,\"\",VLOOKUP(CG94,'Footnotes list'!$D$9:$E$58,2,FALSE) ) )","v":""},null,null,null,null,{"$f":"IF(TRIM(CL94)=\"\", \"\", IF(VLOOKUP(CL94,'Footnotes list'!$D$9:$E$58,2,FALSE)=0,\"\",VLOOKUP(CL94,'Footnotes list'!$D$9:$E$58,2,FALSE) ) )","v":""},null,null,null,null,{"$f":"IF(TRIM(CQ94)=\"\", \"\", IF(VLOOKUP(CQ94,'Footnotes list'!$D$9:$E$58,2,FALSE)=0,\"\",VLOOKUP(CQ94,'Footnotes list'!$D$9:$E$58,2,FALSE) ) )","v":""},null,null,null,null,{"$f":"IF(TRIM(CV94)=\"\", \"\", IF(VLOOKUP(CV94,'Footnotes list'!$D$9:$E$58,2,FALSE)=0,\"\",VLOOKUP(CV94,'Footnotes list'!$D$9:$E$58,2,FALSE) ) )","v":""},null,null,null,null,{"$f":"IF(TRIM(DA94)=\"\", \"\", IF(VLOOKUP(DA94,'Footnotes list'!$D$9:$E$58,2,FALSE)=0,\"\",VLOOKUP(DA94,'Footnotes list'!$D$9:$E$58,2,FALSE) ) )","v":""},null,null,null,null,{"$f":"IF(TRIM(DF94)=\"\", \"\", IF(VLOOKUP(DF94,'Footnotes list'!$D$9:$E$58,2,FALSE)=0,\"\",VLOOKUP(DF94,'Footnotes list'!$D$9:$E$58,2,FALSE) ) )","v":""},null,null,null,null,{"$f":"IF(TRIM(DK94)=\"\", \"\", IF(VLOOKUP(DK94,'Footnotes list'!$D$9:$E$58,2,FALSE)=0,\"\",VLOOKUP(DK94,'Footnotes list'!$D$9:$E$58,2,FALSE) ) )","v":""},null,null,null,null,{"$f":"IF(TRIM(DP94)=\"\", \"\", IF(VLOOKUP(DP94,'Footnotes list'!$D$9:$E$58,2,FALSE)=0,\"\",VLOOKUP(DP94,'Footnotes list'!$D$9:$E$58,2,FALSE) ) )","v":""},null,null,null,null,{"$f":"IF(TRIM(DU94)=\"\", \"\", IF(VLOOKUP(DU94,'Footnotes list'!$D$9:$E$58,2,FALSE)=0,\"\",VLOOKUP(DU94,'Footnotes list'!$D$9:$E$58,2,FALSE) ) )","v":""},null,null,null,null,{"$f":"IF(TRIM(DZ94)=\"\", \"\", IF(VLOOKUP(DZ94,'Footnotes list'!$D$9:$E$58,2,FALSE)=0,\"\",VLOOKUP(DZ94,'Footnotes list'!$D$9:$E$58,2,FALSE) ) )","v":""},null,null,null,null,{"$f":"IF(TRIM(EE94)=\"\", \"\", IF(VLOOKUP(EE94,'Footnotes list'!$D$9:$E$58,2,FALSE)=0,\"\",VLOOKUP(EE94,'Footnotes list'!$D$9:$E$58,2,FALSE) ) )","v":""},null,null,null,null,{"$f":"IF(TRIM(EJ94)=\"\", \"\", IF(VLOOKUP(EJ94,'Footnotes list'!$D$9:$E$58,2,FALSE)=0,\"\",VLOOKUP(EJ94,'Footnotes list'!$D$9:$E$58,2,FALSE) ) )","v":""},null,null,null,null,{"$f":"IF(TRIM(EO94)=\"\", \"\", IF(VLOOKUP(EO94,'Footnotes list'!$D$9:$E$58,2,FALSE)=0,\"\",VLOOKUP(EO94,'Footnotes list'!$D$9:$E$58,2,FALSE) ) )","v":""},null,null,null,null,{"$f":"IF(TRIM(ET94)=\"\", \"\", IF(VLOOKUP(ET94,'Footnotes list'!$D$9:$E$58,2,FALSE)=0,\"\",VLOOKUP(ET94,'Footnotes list'!$D$9:$E$58,2,FALSE) ) )","v":""},null,null,null,null,{"$f":"IF(TRIM(EY94)=\"\", \"\", IF(VLOOKUP(EY94,'Footnotes list'!$D$9:$E$58,2,FALSE)=0,\"\",VLOOKUP(EY94,'Footnotes list'!$D$9:$E$58,2,FALSE) ) )","v":""}]
[null,null,"C26","OWN_USE","activities for own final use",null,null,null,null,null,{"$f":"IF(TRIM(J95)=\"\", \"\", IF(VLOOKUP(J95,'Footnotes list'!$D$9:$E$58,2,FALSE)=0,\"\",VLOOKUP(J95,'Footnotes list'!$D$9:$E$58,2,FALSE) ) )","v":""},null,null,null,null,{"$f":"IF(TRIM(O95)=\"\", \"\", IF(VLOOKUP(O95,'Footnotes list'!$D$9:$E$58,2,FALSE)=0,\"\",VLOOKUP(O95,'Footnotes list'!$D$9:$E$58,2,FALSE) ) )","v":""},null,null,null,null,{"$f":"IF(TRIM(T95)=\"\", \"\", IF(VLOOKUP(T95,'Footnotes list'!$D$9:$E$58,2,FALSE)=0,\"\",VLOOKUP(T95,'Footnotes list'!$D$9:$E$58,2,FALSE) ) )","v":""},null,null,null,null,{"$f":"IF(TRIM(Y95)=\"\", \"\", IF(VLOOKUP(Y95,'Footnotes list'!$D$9:$E$58,2,FALSE)=0,\"\",VLOOKUP(Y95,'Footnotes list'!$D$9:$E$58,2,FALSE) ) )","v":""},null,null,null,null,{"$f":"IF(TRIM(AD95)=\"\", \"\", IF(VLOOKUP(AD95,'Footnotes list'!$D$9:$E$58,2,FALSE)=0,\"\",VLOOKUP(AD95,'Footnotes list'!$D$9:$E$58,2,FALSE) ) )","v":""},null,null,null,null,{"$f":"IF(TRIM(AI95)=\"\", \"\", IF(VLOOKUP(AI95,'Footnotes list'!$D$9:$E$58,2,FALSE)=0,\"\",VLOOKUP(AI95,'Footnotes list'!$D$9:$E$58,2,FALSE) ) )","v":""},null,null,null,null,{"$f":"IF(TRIM(AN95)=\"\", \"\", IF(VLOOKUP(AN95,'Footnotes list'!$D$9:$E$58,2,FALSE)=0,\"\",VLOOKUP(AN95,'Footnotes list'!$D$9:$E$58,2,FALSE) ) )","v":""},null,null,null,null,{"$f":"IF(TRIM(AS95)=\"\", \"\", IF(VLOOKUP(AS95,'Footnotes list'!$D$9:$E$58,2,FALSE)=0,\"\",VLOOKUP(AS95,'Footnotes list'!$D$9:$E$58,2,FALSE) ) )","v":""},null,null,null,null,{"$f":"IF(TRIM(AX95)=\"\", \"\", IF(VLOOKUP(AX95,'Footnotes list'!$D$9:$E$58,2,FALSE)=0,\"\",VLOOKUP(AX95,'Footnotes list'!$D$9:$E$58,2,FALSE) ) )","v":""},null,null,null,null,{"$f":"IF(TRIM(BC95)=\"\", \"\", IF(VLOOKUP(BC95,'Footnotes list'!$D$9:$E$58,2,FALSE)=0,\"\",VLOOKUP(BC95,'Footnotes list'!$D$9:$E$58,2,FALSE) ) )","v":""},null,null,null,null,{"$f":"IF(TRIM(BH95)=\"\", \"\", IF(VLOOKUP(BH95,'Footnotes list'!$D$9:$E$58,2,FALSE)=0,\"\",VLOOKUP(BH95,'Footnotes list'!$D$9:$E$58,2,FALSE) ) )","v":""},null,null,null,null,{"$f":"IF(TRIM(BM95)=\"\", \"\", IF(VLOOKUP(BM95,'Footnotes list'!$D$9:$E$58,2,FALSE)=0,\"\",VLOOKUP(BM95,'Footnotes list'!$D$9:$E$58,2,FALSE) ) )","v":""},null,null,null,null,{"$f":"IF(TRIM(BR95)=\"\", \"\", IF(VLOOKUP(BR95,'Footnotes list'!$D$9:$E$58,2,FALSE)=0,\"\",VLOOKUP(BR95,'Footnotes list'!$D$9:$E$58,2,FALSE) ) )","v":""},null,null,null,null,{"$f":"IF(TRIM(BW95)=\"\", \"\", IF(VLOOKUP(BW95,'Footnotes list'!$D$9:$E$58,2,FALSE)=0,\"\",VLOOKUP(BW95,'Footnotes list'!$D$9:$E$58,2,FALSE) ) )","v":""},null,null,null,null,{"$f":"IF(TRIM(CB95)=\"\", \"\", IF(VLOOKUP(CB95,'Footnotes list'!$D$9:$E$58,2,FALSE)=0,\"\",VLOOKUP(CB95,'Footnotes list'!$D$9:$E$58,2,FALSE) ) )","v":""},null,null,null,null,{"$f":"IF(TRIM(CG95)=\"\", \"\", IF(VLOOKUP(CG95,'Footnotes list'!$D$9:$E$58,2,FALSE)=0,\"\",VLOOKUP(CG95,'Footnotes list'!$D$9:$E$58,2,FALSE) ) )","v":""},null,null,null,null,{"$f":"IF(TRIM(CL95)=\"\", \"\", IF(VLOOKUP(CL95,'Footnotes list'!$D$9:$E$58,2,FALSE)=0,\"\",VLOOKUP(CL95,'Footnotes list'!$D$9:$E$58,2,FALSE) ) )","v":""},null,null,null,null,{"$f":"IF(TRIM(CQ95)=\"\", \"\", IF(VLOOKUP(CQ95,'Footnotes list'!$D$9:$E$58,2,FALSE)=0,\"\",VLOOKUP(CQ95,'Footnotes list'!$D$9:$E$58,2,FALSE) ) )","v":""},null,null,null,null,{"$f":"IF(TRIM(CV95)=\"\", \"\", IF(VLOOKUP(CV95,'Footnotes list'!$D$9:$E$58,2,FALSE)=0,\"\",VLOOKUP(CV95,'Footnotes list'!$D$9:$E$58,2,FALSE) ) )","v":""},null,null,null,null,{"$f":"IF(TRIM(DA95)=\"\", \"\", IF(VLOOKUP(DA95,'Footnotes list'!$D$9:$E$58,2,FALSE)=0,\"\",VLOOKUP(DA95,'Footnotes list'!$D$9:$E$58,2,FALSE) ) )","v":""},null,null,null,null,{"$f":"IF(TRIM(DF95)=\"\", \"\", IF(VLOOKUP(DF95,'Footnotes list'!$D$9:$E$58,2,FALSE)=0,\"\",VLOOKUP(DF95,'Footnotes list'!$D$9:$E$58,2,FALSE) ) )","v":""},null,null,null,null,{"$f":"IF(TRIM(DK95)=\"\", \"\", IF(VLOOKUP(DK95,'Footnotes list'!$D$9:$E$58,2,FALSE)=0,\"\",VLOOKUP(DK95,'Footnotes list'!$D$9:$E$58,2,FALSE) ) )","v":""},null,null,null,null,{"$f":"IF(TRIM(DP95)=\"\", \"\", IF(VLOOKUP(DP95,'Footnotes list'!$D$9:$E$58,2,FALSE)=0,\"\",VLOOKUP(DP95,'Footnotes list'!$D$9:$E$58,2,FALSE) ) )","v":""},null,null,null,null,{"$f":"IF(TRIM(DU95)=\"\", \"\", IF(VLOOKUP(DU95,'Footnotes list'!$D$9:$E$58,2,FALSE)=0,\"\",VLOOKUP(DU95,'Footnotes list'!$D$9:$E$58,2,FALSE) ) )","v":""},null,null,null,null,{"$f":"IF(TRIM(DZ95)=\"\", \"\", IF(VLOOKUP(DZ95,'Footnotes list'!$D$9:$E$58,2,FALSE)=0,\"\",VLOOKUP(DZ95,'Footnotes list'!$D$9:$E$58,2,FALSE) ) )","v":""},null,null,null,null,{"$f":"IF(TRIM(EE95)=\"\", \"\", IF(VLOOKUP(EE95,'Footnotes list'!$D$9:$E$58,2,FALSE)=0,\"\",VLOOKUP(EE95,'Footnotes list'!$D$9:$E$58,2,FALSE) ) )","v":""},null,null,null,null,{"$f":"IF(TRIM(EJ95)=\"\", \"\", IF(VLOOKUP(EJ95,'Footnotes list'!$D$9:$E$58,2,FALSE)=0,\"\",VLOOKUP(EJ95,'Footnotes list'!$D$9:$E$58,2,FALSE) ) )","v":""},null,null,null,null,{"$f":"IF(TRIM(EO95)=\"\", \"\", IF(VLOOKUP(EO95,'Footnotes list'!$D$9:$E$58,2,FALSE)=0,\"\",VLOOKUP(EO95,'Footnotes list'!$D$9:$E$58,2,FALSE) ) )","v":""},null,null,null,null,{"$f":"IF(TRIM(ET95)=\"\", \"\", IF(VLOOKUP(ET95,'Footnotes list'!$D$9:$E$58,2,FALSE)=0,\"\",VLOOKUP(ET95,'Footnotes list'!$D$9:$E$58,2,FALSE) ) )","v":""},null,null,null,null,{"$f":"IF(TRIM(EY95)=\"\", \"\", IF(VLOOKUP(EY95,'Footnotes list'!$D$9:$E$58,2,FALSE)=0,\"\",VLOOKUP(EY95,'Footnotes list'!$D$9:$E$58,2,FALSE) ) )","v":""}]
[null,null,"C26","MKT","market activities, including:",null,null,null,null,null,{"$f":"IF(TRIM(J96)=\"\", \"\", IF(VLOOKUP(J96,'Footnotes list'!$D$9:$E$58,2,FALSE)=0,\"\",VLOOKUP(J96,'Footnotes list'!$D$9:$E$58,2,FALSE) ) )","v":""},null,null,null,null,{"$f":"IF(TRIM(O96)=\"\", \"\", IF(VLOOKUP(O96,'Footnotes list'!$D$9:$E$58,2,FALSE)=0,\"\",VLOOKUP(O96,'Footnotes list'!$D$9:$E$58,2,FALSE) ) )","v":""},null,null,null,null,{"$f":"IF(TRIM(T96)=\"\", \"\", IF(VLOOKUP(T96,'Footnotes list'!$D$9:$E$58,2,FALSE)=0,\"\",VLOOKUP(T96,'Footnotes list'!$D$9:$E$58,2,FALSE) ) )","v":""},null,null,null,null,{"$f":"IF(TRIM(Y96)=\"\", \"\", IF(VLOOKUP(Y96,'Footnotes list'!$D$9:$E$58,2,FALSE)=0,\"\",VLOOKUP(Y96,'Footnotes list'!$D$9:$E$58,2,FALSE) ) )","v":""},null,null,null,null,{"$f":"IF(TRIM(AD96)=\"\", \"\", IF(VLOOKUP(AD96,'Footnotes list'!$D$9:$E$58,2,FALSE)=0,\"\",VLOOKUP(AD96,'Footnotes list'!$D$9:$E$58,2,FALSE) ) )","v":""},null,null,null,null,{"$f":"IF(TRIM(AI96)=\"\", \"\", IF(VLOOKUP(AI96,'Footnotes list'!$D$9:$E$58,2,FALSE)=0,\"\",VLOOKUP(AI96,'Footnotes list'!$D$9:$E$58,2,FALSE) ) )","v":""},null,null,null,null,{"$f":"IF(TRIM(AN96)=\"\", \"\", IF(VLOOKUP(AN96,'Footnotes list'!$D$9:$E$58,2,FALSE)=0,\"\",VLOOKUP(AN96,'Footnotes list'!$D$9:$E$58,2,FALSE) ) )","v":""},null,null,null,null,{"$f":"IF(TRIM(AS96)=\"\", \"\", IF(VLOOKUP(AS96,'Footnotes list'!$D$9:$E$58,2,FALSE)=0,\"\",VLOOKUP(AS96,'Footnotes list'!$D$9:$E$58,2,FALSE) ) )","v":""},null,null,null,null,{"$f":"IF(TRIM(AX96)=\"\", \"\", IF(VLOOKUP(AX96,'Footnotes list'!$D$9:$E$58,2,FALSE)=0,\"\",VLOOKUP(AX96,'Footnotes list'!$D$9:$E$58,2,FALSE) ) )","v":""},null,null,null,null,{"$f":"IF(TRIM(BC96)=\"\", \"\", IF(VLOOKUP(BC96,'Footnotes list'!$D$9:$E$58,2,FALSE)=0,\"\",VLOOKUP(BC96,'Footnotes list'!$D$9:$E$58,2,FALSE) ) )","v":""},null,null,null,null,{"$f":"IF(TRIM(BH96)=\"\", \"\", IF(VLOOKUP(BH96,'Footnotes list'!$D$9:$E$58,2,FALSE)=0,\"\",VLOOKUP(BH96,'Footnotes list'!$D$9:$E$58,2,FALSE) ) )","v":""},null,null,null,null,{"$f":"IF(TRIM(BM96)=\"\", \"\", IF(VLOOKUP(BM96,'Footnotes list'!$D$9:$E$58,2,FALSE)=0,\"\",VLOOKUP(BM96,'Footnotes list'!$D$9:$E$58,2,FALSE) ) )","v":""},null,null,null,null,{"$f":"IF(TRIM(BR96)=\"\", \"\", IF(VLOOKUP(BR96,'Footnotes list'!$D$9:$E$58,2,FALSE)=0,\"\",VLOOKUP(BR96,'Footnotes list'!$D$9:$E$58,2,FALSE) ) )","v":""},null,null,null,null,{"$f":"IF(TRIM(BW96)=\"\", \"\", IF(VLOOKUP(BW96,'Footnotes list'!$D$9:$E$58,2,FALSE)=0,\"\",VLOOKUP(BW96,'Footnotes list'!$D$9:$E$58,2,FALSE) ) )","v":""},null,null,null,null,{"$f":"IF(TRIM(CB96)=\"\", \"\", IF(VLOOKUP(CB96,'Footnotes list'!$D$9:$E$58,2,FALSE)=0,\"\",VLOOKUP(CB96,'Footnotes list'!$D$9:$E$58,2,FALSE) ) )","v":""},null,null,null,null,{"$f":"IF(TRIM(CG96)=\"\", \"\", IF(VLOOKUP(CG96,'Footnotes list'!$D$9:$E$58,2,FALSE)=0,\"\",VLOOKUP(CG96,'Footnotes list'!$D$9:$E$58,2,FALSE) ) )","v":""},null,null,null,null,{"$f":"IF(TRIM(CL96)=\"\", \"\", IF(VLOOKUP(CL96,'Footnotes list'!$D$9:$E$58,2,FALSE)=0,\"\",VLOOKUP(CL96,'Footnotes list'!$D$9:$E$58,2,FALSE) ) )","v":""},null,null,null,null,{"$f":"IF(TRIM(CQ96)=\"\", \"\", IF(VLOOKUP(CQ96,'Footnotes list'!$D$9:$E$58,2,FALSE)=0,\"\",VLOOKUP(CQ96,'Footnotes list'!$D$9:$E$58,2,FALSE) ) )","v":""},null,null,null,null,{"$f":"IF(TRIM(CV96)=\"\", \"\", IF(VLOOKUP(CV96,'Footnotes list'!$D$9:$E$58,2,FALSE)=0,\"\",VLOOKUP(CV96,'Footnotes list'!$D$9:$E$58,2,FALSE) ) )","v":""},null,null,null,null,{"$f":"IF(TRIM(DA96)=\"\", \"\", IF(VLOOKUP(DA96,'Footnotes list'!$D$9:$E$58,2,FALSE)=0,\"\",VLOOKUP(DA96,'Footnotes list'!$D$9:$E$58,2,FALSE) ) )","v":""},null,null,null,null,{"$f":"IF(TRIM(DF96)=\"\", \"\", IF(VLOOKUP(DF96,'Footnotes list'!$D$9:$E$58,2,FALSE)=0,\"\",VLOOKUP(DF96,'Footnotes list'!$D$9:$E$58,2,FALSE) ) )","v":""},null,null,null,null,{"$f":"IF(TRIM(DK96)=\"\", \"\", IF(VLOOKUP(DK96,'Footnotes list'!$D$9:$E$58,2,FALSE)=0,\"\",VLOOKUP(DK96,'Footnotes list'!$D$9:$E$58,2,FALSE) ) )","v":""},null,null,null,null,{"$f":"IF(TRIM(DP96)=\"\", \"\", IF(VLOOKUP(DP96,'Footnotes list'!$D$9:$E$58,2,FALSE)=0,\"\",VLOOKUP(DP96,'Footnotes list'!$D$9:$E$58,2,FALSE) ) )","v":""},null,null,null,null,{"$f":"IF(TRIM(DU96)=\"\", \"\", IF(VLOOKUP(DU96,'Footnotes list'!$D$9:$E$58,2,FALSE)=0,\"\",VLOOKUP(DU96,'Footnotes list'!$D$9:$E$58,2,FALSE) ) )","v":""},null,null,null,null,{"$f":"IF(TRIM(DZ96)=\"\", \"\", IF(VLOOKUP(DZ96,'Footnotes list'!$D$9:$E$58,2,FALSE)=0,\"\",VLOOKUP(DZ96,'Footnotes list'!$D$9:$E$58,2,FALSE) ) )","v":""},null,null,null,null,{"$f":"IF(TRIM(EE96)=\"\", \"\", IF(VLOOKUP(EE96,'Footnotes list'!$D$9:$E$58,2,FALSE)=0,\"\",VLOOKUP(EE96,'Footnotes list'!$D$9:$E$58,2,FALSE) ) )","v":""},null,null,null,null,{"$f":"IF(TRIM(EJ96)=\"\", \"\", IF(VLOOKUP(EJ96,'Footnotes list'!$D$9:$E$58,2,FALSE)=0,\"\",VLOOKUP(EJ96,'Footnotes list'!$D$9:$E$58,2,FALSE) ) )","v":""},null,null,null,null,{"$f":"IF(TRIM(EO96)=\"\", \"\", IF(VLOOKUP(EO96,'Footnotes list'!$D$9:$E$58,2,FALSE)=0,\"\",VLOOKUP(EO96,'Footnotes list'!$D$9:$E$58,2,FALSE) ) )","v":""},null,null,null,null,{"$f":"IF(TRIM(ET96)=\"\", \"\", IF(VLOOKUP(ET96,'Footnotes list'!$D$9:$E$58,2,FALSE)=0,\"\",VLOOKUP(ET96,'Footnotes list'!$D$9:$E$58,2,FALSE) ) )","v":""},null,null,null,null,{"$f":"IF(TRIM(EY96)=\"\", \"\", IF(VLOOKUP(EY96,'Footnotes list'!$D$9:$E$58,2,FALSE)=0,\"\",VLOOKUP(EY96,'Footnotes list'!$D$9:$E$58,2,FALSE) ) )","v":""}]
[null,null,"C26","ES_CS","environmental specific services",null,null,null,null,null,{"$f":"IF(TRIM(J97)=\"\", \"\", IF(VLOOKUP(J97,'Footnotes list'!$D$9:$E$58,2,FALSE)=0,\"\",VLOOKUP(J97,'Footnotes list'!$D$9:$E$58,2,FALSE) ) )","v":""},null,null,null,null,{"$f":"IF(TRIM(O97)=\"\", \"\", IF(VLOOKUP(O97,'Footnotes list'!$D$9:$E$58,2,FALSE)=0,\"\",VLOOKUP(O97,'Footnotes list'!$D$9:$E$58,2,FALSE) ) )","v":""},null,null,null,null,{"$f":"IF(TRIM(T97)=\"\", \"\", IF(VLOOKUP(T97,'Footnotes list'!$D$9:$E$58,2,FALSE)=0,\"\",VLOOKUP(T97,'Footnotes list'!$D$9:$E$58,2,FALSE) ) )","v":""},null,null,null,null,{"$f":"IF(TRIM(Y97)=\"\", \"\", IF(VLOOKUP(Y97,'Footnotes list'!$D$9:$E$58,2,FALSE)=0,\"\",VLOOKUP(Y97,'Footnotes list'!$D$9:$E$58,2,FALSE) ) )","v":""},null,null,null,null,{"$f":"IF(TRIM(AD97)=\"\", \"\", IF(VLOOKUP(AD97,'Footnotes list'!$D$9:$E$58,2,FALSE)=0,\"\",VLOOKUP(AD97,'Footnotes list'!$D$9:$E$58,2,FALSE) ) )","v":""},null,null,null,null,{"$f":"IF(TRIM(AI97)=\"\", \"\", IF(VLOOKUP(AI97,'Footnotes list'!$D$9:$E$58,2,FALSE)=0,\"\",VLOOKUP(AI97,'Footnotes list'!$D$9:$E$58,2,FALSE) ) )","v":""},null,null,null,null,{"$f":"IF(TRIM(AN97)=\"\", \"\", IF(VLOOKUP(AN97,'Footnotes list'!$D$9:$E$58,2,FALSE)=0,\"\",VLOOKUP(AN97,'Footnotes list'!$D$9:$E$58,2,FALSE) ) )","v":""},null,null,null,null,{"$f":"IF(TRIM(AS97)=\"\", \"\", IF(VLOOKUP(AS97,'Footnotes list'!$D$9:$E$58,2,FALSE)=0,\"\",VLOOKUP(AS97,'Footnotes list'!$D$9:$E$58,2,FALSE) ) )","v":""},null,null,null,null,{"$f":"IF(TRIM(AX97)=\"\", \"\", IF(VLOOKUP(AX97,'Footnotes list'!$D$9:$E$58,2,FALSE)=0,\"\",VLOOKUP(AX97,'Footnotes list'!$D$9:$E$58,2,FALSE) ) )","v":""},null,null,null,null,{"$f":"IF(TRIM(BC97)=\"\", \"\", IF(VLOOKUP(BC97,'Footnotes list'!$D$9:$E$58,2,FALSE)=0,\"\",VLOOKUP(BC97,'Footnotes list'!$D$9:$E$58,2,FALSE) ) )","v":""},null,null,null,null,{"$f":"IF(TRIM(BH97)=\"\", \"\", IF(VLOOKUP(BH97,'Footnotes list'!$D$9:$E$58,2,FALSE)=0,\"\",VLOOKUP(BH97,'Footnotes list'!$D$9:$E$58,2,FALSE) ) )","v":""},null,null,null,null,{"$f":"IF(TRIM(BM97)=\"\", \"\", IF(VLOOKUP(BM97,'Footnotes list'!$D$9:$E$58,2,FALSE)=0,\"\",VLOOKUP(BM97,'Footnotes list'!$D$9:$E$58,2,FALSE) ) )","v":""},null,null,null,null,{"$f":"IF(TRIM(BR97)=\"\", \"\", IF(VLOOKUP(BR97,'Footnotes list'!$D$9:$E$58,2,FALSE)=0,\"\",VLOOKUP(BR97,'Footnotes list'!$D$9:$E$58,2,FALSE) ) )","v":""},null,null,null,null,{"$f":"IF(TRIM(BW97)=\"\", \"\", IF(VLOOKUP(BW97,'Footnotes list'!$D$9:$E$58,2,FALSE)=0,\"\",VLOOKUP(BW97,'Footnotes list'!$D$9:$E$58,2,FALSE) ) )","v":""},null,null,null,null,{"$f":"IF(TRIM(CB97)=\"\", \"\", IF(VLOOKUP(CB97,'Footnotes list'!$D$9:$E$58,2,FALSE)=0,\"\",VLOOKUP(CB97,'Footnotes list'!$D$9:$E$58,2,FALSE) ) )","v":""},null,null,null,null,{"$f":"IF(TRIM(CG97)=\"\", \"\", IF(VLOOKUP(CG97,'Footnotes list'!$D$9:$E$58,2,FALSE)=0,\"\",VLOOKUP(CG97,'Footnotes list'!$D$9:$E$58,2,FALSE) ) )","v":""},null,null,null,null,{"$f":"IF(TRIM(CL97)=\"\", \"\", IF(VLOOKUP(CL97,'Footnotes list'!$D$9:$E$58,2,FALSE)=0,\"\",VLOOKUP(CL97,'Footnotes list'!$D$9:$E$58,2,FALSE) ) )","v":""},null,null,null,null,{"$f":"IF(TRIM(CQ97)=\"\", \"\", IF(VLOOKUP(CQ97,'Footnotes list'!$D$9:$E$58,2,FALSE)=0,\"\",VLOOKUP(CQ97,'Footnotes list'!$D$9:$E$58,2,FALSE) ) )","v":""},null,null,null,null,{"$f":"IF(TRIM(CV97)=\"\", \"\", IF(VLOOKUP(CV97,'Footnotes list'!$D$9:$E$58,2,FALSE)=0,\"\",VLOOKUP(CV97,'Footnotes list'!$D$9:$E$58,2,FALSE) ) )","v":""},null,null,null,null,{"$f":"IF(TRIM(DA97)=\"\", \"\", IF(VLOOKUP(DA97,'Footnotes list'!$D$9:$E$58,2,FALSE)=0,\"\",VLOOKUP(DA97,'Footnotes list'!$D$9:$E$58,2,FALSE) ) )","v":""},null,null,null,null,{"$f":"IF(TRIM(DF97)=\"\", \"\", IF(VLOOKUP(DF97,'Footnotes list'!$D$9:$E$58,2,FALSE)=0,\"\",VLOOKUP(DF97,'Footnotes list'!$D$9:$E$58,2,FALSE) ) )","v":""},null,null,null,null,{"$f":"IF(TRIM(DK97)=\"\", \"\", IF(VLOOKUP(DK97,'Footnotes list'!$D$9:$E$58,2,FALSE)=0,\"\",VLOOKUP(DK97,'Footnotes list'!$D$9:$E$58,2,FALSE) ) )","v":""},null,null,null,null,{"$f":"IF(TRIM(DP97)=\"\", \"\", IF(VLOOKUP(DP97,'Footnotes list'!$D$9:$E$58,2,FALSE)=0,\"\",VLOOKUP(DP97,'Footnotes list'!$D$9:$E$58,2,FALSE) ) )","v":""},null,null,null,null,{"$f":"IF(TRIM(DU97)=\"\", \"\", IF(VLOOKUP(DU97,'Footnotes list'!$D$9:$E$58,2,FALSE)=0,\"\",VLOOKUP(DU97,'Footnotes list'!$D$9:$E$58,2,FALSE) ) )","v":""},null,null,null,null,{"$f":"IF(TRIM(DZ97)=\"\", \"\", IF(VLOOKUP(DZ97,'Footnotes list'!$D$9:$E$58,2,FALSE)=0,\"\",VLOOKUP(DZ97,'Footnotes list'!$D$9:$E$58,2,FALSE) ) )","v":""},null,null,null,null,{"$f":"IF(TRIM(EE97)=\"\", \"\", IF(VLOOKUP(EE97,'Footnotes list'!$D$9:$E$58,2,FALSE)=0,\"\",VLOOKUP(EE97,'Footnotes list'!$D$9:$E$58,2,FALSE) ) )","v":""},null,null,null,null,{"$f":"IF(TRIM(EJ97)=\"\", \"\", IF(VLOOKUP(EJ97,'Footnotes list'!$D$9:$E$58,2,FALSE)=0,\"\",VLOOKUP(EJ97,'Footnotes list'!$D$9:$E$58,2,FALSE) ) )","v":""},null,null,null,null,{"$f":"IF(TRIM(EO97)=\"\", \"\", IF(VLOOKUP(EO97,'Footnotes list'!$D$9:$E$58,2,FALSE)=0,\"\",VLOOKUP(EO97,'Footnotes list'!$D$9:$E$58,2,FALSE) ) )","v":""},null,null,null,null,{"$f":"IF(TRIM(ET97)=\"\", \"\", IF(VLOOKUP(ET97,'Footnotes list'!$D$9:$E$58,2,FALSE)=0,\"\",VLOOKUP(ET97,'Footnotes list'!$D$9:$E$58,2,FALSE) ) )","v":""},null,null,null,null,{"$f":"IF(TRIM(EY97)=\"\", \"\", IF(VLOOKUP(EY97,'Footnotes list'!$D$9:$E$58,2,FALSE)=0,\"\",VLOOKUP(EY97,'Footnotes list'!$D$9:$E$58,2,FALSE) ) )","v":""}]
[null,null,"C26","C_REP","cleaner and resource efficient products",null,null,null,null,null,{"$f":"IF(TRIM(J98)=\"\", \"\", IF(VLOOKUP(J98,'Footnotes list'!$D$9:$E$58,2,FALSE)=0,\"\",VLOOKUP(J98,'Footnotes list'!$D$9:$E$58,2,FALSE) ) )","v":""},null,null,null,null,{"$f":"IF(TRIM(O98)=\"\", \"\", IF(VLOOKUP(O98,'Footnotes list'!$D$9:$E$58,2,FALSE)=0,\"\",VLOOKUP(O98,'Footnotes list'!$D$9:$E$58,2,FALSE) ) )","v":""},null,null,null,null,{"$f":"IF(TRIM(T98)=\"\", \"\", IF(VLOOKUP(T98,'Footnotes list'!$D$9:$E$58,2,FALSE)=0,\"\",VLOOKUP(T98,'Footnotes list'!$D$9:$E$58,2,FALSE) ) )","v":""},null,null,null,null,{"$f":"IF(TRIM(Y98)=\"\", \"\", IF(VLOOKUP(Y98,'Footnotes list'!$D$9:$E$58,2,FALSE)=0,\"\",VLOOKUP(Y98,'Footnotes list'!$D$9:$E$58,2,FALSE) ) )","v":""},null,null,null,null,{"$f":"IF(TRIM(AD98)=\"\", \"\", IF(VLOOKUP(AD98,'Footnotes list'!$D$9:$E$58,2,FALSE)=0,\"\",VLOOKUP(AD98,'Footnotes list'!$D$9:$E$58,2,FALSE) ) )","v":""},null,null,null,null,{"$f":"IF(TRIM(AI98)=\"\", \"\", IF(VLOOKUP(AI98,'Footnotes list'!$D$9:$E$58,2,FALSE)=0,\"\",VLOOKUP(AI98,'Footnotes list'!$D$9:$E$58,2,FALSE) ) )","v":""},null,null,null,null,{"$f":"IF(TRIM(AN98)=\"\", \"\", IF(VLOOKUP(AN98,'Footnotes list'!$D$9:$E$58,2,FALSE)=0,\"\",VLOOKUP(AN98,'Footnotes list'!$D$9:$E$58,2,FALSE) ) )","v":""},null,null,null,null,{"$f":"IF(TRIM(AS98)=\"\", \"\", IF(VLOOKUP(AS98,'Footnotes list'!$D$9:$E$58,2,FALSE)=0,\"\",VLOOKUP(AS98,'Footnotes list'!$D$9:$E$58,2,FALSE) ) )","v":""},null,null,null,null,{"$f":"IF(TRIM(AX98)=\"\", \"\", IF(VLOOKUP(AX98,'Footnotes list'!$D$9:$E$58,2,FALSE)=0,\"\",VLOOKUP(AX98,'Footnotes list'!$D$9:$E$58,2,FALSE) ) )","v":""},null,null,null,null,{"$f":"IF(TRIM(BC98)=\"\", \"\", IF(VLOOKUP(BC98,'Footnotes list'!$D$9:$E$58,2,FALSE)=0,\"\",VLOOKUP(BC98,'Footnotes list'!$D$9:$E$58,2,FALSE) ) )","v":""},null,null,null,null,{"$f":"IF(TRIM(BH98)=\"\", \"\", IF(VLOOKUP(BH98,'Footnotes list'!$D$9:$E$58,2,FALSE)=0,\"\",VLOOKUP(BH98,'Footnotes list'!$D$9:$E$58,2,FALSE) ) )","v":""},null,null,null,null,{"$f":"IF(TRIM(BM98)=\"\", \"\", IF(VLOOKUP(BM98,'Footnotes list'!$D$9:$E$58,2,FALSE)=0,\"\",VLOOKUP(BM98,'Footnotes list'!$D$9:$E$58,2,FALSE) ) )","v":""},null,null,null,null,{"$f":"IF(TRIM(BR98)=\"\", \"\", IF(VLOOKUP(BR98,'Footnotes list'!$D$9:$E$58,2,FALSE)=0,\"\",VLOOKUP(BR98,'Footnotes list'!$D$9:$E$58,2,FALSE) ) )","v":""},null,null,null,null,{"$f":"IF(TRIM(BW98)=\"\", \"\", IF(VLOOKUP(BW98,'Footnotes list'!$D$9:$E$58,2,FALSE)=0,\"\",VLOOKUP(BW98,'Footnotes list'!$D$9:$E$58,2,FALSE) ) )","v":""},null,null,null,null,{"$f":"IF(TRIM(CB98)=\"\", \"\", IF(VLOOKUP(CB98,'Footnotes list'!$D$9:$E$58,2,FALSE)=0,\"\",VLOOKUP(CB98,'Footnotes list'!$D$9:$E$58,2,FALSE) ) )","v":""},null,null,null,null,{"$f":"IF(TRIM(CG98)=\"\", \"\", IF(VLOOKUP(CG98,'Footnotes list'!$D$9:$E$58,2,FALSE)=0,\"\",VLOOKUP(CG98,'Footnotes list'!$D$9:$E$58,2,FALSE) ) )","v":""},null,null,null,null,{"$f":"IF(TRIM(CL98)=\"\", \"\", IF(VLOOKUP(CL98,'Footnotes list'!$D$9:$E$58,2,FALSE)=0,\"\",VLOOKUP(CL98,'Footnotes list'!$D$9:$E$58,2,FALSE) ) )","v":""},null,null,null,null,{"$f":"IF(TRIM(CQ98)=\"\", \"\", IF(VLOOKUP(CQ98,'Footnotes list'!$D$9:$E$58,2,FALSE)=0,\"\",VLOOKUP(CQ98,'Footnotes list'!$D$9:$E$58,2,FALSE) ) )","v":""},null,null,null,null,{"$f":"IF(TRIM(CV98)=\"\", \"\", IF(VLOOKUP(CV98,'Footnotes list'!$D$9:$E$58,2,FALSE)=0,\"\",VLOOKUP(CV98,'Footnotes list'!$D$9:$E$58,2,FALSE) ) )","v":""},null,null,null,null,{"$f":"IF(TRIM(DA98)=\"\", \"\", IF(VLOOKUP(DA98,'Footnotes list'!$D$9:$E$58,2,FALSE)=0,\"\",VLOOKUP(DA98,'Footnotes list'!$D$9:$E$58,2,FALSE) ) )","v":""},null,null,null,null,{"$f":"IF(TRIM(DF98)=\"\", \"\", IF(VLOOKUP(DF98,'Footnotes list'!$D$9:$E$58,2,FALSE)=0,\"\",VLOOKUP(DF98,'Footnotes list'!$D$9:$E$58,2,FALSE) ) )","v":""},null,null,null,null,{"$f":"IF(TRIM(DK98)=\"\", \"\", IF(VLOOKUP(DK98,'Footnotes list'!$D$9:$E$58,2,FALSE)=0,\"\",VLOOKUP(DK98,'Footnotes list'!$D$9:$E$58,2,FALSE) ) )","v":""},null,null,null,null,{"$f":"IF(TRIM(DP98)=\"\", \"\", IF(VLOOKUP(DP98,'Footnotes list'!$D$9:$E$58,2,FALSE)=0,\"\",VLOOKUP(DP98,'Footnotes list'!$D$9:$E$58,2,FALSE) ) )","v":""},null,null,null,null,{"$f":"IF(TRIM(DU98)=\"\", \"\", IF(VLOOKUP(DU98,'Footnotes list'!$D$9:$E$58,2,FALSE)=0,\"\",VLOOKUP(DU98,'Footnotes list'!$D$9:$E$58,2,FALSE) ) )","v":""},null,null,null,null,{"$f":"IF(TRIM(DZ98)=\"\", \"\", IF(VLOOKUP(DZ98,'Footnotes list'!$D$9:$E$58,2,FALSE)=0,\"\",VLOOKUP(DZ98,'Footnotes list'!$D$9:$E$58,2,FALSE) ) )","v":""},null,null,null,null,{"$f":"IF(TRIM(EE98)=\"\", \"\", IF(VLOOKUP(EE98,'Footnotes list'!$D$9:$E$58,2,FALSE)=0,\"\",VLOOKUP(EE98,'Footnotes list'!$D$9:$E$58,2,FALSE) ) )","v":""},null,null,null,null,{"$f":"IF(TRIM(EJ98)=\"\", \"\", IF(VLOOKUP(EJ98,'Footnotes list'!$D$9:$E$58,2,FALSE)=0,\"\",VLOOKUP(EJ98,'Footnotes list'!$D$9:$E$58,2,FALSE) ) )","v":""},null,null,null,null,{"$f":"IF(TRIM(EO98)=\"\", \"\", IF(VLOOKUP(EO98,'Footnotes list'!$D$9:$E$58,2,FALSE)=0,\"\",VLOOKUP(EO98,'Footnotes list'!$D$9:$E$58,2,FALSE) ) )","v":""},null,null,null,null,{"$f":"IF(TRIM(ET98)=\"\", \"\", IF(VLOOKUP(ET98,'Footnotes list'!$D$9:$E$58,2,FALSE)=0,\"\",VLOOKUP(ET98,'Footnotes list'!$D$9:$E$58,2,FALSE) ) )","v":""},null,null,null,null,{"$f":"IF(TRIM(EY98)=\"\", \"\", IF(VLOOKUP(EY98,'Footnotes list'!$D$9:$E$58,2,FALSE)=0,\"\",VLOOKUP(EY98,'Footnotes list'!$D$9:$E$58,2,FALSE) ) )","v":""}]
[null,null,"C27","TOT_EGSS","Total C27 - Manufacture of electrical equipment, of which:",null,null,null,null,null,{"$f":"IF(TRIM(J99)=\"\", \"\", IF(VLOOKUP(J99,'Footnotes list'!$D$9:$E$58,2,FALSE)=0,\"\",VLOOKUP(J99,'Footnotes list'!$D$9:$E$58,2,FALSE) ) )","v":""},null,null,null,null,{"$f":"IF(TRIM(O99)=\"\", \"\", IF(VLOOKUP(O99,'Footnotes list'!$D$9:$E$58,2,FALSE)=0,\"\",VLOOKUP(O99,'Footnotes list'!$D$9:$E$58,2,FALSE) ) )","v":""},null,null,null,null,{"$f":"IF(TRIM(T99)=\"\", \"\", IF(VLOOKUP(T99,'Footnotes list'!$D$9:$E$58,2,FALSE)=0,\"\",VLOOKUP(T99,'Footnotes list'!$D$9:$E$58,2,FALSE) ) )","v":""},null,null,null,null,{"$f":"IF(TRIM(Y99)=\"\", \"\", IF(VLOOKUP(Y99,'Footnotes list'!$D$9:$E$58,2,FALSE)=0,\"\",VLOOKUP(Y99,'Footnotes list'!$D$9:$E$58,2,FALSE) ) )","v":""},null,null,null,null,{"$f":"IF(TRIM(AD99)=\"\", \"\", IF(VLOOKUP(AD99,'Footnotes list'!$D$9:$E$58,2,FALSE)=0,\"\",VLOOKUP(AD99,'Footnotes list'!$D$9:$E$58,2,FALSE) ) )","v":""},null,null,null,null,{"$f":"IF(TRIM(AI99)=\"\", \"\", IF(VLOOKUP(AI99,'Footnotes list'!$D$9:$E$58,2,FALSE)=0,\"\",VLOOKUP(AI99,'Footnotes list'!$D$9:$E$58,2,FALSE) ) )","v":""},null,null,null,null,{"$f":"IF(TRIM(AN99)=\"\", \"\", IF(VLOOKUP(AN99,'Footnotes list'!$D$9:$E$58,2,FALSE)=0,\"\",VLOOKUP(AN99,'Footnotes list'!$D$9:$E$58,2,FALSE) ) )","v":""},null,null,null,null,{"$f":"IF(TRIM(AS99)=\"\", \"\", IF(VLOOKUP(AS99,'Footnotes list'!$D$9:$E$58,2,FALSE)=0,\"\",VLOOKUP(AS99,'Footnotes list'!$D$9:$E$58,2,FALSE) ) )","v":""},null,null,null,null,{"$f":"IF(TRIM(AX99)=\"\", \"\", IF(VLOOKUP(AX99,'Footnotes list'!$D$9:$E$58,2,FALSE)=0,\"\",VLOOKUP(AX99,'Footnotes list'!$D$9:$E$58,2,FALSE) ) )","v":""},null,null,null,null,{"$f":"IF(TRIM(BC99)=\"\", \"\", IF(VLOOKUP(BC99,'Footnotes list'!$D$9:$E$58,2,FALSE)=0,\"\",VLOOKUP(BC99,'Footnotes list'!$D$9:$E$58,2,FALSE) ) )","v":""},null,null,null,null,{"$f":"IF(TRIM(BH99)=\"\", \"\", IF(VLOOKUP(BH99,'Footnotes list'!$D$9:$E$58,2,FALSE)=0,\"\",VLOOKUP(BH99,'Footnotes list'!$D$9:$E$58,2,FALSE) ) )","v":""},null,null,null,null,{"$f":"IF(TRIM(BM99)=\"\", \"\", IF(VLOOKUP(BM99,'Footnotes list'!$D$9:$E$58,2,FALSE)=0,\"\",VLOOKUP(BM99,'Footnotes list'!$D$9:$E$58,2,FALSE) ) )","v":""},null,null,null,null,{"$f":"IF(TRIM(BR99)=\"\", \"\", IF(VLOOKUP(BR99,'Footnotes list'!$D$9:$E$58,2,FALSE)=0,\"\",VLOOKUP(BR99,'Footnotes list'!$D$9:$E$58,2,FALSE) ) )","v":""},null,null,null,null,{"$f":"IF(TRIM(BW99)=\"\", \"\", IF(VLOOKUP(BW99,'Footnotes list'!$D$9:$E$58,2,FALSE)=0,\"\",VLOOKUP(BW99,'Footnotes list'!$D$9:$E$58,2,FALSE) ) )","v":""},null,null,null,null,{"$f":"IF(TRIM(CB99)=\"\", \"\", IF(VLOOKUP(CB99,'Footnotes list'!$D$9:$E$58,2,FALSE)=0,\"\",VLOOKUP(CB99,'Footnotes list'!$D$9:$E$58,2,FALSE) ) )","v":""},null,null,null,null,{"$f":"IF(TRIM(CG99)=\"\", \"\", IF(VLOOKUP(CG99,'Footnotes list'!$D$9:$E$58,2,FALSE)=0,\"\",VLOOKUP(CG99,'Footnotes list'!$D$9:$E$58,2,FALSE) ) )","v":""},null,null,null,null,{"$f":"IF(TRIM(CL99)=\"\", \"\", IF(VLOOKUP(CL99,'Footnotes list'!$D$9:$E$58,2,FALSE)=0,\"\",VLOOKUP(CL99,'Footnotes list'!$D$9:$E$58,2,FALSE) ) )","v":""},null,null,null,null,{"$f":"IF(TRIM(CQ99)=\"\", \"\", IF(VLOOKUP(CQ99,'Footnotes list'!$D$9:$E$58,2,FALSE)=0,\"\",VLOOKUP(CQ99,'Footnotes list'!$D$9:$E$58,2,FALSE) ) )","v":""},null,null,null,null,{"$f":"IF(TRIM(CV99)=\"\", \"\", IF(VLOOKUP(CV99,'Footnotes list'!$D$9:$E$58,2,FALSE)=0,\"\",VLOOKUP(CV99,'Footnotes list'!$D$9:$E$58,2,FALSE) ) )","v":""},null,null,null,null,{"$f":"IF(TRIM(DA99)=\"\", \"\", IF(VLOOKUP(DA99,'Footnotes list'!$D$9:$E$58,2,FALSE)=0,\"\",VLOOKUP(DA99,'Footnotes list'!$D$9:$E$58,2,FALSE) ) )","v":""},null,null,null,null,{"$f":"IF(TRIM(DF99)=\"\", \"\", IF(VLOOKUP(DF99,'Footnotes list'!$D$9:$E$58,2,FALSE)=0,\"\",VLOOKUP(DF99,'Footnotes list'!$D$9:$E$58,2,FALSE) ) )","v":""},null,null,null,null,{"$f":"IF(TRIM(DK99)=\"\", \"\", IF(VLOOKUP(DK99,'Footnotes list'!$D$9:$E$58,2,FALSE)=0,\"\",VLOOKUP(DK99,'Footnotes list'!$D$9:$E$58,2,FALSE) ) )","v":""},null,null,null,null,{"$f":"IF(TRIM(DP99)=\"\", \"\", IF(VLOOKUP(DP99,'Footnotes list'!$D$9:$E$58,2,FALSE)=0,\"\",VLOOKUP(DP99,'Footnotes list'!$D$9:$E$58,2,FALSE) ) )","v":""},null,null,null,null,{"$f":"IF(TRIM(DU99)=\"\", \"\", IF(VLOOKUP(DU99,'Footnotes list'!$D$9:$E$58,2,FALSE)=0,\"\",VLOOKUP(DU99,'Footnotes list'!$D$9:$E$58,2,FALSE) ) )","v":""},null,null,null,null,{"$f":"IF(TRIM(DZ99)=\"\", \"\", IF(VLOOKUP(DZ99,'Footnotes list'!$D$9:$E$58,2,FALSE)=0,\"\",VLOOKUP(DZ99,'Footnotes list'!$D$9:$E$58,2,FALSE) ) )","v":""},null,null,null,null,{"$f":"IF(TRIM(EE99)=\"\", \"\", IF(VLOOKUP(EE99,'Footnotes list'!$D$9:$E$58,2,FALSE)=0,\"\",VLOOKUP(EE99,'Footnotes list'!$D$9:$E$58,2,FALSE) ) )","v":""},null,null,null,null,{"$f":"IF(TRIM(EJ99)=\"\", \"\", IF(VLOOKUP(EJ99,'Footnotes list'!$D$9:$E$58,2,FALSE)=0,\"\",VLOOKUP(EJ99,'Footnotes list'!$D$9:$E$58,2,FALSE) ) )","v":""},null,null,null,null,{"$f":"IF(TRIM(EO99)=\"\", \"\", IF(VLOOKUP(EO99,'Footnotes list'!$D$9:$E$58,2,FALSE)=0,\"\",VLOOKUP(EO99,'Footnotes list'!$D$9:$E$58,2,FALSE) ) )","v":""},null,null,null,null,{"$f":"IF(TRIM(ET99)=\"\", \"\", IF(VLOOKUP(ET99,'Footnotes list'!$D$9:$E$58,2,FALSE)=0,\"\",VLOOKUP(ET99,'Footnotes list'!$D$9:$E$58,2,FALSE) ) )","v":""},null,null,null,null,{"$f":"IF(TRIM(EY99)=\"\", \"\", IF(VLOOKUP(EY99,'Footnotes list'!$D$9:$E$58,2,FALSE)=0,\"\",VLOOKUP(EY99,'Footnotes list'!$D$9:$E$58,2,FALSE) ) )","v":""}]
[null,null,"C27","ANC","ancillary activities",null,null,null,null,null,{"$f":"IF(TRIM(J100)=\"\", \"\", IF(VLOOKUP(J100,'Footnotes list'!$D$9:$E$58,2,FALSE)=0,\"\",VLOOKUP(J100,'Footnotes list'!$D$9:$E$58,2,FALSE) ) )","v":""},null,null,null,null,{"$f":"IF(TRIM(O100)=\"\", \"\", IF(VLOOKUP(O100,'Footnotes list'!$D$9:$E$58,2,FALSE)=0,\"\",VLOOKUP(O100,'Footnotes list'!$D$9:$E$58,2,FALSE) ) )","v":""},null,null,null,null,{"$f":"IF(TRIM(T100)=\"\", \"\", IF(VLOOKUP(T100,'Footnotes list'!$D$9:$E$58,2,FALSE)=0,\"\",VLOOKUP(T100,'Footnotes list'!$D$9:$E$58,2,FALSE) ) )","v":""},null,null,null,null,{"$f":"IF(TRIM(Y100)=\"\", \"\", IF(VLOOKUP(Y100,'Footnotes list'!$D$9:$E$58,2,FALSE)=0,\"\",VLOOKUP(Y100,'Footnotes list'!$D$9:$E$58,2,FALSE) ) )","v":""},null,null,null,null,{"$f":"IF(TRIM(AD100)=\"\", \"\", IF(VLOOKUP(AD100,'Footnotes list'!$D$9:$E$58,2,FALSE)=0,\"\",VLOOKUP(AD100,'Footnotes list'!$D$9:$E$58,2,FALSE) ) )","v":""},null,null,null,null,{"$f":"IF(TRIM(AI100)=\"\", \"\", IF(VLOOKUP(AI100,'Footnotes list'!$D$9:$E$58,2,FALSE)=0,\"\",VLOOKUP(AI100,'Footnotes list'!$D$9:$E$58,2,FALSE) ) )","v":""},null,null,null,null,{"$f":"IF(TRIM(AN100)=\"\", \"\", IF(VLOOKUP(AN100,'Footnotes list'!$D$9:$E$58,2,FALSE)=0,\"\",VLOOKUP(AN100,'Footnotes list'!$D$9:$E$58,2,FALSE) ) )","v":""},null,null,null,null,{"$f":"IF(TRIM(AS100)=\"\", \"\", IF(VLOOKUP(AS100,'Footnotes list'!$D$9:$E$58,2,FALSE)=0,\"\",VLOOKUP(AS100,'Footnotes list'!$D$9:$E$58,2,FALSE) ) )","v":""},null,null,null,null,{"$f":"IF(TRIM(AX100)=\"\", \"\", IF(VLOOKUP(AX100,'Footnotes list'!$D$9:$E$58,2,FALSE)=0,\"\",VLOOKUP(AX100,'Footnotes list'!$D$9:$E$58,2,FALSE) ) )","v":""},null,null,null,null,{"$f":"IF(TRIM(BC100)=\"\", \"\", IF(VLOOKUP(BC100,'Footnotes list'!$D$9:$E$58,2,FALSE)=0,\"\",VLOOKUP(BC100,'Footnotes list'!$D$9:$E$58,2,FALSE) ) )","v":""},null,null,null,null,{"$f":"IF(TRIM(BH100)=\"\", \"\", IF(VLOOKUP(BH100,'Footnotes list'!$D$9:$E$58,2,FALSE)=0,\"\",VLOOKUP(BH100,'Footnotes list'!$D$9:$E$58,2,FALSE) ) )","v":""},null,null,null,null,{"$f":"IF(TRIM(BM100)=\"\", \"\", IF(VLOOKUP(BM100,'Footnotes list'!$D$9:$E$58,2,FALSE)=0,\"\",VLOOKUP(BM100,'Footnotes list'!$D$9:$E$58,2,FALSE) ) )","v":""},null,null,null,null,{"$f":"IF(TRIM(BR100)=\"\", \"\", IF(VLOOKUP(BR100,'Footnotes list'!$D$9:$E$58,2,FALSE)=0,\"\",VLOOKUP(BR100,'Footnotes list'!$D$9:$E$58,2,FALSE) ) )","v":""},null,null,null,null,{"$f":"IF(TRIM(BW100)=\"\", \"\", IF(VLOOKUP(BW100,'Footnotes list'!$D$9:$E$58,2,FALSE)=0,\"\",VLOOKUP(BW100,'Footnotes list'!$D$9:$E$58,2,FALSE) ) )","v":""},null,null,null,null,{"$f":"IF(TRIM(CB100)=\"\", \"\", IF(VLOOKUP(CB100,'Footnotes list'!$D$9:$E$58,2,FALSE)=0,\"\",VLOOKUP(CB100,'Footnotes list'!$D$9:$E$58,2,FALSE) ) )","v":""},null,null,null,null,{"$f":"IF(TRIM(CG100)=\"\", \"\", IF(VLOOKUP(CG100,'Footnotes list'!$D$9:$E$58,2,FALSE)=0,\"\",VLOOKUP(CG100,'Footnotes list'!$D$9:$E$58,2,FALSE) ) )","v":""},null,null,null,null,{"$f":"IF(TRIM(CL100)=\"\", \"\", IF(VLOOKUP(CL100,'Footnotes list'!$D$9:$E$58,2,FALSE)=0,\"\",VLOOKUP(CL100,'Footnotes list'!$D$9:$E$58,2,FALSE) ) )","v":""},null,null,null,null,{"$f":"IF(TRIM(CQ100)=\"\", \"\", IF(VLOOKUP(CQ100,'Footnotes list'!$D$9:$E$58,2,FALSE)=0,\"\",VLOOKUP(CQ100,'Footnotes list'!$D$9:$E$58,2,FALSE) ) )","v":""},null,null,null,null,{"$f":"IF(TRIM(CV100)=\"\", \"\", IF(VLOOKUP(CV100,'Footnotes list'!$D$9:$E$58,2,FALSE)=0,\"\",VLOOKUP(CV100,'Footnotes list'!$D$9:$E$58,2,FALSE) ) )","v":""},null,null,null,null,{"$f":"IF(TRIM(DA100)=\"\", \"\", IF(VLOOKUP(DA100,'Footnotes list'!$D$9:$E$58,2,FALSE)=0,\"\",VLOOKUP(DA100,'Footnotes list'!$D$9:$E$58,2,FALSE) ) )","v":""},null,null,null,null,{"$f":"IF(TRIM(DF100)=\"\", \"\", IF(VLOOKUP(DF100,'Footnotes list'!$D$9:$E$58,2,FALSE)=0,\"\",VLOOKUP(DF100,'Footnotes list'!$D$9:$E$58,2,FALSE) ) )","v":""},null,null,null,null,{"$f":"IF(TRIM(DK100)=\"\", \"\", IF(VLOOKUP(DK100,'Footnotes list'!$D$9:$E$58,2,FALSE)=0,\"\",VLOOKUP(DK100,'Footnotes list'!$D$9:$E$58,2,FALSE) ) )","v":""},null,null,null,null,{"$f":"IF(TRIM(DP100)=\"\", \"\", IF(VLOOKUP(DP100,'Footnotes list'!$D$9:$E$58,2,FALSE)=0,\"\",VLOOKUP(DP100,'Footnotes list'!$D$9:$E$58,2,FALSE) ) )","v":""},null,null,null,null,{"$f":"IF(TRIM(DU100)=\"\", \"\", IF(VLOOKUP(DU100,'Footnotes list'!$D$9:$E$58,2,FALSE)=0,\"\",VLOOKUP(DU100,'Footnotes list'!$D$9:$E$58,2,FALSE) ) )","v":""},null,null,null,null,{"$f":"IF(TRIM(DZ100)=\"\", \"\", IF(VLOOKUP(DZ100,'Footnotes list'!$D$9:$E$58,2,FALSE)=0,\"\",VLOOKUP(DZ100,'Footnotes list'!$D$9:$E$58,2,FALSE) ) )","v":""},null,null,null,null,{"$f":"IF(TRIM(EE100)=\"\", \"\", IF(VLOOKUP(EE100,'Footnotes list'!$D$9:$E$58,2,FALSE)=0,\"\",VLOOKUP(EE100,'Footnotes list'!$D$9:$E$58,2,FALSE) ) )","v":""},null,null,null,null,{"$f":"IF(TRIM(EJ100)=\"\", \"\", IF(VLOOKUP(EJ100,'Footnotes list'!$D$9:$E$58,2,FALSE)=0,\"\",VLOOKUP(EJ100,'Footnotes list'!$D$9:$E$58,2,FALSE) ) )","v":""},null,null,null,null,{"$f":"IF(TRIM(EO100)=\"\", \"\", IF(VLOOKUP(EO100,'Footnotes list'!$D$9:$E$58,2,FALSE)=0,\"\",VLOOKUP(EO100,'Footnotes list'!$D$9:$E$58,2,FALSE) ) )","v":""},null,null,null,null,{"$f":"IF(TRIM(ET100)=\"\", \"\", IF(VLOOKUP(ET100,'Footnotes list'!$D$9:$E$58,2,FALSE)=0,\"\",VLOOKUP(ET100,'Footnotes list'!$D$9:$E$58,2,FALSE) ) )","v":""},null,null,null,null,{"$f":"IF(TRIM(EY100)=\"\", \"\", IF(VLOOKUP(EY100,'Footnotes list'!$D$9:$E$58,2,FALSE)=0,\"\",VLOOKUP(EY100,'Footnotes list'!$D$9:$E$58,2,FALSE) ) )","v":""}]
[null,null,"C27","NMKT","non-market activities",null,null,null,null,null,{"$f":"IF(TRIM(J101)=\"\", \"\", IF(VLOOKUP(J101,'Footnotes list'!$D$9:$E$58,2,FALSE)=0,\"\",VLOOKUP(J101,'Footnotes list'!$D$9:$E$58,2,FALSE) ) )","v":""},null,null,null,null,{"$f":"IF(TRIM(O101)=\"\", \"\", IF(VLOOKUP(O101,'Footnotes list'!$D$9:$E$58,2,FALSE)=0,\"\",VLOOKUP(O101,'Footnotes list'!$D$9:$E$58,2,FALSE) ) )","v":""},null,null,null,null,{"$f":"IF(TRIM(T101)=\"\", \"\", IF(VLOOKUP(T101,'Footnotes list'!$D$9:$E$58,2,FALSE)=0,\"\",VLOOKUP(T101,'Footnotes list'!$D$9:$E$58,2,FALSE) ) )","v":""},null,null,null,null,{"$f":"IF(TRIM(Y101)=\"\", \"\", IF(VLOOKUP(Y101,'Footnotes list'!$D$9:$E$58,2,FALSE)=0,\"\",VLOOKUP(Y101,'Footnotes list'!$D$9:$E$58,2,FALSE) ) )","v":""},null,null,null,null,{"$f":"IF(TRIM(AD101)=\"\", \"\", IF(VLOOKUP(AD101,'Footnotes list'!$D$9:$E$58,2,FALSE)=0,\"\",VLOOKUP(AD101,'Footnotes list'!$D$9:$E$58,2,FALSE) ) )","v":""},null,null,null,null,{"$f":"IF(TRIM(AI101)=\"\", \"\", IF(VLOOKUP(AI101,'Footnotes list'!$D$9:$E$58,2,FALSE)=0,\"\",VLOOKUP(AI101,'Footnotes list'!$D$9:$E$58,2,FALSE) ) )","v":""},null,null,null,null,{"$f":"IF(TRIM(AN101)=\"\", \"\", IF(VLOOKUP(AN101,'Footnotes list'!$D$9:$E$58,2,FALSE)=0,\"\",VLOOKUP(AN101,'Footnotes list'!$D$9:$E$58,2,FALSE) ) )","v":""},null,null,null,null,{"$f":"IF(TRIM(AS101)=\"\", \"\", IF(VLOOKUP(AS101,'Footnotes list'!$D$9:$E$58,2,FALSE)=0,\"\",VLOOKUP(AS101,'Footnotes list'!$D$9:$E$58,2,FALSE) ) )","v":""},null,null,null,null,{"$f":"IF(TRIM(AX101)=\"\", \"\", IF(VLOOKUP(AX101,'Footnotes list'!$D$9:$E$58,2,FALSE)=0,\"\",VLOOKUP(AX101,'Footnotes list'!$D$9:$E$58,2,FALSE) ) )","v":""},null,null,null,null,{"$f":"IF(TRIM(BC101)=\"\", \"\", IF(VLOOKUP(BC101,'Footnotes list'!$D$9:$E$58,2,FALSE)=0,\"\",VLOOKUP(BC101,'Footnotes list'!$D$9:$E$58,2,FALSE) ) )","v":""},null,null,null,null,{"$f":"IF(TRIM(BH101)=\"\", \"\", IF(VLOOKUP(BH101,'Footnotes list'!$D$9:$E$58,2,FALSE)=0,\"\",VLOOKUP(BH101,'Footnotes list'!$D$9:$E$58,2,FALSE) ) )","v":""},null,null,null,null,{"$f":"IF(TRIM(BM101)=\"\", \"\", IF(VLOOKUP(BM101,'Footnotes list'!$D$9:$E$58,2,FALSE)=0,\"\",VLOOKUP(BM101,'Footnotes list'!$D$9:$E$58,2,FALSE) ) )","v":""},null,null,null,null,{"$f":"IF(TRIM(BR101)=\"\", \"\", IF(VLOOKUP(BR101,'Footnotes list'!$D$9:$E$58,2,FALSE)=0,\"\",VLOOKUP(BR101,'Footnotes list'!$D$9:$E$58,2,FALSE) ) )","v":""},null,null,null,null,{"$f":"IF(TRIM(BW101)=\"\", \"\", IF(VLOOKUP(BW101,'Footnotes list'!$D$9:$E$58,2,FALSE)=0,\"\",VLOOKUP(BW101,'Footnotes list'!$D$9:$E$58,2,FALSE) ) )","v":""},null,null,null,null,{"$f":"IF(TRIM(CB101)=\"\", \"\", IF(VLOOKUP(CB101,'Footnotes list'!$D$9:$E$58,2,FALSE)=0,\"\",VLOOKUP(CB101,'Footnotes list'!$D$9:$E$58,2,FALSE) ) )","v":""},null,null,null,null,{"$f":"IF(TRIM(CG101)=\"\", \"\", IF(VLOOKUP(CG101,'Footnotes list'!$D$9:$E$58,2,FALSE)=0,\"\",VLOOKUP(CG101,'Footnotes list'!$D$9:$E$58,2,FALSE) ) )","v":""},null,null,null,null,{"$f":"IF(TRIM(CL101)=\"\", \"\", IF(VLOOKUP(CL101,'Footnotes list'!$D$9:$E$58,2,FALSE)=0,\"\",VLOOKUP(CL101,'Footnotes list'!$D$9:$E$58,2,FALSE) ) )","v":""},null,null,null,null,{"$f":"IF(TRIM(CQ101)=\"\", \"\", IF(VLOOKUP(CQ101,'Footnotes list'!$D$9:$E$58,2,FALSE)=0,\"\",VLOOKUP(CQ101,'Footnotes list'!$D$9:$E$58,2,FALSE) ) )","v":""},null,null,null,null,{"$f":"IF(TRIM(CV101)=\"\", \"\", IF(VLOOKUP(CV101,'Footnotes list'!$D$9:$E$58,2,FALSE)=0,\"\",VLOOKUP(CV101,'Footnotes list'!$D$9:$E$58,2,FALSE) ) )","v":""},null,null,null,null,{"$f":"IF(TRIM(DA101)=\"\", \"\", IF(VLOOKUP(DA101,'Footnotes list'!$D$9:$E$58,2,FALSE)=0,\"\",VLOOKUP(DA101,'Footnotes list'!$D$9:$E$58,2,FALSE) ) )","v":""},null,null,null,null,{"$f":"IF(TRIM(DF101)=\"\", \"\", IF(VLOOKUP(DF101,'Footnotes list'!$D$9:$E$58,2,FALSE)=0,\"\",VLOOKUP(DF101,'Footnotes list'!$D$9:$E$58,2,FALSE) ) )","v":""},null,null,null,null,{"$f":"IF(TRIM(DK101)=\"\", \"\", IF(VLOOKUP(DK101,'Footnotes list'!$D$9:$E$58,2,FALSE)=0,\"\",VLOOKUP(DK101,'Footnotes list'!$D$9:$E$58,2,FALSE) ) )","v":""},null,null,null,null,{"$f":"IF(TRIM(DP101)=\"\", \"\", IF(VLOOKUP(DP101,'Footnotes list'!$D$9:$E$58,2,FALSE)=0,\"\",VLOOKUP(DP101,'Footnotes list'!$D$9:$E$58,2,FALSE) ) )","v":""},null,null,null,null,{"$f":"IF(TRIM(DU101)=\"\", \"\", IF(VLOOKUP(DU101,'Footnotes list'!$D$9:$E$58,2,FALSE)=0,\"\",VLOOKUP(DU101,'Footnotes list'!$D$9:$E$58,2,FALSE) ) )","v":""},null,null,null,null,{"$f":"IF(TRIM(DZ101)=\"\", \"\", IF(VLOOKUP(DZ101,'Footnotes list'!$D$9:$E$58,2,FALSE)=0,\"\",VLOOKUP(DZ101,'Footnotes list'!$D$9:$E$58,2,FALSE) ) )","v":""},null,null,null,null,{"$f":"IF(TRIM(EE101)=\"\", \"\", IF(VLOOKUP(EE101,'Footnotes list'!$D$9:$E$58,2,FALSE)=0,\"\",VLOOKUP(EE101,'Footnotes list'!$D$9:$E$58,2,FALSE) ) )","v":""},null,null,null,null,{"$f":"IF(TRIM(EJ101)=\"\", \"\", IF(VLOOKUP(EJ101,'Footnotes list'!$D$9:$E$58,2,FALSE)=0,\"\",VLOOKUP(EJ101,'Footnotes list'!$D$9:$E$58,2,FALSE) ) )","v":""},null,null,null,null,{"$f":"IF(TRIM(EO101)=\"\", \"\", IF(VLOOKUP(EO101,'Footnotes list'!$D$9:$E$58,2,FALSE)=0,\"\",VLOOKUP(EO101,'Footnotes list'!$D$9:$E$58,2,FALSE) ) )","v":""},null,null,null,null,{"$f":"IF(TRIM(ET101)=\"\", \"\", IF(VLOOKUP(ET101,'Footnotes list'!$D$9:$E$58,2,FALSE)=0,\"\",VLOOKUP(ET101,'Footnotes list'!$D$9:$E$58,2,FALSE) ) )","v":""},null,null,null,null,{"$f":"IF(TRIM(EY101)=\"\", \"\", IF(VLOOKUP(EY101,'Footnotes list'!$D$9:$E$58,2,FALSE)=0,\"\",VLOOKUP(EY101,'Footnotes list'!$D$9:$E$58,2,FALSE) ) )","v":""}]
[null,null,"C27","OWN_USE","activities for own final use",null,null,null,null,null,{"$f":"IF(TRIM(J102)=\"\", \"\", IF(VLOOKUP(J102,'Footnotes list'!$D$9:$E$58,2,FALSE)=0,\"\",VLOOKUP(J102,'Footnotes list'!$D$9:$E$58,2,FALSE) ) )","v":""},null,null,null,null,{"$f":"IF(TRIM(O102)=\"\", \"\", IF(VLOOKUP(O102,'Footnotes list'!$D$9:$E$58,2,FALSE)=0,\"\",VLOOKUP(O102,'Footnotes list'!$D$9:$E$58,2,FALSE) ) )","v":""},null,null,null,null,{"$f":"IF(TRIM(T102)=\"\", \"\", IF(VLOOKUP(T102,'Footnotes list'!$D$9:$E$58,2,FALSE)=0,\"\",VLOOKUP(T102,'Footnotes list'!$D$9:$E$58,2,FALSE) ) )","v":""},null,null,null,null,{"$f":"IF(TRIM(Y102)=\"\", \"\", IF(VLOOKUP(Y102,'Footnotes list'!$D$9:$E$58,2,FALSE)=0,\"\",VLOOKUP(Y102,'Footnotes list'!$D$9:$E$58,2,FALSE) ) )","v":""},null,null,null,null,{"$f":"IF(TRIM(AD102)=\"\", \"\", IF(VLOOKUP(AD102,'Footnotes list'!$D$9:$E$58,2,FALSE)=0,\"\",VLOOKUP(AD102,'Footnotes list'!$D$9:$E$58,2,FALSE) ) )","v":""},null,null,null,null,{"$f":"IF(TRIM(AI102)=\"\", \"\", IF(VLOOKUP(AI102,'Footnotes list'!$D$9:$E$58,2,FALSE)=0,\"\",VLOOKUP(AI102,'Footnotes list'!$D$9:$E$58,2,FALSE) ) )","v":""},null,null,null,null,{"$f":"IF(TRIM(AN102)=\"\", \"\", IF(VLOOKUP(AN102,'Footnotes list'!$D$9:$E$58,2,FALSE)=0,\"\",VLOOKUP(AN102,'Footnotes list'!$D$9:$E$58,2,FALSE) ) )","v":""},null,null,null,null,{"$f":"IF(TRIM(AS102)=\"\", \"\", IF(VLOOKUP(AS102,'Footnotes list'!$D$9:$E$58,2,FALSE)=0,\"\",VLOOKUP(AS102,'Footnotes list'!$D$9:$E$58,2,FALSE) ) )","v":""},null,null,null,null,{"$f":"IF(TRIM(AX102)=\"\", \"\", IF(VLOOKUP(AX102,'Footnotes list'!$D$9:$E$58,2,FALSE)=0,\"\",VLOOKUP(AX102,'Footnotes list'!$D$9:$E$58,2,FALSE) ) )","v":""},null,null,null,null,{"$f":"IF(TRIM(BC102)=\"\", \"\", IF(VLOOKUP(BC102,'Footnotes list'!$D$9:$E$58,2,FALSE)=0,\"\",VLOOKUP(BC102,'Footnotes list'!$D$9:$E$58,2,FALSE) ) )","v":""},null,null,null,null,{"$f":"IF(TRIM(BH102)=\"\", \"\", IF(VLOOKUP(BH102,'Footnotes list'!$D$9:$E$58,2,FALSE)=0,\"\",VLOOKUP(BH102,'Footnotes list'!$D$9:$E$58,2,FALSE) ) )","v":""},null,null,null,null,{"$f":"IF(TRIM(BM102)=\"\", \"\", IF(VLOOKUP(BM102,'Footnotes list'!$D$9:$E$58,2,FALSE)=0,\"\",VLOOKUP(BM102,'Footnotes list'!$D$9:$E$58,2,FALSE) ) )","v":""},null,null,null,null,{"$f":"IF(TRIM(BR102)=\"\", \"\", IF(VLOOKUP(BR102,'Footnotes list'!$D$9:$E$58,2,FALSE)=0,\"\",VLOOKUP(BR102,'Footnotes list'!$D$9:$E$58,2,FALSE) ) )","v":""},null,null,null,null,{"$f":"IF(TRIM(BW102)=\"\", \"\", IF(VLOOKUP(BW102,'Footnotes list'!$D$9:$E$58,2,FALSE)=0,\"\",VLOOKUP(BW102,'Footnotes list'!$D$9:$E$58,2,FALSE) ) )","v":""},null,null,null,null,{"$f":"IF(TRIM(CB102)=\"\", \"\", IF(VLOOKUP(CB102,'Footnotes list'!$D$9:$E$58,2,FALSE)=0,\"\",VLOOKUP(CB102,'Footnotes list'!$D$9:$E$58,2,FALSE) ) )","v":""},null,null,null,null,{"$f":"IF(TRIM(CG102)=\"\", \"\", IF(VLOOKUP(CG102,'Footnotes list'!$D$9:$E$58,2,FALSE)=0,\"\",VLOOKUP(CG102,'Footnotes list'!$D$9:$E$58,2,FALSE) ) )","v":""},null,null,null,null,{"$f":"IF(TRIM(CL102)=\"\", \"\", IF(VLOOKUP(CL102,'Footnotes list'!$D$9:$E$58,2,FALSE)=0,\"\",VLOOKUP(CL102,'Footnotes list'!$D$9:$E$58,2,FALSE) ) )","v":""},null,null,null,null,{"$f":"IF(TRIM(CQ102)=\"\", \"\", IF(VLOOKUP(CQ102,'Footnotes list'!$D$9:$E$58,2,FALSE)=0,\"\",VLOOKUP(CQ102,'Footnotes list'!$D$9:$E$58,2,FALSE) ) )","v":""},null,null,null,null,{"$f":"IF(TRIM(CV102)=\"\", \"\", IF(VLOOKUP(CV102,'Footnotes list'!$D$9:$E$58,2,FALSE)=0,\"\",VLOOKUP(CV102,'Footnotes list'!$D$9:$E$58,2,FALSE) ) )","v":""},null,null,null,null,{"$f":"IF(TRIM(DA102)=\"\", \"\", IF(VLOOKUP(DA102,'Footnotes list'!$D$9:$E$58,2,FALSE)=0,\"\",VLOOKUP(DA102,'Footnotes list'!$D$9:$E$58,2,FALSE) ) )","v":""},null,null,null,null,{"$f":"IF(TRIM(DF102)=\"\", \"\", IF(VLOOKUP(DF102,'Footnotes list'!$D$9:$E$58,2,FALSE)=0,\"\",VLOOKUP(DF102,'Footnotes list'!$D$9:$E$58,2,FALSE) ) )","v":""},null,null,null,null,{"$f":"IF(TRIM(DK102)=\"\", \"\", IF(VLOOKUP(DK102,'Footnotes list'!$D$9:$E$58,2,FALSE)=0,\"\",VLOOKUP(DK102,'Footnotes list'!$D$9:$E$58,2,FALSE) ) )","v":""},null,null,null,null,{"$f":"IF(TRIM(DP102)=\"\", \"\", IF(VLOOKUP(DP102,'Footnotes list'!$D$9:$E$58,2,FALSE)=0,\"\",VLOOKUP(DP102,'Footnotes list'!$D$9:$E$58,2,FALSE) ) )","v":""},null,null,null,null,{"$f":"IF(TRIM(DU102)=\"\", \"\", IF(VLOOKUP(DU102,'Footnotes list'!$D$9:$E$58,2,FALSE)=0,\"\",VLOOKUP(DU102,'Footnotes list'!$D$9:$E$58,2,FALSE) ) )","v":""},null,null,null,null,{"$f":"IF(TRIM(DZ102)=\"\", \"\", IF(VLOOKUP(DZ102,'Footnotes list'!$D$9:$E$58,2,FALSE)=0,\"\",VLOOKUP(DZ102,'Footnotes list'!$D$9:$E$58,2,FALSE) ) )","v":""},null,null,null,null,{"$f":"IF(TRIM(EE102)=\"\", \"\", IF(VLOOKUP(EE102,'Footnotes list'!$D$9:$E$58,2,FALSE)=0,\"\",VLOOKUP(EE102,'Footnotes list'!$D$9:$E$58,2,FALSE) ) )","v":""},null,null,null,null,{"$f":"IF(TRIM(EJ102)=\"\", \"\", IF(VLOOKUP(EJ102,'Footnotes list'!$D$9:$E$58,2,FALSE)=0,\"\",VLOOKUP(EJ102,'Footnotes list'!$D$9:$E$58,2,FALSE) ) )","v":""},null,null,null,null,{"$f":"IF(TRIM(EO102)=\"\", \"\", IF(VLOOKUP(EO102,'Footnotes list'!$D$9:$E$58,2,FALSE)=0,\"\",VLOOKUP(EO102,'Footnotes list'!$D$9:$E$58,2,FALSE) ) )","v":""},null,null,null,null,{"$f":"IF(TRIM(ET102)=\"\", \"\", IF(VLOOKUP(ET102,'Footnotes list'!$D$9:$E$58,2,FALSE)=0,\"\",VLOOKUP(ET102,'Footnotes list'!$D$9:$E$58,2,FALSE) ) )","v":""},null,null,null,null,{"$f":"IF(TRIM(EY102)=\"\", \"\", IF(VLOOKUP(EY102,'Footnotes list'!$D$9:$E$58,2,FALSE)=0,\"\",VLOOKUP(EY102,'Footnotes list'!$D$9:$E$58,2,FALSE) ) )","v":""}]
[null,null,"C27","MKT","market activities, including:",null,null,null,null,null,{"$f":"IF(TRIM(J103)=\"\", \"\", IF(VLOOKUP(J103,'Footnotes list'!$D$9:$E$58,2,FALSE)=0,\"\",VLOOKUP(J103,'Footnotes list'!$D$9:$E$58,2,FALSE) ) )","v":""},null,null,null,null,{"$f":"IF(TRIM(O103)=\"\", \"\", IF(VLOOKUP(O103,'Footnotes list'!$D$9:$E$58,2,FALSE)=0,\"\",VLOOKUP(O103,'Footnotes list'!$D$9:$E$58,2,FALSE) ) )","v":""},null,null,null,null,{"$f":"IF(TRIM(T103)=\"\", \"\", IF(VLOOKUP(T103,'Footnotes list'!$D$9:$E$58,2,FALSE)=0,\"\",VLOOKUP(T103,'Footnotes list'!$D$9:$E$58,2,FALSE) ) )","v":""},null,null,null,null,{"$f":"IF(TRIM(Y103)=\"\", \"\", IF(VLOOKUP(Y103,'Footnotes list'!$D$9:$E$58,2,FALSE)=0,\"\",VLOOKUP(Y103,'Footnotes list'!$D$9:$E$58,2,FALSE) ) )","v":""},null,null,null,null,{"$f":"IF(TRIM(AD103)=\"\", \"\", IF(VLOOKUP(AD103,'Footnotes list'!$D$9:$E$58,2,FALSE)=0,\"\",VLOOKUP(AD103,'Footnotes list'!$D$9:$E$58,2,FALSE) ) )","v":""},null,null,null,null,{"$f":"IF(TRIM(AI103)=\"\", \"\", IF(VLOOKUP(AI103,'Footnotes list'!$D$9:$E$58,2,FALSE)=0,\"\",VLOOKUP(AI103,'Footnotes list'!$D$9:$E$58,2,FALSE) ) )","v":""},null,null,null,null,{"$f":"IF(TRIM(AN103)=\"\", \"\", IF(VLOOKUP(AN103,'Footnotes list'!$D$9:$E$58,2,FALSE)=0,\"\",VLOOKUP(AN103,'Footnotes list'!$D$9:$E$58,2,FALSE) ) )","v":""},null,null,null,null,{"$f":"IF(TRIM(AS103)=\"\", \"\", IF(VLOOKUP(AS103,'Footnotes list'!$D$9:$E$58,2,FALSE)=0,\"\",VLOOKUP(AS103,'Footnotes list'!$D$9:$E$58,2,FALSE) ) )","v":""},null,null,null,null,{"$f":"IF(TRIM(AX103)=\"\", \"\", IF(VLOOKUP(AX103,'Footnotes list'!$D$9:$E$58,2,FALSE)=0,\"\",VLOOKUP(AX103,'Footnotes list'!$D$9:$E$58,2,FALSE) ) )","v":""},null,null,null,null,{"$f":"IF(TRIM(BC103)=\"\", \"\", IF(VLOOKUP(BC103,'Footnotes list'!$D$9:$E$58,2,FALSE)=0,\"\",VLOOKUP(BC103,'Footnotes list'!$D$9:$E$58,2,FALSE) ) )","v":""},null,null,null,null,{"$f":"IF(TRIM(BH103)=\"\", \"\", IF(VLOOKUP(BH103,'Footnotes list'!$D$9:$E$58,2,FALSE)=0,\"\",VLOOKUP(BH103,'Footnotes list'!$D$9:$E$58,2,FALSE) ) )","v":""},null,null,null,null,{"$f":"IF(TRIM(BM103)=\"\", \"\", IF(VLOOKUP(BM103,'Footnotes list'!$D$9:$E$58,2,FALSE)=0,\"\",VLOOKUP(BM103,'Footnotes list'!$D$9:$E$58,2,FALSE) ) )","v":""},null,null,null,null,{"$f":"IF(TRIM(BR103)=\"\", \"\", IF(VLOOKUP(BR103,'Footnotes list'!$D$9:$E$58,2,FALSE)=0,\"\",VLOOKUP(BR103,'Footnotes list'!$D$9:$E$58,2,FALSE) ) )","v":""},null,null,null,null,{"$f":"IF(TRIM(BW103)=\"\", \"\", IF(VLOOKUP(BW103,'Footnotes list'!$D$9:$E$58,2,FALSE)=0,\"\",VLOOKUP(BW103,'Footnotes list'!$D$9:$E$58,2,FALSE) ) )","v":""},null,null,null,null,{"$f":"IF(TRIM(CB103)=\"\", \"\", IF(VLOOKUP(CB103,'Footnotes list'!$D$9:$E$58,2,FALSE)=0,\"\",VLOOKUP(CB103,'Footnotes list'!$D$9:$E$58,2,FALSE) ) )","v":""},null,null,null,null,{"$f":"IF(TRIM(CG103)=\"\", \"\", IF(VLOOKUP(CG103,'Footnotes list'!$D$9:$E$58,2,FALSE)=0,\"\",VLOOKUP(CG103,'Footnotes list'!$D$9:$E$58,2,FALSE) ) )","v":""},null,null,null,null,{"$f":"IF(TRIM(CL103)=\"\", \"\", IF(VLOOKUP(CL103,'Footnotes list'!$D$9:$E$58,2,FALSE)=0,\"\",VLOOKUP(CL103,'Footnotes list'!$D$9:$E$58,2,FALSE) ) )","v":""},null,null,null,null,{"$f":"IF(TRIM(CQ103)=\"\", \"\", IF(VLOOKUP(CQ103,'Footnotes list'!$D$9:$E$58,2,FALSE)=0,\"\",VLOOKUP(CQ103,'Footnotes list'!$D$9:$E$58,2,FALSE) ) )","v":""},null,null,null,null,{"$f":"IF(TRIM(CV103)=\"\", \"\", IF(VLOOKUP(CV103,'Footnotes list'!$D$9:$E$58,2,FALSE)=0,\"\",VLOOKUP(CV103,'Footnotes list'!$D$9:$E$58,2,FALSE) ) )","v":""},null,null,null,null,{"$f":"IF(TRIM(DA103)=\"\", \"\", IF(VLOOKUP(DA103,'Footnotes list'!$D$9:$E$58,2,FALSE)=0,\"\",VLOOKUP(DA103,'Footnotes list'!$D$9:$E$58,2,FALSE) ) )","v":""},null,null,null,null,{"$f":"IF(TRIM(DF103)=\"\", \"\", IF(VLOOKUP(DF103,'Footnotes list'!$D$9:$E$58,2,FALSE)=0,\"\",VLOOKUP(DF103,'Footnotes list'!$D$9:$E$58,2,FALSE) ) )","v":""},null,null,null,null,{"$f":"IF(TRIM(DK103)=\"\", \"\", IF(VLOOKUP(DK103,'Footnotes list'!$D$9:$E$58,2,FALSE)=0,\"\",VLOOKUP(DK103,'Footnotes list'!$D$9:$E$58,2,FALSE) ) )","v":""},null,null,null,null,{"$f":"IF(TRIM(DP103)=\"\", \"\", IF(VLOOKUP(DP103,'Footnotes list'!$D$9:$E$58,2,FALSE)=0,\"\",VLOOKUP(DP103,'Footnotes list'!$D$9:$E$58,2,FALSE) ) )","v":""},null,null,null,null,{"$f":"IF(TRIM(DU103)=\"\", \"\", IF(VLOOKUP(DU103,'Footnotes list'!$D$9:$E$58,2,FALSE)=0,\"\",VLOOKUP(DU103,'Footnotes list'!$D$9:$E$58,2,FALSE) ) )","v":""},null,null,null,null,{"$f":"IF(TRIM(DZ103)=\"\", \"\", IF(VLOOKUP(DZ103,'Footnotes list'!$D$9:$E$58,2,FALSE)=0,\"\",VLOOKUP(DZ103,'Footnotes list'!$D$9:$E$58,2,FALSE) ) )","v":""},null,null,null,null,{"$f":"IF(TRIM(EE103)=\"\", \"\", IF(VLOOKUP(EE103,'Footnotes list'!$D$9:$E$58,2,FALSE)=0,\"\",VLOOKUP(EE103,'Footnotes list'!$D$9:$E$58,2,FALSE) ) )","v":""},null,null,null,null,{"$f":"IF(TRIM(EJ103)=\"\", \"\", IF(VLOOKUP(EJ103,'Footnotes list'!$D$9:$E$58,2,FALSE)=0,\"\",VLOOKUP(EJ103,'Footnotes list'!$D$9:$E$58,2,FALSE) ) )","v":""},null,null,null,null,{"$f":"IF(TRIM(EO103)=\"\", \"\", IF(VLOOKUP(EO103,'Footnotes list'!$D$9:$E$58,2,FALSE)=0,\"\",VLOOKUP(EO103,'Footnotes list'!$D$9:$E$58,2,FALSE) ) )","v":""},null,null,null,null,{"$f":"IF(TRIM(ET103)=\"\", \"\", IF(VLOOKUP(ET103,'Footnotes list'!$D$9:$E$58,2,FALSE)=0,\"\",VLOOKUP(ET103,'Footnotes list'!$D$9:$E$58,2,FALSE) ) )","v":""},null,null,null,null,{"$f":"IF(TRIM(EY103)=\"\", \"\", IF(VLOOKUP(EY103,'Footnotes list'!$D$9:$E$58,2,FALSE)=0,\"\",VLOOKUP(EY103,'Footnotes list'!$D$9:$E$58,2,FALSE) ) )","v":""}]
[null,null,"C27","ES_CS","environmental specific services",null,null,null,null,null,{"$f":"IF(TRIM(J104)=\"\", \"\", IF(VLOOKUP(J104,'Footnotes list'!$D$9:$E$58,2,FALSE)=0,\"\",VLOOKUP(J104,'Footnotes list'!$D$9:$E$58,2,FALSE) ) )","v":""},null,null,null,null,{"$f":"IF(TRIM(O104)=\"\", \"\", IF(VLOOKUP(O104,'Footnotes list'!$D$9:$E$58,2,FALSE)=0,\"\",VLOOKUP(O104,'Footnotes list'!$D$9:$E$58,2,FALSE) ) )","v":""},null,null,null,null,{"$f":"IF(TRIM(T104)=\"\", \"\", IF(VLOOKUP(T104,'Footnotes list'!$D$9:$E$58,2,FALSE)=0,\"\",VLOOKUP(T104,'Footnotes list'!$D$9:$E$58,2,FALSE) ) )","v":""},null,null,null,null,{"$f":"IF(TRIM(Y104)=\"\", \"\", IF(VLOOKUP(Y104,'Footnotes list'!$D$9:$E$58,2,FALSE)=0,\"\",VLOOKUP(Y104,'Footnotes list'!$D$9:$E$58,2,FALSE) ) )","v":""},null,null,null,null,{"$f":"IF(TRIM(AD104)=\"\", \"\", IF(VLOOKUP(AD104,'Footnotes list'!$D$9:$E$58,2,FALSE)=0,\"\",VLOOKUP(AD104,'Footnotes list'!$D$9:$E$58,2,FALSE) ) )","v":""},null,null,null,null,{"$f":"IF(TRIM(AI104)=\"\", \"\", IF(VLOOKUP(AI104,'Footnotes list'!$D$9:$E$58,2,FALSE)=0,\"\",VLOOKUP(AI104,'Footnotes list'!$D$9:$E$58,2,FALSE) ) )","v":""},null,null,null,null,{"$f":"IF(TRIM(AN104)=\"\", \"\", IF(VLOOKUP(AN104,'Footnotes list'!$D$9:$E$58,2,FALSE)=0,\"\",VLOOKUP(AN104,'Footnotes list'!$D$9:$E$58,2,FALSE) ) )","v":""},null,null,null,null,{"$f":"IF(TRIM(AS104)=\"\", \"\", IF(VLOOKUP(AS104,'Footnotes list'!$D$9:$E$58,2,FALSE)=0,\"\",VLOOKUP(AS104,'Footnotes list'!$D$9:$E$58,2,FALSE) ) )","v":""},null,null,null,null,{"$f":"IF(TRIM(AX104)=\"\", \"\", IF(VLOOKUP(AX104,'Footnotes list'!$D$9:$E$58,2,FALSE)=0,\"\",VLOOKUP(AX104,'Footnotes list'!$D$9:$E$58,2,FALSE) ) )","v":""},null,null,null,null,{"$f":"IF(TRIM(BC104)=\"\", \"\", IF(VLOOKUP(BC104,'Footnotes list'!$D$9:$E$58,2,FALSE)=0,\"\",VLOOKUP(BC104,'Footnotes list'!$D$9:$E$58,2,FALSE) ) )","v":""},null,null,null,null,{"$f":"IF(TRIM(BH104)=\"\", \"\", IF(VLOOKUP(BH104,'Footnotes list'!$D$9:$E$58,2,FALSE)=0,\"\",VLOOKUP(BH104,'Footnotes list'!$D$9:$E$58,2,FALSE) ) )","v":""},null,null,null,null,{"$f":"IF(TRIM(BM104)=\"\", \"\", IF(VLOOKUP(BM104,'Footnotes list'!$D$9:$E$58,2,FALSE)=0,\"\",VLOOKUP(BM104,'Footnotes list'!$D$9:$E$58,2,FALSE) ) )","v":""},null,null,null,null,{"$f":"IF(TRIM(BR104)=\"\", \"\", IF(VLOOKUP(BR104,'Footnotes list'!$D$9:$E$58,2,FALSE)=0,\"\",VLOOKUP(BR104,'Footnotes list'!$D$9:$E$58,2,FALSE) ) )","v":""},null,null,null,null,{"$f":"IF(TRIM(BW104)=\"\", \"\", IF(VLOOKUP(BW104,'Footnotes list'!$D$9:$E$58,2,FALSE)=0,\"\",VLOOKUP(BW104,'Footnotes list'!$D$9:$E$58,2,FALSE) ) )","v":""},null,null,null,null,{"$f":"IF(TRIM(CB104)=\"\", \"\", IF(VLOOKUP(CB104,'Footnotes list'!$D$9:$E$58,2,FALSE)=0,\"\",VLOOKUP(CB104,'Footnotes list'!$D$9:$E$58,2,FALSE) ) )","v":""},null,null,null,null,{"$f":"IF(TRIM(CG104)=\"\", \"\", IF(VLOOKUP(CG104,'Footnotes list'!$D$9:$E$58,2,FALSE)=0,\"\",VLOOKUP(CG104,'Footnotes list'!$D$9:$E$58,2,FALSE) ) )","v":""},null,null,null,null,{"$f":"IF(TRIM(CL104)=\"\", \"\", IF(VLOOKUP(CL104,'Footnotes list'!$D$9:$E$58,2,FALSE)=0,\"\",VLOOKUP(CL104,'Footnotes list'!$D$9:$E$58,2,FALSE) ) )","v":""},null,null,null,null,{"$f":"IF(TRIM(CQ104)=\"\", \"\", IF(VLOOKUP(CQ104,'Footnotes list'!$D$9:$E$58,2,FALSE)=0,\"\",VLOOKUP(CQ104,'Footnotes list'!$D$9:$E$58,2,FALSE) ) )","v":""},null,null,null,null,{"$f":"IF(TRIM(CV104)=\"\", \"\", IF(VLOOKUP(CV104,'Footnotes list'!$D$9:$E$58,2,FALSE)=0,\"\",VLOOKUP(CV104,'Footnotes list'!$D$9:$E$58,2,FALSE) ) )","v":""},null,null,null,null,{"$f":"IF(TRIM(DA104)=\"\", \"\", IF(VLOOKUP(DA104,'Footnotes list'!$D$9:$E$58,2,FALSE)=0,\"\",VLOOKUP(DA104,'Footnotes list'!$D$9:$E$58,2,FALSE) ) )","v":""},null,null,null,null,{"$f":"IF(TRIM(DF104)=\"\", \"\", IF(VLOOKUP(DF104,'Footnotes list'!$D$9:$E$58,2,FALSE)=0,\"\",VLOOKUP(DF104,'Footnotes list'!$D$9:$E$58,2,FALSE) ) )","v":""},null,null,null,null,{"$f":"IF(TRIM(DK104)=\"\", \"\", IF(VLOOKUP(DK104,'Footnotes list'!$D$9:$E$58,2,FALSE)=0,\"\",VLOOKUP(DK104,'Footnotes list'!$D$9:$E$58,2,FALSE) ) )","v":""},null,null,null,null,{"$f":"IF(TRIM(DP104)=\"\", \"\", IF(VLOOKUP(DP104,'Footnotes list'!$D$9:$E$58,2,FALSE)=0,\"\",VLOOKUP(DP104,'Footnotes list'!$D$9:$E$58,2,FALSE) ) )","v":""},null,null,null,null,{"$f":"IF(TRIM(DU104)=\"\", \"\", IF(VLOOKUP(DU104,'Footnotes list'!$D$9:$E$58,2,FALSE)=0,\"\",VLOOKUP(DU104,'Footnotes list'!$D$9:$E$58,2,FALSE) ) )","v":""},null,null,null,null,{"$f":"IF(TRIM(DZ104)=\"\", \"\", IF(VLOOKUP(DZ104,'Footnotes list'!$D$9:$E$58,2,FALSE)=0,\"\",VLOOKUP(DZ104,'Footnotes list'!$D$9:$E$58,2,FALSE) ) )","v":""},null,null,null,null,{"$f":"IF(TRIM(EE104)=\"\", \"\", IF(VLOOKUP(EE104,'Footnotes list'!$D$9:$E$58,2,FALSE)=0,\"\",VLOOKUP(EE104,'Footnotes list'!$D$9:$E$58,2,FALSE) ) )","v":""},null,null,null,null,{"$f":"IF(TRIM(EJ104)=\"\", \"\", IF(VLOOKUP(EJ104,'Footnotes list'!$D$9:$E$58,2,FALSE)=0,\"\",VLOOKUP(EJ104,'Footnotes list'!$D$9:$E$58,2,FALSE) ) )","v":""},null,null,null,null,{"$f":"IF(TRIM(EO104)=\"\", \"\", IF(VLOOKUP(EO104,'Footnotes list'!$D$9:$E$58,2,FALSE)=0,\"\",VLOOKUP(EO104,'Footnotes list'!$D$9:$E$58,2,FALSE) ) )","v":""},null,null,null,null,{"$f":"IF(TRIM(ET104)=\"\", \"\", IF(VLOOKUP(ET104,'Footnotes list'!$D$9:$E$58,2,FALSE)=0,\"\",VLOOKUP(ET104,'Footnotes list'!$D$9:$E$58,2,FALSE) ) )","v":""},null,null,null,null,{"$f":"IF(TRIM(EY104)=\"\", \"\", IF(VLOOKUP(EY104,'Footnotes list'!$D$9:$E$58,2,FALSE)=0,\"\",VLOOKUP(EY104,'Footnotes list'!$D$9:$E$58,2,FALSE) ) )","v":""}]
[null,null,"C27","C_REP","cleaner and resource efficient products",null,null,null,null,null,{"$f":"IF(TRIM(J105)=\"\", \"\", IF(VLOOKUP(J105,'Footnotes list'!$D$9:$E$58,2,FALSE)=0,\"\",VLOOKUP(J105,'Footnotes list'!$D$9:$E$58,2,FALSE) ) )","v":""},null,null,null,null,{"$f":"IF(TRIM(O105)=\"\", \"\", IF(VLOOKUP(O105,'Footnotes list'!$D$9:$E$58,2,FALSE)=0,\"\",VLOOKUP(O105,'Footnotes list'!$D$9:$E$58,2,FALSE) ) )","v":""},null,null,null,null,{"$f":"IF(TRIM(T105)=\"\", \"\", IF(VLOOKUP(T105,'Footnotes list'!$D$9:$E$58,2,FALSE)=0,\"\",VLOOKUP(T105,'Footnotes list'!$D$9:$E$58,2,FALSE) ) )","v":""},null,null,null,null,{"$f":"IF(TRIM(Y105)=\"\", \"\", IF(VLOOKUP(Y105,'Footnotes list'!$D$9:$E$58,2,FALSE)=0,\"\",VLOOKUP(Y105,'Footnotes list'!$D$9:$E$58,2,FALSE) ) )","v":""},null,null,null,null,{"$f":"IF(TRIM(AD105)=\"\", \"\", IF(VLOOKUP(AD105,'Footnotes list'!$D$9:$E$58,2,FALSE)=0,\"\",VLOOKUP(AD105,'Footnotes list'!$D$9:$E$58,2,FALSE) ) )","v":""},null,null,null,null,{"$f":"IF(TRIM(AI105)=\"\", \"\", IF(VLOOKUP(AI105,'Footnotes list'!$D$9:$E$58,2,FALSE)=0,\"\",VLOOKUP(AI105,'Footnotes list'!$D$9:$E$58,2,FALSE) ) )","v":""},null,null,null,null,{"$f":"IF(TRIM(AN105)=\"\", \"\", IF(VLOOKUP(AN105,'Footnotes list'!$D$9:$E$58,2,FALSE)=0,\"\",VLOOKUP(AN105,'Footnotes list'!$D$9:$E$58,2,FALSE) ) )","v":""},null,null,null,null,{"$f":"IF(TRIM(AS105)=\"\", \"\", IF(VLOOKUP(AS105,'Footnotes list'!$D$9:$E$58,2,FALSE)=0,\"\",VLOOKUP(AS105,'Footnotes list'!$D$9:$E$58,2,FALSE) ) )","v":""},null,null,null,null,{"$f":"IF(TRIM(AX105)=\"\", \"\", IF(VLOOKUP(AX105,'Footnotes list'!$D$9:$E$58,2,FALSE)=0,\"\",VLOOKUP(AX105,'Footnotes list'!$D$9:$E$58,2,FALSE) ) )","v":""},null,null,null,null,{"$f":"IF(TRIM(BC105)=\"\", \"\", IF(VLOOKUP(BC105,'Footnotes list'!$D$9:$E$58,2,FALSE)=0,\"\",VLOOKUP(BC105,'Footnotes list'!$D$9:$E$58,2,FALSE) ) )","v":""},null,null,null,null,{"$f":"IF(TRIM(BH105)=\"\", \"\", IF(VLOOKUP(BH105,'Footnotes list'!$D$9:$E$58,2,FALSE)=0,\"\",VLOOKUP(BH105,'Footnotes list'!$D$9:$E$58,2,FALSE) ) )","v":""},null,null,null,null,{"$f":"IF(TRIM(BM105)=\"\", \"\", IF(VLOOKUP(BM105,'Footnotes list'!$D$9:$E$58,2,FALSE)=0,\"\",VLOOKUP(BM105,'Footnotes list'!$D$9:$E$58,2,FALSE) ) )","v":""},null,null,null,null,{"$f":"IF(TRIM(BR105)=\"\", \"\", IF(VLOOKUP(BR105,'Footnotes list'!$D$9:$E$58,2,FALSE)=0,\"\",VLOOKUP(BR105,'Footnotes list'!$D$9:$E$58,2,FALSE) ) )","v":""},null,null,null,null,{"$f":"IF(TRIM(BW105)=\"\", \"\", IF(VLOOKUP(BW105,'Footnotes list'!$D$9:$E$58,2,FALSE)=0,\"\",VLOOKUP(BW105,'Footnotes list'!$D$9:$E$58,2,FALSE) ) )","v":""},null,null,null,null,{"$f":"IF(TRIM(CB105)=\"\", \"\", IF(VLOOKUP(CB105,'Footnotes list'!$D$9:$E$58,2,FALSE)=0,\"\",VLOOKUP(CB105,'Footnotes list'!$D$9:$E$58,2,FALSE) ) )","v":""},null,null,null,null,{"$f":"IF(TRIM(CG105)=\"\", \"\", IF(VLOOKUP(CG105,'Footnotes list'!$D$9:$E$58,2,FALSE)=0,\"\",VLOOKUP(CG105,'Footnotes list'!$D$9:$E$58,2,FALSE) ) )","v":""},null,null,null,null,{"$f":"IF(TRIM(CL105)=\"\", \"\", IF(VLOOKUP(CL105,'Footnotes list'!$D$9:$E$58,2,FALSE)=0,\"\",VLOOKUP(CL105,'Footnotes list'!$D$9:$E$58,2,FALSE) ) )","v":""},null,null,null,null,{"$f":"IF(TRIM(CQ105)=\"\", \"\", IF(VLOOKUP(CQ105,'Footnotes list'!$D$9:$E$58,2,FALSE)=0,\"\",VLOOKUP(CQ105,'Footnotes list'!$D$9:$E$58,2,FALSE) ) )","v":""},null,null,null,null,{"$f":"IF(TRIM(CV105)=\"\", \"\", IF(VLOOKUP(CV105,'Footnotes list'!$D$9:$E$58,2,FALSE)=0,\"\",VLOOKUP(CV105,'Footnotes list'!$D$9:$E$58,2,FALSE) ) )","v":""},null,null,null,null,{"$f":"IF(TRIM(DA105)=\"\", \"\", IF(VLOOKUP(DA105,'Footnotes list'!$D$9:$E$58,2,FALSE)=0,\"\",VLOOKUP(DA105,'Footnotes list'!$D$9:$E$58,2,FALSE) ) )","v":""},null,null,null,null,{"$f":"IF(TRIM(DF105)=\"\", \"\", IF(VLOOKUP(DF105,'Footnotes list'!$D$9:$E$58,2,FALSE)=0,\"\",VLOOKUP(DF105,'Footnotes list'!$D$9:$E$58,2,FALSE) ) )","v":""},null,null,null,null,{"$f":"IF(TRIM(DK105)=\"\", \"\", IF(VLOOKUP(DK105,'Footnotes list'!$D$9:$E$58,2,FALSE)=0,\"\",VLOOKUP(DK105,'Footnotes list'!$D$9:$E$58,2,FALSE) ) )","v":""},null,null,null,null,{"$f":"IF(TRIM(DP105)=\"\", \"\", IF(VLOOKUP(DP105,'Footnotes list'!$D$9:$E$58,2,FALSE)=0,\"\",VLOOKUP(DP105,'Footnotes list'!$D$9:$E$58,2,FALSE) ) )","v":""},null,null,null,null,{"$f":"IF(TRIM(DU105)=\"\", \"\", IF(VLOOKUP(DU105,'Footnotes list'!$D$9:$E$58,2,FALSE)=0,\"\",VLOOKUP(DU105,'Footnotes list'!$D$9:$E$58,2,FALSE) ) )","v":""},null,null,null,null,{"$f":"IF(TRIM(DZ105)=\"\", \"\", IF(VLOOKUP(DZ105,'Footnotes list'!$D$9:$E$58,2,FALSE)=0,\"\",VLOOKUP(DZ105,'Footnotes list'!$D$9:$E$58,2,FALSE) ) )","v":""},null,null,null,null,{"$f":"IF(TRIM(EE105)=\"\", \"\", IF(VLOOKUP(EE105,'Footnotes list'!$D$9:$E$58,2,FALSE)=0,\"\",VLOOKUP(EE105,'Footnotes list'!$D$9:$E$58,2,FALSE) ) )","v":""},null,null,null,null,{"$f":"IF(TRIM(EJ105)=\"\", \"\", IF(VLOOKUP(EJ105,'Footnotes list'!$D$9:$E$58,2,FALSE)=0,\"\",VLOOKUP(EJ105,'Footnotes list'!$D$9:$E$58,2,FALSE) ) )","v":""},null,null,null,null,{"$f":"IF(TRIM(EO105)=\"\", \"\", IF(VLOOKUP(EO105,'Footnotes list'!$D$9:$E$58,2,FALSE)=0,\"\",VLOOKUP(EO105,'Footnotes list'!$D$9:$E$58,2,FALSE) ) )","v":""},null,null,null,null,{"$f":"IF(TRIM(ET105)=\"\", \"\", IF(VLOOKUP(ET105,'Footnotes list'!$D$9:$E$58,2,FALSE)=0,\"\",VLOOKUP(ET105,'Footnotes list'!$D$9:$E$58,2,FALSE) ) )","v":""},null,null,null,null,{"$f":"IF(TRIM(EY105)=\"\", \"\", IF(VLOOKUP(EY105,'Footnotes list'!$D$9:$E$58,2,FALSE)=0,\"\",VLOOKUP(EY105,'Footnotes list'!$D$9:$E$58,2,FALSE) ) )","v":""}]
[null,null,"C28","TOT_EGSS","Total C28 - Manufacture of machinery and equipment n.e.c., of which:",null,null,null,null,null,{"$f":"IF(TRIM(J106)=\"\", \"\", IF(VLOOKUP(J106,'Footnotes list'!$D$9:$E$58,2,FALSE)=0,\"\",VLOOKUP(J106,'Footnotes list'!$D$9:$E$58,2,FALSE) ) )","v":""},null,null,null,null,{"$f":"IF(TRIM(O106)=\"\", \"\", IF(VLOOKUP(O106,'Footnotes list'!$D$9:$E$58,2,FALSE)=0,\"\",VLOOKUP(O106,'Footnotes list'!$D$9:$E$58,2,FALSE) ) )","v":""},null,null,null,null,{"$f":"IF(TRIM(T106)=\"\", \"\", IF(VLOOKUP(T106,'Footnotes list'!$D$9:$E$58,2,FALSE)=0,\"\",VLOOKUP(T106,'Footnotes list'!$D$9:$E$58,2,FALSE) ) )","v":""},null,null,null,null,{"$f":"IF(TRIM(Y106)=\"\", \"\", IF(VLOOKUP(Y106,'Footnotes list'!$D$9:$E$58,2,FALSE)=0,\"\",VLOOKUP(Y106,'Footnotes list'!$D$9:$E$58,2,FALSE) ) )","v":""},null,null,null,null,{"$f":"IF(TRIM(AD106)=\"\", \"\", IF(VLOOKUP(AD106,'Footnotes list'!$D$9:$E$58,2,FALSE)=0,\"\",VLOOKUP(AD106,'Footnotes list'!$D$9:$E$58,2,FALSE) ) )","v":""},null,null,null,null,{"$f":"IF(TRIM(AI106)=\"\", \"\", IF(VLOOKUP(AI106,'Footnotes list'!$D$9:$E$58,2,FALSE)=0,\"\",VLOOKUP(AI106,'Footnotes list'!$D$9:$E$58,2,FALSE) ) )","v":""},null,null,null,null,{"$f":"IF(TRIM(AN106)=\"\", \"\", IF(VLOOKUP(AN106,'Footnotes list'!$D$9:$E$58,2,FALSE)=0,\"\",VLOOKUP(AN106,'Footnotes list'!$D$9:$E$58,2,FALSE) ) )","v":""},null,null,null,null,{"$f":"IF(TRIM(AS106)=\"\", \"\", IF(VLOOKUP(AS106,'Footnotes list'!$D$9:$E$58,2,FALSE)=0,\"\",VLOOKUP(AS106,'Footnotes list'!$D$9:$E$58,2,FALSE) ) )","v":""},null,null,null,null,{"$f":"IF(TRIM(AX106)=\"\", \"\", IF(VLOOKUP(AX106,'Footnotes list'!$D$9:$E$58,2,FALSE)=0,\"\",VLOOKUP(AX106,'Footnotes list'!$D$9:$E$58,2,FALSE) ) )","v":""},null,null,null,null,{"$f":"IF(TRIM(BC106)=\"\", \"\", IF(VLOOKUP(BC106,'Footnotes list'!$D$9:$E$58,2,FALSE)=0,\"\",VLOOKUP(BC106,'Footnotes list'!$D$9:$E$58,2,FALSE) ) )","v":""},null,null,null,null,{"$f":"IF(TRIM(BH106)=\"\", \"\", IF(VLOOKUP(BH106,'Footnotes list'!$D$9:$E$58,2,FALSE)=0,\"\",VLOOKUP(BH106,'Footnotes list'!$D$9:$E$58,2,FALSE) ) )","v":""},null,null,null,null,{"$f":"IF(TRIM(BM106)=\"\", \"\", IF(VLOOKUP(BM106,'Footnotes list'!$D$9:$E$58,2,FALSE)=0,\"\",VLOOKUP(BM106,'Footnotes list'!$D$9:$E$58,2,FALSE) ) )","v":""},null,null,null,null,{"$f":"IF(TRIM(BR106)=\"\", \"\", IF(VLOOKUP(BR106,'Footnotes list'!$D$9:$E$58,2,FALSE)=0,\"\",VLOOKUP(BR106,'Footnotes list'!$D$9:$E$58,2,FALSE) ) )","v":""},null,null,null,null,{"$f":"IF(TRIM(BW106)=\"\", \"\", IF(VLOOKUP(BW106,'Footnotes list'!$D$9:$E$58,2,FALSE)=0,\"\",VLOOKUP(BW106,'Footnotes list'!$D$9:$E$58,2,FALSE) ) )","v":""},null,null,null,null,{"$f":"IF(TRIM(CB106)=\"\", \"\", IF(VLOOKUP(CB106,'Footnotes list'!$D$9:$E$58,2,FALSE)=0,\"\",VLOOKUP(CB106,'Footnotes list'!$D$9:$E$58,2,FALSE) ) )","v":""},null,null,null,null,{"$f":"IF(TRIM(CG106)=\"\", \"\", IF(VLOOKUP(CG106,'Footnotes list'!$D$9:$E$58,2,FALSE)=0,\"\",VLOOKUP(CG106,'Footnotes list'!$D$9:$E$58,2,FALSE) ) )","v":""},null,null,null,null,{"$f":"IF(TRIM(CL106)=\"\", \"\", IF(VLOOKUP(CL106,'Footnotes list'!$D$9:$E$58,2,FALSE)=0,\"\",VLOOKUP(CL106,'Footnotes list'!$D$9:$E$58,2,FALSE) ) )","v":""},null,null,null,null,{"$f":"IF(TRIM(CQ106)=\"\", \"\", IF(VLOOKUP(CQ106,'Footnotes list'!$D$9:$E$58,2,FALSE)=0,\"\",VLOOKUP(CQ106,'Footnotes list'!$D$9:$E$58,2,FALSE) ) )","v":""},null,null,null,null,{"$f":"IF(TRIM(CV106)=\"\", \"\", IF(VLOOKUP(CV106,'Footnotes list'!$D$9:$E$58,2,FALSE)=0,\"\",VLOOKUP(CV106,'Footnotes list'!$D$9:$E$58,2,FALSE) ) )","v":""},null,null,null,null,{"$f":"IF(TRIM(DA106)=\"\", \"\", IF(VLOOKUP(DA106,'Footnotes list'!$D$9:$E$58,2,FALSE)=0,\"\",VLOOKUP(DA106,'Footnotes list'!$D$9:$E$58,2,FALSE) ) )","v":""},null,null,null,null,{"$f":"IF(TRIM(DF106)=\"\", \"\", IF(VLOOKUP(DF106,'Footnotes list'!$D$9:$E$58,2,FALSE)=0,\"\",VLOOKUP(DF106,'Footnotes list'!$D$9:$E$58,2,FALSE) ) )","v":""},null,null,null,null,{"$f":"IF(TRIM(DK106)=\"\", \"\", IF(VLOOKUP(DK106,'Footnotes list'!$D$9:$E$58,2,FALSE)=0,\"\",VLOOKUP(DK106,'Footnotes list'!$D$9:$E$58,2,FALSE) ) )","v":""},null,null,null,null,{"$f":"IF(TRIM(DP106)=\"\", \"\", IF(VLOOKUP(DP106,'Footnotes list'!$D$9:$E$58,2,FALSE)=0,\"\",VLOOKUP(DP106,'Footnotes list'!$D$9:$E$58,2,FALSE) ) )","v":""},null,null,null,null,{"$f":"IF(TRIM(DU106)=\"\", \"\", IF(VLOOKUP(DU106,'Footnotes list'!$D$9:$E$58,2,FALSE)=0,\"\",VLOOKUP(DU106,'Footnotes list'!$D$9:$E$58,2,FALSE) ) )","v":""},null,null,null,null,{"$f":"IF(TRIM(DZ106)=\"\", \"\", IF(VLOOKUP(DZ106,'Footnotes list'!$D$9:$E$58,2,FALSE)=0,\"\",VLOOKUP(DZ106,'Footnotes list'!$D$9:$E$58,2,FALSE) ) )","v":""},null,null,null,null,{"$f":"IF(TRIM(EE106)=\"\", \"\", IF(VLOOKUP(EE106,'Footnotes list'!$D$9:$E$58,2,FALSE)=0,\"\",VLOOKUP(EE106,'Footnotes list'!$D$9:$E$58,2,FALSE) ) )","v":""},null,null,null,null,{"$f":"IF(TRIM(EJ106)=\"\", \"\", IF(VLOOKUP(EJ106,'Footnotes list'!$D$9:$E$58,2,FALSE)=0,\"\",VLOOKUP(EJ106,'Footnotes list'!$D$9:$E$58,2,FALSE) ) )","v":""},null,null,null,null,{"$f":"IF(TRIM(EO106)=\"\", \"\", IF(VLOOKUP(EO106,'Footnotes list'!$D$9:$E$58,2,FALSE)=0,\"\",VLOOKUP(EO106,'Footnotes list'!$D$9:$E$58,2,FALSE) ) )","v":""},null,null,null,null,{"$f":"IF(TRIM(ET106)=\"\", \"\", IF(VLOOKUP(ET106,'Footnotes list'!$D$9:$E$58,2,FALSE)=0,\"\",VLOOKUP(ET106,'Footnotes list'!$D$9:$E$58,2,FALSE) ) )","v":""},null,null,null,null,{"$f":"IF(TRIM(EY106)=\"\", \"\", IF(VLOOKUP(EY106,'Footnotes list'!$D$9:$E$58,2,FALSE)=0,\"\",VLOOKUP(EY106,'Footnotes list'!$D$9:$E$58,2,FALSE) ) )","v":""}]
[null,null,"C28","ANC","ancillary activities",null,null,null,null,null,{"$f":"IF(TRIM(J107)=\"\", \"\", IF(VLOOKUP(J107,'Footnotes list'!$D$9:$E$58,2,FALSE)=0,\"\",VLOOKUP(J107,'Footnotes list'!$D$9:$E$58,2,FALSE) ) )","v":""},null,null,null,null,{"$f":"IF(TRIM(O107)=\"\", \"\", IF(VLOOKUP(O107,'Footnotes list'!$D$9:$E$58,2,FALSE)=0,\"\",VLOOKUP(O107,'Footnotes list'!$D$9:$E$58,2,FALSE) ) )","v":""},null,null,null,null,{"$f":"IF(TRIM(T107)=\"\", \"\", IF(VLOOKUP(T107,'Footnotes list'!$D$9:$E$58,2,FALSE)=0,\"\",VLOOKUP(T107,'Footnotes list'!$D$9:$E$58,2,FALSE) ) )","v":""},null,null,null,null,{"$f":"IF(TRIM(Y107)=\"\", \"\", IF(VLOOKUP(Y107,'Footnotes list'!$D$9:$E$58,2,FALSE)=0,\"\",VLOOKUP(Y107,'Footnotes list'!$D$9:$E$58,2,FALSE) ) )","v":""},null,null,null,null,{"$f":"IF(TRIM(AD107)=\"\", \"\", IF(VLOOKUP(AD107,'Footnotes list'!$D$9:$E$58,2,FALSE)=0,\"\",VLOOKUP(AD107,'Footnotes list'!$D$9:$E$58,2,FALSE) ) )","v":""},null,null,null,null,{"$f":"IF(TRIM(AI107)=\"\", \"\", IF(VLOOKUP(AI107,'Footnotes list'!$D$9:$E$58,2,FALSE)=0,\"\",VLOOKUP(AI107,'Footnotes list'!$D$9:$E$58,2,FALSE) ) )","v":""},null,null,null,null,{"$f":"IF(TRIM(AN107)=\"\", \"\", IF(VLOOKUP(AN107,'Footnotes list'!$D$9:$E$58,2,FALSE)=0,\"\",VLOOKUP(AN107,'Footnotes list'!$D$9:$E$58,2,FALSE) ) )","v":""},null,null,null,null,{"$f":"IF(TRIM(AS107)=\"\", \"\", IF(VLOOKUP(AS107,'Footnotes list'!$D$9:$E$58,2,FALSE)=0,\"\",VLOOKUP(AS107,'Footnotes list'!$D$9:$E$58,2,FALSE) ) )","v":""},null,null,null,null,{"$f":"IF(TRIM(AX107)=\"\", \"\", IF(VLOOKUP(AX107,'Footnotes list'!$D$9:$E$58,2,FALSE)=0,\"\",VLOOKUP(AX107,'Footnotes list'!$D$9:$E$58,2,FALSE) ) )","v":""},null,null,null,null,{"$f":"IF(TRIM(BC107)=\"\", \"\", IF(VLOOKUP(BC107,'Footnotes list'!$D$9:$E$58,2,FALSE)=0,\"\",VLOOKUP(BC107,'Footnotes list'!$D$9:$E$58,2,FALSE) ) )","v":""},null,null,null,null,{"$f":"IF(TRIM(BH107)=\"\", \"\", IF(VLOOKUP(BH107,'Footnotes list'!$D$9:$E$58,2,FALSE)=0,\"\",VLOOKUP(BH107,'Footnotes list'!$D$9:$E$58,2,FALSE) ) )","v":""},null,null,null,null,{"$f":"IF(TRIM(BM107)=\"\", \"\", IF(VLOOKUP(BM107,'Footnotes list'!$D$9:$E$58,2,FALSE)=0,\"\",VLOOKUP(BM107,'Footnotes list'!$D$9:$E$58,2,FALSE) ) )","v":""},null,null,null,null,{"$f":"IF(TRIM(BR107)=\"\", \"\", IF(VLOOKUP(BR107,'Footnotes list'!$D$9:$E$58,2,FALSE)=0,\"\",VLOOKUP(BR107,'Footnotes list'!$D$9:$E$58,2,FALSE) ) )","v":""},null,null,null,null,{"$f":"IF(TRIM(BW107)=\"\", \"\", IF(VLOOKUP(BW107,'Footnotes list'!$D$9:$E$58,2,FALSE)=0,\"\",VLOOKUP(BW107,'Footnotes list'!$D$9:$E$58,2,FALSE) ) )","v":""},null,null,null,null,{"$f":"IF(TRIM(CB107)=\"\", \"\", IF(VLOOKUP(CB107,'Footnotes list'!$D$9:$E$58,2,FALSE)=0,\"\",VLOOKUP(CB107,'Footnotes list'!$D$9:$E$58,2,FALSE) ) )","v":""},null,null,null,null,{"$f":"IF(TRIM(CG107)=\"\", \"\", IF(VLOOKUP(CG107,'Footnotes list'!$D$9:$E$58,2,FALSE)=0,\"\",VLOOKUP(CG107,'Footnotes list'!$D$9:$E$58,2,FALSE) ) )","v":""},null,null,null,null,{"$f":"IF(TRIM(CL107)=\"\", \"\", IF(VLOOKUP(CL107,'Footnotes list'!$D$9:$E$58,2,FALSE)=0,\"\",VLOOKUP(CL107,'Footnotes list'!$D$9:$E$58,2,FALSE) ) )","v":""},null,null,null,null,{"$f":"IF(TRIM(CQ107)=\"\", \"\", IF(VLOOKUP(CQ107,'Footnotes list'!$D$9:$E$58,2,FALSE)=0,\"\",VLOOKUP(CQ107,'Footnotes list'!$D$9:$E$58,2,FALSE) ) )","v":""},null,null,null,null,{"$f":"IF(TRIM(CV107)=\"\", \"\", IF(VLOOKUP(CV107,'Footnotes list'!$D$9:$E$58,2,FALSE)=0,\"\",VLOOKUP(CV107,'Footnotes list'!$D$9:$E$58,2,FALSE) ) )","v":""},null,null,null,null,{"$f":"IF(TRIM(DA107)=\"\", \"\", IF(VLOOKUP(DA107,'Footnotes list'!$D$9:$E$58,2,FALSE)=0,\"\",VLOOKUP(DA107,'Footnotes list'!$D$9:$E$58,2,FALSE) ) )","v":""},null,null,null,null,{"$f":"IF(TRIM(DF107)=\"\", \"\", IF(VLOOKUP(DF107,'Footnotes list'!$D$9:$E$58,2,FALSE)=0,\"\",VLOOKUP(DF107,'Footnotes list'!$D$9:$E$58,2,FALSE) ) )","v":""},null,null,null,null,{"$f":"IF(TRIM(DK107)=\"\", \"\", IF(VLOOKUP(DK107,'Footnotes list'!$D$9:$E$58,2,FALSE)=0,\"\",VLOOKUP(DK107,'Footnotes list'!$D$9:$E$58,2,FALSE) ) )","v":""},null,null,null,null,{"$f":"IF(TRIM(DP107)=\"\", \"\", IF(VLOOKUP(DP107,'Footnotes list'!$D$9:$E$58,2,FALSE)=0,\"\",VLOOKUP(DP107,'Footnotes list'!$D$9:$E$58,2,FALSE) ) )","v":""},null,null,null,null,{"$f":"IF(TRIM(DU107)=\"\", \"\", IF(VLOOKUP(DU107,'Footnotes list'!$D$9:$E$58,2,FALSE)=0,\"\",VLOOKUP(DU107,'Footnotes list'!$D$9:$E$58,2,FALSE) ) )","v":""},null,null,null,null,{"$f":"IF(TRIM(DZ107)=\"\", \"\", IF(VLOOKUP(DZ107,'Footnotes list'!$D$9:$E$58,2,FALSE)=0,\"\",VLOOKUP(DZ107,'Footnotes list'!$D$9:$E$58,2,FALSE) ) )","v":""},null,null,null,null,{"$f":"IF(TRIM(EE107)=\"\", \"\", IF(VLOOKUP(EE107,'Footnotes list'!$D$9:$E$58,2,FALSE)=0,\"\",VLOOKUP(EE107,'Footnotes list'!$D$9:$E$58,2,FALSE) ) )","v":""},null,null,null,null,{"$f":"IF(TRIM(EJ107)=\"\", \"\", IF(VLOOKUP(EJ107,'Footnotes list'!$D$9:$E$58,2,FALSE)=0,\"\",VLOOKUP(EJ107,'Footnotes list'!$D$9:$E$58,2,FALSE) ) )","v":""},null,null,null,null,{"$f":"IF(TRIM(EO107)=\"\", \"\", IF(VLOOKUP(EO107,'Footnotes list'!$D$9:$E$58,2,FALSE)=0,\"\",VLOOKUP(EO107,'Footnotes list'!$D$9:$E$58,2,FALSE) ) )","v":""},null,null,null,null,{"$f":"IF(TRIM(ET107)=\"\", \"\", IF(VLOOKUP(ET107,'Footnotes list'!$D$9:$E$58,2,FALSE)=0,\"\",VLOOKUP(ET107,'Footnotes list'!$D$9:$E$58,2,FALSE) ) )","v":""},null,null,null,null,{"$f":"IF(TRIM(EY107)=\"\", \"\", IF(VLOOKUP(EY107,'Footnotes list'!$D$9:$E$58,2,FALSE)=0,\"\",VLOOKUP(EY107,'Footnotes list'!$D$9:$E$58,2,FALSE) ) )","v":""}]
[null,null,"C28","NMKT","non-market activities",null,null,null,null,null,{"$f":"IF(TRIM(J108)=\"\", \"\", IF(VLOOKUP(J108,'Footnotes list'!$D$9:$E$58,2,FALSE)=0,\"\",VLOOKUP(J108,'Footnotes list'!$D$9:$E$58,2,FALSE) ) )","v":""},null,null,null,null,{"$f":"IF(TRIM(O108)=\"\", \"\", IF(VLOOKUP(O108,'Footnotes list'!$D$9:$E$58,2,FALSE)=0,\"\",VLOOKUP(O108,'Footnotes list'!$D$9:$E$58,2,FALSE) ) )","v":""},null,null,null,null,{"$f":"IF(TRIM(T108)=\"\", \"\", IF(VLOOKUP(T108,'Footnotes list'!$D$9:$E$58,2,FALSE)=0,\"\",VLOOKUP(T108,'Footnotes list'!$D$9:$E$58,2,FALSE) ) )","v":""},null,null,null,null,{"$f":"IF(TRIM(Y108)=\"\", \"\", IF(VLOOKUP(Y108,'Footnotes list'!$D$9:$E$58,2,FALSE)=0,\"\",VLOOKUP(Y108,'Footnotes list'!$D$9:$E$58,2,FALSE) ) )","v":""},null,null,null,null,{"$f":"IF(TRIM(AD108)=\"\", \"\", IF(VLOOKUP(AD108,'Footnotes list'!$D$9:$E$58,2,FALSE)=0,\"\",VLOOKUP(AD108,'Footnotes list'!$D$9:$E$58,2,FALSE) ) )","v":""},null,null,null,null,{"$f":"IF(TRIM(AI108)=\"\", \"\", IF(VLOOKUP(AI108,'Footnotes list'!$D$9:$E$58,2,FALSE)=0,\"\",VLOOKUP(AI108,'Footnotes list'!$D$9:$E$58,2,FALSE) ) )","v":""},null,null,null,null,{"$f":"IF(TRIM(AN108)=\"\", \"\", IF(VLOOKUP(AN108,'Footnotes list'!$D$9:$E$58,2,FALSE)=0,\"\",VLOOKUP(AN108,'Footnotes list'!$D$9:$E$58,2,FALSE) ) )","v":""},null,null,null,null,{"$f":"IF(TRIM(AS108)=\"\", \"\", IF(VLOOKUP(AS108,'Footnotes list'!$D$9:$E$58,2,FALSE)=0,\"\",VLOOKUP(AS108,'Footnotes list'!$D$9:$E$58,2,FALSE) ) )","v":""},null,null,null,null,{"$f":"IF(TRIM(AX108)=\"\", \"\", IF(VLOOKUP(AX108,'Footnotes list'!$D$9:$E$58,2,FALSE)=0,\"\",VLOOKUP(AX108,'Footnotes list'!$D$9:$E$58,2,FALSE) ) )","v":""},null,null,null,null,{"$f":"IF(TRIM(BC108)=\"\", \"\", IF(VLOOKUP(BC108,'Footnotes list'!$D$9:$E$58,2,FALSE)=0,\"\",VLOOKUP(BC108,'Footnotes list'!$D$9:$E$58,2,FALSE) ) )","v":""},null,null,null,null,{"$f":"IF(TRIM(BH108)=\"\", \"\", IF(VLOOKUP(BH108,'Footnotes list'!$D$9:$E$58,2,FALSE)=0,\"\",VLOOKUP(BH108,'Footnotes list'!$D$9:$E$58,2,FALSE) ) )","v":""},null,null,null,null,{"$f":"IF(TRIM(BM108)=\"\", \"\", IF(VLOOKUP(BM108,'Footnotes list'!$D$9:$E$58,2,FALSE)=0,\"\",VLOOKUP(BM108,'Footnotes list'!$D$9:$E$58,2,FALSE) ) )","v":""},null,null,null,null,{"$f":"IF(TRIM(BR108)=\"\", \"\", IF(VLOOKUP(BR108,'Footnotes list'!$D$9:$E$58,2,FALSE)=0,\"\",VLOOKUP(BR108,'Footnotes list'!$D$9:$E$58,2,FALSE) ) )","v":""},null,null,null,null,{"$f":"IF(TRIM(BW108)=\"\", \"\", IF(VLOOKUP(BW108,'Footnotes list'!$D$9:$E$58,2,FALSE)=0,\"\",VLOOKUP(BW108,'Footnotes list'!$D$9:$E$58,2,FALSE) ) )","v":""},null,null,null,null,{"$f":"IF(TRIM(CB108)=\"\", \"\", IF(VLOOKUP(CB108,'Footnotes list'!$D$9:$E$58,2,FALSE)=0,\"\",VLOOKUP(CB108,'Footnotes list'!$D$9:$E$58,2,FALSE) ) )","v":""},null,null,null,null,{"$f":"IF(TRIM(CG108)=\"\", \"\", IF(VLOOKUP(CG108,'Footnotes list'!$D$9:$E$58,2,FALSE)=0,\"\",VLOOKUP(CG108,'Footnotes list'!$D$9:$E$58,2,FALSE) ) )","v":""},null,null,null,null,{"$f":"IF(TRIM(CL108)=\"\", \"\", IF(VLOOKUP(CL108,'Footnotes list'!$D$9:$E$58,2,FALSE)=0,\"\",VLOOKUP(CL108,'Footnotes list'!$D$9:$E$58,2,FALSE) ) )","v":""},null,null,null,null,{"$f":"IF(TRIM(CQ108)=\"\", \"\", IF(VLOOKUP(CQ108,'Footnotes list'!$D$9:$E$58,2,FALSE)=0,\"\",VLOOKUP(CQ108,'Footnotes list'!$D$9:$E$58,2,FALSE) ) )","v":""},null,null,null,null,{"$f":"IF(TRIM(CV108)=\"\", \"\", IF(VLOOKUP(CV108,'Footnotes list'!$D$9:$E$58,2,FALSE)=0,\"\",VLOOKUP(CV108,'Footnotes list'!$D$9:$E$58,2,FALSE) ) )","v":""},null,null,null,null,{"$f":"IF(TRIM(DA108)=\"\", \"\", IF(VLOOKUP(DA108,'Footnotes list'!$D$9:$E$58,2,FALSE)=0,\"\",VLOOKUP(DA108,'Footnotes list'!$D$9:$E$58,2,FALSE) ) )","v":""},null,null,null,null,{"$f":"IF(TRIM(DF108)=\"\", \"\", IF(VLOOKUP(DF108,'Footnotes list'!$D$9:$E$58,2,FALSE)=0,\"\",VLOOKUP(DF108,'Footnotes list'!$D$9:$E$58,2,FALSE) ) )","v":""},null,null,null,null,{"$f":"IF(TRIM(DK108)=\"\", \"\", IF(VLOOKUP(DK108,'Footnotes list'!$D$9:$E$58,2,FALSE)=0,\"\",VLOOKUP(DK108,'Footnotes list'!$D$9:$E$58,2,FALSE) ) )","v":""},null,null,null,null,{"$f":"IF(TRIM(DP108)=\"\", \"\", IF(VLOOKUP(DP108,'Footnotes list'!$D$9:$E$58,2,FALSE)=0,\"\",VLOOKUP(DP108,'Footnotes list'!$D$9:$E$58,2,FALSE) ) )","v":""},null,null,null,null,{"$f":"IF(TRIM(DU108)=\"\", \"\", IF(VLOOKUP(DU108,'Footnotes list'!$D$9:$E$58,2,FALSE)=0,\"\",VLOOKUP(DU108,'Footnotes list'!$D$9:$E$58,2,FALSE) ) )","v":""},null,null,null,null,{"$f":"IF(TRIM(DZ108)=\"\", \"\", IF(VLOOKUP(DZ108,'Footnotes list'!$D$9:$E$58,2,FALSE)=0,\"\",VLOOKUP(DZ108,'Footnotes list'!$D$9:$E$58,2,FALSE) ) )","v":""},null,null,null,null,{"$f":"IF(TRIM(EE108)=\"\", \"\", IF(VLOOKUP(EE108,'Footnotes list'!$D$9:$E$58,2,FALSE)=0,\"\",VLOOKUP(EE108,'Footnotes list'!$D$9:$E$58,2,FALSE) ) )","v":""},null,null,null,null,{"$f":"IF(TRIM(EJ108)=\"\", \"\", IF(VLOOKUP(EJ108,'Footnotes list'!$D$9:$E$58,2,FALSE)=0,\"\",VLOOKUP(EJ108,'Footnotes list'!$D$9:$E$58,2,FALSE) ) )","v":""},null,null,null,null,{"$f":"IF(TRIM(EO108)=\"\", \"\", IF(VLOOKUP(EO108,'Footnotes list'!$D$9:$E$58,2,FALSE)=0,\"\",VLOOKUP(EO108,'Footnotes list'!$D$9:$E$58,2,FALSE) ) )","v":""},null,null,null,null,{"$f":"IF(TRIM(ET108)=\"\", \"\", IF(VLOOKUP(ET108,'Footnotes list'!$D$9:$E$58,2,FALSE)=0,\"\",VLOOKUP(ET108,'Footnotes list'!$D$9:$E$58,2,FALSE) ) )","v":""},null,null,null,null,{"$f":"IF(TRIM(EY108)=\"\", \"\", IF(VLOOKUP(EY108,'Footnotes list'!$D$9:$E$58,2,FALSE)=0,\"\",VLOOKUP(EY108,'Footnotes list'!$D$9:$E$58,2,FALSE) ) )","v":""}]
[null,null,"C28","OWN_USE","activities for own final use",null,null,null,null,null,{"$f":"IF(TRIM(J109)=\"\", \"\", IF(VLOOKUP(J109,'Footnotes list'!$D$9:$E$58,2,FALSE)=0,\"\",VLOOKUP(J109,'Footnotes list'!$D$9:$E$58,2,FALSE) ) )","v":""},null,null,null,null,{"$f":"IF(TRIM(O109)=\"\", \"\", IF(VLOOKUP(O109,'Footnotes list'!$D$9:$E$58,2,FALSE)=0,\"\",VLOOKUP(O109,'Footnotes list'!$D$9:$E$58,2,FALSE) ) )","v":""},null,null,null,null,{"$f":"IF(TRIM(T109)=\"\", \"\", IF(VLOOKUP(T109,'Footnotes list'!$D$9:$E$58,2,FALSE)=0,\"\",VLOOKUP(T109,'Footnotes list'!$D$9:$E$58,2,FALSE) ) )","v":""},null,null,null,null,{"$f":"IF(TRIM(Y109)=\"\", \"\", IF(VLOOKUP(Y109,'Footnotes list'!$D$9:$E$58,2,FALSE)=0,\"\",VLOOKUP(Y109,'Footnotes list'!$D$9:$E$58,2,FALSE) ) )","v":""},null,null,null,null,{"$f":"IF(TRIM(AD109)=\"\", \"\", IF(VLOOKUP(AD109,'Footnotes list'!$D$9:$E$58,2,FALSE)=0,\"\",VLOOKUP(AD109,'Footnotes list'!$D$9:$E$58,2,FALSE) ) )","v":""},null,null,null,null,{"$f":"IF(TRIM(AI109)=\"\", \"\", IF(VLOOKUP(AI109,'Footnotes list'!$D$9:$E$58,2,FALSE)=0,\"\",VLOOKUP(AI109,'Footnotes list'!$D$9:$E$58,2,FALSE) ) )","v":""},null,null,null,null,{"$f":"IF(TRIM(AN109)=\"\", \"\", IF(VLOOKUP(AN109,'Footnotes list'!$D$9:$E$58,2,FALSE)=0,\"\",VLOOKUP(AN109,'Footnotes list'!$D$9:$E$58,2,FALSE) ) )","v":""},null,null,null,null,{"$f":"IF(TRIM(AS109)=\"\", \"\", IF(VLOOKUP(AS109,'Footnotes list'!$D$9:$E$58,2,FALSE)=0,\"\",VLOOKUP(AS109,'Footnotes list'!$D$9:$E$58,2,FALSE) ) )","v":""},null,null,null,null,{"$f":"IF(TRIM(AX109)=\"\", \"\", IF(VLOOKUP(AX109,'Footnotes list'!$D$9:$E$58,2,FALSE)=0,\"\",VLOOKUP(AX109,'Footnotes list'!$D$9:$E$58,2,FALSE) ) )","v":""},null,null,null,null,{"$f":"IF(TRIM(BC109)=\"\", \"\", IF(VLOOKUP(BC109,'Footnotes list'!$D$9:$E$58,2,FALSE)=0,\"\",VLOOKUP(BC109,'Footnotes list'!$D$9:$E$58,2,FALSE) ) )","v":""},null,null,null,null,{"$f":"IF(TRIM(BH109)=\"\", \"\", IF(VLOOKUP(BH109,'Footnotes list'!$D$9:$E$58,2,FALSE)=0,\"\",VLOOKUP(BH109,'Footnotes list'!$D$9:$E$58,2,FALSE) ) )","v":""},null,null,null,null,{"$f":"IF(TRIM(BM109)=\"\", \"\", IF(VLOOKUP(BM109,'Footnotes list'!$D$9:$E$58,2,FALSE)=0,\"\",VLOOKUP(BM109,'Footnotes list'!$D$9:$E$58,2,FALSE) ) )","v":""},null,null,null,null,{"$f":"IF(TRIM(BR109)=\"\", \"\", IF(VLOOKUP(BR109,'Footnotes list'!$D$9:$E$58,2,FALSE)=0,\"\",VLOOKUP(BR109,'Footnotes list'!$D$9:$E$58,2,FALSE) ) )","v":""},null,null,null,null,{"$f":"IF(TRIM(BW109)=\"\", \"\", IF(VLOOKUP(BW109,'Footnotes list'!$D$9:$E$58,2,FALSE)=0,\"\",VLOOKUP(BW109,'Footnotes list'!$D$9:$E$58,2,FALSE) ) )","v":""},null,null,null,null,{"$f":"IF(TRIM(CB109)=\"\", \"\", IF(VLOOKUP(CB109,'Footnotes list'!$D$9:$E$58,2,FALSE)=0,\"\",VLOOKUP(CB109,'Footnotes list'!$D$9:$E$58,2,FALSE) ) )","v":""},null,null,null,null,{"$f":"IF(TRIM(CG109)=\"\", \"\", IF(VLOOKUP(CG109,'Footnotes list'!$D$9:$E$58,2,FALSE)=0,\"\",VLOOKUP(CG109,'Footnotes list'!$D$9:$E$58,2,FALSE) ) )","v":""},null,null,null,null,{"$f":"IF(TRIM(CL109)=\"\", \"\", IF(VLOOKUP(CL109,'Footnotes list'!$D$9:$E$58,2,FALSE)=0,\"\",VLOOKUP(CL109,'Footnotes list'!$D$9:$E$58,2,FALSE) ) )","v":""},null,null,null,null,{"$f":"IF(TRIM(CQ109)=\"\", \"\", IF(VLOOKUP(CQ109,'Footnotes list'!$D$9:$E$58,2,FALSE)=0,\"\",VLOOKUP(CQ109,'Footnotes list'!$D$9:$E$58,2,FALSE) ) )","v":""},null,null,null,null,{"$f":"IF(TRIM(CV109)=\"\", \"\", IF(VLOOKUP(CV109,'Footnotes list'!$D$9:$E$58,2,FALSE)=0,\"\",VLOOKUP(CV109,'Footnotes list'!$D$9:$E$58,2,FALSE) ) )","v":""},null,null,null,null,{"$f":"IF(TRIM(DA109)=\"\", \"\", IF(VLOOKUP(DA109,'Footnotes list'!$D$9:$E$58,2,FALSE)=0,\"\",VLOOKUP(DA109,'Footnotes list'!$D$9:$E$58,2,FALSE) ) )","v":""},null,null,null,null,{"$f":"IF(TRIM(DF109)=\"\", \"\", IF(VLOOKUP(DF109,'Footnotes list'!$D$9:$E$58,2,FALSE)=0,\"\",VLOOKUP(DF109,'Footnotes list'!$D$9:$E$58,2,FALSE) ) )","v":""},null,null,null,null,{"$f":"IF(TRIM(DK109)=\"\", \"\", IF(VLOOKUP(DK109,'Footnotes list'!$D$9:$E$58,2,FALSE)=0,\"\",VLOOKUP(DK109,'Footnotes list'!$D$9:$E$58,2,FALSE) ) )","v":""},null,null,null,null,{"$f":"IF(TRIM(DP109)=\"\", \"\", IF(VLOOKUP(DP109,'Footnotes list'!$D$9:$E$58,2,FALSE)=0,\"\",VLOOKUP(DP109,'Footnotes list'!$D$9:$E$58,2,FALSE) ) )","v":""},null,null,null,null,{"$f":"IF(TRIM(DU109)=\"\", \"\", IF(VLOOKUP(DU109,'Footnotes list'!$D$9:$E$58,2,FALSE)=0,\"\",VLOOKUP(DU109,'Footnotes list'!$D$9:$E$58,2,FALSE) ) )","v":""},null,null,null,null,{"$f":"IF(TRIM(DZ109)=\"\", \"\", IF(VLOOKUP(DZ109,'Footnotes list'!$D$9:$E$58,2,FALSE)=0,\"\",VLOOKUP(DZ109,'Footnotes list'!$D$9:$E$58,2,FALSE) ) )","v":""},null,null,null,null,{"$f":"IF(TRIM(EE109)=\"\", \"\", IF(VLOOKUP(EE109,'Footnotes list'!$D$9:$E$58,2,FALSE)=0,\"\",VLOOKUP(EE109,'Footnotes list'!$D$9:$E$58,2,FALSE) ) )","v":""},null,null,null,null,{"$f":"IF(TRIM(EJ109)=\"\", \"\", IF(VLOOKUP(EJ109,'Footnotes list'!$D$9:$E$58,2,FALSE)=0,\"\",VLOOKUP(EJ109,'Footnotes list'!$D$9:$E$58,2,FALSE) ) )","v":""},null,null,null,null,{"$f":"IF(TRIM(EO109)=\"\", \"\", IF(VLOOKUP(EO109,'Footnotes list'!$D$9:$E$58,2,FALSE)=0,\"\",VLOOKUP(EO109,'Footnotes list'!$D$9:$E$58,2,FALSE) ) )","v":""},null,null,null,null,{"$f":"IF(TRIM(ET109)=\"\", \"\", IF(VLOOKUP(ET109,'Footnotes list'!$D$9:$E$58,2,FALSE)=0,\"\",VLOOKUP(ET109,'Footnotes list'!$D$9:$E$58,2,FALSE) ) )","v":""},null,null,null,null,{"$f":"IF(TRIM(EY109)=\"\", \"\", IF(VLOOKUP(EY109,'Footnotes list'!$D$9:$E$58,2,FALSE)=0,\"\",VLOOKUP(EY109,'Footnotes list'!$D$9:$E$58,2,FALSE) ) )","v":""}]
[null,null,"C28","MKT","market activities, including:",null,null,null,null,null,{"$f":"IF(TRIM(J110)=\"\", \"\", IF(VLOOKUP(J110,'Footnotes list'!$D$9:$E$58,2,FALSE)=0,\"\",VLOOKUP(J110,'Footnotes list'!$D$9:$E$58,2,FALSE) ) )","v":""},null,null,null,null,{"$f":"IF(TRIM(O110)=\"\", \"\", IF(VLOOKUP(O110,'Footnotes list'!$D$9:$E$58,2,FALSE)=0,\"\",VLOOKUP(O110,'Footnotes list'!$D$9:$E$58,2,FALSE) ) )","v":""},null,null,null,null,{"$f":"IF(TRIM(T110)=\"\", \"\", IF(VLOOKUP(T110,'Footnotes list'!$D$9:$E$58,2,FALSE)=0,\"\",VLOOKUP(T110,'Footnotes list'!$D$9:$E$58,2,FALSE) ) )","v":""},null,null,null,null,{"$f":"IF(TRIM(Y110)=\"\", \"\", IF(VLOOKUP(Y110,'Footnotes list'!$D$9:$E$58,2,FALSE)=0,\"\",VLOOKUP(Y110,'Footnotes list'!$D$9:$E$58,2,FALSE) ) )","v":""},null,null,null,null,{"$f":"IF(TRIM(AD110)=\"\", \"\", IF(VLOOKUP(AD110,'Footnotes list'!$D$9:$E$58,2,FALSE)=0,\"\",VLOOKUP(AD110,'Footnotes list'!$D$9:$E$58,2,FALSE) ) )","v":""},null,null,null,null,{"$f":"IF(TRIM(AI110)=\"\", \"\", IF(VLOOKUP(AI110,'Footnotes list'!$D$9:$E$58,2,FALSE)=0,\"\",VLOOKUP(AI110,'Footnotes list'!$D$9:$E$58,2,FALSE) ) )","v":""},null,null,null,null,{"$f":"IF(TRIM(AN110)=\"\", \"\", IF(VLOOKUP(AN110,'Footnotes list'!$D$9:$E$58,2,FALSE)=0,\"\",VLOOKUP(AN110,'Footnotes list'!$D$9:$E$58,2,FALSE) ) )","v":""},null,null,null,null,{"$f":"IF(TRIM(AS110)=\"\", \"\", IF(VLOOKUP(AS110,'Footnotes list'!$D$9:$E$58,2,FALSE)=0,\"\",VLOOKUP(AS110,'Footnotes list'!$D$9:$E$58,2,FALSE) ) )","v":""},null,null,null,null,{"$f":"IF(TRIM(AX110)=\"\", \"\", IF(VLOOKUP(AX110,'Footnotes list'!$D$9:$E$58,2,FALSE)=0,\"\",VLOOKUP(AX110,'Footnotes list'!$D$9:$E$58,2,FALSE) ) )","v":""},null,null,null,null,{"$f":"IF(TRIM(BC110)=\"\", \"\", IF(VLOOKUP(BC110,'Footnotes list'!$D$9:$E$58,2,FALSE)=0,\"\",VLOOKUP(BC110,'Footnotes list'!$D$9:$E$58,2,FALSE) ) )","v":""},null,null,null,null,{"$f":"IF(TRIM(BH110)=\"\", \"\", IF(VLOOKUP(BH110,'Footnotes list'!$D$9:$E$58,2,FALSE)=0,\"\",VLOOKUP(BH110,'Footnotes list'!$D$9:$E$58,2,FALSE) ) )","v":""},null,null,null,null,{"$f":"IF(TRIM(BM110)=\"\", \"\", IF(VLOOKUP(BM110,'Footnotes list'!$D$9:$E$58,2,FALSE)=0,\"\",VLOOKUP(BM110,'Footnotes list'!$D$9:$E$58,2,FALSE) ) )","v":""},null,null,null,null,{"$f":"IF(TRIM(BR110)=\"\", \"\", IF(VLOOKUP(BR110,'Footnotes list'!$D$9:$E$58,2,FALSE)=0,\"\",VLOOKUP(BR110,'Footnotes list'!$D$9:$E$58,2,FALSE) ) )","v":""},null,null,null,null,{"$f":"IF(TRIM(BW110)=\"\", \"\", IF(VLOOKUP(BW110,'Footnotes list'!$D$9:$E$58,2,FALSE)=0,\"\",VLOOKUP(BW110,'Footnotes list'!$D$9:$E$58,2,FALSE) ) )","v":""},null,null,null,null,{"$f":"IF(TRIM(CB110)=\"\", \"\", IF(VLOOKUP(CB110,'Footnotes list'!$D$9:$E$58,2,FALSE)=0,\"\",VLOOKUP(CB110,'Footnotes list'!$D$9:$E$58,2,FALSE) ) )","v":""},null,null,null,null,{"$f":"IF(TRIM(CG110)=\"\", \"\", IF(VLOOKUP(CG110,'Footnotes list'!$D$9:$E$58,2,FALSE)=0,\"\",VLOOKUP(CG110,'Footnotes list'!$D$9:$E$58,2,FALSE) ) )","v":""},null,null,null,null,{"$f":"IF(TRIM(CL110)=\"\", \"\", IF(VLOOKUP(CL110,'Footnotes list'!$D$9:$E$58,2,FALSE)=0,\"\",VLOOKUP(CL110,'Footnotes list'!$D$9:$E$58,2,FALSE) ) )","v":""},null,null,null,null,{"$f":"IF(TRIM(CQ110)=\"\", \"\", IF(VLOOKUP(CQ110,'Footnotes list'!$D$9:$E$58,2,FALSE)=0,\"\",VLOOKUP(CQ110,'Footnotes list'!$D$9:$E$58,2,FALSE) ) )","v":""},null,null,null,null,{"$f":"IF(TRIM(CV110)=\"\", \"\", IF(VLOOKUP(CV110,'Footnotes list'!$D$9:$E$58,2,FALSE)=0,\"\",VLOOKUP(CV110,'Footnotes list'!$D$9:$E$58,2,FALSE) ) )","v":""},null,null,null,null,{"$f":"IF(TRIM(DA110)=\"\", \"\", IF(VLOOKUP(DA110,'Footnotes list'!$D$9:$E$58,2,FALSE)=0,\"\",VLOOKUP(DA110,'Footnotes list'!$D$9:$E$58,2,FALSE) ) )","v":""},null,null,null,null,{"$f":"IF(TRIM(DF110)=\"\", \"\", IF(VLOOKUP(DF110,'Footnotes list'!$D$9:$E$58,2,FALSE)=0,\"\",VLOOKUP(DF110,'Footnotes list'!$D$9:$E$58,2,FALSE) ) )","v":""},null,null,null,null,{"$f":"IF(TRIM(DK110)=\"\", \"\", IF(VLOOKUP(DK110,'Footnotes list'!$D$9:$E$58,2,FALSE)=0,\"\",VLOOKUP(DK110,'Footnotes list'!$D$9:$E$58,2,FALSE) ) )","v":""},null,null,null,null,{"$f":"IF(TRIM(DP110)=\"\", \"\", IF(VLOOKUP(DP110,'Footnotes list'!$D$9:$E$58,2,FALSE)=0,\"\",VLOOKUP(DP110,'Footnotes list'!$D$9:$E$58,2,FALSE) ) )","v":""},null,null,null,null,{"$f":"IF(TRIM(DU110)=\"\", \"\", IF(VLOOKUP(DU110,'Footnotes list'!$D$9:$E$58,2,FALSE)=0,\"\",VLOOKUP(DU110,'Footnotes list'!$D$9:$E$58,2,FALSE) ) )","v":""},null,null,null,null,{"$f":"IF(TRIM(DZ110)=\"\", \"\", IF(VLOOKUP(DZ110,'Footnotes list'!$D$9:$E$58,2,FALSE)=0,\"\",VLOOKUP(DZ110,'Footnotes list'!$D$9:$E$58,2,FALSE) ) )","v":""},null,null,null,null,{"$f":"IF(TRIM(EE110)=\"\", \"\", IF(VLOOKUP(EE110,'Footnotes list'!$D$9:$E$58,2,FALSE)=0,\"\",VLOOKUP(EE110,'Footnotes list'!$D$9:$E$58,2,FALSE) ) )","v":""},null,null,null,null,{"$f":"IF(TRIM(EJ110)=\"\", \"\", IF(VLOOKUP(EJ110,'Footnotes list'!$D$9:$E$58,2,FALSE)=0,\"\",VLOOKUP(EJ110,'Footnotes list'!$D$9:$E$58,2,FALSE) ) )","v":""},null,null,null,null,{"$f":"IF(TRIM(EO110)=\"\", \"\", IF(VLOOKUP(EO110,'Footnotes list'!$D$9:$E$58,2,FALSE)=0,\"\",VLOOKUP(EO110,'Footnotes list'!$D$9:$E$58,2,FALSE) ) )","v":""},null,null,null,null,{"$f":"IF(TRIM(ET110)=\"\", \"\", IF(VLOOKUP(ET110,'Footnotes list'!$D$9:$E$58,2,FALSE)=0,\"\",VLOOKUP(ET110,'Footnotes list'!$D$9:$E$58,2,FALSE) ) )","v":""},null,null,null,null,{"$f":"IF(TRIM(EY110)=\"\", \"\", IF(VLOOKUP(EY110,'Footnotes list'!$D$9:$E$58,2,FALSE)=0,\"\",VLOOKUP(EY110,'Footnotes list'!$D$9:$E$58,2,FALSE) ) )","v":""}]
[null,null,"C28","ES_CS","environmental specific services",null,null,null,null,null,{"$f":"IF(TRIM(J111)=\"\", \"\", IF(VLOOKUP(J111,'Footnotes list'!$D$9:$E$58,2,FALSE)=0,\"\",VLOOKUP(J111,'Footnotes list'!$D$9:$E$58,2,FALSE) ) )","v":""},null,null,null,null,{"$f":"IF(TRIM(O111)=\"\", \"\", IF(VLOOKUP(O111,'Footnotes list'!$D$9:$E$58,2,FALSE)=0,\"\",VLOOKUP(O111,'Footnotes list'!$D$9:$E$58,2,FALSE) ) )","v":""},null,null,null,null,{"$f":"IF(TRIM(T111)=\"\", \"\", IF(VLOOKUP(T111,'Footnotes list'!$D$9:$E$58,2,FALSE)=0,\"\",VLOOKUP(T111,'Footnotes list'!$D$9:$E$58,2,FALSE) ) )","v":""},null,null,null,null,{"$f":"IF(TRIM(Y111)=\"\", \"\", IF(VLOOKUP(Y111,'Footnotes list'!$D$9:$E$58,2,FALSE)=0,\"\",VLOOKUP(Y111,'Footnotes list'!$D$9:$E$58,2,FALSE) ) )","v":""},null,null,null,null,{"$f":"IF(TRIM(AD111)=\"\", \"\", IF(VLOOKUP(AD111,'Footnotes list'!$D$9:$E$58,2,FALSE)=0,\"\",VLOOKUP(AD111,'Footnotes list'!$D$9:$E$58,2,FALSE) ) )","v":""},null,null,null,null,{"$f":"IF(TRIM(AI111)=\"\", \"\", IF(VLOOKUP(AI111,'Footnotes list'!$D$9:$E$58,2,FALSE)=0,\"\",VLOOKUP(AI111,'Footnotes list'!$D$9:$E$58,2,FALSE) ) )","v":""},null,null,null,null,{"$f":"IF(TRIM(AN111)=\"\", \"\", IF(VLOOKUP(AN111,'Footnotes list'!$D$9:$E$58,2,FALSE)=0,\"\",VLOOKUP(AN111,'Footnotes list'!$D$9:$E$58,2,FALSE) ) )","v":""},null,null,null,null,{"$f":"IF(TRIM(AS111)=\"\", \"\", IF(VLOOKUP(AS111,'Footnotes list'!$D$9:$E$58,2,FALSE)=0,\"\",VLOOKUP(AS111,'Footnotes list'!$D$9:$E$58,2,FALSE) ) )","v":""},null,null,null,null,{"$f":"IF(TRIM(AX111)=\"\", \"\", IF(VLOOKUP(AX111,'Footnotes list'!$D$9:$E$58,2,FALSE)=0,\"\",VLOOKUP(AX111,'Footnotes list'!$D$9:$E$58,2,FALSE) ) )","v":""},null,null,null,null,{"$f":"IF(TRIM(BC111)=\"\", \"\", IF(VLOOKUP(BC111,'Footnotes list'!$D$9:$E$58,2,FALSE)=0,\"\",VLOOKUP(BC111,'Footnotes list'!$D$9:$E$58,2,FALSE) ) )","v":""},null,null,null,null,{"$f":"IF(TRIM(BH111)=\"\", \"\", IF(VLOOKUP(BH111,'Footnotes list'!$D$9:$E$58,2,FALSE)=0,\"\",VLOOKUP(BH111,'Footnotes list'!$D$9:$E$58,2,FALSE) ) )","v":""},null,null,null,null,{"$f":"IF(TRIM(BM111)=\"\", \"\", IF(VLOOKUP(BM111,'Footnotes list'!$D$9:$E$58,2,FALSE)=0,\"\",VLOOKUP(BM111,'Footnotes list'!$D$9:$E$58,2,FALSE) ) )","v":""},null,null,null,null,{"$f":"IF(TRIM(BR111)=\"\", \"\", IF(VLOOKUP(BR111,'Footnotes list'!$D$9:$E$58,2,FALSE)=0,\"\",VLOOKUP(BR111,'Footnotes list'!$D$9:$E$58,2,FALSE) ) )","v":""},null,null,null,null,{"$f":"IF(TRIM(BW111)=\"\", \"\", IF(VLOOKUP(BW111,'Footnotes list'!$D$9:$E$58,2,FALSE)=0,\"\",VLOOKUP(BW111,'Footnotes list'!$D$9:$E$58,2,FALSE) ) )","v":""},null,null,null,null,{"$f":"IF(TRIM(CB111)=\"\", \"\", IF(VLOOKUP(CB111,'Footnotes list'!$D$9:$E$58,2,FALSE)=0,\"\",VLOOKUP(CB111,'Footnotes list'!$D$9:$E$58,2,FALSE) ) )","v":""},null,null,null,null,{"$f":"IF(TRIM(CG111)=\"\", \"\", IF(VLOOKUP(CG111,'Footnotes list'!$D$9:$E$58,2,FALSE)=0,\"\",VLOOKUP(CG111,'Footnotes list'!$D$9:$E$58,2,FALSE) ) )","v":""},null,null,null,null,{"$f":"IF(TRIM(CL111)=\"\", \"\", IF(VLOOKUP(CL111,'Footnotes list'!$D$9:$E$58,2,FALSE)=0,\"\",VLOOKUP(CL111,'Footnotes list'!$D$9:$E$58,2,FALSE) ) )","v":""},null,null,null,null,{"$f":"IF(TRIM(CQ111)=\"\", \"\", IF(VLOOKUP(CQ111,'Footnotes list'!$D$9:$E$58,2,FALSE)=0,\"\",VLOOKUP(CQ111,'Footnotes list'!$D$9:$E$58,2,FALSE) ) )","v":""},null,null,null,null,{"$f":"IF(TRIM(CV111)=\"\", \"\", IF(VLOOKUP(CV111,'Footnotes list'!$D$9:$E$58,2,FALSE)=0,\"\",VLOOKUP(CV111,'Footnotes list'!$D$9:$E$58,2,FALSE) ) )","v":""},null,null,null,null,{"$f":"IF(TRIM(DA111)=\"\", \"\", IF(VLOOKUP(DA111,'Footnotes list'!$D$9:$E$58,2,FALSE)=0,\"\",VLOOKUP(DA111,'Footnotes list'!$D$9:$E$58,2,FALSE) ) )","v":""},null,null,null,null,{"$f":"IF(TRIM(DF111)=\"\", \"\", IF(VLOOKUP(DF111,'Footnotes list'!$D$9:$E$58,2,FALSE)=0,\"\",VLOOKUP(DF111,'Footnotes list'!$D$9:$E$58,2,FALSE) ) )","v":""},null,null,null,null,{"$f":"IF(TRIM(DK111)=\"\", \"\", IF(VLOOKUP(DK111,'Footnotes list'!$D$9:$E$58,2,FALSE)=0,\"\",VLOOKUP(DK111,'Footnotes list'!$D$9:$E$58,2,FALSE) ) )","v":""},null,null,null,null,{"$f":"IF(TRIM(DP111)=\"\", \"\", IF(VLOOKUP(DP111,'Footnotes list'!$D$9:$E$58,2,FALSE)=0,\"\",VLOOKUP(DP111,'Footnotes list'!$D$9:$E$58,2,FALSE) ) )","v":""},null,null,null,null,{"$f":"IF(TRIM(DU111)=\"\", \"\", IF(VLOOKUP(DU111,'Footnotes list'!$D$9:$E$58,2,FALSE)=0,\"\",VLOOKUP(DU111,'Footnotes list'!$D$9:$E$58,2,FALSE) ) )","v":""},null,null,null,null,{"$f":"IF(TRIM(DZ111)=\"\", \"\", IF(VLOOKUP(DZ111,'Footnotes list'!$D$9:$E$58,2,FALSE)=0,\"\",VLOOKUP(DZ111,'Footnotes list'!$D$9:$E$58,2,FALSE) ) )","v":""},null,null,null,null,{"$f":"IF(TRIM(EE111)=\"\", \"\", IF(VLOOKUP(EE111,'Footnotes list'!$D$9:$E$58,2,FALSE)=0,\"\",VLOOKUP(EE111,'Footnotes list'!$D$9:$E$58,2,FALSE) ) )","v":""},null,null,null,null,{"$f":"IF(TRIM(EJ111)=\"\", \"\", IF(VLOOKUP(EJ111,'Footnotes list'!$D$9:$E$58,2,FALSE)=0,\"\",VLOOKUP(EJ111,'Footnotes list'!$D$9:$E$58,2,FALSE) ) )","v":""},null,null,null,null,{"$f":"IF(TRIM(EO111)=\"\", \"\", IF(VLOOKUP(EO111,'Footnotes list'!$D$9:$E$58,2,FALSE)=0,\"\",VLOOKUP(EO111,'Footnotes list'!$D$9:$E$58,2,FALSE) ) )","v":""},null,null,null,null,{"$f":"IF(TRIM(ET111)=\"\", \"\", IF(VLOOKUP(ET111,'Footnotes list'!$D$9:$E$58,2,FALSE)=0,\"\",VLOOKUP(ET111,'Footnotes list'!$D$9:$E$58,2,FALSE) ) )","v":""},null,null,null,null,{"$f":"IF(TRIM(EY111)=\"\", \"\", IF(VLOOKUP(EY111,'Footnotes list'!$D$9:$E$58,2,FALSE)=0,\"\",VLOOKUP(EY111,'Footnotes list'!$D$9:$E$58,2,FALSE) ) )","v":""}]
[null,null,"C28","C_REP","cleaner and resource efficient products",null,null,null,null,null,{"$f":"IF(TRIM(J112)=\"\", \"\", IF(VLOOKUP(J112,'Footnotes list'!$D$9:$E$58,2,FALSE)=0,\"\",VLOOKUP(J112,'Footnotes list'!$D$9:$E$58,2,FALSE) ) )","v":""},null,null,null,null,{"$f":"IF(TRIM(O112)=\"\", \"\", IF(VLOOKUP(O112,'Footnotes list'!$D$9:$E$58,2,FALSE)=0,\"\",VLOOKUP(O112,'Footnotes list'!$D$9:$E$58,2,FALSE) ) )","v":""},null,null,null,null,{"$f":"IF(TRIM(T112)=\"\", \"\", IF(VLOOKUP(T112,'Footnotes list'!$D$9:$E$58,2,FALSE)=0,\"\",VLOOKUP(T112,'Footnotes list'!$D$9:$E$58,2,FALSE) ) )","v":""},null,null,null,null,{"$f":"IF(TRIM(Y112)=\"\", \"\", IF(VLOOKUP(Y112,'Footnotes list'!$D$9:$E$58,2,FALSE)=0,\"\",VLOOKUP(Y112,'Footnotes list'!$D$9:$E$58,2,FALSE) ) )","v":""},null,null,null,null,{"$f":"IF(TRIM(AD112)=\"\", \"\", IF(VLOOKUP(AD112,'Footnotes list'!$D$9:$E$58,2,FALSE)=0,\"\",VLOOKUP(AD112,'Footnotes list'!$D$9:$E$58,2,FALSE) ) )","v":""},null,null,null,null,{"$f":"IF(TRIM(AI112)=\"\", \"\", IF(VLOOKUP(AI112,'Footnotes list'!$D$9:$E$58,2,FALSE)=0,\"\",VLOOKUP(AI112,'Footnotes list'!$D$9:$E$58,2,FALSE) ) )","v":""},null,null,null,null,{"$f":"IF(TRIM(AN112)=\"\", \"\", IF(VLOOKUP(AN112,'Footnotes list'!$D$9:$E$58,2,FALSE)=0,\"\",VLOOKUP(AN112,'Footnotes list'!$D$9:$E$58,2,FALSE) ) )","v":""},null,null,null,null,{"$f":"IF(TRIM(AS112)=\"\", \"\", IF(VLOOKUP(AS112,'Footnotes list'!$D$9:$E$58,2,FALSE)=0,\"\",VLOOKUP(AS112,'Footnotes list'!$D$9:$E$58,2,FALSE) ) )","v":""},null,null,null,null,{"$f":"IF(TRIM(AX112)=\"\", \"\", IF(VLOOKUP(AX112,'Footnotes list'!$D$9:$E$58,2,FALSE)=0,\"\",VLOOKUP(AX112,'Footnotes list'!$D$9:$E$58,2,FALSE) ) )","v":""},null,null,null,null,{"$f":"IF(TRIM(BC112)=\"\", \"\", IF(VLOOKUP(BC112,'Footnotes list'!$D$9:$E$58,2,FALSE)=0,\"\",VLOOKUP(BC112,'Footnotes list'!$D$9:$E$58,2,FALSE) ) )","v":""},null,null,null,null,{"$f":"IF(TRIM(BH112)=\"\", \"\", IF(VLOOKUP(BH112,'Footnotes list'!$D$9:$E$58,2,FALSE)=0,\"\",VLOOKUP(BH112,'Footnotes list'!$D$9:$E$58,2,FALSE) ) )","v":""},null,null,null,null,{"$f":"IF(TRIM(BM112)=\"\", \"\", IF(VLOOKUP(BM112,'Footnotes list'!$D$9:$E$58,2,FALSE)=0,\"\",VLOOKUP(BM112,'Footnotes list'!$D$9:$E$58,2,FALSE) ) )","v":""},null,null,null,null,{"$f":"IF(TRIM(BR112)=\"\", \"\", IF(VLOOKUP(BR112,'Footnotes list'!$D$9:$E$58,2,FALSE)=0,\"\",VLOOKUP(BR112,'Footnotes list'!$D$9:$E$58,2,FALSE) ) )","v":""},null,null,null,null,{"$f":"IF(TRIM(BW112)=\"\", \"\", IF(VLOOKUP(BW112,'Footnotes list'!$D$9:$E$58,2,FALSE)=0,\"\",VLOOKUP(BW112,'Footnotes list'!$D$9:$E$58,2,FALSE) ) )","v":""},null,null,null,null,{"$f":"IF(TRIM(CB112)=\"\", \"\", IF(VLOOKUP(CB112,'Footnotes list'!$D$9:$E$58,2,FALSE)=0,\"\",VLOOKUP(CB112,'Footnotes list'!$D$9:$E$58,2,FALSE) ) )","v":""},null,null,null,null,{"$f":"IF(TRIM(CG112)=\"\", \"\", IF(VLOOKUP(CG112,'Footnotes list'!$D$9:$E$58,2,FALSE)=0,\"\",VLOOKUP(CG112,'Footnotes list'!$D$9:$E$58,2,FALSE) ) )","v":""},null,null,null,null,{"$f":"IF(TRIM(CL112)=\"\", \"\", IF(VLOOKUP(CL112,'Footnotes list'!$D$9:$E$58,2,FALSE)=0,\"\",VLOOKUP(CL112,'Footnotes list'!$D$9:$E$58,2,FALSE) ) )","v":""},null,null,null,null,{"$f":"IF(TRIM(CQ112)=\"\", \"\", IF(VLOOKUP(CQ112,'Footnotes list'!$D$9:$E$58,2,FALSE)=0,\"\",VLOOKUP(CQ112,'Footnotes list'!$D$9:$E$58,2,FALSE) ) )","v":""},null,null,null,null,{"$f":"IF(TRIM(CV112)=\"\", \"\", IF(VLOOKUP(CV112,'Footnotes list'!$D$9:$E$58,2,FALSE)=0,\"\",VLOOKUP(CV112,'Footnotes list'!$D$9:$E$58,2,FALSE) ) )","v":""},null,null,null,null,{"$f":"IF(TRIM(DA112)=\"\", \"\", IF(VLOOKUP(DA112,'Footnotes list'!$D$9:$E$58,2,FALSE)=0,\"\",VLOOKUP(DA112,'Footnotes list'!$D$9:$E$58,2,FALSE) ) )","v":""},null,null,null,null,{"$f":"IF(TRIM(DF112)=\"\", \"\", IF(VLOOKUP(DF112,'Footnotes list'!$D$9:$E$58,2,FALSE)=0,\"\",VLOOKUP(DF112,'Footnotes list'!$D$9:$E$58,2,FALSE) ) )","v":""},null,null,null,null,{"$f":"IF(TRIM(DK112)=\"\", \"\", IF(VLOOKUP(DK112,'Footnotes list'!$D$9:$E$58,2,FALSE)=0,\"\",VLOOKUP(DK112,'Footnotes list'!$D$9:$E$58,2,FALSE) ) )","v":""},null,null,null,null,{"$f":"IF(TRIM(DP112)=\"\", \"\", IF(VLOOKUP(DP112,'Footnotes list'!$D$9:$E$58,2,FALSE)=0,\"\",VLOOKUP(DP112,'Footnotes list'!$D$9:$E$58,2,FALSE) ) )","v":""},null,null,null,null,{"$f":"IF(TRIM(DU112)=\"\", \"\", IF(VLOOKUP(DU112,'Footnotes list'!$D$9:$E$58,2,FALSE)=0,\"\",VLOOKUP(DU112,'Footnotes list'!$D$9:$E$58,2,FALSE) ) )","v":""},null,null,null,null,{"$f":"IF(TRIM(DZ112)=\"\", \"\", IF(VLOOKUP(DZ112,'Footnotes list'!$D$9:$E$58,2,FALSE)=0,\"\",VLOOKUP(DZ112,'Footnotes list'!$D$9:$E$58,2,FALSE) ) )","v":""},null,null,null,null,{"$f":"IF(TRIM(EE112)=\"\", \"\", IF(VLOOKUP(EE112,'Footnotes list'!$D$9:$E$58,2,FALSE)=0,\"\",VLOOKUP(EE112,'Footnotes list'!$D$9:$E$58,2,FALSE) ) )","v":""},null,null,null,null,{"$f":"IF(TRIM(EJ112)=\"\", \"\", IF(VLOOKUP(EJ112,'Footnotes list'!$D$9:$E$58,2,FALSE)=0,\"\",VLOOKUP(EJ112,'Footnotes list'!$D$9:$E$58,2,FALSE) ) )","v":""},null,null,null,null,{"$f":"IF(TRIM(EO112)=\"\", \"\", IF(VLOOKUP(EO112,'Footnotes list'!$D$9:$E$58,2,FALSE)=0,\"\",VLOOKUP(EO112,'Footnotes list'!$D$9:$E$58,2,FALSE) ) )","v":""},null,null,null,null,{"$f":"IF(TRIM(ET112)=\"\", \"\", IF(VLOOKUP(ET112,'Footnotes list'!$D$9:$E$58,2,FALSE)=0,\"\",VLOOKUP(ET112,'Footnotes list'!$D$9:$E$58,2,FALSE) ) )","v":""},null,null,null,null,{"$f":"IF(TRIM(EY112)=\"\", \"\", IF(VLOOKUP(EY112,'Footnotes list'!$D$9:$E$58,2,FALSE)=0,\"\",VLOOKUP(EY112,'Footnotes list'!$D$9:$E$58,2,FALSE) ) )","v":""}]
[null,null,"C29_C30","TOT_EGSS","Total C29 - C30 Manufacture of transport equipment, of which:",null,null,null,null,null,{"$f":"IF(TRIM(J113)=\"\", \"\", IF(VLOOKUP(J113,'Footnotes list'!$D$9:$E$58,2,FALSE)=0,\"\",VLOOKUP(J113,'Footnotes list'!$D$9:$E$58,2,FALSE) ) )","v":""},null,null,null,null,{"$f":"IF(TRIM(O113)=\"\", \"\", IF(VLOOKUP(O113,'Footnotes list'!$D$9:$E$58,2,FALSE)=0,\"\",VLOOKUP(O113,'Footnotes list'!$D$9:$E$58,2,FALSE) ) )","v":""},null,null,null,null,{"$f":"IF(TRIM(T113)=\"\", \"\", IF(VLOOKUP(T113,'Footnotes list'!$D$9:$E$58,2,FALSE)=0,\"\",VLOOKUP(T113,'Footnotes list'!$D$9:$E$58,2,FALSE) ) )","v":""},null,null,null,null,{"$f":"IF(TRIM(Y113)=\"\", \"\", IF(VLOOKUP(Y113,'Footnotes list'!$D$9:$E$58,2,FALSE)=0,\"\",VLOOKUP(Y113,'Footnotes list'!$D$9:$E$58,2,FALSE) ) )","v":""},null,null,null,null,{"$f":"IF(TRIM(AD113)=\"\", \"\", IF(VLOOKUP(AD113,'Footnotes list'!$D$9:$E$58,2,FALSE)=0,\"\",VLOOKUP(AD113,'Footnotes list'!$D$9:$E$58,2,FALSE) ) )","v":""},null,null,null,null,{"$f":"IF(TRIM(AI113)=\"\", \"\", IF(VLOOKUP(AI113,'Footnotes list'!$D$9:$E$58,2,FALSE)=0,\"\",VLOOKUP(AI113,'Footnotes list'!$D$9:$E$58,2,FALSE) ) )","v":""},null,null,null,null,{"$f":"IF(TRIM(AN113)=\"\", \"\", IF(VLOOKUP(AN113,'Footnotes list'!$D$9:$E$58,2,FALSE)=0,\"\",VLOOKUP(AN113,'Footnotes list'!$D$9:$E$58,2,FALSE) ) )","v":""},null,null,null,null,{"$f":"IF(TRIM(AS113)=\"\", \"\", IF(VLOOKUP(AS113,'Footnotes list'!$D$9:$E$58,2,FALSE)=0,\"\",VLOOKUP(AS113,'Footnotes list'!$D$9:$E$58,2,FALSE) ) )","v":""},null,null,null,null,{"$f":"IF(TRIM(AX113)=\"\", \"\", IF(VLOOKUP(AX113,'Footnotes list'!$D$9:$E$58,2,FALSE)=0,\"\",VLOOKUP(AX113,'Footnotes list'!$D$9:$E$58,2,FALSE) ) )","v":""},null,null,null,null,{"$f":"IF(TRIM(BC113)=\"\", \"\", IF(VLOOKUP(BC113,'Footnotes list'!$D$9:$E$58,2,FALSE)=0,\"\",VLOOKUP(BC113,'Footnotes list'!$D$9:$E$58,2,FALSE) ) )","v":""},null,null,null,null,{"$f":"IF(TRIM(BH113)=\"\", \"\", IF(VLOOKUP(BH113,'Footnotes list'!$D$9:$E$58,2,FALSE)=0,\"\",VLOOKUP(BH113,'Footnotes list'!$D$9:$E$58,2,FALSE) ) )","v":""},null,null,null,null,{"$f":"IF(TRIM(BM113)=\"\", \"\", IF(VLOOKUP(BM113,'Footnotes list'!$D$9:$E$58,2,FALSE)=0,\"\",VLOOKUP(BM113,'Footnotes list'!$D$9:$E$58,2,FALSE) ) )","v":""},null,null,null,null,{"$f":"IF(TRIM(BR113)=\"\", \"\", IF(VLOOKUP(BR113,'Footnotes list'!$D$9:$E$58,2,FALSE)=0,\"\",VLOOKUP(BR113,'Footnotes list'!$D$9:$E$58,2,FALSE) ) )","v":""},null,null,null,null,{"$f":"IF(TRIM(BW113)=\"\", \"\", IF(VLOOKUP(BW113,'Footnotes list'!$D$9:$E$58,2,FALSE)=0,\"\",VLOOKUP(BW113,'Footnotes list'!$D$9:$E$58,2,FALSE) ) )","v":""},null,null,null,null,{"$f":"IF(TRIM(CB113)=\"\", \"\", IF(VLOOKUP(CB113,'Footnotes list'!$D$9:$E$58,2,FALSE)=0,\"\",VLOOKUP(CB113,'Footnotes list'!$D$9:$E$58,2,FALSE) ) )","v":""},null,null,null,null,{"$f":"IF(TRIM(CG113)=\"\", \"\", IF(VLOOKUP(CG113,'Footnotes list'!$D$9:$E$58,2,FALSE)=0,\"\",VLOOKUP(CG113,'Footnotes list'!$D$9:$E$58,2,FALSE) ) )","v":""},null,null,null,null,{"$f":"IF(TRIM(CL113)=\"\", \"\", IF(VLOOKUP(CL113,'Footnotes list'!$D$9:$E$58,2,FALSE)=0,\"\",VLOOKUP(CL113,'Footnotes list'!$D$9:$E$58,2,FALSE) ) )","v":""},null,null,null,null,{"$f":"IF(TRIM(CQ113)=\"\", \"\", IF(VLOOKUP(CQ113,'Footnotes list'!$D$9:$E$58,2,FALSE)=0,\"\",VLOOKUP(CQ113,'Footnotes list'!$D$9:$E$58,2,FALSE) ) )","v":""},null,null,null,null,{"$f":"IF(TRIM(CV113)=\"\", \"\", IF(VLOOKUP(CV113,'Footnotes list'!$D$9:$E$58,2,FALSE)=0,\"\",VLOOKUP(CV113,'Footnotes list'!$D$9:$E$58,2,FALSE) ) )","v":""},null,null,null,null,{"$f":"IF(TRIM(DA113)=\"\", \"\", IF(VLOOKUP(DA113,'Footnotes list'!$D$9:$E$58,2,FALSE)=0,\"\",VLOOKUP(DA113,'Footnotes list'!$D$9:$E$58,2,FALSE) ) )","v":""},null,null,null,null,{"$f":"IF(TRIM(DF113)=\"\", \"\", IF(VLOOKUP(DF113,'Footnotes list'!$D$9:$E$58,2,FALSE)=0,\"\",VLOOKUP(DF113,'Footnotes list'!$D$9:$E$58,2,FALSE) ) )","v":""},null,null,null,null,{"$f":"IF(TRIM(DK113)=\"\", \"\", IF(VLOOKUP(DK113,'Footnotes list'!$D$9:$E$58,2,FALSE)=0,\"\",VLOOKUP(DK113,'Footnotes list'!$D$9:$E$58,2,FALSE) ) )","v":""},null,null,null,null,{"$f":"IF(TRIM(DP113)=\"\", \"\", IF(VLOOKUP(DP113,'Footnotes list'!$D$9:$E$58,2,FALSE)=0,\"\",VLOOKUP(DP113,'Footnotes list'!$D$9:$E$58,2,FALSE) ) )","v":""},null,null,null,null,{"$f":"IF(TRIM(DU113)=\"\", \"\", IF(VLOOKUP(DU113,'Footnotes list'!$D$9:$E$58,2,FALSE)=0,\"\",VLOOKUP(DU113,'Footnotes list'!$D$9:$E$58,2,FALSE) ) )","v":""},null,null,null,null,{"$f":"IF(TRIM(DZ113)=\"\", \"\", IF(VLOOKUP(DZ113,'Footnotes list'!$D$9:$E$58,2,FALSE)=0,\"\",VLOOKUP(DZ113,'Footnotes list'!$D$9:$E$58,2,FALSE) ) )","v":""},null,null,null,null,{"$f":"IF(TRIM(EE113)=\"\", \"\", IF(VLOOKUP(EE113,'Footnotes list'!$D$9:$E$58,2,FALSE)=0,\"\",VLOOKUP(EE113,'Footnotes list'!$D$9:$E$58,2,FALSE) ) )","v":""},null,null,null,null,{"$f":"IF(TRIM(EJ113)=\"\", \"\", IF(VLOOKUP(EJ113,'Footnotes list'!$D$9:$E$58,2,FALSE)=0,\"\",VLOOKUP(EJ113,'Footnotes list'!$D$9:$E$58,2,FALSE) ) )","v":""},null,null,null,null,{"$f":"IF(TRIM(EO113)=\"\", \"\", IF(VLOOKUP(EO113,'Footnotes list'!$D$9:$E$58,2,FALSE)=0,\"\",VLOOKUP(EO113,'Footnotes list'!$D$9:$E$58,2,FALSE) ) )","v":""},null,null,null,null,{"$f":"IF(TRIM(ET113)=\"\", \"\", IF(VLOOKUP(ET113,'Footnotes list'!$D$9:$E$58,2,FALSE)=0,\"\",VLOOKUP(ET113,'Footnotes list'!$D$9:$E$58,2,FALSE) ) )","v":""},null,null,null,null,{"$f":"IF(TRIM(EY113)=\"\", \"\", IF(VLOOKUP(EY113,'Footnotes list'!$D$9:$E$58,2,FALSE)=0,\"\",VLOOKUP(EY113,'Footnotes list'!$D$9:$E$58,2,FALSE) ) )","v":""}]
[null,null,"C29_C30","ANC","ancillary activities",null,null,null,null,null,{"$f":"IF(TRIM(J114)=\"\", \"\", IF(VLOOKUP(J114,'Footnotes list'!$D$9:$E$58,2,FALSE)=0,\"\",VLOOKUP(J114,'Footnotes list'!$D$9:$E$58,2,FALSE) ) )","v":""},null,null,null,null,{"$f":"IF(TRIM(O114)=\"\", \"\", IF(VLOOKUP(O114,'Footnotes list'!$D$9:$E$58,2,FALSE)=0,\"\",VLOOKUP(O114,'Footnotes list'!$D$9:$E$58,2,FALSE) ) )","v":""},null,null,null,null,{"$f":"IF(TRIM(T114)=\"\", \"\", IF(VLOOKUP(T114,'Footnotes list'!$D$9:$E$58,2,FALSE)=0,\"\",VLOOKUP(T114,'Footnotes list'!$D$9:$E$58,2,FALSE) ) )","v":""},null,null,null,null,{"$f":"IF(TRIM(Y114)=\"\", \"\", IF(VLOOKUP(Y114,'Footnotes list'!$D$9:$E$58,2,FALSE)=0,\"\",VLOOKUP(Y114,'Footnotes list'!$D$9:$E$58,2,FALSE) ) )","v":""},null,null,null,null,{"$f":"IF(TRIM(AD114)=\"\", \"\", IF(VLOOKUP(AD114,'Footnotes list'!$D$9:$E$58,2,FALSE)=0,\"\",VLOOKUP(AD114,'Footnotes list'!$D$9:$E$58,2,FALSE) ) )","v":""},null,null,null,null,{"$f":"IF(TRIM(AI114)=\"\", \"\", IF(VLOOKUP(AI114,'Footnotes list'!$D$9:$E$58,2,FALSE)=0,\"\",VLOOKUP(AI114,'Footnotes list'!$D$9:$E$58,2,FALSE) ) )","v":""},null,null,null,null,{"$f":"IF(TRIM(AN114)=\"\", \"\", IF(VLOOKUP(AN114,'Footnotes list'!$D$9:$E$58,2,FALSE)=0,\"\",VLOOKUP(AN114,'Footnotes list'!$D$9:$E$58,2,FALSE) ) )","v":""},null,null,null,null,{"$f":"IF(TRIM(AS114)=\"\", \"\", IF(VLOOKUP(AS114,'Footnotes list'!$D$9:$E$58,2,FALSE)=0,\"\",VLOOKUP(AS114,'Footnotes list'!$D$9:$E$58,2,FALSE) ) )","v":""},null,null,null,null,{"$f":"IF(TRIM(AX114)=\"\", \"\", IF(VLOOKUP(AX114,'Footnotes list'!$D$9:$E$58,2,FALSE)=0,\"\",VLOOKUP(AX114,'Footnotes list'!$D$9:$E$58,2,FALSE) ) )","v":""},null,null,null,null,{"$f":"IF(TRIM(BC114)=\"\", \"\", IF(VLOOKUP(BC114,'Footnotes list'!$D$9:$E$58,2,FALSE)=0,\"\",VLOOKUP(BC114,'Footnotes list'!$D$9:$E$58,2,FALSE) ) )","v":""},null,null,null,null,{"$f":"IF(TRIM(BH114)=\"\", \"\", IF(VLOOKUP(BH114,'Footnotes list'!$D$9:$E$58,2,FALSE)=0,\"\",VLOOKUP(BH114,'Footnotes list'!$D$9:$E$58,2,FALSE) ) )","v":""},null,null,null,null,{"$f":"IF(TRIM(BM114)=\"\", \"\", IF(VLOOKUP(BM114,'Footnotes list'!$D$9:$E$58,2,FALSE)=0,\"\",VLOOKUP(BM114,'Footnotes list'!$D$9:$E$58,2,FALSE) ) )","v":""},null,null,null,null,{"$f":"IF(TRIM(BR114)=\"\", \"\", IF(VLOOKUP(BR114,'Footnotes list'!$D$9:$E$58,2,FALSE)=0,\"\",VLOOKUP(BR114,'Footnotes list'!$D$9:$E$58,2,FALSE) ) )","v":""},null,null,null,null,{"$f":"IF(TRIM(BW114)=\"\", \"\", IF(VLOOKUP(BW114,'Footnotes list'!$D$9:$E$58,2,FALSE)=0,\"\",VLOOKUP(BW114,'Footnotes list'!$D$9:$E$58,2,FALSE) ) )","v":""},null,null,null,null,{"$f":"IF(TRIM(CB114)=\"\", \"\", IF(VLOOKUP(CB114,'Footnotes list'!$D$9:$E$58,2,FALSE)=0,\"\",VLOOKUP(CB114,'Footnotes list'!$D$9:$E$58,2,FALSE) ) )","v":""},null,null,null,null,{"$f":"IF(TRIM(CG114)=\"\", \"\", IF(VLOOKUP(CG114,'Footnotes list'!$D$9:$E$58,2,FALSE)=0,\"\",VLOOKUP(CG114,'Footnotes list'!$D$9:$E$58,2,FALSE) ) )","v":""},null,null,null,null,{"$f":"IF(TRIM(CL114)=\"\", \"\", IF(VLOOKUP(CL114,'Footnotes list'!$D$9:$E$58,2,FALSE)=0,\"\",VLOOKUP(CL114,'Footnotes list'!$D$9:$E$58,2,FALSE) ) )","v":""},null,null,null,null,{"$f":"IF(TRIM(CQ114)=\"\", \"\", IF(VLOOKUP(CQ114,'Footnotes list'!$D$9:$E$58,2,FALSE)=0,\"\",VLOOKUP(CQ114,'Footnotes list'!$D$9:$E$58,2,FALSE) ) )","v":""},null,null,null,null,{"$f":"IF(TRIM(CV114)=\"\", \"\", IF(VLOOKUP(CV114,'Footnotes list'!$D$9:$E$58,2,FALSE)=0,\"\",VLOOKUP(CV114,'Footnotes list'!$D$9:$E$58,2,FALSE) ) )","v":""},null,null,null,null,{"$f":"IF(TRIM(DA114)=\"\", \"\", IF(VLOOKUP(DA114,'Footnotes list'!$D$9:$E$58,2,FALSE)=0,\"\",VLOOKUP(DA114,'Footnotes list'!$D$9:$E$58,2,FALSE) ) )","v":""},null,null,null,null,{"$f":"IF(TRIM(DF114)=\"\", \"\", IF(VLOOKUP(DF114,'Footnotes list'!$D$9:$E$58,2,FALSE)=0,\"\",VLOOKUP(DF114,'Footnotes list'!$D$9:$E$58,2,FALSE) ) )","v":""},null,null,null,null,{"$f":"IF(TRIM(DK114)=\"\", \"\", IF(VLOOKUP(DK114,'Footnotes list'!$D$9:$E$58,2,FALSE)=0,\"\",VLOOKUP(DK114,'Footnotes list'!$D$9:$E$58,2,FALSE) ) )","v":""},null,null,null,null,{"$f":"IF(TRIM(DP114)=\"\", \"\", IF(VLOOKUP(DP114,'Footnotes list'!$D$9:$E$58,2,FALSE)=0,\"\",VLOOKUP(DP114,'Footnotes list'!$D$9:$E$58,2,FALSE) ) )","v":""},null,null,null,null,{"$f":"IF(TRIM(DU114)=\"\", \"\", IF(VLOOKUP(DU114,'Footnotes list'!$D$9:$E$58,2,FALSE)=0,\"\",VLOOKUP(DU114,'Footnotes list'!$D$9:$E$58,2,FALSE) ) )","v":""},null,null,null,null,{"$f":"IF(TRIM(DZ114)=\"\", \"\", IF(VLOOKUP(DZ114,'Footnotes list'!$D$9:$E$58,2,FALSE)=0,\"\",VLOOKUP(DZ114,'Footnotes list'!$D$9:$E$58,2,FALSE) ) )","v":""},null,null,null,null,{"$f":"IF(TRIM(EE114)=\"\", \"\", IF(VLOOKUP(EE114,'Footnotes list'!$D$9:$E$58,2,FALSE)=0,\"\",VLOOKUP(EE114,'Footnotes list'!$D$9:$E$58,2,FALSE) ) )","v":""},null,null,null,null,{"$f":"IF(TRIM(EJ114)=\"\", \"\", IF(VLOOKUP(EJ114,'Footnotes list'!$D$9:$E$58,2,FALSE)=0,\"\",VLOOKUP(EJ114,'Footnotes list'!$D$9:$E$58,2,FALSE) ) )","v":""},null,null,null,null,{"$f":"IF(TRIM(EO114)=\"\", \"\", IF(VLOOKUP(EO114,'Footnotes list'!$D$9:$E$58,2,FALSE)=0,\"\",VLOOKUP(EO114,'Footnotes list'!$D$9:$E$58,2,FALSE) ) )","v":""},null,null,null,null,{"$f":"IF(TRIM(ET114)=\"\", \"\", IF(VLOOKUP(ET114,'Footnotes list'!$D$9:$E$58,2,FALSE)=0,\"\",VLOOKUP(ET114,'Footnotes list'!$D$9:$E$58,2,FALSE) ) )","v":""},null,null,null,null,{"$f":"IF(TRIM(EY114)=\"\", \"\", IF(VLOOKUP(EY114,'Footnotes list'!$D$9:$E$58,2,FALSE)=0,\"\",VLOOKUP(EY114,'Footnotes list'!$D$9:$E$58,2,FALSE) ) )","v":""}]
[null,null,"C29_C30","NMKT","non-market activities",null,null,null,null,null,{"$f":"IF(TRIM(J115)=\"\", \"\", IF(VLOOKUP(J115,'Footnotes list'!$D$9:$E$58,2,FALSE)=0,\"\",VLOOKUP(J115,'Footnotes list'!$D$9:$E$58,2,FALSE) ) )","v":""},null,null,null,null,{"$f":"IF(TRIM(O115)=\"\", \"\", IF(VLOOKUP(O115,'Footnotes list'!$D$9:$E$58,2,FALSE)=0,\"\",VLOOKUP(O115,'Footnotes list'!$D$9:$E$58,2,FALSE) ) )","v":""},null,null,null,null,{"$f":"IF(TRIM(T115)=\"\", \"\", IF(VLOOKUP(T115,'Footnotes list'!$D$9:$E$58,2,FALSE)=0,\"\",VLOOKUP(T115,'Footnotes list'!$D$9:$E$58,2,FALSE) ) )","v":""},null,null,null,null,{"$f":"IF(TRIM(Y115)=\"\", \"\", IF(VLOOKUP(Y115,'Footnotes list'!$D$9:$E$58,2,FALSE)=0,\"\",VLOOKUP(Y115,'Footnotes list'!$D$9:$E$58,2,FALSE) ) )","v":""},null,null,null,null,{"$f":"IF(TRIM(AD115)=\"\", \"\", IF(VLOOKUP(AD115,'Footnotes list'!$D$9:$E$58,2,FALSE)=0,\"\",VLOOKUP(AD115,'Footnotes list'!$D$9:$E$58,2,FALSE) ) )","v":""},null,null,null,null,{"$f":"IF(TRIM(AI115)=\"\", \"\", IF(VLOOKUP(AI115,'Footnotes list'!$D$9:$E$58,2,FALSE)=0,\"\",VLOOKUP(AI115,'Footnotes list'!$D$9:$E$58,2,FALSE) ) )","v":""},null,null,null,null,{"$f":"IF(TRIM(AN115)=\"\", \"\", IF(VLOOKUP(AN115,'Footnotes list'!$D$9:$E$58,2,FALSE)=0,\"\",VLOOKUP(AN115,'Footnotes list'!$D$9:$E$58,2,FALSE) ) )","v":""},null,null,null,null,{"$f":"IF(TRIM(AS115)=\"\", \"\", IF(VLOOKUP(AS115,'Footnotes list'!$D$9:$E$58,2,FALSE)=0,\"\",VLOOKUP(AS115,'Footnotes list'!$D$9:$E$58,2,FALSE) ) )","v":""},null,null,null,null,{"$f":"IF(TRIM(AX115)=\"\", \"\", IF(VLOOKUP(AX115,'Footnotes list'!$D$9:$E$58,2,FALSE)=0,\"\",VLOOKUP(AX115,'Footnotes list'!$D$9:$E$58,2,FALSE) ) )","v":""},null,null,null,null,{"$f":"IF(TRIM(BC115)=\"\", \"\", IF(VLOOKUP(BC115,'Footnotes list'!$D$9:$E$58,2,FALSE)=0,\"\",VLOOKUP(BC115,'Footnotes list'!$D$9:$E$58,2,FALSE) ) )","v":""},null,null,null,null,{"$f":"IF(TRIM(BH115)=\"\", \"\", IF(VLOOKUP(BH115,'Footnotes list'!$D$9:$E$58,2,FALSE)=0,\"\",VLOOKUP(BH115,'Footnotes list'!$D$9:$E$58,2,FALSE) ) )","v":""},null,null,null,null,{"$f":"IF(TRIM(BM115)=\"\", \"\", IF(VLOOKUP(BM115,'Footnotes list'!$D$9:$E$58,2,FALSE)=0,\"\",VLOOKUP(BM115,'Footnotes list'!$D$9:$E$58,2,FALSE) ) )","v":""},null,null,null,null,{"$f":"IF(TRIM(BR115)=\"\", \"\", IF(VLOOKUP(BR115,'Footnotes list'!$D$9:$E$58,2,FALSE)=0,\"\",VLOOKUP(BR115,'Footnotes list'!$D$9:$E$58,2,FALSE) ) )","v":""},null,null,null,null,{"$f":"IF(TRIM(BW115)=\"\", \"\", IF(VLOOKUP(BW115,'Footnotes list'!$D$9:$E$58,2,FALSE)=0,\"\",VLOOKUP(BW115,'Footnotes list'!$D$9:$E$58,2,FALSE) ) )","v":""},null,null,null,null,{"$f":"IF(TRIM(CB115)=\"\", \"\", IF(VLOOKUP(CB115,'Footnotes list'!$D$9:$E$58,2,FALSE)=0,\"\",VLOOKUP(CB115,'Footnotes list'!$D$9:$E$58,2,FALSE) ) )","v":""},null,null,null,null,{"$f":"IF(TRIM(CG115)=\"\", \"\", IF(VLOOKUP(CG115,'Footnotes list'!$D$9:$E$58,2,FALSE)=0,\"\",VLOOKUP(CG115,'Footnotes list'!$D$9:$E$58,2,FALSE) ) )","v":""},null,null,null,null,{"$f":"IF(TRIM(CL115)=\"\", \"\", IF(VLOOKUP(CL115,'Footnotes list'!$D$9:$E$58,2,FALSE)=0,\"\",VLOOKUP(CL115,'Footnotes list'!$D$9:$E$58,2,FALSE) ) )","v":""},null,null,null,null,{"$f":"IF(TRIM(CQ115)=\"\", \"\", IF(VLOOKUP(CQ115,'Footnotes list'!$D$9:$E$58,2,FALSE)=0,\"\",VLOOKUP(CQ115,'Footnotes list'!$D$9:$E$58,2,FALSE) ) )","v":""},null,null,null,null,{"$f":"IF(TRIM(CV115)=\"\", \"\", IF(VLOOKUP(CV115,'Footnotes list'!$D$9:$E$58,2,FALSE)=0,\"\",VLOOKUP(CV115,'Footnotes list'!$D$9:$E$58,2,FALSE) ) )","v":""},null,null,null,null,{"$f":"IF(TRIM(DA115)=\"\", \"\", IF(VLOOKUP(DA115,'Footnotes list'!$D$9:$E$58,2,FALSE)=0,\"\",VLOOKUP(DA115,'Footnotes list'!$D$9:$E$58,2,FALSE) ) )","v":""},null,null,null,null,{"$f":"IF(TRIM(DF115)=\"\", \"\", IF(VLOOKUP(DF115,'Footnotes list'!$D$9:$E$58,2,FALSE)=0,\"\",VLOOKUP(DF115,'Footnotes list'!$D$9:$E$58,2,FALSE) ) )","v":""},null,null,null,null,{"$f":"IF(TRIM(DK115)=\"\", \"\", IF(VLOOKUP(DK115,'Footnotes list'!$D$9:$E$58,2,FALSE)=0,\"\",VLOOKUP(DK115,'Footnotes list'!$D$9:$E$58,2,FALSE) ) )","v":""},null,null,null,null,{"$f":"IF(TRIM(DP115)=\"\", \"\", IF(VLOOKUP(DP115,'Footnotes list'!$D$9:$E$58,2,FALSE)=0,\"\",VLOOKUP(DP115,'Footnotes list'!$D$9:$E$58,2,FALSE) ) )","v":""},null,null,null,null,{"$f":"IF(TRIM(DU115)=\"\", \"\", IF(VLOOKUP(DU115,'Footnotes list'!$D$9:$E$58,2,FALSE)=0,\"\",VLOOKUP(DU115,'Footnotes list'!$D$9:$E$58,2,FALSE) ) )","v":""},null,null,null,null,{"$f":"IF(TRIM(DZ115)=\"\", \"\", IF(VLOOKUP(DZ115,'Footnotes list'!$D$9:$E$58,2,FALSE)=0,\"\",VLOOKUP(DZ115,'Footnotes list'!$D$9:$E$58,2,FALSE) ) )","v":""},null,null,null,null,{"$f":"IF(TRIM(EE115)=\"\", \"\", IF(VLOOKUP(EE115,'Footnotes list'!$D$9:$E$58,2,FALSE)=0,\"\",VLOOKUP(EE115,'Footnotes list'!$D$9:$E$58,2,FALSE) ) )","v":""},null,null,null,null,{"$f":"IF(TRIM(EJ115)=\"\", \"\", IF(VLOOKUP(EJ115,'Footnotes list'!$D$9:$E$58,2,FALSE)=0,\"\",VLOOKUP(EJ115,'Footnotes list'!$D$9:$E$58,2,FALSE) ) )","v":""},null,null,null,null,{"$f":"IF(TRIM(EO115)=\"\", \"\", IF(VLOOKUP(EO115,'Footnotes list'!$D$9:$E$58,2,FALSE)=0,\"\",VLOOKUP(EO115,'Footnotes list'!$D$9:$E$58,2,FALSE) ) )","v":""},null,null,null,null,{"$f":"IF(TRIM(ET115)=\"\", \"\", IF(VLOOKUP(ET115,'Footnotes list'!$D$9:$E$58,2,FALSE)=0,\"\",VLOOKUP(ET115,'Footnotes list'!$D$9:$E$58,2,FALSE) ) )","v":""},null,null,null,null,{"$f":"IF(TRIM(EY115)=\"\", \"\", IF(VLOOKUP(EY115,'Footnotes list'!$D$9:$E$58,2,FALSE)=0,\"\",VLOOKUP(EY115,'Footnotes list'!$D$9:$E$58,2,FALSE) ) )","v":""}]
[null,null,"C29_C30","OWN_USE","activities for own final use",null,null,null,null,null,{"$f":"IF(TRIM(J116)=\"\", \"\", IF(VLOOKUP(J116,'Footnotes list'!$D$9:$E$58,2,FALSE)=0,\"\",VLOOKUP(J116,'Footnotes list'!$D$9:$E$58,2,FALSE) ) )","v":""},null,null,null,null,{"$f":"IF(TRIM(O116)=\"\", \"\", IF(VLOOKUP(O116,'Footnotes list'!$D$9:$E$58,2,FALSE)=0,\"\",VLOOKUP(O116,'Footnotes list'!$D$9:$E$58,2,FALSE) ) )","v":""},null,null,null,null,{"$f":"IF(TRIM(T116)=\"\", \"\", IF(VLOOKUP(T116,'Footnotes list'!$D$9:$E$58,2,FALSE)=0,\"\",VLOOKUP(T116,'Footnotes list'!$D$9:$E$58,2,FALSE) ) )","v":""},null,null,null,null,{"$f":"IF(TRIM(Y116)=\"\", \"\", IF(VLOOKUP(Y116,'Footnotes list'!$D$9:$E$58,2,FALSE)=0,\"\",VLOOKUP(Y116,'Footnotes list'!$D$9:$E$58,2,FALSE) ) )","v":""},null,null,null,null,{"$f":"IF(TRIM(AD116)=\"\", \"\", IF(VLOOKUP(AD116,'Footnotes list'!$D$9:$E$58,2,FALSE)=0,\"\",VLOOKUP(AD116,'Footnotes list'!$D$9:$E$58,2,FALSE) ) )","v":""},null,null,null,null,{"$f":"IF(TRIM(AI116)=\"\", \"\", IF(VLOOKUP(AI116,'Footnotes list'!$D$9:$E$58,2,FALSE)=0,\"\",VLOOKUP(AI116,'Footnotes list'!$D$9:$E$58,2,FALSE) ) )","v":""},null,null,null,null,{"$f":"IF(TRIM(AN116)=\"\", \"\", IF(VLOOKUP(AN116,'Footnotes list'!$D$9:$E$58,2,FALSE)=0,\"\",VLOOKUP(AN116,'Footnotes list'!$D$9:$E$58,2,FALSE) ) )","v":""},null,null,null,null,{"$f":"IF(TRIM(AS116)=\"\", \"\", IF(VLOOKUP(AS116,'Footnotes list'!$D$9:$E$58,2,FALSE)=0,\"\",VLOOKUP(AS116,'Footnotes list'!$D$9:$E$58,2,FALSE) ) )","v":""},null,null,null,null,{"$f":"IF(TRIM(AX116)=\"\", \"\", IF(VLOOKUP(AX116,'Footnotes list'!$D$9:$E$58,2,FALSE)=0,\"\",VLOOKUP(AX116,'Footnotes list'!$D$9:$E$58,2,FALSE) ) )","v":""},null,null,null,null,{"$f":"IF(TRIM(BC116)=\"\", \"\", IF(VLOOKUP(BC116,'Footnotes list'!$D$9:$E$58,2,FALSE)=0,\"\",VLOOKUP(BC116,'Footnotes list'!$D$9:$E$58,2,FALSE) ) )","v":""},null,null,null,null,{"$f":"IF(TRIM(BH116)=\"\", \"\", IF(VLOOKUP(BH116,'Footnotes list'!$D$9:$E$58,2,FALSE)=0,\"\",VLOOKUP(BH116,'Footnotes list'!$D$9:$E$58,2,FALSE) ) )","v":""},null,null,null,null,{"$f":"IF(TRIM(BM116)=\"\", \"\", IF(VLOOKUP(BM116,'Footnotes list'!$D$9:$E$58,2,FALSE)=0,\"\",VLOOKUP(BM116,'Footnotes list'!$D$9:$E$58,2,FALSE) ) )","v":""},null,null,null,null,{"$f":"IF(TRIM(BR116)=\"\", \"\", IF(VLOOKUP(BR116,'Footnotes list'!$D$9:$E$58,2,FALSE)=0,\"\",VLOOKUP(BR116,'Footnotes list'!$D$9:$E$58,2,FALSE) ) )","v":""},null,null,null,null,{"$f":"IF(TRIM(BW116)=\"\", \"\", IF(VLOOKUP(BW116,'Footnotes list'!$D$9:$E$58,2,FALSE)=0,\"\",VLOOKUP(BW116,'Footnotes list'!$D$9:$E$58,2,FALSE) ) )","v":""},null,null,null,null,{"$f":"IF(TRIM(CB116)=\"\", \"\", IF(VLOOKUP(CB116,'Footnotes list'!$D$9:$E$58,2,FALSE)=0,\"\",VLOOKUP(CB116,'Footnotes list'!$D$9:$E$58,2,FALSE) ) )","v":""},null,null,null,null,{"$f":"IF(TRIM(CG116)=\"\", \"\", IF(VLOOKUP(CG116,'Footnotes list'!$D$9:$E$58,2,FALSE)=0,\"\",VLOOKUP(CG116,'Footnotes list'!$D$9:$E$58,2,FALSE) ) )","v":""},null,null,null,null,{"$f":"IF(TRIM(CL116)=\"\", \"\", IF(VLOOKUP(CL116,'Footnotes list'!$D$9:$E$58,2,FALSE)=0,\"\",VLOOKUP(CL116,'Footnotes list'!$D$9:$E$58,2,FALSE) ) )","v":""},null,null,null,null,{"$f":"IF(TRIM(CQ116)=\"\", \"\", IF(VLOOKUP(CQ116,'Footnotes list'!$D$9:$E$58,2,FALSE)=0,\"\",VLOOKUP(CQ116,'Footnotes list'!$D$9:$E$58,2,FALSE) ) )","v":""},null,null,null,null,{"$f":"IF(TRIM(CV116)=\"\", \"\", IF(VLOOKUP(CV116,'Footnotes list'!$D$9:$E$58,2,FALSE)=0,\"\",VLOOKUP(CV116,'Footnotes list'!$D$9:$E$58,2,FALSE) ) )","v":""},null,null,null,null,{"$f":"IF(TRIM(DA116)=\"\", \"\", IF(VLOOKUP(DA116,'Footnotes list'!$D$9:$E$58,2,FALSE)=0,\"\",VLOOKUP(DA116,'Footnotes list'!$D$9:$E$58,2,FALSE) ) )","v":""},null,null,null,null,{"$f":"IF(TRIM(DF116)=\"\", \"\", IF(VLOOKUP(DF116,'Footnotes list'!$D$9:$E$58,2,FALSE)=0,\"\",VLOOKUP(DF116,'Footnotes list'!$D$9:$E$58,2,FALSE) ) )","v":""},null,null,null,null,{"$f":"IF(TRIM(DK116)=\"\", \"\", IF(VLOOKUP(DK116,'Footnotes list'!$D$9:$E$58,2,FALSE)=0,\"\",VLOOKUP(DK116,'Footnotes list'!$D$9:$E$58,2,FALSE) ) )","v":""},null,null,null,null,{"$f":"IF(TRIM(DP116)=\"\", \"\", IF(VLOOKUP(DP116,'Footnotes list'!$D$9:$E$58,2,FALSE)=0,\"\",VLOOKUP(DP116,'Footnotes list'!$D$9:$E$58,2,FALSE) ) )","v":""},null,null,null,null,{"$f":"IF(TRIM(DU116)=\"\", \"\", IF(VLOOKUP(DU116,'Footnotes list'!$D$9:$E$58,2,FALSE)=0,\"\",VLOOKUP(DU116,'Footnotes list'!$D$9:$E$58,2,FALSE) ) )","v":""},null,null,null,null,{"$f":"IF(TRIM(DZ116)=\"\", \"\", IF(VLOOKUP(DZ116,'Footnotes list'!$D$9:$E$58,2,FALSE)=0,\"\",VLOOKUP(DZ116,'Footnotes list'!$D$9:$E$58,2,FALSE) ) )","v":""},null,null,null,null,{"$f":"IF(TRIM(EE116)=\"\", \"\", IF(VLOOKUP(EE116,'Footnotes list'!$D$9:$E$58,2,FALSE)=0,\"\",VLOOKUP(EE116,'Footnotes list'!$D$9:$E$58,2,FALSE) ) )","v":""},null,null,null,null,{"$f":"IF(TRIM(EJ116)=\"\", \"\", IF(VLOOKUP(EJ116,'Footnotes list'!$D$9:$E$58,2,FALSE)=0,\"\",VLOOKUP(EJ116,'Footnotes list'!$D$9:$E$58,2,FALSE) ) )","v":""},null,null,null,null,{"$f":"IF(TRIM(EO116)=\"\", \"\", IF(VLOOKUP(EO116,'Footnotes list'!$D$9:$E$58,2,FALSE)=0,\"\",VLOOKUP(EO116,'Footnotes list'!$D$9:$E$58,2,FALSE) ) )","v":""},null,null,null,null,{"$f":"IF(TRIM(ET116)=\"\", \"\", IF(VLOOKUP(ET116,'Footnotes list'!$D$9:$E$58,2,FALSE)=0,\"\",VLOOKUP(ET116,'Footnotes list'!$D$9:$E$58,2,FALSE) ) )","v":""},null,null,null,null,{"$f":"IF(TRIM(EY116)=\"\", \"\", IF(VLOOKUP(EY116,'Footnotes list'!$D$9:$E$58,2,FALSE)=0,\"\",VLOOKUP(EY116,'Footnotes list'!$D$9:$E$58,2,FALSE) ) )","v":""}]
[null,null,"C29_C30","MKT","market activities, including:",null,null,null,null,null,{"$f":"IF(TRIM(J117)=\"\", \"\", IF(VLOOKUP(J117,'Footnotes list'!$D$9:$E$58,2,FALSE)=0,\"\",VLOOKUP(J117,'Footnotes list'!$D$9:$E$58,2,FALSE) ) )","v":""},null,null,null,null,{"$f":"IF(TRIM(O117)=\"\", \"\", IF(VLOOKUP(O117,'Footnotes list'!$D$9:$E$58,2,FALSE)=0,\"\",VLOOKUP(O117,'Footnotes list'!$D$9:$E$58,2,FALSE) ) )","v":""},null,null,null,null,{"$f":"IF(TRIM(T117)=\"\", \"\", IF(VLOOKUP(T117,'Footnotes list'!$D$9:$E$58,2,FALSE)=0,\"\",VLOOKUP(T117,'Footnotes list'!$D$9:$E$58,2,FALSE) ) )","v":""},null,null,null,null,{"$f":"IF(TRIM(Y117)=\"\", \"\", IF(VLOOKUP(Y117,'Footnotes list'!$D$9:$E$58,2,FALSE)=0,\"\",VLOOKUP(Y117,'Footnotes list'!$D$9:$E$58,2,FALSE) ) )","v":""},null,null,null,null,{"$f":"IF(TRIM(AD117)=\"\", \"\", IF(VLOOKUP(AD117,'Footnotes list'!$D$9:$E$58,2,FALSE)=0,\"\",VLOOKUP(AD117,'Footnotes list'!$D$9:$E$58,2,FALSE) ) )","v":""},null,null,null,null,{"$f":"IF(TRIM(AI117)=\"\", \"\", IF(VLOOKUP(AI117,'Footnotes list'!$D$9:$E$58,2,FALSE)=0,\"\",VLOOKUP(AI117,'Footnotes list'!$D$9:$E$58,2,FALSE) ) )","v":""},null,null,null,null,{"$f":"IF(TRIM(AN117)=\"\", \"\", IF(VLOOKUP(AN117,'Footnotes list'!$D$9:$E$58,2,FALSE)=0,\"\",VLOOKUP(AN117,'Footnotes list'!$D$9:$E$58,2,FALSE) ) )","v":""},null,null,null,null,{"$f":"IF(TRIM(AS117)=\"\", \"\", IF(VLOOKUP(AS117,'Footnotes list'!$D$9:$E$58,2,FALSE)=0,\"\",VLOOKUP(AS117,'Footnotes list'!$D$9:$E$58,2,FALSE) ) )","v":""},null,null,null,null,{"$f":"IF(TRIM(AX117)=\"\", \"\", IF(VLOOKUP(AX117,'Footnotes list'!$D$9:$E$58,2,FALSE)=0,\"\",VLOOKUP(AX117,'Footnotes list'!$D$9:$E$58,2,FALSE) ) )","v":""},null,null,null,null,{"$f":"IF(TRIM(BC117)=\"\", \"\", IF(VLOOKUP(BC117,'Footnotes list'!$D$9:$E$58,2,FALSE)=0,\"\",VLOOKUP(BC117,'Footnotes list'!$D$9:$E$58,2,FALSE) ) )","v":""},null,null,null,null,{"$f":"IF(TRIM(BH117)=\"\", \"\", IF(VLOOKUP(BH117,'Footnotes list'!$D$9:$E$58,2,FALSE)=0,\"\",VLOOKUP(BH117,'Footnotes list'!$D$9:$E$58,2,FALSE) ) )","v":""},null,null,null,null,{"$f":"IF(TRIM(BM117)=\"\", \"\", IF(VLOOKUP(BM117,'Footnotes list'!$D$9:$E$58,2,FALSE)=0,\"\",VLOOKUP(BM117,'Footnotes list'!$D$9:$E$58,2,FALSE) ) )","v":""},null,null,null,null,{"$f":"IF(TRIM(BR117)=\"\", \"\", IF(VLOOKUP(BR117,'Footnotes list'!$D$9:$E$58,2,FALSE)=0,\"\",VLOOKUP(BR117,'Footnotes list'!$D$9:$E$58,2,FALSE) ) )","v":""},null,null,null,null,{"$f":"IF(TRIM(BW117)=\"\", \"\", IF(VLOOKUP(BW117,'Footnotes list'!$D$9:$E$58,2,FALSE)=0,\"\",VLOOKUP(BW117,'Footnotes list'!$D$9:$E$58,2,FALSE) ) )","v":""},null,null,null,null,{"$f":"IF(TRIM(CB117)=\"\", \"\", IF(VLOOKUP(CB117,'Footnotes list'!$D$9:$E$58,2,FALSE)=0,\"\",VLOOKUP(CB117,'Footnotes list'!$D$9:$E$58,2,FALSE) ) )","v":""},null,null,null,null,{"$f":"IF(TRIM(CG117)=\"\", \"\", IF(VLOOKUP(CG117,'Footnotes list'!$D$9:$E$58,2,FALSE)=0,\"\",VLOOKUP(CG117,'Footnotes list'!$D$9:$E$58,2,FALSE) ) )","v":""},null,null,null,null,{"$f":"IF(TRIM(CL117)=\"\", \"\", IF(VLOOKUP(CL117,'Footnotes list'!$D$9:$E$58,2,FALSE)=0,\"\",VLOOKUP(CL117,'Footnotes list'!$D$9:$E$58,2,FALSE) ) )","v":""},null,null,null,null,{"$f":"IF(TRIM(CQ117)=\"\", \"\", IF(VLOOKUP(CQ117,'Footnotes list'!$D$9:$E$58,2,FALSE)=0,\"\",VLOOKUP(CQ117,'Footnotes list'!$D$9:$E$58,2,FALSE) ) )","v":""},null,null,null,null,{"$f":"IF(TRIM(CV117)=\"\", \"\", IF(VLOOKUP(CV117,'Footnotes list'!$D$9:$E$58,2,FALSE)=0,\"\",VLOOKUP(CV117,'Footnotes list'!$D$9:$E$58,2,FALSE) ) )","v":""},null,null,null,null,{"$f":"IF(TRIM(DA117)=\"\", \"\", IF(VLOOKUP(DA117,'Footnotes list'!$D$9:$E$58,2,FALSE)=0,\"\",VLOOKUP(DA117,'Footnotes list'!$D$9:$E$58,2,FALSE) ) )","v":""},null,null,null,null,{"$f":"IF(TRIM(DF117)=\"\", \"\", IF(VLOOKUP(DF117,'Footnotes list'!$D$9:$E$58,2,FALSE)=0,\"\",VLOOKUP(DF117,'Footnotes list'!$D$9:$E$58,2,FALSE) ) )","v":""},null,null,null,null,{"$f":"IF(TRIM(DK117)=\"\", \"\", IF(VLOOKUP(DK117,'Footnotes list'!$D$9:$E$58,2,FALSE)=0,\"\",VLOOKUP(DK117,'Footnotes list'!$D$9:$E$58,2,FALSE) ) )","v":""},null,null,null,null,{"$f":"IF(TRIM(DP117)=\"\", \"\", IF(VLOOKUP(DP117,'Footnotes list'!$D$9:$E$58,2,FALSE)=0,\"\",VLOOKUP(DP117,'Footnotes list'!$D$9:$E$58,2,FALSE) ) )","v":""},null,null,null,null,{"$f":"IF(TRIM(DU117)=\"\", \"\", IF(VLOOKUP(DU117,'Footnotes list'!$D$9:$E$58,2,FALSE)=0,\"\",VLOOKUP(DU117,'Footnotes list'!$D$9:$E$58,2,FALSE) ) )","v":""},null,null,null,null,{"$f":"IF(TRIM(DZ117)=\"\", \"\", IF(VLOOKUP(DZ117,'Footnotes list'!$D$9:$E$58,2,FALSE)=0,\"\",VLOOKUP(DZ117,'Footnotes list'!$D$9:$E$58,2,FALSE) ) )","v":""},null,null,null,null,{"$f":"IF(TRIM(EE117)=\"\", \"\", IF(VLOOKUP(EE117,'Footnotes list'!$D$9:$E$58,2,FALSE)=0,\"\",VLOOKUP(EE117,'Footnotes list'!$D$9:$E$58,2,FALSE) ) )","v":""},null,null,null,null,{"$f":"IF(TRIM(EJ117)=\"\", \"\", IF(VLOOKUP(EJ117,'Footnotes list'!$D$9:$E$58,2,FALSE)=0,\"\",VLOOKUP(EJ117,'Footnotes list'!$D$9:$E$58,2,FALSE) ) )","v":""},null,null,null,null,{"$f":"IF(TRIM(EO117)=\"\", \"\", IF(VLOOKUP(EO117,'Footnotes list'!$D$9:$E$58,2,FALSE)=0,\"\",VLOOKUP(EO117,'Footnotes list'!$D$9:$E$58,2,FALSE) ) )","v":""},null,null,null,null,{"$f":"IF(TRIM(ET117)=\"\", \"\", IF(VLOOKUP(ET117,'Footnotes list'!$D$9:$E$58,2,FALSE)=0,\"\",VLOOKUP(ET117,'Footnotes list'!$D$9:$E$58,2,FALSE) ) )","v":""},null,null,null,null,{"$f":"IF(TRIM(EY117)=\"\", \"\", IF(VLOOKUP(EY117,'Footnotes list'!$D$9:$E$58,2,FALSE)=0,\"\",VLOOKUP(EY117,'Footnotes list'!$D$9:$E$58,2,FALSE) ) )","v":""}]
[null,null,"C29_C30","ES_CS","environmental specific services",null,null,null,null,null,{"$f":"IF(TRIM(J118)=\"\", \"\", IF(VLOOKUP(J118,'Footnotes list'!$D$9:$E$58,2,FALSE)=0,\"\",VLOOKUP(J118,'Footnotes list'!$D$9:$E$58,2,FALSE) ) )","v":""},null,null,null,null,{"$f":"IF(TRIM(O118)=\"\", \"\", IF(VLOOKUP(O118,'Footnotes list'!$D$9:$E$58,2,FALSE)=0,\"\",VLOOKUP(O118,'Footnotes list'!$D$9:$E$58,2,FALSE) ) )","v":""},null,null,null,null,{"$f":"IF(TRIM(T118)=\"\", \"\", IF(VLOOKUP(T118,'Footnotes list'!$D$9:$E$58,2,FALSE)=0,\"\",VLOOKUP(T118,'Footnotes list'!$D$9:$E$58,2,FALSE) ) )","v":""},null,null,null,null,{"$f":"IF(TRIM(Y118)=\"\", \"\", IF(VLOOKUP(Y118,'Footnotes list'!$D$9:$E$58,2,FALSE)=0,\"\",VLOOKUP(Y118,'Footnotes list'!$D$9:$E$58,2,FALSE) ) )","v":""},null,null,null,null,{"$f":"IF(TRIM(AD118)=\"\", \"\", IF(VLOOKUP(AD118,'Footnotes list'!$D$9:$E$58,2,FALSE)=0,\"\",VLOOKUP(AD118,'Footnotes list'!$D$9:$E$58,2,FALSE) ) )","v":""},null,null,null,null,{"$f":"IF(TRIM(AI118)=\"\", \"\", IF(VLOOKUP(AI118,'Footnotes list'!$D$9:$E$58,2,FALSE)=0,\"\",VLOOKUP(AI118,'Footnotes list'!$D$9:$E$58,2,FALSE) ) )","v":""},null,null,null,null,{"$f":"IF(TRIM(AN118)=\"\", \"\", IF(VLOOKUP(AN118,'Footnotes list'!$D$9:$E$58,2,FALSE)=0,\"\",VLOOKUP(AN118,'Footnotes list'!$D$9:$E$58,2,FALSE) ) )","v":""},null,null,null,null,{"$f":"IF(TRIM(AS118)=\"\", \"\", IF(VLOOKUP(AS118,'Footnotes list'!$D$9:$E$58,2,FALSE)=0,\"\",VLOOKUP(AS118,'Footnotes list'!$D$9:$E$58,2,FALSE) ) )","v":""},null,null,null,null,{"$f":"IF(TRIM(AX118)=\"\", \"\", IF(VLOOKUP(AX118,'Footnotes list'!$D$9:$E$58,2,FALSE)=0,\"\",VLOOKUP(AX118,'Footnotes list'!$D$9:$E$58,2,FALSE) ) )","v":""},null,null,null,null,{"$f":"IF(TRIM(BC118)=\"\", \"\", IF(VLOOKUP(BC118,'Footnotes list'!$D$9:$E$58,2,FALSE)=0,\"\",VLOOKUP(BC118,'Footnotes list'!$D$9:$E$58,2,FALSE) ) )","v":""},null,null,null,null,{"$f":"IF(TRIM(BH118)=\"\", \"\", IF(VLOOKUP(BH118,'Footnotes list'!$D$9:$E$58,2,FALSE)=0,\"\",VLOOKUP(BH118,'Footnotes list'!$D$9:$E$58,2,FALSE) ) )","v":""},null,null,null,null,{"$f":"IF(TRIM(BM118)=\"\", \"\", IF(VLOOKUP(BM118,'Footnotes list'!$D$9:$E$58,2,FALSE)=0,\"\",VLOOKUP(BM118,'Footnotes list'!$D$9:$E$58,2,FALSE) ) )","v":""},null,null,null,null,{"$f":"IF(TRIM(BR118)=\"\", \"\", IF(VLOOKUP(BR118,'Footnotes list'!$D$9:$E$58,2,FALSE)=0,\"\",VLOOKUP(BR118,'Footnotes list'!$D$9:$E$58,2,FALSE) ) )","v":""},null,null,null,null,{"$f":"IF(TRIM(BW118)=\"\", \"\", IF(VLOOKUP(BW118,'Footnotes list'!$D$9:$E$58,2,FALSE)=0,\"\",VLOOKUP(BW118,'Footnotes list'!$D$9:$E$58,2,FALSE) ) )","v":""},null,null,null,null,{"$f":"IF(TRIM(CB118)=\"\", \"\", IF(VLOOKUP(CB118,'Footnotes list'!$D$9:$E$58,2,FALSE)=0,\"\",VLOOKUP(CB118,'Footnotes list'!$D$9:$E$58,2,FALSE) ) )","v":""},null,null,null,null,{"$f":"IF(TRIM(CG118)=\"\", \"\", IF(VLOOKUP(CG118,'Footnotes list'!$D$9:$E$58,2,FALSE)=0,\"\",VLOOKUP(CG118,'Footnotes list'!$D$9:$E$58,2,FALSE) ) )","v":""},null,null,null,null,{"$f":"IF(TRIM(CL118)=\"\", \"\", IF(VLOOKUP(CL118,'Footnotes list'!$D$9:$E$58,2,FALSE)=0,\"\",VLOOKUP(CL118,'Footnotes list'!$D$9:$E$58,2,FALSE) ) )","v":""},null,null,null,null,{"$f":"IF(TRIM(CQ118)=\"\", \"\", IF(VLOOKUP(CQ118,'Footnotes list'!$D$9:$E$58,2,FALSE)=0,\"\",VLOOKUP(CQ118,'Footnotes list'!$D$9:$E$58,2,FALSE) ) )","v":""},null,null,null,null,{"$f":"IF(TRIM(CV118)=\"\", \"\", IF(VLOOKUP(CV118,'Footnotes list'!$D$9:$E$58,2,FALSE)=0,\"\",VLOOKUP(CV118,'Footnotes list'!$D$9:$E$58,2,FALSE) ) )","v":""},null,null,null,null,{"$f":"IF(TRIM(DA118)=\"\", \"\", IF(VLOOKUP(DA118,'Footnotes list'!$D$9:$E$58,2,FALSE)=0,\"\",VLOOKUP(DA118,'Footnotes list'!$D$9:$E$58,2,FALSE) ) )","v":""},null,null,null,null,{"$f":"IF(TRIM(DF118)=\"\", \"\", IF(VLOOKUP(DF118,'Footnotes list'!$D$9:$E$58,2,FALSE)=0,\"\",VLOOKUP(DF118,'Footnotes list'!$D$9:$E$58,2,FALSE) ) )","v":""},null,null,null,null,{"$f":"IF(TRIM(DK118)=\"\", \"\", IF(VLOOKUP(DK118,'Footnotes list'!$D$9:$E$58,2,FALSE)=0,\"\",VLOOKUP(DK118,'Footnotes list'!$D$9:$E$58,2,FALSE) ) )","v":""},null,null,null,null,{"$f":"IF(TRIM(DP118)=\"\", \"\", IF(VLOOKUP(DP118,'Footnotes list'!$D$9:$E$58,2,FALSE)=0,\"\",VLOOKUP(DP118,'Footnotes list'!$D$9:$E$58,2,FALSE) ) )","v":""},null,null,null,null,{"$f":"IF(TRIM(DU118)=\"\", \"\", IF(VLOOKUP(DU118,'Footnotes list'!$D$9:$E$58,2,FALSE)=0,\"\",VLOOKUP(DU118,'Footnotes list'!$D$9:$E$58,2,FALSE) ) )","v":""},null,null,null,null,{"$f":"IF(TRIM(DZ118)=\"\", \"\", IF(VLOOKUP(DZ118,'Footnotes list'!$D$9:$E$58,2,FALSE)=0,\"\",VLOOKUP(DZ118,'Footnotes list'!$D$9:$E$58,2,FALSE) ) )","v":""},null,null,null,null,{"$f":"IF(TRIM(EE118)=\"\", \"\", IF(VLOOKUP(EE118,'Footnotes list'!$D$9:$E$58,2,FALSE)=0,\"\",VLOOKUP(EE118,'Footnotes list'!$D$9:$E$58,2,FALSE) ) )","v":""},null,null,null,null,{"$f":"IF(TRIM(EJ118)=\"\", \"\", IF(VLOOKUP(EJ118,'Footnotes list'!$D$9:$E$58,2,FALSE)=0,\"\",VLOOKUP(EJ118,'Footnotes list'!$D$9:$E$58,2,FALSE) ) )","v":""},null,null,null,null,{"$f":"IF(TRIM(EO118)=\"\", \"\", IF(VLOOKUP(EO118,'Footnotes list'!$D$9:$E$58,2,FALSE)=0,\"\",VLOOKUP(EO118,'Footnotes list'!$D$9:$E$58,2,FALSE) ) )","v":""},null,null,null,null,{"$f":"IF(TRIM(ET118)=\"\", \"\", IF(VLOOKUP(ET118,'Footnotes list'!$D$9:$E$58,2,FALSE)=0,\"\",VLOOKUP(ET118,'Footnotes list'!$D$9:$E$58,2,FALSE) ) )","v":""},null,null,null,null,{"$f":"IF(TRIM(EY118)=\"\", \"\", IF(VLOOKUP(EY118,'Footnotes list'!$D$9:$E$58,2,FALSE)=0,\"\",VLOOKUP(EY118,'Footnotes list'!$D$9:$E$58,2,FALSE) ) )","v":""}]
[null,null,"C29_C30","C_REP","cleaner and resource efficient products",null,null,null,null,null,{"$f":"IF(TRIM(J119)=\"\", \"\", IF(VLOOKUP(J119,'Footnotes list'!$D$9:$E$58,2,FALSE)=0,\"\",VLOOKUP(J119,'Footnotes list'!$D$9:$E$58,2,FALSE) ) )","v":""},null,null,null,null,{"$f":"IF(TRIM(O119)=\"\", \"\", IF(VLOOKUP(O119,'Footnotes list'!$D$9:$E$58,2,FALSE)=0,\"\",VLOOKUP(O119,'Footnotes list'!$D$9:$E$58,2,FALSE) ) )","v":""},null,null,null,null,{"$f":"IF(TRIM(T119)=\"\", \"\", IF(VLOOKUP(T119,'Footnotes list'!$D$9:$E$58,2,FALSE)=0,\"\",VLOOKUP(T119,'Footnotes list'!$D$9:$E$58,2,FALSE) ) )","v":""},null,null,null,null,{"$f":"IF(TRIM(Y119)=\"\", \"\", IF(VLOOKUP(Y119,'Footnotes list'!$D$9:$E$58,2,FALSE)=0,\"\",VLOOKUP(Y119,'Footnotes list'!$D$9:$E$58,2,FALSE) ) )","v":""},null,null,null,null,{"$f":"IF(TRIM(AD119)=\"\", \"\", IF(VLOOKUP(AD119,'Footnotes list'!$D$9:$E$58,2,FALSE)=0,\"\",VLOOKUP(AD119,'Footnotes list'!$D$9:$E$58,2,FALSE) ) )","v":""},null,null,null,null,{"$f":"IF(TRIM(AI119)=\"\", \"\", IF(VLOOKUP(AI119,'Footnotes list'!$D$9:$E$58,2,FALSE)=0,\"\",VLOOKUP(AI119,'Footnotes list'!$D$9:$E$58,2,FALSE) ) )","v":""},null,null,null,null,{"$f":"IF(TRIM(AN119)=\"\", \"\", IF(VLOOKUP(AN119,'Footnotes list'!$D$9:$E$58,2,FALSE)=0,\"\",VLOOKUP(AN119,'Footnotes list'!$D$9:$E$58,2,FALSE) ) )","v":""},null,null,null,null,{"$f":"IF(TRIM(AS119)=\"\", \"\", IF(VLOOKUP(AS119,'Footnotes list'!$D$9:$E$58,2,FALSE)=0,\"\",VLOOKUP(AS119,'Footnotes list'!$D$9:$E$58,2,FALSE) ) )","v":""},null,null,null,null,{"$f":"IF(TRIM(AX119)=\"\", \"\", IF(VLOOKUP(AX119,'Footnotes list'!$D$9:$E$58,2,FALSE)=0,\"\",VLOOKUP(AX119,'Footnotes list'!$D$9:$E$58,2,FALSE) ) )","v":""},null,null,null,null,{"$f":"IF(TRIM(BC119)=\"\", \"\", IF(VLOOKUP(BC119,'Footnotes list'!$D$9:$E$58,2,FALSE)=0,\"\",VLOOKUP(BC119,'Footnotes list'!$D$9:$E$58,2,FALSE) ) )","v":""},null,null,null,null,{"$f":"IF(TRIM(BH119)=\"\", \"\", IF(VLOOKUP(BH119,'Footnotes list'!$D$9:$E$58,2,FALSE)=0,\"\",VLOOKUP(BH119,'Footnotes list'!$D$9:$E$58,2,FALSE) ) )","v":""},null,null,null,null,{"$f":"IF(TRIM(BM119)=\"\", \"\", IF(VLOOKUP(BM119,'Footnotes list'!$D$9:$E$58,2,FALSE)=0,\"\",VLOOKUP(BM119,'Footnotes list'!$D$9:$E$58,2,FALSE) ) )","v":""},null,null,null,null,{"$f":"IF(TRIM(BR119)=\"\", \"\", IF(VLOOKUP(BR119,'Footnotes list'!$D$9:$E$58,2,FALSE)=0,\"\",VLOOKUP(BR119,'Footnotes list'!$D$9:$E$58,2,FALSE) ) )","v":""},null,null,null,null,{"$f":"IF(TRIM(BW119)=\"\", \"\", IF(VLOOKUP(BW119,'Footnotes list'!$D$9:$E$58,2,FALSE)=0,\"\",VLOOKUP(BW119,'Footnotes list'!$D$9:$E$58,2,FALSE) ) )","v":""},null,null,null,null,{"$f":"IF(TRIM(CB119)=\"\", \"\", IF(VLOOKUP(CB119,'Footnotes list'!$D$9:$E$58,2,FALSE)=0,\"\",VLOOKUP(CB119,'Footnotes list'!$D$9:$E$58,2,FALSE) ) )","v":""},null,null,null,null,{"$f":"IF(TRIM(CG119)=\"\", \"\", IF(VLOOKUP(CG119,'Footnotes list'!$D$9:$E$58,2,FALSE)=0,\"\",VLOOKUP(CG119,'Footnotes list'!$D$9:$E$58,2,FALSE) ) )","v":""},null,null,null,null,{"$f":"IF(TRIM(CL119)=\"\", \"\", IF(VLOOKUP(CL119,'Footnotes list'!$D$9:$E$58,2,FALSE)=0,\"\",VLOOKUP(CL119,'Footnotes list'!$D$9:$E$58,2,FALSE) ) )","v":""},null,null,null,null,{"$f":"IF(TRIM(CQ119)=\"\", \"\", IF(VLOOKUP(CQ119,'Footnotes list'!$D$9:$E$58,2,FALSE)=0,\"\",VLOOKUP(CQ119,'Footnotes list'!$D$9:$E$58,2,FALSE) ) )","v":""},null,null,null,null,{"$f":"IF(TRIM(CV119)=\"\", \"\", IF(VLOOKUP(CV119,'Footnotes list'!$D$9:$E$58,2,FALSE)=0,\"\",VLOOKUP(CV119,'Footnotes list'!$D$9:$E$58,2,FALSE) ) )","v":""},null,null,null,null,{"$f":"IF(TRIM(DA119)=\"\", \"\", IF(VLOOKUP(DA119,'Footnotes list'!$D$9:$E$58,2,FALSE)=0,\"\",VLOOKUP(DA119,'Footnotes list'!$D$9:$E$58,2,FALSE) ) )","v":""},null,null,null,null,{"$f":"IF(TRIM(DF119)=\"\", \"\", IF(VLOOKUP(DF119,'Footnotes list'!$D$9:$E$58,2,FALSE)=0,\"\",VLOOKUP(DF119,'Footnotes list'!$D$9:$E$58,2,FALSE) ) )","v":""},null,null,null,null,{"$f":"IF(TRIM(DK119)=\"\", \"\", IF(VLOOKUP(DK119,'Footnotes list'!$D$9:$E$58,2,FALSE)=0,\"\",VLOOKUP(DK119,'Footnotes list'!$D$9:$E$58,2,FALSE) ) )","v":""},null,null,null,null,{"$f":"IF(TRIM(DP119)=\"\", \"\", IF(VLOOKUP(DP119,'Footnotes list'!$D$9:$E$58,2,FALSE)=0,\"\",VLOOKUP(DP119,'Footnotes list'!$D$9:$E$58,2,FALSE) ) )","v":""},null,null,null,null,{"$f":"IF(TRIM(DU119)=\"\", \"\", IF(VLOOKUP(DU119,'Footnotes list'!$D$9:$E$58,2,FALSE)=0,\"\",VLOOKUP(DU119,'Footnotes list'!$D$9:$E$58,2,FALSE) ) )","v":""},null,null,null,null,{"$f":"IF(TRIM(DZ119)=\"\", \"\", IF(VLOOKUP(DZ119,'Footnotes list'!$D$9:$E$58,2,FALSE)=0,\"\",VLOOKUP(DZ119,'Footnotes list'!$D$9:$E$58,2,FALSE) ) )","v":""},null,null,null,null,{"$f":"IF(TRIM(EE119)=\"\", \"\", IF(VLOOKUP(EE119,'Footnotes list'!$D$9:$E$58,2,FALSE)=0,\"\",VLOOKUP(EE119,'Footnotes list'!$D$9:$E$58,2,FALSE) ) )","v":""},null,null,null,null,{"$f":"IF(TRIM(EJ119)=\"\", \"\", IF(VLOOKUP(EJ119,'Footnotes list'!$D$9:$E$58,2,FALSE)=0,\"\",VLOOKUP(EJ119,'Footnotes list'!$D$9:$E$58,2,FALSE) ) )","v":""},null,null,null,null,{"$f":"IF(TRIM(EO119)=\"\", \"\", IF(VLOOKUP(EO119,'Footnotes list'!$D$9:$E$58,2,FALSE)=0,\"\",VLOOKUP(EO119,'Footnotes list'!$D$9:$E$58,2,FALSE) ) )","v":""},null,null,null,null,{"$f":"IF(TRIM(ET119)=\"\", \"\", IF(VLOOKUP(ET119,'Footnotes list'!$D$9:$E$58,2,FALSE)=0,\"\",VLOOKUP(ET119,'Footnotes list'!$D$9:$E$58,2,FALSE) ) )","v":""},null,null,null,null,{"$f":"IF(TRIM(EY119)=\"\", \"\", IF(VLOOKUP(EY119,'Footnotes list'!$D$9:$E$58,2,FALSE)=0,\"\",VLOOKUP(EY119,'Footnotes list'!$D$9:$E$58,2,FALSE) ) )","v":""}]
[null,null,"C31-C33","TOT_EGSS","Total C31 - C33 Manufacture of furniture; other manufacturing; repair and installation of machinery and equipment, of which:",null,null,null,null,null,{"$f":"IF(TRIM(J120)=\"\", \"\", IF(VLOOKUP(J120,'Footnotes list'!$D$9:$E$58,2,FALSE)=0,\"\",VLOOKUP(J120,'Footnotes list'!$D$9:$E$58,2,FALSE) ) )","v":""},null,null,null,null,{"$f":"IF(TRIM(O120)=\"\", \"\", IF(VLOOKUP(O120,'Footnotes list'!$D$9:$E$58,2,FALSE)=0,\"\",VLOOKUP(O120,'Footnotes list'!$D$9:$E$58,2,FALSE) ) )","v":""},null,null,null,null,{"$f":"IF(TRIM(T120)=\"\", \"\", IF(VLOOKUP(T120,'Footnotes list'!$D$9:$E$58,2,FALSE)=0,\"\",VLOOKUP(T120,'Footnotes list'!$D$9:$E$58,2,FALSE) ) )","v":""},null,null,null,null,{"$f":"IF(TRIM(Y120)=\"\", \"\", IF(VLOOKUP(Y120,'Footnotes list'!$D$9:$E$58,2,FALSE)=0,\"\",VLOOKUP(Y120,'Footnotes list'!$D$9:$E$58,2,FALSE) ) )","v":""},null,null,null,null,{"$f":"IF(TRIM(AD120)=\"\", \"\", IF(VLOOKUP(AD120,'Footnotes list'!$D$9:$E$58,2,FALSE)=0,\"\",VLOOKUP(AD120,'Footnotes list'!$D$9:$E$58,2,FALSE) ) )","v":""},null,null,null,null,{"$f":"IF(TRIM(AI120)=\"\", \"\", IF(VLOOKUP(AI120,'Footnotes list'!$D$9:$E$58,2,FALSE)=0,\"\",VLOOKUP(AI120,'Footnotes list'!$D$9:$E$58,2,FALSE) ) )","v":""},null,null,null,null,{"$f":"IF(TRIM(AN120)=\"\", \"\", IF(VLOOKUP(AN120,'Footnotes list'!$D$9:$E$58,2,FALSE)=0,\"\",VLOOKUP(AN120,'Footnotes list'!$D$9:$E$58,2,FALSE) ) )","v":""},null,null,null,null,{"$f":"IF(TRIM(AS120)=\"\", \"\", IF(VLOOKUP(AS120,'Footnotes list'!$D$9:$E$58,2,FALSE)=0,\"\",VLOOKUP(AS120,'Footnotes list'!$D$9:$E$58,2,FALSE) ) )","v":""},null,null,null,null,{"$f":"IF(TRIM(AX120)=\"\", \"\", IF(VLOOKUP(AX120,'Footnotes list'!$D$9:$E$58,2,FALSE)=0,\"\",VLOOKUP(AX120,'Footnotes list'!$D$9:$E$58,2,FALSE) ) )","v":""},null,null,null,null,{"$f":"IF(TRIM(BC120)=\"\", \"\", IF(VLOOKUP(BC120,'Footnotes list'!$D$9:$E$58,2,FALSE)=0,\"\",VLOOKUP(BC120,'Footnotes list'!$D$9:$E$58,2,FALSE) ) )","v":""},null,null,null,null,{"$f":"IF(TRIM(BH120)=\"\", \"\", IF(VLOOKUP(BH120,'Footnotes list'!$D$9:$E$58,2,FALSE)=0,\"\",VLOOKUP(BH120,'Footnotes list'!$D$9:$E$58,2,FALSE) ) )","v":""},null,null,null,null,{"$f":"IF(TRIM(BM120)=\"\", \"\", IF(VLOOKUP(BM120,'Footnotes list'!$D$9:$E$58,2,FALSE)=0,\"\",VLOOKUP(BM120,'Footnotes list'!$D$9:$E$58,2,FALSE) ) )","v":""},null,null,null,null,{"$f":"IF(TRIM(BR120)=\"\", \"\", IF(VLOOKUP(BR120,'Footnotes list'!$D$9:$E$58,2,FALSE)=0,\"\",VLOOKUP(BR120,'Footnotes list'!$D$9:$E$58,2,FALSE) ) )","v":""},null,null,null,null,{"$f":"IF(TRIM(BW120)=\"\", \"\", IF(VLOOKUP(BW120,'Footnotes list'!$D$9:$E$58,2,FALSE)=0,\"\",VLOOKUP(BW120,'Footnotes list'!$D$9:$E$58,2,FALSE) ) )","v":""},null,null,null,null,{"$f":"IF(TRIM(CB120)=\"\", \"\", IF(VLOOKUP(CB120,'Footnotes list'!$D$9:$E$58,2,FALSE)=0,\"\",VLOOKUP(CB120,'Footnotes list'!$D$9:$E$58,2,FALSE) ) )","v":""},null,null,null,null,{"$f":"IF(TRIM(CG120)=\"\", \"\", IF(VLOOKUP(CG120,'Footnotes list'!$D$9:$E$58,2,FALSE)=0,\"\",VLOOKUP(CG120,'Footnotes list'!$D$9:$E$58,2,FALSE) ) )","v":""},null,null,null,null,{"$f":"IF(TRIM(CL120)=\"\", \"\", IF(VLOOKUP(CL120,'Footnotes list'!$D$9:$E$58,2,FALSE)=0,\"\",VLOOKUP(CL120,'Footnotes list'!$D$9:$E$58,2,FALSE) ) )","v":""},null,null,null,null,{"$f":"IF(TRIM(CQ120)=\"\", \"\", IF(VLOOKUP(CQ120,'Footnotes list'!$D$9:$E$58,2,FALSE)=0,\"\",VLOOKUP(CQ120,'Footnotes list'!$D$9:$E$58,2,FALSE) ) )","v":""},null,null,null,null,{"$f":"IF(TRIM(CV120)=\"\", \"\", IF(VLOOKUP(CV120,'Footnotes list'!$D$9:$E$58,2,FALSE)=0,\"\",VLOOKUP(CV120,'Footnotes list'!$D$9:$E$58,2,FALSE) ) )","v":""},null,null,null,null,{"$f":"IF(TRIM(DA120)=\"\", \"\", IF(VLOOKUP(DA120,'Footnotes list'!$D$9:$E$58,2,FALSE)=0,\"\",VLOOKUP(DA120,'Footnotes list'!$D$9:$E$58,2,FALSE) ) )","v":""},null,null,null,null,{"$f":"IF(TRIM(DF120)=\"\", \"\", IF(VLOOKUP(DF120,'Footnotes list'!$D$9:$E$58,2,FALSE)=0,\"\",VLOOKUP(DF120,'Footnotes list'!$D$9:$E$58,2,FALSE) ) )","v":""},null,null,null,null,{"$f":"IF(TRIM(DK120)=\"\", \"\", IF(VLOOKUP(DK120,'Footnotes list'!$D$9:$E$58,2,FALSE)=0,\"\",VLOOKUP(DK120,'Footnotes list'!$D$9:$E$58,2,FALSE) ) )","v":""},null,null,null,null,{"$f":"IF(TRIM(DP120)=\"\", \"\", IF(VLOOKUP(DP120,'Footnotes list'!$D$9:$E$58,2,FALSE)=0,\"\",VLOOKUP(DP120,'Footnotes list'!$D$9:$E$58,2,FALSE) ) )","v":""},null,null,null,null,{"$f":"IF(TRIM(DU120)=\"\", \"\", IF(VLOOKUP(DU120,'Footnotes list'!$D$9:$E$58,2,FALSE)=0,\"\",VLOOKUP(DU120,'Footnotes list'!$D$9:$E$58,2,FALSE) ) )","v":""},null,null,null,null,{"$f":"IF(TRIM(DZ120)=\"\", \"\", IF(VLOOKUP(DZ120,'Footnotes list'!$D$9:$E$58,2,FALSE)=0,\"\",VLOOKUP(DZ120,'Footnotes list'!$D$9:$E$58,2,FALSE) ) )","v":""},null,null,null,null,{"$f":"IF(TRIM(EE120)=\"\", \"\", IF(VLOOKUP(EE120,'Footnotes list'!$D$9:$E$58,2,FALSE)=0,\"\",VLOOKUP(EE120,'Footnotes list'!$D$9:$E$58,2,FALSE) ) )","v":""},null,null,null,null,{"$f":"IF(TRIM(EJ120)=\"\", \"\", IF(VLOOKUP(EJ120,'Footnotes list'!$D$9:$E$58,2,FALSE)=0,\"\",VLOOKUP(EJ120,'Footnotes list'!$D$9:$E$58,2,FALSE) ) )","v":""},null,null,null,null,{"$f":"IF(TRIM(EO120)=\"\", \"\", IF(VLOOKUP(EO120,'Footnotes list'!$D$9:$E$58,2,FALSE)=0,\"\",VLOOKUP(EO120,'Footnotes list'!$D$9:$E$58,2,FALSE) ) )","v":""},null,null,null,null,{"$f":"IF(TRIM(ET120)=\"\", \"\", IF(VLOOKUP(ET120,'Footnotes list'!$D$9:$E$58,2,FALSE)=0,\"\",VLOOKUP(ET120,'Footnotes list'!$D$9:$E$58,2,FALSE) ) )","v":""},null,null,null,null,{"$f":"IF(TRIM(EY120)=\"\", \"\", IF(VLOOKUP(EY120,'Footnotes list'!$D$9:$E$58,2,FALSE)=0,\"\",VLOOKUP(EY120,'Footnotes list'!$D$9:$E$58,2,FALSE) ) )","v":""}]
[null,null,"C31-C33","ANC","ancillary activities",null,null,null,null,null,{"$f":"IF(TRIM(J121)=\"\", \"\", IF(VLOOKUP(J121,'Footnotes list'!$D$9:$E$58,2,FALSE)=0,\"\",VLOOKUP(J121,'Footnotes list'!$D$9:$E$58,2,FALSE) ) )","v":""},null,null,null,null,{"$f":"IF(TRIM(O121)=\"\", \"\", IF(VLOOKUP(O121,'Footnotes list'!$D$9:$E$58,2,FALSE)=0,\"\",VLOOKUP(O121,'Footnotes list'!$D$9:$E$58,2,FALSE) ) )","v":""},null,null,null,null,{"$f":"IF(TRIM(T121)=\"\", \"\", IF(VLOOKUP(T121,'Footnotes list'!$D$9:$E$58,2,FALSE)=0,\"\",VLOOKUP(T121,'Footnotes list'!$D$9:$E$58,2,FALSE) ) )","v":""},null,null,null,null,{"$f":"IF(TRIM(Y121)=\"\", \"\", IF(VLOOKUP(Y121,'Footnotes list'!$D$9:$E$58,2,FALSE)=0,\"\",VLOOKUP(Y121,'Footnotes list'!$D$9:$E$58,2,FALSE) ) )","v":""},null,null,null,null,{"$f":"IF(TRIM(AD121)=\"\", \"\", IF(VLOOKUP(AD121,'Footnotes list'!$D$9:$E$58,2,FALSE)=0,\"\",VLOOKUP(AD121,'Footnotes list'!$D$9:$E$58,2,FALSE) ) )","v":""},null,null,null,null,{"$f":"IF(TRIM(AI121)=\"\", \"\", IF(VLOOKUP(AI121,'Footnotes list'!$D$9:$E$58,2,FALSE)=0,\"\",VLOOKUP(AI121,'Footnotes list'!$D$9:$E$58,2,FALSE) ) )","v":""},null,null,null,null,{"$f":"IF(TRIM(AN121)=\"\", \"\", IF(VLOOKUP(AN121,'Footnotes list'!$D$9:$E$58,2,FALSE)=0,\"\",VLOOKUP(AN121,'Footnotes list'!$D$9:$E$58,2,FALSE) ) )","v":""},null,null,null,null,{"$f":"IF(TRIM(AS121)=\"\", \"\", IF(VLOOKUP(AS121,'Footnotes list'!$D$9:$E$58,2,FALSE)=0,\"\",VLOOKUP(AS121,'Footnotes list'!$D$9:$E$58,2,FALSE) ) )","v":""},null,null,null,null,{"$f":"IF(TRIM(AX121)=\"\", \"\", IF(VLOOKUP(AX121,'Footnotes list'!$D$9:$E$58,2,FALSE)=0,\"\",VLOOKUP(AX121,'Footnotes list'!$D$9:$E$58,2,FALSE) ) )","v":""},null,null,null,null,{"$f":"IF(TRIM(BC121)=\"\", \"\", IF(VLOOKUP(BC121,'Footnotes list'!$D$9:$E$58,2,FALSE)=0,\"\",VLOOKUP(BC121,'Footnotes list'!$D$9:$E$58,2,FALSE) ) )","v":""},null,null,null,null,{"$f":"IF(TRIM(BH121)=\"\", \"\", IF(VLOOKUP(BH121,'Footnotes list'!$D$9:$E$58,2,FALSE)=0,\"\",VLOOKUP(BH121,'Footnotes list'!$D$9:$E$58,2,FALSE) ) )","v":""},null,null,null,null,{"$f":"IF(TRIM(BM121)=\"\", \"\", IF(VLOOKUP(BM121,'Footnotes list'!$D$9:$E$58,2,FALSE)=0,\"\",VLOOKUP(BM121,'Footnotes list'!$D$9:$E$58,2,FALSE) ) )","v":""},null,null,null,null,{"$f":"IF(TRIM(BR121)=\"\", \"\", IF(VLOOKUP(BR121,'Footnotes list'!$D$9:$E$58,2,FALSE)=0,\"\",VLOOKUP(BR121,'Footnotes list'!$D$9:$E$58,2,FALSE) ) )","v":""},null,null,null,null,{"$f":"IF(TRIM(BW121)=\"\", \"\", IF(VLOOKUP(BW121,'Footnotes list'!$D$9:$E$58,2,FALSE)=0,\"\",VLOOKUP(BW121,'Footnotes list'!$D$9:$E$58,2,FALSE) ) )","v":""},null,null,null,null,{"$f":"IF(TRIM(CB121)=\"\", \"\", IF(VLOOKUP(CB121,'Footnotes list'!$D$9:$E$58,2,FALSE)=0,\"\",VLOOKUP(CB121,'Footnotes list'!$D$9:$E$58,2,FALSE) ) )","v":""},null,null,null,null,{"$f":"IF(TRIM(CG121)=\"\", \"\", IF(VLOOKUP(CG121,'Footnotes list'!$D$9:$E$58,2,FALSE)=0,\"\",VLOOKUP(CG121,'Footnotes list'!$D$9:$E$58,2,FALSE) ) )","v":""},null,null,null,null,{"$f":"IF(TRIM(CL121)=\"\", \"\", IF(VLOOKUP(CL121,'Footnotes list'!$D$9:$E$58,2,FALSE)=0,\"\",VLOOKUP(CL121,'Footnotes list'!$D$9:$E$58,2,FALSE) ) )","v":""},null,null,null,null,{"$f":"IF(TRIM(CQ121)=\"\", \"\", IF(VLOOKUP(CQ121,'Footnotes list'!$D$9:$E$58,2,FALSE)=0,\"\",VLOOKUP(CQ121,'Footnotes list'!$D$9:$E$58,2,FALSE) ) )","v":""},null,null,null,null,{"$f":"IF(TRIM(CV121)=\"\", \"\", IF(VLOOKUP(CV121,'Footnotes list'!$D$9:$E$58,2,FALSE)=0,\"\",VLOOKUP(CV121,'Footnotes list'!$D$9:$E$58,2,FALSE) ) )","v":""},null,null,null,null,{"$f":"IF(TRIM(DA121)=\"\", \"\", IF(VLOOKUP(DA121,'Footnotes list'!$D$9:$E$58,2,FALSE)=0,\"\",VLOOKUP(DA121,'Footnotes list'!$D$9:$E$58,2,FALSE) ) )","v":""},null,null,null,null,{"$f":"IF(TRIM(DF121)=\"\", \"\", IF(VLOOKUP(DF121,'Footnotes list'!$D$9:$E$58,2,FALSE)=0,\"\",VLOOKUP(DF121,'Footnotes list'!$D$9:$E$58,2,FALSE) ) )","v":""},null,null,null,null,{"$f":"IF(TRIM(DK121)=\"\", \"\", IF(VLOOKUP(DK121,'Footnotes list'!$D$9:$E$58,2,FALSE)=0,\"\",VLOOKUP(DK121,'Footnotes list'!$D$9:$E$58,2,FALSE) ) )","v":""},null,null,null,null,{"$f":"IF(TRIM(DP121)=\"\", \"\", IF(VLOOKUP(DP121,'Footnotes list'!$D$9:$E$58,2,FALSE)=0,\"\",VLOOKUP(DP121,'Footnotes list'!$D$9:$E$58,2,FALSE) ) )","v":""},null,null,null,null,{"$f":"IF(TRIM(DU121)=\"\", \"\", IF(VLOOKUP(DU121,'Footnotes list'!$D$9:$E$58,2,FALSE)=0,\"\",VLOOKUP(DU121,'Footnotes list'!$D$9:$E$58,2,FALSE) ) )","v":""},null,null,null,null,{"$f":"IF(TRIM(DZ121)=\"\", \"\", IF(VLOOKUP(DZ121,'Footnotes list'!$D$9:$E$58,2,FALSE)=0,\"\",VLOOKUP(DZ121,'Footnotes list'!$D$9:$E$58,2,FALSE) ) )","v":""},null,null,null,null,{"$f":"IF(TRIM(EE121)=\"\", \"\", IF(VLOOKUP(EE121,'Footnotes list'!$D$9:$E$58,2,FALSE)=0,\"\",VLOOKUP(EE121,'Footnotes list'!$D$9:$E$58,2,FALSE) ) )","v":""},null,null,null,null,{"$f":"IF(TRIM(EJ121)=\"\", \"\", IF(VLOOKUP(EJ121,'Footnotes list'!$D$9:$E$58,2,FALSE)=0,\"\",VLOOKUP(EJ121,'Footnotes list'!$D$9:$E$58,2,FALSE) ) )","v":""},null,null,null,null,{"$f":"IF(TRIM(EO121)=\"\", \"\", IF(VLOOKUP(EO121,'Footnotes list'!$D$9:$E$58,2,FALSE)=0,\"\",VLOOKUP(EO121,'Footnotes list'!$D$9:$E$58,2,FALSE) ) )","v":""},null,null,null,null,{"$f":"IF(TRIM(ET121)=\"\", \"\", IF(VLOOKUP(ET121,'Footnotes list'!$D$9:$E$58,2,FALSE)=0,\"\",VLOOKUP(ET121,'Footnotes list'!$D$9:$E$58,2,FALSE) ) )","v":""},null,null,null,null,{"$f":"IF(TRIM(EY121)=\"\", \"\", IF(VLOOKUP(EY121,'Footnotes list'!$D$9:$E$58,2,FALSE)=0,\"\",VLOOKUP(EY121,'Footnotes list'!$D$9:$E$58,2,FALSE) ) )","v":""}]
[null,null,"C31-C33","NMKT","non-market activities",null,null,null,null,null,{"$f":"IF(TRIM(J122)=\"\", \"\", IF(VLOOKUP(J122,'Footnotes list'!$D$9:$E$58,2,FALSE)=0,\"\",VLOOKUP(J122,'Footnotes list'!$D$9:$E$58,2,FALSE) ) )","v":""},null,null,null,null,{"$f":"IF(TRIM(O122)=\"\", \"\", IF(VLOOKUP(O122,'Footnotes list'!$D$9:$E$58,2,FALSE)=0,\"\",VLOOKUP(O122,'Footnotes list'!$D$9:$E$58,2,FALSE) ) )","v":""},null,null,null,null,{"$f":"IF(TRIM(T122)=\"\", \"\", IF(VLOOKUP(T122,'Footnotes list'!$D$9:$E$58,2,FALSE)=0,\"\",VLOOKUP(T122,'Footnotes list'!$D$9:$E$58,2,FALSE) ) )","v":""},null,null,null,null,{"$f":"IF(TRIM(Y122)=\"\", \"\", IF(VLOOKUP(Y122,'Footnotes list'!$D$9:$E$58,2,FALSE)=0,\"\",VLOOKUP(Y122,'Footnotes list'!$D$9:$E$58,2,FALSE) ) )","v":""},null,null,null,null,{"$f":"IF(TRIM(AD122)=\"\", \"\", IF(VLOOKUP(AD122,'Footnotes list'!$D$9:$E$58,2,FALSE)=0,\"\",VLOOKUP(AD122,'Footnotes list'!$D$9:$E$58,2,FALSE) ) )","v":""},null,null,null,null,{"$f":"IF(TRIM(AI122)=\"\", \"\", IF(VLOOKUP(AI122,'Footnotes list'!$D$9:$E$58,2,FALSE)=0,\"\",VLOOKUP(AI122,'Footnotes list'!$D$9:$E$58,2,FALSE) ) )","v":""},null,null,null,null,{"$f":"IF(TRIM(AN122)=\"\", \"\", IF(VLOOKUP(AN122,'Footnotes list'!$D$9:$E$58,2,FALSE)=0,\"\",VLOOKUP(AN122,'Footnotes list'!$D$9:$E$58,2,FALSE) ) )","v":""},null,null,null,null,{"$f":"IF(TRIM(AS122)=\"\", \"\", IF(VLOOKUP(AS122,'Footnotes list'!$D$9:$E$58,2,FALSE)=0,\"\",VLOOKUP(AS122,'Footnotes list'!$D$9:$E$58,2,FALSE) ) )","v":""},null,null,null,null,{"$f":"IF(TRIM(AX122)=\"\", \"\", IF(VLOOKUP(AX122,'Footnotes list'!$D$9:$E$58,2,FALSE)=0,\"\",VLOOKUP(AX122,'Footnotes list'!$D$9:$E$58,2,FALSE) ) )","v":""},null,null,null,null,{"$f":"IF(TRIM(BC122)=\"\", \"\", IF(VLOOKUP(BC122,'Footnotes list'!$D$9:$E$58,2,FALSE)=0,\"\",VLOOKUP(BC122,'Footnotes list'!$D$9:$E$58,2,FALSE) ) )","v":""},null,null,null,null,{"$f":"IF(TRIM(BH122)=\"\", \"\", IF(VLOOKUP(BH122,'Footnotes list'!$D$9:$E$58,2,FALSE)=0,\"\",VLOOKUP(BH122,'Footnotes list'!$D$9:$E$58,2,FALSE) ) )","v":""},null,null,null,null,{"$f":"IF(TRIM(BM122)=\"\", \"\", IF(VLOOKUP(BM122,'Footnotes list'!$D$9:$E$58,2,FALSE)=0,\"\",VLOOKUP(BM122,'Footnotes list'!$D$9:$E$58,2,FALSE) ) )","v":""},null,null,null,null,{"$f":"IF(TRIM(BR122)=\"\", \"\", IF(VLOOKUP(BR122,'Footnotes list'!$D$9:$E$58,2,FALSE)=0,\"\",VLOOKUP(BR122,'Footnotes list'!$D$9:$E$58,2,FALSE) ) )","v":""},null,null,null,null,{"$f":"IF(TRIM(BW122)=\"\", \"\", IF(VLOOKUP(BW122,'Footnotes list'!$D$9:$E$58,2,FALSE)=0,\"\",VLOOKUP(BW122,'Footnotes list'!$D$9:$E$58,2,FALSE) ) )","v":""},null,null,null,null,{"$f":"IF(TRIM(CB122)=\"\", \"\", IF(VLOOKUP(CB122,'Footnotes list'!$D$9:$E$58,2,FALSE)=0,\"\",VLOOKUP(CB122,'Footnotes list'!$D$9:$E$58,2,FALSE) ) )","v":""},null,null,null,null,{"$f":"IF(TRIM(CG122)=\"\", \"\", IF(VLOOKUP(CG122,'Footnotes list'!$D$9:$E$58,2,FALSE)=0,\"\",VLOOKUP(CG122,'Footnotes list'!$D$9:$E$58,2,FALSE) ) )","v":""},null,null,null,null,{"$f":"IF(TRIM(CL122)=\"\", \"\", IF(VLOOKUP(CL122,'Footnotes list'!$D$9:$E$58,2,FALSE)=0,\"\",VLOOKUP(CL122,'Footnotes list'!$D$9:$E$58,2,FALSE) ) )","v":""},null,null,null,null,{"$f":"IF(TRIM(CQ122)=\"\", \"\", IF(VLOOKUP(CQ122,'Footnotes list'!$D$9:$E$58,2,FALSE)=0,\"\",VLOOKUP(CQ122,'Footnotes list'!$D$9:$E$58,2,FALSE) ) )","v":""},null,null,null,null,{"$f":"IF(TRIM(CV122)=\"\", \"\", IF(VLOOKUP(CV122,'Footnotes list'!$D$9:$E$58,2,FALSE)=0,\"\",VLOOKUP(CV122,'Footnotes list'!$D$9:$E$58,2,FALSE) ) )","v":""},null,null,null,null,{"$f":"IF(TRIM(DA122)=\"\", \"\", IF(VLOOKUP(DA122,'Footnotes list'!$D$9:$E$58,2,FALSE)=0,\"\",VLOOKUP(DA122,'Footnotes list'!$D$9:$E$58,2,FALSE) ) )","v":""},null,null,null,null,{"$f":"IF(TRIM(DF122)=\"\", \"\", IF(VLOOKUP(DF122,'Footnotes list'!$D$9:$E$58,2,FALSE)=0,\"\",VLOOKUP(DF122,'Footnotes list'!$D$9:$E$58,2,FALSE) ) )","v":""},null,null,null,null,{"$f":"IF(TRIM(DK122)=\"\", \"\", IF(VLOOKUP(DK122,'Footnotes list'!$D$9:$E$58,2,FALSE)=0,\"\",VLOOKUP(DK122,'Footnotes list'!$D$9:$E$58,2,FALSE) ) )","v":""},null,null,null,null,{"$f":"IF(TRIM(DP122)=\"\", \"\", IF(VLOOKUP(DP122,'Footnotes list'!$D$9:$E$58,2,FALSE)=0,\"\",VLOOKUP(DP122,'Footnotes list'!$D$9:$E$58,2,FALSE) ) )","v":""},null,null,null,null,{"$f":"IF(TRIM(DU122)=\"\", \"\", IF(VLOOKUP(DU122,'Footnotes list'!$D$9:$E$58,2,FALSE)=0,\"\",VLOOKUP(DU122,'Footnotes list'!$D$9:$E$58,2,FALSE) ) )","v":""},null,null,null,null,{"$f":"IF(TRIM(DZ122)=\"\", \"\", IF(VLOOKUP(DZ122,'Footnotes list'!$D$9:$E$58,2,FALSE)=0,\"\",VLOOKUP(DZ122,'Footnotes list'!$D$9:$E$58,2,FALSE) ) )","v":""},null,null,null,null,{"$f":"IF(TRIM(EE122)=\"\", \"\", IF(VLOOKUP(EE122,'Footnotes list'!$D$9:$E$58,2,FALSE)=0,\"\",VLOOKUP(EE122,'Footnotes list'!$D$9:$E$58,2,FALSE) ) )","v":""},null,null,null,null,{"$f":"IF(TRIM(EJ122)=\"\", \"\", IF(VLOOKUP(EJ122,'Footnotes list'!$D$9:$E$58,2,FALSE)=0,\"\",VLOOKUP(EJ122,'Footnotes list'!$D$9:$E$58,2,FALSE) ) )","v":""},null,null,null,null,{"$f":"IF(TRIM(EO122)=\"\", \"\", IF(VLOOKUP(EO122,'Footnotes list'!$D$9:$E$58,2,FALSE)=0,\"\",VLOOKUP(EO122,'Footnotes list'!$D$9:$E$58,2,FALSE) ) )","v":""},null,null,null,null,{"$f":"IF(TRIM(ET122)=\"\", \"\", IF(VLOOKUP(ET122,'Footnotes list'!$D$9:$E$58,2,FALSE)=0,\"\",VLOOKUP(ET122,'Footnotes list'!$D$9:$E$58,2,FALSE) ) )","v":""},null,null,null,null,{"$f":"IF(TRIM(EY122)=\"\", \"\", IF(VLOOKUP(EY122,'Footnotes list'!$D$9:$E$58,2,FALSE)=0,\"\",VLOOKUP(EY122,'Footnotes list'!$D$9:$E$58,2,FALSE) ) )","v":""}]
[null,null,"C31-C33","OWN_USE","activities for own final use",null,null,null,null,null,{"$f":"IF(TRIM(J123)=\"\", \"\", IF(VLOOKUP(J123,'Footnotes list'!$D$9:$E$58,2,FALSE)=0,\"\",VLOOKUP(J123,'Footnotes list'!$D$9:$E$58,2,FALSE) ) )","v":""},null,null,null,null,{"$f":"IF(TRIM(O123)=\"\", \"\", IF(VLOOKUP(O123,'Footnotes list'!$D$9:$E$58,2,FALSE)=0,\"\",VLOOKUP(O123,'Footnotes list'!$D$9:$E$58,2,FALSE) ) )","v":""},null,null,null,null,{"$f":"IF(TRIM(T123)=\"\", \"\", IF(VLOOKUP(T123,'Footnotes list'!$D$9:$E$58,2,FALSE)=0,\"\",VLOOKUP(T123,'Footnotes list'!$D$9:$E$58,2,FALSE) ) )","v":""},null,null,null,null,{"$f":"IF(TRIM(Y123)=\"\", \"\", IF(VLOOKUP(Y123,'Footnotes list'!$D$9:$E$58,2,FALSE)=0,\"\",VLOOKUP(Y123,'Footnotes list'!$D$9:$E$58,2,FALSE) ) )","v":""},null,null,null,null,{"$f":"IF(TRIM(AD123)=\"\", \"\", IF(VLOOKUP(AD123,'Footnotes list'!$D$9:$E$58,2,FALSE)=0,\"\",VLOOKUP(AD123,'Footnotes list'!$D$9:$E$58,2,FALSE) ) )","v":""},null,null,null,null,{"$f":"IF(TRIM(AI123)=\"\", \"\", IF(VLOOKUP(AI123,'Footnotes list'!$D$9:$E$58,2,FALSE)=0,\"\",VLOOKUP(AI123,'Footnotes list'!$D$9:$E$58,2,FALSE) ) )","v":""},null,null,null,null,{"$f":"IF(TRIM(AN123)=\"\", \"\", IF(VLOOKUP(AN123,'Footnotes list'!$D$9:$E$58,2,FALSE)=0,\"\",VLOOKUP(AN123,'Footnotes list'!$D$9:$E$58,2,FALSE) ) )","v":""},null,null,null,null,{"$f":"IF(TRIM(AS123)=\"\", \"\", IF(VLOOKUP(AS123,'Footnotes list'!$D$9:$E$58,2,FALSE)=0,\"\",VLOOKUP(AS123,'Footnotes list'!$D$9:$E$58,2,FALSE) ) )","v":""},null,null,null,null,{"$f":"IF(TRIM(AX123)=\"\", \"\", IF(VLOOKUP(AX123,'Footnotes list'!$D$9:$E$58,2,FALSE)=0,\"\",VLOOKUP(AX123,'Footnotes list'!$D$9:$E$58,2,FALSE) ) )","v":""},null,null,null,null,{"$f":"IF(TRIM(BC123)=\"\", \"\", IF(VLOOKUP(BC123,'Footnotes list'!$D$9:$E$58,2,FALSE)=0,\"\",VLOOKUP(BC123,'Footnotes list'!$D$9:$E$58,2,FALSE) ) )","v":""},null,null,null,null,{"$f":"IF(TRIM(BH123)=\"\", \"\", IF(VLOOKUP(BH123,'Footnotes list'!$D$9:$E$58,2,FALSE)=0,\"\",VLOOKUP(BH123,'Footnotes list'!$D$9:$E$58,2,FALSE) ) )","v":""},null,null,null,null,{"$f":"IF(TRIM(BM123)=\"\", \"\", IF(VLOOKUP(BM123,'Footnotes list'!$D$9:$E$58,2,FALSE)=0,\"\",VLOOKUP(BM123,'Footnotes list'!$D$9:$E$58,2,FALSE) ) )","v":""},null,null,null,null,{"$f":"IF(TRIM(BR123)=\"\", \"\", IF(VLOOKUP(BR123,'Footnotes list'!$D$9:$E$58,2,FALSE)=0,\"\",VLOOKUP(BR123,'Footnotes list'!$D$9:$E$58,2,FALSE) ) )","v":""},null,null,null,null,{"$f":"IF(TRIM(BW123)=\"\", \"\", IF(VLOOKUP(BW123,'Footnotes list'!$D$9:$E$58,2,FALSE)=0,\"\",VLOOKUP(BW123,'Footnotes list'!$D$9:$E$58,2,FALSE) ) )","v":""},null,null,null,null,{"$f":"IF(TRIM(CB123)=\"\", \"\", IF(VLOOKUP(CB123,'Footnotes list'!$D$9:$E$58,2,FALSE)=0,\"\",VLOOKUP(CB123,'Footnotes list'!$D$9:$E$58,2,FALSE) ) )","v":""},null,null,null,null,{"$f":"IF(TRIM(CG123)=\"\", \"\", IF(VLOOKUP(CG123,'Footnotes list'!$D$9:$E$58,2,FALSE)=0,\"\",VLOOKUP(CG123,'Footnotes list'!$D$9:$E$58,2,FALSE) ) )","v":""},null,null,null,null,{"$f":"IF(TRIM(CL123)=\"\", \"\", IF(VLOOKUP(CL123,'Footnotes list'!$D$9:$E$58,2,FALSE)=0,\"\",VLOOKUP(CL123,'Footnotes list'!$D$9:$E$58,2,FALSE) ) )","v":""},null,null,null,null,{"$f":"IF(TRIM(CQ123)=\"\", \"\", IF(VLOOKUP(CQ123,'Footnotes list'!$D$9:$E$58,2,FALSE)=0,\"\",VLOOKUP(CQ123,'Footnotes list'!$D$9:$E$58,2,FALSE) ) )","v":""},null,null,null,null,{"$f":"IF(TRIM(CV123)=\"\", \"\", IF(VLOOKUP(CV123,'Footnotes list'!$D$9:$E$58,2,FALSE)=0,\"\",VLOOKUP(CV123,'Footnotes list'!$D$9:$E$58,2,FALSE) ) )","v":""},null,null,null,null,{"$f":"IF(TRIM(DA123)=\"\", \"\", IF(VLOOKUP(DA123,'Footnotes list'!$D$9:$E$58,2,FALSE)=0,\"\",VLOOKUP(DA123,'Footnotes list'!$D$9:$E$58,2,FALSE) ) )","v":""},null,null,null,null,{"$f":"IF(TRIM(DF123)=\"\", \"\", IF(VLOOKUP(DF123,'Footnotes list'!$D$9:$E$58,2,FALSE)=0,\"\",VLOOKUP(DF123,'Footnotes list'!$D$9:$E$58,2,FALSE) ) )","v":""},null,null,null,null,{"$f":"IF(TRIM(DK123)=\"\", \"\", IF(VLOOKUP(DK123,'Footnotes list'!$D$9:$E$58,2,FALSE)=0,\"\",VLOOKUP(DK123,'Footnotes list'!$D$9:$E$58,2,FALSE) ) )","v":""},null,null,null,null,{"$f":"IF(TRIM(DP123)=\"\", \"\", IF(VLOOKUP(DP123,'Footnotes list'!$D$9:$E$58,2,FALSE)=0,\"\",VLOOKUP(DP123,'Footnotes list'!$D$9:$E$58,2,FALSE) ) )","v":""},null,null,null,null,{"$f":"IF(TRIM(DU123)=\"\", \"\", IF(VLOOKUP(DU123,'Footnotes list'!$D$9:$E$58,2,FALSE)=0,\"\",VLOOKUP(DU123,'Footnotes list'!$D$9:$E$58,2,FALSE) ) )","v":""},null,null,null,null,{"$f":"IF(TRIM(DZ123)=\"\", \"\", IF(VLOOKUP(DZ123,'Footnotes list'!$D$9:$E$58,2,FALSE)=0,\"\",VLOOKUP(DZ123,'Footnotes list'!$D$9:$E$58,2,FALSE) ) )","v":""},null,null,null,null,{"$f":"IF(TRIM(EE123)=\"\", \"\", IF(VLOOKUP(EE123,'Footnotes list'!$D$9:$E$58,2,FALSE)=0,\"\",VLOOKUP(EE123,'Footnotes list'!$D$9:$E$58,2,FALSE) ) )","v":""},null,null,null,null,{"$f":"IF(TRIM(EJ123)=\"\", \"\", IF(VLOOKUP(EJ123,'Footnotes list'!$D$9:$E$58,2,FALSE)=0,\"\",VLOOKUP(EJ123,'Footnotes list'!$D$9:$E$58,2,FALSE) ) )","v":""},null,null,null,null,{"$f":"IF(TRIM(EO123)=\"\", \"\", IF(VLOOKUP(EO123,'Footnotes list'!$D$9:$E$58,2,FALSE)=0,\"\",VLOOKUP(EO123,'Footnotes list'!$D$9:$E$58,2,FALSE) ) )","v":""},null,null,null,null,{"$f":"IF(TRIM(ET123)=\"\", \"\", IF(VLOOKUP(ET123,'Footnotes list'!$D$9:$E$58,2,FALSE)=0,\"\",VLOOKUP(ET123,'Footnotes list'!$D$9:$E$58,2,FALSE) ) )","v":""},null,null,null,null,{"$f":"IF(TRIM(EY123)=\"\", \"\", IF(VLOOKUP(EY123,'Footnotes list'!$D$9:$E$58,2,FALSE)=0,\"\",VLOOKUP(EY123,'Footnotes list'!$D$9:$E$58,2,FALSE) ) )","v":""}]
[null,null,"C31-C33","MKT","market activities, including:",null,null,null,null,null,{"$f":"IF(TRIM(J124)=\"\", \"\", IF(VLOOKUP(J124,'Footnotes list'!$D$9:$E$58,2,FALSE)=0,\"\",VLOOKUP(J124,'Footnotes list'!$D$9:$E$58,2,FALSE) ) )","v":""},null,null,null,null,{"$f":"IF(TRIM(O124)=\"\", \"\", IF(VLOOKUP(O124,'Footnotes list'!$D$9:$E$58,2,FALSE)=0,\"\",VLOOKUP(O124,'Footnotes list'!$D$9:$E$58,2,FALSE) ) )","v":""},null,null,null,null,{"$f":"IF(TRIM(T124)=\"\", \"\", IF(VLOOKUP(T124,'Footnotes list'!$D$9:$E$58,2,FALSE)=0,\"\",VLOOKUP(T124,'Footnotes list'!$D$9:$E$58,2,FALSE) ) )","v":""},null,null,null,null,{"$f":"IF(TRIM(Y124)=\"\", \"\", IF(VLOOKUP(Y124,'Footnotes list'!$D$9:$E$58,2,FALSE)=0,\"\",VLOOKUP(Y124,'Footnotes list'!$D$9:$E$58,2,FALSE) ) )","v":""},null,null,null,null,{"$f":"IF(TRIM(AD124)=\"\", \"\", IF(VLOOKUP(AD124,'Footnotes list'!$D$9:$E$58,2,FALSE)=0,\"\",VLOOKUP(AD124,'Footnotes list'!$D$9:$E$58,2,FALSE) ) )","v":""},null,null,null,null,{"$f":"IF(TRIM(AI124)=\"\", \"\", IF(VLOOKUP(AI124,'Footnotes list'!$D$9:$E$58,2,FALSE)=0,\"\",VLOOKUP(AI124,'Footnotes list'!$D$9:$E$58,2,FALSE) ) )","v":""},null,null,null,null,{"$f":"IF(TRIM(AN124)=\"\", \"\", IF(VLOOKUP(AN124,'Footnotes list'!$D$9:$E$58,2,FALSE)=0,\"\",VLOOKUP(AN124,'Footnotes list'!$D$9:$E$58,2,FALSE) ) )","v":""},null,null,null,null,{"$f":"IF(TRIM(AS124)=\"\", \"\", IF(VLOOKUP(AS124,'Footnotes list'!$D$9:$E$58,2,FALSE)=0,\"\",VLOOKUP(AS124,'Footnotes list'!$D$9:$E$58,2,FALSE) ) )","v":""},null,null,null,null,{"$f":"IF(TRIM(AX124)=\"\", \"\", IF(VLOOKUP(AX124,'Footnotes list'!$D$9:$E$58,2,FALSE)=0,\"\",VLOOKUP(AX124,'Footnotes list'!$D$9:$E$58,2,FALSE) ) )","v":""},null,null,null,null,{"$f":"IF(TRIM(BC124)=\"\", \"\", IF(VLOOKUP(BC124,'Footnotes list'!$D$9:$E$58,2,FALSE)=0,\"\",VLOOKUP(BC124,'Footnotes list'!$D$9:$E$58,2,FALSE) ) )","v":""},null,null,null,null,{"$f":"IF(TRIM(BH124)=\"\", \"\", IF(VLOOKUP(BH124,'Footnotes list'!$D$9:$E$58,2,FALSE)=0,\"\",VLOOKUP(BH124,'Footnotes list'!$D$9:$E$58,2,FALSE) ) )","v":""},null,null,null,null,{"$f":"IF(TRIM(BM124)=\"\", \"\", IF(VLOOKUP(BM124,'Footnotes list'!$D$9:$E$58,2,FALSE)=0,\"\",VLOOKUP(BM124,'Footnotes list'!$D$9:$E$58,2,FALSE) ) )","v":""},null,null,null,null,{"$f":"IF(TRIM(BR124)=\"\", \"\", IF(VLOOKUP(BR124,'Footnotes list'!$D$9:$E$58,2,FALSE)=0,\"\",VLOOKUP(BR124,'Footnotes list'!$D$9:$E$58,2,FALSE) ) )","v":""},null,null,null,null,{"$f":"IF(TRIM(BW124)=\"\", \"\", IF(VLOOKUP(BW124,'Footnotes list'!$D$9:$E$58,2,FALSE)=0,\"\",VLOOKUP(BW124,'Footnotes list'!$D$9:$E$58,2,FALSE) ) )","v":""},null,null,null,null,{"$f":"IF(TRIM(CB124)=\"\", \"\", IF(VLOOKUP(CB124,'Footnotes list'!$D$9:$E$58,2,FALSE)=0,\"\",VLOOKUP(CB124,'Footnotes list'!$D$9:$E$58,2,FALSE) ) )","v":""},null,null,null,null,{"$f":"IF(TRIM(CG124)=\"\", \"\", IF(VLOOKUP(CG124,'Footnotes list'!$D$9:$E$58,2,FALSE)=0,\"\",VLOOKUP(CG124,'Footnotes list'!$D$9:$E$58,2,FALSE) ) )","v":""},null,null,null,null,{"$f":"IF(TRIM(CL124)=\"\", \"\", IF(VLOOKUP(CL124,'Footnotes list'!$D$9:$E$58,2,FALSE)=0,\"\",VLOOKUP(CL124,'Footnotes list'!$D$9:$E$58,2,FALSE) ) )","v":""},null,null,null,null,{"$f":"IF(TRIM(CQ124)=\"\", \"\", IF(VLOOKUP(CQ124,'Footnotes list'!$D$9:$E$58,2,FALSE)=0,\"\",VLOOKUP(CQ124,'Footnotes list'!$D$9:$E$58,2,FALSE) ) )","v":""},null,null,null,null,{"$f":"IF(TRIM(CV124)=\"\", \"\", IF(VLOOKUP(CV124,'Footnotes list'!$D$9:$E$58,2,FALSE)=0,\"\",VLOOKUP(CV124,'Footnotes list'!$D$9:$E$58,2,FALSE) ) )","v":""},null,null,null,null,{"$f":"IF(TRIM(DA124)=\"\", \"\", IF(VLOOKUP(DA124,'Footnotes list'!$D$9:$E$58,2,FALSE)=0,\"\",VLOOKUP(DA124,'Footnotes list'!$D$9:$E$58,2,FALSE) ) )","v":""},null,null,null,null,{"$f":"IF(TRIM(DF124)=\"\", \"\", IF(VLOOKUP(DF124,'Footnotes list'!$D$9:$E$58,2,FALSE)=0,\"\",VLOOKUP(DF124,'Footnotes list'!$D$9:$E$58,2,FALSE) ) )","v":""},null,null,null,null,{"$f":"IF(TRIM(DK124)=\"\", \"\", IF(VLOOKUP(DK124,'Footnotes list'!$D$9:$E$58,2,FALSE)=0,\"\",VLOOKUP(DK124,'Footnotes list'!$D$9:$E$58,2,FALSE) ) )","v":""},null,null,null,null,{"$f":"IF(TRIM(DP124)=\"\", \"\", IF(VLOOKUP(DP124,'Footnotes list'!$D$9:$E$58,2,FALSE)=0,\"\",VLOOKUP(DP124,'Footnotes list'!$D$9:$E$58,2,FALSE) ) )","v":""},null,null,null,null,{"$f":"IF(TRIM(DU124)=\"\", \"\", IF(VLOOKUP(DU124,'Footnotes list'!$D$9:$E$58,2,FALSE)=0,\"\",VLOOKUP(DU124,'Footnotes list'!$D$9:$E$58,2,FALSE) ) )","v":""},null,null,null,null,{"$f":"IF(TRIM(DZ124)=\"\", \"\", IF(VLOOKUP(DZ124,'Footnotes list'!$D$9:$E$58,2,FALSE)=0,\"\",VLOOKUP(DZ124,'Footnotes list'!$D$9:$E$58,2,FALSE) ) )","v":""},null,null,null,null,{"$f":"IF(TRIM(EE124)=\"\", \"\", IF(VLOOKUP(EE124,'Footnotes list'!$D$9:$E$58,2,FALSE)=0,\"\",VLOOKUP(EE124,'Footnotes list'!$D$9:$E$58,2,FALSE) ) )","v":""},null,null,null,null,{"$f":"IF(TRIM(EJ124)=\"\", \"\", IF(VLOOKUP(EJ124,'Footnotes list'!$D$9:$E$58,2,FALSE)=0,\"\",VLOOKUP(EJ124,'Footnotes list'!$D$9:$E$58,2,FALSE) ) )","v":""},null,null,null,null,{"$f":"IF(TRIM(EO124)=\"\", \"\", IF(VLOOKUP(EO124,'Footnotes list'!$D$9:$E$58,2,FALSE)=0,\"\",VLOOKUP(EO124,'Footnotes list'!$D$9:$E$58,2,FALSE) ) )","v":""},null,null,null,null,{"$f":"IF(TRIM(ET124)=\"\", \"\", IF(VLOOKUP(ET124,'Footnotes list'!$D$9:$E$58,2,FALSE)=0,\"\",VLOOKUP(ET124,'Footnotes list'!$D$9:$E$58,2,FALSE) ) )","v":""},null,null,null,null,{"$f":"IF(TRIM(EY124)=\"\", \"\", IF(VLOOKUP(EY124,'Footnotes list'!$D$9:$E$58,2,FALSE)=0,\"\",VLOOKUP(EY124,'Footnotes list'!$D$9:$E$58,2,FALSE) ) )","v":""}]
[null,null,"C31-C33","ES_CS","environmental specific services",null,null,null,null,null,{"$f":"IF(TRIM(J125)=\"\", \"\", IF(VLOOKUP(J125,'Footnotes list'!$D$9:$E$58,2,FALSE)=0,\"\",VLOOKUP(J125,'Footnotes list'!$D$9:$E$58,2,FALSE) ) )","v":""},null,null,null,null,{"$f":"IF(TRIM(O125)=\"\", \"\", IF(VLOOKUP(O125,'Footnotes list'!$D$9:$E$58,2,FALSE)=0,\"\",VLOOKUP(O125,'Footnotes list'!$D$9:$E$58,2,FALSE) ) )","v":""},null,null,null,null,{"$f":"IF(TRIM(T125)=\"\", \"\", IF(VLOOKUP(T125,'Footnotes list'!$D$9:$E$58,2,FALSE)=0,\"\",VLOOKUP(T125,'Footnotes list'!$D$9:$E$58,2,FALSE) ) )","v":""},null,null,null,null,{"$f":"IF(TRIM(Y125)=\"\", \"\", IF(VLOOKUP(Y125,'Footnotes list'!$D$9:$E$58,2,FALSE)=0,\"\",VLOOKUP(Y125,'Footnotes list'!$D$9:$E$58,2,FALSE) ) )","v":""},null,null,null,null,{"$f":"IF(TRIM(AD125)=\"\", \"\", IF(VLOOKUP(AD125,'Footnotes list'!$D$9:$E$58,2,FALSE)=0,\"\",VLOOKUP(AD125,'Footnotes list'!$D$9:$E$58,2,FALSE) ) )","v":""},null,null,null,null,{"$f":"IF(TRIM(AI125)=\"\", \"\", IF(VLOOKUP(AI125,'Footnotes list'!$D$9:$E$58,2,FALSE)=0,\"\",VLOOKUP(AI125,'Footnotes list'!$D$9:$E$58,2,FALSE) ) )","v":""},null,null,null,null,{"$f":"IF(TRIM(AN125)=\"\", \"\", IF(VLOOKUP(AN125,'Footnotes list'!$D$9:$E$58,2,FALSE)=0,\"\",VLOOKUP(AN125,'Footnotes list'!$D$9:$E$58,2,FALSE) ) )","v":""},null,null,null,null,{"$f":"IF(TRIM(AS125)=\"\", \"\", IF(VLOOKUP(AS125,'Footnotes list'!$D$9:$E$58,2,FALSE)=0,\"\",VLOOKUP(AS125,'Footnotes list'!$D$9:$E$58,2,FALSE) ) )","v":""},null,null,null,null,{"$f":"IF(TRIM(AX125)=\"\", \"\", IF(VLOOKUP(AX125,'Footnotes list'!$D$9:$E$58,2,FALSE)=0,\"\",VLOOKUP(AX125,'Footnotes list'!$D$9:$E$58,2,FALSE) ) )","v":""},null,null,null,null,{"$f":"IF(TRIM(BC125)=\"\", \"\", IF(VLOOKUP(BC125,'Footnotes list'!$D$9:$E$58,2,FALSE)=0,\"\",VLOOKUP(BC125,'Footnotes list'!$D$9:$E$58,2,FALSE) ) )","v":""},null,null,null,null,{"$f":"IF(TRIM(BH125)=\"\", \"\", IF(VLOOKUP(BH125,'Footnotes list'!$D$9:$E$58,2,FALSE)=0,\"\",VLOOKUP(BH125,'Footnotes list'!$D$9:$E$58,2,FALSE) ) )","v":""},null,null,null,null,{"$f":"IF(TRIM(BM125)=\"\", \"\", IF(VLOOKUP(BM125,'Footnotes list'!$D$9:$E$58,2,FALSE)=0,\"\",VLOOKUP(BM125,'Footnotes list'!$D$9:$E$58,2,FALSE) ) )","v":""},null,null,null,null,{"$f":"IF(TRIM(BR125)=\"\", \"\", IF(VLOOKUP(BR125,'Footnotes list'!$D$9:$E$58,2,FALSE)=0,\"\",VLOOKUP(BR125,'Footnotes list'!$D$9:$E$58,2,FALSE) ) )","v":""},null,null,null,null,{"$f":"IF(TRIM(BW125)=\"\", \"\", IF(VLOOKUP(BW125,'Footnotes list'!$D$9:$E$58,2,FALSE)=0,\"\",VLOOKUP(BW125,'Footnotes list'!$D$9:$E$58,2,FALSE) ) )","v":""},null,null,null,null,{"$f":"IF(TRIM(CB125)=\"\", \"\", IF(VLOOKUP(CB125,'Footnotes list'!$D$9:$E$58,2,FALSE)=0,\"\",VLOOKUP(CB125,'Footnotes list'!$D$9:$E$58,2,FALSE) ) )","v":""},null,null,null,null,{"$f":"IF(TRIM(CG125)=\"\", \"\", IF(VLOOKUP(CG125,'Footnotes list'!$D$9:$E$58,2,FALSE)=0,\"\",VLOOKUP(CG125,'Footnotes list'!$D$9:$E$58,2,FALSE) ) )","v":""},null,null,null,null,{"$f":"IF(TRIM(CL125)=\"\", \"\", IF(VLOOKUP(CL125,'Footnotes list'!$D$9:$E$58,2,FALSE)=0,\"\",VLOOKUP(CL125,'Footnotes list'!$D$9:$E$58,2,FALSE) ) )","v":""},null,null,null,null,{"$f":"IF(TRIM(CQ125)=\"\", \"\", IF(VLOOKUP(CQ125,'Footnotes list'!$D$9:$E$58,2,FALSE)=0,\"\",VLOOKUP(CQ125,'Footnotes list'!$D$9:$E$58,2,FALSE) ) )","v":""},null,null,null,null,{"$f":"IF(TRIM(CV125)=\"\", \"\", IF(VLOOKUP(CV125,'Footnotes list'!$D$9:$E$58,2,FALSE)=0,\"\",VLOOKUP(CV125,'Footnotes list'!$D$9:$E$58,2,FALSE) ) )","v":""},null,null,null,null,{"$f":"IF(TRIM(DA125)=\"\", \"\", IF(VLOOKUP(DA125,'Footnotes list'!$D$9:$E$58,2,FALSE)=0,\"\",VLOOKUP(DA125,'Footnotes list'!$D$9:$E$58,2,FALSE) ) )","v":""},null,null,null,null,{"$f":"IF(TRIM(DF125)=\"\", \"\", IF(VLOOKUP(DF125,'Footnotes list'!$D$9:$E$58,2,FALSE)=0,\"\",VLOOKUP(DF125,'Footnotes list'!$D$9:$E$58,2,FALSE) ) )","v":""},null,null,null,null,{"$f":"IF(TRIM(DK125)=\"\", \"\", IF(VLOOKUP(DK125,'Footnotes list'!$D$9:$E$58,2,FALSE)=0,\"\",VLOOKUP(DK125,'Footnotes list'!$D$9:$E$58,2,FALSE) ) )","v":""},null,null,null,null,{"$f":"IF(TRIM(DP125)=\"\", \"\", IF(VLOOKUP(DP125,'Footnotes list'!$D$9:$E$58,2,FALSE)=0,\"\",VLOOKUP(DP125,'Footnotes list'!$D$9:$E$58,2,FALSE) ) )","v":""},null,null,null,null,{"$f":"IF(TRIM(DU125)=\"\", \"\", IF(VLOOKUP(DU125,'Footnotes list'!$D$9:$E$58,2,FALSE)=0,\"\",VLOOKUP(DU125,'Footnotes list'!$D$9:$E$58,2,FALSE) ) )","v":""},null,null,null,null,{"$f":"IF(TRIM(DZ125)=\"\", \"\", IF(VLOOKUP(DZ125,'Footnotes list'!$D$9:$E$58,2,FALSE)=0,\"\",VLOOKUP(DZ125,'Footnotes list'!$D$9:$E$58,2,FALSE) ) )","v":""},null,null,null,null,{"$f":"IF(TRIM(EE125)=\"\", \"\", IF(VLOOKUP(EE125,'Footnotes list'!$D$9:$E$58,2,FALSE)=0,\"\",VLOOKUP(EE125,'Footnotes list'!$D$9:$E$58,2,FALSE) ) )","v":""},null,null,null,null,{"$f":"IF(TRIM(EJ125)=\"\", \"\", IF(VLOOKUP(EJ125,'Footnotes list'!$D$9:$E$58,2,FALSE)=0,\"\",VLOOKUP(EJ125,'Footnotes list'!$D$9:$E$58,2,FALSE) ) )","v":""},null,null,null,null,{"$f":"IF(TRIM(EO125)=\"\", \"\", IF(VLOOKUP(EO125,'Footnotes list'!$D$9:$E$58,2,FALSE)=0,\"\",VLOOKUP(EO125,'Footnotes list'!$D$9:$E$58,2,FALSE) ) )","v":""},null,null,null,null,{"$f":"IF(TRIM(ET125)=\"\", \"\", IF(VLOOKUP(ET125,'Footnotes list'!$D$9:$E$58,2,FALSE)=0,\"\",VLOOKUP(ET125,'Footnotes list'!$D$9:$E$58,2,FALSE) ) )","v":""},null,null,null,null,{"$f":"IF(TRIM(EY125)=\"\", \"\", IF(VLOOKUP(EY125,'Footnotes list'!$D$9:$E$58,2,FALSE)=0,\"\",VLOOKUP(EY125,'Footnotes list'!$D$9:$E$58,2,FALSE) ) )","v":""}]
[null,null,"C31-C33","C_REP","cleaner and resource efficient products",null,null,null,null,null,{"$f":"IF(TRIM(J126)=\"\", \"\", IF(VLOOKUP(J126,'Footnotes list'!$D$9:$E$58,2,FALSE)=0,\"\",VLOOKUP(J126,'Footnotes list'!$D$9:$E$58,2,FALSE) ) )","v":""},null,null,null,null,{"$f":"IF(TRIM(O126)=\"\", \"\", IF(VLOOKUP(O126,'Footnotes list'!$D$9:$E$58,2,FALSE)=0,\"\",VLOOKUP(O126,'Footnotes list'!$D$9:$E$58,2,FALSE) ) )","v":""},null,null,null,null,{"$f":"IF(TRIM(T126)=\"\", \"\", IF(VLOOKUP(T126,'Footnotes list'!$D$9:$E$58,2,FALSE)=0,\"\",VLOOKUP(T126,'Footnotes list'!$D$9:$E$58,2,FALSE) ) )","v":""},null,null,null,null,{"$f":"IF(TRIM(Y126)=\"\", \"\", IF(VLOOKUP(Y126,'Footnotes list'!$D$9:$E$58,2,FALSE)=0,\"\",VLOOKUP(Y126,'Footnotes list'!$D$9:$E$58,2,FALSE) ) )","v":""},null,null,null,null,{"$f":"IF(TRIM(AD126)=\"\", \"\", IF(VLOOKUP(AD126,'Footnotes list'!$D$9:$E$58,2,FALSE)=0,\"\",VLOOKUP(AD126,'Footnotes list'!$D$9:$E$58,2,FALSE) ) )","v":""},null,null,null,null,{"$f":"IF(TRIM(AI126)=\"\", \"\", IF(VLOOKUP(AI126,'Footnotes list'!$D$9:$E$58,2,FALSE)=0,\"\",VLOOKUP(AI126,'Footnotes list'!$D$9:$E$58,2,FALSE) ) )","v":""},null,null,null,null,{"$f":"IF(TRIM(AN126)=\"\", \"\", IF(VLOOKUP(AN126,'Footnotes list'!$D$9:$E$58,2,FALSE)=0,\"\",VLOOKUP(AN126,'Footnotes list'!$D$9:$E$58,2,FALSE) ) )","v":""},null,null,null,null,{"$f":"IF(TRIM(AS126)=\"\", \"\", IF(VLOOKUP(AS126,'Footnotes list'!$D$9:$E$58,2,FALSE)=0,\"\",VLOOKUP(AS126,'Footnotes list'!$D$9:$E$58,2,FALSE) ) )","v":""},null,null,null,null,{"$f":"IF(TRIM(AX126)=\"\", \"\", IF(VLOOKUP(AX126,'Footnotes list'!$D$9:$E$58,2,FALSE)=0,\"\",VLOOKUP(AX126,'Footnotes list'!$D$9:$E$58,2,FALSE) ) )","v":""},null,null,null,null,{"$f":"IF(TRIM(BC126)=\"\", \"\", IF(VLOOKUP(BC126,'Footnotes list'!$D$9:$E$58,2,FALSE)=0,\"\",VLOOKUP(BC126,'Footnotes list'!$D$9:$E$58,2,FALSE) ) )","v":""},null,null,null,null,{"$f":"IF(TRIM(BH126)=\"\", \"\", IF(VLOOKUP(BH126,'Footnotes list'!$D$9:$E$58,2,FALSE)=0,\"\",VLOOKUP(BH126,'Footnotes list'!$D$9:$E$58,2,FALSE) ) )","v":""},null,null,null,null,{"$f":"IF(TRIM(BM126)=\"\", \"\", IF(VLOOKUP(BM126,'Footnotes list'!$D$9:$E$58,2,FALSE)=0,\"\",VLOOKUP(BM126,'Footnotes list'!$D$9:$E$58,2,FALSE) ) )","v":""},null,null,null,null,{"$f":"IF(TRIM(BR126)=\"\", \"\", IF(VLOOKUP(BR126,'Footnotes list'!$D$9:$E$58,2,FALSE)=0,\"\",VLOOKUP(BR126,'Footnotes list'!$D$9:$E$58,2,FALSE) ) )","v":""},null,null,null,null,{"$f":"IF(TRIM(BW126)=\"\", \"\", IF(VLOOKUP(BW126,'Footnotes list'!$D$9:$E$58,2,FALSE)=0,\"\",VLOOKUP(BW126,'Footnotes list'!$D$9:$E$58,2,FALSE) ) )","v":""},null,null,null,null,{"$f":"IF(TRIM(CB126)=\"\", \"\", IF(VLOOKUP(CB126,'Footnotes list'!$D$9:$E$58,2,FALSE)=0,\"\",VLOOKUP(CB126,'Footnotes list'!$D$9:$E$58,2,FALSE) ) )","v":""},null,null,null,null,{"$f":"IF(TRIM(CG126)=\"\", \"\", IF(VLOOKUP(CG126,'Footnotes list'!$D$9:$E$58,2,FALSE)=0,\"\",VLOOKUP(CG126,'Footnotes list'!$D$9:$E$58,2,FALSE) ) )","v":""},null,null,null,null,{"$f":"IF(TRIM(CL126)=\"\", \"\", IF(VLOOKUP(CL126,'Footnotes list'!$D$9:$E$58,2,FALSE)=0,\"\",VLOOKUP(CL126,'Footnotes list'!$D$9:$E$58,2,FALSE) ) )","v":""},null,null,null,null,{"$f":"IF(TRIM(CQ126)=\"\", \"\", IF(VLOOKUP(CQ126,'Footnotes list'!$D$9:$E$58,2,FALSE)=0,\"\",VLOOKUP(CQ126,'Footnotes list'!$D$9:$E$58,2,FALSE) ) )","v":""},null,null,null,null,{"$f":"IF(TRIM(CV126)=\"\", \"\", IF(VLOOKUP(CV126,'Footnotes list'!$D$9:$E$58,2,FALSE)=0,\"\",VLOOKUP(CV126,'Footnotes list'!$D$9:$E$58,2,FALSE) ) )","v":""},null,null,null,null,{"$f":"IF(TRIM(DA126)=\"\", \"\", IF(VLOOKUP(DA126,'Footnotes list'!$D$9:$E$58,2,FALSE)=0,\"\",VLOOKUP(DA126,'Footnotes list'!$D$9:$E$58,2,FALSE) ) )","v":""},null,null,null,null,{"$f":"IF(TRIM(DF126)=\"\", \"\", IF(VLOOKUP(DF126,'Footnotes list'!$D$9:$E$58,2,FALSE)=0,\"\",VLOOKUP(DF126,'Footnotes list'!$D$9:$E$58,2,FALSE) ) )","v":""},null,null,null,null,{"$f":"IF(TRIM(DK126)=\"\", \"\", IF(VLOOKUP(DK126,'Footnotes list'!$D$9:$E$58,2,FALSE)=0,\"\",VLOOKUP(DK126,'Footnotes list'!$D$9:$E$58,2,FALSE) ) )","v":""},null,null,null,null,{"$f":"IF(TRIM(DP126)=\"\", \"\", IF(VLOOKUP(DP126,'Footnotes list'!$D$9:$E$58,2,FALSE)=0,\"\",VLOOKUP(DP126,'Footnotes list'!$D$9:$E$58,2,FALSE) ) )","v":""},null,null,null,null,{"$f":"IF(TRIM(DU126)=\"\", \"\", IF(VLOOKUP(DU126,'Footnotes list'!$D$9:$E$58,2,FALSE)=0,\"\",VLOOKUP(DU126,'Footnotes list'!$D$9:$E$58,2,FALSE) ) )","v":""},null,null,null,null,{"$f":"IF(TRIM(DZ126)=\"\", \"\", IF(VLOOKUP(DZ126,'Footnotes list'!$D$9:$E$58,2,FALSE)=0,\"\",VLOOKUP(DZ126,'Footnotes list'!$D$9:$E$58,2,FALSE) ) )","v":""},null,null,null,null,{"$f":"IF(TRIM(EE126)=\"\", \"\", IF(VLOOKUP(EE126,'Footnotes list'!$D$9:$E$58,2,FALSE)=0,\"\",VLOOKUP(EE126,'Footnotes list'!$D$9:$E$58,2,FALSE) ) )","v":""},null,null,null,null,{"$f":"IF(TRIM(EJ126)=\"\", \"\", IF(VLOOKUP(EJ126,'Footnotes list'!$D$9:$E$58,2,FALSE)=0,\"\",VLOOKUP(EJ126,'Footnotes list'!$D$9:$E$58,2,FALSE) ) )","v":""},null,null,null,null,{"$f":"IF(TRIM(EO126)=\"\", \"\", IF(VLOOKUP(EO126,'Footnotes list'!$D$9:$E$58,2,FALSE)=0,\"\",VLOOKUP(EO126,'Footnotes list'!$D$9:$E$58,2,FALSE) ) )","v":""},null,null,null,null,{"$f":"IF(TRIM(ET126)=\"\", \"\", IF(VLOOKUP(ET126,'Footnotes list'!$D$9:$E$58,2,FALSE)=0,\"\",VLOOKUP(ET126,'Footnotes list'!$D$9:$E$58,2,FALSE) ) )","v":""},null,null,null,null,{"$f":"IF(TRIM(EY126)=\"\", \"\", IF(VLOOKUP(EY126,'Footnotes list'!$D$9:$E$58,2,FALSE)=0,\"\",VLOOKUP(EY126,'Footnotes list'!$D$9:$E$58,2,FALSE) ) )","v":""}]
[null,null,"D","TOT_EGSS","Total D - Electricity, gas, steam and air conditioning supply, of which:",null,null,null,null,null,{"$f":"IF(TRIM(J127)=\"\", \"\", IF(VLOOKUP(J127,'Footnotes list'!$D$9:$E$58,2,FALSE)=0,\"\",VLOOKUP(J127,'Footnotes list'!$D$9:$E$58,2,FALSE) ) )","v":""},null,null,null,null,{"$f":"IF(TRIM(O127)=\"\", \"\", IF(VLOOKUP(O127,'Footnotes list'!$D$9:$E$58,2,FALSE)=0,\"\",VLOOKUP(O127,'Footnotes list'!$D$9:$E$58,2,FALSE) ) )","v":""},null,null,null,null,{"$f":"IF(TRIM(T127)=\"\", \"\", IF(VLOOKUP(T127,'Footnotes list'!$D$9:$E$58,2,FALSE)=0,\"\",VLOOKUP(T127,'Footnotes list'!$D$9:$E$58,2,FALSE) ) )","v":""},null,null,null,null,{"$f":"IF(TRIM(Y127)=\"\", \"\", IF(VLOOKUP(Y127,'Footnotes list'!$D$9:$E$58,2,FALSE)=0,\"\",VLOOKUP(Y127,'Footnotes list'!$D$9:$E$58,2,FALSE) ) )","v":""},null,null,null,null,{"$f":"IF(TRIM(AD127)=\"\", \"\", IF(VLOOKUP(AD127,'Footnotes list'!$D$9:$E$58,2,FALSE)=0,\"\",VLOOKUP(AD127,'Footnotes list'!$D$9:$E$58,2,FALSE) ) )","v":""},null,null,null,null,{"$f":"IF(TRIM(AI127)=\"\", \"\", IF(VLOOKUP(AI127,'Footnotes list'!$D$9:$E$58,2,FALSE)=0,\"\",VLOOKUP(AI127,'Footnotes list'!$D$9:$E$58,2,FALSE) ) )","v":""},null,null,null,null,{"$f":"IF(TRIM(AN127)=\"\", \"\", IF(VLOOKUP(AN127,'Footnotes list'!$D$9:$E$58,2,FALSE)=0,\"\",VLOOKUP(AN127,'Footnotes list'!$D$9:$E$58,2,FALSE) ) )","v":""},null,null,null,null,{"$f":"IF(TRIM(AS127)=\"\", \"\", IF(VLOOKUP(AS127,'Footnotes list'!$D$9:$E$58,2,FALSE)=0,\"\",VLOOKUP(AS127,'Footnotes list'!$D$9:$E$58,2,FALSE) ) )","v":""},null,null,null,null,{"$f":"IF(TRIM(AX127)=\"\", \"\", IF(VLOOKUP(AX127,'Footnotes list'!$D$9:$E$58,2,FALSE)=0,\"\",VLOOKUP(AX127,'Footnotes list'!$D$9:$E$58,2,FALSE) ) )","v":""},null,null,null,null,{"$f":"IF(TRIM(BC127)=\"\", \"\", IF(VLOOKUP(BC127,'Footnotes list'!$D$9:$E$58,2,FALSE)=0,\"\",VLOOKUP(BC127,'Footnotes list'!$D$9:$E$58,2,FALSE) ) )","v":""},null,null,null,null,{"$f":"IF(TRIM(BH127)=\"\", \"\", IF(VLOOKUP(BH127,'Footnotes list'!$D$9:$E$58,2,FALSE)=0,\"\",VLOOKUP(BH127,'Footnotes list'!$D$9:$E$58,2,FALSE) ) )","v":""},null,null,null,null,{"$f":"IF(TRIM(BM127)=\"\", \"\", IF(VLOOKUP(BM127,'Footnotes list'!$D$9:$E$58,2,FALSE)=0,\"\",VLOOKUP(BM127,'Footnotes list'!$D$9:$E$58,2,FALSE) ) )","v":""},null,null,null,null,{"$f":"IF(TRIM(BR127)=\"\", \"\", IF(VLOOKUP(BR127,'Footnotes list'!$D$9:$E$58,2,FALSE)=0,\"\",VLOOKUP(BR127,'Footnotes list'!$D$9:$E$58,2,FALSE) ) )","v":""},null,null,null,null,{"$f":"IF(TRIM(BW127)=\"\", \"\", IF(VLOOKUP(BW127,'Footnotes list'!$D$9:$E$58,2,FALSE)=0,\"\",VLOOKUP(BW127,'Footnotes list'!$D$9:$E$58,2,FALSE) ) )","v":""},null,null,null,null,{"$f":"IF(TRIM(CB127)=\"\", \"\", IF(VLOOKUP(CB127,'Footnotes list'!$D$9:$E$58,2,FALSE)=0,\"\",VLOOKUP(CB127,'Footnotes list'!$D$9:$E$58,2,FALSE) ) )","v":""},null,null,null,null,{"$f":"IF(TRIM(CG127)=\"\", \"\", IF(VLOOKUP(CG127,'Footnotes list'!$D$9:$E$58,2,FALSE)=0,\"\",VLOOKUP(CG127,'Footnotes list'!$D$9:$E$58,2,FALSE) ) )","v":""},null,null,null,null,{"$f":"IF(TRIM(CL127)=\"\", \"\", IF(VLOOKUP(CL127,'Footnotes list'!$D$9:$E$58,2,FALSE)=0,\"\",VLOOKUP(CL127,'Footnotes list'!$D$9:$E$58,2,FALSE) ) )","v":""},null,null,null,null,{"$f":"IF(TRIM(CQ127)=\"\", \"\", IF(VLOOKUP(CQ127,'Footnotes list'!$D$9:$E$58,2,FALSE)=0,\"\",VLOOKUP(CQ127,'Footnotes list'!$D$9:$E$58,2,FALSE) ) )","v":""},null,null,null,null,{"$f":"IF(TRIM(CV127)=\"\", \"\", IF(VLOOKUP(CV127,'Footnotes list'!$D$9:$E$58,2,FALSE)=0,\"\",VLOOKUP(CV127,'Footnotes list'!$D$9:$E$58,2,FALSE) ) )","v":""},null,null,null,null,{"$f":"IF(TRIM(DA127)=\"\", \"\", IF(VLOOKUP(DA127,'Footnotes list'!$D$9:$E$58,2,FALSE)=0,\"\",VLOOKUP(DA127,'Footnotes list'!$D$9:$E$58,2,FALSE) ) )","v":""},null,null,null,null,{"$f":"IF(TRIM(DF127)=\"\", \"\", IF(VLOOKUP(DF127,'Footnotes list'!$D$9:$E$58,2,FALSE)=0,\"\",VLOOKUP(DF127,'Footnotes list'!$D$9:$E$58,2,FALSE) ) )","v":""},null,null,null,null,{"$f":"IF(TRIM(DK127)=\"\", \"\", IF(VLOOKUP(DK127,'Footnotes list'!$D$9:$E$58,2,FALSE)=0,\"\",VLOOKUP(DK127,'Footnotes list'!$D$9:$E$58,2,FALSE) ) )","v":""},null,null,null,null,{"$f":"IF(TRIM(DP127)=\"\", \"\", IF(VLOOKUP(DP127,'Footnotes list'!$D$9:$E$58,2,FALSE)=0,\"\",VLOOKUP(DP127,'Footnotes list'!$D$9:$E$58,2,FALSE) ) )","v":""},null,null,null,null,{"$f":"IF(TRIM(DU127)=\"\", \"\", IF(VLOOKUP(DU127,'Footnotes list'!$D$9:$E$58,2,FALSE)=0,\"\",VLOOKUP(DU127,'Footnotes list'!$D$9:$E$58,2,FALSE) ) )","v":""},null,null,null,null,{"$f":"IF(TRIM(DZ127)=\"\", \"\", IF(VLOOKUP(DZ127,'Footnotes list'!$D$9:$E$58,2,FALSE)=0,\"\",VLOOKUP(DZ127,'Footnotes list'!$D$9:$E$58,2,FALSE) ) )","v":""},null,null,null,null,{"$f":"IF(TRIM(EE127)=\"\", \"\", IF(VLOOKUP(EE127,'Footnotes list'!$D$9:$E$58,2,FALSE)=0,\"\",VLOOKUP(EE127,'Footnotes list'!$D$9:$E$58,2,FALSE) ) )","v":""},null,null,null,null,{"$f":"IF(TRIM(EJ127)=\"\", \"\", IF(VLOOKUP(EJ127,'Footnotes list'!$D$9:$E$58,2,FALSE)=0,\"\",VLOOKUP(EJ127,'Footnotes list'!$D$9:$E$58,2,FALSE) ) )","v":""},null,null,null,null,{"$f":"IF(TRIM(EO127)=\"\", \"\", IF(VLOOKUP(EO127,'Footnotes list'!$D$9:$E$58,2,FALSE)=0,\"\",VLOOKUP(EO127,'Footnotes list'!$D$9:$E$58,2,FALSE) ) )","v":""},null,null,null,null,{"$f":"IF(TRIM(ET127)=\"\", \"\", IF(VLOOKUP(ET127,'Footnotes list'!$D$9:$E$58,2,FALSE)=0,\"\",VLOOKUP(ET127,'Footnotes list'!$D$9:$E$58,2,FALSE) ) )","v":""},null,null,null,null,{"$f":"IF(TRIM(EY127)=\"\", \"\", IF(VLOOKUP(EY127,'Footnotes list'!$D$9:$E$58,2,FALSE)=0,\"\",VLOOKUP(EY127,'Footnotes list'!$D$9:$E$58,2,FALSE) ) )","v":""}]
[null,null,"D","ANC","ancillary activities",null,null,null,null,null,{"$f":"IF(TRIM(J128)=\"\", \"\", IF(VLOOKUP(J128,'Footnotes list'!$D$9:$E$58,2,FALSE)=0,\"\",VLOOKUP(J128,'Footnotes list'!$D$9:$E$58,2,FALSE) ) )","v":""},null,null,null,null,{"$f":"IF(TRIM(O128)=\"\", \"\", IF(VLOOKUP(O128,'Footnotes list'!$D$9:$E$58,2,FALSE)=0,\"\",VLOOKUP(O128,'Footnotes list'!$D$9:$E$58,2,FALSE) ) )","v":""},null,null,null,null,{"$f":"IF(TRIM(T128)=\"\", \"\", IF(VLOOKUP(T128,'Footnotes list'!$D$9:$E$58,2,FALSE)=0,\"\",VLOOKUP(T128,'Footnotes list'!$D$9:$E$58,2,FALSE) ) )","v":""},null,null,null,null,{"$f":"IF(TRIM(Y128)=\"\", \"\", IF(VLOOKUP(Y128,'Footnotes list'!$D$9:$E$58,2,FALSE)=0,\"\",VLOOKUP(Y128,'Footnotes list'!$D$9:$E$58,2,FALSE) ) )","v":""},null,null,null,null,{"$f":"IF(TRIM(AD128)=\"\", \"\", IF(VLOOKUP(AD128,'Footnotes list'!$D$9:$E$58,2,FALSE)=0,\"\",VLOOKUP(AD128,'Footnotes list'!$D$9:$E$58,2,FALSE) ) )","v":""},null,null,null,null,{"$f":"IF(TRIM(AI128)=\"\", \"\", IF(VLOOKUP(AI128,'Footnotes list'!$D$9:$E$58,2,FALSE)=0,\"\",VLOOKUP(AI128,'Footnotes list'!$D$9:$E$58,2,FALSE) ) )","v":""},null,null,null,null,{"$f":"IF(TRIM(AN128)=\"\", \"\", IF(VLOOKUP(AN128,'Footnotes list'!$D$9:$E$58,2,FALSE)=0,\"\",VLOOKUP(AN128,'Footnotes list'!$D$9:$E$58,2,FALSE) ) )","v":""},null,null,null,null,{"$f":"IF(TRIM(AS128)=\"\", \"\", IF(VLOOKUP(AS128,'Footnotes list'!$D$9:$E$58,2,FALSE)=0,\"\",VLOOKUP(AS128,'Footnotes list'!$D$9:$E$58,2,FALSE) ) )","v":""},null,null,null,null,{"$f":"IF(TRIM(AX128)=\"\", \"\", IF(VLOOKUP(AX128,'Footnotes list'!$D$9:$E$58,2,FALSE)=0,\"\",VLOOKUP(AX128,'Footnotes list'!$D$9:$E$58,2,FALSE) ) )","v":""},null,null,null,null,{"$f":"IF(TRIM(BC128)=\"\", \"\", IF(VLOOKUP(BC128,'Footnotes list'!$D$9:$E$58,2,FALSE)=0,\"\",VLOOKUP(BC128,'Footnotes list'!$D$9:$E$58,2,FALSE) ) )","v":""},null,null,null,null,{"$f":"IF(TRIM(BH128)=\"\", \"\", IF(VLOOKUP(BH128,'Footnotes list'!$D$9:$E$58,2,FALSE)=0,\"\",VLOOKUP(BH128,'Footnotes list'!$D$9:$E$58,2,FALSE) ) )","v":""},null,null,null,null,{"$f":"IF(TRIM(BM128)=\"\", \"\", IF(VLOOKUP(BM128,'Footnotes list'!$D$9:$E$58,2,FALSE)=0,\"\",VLOOKUP(BM128,'Footnotes list'!$D$9:$E$58,2,FALSE) ) )","v":""},null,null,null,null,{"$f":"IF(TRIM(BR128)=\"\", \"\", IF(VLOOKUP(BR128,'Footnotes list'!$D$9:$E$58,2,FALSE)=0,\"\",VLOOKUP(BR128,'Footnotes list'!$D$9:$E$58,2,FALSE) ) )","v":""},null,null,null,null,{"$f":"IF(TRIM(BW128)=\"\", \"\", IF(VLOOKUP(BW128,'Footnotes list'!$D$9:$E$58,2,FALSE)=0,\"\",VLOOKUP(BW128,'Footnotes list'!$D$9:$E$58,2,FALSE) ) )","v":""},null,null,null,null,{"$f":"IF(TRIM(CB128)=\"\", \"\", IF(VLOOKUP(CB128,'Footnotes list'!$D$9:$E$58,2,FALSE)=0,\"\",VLOOKUP(CB128,'Footnotes list'!$D$9:$E$58,2,FALSE) ) )","v":""},null,null,null,null,{"$f":"IF(TRIM(CG128)=\"\", \"\", IF(VLOOKUP(CG128,'Footnotes list'!$D$9:$E$58,2,FALSE)=0,\"\",VLOOKUP(CG128,'Footnotes list'!$D$9:$E$58,2,FALSE) ) )","v":""},null,null,null,null,{"$f":"IF(TRIM(CL128)=\"\", \"\", IF(VLOOKUP(CL128,'Footnotes list'!$D$9:$E$58,2,FALSE)=0,\"\",VLOOKUP(CL128,'Footnotes list'!$D$9:$E$58,2,FALSE) ) )","v":""},null,null,null,null,{"$f":"IF(TRIM(CQ128)=\"\", \"\", IF(VLOOKUP(CQ128,'Footnotes list'!$D$9:$E$58,2,FALSE)=0,\"\",VLOOKUP(CQ128,'Footnotes list'!$D$9:$E$58,2,FALSE) ) )","v":""},null,null,null,null,{"$f":"IF(TRIM(CV128)=\"\", \"\", IF(VLOOKUP(CV128,'Footnotes list'!$D$9:$E$58,2,FALSE)=0,\"\",VLOOKUP(CV128,'Footnotes list'!$D$9:$E$58,2,FALSE) ) )","v":""},null,null,null,null,{"$f":"IF(TRIM(DA128)=\"\", \"\", IF(VLOOKUP(DA128,'Footnotes list'!$D$9:$E$58,2,FALSE)=0,\"\",VLOOKUP(DA128,'Footnotes list'!$D$9:$E$58,2,FALSE) ) )","v":""},null,null,null,null,{"$f":"IF(TRIM(DF128)=\"\", \"\", IF(VLOOKUP(DF128,'Footnotes list'!$D$9:$E$58,2,FALSE)=0,\"\",VLOOKUP(DF128,'Footnotes list'!$D$9:$E$58,2,FALSE) ) )","v":""},null,null,null,null,{"$f":"IF(TRIM(DK128)=\"\", \"\", IF(VLOOKUP(DK128,'Footnotes list'!$D$9:$E$58,2,FALSE)=0,\"\",VLOOKUP(DK128,'Footnotes list'!$D$9:$E$58,2,FALSE) ) )","v":""},null,null,null,null,{"$f":"IF(TRIM(DP128)=\"\", \"\", IF(VLOOKUP(DP128,'Footnotes list'!$D$9:$E$58,2,FALSE)=0,\"\",VLOOKUP(DP128,'Footnotes list'!$D$9:$E$58,2,FALSE) ) )","v":""},null,null,null,null,{"$f":"IF(TRIM(DU128)=\"\", \"\", IF(VLOOKUP(DU128,'Footnotes list'!$D$9:$E$58,2,FALSE)=0,\"\",VLOOKUP(DU128,'Footnotes list'!$D$9:$E$58,2,FALSE) ) )","v":""},null,null,null,null,{"$f":"IF(TRIM(DZ128)=\"\", \"\", IF(VLOOKUP(DZ128,'Footnotes list'!$D$9:$E$58,2,FALSE)=0,\"\",VLOOKUP(DZ128,'Footnotes list'!$D$9:$E$58,2,FALSE) ) )","v":""},null,null,null,null,{"$f":"IF(TRIM(EE128)=\"\", \"\", IF(VLOOKUP(EE128,'Footnotes list'!$D$9:$E$58,2,FALSE)=0,\"\",VLOOKUP(EE128,'Footnotes list'!$D$9:$E$58,2,FALSE) ) )","v":""},null,null,null,null,{"$f":"IF(TRIM(EJ128)=\"\", \"\", IF(VLOOKUP(EJ128,'Footnotes list'!$D$9:$E$58,2,FALSE)=0,\"\",VLOOKUP(EJ128,'Footnotes list'!$D$9:$E$58,2,FALSE) ) )","v":""},null,null,null,null,{"$f":"IF(TRIM(EO128)=\"\", \"\", IF(VLOOKUP(EO128,'Footnotes list'!$D$9:$E$58,2,FALSE)=0,\"\",VLOOKUP(EO128,'Footnotes list'!$D$9:$E$58,2,FALSE) ) )","v":""},null,null,null,null,{"$f":"IF(TRIM(ET128)=\"\", \"\", IF(VLOOKUP(ET128,'Footnotes list'!$D$9:$E$58,2,FALSE)=0,\"\",VLOOKUP(ET128,'Footnotes list'!$D$9:$E$58,2,FALSE) ) )","v":""},null,null,null,null,{"$f":"IF(TRIM(EY128)=\"\", \"\", IF(VLOOKUP(EY128,'Footnotes list'!$D$9:$E$58,2,FALSE)=0,\"\",VLOOKUP(EY128,'Footnotes list'!$D$9:$E$58,2,FALSE) ) )","v":""}]
[null,null,"D","NMKT","non-market activities",null,null,null,null,null,{"$f":"IF(TRIM(J129)=\"\", \"\", IF(VLOOKUP(J129,'Footnotes list'!$D$9:$E$58,2,FALSE)=0,\"\",VLOOKUP(J129,'Footnotes list'!$D$9:$E$58,2,FALSE) ) )","v":""},null,null,null,null,{"$f":"IF(TRIM(O129)=\"\", \"\", IF(VLOOKUP(O129,'Footnotes list'!$D$9:$E$58,2,FALSE)=0,\"\",VLOOKUP(O129,'Footnotes list'!$D$9:$E$58,2,FALSE) ) )","v":""},null,null,null,null,{"$f":"IF(TRIM(T129)=\"\", \"\", IF(VLOOKUP(T129,'Footnotes list'!$D$9:$E$58,2,FALSE)=0,\"\",VLOOKUP(T129,'Footnotes list'!$D$9:$E$58,2,FALSE) ) )","v":""},null,null,null,null,{"$f":"IF(TRIM(Y129)=\"\", \"\", IF(VLOOKUP(Y129,'Footnotes list'!$D$9:$E$58,2,FALSE)=0,\"\",VLOOKUP(Y129,'Footnotes list'!$D$9:$E$58,2,FALSE) ) )","v":""},null,null,null,null,{"$f":"IF(TRIM(AD129)=\"\", \"\", IF(VLOOKUP(AD129,'Footnotes list'!$D$9:$E$58,2,FALSE)=0,\"\",VLOOKUP(AD129,'Footnotes list'!$D$9:$E$58,2,FALSE) ) )","v":""},null,null,null,null,{"$f":"IF(TRIM(AI129)=\"\", \"\", IF(VLOOKUP(AI129,'Footnotes list'!$D$9:$E$58,2,FALSE)=0,\"\",VLOOKUP(AI129,'Footnotes list'!$D$9:$E$58,2,FALSE) ) )","v":""},null,null,null,null,{"$f":"IF(TRIM(AN129)=\"\", \"\", IF(VLOOKUP(AN129,'Footnotes list'!$D$9:$E$58,2,FALSE)=0,\"\",VLOOKUP(AN129,'Footnotes list'!$D$9:$E$58,2,FALSE) ) )","v":""},null,null,null,null,{"$f":"IF(TRIM(AS129)=\"\", \"\", IF(VLOOKUP(AS129,'Footnotes list'!$D$9:$E$58,2,FALSE)=0,\"\",VLOOKUP(AS129,'Footnotes list'!$D$9:$E$58,2,FALSE) ) )","v":""},null,null,null,null,{"$f":"IF(TRIM(AX129)=\"\", \"\", IF(VLOOKUP(AX129,'Footnotes list'!$D$9:$E$58,2,FALSE)=0,\"\",VLOOKUP(AX129,'Footnotes list'!$D$9:$E$58,2,FALSE) ) )","v":""},null,null,null,null,{"$f":"IF(TRIM(BC129)=\"\", \"\", IF(VLOOKUP(BC129,'Footnotes list'!$D$9:$E$58,2,FALSE)=0,\"\",VLOOKUP(BC129,'Footnotes list'!$D$9:$E$58,2,FALSE) ) )","v":""},null,null,null,null,{"$f":"IF(TRIM(BH129)=\"\", \"\", IF(VLOOKUP(BH129,'Footnotes list'!$D$9:$E$58,2,FALSE)=0,\"\",VLOOKUP(BH129,'Footnotes list'!$D$9:$E$58,2,FALSE) ) )","v":""},null,null,null,null,{"$f":"IF(TRIM(BM129)=\"\", \"\", IF(VLOOKUP(BM129,'Footnotes list'!$D$9:$E$58,2,FALSE)=0,\"\",VLOOKUP(BM129,'Footnotes list'!$D$9:$E$58,2,FALSE) ) )","v":""},null,null,null,null,{"$f":"IF(TRIM(BR129)=\"\", \"\", IF(VLOOKUP(BR129,'Footnotes list'!$D$9:$E$58,2,FALSE)=0,\"\",VLOOKUP(BR129,'Footnotes list'!$D$9:$E$58,2,FALSE) ) )","v":""},null,null,null,null,{"$f":"IF(TRIM(BW129)=\"\", \"\", IF(VLOOKUP(BW129,'Footnotes list'!$D$9:$E$58,2,FALSE)=0,\"\",VLOOKUP(BW129,'Footnotes list'!$D$9:$E$58,2,FALSE) ) )","v":""},null,null,null,null,{"$f":"IF(TRIM(CB129)=\"\", \"\", IF(VLOOKUP(CB129,'Footnotes list'!$D$9:$E$58,2,FALSE)=0,\"\",VLOOKUP(CB129,'Footnotes list'!$D$9:$E$58,2,FALSE) ) )","v":""},null,null,null,null,{"$f":"IF(TRIM(CG129)=\"\", \"\", IF(VLOOKUP(CG129,'Footnotes list'!$D$9:$E$58,2,FALSE)=0,\"\",VLOOKUP(CG129,'Footnotes list'!$D$9:$E$58,2,FALSE) ) )","v":""},null,null,null,null,{"$f":"IF(TRIM(CL129)=\"\", \"\", IF(VLOOKUP(CL129,'Footnotes list'!$D$9:$E$58,2,FALSE)=0,\"\",VLOOKUP(CL129,'Footnotes list'!$D$9:$E$58,2,FALSE) ) )","v":""},null,null,null,null,{"$f":"IF(TRIM(CQ129)=\"\", \"\", IF(VLOOKUP(CQ129,'Footnotes list'!$D$9:$E$58,2,FALSE)=0,\"\",VLOOKUP(CQ129,'Footnotes list'!$D$9:$E$58,2,FALSE) ) )","v":""},null,null,null,null,{"$f":"IF(TRIM(CV129)=\"\", \"\", IF(VLOOKUP(CV129,'Footnotes list'!$D$9:$E$58,2,FALSE)=0,\"\",VLOOKUP(CV129,'Footnotes list'!$D$9:$E$58,2,FALSE) ) )","v":""},null,null,null,null,{"$f":"IF(TRIM(DA129)=\"\", \"\", IF(VLOOKUP(DA129,'Footnotes list'!$D$9:$E$58,2,FALSE)=0,\"\",VLOOKUP(DA129,'Footnotes list'!$D$9:$E$58,2,FALSE) ) )","v":""},null,null,null,null,{"$f":"IF(TRIM(DF129)=\"\", \"\", IF(VLOOKUP(DF129,'Footnotes list'!$D$9:$E$58,2,FALSE)=0,\"\",VLOOKUP(DF129,'Footnotes list'!$D$9:$E$58,2,FALSE) ) )","v":""},null,null,null,null,{"$f":"IF(TRIM(DK129)=\"\", \"\", IF(VLOOKUP(DK129,'Footnotes list'!$D$9:$E$58,2,FALSE)=0,\"\",VLOOKUP(DK129,'Footnotes list'!$D$9:$E$58,2,FALSE) ) )","v":""},null,null,null,null,{"$f":"IF(TRIM(DP129)=\"\", \"\", IF(VLOOKUP(DP129,'Footnotes list'!$D$9:$E$58,2,FALSE)=0,\"\",VLOOKUP(DP129,'Footnotes list'!$D$9:$E$58,2,FALSE) ) )","v":""},null,null,null,null,{"$f":"IF(TRIM(DU129)=\"\", \"\", IF(VLOOKUP(DU129,'Footnotes list'!$D$9:$E$58,2,FALSE)=0,\"\",VLOOKUP(DU129,'Footnotes list'!$D$9:$E$58,2,FALSE) ) )","v":""},null,null,null,null,{"$f":"IF(TRIM(DZ129)=\"\", \"\", IF(VLOOKUP(DZ129,'Footnotes list'!$D$9:$E$58,2,FALSE)=0,\"\",VLOOKUP(DZ129,'Footnotes list'!$D$9:$E$58,2,FALSE) ) )","v":""},null,null,null,null,{"$f":"IF(TRIM(EE129)=\"\", \"\", IF(VLOOKUP(EE129,'Footnotes list'!$D$9:$E$58,2,FALSE)=0,\"\",VLOOKUP(EE129,'Footnotes list'!$D$9:$E$58,2,FALSE) ) )","v":""},null,null,null,null,{"$f":"IF(TRIM(EJ129)=\"\", \"\", IF(VLOOKUP(EJ129,'Footnotes list'!$D$9:$E$58,2,FALSE)=0,\"\",VLOOKUP(EJ129,'Footnotes list'!$D$9:$E$58,2,FALSE) ) )","v":""},null,null,null,null,{"$f":"IF(TRIM(EO129)=\"\", \"\", IF(VLOOKUP(EO129,'Footnotes list'!$D$9:$E$58,2,FALSE)=0,\"\",VLOOKUP(EO129,'Footnotes list'!$D$9:$E$58,2,FALSE) ) )","v":""},null,null,null,null,{"$f":"IF(TRIM(ET129)=\"\", \"\", IF(VLOOKUP(ET129,'Footnotes list'!$D$9:$E$58,2,FALSE)=0,\"\",VLOOKUP(ET129,'Footnotes list'!$D$9:$E$58,2,FALSE) ) )","v":""},null,null,null,null,{"$f":"IF(TRIM(EY129)=\"\", \"\", IF(VLOOKUP(EY129,'Footnotes list'!$D$9:$E$58,2,FALSE)=0,\"\",VLOOKUP(EY129,'Footnotes list'!$D$9:$E$58,2,FALSE) ) )","v":""}]
[null,null,"D","OWN_USE","activities for own final use",null,null,null,null,null,{"$f":"IF(TRIM(J130)=\"\", \"\", IF(VLOOKUP(J130,'Footnotes list'!$D$9:$E$58,2,FALSE)=0,\"\",VLOOKUP(J130,'Footnotes list'!$D$9:$E$58,2,FALSE) ) )","v":""},null,null,null,null,{"$f":"IF(TRIM(O130)=\"\", \"\", IF(VLOOKUP(O130,'Footnotes list'!$D$9:$E$58,2,FALSE)=0,\"\",VLOOKUP(O130,'Footnotes list'!$D$9:$E$58,2,FALSE) ) )","v":""},null,null,null,null,{"$f":"IF(TRIM(T130)=\"\", \"\", IF(VLOOKUP(T130,'Footnotes list'!$D$9:$E$58,2,FALSE)=0,\"\",VLOOKUP(T130,'Footnotes list'!$D$9:$E$58,2,FALSE) ) )","v":""},null,null,null,null,{"$f":"IF(TRIM(Y130)=\"\", \"\", IF(VLOOKUP(Y130,'Footnotes list'!$D$9:$E$58,2,FALSE)=0,\"\",VLOOKUP(Y130,'Footnotes list'!$D$9:$E$58,2,FALSE) ) )","v":""},null,null,null,null,{"$f":"IF(TRIM(AD130)=\"\", \"\", IF(VLOOKUP(AD130,'Footnotes list'!$D$9:$E$58,2,FALSE)=0,\"\",VLOOKUP(AD130,'Footnotes list'!$D$9:$E$58,2,FALSE) ) )","v":""},null,null,null,null,{"$f":"IF(TRIM(AI130)=\"\", \"\", IF(VLOOKUP(AI130,'Footnotes list'!$D$9:$E$58,2,FALSE)=0,\"\",VLOOKUP(AI130,'Footnotes list'!$D$9:$E$58,2,FALSE) ) )","v":""},null,null,null,null,{"$f":"IF(TRIM(AN130)=\"\", \"\", IF(VLOOKUP(AN130,'Footnotes list'!$D$9:$E$58,2,FALSE)=0,\"\",VLOOKUP(AN130,'Footnotes list'!$D$9:$E$58,2,FALSE) ) )","v":""},null,null,null,null,{"$f":"IF(TRIM(AS130)=\"\", \"\", IF(VLOOKUP(AS130,'Footnotes list'!$D$9:$E$58,2,FALSE)=0,\"\",VLOOKUP(AS130,'Footnotes list'!$D$9:$E$58,2,FALSE) ) )","v":""},null,null,null,null,{"$f":"IF(TRIM(AX130)=\"\", \"\", IF(VLOOKUP(AX130,'Footnotes list'!$D$9:$E$58,2,FALSE)=0,\"\",VLOOKUP(AX130,'Footnotes list'!$D$9:$E$58,2,FALSE) ) )","v":""},null,null,null,null,{"$f":"IF(TRIM(BC130)=\"\", \"\", IF(VLOOKUP(BC130,'Footnotes list'!$D$9:$E$58,2,FALSE)=0,\"\",VLOOKUP(BC130,'Footnotes list'!$D$9:$E$58,2,FALSE) ) )","v":""},null,null,null,null,{"$f":"IF(TRIM(BH130)=\"\", \"\", IF(VLOOKUP(BH130,'Footnotes list'!$D$9:$E$58,2,FALSE)=0,\"\",VLOOKUP(BH130,'Footnotes list'!$D$9:$E$58,2,FALSE) ) )","v":""},null,null,null,null,{"$f":"IF(TRIM(BM130)=\"\", \"\", IF(VLOOKUP(BM130,'Footnotes list'!$D$9:$E$58,2,FALSE)=0,\"\",VLOOKUP(BM130,'Footnotes list'!$D$9:$E$58,2,FALSE) ) )","v":""},null,null,null,null,{"$f":"IF(TRIM(BR130)=\"\", \"\", IF(VLOOKUP(BR130,'Footnotes list'!$D$9:$E$58,2,FALSE)=0,\"\",VLOOKUP(BR130,'Footnotes list'!$D$9:$E$58,2,FALSE) ) )","v":""},null,null,null,null,{"$f":"IF(TRIM(BW130)=\"\", \"\", IF(VLOOKUP(BW130,'Footnotes list'!$D$9:$E$58,2,FALSE)=0,\"\",VLOOKUP(BW130,'Footnotes list'!$D$9:$E$58,2,FALSE) ) )","v":""},null,null,null,null,{"$f":"IF(TRIM(CB130)=\"\", \"\", IF(VLOOKUP(CB130,'Footnotes list'!$D$9:$E$58,2,FALSE)=0,\"\",VLOOKUP(CB130,'Footnotes list'!$D$9:$E$58,2,FALSE) ) )","v":""},null,null,null,null,{"$f":"IF(TRIM(CG130)=\"\", \"\", IF(VLOOKUP(CG130,'Footnotes list'!$D$9:$E$58,2,FALSE)=0,\"\",VLOOKUP(CG130,'Footnotes list'!$D$9:$E$58,2,FALSE) ) )","v":""},null,null,null,null,{"$f":"IF(TRIM(CL130)=\"\", \"\", IF(VLOOKUP(CL130,'Footnotes list'!$D$9:$E$58,2,FALSE)=0,\"\",VLOOKUP(CL130,'Footnotes list'!$D$9:$E$58,2,FALSE) ) )","v":""},null,null,null,null,{"$f":"IF(TRIM(CQ130)=\"\", \"\", IF(VLOOKUP(CQ130,'Footnotes list'!$D$9:$E$58,2,FALSE)=0,\"\",VLOOKUP(CQ130,'Footnotes list'!$D$9:$E$58,2,FALSE) ) )","v":""},null,null,null,null,{"$f":"IF(TRIM(CV130)=\"\", \"\", IF(VLOOKUP(CV130,'Footnotes list'!$D$9:$E$58,2,FALSE)=0,\"\",VLOOKUP(CV130,'Footnotes list'!$D$9:$E$58,2,FALSE) ) )","v":""},null,null,null,null,{"$f":"IF(TRIM(DA130)=\"\", \"\", IF(VLOOKUP(DA130,'Footnotes list'!$D$9:$E$58,2,FALSE)=0,\"\",VLOOKUP(DA130,'Footnotes list'!$D$9:$E$58,2,FALSE) ) )","v":""},null,null,null,null,{"$f":"IF(TRIM(DF130)=\"\", \"\", IF(VLOOKUP(DF130,'Footnotes list'!$D$9:$E$58,2,FALSE)=0,\"\",VLOOKUP(DF130,'Footnotes list'!$D$9:$E$58,2,FALSE) ) )","v":""},null,null,null,null,{"$f":"IF(TRIM(DK130)=\"\", \"\", IF(VLOOKUP(DK130,'Footnotes list'!$D$9:$E$58,2,FALSE)=0,\"\",VLOOKUP(DK130,'Footnotes list'!$D$9:$E$58,2,FALSE) ) )","v":""},null,null,null,null,{"$f":"IF(TRIM(DP130)=\"\", \"\", IF(VLOOKUP(DP130,'Footnotes list'!$D$9:$E$58,2,FALSE)=0,\"\",VLOOKUP(DP130,'Footnotes list'!$D$9:$E$58,2,FALSE) ) )","v":""},null,null,null,null,{"$f":"IF(TRIM(DU130)=\"\", \"\", IF(VLOOKUP(DU130,'Footnotes list'!$D$9:$E$58,2,FALSE)=0,\"\",VLOOKUP(DU130,'Footnotes list'!$D$9:$E$58,2,FALSE) ) )","v":""},null,null,null,null,{"$f":"IF(TRIM(DZ130)=\"\", \"\", IF(VLOOKUP(DZ130,'Footnotes list'!$D$9:$E$58,2,FALSE)=0,\"\",VLOOKUP(DZ130,'Footnotes list'!$D$9:$E$58,2,FALSE) ) )","v":""},null,null,null,null,{"$f":"IF(TRIM(EE130)=\"\", \"\", IF(VLOOKUP(EE130,'Footnotes list'!$D$9:$E$58,2,FALSE)=0,\"\",VLOOKUP(EE130,'Footnotes list'!$D$9:$E$58,2,FALSE) ) )","v":""},null,null,null,null,{"$f":"IF(TRIM(EJ130)=\"\", \"\", IF(VLOOKUP(EJ130,'Footnotes list'!$D$9:$E$58,2,FALSE)=0,\"\",VLOOKUP(EJ130,'Footnotes list'!$D$9:$E$58,2,FALSE) ) )","v":""},null,null,null,null,{"$f":"IF(TRIM(EO130)=\"\", \"\", IF(VLOOKUP(EO130,'Footnotes list'!$D$9:$E$58,2,FALSE)=0,\"\",VLOOKUP(EO130,'Footnotes list'!$D$9:$E$58,2,FALSE) ) )","v":""},null,null,null,null,{"$f":"IF(TRIM(ET130)=\"\", \"\", IF(VLOOKUP(ET130,'Footnotes list'!$D$9:$E$58,2,FALSE)=0,\"\",VLOOKUP(ET130,'Footnotes list'!$D$9:$E$58,2,FALSE) ) )","v":""},null,null,null,null,{"$f":"IF(TRIM(EY130)=\"\", \"\", IF(VLOOKUP(EY130,'Footnotes list'!$D$9:$E$58,2,FALSE)=0,\"\",VLOOKUP(EY130,'Footnotes list'!$D$9:$E$58,2,FALSE) ) )","v":""}]
[null,null,"D","MKT","market activities, including:",null,null,null,null,null,{"$f":"IF(TRIM(J131)=\"\", \"\", IF(VLOOKUP(J131,'Footnotes list'!$D$9:$E$58,2,FALSE)=0,\"\",VLOOKUP(J131,'Footnotes list'!$D$9:$E$58,2,FALSE) ) )","v":""},null,null,null,null,{"$f":"IF(TRIM(O131)=\"\", \"\", IF(VLOOKUP(O131,'Footnotes list'!$D$9:$E$58,2,FALSE)=0,\"\",VLOOKUP(O131,'Footnotes list'!$D$9:$E$58,2,FALSE) ) )","v":""},null,null,null,null,{"$f":"IF(TRIM(T131)=\"\", \"\", IF(VLOOKUP(T131,'Footnotes list'!$D$9:$E$58,2,FALSE)=0,\"\",VLOOKUP(T131,'Footnotes list'!$D$9:$E$58,2,FALSE) ) )","v":""},null,null,null,null,{"$f":"IF(TRIM(Y131)=\"\", \"\", IF(VLOOKUP(Y131,'Footnotes list'!$D$9:$E$58,2,FALSE)=0,\"\",VLOOKUP(Y131,'Footnotes list'!$D$9:$E$58,2,FALSE) ) )","v":""},null,null,null,null,{"$f":"IF(TRIM(AD131)=\"\", \"\", IF(VLOOKUP(AD131,'Footnotes list'!$D$9:$E$58,2,FALSE)=0,\"\",VLOOKUP(AD131,'Footnotes list'!$D$9:$E$58,2,FALSE) ) )","v":""},null,null,null,null,{"$f":"IF(TRIM(AI131)=\"\", \"\", IF(VLOOKUP(AI131,'Footnotes list'!$D$9:$E$58,2,FALSE)=0,\"\",VLOOKUP(AI131,'Footnotes list'!$D$9:$E$58,2,FALSE) ) )","v":""},null,null,null,null,{"$f":"IF(TRIM(AN131)=\"\", \"\", IF(VLOOKUP(AN131,'Footnotes list'!$D$9:$E$58,2,FALSE)=0,\"\",VLOOKUP(AN131,'Footnotes list'!$D$9:$E$58,2,FALSE) ) )","v":""},null,null,null,null,{"$f":"IF(TRIM(AS131)=\"\", \"\", IF(VLOOKUP(AS131,'Footnotes list'!$D$9:$E$58,2,FALSE)=0,\"\",VLOOKUP(AS131,'Footnotes list'!$D$9:$E$58,2,FALSE) ) )","v":""},null,null,null,null,{"$f":"IF(TRIM(AX131)=\"\", \"\", IF(VLOOKUP(AX131,'Footnotes list'!$D$9:$E$58,2,FALSE)=0,\"\",VLOOKUP(AX131,'Footnotes list'!$D$9:$E$58,2,FALSE) ) )","v":""},null,null,null,null,{"$f":"IF(TRIM(BC131)=\"\", \"\", IF(VLOOKUP(BC131,'Footnotes list'!$D$9:$E$58,2,FALSE)=0,\"\",VLOOKUP(BC131,'Footnotes list'!$D$9:$E$58,2,FALSE) ) )","v":""},null,null,null,null,{"$f":"IF(TRIM(BH131)=\"\", \"\", IF(VLOOKUP(BH131,'Footnotes list'!$D$9:$E$58,2,FALSE)=0,\"\",VLOOKUP(BH131,'Footnotes list'!$D$9:$E$58,2,FALSE) ) )","v":""},null,null,null,null,{"$f":"IF(TRIM(BM131)=\"\", \"\", IF(VLOOKUP(BM131,'Footnotes list'!$D$9:$E$58,2,FALSE)=0,\"\",VLOOKUP(BM131,'Footnotes list'!$D$9:$E$58,2,FALSE) ) )","v":""},null,null,null,null,{"$f":"IF(TRIM(BR131)=\"\", \"\", IF(VLOOKUP(BR131,'Footnotes list'!$D$9:$E$58,2,FALSE)=0,\"\",VLOOKUP(BR131,'Footnotes list'!$D$9:$E$58,2,FALSE) ) )","v":""},null,null,null,null,{"$f":"IF(TRIM(BW131)=\"\", \"\", IF(VLOOKUP(BW131,'Footnotes list'!$D$9:$E$58,2,FALSE)=0,\"\",VLOOKUP(BW131,'Footnotes list'!$D$9:$E$58,2,FALSE) ) )","v":""},null,null,null,null,{"$f":"IF(TRIM(CB131)=\"\", \"\", IF(VLOOKUP(CB131,'Footnotes list'!$D$9:$E$58,2,FALSE)=0,\"\",VLOOKUP(CB131,'Footnotes list'!$D$9:$E$58,2,FALSE) ) )","v":""},null,null,null,null,{"$f":"IF(TRIM(CG131)=\"\", \"\", IF(VLOOKUP(CG131,'Footnotes list'!$D$9:$E$58,2,FALSE)=0,\"\",VLOOKUP(CG131,'Footnotes list'!$D$9:$E$58,2,FALSE) ) )","v":""},null,null,null,null,{"$f":"IF(TRIM(CL131)=\"\", \"\", IF(VLOOKUP(CL131,'Footnotes list'!$D$9:$E$58,2,FALSE)=0,\"\",VLOOKUP(CL131,'Footnotes list'!$D$9:$E$58,2,FALSE) ) )","v":""},null,null,null,null,{"$f":"IF(TRIM(CQ131)=\"\", \"\", IF(VLOOKUP(CQ131,'Footnotes list'!$D$9:$E$58,2,FALSE)=0,\"\",VLOOKUP(CQ131,'Footnotes list'!$D$9:$E$58,2,FALSE) ) )","v":""},null,null,null,null,{"$f":"IF(TRIM(CV131)=\"\", \"\", IF(VLOOKUP(CV131,'Footnotes list'!$D$9:$E$58,2,FALSE)=0,\"\",VLOOKUP(CV131,'Footnotes list'!$D$9:$E$58,2,FALSE) ) )","v":""},null,null,null,null,{"$f":"IF(TRIM(DA131)=\"\", \"\", IF(VLOOKUP(DA131,'Footnotes list'!$D$9:$E$58,2,FALSE)=0,\"\",VLOOKUP(DA131,'Footnotes list'!$D$9:$E$58,2,FALSE) ) )","v":""},null,null,null,null,{"$f":"IF(TRIM(DF131)=\"\", \"\", IF(VLOOKUP(DF131,'Footnotes list'!$D$9:$E$58,2,FALSE)=0,\"\",VLOOKUP(DF131,'Footnotes list'!$D$9:$E$58,2,FALSE) ) )","v":""},null,null,null,null,{"$f":"IF(TRIM(DK131)=\"\", \"\", IF(VLOOKUP(DK131,'Footnotes list'!$D$9:$E$58,2,FALSE)=0,\"\",VLOOKUP(DK131,'Footnotes list'!$D$9:$E$58,2,FALSE) ) )","v":""},null,null,null,null,{"$f":"IF(TRIM(DP131)=\"\", \"\", IF(VLOOKUP(DP131,'Footnotes list'!$D$9:$E$58,2,FALSE)=0,\"\",VLOOKUP(DP131,'Footnotes list'!$D$9:$E$58,2,FALSE) ) )","v":""},null,null,null,null,{"$f":"IF(TRIM(DU131)=\"\", \"\", IF(VLOOKUP(DU131,'Footnotes list'!$D$9:$E$58,2,FALSE)=0,\"\",VLOOKUP(DU131,'Footnotes list'!$D$9:$E$58,2,FALSE) ) )","v":""},null,null,null,null,{"$f":"IF(TRIM(DZ131)=\"\", \"\", IF(VLOOKUP(DZ131,'Footnotes list'!$D$9:$E$58,2,FALSE)=0,\"\",VLOOKUP(DZ131,'Footnotes list'!$D$9:$E$58,2,FALSE) ) )","v":""},null,null,null,null,{"$f":"IF(TRIM(EE131)=\"\", \"\", IF(VLOOKUP(EE131,'Footnotes list'!$D$9:$E$58,2,FALSE)=0,\"\",VLOOKUP(EE131,'Footnotes list'!$D$9:$E$58,2,FALSE) ) )","v":""},null,null,null,null,{"$f":"IF(TRIM(EJ131)=\"\", \"\", IF(VLOOKUP(EJ131,'Footnotes list'!$D$9:$E$58,2,FALSE)=0,\"\",VLOOKUP(EJ131,'Footnotes list'!$D$9:$E$58,2,FALSE) ) )","v":""},null,null,null,null,{"$f":"IF(TRIM(EO131)=\"\", \"\", IF(VLOOKUP(EO131,'Footnotes list'!$D$9:$E$58,2,FALSE)=0,\"\",VLOOKUP(EO131,'Footnotes list'!$D$9:$E$58,2,FALSE) ) )","v":""},null,null,null,null,{"$f":"IF(TRIM(ET131)=\"\", \"\", IF(VLOOKUP(ET131,'Footnotes list'!$D$9:$E$58,2,FALSE)=0,\"\",VLOOKUP(ET131,'Footnotes list'!$D$9:$E$58,2,FALSE) ) )","v":""},null,null,null,null,{"$f":"IF(TRIM(EY131)=\"\", \"\", IF(VLOOKUP(EY131,'Footnotes list'!$D$9:$E$58,2,FALSE)=0,\"\",VLOOKUP(EY131,'Footnotes list'!$D$9:$E$58,2,FALSE) ) )","v":""}]
[null,null,"D","ES_CS","environmental specific services",null,null,null,null,null,{"$f":"IF(TRIM(J132)=\"\", \"\", IF(VLOOKUP(J132,'Footnotes list'!$D$9:$E$58,2,FALSE)=0,\"\",VLOOKUP(J132,'Footnotes list'!$D$9:$E$58,2,FALSE) ) )","v":""},null,null,null,null,{"$f":"IF(TRIM(O132)=\"\", \"\", IF(VLOOKUP(O132,'Footnotes list'!$D$9:$E$58,2,FALSE)=0,\"\",VLOOKUP(O132,'Footnotes list'!$D$9:$E$58,2,FALSE) ) )","v":""},null,null,null,null,{"$f":"IF(TRIM(T132)=\"\", \"\", IF(VLOOKUP(T132,'Footnotes list'!$D$9:$E$58,2,FALSE)=0,\"\",VLOOKUP(T132,'Footnotes list'!$D$9:$E$58,2,FALSE) ) )","v":""},null,null,null,null,{"$f":"IF(TRIM(Y132)=\"\", \"\", IF(VLOOKUP(Y132,'Footnotes list'!$D$9:$E$58,2,FALSE)=0,\"\",VLOOKUP(Y132,'Footnotes list'!$D$9:$E$58,2,FALSE) ) )","v":""},null,null,null,null,{"$f":"IF(TRIM(AD132)=\"\", \"\", IF(VLOOKUP(AD132,'Footnotes list'!$D$9:$E$58,2,FALSE)=0,\"\",VLOOKUP(AD132,'Footnotes list'!$D$9:$E$58,2,FALSE) ) )","v":""},null,null,null,null,{"$f":"IF(TRIM(AI132)=\"\", \"\", IF(VLOOKUP(AI132,'Footnotes list'!$D$9:$E$58,2,FALSE)=0,\"\",VLOOKUP(AI132,'Footnotes list'!$D$9:$E$58,2,FALSE) ) )","v":""},null,null,null,null,{"$f":"IF(TRIM(AN132)=\"\", \"\", IF(VLOOKUP(AN132,'Footnotes list'!$D$9:$E$58,2,FALSE)=0,\"\",VLOOKUP(AN132,'Footnotes list'!$D$9:$E$58,2,FALSE) ) )","v":""},null,null,null,null,{"$f":"IF(TRIM(AS132)=\"\", \"\", IF(VLOOKUP(AS132,'Footnotes list'!$D$9:$E$58,2,FALSE)=0,\"\",VLOOKUP(AS132,'Footnotes list'!$D$9:$E$58,2,FALSE) ) )","v":""},null,null,null,null,{"$f":"IF(TRIM(AX132)=\"\", \"\", IF(VLOOKUP(AX132,'Footnotes list'!$D$9:$E$58,2,FALSE)=0,\"\",VLOOKUP(AX132,'Footnotes list'!$D$9:$E$58,2,FALSE) ) )","v":""},null,null,null,null,{"$f":"IF(TRIM(BC132)=\"\", \"\", IF(VLOOKUP(BC132,'Footnotes list'!$D$9:$E$58,2,FALSE)=0,\"\",VLOOKUP(BC132,'Footnotes list'!$D$9:$E$58,2,FALSE) ) )","v":""},null,null,null,null,{"$f":"IF(TRIM(BH132)=\"\", \"\", IF(VLOOKUP(BH132,'Footnotes list'!$D$9:$E$58,2,FALSE)=0,\"\",VLOOKUP(BH132,'Footnotes list'!$D$9:$E$58,2,FALSE) ) )","v":""},null,null,null,null,{"$f":"IF(TRIM(BM132)=\"\", \"\", IF(VLOOKUP(BM132,'Footnotes list'!$D$9:$E$58,2,FALSE)=0,\"\",VLOOKUP(BM132,'Footnotes list'!$D$9:$E$58,2,FALSE) ) )","v":""},null,null,null,null,{"$f":"IF(TRIM(BR132)=\"\", \"\", IF(VLOOKUP(BR132,'Footnotes list'!$D$9:$E$58,2,FALSE)=0,\"\",VLOOKUP(BR132,'Footnotes list'!$D$9:$E$58,2,FALSE) ) )","v":""},null,null,null,null,{"$f":"IF(TRIM(BW132)=\"\", \"\", IF(VLOOKUP(BW132,'Footnotes list'!$D$9:$E$58,2,FALSE)=0,\"\",VLOOKUP(BW132,'Footnotes list'!$D$9:$E$58,2,FALSE) ) )","v":""},null,null,null,null,{"$f":"IF(TRIM(CB132)=\"\", \"\", IF(VLOOKUP(CB132,'Footnotes list'!$D$9:$E$58,2,FALSE)=0,\"\",VLOOKUP(CB132,'Footnotes list'!$D$9:$E$58,2,FALSE) ) )","v":""},null,null,null,null,{"$f":"IF(TRIM(CG132)=\"\", \"\", IF(VLOOKUP(CG132,'Footnotes list'!$D$9:$E$58,2,FALSE)=0,\"\",VLOOKUP(CG132,'Footnotes list'!$D$9:$E$58,2,FALSE) ) )","v":""},null,null,null,null,{"$f":"IF(TRIM(CL132)=\"\", \"\", IF(VLOOKUP(CL132,'Footnotes list'!$D$9:$E$58,2,FALSE)=0,\"\",VLOOKUP(CL132,'Footnotes list'!$D$9:$E$58,2,FALSE) ) )","v":""},null,null,null,null,{"$f":"IF(TRIM(CQ132)=\"\", \"\", IF(VLOOKUP(CQ132,'Footnotes list'!$D$9:$E$58,2,FALSE)=0,\"\",VLOOKUP(CQ132,'Footnotes list'!$D$9:$E$58,2,FALSE) ) )","v":""},null,null,null,null,{"$f":"IF(TRIM(CV132)=\"\", \"\", IF(VLOOKUP(CV132,'Footnotes list'!$D$9:$E$58,2,FALSE)=0,\"\",VLOOKUP(CV132,'Footnotes list'!$D$9:$E$58,2,FALSE) ) )","v":""},null,null,null,null,{"$f":"IF(TRIM(DA132)=\"\", \"\", IF(VLOOKUP(DA132,'Footnotes list'!$D$9:$E$58,2,FALSE)=0,\"\",VLOOKUP(DA132,'Footnotes list'!$D$9:$E$58,2,FALSE) ) )","v":""},null,null,null,null,{"$f":"IF(TRIM(DF132)=\"\", \"\", IF(VLOOKUP(DF132,'Footnotes list'!$D$9:$E$58,2,FALSE)=0,\"\",VLOOKUP(DF132,'Footnotes list'!$D$9:$E$58,2,FALSE) ) )","v":""},null,null,null,null,{"$f":"IF(TRIM(DK132)=\"\", \"\", IF(VLOOKUP(DK132,'Footnotes list'!$D$9:$E$58,2,FALSE)=0,\"\",VLOOKUP(DK132,'Footnotes list'!$D$9:$E$58,2,FALSE) ) )","v":""},null,null,null,null,{"$f":"IF(TRIM(DP132)=\"\", \"\", IF(VLOOKUP(DP132,'Footnotes list'!$D$9:$E$58,2,FALSE)=0,\"\",VLOOKUP(DP132,'Footnotes list'!$D$9:$E$58,2,FALSE) ) )","v":""},null,null,null,null,{"$f":"IF(TRIM(DU132)=\"\", \"\", IF(VLOOKUP(DU132,'Footnotes list'!$D$9:$E$58,2,FALSE)=0,\"\",VLOOKUP(DU132,'Footnotes list'!$D$9:$E$58,2,FALSE) ) )","v":""},null,null,null,null,{"$f":"IF(TRIM(DZ132)=\"\", \"\", IF(VLOOKUP(DZ132,'Footnotes list'!$D$9:$E$58,2,FALSE)=0,\"\",VLOOKUP(DZ132,'Footnotes list'!$D$9:$E$58,2,FALSE) ) )","v":""},null,null,null,null,{"$f":"IF(TRIM(EE132)=\"\", \"\", IF(VLOOKUP(EE132,'Footnotes list'!$D$9:$E$58,2,FALSE)=0,\"\",VLOOKUP(EE132,'Footnotes list'!$D$9:$E$58,2,FALSE) ) )","v":""},null,null,null,null,{"$f":"IF(TRIM(EJ132)=\"\", \"\", IF(VLOOKUP(EJ132,'Footnotes list'!$D$9:$E$58,2,FALSE)=0,\"\",VLOOKUP(EJ132,'Footnotes list'!$D$9:$E$58,2,FALSE) ) )","v":""},null,null,null,null,{"$f":"IF(TRIM(EO132)=\"\", \"\", IF(VLOOKUP(EO132,'Footnotes list'!$D$9:$E$58,2,FALSE)=0,\"\",VLOOKUP(EO132,'Footnotes list'!$D$9:$E$58,2,FALSE) ) )","v":""},null,null,null,null,{"$f":"IF(TRIM(ET132)=\"\", \"\", IF(VLOOKUP(ET132,'Footnotes list'!$D$9:$E$58,2,FALSE)=0,\"\",VLOOKUP(ET132,'Footnotes list'!$D$9:$E$58,2,FALSE) ) )","v":""},null,null,null,null,{"$f":"IF(TRIM(EY132)=\"\", \"\", IF(VLOOKUP(EY132,'Footnotes list'!$D$9:$E$58,2,FALSE)=0,\"\",VLOOKUP(EY132,'Footnotes list'!$D$9:$E$58,2,FALSE) ) )","v":""}]
[null,null,"D","C_REP","cleaner and resource efficient products",null,null,null,null,null,{"$f":"IF(TRIM(J133)=\"\", \"\", IF(VLOOKUP(J133,'Footnotes list'!$D$9:$E$58,2,FALSE)=0,\"\",VLOOKUP(J133,'Footnotes list'!$D$9:$E$58,2,FALSE) ) )","v":""},null,null,null,null,{"$f":"IF(TRIM(O133)=\"\", \"\", IF(VLOOKUP(O133,'Footnotes list'!$D$9:$E$58,2,FALSE)=0,\"\",VLOOKUP(O133,'Footnotes list'!$D$9:$E$58,2,FALSE) ) )","v":""},null,null,null,null,{"$f":"IF(TRIM(T133)=\"\", \"\", IF(VLOOKUP(T133,'Footnotes list'!$D$9:$E$58,2,FALSE)=0,\"\",VLOOKUP(T133,'Footnotes list'!$D$9:$E$58,2,FALSE) ) )","v":""},null,null,null,null,{"$f":"IF(TRIM(Y133)=\"\", \"\", IF(VLOOKUP(Y133,'Footnotes list'!$D$9:$E$58,2,FALSE)=0,\"\",VLOOKUP(Y133,'Footnotes list'!$D$9:$E$58,2,FALSE) ) )","v":""},null,null,null,null,{"$f":"IF(TRIM(AD133)=\"\", \"\", IF(VLOOKUP(AD133,'Footnotes list'!$D$9:$E$58,2,FALSE)=0,\"\",VLOOKUP(AD133,'Footnotes list'!$D$9:$E$58,2,FALSE) ) )","v":""},null,null,null,null,{"$f":"IF(TRIM(AI133)=\"\", \"\", IF(VLOOKUP(AI133,'Footnotes list'!$D$9:$E$58,2,FALSE)=0,\"\",VLOOKUP(AI133,'Footnotes list'!$D$9:$E$58,2,FALSE) ) )","v":""},null,null,null,null,{"$f":"IF(TRIM(AN133)=\"\", \"\", IF(VLOOKUP(AN133,'Footnotes list'!$D$9:$E$58,2,FALSE)=0,\"\",VLOOKUP(AN133,'Footnotes list'!$D$9:$E$58,2,FALSE) ) )","v":""},null,null,null,null,{"$f":"IF(TRIM(AS133)=\"\", \"\", IF(VLOOKUP(AS133,'Footnotes list'!$D$9:$E$58,2,FALSE)=0,\"\",VLOOKUP(AS133,'Footnotes list'!$D$9:$E$58,2,FALSE) ) )","v":""},null,null,null,null,{"$f":"IF(TRIM(AX133)=\"\", \"\", IF(VLOOKUP(AX133,'Footnotes list'!$D$9:$E$58,2,FALSE)=0,\"\",VLOOKUP(AX133,'Footnotes list'!$D$9:$E$58,2,FALSE) ) )","v":""},null,null,null,null,{"$f":"IF(TRIM(BC133)=\"\", \"\", IF(VLOOKUP(BC133,'Footnotes list'!$D$9:$E$58,2,FALSE)=0,\"\",VLOOKUP(BC133,'Footnotes list'!$D$9:$E$58,2,FALSE) ) )","v":""},null,null,null,null,{"$f":"IF(TRIM(BH133)=\"\", \"\", IF(VLOOKUP(BH133,'Footnotes list'!$D$9:$E$58,2,FALSE)=0,\"\",VLOOKUP(BH133,'Footnotes list'!$D$9:$E$58,2,FALSE) ) )","v":""},null,null,null,null,{"$f":"IF(TRIM(BM133)=\"\", \"\", IF(VLOOKUP(BM133,'Footnotes list'!$D$9:$E$58,2,FALSE)=0,\"\",VLOOKUP(BM133,'Footnotes list'!$D$9:$E$58,2,FALSE) ) )","v":""},null,null,null,null,{"$f":"IF(TRIM(BR133)=\"\", \"\", IF(VLOOKUP(BR133,'Footnotes list'!$D$9:$E$58,2,FALSE)=0,\"\",VLOOKUP(BR133,'Footnotes list'!$D$9:$E$58,2,FALSE) ) )","v":""},null,null,null,null,{"$f":"IF(TRIM(BW133)=\"\", \"\", IF(VLOOKUP(BW133,'Footnotes list'!$D$9:$E$58,2,FALSE)=0,\"\",VLOOKUP(BW133,'Footnotes list'!$D$9:$E$58,2,FALSE) ) )","v":""},null,null,null,null,{"$f":"IF(TRIM(CB133)=\"\", \"\", IF(VLOOKUP(CB133,'Footnotes list'!$D$9:$E$58,2,FALSE)=0,\"\",VLOOKUP(CB133,'Footnotes list'!$D$9:$E$58,2,FALSE) ) )","v":""},null,null,null,null,{"$f":"IF(TRIM(CG133)=\"\", \"\", IF(VLOOKUP(CG133,'Footnotes list'!$D$9:$E$58,2,FALSE)=0,\"\",VLOOKUP(CG133,'Footnotes list'!$D$9:$E$58,2,FALSE) ) )","v":""},null,null,null,null,{"$f":"IF(TRIM(CL133)=\"\", \"\", IF(VLOOKUP(CL133,'Footnotes list'!$D$9:$E$58,2,FALSE)=0,\"\",VLOOKUP(CL133,'Footnotes list'!$D$9:$E$58,2,FALSE) ) )","v":""},null,null,null,null,{"$f":"IF(TRIM(CQ133)=\"\", \"\", IF(VLOOKUP(CQ133,'Footnotes list'!$D$9:$E$58,2,FALSE)=0,\"\",VLOOKUP(CQ133,'Footnotes list'!$D$9:$E$58,2,FALSE) ) )","v":""},null,null,null,null,{"$f":"IF(TRIM(CV133)=\"\", \"\", IF(VLOOKUP(CV133,'Footnotes list'!$D$9:$E$58,2,FALSE)=0,\"\",VLOOKUP(CV133,'Footnotes list'!$D$9:$E$58,2,FALSE) ) )","v":""},null,null,null,null,{"$f":"IF(TRIM(DA133)=\"\", \"\", IF(VLOOKUP(DA133,'Footnotes list'!$D$9:$E$58,2,FALSE)=0,\"\",VLOOKUP(DA133,'Footnotes list'!$D$9:$E$58,2,FALSE) ) )","v":""},null,null,null,null,{"$f":"IF(TRIM(DF133)=\"\", \"\", IF(VLOOKUP(DF133,'Footnotes list'!$D$9:$E$58,2,FALSE)=0,\"\",VLOOKUP(DF133,'Footnotes list'!$D$9:$E$58,2,FALSE) ) )","v":""},null,null,null,null,{"$f":"IF(TRIM(DK133)=\"\", \"\", IF(VLOOKUP(DK133,'Footnotes list'!$D$9:$E$58,2,FALSE)=0,\"\",VLOOKUP(DK133,'Footnotes list'!$D$9:$E$58,2,FALSE) ) )","v":""},null,null,null,null,{"$f":"IF(TRIM(DP133)=\"\", \"\", IF(VLOOKUP(DP133,'Footnotes list'!$D$9:$E$58,2,FALSE)=0,\"\",VLOOKUP(DP133,'Footnotes list'!$D$9:$E$58,2,FALSE) ) )","v":""},null,null,null,null,{"$f":"IF(TRIM(DU133)=\"\", \"\", IF(VLOOKUP(DU133,'Footnotes list'!$D$9:$E$58,2,FALSE)=0,\"\",VLOOKUP(DU133,'Footnotes list'!$D$9:$E$58,2,FALSE) ) )","v":""},null,null,null,null,{"$f":"IF(TRIM(DZ133)=\"\", \"\", IF(VLOOKUP(DZ133,'Footnotes list'!$D$9:$E$58,2,FALSE)=0,\"\",VLOOKUP(DZ133,'Footnotes list'!$D$9:$E$58,2,FALSE) ) )","v":""},null,null,null,null,{"$f":"IF(TRIM(EE133)=\"\", \"\", IF(VLOOKUP(EE133,'Footnotes list'!$D$9:$E$58,2,FALSE)=0,\"\",VLOOKUP(EE133,'Footnotes list'!$D$9:$E$58,2,FALSE) ) )","v":""},null,null,null,null,{"$f":"IF(TRIM(EJ133)=\"\", \"\", IF(VLOOKUP(EJ133,'Footnotes list'!$D$9:$E$58,2,FALSE)=0,\"\",VLOOKUP(EJ133,'Footnotes list'!$D$9:$E$58,2,FALSE) ) )","v":""},null,null,null,null,{"$f":"IF(TRIM(EO133)=\"\", \"\", IF(VLOOKUP(EO133,'Footnotes list'!$D$9:$E$58,2,FALSE)=0,\"\",VLOOKUP(EO133,'Footnotes list'!$D$9:$E$58,2,FALSE) ) )","v":""},null,null,null,null,{"$f":"IF(TRIM(ET133)=\"\", \"\", IF(VLOOKUP(ET133,'Footnotes list'!$D$9:$E$58,2,FALSE)=0,\"\",VLOOKUP(ET133,'Footnotes list'!$D$9:$E$58,2,FALSE) ) )","v":""},null,null,null,null,{"$f":"IF(TRIM(EY133)=\"\", \"\", IF(VLOOKUP(EY133,'Footnotes list'!$D$9:$E$58,2,FALSE)=0,\"\",VLOOKUP(EY133,'Footnotes list'!$D$9:$E$58,2,FALSE) ) )","v":""}]
[null,null,"E","TOT_EGSS","Total E - Water supply; sewerage, waste management and remediation activities, of which:",null,null,null,null,null,{"$f":"IF(TRIM(J134)=\"\", \"\", IF(VLOOKUP(J134,'Footnotes list'!$D$9:$E$58,2,FALSE)=0,\"\",VLOOKUP(J134,'Footnotes list'!$D$9:$E$58,2,FALSE) ) )","v":""},null,null,null,null,{"$f":"IF(TRIM(O134)=\"\", \"\", IF(VLOOKUP(O134,'Footnotes list'!$D$9:$E$58,2,FALSE)=0,\"\",VLOOKUP(O134,'Footnotes list'!$D$9:$E$58,2,FALSE) ) )","v":""},null,null,null,null,{"$f":"IF(TRIM(T134)=\"\", \"\", IF(VLOOKUP(T134,'Footnotes list'!$D$9:$E$58,2,FALSE)=0,\"\",VLOOKUP(T134,'Footnotes list'!$D$9:$E$58,2,FALSE) ) )","v":""},null,null,null,null,{"$f":"IF(TRIM(Y134)=\"\", \"\", IF(VLOOKUP(Y134,'Footnotes list'!$D$9:$E$58,2,FALSE)=0,\"\",VLOOKUP(Y134,'Footnotes list'!$D$9:$E$58,2,FALSE) ) )","v":""},null,null,null,null,{"$f":"IF(TRIM(AD134)=\"\", \"\", IF(VLOOKUP(AD134,'Footnotes list'!$D$9:$E$58,2,FALSE)=0,\"\",VLOOKUP(AD134,'Footnotes list'!$D$9:$E$58,2,FALSE) ) )","v":""},null,null,null,null,{"$f":"IF(TRIM(AI134)=\"\", \"\", IF(VLOOKUP(AI134,'Footnotes list'!$D$9:$E$58,2,FALSE)=0,\"\",VLOOKUP(AI134,'Footnotes list'!$D$9:$E$58,2,FALSE) ) )","v":""},null,null,null,null,{"$f":"IF(TRIM(AN134)=\"\", \"\", IF(VLOOKUP(AN134,'Footnotes list'!$D$9:$E$58,2,FALSE)=0,\"\",VLOOKUP(AN134,'Footnotes list'!$D$9:$E$58,2,FALSE) ) )","v":""},null,null,null,null,{"$f":"IF(TRIM(AS134)=\"\", \"\", IF(VLOOKUP(AS134,'Footnotes list'!$D$9:$E$58,2,FALSE)=0,\"\",VLOOKUP(AS134,'Footnotes list'!$D$9:$E$58,2,FALSE) ) )","v":""},null,null,null,null,{"$f":"IF(TRIM(AX134)=\"\", \"\", IF(VLOOKUP(AX134,'Footnotes list'!$D$9:$E$58,2,FALSE)=0,\"\",VLOOKUP(AX134,'Footnotes list'!$D$9:$E$58,2,FALSE) ) )","v":""},null,null,null,null,{"$f":"IF(TRIM(BC134)=\"\", \"\", IF(VLOOKUP(BC134,'Footnotes list'!$D$9:$E$58,2,FALSE)=0,\"\",VLOOKUP(BC134,'Footnotes list'!$D$9:$E$58,2,FALSE) ) )","v":""},null,null,null,null,{"$f":"IF(TRIM(BH134)=\"\", \"\", IF(VLOOKUP(BH134,'Footnotes list'!$D$9:$E$58,2,FALSE)=0,\"\",VLOOKUP(BH134,'Footnotes list'!$D$9:$E$58,2,FALSE) ) )","v":""},null,null,null,null,{"$f":"IF(TRIM(BM134)=\"\", \"\", IF(VLOOKUP(BM134,'Footnotes list'!$D$9:$E$58,2,FALSE)=0,\"\",VLOOKUP(BM134,'Footnotes list'!$D$9:$E$58,2,FALSE) ) )","v":""},null,null,null,null,{"$f":"IF(TRIM(BR134)=\"\", \"\", IF(VLOOKUP(BR134,'Footnotes list'!$D$9:$E$58,2,FALSE)=0,\"\",VLOOKUP(BR134,'Footnotes list'!$D$9:$E$58,2,FALSE) ) )","v":""},null,null,null,null,{"$f":"IF(TRIM(BW134)=\"\", \"\", IF(VLOOKUP(BW134,'Footnotes list'!$D$9:$E$58,2,FALSE)=0,\"\",VLOOKUP(BW134,'Footnotes list'!$D$9:$E$58,2,FALSE) ) )","v":""},null,null,null,null,{"$f":"IF(TRIM(CB134)=\"\", \"\", IF(VLOOKUP(CB134,'Footnotes list'!$D$9:$E$58,2,FALSE)=0,\"\",VLOOKUP(CB134,'Footnotes list'!$D$9:$E$58,2,FALSE) ) )","v":""},null,null,null,null,{"$f":"IF(TRIM(CG134)=\"\", \"\", IF(VLOOKUP(CG134,'Footnotes list'!$D$9:$E$58,2,FALSE)=0,\"\",VLOOKUP(CG134,'Footnotes list'!$D$9:$E$58,2,FALSE) ) )","v":""},null,null,null,null,{"$f":"IF(TRIM(CL134)=\"\", \"\", IF(VLOOKUP(CL134,'Footnotes list'!$D$9:$E$58,2,FALSE)=0,\"\",VLOOKUP(CL134,'Footnotes list'!$D$9:$E$58,2,FALSE) ) )","v":""},null,null,null,null,{"$f":"IF(TRIM(CQ134)=\"\", \"\", IF(VLOOKUP(CQ134,'Footnotes list'!$D$9:$E$58,2,FALSE)=0,\"\",VLOOKUP(CQ134,'Footnotes list'!$D$9:$E$58,2,FALSE) ) )","v":""},null,null,null,null,{"$f":"IF(TRIM(CV134)=\"\", \"\", IF(VLOOKUP(CV134,'Footnotes list'!$D$9:$E$58,2,FALSE)=0,\"\",VLOOKUP(CV134,'Footnotes list'!$D$9:$E$58,2,FALSE) ) )","v":""},null,null,null,null,{"$f":"IF(TRIM(DA134)=\"\", \"\", IF(VLOOKUP(DA134,'Footnotes list'!$D$9:$E$58,2,FALSE)=0,\"\",VLOOKUP(DA134,'Footnotes list'!$D$9:$E$58,2,FALSE) ) )","v":""},null,null,null,null,{"$f":"IF(TRIM(DF134)=\"\", \"\", IF(VLOOKUP(DF134,'Footnotes list'!$D$9:$E$58,2,FALSE)=0,\"\",VLOOKUP(DF134,'Footnotes list'!$D$9:$E$58,2,FALSE) ) )","v":""},null,null,null,null,{"$f":"IF(TRIM(DK134)=\"\", \"\", IF(VLOOKUP(DK134,'Footnotes list'!$D$9:$E$58,2,FALSE)=0,\"\",VLOOKUP(DK134,'Footnotes list'!$D$9:$E$58,2,FALSE) ) )","v":""},null,null,null,null,{"$f":"IF(TRIM(DP134)=\"\", \"\", IF(VLOOKUP(DP134,'Footnotes list'!$D$9:$E$58,2,FALSE)=0,\"\",VLOOKUP(DP134,'Footnotes list'!$D$9:$E$58,2,FALSE) ) )","v":""},null,null,null,null,{"$f":"IF(TRIM(DU134)=\"\", \"\", IF(VLOOKUP(DU134,'Footnotes list'!$D$9:$E$58,2,FALSE)=0,\"\",VLOOKUP(DU134,'Footnotes list'!$D$9:$E$58,2,FALSE) ) )","v":""},null,null,null,null,{"$f":"IF(TRIM(DZ134)=\"\", \"\", IF(VLOOKUP(DZ134,'Footnotes list'!$D$9:$E$58,2,FALSE)=0,\"\",VLOOKUP(DZ134,'Footnotes list'!$D$9:$E$58,2,FALSE) ) )","v":""},null,null,null,null,{"$f":"IF(TRIM(EE134)=\"\", \"\", IF(VLOOKUP(EE134,'Footnotes list'!$D$9:$E$58,2,FALSE)=0,\"\",VLOOKUP(EE134,'Footnotes list'!$D$9:$E$58,2,FALSE) ) )","v":""},null,null,null,null,{"$f":"IF(TRIM(EJ134)=\"\", \"\", IF(VLOOKUP(EJ134,'Footnotes list'!$D$9:$E$58,2,FALSE)=0,\"\",VLOOKUP(EJ134,'Footnotes list'!$D$9:$E$58,2,FALSE) ) )","v":""},null,null,null,null,{"$f":"IF(TRIM(EO134)=\"\", \"\", IF(VLOOKUP(EO134,'Footnotes list'!$D$9:$E$58,2,FALSE)=0,\"\",VLOOKUP(EO134,'Footnotes list'!$D$9:$E$58,2,FALSE) ) )","v":""},null,null,null,null,{"$f":"IF(TRIM(ET134)=\"\", \"\", IF(VLOOKUP(ET134,'Footnotes list'!$D$9:$E$58,2,FALSE)=0,\"\",VLOOKUP(ET134,'Footnotes list'!$D$9:$E$58,2,FALSE) ) )","v":""},null,null,null,null,{"$f":"IF(TRIM(EY134)=\"\", \"\", IF(VLOOKUP(EY134,'Footnotes list'!$D$9:$E$58,2,FALSE)=0,\"\",VLOOKUP(EY134,'Footnotes list'!$D$9:$E$58,2,FALSE) ) )","v":""}]
[null,null,"E","ANC","ancillary activities",null,null,null,null,null,{"$f":"IF(TRIM(J135)=\"\", \"\", IF(VLOOKUP(J135,'Footnotes list'!$D$9:$E$58,2,FALSE)=0,\"\",VLOOKUP(J135,'Footnotes list'!$D$9:$E$58,2,FALSE) ) )","v":""},null,null,null,null,{"$f":"IF(TRIM(O135)=\"\", \"\", IF(VLOOKUP(O135,'Footnotes list'!$D$9:$E$58,2,FALSE)=0,\"\",VLOOKUP(O135,'Footnotes list'!$D$9:$E$58,2,FALSE) ) )","v":""},null,null,null,null,{"$f":"IF(TRIM(T135)=\"\", \"\", IF(VLOOKUP(T135,'Footnotes list'!$D$9:$E$58,2,FALSE)=0,\"\",VLOOKUP(T135,'Footnotes list'!$D$9:$E$58,2,FALSE) ) )","v":""},null,null,null,null,{"$f":"IF(TRIM(Y135)=\"\", \"\", IF(VLOOKUP(Y135,'Footnotes list'!$D$9:$E$58,2,FALSE)=0,\"\",VLOOKUP(Y135,'Footnotes list'!$D$9:$E$58,2,FALSE) ) )","v":""},null,null,null,null,{"$f":"IF(TRIM(AD135)=\"\", \"\", IF(VLOOKUP(AD135,'Footnotes list'!$D$9:$E$58,2,FALSE)=0,\"\",VLOOKUP(AD135,'Footnotes list'!$D$9:$E$58,2,FALSE) ) )","v":""},null,null,null,null,{"$f":"IF(TRIM(AI135)=\"\", \"\", IF(VLOOKUP(AI135,'Footnotes list'!$D$9:$E$58,2,FALSE)=0,\"\",VLOOKUP(AI135,'Footnotes list'!$D$9:$E$58,2,FALSE) ) )","v":""},null,null,null,null,{"$f":"IF(TRIM(AN135)=\"\", \"\", IF(VLOOKUP(AN135,'Footnotes list'!$D$9:$E$58,2,FALSE)=0,\"\",VLOOKUP(AN135,'Footnotes list'!$D$9:$E$58,2,FALSE) ) )","v":""},null,null,null,null,{"$f":"IF(TRIM(AS135)=\"\", \"\", IF(VLOOKUP(AS135,'Footnotes list'!$D$9:$E$58,2,FALSE)=0,\"\",VLOOKUP(AS135,'Footnotes list'!$D$9:$E$58,2,FALSE) ) )","v":""},null,null,null,null,{"$f":"IF(TRIM(AX135)=\"\", \"\", IF(VLOOKUP(AX135,'Footnotes list'!$D$9:$E$58,2,FALSE)=0,\"\",VLOOKUP(AX135,'Footnotes list'!$D$9:$E$58,2,FALSE) ) )","v":""},null,null,null,null,{"$f":"IF(TRIM(BC135)=\"\", \"\", IF(VLOOKUP(BC135,'Footnotes list'!$D$9:$E$58,2,FALSE)=0,\"\",VLOOKUP(BC135,'Footnotes list'!$D$9:$E$58,2,FALSE) ) )","v":""},null,null,null,null,{"$f":"IF(TRIM(BH135)=\"\", \"\", IF(VLOOKUP(BH135,'Footnotes list'!$D$9:$E$58,2,FALSE)=0,\"\",VLOOKUP(BH135,'Footnotes list'!$D$9:$E$58,2,FALSE) ) )","v":""},null,null,null,null,{"$f":"IF(TRIM(BM135)=\"\", \"\", IF(VLOOKUP(BM135,'Footnotes list'!$D$9:$E$58,2,FALSE)=0,\"\",VLOOKUP(BM135,'Footnotes list'!$D$9:$E$58,2,FALSE) ) )","v":""},null,null,null,null,{"$f":"IF(TRIM(BR135)=\"\", \"\", IF(VLOOKUP(BR135,'Footnotes list'!$D$9:$E$58,2,FALSE)=0,\"\",VLOOKUP(BR135,'Footnotes list'!$D$9:$E$58,2,FALSE) ) )","v":""},null,null,null,null,{"$f":"IF(TRIM(BW135)=\"\", \"\", IF(VLOOKUP(BW135,'Footnotes list'!$D$9:$E$58,2,FALSE)=0,\"\",VLOOKUP(BW135,'Footnotes list'!$D$9:$E$58,2,FALSE) ) )","v":""},null,null,null,null,{"$f":"IF(TRIM(CB135)=\"\", \"\", IF(VLOOKUP(CB135,'Footnotes list'!$D$9:$E$58,2,FALSE)=0,\"\",VLOOKUP(CB135,'Footnotes list'!$D$9:$E$58,2,FALSE) ) )","v":""},null,null,null,null,{"$f":"IF(TRIM(CG135)=\"\", \"\", IF(VLOOKUP(CG135,'Footnotes list'!$D$9:$E$58,2,FALSE)=0,\"\",VLOOKUP(CG135,'Footnotes list'!$D$9:$E$58,2,FALSE) ) )","v":""},null,null,null,null,{"$f":"IF(TRIM(CL135)=\"\", \"\", IF(VLOOKUP(CL135,'Footnotes list'!$D$9:$E$58,2,FALSE)=0,\"\",VLOOKUP(CL135,'Footnotes list'!$D$9:$E$58,2,FALSE) ) )","v":""},null,null,null,null,{"$f":"IF(TRIM(CQ135)=\"\", \"\", IF(VLOOKUP(CQ135,'Footnotes list'!$D$9:$E$58,2,FALSE)=0,\"\",VLOOKUP(CQ135,'Footnotes list'!$D$9:$E$58,2,FALSE) ) )","v":""},null,null,null,null,{"$f":"IF(TRIM(CV135)=\"\", \"\", IF(VLOOKUP(CV135,'Footnotes list'!$D$9:$E$58,2,FALSE)=0,\"\",VLOOKUP(CV135,'Footnotes list'!$D$9:$E$58,2,FALSE) ) )","v":""},null,null,null,null,{"$f":"IF(TRIM(DA135)=\"\", \"\", IF(VLOOKUP(DA135,'Footnotes list'!$D$9:$E$58,2,FALSE)=0,\"\",VLOOKUP(DA135,'Footnotes list'!$D$9:$E$58,2,FALSE) ) )","v":""},null,null,null,null,{"$f":"IF(TRIM(DF135)=\"\", \"\", IF(VLOOKUP(DF135,'Footnotes list'!$D$9:$E$58,2,FALSE)=0,\"\",VLOOKUP(DF135,'Footnotes list'!$D$9:$E$58,2,FALSE) ) )","v":""},null,null,null,null,{"$f":"IF(TRIM(DK135)=\"\", \"\", IF(VLOOKUP(DK135,'Footnotes list'!$D$9:$E$58,2,FALSE)=0,\"\",VLOOKUP(DK135,'Footnotes list'!$D$9:$E$58,2,FALSE) ) )","v":""},null,null,null,null,{"$f":"IF(TRIM(DP135)=\"\", \"\", IF(VLOOKUP(DP135,'Footnotes list'!$D$9:$E$58,2,FALSE)=0,\"\",VLOOKUP(DP135,'Footnotes list'!$D$9:$E$58,2,FALSE) ) )","v":""},null,null,null,null,{"$f":"IF(TRIM(DU135)=\"\", \"\", IF(VLOOKUP(DU135,'Footnotes list'!$D$9:$E$58,2,FALSE)=0,\"\",VLOOKUP(DU135,'Footnotes list'!$D$9:$E$58,2,FALSE) ) )","v":""},null,null,null,null,{"$f":"IF(TRIM(DZ135)=\"\", \"\", IF(VLOOKUP(DZ135,'Footnotes list'!$D$9:$E$58,2,FALSE)=0,\"\",VLOOKUP(DZ135,'Footnotes list'!$D$9:$E$58,2,FALSE) ) )","v":""},null,null,null,null,{"$f":"IF(TRIM(EE135)=\"\", \"\", IF(VLOOKUP(EE135,'Footnotes list'!$D$9:$E$58,2,FALSE)=0,\"\",VLOOKUP(EE135,'Footnotes list'!$D$9:$E$58,2,FALSE) ) )","v":""},null,null,null,null,{"$f":"IF(TRIM(EJ135)=\"\", \"\", IF(VLOOKUP(EJ135,'Footnotes list'!$D$9:$E$58,2,FALSE)=0,\"\",VLOOKUP(EJ135,'Footnotes list'!$D$9:$E$58,2,FALSE) ) )","v":""},null,null,null,null,{"$f":"IF(TRIM(EO135)=\"\", \"\", IF(VLOOKUP(EO135,'Footnotes list'!$D$9:$E$58,2,FALSE)=0,\"\",VLOOKUP(EO135,'Footnotes list'!$D$9:$E$58,2,FALSE) ) )","v":""},null,null,null,null,{"$f":"IF(TRIM(ET135)=\"\", \"\", IF(VLOOKUP(ET135,'Footnotes list'!$D$9:$E$58,2,FALSE)=0,\"\",VLOOKUP(ET135,'Footnotes list'!$D$9:$E$58,2,FALSE) ) )","v":""},null,null,null,null,{"$f":"IF(TRIM(EY135)=\"\", \"\", IF(VLOOKUP(EY135,'Footnotes list'!$D$9:$E$58,2,FALSE)=0,\"\",VLOOKUP(EY135,'Footnotes list'!$D$9:$E$58,2,FALSE) ) )","v":""}]
[null,null,"E","NMKT","non-market activities",null,null,null,null,null,{"$f":"IF(TRIM(J136)=\"\", \"\", IF(VLOOKUP(J136,'Footnotes list'!$D$9:$E$58,2,FALSE)=0,\"\",VLOOKUP(J136,'Footnotes list'!$D$9:$E$58,2,FALSE) ) )","v":""},null,null,null,null,{"$f":"IF(TRIM(O136)=\"\", \"\", IF(VLOOKUP(O136,'Footnotes list'!$D$9:$E$58,2,FALSE)=0,\"\",VLOOKUP(O136,'Footnotes list'!$D$9:$E$58,2,FALSE) ) )","v":""},null,null,null,null,{"$f":"IF(TRIM(T136)=\"\", \"\", IF(VLOOKUP(T136,'Footnotes list'!$D$9:$E$58,2,FALSE)=0,\"\",VLOOKUP(T136,'Footnotes list'!$D$9:$E$58,2,FALSE) ) )","v":""},null,null,null,null,{"$f":"IF(TRIM(Y136)=\"\", \"\", IF(VLOOKUP(Y136,'Footnotes list'!$D$9:$E$58,2,FALSE)=0,\"\",VLOOKUP(Y136,'Footnotes list'!$D$9:$E$58,2,FALSE) ) )","v":""},null,null,null,null,{"$f":"IF(TRIM(AD136)=\"\", \"\", IF(VLOOKUP(AD136,'Footnotes list'!$D$9:$E$58,2,FALSE)=0,\"\",VLOOKUP(AD136,'Footnotes list'!$D$9:$E$58,2,FALSE) ) )","v":""},null,null,null,null,{"$f":"IF(TRIM(AI136)=\"\", \"\", IF(VLOOKUP(AI136,'Footnotes list'!$D$9:$E$58,2,FALSE)=0,\"\",VLOOKUP(AI136,'Footnotes list'!$D$9:$E$58,2,FALSE) ) )","v":""},null,null,null,null,{"$f":"IF(TRIM(AN136)=\"\", \"\", IF(VLOOKUP(AN136,'Footnotes list'!$D$9:$E$58,2,FALSE)=0,\"\",VLOOKUP(AN136,'Footnotes list'!$D$9:$E$58,2,FALSE) ) )","v":""},null,null,null,null,{"$f":"IF(TRIM(AS136)=\"\", \"\", IF(VLOOKUP(AS136,'Footnotes list'!$D$9:$E$58,2,FALSE)=0,\"\",VLOOKUP(AS136,'Footnotes list'!$D$9:$E$58,2,FALSE) ) )","v":""},null,null,null,null,{"$f":"IF(TRIM(AX136)=\"\", \"\", IF(VLOOKUP(AX136,'Footnotes list'!$D$9:$E$58,2,FALSE)=0,\"\",VLOOKUP(AX136,'Footnotes list'!$D$9:$E$58,2,FALSE) ) )","v":""},null,null,null,null,{"$f":"IF(TRIM(BC136)=\"\", \"\", IF(VLOOKUP(BC136,'Footnotes list'!$D$9:$E$58,2,FALSE)=0,\"\",VLOOKUP(BC136,'Footnotes list'!$D$9:$E$58,2,FALSE) ) )","v":""},null,null,null,null,{"$f":"IF(TRIM(BH136)=\"\", \"\", IF(VLOOKUP(BH136,'Footnotes list'!$D$9:$E$58,2,FALSE)=0,\"\",VLOOKUP(BH136,'Footnotes list'!$D$9:$E$58,2,FALSE) ) )","v":""},null,null,null,null,{"$f":"IF(TRIM(BM136)=\"\", \"\", IF(VLOOKUP(BM136,'Footnotes list'!$D$9:$E$58,2,FALSE)=0,\"\",VLOOKUP(BM136,'Footnotes list'!$D$9:$E$58,2,FALSE) ) )","v":""},null,null,null,null,{"$f":"IF(TRIM(BR136)=\"\", \"\", IF(VLOOKUP(BR136,'Footnotes list'!$D$9:$E$58,2,FALSE)=0,\"\",VLOOKUP(BR136,'Footnotes list'!$D$9:$E$58,2,FALSE) ) )","v":""},null,null,null,null,{"$f":"IF(TRIM(BW136)=\"\", \"\", IF(VLOOKUP(BW136,'Footnotes list'!$D$9:$E$58,2,FALSE)=0,\"\",VLOOKUP(BW136,'Footnotes list'!$D$9:$E$58,2,FALSE) ) )","v":""},null,null,null,null,{"$f":"IF(TRIM(CB136)=\"\", \"\", IF(VLOOKUP(CB136,'Footnotes list'!$D$9:$E$58,2,FALSE)=0,\"\",VLOOKUP(CB136,'Footnotes list'!$D$9:$E$58,2,FALSE) ) )","v":""},null,null,null,null,{"$f":"IF(TRIM(CG136)=\"\", \"\", IF(VLOOKUP(CG136,'Footnotes list'!$D$9:$E$58,2,FALSE)=0,\"\",VLOOKUP(CG136,'Footnotes list'!$D$9:$E$58,2,FALSE) ) )","v":""},null,null,null,null,{"$f":"IF(TRIM(CL136)=\"\", \"\", IF(VLOOKUP(CL136,'Footnotes list'!$D$9:$E$58,2,FALSE)=0,\"\",VLOOKUP(CL136,'Footnotes list'!$D$9:$E$58,2,FALSE) ) )","v":""},null,null,null,null,{"$f":"IF(TRIM(CQ136)=\"\", \"\", IF(VLOOKUP(CQ136,'Footnotes list'!$D$9:$E$58,2,FALSE)=0,\"\",VLOOKUP(CQ136,'Footnotes list'!$D$9:$E$58,2,FALSE) ) )","v":""},null,null,null,null,{"$f":"IF(TRIM(CV136)=\"\", \"\", IF(VLOOKUP(CV136,'Footnotes list'!$D$9:$E$58,2,FALSE)=0,\"\",VLOOKUP(CV136,'Footnotes list'!$D$9:$E$58,2,FALSE) ) )","v":""},null,null,null,null,{"$f":"IF(TRIM(DA136)=\"\", \"\", IF(VLOOKUP(DA136,'Footnotes list'!$D$9:$E$58,2,FALSE)=0,\"\",VLOOKUP(DA136,'Footnotes list'!$D$9:$E$58,2,FALSE) ) )","v":""},null,null,null,null,{"$f":"IF(TRIM(DF136)=\"\", \"\", IF(VLOOKUP(DF136,'Footnotes list'!$D$9:$E$58,2,FALSE)=0,\"\",VLOOKUP(DF136,'Footnotes list'!$D$9:$E$58,2,FALSE) ) )","v":""},null,null,null,null,{"$f":"IF(TRIM(DK136)=\"\", \"\", IF(VLOOKUP(DK136,'Footnotes list'!$D$9:$E$58,2,FALSE)=0,\"\",VLOOKUP(DK136,'Footnotes list'!$D$9:$E$58,2,FALSE) ) )","v":""},null,null,null,null,{"$f":"IF(TRIM(DP136)=\"\", \"\", IF(VLOOKUP(DP136,'Footnotes list'!$D$9:$E$58,2,FALSE)=0,\"\",VLOOKUP(DP136,'Footnotes list'!$D$9:$E$58,2,FALSE) ) )","v":""},null,null,null,null,{"$f":"IF(TRIM(DU136)=\"\", \"\", IF(VLOOKUP(DU136,'Footnotes list'!$D$9:$E$58,2,FALSE)=0,\"\",VLOOKUP(DU136,'Footnotes list'!$D$9:$E$58,2,FALSE) ) )","v":""},null,null,null,null,{"$f":"IF(TRIM(DZ136)=\"\", \"\", IF(VLOOKUP(DZ136,'Footnotes list'!$D$9:$E$58,2,FALSE)=0,\"\",VLOOKUP(DZ136,'Footnotes list'!$D$9:$E$58,2,FALSE) ) )","v":""},null,null,null,null,{"$f":"IF(TRIM(EE136)=\"\", \"\", IF(VLOOKUP(EE136,'Footnotes list'!$D$9:$E$58,2,FALSE)=0,\"\",VLOOKUP(EE136,'Footnotes list'!$D$9:$E$58,2,FALSE) ) )","v":""},null,null,null,null,{"$f":"IF(TRIM(EJ136)=\"\", \"\", IF(VLOOKUP(EJ136,'Footnotes list'!$D$9:$E$58,2,FALSE)=0,\"\",VLOOKUP(EJ136,'Footnotes list'!$D$9:$E$58,2,FALSE) ) )","v":""},null,null,null,null,{"$f":"IF(TRIM(EO136)=\"\", \"\", IF(VLOOKUP(EO136,'Footnotes list'!$D$9:$E$58,2,FALSE)=0,\"\",VLOOKUP(EO136,'Footnotes list'!$D$9:$E$58,2,FALSE) ) )","v":""},null,null,null,null,{"$f":"IF(TRIM(ET136)=\"\", \"\", IF(VLOOKUP(ET136,'Footnotes list'!$D$9:$E$58,2,FALSE)=0,\"\",VLOOKUP(ET136,'Footnotes list'!$D$9:$E$58,2,FALSE) ) )","v":""},null,null,null,null,{"$f":"IF(TRIM(EY136)=\"\", \"\", IF(VLOOKUP(EY136,'Footnotes list'!$D$9:$E$58,2,FALSE)=0,\"\",VLOOKUP(EY136,'Footnotes list'!$D$9:$E$58,2,FALSE) ) )","v":""}]
[null,null,"E","OWN_USE","activities for own final use",null,null,null,null,null,{"$f":"IF(TRIM(J137)=\"\", \"\", IF(VLOOKUP(J137,'Footnotes list'!$D$9:$E$58,2,FALSE)=0,\"\",VLOOKUP(J137,'Footnotes list'!$D$9:$E$58,2,FALSE) ) )","v":""},null,null,null,null,{"$f":"IF(TRIM(O137)=\"\", \"\", IF(VLOOKUP(O137,'Footnotes list'!$D$9:$E$58,2,FALSE)=0,\"\",VLOOKUP(O137,'Footnotes list'!$D$9:$E$58,2,FALSE) ) )","v":""},null,null,null,null,{"$f":"IF(TRIM(T137)=\"\", \"\", IF(VLOOKUP(T137,'Footnotes list'!$D$9:$E$58,2,FALSE)=0,\"\",VLOOKUP(T137,'Footnotes list'!$D$9:$E$58,2,FALSE) ) )","v":""},null,null,null,null,{"$f":"IF(TRIM(Y137)=\"\", \"\", IF(VLOOKUP(Y137,'Footnotes list'!$D$9:$E$58,2,FALSE)=0,\"\",VLOOKUP(Y137,'Footnotes list'!$D$9:$E$58,2,FALSE) ) )","v":""},null,null,null,null,{"$f":"IF(TRIM(AD137)=\"\", \"\", IF(VLOOKUP(AD137,'Footnotes list'!$D$9:$E$58,2,FALSE)=0,\"\",VLOOKUP(AD137,'Footnotes list'!$D$9:$E$58,2,FALSE) ) )","v":""},null,null,null,null,{"$f":"IF(TRIM(AI137)=\"\", \"\", IF(VLOOKUP(AI137,'Footnotes list'!$D$9:$E$58,2,FALSE)=0,\"\",VLOOKUP(AI137,'Footnotes list'!$D$9:$E$58,2,FALSE) ) )","v":""},null,null,null,null,{"$f":"IF(TRIM(AN137)=\"\", \"\", IF(VLOOKUP(AN137,'Footnotes list'!$D$9:$E$58,2,FALSE)=0,\"\",VLOOKUP(AN137,'Footnotes list'!$D$9:$E$58,2,FALSE) ) )","v":""},null,null,null,null,{"$f":"IF(TRIM(AS137)=\"\", \"\", IF(VLOOKUP(AS137,'Footnotes list'!$D$9:$E$58,2,FALSE)=0,\"\",VLOOKUP(AS137,'Footnotes list'!$D$9:$E$58,2,FALSE) ) )","v":""},null,null,null,null,{"$f":"IF(TRIM(AX137)=\"\", \"\", IF(VLOOKUP(AX137,'Footnotes list'!$D$9:$E$58,2,FALSE)=0,\"\",VLOOKUP(AX137,'Footnotes list'!$D$9:$E$58,2,FALSE) ) )","v":""},null,null,null,null,{"$f":"IF(TRIM(BC137)=\"\", \"\", IF(VLOOKUP(BC137,'Footnotes list'!$D$9:$E$58,2,FALSE)=0,\"\",VLOOKUP(BC137,'Footnotes list'!$D$9:$E$58,2,FALSE) ) )","v":""},null,null,null,null,{"$f":"IF(TRIM(BH137)=\"\", \"\", IF(VLOOKUP(BH137,'Footnotes list'!$D$9:$E$58,2,FALSE)=0,\"\",VLOOKUP(BH137,'Footnotes list'!$D$9:$E$58,2,FALSE) ) )","v":""},null,null,null,null,{"$f":"IF(TRIM(BM137)=\"\", \"\", IF(VLOOKUP(BM137,'Footnotes list'!$D$9:$E$58,2,FALSE)=0,\"\",VLOOKUP(BM137,'Footnotes list'!$D$9:$E$58,2,FALSE) ) )","v":""},null,null,null,null,{"$f":"IF(TRIM(BR137)=\"\", \"\", IF(VLOOKUP(BR137,'Footnotes list'!$D$9:$E$58,2,FALSE)=0,\"\",VLOOKUP(BR137,'Footnotes list'!$D$9:$E$58,2,FALSE) ) )","v":""},null,null,null,null,{"$f":"IF(TRIM(BW137)=\"\", \"\", IF(VLOOKUP(BW137,'Footnotes list'!$D$9:$E$58,2,FALSE)=0,\"\",VLOOKUP(BW137,'Footnotes list'!$D$9:$E$58,2,FALSE) ) )","v":""},null,null,null,null,{"$f":"IF(TRIM(CB137)=\"\", \"\", IF(VLOOKUP(CB137,'Footnotes list'!$D$9:$E$58,2,FALSE)=0,\"\",VLOOKUP(CB137,'Footnotes list'!$D$9:$E$58,2,FALSE) ) )","v":""},null,null,null,null,{"$f":"IF(TRIM(CG137)=\"\", \"\", IF(VLOOKUP(CG137,'Footnotes list'!$D$9:$E$58,2,FALSE)=0,\"\",VLOOKUP(CG137,'Footnotes list'!$D$9:$E$58,2,FALSE) ) )","v":""},null,null,null,null,{"$f":"IF(TRIM(CL137)=\"\", \"\", IF(VLOOKUP(CL137,'Footnotes list'!$D$9:$E$58,2,FALSE)=0,\"\",VLOOKUP(CL137,'Footnotes list'!$D$9:$E$58,2,FALSE) ) )","v":""},null,null,null,null,{"$f":"IF(TRIM(CQ137)=\"\", \"\", IF(VLOOKUP(CQ137,'Footnotes list'!$D$9:$E$58,2,FALSE)=0,\"\",VLOOKUP(CQ137,'Footnotes list'!$D$9:$E$58,2,FALSE) ) )","v":""},null,null,null,null,{"$f":"IF(TRIM(CV137)=\"\", \"\", IF(VLOOKUP(CV137,'Footnotes list'!$D$9:$E$58,2,FALSE)=0,\"\",VLOOKUP(CV137,'Footnotes list'!$D$9:$E$58,2,FALSE) ) )","v":""},null,null,null,null,{"$f":"IF(TRIM(DA137)=\"\", \"\", IF(VLOOKUP(DA137,'Footnotes list'!$D$9:$E$58,2,FALSE)=0,\"\",VLOOKUP(DA137,'Footnotes list'!$D$9:$E$58,2,FALSE) ) )","v":""},null,null,null,null,{"$f":"IF(TRIM(DF137)=\"\", \"\", IF(VLOOKUP(DF137,'Footnotes list'!$D$9:$E$58,2,FALSE)=0,\"\",VLOOKUP(DF137,'Footnotes list'!$D$9:$E$58,2,FALSE) ) )","v":""},null,null,null,null,{"$f":"IF(TRIM(DK137)=\"\", \"\", IF(VLOOKUP(DK137,'Footnotes list'!$D$9:$E$58,2,FALSE)=0,\"\",VLOOKUP(DK137,'Footnotes list'!$D$9:$E$58,2,FALSE) ) )","v":""},null,null,null,null,{"$f":"IF(TRIM(DP137)=\"\", \"\", IF(VLOOKUP(DP137,'Footnotes list'!$D$9:$E$58,2,FALSE)=0,\"\",VLOOKUP(DP137,'Footnotes list'!$D$9:$E$58,2,FALSE) ) )","v":""},null,null,null,null,{"$f":"IF(TRIM(DU137)=\"\", \"\", IF(VLOOKUP(DU137,'Footnotes list'!$D$9:$E$58,2,FALSE)=0,\"\",VLOOKUP(DU137,'Footnotes list'!$D$9:$E$58,2,FALSE) ) )","v":""},null,null,null,null,{"$f":"IF(TRIM(DZ137)=\"\", \"\", IF(VLOOKUP(DZ137,'Footnotes list'!$D$9:$E$58,2,FALSE)=0,\"\",VLOOKUP(DZ137,'Footnotes list'!$D$9:$E$58,2,FALSE) ) )","v":""},null,null,null,null,{"$f":"IF(TRIM(EE137)=\"\", \"\", IF(VLOOKUP(EE137,'Footnotes list'!$D$9:$E$58,2,FALSE)=0,\"\",VLOOKUP(EE137,'Footnotes list'!$D$9:$E$58,2,FALSE) ) )","v":""},null,null,null,null,{"$f":"IF(TRIM(EJ137)=\"\", \"\", IF(VLOOKUP(EJ137,'Footnotes list'!$D$9:$E$58,2,FALSE)=0,\"\",VLOOKUP(EJ137,'Footnotes list'!$D$9:$E$58,2,FALSE) ) )","v":""},null,null,null,null,{"$f":"IF(TRIM(EO137)=\"\", \"\", IF(VLOOKUP(EO137,'Footnotes list'!$D$9:$E$58,2,FALSE)=0,\"\",VLOOKUP(EO137,'Footnotes list'!$D$9:$E$58,2,FALSE) ) )","v":""},null,null,null,null,{"$f":"IF(TRIM(ET137)=\"\", \"\", IF(VLOOKUP(ET137,'Footnotes list'!$D$9:$E$58,2,FALSE)=0,\"\",VLOOKUP(ET137,'Footnotes list'!$D$9:$E$58,2,FALSE) ) )","v":""},null,null,null,null,{"$f":"IF(TRIM(EY137)=\"\", \"\", IF(VLOOKUP(EY137,'Footnotes list'!$D$9:$E$58,2,FALSE)=0,\"\",VLOOKUP(EY137,'Footnotes list'!$D$9:$E$58,2,FALSE) ) )","v":""}]
[null,null,"E","MKT","market activities, including:",null,null,null,null,null,{"$f":"IF(TRIM(J138)=\"\", \"\", IF(VLOOKUP(J138,'Footnotes list'!$D$9:$E$58,2,FALSE)=0,\"\",VLOOKUP(J138,'Footnotes list'!$D$9:$E$58,2,FALSE) ) )","v":""},null,null,null,null,{"$f":"IF(TRIM(O138)=\"\", \"\", IF(VLOOKUP(O138,'Footnotes list'!$D$9:$E$58,2,FALSE)=0,\"\",VLOOKUP(O138,'Footnotes list'!$D$9:$E$58,2,FALSE) ) )","v":""},null,null,null,null,{"$f":"IF(TRIM(T138)=\"\", \"\", IF(VLOOKUP(T138,'Footnotes list'!$D$9:$E$58,2,FALSE)=0,\"\",VLOOKUP(T138,'Footnotes list'!$D$9:$E$58,2,FALSE) ) )","v":""},null,null,null,null,{"$f":"IF(TRIM(Y138)=\"\", \"\", IF(VLOOKUP(Y138,'Footnotes list'!$D$9:$E$58,2,FALSE)=0,\"\",VLOOKUP(Y138,'Footnotes list'!$D$9:$E$58,2,FALSE) ) )","v":""},null,null,null,null,{"$f":"IF(TRIM(AD138)=\"\", \"\", IF(VLOOKUP(AD138,'Footnotes list'!$D$9:$E$58,2,FALSE)=0,\"\",VLOOKUP(AD138,'Footnotes list'!$D$9:$E$58,2,FALSE) ) )","v":""},null,null,null,null,{"$f":"IF(TRIM(AI138)=\"\", \"\", IF(VLOOKUP(AI138,'Footnotes list'!$D$9:$E$58,2,FALSE)=0,\"\",VLOOKUP(AI138,'Footnotes list'!$D$9:$E$58,2,FALSE) ) )","v":""},null,null,null,null,{"$f":"IF(TRIM(AN138)=\"\", \"\", IF(VLOOKUP(AN138,'Footnotes list'!$D$9:$E$58,2,FALSE)=0,\"\",VLOOKUP(AN138,'Footnotes list'!$D$9:$E$58,2,FALSE) ) )","v":""},null,null,null,null,{"$f":"IF(TRIM(AS138)=\"\", \"\", IF(VLOOKUP(AS138,'Footnotes list'!$D$9:$E$58,2,FALSE)=0,\"\",VLOOKUP(AS138,'Footnotes list'!$D$9:$E$58,2,FALSE) ) )","v":""},null,null,null,null,{"$f":"IF(TRIM(AX138)=\"\", \"\", IF(VLOOKUP(AX138,'Footnotes list'!$D$9:$E$58,2,FALSE)=0,\"\",VLOOKUP(AX138,'Footnotes list'!$D$9:$E$58,2,FALSE) ) )","v":""},null,null,null,null,{"$f":"IF(TRIM(BC138)=\"\", \"\", IF(VLOOKUP(BC138,'Footnotes list'!$D$9:$E$58,2,FALSE)=0,\"\",VLOOKUP(BC138,'Footnotes list'!$D$9:$E$58,2,FALSE) ) )","v":""},null,null,null,null,{"$f":"IF(TRIM(BH138)=\"\", \"\", IF(VLOOKUP(BH138,'Footnotes list'!$D$9:$E$58,2,FALSE)=0,\"\",VLOOKUP(BH138,'Footnotes list'!$D$9:$E$58,2,FALSE) ) )","v":""},null,null,null,null,{"$f":"IF(TRIM(BM138)=\"\", \"\", IF(VLOOKUP(BM138,'Footnotes list'!$D$9:$E$58,2,FALSE)=0,\"\",VLOOKUP(BM138,'Footnotes list'!$D$9:$E$58,2,FALSE) ) )","v":""},null,null,null,null,{"$f":"IF(TRIM(BR138)=\"\", \"\", IF(VLOOKUP(BR138,'Footnotes list'!$D$9:$E$58,2,FALSE)=0,\"\",VLOOKUP(BR138,'Footnotes list'!$D$9:$E$58,2,FALSE) ) )","v":""},null,null,null,null,{"$f":"IF(TRIM(BW138)=\"\", \"\", IF(VLOOKUP(BW138,'Footnotes list'!$D$9:$E$58,2,FALSE)=0,\"\",VLOOKUP(BW138,'Footnotes list'!$D$9:$E$58,2,FALSE) ) )","v":""},null,null,null,null,{"$f":"IF(TRIM(CB138)=\"\", \"\", IF(VLOOKUP(CB138,'Footnotes list'!$D$9:$E$58,2,FALSE)=0,\"\",VLOOKUP(CB138,'Footnotes list'!$D$9:$E$58,2,FALSE) ) )","v":""},null,null,null,null,{"$f":"IF(TRIM(CG138)=\"\", \"\", IF(VLOOKUP(CG138,'Footnotes list'!$D$9:$E$58,2,FALSE)=0,\"\",VLOOKUP(CG138,'Footnotes list'!$D$9:$E$58,2,FALSE) ) )","v":""},null,null,null,null,{"$f":"IF(TRIM(CL138)=\"\", \"\", IF(VLOOKUP(CL138,'Footnotes list'!$D$9:$E$58,2,FALSE)=0,\"\",VLOOKUP(CL138,'Footnotes list'!$D$9:$E$58,2,FALSE) ) )","v":""},null,null,null,null,{"$f":"IF(TRIM(CQ138)=\"\", \"\", IF(VLOOKUP(CQ138,'Footnotes list'!$D$9:$E$58,2,FALSE)=0,\"\",VLOOKUP(CQ138,'Footnotes list'!$D$9:$E$58,2,FALSE) ) )","v":""},null,null,null,null,{"$f":"IF(TRIM(CV138)=\"\", \"\", IF(VLOOKUP(CV138,'Footnotes list'!$D$9:$E$58,2,FALSE)=0,\"\",VLOOKUP(CV138,'Footnotes list'!$D$9:$E$58,2,FALSE) ) )","v":""},null,null,null,null,{"$f":"IF(TRIM(DA138)=\"\", \"\", IF(VLOOKUP(DA138,'Footnotes list'!$D$9:$E$58,2,FALSE)=0,\"\",VLOOKUP(DA138,'Footnotes list'!$D$9:$E$58,2,FALSE) ) )","v":""},null,null,null,null,{"$f":"IF(TRIM(DF138)=\"\", \"\", IF(VLOOKUP(DF138,'Footnotes list'!$D$9:$E$58,2,FALSE)=0,\"\",VLOOKUP(DF138,'Footnotes list'!$D$9:$E$58,2,FALSE) ) )","v":""},null,null,null,null,{"$f":"IF(TRIM(DK138)=\"\", \"\", IF(VLOOKUP(DK138,'Footnotes list'!$D$9:$E$58,2,FALSE)=0,\"\",VLOOKUP(DK138,'Footnotes list'!$D$9:$E$58,2,FALSE) ) )","v":""},null,null,null,null,{"$f":"IF(TRIM(DP138)=\"\", \"\", IF(VLOOKUP(DP138,'Footnotes list'!$D$9:$E$58,2,FALSE)=0,\"\",VLOOKUP(DP138,'Footnotes list'!$D$9:$E$58,2,FALSE) ) )","v":""},null,null,null,null,{"$f":"IF(TRIM(DU138)=\"\", \"\", IF(VLOOKUP(DU138,'Footnotes list'!$D$9:$E$58,2,FALSE)=0,\"\",VLOOKUP(DU138,'Footnotes list'!$D$9:$E$58,2,FALSE) ) )","v":""},null,null,null,null,{"$f":"IF(TRIM(DZ138)=\"\", \"\", IF(VLOOKUP(DZ138,'Footnotes list'!$D$9:$E$58,2,FALSE)=0,\"\",VLOOKUP(DZ138,'Footnotes list'!$D$9:$E$58,2,FALSE) ) )","v":""},null,null,null,null,{"$f":"IF(TRIM(EE138)=\"\", \"\", IF(VLOOKUP(EE138,'Footnotes list'!$D$9:$E$58,2,FALSE)=0,\"\",VLOOKUP(EE138,'Footnotes list'!$D$9:$E$58,2,FALSE) ) )","v":""},null,null,null,null,{"$f":"IF(TRIM(EJ138)=\"\", \"\", IF(VLOOKUP(EJ138,'Footnotes list'!$D$9:$E$58,2,FALSE)=0,\"\",VLOOKUP(EJ138,'Footnotes list'!$D$9:$E$58,2,FALSE) ) )","v":""},null,null,null,null,{"$f":"IF(TRIM(EO138)=\"\", \"\", IF(VLOOKUP(EO138,'Footnotes list'!$D$9:$E$58,2,FALSE)=0,\"\",VLOOKUP(EO138,'Footnotes list'!$D$9:$E$58,2,FALSE) ) )","v":""},null,null,null,null,{"$f":"IF(TRIM(ET138)=\"\", \"\", IF(VLOOKUP(ET138,'Footnotes list'!$D$9:$E$58,2,FALSE)=0,\"\",VLOOKUP(ET138,'Footnotes list'!$D$9:$E$58,2,FALSE) ) )","v":""},null,null,null,null,{"$f":"IF(TRIM(EY138)=\"\", \"\", IF(VLOOKUP(EY138,'Footnotes list'!$D$9:$E$58,2,FALSE)=0,\"\",VLOOKUP(EY138,'Footnotes list'!$D$9:$E$58,2,FALSE) ) )","v":""}]
[null,null,"E","ES_CS","environmental specific services",null,null,null,null,null,{"$f":"IF(TRIM(J139)=\"\", \"\", IF(VLOOKUP(J139,'Footnotes list'!$D$9:$E$58,2,FALSE)=0,\"\",VLOOKUP(J139,'Footnotes list'!$D$9:$E$58,2,FALSE) ) )","v":""},null,null,null,null,{"$f":"IF(TRIM(O139)=\"\", \"\", IF(VLOOKUP(O139,'Footnotes list'!$D$9:$E$58,2,FALSE)=0,\"\",VLOOKUP(O139,'Footnotes list'!$D$9:$E$58,2,FALSE) ) )","v":""},null,null,null,null,{"$f":"IF(TRIM(T139)=\"\", \"\", IF(VLOOKUP(T139,'Footnotes list'!$D$9:$E$58,2,FALSE)=0,\"\",VLOOKUP(T139,'Footnotes list'!$D$9:$E$58,2,FALSE) ) )","v":""},null,null,null,null,{"$f":"IF(TRIM(Y139)=\"\", \"\", IF(VLOOKUP(Y139,'Footnotes list'!$D$9:$E$58,2,FALSE)=0,\"\",VLOOKUP(Y139,'Footnotes list'!$D$9:$E$58,2,FALSE) ) )","v":""},null,null,null,null,{"$f":"IF(TRIM(AD139)=\"\", \"\", IF(VLOOKUP(AD139,'Footnotes list'!$D$9:$E$58,2,FALSE)=0,\"\",VLOOKUP(AD139,'Footnotes list'!$D$9:$E$58,2,FALSE) ) )","v":""},null,null,null,null,{"$f":"IF(TRIM(AI139)=\"\", \"\", IF(VLOOKUP(AI139,'Footnotes list'!$D$9:$E$58,2,FALSE)=0,\"\",VLOOKUP(AI139,'Footnotes list'!$D$9:$E$58,2,FALSE) ) )","v":""},null,null,null,null,{"$f":"IF(TRIM(AN139)=\"\", \"\", IF(VLOOKUP(AN139,'Footnotes list'!$D$9:$E$58,2,FALSE)=0,\"\",VLOOKUP(AN139,'Footnotes list'!$D$9:$E$58,2,FALSE) ) )","v":""},null,null,null,null,{"$f":"IF(TRIM(AS139)=\"\", \"\", IF(VLOOKUP(AS139,'Footnotes list'!$D$9:$E$58,2,FALSE)=0,\"\",VLOOKUP(AS139,'Footnotes list'!$D$9:$E$58,2,FALSE) ) )","v":""},null,null,null,null,{"$f":"IF(TRIM(AX139)=\"\", \"\", IF(VLOOKUP(AX139,'Footnotes list'!$D$9:$E$58,2,FALSE)=0,\"\",VLOOKUP(AX139,'Footnotes list'!$D$9:$E$58,2,FALSE) ) )","v":""},null,null,null,null,{"$f":"IF(TRIM(BC139)=\"\", \"\", IF(VLOOKUP(BC139,'Footnotes list'!$D$9:$E$58,2,FALSE)=0,\"\",VLOOKUP(BC139,'Footnotes list'!$D$9:$E$58,2,FALSE) ) )","v":""},null,null,null,null,{"$f":"IF(TRIM(BH139)=\"\", \"\", IF(VLOOKUP(BH139,'Footnotes list'!$D$9:$E$58,2,FALSE)=0,\"\",VLOOKUP(BH139,'Footnotes list'!$D$9:$E$58,2,FALSE) ) )","v":""},null,null,null,null,{"$f":"IF(TRIM(BM139)=\"\", \"\", IF(VLOOKUP(BM139,'Footnotes list'!$D$9:$E$58,2,FALSE)=0,\"\",VLOOKUP(BM139,'Footnotes list'!$D$9:$E$58,2,FALSE) ) )","v":""},null,null,null,null,{"$f":"IF(TRIM(BR139)=\"\", \"\", IF(VLOOKUP(BR139,'Footnotes list'!$D$9:$E$58,2,FALSE)=0,\"\",VLOOKUP(BR139,'Footnotes list'!$D$9:$E$58,2,FALSE) ) )","v":""},null,null,null,null,{"$f":"IF(TRIM(BW139)=\"\", \"\", IF(VLOOKUP(BW139,'Footnotes list'!$D$9:$E$58,2,FALSE)=0,\"\",VLOOKUP(BW139,'Footnotes list'!$D$9:$E$58,2,FALSE) ) )","v":""},null,null,null,null,{"$f":"IF(TRIM(CB139)=\"\", \"\", IF(VLOOKUP(CB139,'Footnotes list'!$D$9:$E$58,2,FALSE)=0,\"\",VLOOKUP(CB139,'Footnotes list'!$D$9:$E$58,2,FALSE) ) )","v":""},null,null,null,null,{"$f":"IF(TRIM(CG139)=\"\", \"\", IF(VLOOKUP(CG139,'Footnotes list'!$D$9:$E$58,2,FALSE)=0,\"\",VLOOKUP(CG139,'Footnotes list'!$D$9:$E$58,2,FALSE) ) )","v":""},null,null,null,null,{"$f":"IF(TRIM(CL139)=\"\", \"\", IF(VLOOKUP(CL139,'Footnotes list'!$D$9:$E$58,2,FALSE)=0,\"\",VLOOKUP(CL139,'Footnotes list'!$D$9:$E$58,2,FALSE) ) )","v":""},null,null,null,null,{"$f":"IF(TRIM(CQ139)=\"\", \"\", IF(VLOOKUP(CQ139,'Footnotes list'!$D$9:$E$58,2,FALSE)=0,\"\",VLOOKUP(CQ139,'Footnotes list'!$D$9:$E$58,2,FALSE) ) )","v":""},null,null,null,null,{"$f":"IF(TRIM(CV139)=\"\", \"\", IF(VLOOKUP(CV139,'Footnotes list'!$D$9:$E$58,2,FALSE)=0,\"\",VLOOKUP(CV139,'Footnotes list'!$D$9:$E$58,2,FALSE) ) )","v":""},null,null,null,null,{"$f":"IF(TRIM(DA139)=\"\", \"\", IF(VLOOKUP(DA139,'Footnotes list'!$D$9:$E$58,2,FALSE)=0,\"\",VLOOKUP(DA139,'Footnotes list'!$D$9:$E$58,2,FALSE) ) )","v":""},null,null,null,null,{"$f":"IF(TRIM(DF139)=\"\", \"\", IF(VLOOKUP(DF139,'Footnotes list'!$D$9:$E$58,2,FALSE)=0,\"\",VLOOKUP(DF139,'Footnotes list'!$D$9:$E$58,2,FALSE) ) )","v":""},null,null,null,null,{"$f":"IF(TRIM(DK139)=\"\", \"\", IF(VLOOKUP(DK139,'Footnotes list'!$D$9:$E$58,2,FALSE)=0,\"\",VLOOKUP(DK139,'Footnotes list'!$D$9:$E$58,2,FALSE) ) )","v":""},null,null,null,null,{"$f":"IF(TRIM(DP139)=\"\", \"\", IF(VLOOKUP(DP139,'Footnotes list'!$D$9:$E$58,2,FALSE)=0,\"\",VLOOKUP(DP139,'Footnotes list'!$D$9:$E$58,2,FALSE) ) )","v":""},null,null,null,null,{"$f":"IF(TRIM(DU139)=\"\", \"\", IF(VLOOKUP(DU139,'Footnotes list'!$D$9:$E$58,2,FALSE)=0,\"\",VLOOKUP(DU139,'Footnotes list'!$D$9:$E$58,2,FALSE) ) )","v":""},null,null,null,null,{"$f":"IF(TRIM(DZ139)=\"\", \"\", IF(VLOOKUP(DZ139,'Footnotes list'!$D$9:$E$58,2,FALSE)=0,\"\",VLOOKUP(DZ139,'Footnotes list'!$D$9:$E$58,2,FALSE) ) )","v":""},null,null,null,null,{"$f":"IF(TRIM(EE139)=\"\", \"\", IF(VLOOKUP(EE139,'Footnotes list'!$D$9:$E$58,2,FALSE)=0,\"\",VLOOKUP(EE139,'Footnotes list'!$D$9:$E$58,2,FALSE) ) )","v":""},null,null,null,null,{"$f":"IF(TRIM(EJ139)=\"\", \"\", IF(VLOOKUP(EJ139,'Footnotes list'!$D$9:$E$58,2,FALSE)=0,\"\",VLOOKUP(EJ139,'Footnotes list'!$D$9:$E$58,2,FALSE) ) )","v":""},null,null,null,null,{"$f":"IF(TRIM(EO139)=\"\", \"\", IF(VLOOKUP(EO139,'Footnotes list'!$D$9:$E$58,2,FALSE)=0,\"\",VLOOKUP(EO139,'Footnotes list'!$D$9:$E$58,2,FALSE) ) )","v":""},null,null,null,null,{"$f":"IF(TRIM(ET139)=\"\", \"\", IF(VLOOKUP(ET139,'Footnotes list'!$D$9:$E$58,2,FALSE)=0,\"\",VLOOKUP(ET139,'Footnotes list'!$D$9:$E$58,2,FALSE) ) )","v":""},null,null,null,null,{"$f":"IF(TRIM(EY139)=\"\", \"\", IF(VLOOKUP(EY139,'Footnotes list'!$D$9:$E$58,2,FALSE)=0,\"\",VLOOKUP(EY139,'Footnotes list'!$D$9:$E$58,2,FALSE) ) )","v":""}]
[null,null,"E","C_REP","cleaner and resource efficient products",null,null,null,null,null,{"$f":"IF(TRIM(J140)=\"\", \"\", IF(VLOOKUP(J140,'Footnotes list'!$D$9:$E$58,2,FALSE)=0,\"\",VLOOKUP(J140,'Footnotes list'!$D$9:$E$58,2,FALSE) ) )","v":""},null,null,null,null,{"$f":"IF(TRIM(O140)=\"\", \"\", IF(VLOOKUP(O140,'Footnotes list'!$D$9:$E$58,2,FALSE)=0,\"\",VLOOKUP(O140,'Footnotes list'!$D$9:$E$58,2,FALSE) ) )","v":""},null,null,null,null,{"$f":"IF(TRIM(T140)=\"\", \"\", IF(VLOOKUP(T140,'Footnotes list'!$D$9:$E$58,2,FALSE)=0,\"\",VLOOKUP(T140,'Footnotes list'!$D$9:$E$58,2,FALSE) ) )","v":""},null,null,null,null,{"$f":"IF(TRIM(Y140)=\"\", \"\", IF(VLOOKUP(Y140,'Footnotes list'!$D$9:$E$58,2,FALSE)=0,\"\",VLOOKUP(Y140,'Footnotes list'!$D$9:$E$58,2,FALSE) ) )","v":""},null,null,null,null,{"$f":"IF(TRIM(AD140)=\"\", \"\", IF(VLOOKUP(AD140,'Footnotes list'!$D$9:$E$58,2,FALSE)=0,\"\",VLOOKUP(AD140,'Footnotes list'!$D$9:$E$58,2,FALSE) ) )","v":""},null,null,null,null,{"$f":"IF(TRIM(AI140)=\"\", \"\", IF(VLOOKUP(AI140,'Footnotes list'!$D$9:$E$58,2,FALSE)=0,\"\",VLOOKUP(AI140,'Footnotes list'!$D$9:$E$58,2,FALSE) ) )","v":""},null,null,null,null,{"$f":"IF(TRIM(AN140)=\"\", \"\", IF(VLOOKUP(AN140,'Footnotes list'!$D$9:$E$58,2,FALSE)=0,\"\",VLOOKUP(AN140,'Footnotes list'!$D$9:$E$58,2,FALSE) ) )","v":""},null,null,null,null,{"$f":"IF(TRIM(AS140)=\"\", \"\", IF(VLOOKUP(AS140,'Footnotes list'!$D$9:$E$58,2,FALSE)=0,\"\",VLOOKUP(AS140,'Footnotes list'!$D$9:$E$58,2,FALSE) ) )","v":""},null,null,null,null,{"$f":"IF(TRIM(AX140)=\"\", \"\", IF(VLOOKUP(AX140,'Footnotes list'!$D$9:$E$58,2,FALSE)=0,\"\",VLOOKUP(AX140,'Footnotes list'!$D$9:$E$58,2,FALSE) ) )","v":""},null,null,null,null,{"$f":"IF(TRIM(BC140)=\"\", \"\", IF(VLOOKUP(BC140,'Footnotes list'!$D$9:$E$58,2,FALSE)=0,\"\",VLOOKUP(BC140,'Footnotes list'!$D$9:$E$58,2,FALSE) ) )","v":""},null,null,null,null,{"$f":"IF(TRIM(BH140)=\"\", \"\", IF(VLOOKUP(BH140,'Footnotes list'!$D$9:$E$58,2,FALSE)=0,\"\",VLOOKUP(BH140,'Footnotes list'!$D$9:$E$58,2,FALSE) ) )","v":""},null,null,null,null,{"$f":"IF(TRIM(BM140)=\"\", \"\", IF(VLOOKUP(BM140,'Footnotes list'!$D$9:$E$58,2,FALSE)=0,\"\",VLOOKUP(BM140,'Footnotes list'!$D$9:$E$58,2,FALSE) ) )","v":""},null,null,null,null,{"$f":"IF(TRIM(BR140)=\"\", \"\", IF(VLOOKUP(BR140,'Footnotes list'!$D$9:$E$58,2,FALSE)=0,\"\",VLOOKUP(BR140,'Footnotes list'!$D$9:$E$58,2,FALSE) ) )","v":""},null,null,null,null,{"$f":"IF(TRIM(BW140)=\"\", \"\", IF(VLOOKUP(BW140,'Footnotes list'!$D$9:$E$58,2,FALSE)=0,\"\",VLOOKUP(BW140,'Footnotes list'!$D$9:$E$58,2,FALSE) ) )","v":""},null,null,null,null,{"$f":"IF(TRIM(CB140)=\"\", \"\", IF(VLOOKUP(CB140,'Footnotes list'!$D$9:$E$58,2,FALSE)=0,\"\",VLOOKUP(CB140,'Footnotes list'!$D$9:$E$58,2,FALSE) ) )","v":""},null,null,null,null,{"$f":"IF(TRIM(CG140)=\"\", \"\", IF(VLOOKUP(CG140,'Footnotes list'!$D$9:$E$58,2,FALSE)=0,\"\",VLOOKUP(CG140,'Footnotes list'!$D$9:$E$58,2,FALSE) ) )","v":""},null,null,null,null,{"$f":"IF(TRIM(CL140)=\"\", \"\", IF(VLOOKUP(CL140,'Footnotes list'!$D$9:$E$58,2,FALSE)=0,\"\",VLOOKUP(CL140,'Footnotes list'!$D$9:$E$58,2,FALSE) ) )","v":""},null,null,null,null,{"$f":"IF(TRIM(CQ140)=\"\", \"\", IF(VLOOKUP(CQ140,'Footnotes list'!$D$9:$E$58,2,FALSE)=0,\"\",VLOOKUP(CQ140,'Footnotes list'!$D$9:$E$58,2,FALSE) ) )","v":""},null,null,null,null,{"$f":"IF(TRIM(CV140)=\"\", \"\", IF(VLOOKUP(CV140,'Footnotes list'!$D$9:$E$58,2,FALSE)=0,\"\",VLOOKUP(CV140,'Footnotes list'!$D$9:$E$58,2,FALSE) ) )","v":""},null,null,null,null,{"$f":"IF(TRIM(DA140)=\"\", \"\", IF(VLOOKUP(DA140,'Footnotes list'!$D$9:$E$58,2,FALSE)=0,\"\",VLOOKUP(DA140,'Footnotes list'!$D$9:$E$58,2,FALSE) ) )","v":""},null,null,null,null,{"$f":"IF(TRIM(DF140)=\"\", \"\", IF(VLOOKUP(DF140,'Footnotes list'!$D$9:$E$58,2,FALSE)=0,\"\",VLOOKUP(DF140,'Footnotes list'!$D$9:$E$58,2,FALSE) ) )","v":""},null,null,null,null,{"$f":"IF(TRIM(DK140)=\"\", \"\", IF(VLOOKUP(DK140,'Footnotes list'!$D$9:$E$58,2,FALSE)=0,\"\",VLOOKUP(DK140,'Footnotes list'!$D$9:$E$58,2,FALSE) ) )","v":""},null,null,null,null,{"$f":"IF(TRIM(DP140)=\"\", \"\", IF(VLOOKUP(DP140,'Footnotes list'!$D$9:$E$58,2,FALSE)=0,\"\",VLOOKUP(DP140,'Footnotes list'!$D$9:$E$58,2,FALSE) ) )","v":""},null,null,null,null,{"$f":"IF(TRIM(DU140)=\"\", \"\", IF(VLOOKUP(DU140,'Footnotes list'!$D$9:$E$58,2,FALSE)=0,\"\",VLOOKUP(DU140,'Footnotes list'!$D$9:$E$58,2,FALSE) ) )","v":""},null,null,null,null,{"$f":"IF(TRIM(DZ140)=\"\", \"\", IF(VLOOKUP(DZ140,'Footnotes list'!$D$9:$E$58,2,FALSE)=0,\"\",VLOOKUP(DZ140,'Footnotes list'!$D$9:$E$58,2,FALSE) ) )","v":""},null,null,null,null,{"$f":"IF(TRIM(EE140)=\"\", \"\", IF(VLOOKUP(EE140,'Footnotes list'!$D$9:$E$58,2,FALSE)=0,\"\",VLOOKUP(EE140,'Footnotes list'!$D$9:$E$58,2,FALSE) ) )","v":""},null,null,null,null,{"$f":"IF(TRIM(EJ140)=\"\", \"\", IF(VLOOKUP(EJ140,'Footnotes list'!$D$9:$E$58,2,FALSE)=0,\"\",VLOOKUP(EJ140,'Footnotes list'!$D$9:$E$58,2,FALSE) ) )","v":""},null,null,null,null,{"$f":"IF(TRIM(EO140)=\"\", \"\", IF(VLOOKUP(EO140,'Footnotes list'!$D$9:$E$58,2,FALSE)=0,\"\",VLOOKUP(EO140,'Footnotes list'!$D$9:$E$58,2,FALSE) ) )","v":""},null,null,null,null,{"$f":"IF(TRIM(ET140)=\"\", \"\", IF(VLOOKUP(ET140,'Footnotes list'!$D$9:$E$58,2,FALSE)=0,\"\",VLOOKUP(ET140,'Footnotes list'!$D$9:$E$58,2,FALSE) ) )","v":""},null,null,null,null,{"$f":"IF(TRIM(EY140)=\"\", \"\", IF(VLOOKUP(EY140,'Footnotes list'!$D$9:$E$58,2,FALSE)=0,\"\",VLOOKUP(EY140,'Footnotes list'!$D$9:$E$58,2,FALSE) ) )","v":""}]
[null,null,"E36","TOT_EGSS","Total E36 - Water collection, treatment and supply, of which:",null,null,null,null,null,{"$f":"IF(TRIM(J141)=\"\", \"\", IF(VLOOKUP(J141,'Footnotes list'!$D$9:$E$58,2,FALSE)=0,\"\",VLOOKUP(J141,'Footnotes list'!$D$9:$E$58,2,FALSE) ) )","v":""},null,null,null,null,{"$f":"IF(TRIM(O141)=\"\", \"\", IF(VLOOKUP(O141,'Footnotes list'!$D$9:$E$58,2,FALSE)=0,\"\",VLOOKUP(O141,'Footnotes list'!$D$9:$E$58,2,FALSE) ) )","v":""},null,null,null,null,{"$f":"IF(TRIM(T141)=\"\", \"\", IF(VLOOKUP(T141,'Footnotes list'!$D$9:$E$58,2,FALSE)=0,\"\",VLOOKUP(T141,'Footnotes list'!$D$9:$E$58,2,FALSE) ) )","v":""},null,null,null,null,{"$f":"IF(TRIM(Y141)=\"\", \"\", IF(VLOOKUP(Y141,'Footnotes list'!$D$9:$E$58,2,FALSE)=0,\"\",VLOOKUP(Y141,'Footnotes list'!$D$9:$E$58,2,FALSE) ) )","v":""},null,null,null,null,{"$f":"IF(TRIM(AD141)=\"\", \"\", IF(VLOOKUP(AD141,'Footnotes list'!$D$9:$E$58,2,FALSE)=0,\"\",VLOOKUP(AD141,'Footnotes list'!$D$9:$E$58,2,FALSE) ) )","v":""},null,null,null,null,{"$f":"IF(TRIM(AI141)=\"\", \"\", IF(VLOOKUP(AI141,'Footnotes list'!$D$9:$E$58,2,FALSE)=0,\"\",VLOOKUP(AI141,'Footnotes list'!$D$9:$E$58,2,FALSE) ) )","v":""},null,null,null,null,{"$f":"IF(TRIM(AN141)=\"\", \"\", IF(VLOOKUP(AN141,'Footnotes list'!$D$9:$E$58,2,FALSE)=0,\"\",VLOOKUP(AN141,'Footnotes list'!$D$9:$E$58,2,FALSE) ) )","v":""},null,null,null,null,{"$f":"IF(TRIM(AS141)=\"\", \"\", IF(VLOOKUP(AS141,'Footnotes list'!$D$9:$E$58,2,FALSE)=0,\"\",VLOOKUP(AS141,'Footnotes list'!$D$9:$E$58,2,FALSE) ) )","v":""},null,null,null,null,{"$f":"IF(TRIM(AX141)=\"\", \"\", IF(VLOOKUP(AX141,'Footnotes list'!$D$9:$E$58,2,FALSE)=0,\"\",VLOOKUP(AX141,'Footnotes list'!$D$9:$E$58,2,FALSE) ) )","v":""},null,null,null,null,{"$f":"IF(TRIM(BC141)=\"\", \"\", IF(VLOOKUP(BC141,'Footnotes list'!$D$9:$E$58,2,FALSE)=0,\"\",VLOOKUP(BC141,'Footnotes list'!$D$9:$E$58,2,FALSE) ) )","v":""},null,null,null,null,{"$f":"IF(TRIM(BH141)=\"\", \"\", IF(VLOOKUP(BH141,'Footnotes list'!$D$9:$E$58,2,FALSE)=0,\"\",VLOOKUP(BH141,'Footnotes list'!$D$9:$E$58,2,FALSE) ) )","v":""},null,null,null,null,{"$f":"IF(TRIM(BM141)=\"\", \"\", IF(VLOOKUP(BM141,'Footnotes list'!$D$9:$E$58,2,FALSE)=0,\"\",VLOOKUP(BM141,'Footnotes list'!$D$9:$E$58,2,FALSE) ) )","v":""},null,null,null,null,{"$f":"IF(TRIM(BR141)=\"\", \"\", IF(VLOOKUP(BR141,'Footnotes list'!$D$9:$E$58,2,FALSE)=0,\"\",VLOOKUP(BR141,'Footnotes list'!$D$9:$E$58,2,FALSE) ) )","v":""},null,null,null,null,{"$f":"IF(TRIM(BW141)=\"\", \"\", IF(VLOOKUP(BW141,'Footnotes list'!$D$9:$E$58,2,FALSE)=0,\"\",VLOOKUP(BW141,'Footnotes list'!$D$9:$E$58,2,FALSE) ) )","v":""},null,null,null,null,{"$f":"IF(TRIM(CB141)=\"\", \"\", IF(VLOOKUP(CB141,'Footnotes list'!$D$9:$E$58,2,FALSE)=0,\"\",VLOOKUP(CB141,'Footnotes list'!$D$9:$E$58,2,FALSE) ) )","v":""},null,null,null,null,{"$f":"IF(TRIM(CG141)=\"\", \"\", IF(VLOOKUP(CG141,'Footnotes list'!$D$9:$E$58,2,FALSE)=0,\"\",VLOOKUP(CG141,'Footnotes list'!$D$9:$E$58,2,FALSE) ) )","v":""},null,null,null,null,{"$f":"IF(TRIM(CL141)=\"\", \"\", IF(VLOOKUP(CL141,'Footnotes list'!$D$9:$E$58,2,FALSE)=0,\"\",VLOOKUP(CL141,'Footnotes list'!$D$9:$E$58,2,FALSE) ) )","v":""},null,null,null,null,{"$f":"IF(TRIM(CQ141)=\"\", \"\", IF(VLOOKUP(CQ141,'Footnotes list'!$D$9:$E$58,2,FALSE)=0,\"\",VLOOKUP(CQ141,'Footnotes list'!$D$9:$E$58,2,FALSE) ) )","v":""},null,null,null,null,{"$f":"IF(TRIM(CV141)=\"\", \"\", IF(VLOOKUP(CV141,'Footnotes list'!$D$9:$E$58,2,FALSE)=0,\"\",VLOOKUP(CV141,'Footnotes list'!$D$9:$E$58,2,FALSE) ) )","v":""},null,null,null,null,{"$f":"IF(TRIM(DA141)=\"\", \"\", IF(VLOOKUP(DA141,'Footnotes list'!$D$9:$E$58,2,FALSE)=0,\"\",VLOOKUP(DA141,'Footnotes list'!$D$9:$E$58,2,FALSE) ) )","v":""},null,null,null,null,{"$f":"IF(TRIM(DF141)=\"\", \"\", IF(VLOOKUP(DF141,'Footnotes list'!$D$9:$E$58,2,FALSE)=0,\"\",VLOOKUP(DF141,'Footnotes list'!$D$9:$E$58,2,FALSE) ) )","v":""},null,null,null,null,{"$f":"IF(TRIM(DK141)=\"\", \"\", IF(VLOOKUP(DK141,'Footnotes list'!$D$9:$E$58,2,FALSE)=0,\"\",VLOOKUP(DK141,'Footnotes list'!$D$9:$E$58,2,FALSE) ) )","v":""},null,null,null,null,{"$f":"IF(TRIM(DP141)=\"\", \"\", IF(VLOOKUP(DP141,'Footnotes list'!$D$9:$E$58,2,FALSE)=0,\"\",VLOOKUP(DP141,'Footnotes list'!$D$9:$E$58,2,FALSE) ) )","v":""},null,null,null,null,{"$f":"IF(TRIM(DU141)=\"\", \"\", IF(VLOOKUP(DU141,'Footnotes list'!$D$9:$E$58,2,FALSE)=0,\"\",VLOOKUP(DU141,'Footnotes list'!$D$9:$E$58,2,FALSE) ) )","v":""},null,null,null,null,{"$f":"IF(TRIM(DZ141)=\"\", \"\", IF(VLOOKUP(DZ141,'Footnotes list'!$D$9:$E$58,2,FALSE)=0,\"\",VLOOKUP(DZ141,'Footnotes list'!$D$9:$E$58,2,FALSE) ) )","v":""},null,null,null,null,{"$f":"IF(TRIM(EE141)=\"\", \"\", IF(VLOOKUP(EE141,'Footnotes list'!$D$9:$E$58,2,FALSE)=0,\"\",VLOOKUP(EE141,'Footnotes list'!$D$9:$E$58,2,FALSE) ) )","v":""},null,null,null,null,{"$f":"IF(TRIM(EJ141)=\"\", \"\", IF(VLOOKUP(EJ141,'Footnotes list'!$D$9:$E$58,2,FALSE)=0,\"\",VLOOKUP(EJ141,'Footnotes list'!$D$9:$E$58,2,FALSE) ) )","v":""},null,null,null,null,{"$f":"IF(TRIM(EO141)=\"\", \"\", IF(VLOOKUP(EO141,'Footnotes list'!$D$9:$E$58,2,FALSE)=0,\"\",VLOOKUP(EO141,'Footnotes list'!$D$9:$E$58,2,FALSE) ) )","v":""},null,null,null,null,{"$f":"IF(TRIM(ET141)=\"\", \"\", IF(VLOOKUP(ET141,'Footnotes list'!$D$9:$E$58,2,FALSE)=0,\"\",VLOOKUP(ET141,'Footnotes list'!$D$9:$E$58,2,FALSE) ) )","v":""},null,null,null,null,{"$f":"IF(TRIM(EY141)=\"\", \"\", IF(VLOOKUP(EY141,'Footnotes list'!$D$9:$E$58,2,FALSE)=0,\"\",VLOOKUP(EY141,'Footnotes list'!$D$9:$E$58,2,FALSE) ) )","v":""}]
[null,null,"E36","ANC","ancillary activities",null,null,null,null,null,{"$f":"IF(TRIM(J142)=\"\", \"\", IF(VLOOKUP(J142,'Footnotes list'!$D$9:$E$58,2,FALSE)=0,\"\",VLOOKUP(J142,'Footnotes list'!$D$9:$E$58,2,FALSE) ) )","v":""},null,null,null,null,{"$f":"IF(TRIM(O142)=\"\", \"\", IF(VLOOKUP(O142,'Footnotes list'!$D$9:$E$58,2,FALSE)=0,\"\",VLOOKUP(O142,'Footnotes list'!$D$9:$E$58,2,FALSE) ) )","v":""},null,null,null,null,{"$f":"IF(TRIM(T142)=\"\", \"\", IF(VLOOKUP(T142,'Footnotes list'!$D$9:$E$58,2,FALSE)=0,\"\",VLOOKUP(T142,'Footnotes list'!$D$9:$E$58,2,FALSE) ) )","v":""},null,null,null,null,{"$f":"IF(TRIM(Y142)=\"\", \"\", IF(VLOOKUP(Y142,'Footnotes list'!$D$9:$E$58,2,FALSE)=0,\"\",VLOOKUP(Y142,'Footnotes list'!$D$9:$E$58,2,FALSE) ) )","v":""},null,null,null,null,{"$f":"IF(TRIM(AD142)=\"\", \"\", IF(VLOOKUP(AD142,'Footnotes list'!$D$9:$E$58,2,FALSE)=0,\"\",VLOOKUP(AD142,'Footnotes list'!$D$9:$E$58,2,FALSE) ) )","v":""},null,null,null,null,{"$f":"IF(TRIM(AI142)=\"\", \"\", IF(VLOOKUP(AI142,'Footnotes list'!$D$9:$E$58,2,FALSE)=0,\"\",VLOOKUP(AI142,'Footnotes list'!$D$9:$E$58,2,FALSE) ) )","v":""},null,null,null,null,{"$f":"IF(TRIM(AN142)=\"\", \"\", IF(VLOOKUP(AN142,'Footnotes list'!$D$9:$E$58,2,FALSE)=0,\"\",VLOOKUP(AN142,'Footnotes list'!$D$9:$E$58,2,FALSE) ) )","v":""},null,null,null,null,{"$f":"IF(TRIM(AS142)=\"\", \"\", IF(VLOOKUP(AS142,'Footnotes list'!$D$9:$E$58,2,FALSE)=0,\"\",VLOOKUP(AS142,'Footnotes list'!$D$9:$E$58,2,FALSE) ) )","v":""},null,null,null,null,{"$f":"IF(TRIM(AX142)=\"\", \"\", IF(VLOOKUP(AX142,'Footnotes list'!$D$9:$E$58,2,FALSE)=0,\"\",VLOOKUP(AX142,'Footnotes list'!$D$9:$E$58,2,FALSE) ) )","v":""},null,null,null,null,{"$f":"IF(TRIM(BC142)=\"\", \"\", IF(VLOOKUP(BC142,'Footnotes list'!$D$9:$E$58,2,FALSE)=0,\"\",VLOOKUP(BC142,'Footnotes list'!$D$9:$E$58,2,FALSE) ) )","v":""},null,null,null,null,{"$f":"IF(TRIM(BH142)=\"\", \"\", IF(VLOOKUP(BH142,'Footnotes list'!$D$9:$E$58,2,FALSE)=0,\"\",VLOOKUP(BH142,'Footnotes list'!$D$9:$E$58,2,FALSE) ) )","v":""},null,null,null,null,{"$f":"IF(TRIM(BM142)=\"\", \"\", IF(VLOOKUP(BM142,'Footnotes list'!$D$9:$E$58,2,FALSE)=0,\"\",VLOOKUP(BM142,'Footnotes list'!$D$9:$E$58,2,FALSE) ) )","v":""},null,null,null,null,{"$f":"IF(TRIM(BR142)=\"\", \"\", IF(VLOOKUP(BR142,'Footnotes list'!$D$9:$E$58,2,FALSE)=0,\"\",VLOOKUP(BR142,'Footnotes list'!$D$9:$E$58,2,FALSE) ) )","v":""},null,null,null,null,{"$f":"IF(TRIM(BW142)=\"\", \"\", IF(VLOOKUP(BW142,'Footnotes list'!$D$9:$E$58,2,FALSE)=0,\"\",VLOOKUP(BW142,'Footnotes list'!$D$9:$E$58,2,FALSE) ) )","v":""},null,null,null,null,{"$f":"IF(TRIM(CB142)=\"\", \"\", IF(VLOOKUP(CB142,'Footnotes list'!$D$9:$E$58,2,FALSE)=0,\"\",VLOOKUP(CB142,'Footnotes list'!$D$9:$E$58,2,FALSE) ) )","v":""},null,null,null,null,{"$f":"IF(TRIM(CG142)=\"\", \"\", IF(VLOOKUP(CG142,'Footnotes list'!$D$9:$E$58,2,FALSE)=0,\"\",VLOOKUP(CG142,'Footnotes list'!$D$9:$E$58,2,FALSE) ) )","v":""},null,null,null,null,{"$f":"IF(TRIM(CL142)=\"\", \"\", IF(VLOOKUP(CL142,'Footnotes list'!$D$9:$E$58,2,FALSE)=0,\"\",VLOOKUP(CL142,'Footnotes list'!$D$9:$E$58,2,FALSE) ) )","v":""},null,null,null,null,{"$f":"IF(TRIM(CQ142)=\"\", \"\", IF(VLOOKUP(CQ142,'Footnotes list'!$D$9:$E$58,2,FALSE)=0,\"\",VLOOKUP(CQ142,'Footnotes list'!$D$9:$E$58,2,FALSE) ) )","v":""},null,null,null,null,{"$f":"IF(TRIM(CV142)=\"\", \"\", IF(VLOOKUP(CV142,'Footnotes list'!$D$9:$E$58,2,FALSE)=0,\"\",VLOOKUP(CV142,'Footnotes list'!$D$9:$E$58,2,FALSE) ) )","v":""},null,null,null,null,{"$f":"IF(TRIM(DA142)=\"\", \"\", IF(VLOOKUP(DA142,'Footnotes list'!$D$9:$E$58,2,FALSE)=0,\"\",VLOOKUP(DA142,'Footnotes list'!$D$9:$E$58,2,FALSE) ) )","v":""},null,null,null,null,{"$f":"IF(TRIM(DF142)=\"\", \"\", IF(VLOOKUP(DF142,'Footnotes list'!$D$9:$E$58,2,FALSE)=0,\"\",VLOOKUP(DF142,'Footnotes list'!$D$9:$E$58,2,FALSE) ) )","v":""},null,null,null,null,{"$f":"IF(TRIM(DK142)=\"\", \"\", IF(VLOOKUP(DK142,'Footnotes list'!$D$9:$E$58,2,FALSE)=0,\"\",VLOOKUP(DK142,'Footnotes list'!$D$9:$E$58,2,FALSE) ) )","v":""},null,null,null,null,{"$f":"IF(TRIM(DP142)=\"\", \"\", IF(VLOOKUP(DP142,'Footnotes list'!$D$9:$E$58,2,FALSE)=0,\"\",VLOOKUP(DP142,'Footnotes list'!$D$9:$E$58,2,FALSE) ) )","v":""},null,null,null,null,{"$f":"IF(TRIM(DU142)=\"\", \"\", IF(VLOOKUP(DU142,'Footnotes list'!$D$9:$E$58,2,FALSE)=0,\"\",VLOOKUP(DU142,'Footnotes list'!$D$9:$E$58,2,FALSE) ) )","v":""},null,null,null,null,{"$f":"IF(TRIM(DZ142)=\"\", \"\", IF(VLOOKUP(DZ142,'Footnotes list'!$D$9:$E$58,2,FALSE)=0,\"\",VLOOKUP(DZ142,'Footnotes list'!$D$9:$E$58,2,FALSE) ) )","v":""},null,null,null,null,{"$f":"IF(TRIM(EE142)=\"\", \"\", IF(VLOOKUP(EE142,'Footnotes list'!$D$9:$E$58,2,FALSE)=0,\"\",VLOOKUP(EE142,'Footnotes list'!$D$9:$E$58,2,FALSE) ) )","v":""},null,null,null,null,{"$f":"IF(TRIM(EJ142)=\"\", \"\", IF(VLOOKUP(EJ142,'Footnotes list'!$D$9:$E$58,2,FALSE)=0,\"\",VLOOKUP(EJ142,'Footnotes list'!$D$9:$E$58,2,FALSE) ) )","v":""},null,null,null,null,{"$f":"IF(TRIM(EO142)=\"\", \"\", IF(VLOOKUP(EO142,'Footnotes list'!$D$9:$E$58,2,FALSE)=0,\"\",VLOOKUP(EO142,'Footnotes list'!$D$9:$E$58,2,FALSE) ) )","v":""},null,null,null,null,{"$f":"IF(TRIM(ET142)=\"\", \"\", IF(VLOOKUP(ET142,'Footnotes list'!$D$9:$E$58,2,FALSE)=0,\"\",VLOOKUP(ET142,'Footnotes list'!$D$9:$E$58,2,FALSE) ) )","v":""},null,null,null,null,{"$f":"IF(TRIM(EY142)=\"\", \"\", IF(VLOOKUP(EY142,'Footnotes list'!$D$9:$E$58,2,FALSE)=0,\"\",VLOOKUP(EY142,'Footnotes list'!$D$9:$E$58,2,FALSE) ) )","v":""}]
[null,null,"E36","NMKT","non-market activities",null,null,null,null,null,{"$f":"IF(TRIM(J143)=\"\", \"\", IF(VLOOKUP(J143,'Footnotes list'!$D$9:$E$58,2,FALSE)=0,\"\",VLOOKUP(J143,'Footnotes list'!$D$9:$E$58,2,FALSE) ) )","v":""},null,null,null,null,{"$f":"IF(TRIM(O143)=\"\", \"\", IF(VLOOKUP(O143,'Footnotes list'!$D$9:$E$58,2,FALSE)=0,\"\",VLOOKUP(O143,'Footnotes list'!$D$9:$E$58,2,FALSE) ) )","v":""},null,null,null,null,{"$f":"IF(TRIM(T143)=\"\", \"\", IF(VLOOKUP(T143,'Footnotes list'!$D$9:$E$58,2,FALSE)=0,\"\",VLOOKUP(T143,'Footnotes list'!$D$9:$E$58,2,FALSE) ) )","v":""},null,null,null,null,{"$f":"IF(TRIM(Y143)=\"\", \"\", IF(VLOOKUP(Y143,'Footnotes list'!$D$9:$E$58,2,FALSE)=0,\"\",VLOOKUP(Y143,'Footnotes list'!$D$9:$E$58,2,FALSE) ) )","v":""},null,null,null,null,{"$f":"IF(TRIM(AD143)=\"\", \"\", IF(VLOOKUP(AD143,'Footnotes list'!$D$9:$E$58,2,FALSE)=0,\"\",VLOOKUP(AD143,'Footnotes list'!$D$9:$E$58,2,FALSE) ) )","v":""},null,null,null,null,{"$f":"IF(TRIM(AI143)=\"\", \"\", IF(VLOOKUP(AI143,'Footnotes list'!$D$9:$E$58,2,FALSE)=0,\"\",VLOOKUP(AI143,'Footnotes list'!$D$9:$E$58,2,FALSE) ) )","v":""},null,null,null,null,{"$f":"IF(TRIM(AN143)=\"\", \"\", IF(VLOOKUP(AN143,'Footnotes list'!$D$9:$E$58,2,FALSE)=0,\"\",VLOOKUP(AN143,'Footnotes list'!$D$9:$E$58,2,FALSE) ) )","v":""},null,null,null,null,{"$f":"IF(TRIM(AS143)=\"\", \"\", IF(VLOOKUP(AS143,'Footnotes list'!$D$9:$E$58,2,FALSE)=0,\"\",VLOOKUP(AS143,'Footnotes list'!$D$9:$E$58,2,FALSE) ) )","v":""},null,null,null,null,{"$f":"IF(TRIM(AX143)=\"\", \"\", IF(VLOOKUP(AX143,'Footnotes list'!$D$9:$E$58,2,FALSE)=0,\"\",VLOOKUP(AX143,'Footnotes list'!$D$9:$E$58,2,FALSE) ) )","v":""},null,null,null,null,{"$f":"IF(TRIM(BC143)=\"\", \"\", IF(VLOOKUP(BC143,'Footnotes list'!$D$9:$E$58,2,FALSE)=0,\"\",VLOOKUP(BC143,'Footnotes list'!$D$9:$E$58,2,FALSE) ) )","v":""},null,null,null,null,{"$f":"IF(TRIM(BH143)=\"\", \"\", IF(VLOOKUP(BH143,'Footnotes list'!$D$9:$E$58,2,FALSE)=0,\"\",VLOOKUP(BH143,'Footnotes list'!$D$9:$E$58,2,FALSE) ) )","v":""},null,null,null,null,{"$f":"IF(TRIM(BM143)=\"\", \"\", IF(VLOOKUP(BM143,'Footnotes list'!$D$9:$E$58,2,FALSE)=0,\"\",VLOOKUP(BM143,'Footnotes list'!$D$9:$E$58,2,FALSE) ) )","v":""},null,null,null,null,{"$f":"IF(TRIM(BR143)=\"\", \"\", IF(VLOOKUP(BR143,'Footnotes list'!$D$9:$E$58,2,FALSE)=0,\"\",VLOOKUP(BR143,'Footnotes list'!$D$9:$E$58,2,FALSE) ) )","v":""},null,null,null,null,{"$f":"IF(TRIM(BW143)=\"\", \"\", IF(VLOOKUP(BW143,'Footnotes list'!$D$9:$E$58,2,FALSE)=0,\"\",VLOOKUP(BW143,'Footnotes list'!$D$9:$E$58,2,FALSE) ) )","v":""},null,null,null,null,{"$f":"IF(TRIM(CB143)=\"\", \"\", IF(VLOOKUP(CB143,'Footnotes list'!$D$9:$E$58,2,FALSE)=0,\"\",VLOOKUP(CB143,'Footnotes list'!$D$9:$E$58,2,FALSE) ) )","v":""},null,null,null,null,{"$f":"IF(TRIM(CG143)=\"\", \"\", IF(VLOOKUP(CG143,'Footnotes list'!$D$9:$E$58,2,FALSE)=0,\"\",VLOOKUP(CG143,'Footnotes list'!$D$9:$E$58,2,FALSE) ) )","v":""},null,null,null,null,{"$f":"IF(TRIM(CL143)=\"\", \"\", IF(VLOOKUP(CL143,'Footnotes list'!$D$9:$E$58,2,FALSE)=0,\"\",VLOOKUP(CL143,'Footnotes list'!$D$9:$E$58,2,FALSE) ) )","v":""},null,null,null,null,{"$f":"IF(TRIM(CQ143)=\"\", \"\", IF(VLOOKUP(CQ143,'Footnotes list'!$D$9:$E$58,2,FALSE)=0,\"\",VLOOKUP(CQ143,'Footnotes list'!$D$9:$E$58,2,FALSE) ) )","v":""},null,null,null,null,{"$f":"IF(TRIM(CV143)=\"\", \"\", IF(VLOOKUP(CV143,'Footnotes list'!$D$9:$E$58,2,FALSE)=0,\"\",VLOOKUP(CV143,'Footnotes list'!$D$9:$E$58,2,FALSE) ) )","v":""},null,null,null,null,{"$f":"IF(TRIM(DA143)=\"\", \"\", IF(VLOOKUP(DA143,'Footnotes list'!$D$9:$E$58,2,FALSE)=0,\"\",VLOOKUP(DA143,'Footnotes list'!$D$9:$E$58,2,FALSE) ) )","v":""},null,null,null,null,{"$f":"IF(TRIM(DF143)=\"\", \"\", IF(VLOOKUP(DF143,'Footnotes list'!$D$9:$E$58,2,FALSE)=0,\"\",VLOOKUP(DF143,'Footnotes list'!$D$9:$E$58,2,FALSE) ) )","v":""},null,null,null,null,{"$f":"IF(TRIM(DK143)=\"\", \"\", IF(VLOOKUP(DK143,'Footnotes list'!$D$9:$E$58,2,FALSE)=0,\"\",VLOOKUP(DK143,'Footnotes list'!$D$9:$E$58,2,FALSE) ) )","v":""},null,null,null,null,{"$f":"IF(TRIM(DP143)=\"\", \"\", IF(VLOOKUP(DP143,'Footnotes list'!$D$9:$E$58,2,FALSE)=0,\"\",VLOOKUP(DP143,'Footnotes list'!$D$9:$E$58,2,FALSE) ) )","v":""},null,null,null,null,{"$f":"IF(TRIM(DU143)=\"\", \"\", IF(VLOOKUP(DU143,'Footnotes list'!$D$9:$E$58,2,FALSE)=0,\"\",VLOOKUP(DU143,'Footnotes list'!$D$9:$E$58,2,FALSE) ) )","v":""},null,null,null,null,{"$f":"IF(TRIM(DZ143)=\"\", \"\", IF(VLOOKUP(DZ143,'Footnotes list'!$D$9:$E$58,2,FALSE)=0,\"\",VLOOKUP(DZ143,'Footnotes list'!$D$9:$E$58,2,FALSE) ) )","v":""},null,null,null,null,{"$f":"IF(TRIM(EE143)=\"\", \"\", IF(VLOOKUP(EE143,'Footnotes list'!$D$9:$E$58,2,FALSE)=0,\"\",VLOOKUP(EE143,'Footnotes list'!$D$9:$E$58,2,FALSE) ) )","v":""},null,null,null,null,{"$f":"IF(TRIM(EJ143)=\"\", \"\", IF(VLOOKUP(EJ143,'Footnotes list'!$D$9:$E$58,2,FALSE)=0,\"\",VLOOKUP(EJ143,'Footnotes list'!$D$9:$E$58,2,FALSE) ) )","v":""},null,null,null,null,{"$f":"IF(TRIM(EO143)=\"\", \"\", IF(VLOOKUP(EO143,'Footnotes list'!$D$9:$E$58,2,FALSE)=0,\"\",VLOOKUP(EO143,'Footnotes list'!$D$9:$E$58,2,FALSE) ) )","v":""},null,null,null,null,{"$f":"IF(TRIM(ET143)=\"\", \"\", IF(VLOOKUP(ET143,'Footnotes list'!$D$9:$E$58,2,FALSE)=0,\"\",VLOOKUP(ET143,'Footnotes list'!$D$9:$E$58,2,FALSE) ) )","v":""},null,null,null,null,{"$f":"IF(TRIM(EY143)=\"\", \"\", IF(VLOOKUP(EY143,'Footnotes list'!$D$9:$E$58,2,FALSE)=0,\"\",VLOOKUP(EY143,'Footnotes list'!$D$9:$E$58,2,FALSE) ) )","v":""}]
[null,null,"E36","OWN_USE","activities for own final use",null,null,null,null,null,{"$f":"IF(TRIM(J144)=\"\", \"\", IF(VLOOKUP(J144,'Footnotes list'!$D$9:$E$58,2,FALSE)=0,\"\",VLOOKUP(J144,'Footnotes list'!$D$9:$E$58,2,FALSE) ) )","v":""},null,null,null,null,{"$f":"IF(TRIM(O144)=\"\", \"\", IF(VLOOKUP(O144,'Footnotes list'!$D$9:$E$58,2,FALSE)=0,\"\",VLOOKUP(O144,'Footnotes list'!$D$9:$E$58,2,FALSE) ) )","v":""},null,null,null,null,{"$f":"IF(TRIM(T144)=\"\", \"\", IF(VLOOKUP(T144,'Footnotes list'!$D$9:$E$58,2,FALSE)=0,\"\",VLOOKUP(T144,'Footnotes list'!$D$9:$E$58,2,FALSE) ) )","v":""},null,null,null,null,{"$f":"IF(TRIM(Y144)=\"\", \"\", IF(VLOOKUP(Y144,'Footnotes list'!$D$9:$E$58,2,FALSE)=0,\"\",VLOOKUP(Y144,'Footnotes list'!$D$9:$E$58,2,FALSE) ) )","v":""},null,null,null,null,{"$f":"IF(TRIM(AD144)=\"\", \"\", IF(VLOOKUP(AD144,'Footnotes list'!$D$9:$E$58,2,FALSE)=0,\"\",VLOOKUP(AD144,'Footnotes list'!$D$9:$E$58,2,FALSE) ) )","v":""},null,null,null,null,{"$f":"IF(TRIM(AI144)=\"\", \"\", IF(VLOOKUP(AI144,'Footnotes list'!$D$9:$E$58,2,FALSE)=0,\"\",VLOOKUP(AI144,'Footnotes list'!$D$9:$E$58,2,FALSE) ) )","v":""},null,null,null,null,{"$f":"IF(TRIM(AN144)=\"\", \"\", IF(VLOOKUP(AN144,'Footnotes list'!$D$9:$E$58,2,FALSE)=0,\"\",VLOOKUP(AN144,'Footnotes list'!$D$9:$E$58,2,FALSE) ) )","v":""},null,null,null,null,{"$f":"IF(TRIM(AS144)=\"\", \"\", IF(VLOOKUP(AS144,'Footnotes list'!$D$9:$E$58,2,FALSE)=0,\"\",VLOOKUP(AS144,'Footnotes list'!$D$9:$E$58,2,FALSE) ) )","v":""},null,null,null,null,{"$f":"IF(TRIM(AX144)=\"\", \"\", IF(VLOOKUP(AX144,'Footnotes list'!$D$9:$E$58,2,FALSE)=0,\"\",VLOOKUP(AX144,'Footnotes list'!$D$9:$E$58,2,FALSE) ) )","v":""},null,null,null,null,{"$f":"IF(TRIM(BC144)=\"\", \"\", IF(VLOOKUP(BC144,'Footnotes list'!$D$9:$E$58,2,FALSE)=0,\"\",VLOOKUP(BC144,'Footnotes list'!$D$9:$E$58,2,FALSE) ) )","v":""},null,null,null,null,{"$f":"IF(TRIM(BH144)=\"\", \"\", IF(VLOOKUP(BH144,'Footnotes list'!$D$9:$E$58,2,FALSE)=0,\"\",VLOOKUP(BH144,'Footnotes list'!$D$9:$E$58,2,FALSE) ) )","v":""},null,null,null,null,{"$f":"IF(TRIM(BM144)=\"\", \"\", IF(VLOOKUP(BM144,'Footnotes list'!$D$9:$E$58,2,FALSE)=0,\"\",VLOOKUP(BM144,'Footnotes list'!$D$9:$E$58,2,FALSE) ) )","v":""},null,null,null,null,{"$f":"IF(TRIM(BR144)=\"\", \"\", IF(VLOOKUP(BR144,'Footnotes list'!$D$9:$E$58,2,FALSE)=0,\"\",VLOOKUP(BR144,'Footnotes list'!$D$9:$E$58,2,FALSE) ) )","v":""},null,null,null,null,{"$f":"IF(TRIM(BW144)=\"\", \"\", IF(VLOOKUP(BW144,'Footnotes list'!$D$9:$E$58,2,FALSE)=0,\"\",VLOOKUP(BW144,'Footnotes list'!$D$9:$E$58,2,FALSE) ) )","v":""},null,null,null,null,{"$f":"IF(TRIM(CB144)=\"\", \"\", IF(VLOOKUP(CB144,'Footnotes list'!$D$9:$E$58,2,FALSE)=0,\"\",VLOOKUP(CB144,'Footnotes list'!$D$9:$E$58,2,FALSE) ) )","v":""},null,null,null,null,{"$f":"IF(TRIM(CG144)=\"\", \"\", IF(VLOOKUP(CG144,'Footnotes list'!$D$9:$E$58,2,FALSE)=0,\"\",VLOOKUP(CG144,'Footnotes list'!$D$9:$E$58,2,FALSE) ) )","v":""},null,null,null,null,{"$f":"IF(TRIM(CL144)=\"\", \"\", IF(VLOOKUP(CL144,'Footnotes list'!$D$9:$E$58,2,FALSE)=0,\"\",VLOOKUP(CL144,'Footnotes list'!$D$9:$E$58,2,FALSE) ) )","v":""},null,null,null,null,{"$f":"IF(TRIM(CQ144)=\"\", \"\", IF(VLOOKUP(CQ144,'Footnotes list'!$D$9:$E$58,2,FALSE)=0,\"\",VLOOKUP(CQ144,'Footnotes list'!$D$9:$E$58,2,FALSE) ) )","v":""},null,null,null,null,{"$f":"IF(TRIM(CV144)=\"\", \"\", IF(VLOOKUP(CV144,'Footnotes list'!$D$9:$E$58,2,FALSE)=0,\"\",VLOOKUP(CV144,'Footnotes list'!$D$9:$E$58,2,FALSE) ) )","v":""},null,null,null,null,{"$f":"IF(TRIM(DA144)=\"\", \"\", IF(VLOOKUP(DA144,'Footnotes list'!$D$9:$E$58,2,FALSE)=0,\"\",VLOOKUP(DA144,'Footnotes list'!$D$9:$E$58,2,FALSE) ) )","v":""},null,null,null,null,{"$f":"IF(TRIM(DF144)=\"\", \"\", IF(VLOOKUP(DF144,'Footnotes list'!$D$9:$E$58,2,FALSE)=0,\"\",VLOOKUP(DF144,'Footnotes list'!$D$9:$E$58,2,FALSE) ) )","v":""},null,null,null,null,{"$f":"IF(TRIM(DK144)=\"\", \"\", IF(VLOOKUP(DK144,'Footnotes list'!$D$9:$E$58,2,FALSE)=0,\"\",VLOOKUP(DK144,'Footnotes list'!$D$9:$E$58,2,FALSE) ) )","v":""},null,null,null,null,{"$f":"IF(TRIM(DP144)=\"\", \"\", IF(VLOOKUP(DP144,'Footnotes list'!$D$9:$E$58,2,FALSE)=0,\"\",VLOOKUP(DP144,'Footnotes list'!$D$9:$E$58,2,FALSE) ) )","v":""},null,null,null,null,{"$f":"IF(TRIM(DU144)=\"\", \"\", IF(VLOOKUP(DU144,'Footnotes list'!$D$9:$E$58,2,FALSE)=0,\"\",VLOOKUP(DU144,'Footnotes list'!$D$9:$E$58,2,FALSE) ) )","v":""},null,null,null,null,{"$f":"IF(TRIM(DZ144)=\"\", \"\", IF(VLOOKUP(DZ144,'Footnotes list'!$D$9:$E$58,2,FALSE)=0,\"\",VLOOKUP(DZ144,'Footnotes list'!$D$9:$E$58,2,FALSE) ) )","v":""},null,null,null,null,{"$f":"IF(TRIM(EE144)=\"\", \"\", IF(VLOOKUP(EE144,'Footnotes list'!$D$9:$E$58,2,FALSE)=0,\"\",VLOOKUP(EE144,'Footnotes list'!$D$9:$E$58,2,FALSE) ) )","v":""},null,null,null,null,{"$f":"IF(TRIM(EJ144)=\"\", \"\", IF(VLOOKUP(EJ144,'Footnotes list'!$D$9:$E$58,2,FALSE)=0,\"\",VLOOKUP(EJ144,'Footnotes list'!$D$9:$E$58,2,FALSE) ) )","v":""},null,null,null,null,{"$f":"IF(TRIM(EO144)=\"\", \"\", IF(VLOOKUP(EO144,'Footnotes list'!$D$9:$E$58,2,FALSE)=0,\"\",VLOOKUP(EO144,'Footnotes list'!$D$9:$E$58,2,FALSE) ) )","v":""},null,null,null,null,{"$f":"IF(TRIM(ET144)=\"\", \"\", IF(VLOOKUP(ET144,'Footnotes list'!$D$9:$E$58,2,FALSE)=0,\"\",VLOOKUP(ET144,'Footnotes list'!$D$9:$E$58,2,FALSE) ) )","v":""},null,null,null,null,{"$f":"IF(TRIM(EY144)=\"\", \"\", IF(VLOOKUP(EY144,'Footnotes list'!$D$9:$E$58,2,FALSE)=0,\"\",VLOOKUP(EY144,'Footnotes list'!$D$9:$E$58,2,FALSE) ) )","v":""}]
[null,null,"E36","MKT","market activities, including:",null,null,null,null,null,{"$f":"IF(TRIM(J145)=\"\", \"\", IF(VLOOKUP(J145,'Footnotes list'!$D$9:$E$58,2,FALSE)=0,\"\",VLOOKUP(J145,'Footnotes list'!$D$9:$E$58,2,FALSE) ) )","v":""},null,null,null,null,{"$f":"IF(TRIM(O145)=\"\", \"\", IF(VLOOKUP(O145,'Footnotes list'!$D$9:$E$58,2,FALSE)=0,\"\",VLOOKUP(O145,'Footnotes list'!$D$9:$E$58,2,FALSE) ) )","v":""},null,null,null,null,{"$f":"IF(TRIM(T145)=\"\", \"\", IF(VLOOKUP(T145,'Footnotes list'!$D$9:$E$58,2,FALSE)=0,\"\",VLOOKUP(T145,'Footnotes list'!$D$9:$E$58,2,FALSE) ) )","v":""},null,null,null,null,{"$f":"IF(TRIM(Y145)=\"\", \"\", IF(VLOOKUP(Y145,'Footnotes list'!$D$9:$E$58,2,FALSE)=0,\"\",VLOOKUP(Y145,'Footnotes list'!$D$9:$E$58,2,FALSE) ) )","v":""},null,null,null,null,{"$f":"IF(TRIM(AD145)=\"\", \"\", IF(VLOOKUP(AD145,'Footnotes list'!$D$9:$E$58,2,FALSE)=0,\"\",VLOOKUP(AD145,'Footnotes list'!$D$9:$E$58,2,FALSE) ) )","v":""},null,null,null,null,{"$f":"IF(TRIM(AI145)=\"\", \"\", IF(VLOOKUP(AI145,'Footnotes list'!$D$9:$E$58,2,FALSE)=0,\"\",VLOOKUP(AI145,'Footnotes list'!$D$9:$E$58,2,FALSE) ) )","v":""},null,null,null,null,{"$f":"IF(TRIM(AN145)=\"\", \"\", IF(VLOOKUP(AN145,'Footnotes list'!$D$9:$E$58,2,FALSE)=0,\"\",VLOOKUP(AN145,'Footnotes list'!$D$9:$E$58,2,FALSE) ) )","v":""},null,null,null,null,{"$f":"IF(TRIM(AS145)=\"\", \"\", IF(VLOOKUP(AS145,'Footnotes list'!$D$9:$E$58,2,FALSE)=0,\"\",VLOOKUP(AS145,'Footnotes list'!$D$9:$E$58,2,FALSE) ) )","v":""},null,null,null,null,{"$f":"IF(TRIM(AX145)=\"\", \"\", IF(VLOOKUP(AX145,'Footnotes list'!$D$9:$E$58,2,FALSE)=0,\"\",VLOOKUP(AX145,'Footnotes list'!$D$9:$E$58,2,FALSE) ) )","v":""},null,null,null,null,{"$f":"IF(TRIM(BC145)=\"\", \"\", IF(VLOOKUP(BC145,'Footnotes list'!$D$9:$E$58,2,FALSE)=0,\"\",VLOOKUP(BC145,'Footnotes list'!$D$9:$E$58,2,FALSE) ) )","v":""},null,null,null,null,{"$f":"IF(TRIM(BH145)=\"\", \"\", IF(VLOOKUP(BH145,'Footnotes list'!$D$9:$E$58,2,FALSE)=0,\"\",VLOOKUP(BH145,'Footnotes list'!$D$9:$E$58,2,FALSE) ) )","v":""},null,null,null,null,{"$f":"IF(TRIM(BM145)=\"\", \"\", IF(VLOOKUP(BM145,'Footnotes list'!$D$9:$E$58,2,FALSE)=0,\"\",VLOOKUP(BM145,'Footnotes list'!$D$9:$E$58,2,FALSE) ) )","v":""},null,null,null,null,{"$f":"IF(TRIM(BR145)=\"\", \"\", IF(VLOOKUP(BR145,'Footnotes list'!$D$9:$E$58,2,FALSE)=0,\"\",VLOOKUP(BR145,'Footnotes list'!$D$9:$E$58,2,FALSE) ) )","v":""},null,null,null,null,{"$f":"IF(TRIM(BW145)=\"\", \"\", IF(VLOOKUP(BW145,'Footnotes list'!$D$9:$E$58,2,FALSE)=0,\"\",VLOOKUP(BW145,'Footnotes list'!$D$9:$E$58,2,FALSE) ) )","v":""},null,null,null,null,{"$f":"IF(TRIM(CB145)=\"\", \"\", IF(VLOOKUP(CB145,'Footnotes list'!$D$9:$E$58,2,FALSE)=0,\"\",VLOOKUP(CB145,'Footnotes list'!$D$9:$E$58,2,FALSE) ) )","v":""},null,null,null,null,{"$f":"IF(TRIM(CG145)=\"\", \"\", IF(VLOOKUP(CG145,'Footnotes list'!$D$9:$E$58,2,FALSE)=0,\"\",VLOOKUP(CG145,'Footnotes list'!$D$9:$E$58,2,FALSE) ) )","v":""},null,null,null,null,{"$f":"IF(TRIM(CL145)=\"\", \"\", IF(VLOOKUP(CL145,'Footnotes list'!$D$9:$E$58,2,FALSE)=0,\"\",VLOOKUP(CL145,'Footnotes list'!$D$9:$E$58,2,FALSE) ) )","v":""},null,null,null,null,{"$f":"IF(TRIM(CQ145)=\"\", \"\", IF(VLOOKUP(CQ145,'Footnotes list'!$D$9:$E$58,2,FALSE)=0,\"\",VLOOKUP(CQ145,'Footnotes list'!$D$9:$E$58,2,FALSE) ) )","v":""},null,null,null,null,{"$f":"IF(TRIM(CV145)=\"\", \"\", IF(VLOOKUP(CV145,'Footnotes list'!$D$9:$E$58,2,FALSE)=0,\"\",VLOOKUP(CV145,'Footnotes list'!$D$9:$E$58,2,FALSE) ) )","v":""},null,null,null,null,{"$f":"IF(TRIM(DA145)=\"\", \"\", IF(VLOOKUP(DA145,'Footnotes list'!$D$9:$E$58,2,FALSE)=0,\"\",VLOOKUP(DA145,'Footnotes list'!$D$9:$E$58,2,FALSE) ) )","v":""},null,null,null,null,{"$f":"IF(TRIM(DF145)=\"\", \"\", IF(VLOOKUP(DF145,'Footnotes list'!$D$9:$E$58,2,FALSE)=0,\"\",VLOOKUP(DF145,'Footnotes list'!$D$9:$E$58,2,FALSE) ) )","v":""},null,null,null,null,{"$f":"IF(TRIM(DK145)=\"\", \"\", IF(VLOOKUP(DK145,'Footnotes list'!$D$9:$E$58,2,FALSE)=0,\"\",VLOOKUP(DK145,'Footnotes list'!$D$9:$E$58,2,FALSE) ) )","v":""},null,null,null,null,{"$f":"IF(TRIM(DP145)=\"\", \"\", IF(VLOOKUP(DP145,'Footnotes list'!$D$9:$E$58,2,FALSE)=0,\"\",VLOOKUP(DP145,'Footnotes list'!$D$9:$E$58,2,FALSE) ) )","v":""},null,null,null,null,{"$f":"IF(TRIM(DU145)=\"\", \"\", IF(VLOOKUP(DU145,'Footnotes list'!$D$9:$E$58,2,FALSE)=0,\"\",VLOOKUP(DU145,'Footnotes list'!$D$9:$E$58,2,FALSE) ) )","v":""},null,null,null,null,{"$f":"IF(TRIM(DZ145)=\"\", \"\", IF(VLOOKUP(DZ145,'Footnotes list'!$D$9:$E$58,2,FALSE)=0,\"\",VLOOKUP(DZ145,'Footnotes list'!$D$9:$E$58,2,FALSE) ) )","v":""},null,null,null,null,{"$f":"IF(TRIM(EE145)=\"\", \"\", IF(VLOOKUP(EE145,'Footnotes list'!$D$9:$E$58,2,FALSE)=0,\"\",VLOOKUP(EE145,'Footnotes list'!$D$9:$E$58,2,FALSE) ) )","v":""},null,null,null,null,{"$f":"IF(TRIM(EJ145)=\"\", \"\", IF(VLOOKUP(EJ145,'Footnotes list'!$D$9:$E$58,2,FALSE)=0,\"\",VLOOKUP(EJ145,'Footnotes list'!$D$9:$E$58,2,FALSE) ) )","v":""},null,null,null,null,{"$f":"IF(TRIM(EO145)=\"\", \"\", IF(VLOOKUP(EO145,'Footnotes list'!$D$9:$E$58,2,FALSE)=0,\"\",VLOOKUP(EO145,'Footnotes list'!$D$9:$E$58,2,FALSE) ) )","v":""},null,null,null,null,{"$f":"IF(TRIM(ET145)=\"\", \"\", IF(VLOOKUP(ET145,'Footnotes list'!$D$9:$E$58,2,FALSE)=0,\"\",VLOOKUP(ET145,'Footnotes list'!$D$9:$E$58,2,FALSE) ) )","v":""},null,null,null,null,{"$f":"IF(TRIM(EY145)=\"\", \"\", IF(VLOOKUP(EY145,'Footnotes list'!$D$9:$E$58,2,FALSE)=0,\"\",VLOOKUP(EY145,'Footnotes list'!$D$9:$E$58,2,FALSE) ) )","v":""}]
[null,null,"E36","ES_CS","environmental specific services",null,null,null,null,null,{"$f":"IF(TRIM(J146)=\"\", \"\", IF(VLOOKUP(J146,'Footnotes list'!$D$9:$E$58,2,FALSE)=0,\"\",VLOOKUP(J146,'Footnotes list'!$D$9:$E$58,2,FALSE) ) )","v":""},null,null,null,null,{"$f":"IF(TRIM(O146)=\"\", \"\", IF(VLOOKUP(O146,'Footnotes list'!$D$9:$E$58,2,FALSE)=0,\"\",VLOOKUP(O146,'Footnotes list'!$D$9:$E$58,2,FALSE) ) )","v":""},null,null,null,null,{"$f":"IF(TRIM(T146)=\"\", \"\", IF(VLOOKUP(T146,'Footnotes list'!$D$9:$E$58,2,FALSE)=0,\"\",VLOOKUP(T146,'Footnotes list'!$D$9:$E$58,2,FALSE) ) )","v":""},null,null,null,null,{"$f":"IF(TRIM(Y146)=\"\", \"\", IF(VLOOKUP(Y146,'Footnotes list'!$D$9:$E$58,2,FALSE)=0,\"\",VLOOKUP(Y146,'Footnotes list'!$D$9:$E$58,2,FALSE) ) )","v":""},null,null,null,null,{"$f":"IF(TRIM(AD146)=\"\", \"\", IF(VLOOKUP(AD146,'Footnotes list'!$D$9:$E$58,2,FALSE)=0,\"\",VLOOKUP(AD146,'Footnotes list'!$D$9:$E$58,2,FALSE) ) )","v":""},null,null,null,null,{"$f":"IF(TRIM(AI146)=\"\", \"\", IF(VLOOKUP(AI146,'Footnotes list'!$D$9:$E$58,2,FALSE)=0,\"\",VLOOKUP(AI146,'Footnotes list'!$D$9:$E$58,2,FALSE) ) )","v":""},null,null,null,null,{"$f":"IF(TRIM(AN146)=\"\", \"\", IF(VLOOKUP(AN146,'Footnotes list'!$D$9:$E$58,2,FALSE)=0,\"\",VLOOKUP(AN146,'Footnotes list'!$D$9:$E$58,2,FALSE) ) )","v":""},null,null,null,null,{"$f":"IF(TRIM(AS146)=\"\", \"\", IF(VLOOKUP(AS146,'Footnotes list'!$D$9:$E$58,2,FALSE)=0,\"\",VLOOKUP(AS146,'Footnotes list'!$D$9:$E$58,2,FALSE) ) )","v":""},null,null,null,null,{"$f":"IF(TRIM(AX146)=\"\", \"\", IF(VLOOKUP(AX146,'Footnotes list'!$D$9:$E$58,2,FALSE)=0,\"\",VLOOKUP(AX146,'Footnotes list'!$D$9:$E$58,2,FALSE) ) )","v":""},null,null,null,null,{"$f":"IF(TRIM(BC146)=\"\", \"\", IF(VLOOKUP(BC146,'Footnotes list'!$D$9:$E$58,2,FALSE)=0,\"\",VLOOKUP(BC146,'Footnotes list'!$D$9:$E$58,2,FALSE) ) )","v":""},null,null,null,null,{"$f":"IF(TRIM(BH146)=\"\", \"\", IF(VLOOKUP(BH146,'Footnotes list'!$D$9:$E$58,2,FALSE)=0,\"\",VLOOKUP(BH146,'Footnotes list'!$D$9:$E$58,2,FALSE) ) )","v":""},null,null,null,null,{"$f":"IF(TRIM(BM146)=\"\", \"\", IF(VLOOKUP(BM146,'Footnotes list'!$D$9:$E$58,2,FALSE)=0,\"\",VLOOKUP(BM146,'Footnotes list'!$D$9:$E$58,2,FALSE) ) )","v":""},null,null,null,null,{"$f":"IF(TRIM(BR146)=\"\", \"\", IF(VLOOKUP(BR146,'Footnotes list'!$D$9:$E$58,2,FALSE)=0,\"\",VLOOKUP(BR146,'Footnotes list'!$D$9:$E$58,2,FALSE) ) )","v":""},null,null,null,null,{"$f":"IF(TRIM(BW146)=\"\", \"\", IF(VLOOKUP(BW146,'Footnotes list'!$D$9:$E$58,2,FALSE)=0,\"\",VLOOKUP(BW146,'Footnotes list'!$D$9:$E$58,2,FALSE) ) )","v":""},null,null,null,null,{"$f":"IF(TRIM(CB146)=\"\", \"\", IF(VLOOKUP(CB146,'Footnotes list'!$D$9:$E$58,2,FALSE)=0,\"\",VLOOKUP(CB146,'Footnotes list'!$D$9:$E$58,2,FALSE) ) )","v":""},null,null,null,null,{"$f":"IF(TRIM(CG146)=\"\", \"\", IF(VLOOKUP(CG146,'Footnotes list'!$D$9:$E$58,2,FALSE)=0,\"\",VLOOKUP(CG146,'Footnotes list'!$D$9:$E$58,2,FALSE) ) )","v":""},null,null,null,null,{"$f":"IF(TRIM(CL146)=\"\", \"\", IF(VLOOKUP(CL146,'Footnotes list'!$D$9:$E$58,2,FALSE)=0,\"\",VLOOKUP(CL146,'Footnotes list'!$D$9:$E$58,2,FALSE) ) )","v":""},null,null,null,null,{"$f":"IF(TRIM(CQ146)=\"\", \"\", IF(VLOOKUP(CQ146,'Footnotes list'!$D$9:$E$58,2,FALSE)=0,\"\",VLOOKUP(CQ146,'Footnotes list'!$D$9:$E$58,2,FALSE) ) )","v":""},null,null,null,null,{"$f":"IF(TRIM(CV146)=\"\", \"\", IF(VLOOKUP(CV146,'Footnotes list'!$D$9:$E$58,2,FALSE)=0,\"\",VLOOKUP(CV146,'Footnotes list'!$D$9:$E$58,2,FALSE) ) )","v":""},null,null,null,null,{"$f":"IF(TRIM(DA146)=\"\", \"\", IF(VLOOKUP(DA146,'Footnotes list'!$D$9:$E$58,2,FALSE)=0,\"\",VLOOKUP(DA146,'Footnotes list'!$D$9:$E$58,2,FALSE) ) )","v":""},null,null,null,null,{"$f":"IF(TRIM(DF146)=\"\", \"\", IF(VLOOKUP(DF146,'Footnotes list'!$D$9:$E$58,2,FALSE)=0,\"\",VLOOKUP(DF146,'Footnotes list'!$D$9:$E$58,2,FALSE) ) )","v":""},null,null,null,null,{"$f":"IF(TRIM(DK146)=\"\", \"\", IF(VLOOKUP(DK146,'Footnotes list'!$D$9:$E$58,2,FALSE)=0,\"\",VLOOKUP(DK146,'Footnotes list'!$D$9:$E$58,2,FALSE) ) )","v":""},null,null,null,null,{"$f":"IF(TRIM(DP146)=\"\", \"\", IF(VLOOKUP(DP146,'Footnotes list'!$D$9:$E$58,2,FALSE)=0,\"\",VLOOKUP(DP146,'Footnotes list'!$D$9:$E$58,2,FALSE) ) )","v":""},null,null,null,null,{"$f":"IF(TRIM(DU146)=\"\", \"\", IF(VLOOKUP(DU146,'Footnotes list'!$D$9:$E$58,2,FALSE)=0,\"\",VLOOKUP(DU146,'Footnotes list'!$D$9:$E$58,2,FALSE) ) )","v":""},null,null,null,null,{"$f":"IF(TRIM(DZ146)=\"\", \"\", IF(VLOOKUP(DZ146,'Footnotes list'!$D$9:$E$58,2,FALSE)=0,\"\",VLOOKUP(DZ146,'Footnotes list'!$D$9:$E$58,2,FALSE) ) )","v":""},null,null,null,null,{"$f":"IF(TRIM(EE146)=\"\", \"\", IF(VLOOKUP(EE146,'Footnotes list'!$D$9:$E$58,2,FALSE)=0,\"\",VLOOKUP(EE146,'Footnotes list'!$D$9:$E$58,2,FALSE) ) )","v":""},null,null,null,null,{"$f":"IF(TRIM(EJ146)=\"\", \"\", IF(VLOOKUP(EJ146,'Footnotes list'!$D$9:$E$58,2,FALSE)=0,\"\",VLOOKUP(EJ146,'Footnotes list'!$D$9:$E$58,2,FALSE) ) )","v":""},null,null,null,null,{"$f":"IF(TRIM(EO146)=\"\", \"\", IF(VLOOKUP(EO146,'Footnotes list'!$D$9:$E$58,2,FALSE)=0,\"\",VLOOKUP(EO146,'Footnotes list'!$D$9:$E$58,2,FALSE) ) )","v":""},null,null,null,null,{"$f":"IF(TRIM(ET146)=\"\", \"\", IF(VLOOKUP(ET146,'Footnotes list'!$D$9:$E$58,2,FALSE)=0,\"\",VLOOKUP(ET146,'Footnotes list'!$D$9:$E$58,2,FALSE) ) )","v":""},null,null,null,null,{"$f":"IF(TRIM(EY146)=\"\", \"\", IF(VLOOKUP(EY146,'Footnotes list'!$D$9:$E$58,2,FALSE)=0,\"\",VLOOKUP(EY146,'Footnotes list'!$D$9:$E$58,2,FALSE) ) )","v":""}]
[null,null,"E36","C_REP","cleaner and resource efficient products",null,null,null,null,null,{"$f":"IF(TRIM(J147)=\"\", \"\", IF(VLOOKUP(J147,'Footnotes list'!$D$9:$E$58,2,FALSE)=0,\"\",VLOOKUP(J147,'Footnotes list'!$D$9:$E$58,2,FALSE) ) )","v":""},null,null,null,null,{"$f":"IF(TRIM(O147)=\"\", \"\", IF(VLOOKUP(O147,'Footnotes list'!$D$9:$E$58,2,FALSE)=0,\"\",VLOOKUP(O147,'Footnotes list'!$D$9:$E$58,2,FALSE) ) )","v":""},null,null,null,null,{"$f":"IF(TRIM(T147)=\"\", \"\", IF(VLOOKUP(T147,'Footnotes list'!$D$9:$E$58,2,FALSE)=0,\"\",VLOOKUP(T147,'Footnotes list'!$D$9:$E$58,2,FALSE) ) )","v":""},null,null,null,null,{"$f":"IF(TRIM(Y147)=\"\", \"\", IF(VLOOKUP(Y147,'Footnotes list'!$D$9:$E$58,2,FALSE)=0,\"\",VLOOKUP(Y147,'Footnotes list'!$D$9:$E$58,2,FALSE) ) )","v":""},null,null,null,null,{"$f":"IF(TRIM(AD147)=\"\", \"\", IF(VLOOKUP(AD147,'Footnotes list'!$D$9:$E$58,2,FALSE)=0,\"\",VLOOKUP(AD147,'Footnotes list'!$D$9:$E$58,2,FALSE) ) )","v":""},null,null,null,null,{"$f":"IF(TRIM(AI147)=\"\", \"\", IF(VLOOKUP(AI147,'Footnotes list'!$D$9:$E$58,2,FALSE)=0,\"\",VLOOKUP(AI147,'Footnotes list'!$D$9:$E$58,2,FALSE) ) )","v":""},null,null,null,null,{"$f":"IF(TRIM(AN147)=\"\", \"\", IF(VLOOKUP(AN147,'Footnotes list'!$D$9:$E$58,2,FALSE)=0,\"\",VLOOKUP(AN147,'Footnotes list'!$D$9:$E$58,2,FALSE) ) )","v":""},null,null,null,null,{"$f":"IF(TRIM(AS147)=\"\", \"\", IF(VLOOKUP(AS147,'Footnotes list'!$D$9:$E$58,2,FALSE)=0,\"\",VLOOKUP(AS147,'Footnotes list'!$D$9:$E$58,2,FALSE) ) )","v":""},null,null,null,null,{"$f":"IF(TRIM(AX147)=\"\", \"\", IF(VLOOKUP(AX147,'Footnotes list'!$D$9:$E$58,2,FALSE)=0,\"\",VLOOKUP(AX147,'Footnotes list'!$D$9:$E$58,2,FALSE) ) )","v":""},null,null,null,null,{"$f":"IF(TRIM(BC147)=\"\", \"\", IF(VLOOKUP(BC147,'Footnotes list'!$D$9:$E$58,2,FALSE)=0,\"\",VLOOKUP(BC147,'Footnotes list'!$D$9:$E$58,2,FALSE) ) )","v":""},null,null,null,null,{"$f":"IF(TRIM(BH147)=\"\", \"\", IF(VLOOKUP(BH147,'Footnotes list'!$D$9:$E$58,2,FALSE)=0,\"\",VLOOKUP(BH147,'Footnotes list'!$D$9:$E$58,2,FALSE) ) )","v":""},null,null,null,null,{"$f":"IF(TRIM(BM147)=\"\", \"\", IF(VLOOKUP(BM147,'Footnotes list'!$D$9:$E$58,2,FALSE)=0,\"\",VLOOKUP(BM147,'Footnotes list'!$D$9:$E$58,2,FALSE) ) )","v":""},null,null,null,null,{"$f":"IF(TRIM(BR147)=\"\", \"\", IF(VLOOKUP(BR147,'Footnotes list'!$D$9:$E$58,2,FALSE)=0,\"\",VLOOKUP(BR147,'Footnotes list'!$D$9:$E$58,2,FALSE) ) )","v":""},null,null,null,null,{"$f":"IF(TRIM(BW147)=\"\", \"\", IF(VLOOKUP(BW147,'Footnotes list'!$D$9:$E$58,2,FALSE)=0,\"\",VLOOKUP(BW147,'Footnotes list'!$D$9:$E$58,2,FALSE) ) )","v":""},null,null,null,null,{"$f":"IF(TRIM(CB147)=\"\", \"\", IF(VLOOKUP(CB147,'Footnotes list'!$D$9:$E$58,2,FALSE)=0,\"\",VLOOKUP(CB147,'Footnotes list'!$D$9:$E$58,2,FALSE) ) )","v":""},null,null,null,null,{"$f":"IF(TRIM(CG147)=\"\", \"\", IF(VLOOKUP(CG147,'Footnotes list'!$D$9:$E$58,2,FALSE)=0,\"\",VLOOKUP(CG147,'Footnotes list'!$D$9:$E$58,2,FALSE) ) )","v":""},null,null,null,null,{"$f":"IF(TRIM(CL147)=\"\", \"\", IF(VLOOKUP(CL147,'Footnotes list'!$D$9:$E$58,2,FALSE)=0,\"\",VLOOKUP(CL147,'Footnotes list'!$D$9:$E$58,2,FALSE) ) )","v":""},null,null,null,null,{"$f":"IF(TRIM(CQ147)=\"\", \"\", IF(VLOOKUP(CQ147,'Footnotes list'!$D$9:$E$58,2,FALSE)=0,\"\",VLOOKUP(CQ147,'Footnotes list'!$D$9:$E$58,2,FALSE) ) )","v":""},null,null,null,null,{"$f":"IF(TRIM(CV147)=\"\", \"\", IF(VLOOKUP(CV147,'Footnotes list'!$D$9:$E$58,2,FALSE)=0,\"\",VLOOKUP(CV147,'Footnotes list'!$D$9:$E$58,2,FALSE) ) )","v":""},null,null,null,null,{"$f":"IF(TRIM(DA147)=\"\", \"\", IF(VLOOKUP(DA147,'Footnotes list'!$D$9:$E$58,2,FALSE)=0,\"\",VLOOKUP(DA147,'Footnotes list'!$D$9:$E$58,2,FALSE) ) )","v":""},null,null,null,null,{"$f":"IF(TRIM(DF147)=\"\", \"\", IF(VLOOKUP(DF147,'Footnotes list'!$D$9:$E$58,2,FALSE)=0,\"\",VLOOKUP(DF147,'Footnotes list'!$D$9:$E$58,2,FALSE) ) )","v":""},null,null,null,null,{"$f":"IF(TRIM(DK147)=\"\", \"\", IF(VLOOKUP(DK147,'Footnotes list'!$D$9:$E$58,2,FALSE)=0,\"\",VLOOKUP(DK147,'Footnotes list'!$D$9:$E$58,2,FALSE) ) )","v":""},null,null,null,null,{"$f":"IF(TRIM(DP147)=\"\", \"\", IF(VLOOKUP(DP147,'Footnotes list'!$D$9:$E$58,2,FALSE)=0,\"\",VLOOKUP(DP147,'Footnotes list'!$D$9:$E$58,2,FALSE) ) )","v":""},null,null,null,null,{"$f":"IF(TRIM(DU147)=\"\", \"\", IF(VLOOKUP(DU147,'Footnotes list'!$D$9:$E$58,2,FALSE)=0,\"\",VLOOKUP(DU147,'Footnotes list'!$D$9:$E$58,2,FALSE) ) )","v":""},null,null,null,null,{"$f":"IF(TRIM(DZ147)=\"\", \"\", IF(VLOOKUP(DZ147,'Footnotes list'!$D$9:$E$58,2,FALSE)=0,\"\",VLOOKUP(DZ147,'Footnotes list'!$D$9:$E$58,2,FALSE) ) )","v":""},null,null,null,null,{"$f":"IF(TRIM(EE147)=\"\", \"\", IF(VLOOKUP(EE147,'Footnotes list'!$D$9:$E$58,2,FALSE)=0,\"\",VLOOKUP(EE147,'Footnotes list'!$D$9:$E$58,2,FALSE) ) )","v":""},null,null,null,null,{"$f":"IF(TRIM(EJ147)=\"\", \"\", IF(VLOOKUP(EJ147,'Footnotes list'!$D$9:$E$58,2,FALSE)=0,\"\",VLOOKUP(EJ147,'Footnotes list'!$D$9:$E$58,2,FALSE) ) )","v":""},null,null,null,null,{"$f":"IF(TRIM(EO147)=\"\", \"\", IF(VLOOKUP(EO147,'Footnotes list'!$D$9:$E$58,2,FALSE)=0,\"\",VLOOKUP(EO147,'Footnotes list'!$D$9:$E$58,2,FALSE) ) )","v":""},null,null,null,null,{"$f":"IF(TRIM(ET147)=\"\", \"\", IF(VLOOKUP(ET147,'Footnotes list'!$D$9:$E$58,2,FALSE)=0,\"\",VLOOKUP(ET147,'Footnotes list'!$D$9:$E$58,2,FALSE) ) )","v":""},null,null,null,null,{"$f":"IF(TRIM(EY147)=\"\", \"\", IF(VLOOKUP(EY147,'Footnotes list'!$D$9:$E$58,2,FALSE)=0,\"\",VLOOKUP(EY147,'Footnotes list'!$D$9:$E$58,2,FALSE) ) )","v":""}]
[null,null,"E37","TOT_EGSS","Total E37 - Sewerage, of which:",null,null,null,null,null,{"$f":"IF(TRIM(J148)=\"\", \"\", IF(VLOOKUP(J148,'Footnotes list'!$D$9:$E$58,2,FALSE)=0,\"\",VLOOKUP(J148,'Footnotes list'!$D$9:$E$58,2,FALSE) ) )","v":""},null,null,null,null,{"$f":"IF(TRIM(O148)=\"\", \"\", IF(VLOOKUP(O148,'Footnotes list'!$D$9:$E$58,2,FALSE)=0,\"\",VLOOKUP(O148,'Footnotes list'!$D$9:$E$58,2,FALSE) ) )","v":""},null,null,null,null,{"$f":"IF(TRIM(T148)=\"\", \"\", IF(VLOOKUP(T148,'Footnotes list'!$D$9:$E$58,2,FALSE)=0,\"\",VLOOKUP(T148,'Footnotes list'!$D$9:$E$58,2,FALSE) ) )","v":""},null,null,null,null,{"$f":"IF(TRIM(Y148)=\"\", \"\", IF(VLOOKUP(Y148,'Footnotes list'!$D$9:$E$58,2,FALSE)=0,\"\",VLOOKUP(Y148,'Footnotes list'!$D$9:$E$58,2,FALSE) ) )","v":""},null,null,null,null,{"$f":"IF(TRIM(AD148)=\"\", \"\", IF(VLOOKUP(AD148,'Footnotes list'!$D$9:$E$58,2,FALSE)=0,\"\",VLOOKUP(AD148,'Footnotes list'!$D$9:$E$58,2,FALSE) ) )","v":""},null,null,null,null,{"$f":"IF(TRIM(AI148)=\"\", \"\", IF(VLOOKUP(AI148,'Footnotes list'!$D$9:$E$58,2,FALSE)=0,\"\",VLOOKUP(AI148,'Footnotes list'!$D$9:$E$58,2,FALSE) ) )","v":""},null,null,null,null,{"$f":"IF(TRIM(AN148)=\"\", \"\", IF(VLOOKUP(AN148,'Footnotes list'!$D$9:$E$58,2,FALSE)=0,\"\",VLOOKUP(AN148,'Footnotes list'!$D$9:$E$58,2,FALSE) ) )","v":""},null,null,null,null,{"$f":"IF(TRIM(AS148)=\"\", \"\", IF(VLOOKUP(AS148,'Footnotes list'!$D$9:$E$58,2,FALSE)=0,\"\",VLOOKUP(AS148,'Footnotes list'!$D$9:$E$58,2,FALSE) ) )","v":""},null,null,null,null,{"$f":"IF(TRIM(AX148)=\"\", \"\", IF(VLOOKUP(AX148,'Footnotes list'!$D$9:$E$58,2,FALSE)=0,\"\",VLOOKUP(AX148,'Footnotes list'!$D$9:$E$58,2,FALSE) ) )","v":""},null,null,null,null,{"$f":"IF(TRIM(BC148)=\"\", \"\", IF(VLOOKUP(BC148,'Footnotes list'!$D$9:$E$58,2,FALSE)=0,\"\",VLOOKUP(BC148,'Footnotes list'!$D$9:$E$58,2,FALSE) ) )","v":""},null,null,null,null,{"$f":"IF(TRIM(BH148)=\"\", \"\", IF(VLOOKUP(BH148,'Footnotes list'!$D$9:$E$58,2,FALSE)=0,\"\",VLOOKUP(BH148,'Footnotes list'!$D$9:$E$58,2,FALSE) ) )","v":""},null,null,null,null,{"$f":"IF(TRIM(BM148)=\"\", \"\", IF(VLOOKUP(BM148,'Footnotes list'!$D$9:$E$58,2,FALSE)=0,\"\",VLOOKUP(BM148,'Footnotes list'!$D$9:$E$58,2,FALSE) ) )","v":""},null,null,null,null,{"$f":"IF(TRIM(BR148)=\"\", \"\", IF(VLOOKUP(BR148,'Footnotes list'!$D$9:$E$58,2,FALSE)=0,\"\",VLOOKUP(BR148,'Footnotes list'!$D$9:$E$58,2,FALSE) ) )","v":""},null,null,null,null,{"$f":"IF(TRIM(BW148)=\"\", \"\", IF(VLOOKUP(BW148,'Footnotes list'!$D$9:$E$58,2,FALSE)=0,\"\",VLOOKUP(BW148,'Footnotes list'!$D$9:$E$58,2,FALSE) ) )","v":""},null,null,null,null,{"$f":"IF(TRIM(CB148)=\"\", \"\", IF(VLOOKUP(CB148,'Footnotes list'!$D$9:$E$58,2,FALSE)=0,\"\",VLOOKUP(CB148,'Footnotes list'!$D$9:$E$58,2,FALSE) ) )","v":""},null,null,null,null,{"$f":"IF(TRIM(CG148)=\"\", \"\", IF(VLOOKUP(CG148,'Footnotes list'!$D$9:$E$58,2,FALSE)=0,\"\",VLOOKUP(CG148,'Footnotes list'!$D$9:$E$58,2,FALSE) ) )","v":""},null,null,null,null,{"$f":"IF(TRIM(CL148)=\"\", \"\", IF(VLOOKUP(CL148,'Footnotes list'!$D$9:$E$58,2,FALSE)=0,\"\",VLOOKUP(CL148,'Footnotes list'!$D$9:$E$58,2,FALSE) ) )","v":""},null,null,null,null,{"$f":"IF(TRIM(CQ148)=\"\", \"\", IF(VLOOKUP(CQ148,'Footnotes list'!$D$9:$E$58,2,FALSE)=0,\"\",VLOOKUP(CQ148,'Footnotes list'!$D$9:$E$58,2,FALSE) ) )","v":""},null,null,null,null,{"$f":"IF(TRIM(CV148)=\"\", \"\", IF(VLOOKUP(CV148,'Footnotes list'!$D$9:$E$58,2,FALSE)=0,\"\",VLOOKUP(CV148,'Footnotes list'!$D$9:$E$58,2,FALSE) ) )","v":""},null,null,null,null,{"$f":"IF(TRIM(DA148)=\"\", \"\", IF(VLOOKUP(DA148,'Footnotes list'!$D$9:$E$58,2,FALSE)=0,\"\",VLOOKUP(DA148,'Footnotes list'!$D$9:$E$58,2,FALSE) ) )","v":""},null,null,null,null,{"$f":"IF(TRIM(DF148)=\"\", \"\", IF(VLOOKUP(DF148,'Footnotes list'!$D$9:$E$58,2,FALSE)=0,\"\",VLOOKUP(DF148,'Footnotes list'!$D$9:$E$58,2,FALSE) ) )","v":""},null,null,null,null,{"$f":"IF(TRIM(DK148)=\"\", \"\", IF(VLOOKUP(DK148,'Footnotes list'!$D$9:$E$58,2,FALSE)=0,\"\",VLOOKUP(DK148,'Footnotes list'!$D$9:$E$58,2,FALSE) ) )","v":""},null,null,null,null,{"$f":"IF(TRIM(DP148)=\"\", \"\", IF(VLOOKUP(DP148,'Footnotes list'!$D$9:$E$58,2,FALSE)=0,\"\",VLOOKUP(DP148,'Footnotes list'!$D$9:$E$58,2,FALSE) ) )","v":""},null,null,null,null,{"$f":"IF(TRIM(DU148)=\"\", \"\", IF(VLOOKUP(DU148,'Footnotes list'!$D$9:$E$58,2,FALSE)=0,\"\",VLOOKUP(DU148,'Footnotes list'!$D$9:$E$58,2,FALSE) ) )","v":""},null,null,null,null,{"$f":"IF(TRIM(DZ148)=\"\", \"\", IF(VLOOKUP(DZ148,'Footnotes list'!$D$9:$E$58,2,FALSE)=0,\"\",VLOOKUP(DZ148,'Footnotes list'!$D$9:$E$58,2,FALSE) ) )","v":""},null,null,null,null,{"$f":"IF(TRIM(EE148)=\"\", \"\", IF(VLOOKUP(EE148,'Footnotes list'!$D$9:$E$58,2,FALSE)=0,\"\",VLOOKUP(EE148,'Footnotes list'!$D$9:$E$58,2,FALSE) ) )","v":""},null,null,null,null,{"$f":"IF(TRIM(EJ148)=\"\", \"\", IF(VLOOKUP(EJ148,'Footnotes list'!$D$9:$E$58,2,FALSE)=0,\"\",VLOOKUP(EJ148,'Footnotes list'!$D$9:$E$58,2,FALSE) ) )","v":""},null,null,null,null,{"$f":"IF(TRIM(EO148)=\"\", \"\", IF(VLOOKUP(EO148,'Footnotes list'!$D$9:$E$58,2,FALSE)=0,\"\",VLOOKUP(EO148,'Footnotes list'!$D$9:$E$58,2,FALSE) ) )","v":""},null,null,null,null,{"$f":"IF(TRIM(ET148)=\"\", \"\", IF(VLOOKUP(ET148,'Footnotes list'!$D$9:$E$58,2,FALSE)=0,\"\",VLOOKUP(ET148,'Footnotes list'!$D$9:$E$58,2,FALSE) ) )","v":""},null,null,null,null,{"$f":"IF(TRIM(EY148)=\"\", \"\", IF(VLOOKUP(EY148,'Footnotes list'!$D$9:$E$58,2,FALSE)=0,\"\",VLOOKUP(EY148,'Footnotes list'!$D$9:$E$58,2,FALSE) ) )","v":""}]
[null,null,"E37","ANC","ancillary activities",null,null,null,null,null,{"$f":"IF(TRIM(J149)=\"\", \"\", IF(VLOOKUP(J149,'Footnotes list'!$D$9:$E$58,2,FALSE)=0,\"\",VLOOKUP(J149,'Footnotes list'!$D$9:$E$58,2,FALSE) ) )","v":""},null,null,null,null,{"$f":"IF(TRIM(O149)=\"\", \"\", IF(VLOOKUP(O149,'Footnotes list'!$D$9:$E$58,2,FALSE)=0,\"\",VLOOKUP(O149,'Footnotes list'!$D$9:$E$58,2,FALSE) ) )","v":""},null,null,null,null,{"$f":"IF(TRIM(T149)=\"\", \"\", IF(VLOOKUP(T149,'Footnotes list'!$D$9:$E$58,2,FALSE)=0,\"\",VLOOKUP(T149,'Footnotes list'!$D$9:$E$58,2,FALSE) ) )","v":""},null,null,null,null,{"$f":"IF(TRIM(Y149)=\"\", \"\", IF(VLOOKUP(Y149,'Footnotes list'!$D$9:$E$58,2,FALSE)=0,\"\",VLOOKUP(Y149,'Footnotes list'!$D$9:$E$58,2,FALSE) ) )","v":""},null,null,null,null,{"$f":"IF(TRIM(AD149)=\"\", \"\", IF(VLOOKUP(AD149,'Footnotes list'!$D$9:$E$58,2,FALSE)=0,\"\",VLOOKUP(AD149,'Footnotes list'!$D$9:$E$58,2,FALSE) ) )","v":""},null,null,null,null,{"$f":"IF(TRIM(AI149)=\"\", \"\", IF(VLOOKUP(AI149,'Footnotes list'!$D$9:$E$58,2,FALSE)=0,\"\",VLOOKUP(AI149,'Footnotes list'!$D$9:$E$58,2,FALSE) ) )","v":""},null,null,null,null,{"$f":"IF(TRIM(AN149)=\"\", \"\", IF(VLOOKUP(AN149,'Footnotes list'!$D$9:$E$58,2,FALSE)=0,\"\",VLOOKUP(AN149,'Footnotes list'!$D$9:$E$58,2,FALSE) ) )","v":""},null,null,null,null,{"$f":"IF(TRIM(AS149)=\"\", \"\", IF(VLOOKUP(AS149,'Footnotes list'!$D$9:$E$58,2,FALSE)=0,\"\",VLOOKUP(AS149,'Footnotes list'!$D$9:$E$58,2,FALSE) ) )","v":""},null,null,null,null,{"$f":"IF(TRIM(AX149)=\"\", \"\", IF(VLOOKUP(AX149,'Footnotes list'!$D$9:$E$58,2,FALSE)=0,\"\",VLOOKUP(AX149,'Footnotes list'!$D$9:$E$58,2,FALSE) ) )","v":""},null,null,null,null,{"$f":"IF(TRIM(BC149)=\"\", \"\", IF(VLOOKUP(BC149,'Footnotes list'!$D$9:$E$58,2,FALSE)=0,\"\",VLOOKUP(BC149,'Footnotes list'!$D$9:$E$58,2,FALSE) ) )","v":""},null,null,null,null,{"$f":"IF(TRIM(BH149)=\"\", \"\", IF(VLOOKUP(BH149,'Footnotes list'!$D$9:$E$58,2,FALSE)=0,\"\",VLOOKUP(BH149,'Footnotes list'!$D$9:$E$58,2,FALSE) ) )","v":""},null,null,null,null,{"$f":"IF(TRIM(BM149)=\"\", \"\", IF(VLOOKUP(BM149,'Footnotes list'!$D$9:$E$58,2,FALSE)=0,\"\",VLOOKUP(BM149,'Footnotes list'!$D$9:$E$58,2,FALSE) ) )","v":""},null,null,null,null,{"$f":"IF(TRIM(BR149)=\"\", \"\", IF(VLOOKUP(BR149,'Footnotes list'!$D$9:$E$58,2,FALSE)=0,\"\",VLOOKUP(BR149,'Footnotes list'!$D$9:$E$58,2,FALSE) ) )","v":""},null,null,null,null,{"$f":"IF(TRIM(BW149)=\"\", \"\", IF(VLOOKUP(BW149,'Footnotes list'!$D$9:$E$58,2,FALSE)=0,\"\",VLOOKUP(BW149,'Footnotes list'!$D$9:$E$58,2,FALSE) ) )","v":""},null,null,null,null,{"$f":"IF(TRIM(CB149)=\"\", \"\", IF(VLOOKUP(CB149,'Footnotes list'!$D$9:$E$58,2,FALSE)=0,\"\",VLOOKUP(CB149,'Footnotes list'!$D$9:$E$58,2,FALSE) ) )","v":""},null,null,null,null,{"$f":"IF(TRIM(CG149)=\"\", \"\", IF(VLOOKUP(CG149,'Footnotes list'!$D$9:$E$58,2,FALSE)=0,\"\",VLOOKUP(CG149,'Footnotes list'!$D$9:$E$58,2,FALSE) ) )","v":""},null,null,null,null,{"$f":"IF(TRIM(CL149)=\"\", \"\", IF(VLOOKUP(CL149,'Footnotes list'!$D$9:$E$58,2,FALSE)=0,\"\",VLOOKUP(CL149,'Footnotes list'!$D$9:$E$58,2,FALSE) ) )","v":""},null,null,null,null,{"$f":"IF(TRIM(CQ149)=\"\", \"\", IF(VLOOKUP(CQ149,'Footnotes list'!$D$9:$E$58,2,FALSE)=0,\"\",VLOOKUP(CQ149,'Footnotes list'!$D$9:$E$58,2,FALSE) ) )","v":""},null,null,null,null,{"$f":"IF(TRIM(CV149)=\"\", \"\", IF(VLOOKUP(CV149,'Footnotes list'!$D$9:$E$58,2,FALSE)=0,\"\",VLOOKUP(CV149,'Footnotes list'!$D$9:$E$58,2,FALSE) ) )","v":""},null,null,null,null,{"$f":"IF(TRIM(DA149)=\"\", \"\", IF(VLOOKUP(DA149,'Footnotes list'!$D$9:$E$58,2,FALSE)=0,\"\",VLOOKUP(DA149,'Footnotes list'!$D$9:$E$58,2,FALSE) ) )","v":""},null,null,null,null,{"$f":"IF(TRIM(DF149)=\"\", \"\", IF(VLOOKUP(DF149,'Footnotes list'!$D$9:$E$58,2,FALSE)=0,\"\",VLOOKUP(DF149,'Footnotes list'!$D$9:$E$58,2,FALSE) ) )","v":""},null,null,null,null,{"$f":"IF(TRIM(DK149)=\"\", \"\", IF(VLOOKUP(DK149,'Footnotes list'!$D$9:$E$58,2,FALSE)=0,\"\",VLOOKUP(DK149,'Footnotes list'!$D$9:$E$58,2,FALSE) ) )","v":""},null,null,null,null,{"$f":"IF(TRIM(DP149)=\"\", \"\", IF(VLOOKUP(DP149,'Footnotes list'!$D$9:$E$58,2,FALSE)=0,\"\",VLOOKUP(DP149,'Footnotes list'!$D$9:$E$58,2,FALSE) ) )","v":""},null,null,null,null,{"$f":"IF(TRIM(DU149)=\"\", \"\", IF(VLOOKUP(DU149,'Footnotes list'!$D$9:$E$58,2,FALSE)=0,\"\",VLOOKUP(DU149,'Footnotes list'!$D$9:$E$58,2,FALSE) ) )","v":""},null,null,null,null,{"$f":"IF(TRIM(DZ149)=\"\", \"\", IF(VLOOKUP(DZ149,'Footnotes list'!$D$9:$E$58,2,FALSE)=0,\"\",VLOOKUP(DZ149,'Footnotes list'!$D$9:$E$58,2,FALSE) ) )","v":""},null,null,null,null,{"$f":"IF(TRIM(EE149)=\"\", \"\", IF(VLOOKUP(EE149,'Footnotes list'!$D$9:$E$58,2,FALSE)=0,\"\",VLOOKUP(EE149,'Footnotes list'!$D$9:$E$58,2,FALSE) ) )","v":""},null,null,null,null,{"$f":"IF(TRIM(EJ149)=\"\", \"\", IF(VLOOKUP(EJ149,'Footnotes list'!$D$9:$E$58,2,FALSE)=0,\"\",VLOOKUP(EJ149,'Footnotes list'!$D$9:$E$58,2,FALSE) ) )","v":""},null,null,null,null,{"$f":"IF(TRIM(EO149)=\"\", \"\", IF(VLOOKUP(EO149,'Footnotes list'!$D$9:$E$58,2,FALSE)=0,\"\",VLOOKUP(EO149,'Footnotes list'!$D$9:$E$58,2,FALSE) ) )","v":""},null,null,null,null,{"$f":"IF(TRIM(ET149)=\"\", \"\", IF(VLOOKUP(ET149,'Footnotes list'!$D$9:$E$58,2,FALSE)=0,\"\",VLOOKUP(ET149,'Footnotes list'!$D$9:$E$58,2,FALSE) ) )","v":""},null,null,null,null,{"$f":"IF(TRIM(EY149)=\"\", \"\", IF(VLOOKUP(EY149,'Footnotes list'!$D$9:$E$58,2,FALSE)=0,\"\",VLOOKUP(EY149,'Footnotes list'!$D$9:$E$58,2,FALSE) ) )","v":""}]
[null,null,"E37","NMKT","non-market activities",null,null,null,null,null,{"$f":"IF(TRIM(J150)=\"\", \"\", IF(VLOOKUP(J150,'Footnotes list'!$D$9:$E$58,2,FALSE)=0,\"\",VLOOKUP(J150,'Footnotes list'!$D$9:$E$58,2,FALSE) ) )","v":""},null,null,null,null,{"$f":"IF(TRIM(O150)=\"\", \"\", IF(VLOOKUP(O150,'Footnotes list'!$D$9:$E$58,2,FALSE)=0,\"\",VLOOKUP(O150,'Footnotes list'!$D$9:$E$58,2,FALSE) ) )","v":""},null,null,null,null,{"$f":"IF(TRIM(T150)=\"\", \"\", IF(VLOOKUP(T150,'Footnotes list'!$D$9:$E$58,2,FALSE)=0,\"\",VLOOKUP(T150,'Footnotes list'!$D$9:$E$58,2,FALSE) ) )","v":""},null,null,null,null,{"$f":"IF(TRIM(Y150)=\"\", \"\", IF(VLOOKUP(Y150,'Footnotes list'!$D$9:$E$58,2,FALSE)=0,\"\",VLOOKUP(Y150,'Footnotes list'!$D$9:$E$58,2,FALSE) ) )","v":""},null,null,null,null,{"$f":"IF(TRIM(AD150)=\"\", \"\", IF(VLOOKUP(AD150,'Footnotes list'!$D$9:$E$58,2,FALSE)=0,\"\",VLOOKUP(AD150,'Footnotes list'!$D$9:$E$58,2,FALSE) ) )","v":""},null,null,null,null,{"$f":"IF(TRIM(AI150)=\"\", \"\", IF(VLOOKUP(AI150,'Footnotes list'!$D$9:$E$58,2,FALSE)=0,\"\",VLOOKUP(AI150,'Footnotes list'!$D$9:$E$58,2,FALSE) ) )","v":""},null,null,null,null,{"$f":"IF(TRIM(AN150)=\"\", \"\", IF(VLOOKUP(AN150,'Footnotes list'!$D$9:$E$58,2,FALSE)=0,\"\",VLOOKUP(AN150,'Footnotes list'!$D$9:$E$58,2,FALSE) ) )","v":""},null,null,null,null,{"$f":"IF(TRIM(AS150)=\"\", \"\", IF(VLOOKUP(AS150,'Footnotes list'!$D$9:$E$58,2,FALSE)=0,\"\",VLOOKUP(AS150,'Footnotes list'!$D$9:$E$58,2,FALSE) ) )","v":""},null,null,null,null,{"$f":"IF(TRIM(AX150)=\"\", \"\", IF(VLOOKUP(AX150,'Footnotes list'!$D$9:$E$58,2,FALSE)=0,\"\",VLOOKUP(AX150,'Footnotes list'!$D$9:$E$58,2,FALSE) ) )","v":""},null,null,null,null,{"$f":"IF(TRIM(BC150)=\"\", \"\", IF(VLOOKUP(BC150,'Footnotes list'!$D$9:$E$58,2,FALSE)=0,\"\",VLOOKUP(BC150,'Footnotes list'!$D$9:$E$58,2,FALSE) ) )","v":""},null,null,null,null,{"$f":"IF(TRIM(BH150)=\"\", \"\", IF(VLOOKUP(BH150,'Footnotes list'!$D$9:$E$58,2,FALSE)=0,\"\",VLOOKUP(BH150,'Footnotes list'!$D$9:$E$58,2,FALSE) ) )","v":""},null,null,null,null,{"$f":"IF(TRIM(BM150)=\"\", \"\", IF(VLOOKUP(BM150,'Footnotes list'!$D$9:$E$58,2,FALSE)=0,\"\",VLOOKUP(BM150,'Footnotes list'!$D$9:$E$58,2,FALSE) ) )","v":""},null,null,null,null,{"$f":"IF(TRIM(BR150)=\"\", \"\", IF(VLOOKUP(BR150,'Footnotes list'!$D$9:$E$58,2,FALSE)=0,\"\",VLOOKUP(BR150,'Footnotes list'!$D$9:$E$58,2,FALSE) ) )","v":""},null,null,null,null,{"$f":"IF(TRIM(BW150)=\"\", \"\", IF(VLOOKUP(BW150,'Footnotes list'!$D$9:$E$58,2,FALSE)=0,\"\",VLOOKUP(BW150,'Footnotes list'!$D$9:$E$58,2,FALSE) ) )","v":""},null,null,null,null,{"$f":"IF(TRIM(CB150)=\"\", \"\", IF(VLOOKUP(CB150,'Footnotes list'!$D$9:$E$58,2,FALSE)=0,\"\",VLOOKUP(CB150,'Footnotes list'!$D$9:$E$58,2,FALSE) ) )","v":""},null,null,null,null,{"$f":"IF(TRIM(CG150)=\"\", \"\", IF(VLOOKUP(CG150,'Footnotes list'!$D$9:$E$58,2,FALSE)=0,\"\",VLOOKUP(CG150,'Footnotes list'!$D$9:$E$58,2,FALSE) ) )","v":""},null,null,null,null,{"$f":"IF(TRIM(CL150)=\"\", \"\", IF(VLOOKUP(CL150,'Footnotes list'!$D$9:$E$58,2,FALSE)=0,\"\",VLOOKUP(CL150,'Footnotes list'!$D$9:$E$58,2,FALSE) ) )","v":""},null,null,null,null,{"$f":"IF(TRIM(CQ150)=\"\", \"\", IF(VLOOKUP(CQ150,'Footnotes list'!$D$9:$E$58,2,FALSE)=0,\"\",VLOOKUP(CQ150,'Footnotes list'!$D$9:$E$58,2,FALSE) ) )","v":""},null,null,null,null,{"$f":"IF(TRIM(CV150)=\"\", \"\", IF(VLOOKUP(CV150,'Footnotes list'!$D$9:$E$58,2,FALSE)=0,\"\",VLOOKUP(CV150,'Footnotes list'!$D$9:$E$58,2,FALSE) ) )","v":""},null,null,null,null,{"$f":"IF(TRIM(DA150)=\"\", \"\", IF(VLOOKUP(DA150,'Footnotes list'!$D$9:$E$58,2,FALSE)=0,\"\",VLOOKUP(DA150,'Footnotes list'!$D$9:$E$58,2,FALSE) ) )","v":""},null,null,null,null,{"$f":"IF(TRIM(DF150)=\"\", \"\", IF(VLOOKUP(DF150,'Footnotes list'!$D$9:$E$58,2,FALSE)=0,\"\",VLOOKUP(DF150,'Footnotes list'!$D$9:$E$58,2,FALSE) ) )","v":""},null,null,null,null,{"$f":"IF(TRIM(DK150)=\"\", \"\", IF(VLOOKUP(DK150,'Footnotes list'!$D$9:$E$58,2,FALSE)=0,\"\",VLOOKUP(DK150,'Footnotes list'!$D$9:$E$58,2,FALSE) ) )","v":""},null,null,null,null,{"$f":"IF(TRIM(DP150)=\"\", \"\", IF(VLOOKUP(DP150,'Footnotes list'!$D$9:$E$58,2,FALSE)=0,\"\",VLOOKUP(DP150,'Footnotes list'!$D$9:$E$58,2,FALSE) ) )","v":""},null,null,null,null,{"$f":"IF(TRIM(DU150)=\"\", \"\", IF(VLOOKUP(DU150,'Footnotes list'!$D$9:$E$58,2,FALSE)=0,\"\",VLOOKUP(DU150,'Footnotes list'!$D$9:$E$58,2,FALSE) ) )","v":""},null,null,null,null,{"$f":"IF(TRIM(DZ150)=\"\", \"\", IF(VLOOKUP(DZ150,'Footnotes list'!$D$9:$E$58,2,FALSE)=0,\"\",VLOOKUP(DZ150,'Footnotes list'!$D$9:$E$58,2,FALSE) ) )","v":""},null,null,null,null,{"$f":"IF(TRIM(EE150)=\"\", \"\", IF(VLOOKUP(EE150,'Footnotes list'!$D$9:$E$58,2,FALSE)=0,\"\",VLOOKUP(EE150,'Footnotes list'!$D$9:$E$58,2,FALSE) ) )","v":""},null,null,null,null,{"$f":"IF(TRIM(EJ150)=\"\", \"\", IF(VLOOKUP(EJ150,'Footnotes list'!$D$9:$E$58,2,FALSE)=0,\"\",VLOOKUP(EJ150,'Footnotes list'!$D$9:$E$58,2,FALSE) ) )","v":""},null,null,null,null,{"$f":"IF(TRIM(EO150)=\"\", \"\", IF(VLOOKUP(EO150,'Footnotes list'!$D$9:$E$58,2,FALSE)=0,\"\",VLOOKUP(EO150,'Footnotes list'!$D$9:$E$58,2,FALSE) ) )","v":""},null,null,null,null,{"$f":"IF(TRIM(ET150)=\"\", \"\", IF(VLOOKUP(ET150,'Footnotes list'!$D$9:$E$58,2,FALSE)=0,\"\",VLOOKUP(ET150,'Footnotes list'!$D$9:$E$58,2,FALSE) ) )","v":""},null,null,null,null,{"$f":"IF(TRIM(EY150)=\"\", \"\", IF(VLOOKUP(EY150,'Footnotes list'!$D$9:$E$58,2,FALSE)=0,\"\",VLOOKUP(EY150,'Footnotes list'!$D$9:$E$58,2,FALSE) ) )","v":""}]
[null,null,"E37","OWN_USE","activities for own final use",null,null,null,null,null,{"$f":"IF(TRIM(J151)=\"\", \"\", IF(VLOOKUP(J151,'Footnotes list'!$D$9:$E$58,2,FALSE)=0,\"\",VLOOKUP(J151,'Footnotes list'!$D$9:$E$58,2,FALSE) ) )","v":""},null,null,null,null,{"$f":"IF(TRIM(O151)=\"\", \"\", IF(VLOOKUP(O151,'Footnotes list'!$D$9:$E$58,2,FALSE)=0,\"\",VLOOKUP(O151,'Footnotes list'!$D$9:$E$58,2,FALSE) ) )","v":""},null,null,null,null,{"$f":"IF(TRIM(T151)=\"\", \"\", IF(VLOOKUP(T151,'Footnotes list'!$D$9:$E$58,2,FALSE)=0,\"\",VLOOKUP(T151,'Footnotes list'!$D$9:$E$58,2,FALSE) ) )","v":""},null,null,null,null,{"$f":"IF(TRIM(Y151)=\"\", \"\", IF(VLOOKUP(Y151,'Footnotes list'!$D$9:$E$58,2,FALSE)=0,\"\",VLOOKUP(Y151,'Footnotes list'!$D$9:$E$58,2,FALSE) ) )","v":""},null,null,null,null,{"$f":"IF(TRIM(AD151)=\"\", \"\", IF(VLOOKUP(AD151,'Footnotes list'!$D$9:$E$58,2,FALSE)=0,\"\",VLOOKUP(AD151,'Footnotes list'!$D$9:$E$58,2,FALSE) ) )","v":""},null,null,null,null,{"$f":"IF(TRIM(AI151)=\"\", \"\", IF(VLOOKUP(AI151,'Footnotes list'!$D$9:$E$58,2,FALSE)=0,\"\",VLOOKUP(AI151,'Footnotes list'!$D$9:$E$58,2,FALSE) ) )","v":""},null,null,null,null,{"$f":"IF(TRIM(AN151)=\"\", \"\", IF(VLOOKUP(AN151,'Footnotes list'!$D$9:$E$58,2,FALSE)=0,\"\",VLOOKUP(AN151,'Footnotes list'!$D$9:$E$58,2,FALSE) ) )","v":""},null,null,null,null,{"$f":"IF(TRIM(AS151)=\"\", \"\", IF(VLOOKUP(AS151,'Footnotes list'!$D$9:$E$58,2,FALSE)=0,\"\",VLOOKUP(AS151,'Footnotes list'!$D$9:$E$58,2,FALSE) ) )","v":""},null,null,null,null,{"$f":"IF(TRIM(AX151)=\"\", \"\", IF(VLOOKUP(AX151,'Footnotes list'!$D$9:$E$58,2,FALSE)=0,\"\",VLOOKUP(AX151,'Footnotes list'!$D$9:$E$58,2,FALSE) ) )","v":""},null,null,null,null,{"$f":"IF(TRIM(BC151)=\"\", \"\", IF(VLOOKUP(BC151,'Footnotes list'!$D$9:$E$58,2,FALSE)=0,\"\",VLOOKUP(BC151,'Footnotes list'!$D$9:$E$58,2,FALSE) ) )","v":""},null,null,null,null,{"$f":"IF(TRIM(BH151)=\"\", \"\", IF(VLOOKUP(BH151,'Footnotes list'!$D$9:$E$58,2,FALSE)=0,\"\",VLOOKUP(BH151,'Footnotes list'!$D$9:$E$58,2,FALSE) ) )","v":""},null,null,null,null,{"$f":"IF(TRIM(BM151)=\"\", \"\", IF(VLOOKUP(BM151,'Footnotes list'!$D$9:$E$58,2,FALSE)=0,\"\",VLOOKUP(BM151,'Footnotes list'!$D$9:$E$58,2,FALSE) ) )","v":""},null,null,null,null,{"$f":"IF(TRIM(BR151)=\"\", \"\", IF(VLOOKUP(BR151,'Footnotes list'!$D$9:$E$58,2,FALSE)=0,\"\",VLOOKUP(BR151,'Footnotes list'!$D$9:$E$58,2,FALSE) ) )","v":""},null,null,null,null,{"$f":"IF(TRIM(BW151)=\"\", \"\", IF(VLOOKUP(BW151,'Footnotes list'!$D$9:$E$58,2,FALSE)=0,\"\",VLOOKUP(BW151,'Footnotes list'!$D$9:$E$58,2,FALSE) ) )","v":""},null,null,null,null,{"$f":"IF(TRIM(CB151)=\"\", \"\", IF(VLOOKUP(CB151,'Footnotes list'!$D$9:$E$58,2,FALSE)=0,\"\",VLOOKUP(CB151,'Footnotes list'!$D$9:$E$58,2,FALSE) ) )","v":""},null,null,null,null,{"$f":"IF(TRIM(CG151)=\"\", \"\", IF(VLOOKUP(CG151,'Footnotes list'!$D$9:$E$58,2,FALSE)=0,\"\",VLOOKUP(CG151,'Footnotes list'!$D$9:$E$58,2,FALSE) ) )","v":""},null,null,null,null,{"$f":"IF(TRIM(CL151)=\"\", \"\", IF(VLOOKUP(CL151,'Footnotes list'!$D$9:$E$58,2,FALSE)=0,\"\",VLOOKUP(CL151,'Footnotes list'!$D$9:$E$58,2,FALSE) ) )","v":""},null,null,null,null,{"$f":"IF(TRIM(CQ151)=\"\", \"\", IF(VLOOKUP(CQ151,'Footnotes list'!$D$9:$E$58,2,FALSE)=0,\"\",VLOOKUP(CQ151,'Footnotes list'!$D$9:$E$58,2,FALSE) ) )","v":""},null,null,null,null,{"$f":"IF(TRIM(CV151)=\"\", \"\", IF(VLOOKUP(CV151,'Footnotes list'!$D$9:$E$58,2,FALSE)=0,\"\",VLOOKUP(CV151,'Footnotes list'!$D$9:$E$58,2,FALSE) ) )","v":""},null,null,null,null,{"$f":"IF(TRIM(DA151)=\"\", \"\", IF(VLOOKUP(DA151,'Footnotes list'!$D$9:$E$58,2,FALSE)=0,\"\",VLOOKUP(DA151,'Footnotes list'!$D$9:$E$58,2,FALSE) ) )","v":""},null,null,null,null,{"$f":"IF(TRIM(DF151)=\"\", \"\", IF(VLOOKUP(DF151,'Footnotes list'!$D$9:$E$58,2,FALSE)=0,\"\",VLOOKUP(DF151,'Footnotes list'!$D$9:$E$58,2,FALSE) ) )","v":""},null,null,null,null,{"$f":"IF(TRIM(DK151)=\"\", \"\", IF(VLOOKUP(DK151,'Footnotes list'!$D$9:$E$58,2,FALSE)=0,\"\",VLOOKUP(DK151,'Footnotes list'!$D$9:$E$58,2,FALSE) ) )","v":""},null,null,null,null,{"$f":"IF(TRIM(DP151)=\"\", \"\", IF(VLOOKUP(DP151,'Footnotes list'!$D$9:$E$58,2,FALSE)=0,\"\",VLOOKUP(DP151,'Footnotes list'!$D$9:$E$58,2,FALSE) ) )","v":""},null,null,null,null,{"$f":"IF(TRIM(DU151)=\"\", \"\", IF(VLOOKUP(DU151,'Footnotes list'!$D$9:$E$58,2,FALSE)=0,\"\",VLOOKUP(DU151,'Footnotes list'!$D$9:$E$58,2,FALSE) ) )","v":""},null,null,null,null,{"$f":"IF(TRIM(DZ151)=\"\", \"\", IF(VLOOKUP(DZ151,'Footnotes list'!$D$9:$E$58,2,FALSE)=0,\"\",VLOOKUP(DZ151,'Footnotes list'!$D$9:$E$58,2,FALSE) ) )","v":""},null,null,null,null,{"$f":"IF(TRIM(EE151)=\"\", \"\", IF(VLOOKUP(EE151,'Footnotes list'!$D$9:$E$58,2,FALSE)=0,\"\",VLOOKUP(EE151,'Footnotes list'!$D$9:$E$58,2,FALSE) ) )","v":""},null,null,null,null,{"$f":"IF(TRIM(EJ151)=\"\", \"\", IF(VLOOKUP(EJ151,'Footnotes list'!$D$9:$E$58,2,FALSE)=0,\"\",VLOOKUP(EJ151,'Footnotes list'!$D$9:$E$58,2,FALSE) ) )","v":""},null,null,null,null,{"$f":"IF(TRIM(EO151)=\"\", \"\", IF(VLOOKUP(EO151,'Footnotes list'!$D$9:$E$58,2,FALSE)=0,\"\",VLOOKUP(EO151,'Footnotes list'!$D$9:$E$58,2,FALSE) ) )","v":""},null,null,null,null,{"$f":"IF(TRIM(ET151)=\"\", \"\", IF(VLOOKUP(ET151,'Footnotes list'!$D$9:$E$58,2,FALSE)=0,\"\",VLOOKUP(ET151,'Footnotes list'!$D$9:$E$58,2,FALSE) ) )","v":""},null,null,null,null,{"$f":"IF(TRIM(EY151)=\"\", \"\", IF(VLOOKUP(EY151,'Footnotes list'!$D$9:$E$58,2,FALSE)=0,\"\",VLOOKUP(EY151,'Footnotes list'!$D$9:$E$58,2,FALSE) ) )","v":""}]
[null,null,"E37","MKT","market activities, including:",null,null,null,null,null,{"$f":"IF(TRIM(J152)=\"\", \"\", IF(VLOOKUP(J152,'Footnotes list'!$D$9:$E$58,2,FALSE)=0,\"\",VLOOKUP(J152,'Footnotes list'!$D$9:$E$58,2,FALSE) ) )","v":""},null,null,null,null,{"$f":"IF(TRIM(O152)=\"\", \"\", IF(VLOOKUP(O152,'Footnotes list'!$D$9:$E$58,2,FALSE)=0,\"\",VLOOKUP(O152,'Footnotes list'!$D$9:$E$58,2,FALSE) ) )","v":""},null,null,null,null,{"$f":"IF(TRIM(T152)=\"\", \"\", IF(VLOOKUP(T152,'Footnotes list'!$D$9:$E$58,2,FALSE)=0,\"\",VLOOKUP(T152,'Footnotes list'!$D$9:$E$58,2,FALSE) ) )","v":""},null,null,null,null,{"$f":"IF(TRIM(Y152)=\"\", \"\", IF(VLOOKUP(Y152,'Footnotes list'!$D$9:$E$58,2,FALSE)=0,\"\",VLOOKUP(Y152,'Footnotes list'!$D$9:$E$58,2,FALSE) ) )","v":""},null,null,null,null,{"$f":"IF(TRIM(AD152)=\"\", \"\", IF(VLOOKUP(AD152,'Footnotes list'!$D$9:$E$58,2,FALSE)=0,\"\",VLOOKUP(AD152,'Footnotes list'!$D$9:$E$58,2,FALSE) ) )","v":""},null,null,null,null,{"$f":"IF(TRIM(AI152)=\"\", \"\", IF(VLOOKUP(AI152,'Footnotes list'!$D$9:$E$58,2,FALSE)=0,\"\",VLOOKUP(AI152,'Footnotes list'!$D$9:$E$58,2,FALSE) ) )","v":""},null,null,null,null,{"$f":"IF(TRIM(AN152)=\"\", \"\", IF(VLOOKUP(AN152,'Footnotes list'!$D$9:$E$58,2,FALSE)=0,\"\",VLOOKUP(AN152,'Footnotes list'!$D$9:$E$58,2,FALSE) ) )","v":""},null,null,null,null,{"$f":"IF(TRIM(AS152)=\"\", \"\", IF(VLOOKUP(AS152,'Footnotes list'!$D$9:$E$58,2,FALSE)=0,\"\",VLOOKUP(AS152,'Footnotes list'!$D$9:$E$58,2,FALSE) ) )","v":""},null,null,null,null,{"$f":"IF(TRIM(AX152)=\"\", \"\", IF(VLOOKUP(AX152,'Footnotes list'!$D$9:$E$58,2,FALSE)=0,\"\",VLOOKUP(AX152,'Footnotes list'!$D$9:$E$58,2,FALSE) ) )","v":""},null,null,null,null,{"$f":"IF(TRIM(BC152)=\"\", \"\", IF(VLOOKUP(BC152,'Footnotes list'!$D$9:$E$58,2,FALSE)=0,\"\",VLOOKUP(BC152,'Footnotes list'!$D$9:$E$58,2,FALSE) ) )","v":""},null,null,null,null,{"$f":"IF(TRIM(BH152)=\"\", \"\", IF(VLOOKUP(BH152,'Footnotes list'!$D$9:$E$58,2,FALSE)=0,\"\",VLOOKUP(BH152,'Footnotes list'!$D$9:$E$58,2,FALSE) ) )","v":""},null,null,null,null,{"$f":"IF(TRIM(BM152)=\"\", \"\", IF(VLOOKUP(BM152,'Footnotes list'!$D$9:$E$58,2,FALSE)=0,\"\",VLOOKUP(BM152,'Footnotes list'!$D$9:$E$58,2,FALSE) ) )","v":""},null,null,null,null,{"$f":"IF(TRIM(BR152)=\"\", \"\", IF(VLOOKUP(BR152,'Footnotes list'!$D$9:$E$58,2,FALSE)=0,\"\",VLOOKUP(BR152,'Footnotes list'!$D$9:$E$58,2,FALSE) ) )","v":""},null,null,null,null,{"$f":"IF(TRIM(BW152)=\"\", \"\", IF(VLOOKUP(BW152,'Footnotes list'!$D$9:$E$58,2,FALSE)=0,\"\",VLOOKUP(BW152,'Footnotes list'!$D$9:$E$58,2,FALSE) ) )","v":""},null,null,null,null,{"$f":"IF(TRIM(CB152)=\"\", \"\", IF(VLOOKUP(CB152,'Footnotes list'!$D$9:$E$58,2,FALSE)=0,\"\",VLOOKUP(CB152,'Footnotes list'!$D$9:$E$58,2,FALSE) ) )","v":""},null,null,null,null,{"$f":"IF(TRIM(CG152)=\"\", \"\", IF(VLOOKUP(CG152,'Footnotes list'!$D$9:$E$58,2,FALSE)=0,\"\",VLOOKUP(CG152,'Footnotes list'!$D$9:$E$58,2,FALSE) ) )","v":""},null,null,null,null,{"$f":"IF(TRIM(CL152)=\"\", \"\", IF(VLOOKUP(CL152,'Footnotes list'!$D$9:$E$58,2,FALSE)=0,\"\",VLOOKUP(CL152,'Footnotes list'!$D$9:$E$58,2,FALSE) ) )","v":""},null,null,null,null,{"$f":"IF(TRIM(CQ152)=\"\", \"\", IF(VLOOKUP(CQ152,'Footnotes list'!$D$9:$E$58,2,FALSE)=0,\"\",VLOOKUP(CQ152,'Footnotes list'!$D$9:$E$58,2,FALSE) ) )","v":""},null,null,null,null,{"$f":"IF(TRIM(CV152)=\"\", \"\", IF(VLOOKUP(CV152,'Footnotes list'!$D$9:$E$58,2,FALSE)=0,\"\",VLOOKUP(CV152,'Footnotes list'!$D$9:$E$58,2,FALSE) ) )","v":""},null,null,null,null,{"$f":"IF(TRIM(DA152)=\"\", \"\", IF(VLOOKUP(DA152,'Footnotes list'!$D$9:$E$58,2,FALSE)=0,\"\",VLOOKUP(DA152,'Footnotes list'!$D$9:$E$58,2,FALSE) ) )","v":""},null,null,null,null,{"$f":"IF(TRIM(DF152)=\"\", \"\", IF(VLOOKUP(DF152,'Footnotes list'!$D$9:$E$58,2,FALSE)=0,\"\",VLOOKUP(DF152,'Footnotes list'!$D$9:$E$58,2,FALSE) ) )","v":""},null,null,null,null,{"$f":"IF(TRIM(DK152)=\"\", \"\", IF(VLOOKUP(DK152,'Footnotes list'!$D$9:$E$58,2,FALSE)=0,\"\",VLOOKUP(DK152,'Footnotes list'!$D$9:$E$58,2,FALSE) ) )","v":""},null,null,null,null,{"$f":"IF(TRIM(DP152)=\"\", \"\", IF(VLOOKUP(DP152,'Footnotes list'!$D$9:$E$58,2,FALSE)=0,\"\",VLOOKUP(DP152,'Footnotes list'!$D$9:$E$58,2,FALSE) ) )","v":""},null,null,null,null,{"$f":"IF(TRIM(DU152)=\"\", \"\", IF(VLOOKUP(DU152,'Footnotes list'!$D$9:$E$58,2,FALSE)=0,\"\",VLOOKUP(DU152,'Footnotes list'!$D$9:$E$58,2,FALSE) ) )","v":""},null,null,null,null,{"$f":"IF(TRIM(DZ152)=\"\", \"\", IF(VLOOKUP(DZ152,'Footnotes list'!$D$9:$E$58,2,FALSE)=0,\"\",VLOOKUP(DZ152,'Footnotes list'!$D$9:$E$58,2,FALSE) ) )","v":""},null,null,null,null,{"$f":"IF(TRIM(EE152)=\"\", \"\", IF(VLOOKUP(EE152,'Footnotes list'!$D$9:$E$58,2,FALSE)=0,\"\",VLOOKUP(EE152,'Footnotes list'!$D$9:$E$58,2,FALSE) ) )","v":""},null,null,null,null,{"$f":"IF(TRIM(EJ152)=\"\", \"\", IF(VLOOKUP(EJ152,'Footnotes list'!$D$9:$E$58,2,FALSE)=0,\"\",VLOOKUP(EJ152,'Footnotes list'!$D$9:$E$58,2,FALSE) ) )","v":""},null,null,null,null,{"$f":"IF(TRIM(EO152)=\"\", \"\", IF(VLOOKUP(EO152,'Footnotes list'!$D$9:$E$58,2,FALSE)=0,\"\",VLOOKUP(EO152,'Footnotes list'!$D$9:$E$58,2,FALSE) ) )","v":""},null,null,null,null,{"$f":"IF(TRIM(ET152)=\"\", \"\", IF(VLOOKUP(ET152,'Footnotes list'!$D$9:$E$58,2,FALSE)=0,\"\",VLOOKUP(ET152,'Footnotes list'!$D$9:$E$58,2,FALSE) ) )","v":""},null,null,null,null,{"$f":"IF(TRIM(EY152)=\"\", \"\", IF(VLOOKUP(EY152,'Footnotes list'!$D$9:$E$58,2,FALSE)=0,\"\",VLOOKUP(EY152,'Footnotes list'!$D$9:$E$58,2,FALSE) ) )","v":""}]
[null,null,"E37","ES_CS","environmental specific services",null,null,null,null,null,{"$f":"IF(TRIM(J153)=\"\", \"\", IF(VLOOKUP(J153,'Footnotes list'!$D$9:$E$58,2,FALSE)=0,\"\",VLOOKUP(J153,'Footnotes list'!$D$9:$E$58,2,FALSE) ) )","v":""},null,null,null,null,{"$f":"IF(TRIM(O153)=\"\", \"\", IF(VLOOKUP(O153,'Footnotes list'!$D$9:$E$58,2,FALSE)=0,\"\",VLOOKUP(O153,'Footnotes list'!$D$9:$E$58,2,FALSE) ) )","v":""},null,null,null,null,{"$f":"IF(TRIM(T153)=\"\", \"\", IF(VLOOKUP(T153,'Footnotes list'!$D$9:$E$58,2,FALSE)=0,\"\",VLOOKUP(T153,'Footnotes list'!$D$9:$E$58,2,FALSE) ) )","v":""},null,null,null,null,{"$f":"IF(TRIM(Y153)=\"\", \"\", IF(VLOOKUP(Y153,'Footnotes list'!$D$9:$E$58,2,FALSE)=0,\"\",VLOOKUP(Y153,'Footnotes list'!$D$9:$E$58,2,FALSE) ) )","v":""},null,null,null,null,{"$f":"IF(TRIM(AD153)=\"\", \"\", IF(VLOOKUP(AD153,'Footnotes list'!$D$9:$E$58,2,FALSE)=0,\"\",VLOOKUP(AD153,'Footnotes list'!$D$9:$E$58,2,FALSE) ) )","v":""},null,null,null,null,{"$f":"IF(TRIM(AI153)=\"\", \"\", IF(VLOOKUP(AI153,'Footnotes list'!$D$9:$E$58,2,FALSE)=0,\"\",VLOOKUP(AI153,'Footnotes list'!$D$9:$E$58,2,FALSE) ) )","v":""},null,null,null,null,{"$f":"IF(TRIM(AN153)=\"\", \"\", IF(VLOOKUP(AN153,'Footnotes list'!$D$9:$E$58,2,FALSE)=0,\"\",VLOOKUP(AN153,'Footnotes list'!$D$9:$E$58,2,FALSE) ) )","v":""},null,null,null,null,{"$f":"IF(TRIM(AS153)=\"\", \"\", IF(VLOOKUP(AS153,'Footnotes list'!$D$9:$E$58,2,FALSE)=0,\"\",VLOOKUP(AS153,'Footnotes list'!$D$9:$E$58,2,FALSE) ) )","v":""},null,null,null,null,{"$f":"IF(TRIM(AX153)=\"\", \"\", IF(VLOOKUP(AX153,'Footnotes list'!$D$9:$E$58,2,FALSE)=0,\"\",VLOOKUP(AX153,'Footnotes list'!$D$9:$E$58,2,FALSE) ) )","v":""},null,null,null,null,{"$f":"IF(TRIM(BC153)=\"\", \"\", IF(VLOOKUP(BC153,'Footnotes list'!$D$9:$E$58,2,FALSE)=0,\"\",VLOOKUP(BC153,'Footnotes list'!$D$9:$E$58,2,FALSE) ) )","v":""},null,null,null,null,{"$f":"IF(TRIM(BH153)=\"\", \"\", IF(VLOOKUP(BH153,'Footnotes list'!$D$9:$E$58,2,FALSE)=0,\"\",VLOOKUP(BH153,'Footnotes list'!$D$9:$E$58,2,FALSE) ) )","v":""},null,null,null,null,{"$f":"IF(TRIM(BM153)=\"\", \"\", IF(VLOOKUP(BM153,'Footnotes list'!$D$9:$E$58,2,FALSE)=0,\"\",VLOOKUP(BM153,'Footnotes list'!$D$9:$E$58,2,FALSE) ) )","v":""},null,null,null,null,{"$f":"IF(TRIM(BR153)=\"\", \"\", IF(VLOOKUP(BR153,'Footnotes list'!$D$9:$E$58,2,FALSE)=0,\"\",VLOOKUP(BR153,'Footnotes list'!$D$9:$E$58,2,FALSE) ) )","v":""},null,null,null,null,{"$f":"IF(TRIM(BW153)=\"\", \"\", IF(VLOOKUP(BW153,'Footnotes list'!$D$9:$E$58,2,FALSE)=0,\"\",VLOOKUP(BW153,'Footnotes list'!$D$9:$E$58,2,FALSE) ) )","v":""},null,null,null,null,{"$f":"IF(TRIM(CB153)=\"\", \"\", IF(VLOOKUP(CB153,'Footnotes list'!$D$9:$E$58,2,FALSE)=0,\"\",VLOOKUP(CB153,'Footnotes list'!$D$9:$E$58,2,FALSE) ) )","v":""},null,null,null,null,{"$f":"IF(TRIM(CG153)=\"\", \"\", IF(VLOOKUP(CG153,'Footnotes list'!$D$9:$E$58,2,FALSE)=0,\"\",VLOOKUP(CG153,'Footnotes list'!$D$9:$E$58,2,FALSE) ) )","v":""},null,null,null,null,{"$f":"IF(TRIM(CL153)=\"\", \"\", IF(VLOOKUP(CL153,'Footnotes list'!$D$9:$E$58,2,FALSE)=0,\"\",VLOOKUP(CL153,'Footnotes list'!$D$9:$E$58,2,FALSE) ) )","v":""},null,null,null,null,{"$f":"IF(TRIM(CQ153)=\"\", \"\", IF(VLOOKUP(CQ153,'Footnotes list'!$D$9:$E$58,2,FALSE)=0,\"\",VLOOKUP(CQ153,'Footnotes list'!$D$9:$E$58,2,FALSE) ) )","v":""},null,null,null,null,{"$f":"IF(TRIM(CV153)=\"\", \"\", IF(VLOOKUP(CV153,'Footnotes list'!$D$9:$E$58,2,FALSE)=0,\"\",VLOOKUP(CV153,'Footnotes list'!$D$9:$E$58,2,FALSE) ) )","v":""},null,null,null,null,{"$f":"IF(TRIM(DA153)=\"\", \"\", IF(VLOOKUP(DA153,'Footnotes list'!$D$9:$E$58,2,FALSE)=0,\"\",VLOOKUP(DA153,'Footnotes list'!$D$9:$E$58,2,FALSE) ) )","v":""},null,null,null,null,{"$f":"IF(TRIM(DF153)=\"\", \"\", IF(VLOOKUP(DF153,'Footnotes list'!$D$9:$E$58,2,FALSE)=0,\"\",VLOOKUP(DF153,'Footnotes list'!$D$9:$E$58,2,FALSE) ) )","v":""},null,null,null,null,{"$f":"IF(TRIM(DK153)=\"\", \"\", IF(VLOOKUP(DK153,'Footnotes list'!$D$9:$E$58,2,FALSE)=0,\"\",VLOOKUP(DK153,'Footnotes list'!$D$9:$E$58,2,FALSE) ) )","v":""},null,null,null,null,{"$f":"IF(TRIM(DP153)=\"\", \"\", IF(VLOOKUP(DP153,'Footnotes list'!$D$9:$E$58,2,FALSE)=0,\"\",VLOOKUP(DP153,'Footnotes list'!$D$9:$E$58,2,FALSE) ) )","v":""},null,null,null,null,{"$f":"IF(TRIM(DU153)=\"\", \"\", IF(VLOOKUP(DU153,'Footnotes list'!$D$9:$E$58,2,FALSE)=0,\"\",VLOOKUP(DU153,'Footnotes list'!$D$9:$E$58,2,FALSE) ) )","v":""},null,null,null,null,{"$f":"IF(TRIM(DZ153)=\"\", \"\", IF(VLOOKUP(DZ153,'Footnotes list'!$D$9:$E$58,2,FALSE)=0,\"\",VLOOKUP(DZ153,'Footnotes list'!$D$9:$E$58,2,FALSE) ) )","v":""},null,null,null,null,{"$f":"IF(TRIM(EE153)=\"\", \"\", IF(VLOOKUP(EE153,'Footnotes list'!$D$9:$E$58,2,FALSE)=0,\"\",VLOOKUP(EE153,'Footnotes list'!$D$9:$E$58,2,FALSE) ) )","v":""},null,null,null,null,{"$f":"IF(TRIM(EJ153)=\"\", \"\", IF(VLOOKUP(EJ153,'Footnotes list'!$D$9:$E$58,2,FALSE)=0,\"\",VLOOKUP(EJ153,'Footnotes list'!$D$9:$E$58,2,FALSE) ) )","v":""},null,null,null,null,{"$f":"IF(TRIM(EO153)=\"\", \"\", IF(VLOOKUP(EO153,'Footnotes list'!$D$9:$E$58,2,FALSE)=0,\"\",VLOOKUP(EO153,'Footnotes list'!$D$9:$E$58,2,FALSE) ) )","v":""},null,null,null,null,{"$f":"IF(TRIM(ET153)=\"\", \"\", IF(VLOOKUP(ET153,'Footnotes list'!$D$9:$E$58,2,FALSE)=0,\"\",VLOOKUP(ET153,'Footnotes list'!$D$9:$E$58,2,FALSE) ) )","v":""},null,null,null,null,{"$f":"IF(TRIM(EY153)=\"\", \"\", IF(VLOOKUP(EY153,'Footnotes list'!$D$9:$E$58,2,FALSE)=0,\"\",VLOOKUP(EY153,'Footnotes list'!$D$9:$E$58,2,FALSE) ) )","v":""}]
[null,null,"E37","C_REP","cleaner and resource efficient products",null,null,null,null,null,{"$f":"IF(TRIM(J154)=\"\", \"\", IF(VLOOKUP(J154,'Footnotes list'!$D$9:$E$58,2,FALSE)=0,\"\",VLOOKUP(J154,'Footnotes list'!$D$9:$E$58,2,FALSE) ) )","v":""},null,null,null,null,{"$f":"IF(TRIM(O154)=\"\", \"\", IF(VLOOKUP(O154,'Footnotes list'!$D$9:$E$58,2,FALSE)=0,\"\",VLOOKUP(O154,'Footnotes list'!$D$9:$E$58,2,FALSE) ) )","v":""},null,null,null,null,{"$f":"IF(TRIM(T154)=\"\", \"\", IF(VLOOKUP(T154,'Footnotes list'!$D$9:$E$58,2,FALSE)=0,\"\",VLOOKUP(T154,'Footnotes list'!$D$9:$E$58,2,FALSE) ) )","v":""},null,null,null,null,{"$f":"IF(TRIM(Y154)=\"\", \"\", IF(VLOOKUP(Y154,'Footnotes list'!$D$9:$E$58,2,FALSE)=0,\"\",VLOOKUP(Y154,'Footnotes list'!$D$9:$E$58,2,FALSE) ) )","v":""},null,null,null,null,{"$f":"IF(TRIM(AD154)=\"\", \"\", IF(VLOOKUP(AD154,'Footnotes list'!$D$9:$E$58,2,FALSE)=0,\"\",VLOOKUP(AD154,'Footnotes list'!$D$9:$E$58,2,FALSE) ) )","v":""},null,null,null,null,{"$f":"IF(TRIM(AI154)=\"\", \"\", IF(VLOOKUP(AI154,'Footnotes list'!$D$9:$E$58,2,FALSE)=0,\"\",VLOOKUP(AI154,'Footnotes list'!$D$9:$E$58,2,FALSE) ) )","v":""},null,null,null,null,{"$f":"IF(TRIM(AN154)=\"\", \"\", IF(VLOOKUP(AN154,'Footnotes list'!$D$9:$E$58,2,FALSE)=0,\"\",VLOOKUP(AN154,'Footnotes list'!$D$9:$E$58,2,FALSE) ) )","v":""},null,null,null,null,{"$f":"IF(TRIM(AS154)=\"\", \"\", IF(VLOOKUP(AS154,'Footnotes list'!$D$9:$E$58,2,FALSE)=0,\"\",VLOOKUP(AS154,'Footnotes list'!$D$9:$E$58,2,FALSE) ) )","v":""},null,null,null,null,{"$f":"IF(TRIM(AX154)=\"\", \"\", IF(VLOOKUP(AX154,'Footnotes list'!$D$9:$E$58,2,FALSE)=0,\"\",VLOOKUP(AX154,'Footnotes list'!$D$9:$E$58,2,FALSE) ) )","v":""},null,null,null,null,{"$f":"IF(TRIM(BC154)=\"\", \"\", IF(VLOOKUP(BC154,'Footnotes list'!$D$9:$E$58,2,FALSE)=0,\"\",VLOOKUP(BC154,'Footnotes list'!$D$9:$E$58,2,FALSE) ) )","v":""},null,null,null,null,{"$f":"IF(TRIM(BH154)=\"\", \"\", IF(VLOOKUP(BH154,'Footnotes list'!$D$9:$E$58,2,FALSE)=0,\"\",VLOOKUP(BH154,'Footnotes list'!$D$9:$E$58,2,FALSE) ) )","v":""},null,null,null,null,{"$f":"IF(TRIM(BM154)=\"\", \"\", IF(VLOOKUP(BM154,'Footnotes list'!$D$9:$E$58,2,FALSE)=0,\"\",VLOOKUP(BM154,'Footnotes list'!$D$9:$E$58,2,FALSE) ) )","v":""},null,null,null,null,{"$f":"IF(TRIM(BR154)=\"\", \"\", IF(VLOOKUP(BR154,'Footnotes list'!$D$9:$E$58,2,FALSE)=0,\"\",VLOOKUP(BR154,'Footnotes list'!$D$9:$E$58,2,FALSE) ) )","v":""},null,null,null,null,{"$f":"IF(TRIM(BW154)=\"\", \"\", IF(VLOOKUP(BW154,'Footnotes list'!$D$9:$E$58,2,FALSE)=0,\"\",VLOOKUP(BW154,'Footnotes list'!$D$9:$E$58,2,FALSE) ) )","v":""},null,null,null,null,{"$f":"IF(TRIM(CB154)=\"\", \"\", IF(VLOOKUP(CB154,'Footnotes list'!$D$9:$E$58,2,FALSE)=0,\"\",VLOOKUP(CB154,'Footnotes list'!$D$9:$E$58,2,FALSE) ) )","v":""},null,null,null,null,{"$f":"IF(TRIM(CG154)=\"\", \"\", IF(VLOOKUP(CG154,'Footnotes list'!$D$9:$E$58,2,FALSE)=0,\"\",VLOOKUP(CG154,'Footnotes list'!$D$9:$E$58,2,FALSE) ) )","v":""},null,null,null,null,{"$f":"IF(TRIM(CL154)=\"\", \"\", IF(VLOOKUP(CL154,'Footnotes list'!$D$9:$E$58,2,FALSE)=0,\"\",VLOOKUP(CL154,'Footnotes list'!$D$9:$E$58,2,FALSE) ) )","v":""},null,null,null,null,{"$f":"IF(TRIM(CQ154)=\"\", \"\", IF(VLOOKUP(CQ154,'Footnotes list'!$D$9:$E$58,2,FALSE)=0,\"\",VLOOKUP(CQ154,'Footnotes list'!$D$9:$E$58,2,FALSE) ) )","v":""},null,null,null,null,{"$f":"IF(TRIM(CV154)=\"\", \"\", IF(VLOOKUP(CV154,'Footnotes list'!$D$9:$E$58,2,FALSE)=0,\"\",VLOOKUP(CV154,'Footnotes list'!$D$9:$E$58,2,FALSE) ) )","v":""},null,null,null,null,{"$f":"IF(TRIM(DA154)=\"\", \"\", IF(VLOOKUP(DA154,'Footnotes list'!$D$9:$E$58,2,FALSE)=0,\"\",VLOOKUP(DA154,'Footnotes list'!$D$9:$E$58,2,FALSE) ) )","v":""},null,null,null,null,{"$f":"IF(TRIM(DF154)=\"\", \"\", IF(VLOOKUP(DF154,'Footnotes list'!$D$9:$E$58,2,FALSE)=0,\"\",VLOOKUP(DF154,'Footnotes list'!$D$9:$E$58,2,FALSE) ) )","v":""},null,null,null,null,{"$f":"IF(TRIM(DK154)=\"\", \"\", IF(VLOOKUP(DK154,'Footnotes list'!$D$9:$E$58,2,FALSE)=0,\"\",VLOOKUP(DK154,'Footnotes list'!$D$9:$E$58,2,FALSE) ) )","v":""},null,null,null,null,{"$f":"IF(TRIM(DP154)=\"\", \"\", IF(VLOOKUP(DP154,'Footnotes list'!$D$9:$E$58,2,FALSE)=0,\"\",VLOOKUP(DP154,'Footnotes list'!$D$9:$E$58,2,FALSE) ) )","v":""},null,null,null,null,{"$f":"IF(TRIM(DU154)=\"\", \"\", IF(VLOOKUP(DU154,'Footnotes list'!$D$9:$E$58,2,FALSE)=0,\"\",VLOOKUP(DU154,'Footnotes list'!$D$9:$E$58,2,FALSE) ) )","v":""},null,null,null,null,{"$f":"IF(TRIM(DZ154)=\"\", \"\", IF(VLOOKUP(DZ154,'Footnotes list'!$D$9:$E$58,2,FALSE)=0,\"\",VLOOKUP(DZ154,'Footnotes list'!$D$9:$E$58,2,FALSE) ) )","v":""},null,null,null,null,{"$f":"IF(TRIM(EE154)=\"\", \"\", IF(VLOOKUP(EE154,'Footnotes list'!$D$9:$E$58,2,FALSE)=0,\"\",VLOOKUP(EE154,'Footnotes list'!$D$9:$E$58,2,FALSE) ) )","v":""},null,null,null,null,{"$f":"IF(TRIM(EJ154)=\"\", \"\", IF(VLOOKUP(EJ154,'Footnotes list'!$D$9:$E$58,2,FALSE)=0,\"\",VLOOKUP(EJ154,'Footnotes list'!$D$9:$E$58,2,FALSE) ) )","v":""},null,null,null,null,{"$f":"IF(TRIM(EO154)=\"\", \"\", IF(VLOOKUP(EO154,'Footnotes list'!$D$9:$E$58,2,FALSE)=0,\"\",VLOOKUP(EO154,'Footnotes list'!$D$9:$E$58,2,FALSE) ) )","v":""},null,null,null,null,{"$f":"IF(TRIM(ET154)=\"\", \"\", IF(VLOOKUP(ET154,'Footnotes list'!$D$9:$E$58,2,FALSE)=0,\"\",VLOOKUP(ET154,'Footnotes list'!$D$9:$E$58,2,FALSE) ) )","v":""},null,null,null,null,{"$f":"IF(TRIM(EY154)=\"\", \"\", IF(VLOOKUP(EY154,'Footnotes list'!$D$9:$E$58,2,FALSE)=0,\"\",VLOOKUP(EY154,'Footnotes list'!$D$9:$E$58,2,FALSE) ) )","v":""}]
[null,null,"E38","TOT_EGSS","Total E38 - Waste collection, treatment and disposal activities; materials recovery, of which:",null,null,null,null,null,{"$f":"IF(TRIM(J155)=\"\", \"\", IF(VLOOKUP(J155,'Footnotes list'!$D$9:$E$58,2,FALSE)=0,\"\",VLOOKUP(J155,'Footnotes list'!$D$9:$E$58,2,FALSE) ) )","v":""},null,null,null,null,{"$f":"IF(TRIM(O155)=\"\", \"\", IF(VLOOKUP(O155,'Footnotes list'!$D$9:$E$58,2,FALSE)=0,\"\",VLOOKUP(O155,'Footnotes list'!$D$9:$E$58,2,FALSE) ) )","v":""},null,null,null,null,{"$f":"IF(TRIM(T155)=\"\", \"\", IF(VLOOKUP(T155,'Footnotes list'!$D$9:$E$58,2,FALSE)=0,\"\",VLOOKUP(T155,'Footnotes list'!$D$9:$E$58,2,FALSE) ) )","v":""},null,null,null,null,{"$f":"IF(TRIM(Y155)=\"\", \"\", IF(VLOOKUP(Y155,'Footnotes list'!$D$9:$E$58,2,FALSE)=0,\"\",VLOOKUP(Y155,'Footnotes list'!$D$9:$E$58,2,FALSE) ) )","v":""},null,null,null,null,{"$f":"IF(TRIM(AD155)=\"\", \"\", IF(VLOOKUP(AD155,'Footnotes list'!$D$9:$E$58,2,FALSE)=0,\"\",VLOOKUP(AD155,'Footnotes list'!$D$9:$E$58,2,FALSE) ) )","v":""},null,null,null,null,{"$f":"IF(TRIM(AI155)=\"\", \"\", IF(VLOOKUP(AI155,'Footnotes list'!$D$9:$E$58,2,FALSE)=0,\"\",VLOOKUP(AI155,'Footnotes list'!$D$9:$E$58,2,FALSE) ) )","v":""},null,null,null,null,{"$f":"IF(TRIM(AN155)=\"\", \"\", IF(VLOOKUP(AN155,'Footnotes list'!$D$9:$E$58,2,FALSE)=0,\"\",VLOOKUP(AN155,'Footnotes list'!$D$9:$E$58,2,FALSE) ) )","v":""},null,null,null,null,{"$f":"IF(TRIM(AS155)=\"\", \"\", IF(VLOOKUP(AS155,'Footnotes list'!$D$9:$E$58,2,FALSE)=0,\"\",VLOOKUP(AS155,'Footnotes list'!$D$9:$E$58,2,FALSE) ) )","v":""},null,null,null,null,{"$f":"IF(TRIM(AX155)=\"\", \"\", IF(VLOOKUP(AX155,'Footnotes list'!$D$9:$E$58,2,FALSE)=0,\"\",VLOOKUP(AX155,'Footnotes list'!$D$9:$E$58,2,FALSE) ) )","v":""},null,null,null,null,{"$f":"IF(TRIM(BC155)=\"\", \"\", IF(VLOOKUP(BC155,'Footnotes list'!$D$9:$E$58,2,FALSE)=0,\"\",VLOOKUP(BC155,'Footnotes list'!$D$9:$E$58,2,FALSE) ) )","v":""},null,null,null,null,{"$f":"IF(TRIM(BH155)=\"\", \"\", IF(VLOOKUP(BH155,'Footnotes list'!$D$9:$E$58,2,FALSE)=0,\"\",VLOOKUP(BH155,'Footnotes list'!$D$9:$E$58,2,FALSE) ) )","v":""},null,null,null,null,{"$f":"IF(TRIM(BM155)=\"\", \"\", IF(VLOOKUP(BM155,'Footnotes list'!$D$9:$E$58,2,FALSE)=0,\"\",VLOOKUP(BM155,'Footnotes list'!$D$9:$E$58,2,FALSE) ) )","v":""},null,null,null,null,{"$f":"IF(TRIM(BR155)=\"\", \"\", IF(VLOOKUP(BR155,'Footnotes list'!$D$9:$E$58,2,FALSE)=0,\"\",VLOOKUP(BR155,'Footnotes list'!$D$9:$E$58,2,FALSE) ) )","v":""},null,null,null,null,{"$f":"IF(TRIM(BW155)=\"\", \"\", IF(VLOOKUP(BW155,'Footnotes list'!$D$9:$E$58,2,FALSE)=0,\"\",VLOOKUP(BW155,'Footnotes list'!$D$9:$E$58,2,FALSE) ) )","v":""},null,null,null,null,{"$f":"IF(TRIM(CB155)=\"\", \"\", IF(VLOOKUP(CB155,'Footnotes list'!$D$9:$E$58,2,FALSE)=0,\"\",VLOOKUP(CB155,'Footnotes list'!$D$9:$E$58,2,FALSE) ) )","v":""},null,null,null,null,{"$f":"IF(TRIM(CG155)=\"\", \"\", IF(VLOOKUP(CG155,'Footnotes list'!$D$9:$E$58,2,FALSE)=0,\"\",VLOOKUP(CG155,'Footnotes list'!$D$9:$E$58,2,FALSE) ) )","v":""},null,null,null,null,{"$f":"IF(TRIM(CL155)=\"\", \"\", IF(VLOOKUP(CL155,'Footnotes list'!$D$9:$E$58,2,FALSE)=0,\"\",VLOOKUP(CL155,'Footnotes list'!$D$9:$E$58,2,FALSE) ) )","v":""},null,null,null,null,{"$f":"IF(TRIM(CQ155)=\"\", \"\", IF(VLOOKUP(CQ155,'Footnotes list'!$D$9:$E$58,2,FALSE)=0,\"\",VLOOKUP(CQ155,'Footnotes list'!$D$9:$E$58,2,FALSE) ) )","v":""},null,null,null,null,{"$f":"IF(TRIM(CV155)=\"\", \"\", IF(VLOOKUP(CV155,'Footnotes list'!$D$9:$E$58,2,FALSE)=0,\"\",VLOOKUP(CV155,'Footnotes list'!$D$9:$E$58,2,FALSE) ) )","v":""},null,null,null,null,{"$f":"IF(TRIM(DA155)=\"\", \"\", IF(VLOOKUP(DA155,'Footnotes list'!$D$9:$E$58,2,FALSE)=0,\"\",VLOOKUP(DA155,'Footnotes list'!$D$9:$E$58,2,FALSE) ) )","v":""},null,null,null,null,{"$f":"IF(TRIM(DF155)=\"\", \"\", IF(VLOOKUP(DF155,'Footnotes list'!$D$9:$E$58,2,FALSE)=0,\"\",VLOOKUP(DF155,'Footnotes list'!$D$9:$E$58,2,FALSE) ) )","v":""},null,null,null,null,{"$f":"IF(TRIM(DK155)=\"\", \"\", IF(VLOOKUP(DK155,'Footnotes list'!$D$9:$E$58,2,FALSE)=0,\"\",VLOOKUP(DK155,'Footnotes list'!$D$9:$E$58,2,FALSE) ) )","v":""},null,null,null,null,{"$f":"IF(TRIM(DP155)=\"\", \"\", IF(VLOOKUP(DP155,'Footnotes list'!$D$9:$E$58,2,FALSE)=0,\"\",VLOOKUP(DP155,'Footnotes list'!$D$9:$E$58,2,FALSE) ) )","v":""},null,null,null,null,{"$f":"IF(TRIM(DU155)=\"\", \"\", IF(VLOOKUP(DU155,'Footnotes list'!$D$9:$E$58,2,FALSE)=0,\"\",VLOOKUP(DU155,'Footnotes list'!$D$9:$E$58,2,FALSE) ) )","v":""},null,null,null,null,{"$f":"IF(TRIM(DZ155)=\"\", \"\", IF(VLOOKUP(DZ155,'Footnotes list'!$D$9:$E$58,2,FALSE)=0,\"\",VLOOKUP(DZ155,'Footnotes list'!$D$9:$E$58,2,FALSE) ) )","v":""},null,null,null,null,{"$f":"IF(TRIM(EE155)=\"\", \"\", IF(VLOOKUP(EE155,'Footnotes list'!$D$9:$E$58,2,FALSE)=0,\"\",VLOOKUP(EE155,'Footnotes list'!$D$9:$E$58,2,FALSE) ) )","v":""},null,null,null,null,{"$f":"IF(TRIM(EJ155)=\"\", \"\", IF(VLOOKUP(EJ155,'Footnotes list'!$D$9:$E$58,2,FALSE)=0,\"\",VLOOKUP(EJ155,'Footnotes list'!$D$9:$E$58,2,FALSE) ) )","v":""},null,null,null,null,{"$f":"IF(TRIM(EO155)=\"\", \"\", IF(VLOOKUP(EO155,'Footnotes list'!$D$9:$E$58,2,FALSE)=0,\"\",VLOOKUP(EO155,'Footnotes list'!$D$9:$E$58,2,FALSE) ) )","v":""},null,null,null,null,{"$f":"IF(TRIM(ET155)=\"\", \"\", IF(VLOOKUP(ET155,'Footnotes list'!$D$9:$E$58,2,FALSE)=0,\"\",VLOOKUP(ET155,'Footnotes list'!$D$9:$E$58,2,FALSE) ) )","v":""},null,null,null,null,{"$f":"IF(TRIM(EY155)=\"\", \"\", IF(VLOOKUP(EY155,'Footnotes list'!$D$9:$E$58,2,FALSE)=0,\"\",VLOOKUP(EY155,'Footnotes list'!$D$9:$E$58,2,FALSE) ) )","v":""}]
[null,null,"E38","ANC","ancillary activities",null,null,null,null,null,{"$f":"IF(TRIM(J156)=\"\", \"\", IF(VLOOKUP(J156,'Footnotes list'!$D$9:$E$58,2,FALSE)=0,\"\",VLOOKUP(J156,'Footnotes list'!$D$9:$E$58,2,FALSE) ) )","v":""},null,null,null,null,{"$f":"IF(TRIM(O156)=\"\", \"\", IF(VLOOKUP(O156,'Footnotes list'!$D$9:$E$58,2,FALSE)=0,\"\",VLOOKUP(O156,'Footnotes list'!$D$9:$E$58,2,FALSE) ) )","v":""},null,null,null,null,{"$f":"IF(TRIM(T156)=\"\", \"\", IF(VLOOKUP(T156,'Footnotes list'!$D$9:$E$58,2,FALSE)=0,\"\",VLOOKUP(T156,'Footnotes list'!$D$9:$E$58,2,FALSE) ) )","v":""},null,null,null,null,{"$f":"IF(TRIM(Y156)=\"\", \"\", IF(VLOOKUP(Y156,'Footnotes list'!$D$9:$E$58,2,FALSE)=0,\"\",VLOOKUP(Y156,'Footnotes list'!$D$9:$E$58,2,FALSE) ) )","v":""},null,null,null,null,{"$f":"IF(TRIM(AD156)=\"\", \"\", IF(VLOOKUP(AD156,'Footnotes list'!$D$9:$E$58,2,FALSE)=0,\"\",VLOOKUP(AD156,'Footnotes list'!$D$9:$E$58,2,FALSE) ) )","v":""},null,null,null,null,{"$f":"IF(TRIM(AI156)=\"\", \"\", IF(VLOOKUP(AI156,'Footnotes list'!$D$9:$E$58,2,FALSE)=0,\"\",VLOOKUP(AI156,'Footnotes list'!$D$9:$E$58,2,FALSE) ) )","v":""},null,null,null,null,{"$f":"IF(TRIM(AN156)=\"\", \"\", IF(VLOOKUP(AN156,'Footnotes list'!$D$9:$E$58,2,FALSE)=0,\"\",VLOOKUP(AN156,'Footnotes list'!$D$9:$E$58,2,FALSE) ) )","v":""},null,null,null,null,{"$f":"IF(TRIM(AS156)=\"\", \"\", IF(VLOOKUP(AS156,'Footnotes list'!$D$9:$E$58,2,FALSE)=0,\"\",VLOOKUP(AS156,'Footnotes list'!$D$9:$E$58,2,FALSE) ) )","v":""},null,null,null,null,{"$f":"IF(TRIM(AX156)=\"\", \"\", IF(VLOOKUP(AX156,'Footnotes list'!$D$9:$E$58,2,FALSE)=0,\"\",VLOOKUP(AX156,'Footnotes list'!$D$9:$E$58,2,FALSE) ) )","v":""},null,null,null,null,{"$f":"IF(TRIM(BC156)=\"\", \"\", IF(VLOOKUP(BC156,'Footnotes list'!$D$9:$E$58,2,FALSE)=0,\"\",VLOOKUP(BC156,'Footnotes list'!$D$9:$E$58,2,FALSE) ) )","v":""},null,null,null,null,{"$f":"IF(TRIM(BH156)=\"\", \"\", IF(VLOOKUP(BH156,'Footnotes list'!$D$9:$E$58,2,FALSE)=0,\"\",VLOOKUP(BH156,'Footnotes list'!$D$9:$E$58,2,FALSE) ) )","v":""},null,null,null,null,{"$f":"IF(TRIM(BM156)=\"\", \"\", IF(VLOOKUP(BM156,'Footnotes list'!$D$9:$E$58,2,FALSE)=0,\"\",VLOOKUP(BM156,'Footnotes list'!$D$9:$E$58,2,FALSE) ) )","v":""},null,null,null,null,{"$f":"IF(TRIM(BR156)=\"\", \"\", IF(VLOOKUP(BR156,'Footnotes list'!$D$9:$E$58,2,FALSE)=0,\"\",VLOOKUP(BR156,'Footnotes list'!$D$9:$E$58,2,FALSE) ) )","v":""},null,null,null,null,{"$f":"IF(TRIM(BW156)=\"\", \"\", IF(VLOOKUP(BW156,'Footnotes list'!$D$9:$E$58,2,FALSE)=0,\"\",VLOOKUP(BW156,'Footnotes list'!$D$9:$E$58,2,FALSE) ) )","v":""},null,null,null,null,{"$f":"IF(TRIM(CB156)=\"\", \"\", IF(VLOOKUP(CB156,'Footnotes list'!$D$9:$E$58,2,FALSE)=0,\"\",VLOOKUP(CB156,'Footnotes list'!$D$9:$E$58,2,FALSE) ) )","v":""},null,null,null,null,{"$f":"IF(TRIM(CG156)=\"\", \"\", IF(VLOOKUP(CG156,'Footnotes list'!$D$9:$E$58,2,FALSE)=0,\"\",VLOOKUP(CG156,'Footnotes list'!$D$9:$E$58,2,FALSE) ) )","v":""},null,null,null,null,{"$f":"IF(TRIM(CL156)=\"\", \"\", IF(VLOOKUP(CL156,'Footnotes list'!$D$9:$E$58,2,FALSE)=0,\"\",VLOOKUP(CL156,'Footnotes list'!$D$9:$E$58,2,FALSE) ) )","v":""},null,null,null,null,{"$f":"IF(TRIM(CQ156)=\"\", \"\", IF(VLOOKUP(CQ156,'Footnotes list'!$D$9:$E$58,2,FALSE)=0,\"\",VLOOKUP(CQ156,'Footnotes list'!$D$9:$E$58,2,FALSE) ) )","v":""},null,null,null,null,{"$f":"IF(TRIM(CV156)=\"\", \"\", IF(VLOOKUP(CV156,'Footnotes list'!$D$9:$E$58,2,FALSE)=0,\"\",VLOOKUP(CV156,'Footnotes list'!$D$9:$E$58,2,FALSE) ) )","v":""},null,null,null,null,{"$f":"IF(TRIM(DA156)=\"\", \"\", IF(VLOOKUP(DA156,'Footnotes list'!$D$9:$E$58,2,FALSE)=0,\"\",VLOOKUP(DA156,'Footnotes list'!$D$9:$E$58,2,FALSE) ) )","v":""},null,null,null,null,{"$f":"IF(TRIM(DF156)=\"\", \"\", IF(VLOOKUP(DF156,'Footnotes list'!$D$9:$E$58,2,FALSE)=0,\"\",VLOOKUP(DF156,'Footnotes list'!$D$9:$E$58,2,FALSE) ) )","v":""},null,null,null,null,{"$f":"IF(TRIM(DK156)=\"\", \"\", IF(VLOOKUP(DK156,'Footnotes list'!$D$9:$E$58,2,FALSE)=0,\"\",VLOOKUP(DK156,'Footnotes list'!$D$9:$E$58,2,FALSE) ) )","v":""},null,null,null,null,{"$f":"IF(TRIM(DP156)=\"\", \"\", IF(VLOOKUP(DP156,'Footnotes list'!$D$9:$E$58,2,FALSE)=0,\"\",VLOOKUP(DP156,'Footnotes list'!$D$9:$E$58,2,FALSE) ) )","v":""},null,null,null,null,{"$f":"IF(TRIM(DU156)=\"\", \"\", IF(VLOOKUP(DU156,'Footnotes list'!$D$9:$E$58,2,FALSE)=0,\"\",VLOOKUP(DU156,'Footnotes list'!$D$9:$E$58,2,FALSE) ) )","v":""},null,null,null,null,{"$f":"IF(TRIM(DZ156)=\"\", \"\", IF(VLOOKUP(DZ156,'Footnotes list'!$D$9:$E$58,2,FALSE)=0,\"\",VLOOKUP(DZ156,'Footnotes list'!$D$9:$E$58,2,FALSE) ) )","v":""},null,null,null,null,{"$f":"IF(TRIM(EE156)=\"\", \"\", IF(VLOOKUP(EE156,'Footnotes list'!$D$9:$E$58,2,FALSE)=0,\"\",VLOOKUP(EE156,'Footnotes list'!$D$9:$E$58,2,FALSE) ) )","v":""},null,null,null,null,{"$f":"IF(TRIM(EJ156)=\"\", \"\", IF(VLOOKUP(EJ156,'Footnotes list'!$D$9:$E$58,2,FALSE)=0,\"\",VLOOKUP(EJ156,'Footnotes list'!$D$9:$E$58,2,FALSE) ) )","v":""},null,null,null,null,{"$f":"IF(TRIM(EO156)=\"\", \"\", IF(VLOOKUP(EO156,'Footnotes list'!$D$9:$E$58,2,FALSE)=0,\"\",VLOOKUP(EO156,'Footnotes list'!$D$9:$E$58,2,FALSE) ) )","v":""},null,null,null,null,{"$f":"IF(TRIM(ET156)=\"\", \"\", IF(VLOOKUP(ET156,'Footnotes list'!$D$9:$E$58,2,FALSE)=0,\"\",VLOOKUP(ET156,'Footnotes list'!$D$9:$E$58,2,FALSE) ) )","v":""},null,null,null,null,{"$f":"IF(TRIM(EY156)=\"\", \"\", IF(VLOOKUP(EY156,'Footnotes list'!$D$9:$E$58,2,FALSE)=0,\"\",VLOOKUP(EY156,'Footnotes list'!$D$9:$E$58,2,FALSE) ) )","v":""}]
[null,null,"E38","NMKT","non-market activities",null,null,null,null,null,{"$f":"IF(TRIM(J157)=\"\", \"\", IF(VLOOKUP(J157,'Footnotes list'!$D$9:$E$58,2,FALSE)=0,\"\",VLOOKUP(J157,'Footnotes list'!$D$9:$E$58,2,FALSE) ) )","v":""},null,null,null,null,{"$f":"IF(TRIM(O157)=\"\", \"\", IF(VLOOKUP(O157,'Footnotes list'!$D$9:$E$58,2,FALSE)=0,\"\",VLOOKUP(O157,'Footnotes list'!$D$9:$E$58,2,FALSE) ) )","v":""},null,null,null,null,{"$f":"IF(TRIM(T157)=\"\", \"\", IF(VLOOKUP(T157,'Footnotes list'!$D$9:$E$58,2,FALSE)=0,\"\",VLOOKUP(T157,'Footnotes list'!$D$9:$E$58,2,FALSE) ) )","v":""},null,null,null,null,{"$f":"IF(TRIM(Y157)=\"\", \"\", IF(VLOOKUP(Y157,'Footnotes list'!$D$9:$E$58,2,FALSE)=0,\"\",VLOOKUP(Y157,'Footnotes list'!$D$9:$E$58,2,FALSE) ) )","v":""},null,null,null,null,{"$f":"IF(TRIM(AD157)=\"\", \"\", IF(VLOOKUP(AD157,'Footnotes list'!$D$9:$E$58,2,FALSE)=0,\"\",VLOOKUP(AD157,'Footnotes list'!$D$9:$E$58,2,FALSE) ) )","v":""},null,null,null,null,{"$f":"IF(TRIM(AI157)=\"\", \"\", IF(VLOOKUP(AI157,'Footnotes list'!$D$9:$E$58,2,FALSE)=0,\"\",VLOOKUP(AI157,'Footnotes list'!$D$9:$E$58,2,FALSE) ) )","v":""},null,null,null,null,{"$f":"IF(TRIM(AN157)=\"\", \"\", IF(VLOOKUP(AN157,'Footnotes list'!$D$9:$E$58,2,FALSE)=0,\"\",VLOOKUP(AN157,'Footnotes list'!$D$9:$E$58,2,FALSE) ) )","v":""},null,null,null,null,{"$f":"IF(TRIM(AS157)=\"\", \"\", IF(VLOOKUP(AS157,'Footnotes list'!$D$9:$E$58,2,FALSE)=0,\"\",VLOOKUP(AS157,'Footnotes list'!$D$9:$E$58,2,FALSE) ) )","v":""},null,null,null,null,{"$f":"IF(TRIM(AX157)=\"\", \"\", IF(VLOOKUP(AX157,'Footnotes list'!$D$9:$E$58,2,FALSE)=0,\"\",VLOOKUP(AX157,'Footnotes list'!$D$9:$E$58,2,FALSE) ) )","v":""},null,null,null,null,{"$f":"IF(TRIM(BC157)=\"\", \"\", IF(VLOOKUP(BC157,'Footnotes list'!$D$9:$E$58,2,FALSE)=0,\"\",VLOOKUP(BC157,'Footnotes list'!$D$9:$E$58,2,FALSE) ) )","v":""},null,null,null,null,{"$f":"IF(TRIM(BH157)=\"\", \"\", IF(VLOOKUP(BH157,'Footnotes list'!$D$9:$E$58,2,FALSE)=0,\"\",VLOOKUP(BH157,'Footnotes list'!$D$9:$E$58,2,FALSE) ) )","v":""},null,null,null,null,{"$f":"IF(TRIM(BM157)=\"\", \"\", IF(VLOOKUP(BM157,'Footnotes list'!$D$9:$E$58,2,FALSE)=0,\"\",VLOOKUP(BM157,'Footnotes list'!$D$9:$E$58,2,FALSE) ) )","v":""},null,null,null,null,{"$f":"IF(TRIM(BR157)=\"\", \"\", IF(VLOOKUP(BR157,'Footnotes list'!$D$9:$E$58,2,FALSE)=0,\"\",VLOOKUP(BR157,'Footnotes list'!$D$9:$E$58,2,FALSE) ) )","v":""},null,null,null,null,{"$f":"IF(TRIM(BW157)=\"\", \"\", IF(VLOOKUP(BW157,'Footnotes list'!$D$9:$E$58,2,FALSE)=0,\"\",VLOOKUP(BW157,'Footnotes list'!$D$9:$E$58,2,FALSE) ) )","v":""},null,null,null,null,{"$f":"IF(TRIM(CB157)=\"\", \"\", IF(VLOOKUP(CB157,'Footnotes list'!$D$9:$E$58,2,FALSE)=0,\"\",VLOOKUP(CB157,'Footnotes list'!$D$9:$E$58,2,FALSE) ) )","v":""},null,null,null,null,{"$f":"IF(TRIM(CG157)=\"\", \"\", IF(VLOOKUP(CG157,'Footnotes list'!$D$9:$E$58,2,FALSE)=0,\"\",VLOOKUP(CG157,'Footnotes list'!$D$9:$E$58,2,FALSE) ) )","v":""},null,null,null,null,{"$f":"IF(TRIM(CL157)=\"\", \"\", IF(VLOOKUP(CL157,'Footnotes list'!$D$9:$E$58,2,FALSE)=0,\"\",VLOOKUP(CL157,'Footnotes list'!$D$9:$E$58,2,FALSE) ) )","v":""},null,null,null,null,{"$f":"IF(TRIM(CQ157)=\"\", \"\", IF(VLOOKUP(CQ157,'Footnotes list'!$D$9:$E$58,2,FALSE)=0,\"\",VLOOKUP(CQ157,'Footnotes list'!$D$9:$E$58,2,FALSE) ) )","v":""},null,null,null,null,{"$f":"IF(TRIM(CV157)=\"\", \"\", IF(VLOOKUP(CV157,'Footnotes list'!$D$9:$E$58,2,FALSE)=0,\"\",VLOOKUP(CV157,'Footnotes list'!$D$9:$E$58,2,FALSE) ) )","v":""},null,null,null,null,{"$f":"IF(TRIM(DA157)=\"\", \"\", IF(VLOOKUP(DA157,'Footnotes list'!$D$9:$E$58,2,FALSE)=0,\"\",VLOOKUP(DA157,'Footnotes list'!$D$9:$E$58,2,FALSE) ) )","v":""},null,null,null,null,{"$f":"IF(TRIM(DF157)=\"\", \"\", IF(VLOOKUP(DF157,'Footnotes list'!$D$9:$E$58,2,FALSE)=0,\"\",VLOOKUP(DF157,'Footnotes list'!$D$9:$E$58,2,FALSE) ) )","v":""},null,null,null,null,{"$f":"IF(TRIM(DK157)=\"\", \"\", IF(VLOOKUP(DK157,'Footnotes list'!$D$9:$E$58,2,FALSE)=0,\"\",VLOOKUP(DK157,'Footnotes list'!$D$9:$E$58,2,FALSE) ) )","v":""},null,null,null,null,{"$f":"IF(TRIM(DP157)=\"\", \"\", IF(VLOOKUP(DP157,'Footnotes list'!$D$9:$E$58,2,FALSE)=0,\"\",VLOOKUP(DP157,'Footnotes list'!$D$9:$E$58,2,FALSE) ) )","v":""},null,null,null,null,{"$f":"IF(TRIM(DU157)=\"\", \"\", IF(VLOOKUP(DU157,'Footnotes list'!$D$9:$E$58,2,FALSE)=0,\"\",VLOOKUP(DU157,'Footnotes list'!$D$9:$E$58,2,FALSE) ) )","v":""},null,null,null,null,{"$f":"IF(TRIM(DZ157)=\"\", \"\", IF(VLOOKUP(DZ157,'Footnotes list'!$D$9:$E$58,2,FALSE)=0,\"\",VLOOKUP(DZ157,'Footnotes list'!$D$9:$E$58,2,FALSE) ) )","v":""},null,null,null,null,{"$f":"IF(TRIM(EE157)=\"\", \"\", IF(VLOOKUP(EE157,'Footnotes list'!$D$9:$E$58,2,FALSE)=0,\"\",VLOOKUP(EE157,'Footnotes list'!$D$9:$E$58,2,FALSE) ) )","v":""},null,null,null,null,{"$f":"IF(TRIM(EJ157)=\"\", \"\", IF(VLOOKUP(EJ157,'Footnotes list'!$D$9:$E$58,2,FALSE)=0,\"\",VLOOKUP(EJ157,'Footnotes list'!$D$9:$E$58,2,FALSE) ) )","v":""},null,null,null,null,{"$f":"IF(TRIM(EO157)=\"\", \"\", IF(VLOOKUP(EO157,'Footnotes list'!$D$9:$E$58,2,FALSE)=0,\"\",VLOOKUP(EO157,'Footnotes list'!$D$9:$E$58,2,FALSE) ) )","v":""},null,null,null,null,{"$f":"IF(TRIM(ET157)=\"\", \"\", IF(VLOOKUP(ET157,'Footnotes list'!$D$9:$E$58,2,FALSE)=0,\"\",VLOOKUP(ET157,'Footnotes list'!$D$9:$E$58,2,FALSE) ) )","v":""},null,null,null,null,{"$f":"IF(TRIM(EY157)=\"\", \"\", IF(VLOOKUP(EY157,'Footnotes list'!$D$9:$E$58,2,FALSE)=0,\"\",VLOOKUP(EY157,'Footnotes list'!$D$9:$E$58,2,FALSE) ) )","v":""}]
[null,null,"E38","OWN_USE","activities for own final use",null,null,null,null,null,{"$f":"IF(TRIM(J158)=\"\", \"\", IF(VLOOKUP(J158,'Footnotes list'!$D$9:$E$58,2,FALSE)=0,\"\",VLOOKUP(J158,'Footnotes list'!$D$9:$E$58,2,FALSE) ) )","v":""},null,null,null,null,{"$f":"IF(TRIM(O158)=\"\", \"\", IF(VLOOKUP(O158,'Footnotes list'!$D$9:$E$58,2,FALSE)=0,\"\",VLOOKUP(O158,'Footnotes list'!$D$9:$E$58,2,FALSE) ) )","v":""},null,null,null,null,{"$f":"IF(TRIM(T158)=\"\", \"\", IF(VLOOKUP(T158,'Footnotes list'!$D$9:$E$58,2,FALSE)=0,\"\",VLOOKUP(T158,'Footnotes list'!$D$9:$E$58,2,FALSE) ) )","v":""},null,null,null,null,{"$f":"IF(TRIM(Y158)=\"\", \"\", IF(VLOOKUP(Y158,'Footnotes list'!$D$9:$E$58,2,FALSE)=0,\"\",VLOOKUP(Y158,'Footnotes list'!$D$9:$E$58,2,FALSE) ) )","v":""},null,null,null,null,{"$f":"IF(TRIM(AD158)=\"\", \"\", IF(VLOOKUP(AD158,'Footnotes list'!$D$9:$E$58,2,FALSE)=0,\"\",VLOOKUP(AD158,'Footnotes list'!$D$9:$E$58,2,FALSE) ) )","v":""},null,null,null,null,{"$f":"IF(TRIM(AI158)=\"\", \"\", IF(VLOOKUP(AI158,'Footnotes list'!$D$9:$E$58,2,FALSE)=0,\"\",VLOOKUP(AI158,'Footnotes list'!$D$9:$E$58,2,FALSE) ) )","v":""},null,null,null,null,{"$f":"IF(TRIM(AN158)=\"\", \"\", IF(VLOOKUP(AN158,'Footnotes list'!$D$9:$E$58,2,FALSE)=0,\"\",VLOOKUP(AN158,'Footnotes list'!$D$9:$E$58,2,FALSE) ) )","v":""},null,null,null,null,{"$f":"IF(TRIM(AS158)=\"\", \"\", IF(VLOOKUP(AS158,'Footnotes list'!$D$9:$E$58,2,FALSE)=0,\"\",VLOOKUP(AS158,'Footnotes list'!$D$9:$E$58,2,FALSE) ) )","v":""},null,null,null,null,{"$f":"IF(TRIM(AX158)=\"\", \"\", IF(VLOOKUP(AX158,'Footnotes list'!$D$9:$E$58,2,FALSE)=0,\"\",VLOOKUP(AX158,'Footnotes list'!$D$9:$E$58,2,FALSE) ) )","v":""},null,null,null,null,{"$f":"IF(TRIM(BC158)=\"\", \"\", IF(VLOOKUP(BC158,'Footnotes list'!$D$9:$E$58,2,FALSE)=0,\"\",VLOOKUP(BC158,'Footnotes list'!$D$9:$E$58,2,FALSE) ) )","v":""},null,null,null,null,{"$f":"IF(TRIM(BH158)=\"\", \"\", IF(VLOOKUP(BH158,'Footnotes list'!$D$9:$E$58,2,FALSE)=0,\"\",VLOOKUP(BH158,'Footnotes list'!$D$9:$E$58,2,FALSE) ) )","v":""},null,null,null,null,{"$f":"IF(TRIM(BM158)=\"\", \"\", IF(VLOOKUP(BM158,'Footnotes list'!$D$9:$E$58,2,FALSE)=0,\"\",VLOOKUP(BM158,'Footnotes list'!$D$9:$E$58,2,FALSE) ) )","v":""},null,null,null,null,{"$f":"IF(TRIM(BR158)=\"\", \"\", IF(VLOOKUP(BR158,'Footnotes list'!$D$9:$E$58,2,FALSE)=0,\"\",VLOOKUP(BR158,'Footnotes list'!$D$9:$E$58,2,FALSE) ) )","v":""},null,null,null,null,{"$f":"IF(TRIM(BW158)=\"\", \"\", IF(VLOOKUP(BW158,'Footnotes list'!$D$9:$E$58,2,FALSE)=0,\"\",VLOOKUP(BW158,'Footnotes list'!$D$9:$E$58,2,FALSE) ) )","v":""},null,null,null,null,{"$f":"IF(TRIM(CB158)=\"\", \"\", IF(VLOOKUP(CB158,'Footnotes list'!$D$9:$E$58,2,FALSE)=0,\"\",VLOOKUP(CB158,'Footnotes list'!$D$9:$E$58,2,FALSE) ) )","v":""},null,null,null,null,{"$f":"IF(TRIM(CG158)=\"\", \"\", IF(VLOOKUP(CG158,'Footnotes list'!$D$9:$E$58,2,FALSE)=0,\"\",VLOOKUP(CG158,'Footnotes list'!$D$9:$E$58,2,FALSE) ) )","v":""},null,null,null,null,{"$f":"IF(TRIM(CL158)=\"\", \"\", IF(VLOOKUP(CL158,'Footnotes list'!$D$9:$E$58,2,FALSE)=0,\"\",VLOOKUP(CL158,'Footnotes list'!$D$9:$E$58,2,FALSE) ) )","v":""},null,null,null,null,{"$f":"IF(TRIM(CQ158)=\"\", \"\", IF(VLOOKUP(CQ158,'Footnotes list'!$D$9:$E$58,2,FALSE)=0,\"\",VLOOKUP(CQ158,'Footnotes list'!$D$9:$E$58,2,FALSE) ) )","v":""},null,null,null,null,{"$f":"IF(TRIM(CV158)=\"\", \"\", IF(VLOOKUP(CV158,'Footnotes list'!$D$9:$E$58,2,FALSE)=0,\"\",VLOOKUP(CV158,'Footnotes list'!$D$9:$E$58,2,FALSE) ) )","v":""},null,null,null,null,{"$f":"IF(TRIM(DA158)=\"\", \"\", IF(VLOOKUP(DA158,'Footnotes list'!$D$9:$E$58,2,FALSE)=0,\"\",VLOOKUP(DA158,'Footnotes list'!$D$9:$E$58,2,FALSE) ) )","v":""},null,null,null,null,{"$f":"IF(TRIM(DF158)=\"\", \"\", IF(VLOOKUP(DF158,'Footnotes list'!$D$9:$E$58,2,FALSE)=0,\"\",VLOOKUP(DF158,'Footnotes list'!$D$9:$E$58,2,FALSE) ) )","v":""},null,null,null,null,{"$f":"IF(TRIM(DK158)=\"\", \"\", IF(VLOOKUP(DK158,'Footnotes list'!$D$9:$E$58,2,FALSE)=0,\"\",VLOOKUP(DK158,'Footnotes list'!$D$9:$E$58,2,FALSE) ) )","v":""},null,null,null,null,{"$f":"IF(TRIM(DP158)=\"\", \"\", IF(VLOOKUP(DP158,'Footnotes list'!$D$9:$E$58,2,FALSE)=0,\"\",VLOOKUP(DP158,'Footnotes list'!$D$9:$E$58,2,FALSE) ) )","v":""},null,null,null,null,{"$f":"IF(TRIM(DU158)=\"\", \"\", IF(VLOOKUP(DU158,'Footnotes list'!$D$9:$E$58,2,FALSE)=0,\"\",VLOOKUP(DU158,'Footnotes list'!$D$9:$E$58,2,FALSE) ) )","v":""},null,null,null,null,{"$f":"IF(TRIM(DZ158)=\"\", \"\", IF(VLOOKUP(DZ158,'Footnotes list'!$D$9:$E$58,2,FALSE)=0,\"\",VLOOKUP(DZ158,'Footnotes list'!$D$9:$E$58,2,FALSE) ) )","v":""},null,null,null,null,{"$f":"IF(TRIM(EE158)=\"\", \"\", IF(VLOOKUP(EE158,'Footnotes list'!$D$9:$E$58,2,FALSE)=0,\"\",VLOOKUP(EE158,'Footnotes list'!$D$9:$E$58,2,FALSE) ) )","v":""},null,null,null,null,{"$f":"IF(TRIM(EJ158)=\"\", \"\", IF(VLOOKUP(EJ158,'Footnotes list'!$D$9:$E$58,2,FALSE)=0,\"\",VLOOKUP(EJ158,'Footnotes list'!$D$9:$E$58,2,FALSE) ) )","v":""},null,null,null,null,{"$f":"IF(TRIM(EO158)=\"\", \"\", IF(VLOOKUP(EO158,'Footnotes list'!$D$9:$E$58,2,FALSE)=0,\"\",VLOOKUP(EO158,'Footnotes list'!$D$9:$E$58,2,FALSE) ) )","v":""},null,null,null,null,{"$f":"IF(TRIM(ET158)=\"\", \"\", IF(VLOOKUP(ET158,'Footnotes list'!$D$9:$E$58,2,FALSE)=0,\"\",VLOOKUP(ET158,'Footnotes list'!$D$9:$E$58,2,FALSE) ) )","v":""},null,null,null,null,{"$f":"IF(TRIM(EY158)=\"\", \"\", IF(VLOOKUP(EY158,'Footnotes list'!$D$9:$E$58,2,FALSE)=0,\"\",VLOOKUP(EY158,'Footnotes list'!$D$9:$E$58,2,FALSE) ) )","v":""}]
[null,null,"E38","MKT","market activities, including:",null,null,null,null,null,{"$f":"IF(TRIM(J159)=\"\", \"\", IF(VLOOKUP(J159,'Footnotes list'!$D$9:$E$58,2,FALSE)=0,\"\",VLOOKUP(J159,'Footnotes list'!$D$9:$E$58,2,FALSE) ) )","v":""},null,null,null,null,{"$f":"IF(TRIM(O159)=\"\", \"\", IF(VLOOKUP(O159,'Footnotes list'!$D$9:$E$58,2,FALSE)=0,\"\",VLOOKUP(O159,'Footnotes list'!$D$9:$E$58,2,FALSE) ) )","v":""},null,null,null,null,{"$f":"IF(TRIM(T159)=\"\", \"\", IF(VLOOKUP(T159,'Footnotes list'!$D$9:$E$58,2,FALSE)=0,\"\",VLOOKUP(T159,'Footnotes list'!$D$9:$E$58,2,FALSE) ) )","v":""},null,null,null,null,{"$f":"IF(TRIM(Y159)=\"\", \"\", IF(VLOOKUP(Y159,'Footnotes list'!$D$9:$E$58,2,FALSE)=0,\"\",VLOOKUP(Y159,'Footnotes list'!$D$9:$E$58,2,FALSE) ) )","v":""},null,null,null,null,{"$f":"IF(TRIM(AD159)=\"\", \"\", IF(VLOOKUP(AD159,'Footnotes list'!$D$9:$E$58,2,FALSE)=0,\"\",VLOOKUP(AD159,'Footnotes list'!$D$9:$E$58,2,FALSE) ) )","v":""},null,null,null,null,{"$f":"IF(TRIM(AI159)=\"\", \"\", IF(VLOOKUP(AI159,'Footnotes list'!$D$9:$E$58,2,FALSE)=0,\"\",VLOOKUP(AI159,'Footnotes list'!$D$9:$E$58,2,FALSE) ) )","v":""},null,null,null,null,{"$f":"IF(TRIM(AN159)=\"\", \"\", IF(VLOOKUP(AN159,'Footnotes list'!$D$9:$E$58,2,FALSE)=0,\"\",VLOOKUP(AN159,'Footnotes list'!$D$9:$E$58,2,FALSE) ) )","v":""},null,null,null,null,{"$f":"IF(TRIM(AS159)=\"\", \"\", IF(VLOOKUP(AS159,'Footnotes list'!$D$9:$E$58,2,FALSE)=0,\"\",VLOOKUP(AS159,'Footnotes list'!$D$9:$E$58,2,FALSE) ) )","v":""},null,null,null,null,{"$f":"IF(TRIM(AX159)=\"\", \"\", IF(VLOOKUP(AX159,'Footnotes list'!$D$9:$E$58,2,FALSE)=0,\"\",VLOOKUP(AX159,'Footnotes list'!$D$9:$E$58,2,FALSE) ) )","v":""},null,null,null,null,{"$f":"IF(TRIM(BC159)=\"\", \"\", IF(VLOOKUP(BC159,'Footnotes list'!$D$9:$E$58,2,FALSE)=0,\"\",VLOOKUP(BC159,'Footnotes list'!$D$9:$E$58,2,FALSE) ) )","v":""},null,null,null,null,{"$f":"IF(TRIM(BH159)=\"\", \"\", IF(VLOOKUP(BH159,'Footnotes list'!$D$9:$E$58,2,FALSE)=0,\"\",VLOOKUP(BH159,'Footnotes list'!$D$9:$E$58,2,FALSE) ) )","v":""},null,null,null,null,{"$f":"IF(TRIM(BM159)=\"\", \"\", IF(VLOOKUP(BM159,'Footnotes list'!$D$9:$E$58,2,FALSE)=0,\"\",VLOOKUP(BM159,'Footnotes list'!$D$9:$E$58,2,FALSE) ) )","v":""},null,null,null,null,{"$f":"IF(TRIM(BR159)=\"\", \"\", IF(VLOOKUP(BR159,'Footnotes list'!$D$9:$E$58,2,FALSE)=0,\"\",VLOOKUP(BR159,'Footnotes list'!$D$9:$E$58,2,FALSE) ) )","v":""},null,null,null,null,{"$f":"IF(TRIM(BW159)=\"\", \"\", IF(VLOOKUP(BW159,'Footnotes list'!$D$9:$E$58,2,FALSE)=0,\"\",VLOOKUP(BW159,'Footnotes list'!$D$9:$E$58,2,FALSE) ) )","v":""},null,null,null,null,{"$f":"IF(TRIM(CB159)=\"\", \"\", IF(VLOOKUP(CB159,'Footnotes list'!$D$9:$E$58,2,FALSE)=0,\"\",VLOOKUP(CB159,'Footnotes list'!$D$9:$E$58,2,FALSE) ) )","v":""},null,null,null,null,{"$f":"IF(TRIM(CG159)=\"\", \"\", IF(VLOOKUP(CG159,'Footnotes list'!$D$9:$E$58,2,FALSE)=0,\"\",VLOOKUP(CG159,'Footnotes list'!$D$9:$E$58,2,FALSE) ) )","v":""},null,null,null,null,{"$f":"IF(TRIM(CL159)=\"\", \"\", IF(VLOOKUP(CL159,'Footnotes list'!$D$9:$E$58,2,FALSE)=0,\"\",VLOOKUP(CL159,'Footnotes list'!$D$9:$E$58,2,FALSE) ) )","v":""},null,null,null,null,{"$f":"IF(TRIM(CQ159)=\"\", \"\", IF(VLOOKUP(CQ159,'Footnotes list'!$D$9:$E$58,2,FALSE)=0,\"\",VLOOKUP(CQ159,'Footnotes list'!$D$9:$E$58,2,FALSE) ) )","v":""},null,null,null,null,{"$f":"IF(TRIM(CV159)=\"\", \"\", IF(VLOOKUP(CV159,'Footnotes list'!$D$9:$E$58,2,FALSE)=0,\"\",VLOOKUP(CV159,'Footnotes list'!$D$9:$E$58,2,FALSE) ) )","v":""},null,null,null,null,{"$f":"IF(TRIM(DA159)=\"\", \"\", IF(VLOOKUP(DA159,'Footnotes list'!$D$9:$E$58,2,FALSE)=0,\"\",VLOOKUP(DA159,'Footnotes list'!$D$9:$E$58,2,FALSE) ) )","v":""},null,null,null,null,{"$f":"IF(TRIM(DF159)=\"\", \"\", IF(VLOOKUP(DF159,'Footnotes list'!$D$9:$E$58,2,FALSE)=0,\"\",VLOOKUP(DF159,'Footnotes list'!$D$9:$E$58,2,FALSE) ) )","v":""},null,null,null,null,{"$f":"IF(TRIM(DK159)=\"\", \"\", IF(VLOOKUP(DK159,'Footnotes list'!$D$9:$E$58,2,FALSE)=0,\"\",VLOOKUP(DK159,'Footnotes list'!$D$9:$E$58,2,FALSE) ) )","v":""},null,null,null,null,{"$f":"IF(TRIM(DP159)=\"\", \"\", IF(VLOOKUP(DP159,'Footnotes list'!$D$9:$E$58,2,FALSE)=0,\"\",VLOOKUP(DP159,'Footnotes list'!$D$9:$E$58,2,FALSE) ) )","v":""},null,null,null,null,{"$f":"IF(TRIM(DU159)=\"\", \"\", IF(VLOOKUP(DU159,'Footnotes list'!$D$9:$E$58,2,FALSE)=0,\"\",VLOOKUP(DU159,'Footnotes list'!$D$9:$E$58,2,FALSE) ) )","v":""},null,null,null,null,{"$f":"IF(TRIM(DZ159)=\"\", \"\", IF(VLOOKUP(DZ159,'Footnotes list'!$D$9:$E$58,2,FALSE)=0,\"\",VLOOKUP(DZ159,'Footnotes list'!$D$9:$E$58,2,FALSE) ) )","v":""},null,null,null,null,{"$f":"IF(TRIM(EE159)=\"\", \"\", IF(VLOOKUP(EE159,'Footnotes list'!$D$9:$E$58,2,FALSE)=0,\"\",VLOOKUP(EE159,'Footnotes list'!$D$9:$E$58,2,FALSE) ) )","v":""},null,null,null,null,{"$f":"IF(TRIM(EJ159)=\"\", \"\", IF(VLOOKUP(EJ159,'Footnotes list'!$D$9:$E$58,2,FALSE)=0,\"\",VLOOKUP(EJ159,'Footnotes list'!$D$9:$E$58,2,FALSE) ) )","v":""},null,null,null,null,{"$f":"IF(TRIM(EO159)=\"\", \"\", IF(VLOOKUP(EO159,'Footnotes list'!$D$9:$E$58,2,FALSE)=0,\"\",VLOOKUP(EO159,'Footnotes list'!$D$9:$E$58,2,FALSE) ) )","v":""},null,null,null,null,{"$f":"IF(TRIM(ET159)=\"\", \"\", IF(VLOOKUP(ET159,'Footnotes list'!$D$9:$E$58,2,FALSE)=0,\"\",VLOOKUP(ET159,'Footnotes list'!$D$9:$E$58,2,FALSE) ) )","v":""},null,null,null,null,{"$f":"IF(TRIM(EY159)=\"\", \"\", IF(VLOOKUP(EY159,'Footnotes list'!$D$9:$E$58,2,FALSE)=0,\"\",VLOOKUP(EY159,'Footnotes list'!$D$9:$E$58,2,FALSE) ) )","v":""}]
[null,null,"E38","ES_CS","environmental specific services",null,null,null,null,null,{"$f":"IF(TRIM(J160)=\"\", \"\", IF(VLOOKUP(J160,'Footnotes list'!$D$9:$E$58,2,FALSE)=0,\"\",VLOOKUP(J160,'Footnotes list'!$D$9:$E$58,2,FALSE) ) )","v":""},null,null,null,null,{"$f":"IF(TRIM(O160)=\"\", \"\", IF(VLOOKUP(O160,'Footnotes list'!$D$9:$E$58,2,FALSE)=0,\"\",VLOOKUP(O160,'Footnotes list'!$D$9:$E$58,2,FALSE) ) )","v":""},null,null,null,null,{"$f":"IF(TRIM(T160)=\"\", \"\", IF(VLOOKUP(T160,'Footnotes list'!$D$9:$E$58,2,FALSE)=0,\"\",VLOOKUP(T160,'Footnotes list'!$D$9:$E$58,2,FALSE) ) )","v":""},null,null,null,null,{"$f":"IF(TRIM(Y160)=\"\", \"\", IF(VLOOKUP(Y160,'Footnotes list'!$D$9:$E$58,2,FALSE)=0,\"\",VLOOKUP(Y160,'Footnotes list'!$D$9:$E$58,2,FALSE) ) )","v":""},null,null,null,null,{"$f":"IF(TRIM(AD160)=\"\", \"\", IF(VLOOKUP(AD160,'Footnotes list'!$D$9:$E$58,2,FALSE)=0,\"\",VLOOKUP(AD160,'Footnotes list'!$D$9:$E$58,2,FALSE) ) )","v":""},null,null,null,null,{"$f":"IF(TRIM(AI160)=\"\", \"\", IF(VLOOKUP(AI160,'Footnotes list'!$D$9:$E$58,2,FALSE)=0,\"\",VLOOKUP(AI160,'Footnotes list'!$D$9:$E$58,2,FALSE) ) )","v":""},null,null,null,null,{"$f":"IF(TRIM(AN160)=\"\", \"\", IF(VLOOKUP(AN160,'Footnotes list'!$D$9:$E$58,2,FALSE)=0,\"\",VLOOKUP(AN160,'Footnotes list'!$D$9:$E$58,2,FALSE) ) )","v":""},null,null,null,null,{"$f":"IF(TRIM(AS160)=\"\", \"\", IF(VLOOKUP(AS160,'Footnotes list'!$D$9:$E$58,2,FALSE)=0,\"\",VLOOKUP(AS160,'Footnotes list'!$D$9:$E$58,2,FALSE) ) )","v":""},null,null,null,null,{"$f":"IF(TRIM(AX160)=\"\", \"\", IF(VLOOKUP(AX160,'Footnotes list'!$D$9:$E$58,2,FALSE)=0,\"\",VLOOKUP(AX160,'Footnotes list'!$D$9:$E$58,2,FALSE) ) )","v":""},null,null,null,null,{"$f":"IF(TRIM(BC160)=\"\", \"\", IF(VLOOKUP(BC160,'Footnotes list'!$D$9:$E$58,2,FALSE)=0,\"\",VLOOKUP(BC160,'Footnotes list'!$D$9:$E$58,2,FALSE) ) )","v":""},null,null,null,null,{"$f":"IF(TRIM(BH160)=\"\", \"\", IF(VLOOKUP(BH160,'Footnotes list'!$D$9:$E$58,2,FALSE)=0,\"\",VLOOKUP(BH160,'Footnotes list'!$D$9:$E$58,2,FALSE) ) )","v":""},null,null,null,null,{"$f":"IF(TRIM(BM160)=\"\", \"\", IF(VLOOKUP(BM160,'Footnotes list'!$D$9:$E$58,2,FALSE)=0,\"\",VLOOKUP(BM160,'Footnotes list'!$D$9:$E$58,2,FALSE) ) )","v":""},null,null,null,null,{"$f":"IF(TRIM(BR160)=\"\", \"\", IF(VLOOKUP(BR160,'Footnotes list'!$D$9:$E$58,2,FALSE)=0,\"\",VLOOKUP(BR160,'Footnotes list'!$D$9:$E$58,2,FALSE) ) )","v":""},null,null,null,null,{"$f":"IF(TRIM(BW160)=\"\", \"\", IF(VLOOKUP(BW160,'Footnotes list'!$D$9:$E$58,2,FALSE)=0,\"\",VLOOKUP(BW160,'Footnotes list'!$D$9:$E$58,2,FALSE) ) )","v":""},null,null,null,null,{"$f":"IF(TRIM(CB160)=\"\", \"\", IF(VLOOKUP(CB160,'Footnotes list'!$D$9:$E$58,2,FALSE)=0,\"\",VLOOKUP(CB160,'Footnotes list'!$D$9:$E$58,2,FALSE) ) )","v":""},null,null,null,null,{"$f":"IF(TRIM(CG160)=\"\", \"\", IF(VLOOKUP(CG160,'Footnotes list'!$D$9:$E$58,2,FALSE)=0,\"\",VLOOKUP(CG160,'Footnotes list'!$D$9:$E$58,2,FALSE) ) )","v":""},null,null,null,null,{"$f":"IF(TRIM(CL160)=\"\", \"\", IF(VLOOKUP(CL160,'Footnotes list'!$D$9:$E$58,2,FALSE)=0,\"\",VLOOKUP(CL160,'Footnotes list'!$D$9:$E$58,2,FALSE) ) )","v":""},null,null,null,null,{"$f":"IF(TRIM(CQ160)=\"\", \"\", IF(VLOOKUP(CQ160,'Footnotes list'!$D$9:$E$58,2,FALSE)=0,\"\",VLOOKUP(CQ160,'Footnotes list'!$D$9:$E$58,2,FALSE) ) )","v":""},null,null,null,null,{"$f":"IF(TRIM(CV160)=\"\", \"\", IF(VLOOKUP(CV160,'Footnotes list'!$D$9:$E$58,2,FALSE)=0,\"\",VLOOKUP(CV160,'Footnotes list'!$D$9:$E$58,2,FALSE) ) )","v":""},null,null,null,null,{"$f":"IF(TRIM(DA160)=\"\", \"\", IF(VLOOKUP(DA160,'Footnotes list'!$D$9:$E$58,2,FALSE)=0,\"\",VLOOKUP(DA160,'Footnotes list'!$D$9:$E$58,2,FALSE) ) )","v":""},null,null,null,null,{"$f":"IF(TRIM(DF160)=\"\", \"\", IF(VLOOKUP(DF160,'Footnotes list'!$D$9:$E$58,2,FALSE)=0,\"\",VLOOKUP(DF160,'Footnotes list'!$D$9:$E$58,2,FALSE) ) )","v":""},null,null,null,null,{"$f":"IF(TRIM(DK160)=\"\", \"\", IF(VLOOKUP(DK160,'Footnotes list'!$D$9:$E$58,2,FALSE)=0,\"\",VLOOKUP(DK160,'Footnotes list'!$D$9:$E$58,2,FALSE) ) )","v":""},null,null,null,null,{"$f":"IF(TRIM(DP160)=\"\", \"\", IF(VLOOKUP(DP160,'Footnotes list'!$D$9:$E$58,2,FALSE)=0,\"\",VLOOKUP(DP160,'Footnotes list'!$D$9:$E$58,2,FALSE) ) )","v":""},null,null,null,null,{"$f":"IF(TRIM(DU160)=\"\", \"\", IF(VLOOKUP(DU160,'Footnotes list'!$D$9:$E$58,2,FALSE)=0,\"\",VLOOKUP(DU160,'Footnotes list'!$D$9:$E$58,2,FALSE) ) )","v":""},null,null,null,null,{"$f":"IF(TRIM(DZ160)=\"\", \"\", IF(VLOOKUP(DZ160,'Footnotes list'!$D$9:$E$58,2,FALSE)=0,\"\",VLOOKUP(DZ160,'Footnotes list'!$D$9:$E$58,2,FALSE) ) )","v":""},null,null,null,null,{"$f":"IF(TRIM(EE160)=\"\", \"\", IF(VLOOKUP(EE160,'Footnotes list'!$D$9:$E$58,2,FALSE)=0,\"\",VLOOKUP(EE160,'Footnotes list'!$D$9:$E$58,2,FALSE) ) )","v":""},null,null,null,null,{"$f":"IF(TRIM(EJ160)=\"\", \"\", IF(VLOOKUP(EJ160,'Footnotes list'!$D$9:$E$58,2,FALSE)=0,\"\",VLOOKUP(EJ160,'Footnotes list'!$D$9:$E$58,2,FALSE) ) )","v":""},null,null,null,null,{"$f":"IF(TRIM(EO160)=\"\", \"\", IF(VLOOKUP(EO160,'Footnotes list'!$D$9:$E$58,2,FALSE)=0,\"\",VLOOKUP(EO160,'Footnotes list'!$D$9:$E$58,2,FALSE) ) )","v":""},null,null,null,null,{"$f":"IF(TRIM(ET160)=\"\", \"\", IF(VLOOKUP(ET160,'Footnotes list'!$D$9:$E$58,2,FALSE)=0,\"\",VLOOKUP(ET160,'Footnotes list'!$D$9:$E$58,2,FALSE) ) )","v":""},null,null,null,null,{"$f":"IF(TRIM(EY160)=\"\", \"\", IF(VLOOKUP(EY160,'Footnotes list'!$D$9:$E$58,2,FALSE)=0,\"\",VLOOKUP(EY160,'Footnotes list'!$D$9:$E$58,2,FALSE) ) )","v":""}]
[null,null,"E38","C_REP","cleaner and resource efficient products",null,null,null,null,null,{"$f":"IF(TRIM(J161)=\"\", \"\", IF(VLOOKUP(J161,'Footnotes list'!$D$9:$E$58,2,FALSE)=0,\"\",VLOOKUP(J161,'Footnotes list'!$D$9:$E$58,2,FALSE) ) )","v":""},null,null,null,null,{"$f":"IF(TRIM(O161)=\"\", \"\", IF(VLOOKUP(O161,'Footnotes list'!$D$9:$E$58,2,FALSE)=0,\"\",VLOOKUP(O161,'Footnotes list'!$D$9:$E$58,2,FALSE) ) )","v":""},null,null,null,null,{"$f":"IF(TRIM(T161)=\"\", \"\", IF(VLOOKUP(T161,'Footnotes list'!$D$9:$E$58,2,FALSE)=0,\"\",VLOOKUP(T161,'Footnotes list'!$D$9:$E$58,2,FALSE) ) )","v":""},null,null,null,null,{"$f":"IF(TRIM(Y161)=\"\", \"\", IF(VLOOKUP(Y161,'Footnotes list'!$D$9:$E$58,2,FALSE)=0,\"\",VLOOKUP(Y161,'Footnotes list'!$D$9:$E$58,2,FALSE) ) )","v":""},null,null,null,null,{"$f":"IF(TRIM(AD161)=\"\", \"\", IF(VLOOKUP(AD161,'Footnotes list'!$D$9:$E$58,2,FALSE)=0,\"\",VLOOKUP(AD161,'Footnotes list'!$D$9:$E$58,2,FALSE) ) )","v":""},null,null,null,null,{"$f":"IF(TRIM(AI161)=\"\", \"\", IF(VLOOKUP(AI161,'Footnotes list'!$D$9:$E$58,2,FALSE)=0,\"\",VLOOKUP(AI161,'Footnotes list'!$D$9:$E$58,2,FALSE) ) )","v":""},null,null,null,null,{"$f":"IF(TRIM(AN161)=\"\", \"\", IF(VLOOKUP(AN161,'Footnotes list'!$D$9:$E$58,2,FALSE)=0,\"\",VLOOKUP(AN161,'Footnotes list'!$D$9:$E$58,2,FALSE) ) )","v":""},null,null,null,null,{"$f":"IF(TRIM(AS161)=\"\", \"\", IF(VLOOKUP(AS161,'Footnotes list'!$D$9:$E$58,2,FALSE)=0,\"\",VLOOKUP(AS161,'Footnotes list'!$D$9:$E$58,2,FALSE) ) )","v":""},null,null,null,null,{"$f":"IF(TRIM(AX161)=\"\", \"\", IF(VLOOKUP(AX161,'Footnotes list'!$D$9:$E$58,2,FALSE)=0,\"\",VLOOKUP(AX161,'Footnotes list'!$D$9:$E$58,2,FALSE) ) )","v":""},null,null,null,null,{"$f":"IF(TRIM(BC161)=\"\", \"\", IF(VLOOKUP(BC161,'Footnotes list'!$D$9:$E$58,2,FALSE)=0,\"\",VLOOKUP(BC161,'Footnotes list'!$D$9:$E$58,2,FALSE) ) )","v":""},null,null,null,null,{"$f":"IF(TRIM(BH161)=\"\", \"\", IF(VLOOKUP(BH161,'Footnotes list'!$D$9:$E$58,2,FALSE)=0,\"\",VLOOKUP(BH161,'Footnotes list'!$D$9:$E$58,2,FALSE) ) )","v":""},null,null,null,null,{"$f":"IF(TRIM(BM161)=\"\", \"\", IF(VLOOKUP(BM161,'Footnotes list'!$D$9:$E$58,2,FALSE)=0,\"\",VLOOKUP(BM161,'Footnotes list'!$D$9:$E$58,2,FALSE) ) )","v":""},null,null,null,null,{"$f":"IF(TRIM(BR161)=\"\", \"\", IF(VLOOKUP(BR161,'Footnotes list'!$D$9:$E$58,2,FALSE)=0,\"\",VLOOKUP(BR161,'Footnotes list'!$D$9:$E$58,2,FALSE) ) )","v":""},null,null,null,null,{"$f":"IF(TRIM(BW161)=\"\", \"\", IF(VLOOKUP(BW161,'Footnotes list'!$D$9:$E$58,2,FALSE)=0,\"\",VLOOKUP(BW161,'Footnotes list'!$D$9:$E$58,2,FALSE) ) )","v":""},null,null,null,null,{"$f":"IF(TRIM(CB161)=\"\", \"\", IF(VLOOKUP(CB161,'Footnotes list'!$D$9:$E$58,2,FALSE)=0,\"\",VLOOKUP(CB161,'Footnotes list'!$D$9:$E$58,2,FALSE) ) )","v":""},null,null,null,null,{"$f":"IF(TRIM(CG161)=\"\", \"\", IF(VLOOKUP(CG161,'Footnotes list'!$D$9:$E$58,2,FALSE)=0,\"\",VLOOKUP(CG161,'Footnotes list'!$D$9:$E$58,2,FALSE) ) )","v":""},null,null,null,null,{"$f":"IF(TRIM(CL161)=\"\", \"\", IF(VLOOKUP(CL161,'Footnotes list'!$D$9:$E$58,2,FALSE)=0,\"\",VLOOKUP(CL161,'Footnotes list'!$D$9:$E$58,2,FALSE) ) )","v":""},null,null,null,null,{"$f":"IF(TRIM(CQ161)=\"\", \"\", IF(VLOOKUP(CQ161,'Footnotes list'!$D$9:$E$58,2,FALSE)=0,\"\",VLOOKUP(CQ161,'Footnotes list'!$D$9:$E$58,2,FALSE) ) )","v":""},null,null,null,null,{"$f":"IF(TRIM(CV161)=\"\", \"\", IF(VLOOKUP(CV161,'Footnotes list'!$D$9:$E$58,2,FALSE)=0,\"\",VLOOKUP(CV161,'Footnotes list'!$D$9:$E$58,2,FALSE) ) )","v":""},null,null,null,null,{"$f":"IF(TRIM(DA161)=\"\", \"\", IF(VLOOKUP(DA161,'Footnotes list'!$D$9:$E$58,2,FALSE)=0,\"\",VLOOKUP(DA161,'Footnotes list'!$D$9:$E$58,2,FALSE) ) )","v":""},null,null,null,null,{"$f":"IF(TRIM(DF161)=\"\", \"\", IF(VLOOKUP(DF161,'Footnotes list'!$D$9:$E$58,2,FALSE)=0,\"\",VLOOKUP(DF161,'Footnotes list'!$D$9:$E$58,2,FALSE) ) )","v":""},null,null,null,null,{"$f":"IF(TRIM(DK161)=\"\", \"\", IF(VLOOKUP(DK161,'Footnotes list'!$D$9:$E$58,2,FALSE)=0,\"\",VLOOKUP(DK161,'Footnotes list'!$D$9:$E$58,2,FALSE) ) )","v":""},null,null,null,null,{"$f":"IF(TRIM(DP161)=\"\", \"\", IF(VLOOKUP(DP161,'Footnotes list'!$D$9:$E$58,2,FALSE)=0,\"\",VLOOKUP(DP161,'Footnotes list'!$D$9:$E$58,2,FALSE) ) )","v":""},null,null,null,null,{"$f":"IF(TRIM(DU161)=\"\", \"\", IF(VLOOKUP(DU161,'Footnotes list'!$D$9:$E$58,2,FALSE)=0,\"\",VLOOKUP(DU161,'Footnotes list'!$D$9:$E$58,2,FALSE) ) )","v":""},null,null,null,null,{"$f":"IF(TRIM(DZ161)=\"\", \"\", IF(VLOOKUP(DZ161,'Footnotes list'!$D$9:$E$58,2,FALSE)=0,\"\",VLOOKUP(DZ161,'Footnotes list'!$D$9:$E$58,2,FALSE) ) )","v":""},null,null,null,null,{"$f":"IF(TRIM(EE161)=\"\", \"\", IF(VLOOKUP(EE161,'Footnotes list'!$D$9:$E$58,2,FALSE)=0,\"\",VLOOKUP(EE161,'Footnotes list'!$D$9:$E$58,2,FALSE) ) )","v":""},null,null,null,null,{"$f":"IF(TRIM(EJ161)=\"\", \"\", IF(VLOOKUP(EJ161,'Footnotes list'!$D$9:$E$58,2,FALSE)=0,\"\",VLOOKUP(EJ161,'Footnotes list'!$D$9:$E$58,2,FALSE) ) )","v":""},null,null,null,null,{"$f":"IF(TRIM(EO161)=\"\", \"\", IF(VLOOKUP(EO161,'Footnotes list'!$D$9:$E$58,2,FALSE)=0,\"\",VLOOKUP(EO161,'Footnotes list'!$D$9:$E$58,2,FALSE) ) )","v":""},null,null,null,null,{"$f":"IF(TRIM(ET161)=\"\", \"\", IF(VLOOKUP(ET161,'Footnotes list'!$D$9:$E$58,2,FALSE)=0,\"\",VLOOKUP(ET161,'Footnotes list'!$D$9:$E$58,2,FALSE) ) )","v":""},null,null,null,null,{"$f":"IF(TRIM(EY161)=\"\", \"\", IF(VLOOKUP(EY161,'Footnotes list'!$D$9:$E$58,2,FALSE)=0,\"\",VLOOKUP(EY161,'Footnotes list'!$D$9:$E$58,2,FALSE) ) )","v":""}]
[null,null,"E39","TOT_EGSS","Total E39 - Remediation activities and other waste management services, of which:",null,null,null,null,null,{"$f":"IF(TRIM(J162)=\"\", \"\", IF(VLOOKUP(J162,'Footnotes list'!$D$9:$E$58,2,FALSE)=0,\"\",VLOOKUP(J162,'Footnotes list'!$D$9:$E$58,2,FALSE) ) )","v":""},null,null,null,null,{"$f":"IF(TRIM(O162)=\"\", \"\", IF(VLOOKUP(O162,'Footnotes list'!$D$9:$E$58,2,FALSE)=0,\"\",VLOOKUP(O162,'Footnotes list'!$D$9:$E$58,2,FALSE) ) )","v":""},null,null,null,null,{"$f":"IF(TRIM(T162)=\"\", \"\", IF(VLOOKUP(T162,'Footnotes list'!$D$9:$E$58,2,FALSE)=0,\"\",VLOOKUP(T162,'Footnotes list'!$D$9:$E$58,2,FALSE) ) )","v":""},null,null,null,null,{"$f":"IF(TRIM(Y162)=\"\", \"\", IF(VLOOKUP(Y162,'Footnotes list'!$D$9:$E$58,2,FALSE)=0,\"\",VLOOKUP(Y162,'Footnotes list'!$D$9:$E$58,2,FALSE) ) )","v":""},null,null,null,null,{"$f":"IF(TRIM(AD162)=\"\", \"\", IF(VLOOKUP(AD162,'Footnotes list'!$D$9:$E$58,2,FALSE)=0,\"\",VLOOKUP(AD162,'Footnotes list'!$D$9:$E$58,2,FALSE) ) )","v":""},null,null,null,null,{"$f":"IF(TRIM(AI162)=\"\", \"\", IF(VLOOKUP(AI162,'Footnotes list'!$D$9:$E$58,2,FALSE)=0,\"\",VLOOKUP(AI162,'Footnotes list'!$D$9:$E$58,2,FALSE) ) )","v":""},null,null,null,null,{"$f":"IF(TRIM(AN162)=\"\", \"\", IF(VLOOKUP(AN162,'Footnotes list'!$D$9:$E$58,2,FALSE)=0,\"\",VLOOKUP(AN162,'Footnotes list'!$D$9:$E$58,2,FALSE) ) )","v":""},null,null,null,null,{"$f":"IF(TRIM(AS162)=\"\", \"\", IF(VLOOKUP(AS162,'Footnotes list'!$D$9:$E$58,2,FALSE)=0,\"\",VLOOKUP(AS162,'Footnotes list'!$D$9:$E$58,2,FALSE) ) )","v":""},null,null,null,null,{"$f":"IF(TRIM(AX162)=\"\", \"\", IF(VLOOKUP(AX162,'Footnotes list'!$D$9:$E$58,2,FALSE)=0,\"\",VLOOKUP(AX162,'Footnotes list'!$D$9:$E$58,2,FALSE) ) )","v":""},null,null,null,null,{"$f":"IF(TRIM(BC162)=\"\", \"\", IF(VLOOKUP(BC162,'Footnotes list'!$D$9:$E$58,2,FALSE)=0,\"\",VLOOKUP(BC162,'Footnotes list'!$D$9:$E$58,2,FALSE) ) )","v":""},null,null,null,null,{"$f":"IF(TRIM(BH162)=\"\", \"\", IF(VLOOKUP(BH162,'Footnotes list'!$D$9:$E$58,2,FALSE)=0,\"\",VLOOKUP(BH162,'Footnotes list'!$D$9:$E$58,2,FALSE) ) )","v":""},null,null,null,null,{"$f":"IF(TRIM(BM162)=\"\", \"\", IF(VLOOKUP(BM162,'Footnotes list'!$D$9:$E$58,2,FALSE)=0,\"\",VLOOKUP(BM162,'Footnotes list'!$D$9:$E$58,2,FALSE) ) )","v":""},null,null,null,null,{"$f":"IF(TRIM(BR162)=\"\", \"\", IF(VLOOKUP(BR162,'Footnotes list'!$D$9:$E$58,2,FALSE)=0,\"\",VLOOKUP(BR162,'Footnotes list'!$D$9:$E$58,2,FALSE) ) )","v":""},null,null,null,null,{"$f":"IF(TRIM(BW162)=\"\", \"\", IF(VLOOKUP(BW162,'Footnotes list'!$D$9:$E$58,2,FALSE)=0,\"\",VLOOKUP(BW162,'Footnotes list'!$D$9:$E$58,2,FALSE) ) )","v":""},null,null,null,null,{"$f":"IF(TRIM(CB162)=\"\", \"\", IF(VLOOKUP(CB162,'Footnotes list'!$D$9:$E$58,2,FALSE)=0,\"\",VLOOKUP(CB162,'Footnotes list'!$D$9:$E$58,2,FALSE) ) )","v":""},null,null,null,null,{"$f":"IF(TRIM(CG162)=\"\", \"\", IF(VLOOKUP(CG162,'Footnotes list'!$D$9:$E$58,2,FALSE)=0,\"\",VLOOKUP(CG162,'Footnotes list'!$D$9:$E$58,2,FALSE) ) )","v":""},null,null,null,null,{"$f":"IF(TRIM(CL162)=\"\", \"\", IF(VLOOKUP(CL162,'Footnotes list'!$D$9:$E$58,2,FALSE)=0,\"\",VLOOKUP(CL162,'Footnotes list'!$D$9:$E$58,2,FALSE) ) )","v":""},null,null,null,null,{"$f":"IF(TRIM(CQ162)=\"\", \"\", IF(VLOOKUP(CQ162,'Footnotes list'!$D$9:$E$58,2,FALSE)=0,\"\",VLOOKUP(CQ162,'Footnotes list'!$D$9:$E$58,2,FALSE) ) )","v":""},null,null,null,null,{"$f":"IF(TRIM(CV162)=\"\", \"\", IF(VLOOKUP(CV162,'Footnotes list'!$D$9:$E$58,2,FALSE)=0,\"\",VLOOKUP(CV162,'Footnotes list'!$D$9:$E$58,2,FALSE) ) )","v":""},null,null,null,null,{"$f":"IF(TRIM(DA162)=\"\", \"\", IF(VLOOKUP(DA162,'Footnotes list'!$D$9:$E$58,2,FALSE)=0,\"\",VLOOKUP(DA162,'Footnotes list'!$D$9:$E$58,2,FALSE) ) )","v":""},null,null,null,null,{"$f":"IF(TRIM(DF162)=\"\", \"\", IF(VLOOKUP(DF162,'Footnotes list'!$D$9:$E$58,2,FALSE)=0,\"\",VLOOKUP(DF162,'Footnotes list'!$D$9:$E$58,2,FALSE) ) )","v":""},null,null,null,null,{"$f":"IF(TRIM(DK162)=\"\", \"\", IF(VLOOKUP(DK162,'Footnotes list'!$D$9:$E$58,2,FALSE)=0,\"\",VLOOKUP(DK162,'Footnotes list'!$D$9:$E$58,2,FALSE) ) )","v":""},null,null,null,null,{"$f":"IF(TRIM(DP162)=\"\", \"\", IF(VLOOKUP(DP162,'Footnotes list'!$D$9:$E$58,2,FALSE)=0,\"\",VLOOKUP(DP162,'Footnotes list'!$D$9:$E$58,2,FALSE) ) )","v":""},null,null,null,null,{"$f":"IF(TRIM(DU162)=\"\", \"\", IF(VLOOKUP(DU162,'Footnotes list'!$D$9:$E$58,2,FALSE)=0,\"\",VLOOKUP(DU162,'Footnotes list'!$D$9:$E$58,2,FALSE) ) )","v":""},null,null,null,null,{"$f":"IF(TRIM(DZ162)=\"\", \"\", IF(VLOOKUP(DZ162,'Footnotes list'!$D$9:$E$58,2,FALSE)=0,\"\",VLOOKUP(DZ162,'Footnotes list'!$D$9:$E$58,2,FALSE) ) )","v":""},null,null,null,null,{"$f":"IF(TRIM(EE162)=\"\", \"\", IF(VLOOKUP(EE162,'Footnotes list'!$D$9:$E$58,2,FALSE)=0,\"\",VLOOKUP(EE162,'Footnotes list'!$D$9:$E$58,2,FALSE) ) )","v":""},null,null,null,null,{"$f":"IF(TRIM(EJ162)=\"\", \"\", IF(VLOOKUP(EJ162,'Footnotes list'!$D$9:$E$58,2,FALSE)=0,\"\",VLOOKUP(EJ162,'Footnotes list'!$D$9:$E$58,2,FALSE) ) )","v":""},null,null,null,null,{"$f":"IF(TRIM(EO162)=\"\", \"\", IF(VLOOKUP(EO162,'Footnotes list'!$D$9:$E$58,2,FALSE)=0,\"\",VLOOKUP(EO162,'Footnotes list'!$D$9:$E$58,2,FALSE) ) )","v":""},null,null,null,null,{"$f":"IF(TRIM(ET162)=\"\", \"\", IF(VLOOKUP(ET162,'Footnotes list'!$D$9:$E$58,2,FALSE)=0,\"\",VLOOKUP(ET162,'Footnotes list'!$D$9:$E$58,2,FALSE) ) )","v":""},null,null,null,null,{"$f":"IF(TRIM(EY162)=\"\", \"\", IF(VLOOKUP(EY162,'Footnotes list'!$D$9:$E$58,2,FALSE)=0,\"\",VLOOKUP(EY162,'Footnotes list'!$D$9:$E$58,2,FALSE) ) )","v":""}]
[null,null,"E39","ANC","ancillary activities",null,null,null,null,null,{"$f":"IF(TRIM(J163)=\"\", \"\", IF(VLOOKUP(J163,'Footnotes list'!$D$9:$E$58,2,FALSE)=0,\"\",VLOOKUP(J163,'Footnotes list'!$D$9:$E$58,2,FALSE) ) )","v":""},null,null,null,null,{"$f":"IF(TRIM(O163)=\"\", \"\", IF(VLOOKUP(O163,'Footnotes list'!$D$9:$E$58,2,FALSE)=0,\"\",VLOOKUP(O163,'Footnotes list'!$D$9:$E$58,2,FALSE) ) )","v":""},null,null,null,null,{"$f":"IF(TRIM(T163)=\"\", \"\", IF(VLOOKUP(T163,'Footnotes list'!$D$9:$E$58,2,FALSE)=0,\"\",VLOOKUP(T163,'Footnotes list'!$D$9:$E$58,2,FALSE) ) )","v":""},null,null,null,null,{"$f":"IF(TRIM(Y163)=\"\", \"\", IF(VLOOKUP(Y163,'Footnotes list'!$D$9:$E$58,2,FALSE)=0,\"\",VLOOKUP(Y163,'Footnotes list'!$D$9:$E$58,2,FALSE) ) )","v":""},null,null,null,null,{"$f":"IF(TRIM(AD163)=\"\", \"\", IF(VLOOKUP(AD163,'Footnotes list'!$D$9:$E$58,2,FALSE)=0,\"\",VLOOKUP(AD163,'Footnotes list'!$D$9:$E$58,2,FALSE) ) )","v":""},null,null,null,null,{"$f":"IF(TRIM(AI163)=\"\", \"\", IF(VLOOKUP(AI163,'Footnotes list'!$D$9:$E$58,2,FALSE)=0,\"\",VLOOKUP(AI163,'Footnotes list'!$D$9:$E$58,2,FALSE) ) )","v":""},null,null,null,null,{"$f":"IF(TRIM(AN163)=\"\", \"\", IF(VLOOKUP(AN163,'Footnotes list'!$D$9:$E$58,2,FALSE)=0,\"\",VLOOKUP(AN163,'Footnotes list'!$D$9:$E$58,2,FALSE) ) )","v":""},null,null,null,null,{"$f":"IF(TRIM(AS163)=\"\", \"\", IF(VLOOKUP(AS163,'Footnotes list'!$D$9:$E$58,2,FALSE)=0,\"\",VLOOKUP(AS163,'Footnotes list'!$D$9:$E$58,2,FALSE) ) )","v":""},null,null,null,null,{"$f":"IF(TRIM(AX163)=\"\", \"\", IF(VLOOKUP(AX163,'Footnotes list'!$D$9:$E$58,2,FALSE)=0,\"\",VLOOKUP(AX163,'Footnotes list'!$D$9:$E$58,2,FALSE) ) )","v":""},null,null,null,null,{"$f":"IF(TRIM(BC163)=\"\", \"\", IF(VLOOKUP(BC163,'Footnotes list'!$D$9:$E$58,2,FALSE)=0,\"\",VLOOKUP(BC163,'Footnotes list'!$D$9:$E$58,2,FALSE) ) )","v":""},null,null,null,null,{"$f":"IF(TRIM(BH163)=\"\", \"\", IF(VLOOKUP(BH163,'Footnotes list'!$D$9:$E$58,2,FALSE)=0,\"\",VLOOKUP(BH163,'Footnotes list'!$D$9:$E$58,2,FALSE) ) )","v":""},null,null,null,null,{"$f":"IF(TRIM(BM163)=\"\", \"\", IF(VLOOKUP(BM163,'Footnotes list'!$D$9:$E$58,2,FALSE)=0,\"\",VLOOKUP(BM163,'Footnotes list'!$D$9:$E$58,2,FALSE) ) )","v":""},null,null,null,null,{"$f":"IF(TRIM(BR163)=\"\", \"\", IF(VLOOKUP(BR163,'Footnotes list'!$D$9:$E$58,2,FALSE)=0,\"\",VLOOKUP(BR163,'Footnotes list'!$D$9:$E$58,2,FALSE) ) )","v":""},null,null,null,null,{"$f":"IF(TRIM(BW163)=\"\", \"\", IF(VLOOKUP(BW163,'Footnotes list'!$D$9:$E$58,2,FALSE)=0,\"\",VLOOKUP(BW163,'Footnotes list'!$D$9:$E$58,2,FALSE) ) )","v":""},null,null,null,null,{"$f":"IF(TRIM(CB163)=\"\", \"\", IF(VLOOKUP(CB163,'Footnotes list'!$D$9:$E$58,2,FALSE)=0,\"\",VLOOKUP(CB163,'Footnotes list'!$D$9:$E$58,2,FALSE) ) )","v":""},null,null,null,null,{"$f":"IF(TRIM(CG163)=\"\", \"\", IF(VLOOKUP(CG163,'Footnotes list'!$D$9:$E$58,2,FALSE)=0,\"\",VLOOKUP(CG163,'Footnotes list'!$D$9:$E$58,2,FALSE) ) )","v":""},null,null,null,null,{"$f":"IF(TRIM(CL163)=\"\", \"\", IF(VLOOKUP(CL163,'Footnotes list'!$D$9:$E$58,2,FALSE)=0,\"\",VLOOKUP(CL163,'Footnotes list'!$D$9:$E$58,2,FALSE) ) )","v":""},null,null,null,null,{"$f":"IF(TRIM(CQ163)=\"\", \"\", IF(VLOOKUP(CQ163,'Footnotes list'!$D$9:$E$58,2,FALSE)=0,\"\",VLOOKUP(CQ163,'Footnotes list'!$D$9:$E$58,2,FALSE) ) )","v":""},null,null,null,null,{"$f":"IF(TRIM(CV163)=\"\", \"\", IF(VLOOKUP(CV163,'Footnotes list'!$D$9:$E$58,2,FALSE)=0,\"\",VLOOKUP(CV163,'Footnotes list'!$D$9:$E$58,2,FALSE) ) )","v":""},null,null,null,null,{"$f":"IF(TRIM(DA163)=\"\", \"\", IF(VLOOKUP(DA163,'Footnotes list'!$D$9:$E$58,2,FALSE)=0,\"\",VLOOKUP(DA163,'Footnotes list'!$D$9:$E$58,2,FALSE) ) )","v":""},null,null,null,null,{"$f":"IF(TRIM(DF163)=\"\", \"\", IF(VLOOKUP(DF163,'Footnotes list'!$D$9:$E$58,2,FALSE)=0,\"\",VLOOKUP(DF163,'Footnotes list'!$D$9:$E$58,2,FALSE) ) )","v":""},null,null,null,null,{"$f":"IF(TRIM(DK163)=\"\", \"\", IF(VLOOKUP(DK163,'Footnotes list'!$D$9:$E$58,2,FALSE)=0,\"\",VLOOKUP(DK163,'Footnotes list'!$D$9:$E$58,2,FALSE) ) )","v":""},null,null,null,null,{"$f":"IF(TRIM(DP163)=\"\", \"\", IF(VLOOKUP(DP163,'Footnotes list'!$D$9:$E$58,2,FALSE)=0,\"\",VLOOKUP(DP163,'Footnotes list'!$D$9:$E$58,2,FALSE) ) )","v":""},null,null,null,null,{"$f":"IF(TRIM(DU163)=\"\", \"\", IF(VLOOKUP(DU163,'Footnotes list'!$D$9:$E$58,2,FALSE)=0,\"\",VLOOKUP(DU163,'Footnotes list'!$D$9:$E$58,2,FALSE) ) )","v":""},null,null,null,null,{"$f":"IF(TRIM(DZ163)=\"\", \"\", IF(VLOOKUP(DZ163,'Footnotes list'!$D$9:$E$58,2,FALSE)=0,\"\",VLOOKUP(DZ163,'Footnotes list'!$D$9:$E$58,2,FALSE) ) )","v":""},null,null,null,null,{"$f":"IF(TRIM(EE163)=\"\", \"\", IF(VLOOKUP(EE163,'Footnotes list'!$D$9:$E$58,2,FALSE)=0,\"\",VLOOKUP(EE163,'Footnotes list'!$D$9:$E$58,2,FALSE) ) )","v":""},null,null,null,null,{"$f":"IF(TRIM(EJ163)=\"\", \"\", IF(VLOOKUP(EJ163,'Footnotes list'!$D$9:$E$58,2,FALSE)=0,\"\",VLOOKUP(EJ163,'Footnotes list'!$D$9:$E$58,2,FALSE) ) )","v":""},null,null,null,null,{"$f":"IF(TRIM(EO163)=\"\", \"\", IF(VLOOKUP(EO163,'Footnotes list'!$D$9:$E$58,2,FALSE)=0,\"\",VLOOKUP(EO163,'Footnotes list'!$D$9:$E$58,2,FALSE) ) )","v":""},null,null,null,null,{"$f":"IF(TRIM(ET163)=\"\", \"\", IF(VLOOKUP(ET163,'Footnotes list'!$D$9:$E$58,2,FALSE)=0,\"\",VLOOKUP(ET163,'Footnotes list'!$D$9:$E$58,2,FALSE) ) )","v":""},null,null,null,null,{"$f":"IF(TRIM(EY163)=\"\", \"\", IF(VLOOKUP(EY163,'Footnotes list'!$D$9:$E$58,2,FALSE)=0,\"\",VLOOKUP(EY163,'Footnotes list'!$D$9:$E$58,2,FALSE) ) )","v":""}]
[null,null,"E39","NMKT","non-market activities",null,null,null,null,null,{"$f":"IF(TRIM(J164)=\"\", \"\", IF(VLOOKUP(J164,'Footnotes list'!$D$9:$E$58,2,FALSE)=0,\"\",VLOOKUP(J164,'Footnotes list'!$D$9:$E$58,2,FALSE) ) )","v":""},null,null,null,null,{"$f":"IF(TRIM(O164)=\"\", \"\", IF(VLOOKUP(O164,'Footnotes list'!$D$9:$E$58,2,FALSE)=0,\"\",VLOOKUP(O164,'Footnotes list'!$D$9:$E$58,2,FALSE) ) )","v":""},null,null,null,null,{"$f":"IF(TRIM(T164)=\"\", \"\", IF(VLOOKUP(T164,'Footnotes list'!$D$9:$E$58,2,FALSE)=0,\"\",VLOOKUP(T164,'Footnotes list'!$D$9:$E$58,2,FALSE) ) )","v":""},null,null,null,null,{"$f":"IF(TRIM(Y164)=\"\", \"\", IF(VLOOKUP(Y164,'Footnotes list'!$D$9:$E$58,2,FALSE)=0,\"\",VLOOKUP(Y164,'Footnotes list'!$D$9:$E$58,2,FALSE) ) )","v":""},null,null,null,null,{"$f":"IF(TRIM(AD164)=\"\", \"\", IF(VLOOKUP(AD164,'Footnotes list'!$D$9:$E$58,2,FALSE)=0,\"\",VLOOKUP(AD164,'Footnotes list'!$D$9:$E$58,2,FALSE) ) )","v":""},null,null,null,null,{"$f":"IF(TRIM(AI164)=\"\", \"\", IF(VLOOKUP(AI164,'Footnotes list'!$D$9:$E$58,2,FALSE)=0,\"\",VLOOKUP(AI164,'Footnotes list'!$D$9:$E$58,2,FALSE) ) )","v":""},null,null,null,null,{"$f":"IF(TRIM(AN164)=\"\", \"\", IF(VLOOKUP(AN164,'Footnotes list'!$D$9:$E$58,2,FALSE)=0,\"\",VLOOKUP(AN164,'Footnotes list'!$D$9:$E$58,2,FALSE) ) )","v":""},null,null,null,null,{"$f":"IF(TRIM(AS164)=\"\", \"\", IF(VLOOKUP(AS164,'Footnotes list'!$D$9:$E$58,2,FALSE)=0,\"\",VLOOKUP(AS164,'Footnotes list'!$D$9:$E$58,2,FALSE) ) )","v":""},null,null,null,null,{"$f":"IF(TRIM(AX164)=\"\", \"\", IF(VLOOKUP(AX164,'Footnotes list'!$D$9:$E$58,2,FALSE)=0,\"\",VLOOKUP(AX164,'Footnotes list'!$D$9:$E$58,2,FALSE) ) )","v":""},null,null,null,null,{"$f":"IF(TRIM(BC164)=\"\", \"\", IF(VLOOKUP(BC164,'Footnotes list'!$D$9:$E$58,2,FALSE)=0,\"\",VLOOKUP(BC164,'Footnotes list'!$D$9:$E$58,2,FALSE) ) )","v":""},null,null,null,null,{"$f":"IF(TRIM(BH164)=\"\", \"\", IF(VLOOKUP(BH164,'Footnotes list'!$D$9:$E$58,2,FALSE)=0,\"\",VLOOKUP(BH164,'Footnotes list'!$D$9:$E$58,2,FALSE) ) )","v":""},null,null,null,null,{"$f":"IF(TRIM(BM164)=\"\", \"\", IF(VLOOKUP(BM164,'Footnotes list'!$D$9:$E$58,2,FALSE)=0,\"\",VLOOKUP(BM164,'Footnotes list'!$D$9:$E$58,2,FALSE) ) )","v":""},null,null,null,null,{"$f":"IF(TRIM(BR164)=\"\", \"\", IF(VLOOKUP(BR164,'Footnotes list'!$D$9:$E$58,2,FALSE)=0,\"\",VLOOKUP(BR164,'Footnotes list'!$D$9:$E$58,2,FALSE) ) )","v":""},null,null,null,null,{"$f":"IF(TRIM(BW164)=\"\", \"\", IF(VLOOKUP(BW164,'Footnotes list'!$D$9:$E$58,2,FALSE)=0,\"\",VLOOKUP(BW164,'Footnotes list'!$D$9:$E$58,2,FALSE) ) )","v":""},null,null,null,null,{"$f":"IF(TRIM(CB164)=\"\", \"\", IF(VLOOKUP(CB164,'Footnotes list'!$D$9:$E$58,2,FALSE)=0,\"\",VLOOKUP(CB164,'Footnotes list'!$D$9:$E$58,2,FALSE) ) )","v":""},null,null,null,null,{"$f":"IF(TRIM(CG164)=\"\", \"\", IF(VLOOKUP(CG164,'Footnotes list'!$D$9:$E$58,2,FALSE)=0,\"\",VLOOKUP(CG164,'Footnotes list'!$D$9:$E$58,2,FALSE) ) )","v":""},null,null,null,null,{"$f":"IF(TRIM(CL164)=\"\", \"\", IF(VLOOKUP(CL164,'Footnotes list'!$D$9:$E$58,2,FALSE)=0,\"\",VLOOKUP(CL164,'Footnotes list'!$D$9:$E$58,2,FALSE) ) )","v":""},null,null,null,null,{"$f":"IF(TRIM(CQ164)=\"\", \"\", IF(VLOOKUP(CQ164,'Footnotes list'!$D$9:$E$58,2,FALSE)=0,\"\",VLOOKUP(CQ164,'Footnotes list'!$D$9:$E$58,2,FALSE) ) )","v":""},null,null,null,null,{"$f":"IF(TRIM(CV164)=\"\", \"\", IF(VLOOKUP(CV164,'Footnotes list'!$D$9:$E$58,2,FALSE)=0,\"\",VLOOKUP(CV164,'Footnotes list'!$D$9:$E$58,2,FALSE) ) )","v":""},null,null,null,null,{"$f":"IF(TRIM(DA164)=\"\", \"\", IF(VLOOKUP(DA164,'Footnotes list'!$D$9:$E$58,2,FALSE)=0,\"\",VLOOKUP(DA164,'Footnotes list'!$D$9:$E$58,2,FALSE) ) )","v":""},null,null,null,null,{"$f":"IF(TRIM(DF164)=\"\", \"\", IF(VLOOKUP(DF164,'Footnotes list'!$D$9:$E$58,2,FALSE)=0,\"\",VLOOKUP(DF164,'Footnotes list'!$D$9:$E$58,2,FALSE) ) )","v":""},null,null,null,null,{"$f":"IF(TRIM(DK164)=\"\", \"\", IF(VLOOKUP(DK164,'Footnotes list'!$D$9:$E$58,2,FALSE)=0,\"\",VLOOKUP(DK164,'Footnotes list'!$D$9:$E$58,2,FALSE) ) )","v":""},null,null,null,null,{"$f":"IF(TRIM(DP164)=\"\", \"\", IF(VLOOKUP(DP164,'Footnotes list'!$D$9:$E$58,2,FALSE)=0,\"\",VLOOKUP(DP164,'Footnotes list'!$D$9:$E$58,2,FALSE) ) )","v":""},null,null,null,null,{"$f":"IF(TRIM(DU164)=\"\", \"\", IF(VLOOKUP(DU164,'Footnotes list'!$D$9:$E$58,2,FALSE)=0,\"\",VLOOKUP(DU164,'Footnotes list'!$D$9:$E$58,2,FALSE) ) )","v":""},null,null,null,null,{"$f":"IF(TRIM(DZ164)=\"\", \"\", IF(VLOOKUP(DZ164,'Footnotes list'!$D$9:$E$58,2,FALSE)=0,\"\",VLOOKUP(DZ164,'Footnotes list'!$D$9:$E$58,2,FALSE) ) )","v":""},null,null,null,null,{"$f":"IF(TRIM(EE164)=\"\", \"\", IF(VLOOKUP(EE164,'Footnotes list'!$D$9:$E$58,2,FALSE)=0,\"\",VLOOKUP(EE164,'Footnotes list'!$D$9:$E$58,2,FALSE) ) )","v":""},null,null,null,null,{"$f":"IF(TRIM(EJ164)=\"\", \"\", IF(VLOOKUP(EJ164,'Footnotes list'!$D$9:$E$58,2,FALSE)=0,\"\",VLOOKUP(EJ164,'Footnotes list'!$D$9:$E$58,2,FALSE) ) )","v":""},null,null,null,null,{"$f":"IF(TRIM(EO164)=\"\", \"\", IF(VLOOKUP(EO164,'Footnotes list'!$D$9:$E$58,2,FALSE)=0,\"\",VLOOKUP(EO164,'Footnotes list'!$D$9:$E$58,2,FALSE) ) )","v":""},null,null,null,null,{"$f":"IF(TRIM(ET164)=\"\", \"\", IF(VLOOKUP(ET164,'Footnotes list'!$D$9:$E$58,2,FALSE)=0,\"\",VLOOKUP(ET164,'Footnotes list'!$D$9:$E$58,2,FALSE) ) )","v":""},null,null,null,null,{"$f":"IF(TRIM(EY164)=\"\", \"\", IF(VLOOKUP(EY164,'Footnotes list'!$D$9:$E$58,2,FALSE)=0,\"\",VLOOKUP(EY164,'Footnotes list'!$D$9:$E$58,2,FALSE) ) )","v":""}]
[null,null,"E39","OWN_USE","activities for own final use",null,null,null,null,null,{"$f":"IF(TRIM(J165)=\"\", \"\", IF(VLOOKUP(J165,'Footnotes list'!$D$9:$E$58,2,FALSE)=0,\"\",VLOOKUP(J165,'Footnotes list'!$D$9:$E$58,2,FALSE) ) )","v":""},null,null,null,null,{"$f":"IF(TRIM(O165)=\"\", \"\", IF(VLOOKUP(O165,'Footnotes list'!$D$9:$E$58,2,FALSE)=0,\"\",VLOOKUP(O165,'Footnotes list'!$D$9:$E$58,2,FALSE) ) )","v":""},null,null,null,null,{"$f":"IF(TRIM(T165)=\"\", \"\", IF(VLOOKUP(T165,'Footnotes list'!$D$9:$E$58,2,FALSE)=0,\"\",VLOOKUP(T165,'Footnotes list'!$D$9:$E$58,2,FALSE) ) )","v":""},null,null,null,null,{"$f":"IF(TRIM(Y165)=\"\", \"\", IF(VLOOKUP(Y165,'Footnotes list'!$D$9:$E$58,2,FALSE)=0,\"\",VLOOKUP(Y165,'Footnotes list'!$D$9:$E$58,2,FALSE) ) )","v":""},null,null,null,null,{"$f":"IF(TRIM(AD165)=\"\", \"\", IF(VLOOKUP(AD165,'Footnotes list'!$D$9:$E$58,2,FALSE)=0,\"\",VLOOKUP(AD165,'Footnotes list'!$D$9:$E$58,2,FALSE) ) )","v":""},null,null,null,null,{"$f":"IF(TRIM(AI165)=\"\", \"\", IF(VLOOKUP(AI165,'Footnotes list'!$D$9:$E$58,2,FALSE)=0,\"\",VLOOKUP(AI165,'Footnotes list'!$D$9:$E$58,2,FALSE) ) )","v":""},null,null,null,null,{"$f":"IF(TRIM(AN165)=\"\", \"\", IF(VLOOKUP(AN165,'Footnotes list'!$D$9:$E$58,2,FALSE)=0,\"\",VLOOKUP(AN165,'Footnotes list'!$D$9:$E$58,2,FALSE) ) )","v":""},null,null,null,null,{"$f":"IF(TRIM(AS165)=\"\", \"\", IF(VLOOKUP(AS165,'Footnotes list'!$D$9:$E$58,2,FALSE)=0,\"\",VLOOKUP(AS165,'Footnotes list'!$D$9:$E$58,2,FALSE) ) )","v":""},null,null,null,null,{"$f":"IF(TRIM(AX165)=\"\", \"\", IF(VLOOKUP(AX165,'Footnotes list'!$D$9:$E$58,2,FALSE)=0,\"\",VLOOKUP(AX165,'Footnotes list'!$D$9:$E$58,2,FALSE) ) )","v":""},null,null,null,null,{"$f":"IF(TRIM(BC165)=\"\", \"\", IF(VLOOKUP(BC165,'Footnotes list'!$D$9:$E$58,2,FALSE)=0,\"\",VLOOKUP(BC165,'Footnotes list'!$D$9:$E$58,2,FALSE) ) )","v":""},null,null,null,null,{"$f":"IF(TRIM(BH165)=\"\", \"\", IF(VLOOKUP(BH165,'Footnotes list'!$D$9:$E$58,2,FALSE)=0,\"\",VLOOKUP(BH165,'Footnotes list'!$D$9:$E$58,2,FALSE) ) )","v":""},null,null,null,null,{"$f":"IF(TRIM(BM165)=\"\", \"\", IF(VLOOKUP(BM165,'Footnotes list'!$D$9:$E$58,2,FALSE)=0,\"\",VLOOKUP(BM165,'Footnotes list'!$D$9:$E$58,2,FALSE) ) )","v":""},null,null,null,null,{"$f":"IF(TRIM(BR165)=\"\", \"\", IF(VLOOKUP(BR165,'Footnotes list'!$D$9:$E$58,2,FALSE)=0,\"\",VLOOKUP(BR165,'Footnotes list'!$D$9:$E$58,2,FALSE) ) )","v":""},null,null,null,null,{"$f":"IF(TRIM(BW165)=\"\", \"\", IF(VLOOKUP(BW165,'Footnotes list'!$D$9:$E$58,2,FALSE)=0,\"\",VLOOKUP(BW165,'Footnotes list'!$D$9:$E$58,2,FALSE) ) )","v":""},null,null,null,null,{"$f":"IF(TRIM(CB165)=\"\", \"\", IF(VLOOKUP(CB165,'Footnotes list'!$D$9:$E$58,2,FALSE)=0,\"\",VLOOKUP(CB165,'Footnotes list'!$D$9:$E$58,2,FALSE) ) )","v":""},null,null,null,null,{"$f":"IF(TRIM(CG165)=\"\", \"\", IF(VLOOKUP(CG165,'Footnotes list'!$D$9:$E$58,2,FALSE)=0,\"\",VLOOKUP(CG165,'Footnotes list'!$D$9:$E$58,2,FALSE) ) )","v":""},null,null,null,null,{"$f":"IF(TRIM(CL165)=\"\", \"\", IF(VLOOKUP(CL165,'Footnotes list'!$D$9:$E$58,2,FALSE)=0,\"\",VLOOKUP(CL165,'Footnotes list'!$D$9:$E$58,2,FALSE) ) )","v":""},null,null,null,null,{"$f":"IF(TRIM(CQ165)=\"\", \"\", IF(VLOOKUP(CQ165,'Footnotes list'!$D$9:$E$58,2,FALSE)=0,\"\",VLOOKUP(CQ165,'Footnotes list'!$D$9:$E$58,2,FALSE) ) )","v":""},null,null,null,null,{"$f":"IF(TRIM(CV165)=\"\", \"\", IF(VLOOKUP(CV165,'Footnotes list'!$D$9:$E$58,2,FALSE)=0,\"\",VLOOKUP(CV165,'Footnotes list'!$D$9:$E$58,2,FALSE) ) )","v":""},null,null,null,null,{"$f":"IF(TRIM(DA165)=\"\", \"\", IF(VLOOKUP(DA165,'Footnotes list'!$D$9:$E$58,2,FALSE)=0,\"\",VLOOKUP(DA165,'Footnotes list'!$D$9:$E$58,2,FALSE) ) )","v":""},null,null,null,null,{"$f":"IF(TRIM(DF165)=\"\", \"\", IF(VLOOKUP(DF165,'Footnotes list'!$D$9:$E$58,2,FALSE)=0,\"\",VLOOKUP(DF165,'Footnotes list'!$D$9:$E$58,2,FALSE) ) )","v":""},null,null,null,null,{"$f":"IF(TRIM(DK165)=\"\", \"\", IF(VLOOKUP(DK165,'Footnotes list'!$D$9:$E$58,2,FALSE)=0,\"\",VLOOKUP(DK165,'Footnotes list'!$D$9:$E$58,2,FALSE) ) )","v":""},null,null,null,null,{"$f":"IF(TRIM(DP165)=\"\", \"\", IF(VLOOKUP(DP165,'Footnotes list'!$D$9:$E$58,2,FALSE)=0,\"\",VLOOKUP(DP165,'Footnotes list'!$D$9:$E$58,2,FALSE) ) )","v":""},null,null,null,null,{"$f":"IF(TRIM(DU165)=\"\", \"\", IF(VLOOKUP(DU165,'Footnotes list'!$D$9:$E$58,2,FALSE)=0,\"\",VLOOKUP(DU165,'Footnotes list'!$D$9:$E$58,2,FALSE) ) )","v":""},null,null,null,null,{"$f":"IF(TRIM(DZ165)=\"\", \"\", IF(VLOOKUP(DZ165,'Footnotes list'!$D$9:$E$58,2,FALSE)=0,\"\",VLOOKUP(DZ165,'Footnotes list'!$D$9:$E$58,2,FALSE) ) )","v":""},null,null,null,null,{"$f":"IF(TRIM(EE165)=\"\", \"\", IF(VLOOKUP(EE165,'Footnotes list'!$D$9:$E$58,2,FALSE)=0,\"\",VLOOKUP(EE165,'Footnotes list'!$D$9:$E$58,2,FALSE) ) )","v":""},null,null,null,null,{"$f":"IF(TRIM(EJ165)=\"\", \"\", IF(VLOOKUP(EJ165,'Footnotes list'!$D$9:$E$58,2,FALSE)=0,\"\",VLOOKUP(EJ165,'Footnotes list'!$D$9:$E$58,2,FALSE) ) )","v":""},null,null,null,null,{"$f":"IF(TRIM(EO165)=\"\", \"\", IF(VLOOKUP(EO165,'Footnotes list'!$D$9:$E$58,2,FALSE)=0,\"\",VLOOKUP(EO165,'Footnotes list'!$D$9:$E$58,2,FALSE) ) )","v":""},null,null,null,null,{"$f":"IF(TRIM(ET165)=\"\", \"\", IF(VLOOKUP(ET165,'Footnotes list'!$D$9:$E$58,2,FALSE)=0,\"\",VLOOKUP(ET165,'Footnotes list'!$D$9:$E$58,2,FALSE) ) )","v":""},null,null,null,null,{"$f":"IF(TRIM(EY165)=\"\", \"\", IF(VLOOKUP(EY165,'Footnotes list'!$D$9:$E$58,2,FALSE)=0,\"\",VLOOKUP(EY165,'Footnotes list'!$D$9:$E$58,2,FALSE) ) )","v":""}]
[null,null,"E39","MKT","market activities, including:",null,null,null,null,null,{"$f":"IF(TRIM(J166)=\"\", \"\", IF(VLOOKUP(J166,'Footnotes list'!$D$9:$E$58,2,FALSE)=0,\"\",VLOOKUP(J166,'Footnotes list'!$D$9:$E$58,2,FALSE) ) )","v":""},null,null,null,null,{"$f":"IF(TRIM(O166)=\"\", \"\", IF(VLOOKUP(O166,'Footnotes list'!$D$9:$E$58,2,FALSE)=0,\"\",VLOOKUP(O166,'Footnotes list'!$D$9:$E$58,2,FALSE) ) )","v":""},null,null,null,null,{"$f":"IF(TRIM(T166)=\"\", \"\", IF(VLOOKUP(T166,'Footnotes list'!$D$9:$E$58,2,FALSE)=0,\"\",VLOOKUP(T166,'Footnotes list'!$D$9:$E$58,2,FALSE) ) )","v":""},null,null,null,null,{"$f":"IF(TRIM(Y166)=\"\", \"\", IF(VLOOKUP(Y166,'Footnotes list'!$D$9:$E$58,2,FALSE)=0,\"\",VLOOKUP(Y166,'Footnotes list'!$D$9:$E$58,2,FALSE) ) )","v":""},null,null,null,null,{"$f":"IF(TRIM(AD166)=\"\", \"\", IF(VLOOKUP(AD166,'Footnotes list'!$D$9:$E$58,2,FALSE)=0,\"\",VLOOKUP(AD166,'Footnotes list'!$D$9:$E$58,2,FALSE) ) )","v":""},null,null,null,null,{"$f":"IF(TRIM(AI166)=\"\", \"\", IF(VLOOKUP(AI166,'Footnotes list'!$D$9:$E$58,2,FALSE)=0,\"\",VLOOKUP(AI166,'Footnotes list'!$D$9:$E$58,2,FALSE) ) )","v":""},null,null,null,null,{"$f":"IF(TRIM(AN166)=\"\", \"\", IF(VLOOKUP(AN166,'Footnotes list'!$D$9:$E$58,2,FALSE)=0,\"\",VLOOKUP(AN166,'Footnotes list'!$D$9:$E$58,2,FALSE) ) )","v":""},null,null,null,null,{"$f":"IF(TRIM(AS166)=\"\", \"\", IF(VLOOKUP(AS166,'Footnotes list'!$D$9:$E$58,2,FALSE)=0,\"\",VLOOKUP(AS166,'Footnotes list'!$D$9:$E$58,2,FALSE) ) )","v":""},null,null,null,null,{"$f":"IF(TRIM(AX166)=\"\", \"\", IF(VLOOKUP(AX166,'Footnotes list'!$D$9:$E$58,2,FALSE)=0,\"\",VLOOKUP(AX166,'Footnotes list'!$D$9:$E$58,2,FALSE) ) )","v":""},null,null,null,null,{"$f":"IF(TRIM(BC166)=\"\", \"\", IF(VLOOKUP(BC166,'Footnotes list'!$D$9:$E$58,2,FALSE)=0,\"\",VLOOKUP(BC166,'Footnotes list'!$D$9:$E$58,2,FALSE) ) )","v":""},null,null,null,null,{"$f":"IF(TRIM(BH166)=\"\", \"\", IF(VLOOKUP(BH166,'Footnotes list'!$D$9:$E$58,2,FALSE)=0,\"\",VLOOKUP(BH166,'Footnotes list'!$D$9:$E$58,2,FALSE) ) )","v":""},null,null,null,null,{"$f":"IF(TRIM(BM166)=\"\", \"\", IF(VLOOKUP(BM166,'Footnotes list'!$D$9:$E$58,2,FALSE)=0,\"\",VLOOKUP(BM166,'Footnotes list'!$D$9:$E$58,2,FALSE) ) )","v":""},null,null,null,null,{"$f":"IF(TRIM(BR166)=\"\", \"\", IF(VLOOKUP(BR166,'Footnotes list'!$D$9:$E$58,2,FALSE)=0,\"\",VLOOKUP(BR166,'Footnotes list'!$D$9:$E$58,2,FALSE) ) )","v":""},null,null,null,null,{"$f":"IF(TRIM(BW166)=\"\", \"\", IF(VLOOKUP(BW166,'Footnotes list'!$D$9:$E$58,2,FALSE)=0,\"\",VLOOKUP(BW166,'Footnotes list'!$D$9:$E$58,2,FALSE) ) )","v":""},null,null,null,null,{"$f":"IF(TRIM(CB166)=\"\", \"\", IF(VLOOKUP(CB166,'Footnotes list'!$D$9:$E$58,2,FALSE)=0,\"\",VLOOKUP(CB166,'Footnotes list'!$D$9:$E$58,2,FALSE) ) )","v":""},null,null,null,null,{"$f":"IF(TRIM(CG166)=\"\", \"\", IF(VLOOKUP(CG166,'Footnotes list'!$D$9:$E$58,2,FALSE)=0,\"\",VLOOKUP(CG166,'Footnotes list'!$D$9:$E$58,2,FALSE) ) )","v":""},null,null,null,null,{"$f":"IF(TRIM(CL166)=\"\", \"\", IF(VLOOKUP(CL166,'Footnotes list'!$D$9:$E$58,2,FALSE)=0,\"\",VLOOKUP(CL166,'Footnotes list'!$D$9:$E$58,2,FALSE) ) )","v":""},null,null,null,null,{"$f":"IF(TRIM(CQ166)=\"\", \"\", IF(VLOOKUP(CQ166,'Footnotes list'!$D$9:$E$58,2,FALSE)=0,\"\",VLOOKUP(CQ166,'Footnotes list'!$D$9:$E$58,2,FALSE) ) )","v":""},null,null,null,null,{"$f":"IF(TRIM(CV166)=\"\", \"\", IF(VLOOKUP(CV166,'Footnotes list'!$D$9:$E$58,2,FALSE)=0,\"\",VLOOKUP(CV166,'Footnotes list'!$D$9:$E$58,2,FALSE) ) )","v":""},null,null,null,null,{"$f":"IF(TRIM(DA166)=\"\", \"\", IF(VLOOKUP(DA166,'Footnotes list'!$D$9:$E$58,2,FALSE)=0,\"\",VLOOKUP(DA166,'Footnotes list'!$D$9:$E$58,2,FALSE) ) )","v":""},null,null,null,null,{"$f":"IF(TRIM(DF166)=\"\", \"\", IF(VLOOKUP(DF166,'Footnotes list'!$D$9:$E$58,2,FALSE)=0,\"\",VLOOKUP(DF166,'Footnotes list'!$D$9:$E$58,2,FALSE) ) )","v":""},null,null,null,null,{"$f":"IF(TRIM(DK166)=\"\", \"\", IF(VLOOKUP(DK166,'Footnotes list'!$D$9:$E$58,2,FALSE)=0,\"\",VLOOKUP(DK166,'Footnotes list'!$D$9:$E$58,2,FALSE) ) )","v":""},null,null,null,null,{"$f":"IF(TRIM(DP166)=\"\", \"\", IF(VLOOKUP(DP166,'Footnotes list'!$D$9:$E$58,2,FALSE)=0,\"\",VLOOKUP(DP166,'Footnotes list'!$D$9:$E$58,2,FALSE) ) )","v":""},null,null,null,null,{"$f":"IF(TRIM(DU166)=\"\", \"\", IF(VLOOKUP(DU166,'Footnotes list'!$D$9:$E$58,2,FALSE)=0,\"\",VLOOKUP(DU166,'Footnotes list'!$D$9:$E$58,2,FALSE) ) )","v":""},null,null,null,null,{"$f":"IF(TRIM(DZ166)=\"\", \"\", IF(VLOOKUP(DZ166,'Footnotes list'!$D$9:$E$58,2,FALSE)=0,\"\",VLOOKUP(DZ166,'Footnotes list'!$D$9:$E$58,2,FALSE) ) )","v":""},null,null,null,null,{"$f":"IF(TRIM(EE166)=\"\", \"\", IF(VLOOKUP(EE166,'Footnotes list'!$D$9:$E$58,2,FALSE)=0,\"\",VLOOKUP(EE166,'Footnotes list'!$D$9:$E$58,2,FALSE) ) )","v":""},null,null,null,null,{"$f":"IF(TRIM(EJ166)=\"\", \"\", IF(VLOOKUP(EJ166,'Footnotes list'!$D$9:$E$58,2,FALSE)=0,\"\",VLOOKUP(EJ166,'Footnotes list'!$D$9:$E$58,2,FALSE) ) )","v":""},null,null,null,null,{"$f":"IF(TRIM(EO166)=\"\", \"\", IF(VLOOKUP(EO166,'Footnotes list'!$D$9:$E$58,2,FALSE)=0,\"\",VLOOKUP(EO166,'Footnotes list'!$D$9:$E$58,2,FALSE) ) )","v":""},null,null,null,null,{"$f":"IF(TRIM(ET166)=\"\", \"\", IF(VLOOKUP(ET166,'Footnotes list'!$D$9:$E$58,2,FALSE)=0,\"\",VLOOKUP(ET166,'Footnotes list'!$D$9:$E$58,2,FALSE) ) )","v":""},null,null,null,null,{"$f":"IF(TRIM(EY166)=\"\", \"\", IF(VLOOKUP(EY166,'Footnotes list'!$D$9:$E$58,2,FALSE)=0,\"\",VLOOKUP(EY166,'Footnotes list'!$D$9:$E$58,2,FALSE) ) )","v":""}]
[null,null,"E39","ES_CS","environmental specific services",null,null,null,null,null,{"$f":"IF(TRIM(J167)=\"\", \"\", IF(VLOOKUP(J167,'Footnotes list'!$D$9:$E$58,2,FALSE)=0,\"\",VLOOKUP(J167,'Footnotes list'!$D$9:$E$58,2,FALSE) ) )","v":""},null,null,null,null,{"$f":"IF(TRIM(O167)=\"\", \"\", IF(VLOOKUP(O167,'Footnotes list'!$D$9:$E$58,2,FALSE)=0,\"\",VLOOKUP(O167,'Footnotes list'!$D$9:$E$58,2,FALSE) ) )","v":""},null,null,null,null,{"$f":"IF(TRIM(T167)=\"\", \"\", IF(VLOOKUP(T167,'Footnotes list'!$D$9:$E$58,2,FALSE)=0,\"\",VLOOKUP(T167,'Footnotes list'!$D$9:$E$58,2,FALSE) ) )","v":""},null,null,null,null,{"$f":"IF(TRIM(Y167)=\"\", \"\", IF(VLOOKUP(Y167,'Footnotes list'!$D$9:$E$58,2,FALSE)=0,\"\",VLOOKUP(Y167,'Footnotes list'!$D$9:$E$58,2,FALSE) ) )","v":""},null,null,null,null,{"$f":"IF(TRIM(AD167)=\"\", \"\", IF(VLOOKUP(AD167,'Footnotes list'!$D$9:$E$58,2,FALSE)=0,\"\",VLOOKUP(AD167,'Footnotes list'!$D$9:$E$58,2,FALSE) ) )","v":""},null,null,null,null,{"$f":"IF(TRIM(AI167)=\"\", \"\", IF(VLOOKUP(AI167,'Footnotes list'!$D$9:$E$58,2,FALSE)=0,\"\",VLOOKUP(AI167,'Footnotes list'!$D$9:$E$58,2,FALSE) ) )","v":""},null,null,null,null,{"$f":"IF(TRIM(AN167)=\"\", \"\", IF(VLOOKUP(AN167,'Footnotes list'!$D$9:$E$58,2,FALSE)=0,\"\",VLOOKUP(AN167,'Footnotes list'!$D$9:$E$58,2,FALSE) ) )","v":""},null,null,null,null,{"$f":"IF(TRIM(AS167)=\"\", \"\", IF(VLOOKUP(AS167,'Footnotes list'!$D$9:$E$58,2,FALSE)=0,\"\",VLOOKUP(AS167,'Footnotes list'!$D$9:$E$58,2,FALSE) ) )","v":""},null,null,null,null,{"$f":"IF(TRIM(AX167)=\"\", \"\", IF(VLOOKUP(AX167,'Footnotes list'!$D$9:$E$58,2,FALSE)=0,\"\",VLOOKUP(AX167,'Footnotes list'!$D$9:$E$58,2,FALSE) ) )","v":""},null,null,null,null,{"$f":"IF(TRIM(BC167)=\"\", \"\", IF(VLOOKUP(BC167,'Footnotes list'!$D$9:$E$58,2,FALSE)=0,\"\",VLOOKUP(BC167,'Footnotes list'!$D$9:$E$58,2,FALSE) ) )","v":""},null,null,null,null,{"$f":"IF(TRIM(BH167)=\"\", \"\", IF(VLOOKUP(BH167,'Footnotes list'!$D$9:$E$58,2,FALSE)=0,\"\",VLOOKUP(BH167,'Footnotes list'!$D$9:$E$58,2,FALSE) ) )","v":""},null,null,null,null,{"$f":"IF(TRIM(BM167)=\"\", \"\", IF(VLOOKUP(BM167,'Footnotes list'!$D$9:$E$58,2,FALSE)=0,\"\",VLOOKUP(BM167,'Footnotes list'!$D$9:$E$58,2,FALSE) ) )","v":""},null,null,null,null,{"$f":"IF(TRIM(BR167)=\"\", \"\", IF(VLOOKUP(BR167,'Footnotes list'!$D$9:$E$58,2,FALSE)=0,\"\",VLOOKUP(BR167,'Footnotes list'!$D$9:$E$58,2,FALSE) ) )","v":""},null,null,null,null,{"$f":"IF(TRIM(BW167)=\"\", \"\", IF(VLOOKUP(BW167,'Footnotes list'!$D$9:$E$58,2,FALSE)=0,\"\",VLOOKUP(BW167,'Footnotes list'!$D$9:$E$58,2,FALSE) ) )","v":""},null,null,null,null,{"$f":"IF(TRIM(CB167)=\"\", \"\", IF(VLOOKUP(CB167,'Footnotes list'!$D$9:$E$58,2,FALSE)=0,\"\",VLOOKUP(CB167,'Footnotes list'!$D$9:$E$58,2,FALSE) ) )","v":""},null,null,null,null,{"$f":"IF(TRIM(CG167)=\"\", \"\", IF(VLOOKUP(CG167,'Footnotes list'!$D$9:$E$58,2,FALSE)=0,\"\",VLOOKUP(CG167,'Footnotes list'!$D$9:$E$58,2,FALSE) ) )","v":""},null,null,null,null,{"$f":"IF(TRIM(CL167)=\"\", \"\", IF(VLOOKUP(CL167,'Footnotes list'!$D$9:$E$58,2,FALSE)=0,\"\",VLOOKUP(CL167,'Footnotes list'!$D$9:$E$58,2,FALSE) ) )","v":""},null,null,null,null,{"$f":"IF(TRIM(CQ167)=\"\", \"\", IF(VLOOKUP(CQ167,'Footnotes list'!$D$9:$E$58,2,FALSE)=0,\"\",VLOOKUP(CQ167,'Footnotes list'!$D$9:$E$58,2,FALSE) ) )","v":""},null,null,null,null,{"$f":"IF(TRIM(CV167)=\"\", \"\", IF(VLOOKUP(CV167,'Footnotes list'!$D$9:$E$58,2,FALSE)=0,\"\",VLOOKUP(CV167,'Footnotes list'!$D$9:$E$58,2,FALSE) ) )","v":""},null,null,null,null,{"$f":"IF(TRIM(DA167)=\"\", \"\", IF(VLOOKUP(DA167,'Footnotes list'!$D$9:$E$58,2,FALSE)=0,\"\",VLOOKUP(DA167,'Footnotes list'!$D$9:$E$58,2,FALSE) ) )","v":""},null,null,null,null,{"$f":"IF(TRIM(DF167)=\"\", \"\", IF(VLOOKUP(DF167,'Footnotes list'!$D$9:$E$58,2,FALSE)=0,\"\",VLOOKUP(DF167,'Footnotes list'!$D$9:$E$58,2,FALSE) ) )","v":""},null,null,null,null,{"$f":"IF(TRIM(DK167)=\"\", \"\", IF(VLOOKUP(DK167,'Footnotes list'!$D$9:$E$58,2,FALSE)=0,\"\",VLOOKUP(DK167,'Footnotes list'!$D$9:$E$58,2,FALSE) ) )","v":""},null,null,null,null,{"$f":"IF(TRIM(DP167)=\"\", \"\", IF(VLOOKUP(DP167,'Footnotes list'!$D$9:$E$58,2,FALSE)=0,\"\",VLOOKUP(DP167,'Footnotes list'!$D$9:$E$58,2,FALSE) ) )","v":""},null,null,null,null,{"$f":"IF(TRIM(DU167)=\"\", \"\", IF(VLOOKUP(DU167,'Footnotes list'!$D$9:$E$58,2,FALSE)=0,\"\",VLOOKUP(DU167,'Footnotes list'!$D$9:$E$58,2,FALSE) ) )","v":""},null,null,null,null,{"$f":"IF(TRIM(DZ167)=\"\", \"\", IF(VLOOKUP(DZ167,'Footnotes list'!$D$9:$E$58,2,FALSE)=0,\"\",VLOOKUP(DZ167,'Footnotes list'!$D$9:$E$58,2,FALSE) ) )","v":""},null,null,null,null,{"$f":"IF(TRIM(EE167)=\"\", \"\", IF(VLOOKUP(EE167,'Footnotes list'!$D$9:$E$58,2,FALSE)=0,\"\",VLOOKUP(EE167,'Footnotes list'!$D$9:$E$58,2,FALSE) ) )","v":""},null,null,null,null,{"$f":"IF(TRIM(EJ167)=\"\", \"\", IF(VLOOKUP(EJ167,'Footnotes list'!$D$9:$E$58,2,FALSE)=0,\"\",VLOOKUP(EJ167,'Footnotes list'!$D$9:$E$58,2,FALSE) ) )","v":""},null,null,null,null,{"$f":"IF(TRIM(EO167)=\"\", \"\", IF(VLOOKUP(EO167,'Footnotes list'!$D$9:$E$58,2,FALSE)=0,\"\",VLOOKUP(EO167,'Footnotes list'!$D$9:$E$58,2,FALSE) ) )","v":""},null,null,null,null,{"$f":"IF(TRIM(ET167)=\"\", \"\", IF(VLOOKUP(ET167,'Footnotes list'!$D$9:$E$58,2,FALSE)=0,\"\",VLOOKUP(ET167,'Footnotes list'!$D$9:$E$58,2,FALSE) ) )","v":""},null,null,null,null,{"$f":"IF(TRIM(EY167)=\"\", \"\", IF(VLOOKUP(EY167,'Footnotes list'!$D$9:$E$58,2,FALSE)=0,\"\",VLOOKUP(EY167,'Footnotes list'!$D$9:$E$58,2,FALSE) ) )","v":""}]
[null,null,"E39","C_REP","cleaner and resource efficient products",null,null,null,null,null,{"$f":"IF(TRIM(J168)=\"\", \"\", IF(VLOOKUP(J168,'Footnotes list'!$D$9:$E$58,2,FALSE)=0,\"\",VLOOKUP(J168,'Footnotes list'!$D$9:$E$58,2,FALSE) ) )","v":""},null,null,null,null,{"$f":"IF(TRIM(O168)=\"\", \"\", IF(VLOOKUP(O168,'Footnotes list'!$D$9:$E$58,2,FALSE)=0,\"\",VLOOKUP(O168,'Footnotes list'!$D$9:$E$58,2,FALSE) ) )","v":""},null,null,null,null,{"$f":"IF(TRIM(T168)=\"\", \"\", IF(VLOOKUP(T168,'Footnotes list'!$D$9:$E$58,2,FALSE)=0,\"\",VLOOKUP(T168,'Footnotes list'!$D$9:$E$58,2,FALSE) ) )","v":""},null,null,null,null,{"$f":"IF(TRIM(Y168)=\"\", \"\", IF(VLOOKUP(Y168,'Footnotes list'!$D$9:$E$58,2,FALSE)=0,\"\",VLOOKUP(Y168,'Footnotes list'!$D$9:$E$58,2,FALSE) ) )","v":""},null,null,null,null,{"$f":"IF(TRIM(AD168)=\"\", \"\", IF(VLOOKUP(AD168,'Footnotes list'!$D$9:$E$58,2,FALSE)=0,\"\",VLOOKUP(AD168,'Footnotes list'!$D$9:$E$58,2,FALSE) ) )","v":""},null,null,null,null,{"$f":"IF(TRIM(AI168)=\"\", \"\", IF(VLOOKUP(AI168,'Footnotes list'!$D$9:$E$58,2,FALSE)=0,\"\",VLOOKUP(AI168,'Footnotes list'!$D$9:$E$58,2,FALSE) ) )","v":""},null,null,null,null,{"$f":"IF(TRIM(AN168)=\"\", \"\", IF(VLOOKUP(AN168,'Footnotes list'!$D$9:$E$58,2,FALSE)=0,\"\",VLOOKUP(AN168,'Footnotes list'!$D$9:$E$58,2,FALSE) ) )","v":""},null,null,null,null,{"$f":"IF(TRIM(AS168)=\"\", \"\", IF(VLOOKUP(AS168,'Footnotes list'!$D$9:$E$58,2,FALSE)=0,\"\",VLOOKUP(AS168,'Footnotes list'!$D$9:$E$58,2,FALSE) ) )","v":""},null,null,null,null,{"$f":"IF(TRIM(AX168)=\"\", \"\", IF(VLOOKUP(AX168,'Footnotes list'!$D$9:$E$58,2,FALSE)=0,\"\",VLOOKUP(AX168,'Footnotes list'!$D$9:$E$58,2,FALSE) ) )","v":""},null,null,null,null,{"$f":"IF(TRIM(BC168)=\"\", \"\", IF(VLOOKUP(BC168,'Footnotes list'!$D$9:$E$58,2,FALSE)=0,\"\",VLOOKUP(BC168,'Footnotes list'!$D$9:$E$58,2,FALSE) ) )","v":""},null,null,null,null,{"$f":"IF(TRIM(BH168)=\"\", \"\", IF(VLOOKUP(BH168,'Footnotes list'!$D$9:$E$58,2,FALSE)=0,\"\",VLOOKUP(BH168,'Footnotes list'!$D$9:$E$58,2,FALSE) ) )","v":""},null,null,null,null,{"$f":"IF(TRIM(BM168)=\"\", \"\", IF(VLOOKUP(BM168,'Footnotes list'!$D$9:$E$58,2,FALSE)=0,\"\",VLOOKUP(BM168,'Footnotes list'!$D$9:$E$58,2,FALSE) ) )","v":""},null,null,null,null,{"$f":"IF(TRIM(BR168)=\"\", \"\", IF(VLOOKUP(BR168,'Footnotes list'!$D$9:$E$58,2,FALSE)=0,\"\",VLOOKUP(BR168,'Footnotes list'!$D$9:$E$58,2,FALSE) ) )","v":""},null,null,null,null,{"$f":"IF(TRIM(BW168)=\"\", \"\", IF(VLOOKUP(BW168,'Footnotes list'!$D$9:$E$58,2,FALSE)=0,\"\",VLOOKUP(BW168,'Footnotes list'!$D$9:$E$58,2,FALSE) ) )","v":""},null,null,null,null,{"$f":"IF(TRIM(CB168)=\"\", \"\", IF(VLOOKUP(CB168,'Footnotes list'!$D$9:$E$58,2,FALSE)=0,\"\",VLOOKUP(CB168,'Footnotes list'!$D$9:$E$58,2,FALSE) ) )","v":""},null,null,null,null,{"$f":"IF(TRIM(CG168)=\"\", \"\", IF(VLOOKUP(CG168,'Footnotes list'!$D$9:$E$58,2,FALSE)=0,\"\",VLOOKUP(CG168,'Footnotes list'!$D$9:$E$58,2,FALSE) ) )","v":""},null,null,null,null,{"$f":"IF(TRIM(CL168)=\"\", \"\", IF(VLOOKUP(CL168,'Footnotes list'!$D$9:$E$58,2,FALSE)=0,\"\",VLOOKUP(CL168,'Footnotes list'!$D$9:$E$58,2,FALSE) ) )","v":""},null,null,null,null,{"$f":"IF(TRIM(CQ168)=\"\", \"\", IF(VLOOKUP(CQ168,'Footnotes list'!$D$9:$E$58,2,FALSE)=0,\"\",VLOOKUP(CQ168,'Footnotes list'!$D$9:$E$58,2,FALSE) ) )","v":""},null,null,null,null,{"$f":"IF(TRIM(CV168)=\"\", \"\", IF(VLOOKUP(CV168,'Footnotes list'!$D$9:$E$58,2,FALSE)=0,\"\",VLOOKUP(CV168,'Footnotes list'!$D$9:$E$58,2,FALSE) ) )","v":""},null,null,null,null,{"$f":"IF(TRIM(DA168)=\"\", \"\", IF(VLOOKUP(DA168,'Footnotes list'!$D$9:$E$58,2,FALSE)=0,\"\",VLOOKUP(DA168,'Footnotes list'!$D$9:$E$58,2,FALSE) ) )","v":""},null,null,null,null,{"$f":"IF(TRIM(DF168)=\"\", \"\", IF(VLOOKUP(DF168,'Footnotes list'!$D$9:$E$58,2,FALSE)=0,\"\",VLOOKUP(DF168,'Footnotes list'!$D$9:$E$58,2,FALSE) ) )","v":""},null,null,null,null,{"$f":"IF(TRIM(DK168)=\"\", \"\", IF(VLOOKUP(DK168,'Footnotes list'!$D$9:$E$58,2,FALSE)=0,\"\",VLOOKUP(DK168,'Footnotes list'!$D$9:$E$58,2,FALSE) ) )","v":""},null,null,null,null,{"$f":"IF(TRIM(DP168)=\"\", \"\", IF(VLOOKUP(DP168,'Footnotes list'!$D$9:$E$58,2,FALSE)=0,\"\",VLOOKUP(DP168,'Footnotes list'!$D$9:$E$58,2,FALSE) ) )","v":""},null,null,null,null,{"$f":"IF(TRIM(DU168)=\"\", \"\", IF(VLOOKUP(DU168,'Footnotes list'!$D$9:$E$58,2,FALSE)=0,\"\",VLOOKUP(DU168,'Footnotes list'!$D$9:$E$58,2,FALSE) ) )","v":""},null,null,null,null,{"$f":"IF(TRIM(DZ168)=\"\", \"\", IF(VLOOKUP(DZ168,'Footnotes list'!$D$9:$E$58,2,FALSE)=0,\"\",VLOOKUP(DZ168,'Footnotes list'!$D$9:$E$58,2,FALSE) ) )","v":""},null,null,null,null,{"$f":"IF(TRIM(EE168)=\"\", \"\", IF(VLOOKUP(EE168,'Footnotes list'!$D$9:$E$58,2,FALSE)=0,\"\",VLOOKUP(EE168,'Footnotes list'!$D$9:$E$58,2,FALSE) ) )","v":""},null,null,null,null,{"$f":"IF(TRIM(EJ168)=\"\", \"\", IF(VLOOKUP(EJ168,'Footnotes list'!$D$9:$E$58,2,FALSE)=0,\"\",VLOOKUP(EJ168,'Footnotes list'!$D$9:$E$58,2,FALSE) ) )","v":""},null,null,null,null,{"$f":"IF(TRIM(EO168)=\"\", \"\", IF(VLOOKUP(EO168,'Footnotes list'!$D$9:$E$58,2,FALSE)=0,\"\",VLOOKUP(EO168,'Footnotes list'!$D$9:$E$58,2,FALSE) ) )","v":""},null,null,null,null,{"$f":"IF(TRIM(ET168)=\"\", \"\", IF(VLOOKUP(ET168,'Footnotes list'!$D$9:$E$58,2,FALSE)=0,\"\",VLOOKUP(ET168,'Footnotes list'!$D$9:$E$58,2,FALSE) ) )","v":""},null,null,null,null,{"$f":"IF(TRIM(EY168)=\"\", \"\", IF(VLOOKUP(EY168,'Footnotes list'!$D$9:$E$58,2,FALSE)=0,\"\",VLOOKUP(EY168,'Footnotes list'!$D$9:$E$58,2,FALSE) ) )","v":""}]
[null,null,"F","TOT_EGSS","Total F - Construction, of which:",null,null,null,null,null,{"$f":"IF(TRIM(J169)=\"\", \"\", IF(VLOOKUP(J169,'Footnotes list'!$D$9:$E$58,2,FALSE)=0,\"\",VLOOKUP(J169,'Footnotes list'!$D$9:$E$58,2,FALSE) ) )","v":""},null,null,null,null,{"$f":"IF(TRIM(O169)=\"\", \"\", IF(VLOOKUP(O169,'Footnotes list'!$D$9:$E$58,2,FALSE)=0,\"\",VLOOKUP(O169,'Footnotes list'!$D$9:$E$58,2,FALSE) ) )","v":""},null,null,null,null,{"$f":"IF(TRIM(T169)=\"\", \"\", IF(VLOOKUP(T169,'Footnotes list'!$D$9:$E$58,2,FALSE)=0,\"\",VLOOKUP(T169,'Footnotes list'!$D$9:$E$58,2,FALSE) ) )","v":""},null,null,null,null,{"$f":"IF(TRIM(Y169)=\"\", \"\", IF(VLOOKUP(Y169,'Footnotes list'!$D$9:$E$58,2,FALSE)=0,\"\",VLOOKUP(Y169,'Footnotes list'!$D$9:$E$58,2,FALSE) ) )","v":""},null,null,null,null,{"$f":"IF(TRIM(AD169)=\"\", \"\", IF(VLOOKUP(AD169,'Footnotes list'!$D$9:$E$58,2,FALSE)=0,\"\",VLOOKUP(AD169,'Footnotes list'!$D$9:$E$58,2,FALSE) ) )","v":""},null,null,null,null,{"$f":"IF(TRIM(AI169)=\"\", \"\", IF(VLOOKUP(AI169,'Footnotes list'!$D$9:$E$58,2,FALSE)=0,\"\",VLOOKUP(AI169,'Footnotes list'!$D$9:$E$58,2,FALSE) ) )","v":""},null,null,null,null,{"$f":"IF(TRIM(AN169)=\"\", \"\", IF(VLOOKUP(AN169,'Footnotes list'!$D$9:$E$58,2,FALSE)=0,\"\",VLOOKUP(AN169,'Footnotes list'!$D$9:$E$58,2,FALSE) ) )","v":""},null,null,null,null,{"$f":"IF(TRIM(AS169)=\"\", \"\", IF(VLOOKUP(AS169,'Footnotes list'!$D$9:$E$58,2,FALSE)=0,\"\",VLOOKUP(AS169,'Footnotes list'!$D$9:$E$58,2,FALSE) ) )","v":""},null,null,null,null,{"$f":"IF(TRIM(AX169)=\"\", \"\", IF(VLOOKUP(AX169,'Footnotes list'!$D$9:$E$58,2,FALSE)=0,\"\",VLOOKUP(AX169,'Footnotes list'!$D$9:$E$58,2,FALSE) ) )","v":""},null,null,null,null,{"$f":"IF(TRIM(BC169)=\"\", \"\", IF(VLOOKUP(BC169,'Footnotes list'!$D$9:$E$58,2,FALSE)=0,\"\",VLOOKUP(BC169,'Footnotes list'!$D$9:$E$58,2,FALSE) ) )","v":""},null,null,null,null,{"$f":"IF(TRIM(BH169)=\"\", \"\", IF(VLOOKUP(BH169,'Footnotes list'!$D$9:$E$58,2,FALSE)=0,\"\",VLOOKUP(BH169,'Footnotes list'!$D$9:$E$58,2,FALSE) ) )","v":""},null,null,null,null,{"$f":"IF(TRIM(BM169)=\"\", \"\", IF(VLOOKUP(BM169,'Footnotes list'!$D$9:$E$58,2,FALSE)=0,\"\",VLOOKUP(BM169,'Footnotes list'!$D$9:$E$58,2,FALSE) ) )","v":""},null,null,null,null,{"$f":"IF(TRIM(BR169)=\"\", \"\", IF(VLOOKUP(BR169,'Footnotes list'!$D$9:$E$58,2,FALSE)=0,\"\",VLOOKUP(BR169,'Footnotes list'!$D$9:$E$58,2,FALSE) ) )","v":""},null,null,null,null,{"$f":"IF(TRIM(BW169)=\"\", \"\", IF(VLOOKUP(BW169,'Footnotes list'!$D$9:$E$58,2,FALSE)=0,\"\",VLOOKUP(BW169,'Footnotes list'!$D$9:$E$58,2,FALSE) ) )","v":""},null,null,null,null,{"$f":"IF(TRIM(CB169)=\"\", \"\", IF(VLOOKUP(CB169,'Footnotes list'!$D$9:$E$58,2,FALSE)=0,\"\",VLOOKUP(CB169,'Footnotes list'!$D$9:$E$58,2,FALSE) ) )","v":""},null,null,null,null,{"$f":"IF(TRIM(CG169)=\"\", \"\", IF(VLOOKUP(CG169,'Footnotes list'!$D$9:$E$58,2,FALSE)=0,\"\",VLOOKUP(CG169,'Footnotes list'!$D$9:$E$58,2,FALSE) ) )","v":""},null,null,null,null,{"$f":"IF(TRIM(CL169)=\"\", \"\", IF(VLOOKUP(CL169,'Footnotes list'!$D$9:$E$58,2,FALSE)=0,\"\",VLOOKUP(CL169,'Footnotes list'!$D$9:$E$58,2,FALSE) ) )","v":""},null,null,null,null,{"$f":"IF(TRIM(CQ169)=\"\", \"\", IF(VLOOKUP(CQ169,'Footnotes list'!$D$9:$E$58,2,FALSE)=0,\"\",VLOOKUP(CQ169,'Footnotes list'!$D$9:$E$58,2,FALSE) ) )","v":""},null,null,null,null,{"$f":"IF(TRIM(CV169)=\"\", \"\", IF(VLOOKUP(CV169,'Footnotes list'!$D$9:$E$58,2,FALSE)=0,\"\",VLOOKUP(CV169,'Footnotes list'!$D$9:$E$58,2,FALSE) ) )","v":""},null,null,null,null,{"$f":"IF(TRIM(DA169)=\"\", \"\", IF(VLOOKUP(DA169,'Footnotes list'!$D$9:$E$58,2,FALSE)=0,\"\",VLOOKUP(DA169,'Footnotes list'!$D$9:$E$58,2,FALSE) ) )","v":""},null,null,null,null,{"$f":"IF(TRIM(DF169)=\"\", \"\", IF(VLOOKUP(DF169,'Footnotes list'!$D$9:$E$58,2,FALSE)=0,\"\",VLOOKUP(DF169,'Footnotes list'!$D$9:$E$58,2,FALSE) ) )","v":""},null,null,null,null,{"$f":"IF(TRIM(DK169)=\"\", \"\", IF(VLOOKUP(DK169,'Footnotes list'!$D$9:$E$58,2,FALSE)=0,\"\",VLOOKUP(DK169,'Footnotes list'!$D$9:$E$58,2,FALSE) ) )","v":""},null,null,null,null,{"$f":"IF(TRIM(DP169)=\"\", \"\", IF(VLOOKUP(DP169,'Footnotes list'!$D$9:$E$58,2,FALSE)=0,\"\",VLOOKUP(DP169,'Footnotes list'!$D$9:$E$58,2,FALSE) ) )","v":""},null,null,null,null,{"$f":"IF(TRIM(DU169)=\"\", \"\", IF(VLOOKUP(DU169,'Footnotes list'!$D$9:$E$58,2,FALSE)=0,\"\",VLOOKUP(DU169,'Footnotes list'!$D$9:$E$58,2,FALSE) ) )","v":""},null,null,null,null,{"$f":"IF(TRIM(DZ169)=\"\", \"\", IF(VLOOKUP(DZ169,'Footnotes list'!$D$9:$E$58,2,FALSE)=0,\"\",VLOOKUP(DZ169,'Footnotes list'!$D$9:$E$58,2,FALSE) ) )","v":""},null,null,null,null,{"$f":"IF(TRIM(EE169)=\"\", \"\", IF(VLOOKUP(EE169,'Footnotes list'!$D$9:$E$58,2,FALSE)=0,\"\",VLOOKUP(EE169,'Footnotes list'!$D$9:$E$58,2,FALSE) ) )","v":""},null,null,null,null,{"$f":"IF(TRIM(EJ169)=\"\", \"\", IF(VLOOKUP(EJ169,'Footnotes list'!$D$9:$E$58,2,FALSE)=0,\"\",VLOOKUP(EJ169,'Footnotes list'!$D$9:$E$58,2,FALSE) ) )","v":""},null,null,null,null,{"$f":"IF(TRIM(EO169)=\"\", \"\", IF(VLOOKUP(EO169,'Footnotes list'!$D$9:$E$58,2,FALSE)=0,\"\",VLOOKUP(EO169,'Footnotes list'!$D$9:$E$58,2,FALSE) ) )","v":""},null,null,null,null,{"$f":"IF(TRIM(ET169)=\"\", \"\", IF(VLOOKUP(ET169,'Footnotes list'!$D$9:$E$58,2,FALSE)=0,\"\",VLOOKUP(ET169,'Footnotes list'!$D$9:$E$58,2,FALSE) ) )","v":""},null,null,null,null,{"$f":"IF(TRIM(EY169)=\"\", \"\", IF(VLOOKUP(EY169,'Footnotes list'!$D$9:$E$58,2,FALSE)=0,\"\",VLOOKUP(EY169,'Footnotes list'!$D$9:$E$58,2,FALSE) ) )","v":""}]
[null,null,"F","ANC","ancillary activities",null,null,null,null,null,{"$f":"IF(TRIM(J170)=\"\", \"\", IF(VLOOKUP(J170,'Footnotes list'!$D$9:$E$58,2,FALSE)=0,\"\",VLOOKUP(J170,'Footnotes list'!$D$9:$E$58,2,FALSE) ) )","v":""},null,null,null,null,{"$f":"IF(TRIM(O170)=\"\", \"\", IF(VLOOKUP(O170,'Footnotes list'!$D$9:$E$58,2,FALSE)=0,\"\",VLOOKUP(O170,'Footnotes list'!$D$9:$E$58,2,FALSE) ) )","v":""},null,null,null,null,{"$f":"IF(TRIM(T170)=\"\", \"\", IF(VLOOKUP(T170,'Footnotes list'!$D$9:$E$58,2,FALSE)=0,\"\",VLOOKUP(T170,'Footnotes list'!$D$9:$E$58,2,FALSE) ) )","v":""},null,null,null,null,{"$f":"IF(TRIM(Y170)=\"\", \"\", IF(VLOOKUP(Y170,'Footnotes list'!$D$9:$E$58,2,FALSE)=0,\"\",VLOOKUP(Y170,'Footnotes list'!$D$9:$E$58,2,FALSE) ) )","v":""},null,null,null,null,{"$f":"IF(TRIM(AD170)=\"\", \"\", IF(VLOOKUP(AD170,'Footnotes list'!$D$9:$E$58,2,FALSE)=0,\"\",VLOOKUP(AD170,'Footnotes list'!$D$9:$E$58,2,FALSE) ) )","v":""},null,null,null,null,{"$f":"IF(TRIM(AI170)=\"\", \"\", IF(VLOOKUP(AI170,'Footnotes list'!$D$9:$E$58,2,FALSE)=0,\"\",VLOOKUP(AI170,'Footnotes list'!$D$9:$E$58,2,FALSE) ) )","v":""},null,null,null,null,{"$f":"IF(TRIM(AN170)=\"\", \"\", IF(VLOOKUP(AN170,'Footnotes list'!$D$9:$E$58,2,FALSE)=0,\"\",VLOOKUP(AN170,'Footnotes list'!$D$9:$E$58,2,FALSE) ) )","v":""},null,null,null,null,{"$f":"IF(TRIM(AS170)=\"\", \"\", IF(VLOOKUP(AS170,'Footnotes list'!$D$9:$E$58,2,FALSE)=0,\"\",VLOOKUP(AS170,'Footnotes list'!$D$9:$E$58,2,FALSE) ) )","v":""},null,null,null,null,{"$f":"IF(TRIM(AX170)=\"\", \"\", IF(VLOOKUP(AX170,'Footnotes list'!$D$9:$E$58,2,FALSE)=0,\"\",VLOOKUP(AX170,'Footnotes list'!$D$9:$E$58,2,FALSE) ) )","v":""},null,null,null,null,{"$f":"IF(TRIM(BC170)=\"\", \"\", IF(VLOOKUP(BC170,'Footnotes list'!$D$9:$E$58,2,FALSE)=0,\"\",VLOOKUP(BC170,'Footnotes list'!$D$9:$E$58,2,FALSE) ) )","v":""},null,null,null,null,{"$f":"IF(TRIM(BH170)=\"\", \"\", IF(VLOOKUP(BH170,'Footnotes list'!$D$9:$E$58,2,FALSE)=0,\"\",VLOOKUP(BH170,'Footnotes list'!$D$9:$E$58,2,FALSE) ) )","v":""},null,null,null,null,{"$f":"IF(TRIM(BM170)=\"\", \"\", IF(VLOOKUP(BM170,'Footnotes list'!$D$9:$E$58,2,FALSE)=0,\"\",VLOOKUP(BM170,'Footnotes list'!$D$9:$E$58,2,FALSE) ) )","v":""},null,null,null,null,{"$f":"IF(TRIM(BR170)=\"\", \"\", IF(VLOOKUP(BR170,'Footnotes list'!$D$9:$E$58,2,FALSE)=0,\"\",VLOOKUP(BR170,'Footnotes list'!$D$9:$E$58,2,FALSE) ) )","v":""},null,null,null,null,{"$f":"IF(TRIM(BW170)=\"\", \"\", IF(VLOOKUP(BW170,'Footnotes list'!$D$9:$E$58,2,FALSE)=0,\"\",VLOOKUP(BW170,'Footnotes list'!$D$9:$E$58,2,FALSE) ) )","v":""},null,null,null,null,{"$f":"IF(TRIM(CB170)=\"\", \"\", IF(VLOOKUP(CB170,'Footnotes list'!$D$9:$E$58,2,FALSE)=0,\"\",VLOOKUP(CB170,'Footnotes list'!$D$9:$E$58,2,FALSE) ) )","v":""},null,null,null,null,{"$f":"IF(TRIM(CG170)=\"\", \"\", IF(VLOOKUP(CG170,'Footnotes list'!$D$9:$E$58,2,FALSE)=0,\"\",VLOOKUP(CG170,'Footnotes list'!$D$9:$E$58,2,FALSE) ) )","v":""},null,null,null,null,{"$f":"IF(TRIM(CL170)=\"\", \"\", IF(VLOOKUP(CL170,'Footnotes list'!$D$9:$E$58,2,FALSE)=0,\"\",VLOOKUP(CL170,'Footnotes list'!$D$9:$E$58,2,FALSE) ) )","v":""},null,null,null,null,{"$f":"IF(TRIM(CQ170)=\"\", \"\", IF(VLOOKUP(CQ170,'Footnotes list'!$D$9:$E$58,2,FALSE)=0,\"\",VLOOKUP(CQ170,'Footnotes list'!$D$9:$E$58,2,FALSE) ) )","v":""},null,null,null,null,{"$f":"IF(TRIM(CV170)=\"\", \"\", IF(VLOOKUP(CV170,'Footnotes list'!$D$9:$E$58,2,FALSE)=0,\"\",VLOOKUP(CV170,'Footnotes list'!$D$9:$E$58,2,FALSE) ) )","v":""},null,null,null,null,{"$f":"IF(TRIM(DA170)=\"\", \"\", IF(VLOOKUP(DA170,'Footnotes list'!$D$9:$E$58,2,FALSE)=0,\"\",VLOOKUP(DA170,'Footnotes list'!$D$9:$E$58,2,FALSE) ) )","v":""},null,null,null,null,{"$f":"IF(TRIM(DF170)=\"\", \"\", IF(VLOOKUP(DF170,'Footnotes list'!$D$9:$E$58,2,FALSE)=0,\"\",VLOOKUP(DF170,'Footnotes list'!$D$9:$E$58,2,FALSE) ) )","v":""},null,null,null,null,{"$f":"IF(TRIM(DK170)=\"\", \"\", IF(VLOOKUP(DK170,'Footnotes list'!$D$9:$E$58,2,FALSE)=0,\"\",VLOOKUP(DK170,'Footnotes list'!$D$9:$E$58,2,FALSE) ) )","v":""},null,null,null,null,{"$f":"IF(TRIM(DP170)=\"\", \"\", IF(VLOOKUP(DP170,'Footnotes list'!$D$9:$E$58,2,FALSE)=0,\"\",VLOOKUP(DP170,'Footnotes list'!$D$9:$E$58,2,FALSE) ) )","v":""},null,null,null,null,{"$f":"IF(TRIM(DU170)=\"\", \"\", IF(VLOOKUP(DU170,'Footnotes list'!$D$9:$E$58,2,FALSE)=0,\"\",VLOOKUP(DU170,'Footnotes list'!$D$9:$E$58,2,FALSE) ) )","v":""},null,null,null,null,{"$f":"IF(TRIM(DZ170)=\"\", \"\", IF(VLOOKUP(DZ170,'Footnotes list'!$D$9:$E$58,2,FALSE)=0,\"\",VLOOKUP(DZ170,'Footnotes list'!$D$9:$E$58,2,FALSE) ) )","v":""},null,null,null,null,{"$f":"IF(TRIM(EE170)=\"\", \"\", IF(VLOOKUP(EE170,'Footnotes list'!$D$9:$E$58,2,FALSE)=0,\"\",VLOOKUP(EE170,'Footnotes list'!$D$9:$E$58,2,FALSE) ) )","v":""},null,null,null,null,{"$f":"IF(TRIM(EJ170)=\"\", \"\", IF(VLOOKUP(EJ170,'Footnotes list'!$D$9:$E$58,2,FALSE)=0,\"\",VLOOKUP(EJ170,'Footnotes list'!$D$9:$E$58,2,FALSE) ) )","v":""},null,null,null,null,{"$f":"IF(TRIM(EO170)=\"\", \"\", IF(VLOOKUP(EO170,'Footnotes list'!$D$9:$E$58,2,FALSE)=0,\"\",VLOOKUP(EO170,'Footnotes list'!$D$9:$E$58,2,FALSE) ) )","v":""},null,null,null,null,{"$f":"IF(TRIM(ET170)=\"\", \"\", IF(VLOOKUP(ET170,'Footnotes list'!$D$9:$E$58,2,FALSE)=0,\"\",VLOOKUP(ET170,'Footnotes list'!$D$9:$E$58,2,FALSE) ) )","v":""},null,null,null,null,{"$f":"IF(TRIM(EY170)=\"\", \"\", IF(VLOOKUP(EY170,'Footnotes list'!$D$9:$E$58,2,FALSE)=0,\"\",VLOOKUP(EY170,'Footnotes list'!$D$9:$E$58,2,FALSE) ) )","v":""}]
[null,null,"F","NMKT","non-market activities",null,null,null,null,null,{"$f":"IF(TRIM(J171)=\"\", \"\", IF(VLOOKUP(J171,'Footnotes list'!$D$9:$E$58,2,FALSE)=0,\"\",VLOOKUP(J171,'Footnotes list'!$D$9:$E$58,2,FALSE) ) )","v":""},null,null,null,null,{"$f":"IF(TRIM(O171)=\"\", \"\", IF(VLOOKUP(O171,'Footnotes list'!$D$9:$E$58,2,FALSE)=0,\"\",VLOOKUP(O171,'Footnotes list'!$D$9:$E$58,2,FALSE) ) )","v":""},null,null,null,null,{"$f":"IF(TRIM(T171)=\"\", \"\", IF(VLOOKUP(T171,'Footnotes list'!$D$9:$E$58,2,FALSE)=0,\"\",VLOOKUP(T171,'Footnotes list'!$D$9:$E$58,2,FALSE) ) )","v":""},null,null,null,null,{"$f":"IF(TRIM(Y171)=\"\", \"\", IF(VLOOKUP(Y171,'Footnotes list'!$D$9:$E$58,2,FALSE)=0,\"\",VLOOKUP(Y171,'Footnotes list'!$D$9:$E$58,2,FALSE) ) )","v":""},null,null,null,null,{"$f":"IF(TRIM(AD171)=\"\", \"\", IF(VLOOKUP(AD171,'Footnotes list'!$D$9:$E$58,2,FALSE)=0,\"\",VLOOKUP(AD171,'Footnotes list'!$D$9:$E$58,2,FALSE) ) )","v":""},null,null,null,null,{"$f":"IF(TRIM(AI171)=\"\", \"\", IF(VLOOKUP(AI171,'Footnotes list'!$D$9:$E$58,2,FALSE)=0,\"\",VLOOKUP(AI171,'Footnotes list'!$D$9:$E$58,2,FALSE) ) )","v":""},null,null,null,null,{"$f":"IF(TRIM(AN171)=\"\", \"\", IF(VLOOKUP(AN171,'Footnotes list'!$D$9:$E$58,2,FALSE)=0,\"\",VLOOKUP(AN171,'Footnotes list'!$D$9:$E$58,2,FALSE) ) )","v":""},null,null,null,null,{"$f":"IF(TRIM(AS171)=\"\", \"\", IF(VLOOKUP(AS171,'Footnotes list'!$D$9:$E$58,2,FALSE)=0,\"\",VLOOKUP(AS171,'Footnotes list'!$D$9:$E$58,2,FALSE) ) )","v":""},null,null,null,null,{"$f":"IF(TRIM(AX171)=\"\", \"\", IF(VLOOKUP(AX171,'Footnotes list'!$D$9:$E$58,2,FALSE)=0,\"\",VLOOKUP(AX171,'Footnotes list'!$D$9:$E$58,2,FALSE) ) )","v":""},null,null,null,null,{"$f":"IF(TRIM(BC171)=\"\", \"\", IF(VLOOKUP(BC171,'Footnotes list'!$D$9:$E$58,2,FALSE)=0,\"\",VLOOKUP(BC171,'Footnotes list'!$D$9:$E$58,2,FALSE) ) )","v":""},null,null,null,null,{"$f":"IF(TRIM(BH171)=\"\", \"\", IF(VLOOKUP(BH171,'Footnotes list'!$D$9:$E$58,2,FALSE)=0,\"\",VLOOKUP(BH171,'Footnotes list'!$D$9:$E$58,2,FALSE) ) )","v":""},null,null,null,null,{"$f":"IF(TRIM(BM171)=\"\", \"\", IF(VLOOKUP(BM171,'Footnotes list'!$D$9:$E$58,2,FALSE)=0,\"\",VLOOKUP(BM171,'Footnotes list'!$D$9:$E$58,2,FALSE) ) )","v":""},null,null,null,null,{"$f":"IF(TRIM(BR171)=\"\", \"\", IF(VLOOKUP(BR171,'Footnotes list'!$D$9:$E$58,2,FALSE)=0,\"\",VLOOKUP(BR171,'Footnotes list'!$D$9:$E$58,2,FALSE) ) )","v":""},null,null,null,null,{"$f":"IF(TRIM(BW171)=\"\", \"\", IF(VLOOKUP(BW171,'Footnotes list'!$D$9:$E$58,2,FALSE)=0,\"\",VLOOKUP(BW171,'Footnotes list'!$D$9:$E$58,2,FALSE) ) )","v":""},null,null,null,null,{"$f":"IF(TRIM(CB171)=\"\", \"\", IF(VLOOKUP(CB171,'Footnotes list'!$D$9:$E$58,2,FALSE)=0,\"\",VLOOKUP(CB171,'Footnotes list'!$D$9:$E$58,2,FALSE) ) )","v":""},null,null,null,null,{"$f":"IF(TRIM(CG171)=\"\", \"\", IF(VLOOKUP(CG171,'Footnotes list'!$D$9:$E$58,2,FALSE)=0,\"\",VLOOKUP(CG171,'Footnotes list'!$D$9:$E$58,2,FALSE) ) )","v":""},null,null,null,null,{"$f":"IF(TRIM(CL171)=\"\", \"\", IF(VLOOKUP(CL171,'Footnotes list'!$D$9:$E$58,2,FALSE)=0,\"\",VLOOKUP(CL171,'Footnotes list'!$D$9:$E$58,2,FALSE) ) )","v":""},null,null,null,null,{"$f":"IF(TRIM(CQ171)=\"\", \"\", IF(VLOOKUP(CQ171,'Footnotes list'!$D$9:$E$58,2,FALSE)=0,\"\",VLOOKUP(CQ171,'Footnotes list'!$D$9:$E$58,2,FALSE) ) )","v":""},null,null,null,null,{"$f":"IF(TRIM(CV171)=\"\", \"\", IF(VLOOKUP(CV171,'Footnotes list'!$D$9:$E$58,2,FALSE)=0,\"\",VLOOKUP(CV171,'Footnotes list'!$D$9:$E$58,2,FALSE) ) )","v":""},null,null,null,null,{"$f":"IF(TRIM(DA171)=\"\", \"\", IF(VLOOKUP(DA171,'Footnotes list'!$D$9:$E$58,2,FALSE)=0,\"\",VLOOKUP(DA171,'Footnotes list'!$D$9:$E$58,2,FALSE) ) )","v":""},null,null,null,null,{"$f":"IF(TRIM(DF171)=\"\", \"\", IF(VLOOKUP(DF171,'Footnotes list'!$D$9:$E$58,2,FALSE)=0,\"\",VLOOKUP(DF171,'Footnotes list'!$D$9:$E$58,2,FALSE) ) )","v":""},null,null,null,null,{"$f":"IF(TRIM(DK171)=\"\", \"\", IF(VLOOKUP(DK171,'Footnotes list'!$D$9:$E$58,2,FALSE)=0,\"\",VLOOKUP(DK171,'Footnotes list'!$D$9:$E$58,2,FALSE) ) )","v":""},null,null,null,null,{"$f":"IF(TRIM(DP171)=\"\", \"\", IF(VLOOKUP(DP171,'Footnotes list'!$D$9:$E$58,2,FALSE)=0,\"\",VLOOKUP(DP171,'Footnotes list'!$D$9:$E$58,2,FALSE) ) )","v":""},null,null,null,null,{"$f":"IF(TRIM(DU171)=\"\", \"\", IF(VLOOKUP(DU171,'Footnotes list'!$D$9:$E$58,2,FALSE)=0,\"\",VLOOKUP(DU171,'Footnotes list'!$D$9:$E$58,2,FALSE) ) )","v":""},null,null,null,null,{"$f":"IF(TRIM(DZ171)=\"\", \"\", IF(VLOOKUP(DZ171,'Footnotes list'!$D$9:$E$58,2,FALSE)=0,\"\",VLOOKUP(DZ171,'Footnotes list'!$D$9:$E$58,2,FALSE) ) )","v":""},null,null,null,null,{"$f":"IF(TRIM(EE171)=\"\", \"\", IF(VLOOKUP(EE171,'Footnotes list'!$D$9:$E$58,2,FALSE)=0,\"\",VLOOKUP(EE171,'Footnotes list'!$D$9:$E$58,2,FALSE) ) )","v":""},null,null,null,null,{"$f":"IF(TRIM(EJ171)=\"\", \"\", IF(VLOOKUP(EJ171,'Footnotes list'!$D$9:$E$58,2,FALSE)=0,\"\",VLOOKUP(EJ171,'Footnotes list'!$D$9:$E$58,2,FALSE) ) )","v":""},null,null,null,null,{"$f":"IF(TRIM(EO171)=\"\", \"\", IF(VLOOKUP(EO171,'Footnotes list'!$D$9:$E$58,2,FALSE)=0,\"\",VLOOKUP(EO171,'Footnotes list'!$D$9:$E$58,2,FALSE) ) )","v":""},null,null,null,null,{"$f":"IF(TRIM(ET171)=\"\", \"\", IF(VLOOKUP(ET171,'Footnotes list'!$D$9:$E$58,2,FALSE)=0,\"\",VLOOKUP(ET171,'Footnotes list'!$D$9:$E$58,2,FALSE) ) )","v":""},null,null,null,null,{"$f":"IF(TRIM(EY171)=\"\", \"\", IF(VLOOKUP(EY171,'Footnotes list'!$D$9:$E$58,2,FALSE)=0,\"\",VLOOKUP(EY171,'Footnotes list'!$D$9:$E$58,2,FALSE) ) )","v":""}]
[null,null,"F","OWN_USE","activities for own final use",null,null,null,null,null,{"$f":"IF(TRIM(J172)=\"\", \"\", IF(VLOOKUP(J172,'Footnotes list'!$D$9:$E$58,2,FALSE)=0,\"\",VLOOKUP(J172,'Footnotes list'!$D$9:$E$58,2,FALSE) ) )","v":""},null,null,null,null,{"$f":"IF(TRIM(O172)=\"\", \"\", IF(VLOOKUP(O172,'Footnotes list'!$D$9:$E$58,2,FALSE)=0,\"\",VLOOKUP(O172,'Footnotes list'!$D$9:$E$58,2,FALSE) ) )","v":""},null,null,null,null,{"$f":"IF(TRIM(T172)=\"\", \"\", IF(VLOOKUP(T172,'Footnotes list'!$D$9:$E$58,2,FALSE)=0,\"\",VLOOKUP(T172,'Footnotes list'!$D$9:$E$58,2,FALSE) ) )","v":""},null,null,null,null,{"$f":"IF(TRIM(Y172)=\"\", \"\", IF(VLOOKUP(Y172,'Footnotes list'!$D$9:$E$58,2,FALSE)=0,\"\",VLOOKUP(Y172,'Footnotes list'!$D$9:$E$58,2,FALSE) ) )","v":""},null,null,null,null,{"$f":"IF(TRIM(AD172)=\"\", \"\", IF(VLOOKUP(AD172,'Footnotes list'!$D$9:$E$58,2,FALSE)=0,\"\",VLOOKUP(AD172,'Footnotes list'!$D$9:$E$58,2,FALSE) ) )","v":""},null,null,null,null,{"$f":"IF(TRIM(AI172)=\"\", \"\", IF(VLOOKUP(AI172,'Footnotes list'!$D$9:$E$58,2,FALSE)=0,\"\",VLOOKUP(AI172,'Footnotes list'!$D$9:$E$58,2,FALSE) ) )","v":""},null,null,null,null,{"$f":"IF(TRIM(AN172)=\"\", \"\", IF(VLOOKUP(AN172,'Footnotes list'!$D$9:$E$58,2,FALSE)=0,\"\",VLOOKUP(AN172,'Footnotes list'!$D$9:$E$58,2,FALSE) ) )","v":""},null,null,null,null,{"$f":"IF(TRIM(AS172)=\"\", \"\", IF(VLOOKUP(AS172,'Footnotes list'!$D$9:$E$58,2,FALSE)=0,\"\",VLOOKUP(AS172,'Footnotes list'!$D$9:$E$58,2,FALSE) ) )","v":""},null,null,null,null,{"$f":"IF(TRIM(AX172)=\"\", \"\", IF(VLOOKUP(AX172,'Footnotes list'!$D$9:$E$58,2,FALSE)=0,\"\",VLOOKUP(AX172,'Footnotes list'!$D$9:$E$58,2,FALSE) ) )","v":""},null,null,null,null,{"$f":"IF(TRIM(BC172)=\"\", \"\", IF(VLOOKUP(BC172,'Footnotes list'!$D$9:$E$58,2,FALSE)=0,\"\",VLOOKUP(BC172,'Footnotes list'!$D$9:$E$58,2,FALSE) ) )","v":""},null,null,null,null,{"$f":"IF(TRIM(BH172)=\"\", \"\", IF(VLOOKUP(BH172,'Footnotes list'!$D$9:$E$58,2,FALSE)=0,\"\",VLOOKUP(BH172,'Footnotes list'!$D$9:$E$58,2,FALSE) ) )","v":""},null,null,null,null,{"$f":"IF(TRIM(BM172)=\"\", \"\", IF(VLOOKUP(BM172,'Footnotes list'!$D$9:$E$58,2,FALSE)=0,\"\",VLOOKUP(BM172,'Footnotes list'!$D$9:$E$58,2,FALSE) ) )","v":""},null,null,null,null,{"$f":"IF(TRIM(BR172)=\"\", \"\", IF(VLOOKUP(BR172,'Footnotes list'!$D$9:$E$58,2,FALSE)=0,\"\",VLOOKUP(BR172,'Footnotes list'!$D$9:$E$58,2,FALSE) ) )","v":""},null,null,null,null,{"$f":"IF(TRIM(BW172)=\"\", \"\", IF(VLOOKUP(BW172,'Footnotes list'!$D$9:$E$58,2,FALSE)=0,\"\",VLOOKUP(BW172,'Footnotes list'!$D$9:$E$58,2,FALSE) ) )","v":""},null,null,null,null,{"$f":"IF(TRIM(CB172)=\"\", \"\", IF(VLOOKUP(CB172,'Footnotes list'!$D$9:$E$58,2,FALSE)=0,\"\",VLOOKUP(CB172,'Footnotes list'!$D$9:$E$58,2,FALSE) ) )","v":""},null,null,null,null,{"$f":"IF(TRIM(CG172)=\"\", \"\", IF(VLOOKUP(CG172,'Footnotes list'!$D$9:$E$58,2,FALSE)=0,\"\",VLOOKUP(CG172,'Footnotes list'!$D$9:$E$58,2,FALSE) ) )","v":""},null,null,null,null,{"$f":"IF(TRIM(CL172)=\"\", \"\", IF(VLOOKUP(CL172,'Footnotes list'!$D$9:$E$58,2,FALSE)=0,\"\",VLOOKUP(CL172,'Footnotes list'!$D$9:$E$58,2,FALSE) ) )","v":""},null,null,null,null,{"$f":"IF(TRIM(CQ172)=\"\", \"\", IF(VLOOKUP(CQ172,'Footnotes list'!$D$9:$E$58,2,FALSE)=0,\"\",VLOOKUP(CQ172,'Footnotes list'!$D$9:$E$58,2,FALSE) ) )","v":""},null,null,null,null,{"$f":"IF(TRIM(CV172)=\"\", \"\", IF(VLOOKUP(CV172,'Footnotes list'!$D$9:$E$58,2,FALSE)=0,\"\",VLOOKUP(CV172,'Footnotes list'!$D$9:$E$58,2,FALSE) ) )","v":""},null,null,null,null,{"$f":"IF(TRIM(DA172)=\"\", \"\", IF(VLOOKUP(DA172,'Footnotes list'!$D$9:$E$58,2,FALSE)=0,\"\",VLOOKUP(DA172,'Footnotes list'!$D$9:$E$58,2,FALSE) ) )","v":""},null,null,null,null,{"$f":"IF(TRIM(DF172)=\"\", \"\", IF(VLOOKUP(DF172,'Footnotes list'!$D$9:$E$58,2,FALSE)=0,\"\",VLOOKUP(DF172,'Footnotes list'!$D$9:$E$58,2,FALSE) ) )","v":""},null,null,null,null,{"$f":"IF(TRIM(DK172)=\"\", \"\", IF(VLOOKUP(DK172,'Footnotes list'!$D$9:$E$58,2,FALSE)=0,\"\",VLOOKUP(DK172,'Footnotes list'!$D$9:$E$58,2,FALSE) ) )","v":""},null,null,null,null,{"$f":"IF(TRIM(DP172)=\"\", \"\", IF(VLOOKUP(DP172,'Footnotes list'!$D$9:$E$58,2,FALSE)=0,\"\",VLOOKUP(DP172,'Footnotes list'!$D$9:$E$58,2,FALSE) ) )","v":""},null,null,null,null,{"$f":"IF(TRIM(DU172)=\"\", \"\", IF(VLOOKUP(DU172,'Footnotes list'!$D$9:$E$58,2,FALSE)=0,\"\",VLOOKUP(DU172,'Footnotes list'!$D$9:$E$58,2,FALSE) ) )","v":""},null,null,null,null,{"$f":"IF(TRIM(DZ172)=\"\", \"\", IF(VLOOKUP(DZ172,'Footnotes list'!$D$9:$E$58,2,FALSE)=0,\"\",VLOOKUP(DZ172,'Footnotes list'!$D$9:$E$58,2,FALSE) ) )","v":""},null,null,null,null,{"$f":"IF(TRIM(EE172)=\"\", \"\", IF(VLOOKUP(EE172,'Footnotes list'!$D$9:$E$58,2,FALSE)=0,\"\",VLOOKUP(EE172,'Footnotes list'!$D$9:$E$58,2,FALSE) ) )","v":""},null,null,null,null,{"$f":"IF(TRIM(EJ172)=\"\", \"\", IF(VLOOKUP(EJ172,'Footnotes list'!$D$9:$E$58,2,FALSE)=0,\"\",VLOOKUP(EJ172,'Footnotes list'!$D$9:$E$58,2,FALSE) ) )","v":""},null,null,null,null,{"$f":"IF(TRIM(EO172)=\"\", \"\", IF(VLOOKUP(EO172,'Footnotes list'!$D$9:$E$58,2,FALSE)=0,\"\",VLOOKUP(EO172,'Footnotes list'!$D$9:$E$58,2,FALSE) ) )","v":""},null,null,null,null,{"$f":"IF(TRIM(ET172)=\"\", \"\", IF(VLOOKUP(ET172,'Footnotes list'!$D$9:$E$58,2,FALSE)=0,\"\",VLOOKUP(ET172,'Footnotes list'!$D$9:$E$58,2,FALSE) ) )","v":""},null,null,null,null,{"$f":"IF(TRIM(EY172)=\"\", \"\", IF(VLOOKUP(EY172,'Footnotes list'!$D$9:$E$58,2,FALSE)=0,\"\",VLOOKUP(EY172,'Footnotes list'!$D$9:$E$58,2,FALSE) ) )","v":""}]
[null,null,"F","MKT","market activities, including:",null,null,null,null,null,{"$f":"IF(TRIM(J173)=\"\", \"\", IF(VLOOKUP(J173,'Footnotes list'!$D$9:$E$58,2,FALSE)=0,\"\",VLOOKUP(J173,'Footnotes list'!$D$9:$E$58,2,FALSE) ) )","v":""},null,null,null,null,{"$f":"IF(TRIM(O173)=\"\", \"\", IF(VLOOKUP(O173,'Footnotes list'!$D$9:$E$58,2,FALSE)=0,\"\",VLOOKUP(O173,'Footnotes list'!$D$9:$E$58,2,FALSE) ) )","v":""},null,null,null,null,{"$f":"IF(TRIM(T173)=\"\", \"\", IF(VLOOKUP(T173,'Footnotes list'!$D$9:$E$58,2,FALSE)=0,\"\",VLOOKUP(T173,'Footnotes list'!$D$9:$E$58,2,FALSE) ) )","v":""},null,null,null,null,{"$f":"IF(TRIM(Y173)=\"\", \"\", IF(VLOOKUP(Y173,'Footnotes list'!$D$9:$E$58,2,FALSE)=0,\"\",VLOOKUP(Y173,'Footnotes list'!$D$9:$E$58,2,FALSE) ) )","v":""},null,null,null,null,{"$f":"IF(TRIM(AD173)=\"\", \"\", IF(VLOOKUP(AD173,'Footnotes list'!$D$9:$E$58,2,FALSE)=0,\"\",VLOOKUP(AD173,'Footnotes list'!$D$9:$E$58,2,FALSE) ) )","v":""},null,null,null,null,{"$f":"IF(TRIM(AI173)=\"\", \"\", IF(VLOOKUP(AI173,'Footnotes list'!$D$9:$E$58,2,FALSE)=0,\"\",VLOOKUP(AI173,'Footnotes list'!$D$9:$E$58,2,FALSE) ) )","v":""},null,null,null,null,{"$f":"IF(TRIM(AN173)=\"\", \"\", IF(VLOOKUP(AN173,'Footnotes list'!$D$9:$E$58,2,FALSE)=0,\"\",VLOOKUP(AN173,'Footnotes list'!$D$9:$E$58,2,FALSE) ) )","v":""},null,null,null,null,{"$f":"IF(TRIM(AS173)=\"\", \"\", IF(VLOOKUP(AS173,'Footnotes list'!$D$9:$E$58,2,FALSE)=0,\"\",VLOOKUP(AS173,'Footnotes list'!$D$9:$E$58,2,FALSE) ) )","v":""},null,null,null,null,{"$f":"IF(TRIM(AX173)=\"\", \"\", IF(VLOOKUP(AX173,'Footnotes list'!$D$9:$E$58,2,FALSE)=0,\"\",VLOOKUP(AX173,'Footnotes list'!$D$9:$E$58,2,FALSE) ) )","v":""},null,null,null,null,{"$f":"IF(TRIM(BC173)=\"\", \"\", IF(VLOOKUP(BC173,'Footnotes list'!$D$9:$E$58,2,FALSE)=0,\"\",VLOOKUP(BC173,'Footnotes list'!$D$9:$E$58,2,FALSE) ) )","v":""},null,null,null,null,{"$f":"IF(TRIM(BH173)=\"\", \"\", IF(VLOOKUP(BH173,'Footnotes list'!$D$9:$E$58,2,FALSE)=0,\"\",VLOOKUP(BH173,'Footnotes list'!$D$9:$E$58,2,FALSE) ) )","v":""},null,null,null,null,{"$f":"IF(TRIM(BM173)=\"\", \"\", IF(VLOOKUP(BM173,'Footnotes list'!$D$9:$E$58,2,FALSE)=0,\"\",VLOOKUP(BM173,'Footnotes list'!$D$9:$E$58,2,FALSE) ) )","v":""},null,null,null,null,{"$f":"IF(TRIM(BR173)=\"\", \"\", IF(VLOOKUP(BR173,'Footnotes list'!$D$9:$E$58,2,FALSE)=0,\"\",VLOOKUP(BR173,'Footnotes list'!$D$9:$E$58,2,FALSE) ) )","v":""},null,null,null,null,{"$f":"IF(TRIM(BW173)=\"\", \"\", IF(VLOOKUP(BW173,'Footnotes list'!$D$9:$E$58,2,FALSE)=0,\"\",VLOOKUP(BW173,'Footnotes list'!$D$9:$E$58,2,FALSE) ) )","v":""},null,null,null,null,{"$f":"IF(TRIM(CB173)=\"\", \"\", IF(VLOOKUP(CB173,'Footnotes list'!$D$9:$E$58,2,FALSE)=0,\"\",VLOOKUP(CB173,'Footnotes list'!$D$9:$E$58,2,FALSE) ) )","v":""},null,null,null,null,{"$f":"IF(TRIM(CG173)=\"\", \"\", IF(VLOOKUP(CG173,'Footnotes list'!$D$9:$E$58,2,FALSE)=0,\"\",VLOOKUP(CG173,'Footnotes list'!$D$9:$E$58,2,FALSE) ) )","v":""},null,null,null,null,{"$f":"IF(TRIM(CL173)=\"\", \"\", IF(VLOOKUP(CL173,'Footnotes list'!$D$9:$E$58,2,FALSE)=0,\"\",VLOOKUP(CL173,'Footnotes list'!$D$9:$E$58,2,FALSE) ) )","v":""},null,null,null,null,{"$f":"IF(TRIM(CQ173)=\"\", \"\", IF(VLOOKUP(CQ173,'Footnotes list'!$D$9:$E$58,2,FALSE)=0,\"\",VLOOKUP(CQ173,'Footnotes list'!$D$9:$E$58,2,FALSE) ) )","v":""},null,null,null,null,{"$f":"IF(TRIM(CV173)=\"\", \"\", IF(VLOOKUP(CV173,'Footnotes list'!$D$9:$E$58,2,FALSE)=0,\"\",VLOOKUP(CV173,'Footnotes list'!$D$9:$E$58,2,FALSE) ) )","v":""},null,null,null,null,{"$f":"IF(TRIM(DA173)=\"\", \"\", IF(VLOOKUP(DA173,'Footnotes list'!$D$9:$E$58,2,FALSE)=0,\"\",VLOOKUP(DA173,'Footnotes list'!$D$9:$E$58,2,FALSE) ) )","v":""},null,null,null,null,{"$f":"IF(TRIM(DF173)=\"\", \"\", IF(VLOOKUP(DF173,'Footnotes list'!$D$9:$E$58,2,FALSE)=0,\"\",VLOOKUP(DF173,'Footnotes list'!$D$9:$E$58,2,FALSE) ) )","v":""},null,null,null,null,{"$f":"IF(TRIM(DK173)=\"\", \"\", IF(VLOOKUP(DK173,'Footnotes list'!$D$9:$E$58,2,FALSE)=0,\"\",VLOOKUP(DK173,'Footnotes list'!$D$9:$E$58,2,FALSE) ) )","v":""},null,null,null,null,{"$f":"IF(TRIM(DP173)=\"\", \"\", IF(VLOOKUP(DP173,'Footnotes list'!$D$9:$E$58,2,FALSE)=0,\"\",VLOOKUP(DP173,'Footnotes list'!$D$9:$E$58,2,FALSE) ) )","v":""},null,null,null,null,{"$f":"IF(TRIM(DU173)=\"\", \"\", IF(VLOOKUP(DU173,'Footnotes list'!$D$9:$E$58,2,FALSE)=0,\"\",VLOOKUP(DU173,'Footnotes list'!$D$9:$E$58,2,FALSE) ) )","v":""},null,null,null,null,{"$f":"IF(TRIM(DZ173)=\"\", \"\", IF(VLOOKUP(DZ173,'Footnotes list'!$D$9:$E$58,2,FALSE)=0,\"\",VLOOKUP(DZ173,'Footnotes list'!$D$9:$E$58,2,FALSE) ) )","v":""},null,null,null,null,{"$f":"IF(TRIM(EE173)=\"\", \"\", IF(VLOOKUP(EE173,'Footnotes list'!$D$9:$E$58,2,FALSE)=0,\"\",VLOOKUP(EE173,'Footnotes list'!$D$9:$E$58,2,FALSE) ) )","v":""},null,null,null,null,{"$f":"IF(TRIM(EJ173)=\"\", \"\", IF(VLOOKUP(EJ173,'Footnotes list'!$D$9:$E$58,2,FALSE)=0,\"\",VLOOKUP(EJ173,'Footnotes list'!$D$9:$E$58,2,FALSE) ) )","v":""},null,null,null,null,{"$f":"IF(TRIM(EO173)=\"\", \"\", IF(VLOOKUP(EO173,'Footnotes list'!$D$9:$E$58,2,FALSE)=0,\"\",VLOOKUP(EO173,'Footnotes list'!$D$9:$E$58,2,FALSE) ) )","v":""},null,null,null,null,{"$f":"IF(TRIM(ET173)=\"\", \"\", IF(VLOOKUP(ET173,'Footnotes list'!$D$9:$E$58,2,FALSE)=0,\"\",VLOOKUP(ET173,'Footnotes list'!$D$9:$E$58,2,FALSE) ) )","v":""},null,null,null,null,{"$f":"IF(TRIM(EY173)=\"\", \"\", IF(VLOOKUP(EY173,'Footnotes list'!$D$9:$E$58,2,FALSE)=0,\"\",VLOOKUP(EY173,'Footnotes list'!$D$9:$E$58,2,FALSE) ) )","v":""}]
[null,null,"F","ES_CS","environmental specific services",null,null,null,null,null,{"$f":"IF(TRIM(J174)=\"\", \"\", IF(VLOOKUP(J174,'Footnotes list'!$D$9:$E$58,2,FALSE)=0,\"\",VLOOKUP(J174,'Footnotes list'!$D$9:$E$58,2,FALSE) ) )","v":""},null,null,null,null,{"$f":"IF(TRIM(O174)=\"\", \"\", IF(VLOOKUP(O174,'Footnotes list'!$D$9:$E$58,2,FALSE)=0,\"\",VLOOKUP(O174,'Footnotes list'!$D$9:$E$58,2,FALSE) ) )","v":""},null,null,null,null,{"$f":"IF(TRIM(T174)=\"\", \"\", IF(VLOOKUP(T174,'Footnotes list'!$D$9:$E$58,2,FALSE)=0,\"\",VLOOKUP(T174,'Footnotes list'!$D$9:$E$58,2,FALSE) ) )","v":""},null,null,null,null,{"$f":"IF(TRIM(Y174)=\"\", \"\", IF(VLOOKUP(Y174,'Footnotes list'!$D$9:$E$58,2,FALSE)=0,\"\",VLOOKUP(Y174,'Footnotes list'!$D$9:$E$58,2,FALSE) ) )","v":""},null,null,null,null,{"$f":"IF(TRIM(AD174)=\"\", \"\", IF(VLOOKUP(AD174,'Footnotes list'!$D$9:$E$58,2,FALSE)=0,\"\",VLOOKUP(AD174,'Footnotes list'!$D$9:$E$58,2,FALSE) ) )","v":""},null,null,null,null,{"$f":"IF(TRIM(AI174)=\"\", \"\", IF(VLOOKUP(AI174,'Footnotes list'!$D$9:$E$58,2,FALSE)=0,\"\",VLOOKUP(AI174,'Footnotes list'!$D$9:$E$58,2,FALSE) ) )","v":""},null,null,null,null,{"$f":"IF(TRIM(AN174)=\"\", \"\", IF(VLOOKUP(AN174,'Footnotes list'!$D$9:$E$58,2,FALSE)=0,\"\",VLOOKUP(AN174,'Footnotes list'!$D$9:$E$58,2,FALSE) ) )","v":""},null,null,null,null,{"$f":"IF(TRIM(AS174)=\"\", \"\", IF(VLOOKUP(AS174,'Footnotes list'!$D$9:$E$58,2,FALSE)=0,\"\",VLOOKUP(AS174,'Footnotes list'!$D$9:$E$58,2,FALSE) ) )","v":""},null,null,null,null,{"$f":"IF(TRIM(AX174)=\"\", \"\", IF(VLOOKUP(AX174,'Footnotes list'!$D$9:$E$58,2,FALSE)=0,\"\",VLOOKUP(AX174,'Footnotes list'!$D$9:$E$58,2,FALSE) ) )","v":""},null,null,null,null,{"$f":"IF(TRIM(BC174)=\"\", \"\", IF(VLOOKUP(BC174,'Footnotes list'!$D$9:$E$58,2,FALSE)=0,\"\",VLOOKUP(BC174,'Footnotes list'!$D$9:$E$58,2,FALSE) ) )","v":""},null,null,null,null,{"$f":"IF(TRIM(BH174)=\"\", \"\", IF(VLOOKUP(BH174,'Footnotes list'!$D$9:$E$58,2,FALSE)=0,\"\",VLOOKUP(BH174,'Footnotes list'!$D$9:$E$58,2,FALSE) ) )","v":""},null,null,null,null,{"$f":"IF(TRIM(BM174)=\"\", \"\", IF(VLOOKUP(BM174,'Footnotes list'!$D$9:$E$58,2,FALSE)=0,\"\",VLOOKUP(BM174,'Footnotes list'!$D$9:$E$58,2,FALSE) ) )","v":""},null,null,null,null,{"$f":"IF(TRIM(BR174)=\"\", \"\", IF(VLOOKUP(BR174,'Footnotes list'!$D$9:$E$58,2,FALSE)=0,\"\",VLOOKUP(BR174,'Footnotes list'!$D$9:$E$58,2,FALSE) ) )","v":""},null,null,null,null,{"$f":"IF(TRIM(BW174)=\"\", \"\", IF(VLOOKUP(BW174,'Footnotes list'!$D$9:$E$58,2,FALSE)=0,\"\",VLOOKUP(BW174,'Footnotes list'!$D$9:$E$58,2,FALSE) ) )","v":""},null,null,null,null,{"$f":"IF(TRIM(CB174)=\"\", \"\", IF(VLOOKUP(CB174,'Footnotes list'!$D$9:$E$58,2,FALSE)=0,\"\",VLOOKUP(CB174,'Footnotes list'!$D$9:$E$58,2,FALSE) ) )","v":""},null,null,null,null,{"$f":"IF(TRIM(CG174)=\"\", \"\", IF(VLOOKUP(CG174,'Footnotes list'!$D$9:$E$58,2,FALSE)=0,\"\",VLOOKUP(CG174,'Footnotes list'!$D$9:$E$58,2,FALSE) ) )","v":""},null,null,null,null,{"$f":"IF(TRIM(CL174)=\"\", \"\", IF(VLOOKUP(CL174,'Footnotes list'!$D$9:$E$58,2,FALSE)=0,\"\",VLOOKUP(CL174,'Footnotes list'!$D$9:$E$58,2,FALSE) ) )","v":""},null,null,null,null,{"$f":"IF(TRIM(CQ174)=\"\", \"\", IF(VLOOKUP(CQ174,'Footnotes list'!$D$9:$E$58,2,FALSE)=0,\"\",VLOOKUP(CQ174,'Footnotes list'!$D$9:$E$58,2,FALSE) ) )","v":""},null,null,null,null,{"$f":"IF(TRIM(CV174)=\"\", \"\", IF(VLOOKUP(CV174,'Footnotes list'!$D$9:$E$58,2,FALSE)=0,\"\",VLOOKUP(CV174,'Footnotes list'!$D$9:$E$58,2,FALSE) ) )","v":""},null,null,null,null,{"$f":"IF(TRIM(DA174)=\"\", \"\", IF(VLOOKUP(DA174,'Footnotes list'!$D$9:$E$58,2,FALSE)=0,\"\",VLOOKUP(DA174,'Footnotes list'!$D$9:$E$58,2,FALSE) ) )","v":""},null,null,null,null,{"$f":"IF(TRIM(DF174)=\"\", \"\", IF(VLOOKUP(DF174,'Footnotes list'!$D$9:$E$58,2,FALSE)=0,\"\",VLOOKUP(DF174,'Footnotes list'!$D$9:$E$58,2,FALSE) ) )","v":""},null,null,null,null,{"$f":"IF(TRIM(DK174)=\"\", \"\", IF(VLOOKUP(DK174,'Footnotes list'!$D$9:$E$58,2,FALSE)=0,\"\",VLOOKUP(DK174,'Footnotes list'!$D$9:$E$58,2,FALSE) ) )","v":""},null,null,null,null,{"$f":"IF(TRIM(DP174)=\"\", \"\", IF(VLOOKUP(DP174,'Footnotes list'!$D$9:$E$58,2,FALSE)=0,\"\",VLOOKUP(DP174,'Footnotes list'!$D$9:$E$58,2,FALSE) ) )","v":""},null,null,null,null,{"$f":"IF(TRIM(DU174)=\"\", \"\", IF(VLOOKUP(DU174,'Footnotes list'!$D$9:$E$58,2,FALSE)=0,\"\",VLOOKUP(DU174,'Footnotes list'!$D$9:$E$58,2,FALSE) ) )","v":""},null,null,null,null,{"$f":"IF(TRIM(DZ174)=\"\", \"\", IF(VLOOKUP(DZ174,'Footnotes list'!$D$9:$E$58,2,FALSE)=0,\"\",VLOOKUP(DZ174,'Footnotes list'!$D$9:$E$58,2,FALSE) ) )","v":""},null,null,null,null,{"$f":"IF(TRIM(EE174)=\"\", \"\", IF(VLOOKUP(EE174,'Footnotes list'!$D$9:$E$58,2,FALSE)=0,\"\",VLOOKUP(EE174,'Footnotes list'!$D$9:$E$58,2,FALSE) ) )","v":""},null,null,null,null,{"$f":"IF(TRIM(EJ174)=\"\", \"\", IF(VLOOKUP(EJ174,'Footnotes list'!$D$9:$E$58,2,FALSE)=0,\"\",VLOOKUP(EJ174,'Footnotes list'!$D$9:$E$58,2,FALSE) ) )","v":""},null,null,null,null,{"$f":"IF(TRIM(EO174)=\"\", \"\", IF(VLOOKUP(EO174,'Footnotes list'!$D$9:$E$58,2,FALSE)=0,\"\",VLOOKUP(EO174,'Footnotes list'!$D$9:$E$58,2,FALSE) ) )","v":""},null,null,null,null,{"$f":"IF(TRIM(ET174)=\"\", \"\", IF(VLOOKUP(ET174,'Footnotes list'!$D$9:$E$58,2,FALSE)=0,\"\",VLOOKUP(ET174,'Footnotes list'!$D$9:$E$58,2,FALSE) ) )","v":""},null,null,null,null,{"$f":"IF(TRIM(EY174)=\"\", \"\", IF(VLOOKUP(EY174,'Footnotes list'!$D$9:$E$58,2,FALSE)=0,\"\",VLOOKUP(EY174,'Footnotes list'!$D$9:$E$58,2,FALSE) ) )","v":""}]
[null,null,"F","C_REP","cleaner and resource efficient products",null,null,null,null,null,{"$f":"IF(TRIM(J175)=\"\", \"\", IF(VLOOKUP(J175,'Footnotes list'!$D$9:$E$58,2,FALSE)=0,\"\",VLOOKUP(J175,'Footnotes list'!$D$9:$E$58,2,FALSE) ) )","v":""},null,null,null,null,{"$f":"IF(TRIM(O175)=\"\", \"\", IF(VLOOKUP(O175,'Footnotes list'!$D$9:$E$58,2,FALSE)=0,\"\",VLOOKUP(O175,'Footnotes list'!$D$9:$E$58,2,FALSE) ) )","v":""},null,null,null,null,{"$f":"IF(TRIM(T175)=\"\", \"\", IF(VLOOKUP(T175,'Footnotes list'!$D$9:$E$58,2,FALSE)=0,\"\",VLOOKUP(T175,'Footnotes list'!$D$9:$E$58,2,FALSE) ) )","v":""},null,null,null,null,{"$f":"IF(TRIM(Y175)=\"\", \"\", IF(VLOOKUP(Y175,'Footnotes list'!$D$9:$E$58,2,FALSE)=0,\"\",VLOOKUP(Y175,'Footnotes list'!$D$9:$E$58,2,FALSE) ) )","v":""},null,null,null,null,{"$f":"IF(TRIM(AD175)=\"\", \"\", IF(VLOOKUP(AD175,'Footnotes list'!$D$9:$E$58,2,FALSE)=0,\"\",VLOOKUP(AD175,'Footnotes list'!$D$9:$E$58,2,FALSE) ) )","v":""},null,null,null,null,{"$f":"IF(TRIM(AI175)=\"\", \"\", IF(VLOOKUP(AI175,'Footnotes list'!$D$9:$E$58,2,FALSE)=0,\"\",VLOOKUP(AI175,'Footnotes list'!$D$9:$E$58,2,FALSE) ) )","v":""},null,null,null,null,{"$f":"IF(TRIM(AN175)=\"\", \"\", IF(VLOOKUP(AN175,'Footnotes list'!$D$9:$E$58,2,FALSE)=0,\"\",VLOOKUP(AN175,'Footnotes list'!$D$9:$E$58,2,FALSE) ) )","v":""},null,null,null,null,{"$f":"IF(TRIM(AS175)=\"\", \"\", IF(VLOOKUP(AS175,'Footnotes list'!$D$9:$E$58,2,FALSE)=0,\"\",VLOOKUP(AS175,'Footnotes list'!$D$9:$E$58,2,FALSE) ) )","v":""},null,null,null,null,{"$f":"IF(TRIM(AX175)=\"\", \"\", IF(VLOOKUP(AX175,'Footnotes list'!$D$9:$E$58,2,FALSE)=0,\"\",VLOOKUP(AX175,'Footnotes list'!$D$9:$E$58,2,FALSE) ) )","v":""},null,null,null,null,{"$f":"IF(TRIM(BC175)=\"\", \"\", IF(VLOOKUP(BC175,'Footnotes list'!$D$9:$E$58,2,FALSE)=0,\"\",VLOOKUP(BC175,'Footnotes list'!$D$9:$E$58,2,FALSE) ) )","v":""},null,null,null,null,{"$f":"IF(TRIM(BH175)=\"\", \"\", IF(VLOOKUP(BH175,'Footnotes list'!$D$9:$E$58,2,FALSE)=0,\"\",VLOOKUP(BH175,'Footnotes list'!$D$9:$E$58,2,FALSE) ) )","v":""},null,null,null,null,{"$f":"IF(TRIM(BM175)=\"\", \"\", IF(VLOOKUP(BM175,'Footnotes list'!$D$9:$E$58,2,FALSE)=0,\"\",VLOOKUP(BM175,'Footnotes list'!$D$9:$E$58,2,FALSE) ) )","v":""},null,null,null,null,{"$f":"IF(TRIM(BR175)=\"\", \"\", IF(VLOOKUP(BR175,'Footnotes list'!$D$9:$E$58,2,FALSE)=0,\"\",VLOOKUP(BR175,'Footnotes list'!$D$9:$E$58,2,FALSE) ) )","v":""},null,null,null,null,{"$f":"IF(TRIM(BW175)=\"\", \"\", IF(VLOOKUP(BW175,'Footnotes list'!$D$9:$E$58,2,FALSE)=0,\"\",VLOOKUP(BW175,'Footnotes list'!$D$9:$E$58,2,FALSE) ) )","v":""},null,null,null,null,{"$f":"IF(TRIM(CB175)=\"\", \"\", IF(VLOOKUP(CB175,'Footnotes list'!$D$9:$E$58,2,FALSE)=0,\"\",VLOOKUP(CB175,'Footnotes list'!$D$9:$E$58,2,FALSE) ) )","v":""},null,null,null,null,{"$f":"IF(TRIM(CG175)=\"\", \"\", IF(VLOOKUP(CG175,'Footnotes list'!$D$9:$E$58,2,FALSE)=0,\"\",VLOOKUP(CG175,'Footnotes list'!$D$9:$E$58,2,FALSE) ) )","v":""},null,null,null,null,{"$f":"IF(TRIM(CL175)=\"\", \"\", IF(VLOOKUP(CL175,'Footnotes list'!$D$9:$E$58,2,FALSE)=0,\"\",VLOOKUP(CL175,'Footnotes list'!$D$9:$E$58,2,FALSE) ) )","v":""},null,null,null,null,{"$f":"IF(TRIM(CQ175)=\"\", \"\", IF(VLOOKUP(CQ175,'Footnotes list'!$D$9:$E$58,2,FALSE)=0,\"\",VLOOKUP(CQ175,'Footnotes list'!$D$9:$E$58,2,FALSE) ) )","v":""},null,null,null,null,{"$f":"IF(TRIM(CV175)=\"\", \"\", IF(VLOOKUP(CV175,'Footnotes list'!$D$9:$E$58,2,FALSE)=0,\"\",VLOOKUP(CV175,'Footnotes list'!$D$9:$E$58,2,FALSE) ) )","v":""},null,null,null,null,{"$f":"IF(TRIM(DA175)=\"\", \"\", IF(VLOOKUP(DA175,'Footnotes list'!$D$9:$E$58,2,FALSE)=0,\"\",VLOOKUP(DA175,'Footnotes list'!$D$9:$E$58,2,FALSE) ) )","v":""},null,null,null,null,{"$f":"IF(TRIM(DF175)=\"\", \"\", IF(VLOOKUP(DF175,'Footnotes list'!$D$9:$E$58,2,FALSE)=0,\"\",VLOOKUP(DF175,'Footnotes list'!$D$9:$E$58,2,FALSE) ) )","v":""},null,null,null,null,{"$f":"IF(TRIM(DK175)=\"\", \"\", IF(VLOOKUP(DK175,'Footnotes list'!$D$9:$E$58,2,FALSE)=0,\"\",VLOOKUP(DK175,'Footnotes list'!$D$9:$E$58,2,FALSE) ) )","v":""},null,null,null,null,{"$f":"IF(TRIM(DP175)=\"\", \"\", IF(VLOOKUP(DP175,'Footnotes list'!$D$9:$E$58,2,FALSE)=0,\"\",VLOOKUP(DP175,'Footnotes list'!$D$9:$E$58,2,FALSE) ) )","v":""},null,null,null,null,{"$f":"IF(TRIM(DU175)=\"\", \"\", IF(VLOOKUP(DU175,'Footnotes list'!$D$9:$E$58,2,FALSE)=0,\"\",VLOOKUP(DU175,'Footnotes list'!$D$9:$E$58,2,FALSE) ) )","v":""},null,null,null,null,{"$f":"IF(TRIM(DZ175)=\"\", \"\", IF(VLOOKUP(DZ175,'Footnotes list'!$D$9:$E$58,2,FALSE)=0,\"\",VLOOKUP(DZ175,'Footnotes list'!$D$9:$E$58,2,FALSE) ) )","v":""},null,null,null,null,{"$f":"IF(TRIM(EE175)=\"\", \"\", IF(VLOOKUP(EE175,'Footnotes list'!$D$9:$E$58,2,FALSE)=0,\"\",VLOOKUP(EE175,'Footnotes list'!$D$9:$E$58,2,FALSE) ) )","v":""},null,null,null,null,{"$f":"IF(TRIM(EJ175)=\"\", \"\", IF(VLOOKUP(EJ175,'Footnotes list'!$D$9:$E$58,2,FALSE)=0,\"\",VLOOKUP(EJ175,'Footnotes list'!$D$9:$E$58,2,FALSE) ) )","v":""},null,null,null,null,{"$f":"IF(TRIM(EO175)=\"\", \"\", IF(VLOOKUP(EO175,'Footnotes list'!$D$9:$E$58,2,FALSE)=0,\"\",VLOOKUP(EO175,'Footnotes list'!$D$9:$E$58,2,FALSE) ) )","v":""},null,null,null,null,{"$f":"IF(TRIM(ET175)=\"\", \"\", IF(VLOOKUP(ET175,'Footnotes list'!$D$9:$E$58,2,FALSE)=0,\"\",VLOOKUP(ET175,'Footnotes list'!$D$9:$E$58,2,FALSE) ) )","v":""},null,null,null,null,{"$f":"IF(TRIM(EY175)=\"\", \"\", IF(VLOOKUP(EY175,'Footnotes list'!$D$9:$E$58,2,FALSE)=0,\"\",VLOOKUP(EY175,'Footnotes list'!$D$9:$E$58,2,FALSE) ) )","v":""}]
[null,null,"G","TOT_EGSS","Total G - Wholesale and retail trade, of which:",null,null,null,null,null,{"$f":"IF(TRIM(J176)=\"\", \"\", IF(VLOOKUP(J176,'Footnotes list'!$D$9:$E$58,2,FALSE)=0,\"\",VLOOKUP(J176,'Footnotes list'!$D$9:$E$58,2,FALSE) ) )","v":""},null,null,null,null,{"$f":"IF(TRIM(O176)=\"\", \"\", IF(VLOOKUP(O176,'Footnotes list'!$D$9:$E$58,2,FALSE)=0,\"\",VLOOKUP(O176,'Footnotes list'!$D$9:$E$58,2,FALSE) ) )","v":""},null,null,null,null,{"$f":"IF(TRIM(T176)=\"\", \"\", IF(VLOOKUP(T176,'Footnotes list'!$D$9:$E$58,2,FALSE)=0,\"\",VLOOKUP(T176,'Footnotes list'!$D$9:$E$58,2,FALSE) ) )","v":""},null,null,null,null,{"$f":"IF(TRIM(Y176)=\"\", \"\", IF(VLOOKUP(Y176,'Footnotes list'!$D$9:$E$58,2,FALSE)=0,\"\",VLOOKUP(Y176,'Footnotes list'!$D$9:$E$58,2,FALSE) ) )","v":""},null,null,null,null,{"$f":"IF(TRIM(AD176)=\"\", \"\", IF(VLOOKUP(AD176,'Footnotes list'!$D$9:$E$58,2,FALSE)=0,\"\",VLOOKUP(AD176,'Footnotes list'!$D$9:$E$58,2,FALSE) ) )","v":""},null,null,null,null,{"$f":"IF(TRIM(AI176)=\"\", \"\", IF(VLOOKUP(AI176,'Footnotes list'!$D$9:$E$58,2,FALSE)=0,\"\",VLOOKUP(AI176,'Footnotes list'!$D$9:$E$58,2,FALSE) ) )","v":""},null,null,null,null,{"$f":"IF(TRIM(AN176)=\"\", \"\", IF(VLOOKUP(AN176,'Footnotes list'!$D$9:$E$58,2,FALSE)=0,\"\",VLOOKUP(AN176,'Footnotes list'!$D$9:$E$58,2,FALSE) ) )","v":""},null,null,null,null,{"$f":"IF(TRIM(AS176)=\"\", \"\", IF(VLOOKUP(AS176,'Footnotes list'!$D$9:$E$58,2,FALSE)=0,\"\",VLOOKUP(AS176,'Footnotes list'!$D$9:$E$58,2,FALSE) ) )","v":""},null,null,null,null,{"$f":"IF(TRIM(AX176)=\"\", \"\", IF(VLOOKUP(AX176,'Footnotes list'!$D$9:$E$58,2,FALSE)=0,\"\",VLOOKUP(AX176,'Footnotes list'!$D$9:$E$58,2,FALSE) ) )","v":""},null,null,null,null,{"$f":"IF(TRIM(BC176)=\"\", \"\", IF(VLOOKUP(BC176,'Footnotes list'!$D$9:$E$58,2,FALSE)=0,\"\",VLOOKUP(BC176,'Footnotes list'!$D$9:$E$58,2,FALSE) ) )","v":""},null,null,null,null,{"$f":"IF(TRIM(BH176)=\"\", \"\", IF(VLOOKUP(BH176,'Footnotes list'!$D$9:$E$58,2,FALSE)=0,\"\",VLOOKUP(BH176,'Footnotes list'!$D$9:$E$58,2,FALSE) ) )","v":""},null,null,null,null,{"$f":"IF(TRIM(BM176)=\"\", \"\", IF(VLOOKUP(BM176,'Footnotes list'!$D$9:$E$58,2,FALSE)=0,\"\",VLOOKUP(BM176,'Footnotes list'!$D$9:$E$58,2,FALSE) ) )","v":""},null,null,null,null,{"$f":"IF(TRIM(BR176)=\"\", \"\", IF(VLOOKUP(BR176,'Footnotes list'!$D$9:$E$58,2,FALSE)=0,\"\",VLOOKUP(BR176,'Footnotes list'!$D$9:$E$58,2,FALSE) ) )","v":""},null,null,null,null,{"$f":"IF(TRIM(BW176)=\"\", \"\", IF(VLOOKUP(BW176,'Footnotes list'!$D$9:$E$58,2,FALSE)=0,\"\",VLOOKUP(BW176,'Footnotes list'!$D$9:$E$58,2,FALSE) ) )","v":""},null,null,null,null,{"$f":"IF(TRIM(CB176)=\"\", \"\", IF(VLOOKUP(CB176,'Footnotes list'!$D$9:$E$58,2,FALSE)=0,\"\",VLOOKUP(CB176,'Footnotes list'!$D$9:$E$58,2,FALSE) ) )","v":""},null,null,null,null,{"$f":"IF(TRIM(CG176)=\"\", \"\", IF(VLOOKUP(CG176,'Footnotes list'!$D$9:$E$58,2,FALSE)=0,\"\",VLOOKUP(CG176,'Footnotes list'!$D$9:$E$58,2,FALSE) ) )","v":""},null,null,null,null,{"$f":"IF(TRIM(CL176)=\"\", \"\", IF(VLOOKUP(CL176,'Footnotes list'!$D$9:$E$58,2,FALSE)=0,\"\",VLOOKUP(CL176,'Footnotes list'!$D$9:$E$58,2,FALSE) ) )","v":""},null,null,null,null,{"$f":"IF(TRIM(CQ176)=\"\", \"\", IF(VLOOKUP(CQ176,'Footnotes list'!$D$9:$E$58,2,FALSE)=0,\"\",VLOOKUP(CQ176,'Footnotes list'!$D$9:$E$58,2,FALSE) ) )","v":""},null,null,null,null,{"$f":"IF(TRIM(CV176)=\"\", \"\", IF(VLOOKUP(CV176,'Footnotes list'!$D$9:$E$58,2,FALSE)=0,\"\",VLOOKUP(CV176,'Footnotes list'!$D$9:$E$58,2,FALSE) ) )","v":""},null,null,null,null,{"$f":"IF(TRIM(DA176)=\"\", \"\", IF(VLOOKUP(DA176,'Footnotes list'!$D$9:$E$58,2,FALSE)=0,\"\",VLOOKUP(DA176,'Footnotes list'!$D$9:$E$58,2,FALSE) ) )","v":""},null,null,null,null,{"$f":"IF(TRIM(DF176)=\"\", \"\", IF(VLOOKUP(DF176,'Footnotes list'!$D$9:$E$58,2,FALSE)=0,\"\",VLOOKUP(DF176,'Footnotes list'!$D$9:$E$58,2,FALSE) ) )","v":""},null,null,null,null,{"$f":"IF(TRIM(DK176)=\"\", \"\", IF(VLOOKUP(DK176,'Footnotes list'!$D$9:$E$58,2,FALSE)=0,\"\",VLOOKUP(DK176,'Footnotes list'!$D$9:$E$58,2,FALSE) ) )","v":""},null,null,null,null,{"$f":"IF(TRIM(DP176)=\"\", \"\", IF(VLOOKUP(DP176,'Footnotes list'!$D$9:$E$58,2,FALSE)=0,\"\",VLOOKUP(DP176,'Footnotes list'!$D$9:$E$58,2,FALSE) ) )","v":""},null,null,null,null,{"$f":"IF(TRIM(DU176)=\"\", \"\", IF(VLOOKUP(DU176,'Footnotes list'!$D$9:$E$58,2,FALSE)=0,\"\",VLOOKUP(DU176,'Footnotes list'!$D$9:$E$58,2,FALSE) ) )","v":""},null,null,null,null,{"$f":"IF(TRIM(DZ176)=\"\", \"\", IF(VLOOKUP(DZ176,'Footnotes list'!$D$9:$E$58,2,FALSE)=0,\"\",VLOOKUP(DZ176,'Footnotes list'!$D$9:$E$58,2,FALSE) ) )","v":""},null,null,null,null,{"$f":"IF(TRIM(EE176)=\"\", \"\", IF(VLOOKUP(EE176,'Footnotes list'!$D$9:$E$58,2,FALSE)=0,\"\",VLOOKUP(EE176,'Footnotes list'!$D$9:$E$58,2,FALSE) ) )","v":""},null,null,null,null,{"$f":"IF(TRIM(EJ176)=\"\", \"\", IF(VLOOKUP(EJ176,'Footnotes list'!$D$9:$E$58,2,FALSE)=0,\"\",VLOOKUP(EJ176,'Footnotes list'!$D$9:$E$58,2,FALSE) ) )","v":""},null,null,null,null,{"$f":"IF(TRIM(EO176)=\"\", \"\", IF(VLOOKUP(EO176,'Footnotes list'!$D$9:$E$58,2,FALSE)=0,\"\",VLOOKUP(EO176,'Footnotes list'!$D$9:$E$58,2,FALSE) ) )","v":""},null,null,null,null,{"$f":"IF(TRIM(ET176)=\"\", \"\", IF(VLOOKUP(ET176,'Footnotes list'!$D$9:$E$58,2,FALSE)=0,\"\",VLOOKUP(ET176,'Footnotes list'!$D$9:$E$58,2,FALSE) ) )","v":""},null,null,null,null,{"$f":"IF(TRIM(EY176)=\"\", \"\", IF(VLOOKUP(EY176,'Footnotes list'!$D$9:$E$58,2,FALSE)=0,\"\",VLOOKUP(EY176,'Footnotes list'!$D$9:$E$58,2,FALSE) ) )","v":""}]
[null,null,"G","ANC","ancillary activities",null,null,null,null,null,{"$f":"IF(TRIM(J177)=\"\", \"\", IF(VLOOKUP(J177,'Footnotes list'!$D$9:$E$58,2,FALSE)=0,\"\",VLOOKUP(J177,'Footnotes list'!$D$9:$E$58,2,FALSE) ) )","v":""},null,null,null,null,{"$f":"IF(TRIM(O177)=\"\", \"\", IF(VLOOKUP(O177,'Footnotes list'!$D$9:$E$58,2,FALSE)=0,\"\",VLOOKUP(O177,'Footnotes list'!$D$9:$E$58,2,FALSE) ) )","v":""},null,null,null,null,{"$f":"IF(TRIM(T177)=\"\", \"\", IF(VLOOKUP(T177,'Footnotes list'!$D$9:$E$58,2,FALSE)=0,\"\",VLOOKUP(T177,'Footnotes list'!$D$9:$E$58,2,FALSE) ) )","v":""},null,null,null,null,{"$f":"IF(TRIM(Y177)=\"\", \"\", IF(VLOOKUP(Y177,'Footnotes list'!$D$9:$E$58,2,FALSE)=0,\"\",VLOOKUP(Y177,'Footnotes list'!$D$9:$E$58,2,FALSE) ) )","v":""},null,null,null,null,{"$f":"IF(TRIM(AD177)=\"\", \"\", IF(VLOOKUP(AD177,'Footnotes list'!$D$9:$E$58,2,FALSE)=0,\"\",VLOOKUP(AD177,'Footnotes list'!$D$9:$E$58,2,FALSE) ) )","v":""},null,null,null,null,{"$f":"IF(TRIM(AI177)=\"\", \"\", IF(VLOOKUP(AI177,'Footnotes list'!$D$9:$E$58,2,FALSE)=0,\"\",VLOOKUP(AI177,'Footnotes list'!$D$9:$E$58,2,FALSE) ) )","v":""},null,null,null,null,{"$f":"IF(TRIM(AN177)=\"\", \"\", IF(VLOOKUP(AN177,'Footnotes list'!$D$9:$E$58,2,FALSE)=0,\"\",VLOOKUP(AN177,'Footnotes list'!$D$9:$E$58,2,FALSE) ) )","v":""},null,null,null,null,{"$f":"IF(TRIM(AS177)=\"\", \"\", IF(VLOOKUP(AS177,'Footnotes list'!$D$9:$E$58,2,FALSE)=0,\"\",VLOOKUP(AS177,'Footnotes list'!$D$9:$E$58,2,FALSE) ) )","v":""},null,null,null,null,{"$f":"IF(TRIM(AX177)=\"\", \"\", IF(VLOOKUP(AX177,'Footnotes list'!$D$9:$E$58,2,FALSE)=0,\"\",VLOOKUP(AX177,'Footnotes list'!$D$9:$E$58,2,FALSE) ) )","v":""},null,null,null,null,{"$f":"IF(TRIM(BC177)=\"\", \"\", IF(VLOOKUP(BC177,'Footnotes list'!$D$9:$E$58,2,FALSE)=0,\"\",VLOOKUP(BC177,'Footnotes list'!$D$9:$E$58,2,FALSE) ) )","v":""},null,null,null,null,{"$f":"IF(TRIM(BH177)=\"\", \"\", IF(VLOOKUP(BH177,'Footnotes list'!$D$9:$E$58,2,FALSE)=0,\"\",VLOOKUP(BH177,'Footnotes list'!$D$9:$E$58,2,FALSE) ) )","v":""},null,null,null,null,{"$f":"IF(TRIM(BM177)=\"\", \"\", IF(VLOOKUP(BM177,'Footnotes list'!$D$9:$E$58,2,FALSE)=0,\"\",VLOOKUP(BM177,'Footnotes list'!$D$9:$E$58,2,FALSE) ) )","v":""},null,null,null,null,{"$f":"IF(TRIM(BR177)=\"\", \"\", IF(VLOOKUP(BR177,'Footnotes list'!$D$9:$E$58,2,FALSE)=0,\"\",VLOOKUP(BR177,'Footnotes list'!$D$9:$E$58,2,FALSE) ) )","v":""},null,null,null,null,{"$f":"IF(TRIM(BW177)=\"\", \"\", IF(VLOOKUP(BW177,'Footnotes list'!$D$9:$E$58,2,FALSE)=0,\"\",VLOOKUP(BW177,'Footnotes list'!$D$9:$E$58,2,FALSE) ) )","v":""},null,null,null,null,{"$f":"IF(TRIM(CB177)=\"\", \"\", IF(VLOOKUP(CB177,'Footnotes list'!$D$9:$E$58,2,FALSE)=0,\"\",VLOOKUP(CB177,'Footnotes list'!$D$9:$E$58,2,FALSE) ) )","v":""},null,null,null,null,{"$f":"IF(TRIM(CG177)=\"\", \"\", IF(VLOOKUP(CG177,'Footnotes list'!$D$9:$E$58,2,FALSE)=0,\"\",VLOOKUP(CG177,'Footnotes list'!$D$9:$E$58,2,FALSE) ) )","v":""},null,null,null,null,{"$f":"IF(TRIM(CL177)=\"\", \"\", IF(VLOOKUP(CL177,'Footnotes list'!$D$9:$E$58,2,FALSE)=0,\"\",VLOOKUP(CL177,'Footnotes list'!$D$9:$E$58,2,FALSE) ) )","v":""},null,null,null,null,{"$f":"IF(TRIM(CQ177)=\"\", \"\", IF(VLOOKUP(CQ177,'Footnotes list'!$D$9:$E$58,2,FALSE)=0,\"\",VLOOKUP(CQ177,'Footnotes list'!$D$9:$E$58,2,FALSE) ) )","v":""},null,null,null,null,{"$f":"IF(TRIM(CV177)=\"\", \"\", IF(VLOOKUP(CV177,'Footnotes list'!$D$9:$E$58,2,FALSE)=0,\"\",VLOOKUP(CV177,'Footnotes list'!$D$9:$E$58,2,FALSE) ) )","v":""},null,null,null,null,{"$f":"IF(TRIM(DA177)=\"\", \"\", IF(VLOOKUP(DA177,'Footnotes list'!$D$9:$E$58,2,FALSE)=0,\"\",VLOOKUP(DA177,'Footnotes list'!$D$9:$E$58,2,FALSE) ) )","v":""},null,null,null,null,{"$f":"IF(TRIM(DF177)=\"\", \"\", IF(VLOOKUP(DF177,'Footnotes list'!$D$9:$E$58,2,FALSE)=0,\"\",VLOOKUP(DF177,'Footnotes list'!$D$9:$E$58,2,FALSE) ) )","v":""},null,null,null,null,{"$f":"IF(TRIM(DK177)=\"\", \"\", IF(VLOOKUP(DK177,'Footnotes list'!$D$9:$E$58,2,FALSE)=0,\"\",VLOOKUP(DK177,'Footnotes list'!$D$9:$E$58,2,FALSE) ) )","v":""},null,null,null,null,{"$f":"IF(TRIM(DP177)=\"\", \"\", IF(VLOOKUP(DP177,'Footnotes list'!$D$9:$E$58,2,FALSE)=0,\"\",VLOOKUP(DP177,'Footnotes list'!$D$9:$E$58,2,FALSE) ) )","v":""},null,null,null,null,{"$f":"IF(TRIM(DU177)=\"\", \"\", IF(VLOOKUP(DU177,'Footnotes list'!$D$9:$E$58,2,FALSE)=0,\"\",VLOOKUP(DU177,'Footnotes list'!$D$9:$E$58,2,FALSE) ) )","v":""},null,null,null,null,{"$f":"IF(TRIM(DZ177)=\"\", \"\", IF(VLOOKUP(DZ177,'Footnotes list'!$D$9:$E$58,2,FALSE)=0,\"\",VLOOKUP(DZ177,'Footnotes list'!$D$9:$E$58,2,FALSE) ) )","v":""},null,null,null,null,{"$f":"IF(TRIM(EE177)=\"\", \"\", IF(VLOOKUP(EE177,'Footnotes list'!$D$9:$E$58,2,FALSE)=0,\"\",VLOOKUP(EE177,'Footnotes list'!$D$9:$E$58,2,FALSE) ) )","v":""},null,null,null,null,{"$f":"IF(TRIM(EJ177)=\"\", \"\", IF(VLOOKUP(EJ177,'Footnotes list'!$D$9:$E$58,2,FALSE)=0,\"\",VLOOKUP(EJ177,'Footnotes list'!$D$9:$E$58,2,FALSE) ) )","v":""},null,null,null,null,{"$f":"IF(TRIM(EO177)=\"\", \"\", IF(VLOOKUP(EO177,'Footnotes list'!$D$9:$E$58,2,FALSE)=0,\"\",VLOOKUP(EO177,'Footnotes list'!$D$9:$E$58,2,FALSE) ) )","v":""},null,null,null,null,{"$f":"IF(TRIM(ET177)=\"\", \"\", IF(VLOOKUP(ET177,'Footnotes list'!$D$9:$E$58,2,FALSE)=0,\"\",VLOOKUP(ET177,'Footnotes list'!$D$9:$E$58,2,FALSE) ) )","v":""},null,null,null,null,{"$f":"IF(TRIM(EY177)=\"\", \"\", IF(VLOOKUP(EY177,'Footnotes list'!$D$9:$E$58,2,FALSE)=0,\"\",VLOOKUP(EY177,'Footnotes list'!$D$9:$E$58,2,FALSE) ) )","v":""}]
[null,null,"G","NMKT","non-market activities",null,null,null,null,null,{"$f":"IF(TRIM(J178)=\"\", \"\", IF(VLOOKUP(J178,'Footnotes list'!$D$9:$E$58,2,FALSE)=0,\"\",VLOOKUP(J178,'Footnotes list'!$D$9:$E$58,2,FALSE) ) )","v":""},null,null,null,null,{"$f":"IF(TRIM(O178)=\"\", \"\", IF(VLOOKUP(O178,'Footnotes list'!$D$9:$E$58,2,FALSE)=0,\"\",VLOOKUP(O178,'Footnotes list'!$D$9:$E$58,2,FALSE) ) )","v":""},null,null,null,null,{"$f":"IF(TRIM(T178)=\"\", \"\", IF(VLOOKUP(T178,'Footnotes list'!$D$9:$E$58,2,FALSE)=0,\"\",VLOOKUP(T178,'Footnotes list'!$D$9:$E$58,2,FALSE) ) )","v":""},null,null,null,null,{"$f":"IF(TRIM(Y178)=\"\", \"\", IF(VLOOKUP(Y178,'Footnotes list'!$D$9:$E$58,2,FALSE)=0,\"\",VLOOKUP(Y178,'Footnotes list'!$D$9:$E$58,2,FALSE) ) )","v":""},null,null,null,null,{"$f":"IF(TRIM(AD178)=\"\", \"\", IF(VLOOKUP(AD178,'Footnotes list'!$D$9:$E$58,2,FALSE)=0,\"\",VLOOKUP(AD178,'Footnotes list'!$D$9:$E$58,2,FALSE) ) )","v":""},null,null,null,null,{"$f":"IF(TRIM(AI178)=\"\", \"\", IF(VLOOKUP(AI178,'Footnotes list'!$D$9:$E$58,2,FALSE)=0,\"\",VLOOKUP(AI178,'Footnotes list'!$D$9:$E$58,2,FALSE) ) )","v":""},null,null,null,null,{"$f":"IF(TRIM(AN178)=\"\", \"\", IF(VLOOKUP(AN178,'Footnotes list'!$D$9:$E$58,2,FALSE)=0,\"\",VLOOKUP(AN178,'Footnotes list'!$D$9:$E$58,2,FALSE) ) )","v":""},null,null,null,null,{"$f":"IF(TRIM(AS178)=\"\", \"\", IF(VLOOKUP(AS178,'Footnotes list'!$D$9:$E$58,2,FALSE)=0,\"\",VLOOKUP(AS178,'Footnotes list'!$D$9:$E$58,2,FALSE) ) )","v":""},null,null,null,null,{"$f":"IF(TRIM(AX178)=\"\", \"\", IF(VLOOKUP(AX178,'Footnotes list'!$D$9:$E$58,2,FALSE)=0,\"\",VLOOKUP(AX178,'Footnotes list'!$D$9:$E$58,2,FALSE) ) )","v":""},null,null,null,null,{"$f":"IF(TRIM(BC178)=\"\", \"\", IF(VLOOKUP(BC178,'Footnotes list'!$D$9:$E$58,2,FALSE)=0,\"\",VLOOKUP(BC178,'Footnotes list'!$D$9:$E$58,2,FALSE) ) )","v":""},null,null,null,null,{"$f":"IF(TRIM(BH178)=\"\", \"\", IF(VLOOKUP(BH178,'Footnotes list'!$D$9:$E$58,2,FALSE)=0,\"\",VLOOKUP(BH178,'Footnotes list'!$D$9:$E$58,2,FALSE) ) )","v":""},null,null,null,null,{"$f":"IF(TRIM(BM178)=\"\", \"\", IF(VLOOKUP(BM178,'Footnotes list'!$D$9:$E$58,2,FALSE)=0,\"\",VLOOKUP(BM178,'Footnotes list'!$D$9:$E$58,2,FALSE) ) )","v":""},null,null,null,null,{"$f":"IF(TRIM(BR178)=\"\", \"\", IF(VLOOKUP(BR178,'Footnotes list'!$D$9:$E$58,2,FALSE)=0,\"\",VLOOKUP(BR178,'Footnotes list'!$D$9:$E$58,2,FALSE) ) )","v":""},null,null,null,null,{"$f":"IF(TRIM(BW178)=\"\", \"\", IF(VLOOKUP(BW178,'Footnotes list'!$D$9:$E$58,2,FALSE)=0,\"\",VLOOKUP(BW178,'Footnotes list'!$D$9:$E$58,2,FALSE) ) )","v":""},null,null,null,null,{"$f":"IF(TRIM(CB178)=\"\", \"\", IF(VLOOKUP(CB178,'Footnotes list'!$D$9:$E$58,2,FALSE)=0,\"\",VLOOKUP(CB178,'Footnotes list'!$D$9:$E$58,2,FALSE) ) )","v":""},null,null,null,null,{"$f":"IF(TRIM(CG178)=\"\", \"\", IF(VLOOKUP(CG178,'Footnotes list'!$D$9:$E$58,2,FALSE)=0,\"\",VLOOKUP(CG178,'Footnotes list'!$D$9:$E$58,2,FALSE) ) )","v":""},null,null,null,null,{"$f":"IF(TRIM(CL178)=\"\", \"\", IF(VLOOKUP(CL178,'Footnotes list'!$D$9:$E$58,2,FALSE)=0,\"\",VLOOKUP(CL178,'Footnotes list'!$D$9:$E$58,2,FALSE) ) )","v":""},null,null,null,null,{"$f":"IF(TRIM(CQ178)=\"\", \"\", IF(VLOOKUP(CQ178,'Footnotes list'!$D$9:$E$58,2,FALSE)=0,\"\",VLOOKUP(CQ178,'Footnotes list'!$D$9:$E$58,2,FALSE) ) )","v":""},null,null,null,null,{"$f":"IF(TRIM(CV178)=\"\", \"\", IF(VLOOKUP(CV178,'Footnotes list'!$D$9:$E$58,2,FALSE)=0,\"\",VLOOKUP(CV178,'Footnotes list'!$D$9:$E$58,2,FALSE) ) )","v":""},null,null,null,null,{"$f":"IF(TRIM(DA178)=\"\", \"\", IF(VLOOKUP(DA178,'Footnotes list'!$D$9:$E$58,2,FALSE)=0,\"\",VLOOKUP(DA178,'Footnotes list'!$D$9:$E$58,2,FALSE) ) )","v":""},null,null,null,null,{"$f":"IF(TRIM(DF178)=\"\", \"\", IF(VLOOKUP(DF178,'Footnotes list'!$D$9:$E$58,2,FALSE)=0,\"\",VLOOKUP(DF178,'Footnotes list'!$D$9:$E$58,2,FALSE) ) )","v":""},null,null,null,null,{"$f":"IF(TRIM(DK178)=\"\", \"\", IF(VLOOKUP(DK178,'Footnotes list'!$D$9:$E$58,2,FALSE)=0,\"\",VLOOKUP(DK178,'Footnotes list'!$D$9:$E$58,2,FALSE) ) )","v":""},null,null,null,null,{"$f":"IF(TRIM(DP178)=\"\", \"\", IF(VLOOKUP(DP178,'Footnotes list'!$D$9:$E$58,2,FALSE)=0,\"\",VLOOKUP(DP178,'Footnotes list'!$D$9:$E$58,2,FALSE) ) )","v":""},null,null,null,null,{"$f":"IF(TRIM(DU178)=\"\", \"\", IF(VLOOKUP(DU178,'Footnotes list'!$D$9:$E$58,2,FALSE)=0,\"\",VLOOKUP(DU178,'Footnotes list'!$D$9:$E$58,2,FALSE) ) )","v":""},null,null,null,null,{"$f":"IF(TRIM(DZ178)=\"\", \"\", IF(VLOOKUP(DZ178,'Footnotes list'!$D$9:$E$58,2,FALSE)=0,\"\",VLOOKUP(DZ178,'Footnotes list'!$D$9:$E$58,2,FALSE) ) )","v":""},null,null,null,null,{"$f":"IF(TRIM(EE178)=\"\", \"\", IF(VLOOKUP(EE178,'Footnotes list'!$D$9:$E$58,2,FALSE)=0,\"\",VLOOKUP(EE178,'Footnotes list'!$D$9:$E$58,2,FALSE) ) )","v":""},null,null,null,null,{"$f":"IF(TRIM(EJ178)=\"\", \"\", IF(VLOOKUP(EJ178,'Footnotes list'!$D$9:$E$58,2,FALSE)=0,\"\",VLOOKUP(EJ178,'Footnotes list'!$D$9:$E$58,2,FALSE) ) )","v":""},null,null,null,null,{"$f":"IF(TRIM(EO178)=\"\", \"\", IF(VLOOKUP(EO178,'Footnotes list'!$D$9:$E$58,2,FALSE)=0,\"\",VLOOKUP(EO178,'Footnotes list'!$D$9:$E$58,2,FALSE) ) )","v":""},null,null,null,null,{"$f":"IF(TRIM(ET178)=\"\", \"\", IF(VLOOKUP(ET178,'Footnotes list'!$D$9:$E$58,2,FALSE)=0,\"\",VLOOKUP(ET178,'Footnotes list'!$D$9:$E$58,2,FALSE) ) )","v":""},null,null,null,null,{"$f":"IF(TRIM(EY178)=\"\", \"\", IF(VLOOKUP(EY178,'Footnotes list'!$D$9:$E$58,2,FALSE)=0,\"\",VLOOKUP(EY178,'Footnotes list'!$D$9:$E$58,2,FALSE) ) )","v":""}]
[null,null,"G","OWN_USE","activities for own final use",null,null,null,null,null,{"$f":"IF(TRIM(J179)=\"\", \"\", IF(VLOOKUP(J179,'Footnotes list'!$D$9:$E$58,2,FALSE)=0,\"\",VLOOKUP(J179,'Footnotes list'!$D$9:$E$58,2,FALSE) ) )","v":""},null,null,null,null,{"$f":"IF(TRIM(O179)=\"\", \"\", IF(VLOOKUP(O179,'Footnotes list'!$D$9:$E$58,2,FALSE)=0,\"\",VLOOKUP(O179,'Footnotes list'!$D$9:$E$58,2,FALSE) ) )","v":""},null,null,null,null,{"$f":"IF(TRIM(T179)=\"\", \"\", IF(VLOOKUP(T179,'Footnotes list'!$D$9:$E$58,2,FALSE)=0,\"\",VLOOKUP(T179,'Footnotes list'!$D$9:$E$58,2,FALSE) ) )","v":""},null,null,null,null,{"$f":"IF(TRIM(Y179)=\"\", \"\", IF(VLOOKUP(Y179,'Footnotes list'!$D$9:$E$58,2,FALSE)=0,\"\",VLOOKUP(Y179,'Footnotes list'!$D$9:$E$58,2,FALSE) ) )","v":""},null,null,null,null,{"$f":"IF(TRIM(AD179)=\"\", \"\", IF(VLOOKUP(AD179,'Footnotes list'!$D$9:$E$58,2,FALSE)=0,\"\",VLOOKUP(AD179,'Footnotes list'!$D$9:$E$58,2,FALSE) ) )","v":""},null,null,null,null,{"$f":"IF(TRIM(AI179)=\"\", \"\", IF(VLOOKUP(AI179,'Footnotes list'!$D$9:$E$58,2,FALSE)=0,\"\",VLOOKUP(AI179,'Footnotes list'!$D$9:$E$58,2,FALSE) ) )","v":""},null,null,null,null,{"$f":"IF(TRIM(AN179)=\"\", \"\", IF(VLOOKUP(AN179,'Footnotes list'!$D$9:$E$58,2,FALSE)=0,\"\",VLOOKUP(AN179,'Footnotes list'!$D$9:$E$58,2,FALSE) ) )","v":""},null,null,null,null,{"$f":"IF(TRIM(AS179)=\"\", \"\", IF(VLOOKUP(AS179,'Footnotes list'!$D$9:$E$58,2,FALSE)=0,\"\",VLOOKUP(AS179,'Footnotes list'!$D$9:$E$58,2,FALSE) ) )","v":""},null,null,null,null,{"$f":"IF(TRIM(AX179)=\"\", \"\", IF(VLOOKUP(AX179,'Footnotes list'!$D$9:$E$58,2,FALSE)=0,\"\",VLOOKUP(AX179,'Footnotes list'!$D$9:$E$58,2,FALSE) ) )","v":""},null,null,null,null,{"$f":"IF(TRIM(BC179)=\"\", \"\", IF(VLOOKUP(BC179,'Footnotes list'!$D$9:$E$58,2,FALSE)=0,\"\",VLOOKUP(BC179,'Footnotes list'!$D$9:$E$58,2,FALSE) ) )","v":""},null,null,null,null,{"$f":"IF(TRIM(BH179)=\"\", \"\", IF(VLOOKUP(BH179,'Footnotes list'!$D$9:$E$58,2,FALSE)=0,\"\",VLOOKUP(BH179,'Footnotes list'!$D$9:$E$58,2,FALSE) ) )","v":""},null,null,null,null,{"$f":"IF(TRIM(BM179)=\"\", \"\", IF(VLOOKUP(BM179,'Footnotes list'!$D$9:$E$58,2,FALSE)=0,\"\",VLOOKUP(BM179,'Footnotes list'!$D$9:$E$58,2,FALSE) ) )","v":""},null,null,null,null,{"$f":"IF(TRIM(BR179)=\"\", \"\", IF(VLOOKUP(BR179,'Footnotes list'!$D$9:$E$58,2,FALSE)=0,\"\",VLOOKUP(BR179,'Footnotes list'!$D$9:$E$58,2,FALSE) ) )","v":""},null,null,null,null,{"$f":"IF(TRIM(BW179)=\"\", \"\", IF(VLOOKUP(BW179,'Footnotes list'!$D$9:$E$58,2,FALSE)=0,\"\",VLOOKUP(BW179,'Footnotes list'!$D$9:$E$58,2,FALSE) ) )","v":""},null,null,null,null,{"$f":"IF(TRIM(CB179)=\"\", \"\", IF(VLOOKUP(CB179,'Footnotes list'!$D$9:$E$58,2,FALSE)=0,\"\",VLOOKUP(CB179,'Footnotes list'!$D$9:$E$58,2,FALSE) ) )","v":""},null,null,null,null,{"$f":"IF(TRIM(CG179)=\"\", \"\", IF(VLOOKUP(CG179,'Footnotes list'!$D$9:$E$58,2,FALSE)=0,\"\",VLOOKUP(CG179,'Footnotes list'!$D$9:$E$58,2,FALSE) ) )","v":""},null,null,null,null,{"$f":"IF(TRIM(CL179)=\"\", \"\", IF(VLOOKUP(CL179,'Footnotes list'!$D$9:$E$58,2,FALSE)=0,\"\",VLOOKUP(CL179,'Footnotes list'!$D$9:$E$58,2,FALSE) ) )","v":""},null,null,null,null,{"$f":"IF(TRIM(CQ179)=\"\", \"\", IF(VLOOKUP(CQ179,'Footnotes list'!$D$9:$E$58,2,FALSE)=0,\"\",VLOOKUP(CQ179,'Footnotes list'!$D$9:$E$58,2,FALSE) ) )","v":""},null,null,null,null,{"$f":"IF(TRIM(CV179)=\"\", \"\", IF(VLOOKUP(CV179,'Footnotes list'!$D$9:$E$58,2,FALSE)=0,\"\",VLOOKUP(CV179,'Footnotes list'!$D$9:$E$58,2,FALSE) ) )","v":""},null,null,null,null,{"$f":"IF(TRIM(DA179)=\"\", \"\", IF(VLOOKUP(DA179,'Footnotes list'!$D$9:$E$58,2,FALSE)=0,\"\",VLOOKUP(DA179,'Footnotes list'!$D$9:$E$58,2,FALSE) ) )","v":""},null,null,null,null,{"$f":"IF(TRIM(DF179)=\"\", \"\", IF(VLOOKUP(DF179,'Footnotes list'!$D$9:$E$58,2,FALSE)=0,\"\",VLOOKUP(DF179,'Footnotes list'!$D$9:$E$58,2,FALSE) ) )","v":""},null,null,null,null,{"$f":"IF(TRIM(DK179)=\"\", \"\", IF(VLOOKUP(DK179,'Footnotes list'!$D$9:$E$58,2,FALSE)=0,\"\",VLOOKUP(DK179,'Footnotes list'!$D$9:$E$58,2,FALSE) ) )","v":""},null,null,null,null,{"$f":"IF(TRIM(DP179)=\"\", \"\", IF(VLOOKUP(DP179,'Footnotes list'!$D$9:$E$58,2,FALSE)=0,\"\",VLOOKUP(DP179,'Footnotes list'!$D$9:$E$58,2,FALSE) ) )","v":""},null,null,null,null,{"$f":"IF(TRIM(DU179)=\"\", \"\", IF(VLOOKUP(DU179,'Footnotes list'!$D$9:$E$58,2,FALSE)=0,\"\",VLOOKUP(DU179,'Footnotes list'!$D$9:$E$58,2,FALSE) ) )","v":""},null,null,null,null,{"$f":"IF(TRIM(DZ179)=\"\", \"\", IF(VLOOKUP(DZ179,'Footnotes list'!$D$9:$E$58,2,FALSE)=0,\"\",VLOOKUP(DZ179,'Footnotes list'!$D$9:$E$58,2,FALSE) ) )","v":""},null,null,null,null,{"$f":"IF(TRIM(EE179)=\"\", \"\", IF(VLOOKUP(EE179,'Footnotes list'!$D$9:$E$58,2,FALSE)=0,\"\",VLOOKUP(EE179,'Footnotes list'!$D$9:$E$58,2,FALSE) ) )","v":""},null,null,null,null,{"$f":"IF(TRIM(EJ179)=\"\", \"\", IF(VLOOKUP(EJ179,'Footnotes list'!$D$9:$E$58,2,FALSE)=0,\"\",VLOOKUP(EJ179,'Footnotes list'!$D$9:$E$58,2,FALSE) ) )","v":""},null,null,null,null,{"$f":"IF(TRIM(EO179)=\"\", \"\", IF(VLOOKUP(EO179,'Footnotes list'!$D$9:$E$58,2,FALSE)=0,\"\",VLOOKUP(EO179,'Footnotes list'!$D$9:$E$58,2,FALSE) ) )","v":""},null,null,null,null,{"$f":"IF(TRIM(ET179)=\"\", \"\", IF(VLOOKUP(ET179,'Footnotes list'!$D$9:$E$58,2,FALSE)=0,\"\",VLOOKUP(ET179,'Footnotes list'!$D$9:$E$58,2,FALSE) ) )","v":""},null,null,null,null,{"$f":"IF(TRIM(EY179)=\"\", \"\", IF(VLOOKUP(EY179,'Footnotes list'!$D$9:$E$58,2,FALSE)=0,\"\",VLOOKUP(EY179,'Footnotes list'!$D$9:$E$58,2,FALSE) ) )","v":""}]
[null,null,"G","MKT","market activities, including:",null,null,null,null,null,{"$f":"IF(TRIM(J180)=\"\", \"\", IF(VLOOKUP(J180,'Footnotes list'!$D$9:$E$58,2,FALSE)=0,\"\",VLOOKUP(J180,'Footnotes list'!$D$9:$E$58,2,FALSE) ) )","v":""},null,null,null,null,{"$f":"IF(TRIM(O180)=\"\", \"\", IF(VLOOKUP(O180,'Footnotes list'!$D$9:$E$58,2,FALSE)=0,\"\",VLOOKUP(O180,'Footnotes list'!$D$9:$E$58,2,FALSE) ) )","v":""},null,null,null,null,{"$f":"IF(TRIM(T180)=\"\", \"\", IF(VLOOKUP(T180,'Footnotes list'!$D$9:$E$58,2,FALSE)=0,\"\",VLOOKUP(T180,'Footnotes list'!$D$9:$E$58,2,FALSE) ) )","v":""},null,null,null,null,{"$f":"IF(TRIM(Y180)=\"\", \"\", IF(VLOOKUP(Y180,'Footnotes list'!$D$9:$E$58,2,FALSE)=0,\"\",VLOOKUP(Y180,'Footnotes list'!$D$9:$E$58,2,FALSE) ) )","v":""},null,null,null,null,{"$f":"IF(TRIM(AD180)=\"\", \"\", IF(VLOOKUP(AD180,'Footnotes list'!$D$9:$E$58,2,FALSE)=0,\"\",VLOOKUP(AD180,'Footnotes list'!$D$9:$E$58,2,FALSE) ) )","v":""},null,null,null,null,{"$f":"IF(TRIM(AI180)=\"\", \"\", IF(VLOOKUP(AI180,'Footnotes list'!$D$9:$E$58,2,FALSE)=0,\"\",VLOOKUP(AI180,'Footnotes list'!$D$9:$E$58,2,FALSE) ) )","v":""},null,null,null,null,{"$f":"IF(TRIM(AN180)=\"\", \"\", IF(VLOOKUP(AN180,'Footnotes list'!$D$9:$E$58,2,FALSE)=0,\"\",VLOOKUP(AN180,'Footnotes list'!$D$9:$E$58,2,FALSE) ) )","v":""},null,null,null,null,{"$f":"IF(TRIM(AS180)=\"\", \"\", IF(VLOOKUP(AS180,'Footnotes list'!$D$9:$E$58,2,FALSE)=0,\"\",VLOOKUP(AS180,'Footnotes list'!$D$9:$E$58,2,FALSE) ) )","v":""},null,null,null,null,{"$f":"IF(TRIM(AX180)=\"\", \"\", IF(VLOOKUP(AX180,'Footnotes list'!$D$9:$E$58,2,FALSE)=0,\"\",VLOOKUP(AX180,'Footnotes list'!$D$9:$E$58,2,FALSE) ) )","v":""},null,null,null,null,{"$f":"IF(TRIM(BC180)=\"\", \"\", IF(VLOOKUP(BC180,'Footnotes list'!$D$9:$E$58,2,FALSE)=0,\"\",VLOOKUP(BC180,'Footnotes list'!$D$9:$E$58,2,FALSE) ) )","v":""},null,null,null,null,{"$f":"IF(TRIM(BH180)=\"\", \"\", IF(VLOOKUP(BH180,'Footnotes list'!$D$9:$E$58,2,FALSE)=0,\"\",VLOOKUP(BH180,'Footnotes list'!$D$9:$E$58,2,FALSE) ) )","v":""},null,null,null,null,{"$f":"IF(TRIM(BM180)=\"\", \"\", IF(VLOOKUP(BM180,'Footnotes list'!$D$9:$E$58,2,FALSE)=0,\"\",VLOOKUP(BM180,'Footnotes list'!$D$9:$E$58,2,FALSE) ) )","v":""},null,null,null,null,{"$f":"IF(TRIM(BR180)=\"\", \"\", IF(VLOOKUP(BR180,'Footnotes list'!$D$9:$E$58,2,FALSE)=0,\"\",VLOOKUP(BR180,'Footnotes list'!$D$9:$E$58,2,FALSE) ) )","v":""},null,null,null,null,{"$f":"IF(TRIM(BW180)=\"\", \"\", IF(VLOOKUP(BW180,'Footnotes list'!$D$9:$E$58,2,FALSE)=0,\"\",VLOOKUP(BW180,'Footnotes list'!$D$9:$E$58,2,FALSE) ) )","v":""},null,null,null,null,{"$f":"IF(TRIM(CB180)=\"\", \"\", IF(VLOOKUP(CB180,'Footnotes list'!$D$9:$E$58,2,FALSE)=0,\"\",VLOOKUP(CB180,'Footnotes list'!$D$9:$E$58,2,FALSE) ) )","v":""},null,null,null,null,{"$f":"IF(TRIM(CG180)=\"\", \"\", IF(VLOOKUP(CG180,'Footnotes list'!$D$9:$E$58,2,FALSE)=0,\"\",VLOOKUP(CG180,'Footnotes list'!$D$9:$E$58,2,FALSE) ) )","v":""},null,null,null,null,{"$f":"IF(TRIM(CL180)=\"\", \"\", IF(VLOOKUP(CL180,'Footnotes list'!$D$9:$E$58,2,FALSE)=0,\"\",VLOOKUP(CL180,'Footnotes list'!$D$9:$E$58,2,FALSE) ) )","v":""},null,null,null,null,{"$f":"IF(TRIM(CQ180)=\"\", \"\", IF(VLOOKUP(CQ180,'Footnotes list'!$D$9:$E$58,2,FALSE)=0,\"\",VLOOKUP(CQ180,'Footnotes list'!$D$9:$E$58,2,FALSE) ) )","v":""},null,null,null,null,{"$f":"IF(TRIM(CV180)=\"\", \"\", IF(VLOOKUP(CV180,'Footnotes list'!$D$9:$E$58,2,FALSE)=0,\"\",VLOOKUP(CV180,'Footnotes list'!$D$9:$E$58,2,FALSE) ) )","v":""},null,null,null,null,{"$f":"IF(TRIM(DA180)=\"\", \"\", IF(VLOOKUP(DA180,'Footnotes list'!$D$9:$E$58,2,FALSE)=0,\"\",VLOOKUP(DA180,'Footnotes list'!$D$9:$E$58,2,FALSE) ) )","v":""},null,null,null,null,{"$f":"IF(TRIM(DF180)=\"\", \"\", IF(VLOOKUP(DF180,'Footnotes list'!$D$9:$E$58,2,FALSE)=0,\"\",VLOOKUP(DF180,'Footnotes list'!$D$9:$E$58,2,FALSE) ) )","v":""},null,null,null,null,{"$f":"IF(TRIM(DK180)=\"\", \"\", IF(VLOOKUP(DK180,'Footnotes list'!$D$9:$E$58,2,FALSE)=0,\"\",VLOOKUP(DK180,'Footnotes list'!$D$9:$E$58,2,FALSE) ) )","v":""},null,null,null,null,{"$f":"IF(TRIM(DP180)=\"\", \"\", IF(VLOOKUP(DP180,'Footnotes list'!$D$9:$E$58,2,FALSE)=0,\"\",VLOOKUP(DP180,'Footnotes list'!$D$9:$E$58,2,FALSE) ) )","v":""},null,null,null,null,{"$f":"IF(TRIM(DU180)=\"\", \"\", IF(VLOOKUP(DU180,'Footnotes list'!$D$9:$E$58,2,FALSE)=0,\"\",VLOOKUP(DU180,'Footnotes list'!$D$9:$E$58,2,FALSE) ) )","v":""},null,null,null,null,{"$f":"IF(TRIM(DZ180)=\"\", \"\", IF(VLOOKUP(DZ180,'Footnotes list'!$D$9:$E$58,2,FALSE)=0,\"\",VLOOKUP(DZ180,'Footnotes list'!$D$9:$E$58,2,FALSE) ) )","v":""},null,null,null,null,{"$f":"IF(TRIM(EE180)=\"\", \"\", IF(VLOOKUP(EE180,'Footnotes list'!$D$9:$E$58,2,FALSE)=0,\"\",VLOOKUP(EE180,'Footnotes list'!$D$9:$E$58,2,FALSE) ) )","v":""},null,null,null,null,{"$f":"IF(TRIM(EJ180)=\"\", \"\", IF(VLOOKUP(EJ180,'Footnotes list'!$D$9:$E$58,2,FALSE)=0,\"\",VLOOKUP(EJ180,'Footnotes list'!$D$9:$E$58,2,FALSE) ) )","v":""},null,null,null,null,{"$f":"IF(TRIM(EO180)=\"\", \"\", IF(VLOOKUP(EO180,'Footnotes list'!$D$9:$E$58,2,FALSE)=0,\"\",VLOOKUP(EO180,'Footnotes list'!$D$9:$E$58,2,FALSE) ) )","v":""},null,null,null,null,{"$f":"IF(TRIM(ET180)=\"\", \"\", IF(VLOOKUP(ET180,'Footnotes list'!$D$9:$E$58,2,FALSE)=0,\"\",VLOOKUP(ET180,'Footnotes list'!$D$9:$E$58,2,FALSE) ) )","v":""},null,null,null,null,{"$f":"IF(TRIM(EY180)=\"\", \"\", IF(VLOOKUP(EY180,'Footnotes list'!$D$9:$E$58,2,FALSE)=0,\"\",VLOOKUP(EY180,'Footnotes list'!$D$9:$E$58,2,FALSE) ) )","v":""}]
[null,null,"G","ES_CS","environmental specific services",null,null,null,null,null,{"$f":"IF(TRIM(J181)=\"\", \"\", IF(VLOOKUP(J181,'Footnotes list'!$D$9:$E$58,2,FALSE)=0,\"\",VLOOKUP(J181,'Footnotes list'!$D$9:$E$58,2,FALSE) ) )","v":""},null,null,null,null,{"$f":"IF(TRIM(O181)=\"\", \"\", IF(VLOOKUP(O181,'Footnotes list'!$D$9:$E$58,2,FALSE)=0,\"\",VLOOKUP(O181,'Footnotes list'!$D$9:$E$58,2,FALSE) ) )","v":""},null,null,null,null,{"$f":"IF(TRIM(T181)=\"\", \"\", IF(VLOOKUP(T181,'Footnotes list'!$D$9:$E$58,2,FALSE)=0,\"\",VLOOKUP(T181,'Footnotes list'!$D$9:$E$58,2,FALSE) ) )","v":""},null,null,null,null,{"$f":"IF(TRIM(Y181)=\"\", \"\", IF(VLOOKUP(Y181,'Footnotes list'!$D$9:$E$58,2,FALSE)=0,\"\",VLOOKUP(Y181,'Footnotes list'!$D$9:$E$58,2,FALSE) ) )","v":""},null,null,null,null,{"$f":"IF(TRIM(AD181)=\"\", \"\", IF(VLOOKUP(AD181,'Footnotes list'!$D$9:$E$58,2,FALSE)=0,\"\",VLOOKUP(AD181,'Footnotes list'!$D$9:$E$58,2,FALSE) ) )","v":""},null,null,null,null,{"$f":"IF(TRIM(AI181)=\"\", \"\", IF(VLOOKUP(AI181,'Footnotes list'!$D$9:$E$58,2,FALSE)=0,\"\",VLOOKUP(AI181,'Footnotes list'!$D$9:$E$58,2,FALSE) ) )","v":""},null,null,null,null,{"$f":"IF(TRIM(AN181)=\"\", \"\", IF(VLOOKUP(AN181,'Footnotes list'!$D$9:$E$58,2,FALSE)=0,\"\",VLOOKUP(AN181,'Footnotes list'!$D$9:$E$58,2,FALSE) ) )","v":""},null,null,null,null,{"$f":"IF(TRIM(AS181)=\"\", \"\", IF(VLOOKUP(AS181,'Footnotes list'!$D$9:$E$58,2,FALSE)=0,\"\",VLOOKUP(AS181,'Footnotes list'!$D$9:$E$58,2,FALSE) ) )","v":""},null,null,null,null,{"$f":"IF(TRIM(AX181)=\"\", \"\", IF(VLOOKUP(AX181,'Footnotes list'!$D$9:$E$58,2,FALSE)=0,\"\",VLOOKUP(AX181,'Footnotes list'!$D$9:$E$58,2,FALSE) ) )","v":""},null,null,null,null,{"$f":"IF(TRIM(BC181)=\"\", \"\", IF(VLOOKUP(BC181,'Footnotes list'!$D$9:$E$58,2,FALSE)=0,\"\",VLOOKUP(BC181,'Footnotes list'!$D$9:$E$58,2,FALSE) ) )","v":""},null,null,null,null,{"$f":"IF(TRIM(BH181)=\"\", \"\", IF(VLOOKUP(BH181,'Footnotes list'!$D$9:$E$58,2,FALSE)=0,\"\",VLOOKUP(BH181,'Footnotes list'!$D$9:$E$58,2,FALSE) ) )","v":""},null,null,null,null,{"$f":"IF(TRIM(BM181)=\"\", \"\", IF(VLOOKUP(BM181,'Footnotes list'!$D$9:$E$58,2,FALSE)=0,\"\",VLOOKUP(BM181,'Footnotes list'!$D$9:$E$58,2,FALSE) ) )","v":""},null,null,null,null,{"$f":"IF(TRIM(BR181)=\"\", \"\", IF(VLOOKUP(BR181,'Footnotes list'!$D$9:$E$58,2,FALSE)=0,\"\",VLOOKUP(BR181,'Footnotes list'!$D$9:$E$58,2,FALSE) ) )","v":""},null,null,null,null,{"$f":"IF(TRIM(BW181)=\"\", \"\", IF(VLOOKUP(BW181,'Footnotes list'!$D$9:$E$58,2,FALSE)=0,\"\",VLOOKUP(BW181,'Footnotes list'!$D$9:$E$58,2,FALSE) ) )","v":""},null,null,null,null,{"$f":"IF(TRIM(CB181)=\"\", \"\", IF(VLOOKUP(CB181,'Footnotes list'!$D$9:$E$58,2,FALSE)=0,\"\",VLOOKUP(CB181,'Footnotes list'!$D$9:$E$58,2,FALSE) ) )","v":""},null,null,null,null,{"$f":"IF(TRIM(CG181)=\"\", \"\", IF(VLOOKUP(CG181,'Footnotes list'!$D$9:$E$58,2,FALSE)=0,\"\",VLOOKUP(CG181,'Footnotes list'!$D$9:$E$58,2,FALSE) ) )","v":""},null,null,null,null,{"$f":"IF(TRIM(CL181)=\"\", \"\", IF(VLOOKUP(CL181,'Footnotes list'!$D$9:$E$58,2,FALSE)=0,\"\",VLOOKUP(CL181,'Footnotes list'!$D$9:$E$58,2,FALSE) ) )","v":""},null,null,null,null,{"$f":"IF(TRIM(CQ181)=\"\", \"\", IF(VLOOKUP(CQ181,'Footnotes list'!$D$9:$E$58,2,FALSE)=0,\"\",VLOOKUP(CQ181,'Footnotes list'!$D$9:$E$58,2,FALSE) ) )","v":""},null,null,null,null,{"$f":"IF(TRIM(CV181)=\"\", \"\", IF(VLOOKUP(CV181,'Footnotes list'!$D$9:$E$58,2,FALSE)=0,\"\",VLOOKUP(CV181,'Footnotes list'!$D$9:$E$58,2,FALSE) ) )","v":""},null,null,null,null,{"$f":"IF(TRIM(DA181)=\"\", \"\", IF(VLOOKUP(DA181,'Footnotes list'!$D$9:$E$58,2,FALSE)=0,\"\",VLOOKUP(DA181,'Footnotes list'!$D$9:$E$58,2,FALSE) ) )","v":""},null,null,null,null,{"$f":"IF(TRIM(DF181)=\"\", \"\", IF(VLOOKUP(DF181,'Footnotes list'!$D$9:$E$58,2,FALSE)=0,\"\",VLOOKUP(DF181,'Footnotes list'!$D$9:$E$58,2,FALSE) ) )","v":""},null,null,null,null,{"$f":"IF(TRIM(DK181)=\"\", \"\", IF(VLOOKUP(DK181,'Footnotes list'!$D$9:$E$58,2,FALSE)=0,\"\",VLOOKUP(DK181,'Footnotes list'!$D$9:$E$58,2,FALSE) ) )","v":""},null,null,null,null,{"$f":"IF(TRIM(DP181)=\"\", \"\", IF(VLOOKUP(DP181,'Footnotes list'!$D$9:$E$58,2,FALSE)=0,\"\",VLOOKUP(DP181,'Footnotes list'!$D$9:$E$58,2,FALSE) ) )","v":""},null,null,null,null,{"$f":"IF(TRIM(DU181)=\"\", \"\", IF(VLOOKUP(DU181,'Footnotes list'!$D$9:$E$58,2,FALSE)=0,\"\",VLOOKUP(DU181,'Footnotes list'!$D$9:$E$58,2,FALSE) ) )","v":""},null,null,null,null,{"$f":"IF(TRIM(DZ181)=\"\", \"\", IF(VLOOKUP(DZ181,'Footnotes list'!$D$9:$E$58,2,FALSE)=0,\"\",VLOOKUP(DZ181,'Footnotes list'!$D$9:$E$58,2,FALSE) ) )","v":""},null,null,null,null,{"$f":"IF(TRIM(EE181)=\"\", \"\", IF(VLOOKUP(EE181,'Footnotes list'!$D$9:$E$58,2,FALSE)=0,\"\",VLOOKUP(EE181,'Footnotes list'!$D$9:$E$58,2,FALSE) ) )","v":""},null,null,null,null,{"$f":"IF(TRIM(EJ181)=\"\", \"\", IF(VLOOKUP(EJ181,'Footnotes list'!$D$9:$E$58,2,FALSE)=0,\"\",VLOOKUP(EJ181,'Footnotes list'!$D$9:$E$58,2,FALSE) ) )","v":""},null,null,null,null,{"$f":"IF(TRIM(EO181)=\"\", \"\", IF(VLOOKUP(EO181,'Footnotes list'!$D$9:$E$58,2,FALSE)=0,\"\",VLOOKUP(EO181,'Footnotes list'!$D$9:$E$58,2,FALSE) ) )","v":""},null,null,null,null,{"$f":"IF(TRIM(ET181)=\"\", \"\", IF(VLOOKUP(ET181,'Footnotes list'!$D$9:$E$58,2,FALSE)=0,\"\",VLOOKUP(ET181,'Footnotes list'!$D$9:$E$58,2,FALSE) ) )","v":""},null,null,null,null,{"$f":"IF(TRIM(EY181)=\"\", \"\", IF(VLOOKUP(EY181,'Footnotes list'!$D$9:$E$58,2,FALSE)=0,\"\",VLOOKUP(EY181,'Footnotes list'!$D$9:$E$58,2,FALSE) ) )","v":""}]
[null,null,"G","C_REP","cleaner and resource efficient products",null,null,null,null,null,{"$f":"IF(TRIM(J182)=\"\", \"\", IF(VLOOKUP(J182,'Footnotes list'!$D$9:$E$58,2,FALSE)=0,\"\",VLOOKUP(J182,'Footnotes list'!$D$9:$E$58,2,FALSE) ) )","v":""},null,null,null,null,{"$f":"IF(TRIM(O182)=\"\", \"\", IF(VLOOKUP(O182,'Footnotes list'!$D$9:$E$58,2,FALSE)=0,\"\",VLOOKUP(O182,'Footnotes list'!$D$9:$E$58,2,FALSE) ) )","v":""},null,null,null,null,{"$f":"IF(TRIM(T182)=\"\", \"\", IF(VLOOKUP(T182,'Footnotes list'!$D$9:$E$58,2,FALSE)=0,\"\",VLOOKUP(T182,'Footnotes list'!$D$9:$E$58,2,FALSE) ) )","v":""},null,null,null,null,{"$f":"IF(TRIM(Y182)=\"\", \"\", IF(VLOOKUP(Y182,'Footnotes list'!$D$9:$E$58,2,FALSE)=0,\"\",VLOOKUP(Y182,'Footnotes list'!$D$9:$E$58,2,FALSE) ) )","v":""},null,null,null,null,{"$f":"IF(TRIM(AD182)=\"\", \"\", IF(VLOOKUP(AD182,'Footnotes list'!$D$9:$E$58,2,FALSE)=0,\"\",VLOOKUP(AD182,'Footnotes list'!$D$9:$E$58,2,FALSE) ) )","v":""},null,null,null,null,{"$f":"IF(TRIM(AI182)=\"\", \"\", IF(VLOOKUP(AI182,'Footnotes list'!$D$9:$E$58,2,FALSE)=0,\"\",VLOOKUP(AI182,'Footnotes list'!$D$9:$E$58,2,FALSE) ) )","v":""},null,null,null,null,{"$f":"IF(TRIM(AN182)=\"\", \"\", IF(VLOOKUP(AN182,'Footnotes list'!$D$9:$E$58,2,FALSE)=0,\"\",VLOOKUP(AN182,'Footnotes list'!$D$9:$E$58,2,FALSE) ) )","v":""},null,null,null,null,{"$f":"IF(TRIM(AS182)=\"\", \"\", IF(VLOOKUP(AS182,'Footnotes list'!$D$9:$E$58,2,FALSE)=0,\"\",VLOOKUP(AS182,'Footnotes list'!$D$9:$E$58,2,FALSE) ) )","v":""},null,null,null,null,{"$f":"IF(TRIM(AX182)=\"\", \"\", IF(VLOOKUP(AX182,'Footnotes list'!$D$9:$E$58,2,FALSE)=0,\"\",VLOOKUP(AX182,'Footnotes list'!$D$9:$E$58,2,FALSE) ) )","v":""},null,null,null,null,{"$f":"IF(TRIM(BC182)=\"\", \"\", IF(VLOOKUP(BC182,'Footnotes list'!$D$9:$E$58,2,FALSE)=0,\"\",VLOOKUP(BC182,'Footnotes list'!$D$9:$E$58,2,FALSE) ) )","v":""},null,null,null,null,{"$f":"IF(TRIM(BH182)=\"\", \"\", IF(VLOOKUP(BH182,'Footnotes list'!$D$9:$E$58,2,FALSE)=0,\"\",VLOOKUP(BH182,'Footnotes list'!$D$9:$E$58,2,FALSE) ) )","v":""},null,null,null,null,{"$f":"IF(TRIM(BM182)=\"\", \"\", IF(VLOOKUP(BM182,'Footnotes list'!$D$9:$E$58,2,FALSE)=0,\"\",VLOOKUP(BM182,'Footnotes list'!$D$9:$E$58,2,FALSE) ) )","v":""},null,null,null,null,{"$f":"IF(TRIM(BR182)=\"\", \"\", IF(VLOOKUP(BR182,'Footnotes list'!$D$9:$E$58,2,FALSE)=0,\"\",VLOOKUP(BR182,'Footnotes list'!$D$9:$E$58,2,FALSE) ) )","v":""},null,null,null,null,{"$f":"IF(TRIM(BW182)=\"\", \"\", IF(VLOOKUP(BW182,'Footnotes list'!$D$9:$E$58,2,FALSE)=0,\"\",VLOOKUP(BW182,'Footnotes list'!$D$9:$E$58,2,FALSE) ) )","v":""},null,null,null,null,{"$f":"IF(TRIM(CB182)=\"\", \"\", IF(VLOOKUP(CB182,'Footnotes list'!$D$9:$E$58,2,FALSE)=0,\"\",VLOOKUP(CB182,'Footnotes list'!$D$9:$E$58,2,FALSE) ) )","v":""},null,null,null,null,{"$f":"IF(TRIM(CG182)=\"\", \"\", IF(VLOOKUP(CG182,'Footnotes list'!$D$9:$E$58,2,FALSE)=0,\"\",VLOOKUP(CG182,'Footnotes list'!$D$9:$E$58,2,FALSE) ) )","v":""},null,null,null,null,{"$f":"IF(TRIM(CL182)=\"\", \"\", IF(VLOOKUP(CL182,'Footnotes list'!$D$9:$E$58,2,FALSE)=0,\"\",VLOOKUP(CL182,'Footnotes list'!$D$9:$E$58,2,FALSE) ) )","v":""},null,null,null,null,{"$f":"IF(TRIM(CQ182)=\"\", \"\", IF(VLOOKUP(CQ182,'Footnotes list'!$D$9:$E$58,2,FALSE)=0,\"\",VLOOKUP(CQ182,'Footnotes list'!$D$9:$E$58,2,FALSE) ) )","v":""},null,null,null,null,{"$f":"IF(TRIM(CV182)=\"\", \"\", IF(VLOOKUP(CV182,'Footnotes list'!$D$9:$E$58,2,FALSE)=0,\"\",VLOOKUP(CV182,'Footnotes list'!$D$9:$E$58,2,FALSE) ) )","v":""},null,null,null,null,{"$f":"IF(TRIM(DA182)=\"\", \"\", IF(VLOOKUP(DA182,'Footnotes list'!$D$9:$E$58,2,FALSE)=0,\"\",VLOOKUP(DA182,'Footnotes list'!$D$9:$E$58,2,FALSE) ) )","v":""},null,null,null,null,{"$f":"IF(TRIM(DF182)=\"\", \"\", IF(VLOOKUP(DF182,'Footnotes list'!$D$9:$E$58,2,FALSE)=0,\"\",VLOOKUP(DF182,'Footnotes list'!$D$9:$E$58,2,FALSE) ) )","v":""},null,null,null,null,{"$f":"IF(TRIM(DK182)=\"\", \"\", IF(VLOOKUP(DK182,'Footnotes list'!$D$9:$E$58,2,FALSE)=0,\"\",VLOOKUP(DK182,'Footnotes list'!$D$9:$E$58,2,FALSE) ) )","v":""},null,null,null,null,{"$f":"IF(TRIM(DP182)=\"\", \"\", IF(VLOOKUP(DP182,'Footnotes list'!$D$9:$E$58,2,FALSE)=0,\"\",VLOOKUP(DP182,'Footnotes list'!$D$9:$E$58,2,FALSE) ) )","v":""},null,null,null,null,{"$f":"IF(TRIM(DU182)=\"\", \"\", IF(VLOOKUP(DU182,'Footnotes list'!$D$9:$E$58,2,FALSE)=0,\"\",VLOOKUP(DU182,'Footnotes list'!$D$9:$E$58,2,FALSE) ) )","v":""},null,null,null,null,{"$f":"IF(TRIM(DZ182)=\"\", \"\", IF(VLOOKUP(DZ182,'Footnotes list'!$D$9:$E$58,2,FALSE)=0,\"\",VLOOKUP(DZ182,'Footnotes list'!$D$9:$E$58,2,FALSE) ) )","v":""},null,null,null,null,{"$f":"IF(TRIM(EE182)=\"\", \"\", IF(VLOOKUP(EE182,'Footnotes list'!$D$9:$E$58,2,FALSE)=0,\"\",VLOOKUP(EE182,'Footnotes list'!$D$9:$E$58,2,FALSE) ) )","v":""},null,null,null,null,{"$f":"IF(TRIM(EJ182)=\"\", \"\", IF(VLOOKUP(EJ182,'Footnotes list'!$D$9:$E$58,2,FALSE)=0,\"\",VLOOKUP(EJ182,'Footnotes list'!$D$9:$E$58,2,FALSE) ) )","v":""},null,null,null,null,{"$f":"IF(TRIM(EO182)=\"\", \"\", IF(VLOOKUP(EO182,'Footnotes list'!$D$9:$E$58,2,FALSE)=0,\"\",VLOOKUP(EO182,'Footnotes list'!$D$9:$E$58,2,FALSE) ) )","v":""},null,null,null,null,{"$f":"IF(TRIM(ET182)=\"\", \"\", IF(VLOOKUP(ET182,'Footnotes list'!$D$9:$E$58,2,FALSE)=0,\"\",VLOOKUP(ET182,'Footnotes list'!$D$9:$E$58,2,FALSE) ) )","v":""},null,null,null,null,{"$f":"IF(TRIM(EY182)=\"\", \"\", IF(VLOOKUP(EY182,'Footnotes list'!$D$9:$E$58,2,FALSE)=0,\"\",VLOOKUP(EY182,'Footnotes list'!$D$9:$E$58,2,FALSE) ) )","v":""}]
[null,null,"H","TOT_EGSS","Total H - Transportation and storage, of which:",null,null,null,null,null,{"$f":"IF(TRIM(J183)=\"\", \"\", IF(VLOOKUP(J183,'Footnotes list'!$D$9:$E$58,2,FALSE)=0,\"\",VLOOKUP(J183,'Footnotes list'!$D$9:$E$58,2,FALSE) ) )","v":""},null,null,null,null,{"$f":"IF(TRIM(O183)=\"\", \"\", IF(VLOOKUP(O183,'Footnotes list'!$D$9:$E$58,2,FALSE)=0,\"\",VLOOKUP(O183,'Footnotes list'!$D$9:$E$58,2,FALSE) ) )","v":""},null,null,null,null,{"$f":"IF(TRIM(T183)=\"\", \"\", IF(VLOOKUP(T183,'Footnotes list'!$D$9:$E$58,2,FALSE)=0,\"\",VLOOKUP(T183,'Footnotes list'!$D$9:$E$58,2,FALSE) ) )","v":""},null,null,null,null,{"$f":"IF(TRIM(Y183)=\"\", \"\", IF(VLOOKUP(Y183,'Footnotes list'!$D$9:$E$58,2,FALSE)=0,\"\",VLOOKUP(Y183,'Footnotes list'!$D$9:$E$58,2,FALSE) ) )","v":""},null,null,null,null,{"$f":"IF(TRIM(AD183)=\"\", \"\", IF(VLOOKUP(AD183,'Footnotes list'!$D$9:$E$58,2,FALSE)=0,\"\",VLOOKUP(AD183,'Footnotes list'!$D$9:$E$58,2,FALSE) ) )","v":""},null,null,null,null,{"$f":"IF(TRIM(AI183)=\"\", \"\", IF(VLOOKUP(AI183,'Footnotes list'!$D$9:$E$58,2,FALSE)=0,\"\",VLOOKUP(AI183,'Footnotes list'!$D$9:$E$58,2,FALSE) ) )","v":""},null,null,null,null,{"$f":"IF(TRIM(AN183)=\"\", \"\", IF(VLOOKUP(AN183,'Footnotes list'!$D$9:$E$58,2,FALSE)=0,\"\",VLOOKUP(AN183,'Footnotes list'!$D$9:$E$58,2,FALSE) ) )","v":""},null,null,null,null,{"$f":"IF(TRIM(AS183)=\"\", \"\", IF(VLOOKUP(AS183,'Footnotes list'!$D$9:$E$58,2,FALSE)=0,\"\",VLOOKUP(AS183,'Footnotes list'!$D$9:$E$58,2,FALSE) ) )","v":""},null,null,null,null,{"$f":"IF(TRIM(AX183)=\"\", \"\", IF(VLOOKUP(AX183,'Footnotes list'!$D$9:$E$58,2,FALSE)=0,\"\",VLOOKUP(AX183,'Footnotes list'!$D$9:$E$58,2,FALSE) ) )","v":""},null,null,null,null,{"$f":"IF(TRIM(BC183)=\"\", \"\", IF(VLOOKUP(BC183,'Footnotes list'!$D$9:$E$58,2,FALSE)=0,\"\",VLOOKUP(BC183,'Footnotes list'!$D$9:$E$58,2,FALSE) ) )","v":""},null,null,null,null,{"$f":"IF(TRIM(BH183)=\"\", \"\", IF(VLOOKUP(BH183,'Footnotes list'!$D$9:$E$58,2,FALSE)=0,\"\",VLOOKUP(BH183,'Footnotes list'!$D$9:$E$58,2,FALSE) ) )","v":""},null,null,null,null,{"$f":"IF(TRIM(BM183)=\"\", \"\", IF(VLOOKUP(BM183,'Footnotes list'!$D$9:$E$58,2,FALSE)=0,\"\",VLOOKUP(BM183,'Footnotes list'!$D$9:$E$58,2,FALSE) ) )","v":""},null,null,null,null,{"$f":"IF(TRIM(BR183)=\"\", \"\", IF(VLOOKUP(BR183,'Footnotes list'!$D$9:$E$58,2,FALSE)=0,\"\",VLOOKUP(BR183,'Footnotes list'!$D$9:$E$58,2,FALSE) ) )","v":""},null,null,null,null,{"$f":"IF(TRIM(BW183)=\"\", \"\", IF(VLOOKUP(BW183,'Footnotes list'!$D$9:$E$58,2,FALSE)=0,\"\",VLOOKUP(BW183,'Footnotes list'!$D$9:$E$58,2,FALSE) ) )","v":""},null,null,null,null,{"$f":"IF(TRIM(CB183)=\"\", \"\", IF(VLOOKUP(CB183,'Footnotes list'!$D$9:$E$58,2,FALSE)=0,\"\",VLOOKUP(CB183,'Footnotes list'!$D$9:$E$58,2,FALSE) ) )","v":""},null,null,null,null,{"$f":"IF(TRIM(CG183)=\"\", \"\", IF(VLOOKUP(CG183,'Footnotes list'!$D$9:$E$58,2,FALSE)=0,\"\",VLOOKUP(CG183,'Footnotes list'!$D$9:$E$58,2,FALSE) ) )","v":""},null,null,null,null,{"$f":"IF(TRIM(CL183)=\"\", \"\", IF(VLOOKUP(CL183,'Footnotes list'!$D$9:$E$58,2,FALSE)=0,\"\",VLOOKUP(CL183,'Footnotes list'!$D$9:$E$58,2,FALSE) ) )","v":""},null,null,null,null,{"$f":"IF(TRIM(CQ183)=\"\", \"\", IF(VLOOKUP(CQ183,'Footnotes list'!$D$9:$E$58,2,FALSE)=0,\"\",VLOOKUP(CQ183,'Footnotes list'!$D$9:$E$58,2,FALSE) ) )","v":""},null,null,null,null,{"$f":"IF(TRIM(CV183)=\"\", \"\", IF(VLOOKUP(CV183,'Footnotes list'!$D$9:$E$58,2,FALSE)=0,\"\",VLOOKUP(CV183,'Footnotes list'!$D$9:$E$58,2,FALSE) ) )","v":""},null,null,null,null,{"$f":"IF(TRIM(DA183)=\"\", \"\", IF(VLOOKUP(DA183,'Footnotes list'!$D$9:$E$58,2,FALSE)=0,\"\",VLOOKUP(DA183,'Footnotes list'!$D$9:$E$58,2,FALSE) ) )","v":""},null,null,null,null,{"$f":"IF(TRIM(DF183)=\"\", \"\", IF(VLOOKUP(DF183,'Footnotes list'!$D$9:$E$58,2,FALSE)=0,\"\",VLOOKUP(DF183,'Footnotes list'!$D$9:$E$58,2,FALSE) ) )","v":""},null,null,null,null,{"$f":"IF(TRIM(DK183)=\"\", \"\", IF(VLOOKUP(DK183,'Footnotes list'!$D$9:$E$58,2,FALSE)=0,\"\",VLOOKUP(DK183,'Footnotes list'!$D$9:$E$58,2,FALSE) ) )","v":""},null,null,null,null,{"$f":"IF(TRIM(DP183)=\"\", \"\", IF(VLOOKUP(DP183,'Footnotes list'!$D$9:$E$58,2,FALSE)=0,\"\",VLOOKUP(DP183,'Footnotes list'!$D$9:$E$58,2,FALSE) ) )","v":""},null,null,null,null,{"$f":"IF(TRIM(DU183)=\"\", \"\", IF(VLOOKUP(DU183,'Footnotes list'!$D$9:$E$58,2,FALSE)=0,\"\",VLOOKUP(DU183,'Footnotes list'!$D$9:$E$58,2,FALSE) ) )","v":""},null,null,null,null,{"$f":"IF(TRIM(DZ183)=\"\", \"\", IF(VLOOKUP(DZ183,'Footnotes list'!$D$9:$E$58,2,FALSE)=0,\"\",VLOOKUP(DZ183,'Footnotes list'!$D$9:$E$58,2,FALSE) ) )","v":""},null,null,null,null,{"$f":"IF(TRIM(EE183)=\"\", \"\", IF(VLOOKUP(EE183,'Footnotes list'!$D$9:$E$58,2,FALSE)=0,\"\",VLOOKUP(EE183,'Footnotes list'!$D$9:$E$58,2,FALSE) ) )","v":""},null,null,null,null,{"$f":"IF(TRIM(EJ183)=\"\", \"\", IF(VLOOKUP(EJ183,'Footnotes list'!$D$9:$E$58,2,FALSE)=0,\"\",VLOOKUP(EJ183,'Footnotes list'!$D$9:$E$58,2,FALSE) ) )","v":""},null,null,null,null,{"$f":"IF(TRIM(EO183)=\"\", \"\", IF(VLOOKUP(EO183,'Footnotes list'!$D$9:$E$58,2,FALSE)=0,\"\",VLOOKUP(EO183,'Footnotes list'!$D$9:$E$58,2,FALSE) ) )","v":""},null,null,null,null,{"$f":"IF(TRIM(ET183)=\"\", \"\", IF(VLOOKUP(ET183,'Footnotes list'!$D$9:$E$58,2,FALSE)=0,\"\",VLOOKUP(ET183,'Footnotes list'!$D$9:$E$58,2,FALSE) ) )","v":""},null,null,null,null,{"$f":"IF(TRIM(EY183)=\"\", \"\", IF(VLOOKUP(EY183,'Footnotes list'!$D$9:$E$58,2,FALSE)=0,\"\",VLOOKUP(EY183,'Footnotes list'!$D$9:$E$58,2,FALSE) ) )","v":""}]
[null,null,"H","ANC","ancillary activities",null,null,null,null,null,{"$f":"IF(TRIM(J184)=\"\", \"\", IF(VLOOKUP(J184,'Footnotes list'!$D$9:$E$58,2,FALSE)=0,\"\",VLOOKUP(J184,'Footnotes list'!$D$9:$E$58,2,FALSE) ) )","v":""},null,null,null,null,{"$f":"IF(TRIM(O184)=\"\", \"\", IF(VLOOKUP(O184,'Footnotes list'!$D$9:$E$58,2,FALSE)=0,\"\",VLOOKUP(O184,'Footnotes list'!$D$9:$E$58,2,FALSE) ) )","v":""},null,null,null,null,{"$f":"IF(TRIM(T184)=\"\", \"\", IF(VLOOKUP(T184,'Footnotes list'!$D$9:$E$58,2,FALSE)=0,\"\",VLOOKUP(T184,'Footnotes list'!$D$9:$E$58,2,FALSE) ) )","v":""},null,null,null,null,{"$f":"IF(TRIM(Y184)=\"\", \"\", IF(VLOOKUP(Y184,'Footnotes list'!$D$9:$E$58,2,FALSE)=0,\"\",VLOOKUP(Y184,'Footnotes list'!$D$9:$E$58,2,FALSE) ) )","v":""},null,null,null,null,{"$f":"IF(TRIM(AD184)=\"\", \"\", IF(VLOOKUP(AD184,'Footnotes list'!$D$9:$E$58,2,FALSE)=0,\"\",VLOOKUP(AD184,'Footnotes list'!$D$9:$E$58,2,FALSE) ) )","v":""},null,null,null,null,{"$f":"IF(TRIM(AI184)=\"\", \"\", IF(VLOOKUP(AI184,'Footnotes list'!$D$9:$E$58,2,FALSE)=0,\"\",VLOOKUP(AI184,'Footnotes list'!$D$9:$E$58,2,FALSE) ) )","v":""},null,null,null,null,{"$f":"IF(TRIM(AN184)=\"\", \"\", IF(VLOOKUP(AN184,'Footnotes list'!$D$9:$E$58,2,FALSE)=0,\"\",VLOOKUP(AN184,'Footnotes list'!$D$9:$E$58,2,FALSE) ) )","v":""},null,null,null,null,{"$f":"IF(TRIM(AS184)=\"\", \"\", IF(VLOOKUP(AS184,'Footnotes list'!$D$9:$E$58,2,FALSE)=0,\"\",VLOOKUP(AS184,'Footnotes list'!$D$9:$E$58,2,FALSE) ) )","v":""},null,null,null,null,{"$f":"IF(TRIM(AX184)=\"\", \"\", IF(VLOOKUP(AX184,'Footnotes list'!$D$9:$E$58,2,FALSE)=0,\"\",VLOOKUP(AX184,'Footnotes list'!$D$9:$E$58,2,FALSE) ) )","v":""},null,null,null,null,{"$f":"IF(TRIM(BC184)=\"\", \"\", IF(VLOOKUP(BC184,'Footnotes list'!$D$9:$E$58,2,FALSE)=0,\"\",VLOOKUP(BC184,'Footnotes list'!$D$9:$E$58,2,FALSE) ) )","v":""},null,null,null,null,{"$f":"IF(TRIM(BH184)=\"\", \"\", IF(VLOOKUP(BH184,'Footnotes list'!$D$9:$E$58,2,FALSE)=0,\"\",VLOOKUP(BH184,'Footnotes list'!$D$9:$E$58,2,FALSE) ) )","v":""},null,null,null,null,{"$f":"IF(TRIM(BM184)=\"\", \"\", IF(VLOOKUP(BM184,'Footnotes list'!$D$9:$E$58,2,FALSE)=0,\"\",VLOOKUP(BM184,'Footnotes list'!$D$9:$E$58,2,FALSE) ) )","v":""},null,null,null,null,{"$f":"IF(TRIM(BR184)=\"\", \"\", IF(VLOOKUP(BR184,'Footnotes list'!$D$9:$E$58,2,FALSE)=0,\"\",VLOOKUP(BR184,'Footnotes list'!$D$9:$E$58,2,FALSE) ) )","v":""},null,null,null,null,{"$f":"IF(TRIM(BW184)=\"\", \"\", IF(VLOOKUP(BW184,'Footnotes list'!$D$9:$E$58,2,FALSE)=0,\"\",VLOOKUP(BW184,'Footnotes list'!$D$9:$E$58,2,FALSE) ) )","v":""},null,null,null,null,{"$f":"IF(TRIM(CB184)=\"\", \"\", IF(VLOOKUP(CB184,'Footnotes list'!$D$9:$E$58,2,FALSE)=0,\"\",VLOOKUP(CB184,'Footnotes list'!$D$9:$E$58,2,FALSE) ) )","v":""},null,null,null,null,{"$f":"IF(TRIM(CG184)=\"\", \"\", IF(VLOOKUP(CG184,'Footnotes list'!$D$9:$E$58,2,FALSE)=0,\"\",VLOOKUP(CG184,'Footnotes list'!$D$9:$E$58,2,FALSE) ) )","v":""},null,null,null,null,{"$f":"IF(TRIM(CL184)=\"\", \"\", IF(VLOOKUP(CL184,'Footnotes list'!$D$9:$E$58,2,FALSE)=0,\"\",VLOOKUP(CL184,'Footnotes list'!$D$9:$E$58,2,FALSE) ) )","v":""},null,null,null,null,{"$f":"IF(TRIM(CQ184)=\"\", \"\", IF(VLOOKUP(CQ184,'Footnotes list'!$D$9:$E$58,2,FALSE)=0,\"\",VLOOKUP(CQ184,'Footnotes list'!$D$9:$E$58,2,FALSE) ) )","v":""},null,null,null,null,{"$f":"IF(TRIM(CV184)=\"\", \"\", IF(VLOOKUP(CV184,'Footnotes list'!$D$9:$E$58,2,FALSE)=0,\"\",VLOOKUP(CV184,'Footnotes list'!$D$9:$E$58,2,FALSE) ) )","v":""},null,null,null,null,{"$f":"IF(TRIM(DA184)=\"\", \"\", IF(VLOOKUP(DA184,'Footnotes list'!$D$9:$E$58,2,FALSE)=0,\"\",VLOOKUP(DA184,'Footnotes list'!$D$9:$E$58,2,FALSE) ) )","v":""},null,null,null,null,{"$f":"IF(TRIM(DF184)=\"\", \"\", IF(VLOOKUP(DF184,'Footnotes list'!$D$9:$E$58,2,FALSE)=0,\"\",VLOOKUP(DF184,'Footnotes list'!$D$9:$E$58,2,FALSE) ) )","v":""},null,null,null,null,{"$f":"IF(TRIM(DK184)=\"\", \"\", IF(VLOOKUP(DK184,'Footnotes list'!$D$9:$E$58,2,FALSE)=0,\"\",VLOOKUP(DK184,'Footnotes list'!$D$9:$E$58,2,FALSE) ) )","v":""},null,null,null,null,{"$f":"IF(TRIM(DP184)=\"\", \"\", IF(VLOOKUP(DP184,'Footnotes list'!$D$9:$E$58,2,FALSE)=0,\"\",VLOOKUP(DP184,'Footnotes list'!$D$9:$E$58,2,FALSE) ) )","v":""},null,null,null,null,{"$f":"IF(TRIM(DU184)=\"\", \"\", IF(VLOOKUP(DU184,'Footnotes list'!$D$9:$E$58,2,FALSE)=0,\"\",VLOOKUP(DU184,'Footnotes list'!$D$9:$E$58,2,FALSE) ) )","v":""},null,null,null,null,{"$f":"IF(TRIM(DZ184)=\"\", \"\", IF(VLOOKUP(DZ184,'Footnotes list'!$D$9:$E$58,2,FALSE)=0,\"\",VLOOKUP(DZ184,'Footnotes list'!$D$9:$E$58,2,FALSE) ) )","v":""},null,null,null,null,{"$f":"IF(TRIM(EE184)=\"\", \"\", IF(VLOOKUP(EE184,'Footnotes list'!$D$9:$E$58,2,FALSE)=0,\"\",VLOOKUP(EE184,'Footnotes list'!$D$9:$E$58,2,FALSE) ) )","v":""},null,null,null,null,{"$f":"IF(TRIM(EJ184)=\"\", \"\", IF(VLOOKUP(EJ184,'Footnotes list'!$D$9:$E$58,2,FALSE)=0,\"\",VLOOKUP(EJ184,'Footnotes list'!$D$9:$E$58,2,FALSE) ) )","v":""},null,null,null,null,{"$f":"IF(TRIM(EO184)=\"\", \"\", IF(VLOOKUP(EO184,'Footnotes list'!$D$9:$E$58,2,FALSE)=0,\"\",VLOOKUP(EO184,'Footnotes list'!$D$9:$E$58,2,FALSE) ) )","v":""},null,null,null,null,{"$f":"IF(TRIM(ET184)=\"\", \"\", IF(VLOOKUP(ET184,'Footnotes list'!$D$9:$E$58,2,FALSE)=0,\"\",VLOOKUP(ET184,'Footnotes list'!$D$9:$E$58,2,FALSE) ) )","v":""},null,null,null,null,{"$f":"IF(TRIM(EY184)=\"\", \"\", IF(VLOOKUP(EY184,'Footnotes list'!$D$9:$E$58,2,FALSE)=0,\"\",VLOOKUP(EY184,'Footnotes list'!$D$9:$E$58,2,FALSE) ) )","v":""}]
[null,null,"H","NMKT","non-market activities",null,null,null,null,null,{"$f":"IF(TRIM(J185)=\"\", \"\", IF(VLOOKUP(J185,'Footnotes list'!$D$9:$E$58,2,FALSE)=0,\"\",VLOOKUP(J185,'Footnotes list'!$D$9:$E$58,2,FALSE) ) )","v":""},null,null,null,null,{"$f":"IF(TRIM(O185)=\"\", \"\", IF(VLOOKUP(O185,'Footnotes list'!$D$9:$E$58,2,FALSE)=0,\"\",VLOOKUP(O185,'Footnotes list'!$D$9:$E$58,2,FALSE) ) )","v":""},null,null,null,null,{"$f":"IF(TRIM(T185)=\"\", \"\", IF(VLOOKUP(T185,'Footnotes list'!$D$9:$E$58,2,FALSE)=0,\"\",VLOOKUP(T185,'Footnotes list'!$D$9:$E$58,2,FALSE) ) )","v":""},null,null,null,null,{"$f":"IF(TRIM(Y185)=\"\", \"\", IF(VLOOKUP(Y185,'Footnotes list'!$D$9:$E$58,2,FALSE)=0,\"\",VLOOKUP(Y185,'Footnotes list'!$D$9:$E$58,2,FALSE) ) )","v":""},null,null,null,null,{"$f":"IF(TRIM(AD185)=\"\", \"\", IF(VLOOKUP(AD185,'Footnotes list'!$D$9:$E$58,2,FALSE)=0,\"\",VLOOKUP(AD185,'Footnotes list'!$D$9:$E$58,2,FALSE) ) )","v":""},null,null,null,null,{"$f":"IF(TRIM(AI185)=\"\", \"\", IF(VLOOKUP(AI185,'Footnotes list'!$D$9:$E$58,2,FALSE)=0,\"\",VLOOKUP(AI185,'Footnotes list'!$D$9:$E$58,2,FALSE) ) )","v":""},null,null,null,null,{"$f":"IF(TRIM(AN185)=\"\", \"\", IF(VLOOKUP(AN185,'Footnotes list'!$D$9:$E$58,2,FALSE)=0,\"\",VLOOKUP(AN185,'Footnotes list'!$D$9:$E$58,2,FALSE) ) )","v":""},null,null,null,null,{"$f":"IF(TRIM(AS185)=\"\", \"\", IF(VLOOKUP(AS185,'Footnotes list'!$D$9:$E$58,2,FALSE)=0,\"\",VLOOKUP(AS185,'Footnotes list'!$D$9:$E$58,2,FALSE) ) )","v":""},null,null,null,null,{"$f":"IF(TRIM(AX185)=\"\", \"\", IF(VLOOKUP(AX185,'Footnotes list'!$D$9:$E$58,2,FALSE)=0,\"\",VLOOKUP(AX185,'Footnotes list'!$D$9:$E$58,2,FALSE) ) )","v":""},null,null,null,null,{"$f":"IF(TRIM(BC185)=\"\", \"\", IF(VLOOKUP(BC185,'Footnotes list'!$D$9:$E$58,2,FALSE)=0,\"\",VLOOKUP(BC185,'Footnotes list'!$D$9:$E$58,2,FALSE) ) )","v":""},null,null,null,null,{"$f":"IF(TRIM(BH185)=\"\", \"\", IF(VLOOKUP(BH185,'Footnotes list'!$D$9:$E$58,2,FALSE)=0,\"\",VLOOKUP(BH185,'Footnotes list'!$D$9:$E$58,2,FALSE) ) )","v":""},null,null,null,null,{"$f":"IF(TRIM(BM185)=\"\", \"\", IF(VLOOKUP(BM185,'Footnotes list'!$D$9:$E$58,2,FALSE)=0,\"\",VLOOKUP(BM185,'Footnotes list'!$D$9:$E$58,2,FALSE) ) )","v":""},null,null,null,null,{"$f":"IF(TRIM(BR185)=\"\", \"\", IF(VLOOKUP(BR185,'Footnotes list'!$D$9:$E$58,2,FALSE)=0,\"\",VLOOKUP(BR185,'Footnotes list'!$D$9:$E$58,2,FALSE) ) )","v":""},null,null,null,null,{"$f":"IF(TRIM(BW185)=\"\", \"\", IF(VLOOKUP(BW185,'Footnotes list'!$D$9:$E$58,2,FALSE)=0,\"\",VLOOKUP(BW185,'Footnotes list'!$D$9:$E$58,2,FALSE) ) )","v":""},null,null,null,null,{"$f":"IF(TRIM(CB185)=\"\", \"\", IF(VLOOKUP(CB185,'Footnotes list'!$D$9:$E$58,2,FALSE)=0,\"\",VLOOKUP(CB185,'Footnotes list'!$D$9:$E$58,2,FALSE) ) )","v":""},null,null,null,null,{"$f":"IF(TRIM(CG185)=\"\", \"\", IF(VLOOKUP(CG185,'Footnotes list'!$D$9:$E$58,2,FALSE)=0,\"\",VLOOKUP(CG185,'Footnotes list'!$D$9:$E$58,2,FALSE) ) )","v":""},null,null,null,null,{"$f":"IF(TRIM(CL185)=\"\", \"\", IF(VLOOKUP(CL185,'Footnotes list'!$D$9:$E$58,2,FALSE)=0,\"\",VLOOKUP(CL185,'Footnotes list'!$D$9:$E$58,2,FALSE) ) )","v":""},null,null,null,null,{"$f":"IF(TRIM(CQ185)=\"\", \"\", IF(VLOOKUP(CQ185,'Footnotes list'!$D$9:$E$58,2,FALSE)=0,\"\",VLOOKUP(CQ185,'Footnotes list'!$D$9:$E$58,2,FALSE) ) )","v":""},null,null,null,null,{"$f":"IF(TRIM(CV185)=\"\", \"\", IF(VLOOKUP(CV185,'Footnotes list'!$D$9:$E$58,2,FALSE)=0,\"\",VLOOKUP(CV185,'Footnotes list'!$D$9:$E$58,2,FALSE) ) )","v":""},null,null,null,null,{"$f":"IF(TRIM(DA185)=\"\", \"\", IF(VLOOKUP(DA185,'Footnotes list'!$D$9:$E$58,2,FALSE)=0,\"\",VLOOKUP(DA185,'Footnotes list'!$D$9:$E$58,2,FALSE) ) )","v":""},null,null,null,null,{"$f":"IF(TRIM(DF185)=\"\", \"\", IF(VLOOKUP(DF185,'Footnotes list'!$D$9:$E$58,2,FALSE)=0,\"\",VLOOKUP(DF185,'Footnotes list'!$D$9:$E$58,2,FALSE) ) )","v":""},null,null,null,null,{"$f":"IF(TRIM(DK185)=\"\", \"\", IF(VLOOKUP(DK185,'Footnotes list'!$D$9:$E$58,2,FALSE)=0,\"\",VLOOKUP(DK185,'Footnotes list'!$D$9:$E$58,2,FALSE) ) )","v":""},null,null,null,null,{"$f":"IF(TRIM(DP185)=\"\", \"\", IF(VLOOKUP(DP185,'Footnotes list'!$D$9:$E$58,2,FALSE)=0,\"\",VLOOKUP(DP185,'Footnotes list'!$D$9:$E$58,2,FALSE) ) )","v":""},null,null,null,null,{"$f":"IF(TRIM(DU185)=\"\", \"\", IF(VLOOKUP(DU185,'Footnotes list'!$D$9:$E$58,2,FALSE)=0,\"\",VLOOKUP(DU185,'Footnotes list'!$D$9:$E$58,2,FALSE) ) )","v":""},null,null,null,null,{"$f":"IF(TRIM(DZ185)=\"\", \"\", IF(VLOOKUP(DZ185,'Footnotes list'!$D$9:$E$58,2,FALSE)=0,\"\",VLOOKUP(DZ185,'Footnotes list'!$D$9:$E$58,2,FALSE) ) )","v":""},null,null,null,null,{"$f":"IF(TRIM(EE185)=\"\", \"\", IF(VLOOKUP(EE185,'Footnotes list'!$D$9:$E$58,2,FALSE)=0,\"\",VLOOKUP(EE185,'Footnotes list'!$D$9:$E$58,2,FALSE) ) )","v":""},null,null,null,null,{"$f":"IF(TRIM(EJ185)=\"\", \"\", IF(VLOOKUP(EJ185,'Footnotes list'!$D$9:$E$58,2,FALSE)=0,\"\",VLOOKUP(EJ185,'Footnotes list'!$D$9:$E$58,2,FALSE) ) )","v":""},null,null,null,null,{"$f":"IF(TRIM(EO185)=\"\", \"\", IF(VLOOKUP(EO185,'Footnotes list'!$D$9:$E$58,2,FALSE)=0,\"\",VLOOKUP(EO185,'Footnotes list'!$D$9:$E$58,2,FALSE) ) )","v":""},null,null,null,null,{"$f":"IF(TRIM(ET185)=\"\", \"\", IF(VLOOKUP(ET185,'Footnotes list'!$D$9:$E$58,2,FALSE)=0,\"\",VLOOKUP(ET185,'Footnotes list'!$D$9:$E$58,2,FALSE) ) )","v":""},null,null,null,null,{"$f":"IF(TRIM(EY185)=\"\", \"\", IF(VLOOKUP(EY185,'Footnotes list'!$D$9:$E$58,2,FALSE)=0,\"\",VLOOKUP(EY185,'Footnotes list'!$D$9:$E$58,2,FALSE) ) )","v":""}]
[null,null,"H","OWN_USE","activities for own final use",null,null,null,null,null,{"$f":"IF(TRIM(J186)=\"\", \"\", IF(VLOOKUP(J186,'Footnotes list'!$D$9:$E$58,2,FALSE)=0,\"\",VLOOKUP(J186,'Footnotes list'!$D$9:$E$58,2,FALSE) ) )","v":""},null,null,null,null,{"$f":"IF(TRIM(O186)=\"\", \"\", IF(VLOOKUP(O186,'Footnotes list'!$D$9:$E$58,2,FALSE)=0,\"\",VLOOKUP(O186,'Footnotes list'!$D$9:$E$58,2,FALSE) ) )","v":""},null,null,null,null,{"$f":"IF(TRIM(T186)=\"\", \"\", IF(VLOOKUP(T186,'Footnotes list'!$D$9:$E$58,2,FALSE)=0,\"\",VLOOKUP(T186,'Footnotes list'!$D$9:$E$58,2,FALSE) ) )","v":""},null,null,null,null,{"$f":"IF(TRIM(Y186)=\"\", \"\", IF(VLOOKUP(Y186,'Footnotes list'!$D$9:$E$58,2,FALSE)=0,\"\",VLOOKUP(Y186,'Footnotes list'!$D$9:$E$58,2,FALSE) ) )","v":""},null,null,null,null,{"$f":"IF(TRIM(AD186)=\"\", \"\", IF(VLOOKUP(AD186,'Footnotes list'!$D$9:$E$58,2,FALSE)=0,\"\",VLOOKUP(AD186,'Footnotes list'!$D$9:$E$58,2,FALSE) ) )","v":""},null,null,null,null,{"$f":"IF(TRIM(AI186)=\"\", \"\", IF(VLOOKUP(AI186,'Footnotes list'!$D$9:$E$58,2,FALSE)=0,\"\",VLOOKUP(AI186,'Footnotes list'!$D$9:$E$58,2,FALSE) ) )","v":""},null,null,null,null,{"$f":"IF(TRIM(AN186)=\"\", \"\", IF(VLOOKUP(AN186,'Footnotes list'!$D$9:$E$58,2,FALSE)=0,\"\",VLOOKUP(AN186,'Footnotes list'!$D$9:$E$58,2,FALSE) ) )","v":""},null,null,null,null,{"$f":"IF(TRIM(AS186)=\"\", \"\", IF(VLOOKUP(AS186,'Footnotes list'!$D$9:$E$58,2,FALSE)=0,\"\",VLOOKUP(AS186,'Footnotes list'!$D$9:$E$58,2,FALSE) ) )","v":""},null,null,null,null,{"$f":"IF(TRIM(AX186)=\"\", \"\", IF(VLOOKUP(AX186,'Footnotes list'!$D$9:$E$58,2,FALSE)=0,\"\",VLOOKUP(AX186,'Footnotes list'!$D$9:$E$58,2,FALSE) ) )","v":""},null,null,null,null,{"$f":"IF(TRIM(BC186)=\"\", \"\", IF(VLOOKUP(BC186,'Footnotes list'!$D$9:$E$58,2,FALSE)=0,\"\",VLOOKUP(BC186,'Footnotes list'!$D$9:$E$58,2,FALSE) ) )","v":""},null,null,null,null,{"$f":"IF(TRIM(BH186)=\"\", \"\", IF(VLOOKUP(BH186,'Footnotes list'!$D$9:$E$58,2,FALSE)=0,\"\",VLOOKUP(BH186,'Footnotes list'!$D$9:$E$58,2,FALSE) ) )","v":""},null,null,null,null,{"$f":"IF(TRIM(BM186)=\"\", \"\", IF(VLOOKUP(BM186,'Footnotes list'!$D$9:$E$58,2,FALSE)=0,\"\",VLOOKUP(BM186,'Footnotes list'!$D$9:$E$58,2,FALSE) ) )","v":""},null,null,null,null,{"$f":"IF(TRIM(BR186)=\"\", \"\", IF(VLOOKUP(BR186,'Footnotes list'!$D$9:$E$58,2,FALSE)=0,\"\",VLOOKUP(BR186,'Footnotes list'!$D$9:$E$58,2,FALSE) ) )","v":""},null,null,null,null,{"$f":"IF(TRIM(BW186)=\"\", \"\", IF(VLOOKUP(BW186,'Footnotes list'!$D$9:$E$58,2,FALSE)=0,\"\",VLOOKUP(BW186,'Footnotes list'!$D$9:$E$58,2,FALSE) ) )","v":""},null,null,null,null,{"$f":"IF(TRIM(CB186)=\"\", \"\", IF(VLOOKUP(CB186,'Footnotes list'!$D$9:$E$58,2,FALSE)=0,\"\",VLOOKUP(CB186,'Footnotes list'!$D$9:$E$58,2,FALSE) ) )","v":""},null,null,null,null,{"$f":"IF(TRIM(CG186)=\"\", \"\", IF(VLOOKUP(CG186,'Footnotes list'!$D$9:$E$58,2,FALSE)=0,\"\",VLOOKUP(CG186,'Footnotes list'!$D$9:$E$58,2,FALSE) ) )","v":""},null,null,null,null,{"$f":"IF(TRIM(CL186)=\"\", \"\", IF(VLOOKUP(CL186,'Footnotes list'!$D$9:$E$58,2,FALSE)=0,\"\",VLOOKUP(CL186,'Footnotes list'!$D$9:$E$58,2,FALSE) ) )","v":""},null,null,null,null,{"$f":"IF(TRIM(CQ186)=\"\", \"\", IF(VLOOKUP(CQ186,'Footnotes list'!$D$9:$E$58,2,FALSE)=0,\"\",VLOOKUP(CQ186,'Footnotes list'!$D$9:$E$58,2,FALSE) ) )","v":""},null,null,null,null,{"$f":"IF(TRIM(CV186)=\"\", \"\", IF(VLOOKUP(CV186,'Footnotes list'!$D$9:$E$58,2,FALSE)=0,\"\",VLOOKUP(CV186,'Footnotes list'!$D$9:$E$58,2,FALSE) ) )","v":""},null,null,null,null,{"$f":"IF(TRIM(DA186)=\"\", \"\", IF(VLOOKUP(DA186,'Footnotes list'!$D$9:$E$58,2,FALSE)=0,\"\",VLOOKUP(DA186,'Footnotes list'!$D$9:$E$58,2,FALSE) ) )","v":""},null,null,null,null,{"$f":"IF(TRIM(DF186)=\"\", \"\", IF(VLOOKUP(DF186,'Footnotes list'!$D$9:$E$58,2,FALSE)=0,\"\",VLOOKUP(DF186,'Footnotes list'!$D$9:$E$58,2,FALSE) ) )","v":""},null,null,null,null,{"$f":"IF(TRIM(DK186)=\"\", \"\", IF(VLOOKUP(DK186,'Footnotes list'!$D$9:$E$58,2,FALSE)=0,\"\",VLOOKUP(DK186,'Footnotes list'!$D$9:$E$58,2,FALSE) ) )","v":""},null,null,null,null,{"$f":"IF(TRIM(DP186)=\"\", \"\", IF(VLOOKUP(DP186,'Footnotes list'!$D$9:$E$58,2,FALSE)=0,\"\",VLOOKUP(DP186,'Footnotes list'!$D$9:$E$58,2,FALSE) ) )","v":""},null,null,null,null,{"$f":"IF(TRIM(DU186)=\"\", \"\", IF(VLOOKUP(DU186,'Footnotes list'!$D$9:$E$58,2,FALSE)=0,\"\",VLOOKUP(DU186,'Footnotes list'!$D$9:$E$58,2,FALSE) ) )","v":""},null,null,null,null,{"$f":"IF(TRIM(DZ186)=\"\", \"\", IF(VLOOKUP(DZ186,'Footnotes list'!$D$9:$E$58,2,FALSE)=0,\"\",VLOOKUP(DZ186,'Footnotes list'!$D$9:$E$58,2,FALSE) ) )","v":""},null,null,null,null,{"$f":"IF(TRIM(EE186)=\"\", \"\", IF(VLOOKUP(EE186,'Footnotes list'!$D$9:$E$58,2,FALSE)=0,\"\",VLOOKUP(EE186,'Footnotes list'!$D$9:$E$58,2,FALSE) ) )","v":""},null,null,null,null,{"$f":"IF(TRIM(EJ186)=\"\", \"\", IF(VLOOKUP(EJ186,'Footnotes list'!$D$9:$E$58,2,FALSE)=0,\"\",VLOOKUP(EJ186,'Footnotes list'!$D$9:$E$58,2,FALSE) ) )","v":""},null,null,null,null,{"$f":"IF(TRIM(EO186)=\"\", \"\", IF(VLOOKUP(EO186,'Footnotes list'!$D$9:$E$58,2,FALSE)=0,\"\",VLOOKUP(EO186,'Footnotes list'!$D$9:$E$58,2,FALSE) ) )","v":""},null,null,null,null,{"$f":"IF(TRIM(ET186)=\"\", \"\", IF(VLOOKUP(ET186,'Footnotes list'!$D$9:$E$58,2,FALSE)=0,\"\",VLOOKUP(ET186,'Footnotes list'!$D$9:$E$58,2,FALSE) ) )","v":""},null,null,null,null,{"$f":"IF(TRIM(EY186)=\"\", \"\", IF(VLOOKUP(EY186,'Footnotes list'!$D$9:$E$58,2,FALSE)=0,\"\",VLOOKUP(EY186,'Footnotes list'!$D$9:$E$58,2,FALSE) ) )","v":""}]
[null,null,"H","MKT","market activities, including:",null,null,null,null,null,{"$f":"IF(TRIM(J187)=\"\", \"\", IF(VLOOKUP(J187,'Footnotes list'!$D$9:$E$58,2,FALSE)=0,\"\",VLOOKUP(J187,'Footnotes list'!$D$9:$E$58,2,FALSE) ) )","v":""},null,null,null,null,{"$f":"IF(TRIM(O187)=\"\", \"\", IF(VLOOKUP(O187,'Footnotes list'!$D$9:$E$58,2,FALSE)=0,\"\",VLOOKUP(O187,'Footnotes list'!$D$9:$E$58,2,FALSE) ) )","v":""},null,null,null,null,{"$f":"IF(TRIM(T187)=\"\", \"\", IF(VLOOKUP(T187,'Footnotes list'!$D$9:$E$58,2,FALSE)=0,\"\",VLOOKUP(T187,'Footnotes list'!$D$9:$E$58,2,FALSE) ) )","v":""},null,null,null,null,{"$f":"IF(TRIM(Y187)=\"\", \"\", IF(VLOOKUP(Y187,'Footnotes list'!$D$9:$E$58,2,FALSE)=0,\"\",VLOOKUP(Y187,'Footnotes list'!$D$9:$E$58,2,FALSE) ) )","v":""},null,null,null,null,{"$f":"IF(TRIM(AD187)=\"\", \"\", IF(VLOOKUP(AD187,'Footnotes list'!$D$9:$E$58,2,FALSE)=0,\"\",VLOOKUP(AD187,'Footnotes list'!$D$9:$E$58,2,FALSE) ) )","v":""},null,null,null,null,{"$f":"IF(TRIM(AI187)=\"\", \"\", IF(VLOOKUP(AI187,'Footnotes list'!$D$9:$E$58,2,FALSE)=0,\"\",VLOOKUP(AI187,'Footnotes list'!$D$9:$E$58,2,FALSE) ) )","v":""},null,null,null,null,{"$f":"IF(TRIM(AN187)=\"\", \"\", IF(VLOOKUP(AN187,'Footnotes list'!$D$9:$E$58,2,FALSE)=0,\"\",VLOOKUP(AN187,'Footnotes list'!$D$9:$E$58,2,FALSE) ) )","v":""},null,null,null,null,{"$f":"IF(TRIM(AS187)=\"\", \"\", IF(VLOOKUP(AS187,'Footnotes list'!$D$9:$E$58,2,FALSE)=0,\"\",VLOOKUP(AS187,'Footnotes list'!$D$9:$E$58,2,FALSE) ) )","v":""},null,null,null,null,{"$f":"IF(TRIM(AX187)=\"\", \"\", IF(VLOOKUP(AX187,'Footnotes list'!$D$9:$E$58,2,FALSE)=0,\"\",VLOOKUP(AX187,'Footnotes list'!$D$9:$E$58,2,FALSE) ) )","v":""},null,null,null,null,{"$f":"IF(TRIM(BC187)=\"\", \"\", IF(VLOOKUP(BC187,'Footnotes list'!$D$9:$E$58,2,FALSE)=0,\"\",VLOOKUP(BC187,'Footnotes list'!$D$9:$E$58,2,FALSE) ) )","v":""},null,null,null,null,{"$f":"IF(TRIM(BH187)=\"\", \"\", IF(VLOOKUP(BH187,'Footnotes list'!$D$9:$E$58,2,FALSE)=0,\"\",VLOOKUP(BH187,'Footnotes list'!$D$9:$E$58,2,FALSE) ) )","v":""},null,null,null,null,{"$f":"IF(TRIM(BM187)=\"\", \"\", IF(VLOOKUP(BM187,'Footnotes list'!$D$9:$E$58,2,FALSE)=0,\"\",VLOOKUP(BM187,'Footnotes list'!$D$9:$E$58,2,FALSE) ) )","v":""},null,null,null,null,{"$f":"IF(TRIM(BR187)=\"\", \"\", IF(VLOOKUP(BR187,'Footnotes list'!$D$9:$E$58,2,FALSE)=0,\"\",VLOOKUP(BR187,'Footnotes list'!$D$9:$E$58,2,FALSE) ) )","v":""},null,null,null,null,{"$f":"IF(TRIM(BW187)=\"\", \"\", IF(VLOOKUP(BW187,'Footnotes list'!$D$9:$E$58,2,FALSE)=0,\"\",VLOOKUP(BW187,'Footnotes list'!$D$9:$E$58,2,FALSE) ) )","v":""},null,null,null,null,{"$f":"IF(TRIM(CB187)=\"\", \"\", IF(VLOOKUP(CB187,'Footnotes list'!$D$9:$E$58,2,FALSE)=0,\"\",VLOOKUP(CB187,'Footnotes list'!$D$9:$E$58,2,FALSE) ) )","v":""},null,null,null,null,{"$f":"IF(TRIM(CG187)=\"\", \"\", IF(VLOOKUP(CG187,'Footnotes list'!$D$9:$E$58,2,FALSE)=0,\"\",VLOOKUP(CG187,'Footnotes list'!$D$9:$E$58,2,FALSE) ) )","v":""},null,null,null,null,{"$f":"IF(TRIM(CL187)=\"\", \"\", IF(VLOOKUP(CL187,'Footnotes list'!$D$9:$E$58,2,FALSE)=0,\"\",VLOOKUP(CL187,'Footnotes list'!$D$9:$E$58,2,FALSE) ) )","v":""},null,null,null,null,{"$f":"IF(TRIM(CQ187)=\"\", \"\", IF(VLOOKUP(CQ187,'Footnotes list'!$D$9:$E$58,2,FALSE)=0,\"\",VLOOKUP(CQ187,'Footnotes list'!$D$9:$E$58,2,FALSE) ) )","v":""},null,null,null,null,{"$f":"IF(TRIM(CV187)=\"\", \"\", IF(VLOOKUP(CV187,'Footnotes list'!$D$9:$E$58,2,FALSE)=0,\"\",VLOOKUP(CV187,'Footnotes list'!$D$9:$E$58,2,FALSE) ) )","v":""},null,null,null,null,{"$f":"IF(TRIM(DA187)=\"\", \"\", IF(VLOOKUP(DA187,'Footnotes list'!$D$9:$E$58,2,FALSE)=0,\"\",VLOOKUP(DA187,'Footnotes list'!$D$9:$E$58,2,FALSE) ) )","v":""},null,null,null,null,{"$f":"IF(TRIM(DF187)=\"\", \"\", IF(VLOOKUP(DF187,'Footnotes list'!$D$9:$E$58,2,FALSE)=0,\"\",VLOOKUP(DF187,'Footnotes list'!$D$9:$E$58,2,FALSE) ) )","v":""},null,null,null,null,{"$f":"IF(TRIM(DK187)=\"\", \"\", IF(VLOOKUP(DK187,'Footnotes list'!$D$9:$E$58,2,FALSE)=0,\"\",VLOOKUP(DK187,'Footnotes list'!$D$9:$E$58,2,FALSE) ) )","v":""},null,null,null,null,{"$f":"IF(TRIM(DP187)=\"\", \"\", IF(VLOOKUP(DP187,'Footnotes list'!$D$9:$E$58,2,FALSE)=0,\"\",VLOOKUP(DP187,'Footnotes list'!$D$9:$E$58,2,FALSE) ) )","v":""},null,null,null,null,{"$f":"IF(TRIM(DU187)=\"\", \"\", IF(VLOOKUP(DU187,'Footnotes list'!$D$9:$E$58,2,FALSE)=0,\"\",VLOOKUP(DU187,'Footnotes list'!$D$9:$E$58,2,FALSE) ) )","v":""},null,null,null,null,{"$f":"IF(TRIM(DZ187)=\"\", \"\", IF(VLOOKUP(DZ187,'Footnotes list'!$D$9:$E$58,2,FALSE)=0,\"\",VLOOKUP(DZ187,'Footnotes list'!$D$9:$E$58,2,FALSE) ) )","v":""},null,null,null,null,{"$f":"IF(TRIM(EE187)=\"\", \"\", IF(VLOOKUP(EE187,'Footnotes list'!$D$9:$E$58,2,FALSE)=0,\"\",VLOOKUP(EE187,'Footnotes list'!$D$9:$E$58,2,FALSE) ) )","v":""},null,null,null,null,{"$f":"IF(TRIM(EJ187)=\"\", \"\", IF(VLOOKUP(EJ187,'Footnotes list'!$D$9:$E$58,2,FALSE)=0,\"\",VLOOKUP(EJ187,'Footnotes list'!$D$9:$E$58,2,FALSE) ) )","v":""},null,null,null,null,{"$f":"IF(TRIM(EO187)=\"\", \"\", IF(VLOOKUP(EO187,'Footnotes list'!$D$9:$E$58,2,FALSE)=0,\"\",VLOOKUP(EO187,'Footnotes list'!$D$9:$E$58,2,FALSE) ) )","v":""},null,null,null,null,{"$f":"IF(TRIM(ET187)=\"\", \"\", IF(VLOOKUP(ET187,'Footnotes list'!$D$9:$E$58,2,FALSE)=0,\"\",VLOOKUP(ET187,'Footnotes list'!$D$9:$E$58,2,FALSE) ) )","v":""},null,null,null,null,{"$f":"IF(TRIM(EY187)=\"\", \"\", IF(VLOOKUP(EY187,'Footnotes list'!$D$9:$E$58,2,FALSE)=0,\"\",VLOOKUP(EY187,'Footnotes list'!$D$9:$E$58,2,FALSE) ) )","v":""}]
[null,null,"H","ES_CS","environmental specific services",null,null,null,null,null,{"$f":"IF(TRIM(J188)=\"\", \"\", IF(VLOOKUP(J188,'Footnotes list'!$D$9:$E$58,2,FALSE)=0,\"\",VLOOKUP(J188,'Footnotes list'!$D$9:$E$58,2,FALSE) ) )","v":""},null,null,null,null,{"$f":"IF(TRIM(O188)=\"\", \"\", IF(VLOOKUP(O188,'Footnotes list'!$D$9:$E$58,2,FALSE)=0,\"\",VLOOKUP(O188,'Footnotes list'!$D$9:$E$58,2,FALSE) ) )","v":""},null,null,null,null,{"$f":"IF(TRIM(T188)=\"\", \"\", IF(VLOOKUP(T188,'Footnotes list'!$D$9:$E$58,2,FALSE)=0,\"\",VLOOKUP(T188,'Footnotes list'!$D$9:$E$58,2,FALSE) ) )","v":""},null,null,null,null,{"$f":"IF(TRIM(Y188)=\"\", \"\", IF(VLOOKUP(Y188,'Footnotes list'!$D$9:$E$58,2,FALSE)=0,\"\",VLOOKUP(Y188,'Footnotes list'!$D$9:$E$58,2,FALSE) ) )","v":""},null,null,null,null,{"$f":"IF(TRIM(AD188)=\"\", \"\", IF(VLOOKUP(AD188,'Footnotes list'!$D$9:$E$58,2,FALSE)=0,\"\",VLOOKUP(AD188,'Footnotes list'!$D$9:$E$58,2,FALSE) ) )","v":""},null,null,null,null,{"$f":"IF(TRIM(AI188)=\"\", \"\", IF(VLOOKUP(AI188,'Footnotes list'!$D$9:$E$58,2,FALSE)=0,\"\",VLOOKUP(AI188,'Footnotes list'!$D$9:$E$58,2,FALSE) ) )","v":""},null,null,null,null,{"$f":"IF(TRIM(AN188)=\"\", \"\", IF(VLOOKUP(AN188,'Footnotes list'!$D$9:$E$58,2,FALSE)=0,\"\",VLOOKUP(AN188,'Footnotes list'!$D$9:$E$58,2,FALSE) ) )","v":""},null,null,null,null,{"$f":"IF(TRIM(AS188)=\"\", \"\", IF(VLOOKUP(AS188,'Footnotes list'!$D$9:$E$58,2,FALSE)=0,\"\",VLOOKUP(AS188,'Footnotes list'!$D$9:$E$58,2,FALSE) ) )","v":""},null,null,null,null,{"$f":"IF(TRIM(AX188)=\"\", \"\", IF(VLOOKUP(AX188,'Footnotes list'!$D$9:$E$58,2,FALSE)=0,\"\",VLOOKUP(AX188,'Footnotes list'!$D$9:$E$58,2,FALSE) ) )","v":""},null,null,null,null,{"$f":"IF(TRIM(BC188)=\"\", \"\", IF(VLOOKUP(BC188,'Footnotes list'!$D$9:$E$58,2,FALSE)=0,\"\",VLOOKUP(BC188,'Footnotes list'!$D$9:$E$58,2,FALSE) ) )","v":""},null,null,null,null,{"$f":"IF(TRIM(BH188)=\"\", \"\", IF(VLOOKUP(BH188,'Footnotes list'!$D$9:$E$58,2,FALSE)=0,\"\",VLOOKUP(BH188,'Footnotes list'!$D$9:$E$58,2,FALSE) ) )","v":""},null,null,null,null,{"$f":"IF(TRIM(BM188)=\"\", \"\", IF(VLOOKUP(BM188,'Footnotes list'!$D$9:$E$58,2,FALSE)=0,\"\",VLOOKUP(BM188,'Footnotes list'!$D$9:$E$58,2,FALSE) ) )","v":""},null,null,null,null,{"$f":"IF(TRIM(BR188)=\"\", \"\", IF(VLOOKUP(BR188,'Footnotes list'!$D$9:$E$58,2,FALSE)=0,\"\",VLOOKUP(BR188,'Footnotes list'!$D$9:$E$58,2,FALSE) ) )","v":""},null,null,null,null,{"$f":"IF(TRIM(BW188)=\"\", \"\", IF(VLOOKUP(BW188,'Footnotes list'!$D$9:$E$58,2,FALSE)=0,\"\",VLOOKUP(BW188,'Footnotes list'!$D$9:$E$58,2,FALSE) ) )","v":""},null,null,null,null,{"$f":"IF(TRIM(CB188)=\"\", \"\", IF(VLOOKUP(CB188,'Footnotes list'!$D$9:$E$58,2,FALSE)=0,\"\",VLOOKUP(CB188,'Footnotes list'!$D$9:$E$58,2,FALSE) ) )","v":""},null,null,null,null,{"$f":"IF(TRIM(CG188)=\"\", \"\", IF(VLOOKUP(CG188,'Footnotes list'!$D$9:$E$58,2,FALSE)=0,\"\",VLOOKUP(CG188,'Footnotes list'!$D$9:$E$58,2,FALSE) ) )","v":""},null,null,null,null,{"$f":"IF(TRIM(CL188)=\"\", \"\", IF(VLOOKUP(CL188,'Footnotes list'!$D$9:$E$58,2,FALSE)=0,\"\",VLOOKUP(CL188,'Footnotes list'!$D$9:$E$58,2,FALSE) ) )","v":""},null,null,null,null,{"$f":"IF(TRIM(CQ188)=\"\", \"\", IF(VLOOKUP(CQ188,'Footnotes list'!$D$9:$E$58,2,FALSE)=0,\"\",VLOOKUP(CQ188,'Footnotes list'!$D$9:$E$58,2,FALSE) ) )","v":""},null,null,null,null,{"$f":"IF(TRIM(CV188)=\"\", \"\", IF(VLOOKUP(CV188,'Footnotes list'!$D$9:$E$58,2,FALSE)=0,\"\",VLOOKUP(CV188,'Footnotes list'!$D$9:$E$58,2,FALSE) ) )","v":""},null,null,null,null,{"$f":"IF(TRIM(DA188)=\"\", \"\", IF(VLOOKUP(DA188,'Footnotes list'!$D$9:$E$58,2,FALSE)=0,\"\",VLOOKUP(DA188,'Footnotes list'!$D$9:$E$58,2,FALSE) ) )","v":""},null,null,null,null,{"$f":"IF(TRIM(DF188)=\"\", \"\", IF(VLOOKUP(DF188,'Footnotes list'!$D$9:$E$58,2,FALSE)=0,\"\",VLOOKUP(DF188,'Footnotes list'!$D$9:$E$58,2,FALSE) ) )","v":""},null,null,null,null,{"$f":"IF(TRIM(DK188)=\"\", \"\", IF(VLOOKUP(DK188,'Footnotes list'!$D$9:$E$58,2,FALSE)=0,\"\",VLOOKUP(DK188,'Footnotes list'!$D$9:$E$58,2,FALSE) ) )","v":""},null,null,null,null,{"$f":"IF(TRIM(DP188)=\"\", \"\", IF(VLOOKUP(DP188,'Footnotes list'!$D$9:$E$58,2,FALSE)=0,\"\",VLOOKUP(DP188,'Footnotes list'!$D$9:$E$58,2,FALSE) ) )","v":""},null,null,null,null,{"$f":"IF(TRIM(DU188)=\"\", \"\", IF(VLOOKUP(DU188,'Footnotes list'!$D$9:$E$58,2,FALSE)=0,\"\",VLOOKUP(DU188,'Footnotes list'!$D$9:$E$58,2,FALSE) ) )","v":""},null,null,null,null,{"$f":"IF(TRIM(DZ188)=\"\", \"\", IF(VLOOKUP(DZ188,'Footnotes list'!$D$9:$E$58,2,FALSE)=0,\"\",VLOOKUP(DZ188,'Footnotes list'!$D$9:$E$58,2,FALSE) ) )","v":""},null,null,null,null,{"$f":"IF(TRIM(EE188)=\"\", \"\", IF(VLOOKUP(EE188,'Footnotes list'!$D$9:$E$58,2,FALSE)=0,\"\",VLOOKUP(EE188,'Footnotes list'!$D$9:$E$58,2,FALSE) ) )","v":""},null,null,null,null,{"$f":"IF(TRIM(EJ188)=\"\", \"\", IF(VLOOKUP(EJ188,'Footnotes list'!$D$9:$E$58,2,FALSE)=0,\"\",VLOOKUP(EJ188,'Footnotes list'!$D$9:$E$58,2,FALSE) ) )","v":""},null,null,null,null,{"$f":"IF(TRIM(EO188)=\"\", \"\", IF(VLOOKUP(EO188,'Footnotes list'!$D$9:$E$58,2,FALSE)=0,\"\",VLOOKUP(EO188,'Footnotes list'!$D$9:$E$58,2,FALSE) ) )","v":""},null,null,null,null,{"$f":"IF(TRIM(ET188)=\"\", \"\", IF(VLOOKUP(ET188,'Footnotes list'!$D$9:$E$58,2,FALSE)=0,\"\",VLOOKUP(ET188,'Footnotes list'!$D$9:$E$58,2,FALSE) ) )","v":""},null,null,null,null,{"$f":"IF(TRIM(EY188)=\"\", \"\", IF(VLOOKUP(EY188,'Footnotes list'!$D$9:$E$58,2,FALSE)=0,\"\",VLOOKUP(EY188,'Footnotes list'!$D$9:$E$58,2,FALSE) ) )","v":""}]
[null,null,"H","C_REP","cleaner and resource efficient products",null,null,null,null,null,{"$f":"IF(TRIM(J189)=\"\", \"\", IF(VLOOKUP(J189,'Footnotes list'!$D$9:$E$58,2,FALSE)=0,\"\",VLOOKUP(J189,'Footnotes list'!$D$9:$E$58,2,FALSE) ) )","v":""},null,null,null,null,{"$f":"IF(TRIM(O189)=\"\", \"\", IF(VLOOKUP(O189,'Footnotes list'!$D$9:$E$58,2,FALSE)=0,\"\",VLOOKUP(O189,'Footnotes list'!$D$9:$E$58,2,FALSE) ) )","v":""},null,null,null,null,{"$f":"IF(TRIM(T189)=\"\", \"\", IF(VLOOKUP(T189,'Footnotes list'!$D$9:$E$58,2,FALSE)=0,\"\",VLOOKUP(T189,'Footnotes list'!$D$9:$E$58,2,FALSE) ) )","v":""},null,null,null,null,{"$f":"IF(TRIM(Y189)=\"\", \"\", IF(VLOOKUP(Y189,'Footnotes list'!$D$9:$E$58,2,FALSE)=0,\"\",VLOOKUP(Y189,'Footnotes list'!$D$9:$E$58,2,FALSE) ) )","v":""},null,null,null,null,{"$f":"IF(TRIM(AD189)=\"\", \"\", IF(VLOOKUP(AD189,'Footnotes list'!$D$9:$E$58,2,FALSE)=0,\"\",VLOOKUP(AD189,'Footnotes list'!$D$9:$E$58,2,FALSE) ) )","v":""},null,null,null,null,{"$f":"IF(TRIM(AI189)=\"\", \"\", IF(VLOOKUP(AI189,'Footnotes list'!$D$9:$E$58,2,FALSE)=0,\"\",VLOOKUP(AI189,'Footnotes list'!$D$9:$E$58,2,FALSE) ) )","v":""},null,null,null,null,{"$f":"IF(TRIM(AN189)=\"\", \"\", IF(VLOOKUP(AN189,'Footnotes list'!$D$9:$E$58,2,FALSE)=0,\"\",VLOOKUP(AN189,'Footnotes list'!$D$9:$E$58,2,FALSE) ) )","v":""},null,null,null,null,{"$f":"IF(TRIM(AS189)=\"\", \"\", IF(VLOOKUP(AS189,'Footnotes list'!$D$9:$E$58,2,FALSE)=0,\"\",VLOOKUP(AS189,'Footnotes list'!$D$9:$E$58,2,FALSE) ) )","v":""},null,null,null,null,{"$f":"IF(TRIM(AX189)=\"\", \"\", IF(VLOOKUP(AX189,'Footnotes list'!$D$9:$E$58,2,FALSE)=0,\"\",VLOOKUP(AX189,'Footnotes list'!$D$9:$E$58,2,FALSE) ) )","v":""},null,null,null,null,{"$f":"IF(TRIM(BC189)=\"\", \"\", IF(VLOOKUP(BC189,'Footnotes list'!$D$9:$E$58,2,FALSE)=0,\"\",VLOOKUP(BC189,'Footnotes list'!$D$9:$E$58,2,FALSE) ) )","v":""},null,null,null,null,{"$f":"IF(TRIM(BH189)=\"\", \"\", IF(VLOOKUP(BH189,'Footnotes list'!$D$9:$E$58,2,FALSE)=0,\"\",VLOOKUP(BH189,'Footnotes list'!$D$9:$E$58,2,FALSE) ) )","v":""},null,null,null,null,{"$f":"IF(TRIM(BM189)=\"\", \"\", IF(VLOOKUP(BM189,'Footnotes list'!$D$9:$E$58,2,FALSE)=0,\"\",VLOOKUP(BM189,'Footnotes list'!$D$9:$E$58,2,FALSE) ) )","v":""},null,null,null,null,{"$f":"IF(TRIM(BR189)=\"\", \"\", IF(VLOOKUP(BR189,'Footnotes list'!$D$9:$E$58,2,FALSE)=0,\"\",VLOOKUP(BR189,'Footnotes list'!$D$9:$E$58,2,FALSE) ) )","v":""},null,null,null,null,{"$f":"IF(TRIM(BW189)=\"\", \"\", IF(VLOOKUP(BW189,'Footnotes list'!$D$9:$E$58,2,FALSE)=0,\"\",VLOOKUP(BW189,'Footnotes list'!$D$9:$E$58,2,FALSE) ) )","v":""},null,null,null,null,{"$f":"IF(TRIM(CB189)=\"\", \"\", IF(VLOOKUP(CB189,'Footnotes list'!$D$9:$E$58,2,FALSE)=0,\"\",VLOOKUP(CB189,'Footnotes list'!$D$9:$E$58,2,FALSE) ) )","v":""},null,null,null,null,{"$f":"IF(TRIM(CG189)=\"\", \"\", IF(VLOOKUP(CG189,'Footnotes list'!$D$9:$E$58,2,FALSE)=0,\"\",VLOOKUP(CG189,'Footnotes list'!$D$9:$E$58,2,FALSE) ) )","v":""},null,null,null,null,{"$f":"IF(TRIM(CL189)=\"\", \"\", IF(VLOOKUP(CL189,'Footnotes list'!$D$9:$E$58,2,FALSE)=0,\"\",VLOOKUP(CL189,'Footnotes list'!$D$9:$E$58,2,FALSE) ) )","v":""},null,null,null,null,{"$f":"IF(TRIM(CQ189)=\"\", \"\", IF(VLOOKUP(CQ189,'Footnotes list'!$D$9:$E$58,2,FALSE)=0,\"\",VLOOKUP(CQ189,'Footnotes list'!$D$9:$E$58,2,FALSE) ) )","v":""},null,null,null,null,{"$f":"IF(TRIM(CV189)=\"\", \"\", IF(VLOOKUP(CV189,'Footnotes list'!$D$9:$E$58,2,FALSE)=0,\"\",VLOOKUP(CV189,'Footnotes list'!$D$9:$E$58,2,FALSE) ) )","v":""},null,null,null,null,{"$f":"IF(TRIM(DA189)=\"\", \"\", IF(VLOOKUP(DA189,'Footnotes list'!$D$9:$E$58,2,FALSE)=0,\"\",VLOOKUP(DA189,'Footnotes list'!$D$9:$E$58,2,FALSE) ) )","v":""},null,null,null,null,{"$f":"IF(TRIM(DF189)=\"\", \"\", IF(VLOOKUP(DF189,'Footnotes list'!$D$9:$E$58,2,FALSE)=0,\"\",VLOOKUP(DF189,'Footnotes list'!$D$9:$E$58,2,FALSE) ) )","v":""},null,null,null,null,{"$f":"IF(TRIM(DK189)=\"\", \"\", IF(VLOOKUP(DK189,'Footnotes list'!$D$9:$E$58,2,FALSE)=0,\"\",VLOOKUP(DK189,'Footnotes list'!$D$9:$E$58,2,FALSE) ) )","v":""},null,null,null,null,{"$f":"IF(TRIM(DP189)=\"\", \"\", IF(VLOOKUP(DP189,'Footnotes list'!$D$9:$E$58,2,FALSE)=0,\"\",VLOOKUP(DP189,'Footnotes list'!$D$9:$E$58,2,FALSE) ) )","v":""},null,null,null,null,{"$f":"IF(TRIM(DU189)=\"\", \"\", IF(VLOOKUP(DU189,'Footnotes list'!$D$9:$E$58,2,FALSE)=0,\"\",VLOOKUP(DU189,'Footnotes list'!$D$9:$E$58,2,FALSE) ) )","v":""},null,null,null,null,{"$f":"IF(TRIM(DZ189)=\"\", \"\", IF(VLOOKUP(DZ189,'Footnotes list'!$D$9:$E$58,2,FALSE)=0,\"\",VLOOKUP(DZ189,'Footnotes list'!$D$9:$E$58,2,FALSE) ) )","v":""},null,null,null,null,{"$f":"IF(TRIM(EE189)=\"\", \"\", IF(VLOOKUP(EE189,'Footnotes list'!$D$9:$E$58,2,FALSE)=0,\"\",VLOOKUP(EE189,'Footnotes list'!$D$9:$E$58,2,FALSE) ) )","v":""},null,null,null,null,{"$f":"IF(TRIM(EJ189)=\"\", \"\", IF(VLOOKUP(EJ189,'Footnotes list'!$D$9:$E$58,2,FALSE)=0,\"\",VLOOKUP(EJ189,'Footnotes list'!$D$9:$E$58,2,FALSE) ) )","v":""},null,null,null,null,{"$f":"IF(TRIM(EO189)=\"\", \"\", IF(VLOOKUP(EO189,'Footnotes list'!$D$9:$E$58,2,FALSE)=0,\"\",VLOOKUP(EO189,'Footnotes list'!$D$9:$E$58,2,FALSE) ) )","v":""},null,null,null,null,{"$f":"IF(TRIM(ET189)=\"\", \"\", IF(VLOOKUP(ET189,'Footnotes list'!$D$9:$E$58,2,FALSE)=0,\"\",VLOOKUP(ET189,'Footnotes list'!$D$9:$E$58,2,FALSE) ) )","v":""},null,null,null,null,{"$f":"IF(TRIM(EY189)=\"\", \"\", IF(VLOOKUP(EY189,'Footnotes list'!$D$9:$E$58,2,FALSE)=0,\"\",VLOOKUP(EY189,'Footnotes list'!$D$9:$E$58,2,FALSE) ) )","v":""}]
[null,null,"I","TOT_EGSS","Total I - Accommodation and food service activities, of which:",null,null,null,null,null,{"$f":"IF(TRIM(J190)=\"\", \"\", IF(VLOOKUP(J190,'Footnotes list'!$D$9:$E$58,2,FALSE)=0,\"\",VLOOKUP(J190,'Footnotes list'!$D$9:$E$58,2,FALSE) ) )","v":""},null,null,null,null,{"$f":"IF(TRIM(O190)=\"\", \"\", IF(VLOOKUP(O190,'Footnotes list'!$D$9:$E$58,2,FALSE)=0,\"\",VLOOKUP(O190,'Footnotes list'!$D$9:$E$58,2,FALSE) ) )","v":""},null,null,null,null,{"$f":"IF(TRIM(T190)=\"\", \"\", IF(VLOOKUP(T190,'Footnotes list'!$D$9:$E$58,2,FALSE)=0,\"\",VLOOKUP(T190,'Footnotes list'!$D$9:$E$58,2,FALSE) ) )","v":""},null,null,null,null,{"$f":"IF(TRIM(Y190)=\"\", \"\", IF(VLOOKUP(Y190,'Footnotes list'!$D$9:$E$58,2,FALSE)=0,\"\",VLOOKUP(Y190,'Footnotes list'!$D$9:$E$58,2,FALSE) ) )","v":""},null,null,null,null,{"$f":"IF(TRIM(AD190)=\"\", \"\", IF(VLOOKUP(AD190,'Footnotes list'!$D$9:$E$58,2,FALSE)=0,\"\",VLOOKUP(AD190,'Footnotes list'!$D$9:$E$58,2,FALSE) ) )","v":""},null,null,null,null,{"$f":"IF(TRIM(AI190)=\"\", \"\", IF(VLOOKUP(AI190,'Footnotes list'!$D$9:$E$58,2,FALSE)=0,\"\",VLOOKUP(AI190,'Footnotes list'!$D$9:$E$58,2,FALSE) ) )","v":""},null,null,null,null,{"$f":"IF(TRIM(AN190)=\"\", \"\", IF(VLOOKUP(AN190,'Footnotes list'!$D$9:$E$58,2,FALSE)=0,\"\",VLOOKUP(AN190,'Footnotes list'!$D$9:$E$58,2,FALSE) ) )","v":""},null,null,null,null,{"$f":"IF(TRIM(AS190)=\"\", \"\", IF(VLOOKUP(AS190,'Footnotes list'!$D$9:$E$58,2,FALSE)=0,\"\",VLOOKUP(AS190,'Footnotes list'!$D$9:$E$58,2,FALSE) ) )","v":""},null,null,null,null,{"$f":"IF(TRIM(AX190)=\"\", \"\", IF(VLOOKUP(AX190,'Footnotes list'!$D$9:$E$58,2,FALSE)=0,\"\",VLOOKUP(AX190,'Footnotes list'!$D$9:$E$58,2,FALSE) ) )","v":""},null,null,null,null,{"$f":"IF(TRIM(BC190)=\"\", \"\", IF(VLOOKUP(BC190,'Footnotes list'!$D$9:$E$58,2,FALSE)=0,\"\",VLOOKUP(BC190,'Footnotes list'!$D$9:$E$58,2,FALSE) ) )","v":""},null,null,null,null,{"$f":"IF(TRIM(BH190)=\"\", \"\", IF(VLOOKUP(BH190,'Footnotes list'!$D$9:$E$58,2,FALSE)=0,\"\",VLOOKUP(BH190,'Footnotes list'!$D$9:$E$58,2,FALSE) ) )","v":""},null,null,null,null,{"$f":"IF(TRIM(BM190)=\"\", \"\", IF(VLOOKUP(BM190,'Footnotes list'!$D$9:$E$58,2,FALSE)=0,\"\",VLOOKUP(BM190,'Footnotes list'!$D$9:$E$58,2,FALSE) ) )","v":""},null,null,null,null,{"$f":"IF(TRIM(BR190)=\"\", \"\", IF(VLOOKUP(BR190,'Footnotes list'!$D$9:$E$58,2,FALSE)=0,\"\",VLOOKUP(BR190,'Footnotes list'!$D$9:$E$58,2,FALSE) ) )","v":""},null,null,null,null,{"$f":"IF(TRIM(BW190)=\"\", \"\", IF(VLOOKUP(BW190,'Footnotes list'!$D$9:$E$58,2,FALSE)=0,\"\",VLOOKUP(BW190,'Footnotes list'!$D$9:$E$58,2,FALSE) ) )","v":""},null,null,null,null,{"$f":"IF(TRIM(CB190)=\"\", \"\", IF(VLOOKUP(CB190,'Footnotes list'!$D$9:$E$58,2,FALSE)=0,\"\",VLOOKUP(CB190,'Footnotes list'!$D$9:$E$58,2,FALSE) ) )","v":""},null,null,null,null,{"$f":"IF(TRIM(CG190)=\"\", \"\", IF(VLOOKUP(CG190,'Footnotes list'!$D$9:$E$58,2,FALSE)=0,\"\",VLOOKUP(CG190,'Footnotes list'!$D$9:$E$58,2,FALSE) ) )","v":""},null,null,null,null,{"$f":"IF(TRIM(CL190)=\"\", \"\", IF(VLOOKUP(CL190,'Footnotes list'!$D$9:$E$58,2,FALSE)=0,\"\",VLOOKUP(CL190,'Footnotes list'!$D$9:$E$58,2,FALSE) ) )","v":""},null,null,null,null,{"$f":"IF(TRIM(CQ190)=\"\", \"\", IF(VLOOKUP(CQ190,'Footnotes list'!$D$9:$E$58,2,FALSE)=0,\"\",VLOOKUP(CQ190,'Footnotes list'!$D$9:$E$58,2,FALSE) ) )","v":""},null,null,null,null,{"$f":"IF(TRIM(CV190)=\"\", \"\", IF(VLOOKUP(CV190,'Footnotes list'!$D$9:$E$58,2,FALSE)=0,\"\",VLOOKUP(CV190,'Footnotes list'!$D$9:$E$58,2,FALSE) ) )","v":""},null,null,null,null,{"$f":"IF(TRIM(DA190)=\"\", \"\", IF(VLOOKUP(DA190,'Footnotes list'!$D$9:$E$58,2,FALSE)=0,\"\",VLOOKUP(DA190,'Footnotes list'!$D$9:$E$58,2,FALSE) ) )","v":""},null,null,null,null,{"$f":"IF(TRIM(DF190)=\"\", \"\", IF(VLOOKUP(DF190,'Footnotes list'!$D$9:$E$58,2,FALSE)=0,\"\",VLOOKUP(DF190,'Footnotes list'!$D$9:$E$58,2,FALSE) ) )","v":""},null,null,null,null,{"$f":"IF(TRIM(DK190)=\"\", \"\", IF(VLOOKUP(DK190,'Footnotes list'!$D$9:$E$58,2,FALSE)=0,\"\",VLOOKUP(DK190,'Footnotes list'!$D$9:$E$58,2,FALSE) ) )","v":""},null,null,null,null,{"$f":"IF(TRIM(DP190)=\"\", \"\", IF(VLOOKUP(DP190,'Footnotes list'!$D$9:$E$58,2,FALSE)=0,\"\",VLOOKUP(DP190,'Footnotes list'!$D$9:$E$58,2,FALSE) ) )","v":""},null,null,null,null,{"$f":"IF(TRIM(DU190)=\"\", \"\", IF(VLOOKUP(DU190,'Footnotes list'!$D$9:$E$58,2,FALSE)=0,\"\",VLOOKUP(DU190,'Footnotes list'!$D$9:$E$58,2,FALSE) ) )","v":""},null,null,null,null,{"$f":"IF(TRIM(DZ190)=\"\", \"\", IF(VLOOKUP(DZ190,'Footnotes list'!$D$9:$E$58,2,FALSE)=0,\"\",VLOOKUP(DZ190,'Footnotes list'!$D$9:$E$58,2,FALSE) ) )","v":""},null,null,null,null,{"$f":"IF(TRIM(EE190)=\"\", \"\", IF(VLOOKUP(EE190,'Footnotes list'!$D$9:$E$58,2,FALSE)=0,\"\",VLOOKUP(EE190,'Footnotes list'!$D$9:$E$58,2,FALSE) ) )","v":""},null,null,null,null,{"$f":"IF(TRIM(EJ190)=\"\", \"\", IF(VLOOKUP(EJ190,'Footnotes list'!$D$9:$E$58,2,FALSE)=0,\"\",VLOOKUP(EJ190,'Footnotes list'!$D$9:$E$58,2,FALSE) ) )","v":""},null,null,null,null,{"$f":"IF(TRIM(EO190)=\"\", \"\", IF(VLOOKUP(EO190,'Footnotes list'!$D$9:$E$58,2,FALSE)=0,\"\",VLOOKUP(EO190,'Footnotes list'!$D$9:$E$58,2,FALSE) ) )","v":""},null,null,null,null,{"$f":"IF(TRIM(ET190)=\"\", \"\", IF(VLOOKUP(ET190,'Footnotes list'!$D$9:$E$58,2,FALSE)=0,\"\",VLOOKUP(ET190,'Footnotes list'!$D$9:$E$58,2,FALSE) ) )","v":""},null,null,null,null,{"$f":"IF(TRIM(EY190)=\"\", \"\", IF(VLOOKUP(EY190,'Footnotes list'!$D$9:$E$58,2,FALSE)=0,\"\",VLOOKUP(EY190,'Footnotes list'!$D$9:$E$58,2,FALSE) ) )","v":""}]
[null,null,"I","ANC","ancillary activities",null,null,null,null,null,{"$f":"IF(TRIM(J191)=\"\", \"\", IF(VLOOKUP(J191,'Footnotes list'!$D$9:$E$58,2,FALSE)=0,\"\",VLOOKUP(J191,'Footnotes list'!$D$9:$E$58,2,FALSE) ) )","v":""},null,null,null,null,{"$f":"IF(TRIM(O191)=\"\", \"\", IF(VLOOKUP(O191,'Footnotes list'!$D$9:$E$58,2,FALSE)=0,\"\",VLOOKUP(O191,'Footnotes list'!$D$9:$E$58,2,FALSE) ) )","v":""},null,null,null,null,{"$f":"IF(TRIM(T191)=\"\", \"\", IF(VLOOKUP(T191,'Footnotes list'!$D$9:$E$58,2,FALSE)=0,\"\",VLOOKUP(T191,'Footnotes list'!$D$9:$E$58,2,FALSE) ) )","v":""},null,null,null,null,{"$f":"IF(TRIM(Y191)=\"\", \"\", IF(VLOOKUP(Y191,'Footnotes list'!$D$9:$E$58,2,FALSE)=0,\"\",VLOOKUP(Y191,'Footnotes list'!$D$9:$E$58,2,FALSE) ) )","v":""},null,null,null,null,{"$f":"IF(TRIM(AD191)=\"\", \"\", IF(VLOOKUP(AD191,'Footnotes list'!$D$9:$E$58,2,FALSE)=0,\"\",VLOOKUP(AD191,'Footnotes list'!$D$9:$E$58,2,FALSE) ) )","v":""},null,null,null,null,{"$f":"IF(TRIM(AI191)=\"\", \"\", IF(VLOOKUP(AI191,'Footnotes list'!$D$9:$E$58,2,FALSE)=0,\"\",VLOOKUP(AI191,'Footnotes list'!$D$9:$E$58,2,FALSE) ) )","v":""},null,null,null,null,{"$f":"IF(TRIM(AN191)=\"\", \"\", IF(VLOOKUP(AN191,'Footnotes list'!$D$9:$E$58,2,FALSE)=0,\"\",VLOOKUP(AN191,'Footnotes list'!$D$9:$E$58,2,FALSE) ) )","v":""},null,null,null,null,{"$f":"IF(TRIM(AS191)=\"\", \"\", IF(VLOOKUP(AS191,'Footnotes list'!$D$9:$E$58,2,FALSE)=0,\"\",VLOOKUP(AS191,'Footnotes list'!$D$9:$E$58,2,FALSE) ) )","v":""},null,null,null,null,{"$f":"IF(TRIM(AX191)=\"\", \"\", IF(VLOOKUP(AX191,'Footnotes list'!$D$9:$E$58,2,FALSE)=0,\"\",VLOOKUP(AX191,'Footnotes list'!$D$9:$E$58,2,FALSE) ) )","v":""},null,null,null,null,{"$f":"IF(TRIM(BC191)=\"\", \"\", IF(VLOOKUP(BC191,'Footnotes list'!$D$9:$E$58,2,FALSE)=0,\"\",VLOOKUP(BC191,'Footnotes list'!$D$9:$E$58,2,FALSE) ) )","v":""},null,null,null,null,{"$f":"IF(TRIM(BH191)=\"\", \"\", IF(VLOOKUP(BH191,'Footnotes list'!$D$9:$E$58,2,FALSE)=0,\"\",VLOOKUP(BH191,'Footnotes list'!$D$9:$E$58,2,FALSE) ) )","v":""},null,null,null,null,{"$f":"IF(TRIM(BM191)=\"\", \"\", IF(VLOOKUP(BM191,'Footnotes list'!$D$9:$E$58,2,FALSE)=0,\"\",VLOOKUP(BM191,'Footnotes list'!$D$9:$E$58,2,FALSE) ) )","v":""},null,null,null,null,{"$f":"IF(TRIM(BR191)=\"\", \"\", IF(VLOOKUP(BR191,'Footnotes list'!$D$9:$E$58,2,FALSE)=0,\"\",VLOOKUP(BR191,'Footnotes list'!$D$9:$E$58,2,FALSE) ) )","v":""},null,null,null,null,{"$f":"IF(TRIM(BW191)=\"\", \"\", IF(VLOOKUP(BW191,'Footnotes list'!$D$9:$E$58,2,FALSE)=0,\"\",VLOOKUP(BW191,'Footnotes list'!$D$9:$E$58,2,FALSE) ) )","v":""},null,null,null,null,{"$f":"IF(TRIM(CB191)=\"\", \"\", IF(VLOOKUP(CB191,'Footnotes list'!$D$9:$E$58,2,FALSE)=0,\"\",VLOOKUP(CB191,'Footnotes list'!$D$9:$E$58,2,FALSE) ) )","v":""},null,null,null,null,{"$f":"IF(TRIM(CG191)=\"\", \"\", IF(VLOOKUP(CG191,'Footnotes list'!$D$9:$E$58,2,FALSE)=0,\"\",VLOOKUP(CG191,'Footnotes list'!$D$9:$E$58,2,FALSE) ) )","v":""},null,null,null,null,{"$f":"IF(TRIM(CL191)=\"\", \"\", IF(VLOOKUP(CL191,'Footnotes list'!$D$9:$E$58,2,FALSE)=0,\"\",VLOOKUP(CL191,'Footnotes list'!$D$9:$E$58,2,FALSE) ) )","v":""},null,null,null,null,{"$f":"IF(TRIM(CQ191)=\"\", \"\", IF(VLOOKUP(CQ191,'Footnotes list'!$D$9:$E$58,2,FALSE)=0,\"\",VLOOKUP(CQ191,'Footnotes list'!$D$9:$E$58,2,FALSE) ) )","v":""},null,null,null,null,{"$f":"IF(TRIM(CV191)=\"\", \"\", IF(VLOOKUP(CV191,'Footnotes list'!$D$9:$E$58,2,FALSE)=0,\"\",VLOOKUP(CV191,'Footnotes list'!$D$9:$E$58,2,FALSE) ) )","v":""},null,null,null,null,{"$f":"IF(TRIM(DA191)=\"\", \"\", IF(VLOOKUP(DA191,'Footnotes list'!$D$9:$E$58,2,FALSE)=0,\"\",VLOOKUP(DA191,'Footnotes list'!$D$9:$E$58,2,FALSE) ) )","v":""},null,null,null,null,{"$f":"IF(TRIM(DF191)=\"\", \"\", IF(VLOOKUP(DF191,'Footnotes list'!$D$9:$E$58,2,FALSE)=0,\"\",VLOOKUP(DF191,'Footnotes list'!$D$9:$E$58,2,FALSE) ) )","v":""},null,null,null,null,{"$f":"IF(TRIM(DK191)=\"\", \"\", IF(VLOOKUP(DK191,'Footnotes list'!$D$9:$E$58,2,FALSE)=0,\"\",VLOOKUP(DK191,'Footnotes list'!$D$9:$E$58,2,FALSE) ) )","v":""},null,null,null,null,{"$f":"IF(TRIM(DP191)=\"\", \"\", IF(VLOOKUP(DP191,'Footnotes list'!$D$9:$E$58,2,FALSE)=0,\"\",VLOOKUP(DP191,'Footnotes list'!$D$9:$E$58,2,FALSE) ) )","v":""},null,null,null,null,{"$f":"IF(TRIM(DU191)=\"\", \"\", IF(VLOOKUP(DU191,'Footnotes list'!$D$9:$E$58,2,FALSE)=0,\"\",VLOOKUP(DU191,'Footnotes list'!$D$9:$E$58,2,FALSE) ) )","v":""},null,null,null,null,{"$f":"IF(TRIM(DZ191)=\"\", \"\", IF(VLOOKUP(DZ191,'Footnotes list'!$D$9:$E$58,2,FALSE)=0,\"\",VLOOKUP(DZ191,'Footnotes list'!$D$9:$E$58,2,FALSE) ) )","v":""},null,null,null,null,{"$f":"IF(TRIM(EE191)=\"\", \"\", IF(VLOOKUP(EE191,'Footnotes list'!$D$9:$E$58,2,FALSE)=0,\"\",VLOOKUP(EE191,'Footnotes list'!$D$9:$E$58,2,FALSE) ) )","v":""},null,null,null,null,{"$f":"IF(TRIM(EJ191)=\"\", \"\", IF(VLOOKUP(EJ191,'Footnotes list'!$D$9:$E$58,2,FALSE)=0,\"\",VLOOKUP(EJ191,'Footnotes list'!$D$9:$E$58,2,FALSE) ) )","v":""},null,null,null,null,{"$f":"IF(TRIM(EO191)=\"\", \"\", IF(VLOOKUP(EO191,'Footnotes list'!$D$9:$E$58,2,FALSE)=0,\"\",VLOOKUP(EO191,'Footnotes list'!$D$9:$E$58,2,FALSE) ) )","v":""},null,null,null,null,{"$f":"IF(TRIM(ET191)=\"\", \"\", IF(VLOOKUP(ET191,'Footnotes list'!$D$9:$E$58,2,FALSE)=0,\"\",VLOOKUP(ET191,'Footnotes list'!$D$9:$E$58,2,FALSE) ) )","v":""},null,null,null,null,{"$f":"IF(TRIM(EY191)=\"\", \"\", IF(VLOOKUP(EY191,'Footnotes list'!$D$9:$E$58,2,FALSE)=0,\"\",VLOOKUP(EY191,'Footnotes list'!$D$9:$E$58,2,FALSE) ) )","v":""}]
[null,null,"I","NMKT","non-market activities",null,null,null,null,null,{"$f":"IF(TRIM(J192)=\"\", \"\", IF(VLOOKUP(J192,'Footnotes list'!$D$9:$E$58,2,FALSE)=0,\"\",VLOOKUP(J192,'Footnotes list'!$D$9:$E$58,2,FALSE) ) )","v":""},null,null,null,null,{"$f":"IF(TRIM(O192)=\"\", \"\", IF(VLOOKUP(O192,'Footnotes list'!$D$9:$E$58,2,FALSE)=0,\"\",VLOOKUP(O192,'Footnotes list'!$D$9:$E$58,2,FALSE) ) )","v":""},null,null,null,null,{"$f":"IF(TRIM(T192)=\"\", \"\", IF(VLOOKUP(T192,'Footnotes list'!$D$9:$E$58,2,FALSE)=0,\"\",VLOOKUP(T192,'Footnotes list'!$D$9:$E$58,2,FALSE) ) )","v":""},null,null,null,null,{"$f":"IF(TRIM(Y192)=\"\", \"\", IF(VLOOKUP(Y192,'Footnotes list'!$D$9:$E$58,2,FALSE)=0,\"\",VLOOKUP(Y192,'Footnotes list'!$D$9:$E$58,2,FALSE) ) )","v":""},null,null,null,null,{"$f":"IF(TRIM(AD192)=\"\", \"\", IF(VLOOKUP(AD192,'Footnotes list'!$D$9:$E$58,2,FALSE)=0,\"\",VLOOKUP(AD192,'Footnotes list'!$D$9:$E$58,2,FALSE) ) )","v":""},null,null,null,null,{"$f":"IF(TRIM(AI192)=\"\", \"\", IF(VLOOKUP(AI192,'Footnotes list'!$D$9:$E$58,2,FALSE)=0,\"\",VLOOKUP(AI192,'Footnotes list'!$D$9:$E$58,2,FALSE) ) )","v":""},null,null,null,null,{"$f":"IF(TRIM(AN192)=\"\", \"\", IF(VLOOKUP(AN192,'Footnotes list'!$D$9:$E$58,2,FALSE)=0,\"\",VLOOKUP(AN192,'Footnotes list'!$D$9:$E$58,2,FALSE) ) )","v":""},null,null,null,null,{"$f":"IF(TRIM(AS192)=\"\", \"\", IF(VLOOKUP(AS192,'Footnotes list'!$D$9:$E$58,2,FALSE)=0,\"\",VLOOKUP(AS192,'Footnotes list'!$D$9:$E$58,2,FALSE) ) )","v":""},null,null,null,null,{"$f":"IF(TRIM(AX192)=\"\", \"\", IF(VLOOKUP(AX192,'Footnotes list'!$D$9:$E$58,2,FALSE)=0,\"\",VLOOKUP(AX192,'Footnotes list'!$D$9:$E$58,2,FALSE) ) )","v":""},null,null,null,null,{"$f":"IF(TRIM(BC192)=\"\", \"\", IF(VLOOKUP(BC192,'Footnotes list'!$D$9:$E$58,2,FALSE)=0,\"\",VLOOKUP(BC192,'Footnotes list'!$D$9:$E$58,2,FALSE) ) )","v":""},null,null,null,null,{"$f":"IF(TRIM(BH192)=\"\", \"\", IF(VLOOKUP(BH192,'Footnotes list'!$D$9:$E$58,2,FALSE)=0,\"\",VLOOKUP(BH192,'Footnotes list'!$D$9:$E$58,2,FALSE) ) )","v":""},null,null,null,null,{"$f":"IF(TRIM(BM192)=\"\", \"\", IF(VLOOKUP(BM192,'Footnotes list'!$D$9:$E$58,2,FALSE)=0,\"\",VLOOKUP(BM192,'Footnotes list'!$D$9:$E$58,2,FALSE) ) )","v":""},null,null,null,null,{"$f":"IF(TRIM(BR192)=\"\", \"\", IF(VLOOKUP(BR192,'Footnotes list'!$D$9:$E$58,2,FALSE)=0,\"\",VLOOKUP(BR192,'Footnotes list'!$D$9:$E$58,2,FALSE) ) )","v":""},null,null,null,null,{"$f":"IF(TRIM(BW192)=\"\", \"\", IF(VLOOKUP(BW192,'Footnotes list'!$D$9:$E$58,2,FALSE)=0,\"\",VLOOKUP(BW192,'Footnotes list'!$D$9:$E$58,2,FALSE) ) )","v":""},null,null,null,null,{"$f":"IF(TRIM(CB192)=\"\", \"\", IF(VLOOKUP(CB192,'Footnotes list'!$D$9:$E$58,2,FALSE)=0,\"\",VLOOKUP(CB192,'Footnotes list'!$D$9:$E$58,2,FALSE) ) )","v":""},null,null,null,null,{"$f":"IF(TRIM(CG192)=\"\", \"\", IF(VLOOKUP(CG192,'Footnotes list'!$D$9:$E$58,2,FALSE)=0,\"\",VLOOKUP(CG192,'Footnotes list'!$D$9:$E$58,2,FALSE) ) )","v":""},null,null,null,null,{"$f":"IF(TRIM(CL192)=\"\", \"\", IF(VLOOKUP(CL192,'Footnotes list'!$D$9:$E$58,2,FALSE)=0,\"\",VLOOKUP(CL192,'Footnotes list'!$D$9:$E$58,2,FALSE) ) )","v":""},null,null,null,null,{"$f":"IF(TRIM(CQ192)=\"\", \"\", IF(VLOOKUP(CQ192,'Footnotes list'!$D$9:$E$58,2,FALSE)=0,\"\",VLOOKUP(CQ192,'Footnotes list'!$D$9:$E$58,2,FALSE) ) )","v":""},null,null,null,null,{"$f":"IF(TRIM(CV192)=\"\", \"\", IF(VLOOKUP(CV192,'Footnotes list'!$D$9:$E$58,2,FALSE)=0,\"\",VLOOKUP(CV192,'Footnotes list'!$D$9:$E$58,2,FALSE) ) )","v":""},null,null,null,null,{"$f":"IF(TRIM(DA192)=\"\", \"\", IF(VLOOKUP(DA192,'Footnotes list'!$D$9:$E$58,2,FALSE)=0,\"\",VLOOKUP(DA192,'Footnotes list'!$D$9:$E$58,2,FALSE) ) )","v":""},null,null,null,null,{"$f":"IF(TRIM(DF192)=\"\", \"\", IF(VLOOKUP(DF192,'Footnotes list'!$D$9:$E$58,2,FALSE)=0,\"\",VLOOKUP(DF192,'Footnotes list'!$D$9:$E$58,2,FALSE) ) )","v":""},null,null,null,null,{"$f":"IF(TRIM(DK192)=\"\", \"\", IF(VLOOKUP(DK192,'Footnotes list'!$D$9:$E$58,2,FALSE)=0,\"\",VLOOKUP(DK192,'Footnotes list'!$D$9:$E$58,2,FALSE) ) )","v":""},null,null,null,null,{"$f":"IF(TRIM(DP192)=\"\", \"\", IF(VLOOKUP(DP192,'Footnotes list'!$D$9:$E$58,2,FALSE)=0,\"\",VLOOKUP(DP192,'Footnotes list'!$D$9:$E$58,2,FALSE) ) )","v":""},null,null,null,null,{"$f":"IF(TRIM(DU192)=\"\", \"\", IF(VLOOKUP(DU192,'Footnotes list'!$D$9:$E$58,2,FALSE)=0,\"\",VLOOKUP(DU192,'Footnotes list'!$D$9:$E$58,2,FALSE) ) )","v":""},null,null,null,null,{"$f":"IF(TRIM(DZ192)=\"\", \"\", IF(VLOOKUP(DZ192,'Footnotes list'!$D$9:$E$58,2,FALSE)=0,\"\",VLOOKUP(DZ192,'Footnotes list'!$D$9:$E$58,2,FALSE) ) )","v":""},null,null,null,null,{"$f":"IF(TRIM(EE192)=\"\", \"\", IF(VLOOKUP(EE192,'Footnotes list'!$D$9:$E$58,2,FALSE)=0,\"\",VLOOKUP(EE192,'Footnotes list'!$D$9:$E$58,2,FALSE) ) )","v":""},null,null,null,null,{"$f":"IF(TRIM(EJ192)=\"\", \"\", IF(VLOOKUP(EJ192,'Footnotes list'!$D$9:$E$58,2,FALSE)=0,\"\",VLOOKUP(EJ192,'Footnotes list'!$D$9:$E$58,2,FALSE) ) )","v":""},null,null,null,null,{"$f":"IF(TRIM(EO192)=\"\", \"\", IF(VLOOKUP(EO192,'Footnotes list'!$D$9:$E$58,2,FALSE)=0,\"\",VLOOKUP(EO192,'Footnotes list'!$D$9:$E$58,2,FALSE) ) )","v":""},null,null,null,null,{"$f":"IF(TRIM(ET192)=\"\", \"\", IF(VLOOKUP(ET192,'Footnotes list'!$D$9:$E$58,2,FALSE)=0,\"\",VLOOKUP(ET192,'Footnotes list'!$D$9:$E$58,2,FALSE) ) )","v":""},null,null,null,null,{"$f":"IF(TRIM(EY192)=\"\", \"\", IF(VLOOKUP(EY192,'Footnotes list'!$D$9:$E$58,2,FALSE)=0,\"\",VLOOKUP(EY192,'Footnotes list'!$D$9:$E$58,2,FALSE) ) )","v":""}]
[null,null,"I","OWN_USE","activities for own final use",null,null,null,null,null,{"$f":"IF(TRIM(J193)=\"\", \"\", IF(VLOOKUP(J193,'Footnotes list'!$D$9:$E$58,2,FALSE)=0,\"\",VLOOKUP(J193,'Footnotes list'!$D$9:$E$58,2,FALSE) ) )","v":""},null,null,null,null,{"$f":"IF(TRIM(O193)=\"\", \"\", IF(VLOOKUP(O193,'Footnotes list'!$D$9:$E$58,2,FALSE)=0,\"\",VLOOKUP(O193,'Footnotes list'!$D$9:$E$58,2,FALSE) ) )","v":""},null,null,null,null,{"$f":"IF(TRIM(T193)=\"\", \"\", IF(VLOOKUP(T193,'Footnotes list'!$D$9:$E$58,2,FALSE)=0,\"\",VLOOKUP(T193,'Footnotes list'!$D$9:$E$58,2,FALSE) ) )","v":""},null,null,null,null,{"$f":"IF(TRIM(Y193)=\"\", \"\", IF(VLOOKUP(Y193,'Footnotes list'!$D$9:$E$58,2,FALSE)=0,\"\",VLOOKUP(Y193,'Footnotes list'!$D$9:$E$58,2,FALSE) ) )","v":""},null,null,null,null,{"$f":"IF(TRIM(AD193)=\"\", \"\", IF(VLOOKUP(AD193,'Footnotes list'!$D$9:$E$58,2,FALSE)=0,\"\",VLOOKUP(AD193,'Footnotes list'!$D$9:$E$58,2,FALSE) ) )","v":""},null,null,null,null,{"$f":"IF(TRIM(AI193)=\"\", \"\", IF(VLOOKUP(AI193,'Footnotes list'!$D$9:$E$58,2,FALSE)=0,\"\",VLOOKUP(AI193,'Footnotes list'!$D$9:$E$58,2,FALSE) ) )","v":""},null,null,null,null,{"$f":"IF(TRIM(AN193)=\"\", \"\", IF(VLOOKUP(AN193,'Footnotes list'!$D$9:$E$58,2,FALSE)=0,\"\",VLOOKUP(AN193,'Footnotes list'!$D$9:$E$58,2,FALSE) ) )","v":""},null,null,null,null,{"$f":"IF(TRIM(AS193)=\"\", \"\", IF(VLOOKUP(AS193,'Footnotes list'!$D$9:$E$58,2,FALSE)=0,\"\",VLOOKUP(AS193,'Footnotes list'!$D$9:$E$58,2,FALSE) ) )","v":""},null,null,null,null,{"$f":"IF(TRIM(AX193)=\"\", \"\", IF(VLOOKUP(AX193,'Footnotes list'!$D$9:$E$58,2,FALSE)=0,\"\",VLOOKUP(AX193,'Footnotes list'!$D$9:$E$58,2,FALSE) ) )","v":""},null,null,null,null,{"$f":"IF(TRIM(BC193)=\"\", \"\", IF(VLOOKUP(BC193,'Footnotes list'!$D$9:$E$58,2,FALSE)=0,\"\",VLOOKUP(BC193,'Footnotes list'!$D$9:$E$58,2,FALSE) ) )","v":""},null,null,null,null,{"$f":"IF(TRIM(BH193)=\"\", \"\", IF(VLOOKUP(BH193,'Footnotes list'!$D$9:$E$58,2,FALSE)=0,\"\",VLOOKUP(BH193,'Footnotes list'!$D$9:$E$58,2,FALSE) ) )","v":""},null,null,null,null,{"$f":"IF(TRIM(BM193)=\"\", \"\", IF(VLOOKUP(BM193,'Footnotes list'!$D$9:$E$58,2,FALSE)=0,\"\",VLOOKUP(BM193,'Footnotes list'!$D$9:$E$58,2,FALSE) ) )","v":""},null,null,null,null,{"$f":"IF(TRIM(BR193)=\"\", \"\", IF(VLOOKUP(BR193,'Footnotes list'!$D$9:$E$58,2,FALSE)=0,\"\",VLOOKUP(BR193,'Footnotes list'!$D$9:$E$58,2,FALSE) ) )","v":""},null,null,null,null,{"$f":"IF(TRIM(BW193)=\"\", \"\", IF(VLOOKUP(BW193,'Footnotes list'!$D$9:$E$58,2,FALSE)=0,\"\",VLOOKUP(BW193,'Footnotes list'!$D$9:$E$58,2,FALSE) ) )","v":""},null,null,null,null,{"$f":"IF(TRIM(CB193)=\"\", \"\", IF(VLOOKUP(CB193,'Footnotes list'!$D$9:$E$58,2,FALSE)=0,\"\",VLOOKUP(CB193,'Footnotes list'!$D$9:$E$58,2,FALSE) ) )","v":""},null,null,null,null,{"$f":"IF(TRIM(CG193)=\"\", \"\", IF(VLOOKUP(CG193,'Footnotes list'!$D$9:$E$58,2,FALSE)=0,\"\",VLOOKUP(CG193,'Footnotes list'!$D$9:$E$58,2,FALSE) ) )","v":""},null,null,null,null,{"$f":"IF(TRIM(CL193)=\"\", \"\", IF(VLOOKUP(CL193,'Footnotes list'!$D$9:$E$58,2,FALSE)=0,\"\",VLOOKUP(CL193,'Footnotes list'!$D$9:$E$58,2,FALSE) ) )","v":""},null,null,null,null,{"$f":"IF(TRIM(CQ193)=\"\", \"\", IF(VLOOKUP(CQ193,'Footnotes list'!$D$9:$E$58,2,FALSE)=0,\"\",VLOOKUP(CQ193,'Footnotes list'!$D$9:$E$58,2,FALSE) ) )","v":""},null,null,null,null,{"$f":"IF(TRIM(CV193)=\"\", \"\", IF(VLOOKUP(CV193,'Footnotes list'!$D$9:$E$58,2,FALSE)=0,\"\",VLOOKUP(CV193,'Footnotes list'!$D$9:$E$58,2,FALSE) ) )","v":""},null,null,null,null,{"$f":"IF(TRIM(DA193)=\"\", \"\", IF(VLOOKUP(DA193,'Footnotes list'!$D$9:$E$58,2,FALSE)=0,\"\",VLOOKUP(DA193,'Footnotes list'!$D$9:$E$58,2,FALSE) ) )","v":""},null,null,null,null,{"$f":"IF(TRIM(DF193)=\"\", \"\", IF(VLOOKUP(DF193,'Footnotes list'!$D$9:$E$58,2,FALSE)=0,\"\",VLOOKUP(DF193,'Footnotes list'!$D$9:$E$58,2,FALSE) ) )","v":""},null,null,null,null,{"$f":"IF(TRIM(DK193)=\"\", \"\", IF(VLOOKUP(DK193,'Footnotes list'!$D$9:$E$58,2,FALSE)=0,\"\",VLOOKUP(DK193,'Footnotes list'!$D$9:$E$58,2,FALSE) ) )","v":""},null,null,null,null,{"$f":"IF(TRIM(DP193)=\"\", \"\", IF(VLOOKUP(DP193,'Footnotes list'!$D$9:$E$58,2,FALSE)=0,\"\",VLOOKUP(DP193,'Footnotes list'!$D$9:$E$58,2,FALSE) ) )","v":""},null,null,null,null,{"$f":"IF(TRIM(DU193)=\"\", \"\", IF(VLOOKUP(DU193,'Footnotes list'!$D$9:$E$58,2,FALSE)=0,\"\",VLOOKUP(DU193,'Footnotes list'!$D$9:$E$58,2,FALSE) ) )","v":""},null,null,null,null,{"$f":"IF(TRIM(DZ193)=\"\", \"\", IF(VLOOKUP(DZ193,'Footnotes list'!$D$9:$E$58,2,FALSE)=0,\"\",VLOOKUP(DZ193,'Footnotes list'!$D$9:$E$58,2,FALSE) ) )","v":""},null,null,null,null,{"$f":"IF(TRIM(EE193)=\"\", \"\", IF(VLOOKUP(EE193,'Footnotes list'!$D$9:$E$58,2,FALSE)=0,\"\",VLOOKUP(EE193,'Footnotes list'!$D$9:$E$58,2,FALSE) ) )","v":""},null,null,null,null,{"$f":"IF(TRIM(EJ193)=\"\", \"\", IF(VLOOKUP(EJ193,'Footnotes list'!$D$9:$E$58,2,FALSE)=0,\"\",VLOOKUP(EJ193,'Footnotes list'!$D$9:$E$58,2,FALSE) ) )","v":""},null,null,null,null,{"$f":"IF(TRIM(EO193)=\"\", \"\", IF(VLOOKUP(EO193,'Footnotes list'!$D$9:$E$58,2,FALSE)=0,\"\",VLOOKUP(EO193,'Footnotes list'!$D$9:$E$58,2,FALSE) ) )","v":""},null,null,null,null,{"$f":"IF(TRIM(ET193)=\"\", \"\", IF(VLOOKUP(ET193,'Footnotes list'!$D$9:$E$58,2,FALSE)=0,\"\",VLOOKUP(ET193,'Footnotes list'!$D$9:$E$58,2,FALSE) ) )","v":""},null,null,null,null,{"$f":"IF(TRIM(EY193)=\"\", \"\", IF(VLOOKUP(EY193,'Footnotes list'!$D$9:$E$58,2,FALSE)=0,\"\",VLOOKUP(EY193,'Footnotes list'!$D$9:$E$58,2,FALSE) ) )","v":""}]
[null,null,"I","MKT","market activities, including:",null,null,null,null,null,{"$f":"IF(TRIM(J194)=\"\", \"\", IF(VLOOKUP(J194,'Footnotes list'!$D$9:$E$58,2,FALSE)=0,\"\",VLOOKUP(J194,'Footnotes list'!$D$9:$E$58,2,FALSE) ) )","v":""},null,null,null,null,{"$f":"IF(TRIM(O194)=\"\", \"\", IF(VLOOKUP(O194,'Footnotes list'!$D$9:$E$58,2,FALSE)=0,\"\",VLOOKUP(O194,'Footnotes list'!$D$9:$E$58,2,FALSE) ) )","v":""},null,null,null,null,{"$f":"IF(TRIM(T194)=\"\", \"\", IF(VLOOKUP(T194,'Footnotes list'!$D$9:$E$58,2,FALSE)=0,\"\",VLOOKUP(T194,'Footnotes list'!$D$9:$E$58,2,FALSE) ) )","v":""},null,null,null,null,{"$f":"IF(TRIM(Y194)=\"\", \"\", IF(VLOOKUP(Y194,'Footnotes list'!$D$9:$E$58,2,FALSE)=0,\"\",VLOOKUP(Y194,'Footnotes list'!$D$9:$E$58,2,FALSE) ) )","v":""},null,null,null,null,{"$f":"IF(TRIM(AD194)=\"\", \"\", IF(VLOOKUP(AD194,'Footnotes list'!$D$9:$E$58,2,FALSE)=0,\"\",VLOOKUP(AD194,'Footnotes list'!$D$9:$E$58,2,FALSE) ) )","v":""},null,null,null,null,{"$f":"IF(TRIM(AI194)=\"\", \"\", IF(VLOOKUP(AI194,'Footnotes list'!$D$9:$E$58,2,FALSE)=0,\"\",VLOOKUP(AI194,'Footnotes list'!$D$9:$E$58,2,FALSE) ) )","v":""},null,null,null,null,{"$f":"IF(TRIM(AN194)=\"\", \"\", IF(VLOOKUP(AN194,'Footnotes list'!$D$9:$E$58,2,FALSE)=0,\"\",VLOOKUP(AN194,'Footnotes list'!$D$9:$E$58,2,FALSE) ) )","v":""},null,null,null,null,{"$f":"IF(TRIM(AS194)=\"\", \"\", IF(VLOOKUP(AS194,'Footnotes list'!$D$9:$E$58,2,FALSE)=0,\"\",VLOOKUP(AS194,'Footnotes list'!$D$9:$E$58,2,FALSE) ) )","v":""},null,null,null,null,{"$f":"IF(TRIM(AX194)=\"\", \"\", IF(VLOOKUP(AX194,'Footnotes list'!$D$9:$E$58,2,FALSE)=0,\"\",VLOOKUP(AX194,'Footnotes list'!$D$9:$E$58,2,FALSE) ) )","v":""},null,null,null,null,{"$f":"IF(TRIM(BC194)=\"\", \"\", IF(VLOOKUP(BC194,'Footnotes list'!$D$9:$E$58,2,FALSE)=0,\"\",VLOOKUP(BC194,'Footnotes list'!$D$9:$E$58,2,FALSE) ) )","v":""},null,null,null,null,{"$f":"IF(TRIM(BH194)=\"\", \"\", IF(VLOOKUP(BH194,'Footnotes list'!$D$9:$E$58,2,FALSE)=0,\"\",VLOOKUP(BH194,'Footnotes list'!$D$9:$E$58,2,FALSE) ) )","v":""},null,null,null,null,{"$f":"IF(TRIM(BM194)=\"\", \"\", IF(VLOOKUP(BM194,'Footnotes list'!$D$9:$E$58,2,FALSE)=0,\"\",VLOOKUP(BM194,'Footnotes list'!$D$9:$E$58,2,FALSE) ) )","v":""},null,null,null,null,{"$f":"IF(TRIM(BR194)=\"\", \"\", IF(VLOOKUP(BR194,'Footnotes list'!$D$9:$E$58,2,FALSE)=0,\"\",VLOOKUP(BR194,'Footnotes list'!$D$9:$E$58,2,FALSE) ) )","v":""},null,null,null,null,{"$f":"IF(TRIM(BW194)=\"\", \"\", IF(VLOOKUP(BW194,'Footnotes list'!$D$9:$E$58,2,FALSE)=0,\"\",VLOOKUP(BW194,'Footnotes list'!$D$9:$E$58,2,FALSE) ) )","v":""},null,null,null,null,{"$f":"IF(TRIM(CB194)=\"\", \"\", IF(VLOOKUP(CB194,'Footnotes list'!$D$9:$E$58,2,FALSE)=0,\"\",VLOOKUP(CB194,'Footnotes list'!$D$9:$E$58,2,FALSE) ) )","v":""},null,null,null,null,{"$f":"IF(TRIM(CG194)=\"\", \"\", IF(VLOOKUP(CG194,'Footnotes list'!$D$9:$E$58,2,FALSE)=0,\"\",VLOOKUP(CG194,'Footnotes list'!$D$9:$E$58,2,FALSE) ) )","v":""},null,null,null,null,{"$f":"IF(TRIM(CL194)=\"\", \"\", IF(VLOOKUP(CL194,'Footnotes list'!$D$9:$E$58,2,FALSE)=0,\"\",VLOOKUP(CL194,'Footnotes list'!$D$9:$E$58,2,FALSE) ) )","v":""},null,null,null,null,{"$f":"IF(TRIM(CQ194)=\"\", \"\", IF(VLOOKUP(CQ194,'Footnotes list'!$D$9:$E$58,2,FALSE)=0,\"\",VLOOKUP(CQ194,'Footnotes list'!$D$9:$E$58,2,FALSE) ) )","v":""},null,null,null,null,{"$f":"IF(TRIM(CV194)=\"\", \"\", IF(VLOOKUP(CV194,'Footnotes list'!$D$9:$E$58,2,FALSE)=0,\"\",VLOOKUP(CV194,'Footnotes list'!$D$9:$E$58,2,FALSE) ) )","v":""},null,null,null,null,{"$f":"IF(TRIM(DA194)=\"\", \"\", IF(VLOOKUP(DA194,'Footnotes list'!$D$9:$E$58,2,FALSE)=0,\"\",VLOOKUP(DA194,'Footnotes list'!$D$9:$E$58,2,FALSE) ) )","v":""},null,null,null,null,{"$f":"IF(TRIM(DF194)=\"\", \"\", IF(VLOOKUP(DF194,'Footnotes list'!$D$9:$E$58,2,FALSE)=0,\"\",VLOOKUP(DF194,'Footnotes list'!$D$9:$E$58,2,FALSE) ) )","v":""},null,null,null,null,{"$f":"IF(TRIM(DK194)=\"\", \"\", IF(VLOOKUP(DK194,'Footnotes list'!$D$9:$E$58,2,FALSE)=0,\"\",VLOOKUP(DK194,'Footnotes list'!$D$9:$E$58,2,FALSE) ) )","v":""},null,null,null,null,{"$f":"IF(TRIM(DP194)=\"\", \"\", IF(VLOOKUP(DP194,'Footnotes list'!$D$9:$E$58,2,FALSE)=0,\"\",VLOOKUP(DP194,'Footnotes list'!$D$9:$E$58,2,FALSE) ) )","v":""},null,null,null,null,{"$f":"IF(TRIM(DU194)=\"\", \"\", IF(VLOOKUP(DU194,'Footnotes list'!$D$9:$E$58,2,FALSE)=0,\"\",VLOOKUP(DU194,'Footnotes list'!$D$9:$E$58,2,FALSE) ) )","v":""},null,null,null,null,{"$f":"IF(TRIM(DZ194)=\"\", \"\", IF(VLOOKUP(DZ194,'Footnotes list'!$D$9:$E$58,2,FALSE)=0,\"\",VLOOKUP(DZ194,'Footnotes list'!$D$9:$E$58,2,FALSE) ) )","v":""},null,null,null,null,{"$f":"IF(TRIM(EE194)=\"\", \"\", IF(VLOOKUP(EE194,'Footnotes list'!$D$9:$E$58,2,FALSE)=0,\"\",VLOOKUP(EE194,'Footnotes list'!$D$9:$E$58,2,FALSE) ) )","v":""},null,null,null,null,{"$f":"IF(TRIM(EJ194)=\"\", \"\", IF(VLOOKUP(EJ194,'Footnotes list'!$D$9:$E$58,2,FALSE)=0,\"\",VLOOKUP(EJ194,'Footnotes list'!$D$9:$E$58,2,FALSE) ) )","v":""},null,null,null,null,{"$f":"IF(TRIM(EO194)=\"\", \"\", IF(VLOOKUP(EO194,'Footnotes list'!$D$9:$E$58,2,FALSE)=0,\"\",VLOOKUP(EO194,'Footnotes list'!$D$9:$E$58,2,FALSE) ) )","v":""},null,null,null,null,{"$f":"IF(TRIM(ET194)=\"\", \"\", IF(VLOOKUP(ET194,'Footnotes list'!$D$9:$E$58,2,FALSE)=0,\"\",VLOOKUP(ET194,'Footnotes list'!$D$9:$E$58,2,FALSE) ) )","v":""},null,null,null,null,{"$f":"IF(TRIM(EY194)=\"\", \"\", IF(VLOOKUP(EY194,'Footnotes list'!$D$9:$E$58,2,FALSE)=0,\"\",VLOOKUP(EY194,'Footnotes list'!$D$9:$E$58,2,FALSE) ) )","v":""}]
[null,null,"I","ES_CS","environmental specific services",null,null,null,null,null,{"$f":"IF(TRIM(J195)=\"\", \"\", IF(VLOOKUP(J195,'Footnotes list'!$D$9:$E$58,2,FALSE)=0,\"\",VLOOKUP(J195,'Footnotes list'!$D$9:$E$58,2,FALSE) ) )","v":""},null,null,null,null,{"$f":"IF(TRIM(O195)=\"\", \"\", IF(VLOOKUP(O195,'Footnotes list'!$D$9:$E$58,2,FALSE)=0,\"\",VLOOKUP(O195,'Footnotes list'!$D$9:$E$58,2,FALSE) ) )","v":""},null,null,null,null,{"$f":"IF(TRIM(T195)=\"\", \"\", IF(VLOOKUP(T195,'Footnotes list'!$D$9:$E$58,2,FALSE)=0,\"\",VLOOKUP(T195,'Footnotes list'!$D$9:$E$58,2,FALSE) ) )","v":""},null,null,null,null,{"$f":"IF(TRIM(Y195)=\"\", \"\", IF(VLOOKUP(Y195,'Footnotes list'!$D$9:$E$58,2,FALSE)=0,\"\",VLOOKUP(Y195,'Footnotes list'!$D$9:$E$58,2,FALSE) ) )","v":""},null,null,null,null,{"$f":"IF(TRIM(AD195)=\"\", \"\", IF(VLOOKUP(AD195,'Footnotes list'!$D$9:$E$58,2,FALSE)=0,\"\",VLOOKUP(AD195,'Footnotes list'!$D$9:$E$58,2,FALSE) ) )","v":""},null,null,null,null,{"$f":"IF(TRIM(AI195)=\"\", \"\", IF(VLOOKUP(AI195,'Footnotes list'!$D$9:$E$58,2,FALSE)=0,\"\",VLOOKUP(AI195,'Footnotes list'!$D$9:$E$58,2,FALSE) ) )","v":""},null,null,null,null,{"$f":"IF(TRIM(AN195)=\"\", \"\", IF(VLOOKUP(AN195,'Footnotes list'!$D$9:$E$58,2,FALSE)=0,\"\",VLOOKUP(AN195,'Footnotes list'!$D$9:$E$58,2,FALSE) ) )","v":""},null,null,null,null,{"$f":"IF(TRIM(AS195)=\"\", \"\", IF(VLOOKUP(AS195,'Footnotes list'!$D$9:$E$58,2,FALSE)=0,\"\",VLOOKUP(AS195,'Footnotes list'!$D$9:$E$58,2,FALSE) ) )","v":""},null,null,null,null,{"$f":"IF(TRIM(AX195)=\"\", \"\", IF(VLOOKUP(AX195,'Footnotes list'!$D$9:$E$58,2,FALSE)=0,\"\",VLOOKUP(AX195,'Footnotes list'!$D$9:$E$58,2,FALSE) ) )","v":""},null,null,null,null,{"$f":"IF(TRIM(BC195)=\"\", \"\", IF(VLOOKUP(BC195,'Footnotes list'!$D$9:$E$58,2,FALSE)=0,\"\",VLOOKUP(BC195,'Footnotes list'!$D$9:$E$58,2,FALSE) ) )","v":""},null,null,null,null,{"$f":"IF(TRIM(BH195)=\"\", \"\", IF(VLOOKUP(BH195,'Footnotes list'!$D$9:$E$58,2,FALSE)=0,\"\",VLOOKUP(BH195,'Footnotes list'!$D$9:$E$58,2,FALSE) ) )","v":""},null,null,null,null,{"$f":"IF(TRIM(BM195)=\"\", \"\", IF(VLOOKUP(BM195,'Footnotes list'!$D$9:$E$58,2,FALSE)=0,\"\",VLOOKUP(BM195,'Footnotes list'!$D$9:$E$58,2,FALSE) ) )","v":""},null,null,null,null,{"$f":"IF(TRIM(BR195)=\"\", \"\", IF(VLOOKUP(BR195,'Footnotes list'!$D$9:$E$58,2,FALSE)=0,\"\",VLOOKUP(BR195,'Footnotes list'!$D$9:$E$58,2,FALSE) ) )","v":""},null,null,null,null,{"$f":"IF(TRIM(BW195)=\"\", \"\", IF(VLOOKUP(BW195,'Footnotes list'!$D$9:$E$58,2,FALSE)=0,\"\",VLOOKUP(BW195,'Footnotes list'!$D$9:$E$58,2,FALSE) ) )","v":""},null,null,null,null,{"$f":"IF(TRIM(CB195)=\"\", \"\", IF(VLOOKUP(CB195,'Footnotes list'!$D$9:$E$58,2,FALSE)=0,\"\",VLOOKUP(CB195,'Footnotes list'!$D$9:$E$58,2,FALSE) ) )","v":""},null,null,null,null,{"$f":"IF(TRIM(CG195)=\"\", \"\", IF(VLOOKUP(CG195,'Footnotes list'!$D$9:$E$58,2,FALSE)=0,\"\",VLOOKUP(CG195,'Footnotes list'!$D$9:$E$58,2,FALSE) ) )","v":""},null,null,null,null,{"$f":"IF(TRIM(CL195)=\"\", \"\", IF(VLOOKUP(CL195,'Footnotes list'!$D$9:$E$58,2,FALSE)=0,\"\",VLOOKUP(CL195,'Footnotes list'!$D$9:$E$58,2,FALSE) ) )","v":""},null,null,null,null,{"$f":"IF(TRIM(CQ195)=\"\", \"\", IF(VLOOKUP(CQ195,'Footnotes list'!$D$9:$E$58,2,FALSE)=0,\"\",VLOOKUP(CQ195,'Footnotes list'!$D$9:$E$58,2,FALSE) ) )","v":""},null,null,null,null,{"$f":"IF(TRIM(CV195)=\"\", \"\", IF(VLOOKUP(CV195,'Footnotes list'!$D$9:$E$58,2,FALSE)=0,\"\",VLOOKUP(CV195,'Footnotes list'!$D$9:$E$58,2,FALSE) ) )","v":""},null,null,null,null,{"$f":"IF(TRIM(DA195)=\"\", \"\", IF(VLOOKUP(DA195,'Footnotes list'!$D$9:$E$58,2,FALSE)=0,\"\",VLOOKUP(DA195,'Footnotes list'!$D$9:$E$58,2,FALSE) ) )","v":""},null,null,null,null,{"$f":"IF(TRIM(DF195)=\"\", \"\", IF(VLOOKUP(DF195,'Footnotes list'!$D$9:$E$58,2,FALSE)=0,\"\",VLOOKUP(DF195,'Footnotes list'!$D$9:$E$58,2,FALSE) ) )","v":""},null,null,null,null,{"$f":"IF(TRIM(DK195)=\"\", \"\", IF(VLOOKUP(DK195,'Footnotes list'!$D$9:$E$58,2,FALSE)=0,\"\",VLOOKUP(DK195,'Footnotes list'!$D$9:$E$58,2,FALSE) ) )","v":""},null,null,null,null,{"$f":"IF(TRIM(DP195)=\"\", \"\", IF(VLOOKUP(DP195,'Footnotes list'!$D$9:$E$58,2,FALSE)=0,\"\",VLOOKUP(DP195,'Footnotes list'!$D$9:$E$58,2,FALSE) ) )","v":""},null,null,null,null,{"$f":"IF(TRIM(DU195)=\"\", \"\", IF(VLOOKUP(DU195,'Footnotes list'!$D$9:$E$58,2,FALSE)=0,\"\",VLOOKUP(DU195,'Footnotes list'!$D$9:$E$58,2,FALSE) ) )","v":""},null,null,null,null,{"$f":"IF(TRIM(DZ195)=\"\", \"\", IF(VLOOKUP(DZ195,'Footnotes list'!$D$9:$E$58,2,FALSE)=0,\"\",VLOOKUP(DZ195,'Footnotes list'!$D$9:$E$58,2,FALSE) ) )","v":""},null,null,null,null,{"$f":"IF(TRIM(EE195)=\"\", \"\", IF(VLOOKUP(EE195,'Footnotes list'!$D$9:$E$58,2,FALSE)=0,\"\",VLOOKUP(EE195,'Footnotes list'!$D$9:$E$58,2,FALSE) ) )","v":""},null,null,null,null,{"$f":"IF(TRIM(EJ195)=\"\", \"\", IF(VLOOKUP(EJ195,'Footnotes list'!$D$9:$E$58,2,FALSE)=0,\"\",VLOOKUP(EJ195,'Footnotes list'!$D$9:$E$58,2,FALSE) ) )","v":""},null,null,null,null,{"$f":"IF(TRIM(EO195)=\"\", \"\", IF(VLOOKUP(EO195,'Footnotes list'!$D$9:$E$58,2,FALSE)=0,\"\",VLOOKUP(EO195,'Footnotes list'!$D$9:$E$58,2,FALSE) ) )","v":""},null,null,null,null,{"$f":"IF(TRIM(ET195)=\"\", \"\", IF(VLOOKUP(ET195,'Footnotes list'!$D$9:$E$58,2,FALSE)=0,\"\",VLOOKUP(ET195,'Footnotes list'!$D$9:$E$58,2,FALSE) ) )","v":""},null,null,null,null,{"$f":"IF(TRIM(EY195)=\"\", \"\", IF(VLOOKUP(EY195,'Footnotes list'!$D$9:$E$58,2,FALSE)=0,\"\",VLOOKUP(EY195,'Footnotes list'!$D$9:$E$58,2,FALSE) ) )","v":""}]
[null,null,"I","C_REP","cleaner and resource efficient products",null,null,null,null,null,{"$f":"IF(TRIM(J196)=\"\", \"\", IF(VLOOKUP(J196,'Footnotes list'!$D$9:$E$58,2,FALSE)=0,\"\",VLOOKUP(J196,'Footnotes list'!$D$9:$E$58,2,FALSE) ) )","v":""},null,null,null,null,{"$f":"IF(TRIM(O196)=\"\", \"\", IF(VLOOKUP(O196,'Footnotes list'!$D$9:$E$58,2,FALSE)=0,\"\",VLOOKUP(O196,'Footnotes list'!$D$9:$E$58,2,FALSE) ) )","v":""},null,null,null,null,{"$f":"IF(TRIM(T196)=\"\", \"\", IF(VLOOKUP(T196,'Footnotes list'!$D$9:$E$58,2,FALSE)=0,\"\",VLOOKUP(T196,'Footnotes list'!$D$9:$E$58,2,FALSE) ) )","v":""},null,null,null,null,{"$f":"IF(TRIM(Y196)=\"\", \"\", IF(VLOOKUP(Y196,'Footnotes list'!$D$9:$E$58,2,FALSE)=0,\"\",VLOOKUP(Y196,'Footnotes list'!$D$9:$E$58,2,FALSE) ) )","v":""},null,null,null,null,{"$f":"IF(TRIM(AD196)=\"\", \"\", IF(VLOOKUP(AD196,'Footnotes list'!$D$9:$E$58,2,FALSE)=0,\"\",VLOOKUP(AD196,'Footnotes list'!$D$9:$E$58,2,FALSE) ) )","v":""},null,null,null,null,{"$f":"IF(TRIM(AI196)=\"\", \"\", IF(VLOOKUP(AI196,'Footnotes list'!$D$9:$E$58,2,FALSE)=0,\"\",VLOOKUP(AI196,'Footnotes list'!$D$9:$E$58,2,FALSE) ) )","v":""},null,null,null,null,{"$f":"IF(TRIM(AN196)=\"\", \"\", IF(VLOOKUP(AN196,'Footnotes list'!$D$9:$E$58,2,FALSE)=0,\"\",VLOOKUP(AN196,'Footnotes list'!$D$9:$E$58,2,FALSE) ) )","v":""},null,null,null,null,{"$f":"IF(TRIM(AS196)=\"\", \"\", IF(VLOOKUP(AS196,'Footnotes list'!$D$9:$E$58,2,FALSE)=0,\"\",VLOOKUP(AS196,'Footnotes list'!$D$9:$E$58,2,FALSE) ) )","v":""},null,null,null,null,{"$f":"IF(TRIM(AX196)=\"\", \"\", IF(VLOOKUP(AX196,'Footnotes list'!$D$9:$E$58,2,FALSE)=0,\"\",VLOOKUP(AX196,'Footnotes list'!$D$9:$E$58,2,FALSE) ) )","v":""},null,null,null,null,{"$f":"IF(TRIM(BC196)=\"\", \"\", IF(VLOOKUP(BC196,'Footnotes list'!$D$9:$E$58,2,FALSE)=0,\"\",VLOOKUP(BC196,'Footnotes list'!$D$9:$E$58,2,FALSE) ) )","v":""},null,null,null,null,{"$f":"IF(TRIM(BH196)=\"\", \"\", IF(VLOOKUP(BH196,'Footnotes list'!$D$9:$E$58,2,FALSE)=0,\"\",VLOOKUP(BH196,'Footnotes list'!$D$9:$E$58,2,FALSE) ) )","v":""},null,null,null,null,{"$f":"IF(TRIM(BM196)=\"\", \"\", IF(VLOOKUP(BM196,'Footnotes list'!$D$9:$E$58,2,FALSE)=0,\"\",VLOOKUP(BM196,'Footnotes list'!$D$9:$E$58,2,FALSE) ) )","v":""},null,null,null,null,{"$f":"IF(TRIM(BR196)=\"\", \"\", IF(VLOOKUP(BR196,'Footnotes list'!$D$9:$E$58,2,FALSE)=0,\"\",VLOOKUP(BR196,'Footnotes list'!$D$9:$E$58,2,FALSE) ) )","v":""},null,null,null,null,{"$f":"IF(TRIM(BW196)=\"\", \"\", IF(VLOOKUP(BW196,'Footnotes list'!$D$9:$E$58,2,FALSE)=0,\"\",VLOOKUP(BW196,'Footnotes list'!$D$9:$E$58,2,FALSE) ) )","v":""},null,null,null,null,{"$f":"IF(TRIM(CB196)=\"\", \"\", IF(VLOOKUP(CB196,'Footnotes list'!$D$9:$E$58,2,FALSE)=0,\"\",VLOOKUP(CB196,'Footnotes list'!$D$9:$E$58,2,FALSE) ) )","v":""},null,null,null,null,{"$f":"IF(TRIM(CG196)=\"\", \"\", IF(VLOOKUP(CG196,'Footnotes list'!$D$9:$E$58,2,FALSE)=0,\"\",VLOOKUP(CG196,'Footnotes list'!$D$9:$E$58,2,FALSE) ) )","v":""},null,null,null,null,{"$f":"IF(TRIM(CL196)=\"\", \"\", IF(VLOOKUP(CL196,'Footnotes list'!$D$9:$E$58,2,FALSE)=0,\"\",VLOOKUP(CL196,'Footnotes list'!$D$9:$E$58,2,FALSE) ) )","v":""},null,null,null,null,{"$f":"IF(TRIM(CQ196)=\"\", \"\", IF(VLOOKUP(CQ196,'Footnotes list'!$D$9:$E$58,2,FALSE)=0,\"\",VLOOKUP(CQ196,'Footnotes list'!$D$9:$E$58,2,FALSE) ) )","v":""},null,null,null,null,{"$f":"IF(TRIM(CV196)=\"\", \"\", IF(VLOOKUP(CV196,'Footnotes list'!$D$9:$E$58,2,FALSE)=0,\"\",VLOOKUP(CV196,'Footnotes list'!$D$9:$E$58,2,FALSE) ) )","v":""},null,null,null,null,{"$f":"IF(TRIM(DA196)=\"\", \"\", IF(VLOOKUP(DA196,'Footnotes list'!$D$9:$E$58,2,FALSE)=0,\"\",VLOOKUP(DA196,'Footnotes list'!$D$9:$E$58,2,FALSE) ) )","v":""},null,null,null,null,{"$f":"IF(TRIM(DF196)=\"\", \"\", IF(VLOOKUP(DF196,'Footnotes list'!$D$9:$E$58,2,FALSE)=0,\"\",VLOOKUP(DF196,'Footnotes list'!$D$9:$E$58,2,FALSE) ) )","v":""},null,null,null,null,{"$f":"IF(TRIM(DK196)=\"\", \"\", IF(VLOOKUP(DK196,'Footnotes list'!$D$9:$E$58,2,FALSE)=0,\"\",VLOOKUP(DK196,'Footnotes list'!$D$9:$E$58,2,FALSE) ) )","v":""},null,null,null,null,{"$f":"IF(TRIM(DP196)=\"\", \"\", IF(VLOOKUP(DP196,'Footnotes list'!$D$9:$E$58,2,FALSE)=0,\"\",VLOOKUP(DP196,'Footnotes list'!$D$9:$E$58,2,FALSE) ) )","v":""},null,null,null,null,{"$f":"IF(TRIM(DU196)=\"\", \"\", IF(VLOOKUP(DU196,'Footnotes list'!$D$9:$E$58,2,FALSE)=0,\"\",VLOOKUP(DU196,'Footnotes list'!$D$9:$E$58,2,FALSE) ) )","v":""},null,null,null,null,{"$f":"IF(TRIM(DZ196)=\"\", \"\", IF(VLOOKUP(DZ196,'Footnotes list'!$D$9:$E$58,2,FALSE)=0,\"\",VLOOKUP(DZ196,'Footnotes list'!$D$9:$E$58,2,FALSE) ) )","v":""},null,null,null,null,{"$f":"IF(TRIM(EE196)=\"\", \"\", IF(VLOOKUP(EE196,'Footnotes list'!$D$9:$E$58,2,FALSE)=0,\"\",VLOOKUP(EE196,'Footnotes list'!$D$9:$E$58,2,FALSE) ) )","v":""},null,null,null,null,{"$f":"IF(TRIM(EJ196)=\"\", \"\", IF(VLOOKUP(EJ196,'Footnotes list'!$D$9:$E$58,2,FALSE)=0,\"\",VLOOKUP(EJ196,'Footnotes list'!$D$9:$E$58,2,FALSE) ) )","v":""},null,null,null,null,{"$f":"IF(TRIM(EO196)=\"\", \"\", IF(VLOOKUP(EO196,'Footnotes list'!$D$9:$E$58,2,FALSE)=0,\"\",VLOOKUP(EO196,'Footnotes list'!$D$9:$E$58,2,FALSE) ) )","v":""},null,null,null,null,{"$f":"IF(TRIM(ET196)=\"\", \"\", IF(VLOOKUP(ET196,'Footnotes list'!$D$9:$E$58,2,FALSE)=0,\"\",VLOOKUP(ET196,'Footnotes list'!$D$9:$E$58,2,FALSE) ) )","v":""},null,null,null,null,{"$f":"IF(TRIM(EY196)=\"\", \"\", IF(VLOOKUP(EY196,'Footnotes list'!$D$9:$E$58,2,FALSE)=0,\"\",VLOOKUP(EY196,'Footnotes list'!$D$9:$E$58,2,FALSE) ) )","v":""}]
[null,null,"J","TOT_EGSS","Total J - Information and communication, of which:",null,null,null,null,null,{"$f":"IF(TRIM(J197)=\"\", \"\", IF(VLOOKUP(J197,'Footnotes list'!$D$9:$E$58,2,FALSE)=0,\"\",VLOOKUP(J197,'Footnotes list'!$D$9:$E$58,2,FALSE) ) )","v":""},null,null,null,null,{"$f":"IF(TRIM(O197)=\"\", \"\", IF(VLOOKUP(O197,'Footnotes list'!$D$9:$E$58,2,FALSE)=0,\"\",VLOOKUP(O197,'Footnotes list'!$D$9:$E$58,2,FALSE) ) )","v":""},null,null,null,null,{"$f":"IF(TRIM(T197)=\"\", \"\", IF(VLOOKUP(T197,'Footnotes list'!$D$9:$E$58,2,FALSE)=0,\"\",VLOOKUP(T197,'Footnotes list'!$D$9:$E$58,2,FALSE) ) )","v":""},null,null,null,null,{"$f":"IF(TRIM(Y197)=\"\", \"\", IF(VLOOKUP(Y197,'Footnotes list'!$D$9:$E$58,2,FALSE)=0,\"\",VLOOKUP(Y197,'Footnotes list'!$D$9:$E$58,2,FALSE) ) )","v":""},null,null,null,null,{"$f":"IF(TRIM(AD197)=\"\", \"\", IF(VLOOKUP(AD197,'Footnotes list'!$D$9:$E$58,2,FALSE)=0,\"\",VLOOKUP(AD197,'Footnotes list'!$D$9:$E$58,2,FALSE) ) )","v":""},null,null,null,null,{"$f":"IF(TRIM(AI197)=\"\", \"\", IF(VLOOKUP(AI197,'Footnotes list'!$D$9:$E$58,2,FALSE)=0,\"\",VLOOKUP(AI197,'Footnotes list'!$D$9:$E$58,2,FALSE) ) )","v":""},null,null,null,null,{"$f":"IF(TRIM(AN197)=\"\", \"\", IF(VLOOKUP(AN197,'Footnotes list'!$D$9:$E$58,2,FALSE)=0,\"\",VLOOKUP(AN197,'Footnotes list'!$D$9:$E$58,2,FALSE) ) )","v":""},null,null,null,null,{"$f":"IF(TRIM(AS197)=\"\", \"\", IF(VLOOKUP(AS197,'Footnotes list'!$D$9:$E$58,2,FALSE)=0,\"\",VLOOKUP(AS197,'Footnotes list'!$D$9:$E$58,2,FALSE) ) )","v":""},null,null,null,null,{"$f":"IF(TRIM(AX197)=\"\", \"\", IF(VLOOKUP(AX197,'Footnotes list'!$D$9:$E$58,2,FALSE)=0,\"\",VLOOKUP(AX197,'Footnotes list'!$D$9:$E$58,2,FALSE) ) )","v":""},null,null,null,null,{"$f":"IF(TRIM(BC197)=\"\", \"\", IF(VLOOKUP(BC197,'Footnotes list'!$D$9:$E$58,2,FALSE)=0,\"\",VLOOKUP(BC197,'Footnotes list'!$D$9:$E$58,2,FALSE) ) )","v":""},null,null,null,null,{"$f":"IF(TRIM(BH197)=\"\", \"\", IF(VLOOKUP(BH197,'Footnotes list'!$D$9:$E$58,2,FALSE)=0,\"\",VLOOKUP(BH197,'Footnotes list'!$D$9:$E$58,2,FALSE) ) )","v":""},null,null,null,null,{"$f":"IF(TRIM(BM197)=\"\", \"\", IF(VLOOKUP(BM197,'Footnotes list'!$D$9:$E$58,2,FALSE)=0,\"\",VLOOKUP(BM197,'Footnotes list'!$D$9:$E$58,2,FALSE) ) )","v":""},null,null,null,null,{"$f":"IF(TRIM(BR197)=\"\", \"\", IF(VLOOKUP(BR197,'Footnotes list'!$D$9:$E$58,2,FALSE)=0,\"\",VLOOKUP(BR197,'Footnotes list'!$D$9:$E$58,2,FALSE) ) )","v":""},null,null,null,null,{"$f":"IF(TRIM(BW197)=\"\", \"\", IF(VLOOKUP(BW197,'Footnotes list'!$D$9:$E$58,2,FALSE)=0,\"\",VLOOKUP(BW197,'Footnotes list'!$D$9:$E$58,2,FALSE) ) )","v":""},null,null,null,null,{"$f":"IF(TRIM(CB197)=\"\", \"\", IF(VLOOKUP(CB197,'Footnotes list'!$D$9:$E$58,2,FALSE)=0,\"\",VLOOKUP(CB197,'Footnotes list'!$D$9:$E$58,2,FALSE) ) )","v":""},null,null,null,null,{"$f":"IF(TRIM(CG197)=\"\", \"\", IF(VLOOKUP(CG197,'Footnotes list'!$D$9:$E$58,2,FALSE)=0,\"\",VLOOKUP(CG197,'Footnotes list'!$D$9:$E$58,2,FALSE) ) )","v":""},null,null,null,null,{"$f":"IF(TRIM(CL197)=\"\", \"\", IF(VLOOKUP(CL197,'Footnotes list'!$D$9:$E$58,2,FALSE)=0,\"\",VLOOKUP(CL197,'Footnotes list'!$D$9:$E$58,2,FALSE) ) )","v":""},null,null,null,null,{"$f":"IF(TRIM(CQ197)=\"\", \"\", IF(VLOOKUP(CQ197,'Footnotes list'!$D$9:$E$58,2,FALSE)=0,\"\",VLOOKUP(CQ197,'Footnotes list'!$D$9:$E$58,2,FALSE) ) )","v":""},null,null,null,null,{"$f":"IF(TRIM(CV197)=\"\", \"\", IF(VLOOKUP(CV197,'Footnotes list'!$D$9:$E$58,2,FALSE)=0,\"\",VLOOKUP(CV197,'Footnotes list'!$D$9:$E$58,2,FALSE) ) )","v":""},null,null,null,null,{"$f":"IF(TRIM(DA197)=\"\", \"\", IF(VLOOKUP(DA197,'Footnotes list'!$D$9:$E$58,2,FALSE)=0,\"\",VLOOKUP(DA197,'Footnotes list'!$D$9:$E$58,2,FALSE) ) )","v":""},null,null,null,null,{"$f":"IF(TRIM(DF197)=\"\", \"\", IF(VLOOKUP(DF197,'Footnotes list'!$D$9:$E$58,2,FALSE)=0,\"\",VLOOKUP(DF197,'Footnotes list'!$D$9:$E$58,2,FALSE) ) )","v":""},null,null,null,null,{"$f":"IF(TRIM(DK197)=\"\", \"\", IF(VLOOKUP(DK197,'Footnotes list'!$D$9:$E$58,2,FALSE)=0,\"\",VLOOKUP(DK197,'Footnotes list'!$D$9:$E$58,2,FALSE) ) )","v":""},null,null,null,null,{"$f":"IF(TRIM(DP197)=\"\", \"\", IF(VLOOKUP(DP197,'Footnotes list'!$D$9:$E$58,2,FALSE)=0,\"\",VLOOKUP(DP197,'Footnotes list'!$D$9:$E$58,2,FALSE) ) )","v":""},null,null,null,null,{"$f":"IF(TRIM(DU197)=\"\", \"\", IF(VLOOKUP(DU197,'Footnotes list'!$D$9:$E$58,2,FALSE)=0,\"\",VLOOKUP(DU197,'Footnotes list'!$D$9:$E$58,2,FALSE) ) )","v":""},null,null,null,null,{"$f":"IF(TRIM(DZ197)=\"\", \"\", IF(VLOOKUP(DZ197,'Footnotes list'!$D$9:$E$58,2,FALSE)=0,\"\",VLOOKUP(DZ197,'Footnotes list'!$D$9:$E$58,2,FALSE) ) )","v":""},null,null,null,null,{"$f":"IF(TRIM(EE197)=\"\", \"\", IF(VLOOKUP(EE197,'Footnotes list'!$D$9:$E$58,2,FALSE)=0,\"\",VLOOKUP(EE197,'Footnotes list'!$D$9:$E$58,2,FALSE) ) )","v":""},null,null,null,null,{"$f":"IF(TRIM(EJ197)=\"\", \"\", IF(VLOOKUP(EJ197,'Footnotes list'!$D$9:$E$58,2,FALSE)=0,\"\",VLOOKUP(EJ197,'Footnotes list'!$D$9:$E$58,2,FALSE) ) )","v":""},null,null,null,null,{"$f":"IF(TRIM(EO197)=\"\", \"\", IF(VLOOKUP(EO197,'Footnotes list'!$D$9:$E$58,2,FALSE)=0,\"\",VLOOKUP(EO197,'Footnotes list'!$D$9:$E$58,2,FALSE) ) )","v":""},null,null,null,null,{"$f":"IF(TRIM(ET197)=\"\", \"\", IF(VLOOKUP(ET197,'Footnotes list'!$D$9:$E$58,2,FALSE)=0,\"\",VLOOKUP(ET197,'Footnotes list'!$D$9:$E$58,2,FALSE) ) )","v":""},null,null,null,null,{"$f":"IF(TRIM(EY197)=\"\", \"\", IF(VLOOKUP(EY197,'Footnotes list'!$D$9:$E$58,2,FALSE)=0,\"\",VLOOKUP(EY197,'Footnotes list'!$D$9:$E$58,2,FALSE) ) )","v":""}]
[null,null,"J","ANC","ancillary activities",null,null,null,null,null,{"$f":"IF(TRIM(J198)=\"\", \"\", IF(VLOOKUP(J198,'Footnotes list'!$D$9:$E$58,2,FALSE)=0,\"\",VLOOKUP(J198,'Footnotes list'!$D$9:$E$58,2,FALSE) ) )","v":""},null,null,null,null,{"$f":"IF(TRIM(O198)=\"\", \"\", IF(VLOOKUP(O198,'Footnotes list'!$D$9:$E$58,2,FALSE)=0,\"\",VLOOKUP(O198,'Footnotes list'!$D$9:$E$58,2,FALSE) ) )","v":""},null,null,null,null,{"$f":"IF(TRIM(T198)=\"\", \"\", IF(VLOOKUP(T198,'Footnotes list'!$D$9:$E$58,2,FALSE)=0,\"\",VLOOKUP(T198,'Footnotes list'!$D$9:$E$58,2,FALSE) ) )","v":""},null,null,null,null,{"$f":"IF(TRIM(Y198)=\"\", \"\", IF(VLOOKUP(Y198,'Footnotes list'!$D$9:$E$58,2,FALSE)=0,\"\",VLOOKUP(Y198,'Footnotes list'!$D$9:$E$58,2,FALSE) ) )","v":""},null,null,null,null,{"$f":"IF(TRIM(AD198)=\"\", \"\", IF(VLOOKUP(AD198,'Footnotes list'!$D$9:$E$58,2,FALSE)=0,\"\",VLOOKUP(AD198,'Footnotes list'!$D$9:$E$58,2,FALSE) ) )","v":""},null,null,null,null,{"$f":"IF(TRIM(AI198)=\"\", \"\", IF(VLOOKUP(AI198,'Footnotes list'!$D$9:$E$58,2,FALSE)=0,\"\",VLOOKUP(AI198,'Footnotes list'!$D$9:$E$58,2,FALSE) ) )","v":""},null,null,null,null,{"$f":"IF(TRIM(AN198)=\"\", \"\", IF(VLOOKUP(AN198,'Footnotes list'!$D$9:$E$58,2,FALSE)=0,\"\",VLOOKUP(AN198,'Footnotes list'!$D$9:$E$58,2,FALSE) ) )","v":""},null,null,null,null,{"$f":"IF(TRIM(AS198)=\"\", \"\", IF(VLOOKUP(AS198,'Footnotes list'!$D$9:$E$58,2,FALSE)=0,\"\",VLOOKUP(AS198,'Footnotes list'!$D$9:$E$58,2,FALSE) ) )","v":""},null,null,null,null,{"$f":"IF(TRIM(AX198)=\"\", \"\", IF(VLOOKUP(AX198,'Footnotes list'!$D$9:$E$58,2,FALSE)=0,\"\",VLOOKUP(AX198,'Footnotes list'!$D$9:$E$58,2,FALSE) ) )","v":""},null,null,null,null,{"$f":"IF(TRIM(BC198)=\"\", \"\", IF(VLOOKUP(BC198,'Footnotes list'!$D$9:$E$58,2,FALSE)=0,\"\",VLOOKUP(BC198,'Footnotes list'!$D$9:$E$58,2,FALSE) ) )","v":""},null,null,null,null,{"$f":"IF(TRIM(BH198)=\"\", \"\", IF(VLOOKUP(BH198,'Footnotes list'!$D$9:$E$58,2,FALSE)=0,\"\",VLOOKUP(BH198,'Footnotes list'!$D$9:$E$58,2,FALSE) ) )","v":""},null,null,null,null,{"$f":"IF(TRIM(BM198)=\"\", \"\", IF(VLOOKUP(BM198,'Footnotes list'!$D$9:$E$58,2,FALSE)=0,\"\",VLOOKUP(BM198,'Footnotes list'!$D$9:$E$58,2,FALSE) ) )","v":""},null,null,null,null,{"$f":"IF(TRIM(BR198)=\"\", \"\", IF(VLOOKUP(BR198,'Footnotes list'!$D$9:$E$58,2,FALSE)=0,\"\",VLOOKUP(BR198,'Footnotes list'!$D$9:$E$58,2,FALSE) ) )","v":""},null,null,null,null,{"$f":"IF(TRIM(BW198)=\"\", \"\", IF(VLOOKUP(BW198,'Footnotes list'!$D$9:$E$58,2,FALSE)=0,\"\",VLOOKUP(BW198,'Footnotes list'!$D$9:$E$58,2,FALSE) ) )","v":""},null,null,null,null,{"$f":"IF(TRIM(CB198)=\"\", \"\", IF(VLOOKUP(CB198,'Footnotes list'!$D$9:$E$58,2,FALSE)=0,\"\",VLOOKUP(CB198,'Footnotes list'!$D$9:$E$58,2,FALSE) ) )","v":""},null,null,null,null,{"$f":"IF(TRIM(CG198)=\"\", \"\", IF(VLOOKUP(CG198,'Footnotes list'!$D$9:$E$58,2,FALSE)=0,\"\",VLOOKUP(CG198,'Footnotes list'!$D$9:$E$58,2,FALSE) ) )","v":""},null,null,null,null,{"$f":"IF(TRIM(CL198)=\"\", \"\", IF(VLOOKUP(CL198,'Footnotes list'!$D$9:$E$58,2,FALSE)=0,\"\",VLOOKUP(CL198,'Footnotes list'!$D$9:$E$58,2,FALSE) ) )","v":""},null,null,null,null,{"$f":"IF(TRIM(CQ198)=\"\", \"\", IF(VLOOKUP(CQ198,'Footnotes list'!$D$9:$E$58,2,FALSE)=0,\"\",VLOOKUP(CQ198,'Footnotes list'!$D$9:$E$58,2,FALSE) ) )","v":""},null,null,null,null,{"$f":"IF(TRIM(CV198)=\"\", \"\", IF(VLOOKUP(CV198,'Footnotes list'!$D$9:$E$58,2,FALSE)=0,\"\",VLOOKUP(CV198,'Footnotes list'!$D$9:$E$58,2,FALSE) ) )","v":""},null,null,null,null,{"$f":"IF(TRIM(DA198)=\"\", \"\", IF(VLOOKUP(DA198,'Footnotes list'!$D$9:$E$58,2,FALSE)=0,\"\",VLOOKUP(DA198,'Footnotes list'!$D$9:$E$58,2,FALSE) ) )","v":""},null,null,null,null,{"$f":"IF(TRIM(DF198)=\"\", \"\", IF(VLOOKUP(DF198,'Footnotes list'!$D$9:$E$58,2,FALSE)=0,\"\",VLOOKUP(DF198,'Footnotes list'!$D$9:$E$58,2,FALSE) ) )","v":""},null,null,null,null,{"$f":"IF(TRIM(DK198)=\"\", \"\", IF(VLOOKUP(DK198,'Footnotes list'!$D$9:$E$58,2,FALSE)=0,\"\",VLOOKUP(DK198,'Footnotes list'!$D$9:$E$58,2,FALSE) ) )","v":""},null,null,null,null,{"$f":"IF(TRIM(DP198)=\"\", \"\", IF(VLOOKUP(DP198,'Footnotes list'!$D$9:$E$58,2,FALSE)=0,\"\",VLOOKUP(DP198,'Footnotes list'!$D$9:$E$58,2,FALSE) ) )","v":""},null,null,null,null,{"$f":"IF(TRIM(DU198)=\"\", \"\", IF(VLOOKUP(DU198,'Footnotes list'!$D$9:$E$58,2,FALSE)=0,\"\",VLOOKUP(DU198,'Footnotes list'!$D$9:$E$58,2,FALSE) ) )","v":""},null,null,null,null,{"$f":"IF(TRIM(DZ198)=\"\", \"\", IF(VLOOKUP(DZ198,'Footnotes list'!$D$9:$E$58,2,FALSE)=0,\"\",VLOOKUP(DZ198,'Footnotes list'!$D$9:$E$58,2,FALSE) ) )","v":""},null,null,null,null,{"$f":"IF(TRIM(EE198)=\"\", \"\", IF(VLOOKUP(EE198,'Footnotes list'!$D$9:$E$58,2,FALSE)=0,\"\",VLOOKUP(EE198,'Footnotes list'!$D$9:$E$58,2,FALSE) ) )","v":""},null,null,null,null,{"$f":"IF(TRIM(EJ198)=\"\", \"\", IF(VLOOKUP(EJ198,'Footnotes list'!$D$9:$E$58,2,FALSE)=0,\"\",VLOOKUP(EJ198,'Footnotes list'!$D$9:$E$58,2,FALSE) ) )","v":""},null,null,null,null,{"$f":"IF(TRIM(EO198)=\"\", \"\", IF(VLOOKUP(EO198,'Footnotes list'!$D$9:$E$58,2,FALSE)=0,\"\",VLOOKUP(EO198,'Footnotes list'!$D$9:$E$58,2,FALSE) ) )","v":""},null,null,null,null,{"$f":"IF(TRIM(ET198)=\"\", \"\", IF(VLOOKUP(ET198,'Footnotes list'!$D$9:$E$58,2,FALSE)=0,\"\",VLOOKUP(ET198,'Footnotes list'!$D$9:$E$58,2,FALSE) ) )","v":""},null,null,null,null,{"$f":"IF(TRIM(EY198)=\"\", \"\", IF(VLOOKUP(EY198,'Footnotes list'!$D$9:$E$58,2,FALSE)=0,\"\",VLOOKUP(EY198,'Footnotes list'!$D$9:$E$58,2,FALSE) ) )","v":""}]
[null,null,"J","NMKT","non-market activities",null,null,null,null,null,{"$f":"IF(TRIM(J199)=\"\", \"\", IF(VLOOKUP(J199,'Footnotes list'!$D$9:$E$58,2,FALSE)=0,\"\",VLOOKUP(J199,'Footnotes list'!$D$9:$E$58,2,FALSE) ) )","v":""},null,null,null,null,{"$f":"IF(TRIM(O199)=\"\", \"\", IF(VLOOKUP(O199,'Footnotes list'!$D$9:$E$58,2,FALSE)=0,\"\",VLOOKUP(O199,'Footnotes list'!$D$9:$E$58,2,FALSE) ) )","v":""},null,null,null,null,{"$f":"IF(TRIM(T199)=\"\", \"\", IF(VLOOKUP(T199,'Footnotes list'!$D$9:$E$58,2,FALSE)=0,\"\",VLOOKUP(T199,'Footnotes list'!$D$9:$E$58,2,FALSE) ) )","v":""},null,null,null,null,{"$f":"IF(TRIM(Y199)=\"\", \"\", IF(VLOOKUP(Y199,'Footnotes list'!$D$9:$E$58,2,FALSE)=0,\"\",VLOOKUP(Y199,'Footnotes list'!$D$9:$E$58,2,FALSE) ) )","v":""},null,null,null,null,{"$f":"IF(TRIM(AD199)=\"\", \"\", IF(VLOOKUP(AD199,'Footnotes list'!$D$9:$E$58,2,FALSE)=0,\"\",VLOOKUP(AD199,'Footnotes list'!$D$9:$E$58,2,FALSE) ) )","v":""},null,null,null,null,{"$f":"IF(TRIM(AI199)=\"\", \"\", IF(VLOOKUP(AI199,'Footnotes list'!$D$9:$E$58,2,FALSE)=0,\"\",VLOOKUP(AI199,'Footnotes list'!$D$9:$E$58,2,FALSE) ) )","v":""},null,null,null,null,{"$f":"IF(TRIM(AN199)=\"\", \"\", IF(VLOOKUP(AN199,'Footnotes list'!$D$9:$E$58,2,FALSE)=0,\"\",VLOOKUP(AN199,'Footnotes list'!$D$9:$E$58,2,FALSE) ) )","v":""},null,null,null,null,{"$f":"IF(TRIM(AS199)=\"\", \"\", IF(VLOOKUP(AS199,'Footnotes list'!$D$9:$E$58,2,FALSE)=0,\"\",VLOOKUP(AS199,'Footnotes list'!$D$9:$E$58,2,FALSE) ) )","v":""},null,null,null,null,{"$f":"IF(TRIM(AX199)=\"\", \"\", IF(VLOOKUP(AX199,'Footnotes list'!$D$9:$E$58,2,FALSE)=0,\"\",VLOOKUP(AX199,'Footnotes list'!$D$9:$E$58,2,FALSE) ) )","v":""},null,null,null,null,{"$f":"IF(TRIM(BC199)=\"\", \"\", IF(VLOOKUP(BC199,'Footnotes list'!$D$9:$E$58,2,FALSE)=0,\"\",VLOOKUP(BC199,'Footnotes list'!$D$9:$E$58,2,FALSE) ) )","v":""},null,null,null,null,{"$f":"IF(TRIM(BH199)=\"\", \"\", IF(VLOOKUP(BH199,'Footnotes list'!$D$9:$E$58,2,FALSE)=0,\"\",VLOOKUP(BH199,'Footnotes list'!$D$9:$E$58,2,FALSE) ) )","v":""},null,null,null,null,{"$f":"IF(TRIM(BM199)=\"\", \"\", IF(VLOOKUP(BM199,'Footnotes list'!$D$9:$E$58,2,FALSE)=0,\"\",VLOOKUP(BM199,'Footnotes list'!$D$9:$E$58,2,FALSE) ) )","v":""},null,null,null,null,{"$f":"IF(TRIM(BR199)=\"\", \"\", IF(VLOOKUP(BR199,'Footnotes list'!$D$9:$E$58,2,FALSE)=0,\"\",VLOOKUP(BR199,'Footnotes list'!$D$9:$E$58,2,FALSE) ) )","v":""},null,null,null,null,{"$f":"IF(TRIM(BW199)=\"\", \"\", IF(VLOOKUP(BW199,'Footnotes list'!$D$9:$E$58,2,FALSE)=0,\"\",VLOOKUP(BW199,'Footnotes list'!$D$9:$E$58,2,FALSE) ) )","v":""},null,null,null,null,{"$f":"IF(TRIM(CB199)=\"\", \"\", IF(VLOOKUP(CB199,'Footnotes list'!$D$9:$E$58,2,FALSE)=0,\"\",VLOOKUP(CB199,'Footnotes list'!$D$9:$E$58,2,FALSE) ) )","v":""},null,null,null,null,{"$f":"IF(TRIM(CG199)=\"\", \"\", IF(VLOOKUP(CG199,'Footnotes list'!$D$9:$E$58,2,FALSE)=0,\"\",VLOOKUP(CG199,'Footnotes list'!$D$9:$E$58,2,FALSE) ) )","v":""},null,null,null,null,{"$f":"IF(TRIM(CL199)=\"\", \"\", IF(VLOOKUP(CL199,'Footnotes list'!$D$9:$E$58,2,FALSE)=0,\"\",VLOOKUP(CL199,'Footnotes list'!$D$9:$E$58,2,FALSE) ) )","v":""},null,null,null,null,{"$f":"IF(TRIM(CQ199)=\"\", \"\", IF(VLOOKUP(CQ199,'Footnotes list'!$D$9:$E$58,2,FALSE)=0,\"\",VLOOKUP(CQ199,'Footnotes list'!$D$9:$E$58,2,FALSE) ) )","v":""},null,null,null,null,{"$f":"IF(TRIM(CV199)=\"\", \"\", IF(VLOOKUP(CV199,'Footnotes list'!$D$9:$E$58,2,FALSE)=0,\"\",VLOOKUP(CV199,'Footnotes list'!$D$9:$E$58,2,FALSE) ) )","v":""},null,null,null,null,{"$f":"IF(TRIM(DA199)=\"\", \"\", IF(VLOOKUP(DA199,'Footnotes list'!$D$9:$E$58,2,FALSE)=0,\"\",VLOOKUP(DA199,'Footnotes list'!$D$9:$E$58,2,FALSE) ) )","v":""},null,null,null,null,{"$f":"IF(TRIM(DF199)=\"\", \"\", IF(VLOOKUP(DF199,'Footnotes list'!$D$9:$E$58,2,FALSE)=0,\"\",VLOOKUP(DF199,'Footnotes list'!$D$9:$E$58,2,FALSE) ) )","v":""},null,null,null,null,{"$f":"IF(TRIM(DK199)=\"\", \"\", IF(VLOOKUP(DK199,'Footnotes list'!$D$9:$E$58,2,FALSE)=0,\"\",VLOOKUP(DK199,'Footnotes list'!$D$9:$E$58,2,FALSE) ) )","v":""},null,null,null,null,{"$f":"IF(TRIM(DP199)=\"\", \"\", IF(VLOOKUP(DP199,'Footnotes list'!$D$9:$E$58,2,FALSE)=0,\"\",VLOOKUP(DP199,'Footnotes list'!$D$9:$E$58,2,FALSE) ) )","v":""},null,null,null,null,{"$f":"IF(TRIM(DU199)=\"\", \"\", IF(VLOOKUP(DU199,'Footnotes list'!$D$9:$E$58,2,FALSE)=0,\"\",VLOOKUP(DU199,'Footnotes list'!$D$9:$E$58,2,FALSE) ) )","v":""},null,null,null,null,{"$f":"IF(TRIM(DZ199)=\"\", \"\", IF(VLOOKUP(DZ199,'Footnotes list'!$D$9:$E$58,2,FALSE)=0,\"\",VLOOKUP(DZ199,'Footnotes list'!$D$9:$E$58,2,FALSE) ) )","v":""},null,null,null,null,{"$f":"IF(TRIM(EE199)=\"\", \"\", IF(VLOOKUP(EE199,'Footnotes list'!$D$9:$E$58,2,FALSE)=0,\"\",VLOOKUP(EE199,'Footnotes list'!$D$9:$E$58,2,FALSE) ) )","v":""},null,null,null,null,{"$f":"IF(TRIM(EJ199)=\"\", \"\", IF(VLOOKUP(EJ199,'Footnotes list'!$D$9:$E$58,2,FALSE)=0,\"\",VLOOKUP(EJ199,'Footnotes list'!$D$9:$E$58,2,FALSE) ) )","v":""},null,null,null,null,{"$f":"IF(TRIM(EO199)=\"\", \"\", IF(VLOOKUP(EO199,'Footnotes list'!$D$9:$E$58,2,FALSE)=0,\"\",VLOOKUP(EO199,'Footnotes list'!$D$9:$E$58,2,FALSE) ) )","v":""},null,null,null,null,{"$f":"IF(TRIM(ET199)=\"\", \"\", IF(VLOOKUP(ET199,'Footnotes list'!$D$9:$E$58,2,FALSE)=0,\"\",VLOOKUP(ET199,'Footnotes list'!$D$9:$E$58,2,FALSE) ) )","v":""},null,null,null,null,{"$f":"IF(TRIM(EY199)=\"\", \"\", IF(VLOOKUP(EY199,'Footnotes list'!$D$9:$E$58,2,FALSE)=0,\"\",VLOOKUP(EY199,'Footnotes list'!$D$9:$E$58,2,FALSE) ) )","v":""}]
[null,null,"J","OWN_USE","activities for own final use",null,null,null,null,null,{"$f":"IF(TRIM(J200)=\"\", \"\", IF(VLOOKUP(J200,'Footnotes list'!$D$9:$E$58,2,FALSE)=0,\"\",VLOOKUP(J200,'Footnotes list'!$D$9:$E$58,2,FALSE) ) )","v":""},null,null,null,null,{"$f":"IF(TRIM(O200)=\"\", \"\", IF(VLOOKUP(O200,'Footnotes list'!$D$9:$E$58,2,FALSE)=0,\"\",VLOOKUP(O200,'Footnotes list'!$D$9:$E$58,2,FALSE) ) )","v":""},null,null,null,null,{"$f":"IF(TRIM(T200)=\"\", \"\", IF(VLOOKUP(T200,'Footnotes list'!$D$9:$E$58,2,FALSE)=0,\"\",VLOOKUP(T200,'Footnotes list'!$D$9:$E$58,2,FALSE) ) )","v":""},null,null,null,null,{"$f":"IF(TRIM(Y200)=\"\", \"\", IF(VLOOKUP(Y200,'Footnotes list'!$D$9:$E$58,2,FALSE)=0,\"\",VLOOKUP(Y200,'Footnotes list'!$D$9:$E$58,2,FALSE) ) )","v":""},null,null,null,null,{"$f":"IF(TRIM(AD200)=\"\", \"\", IF(VLOOKUP(AD200,'Footnotes list'!$D$9:$E$58,2,FALSE)=0,\"\",VLOOKUP(AD200,'Footnotes list'!$D$9:$E$58,2,FALSE) ) )","v":""},null,null,null,null,{"$f":"IF(TRIM(AI200)=\"\", \"\", IF(VLOOKUP(AI200,'Footnotes list'!$D$9:$E$58,2,FALSE)=0,\"\",VLOOKUP(AI200,'Footnotes list'!$D$9:$E$58,2,FALSE) ) )","v":""},null,null,null,null,{"$f":"IF(TRIM(AN200)=\"\", \"\", IF(VLOOKUP(AN200,'Footnotes list'!$D$9:$E$58,2,FALSE)=0,\"\",VLOOKUP(AN200,'Footnotes list'!$D$9:$E$58,2,FALSE) ) )","v":""},null,null,null,null,{"$f":"IF(TRIM(AS200)=\"\", \"\", IF(VLOOKUP(AS200,'Footnotes list'!$D$9:$E$58,2,FALSE)=0,\"\",VLOOKUP(AS200,'Footnotes list'!$D$9:$E$58,2,FALSE) ) )","v":""},null,null,null,null,{"$f":"IF(TRIM(AX200)=\"\", \"\", IF(VLOOKUP(AX200,'Footnotes list'!$D$9:$E$58,2,FALSE)=0,\"\",VLOOKUP(AX200,'Footnotes list'!$D$9:$E$58,2,FALSE) ) )","v":""},null,null,null,null,{"$f":"IF(TRIM(BC200)=\"\", \"\", IF(VLOOKUP(BC200,'Footnotes list'!$D$9:$E$58,2,FALSE)=0,\"\",VLOOKUP(BC200,'Footnotes list'!$D$9:$E$58,2,FALSE) ) )","v":""},null,null,null,null,{"$f":"IF(TRIM(BH200)=\"\", \"\", IF(VLOOKUP(BH200,'Footnotes list'!$D$9:$E$58,2,FALSE)=0,\"\",VLOOKUP(BH200,'Footnotes list'!$D$9:$E$58,2,FALSE) ) )","v":""},null,null,null,null,{"$f":"IF(TRIM(BM200)=\"\", \"\", IF(VLOOKUP(BM200,'Footnotes list'!$D$9:$E$58,2,FALSE)=0,\"\",VLOOKUP(BM200,'Footnotes list'!$D$9:$E$58,2,FALSE) ) )","v":""},null,null,null,null,{"$f":"IF(TRIM(BR200)=\"\", \"\", IF(VLOOKUP(BR200,'Footnotes list'!$D$9:$E$58,2,FALSE)=0,\"\",VLOOKUP(BR200,'Footnotes list'!$D$9:$E$58,2,FALSE) ) )","v":""},null,null,null,null,{"$f":"IF(TRIM(BW200)=\"\", \"\", IF(VLOOKUP(BW200,'Footnotes list'!$D$9:$E$58,2,FALSE)=0,\"\",VLOOKUP(BW200,'Footnotes list'!$D$9:$E$58,2,FALSE) ) )","v":""},null,null,null,null,{"$f":"IF(TRIM(CB200)=\"\", \"\", IF(VLOOKUP(CB200,'Footnotes list'!$D$9:$E$58,2,FALSE)=0,\"\",VLOOKUP(CB200,'Footnotes list'!$D$9:$E$58,2,FALSE) ) )","v":""},null,null,null,null,{"$f":"IF(TRIM(CG200)=\"\", \"\", IF(VLOOKUP(CG200,'Footnotes list'!$D$9:$E$58,2,FALSE)=0,\"\",VLOOKUP(CG200,'Footnotes list'!$D$9:$E$58,2,FALSE) ) )","v":""},null,null,null,null,{"$f":"IF(TRIM(CL200)=\"\", \"\", IF(VLOOKUP(CL200,'Footnotes list'!$D$9:$E$58,2,FALSE)=0,\"\",VLOOKUP(CL200,'Footnotes list'!$D$9:$E$58,2,FALSE) ) )","v":""},null,null,null,null,{"$f":"IF(TRIM(CQ200)=\"\", \"\", IF(VLOOKUP(CQ200,'Footnotes list'!$D$9:$E$58,2,FALSE)=0,\"\",VLOOKUP(CQ200,'Footnotes list'!$D$9:$E$58,2,FALSE) ) )","v":""},null,null,null,null,{"$f":"IF(TRIM(CV200)=\"\", \"\", IF(VLOOKUP(CV200,'Footnotes list'!$D$9:$E$58,2,FALSE)=0,\"\",VLOOKUP(CV200,'Footnotes list'!$D$9:$E$58,2,FALSE) ) )","v":""},null,null,null,null,{"$f":"IF(TRIM(DA200)=\"\", \"\", IF(VLOOKUP(DA200,'Footnotes list'!$D$9:$E$58,2,FALSE)=0,\"\",VLOOKUP(DA200,'Footnotes list'!$D$9:$E$58,2,FALSE) ) )","v":""},null,null,null,null,{"$f":"IF(TRIM(DF200)=\"\", \"\", IF(VLOOKUP(DF200,'Footnotes list'!$D$9:$E$58,2,FALSE)=0,\"\",VLOOKUP(DF200,'Footnotes list'!$D$9:$E$58,2,FALSE) ) )","v":""},null,null,null,null,{"$f":"IF(TRIM(DK200)=\"\", \"\", IF(VLOOKUP(DK200,'Footnotes list'!$D$9:$E$58,2,FALSE)=0,\"\",VLOOKUP(DK200,'Footnotes list'!$D$9:$E$58,2,FALSE) ) )","v":""},null,null,null,null,{"$f":"IF(TRIM(DP200)=\"\", \"\", IF(VLOOKUP(DP200,'Footnotes list'!$D$9:$E$58,2,FALSE)=0,\"\",VLOOKUP(DP200,'Footnotes list'!$D$9:$E$58,2,FALSE) ) )","v":""},null,null,null,null,{"$f":"IF(TRIM(DU200)=\"\", \"\", IF(VLOOKUP(DU200,'Footnotes list'!$D$9:$E$58,2,FALSE)=0,\"\",VLOOKUP(DU200,'Footnotes list'!$D$9:$E$58,2,FALSE) ) )","v":""},null,null,null,null,{"$f":"IF(TRIM(DZ200)=\"\", \"\", IF(VLOOKUP(DZ200,'Footnotes list'!$D$9:$E$58,2,FALSE)=0,\"\",VLOOKUP(DZ200,'Footnotes list'!$D$9:$E$58,2,FALSE) ) )","v":""},null,null,null,null,{"$f":"IF(TRIM(EE200)=\"\", \"\", IF(VLOOKUP(EE200,'Footnotes list'!$D$9:$E$58,2,FALSE)=0,\"\",VLOOKUP(EE200,'Footnotes list'!$D$9:$E$58,2,FALSE) ) )","v":""},null,null,null,null,{"$f":"IF(TRIM(EJ200)=\"\", \"\", IF(VLOOKUP(EJ200,'Footnotes list'!$D$9:$E$58,2,FALSE)=0,\"\",VLOOKUP(EJ200,'Footnotes list'!$D$9:$E$58,2,FALSE) ) )","v":""},null,null,null,null,{"$f":"IF(TRIM(EO200)=\"\", \"\", IF(VLOOKUP(EO200,'Footnotes list'!$D$9:$E$58,2,FALSE)=0,\"\",VLOOKUP(EO200,'Footnotes list'!$D$9:$E$58,2,FALSE) ) )","v":""},null,null,null,null,{"$f":"IF(TRIM(ET200)=\"\", \"\", IF(VLOOKUP(ET200,'Footnotes list'!$D$9:$E$58,2,FALSE)=0,\"\",VLOOKUP(ET200,'Footnotes list'!$D$9:$E$58,2,FALSE) ) )","v":""},null,null,null,null,{"$f":"IF(TRIM(EY200)=\"\", \"\", IF(VLOOKUP(EY200,'Footnotes list'!$D$9:$E$58,2,FALSE)=0,\"\",VLOOKUP(EY200,'Footnotes list'!$D$9:$E$58,2,FALSE) ) )","v":""}]
[null,null,"J","MKT","market activities, including:",null,null,null,null,null,{"$f":"IF(TRIM(J201)=\"\", \"\", IF(VLOOKUP(J201,'Footnotes list'!$D$9:$E$58,2,FALSE)=0,\"\",VLOOKUP(J201,'Footnotes list'!$D$9:$E$58,2,FALSE) ) )","v":""},null,null,null,null,{"$f":"IF(TRIM(O201)=\"\", \"\", IF(VLOOKUP(O201,'Footnotes list'!$D$9:$E$58,2,FALSE)=0,\"\",VLOOKUP(O201,'Footnotes list'!$D$9:$E$58,2,FALSE) ) )","v":""},null,null,null,null,{"$f":"IF(TRIM(T201)=\"\", \"\", IF(VLOOKUP(T201,'Footnotes list'!$D$9:$E$58,2,FALSE)=0,\"\",VLOOKUP(T201,'Footnotes list'!$D$9:$E$58,2,FALSE) ) )","v":""},null,null,null,null,{"$f":"IF(TRIM(Y201)=\"\", \"\", IF(VLOOKUP(Y201,'Footnotes list'!$D$9:$E$58,2,FALSE)=0,\"\",VLOOKUP(Y201,'Footnotes list'!$D$9:$E$58,2,FALSE) ) )","v":""},null,null,null,null,{"$f":"IF(TRIM(AD201)=\"\", \"\", IF(VLOOKUP(AD201,'Footnotes list'!$D$9:$E$58,2,FALSE)=0,\"\",VLOOKUP(AD201,'Footnotes list'!$D$9:$E$58,2,FALSE) ) )","v":""},null,null,null,null,{"$f":"IF(TRIM(AI201)=\"\", \"\", IF(VLOOKUP(AI201,'Footnotes list'!$D$9:$E$58,2,FALSE)=0,\"\",VLOOKUP(AI201,'Footnotes list'!$D$9:$E$58,2,FALSE) ) )","v":""},null,null,null,null,{"$f":"IF(TRIM(AN201)=\"\", \"\", IF(VLOOKUP(AN201,'Footnotes list'!$D$9:$E$58,2,FALSE)=0,\"\",VLOOKUP(AN201,'Footnotes list'!$D$9:$E$58,2,FALSE) ) )","v":""},null,null,null,null,{"$f":"IF(TRIM(AS201)=\"\", \"\", IF(VLOOKUP(AS201,'Footnotes list'!$D$9:$E$58,2,FALSE)=0,\"\",VLOOKUP(AS201,'Footnotes list'!$D$9:$E$58,2,FALSE) ) )","v":""},null,null,null,null,{"$f":"IF(TRIM(AX201)=\"\", \"\", IF(VLOOKUP(AX201,'Footnotes list'!$D$9:$E$58,2,FALSE)=0,\"\",VLOOKUP(AX201,'Footnotes list'!$D$9:$E$58,2,FALSE) ) )","v":""},null,null,null,null,{"$f":"IF(TRIM(BC201)=\"\", \"\", IF(VLOOKUP(BC201,'Footnotes list'!$D$9:$E$58,2,FALSE)=0,\"\",VLOOKUP(BC201,'Footnotes list'!$D$9:$E$58,2,FALSE) ) )","v":""},null,null,null,null,{"$f":"IF(TRIM(BH201)=\"\", \"\", IF(VLOOKUP(BH201,'Footnotes list'!$D$9:$E$58,2,FALSE)=0,\"\",VLOOKUP(BH201,'Footnotes list'!$D$9:$E$58,2,FALSE) ) )","v":""},null,null,null,null,{"$f":"IF(TRIM(BM201)=\"\", \"\", IF(VLOOKUP(BM201,'Footnotes list'!$D$9:$E$58,2,FALSE)=0,\"\",VLOOKUP(BM201,'Footnotes list'!$D$9:$E$58,2,FALSE) ) )","v":""},null,null,null,null,{"$f":"IF(TRIM(BR201)=\"\", \"\", IF(VLOOKUP(BR201,'Footnotes list'!$D$9:$E$58,2,FALSE)=0,\"\",VLOOKUP(BR201,'Footnotes list'!$D$9:$E$58,2,FALSE) ) )","v":""},null,null,null,null,{"$f":"IF(TRIM(BW201)=\"\", \"\", IF(VLOOKUP(BW201,'Footnotes list'!$D$9:$E$58,2,FALSE)=0,\"\",VLOOKUP(BW201,'Footnotes list'!$D$9:$E$58,2,FALSE) ) )","v":""},null,null,null,null,{"$f":"IF(TRIM(CB201)=\"\", \"\", IF(VLOOKUP(CB201,'Footnotes list'!$D$9:$E$58,2,FALSE)=0,\"\",VLOOKUP(CB201,'Footnotes list'!$D$9:$E$58,2,FALSE) ) )","v":""},null,null,null,null,{"$f":"IF(TRIM(CG201)=\"\", \"\", IF(VLOOKUP(CG201,'Footnotes list'!$D$9:$E$58,2,FALSE)=0,\"\",VLOOKUP(CG201,'Footnotes list'!$D$9:$E$58,2,FALSE) ) )","v":""},null,null,null,null,{"$f":"IF(TRIM(CL201)=\"\", \"\", IF(VLOOKUP(CL201,'Footnotes list'!$D$9:$E$58,2,FALSE)=0,\"\",VLOOKUP(CL201,'Footnotes list'!$D$9:$E$58,2,FALSE) ) )","v":""},null,null,null,null,{"$f":"IF(TRIM(CQ201)=\"\", \"\", IF(VLOOKUP(CQ201,'Footnotes list'!$D$9:$E$58,2,FALSE)=0,\"\",VLOOKUP(CQ201,'Footnotes list'!$D$9:$E$58,2,FALSE) ) )","v":""},null,null,null,null,{"$f":"IF(TRIM(CV201)=\"\", \"\", IF(VLOOKUP(CV201,'Footnotes list'!$D$9:$E$58,2,FALSE)=0,\"\",VLOOKUP(CV201,'Footnotes list'!$D$9:$E$58,2,FALSE) ) )","v":""},null,null,null,null,{"$f":"IF(TRIM(DA201)=\"\", \"\", IF(VLOOKUP(DA201,'Footnotes list'!$D$9:$E$58,2,FALSE)=0,\"\",VLOOKUP(DA201,'Footnotes list'!$D$9:$E$58,2,FALSE) ) )","v":""},null,null,null,null,{"$f":"IF(TRIM(DF201)=\"\", \"\", IF(VLOOKUP(DF201,'Footnotes list'!$D$9:$E$58,2,FALSE)=0,\"\",VLOOKUP(DF201,'Footnotes list'!$D$9:$E$58,2,FALSE) ) )","v":""},null,null,null,null,{"$f":"IF(TRIM(DK201)=\"\", \"\", IF(VLOOKUP(DK201,'Footnotes list'!$D$9:$E$58,2,FALSE)=0,\"\",VLOOKUP(DK201,'Footnotes list'!$D$9:$E$58,2,FALSE) ) )","v":""},null,null,null,null,{"$f":"IF(TRIM(DP201)=\"\", \"\", IF(VLOOKUP(DP201,'Footnotes list'!$D$9:$E$58,2,FALSE)=0,\"\",VLOOKUP(DP201,'Footnotes list'!$D$9:$E$58,2,FALSE) ) )","v":""},null,null,null,null,{"$f":"IF(TRIM(DU201)=\"\", \"\", IF(VLOOKUP(DU201,'Footnotes list'!$D$9:$E$58,2,FALSE)=0,\"\",VLOOKUP(DU201,'Footnotes list'!$D$9:$E$58,2,FALSE) ) )","v":""},null,null,null,null,{"$f":"IF(TRIM(DZ201)=\"\", \"\", IF(VLOOKUP(DZ201,'Footnotes list'!$D$9:$E$58,2,FALSE)=0,\"\",VLOOKUP(DZ201,'Footnotes list'!$D$9:$E$58,2,FALSE) ) )","v":""},null,null,null,null,{"$f":"IF(TRIM(EE201)=\"\", \"\", IF(VLOOKUP(EE201,'Footnotes list'!$D$9:$E$58,2,FALSE)=0,\"\",VLOOKUP(EE201,'Footnotes list'!$D$9:$E$58,2,FALSE) ) )","v":""},null,null,null,null,{"$f":"IF(TRIM(EJ201)=\"\", \"\", IF(VLOOKUP(EJ201,'Footnotes list'!$D$9:$E$58,2,FALSE)=0,\"\",VLOOKUP(EJ201,'Footnotes list'!$D$9:$E$58,2,FALSE) ) )","v":""},null,null,null,null,{"$f":"IF(TRIM(EO201)=\"\", \"\", IF(VLOOKUP(EO201,'Footnotes list'!$D$9:$E$58,2,FALSE)=0,\"\",VLOOKUP(EO201,'Footnotes list'!$D$9:$E$58,2,FALSE) ) )","v":""},null,null,null,null,{"$f":"IF(TRIM(ET201)=\"\", \"\", IF(VLOOKUP(ET201,'Footnotes list'!$D$9:$E$58,2,FALSE)=0,\"\",VLOOKUP(ET201,'Footnotes list'!$D$9:$E$58,2,FALSE) ) )","v":""},null,null,null,null,{"$f":"IF(TRIM(EY201)=\"\", \"\", IF(VLOOKUP(EY201,'Footnotes list'!$D$9:$E$58,2,FALSE)=0,\"\",VLOOKUP(EY201,'Footnotes list'!$D$9:$E$58,2,FALSE) ) )","v":""}]
[null,null,"J","ES_CS","environmental specific services",null,null,null,null,null,{"$f":"IF(TRIM(J202)=\"\", \"\", IF(VLOOKUP(J202,'Footnotes list'!$D$9:$E$58,2,FALSE)=0,\"\",VLOOKUP(J202,'Footnotes list'!$D$9:$E$58,2,FALSE) ) )","v":""},null,null,null,null,{"$f":"IF(TRIM(O202)=\"\", \"\", IF(VLOOKUP(O202,'Footnotes list'!$D$9:$E$58,2,FALSE)=0,\"\",VLOOKUP(O202,'Footnotes list'!$D$9:$E$58,2,FALSE) ) )","v":""},null,null,null,null,{"$f":"IF(TRIM(T202)=\"\", \"\", IF(VLOOKUP(T202,'Footnotes list'!$D$9:$E$58,2,FALSE)=0,\"\",VLOOKUP(T202,'Footnotes list'!$D$9:$E$58,2,FALSE) ) )","v":""},null,null,null,null,{"$f":"IF(TRIM(Y202)=\"\", \"\", IF(VLOOKUP(Y202,'Footnotes list'!$D$9:$E$58,2,FALSE)=0,\"\",VLOOKUP(Y202,'Footnotes list'!$D$9:$E$58,2,FALSE) ) )","v":""},null,null,null,null,{"$f":"IF(TRIM(AD202)=\"\", \"\", IF(VLOOKUP(AD202,'Footnotes list'!$D$9:$E$58,2,FALSE)=0,\"\",VLOOKUP(AD202,'Footnotes list'!$D$9:$E$58,2,FALSE) ) )","v":""},null,null,null,null,{"$f":"IF(TRIM(AI202)=\"\", \"\", IF(VLOOKUP(AI202,'Footnotes list'!$D$9:$E$58,2,FALSE)=0,\"\",VLOOKUP(AI202,'Footnotes list'!$D$9:$E$58,2,FALSE) ) )","v":""},null,null,null,null,{"$f":"IF(TRIM(AN202)=\"\", \"\", IF(VLOOKUP(AN202,'Footnotes list'!$D$9:$E$58,2,FALSE)=0,\"\",VLOOKUP(AN202,'Footnotes list'!$D$9:$E$58,2,FALSE) ) )","v":""},null,null,null,null,{"$f":"IF(TRIM(AS202)=\"\", \"\", IF(VLOOKUP(AS202,'Footnotes list'!$D$9:$E$58,2,FALSE)=0,\"\",VLOOKUP(AS202,'Footnotes list'!$D$9:$E$58,2,FALSE) ) )","v":""},null,null,null,null,{"$f":"IF(TRIM(AX202)=\"\", \"\", IF(VLOOKUP(AX202,'Footnotes list'!$D$9:$E$58,2,FALSE)=0,\"\",VLOOKUP(AX202,'Footnotes list'!$D$9:$E$58,2,FALSE) ) )","v":""},null,null,null,null,{"$f":"IF(TRIM(BC202)=\"\", \"\", IF(VLOOKUP(BC202,'Footnotes list'!$D$9:$E$58,2,FALSE)=0,\"\",VLOOKUP(BC202,'Footnotes list'!$D$9:$E$58,2,FALSE) ) )","v":""},null,null,null,null,{"$f":"IF(TRIM(BH202)=\"\", \"\", IF(VLOOKUP(BH202,'Footnotes list'!$D$9:$E$58,2,FALSE)=0,\"\",VLOOKUP(BH202,'Footnotes list'!$D$9:$E$58,2,FALSE) ) )","v":""},null,null,null,null,{"$f":"IF(TRIM(BM202)=\"\", \"\", IF(VLOOKUP(BM202,'Footnotes list'!$D$9:$E$58,2,FALSE)=0,\"\",VLOOKUP(BM202,'Footnotes list'!$D$9:$E$58,2,FALSE) ) )","v":""},null,null,null,null,{"$f":"IF(TRIM(BR202)=\"\", \"\", IF(VLOOKUP(BR202,'Footnotes list'!$D$9:$E$58,2,FALSE)=0,\"\",VLOOKUP(BR202,'Footnotes list'!$D$9:$E$58,2,FALSE) ) )","v":""},null,null,null,null,{"$f":"IF(TRIM(BW202)=\"\", \"\", IF(VLOOKUP(BW202,'Footnotes list'!$D$9:$E$58,2,FALSE)=0,\"\",VLOOKUP(BW202,'Footnotes list'!$D$9:$E$58,2,FALSE) ) )","v":""},null,null,null,null,{"$f":"IF(TRIM(CB202)=\"\", \"\", IF(VLOOKUP(CB202,'Footnotes list'!$D$9:$E$58,2,FALSE)=0,\"\",VLOOKUP(CB202,'Footnotes list'!$D$9:$E$58,2,FALSE) ) )","v":""},null,null,null,null,{"$f":"IF(TRIM(CG202)=\"\", \"\", IF(VLOOKUP(CG202,'Footnotes list'!$D$9:$E$58,2,FALSE)=0,\"\",VLOOKUP(CG202,'Footnotes list'!$D$9:$E$58,2,FALSE) ) )","v":""},null,null,null,null,{"$f":"IF(TRIM(CL202)=\"\", \"\", IF(VLOOKUP(CL202,'Footnotes list'!$D$9:$E$58,2,FALSE)=0,\"\",VLOOKUP(CL202,'Footnotes list'!$D$9:$E$58,2,FALSE) ) )","v":""},null,null,null,null,{"$f":"IF(TRIM(CQ202)=\"\", \"\", IF(VLOOKUP(CQ202,'Footnotes list'!$D$9:$E$58,2,FALSE)=0,\"\",VLOOKUP(CQ202,'Footnotes list'!$D$9:$E$58,2,FALSE) ) )","v":""},null,null,null,null,{"$f":"IF(TRIM(CV202)=\"\", \"\", IF(VLOOKUP(CV202,'Footnotes list'!$D$9:$E$58,2,FALSE)=0,\"\",VLOOKUP(CV202,'Footnotes list'!$D$9:$E$58,2,FALSE) ) )","v":""},null,null,null,null,{"$f":"IF(TRIM(DA202)=\"\", \"\", IF(VLOOKUP(DA202,'Footnotes list'!$D$9:$E$58,2,FALSE)=0,\"\",VLOOKUP(DA202,'Footnotes list'!$D$9:$E$58,2,FALSE) ) )","v":""},null,null,null,null,{"$f":"IF(TRIM(DF202)=\"\", \"\", IF(VLOOKUP(DF202,'Footnotes list'!$D$9:$E$58,2,FALSE)=0,\"\",VLOOKUP(DF202,'Footnotes list'!$D$9:$E$58,2,FALSE) ) )","v":""},null,null,null,null,{"$f":"IF(TRIM(DK202)=\"\", \"\", IF(VLOOKUP(DK202,'Footnotes list'!$D$9:$E$58,2,FALSE)=0,\"\",VLOOKUP(DK202,'Footnotes list'!$D$9:$E$58,2,FALSE) ) )","v":""},null,null,null,null,{"$f":"IF(TRIM(DP202)=\"\", \"\", IF(VLOOKUP(DP202,'Footnotes list'!$D$9:$E$58,2,FALSE)=0,\"\",VLOOKUP(DP202,'Footnotes list'!$D$9:$E$58,2,FALSE) ) )","v":""},null,null,null,null,{"$f":"IF(TRIM(DU202)=\"\", \"\", IF(VLOOKUP(DU202,'Footnotes list'!$D$9:$E$58,2,FALSE)=0,\"\",VLOOKUP(DU202,'Footnotes list'!$D$9:$E$58,2,FALSE) ) )","v":""},null,null,null,null,{"$f":"IF(TRIM(DZ202)=\"\", \"\", IF(VLOOKUP(DZ202,'Footnotes list'!$D$9:$E$58,2,FALSE)=0,\"\",VLOOKUP(DZ202,'Footnotes list'!$D$9:$E$58,2,FALSE) ) )","v":""},null,null,null,null,{"$f":"IF(TRIM(EE202)=\"\", \"\", IF(VLOOKUP(EE202,'Footnotes list'!$D$9:$E$58,2,FALSE)=0,\"\",VLOOKUP(EE202,'Footnotes list'!$D$9:$E$58,2,FALSE) ) )","v":""},null,null,null,null,{"$f":"IF(TRIM(EJ202)=\"\", \"\", IF(VLOOKUP(EJ202,'Footnotes list'!$D$9:$E$58,2,FALSE)=0,\"\",VLOOKUP(EJ202,'Footnotes list'!$D$9:$E$58,2,FALSE) ) )","v":""},null,null,null,null,{"$f":"IF(TRIM(EO202)=\"\", \"\", IF(VLOOKUP(EO202,'Footnotes list'!$D$9:$E$58,2,FALSE)=0,\"\",VLOOKUP(EO202,'Footnotes list'!$D$9:$E$58,2,FALSE) ) )","v":""},null,null,null,null,{"$f":"IF(TRIM(ET202)=\"\", \"\", IF(VLOOKUP(ET202,'Footnotes list'!$D$9:$E$58,2,FALSE)=0,\"\",VLOOKUP(ET202,'Footnotes list'!$D$9:$E$58,2,FALSE) ) )","v":""},null,null,null,null,{"$f":"IF(TRIM(EY202)=\"\", \"\", IF(VLOOKUP(EY202,'Footnotes list'!$D$9:$E$58,2,FALSE)=0,\"\",VLOOKUP(EY202,'Footnotes list'!$D$9:$E$58,2,FALSE) ) )","v":""}]
[null,null,"J","C_REP","cleaner and resource efficient products",null,null,null,null,null,{"$f":"IF(TRIM(J203)=\"\", \"\", IF(VLOOKUP(J203,'Footnotes list'!$D$9:$E$58,2,FALSE)=0,\"\",VLOOKUP(J203,'Footnotes list'!$D$9:$E$58,2,FALSE) ) )","v":""},null,null,null,null,{"$f":"IF(TRIM(O203)=\"\", \"\", IF(VLOOKUP(O203,'Footnotes list'!$D$9:$E$58,2,FALSE)=0,\"\",VLOOKUP(O203,'Footnotes list'!$D$9:$E$58,2,FALSE) ) )","v":""},null,null,null,null,{"$f":"IF(TRIM(T203)=\"\", \"\", IF(VLOOKUP(T203,'Footnotes list'!$D$9:$E$58,2,FALSE)=0,\"\",VLOOKUP(T203,'Footnotes list'!$D$9:$E$58,2,FALSE) ) )","v":""},null,null,null,null,{"$f":"IF(TRIM(Y203)=\"\", \"\", IF(VLOOKUP(Y203,'Footnotes list'!$D$9:$E$58,2,FALSE)=0,\"\",VLOOKUP(Y203,'Footnotes list'!$D$9:$E$58,2,FALSE) ) )","v":""},null,null,null,null,{"$f":"IF(TRIM(AD203)=\"\", \"\", IF(VLOOKUP(AD203,'Footnotes list'!$D$9:$E$58,2,FALSE)=0,\"\",VLOOKUP(AD203,'Footnotes list'!$D$9:$E$58,2,FALSE) ) )","v":""},null,null,null,null,{"$f":"IF(TRIM(AI203)=\"\", \"\", IF(VLOOKUP(AI203,'Footnotes list'!$D$9:$E$58,2,FALSE)=0,\"\",VLOOKUP(AI203,'Footnotes list'!$D$9:$E$58,2,FALSE) ) )","v":""},null,null,null,null,{"$f":"IF(TRIM(AN203)=\"\", \"\", IF(VLOOKUP(AN203,'Footnotes list'!$D$9:$E$58,2,FALSE)=0,\"\",VLOOKUP(AN203,'Footnotes list'!$D$9:$E$58,2,FALSE) ) )","v":""},null,null,null,null,{"$f":"IF(TRIM(AS203)=\"\", \"\", IF(VLOOKUP(AS203,'Footnotes list'!$D$9:$E$58,2,FALSE)=0,\"\",VLOOKUP(AS203,'Footnotes list'!$D$9:$E$58,2,FALSE) ) )","v":""},null,null,null,null,{"$f":"IF(TRIM(AX203)=\"\", \"\", IF(VLOOKUP(AX203,'Footnotes list'!$D$9:$E$58,2,FALSE)=0,\"\",VLOOKUP(AX203,'Footnotes list'!$D$9:$E$58,2,FALSE) ) )","v":""},null,null,null,null,{"$f":"IF(TRIM(BC203)=\"\", \"\", IF(VLOOKUP(BC203,'Footnotes list'!$D$9:$E$58,2,FALSE)=0,\"\",VLOOKUP(BC203,'Footnotes list'!$D$9:$E$58,2,FALSE) ) )","v":""},null,null,null,null,{"$f":"IF(TRIM(BH203)=\"\", \"\", IF(VLOOKUP(BH203,'Footnotes list'!$D$9:$E$58,2,FALSE)=0,\"\",VLOOKUP(BH203,'Footnotes list'!$D$9:$E$58,2,FALSE) ) )","v":""},null,null,null,null,{"$f":"IF(TRIM(BM203)=\"\", \"\", IF(VLOOKUP(BM203,'Footnotes list'!$D$9:$E$58,2,FALSE)=0,\"\",VLOOKUP(BM203,'Footnotes list'!$D$9:$E$58,2,FALSE) ) )","v":""},null,null,null,null,{"$f":"IF(TRIM(BR203)=\"\", \"\", IF(VLOOKUP(BR203,'Footnotes list'!$D$9:$E$58,2,FALSE)=0,\"\",VLOOKUP(BR203,'Footnotes list'!$D$9:$E$58,2,FALSE) ) )","v":""},null,null,null,null,{"$f":"IF(TRIM(BW203)=\"\", \"\", IF(VLOOKUP(BW203,'Footnotes list'!$D$9:$E$58,2,FALSE)=0,\"\",VLOOKUP(BW203,'Footnotes list'!$D$9:$E$58,2,FALSE) ) )","v":""},null,null,null,null,{"$f":"IF(TRIM(CB203)=\"\", \"\", IF(VLOOKUP(CB203,'Footnotes list'!$D$9:$E$58,2,FALSE)=0,\"\",VLOOKUP(CB203,'Footnotes list'!$D$9:$E$58,2,FALSE) ) )","v":""},null,null,null,null,{"$f":"IF(TRIM(CG203)=\"\", \"\", IF(VLOOKUP(CG203,'Footnotes list'!$D$9:$E$58,2,FALSE)=0,\"\",VLOOKUP(CG203,'Footnotes list'!$D$9:$E$58,2,FALSE) ) )","v":""},null,null,null,null,{"$f":"IF(TRIM(CL203)=\"\", \"\", IF(VLOOKUP(CL203,'Footnotes list'!$D$9:$E$58,2,FALSE)=0,\"\",VLOOKUP(CL203,'Footnotes list'!$D$9:$E$58,2,FALSE) ) )","v":""},null,null,null,null,{"$f":"IF(TRIM(CQ203)=\"\", \"\", IF(VLOOKUP(CQ203,'Footnotes list'!$D$9:$E$58,2,FALSE)=0,\"\",VLOOKUP(CQ203,'Footnotes list'!$D$9:$E$58,2,FALSE) ) )","v":""},null,null,null,null,{"$f":"IF(TRIM(CV203)=\"\", \"\", IF(VLOOKUP(CV203,'Footnotes list'!$D$9:$E$58,2,FALSE)=0,\"\",VLOOKUP(CV203,'Footnotes list'!$D$9:$E$58,2,FALSE) ) )","v":""},null,null,null,null,{"$f":"IF(TRIM(DA203)=\"\", \"\", IF(VLOOKUP(DA203,'Footnotes list'!$D$9:$E$58,2,FALSE)=0,\"\",VLOOKUP(DA203,'Footnotes list'!$D$9:$E$58,2,FALSE) ) )","v":""},null,null,null,null,{"$f":"IF(TRIM(DF203)=\"\", \"\", IF(VLOOKUP(DF203,'Footnotes list'!$D$9:$E$58,2,FALSE)=0,\"\",VLOOKUP(DF203,'Footnotes list'!$D$9:$E$58,2,FALSE) ) )","v":""},null,null,null,null,{"$f":"IF(TRIM(DK203)=\"\", \"\", IF(VLOOKUP(DK203,'Footnotes list'!$D$9:$E$58,2,FALSE)=0,\"\",VLOOKUP(DK203,'Footnotes list'!$D$9:$E$58,2,FALSE) ) )","v":""},null,null,null,null,{"$f":"IF(TRIM(DP203)=\"\", \"\", IF(VLOOKUP(DP203,'Footnotes list'!$D$9:$E$58,2,FALSE)=0,\"\",VLOOKUP(DP203,'Footnotes list'!$D$9:$E$58,2,FALSE) ) )","v":""},null,null,null,null,{"$f":"IF(TRIM(DU203)=\"\", \"\", IF(VLOOKUP(DU203,'Footnotes list'!$D$9:$E$58,2,FALSE)=0,\"\",VLOOKUP(DU203,'Footnotes list'!$D$9:$E$58,2,FALSE) ) )","v":""},null,null,null,null,{"$f":"IF(TRIM(DZ203)=\"\", \"\", IF(VLOOKUP(DZ203,'Footnotes list'!$D$9:$E$58,2,FALSE)=0,\"\",VLOOKUP(DZ203,'Footnotes list'!$D$9:$E$58,2,FALSE) ) )","v":""},null,null,null,null,{"$f":"IF(TRIM(EE203)=\"\", \"\", IF(VLOOKUP(EE203,'Footnotes list'!$D$9:$E$58,2,FALSE)=0,\"\",VLOOKUP(EE203,'Footnotes list'!$D$9:$E$58,2,FALSE) ) )","v":""},null,null,null,null,{"$f":"IF(TRIM(EJ203)=\"\", \"\", IF(VLOOKUP(EJ203,'Footnotes list'!$D$9:$E$58,2,FALSE)=0,\"\",VLOOKUP(EJ203,'Footnotes list'!$D$9:$E$58,2,FALSE) ) )","v":""},null,null,null,null,{"$f":"IF(TRIM(EO203)=\"\", \"\", IF(VLOOKUP(EO203,'Footnotes list'!$D$9:$E$58,2,FALSE)=0,\"\",VLOOKUP(EO203,'Footnotes list'!$D$9:$E$58,2,FALSE) ) )","v":""},null,null,null,null,{"$f":"IF(TRIM(ET203)=\"\", \"\", IF(VLOOKUP(ET203,'Footnotes list'!$D$9:$E$58,2,FALSE)=0,\"\",VLOOKUP(ET203,'Footnotes list'!$D$9:$E$58,2,FALSE) ) )","v":""},null,null,null,null,{"$f":"IF(TRIM(EY203)=\"\", \"\", IF(VLOOKUP(EY203,'Footnotes list'!$D$9:$E$58,2,FALSE)=0,\"\",VLOOKUP(EY203,'Footnotes list'!$D$9:$E$58,2,FALSE) ) )","v":""}]
[null,null,"K","TOT_EGSS","Total K - Financial and insurance activities, of which:",null,null,null,null,null,{"$f":"IF(TRIM(J204)=\"\", \"\", IF(VLOOKUP(J204,'Footnotes list'!$D$9:$E$58,2,FALSE)=0,\"\",VLOOKUP(J204,'Footnotes list'!$D$9:$E$58,2,FALSE) ) )","v":""},null,null,null,null,{"$f":"IF(TRIM(O204)=\"\", \"\", IF(VLOOKUP(O204,'Footnotes list'!$D$9:$E$58,2,FALSE)=0,\"\",VLOOKUP(O204,'Footnotes list'!$D$9:$E$58,2,FALSE) ) )","v":""},null,null,null,null,{"$f":"IF(TRIM(T204)=\"\", \"\", IF(VLOOKUP(T204,'Footnotes list'!$D$9:$E$58,2,FALSE)=0,\"\",VLOOKUP(T204,'Footnotes list'!$D$9:$E$58,2,FALSE) ) )","v":""},null,null,null,null,{"$f":"IF(TRIM(Y204)=\"\", \"\", IF(VLOOKUP(Y204,'Footnotes list'!$D$9:$E$58,2,FALSE)=0,\"\",VLOOKUP(Y204,'Footnotes list'!$D$9:$E$58,2,FALSE) ) )","v":""},null,null,null,null,{"$f":"IF(TRIM(AD204)=\"\", \"\", IF(VLOOKUP(AD204,'Footnotes list'!$D$9:$E$58,2,FALSE)=0,\"\",VLOOKUP(AD204,'Footnotes list'!$D$9:$E$58,2,FALSE) ) )","v":""},null,null,null,null,{"$f":"IF(TRIM(AI204)=\"\", \"\", IF(VLOOKUP(AI204,'Footnotes list'!$D$9:$E$58,2,FALSE)=0,\"\",VLOOKUP(AI204,'Footnotes list'!$D$9:$E$58,2,FALSE) ) )","v":""},null,null,null,null,{"$f":"IF(TRIM(AN204)=\"\", \"\", IF(VLOOKUP(AN204,'Footnotes list'!$D$9:$E$58,2,FALSE)=0,\"\",VLOOKUP(AN204,'Footnotes list'!$D$9:$E$58,2,FALSE) ) )","v":""},null,null,null,null,{"$f":"IF(TRIM(AS204)=\"\", \"\", IF(VLOOKUP(AS204,'Footnotes list'!$D$9:$E$58,2,FALSE)=0,\"\",VLOOKUP(AS204,'Footnotes list'!$D$9:$E$58,2,FALSE) ) )","v":""},null,null,null,null,{"$f":"IF(TRIM(AX204)=\"\", \"\", IF(VLOOKUP(AX204,'Footnotes list'!$D$9:$E$58,2,FALSE)=0,\"\",VLOOKUP(AX204,'Footnotes list'!$D$9:$E$58,2,FALSE) ) )","v":""},null,null,null,null,{"$f":"IF(TRIM(BC204)=\"\", \"\", IF(VLOOKUP(BC204,'Footnotes list'!$D$9:$E$58,2,FALSE)=0,\"\",VLOOKUP(BC204,'Footnotes list'!$D$9:$E$58,2,FALSE) ) )","v":""},null,null,null,null,{"$f":"IF(TRIM(BH204)=\"\", \"\", IF(VLOOKUP(BH204,'Footnotes list'!$D$9:$E$58,2,FALSE)=0,\"\",VLOOKUP(BH204,'Footnotes list'!$D$9:$E$58,2,FALSE) ) )","v":""},null,null,null,null,{"$f":"IF(TRIM(BM204)=\"\", \"\", IF(VLOOKUP(BM204,'Footnotes list'!$D$9:$E$58,2,FALSE)=0,\"\",VLOOKUP(BM204,'Footnotes list'!$D$9:$E$58,2,FALSE) ) )","v":""},null,null,null,null,{"$f":"IF(TRIM(BR204)=\"\", \"\", IF(VLOOKUP(BR204,'Footnotes list'!$D$9:$E$58,2,FALSE)=0,\"\",VLOOKUP(BR204,'Footnotes list'!$D$9:$E$58,2,FALSE) ) )","v":""},null,null,null,null,{"$f":"IF(TRIM(BW204)=\"\", \"\", IF(VLOOKUP(BW204,'Footnotes list'!$D$9:$E$58,2,FALSE)=0,\"\",VLOOKUP(BW204,'Footnotes list'!$D$9:$E$58,2,FALSE) ) )","v":""},null,null,null,null,{"$f":"IF(TRIM(CB204)=\"\", \"\", IF(VLOOKUP(CB204,'Footnotes list'!$D$9:$E$58,2,FALSE)=0,\"\",VLOOKUP(CB204,'Footnotes list'!$D$9:$E$58,2,FALSE) ) )","v":""},null,null,null,null,{"$f":"IF(TRIM(CG204)=\"\", \"\", IF(VLOOKUP(CG204,'Footnotes list'!$D$9:$E$58,2,FALSE)=0,\"\",VLOOKUP(CG204,'Footnotes list'!$D$9:$E$58,2,FALSE) ) )","v":""},null,null,null,null,{"$f":"IF(TRIM(CL204)=\"\", \"\", IF(VLOOKUP(CL204,'Footnotes list'!$D$9:$E$58,2,FALSE)=0,\"\",VLOOKUP(CL204,'Footnotes list'!$D$9:$E$58,2,FALSE) ) )","v":""},null,null,null,null,{"$f":"IF(TRIM(CQ204)=\"\", \"\", IF(VLOOKUP(CQ204,'Footnotes list'!$D$9:$E$58,2,FALSE)=0,\"\",VLOOKUP(CQ204,'Footnotes list'!$D$9:$E$58,2,FALSE) ) )","v":""},null,null,null,null,{"$f":"IF(TRIM(CV204)=\"\", \"\", IF(VLOOKUP(CV204,'Footnotes list'!$D$9:$E$58,2,FALSE)=0,\"\",VLOOKUP(CV204,'Footnotes list'!$D$9:$E$58,2,FALSE) ) )","v":""},null,null,null,null,{"$f":"IF(TRIM(DA204)=\"\", \"\", IF(VLOOKUP(DA204,'Footnotes list'!$D$9:$E$58,2,FALSE)=0,\"\",VLOOKUP(DA204,'Footnotes list'!$D$9:$E$58,2,FALSE) ) )","v":""},null,null,null,null,{"$f":"IF(TRIM(DF204)=\"\", \"\", IF(VLOOKUP(DF204,'Footnotes list'!$D$9:$E$58,2,FALSE)=0,\"\",VLOOKUP(DF204,'Footnotes list'!$D$9:$E$58,2,FALSE) ) )","v":""},null,null,null,null,{"$f":"IF(TRIM(DK204)=\"\", \"\", IF(VLOOKUP(DK204,'Footnotes list'!$D$9:$E$58,2,FALSE)=0,\"\",VLOOKUP(DK204,'Footnotes list'!$D$9:$E$58,2,FALSE) ) )","v":""},null,null,null,null,{"$f":"IF(TRIM(DP204)=\"\", \"\", IF(VLOOKUP(DP204,'Footnotes list'!$D$9:$E$58,2,FALSE)=0,\"\",VLOOKUP(DP204,'Footnotes list'!$D$9:$E$58,2,FALSE) ) )","v":""},null,null,null,null,{"$f":"IF(TRIM(DU204)=\"\", \"\", IF(VLOOKUP(DU204,'Footnotes list'!$D$9:$E$58,2,FALSE)=0,\"\",VLOOKUP(DU204,'Footnotes list'!$D$9:$E$58,2,FALSE) ) )","v":""},null,null,null,null,{"$f":"IF(TRIM(DZ204)=\"\", \"\", IF(VLOOKUP(DZ204,'Footnotes list'!$D$9:$E$58,2,FALSE)=0,\"\",VLOOKUP(DZ204,'Footnotes list'!$D$9:$E$58,2,FALSE) ) )","v":""},null,null,null,null,{"$f":"IF(TRIM(EE204)=\"\", \"\", IF(VLOOKUP(EE204,'Footnotes list'!$D$9:$E$58,2,FALSE)=0,\"\",VLOOKUP(EE204,'Footnotes list'!$D$9:$E$58,2,FALSE) ) )","v":""},null,null,null,null,{"$f":"IF(TRIM(EJ204)=\"\", \"\", IF(VLOOKUP(EJ204,'Footnotes list'!$D$9:$E$58,2,FALSE)=0,\"\",VLOOKUP(EJ204,'Footnotes list'!$D$9:$E$58,2,FALSE) ) )","v":""},null,null,null,null,{"$f":"IF(TRIM(EO204)=\"\", \"\", IF(VLOOKUP(EO204,'Footnotes list'!$D$9:$E$58,2,FALSE)=0,\"\",VLOOKUP(EO204,'Footnotes list'!$D$9:$E$58,2,FALSE) ) )","v":""},null,null,null,null,{"$f":"IF(TRIM(ET204)=\"\", \"\", IF(VLOOKUP(ET204,'Footnotes list'!$D$9:$E$58,2,FALSE)=0,\"\",VLOOKUP(ET204,'Footnotes list'!$D$9:$E$58,2,FALSE) ) )","v":""},null,null,null,null,{"$f":"IF(TRIM(EY204)=\"\", \"\", IF(VLOOKUP(EY204,'Footnotes list'!$D$9:$E$58,2,FALSE)=0,\"\",VLOOKUP(EY204,'Footnotes list'!$D$9:$E$58,2,FALSE) ) )","v":""}]
[null,null,"K","ANC","ancillary activities",null,null,null,null,null,{"$f":"IF(TRIM(J205)=\"\", \"\", IF(VLOOKUP(J205,'Footnotes list'!$D$9:$E$58,2,FALSE)=0,\"\",VLOOKUP(J205,'Footnotes list'!$D$9:$E$58,2,FALSE) ) )","v":""},null,null,null,null,{"$f":"IF(TRIM(O205)=\"\", \"\", IF(VLOOKUP(O205,'Footnotes list'!$D$9:$E$58,2,FALSE)=0,\"\",VLOOKUP(O205,'Footnotes list'!$D$9:$E$58,2,FALSE) ) )","v":""},null,null,null,null,{"$f":"IF(TRIM(T205)=\"\", \"\", IF(VLOOKUP(T205,'Footnotes list'!$D$9:$E$58,2,FALSE)=0,\"\",VLOOKUP(T205,'Footnotes list'!$D$9:$E$58,2,FALSE) ) )","v":""},null,null,null,null,{"$f":"IF(TRIM(Y205)=\"\", \"\", IF(VLOOKUP(Y205,'Footnotes list'!$D$9:$E$58,2,FALSE)=0,\"\",VLOOKUP(Y205,'Footnotes list'!$D$9:$E$58,2,FALSE) ) )","v":""},null,null,null,null,{"$f":"IF(TRIM(AD205)=\"\", \"\", IF(VLOOKUP(AD205,'Footnotes list'!$D$9:$E$58,2,FALSE)=0,\"\",VLOOKUP(AD205,'Footnotes list'!$D$9:$E$58,2,FALSE) ) )","v":""},null,null,null,null,{"$f":"IF(TRIM(AI205)=\"\", \"\", IF(VLOOKUP(AI205,'Footnotes list'!$D$9:$E$58,2,FALSE)=0,\"\",VLOOKUP(AI205,'Footnotes list'!$D$9:$E$58,2,FALSE) ) )","v":""},null,null,null,null,{"$f":"IF(TRIM(AN205)=\"\", \"\", IF(VLOOKUP(AN205,'Footnotes list'!$D$9:$E$58,2,FALSE)=0,\"\",VLOOKUP(AN205,'Footnotes list'!$D$9:$E$58,2,FALSE) ) )","v":""},null,null,null,null,{"$f":"IF(TRIM(AS205)=\"\", \"\", IF(VLOOKUP(AS205,'Footnotes list'!$D$9:$E$58,2,FALSE)=0,\"\",VLOOKUP(AS205,'Footnotes list'!$D$9:$E$58,2,FALSE) ) )","v":""},null,null,null,null,{"$f":"IF(TRIM(AX205)=\"\", \"\", IF(VLOOKUP(AX205,'Footnotes list'!$D$9:$E$58,2,FALSE)=0,\"\",VLOOKUP(AX205,'Footnotes list'!$D$9:$E$58,2,FALSE) ) )","v":""},null,null,null,null,{"$f":"IF(TRIM(BC205)=\"\", \"\", IF(VLOOKUP(BC205,'Footnotes list'!$D$9:$E$58,2,FALSE)=0,\"\",VLOOKUP(BC205,'Footnotes list'!$D$9:$E$58,2,FALSE) ) )","v":""},null,null,null,null,{"$f":"IF(TRIM(BH205)=\"\", \"\", IF(VLOOKUP(BH205,'Footnotes list'!$D$9:$E$58,2,FALSE)=0,\"\",VLOOKUP(BH205,'Footnotes list'!$D$9:$E$58,2,FALSE) ) )","v":""},null,null,null,null,{"$f":"IF(TRIM(BM205)=\"\", \"\", IF(VLOOKUP(BM205,'Footnotes list'!$D$9:$E$58,2,FALSE)=0,\"\",VLOOKUP(BM205,'Footnotes list'!$D$9:$E$58,2,FALSE) ) )","v":""},null,null,null,null,{"$f":"IF(TRIM(BR205)=\"\", \"\", IF(VLOOKUP(BR205,'Footnotes list'!$D$9:$E$58,2,FALSE)=0,\"\",VLOOKUP(BR205,'Footnotes list'!$D$9:$E$58,2,FALSE) ) )","v":""},null,null,null,null,{"$f":"IF(TRIM(BW205)=\"\", \"\", IF(VLOOKUP(BW205,'Footnotes list'!$D$9:$E$58,2,FALSE)=0,\"\",VLOOKUP(BW205,'Footnotes list'!$D$9:$E$58,2,FALSE) ) )","v":""},null,null,null,null,{"$f":"IF(TRIM(CB205)=\"\", \"\", IF(VLOOKUP(CB205,'Footnotes list'!$D$9:$E$58,2,FALSE)=0,\"\",VLOOKUP(CB205,'Footnotes list'!$D$9:$E$58,2,FALSE) ) )","v":""},null,null,null,null,{"$f":"IF(TRIM(CG205)=\"\", \"\", IF(VLOOKUP(CG205,'Footnotes list'!$D$9:$E$58,2,FALSE)=0,\"\",VLOOKUP(CG205,'Footnotes list'!$D$9:$E$58,2,FALSE) ) )","v":""},null,null,null,null,{"$f":"IF(TRIM(CL205)=\"\", \"\", IF(VLOOKUP(CL205,'Footnotes list'!$D$9:$E$58,2,FALSE)=0,\"\",VLOOKUP(CL205,'Footnotes list'!$D$9:$E$58,2,FALSE) ) )","v":""},null,null,null,null,{"$f":"IF(TRIM(CQ205)=\"\", \"\", IF(VLOOKUP(CQ205,'Footnotes list'!$D$9:$E$58,2,FALSE)=0,\"\",VLOOKUP(CQ205,'Footnotes list'!$D$9:$E$58,2,FALSE) ) )","v":""},null,null,null,null,{"$f":"IF(TRIM(CV205)=\"\", \"\", IF(VLOOKUP(CV205,'Footnotes list'!$D$9:$E$58,2,FALSE)=0,\"\",VLOOKUP(CV205,'Footnotes list'!$D$9:$E$58,2,FALSE) ) )","v":""},null,null,null,null,{"$f":"IF(TRIM(DA205)=\"\", \"\", IF(VLOOKUP(DA205,'Footnotes list'!$D$9:$E$58,2,FALSE)=0,\"\",VLOOKUP(DA205,'Footnotes list'!$D$9:$E$58,2,FALSE) ) )","v":""},null,null,null,null,{"$f":"IF(TRIM(DF205)=\"\", \"\", IF(VLOOKUP(DF205,'Footnotes list'!$D$9:$E$58,2,FALSE)=0,\"\",VLOOKUP(DF205,'Footnotes list'!$D$9:$E$58,2,FALSE) ) )","v":""},null,null,null,null,{"$f":"IF(TRIM(DK205)=\"\", \"\", IF(VLOOKUP(DK205,'Footnotes list'!$D$9:$E$58,2,FALSE)=0,\"\",VLOOKUP(DK205,'Footnotes list'!$D$9:$E$58,2,FALSE) ) )","v":""},null,null,null,null,{"$f":"IF(TRIM(DP205)=\"\", \"\", IF(VLOOKUP(DP205,'Footnotes list'!$D$9:$E$58,2,FALSE)=0,\"\",VLOOKUP(DP205,'Footnotes list'!$D$9:$E$58,2,FALSE) ) )","v":""},null,null,null,null,{"$f":"IF(TRIM(DU205)=\"\", \"\", IF(VLOOKUP(DU205,'Footnotes list'!$D$9:$E$58,2,FALSE)=0,\"\",VLOOKUP(DU205,'Footnotes list'!$D$9:$E$58,2,FALSE) ) )","v":""},null,null,null,null,{"$f":"IF(TRIM(DZ205)=\"\", \"\", IF(VLOOKUP(DZ205,'Footnotes list'!$D$9:$E$58,2,FALSE)=0,\"\",VLOOKUP(DZ205,'Footnotes list'!$D$9:$E$58,2,FALSE) ) )","v":""},null,null,null,null,{"$f":"IF(TRIM(EE205)=\"\", \"\", IF(VLOOKUP(EE205,'Footnotes list'!$D$9:$E$58,2,FALSE)=0,\"\",VLOOKUP(EE205,'Footnotes list'!$D$9:$E$58,2,FALSE) ) )","v":""},null,null,null,null,{"$f":"IF(TRIM(EJ205)=\"\", \"\", IF(VLOOKUP(EJ205,'Footnotes list'!$D$9:$E$58,2,FALSE)=0,\"\",VLOOKUP(EJ205,'Footnotes list'!$D$9:$E$58,2,FALSE) ) )","v":""},null,null,null,null,{"$f":"IF(TRIM(EO205)=\"\", \"\", IF(VLOOKUP(EO205,'Footnotes list'!$D$9:$E$58,2,FALSE)=0,\"\",VLOOKUP(EO205,'Footnotes list'!$D$9:$E$58,2,FALSE) ) )","v":""},null,null,null,null,{"$f":"IF(TRIM(ET205)=\"\", \"\", IF(VLOOKUP(ET205,'Footnotes list'!$D$9:$E$58,2,FALSE)=0,\"\",VLOOKUP(ET205,'Footnotes list'!$D$9:$E$58,2,FALSE) ) )","v":""},null,null,null,null,{"$f":"IF(TRIM(EY205)=\"\", \"\", IF(VLOOKUP(EY205,'Footnotes list'!$D$9:$E$58,2,FALSE)=0,\"\",VLOOKUP(EY205,'Footnotes list'!$D$9:$E$58,2,FALSE) ) )","v":""}]
[null,null,"K","NMKT","non-market activities",null,null,null,null,null,{"$f":"IF(TRIM(J206)=\"\", \"\", IF(VLOOKUP(J206,'Footnotes list'!$D$9:$E$58,2,FALSE)=0,\"\",VLOOKUP(J206,'Footnotes list'!$D$9:$E$58,2,FALSE) ) )","v":""},null,null,null,null,{"$f":"IF(TRIM(O206)=\"\", \"\", IF(VLOOKUP(O206,'Footnotes list'!$D$9:$E$58,2,FALSE)=0,\"\",VLOOKUP(O206,'Footnotes list'!$D$9:$E$58,2,FALSE) ) )","v":""},null,null,null,null,{"$f":"IF(TRIM(T206)=\"\", \"\", IF(VLOOKUP(T206,'Footnotes list'!$D$9:$E$58,2,FALSE)=0,\"\",VLOOKUP(T206,'Footnotes list'!$D$9:$E$58,2,FALSE) ) )","v":""},null,null,null,null,{"$f":"IF(TRIM(Y206)=\"\", \"\", IF(VLOOKUP(Y206,'Footnotes list'!$D$9:$E$58,2,FALSE)=0,\"\",VLOOKUP(Y206,'Footnotes list'!$D$9:$E$58,2,FALSE) ) )","v":""},null,null,null,null,{"$f":"IF(TRIM(AD206)=\"\", \"\", IF(VLOOKUP(AD206,'Footnotes list'!$D$9:$E$58,2,FALSE)=0,\"\",VLOOKUP(AD206,'Footnotes list'!$D$9:$E$58,2,FALSE) ) )","v":""},null,null,null,null,{"$f":"IF(TRIM(AI206)=\"\", \"\", IF(VLOOKUP(AI206,'Footnotes list'!$D$9:$E$58,2,FALSE)=0,\"\",VLOOKUP(AI206,'Footnotes list'!$D$9:$E$58,2,FALSE) ) )","v":""},null,null,null,null,{"$f":"IF(TRIM(AN206)=\"\", \"\", IF(VLOOKUP(AN206,'Footnotes list'!$D$9:$E$58,2,FALSE)=0,\"\",VLOOKUP(AN206,'Footnotes list'!$D$9:$E$58,2,FALSE) ) )","v":""},null,null,null,null,{"$f":"IF(TRIM(AS206)=\"\", \"\", IF(VLOOKUP(AS206,'Footnotes list'!$D$9:$E$58,2,FALSE)=0,\"\",VLOOKUP(AS206,'Footnotes list'!$D$9:$E$58,2,FALSE) ) )","v":""},null,null,null,null,{"$f":"IF(TRIM(AX206)=\"\", \"\", IF(VLOOKUP(AX206,'Footnotes list'!$D$9:$E$58,2,FALSE)=0,\"\",VLOOKUP(AX206,'Footnotes list'!$D$9:$E$58,2,FALSE) ) )","v":""},null,null,null,null,{"$f":"IF(TRIM(BC206)=\"\", \"\", IF(VLOOKUP(BC206,'Footnotes list'!$D$9:$E$58,2,FALSE)=0,\"\",VLOOKUP(BC206,'Footnotes list'!$D$9:$E$58,2,FALSE) ) )","v":""},null,null,null,null,{"$f":"IF(TRIM(BH206)=\"\", \"\", IF(VLOOKUP(BH206,'Footnotes list'!$D$9:$E$58,2,FALSE)=0,\"\",VLOOKUP(BH206,'Footnotes list'!$D$9:$E$58,2,FALSE) ) )","v":""},null,null,null,null,{"$f":"IF(TRIM(BM206)=\"\", \"\", IF(VLOOKUP(BM206,'Footnotes list'!$D$9:$E$58,2,FALSE)=0,\"\",VLOOKUP(BM206,'Footnotes list'!$D$9:$E$58,2,FALSE) ) )","v":""},null,null,null,null,{"$f":"IF(TRIM(BR206)=\"\", \"\", IF(VLOOKUP(BR206,'Footnotes list'!$D$9:$E$58,2,FALSE)=0,\"\",VLOOKUP(BR206,'Footnotes list'!$D$9:$E$58,2,FALSE) ) )","v":""},null,null,null,null,{"$f":"IF(TRIM(BW206)=\"\", \"\", IF(VLOOKUP(BW206,'Footnotes list'!$D$9:$E$58,2,FALSE)=0,\"\",VLOOKUP(BW206,'Footnotes list'!$D$9:$E$58,2,FALSE) ) )","v":""},null,null,null,null,{"$f":"IF(TRIM(CB206)=\"\", \"\", IF(VLOOKUP(CB206,'Footnotes list'!$D$9:$E$58,2,FALSE)=0,\"\",VLOOKUP(CB206,'Footnotes list'!$D$9:$E$58,2,FALSE) ) )","v":""},null,null,null,null,{"$f":"IF(TRIM(CG206)=\"\", \"\", IF(VLOOKUP(CG206,'Footnotes list'!$D$9:$E$58,2,FALSE)=0,\"\",VLOOKUP(CG206,'Footnotes list'!$D$9:$E$58,2,FALSE) ) )","v":""},null,null,null,null,{"$f":"IF(TRIM(CL206)=\"\", \"\", IF(VLOOKUP(CL206,'Footnotes list'!$D$9:$E$58,2,FALSE)=0,\"\",VLOOKUP(CL206,'Footnotes list'!$D$9:$E$58,2,FALSE) ) )","v":""},null,null,null,null,{"$f":"IF(TRIM(CQ206)=\"\", \"\", IF(VLOOKUP(CQ206,'Footnotes list'!$D$9:$E$58,2,FALSE)=0,\"\",VLOOKUP(CQ206,'Footnotes list'!$D$9:$E$58,2,FALSE) ) )","v":""},null,null,null,null,{"$f":"IF(TRIM(CV206)=\"\", \"\", IF(VLOOKUP(CV206,'Footnotes list'!$D$9:$E$58,2,FALSE)=0,\"\",VLOOKUP(CV206,'Footnotes list'!$D$9:$E$58,2,FALSE) ) )","v":""},null,null,null,null,{"$f":"IF(TRIM(DA206)=\"\", \"\", IF(VLOOKUP(DA206,'Footnotes list'!$D$9:$E$58,2,FALSE)=0,\"\",VLOOKUP(DA206,'Footnotes list'!$D$9:$E$58,2,FALSE) ) )","v":""},null,null,null,null,{"$f":"IF(TRIM(DF206)=\"\", \"\", IF(VLOOKUP(DF206,'Footnotes list'!$D$9:$E$58,2,FALSE)=0,\"\",VLOOKUP(DF206,'Footnotes list'!$D$9:$E$58,2,FALSE) ) )","v":""},null,null,null,null,{"$f":"IF(TRIM(DK206)=\"\", \"\", IF(VLOOKUP(DK206,'Footnotes list'!$D$9:$E$58,2,FALSE)=0,\"\",VLOOKUP(DK206,'Footnotes list'!$D$9:$E$58,2,FALSE) ) )","v":""},null,null,null,null,{"$f":"IF(TRIM(DP206)=\"\", \"\", IF(VLOOKUP(DP206,'Footnotes list'!$D$9:$E$58,2,FALSE)=0,\"\",VLOOKUP(DP206,'Footnotes list'!$D$9:$E$58,2,FALSE) ) )","v":""},null,null,null,null,{"$f":"IF(TRIM(DU206)=\"\", \"\", IF(VLOOKUP(DU206,'Footnotes list'!$D$9:$E$58,2,FALSE)=0,\"\",VLOOKUP(DU206,'Footnotes list'!$D$9:$E$58,2,FALSE) ) )","v":""},null,null,null,null,{"$f":"IF(TRIM(DZ206)=\"\", \"\", IF(VLOOKUP(DZ206,'Footnotes list'!$D$9:$E$58,2,FALSE)=0,\"\",VLOOKUP(DZ206,'Footnotes list'!$D$9:$E$58,2,FALSE) ) )","v":""},null,null,null,null,{"$f":"IF(TRIM(EE206)=\"\", \"\", IF(VLOOKUP(EE206,'Footnotes list'!$D$9:$E$58,2,FALSE)=0,\"\",VLOOKUP(EE206,'Footnotes list'!$D$9:$E$58,2,FALSE) ) )","v":""},null,null,null,null,{"$f":"IF(TRIM(EJ206)=\"\", \"\", IF(VLOOKUP(EJ206,'Footnotes list'!$D$9:$E$58,2,FALSE)=0,\"\",VLOOKUP(EJ206,'Footnotes list'!$D$9:$E$58,2,FALSE) ) )","v":""},null,null,null,null,{"$f":"IF(TRIM(EO206)=\"\", \"\", IF(VLOOKUP(EO206,'Footnotes list'!$D$9:$E$58,2,FALSE)=0,\"\",VLOOKUP(EO206,'Footnotes list'!$D$9:$E$58,2,FALSE) ) )","v":""},null,null,null,null,{"$f":"IF(TRIM(ET206)=\"\", \"\", IF(VLOOKUP(ET206,'Footnotes list'!$D$9:$E$58,2,FALSE)=0,\"\",VLOOKUP(ET206,'Footnotes list'!$D$9:$E$58,2,FALSE) ) )","v":""},null,null,null,null,{"$f":"IF(TRIM(EY206)=\"\", \"\", IF(VLOOKUP(EY206,'Footnotes list'!$D$9:$E$58,2,FALSE)=0,\"\",VLOOKUP(EY206,'Footnotes list'!$D$9:$E$58,2,FALSE) ) )","v":""}]
[null,null,"K","OWN_USE","activities for own final use",null,null,null,null,null,{"$f":"IF(TRIM(J207)=\"\", \"\", IF(VLOOKUP(J207,'Footnotes list'!$D$9:$E$58,2,FALSE)=0,\"\",VLOOKUP(J207,'Footnotes list'!$D$9:$E$58,2,FALSE) ) )","v":""},null,null,null,null,{"$f":"IF(TRIM(O207)=\"\", \"\", IF(VLOOKUP(O207,'Footnotes list'!$D$9:$E$58,2,FALSE)=0,\"\",VLOOKUP(O207,'Footnotes list'!$D$9:$E$58,2,FALSE) ) )","v":""},null,null,null,null,{"$f":"IF(TRIM(T207)=\"\", \"\", IF(VLOOKUP(T207,'Footnotes list'!$D$9:$E$58,2,FALSE)=0,\"\",VLOOKUP(T207,'Footnotes list'!$D$9:$E$58,2,FALSE) ) )","v":""},null,null,null,null,{"$f":"IF(TRIM(Y207)=\"\", \"\", IF(VLOOKUP(Y207,'Footnotes list'!$D$9:$E$58,2,FALSE)=0,\"\",VLOOKUP(Y207,'Footnotes list'!$D$9:$E$58,2,FALSE) ) )","v":""},null,null,null,null,{"$f":"IF(TRIM(AD207)=\"\", \"\", IF(VLOOKUP(AD207,'Footnotes list'!$D$9:$E$58,2,FALSE)=0,\"\",VLOOKUP(AD207,'Footnotes list'!$D$9:$E$58,2,FALSE) ) )","v":""},null,null,null,null,{"$f":"IF(TRIM(AI207)=\"\", \"\", IF(VLOOKUP(AI207,'Footnotes list'!$D$9:$E$58,2,FALSE)=0,\"\",VLOOKUP(AI207,'Footnotes list'!$D$9:$E$58,2,FALSE) ) )","v":""},null,null,null,null,{"$f":"IF(TRIM(AN207)=\"\", \"\", IF(VLOOKUP(AN207,'Footnotes list'!$D$9:$E$58,2,FALSE)=0,\"\",VLOOKUP(AN207,'Footnotes list'!$D$9:$E$58,2,FALSE) ) )","v":""},null,null,null,null,{"$f":"IF(TRIM(AS207)=\"\", \"\", IF(VLOOKUP(AS207,'Footnotes list'!$D$9:$E$58,2,FALSE)=0,\"\",VLOOKUP(AS207,'Footnotes list'!$D$9:$E$58,2,FALSE) ) )","v":""},null,null,null,null,{"$f":"IF(TRIM(AX207)=\"\", \"\", IF(VLOOKUP(AX207,'Footnotes list'!$D$9:$E$58,2,FALSE)=0,\"\",VLOOKUP(AX207,'Footnotes list'!$D$9:$E$58,2,FALSE) ) )","v":""},null,null,null,null,{"$f":"IF(TRIM(BC207)=\"\", \"\", IF(VLOOKUP(BC207,'Footnotes list'!$D$9:$E$58,2,FALSE)=0,\"\",VLOOKUP(BC207,'Footnotes list'!$D$9:$E$58,2,FALSE) ) )","v":""},null,null,null,null,{"$f":"IF(TRIM(BH207)=\"\", \"\", IF(VLOOKUP(BH207,'Footnotes list'!$D$9:$E$58,2,FALSE)=0,\"\",VLOOKUP(BH207,'Footnotes list'!$D$9:$E$58,2,FALSE) ) )","v":""},null,null,null,null,{"$f":"IF(TRIM(BM207)=\"\", \"\", IF(VLOOKUP(BM207,'Footnotes list'!$D$9:$E$58,2,FALSE)=0,\"\",VLOOKUP(BM207,'Footnotes list'!$D$9:$E$58,2,FALSE) ) )","v":""},null,null,null,null,{"$f":"IF(TRIM(BR207)=\"\", \"\", IF(VLOOKUP(BR207,'Footnotes list'!$D$9:$E$58,2,FALSE)=0,\"\",VLOOKUP(BR207,'Footnotes list'!$D$9:$E$58,2,FALSE) ) )","v":""},null,null,null,null,{"$f":"IF(TRIM(BW207)=\"\", \"\", IF(VLOOKUP(BW207,'Footnotes list'!$D$9:$E$58,2,FALSE)=0,\"\",VLOOKUP(BW207,'Footnotes list'!$D$9:$E$58,2,FALSE) ) )","v":""},null,null,null,null,{"$f":"IF(TRIM(CB207)=\"\", \"\", IF(VLOOKUP(CB207,'Footnotes list'!$D$9:$E$58,2,FALSE)=0,\"\",VLOOKUP(CB207,'Footnotes list'!$D$9:$E$58,2,FALSE) ) )","v":""},null,null,null,null,{"$f":"IF(TRIM(CG207)=\"\", \"\", IF(VLOOKUP(CG207,'Footnotes list'!$D$9:$E$58,2,FALSE)=0,\"\",VLOOKUP(CG207,'Footnotes list'!$D$9:$E$58,2,FALSE) ) )","v":""},null,null,null,null,{"$f":"IF(TRIM(CL207)=\"\", \"\", IF(VLOOKUP(CL207,'Footnotes list'!$D$9:$E$58,2,FALSE)=0,\"\",VLOOKUP(CL207,'Footnotes list'!$D$9:$E$58,2,FALSE) ) )","v":""},null,null,null,null,{"$f":"IF(TRIM(CQ207)=\"\", \"\", IF(VLOOKUP(CQ207,'Footnotes list'!$D$9:$E$58,2,FALSE)=0,\"\",VLOOKUP(CQ207,'Footnotes list'!$D$9:$E$58,2,FALSE) ) )","v":""},null,null,null,null,{"$f":"IF(TRIM(CV207)=\"\", \"\", IF(VLOOKUP(CV207,'Footnotes list'!$D$9:$E$58,2,FALSE)=0,\"\",VLOOKUP(CV207,'Footnotes list'!$D$9:$E$58,2,FALSE) ) )","v":""},null,null,null,null,{"$f":"IF(TRIM(DA207)=\"\", \"\", IF(VLOOKUP(DA207,'Footnotes list'!$D$9:$E$58,2,FALSE)=0,\"\",VLOOKUP(DA207,'Footnotes list'!$D$9:$E$58,2,FALSE) ) )","v":""},null,null,null,null,{"$f":"IF(TRIM(DF207)=\"\", \"\", IF(VLOOKUP(DF207,'Footnotes list'!$D$9:$E$58,2,FALSE)=0,\"\",VLOOKUP(DF207,'Footnotes list'!$D$9:$E$58,2,FALSE) ) )","v":""},null,null,null,null,{"$f":"IF(TRIM(DK207)=\"\", \"\", IF(VLOOKUP(DK207,'Footnotes list'!$D$9:$E$58,2,FALSE)=0,\"\",VLOOKUP(DK207,'Footnotes list'!$D$9:$E$58,2,FALSE) ) )","v":""},null,null,null,null,{"$f":"IF(TRIM(DP207)=\"\", \"\", IF(VLOOKUP(DP207,'Footnotes list'!$D$9:$E$58,2,FALSE)=0,\"\",VLOOKUP(DP207,'Footnotes list'!$D$9:$E$58,2,FALSE) ) )","v":""},null,null,null,null,{"$f":"IF(TRIM(DU207)=\"\", \"\", IF(VLOOKUP(DU207,'Footnotes list'!$D$9:$E$58,2,FALSE)=0,\"\",VLOOKUP(DU207,'Footnotes list'!$D$9:$E$58,2,FALSE) ) )","v":""},null,null,null,null,{"$f":"IF(TRIM(DZ207)=\"\", \"\", IF(VLOOKUP(DZ207,'Footnotes list'!$D$9:$E$58,2,FALSE)=0,\"\",VLOOKUP(DZ207,'Footnotes list'!$D$9:$E$58,2,FALSE) ) )","v":""},null,null,null,null,{"$f":"IF(TRIM(EE207)=\"\", \"\", IF(VLOOKUP(EE207,'Footnotes list'!$D$9:$E$58,2,FALSE)=0,\"\",VLOOKUP(EE207,'Footnotes list'!$D$9:$E$58,2,FALSE) ) )","v":""},null,null,null,null,{"$f":"IF(TRIM(EJ207)=\"\", \"\", IF(VLOOKUP(EJ207,'Footnotes list'!$D$9:$E$58,2,FALSE)=0,\"\",VLOOKUP(EJ207,'Footnotes list'!$D$9:$E$58,2,FALSE) ) )","v":""},null,null,null,null,{"$f":"IF(TRIM(EO207)=\"\", \"\", IF(VLOOKUP(EO207,'Footnotes list'!$D$9:$E$58,2,FALSE)=0,\"\",VLOOKUP(EO207,'Footnotes list'!$D$9:$E$58,2,FALSE) ) )","v":""},null,null,null,null,{"$f":"IF(TRIM(ET207)=\"\", \"\", IF(VLOOKUP(ET207,'Footnotes list'!$D$9:$E$58,2,FALSE)=0,\"\",VLOOKUP(ET207,'Footnotes list'!$D$9:$E$58,2,FALSE) ) )","v":""},null,null,null,null,{"$f":"IF(TRIM(EY207)=\"\", \"\", IF(VLOOKUP(EY207,'Footnotes list'!$D$9:$E$58,2,FALSE)=0,\"\",VLOOKUP(EY207,'Footnotes list'!$D$9:$E$58,2,FALSE) ) )","v":""}]
[null,null,"K","MKT","market activities, including:",null,null,null,null,null,{"$f":"IF(TRIM(J208)=\"\", \"\", IF(VLOOKUP(J208,'Footnotes list'!$D$9:$E$58,2,FALSE)=0,\"\",VLOOKUP(J208,'Footnotes list'!$D$9:$E$58,2,FALSE) ) )","v":""},null,null,null,null,{"$f":"IF(TRIM(O208)=\"\", \"\", IF(VLOOKUP(O208,'Footnotes list'!$D$9:$E$58,2,FALSE)=0,\"\",VLOOKUP(O208,'Footnotes list'!$D$9:$E$58,2,FALSE) ) )","v":""},null,null,null,null,{"$f":"IF(TRIM(T208)=\"\", \"\", IF(VLOOKUP(T208,'Footnotes list'!$D$9:$E$58,2,FALSE)=0,\"\",VLOOKUP(T208,'Footnotes list'!$D$9:$E$58,2,FALSE) ) )","v":""},null,null,null,null,{"$f":"IF(TRIM(Y208)=\"\", \"\", IF(VLOOKUP(Y208,'Footnotes list'!$D$9:$E$58,2,FALSE)=0,\"\",VLOOKUP(Y208,'Footnotes list'!$D$9:$E$58,2,FALSE) ) )","v":""},null,null,null,null,{"$f":"IF(TRIM(AD208)=\"\", \"\", IF(VLOOKUP(AD208,'Footnotes list'!$D$9:$E$58,2,FALSE)=0,\"\",VLOOKUP(AD208,'Footnotes list'!$D$9:$E$58,2,FALSE) ) )","v":""},null,null,null,null,{"$f":"IF(TRIM(AI208)=\"\", \"\", IF(VLOOKUP(AI208,'Footnotes list'!$D$9:$E$58,2,FALSE)=0,\"\",VLOOKUP(AI208,'Footnotes list'!$D$9:$E$58,2,FALSE) ) )","v":""},null,null,null,null,{"$f":"IF(TRIM(AN208)=\"\", \"\", IF(VLOOKUP(AN208,'Footnotes list'!$D$9:$E$58,2,FALSE)=0,\"\",VLOOKUP(AN208,'Footnotes list'!$D$9:$E$58,2,FALSE) ) )","v":""},null,null,null,null,{"$f":"IF(TRIM(AS208)=\"\", \"\", IF(VLOOKUP(AS208,'Footnotes list'!$D$9:$E$58,2,FALSE)=0,\"\",VLOOKUP(AS208,'Footnotes list'!$D$9:$E$58,2,FALSE) ) )","v":""},null,null,null,null,{"$f":"IF(TRIM(AX208)=\"\", \"\", IF(VLOOKUP(AX208,'Footnotes list'!$D$9:$E$58,2,FALSE)=0,\"\",VLOOKUP(AX208,'Footnotes list'!$D$9:$E$58,2,FALSE) ) )","v":""},null,null,null,null,{"$f":"IF(TRIM(BC208)=\"\", \"\", IF(VLOOKUP(BC208,'Footnotes list'!$D$9:$E$58,2,FALSE)=0,\"\",VLOOKUP(BC208,'Footnotes list'!$D$9:$E$58,2,FALSE) ) )","v":""},null,null,null,null,{"$f":"IF(TRIM(BH208)=\"\", \"\", IF(VLOOKUP(BH208,'Footnotes list'!$D$9:$E$58,2,FALSE)=0,\"\",VLOOKUP(BH208,'Footnotes list'!$D$9:$E$58,2,FALSE) ) )","v":""},null,null,null,null,{"$f":"IF(TRIM(BM208)=\"\", \"\", IF(VLOOKUP(BM208,'Footnotes list'!$D$9:$E$58,2,FALSE)=0,\"\",VLOOKUP(BM208,'Footnotes list'!$D$9:$E$58,2,FALSE) ) )","v":""},null,null,null,null,{"$f":"IF(TRIM(BR208)=\"\", \"\", IF(VLOOKUP(BR208,'Footnotes list'!$D$9:$E$58,2,FALSE)=0,\"\",VLOOKUP(BR208,'Footnotes list'!$D$9:$E$58,2,FALSE) ) )","v":""},null,null,null,null,{"$f":"IF(TRIM(BW208)=\"\", \"\", IF(VLOOKUP(BW208,'Footnotes list'!$D$9:$E$58,2,FALSE)=0,\"\",VLOOKUP(BW208,'Footnotes list'!$D$9:$E$58,2,FALSE) ) )","v":""},null,null,null,null,{"$f":"IF(TRIM(CB208)=\"\", \"\", IF(VLOOKUP(CB208,'Footnotes list'!$D$9:$E$58,2,FALSE)=0,\"\",VLOOKUP(CB208,'Footnotes list'!$D$9:$E$58,2,FALSE) ) )","v":""},null,null,null,null,{"$f":"IF(TRIM(CG208)=\"\", \"\", IF(VLOOKUP(CG208,'Footnotes list'!$D$9:$E$58,2,FALSE)=0,\"\",VLOOKUP(CG208,'Footnotes list'!$D$9:$E$58,2,FALSE) ) )","v":""},null,null,null,null,{"$f":"IF(TRIM(CL208)=\"\", \"\", IF(VLOOKUP(CL208,'Footnotes list'!$D$9:$E$58,2,FALSE)=0,\"\",VLOOKUP(CL208,'Footnotes list'!$D$9:$E$58,2,FALSE) ) )","v":""},null,null,null,null,{"$f":"IF(TRIM(CQ208)=\"\", \"\", IF(VLOOKUP(CQ208,'Footnotes list'!$D$9:$E$58,2,FALSE)=0,\"\",VLOOKUP(CQ208,'Footnotes list'!$D$9:$E$58,2,FALSE) ) )","v":""},null,null,null,null,{"$f":"IF(TRIM(CV208)=\"\", \"\", IF(VLOOKUP(CV208,'Footnotes list'!$D$9:$E$58,2,FALSE)=0,\"\",VLOOKUP(CV208,'Footnotes list'!$D$9:$E$58,2,FALSE) ) )","v":""},null,null,null,null,{"$f":"IF(TRIM(DA208)=\"\", \"\", IF(VLOOKUP(DA208,'Footnotes list'!$D$9:$E$58,2,FALSE)=0,\"\",VLOOKUP(DA208,'Footnotes list'!$D$9:$E$58,2,FALSE) ) )","v":""},null,null,null,null,{"$f":"IF(TRIM(DF208)=\"\", \"\", IF(VLOOKUP(DF208,'Footnotes list'!$D$9:$E$58,2,FALSE)=0,\"\",VLOOKUP(DF208,'Footnotes list'!$D$9:$E$58,2,FALSE) ) )","v":""},null,null,null,null,{"$f":"IF(TRIM(DK208)=\"\", \"\", IF(VLOOKUP(DK208,'Footnotes list'!$D$9:$E$58,2,FALSE)=0,\"\",VLOOKUP(DK208,'Footnotes list'!$D$9:$E$58,2,FALSE) ) )","v":""},null,null,null,null,{"$f":"IF(TRIM(DP208)=\"\", \"\", IF(VLOOKUP(DP208,'Footnotes list'!$D$9:$E$58,2,FALSE)=0,\"\",VLOOKUP(DP208,'Footnotes list'!$D$9:$E$58,2,FALSE) ) )","v":""},null,null,null,null,{"$f":"IF(TRIM(DU208)=\"\", \"\", IF(VLOOKUP(DU208,'Footnotes list'!$D$9:$E$58,2,FALSE)=0,\"\",VLOOKUP(DU208,'Footnotes list'!$D$9:$E$58,2,FALSE) ) )","v":""},null,null,null,null,{"$f":"IF(TRIM(DZ208)=\"\", \"\", IF(VLOOKUP(DZ208,'Footnotes list'!$D$9:$E$58,2,FALSE)=0,\"\",VLOOKUP(DZ208,'Footnotes list'!$D$9:$E$58,2,FALSE) ) )","v":""},null,null,null,null,{"$f":"IF(TRIM(EE208)=\"\", \"\", IF(VLOOKUP(EE208,'Footnotes list'!$D$9:$E$58,2,FALSE)=0,\"\",VLOOKUP(EE208,'Footnotes list'!$D$9:$E$58,2,FALSE) ) )","v":""},null,null,null,null,{"$f":"IF(TRIM(EJ208)=\"\", \"\", IF(VLOOKUP(EJ208,'Footnotes list'!$D$9:$E$58,2,FALSE)=0,\"\",VLOOKUP(EJ208,'Footnotes list'!$D$9:$E$58,2,FALSE) ) )","v":""},null,null,null,null,{"$f":"IF(TRIM(EO208)=\"\", \"\", IF(VLOOKUP(EO208,'Footnotes list'!$D$9:$E$58,2,FALSE)=0,\"\",VLOOKUP(EO208,'Footnotes list'!$D$9:$E$58,2,FALSE) ) )","v":""},null,null,null,null,{"$f":"IF(TRIM(ET208)=\"\", \"\", IF(VLOOKUP(ET208,'Footnotes list'!$D$9:$E$58,2,FALSE)=0,\"\",VLOOKUP(ET208,'Footnotes list'!$D$9:$E$58,2,FALSE) ) )","v":""},null,null,null,null,{"$f":"IF(TRIM(EY208)=\"\", \"\", IF(VLOOKUP(EY208,'Footnotes list'!$D$9:$E$58,2,FALSE)=0,\"\",VLOOKUP(EY208,'Footnotes list'!$D$9:$E$58,2,FALSE) ) )","v":""}]
[null,null,"K","ES_CS","environmental specific services",null,null,null,null,null,{"$f":"IF(TRIM(J209)=\"\", \"\", IF(VLOOKUP(J209,'Footnotes list'!$D$9:$E$58,2,FALSE)=0,\"\",VLOOKUP(J209,'Footnotes list'!$D$9:$E$58,2,FALSE) ) )","v":""},null,null,null,null,{"$f":"IF(TRIM(O209)=\"\", \"\", IF(VLOOKUP(O209,'Footnotes list'!$D$9:$E$58,2,FALSE)=0,\"\",VLOOKUP(O209,'Footnotes list'!$D$9:$E$58,2,FALSE) ) )","v":""},null,null,null,null,{"$f":"IF(TRIM(T209)=\"\", \"\", IF(VLOOKUP(T209,'Footnotes list'!$D$9:$E$58,2,FALSE)=0,\"\",VLOOKUP(T209,'Footnotes list'!$D$9:$E$58,2,FALSE) ) )","v":""},null,null,null,null,{"$f":"IF(TRIM(Y209)=\"\", \"\", IF(VLOOKUP(Y209,'Footnotes list'!$D$9:$E$58,2,FALSE)=0,\"\",VLOOKUP(Y209,'Footnotes list'!$D$9:$E$58,2,FALSE) ) )","v":""},null,null,null,null,{"$f":"IF(TRIM(AD209)=\"\", \"\", IF(VLOOKUP(AD209,'Footnotes list'!$D$9:$E$58,2,FALSE)=0,\"\",VLOOKUP(AD209,'Footnotes list'!$D$9:$E$58,2,FALSE) ) )","v":""},null,null,null,null,{"$f":"IF(TRIM(AI209)=\"\", \"\", IF(VLOOKUP(AI209,'Footnotes list'!$D$9:$E$58,2,FALSE)=0,\"\",VLOOKUP(AI209,'Footnotes list'!$D$9:$E$58,2,FALSE) ) )","v":""},null,null,null,null,{"$f":"IF(TRIM(AN209)=\"\", \"\", IF(VLOOKUP(AN209,'Footnotes list'!$D$9:$E$58,2,FALSE)=0,\"\",VLOOKUP(AN209,'Footnotes list'!$D$9:$E$58,2,FALSE) ) )","v":""},null,null,null,null,{"$f":"IF(TRIM(AS209)=\"\", \"\", IF(VLOOKUP(AS209,'Footnotes list'!$D$9:$E$58,2,FALSE)=0,\"\",VLOOKUP(AS209,'Footnotes list'!$D$9:$E$58,2,FALSE) ) )","v":""},null,null,null,null,{"$f":"IF(TRIM(AX209)=\"\", \"\", IF(VLOOKUP(AX209,'Footnotes list'!$D$9:$E$58,2,FALSE)=0,\"\",VLOOKUP(AX209,'Footnotes list'!$D$9:$E$58,2,FALSE) ) )","v":""},null,null,null,null,{"$f":"IF(TRIM(BC209)=\"\", \"\", IF(VLOOKUP(BC209,'Footnotes list'!$D$9:$E$58,2,FALSE)=0,\"\",VLOOKUP(BC209,'Footnotes list'!$D$9:$E$58,2,FALSE) ) )","v":""},null,null,null,null,{"$f":"IF(TRIM(BH209)=\"\", \"\", IF(VLOOKUP(BH209,'Footnotes list'!$D$9:$E$58,2,FALSE)=0,\"\",VLOOKUP(BH209,'Footnotes list'!$D$9:$E$58,2,FALSE) ) )","v":""},null,null,null,null,{"$f":"IF(TRIM(BM209)=\"\", \"\", IF(VLOOKUP(BM209,'Footnotes list'!$D$9:$E$58,2,FALSE)=0,\"\",VLOOKUP(BM209,'Footnotes list'!$D$9:$E$58,2,FALSE) ) )","v":""},null,null,null,null,{"$f":"IF(TRIM(BR209)=\"\", \"\", IF(VLOOKUP(BR209,'Footnotes list'!$D$9:$E$58,2,FALSE)=0,\"\",VLOOKUP(BR209,'Footnotes list'!$D$9:$E$58,2,FALSE) ) )","v":""},null,null,null,null,{"$f":"IF(TRIM(BW209)=\"\", \"\", IF(VLOOKUP(BW209,'Footnotes list'!$D$9:$E$58,2,FALSE)=0,\"\",VLOOKUP(BW209,'Footnotes list'!$D$9:$E$58,2,FALSE) ) )","v":""},null,null,null,null,{"$f":"IF(TRIM(CB209)=\"\", \"\", IF(VLOOKUP(CB209,'Footnotes list'!$D$9:$E$58,2,FALSE)=0,\"\",VLOOKUP(CB209,'Footnotes list'!$D$9:$E$58,2,FALSE) ) )","v":""},null,null,null,null,{"$f":"IF(TRIM(CG209)=\"\", \"\", IF(VLOOKUP(CG209,'Footnotes list'!$D$9:$E$58,2,FALSE)=0,\"\",VLOOKUP(CG209,'Footnotes list'!$D$9:$E$58,2,FALSE) ) )","v":""},null,null,null,null,{"$f":"IF(TRIM(CL209)=\"\", \"\", IF(VLOOKUP(CL209,'Footnotes list'!$D$9:$E$58,2,FALSE)=0,\"\",VLOOKUP(CL209,'Footnotes list'!$D$9:$E$58,2,FALSE) ) )","v":""},null,null,null,null,{"$f":"IF(TRIM(CQ209)=\"\", \"\", IF(VLOOKUP(CQ209,'Footnotes list'!$D$9:$E$58,2,FALSE)=0,\"\",VLOOKUP(CQ209,'Footnotes list'!$D$9:$E$58,2,FALSE) ) )","v":""},null,null,null,null,{"$f":"IF(TRIM(CV209)=\"\", \"\", IF(VLOOKUP(CV209,'Footnotes list'!$D$9:$E$58,2,FALSE)=0,\"\",VLOOKUP(CV209,'Footnotes list'!$D$9:$E$58,2,FALSE) ) )","v":""},null,null,null,null,{"$f":"IF(TRIM(DA209)=\"\", \"\", IF(VLOOKUP(DA209,'Footnotes list'!$D$9:$E$58,2,FALSE)=0,\"\",VLOOKUP(DA209,'Footnotes list'!$D$9:$E$58,2,FALSE) ) )","v":""},null,null,null,null,{"$f":"IF(TRIM(DF209)=\"\", \"\", IF(VLOOKUP(DF209,'Footnotes list'!$D$9:$E$58,2,FALSE)=0,\"\",VLOOKUP(DF209,'Footnotes list'!$D$9:$E$58,2,FALSE) ) )","v":""},null,null,null,null,{"$f":"IF(TRIM(DK209)=\"\", \"\", IF(VLOOKUP(DK209,'Footnotes list'!$D$9:$E$58,2,FALSE)=0,\"\",VLOOKUP(DK209,'Footnotes list'!$D$9:$E$58,2,FALSE) ) )","v":""},null,null,null,null,{"$f":"IF(TRIM(DP209)=\"\", \"\", IF(VLOOKUP(DP209,'Footnotes list'!$D$9:$E$58,2,FALSE)=0,\"\",VLOOKUP(DP209,'Footnotes list'!$D$9:$E$58,2,FALSE) ) )","v":""},null,null,null,null,{"$f":"IF(TRIM(DU209)=\"\", \"\", IF(VLOOKUP(DU209,'Footnotes list'!$D$9:$E$58,2,FALSE)=0,\"\",VLOOKUP(DU209,'Footnotes list'!$D$9:$E$58,2,FALSE) ) )","v":""},null,null,null,null,{"$f":"IF(TRIM(DZ209)=\"\", \"\", IF(VLOOKUP(DZ209,'Footnotes list'!$D$9:$E$58,2,FALSE)=0,\"\",VLOOKUP(DZ209,'Footnotes list'!$D$9:$E$58,2,FALSE) ) )","v":""},null,null,null,null,{"$f":"IF(TRIM(EE209)=\"\", \"\", IF(VLOOKUP(EE209,'Footnotes list'!$D$9:$E$58,2,FALSE)=0,\"\",VLOOKUP(EE209,'Footnotes list'!$D$9:$E$58,2,FALSE) ) )","v":""},null,null,null,null,{"$f":"IF(TRIM(EJ209)=\"\", \"\", IF(VLOOKUP(EJ209,'Footnotes list'!$D$9:$E$58,2,FALSE)=0,\"\",VLOOKUP(EJ209,'Footnotes list'!$D$9:$E$58,2,FALSE) ) )","v":""},null,null,null,null,{"$f":"IF(TRIM(EO209)=\"\", \"\", IF(VLOOKUP(EO209,'Footnotes list'!$D$9:$E$58,2,FALSE)=0,\"\",VLOOKUP(EO209,'Footnotes list'!$D$9:$E$58,2,FALSE) ) )","v":""},null,null,null,null,{"$f":"IF(TRIM(ET209)=\"\", \"\", IF(VLOOKUP(ET209,'Footnotes list'!$D$9:$E$58,2,FALSE)=0,\"\",VLOOKUP(ET209,'Footnotes list'!$D$9:$E$58,2,FALSE) ) )","v":""},null,null,null,null,{"$f":"IF(TRIM(EY209)=\"\", \"\", IF(VLOOKUP(EY209,'Footnotes list'!$D$9:$E$58,2,FALSE)=0,\"\",VLOOKUP(EY209,'Footnotes list'!$D$9:$E$58,2,FALSE) ) )","v":""}]
[null,null,"K","C_REP","cleaner and resource efficient products",null,null,null,null,null,{"$f":"IF(TRIM(J210)=\"\", \"\", IF(VLOOKUP(J210,'Footnotes list'!$D$9:$E$58,2,FALSE)=0,\"\",VLOOKUP(J210,'Footnotes list'!$D$9:$E$58,2,FALSE) ) )","v":""},null,null,null,null,{"$f":"IF(TRIM(O210)=\"\", \"\", IF(VLOOKUP(O210,'Footnotes list'!$D$9:$E$58,2,FALSE)=0,\"\",VLOOKUP(O210,'Footnotes list'!$D$9:$E$58,2,FALSE) ) )","v":""},null,null,null,null,{"$f":"IF(TRIM(T210)=\"\", \"\", IF(VLOOKUP(T210,'Footnotes list'!$D$9:$E$58,2,FALSE)=0,\"\",VLOOKUP(T210,'Footnotes list'!$D$9:$E$58,2,FALSE) ) )","v":""},null,null,null,null,{"$f":"IF(TRIM(Y210)=\"\", \"\", IF(VLOOKUP(Y210,'Footnotes list'!$D$9:$E$58,2,FALSE)=0,\"\",VLOOKUP(Y210,'Footnotes list'!$D$9:$E$58,2,FALSE) ) )","v":""},null,null,null,null,{"$f":"IF(TRIM(AD210)=\"\", \"\", IF(VLOOKUP(AD210,'Footnotes list'!$D$9:$E$58,2,FALSE)=0,\"\",VLOOKUP(AD210,'Footnotes list'!$D$9:$E$58,2,FALSE) ) )","v":""},null,null,null,null,{"$f":"IF(TRIM(AI210)=\"\", \"\", IF(VLOOKUP(AI210,'Footnotes list'!$D$9:$E$58,2,FALSE)=0,\"\",VLOOKUP(AI210,'Footnotes list'!$D$9:$E$58,2,FALSE) ) )","v":""},null,null,null,null,{"$f":"IF(TRIM(AN210)=\"\", \"\", IF(VLOOKUP(AN210,'Footnotes list'!$D$9:$E$58,2,FALSE)=0,\"\",VLOOKUP(AN210,'Footnotes list'!$D$9:$E$58,2,FALSE) ) )","v":""},null,null,null,null,{"$f":"IF(TRIM(AS210)=\"\", \"\", IF(VLOOKUP(AS210,'Footnotes list'!$D$9:$E$58,2,FALSE)=0,\"\",VLOOKUP(AS210,'Footnotes list'!$D$9:$E$58,2,FALSE) ) )","v":""},null,null,null,null,{"$f":"IF(TRIM(AX210)=\"\", \"\", IF(VLOOKUP(AX210,'Footnotes list'!$D$9:$E$58,2,FALSE)=0,\"\",VLOOKUP(AX210,'Footnotes list'!$D$9:$E$58,2,FALSE) ) )","v":""},null,null,null,null,{"$f":"IF(TRIM(BC210)=\"\", \"\", IF(VLOOKUP(BC210,'Footnotes list'!$D$9:$E$58,2,FALSE)=0,\"\",VLOOKUP(BC210,'Footnotes list'!$D$9:$E$58,2,FALSE) ) )","v":""},null,null,null,null,{"$f":"IF(TRIM(BH210)=\"\", \"\", IF(VLOOKUP(BH210,'Footnotes list'!$D$9:$E$58,2,FALSE)=0,\"\",VLOOKUP(BH210,'Footnotes list'!$D$9:$E$58,2,FALSE) ) )","v":""},null,null,null,null,{"$f":"IF(TRIM(BM210)=\"\", \"\", IF(VLOOKUP(BM210,'Footnotes list'!$D$9:$E$58,2,FALSE)=0,\"\",VLOOKUP(BM210,'Footnotes list'!$D$9:$E$58,2,FALSE) ) )","v":""},null,null,null,null,{"$f":"IF(TRIM(BR210)=\"\", \"\", IF(VLOOKUP(BR210,'Footnotes list'!$D$9:$E$58,2,FALSE)=0,\"\",VLOOKUP(BR210,'Footnotes list'!$D$9:$E$58,2,FALSE) ) )","v":""},null,null,null,null,{"$f":"IF(TRIM(BW210)=\"\", \"\", IF(VLOOKUP(BW210,'Footnotes list'!$D$9:$E$58,2,FALSE)=0,\"\",VLOOKUP(BW210,'Footnotes list'!$D$9:$E$58,2,FALSE) ) )","v":""},null,null,null,null,{"$f":"IF(TRIM(CB210)=\"\", \"\", IF(VLOOKUP(CB210,'Footnotes list'!$D$9:$E$58,2,FALSE)=0,\"\",VLOOKUP(CB210,'Footnotes list'!$D$9:$E$58,2,FALSE) ) )","v":""},null,null,null,null,{"$f":"IF(TRIM(CG210)=\"\", \"\", IF(VLOOKUP(CG210,'Footnotes list'!$D$9:$E$58,2,FALSE)=0,\"\",VLOOKUP(CG210,'Footnotes list'!$D$9:$E$58,2,FALSE) ) )","v":""},null,null,null,null,{"$f":"IF(TRIM(CL210)=\"\", \"\", IF(VLOOKUP(CL210,'Footnotes list'!$D$9:$E$58,2,FALSE)=0,\"\",VLOOKUP(CL210,'Footnotes list'!$D$9:$E$58,2,FALSE) ) )","v":""},null,null,null,null,{"$f":"IF(TRIM(CQ210)=\"\", \"\", IF(VLOOKUP(CQ210,'Footnotes list'!$D$9:$E$58,2,FALSE)=0,\"\",VLOOKUP(CQ210,'Footnotes list'!$D$9:$E$58,2,FALSE) ) )","v":""},null,null,null,null,{"$f":"IF(TRIM(CV210)=\"\", \"\", IF(VLOOKUP(CV210,'Footnotes list'!$D$9:$E$58,2,FALSE)=0,\"\",VLOOKUP(CV210,'Footnotes list'!$D$9:$E$58,2,FALSE) ) )","v":""},null,null,null,null,{"$f":"IF(TRIM(DA210)=\"\", \"\", IF(VLOOKUP(DA210,'Footnotes list'!$D$9:$E$58,2,FALSE)=0,\"\",VLOOKUP(DA210,'Footnotes list'!$D$9:$E$58,2,FALSE) ) )","v":""},null,null,null,null,{"$f":"IF(TRIM(DF210)=\"\", \"\", IF(VLOOKUP(DF210,'Footnotes list'!$D$9:$E$58,2,FALSE)=0,\"\",VLOOKUP(DF210,'Footnotes list'!$D$9:$E$58,2,FALSE) ) )","v":""},null,null,null,null,{"$f":"IF(TRIM(DK210)=\"\", \"\", IF(VLOOKUP(DK210,'Footnotes list'!$D$9:$E$58,2,FALSE)=0,\"\",VLOOKUP(DK210,'Footnotes list'!$D$9:$E$58,2,FALSE) ) )","v":""},null,null,null,null,{"$f":"IF(TRIM(DP210)=\"\", \"\", IF(VLOOKUP(DP210,'Footnotes list'!$D$9:$E$58,2,FALSE)=0,\"\",VLOOKUP(DP210,'Footnotes list'!$D$9:$E$58,2,FALSE) ) )","v":""},null,null,null,null,{"$f":"IF(TRIM(DU210)=\"\", \"\", IF(VLOOKUP(DU210,'Footnotes list'!$D$9:$E$58,2,FALSE)=0,\"\",VLOOKUP(DU210,'Footnotes list'!$D$9:$E$58,2,FALSE) ) )","v":""},null,null,null,null,{"$f":"IF(TRIM(DZ210)=\"\", \"\", IF(VLOOKUP(DZ210,'Footnotes list'!$D$9:$E$58,2,FALSE)=0,\"\",VLOOKUP(DZ210,'Footnotes list'!$D$9:$E$58,2,FALSE) ) )","v":""},null,null,null,null,{"$f":"IF(TRIM(EE210)=\"\", \"\", IF(VLOOKUP(EE210,'Footnotes list'!$D$9:$E$58,2,FALSE)=0,\"\",VLOOKUP(EE210,'Footnotes list'!$D$9:$E$58,2,FALSE) ) )","v":""},null,null,null,null,{"$f":"IF(TRIM(EJ210)=\"\", \"\", IF(VLOOKUP(EJ210,'Footnotes list'!$D$9:$E$58,2,FALSE)=0,\"\",VLOOKUP(EJ210,'Footnotes list'!$D$9:$E$58,2,FALSE) ) )","v":""},null,null,null,null,{"$f":"IF(TRIM(EO210)=\"\", \"\", IF(VLOOKUP(EO210,'Footnotes list'!$D$9:$E$58,2,FALSE)=0,\"\",VLOOKUP(EO210,'Footnotes list'!$D$9:$E$58,2,FALSE) ) )","v":""},null,null,null,null,{"$f":"IF(TRIM(ET210)=\"\", \"\", IF(VLOOKUP(ET210,'Footnotes list'!$D$9:$E$58,2,FALSE)=0,\"\",VLOOKUP(ET210,'Footnotes list'!$D$9:$E$58,2,FALSE) ) )","v":""},null,null,null,null,{"$f":"IF(TRIM(EY210)=\"\", \"\", IF(VLOOKUP(EY210,'Footnotes list'!$D$9:$E$58,2,FALSE)=0,\"\",VLOOKUP(EY210,'Footnotes list'!$D$9:$E$58,2,FALSE) ) )","v":""}]
[null,null,"L","TOT_EGSS","Total L - Real estate activities, of which:",null,null,null,null,null,{"$f":"IF(TRIM(J211)=\"\", \"\", IF(VLOOKUP(J211,'Footnotes list'!$D$9:$E$58,2,FALSE)=0,\"\",VLOOKUP(J211,'Footnotes list'!$D$9:$E$58,2,FALSE) ) )","v":""},null,null,null,null,{"$f":"IF(TRIM(O211)=\"\", \"\", IF(VLOOKUP(O211,'Footnotes list'!$D$9:$E$58,2,FALSE)=0,\"\",VLOOKUP(O211,'Footnotes list'!$D$9:$E$58,2,FALSE) ) )","v":""},null,null,null,null,{"$f":"IF(TRIM(T211)=\"\", \"\", IF(VLOOKUP(T211,'Footnotes list'!$D$9:$E$58,2,FALSE)=0,\"\",VLOOKUP(T211,'Footnotes list'!$D$9:$E$58,2,FALSE) ) )","v":""},null,null,null,null,{"$f":"IF(TRIM(Y211)=\"\", \"\", IF(VLOOKUP(Y211,'Footnotes list'!$D$9:$E$58,2,FALSE)=0,\"\",VLOOKUP(Y211,'Footnotes list'!$D$9:$E$58,2,FALSE) ) )","v":""},null,null,null,null,{"$f":"IF(TRIM(AD211)=\"\", \"\", IF(VLOOKUP(AD211,'Footnotes list'!$D$9:$E$58,2,FALSE)=0,\"\",VLOOKUP(AD211,'Footnotes list'!$D$9:$E$58,2,FALSE) ) )","v":""},null,null,null,null,{"$f":"IF(TRIM(AI211)=\"\", \"\", IF(VLOOKUP(AI211,'Footnotes list'!$D$9:$E$58,2,FALSE)=0,\"\",VLOOKUP(AI211,'Footnotes list'!$D$9:$E$58,2,FALSE) ) )","v":""},null,null,null,null,{"$f":"IF(TRIM(AN211)=\"\", \"\", IF(VLOOKUP(AN211,'Footnotes list'!$D$9:$E$58,2,FALSE)=0,\"\",VLOOKUP(AN211,'Footnotes list'!$D$9:$E$58,2,FALSE) ) )","v":""},null,null,null,null,{"$f":"IF(TRIM(AS211)=\"\", \"\", IF(VLOOKUP(AS211,'Footnotes list'!$D$9:$E$58,2,FALSE)=0,\"\",VLOOKUP(AS211,'Footnotes list'!$D$9:$E$58,2,FALSE) ) )","v":""},null,null,null,null,{"$f":"IF(TRIM(AX211)=\"\", \"\", IF(VLOOKUP(AX211,'Footnotes list'!$D$9:$E$58,2,FALSE)=0,\"\",VLOOKUP(AX211,'Footnotes list'!$D$9:$E$58,2,FALSE) ) )","v":""},null,null,null,null,{"$f":"IF(TRIM(BC211)=\"\", \"\", IF(VLOOKUP(BC211,'Footnotes list'!$D$9:$E$58,2,FALSE)=0,\"\",VLOOKUP(BC211,'Footnotes list'!$D$9:$E$58,2,FALSE) ) )","v":""},null,null,null,null,{"$f":"IF(TRIM(BH211)=\"\", \"\", IF(VLOOKUP(BH211,'Footnotes list'!$D$9:$E$58,2,FALSE)=0,\"\",VLOOKUP(BH211,'Footnotes list'!$D$9:$E$58,2,FALSE) ) )","v":""},null,null,null,null,{"$f":"IF(TRIM(BM211)=\"\", \"\", IF(VLOOKUP(BM211,'Footnotes list'!$D$9:$E$58,2,FALSE)=0,\"\",VLOOKUP(BM211,'Footnotes list'!$D$9:$E$58,2,FALSE) ) )","v":""},null,null,null,null,{"$f":"IF(TRIM(BR211)=\"\", \"\", IF(VLOOKUP(BR211,'Footnotes list'!$D$9:$E$58,2,FALSE)=0,\"\",VLOOKUP(BR211,'Footnotes list'!$D$9:$E$58,2,FALSE) ) )","v":""},null,null,null,null,{"$f":"IF(TRIM(BW211)=\"\", \"\", IF(VLOOKUP(BW211,'Footnotes list'!$D$9:$E$58,2,FALSE)=0,\"\",VLOOKUP(BW211,'Footnotes list'!$D$9:$E$58,2,FALSE) ) )","v":""},null,null,null,null,{"$f":"IF(TRIM(CB211)=\"\", \"\", IF(VLOOKUP(CB211,'Footnotes list'!$D$9:$E$58,2,FALSE)=0,\"\",VLOOKUP(CB211,'Footnotes list'!$D$9:$E$58,2,FALSE) ) )","v":""},null,null,null,null,{"$f":"IF(TRIM(CG211)=\"\", \"\", IF(VLOOKUP(CG211,'Footnotes list'!$D$9:$E$58,2,FALSE)=0,\"\",VLOOKUP(CG211,'Footnotes list'!$D$9:$E$58,2,FALSE) ) )","v":""},null,null,null,null,{"$f":"IF(TRIM(CL211)=\"\", \"\", IF(VLOOKUP(CL211,'Footnotes list'!$D$9:$E$58,2,FALSE)=0,\"\",VLOOKUP(CL211,'Footnotes list'!$D$9:$E$58,2,FALSE) ) )","v":""},null,null,null,null,{"$f":"IF(TRIM(CQ211)=\"\", \"\", IF(VLOOKUP(CQ211,'Footnotes list'!$D$9:$E$58,2,FALSE)=0,\"\",VLOOKUP(CQ211,'Footnotes list'!$D$9:$E$58,2,FALSE) ) )","v":""},null,null,null,null,{"$f":"IF(TRIM(CV211)=\"\", \"\", IF(VLOOKUP(CV211,'Footnotes list'!$D$9:$E$58,2,FALSE)=0,\"\",VLOOKUP(CV211,'Footnotes list'!$D$9:$E$58,2,FALSE) ) )","v":""},null,null,null,null,{"$f":"IF(TRIM(DA211)=\"\", \"\", IF(VLOOKUP(DA211,'Footnotes list'!$D$9:$E$58,2,FALSE)=0,\"\",VLOOKUP(DA211,'Footnotes list'!$D$9:$E$58,2,FALSE) ) )","v":""},null,null,null,null,{"$f":"IF(TRIM(DF211)=\"\", \"\", IF(VLOOKUP(DF211,'Footnotes list'!$D$9:$E$58,2,FALSE)=0,\"\",VLOOKUP(DF211,'Footnotes list'!$D$9:$E$58,2,FALSE) ) )","v":""},null,null,null,null,{"$f":"IF(TRIM(DK211)=\"\", \"\", IF(VLOOKUP(DK211,'Footnotes list'!$D$9:$E$58,2,FALSE)=0,\"\",VLOOKUP(DK211,'Footnotes list'!$D$9:$E$58,2,FALSE) ) )","v":""},null,null,null,null,{"$f":"IF(TRIM(DP211)=\"\", \"\", IF(VLOOKUP(DP211,'Footnotes list'!$D$9:$E$58,2,FALSE)=0,\"\",VLOOKUP(DP211,'Footnotes list'!$D$9:$E$58,2,FALSE) ) )","v":""},null,null,null,null,{"$f":"IF(TRIM(DU211)=\"\", \"\", IF(VLOOKUP(DU211,'Footnotes list'!$D$9:$E$58,2,FALSE)=0,\"\",VLOOKUP(DU211,'Footnotes list'!$D$9:$E$58,2,FALSE) ) )","v":""},null,null,null,null,{"$f":"IF(TRIM(DZ211)=\"\", \"\", IF(VLOOKUP(DZ211,'Footnotes list'!$D$9:$E$58,2,FALSE)=0,\"\",VLOOKUP(DZ211,'Footnotes list'!$D$9:$E$58,2,FALSE) ) )","v":""},null,null,null,null,{"$f":"IF(TRIM(EE211)=\"\", \"\", IF(VLOOKUP(EE211,'Footnotes list'!$D$9:$E$58,2,FALSE)=0,\"\",VLOOKUP(EE211,'Footnotes list'!$D$9:$E$58,2,FALSE) ) )","v":""},null,null,null,null,{"$f":"IF(TRIM(EJ211)=\"\", \"\", IF(VLOOKUP(EJ211,'Footnotes list'!$D$9:$E$58,2,FALSE)=0,\"\",VLOOKUP(EJ211,'Footnotes list'!$D$9:$E$58,2,FALSE) ) )","v":""},null,null,null,null,{"$f":"IF(TRIM(EO211)=\"\", \"\", IF(VLOOKUP(EO211,'Footnotes list'!$D$9:$E$58,2,FALSE)=0,\"\",VLOOKUP(EO211,'Footnotes list'!$D$9:$E$58,2,FALSE) ) )","v":""},null,null,null,null,{"$f":"IF(TRIM(ET211)=\"\", \"\", IF(VLOOKUP(ET211,'Footnotes list'!$D$9:$E$58,2,FALSE)=0,\"\",VLOOKUP(ET211,'Footnotes list'!$D$9:$E$58,2,FALSE) ) )","v":""},null,null,null,null,{"$f":"IF(TRIM(EY211)=\"\", \"\", IF(VLOOKUP(EY211,'Footnotes list'!$D$9:$E$58,2,FALSE)=0,\"\",VLOOKUP(EY211,'Footnotes list'!$D$9:$E$58,2,FALSE) ) )","v":""}]
[null,null,"L","ANC","ancillary activities",null,null,null,null,null,{"$f":"IF(TRIM(J212)=\"\", \"\", IF(VLOOKUP(J212,'Footnotes list'!$D$9:$E$58,2,FALSE)=0,\"\",VLOOKUP(J212,'Footnotes list'!$D$9:$E$58,2,FALSE) ) )","v":""},null,null,null,null,{"$f":"IF(TRIM(O212)=\"\", \"\", IF(VLOOKUP(O212,'Footnotes list'!$D$9:$E$58,2,FALSE)=0,\"\",VLOOKUP(O212,'Footnotes list'!$D$9:$E$58,2,FALSE) ) )","v":""},null,null,null,null,{"$f":"IF(TRIM(T212)=\"\", \"\", IF(VLOOKUP(T212,'Footnotes list'!$D$9:$E$58,2,FALSE)=0,\"\",VLOOKUP(T212,'Footnotes list'!$D$9:$E$58,2,FALSE) ) )","v":""},null,null,null,null,{"$f":"IF(TRIM(Y212)=\"\", \"\", IF(VLOOKUP(Y212,'Footnotes list'!$D$9:$E$58,2,FALSE)=0,\"\",VLOOKUP(Y212,'Footnotes list'!$D$9:$E$58,2,FALSE) ) )","v":""},null,null,null,null,{"$f":"IF(TRIM(AD212)=\"\", \"\", IF(VLOOKUP(AD212,'Footnotes list'!$D$9:$E$58,2,FALSE)=0,\"\",VLOOKUP(AD212,'Footnotes list'!$D$9:$E$58,2,FALSE) ) )","v":""},null,null,null,null,{"$f":"IF(TRIM(AI212)=\"\", \"\", IF(VLOOKUP(AI212,'Footnotes list'!$D$9:$E$58,2,FALSE)=0,\"\",VLOOKUP(AI212,'Footnotes list'!$D$9:$E$58,2,FALSE) ) )","v":""},null,null,null,null,{"$f":"IF(TRIM(AN212)=\"\", \"\", IF(VLOOKUP(AN212,'Footnotes list'!$D$9:$E$58,2,FALSE)=0,\"\",VLOOKUP(AN212,'Footnotes list'!$D$9:$E$58,2,FALSE) ) )","v":""},null,null,null,null,{"$f":"IF(TRIM(AS212)=\"\", \"\", IF(VLOOKUP(AS212,'Footnotes list'!$D$9:$E$58,2,FALSE)=0,\"\",VLOOKUP(AS212,'Footnotes list'!$D$9:$E$58,2,FALSE) ) )","v":""},null,null,null,null,{"$f":"IF(TRIM(AX212)=\"\", \"\", IF(VLOOKUP(AX212,'Footnotes list'!$D$9:$E$58,2,FALSE)=0,\"\",VLOOKUP(AX212,'Footnotes list'!$D$9:$E$58,2,FALSE) ) )","v":""},null,null,null,null,{"$f":"IF(TRIM(BC212)=\"\", \"\", IF(VLOOKUP(BC212,'Footnotes list'!$D$9:$E$58,2,FALSE)=0,\"\",VLOOKUP(BC212,'Footnotes list'!$D$9:$E$58,2,FALSE) ) )","v":""},null,null,null,null,{"$f":"IF(TRIM(BH212)=\"\", \"\", IF(VLOOKUP(BH212,'Footnotes list'!$D$9:$E$58,2,FALSE)=0,\"\",VLOOKUP(BH212,'Footnotes list'!$D$9:$E$58,2,FALSE) ) )","v":""},null,null,null,null,{"$f":"IF(TRIM(BM212)=\"\", \"\", IF(VLOOKUP(BM212,'Footnotes list'!$D$9:$E$58,2,FALSE)=0,\"\",VLOOKUP(BM212,'Footnotes list'!$D$9:$E$58,2,FALSE) ) )","v":""},null,null,null,null,{"$f":"IF(TRIM(BR212)=\"\", \"\", IF(VLOOKUP(BR212,'Footnotes list'!$D$9:$E$58,2,FALSE)=0,\"\",VLOOKUP(BR212,'Footnotes list'!$D$9:$E$58,2,FALSE) ) )","v":""},null,null,null,null,{"$f":"IF(TRIM(BW212)=\"\", \"\", IF(VLOOKUP(BW212,'Footnotes list'!$D$9:$E$58,2,FALSE)=0,\"\",VLOOKUP(BW212,'Footnotes list'!$D$9:$E$58,2,FALSE) ) )","v":""},null,null,null,null,{"$f":"IF(TRIM(CB212)=\"\", \"\", IF(VLOOKUP(CB212,'Footnotes list'!$D$9:$E$58,2,FALSE)=0,\"\",VLOOKUP(CB212,'Footnotes list'!$D$9:$E$58,2,FALSE) ) )","v":""},null,null,null,null,{"$f":"IF(TRIM(CG212)=\"\", \"\", IF(VLOOKUP(CG212,'Footnotes list'!$D$9:$E$58,2,FALSE)=0,\"\",VLOOKUP(CG212,'Footnotes list'!$D$9:$E$58,2,FALSE) ) )","v":""},null,null,null,null,{"$f":"IF(TRIM(CL212)=\"\", \"\", IF(VLOOKUP(CL212,'Footnotes list'!$D$9:$E$58,2,FALSE)=0,\"\",VLOOKUP(CL212,'Footnotes list'!$D$9:$E$58,2,FALSE) ) )","v":""},null,null,null,null,{"$f":"IF(TRIM(CQ212)=\"\", \"\", IF(VLOOKUP(CQ212,'Footnotes list'!$D$9:$E$58,2,FALSE)=0,\"\",VLOOKUP(CQ212,'Footnotes list'!$D$9:$E$58,2,FALSE) ) )","v":""},null,null,null,null,{"$f":"IF(TRIM(CV212)=\"\", \"\", IF(VLOOKUP(CV212,'Footnotes list'!$D$9:$E$58,2,FALSE)=0,\"\",VLOOKUP(CV212,'Footnotes list'!$D$9:$E$58,2,FALSE) ) )","v":""},null,null,null,null,{"$f":"IF(TRIM(DA212)=\"\", \"\", IF(VLOOKUP(DA212,'Footnotes list'!$D$9:$E$58,2,FALSE)=0,\"\",VLOOKUP(DA212,'Footnotes list'!$D$9:$E$58,2,FALSE) ) )","v":""},null,null,null,null,{"$f":"IF(TRIM(DF212)=\"\", \"\", IF(VLOOKUP(DF212,'Footnotes list'!$D$9:$E$58,2,FALSE)=0,\"\",VLOOKUP(DF212,'Footnotes list'!$D$9:$E$58,2,FALSE) ) )","v":""},null,null,null,null,{"$f":"IF(TRIM(DK212)=\"\", \"\", IF(VLOOKUP(DK212,'Footnotes list'!$D$9:$E$58,2,FALSE)=0,\"\",VLOOKUP(DK212,'Footnotes list'!$D$9:$E$58,2,FALSE) ) )","v":""},null,null,null,null,{"$f":"IF(TRIM(DP212)=\"\", \"\", IF(VLOOKUP(DP212,'Footnotes list'!$D$9:$E$58,2,FALSE)=0,\"\",VLOOKUP(DP212,'Footnotes list'!$D$9:$E$58,2,FALSE) ) )","v":""},null,null,null,null,{"$f":"IF(TRIM(DU212)=\"\", \"\", IF(VLOOKUP(DU212,'Footnotes list'!$D$9:$E$58,2,FALSE)=0,\"\",VLOOKUP(DU212,'Footnotes list'!$D$9:$E$58,2,FALSE) ) )","v":""},null,null,null,null,{"$f":"IF(TRIM(DZ212)=\"\", \"\", IF(VLOOKUP(DZ212,'Footnotes list'!$D$9:$E$58,2,FALSE)=0,\"\",VLOOKUP(DZ212,'Footnotes list'!$D$9:$E$58,2,FALSE) ) )","v":""},null,null,null,null,{"$f":"IF(TRIM(EE212)=\"\", \"\", IF(VLOOKUP(EE212,'Footnotes list'!$D$9:$E$58,2,FALSE)=0,\"\",VLOOKUP(EE212,'Footnotes list'!$D$9:$E$58,2,FALSE) ) )","v":""},null,null,null,null,{"$f":"IF(TRIM(EJ212)=\"\", \"\", IF(VLOOKUP(EJ212,'Footnotes list'!$D$9:$E$58,2,FALSE)=0,\"\",VLOOKUP(EJ212,'Footnotes list'!$D$9:$E$58,2,FALSE) ) )","v":""},null,null,null,null,{"$f":"IF(TRIM(EO212)=\"\", \"\", IF(VLOOKUP(EO212,'Footnotes list'!$D$9:$E$58,2,FALSE)=0,\"\",VLOOKUP(EO212,'Footnotes list'!$D$9:$E$58,2,FALSE) ) )","v":""},null,null,null,null,{"$f":"IF(TRIM(ET212)=\"\", \"\", IF(VLOOKUP(ET212,'Footnotes list'!$D$9:$E$58,2,FALSE)=0,\"\",VLOOKUP(ET212,'Footnotes list'!$D$9:$E$58,2,FALSE) ) )","v":""},null,null,null,null,{"$f":"IF(TRIM(EY212)=\"\", \"\", IF(VLOOKUP(EY212,'Footnotes list'!$D$9:$E$58,2,FALSE)=0,\"\",VLOOKUP(EY212,'Footnotes list'!$D$9:$E$58,2,FALSE) ) )","v":""}]
[null,null,"L","NMKT","non-market activities",null,null,null,null,null,{"$f":"IF(TRIM(J213)=\"\", \"\", IF(VLOOKUP(J213,'Footnotes list'!$D$9:$E$58,2,FALSE)=0,\"\",VLOOKUP(J213,'Footnotes list'!$D$9:$E$58,2,FALSE) ) )","v":""},null,null,null,null,{"$f":"IF(TRIM(O213)=\"\", \"\", IF(VLOOKUP(O213,'Footnotes list'!$D$9:$E$58,2,FALSE)=0,\"\",VLOOKUP(O213,'Footnotes list'!$D$9:$E$58,2,FALSE) ) )","v":""},null,null,null,null,{"$f":"IF(TRIM(T213)=\"\", \"\", IF(VLOOKUP(T213,'Footnotes list'!$D$9:$E$58,2,FALSE)=0,\"\",VLOOKUP(T213,'Footnotes list'!$D$9:$E$58,2,FALSE) ) )","v":""},null,null,null,null,{"$f":"IF(TRIM(Y213)=\"\", \"\", IF(VLOOKUP(Y213,'Footnotes list'!$D$9:$E$58,2,FALSE)=0,\"\",VLOOKUP(Y213,'Footnotes list'!$D$9:$E$58,2,FALSE) ) )","v":""},null,null,null,null,{"$f":"IF(TRIM(AD213)=\"\", \"\", IF(VLOOKUP(AD213,'Footnotes list'!$D$9:$E$58,2,FALSE)=0,\"\",VLOOKUP(AD213,'Footnotes list'!$D$9:$E$58,2,FALSE) ) )","v":""},null,null,null,null,{"$f":"IF(TRIM(AI213)=\"\", \"\", IF(VLOOKUP(AI213,'Footnotes list'!$D$9:$E$58,2,FALSE)=0,\"\",VLOOKUP(AI213,'Footnotes list'!$D$9:$E$58,2,FALSE) ) )","v":""},null,null,null,null,{"$f":"IF(TRIM(AN213)=\"\", \"\", IF(VLOOKUP(AN213,'Footnotes list'!$D$9:$E$58,2,FALSE)=0,\"\",VLOOKUP(AN213,'Footnotes list'!$D$9:$E$58,2,FALSE) ) )","v":""},null,null,null,null,{"$f":"IF(TRIM(AS213)=\"\", \"\", IF(VLOOKUP(AS213,'Footnotes list'!$D$9:$E$58,2,FALSE)=0,\"\",VLOOKUP(AS213,'Footnotes list'!$D$9:$E$58,2,FALSE) ) )","v":""},null,null,null,null,{"$f":"IF(TRIM(AX213)=\"\", \"\", IF(VLOOKUP(AX213,'Footnotes list'!$D$9:$E$58,2,FALSE)=0,\"\",VLOOKUP(AX213,'Footnotes list'!$D$9:$E$58,2,FALSE) ) )","v":""},null,null,null,null,{"$f":"IF(TRIM(BC213)=\"\", \"\", IF(VLOOKUP(BC213,'Footnotes list'!$D$9:$E$58,2,FALSE)=0,\"\",VLOOKUP(BC213,'Footnotes list'!$D$9:$E$58,2,FALSE) ) )","v":""},null,null,null,null,{"$f":"IF(TRIM(BH213)=\"\", \"\", IF(VLOOKUP(BH213,'Footnotes list'!$D$9:$E$58,2,FALSE)=0,\"\",VLOOKUP(BH213,'Footnotes list'!$D$9:$E$58,2,FALSE) ) )","v":""},null,null,null,null,{"$f":"IF(TRIM(BM213)=\"\", \"\", IF(VLOOKUP(BM213,'Footnotes list'!$D$9:$E$58,2,FALSE)=0,\"\",VLOOKUP(BM213,'Footnotes list'!$D$9:$E$58,2,FALSE) ) )","v":""},null,null,null,null,{"$f":"IF(TRIM(BR213)=\"\", \"\", IF(VLOOKUP(BR213,'Footnotes list'!$D$9:$E$58,2,FALSE)=0,\"\",VLOOKUP(BR213,'Footnotes list'!$D$9:$E$58,2,FALSE) ) )","v":""},null,null,null,null,{"$f":"IF(TRIM(BW213)=\"\", \"\", IF(VLOOKUP(BW213,'Footnotes list'!$D$9:$E$58,2,FALSE)=0,\"\",VLOOKUP(BW213,'Footnotes list'!$D$9:$E$58,2,FALSE) ) )","v":""},null,null,null,null,{"$f":"IF(TRIM(CB213)=\"\", \"\", IF(VLOOKUP(CB213,'Footnotes list'!$D$9:$E$58,2,FALSE)=0,\"\",VLOOKUP(CB213,'Footnotes list'!$D$9:$E$58,2,FALSE) ) )","v":""},null,null,null,null,{"$f":"IF(TRIM(CG213)=\"\", \"\", IF(VLOOKUP(CG213,'Footnotes list'!$D$9:$E$58,2,FALSE)=0,\"\",VLOOKUP(CG213,'Footnotes list'!$D$9:$E$58,2,FALSE) ) )","v":""},null,null,null,null,{"$f":"IF(TRIM(CL213)=\"\", \"\", IF(VLOOKUP(CL213,'Footnotes list'!$D$9:$E$58,2,FALSE)=0,\"\",VLOOKUP(CL213,'Footnotes list'!$D$9:$E$58,2,FALSE) ) )","v":""},null,null,null,null,{"$f":"IF(TRIM(CQ213)=\"\", \"\", IF(VLOOKUP(CQ213,'Footnotes list'!$D$9:$E$58,2,FALSE)=0,\"\",VLOOKUP(CQ213,'Footnotes list'!$D$9:$E$58,2,FALSE) ) )","v":""},null,null,null,null,{"$f":"IF(TRIM(CV213)=\"\", \"\", IF(VLOOKUP(CV213,'Footnotes list'!$D$9:$E$58,2,FALSE)=0,\"\",VLOOKUP(CV213,'Footnotes list'!$D$9:$E$58,2,FALSE) ) )","v":""},null,null,null,null,{"$f":"IF(TRIM(DA213)=\"\", \"\", IF(VLOOKUP(DA213,'Footnotes list'!$D$9:$E$58,2,FALSE)=0,\"\",VLOOKUP(DA213,'Footnotes list'!$D$9:$E$58,2,FALSE) ) )","v":""},null,null,null,null,{"$f":"IF(TRIM(DF213)=\"\", \"\", IF(VLOOKUP(DF213,'Footnotes list'!$D$9:$E$58,2,FALSE)=0,\"\",VLOOKUP(DF213,'Footnotes list'!$D$9:$E$58,2,FALSE) ) )","v":""},null,null,null,null,{"$f":"IF(TRIM(DK213)=\"\", \"\", IF(VLOOKUP(DK213,'Footnotes list'!$D$9:$E$58,2,FALSE)=0,\"\",VLOOKUP(DK213,'Footnotes list'!$D$9:$E$58,2,FALSE) ) )","v":""},null,null,null,null,{"$f":"IF(TRIM(DP213)=\"\", \"\", IF(VLOOKUP(DP213,'Footnotes list'!$D$9:$E$58,2,FALSE)=0,\"\",VLOOKUP(DP213,'Footnotes list'!$D$9:$E$58,2,FALSE) ) )","v":""},null,null,null,null,{"$f":"IF(TRIM(DU213)=\"\", \"\", IF(VLOOKUP(DU213,'Footnotes list'!$D$9:$E$58,2,FALSE)=0,\"\",VLOOKUP(DU213,'Footnotes list'!$D$9:$E$58,2,FALSE) ) )","v":""},null,null,null,null,{"$f":"IF(TRIM(DZ213)=\"\", \"\", IF(VLOOKUP(DZ213,'Footnotes list'!$D$9:$E$58,2,FALSE)=0,\"\",VLOOKUP(DZ213,'Footnotes list'!$D$9:$E$58,2,FALSE) ) )","v":""},null,null,null,null,{"$f":"IF(TRIM(EE213)=\"\", \"\", IF(VLOOKUP(EE213,'Footnotes list'!$D$9:$E$58,2,FALSE)=0,\"\",VLOOKUP(EE213,'Footnotes list'!$D$9:$E$58,2,FALSE) ) )","v":""},null,null,null,null,{"$f":"IF(TRIM(EJ213)=\"\", \"\", IF(VLOOKUP(EJ213,'Footnotes list'!$D$9:$E$58,2,FALSE)=0,\"\",VLOOKUP(EJ213,'Footnotes list'!$D$9:$E$58,2,FALSE) ) )","v":""},null,null,null,null,{"$f":"IF(TRIM(EO213)=\"\", \"\", IF(VLOOKUP(EO213,'Footnotes list'!$D$9:$E$58,2,FALSE)=0,\"\",VLOOKUP(EO213,'Footnotes list'!$D$9:$E$58,2,FALSE) ) )","v":""},null,null,null,null,{"$f":"IF(TRIM(ET213)=\"\", \"\", IF(VLOOKUP(ET213,'Footnotes list'!$D$9:$E$58,2,FALSE)=0,\"\",VLOOKUP(ET213,'Footnotes list'!$D$9:$E$58,2,FALSE) ) )","v":""},null,null,null,null,{"$f":"IF(TRIM(EY213)=\"\", \"\", IF(VLOOKUP(EY213,'Footnotes list'!$D$9:$E$58,2,FALSE)=0,\"\",VLOOKUP(EY213,'Footnotes list'!$D$9:$E$58,2,FALSE) ) )","v":""}]
[null,null,"L","OWN_USE","activities for own final use",null,null,null,null,null,{"$f":"IF(TRIM(J214)=\"\", \"\", IF(VLOOKUP(J214,'Footnotes list'!$D$9:$E$58,2,FALSE)=0,\"\",VLOOKUP(J214,'Footnotes list'!$D$9:$E$58,2,FALSE) ) )","v":""},null,null,null,null,{"$f":"IF(TRIM(O214)=\"\", \"\", IF(VLOOKUP(O214,'Footnotes list'!$D$9:$E$58,2,FALSE)=0,\"\",VLOOKUP(O214,'Footnotes list'!$D$9:$E$58,2,FALSE) ) )","v":""},null,null,null,null,{"$f":"IF(TRIM(T214)=\"\", \"\", IF(VLOOKUP(T214,'Footnotes list'!$D$9:$E$58,2,FALSE)=0,\"\",VLOOKUP(T214,'Footnotes list'!$D$9:$E$58,2,FALSE) ) )","v":""},null,null,null,null,{"$f":"IF(TRIM(Y214)=\"\", \"\", IF(VLOOKUP(Y214,'Footnotes list'!$D$9:$E$58,2,FALSE)=0,\"\",VLOOKUP(Y214,'Footnotes list'!$D$9:$E$58,2,FALSE) ) )","v":""},null,null,null,null,{"$f":"IF(TRIM(AD214)=\"\", \"\", IF(VLOOKUP(AD214,'Footnotes list'!$D$9:$E$58,2,FALSE)=0,\"\",VLOOKUP(AD214,'Footnotes list'!$D$9:$E$58,2,FALSE) ) )","v":""},null,null,null,null,{"$f":"IF(TRIM(AI214)=\"\", \"\", IF(VLOOKUP(AI214,'Footnotes list'!$D$9:$E$58,2,FALSE)=0,\"\",VLOOKUP(AI214,'Footnotes list'!$D$9:$E$58,2,FALSE) ) )","v":""},null,null,null,null,{"$f":"IF(TRIM(AN214)=\"\", \"\", IF(VLOOKUP(AN214,'Footnotes list'!$D$9:$E$58,2,FALSE)=0,\"\",VLOOKUP(AN214,'Footnotes list'!$D$9:$E$58,2,FALSE) ) )","v":""},null,null,null,null,{"$f":"IF(TRIM(AS214)=\"\", \"\", IF(VLOOKUP(AS214,'Footnotes list'!$D$9:$E$58,2,FALSE)=0,\"\",VLOOKUP(AS214,'Footnotes list'!$D$9:$E$58,2,FALSE) ) )","v":""},null,null,null,null,{"$f":"IF(TRIM(AX214)=\"\", \"\", IF(VLOOKUP(AX214,'Footnotes list'!$D$9:$E$58,2,FALSE)=0,\"\",VLOOKUP(AX214,'Footnotes list'!$D$9:$E$58,2,FALSE) ) )","v":""},null,null,null,null,{"$f":"IF(TRIM(BC214)=\"\", \"\", IF(VLOOKUP(BC214,'Footnotes list'!$D$9:$E$58,2,FALSE)=0,\"\",VLOOKUP(BC214,'Footnotes list'!$D$9:$E$58,2,FALSE) ) )","v":""},null,null,null,null,{"$f":"IF(TRIM(BH214)=\"\", \"\", IF(VLOOKUP(BH214,'Footnotes list'!$D$9:$E$58,2,FALSE)=0,\"\",VLOOKUP(BH214,'Footnotes list'!$D$9:$E$58,2,FALSE) ) )","v":""},null,null,null,null,{"$f":"IF(TRIM(BM214)=\"\", \"\", IF(VLOOKUP(BM214,'Footnotes list'!$D$9:$E$58,2,FALSE)=0,\"\",VLOOKUP(BM214,'Footnotes list'!$D$9:$E$58,2,FALSE) ) )","v":""},null,null,null,null,{"$f":"IF(TRIM(BR214)=\"\", \"\", IF(VLOOKUP(BR214,'Footnotes list'!$D$9:$E$58,2,FALSE)=0,\"\",VLOOKUP(BR214,'Footnotes list'!$D$9:$E$58,2,FALSE) ) )","v":""},null,null,null,null,{"$f":"IF(TRIM(BW214)=\"\", \"\", IF(VLOOKUP(BW214,'Footnotes list'!$D$9:$E$58,2,FALSE)=0,\"\",VLOOKUP(BW214,'Footnotes list'!$D$9:$E$58,2,FALSE) ) )","v":""},null,null,null,null,{"$f":"IF(TRIM(CB214)=\"\", \"\", IF(VLOOKUP(CB214,'Footnotes list'!$D$9:$E$58,2,FALSE)=0,\"\",VLOOKUP(CB214,'Footnotes list'!$D$9:$E$58,2,FALSE) ) )","v":""},null,null,null,null,{"$f":"IF(TRIM(CG214)=\"\", \"\", IF(VLOOKUP(CG214,'Footnotes list'!$D$9:$E$58,2,FALSE)=0,\"\",VLOOKUP(CG214,'Footnotes list'!$D$9:$E$58,2,FALSE) ) )","v":""},null,null,null,null,{"$f":"IF(TRIM(CL214)=\"\", \"\", IF(VLOOKUP(CL214,'Footnotes list'!$D$9:$E$58,2,FALSE)=0,\"\",VLOOKUP(CL214,'Footnotes list'!$D$9:$E$58,2,FALSE) ) )","v":""},null,null,null,null,{"$f":"IF(TRIM(CQ214)=\"\", \"\", IF(VLOOKUP(CQ214,'Footnotes list'!$D$9:$E$58,2,FALSE)=0,\"\",VLOOKUP(CQ214,'Footnotes list'!$D$9:$E$58,2,FALSE) ) )","v":""},null,null,null,null,{"$f":"IF(TRIM(CV214)=\"\", \"\", IF(VLOOKUP(CV214,'Footnotes list'!$D$9:$E$58,2,FALSE)=0,\"\",VLOOKUP(CV214,'Footnotes list'!$D$9:$E$58,2,FALSE) ) )","v":""},null,null,null,null,{"$f":"IF(TRIM(DA214)=\"\", \"\", IF(VLOOKUP(DA214,'Footnotes list'!$D$9:$E$58,2,FALSE)=0,\"\",VLOOKUP(DA214,'Footnotes list'!$D$9:$E$58,2,FALSE) ) )","v":""},null,null,null,null,{"$f":"IF(TRIM(DF214)=\"\", \"\", IF(VLOOKUP(DF214,'Footnotes list'!$D$9:$E$58,2,FALSE)=0,\"\",VLOOKUP(DF214,'Footnotes list'!$D$9:$E$58,2,FALSE) ) )","v":""},null,null,null,null,{"$f":"IF(TRIM(DK214)=\"\", \"\", IF(VLOOKUP(DK214,'Footnotes list'!$D$9:$E$58,2,FALSE)=0,\"\",VLOOKUP(DK214,'Footnotes list'!$D$9:$E$58,2,FALSE) ) )","v":""},null,null,null,null,{"$f":"IF(TRIM(DP214)=\"\", \"\", IF(VLOOKUP(DP214,'Footnotes list'!$D$9:$E$58,2,FALSE)=0,\"\",VLOOKUP(DP214,'Footnotes list'!$D$9:$E$58,2,FALSE) ) )","v":""},null,null,null,null,{"$f":"IF(TRIM(DU214)=\"\", \"\", IF(VLOOKUP(DU214,'Footnotes list'!$D$9:$E$58,2,FALSE)=0,\"\",VLOOKUP(DU214,'Footnotes list'!$D$9:$E$58,2,FALSE) ) )","v":""},null,null,null,null,{"$f":"IF(TRIM(DZ214)=\"\", \"\", IF(VLOOKUP(DZ214,'Footnotes list'!$D$9:$E$58,2,FALSE)=0,\"\",VLOOKUP(DZ214,'Footnotes list'!$D$9:$E$58,2,FALSE) ) )","v":""},null,null,null,null,{"$f":"IF(TRIM(EE214)=\"\", \"\", IF(VLOOKUP(EE214,'Footnotes list'!$D$9:$E$58,2,FALSE)=0,\"\",VLOOKUP(EE214,'Footnotes list'!$D$9:$E$58,2,FALSE) ) )","v":""},null,null,null,null,{"$f":"IF(TRIM(EJ214)=\"\", \"\", IF(VLOOKUP(EJ214,'Footnotes list'!$D$9:$E$58,2,FALSE)=0,\"\",VLOOKUP(EJ214,'Footnotes list'!$D$9:$E$58,2,FALSE) ) )","v":""},null,null,null,null,{"$f":"IF(TRIM(EO214)=\"\", \"\", IF(VLOOKUP(EO214,'Footnotes list'!$D$9:$E$58,2,FALSE)=0,\"\",VLOOKUP(EO214,'Footnotes list'!$D$9:$E$58,2,FALSE) ) )","v":""},null,null,null,null,{"$f":"IF(TRIM(ET214)=\"\", \"\", IF(VLOOKUP(ET214,'Footnotes list'!$D$9:$E$58,2,FALSE)=0,\"\",VLOOKUP(ET214,'Footnotes list'!$D$9:$E$58,2,FALSE) ) )","v":""},null,null,null,null,{"$f":"IF(TRIM(EY214)=\"\", \"\", IF(VLOOKUP(EY214,'Footnotes list'!$D$9:$E$58,2,FALSE)=0,\"\",VLOOKUP(EY214,'Footnotes list'!$D$9:$E$58,2,FALSE) ) )","v":""}]
[null,null,"L","MKT","market activities, including:",null,null,null,null,null,{"$f":"IF(TRIM(J215)=\"\", \"\", IF(VLOOKUP(J215,'Footnotes list'!$D$9:$E$58,2,FALSE)=0,\"\",VLOOKUP(J215,'Footnotes list'!$D$9:$E$58,2,FALSE) ) )","v":""},null,null,null,null,{"$f":"IF(TRIM(O215)=\"\", \"\", IF(VLOOKUP(O215,'Footnotes list'!$D$9:$E$58,2,FALSE)=0,\"\",VLOOKUP(O215,'Footnotes list'!$D$9:$E$58,2,FALSE) ) )","v":""},null,null,null,null,{"$f":"IF(TRIM(T215)=\"\", \"\", IF(VLOOKUP(T215,'Footnotes list'!$D$9:$E$58,2,FALSE)=0,\"\",VLOOKUP(T215,'Footnotes list'!$D$9:$E$58,2,FALSE) ) )","v":""},null,null,null,null,{"$f":"IF(TRIM(Y215)=\"\", \"\", IF(VLOOKUP(Y215,'Footnotes list'!$D$9:$E$58,2,FALSE)=0,\"\",VLOOKUP(Y215,'Footnotes list'!$D$9:$E$58,2,FALSE) ) )","v":""},null,null,null,null,{"$f":"IF(TRIM(AD215)=\"\", \"\", IF(VLOOKUP(AD215,'Footnotes list'!$D$9:$E$58,2,FALSE)=0,\"\",VLOOKUP(AD215,'Footnotes list'!$D$9:$E$58,2,FALSE) ) )","v":""},null,null,null,null,{"$f":"IF(TRIM(AI215)=\"\", \"\", IF(VLOOKUP(AI215,'Footnotes list'!$D$9:$E$58,2,FALSE)=0,\"\",VLOOKUP(AI215,'Footnotes list'!$D$9:$E$58,2,FALSE) ) )","v":""},null,null,null,null,{"$f":"IF(TRIM(AN215)=\"\", \"\", IF(VLOOKUP(AN215,'Footnotes list'!$D$9:$E$58,2,FALSE)=0,\"\",VLOOKUP(AN215,'Footnotes list'!$D$9:$E$58,2,FALSE) ) )","v":""},null,null,null,null,{"$f":"IF(TRIM(AS215)=\"\", \"\", IF(VLOOKUP(AS215,'Footnotes list'!$D$9:$E$58,2,FALSE)=0,\"\",VLOOKUP(AS215,'Footnotes list'!$D$9:$E$58,2,FALSE) ) )","v":""},null,null,null,null,{"$f":"IF(TRIM(AX215)=\"\", \"\", IF(VLOOKUP(AX215,'Footnotes list'!$D$9:$E$58,2,FALSE)=0,\"\",VLOOKUP(AX215,'Footnotes list'!$D$9:$E$58,2,FALSE) ) )","v":""},null,null,null,null,{"$f":"IF(TRIM(BC215)=\"\", \"\", IF(VLOOKUP(BC215,'Footnotes list'!$D$9:$E$58,2,FALSE)=0,\"\",VLOOKUP(BC215,'Footnotes list'!$D$9:$E$58,2,FALSE) ) )","v":""},null,null,null,null,{"$f":"IF(TRIM(BH215)=\"\", \"\", IF(VLOOKUP(BH215,'Footnotes list'!$D$9:$E$58,2,FALSE)=0,\"\",VLOOKUP(BH215,'Footnotes list'!$D$9:$E$58,2,FALSE) ) )","v":""},null,null,null,null,{"$f":"IF(TRIM(BM215)=\"\", \"\", IF(VLOOKUP(BM215,'Footnotes list'!$D$9:$E$58,2,FALSE)=0,\"\",VLOOKUP(BM215,'Footnotes list'!$D$9:$E$58,2,FALSE) ) )","v":""},null,null,null,null,{"$f":"IF(TRIM(BR215)=\"\", \"\", IF(VLOOKUP(BR215,'Footnotes list'!$D$9:$E$58,2,FALSE)=0,\"\",VLOOKUP(BR215,'Footnotes list'!$D$9:$E$58,2,FALSE) ) )","v":""},null,null,null,null,{"$f":"IF(TRIM(BW215)=\"\", \"\", IF(VLOOKUP(BW215,'Footnotes list'!$D$9:$E$58,2,FALSE)=0,\"\",VLOOKUP(BW215,'Footnotes list'!$D$9:$E$58,2,FALSE) ) )","v":""},null,null,null,null,{"$f":"IF(TRIM(CB215)=\"\", \"\", IF(VLOOKUP(CB215,'Footnotes list'!$D$9:$E$58,2,FALSE)=0,\"\",VLOOKUP(CB215,'Footnotes list'!$D$9:$E$58,2,FALSE) ) )","v":""},null,null,null,null,{"$f":"IF(TRIM(CG215)=\"\", \"\", IF(VLOOKUP(CG215,'Footnotes list'!$D$9:$E$58,2,FALSE)=0,\"\",VLOOKUP(CG215,'Footnotes list'!$D$9:$E$58,2,FALSE) ) )","v":""},null,null,null,null,{"$f":"IF(TRIM(CL215)=\"\", \"\", IF(VLOOKUP(CL215,'Footnotes list'!$D$9:$E$58,2,FALSE)=0,\"\",VLOOKUP(CL215,'Footnotes list'!$D$9:$E$58,2,FALSE) ) )","v":""},null,null,null,null,{"$f":"IF(TRIM(CQ215)=\"\", \"\", IF(VLOOKUP(CQ215,'Footnotes list'!$D$9:$E$58,2,FALSE)=0,\"\",VLOOKUP(CQ215,'Footnotes list'!$D$9:$E$58,2,FALSE) ) )","v":""},null,null,null,null,{"$f":"IF(TRIM(CV215)=\"\", \"\", IF(VLOOKUP(CV215,'Footnotes list'!$D$9:$E$58,2,FALSE)=0,\"\",VLOOKUP(CV215,'Footnotes list'!$D$9:$E$58,2,FALSE) ) )","v":""},null,null,null,null,{"$f":"IF(TRIM(DA215)=\"\", \"\", IF(VLOOKUP(DA215,'Footnotes list'!$D$9:$E$58,2,FALSE)=0,\"\",VLOOKUP(DA215,'Footnotes list'!$D$9:$E$58,2,FALSE) ) )","v":""},null,null,null,null,{"$f":"IF(TRIM(DF215)=\"\", \"\", IF(VLOOKUP(DF215,'Footnotes list'!$D$9:$E$58,2,FALSE)=0,\"\",VLOOKUP(DF215,'Footnotes list'!$D$9:$E$58,2,FALSE) ) )","v":""},null,null,null,null,{"$f":"IF(TRIM(DK215)=\"\", \"\", IF(VLOOKUP(DK215,'Footnotes list'!$D$9:$E$58,2,FALSE)=0,\"\",VLOOKUP(DK215,'Footnotes list'!$D$9:$E$58,2,FALSE) ) )","v":""},null,null,null,null,{"$f":"IF(TRIM(DP215)=\"\", \"\", IF(VLOOKUP(DP215,'Footnotes list'!$D$9:$E$58,2,FALSE)=0,\"\",VLOOKUP(DP215,'Footnotes list'!$D$9:$E$58,2,FALSE) ) )","v":""},null,null,null,null,{"$f":"IF(TRIM(DU215)=\"\", \"\", IF(VLOOKUP(DU215,'Footnotes list'!$D$9:$E$58,2,FALSE)=0,\"\",VLOOKUP(DU215,'Footnotes list'!$D$9:$E$58,2,FALSE) ) )","v":""},null,null,null,null,{"$f":"IF(TRIM(DZ215)=\"\", \"\", IF(VLOOKUP(DZ215,'Footnotes list'!$D$9:$E$58,2,FALSE)=0,\"\",VLOOKUP(DZ215,'Footnotes list'!$D$9:$E$58,2,FALSE) ) )","v":""},null,null,null,null,{"$f":"IF(TRIM(EE215)=\"\", \"\", IF(VLOOKUP(EE215,'Footnotes list'!$D$9:$E$58,2,FALSE)=0,\"\",VLOOKUP(EE215,'Footnotes list'!$D$9:$E$58,2,FALSE) ) )","v":""},null,null,null,null,{"$f":"IF(TRIM(EJ215)=\"\", \"\", IF(VLOOKUP(EJ215,'Footnotes list'!$D$9:$E$58,2,FALSE)=0,\"\",VLOOKUP(EJ215,'Footnotes list'!$D$9:$E$58,2,FALSE) ) )","v":""},null,null,null,null,{"$f":"IF(TRIM(EO215)=\"\", \"\", IF(VLOOKUP(EO215,'Footnotes list'!$D$9:$E$58,2,FALSE)=0,\"\",VLOOKUP(EO215,'Footnotes list'!$D$9:$E$58,2,FALSE) ) )","v":""},null,null,null,null,{"$f":"IF(TRIM(ET215)=\"\", \"\", IF(VLOOKUP(ET215,'Footnotes list'!$D$9:$E$58,2,FALSE)=0,\"\",VLOOKUP(ET215,'Footnotes list'!$D$9:$E$58,2,FALSE) ) )","v":""},null,null,null,null,{"$f":"IF(TRIM(EY215)=\"\", \"\", IF(VLOOKUP(EY215,'Footnotes list'!$D$9:$E$58,2,FALSE)=0,\"\",VLOOKUP(EY215,'Footnotes list'!$D$9:$E$58,2,FALSE) ) )","v":""}]
[null,null,"L","ES_CS","environmental specific services",null,null,null,null,null,{"$f":"IF(TRIM(J216)=\"\", \"\", IF(VLOOKUP(J216,'Footnotes list'!$D$9:$E$58,2,FALSE)=0,\"\",VLOOKUP(J216,'Footnotes list'!$D$9:$E$58,2,FALSE) ) )","v":""},null,null,null,null,{"$f":"IF(TRIM(O216)=\"\", \"\", IF(VLOOKUP(O216,'Footnotes list'!$D$9:$E$58,2,FALSE)=0,\"\",VLOOKUP(O216,'Footnotes list'!$D$9:$E$58,2,FALSE) ) )","v":""},null,null,null,null,{"$f":"IF(TRIM(T216)=\"\", \"\", IF(VLOOKUP(T216,'Footnotes list'!$D$9:$E$58,2,FALSE)=0,\"\",VLOOKUP(T216,'Footnotes list'!$D$9:$E$58,2,FALSE) ) )","v":""},null,null,null,null,{"$f":"IF(TRIM(Y216)=\"\", \"\", IF(VLOOKUP(Y216,'Footnotes list'!$D$9:$E$58,2,FALSE)=0,\"\",VLOOKUP(Y216,'Footnotes list'!$D$9:$E$58,2,FALSE) ) )","v":""},null,null,null,null,{"$f":"IF(TRIM(AD216)=\"\", \"\", IF(VLOOKUP(AD216,'Footnotes list'!$D$9:$E$58,2,FALSE)=0,\"\",VLOOKUP(AD216,'Footnotes list'!$D$9:$E$58,2,FALSE) ) )","v":""},null,null,null,null,{"$f":"IF(TRIM(AI216)=\"\", \"\", IF(VLOOKUP(AI216,'Footnotes list'!$D$9:$E$58,2,FALSE)=0,\"\",VLOOKUP(AI216,'Footnotes list'!$D$9:$E$58,2,FALSE) ) )","v":""},null,null,null,null,{"$f":"IF(TRIM(AN216)=\"\", \"\", IF(VLOOKUP(AN216,'Footnotes list'!$D$9:$E$58,2,FALSE)=0,\"\",VLOOKUP(AN216,'Footnotes list'!$D$9:$E$58,2,FALSE) ) )","v":""},null,null,null,null,{"$f":"IF(TRIM(AS216)=\"\", \"\", IF(VLOOKUP(AS216,'Footnotes list'!$D$9:$E$58,2,FALSE)=0,\"\",VLOOKUP(AS216,'Footnotes list'!$D$9:$E$58,2,FALSE) ) )","v":""},null,null,null,null,{"$f":"IF(TRIM(AX216)=\"\", \"\", IF(VLOOKUP(AX216,'Footnotes list'!$D$9:$E$58,2,FALSE)=0,\"\",VLOOKUP(AX216,'Footnotes list'!$D$9:$E$58,2,FALSE) ) )","v":""},null,null,null,null,{"$f":"IF(TRIM(BC216)=\"\", \"\", IF(VLOOKUP(BC216,'Footnotes list'!$D$9:$E$58,2,FALSE)=0,\"\",VLOOKUP(BC216,'Footnotes list'!$D$9:$E$58,2,FALSE) ) )","v":""},null,null,null,null,{"$f":"IF(TRIM(BH216)=\"\", \"\", IF(VLOOKUP(BH216,'Footnotes list'!$D$9:$E$58,2,FALSE)=0,\"\",VLOOKUP(BH216,'Footnotes list'!$D$9:$E$58,2,FALSE) ) )","v":""},null,null,null,null,{"$f":"IF(TRIM(BM216)=\"\", \"\", IF(VLOOKUP(BM216,'Footnotes list'!$D$9:$E$58,2,FALSE)=0,\"\",VLOOKUP(BM216,'Footnotes list'!$D$9:$E$58,2,FALSE) ) )","v":""},null,null,null,null,{"$f":"IF(TRIM(BR216)=\"\", \"\", IF(VLOOKUP(BR216,'Footnotes list'!$D$9:$E$58,2,FALSE)=0,\"\",VLOOKUP(BR216,'Footnotes list'!$D$9:$E$58,2,FALSE) ) )","v":""},null,null,null,null,{"$f":"IF(TRIM(BW216)=\"\", \"\", IF(VLOOKUP(BW216,'Footnotes list'!$D$9:$E$58,2,FALSE)=0,\"\",VLOOKUP(BW216,'Footnotes list'!$D$9:$E$58,2,FALSE) ) )","v":""},null,null,null,null,{"$f":"IF(TRIM(CB216)=\"\", \"\", IF(VLOOKUP(CB216,'Footnotes list'!$D$9:$E$58,2,FALSE)=0,\"\",VLOOKUP(CB216,'Footnotes list'!$D$9:$E$58,2,FALSE) ) )","v":""},null,null,null,null,{"$f":"IF(TRIM(CG216)=\"\", \"\", IF(VLOOKUP(CG216,'Footnotes list'!$D$9:$E$58,2,FALSE)=0,\"\",VLOOKUP(CG216,'Footnotes list'!$D$9:$E$58,2,FALSE) ) )","v":""},null,null,null,null,{"$f":"IF(TRIM(CL216)=\"\", \"\", IF(VLOOKUP(CL216,'Footnotes list'!$D$9:$E$58,2,FALSE)=0,\"\",VLOOKUP(CL216,'Footnotes list'!$D$9:$E$58,2,FALSE) ) )","v":""},null,null,null,null,{"$f":"IF(TRIM(CQ216)=\"\", \"\", IF(VLOOKUP(CQ216,'Footnotes list'!$D$9:$E$58,2,FALSE)=0,\"\",VLOOKUP(CQ216,'Footnotes list'!$D$9:$E$58,2,FALSE) ) )","v":""},null,null,null,null,{"$f":"IF(TRIM(CV216)=\"\", \"\", IF(VLOOKUP(CV216,'Footnotes list'!$D$9:$E$58,2,FALSE)=0,\"\",VLOOKUP(CV216,'Footnotes list'!$D$9:$E$58,2,FALSE) ) )","v":""},null,null,null,null,{"$f":"IF(TRIM(DA216)=\"\", \"\", IF(VLOOKUP(DA216,'Footnotes list'!$D$9:$E$58,2,FALSE)=0,\"\",VLOOKUP(DA216,'Footnotes list'!$D$9:$E$58,2,FALSE) ) )","v":""},null,null,null,null,{"$f":"IF(TRIM(DF216)=\"\", \"\", IF(VLOOKUP(DF216,'Footnotes list'!$D$9:$E$58,2,FALSE)=0,\"\",VLOOKUP(DF216,'Footnotes list'!$D$9:$E$58,2,FALSE) ) )","v":""},null,null,null,null,{"$f":"IF(TRIM(DK216)=\"\", \"\", IF(VLOOKUP(DK216,'Footnotes list'!$D$9:$E$58,2,FALSE)=0,\"\",VLOOKUP(DK216,'Footnotes list'!$D$9:$E$58,2,FALSE) ) )","v":""},null,null,null,null,{"$f":"IF(TRIM(DP216)=\"\", \"\", IF(VLOOKUP(DP216,'Footnotes list'!$D$9:$E$58,2,FALSE)=0,\"\",VLOOKUP(DP216,'Footnotes list'!$D$9:$E$58,2,FALSE) ) )","v":""},null,null,null,null,{"$f":"IF(TRIM(DU216)=\"\", \"\", IF(VLOOKUP(DU216,'Footnotes list'!$D$9:$E$58,2,FALSE)=0,\"\",VLOOKUP(DU216,'Footnotes list'!$D$9:$E$58,2,FALSE) ) )","v":""},null,null,null,null,{"$f":"IF(TRIM(DZ216)=\"\", \"\", IF(VLOOKUP(DZ216,'Footnotes list'!$D$9:$E$58,2,FALSE)=0,\"\",VLOOKUP(DZ216,'Footnotes list'!$D$9:$E$58,2,FALSE) ) )","v":""},null,null,null,null,{"$f":"IF(TRIM(EE216)=\"\", \"\", IF(VLOOKUP(EE216,'Footnotes list'!$D$9:$E$58,2,FALSE)=0,\"\",VLOOKUP(EE216,'Footnotes list'!$D$9:$E$58,2,FALSE) ) )","v":""},null,null,null,null,{"$f":"IF(TRIM(EJ216)=\"\", \"\", IF(VLOOKUP(EJ216,'Footnotes list'!$D$9:$E$58,2,FALSE)=0,\"\",VLOOKUP(EJ216,'Footnotes list'!$D$9:$E$58,2,FALSE) ) )","v":""},null,null,null,null,{"$f":"IF(TRIM(EO216)=\"\", \"\", IF(VLOOKUP(EO216,'Footnotes list'!$D$9:$E$58,2,FALSE)=0,\"\",VLOOKUP(EO216,'Footnotes list'!$D$9:$E$58,2,FALSE) ) )","v":""},null,null,null,null,{"$f":"IF(TRIM(ET216)=\"\", \"\", IF(VLOOKUP(ET216,'Footnotes list'!$D$9:$E$58,2,FALSE)=0,\"\",VLOOKUP(ET216,'Footnotes list'!$D$9:$E$58,2,FALSE) ) )","v":""},null,null,null,null,{"$f":"IF(TRIM(EY216)=\"\", \"\", IF(VLOOKUP(EY216,'Footnotes list'!$D$9:$E$58,2,FALSE)=0,\"\",VLOOKUP(EY216,'Footnotes list'!$D$9:$E$58,2,FALSE) ) )","v":""}]
[null,null,"L","C_REP","cleaner and resource efficient products",null,null,null,null,null,{"$f":"IF(TRIM(J217)=\"\", \"\", IF(VLOOKUP(J217,'Footnotes list'!$D$9:$E$58,2,FALSE)=0,\"\",VLOOKUP(J217,'Footnotes list'!$D$9:$E$58,2,FALSE) ) )","v":""},null,null,null,null,{"$f":"IF(TRIM(O217)=\"\", \"\", IF(VLOOKUP(O217,'Footnotes list'!$D$9:$E$58,2,FALSE)=0,\"\",VLOOKUP(O217,'Footnotes list'!$D$9:$E$58,2,FALSE) ) )","v":""},null,null,null,null,{"$f":"IF(TRIM(T217)=\"\", \"\", IF(VLOOKUP(T217,'Footnotes list'!$D$9:$E$58,2,FALSE)=0,\"\",VLOOKUP(T217,'Footnotes list'!$D$9:$E$58,2,FALSE) ) )","v":""},null,null,null,null,{"$f":"IF(TRIM(Y217)=\"\", \"\", IF(VLOOKUP(Y217,'Footnotes list'!$D$9:$E$58,2,FALSE)=0,\"\",VLOOKUP(Y217,'Footnotes list'!$D$9:$E$58,2,FALSE) ) )","v":""},null,null,null,null,{"$f":"IF(TRIM(AD217)=\"\", \"\", IF(VLOOKUP(AD217,'Footnotes list'!$D$9:$E$58,2,FALSE)=0,\"\",VLOOKUP(AD217,'Footnotes list'!$D$9:$E$58,2,FALSE) ) )","v":""},null,null,null,null,{"$f":"IF(TRIM(AI217)=\"\", \"\", IF(VLOOKUP(AI217,'Footnotes list'!$D$9:$E$58,2,FALSE)=0,\"\",VLOOKUP(AI217,'Footnotes list'!$D$9:$E$58,2,FALSE) ) )","v":""},null,null,null,null,{"$f":"IF(TRIM(AN217)=\"\", \"\", IF(VLOOKUP(AN217,'Footnotes list'!$D$9:$E$58,2,FALSE)=0,\"\",VLOOKUP(AN217,'Footnotes list'!$D$9:$E$58,2,FALSE) ) )","v":""},null,null,null,null,{"$f":"IF(TRIM(AS217)=\"\", \"\", IF(VLOOKUP(AS217,'Footnotes list'!$D$9:$E$58,2,FALSE)=0,\"\",VLOOKUP(AS217,'Footnotes list'!$D$9:$E$58,2,FALSE) ) )","v":""},null,null,null,null,{"$f":"IF(TRIM(AX217)=\"\", \"\", IF(VLOOKUP(AX217,'Footnotes list'!$D$9:$E$58,2,FALSE)=0,\"\",VLOOKUP(AX217,'Footnotes list'!$D$9:$E$58,2,FALSE) ) )","v":""},null,null,null,null,{"$f":"IF(TRIM(BC217)=\"\", \"\", IF(VLOOKUP(BC217,'Footnotes list'!$D$9:$E$58,2,FALSE)=0,\"\",VLOOKUP(BC217,'Footnotes list'!$D$9:$E$58,2,FALSE) ) )","v":""},null,null,null,null,{"$f":"IF(TRIM(BH217)=\"\", \"\", IF(VLOOKUP(BH217,'Footnotes list'!$D$9:$E$58,2,FALSE)=0,\"\",VLOOKUP(BH217,'Footnotes list'!$D$9:$E$58,2,FALSE) ) )","v":""},null,null,null,null,{"$f":"IF(TRIM(BM217)=\"\", \"\", IF(VLOOKUP(BM217,'Footnotes list'!$D$9:$E$58,2,FALSE)=0,\"\",VLOOKUP(BM217,'Footnotes list'!$D$9:$E$58,2,FALSE) ) )","v":""},null,null,null,null,{"$f":"IF(TRIM(BR217)=\"\", \"\", IF(VLOOKUP(BR217,'Footnotes list'!$D$9:$E$58,2,FALSE)=0,\"\",VLOOKUP(BR217,'Footnotes list'!$D$9:$E$58,2,FALSE) ) )","v":""},null,null,null,null,{"$f":"IF(TRIM(BW217)=\"\", \"\", IF(VLOOKUP(BW217,'Footnotes list'!$D$9:$E$58,2,FALSE)=0,\"\",VLOOKUP(BW217,'Footnotes list'!$D$9:$E$58,2,FALSE) ) )","v":""},null,null,null,null,{"$f":"IF(TRIM(CB217)=\"\", \"\", IF(VLOOKUP(CB217,'Footnotes list'!$D$9:$E$58,2,FALSE)=0,\"\",VLOOKUP(CB217,'Footnotes list'!$D$9:$E$58,2,FALSE) ) )","v":""},null,null,null,null,{"$f":"IF(TRIM(CG217)=\"\", \"\", IF(VLOOKUP(CG217,'Footnotes list'!$D$9:$E$58,2,FALSE)=0,\"\",VLOOKUP(CG217,'Footnotes list'!$D$9:$E$58,2,FALSE) ) )","v":""},null,null,null,null,{"$f":"IF(TRIM(CL217)=\"\", \"\", IF(VLOOKUP(CL217,'Footnotes list'!$D$9:$E$58,2,FALSE)=0,\"\",VLOOKUP(CL217,'Footnotes list'!$D$9:$E$58,2,FALSE) ) )","v":""},null,null,null,null,{"$f":"IF(TRIM(CQ217)=\"\", \"\", IF(VLOOKUP(CQ217,'Footnotes list'!$D$9:$E$58,2,FALSE)=0,\"\",VLOOKUP(CQ217,'Footnotes list'!$D$9:$E$58,2,FALSE) ) )","v":""},null,null,null,null,{"$f":"IF(TRIM(CV217)=\"\", \"\", IF(VLOOKUP(CV217,'Footnotes list'!$D$9:$E$58,2,FALSE)=0,\"\",VLOOKUP(CV217,'Footnotes list'!$D$9:$E$58,2,FALSE) ) )","v":""},null,null,null,null,{"$f":"IF(TRIM(DA217)=\"\", \"\", IF(VLOOKUP(DA217,'Footnotes list'!$D$9:$E$58,2,FALSE)=0,\"\",VLOOKUP(DA217,'Footnotes list'!$D$9:$E$58,2,FALSE) ) )","v":""},null,null,null,null,{"$f":"IF(TRIM(DF217)=\"\", \"\", IF(VLOOKUP(DF217,'Footnotes list'!$D$9:$E$58,2,FALSE)=0,\"\",VLOOKUP(DF217,'Footnotes list'!$D$9:$E$58,2,FALSE) ) )","v":""},null,null,null,null,{"$f":"IF(TRIM(DK217)=\"\", \"\", IF(VLOOKUP(DK217,'Footnotes list'!$D$9:$E$58,2,FALSE)=0,\"\",VLOOKUP(DK217,'Footnotes list'!$D$9:$E$58,2,FALSE) ) )","v":""},null,null,null,null,{"$f":"IF(TRIM(DP217)=\"\", \"\", IF(VLOOKUP(DP217,'Footnotes list'!$D$9:$E$58,2,FALSE)=0,\"\",VLOOKUP(DP217,'Footnotes list'!$D$9:$E$58,2,FALSE) ) )","v":""},null,null,null,null,{"$f":"IF(TRIM(DU217)=\"\", \"\", IF(VLOOKUP(DU217,'Footnotes list'!$D$9:$E$58,2,FALSE)=0,\"\",VLOOKUP(DU217,'Footnotes list'!$D$9:$E$58,2,FALSE) ) )","v":""},null,null,null,null,{"$f":"IF(TRIM(DZ217)=\"\", \"\", IF(VLOOKUP(DZ217,'Footnotes list'!$D$9:$E$58,2,FALSE)=0,\"\",VLOOKUP(DZ217,'Footnotes list'!$D$9:$E$58,2,FALSE) ) )","v":""},null,null,null,null,{"$f":"IF(TRIM(EE217)=\"\", \"\", IF(VLOOKUP(EE217,'Footnotes list'!$D$9:$E$58,2,FALSE)=0,\"\",VLOOKUP(EE217,'Footnotes list'!$D$9:$E$58,2,FALSE) ) )","v":""},null,null,null,null,{"$f":"IF(TRIM(EJ217)=\"\", \"\", IF(VLOOKUP(EJ217,'Footnotes list'!$D$9:$E$58,2,FALSE)=0,\"\",VLOOKUP(EJ217,'Footnotes list'!$D$9:$E$58,2,FALSE) ) )","v":""},null,null,null,null,{"$f":"IF(TRIM(EO217)=\"\", \"\", IF(VLOOKUP(EO217,'Footnotes list'!$D$9:$E$58,2,FALSE)=0,\"\",VLOOKUP(EO217,'Footnotes list'!$D$9:$E$58,2,FALSE) ) )","v":""},null,null,null,null,{"$f":"IF(TRIM(ET217)=\"\", \"\", IF(VLOOKUP(ET217,'Footnotes list'!$D$9:$E$58,2,FALSE)=0,\"\",VLOOKUP(ET217,'Footnotes list'!$D$9:$E$58,2,FALSE) ) )","v":""},null,null,null,null,{"$f":"IF(TRIM(EY217)=\"\", \"\", IF(VLOOKUP(EY217,'Footnotes list'!$D$9:$E$58,2,FALSE)=0,\"\",VLOOKUP(EY217,'Footnotes list'!$D$9:$E$58,2,FALSE) ) )","v":""}]
[null,null,"M","TOT_EGSS","Total M - Professional, scientific and technical activities, of which:",null,null,null,null,null,{"$f":"IF(TRIM(J218)=\"\", \"\", IF(VLOOKUP(J218,'Footnotes list'!$D$9:$E$58,2,FALSE)=0,\"\",VLOOKUP(J218,'Footnotes list'!$D$9:$E$58,2,FALSE) ) )","v":""},null,null,null,null,{"$f":"IF(TRIM(O218)=\"\", \"\", IF(VLOOKUP(O218,'Footnotes list'!$D$9:$E$58,2,FALSE)=0,\"\",VLOOKUP(O218,'Footnotes list'!$D$9:$E$58,2,FALSE) ) )","v":""},null,null,null,null,{"$f":"IF(TRIM(T218)=\"\", \"\", IF(VLOOKUP(T218,'Footnotes list'!$D$9:$E$58,2,FALSE)=0,\"\",VLOOKUP(T218,'Footnotes list'!$D$9:$E$58,2,FALSE) ) )","v":""},null,null,null,null,{"$f":"IF(TRIM(Y218)=\"\", \"\", IF(VLOOKUP(Y218,'Footnotes list'!$D$9:$E$58,2,FALSE)=0,\"\",VLOOKUP(Y218,'Footnotes list'!$D$9:$E$58,2,FALSE) ) )","v":""},null,null,null,null,{"$f":"IF(TRIM(AD218)=\"\", \"\", IF(VLOOKUP(AD218,'Footnotes list'!$D$9:$E$58,2,FALSE)=0,\"\",VLOOKUP(AD218,'Footnotes list'!$D$9:$E$58,2,FALSE) ) )","v":""},null,null,null,null,{"$f":"IF(TRIM(AI218)=\"\", \"\", IF(VLOOKUP(AI218,'Footnotes list'!$D$9:$E$58,2,FALSE)=0,\"\",VLOOKUP(AI218,'Footnotes list'!$D$9:$E$58,2,FALSE) ) )","v":""},null,null,null,null,{"$f":"IF(TRIM(AN218)=\"\", \"\", IF(VLOOKUP(AN218,'Footnotes list'!$D$9:$E$58,2,FALSE)=0,\"\",VLOOKUP(AN218,'Footnotes list'!$D$9:$E$58,2,FALSE) ) )","v":""},null,null,null,null,{"$f":"IF(TRIM(AS218)=\"\", \"\", IF(VLOOKUP(AS218,'Footnotes list'!$D$9:$E$58,2,FALSE)=0,\"\",VLOOKUP(AS218,'Footnotes list'!$D$9:$E$58,2,FALSE) ) )","v":""},null,null,null,null,{"$f":"IF(TRIM(AX218)=\"\", \"\", IF(VLOOKUP(AX218,'Footnotes list'!$D$9:$E$58,2,FALSE)=0,\"\",VLOOKUP(AX218,'Footnotes list'!$D$9:$E$58,2,FALSE) ) )","v":""},null,null,null,null,{"$f":"IF(TRIM(BC218)=\"\", \"\", IF(VLOOKUP(BC218,'Footnotes list'!$D$9:$E$58,2,FALSE)=0,\"\",VLOOKUP(BC218,'Footnotes list'!$D$9:$E$58,2,FALSE) ) )","v":""},null,null,null,null,{"$f":"IF(TRIM(BH218)=\"\", \"\", IF(VLOOKUP(BH218,'Footnotes list'!$D$9:$E$58,2,FALSE)=0,\"\",VLOOKUP(BH218,'Footnotes list'!$D$9:$E$58,2,FALSE) ) )","v":""},null,null,null,null,{"$f":"IF(TRIM(BM218)=\"\", \"\", IF(VLOOKUP(BM218,'Footnotes list'!$D$9:$E$58,2,FALSE)=0,\"\",VLOOKUP(BM218,'Footnotes list'!$D$9:$E$58,2,FALSE) ) )","v":""},null,null,null,null,{"$f":"IF(TRIM(BR218)=\"\", \"\", IF(VLOOKUP(BR218,'Footnotes list'!$D$9:$E$58,2,FALSE)=0,\"\",VLOOKUP(BR218,'Footnotes list'!$D$9:$E$58,2,FALSE) ) )","v":""},null,null,null,null,{"$f":"IF(TRIM(BW218)=\"\", \"\", IF(VLOOKUP(BW218,'Footnotes list'!$D$9:$E$58,2,FALSE)=0,\"\",VLOOKUP(BW218,'Footnotes list'!$D$9:$E$58,2,FALSE) ) )","v":""},null,null,null,null,{"$f":"IF(TRIM(CB218)=\"\", \"\", IF(VLOOKUP(CB218,'Footnotes list'!$D$9:$E$58,2,FALSE)=0,\"\",VLOOKUP(CB218,'Footnotes list'!$D$9:$E$58,2,FALSE) ) )","v":""},null,null,null,null,{"$f":"IF(TRIM(CG218)=\"\", \"\", IF(VLOOKUP(CG218,'Footnotes list'!$D$9:$E$58,2,FALSE)=0,\"\",VLOOKUP(CG218,'Footnotes list'!$D$9:$E$58,2,FALSE) ) )","v":""},null,null,null,null,{"$f":"IF(TRIM(CL218)=\"\", \"\", IF(VLOOKUP(CL218,'Footnotes list'!$D$9:$E$58,2,FALSE)=0,\"\",VLOOKUP(CL218,'Footnotes list'!$D$9:$E$58,2,FALSE) ) )","v":""},null,null,null,null,{"$f":"IF(TRIM(CQ218)=\"\", \"\", IF(VLOOKUP(CQ218,'Footnotes list'!$D$9:$E$58,2,FALSE)=0,\"\",VLOOKUP(CQ218,'Footnotes list'!$D$9:$E$58,2,FALSE) ) )","v":""},null,null,null,null,{"$f":"IF(TRIM(CV218)=\"\", \"\", IF(VLOOKUP(CV218,'Footnotes list'!$D$9:$E$58,2,FALSE)=0,\"\",VLOOKUP(CV218,'Footnotes list'!$D$9:$E$58,2,FALSE) ) )","v":""},null,null,null,null,{"$f":"IF(TRIM(DA218)=\"\", \"\", IF(VLOOKUP(DA218,'Footnotes list'!$D$9:$E$58,2,FALSE)=0,\"\",VLOOKUP(DA218,'Footnotes list'!$D$9:$E$58,2,FALSE) ) )","v":""},null,null,null,null,{"$f":"IF(TRIM(DF218)=\"\", \"\", IF(VLOOKUP(DF218,'Footnotes list'!$D$9:$E$58,2,FALSE)=0,\"\",VLOOKUP(DF218,'Footnotes list'!$D$9:$E$58,2,FALSE) ) )","v":""},null,null,null,null,{"$f":"IF(TRIM(DK218)=\"\", \"\", IF(VLOOKUP(DK218,'Footnotes list'!$D$9:$E$58,2,FALSE)=0,\"\",VLOOKUP(DK218,'Footnotes list'!$D$9:$E$58,2,FALSE) ) )","v":""},null,null,null,null,{"$f":"IF(TRIM(DP218)=\"\", \"\", IF(VLOOKUP(DP218,'Footnotes list'!$D$9:$E$58,2,FALSE)=0,\"\",VLOOKUP(DP218,'Footnotes list'!$D$9:$E$58,2,FALSE) ) )","v":""},null,null,null,null,{"$f":"IF(TRIM(DU218)=\"\", \"\", IF(VLOOKUP(DU218,'Footnotes list'!$D$9:$E$58,2,FALSE)=0,\"\",VLOOKUP(DU218,'Footnotes list'!$D$9:$E$58,2,FALSE) ) )","v":""},null,null,null,null,{"$f":"IF(TRIM(DZ218)=\"\", \"\", IF(VLOOKUP(DZ218,'Footnotes list'!$D$9:$E$58,2,FALSE)=0,\"\",VLOOKUP(DZ218,'Footnotes list'!$D$9:$E$58,2,FALSE) ) )","v":""},null,null,null,null,{"$f":"IF(TRIM(EE218)=\"\", \"\", IF(VLOOKUP(EE218,'Footnotes list'!$D$9:$E$58,2,FALSE)=0,\"\",VLOOKUP(EE218,'Footnotes list'!$D$9:$E$58,2,FALSE) ) )","v":""},null,null,null,null,{"$f":"IF(TRIM(EJ218)=\"\", \"\", IF(VLOOKUP(EJ218,'Footnotes list'!$D$9:$E$58,2,FALSE)=0,\"\",VLOOKUP(EJ218,'Footnotes list'!$D$9:$E$58,2,FALSE) ) )","v":""},null,null,null,null,{"$f":"IF(TRIM(EO218)=\"\", \"\", IF(VLOOKUP(EO218,'Footnotes list'!$D$9:$E$58,2,FALSE)=0,\"\",VLOOKUP(EO218,'Footnotes list'!$D$9:$E$58,2,FALSE) ) )","v":""},null,null,null,null,{"$f":"IF(TRIM(ET218)=\"\", \"\", IF(VLOOKUP(ET218,'Footnotes list'!$D$9:$E$58,2,FALSE)=0,\"\",VLOOKUP(ET218,'Footnotes list'!$D$9:$E$58,2,FALSE) ) )","v":""},null,null,null,null,{"$f":"IF(TRIM(EY218)=\"\", \"\", IF(VLOOKUP(EY218,'Footnotes list'!$D$9:$E$58,2,FALSE)=0,\"\",VLOOKUP(EY218,'Footnotes list'!$D$9:$E$58,2,FALSE) ) )","v":""}]
[null,null,"M","ANC","ancillary activities",null,null,null,null,null,{"$f":"IF(TRIM(J219)=\"\", \"\", IF(VLOOKUP(J219,'Footnotes list'!$D$9:$E$58,2,FALSE)=0,\"\",VLOOKUP(J219,'Footnotes list'!$D$9:$E$58,2,FALSE) ) )","v":""},null,null,null,null,{"$f":"IF(TRIM(O219)=\"\", \"\", IF(VLOOKUP(O219,'Footnotes list'!$D$9:$E$58,2,FALSE)=0,\"\",VLOOKUP(O219,'Footnotes list'!$D$9:$E$58,2,FALSE) ) )","v":""},null,null,null,null,{"$f":"IF(TRIM(T219)=\"\", \"\", IF(VLOOKUP(T219,'Footnotes list'!$D$9:$E$58,2,FALSE)=0,\"\",VLOOKUP(T219,'Footnotes list'!$D$9:$E$58,2,FALSE) ) )","v":""},null,null,null,null,{"$f":"IF(TRIM(Y219)=\"\", \"\", IF(VLOOKUP(Y219,'Footnotes list'!$D$9:$E$58,2,FALSE)=0,\"\",VLOOKUP(Y219,'Footnotes list'!$D$9:$E$58,2,FALSE) ) )","v":""},null,null,null,null,{"$f":"IF(TRIM(AD219)=\"\", \"\", IF(VLOOKUP(AD219,'Footnotes list'!$D$9:$E$58,2,FALSE)=0,\"\",VLOOKUP(AD219,'Footnotes list'!$D$9:$E$58,2,FALSE) ) )","v":""},null,null,null,null,{"$f":"IF(TRIM(AI219)=\"\", \"\", IF(VLOOKUP(AI219,'Footnotes list'!$D$9:$E$58,2,FALSE)=0,\"\",VLOOKUP(AI219,'Footnotes list'!$D$9:$E$58,2,FALSE) ) )","v":""},null,null,null,null,{"$f":"IF(TRIM(AN219)=\"\", \"\", IF(VLOOKUP(AN219,'Footnotes list'!$D$9:$E$58,2,FALSE)=0,\"\",VLOOKUP(AN219,'Footnotes list'!$D$9:$E$58,2,FALSE) ) )","v":""},null,null,null,null,{"$f":"IF(TRIM(AS219)=\"\", \"\", IF(VLOOKUP(AS219,'Footnotes list'!$D$9:$E$58,2,FALSE)=0,\"\",VLOOKUP(AS219,'Footnotes list'!$D$9:$E$58,2,FALSE) ) )","v":""},null,null,null,null,{"$f":"IF(TRIM(AX219)=\"\", \"\", IF(VLOOKUP(AX219,'Footnotes list'!$D$9:$E$58,2,FALSE)=0,\"\",VLOOKUP(AX219,'Footnotes list'!$D$9:$E$58,2,FALSE) ) )","v":""},null,null,null,null,{"$f":"IF(TRIM(BC219)=\"\", \"\", IF(VLOOKUP(BC219,'Footnotes list'!$D$9:$E$58,2,FALSE)=0,\"\",VLOOKUP(BC219,'Footnotes list'!$D$9:$E$58,2,FALSE) ) )","v":""},null,null,null,null,{"$f":"IF(TRIM(BH219)=\"\", \"\", IF(VLOOKUP(BH219,'Footnotes list'!$D$9:$E$58,2,FALSE)=0,\"\",VLOOKUP(BH219,'Footnotes list'!$D$9:$E$58,2,FALSE) ) )","v":""},null,null,null,null,{"$f":"IF(TRIM(BM219)=\"\", \"\", IF(VLOOKUP(BM219,'Footnotes list'!$D$9:$E$58,2,FALSE)=0,\"\",VLOOKUP(BM219,'Footnotes list'!$D$9:$E$58,2,FALSE) ) )","v":""},null,null,null,null,{"$f":"IF(TRIM(BR219)=\"\", \"\", IF(VLOOKUP(BR219,'Footnotes list'!$D$9:$E$58,2,FALSE)=0,\"\",VLOOKUP(BR219,'Footnotes list'!$D$9:$E$58,2,FALSE) ) )","v":""},null,null,null,null,{"$f":"IF(TRIM(BW219)=\"\", \"\", IF(VLOOKUP(BW219,'Footnotes list'!$D$9:$E$58,2,FALSE)=0,\"\",VLOOKUP(BW219,'Footnotes list'!$D$9:$E$58,2,FALSE) ) )","v":""},null,null,null,null,{"$f":"IF(TRIM(CB219)=\"\", \"\", IF(VLOOKUP(CB219,'Footnotes list'!$D$9:$E$58,2,FALSE)=0,\"\",VLOOKUP(CB219,'Footnotes list'!$D$9:$E$58,2,FALSE) ) )","v":""},null,null,null,null,{"$f":"IF(TRIM(CG219)=\"\", \"\", IF(VLOOKUP(CG219,'Footnotes list'!$D$9:$E$58,2,FALSE)=0,\"\",VLOOKUP(CG219,'Footnotes list'!$D$9:$E$58,2,FALSE) ) )","v":""},null,null,null,null,{"$f":"IF(TRIM(CL219)=\"\", \"\", IF(VLOOKUP(CL219,'Footnotes list'!$D$9:$E$58,2,FALSE)=0,\"\",VLOOKUP(CL219,'Footnotes list'!$D$9:$E$58,2,FALSE) ) )","v":""},null,null,null,null,{"$f":"IF(TRIM(CQ219)=\"\", \"\", IF(VLOOKUP(CQ219,'Footnotes list'!$D$9:$E$58,2,FALSE)=0,\"\",VLOOKUP(CQ219,'Footnotes list'!$D$9:$E$58,2,FALSE) ) )","v":""},null,null,null,null,{"$f":"IF(TRIM(CV219)=\"\", \"\", IF(VLOOKUP(CV219,'Footnotes list'!$D$9:$E$58,2,FALSE)=0,\"\",VLOOKUP(CV219,'Footnotes list'!$D$9:$E$58,2,FALSE) ) )","v":""},null,null,null,null,{"$f":"IF(TRIM(DA219)=\"\", \"\", IF(VLOOKUP(DA219,'Footnotes list'!$D$9:$E$58,2,FALSE)=0,\"\",VLOOKUP(DA219,'Footnotes list'!$D$9:$E$58,2,FALSE) ) )","v":""},null,null,null,null,{"$f":"IF(TRIM(DF219)=\"\", \"\", IF(VLOOKUP(DF219,'Footnotes list'!$D$9:$E$58,2,FALSE)=0,\"\",VLOOKUP(DF219,'Footnotes list'!$D$9:$E$58,2,FALSE) ) )","v":""},null,null,null,null,{"$f":"IF(TRIM(DK219)=\"\", \"\", IF(VLOOKUP(DK219,'Footnotes list'!$D$9:$E$58,2,FALSE)=0,\"\",VLOOKUP(DK219,'Footnotes list'!$D$9:$E$58,2,FALSE) ) )","v":""},null,null,null,null,{"$f":"IF(TRIM(DP219)=\"\", \"\", IF(VLOOKUP(DP219,'Footnotes list'!$D$9:$E$58,2,FALSE)=0,\"\",VLOOKUP(DP219,'Footnotes list'!$D$9:$E$58,2,FALSE) ) )","v":""},null,null,null,null,{"$f":"IF(TRIM(DU219)=\"\", \"\", IF(VLOOKUP(DU219,'Footnotes list'!$D$9:$E$58,2,FALSE)=0,\"\",VLOOKUP(DU219,'Footnotes list'!$D$9:$E$58,2,FALSE) ) )","v":""},null,null,null,null,{"$f":"IF(TRIM(DZ219)=\"\", \"\", IF(VLOOKUP(DZ219,'Footnotes list'!$D$9:$E$58,2,FALSE)=0,\"\",VLOOKUP(DZ219,'Footnotes list'!$D$9:$E$58,2,FALSE) ) )","v":""},null,null,null,null,{"$f":"IF(TRIM(EE219)=\"\", \"\", IF(VLOOKUP(EE219,'Footnotes list'!$D$9:$E$58,2,FALSE)=0,\"\",VLOOKUP(EE219,'Footnotes list'!$D$9:$E$58,2,FALSE) ) )","v":""},null,null,null,null,{"$f":"IF(TRIM(EJ219)=\"\", \"\", IF(VLOOKUP(EJ219,'Footnotes list'!$D$9:$E$58,2,FALSE)=0,\"\",VLOOKUP(EJ219,'Footnotes list'!$D$9:$E$58,2,FALSE) ) )","v":""},null,null,null,null,{"$f":"IF(TRIM(EO219)=\"\", \"\", IF(VLOOKUP(EO219,'Footnotes list'!$D$9:$E$58,2,FALSE)=0,\"\",VLOOKUP(EO219,'Footnotes list'!$D$9:$E$58,2,FALSE) ) )","v":""},null,null,null,null,{"$f":"IF(TRIM(ET219)=\"\", \"\", IF(VLOOKUP(ET219,'Footnotes list'!$D$9:$E$58,2,FALSE)=0,\"\",VLOOKUP(ET219,'Footnotes list'!$D$9:$E$58,2,FALSE) ) )","v":""},null,null,null,null,{"$f":"IF(TRIM(EY219)=\"\", \"\", IF(VLOOKUP(EY219,'Footnotes list'!$D$9:$E$58,2,FALSE)=0,\"\",VLOOKUP(EY219,'Footnotes list'!$D$9:$E$58,2,FALSE) ) )","v":""}]
[null,null,"M","NMKT","non-market activities",null,null,null,null,null,{"$f":"IF(TRIM(J220)=\"\", \"\", IF(VLOOKUP(J220,'Footnotes list'!$D$9:$E$58,2,FALSE)=0,\"\",VLOOKUP(J220,'Footnotes list'!$D$9:$E$58,2,FALSE) ) )","v":""},null,null,null,null,{"$f":"IF(TRIM(O220)=\"\", \"\", IF(VLOOKUP(O220,'Footnotes list'!$D$9:$E$58,2,FALSE)=0,\"\",VLOOKUP(O220,'Footnotes list'!$D$9:$E$58,2,FALSE) ) )","v":""},null,null,null,null,{"$f":"IF(TRIM(T220)=\"\", \"\", IF(VLOOKUP(T220,'Footnotes list'!$D$9:$E$58,2,FALSE)=0,\"\",VLOOKUP(T220,'Footnotes list'!$D$9:$E$58,2,FALSE) ) )","v":""},null,null,null,null,{"$f":"IF(TRIM(Y220)=\"\", \"\", IF(VLOOKUP(Y220,'Footnotes list'!$D$9:$E$58,2,FALSE)=0,\"\",VLOOKUP(Y220,'Footnotes list'!$D$9:$E$58,2,FALSE) ) )","v":""},null,null,null,null,{"$f":"IF(TRIM(AD220)=\"\", \"\", IF(VLOOKUP(AD220,'Footnotes list'!$D$9:$E$58,2,FALSE)=0,\"\",VLOOKUP(AD220,'Footnotes list'!$D$9:$E$58,2,FALSE) ) )","v":""},null,null,null,null,{"$f":"IF(TRIM(AI220)=\"\", \"\", IF(VLOOKUP(AI220,'Footnotes list'!$D$9:$E$58,2,FALSE)=0,\"\",VLOOKUP(AI220,'Footnotes list'!$D$9:$E$58,2,FALSE) ) )","v":""},null,null,null,null,{"$f":"IF(TRIM(AN220)=\"\", \"\", IF(VLOOKUP(AN220,'Footnotes list'!$D$9:$E$58,2,FALSE)=0,\"\",VLOOKUP(AN220,'Footnotes list'!$D$9:$E$58,2,FALSE) ) )","v":""},null,null,null,null,{"$f":"IF(TRIM(AS220)=\"\", \"\", IF(VLOOKUP(AS220,'Footnotes list'!$D$9:$E$58,2,FALSE)=0,\"\",VLOOKUP(AS220,'Footnotes list'!$D$9:$E$58,2,FALSE) ) )","v":""},null,null,null,null,{"$f":"IF(TRIM(AX220)=\"\", \"\", IF(VLOOKUP(AX220,'Footnotes list'!$D$9:$E$58,2,FALSE)=0,\"\",VLOOKUP(AX220,'Footnotes list'!$D$9:$E$58,2,FALSE) ) )","v":""},null,null,null,null,{"$f":"IF(TRIM(BC220)=\"\", \"\", IF(VLOOKUP(BC220,'Footnotes list'!$D$9:$E$58,2,FALSE)=0,\"\",VLOOKUP(BC220,'Footnotes list'!$D$9:$E$58,2,FALSE) ) )","v":""},null,null,null,null,{"$f":"IF(TRIM(BH220)=\"\", \"\", IF(VLOOKUP(BH220,'Footnotes list'!$D$9:$E$58,2,FALSE)=0,\"\",VLOOKUP(BH220,'Footnotes list'!$D$9:$E$58,2,FALSE) ) )","v":""},null,null,null,null,{"$f":"IF(TRIM(BM220)=\"\", \"\", IF(VLOOKUP(BM220,'Footnotes list'!$D$9:$E$58,2,FALSE)=0,\"\",VLOOKUP(BM220,'Footnotes list'!$D$9:$E$58,2,FALSE) ) )","v":""},null,null,null,null,{"$f":"IF(TRIM(BR220)=\"\", \"\", IF(VLOOKUP(BR220,'Footnotes list'!$D$9:$E$58,2,FALSE)=0,\"\",VLOOKUP(BR220,'Footnotes list'!$D$9:$E$58,2,FALSE) ) )","v":""},null,null,null,null,{"$f":"IF(TRIM(BW220)=\"\", \"\", IF(VLOOKUP(BW220,'Footnotes list'!$D$9:$E$58,2,FALSE)=0,\"\",VLOOKUP(BW220,'Footnotes list'!$D$9:$E$58,2,FALSE) ) )","v":""},null,null,null,null,{"$f":"IF(TRIM(CB220)=\"\", \"\", IF(VLOOKUP(CB220,'Footnotes list'!$D$9:$E$58,2,FALSE)=0,\"\",VLOOKUP(CB220,'Footnotes list'!$D$9:$E$58,2,FALSE) ) )","v":""},null,null,null,null,{"$f":"IF(TRIM(CG220)=\"\", \"\", IF(VLOOKUP(CG220,'Footnotes list'!$D$9:$E$58,2,FALSE)=0,\"\",VLOOKUP(CG220,'Footnotes list'!$D$9:$E$58,2,FALSE) ) )","v":""},null,null,null,null,{"$f":"IF(TRIM(CL220)=\"\", \"\", IF(VLOOKUP(CL220,'Footnotes list'!$D$9:$E$58,2,FALSE)=0,\"\",VLOOKUP(CL220,'Footnotes list'!$D$9:$E$58,2,FALSE) ) )","v":""},null,null,null,null,{"$f":"IF(TRIM(CQ220)=\"\", \"\", IF(VLOOKUP(CQ220,'Footnotes list'!$D$9:$E$58,2,FALSE)=0,\"\",VLOOKUP(CQ220,'Footnotes list'!$D$9:$E$58,2,FALSE) ) )","v":""},null,null,null,null,{"$f":"IF(TRIM(CV220)=\"\", \"\", IF(VLOOKUP(CV220,'Footnotes list'!$D$9:$E$58,2,FALSE)=0,\"\",VLOOKUP(CV220,'Footnotes list'!$D$9:$E$58,2,FALSE) ) )","v":""},null,null,null,null,{"$f":"IF(TRIM(DA220)=\"\", \"\", IF(VLOOKUP(DA220,'Footnotes list'!$D$9:$E$58,2,FALSE)=0,\"\",VLOOKUP(DA220,'Footnotes list'!$D$9:$E$58,2,FALSE) ) )","v":""},null,null,null,null,{"$f":"IF(TRIM(DF220)=\"\", \"\", IF(VLOOKUP(DF220,'Footnotes list'!$D$9:$E$58,2,FALSE)=0,\"\",VLOOKUP(DF220,'Footnotes list'!$D$9:$E$58,2,FALSE) ) )","v":""},null,null,null,null,{"$f":"IF(TRIM(DK220)=\"\", \"\", IF(VLOOKUP(DK220,'Footnotes list'!$D$9:$E$58,2,FALSE)=0,\"\",VLOOKUP(DK220,'Footnotes list'!$D$9:$E$58,2,FALSE) ) )","v":""},null,null,null,null,{"$f":"IF(TRIM(DP220)=\"\", \"\", IF(VLOOKUP(DP220,'Footnotes list'!$D$9:$E$58,2,FALSE)=0,\"\",VLOOKUP(DP220,'Footnotes list'!$D$9:$E$58,2,FALSE) ) )","v":""},null,null,null,null,{"$f":"IF(TRIM(DU220)=\"\", \"\", IF(VLOOKUP(DU220,'Footnotes list'!$D$9:$E$58,2,FALSE)=0,\"\",VLOOKUP(DU220,'Footnotes list'!$D$9:$E$58,2,FALSE) ) )","v":""},null,null,null,null,{"$f":"IF(TRIM(DZ220)=\"\", \"\", IF(VLOOKUP(DZ220,'Footnotes list'!$D$9:$E$58,2,FALSE)=0,\"\",VLOOKUP(DZ220,'Footnotes list'!$D$9:$E$58,2,FALSE) ) )","v":""},null,null,null,null,{"$f":"IF(TRIM(EE220)=\"\", \"\", IF(VLOOKUP(EE220,'Footnotes list'!$D$9:$E$58,2,FALSE)=0,\"\",VLOOKUP(EE220,'Footnotes list'!$D$9:$E$58,2,FALSE) ) )","v":""},null,null,null,null,{"$f":"IF(TRIM(EJ220)=\"\", \"\", IF(VLOOKUP(EJ220,'Footnotes list'!$D$9:$E$58,2,FALSE)=0,\"\",VLOOKUP(EJ220,'Footnotes list'!$D$9:$E$58,2,FALSE) ) )","v":""},null,null,null,null,{"$f":"IF(TRIM(EO220)=\"\", \"\", IF(VLOOKUP(EO220,'Footnotes list'!$D$9:$E$58,2,FALSE)=0,\"\",VLOOKUP(EO220,'Footnotes list'!$D$9:$E$58,2,FALSE) ) )","v":""},null,null,null,null,{"$f":"IF(TRIM(ET220)=\"\", \"\", IF(VLOOKUP(ET220,'Footnotes list'!$D$9:$E$58,2,FALSE)=0,\"\",VLOOKUP(ET220,'Footnotes list'!$D$9:$E$58,2,FALSE) ) )","v":""},null,null,null,null,{"$f":"IF(TRIM(EY220)=\"\", \"\", IF(VLOOKUP(EY220,'Footnotes list'!$D$9:$E$58,2,FALSE)=0,\"\",VLOOKUP(EY220,'Footnotes list'!$D$9:$E$58,2,FALSE) ) )","v":""}]
[null,null,"M","OWN_USE","activities for own final use",null,null,null,null,null,{"$f":"IF(TRIM(J221)=\"\", \"\", IF(VLOOKUP(J221,'Footnotes list'!$D$9:$E$58,2,FALSE)=0,\"\",VLOOKUP(J221,'Footnotes list'!$D$9:$E$58,2,FALSE) ) )","v":""},null,null,null,null,{"$f":"IF(TRIM(O221)=\"\", \"\", IF(VLOOKUP(O221,'Footnotes list'!$D$9:$E$58,2,FALSE)=0,\"\",VLOOKUP(O221,'Footnotes list'!$D$9:$E$58,2,FALSE) ) )","v":""},null,null,null,null,{"$f":"IF(TRIM(T221)=\"\", \"\", IF(VLOOKUP(T221,'Footnotes list'!$D$9:$E$58,2,FALSE)=0,\"\",VLOOKUP(T221,'Footnotes list'!$D$9:$E$58,2,FALSE) ) )","v":""},null,null,null,null,{"$f":"IF(TRIM(Y221)=\"\", \"\", IF(VLOOKUP(Y221,'Footnotes list'!$D$9:$E$58,2,FALSE)=0,\"\",VLOOKUP(Y221,'Footnotes list'!$D$9:$E$58,2,FALSE) ) )","v":""},null,null,null,null,{"$f":"IF(TRIM(AD221)=\"\", \"\", IF(VLOOKUP(AD221,'Footnotes list'!$D$9:$E$58,2,FALSE)=0,\"\",VLOOKUP(AD221,'Footnotes list'!$D$9:$E$58,2,FALSE) ) )","v":""},null,null,null,null,{"$f":"IF(TRIM(AI221)=\"\", \"\", IF(VLOOKUP(AI221,'Footnotes list'!$D$9:$E$58,2,FALSE)=0,\"\",VLOOKUP(AI221,'Footnotes list'!$D$9:$E$58,2,FALSE) ) )","v":""},null,null,null,null,{"$f":"IF(TRIM(AN221)=\"\", \"\", IF(VLOOKUP(AN221,'Footnotes list'!$D$9:$E$58,2,FALSE)=0,\"\",VLOOKUP(AN221,'Footnotes list'!$D$9:$E$58,2,FALSE) ) )","v":""},null,null,null,null,{"$f":"IF(TRIM(AS221)=\"\", \"\", IF(VLOOKUP(AS221,'Footnotes list'!$D$9:$E$58,2,FALSE)=0,\"\",VLOOKUP(AS221,'Footnotes list'!$D$9:$E$58,2,FALSE) ) )","v":""},null,null,null,null,{"$f":"IF(TRIM(AX221)=\"\", \"\", IF(VLOOKUP(AX221,'Footnotes list'!$D$9:$E$58,2,FALSE)=0,\"\",VLOOKUP(AX221,'Footnotes list'!$D$9:$E$58,2,FALSE) ) )","v":""},null,null,null,null,{"$f":"IF(TRIM(BC221)=\"\", \"\", IF(VLOOKUP(BC221,'Footnotes list'!$D$9:$E$58,2,FALSE)=0,\"\",VLOOKUP(BC221,'Footnotes list'!$D$9:$E$58,2,FALSE) ) )","v":""},null,null,null,null,{"$f":"IF(TRIM(BH221)=\"\", \"\", IF(VLOOKUP(BH221,'Footnotes list'!$D$9:$E$58,2,FALSE)=0,\"\",VLOOKUP(BH221,'Footnotes list'!$D$9:$E$58,2,FALSE) ) )","v":""},null,null,null,null,{"$f":"IF(TRIM(BM221)=\"\", \"\", IF(VLOOKUP(BM221,'Footnotes list'!$D$9:$E$58,2,FALSE)=0,\"\",VLOOKUP(BM221,'Footnotes list'!$D$9:$E$58,2,FALSE) ) )","v":""},null,null,null,null,{"$f":"IF(TRIM(BR221)=\"\", \"\", IF(VLOOKUP(BR221,'Footnotes list'!$D$9:$E$58,2,FALSE)=0,\"\",VLOOKUP(BR221,'Footnotes list'!$D$9:$E$58,2,FALSE) ) )","v":""},null,null,null,null,{"$f":"IF(TRIM(BW221)=\"\", \"\", IF(VLOOKUP(BW221,'Footnotes list'!$D$9:$E$58,2,FALSE)=0,\"\",VLOOKUP(BW221,'Footnotes list'!$D$9:$E$58,2,FALSE) ) )","v":""},null,null,null,null,{"$f":"IF(TRIM(CB221)=\"\", \"\", IF(VLOOKUP(CB221,'Footnotes list'!$D$9:$E$58,2,FALSE)=0,\"\",VLOOKUP(CB221,'Footnotes list'!$D$9:$E$58,2,FALSE) ) )","v":""},null,null,null,null,{"$f":"IF(TRIM(CG221)=\"\", \"\", IF(VLOOKUP(CG221,'Footnotes list'!$D$9:$E$58,2,FALSE)=0,\"\",VLOOKUP(CG221,'Footnotes list'!$D$9:$E$58,2,FALSE) ) )","v":""},null,null,null,null,{"$f":"IF(TRIM(CL221)=\"\", \"\", IF(VLOOKUP(CL221,'Footnotes list'!$D$9:$E$58,2,FALSE)=0,\"\",VLOOKUP(CL221,'Footnotes list'!$D$9:$E$58,2,FALSE) ) )","v":""},null,null,null,null,{"$f":"IF(TRIM(CQ221)=\"\", \"\", IF(VLOOKUP(CQ221,'Footnotes list'!$D$9:$E$58,2,FALSE)=0,\"\",VLOOKUP(CQ221,'Footnotes list'!$D$9:$E$58,2,FALSE) ) )","v":""},null,null,null,null,{"$f":"IF(TRIM(CV221)=\"\", \"\", IF(VLOOKUP(CV221,'Footnotes list'!$D$9:$E$58,2,FALSE)=0,\"\",VLOOKUP(CV221,'Footnotes list'!$D$9:$E$58,2,FALSE) ) )","v":""},null,null,null,null,{"$f":"IF(TRIM(DA221)=\"\", \"\", IF(VLOOKUP(DA221,'Footnotes list'!$D$9:$E$58,2,FALSE)=0,\"\",VLOOKUP(DA221,'Footnotes list'!$D$9:$E$58,2,FALSE) ) )","v":""},null,null,null,null,{"$f":"IF(TRIM(DF221)=\"\", \"\", IF(VLOOKUP(DF221,'Footnotes list'!$D$9:$E$58,2,FALSE)=0,\"\",VLOOKUP(DF221,'Footnotes list'!$D$9:$E$58,2,FALSE) ) )","v":""},null,null,null,null,{"$f":"IF(TRIM(DK221)=\"\", \"\", IF(VLOOKUP(DK221,'Footnotes list'!$D$9:$E$58,2,FALSE)=0,\"\",VLOOKUP(DK221,'Footnotes list'!$D$9:$E$58,2,FALSE) ) )","v":""},null,null,null,null,{"$f":"IF(TRIM(DP221)=\"\", \"\", IF(VLOOKUP(DP221,'Footnotes list'!$D$9:$E$58,2,FALSE)=0,\"\",VLOOKUP(DP221,'Footnotes list'!$D$9:$E$58,2,FALSE) ) )","v":""},null,null,null,null,{"$f":"IF(TRIM(DU221)=\"\", \"\", IF(VLOOKUP(DU221,'Footnotes list'!$D$9:$E$58,2,FALSE)=0,\"\",VLOOKUP(DU221,'Footnotes list'!$D$9:$E$58,2,FALSE) ) )","v":""},null,null,null,null,{"$f":"IF(TRIM(DZ221)=\"\", \"\", IF(VLOOKUP(DZ221,'Footnotes list'!$D$9:$E$58,2,FALSE)=0,\"\",VLOOKUP(DZ221,'Footnotes list'!$D$9:$E$58,2,FALSE) ) )","v":""},null,null,null,null,{"$f":"IF(TRIM(EE221)=\"\", \"\", IF(VLOOKUP(EE221,'Footnotes list'!$D$9:$E$58,2,FALSE)=0,\"\",VLOOKUP(EE221,'Footnotes list'!$D$9:$E$58,2,FALSE) ) )","v":""},null,null,null,null,{"$f":"IF(TRIM(EJ221)=\"\", \"\", IF(VLOOKUP(EJ221,'Footnotes list'!$D$9:$E$58,2,FALSE)=0,\"\",VLOOKUP(EJ221,'Footnotes list'!$D$9:$E$58,2,FALSE) ) )","v":""},null,null,null,null,{"$f":"IF(TRIM(EO221)=\"\", \"\", IF(VLOOKUP(EO221,'Footnotes list'!$D$9:$E$58,2,FALSE)=0,\"\",VLOOKUP(EO221,'Footnotes list'!$D$9:$E$58,2,FALSE) ) )","v":""},null,null,null,null,{"$f":"IF(TRIM(ET221)=\"\", \"\", IF(VLOOKUP(ET221,'Footnotes list'!$D$9:$E$58,2,FALSE)=0,\"\",VLOOKUP(ET221,'Footnotes list'!$D$9:$E$58,2,FALSE) ) )","v":""},null,null,null,null,{"$f":"IF(TRIM(EY221)=\"\", \"\", IF(VLOOKUP(EY221,'Footnotes list'!$D$9:$E$58,2,FALSE)=0,\"\",VLOOKUP(EY221,'Footnotes list'!$D$9:$E$58,2,FALSE) ) )","v":""}]
[null,null,"M","MKT","market activities, including:",null,null,null,null,null,{"$f":"IF(TRIM(J222)=\"\", \"\", IF(VLOOKUP(J222,'Footnotes list'!$D$9:$E$58,2,FALSE)=0,\"\",VLOOKUP(J222,'Footnotes list'!$D$9:$E$58,2,FALSE) ) )","v":""},null,null,null,null,{"$f":"IF(TRIM(O222)=\"\", \"\", IF(VLOOKUP(O222,'Footnotes list'!$D$9:$E$58,2,FALSE)=0,\"\",VLOOKUP(O222,'Footnotes list'!$D$9:$E$58,2,FALSE) ) )","v":""},null,null,null,null,{"$f":"IF(TRIM(T222)=\"\", \"\", IF(VLOOKUP(T222,'Footnotes list'!$D$9:$E$58,2,FALSE)=0,\"\",VLOOKUP(T222,'Footnotes list'!$D$9:$E$58,2,FALSE) ) )","v":""},null,null,null,null,{"$f":"IF(TRIM(Y222)=\"\", \"\", IF(VLOOKUP(Y222,'Footnotes list'!$D$9:$E$58,2,FALSE)=0,\"\",VLOOKUP(Y222,'Footnotes list'!$D$9:$E$58,2,FALSE) ) )","v":""},null,null,null,null,{"$f":"IF(TRIM(AD222)=\"\", \"\", IF(VLOOKUP(AD222,'Footnotes list'!$D$9:$E$58,2,FALSE)=0,\"\",VLOOKUP(AD222,'Footnotes list'!$D$9:$E$58,2,FALSE) ) )","v":""},null,null,null,null,{"$f":"IF(TRIM(AI222)=\"\", \"\", IF(VLOOKUP(AI222,'Footnotes list'!$D$9:$E$58,2,FALSE)=0,\"\",VLOOKUP(AI222,'Footnotes list'!$D$9:$E$58,2,FALSE) ) )","v":""},null,null,null,null,{"$f":"IF(TRIM(AN222)=\"\", \"\", IF(VLOOKUP(AN222,'Footnotes list'!$D$9:$E$58,2,FALSE)=0,\"\",VLOOKUP(AN222,'Footnotes list'!$D$9:$E$58,2,FALSE) ) )","v":""},null,null,null,null,{"$f":"IF(TRIM(AS222)=\"\", \"\", IF(VLOOKUP(AS222,'Footnotes list'!$D$9:$E$58,2,FALSE)=0,\"\",VLOOKUP(AS222,'Footnotes list'!$D$9:$E$58,2,FALSE) ) )","v":""},null,null,null,null,{"$f":"IF(TRIM(AX222)=\"\", \"\", IF(VLOOKUP(AX222,'Footnotes list'!$D$9:$E$58,2,FALSE)=0,\"\",VLOOKUP(AX222,'Footnotes list'!$D$9:$E$58,2,FALSE) ) )","v":""},null,null,null,null,{"$f":"IF(TRIM(BC222)=\"\", \"\", IF(VLOOKUP(BC222,'Footnotes list'!$D$9:$E$58,2,FALSE)=0,\"\",VLOOKUP(BC222,'Footnotes list'!$D$9:$E$58,2,FALSE) ) )","v":""},null,null,null,null,{"$f":"IF(TRIM(BH222)=\"\", \"\", IF(VLOOKUP(BH222,'Footnotes list'!$D$9:$E$58,2,FALSE)=0,\"\",VLOOKUP(BH222,'Footnotes list'!$D$9:$E$58,2,FALSE) ) )","v":""},null,null,null,null,{"$f":"IF(TRIM(BM222)=\"\", \"\", IF(VLOOKUP(BM222,'Footnotes list'!$D$9:$E$58,2,FALSE)=0,\"\",VLOOKUP(BM222,'Footnotes list'!$D$9:$E$58,2,FALSE) ) )","v":""},null,null,null,null,{"$f":"IF(TRIM(BR222)=\"\", \"\", IF(VLOOKUP(BR222,'Footnotes list'!$D$9:$E$58,2,FALSE)=0,\"\",VLOOKUP(BR222,'Footnotes list'!$D$9:$E$58,2,FALSE) ) )","v":""},null,null,null,null,{"$f":"IF(TRIM(BW222)=\"\", \"\", IF(VLOOKUP(BW222,'Footnotes list'!$D$9:$E$58,2,FALSE)=0,\"\",VLOOKUP(BW222,'Footnotes list'!$D$9:$E$58,2,FALSE) ) )","v":""},null,null,null,null,{"$f":"IF(TRIM(CB222)=\"\", \"\", IF(VLOOKUP(CB222,'Footnotes list'!$D$9:$E$58,2,FALSE)=0,\"\",VLOOKUP(CB222,'Footnotes list'!$D$9:$E$58,2,FALSE) ) )","v":""},null,null,null,null,{"$f":"IF(TRIM(CG222)=\"\", \"\", IF(VLOOKUP(CG222,'Footnotes list'!$D$9:$E$58,2,FALSE)=0,\"\",VLOOKUP(CG222,'Footnotes list'!$D$9:$E$58,2,FALSE) ) )","v":""},null,null,null,null,{"$f":"IF(TRIM(CL222)=\"\", \"\", IF(VLOOKUP(CL222,'Footnotes list'!$D$9:$E$58,2,FALSE)=0,\"\",VLOOKUP(CL222,'Footnotes list'!$D$9:$E$58,2,FALSE) ) )","v":""},null,null,null,null,{"$f":"IF(TRIM(CQ222)=\"\", \"\", IF(VLOOKUP(CQ222,'Footnotes list'!$D$9:$E$58,2,FALSE)=0,\"\",VLOOKUP(CQ222,'Footnotes list'!$D$9:$E$58,2,FALSE) ) )","v":""},null,null,null,null,{"$f":"IF(TRIM(CV222)=\"\", \"\", IF(VLOOKUP(CV222,'Footnotes list'!$D$9:$E$58,2,FALSE)=0,\"\",VLOOKUP(CV222,'Footnotes list'!$D$9:$E$58,2,FALSE) ) )","v":""},null,null,null,null,{"$f":"IF(TRIM(DA222)=\"\", \"\", IF(VLOOKUP(DA222,'Footnotes list'!$D$9:$E$58,2,FALSE)=0,\"\",VLOOKUP(DA222,'Footnotes list'!$D$9:$E$58,2,FALSE) ) )","v":""},null,null,null,null,{"$f":"IF(TRIM(DF222)=\"\", \"\", IF(VLOOKUP(DF222,'Footnotes list'!$D$9:$E$58,2,FALSE)=0,\"\",VLOOKUP(DF222,'Footnotes list'!$D$9:$E$58,2,FALSE) ) )","v":""},null,null,null,null,{"$f":"IF(TRIM(DK222)=\"\", \"\", IF(VLOOKUP(DK222,'Footnotes list'!$D$9:$E$58,2,FALSE)=0,\"\",VLOOKUP(DK222,'Footnotes list'!$D$9:$E$58,2,FALSE) ) )","v":""},null,null,null,null,{"$f":"IF(TRIM(DP222)=\"\", \"\", IF(VLOOKUP(DP222,'Footnotes list'!$D$9:$E$58,2,FALSE)=0,\"\",VLOOKUP(DP222,'Footnotes list'!$D$9:$E$58,2,FALSE) ) )","v":""},null,null,null,null,{"$f":"IF(TRIM(DU222)=\"\", \"\", IF(VLOOKUP(DU222,'Footnotes list'!$D$9:$E$58,2,FALSE)=0,\"\",VLOOKUP(DU222,'Footnotes list'!$D$9:$E$58,2,FALSE) ) )","v":""},null,null,null,null,{"$f":"IF(TRIM(DZ222)=\"\", \"\", IF(VLOOKUP(DZ222,'Footnotes list'!$D$9:$E$58,2,FALSE)=0,\"\",VLOOKUP(DZ222,'Footnotes list'!$D$9:$E$58,2,FALSE) ) )","v":""},null,null,null,null,{"$f":"IF(TRIM(EE222)=\"\", \"\", IF(VLOOKUP(EE222,'Footnotes list'!$D$9:$E$58,2,FALSE)=0,\"\",VLOOKUP(EE222,'Footnotes list'!$D$9:$E$58,2,FALSE) ) )","v":""},null,null,null,null,{"$f":"IF(TRIM(EJ222)=\"\", \"\", IF(VLOOKUP(EJ222,'Footnotes list'!$D$9:$E$58,2,FALSE)=0,\"\",VLOOKUP(EJ222,'Footnotes list'!$D$9:$E$58,2,FALSE) ) )","v":""},null,null,null,null,{"$f":"IF(TRIM(EO222)=\"\", \"\", IF(VLOOKUP(EO222,'Footnotes list'!$D$9:$E$58,2,FALSE)=0,\"\",VLOOKUP(EO222,'Footnotes list'!$D$9:$E$58,2,FALSE) ) )","v":""},null,null,null,null,{"$f":"IF(TRIM(ET222)=\"\", \"\", IF(VLOOKUP(ET222,'Footnotes list'!$D$9:$E$58,2,FALSE)=0,\"\",VLOOKUP(ET222,'Footnotes list'!$D$9:$E$58,2,FALSE) ) )","v":""},null,null,null,null,{"$f":"IF(TRIM(EY222)=\"\", \"\", IF(VLOOKUP(EY222,'Footnotes list'!$D$9:$E$58,2,FALSE)=0,\"\",VLOOKUP(EY222,'Footnotes list'!$D$9:$E$58,2,FALSE) ) )","v":""}]
[null,null,"M","ES_CS","environmental specific services",null,null,null,null,null,{"$f":"IF(TRIM(J223)=\"\", \"\", IF(VLOOKUP(J223,'Footnotes list'!$D$9:$E$58,2,FALSE)=0,\"\",VLOOKUP(J223,'Footnotes list'!$D$9:$E$58,2,FALSE) ) )","v":""},null,null,null,null,{"$f":"IF(TRIM(O223)=\"\", \"\", IF(VLOOKUP(O223,'Footnotes list'!$D$9:$E$58,2,FALSE)=0,\"\",VLOOKUP(O223,'Footnotes list'!$D$9:$E$58,2,FALSE) ) )","v":""},null,null,null,null,{"$f":"IF(TRIM(T223)=\"\", \"\", IF(VLOOKUP(T223,'Footnotes list'!$D$9:$E$58,2,FALSE)=0,\"\",VLOOKUP(T223,'Footnotes list'!$D$9:$E$58,2,FALSE) ) )","v":""},null,null,null,null,{"$f":"IF(TRIM(Y223)=\"\", \"\", IF(VLOOKUP(Y223,'Footnotes list'!$D$9:$E$58,2,FALSE)=0,\"\",VLOOKUP(Y223,'Footnotes list'!$D$9:$E$58,2,FALSE) ) )","v":""},null,null,null,null,{"$f":"IF(TRIM(AD223)=\"\", \"\", IF(VLOOKUP(AD223,'Footnotes list'!$D$9:$E$58,2,FALSE)=0,\"\",VLOOKUP(AD223,'Footnotes list'!$D$9:$E$58,2,FALSE) ) )","v":""},null,null,null,null,{"$f":"IF(TRIM(AI223)=\"\", \"\", IF(VLOOKUP(AI223,'Footnotes list'!$D$9:$E$58,2,FALSE)=0,\"\",VLOOKUP(AI223,'Footnotes list'!$D$9:$E$58,2,FALSE) ) )","v":""},null,null,null,null,{"$f":"IF(TRIM(AN223)=\"\", \"\", IF(VLOOKUP(AN223,'Footnotes list'!$D$9:$E$58,2,FALSE)=0,\"\",VLOOKUP(AN223,'Footnotes list'!$D$9:$E$58,2,FALSE) ) )","v":""},null,null,null,null,{"$f":"IF(TRIM(AS223)=\"\", \"\", IF(VLOOKUP(AS223,'Footnotes list'!$D$9:$E$58,2,FALSE)=0,\"\",VLOOKUP(AS223,'Footnotes list'!$D$9:$E$58,2,FALSE) ) )","v":""},null,null,null,null,{"$f":"IF(TRIM(AX223)=\"\", \"\", IF(VLOOKUP(AX223,'Footnotes list'!$D$9:$E$58,2,FALSE)=0,\"\",VLOOKUP(AX223,'Footnotes list'!$D$9:$E$58,2,FALSE) ) )","v":""},null,null,null,null,{"$f":"IF(TRIM(BC223)=\"\", \"\", IF(VLOOKUP(BC223,'Footnotes list'!$D$9:$E$58,2,FALSE)=0,\"\",VLOOKUP(BC223,'Footnotes list'!$D$9:$E$58,2,FALSE) ) )","v":""},null,null,null,null,{"$f":"IF(TRIM(BH223)=\"\", \"\", IF(VLOOKUP(BH223,'Footnotes list'!$D$9:$E$58,2,FALSE)=0,\"\",VLOOKUP(BH223,'Footnotes list'!$D$9:$E$58,2,FALSE) ) )","v":""},null,null,null,null,{"$f":"IF(TRIM(BM223)=\"\", \"\", IF(VLOOKUP(BM223,'Footnotes list'!$D$9:$E$58,2,FALSE)=0,\"\",VLOOKUP(BM223,'Footnotes list'!$D$9:$E$58,2,FALSE) ) )","v":""},null,null,null,null,{"$f":"IF(TRIM(BR223)=\"\", \"\", IF(VLOOKUP(BR223,'Footnotes list'!$D$9:$E$58,2,FALSE)=0,\"\",VLOOKUP(BR223,'Footnotes list'!$D$9:$E$58,2,FALSE) ) )","v":""},null,null,null,null,{"$f":"IF(TRIM(BW223)=\"\", \"\", IF(VLOOKUP(BW223,'Footnotes list'!$D$9:$E$58,2,FALSE)=0,\"\",VLOOKUP(BW223,'Footnotes list'!$D$9:$E$58,2,FALSE) ) )","v":""},null,null,null,null,{"$f":"IF(TRIM(CB223)=\"\", \"\", IF(VLOOKUP(CB223,'Footnotes list'!$D$9:$E$58,2,FALSE)=0,\"\",VLOOKUP(CB223,'Footnotes list'!$D$9:$E$58,2,FALSE) ) )","v":""},null,null,null,null,{"$f":"IF(TRIM(CG223)=\"\", \"\", IF(VLOOKUP(CG223,'Footnotes list'!$D$9:$E$58,2,FALSE)=0,\"\",VLOOKUP(CG223,'Footnotes list'!$D$9:$E$58,2,FALSE) ) )","v":""},null,null,null,null,{"$f":"IF(TRIM(CL223)=\"\", \"\", IF(VLOOKUP(CL223,'Footnotes list'!$D$9:$E$58,2,FALSE)=0,\"\",VLOOKUP(CL223,'Footnotes list'!$D$9:$E$58,2,FALSE) ) )","v":""},null,null,null,null,{"$f":"IF(TRIM(CQ223)=\"\", \"\", IF(VLOOKUP(CQ223,'Footnotes list'!$D$9:$E$58,2,FALSE)=0,\"\",VLOOKUP(CQ223,'Footnotes list'!$D$9:$E$58,2,FALSE) ) )","v":""},null,null,null,null,{"$f":"IF(TRIM(CV223)=\"\", \"\", IF(VLOOKUP(CV223,'Footnotes list'!$D$9:$E$58,2,FALSE)=0,\"\",VLOOKUP(CV223,'Footnotes list'!$D$9:$E$58,2,FALSE) ) )","v":""},null,null,null,null,{"$f":"IF(TRIM(DA223)=\"\", \"\", IF(VLOOKUP(DA223,'Footnotes list'!$D$9:$E$58,2,FALSE)=0,\"\",VLOOKUP(DA223,'Footnotes list'!$D$9:$E$58,2,FALSE) ) )","v":""},null,null,null,null,{"$f":"IF(TRIM(DF223)=\"\", \"\", IF(VLOOKUP(DF223,'Footnotes list'!$D$9:$E$58,2,FALSE)=0,\"\",VLOOKUP(DF223,'Footnotes list'!$D$9:$E$58,2,FALSE) ) )","v":""},null,null,null,null,{"$f":"IF(TRIM(DK223)=\"\", \"\", IF(VLOOKUP(DK223,'Footnotes list'!$D$9:$E$58,2,FALSE)=0,\"\",VLOOKUP(DK223,'Footnotes list'!$D$9:$E$58,2,FALSE) ) )","v":""},null,null,null,null,{"$f":"IF(TRIM(DP223)=\"\", \"\", IF(VLOOKUP(DP223,'Footnotes list'!$D$9:$E$58,2,FALSE)=0,\"\",VLOOKUP(DP223,'Footnotes list'!$D$9:$E$58,2,FALSE) ) )","v":""},null,null,null,null,{"$f":"IF(TRIM(DU223)=\"\", \"\", IF(VLOOKUP(DU223,'Footnotes list'!$D$9:$E$58,2,FALSE)=0,\"\",VLOOKUP(DU223,'Footnotes list'!$D$9:$E$58,2,FALSE) ) )","v":""},null,null,null,null,{"$f":"IF(TRIM(DZ223)=\"\", \"\", IF(VLOOKUP(DZ223,'Footnotes list'!$D$9:$E$58,2,FALSE)=0,\"\",VLOOKUP(DZ223,'Footnotes list'!$D$9:$E$58,2,FALSE) ) )","v":""},null,null,null,null,{"$f":"IF(TRIM(EE223)=\"\", \"\", IF(VLOOKUP(EE223,'Footnotes list'!$D$9:$E$58,2,FALSE)=0,\"\",VLOOKUP(EE223,'Footnotes list'!$D$9:$E$58,2,FALSE) ) )","v":""},null,null,null,null,{"$f":"IF(TRIM(EJ223)=\"\", \"\", IF(VLOOKUP(EJ223,'Footnotes list'!$D$9:$E$58,2,FALSE)=0,\"\",VLOOKUP(EJ223,'Footnotes list'!$D$9:$E$58,2,FALSE) ) )","v":""},null,null,null,null,{"$f":"IF(TRIM(EO223)=\"\", \"\", IF(VLOOKUP(EO223,'Footnotes list'!$D$9:$E$58,2,FALSE)=0,\"\",VLOOKUP(EO223,'Footnotes list'!$D$9:$E$58,2,FALSE) ) )","v":""},null,null,null,null,{"$f":"IF(TRIM(ET223)=\"\", \"\", IF(VLOOKUP(ET223,'Footnotes list'!$D$9:$E$58,2,FALSE)=0,\"\",VLOOKUP(ET223,'Footnotes list'!$D$9:$E$58,2,FALSE) ) )","v":""},null,null,null,null,{"$f":"IF(TRIM(EY223)=\"\", \"\", IF(VLOOKUP(EY223,'Footnotes list'!$D$9:$E$58,2,FALSE)=0,\"\",VLOOKUP(EY223,'Footnotes list'!$D$9:$E$58,2,FALSE) ) )","v":""}]
[null,null,"M","C_REP","cleaner and resource efficient products",null,null,null,null,null,{"$f":"IF(TRIM(J224)=\"\", \"\", IF(VLOOKUP(J224,'Footnotes list'!$D$9:$E$58,2,FALSE)=0,\"\",VLOOKUP(J224,'Footnotes list'!$D$9:$E$58,2,FALSE) ) )","v":""},null,null,null,null,{"$f":"IF(TRIM(O224)=\"\", \"\", IF(VLOOKUP(O224,'Footnotes list'!$D$9:$E$58,2,FALSE)=0,\"\",VLOOKUP(O224,'Footnotes list'!$D$9:$E$58,2,FALSE) ) )","v":""},null,null,null,null,{"$f":"IF(TRIM(T224)=\"\", \"\", IF(VLOOKUP(T224,'Footnotes list'!$D$9:$E$58,2,FALSE)=0,\"\",VLOOKUP(T224,'Footnotes list'!$D$9:$E$58,2,FALSE) ) )","v":""},null,null,null,null,{"$f":"IF(TRIM(Y224)=\"\", \"\", IF(VLOOKUP(Y224,'Footnotes list'!$D$9:$E$58,2,FALSE)=0,\"\",VLOOKUP(Y224,'Footnotes list'!$D$9:$E$58,2,FALSE) ) )","v":""},null,null,null,null,{"$f":"IF(TRIM(AD224)=\"\", \"\", IF(VLOOKUP(AD224,'Footnotes list'!$D$9:$E$58,2,FALSE)=0,\"\",VLOOKUP(AD224,'Footnotes list'!$D$9:$E$58,2,FALSE) ) )","v":""},null,null,null,null,{"$f":"IF(TRIM(AI224)=\"\", \"\", IF(VLOOKUP(AI224,'Footnotes list'!$D$9:$E$58,2,FALSE)=0,\"\",VLOOKUP(AI224,'Footnotes list'!$D$9:$E$58,2,FALSE) ) )","v":""},null,null,null,null,{"$f":"IF(TRIM(AN224)=\"\", \"\", IF(VLOOKUP(AN224,'Footnotes list'!$D$9:$E$58,2,FALSE)=0,\"\",VLOOKUP(AN224,'Footnotes list'!$D$9:$E$58,2,FALSE) ) )","v":""},null,null,null,null,{"$f":"IF(TRIM(AS224)=\"\", \"\", IF(VLOOKUP(AS224,'Footnotes list'!$D$9:$E$58,2,FALSE)=0,\"\",VLOOKUP(AS224,'Footnotes list'!$D$9:$E$58,2,FALSE) ) )","v":""},null,null,null,null,{"$f":"IF(TRIM(AX224)=\"\", \"\", IF(VLOOKUP(AX224,'Footnotes list'!$D$9:$E$58,2,FALSE)=0,\"\",VLOOKUP(AX224,'Footnotes list'!$D$9:$E$58,2,FALSE) ) )","v":""},null,null,null,null,{"$f":"IF(TRIM(BC224)=\"\", \"\", IF(VLOOKUP(BC224,'Footnotes list'!$D$9:$E$58,2,FALSE)=0,\"\",VLOOKUP(BC224,'Footnotes list'!$D$9:$E$58,2,FALSE) ) )","v":""},null,null,null,null,{"$f":"IF(TRIM(BH224)=\"\", \"\", IF(VLOOKUP(BH224,'Footnotes list'!$D$9:$E$58,2,FALSE)=0,\"\",VLOOKUP(BH224,'Footnotes list'!$D$9:$E$58,2,FALSE) ) )","v":""},null,null,null,null,{"$f":"IF(TRIM(BM224)=\"\", \"\", IF(VLOOKUP(BM224,'Footnotes list'!$D$9:$E$58,2,FALSE)=0,\"\",VLOOKUP(BM224,'Footnotes list'!$D$9:$E$58,2,FALSE) ) )","v":""},null,null,null,null,{"$f":"IF(TRIM(BR224)=\"\", \"\", IF(VLOOKUP(BR224,'Footnotes list'!$D$9:$E$58,2,FALSE)=0,\"\",VLOOKUP(BR224,'Footnotes list'!$D$9:$E$58,2,FALSE) ) )","v":""},null,null,null,null,{"$f":"IF(TRIM(BW224)=\"\", \"\", IF(VLOOKUP(BW224,'Footnotes list'!$D$9:$E$58,2,FALSE)=0,\"\",VLOOKUP(BW224,'Footnotes list'!$D$9:$E$58,2,FALSE) ) )","v":""},null,null,null,null,{"$f":"IF(TRIM(CB224)=\"\", \"\", IF(VLOOKUP(CB224,'Footnotes list'!$D$9:$E$58,2,FALSE)=0,\"\",VLOOKUP(CB224,'Footnotes list'!$D$9:$E$58,2,FALSE) ) )","v":""},null,null,null,null,{"$f":"IF(TRIM(CG224)=\"\", \"\", IF(VLOOKUP(CG224,'Footnotes list'!$D$9:$E$58,2,FALSE)=0,\"\",VLOOKUP(CG224,'Footnotes list'!$D$9:$E$58,2,FALSE) ) )","v":""},null,null,null,null,{"$f":"IF(TRIM(CL224)=\"\", \"\", IF(VLOOKUP(CL224,'Footnotes list'!$D$9:$E$58,2,FALSE)=0,\"\",VLOOKUP(CL224,'Footnotes list'!$D$9:$E$58,2,FALSE) ) )","v":""},null,null,null,null,{"$f":"IF(TRIM(CQ224)=\"\", \"\", IF(VLOOKUP(CQ224,'Footnotes list'!$D$9:$E$58,2,FALSE)=0,\"\",VLOOKUP(CQ224,'Footnotes list'!$D$9:$E$58,2,FALSE) ) )","v":""},null,null,null,null,{"$f":"IF(TRIM(CV224)=\"\", \"\", IF(VLOOKUP(CV224,'Footnotes list'!$D$9:$E$58,2,FALSE)=0,\"\",VLOOKUP(CV224,'Footnotes list'!$D$9:$E$58,2,FALSE) ) )","v":""},null,null,null,null,{"$f":"IF(TRIM(DA224)=\"\", \"\", IF(VLOOKUP(DA224,'Footnotes list'!$D$9:$E$58,2,FALSE)=0,\"\",VLOOKUP(DA224,'Footnotes list'!$D$9:$E$58,2,FALSE) ) )","v":""},null,null,null,null,{"$f":"IF(TRIM(DF224)=\"\", \"\", IF(VLOOKUP(DF224,'Footnotes list'!$D$9:$E$58,2,FALSE)=0,\"\",VLOOKUP(DF224,'Footnotes list'!$D$9:$E$58,2,FALSE) ) )","v":""},null,null,null,null,{"$f":"IF(TRIM(DK224)=\"\", \"\", IF(VLOOKUP(DK224,'Footnotes list'!$D$9:$E$58,2,FALSE)=0,\"\",VLOOKUP(DK224,'Footnotes list'!$D$9:$E$58,2,FALSE) ) )","v":""},null,null,null,null,{"$f":"IF(TRIM(DP224)=\"\", \"\", IF(VLOOKUP(DP224,'Footnotes list'!$D$9:$E$58,2,FALSE)=0,\"\",VLOOKUP(DP224,'Footnotes list'!$D$9:$E$58,2,FALSE) ) )","v":""},null,null,null,null,{"$f":"IF(TRIM(DU224)=\"\", \"\", IF(VLOOKUP(DU224,'Footnotes list'!$D$9:$E$58,2,FALSE)=0,\"\",VLOOKUP(DU224,'Footnotes list'!$D$9:$E$58,2,FALSE) ) )","v":""},null,null,null,null,{"$f":"IF(TRIM(DZ224)=\"\", \"\", IF(VLOOKUP(DZ224,'Footnotes list'!$D$9:$E$58,2,FALSE)=0,\"\",VLOOKUP(DZ224,'Footnotes list'!$D$9:$E$58,2,FALSE) ) )","v":""},null,null,null,null,{"$f":"IF(TRIM(EE224)=\"\", \"\", IF(VLOOKUP(EE224,'Footnotes list'!$D$9:$E$58,2,FALSE)=0,\"\",VLOOKUP(EE224,'Footnotes list'!$D$9:$E$58,2,FALSE) ) )","v":""},null,null,null,null,{"$f":"IF(TRIM(EJ224)=\"\", \"\", IF(VLOOKUP(EJ224,'Footnotes list'!$D$9:$E$58,2,FALSE)=0,\"\",VLOOKUP(EJ224,'Footnotes list'!$D$9:$E$58,2,FALSE) ) )","v":""},null,null,null,null,{"$f":"IF(TRIM(EO224)=\"\", \"\", IF(VLOOKUP(EO224,'Footnotes list'!$D$9:$E$58,2,FALSE)=0,\"\",VLOOKUP(EO224,'Footnotes list'!$D$9:$E$58,2,FALSE) ) )","v":""},null,null,null,null,{"$f":"IF(TRIM(ET224)=\"\", \"\", IF(VLOOKUP(ET224,'Footnotes list'!$D$9:$E$58,2,FALSE)=0,\"\",VLOOKUP(ET224,'Footnotes list'!$D$9:$E$58,2,FALSE) ) )","v":""},null,null,null,null,{"$f":"IF(TRIM(EY224)=\"\", \"\", IF(VLOOKUP(EY224,'Footnotes list'!$D$9:$E$58,2,FALSE)=0,\"\",VLOOKUP(EY224,'Footnotes list'!$D$9:$E$58,2,FALSE) ) )","v":""}]
[null,null,"M69_M70","TOT_EGSS","Total M69-M70 - Legal and accounting activities; Activities of head offices; management consultancy activities, of which:",null,null,null,null,null,{"$f":"IF(TRIM(J225)=\"\", \"\", IF(VLOOKUP(J225,'Footnotes list'!$D$9:$E$58,2,FALSE)=0,\"\",VLOOKUP(J225,'Footnotes list'!$D$9:$E$58,2,FALSE) ) )","v":""},null,null,null,null,{"$f":"IF(TRIM(O225)=\"\", \"\", IF(VLOOKUP(O225,'Footnotes list'!$D$9:$E$58,2,FALSE)=0,\"\",VLOOKUP(O225,'Footnotes list'!$D$9:$E$58,2,FALSE) ) )","v":""},null,null,null,null,{"$f":"IF(TRIM(T225)=\"\", \"\", IF(VLOOKUP(T225,'Footnotes list'!$D$9:$E$58,2,FALSE)=0,\"\",VLOOKUP(T225,'Footnotes list'!$D$9:$E$58,2,FALSE) ) )","v":""},null,null,null,null,{"$f":"IF(TRIM(Y225)=\"\", \"\", IF(VLOOKUP(Y225,'Footnotes list'!$D$9:$E$58,2,FALSE)=0,\"\",VLOOKUP(Y225,'Footnotes list'!$D$9:$E$58,2,FALSE) ) )","v":""},null,null,null,null,{"$f":"IF(TRIM(AD225)=\"\", \"\", IF(VLOOKUP(AD225,'Footnotes list'!$D$9:$E$58,2,FALSE)=0,\"\",VLOOKUP(AD225,'Footnotes list'!$D$9:$E$58,2,FALSE) ) )","v":""},null,null,null,null,{"$f":"IF(TRIM(AI225)=\"\", \"\", IF(VLOOKUP(AI225,'Footnotes list'!$D$9:$E$58,2,FALSE)=0,\"\",VLOOKUP(AI225,'Footnotes list'!$D$9:$E$58,2,FALSE) ) )","v":""},null,null,null,null,{"$f":"IF(TRIM(AN225)=\"\", \"\", IF(VLOOKUP(AN225,'Footnotes list'!$D$9:$E$58,2,FALSE)=0,\"\",VLOOKUP(AN225,'Footnotes list'!$D$9:$E$58,2,FALSE) ) )","v":""},null,null,null,null,{"$f":"IF(TRIM(AS225)=\"\", \"\", IF(VLOOKUP(AS225,'Footnotes list'!$D$9:$E$58,2,FALSE)=0,\"\",VLOOKUP(AS225,'Footnotes list'!$D$9:$E$58,2,FALSE) ) )","v":""},null,null,null,null,{"$f":"IF(TRIM(AX225)=\"\", \"\", IF(VLOOKUP(AX225,'Footnotes list'!$D$9:$E$58,2,FALSE)=0,\"\",VLOOKUP(AX225,'Footnotes list'!$D$9:$E$58,2,FALSE) ) )","v":""},null,null,null,null,{"$f":"IF(TRIM(BC225)=\"\", \"\", IF(VLOOKUP(BC225,'Footnotes list'!$D$9:$E$58,2,FALSE)=0,\"\",VLOOKUP(BC225,'Footnotes list'!$D$9:$E$58,2,FALSE) ) )","v":""},null,null,null,null,{"$f":"IF(TRIM(BH225)=\"\", \"\", IF(VLOOKUP(BH225,'Footnotes list'!$D$9:$E$58,2,FALSE)=0,\"\",VLOOKUP(BH225,'Footnotes list'!$D$9:$E$58,2,FALSE) ) )","v":""},null,null,null,null,{"$f":"IF(TRIM(BM225)=\"\", \"\", IF(VLOOKUP(BM225,'Footnotes list'!$D$9:$E$58,2,FALSE)=0,\"\",VLOOKUP(BM225,'Footnotes list'!$D$9:$E$58,2,FALSE) ) )","v":""},null,null,null,null,{"$f":"IF(TRIM(BR225)=\"\", \"\", IF(VLOOKUP(BR225,'Footnotes list'!$D$9:$E$58,2,FALSE)=0,\"\",VLOOKUP(BR225,'Footnotes list'!$D$9:$E$58,2,FALSE) ) )","v":""},null,null,null,null,{"$f":"IF(TRIM(BW225)=\"\", \"\", IF(VLOOKUP(BW225,'Footnotes list'!$D$9:$E$58,2,FALSE)=0,\"\",VLOOKUP(BW225,'Footnotes list'!$D$9:$E$58,2,FALSE) ) )","v":""},null,null,null,null,{"$f":"IF(TRIM(CB225)=\"\", \"\", IF(VLOOKUP(CB225,'Footnotes list'!$D$9:$E$58,2,FALSE)=0,\"\",VLOOKUP(CB225,'Footnotes list'!$D$9:$E$58,2,FALSE) ) )","v":""},null,null,null,null,{"$f":"IF(TRIM(CG225)=\"\", \"\", IF(VLOOKUP(CG225,'Footnotes list'!$D$9:$E$58,2,FALSE)=0,\"\",VLOOKUP(CG225,'Footnotes list'!$D$9:$E$58,2,FALSE) ) )","v":""},null,null,null,null,{"$f":"IF(TRIM(CL225)=\"\", \"\", IF(VLOOKUP(CL225,'Footnotes list'!$D$9:$E$58,2,FALSE)=0,\"\",VLOOKUP(CL225,'Footnotes list'!$D$9:$E$58,2,FALSE) ) )","v":""},null,null,null,null,{"$f":"IF(TRIM(CQ225)=\"\", \"\", IF(VLOOKUP(CQ225,'Footnotes list'!$D$9:$E$58,2,FALSE)=0,\"\",VLOOKUP(CQ225,'Footnotes list'!$D$9:$E$58,2,FALSE) ) )","v":""},null,null,null,null,{"$f":"IF(TRIM(CV225)=\"\", \"\", IF(VLOOKUP(CV225,'Footnotes list'!$D$9:$E$58,2,FALSE)=0,\"\",VLOOKUP(CV225,'Footnotes list'!$D$9:$E$58,2,FALSE) ) )","v":""},null,null,null,null,{"$f":"IF(TRIM(DA225)=\"\", \"\", IF(VLOOKUP(DA225,'Footnotes list'!$D$9:$E$58,2,FALSE)=0,\"\",VLOOKUP(DA225,'Footnotes list'!$D$9:$E$58,2,FALSE) ) )","v":""},null,null,null,null,{"$f":"IF(TRIM(DF225)=\"\", \"\", IF(VLOOKUP(DF225,'Footnotes list'!$D$9:$E$58,2,FALSE)=0,\"\",VLOOKUP(DF225,'Footnotes list'!$D$9:$E$58,2,FALSE) ) )","v":""},null,null,null,null,{"$f":"IF(TRIM(DK225)=\"\", \"\", IF(VLOOKUP(DK225,'Footnotes list'!$D$9:$E$58,2,FALSE)=0,\"\",VLOOKUP(DK225,'Footnotes list'!$D$9:$E$58,2,FALSE) ) )","v":""},null,null,null,null,{"$f":"IF(TRIM(DP225)=\"\", \"\", IF(VLOOKUP(DP225,'Footnotes list'!$D$9:$E$58,2,FALSE)=0,\"\",VLOOKUP(DP225,'Footnotes list'!$D$9:$E$58,2,FALSE) ) )","v":""},null,null,null,null,{"$f":"IF(TRIM(DU225)=\"\", \"\", IF(VLOOKUP(DU225,'Footnotes list'!$D$9:$E$58,2,FALSE)=0,\"\",VLOOKUP(DU225,'Footnotes list'!$D$9:$E$58,2,FALSE) ) )","v":""},null,null,null,null,{"$f":"IF(TRIM(DZ225)=\"\", \"\", IF(VLOOKUP(DZ225,'Footnotes list'!$D$9:$E$58,2,FALSE)=0,\"\",VLOOKUP(DZ225,'Footnotes list'!$D$9:$E$58,2,FALSE) ) )","v":""},null,null,null,null,{"$f":"IF(TRIM(EE225)=\"\", \"\", IF(VLOOKUP(EE225,'Footnotes list'!$D$9:$E$58,2,FALSE)=0,\"\",VLOOKUP(EE225,'Footnotes list'!$D$9:$E$58,2,FALSE) ) )","v":""},null,null,null,null,{"$f":"IF(TRIM(EJ225)=\"\", \"\", IF(VLOOKUP(EJ225,'Footnotes list'!$D$9:$E$58,2,FALSE)=0,\"\",VLOOKUP(EJ225,'Footnotes list'!$D$9:$E$58,2,FALSE) ) )","v":""},null,null,null,null,{"$f":"IF(TRIM(EO225)=\"\", \"\", IF(VLOOKUP(EO225,'Footnotes list'!$D$9:$E$58,2,FALSE)=0,\"\",VLOOKUP(EO225,'Footnotes list'!$D$9:$E$58,2,FALSE) ) )","v":""},null,null,null,null,{"$f":"IF(TRIM(ET225)=\"\", \"\", IF(VLOOKUP(ET225,'Footnotes list'!$D$9:$E$58,2,FALSE)=0,\"\",VLOOKUP(ET225,'Footnotes list'!$D$9:$E$58,2,FALSE) ) )","v":""},null,null,null,null,{"$f":"IF(TRIM(EY225)=\"\", \"\", IF(VLOOKUP(EY225,'Footnotes list'!$D$9:$E$58,2,FALSE)=0,\"\",VLOOKUP(EY225,'Footnotes list'!$D$9:$E$58,2,FALSE) ) )","v":""}]
[null,null,"M69_M70","ANC","ancillary activities",null,null,null,null,null,{"$f":"IF(TRIM(J226)=\"\", \"\", IF(VLOOKUP(J226,'Footnotes list'!$D$9:$E$58,2,FALSE)=0,\"\",VLOOKUP(J226,'Footnotes list'!$D$9:$E$58,2,FALSE) ) )","v":""},null,null,null,null,{"$f":"IF(TRIM(O226)=\"\", \"\", IF(VLOOKUP(O226,'Footnotes list'!$D$9:$E$58,2,FALSE)=0,\"\",VLOOKUP(O226,'Footnotes list'!$D$9:$E$58,2,FALSE) ) )","v":""},null,null,null,null,{"$f":"IF(TRIM(T226)=\"\", \"\", IF(VLOOKUP(T226,'Footnotes list'!$D$9:$E$58,2,FALSE)=0,\"\",VLOOKUP(T226,'Footnotes list'!$D$9:$E$58,2,FALSE) ) )","v":""},null,null,null,null,{"$f":"IF(TRIM(Y226)=\"\", \"\", IF(VLOOKUP(Y226,'Footnotes list'!$D$9:$E$58,2,FALSE)=0,\"\",VLOOKUP(Y226,'Footnotes list'!$D$9:$E$58,2,FALSE) ) )","v":""},null,null,null,null,{"$f":"IF(TRIM(AD226)=\"\", \"\", IF(VLOOKUP(AD226,'Footnotes list'!$D$9:$E$58,2,FALSE)=0,\"\",VLOOKUP(AD226,'Footnotes list'!$D$9:$E$58,2,FALSE) ) )","v":""},null,null,null,null,{"$f":"IF(TRIM(AI226)=\"\", \"\", IF(VLOOKUP(AI226,'Footnotes list'!$D$9:$E$58,2,FALSE)=0,\"\",VLOOKUP(AI226,'Footnotes list'!$D$9:$E$58,2,FALSE) ) )","v":""},null,null,null,null,{"$f":"IF(TRIM(AN226)=\"\", \"\", IF(VLOOKUP(AN226,'Footnotes list'!$D$9:$E$58,2,FALSE)=0,\"\",VLOOKUP(AN226,'Footnotes list'!$D$9:$E$58,2,FALSE) ) )","v":""},null,null,null,null,{"$f":"IF(TRIM(AS226)=\"\", \"\", IF(VLOOKUP(AS226,'Footnotes list'!$D$9:$E$58,2,FALSE)=0,\"\",VLOOKUP(AS226,'Footnotes list'!$D$9:$E$58,2,FALSE) ) )","v":""},null,null,null,null,{"$f":"IF(TRIM(AX226)=\"\", \"\", IF(VLOOKUP(AX226,'Footnotes list'!$D$9:$E$58,2,FALSE)=0,\"\",VLOOKUP(AX226,'Footnotes list'!$D$9:$E$58,2,FALSE) ) )","v":""},null,null,null,null,{"$f":"IF(TRIM(BC226)=\"\", \"\", IF(VLOOKUP(BC226,'Footnotes list'!$D$9:$E$58,2,FALSE)=0,\"\",VLOOKUP(BC226,'Footnotes list'!$D$9:$E$58,2,FALSE) ) )","v":""},null,null,null,null,{"$f":"IF(TRIM(BH226)=\"\", \"\", IF(VLOOKUP(BH226,'Footnotes list'!$D$9:$E$58,2,FALSE)=0,\"\",VLOOKUP(BH226,'Footnotes list'!$D$9:$E$58,2,FALSE) ) )","v":""},null,null,null,null,{"$f":"IF(TRIM(BM226)=\"\", \"\", IF(VLOOKUP(BM226,'Footnotes list'!$D$9:$E$58,2,FALSE)=0,\"\",VLOOKUP(BM226,'Footnotes list'!$D$9:$E$58,2,FALSE) ) )","v":""},null,null,null,null,{"$f":"IF(TRIM(BR226)=\"\", \"\", IF(VLOOKUP(BR226,'Footnotes list'!$D$9:$E$58,2,FALSE)=0,\"\",VLOOKUP(BR226,'Footnotes list'!$D$9:$E$58,2,FALSE) ) )","v":""},null,null,null,null,{"$f":"IF(TRIM(BW226)=\"\", \"\", IF(VLOOKUP(BW226,'Footnotes list'!$D$9:$E$58,2,FALSE)=0,\"\",VLOOKUP(BW226,'Footnotes list'!$D$9:$E$58,2,FALSE) ) )","v":""},null,null,null,null,{"$f":"IF(TRIM(CB226)=\"\", \"\", IF(VLOOKUP(CB226,'Footnotes list'!$D$9:$E$58,2,FALSE)=0,\"\",VLOOKUP(CB226,'Footnotes list'!$D$9:$E$58,2,FALSE) ) )","v":""},null,null,null,null,{"$f":"IF(TRIM(CG226)=\"\", \"\", IF(VLOOKUP(CG226,'Footnotes list'!$D$9:$E$58,2,FALSE)=0,\"\",VLOOKUP(CG226,'Footnotes list'!$D$9:$E$58,2,FALSE) ) )","v":""},null,null,null,null,{"$f":"IF(TRIM(CL226)=\"\", \"\", IF(VLOOKUP(CL226,'Footnotes list'!$D$9:$E$58,2,FALSE)=0,\"\",VLOOKUP(CL226,'Footnotes list'!$D$9:$E$58,2,FALSE) ) )","v":""},null,null,null,null,{"$f":"IF(TRIM(CQ226)=\"\", \"\", IF(VLOOKUP(CQ226,'Footnotes list'!$D$9:$E$58,2,FALSE)=0,\"\",VLOOKUP(CQ226,'Footnotes list'!$D$9:$E$58,2,FALSE) ) )","v":""},null,null,null,null,{"$f":"IF(TRIM(CV226)=\"\", \"\", IF(VLOOKUP(CV226,'Footnotes list'!$D$9:$E$58,2,FALSE)=0,\"\",VLOOKUP(CV226,'Footnotes list'!$D$9:$E$58,2,FALSE) ) )","v":""},null,null,null,null,{"$f":"IF(TRIM(DA226)=\"\", \"\", IF(VLOOKUP(DA226,'Footnotes list'!$D$9:$E$58,2,FALSE)=0,\"\",VLOOKUP(DA226,'Footnotes list'!$D$9:$E$58,2,FALSE) ) )","v":""},null,null,null,null,{"$f":"IF(TRIM(DF226)=\"\", \"\", IF(VLOOKUP(DF226,'Footnotes list'!$D$9:$E$58,2,FALSE)=0,\"\",VLOOKUP(DF226,'Footnotes list'!$D$9:$E$58,2,FALSE) ) )","v":""},null,null,null,null,{"$f":"IF(TRIM(DK226)=\"\", \"\", IF(VLOOKUP(DK226,'Footnotes list'!$D$9:$E$58,2,FALSE)=0,\"\",VLOOKUP(DK226,'Footnotes list'!$D$9:$E$58,2,FALSE) ) )","v":""},null,null,null,null,{"$f":"IF(TRIM(DP226)=\"\", \"\", IF(VLOOKUP(DP226,'Footnotes list'!$D$9:$E$58,2,FALSE)=0,\"\",VLOOKUP(DP226,'Footnotes list'!$D$9:$E$58,2,FALSE) ) )","v":""},null,null,null,null,{"$f":"IF(TRIM(DU226)=\"\", \"\", IF(VLOOKUP(DU226,'Footnotes list'!$D$9:$E$58,2,FALSE)=0,\"\",VLOOKUP(DU226,'Footnotes list'!$D$9:$E$58,2,FALSE) ) )","v":""},null,null,null,null,{"$f":"IF(TRIM(DZ226)=\"\", \"\", IF(VLOOKUP(DZ226,'Footnotes list'!$D$9:$E$58,2,FALSE)=0,\"\",VLOOKUP(DZ226,'Footnotes list'!$D$9:$E$58,2,FALSE) ) )","v":""},null,null,null,null,{"$f":"IF(TRIM(EE226)=\"\", \"\", IF(VLOOKUP(EE226,'Footnotes list'!$D$9:$E$58,2,FALSE)=0,\"\",VLOOKUP(EE226,'Footnotes list'!$D$9:$E$58,2,FALSE) ) )","v":""},null,null,null,null,{"$f":"IF(TRIM(EJ226)=\"\", \"\", IF(VLOOKUP(EJ226,'Footnotes list'!$D$9:$E$58,2,FALSE)=0,\"\",VLOOKUP(EJ226,'Footnotes list'!$D$9:$E$58,2,FALSE) ) )","v":""},null,null,null,null,{"$f":"IF(TRIM(EO226)=\"\", \"\", IF(VLOOKUP(EO226,'Footnotes list'!$D$9:$E$58,2,FALSE)=0,\"\",VLOOKUP(EO226,'Footnotes list'!$D$9:$E$58,2,FALSE) ) )","v":""},null,null,null,null,{"$f":"IF(TRIM(ET226)=\"\", \"\", IF(VLOOKUP(ET226,'Footnotes list'!$D$9:$E$58,2,FALSE)=0,\"\",VLOOKUP(ET226,'Footnotes list'!$D$9:$E$58,2,FALSE) ) )","v":""},null,null,null,null,{"$f":"IF(TRIM(EY226)=\"\", \"\", IF(VLOOKUP(EY226,'Footnotes list'!$D$9:$E$58,2,FALSE)=0,\"\",VLOOKUP(EY226,'Footnotes list'!$D$9:$E$58,2,FALSE) ) )","v":""}]
[null,null,"M69_M70","NMKT","non-market activities",null,null,null,null,null,{"$f":"IF(TRIM(J227)=\"\", \"\", IF(VLOOKUP(J227,'Footnotes list'!$D$9:$E$58,2,FALSE)=0,\"\",VLOOKUP(J227,'Footnotes list'!$D$9:$E$58,2,FALSE) ) )","v":""},null,null,null,null,{"$f":"IF(TRIM(O227)=\"\", \"\", IF(VLOOKUP(O227,'Footnotes list'!$D$9:$E$58,2,FALSE)=0,\"\",VLOOKUP(O227,'Footnotes list'!$D$9:$E$58,2,FALSE) ) )","v":""},null,null,null,null,{"$f":"IF(TRIM(T227)=\"\", \"\", IF(VLOOKUP(T227,'Footnotes list'!$D$9:$E$58,2,FALSE)=0,\"\",VLOOKUP(T227,'Footnotes list'!$D$9:$E$58,2,FALSE) ) )","v":""},null,null,null,null,{"$f":"IF(TRIM(Y227)=\"\", \"\", IF(VLOOKUP(Y227,'Footnotes list'!$D$9:$E$58,2,FALSE)=0,\"\",VLOOKUP(Y227,'Footnotes list'!$D$9:$E$58,2,FALSE) ) )","v":""},null,null,null,null,{"$f":"IF(TRIM(AD227)=\"\", \"\", IF(VLOOKUP(AD227,'Footnotes list'!$D$9:$E$58,2,FALSE)=0,\"\",VLOOKUP(AD227,'Footnotes list'!$D$9:$E$58,2,FALSE) ) )","v":""},null,null,null,null,{"$f":"IF(TRIM(AI227)=\"\", \"\", IF(VLOOKUP(AI227,'Footnotes list'!$D$9:$E$58,2,FALSE)=0,\"\",VLOOKUP(AI227,'Footnotes list'!$D$9:$E$58,2,FALSE) ) )","v":""},null,null,null,null,{"$f":"IF(TRIM(AN227)=\"\", \"\", IF(VLOOKUP(AN227,'Footnotes list'!$D$9:$E$58,2,FALSE)=0,\"\",VLOOKUP(AN227,'Footnotes list'!$D$9:$E$58,2,FALSE) ) )","v":""},null,null,null,null,{"$f":"IF(TRIM(AS227)=\"\", \"\", IF(VLOOKUP(AS227,'Footnotes list'!$D$9:$E$58,2,FALSE)=0,\"\",VLOOKUP(AS227,'Footnotes list'!$D$9:$E$58,2,FALSE) ) )","v":""},null,null,null,null,{"$f":"IF(TRIM(AX227)=\"\", \"\", IF(VLOOKUP(AX227,'Footnotes list'!$D$9:$E$58,2,FALSE)=0,\"\",VLOOKUP(AX227,'Footnotes list'!$D$9:$E$58,2,FALSE) ) )","v":""},null,null,null,null,{"$f":"IF(TRIM(BC227)=\"\", \"\", IF(VLOOKUP(BC227,'Footnotes list'!$D$9:$E$58,2,FALSE)=0,\"\",VLOOKUP(BC227,'Footnotes list'!$D$9:$E$58,2,FALSE) ) )","v":""},null,null,null,null,{"$f":"IF(TRIM(BH227)=\"\", \"\", IF(VLOOKUP(BH227,'Footnotes list'!$D$9:$E$58,2,FALSE)=0,\"\",VLOOKUP(BH227,'Footnotes list'!$D$9:$E$58,2,FALSE) ) )","v":""},null,null,null,null,{"$f":"IF(TRIM(BM227)=\"\", \"\", IF(VLOOKUP(BM227,'Footnotes list'!$D$9:$E$58,2,FALSE)=0,\"\",VLOOKUP(BM227,'Footnotes list'!$D$9:$E$58,2,FALSE) ) )","v":""},null,null,null,null,{"$f":"IF(TRIM(BR227)=\"\", \"\", IF(VLOOKUP(BR227,'Footnotes list'!$D$9:$E$58,2,FALSE)=0,\"\",VLOOKUP(BR227,'Footnotes list'!$D$9:$E$58,2,FALSE) ) )","v":""},null,null,null,null,{"$f":"IF(TRIM(BW227)=\"\", \"\", IF(VLOOKUP(BW227,'Footnotes list'!$D$9:$E$58,2,FALSE)=0,\"\",VLOOKUP(BW227,'Footnotes list'!$D$9:$E$58,2,FALSE) ) )","v":""},null,null,null,null,{"$f":"IF(TRIM(CB227)=\"\", \"\", IF(VLOOKUP(CB227,'Footnotes list'!$D$9:$E$58,2,FALSE)=0,\"\",VLOOKUP(CB227,'Footnotes list'!$D$9:$E$58,2,FALSE) ) )","v":""},null,null,null,null,{"$f":"IF(TRIM(CG227)=\"\", \"\", IF(VLOOKUP(CG227,'Footnotes list'!$D$9:$E$58,2,FALSE)=0,\"\",VLOOKUP(CG227,'Footnotes list'!$D$9:$E$58,2,FALSE) ) )","v":""},null,null,null,null,{"$f":"IF(TRIM(CL227)=\"\", \"\", IF(VLOOKUP(CL227,'Footnotes list'!$D$9:$E$58,2,FALSE)=0,\"\",VLOOKUP(CL227,'Footnotes list'!$D$9:$E$58,2,FALSE) ) )","v":""},null,null,null,null,{"$f":"IF(TRIM(CQ227)=\"\", \"\", IF(VLOOKUP(CQ227,'Footnotes list'!$D$9:$E$58,2,FALSE)=0,\"\",VLOOKUP(CQ227,'Footnotes list'!$D$9:$E$58,2,FALSE) ) )","v":""},null,null,null,null,{"$f":"IF(TRIM(CV227)=\"\", \"\", IF(VLOOKUP(CV227,'Footnotes list'!$D$9:$E$58,2,FALSE)=0,\"\",VLOOKUP(CV227,'Footnotes list'!$D$9:$E$58,2,FALSE) ) )","v":""},null,null,null,null,{"$f":"IF(TRIM(DA227)=\"\", \"\", IF(VLOOKUP(DA227,'Footnotes list'!$D$9:$E$58,2,FALSE)=0,\"\",VLOOKUP(DA227,'Footnotes list'!$D$9:$E$58,2,FALSE) ) )","v":""},null,null,null,null,{"$f":"IF(TRIM(DF227)=\"\", \"\", IF(VLOOKUP(DF227,'Footnotes list'!$D$9:$E$58,2,FALSE)=0,\"\",VLOOKUP(DF227,'Footnotes list'!$D$9:$E$58,2,FALSE) ) )","v":""},null,null,null,null,{"$f":"IF(TRIM(DK227)=\"\", \"\", IF(VLOOKUP(DK227,'Footnotes list'!$D$9:$E$58,2,FALSE)=0,\"\",VLOOKUP(DK227,'Footnotes list'!$D$9:$E$58,2,FALSE) ) )","v":""},null,null,null,null,{"$f":"IF(TRIM(DP227)=\"\", \"\", IF(VLOOKUP(DP227,'Footnotes list'!$D$9:$E$58,2,FALSE)=0,\"\",VLOOKUP(DP227,'Footnotes list'!$D$9:$E$58,2,FALSE) ) )","v":""},null,null,null,null,{"$f":"IF(TRIM(DU227)=\"\", \"\", IF(VLOOKUP(DU227,'Footnotes list'!$D$9:$E$58,2,FALSE)=0,\"\",VLOOKUP(DU227,'Footnotes list'!$D$9:$E$58,2,FALSE) ) )","v":""},null,null,null,null,{"$f":"IF(TRIM(DZ227)=\"\", \"\", IF(VLOOKUP(DZ227,'Footnotes list'!$D$9:$E$58,2,FALSE)=0,\"\",VLOOKUP(DZ227,'Footnotes list'!$D$9:$E$58,2,FALSE) ) )","v":""},null,null,null,null,{"$f":"IF(TRIM(EE227)=\"\", \"\", IF(VLOOKUP(EE227,'Footnotes list'!$D$9:$E$58,2,FALSE)=0,\"\",VLOOKUP(EE227,'Footnotes list'!$D$9:$E$58,2,FALSE) ) )","v":""},null,null,null,null,{"$f":"IF(TRIM(EJ227)=\"\", \"\", IF(VLOOKUP(EJ227,'Footnotes list'!$D$9:$E$58,2,FALSE)=0,\"\",VLOOKUP(EJ227,'Footnotes list'!$D$9:$E$58,2,FALSE) ) )","v":""},null,null,null,null,{"$f":"IF(TRIM(EO227)=\"\", \"\", IF(VLOOKUP(EO227,'Footnotes list'!$D$9:$E$58,2,FALSE)=0,\"\",VLOOKUP(EO227,'Footnotes list'!$D$9:$E$58,2,FALSE) ) )","v":""},null,null,null,null,{"$f":"IF(TRIM(ET227)=\"\", \"\", IF(VLOOKUP(ET227,'Footnotes list'!$D$9:$E$58,2,FALSE)=0,\"\",VLOOKUP(ET227,'Footnotes list'!$D$9:$E$58,2,FALSE) ) )","v":""},null,null,null,null,{"$f":"IF(TRIM(EY227)=\"\", \"\", IF(VLOOKUP(EY227,'Footnotes list'!$D$9:$E$58,2,FALSE)=0,\"\",VLOOKUP(EY227,'Footnotes list'!$D$9:$E$58,2,FALSE) ) )","v":""}]
[null,null,"M69_M70","OWN_USE","activities for own final use",null,null,null,null,null,{"$f":"IF(TRIM(J228)=\"\", \"\", IF(VLOOKUP(J228,'Footnotes list'!$D$9:$E$58,2,FALSE)=0,\"\",VLOOKUP(J228,'Footnotes list'!$D$9:$E$58,2,FALSE) ) )","v":""},null,null,null,null,{"$f":"IF(TRIM(O228)=\"\", \"\", IF(VLOOKUP(O228,'Footnotes list'!$D$9:$E$58,2,FALSE)=0,\"\",VLOOKUP(O228,'Footnotes list'!$D$9:$E$58,2,FALSE) ) )","v":""},null,null,null,null,{"$f":"IF(TRIM(T228)=\"\", \"\", IF(VLOOKUP(T228,'Footnotes list'!$D$9:$E$58,2,FALSE)=0,\"\",VLOOKUP(T228,'Footnotes list'!$D$9:$E$58,2,FALSE) ) )","v":""},null,null,null,null,{"$f":"IF(TRIM(Y228)=\"\", \"\", IF(VLOOKUP(Y228,'Footnotes list'!$D$9:$E$58,2,FALSE)=0,\"\",VLOOKUP(Y228,'Footnotes list'!$D$9:$E$58,2,FALSE) ) )","v":""},null,null,null,null,{"$f":"IF(TRIM(AD228)=\"\", \"\", IF(VLOOKUP(AD228,'Footnotes list'!$D$9:$E$58,2,FALSE)=0,\"\",VLOOKUP(AD228,'Footnotes list'!$D$9:$E$58,2,FALSE) ) )","v":""},null,null,null,null,{"$f":"IF(TRIM(AI228)=\"\", \"\", IF(VLOOKUP(AI228,'Footnotes list'!$D$9:$E$58,2,FALSE)=0,\"\",VLOOKUP(AI228,'Footnotes list'!$D$9:$E$58,2,FALSE) ) )","v":""},null,null,null,null,{"$f":"IF(TRIM(AN228)=\"\", \"\", IF(VLOOKUP(AN228,'Footnotes list'!$D$9:$E$58,2,FALSE)=0,\"\",VLOOKUP(AN228,'Footnotes list'!$D$9:$E$58,2,FALSE) ) )","v":""},null,null,null,null,{"$f":"IF(TRIM(AS228)=\"\", \"\", IF(VLOOKUP(AS228,'Footnotes list'!$D$9:$E$58,2,FALSE)=0,\"\",VLOOKUP(AS228,'Footnotes list'!$D$9:$E$58,2,FALSE) ) )","v":""},null,null,null,null,{"$f":"IF(TRIM(AX228)=\"\", \"\", IF(VLOOKUP(AX228,'Footnotes list'!$D$9:$E$58,2,FALSE)=0,\"\",VLOOKUP(AX228,'Footnotes list'!$D$9:$E$58,2,FALSE) ) )","v":""},null,null,null,null,{"$f":"IF(TRIM(BC228)=\"\", \"\", IF(VLOOKUP(BC228,'Footnotes list'!$D$9:$E$58,2,FALSE)=0,\"\",VLOOKUP(BC228,'Footnotes list'!$D$9:$E$58,2,FALSE) ) )","v":""},null,null,null,null,{"$f":"IF(TRIM(BH228)=\"\", \"\", IF(VLOOKUP(BH228,'Footnotes list'!$D$9:$E$58,2,FALSE)=0,\"\",VLOOKUP(BH228,'Footnotes list'!$D$9:$E$58,2,FALSE) ) )","v":""},null,null,null,null,{"$f":"IF(TRIM(BM228)=\"\", \"\", IF(VLOOKUP(BM228,'Footnotes list'!$D$9:$E$58,2,FALSE)=0,\"\",VLOOKUP(BM228,'Footnotes list'!$D$9:$E$58,2,FALSE) ) )","v":""},null,null,null,null,{"$f":"IF(TRIM(BR228)=\"\", \"\", IF(VLOOKUP(BR228,'Footnotes list'!$D$9:$E$58,2,FALSE)=0,\"\",VLOOKUP(BR228,'Footnotes list'!$D$9:$E$58,2,FALSE) ) )","v":""},null,null,null,null,{"$f":"IF(TRIM(BW228)=\"\", \"\", IF(VLOOKUP(BW228,'Footnotes list'!$D$9:$E$58,2,FALSE)=0,\"\",VLOOKUP(BW228,'Footnotes list'!$D$9:$E$58,2,FALSE) ) )","v":""},null,null,null,null,{"$f":"IF(TRIM(CB228)=\"\", \"\", IF(VLOOKUP(CB228,'Footnotes list'!$D$9:$E$58,2,FALSE)=0,\"\",VLOOKUP(CB228,'Footnotes list'!$D$9:$E$58,2,FALSE) ) )","v":""},null,null,null,null,{"$f":"IF(TRIM(CG228)=\"\", \"\", IF(VLOOKUP(CG228,'Footnotes list'!$D$9:$E$58,2,FALSE)=0,\"\",VLOOKUP(CG228,'Footnotes list'!$D$9:$E$58,2,FALSE) ) )","v":""},null,null,null,null,{"$f":"IF(TRIM(CL228)=\"\", \"\", IF(VLOOKUP(CL228,'Footnotes list'!$D$9:$E$58,2,FALSE)=0,\"\",VLOOKUP(CL228,'Footnotes list'!$D$9:$E$58,2,FALSE) ) )","v":""},null,null,null,null,{"$f":"IF(TRIM(CQ228)=\"\", \"\", IF(VLOOKUP(CQ228,'Footnotes list'!$D$9:$E$58,2,FALSE)=0,\"\",VLOOKUP(CQ228,'Footnotes list'!$D$9:$E$58,2,FALSE) ) )","v":""},null,null,null,null,{"$f":"IF(TRIM(CV228)=\"\", \"\", IF(VLOOKUP(CV228,'Footnotes list'!$D$9:$E$58,2,FALSE)=0,\"\",VLOOKUP(CV228,'Footnotes list'!$D$9:$E$58,2,FALSE) ) )","v":""},null,null,null,null,{"$f":"IF(TRIM(DA228)=\"\", \"\", IF(VLOOKUP(DA228,'Footnotes list'!$D$9:$E$58,2,FALSE)=0,\"\",VLOOKUP(DA228,'Footnotes list'!$D$9:$E$58,2,FALSE) ) )","v":""},null,null,null,null,{"$f":"IF(TRIM(DF228)=\"\", \"\", IF(VLOOKUP(DF228,'Footnotes list'!$D$9:$E$58,2,FALSE)=0,\"\",VLOOKUP(DF228,'Footnotes list'!$D$9:$E$58,2,FALSE) ) )","v":""},null,null,null,null,{"$f":"IF(TRIM(DK228)=\"\", \"\", IF(VLOOKUP(DK228,'Footnotes list'!$D$9:$E$58,2,FALSE)=0,\"\",VLOOKUP(DK228,'Footnotes list'!$D$9:$E$58,2,FALSE) ) )","v":""},null,null,null,null,{"$f":"IF(TRIM(DP228)=\"\", \"\", IF(VLOOKUP(DP228,'Footnotes list'!$D$9:$E$58,2,FALSE)=0,\"\",VLOOKUP(DP228,'Footnotes list'!$D$9:$E$58,2,FALSE) ) )","v":""},null,null,null,null,{"$f":"IF(TRIM(DU228)=\"\", \"\", IF(VLOOKUP(DU228,'Footnotes list'!$D$9:$E$58,2,FALSE)=0,\"\",VLOOKUP(DU228,'Footnotes list'!$D$9:$E$58,2,FALSE) ) )","v":""},null,null,null,null,{"$f":"IF(TRIM(DZ228)=\"\", \"\", IF(VLOOKUP(DZ228,'Footnotes list'!$D$9:$E$58,2,FALSE)=0,\"\",VLOOKUP(DZ228,'Footnotes list'!$D$9:$E$58,2,FALSE) ) )","v":""},null,null,null,null,{"$f":"IF(TRIM(EE228)=\"\", \"\", IF(VLOOKUP(EE228,'Footnotes list'!$D$9:$E$58,2,FALSE)=0,\"\",VLOOKUP(EE228,'Footnotes list'!$D$9:$E$58,2,FALSE) ) )","v":""},null,null,null,null,{"$f":"IF(TRIM(EJ228)=\"\", \"\", IF(VLOOKUP(EJ228,'Footnotes list'!$D$9:$E$58,2,FALSE)=0,\"\",VLOOKUP(EJ228,'Footnotes list'!$D$9:$E$58,2,FALSE) ) )","v":""},null,null,null,null,{"$f":"IF(TRIM(EO228)=\"\", \"\", IF(VLOOKUP(EO228,'Footnotes list'!$D$9:$E$58,2,FALSE)=0,\"\",VLOOKUP(EO228,'Footnotes list'!$D$9:$E$58,2,FALSE) ) )","v":""},null,null,null,null,{"$f":"IF(TRIM(ET228)=\"\", \"\", IF(VLOOKUP(ET228,'Footnotes list'!$D$9:$E$58,2,FALSE)=0,\"\",VLOOKUP(ET228,'Footnotes list'!$D$9:$E$58,2,FALSE) ) )","v":""},null,null,null,null,{"$f":"IF(TRIM(EY228)=\"\", \"\", IF(VLOOKUP(EY228,'Footnotes list'!$D$9:$E$58,2,FALSE)=0,\"\",VLOOKUP(EY228,'Footnotes list'!$D$9:$E$58,2,FALSE) ) )","v":""}]
[null,null,"M69_M70","MKT","market activities, including:",null,null,null,null,null,{"$f":"IF(TRIM(J229)=\"\", \"\", IF(VLOOKUP(J229,'Footnotes list'!$D$9:$E$58,2,FALSE)=0,\"\",VLOOKUP(J229,'Footnotes list'!$D$9:$E$58,2,FALSE) ) )","v":""},null,null,null,null,{"$f":"IF(TRIM(O229)=\"\", \"\", IF(VLOOKUP(O229,'Footnotes list'!$D$9:$E$58,2,FALSE)=0,\"\",VLOOKUP(O229,'Footnotes list'!$D$9:$E$58,2,FALSE) ) )","v":""},null,null,null,null,{"$f":"IF(TRIM(T229)=\"\", \"\", IF(VLOOKUP(T229,'Footnotes list'!$D$9:$E$58,2,FALSE)=0,\"\",VLOOKUP(T229,'Footnotes list'!$D$9:$E$58,2,FALSE) ) )","v":""},null,null,null,null,{"$f":"IF(TRIM(Y229)=\"\", \"\", IF(VLOOKUP(Y229,'Footnotes list'!$D$9:$E$58,2,FALSE)=0,\"\",VLOOKUP(Y229,'Footnotes list'!$D$9:$E$58,2,FALSE) ) )","v":""},null,null,null,null,{"$f":"IF(TRIM(AD229)=\"\", \"\", IF(VLOOKUP(AD229,'Footnotes list'!$D$9:$E$58,2,FALSE)=0,\"\",VLOOKUP(AD229,'Footnotes list'!$D$9:$E$58,2,FALSE) ) )","v":""},null,null,null,null,{"$f":"IF(TRIM(AI229)=\"\", \"\", IF(VLOOKUP(AI229,'Footnotes list'!$D$9:$E$58,2,FALSE)=0,\"\",VLOOKUP(AI229,'Footnotes list'!$D$9:$E$58,2,FALSE) ) )","v":""},null,null,null,null,{"$f":"IF(TRIM(AN229)=\"\", \"\", IF(VLOOKUP(AN229,'Footnotes list'!$D$9:$E$58,2,FALSE)=0,\"\",VLOOKUP(AN229,'Footnotes list'!$D$9:$E$58,2,FALSE) ) )","v":""},null,null,null,null,{"$f":"IF(TRIM(AS229)=\"\", \"\", IF(VLOOKUP(AS229,'Footnotes list'!$D$9:$E$58,2,FALSE)=0,\"\",VLOOKUP(AS229,'Footnotes list'!$D$9:$E$58,2,FALSE) ) )","v":""},null,null,null,null,{"$f":"IF(TRIM(AX229)=\"\", \"\", IF(VLOOKUP(AX229,'Footnotes list'!$D$9:$E$58,2,FALSE)=0,\"\",VLOOKUP(AX229,'Footnotes list'!$D$9:$E$58,2,FALSE) ) )","v":""},null,null,null,null,{"$f":"IF(TRIM(BC229)=\"\", \"\", IF(VLOOKUP(BC229,'Footnotes list'!$D$9:$E$58,2,FALSE)=0,\"\",VLOOKUP(BC229,'Footnotes list'!$D$9:$E$58,2,FALSE) ) )","v":""},null,null,null,null,{"$f":"IF(TRIM(BH229)=\"\", \"\", IF(VLOOKUP(BH229,'Footnotes list'!$D$9:$E$58,2,FALSE)=0,\"\",VLOOKUP(BH229,'Footnotes list'!$D$9:$E$58,2,FALSE) ) )","v":""},null,null,null,null,{"$f":"IF(TRIM(BM229)=\"\", \"\", IF(VLOOKUP(BM229,'Footnotes list'!$D$9:$E$58,2,FALSE)=0,\"\",VLOOKUP(BM229,'Footnotes list'!$D$9:$E$58,2,FALSE) ) )","v":""},null,null,null,null,{"$f":"IF(TRIM(BR229)=\"\", \"\", IF(VLOOKUP(BR229,'Footnotes list'!$D$9:$E$58,2,FALSE)=0,\"\",VLOOKUP(BR229,'Footnotes list'!$D$9:$E$58,2,FALSE) ) )","v":""},null,null,null,null,{"$f":"IF(TRIM(BW229)=\"\", \"\", IF(VLOOKUP(BW229,'Footnotes list'!$D$9:$E$58,2,FALSE)=0,\"\",VLOOKUP(BW229,'Footnotes list'!$D$9:$E$58,2,FALSE) ) )","v":""},null,null,null,null,{"$f":"IF(TRIM(CB229)=\"\", \"\", IF(VLOOKUP(CB229,'Footnotes list'!$D$9:$E$58,2,FALSE)=0,\"\",VLOOKUP(CB229,'Footnotes list'!$D$9:$E$58,2,FALSE) ) )","v":""},null,null,null,null,{"$f":"IF(TRIM(CG229)=\"\", \"\", IF(VLOOKUP(CG229,'Footnotes list'!$D$9:$E$58,2,FALSE)=0,\"\",VLOOKUP(CG229,'Footnotes list'!$D$9:$E$58,2,FALSE) ) )","v":""},null,null,null,null,{"$f":"IF(TRIM(CL229)=\"\", \"\", IF(VLOOKUP(CL229,'Footnotes list'!$D$9:$E$58,2,FALSE)=0,\"\",VLOOKUP(CL229,'Footnotes list'!$D$9:$E$58,2,FALSE) ) )","v":""},null,null,null,null,{"$f":"IF(TRIM(CQ229)=\"\", \"\", IF(VLOOKUP(CQ229,'Footnotes list'!$D$9:$E$58,2,FALSE)=0,\"\",VLOOKUP(CQ229,'Footnotes list'!$D$9:$E$58,2,FALSE) ) )","v":""},null,null,null,null,{"$f":"IF(TRIM(CV229)=\"\", \"\", IF(VLOOKUP(CV229,'Footnotes list'!$D$9:$E$58,2,FALSE)=0,\"\",VLOOKUP(CV229,'Footnotes list'!$D$9:$E$58,2,FALSE) ) )","v":""},null,null,null,null,{"$f":"IF(TRIM(DA229)=\"\", \"\", IF(VLOOKUP(DA229,'Footnotes list'!$D$9:$E$58,2,FALSE)=0,\"\",VLOOKUP(DA229,'Footnotes list'!$D$9:$E$58,2,FALSE) ) )","v":""},null,null,null,null,{"$f":"IF(TRIM(DF229)=\"\", \"\", IF(VLOOKUP(DF229,'Footnotes list'!$D$9:$E$58,2,FALSE)=0,\"\",VLOOKUP(DF229,'Footnotes list'!$D$9:$E$58,2,FALSE) ) )","v":""},null,null,null,null,{"$f":"IF(TRIM(DK229)=\"\", \"\", IF(VLOOKUP(DK229,'Footnotes list'!$D$9:$E$58,2,FALSE)=0,\"\",VLOOKUP(DK229,'Footnotes list'!$D$9:$E$58,2,FALSE) ) )","v":""},null,null,null,null,{"$f":"IF(TRIM(DP229)=\"\", \"\", IF(VLOOKUP(DP229,'Footnotes list'!$D$9:$E$58,2,FALSE)=0,\"\",VLOOKUP(DP229,'Footnotes list'!$D$9:$E$58,2,FALSE) ) )","v":""},null,null,null,null,{"$f":"IF(TRIM(DU229)=\"\", \"\", IF(VLOOKUP(DU229,'Footnotes list'!$D$9:$E$58,2,FALSE)=0,\"\",VLOOKUP(DU229,'Footnotes list'!$D$9:$E$58,2,FALSE) ) )","v":""},null,null,null,null,{"$f":"IF(TRIM(DZ229)=\"\", \"\", IF(VLOOKUP(DZ229,'Footnotes list'!$D$9:$E$58,2,FALSE)=0,\"\",VLOOKUP(DZ229,'Footnotes list'!$D$9:$E$58,2,FALSE) ) )","v":""},null,null,null,null,{"$f":"IF(TRIM(EE229)=\"\", \"\", IF(VLOOKUP(EE229,'Footnotes list'!$D$9:$E$58,2,FALSE)=0,\"\",VLOOKUP(EE229,'Footnotes list'!$D$9:$E$58,2,FALSE) ) )","v":""},null,null,null,null,{"$f":"IF(TRIM(EJ229)=\"\", \"\", IF(VLOOKUP(EJ229,'Footnotes list'!$D$9:$E$58,2,FALSE)=0,\"\",VLOOKUP(EJ229,'Footnotes list'!$D$9:$E$58,2,FALSE) ) )","v":""},null,null,null,null,{"$f":"IF(TRIM(EO229)=\"\", \"\", IF(VLOOKUP(EO229,'Footnotes list'!$D$9:$E$58,2,FALSE)=0,\"\",VLOOKUP(EO229,'Footnotes list'!$D$9:$E$58,2,FALSE) ) )","v":""},null,null,null,null,{"$f":"IF(TRIM(ET229)=\"\", \"\", IF(VLOOKUP(ET229,'Footnotes list'!$D$9:$E$58,2,FALSE)=0,\"\",VLOOKUP(ET229,'Footnotes list'!$D$9:$E$58,2,FALSE) ) )","v":""},null,null,null,null,{"$f":"IF(TRIM(EY229)=\"\", \"\", IF(VLOOKUP(EY229,'Footnotes list'!$D$9:$E$58,2,FALSE)=0,\"\",VLOOKUP(EY229,'Footnotes list'!$D$9:$E$58,2,FALSE) ) )","v":""}]
[null,null,"M69_M70","ES_CS","environmental specific services",null,null,null,null,null,{"$f":"IF(TRIM(J230)=\"\", \"\", IF(VLOOKUP(J230,'Footnotes list'!$D$9:$E$58,2,FALSE)=0,\"\",VLOOKUP(J230,'Footnotes list'!$D$9:$E$58,2,FALSE) ) )","v":""},null,null,null,null,{"$f":"IF(TRIM(O230)=\"\", \"\", IF(VLOOKUP(O230,'Footnotes list'!$D$9:$E$58,2,FALSE)=0,\"\",VLOOKUP(O230,'Footnotes list'!$D$9:$E$58,2,FALSE) ) )","v":""},null,null,null,null,{"$f":"IF(TRIM(T230)=\"\", \"\", IF(VLOOKUP(T230,'Footnotes list'!$D$9:$E$58,2,FALSE)=0,\"\",VLOOKUP(T230,'Footnotes list'!$D$9:$E$58,2,FALSE) ) )","v":""},null,null,null,null,{"$f":"IF(TRIM(Y230)=\"\", \"\", IF(VLOOKUP(Y230,'Footnotes list'!$D$9:$E$58,2,FALSE)=0,\"\",VLOOKUP(Y230,'Footnotes list'!$D$9:$E$58,2,FALSE) ) )","v":""},null,null,null,null,{"$f":"IF(TRIM(AD230)=\"\", \"\", IF(VLOOKUP(AD230,'Footnotes list'!$D$9:$E$58,2,FALSE)=0,\"\",VLOOKUP(AD230,'Footnotes list'!$D$9:$E$58,2,FALSE) ) )","v":""},null,null,null,null,{"$f":"IF(TRIM(AI230)=\"\", \"\", IF(VLOOKUP(AI230,'Footnotes list'!$D$9:$E$58,2,FALSE)=0,\"\",VLOOKUP(AI230,'Footnotes list'!$D$9:$E$58,2,FALSE) ) )","v":""},null,null,null,null,{"$f":"IF(TRIM(AN230)=\"\", \"\", IF(VLOOKUP(AN230,'Footnotes list'!$D$9:$E$58,2,FALSE)=0,\"\",VLOOKUP(AN230,'Footnotes list'!$D$9:$E$58,2,FALSE) ) )","v":""},null,null,null,null,{"$f":"IF(TRIM(AS230)=\"\", \"\", IF(VLOOKUP(AS230,'Footnotes list'!$D$9:$E$58,2,FALSE)=0,\"\",VLOOKUP(AS230,'Footnotes list'!$D$9:$E$58,2,FALSE) ) )","v":""},null,null,null,null,{"$f":"IF(TRIM(AX230)=\"\", \"\", IF(VLOOKUP(AX230,'Footnotes list'!$D$9:$E$58,2,FALSE)=0,\"\",VLOOKUP(AX230,'Footnotes list'!$D$9:$E$58,2,FALSE) ) )","v":""},null,null,null,null,{"$f":"IF(TRIM(BC230)=\"\", \"\", IF(VLOOKUP(BC230,'Footnotes list'!$D$9:$E$58,2,FALSE)=0,\"\",VLOOKUP(BC230,'Footnotes list'!$D$9:$E$58,2,FALSE) ) )","v":""},null,null,null,null,{"$f":"IF(TRIM(BH230)=\"\", \"\", IF(VLOOKUP(BH230,'Footnotes list'!$D$9:$E$58,2,FALSE)=0,\"\",VLOOKUP(BH230,'Footnotes list'!$D$9:$E$58,2,FALSE) ) )","v":""},null,null,null,null,{"$f":"IF(TRIM(BM230)=\"\", \"\", IF(VLOOKUP(BM230,'Footnotes list'!$D$9:$E$58,2,FALSE)=0,\"\",VLOOKUP(BM230,'Footnotes list'!$D$9:$E$58,2,FALSE) ) )","v":""},null,null,null,null,{"$f":"IF(TRIM(BR230)=\"\", \"\", IF(VLOOKUP(BR230,'Footnotes list'!$D$9:$E$58,2,FALSE)=0,\"\",VLOOKUP(BR230,'Footnotes list'!$D$9:$E$58,2,FALSE) ) )","v":""},null,null,null,null,{"$f":"IF(TRIM(BW230)=\"\", \"\", IF(VLOOKUP(BW230,'Footnotes list'!$D$9:$E$58,2,FALSE)=0,\"\",VLOOKUP(BW230,'Footnotes list'!$D$9:$E$58,2,FALSE) ) )","v":""},null,null,null,null,{"$f":"IF(TRIM(CB230)=\"\", \"\", IF(VLOOKUP(CB230,'Footnotes list'!$D$9:$E$58,2,FALSE)=0,\"\",VLOOKUP(CB230,'Footnotes list'!$D$9:$E$58,2,FALSE) ) )","v":""},null,null,null,null,{"$f":"IF(TRIM(CG230)=\"\", \"\", IF(VLOOKUP(CG230,'Footnotes list'!$D$9:$E$58,2,FALSE)=0,\"\",VLOOKUP(CG230,'Footnotes list'!$D$9:$E$58,2,FALSE) ) )","v":""},null,null,null,null,{"$f":"IF(TRIM(CL230)=\"\", \"\", IF(VLOOKUP(CL230,'Footnotes list'!$D$9:$E$58,2,FALSE)=0,\"\",VLOOKUP(CL230,'Footnotes list'!$D$9:$E$58,2,FALSE) ) )","v":""},null,null,null,null,{"$f":"IF(TRIM(CQ230)=\"\", \"\", IF(VLOOKUP(CQ230,'Footnotes list'!$D$9:$E$58,2,FALSE)=0,\"\",VLOOKUP(CQ230,'Footnotes list'!$D$9:$E$58,2,FALSE) ) )","v":""},null,null,null,null,{"$f":"IF(TRIM(CV230)=\"\", \"\", IF(VLOOKUP(CV230,'Footnotes list'!$D$9:$E$58,2,FALSE)=0,\"\",VLOOKUP(CV230,'Footnotes list'!$D$9:$E$58,2,FALSE) ) )","v":""},null,null,null,null,{"$f":"IF(TRIM(DA230)=\"\", \"\", IF(VLOOKUP(DA230,'Footnotes list'!$D$9:$E$58,2,FALSE)=0,\"\",VLOOKUP(DA230,'Footnotes list'!$D$9:$E$58,2,FALSE) ) )","v":""},null,null,null,null,{"$f":"IF(TRIM(DF230)=\"\", \"\", IF(VLOOKUP(DF230,'Footnotes list'!$D$9:$E$58,2,FALSE)=0,\"\",VLOOKUP(DF230,'Footnotes list'!$D$9:$E$58,2,FALSE) ) )","v":""},null,null,null,null,{"$f":"IF(TRIM(DK230)=\"\", \"\", IF(VLOOKUP(DK230,'Footnotes list'!$D$9:$E$58,2,FALSE)=0,\"\",VLOOKUP(DK230,'Footnotes list'!$D$9:$E$58,2,FALSE) ) )","v":""},null,null,null,null,{"$f":"IF(TRIM(DP230)=\"\", \"\", IF(VLOOKUP(DP230,'Footnotes list'!$D$9:$E$58,2,FALSE)=0,\"\",VLOOKUP(DP230,'Footnotes list'!$D$9:$E$58,2,FALSE) ) )","v":""},null,null,null,null,{"$f":"IF(TRIM(DU230)=\"\", \"\", IF(VLOOKUP(DU230,'Footnotes list'!$D$9:$E$58,2,FALSE)=0,\"\",VLOOKUP(DU230,'Footnotes list'!$D$9:$E$58,2,FALSE) ) )","v":""},null,null,null,null,{"$f":"IF(TRIM(DZ230)=\"\", \"\", IF(VLOOKUP(DZ230,'Footnotes list'!$D$9:$E$58,2,FALSE)=0,\"\",VLOOKUP(DZ230,'Footnotes list'!$D$9:$E$58,2,FALSE) ) )","v":""},null,null,null,null,{"$f":"IF(TRIM(EE230)=\"\", \"\", IF(VLOOKUP(EE230,'Footnotes list'!$D$9:$E$58,2,FALSE)=0,\"\",VLOOKUP(EE230,'Footnotes list'!$D$9:$E$58,2,FALSE) ) )","v":""},null,null,null,null,{"$f":"IF(TRIM(EJ230)=\"\", \"\", IF(VLOOKUP(EJ230,'Footnotes list'!$D$9:$E$58,2,FALSE)=0,\"\",VLOOKUP(EJ230,'Footnotes list'!$D$9:$E$58,2,FALSE) ) )","v":""},null,null,null,null,{"$f":"IF(TRIM(EO230)=\"\", \"\", IF(VLOOKUP(EO230,'Footnotes list'!$D$9:$E$58,2,FALSE)=0,\"\",VLOOKUP(EO230,'Footnotes list'!$D$9:$E$58,2,FALSE) ) )","v":""},null,null,null,null,{"$f":"IF(TRIM(ET230)=\"\", \"\", IF(VLOOKUP(ET230,'Footnotes list'!$D$9:$E$58,2,FALSE)=0,\"\",VLOOKUP(ET230,'Footnotes list'!$D$9:$E$58,2,FALSE) ) )","v":""},null,null,null,null,{"$f":"IF(TRIM(EY230)=\"\", \"\", IF(VLOOKUP(EY230,'Footnotes list'!$D$9:$E$58,2,FALSE)=0,\"\",VLOOKUP(EY230,'Footnotes list'!$D$9:$E$58,2,FALSE) ) )","v":""}]
[null,null,"M69_M70","C_REP","cleaner and resource efficient products",null,null,null,null,null,{"$f":"IF(TRIM(J231)=\"\", \"\", IF(VLOOKUP(J231,'Footnotes list'!$D$9:$E$58,2,FALSE)=0,\"\",VLOOKUP(J231,'Footnotes list'!$D$9:$E$58,2,FALSE) ) )","v":""},null,null,null,null,{"$f":"IF(TRIM(O231)=\"\", \"\", IF(VLOOKUP(O231,'Footnotes list'!$D$9:$E$58,2,FALSE)=0,\"\",VLOOKUP(O231,'Footnotes list'!$D$9:$E$58,2,FALSE) ) )","v":""},null,null,null,null,{"$f":"IF(TRIM(T231)=\"\", \"\", IF(VLOOKUP(T231,'Footnotes list'!$D$9:$E$58,2,FALSE)=0,\"\",VLOOKUP(T231,'Footnotes list'!$D$9:$E$58,2,FALSE) ) )","v":""},null,null,null,null,{"$f":"IF(TRIM(Y231)=\"\", \"\", IF(VLOOKUP(Y231,'Footnotes list'!$D$9:$E$58,2,FALSE)=0,\"\",VLOOKUP(Y231,'Footnotes list'!$D$9:$E$58,2,FALSE) ) )","v":""},null,null,null,null,{"$f":"IF(TRIM(AD231)=\"\", \"\", IF(VLOOKUP(AD231,'Footnotes list'!$D$9:$E$58,2,FALSE)=0,\"\",VLOOKUP(AD231,'Footnotes list'!$D$9:$E$58,2,FALSE) ) )","v":""},null,null,null,null,{"$f":"IF(TRIM(AI231)=\"\", \"\", IF(VLOOKUP(AI231,'Footnotes list'!$D$9:$E$58,2,FALSE)=0,\"\",VLOOKUP(AI231,'Footnotes list'!$D$9:$E$58,2,FALSE) ) )","v":""},null,null,null,null,{"$f":"IF(TRIM(AN231)=\"\", \"\", IF(VLOOKUP(AN231,'Footnotes list'!$D$9:$E$58,2,FALSE)=0,\"\",VLOOKUP(AN231,'Footnotes list'!$D$9:$E$58,2,FALSE) ) )","v":""},null,null,null,null,{"$f":"IF(TRIM(AS231)=\"\", \"\", IF(VLOOKUP(AS231,'Footnotes list'!$D$9:$E$58,2,FALSE)=0,\"\",VLOOKUP(AS231,'Footnotes list'!$D$9:$E$58,2,FALSE) ) )","v":""},null,null,null,null,{"$f":"IF(TRIM(AX231)=\"\", \"\", IF(VLOOKUP(AX231,'Footnotes list'!$D$9:$E$58,2,FALSE)=0,\"\",VLOOKUP(AX231,'Footnotes list'!$D$9:$E$58,2,FALSE) ) )","v":""},null,null,null,null,{"$f":"IF(TRIM(BC231)=\"\", \"\", IF(VLOOKUP(BC231,'Footnotes list'!$D$9:$E$58,2,FALSE)=0,\"\",VLOOKUP(BC231,'Footnotes list'!$D$9:$E$58,2,FALSE) ) )","v":""},null,null,null,null,{"$f":"IF(TRIM(BH231)=\"\", \"\", IF(VLOOKUP(BH231,'Footnotes list'!$D$9:$E$58,2,FALSE)=0,\"\",VLOOKUP(BH231,'Footnotes list'!$D$9:$E$58,2,FALSE) ) )","v":""},null,null,null,null,{"$f":"IF(TRIM(BM231)=\"\", \"\", IF(VLOOKUP(BM231,'Footnotes list'!$D$9:$E$58,2,FALSE)=0,\"\",VLOOKUP(BM231,'Footnotes list'!$D$9:$E$58,2,FALSE) ) )","v":""},null,null,null,null,{"$f":"IF(TRIM(BR231)=\"\", \"\", IF(VLOOKUP(BR231,'Footnotes list'!$D$9:$E$58,2,FALSE)=0,\"\",VLOOKUP(BR231,'Footnotes list'!$D$9:$E$58,2,FALSE) ) )","v":""},null,null,null,null,{"$f":"IF(TRIM(BW231)=\"\", \"\", IF(VLOOKUP(BW231,'Footnotes list'!$D$9:$E$58,2,FALSE)=0,\"\",VLOOKUP(BW231,'Footnotes list'!$D$9:$E$58,2,FALSE) ) )","v":""},null,null,null,null,{"$f":"IF(TRIM(CB231)=\"\", \"\", IF(VLOOKUP(CB231,'Footnotes list'!$D$9:$E$58,2,FALSE)=0,\"\",VLOOKUP(CB231,'Footnotes list'!$D$9:$E$58,2,FALSE) ) )","v":""},null,null,null,null,{"$f":"IF(TRIM(CG231)=\"\", \"\", IF(VLOOKUP(CG231,'Footnotes list'!$D$9:$E$58,2,FALSE)=0,\"\",VLOOKUP(CG231,'Footnotes list'!$D$9:$E$58,2,FALSE) ) )","v":""},null,null,null,null,{"$f":"IF(TRIM(CL231)=\"\", \"\", IF(VLOOKUP(CL231,'Footnotes list'!$D$9:$E$58,2,FALSE)=0,\"\",VLOOKUP(CL231,'Footnotes list'!$D$9:$E$58,2,FALSE) ) )","v":""},null,null,null,null,{"$f":"IF(TRIM(CQ231)=\"\", \"\", IF(VLOOKUP(CQ231,'Footnotes list'!$D$9:$E$58,2,FALSE)=0,\"\",VLOOKUP(CQ231,'Footnotes list'!$D$9:$E$58,2,FALSE) ) )","v":""},null,null,null,null,{"$f":"IF(TRIM(CV231)=\"\", \"\", IF(VLOOKUP(CV231,'Footnotes list'!$D$9:$E$58,2,FALSE)=0,\"\",VLOOKUP(CV231,'Footnotes list'!$D$9:$E$58,2,FALSE) ) )","v":""},null,null,null,null,{"$f":"IF(TRIM(DA231)=\"\", \"\", IF(VLOOKUP(DA231,'Footnotes list'!$D$9:$E$58,2,FALSE)=0,\"\",VLOOKUP(DA231,'Footnotes list'!$D$9:$E$58,2,FALSE) ) )","v":""},null,null,null,null,{"$f":"IF(TRIM(DF231)=\"\", \"\", IF(VLOOKUP(DF231,'Footnotes list'!$D$9:$E$58,2,FALSE)=0,\"\",VLOOKUP(DF231,'Footnotes list'!$D$9:$E$58,2,FALSE) ) )","v":""},null,null,null,null,{"$f":"IF(TRIM(DK231)=\"\", \"\", IF(VLOOKUP(DK231,'Footnotes list'!$D$9:$E$58,2,FALSE)=0,\"\",VLOOKUP(DK231,'Footnotes list'!$D$9:$E$58,2,FALSE) ) )","v":""},null,null,null,null,{"$f":"IF(TRIM(DP231)=\"\", \"\", IF(VLOOKUP(DP231,'Footnotes list'!$D$9:$E$58,2,FALSE)=0,\"\",VLOOKUP(DP231,'Footnotes list'!$D$9:$E$58,2,FALSE) ) )","v":""},null,null,null,null,{"$f":"IF(TRIM(DU231)=\"\", \"\", IF(VLOOKUP(DU231,'Footnotes list'!$D$9:$E$58,2,FALSE)=0,\"\",VLOOKUP(DU231,'Footnotes list'!$D$9:$E$58,2,FALSE) ) )","v":""},null,null,null,null,{"$f":"IF(TRIM(DZ231)=\"\", \"\", IF(VLOOKUP(DZ231,'Footnotes list'!$D$9:$E$58,2,FALSE)=0,\"\",VLOOKUP(DZ231,'Footnotes list'!$D$9:$E$58,2,FALSE) ) )","v":""},null,null,null,null,{"$f":"IF(TRIM(EE231)=\"\", \"\", IF(VLOOKUP(EE231,'Footnotes list'!$D$9:$E$58,2,FALSE)=0,\"\",VLOOKUP(EE231,'Footnotes list'!$D$9:$E$58,2,FALSE) ) )","v":""},null,null,null,null,{"$f":"IF(TRIM(EJ231)=\"\", \"\", IF(VLOOKUP(EJ231,'Footnotes list'!$D$9:$E$58,2,FALSE)=0,\"\",VLOOKUP(EJ231,'Footnotes list'!$D$9:$E$58,2,FALSE) ) )","v":""},null,null,null,null,{"$f":"IF(TRIM(EO231)=\"\", \"\", IF(VLOOKUP(EO231,'Footnotes list'!$D$9:$E$58,2,FALSE)=0,\"\",VLOOKUP(EO231,'Footnotes list'!$D$9:$E$58,2,FALSE) ) )","v":""},null,null,null,null,{"$f":"IF(TRIM(ET231)=\"\", \"\", IF(VLOOKUP(ET231,'Footnotes list'!$D$9:$E$58,2,FALSE)=0,\"\",VLOOKUP(ET231,'Footnotes list'!$D$9:$E$58,2,FALSE) ) )","v":""},null,null,null,null,{"$f":"IF(TRIM(EY231)=\"\", \"\", IF(VLOOKUP(EY231,'Footnotes list'!$D$9:$E$58,2,FALSE)=0,\"\",VLOOKUP(EY231,'Footnotes list'!$D$9:$E$58,2,FALSE) ) )","v":""}]
[null,null,"M71","TOT_EGSS","Total M71 - Architectural and engineering activities; technical testing and analysis, of which:",null,null,null,null,null,{"$f":"IF(TRIM(J232)=\"\", \"\", IF(VLOOKUP(J232,'Footnotes list'!$D$9:$E$58,2,FALSE)=0,\"\",VLOOKUP(J232,'Footnotes list'!$D$9:$E$58,2,FALSE) ) )","v":""},null,null,null,null,{"$f":"IF(TRIM(O232)=\"\", \"\", IF(VLOOKUP(O232,'Footnotes list'!$D$9:$E$58,2,FALSE)=0,\"\",VLOOKUP(O232,'Footnotes list'!$D$9:$E$58,2,FALSE) ) )","v":""},null,null,null,null,{"$f":"IF(TRIM(T232)=\"\", \"\", IF(VLOOKUP(T232,'Footnotes list'!$D$9:$E$58,2,FALSE)=0,\"\",VLOOKUP(T232,'Footnotes list'!$D$9:$E$58,2,FALSE) ) )","v":""},null,null,null,null,{"$f":"IF(TRIM(Y232)=\"\", \"\", IF(VLOOKUP(Y232,'Footnotes list'!$D$9:$E$58,2,FALSE)=0,\"\",VLOOKUP(Y232,'Footnotes list'!$D$9:$E$58,2,FALSE) ) )","v":""},null,null,null,null,{"$f":"IF(TRIM(AD232)=\"\", \"\", IF(VLOOKUP(AD232,'Footnotes list'!$D$9:$E$58,2,FALSE)=0,\"\",VLOOKUP(AD232,'Footnotes list'!$D$9:$E$58,2,FALSE) ) )","v":""},null,null,null,null,{"$f":"IF(TRIM(AI232)=\"\", \"\", IF(VLOOKUP(AI232,'Footnotes list'!$D$9:$E$58,2,FALSE)=0,\"\",VLOOKUP(AI232,'Footnotes list'!$D$9:$E$58,2,FALSE) ) )","v":""},null,null,null,null,{"$f":"IF(TRIM(AN232)=\"\", \"\", IF(VLOOKUP(AN232,'Footnotes list'!$D$9:$E$58,2,FALSE)=0,\"\",VLOOKUP(AN232,'Footnotes list'!$D$9:$E$58,2,FALSE) ) )","v":""},null,null,null,null,{"$f":"IF(TRIM(AS232)=\"\", \"\", IF(VLOOKUP(AS232,'Footnotes list'!$D$9:$E$58,2,FALSE)=0,\"\",VLOOKUP(AS232,'Footnotes list'!$D$9:$E$58,2,FALSE) ) )","v":""},null,null,null,null,{"$f":"IF(TRIM(AX232)=\"\", \"\", IF(VLOOKUP(AX232,'Footnotes list'!$D$9:$E$58,2,FALSE)=0,\"\",VLOOKUP(AX232,'Footnotes list'!$D$9:$E$58,2,FALSE) ) )","v":""},null,null,null,null,{"$f":"IF(TRIM(BC232)=\"\", \"\", IF(VLOOKUP(BC232,'Footnotes list'!$D$9:$E$58,2,FALSE)=0,\"\",VLOOKUP(BC232,'Footnotes list'!$D$9:$E$58,2,FALSE) ) )","v":""},null,null,null,null,{"$f":"IF(TRIM(BH232)=\"\", \"\", IF(VLOOKUP(BH232,'Footnotes list'!$D$9:$E$58,2,FALSE)=0,\"\",VLOOKUP(BH232,'Footnotes list'!$D$9:$E$58,2,FALSE) ) )","v":""},null,null,null,null,{"$f":"IF(TRIM(BM232)=\"\", \"\", IF(VLOOKUP(BM232,'Footnotes list'!$D$9:$E$58,2,FALSE)=0,\"\",VLOOKUP(BM232,'Footnotes list'!$D$9:$E$58,2,FALSE) ) )","v":""},null,null,null,null,{"$f":"IF(TRIM(BR232)=\"\", \"\", IF(VLOOKUP(BR232,'Footnotes list'!$D$9:$E$58,2,FALSE)=0,\"\",VLOOKUP(BR232,'Footnotes list'!$D$9:$E$58,2,FALSE) ) )","v":""},null,null,null,null,{"$f":"IF(TRIM(BW232)=\"\", \"\", IF(VLOOKUP(BW232,'Footnotes list'!$D$9:$E$58,2,FALSE)=0,\"\",VLOOKUP(BW232,'Footnotes list'!$D$9:$E$58,2,FALSE) ) )","v":""},null,null,null,null,{"$f":"IF(TRIM(CB232)=\"\", \"\", IF(VLOOKUP(CB232,'Footnotes list'!$D$9:$E$58,2,FALSE)=0,\"\",VLOOKUP(CB232,'Footnotes list'!$D$9:$E$58,2,FALSE) ) )","v":""},null,null,null,null,{"$f":"IF(TRIM(CG232)=\"\", \"\", IF(VLOOKUP(CG232,'Footnotes list'!$D$9:$E$58,2,FALSE)=0,\"\",VLOOKUP(CG232,'Footnotes list'!$D$9:$E$58,2,FALSE) ) )","v":""},null,null,null,null,{"$f":"IF(TRIM(CL232)=\"\", \"\", IF(VLOOKUP(CL232,'Footnotes list'!$D$9:$E$58,2,FALSE)=0,\"\",VLOOKUP(CL232,'Footnotes list'!$D$9:$E$58,2,FALSE) ) )","v":""},null,null,null,null,{"$f":"IF(TRIM(CQ232)=\"\", \"\", IF(VLOOKUP(CQ232,'Footnotes list'!$D$9:$E$58,2,FALSE)=0,\"\",VLOOKUP(CQ232,'Footnotes list'!$D$9:$E$58,2,FALSE) ) )","v":""},null,null,null,null,{"$f":"IF(TRIM(CV232)=\"\", \"\", IF(VLOOKUP(CV232,'Footnotes list'!$D$9:$E$58,2,FALSE)=0,\"\",VLOOKUP(CV232,'Footnotes list'!$D$9:$E$58,2,FALSE) ) )","v":""},null,null,null,null,{"$f":"IF(TRIM(DA232)=\"\", \"\", IF(VLOOKUP(DA232,'Footnotes list'!$D$9:$E$58,2,FALSE)=0,\"\",VLOOKUP(DA232,'Footnotes list'!$D$9:$E$58,2,FALSE) ) )","v":""},null,null,null,null,{"$f":"IF(TRIM(DF232)=\"\", \"\", IF(VLOOKUP(DF232,'Footnotes list'!$D$9:$E$58,2,FALSE)=0,\"\",VLOOKUP(DF232,'Footnotes list'!$D$9:$E$58,2,FALSE) ) )","v":""},null,null,null,null,{"$f":"IF(TRIM(DK232)=\"\", \"\", IF(VLOOKUP(DK232,'Footnotes list'!$D$9:$E$58,2,FALSE)=0,\"\",VLOOKUP(DK232,'Footnotes list'!$D$9:$E$58,2,FALSE) ) )","v":""},null,null,null,null,{"$f":"IF(TRIM(DP232)=\"\", \"\", IF(VLOOKUP(DP232,'Footnotes list'!$D$9:$E$58,2,FALSE)=0,\"\",VLOOKUP(DP232,'Footnotes list'!$D$9:$E$58,2,FALSE) ) )","v":""},null,null,null,null,{"$f":"IF(TRIM(DU232)=\"\", \"\", IF(VLOOKUP(DU232,'Footnotes list'!$D$9:$E$58,2,FALSE)=0,\"\",VLOOKUP(DU232,'Footnotes list'!$D$9:$E$58,2,FALSE) ) )","v":""},null,null,null,null,{"$f":"IF(TRIM(DZ232)=\"\", \"\", IF(VLOOKUP(DZ232,'Footnotes list'!$D$9:$E$58,2,FALSE)=0,\"\",VLOOKUP(DZ232,'Footnotes list'!$D$9:$E$58,2,FALSE) ) )","v":""},null,null,null,null,{"$f":"IF(TRIM(EE232)=\"\", \"\", IF(VLOOKUP(EE232,'Footnotes list'!$D$9:$E$58,2,FALSE)=0,\"\",VLOOKUP(EE232,'Footnotes list'!$D$9:$E$58,2,FALSE) ) )","v":""},null,null,null,null,{"$f":"IF(TRIM(EJ232)=\"\", \"\", IF(VLOOKUP(EJ232,'Footnotes list'!$D$9:$E$58,2,FALSE)=0,\"\",VLOOKUP(EJ232,'Footnotes list'!$D$9:$E$58,2,FALSE) ) )","v":""},null,null,null,null,{"$f":"IF(TRIM(EO232)=\"\", \"\", IF(VLOOKUP(EO232,'Footnotes list'!$D$9:$E$58,2,FALSE)=0,\"\",VLOOKUP(EO232,'Footnotes list'!$D$9:$E$58,2,FALSE) ) )","v":""},null,null,null,null,{"$f":"IF(TRIM(ET232)=\"\", \"\", IF(VLOOKUP(ET232,'Footnotes list'!$D$9:$E$58,2,FALSE)=0,\"\",VLOOKUP(ET232,'Footnotes list'!$D$9:$E$58,2,FALSE) ) )","v":""},null,null,null,null,{"$f":"IF(TRIM(EY232)=\"\", \"\", IF(VLOOKUP(EY232,'Footnotes list'!$D$9:$E$58,2,FALSE)=0,\"\",VLOOKUP(EY232,'Footnotes list'!$D$9:$E$58,2,FALSE) ) )","v":""}]
[null,null,"M71","ANC","ancillary activities",null,null,null,null,null,{"$f":"IF(TRIM(J233)=\"\", \"\", IF(VLOOKUP(J233,'Footnotes list'!$D$9:$E$58,2,FALSE)=0,\"\",VLOOKUP(J233,'Footnotes list'!$D$9:$E$58,2,FALSE) ) )","v":""},null,null,null,null,{"$f":"IF(TRIM(O233)=\"\", \"\", IF(VLOOKUP(O233,'Footnotes list'!$D$9:$E$58,2,FALSE)=0,\"\",VLOOKUP(O233,'Footnotes list'!$D$9:$E$58,2,FALSE) ) )","v":""},null,null,null,null,{"$f":"IF(TRIM(T233)=\"\", \"\", IF(VLOOKUP(T233,'Footnotes list'!$D$9:$E$58,2,FALSE)=0,\"\",VLOOKUP(T233,'Footnotes list'!$D$9:$E$58,2,FALSE) ) )","v":""},null,null,null,null,{"$f":"IF(TRIM(Y233)=\"\", \"\", IF(VLOOKUP(Y233,'Footnotes list'!$D$9:$E$58,2,FALSE)=0,\"\",VLOOKUP(Y233,'Footnotes list'!$D$9:$E$58,2,FALSE) ) )","v":""},null,null,null,null,{"$f":"IF(TRIM(AD233)=\"\", \"\", IF(VLOOKUP(AD233,'Footnotes list'!$D$9:$E$58,2,FALSE)=0,\"\",VLOOKUP(AD233,'Footnotes list'!$D$9:$E$58,2,FALSE) ) )","v":""},null,null,null,null,{"$f":"IF(TRIM(AI233)=\"\", \"\", IF(VLOOKUP(AI233,'Footnotes list'!$D$9:$E$58,2,FALSE)=0,\"\",VLOOKUP(AI233,'Footnotes list'!$D$9:$E$58,2,FALSE) ) )","v":""},null,null,null,null,{"$f":"IF(TRIM(AN233)=\"\", \"\", IF(VLOOKUP(AN233,'Footnotes list'!$D$9:$E$58,2,FALSE)=0,\"\",VLOOKUP(AN233,'Footnotes list'!$D$9:$E$58,2,FALSE) ) )","v":""},null,null,null,null,{"$f":"IF(TRIM(AS233)=\"\", \"\", IF(VLOOKUP(AS233,'Footnotes list'!$D$9:$E$58,2,FALSE)=0,\"\",VLOOKUP(AS233,'Footnotes list'!$D$9:$E$58,2,FALSE) ) )","v":""},null,null,null,null,{"$f":"IF(TRIM(AX233)=\"\", \"\", IF(VLOOKUP(AX233,'Footnotes list'!$D$9:$E$58,2,FALSE)=0,\"\",VLOOKUP(AX233,'Footnotes list'!$D$9:$E$58,2,FALSE) ) )","v":""},null,null,null,null,{"$f":"IF(TRIM(BC233)=\"\", \"\", IF(VLOOKUP(BC233,'Footnotes list'!$D$9:$E$58,2,FALSE)=0,\"\",VLOOKUP(BC233,'Footnotes list'!$D$9:$E$58,2,FALSE) ) )","v":""},null,null,null,null,{"$f":"IF(TRIM(BH233)=\"\", \"\", IF(VLOOKUP(BH233,'Footnotes list'!$D$9:$E$58,2,FALSE)=0,\"\",VLOOKUP(BH233,'Footnotes list'!$D$9:$E$58,2,FALSE) ) )","v":""},null,null,null,null,{"$f":"IF(TRIM(BM233)=\"\", \"\", IF(VLOOKUP(BM233,'Footnotes list'!$D$9:$E$58,2,FALSE)=0,\"\",VLOOKUP(BM233,'Footnotes list'!$D$9:$E$58,2,FALSE) ) )","v":""},null,null,null,null,{"$f":"IF(TRIM(BR233)=\"\", \"\", IF(VLOOKUP(BR233,'Footnotes list'!$D$9:$E$58,2,FALSE)=0,\"\",VLOOKUP(BR233,'Footnotes list'!$D$9:$E$58,2,FALSE) ) )","v":""},null,null,null,null,{"$f":"IF(TRIM(BW233)=\"\", \"\", IF(VLOOKUP(BW233,'Footnotes list'!$D$9:$E$58,2,FALSE)=0,\"\",VLOOKUP(BW233,'Footnotes list'!$D$9:$E$58,2,FALSE) ) )","v":""},null,null,null,null,{"$f":"IF(TRIM(CB233)=\"\", \"\", IF(VLOOKUP(CB233,'Footnotes list'!$D$9:$E$58,2,FALSE)=0,\"\",VLOOKUP(CB233,'Footnotes list'!$D$9:$E$58,2,FALSE) ) )","v":""},null,null,null,null,{"$f":"IF(TRIM(CG233)=\"\", \"\", IF(VLOOKUP(CG233,'Footnotes list'!$D$9:$E$58,2,FALSE)=0,\"\",VLOOKUP(CG233,'Footnotes list'!$D$9:$E$58,2,FALSE) ) )","v":""},null,null,null,null,{"$f":"IF(TRIM(CL233)=\"\", \"\", IF(VLOOKUP(CL233,'Footnotes list'!$D$9:$E$58,2,FALSE)=0,\"\",VLOOKUP(CL233,'Footnotes list'!$D$9:$E$58,2,FALSE) ) )","v":""},null,null,null,null,{"$f":"IF(TRIM(CQ233)=\"\", \"\", IF(VLOOKUP(CQ233,'Footnotes list'!$D$9:$E$58,2,FALSE)=0,\"\",VLOOKUP(CQ233,'Footnotes list'!$D$9:$E$58,2,FALSE) ) )","v":""},null,null,null,null,{"$f":"IF(TRIM(CV233)=\"\", \"\", IF(VLOOKUP(CV233,'Footnotes list'!$D$9:$E$58,2,FALSE)=0,\"\",VLOOKUP(CV233,'Footnotes list'!$D$9:$E$58,2,FALSE) ) )","v":""},null,null,null,null,{"$f":"IF(TRIM(DA233)=\"\", \"\", IF(VLOOKUP(DA233,'Footnotes list'!$D$9:$E$58,2,FALSE)=0,\"\",VLOOKUP(DA233,'Footnotes list'!$D$9:$E$58,2,FALSE) ) )","v":""},null,null,null,null,{"$f":"IF(TRIM(DF233)=\"\", \"\", IF(VLOOKUP(DF233,'Footnotes list'!$D$9:$E$58,2,FALSE)=0,\"\",VLOOKUP(DF233,'Footnotes list'!$D$9:$E$58,2,FALSE) ) )","v":""},null,null,null,null,{"$f":"IF(TRIM(DK233)=\"\", \"\", IF(VLOOKUP(DK233,'Footnotes list'!$D$9:$E$58,2,FALSE)=0,\"\",VLOOKUP(DK233,'Footnotes list'!$D$9:$E$58,2,FALSE) ) )","v":""},null,null,null,null,{"$f":"IF(TRIM(DP233)=\"\", \"\", IF(VLOOKUP(DP233,'Footnotes list'!$D$9:$E$58,2,FALSE)=0,\"\",VLOOKUP(DP233,'Footnotes list'!$D$9:$E$58,2,FALSE) ) )","v":""},null,null,null,null,{"$f":"IF(TRIM(DU233)=\"\", \"\", IF(VLOOKUP(DU233,'Footnotes list'!$D$9:$E$58,2,FALSE)=0,\"\",VLOOKUP(DU233,'Footnotes list'!$D$9:$E$58,2,FALSE) ) )","v":""},null,null,null,null,{"$f":"IF(TRIM(DZ233)=\"\", \"\", IF(VLOOKUP(DZ233,'Footnotes list'!$D$9:$E$58,2,FALSE)=0,\"\",VLOOKUP(DZ233,'Footnotes list'!$D$9:$E$58,2,FALSE) ) )","v":""},null,null,null,null,{"$f":"IF(TRIM(EE233)=\"\", \"\", IF(VLOOKUP(EE233,'Footnotes list'!$D$9:$E$58,2,FALSE)=0,\"\",VLOOKUP(EE233,'Footnotes list'!$D$9:$E$58,2,FALSE) ) )","v":""},null,null,null,null,{"$f":"IF(TRIM(EJ233)=\"\", \"\", IF(VLOOKUP(EJ233,'Footnotes list'!$D$9:$E$58,2,FALSE)=0,\"\",VLOOKUP(EJ233,'Footnotes list'!$D$9:$E$58,2,FALSE) ) )","v":""},null,null,null,null,{"$f":"IF(TRIM(EO233)=\"\", \"\", IF(VLOOKUP(EO233,'Footnotes list'!$D$9:$E$58,2,FALSE)=0,\"\",VLOOKUP(EO233,'Footnotes list'!$D$9:$E$58,2,FALSE) ) )","v":""},null,null,null,null,{"$f":"IF(TRIM(ET233)=\"\", \"\", IF(VLOOKUP(ET233,'Footnotes list'!$D$9:$E$58,2,FALSE)=0,\"\",VLOOKUP(ET233,'Footnotes list'!$D$9:$E$58,2,FALSE) ) )","v":""},null,null,null,null,{"$f":"IF(TRIM(EY233)=\"\", \"\", IF(VLOOKUP(EY233,'Footnotes list'!$D$9:$E$58,2,FALSE)=0,\"\",VLOOKUP(EY233,'Footnotes list'!$D$9:$E$58,2,FALSE) ) )","v":""}]
[null,null,"M71","NMKT","non-market activities",null,null,null,null,null,{"$f":"IF(TRIM(J234)=\"\", \"\", IF(VLOOKUP(J234,'Footnotes list'!$D$9:$E$58,2,FALSE)=0,\"\",VLOOKUP(J234,'Footnotes list'!$D$9:$E$58,2,FALSE) ) )","v":""},null,null,null,null,{"$f":"IF(TRIM(O234)=\"\", \"\", IF(VLOOKUP(O234,'Footnotes list'!$D$9:$E$58,2,FALSE)=0,\"\",VLOOKUP(O234,'Footnotes list'!$D$9:$E$58,2,FALSE) ) )","v":""},null,null,null,null,{"$f":"IF(TRIM(T234)=\"\", \"\", IF(VLOOKUP(T234,'Footnotes list'!$D$9:$E$58,2,FALSE)=0,\"\",VLOOKUP(T234,'Footnotes list'!$D$9:$E$58,2,FALSE) ) )","v":""},null,null,null,null,{"$f":"IF(TRIM(Y234)=\"\", \"\", IF(VLOOKUP(Y234,'Footnotes list'!$D$9:$E$58,2,FALSE)=0,\"\",VLOOKUP(Y234,'Footnotes list'!$D$9:$E$58,2,FALSE) ) )","v":""},null,null,null,null,{"$f":"IF(TRIM(AD234)=\"\", \"\", IF(VLOOKUP(AD234,'Footnotes list'!$D$9:$E$58,2,FALSE)=0,\"\",VLOOKUP(AD234,'Footnotes list'!$D$9:$E$58,2,FALSE) ) )","v":""},null,null,null,null,{"$f":"IF(TRIM(AI234)=\"\", \"\", IF(VLOOKUP(AI234,'Footnotes list'!$D$9:$E$58,2,FALSE)=0,\"\",VLOOKUP(AI234,'Footnotes list'!$D$9:$E$58,2,FALSE) ) )","v":""},null,null,null,null,{"$f":"IF(TRIM(AN234)=\"\", \"\", IF(VLOOKUP(AN234,'Footnotes list'!$D$9:$E$58,2,FALSE)=0,\"\",VLOOKUP(AN234,'Footnotes list'!$D$9:$E$58,2,FALSE) ) )","v":""},null,null,null,null,{"$f":"IF(TRIM(AS234)=\"\", \"\", IF(VLOOKUP(AS234,'Footnotes list'!$D$9:$E$58,2,FALSE)=0,\"\",VLOOKUP(AS234,'Footnotes list'!$D$9:$E$58,2,FALSE) ) )","v":""},null,null,null,null,{"$f":"IF(TRIM(AX234)=\"\", \"\", IF(VLOOKUP(AX234,'Footnotes list'!$D$9:$E$58,2,FALSE)=0,\"\",VLOOKUP(AX234,'Footnotes list'!$D$9:$E$58,2,FALSE) ) )","v":""},null,null,null,null,{"$f":"IF(TRIM(BC234)=\"\", \"\", IF(VLOOKUP(BC234,'Footnotes list'!$D$9:$E$58,2,FALSE)=0,\"\",VLOOKUP(BC234,'Footnotes list'!$D$9:$E$58,2,FALSE) ) )","v":""},null,null,null,null,{"$f":"IF(TRIM(BH234)=\"\", \"\", IF(VLOOKUP(BH234,'Footnotes list'!$D$9:$E$58,2,FALSE)=0,\"\",VLOOKUP(BH234,'Footnotes list'!$D$9:$E$58,2,FALSE) ) )","v":""},null,null,null,null,{"$f":"IF(TRIM(BM234)=\"\", \"\", IF(VLOOKUP(BM234,'Footnotes list'!$D$9:$E$58,2,FALSE)=0,\"\",VLOOKUP(BM234,'Footnotes list'!$D$9:$E$58,2,FALSE) ) )","v":""},null,null,null,null,{"$f":"IF(TRIM(BR234)=\"\", \"\", IF(VLOOKUP(BR234,'Footnotes list'!$D$9:$E$58,2,FALSE)=0,\"\",VLOOKUP(BR234,'Footnotes list'!$D$9:$E$58,2,FALSE) ) )","v":""},null,null,null,null,{"$f":"IF(TRIM(BW234)=\"\", \"\", IF(VLOOKUP(BW234,'Footnotes list'!$D$9:$E$58,2,FALSE)=0,\"\",VLOOKUP(BW234,'Footnotes list'!$D$9:$E$58,2,FALSE) ) )","v":""},null,null,null,null,{"$f":"IF(TRIM(CB234)=\"\", \"\", IF(VLOOKUP(CB234,'Footnotes list'!$D$9:$E$58,2,FALSE)=0,\"\",VLOOKUP(CB234,'Footnotes list'!$D$9:$E$58,2,FALSE) ) )","v":""},null,null,null,null,{"$f":"IF(TRIM(CG234)=\"\", \"\", IF(VLOOKUP(CG234,'Footnotes list'!$D$9:$E$58,2,FALSE)=0,\"\",VLOOKUP(CG234,'Footnotes list'!$D$9:$E$58,2,FALSE) ) )","v":""},null,null,null,null,{"$f":"IF(TRIM(CL234)=\"\", \"\", IF(VLOOKUP(CL234,'Footnotes list'!$D$9:$E$58,2,FALSE)=0,\"\",VLOOKUP(CL234,'Footnotes list'!$D$9:$E$58,2,FALSE) ) )","v":""},null,null,null,null,{"$f":"IF(TRIM(CQ234)=\"\", \"\", IF(VLOOKUP(CQ234,'Footnotes list'!$D$9:$E$58,2,FALSE)=0,\"\",VLOOKUP(CQ234,'Footnotes list'!$D$9:$E$58,2,FALSE) ) )","v":""},null,null,null,null,{"$f":"IF(TRIM(CV234)=\"\", \"\", IF(VLOOKUP(CV234,'Footnotes list'!$D$9:$E$58,2,FALSE)=0,\"\",VLOOKUP(CV234,'Footnotes list'!$D$9:$E$58,2,FALSE) ) )","v":""},null,null,null,null,{"$f":"IF(TRIM(DA234)=\"\", \"\", IF(VLOOKUP(DA234,'Footnotes list'!$D$9:$E$58,2,FALSE)=0,\"\",VLOOKUP(DA234,'Footnotes list'!$D$9:$E$58,2,FALSE) ) )","v":""},null,null,null,null,{"$f":"IF(TRIM(DF234)=\"\", \"\", IF(VLOOKUP(DF234,'Footnotes list'!$D$9:$E$58,2,FALSE)=0,\"\",VLOOKUP(DF234,'Footnotes list'!$D$9:$E$58,2,FALSE) ) )","v":""},null,null,null,null,{"$f":"IF(TRIM(DK234)=\"\", \"\", IF(VLOOKUP(DK234,'Footnotes list'!$D$9:$E$58,2,FALSE)=0,\"\",VLOOKUP(DK234,'Footnotes list'!$D$9:$E$58,2,FALSE) ) )","v":""},null,null,null,null,{"$f":"IF(TRIM(DP234)=\"\", \"\", IF(VLOOKUP(DP234,'Footnotes list'!$D$9:$E$58,2,FALSE)=0,\"\",VLOOKUP(DP234,'Footnotes list'!$D$9:$E$58,2,FALSE) ) )","v":""},null,null,null,null,{"$f":"IF(TRIM(DU234)=\"\", \"\", IF(VLOOKUP(DU234,'Footnotes list'!$D$9:$E$58,2,FALSE)=0,\"\",VLOOKUP(DU234,'Footnotes list'!$D$9:$E$58,2,FALSE) ) )","v":""},null,null,null,null,{"$f":"IF(TRIM(DZ234)=\"\", \"\", IF(VLOOKUP(DZ234,'Footnotes list'!$D$9:$E$58,2,FALSE)=0,\"\",VLOOKUP(DZ234,'Footnotes list'!$D$9:$E$58,2,FALSE) ) )","v":""},null,null,null,null,{"$f":"IF(TRIM(EE234)=\"\", \"\", IF(VLOOKUP(EE234,'Footnotes list'!$D$9:$E$58,2,FALSE)=0,\"\",VLOOKUP(EE234,'Footnotes list'!$D$9:$E$58,2,FALSE) ) )","v":""},null,null,null,null,{"$f":"IF(TRIM(EJ234)=\"\", \"\", IF(VLOOKUP(EJ234,'Footnotes list'!$D$9:$E$58,2,FALSE)=0,\"\",VLOOKUP(EJ234,'Footnotes list'!$D$9:$E$58,2,FALSE) ) )","v":""},null,null,null,null,{"$f":"IF(TRIM(EO234)=\"\", \"\", IF(VLOOKUP(EO234,'Footnotes list'!$D$9:$E$58,2,FALSE)=0,\"\",VLOOKUP(EO234,'Footnotes list'!$D$9:$E$58,2,FALSE) ) )","v":""},null,null,null,null,{"$f":"IF(TRIM(ET234)=\"\", \"\", IF(VLOOKUP(ET234,'Footnotes list'!$D$9:$E$58,2,FALSE)=0,\"\",VLOOKUP(ET234,'Footnotes list'!$D$9:$E$58,2,FALSE) ) )","v":""},null,null,null,null,{"$f":"IF(TRIM(EY234)=\"\", \"\", IF(VLOOKUP(EY234,'Footnotes list'!$D$9:$E$58,2,FALSE)=0,\"\",VLOOKUP(EY234,'Footnotes list'!$D$9:$E$58,2,FALSE) ) )","v":""}]
[null,null,"M71","OWN_USE","activities for own final use",null,null,null,null,null,{"$f":"IF(TRIM(J235)=\"\", \"\", IF(VLOOKUP(J235,'Footnotes list'!$D$9:$E$58,2,FALSE)=0,\"\",VLOOKUP(J235,'Footnotes list'!$D$9:$E$58,2,FALSE) ) )","v":""},null,null,null,null,{"$f":"IF(TRIM(O235)=\"\", \"\", IF(VLOOKUP(O235,'Footnotes list'!$D$9:$E$58,2,FALSE)=0,\"\",VLOOKUP(O235,'Footnotes list'!$D$9:$E$58,2,FALSE) ) )","v":""},null,null,null,null,{"$f":"IF(TRIM(T235)=\"\", \"\", IF(VLOOKUP(T235,'Footnotes list'!$D$9:$E$58,2,FALSE)=0,\"\",VLOOKUP(T235,'Footnotes list'!$D$9:$E$58,2,FALSE) ) )","v":""},null,null,null,null,{"$f":"IF(TRIM(Y235)=\"\", \"\", IF(VLOOKUP(Y235,'Footnotes list'!$D$9:$E$58,2,FALSE)=0,\"\",VLOOKUP(Y235,'Footnotes list'!$D$9:$E$58,2,FALSE) ) )","v":""},null,null,null,null,{"$f":"IF(TRIM(AD235)=\"\", \"\", IF(VLOOKUP(AD235,'Footnotes list'!$D$9:$E$58,2,FALSE)=0,\"\",VLOOKUP(AD235,'Footnotes list'!$D$9:$E$58,2,FALSE) ) )","v":""},null,null,null,null,{"$f":"IF(TRIM(AI235)=\"\", \"\", IF(VLOOKUP(AI235,'Footnotes list'!$D$9:$E$58,2,FALSE)=0,\"\",VLOOKUP(AI235,'Footnotes list'!$D$9:$E$58,2,FALSE) ) )","v":""},null,null,null,null,{"$f":"IF(TRIM(AN235)=\"\", \"\", IF(VLOOKUP(AN235,'Footnotes list'!$D$9:$E$58,2,FALSE)=0,\"\",VLOOKUP(AN235,'Footnotes list'!$D$9:$E$58,2,FALSE) ) )","v":""},null,null,null,null,{"$f":"IF(TRIM(AS235)=\"\", \"\", IF(VLOOKUP(AS235,'Footnotes list'!$D$9:$E$58,2,FALSE)=0,\"\",VLOOKUP(AS235,'Footnotes list'!$D$9:$E$58,2,FALSE) ) )","v":""},null,null,null,null,{"$f":"IF(TRIM(AX235)=\"\", \"\", IF(VLOOKUP(AX235,'Footnotes list'!$D$9:$E$58,2,FALSE)=0,\"\",VLOOKUP(AX235,'Footnotes list'!$D$9:$E$58,2,FALSE) ) )","v":""},null,null,null,null,{"$f":"IF(TRIM(BC235)=\"\", \"\", IF(VLOOKUP(BC235,'Footnotes list'!$D$9:$E$58,2,FALSE)=0,\"\",VLOOKUP(BC235,'Footnotes list'!$D$9:$E$58,2,FALSE) ) )","v":""},null,null,null,null,{"$f":"IF(TRIM(BH235)=\"\", \"\", IF(VLOOKUP(BH235,'Footnotes list'!$D$9:$E$58,2,FALSE)=0,\"\",VLOOKUP(BH235,'Footnotes list'!$D$9:$E$58,2,FALSE) ) )","v":""},null,null,null,null,{"$f":"IF(TRIM(BM235)=\"\", \"\", IF(VLOOKUP(BM235,'Footnotes list'!$D$9:$E$58,2,FALSE)=0,\"\",VLOOKUP(BM235,'Footnotes list'!$D$9:$E$58,2,FALSE) ) )","v":""},null,null,null,null,{"$f":"IF(TRIM(BR235)=\"\", \"\", IF(VLOOKUP(BR235,'Footnotes list'!$D$9:$E$58,2,FALSE)=0,\"\",VLOOKUP(BR235,'Footnotes list'!$D$9:$E$58,2,FALSE) ) )","v":""},null,null,null,null,{"$f":"IF(TRIM(BW235)=\"\", \"\", IF(VLOOKUP(BW235,'Footnotes list'!$D$9:$E$58,2,FALSE)=0,\"\",VLOOKUP(BW235,'Footnotes list'!$D$9:$E$58,2,FALSE) ) )","v":""},null,null,null,null,{"$f":"IF(TRIM(CB235)=\"\", \"\", IF(VLOOKUP(CB235,'Footnotes list'!$D$9:$E$58,2,FALSE)=0,\"\",VLOOKUP(CB235,'Footnotes list'!$D$9:$E$58,2,FALSE) ) )","v":""},null,null,null,null,{"$f":"IF(TRIM(CG235)=\"\", \"\", IF(VLOOKUP(CG235,'Footnotes list'!$D$9:$E$58,2,FALSE)=0,\"\",VLOOKUP(CG235,'Footnotes list'!$D$9:$E$58,2,FALSE) ) )","v":""},null,null,null,null,{"$f":"IF(TRIM(CL235)=\"\", \"\", IF(VLOOKUP(CL235,'Footnotes list'!$D$9:$E$58,2,FALSE)=0,\"\",VLOOKUP(CL235,'Footnotes list'!$D$9:$E$58,2,FALSE) ) )","v":""},null,null,null,null,{"$f":"IF(TRIM(CQ235)=\"\", \"\", IF(VLOOKUP(CQ235,'Footnotes list'!$D$9:$E$58,2,FALSE)=0,\"\",VLOOKUP(CQ235,'Footnotes list'!$D$9:$E$58,2,FALSE) ) )","v":""},null,null,null,null,{"$f":"IF(TRIM(CV235)=\"\", \"\", IF(VLOOKUP(CV235,'Footnotes list'!$D$9:$E$58,2,FALSE)=0,\"\",VLOOKUP(CV235,'Footnotes list'!$D$9:$E$58,2,FALSE) ) )","v":""},null,null,null,null,{"$f":"IF(TRIM(DA235)=\"\", \"\", IF(VLOOKUP(DA235,'Footnotes list'!$D$9:$E$58,2,FALSE)=0,\"\",VLOOKUP(DA235,'Footnotes list'!$D$9:$E$58,2,FALSE) ) )","v":""},null,null,null,null,{"$f":"IF(TRIM(DF235)=\"\", \"\", IF(VLOOKUP(DF235,'Footnotes list'!$D$9:$E$58,2,FALSE)=0,\"\",VLOOKUP(DF235,'Footnotes list'!$D$9:$E$58,2,FALSE) ) )","v":""},null,null,null,null,{"$f":"IF(TRIM(DK235)=\"\", \"\", IF(VLOOKUP(DK235,'Footnotes list'!$D$9:$E$58,2,FALSE)=0,\"\",VLOOKUP(DK235,'Footnotes list'!$D$9:$E$58,2,FALSE) ) )","v":""},null,null,null,null,{"$f":"IF(TRIM(DP235)=\"\", \"\", IF(VLOOKUP(DP235,'Footnotes list'!$D$9:$E$58,2,FALSE)=0,\"\",VLOOKUP(DP235,'Footnotes list'!$D$9:$E$58,2,FALSE) ) )","v":""},null,null,null,null,{"$f":"IF(TRIM(DU235)=\"\", \"\", IF(VLOOKUP(DU235,'Footnotes list'!$D$9:$E$58,2,FALSE)=0,\"\",VLOOKUP(DU235,'Footnotes list'!$D$9:$E$58,2,FALSE) ) )","v":""},null,null,null,null,{"$f":"IF(TRIM(DZ235)=\"\", \"\", IF(VLOOKUP(DZ235,'Footnotes list'!$D$9:$E$58,2,FALSE)=0,\"\",VLOOKUP(DZ235,'Footnotes list'!$D$9:$E$58,2,FALSE) ) )","v":""},null,null,null,null,{"$f":"IF(TRIM(EE235)=\"\", \"\", IF(VLOOKUP(EE235,'Footnotes list'!$D$9:$E$58,2,FALSE)=0,\"\",VLOOKUP(EE235,'Footnotes list'!$D$9:$E$58,2,FALSE) ) )","v":""},null,null,null,null,{"$f":"IF(TRIM(EJ235)=\"\", \"\", IF(VLOOKUP(EJ235,'Footnotes list'!$D$9:$E$58,2,FALSE)=0,\"\",VLOOKUP(EJ235,'Footnotes list'!$D$9:$E$58,2,FALSE) ) )","v":""},null,null,null,null,{"$f":"IF(TRIM(EO235)=\"\", \"\", IF(VLOOKUP(EO235,'Footnotes list'!$D$9:$E$58,2,FALSE)=0,\"\",VLOOKUP(EO235,'Footnotes list'!$D$9:$E$58,2,FALSE) ) )","v":""},null,null,null,null,{"$f":"IF(TRIM(ET235)=\"\", \"\", IF(VLOOKUP(ET235,'Footnotes list'!$D$9:$E$58,2,FALSE)=0,\"\",VLOOKUP(ET235,'Footnotes list'!$D$9:$E$58,2,FALSE) ) )","v":""},null,null,null,null,{"$f":"IF(TRIM(EY235)=\"\", \"\", IF(VLOOKUP(EY235,'Footnotes list'!$D$9:$E$58,2,FALSE)=0,\"\",VLOOKUP(EY235,'Footnotes list'!$D$9:$E$58,2,FALSE) ) )","v":""}]
[null,null,"M71","MKT","market activities, including:",null,null,null,null,null,{"$f":"IF(TRIM(J236)=\"\", \"\", IF(VLOOKUP(J236,'Footnotes list'!$D$9:$E$58,2,FALSE)=0,\"\",VLOOKUP(J236,'Footnotes list'!$D$9:$E$58,2,FALSE) ) )","v":""},null,null,null,null,{"$f":"IF(TRIM(O236)=\"\", \"\", IF(VLOOKUP(O236,'Footnotes list'!$D$9:$E$58,2,FALSE)=0,\"\",VLOOKUP(O236,'Footnotes list'!$D$9:$E$58,2,FALSE) ) )","v":""},null,null,null,null,{"$f":"IF(TRIM(T236)=\"\", \"\", IF(VLOOKUP(T236,'Footnotes list'!$D$9:$E$58,2,FALSE)=0,\"\",VLOOKUP(T236,'Footnotes list'!$D$9:$E$58,2,FALSE) ) )","v":""},null,null,null,null,{"$f":"IF(TRIM(Y236)=\"\", \"\", IF(VLOOKUP(Y236,'Footnotes list'!$D$9:$E$58,2,FALSE)=0,\"\",VLOOKUP(Y236,'Footnotes list'!$D$9:$E$58,2,FALSE) ) )","v":""},null,null,null,null,{"$f":"IF(TRIM(AD236)=\"\", \"\", IF(VLOOKUP(AD236,'Footnotes list'!$D$9:$E$58,2,FALSE)=0,\"\",VLOOKUP(AD236,'Footnotes list'!$D$9:$E$58,2,FALSE) ) )","v":""},null,null,null,null,{"$f":"IF(TRIM(AI236)=\"\", \"\", IF(VLOOKUP(AI236,'Footnotes list'!$D$9:$E$58,2,FALSE)=0,\"\",VLOOKUP(AI236,'Footnotes list'!$D$9:$E$58,2,FALSE) ) )","v":""},null,null,null,null,{"$f":"IF(TRIM(AN236)=\"\", \"\", IF(VLOOKUP(AN236,'Footnotes list'!$D$9:$E$58,2,FALSE)=0,\"\",VLOOKUP(AN236,'Footnotes list'!$D$9:$E$58,2,FALSE) ) )","v":""},null,null,null,null,{"$f":"IF(TRIM(AS236)=\"\", \"\", IF(VLOOKUP(AS236,'Footnotes list'!$D$9:$E$58,2,FALSE)=0,\"\",VLOOKUP(AS236,'Footnotes list'!$D$9:$E$58,2,FALSE) ) )","v":""},null,null,null,null,{"$f":"IF(TRIM(AX236)=\"\", \"\", IF(VLOOKUP(AX236,'Footnotes list'!$D$9:$E$58,2,FALSE)=0,\"\",VLOOKUP(AX236,'Footnotes list'!$D$9:$E$58,2,FALSE) ) )","v":""},null,null,null,null,{"$f":"IF(TRIM(BC236)=\"\", \"\", IF(VLOOKUP(BC236,'Footnotes list'!$D$9:$E$58,2,FALSE)=0,\"\",VLOOKUP(BC236,'Footnotes list'!$D$9:$E$58,2,FALSE) ) )","v":""},null,null,null,null,{"$f":"IF(TRIM(BH236)=\"\", \"\", IF(VLOOKUP(BH236,'Footnotes list'!$D$9:$E$58,2,FALSE)=0,\"\",VLOOKUP(BH236,'Footnotes list'!$D$9:$E$58,2,FALSE) ) )","v":""},null,null,null,null,{"$f":"IF(TRIM(BM236)=\"\", \"\", IF(VLOOKUP(BM236,'Footnotes list'!$D$9:$E$58,2,FALSE)=0,\"\",VLOOKUP(BM236,'Footnotes list'!$D$9:$E$58,2,FALSE) ) )","v":""},null,null,null,null,{"$f":"IF(TRIM(BR236)=\"\", \"\", IF(VLOOKUP(BR236,'Footnotes list'!$D$9:$E$58,2,FALSE)=0,\"\",VLOOKUP(BR236,'Footnotes list'!$D$9:$E$58,2,FALSE) ) )","v":""},null,null,null,null,{"$f":"IF(TRIM(BW236)=\"\", \"\", IF(VLOOKUP(BW236,'Footnotes list'!$D$9:$E$58,2,FALSE)=0,\"\",VLOOKUP(BW236,'Footnotes list'!$D$9:$E$58,2,FALSE) ) )","v":""},null,null,null,null,{"$f":"IF(TRIM(CB236)=\"\", \"\", IF(VLOOKUP(CB236,'Footnotes list'!$D$9:$E$58,2,FALSE)=0,\"\",VLOOKUP(CB236,'Footnotes list'!$D$9:$E$58,2,FALSE) ) )","v":""},null,null,null,null,{"$f":"IF(TRIM(CG236)=\"\", \"\", IF(VLOOKUP(CG236,'Footnotes list'!$D$9:$E$58,2,FALSE)=0,\"\",VLOOKUP(CG236,'Footnotes list'!$D$9:$E$58,2,FALSE) ) )","v":""},null,null,null,null,{"$f":"IF(TRIM(CL236)=\"\", \"\", IF(VLOOKUP(CL236,'Footnotes list'!$D$9:$E$58,2,FALSE)=0,\"\",VLOOKUP(CL236,'Footnotes list'!$D$9:$E$58,2,FALSE) ) )","v":""},null,null,null,null,{"$f":"IF(TRIM(CQ236)=\"\", \"\", IF(VLOOKUP(CQ236,'Footnotes list'!$D$9:$E$58,2,FALSE)=0,\"\",VLOOKUP(CQ236,'Footnotes list'!$D$9:$E$58,2,FALSE) ) )","v":""},null,null,null,null,{"$f":"IF(TRIM(CV236)=\"\", \"\", IF(VLOOKUP(CV236,'Footnotes list'!$D$9:$E$58,2,FALSE)=0,\"\",VLOOKUP(CV236,'Footnotes list'!$D$9:$E$58,2,FALSE) ) )","v":""},null,null,null,null,{"$f":"IF(TRIM(DA236)=\"\", \"\", IF(VLOOKUP(DA236,'Footnotes list'!$D$9:$E$58,2,FALSE)=0,\"\",VLOOKUP(DA236,'Footnotes list'!$D$9:$E$58,2,FALSE) ) )","v":""},null,null,null,null,{"$f":"IF(TRIM(DF236)=\"\", \"\", IF(VLOOKUP(DF236,'Footnotes list'!$D$9:$E$58,2,FALSE)=0,\"\",VLOOKUP(DF236,'Footnotes list'!$D$9:$E$58,2,FALSE) ) )","v":""},null,null,null,null,{"$f":"IF(TRIM(DK236)=\"\", \"\", IF(VLOOKUP(DK236,'Footnotes list'!$D$9:$E$58,2,FALSE)=0,\"\",VLOOKUP(DK236,'Footnotes list'!$D$9:$E$58,2,FALSE) ) )","v":""},null,null,null,null,{"$f":"IF(TRIM(DP236)=\"\", \"\", IF(VLOOKUP(DP236,'Footnotes list'!$D$9:$E$58,2,FALSE)=0,\"\",VLOOKUP(DP236,'Footnotes list'!$D$9:$E$58,2,FALSE) ) )","v":""},null,null,null,null,{"$f":"IF(TRIM(DU236)=\"\", \"\", IF(VLOOKUP(DU236,'Footnotes list'!$D$9:$E$58,2,FALSE)=0,\"\",VLOOKUP(DU236,'Footnotes list'!$D$9:$E$58,2,FALSE) ) )","v":""},null,null,null,null,{"$f":"IF(TRIM(DZ236)=\"\", \"\", IF(VLOOKUP(DZ236,'Footnotes list'!$D$9:$E$58,2,FALSE)=0,\"\",VLOOKUP(DZ236,'Footnotes list'!$D$9:$E$58,2,FALSE) ) )","v":""},null,null,null,null,{"$f":"IF(TRIM(EE236)=\"\", \"\", IF(VLOOKUP(EE236,'Footnotes list'!$D$9:$E$58,2,FALSE)=0,\"\",VLOOKUP(EE236,'Footnotes list'!$D$9:$E$58,2,FALSE) ) )","v":""},null,null,null,null,{"$f":"IF(TRIM(EJ236)=\"\", \"\", IF(VLOOKUP(EJ236,'Footnotes list'!$D$9:$E$58,2,FALSE)=0,\"\",VLOOKUP(EJ236,'Footnotes list'!$D$9:$E$58,2,FALSE) ) )","v":""},null,null,null,null,{"$f":"IF(TRIM(EO236)=\"\", \"\", IF(VLOOKUP(EO236,'Footnotes list'!$D$9:$E$58,2,FALSE)=0,\"\",VLOOKUP(EO236,'Footnotes list'!$D$9:$E$58,2,FALSE) ) )","v":""},null,null,null,null,{"$f":"IF(TRIM(ET236)=\"\", \"\", IF(VLOOKUP(ET236,'Footnotes list'!$D$9:$E$58,2,FALSE)=0,\"\",VLOOKUP(ET236,'Footnotes list'!$D$9:$E$58,2,FALSE) ) )","v":""},null,null,null,null,{"$f":"IF(TRIM(EY236)=\"\", \"\", IF(VLOOKUP(EY236,'Footnotes list'!$D$9:$E$58,2,FALSE)=0,\"\",VLOOKUP(EY236,'Footnotes list'!$D$9:$E$58,2,FALSE) ) )","v":""}]
[null,null,"M71","ES_CS","environmental specific services",null,null,null,null,null,{"$f":"IF(TRIM(J237)=\"\", \"\", IF(VLOOKUP(J237,'Footnotes list'!$D$9:$E$58,2,FALSE)=0,\"\",VLOOKUP(J237,'Footnotes list'!$D$9:$E$58,2,FALSE) ) )","v":""},null,null,null,null,{"$f":"IF(TRIM(O237)=\"\", \"\", IF(VLOOKUP(O237,'Footnotes list'!$D$9:$E$58,2,FALSE)=0,\"\",VLOOKUP(O237,'Footnotes list'!$D$9:$E$58,2,FALSE) ) )","v":""},null,null,null,null,{"$f":"IF(TRIM(T237)=\"\", \"\", IF(VLOOKUP(T237,'Footnotes list'!$D$9:$E$58,2,FALSE)=0,\"\",VLOOKUP(T237,'Footnotes list'!$D$9:$E$58,2,FALSE) ) )","v":""},null,null,null,null,{"$f":"IF(TRIM(Y237)=\"\", \"\", IF(VLOOKUP(Y237,'Footnotes list'!$D$9:$E$58,2,FALSE)=0,\"\",VLOOKUP(Y237,'Footnotes list'!$D$9:$E$58,2,FALSE) ) )","v":""},null,null,null,null,{"$f":"IF(TRIM(AD237)=\"\", \"\", IF(VLOOKUP(AD237,'Footnotes list'!$D$9:$E$58,2,FALSE)=0,\"\",VLOOKUP(AD237,'Footnotes list'!$D$9:$E$58,2,FALSE) ) )","v":""},null,null,null,null,{"$f":"IF(TRIM(AI237)=\"\", \"\", IF(VLOOKUP(AI237,'Footnotes list'!$D$9:$E$58,2,FALSE)=0,\"\",VLOOKUP(AI237,'Footnotes list'!$D$9:$E$58,2,FALSE) ) )","v":""},null,null,null,null,{"$f":"IF(TRIM(AN237)=\"\", \"\", IF(VLOOKUP(AN237,'Footnotes list'!$D$9:$E$58,2,FALSE)=0,\"\",VLOOKUP(AN237,'Footnotes list'!$D$9:$E$58,2,FALSE) ) )","v":""},null,null,null,null,{"$f":"IF(TRIM(AS237)=\"\", \"\", IF(VLOOKUP(AS237,'Footnotes list'!$D$9:$E$58,2,FALSE)=0,\"\",VLOOKUP(AS237,'Footnotes list'!$D$9:$E$58,2,FALSE) ) )","v":""},null,null,null,null,{"$f":"IF(TRIM(AX237)=\"\", \"\", IF(VLOOKUP(AX237,'Footnotes list'!$D$9:$E$58,2,FALSE)=0,\"\",VLOOKUP(AX237,'Footnotes list'!$D$9:$E$58,2,FALSE) ) )","v":""},null,null,null,null,{"$f":"IF(TRIM(BC237)=\"\", \"\", IF(VLOOKUP(BC237,'Footnotes list'!$D$9:$E$58,2,FALSE)=0,\"\",VLOOKUP(BC237,'Footnotes list'!$D$9:$E$58,2,FALSE) ) )","v":""},null,null,null,null,{"$f":"IF(TRIM(BH237)=\"\", \"\", IF(VLOOKUP(BH237,'Footnotes list'!$D$9:$E$58,2,FALSE)=0,\"\",VLOOKUP(BH237,'Footnotes list'!$D$9:$E$58,2,FALSE) ) )","v":""},null,null,null,null,{"$f":"IF(TRIM(BM237)=\"\", \"\", IF(VLOOKUP(BM237,'Footnotes list'!$D$9:$E$58,2,FALSE)=0,\"\",VLOOKUP(BM237,'Footnotes list'!$D$9:$E$58,2,FALSE) ) )","v":""},null,null,null,null,{"$f":"IF(TRIM(BR237)=\"\", \"\", IF(VLOOKUP(BR237,'Footnotes list'!$D$9:$E$58,2,FALSE)=0,\"\",VLOOKUP(BR237,'Footnotes list'!$D$9:$E$58,2,FALSE) ) )","v":""},null,null,null,null,{"$f":"IF(TRIM(BW237)=\"\", \"\", IF(VLOOKUP(BW237,'Footnotes list'!$D$9:$E$58,2,FALSE)=0,\"\",VLOOKUP(BW237,'Footnotes list'!$D$9:$E$58,2,FALSE) ) )","v":""},null,null,null,null,{"$f":"IF(TRIM(CB237)=\"\", \"\", IF(VLOOKUP(CB237,'Footnotes list'!$D$9:$E$58,2,FALSE)=0,\"\",VLOOKUP(CB237,'Footnotes list'!$D$9:$E$58,2,FALSE) ) )","v":""},null,null,null,null,{"$f":"IF(TRIM(CG237)=\"\", \"\", IF(VLOOKUP(CG237,'Footnotes list'!$D$9:$E$58,2,FALSE)=0,\"\",VLOOKUP(CG237,'Footnotes list'!$D$9:$E$58,2,FALSE) ) )","v":""},null,null,null,null,{"$f":"IF(TRIM(CL237)=\"\", \"\", IF(VLOOKUP(CL237,'Footnotes list'!$D$9:$E$58,2,FALSE)=0,\"\",VLOOKUP(CL237,'Footnotes list'!$D$9:$E$58,2,FALSE) ) )","v":""},null,null,null,null,{"$f":"IF(TRIM(CQ237)=\"\", \"\", IF(VLOOKUP(CQ237,'Footnotes list'!$D$9:$E$58,2,FALSE)=0,\"\",VLOOKUP(CQ237,'Footnotes list'!$D$9:$E$58,2,FALSE) ) )","v":""},null,null,null,null,{"$f":"IF(TRIM(CV237)=\"\", \"\", IF(VLOOKUP(CV237,'Footnotes list'!$D$9:$E$58,2,FALSE)=0,\"\",VLOOKUP(CV237,'Footnotes list'!$D$9:$E$58,2,FALSE) ) )","v":""},null,null,null,null,{"$f":"IF(TRIM(DA237)=\"\", \"\", IF(VLOOKUP(DA237,'Footnotes list'!$D$9:$E$58,2,FALSE)=0,\"\",VLOOKUP(DA237,'Footnotes list'!$D$9:$E$58,2,FALSE) ) )","v":""},null,null,null,null,{"$f":"IF(TRIM(DF237)=\"\", \"\", IF(VLOOKUP(DF237,'Footnotes list'!$D$9:$E$58,2,FALSE)=0,\"\",VLOOKUP(DF237,'Footnotes list'!$D$9:$E$58,2,FALSE) ) )","v":""},null,null,null,null,{"$f":"IF(TRIM(DK237)=\"\", \"\", IF(VLOOKUP(DK237,'Footnotes list'!$D$9:$E$58,2,FALSE)=0,\"\",VLOOKUP(DK237,'Footnotes list'!$D$9:$E$58,2,FALSE) ) )","v":""},null,null,null,null,{"$f":"IF(TRIM(DP237)=\"\", \"\", IF(VLOOKUP(DP237,'Footnotes list'!$D$9:$E$58,2,FALSE)=0,\"\",VLOOKUP(DP237,'Footnotes list'!$D$9:$E$58,2,FALSE) ) )","v":""},null,null,null,null,{"$f":"IF(TRIM(DU237)=\"\", \"\", IF(VLOOKUP(DU237,'Footnotes list'!$D$9:$E$58,2,FALSE)=0,\"\",VLOOKUP(DU237,'Footnotes list'!$D$9:$E$58,2,FALSE) ) )","v":""},null,null,null,null,{"$f":"IF(TRIM(DZ237)=\"\", \"\", IF(VLOOKUP(DZ237,'Footnotes list'!$D$9:$E$58,2,FALSE)=0,\"\",VLOOKUP(DZ237,'Footnotes list'!$D$9:$E$58,2,FALSE) ) )","v":""},null,null,null,null,{"$f":"IF(TRIM(EE237)=\"\", \"\", IF(VLOOKUP(EE237,'Footnotes list'!$D$9:$E$58,2,FALSE)=0,\"\",VLOOKUP(EE237,'Footnotes list'!$D$9:$E$58,2,FALSE) ) )","v":""},null,null,null,null,{"$f":"IF(TRIM(EJ237)=\"\", \"\", IF(VLOOKUP(EJ237,'Footnotes list'!$D$9:$E$58,2,FALSE)=0,\"\",VLOOKUP(EJ237,'Footnotes list'!$D$9:$E$58,2,FALSE) ) )","v":""},null,null,null,null,{"$f":"IF(TRIM(EO237)=\"\", \"\", IF(VLOOKUP(EO237,'Footnotes list'!$D$9:$E$58,2,FALSE)=0,\"\",VLOOKUP(EO237,'Footnotes list'!$D$9:$E$58,2,FALSE) ) )","v":""},null,null,null,null,{"$f":"IF(TRIM(ET237)=\"\", \"\", IF(VLOOKUP(ET237,'Footnotes list'!$D$9:$E$58,2,FALSE)=0,\"\",VLOOKUP(ET237,'Footnotes list'!$D$9:$E$58,2,FALSE) ) )","v":""},null,null,null,null,{"$f":"IF(TRIM(EY237)=\"\", \"\", IF(VLOOKUP(EY237,'Footnotes list'!$D$9:$E$58,2,FALSE)=0,\"\",VLOOKUP(EY237,'Footnotes list'!$D$9:$E$58,2,FALSE) ) )","v":""}]
[null,null,"M71","C_REP","cleaner and resource efficient products",null,null,null,null,null,{"$f":"IF(TRIM(J238)=\"\", \"\", IF(VLOOKUP(J238,'Footnotes list'!$D$9:$E$58,2,FALSE)=0,\"\",VLOOKUP(J238,'Footnotes list'!$D$9:$E$58,2,FALSE) ) )","v":""},null,null,null,null,{"$f":"IF(TRIM(O238)=\"\", \"\", IF(VLOOKUP(O238,'Footnotes list'!$D$9:$E$58,2,FALSE)=0,\"\",VLOOKUP(O238,'Footnotes list'!$D$9:$E$58,2,FALSE) ) )","v":""},null,null,null,null,{"$f":"IF(TRIM(T238)=\"\", \"\", IF(VLOOKUP(T238,'Footnotes list'!$D$9:$E$58,2,FALSE)=0,\"\",VLOOKUP(T238,'Footnotes list'!$D$9:$E$58,2,FALSE) ) )","v":""},null,null,null,null,{"$f":"IF(TRIM(Y238)=\"\", \"\", IF(VLOOKUP(Y238,'Footnotes list'!$D$9:$E$58,2,FALSE)=0,\"\",VLOOKUP(Y238,'Footnotes list'!$D$9:$E$58,2,FALSE) ) )","v":""},null,null,null,null,{"$f":"IF(TRIM(AD238)=\"\", \"\", IF(VLOOKUP(AD238,'Footnotes list'!$D$9:$E$58,2,FALSE)=0,\"\",VLOOKUP(AD238,'Footnotes list'!$D$9:$E$58,2,FALSE) ) )","v":""},null,null,null,null,{"$f":"IF(TRIM(AI238)=\"\", \"\", IF(VLOOKUP(AI238,'Footnotes list'!$D$9:$E$58,2,FALSE)=0,\"\",VLOOKUP(AI238,'Footnotes list'!$D$9:$E$58,2,FALSE) ) )","v":""},null,null,null,null,{"$f":"IF(TRIM(AN238)=\"\", \"\", IF(VLOOKUP(AN238,'Footnotes list'!$D$9:$E$58,2,FALSE)=0,\"\",VLOOKUP(AN238,'Footnotes list'!$D$9:$E$58,2,FALSE) ) )","v":""},null,null,null,null,{"$f":"IF(TRIM(AS238)=\"\", \"\", IF(VLOOKUP(AS238,'Footnotes list'!$D$9:$E$58,2,FALSE)=0,\"\",VLOOKUP(AS238,'Footnotes list'!$D$9:$E$58,2,FALSE) ) )","v":""},null,null,null,null,{"$f":"IF(TRIM(AX238)=\"\", \"\", IF(VLOOKUP(AX238,'Footnotes list'!$D$9:$E$58,2,FALSE)=0,\"\",VLOOKUP(AX238,'Footnotes list'!$D$9:$E$58,2,FALSE) ) )","v":""},null,null,null,null,{"$f":"IF(TRIM(BC238)=\"\", \"\", IF(VLOOKUP(BC238,'Footnotes list'!$D$9:$E$58,2,FALSE)=0,\"\",VLOOKUP(BC238,'Footnotes list'!$D$9:$E$58,2,FALSE) ) )","v":""},null,null,null,null,{"$f":"IF(TRIM(BH238)=\"\", \"\", IF(VLOOKUP(BH238,'Footnotes list'!$D$9:$E$58,2,FALSE)=0,\"\",VLOOKUP(BH238,'Footnotes list'!$D$9:$E$58,2,FALSE) ) )","v":""},null,null,null,null,{"$f":"IF(TRIM(BM238)=\"\", \"\", IF(VLOOKUP(BM238,'Footnotes list'!$D$9:$E$58,2,FALSE)=0,\"\",VLOOKUP(BM238,'Footnotes list'!$D$9:$E$58,2,FALSE) ) )","v":""},null,null,null,null,{"$f":"IF(TRIM(BR238)=\"\", \"\", IF(VLOOKUP(BR238,'Footnotes list'!$D$9:$E$58,2,FALSE)=0,\"\",VLOOKUP(BR238,'Footnotes list'!$D$9:$E$58,2,FALSE) ) )","v":""},null,null,null,null,{"$f":"IF(TRIM(BW238)=\"\", \"\", IF(VLOOKUP(BW238,'Footnotes list'!$D$9:$E$58,2,FALSE)=0,\"\",VLOOKUP(BW238,'Footnotes list'!$D$9:$E$58,2,FALSE) ) )","v":""},null,null,null,null,{"$f":"IF(TRIM(CB238)=\"\", \"\", IF(VLOOKUP(CB238,'Footnotes list'!$D$9:$E$58,2,FALSE)=0,\"\",VLOOKUP(CB238,'Footnotes list'!$D$9:$E$58,2,FALSE) ) )","v":""},null,null,null,null,{"$f":"IF(TRIM(CG238)=\"\", \"\", IF(VLOOKUP(CG238,'Footnotes list'!$D$9:$E$58,2,FALSE)=0,\"\",VLOOKUP(CG238,'Footnotes list'!$D$9:$E$58,2,FALSE) ) )","v":""},null,null,null,null,{"$f":"IF(TRIM(CL238)=\"\", \"\", IF(VLOOKUP(CL238,'Footnotes list'!$D$9:$E$58,2,FALSE)=0,\"\",VLOOKUP(CL238,'Footnotes list'!$D$9:$E$58,2,FALSE) ) )","v":""},null,null,null,null,{"$f":"IF(TRIM(CQ238)=\"\", \"\", IF(VLOOKUP(CQ238,'Footnotes list'!$D$9:$E$58,2,FALSE)=0,\"\",VLOOKUP(CQ238,'Footnotes list'!$D$9:$E$58,2,FALSE) ) )","v":""},null,null,null,null,{"$f":"IF(TRIM(CV238)=\"\", \"\", IF(VLOOKUP(CV238,'Footnotes list'!$D$9:$E$58,2,FALSE)=0,\"\",VLOOKUP(CV238,'Footnotes list'!$D$9:$E$58,2,FALSE) ) )","v":""},null,null,null,null,{"$f":"IF(TRIM(DA238)=\"\", \"\", IF(VLOOKUP(DA238,'Footnotes list'!$D$9:$E$58,2,FALSE)=0,\"\",VLOOKUP(DA238,'Footnotes list'!$D$9:$E$58,2,FALSE) ) )","v":""},null,null,null,null,{"$f":"IF(TRIM(DF238)=\"\", \"\", IF(VLOOKUP(DF238,'Footnotes list'!$D$9:$E$58,2,FALSE)=0,\"\",VLOOKUP(DF238,'Footnotes list'!$D$9:$E$58,2,FALSE) ) )","v":""},null,null,null,null,{"$f":"IF(TRIM(DK238)=\"\", \"\", IF(VLOOKUP(DK238,'Footnotes list'!$D$9:$E$58,2,FALSE)=0,\"\",VLOOKUP(DK238,'Footnotes list'!$D$9:$E$58,2,FALSE) ) )","v":""},null,null,null,null,{"$f":"IF(TRIM(DP238)=\"\", \"\", IF(VLOOKUP(DP238,'Footnotes list'!$D$9:$E$58,2,FALSE)=0,\"\",VLOOKUP(DP238,'Footnotes list'!$D$9:$E$58,2,FALSE) ) )","v":""},null,null,null,null,{"$f":"IF(TRIM(DU238)=\"\", \"\", IF(VLOOKUP(DU238,'Footnotes list'!$D$9:$E$58,2,FALSE)=0,\"\",VLOOKUP(DU238,'Footnotes list'!$D$9:$E$58,2,FALSE) ) )","v":""},null,null,null,null,{"$f":"IF(TRIM(DZ238)=\"\", \"\", IF(VLOOKUP(DZ238,'Footnotes list'!$D$9:$E$58,2,FALSE)=0,\"\",VLOOKUP(DZ238,'Footnotes list'!$D$9:$E$58,2,FALSE) ) )","v":""},null,null,null,null,{"$f":"IF(TRIM(EE238)=\"\", \"\", IF(VLOOKUP(EE238,'Footnotes list'!$D$9:$E$58,2,FALSE)=0,\"\",VLOOKUP(EE238,'Footnotes list'!$D$9:$E$58,2,FALSE) ) )","v":""},null,null,null,null,{"$f":"IF(TRIM(EJ238)=\"\", \"\", IF(VLOOKUP(EJ238,'Footnotes list'!$D$9:$E$58,2,FALSE)=0,\"\",VLOOKUP(EJ238,'Footnotes list'!$D$9:$E$58,2,FALSE) ) )","v":""},null,null,null,null,{"$f":"IF(TRIM(EO238)=\"\", \"\", IF(VLOOKUP(EO238,'Footnotes list'!$D$9:$E$58,2,FALSE)=0,\"\",VLOOKUP(EO238,'Footnotes list'!$D$9:$E$58,2,FALSE) ) )","v":""},null,null,null,null,{"$f":"IF(TRIM(ET238)=\"\", \"\", IF(VLOOKUP(ET238,'Footnotes list'!$D$9:$E$58,2,FALSE)=0,\"\",VLOOKUP(ET238,'Footnotes list'!$D$9:$E$58,2,FALSE) ) )","v":""},null,null,null,null,{"$f":"IF(TRIM(EY238)=\"\", \"\", IF(VLOOKUP(EY238,'Footnotes list'!$D$9:$E$58,2,FALSE)=0,\"\",VLOOKUP(EY238,'Footnotes list'!$D$9:$E$58,2,FALSE) ) )","v":""}]
[null,null,"M72","TOT_EGSS","Total M72 - Scientific research and development, of which:",null,null,null,null,null,{"$f":"IF(TRIM(J239)=\"\", \"\", IF(VLOOKUP(J239,'Footnotes list'!$D$9:$E$58,2,FALSE)=0,\"\",VLOOKUP(J239,'Footnotes list'!$D$9:$E$58,2,FALSE) ) )","v":""},null,null,null,null,{"$f":"IF(TRIM(O239)=\"\", \"\", IF(VLOOKUP(O239,'Footnotes list'!$D$9:$E$58,2,FALSE)=0,\"\",VLOOKUP(O239,'Footnotes list'!$D$9:$E$58,2,FALSE) ) )","v":""},null,null,null,null,{"$f":"IF(TRIM(T239)=\"\", \"\", IF(VLOOKUP(T239,'Footnotes list'!$D$9:$E$58,2,FALSE)=0,\"\",VLOOKUP(T239,'Footnotes list'!$D$9:$E$58,2,FALSE) ) )","v":""},null,null,null,null,{"$f":"IF(TRIM(Y239)=\"\", \"\", IF(VLOOKUP(Y239,'Footnotes list'!$D$9:$E$58,2,FALSE)=0,\"\",VLOOKUP(Y239,'Footnotes list'!$D$9:$E$58,2,FALSE) ) )","v":""},null,null,null,null,{"$f":"IF(TRIM(AD239)=\"\", \"\", IF(VLOOKUP(AD239,'Footnotes list'!$D$9:$E$58,2,FALSE)=0,\"\",VLOOKUP(AD239,'Footnotes list'!$D$9:$E$58,2,FALSE) ) )","v":""},null,null,null,null,{"$f":"IF(TRIM(AI239)=\"\", \"\", IF(VLOOKUP(AI239,'Footnotes list'!$D$9:$E$58,2,FALSE)=0,\"\",VLOOKUP(AI239,'Footnotes list'!$D$9:$E$58,2,FALSE) ) )","v":""},null,null,null,null,{"$f":"IF(TRIM(AN239)=\"\", \"\", IF(VLOOKUP(AN239,'Footnotes list'!$D$9:$E$58,2,FALSE)=0,\"\",VLOOKUP(AN239,'Footnotes list'!$D$9:$E$58,2,FALSE) ) )","v":""},null,null,null,null,{"$f":"IF(TRIM(AS239)=\"\", \"\", IF(VLOOKUP(AS239,'Footnotes list'!$D$9:$E$58,2,FALSE)=0,\"\",VLOOKUP(AS239,'Footnotes list'!$D$9:$E$58,2,FALSE) ) )","v":""},null,null,null,null,{"$f":"IF(TRIM(AX239)=\"\", \"\", IF(VLOOKUP(AX239,'Footnotes list'!$D$9:$E$58,2,FALSE)=0,\"\",VLOOKUP(AX239,'Footnotes list'!$D$9:$E$58,2,FALSE) ) )","v":""},null,null,null,null,{"$f":"IF(TRIM(BC239)=\"\", \"\", IF(VLOOKUP(BC239,'Footnotes list'!$D$9:$E$58,2,FALSE)=0,\"\",VLOOKUP(BC239,'Footnotes list'!$D$9:$E$58,2,FALSE) ) )","v":""},null,null,null,null,{"$f":"IF(TRIM(BH239)=\"\", \"\", IF(VLOOKUP(BH239,'Footnotes list'!$D$9:$E$58,2,FALSE)=0,\"\",VLOOKUP(BH239,'Footnotes list'!$D$9:$E$58,2,FALSE) ) )","v":""},null,null,null,null,{"$f":"IF(TRIM(BM239)=\"\", \"\", IF(VLOOKUP(BM239,'Footnotes list'!$D$9:$E$58,2,FALSE)=0,\"\",VLOOKUP(BM239,'Footnotes list'!$D$9:$E$58,2,FALSE) ) )","v":""},null,null,null,null,{"$f":"IF(TRIM(BR239)=\"\", \"\", IF(VLOOKUP(BR239,'Footnotes list'!$D$9:$E$58,2,FALSE)=0,\"\",VLOOKUP(BR239,'Footnotes list'!$D$9:$E$58,2,FALSE) ) )","v":""},null,null,null,null,{"$f":"IF(TRIM(BW239)=\"\", \"\", IF(VLOOKUP(BW239,'Footnotes list'!$D$9:$E$58,2,FALSE)=0,\"\",VLOOKUP(BW239,'Footnotes list'!$D$9:$E$58,2,FALSE) ) )","v":""},null,null,null,null,{"$f":"IF(TRIM(CB239)=\"\", \"\", IF(VLOOKUP(CB239,'Footnotes list'!$D$9:$E$58,2,FALSE)=0,\"\",VLOOKUP(CB239,'Footnotes list'!$D$9:$E$58,2,FALSE) ) )","v":""},null,null,null,null,{"$f":"IF(TRIM(CG239)=\"\", \"\", IF(VLOOKUP(CG239,'Footnotes list'!$D$9:$E$58,2,FALSE)=0,\"\",VLOOKUP(CG239,'Footnotes list'!$D$9:$E$58,2,FALSE) ) )","v":""},null,null,null,null,{"$f":"IF(TRIM(CL239)=\"\", \"\", IF(VLOOKUP(CL239,'Footnotes list'!$D$9:$E$58,2,FALSE)=0,\"\",VLOOKUP(CL239,'Footnotes list'!$D$9:$E$58,2,FALSE) ) )","v":""},null,null,null,null,{"$f":"IF(TRIM(CQ239)=\"\", \"\", IF(VLOOKUP(CQ239,'Footnotes list'!$D$9:$E$58,2,FALSE)=0,\"\",VLOOKUP(CQ239,'Footnotes list'!$D$9:$E$58,2,FALSE) ) )","v":""},null,null,null,null,{"$f":"IF(TRIM(CV239)=\"\", \"\", IF(VLOOKUP(CV239,'Footnotes list'!$D$9:$E$58,2,FALSE)=0,\"\",VLOOKUP(CV239,'Footnotes list'!$D$9:$E$58,2,FALSE) ) )","v":""},null,null,null,null,{"$f":"IF(TRIM(DA239)=\"\", \"\", IF(VLOOKUP(DA239,'Footnotes list'!$D$9:$E$58,2,FALSE)=0,\"\",VLOOKUP(DA239,'Footnotes list'!$D$9:$E$58,2,FALSE) ) )","v":""},null,null,null,null,{"$f":"IF(TRIM(DF239)=\"\", \"\", IF(VLOOKUP(DF239,'Footnotes list'!$D$9:$E$58,2,FALSE)=0,\"\",VLOOKUP(DF239,'Footnotes list'!$D$9:$E$58,2,FALSE) ) )","v":""},null,null,null,null,{"$f":"IF(TRIM(DK239)=\"\", \"\", IF(VLOOKUP(DK239,'Footnotes list'!$D$9:$E$58,2,FALSE)=0,\"\",VLOOKUP(DK239,'Footnotes list'!$D$9:$E$58,2,FALSE) ) )","v":""},null,null,null,null,{"$f":"IF(TRIM(DP239)=\"\", \"\", IF(VLOOKUP(DP239,'Footnotes list'!$D$9:$E$58,2,FALSE)=0,\"\",VLOOKUP(DP239,'Footnotes list'!$D$9:$E$58,2,FALSE) ) )","v":""},null,null,null,null,{"$f":"IF(TRIM(DU239)=\"\", \"\", IF(VLOOKUP(DU239,'Footnotes list'!$D$9:$E$58,2,FALSE)=0,\"\",VLOOKUP(DU239,'Footnotes list'!$D$9:$E$58,2,FALSE) ) )","v":""},null,null,null,null,{"$f":"IF(TRIM(DZ239)=\"\", \"\", IF(VLOOKUP(DZ239,'Footnotes list'!$D$9:$E$58,2,FALSE)=0,\"\",VLOOKUP(DZ239,'Footnotes list'!$D$9:$E$58,2,FALSE) ) )","v":""},null,null,null,null,{"$f":"IF(TRIM(EE239)=\"\", \"\", IF(VLOOKUP(EE239,'Footnotes list'!$D$9:$E$58,2,FALSE)=0,\"\",VLOOKUP(EE239,'Footnotes list'!$D$9:$E$58,2,FALSE) ) )","v":""},null,null,null,null,{"$f":"IF(TRIM(EJ239)=\"\", \"\", IF(VLOOKUP(EJ239,'Footnotes list'!$D$9:$E$58,2,FALSE)=0,\"\",VLOOKUP(EJ239,'Footnotes list'!$D$9:$E$58,2,FALSE) ) )","v":""},null,null,null,null,{"$f":"IF(TRIM(EO239)=\"\", \"\", IF(VLOOKUP(EO239,'Footnotes list'!$D$9:$E$58,2,FALSE)=0,\"\",VLOOKUP(EO239,'Footnotes list'!$D$9:$E$58,2,FALSE) ) )","v":""},null,null,null,null,{"$f":"IF(TRIM(ET239)=\"\", \"\", IF(VLOOKUP(ET239,'Footnotes list'!$D$9:$E$58,2,FALSE)=0,\"\",VLOOKUP(ET239,'Footnotes list'!$D$9:$E$58,2,FALSE) ) )","v":""},null,null,null,null,{"$f":"IF(TRIM(EY239)=\"\", \"\", IF(VLOOKUP(EY239,'Footnotes list'!$D$9:$E$58,2,FALSE)=0,\"\",VLOOKUP(EY239,'Footnotes list'!$D$9:$E$58,2,FALSE) ) )","v":""}]
[null,null,"M72","ANC","ancillary activities",null,null,null,null,null,{"$f":"IF(TRIM(J240)=\"\", \"\", IF(VLOOKUP(J240,'Footnotes list'!$D$9:$E$58,2,FALSE)=0,\"\",VLOOKUP(J240,'Footnotes list'!$D$9:$E$58,2,FALSE) ) )","v":""},null,null,null,null,{"$f":"IF(TRIM(O240)=\"\", \"\", IF(VLOOKUP(O240,'Footnotes list'!$D$9:$E$58,2,FALSE)=0,\"\",VLOOKUP(O240,'Footnotes list'!$D$9:$E$58,2,FALSE) ) )","v":""},null,null,null,null,{"$f":"IF(TRIM(T240)=\"\", \"\", IF(VLOOKUP(T240,'Footnotes list'!$D$9:$E$58,2,FALSE)=0,\"\",VLOOKUP(T240,'Footnotes list'!$D$9:$E$58,2,FALSE) ) )","v":""},null,null,null,null,{"$f":"IF(TRIM(Y240)=\"\", \"\", IF(VLOOKUP(Y240,'Footnotes list'!$D$9:$E$58,2,FALSE)=0,\"\",VLOOKUP(Y240,'Footnotes list'!$D$9:$E$58,2,FALSE) ) )","v":""},null,null,null,null,{"$f":"IF(TRIM(AD240)=\"\", \"\", IF(VLOOKUP(AD240,'Footnotes list'!$D$9:$E$58,2,FALSE)=0,\"\",VLOOKUP(AD240,'Footnotes list'!$D$9:$E$58,2,FALSE) ) )","v":""},null,null,null,null,{"$f":"IF(TRIM(AI240)=\"\", \"\", IF(VLOOKUP(AI240,'Footnotes list'!$D$9:$E$58,2,FALSE)=0,\"\",VLOOKUP(AI240,'Footnotes list'!$D$9:$E$58,2,FALSE) ) )","v":""},null,null,null,null,{"$f":"IF(TRIM(AN240)=\"\", \"\", IF(VLOOKUP(AN240,'Footnotes list'!$D$9:$E$58,2,FALSE)=0,\"\",VLOOKUP(AN240,'Footnotes list'!$D$9:$E$58,2,FALSE) ) )","v":""},null,null,null,null,{"$f":"IF(TRIM(AS240)=\"\", \"\", IF(VLOOKUP(AS240,'Footnotes list'!$D$9:$E$58,2,FALSE)=0,\"\",VLOOKUP(AS240,'Footnotes list'!$D$9:$E$58,2,FALSE) ) )","v":""},null,null,null,null,{"$f":"IF(TRIM(AX240)=\"\", \"\", IF(VLOOKUP(AX240,'Footnotes list'!$D$9:$E$58,2,FALSE)=0,\"\",VLOOKUP(AX240,'Footnotes list'!$D$9:$E$58,2,FALSE) ) )","v":""},null,null,null,null,{"$f":"IF(TRIM(BC240)=\"\", \"\", IF(VLOOKUP(BC240,'Footnotes list'!$D$9:$E$58,2,FALSE)=0,\"\",VLOOKUP(BC240,'Footnotes list'!$D$9:$E$58,2,FALSE) ) )","v":""},null,null,null,null,{"$f":"IF(TRIM(BH240)=\"\", \"\", IF(VLOOKUP(BH240,'Footnotes list'!$D$9:$E$58,2,FALSE)=0,\"\",VLOOKUP(BH240,'Footnotes list'!$D$9:$E$58,2,FALSE) ) )","v":""},null,null,null,null,{"$f":"IF(TRIM(BM240)=\"\", \"\", IF(VLOOKUP(BM240,'Footnotes list'!$D$9:$E$58,2,FALSE)=0,\"\",VLOOKUP(BM240,'Footnotes list'!$D$9:$E$58,2,FALSE) ) )","v":""},null,null,null,null,{"$f":"IF(TRIM(BR240)=\"\", \"\", IF(VLOOKUP(BR240,'Footnotes list'!$D$9:$E$58,2,FALSE)=0,\"\",VLOOKUP(BR240,'Footnotes list'!$D$9:$E$58,2,FALSE) ) )","v":""},null,null,null,null,{"$f":"IF(TRIM(BW240)=\"\", \"\", IF(VLOOKUP(BW240,'Footnotes list'!$D$9:$E$58,2,FALSE)=0,\"\",VLOOKUP(BW240,'Footnotes list'!$D$9:$E$58,2,FALSE) ) )","v":""},null,null,null,null,{"$f":"IF(TRIM(CB240)=\"\", \"\", IF(VLOOKUP(CB240,'Footnotes list'!$D$9:$E$58,2,FALSE)=0,\"\",VLOOKUP(CB240,'Footnotes list'!$D$9:$E$58,2,FALSE) ) )","v":""},null,null,null,null,{"$f":"IF(TRIM(CG240)=\"\", \"\", IF(VLOOKUP(CG240,'Footnotes list'!$D$9:$E$58,2,FALSE)=0,\"\",VLOOKUP(CG240,'Footnotes list'!$D$9:$E$58,2,FALSE) ) )","v":""},null,null,null,null,{"$f":"IF(TRIM(CL240)=\"\", \"\", IF(VLOOKUP(CL240,'Footnotes list'!$D$9:$E$58,2,FALSE)=0,\"\",VLOOKUP(CL240,'Footnotes list'!$D$9:$E$58,2,FALSE) ) )","v":""},null,null,null,null,{"$f":"IF(TRIM(CQ240)=\"\", \"\", IF(VLOOKUP(CQ240,'Footnotes list'!$D$9:$E$58,2,FALSE)=0,\"\",VLOOKUP(CQ240,'Footnotes list'!$D$9:$E$58,2,FALSE) ) )","v":""},null,null,null,null,{"$f":"IF(TRIM(CV240)=\"\", \"\", IF(VLOOKUP(CV240,'Footnotes list'!$D$9:$E$58,2,FALSE)=0,\"\",VLOOKUP(CV240,'Footnotes list'!$D$9:$E$58,2,FALSE) ) )","v":""},null,null,null,null,{"$f":"IF(TRIM(DA240)=\"\", \"\", IF(VLOOKUP(DA240,'Footnotes list'!$D$9:$E$58,2,FALSE)=0,\"\",VLOOKUP(DA240,'Footnotes list'!$D$9:$E$58,2,FALSE) ) )","v":""},null,null,null,null,{"$f":"IF(TRIM(DF240)=\"\", \"\", IF(VLOOKUP(DF240,'Footnotes list'!$D$9:$E$58,2,FALSE)=0,\"\",VLOOKUP(DF240,'Footnotes list'!$D$9:$E$58,2,FALSE) ) )","v":""},null,null,null,null,{"$f":"IF(TRIM(DK240)=\"\", \"\", IF(VLOOKUP(DK240,'Footnotes list'!$D$9:$E$58,2,FALSE)=0,\"\",VLOOKUP(DK240,'Footnotes list'!$D$9:$E$58,2,FALSE) ) )","v":""},null,null,null,null,{"$f":"IF(TRIM(DP240)=\"\", \"\", IF(VLOOKUP(DP240,'Footnotes list'!$D$9:$E$58,2,FALSE)=0,\"\",VLOOKUP(DP240,'Footnotes list'!$D$9:$E$58,2,FALSE) ) )","v":""},null,null,null,null,{"$f":"IF(TRIM(DU240)=\"\", \"\", IF(VLOOKUP(DU240,'Footnotes list'!$D$9:$E$58,2,FALSE)=0,\"\",VLOOKUP(DU240,'Footnotes list'!$D$9:$E$58,2,FALSE) ) )","v":""},null,null,null,null,{"$f":"IF(TRIM(DZ240)=\"\", \"\", IF(VLOOKUP(DZ240,'Footnotes list'!$D$9:$E$58,2,FALSE)=0,\"\",VLOOKUP(DZ240,'Footnotes list'!$D$9:$E$58,2,FALSE) ) )","v":""},null,null,null,null,{"$f":"IF(TRIM(EE240)=\"\", \"\", IF(VLOOKUP(EE240,'Footnotes list'!$D$9:$E$58,2,FALSE)=0,\"\",VLOOKUP(EE240,'Footnotes list'!$D$9:$E$58,2,FALSE) ) )","v":""},null,null,null,null,{"$f":"IF(TRIM(EJ240)=\"\", \"\", IF(VLOOKUP(EJ240,'Footnotes list'!$D$9:$E$58,2,FALSE)=0,\"\",VLOOKUP(EJ240,'Footnotes list'!$D$9:$E$58,2,FALSE) ) )","v":""},null,null,null,null,{"$f":"IF(TRIM(EO240)=\"\", \"\", IF(VLOOKUP(EO240,'Footnotes list'!$D$9:$E$58,2,FALSE)=0,\"\",VLOOKUP(EO240,'Footnotes list'!$D$9:$E$58,2,FALSE) ) )","v":""},null,null,null,null,{"$f":"IF(TRIM(ET240)=\"\", \"\", IF(VLOOKUP(ET240,'Footnotes list'!$D$9:$E$58,2,FALSE)=0,\"\",VLOOKUP(ET240,'Footnotes list'!$D$9:$E$58,2,FALSE) ) )","v":""},null,null,null,null,{"$f":"IF(TRIM(EY240)=\"\", \"\", IF(VLOOKUP(EY240,'Footnotes list'!$D$9:$E$58,2,FALSE)=0,\"\",VLOOKUP(EY240,'Footnotes list'!$D$9:$E$58,2,FALSE) ) )","v":""}]
[null,null,"M72","NMKT","non-market activities",null,null,null,null,null,{"$f":"IF(TRIM(J241)=\"\", \"\", IF(VLOOKUP(J241,'Footnotes list'!$D$9:$E$58,2,FALSE)=0,\"\",VLOOKUP(J241,'Footnotes list'!$D$9:$E$58,2,FALSE) ) )","v":""},null,null,null,null,{"$f":"IF(TRIM(O241)=\"\", \"\", IF(VLOOKUP(O241,'Footnotes list'!$D$9:$E$58,2,FALSE)=0,\"\",VLOOKUP(O241,'Footnotes list'!$D$9:$E$58,2,FALSE) ) )","v":""},null,null,null,null,{"$f":"IF(TRIM(T241)=\"\", \"\", IF(VLOOKUP(T241,'Footnotes list'!$D$9:$E$58,2,FALSE)=0,\"\",VLOOKUP(T241,'Footnotes list'!$D$9:$E$58,2,FALSE) ) )","v":""},null,null,null,null,{"$f":"IF(TRIM(Y241)=\"\", \"\", IF(VLOOKUP(Y241,'Footnotes list'!$D$9:$E$58,2,FALSE)=0,\"\",VLOOKUP(Y241,'Footnotes list'!$D$9:$E$58,2,FALSE) ) )","v":""},null,null,null,null,{"$f":"IF(TRIM(AD241)=\"\", \"\", IF(VLOOKUP(AD241,'Footnotes list'!$D$9:$E$58,2,FALSE)=0,\"\",VLOOKUP(AD241,'Footnotes list'!$D$9:$E$58,2,FALSE) ) )","v":""},null,null,null,null,{"$f":"IF(TRIM(AI241)=\"\", \"\", IF(VLOOKUP(AI241,'Footnotes list'!$D$9:$E$58,2,FALSE)=0,\"\",VLOOKUP(AI241,'Footnotes list'!$D$9:$E$58,2,FALSE) ) )","v":""},null,null,null,null,{"$f":"IF(TRIM(AN241)=\"\", \"\", IF(VLOOKUP(AN241,'Footnotes list'!$D$9:$E$58,2,FALSE)=0,\"\",VLOOKUP(AN241,'Footnotes list'!$D$9:$E$58,2,FALSE) ) )","v":""},null,null,null,null,{"$f":"IF(TRIM(AS241)=\"\", \"\", IF(VLOOKUP(AS241,'Footnotes list'!$D$9:$E$58,2,FALSE)=0,\"\",VLOOKUP(AS241,'Footnotes list'!$D$9:$E$58,2,FALSE) ) )","v":""},null,null,null,null,{"$f":"IF(TRIM(AX241)=\"\", \"\", IF(VLOOKUP(AX241,'Footnotes list'!$D$9:$E$58,2,FALSE)=0,\"\",VLOOKUP(AX241,'Footnotes list'!$D$9:$E$58,2,FALSE) ) )","v":""},null,null,null,null,{"$f":"IF(TRIM(BC241)=\"\", \"\", IF(VLOOKUP(BC241,'Footnotes list'!$D$9:$E$58,2,FALSE)=0,\"\",VLOOKUP(BC241,'Footnotes list'!$D$9:$E$58,2,FALSE) ) )","v":""},null,null,null,null,{"$f":"IF(TRIM(BH241)=\"\", \"\", IF(VLOOKUP(BH241,'Footnotes list'!$D$9:$E$58,2,FALSE)=0,\"\",VLOOKUP(BH241,'Footnotes list'!$D$9:$E$58,2,FALSE) ) )","v":""},null,null,null,null,{"$f":"IF(TRIM(BM241)=\"\", \"\", IF(VLOOKUP(BM241,'Footnotes list'!$D$9:$E$58,2,FALSE)=0,\"\",VLOOKUP(BM241,'Footnotes list'!$D$9:$E$58,2,FALSE) ) )","v":""},null,null,null,null,{"$f":"IF(TRIM(BR241)=\"\", \"\", IF(VLOOKUP(BR241,'Footnotes list'!$D$9:$E$58,2,FALSE)=0,\"\",VLOOKUP(BR241,'Footnotes list'!$D$9:$E$58,2,FALSE) ) )","v":""},null,null,null,null,{"$f":"IF(TRIM(BW241)=\"\", \"\", IF(VLOOKUP(BW241,'Footnotes list'!$D$9:$E$58,2,FALSE)=0,\"\",VLOOKUP(BW241,'Footnotes list'!$D$9:$E$58,2,FALSE) ) )","v":""},null,null,null,null,{"$f":"IF(TRIM(CB241)=\"\", \"\", IF(VLOOKUP(CB241,'Footnotes list'!$D$9:$E$58,2,FALSE)=0,\"\",VLOOKUP(CB241,'Footnotes list'!$D$9:$E$58,2,FALSE) ) )","v":""},null,null,null,null,{"$f":"IF(TRIM(CG241)=\"\", \"\", IF(VLOOKUP(CG241,'Footnotes list'!$D$9:$E$58,2,FALSE)=0,\"\",VLOOKUP(CG241,'Footnotes list'!$D$9:$E$58,2,FALSE) ) )","v":""},null,null,null,null,{"$f":"IF(TRIM(CL241)=\"\", \"\", IF(VLOOKUP(CL241,'Footnotes list'!$D$9:$E$58,2,FALSE)=0,\"\",VLOOKUP(CL241,'Footnotes list'!$D$9:$E$58,2,FALSE) ) )","v":""},null,null,null,null,{"$f":"IF(TRIM(CQ241)=\"\", \"\", IF(VLOOKUP(CQ241,'Footnotes list'!$D$9:$E$58,2,FALSE)=0,\"\",VLOOKUP(CQ241,'Footnotes list'!$D$9:$E$58,2,FALSE) ) )","v":""},null,null,null,null,{"$f":"IF(TRIM(CV241)=\"\", \"\", IF(VLOOKUP(CV241,'Footnotes list'!$D$9:$E$58,2,FALSE)=0,\"\",VLOOKUP(CV241,'Footnotes list'!$D$9:$E$58,2,FALSE) ) )","v":""},null,null,null,null,{"$f":"IF(TRIM(DA241)=\"\", \"\", IF(VLOOKUP(DA241,'Footnotes list'!$D$9:$E$58,2,FALSE)=0,\"\",VLOOKUP(DA241,'Footnotes list'!$D$9:$E$58,2,FALSE) ) )","v":""},null,null,null,null,{"$f":"IF(TRIM(DF241)=\"\", \"\", IF(VLOOKUP(DF241,'Footnotes list'!$D$9:$E$58,2,FALSE)=0,\"\",VLOOKUP(DF241,'Footnotes list'!$D$9:$E$58,2,FALSE) ) )","v":""},null,null,null,null,{"$f":"IF(TRIM(DK241)=\"\", \"\", IF(VLOOKUP(DK241,'Footnotes list'!$D$9:$E$58,2,FALSE)=0,\"\",VLOOKUP(DK241,'Footnotes list'!$D$9:$E$58,2,FALSE) ) )","v":""},null,null,null,null,{"$f":"IF(TRIM(DP241)=\"\", \"\", IF(VLOOKUP(DP241,'Footnotes list'!$D$9:$E$58,2,FALSE)=0,\"\",VLOOKUP(DP241,'Footnotes list'!$D$9:$E$58,2,FALSE) ) )","v":""},null,null,null,null,{"$f":"IF(TRIM(DU241)=\"\", \"\", IF(VLOOKUP(DU241,'Footnotes list'!$D$9:$E$58,2,FALSE)=0,\"\",VLOOKUP(DU241,'Footnotes list'!$D$9:$E$58,2,FALSE) ) )","v":""},null,null,null,null,{"$f":"IF(TRIM(DZ241)=\"\", \"\", IF(VLOOKUP(DZ241,'Footnotes list'!$D$9:$E$58,2,FALSE)=0,\"\",VLOOKUP(DZ241,'Footnotes list'!$D$9:$E$58,2,FALSE) ) )","v":""},null,null,null,null,{"$f":"IF(TRIM(EE241)=\"\", \"\", IF(VLOOKUP(EE241,'Footnotes list'!$D$9:$E$58,2,FALSE)=0,\"\",VLOOKUP(EE241,'Footnotes list'!$D$9:$E$58,2,FALSE) ) )","v":""},null,null,null,null,{"$f":"IF(TRIM(EJ241)=\"\", \"\", IF(VLOOKUP(EJ241,'Footnotes list'!$D$9:$E$58,2,FALSE)=0,\"\",VLOOKUP(EJ241,'Footnotes list'!$D$9:$E$58,2,FALSE) ) )","v":""},null,null,null,null,{"$f":"IF(TRIM(EO241)=\"\", \"\", IF(VLOOKUP(EO241,'Footnotes list'!$D$9:$E$58,2,FALSE)=0,\"\",VLOOKUP(EO241,'Footnotes list'!$D$9:$E$58,2,FALSE) ) )","v":""},null,null,null,null,{"$f":"IF(TRIM(ET241)=\"\", \"\", IF(VLOOKUP(ET241,'Footnotes list'!$D$9:$E$58,2,FALSE)=0,\"\",VLOOKUP(ET241,'Footnotes list'!$D$9:$E$58,2,FALSE) ) )","v":""},null,null,null,null,{"$f":"IF(TRIM(EY241)=\"\", \"\", IF(VLOOKUP(EY241,'Footnotes list'!$D$9:$E$58,2,FALSE)=0,\"\",VLOOKUP(EY241,'Footnotes list'!$D$9:$E$58,2,FALSE) ) )","v":""}]
[null,null,"M72","OWN_USE","activities for own final use",null,null,null,null,null,{"$f":"IF(TRIM(J242)=\"\", \"\", IF(VLOOKUP(J242,'Footnotes list'!$D$9:$E$58,2,FALSE)=0,\"\",VLOOKUP(J242,'Footnotes list'!$D$9:$E$58,2,FALSE) ) )","v":""},null,null,null,null,{"$f":"IF(TRIM(O242)=\"\", \"\", IF(VLOOKUP(O242,'Footnotes list'!$D$9:$E$58,2,FALSE)=0,\"\",VLOOKUP(O242,'Footnotes list'!$D$9:$E$58,2,FALSE) ) )","v":""},null,null,null,null,{"$f":"IF(TRIM(T242)=\"\", \"\", IF(VLOOKUP(T242,'Footnotes list'!$D$9:$E$58,2,FALSE)=0,\"\",VLOOKUP(T242,'Footnotes list'!$D$9:$E$58,2,FALSE) ) )","v":""},null,null,null,null,{"$f":"IF(TRIM(Y242)=\"\", \"\", IF(VLOOKUP(Y242,'Footnotes list'!$D$9:$E$58,2,FALSE)=0,\"\",VLOOKUP(Y242,'Footnotes list'!$D$9:$E$58,2,FALSE) ) )","v":""},null,null,null,null,{"$f":"IF(TRIM(AD242)=\"\", \"\", IF(VLOOKUP(AD242,'Footnotes list'!$D$9:$E$58,2,FALSE)=0,\"\",VLOOKUP(AD242,'Footnotes list'!$D$9:$E$58,2,FALSE) ) )","v":""},null,null,null,null,{"$f":"IF(TRIM(AI242)=\"\", \"\", IF(VLOOKUP(AI242,'Footnotes list'!$D$9:$E$58,2,FALSE)=0,\"\",VLOOKUP(AI242,'Footnotes list'!$D$9:$E$58,2,FALSE) ) )","v":""},null,null,null,null,{"$f":"IF(TRIM(AN242)=\"\", \"\", IF(VLOOKUP(AN242,'Footnotes list'!$D$9:$E$58,2,FALSE)=0,\"\",VLOOKUP(AN242,'Footnotes list'!$D$9:$E$58,2,FALSE) ) )","v":""},null,null,null,null,{"$f":"IF(TRIM(AS242)=\"\", \"\", IF(VLOOKUP(AS242,'Footnotes list'!$D$9:$E$58,2,FALSE)=0,\"\",VLOOKUP(AS242,'Footnotes list'!$D$9:$E$58,2,FALSE) ) )","v":""},null,null,null,null,{"$f":"IF(TRIM(AX242)=\"\", \"\", IF(VLOOKUP(AX242,'Footnotes list'!$D$9:$E$58,2,FALSE)=0,\"\",VLOOKUP(AX242,'Footnotes list'!$D$9:$E$58,2,FALSE) ) )","v":""},null,null,null,null,{"$f":"IF(TRIM(BC242)=\"\", \"\", IF(VLOOKUP(BC242,'Footnotes list'!$D$9:$E$58,2,FALSE)=0,\"\",VLOOKUP(BC242,'Footnotes list'!$D$9:$E$58,2,FALSE) ) )","v":""},null,null,null,null,{"$f":"IF(TRIM(BH242)=\"\", \"\", IF(VLOOKUP(BH242,'Footnotes list'!$D$9:$E$58,2,FALSE)=0,\"\",VLOOKUP(BH242,'Footnotes list'!$D$9:$E$58,2,FALSE) ) )","v":""},null,null,null,null,{"$f":"IF(TRIM(BM242)=\"\", \"\", IF(VLOOKUP(BM242,'Footnotes list'!$D$9:$E$58,2,FALSE)=0,\"\",VLOOKUP(BM242,'Footnotes list'!$D$9:$E$58,2,FALSE) ) )","v":""},null,null,null,null,{"$f":"IF(TRIM(BR242)=\"\", \"\", IF(VLOOKUP(BR242,'Footnotes list'!$D$9:$E$58,2,FALSE)=0,\"\",VLOOKUP(BR242,'Footnotes list'!$D$9:$E$58,2,FALSE) ) )","v":""},null,null,null,null,{"$f":"IF(TRIM(BW242)=\"\", \"\", IF(VLOOKUP(BW242,'Footnotes list'!$D$9:$E$58,2,FALSE)=0,\"\",VLOOKUP(BW242,'Footnotes list'!$D$9:$E$58,2,FALSE) ) )","v":""},null,null,null,null,{"$f":"IF(TRIM(CB242)=\"\", \"\", IF(VLOOKUP(CB242,'Footnotes list'!$D$9:$E$58,2,FALSE)=0,\"\",VLOOKUP(CB242,'Footnotes list'!$D$9:$E$58,2,FALSE) ) )","v":""},null,null,null,null,{"$f":"IF(TRIM(CG242)=\"\", \"\", IF(VLOOKUP(CG242,'Footnotes list'!$D$9:$E$58,2,FALSE)=0,\"\",VLOOKUP(CG242,'Footnotes list'!$D$9:$E$58,2,FALSE) ) )","v":""},null,null,null,null,{"$f":"IF(TRIM(CL242)=\"\", \"\", IF(VLOOKUP(CL242,'Footnotes list'!$D$9:$E$58,2,FALSE)=0,\"\",VLOOKUP(CL242,'Footnotes list'!$D$9:$E$58,2,FALSE) ) )","v":""},null,null,null,null,{"$f":"IF(TRIM(CQ242)=\"\", \"\", IF(VLOOKUP(CQ242,'Footnotes list'!$D$9:$E$58,2,FALSE)=0,\"\",VLOOKUP(CQ242,'Footnotes list'!$D$9:$E$58,2,FALSE) ) )","v":""},null,null,null,null,{"$f":"IF(TRIM(CV242)=\"\", \"\", IF(VLOOKUP(CV242,'Footnotes list'!$D$9:$E$58,2,FALSE)=0,\"\",VLOOKUP(CV242,'Footnotes list'!$D$9:$E$58,2,FALSE) ) )","v":""},null,null,null,null,{"$f":"IF(TRIM(DA242)=\"\", \"\", IF(VLOOKUP(DA242,'Footnotes list'!$D$9:$E$58,2,FALSE)=0,\"\",VLOOKUP(DA242,'Footnotes list'!$D$9:$E$58,2,FALSE) ) )","v":""},null,null,null,null,{"$f":"IF(TRIM(DF242)=\"\", \"\", IF(VLOOKUP(DF242,'Footnotes list'!$D$9:$E$58,2,FALSE)=0,\"\",VLOOKUP(DF242,'Footnotes list'!$D$9:$E$58,2,FALSE) ) )","v":""},null,null,null,null,{"$f":"IF(TRIM(DK242)=\"\", \"\", IF(VLOOKUP(DK242,'Footnotes list'!$D$9:$E$58,2,FALSE)=0,\"\",VLOOKUP(DK242,'Footnotes list'!$D$9:$E$58,2,FALSE) ) )","v":""},null,null,null,null,{"$f":"IF(TRIM(DP242)=\"\", \"\", IF(VLOOKUP(DP242,'Footnotes list'!$D$9:$E$58,2,FALSE)=0,\"\",VLOOKUP(DP242,'Footnotes list'!$D$9:$E$58,2,FALSE) ) )","v":""},null,null,null,null,{"$f":"IF(TRIM(DU242)=\"\", \"\", IF(VLOOKUP(DU242,'Footnotes list'!$D$9:$E$58,2,FALSE)=0,\"\",VLOOKUP(DU242,'Footnotes list'!$D$9:$E$58,2,FALSE) ) )","v":""},null,null,null,null,{"$f":"IF(TRIM(DZ242)=\"\", \"\", IF(VLOOKUP(DZ242,'Footnotes list'!$D$9:$E$58,2,FALSE)=0,\"\",VLOOKUP(DZ242,'Footnotes list'!$D$9:$E$58,2,FALSE) ) )","v":""},null,null,null,null,{"$f":"IF(TRIM(EE242)=\"\", \"\", IF(VLOOKUP(EE242,'Footnotes list'!$D$9:$E$58,2,FALSE)=0,\"\",VLOOKUP(EE242,'Footnotes list'!$D$9:$E$58,2,FALSE) ) )","v":""},null,null,null,null,{"$f":"IF(TRIM(EJ242)=\"\", \"\", IF(VLOOKUP(EJ242,'Footnotes list'!$D$9:$E$58,2,FALSE)=0,\"\",VLOOKUP(EJ242,'Footnotes list'!$D$9:$E$58,2,FALSE) ) )","v":""},null,null,null,null,{"$f":"IF(TRIM(EO242)=\"\", \"\", IF(VLOOKUP(EO242,'Footnotes list'!$D$9:$E$58,2,FALSE)=0,\"\",VLOOKUP(EO242,'Footnotes list'!$D$9:$E$58,2,FALSE) ) )","v":""},null,null,null,null,{"$f":"IF(TRIM(ET242)=\"\", \"\", IF(VLOOKUP(ET242,'Footnotes list'!$D$9:$E$58,2,FALSE)=0,\"\",VLOOKUP(ET242,'Footnotes list'!$D$9:$E$58,2,FALSE) ) )","v":""},null,null,null,null,{"$f":"IF(TRIM(EY242)=\"\", \"\", IF(VLOOKUP(EY242,'Footnotes list'!$D$9:$E$58,2,FALSE)=0,\"\",VLOOKUP(EY242,'Footnotes list'!$D$9:$E$58,2,FALSE) ) )","v":""}]
[null,null,"M72","MKT","market activities, including:",null,null,null,null,null,{"$f":"IF(TRIM(J243)=\"\", \"\", IF(VLOOKUP(J243,'Footnotes list'!$D$9:$E$58,2,FALSE)=0,\"\",VLOOKUP(J243,'Footnotes list'!$D$9:$E$58,2,FALSE) ) )","v":""},null,null,null,null,{"$f":"IF(TRIM(O243)=\"\", \"\", IF(VLOOKUP(O243,'Footnotes list'!$D$9:$E$58,2,FALSE)=0,\"\",VLOOKUP(O243,'Footnotes list'!$D$9:$E$58,2,FALSE) ) )","v":""},null,null,null,null,{"$f":"IF(TRIM(T243)=\"\", \"\", IF(VLOOKUP(T243,'Footnotes list'!$D$9:$E$58,2,FALSE)=0,\"\",VLOOKUP(T243,'Footnotes list'!$D$9:$E$58,2,FALSE) ) )","v":""},null,null,null,null,{"$f":"IF(TRIM(Y243)=\"\", \"\", IF(VLOOKUP(Y243,'Footnotes list'!$D$9:$E$58,2,FALSE)=0,\"\",VLOOKUP(Y243,'Footnotes list'!$D$9:$E$58,2,FALSE) ) )","v":""},null,null,null,null,{"$f":"IF(TRIM(AD243)=\"\", \"\", IF(VLOOKUP(AD243,'Footnotes list'!$D$9:$E$58,2,FALSE)=0,\"\",VLOOKUP(AD243,'Footnotes list'!$D$9:$E$58,2,FALSE) ) )","v":""},null,null,null,null,{"$f":"IF(TRIM(AI243)=\"\", \"\", IF(VLOOKUP(AI243,'Footnotes list'!$D$9:$E$58,2,FALSE)=0,\"\",VLOOKUP(AI243,'Footnotes list'!$D$9:$E$58,2,FALSE) ) )","v":""},null,null,null,null,{"$f":"IF(TRIM(AN243)=\"\", \"\", IF(VLOOKUP(AN243,'Footnotes list'!$D$9:$E$58,2,FALSE)=0,\"\",VLOOKUP(AN243,'Footnotes list'!$D$9:$E$58,2,FALSE) ) )","v":""},null,null,null,null,{"$f":"IF(TRIM(AS243)=\"\", \"\", IF(VLOOKUP(AS243,'Footnotes list'!$D$9:$E$58,2,FALSE)=0,\"\",VLOOKUP(AS243,'Footnotes list'!$D$9:$E$58,2,FALSE) ) )","v":""},null,null,null,null,{"$f":"IF(TRIM(AX243)=\"\", \"\", IF(VLOOKUP(AX243,'Footnotes list'!$D$9:$E$58,2,FALSE)=0,\"\",VLOOKUP(AX243,'Footnotes list'!$D$9:$E$58,2,FALSE) ) )","v":""},null,null,null,null,{"$f":"IF(TRIM(BC243)=\"\", \"\", IF(VLOOKUP(BC243,'Footnotes list'!$D$9:$E$58,2,FALSE)=0,\"\",VLOOKUP(BC243,'Footnotes list'!$D$9:$E$58,2,FALSE) ) )","v":""},null,null,null,null,{"$f":"IF(TRIM(BH243)=\"\", \"\", IF(VLOOKUP(BH243,'Footnotes list'!$D$9:$E$58,2,FALSE)=0,\"\",VLOOKUP(BH243,'Footnotes list'!$D$9:$E$58,2,FALSE) ) )","v":""},null,null,null,null,{"$f":"IF(TRIM(BM243)=\"\", \"\", IF(VLOOKUP(BM243,'Footnotes list'!$D$9:$E$58,2,FALSE)=0,\"\",VLOOKUP(BM243,'Footnotes list'!$D$9:$E$58,2,FALSE) ) )","v":""},null,null,null,null,{"$f":"IF(TRIM(BR243)=\"\", \"\", IF(VLOOKUP(BR243,'Footnotes list'!$D$9:$E$58,2,FALSE)=0,\"\",VLOOKUP(BR243,'Footnotes list'!$D$9:$E$58,2,FALSE) ) )","v":""},null,null,null,null,{"$f":"IF(TRIM(BW243)=\"\", \"\", IF(VLOOKUP(BW243,'Footnotes list'!$D$9:$E$58,2,FALSE)=0,\"\",VLOOKUP(BW243,'Footnotes list'!$D$9:$E$58,2,FALSE) ) )","v":""},null,null,null,null,{"$f":"IF(TRIM(CB243)=\"\", \"\", IF(VLOOKUP(CB243,'Footnotes list'!$D$9:$E$58,2,FALSE)=0,\"\",VLOOKUP(CB243,'Footnotes list'!$D$9:$E$58,2,FALSE) ) )","v":""},null,null,null,null,{"$f":"IF(TRIM(CG243)=\"\", \"\", IF(VLOOKUP(CG243,'Footnotes list'!$D$9:$E$58,2,FALSE)=0,\"\",VLOOKUP(CG243,'Footnotes list'!$D$9:$E$58,2,FALSE) ) )","v":""},null,null,null,null,{"$f":"IF(TRIM(CL243)=\"\", \"\", IF(VLOOKUP(CL243,'Footnotes list'!$D$9:$E$58,2,FALSE)=0,\"\",VLOOKUP(CL243,'Footnotes list'!$D$9:$E$58,2,FALSE) ) )","v":""},null,null,null,null,{"$f":"IF(TRIM(CQ243)=\"\", \"\", IF(VLOOKUP(CQ243,'Footnotes list'!$D$9:$E$58,2,FALSE)=0,\"\",VLOOKUP(CQ243,'Footnotes list'!$D$9:$E$58,2,FALSE) ) )","v":""},null,null,null,null,{"$f":"IF(TRIM(CV243)=\"\", \"\", IF(VLOOKUP(CV243,'Footnotes list'!$D$9:$E$58,2,FALSE)=0,\"\",VLOOKUP(CV243,'Footnotes list'!$D$9:$E$58,2,FALSE) ) )","v":""},null,null,null,null,{"$f":"IF(TRIM(DA243)=\"\", \"\", IF(VLOOKUP(DA243,'Footnotes list'!$D$9:$E$58,2,FALSE)=0,\"\",VLOOKUP(DA243,'Footnotes list'!$D$9:$E$58,2,FALSE) ) )","v":""},null,null,null,null,{"$f":"IF(TRIM(DF243)=\"\", \"\", IF(VLOOKUP(DF243,'Footnotes list'!$D$9:$E$58,2,FALSE)=0,\"\",VLOOKUP(DF243,'Footnotes list'!$D$9:$E$58,2,FALSE) ) )","v":""},null,null,null,null,{"$f":"IF(TRIM(DK243)=\"\", \"\", IF(VLOOKUP(DK243,'Footnotes list'!$D$9:$E$58,2,FALSE)=0,\"\",VLOOKUP(DK243,'Footnotes list'!$D$9:$E$58,2,FALSE) ) )","v":""},null,null,null,null,{"$f":"IF(TRIM(DP243)=\"\", \"\", IF(VLOOKUP(DP243,'Footnotes list'!$D$9:$E$58,2,FALSE)=0,\"\",VLOOKUP(DP243,'Footnotes list'!$D$9:$E$58,2,FALSE) ) )","v":""},null,null,null,null,{"$f":"IF(TRIM(DU243)=\"\", \"\", IF(VLOOKUP(DU243,'Footnotes list'!$D$9:$E$58,2,FALSE)=0,\"\",VLOOKUP(DU243,'Footnotes list'!$D$9:$E$58,2,FALSE) ) )","v":""},null,null,null,null,{"$f":"IF(TRIM(DZ243)=\"\", \"\", IF(VLOOKUP(DZ243,'Footnotes list'!$D$9:$E$58,2,FALSE)=0,\"\",VLOOKUP(DZ243,'Footnotes list'!$D$9:$E$58,2,FALSE) ) )","v":""},null,null,null,null,{"$f":"IF(TRIM(EE243)=\"\", \"\", IF(VLOOKUP(EE243,'Footnotes list'!$D$9:$E$58,2,FALSE)=0,\"\",VLOOKUP(EE243,'Footnotes list'!$D$9:$E$58,2,FALSE) ) )","v":""},null,null,null,null,{"$f":"IF(TRIM(EJ243)=\"\", \"\", IF(VLOOKUP(EJ243,'Footnotes list'!$D$9:$E$58,2,FALSE)=0,\"\",VLOOKUP(EJ243,'Footnotes list'!$D$9:$E$58,2,FALSE) ) )","v":""},null,null,null,null,{"$f":"IF(TRIM(EO243)=\"\", \"\", IF(VLOOKUP(EO243,'Footnotes list'!$D$9:$E$58,2,FALSE)=0,\"\",VLOOKUP(EO243,'Footnotes list'!$D$9:$E$58,2,FALSE) ) )","v":""},null,null,null,null,{"$f":"IF(TRIM(ET243)=\"\", \"\", IF(VLOOKUP(ET243,'Footnotes list'!$D$9:$E$58,2,FALSE)=0,\"\",VLOOKUP(ET243,'Footnotes list'!$D$9:$E$58,2,FALSE) ) )","v":""},null,null,null,null,{"$f":"IF(TRIM(EY243)=\"\", \"\", IF(VLOOKUP(EY243,'Footnotes list'!$D$9:$E$58,2,FALSE)=0,\"\",VLOOKUP(EY243,'Footnotes list'!$D$9:$E$58,2,FALSE) ) )","v":""}]
[null,null,"M72","ES_CS","environmental specific services",null,null,null,null,null,{"$f":"IF(TRIM(J244)=\"\", \"\", IF(VLOOKUP(J244,'Footnotes list'!$D$9:$E$58,2,FALSE)=0,\"\",VLOOKUP(J244,'Footnotes list'!$D$9:$E$58,2,FALSE) ) )","v":""},null,null,null,null,{"$f":"IF(TRIM(O244)=\"\", \"\", IF(VLOOKUP(O244,'Footnotes list'!$D$9:$E$58,2,FALSE)=0,\"\",VLOOKUP(O244,'Footnotes list'!$D$9:$E$58,2,FALSE) ) )","v":""},null,null,null,null,{"$f":"IF(TRIM(T244)=\"\", \"\", IF(VLOOKUP(T244,'Footnotes list'!$D$9:$E$58,2,FALSE)=0,\"\",VLOOKUP(T244,'Footnotes list'!$D$9:$E$58,2,FALSE) ) )","v":""},null,null,null,null,{"$f":"IF(TRIM(Y244)=\"\", \"\", IF(VLOOKUP(Y244,'Footnotes list'!$D$9:$E$58,2,FALSE)=0,\"\",VLOOKUP(Y244,'Footnotes list'!$D$9:$E$58,2,FALSE) ) )","v":""},null,null,null,null,{"$f":"IF(TRIM(AD244)=\"\", \"\", IF(VLOOKUP(AD244,'Footnotes list'!$D$9:$E$58,2,FALSE)=0,\"\",VLOOKUP(AD244,'Footnotes list'!$D$9:$E$58,2,FALSE) ) )","v":""},null,null,null,null,{"$f":"IF(TRIM(AI244)=\"\", \"\", IF(VLOOKUP(AI244,'Footnotes list'!$D$9:$E$58,2,FALSE)=0,\"\",VLOOKUP(AI244,'Footnotes list'!$D$9:$E$58,2,FALSE) ) )","v":""},null,null,null,null,{"$f":"IF(TRIM(AN244)=\"\", \"\", IF(VLOOKUP(AN244,'Footnotes list'!$D$9:$E$58,2,FALSE)=0,\"\",VLOOKUP(AN244,'Footnotes list'!$D$9:$E$58,2,FALSE) ) )","v":""},null,null,null,null,{"$f":"IF(TRIM(AS244)=\"\", \"\", IF(VLOOKUP(AS244,'Footnotes list'!$D$9:$E$58,2,FALSE)=0,\"\",VLOOKUP(AS244,'Footnotes list'!$D$9:$E$58,2,FALSE) ) )","v":""},null,null,null,null,{"$f":"IF(TRIM(AX244)=\"\", \"\", IF(VLOOKUP(AX244,'Footnotes list'!$D$9:$E$58,2,FALSE)=0,\"\",VLOOKUP(AX244,'Footnotes list'!$D$9:$E$58,2,FALSE) ) )","v":""},null,null,null,null,{"$f":"IF(TRIM(BC244)=\"\", \"\", IF(VLOOKUP(BC244,'Footnotes list'!$D$9:$E$58,2,FALSE)=0,\"\",VLOOKUP(BC244,'Footnotes list'!$D$9:$E$58,2,FALSE) ) )","v":""},null,null,null,null,{"$f":"IF(TRIM(BH244)=\"\", \"\", IF(VLOOKUP(BH244,'Footnotes list'!$D$9:$E$58,2,FALSE)=0,\"\",VLOOKUP(BH244,'Footnotes list'!$D$9:$E$58,2,FALSE) ) )","v":""},null,null,null,null,{"$f":"IF(TRIM(BM244)=\"\", \"\", IF(VLOOKUP(BM244,'Footnotes list'!$D$9:$E$58,2,FALSE)=0,\"\",VLOOKUP(BM244,'Footnotes list'!$D$9:$E$58,2,FALSE) ) )","v":""},null,null,null,null,{"$f":"IF(TRIM(BR244)=\"\", \"\", IF(VLOOKUP(BR244,'Footnotes list'!$D$9:$E$58,2,FALSE)=0,\"\",VLOOKUP(BR244,'Footnotes list'!$D$9:$E$58,2,FALSE) ) )","v":""},null,null,null,null,{"$f":"IF(TRIM(BW244)=\"\", \"\", IF(VLOOKUP(BW244,'Footnotes list'!$D$9:$E$58,2,FALSE)=0,\"\",VLOOKUP(BW244,'Footnotes list'!$D$9:$E$58,2,FALSE) ) )","v":""},null,null,null,null,{"$f":"IF(TRIM(CB244)=\"\", \"\", IF(VLOOKUP(CB244,'Footnotes list'!$D$9:$E$58,2,FALSE)=0,\"\",VLOOKUP(CB244,'Footnotes list'!$D$9:$E$58,2,FALSE) ) )","v":""},null,null,null,null,{"$f":"IF(TRIM(CG244)=\"\", \"\", IF(VLOOKUP(CG244,'Footnotes list'!$D$9:$E$58,2,FALSE)=0,\"\",VLOOKUP(CG244,'Footnotes list'!$D$9:$E$58,2,FALSE) ) )","v":""},null,null,null,null,{"$f":"IF(TRIM(CL244)=\"\", \"\", IF(VLOOKUP(CL244,'Footnotes list'!$D$9:$E$58,2,FALSE)=0,\"\",VLOOKUP(CL244,'Footnotes list'!$D$9:$E$58,2,FALSE) ) )","v":""},null,null,null,null,{"$f":"IF(TRIM(CQ244)=\"\", \"\", IF(VLOOKUP(CQ244,'Footnotes list'!$D$9:$E$58,2,FALSE)=0,\"\",VLOOKUP(CQ244,'Footnotes list'!$D$9:$E$58,2,FALSE) ) )","v":""},null,null,null,null,{"$f":"IF(TRIM(CV244)=\"\", \"\", IF(VLOOKUP(CV244,'Footnotes list'!$D$9:$E$58,2,FALSE)=0,\"\",VLOOKUP(CV244,'Footnotes list'!$D$9:$E$58,2,FALSE) ) )","v":""},null,null,null,null,{"$f":"IF(TRIM(DA244)=\"\", \"\", IF(VLOOKUP(DA244,'Footnotes list'!$D$9:$E$58,2,FALSE)=0,\"\",VLOOKUP(DA244,'Footnotes list'!$D$9:$E$58,2,FALSE) ) )","v":""},null,null,null,null,{"$f":"IF(TRIM(DF244)=\"\", \"\", IF(VLOOKUP(DF244,'Footnotes list'!$D$9:$E$58,2,FALSE)=0,\"\",VLOOKUP(DF244,'Footnotes list'!$D$9:$E$58,2,FALSE) ) )","v":""},null,null,null,null,{"$f":"IF(TRIM(DK244)=\"\", \"\", IF(VLOOKUP(DK244,'Footnotes list'!$D$9:$E$58,2,FALSE)=0,\"\",VLOOKUP(DK244,'Footnotes list'!$D$9:$E$58,2,FALSE) ) )","v":""},null,null,null,null,{"$f":"IF(TRIM(DP244)=\"\", \"\", IF(VLOOKUP(DP244,'Footnotes list'!$D$9:$E$58,2,FALSE)=0,\"\",VLOOKUP(DP244,'Footnotes list'!$D$9:$E$58,2,FALSE) ) )","v":""},null,null,null,null,{"$f":"IF(TRIM(DU244)=\"\", \"\", IF(VLOOKUP(DU244,'Footnotes list'!$D$9:$E$58,2,FALSE)=0,\"\",VLOOKUP(DU244,'Footnotes list'!$D$9:$E$58,2,FALSE) ) )","v":""},null,null,null,null,{"$f":"IF(TRIM(DZ244)=\"\", \"\", IF(VLOOKUP(DZ244,'Footnotes list'!$D$9:$E$58,2,FALSE)=0,\"\",VLOOKUP(DZ244,'Footnotes list'!$D$9:$E$58,2,FALSE) ) )","v":""},null,null,null,null,{"$f":"IF(TRIM(EE244)=\"\", \"\", IF(VLOOKUP(EE244,'Footnotes list'!$D$9:$E$58,2,FALSE)=0,\"\",VLOOKUP(EE244,'Footnotes list'!$D$9:$E$58,2,FALSE) ) )","v":""},null,null,null,null,{"$f":"IF(TRIM(EJ244)=\"\", \"\", IF(VLOOKUP(EJ244,'Footnotes list'!$D$9:$E$58,2,FALSE)=0,\"\",VLOOKUP(EJ244,'Footnotes list'!$D$9:$E$58,2,FALSE) ) )","v":""},null,null,null,null,{"$f":"IF(TRIM(EO244)=\"\", \"\", IF(VLOOKUP(EO244,'Footnotes list'!$D$9:$E$58,2,FALSE)=0,\"\",VLOOKUP(EO244,'Footnotes list'!$D$9:$E$58,2,FALSE) ) )","v":""},null,null,null,null,{"$f":"IF(TRIM(ET244)=\"\", \"\", IF(VLOOKUP(ET244,'Footnotes list'!$D$9:$E$58,2,FALSE)=0,\"\",VLOOKUP(ET244,'Footnotes list'!$D$9:$E$58,2,FALSE) ) )","v":""},null,null,null,null,{"$f":"IF(TRIM(EY244)=\"\", \"\", IF(VLOOKUP(EY244,'Footnotes list'!$D$9:$E$58,2,FALSE)=0,\"\",VLOOKUP(EY244,'Footnotes list'!$D$9:$E$58,2,FALSE) ) )","v":""}]
[null,null,"M72","C_REP","cleaner and resource efficient products",null,null,null,null,null,{"$f":"IF(TRIM(J245)=\"\", \"\", IF(VLOOKUP(J245,'Footnotes list'!$D$9:$E$58,2,FALSE)=0,\"\",VLOOKUP(J245,'Footnotes list'!$D$9:$E$58,2,FALSE) ) )","v":""},null,null,null,null,{"$f":"IF(TRIM(O245)=\"\", \"\", IF(VLOOKUP(O245,'Footnotes list'!$D$9:$E$58,2,FALSE)=0,\"\",VLOOKUP(O245,'Footnotes list'!$D$9:$E$58,2,FALSE) ) )","v":""},null,null,null,null,{"$f":"IF(TRIM(T245)=\"\", \"\", IF(VLOOKUP(T245,'Footnotes list'!$D$9:$E$58,2,FALSE)=0,\"\",VLOOKUP(T245,'Footnotes list'!$D$9:$E$58,2,FALSE) ) )","v":""},null,null,null,null,{"$f":"IF(TRIM(Y245)=\"\", \"\", IF(VLOOKUP(Y245,'Footnotes list'!$D$9:$E$58,2,FALSE)=0,\"\",VLOOKUP(Y245,'Footnotes list'!$D$9:$E$58,2,FALSE) ) )","v":""},null,null,null,null,{"$f":"IF(TRIM(AD245)=\"\", \"\", IF(VLOOKUP(AD245,'Footnotes list'!$D$9:$E$58,2,FALSE)=0,\"\",VLOOKUP(AD245,'Footnotes list'!$D$9:$E$58,2,FALSE) ) )","v":""},null,null,null,null,{"$f":"IF(TRIM(AI245)=\"\", \"\", IF(VLOOKUP(AI245,'Footnotes list'!$D$9:$E$58,2,FALSE)=0,\"\",VLOOKUP(AI245,'Footnotes list'!$D$9:$E$58,2,FALSE) ) )","v":""},null,null,null,null,{"$f":"IF(TRIM(AN245)=\"\", \"\", IF(VLOOKUP(AN245,'Footnotes list'!$D$9:$E$58,2,FALSE)=0,\"\",VLOOKUP(AN245,'Footnotes list'!$D$9:$E$58,2,FALSE) ) )","v":""},null,null,null,null,{"$f":"IF(TRIM(AS245)=\"\", \"\", IF(VLOOKUP(AS245,'Footnotes list'!$D$9:$E$58,2,FALSE)=0,\"\",VLOOKUP(AS245,'Footnotes list'!$D$9:$E$58,2,FALSE) ) )","v":""},null,null,null,null,{"$f":"IF(TRIM(AX245)=\"\", \"\", IF(VLOOKUP(AX245,'Footnotes list'!$D$9:$E$58,2,FALSE)=0,\"\",VLOOKUP(AX245,'Footnotes list'!$D$9:$E$58,2,FALSE) ) )","v":""},null,null,null,null,{"$f":"IF(TRIM(BC245)=\"\", \"\", IF(VLOOKUP(BC245,'Footnotes list'!$D$9:$E$58,2,FALSE)=0,\"\",VLOOKUP(BC245,'Footnotes list'!$D$9:$E$58,2,FALSE) ) )","v":""},null,null,null,null,{"$f":"IF(TRIM(BH245)=\"\", \"\", IF(VLOOKUP(BH245,'Footnotes list'!$D$9:$E$58,2,FALSE)=0,\"\",VLOOKUP(BH245,'Footnotes list'!$D$9:$E$58,2,FALSE) ) )","v":""},null,null,null,null,{"$f":"IF(TRIM(BM245)=\"\", \"\", IF(VLOOKUP(BM245,'Footnotes list'!$D$9:$E$58,2,FALSE)=0,\"\",VLOOKUP(BM245,'Footnotes list'!$D$9:$E$58,2,FALSE) ) )","v":""},null,null,null,null,{"$f":"IF(TRIM(BR245)=\"\", \"\", IF(VLOOKUP(BR245,'Footnotes list'!$D$9:$E$58,2,FALSE)=0,\"\",VLOOKUP(BR245,'Footnotes list'!$D$9:$E$58,2,FALSE) ) )","v":""},null,null,null,null,{"$f":"IF(TRIM(BW245)=\"\", \"\", IF(VLOOKUP(BW245,'Footnotes list'!$D$9:$E$58,2,FALSE)=0,\"\",VLOOKUP(BW245,'Footnotes list'!$D$9:$E$58,2,FALSE) ) )","v":""},null,null,null,null,{"$f":"IF(TRIM(CB245)=\"\", \"\", IF(VLOOKUP(CB245,'Footnotes list'!$D$9:$E$58,2,FALSE)=0,\"\",VLOOKUP(CB245,'Footnotes list'!$D$9:$E$58,2,FALSE) ) )","v":""},null,null,null,null,{"$f":"IF(TRIM(CG245)=\"\", \"\", IF(VLOOKUP(CG245,'Footnotes list'!$D$9:$E$58,2,FALSE)=0,\"\",VLOOKUP(CG245,'Footnotes list'!$D$9:$E$58,2,FALSE) ) )","v":""},null,null,null,null,{"$f":"IF(TRIM(CL245)=\"\", \"\", IF(VLOOKUP(CL245,'Footnotes list'!$D$9:$E$58,2,FALSE)=0,\"\",VLOOKUP(CL245,'Footnotes list'!$D$9:$E$58,2,FALSE) ) )","v":""},null,null,null,null,{"$f":"IF(TRIM(CQ245)=\"\", \"\", IF(VLOOKUP(CQ245,'Footnotes list'!$D$9:$E$58,2,FALSE)=0,\"\",VLOOKUP(CQ245,'Footnotes list'!$D$9:$E$58,2,FALSE) ) )","v":""},null,null,null,null,{"$f":"IF(TRIM(CV245)=\"\", \"\", IF(VLOOKUP(CV245,'Footnotes list'!$D$9:$E$58,2,FALSE)=0,\"\",VLOOKUP(CV245,'Footnotes list'!$D$9:$E$58,2,FALSE) ) )","v":""},null,null,null,null,{"$f":"IF(TRIM(DA245)=\"\", \"\", IF(VLOOKUP(DA245,'Footnotes list'!$D$9:$E$58,2,FALSE)=0,\"\",VLOOKUP(DA245,'Footnotes list'!$D$9:$E$58,2,FALSE) ) )","v":""},null,null,null,null,{"$f":"IF(TRIM(DF245)=\"\", \"\", IF(VLOOKUP(DF245,'Footnotes list'!$D$9:$E$58,2,FALSE)=0,\"\",VLOOKUP(DF245,'Footnotes list'!$D$9:$E$58,2,FALSE) ) )","v":""},null,null,null,null,{"$f":"IF(TRIM(DK245)=\"\", \"\", IF(VLOOKUP(DK245,'Footnotes list'!$D$9:$E$58,2,FALSE)=0,\"\",VLOOKUP(DK245,'Footnotes list'!$D$9:$E$58,2,FALSE) ) )","v":""},null,null,null,null,{"$f":"IF(TRIM(DP245)=\"\", \"\", IF(VLOOKUP(DP245,'Footnotes list'!$D$9:$E$58,2,FALSE)=0,\"\",VLOOKUP(DP245,'Footnotes list'!$D$9:$E$58,2,FALSE) ) )","v":""},null,null,null,null,{"$f":"IF(TRIM(DU245)=\"\", \"\", IF(VLOOKUP(DU245,'Footnotes list'!$D$9:$E$58,2,FALSE)=0,\"\",VLOOKUP(DU245,'Footnotes list'!$D$9:$E$58,2,FALSE) ) )","v":""},null,null,null,null,{"$f":"IF(TRIM(DZ245)=\"\", \"\", IF(VLOOKUP(DZ245,'Footnotes list'!$D$9:$E$58,2,FALSE)=0,\"\",VLOOKUP(DZ245,'Footnotes list'!$D$9:$E$58,2,FALSE) ) )","v":""},null,null,null,null,{"$f":"IF(TRIM(EE245)=\"\", \"\", IF(VLOOKUP(EE245,'Footnotes list'!$D$9:$E$58,2,FALSE)=0,\"\",VLOOKUP(EE245,'Footnotes list'!$D$9:$E$58,2,FALSE) ) )","v":""},null,null,null,null,{"$f":"IF(TRIM(EJ245)=\"\", \"\", IF(VLOOKUP(EJ245,'Footnotes list'!$D$9:$E$58,2,FALSE)=0,\"\",VLOOKUP(EJ245,'Footnotes list'!$D$9:$E$58,2,FALSE) ) )","v":""},null,null,null,null,{"$f":"IF(TRIM(EO245)=\"\", \"\", IF(VLOOKUP(EO245,'Footnotes list'!$D$9:$E$58,2,FALSE)=0,\"\",VLOOKUP(EO245,'Footnotes list'!$D$9:$E$58,2,FALSE) ) )","v":""},null,null,null,null,{"$f":"IF(TRIM(ET245)=\"\", \"\", IF(VLOOKUP(ET245,'Footnotes list'!$D$9:$E$58,2,FALSE)=0,\"\",VLOOKUP(ET245,'Footnotes list'!$D$9:$E$58,2,FALSE) ) )","v":""},null,null,null,null,{"$f":"IF(TRIM(EY245)=\"\", \"\", IF(VLOOKUP(EY245,'Footnotes list'!$D$9:$E$58,2,FALSE)=0,\"\",VLOOKUP(EY245,'Footnotes list'!$D$9:$E$58,2,FALSE) ) )","v":""}]
[null,null,"M73-M75","TOT_EGSS","Total M73-M75 - Advertising and market research; Other professional, scientific and technical activities; Veterinary activities, of which:",null,null,null,null,null,{"$f":"IF(TRIM(J246)=\"\", \"\", IF(VLOOKUP(J246,'Footnotes list'!$D$9:$E$58,2,FALSE)=0,\"\",VLOOKUP(J246,'Footnotes list'!$D$9:$E$58,2,FALSE) ) )","v":""},null,null,null,null,{"$f":"IF(TRIM(O246)=\"\", \"\", IF(VLOOKUP(O246,'Footnotes list'!$D$9:$E$58,2,FALSE)=0,\"\",VLOOKUP(O246,'Footnotes list'!$D$9:$E$58,2,FALSE) ) )","v":""},null,null,null,null,{"$f":"IF(TRIM(T246)=\"\", \"\", IF(VLOOKUP(T246,'Footnotes list'!$D$9:$E$58,2,FALSE)=0,\"\",VLOOKUP(T246,'Footnotes list'!$D$9:$E$58,2,FALSE) ) )","v":""},null,null,null,null,{"$f":"IF(TRIM(Y246)=\"\", \"\", IF(VLOOKUP(Y246,'Footnotes list'!$D$9:$E$58,2,FALSE)=0,\"\",VLOOKUP(Y246,'Footnotes list'!$D$9:$E$58,2,FALSE) ) )","v":""},null,null,null,null,{"$f":"IF(TRIM(AD246)=\"\", \"\", IF(VLOOKUP(AD246,'Footnotes list'!$D$9:$E$58,2,FALSE)=0,\"\",VLOOKUP(AD246,'Footnotes list'!$D$9:$E$58,2,FALSE) ) )","v":""},null,null,null,null,{"$f":"IF(TRIM(AI246)=\"\", \"\", IF(VLOOKUP(AI246,'Footnotes list'!$D$9:$E$58,2,FALSE)=0,\"\",VLOOKUP(AI246,'Footnotes list'!$D$9:$E$58,2,FALSE) ) )","v":""},null,null,null,null,{"$f":"IF(TRIM(AN246)=\"\", \"\", IF(VLOOKUP(AN246,'Footnotes list'!$D$9:$E$58,2,FALSE)=0,\"\",VLOOKUP(AN246,'Footnotes list'!$D$9:$E$58,2,FALSE) ) )","v":""},null,null,null,null,{"$f":"IF(TRIM(AS246)=\"\", \"\", IF(VLOOKUP(AS246,'Footnotes list'!$D$9:$E$58,2,FALSE)=0,\"\",VLOOKUP(AS246,'Footnotes list'!$D$9:$E$58,2,FALSE) ) )","v":""},null,null,null,null,{"$f":"IF(TRIM(AX246)=\"\", \"\", IF(VLOOKUP(AX246,'Footnotes list'!$D$9:$E$58,2,FALSE)=0,\"\",VLOOKUP(AX246,'Footnotes list'!$D$9:$E$58,2,FALSE) ) )","v":""},null,null,null,null,{"$f":"IF(TRIM(BC246)=\"\", \"\", IF(VLOOKUP(BC246,'Footnotes list'!$D$9:$E$58,2,FALSE)=0,\"\",VLOOKUP(BC246,'Footnotes list'!$D$9:$E$58,2,FALSE) ) )","v":""},null,null,null,null,{"$f":"IF(TRIM(BH246)=\"\", \"\", IF(VLOOKUP(BH246,'Footnotes list'!$D$9:$E$58,2,FALSE)=0,\"\",VLOOKUP(BH246,'Footnotes list'!$D$9:$E$58,2,FALSE) ) )","v":""},null,null,null,null,{"$f":"IF(TRIM(BM246)=\"\", \"\", IF(VLOOKUP(BM246,'Footnotes list'!$D$9:$E$58,2,FALSE)=0,\"\",VLOOKUP(BM246,'Footnotes list'!$D$9:$E$58,2,FALSE) ) )","v":""},null,null,null,null,{"$f":"IF(TRIM(BR246)=\"\", \"\", IF(VLOOKUP(BR246,'Footnotes list'!$D$9:$E$58,2,FALSE)=0,\"\",VLOOKUP(BR246,'Footnotes list'!$D$9:$E$58,2,FALSE) ) )","v":""},null,null,null,null,{"$f":"IF(TRIM(BW246)=\"\", \"\", IF(VLOOKUP(BW246,'Footnotes list'!$D$9:$E$58,2,FALSE)=0,\"\",VLOOKUP(BW246,'Footnotes list'!$D$9:$E$58,2,FALSE) ) )","v":""},null,null,null,null,{"$f":"IF(TRIM(CB246)=\"\", \"\", IF(VLOOKUP(CB246,'Footnotes list'!$D$9:$E$58,2,FALSE)=0,\"\",VLOOKUP(CB246,'Footnotes list'!$D$9:$E$58,2,FALSE) ) )","v":""},null,null,null,null,{"$f":"IF(TRIM(CG246)=\"\", \"\", IF(VLOOKUP(CG246,'Footnotes list'!$D$9:$E$58,2,FALSE)=0,\"\",VLOOKUP(CG246,'Footnotes list'!$D$9:$E$58,2,FALSE) ) )","v":""},null,null,null,null,{"$f":"IF(TRIM(CL246)=\"\", \"\", IF(VLOOKUP(CL246,'Footnotes list'!$D$9:$E$58,2,FALSE)=0,\"\",VLOOKUP(CL246,'Footnotes list'!$D$9:$E$58,2,FALSE) ) )","v":""},null,null,null,null,{"$f":"IF(TRIM(CQ246)=\"\", \"\", IF(VLOOKUP(CQ246,'Footnotes list'!$D$9:$E$58,2,FALSE)=0,\"\",VLOOKUP(CQ246,'Footnotes list'!$D$9:$E$58,2,FALSE) ) )","v":""},null,null,null,null,{"$f":"IF(TRIM(CV246)=\"\", \"\", IF(VLOOKUP(CV246,'Footnotes list'!$D$9:$E$58,2,FALSE)=0,\"\",VLOOKUP(CV246,'Footnotes list'!$D$9:$E$58,2,FALSE) ) )","v":""},null,null,null,null,{"$f":"IF(TRIM(DA246)=\"\", \"\", IF(VLOOKUP(DA246,'Footnotes list'!$D$9:$E$58,2,FALSE)=0,\"\",VLOOKUP(DA246,'Footnotes list'!$D$9:$E$58,2,FALSE) ) )","v":""},null,null,null,null,{"$f":"IF(TRIM(DF246)=\"\", \"\", IF(VLOOKUP(DF246,'Footnotes list'!$D$9:$E$58,2,FALSE)=0,\"\",VLOOKUP(DF246,'Footnotes list'!$D$9:$E$58,2,FALSE) ) )","v":""},null,null,null,null,{"$f":"IF(TRIM(DK246)=\"\", \"\", IF(VLOOKUP(DK246,'Footnotes list'!$D$9:$E$58,2,FALSE)=0,\"\",VLOOKUP(DK246,'Footnotes list'!$D$9:$E$58,2,FALSE) ) )","v":""},null,null,null,null,{"$f":"IF(TRIM(DP246)=\"\", \"\", IF(VLOOKUP(DP246,'Footnotes list'!$D$9:$E$58,2,FALSE)=0,\"\",VLOOKUP(DP246,'Footnotes list'!$D$9:$E$58,2,FALSE) ) )","v":""},null,null,null,null,{"$f":"IF(TRIM(DU246)=\"\", \"\", IF(VLOOKUP(DU246,'Footnotes list'!$D$9:$E$58,2,FALSE)=0,\"\",VLOOKUP(DU246,'Footnotes list'!$D$9:$E$58,2,FALSE) ) )","v":""},null,null,null,null,{"$f":"IF(TRIM(DZ246)=\"\", \"\", IF(VLOOKUP(DZ246,'Footnotes list'!$D$9:$E$58,2,FALSE)=0,\"\",VLOOKUP(DZ246,'Footnotes list'!$D$9:$E$58,2,FALSE) ) )","v":""},null,null,null,null,{"$f":"IF(TRIM(EE246)=\"\", \"\", IF(VLOOKUP(EE246,'Footnotes list'!$D$9:$E$58,2,FALSE)=0,\"\",VLOOKUP(EE246,'Footnotes list'!$D$9:$E$58,2,FALSE) ) )","v":""},null,null,null,null,{"$f":"IF(TRIM(EJ246)=\"\", \"\", IF(VLOOKUP(EJ246,'Footnotes list'!$D$9:$E$58,2,FALSE)=0,\"\",VLOOKUP(EJ246,'Footnotes list'!$D$9:$E$58,2,FALSE) ) )","v":""},null,null,null,null,{"$f":"IF(TRIM(EO246)=\"\", \"\", IF(VLOOKUP(EO246,'Footnotes list'!$D$9:$E$58,2,FALSE)=0,\"\",VLOOKUP(EO246,'Footnotes list'!$D$9:$E$58,2,FALSE) ) )","v":""},null,null,null,null,{"$f":"IF(TRIM(ET246)=\"\", \"\", IF(VLOOKUP(ET246,'Footnotes list'!$D$9:$E$58,2,FALSE)=0,\"\",VLOOKUP(ET246,'Footnotes list'!$D$9:$E$58,2,FALSE) ) )","v":""},null,null,null,null,{"$f":"IF(TRIM(EY246)=\"\", \"\", IF(VLOOKUP(EY246,'Footnotes list'!$D$9:$E$58,2,FALSE)=0,\"\",VLOOKUP(EY246,'Footnotes list'!$D$9:$E$58,2,FALSE) ) )","v":""}]
[null,null,"M73-M75","ANC","ancillary activities",null,null,null,null,null,{"$f":"IF(TRIM(J247)=\"\", \"\", IF(VLOOKUP(J247,'Footnotes list'!$D$9:$E$58,2,FALSE)=0,\"\",VLOOKUP(J247,'Footnotes list'!$D$9:$E$58,2,FALSE) ) )","v":""},null,null,null,null,{"$f":"IF(TRIM(O247)=\"\", \"\", IF(VLOOKUP(O247,'Footnotes list'!$D$9:$E$58,2,FALSE)=0,\"\",VLOOKUP(O247,'Footnotes list'!$D$9:$E$58,2,FALSE) ) )","v":""},null,null,null,null,{"$f":"IF(TRIM(T247)=\"\", \"\", IF(VLOOKUP(T247,'Footnotes list'!$D$9:$E$58,2,FALSE)=0,\"\",VLOOKUP(T247,'Footnotes list'!$D$9:$E$58,2,FALSE) ) )","v":""},null,null,null,null,{"$f":"IF(TRIM(Y247)=\"\", \"\", IF(VLOOKUP(Y247,'Footnotes list'!$D$9:$E$58,2,FALSE)=0,\"\",VLOOKUP(Y247,'Footnotes list'!$D$9:$E$58,2,FALSE) ) )","v":""},null,null,null,null,{"$f":"IF(TRIM(AD247)=\"\", \"\", IF(VLOOKUP(AD247,'Footnotes list'!$D$9:$E$58,2,FALSE)=0,\"\",VLOOKUP(AD247,'Footnotes list'!$D$9:$E$58,2,FALSE) ) )","v":""},null,null,null,null,{"$f":"IF(TRIM(AI247)=\"\", \"\", IF(VLOOKUP(AI247,'Footnotes list'!$D$9:$E$58,2,FALSE)=0,\"\",VLOOKUP(AI247,'Footnotes list'!$D$9:$E$58,2,FALSE) ) )","v":""},null,null,null,null,{"$f":"IF(TRIM(AN247)=\"\", \"\", IF(VLOOKUP(AN247,'Footnotes list'!$D$9:$E$58,2,FALSE)=0,\"\",VLOOKUP(AN247,'Footnotes list'!$D$9:$E$58,2,FALSE) ) )","v":""},null,null,null,null,{"$f":"IF(TRIM(AS247)=\"\", \"\", IF(VLOOKUP(AS247,'Footnotes list'!$D$9:$E$58,2,FALSE)=0,\"\",VLOOKUP(AS247,'Footnotes list'!$D$9:$E$58,2,FALSE) ) )","v":""},null,null,null,null,{"$f":"IF(TRIM(AX247)=\"\", \"\", IF(VLOOKUP(AX247,'Footnotes list'!$D$9:$E$58,2,FALSE)=0,\"\",VLOOKUP(AX247,'Footnotes list'!$D$9:$E$58,2,FALSE) ) )","v":""},null,null,null,null,{"$f":"IF(TRIM(BC247)=\"\", \"\", IF(VLOOKUP(BC247,'Footnotes list'!$D$9:$E$58,2,FALSE)=0,\"\",VLOOKUP(BC247,'Footnotes list'!$D$9:$E$58,2,FALSE) ) )","v":""},null,null,null,null,{"$f":"IF(TRIM(BH247)=\"\", \"\", IF(VLOOKUP(BH247,'Footnotes list'!$D$9:$E$58,2,FALSE)=0,\"\",VLOOKUP(BH247,'Footnotes list'!$D$9:$E$58,2,FALSE) ) )","v":""},null,null,null,null,{"$f":"IF(TRIM(BM247)=\"\", \"\", IF(VLOOKUP(BM247,'Footnotes list'!$D$9:$E$58,2,FALSE)=0,\"\",VLOOKUP(BM247,'Footnotes list'!$D$9:$E$58,2,FALSE) ) )","v":""},null,null,null,null,{"$f":"IF(TRIM(BR247)=\"\", \"\", IF(VLOOKUP(BR247,'Footnotes list'!$D$9:$E$58,2,FALSE)=0,\"\",VLOOKUP(BR247,'Footnotes list'!$D$9:$E$58,2,FALSE) ) )","v":""},null,null,null,null,{"$f":"IF(TRIM(BW247)=\"\", \"\", IF(VLOOKUP(BW247,'Footnotes list'!$D$9:$E$58,2,FALSE)=0,\"\",VLOOKUP(BW247,'Footnotes list'!$D$9:$E$58,2,FALSE) ) )","v":""},null,null,null,null,{"$f":"IF(TRIM(CB247)=\"\", \"\", IF(VLOOKUP(CB247,'Footnotes list'!$D$9:$E$58,2,FALSE)=0,\"\",VLOOKUP(CB247,'Footnotes list'!$D$9:$E$58,2,FALSE) ) )","v":""},null,null,null,null,{"$f":"IF(TRIM(CG247)=\"\", \"\", IF(VLOOKUP(CG247,'Footnotes list'!$D$9:$E$58,2,FALSE)=0,\"\",VLOOKUP(CG247,'Footnotes list'!$D$9:$E$58,2,FALSE) ) )","v":""},null,null,null,null,{"$f":"IF(TRIM(CL247)=\"\", \"\", IF(VLOOKUP(CL247,'Footnotes list'!$D$9:$E$58,2,FALSE)=0,\"\",VLOOKUP(CL247,'Footnotes list'!$D$9:$E$58,2,FALSE) ) )","v":""},null,null,null,null,{"$f":"IF(TRIM(CQ247)=\"\", \"\", IF(VLOOKUP(CQ247,'Footnotes list'!$D$9:$E$58,2,FALSE)=0,\"\",VLOOKUP(CQ247,'Footnotes list'!$D$9:$E$58,2,FALSE) ) )","v":""},null,null,null,null,{"$f":"IF(TRIM(CV247)=\"\", \"\", IF(VLOOKUP(CV247,'Footnotes list'!$D$9:$E$58,2,FALSE)=0,\"\",VLOOKUP(CV247,'Footnotes list'!$D$9:$E$58,2,FALSE) ) )","v":""},null,null,null,null,{"$f":"IF(TRIM(DA247)=\"\", \"\", IF(VLOOKUP(DA247,'Footnotes list'!$D$9:$E$58,2,FALSE)=0,\"\",VLOOKUP(DA247,'Footnotes list'!$D$9:$E$58,2,FALSE) ) )","v":""},null,null,null,null,{"$f":"IF(TRIM(DF247)=\"\", \"\", IF(VLOOKUP(DF247,'Footnotes list'!$D$9:$E$58,2,FALSE)=0,\"\",VLOOKUP(DF247,'Footnotes list'!$D$9:$E$58,2,FALSE) ) )","v":""},null,null,null,null,{"$f":"IF(TRIM(DK247)=\"\", \"\", IF(VLOOKUP(DK247,'Footnotes list'!$D$9:$E$58,2,FALSE)=0,\"\",VLOOKUP(DK247,'Footnotes list'!$D$9:$E$58,2,FALSE) ) )","v":""},null,null,null,null,{"$f":"IF(TRIM(DP247)=\"\", \"\", IF(VLOOKUP(DP247,'Footnotes list'!$D$9:$E$58,2,FALSE)=0,\"\",VLOOKUP(DP247,'Footnotes list'!$D$9:$E$58,2,FALSE) ) )","v":""},null,null,null,null,{"$f":"IF(TRIM(DU247)=\"\", \"\", IF(VLOOKUP(DU247,'Footnotes list'!$D$9:$E$58,2,FALSE)=0,\"\",VLOOKUP(DU247,'Footnotes list'!$D$9:$E$58,2,FALSE) ) )","v":""},null,null,null,null,{"$f":"IF(TRIM(DZ247)=\"\", \"\", IF(VLOOKUP(DZ247,'Footnotes list'!$D$9:$E$58,2,FALSE)=0,\"\",VLOOKUP(DZ247,'Footnotes list'!$D$9:$E$58,2,FALSE) ) )","v":""},null,null,null,null,{"$f":"IF(TRIM(EE247)=\"\", \"\", IF(VLOOKUP(EE247,'Footnotes list'!$D$9:$E$58,2,FALSE)=0,\"\",VLOOKUP(EE247,'Footnotes list'!$D$9:$E$58,2,FALSE) ) )","v":""},null,null,null,null,{"$f":"IF(TRIM(EJ247)=\"\", \"\", IF(VLOOKUP(EJ247,'Footnotes list'!$D$9:$E$58,2,FALSE)=0,\"\",VLOOKUP(EJ247,'Footnotes list'!$D$9:$E$58,2,FALSE) ) )","v":""},null,null,null,null,{"$f":"IF(TRIM(EO247)=\"\", \"\", IF(VLOOKUP(EO247,'Footnotes list'!$D$9:$E$58,2,FALSE)=0,\"\",VLOOKUP(EO247,'Footnotes list'!$D$9:$E$58,2,FALSE) ) )","v":""},null,null,null,null,{"$f":"IF(TRIM(ET247)=\"\", \"\", IF(VLOOKUP(ET247,'Footnotes list'!$D$9:$E$58,2,FALSE)=0,\"\",VLOOKUP(ET247,'Footnotes list'!$D$9:$E$58,2,FALSE) ) )","v":""},null,null,null,null,{"$f":"IF(TRIM(EY247)=\"\", \"\", IF(VLOOKUP(EY247,'Footnotes list'!$D$9:$E$58,2,FALSE)=0,\"\",VLOOKUP(EY247,'Footnotes list'!$D$9:$E$58,2,FALSE) ) )","v":""}]
[null,null,"M73-M75","NMKT","non-market activities",null,null,null,null,null,{"$f":"IF(TRIM(J248)=\"\", \"\", IF(VLOOKUP(J248,'Footnotes list'!$D$9:$E$58,2,FALSE)=0,\"\",VLOOKUP(J248,'Footnotes list'!$D$9:$E$58,2,FALSE) ) )","v":""},null,null,null,null,{"$f":"IF(TRIM(O248)=\"\", \"\", IF(VLOOKUP(O248,'Footnotes list'!$D$9:$E$58,2,FALSE)=0,\"\",VLOOKUP(O248,'Footnotes list'!$D$9:$E$58,2,FALSE) ) )","v":""},null,null,null,null,{"$f":"IF(TRIM(T248)=\"\", \"\", IF(VLOOKUP(T248,'Footnotes list'!$D$9:$E$58,2,FALSE)=0,\"\",VLOOKUP(T248,'Footnotes list'!$D$9:$E$58,2,FALSE) ) )","v":""},null,null,null,null,{"$f":"IF(TRIM(Y248)=\"\", \"\", IF(VLOOKUP(Y248,'Footnotes list'!$D$9:$E$58,2,FALSE)=0,\"\",VLOOKUP(Y248,'Footnotes list'!$D$9:$E$58,2,FALSE) ) )","v":""},null,null,null,null,{"$f":"IF(TRIM(AD248)=\"\", \"\", IF(VLOOKUP(AD248,'Footnotes list'!$D$9:$E$58,2,FALSE)=0,\"\",VLOOKUP(AD248,'Footnotes list'!$D$9:$E$58,2,FALSE) ) )","v":""},null,null,null,null,{"$f":"IF(TRIM(AI248)=\"\", \"\", IF(VLOOKUP(AI248,'Footnotes list'!$D$9:$E$58,2,FALSE)=0,\"\",VLOOKUP(AI248,'Footnotes list'!$D$9:$E$58,2,FALSE) ) )","v":""},null,null,null,null,{"$f":"IF(TRIM(AN248)=\"\", \"\", IF(VLOOKUP(AN248,'Footnotes list'!$D$9:$E$58,2,FALSE)=0,\"\",VLOOKUP(AN248,'Footnotes list'!$D$9:$E$58,2,FALSE) ) )","v":""},null,null,null,null,{"$f":"IF(TRIM(AS248)=\"\", \"\", IF(VLOOKUP(AS248,'Footnotes list'!$D$9:$E$58,2,FALSE)=0,\"\",VLOOKUP(AS248,'Footnotes list'!$D$9:$E$58,2,FALSE) ) )","v":""},null,null,null,null,{"$f":"IF(TRIM(AX248)=\"\", \"\", IF(VLOOKUP(AX248,'Footnotes list'!$D$9:$E$58,2,FALSE)=0,\"\",VLOOKUP(AX248,'Footnotes list'!$D$9:$E$58,2,FALSE) ) )","v":""},null,null,null,null,{"$f":"IF(TRIM(BC248)=\"\", \"\", IF(VLOOKUP(BC248,'Footnotes list'!$D$9:$E$58,2,FALSE)=0,\"\",VLOOKUP(BC248,'Footnotes list'!$D$9:$E$58,2,FALSE) ) )","v":""},null,null,null,null,{"$f":"IF(TRIM(BH248)=\"\", \"\", IF(VLOOKUP(BH248,'Footnotes list'!$D$9:$E$58,2,FALSE)=0,\"\",VLOOKUP(BH248,'Footnotes list'!$D$9:$E$58,2,FALSE) ) )","v":""},null,null,null,null,{"$f":"IF(TRIM(BM248)=\"\", \"\", IF(VLOOKUP(BM248,'Footnotes list'!$D$9:$E$58,2,FALSE)=0,\"\",VLOOKUP(BM248,'Footnotes list'!$D$9:$E$58,2,FALSE) ) )","v":""},null,null,null,null,{"$f":"IF(TRIM(BR248)=\"\", \"\", IF(VLOOKUP(BR248,'Footnotes list'!$D$9:$E$58,2,FALSE)=0,\"\",VLOOKUP(BR248,'Footnotes list'!$D$9:$E$58,2,FALSE) ) )","v":""},null,null,null,null,{"$f":"IF(TRIM(BW248)=\"\", \"\", IF(VLOOKUP(BW248,'Footnotes list'!$D$9:$E$58,2,FALSE)=0,\"\",VLOOKUP(BW248,'Footnotes list'!$D$9:$E$58,2,FALSE) ) )","v":""},null,null,null,null,{"$f":"IF(TRIM(CB248)=\"\", \"\", IF(VLOOKUP(CB248,'Footnotes list'!$D$9:$E$58,2,FALSE)=0,\"\",VLOOKUP(CB248,'Footnotes list'!$D$9:$E$58,2,FALSE) ) )","v":""},null,null,null,null,{"$f":"IF(TRIM(CG248)=\"\", \"\", IF(VLOOKUP(CG248,'Footnotes list'!$D$9:$E$58,2,FALSE)=0,\"\",VLOOKUP(CG248,'Footnotes list'!$D$9:$E$58,2,FALSE) ) )","v":""},null,null,null,null,{"$f":"IF(TRIM(CL248)=\"\", \"\", IF(VLOOKUP(CL248,'Footnotes list'!$D$9:$E$58,2,FALSE)=0,\"\",VLOOKUP(CL248,'Footnotes list'!$D$9:$E$58,2,FALSE) ) )","v":""},null,null,null,null,{"$f":"IF(TRIM(CQ248)=\"\", \"\", IF(VLOOKUP(CQ248,'Footnotes list'!$D$9:$E$58,2,FALSE)=0,\"\",VLOOKUP(CQ248,'Footnotes list'!$D$9:$E$58,2,FALSE) ) )","v":""},null,null,null,null,{"$f":"IF(TRIM(CV248)=\"\", \"\", IF(VLOOKUP(CV248,'Footnotes list'!$D$9:$E$58,2,FALSE)=0,\"\",VLOOKUP(CV248,'Footnotes list'!$D$9:$E$58,2,FALSE) ) )","v":""},null,null,null,null,{"$f":"IF(TRIM(DA248)=\"\", \"\", IF(VLOOKUP(DA248,'Footnotes list'!$D$9:$E$58,2,FALSE)=0,\"\",VLOOKUP(DA248,'Footnotes list'!$D$9:$E$58,2,FALSE) ) )","v":""},null,null,null,null,{"$f":"IF(TRIM(DF248)=\"\", \"\", IF(VLOOKUP(DF248,'Footnotes list'!$D$9:$E$58,2,FALSE)=0,\"\",VLOOKUP(DF248,'Footnotes list'!$D$9:$E$58,2,FALSE) ) )","v":""},null,null,null,null,{"$f":"IF(TRIM(DK248)=\"\", \"\", IF(VLOOKUP(DK248,'Footnotes list'!$D$9:$E$58,2,FALSE)=0,\"\",VLOOKUP(DK248,'Footnotes list'!$D$9:$E$58,2,FALSE) ) )","v":""},null,null,null,null,{"$f":"IF(TRIM(DP248)=\"\", \"\", IF(VLOOKUP(DP248,'Footnotes list'!$D$9:$E$58,2,FALSE)=0,\"\",VLOOKUP(DP248,'Footnotes list'!$D$9:$E$58,2,FALSE) ) )","v":""},null,null,null,null,{"$f":"IF(TRIM(DU248)=\"\", \"\", IF(VLOOKUP(DU248,'Footnotes list'!$D$9:$E$58,2,FALSE)=0,\"\",VLOOKUP(DU248,'Footnotes list'!$D$9:$E$58,2,FALSE) ) )","v":""},null,null,null,null,{"$f":"IF(TRIM(DZ248)=\"\", \"\", IF(VLOOKUP(DZ248,'Footnotes list'!$D$9:$E$58,2,FALSE)=0,\"\",VLOOKUP(DZ248,'Footnotes list'!$D$9:$E$58,2,FALSE) ) )","v":""},null,null,null,null,{"$f":"IF(TRIM(EE248)=\"\", \"\", IF(VLOOKUP(EE248,'Footnotes list'!$D$9:$E$58,2,FALSE)=0,\"\",VLOOKUP(EE248,'Footnotes list'!$D$9:$E$58,2,FALSE) ) )","v":""},null,null,null,null,{"$f":"IF(TRIM(EJ248)=\"\", \"\", IF(VLOOKUP(EJ248,'Footnotes list'!$D$9:$E$58,2,FALSE)=0,\"\",VLOOKUP(EJ248,'Footnotes list'!$D$9:$E$58,2,FALSE) ) )","v":""},null,null,null,null,{"$f":"IF(TRIM(EO248)=\"\", \"\", IF(VLOOKUP(EO248,'Footnotes list'!$D$9:$E$58,2,FALSE)=0,\"\",VLOOKUP(EO248,'Footnotes list'!$D$9:$E$58,2,FALSE) ) )","v":""},null,null,null,null,{"$f":"IF(TRIM(ET248)=\"\", \"\", IF(VLOOKUP(ET248,'Footnotes list'!$D$9:$E$58,2,FALSE)=0,\"\",VLOOKUP(ET248,'Footnotes list'!$D$9:$E$58,2,FALSE) ) )","v":""},null,null,null,null,{"$f":"IF(TRIM(EY248)=\"\", \"\", IF(VLOOKUP(EY248,'Footnotes list'!$D$9:$E$58,2,FALSE)=0,\"\",VLOOKUP(EY248,'Footnotes list'!$D$9:$E$58,2,FALSE) ) )","v":""}]
[null,null,"M73-M75","OWN_USE","activities for own final use",null,null,null,null,null,{"$f":"IF(TRIM(J249)=\"\", \"\", IF(VLOOKUP(J249,'Footnotes list'!$D$9:$E$58,2,FALSE)=0,\"\",VLOOKUP(J249,'Footnotes list'!$D$9:$E$58,2,FALSE) ) )","v":""},null,null,null,null,{"$f":"IF(TRIM(O249)=\"\", \"\", IF(VLOOKUP(O249,'Footnotes list'!$D$9:$E$58,2,FALSE)=0,\"\",VLOOKUP(O249,'Footnotes list'!$D$9:$E$58,2,FALSE) ) )","v":""},null,null,null,null,{"$f":"IF(TRIM(T249)=\"\", \"\", IF(VLOOKUP(T249,'Footnotes list'!$D$9:$E$58,2,FALSE)=0,\"\",VLOOKUP(T249,'Footnotes list'!$D$9:$E$58,2,FALSE) ) )","v":""},null,null,null,null,{"$f":"IF(TRIM(Y249)=\"\", \"\", IF(VLOOKUP(Y249,'Footnotes list'!$D$9:$E$58,2,FALSE)=0,\"\",VLOOKUP(Y249,'Footnotes list'!$D$9:$E$58,2,FALSE) ) )","v":""},null,null,null,null,{"$f":"IF(TRIM(AD249)=\"\", \"\", IF(VLOOKUP(AD249,'Footnotes list'!$D$9:$E$58,2,FALSE)=0,\"\",VLOOKUP(AD249,'Footnotes list'!$D$9:$E$58,2,FALSE) ) )","v":""},null,null,null,null,{"$f":"IF(TRIM(AI249)=\"\", \"\", IF(VLOOKUP(AI249,'Footnotes list'!$D$9:$E$58,2,FALSE)=0,\"\",VLOOKUP(AI249,'Footnotes list'!$D$9:$E$58,2,FALSE) ) )","v":""},null,null,null,null,{"$f":"IF(TRIM(AN249)=\"\", \"\", IF(VLOOKUP(AN249,'Footnotes list'!$D$9:$E$58,2,FALSE)=0,\"\",VLOOKUP(AN249,'Footnotes list'!$D$9:$E$58,2,FALSE) ) )","v":""},null,null,null,null,{"$f":"IF(TRIM(AS249)=\"\", \"\", IF(VLOOKUP(AS249,'Footnotes list'!$D$9:$E$58,2,FALSE)=0,\"\",VLOOKUP(AS249,'Footnotes list'!$D$9:$E$58,2,FALSE) ) )","v":""},null,null,null,null,{"$f":"IF(TRIM(AX249)=\"\", \"\", IF(VLOOKUP(AX249,'Footnotes list'!$D$9:$E$58,2,FALSE)=0,\"\",VLOOKUP(AX249,'Footnotes list'!$D$9:$E$58,2,FALSE) ) )","v":""},null,null,null,null,{"$f":"IF(TRIM(BC249)=\"\", \"\", IF(VLOOKUP(BC249,'Footnotes list'!$D$9:$E$58,2,FALSE)=0,\"\",VLOOKUP(BC249,'Footnotes list'!$D$9:$E$58,2,FALSE) ) )","v":""},null,null,null,null,{"$f":"IF(TRIM(BH249)=\"\", \"\", IF(VLOOKUP(BH249,'Footnotes list'!$D$9:$E$58,2,FALSE)=0,\"\",VLOOKUP(BH249,'Footnotes list'!$D$9:$E$58,2,FALSE) ) )","v":""},null,null,null,null,{"$f":"IF(TRIM(BM249)=\"\", \"\", IF(VLOOKUP(BM249,'Footnotes list'!$D$9:$E$58,2,FALSE)=0,\"\",VLOOKUP(BM249,'Footnotes list'!$D$9:$E$58,2,FALSE) ) )","v":""},null,null,null,null,{"$f":"IF(TRIM(BR249)=\"\", \"\", IF(VLOOKUP(BR249,'Footnotes list'!$D$9:$E$58,2,FALSE)=0,\"\",VLOOKUP(BR249,'Footnotes list'!$D$9:$E$58,2,FALSE) ) )","v":""},null,null,null,null,{"$f":"IF(TRIM(BW249)=\"\", \"\", IF(VLOOKUP(BW249,'Footnotes list'!$D$9:$E$58,2,FALSE)=0,\"\",VLOOKUP(BW249,'Footnotes list'!$D$9:$E$58,2,FALSE) ) )","v":""},null,null,null,null,{"$f":"IF(TRIM(CB249)=\"\", \"\", IF(VLOOKUP(CB249,'Footnotes list'!$D$9:$E$58,2,FALSE)=0,\"\",VLOOKUP(CB249,'Footnotes list'!$D$9:$E$58,2,FALSE) ) )","v":""},null,null,null,null,{"$f":"IF(TRIM(CG249)=\"\", \"\", IF(VLOOKUP(CG249,'Footnotes list'!$D$9:$E$58,2,FALSE)=0,\"\",VLOOKUP(CG249,'Footnotes list'!$D$9:$E$58,2,FALSE) ) )","v":""},null,null,null,null,{"$f":"IF(TRIM(CL249)=\"\", \"\", IF(VLOOKUP(CL249,'Footnotes list'!$D$9:$E$58,2,FALSE)=0,\"\",VLOOKUP(CL249,'Footnotes list'!$D$9:$E$58,2,FALSE) ) )","v":""},null,null,null,null,{"$f":"IF(TRIM(CQ249)=\"\", \"\", IF(VLOOKUP(CQ249,'Footnotes list'!$D$9:$E$58,2,FALSE)=0,\"\",VLOOKUP(CQ249,'Footnotes list'!$D$9:$E$58,2,FALSE) ) )","v":""},null,null,null,null,{"$f":"IF(TRIM(CV249)=\"\", \"\", IF(VLOOKUP(CV249,'Footnotes list'!$D$9:$E$58,2,FALSE)=0,\"\",VLOOKUP(CV249,'Footnotes list'!$D$9:$E$58,2,FALSE) ) )","v":""},null,null,null,null,{"$f":"IF(TRIM(DA249)=\"\", \"\", IF(VLOOKUP(DA249,'Footnotes list'!$D$9:$E$58,2,FALSE)=0,\"\",VLOOKUP(DA249,'Footnotes list'!$D$9:$E$58,2,FALSE) ) )","v":""},null,null,null,null,{"$f":"IF(TRIM(DF249)=\"\", \"\", IF(VLOOKUP(DF249,'Footnotes list'!$D$9:$E$58,2,FALSE)=0,\"\",VLOOKUP(DF249,'Footnotes list'!$D$9:$E$58,2,FALSE) ) )","v":""},null,null,null,null,{"$f":"IF(TRIM(DK249)=\"\", \"\", IF(VLOOKUP(DK249,'Footnotes list'!$D$9:$E$58,2,FALSE)=0,\"\",VLOOKUP(DK249,'Footnotes list'!$D$9:$E$58,2,FALSE) ) )","v":""},null,null,null,null,{"$f":"IF(TRIM(DP249)=\"\", \"\", IF(VLOOKUP(DP249,'Footnotes list'!$D$9:$E$58,2,FALSE)=0,\"\",VLOOKUP(DP249,'Footnotes list'!$D$9:$E$58,2,FALSE) ) )","v":""},null,null,null,null,{"$f":"IF(TRIM(DU249)=\"\", \"\", IF(VLOOKUP(DU249,'Footnotes list'!$D$9:$E$58,2,FALSE)=0,\"\",VLOOKUP(DU249,'Footnotes list'!$D$9:$E$58,2,FALSE) ) )","v":""},null,null,null,null,{"$f":"IF(TRIM(DZ249)=\"\", \"\", IF(VLOOKUP(DZ249,'Footnotes list'!$D$9:$E$58,2,FALSE)=0,\"\",VLOOKUP(DZ249,'Footnotes list'!$D$9:$E$58,2,FALSE) ) )","v":""},null,null,null,null,{"$f":"IF(TRIM(EE249)=\"\", \"\", IF(VLOOKUP(EE249,'Footnotes list'!$D$9:$E$58,2,FALSE)=0,\"\",VLOOKUP(EE249,'Footnotes list'!$D$9:$E$58,2,FALSE) ) )","v":""},null,null,null,null,{"$f":"IF(TRIM(EJ249)=\"\", \"\", IF(VLOOKUP(EJ249,'Footnotes list'!$D$9:$E$58,2,FALSE)=0,\"\",VLOOKUP(EJ249,'Footnotes list'!$D$9:$E$58,2,FALSE) ) )","v":""},null,null,null,null,{"$f":"IF(TRIM(EO249)=\"\", \"\", IF(VLOOKUP(EO249,'Footnotes list'!$D$9:$E$58,2,FALSE)=0,\"\",VLOOKUP(EO249,'Footnotes list'!$D$9:$E$58,2,FALSE) ) )","v":""},null,null,null,null,{"$f":"IF(TRIM(ET249)=\"\", \"\", IF(VLOOKUP(ET249,'Footnotes list'!$D$9:$E$58,2,FALSE)=0,\"\",VLOOKUP(ET249,'Footnotes list'!$D$9:$E$58,2,FALSE) ) )","v":""},null,null,null,null,{"$f":"IF(TRIM(EY249)=\"\", \"\", IF(VLOOKUP(EY249,'Footnotes list'!$D$9:$E$58,2,FALSE)=0,\"\",VLOOKUP(EY249,'Footnotes list'!$D$9:$E$58,2,FALSE) ) )","v":""}]
[null,null,"M73-M75","MKT","market activities, including:",null,null,null,null,null,{"$f":"IF(TRIM(J250)=\"\", \"\", IF(VLOOKUP(J250,'Footnotes list'!$D$9:$E$58,2,FALSE)=0,\"\",VLOOKUP(J250,'Footnotes list'!$D$9:$E$58,2,FALSE) ) )","v":""},null,null,null,null,{"$f":"IF(TRIM(O250)=\"\", \"\", IF(VLOOKUP(O250,'Footnotes list'!$D$9:$E$58,2,FALSE)=0,\"\",VLOOKUP(O250,'Footnotes list'!$D$9:$E$58,2,FALSE) ) )","v":""},null,null,null,null,{"$f":"IF(TRIM(T250)=\"\", \"\", IF(VLOOKUP(T250,'Footnotes list'!$D$9:$E$58,2,FALSE)=0,\"\",VLOOKUP(T250,'Footnotes list'!$D$9:$E$58,2,FALSE) ) )","v":""},null,null,null,null,{"$f":"IF(TRIM(Y250)=\"\", \"\", IF(VLOOKUP(Y250,'Footnotes list'!$D$9:$E$58,2,FALSE)=0,\"\",VLOOKUP(Y250,'Footnotes list'!$D$9:$E$58,2,FALSE) ) )","v":""},null,null,null,null,{"$f":"IF(TRIM(AD250)=\"\", \"\", IF(VLOOKUP(AD250,'Footnotes list'!$D$9:$E$58,2,FALSE)=0,\"\",VLOOKUP(AD250,'Footnotes list'!$D$9:$E$58,2,FALSE) ) )","v":""},null,null,null,null,{"$f":"IF(TRIM(AI250)=\"\", \"\", IF(VLOOKUP(AI250,'Footnotes list'!$D$9:$E$58,2,FALSE)=0,\"\",VLOOKUP(AI250,'Footnotes list'!$D$9:$E$58,2,FALSE) ) )","v":""},null,null,null,null,{"$f":"IF(TRIM(AN250)=\"\", \"\", IF(VLOOKUP(AN250,'Footnotes list'!$D$9:$E$58,2,FALSE)=0,\"\",VLOOKUP(AN250,'Footnotes list'!$D$9:$E$58,2,FALSE) ) )","v":""},null,null,null,null,{"$f":"IF(TRIM(AS250)=\"\", \"\", IF(VLOOKUP(AS250,'Footnotes list'!$D$9:$E$58,2,FALSE)=0,\"\",VLOOKUP(AS250,'Footnotes list'!$D$9:$E$58,2,FALSE) ) )","v":""},null,null,null,null,{"$f":"IF(TRIM(AX250)=\"\", \"\", IF(VLOOKUP(AX250,'Footnotes list'!$D$9:$E$58,2,FALSE)=0,\"\",VLOOKUP(AX250,'Footnotes list'!$D$9:$E$58,2,FALSE) ) )","v":""},null,null,null,null,{"$f":"IF(TRIM(BC250)=\"\", \"\", IF(VLOOKUP(BC250,'Footnotes list'!$D$9:$E$58,2,FALSE)=0,\"\",VLOOKUP(BC250,'Footnotes list'!$D$9:$E$58,2,FALSE) ) )","v":""},null,null,null,null,{"$f":"IF(TRIM(BH250)=\"\", \"\", IF(VLOOKUP(BH250,'Footnotes list'!$D$9:$E$58,2,FALSE)=0,\"\",VLOOKUP(BH250,'Footnotes list'!$D$9:$E$58,2,FALSE) ) )","v":""},null,null,null,null,{"$f":"IF(TRIM(BM250)=\"\", \"\", IF(VLOOKUP(BM250,'Footnotes list'!$D$9:$E$58,2,FALSE)=0,\"\",VLOOKUP(BM250,'Footnotes list'!$D$9:$E$58,2,FALSE) ) )","v":""},null,null,null,null,{"$f":"IF(TRIM(BR250)=\"\", \"\", IF(VLOOKUP(BR250,'Footnotes list'!$D$9:$E$58,2,FALSE)=0,\"\",VLOOKUP(BR250,'Footnotes list'!$D$9:$E$58,2,FALSE) ) )","v":""},null,null,null,null,{"$f":"IF(TRIM(BW250)=\"\", \"\", IF(VLOOKUP(BW250,'Footnotes list'!$D$9:$E$58,2,FALSE)=0,\"\",VLOOKUP(BW250,'Footnotes list'!$D$9:$E$58,2,FALSE) ) )","v":""},null,null,null,null,{"$f":"IF(TRIM(CB250)=\"\", \"\", IF(VLOOKUP(CB250,'Footnotes list'!$D$9:$E$58,2,FALSE)=0,\"\",VLOOKUP(CB250,'Footnotes list'!$D$9:$E$58,2,FALSE) ) )","v":""},null,null,null,null,{"$f":"IF(TRIM(CG250)=\"\", \"\", IF(VLOOKUP(CG250,'Footnotes list'!$D$9:$E$58,2,FALSE)=0,\"\",VLOOKUP(CG250,'Footnotes list'!$D$9:$E$58,2,FALSE) ) )","v":""},null,null,null,null,{"$f":"IF(TRIM(CL250)=\"\", \"\", IF(VLOOKUP(CL250,'Footnotes list'!$D$9:$E$58,2,FALSE)=0,\"\",VLOOKUP(CL250,'Footnotes list'!$D$9:$E$58,2,FALSE) ) )","v":""},null,null,null,null,{"$f":"IF(TRIM(CQ250)=\"\", \"\", IF(VLOOKUP(CQ250,'Footnotes list'!$D$9:$E$58,2,FALSE)=0,\"\",VLOOKUP(CQ250,'Footnotes list'!$D$9:$E$58,2,FALSE) ) )","v":""},null,null,null,null,{"$f":"IF(TRIM(CV250)=\"\", \"\", IF(VLOOKUP(CV250,'Footnotes list'!$D$9:$E$58,2,FALSE)=0,\"\",VLOOKUP(CV250,'Footnotes list'!$D$9:$E$58,2,FALSE) ) )","v":""},null,null,null,null,{"$f":"IF(TRIM(DA250)=\"\", \"\", IF(VLOOKUP(DA250,'Footnotes list'!$D$9:$E$58,2,FALSE)=0,\"\",VLOOKUP(DA250,'Footnotes list'!$D$9:$E$58,2,FALSE) ) )","v":""},null,null,null,null,{"$f":"IF(TRIM(DF250)=\"\", \"\", IF(VLOOKUP(DF250,'Footnotes list'!$D$9:$E$58,2,FALSE)=0,\"\",VLOOKUP(DF250,'Footnotes list'!$D$9:$E$58,2,FALSE) ) )","v":""},null,null,null,null,{"$f":"IF(TRIM(DK250)=\"\", \"\", IF(VLOOKUP(DK250,'Footnotes list'!$D$9:$E$58,2,FALSE)=0,\"\",VLOOKUP(DK250,'Footnotes list'!$D$9:$E$58,2,FALSE) ) )","v":""},null,null,null,null,{"$f":"IF(TRIM(DP250)=\"\", \"\", IF(VLOOKUP(DP250,'Footnotes list'!$D$9:$E$58,2,FALSE)=0,\"\",VLOOKUP(DP250,'Footnotes list'!$D$9:$E$58,2,FALSE) ) )","v":""},null,null,null,null,{"$f":"IF(TRIM(DU250)=\"\", \"\", IF(VLOOKUP(DU250,'Footnotes list'!$D$9:$E$58,2,FALSE)=0,\"\",VLOOKUP(DU250,'Footnotes list'!$D$9:$E$58,2,FALSE) ) )","v":""},null,null,null,null,{"$f":"IF(TRIM(DZ250)=\"\", \"\", IF(VLOOKUP(DZ250,'Footnotes list'!$D$9:$E$58,2,FALSE)=0,\"\",VLOOKUP(DZ250,'Footnotes list'!$D$9:$E$58,2,FALSE) ) )","v":""},null,null,null,null,{"$f":"IF(TRIM(EE250)=\"\", \"\", IF(VLOOKUP(EE250,'Footnotes list'!$D$9:$E$58,2,FALSE)=0,\"\",VLOOKUP(EE250,'Footnotes list'!$D$9:$E$58,2,FALSE) ) )","v":""},null,null,null,null,{"$f":"IF(TRIM(EJ250)=\"\", \"\", IF(VLOOKUP(EJ250,'Footnotes list'!$D$9:$E$58,2,FALSE)=0,\"\",VLOOKUP(EJ250,'Footnotes list'!$D$9:$E$58,2,FALSE) ) )","v":""},null,null,null,null,{"$f":"IF(TRIM(EO250)=\"\", \"\", IF(VLOOKUP(EO250,'Footnotes list'!$D$9:$E$58,2,FALSE)=0,\"\",VLOOKUP(EO250,'Footnotes list'!$D$9:$E$58,2,FALSE) ) )","v":""},null,null,null,null,{"$f":"IF(TRIM(ET250)=\"\", \"\", IF(VLOOKUP(ET250,'Footnotes list'!$D$9:$E$58,2,FALSE)=0,\"\",VLOOKUP(ET250,'Footnotes list'!$D$9:$E$58,2,FALSE) ) )","v":""},null,null,null,null,{"$f":"IF(TRIM(EY250)=\"\", \"\", IF(VLOOKUP(EY250,'Footnotes list'!$D$9:$E$58,2,FALSE)=0,\"\",VLOOKUP(EY250,'Footnotes list'!$D$9:$E$58,2,FALSE) ) )","v":""}]
[null,null,"M73-M75","ES_CS","environmental specific services",null,null,null,null,null,{"$f":"IF(TRIM(J251)=\"\", \"\", IF(VLOOKUP(J251,'Footnotes list'!$D$9:$E$58,2,FALSE)=0,\"\",VLOOKUP(J251,'Footnotes list'!$D$9:$E$58,2,FALSE) ) )","v":""},null,null,null,null,{"$f":"IF(TRIM(O251)=\"\", \"\", IF(VLOOKUP(O251,'Footnotes list'!$D$9:$E$58,2,FALSE)=0,\"\",VLOOKUP(O251,'Footnotes list'!$D$9:$E$58,2,FALSE) ) )","v":""},null,null,null,null,{"$f":"IF(TRIM(T251)=\"\", \"\", IF(VLOOKUP(T251,'Footnotes list'!$D$9:$E$58,2,FALSE)=0,\"\",VLOOKUP(T251,'Footnotes list'!$D$9:$E$58,2,FALSE) ) )","v":""},null,null,null,null,{"$f":"IF(TRIM(Y251)=\"\", \"\", IF(VLOOKUP(Y251,'Footnotes list'!$D$9:$E$58,2,FALSE)=0,\"\",VLOOKUP(Y251,'Footnotes list'!$D$9:$E$58,2,FALSE) ) )","v":""},null,null,null,null,{"$f":"IF(TRIM(AD251)=\"\", \"\", IF(VLOOKUP(AD251,'Footnotes list'!$D$9:$E$58,2,FALSE)=0,\"\",VLOOKUP(AD251,'Footnotes list'!$D$9:$E$58,2,FALSE) ) )","v":""},null,null,null,null,{"$f":"IF(TRIM(AI251)=\"\", \"\", IF(VLOOKUP(AI251,'Footnotes list'!$D$9:$E$58,2,FALSE)=0,\"\",VLOOKUP(AI251,'Footnotes list'!$D$9:$E$58,2,FALSE) ) )","v":""},null,null,null,null,{"$f":"IF(TRIM(AN251)=\"\", \"\", IF(VLOOKUP(AN251,'Footnotes list'!$D$9:$E$58,2,FALSE)=0,\"\",VLOOKUP(AN251,'Footnotes list'!$D$9:$E$58,2,FALSE) ) )","v":""},null,null,null,null,{"$f":"IF(TRIM(AS251)=\"\", \"\", IF(VLOOKUP(AS251,'Footnotes list'!$D$9:$E$58,2,FALSE)=0,\"\",VLOOKUP(AS251,'Footnotes list'!$D$9:$E$58,2,FALSE) ) )","v":""},null,null,null,null,{"$f":"IF(TRIM(AX251)=\"\", \"\", IF(VLOOKUP(AX251,'Footnotes list'!$D$9:$E$58,2,FALSE)=0,\"\",VLOOKUP(AX251,'Footnotes list'!$D$9:$E$58,2,FALSE) ) )","v":""},null,null,null,null,{"$f":"IF(TRIM(BC251)=\"\", \"\", IF(VLOOKUP(BC251,'Footnotes list'!$D$9:$E$58,2,FALSE)=0,\"\",VLOOKUP(BC251,'Footnotes list'!$D$9:$E$58,2,FALSE) ) )","v":""},null,null,null,null,{"$f":"IF(TRIM(BH251)=\"\", \"\", IF(VLOOKUP(BH251,'Footnotes list'!$D$9:$E$58,2,FALSE)=0,\"\",VLOOKUP(BH251,'Footnotes list'!$D$9:$E$58,2,FALSE) ) )","v":""},null,null,null,null,{"$f":"IF(TRIM(BM251)=\"\", \"\", IF(VLOOKUP(BM251,'Footnotes list'!$D$9:$E$58,2,FALSE)=0,\"\",VLOOKUP(BM251,'Footnotes list'!$D$9:$E$58,2,FALSE) ) )","v":""},null,null,null,null,{"$f":"IF(TRIM(BR251)=\"\", \"\", IF(VLOOKUP(BR251,'Footnotes list'!$D$9:$E$58,2,FALSE)=0,\"\",VLOOKUP(BR251,'Footnotes list'!$D$9:$E$58,2,FALSE) ) )","v":""},null,null,null,null,{"$f":"IF(TRIM(BW251)=\"\", \"\", IF(VLOOKUP(BW251,'Footnotes list'!$D$9:$E$58,2,FALSE)=0,\"\",VLOOKUP(BW251,'Footnotes list'!$D$9:$E$58,2,FALSE) ) )","v":""},null,null,null,null,{"$f":"IF(TRIM(CB251)=\"\", \"\", IF(VLOOKUP(CB251,'Footnotes list'!$D$9:$E$58,2,FALSE)=0,\"\",VLOOKUP(CB251,'Footnotes list'!$D$9:$E$58,2,FALSE) ) )","v":""},null,null,null,null,{"$f":"IF(TRIM(CG251)=\"\", \"\", IF(VLOOKUP(CG251,'Footnotes list'!$D$9:$E$58,2,FALSE)=0,\"\",VLOOKUP(CG251,'Footnotes list'!$D$9:$E$58,2,FALSE) ) )","v":""},null,null,null,null,{"$f":"IF(TRIM(CL251)=\"\", \"\", IF(VLOOKUP(CL251,'Footnotes list'!$D$9:$E$58,2,FALSE)=0,\"\",VLOOKUP(CL251,'Footnotes list'!$D$9:$E$58,2,FALSE) ) )","v":""},null,null,null,null,{"$f":"IF(TRIM(CQ251)=\"\", \"\", IF(VLOOKUP(CQ251,'Footnotes list'!$D$9:$E$58,2,FALSE)=0,\"\",VLOOKUP(CQ251,'Footnotes list'!$D$9:$E$58,2,FALSE) ) )","v":""},null,null,null,null,{"$f":"IF(TRIM(CV251)=\"\", \"\", IF(VLOOKUP(CV251,'Footnotes list'!$D$9:$E$58,2,FALSE)=0,\"\",VLOOKUP(CV251,'Footnotes list'!$D$9:$E$58,2,FALSE) ) )","v":""},null,null,null,null,{"$f":"IF(TRIM(DA251)=\"\", \"\", IF(VLOOKUP(DA251,'Footnotes list'!$D$9:$E$58,2,FALSE)=0,\"\",VLOOKUP(DA251,'Footnotes list'!$D$9:$E$58,2,FALSE) ) )","v":""},null,null,null,null,{"$f":"IF(TRIM(DF251)=\"\", \"\", IF(VLOOKUP(DF251,'Footnotes list'!$D$9:$E$58,2,FALSE)=0,\"\",VLOOKUP(DF251,'Footnotes list'!$D$9:$E$58,2,FALSE) ) )","v":""},null,null,null,null,{"$f":"IF(TRIM(DK251)=\"\", \"\", IF(VLOOKUP(DK251,'Footnotes list'!$D$9:$E$58,2,FALSE)=0,\"\",VLOOKUP(DK251,'Footnotes list'!$D$9:$E$58,2,FALSE) ) )","v":""},null,null,null,null,{"$f":"IF(TRIM(DP251)=\"\", \"\", IF(VLOOKUP(DP251,'Footnotes list'!$D$9:$E$58,2,FALSE)=0,\"\",VLOOKUP(DP251,'Footnotes list'!$D$9:$E$58,2,FALSE) ) )","v":""},null,null,null,null,{"$f":"IF(TRIM(DU251)=\"\", \"\", IF(VLOOKUP(DU251,'Footnotes list'!$D$9:$E$58,2,FALSE)=0,\"\",VLOOKUP(DU251,'Footnotes list'!$D$9:$E$58,2,FALSE) ) )","v":""},null,null,null,null,{"$f":"IF(TRIM(DZ251)=\"\", \"\", IF(VLOOKUP(DZ251,'Footnotes list'!$D$9:$E$58,2,FALSE)=0,\"\",VLOOKUP(DZ251,'Footnotes list'!$D$9:$E$58,2,FALSE) ) )","v":""},null,null,null,null,{"$f":"IF(TRIM(EE251)=\"\", \"\", IF(VLOOKUP(EE251,'Footnotes list'!$D$9:$E$58,2,FALSE)=0,\"\",VLOOKUP(EE251,'Footnotes list'!$D$9:$E$58,2,FALSE) ) )","v":""},null,null,null,null,{"$f":"IF(TRIM(EJ251)=\"\", \"\", IF(VLOOKUP(EJ251,'Footnotes list'!$D$9:$E$58,2,FALSE)=0,\"\",VLOOKUP(EJ251,'Footnotes list'!$D$9:$E$58,2,FALSE) ) )","v":""},null,null,null,null,{"$f":"IF(TRIM(EO251)=\"\", \"\", IF(VLOOKUP(EO251,'Footnotes list'!$D$9:$E$58,2,FALSE)=0,\"\",VLOOKUP(EO251,'Footnotes list'!$D$9:$E$58,2,FALSE) ) )","v":""},null,null,null,null,{"$f":"IF(TRIM(ET251)=\"\", \"\", IF(VLOOKUP(ET251,'Footnotes list'!$D$9:$E$58,2,FALSE)=0,\"\",VLOOKUP(ET251,'Footnotes list'!$D$9:$E$58,2,FALSE) ) )","v":""},null,null,null,null,{"$f":"IF(TRIM(EY251)=\"\", \"\", IF(VLOOKUP(EY251,'Footnotes list'!$D$9:$E$58,2,FALSE)=0,\"\",VLOOKUP(EY251,'Footnotes list'!$D$9:$E$58,2,FALSE) ) )","v":""}]
[null,null,"M73-M75","C_REP","cleaner and resource efficient products",null,null,null,null,null,{"$f":"IF(TRIM(J252)=\"\", \"\", IF(VLOOKUP(J252,'Footnotes list'!$D$9:$E$58,2,FALSE)=0,\"\",VLOOKUP(J252,'Footnotes list'!$D$9:$E$58,2,FALSE) ) )","v":""},null,null,null,null,{"$f":"IF(TRIM(O252)=\"\", \"\", IF(VLOOKUP(O252,'Footnotes list'!$D$9:$E$58,2,FALSE)=0,\"\",VLOOKUP(O252,'Footnotes list'!$D$9:$E$58,2,FALSE) ) )","v":""},null,null,null,null,{"$f":"IF(TRIM(T252)=\"\", \"\", IF(VLOOKUP(T252,'Footnotes list'!$D$9:$E$58,2,FALSE)=0,\"\",VLOOKUP(T252,'Footnotes list'!$D$9:$E$58,2,FALSE) ) )","v":""},null,null,null,null,{"$f":"IF(TRIM(Y252)=\"\", \"\", IF(VLOOKUP(Y252,'Footnotes list'!$D$9:$E$58,2,FALSE)=0,\"\",VLOOKUP(Y252,'Footnotes list'!$D$9:$E$58,2,FALSE) ) )","v":""},null,null,null,null,{"$f":"IF(TRIM(AD252)=\"\", \"\", IF(VLOOKUP(AD252,'Footnotes list'!$D$9:$E$58,2,FALSE)=0,\"\",VLOOKUP(AD252,'Footnotes list'!$D$9:$E$58,2,FALSE) ) )","v":""},null,null,null,null,{"$f":"IF(TRIM(AI252)=\"\", \"\", IF(VLOOKUP(AI252,'Footnotes list'!$D$9:$E$58,2,FALSE)=0,\"\",VLOOKUP(AI252,'Footnotes list'!$D$9:$E$58,2,FALSE) ) )","v":""},null,null,null,null,{"$f":"IF(TRIM(AN252)=\"\", \"\", IF(VLOOKUP(AN252,'Footnotes list'!$D$9:$E$58,2,FALSE)=0,\"\",VLOOKUP(AN252,'Footnotes list'!$D$9:$E$58,2,FALSE) ) )","v":""},null,null,null,null,{"$f":"IF(TRIM(AS252)=\"\", \"\", IF(VLOOKUP(AS252,'Footnotes list'!$D$9:$E$58,2,FALSE)=0,\"\",VLOOKUP(AS252,'Footnotes list'!$D$9:$E$58,2,FALSE) ) )","v":""},null,null,null,null,{"$f":"IF(TRIM(AX252)=\"\", \"\", IF(VLOOKUP(AX252,'Footnotes list'!$D$9:$E$58,2,FALSE)=0,\"\",VLOOKUP(AX252,'Footnotes list'!$D$9:$E$58,2,FALSE) ) )","v":""},null,null,null,null,{"$f":"IF(TRIM(BC252)=\"\", \"\", IF(VLOOKUP(BC252,'Footnotes list'!$D$9:$E$58,2,FALSE)=0,\"\",VLOOKUP(BC252,'Footnotes list'!$D$9:$E$58,2,FALSE) ) )","v":""},null,null,null,null,{"$f":"IF(TRIM(BH252)=\"\", \"\", IF(VLOOKUP(BH252,'Footnotes list'!$D$9:$E$58,2,FALSE)=0,\"\",VLOOKUP(BH252,'Footnotes list'!$D$9:$E$58,2,FALSE) ) )","v":""},null,null,null,null,{"$f":"IF(TRIM(BM252)=\"\", \"\", IF(VLOOKUP(BM252,'Footnotes list'!$D$9:$E$58,2,FALSE)=0,\"\",VLOOKUP(BM252,'Footnotes list'!$D$9:$E$58,2,FALSE) ) )","v":""},null,null,null,null,{"$f":"IF(TRIM(BR252)=\"\", \"\", IF(VLOOKUP(BR252,'Footnotes list'!$D$9:$E$58,2,FALSE)=0,\"\",VLOOKUP(BR252,'Footnotes list'!$D$9:$E$58,2,FALSE) ) )","v":""},null,null,null,null,{"$f":"IF(TRIM(BW252)=\"\", \"\", IF(VLOOKUP(BW252,'Footnotes list'!$D$9:$E$58,2,FALSE)=0,\"\",VLOOKUP(BW252,'Footnotes list'!$D$9:$E$58,2,FALSE) ) )","v":""},null,null,null,null,{"$f":"IF(TRIM(CB252)=\"\", \"\", IF(VLOOKUP(CB252,'Footnotes list'!$D$9:$E$58,2,FALSE)=0,\"\",VLOOKUP(CB252,'Footnotes list'!$D$9:$E$58,2,FALSE) ) )","v":""},null,null,null,null,{"$f":"IF(TRIM(CG252)=\"\", \"\", IF(VLOOKUP(CG252,'Footnotes list'!$D$9:$E$58,2,FALSE)=0,\"\",VLOOKUP(CG252,'Footnotes list'!$D$9:$E$58,2,FALSE) ) )","v":""},null,null,null,null,{"$f":"IF(TRIM(CL252)=\"\", \"\", IF(VLOOKUP(CL252,'Footnotes list'!$D$9:$E$58,2,FALSE)=0,\"\",VLOOKUP(CL252,'Footnotes list'!$D$9:$E$58,2,FALSE) ) )","v":""},null,null,null,null,{"$f":"IF(TRIM(CQ252)=\"\", \"\", IF(VLOOKUP(CQ252,'Footnotes list'!$D$9:$E$58,2,FALSE)=0,\"\",VLOOKUP(CQ252,'Footnotes list'!$D$9:$E$58,2,FALSE) ) )","v":""},null,null,null,null,{"$f":"IF(TRIM(CV252)=\"\", \"\", IF(VLOOKUP(CV252,'Footnotes list'!$D$9:$E$58,2,FALSE)=0,\"\",VLOOKUP(CV252,'Footnotes list'!$D$9:$E$58,2,FALSE) ) )","v":""},null,null,null,null,{"$f":"IF(TRIM(DA252)=\"\", \"\", IF(VLOOKUP(DA252,'Footnotes list'!$D$9:$E$58,2,FALSE)=0,\"\",VLOOKUP(DA252,'Footnotes list'!$D$9:$E$58,2,FALSE) ) )","v":""},null,null,null,null,{"$f":"IF(TRIM(DF252)=\"\", \"\", IF(VLOOKUP(DF252,'Footnotes list'!$D$9:$E$58,2,FALSE)=0,\"\",VLOOKUP(DF252,'Footnotes list'!$D$9:$E$58,2,FALSE) ) )","v":""},null,null,null,null,{"$f":"IF(TRIM(DK252)=\"\", \"\", IF(VLOOKUP(DK252,'Footnotes list'!$D$9:$E$58,2,FALSE)=0,\"\",VLOOKUP(DK252,'Footnotes list'!$D$9:$E$58,2,FALSE) ) )","v":""},null,null,null,null,{"$f":"IF(TRIM(DP252)=\"\", \"\", IF(VLOOKUP(DP252,'Footnotes list'!$D$9:$E$58,2,FALSE)=0,\"\",VLOOKUP(DP252,'Footnotes list'!$D$9:$E$58,2,FALSE) ) )","v":""},null,null,null,null,{"$f":"IF(TRIM(DU252)=\"\", \"\", IF(VLOOKUP(DU252,'Footnotes list'!$D$9:$E$58,2,FALSE)=0,\"\",VLOOKUP(DU252,'Footnotes list'!$D$9:$E$58,2,FALSE) ) )","v":""},null,null,null,null,{"$f":"IF(TRIM(DZ252)=\"\", \"\", IF(VLOOKUP(DZ252,'Footnotes list'!$D$9:$E$58,2,FALSE)=0,\"\",VLOOKUP(DZ252,'Footnotes list'!$D$9:$E$58,2,FALSE) ) )","v":""},null,null,null,null,{"$f":"IF(TRIM(EE252)=\"\", \"\", IF(VLOOKUP(EE252,'Footnotes list'!$D$9:$E$58,2,FALSE)=0,\"\",VLOOKUP(EE252,'Footnotes list'!$D$9:$E$58,2,FALSE) ) )","v":""},null,null,null,null,{"$f":"IF(TRIM(EJ252)=\"\", \"\", IF(VLOOKUP(EJ252,'Footnotes list'!$D$9:$E$58,2,FALSE)=0,\"\",VLOOKUP(EJ252,'Footnotes list'!$D$9:$E$58,2,FALSE) ) )","v":""},null,null,null,null,{"$f":"IF(TRIM(EO252)=\"\", \"\", IF(VLOOKUP(EO252,'Footnotes list'!$D$9:$E$58,2,FALSE)=0,\"\",VLOOKUP(EO252,'Footnotes list'!$D$9:$E$58,2,FALSE) ) )","v":""},null,null,null,null,{"$f":"IF(TRIM(ET252)=\"\", \"\", IF(VLOOKUP(ET252,'Footnotes list'!$D$9:$E$58,2,FALSE)=0,\"\",VLOOKUP(ET252,'Footnotes list'!$D$9:$E$58,2,FALSE) ) )","v":""},null,null,null,null,{"$f":"IF(TRIM(EY252)=\"\", \"\", IF(VLOOKUP(EY252,'Footnotes list'!$D$9:$E$58,2,FALSE)=0,\"\",VLOOKUP(EY252,'Footnotes list'!$D$9:$E$58,2,FALSE) ) )","v":""}]
[null,null,"N","TOT_EGSS","Total N - Administrative and support service activities, of which:",null,null,null,null,null,{"$f":"IF(TRIM(J253)=\"\", \"\", IF(VLOOKUP(J253,'Footnotes list'!$D$9:$E$58,2,FALSE)=0,\"\",VLOOKUP(J253,'Footnotes list'!$D$9:$E$58,2,FALSE) ) )","v":""},null,null,null,null,{"$f":"IF(TRIM(O253)=\"\", \"\", IF(VLOOKUP(O253,'Footnotes list'!$D$9:$E$58,2,FALSE)=0,\"\",VLOOKUP(O253,'Footnotes list'!$D$9:$E$58,2,FALSE) ) )","v":""},null,null,null,null,{"$f":"IF(TRIM(T253)=\"\", \"\", IF(VLOOKUP(T253,'Footnotes list'!$D$9:$E$58,2,FALSE)=0,\"\",VLOOKUP(T253,'Footnotes list'!$D$9:$E$58,2,FALSE) ) )","v":""},null,null,null,null,{"$f":"IF(TRIM(Y253)=\"\", \"\", IF(VLOOKUP(Y253,'Footnotes list'!$D$9:$E$58,2,FALSE)=0,\"\",VLOOKUP(Y253,'Footnotes list'!$D$9:$E$58,2,FALSE) ) )","v":""},null,null,null,null,{"$f":"IF(TRIM(AD253)=\"\", \"\", IF(VLOOKUP(AD253,'Footnotes list'!$D$9:$E$58,2,FALSE)=0,\"\",VLOOKUP(AD253,'Footnotes list'!$D$9:$E$58,2,FALSE) ) )","v":""},null,null,null,null,{"$f":"IF(TRIM(AI253)=\"\", \"\", IF(VLOOKUP(AI253,'Footnotes list'!$D$9:$E$58,2,FALSE)=0,\"\",VLOOKUP(AI253,'Footnotes list'!$D$9:$E$58,2,FALSE) ) )","v":""},null,null,null,null,{"$f":"IF(TRIM(AN253)=\"\", \"\", IF(VLOOKUP(AN253,'Footnotes list'!$D$9:$E$58,2,FALSE)=0,\"\",VLOOKUP(AN253,'Footnotes list'!$D$9:$E$58,2,FALSE) ) )","v":""},null,null,null,null,{"$f":"IF(TRIM(AS253)=\"\", \"\", IF(VLOOKUP(AS253,'Footnotes list'!$D$9:$E$58,2,FALSE)=0,\"\",VLOOKUP(AS253,'Footnotes list'!$D$9:$E$58,2,FALSE) ) )","v":""},null,null,null,null,{"$f":"IF(TRIM(AX253)=\"\", \"\", IF(VLOOKUP(AX253,'Footnotes list'!$D$9:$E$58,2,FALSE)=0,\"\",VLOOKUP(AX253,'Footnotes list'!$D$9:$E$58,2,FALSE) ) )","v":""},null,null,null,null,{"$f":"IF(TRIM(BC253)=\"\", \"\", IF(VLOOKUP(BC253,'Footnotes list'!$D$9:$E$58,2,FALSE)=0,\"\",VLOOKUP(BC253,'Footnotes list'!$D$9:$E$58,2,FALSE) ) )","v":""},null,null,null,null,{"$f":"IF(TRIM(BH253)=\"\", \"\", IF(VLOOKUP(BH253,'Footnotes list'!$D$9:$E$58,2,FALSE)=0,\"\",VLOOKUP(BH253,'Footnotes list'!$D$9:$E$58,2,FALSE) ) )","v":""},null,null,null,null,{"$f":"IF(TRIM(BM253)=\"\", \"\", IF(VLOOKUP(BM253,'Footnotes list'!$D$9:$E$58,2,FALSE)=0,\"\",VLOOKUP(BM253,'Footnotes list'!$D$9:$E$58,2,FALSE) ) )","v":""},null,null,null,null,{"$f":"IF(TRIM(BR253)=\"\", \"\", IF(VLOOKUP(BR253,'Footnotes list'!$D$9:$E$58,2,FALSE)=0,\"\",VLOOKUP(BR253,'Footnotes list'!$D$9:$E$58,2,FALSE) ) )","v":""},null,null,null,null,{"$f":"IF(TRIM(BW253)=\"\", \"\", IF(VLOOKUP(BW253,'Footnotes list'!$D$9:$E$58,2,FALSE)=0,\"\",VLOOKUP(BW253,'Footnotes list'!$D$9:$E$58,2,FALSE) ) )","v":""},null,null,null,null,{"$f":"IF(TRIM(CB253)=\"\", \"\", IF(VLOOKUP(CB253,'Footnotes list'!$D$9:$E$58,2,FALSE)=0,\"\",VLOOKUP(CB253,'Footnotes list'!$D$9:$E$58,2,FALSE) ) )","v":""},null,null,null,null,{"$f":"IF(TRIM(CG253)=\"\", \"\", IF(VLOOKUP(CG253,'Footnotes list'!$D$9:$E$58,2,FALSE)=0,\"\",VLOOKUP(CG253,'Footnotes list'!$D$9:$E$58,2,FALSE) ) )","v":""},null,null,null,null,{"$f":"IF(TRIM(CL253)=\"\", \"\", IF(VLOOKUP(CL253,'Footnotes list'!$D$9:$E$58,2,FALSE)=0,\"\",VLOOKUP(CL253,'Footnotes list'!$D$9:$E$58,2,FALSE) ) )","v":""},null,null,null,null,{"$f":"IF(TRIM(CQ253)=\"\", \"\", IF(VLOOKUP(CQ253,'Footnotes list'!$D$9:$E$58,2,FALSE)=0,\"\",VLOOKUP(CQ253,'Footnotes list'!$D$9:$E$58,2,FALSE) ) )","v":""},null,null,null,null,{"$f":"IF(TRIM(CV253)=\"\", \"\", IF(VLOOKUP(CV253,'Footnotes list'!$D$9:$E$58,2,FALSE)=0,\"\",VLOOKUP(CV253,'Footnotes list'!$D$9:$E$58,2,FALSE) ) )","v":""},null,null,null,null,{"$f":"IF(TRIM(DA253)=\"\", \"\", IF(VLOOKUP(DA253,'Footnotes list'!$D$9:$E$58,2,FALSE)=0,\"\",VLOOKUP(DA253,'Footnotes list'!$D$9:$E$58,2,FALSE) ) )","v":""},null,null,null,null,{"$f":"IF(TRIM(DF253)=\"\", \"\", IF(VLOOKUP(DF253,'Footnotes list'!$D$9:$E$58,2,FALSE)=0,\"\",VLOOKUP(DF253,'Footnotes list'!$D$9:$E$58,2,FALSE) ) )","v":""},null,null,null,null,{"$f":"IF(TRIM(DK253)=\"\", \"\", IF(VLOOKUP(DK253,'Footnotes list'!$D$9:$E$58,2,FALSE)=0,\"\",VLOOKUP(DK253,'Footnotes list'!$D$9:$E$58,2,FALSE) ) )","v":""},null,null,null,null,{"$f":"IF(TRIM(DP253)=\"\", \"\", IF(VLOOKUP(DP253,'Footnotes list'!$D$9:$E$58,2,FALSE)=0,\"\",VLOOKUP(DP253,'Footnotes list'!$D$9:$E$58,2,FALSE) ) )","v":""},null,null,null,null,{"$f":"IF(TRIM(DU253)=\"\", \"\", IF(VLOOKUP(DU253,'Footnotes list'!$D$9:$E$58,2,FALSE)=0,\"\",VLOOKUP(DU253,'Footnotes list'!$D$9:$E$58,2,FALSE) ) )","v":""},null,null,null,null,{"$f":"IF(TRIM(DZ253)=\"\", \"\", IF(VLOOKUP(DZ253,'Footnotes list'!$D$9:$E$58,2,FALSE)=0,\"\",VLOOKUP(DZ253,'Footnotes list'!$D$9:$E$58,2,FALSE) ) )","v":""},null,null,null,null,{"$f":"IF(TRIM(EE253)=\"\", \"\", IF(VLOOKUP(EE253,'Footnotes list'!$D$9:$E$58,2,FALSE)=0,\"\",VLOOKUP(EE253,'Footnotes list'!$D$9:$E$58,2,FALSE) ) )","v":""},null,null,null,null,{"$f":"IF(TRIM(EJ253)=\"\", \"\", IF(VLOOKUP(EJ253,'Footnotes list'!$D$9:$E$58,2,FALSE)=0,\"\",VLOOKUP(EJ253,'Footnotes list'!$D$9:$E$58,2,FALSE) ) )","v":""},null,null,null,null,{"$f":"IF(TRIM(EO253)=\"\", \"\", IF(VLOOKUP(EO253,'Footnotes list'!$D$9:$E$58,2,FALSE)=0,\"\",VLOOKUP(EO253,'Footnotes list'!$D$9:$E$58,2,FALSE) ) )","v":""},null,null,null,null,{"$f":"IF(TRIM(ET253)=\"\", \"\", IF(VLOOKUP(ET253,'Footnotes list'!$D$9:$E$58,2,FALSE)=0,\"\",VLOOKUP(ET253,'Footnotes list'!$D$9:$E$58,2,FALSE) ) )","v":""},null,null,null,null,{"$f":"IF(TRIM(EY253)=\"\", \"\", IF(VLOOKUP(EY253,'Footnotes list'!$D$9:$E$58,2,FALSE)=0,\"\",VLOOKUP(EY253,'Footnotes list'!$D$9:$E$58,2,FALSE) ) )","v":""}]
[null,null,"N","ANC","ancillary activities",null,null,null,null,null,{"$f":"IF(TRIM(J254)=\"\", \"\", IF(VLOOKUP(J254,'Footnotes list'!$D$9:$E$58,2,FALSE)=0,\"\",VLOOKUP(J254,'Footnotes list'!$D$9:$E$58,2,FALSE) ) )","v":""},null,null,null,null,{"$f":"IF(TRIM(O254)=\"\", \"\", IF(VLOOKUP(O254,'Footnotes list'!$D$9:$E$58,2,FALSE)=0,\"\",VLOOKUP(O254,'Footnotes list'!$D$9:$E$58,2,FALSE) ) )","v":""},null,null,null,null,{"$f":"IF(TRIM(T254)=\"\", \"\", IF(VLOOKUP(T254,'Footnotes list'!$D$9:$E$58,2,FALSE)=0,\"\",VLOOKUP(T254,'Footnotes list'!$D$9:$E$58,2,FALSE) ) )","v":""},null,null,null,null,{"$f":"IF(TRIM(Y254)=\"\", \"\", IF(VLOOKUP(Y254,'Footnotes list'!$D$9:$E$58,2,FALSE)=0,\"\",VLOOKUP(Y254,'Footnotes list'!$D$9:$E$58,2,FALSE) ) )","v":""},null,null,null,null,{"$f":"IF(TRIM(AD254)=\"\", \"\", IF(VLOOKUP(AD254,'Footnotes list'!$D$9:$E$58,2,FALSE)=0,\"\",VLOOKUP(AD254,'Footnotes list'!$D$9:$E$58,2,FALSE) ) )","v":""},null,null,null,null,{"$f":"IF(TRIM(AI254)=\"\", \"\", IF(VLOOKUP(AI254,'Footnotes list'!$D$9:$E$58,2,FALSE)=0,\"\",VLOOKUP(AI254,'Footnotes list'!$D$9:$E$58,2,FALSE) ) )","v":""},null,null,null,null,{"$f":"IF(TRIM(AN254)=\"\", \"\", IF(VLOOKUP(AN254,'Footnotes list'!$D$9:$E$58,2,FALSE)=0,\"\",VLOOKUP(AN254,'Footnotes list'!$D$9:$E$58,2,FALSE) ) )","v":""},null,null,null,null,{"$f":"IF(TRIM(AS254)=\"\", \"\", IF(VLOOKUP(AS254,'Footnotes list'!$D$9:$E$58,2,FALSE)=0,\"\",VLOOKUP(AS254,'Footnotes list'!$D$9:$E$58,2,FALSE) ) )","v":""},null,null,null,null,{"$f":"IF(TRIM(AX254)=\"\", \"\", IF(VLOOKUP(AX254,'Footnotes list'!$D$9:$E$58,2,FALSE)=0,\"\",VLOOKUP(AX254,'Footnotes list'!$D$9:$E$58,2,FALSE) ) )","v":""},null,null,null,null,{"$f":"IF(TRIM(BC254)=\"\", \"\", IF(VLOOKUP(BC254,'Footnotes list'!$D$9:$E$58,2,FALSE)=0,\"\",VLOOKUP(BC254,'Footnotes list'!$D$9:$E$58,2,FALSE) ) )","v":""},null,null,null,null,{"$f":"IF(TRIM(BH254)=\"\", \"\", IF(VLOOKUP(BH254,'Footnotes list'!$D$9:$E$58,2,FALSE)=0,\"\",VLOOKUP(BH254,'Footnotes list'!$D$9:$E$58,2,FALSE) ) )","v":""},null,null,null,null,{"$f":"IF(TRIM(BM254)=\"\", \"\", IF(VLOOKUP(BM254,'Footnotes list'!$D$9:$E$58,2,FALSE)=0,\"\",VLOOKUP(BM254,'Footnotes list'!$D$9:$E$58,2,FALSE) ) )","v":""},null,null,null,null,{"$f":"IF(TRIM(BR254)=\"\", \"\", IF(VLOOKUP(BR254,'Footnotes list'!$D$9:$E$58,2,FALSE)=0,\"\",VLOOKUP(BR254,'Footnotes list'!$D$9:$E$58,2,FALSE) ) )","v":""},null,null,null,null,{"$f":"IF(TRIM(BW254)=\"\", \"\", IF(VLOOKUP(BW254,'Footnotes list'!$D$9:$E$58,2,FALSE)=0,\"\",VLOOKUP(BW254,'Footnotes list'!$D$9:$E$58,2,FALSE) ) )","v":""},null,null,null,null,{"$f":"IF(TRIM(CB254)=\"\", \"\", IF(VLOOKUP(CB254,'Footnotes list'!$D$9:$E$58,2,FALSE)=0,\"\",VLOOKUP(CB254,'Footnotes list'!$D$9:$E$58,2,FALSE) ) )","v":""},null,null,null,null,{"$f":"IF(TRIM(CG254)=\"\", \"\", IF(VLOOKUP(CG254,'Footnotes list'!$D$9:$E$58,2,FALSE)=0,\"\",VLOOKUP(CG254,'Footnotes list'!$D$9:$E$58,2,FALSE) ) )","v":""},null,null,null,null,{"$f":"IF(TRIM(CL254)=\"\", \"\", IF(VLOOKUP(CL254,'Footnotes list'!$D$9:$E$58,2,FALSE)=0,\"\",VLOOKUP(CL254,'Footnotes list'!$D$9:$E$58,2,FALSE) ) )","v":""},null,null,null,null,{"$f":"IF(TRIM(CQ254)=\"\", \"\", IF(VLOOKUP(CQ254,'Footnotes list'!$D$9:$E$58,2,FALSE)=0,\"\",VLOOKUP(CQ254,'Footnotes list'!$D$9:$E$58,2,FALSE) ) )","v":""},null,null,null,null,{"$f":"IF(TRIM(CV254)=\"\", \"\", IF(VLOOKUP(CV254,'Footnotes list'!$D$9:$E$58,2,FALSE)=0,\"\",VLOOKUP(CV254,'Footnotes list'!$D$9:$E$58,2,FALSE) ) )","v":""},null,null,null,null,{"$f":"IF(TRIM(DA254)=\"\", \"\", IF(VLOOKUP(DA254,'Footnotes list'!$D$9:$E$58,2,FALSE)=0,\"\",VLOOKUP(DA254,'Footnotes list'!$D$9:$E$58,2,FALSE) ) )","v":""},null,null,null,null,{"$f":"IF(TRIM(DF254)=\"\", \"\", IF(VLOOKUP(DF254,'Footnotes list'!$D$9:$E$58,2,FALSE)=0,\"\",VLOOKUP(DF254,'Footnotes list'!$D$9:$E$58,2,FALSE) ) )","v":""},null,null,null,null,{"$f":"IF(TRIM(DK254)=\"\", \"\", IF(VLOOKUP(DK254,'Footnotes list'!$D$9:$E$58,2,FALSE)=0,\"\",VLOOKUP(DK254,'Footnotes list'!$D$9:$E$58,2,FALSE) ) )","v":""},null,null,null,null,{"$f":"IF(TRIM(DP254)=\"\", \"\", IF(VLOOKUP(DP254,'Footnotes list'!$D$9:$E$58,2,FALSE)=0,\"\",VLOOKUP(DP254,'Footnotes list'!$D$9:$E$58,2,FALSE) ) )","v":""},null,null,null,null,{"$f":"IF(TRIM(DU254)=\"\", \"\", IF(VLOOKUP(DU254,'Footnotes list'!$D$9:$E$58,2,FALSE)=0,\"\",VLOOKUP(DU254,'Footnotes list'!$D$9:$E$58,2,FALSE) ) )","v":""},null,null,null,null,{"$f":"IF(TRIM(DZ254)=\"\", \"\", IF(VLOOKUP(DZ254,'Footnotes list'!$D$9:$E$58,2,FALSE)=0,\"\",VLOOKUP(DZ254,'Footnotes list'!$D$9:$E$58,2,FALSE) ) )","v":""},null,null,null,null,{"$f":"IF(TRIM(EE254)=\"\", \"\", IF(VLOOKUP(EE254,'Footnotes list'!$D$9:$E$58,2,FALSE)=0,\"\",VLOOKUP(EE254,'Footnotes list'!$D$9:$E$58,2,FALSE) ) )","v":""},null,null,null,null,{"$f":"IF(TRIM(EJ254)=\"\", \"\", IF(VLOOKUP(EJ254,'Footnotes list'!$D$9:$E$58,2,FALSE)=0,\"\",VLOOKUP(EJ254,'Footnotes list'!$D$9:$E$58,2,FALSE) ) )","v":""},null,null,null,null,{"$f":"IF(TRIM(EO254)=\"\", \"\", IF(VLOOKUP(EO254,'Footnotes list'!$D$9:$E$58,2,FALSE)=0,\"\",VLOOKUP(EO254,'Footnotes list'!$D$9:$E$58,2,FALSE) ) )","v":""},null,null,null,null,{"$f":"IF(TRIM(ET254)=\"\", \"\", IF(VLOOKUP(ET254,'Footnotes list'!$D$9:$E$58,2,FALSE)=0,\"\",VLOOKUP(ET254,'Footnotes list'!$D$9:$E$58,2,FALSE) ) )","v":""},null,null,null,null,{"$f":"IF(TRIM(EY254)=\"\", \"\", IF(VLOOKUP(EY254,'Footnotes list'!$D$9:$E$58,2,FALSE)=0,\"\",VLOOKUP(EY254,'Footnotes list'!$D$9:$E$58,2,FALSE) ) )","v":""}]
[null,null,"N","NMKT","non-market activities",null,null,null,null,null,{"$f":"IF(TRIM(J255)=\"\", \"\", IF(VLOOKUP(J255,'Footnotes list'!$D$9:$E$58,2,FALSE)=0,\"\",VLOOKUP(J255,'Footnotes list'!$D$9:$E$58,2,FALSE) ) )","v":""},null,null,null,null,{"$f":"IF(TRIM(O255)=\"\", \"\", IF(VLOOKUP(O255,'Footnotes list'!$D$9:$E$58,2,FALSE)=0,\"\",VLOOKUP(O255,'Footnotes list'!$D$9:$E$58,2,FALSE) ) )","v":""},null,null,null,null,{"$f":"IF(TRIM(T255)=\"\", \"\", IF(VLOOKUP(T255,'Footnotes list'!$D$9:$E$58,2,FALSE)=0,\"\",VLOOKUP(T255,'Footnotes list'!$D$9:$E$58,2,FALSE) ) )","v":""},null,null,null,null,{"$f":"IF(TRIM(Y255)=\"\", \"\", IF(VLOOKUP(Y255,'Footnotes list'!$D$9:$E$58,2,FALSE)=0,\"\",VLOOKUP(Y255,'Footnotes list'!$D$9:$E$58,2,FALSE) ) )","v":""},null,null,null,null,{"$f":"IF(TRIM(AD255)=\"\", \"\", IF(VLOOKUP(AD255,'Footnotes list'!$D$9:$E$58,2,FALSE)=0,\"\",VLOOKUP(AD255,'Footnotes list'!$D$9:$E$58,2,FALSE) ) )","v":""},null,null,null,null,{"$f":"IF(TRIM(AI255)=\"\", \"\", IF(VLOOKUP(AI255,'Footnotes list'!$D$9:$E$58,2,FALSE)=0,\"\",VLOOKUP(AI255,'Footnotes list'!$D$9:$E$58,2,FALSE) ) )","v":""},null,null,null,null,{"$f":"IF(TRIM(AN255)=\"\", \"\", IF(VLOOKUP(AN255,'Footnotes list'!$D$9:$E$58,2,FALSE)=0,\"\",VLOOKUP(AN255,'Footnotes list'!$D$9:$E$58,2,FALSE) ) )","v":""},null,null,null,null,{"$f":"IF(TRIM(AS255)=\"\", \"\", IF(VLOOKUP(AS255,'Footnotes list'!$D$9:$E$58,2,FALSE)=0,\"\",VLOOKUP(AS255,'Footnotes list'!$D$9:$E$58,2,FALSE) ) )","v":""},null,null,null,null,{"$f":"IF(TRIM(AX255)=\"\", \"\", IF(VLOOKUP(AX255,'Footnotes list'!$D$9:$E$58,2,FALSE)=0,\"\",VLOOKUP(AX255,'Footnotes list'!$D$9:$E$58,2,FALSE) ) )","v":""},null,null,null,null,{"$f":"IF(TRIM(BC255)=\"\", \"\", IF(VLOOKUP(BC255,'Footnotes list'!$D$9:$E$58,2,FALSE)=0,\"\",VLOOKUP(BC255,'Footnotes list'!$D$9:$E$58,2,FALSE) ) )","v":""},null,null,null,null,{"$f":"IF(TRIM(BH255)=\"\", \"\", IF(VLOOKUP(BH255,'Footnotes list'!$D$9:$E$58,2,FALSE)=0,\"\",VLOOKUP(BH255,'Footnotes list'!$D$9:$E$58,2,FALSE) ) )","v":""},null,null,null,null,{"$f":"IF(TRIM(BM255)=\"\", \"\", IF(VLOOKUP(BM255,'Footnotes list'!$D$9:$E$58,2,FALSE)=0,\"\",VLOOKUP(BM255,'Footnotes list'!$D$9:$E$58,2,FALSE) ) )","v":""},null,null,null,null,{"$f":"IF(TRIM(BR255)=\"\", \"\", IF(VLOOKUP(BR255,'Footnotes list'!$D$9:$E$58,2,FALSE)=0,\"\",VLOOKUP(BR255,'Footnotes list'!$D$9:$E$58,2,FALSE) ) )","v":""},null,null,null,null,{"$f":"IF(TRIM(BW255)=\"\", \"\", IF(VLOOKUP(BW255,'Footnotes list'!$D$9:$E$58,2,FALSE)=0,\"\",VLOOKUP(BW255,'Footnotes list'!$D$9:$E$58,2,FALSE) ) )","v":""},null,null,null,null,{"$f":"IF(TRIM(CB255)=\"\", \"\", IF(VLOOKUP(CB255,'Footnotes list'!$D$9:$E$58,2,FALSE)=0,\"\",VLOOKUP(CB255,'Footnotes list'!$D$9:$E$58,2,FALSE) ) )","v":""},null,null,null,null,{"$f":"IF(TRIM(CG255)=\"\", \"\", IF(VLOOKUP(CG255,'Footnotes list'!$D$9:$E$58,2,FALSE)=0,\"\",VLOOKUP(CG255,'Footnotes list'!$D$9:$E$58,2,FALSE) ) )","v":""},null,null,null,null,{"$f":"IF(TRIM(CL255)=\"\", \"\", IF(VLOOKUP(CL255,'Footnotes list'!$D$9:$E$58,2,FALSE)=0,\"\",VLOOKUP(CL255,'Footnotes list'!$D$9:$E$58,2,FALSE) ) )","v":""},null,null,null,null,{"$f":"IF(TRIM(CQ255)=\"\", \"\", IF(VLOOKUP(CQ255,'Footnotes list'!$D$9:$E$58,2,FALSE)=0,\"\",VLOOKUP(CQ255,'Footnotes list'!$D$9:$E$58,2,FALSE) ) )","v":""},null,null,null,null,{"$f":"IF(TRIM(CV255)=\"\", \"\", IF(VLOOKUP(CV255,'Footnotes list'!$D$9:$E$58,2,FALSE)=0,\"\",VLOOKUP(CV255,'Footnotes list'!$D$9:$E$58,2,FALSE) ) )","v":""},null,null,null,null,{"$f":"IF(TRIM(DA255)=\"\", \"\", IF(VLOOKUP(DA255,'Footnotes list'!$D$9:$E$58,2,FALSE)=0,\"\",VLOOKUP(DA255,'Footnotes list'!$D$9:$E$58,2,FALSE) ) )","v":""},null,null,null,null,{"$f":"IF(TRIM(DF255)=\"\", \"\", IF(VLOOKUP(DF255,'Footnotes list'!$D$9:$E$58,2,FALSE)=0,\"\",VLOOKUP(DF255,'Footnotes list'!$D$9:$E$58,2,FALSE) ) )","v":""},null,null,null,null,{"$f":"IF(TRIM(DK255)=\"\", \"\", IF(VLOOKUP(DK255,'Footnotes list'!$D$9:$E$58,2,FALSE)=0,\"\",VLOOKUP(DK255,'Footnotes list'!$D$9:$E$58,2,FALSE) ) )","v":""},null,null,null,null,{"$f":"IF(TRIM(DP255)=\"\", \"\", IF(VLOOKUP(DP255,'Footnotes list'!$D$9:$E$58,2,FALSE)=0,\"\",VLOOKUP(DP255,'Footnotes list'!$D$9:$E$58,2,FALSE) ) )","v":""},null,null,null,null,{"$f":"IF(TRIM(DU255)=\"\", \"\", IF(VLOOKUP(DU255,'Footnotes list'!$D$9:$E$58,2,FALSE)=0,\"\",VLOOKUP(DU255,'Footnotes list'!$D$9:$E$58,2,FALSE) ) )","v":""},null,null,null,null,{"$f":"IF(TRIM(DZ255)=\"\", \"\", IF(VLOOKUP(DZ255,'Footnotes list'!$D$9:$E$58,2,FALSE)=0,\"\",VLOOKUP(DZ255,'Footnotes list'!$D$9:$E$58,2,FALSE) ) )","v":""},null,null,null,null,{"$f":"IF(TRIM(EE255)=\"\", \"\", IF(VLOOKUP(EE255,'Footnotes list'!$D$9:$E$58,2,FALSE)=0,\"\",VLOOKUP(EE255,'Footnotes list'!$D$9:$E$58,2,FALSE) ) )","v":""},null,null,null,null,{"$f":"IF(TRIM(EJ255)=\"\", \"\", IF(VLOOKUP(EJ255,'Footnotes list'!$D$9:$E$58,2,FALSE)=0,\"\",VLOOKUP(EJ255,'Footnotes list'!$D$9:$E$58,2,FALSE) ) )","v":""},null,null,null,null,{"$f":"IF(TRIM(EO255)=\"\", \"\", IF(VLOOKUP(EO255,'Footnotes list'!$D$9:$E$58,2,FALSE)=0,\"\",VLOOKUP(EO255,'Footnotes list'!$D$9:$E$58,2,FALSE) ) )","v":""},null,null,null,null,{"$f":"IF(TRIM(ET255)=\"\", \"\", IF(VLOOKUP(ET255,'Footnotes list'!$D$9:$E$58,2,FALSE)=0,\"\",VLOOKUP(ET255,'Footnotes list'!$D$9:$E$58,2,FALSE) ) )","v":""},null,null,null,null,{"$f":"IF(TRIM(EY255)=\"\", \"\", IF(VLOOKUP(EY255,'Footnotes list'!$D$9:$E$58,2,FALSE)=0,\"\",VLOOKUP(EY255,'Footnotes list'!$D$9:$E$58,2,FALSE) ) )","v":""}]
[null,null,"N","OWN_USE","activities for own final use",null,null,null,null,null,{"$f":"IF(TRIM(J256)=\"\", \"\", IF(VLOOKUP(J256,'Footnotes list'!$D$9:$E$58,2,FALSE)=0,\"\",VLOOKUP(J256,'Footnotes list'!$D$9:$E$58,2,FALSE) ) )","v":""},null,null,null,null,{"$f":"IF(TRIM(O256)=\"\", \"\", IF(VLOOKUP(O256,'Footnotes list'!$D$9:$E$58,2,FALSE)=0,\"\",VLOOKUP(O256,'Footnotes list'!$D$9:$E$58,2,FALSE) ) )","v":""},null,null,null,null,{"$f":"IF(TRIM(T256)=\"\", \"\", IF(VLOOKUP(T256,'Footnotes list'!$D$9:$E$58,2,FALSE)=0,\"\",VLOOKUP(T256,'Footnotes list'!$D$9:$E$58,2,FALSE) ) )","v":""},null,null,null,null,{"$f":"IF(TRIM(Y256)=\"\", \"\", IF(VLOOKUP(Y256,'Footnotes list'!$D$9:$E$58,2,FALSE)=0,\"\",VLOOKUP(Y256,'Footnotes list'!$D$9:$E$58,2,FALSE) ) )","v":""},null,null,null,null,{"$f":"IF(TRIM(AD256)=\"\", \"\", IF(VLOOKUP(AD256,'Footnotes list'!$D$9:$E$58,2,FALSE)=0,\"\",VLOOKUP(AD256,'Footnotes list'!$D$9:$E$58,2,FALSE) ) )","v":""},null,null,null,null,{"$f":"IF(TRIM(AI256)=\"\", \"\", IF(VLOOKUP(AI256,'Footnotes list'!$D$9:$E$58,2,FALSE)=0,\"\",VLOOKUP(AI256,'Footnotes list'!$D$9:$E$58,2,FALSE) ) )","v":""},null,null,null,null,{"$f":"IF(TRIM(AN256)=\"\", \"\", IF(VLOOKUP(AN256,'Footnotes list'!$D$9:$E$58,2,FALSE)=0,\"\",VLOOKUP(AN256,'Footnotes list'!$D$9:$E$58,2,FALSE) ) )","v":""},null,null,null,null,{"$f":"IF(TRIM(AS256)=\"\", \"\", IF(VLOOKUP(AS256,'Footnotes list'!$D$9:$E$58,2,FALSE)=0,\"\",VLOOKUP(AS256,'Footnotes list'!$D$9:$E$58,2,FALSE) ) )","v":""},null,null,null,null,{"$f":"IF(TRIM(AX256)=\"\", \"\", IF(VLOOKUP(AX256,'Footnotes list'!$D$9:$E$58,2,FALSE)=0,\"\",VLOOKUP(AX256,'Footnotes list'!$D$9:$E$58,2,FALSE) ) )","v":""},null,null,null,null,{"$f":"IF(TRIM(BC256)=\"\", \"\", IF(VLOOKUP(BC256,'Footnotes list'!$D$9:$E$58,2,FALSE)=0,\"\",VLOOKUP(BC256,'Footnotes list'!$D$9:$E$58,2,FALSE) ) )","v":""},null,null,null,null,{"$f":"IF(TRIM(BH256)=\"\", \"\", IF(VLOOKUP(BH256,'Footnotes list'!$D$9:$E$58,2,FALSE)=0,\"\",VLOOKUP(BH256,'Footnotes list'!$D$9:$E$58,2,FALSE) ) )","v":""},null,null,null,null,{"$f":"IF(TRIM(BM256)=\"\", \"\", IF(VLOOKUP(BM256,'Footnotes list'!$D$9:$E$58,2,FALSE)=0,\"\",VLOOKUP(BM256,'Footnotes list'!$D$9:$E$58,2,FALSE) ) )","v":""},null,null,null,null,{"$f":"IF(TRIM(BR256)=\"\", \"\", IF(VLOOKUP(BR256,'Footnotes list'!$D$9:$E$58,2,FALSE)=0,\"\",VLOOKUP(BR256,'Footnotes list'!$D$9:$E$58,2,FALSE) ) )","v":""},null,null,null,null,{"$f":"IF(TRIM(BW256)=\"\", \"\", IF(VLOOKUP(BW256,'Footnotes list'!$D$9:$E$58,2,FALSE)=0,\"\",VLOOKUP(BW256,'Footnotes list'!$D$9:$E$58,2,FALSE) ) )","v":""},null,null,null,null,{"$f":"IF(TRIM(CB256)=\"\", \"\", IF(VLOOKUP(CB256,'Footnotes list'!$D$9:$E$58,2,FALSE)=0,\"\",VLOOKUP(CB256,'Footnotes list'!$D$9:$E$58,2,FALSE) ) )","v":""},null,null,null,null,{"$f":"IF(TRIM(CG256)=\"\", \"\", IF(VLOOKUP(CG256,'Footnotes list'!$D$9:$E$58,2,FALSE)=0,\"\",VLOOKUP(CG256,'Footnotes list'!$D$9:$E$58,2,FALSE) ) )","v":""},null,null,null,null,{"$f":"IF(TRIM(CL256)=\"\", \"\", IF(VLOOKUP(CL256,'Footnotes list'!$D$9:$E$58,2,FALSE)=0,\"\",VLOOKUP(CL256,'Footnotes list'!$D$9:$E$58,2,FALSE) ) )","v":""},null,null,null,null,{"$f":"IF(TRIM(CQ256)=\"\", \"\", IF(VLOOKUP(CQ256,'Footnotes list'!$D$9:$E$58,2,FALSE)=0,\"\",VLOOKUP(CQ256,'Footnotes list'!$D$9:$E$58,2,FALSE) ) )","v":""},null,null,null,null,{"$f":"IF(TRIM(CV256)=\"\", \"\", IF(VLOOKUP(CV256,'Footnotes list'!$D$9:$E$58,2,FALSE)=0,\"\",VLOOKUP(CV256,'Footnotes list'!$D$9:$E$58,2,FALSE) ) )","v":""},null,null,null,null,{"$f":"IF(TRIM(DA256)=\"\", \"\", IF(VLOOKUP(DA256,'Footnotes list'!$D$9:$E$58,2,FALSE)=0,\"\",VLOOKUP(DA256,'Footnotes list'!$D$9:$E$58,2,FALSE) ) )","v":""},null,null,null,null,{"$f":"IF(TRIM(DF256)=\"\", \"\", IF(VLOOKUP(DF256,'Footnotes list'!$D$9:$E$58,2,FALSE)=0,\"\",VLOOKUP(DF256,'Footnotes list'!$D$9:$E$58,2,FALSE) ) )","v":""},null,null,null,null,{"$f":"IF(TRIM(DK256)=\"\", \"\", IF(VLOOKUP(DK256,'Footnotes list'!$D$9:$E$58,2,FALSE)=0,\"\",VLOOKUP(DK256,'Footnotes list'!$D$9:$E$58,2,FALSE) ) )","v":""},null,null,null,null,{"$f":"IF(TRIM(DP256)=\"\", \"\", IF(VLOOKUP(DP256,'Footnotes list'!$D$9:$E$58,2,FALSE)=0,\"\",VLOOKUP(DP256,'Footnotes list'!$D$9:$E$58,2,FALSE) ) )","v":""},null,null,null,null,{"$f":"IF(TRIM(DU256)=\"\", \"\", IF(VLOOKUP(DU256,'Footnotes list'!$D$9:$E$58,2,FALSE)=0,\"\",VLOOKUP(DU256,'Footnotes list'!$D$9:$E$58,2,FALSE) ) )","v":""},null,null,null,null,{"$f":"IF(TRIM(DZ256)=\"\", \"\", IF(VLOOKUP(DZ256,'Footnotes list'!$D$9:$E$58,2,FALSE)=0,\"\",VLOOKUP(DZ256,'Footnotes list'!$D$9:$E$58,2,FALSE) ) )","v":""},null,null,null,null,{"$f":"IF(TRIM(EE256)=\"\", \"\", IF(VLOOKUP(EE256,'Footnotes list'!$D$9:$E$58,2,FALSE)=0,\"\",VLOOKUP(EE256,'Footnotes list'!$D$9:$E$58,2,FALSE) ) )","v":""},null,null,null,null,{"$f":"IF(TRIM(EJ256)=\"\", \"\", IF(VLOOKUP(EJ256,'Footnotes list'!$D$9:$E$58,2,FALSE)=0,\"\",VLOOKUP(EJ256,'Footnotes list'!$D$9:$E$58,2,FALSE) ) )","v":""},null,null,null,null,{"$f":"IF(TRIM(EO256)=\"\", \"\", IF(VLOOKUP(EO256,'Footnotes list'!$D$9:$E$58,2,FALSE)=0,\"\",VLOOKUP(EO256,'Footnotes list'!$D$9:$E$58,2,FALSE) ) )","v":""},null,null,null,null,{"$f":"IF(TRIM(ET256)=\"\", \"\", IF(VLOOKUP(ET256,'Footnotes list'!$D$9:$E$58,2,FALSE)=0,\"\",VLOOKUP(ET256,'Footnotes list'!$D$9:$E$58,2,FALSE) ) )","v":""},null,null,null,null,{"$f":"IF(TRIM(EY256)=\"\", \"\", IF(VLOOKUP(EY256,'Footnotes list'!$D$9:$E$58,2,FALSE)=0,\"\",VLOOKUP(EY256,'Footnotes list'!$D$9:$E$58,2,FALSE) ) )","v":""}]
[null,null,"N","MKT","market activities, including:",null,null,null,null,null,{"$f":"IF(TRIM(J257)=\"\", \"\", IF(VLOOKUP(J257,'Footnotes list'!$D$9:$E$58,2,FALSE)=0,\"\",VLOOKUP(J257,'Footnotes list'!$D$9:$E$58,2,FALSE) ) )","v":""},null,null,null,null,{"$f":"IF(TRIM(O257)=\"\", \"\", IF(VLOOKUP(O257,'Footnotes list'!$D$9:$E$58,2,FALSE)=0,\"\",VLOOKUP(O257,'Footnotes list'!$D$9:$E$58,2,FALSE) ) )","v":""},null,null,null,null,{"$f":"IF(TRIM(T257)=\"\", \"\", IF(VLOOKUP(T257,'Footnotes list'!$D$9:$E$58,2,FALSE)=0,\"\",VLOOKUP(T257,'Footnotes list'!$D$9:$E$58,2,FALSE) ) )","v":""},null,null,null,null,{"$f":"IF(TRIM(Y257)=\"\", \"\", IF(VLOOKUP(Y257,'Footnotes list'!$D$9:$E$58,2,FALSE)=0,\"\",VLOOKUP(Y257,'Footnotes list'!$D$9:$E$58,2,FALSE) ) )","v":""},null,null,null,null,{"$f":"IF(TRIM(AD257)=\"\", \"\", IF(VLOOKUP(AD257,'Footnotes list'!$D$9:$E$58,2,FALSE)=0,\"\",VLOOKUP(AD257,'Footnotes list'!$D$9:$E$58,2,FALSE) ) )","v":""},null,null,null,null,{"$f":"IF(TRIM(AI257)=\"\", \"\", IF(VLOOKUP(AI257,'Footnotes list'!$D$9:$E$58,2,FALSE)=0,\"\",VLOOKUP(AI257,'Footnotes list'!$D$9:$E$58,2,FALSE) ) )","v":""},null,null,null,null,{"$f":"IF(TRIM(AN257)=\"\", \"\", IF(VLOOKUP(AN257,'Footnotes list'!$D$9:$E$58,2,FALSE)=0,\"\",VLOOKUP(AN257,'Footnotes list'!$D$9:$E$58,2,FALSE) ) )","v":""},null,null,null,null,{"$f":"IF(TRIM(AS257)=\"\", \"\", IF(VLOOKUP(AS257,'Footnotes list'!$D$9:$E$58,2,FALSE)=0,\"\",VLOOKUP(AS257,'Footnotes list'!$D$9:$E$58,2,FALSE) ) )","v":""},null,null,null,null,{"$f":"IF(TRIM(AX257)=\"\", \"\", IF(VLOOKUP(AX257,'Footnotes list'!$D$9:$E$58,2,FALSE)=0,\"\",VLOOKUP(AX257,'Footnotes list'!$D$9:$E$58,2,FALSE) ) )","v":""},null,null,null,null,{"$f":"IF(TRIM(BC257)=\"\", \"\", IF(VLOOKUP(BC257,'Footnotes list'!$D$9:$E$58,2,FALSE)=0,\"\",VLOOKUP(BC257,'Footnotes list'!$D$9:$E$58,2,FALSE) ) )","v":""},null,null,null,null,{"$f":"IF(TRIM(BH257)=\"\", \"\", IF(VLOOKUP(BH257,'Footnotes list'!$D$9:$E$58,2,FALSE)=0,\"\",VLOOKUP(BH257,'Footnotes list'!$D$9:$E$58,2,FALSE) ) )","v":""},null,null,null,null,{"$f":"IF(TRIM(BM257)=\"\", \"\", IF(VLOOKUP(BM257,'Footnotes list'!$D$9:$E$58,2,FALSE)=0,\"\",VLOOKUP(BM257,'Footnotes list'!$D$9:$E$58,2,FALSE) ) )","v":""},null,null,null,null,{"$f":"IF(TRIM(BR257)=\"\", \"\", IF(VLOOKUP(BR257,'Footnotes list'!$D$9:$E$58,2,FALSE)=0,\"\",VLOOKUP(BR257,'Footnotes list'!$D$9:$E$58,2,FALSE) ) )","v":""},null,null,null,null,{"$f":"IF(TRIM(BW257)=\"\", \"\", IF(VLOOKUP(BW257,'Footnotes list'!$D$9:$E$58,2,FALSE)=0,\"\",VLOOKUP(BW257,'Footnotes list'!$D$9:$E$58,2,FALSE) ) )","v":""},null,null,null,null,{"$f":"IF(TRIM(CB257)=\"\", \"\", IF(VLOOKUP(CB257,'Footnotes list'!$D$9:$E$58,2,FALSE)=0,\"\",VLOOKUP(CB257,'Footnotes list'!$D$9:$E$58,2,FALSE) ) )","v":""},null,null,null,null,{"$f":"IF(TRIM(CG257)=\"\", \"\", IF(VLOOKUP(CG257,'Footnotes list'!$D$9:$E$58,2,FALSE)=0,\"\",VLOOKUP(CG257,'Footnotes list'!$D$9:$E$58,2,FALSE) ) )","v":""},null,null,null,null,{"$f":"IF(TRIM(CL257)=\"\", \"\", IF(VLOOKUP(CL257,'Footnotes list'!$D$9:$E$58,2,FALSE)=0,\"\",VLOOKUP(CL257,'Footnotes list'!$D$9:$E$58,2,FALSE) ) )","v":""},null,null,null,null,{"$f":"IF(TRIM(CQ257)=\"\", \"\", IF(VLOOKUP(CQ257,'Footnotes list'!$D$9:$E$58,2,FALSE)=0,\"\",VLOOKUP(CQ257,'Footnotes list'!$D$9:$E$58,2,FALSE) ) )","v":""},null,null,null,null,{"$f":"IF(TRIM(CV257)=\"\", \"\", IF(VLOOKUP(CV257,'Footnotes list'!$D$9:$E$58,2,FALSE)=0,\"\",VLOOKUP(CV257,'Footnotes list'!$D$9:$E$58,2,FALSE) ) )","v":""},null,null,null,null,{"$f":"IF(TRIM(DA257)=\"\", \"\", IF(VLOOKUP(DA257,'Footnotes list'!$D$9:$E$58,2,FALSE)=0,\"\",VLOOKUP(DA257,'Footnotes list'!$D$9:$E$58,2,FALSE) ) )","v":""},null,null,null,null,{"$f":"IF(TRIM(DF257)=\"\", \"\", IF(VLOOKUP(DF257,'Footnotes list'!$D$9:$E$58,2,FALSE)=0,\"\",VLOOKUP(DF257,'Footnotes list'!$D$9:$E$58,2,FALSE) ) )","v":""},null,null,null,null,{"$f":"IF(TRIM(DK257)=\"\", \"\", IF(VLOOKUP(DK257,'Footnotes list'!$D$9:$E$58,2,FALSE)=0,\"\",VLOOKUP(DK257,'Footnotes list'!$D$9:$E$58,2,FALSE) ) )","v":""},null,null,null,null,{"$f":"IF(TRIM(DP257)=\"\", \"\", IF(VLOOKUP(DP257,'Footnotes list'!$D$9:$E$58,2,FALSE)=0,\"\",VLOOKUP(DP257,'Footnotes list'!$D$9:$E$58,2,FALSE) ) )","v":""},null,null,null,null,{"$f":"IF(TRIM(DU257)=\"\", \"\", IF(VLOOKUP(DU257,'Footnotes list'!$D$9:$E$58,2,FALSE)=0,\"\",VLOOKUP(DU257,'Footnotes list'!$D$9:$E$58,2,FALSE) ) )","v":""},null,null,null,null,{"$f":"IF(TRIM(DZ257)=\"\", \"\", IF(VLOOKUP(DZ257,'Footnotes list'!$D$9:$E$58,2,FALSE)=0,\"\",VLOOKUP(DZ257,'Footnotes list'!$D$9:$E$58,2,FALSE) ) )","v":""},null,null,null,null,{"$f":"IF(TRIM(EE257)=\"\", \"\", IF(VLOOKUP(EE257,'Footnotes list'!$D$9:$E$58,2,FALSE)=0,\"\",VLOOKUP(EE257,'Footnotes list'!$D$9:$E$58,2,FALSE) ) )","v":""},null,null,null,null,{"$f":"IF(TRIM(EJ257)=\"\", \"\", IF(VLOOKUP(EJ257,'Footnotes list'!$D$9:$E$58,2,FALSE)=0,\"\",VLOOKUP(EJ257,'Footnotes list'!$D$9:$E$58,2,FALSE) ) )","v":""},null,null,null,null,{"$f":"IF(TRIM(EO257)=\"\", \"\", IF(VLOOKUP(EO257,'Footnotes list'!$D$9:$E$58,2,FALSE)=0,\"\",VLOOKUP(EO257,'Footnotes list'!$D$9:$E$58,2,FALSE) ) )","v":""},null,null,null,null,{"$f":"IF(TRIM(ET257)=\"\", \"\", IF(VLOOKUP(ET257,'Footnotes list'!$D$9:$E$58,2,FALSE)=0,\"\",VLOOKUP(ET257,'Footnotes list'!$D$9:$E$58,2,FALSE) ) )","v":""},null,null,null,null,{"$f":"IF(TRIM(EY257)=\"\", \"\", IF(VLOOKUP(EY257,'Footnotes list'!$D$9:$E$58,2,FALSE)=0,\"\",VLOOKUP(EY257,'Footnotes list'!$D$9:$E$58,2,FALSE) ) )","v":""}]
[null,null,"N","ES_CS","environmental specific services",null,null,null,null,null,{"$f":"IF(TRIM(J258)=\"\", \"\", IF(VLOOKUP(J258,'Footnotes list'!$D$9:$E$58,2,FALSE)=0,\"\",VLOOKUP(J258,'Footnotes list'!$D$9:$E$58,2,FALSE) ) )","v":""},null,null,null,null,{"$f":"IF(TRIM(O258)=\"\", \"\", IF(VLOOKUP(O258,'Footnotes list'!$D$9:$E$58,2,FALSE)=0,\"\",VLOOKUP(O258,'Footnotes list'!$D$9:$E$58,2,FALSE) ) )","v":""},null,null,null,null,{"$f":"IF(TRIM(T258)=\"\", \"\", IF(VLOOKUP(T258,'Footnotes list'!$D$9:$E$58,2,FALSE)=0,\"\",VLOOKUP(T258,'Footnotes list'!$D$9:$E$58,2,FALSE) ) )","v":""},null,null,null,null,{"$f":"IF(TRIM(Y258)=\"\", \"\", IF(VLOOKUP(Y258,'Footnotes list'!$D$9:$E$58,2,FALSE)=0,\"\",VLOOKUP(Y258,'Footnotes list'!$D$9:$E$58,2,FALSE) ) )","v":""},null,null,null,null,{"$f":"IF(TRIM(AD258)=\"\", \"\", IF(VLOOKUP(AD258,'Footnotes list'!$D$9:$E$58,2,FALSE)=0,\"\",VLOOKUP(AD258,'Footnotes list'!$D$9:$E$58,2,FALSE) ) )","v":""},null,null,null,null,{"$f":"IF(TRIM(AI258)=\"\", \"\", IF(VLOOKUP(AI258,'Footnotes list'!$D$9:$E$58,2,FALSE)=0,\"\",VLOOKUP(AI258,'Footnotes list'!$D$9:$E$58,2,FALSE) ) )","v":""},null,null,null,null,{"$f":"IF(TRIM(AN258)=\"\", \"\", IF(VLOOKUP(AN258,'Footnotes list'!$D$9:$E$58,2,FALSE)=0,\"\",VLOOKUP(AN258,'Footnotes list'!$D$9:$E$58,2,FALSE) ) )","v":""},null,null,null,null,{"$f":"IF(TRIM(AS258)=\"\", \"\", IF(VLOOKUP(AS258,'Footnotes list'!$D$9:$E$58,2,FALSE)=0,\"\",VLOOKUP(AS258,'Footnotes list'!$D$9:$E$58,2,FALSE) ) )","v":""},null,null,null,null,{"$f":"IF(TRIM(AX258)=\"\", \"\", IF(VLOOKUP(AX258,'Footnotes list'!$D$9:$E$58,2,FALSE)=0,\"\",VLOOKUP(AX258,'Footnotes list'!$D$9:$E$58,2,FALSE) ) )","v":""},null,null,null,null,{"$f":"IF(TRIM(BC258)=\"\", \"\", IF(VLOOKUP(BC258,'Footnotes list'!$D$9:$E$58,2,FALSE)=0,\"\",VLOOKUP(BC258,'Footnotes list'!$D$9:$E$58,2,FALSE) ) )","v":""},null,null,null,null,{"$f":"IF(TRIM(BH258)=\"\", \"\", IF(VLOOKUP(BH258,'Footnotes list'!$D$9:$E$58,2,FALSE)=0,\"\",VLOOKUP(BH258,'Footnotes list'!$D$9:$E$58,2,FALSE) ) )","v":""},null,null,null,null,{"$f":"IF(TRIM(BM258)=\"\", \"\", IF(VLOOKUP(BM258,'Footnotes list'!$D$9:$E$58,2,FALSE)=0,\"\",VLOOKUP(BM258,'Footnotes list'!$D$9:$E$58,2,FALSE) ) )","v":""},null,null,null,null,{"$f":"IF(TRIM(BR258)=\"\", \"\", IF(VLOOKUP(BR258,'Footnotes list'!$D$9:$E$58,2,FALSE)=0,\"\",VLOOKUP(BR258,'Footnotes list'!$D$9:$E$58,2,FALSE) ) )","v":""},null,null,null,null,{"$f":"IF(TRIM(BW258)=\"\", \"\", IF(VLOOKUP(BW258,'Footnotes list'!$D$9:$E$58,2,FALSE)=0,\"\",VLOOKUP(BW258,'Footnotes list'!$D$9:$E$58,2,FALSE) ) )","v":""},null,null,null,null,{"$f":"IF(TRIM(CB258)=\"\", \"\", IF(VLOOKUP(CB258,'Footnotes list'!$D$9:$E$58,2,FALSE)=0,\"\",VLOOKUP(CB258,'Footnotes list'!$D$9:$E$58,2,FALSE) ) )","v":""},null,null,null,null,{"$f":"IF(TRIM(CG258)=\"\", \"\", IF(VLOOKUP(CG258,'Footnotes list'!$D$9:$E$58,2,FALSE)=0,\"\",VLOOKUP(CG258,'Footnotes list'!$D$9:$E$58,2,FALSE) ) )","v":""},null,null,null,null,{"$f":"IF(TRIM(CL258)=\"\", \"\", IF(VLOOKUP(CL258,'Footnotes list'!$D$9:$E$58,2,FALSE)=0,\"\",VLOOKUP(CL258,'Footnotes list'!$D$9:$E$58,2,FALSE) ) )","v":""},null,null,null,null,{"$f":"IF(TRIM(CQ258)=\"\", \"\", IF(VLOOKUP(CQ258,'Footnotes list'!$D$9:$E$58,2,FALSE)=0,\"\",VLOOKUP(CQ258,'Footnotes list'!$D$9:$E$58,2,FALSE) ) )","v":""},null,null,null,null,{"$f":"IF(TRIM(CV258)=\"\", \"\", IF(VLOOKUP(CV258,'Footnotes list'!$D$9:$E$58,2,FALSE)=0,\"\",VLOOKUP(CV258,'Footnotes list'!$D$9:$E$58,2,FALSE) ) )","v":""},null,null,null,null,{"$f":"IF(TRIM(DA258)=\"\", \"\", IF(VLOOKUP(DA258,'Footnotes list'!$D$9:$E$58,2,FALSE)=0,\"\",VLOOKUP(DA258,'Footnotes list'!$D$9:$E$58,2,FALSE) ) )","v":""},null,null,null,null,{"$f":"IF(TRIM(DF258)=\"\", \"\", IF(VLOOKUP(DF258,'Footnotes list'!$D$9:$E$58,2,FALSE)=0,\"\",VLOOKUP(DF258,'Footnotes list'!$D$9:$E$58,2,FALSE) ) )","v":""},null,null,null,null,{"$f":"IF(TRIM(DK258)=\"\", \"\", IF(VLOOKUP(DK258,'Footnotes list'!$D$9:$E$58,2,FALSE)=0,\"\",VLOOKUP(DK258,'Footnotes list'!$D$9:$E$58,2,FALSE) ) )","v":""},null,null,null,null,{"$f":"IF(TRIM(DP258)=\"\", \"\", IF(VLOOKUP(DP258,'Footnotes list'!$D$9:$E$58,2,FALSE)=0,\"\",VLOOKUP(DP258,'Footnotes list'!$D$9:$E$58,2,FALSE) ) )","v":""},null,null,null,null,{"$f":"IF(TRIM(DU258)=\"\", \"\", IF(VLOOKUP(DU258,'Footnotes list'!$D$9:$E$58,2,FALSE)=0,\"\",VLOOKUP(DU258,'Footnotes list'!$D$9:$E$58,2,FALSE) ) )","v":""},null,null,null,null,{"$f":"IF(TRIM(DZ258)=\"\", \"\", IF(VLOOKUP(DZ258,'Footnotes list'!$D$9:$E$58,2,FALSE)=0,\"\",VLOOKUP(DZ258,'Footnotes list'!$D$9:$E$58,2,FALSE) ) )","v":""},null,null,null,null,{"$f":"IF(TRIM(EE258)=\"\", \"\", IF(VLOOKUP(EE258,'Footnotes list'!$D$9:$E$58,2,FALSE)=0,\"\",VLOOKUP(EE258,'Footnotes list'!$D$9:$E$58,2,FALSE) ) )","v":""},null,null,null,null,{"$f":"IF(TRIM(EJ258)=\"\", \"\", IF(VLOOKUP(EJ258,'Footnotes list'!$D$9:$E$58,2,FALSE)=0,\"\",VLOOKUP(EJ258,'Footnotes list'!$D$9:$E$58,2,FALSE) ) )","v":""},null,null,null,null,{"$f":"IF(TRIM(EO258)=\"\", \"\", IF(VLOOKUP(EO258,'Footnotes list'!$D$9:$E$58,2,FALSE)=0,\"\",VLOOKUP(EO258,'Footnotes list'!$D$9:$E$58,2,FALSE) ) )","v":""},null,null,null,null,{"$f":"IF(TRIM(ET258)=\"\", \"\", IF(VLOOKUP(ET258,'Footnotes list'!$D$9:$E$58,2,FALSE)=0,\"\",VLOOKUP(ET258,'Footnotes list'!$D$9:$E$58,2,FALSE) ) )","v":""},null,null,null,null,{"$f":"IF(TRIM(EY258)=\"\", \"\", IF(VLOOKUP(EY258,'Footnotes list'!$D$9:$E$58,2,FALSE)=0,\"\",VLOOKUP(EY258,'Footnotes list'!$D$9:$E$58,2,FALSE) ) )","v":""}]
[null,null,"N","C_REP","cleaner and resource efficient products",null,null,null,null,null,{"$f":"IF(TRIM(J259)=\"\", \"\", IF(VLOOKUP(J259,'Footnotes list'!$D$9:$E$58,2,FALSE)=0,\"\",VLOOKUP(J259,'Footnotes list'!$D$9:$E$58,2,FALSE) ) )","v":""},null,null,null,null,{"$f":"IF(TRIM(O259)=\"\", \"\", IF(VLOOKUP(O259,'Footnotes list'!$D$9:$E$58,2,FALSE)=0,\"\",VLOOKUP(O259,'Footnotes list'!$D$9:$E$58,2,FALSE) ) )","v":""},null,null,null,null,{"$f":"IF(TRIM(T259)=\"\", \"\", IF(VLOOKUP(T259,'Footnotes list'!$D$9:$E$58,2,FALSE)=0,\"\",VLOOKUP(T259,'Footnotes list'!$D$9:$E$58,2,FALSE) ) )","v":""},null,null,null,null,{"$f":"IF(TRIM(Y259)=\"\", \"\", IF(VLOOKUP(Y259,'Footnotes list'!$D$9:$E$58,2,FALSE)=0,\"\",VLOOKUP(Y259,'Footnotes list'!$D$9:$E$58,2,FALSE) ) )","v":""},null,null,null,null,{"$f":"IF(TRIM(AD259)=\"\", \"\", IF(VLOOKUP(AD259,'Footnotes list'!$D$9:$E$58,2,FALSE)=0,\"\",VLOOKUP(AD259,'Footnotes list'!$D$9:$E$58,2,FALSE) ) )","v":""},null,null,null,null,{"$f":"IF(TRIM(AI259)=\"\", \"\", IF(VLOOKUP(AI259,'Footnotes list'!$D$9:$E$58,2,FALSE)=0,\"\",VLOOKUP(AI259,'Footnotes list'!$D$9:$E$58,2,FALSE) ) )","v":""},null,null,null,null,{"$f":"IF(TRIM(AN259)=\"\", \"\", IF(VLOOKUP(AN259,'Footnotes list'!$D$9:$E$58,2,FALSE)=0,\"\",VLOOKUP(AN259,'Footnotes list'!$D$9:$E$58,2,FALSE) ) )","v":""},null,null,null,null,{"$f":"IF(TRIM(AS259)=\"\", \"\", IF(VLOOKUP(AS259,'Footnotes list'!$D$9:$E$58,2,FALSE)=0,\"\",VLOOKUP(AS259,'Footnotes list'!$D$9:$E$58,2,FALSE) ) )","v":""},null,null,null,null,{"$f":"IF(TRIM(AX259)=\"\", \"\", IF(VLOOKUP(AX259,'Footnotes list'!$D$9:$E$58,2,FALSE)=0,\"\",VLOOKUP(AX259,'Footnotes list'!$D$9:$E$58,2,FALSE) ) )","v":""},null,null,null,null,{"$f":"IF(TRIM(BC259)=\"\", \"\", IF(VLOOKUP(BC259,'Footnotes list'!$D$9:$E$58,2,FALSE)=0,\"\",VLOOKUP(BC259,'Footnotes list'!$D$9:$E$58,2,FALSE) ) )","v":""},null,null,null,null,{"$f":"IF(TRIM(BH259)=\"\", \"\", IF(VLOOKUP(BH259,'Footnotes list'!$D$9:$E$58,2,FALSE)=0,\"\",VLOOKUP(BH259,'Footnotes list'!$D$9:$E$58,2,FALSE) ) )","v":""},null,null,null,null,{"$f":"IF(TRIM(BM259)=\"\", \"\", IF(VLOOKUP(BM259,'Footnotes list'!$D$9:$E$58,2,FALSE)=0,\"\",VLOOKUP(BM259,'Footnotes list'!$D$9:$E$58,2,FALSE) ) )","v":""},null,null,null,null,{"$f":"IF(TRIM(BR259)=\"\", \"\", IF(VLOOKUP(BR259,'Footnotes list'!$D$9:$E$58,2,FALSE)=0,\"\",VLOOKUP(BR259,'Footnotes list'!$D$9:$E$58,2,FALSE) ) )","v":""},null,null,null,null,{"$f":"IF(TRIM(BW259)=\"\", \"\", IF(VLOOKUP(BW259,'Footnotes list'!$D$9:$E$58,2,FALSE)=0,\"\",VLOOKUP(BW259,'Footnotes list'!$D$9:$E$58,2,FALSE) ) )","v":""},null,null,null,null,{"$f":"IF(TRIM(CB259)=\"\", \"\", IF(VLOOKUP(CB259,'Footnotes list'!$D$9:$E$58,2,FALSE)=0,\"\",VLOOKUP(CB259,'Footnotes list'!$D$9:$E$58,2,FALSE) ) )","v":""},null,null,null,null,{"$f":"IF(TRIM(CG259)=\"\", \"\", IF(VLOOKUP(CG259,'Footnotes list'!$D$9:$E$58,2,FALSE)=0,\"\",VLOOKUP(CG259,'Footnotes list'!$D$9:$E$58,2,FALSE) ) )","v":""},null,null,null,null,{"$f":"IF(TRIM(CL259)=\"\", \"\", IF(VLOOKUP(CL259,'Footnotes list'!$D$9:$E$58,2,FALSE)=0,\"\",VLOOKUP(CL259,'Footnotes list'!$D$9:$E$58,2,FALSE) ) )","v":""},null,null,null,null,{"$f":"IF(TRIM(CQ259)=\"\", \"\", IF(VLOOKUP(CQ259,'Footnotes list'!$D$9:$E$58,2,FALSE)=0,\"\",VLOOKUP(CQ259,'Footnotes list'!$D$9:$E$58,2,FALSE) ) )","v":""},null,null,null,null,{"$f":"IF(TRIM(CV259)=\"\", \"\", IF(VLOOKUP(CV259,'Footnotes list'!$D$9:$E$58,2,FALSE)=0,\"\",VLOOKUP(CV259,'Footnotes list'!$D$9:$E$58,2,FALSE) ) )","v":""},null,null,null,null,{"$f":"IF(TRIM(DA259)=\"\", \"\", IF(VLOOKUP(DA259,'Footnotes list'!$D$9:$E$58,2,FALSE)=0,\"\",VLOOKUP(DA259,'Footnotes list'!$D$9:$E$58,2,FALSE) ) )","v":""},null,null,null,null,{"$f":"IF(TRIM(DF259)=\"\", \"\", IF(VLOOKUP(DF259,'Footnotes list'!$D$9:$E$58,2,FALSE)=0,\"\",VLOOKUP(DF259,'Footnotes list'!$D$9:$E$58,2,FALSE) ) )","v":""},null,null,null,null,{"$f":"IF(TRIM(DK259)=\"\", \"\", IF(VLOOKUP(DK259,'Footnotes list'!$D$9:$E$58,2,FALSE)=0,\"\",VLOOKUP(DK259,'Footnotes list'!$D$9:$E$58,2,FALSE) ) )","v":""},null,null,null,null,{"$f":"IF(TRIM(DP259)=\"\", \"\", IF(VLOOKUP(DP259,'Footnotes list'!$D$9:$E$58,2,FALSE)=0,\"\",VLOOKUP(DP259,'Footnotes list'!$D$9:$E$58,2,FALSE) ) )","v":""},null,null,null,null,{"$f":"IF(TRIM(DU259)=\"\", \"\", IF(VLOOKUP(DU259,'Footnotes list'!$D$9:$E$58,2,FALSE)=0,\"\",VLOOKUP(DU259,'Footnotes list'!$D$9:$E$58,2,FALSE) ) )","v":""},null,null,null,null,{"$f":"IF(TRIM(DZ259)=\"\", \"\", IF(VLOOKUP(DZ259,'Footnotes list'!$D$9:$E$58,2,FALSE)=0,\"\",VLOOKUP(DZ259,'Footnotes list'!$D$9:$E$58,2,FALSE) ) )","v":""},null,null,null,null,{"$f":"IF(TRIM(EE259)=\"\", \"\", IF(VLOOKUP(EE259,'Footnotes list'!$D$9:$E$58,2,FALSE)=0,\"\",VLOOKUP(EE259,'Footnotes list'!$D$9:$E$58,2,FALSE) ) )","v":""},null,null,null,null,{"$f":"IF(TRIM(EJ259)=\"\", \"\", IF(VLOOKUP(EJ259,'Footnotes list'!$D$9:$E$58,2,FALSE)=0,\"\",VLOOKUP(EJ259,'Footnotes list'!$D$9:$E$58,2,FALSE) ) )","v":""},null,null,null,null,{"$f":"IF(TRIM(EO259)=\"\", \"\", IF(VLOOKUP(EO259,'Footnotes list'!$D$9:$E$58,2,FALSE)=0,\"\",VLOOKUP(EO259,'Footnotes list'!$D$9:$E$58,2,FALSE) ) )","v":""},null,null,null,null,{"$f":"IF(TRIM(ET259)=\"\", \"\", IF(VLOOKUP(ET259,'Footnotes list'!$D$9:$E$58,2,FALSE)=0,\"\",VLOOKUP(ET259,'Footnotes list'!$D$9:$E$58,2,FALSE) ) )","v":""},null,null,null,null,{"$f":"IF(TRIM(EY259)=\"\", \"\", IF(VLOOKUP(EY259,'Footnotes list'!$D$9:$E$58,2,FALSE)=0,\"\",VLOOKUP(EY259,'Footnotes list'!$D$9:$E$58,2,FALSE) ) )","v":""}]
[null,null,"O","TOT_EGSS","Total O - Public administration and defence, compulsory social security, of which:",null,null,null,null,null,{"$f":"IF(TRIM(J260)=\"\", \"\", IF(VLOOKUP(J260,'Footnotes list'!$D$9:$E$58,2,FALSE)=0,\"\",VLOOKUP(J260,'Footnotes list'!$D$9:$E$58,2,FALSE) ) )","v":""},null,null,null,null,{"$f":"IF(TRIM(O260)=\"\", \"\", IF(VLOOKUP(O260,'Footnotes list'!$D$9:$E$58,2,FALSE)=0,\"\",VLOOKUP(O260,'Footnotes list'!$D$9:$E$58,2,FALSE) ) )","v":""},null,null,null,null,{"$f":"IF(TRIM(T260)=\"\", \"\", IF(VLOOKUP(T260,'Footnotes list'!$D$9:$E$58,2,FALSE)=0,\"\",VLOOKUP(T260,'Footnotes list'!$D$9:$E$58,2,FALSE) ) )","v":""},null,null,null,null,{"$f":"IF(TRIM(Y260)=\"\", \"\", IF(VLOOKUP(Y260,'Footnotes list'!$D$9:$E$58,2,FALSE)=0,\"\",VLOOKUP(Y260,'Footnotes list'!$D$9:$E$58,2,FALSE) ) )","v":""},null,null,null,null,{"$f":"IF(TRIM(AD260)=\"\", \"\", IF(VLOOKUP(AD260,'Footnotes list'!$D$9:$E$58,2,FALSE)=0,\"\",VLOOKUP(AD260,'Footnotes list'!$D$9:$E$58,2,FALSE) ) )","v":""},null,null,null,null,{"$f":"IF(TRIM(AI260)=\"\", \"\", IF(VLOOKUP(AI260,'Footnotes list'!$D$9:$E$58,2,FALSE)=0,\"\",VLOOKUP(AI260,'Footnotes list'!$D$9:$E$58,2,FALSE) ) )","v":""},null,null,null,null,{"$f":"IF(TRIM(AN260)=\"\", \"\", IF(VLOOKUP(AN260,'Footnotes list'!$D$9:$E$58,2,FALSE)=0,\"\",VLOOKUP(AN260,'Footnotes list'!$D$9:$E$58,2,FALSE) ) )","v":""},null,null,null,null,{"$f":"IF(TRIM(AS260)=\"\", \"\", IF(VLOOKUP(AS260,'Footnotes list'!$D$9:$E$58,2,FALSE)=0,\"\",VLOOKUP(AS260,'Footnotes list'!$D$9:$E$58,2,FALSE) ) )","v":""},null,null,null,null,{"$f":"IF(TRIM(AX260)=\"\", \"\", IF(VLOOKUP(AX260,'Footnotes list'!$D$9:$E$58,2,FALSE)=0,\"\",VLOOKUP(AX260,'Footnotes list'!$D$9:$E$58,2,FALSE) ) )","v":""},null,null,null,null,{"$f":"IF(TRIM(BC260)=\"\", \"\", IF(VLOOKUP(BC260,'Footnotes list'!$D$9:$E$58,2,FALSE)=0,\"\",VLOOKUP(BC260,'Footnotes list'!$D$9:$E$58,2,FALSE) ) )","v":""},null,null,null,null,{"$f":"IF(TRIM(BH260)=\"\", \"\", IF(VLOOKUP(BH260,'Footnotes list'!$D$9:$E$58,2,FALSE)=0,\"\",VLOOKUP(BH260,'Footnotes list'!$D$9:$E$58,2,FALSE) ) )","v":""},null,null,null,null,{"$f":"IF(TRIM(BM260)=\"\", \"\", IF(VLOOKUP(BM260,'Footnotes list'!$D$9:$E$58,2,FALSE)=0,\"\",VLOOKUP(BM260,'Footnotes list'!$D$9:$E$58,2,FALSE) ) )","v":""},null,null,null,null,{"$f":"IF(TRIM(BR260)=\"\", \"\", IF(VLOOKUP(BR260,'Footnotes list'!$D$9:$E$58,2,FALSE)=0,\"\",VLOOKUP(BR260,'Footnotes list'!$D$9:$E$58,2,FALSE) ) )","v":""},null,null,null,null,{"$f":"IF(TRIM(BW260)=\"\", \"\", IF(VLOOKUP(BW260,'Footnotes list'!$D$9:$E$58,2,FALSE)=0,\"\",VLOOKUP(BW260,'Footnotes list'!$D$9:$E$58,2,FALSE) ) )","v":""},null,null,null,null,{"$f":"IF(TRIM(CB260)=\"\", \"\", IF(VLOOKUP(CB260,'Footnotes list'!$D$9:$E$58,2,FALSE)=0,\"\",VLOOKUP(CB260,'Footnotes list'!$D$9:$E$58,2,FALSE) ) )","v":""},null,null,null,null,{"$f":"IF(TRIM(CG260)=\"\", \"\", IF(VLOOKUP(CG260,'Footnotes list'!$D$9:$E$58,2,FALSE)=0,\"\",VLOOKUP(CG260,'Footnotes list'!$D$9:$E$58,2,FALSE) ) )","v":""},null,null,null,null,{"$f":"IF(TRIM(CL260)=\"\", \"\", IF(VLOOKUP(CL260,'Footnotes list'!$D$9:$E$58,2,FALSE)=0,\"\",VLOOKUP(CL260,'Footnotes list'!$D$9:$E$58,2,FALSE) ) )","v":""},null,null,null,null,{"$f":"IF(TRIM(CQ260)=\"\", \"\", IF(VLOOKUP(CQ260,'Footnotes list'!$D$9:$E$58,2,FALSE)=0,\"\",VLOOKUP(CQ260,'Footnotes list'!$D$9:$E$58,2,FALSE) ) )","v":""},null,null,null,null,{"$f":"IF(TRIM(CV260)=\"\", \"\", IF(VLOOKUP(CV260,'Footnotes list'!$D$9:$E$58,2,FALSE)=0,\"\",VLOOKUP(CV260,'Footnotes list'!$D$9:$E$58,2,FALSE) ) )","v":""},null,null,null,null,{"$f":"IF(TRIM(DA260)=\"\", \"\", IF(VLOOKUP(DA260,'Footnotes list'!$D$9:$E$58,2,FALSE)=0,\"\",VLOOKUP(DA260,'Footnotes list'!$D$9:$E$58,2,FALSE) ) )","v":""},null,null,null,null,{"$f":"IF(TRIM(DF260)=\"\", \"\", IF(VLOOKUP(DF260,'Footnotes list'!$D$9:$E$58,2,FALSE)=0,\"\",VLOOKUP(DF260,'Footnotes list'!$D$9:$E$58,2,FALSE) ) )","v":""},null,null,null,null,{"$f":"IF(TRIM(DK260)=\"\", \"\", IF(VLOOKUP(DK260,'Footnotes list'!$D$9:$E$58,2,FALSE)=0,\"\",VLOOKUP(DK260,'Footnotes list'!$D$9:$E$58,2,FALSE) ) )","v":""},null,null,null,null,{"$f":"IF(TRIM(DP260)=\"\", \"\", IF(VLOOKUP(DP260,'Footnotes list'!$D$9:$E$58,2,FALSE)=0,\"\",VLOOKUP(DP260,'Footnotes list'!$D$9:$E$58,2,FALSE) ) )","v":""},null,null,null,null,{"$f":"IF(TRIM(DU260)=\"\", \"\", IF(VLOOKUP(DU260,'Footnotes list'!$D$9:$E$58,2,FALSE)=0,\"\",VLOOKUP(DU260,'Footnotes list'!$D$9:$E$58,2,FALSE) ) )","v":""},null,null,null,null,{"$f":"IF(TRIM(DZ260)=\"\", \"\", IF(VLOOKUP(DZ260,'Footnotes list'!$D$9:$E$58,2,FALSE)=0,\"\",VLOOKUP(DZ260,'Footnotes list'!$D$9:$E$58,2,FALSE) ) )","v":""},null,null,null,null,{"$f":"IF(TRIM(EE260)=\"\", \"\", IF(VLOOKUP(EE260,'Footnotes list'!$D$9:$E$58,2,FALSE)=0,\"\",VLOOKUP(EE260,'Footnotes list'!$D$9:$E$58,2,FALSE) ) )","v":""},null,null,null,null,{"$f":"IF(TRIM(EJ260)=\"\", \"\", IF(VLOOKUP(EJ260,'Footnotes list'!$D$9:$E$58,2,FALSE)=0,\"\",VLOOKUP(EJ260,'Footnotes list'!$D$9:$E$58,2,FALSE) ) )","v":""},null,null,null,null,{"$f":"IF(TRIM(EO260)=\"\", \"\", IF(VLOOKUP(EO260,'Footnotes list'!$D$9:$E$58,2,FALSE)=0,\"\",VLOOKUP(EO260,'Footnotes list'!$D$9:$E$58,2,FALSE) ) )","v":""},null,null,null,null,{"$f":"IF(TRIM(ET260)=\"\", \"\", IF(VLOOKUP(ET260,'Footnotes list'!$D$9:$E$58,2,FALSE)=0,\"\",VLOOKUP(ET260,'Footnotes list'!$D$9:$E$58,2,FALSE) ) )","v":""},null,null,null,null,{"$f":"IF(TRIM(EY260)=\"\", \"\", IF(VLOOKUP(EY260,'Footnotes list'!$D$9:$E$58,2,FALSE)=0,\"\",VLOOKUP(EY260,'Footnotes list'!$D$9:$E$58,2,FALSE) ) )","v":""}]
[null,null,"O","ANC","ancillary activities",null,null,null,null,null,{"$f":"IF(TRIM(J261)=\"\", \"\", IF(VLOOKUP(J261,'Footnotes list'!$D$9:$E$58,2,FALSE)=0,\"\",VLOOKUP(J261,'Footnotes list'!$D$9:$E$58,2,FALSE) ) )","v":""},null,null,null,null,{"$f":"IF(TRIM(O261)=\"\", \"\", IF(VLOOKUP(O261,'Footnotes list'!$D$9:$E$58,2,FALSE)=0,\"\",VLOOKUP(O261,'Footnotes list'!$D$9:$E$58,2,FALSE) ) )","v":""},null,null,null,null,{"$f":"IF(TRIM(T261)=\"\", \"\", IF(VLOOKUP(T261,'Footnotes list'!$D$9:$E$58,2,FALSE)=0,\"\",VLOOKUP(T261,'Footnotes list'!$D$9:$E$58,2,FALSE) ) )","v":""},null,null,null,null,{"$f":"IF(TRIM(Y261)=\"\", \"\", IF(VLOOKUP(Y261,'Footnotes list'!$D$9:$E$58,2,FALSE)=0,\"\",VLOOKUP(Y261,'Footnotes list'!$D$9:$E$58,2,FALSE) ) )","v":""},null,null,null,null,{"$f":"IF(TRIM(AD261)=\"\", \"\", IF(VLOOKUP(AD261,'Footnotes list'!$D$9:$E$58,2,FALSE)=0,\"\",VLOOKUP(AD261,'Footnotes list'!$D$9:$E$58,2,FALSE) ) )","v":""},null,null,null,null,{"$f":"IF(TRIM(AI261)=\"\", \"\", IF(VLOOKUP(AI261,'Footnotes list'!$D$9:$E$58,2,FALSE)=0,\"\",VLOOKUP(AI261,'Footnotes list'!$D$9:$E$58,2,FALSE) ) )","v":""},null,null,null,null,{"$f":"IF(TRIM(AN261)=\"\", \"\", IF(VLOOKUP(AN261,'Footnotes list'!$D$9:$E$58,2,FALSE)=0,\"\",VLOOKUP(AN261,'Footnotes list'!$D$9:$E$58,2,FALSE) ) )","v":""},null,null,null,null,{"$f":"IF(TRIM(AS261)=\"\", \"\", IF(VLOOKUP(AS261,'Footnotes list'!$D$9:$E$58,2,FALSE)=0,\"\",VLOOKUP(AS261,'Footnotes list'!$D$9:$E$58,2,FALSE) ) )","v":""},null,null,null,null,{"$f":"IF(TRIM(AX261)=\"\", \"\", IF(VLOOKUP(AX261,'Footnotes list'!$D$9:$E$58,2,FALSE)=0,\"\",VLOOKUP(AX261,'Footnotes list'!$D$9:$E$58,2,FALSE) ) )","v":""},null,null,null,null,{"$f":"IF(TRIM(BC261)=\"\", \"\", IF(VLOOKUP(BC261,'Footnotes list'!$D$9:$E$58,2,FALSE)=0,\"\",VLOOKUP(BC261,'Footnotes list'!$D$9:$E$58,2,FALSE) ) )","v":""},null,null,null,null,{"$f":"IF(TRIM(BH261)=\"\", \"\", IF(VLOOKUP(BH261,'Footnotes list'!$D$9:$E$58,2,FALSE)=0,\"\",VLOOKUP(BH261,'Footnotes list'!$D$9:$E$58,2,FALSE) ) )","v":""},null,null,null,null,{"$f":"IF(TRIM(BM261)=\"\", \"\", IF(VLOOKUP(BM261,'Footnotes list'!$D$9:$E$58,2,FALSE)=0,\"\",VLOOKUP(BM261,'Footnotes list'!$D$9:$E$58,2,FALSE) ) )","v":""},null,null,null,null,{"$f":"IF(TRIM(BR261)=\"\", \"\", IF(VLOOKUP(BR261,'Footnotes list'!$D$9:$E$58,2,FALSE)=0,\"\",VLOOKUP(BR261,'Footnotes list'!$D$9:$E$58,2,FALSE) ) )","v":""},null,null,null,null,{"$f":"IF(TRIM(BW261)=\"\", \"\", IF(VLOOKUP(BW261,'Footnotes list'!$D$9:$E$58,2,FALSE)=0,\"\",VLOOKUP(BW261,'Footnotes list'!$D$9:$E$58,2,FALSE) ) )","v":""},null,null,null,null,{"$f":"IF(TRIM(CB261)=\"\", \"\", IF(VLOOKUP(CB261,'Footnotes list'!$D$9:$E$58,2,FALSE)=0,\"\",VLOOKUP(CB261,'Footnotes list'!$D$9:$E$58,2,FALSE) ) )","v":""},null,null,null,null,{"$f":"IF(TRIM(CG261)=\"\", \"\", IF(VLOOKUP(CG261,'Footnotes list'!$D$9:$E$58,2,FALSE)=0,\"\",VLOOKUP(CG261,'Footnotes list'!$D$9:$E$58,2,FALSE) ) )","v":""},null,null,null,null,{"$f":"IF(TRIM(CL261)=\"\", \"\", IF(VLOOKUP(CL261,'Footnotes list'!$D$9:$E$58,2,FALSE)=0,\"\",VLOOKUP(CL261,'Footnotes list'!$D$9:$E$58,2,FALSE) ) )","v":""},null,null,null,null,{"$f":"IF(TRIM(CQ261)=\"\", \"\", IF(VLOOKUP(CQ261,'Footnotes list'!$D$9:$E$58,2,FALSE)=0,\"\",VLOOKUP(CQ261,'Footnotes list'!$D$9:$E$58,2,FALSE) ) )","v":""},null,null,null,null,{"$f":"IF(TRIM(CV261)=\"\", \"\", IF(VLOOKUP(CV261,'Footnotes list'!$D$9:$E$58,2,FALSE)=0,\"\",VLOOKUP(CV261,'Footnotes list'!$D$9:$E$58,2,FALSE) ) )","v":""},null,null,null,null,{"$f":"IF(TRIM(DA261)=\"\", \"\", IF(VLOOKUP(DA261,'Footnotes list'!$D$9:$E$58,2,FALSE)=0,\"\",VLOOKUP(DA261,'Footnotes list'!$D$9:$E$58,2,FALSE) ) )","v":""},null,null,null,null,{"$f":"IF(TRIM(DF261)=\"\", \"\", IF(VLOOKUP(DF261,'Footnotes list'!$D$9:$E$58,2,FALSE)=0,\"\",VLOOKUP(DF261,'Footnotes list'!$D$9:$E$58,2,FALSE) ) )","v":""},null,null,null,null,{"$f":"IF(TRIM(DK261)=\"\", \"\", IF(VLOOKUP(DK261,'Footnotes list'!$D$9:$E$58,2,FALSE)=0,\"\",VLOOKUP(DK261,'Footnotes list'!$D$9:$E$58,2,FALSE) ) )","v":""},null,null,null,null,{"$f":"IF(TRIM(DP261)=\"\", \"\", IF(VLOOKUP(DP261,'Footnotes list'!$D$9:$E$58,2,FALSE)=0,\"\",VLOOKUP(DP261,'Footnotes list'!$D$9:$E$58,2,FALSE) ) )","v":""},null,null,null,null,{"$f":"IF(TRIM(DU261)=\"\", \"\", IF(VLOOKUP(DU261,'Footnotes list'!$D$9:$E$58,2,FALSE)=0,\"\",VLOOKUP(DU261,'Footnotes list'!$D$9:$E$58,2,FALSE) ) )","v":""},null,null,null,null,{"$f":"IF(TRIM(DZ261)=\"\", \"\", IF(VLOOKUP(DZ261,'Footnotes list'!$D$9:$E$58,2,FALSE)=0,\"\",VLOOKUP(DZ261,'Footnotes list'!$D$9:$E$58,2,FALSE) ) )","v":""},null,null,null,null,{"$f":"IF(TRIM(EE261)=\"\", \"\", IF(VLOOKUP(EE261,'Footnotes list'!$D$9:$E$58,2,FALSE)=0,\"\",VLOOKUP(EE261,'Footnotes list'!$D$9:$E$58,2,FALSE) ) )","v":""},null,null,null,null,{"$f":"IF(TRIM(EJ261)=\"\", \"\", IF(VLOOKUP(EJ261,'Footnotes list'!$D$9:$E$58,2,FALSE)=0,\"\",VLOOKUP(EJ261,'Footnotes list'!$D$9:$E$58,2,FALSE) ) )","v":""},null,null,null,null,{"$f":"IF(TRIM(EO261)=\"\", \"\", IF(VLOOKUP(EO261,'Footnotes list'!$D$9:$E$58,2,FALSE)=0,\"\",VLOOKUP(EO261,'Footnotes list'!$D$9:$E$58,2,FALSE) ) )","v":""},null,null,null,null,{"$f":"IF(TRIM(ET261)=\"\", \"\", IF(VLOOKUP(ET261,'Footnotes list'!$D$9:$E$58,2,FALSE)=0,\"\",VLOOKUP(ET261,'Footnotes list'!$D$9:$E$58,2,FALSE) ) )","v":""},null,null,null,null,{"$f":"IF(TRIM(EY261)=\"\", \"\", IF(VLOOKUP(EY261,'Footnotes list'!$D$9:$E$58,2,FALSE)=0,\"\",VLOOKUP(EY261,'Footnotes list'!$D$9:$E$58,2,FALSE) ) )","v":""}]
[null,null,"O","NMKT","non-market activities",null,null,null,null,null,{"$f":"IF(TRIM(J262)=\"\", \"\", IF(VLOOKUP(J262,'Footnotes list'!$D$9:$E$58,2,FALSE)=0,\"\",VLOOKUP(J262,'Footnotes list'!$D$9:$E$58,2,FALSE) ) )","v":""},null,null,null,null,{"$f":"IF(TRIM(O262)=\"\", \"\", IF(VLOOKUP(O262,'Footnotes list'!$D$9:$E$58,2,FALSE)=0,\"\",VLOOKUP(O262,'Footnotes list'!$D$9:$E$58,2,FALSE) ) )","v":""},null,null,null,null,{"$f":"IF(TRIM(T262)=\"\", \"\", IF(VLOOKUP(T262,'Footnotes list'!$D$9:$E$58,2,FALSE)=0,\"\",VLOOKUP(T262,'Footnotes list'!$D$9:$E$58,2,FALSE) ) )","v":""},null,null,null,null,{"$f":"IF(TRIM(Y262)=\"\", \"\", IF(VLOOKUP(Y262,'Footnotes list'!$D$9:$E$58,2,FALSE)=0,\"\",VLOOKUP(Y262,'Footnotes list'!$D$9:$E$58,2,FALSE) ) )","v":""},null,null,null,null,{"$f":"IF(TRIM(AD262)=\"\", \"\", IF(VLOOKUP(AD262,'Footnotes list'!$D$9:$E$58,2,FALSE)=0,\"\",VLOOKUP(AD262,'Footnotes list'!$D$9:$E$58,2,FALSE) ) )","v":""},null,null,null,null,{"$f":"IF(TRIM(AI262)=\"\", \"\", IF(VLOOKUP(AI262,'Footnotes list'!$D$9:$E$58,2,FALSE)=0,\"\",VLOOKUP(AI262,'Footnotes list'!$D$9:$E$58,2,FALSE) ) )","v":""},null,null,null,null,{"$f":"IF(TRIM(AN262)=\"\", \"\", IF(VLOOKUP(AN262,'Footnotes list'!$D$9:$E$58,2,FALSE)=0,\"\",VLOOKUP(AN262,'Footnotes list'!$D$9:$E$58,2,FALSE) ) )","v":""},null,null,null,null,{"$f":"IF(TRIM(AS262)=\"\", \"\", IF(VLOOKUP(AS262,'Footnotes list'!$D$9:$E$58,2,FALSE)=0,\"\",VLOOKUP(AS262,'Footnotes list'!$D$9:$E$58,2,FALSE) ) )","v":""},null,null,null,null,{"$f":"IF(TRIM(AX262)=\"\", \"\", IF(VLOOKUP(AX262,'Footnotes list'!$D$9:$E$58,2,FALSE)=0,\"\",VLOOKUP(AX262,'Footnotes list'!$D$9:$E$58,2,FALSE) ) )","v":""},null,null,null,null,{"$f":"IF(TRIM(BC262)=\"\", \"\", IF(VLOOKUP(BC262,'Footnotes list'!$D$9:$E$58,2,FALSE)=0,\"\",VLOOKUP(BC262,'Footnotes list'!$D$9:$E$58,2,FALSE) ) )","v":""},null,null,null,null,{"$f":"IF(TRIM(BH262)=\"\", \"\", IF(VLOOKUP(BH262,'Footnotes list'!$D$9:$E$58,2,FALSE)=0,\"\",VLOOKUP(BH262,'Footnotes list'!$D$9:$E$58,2,FALSE) ) )","v":""},null,null,null,null,{"$f":"IF(TRIM(BM262)=\"\", \"\", IF(VLOOKUP(BM262,'Footnotes list'!$D$9:$E$58,2,FALSE)=0,\"\",VLOOKUP(BM262,'Footnotes list'!$D$9:$E$58,2,FALSE) ) )","v":""},null,null,null,null,{"$f":"IF(TRIM(BR262)=\"\", \"\", IF(VLOOKUP(BR262,'Footnotes list'!$D$9:$E$58,2,FALSE)=0,\"\",VLOOKUP(BR262,'Footnotes list'!$D$9:$E$58,2,FALSE) ) )","v":""},null,null,null,null,{"$f":"IF(TRIM(BW262)=\"\", \"\", IF(VLOOKUP(BW262,'Footnotes list'!$D$9:$E$58,2,FALSE)=0,\"\",VLOOKUP(BW262,'Footnotes list'!$D$9:$E$58,2,FALSE) ) )","v":""},null,null,null,null,{"$f":"IF(TRIM(CB262)=\"\", \"\", IF(VLOOKUP(CB262,'Footnotes list'!$D$9:$E$58,2,FALSE)=0,\"\",VLOOKUP(CB262,'Footnotes list'!$D$9:$E$58,2,FALSE) ) )","v":""},null,null,null,null,{"$f":"IF(TRIM(CG262)=\"\", \"\", IF(VLOOKUP(CG262,'Footnotes list'!$D$9:$E$58,2,FALSE)=0,\"\",VLOOKUP(CG262,'Footnotes list'!$D$9:$E$58,2,FALSE) ) )","v":""},null,null,null,null,{"$f":"IF(TRIM(CL262)=\"\", \"\", IF(VLOOKUP(CL262,'Footnotes list'!$D$9:$E$58,2,FALSE)=0,\"\",VLOOKUP(CL262,'Footnotes list'!$D$9:$E$58,2,FALSE) ) )","v":""},null,null,null,null,{"$f":"IF(TRIM(CQ262)=\"\", \"\", IF(VLOOKUP(CQ262,'Footnotes list'!$D$9:$E$58,2,FALSE)=0,\"\",VLOOKUP(CQ262,'Footnotes list'!$D$9:$E$58,2,FALSE) ) )","v":""},null,null,null,null,{"$f":"IF(TRIM(CV262)=\"\", \"\", IF(VLOOKUP(CV262,'Footnotes list'!$D$9:$E$58,2,FALSE)=0,\"\",VLOOKUP(CV262,'Footnotes list'!$D$9:$E$58,2,FALSE) ) )","v":""},null,null,null,null,{"$f":"IF(TRIM(DA262)=\"\", \"\", IF(VLOOKUP(DA262,'Footnotes list'!$D$9:$E$58,2,FALSE)=0,\"\",VLOOKUP(DA262,'Footnotes list'!$D$9:$E$58,2,FALSE) ) )","v":""},null,null,null,null,{"$f":"IF(TRIM(DF262)=\"\", \"\", IF(VLOOKUP(DF262,'Footnotes list'!$D$9:$E$58,2,FALSE)=0,\"\",VLOOKUP(DF262,'Footnotes list'!$D$9:$E$58,2,FALSE) ) )","v":""},null,null,null,null,{"$f":"IF(TRIM(DK262)=\"\", \"\", IF(VLOOKUP(DK262,'Footnotes list'!$D$9:$E$58,2,FALSE)=0,\"\",VLOOKUP(DK262,'Footnotes list'!$D$9:$E$58,2,FALSE) ) )","v":""},null,null,null,null,{"$f":"IF(TRIM(DP262)=\"\", \"\", IF(VLOOKUP(DP262,'Footnotes list'!$D$9:$E$58,2,FALSE)=0,\"\",VLOOKUP(DP262,'Footnotes list'!$D$9:$E$58,2,FALSE) ) )","v":""},null,null,null,null,{"$f":"IF(TRIM(DU262)=\"\", \"\", IF(VLOOKUP(DU262,'Footnotes list'!$D$9:$E$58,2,FALSE)=0,\"\",VLOOKUP(DU262,'Footnotes list'!$D$9:$E$58,2,FALSE) ) )","v":""},null,null,null,null,{"$f":"IF(TRIM(DZ262)=\"\", \"\", IF(VLOOKUP(DZ262,'Footnotes list'!$D$9:$E$58,2,FALSE)=0,\"\",VLOOKUP(DZ262,'Footnotes list'!$D$9:$E$58,2,FALSE) ) )","v":""},null,null,null,null,{"$f":"IF(TRIM(EE262)=\"\", \"\", IF(VLOOKUP(EE262,'Footnotes list'!$D$9:$E$58,2,FALSE)=0,\"\",VLOOKUP(EE262,'Footnotes list'!$D$9:$E$58,2,FALSE) ) )","v":""},null,null,null,null,{"$f":"IF(TRIM(EJ262)=\"\", \"\", IF(VLOOKUP(EJ262,'Footnotes list'!$D$9:$E$58,2,FALSE)=0,\"\",VLOOKUP(EJ262,'Footnotes list'!$D$9:$E$58,2,FALSE) ) )","v":""},null,null,null,null,{"$f":"IF(TRIM(EO262)=\"\", \"\", IF(VLOOKUP(EO262,'Footnotes list'!$D$9:$E$58,2,FALSE)=0,\"\",VLOOKUP(EO262,'Footnotes list'!$D$9:$E$58,2,FALSE) ) )","v":""},null,null,null,null,{"$f":"IF(TRIM(ET262)=\"\", \"\", IF(VLOOKUP(ET262,'Footnotes list'!$D$9:$E$58,2,FALSE)=0,\"\",VLOOKUP(ET262,'Footnotes list'!$D$9:$E$58,2,FALSE) ) )","v":""},null,null,null,null,{"$f":"IF(TRIM(EY262)=\"\", \"\", IF(VLOOKUP(EY262,'Footnotes list'!$D$9:$E$58,2,FALSE)=0,\"\",VLOOKUP(EY262,'Footnotes list'!$D$9:$E$58,2,FALSE) ) )","v":""}]
[null,null,"O","OWN_USE","activities for own final use",null,null,null,null,null,{"$f":"IF(TRIM(J263)=\"\", \"\", IF(VLOOKUP(J263,'Footnotes list'!$D$9:$E$58,2,FALSE)=0,\"\",VLOOKUP(J263,'Footnotes list'!$D$9:$E$58,2,FALSE) ) )","v":""},null,null,null,null,{"$f":"IF(TRIM(O263)=\"\", \"\", IF(VLOOKUP(O263,'Footnotes list'!$D$9:$E$58,2,FALSE)=0,\"\",VLOOKUP(O263,'Footnotes list'!$D$9:$E$58,2,FALSE) ) )","v":""},null,null,null,null,{"$f":"IF(TRIM(T263)=\"\", \"\", IF(VLOOKUP(T263,'Footnotes list'!$D$9:$E$58,2,FALSE)=0,\"\",VLOOKUP(T263,'Footnotes list'!$D$9:$E$58,2,FALSE) ) )","v":""},null,null,null,null,{"$f":"IF(TRIM(Y263)=\"\", \"\", IF(VLOOKUP(Y263,'Footnotes list'!$D$9:$E$58,2,FALSE)=0,\"\",VLOOKUP(Y263,'Footnotes list'!$D$9:$E$58,2,FALSE) ) )","v":""},null,null,null,null,{"$f":"IF(TRIM(AD263)=\"\", \"\", IF(VLOOKUP(AD263,'Footnotes list'!$D$9:$E$58,2,FALSE)=0,\"\",VLOOKUP(AD263,'Footnotes list'!$D$9:$E$58,2,FALSE) ) )","v":""},null,null,null,null,{"$f":"IF(TRIM(AI263)=\"\", \"\", IF(VLOOKUP(AI263,'Footnotes list'!$D$9:$E$58,2,FALSE)=0,\"\",VLOOKUP(AI263,'Footnotes list'!$D$9:$E$58,2,FALSE) ) )","v":""},null,null,null,null,{"$f":"IF(TRIM(AN263)=\"\", \"\", IF(VLOOKUP(AN263,'Footnotes list'!$D$9:$E$58,2,FALSE)=0,\"\",VLOOKUP(AN263,'Footnotes list'!$D$9:$E$58,2,FALSE) ) )","v":""},null,null,null,null,{"$f":"IF(TRIM(AS263)=\"\", \"\", IF(VLOOKUP(AS263,'Footnotes list'!$D$9:$E$58,2,FALSE)=0,\"\",VLOOKUP(AS263,'Footnotes list'!$D$9:$E$58,2,FALSE) ) )","v":""},null,null,null,null,{"$f":"IF(TRIM(AX263)=\"\", \"\", IF(VLOOKUP(AX263,'Footnotes list'!$D$9:$E$58,2,FALSE)=0,\"\",VLOOKUP(AX263,'Footnotes list'!$D$9:$E$58,2,FALSE) ) )","v":""},null,null,null,null,{"$f":"IF(TRIM(BC263)=\"\", \"\", IF(VLOOKUP(BC263,'Footnotes list'!$D$9:$E$58,2,FALSE)=0,\"\",VLOOKUP(BC263,'Footnotes list'!$D$9:$E$58,2,FALSE) ) )","v":""},null,null,null,null,{"$f":"IF(TRIM(BH263)=\"\", \"\", IF(VLOOKUP(BH263,'Footnotes list'!$D$9:$E$58,2,FALSE)=0,\"\",VLOOKUP(BH263,'Footnotes list'!$D$9:$E$58,2,FALSE) ) )","v":""},null,null,null,null,{"$f":"IF(TRIM(BM263)=\"\", \"\", IF(VLOOKUP(BM263,'Footnotes list'!$D$9:$E$58,2,FALSE)=0,\"\",VLOOKUP(BM263,'Footnotes list'!$D$9:$E$58,2,FALSE) ) )","v":""},null,null,null,null,{"$f":"IF(TRIM(BR263)=\"\", \"\", IF(VLOOKUP(BR263,'Footnotes list'!$D$9:$E$58,2,FALSE)=0,\"\",VLOOKUP(BR263,'Footnotes list'!$D$9:$E$58,2,FALSE) ) )","v":""},null,null,null,null,{"$f":"IF(TRIM(BW263)=\"\", \"\", IF(VLOOKUP(BW263,'Footnotes list'!$D$9:$E$58,2,FALSE)=0,\"\",VLOOKUP(BW263,'Footnotes list'!$D$9:$E$58,2,FALSE) ) )","v":""},null,null,null,null,{"$f":"IF(TRIM(CB263)=\"\", \"\", IF(VLOOKUP(CB263,'Footnotes list'!$D$9:$E$58,2,FALSE)=0,\"\",VLOOKUP(CB263,'Footnotes list'!$D$9:$E$58,2,FALSE) ) )","v":""},null,null,null,null,{"$f":"IF(TRIM(CG263)=\"\", \"\", IF(VLOOKUP(CG263,'Footnotes list'!$D$9:$E$58,2,FALSE)=0,\"\",VLOOKUP(CG263,'Footnotes list'!$D$9:$E$58,2,FALSE) ) )","v":""},null,null,null,null,{"$f":"IF(TRIM(CL263)=\"\", \"\", IF(VLOOKUP(CL263,'Footnotes list'!$D$9:$E$58,2,FALSE)=0,\"\",VLOOKUP(CL263,'Footnotes list'!$D$9:$E$58,2,FALSE) ) )","v":""},null,null,null,null,{"$f":"IF(TRIM(CQ263)=\"\", \"\", IF(VLOOKUP(CQ263,'Footnotes list'!$D$9:$E$58,2,FALSE)=0,\"\",VLOOKUP(CQ263,'Footnotes list'!$D$9:$E$58,2,FALSE) ) )","v":""},null,null,null,null,{"$f":"IF(TRIM(CV263)=\"\", \"\", IF(VLOOKUP(CV263,'Footnotes list'!$D$9:$E$58,2,FALSE)=0,\"\",VLOOKUP(CV263,'Footnotes list'!$D$9:$E$58,2,FALSE) ) )","v":""},null,null,null,null,{"$f":"IF(TRIM(DA263)=\"\", \"\", IF(VLOOKUP(DA263,'Footnotes list'!$D$9:$E$58,2,FALSE)=0,\"\",VLOOKUP(DA263,'Footnotes list'!$D$9:$E$58,2,FALSE) ) )","v":""},null,null,null,null,{"$f":"IF(TRIM(DF263)=\"\", \"\", IF(VLOOKUP(DF263,'Footnotes list'!$D$9:$E$58,2,FALSE)=0,\"\",VLOOKUP(DF263,'Footnotes list'!$D$9:$E$58,2,FALSE) ) )","v":""},null,null,null,null,{"$f":"IF(TRIM(DK263)=\"\", \"\", IF(VLOOKUP(DK263,'Footnotes list'!$D$9:$E$58,2,FALSE)=0,\"\",VLOOKUP(DK263,'Footnotes list'!$D$9:$E$58,2,FALSE) ) )","v":""},null,null,null,null,{"$f":"IF(TRIM(DP263)=\"\", \"\", IF(VLOOKUP(DP263,'Footnotes list'!$D$9:$E$58,2,FALSE)=0,\"\",VLOOKUP(DP263,'Footnotes list'!$D$9:$E$58,2,FALSE) ) )","v":""},null,null,null,null,{"$f":"IF(TRIM(DU263)=\"\", \"\", IF(VLOOKUP(DU263,'Footnotes list'!$D$9:$E$58,2,FALSE)=0,\"\",VLOOKUP(DU263,'Footnotes list'!$D$9:$E$58,2,FALSE) ) )","v":""},null,null,null,null,{"$f":"IF(TRIM(DZ263)=\"\", \"\", IF(VLOOKUP(DZ263,'Footnotes list'!$D$9:$E$58,2,FALSE)=0,\"\",VLOOKUP(DZ263,'Footnotes list'!$D$9:$E$58,2,FALSE) ) )","v":""},null,null,null,null,{"$f":"IF(TRIM(EE263)=\"\", \"\", IF(VLOOKUP(EE263,'Footnotes list'!$D$9:$E$58,2,FALSE)=0,\"\",VLOOKUP(EE263,'Footnotes list'!$D$9:$E$58,2,FALSE) ) )","v":""},null,null,null,null,{"$f":"IF(TRIM(EJ263)=\"\", \"\", IF(VLOOKUP(EJ263,'Footnotes list'!$D$9:$E$58,2,FALSE)=0,\"\",VLOOKUP(EJ263,'Footnotes list'!$D$9:$E$58,2,FALSE) ) )","v":""},null,null,null,null,{"$f":"IF(TRIM(EO263)=\"\", \"\", IF(VLOOKUP(EO263,'Footnotes list'!$D$9:$E$58,2,FALSE)=0,\"\",VLOOKUP(EO263,'Footnotes list'!$D$9:$E$58,2,FALSE) ) )","v":""},null,null,null,null,{"$f":"IF(TRIM(ET263)=\"\", \"\", IF(VLOOKUP(ET263,'Footnotes list'!$D$9:$E$58,2,FALSE)=0,\"\",VLOOKUP(ET263,'Footnotes list'!$D$9:$E$58,2,FALSE) ) )","v":""},null,null,null,null,{"$f":"IF(TRIM(EY263)=\"\", \"\", IF(VLOOKUP(EY263,'Footnotes list'!$D$9:$E$58,2,FALSE)=0,\"\",VLOOKUP(EY263,'Footnotes list'!$D$9:$E$58,2,FALSE) ) )","v":""}]
[null,null,"O","MKT","market activities, including:",null,null,null,null,null,{"$f":"IF(TRIM(J264)=\"\", \"\", IF(VLOOKUP(J264,'Footnotes list'!$D$9:$E$58,2,FALSE)=0,\"\",VLOOKUP(J264,'Footnotes list'!$D$9:$E$58,2,FALSE) ) )","v":""},null,null,null,null,{"$f":"IF(TRIM(O264)=\"\", \"\", IF(VLOOKUP(O264,'Footnotes list'!$D$9:$E$58,2,FALSE)=0,\"\",VLOOKUP(O264,'Footnotes list'!$D$9:$E$58,2,FALSE) ) )","v":""},null,null,null,null,{"$f":"IF(TRIM(T264)=\"\", \"\", IF(VLOOKUP(T264,'Footnotes list'!$D$9:$E$58,2,FALSE)=0,\"\",VLOOKUP(T264,'Footnotes list'!$D$9:$E$58,2,FALSE) ) )","v":""},null,null,null,null,{"$f":"IF(TRIM(Y264)=\"\", \"\", IF(VLOOKUP(Y264,'Footnotes list'!$D$9:$E$58,2,FALSE)=0,\"\",VLOOKUP(Y264,'Footnotes list'!$D$9:$E$58,2,FALSE) ) )","v":""},null,null,null,null,{"$f":"IF(TRIM(AD264)=\"\", \"\", IF(VLOOKUP(AD264,'Footnotes list'!$D$9:$E$58,2,FALSE)=0,\"\",VLOOKUP(AD264,'Footnotes list'!$D$9:$E$58,2,FALSE) ) )","v":""},null,null,null,null,{"$f":"IF(TRIM(AI264)=\"\", \"\", IF(VLOOKUP(AI264,'Footnotes list'!$D$9:$E$58,2,FALSE)=0,\"\",VLOOKUP(AI264,'Footnotes list'!$D$9:$E$58,2,FALSE) ) )","v":""},null,null,null,null,{"$f":"IF(TRIM(AN264)=\"\", \"\", IF(VLOOKUP(AN264,'Footnotes list'!$D$9:$E$58,2,FALSE)=0,\"\",VLOOKUP(AN264,'Footnotes list'!$D$9:$E$58,2,FALSE) ) )","v":""},null,null,null,null,{"$f":"IF(TRIM(AS264)=\"\", \"\", IF(VLOOKUP(AS264,'Footnotes list'!$D$9:$E$58,2,FALSE)=0,\"\",VLOOKUP(AS264,'Footnotes list'!$D$9:$E$58,2,FALSE) ) )","v":""},null,null,null,null,{"$f":"IF(TRIM(AX264)=\"\", \"\", IF(VLOOKUP(AX264,'Footnotes list'!$D$9:$E$58,2,FALSE)=0,\"\",VLOOKUP(AX264,'Footnotes list'!$D$9:$E$58,2,FALSE) ) )","v":""},null,null,null,null,{"$f":"IF(TRIM(BC264)=\"\", \"\", IF(VLOOKUP(BC264,'Footnotes list'!$D$9:$E$58,2,FALSE)=0,\"\",VLOOKUP(BC264,'Footnotes list'!$D$9:$E$58,2,FALSE) ) )","v":""},null,null,null,null,{"$f":"IF(TRIM(BH264)=\"\", \"\", IF(VLOOKUP(BH264,'Footnotes list'!$D$9:$E$58,2,FALSE)=0,\"\",VLOOKUP(BH264,'Footnotes list'!$D$9:$E$58,2,FALSE) ) )","v":""},null,null,null,null,{"$f":"IF(TRIM(BM264)=\"\", \"\", IF(VLOOKUP(BM264,'Footnotes list'!$D$9:$E$58,2,FALSE)=0,\"\",VLOOKUP(BM264,'Footnotes list'!$D$9:$E$58,2,FALSE) ) )","v":""},null,null,null,null,{"$f":"IF(TRIM(BR264)=\"\", \"\", IF(VLOOKUP(BR264,'Footnotes list'!$D$9:$E$58,2,FALSE)=0,\"\",VLOOKUP(BR264,'Footnotes list'!$D$9:$E$58,2,FALSE) ) )","v":""},null,null,null,null,{"$f":"IF(TRIM(BW264)=\"\", \"\", IF(VLOOKUP(BW264,'Footnotes list'!$D$9:$E$58,2,FALSE)=0,\"\",VLOOKUP(BW264,'Footnotes list'!$D$9:$E$58,2,FALSE) ) )","v":""},null,null,null,null,{"$f":"IF(TRIM(CB264)=\"\", \"\", IF(VLOOKUP(CB264,'Footnotes list'!$D$9:$E$58,2,FALSE)=0,\"\",VLOOKUP(CB264,'Footnotes list'!$D$9:$E$58,2,FALSE) ) )","v":""},null,null,null,null,{"$f":"IF(TRIM(CG264)=\"\", \"\", IF(VLOOKUP(CG264,'Footnotes list'!$D$9:$E$58,2,FALSE)=0,\"\",VLOOKUP(CG264,'Footnotes list'!$D$9:$E$58,2,FALSE) ) )","v":""},null,null,null,null,{"$f":"IF(TRIM(CL264)=\"\", \"\", IF(VLOOKUP(CL264,'Footnotes list'!$D$9:$E$58,2,FALSE)=0,\"\",VLOOKUP(CL264,'Footnotes list'!$D$9:$E$58,2,FALSE) ) )","v":""},null,null,null,null,{"$f":"IF(TRIM(CQ264)=\"\", \"\", IF(VLOOKUP(CQ264,'Footnotes list'!$D$9:$E$58,2,FALSE)=0,\"\",VLOOKUP(CQ264,'Footnotes list'!$D$9:$E$58,2,FALSE) ) )","v":""},null,null,null,null,{"$f":"IF(TRIM(CV264)=\"\", \"\", IF(VLOOKUP(CV264,'Footnotes list'!$D$9:$E$58,2,FALSE)=0,\"\",VLOOKUP(CV264,'Footnotes list'!$D$9:$E$58,2,FALSE) ) )","v":""},null,null,null,null,{"$f":"IF(TRIM(DA264)=\"\", \"\", IF(VLOOKUP(DA264,'Footnotes list'!$D$9:$E$58,2,FALSE)=0,\"\",VLOOKUP(DA264,'Footnotes list'!$D$9:$E$58,2,FALSE) ) )","v":""},null,null,null,null,{"$f":"IF(TRIM(DF264)=\"\", \"\", IF(VLOOKUP(DF264,'Footnotes list'!$D$9:$E$58,2,FALSE)=0,\"\",VLOOKUP(DF264,'Footnotes list'!$D$9:$E$58,2,FALSE) ) )","v":""},null,null,null,null,{"$f":"IF(TRIM(DK264)=\"\", \"\", IF(VLOOKUP(DK264,'Footnotes list'!$D$9:$E$58,2,FALSE)=0,\"\",VLOOKUP(DK264,'Footnotes list'!$D$9:$E$58,2,FALSE) ) )","v":""},null,null,null,null,{"$f":"IF(TRIM(DP264)=\"\", \"\", IF(VLOOKUP(DP264,'Footnotes list'!$D$9:$E$58,2,FALSE)=0,\"\",VLOOKUP(DP264,'Footnotes list'!$D$9:$E$58,2,FALSE) ) )","v":""},null,null,null,null,{"$f":"IF(TRIM(DU264)=\"\", \"\", IF(VLOOKUP(DU264,'Footnotes list'!$D$9:$E$58,2,FALSE)=0,\"\",VLOOKUP(DU264,'Footnotes list'!$D$9:$E$58,2,FALSE) ) )","v":""},null,null,null,null,{"$f":"IF(TRIM(DZ264)=\"\", \"\", IF(VLOOKUP(DZ264,'Footnotes list'!$D$9:$E$58,2,FALSE)=0,\"\",VLOOKUP(DZ264,'Footnotes list'!$D$9:$E$58,2,FALSE) ) )","v":""},null,null,null,null,{"$f":"IF(TRIM(EE264)=\"\", \"\", IF(VLOOKUP(EE264,'Footnotes list'!$D$9:$E$58,2,FALSE)=0,\"\",VLOOKUP(EE264,'Footnotes list'!$D$9:$E$58,2,FALSE) ) )","v":""},null,null,null,null,{"$f":"IF(TRIM(EJ264)=\"\", \"\", IF(VLOOKUP(EJ264,'Footnotes list'!$D$9:$E$58,2,FALSE)=0,\"\",VLOOKUP(EJ264,'Footnotes list'!$D$9:$E$58,2,FALSE) ) )","v":""},null,null,null,null,{"$f":"IF(TRIM(EO264)=\"\", \"\", IF(VLOOKUP(EO264,'Footnotes list'!$D$9:$E$58,2,FALSE)=0,\"\",VLOOKUP(EO264,'Footnotes list'!$D$9:$E$58,2,FALSE) ) )","v":""},null,null,null,null,{"$f":"IF(TRIM(ET264)=\"\", \"\", IF(VLOOKUP(ET264,'Footnotes list'!$D$9:$E$58,2,FALSE)=0,\"\",VLOOKUP(ET264,'Footnotes list'!$D$9:$E$58,2,FALSE) ) )","v":""},null,null,null,null,{"$f":"IF(TRIM(EY264)=\"\", \"\", IF(VLOOKUP(EY264,'Footnotes list'!$D$9:$E$58,2,FALSE)=0,\"\",VLOOKUP(EY264,'Footnotes list'!$D$9:$E$58,2,FALSE) ) )","v":""}]
[null,null,"O","ES_CS","environmental specific services",null,null,null,null,null,{"$f":"IF(TRIM(J265)=\"\", \"\", IF(VLOOKUP(J265,'Footnotes list'!$D$9:$E$58,2,FALSE)=0,\"\",VLOOKUP(J265,'Footnotes list'!$D$9:$E$58,2,FALSE) ) )","v":""},null,null,null,null,{"$f":"IF(TRIM(O265)=\"\", \"\", IF(VLOOKUP(O265,'Footnotes list'!$D$9:$E$58,2,FALSE)=0,\"\",VLOOKUP(O265,'Footnotes list'!$D$9:$E$58,2,FALSE) ) )","v":""},null,null,null,null,{"$f":"IF(TRIM(T265)=\"\", \"\", IF(VLOOKUP(T265,'Footnotes list'!$D$9:$E$58,2,FALSE)=0,\"\",VLOOKUP(T265,'Footnotes list'!$D$9:$E$58,2,FALSE) ) )","v":""},null,null,null,null,{"$f":"IF(TRIM(Y265)=\"\", \"\", IF(VLOOKUP(Y265,'Footnotes list'!$D$9:$E$58,2,FALSE)=0,\"\",VLOOKUP(Y265,'Footnotes list'!$D$9:$E$58,2,FALSE) ) )","v":""},null,null,null,null,{"$f":"IF(TRIM(AD265)=\"\", \"\", IF(VLOOKUP(AD265,'Footnotes list'!$D$9:$E$58,2,FALSE)=0,\"\",VLOOKUP(AD265,'Footnotes list'!$D$9:$E$58,2,FALSE) ) )","v":""},null,null,null,null,{"$f":"IF(TRIM(AI265)=\"\", \"\", IF(VLOOKUP(AI265,'Footnotes list'!$D$9:$E$58,2,FALSE)=0,\"\",VLOOKUP(AI265,'Footnotes list'!$D$9:$E$58,2,FALSE) ) )","v":""},null,null,null,null,{"$f":"IF(TRIM(AN265)=\"\", \"\", IF(VLOOKUP(AN265,'Footnotes list'!$D$9:$E$58,2,FALSE)=0,\"\",VLOOKUP(AN265,'Footnotes list'!$D$9:$E$58,2,FALSE) ) )","v":""},null,null,null,null,{"$f":"IF(TRIM(AS265)=\"\", \"\", IF(VLOOKUP(AS265,'Footnotes list'!$D$9:$E$58,2,FALSE)=0,\"\",VLOOKUP(AS265,'Footnotes list'!$D$9:$E$58,2,FALSE) ) )","v":""},null,null,null,null,{"$f":"IF(TRIM(AX265)=\"\", \"\", IF(VLOOKUP(AX265,'Footnotes list'!$D$9:$E$58,2,FALSE)=0,\"\",VLOOKUP(AX265,'Footnotes list'!$D$9:$E$58,2,FALSE) ) )","v":""},null,null,null,null,{"$f":"IF(TRIM(BC265)=\"\", \"\", IF(VLOOKUP(BC265,'Footnotes list'!$D$9:$E$58,2,FALSE)=0,\"\",VLOOKUP(BC265,'Footnotes list'!$D$9:$E$58,2,FALSE) ) )","v":""},null,null,null,null,{"$f":"IF(TRIM(BH265)=\"\", \"\", IF(VLOOKUP(BH265,'Footnotes list'!$D$9:$E$58,2,FALSE)=0,\"\",VLOOKUP(BH265,'Footnotes list'!$D$9:$E$58,2,FALSE) ) )","v":""},null,null,null,null,{"$f":"IF(TRIM(BM265)=\"\", \"\", IF(VLOOKUP(BM265,'Footnotes list'!$D$9:$E$58,2,FALSE)=0,\"\",VLOOKUP(BM265,'Footnotes list'!$D$9:$E$58,2,FALSE) ) )","v":""},null,null,null,null,{"$f":"IF(TRIM(BR265)=\"\", \"\", IF(VLOOKUP(BR265,'Footnotes list'!$D$9:$E$58,2,FALSE)=0,\"\",VLOOKUP(BR265,'Footnotes list'!$D$9:$E$58,2,FALSE) ) )","v":""},null,null,null,null,{"$f":"IF(TRIM(BW265)=\"\", \"\", IF(VLOOKUP(BW265,'Footnotes list'!$D$9:$E$58,2,FALSE)=0,\"\",VLOOKUP(BW265,'Footnotes list'!$D$9:$E$58,2,FALSE) ) )","v":""},null,null,null,null,{"$f":"IF(TRIM(CB265)=\"\", \"\", IF(VLOOKUP(CB265,'Footnotes list'!$D$9:$E$58,2,FALSE)=0,\"\",VLOOKUP(CB265,'Footnotes list'!$D$9:$E$58,2,FALSE) ) )","v":""},null,null,null,null,{"$f":"IF(TRIM(CG265)=\"\", \"\", IF(VLOOKUP(CG265,'Footnotes list'!$D$9:$E$58,2,FALSE)=0,\"\",VLOOKUP(CG265,'Footnotes list'!$D$9:$E$58,2,FALSE) ) )","v":""},null,null,null,null,{"$f":"IF(TRIM(CL265)=\"\", \"\", IF(VLOOKUP(CL265,'Footnotes list'!$D$9:$E$58,2,FALSE)=0,\"\",VLOOKUP(CL265,'Footnotes list'!$D$9:$E$58,2,FALSE) ) )","v":""},null,null,null,null,{"$f":"IF(TRIM(CQ265)=\"\", \"\", IF(VLOOKUP(CQ265,'Footnotes list'!$D$9:$E$58,2,FALSE)=0,\"\",VLOOKUP(CQ265,'Footnotes list'!$D$9:$E$58,2,FALSE) ) )","v":""},null,null,null,null,{"$f":"IF(TRIM(CV265)=\"\", \"\", IF(VLOOKUP(CV265,'Footnotes list'!$D$9:$E$58,2,FALSE)=0,\"\",VLOOKUP(CV265,'Footnotes list'!$D$9:$E$58,2,FALSE) ) )","v":""},null,null,null,null,{"$f":"IF(TRIM(DA265)=\"\", \"\", IF(VLOOKUP(DA265,'Footnotes list'!$D$9:$E$58,2,FALSE)=0,\"\",VLOOKUP(DA265,'Footnotes list'!$D$9:$E$58,2,FALSE) ) )","v":""},null,null,null,null,{"$f":"IF(TRIM(DF265)=\"\", \"\", IF(VLOOKUP(DF265,'Footnotes list'!$D$9:$E$58,2,FALSE)=0,\"\",VLOOKUP(DF265,'Footnotes list'!$D$9:$E$58,2,FALSE) ) )","v":""},null,null,null,null,{"$f":"IF(TRIM(DK265)=\"\", \"\", IF(VLOOKUP(DK265,'Footnotes list'!$D$9:$E$58,2,FALSE)=0,\"\",VLOOKUP(DK265,'Footnotes list'!$D$9:$E$58,2,FALSE) ) )","v":""},null,null,null,null,{"$f":"IF(TRIM(DP265)=\"\", \"\", IF(VLOOKUP(DP265,'Footnotes list'!$D$9:$E$58,2,FALSE)=0,\"\",VLOOKUP(DP265,'Footnotes list'!$D$9:$E$58,2,FALSE) ) )","v":""},null,null,null,null,{"$f":"IF(TRIM(DU265)=\"\", \"\", IF(VLOOKUP(DU265,'Footnotes list'!$D$9:$E$58,2,FALSE)=0,\"\",VLOOKUP(DU265,'Footnotes list'!$D$9:$E$58,2,FALSE) ) )","v":""},null,null,null,null,{"$f":"IF(TRIM(DZ265)=\"\", \"\", IF(VLOOKUP(DZ265,'Footnotes list'!$D$9:$E$58,2,FALSE)=0,\"\",VLOOKUP(DZ265,'Footnotes list'!$D$9:$E$58,2,FALSE) ) )","v":""},null,null,null,null,{"$f":"IF(TRIM(EE265)=\"\", \"\", IF(VLOOKUP(EE265,'Footnotes list'!$D$9:$E$58,2,FALSE)=0,\"\",VLOOKUP(EE265,'Footnotes list'!$D$9:$E$58,2,FALSE) ) )","v":""},null,null,null,null,{"$f":"IF(TRIM(EJ265)=\"\", \"\", IF(VLOOKUP(EJ265,'Footnotes list'!$D$9:$E$58,2,FALSE)=0,\"\",VLOOKUP(EJ265,'Footnotes list'!$D$9:$E$58,2,FALSE) ) )","v":""},null,null,null,null,{"$f":"IF(TRIM(EO265)=\"\", \"\", IF(VLOOKUP(EO265,'Footnotes list'!$D$9:$E$58,2,FALSE)=0,\"\",VLOOKUP(EO265,'Footnotes list'!$D$9:$E$58,2,FALSE) ) )","v":""},null,null,null,null,{"$f":"IF(TRIM(ET265)=\"\", \"\", IF(VLOOKUP(ET265,'Footnotes list'!$D$9:$E$58,2,FALSE)=0,\"\",VLOOKUP(ET265,'Footnotes list'!$D$9:$E$58,2,FALSE) ) )","v":""},null,null,null,null,{"$f":"IF(TRIM(EY265)=\"\", \"\", IF(VLOOKUP(EY265,'Footnotes list'!$D$9:$E$58,2,FALSE)=0,\"\",VLOOKUP(EY265,'Footnotes list'!$D$9:$E$58,2,FALSE) ) )","v":""}]
[null,null,"O","C_REP","cleaner and resource efficient products",null,null,null,null,null,{"$f":"IF(TRIM(J266)=\"\", \"\", IF(VLOOKUP(J266,'Footnotes list'!$D$9:$E$58,2,FALSE)=0,\"\",VLOOKUP(J266,'Footnotes list'!$D$9:$E$58,2,FALSE) ) )","v":""},null,null,null,null,{"$f":"IF(TRIM(O266)=\"\", \"\", IF(VLOOKUP(O266,'Footnotes list'!$D$9:$E$58,2,FALSE)=0,\"\",VLOOKUP(O266,'Footnotes list'!$D$9:$E$58,2,FALSE) ) )","v":""},null,null,null,null,{"$f":"IF(TRIM(T266)=\"\", \"\", IF(VLOOKUP(T266,'Footnotes list'!$D$9:$E$58,2,FALSE)=0,\"\",VLOOKUP(T266,'Footnotes list'!$D$9:$E$58,2,FALSE) ) )","v":""},null,null,null,null,{"$f":"IF(TRIM(Y266)=\"\", \"\", IF(VLOOKUP(Y266,'Footnotes list'!$D$9:$E$58,2,FALSE)=0,\"\",VLOOKUP(Y266,'Footnotes list'!$D$9:$E$58,2,FALSE) ) )","v":""},null,null,null,null,{"$f":"IF(TRIM(AD266)=\"\", \"\", IF(VLOOKUP(AD266,'Footnotes list'!$D$9:$E$58,2,FALSE)=0,\"\",VLOOKUP(AD266,'Footnotes list'!$D$9:$E$58,2,FALSE) ) )","v":""},null,null,null,null,{"$f":"IF(TRIM(AI266)=\"\", \"\", IF(VLOOKUP(AI266,'Footnotes list'!$D$9:$E$58,2,FALSE)=0,\"\",VLOOKUP(AI266,'Footnotes list'!$D$9:$E$58,2,FALSE) ) )","v":""},null,null,null,null,{"$f":"IF(TRIM(AN266)=\"\", \"\", IF(VLOOKUP(AN266,'Footnotes list'!$D$9:$E$58,2,FALSE)=0,\"\",VLOOKUP(AN266,'Footnotes list'!$D$9:$E$58,2,FALSE) ) )","v":""},null,null,null,null,{"$f":"IF(TRIM(AS266)=\"\", \"\", IF(VLOOKUP(AS266,'Footnotes list'!$D$9:$E$58,2,FALSE)=0,\"\",VLOOKUP(AS266,'Footnotes list'!$D$9:$E$58,2,FALSE) ) )","v":""},null,null,null,null,{"$f":"IF(TRIM(AX266)=\"\", \"\", IF(VLOOKUP(AX266,'Footnotes list'!$D$9:$E$58,2,FALSE)=0,\"\",VLOOKUP(AX266,'Footnotes list'!$D$9:$E$58,2,FALSE) ) )","v":""},null,null,null,null,{"$f":"IF(TRIM(BC266)=\"\", \"\", IF(VLOOKUP(BC266,'Footnotes list'!$D$9:$E$58,2,FALSE)=0,\"\",VLOOKUP(BC266,'Footnotes list'!$D$9:$E$58,2,FALSE) ) )","v":""},null,null,null,null,{"$f":"IF(TRIM(BH266)=\"\", \"\", IF(VLOOKUP(BH266,'Footnotes list'!$D$9:$E$58,2,FALSE)=0,\"\",VLOOKUP(BH266,'Footnotes list'!$D$9:$E$58,2,FALSE) ) )","v":""},null,null,null,null,{"$f":"IF(TRIM(BM266)=\"\", \"\", IF(VLOOKUP(BM266,'Footnotes list'!$D$9:$E$58,2,FALSE)=0,\"\",VLOOKUP(BM266,'Footnotes list'!$D$9:$E$58,2,FALSE) ) )","v":""},null,null,null,null,{"$f":"IF(TRIM(BR266)=\"\", \"\", IF(VLOOKUP(BR266,'Footnotes list'!$D$9:$E$58,2,FALSE)=0,\"\",VLOOKUP(BR266,'Footnotes list'!$D$9:$E$58,2,FALSE) ) )","v":""},null,null,null,null,{"$f":"IF(TRIM(BW266)=\"\", \"\", IF(VLOOKUP(BW266,'Footnotes list'!$D$9:$E$58,2,FALSE)=0,\"\",VLOOKUP(BW266,'Footnotes list'!$D$9:$E$58,2,FALSE) ) )","v":""},null,null,null,null,{"$f":"IF(TRIM(CB266)=\"\", \"\", IF(VLOOKUP(CB266,'Footnotes list'!$D$9:$E$58,2,FALSE)=0,\"\",VLOOKUP(CB266,'Footnotes list'!$D$9:$E$58,2,FALSE) ) )","v":""},null,null,null,null,{"$f":"IF(TRIM(CG266)=\"\", \"\", IF(VLOOKUP(CG266,'Footnotes list'!$D$9:$E$58,2,FALSE)=0,\"\",VLOOKUP(CG266,'Footnotes list'!$D$9:$E$58,2,FALSE) ) )","v":""},null,null,null,null,{"$f":"IF(TRIM(CL266)=\"\", \"\", IF(VLOOKUP(CL266,'Footnotes list'!$D$9:$E$58,2,FALSE)=0,\"\",VLOOKUP(CL266,'Footnotes list'!$D$9:$E$58,2,FALSE) ) )","v":""},null,null,null,null,{"$f":"IF(TRIM(CQ266)=\"\", \"\", IF(VLOOKUP(CQ266,'Footnotes list'!$D$9:$E$58,2,FALSE)=0,\"\",VLOOKUP(CQ266,'Footnotes list'!$D$9:$E$58,2,FALSE) ) )","v":""},null,null,null,null,{"$f":"IF(TRIM(CV266)=\"\", \"\", IF(VLOOKUP(CV266,'Footnotes list'!$D$9:$E$58,2,FALSE)=0,\"\",VLOOKUP(CV266,'Footnotes list'!$D$9:$E$58,2,FALSE) ) )","v":""},null,null,null,null,{"$f":"IF(TRIM(DA266)=\"\", \"\", IF(VLOOKUP(DA266,'Footnotes list'!$D$9:$E$58,2,FALSE)=0,\"\",VLOOKUP(DA266,'Footnotes list'!$D$9:$E$58,2,FALSE) ) )","v":""},null,null,null,null,{"$f":"IF(TRIM(DF266)=\"\", \"\", IF(VLOOKUP(DF266,'Footnotes list'!$D$9:$E$58,2,FALSE)=0,\"\",VLOOKUP(DF266,'Footnotes list'!$D$9:$E$58,2,FALSE) ) )","v":""},null,null,null,null,{"$f":"IF(TRIM(DK266)=\"\", \"\", IF(VLOOKUP(DK266,'Footnotes list'!$D$9:$E$58,2,FALSE)=0,\"\",VLOOKUP(DK266,'Footnotes list'!$D$9:$E$58,2,FALSE) ) )","v":""},null,null,null,null,{"$f":"IF(TRIM(DP266)=\"\", \"\", IF(VLOOKUP(DP266,'Footnotes list'!$D$9:$E$58,2,FALSE)=0,\"\",VLOOKUP(DP266,'Footnotes list'!$D$9:$E$58,2,FALSE) ) )","v":""},null,null,null,null,{"$f":"IF(TRIM(DU266)=\"\", \"\", IF(VLOOKUP(DU266,'Footnotes list'!$D$9:$E$58,2,FALSE)=0,\"\",VLOOKUP(DU266,'Footnotes list'!$D$9:$E$58,2,FALSE) ) )","v":""},null,null,null,null,{"$f":"IF(TRIM(DZ266)=\"\", \"\", IF(VLOOKUP(DZ266,'Footnotes list'!$D$9:$E$58,2,FALSE)=0,\"\",VLOOKUP(DZ266,'Footnotes list'!$D$9:$E$58,2,FALSE) ) )","v":""},null,null,null,null,{"$f":"IF(TRIM(EE266)=\"\", \"\", IF(VLOOKUP(EE266,'Footnotes list'!$D$9:$E$58,2,FALSE)=0,\"\",VLOOKUP(EE266,'Footnotes list'!$D$9:$E$58,2,FALSE) ) )","v":""},null,null,null,null,{"$f":"IF(TRIM(EJ266)=\"\", \"\", IF(VLOOKUP(EJ266,'Footnotes list'!$D$9:$E$58,2,FALSE)=0,\"\",VLOOKUP(EJ266,'Footnotes list'!$D$9:$E$58,2,FALSE) ) )","v":""},null,null,null,null,{"$f":"IF(TRIM(EO266)=\"\", \"\", IF(VLOOKUP(EO266,'Footnotes list'!$D$9:$E$58,2,FALSE)=0,\"\",VLOOKUP(EO266,'Footnotes list'!$D$9:$E$58,2,FALSE) ) )","v":""},null,null,null,null,{"$f":"IF(TRIM(ET266)=\"\", \"\", IF(VLOOKUP(ET266,'Footnotes list'!$D$9:$E$58,2,FALSE)=0,\"\",VLOOKUP(ET266,'Footnotes list'!$D$9:$E$58,2,FALSE) ) )","v":""},null,null,null,null,{"$f":"IF(TRIM(EY266)=\"\", \"\", IF(VLOOKUP(EY266,'Footnotes list'!$D$9:$E$58,2,FALSE)=0,\"\",VLOOKUP(EY266,'Footnotes list'!$D$9:$E$58,2,FALSE) ) )","v":""}]
[null,null,"P","TOT_EGSS","Total P - Education, of which:",null,null,null,null,null,{"$f":"IF(TRIM(J267)=\"\", \"\", IF(VLOOKUP(J267,'Footnotes list'!$D$9:$E$58,2,FALSE)=0,\"\",VLOOKUP(J267,'Footnotes list'!$D$9:$E$58,2,FALSE) ) )","v":""},null,null,null,null,{"$f":"IF(TRIM(O267)=\"\", \"\", IF(VLOOKUP(O267,'Footnotes list'!$D$9:$E$58,2,FALSE)=0,\"\",VLOOKUP(O267,'Footnotes list'!$D$9:$E$58,2,FALSE) ) )","v":""},null,null,null,null,{"$f":"IF(TRIM(T267)=\"\", \"\", IF(VLOOKUP(T267,'Footnotes list'!$D$9:$E$58,2,FALSE)=0,\"\",VLOOKUP(T267,'Footnotes list'!$D$9:$E$58,2,FALSE) ) )","v":""},null,null,null,null,{"$f":"IF(TRIM(Y267)=\"\", \"\", IF(VLOOKUP(Y267,'Footnotes list'!$D$9:$E$58,2,FALSE)=0,\"\",VLOOKUP(Y267,'Footnotes list'!$D$9:$E$58,2,FALSE) ) )","v":""},null,null,null,null,{"$f":"IF(TRIM(AD267)=\"\", \"\", IF(VLOOKUP(AD267,'Footnotes list'!$D$9:$E$58,2,FALSE)=0,\"\",VLOOKUP(AD267,'Footnotes list'!$D$9:$E$58,2,FALSE) ) )","v":""},null,null,null,null,{"$f":"IF(TRIM(AI267)=\"\", \"\", IF(VLOOKUP(AI267,'Footnotes list'!$D$9:$E$58,2,FALSE)=0,\"\",VLOOKUP(AI267,'Footnotes list'!$D$9:$E$58,2,FALSE) ) )","v":""},null,null,null,null,{"$f":"IF(TRIM(AN267)=\"\", \"\", IF(VLOOKUP(AN267,'Footnotes list'!$D$9:$E$58,2,FALSE)=0,\"\",VLOOKUP(AN267,'Footnotes list'!$D$9:$E$58,2,FALSE) ) )","v":""},null,null,null,null,{"$f":"IF(TRIM(AS267)=\"\", \"\", IF(VLOOKUP(AS267,'Footnotes list'!$D$9:$E$58,2,FALSE)=0,\"\",VLOOKUP(AS267,'Footnotes list'!$D$9:$E$58,2,FALSE) ) )","v":""},null,null,null,null,{"$f":"IF(TRIM(AX267)=\"\", \"\", IF(VLOOKUP(AX267,'Footnotes list'!$D$9:$E$58,2,FALSE)=0,\"\",VLOOKUP(AX267,'Footnotes list'!$D$9:$E$58,2,FALSE) ) )","v":""},null,null,null,null,{"$f":"IF(TRIM(BC267)=\"\", \"\", IF(VLOOKUP(BC267,'Footnotes list'!$D$9:$E$58,2,FALSE)=0,\"\",VLOOKUP(BC267,'Footnotes list'!$D$9:$E$58,2,FALSE) ) )","v":""},null,null,null,null,{"$f":"IF(TRIM(BH267)=\"\", \"\", IF(VLOOKUP(BH267,'Footnotes list'!$D$9:$E$58,2,FALSE)=0,\"\",VLOOKUP(BH267,'Footnotes list'!$D$9:$E$58,2,FALSE) ) )","v":""},null,null,null,null,{"$f":"IF(TRIM(BM267)=\"\", \"\", IF(VLOOKUP(BM267,'Footnotes list'!$D$9:$E$58,2,FALSE)=0,\"\",VLOOKUP(BM267,'Footnotes list'!$D$9:$E$58,2,FALSE) ) )","v":""},null,null,null,null,{"$f":"IF(TRIM(BR267)=\"\", \"\", IF(VLOOKUP(BR267,'Footnotes list'!$D$9:$E$58,2,FALSE)=0,\"\",VLOOKUP(BR267,'Footnotes list'!$D$9:$E$58,2,FALSE) ) )","v":""},null,null,null,null,{"$f":"IF(TRIM(BW267)=\"\", \"\", IF(VLOOKUP(BW267,'Footnotes list'!$D$9:$E$58,2,FALSE)=0,\"\",VLOOKUP(BW267,'Footnotes list'!$D$9:$E$58,2,FALSE) ) )","v":""},null,null,null,null,{"$f":"IF(TRIM(CB267)=\"\", \"\", IF(VLOOKUP(CB267,'Footnotes list'!$D$9:$E$58,2,FALSE)=0,\"\",VLOOKUP(CB267,'Footnotes list'!$D$9:$E$58,2,FALSE) ) )","v":""},null,null,null,null,{"$f":"IF(TRIM(CG267)=\"\", \"\", IF(VLOOKUP(CG267,'Footnotes list'!$D$9:$E$58,2,FALSE)=0,\"\",VLOOKUP(CG267,'Footnotes list'!$D$9:$E$58,2,FALSE) ) )","v":""},null,null,null,null,{"$f":"IF(TRIM(CL267)=\"\", \"\", IF(VLOOKUP(CL267,'Footnotes list'!$D$9:$E$58,2,FALSE)=0,\"\",VLOOKUP(CL267,'Footnotes list'!$D$9:$E$58,2,FALSE) ) )","v":""},null,null,null,null,{"$f":"IF(TRIM(CQ267)=\"\", \"\", IF(VLOOKUP(CQ267,'Footnotes list'!$D$9:$E$58,2,FALSE)=0,\"\",VLOOKUP(CQ267,'Footnotes list'!$D$9:$E$58,2,FALSE) ) )","v":""},null,null,null,null,{"$f":"IF(TRIM(CV267)=\"\", \"\", IF(VLOOKUP(CV267,'Footnotes list'!$D$9:$E$58,2,FALSE)=0,\"\",VLOOKUP(CV267,'Footnotes list'!$D$9:$E$58,2,FALSE) ) )","v":""},null,null,null,null,{"$f":"IF(TRIM(DA267)=\"\", \"\", IF(VLOOKUP(DA267,'Footnotes list'!$D$9:$E$58,2,FALSE)=0,\"\",VLOOKUP(DA267,'Footnotes list'!$D$9:$E$58,2,FALSE) ) )","v":""},null,null,null,null,{"$f":"IF(TRIM(DF267)=\"\", \"\", IF(VLOOKUP(DF267,'Footnotes list'!$D$9:$E$58,2,FALSE)=0,\"\",VLOOKUP(DF267,'Footnotes list'!$D$9:$E$58,2,FALSE) ) )","v":""},null,null,null,null,{"$f":"IF(TRIM(DK267)=\"\", \"\", IF(VLOOKUP(DK267,'Footnotes list'!$D$9:$E$58,2,FALSE)=0,\"\",VLOOKUP(DK267,'Footnotes list'!$D$9:$E$58,2,FALSE) ) )","v":""},null,null,null,null,{"$f":"IF(TRIM(DP267)=\"\", \"\", IF(VLOOKUP(DP267,'Footnotes list'!$D$9:$E$58,2,FALSE)=0,\"\",VLOOKUP(DP267,'Footnotes list'!$D$9:$E$58,2,FALSE) ) )","v":""},null,null,null,null,{"$f":"IF(TRIM(DU267)=\"\", \"\", IF(VLOOKUP(DU267,'Footnotes list'!$D$9:$E$58,2,FALSE)=0,\"\",VLOOKUP(DU267,'Footnotes list'!$D$9:$E$58,2,FALSE) ) )","v":""},null,null,null,null,{"$f":"IF(TRIM(DZ267)=\"\", \"\", IF(VLOOKUP(DZ267,'Footnotes list'!$D$9:$E$58,2,FALSE)=0,\"\",VLOOKUP(DZ267,'Footnotes list'!$D$9:$E$58,2,FALSE) ) )","v":""},null,null,null,null,{"$f":"IF(TRIM(EE267)=\"\", \"\", IF(VLOOKUP(EE267,'Footnotes list'!$D$9:$E$58,2,FALSE)=0,\"\",VLOOKUP(EE267,'Footnotes list'!$D$9:$E$58,2,FALSE) ) )","v":""},null,null,null,null,{"$f":"IF(TRIM(EJ267)=\"\", \"\", IF(VLOOKUP(EJ267,'Footnotes list'!$D$9:$E$58,2,FALSE)=0,\"\",VLOOKUP(EJ267,'Footnotes list'!$D$9:$E$58,2,FALSE) ) )","v":""},null,null,null,null,{"$f":"IF(TRIM(EO267)=\"\", \"\", IF(VLOOKUP(EO267,'Footnotes list'!$D$9:$E$58,2,FALSE)=0,\"\",VLOOKUP(EO267,'Footnotes list'!$D$9:$E$58,2,FALSE) ) )","v":""},null,null,null,null,{"$f":"IF(TRIM(ET267)=\"\", \"\", IF(VLOOKUP(ET267,'Footnotes list'!$D$9:$E$58,2,FALSE)=0,\"\",VLOOKUP(ET267,'Footnotes list'!$D$9:$E$58,2,FALSE) ) )","v":""},null,null,null,null,{"$f":"IF(TRIM(EY267)=\"\", \"\", IF(VLOOKUP(EY267,'Footnotes list'!$D$9:$E$58,2,FALSE)=0,\"\",VLOOKUP(EY267,'Footnotes list'!$D$9:$E$58,2,FALSE) ) )","v":""}]
[null,null,"P","ANC","ancillary activities",null,null,null,null,null,{"$f":"IF(TRIM(J268)=\"\", \"\", IF(VLOOKUP(J268,'Footnotes list'!$D$9:$E$58,2,FALSE)=0,\"\",VLOOKUP(J268,'Footnotes list'!$D$9:$E$58,2,FALSE) ) )","v":""},null,null,null,null,{"$f":"IF(TRIM(O268)=\"\", \"\", IF(VLOOKUP(O268,'Footnotes list'!$D$9:$E$58,2,FALSE)=0,\"\",VLOOKUP(O268,'Footnotes list'!$D$9:$E$58,2,FALSE) ) )","v":""},null,null,null,null,{"$f":"IF(TRIM(T268)=\"\", \"\", IF(VLOOKUP(T268,'Footnotes list'!$D$9:$E$58,2,FALSE)=0,\"\",VLOOKUP(T268,'Footnotes list'!$D$9:$E$58,2,FALSE) ) )","v":""},null,null,null,null,{"$f":"IF(TRIM(Y268)=\"\", \"\", IF(VLOOKUP(Y268,'Footnotes list'!$D$9:$E$58,2,FALSE)=0,\"\",VLOOKUP(Y268,'Footnotes list'!$D$9:$E$58,2,FALSE) ) )","v":""},null,null,null,null,{"$f":"IF(TRIM(AD268)=\"\", \"\", IF(VLOOKUP(AD268,'Footnotes list'!$D$9:$E$58,2,FALSE)=0,\"\",VLOOKUP(AD268,'Footnotes list'!$D$9:$E$58,2,FALSE) ) )","v":""},null,null,null,null,{"$f":"IF(TRIM(AI268)=\"\", \"\", IF(VLOOKUP(AI268,'Footnotes list'!$D$9:$E$58,2,FALSE)=0,\"\",VLOOKUP(AI268,'Footnotes list'!$D$9:$E$58,2,FALSE) ) )","v":""},null,null,null,null,{"$f":"IF(TRIM(AN268)=\"\", \"\", IF(VLOOKUP(AN268,'Footnotes list'!$D$9:$E$58,2,FALSE)=0,\"\",VLOOKUP(AN268,'Footnotes list'!$D$9:$E$58,2,FALSE) ) )","v":""},null,null,null,null,{"$f":"IF(TRIM(AS268)=\"\", \"\", IF(VLOOKUP(AS268,'Footnotes list'!$D$9:$E$58,2,FALSE)=0,\"\",VLOOKUP(AS268,'Footnotes list'!$D$9:$E$58,2,FALSE) ) )","v":""},null,null,null,null,{"$f":"IF(TRIM(AX268)=\"\", \"\", IF(VLOOKUP(AX268,'Footnotes list'!$D$9:$E$58,2,FALSE)=0,\"\",VLOOKUP(AX268,'Footnotes list'!$D$9:$E$58,2,FALSE) ) )","v":""},null,null,null,null,{"$f":"IF(TRIM(BC268)=\"\", \"\", IF(VLOOKUP(BC268,'Footnotes list'!$D$9:$E$58,2,FALSE)=0,\"\",VLOOKUP(BC268,'Footnotes list'!$D$9:$E$58,2,FALSE) ) )","v":""},null,null,null,null,{"$f":"IF(TRIM(BH268)=\"\", \"\", IF(VLOOKUP(BH268,'Footnotes list'!$D$9:$E$58,2,FALSE)=0,\"\",VLOOKUP(BH268,'Footnotes list'!$D$9:$E$58,2,FALSE) ) )","v":""},null,null,null,null,{"$f":"IF(TRIM(BM268)=\"\", \"\", IF(VLOOKUP(BM268,'Footnotes list'!$D$9:$E$58,2,FALSE)=0,\"\",VLOOKUP(BM268,'Footnotes list'!$D$9:$E$58,2,FALSE) ) )","v":""},null,null,null,null,{"$f":"IF(TRIM(BR268)=\"\", \"\", IF(VLOOKUP(BR268,'Footnotes list'!$D$9:$E$58,2,FALSE)=0,\"\",VLOOKUP(BR268,'Footnotes list'!$D$9:$E$58,2,FALSE) ) )","v":""},null,null,null,null,{"$f":"IF(TRIM(BW268)=\"\", \"\", IF(VLOOKUP(BW268,'Footnotes list'!$D$9:$E$58,2,FALSE)=0,\"\",VLOOKUP(BW268,'Footnotes list'!$D$9:$E$58,2,FALSE) ) )","v":""},null,null,null,null,{"$f":"IF(TRIM(CB268)=\"\", \"\", IF(VLOOKUP(CB268,'Footnotes list'!$D$9:$E$58,2,FALSE)=0,\"\",VLOOKUP(CB268,'Footnotes list'!$D$9:$E$58,2,FALSE) ) )","v":""},null,null,null,null,{"$f":"IF(TRIM(CG268)=\"\", \"\", IF(VLOOKUP(CG268,'Footnotes list'!$D$9:$E$58,2,FALSE)=0,\"\",VLOOKUP(CG268,'Footnotes list'!$D$9:$E$58,2,FALSE) ) )","v":""},null,null,null,null,{"$f":"IF(TRIM(CL268)=\"\", \"\", IF(VLOOKUP(CL268,'Footnotes list'!$D$9:$E$58,2,FALSE)=0,\"\",VLOOKUP(CL268,'Footnotes list'!$D$9:$E$58,2,FALSE) ) )","v":""},null,null,null,null,{"$f":"IF(TRIM(CQ268)=\"\", \"\", IF(VLOOKUP(CQ268,'Footnotes list'!$D$9:$E$58,2,FALSE)=0,\"\",VLOOKUP(CQ268,'Footnotes list'!$D$9:$E$58,2,FALSE) ) )","v":""},null,null,null,null,{"$f":"IF(TRIM(CV268)=\"\", \"\", IF(VLOOKUP(CV268,'Footnotes list'!$D$9:$E$58,2,FALSE)=0,\"\",VLOOKUP(CV268,'Footnotes list'!$D$9:$E$58,2,FALSE) ) )","v":""},null,null,null,null,{"$f":"IF(TRIM(DA268)=\"\", \"\", IF(VLOOKUP(DA268,'Footnotes list'!$D$9:$E$58,2,FALSE)=0,\"\",VLOOKUP(DA268,'Footnotes list'!$D$9:$E$58,2,FALSE) ) )","v":""},null,null,null,null,{"$f":"IF(TRIM(DF268)=\"\", \"\", IF(VLOOKUP(DF268,'Footnotes list'!$D$9:$E$58,2,FALSE)=0,\"\",VLOOKUP(DF268,'Footnotes list'!$D$9:$E$58,2,FALSE) ) )","v":""},null,null,null,null,{"$f":"IF(TRIM(DK268)=\"\", \"\", IF(VLOOKUP(DK268,'Footnotes list'!$D$9:$E$58,2,FALSE)=0,\"\",VLOOKUP(DK268,'Footnotes list'!$D$9:$E$58,2,FALSE) ) )","v":""},null,null,null,null,{"$f":"IF(TRIM(DP268)=\"\", \"\", IF(VLOOKUP(DP268,'Footnotes list'!$D$9:$E$58,2,FALSE)=0,\"\",VLOOKUP(DP268,'Footnotes list'!$D$9:$E$58,2,FALSE) ) )","v":""},null,null,null,null,{"$f":"IF(TRIM(DU268)=\"\", \"\", IF(VLOOKUP(DU268,'Footnotes list'!$D$9:$E$58,2,FALSE)=0,\"\",VLOOKUP(DU268,'Footnotes list'!$D$9:$E$58,2,FALSE) ) )","v":""},null,null,null,null,{"$f":"IF(TRIM(DZ268)=\"\", \"\", IF(VLOOKUP(DZ268,'Footnotes list'!$D$9:$E$58,2,FALSE)=0,\"\",VLOOKUP(DZ268,'Footnotes list'!$D$9:$E$58,2,FALSE) ) )","v":""},null,null,null,null,{"$f":"IF(TRIM(EE268)=\"\", \"\", IF(VLOOKUP(EE268,'Footnotes list'!$D$9:$E$58,2,FALSE)=0,\"\",VLOOKUP(EE268,'Footnotes list'!$D$9:$E$58,2,FALSE) ) )","v":""},null,null,null,null,{"$f":"IF(TRIM(EJ268)=\"\", \"\", IF(VLOOKUP(EJ268,'Footnotes list'!$D$9:$E$58,2,FALSE)=0,\"\",VLOOKUP(EJ268,'Footnotes list'!$D$9:$E$58,2,FALSE) ) )","v":""},null,null,null,null,{"$f":"IF(TRIM(EO268)=\"\", \"\", IF(VLOOKUP(EO268,'Footnotes list'!$D$9:$E$58,2,FALSE)=0,\"\",VLOOKUP(EO268,'Footnotes list'!$D$9:$E$58,2,FALSE) ) )","v":""},null,null,null,null,{"$f":"IF(TRIM(ET268)=\"\", \"\", IF(VLOOKUP(ET268,'Footnotes list'!$D$9:$E$58,2,FALSE)=0,\"\",VLOOKUP(ET268,'Footnotes list'!$D$9:$E$58,2,FALSE) ) )","v":""},null,null,null,null,{"$f":"IF(TRIM(EY268)=\"\", \"\", IF(VLOOKUP(EY268,'Footnotes list'!$D$9:$E$58,2,FALSE)=0,\"\",VLOOKUP(EY268,'Footnotes list'!$D$9:$E$58,2,FALSE) ) )","v":""}]
[null,null,"P","NMKT","non-market activities",null,null,null,null,null,{"$f":"IF(TRIM(J269)=\"\", \"\", IF(VLOOKUP(J269,'Footnotes list'!$D$9:$E$58,2,FALSE)=0,\"\",VLOOKUP(J269,'Footnotes list'!$D$9:$E$58,2,FALSE) ) )","v":""},null,null,null,null,{"$f":"IF(TRIM(O269)=\"\", \"\", IF(VLOOKUP(O269,'Footnotes list'!$D$9:$E$58,2,FALSE)=0,\"\",VLOOKUP(O269,'Footnotes list'!$D$9:$E$58,2,FALSE) ) )","v":""},null,null,null,null,{"$f":"IF(TRIM(T269)=\"\", \"\", IF(VLOOKUP(T269,'Footnotes list'!$D$9:$E$58,2,FALSE)=0,\"\",VLOOKUP(T269,'Footnotes list'!$D$9:$E$58,2,FALSE) ) )","v":""},null,null,null,null,{"$f":"IF(TRIM(Y269)=\"\", \"\", IF(VLOOKUP(Y269,'Footnotes list'!$D$9:$E$58,2,FALSE)=0,\"\",VLOOKUP(Y269,'Footnotes list'!$D$9:$E$58,2,FALSE) ) )","v":""},null,null,null,null,{"$f":"IF(TRIM(AD269)=\"\", \"\", IF(VLOOKUP(AD269,'Footnotes list'!$D$9:$E$58,2,FALSE)=0,\"\",VLOOKUP(AD269,'Footnotes list'!$D$9:$E$58,2,FALSE) ) )","v":""},null,null,null,null,{"$f":"IF(TRIM(AI269)=\"\", \"\", IF(VLOOKUP(AI269,'Footnotes list'!$D$9:$E$58,2,FALSE)=0,\"\",VLOOKUP(AI269,'Footnotes list'!$D$9:$E$58,2,FALSE) ) )","v":""},null,null,null,null,{"$f":"IF(TRIM(AN269)=\"\", \"\", IF(VLOOKUP(AN269,'Footnotes list'!$D$9:$E$58,2,FALSE)=0,\"\",VLOOKUP(AN269,'Footnotes list'!$D$9:$E$58,2,FALSE) ) )","v":""},null,null,null,null,{"$f":"IF(TRIM(AS269)=\"\", \"\", IF(VLOOKUP(AS269,'Footnotes list'!$D$9:$E$58,2,FALSE)=0,\"\",VLOOKUP(AS269,'Footnotes list'!$D$9:$E$58,2,FALSE) ) )","v":""},null,null,null,null,{"$f":"IF(TRIM(AX269)=\"\", \"\", IF(VLOOKUP(AX269,'Footnotes list'!$D$9:$E$58,2,FALSE)=0,\"\",VLOOKUP(AX269,'Footnotes list'!$D$9:$E$58,2,FALSE) ) )","v":""},null,null,null,null,{"$f":"IF(TRIM(BC269)=\"\", \"\", IF(VLOOKUP(BC269,'Footnotes list'!$D$9:$E$58,2,FALSE)=0,\"\",VLOOKUP(BC269,'Footnotes list'!$D$9:$E$58,2,FALSE) ) )","v":""},null,null,null,null,{"$f":"IF(TRIM(BH269)=\"\", \"\", IF(VLOOKUP(BH269,'Footnotes list'!$D$9:$E$58,2,FALSE)=0,\"\",VLOOKUP(BH269,'Footnotes list'!$D$9:$E$58,2,FALSE) ) )","v":""},null,null,null,null,{"$f":"IF(TRIM(BM269)=\"\", \"\", IF(VLOOKUP(BM269,'Footnotes list'!$D$9:$E$58,2,FALSE)=0,\"\",VLOOKUP(BM269,'Footnotes list'!$D$9:$E$58,2,FALSE) ) )","v":""},null,null,null,null,{"$f":"IF(TRIM(BR269)=\"\", \"\", IF(VLOOKUP(BR269,'Footnotes list'!$D$9:$E$58,2,FALSE)=0,\"\",VLOOKUP(BR269,'Footnotes list'!$D$9:$E$58,2,FALSE) ) )","v":""},null,null,null,null,{"$f":"IF(TRIM(BW269)=\"\", \"\", IF(VLOOKUP(BW269,'Footnotes list'!$D$9:$E$58,2,FALSE)=0,\"\",VLOOKUP(BW269,'Footnotes list'!$D$9:$E$58,2,FALSE) ) )","v":""},null,null,null,null,{"$f":"IF(TRIM(CB269)=\"\", \"\", IF(VLOOKUP(CB269,'Footnotes list'!$D$9:$E$58,2,FALSE)=0,\"\",VLOOKUP(CB269,'Footnotes list'!$D$9:$E$58,2,FALSE) ) )","v":""},null,null,null,null,{"$f":"IF(TRIM(CG269)=\"\", \"\", IF(VLOOKUP(CG269,'Footnotes list'!$D$9:$E$58,2,FALSE)=0,\"\",VLOOKUP(CG269,'Footnotes list'!$D$9:$E$58,2,FALSE) ) )","v":""},null,null,null,null,{"$f":"IF(TRIM(CL269)=\"\", \"\", IF(VLOOKUP(CL269,'Footnotes list'!$D$9:$E$58,2,FALSE)=0,\"\",VLOOKUP(CL269,'Footnotes list'!$D$9:$E$58,2,FALSE) ) )","v":""},null,null,null,null,{"$f":"IF(TRIM(CQ269)=\"\", \"\", IF(VLOOKUP(CQ269,'Footnotes list'!$D$9:$E$58,2,FALSE)=0,\"\",VLOOKUP(CQ269,'Footnotes list'!$D$9:$E$58,2,FALSE) ) )","v":""},null,null,null,null,{"$f":"IF(TRIM(CV269)=\"\", \"\", IF(VLOOKUP(CV269,'Footnotes list'!$D$9:$E$58,2,FALSE)=0,\"\",VLOOKUP(CV269,'Footnotes list'!$D$9:$E$58,2,FALSE) ) )","v":""},null,null,null,null,{"$f":"IF(TRIM(DA269)=\"\", \"\", IF(VLOOKUP(DA269,'Footnotes list'!$D$9:$E$58,2,FALSE)=0,\"\",VLOOKUP(DA269,'Footnotes list'!$D$9:$E$58,2,FALSE) ) )","v":""},null,null,null,null,{"$f":"IF(TRIM(DF269)=\"\", \"\", IF(VLOOKUP(DF269,'Footnotes list'!$D$9:$E$58,2,FALSE)=0,\"\",VLOOKUP(DF269,'Footnotes list'!$D$9:$E$58,2,FALSE) ) )","v":""},null,null,null,null,{"$f":"IF(TRIM(DK269)=\"\", \"\", IF(VLOOKUP(DK269,'Footnotes list'!$D$9:$E$58,2,FALSE)=0,\"\",VLOOKUP(DK269,'Footnotes list'!$D$9:$E$58,2,FALSE) ) )","v":""},null,null,null,null,{"$f":"IF(TRIM(DP269)=\"\", \"\", IF(VLOOKUP(DP269,'Footnotes list'!$D$9:$E$58,2,FALSE)=0,\"\",VLOOKUP(DP269,'Footnotes list'!$D$9:$E$58,2,FALSE) ) )","v":""},null,null,null,null,{"$f":"IF(TRIM(DU269)=\"\", \"\", IF(VLOOKUP(DU269,'Footnotes list'!$D$9:$E$58,2,FALSE)=0,\"\",VLOOKUP(DU269,'Footnotes list'!$D$9:$E$58,2,FALSE) ) )","v":""},null,null,null,null,{"$f":"IF(TRIM(DZ269)=\"\", \"\", IF(VLOOKUP(DZ269,'Footnotes list'!$D$9:$E$58,2,FALSE)=0,\"\",VLOOKUP(DZ269,'Footnotes list'!$D$9:$E$58,2,FALSE) ) )","v":""},null,null,null,null,{"$f":"IF(TRIM(EE269)=\"\", \"\", IF(VLOOKUP(EE269,'Footnotes list'!$D$9:$E$58,2,FALSE)=0,\"\",VLOOKUP(EE269,'Footnotes list'!$D$9:$E$58,2,FALSE) ) )","v":""},null,null,null,null,{"$f":"IF(TRIM(EJ269)=\"\", \"\", IF(VLOOKUP(EJ269,'Footnotes list'!$D$9:$E$58,2,FALSE)=0,\"\",VLOOKUP(EJ269,'Footnotes list'!$D$9:$E$58,2,FALSE) ) )","v":""},null,null,null,null,{"$f":"IF(TRIM(EO269)=\"\", \"\", IF(VLOOKUP(EO269,'Footnotes list'!$D$9:$E$58,2,FALSE)=0,\"\",VLOOKUP(EO269,'Footnotes list'!$D$9:$E$58,2,FALSE) ) )","v":""},null,null,null,null,{"$f":"IF(TRIM(ET269)=\"\", \"\", IF(VLOOKUP(ET269,'Footnotes list'!$D$9:$E$58,2,FALSE)=0,\"\",VLOOKUP(ET269,'Footnotes list'!$D$9:$E$58,2,FALSE) ) )","v":""},null,null,null,null,{"$f":"IF(TRIM(EY269)=\"\", \"\", IF(VLOOKUP(EY269,'Footnotes list'!$D$9:$E$58,2,FALSE)=0,\"\",VLOOKUP(EY269,'Footnotes list'!$D$9:$E$58,2,FALSE) ) )","v":""}]
[null,null,"P","OWN_USE","activities for own final use",null,null,null,null,null,{"$f":"IF(TRIM(J270)=\"\", \"\", IF(VLOOKUP(J270,'Footnotes list'!$D$9:$E$58,2,FALSE)=0,\"\",VLOOKUP(J270,'Footnotes list'!$D$9:$E$58,2,FALSE) ) )","v":""},null,null,null,null,{"$f":"IF(TRIM(O270)=\"\", \"\", IF(VLOOKUP(O270,'Footnotes list'!$D$9:$E$58,2,FALSE)=0,\"\",VLOOKUP(O270,'Footnotes list'!$D$9:$E$58,2,FALSE) ) )","v":""},null,null,null,null,{"$f":"IF(TRIM(T270)=\"\", \"\", IF(VLOOKUP(T270,'Footnotes list'!$D$9:$E$58,2,FALSE)=0,\"\",VLOOKUP(T270,'Footnotes list'!$D$9:$E$58,2,FALSE) ) )","v":""},null,null,null,null,{"$f":"IF(TRIM(Y270)=\"\", \"\", IF(VLOOKUP(Y270,'Footnotes list'!$D$9:$E$58,2,FALSE)=0,\"\",VLOOKUP(Y270,'Footnotes list'!$D$9:$E$58,2,FALSE) ) )","v":""},null,null,null,null,{"$f":"IF(TRIM(AD270)=\"\", \"\", IF(VLOOKUP(AD270,'Footnotes list'!$D$9:$E$58,2,FALSE)=0,\"\",VLOOKUP(AD270,'Footnotes list'!$D$9:$E$58,2,FALSE) ) )","v":""},null,null,null,null,{"$f":"IF(TRIM(AI270)=\"\", \"\", IF(VLOOKUP(AI270,'Footnotes list'!$D$9:$E$58,2,FALSE)=0,\"\",VLOOKUP(AI270,'Footnotes list'!$D$9:$E$58,2,FALSE) ) )","v":""},null,null,null,null,{"$f":"IF(TRIM(AN270)=\"\", \"\", IF(VLOOKUP(AN270,'Footnotes list'!$D$9:$E$58,2,FALSE)=0,\"\",VLOOKUP(AN270,'Footnotes list'!$D$9:$E$58,2,FALSE) ) )","v":""},null,null,null,null,{"$f":"IF(TRIM(AS270)=\"\", \"\", IF(VLOOKUP(AS270,'Footnotes list'!$D$9:$E$58,2,FALSE)=0,\"\",VLOOKUP(AS270,'Footnotes list'!$D$9:$E$58,2,FALSE) ) )","v":""},null,null,null,null,{"$f":"IF(TRIM(AX270)=\"\", \"\", IF(VLOOKUP(AX270,'Footnotes list'!$D$9:$E$58,2,FALSE)=0,\"\",VLOOKUP(AX270,'Footnotes list'!$D$9:$E$58,2,FALSE) ) )","v":""},null,null,null,null,{"$f":"IF(TRIM(BC270)=\"\", \"\", IF(VLOOKUP(BC270,'Footnotes list'!$D$9:$E$58,2,FALSE)=0,\"\",VLOOKUP(BC270,'Footnotes list'!$D$9:$E$58,2,FALSE) ) )","v":""},null,null,null,null,{"$f":"IF(TRIM(BH270)=\"\", \"\", IF(VLOOKUP(BH270,'Footnotes list'!$D$9:$E$58,2,FALSE)=0,\"\",VLOOKUP(BH270,'Footnotes list'!$D$9:$E$58,2,FALSE) ) )","v":""},null,null,null,null,{"$f":"IF(TRIM(BM270)=\"\", \"\", IF(VLOOKUP(BM270,'Footnotes list'!$D$9:$E$58,2,FALSE)=0,\"\",VLOOKUP(BM270,'Footnotes list'!$D$9:$E$58,2,FALSE) ) )","v":""},null,null,null,null,{"$f":"IF(TRIM(BR270)=\"\", \"\", IF(VLOOKUP(BR270,'Footnotes list'!$D$9:$E$58,2,FALSE)=0,\"\",VLOOKUP(BR270,'Footnotes list'!$D$9:$E$58,2,FALSE) ) )","v":""},null,null,null,null,{"$f":"IF(TRIM(BW270)=\"\", \"\", IF(VLOOKUP(BW270,'Footnotes list'!$D$9:$E$58,2,FALSE)=0,\"\",VLOOKUP(BW270,'Footnotes list'!$D$9:$E$58,2,FALSE) ) )","v":""},null,null,null,null,{"$f":"IF(TRIM(CB270)=\"\", \"\", IF(VLOOKUP(CB270,'Footnotes list'!$D$9:$E$58,2,FALSE)=0,\"\",VLOOKUP(CB270,'Footnotes list'!$D$9:$E$58,2,FALSE) ) )","v":""},null,null,null,null,{"$f":"IF(TRIM(CG270)=\"\", \"\", IF(VLOOKUP(CG270,'Footnotes list'!$D$9:$E$58,2,FALSE)=0,\"\",VLOOKUP(CG270,'Footnotes list'!$D$9:$E$58,2,FALSE) ) )","v":""},null,null,null,null,{"$f":"IF(TRIM(CL270)=\"\", \"\", IF(VLOOKUP(CL270,'Footnotes list'!$D$9:$E$58,2,FALSE)=0,\"\",VLOOKUP(CL270,'Footnotes list'!$D$9:$E$58,2,FALSE) ) )","v":""},null,null,null,null,{"$f":"IF(TRIM(CQ270)=\"\", \"\", IF(VLOOKUP(CQ270,'Footnotes list'!$D$9:$E$58,2,FALSE)=0,\"\",VLOOKUP(CQ270,'Footnotes list'!$D$9:$E$58,2,FALSE) ) )","v":""},null,null,null,null,{"$f":"IF(TRIM(CV270)=\"\", \"\", IF(VLOOKUP(CV270,'Footnotes list'!$D$9:$E$58,2,FALSE)=0,\"\",VLOOKUP(CV270,'Footnotes list'!$D$9:$E$58,2,FALSE) ) )","v":""},null,null,null,null,{"$f":"IF(TRIM(DA270)=\"\", \"\", IF(VLOOKUP(DA270,'Footnotes list'!$D$9:$E$58,2,FALSE)=0,\"\",VLOOKUP(DA270,'Footnotes list'!$D$9:$E$58,2,FALSE) ) )","v":""},null,null,null,null,{"$f":"IF(TRIM(DF270)=\"\", \"\", IF(VLOOKUP(DF270,'Footnotes list'!$D$9:$E$58,2,FALSE)=0,\"\",VLOOKUP(DF270,'Footnotes list'!$D$9:$E$58,2,FALSE) ) )","v":""},null,null,null,null,{"$f":"IF(TRIM(DK270)=\"\", \"\", IF(VLOOKUP(DK270,'Footnotes list'!$D$9:$E$58,2,FALSE)=0,\"\",VLOOKUP(DK270,'Footnotes list'!$D$9:$E$58,2,FALSE) ) )","v":""},null,null,null,null,{"$f":"IF(TRIM(DP270)=\"\", \"\", IF(VLOOKUP(DP270,'Footnotes list'!$D$9:$E$58,2,FALSE)=0,\"\",VLOOKUP(DP270,'Footnotes list'!$D$9:$E$58,2,FALSE) ) )","v":""},null,null,null,null,{"$f":"IF(TRIM(DU270)=\"\", \"\", IF(VLOOKUP(DU270,'Footnotes list'!$D$9:$E$58,2,FALSE)=0,\"\",VLOOKUP(DU270,'Footnotes list'!$D$9:$E$58,2,FALSE) ) )","v":""},null,null,null,null,{"$f":"IF(TRIM(DZ270)=\"\", \"\", IF(VLOOKUP(DZ270,'Footnotes list'!$D$9:$E$58,2,FALSE)=0,\"\",VLOOKUP(DZ270,'Footnotes list'!$D$9:$E$58,2,FALSE) ) )","v":""},null,null,null,null,{"$f":"IF(TRIM(EE270)=\"\", \"\", IF(VLOOKUP(EE270,'Footnotes list'!$D$9:$E$58,2,FALSE)=0,\"\",VLOOKUP(EE270,'Footnotes list'!$D$9:$E$58,2,FALSE) ) )","v":""},null,null,null,null,{"$f":"IF(TRIM(EJ270)=\"\", \"\", IF(VLOOKUP(EJ270,'Footnotes list'!$D$9:$E$58,2,FALSE)=0,\"\",VLOOKUP(EJ270,'Footnotes list'!$D$9:$E$58,2,FALSE) ) )","v":""},null,null,null,null,{"$f":"IF(TRIM(EO270)=\"\", \"\", IF(VLOOKUP(EO270,'Footnotes list'!$D$9:$E$58,2,FALSE)=0,\"\",VLOOKUP(EO270,'Footnotes list'!$D$9:$E$58,2,FALSE) ) )","v":""},null,null,null,null,{"$f":"IF(TRIM(ET270)=\"\", \"\", IF(VLOOKUP(ET270,'Footnotes list'!$D$9:$E$58,2,FALSE)=0,\"\",VLOOKUP(ET270,'Footnotes list'!$D$9:$E$58,2,FALSE) ) )","v":""},null,null,null,null,{"$f":"IF(TRIM(EY270)=\"\", \"\", IF(VLOOKUP(EY270,'Footnotes list'!$D$9:$E$58,2,FALSE)=0,\"\",VLOOKUP(EY270,'Footnotes list'!$D$9:$E$58,2,FALSE) ) )","v":""}]
[null,null,"P","MKT","market activities, including:",null,null,null,null,null,{"$f":"IF(TRIM(J271)=\"\", \"\", IF(VLOOKUP(J271,'Footnotes list'!$D$9:$E$58,2,FALSE)=0,\"\",VLOOKUP(J271,'Footnotes list'!$D$9:$E$58,2,FALSE) ) )","v":""},null,null,null,null,{"$f":"IF(TRIM(O271)=\"\", \"\", IF(VLOOKUP(O271,'Footnotes list'!$D$9:$E$58,2,FALSE)=0,\"\",VLOOKUP(O271,'Footnotes list'!$D$9:$E$58,2,FALSE) ) )","v":""},null,null,null,null,{"$f":"IF(TRIM(T271)=\"\", \"\", IF(VLOOKUP(T271,'Footnotes list'!$D$9:$E$58,2,FALSE)=0,\"\",VLOOKUP(T271,'Footnotes list'!$D$9:$E$58,2,FALSE) ) )","v":""},null,null,null,null,{"$f":"IF(TRIM(Y271)=\"\", \"\", IF(VLOOKUP(Y271,'Footnotes list'!$D$9:$E$58,2,FALSE)=0,\"\",VLOOKUP(Y271,'Footnotes list'!$D$9:$E$58,2,FALSE) ) )","v":""},null,null,null,null,{"$f":"IF(TRIM(AD271)=\"\", \"\", IF(VLOOKUP(AD271,'Footnotes list'!$D$9:$E$58,2,FALSE)=0,\"\",VLOOKUP(AD271,'Footnotes list'!$D$9:$E$58,2,FALSE) ) )","v":""},null,null,null,null,{"$f":"IF(TRIM(AI271)=\"\", \"\", IF(VLOOKUP(AI271,'Footnotes list'!$D$9:$E$58,2,FALSE)=0,\"\",VLOOKUP(AI271,'Footnotes list'!$D$9:$E$58,2,FALSE) ) )","v":""},null,null,null,null,{"$f":"IF(TRIM(AN271)=\"\", \"\", IF(VLOOKUP(AN271,'Footnotes list'!$D$9:$E$58,2,FALSE)=0,\"\",VLOOKUP(AN271,'Footnotes list'!$D$9:$E$58,2,FALSE) ) )","v":""},null,null,null,null,{"$f":"IF(TRIM(AS271)=\"\", \"\", IF(VLOOKUP(AS271,'Footnotes list'!$D$9:$E$58,2,FALSE)=0,\"\",VLOOKUP(AS271,'Footnotes list'!$D$9:$E$58,2,FALSE) ) )","v":""},null,null,null,null,{"$f":"IF(TRIM(AX271)=\"\", \"\", IF(VLOOKUP(AX271,'Footnotes list'!$D$9:$E$58,2,FALSE)=0,\"\",VLOOKUP(AX271,'Footnotes list'!$D$9:$E$58,2,FALSE) ) )","v":""},null,null,null,null,{"$f":"IF(TRIM(BC271)=\"\", \"\", IF(VLOOKUP(BC271,'Footnotes list'!$D$9:$E$58,2,FALSE)=0,\"\",VLOOKUP(BC271,'Footnotes list'!$D$9:$E$58,2,FALSE) ) )","v":""},null,null,null,null,{"$f":"IF(TRIM(BH271)=\"\", \"\", IF(VLOOKUP(BH271,'Footnotes list'!$D$9:$E$58,2,FALSE)=0,\"\",VLOOKUP(BH271,'Footnotes list'!$D$9:$E$58,2,FALSE) ) )","v":""},null,null,null,null,{"$f":"IF(TRIM(BM271)=\"\", \"\", IF(VLOOKUP(BM271,'Footnotes list'!$D$9:$E$58,2,FALSE)=0,\"\",VLOOKUP(BM271,'Footnotes list'!$D$9:$E$58,2,FALSE) ) )","v":""},null,null,null,null,{"$f":"IF(TRIM(BR271)=\"\", \"\", IF(VLOOKUP(BR271,'Footnotes list'!$D$9:$E$58,2,FALSE)=0,\"\",VLOOKUP(BR271,'Footnotes list'!$D$9:$E$58,2,FALSE) ) )","v":""},null,null,null,null,{"$f":"IF(TRIM(BW271)=\"\", \"\", IF(VLOOKUP(BW271,'Footnotes list'!$D$9:$E$58,2,FALSE)=0,\"\",VLOOKUP(BW271,'Footnotes list'!$D$9:$E$58,2,FALSE) ) )","v":""},null,null,null,null,{"$f":"IF(TRIM(CB271)=\"\", \"\", IF(VLOOKUP(CB271,'Footnotes list'!$D$9:$E$58,2,FALSE)=0,\"\",VLOOKUP(CB271,'Footnotes list'!$D$9:$E$58,2,FALSE) ) )","v":""},null,null,null,null,{"$f":"IF(TRIM(CG271)=\"\", \"\", IF(VLOOKUP(CG271,'Footnotes list'!$D$9:$E$58,2,FALSE)=0,\"\",VLOOKUP(CG271,'Footnotes list'!$D$9:$E$58,2,FALSE) ) )","v":""},null,null,null,null,{"$f":"IF(TRIM(CL271)=\"\", \"\", IF(VLOOKUP(CL271,'Footnotes list'!$D$9:$E$58,2,FALSE)=0,\"\",VLOOKUP(CL271,'Footnotes list'!$D$9:$E$58,2,FALSE) ) )","v":""},null,null,null,null,{"$f":"IF(TRIM(CQ271)=\"\", \"\", IF(VLOOKUP(CQ271,'Footnotes list'!$D$9:$E$58,2,FALSE)=0,\"\",VLOOKUP(CQ271,'Footnotes list'!$D$9:$E$58,2,FALSE) ) )","v":""},null,null,null,null,{"$f":"IF(TRIM(CV271)=\"\", \"\", IF(VLOOKUP(CV271,'Footnotes list'!$D$9:$E$58,2,FALSE)=0,\"\",VLOOKUP(CV271,'Footnotes list'!$D$9:$E$58,2,FALSE) ) )","v":""},null,null,null,null,{"$f":"IF(TRIM(DA271)=\"\", \"\", IF(VLOOKUP(DA271,'Footnotes list'!$D$9:$E$58,2,FALSE)=0,\"\",VLOOKUP(DA271,'Footnotes list'!$D$9:$E$58,2,FALSE) ) )","v":""},null,null,null,null,{"$f":"IF(TRIM(DF271)=\"\", \"\", IF(VLOOKUP(DF271,'Footnotes list'!$D$9:$E$58,2,FALSE)=0,\"\",VLOOKUP(DF271,'Footnotes list'!$D$9:$E$58,2,FALSE) ) )","v":""},null,null,null,null,{"$f":"IF(TRIM(DK271)=\"\", \"\", IF(VLOOKUP(DK271,'Footnotes list'!$D$9:$E$58,2,FALSE)=0,\"\",VLOOKUP(DK271,'Footnotes list'!$D$9:$E$58,2,FALSE) ) )","v":""},null,null,null,null,{"$f":"IF(TRIM(DP271)=\"\", \"\", IF(VLOOKUP(DP271,'Footnotes list'!$D$9:$E$58,2,FALSE)=0,\"\",VLOOKUP(DP271,'Footnotes list'!$D$9:$E$58,2,FALSE) ) )","v":""},null,null,null,null,{"$f":"IF(TRIM(DU271)=\"\", \"\", IF(VLOOKUP(DU271,'Footnotes list'!$D$9:$E$58,2,FALSE)=0,\"\",VLOOKUP(DU271,'Footnotes list'!$D$9:$E$58,2,FALSE) ) )","v":""},null,null,null,null,{"$f":"IF(TRIM(DZ271)=\"\", \"\", IF(VLOOKUP(DZ271,'Footnotes list'!$D$9:$E$58,2,FALSE)=0,\"\",VLOOKUP(DZ271,'Footnotes list'!$D$9:$E$58,2,FALSE) ) )","v":""},null,null,null,null,{"$f":"IF(TRIM(EE271)=\"\", \"\", IF(VLOOKUP(EE271,'Footnotes list'!$D$9:$E$58,2,FALSE)=0,\"\",VLOOKUP(EE271,'Footnotes list'!$D$9:$E$58,2,FALSE) ) )","v":""},null,null,null,null,{"$f":"IF(TRIM(EJ271)=\"\", \"\", IF(VLOOKUP(EJ271,'Footnotes list'!$D$9:$E$58,2,FALSE)=0,\"\",VLOOKUP(EJ271,'Footnotes list'!$D$9:$E$58,2,FALSE) ) )","v":""},null,null,null,null,{"$f":"IF(TRIM(EO271)=\"\", \"\", IF(VLOOKUP(EO271,'Footnotes list'!$D$9:$E$58,2,FALSE)=0,\"\",VLOOKUP(EO271,'Footnotes list'!$D$9:$E$58,2,FALSE) ) )","v":""},null,null,null,null,{"$f":"IF(TRIM(ET271)=\"\", \"\", IF(VLOOKUP(ET271,'Footnotes list'!$D$9:$E$58,2,FALSE)=0,\"\",VLOOKUP(ET271,'Footnotes list'!$D$9:$E$58,2,FALSE) ) )","v":""},null,null,null,null,{"$f":"IF(TRIM(EY271)=\"\", \"\", IF(VLOOKUP(EY271,'Footnotes list'!$D$9:$E$58,2,FALSE)=0,\"\",VLOOKUP(EY271,'Footnotes list'!$D$9:$E$58,2,FALSE) ) )","v":""}]
[null,null,"P","ES_CS","environmental specific services",null,null,null,null,null,{"$f":"IF(TRIM(J272)=\"\", \"\", IF(VLOOKUP(J272,'Footnotes list'!$D$9:$E$58,2,FALSE)=0,\"\",VLOOKUP(J272,'Footnotes list'!$D$9:$E$58,2,FALSE) ) )","v":""},null,null,null,null,{"$f":"IF(TRIM(O272)=\"\", \"\", IF(VLOOKUP(O272,'Footnotes list'!$D$9:$E$58,2,FALSE)=0,\"\",VLOOKUP(O272,'Footnotes list'!$D$9:$E$58,2,FALSE) ) )","v":""},null,null,null,null,{"$f":"IF(TRIM(T272)=\"\", \"\", IF(VLOOKUP(T272,'Footnotes list'!$D$9:$E$58,2,FALSE)=0,\"\",VLOOKUP(T272,'Footnotes list'!$D$9:$E$58,2,FALSE) ) )","v":""},null,null,null,null,{"$f":"IF(TRIM(Y272)=\"\", \"\", IF(VLOOKUP(Y272,'Footnotes list'!$D$9:$E$58,2,FALSE)=0,\"\",VLOOKUP(Y272,'Footnotes list'!$D$9:$E$58,2,FALSE) ) )","v":""},null,null,null,null,{"$f":"IF(TRIM(AD272)=\"\", \"\", IF(VLOOKUP(AD272,'Footnotes list'!$D$9:$E$58,2,FALSE)=0,\"\",VLOOKUP(AD272,'Footnotes list'!$D$9:$E$58,2,FALSE) ) )","v":""},null,null,null,null,{"$f":"IF(TRIM(AI272)=\"\", \"\", IF(VLOOKUP(AI272,'Footnotes list'!$D$9:$E$58,2,FALSE)=0,\"\",VLOOKUP(AI272,'Footnotes list'!$D$9:$E$58,2,FALSE) ) )","v":""},null,null,null,null,{"$f":"IF(TRIM(AN272)=\"\", \"\", IF(VLOOKUP(AN272,'Footnotes list'!$D$9:$E$58,2,FALSE)=0,\"\",VLOOKUP(AN272,'Footnotes list'!$D$9:$E$58,2,FALSE) ) )","v":""},null,null,null,null,{"$f":"IF(TRIM(AS272)=\"\", \"\", IF(VLOOKUP(AS272,'Footnotes list'!$D$9:$E$58,2,FALSE)=0,\"\",VLOOKUP(AS272,'Footnotes list'!$D$9:$E$58,2,FALSE) ) )","v":""},null,null,null,null,{"$f":"IF(TRIM(AX272)=\"\", \"\", IF(VLOOKUP(AX272,'Footnotes list'!$D$9:$E$58,2,FALSE)=0,\"\",VLOOKUP(AX272,'Footnotes list'!$D$9:$E$58,2,FALSE) ) )","v":""},null,null,null,null,{"$f":"IF(TRIM(BC272)=\"\", \"\", IF(VLOOKUP(BC272,'Footnotes list'!$D$9:$E$58,2,FALSE)=0,\"\",VLOOKUP(BC272,'Footnotes list'!$D$9:$E$58,2,FALSE) ) )","v":""},null,null,null,null,{"$f":"IF(TRIM(BH272)=\"\", \"\", IF(VLOOKUP(BH272,'Footnotes list'!$D$9:$E$58,2,FALSE)=0,\"\",VLOOKUP(BH272,'Footnotes list'!$D$9:$E$58,2,FALSE) ) )","v":""},null,null,null,null,{"$f":"IF(TRIM(BM272)=\"\", \"\", IF(VLOOKUP(BM272,'Footnotes list'!$D$9:$E$58,2,FALSE)=0,\"\",VLOOKUP(BM272,'Footnotes list'!$D$9:$E$58,2,FALSE) ) )","v":""},null,null,null,null,{"$f":"IF(TRIM(BR272)=\"\", \"\", IF(VLOOKUP(BR272,'Footnotes list'!$D$9:$E$58,2,FALSE)=0,\"\",VLOOKUP(BR272,'Footnotes list'!$D$9:$E$58,2,FALSE) ) )","v":""},null,null,null,null,{"$f":"IF(TRIM(BW272)=\"\", \"\", IF(VLOOKUP(BW272,'Footnotes list'!$D$9:$E$58,2,FALSE)=0,\"\",VLOOKUP(BW272,'Footnotes list'!$D$9:$E$58,2,FALSE) ) )","v":""},null,null,null,null,{"$f":"IF(TRIM(CB272)=\"\", \"\", IF(VLOOKUP(CB272,'Footnotes list'!$D$9:$E$58,2,FALSE)=0,\"\",VLOOKUP(CB272,'Footnotes list'!$D$9:$E$58,2,FALSE) ) )","v":""},null,null,null,null,{"$f":"IF(TRIM(CG272)=\"\", \"\", IF(VLOOKUP(CG272,'Footnotes list'!$D$9:$E$58,2,FALSE)=0,\"\",VLOOKUP(CG272,'Footnotes list'!$D$9:$E$58,2,FALSE) ) )","v":""},null,null,null,null,{"$f":"IF(TRIM(CL272)=\"\", \"\", IF(VLOOKUP(CL272,'Footnotes list'!$D$9:$E$58,2,FALSE)=0,\"\",VLOOKUP(CL272,'Footnotes list'!$D$9:$E$58,2,FALSE) ) )","v":""},null,null,null,null,{"$f":"IF(TRIM(CQ272)=\"\", \"\", IF(VLOOKUP(CQ272,'Footnotes list'!$D$9:$E$58,2,FALSE)=0,\"\",VLOOKUP(CQ272,'Footnotes list'!$D$9:$E$58,2,FALSE) ) )","v":""},null,null,null,null,{"$f":"IF(TRIM(CV272)=\"\", \"\", IF(VLOOKUP(CV272,'Footnotes list'!$D$9:$E$58,2,FALSE)=0,\"\",VLOOKUP(CV272,'Footnotes list'!$D$9:$E$58,2,FALSE) ) )","v":""},null,null,null,null,{"$f":"IF(TRIM(DA272)=\"\", \"\", IF(VLOOKUP(DA272,'Footnotes list'!$D$9:$E$58,2,FALSE)=0,\"\",VLOOKUP(DA272,'Footnotes list'!$D$9:$E$58,2,FALSE) ) )","v":""},null,null,null,null,{"$f":"IF(TRIM(DF272)=\"\", \"\", IF(VLOOKUP(DF272,'Footnotes list'!$D$9:$E$58,2,FALSE)=0,\"\",VLOOKUP(DF272,'Footnotes list'!$D$9:$E$58,2,FALSE) ) )","v":""},null,null,null,null,{"$f":"IF(TRIM(DK272)=\"\", \"\", IF(VLOOKUP(DK272,'Footnotes list'!$D$9:$E$58,2,FALSE)=0,\"\",VLOOKUP(DK272,'Footnotes list'!$D$9:$E$58,2,FALSE) ) )","v":""},null,null,null,null,{"$f":"IF(TRIM(DP272)=\"\", \"\", IF(VLOOKUP(DP272,'Footnotes list'!$D$9:$E$58,2,FALSE)=0,\"\",VLOOKUP(DP272,'Footnotes list'!$D$9:$E$58,2,FALSE) ) )","v":""},null,null,null,null,{"$f":"IF(TRIM(DU272)=\"\", \"\", IF(VLOOKUP(DU272,'Footnotes list'!$D$9:$E$58,2,FALSE)=0,\"\",VLOOKUP(DU272,'Footnotes list'!$D$9:$E$58,2,FALSE) ) )","v":""},null,null,null,null,{"$f":"IF(TRIM(DZ272)=\"\", \"\", IF(VLOOKUP(DZ272,'Footnotes list'!$D$9:$E$58,2,FALSE)=0,\"\",VLOOKUP(DZ272,'Footnotes list'!$D$9:$E$58,2,FALSE) ) )","v":""},null,null,null,null,{"$f":"IF(TRIM(EE272)=\"\", \"\", IF(VLOOKUP(EE272,'Footnotes list'!$D$9:$E$58,2,FALSE)=0,\"\",VLOOKUP(EE272,'Footnotes list'!$D$9:$E$58,2,FALSE) ) )","v":""},null,null,null,null,{"$f":"IF(TRIM(EJ272)=\"\", \"\", IF(VLOOKUP(EJ272,'Footnotes list'!$D$9:$E$58,2,FALSE)=0,\"\",VLOOKUP(EJ272,'Footnotes list'!$D$9:$E$58,2,FALSE) ) )","v":""},null,null,null,null,{"$f":"IF(TRIM(EO272)=\"\", \"\", IF(VLOOKUP(EO272,'Footnotes list'!$D$9:$E$58,2,FALSE)=0,\"\",VLOOKUP(EO272,'Footnotes list'!$D$9:$E$58,2,FALSE) ) )","v":""},null,null,null,null,{"$f":"IF(TRIM(ET272)=\"\", \"\", IF(VLOOKUP(ET272,'Footnotes list'!$D$9:$E$58,2,FALSE)=0,\"\",VLOOKUP(ET272,'Footnotes list'!$D$9:$E$58,2,FALSE) ) )","v":""},null,null,null,null,{"$f":"IF(TRIM(EY272)=\"\", \"\", IF(VLOOKUP(EY272,'Footnotes list'!$D$9:$E$58,2,FALSE)=0,\"\",VLOOKUP(EY272,'Footnotes list'!$D$9:$E$58,2,FALSE) ) )","v":""}]
[null,null,"P","C_REP","cleaner and resource efficient products",null,null,null,null,null,{"$f":"IF(TRIM(J273)=\"\", \"\", IF(VLOOKUP(J273,'Footnotes list'!$D$9:$E$58,2,FALSE)=0,\"\",VLOOKUP(J273,'Footnotes list'!$D$9:$E$58,2,FALSE) ) )","v":""},null,null,null,null,{"$f":"IF(TRIM(O273)=\"\", \"\", IF(VLOOKUP(O273,'Footnotes list'!$D$9:$E$58,2,FALSE)=0,\"\",VLOOKUP(O273,'Footnotes list'!$D$9:$E$58,2,FALSE) ) )","v":""},null,null,null,null,{"$f":"IF(TRIM(T273)=\"\", \"\", IF(VLOOKUP(T273,'Footnotes list'!$D$9:$E$58,2,FALSE)=0,\"\",VLOOKUP(T273,'Footnotes list'!$D$9:$E$58,2,FALSE) ) )","v":""},null,null,null,null,{"$f":"IF(TRIM(Y273)=\"\", \"\", IF(VLOOKUP(Y273,'Footnotes list'!$D$9:$E$58,2,FALSE)=0,\"\",VLOOKUP(Y273,'Footnotes list'!$D$9:$E$58,2,FALSE) ) )","v":""},null,null,null,null,{"$f":"IF(TRIM(AD273)=\"\", \"\", IF(VLOOKUP(AD273,'Footnotes list'!$D$9:$E$58,2,FALSE)=0,\"\",VLOOKUP(AD273,'Footnotes list'!$D$9:$E$58,2,FALSE) ) )","v":""},null,null,null,null,{"$f":"IF(TRIM(AI273)=\"\", \"\", IF(VLOOKUP(AI273,'Footnotes list'!$D$9:$E$58,2,FALSE)=0,\"\",VLOOKUP(AI273,'Footnotes list'!$D$9:$E$58,2,FALSE) ) )","v":""},null,null,null,null,{"$f":"IF(TRIM(AN273)=\"\", \"\", IF(VLOOKUP(AN273,'Footnotes list'!$D$9:$E$58,2,FALSE)=0,\"\",VLOOKUP(AN273,'Footnotes list'!$D$9:$E$58,2,FALSE) ) )","v":""},null,null,null,null,{"$f":"IF(TRIM(AS273)=\"\", \"\", IF(VLOOKUP(AS273,'Footnotes list'!$D$9:$E$58,2,FALSE)=0,\"\",VLOOKUP(AS273,'Footnotes list'!$D$9:$E$58,2,FALSE) ) )","v":""},null,null,null,null,{"$f":"IF(TRIM(AX273)=\"\", \"\", IF(VLOOKUP(AX273,'Footnotes list'!$D$9:$E$58,2,FALSE)=0,\"\",VLOOKUP(AX273,'Footnotes list'!$D$9:$E$58,2,FALSE) ) )","v":""},null,null,null,null,{"$f":"IF(TRIM(BC273)=\"\", \"\", IF(VLOOKUP(BC273,'Footnotes list'!$D$9:$E$58,2,FALSE)=0,\"\",VLOOKUP(BC273,'Footnotes list'!$D$9:$E$58,2,FALSE) ) )","v":""},null,null,null,null,{"$f":"IF(TRIM(BH273)=\"\", \"\", IF(VLOOKUP(BH273,'Footnotes list'!$D$9:$E$58,2,FALSE)=0,\"\",VLOOKUP(BH273,'Footnotes list'!$D$9:$E$58,2,FALSE) ) )","v":""},null,null,null,null,{"$f":"IF(TRIM(BM273)=\"\", \"\", IF(VLOOKUP(BM273,'Footnotes list'!$D$9:$E$58,2,FALSE)=0,\"\",VLOOKUP(BM273,'Footnotes list'!$D$9:$E$58,2,FALSE) ) )","v":""},null,null,null,null,{"$f":"IF(TRIM(BR273)=\"\", \"\", IF(VLOOKUP(BR273,'Footnotes list'!$D$9:$E$58,2,FALSE)=0,\"\",VLOOKUP(BR273,'Footnotes list'!$D$9:$E$58,2,FALSE) ) )","v":""},null,null,null,null,{"$f":"IF(TRIM(BW273)=\"\", \"\", IF(VLOOKUP(BW273,'Footnotes list'!$D$9:$E$58,2,FALSE)=0,\"\",VLOOKUP(BW273,'Footnotes list'!$D$9:$E$58,2,FALSE) ) )","v":""},null,null,null,null,{"$f":"IF(TRIM(CB273)=\"\", \"\", IF(VLOOKUP(CB273,'Footnotes list'!$D$9:$E$58,2,FALSE)=0,\"\",VLOOKUP(CB273,'Footnotes list'!$D$9:$E$58,2,FALSE) ) )","v":""},null,null,null,null,{"$f":"IF(TRIM(CG273)=\"\", \"\", IF(VLOOKUP(CG273,'Footnotes list'!$D$9:$E$58,2,FALSE)=0,\"\",VLOOKUP(CG273,'Footnotes list'!$D$9:$E$58,2,FALSE) ) )","v":""},null,null,null,null,{"$f":"IF(TRIM(CL273)=\"\", \"\", IF(VLOOKUP(CL273,'Footnotes list'!$D$9:$E$58,2,FALSE)=0,\"\",VLOOKUP(CL273,'Footnotes list'!$D$9:$E$58,2,FALSE) ) )","v":""},null,null,null,null,{"$f":"IF(TRIM(CQ273)=\"\", \"\", IF(VLOOKUP(CQ273,'Footnotes list'!$D$9:$E$58,2,FALSE)=0,\"\",VLOOKUP(CQ273,'Footnotes list'!$D$9:$E$58,2,FALSE) ) )","v":""},null,null,null,null,{"$f":"IF(TRIM(CV273)=\"\", \"\", IF(VLOOKUP(CV273,'Footnotes list'!$D$9:$E$58,2,FALSE)=0,\"\",VLOOKUP(CV273,'Footnotes list'!$D$9:$E$58,2,FALSE) ) )","v":""},null,null,null,null,{"$f":"IF(TRIM(DA273)=\"\", \"\", IF(VLOOKUP(DA273,'Footnotes list'!$D$9:$E$58,2,FALSE)=0,\"\",VLOOKUP(DA273,'Footnotes list'!$D$9:$E$58,2,FALSE) ) )","v":""},null,null,null,null,{"$f":"IF(TRIM(DF273)=\"\", \"\", IF(VLOOKUP(DF273,'Footnotes list'!$D$9:$E$58,2,FALSE)=0,\"\",VLOOKUP(DF273,'Footnotes list'!$D$9:$E$58,2,FALSE) ) )","v":""},null,null,null,null,{"$f":"IF(TRIM(DK273)=\"\", \"\", IF(VLOOKUP(DK273,'Footnotes list'!$D$9:$E$58,2,FALSE)=0,\"\",VLOOKUP(DK273,'Footnotes list'!$D$9:$E$58,2,FALSE) ) )","v":""},null,null,null,null,{"$f":"IF(TRIM(DP273)=\"\", \"\", IF(VLOOKUP(DP273,'Footnotes list'!$D$9:$E$58,2,FALSE)=0,\"\",VLOOKUP(DP273,'Footnotes list'!$D$9:$E$58,2,FALSE) ) )","v":""},null,null,null,null,{"$f":"IF(TRIM(DU273)=\"\", \"\", IF(VLOOKUP(DU273,'Footnotes list'!$D$9:$E$58,2,FALSE)=0,\"\",VLOOKUP(DU273,'Footnotes list'!$D$9:$E$58,2,FALSE) ) )","v":""},null,null,null,null,{"$f":"IF(TRIM(DZ273)=\"\", \"\", IF(VLOOKUP(DZ273,'Footnotes list'!$D$9:$E$58,2,FALSE)=0,\"\",VLOOKUP(DZ273,'Footnotes list'!$D$9:$E$58,2,FALSE) ) )","v":""},null,null,null,null,{"$f":"IF(TRIM(EE273)=\"\", \"\", IF(VLOOKUP(EE273,'Footnotes list'!$D$9:$E$58,2,FALSE)=0,\"\",VLOOKUP(EE273,'Footnotes list'!$D$9:$E$58,2,FALSE) ) )","v":""},null,null,null,null,{"$f":"IF(TRIM(EJ273)=\"\", \"\", IF(VLOOKUP(EJ273,'Footnotes list'!$D$9:$E$58,2,FALSE)=0,\"\",VLOOKUP(EJ273,'Footnotes list'!$D$9:$E$58,2,FALSE) ) )","v":""},null,null,null,null,{"$f":"IF(TRIM(EO273)=\"\", \"\", IF(VLOOKUP(EO273,'Footnotes list'!$D$9:$E$58,2,FALSE)=0,\"\",VLOOKUP(EO273,'Footnotes list'!$D$9:$E$58,2,FALSE) ) )","v":""},null,null,null,null,{"$f":"IF(TRIM(ET273)=\"\", \"\", IF(VLOOKUP(ET273,'Footnotes list'!$D$9:$E$58,2,FALSE)=0,\"\",VLOOKUP(ET273,'Footnotes list'!$D$9:$E$58,2,FALSE) ) )","v":""},null,null,null,null,{"$f":"IF(TRIM(EY273)=\"\", \"\", IF(VLOOKUP(EY273,'Footnotes list'!$D$9:$E$58,2,FALSE)=0,\"\",VLOOKUP(EY273,'Footnotes list'!$D$9:$E$58,2,FALSE) ) )","v":""}]
[null,null,"Q","TOT_EGSS","Total Q - Human health and social work activities, of which:",null,null,null,null,null,{"$f":"IF(TRIM(J274)=\"\", \"\", IF(VLOOKUP(J274,'Footnotes list'!$D$9:$E$58,2,FALSE)=0,\"\",VLOOKUP(J274,'Footnotes list'!$D$9:$E$58,2,FALSE) ) )","v":""},null,null,null,null,{"$f":"IF(TRIM(O274)=\"\", \"\", IF(VLOOKUP(O274,'Footnotes list'!$D$9:$E$58,2,FALSE)=0,\"\",VLOOKUP(O274,'Footnotes list'!$D$9:$E$58,2,FALSE) ) )","v":""},null,null,null,null,{"$f":"IF(TRIM(T274)=\"\", \"\", IF(VLOOKUP(T274,'Footnotes list'!$D$9:$E$58,2,FALSE)=0,\"\",VLOOKUP(T274,'Footnotes list'!$D$9:$E$58,2,FALSE) ) )","v":""},null,null,null,null,{"$f":"IF(TRIM(Y274)=\"\", \"\", IF(VLOOKUP(Y274,'Footnotes list'!$D$9:$E$58,2,FALSE)=0,\"\",VLOOKUP(Y274,'Footnotes list'!$D$9:$E$58,2,FALSE) ) )","v":""},null,null,null,null,{"$f":"IF(TRIM(AD274)=\"\", \"\", IF(VLOOKUP(AD274,'Footnotes list'!$D$9:$E$58,2,FALSE)=0,\"\",VLOOKUP(AD274,'Footnotes list'!$D$9:$E$58,2,FALSE) ) )","v":""},null,null,null,null,{"$f":"IF(TRIM(AI274)=\"\", \"\", IF(VLOOKUP(AI274,'Footnotes list'!$D$9:$E$58,2,FALSE)=0,\"\",VLOOKUP(AI274,'Footnotes list'!$D$9:$E$58,2,FALSE) ) )","v":""},null,null,null,null,{"$f":"IF(TRIM(AN274)=\"\", \"\", IF(VLOOKUP(AN274,'Footnotes list'!$D$9:$E$58,2,FALSE)=0,\"\",VLOOKUP(AN274,'Footnotes list'!$D$9:$E$58,2,FALSE) ) )","v":""},null,null,null,null,{"$f":"IF(TRIM(AS274)=\"\", \"\", IF(VLOOKUP(AS274,'Footnotes list'!$D$9:$E$58,2,FALSE)=0,\"\",VLOOKUP(AS274,'Footnotes list'!$D$9:$E$58,2,FALSE) ) )","v":""},null,null,null,null,{"$f":"IF(TRIM(AX274)=\"\", \"\", IF(VLOOKUP(AX274,'Footnotes list'!$D$9:$E$58,2,FALSE)=0,\"\",VLOOKUP(AX274,'Footnotes list'!$D$9:$E$58,2,FALSE) ) )","v":""},null,null,null,null,{"$f":"IF(TRIM(BC274)=\"\", \"\", IF(VLOOKUP(BC274,'Footnotes list'!$D$9:$E$58,2,FALSE)=0,\"\",VLOOKUP(BC274,'Footnotes list'!$D$9:$E$58,2,FALSE) ) )","v":""},null,null,null,null,{"$f":"IF(TRIM(BH274)=\"\", \"\", IF(VLOOKUP(BH274,'Footnotes list'!$D$9:$E$58,2,FALSE)=0,\"\",VLOOKUP(BH274,'Footnotes list'!$D$9:$E$58,2,FALSE) ) )","v":""},null,null,null,null,{"$f":"IF(TRIM(BM274)=\"\", \"\", IF(VLOOKUP(BM274,'Footnotes list'!$D$9:$E$58,2,FALSE)=0,\"\",VLOOKUP(BM274,'Footnotes list'!$D$9:$E$58,2,FALSE) ) )","v":""},null,null,null,null,{"$f":"IF(TRIM(BR274)=\"\", \"\", IF(VLOOKUP(BR274,'Footnotes list'!$D$9:$E$58,2,FALSE)=0,\"\",VLOOKUP(BR274,'Footnotes list'!$D$9:$E$58,2,FALSE) ) )","v":""},null,null,null,null,{"$f":"IF(TRIM(BW274)=\"\", \"\", IF(VLOOKUP(BW274,'Footnotes list'!$D$9:$E$58,2,FALSE)=0,\"\",VLOOKUP(BW274,'Footnotes list'!$D$9:$E$58,2,FALSE) ) )","v":""},null,null,null,null,{"$f":"IF(TRIM(CB274)=\"\", \"\", IF(VLOOKUP(CB274,'Footnotes list'!$D$9:$E$58,2,FALSE)=0,\"\",VLOOKUP(CB274,'Footnotes list'!$D$9:$E$58,2,FALSE) ) )","v":""},null,null,null,null,{"$f":"IF(TRIM(CG274)=\"\", \"\", IF(VLOOKUP(CG274,'Footnotes list'!$D$9:$E$58,2,FALSE)=0,\"\",VLOOKUP(CG274,'Footnotes list'!$D$9:$E$58,2,FALSE) ) )","v":""},null,null,null,null,{"$f":"IF(TRIM(CL274)=\"\", \"\", IF(VLOOKUP(CL274,'Footnotes list'!$D$9:$E$58,2,FALSE)=0,\"\",VLOOKUP(CL274,'Footnotes list'!$D$9:$E$58,2,FALSE) ) )","v":""},null,null,null,null,{"$f":"IF(TRIM(CQ274)=\"\", \"\", IF(VLOOKUP(CQ274,'Footnotes list'!$D$9:$E$58,2,FALSE)=0,\"\",VLOOKUP(CQ274,'Footnotes list'!$D$9:$E$58,2,FALSE) ) )","v":""},null,null,null,null,{"$f":"IF(TRIM(CV274)=\"\", \"\", IF(VLOOKUP(CV274,'Footnotes list'!$D$9:$E$58,2,FALSE)=0,\"\",VLOOKUP(CV274,'Footnotes list'!$D$9:$E$58,2,FALSE) ) )","v":""},null,null,null,null,{"$f":"IF(TRIM(DA274)=\"\", \"\", IF(VLOOKUP(DA274,'Footnotes list'!$D$9:$E$58,2,FALSE)=0,\"\",VLOOKUP(DA274,'Footnotes list'!$D$9:$E$58,2,FALSE) ) )","v":""},null,null,null,null,{"$f":"IF(TRIM(DF274)=\"\", \"\", IF(VLOOKUP(DF274,'Footnotes list'!$D$9:$E$58,2,FALSE)=0,\"\",VLOOKUP(DF274,'Footnotes list'!$D$9:$E$58,2,FALSE) ) )","v":""},null,null,null,null,{"$f":"IF(TRIM(DK274)=\"\", \"\", IF(VLOOKUP(DK274,'Footnotes list'!$D$9:$E$58,2,FALSE)=0,\"\",VLOOKUP(DK274,'Footnotes list'!$D$9:$E$58,2,FALSE) ) )","v":""},null,null,null,null,{"$f":"IF(TRIM(DP274)=\"\", \"\", IF(VLOOKUP(DP274,'Footnotes list'!$D$9:$E$58,2,FALSE)=0,\"\",VLOOKUP(DP274,'Footnotes list'!$D$9:$E$58,2,FALSE) ) )","v":""},null,null,null,null,{"$f":"IF(TRIM(DU274)=\"\", \"\", IF(VLOOKUP(DU274,'Footnotes list'!$D$9:$E$58,2,FALSE)=0,\"\",VLOOKUP(DU274,'Footnotes list'!$D$9:$E$58,2,FALSE) ) )","v":""},null,null,null,null,{"$f":"IF(TRIM(DZ274)=\"\", \"\", IF(VLOOKUP(DZ274,'Footnotes list'!$D$9:$E$58,2,FALSE)=0,\"\",VLOOKUP(DZ274,'Footnotes list'!$D$9:$E$58,2,FALSE) ) )","v":""},null,null,null,null,{"$f":"IF(TRIM(EE274)=\"\", \"\", IF(VLOOKUP(EE274,'Footnotes list'!$D$9:$E$58,2,FALSE)=0,\"\",VLOOKUP(EE274,'Footnotes list'!$D$9:$E$58,2,FALSE) ) )","v":""},null,null,null,null,{"$f":"IF(TRIM(EJ274)=\"\", \"\", IF(VLOOKUP(EJ274,'Footnotes list'!$D$9:$E$58,2,FALSE)=0,\"\",VLOOKUP(EJ274,'Footnotes list'!$D$9:$E$58,2,FALSE) ) )","v":""},null,null,null,null,{"$f":"IF(TRIM(EO274)=\"\", \"\", IF(VLOOKUP(EO274,'Footnotes list'!$D$9:$E$58,2,FALSE)=0,\"\",VLOOKUP(EO274,'Footnotes list'!$D$9:$E$58,2,FALSE) ) )","v":""},null,null,null,null,{"$f":"IF(TRIM(ET274)=\"\", \"\", IF(VLOOKUP(ET274,'Footnotes list'!$D$9:$E$58,2,FALSE)=0,\"\",VLOOKUP(ET274,'Footnotes list'!$D$9:$E$58,2,FALSE) ) )","v":""},null,null,null,null,{"$f":"IF(TRIM(EY274)=\"\", \"\", IF(VLOOKUP(EY274,'Footnotes list'!$D$9:$E$58,2,FALSE)=0,\"\",VLOOKUP(EY274,'Footnotes list'!$D$9:$E$58,2,FALSE) ) )","v":""}]
[null,null,"Q","ANC","ancillary activities",null,null,null,null,null,{"$f":"IF(TRIM(J275)=\"\", \"\", IF(VLOOKUP(J275,'Footnotes list'!$D$9:$E$58,2,FALSE)=0,\"\",VLOOKUP(J275,'Footnotes list'!$D$9:$E$58,2,FALSE) ) )","v":""},null,null,null,null,{"$f":"IF(TRIM(O275)=\"\", \"\", IF(VLOOKUP(O275,'Footnotes list'!$D$9:$E$58,2,FALSE)=0,\"\",VLOOKUP(O275,'Footnotes list'!$D$9:$E$58,2,FALSE) ) )","v":""},null,null,null,null,{"$f":"IF(TRIM(T275)=\"\", \"\", IF(VLOOKUP(T275,'Footnotes list'!$D$9:$E$58,2,FALSE)=0,\"\",VLOOKUP(T275,'Footnotes list'!$D$9:$E$58,2,FALSE) ) )","v":""},null,null,null,null,{"$f":"IF(TRIM(Y275)=\"\", \"\", IF(VLOOKUP(Y275,'Footnotes list'!$D$9:$E$58,2,FALSE)=0,\"\",VLOOKUP(Y275,'Footnotes list'!$D$9:$E$58,2,FALSE) ) )","v":""},null,null,null,null,{"$f":"IF(TRIM(AD275)=\"\", \"\", IF(VLOOKUP(AD275,'Footnotes list'!$D$9:$E$58,2,FALSE)=0,\"\",VLOOKUP(AD275,'Footnotes list'!$D$9:$E$58,2,FALSE) ) )","v":""},null,null,null,null,{"$f":"IF(TRIM(AI275)=\"\", \"\", IF(VLOOKUP(AI275,'Footnotes list'!$D$9:$E$58,2,FALSE)=0,\"\",VLOOKUP(AI275,'Footnotes list'!$D$9:$E$58,2,FALSE) ) )","v":""},null,null,null,null,{"$f":"IF(TRIM(AN275)=\"\", \"\", IF(VLOOKUP(AN275,'Footnotes list'!$D$9:$E$58,2,FALSE)=0,\"\",VLOOKUP(AN275,'Footnotes list'!$D$9:$E$58,2,FALSE) ) )","v":""},null,null,null,null,{"$f":"IF(TRIM(AS275)=\"\", \"\", IF(VLOOKUP(AS275,'Footnotes list'!$D$9:$E$58,2,FALSE)=0,\"\",VLOOKUP(AS275,'Footnotes list'!$D$9:$E$58,2,FALSE) ) )","v":""},null,null,null,null,{"$f":"IF(TRIM(AX275)=\"\", \"\", IF(VLOOKUP(AX275,'Footnotes list'!$D$9:$E$58,2,FALSE)=0,\"\",VLOOKUP(AX275,'Footnotes list'!$D$9:$E$58,2,FALSE) ) )","v":""},null,null,null,null,{"$f":"IF(TRIM(BC275)=\"\", \"\", IF(VLOOKUP(BC275,'Footnotes list'!$D$9:$E$58,2,FALSE)=0,\"\",VLOOKUP(BC275,'Footnotes list'!$D$9:$E$58,2,FALSE) ) )","v":""},null,null,null,null,{"$f":"IF(TRIM(BH275)=\"\", \"\", IF(VLOOKUP(BH275,'Footnotes list'!$D$9:$E$58,2,FALSE)=0,\"\",VLOOKUP(BH275,'Footnotes list'!$D$9:$E$58,2,FALSE) ) )","v":""},null,null,null,null,{"$f":"IF(TRIM(BM275)=\"\", \"\", IF(VLOOKUP(BM275,'Footnotes list'!$D$9:$E$58,2,FALSE)=0,\"\",VLOOKUP(BM275,'Footnotes list'!$D$9:$E$58,2,FALSE) ) )","v":""},null,null,null,null,{"$f":"IF(TRIM(BR275)=\"\", \"\", IF(VLOOKUP(BR275,'Footnotes list'!$D$9:$E$58,2,FALSE)=0,\"\",VLOOKUP(BR275,'Footnotes list'!$D$9:$E$58,2,FALSE) ) )","v":""},null,null,null,null,{"$f":"IF(TRIM(BW275)=\"\", \"\", IF(VLOOKUP(BW275,'Footnotes list'!$D$9:$E$58,2,FALSE)=0,\"\",VLOOKUP(BW275,'Footnotes list'!$D$9:$E$58,2,FALSE) ) )","v":""},null,null,null,null,{"$f":"IF(TRIM(CB275)=\"\", \"\", IF(VLOOKUP(CB275,'Footnotes list'!$D$9:$E$58,2,FALSE)=0,\"\",VLOOKUP(CB275,'Footnotes list'!$D$9:$E$58,2,FALSE) ) )","v":""},null,null,null,null,{"$f":"IF(TRIM(CG275)=\"\", \"\", IF(VLOOKUP(CG275,'Footnotes list'!$D$9:$E$58,2,FALSE)=0,\"\",VLOOKUP(CG275,'Footnotes list'!$D$9:$E$58,2,FALSE) ) )","v":""},null,null,null,null,{"$f":"IF(TRIM(CL275)=\"\", \"\", IF(VLOOKUP(CL275,'Footnotes list'!$D$9:$E$58,2,FALSE)=0,\"\",VLOOKUP(CL275,'Footnotes list'!$D$9:$E$58,2,FALSE) ) )","v":""},null,null,null,null,{"$f":"IF(TRIM(CQ275)=\"\", \"\", IF(VLOOKUP(CQ275,'Footnotes list'!$D$9:$E$58,2,FALSE)=0,\"\",VLOOKUP(CQ275,'Footnotes list'!$D$9:$E$58,2,FALSE) ) )","v":""},null,null,null,null,{"$f":"IF(TRIM(CV275)=\"\", \"\", IF(VLOOKUP(CV275,'Footnotes list'!$D$9:$E$58,2,FALSE)=0,\"\",VLOOKUP(CV275,'Footnotes list'!$D$9:$E$58,2,FALSE) ) )","v":""},null,null,null,null,{"$f":"IF(TRIM(DA275)=\"\", \"\", IF(VLOOKUP(DA275,'Footnotes list'!$D$9:$E$58,2,FALSE)=0,\"\",VLOOKUP(DA275,'Footnotes list'!$D$9:$E$58,2,FALSE) ) )","v":""},null,null,null,null,{"$f":"IF(TRIM(DF275)=\"\", \"\", IF(VLOOKUP(DF275,'Footnotes list'!$D$9:$E$58,2,FALSE)=0,\"\",VLOOKUP(DF275,'Footnotes list'!$D$9:$E$58,2,FALSE) ) )","v":""},null,null,null,null,{"$f":"IF(TRIM(DK275)=\"\", \"\", IF(VLOOKUP(DK275,'Footnotes list'!$D$9:$E$58,2,FALSE)=0,\"\",VLOOKUP(DK275,'Footnotes list'!$D$9:$E$58,2,FALSE) ) )","v":""},null,null,null,null,{"$f":"IF(TRIM(DP275)=\"\", \"\", IF(VLOOKUP(DP275,'Footnotes list'!$D$9:$E$58,2,FALSE)=0,\"\",VLOOKUP(DP275,'Footnotes list'!$D$9:$E$58,2,FALSE) ) )","v":""},null,null,null,null,{"$f":"IF(TRIM(DU275)=\"\", \"\", IF(VLOOKUP(DU275,'Footnotes list'!$D$9:$E$58,2,FALSE)=0,\"\",VLOOKUP(DU275,'Footnotes list'!$D$9:$E$58,2,FALSE) ) )","v":""},null,null,null,null,{"$f":"IF(TRIM(DZ275)=\"\", \"\", IF(VLOOKUP(DZ275,'Footnotes list'!$D$9:$E$58,2,FALSE)=0,\"\",VLOOKUP(DZ275,'Footnotes list'!$D$9:$E$58,2,FALSE) ) )","v":""},null,null,null,null,{"$f":"IF(TRIM(EE275)=\"\", \"\", IF(VLOOKUP(EE275,'Footnotes list'!$D$9:$E$58,2,FALSE)=0,\"\",VLOOKUP(EE275,'Footnotes list'!$D$9:$E$58,2,FALSE) ) )","v":""},null,null,null,null,{"$f":"IF(TRIM(EJ275)=\"\", \"\", IF(VLOOKUP(EJ275,'Footnotes list'!$D$9:$E$58,2,FALSE)=0,\"\",VLOOKUP(EJ275,'Footnotes list'!$D$9:$E$58,2,FALSE) ) )","v":""},null,null,null,null,{"$f":"IF(TRIM(EO275)=\"\", \"\", IF(VLOOKUP(EO275,'Footnotes list'!$D$9:$E$58,2,FALSE)=0,\"\",VLOOKUP(EO275,'Footnotes list'!$D$9:$E$58,2,FALSE) ) )","v":""},null,null,null,null,{"$f":"IF(TRIM(ET275)=\"\", \"\", IF(VLOOKUP(ET275,'Footnotes list'!$D$9:$E$58,2,FALSE)=0,\"\",VLOOKUP(ET275,'Footnotes list'!$D$9:$E$58,2,FALSE) ) )","v":""},null,null,null,null,{"$f":"IF(TRIM(EY275)=\"\", \"\", IF(VLOOKUP(EY275,'Footnotes list'!$D$9:$E$58,2,FALSE)=0,\"\",VLOOKUP(EY275,'Footnotes list'!$D$9:$E$58,2,FALSE) ) )","v":""}]
[null,null,"Q","NMKT","non-market activities",null,null,null,null,null,{"$f":"IF(TRIM(J276)=\"\", \"\", IF(VLOOKUP(J276,'Footnotes list'!$D$9:$E$58,2,FALSE)=0,\"\",VLOOKUP(J276,'Footnotes list'!$D$9:$E$58,2,FALSE) ) )","v":""},null,null,null,null,{"$f":"IF(TRIM(O276)=\"\", \"\", IF(VLOOKUP(O276,'Footnotes list'!$D$9:$E$58,2,FALSE)=0,\"\",VLOOKUP(O276,'Footnotes list'!$D$9:$E$58,2,FALSE) ) )","v":""},null,null,null,null,{"$f":"IF(TRIM(T276)=\"\", \"\", IF(VLOOKUP(T276,'Footnotes list'!$D$9:$E$58,2,FALSE)=0,\"\",VLOOKUP(T276,'Footnotes list'!$D$9:$E$58,2,FALSE) ) )","v":""},null,null,null,null,{"$f":"IF(TRIM(Y276)=\"\", \"\", IF(VLOOKUP(Y276,'Footnotes list'!$D$9:$E$58,2,FALSE)=0,\"\",VLOOKUP(Y276,'Footnotes list'!$D$9:$E$58,2,FALSE) ) )","v":""},null,null,null,null,{"$f":"IF(TRIM(AD276)=\"\", \"\", IF(VLOOKUP(AD276,'Footnotes list'!$D$9:$E$58,2,FALSE)=0,\"\",VLOOKUP(AD276,'Footnotes list'!$D$9:$E$58,2,FALSE) ) )","v":""},null,null,null,null,{"$f":"IF(TRIM(AI276)=\"\", \"\", IF(VLOOKUP(AI276,'Footnotes list'!$D$9:$E$58,2,FALSE)=0,\"\",VLOOKUP(AI276,'Footnotes list'!$D$9:$E$58,2,FALSE) ) )","v":""},null,null,null,null,{"$f":"IF(TRIM(AN276)=\"\", \"\", IF(VLOOKUP(AN276,'Footnotes list'!$D$9:$E$58,2,FALSE)=0,\"\",VLOOKUP(AN276,'Footnotes list'!$D$9:$E$58,2,FALSE) ) )","v":""},null,null,null,null,{"$f":"IF(TRIM(AS276)=\"\", \"\", IF(VLOOKUP(AS276,'Footnotes list'!$D$9:$E$58,2,FALSE)=0,\"\",VLOOKUP(AS276,'Footnotes list'!$D$9:$E$58,2,FALSE) ) )","v":""},null,null,null,null,{"$f":"IF(TRIM(AX276)=\"\", \"\", IF(VLOOKUP(AX276,'Footnotes list'!$D$9:$E$58,2,FALSE)=0,\"\",VLOOKUP(AX276,'Footnotes list'!$D$9:$E$58,2,FALSE) ) )","v":""},null,null,null,null,{"$f":"IF(TRIM(BC276)=\"\", \"\", IF(VLOOKUP(BC276,'Footnotes list'!$D$9:$E$58,2,FALSE)=0,\"\",VLOOKUP(BC276,'Footnotes list'!$D$9:$E$58,2,FALSE) ) )","v":""},null,null,null,null,{"$f":"IF(TRIM(BH276)=\"\", \"\", IF(VLOOKUP(BH276,'Footnotes list'!$D$9:$E$58,2,FALSE)=0,\"\",VLOOKUP(BH276,'Footnotes list'!$D$9:$E$58,2,FALSE) ) )","v":""},null,null,null,null,{"$f":"IF(TRIM(BM276)=\"\", \"\", IF(VLOOKUP(BM276,'Footnotes list'!$D$9:$E$58,2,FALSE)=0,\"\",VLOOKUP(BM276,'Footnotes list'!$D$9:$E$58,2,FALSE) ) )","v":""},null,null,null,null,{"$f":"IF(TRIM(BR276)=\"\", \"\", IF(VLOOKUP(BR276,'Footnotes list'!$D$9:$E$58,2,FALSE)=0,\"\",VLOOKUP(BR276,'Footnotes list'!$D$9:$E$58,2,FALSE) ) )","v":""},null,null,null,null,{"$f":"IF(TRIM(BW276)=\"\", \"\", IF(VLOOKUP(BW276,'Footnotes list'!$D$9:$E$58,2,FALSE)=0,\"\",VLOOKUP(BW276,'Footnotes list'!$D$9:$E$58,2,FALSE) ) )","v":""},null,null,null,null,{"$f":"IF(TRIM(CB276)=\"\", \"\", IF(VLOOKUP(CB276,'Footnotes list'!$D$9:$E$58,2,FALSE)=0,\"\",VLOOKUP(CB276,'Footnotes list'!$D$9:$E$58,2,FALSE) ) )","v":""},null,null,null,null,{"$f":"IF(TRIM(CG276)=\"\", \"\", IF(VLOOKUP(CG276,'Footnotes list'!$D$9:$E$58,2,FALSE)=0,\"\",VLOOKUP(CG276,'Footnotes list'!$D$9:$E$58,2,FALSE) ) )","v":""},null,null,null,null,{"$f":"IF(TRIM(CL276)=\"\", \"\", IF(VLOOKUP(CL276,'Footnotes list'!$D$9:$E$58,2,FALSE)=0,\"\",VLOOKUP(CL276,'Footnotes list'!$D$9:$E$58,2,FALSE) ) )","v":""},null,null,null,null,{"$f":"IF(TRIM(CQ276)=\"\", \"\", IF(VLOOKUP(CQ276,'Footnotes list'!$D$9:$E$58,2,FALSE)=0,\"\",VLOOKUP(CQ276,'Footnotes list'!$D$9:$E$58,2,FALSE) ) )","v":""},null,null,null,null,{"$f":"IF(TRIM(CV276)=\"\", \"\", IF(VLOOKUP(CV276,'Footnotes list'!$D$9:$E$58,2,FALSE)=0,\"\",VLOOKUP(CV276,'Footnotes list'!$D$9:$E$58,2,FALSE) ) )","v":""},null,null,null,null,{"$f":"IF(TRIM(DA276)=\"\", \"\", IF(VLOOKUP(DA276,'Footnotes list'!$D$9:$E$58,2,FALSE)=0,\"\",VLOOKUP(DA276,'Footnotes list'!$D$9:$E$58,2,FALSE) ) )","v":""},null,null,null,null,{"$f":"IF(TRIM(DF276)=\"\", \"\", IF(VLOOKUP(DF276,'Footnotes list'!$D$9:$E$58,2,FALSE)=0,\"\",VLOOKUP(DF276,'Footnotes list'!$D$9:$E$58,2,FALSE) ) )","v":""},null,null,null,null,{"$f":"IF(TRIM(DK276)=\"\", \"\", IF(VLOOKUP(DK276,'Footnotes list'!$D$9:$E$58,2,FALSE)=0,\"\",VLOOKUP(DK276,'Footnotes list'!$D$9:$E$58,2,FALSE) ) )","v":""},null,null,null,null,{"$f":"IF(TRIM(DP276)=\"\", \"\", IF(VLOOKUP(DP276,'Footnotes list'!$D$9:$E$58,2,FALSE)=0,\"\",VLOOKUP(DP276,'Footnotes list'!$D$9:$E$58,2,FALSE) ) )","v":""},null,null,null,null,{"$f":"IF(TRIM(DU276)=\"\", \"\", IF(VLOOKUP(DU276,'Footnotes list'!$D$9:$E$58,2,FALSE)=0,\"\",VLOOKUP(DU276,'Footnotes list'!$D$9:$E$58,2,FALSE) ) )","v":""},null,null,null,null,{"$f":"IF(TRIM(DZ276)=\"\", \"\", IF(VLOOKUP(DZ276,'Footnotes list'!$D$9:$E$58,2,FALSE)=0,\"\",VLOOKUP(DZ276,'Footnotes list'!$D$9:$E$58,2,FALSE) ) )","v":""},null,null,null,null,{"$f":"IF(TRIM(EE276)=\"\", \"\", IF(VLOOKUP(EE276,'Footnotes list'!$D$9:$E$58,2,FALSE)=0,\"\",VLOOKUP(EE276,'Footnotes list'!$D$9:$E$58,2,FALSE) ) )","v":""},null,null,null,null,{"$f":"IF(TRIM(EJ276)=\"\", \"\", IF(VLOOKUP(EJ276,'Footnotes list'!$D$9:$E$58,2,FALSE)=0,\"\",VLOOKUP(EJ276,'Footnotes list'!$D$9:$E$58,2,FALSE) ) )","v":""},null,null,null,null,{"$f":"IF(TRIM(EO276)=\"\", \"\", IF(VLOOKUP(EO276,'Footnotes list'!$D$9:$E$58,2,FALSE)=0,\"\",VLOOKUP(EO276,'Footnotes list'!$D$9:$E$58,2,FALSE) ) )","v":""},null,null,null,null,{"$f":"IF(TRIM(ET276)=\"\", \"\", IF(VLOOKUP(ET276,'Footnotes list'!$D$9:$E$58,2,FALSE)=0,\"\",VLOOKUP(ET276,'Footnotes list'!$D$9:$E$58,2,FALSE) ) )","v":""},null,null,null,null,{"$f":"IF(TRIM(EY276)=\"\", \"\", IF(VLOOKUP(EY276,'Footnotes list'!$D$9:$E$58,2,FALSE)=0,\"\",VLOOKUP(EY276,'Footnotes list'!$D$9:$E$58,2,FALSE) ) )","v":""}]
[null,null,"Q","OWN_USE","activities for own final use",null,null,null,null,null,{"$f":"IF(TRIM(J277)=\"\", \"\", IF(VLOOKUP(J277,'Footnotes list'!$D$9:$E$58,2,FALSE)=0,\"\",VLOOKUP(J277,'Footnotes list'!$D$9:$E$58,2,FALSE) ) )","v":""},null,null,null,null,{"$f":"IF(TRIM(O277)=\"\", \"\", IF(VLOOKUP(O277,'Footnotes list'!$D$9:$E$58,2,FALSE)=0,\"\",VLOOKUP(O277,'Footnotes list'!$D$9:$E$58,2,FALSE) ) )","v":""},null,null,null,null,{"$f":"IF(TRIM(T277)=\"\", \"\", IF(VLOOKUP(T277,'Footnotes list'!$D$9:$E$58,2,FALSE)=0,\"\",VLOOKUP(T277,'Footnotes list'!$D$9:$E$58,2,FALSE) ) )","v":""},null,null,null,null,{"$f":"IF(TRIM(Y277)=\"\", \"\", IF(VLOOKUP(Y277,'Footnotes list'!$D$9:$E$58,2,FALSE)=0,\"\",VLOOKUP(Y277,'Footnotes list'!$D$9:$E$58,2,FALSE) ) )","v":""},null,null,null,null,{"$f":"IF(TRIM(AD277)=\"\", \"\", IF(VLOOKUP(AD277,'Footnotes list'!$D$9:$E$58,2,FALSE)=0,\"\",VLOOKUP(AD277,'Footnotes list'!$D$9:$E$58,2,FALSE) ) )","v":""},null,null,null,null,{"$f":"IF(TRIM(AI277)=\"\", \"\", IF(VLOOKUP(AI277,'Footnotes list'!$D$9:$E$58,2,FALSE)=0,\"\",VLOOKUP(AI277,'Footnotes list'!$D$9:$E$58,2,FALSE) ) )","v":""},null,null,null,null,{"$f":"IF(TRIM(AN277)=\"\", \"\", IF(VLOOKUP(AN277,'Footnotes list'!$D$9:$E$58,2,FALSE)=0,\"\",VLOOKUP(AN277,'Footnotes list'!$D$9:$E$58,2,FALSE) ) )","v":""},null,null,null,null,{"$f":"IF(TRIM(AS277)=\"\", \"\", IF(VLOOKUP(AS277,'Footnotes list'!$D$9:$E$58,2,FALSE)=0,\"\",VLOOKUP(AS277,'Footnotes list'!$D$9:$E$58,2,FALSE) ) )","v":""},null,null,null,null,{"$f":"IF(TRIM(AX277)=\"\", \"\", IF(VLOOKUP(AX277,'Footnotes list'!$D$9:$E$58,2,FALSE)=0,\"\",VLOOKUP(AX277,'Footnotes list'!$D$9:$E$58,2,FALSE) ) )","v":""},null,null,null,null,{"$f":"IF(TRIM(BC277)=\"\", \"\", IF(VLOOKUP(BC277,'Footnotes list'!$D$9:$E$58,2,FALSE)=0,\"\",VLOOKUP(BC277,'Footnotes list'!$D$9:$E$58,2,FALSE) ) )","v":""},null,null,null,null,{"$f":"IF(TRIM(BH277)=\"\", \"\", IF(VLOOKUP(BH277,'Footnotes list'!$D$9:$E$58,2,FALSE)=0,\"\",VLOOKUP(BH277,'Footnotes list'!$D$9:$E$58,2,FALSE) ) )","v":""},null,null,null,null,{"$f":"IF(TRIM(BM277)=\"\", \"\", IF(VLOOKUP(BM277,'Footnotes list'!$D$9:$E$58,2,FALSE)=0,\"\",VLOOKUP(BM277,'Footnotes list'!$D$9:$E$58,2,FALSE) ) )","v":""},null,null,null,null,{"$f":"IF(TRIM(BR277)=\"\", \"\", IF(VLOOKUP(BR277,'Footnotes list'!$D$9:$E$58,2,FALSE)=0,\"\",VLOOKUP(BR277,'Footnotes list'!$D$9:$E$58,2,FALSE) ) )","v":""},null,null,null,null,{"$f":"IF(TRIM(BW277)=\"\", \"\", IF(VLOOKUP(BW277,'Footnotes list'!$D$9:$E$58,2,FALSE)=0,\"\",VLOOKUP(BW277,'Footnotes list'!$D$9:$E$58,2,FALSE) ) )","v":""},null,null,null,null,{"$f":"IF(TRIM(CB277)=\"\", \"\", IF(VLOOKUP(CB277,'Footnotes list'!$D$9:$E$58,2,FALSE)=0,\"\",VLOOKUP(CB277,'Footnotes list'!$D$9:$E$58,2,FALSE) ) )","v":""},null,null,null,null,{"$f":"IF(TRIM(CG277)=\"\", \"\", IF(VLOOKUP(CG277,'Footnotes list'!$D$9:$E$58,2,FALSE)=0,\"\",VLOOKUP(CG277,'Footnotes list'!$D$9:$E$58,2,FALSE) ) )","v":""},null,null,null,null,{"$f":"IF(TRIM(CL277)=\"\", \"\", IF(VLOOKUP(CL277,'Footnotes list'!$D$9:$E$58,2,FALSE)=0,\"\",VLOOKUP(CL277,'Footnotes list'!$D$9:$E$58,2,FALSE) ) )","v":""},null,null,null,null,{"$f":"IF(TRIM(CQ277)=\"\", \"\", IF(VLOOKUP(CQ277,'Footnotes list'!$D$9:$E$58,2,FALSE)=0,\"\",VLOOKUP(CQ277,'Footnotes list'!$D$9:$E$58,2,FALSE) ) )","v":""},null,null,null,null,{"$f":"IF(TRIM(CV277)=\"\", \"\", IF(VLOOKUP(CV277,'Footnotes list'!$D$9:$E$58,2,FALSE)=0,\"\",VLOOKUP(CV277,'Footnotes list'!$D$9:$E$58,2,FALSE) ) )","v":""},null,null,null,null,{"$f":"IF(TRIM(DA277)=\"\", \"\", IF(VLOOKUP(DA277,'Footnotes list'!$D$9:$E$58,2,FALSE)=0,\"\",VLOOKUP(DA277,'Footnotes list'!$D$9:$E$58,2,FALSE) ) )","v":""},null,null,null,null,{"$f":"IF(TRIM(DF277)=\"\", \"\", IF(VLOOKUP(DF277,'Footnotes list'!$D$9:$E$58,2,FALSE)=0,\"\",VLOOKUP(DF277,'Footnotes list'!$D$9:$E$58,2,FALSE) ) )","v":""},null,null,null,null,{"$f":"IF(TRIM(DK277)=\"\", \"\", IF(VLOOKUP(DK277,'Footnotes list'!$D$9:$E$58,2,FALSE)=0,\"\",VLOOKUP(DK277,'Footnotes list'!$D$9:$E$58,2,FALSE) ) )","v":""},null,null,null,null,{"$f":"IF(TRIM(DP277)=\"\", \"\", IF(VLOOKUP(DP277,'Footnotes list'!$D$9:$E$58,2,FALSE)=0,\"\",VLOOKUP(DP277,'Footnotes list'!$D$9:$E$58,2,FALSE) ) )","v":""},null,null,null,null,{"$f":"IF(TRIM(DU277)=\"\", \"\", IF(VLOOKUP(DU277,'Footnotes list'!$D$9:$E$58,2,FALSE)=0,\"\",VLOOKUP(DU277,'Footnotes list'!$D$9:$E$58,2,FALSE) ) )","v":""},null,null,null,null,{"$f":"IF(TRIM(DZ277)=\"\", \"\", IF(VLOOKUP(DZ277,'Footnotes list'!$D$9:$E$58,2,FALSE)=0,\"\",VLOOKUP(DZ277,'Footnotes list'!$D$9:$E$58,2,FALSE) ) )","v":""},null,null,null,null,{"$f":"IF(TRIM(EE277)=\"\", \"\", IF(VLOOKUP(EE277,'Footnotes list'!$D$9:$E$58,2,FALSE)=0,\"\",VLOOKUP(EE277,'Footnotes list'!$D$9:$E$58,2,FALSE) ) )","v":""},null,null,null,null,{"$f":"IF(TRIM(EJ277)=\"\", \"\", IF(VLOOKUP(EJ277,'Footnotes list'!$D$9:$E$58,2,FALSE)=0,\"\",VLOOKUP(EJ277,'Footnotes list'!$D$9:$E$58,2,FALSE) ) )","v":""},null,null,null,null,{"$f":"IF(TRIM(EO277)=\"\", \"\", IF(VLOOKUP(EO277,'Footnotes list'!$D$9:$E$58,2,FALSE)=0,\"\",VLOOKUP(EO277,'Footnotes list'!$D$9:$E$58,2,FALSE) ) )","v":""},null,null,null,null,{"$f":"IF(TRIM(ET277)=\"\", \"\", IF(VLOOKUP(ET277,'Footnotes list'!$D$9:$E$58,2,FALSE)=0,\"\",VLOOKUP(ET277,'Footnotes list'!$D$9:$E$58,2,FALSE) ) )","v":""},null,null,null,null,{"$f":"IF(TRIM(EY277)=\"\", \"\", IF(VLOOKUP(EY277,'Footnotes list'!$D$9:$E$58,2,FALSE)=0,\"\",VLOOKUP(EY277,'Footnotes list'!$D$9:$E$58,2,FALSE) ) )","v":""}]
[null,null,"Q","MKT","market activities, including:",null,null,null,null,null,{"$f":"IF(TRIM(J278)=\"\", \"\", IF(VLOOKUP(J278,'Footnotes list'!$D$9:$E$58,2,FALSE)=0,\"\",VLOOKUP(J278,'Footnotes list'!$D$9:$E$58,2,FALSE) ) )","v":""},null,null,null,null,{"$f":"IF(TRIM(O278)=\"\", \"\", IF(VLOOKUP(O278,'Footnotes list'!$D$9:$E$58,2,FALSE)=0,\"\",VLOOKUP(O278,'Footnotes list'!$D$9:$E$58,2,FALSE) ) )","v":""},null,null,null,null,{"$f":"IF(TRIM(T278)=\"\", \"\", IF(VLOOKUP(T278,'Footnotes list'!$D$9:$E$58,2,FALSE)=0,\"\",VLOOKUP(T278,'Footnotes list'!$D$9:$E$58,2,FALSE) ) )","v":""},null,null,null,null,{"$f":"IF(TRIM(Y278)=\"\", \"\", IF(VLOOKUP(Y278,'Footnotes list'!$D$9:$E$58,2,FALSE)=0,\"\",VLOOKUP(Y278,'Footnotes list'!$D$9:$E$58,2,FALSE) ) )","v":""},null,null,null,null,{"$f":"IF(TRIM(AD278)=\"\", \"\", IF(VLOOKUP(AD278,'Footnotes list'!$D$9:$E$58,2,FALSE)=0,\"\",VLOOKUP(AD278,'Footnotes list'!$D$9:$E$58,2,FALSE) ) )","v":""},null,null,null,null,{"$f":"IF(TRIM(AI278)=\"\", \"\", IF(VLOOKUP(AI278,'Footnotes list'!$D$9:$E$58,2,FALSE)=0,\"\",VLOOKUP(AI278,'Footnotes list'!$D$9:$E$58,2,FALSE) ) )","v":""},null,null,null,null,{"$f":"IF(TRIM(AN278)=\"\", \"\", IF(VLOOKUP(AN278,'Footnotes list'!$D$9:$E$58,2,FALSE)=0,\"\",VLOOKUP(AN278,'Footnotes list'!$D$9:$E$58,2,FALSE) ) )","v":""},null,null,null,null,{"$f":"IF(TRIM(AS278)=\"\", \"\", IF(VLOOKUP(AS278,'Footnotes list'!$D$9:$E$58,2,FALSE)=0,\"\",VLOOKUP(AS278,'Footnotes list'!$D$9:$E$58,2,FALSE) ) )","v":""},null,null,null,null,{"$f":"IF(TRIM(AX278)=\"\", \"\", IF(VLOOKUP(AX278,'Footnotes list'!$D$9:$E$58,2,FALSE)=0,\"\",VLOOKUP(AX278,'Footnotes list'!$D$9:$E$58,2,FALSE) ) )","v":""},null,null,null,null,{"$f":"IF(TRIM(BC278)=\"\", \"\", IF(VLOOKUP(BC278,'Footnotes list'!$D$9:$E$58,2,FALSE)=0,\"\",VLOOKUP(BC278,'Footnotes list'!$D$9:$E$58,2,FALSE) ) )","v":""},null,null,null,null,{"$f":"IF(TRIM(BH278)=\"\", \"\", IF(VLOOKUP(BH278,'Footnotes list'!$D$9:$E$58,2,FALSE)=0,\"\",VLOOKUP(BH278,'Footnotes list'!$D$9:$E$58,2,FALSE) ) )","v":""},null,null,null,null,{"$f":"IF(TRIM(BM278)=\"\", \"\", IF(VLOOKUP(BM278,'Footnotes list'!$D$9:$E$58,2,FALSE)=0,\"\",VLOOKUP(BM278,'Footnotes list'!$D$9:$E$58,2,FALSE) ) )","v":""},null,null,null,null,{"$f":"IF(TRIM(BR278)=\"\", \"\", IF(VLOOKUP(BR278,'Footnotes list'!$D$9:$E$58,2,FALSE)=0,\"\",VLOOKUP(BR278,'Footnotes list'!$D$9:$E$58,2,FALSE) ) )","v":""},null,null,null,null,{"$f":"IF(TRIM(BW278)=\"\", \"\", IF(VLOOKUP(BW278,'Footnotes list'!$D$9:$E$58,2,FALSE)=0,\"\",VLOOKUP(BW278,'Footnotes list'!$D$9:$E$58,2,FALSE) ) )","v":""},null,null,null,null,{"$f":"IF(TRIM(CB278)=\"\", \"\", IF(VLOOKUP(CB278,'Footnotes list'!$D$9:$E$58,2,FALSE)=0,\"\",VLOOKUP(CB278,'Footnotes list'!$D$9:$E$58,2,FALSE) ) )","v":""},null,null,null,null,{"$f":"IF(TRIM(CG278)=\"\", \"\", IF(VLOOKUP(CG278,'Footnotes list'!$D$9:$E$58,2,FALSE)=0,\"\",VLOOKUP(CG278,'Footnotes list'!$D$9:$E$58,2,FALSE) ) )","v":""},null,null,null,null,{"$f":"IF(TRIM(CL278)=\"\", \"\", IF(VLOOKUP(CL278,'Footnotes list'!$D$9:$E$58,2,FALSE)=0,\"\",VLOOKUP(CL278,'Footnotes list'!$D$9:$E$58,2,FALSE) ) )","v":""},null,null,null,null,{"$f":"IF(TRIM(CQ278)=\"\", \"\", IF(VLOOKUP(CQ278,'Footnotes list'!$D$9:$E$58,2,FALSE)=0,\"\",VLOOKUP(CQ278,'Footnotes list'!$D$9:$E$58,2,FALSE) ) )","v":""},null,null,null,null,{"$f":"IF(TRIM(CV278)=\"\", \"\", IF(VLOOKUP(CV278,'Footnotes list'!$D$9:$E$58,2,FALSE)=0,\"\",VLOOKUP(CV278,'Footnotes list'!$D$9:$E$58,2,FALSE) ) )","v":""},null,null,null,null,{"$f":"IF(TRIM(DA278)=\"\", \"\", IF(VLOOKUP(DA278,'Footnotes list'!$D$9:$E$58,2,FALSE)=0,\"\",VLOOKUP(DA278,'Footnotes list'!$D$9:$E$58,2,FALSE) ) )","v":""},null,null,null,null,{"$f":"IF(TRIM(DF278)=\"\", \"\", IF(VLOOKUP(DF278,'Footnotes list'!$D$9:$E$58,2,FALSE)=0,\"\",VLOOKUP(DF278,'Footnotes list'!$D$9:$E$58,2,FALSE) ) )","v":""},null,null,null,null,{"$f":"IF(TRIM(DK278)=\"\", \"\", IF(VLOOKUP(DK278,'Footnotes list'!$D$9:$E$58,2,FALSE)=0,\"\",VLOOKUP(DK278,'Footnotes list'!$D$9:$E$58,2,FALSE) ) )","v":""},null,null,null,null,{"$f":"IF(TRIM(DP278)=\"\", \"\", IF(VLOOKUP(DP278,'Footnotes list'!$D$9:$E$58,2,FALSE)=0,\"\",VLOOKUP(DP278,'Footnotes list'!$D$9:$E$58,2,FALSE) ) )","v":""},null,null,null,null,{"$f":"IF(TRIM(DU278)=\"\", \"\", IF(VLOOKUP(DU278,'Footnotes list'!$D$9:$E$58,2,FALSE)=0,\"\",VLOOKUP(DU278,'Footnotes list'!$D$9:$E$58,2,FALSE) ) )","v":""},null,null,null,null,{"$f":"IF(TRIM(DZ278)=\"\", \"\", IF(VLOOKUP(DZ278,'Footnotes list'!$D$9:$E$58,2,FALSE)=0,\"\",VLOOKUP(DZ278,'Footnotes list'!$D$9:$E$58,2,FALSE) ) )","v":""},null,null,null,null,{"$f":"IF(TRIM(EE278)=\"\", \"\", IF(VLOOKUP(EE278,'Footnotes list'!$D$9:$E$58,2,FALSE)=0,\"\",VLOOKUP(EE278,'Footnotes list'!$D$9:$E$58,2,FALSE) ) )","v":""},null,null,null,null,{"$f":"IF(TRIM(EJ278)=\"\", \"\", IF(VLOOKUP(EJ278,'Footnotes list'!$D$9:$E$58,2,FALSE)=0,\"\",VLOOKUP(EJ278,'Footnotes list'!$D$9:$E$58,2,FALSE) ) )","v":""},null,null,null,null,{"$f":"IF(TRIM(EO278)=\"\", \"\", IF(VLOOKUP(EO278,'Footnotes list'!$D$9:$E$58,2,FALSE)=0,\"\",VLOOKUP(EO278,'Footnotes list'!$D$9:$E$58,2,FALSE) ) )","v":""},null,null,null,null,{"$f":"IF(TRIM(ET278)=\"\", \"\", IF(VLOOKUP(ET278,'Footnotes list'!$D$9:$E$58,2,FALSE)=0,\"\",VLOOKUP(ET278,'Footnotes list'!$D$9:$E$58,2,FALSE) ) )","v":""},null,null,null,null,{"$f":"IF(TRIM(EY278)=\"\", \"\", IF(VLOOKUP(EY278,'Footnotes list'!$D$9:$E$58,2,FALSE)=0,\"\",VLOOKUP(EY278,'Footnotes list'!$D$9:$E$58,2,FALSE) ) )","v":""}]
[null,null,"Q","ES_CS","environmental specific services",null,null,null,null,null,{"$f":"IF(TRIM(J279)=\"\", \"\", IF(VLOOKUP(J279,'Footnotes list'!$D$9:$E$58,2,FALSE)=0,\"\",VLOOKUP(J279,'Footnotes list'!$D$9:$E$58,2,FALSE) ) )","v":""},null,null,null,null,{"$f":"IF(TRIM(O279)=\"\", \"\", IF(VLOOKUP(O279,'Footnotes list'!$D$9:$E$58,2,FALSE)=0,\"\",VLOOKUP(O279,'Footnotes list'!$D$9:$E$58,2,FALSE) ) )","v":""},null,null,null,null,{"$f":"IF(TRIM(T279)=\"\", \"\", IF(VLOOKUP(T279,'Footnotes list'!$D$9:$E$58,2,FALSE)=0,\"\",VLOOKUP(T279,'Footnotes list'!$D$9:$E$58,2,FALSE) ) )","v":""},null,null,null,null,{"$f":"IF(TRIM(Y279)=\"\", \"\", IF(VLOOKUP(Y279,'Footnotes list'!$D$9:$E$58,2,FALSE)=0,\"\",VLOOKUP(Y279,'Footnotes list'!$D$9:$E$58,2,FALSE) ) )","v":""},null,null,null,null,{"$f":"IF(TRIM(AD279)=\"\", \"\", IF(VLOOKUP(AD279,'Footnotes list'!$D$9:$E$58,2,FALSE)=0,\"\",VLOOKUP(AD279,'Footnotes list'!$D$9:$E$58,2,FALSE) ) )","v":""},null,null,null,null,{"$f":"IF(TRIM(AI279)=\"\", \"\", IF(VLOOKUP(AI279,'Footnotes list'!$D$9:$E$58,2,FALSE)=0,\"\",VLOOKUP(AI279,'Footnotes list'!$D$9:$E$58,2,FALSE) ) )","v":""},null,null,null,null,{"$f":"IF(TRIM(AN279)=\"\", \"\", IF(VLOOKUP(AN279,'Footnotes list'!$D$9:$E$58,2,FALSE)=0,\"\",VLOOKUP(AN279,'Footnotes list'!$D$9:$E$58,2,FALSE) ) )","v":""},null,null,null,null,{"$f":"IF(TRIM(AS279)=\"\", \"\", IF(VLOOKUP(AS279,'Footnotes list'!$D$9:$E$58,2,FALSE)=0,\"\",VLOOKUP(AS279,'Footnotes list'!$D$9:$E$58,2,FALSE) ) )","v":""},null,null,null,null,{"$f":"IF(TRIM(AX279)=\"\", \"\", IF(VLOOKUP(AX279,'Footnotes list'!$D$9:$E$58,2,FALSE)=0,\"\",VLOOKUP(AX279,'Footnotes list'!$D$9:$E$58,2,FALSE) ) )","v":""},null,null,null,null,{"$f":"IF(TRIM(BC279)=\"\", \"\", IF(VLOOKUP(BC279,'Footnotes list'!$D$9:$E$58,2,FALSE)=0,\"\",VLOOKUP(BC279,'Footnotes list'!$D$9:$E$58,2,FALSE) ) )","v":""},null,null,null,null,{"$f":"IF(TRIM(BH279)=\"\", \"\", IF(VLOOKUP(BH279,'Footnotes list'!$D$9:$E$58,2,FALSE)=0,\"\",VLOOKUP(BH279,'Footnotes list'!$D$9:$E$58,2,FALSE) ) )","v":""},null,null,null,null,{"$f":"IF(TRIM(BM279)=\"\", \"\", IF(VLOOKUP(BM279,'Footnotes list'!$D$9:$E$58,2,FALSE)=0,\"\",VLOOKUP(BM279,'Footnotes list'!$D$9:$E$58,2,FALSE) ) )","v":""},null,null,null,null,{"$f":"IF(TRIM(BR279)=\"\", \"\", IF(VLOOKUP(BR279,'Footnotes list'!$D$9:$E$58,2,FALSE)=0,\"\",VLOOKUP(BR279,'Footnotes list'!$D$9:$E$58,2,FALSE) ) )","v":""},null,null,null,null,{"$f":"IF(TRIM(BW279)=\"\", \"\", IF(VLOOKUP(BW279,'Footnotes list'!$D$9:$E$58,2,FALSE)=0,\"\",VLOOKUP(BW279,'Footnotes list'!$D$9:$E$58,2,FALSE) ) )","v":""},null,null,null,null,{"$f":"IF(TRIM(CB279)=\"\", \"\", IF(VLOOKUP(CB279,'Footnotes list'!$D$9:$E$58,2,FALSE)=0,\"\",VLOOKUP(CB279,'Footnotes list'!$D$9:$E$58,2,FALSE) ) )","v":""},null,null,null,null,{"$f":"IF(TRIM(CG279)=\"\", \"\", IF(VLOOKUP(CG279,'Footnotes list'!$D$9:$E$58,2,FALSE)=0,\"\",VLOOKUP(CG279,'Footnotes list'!$D$9:$E$58,2,FALSE) ) )","v":""},null,null,null,null,{"$f":"IF(TRIM(CL279)=\"\", \"\", IF(VLOOKUP(CL279,'Footnotes list'!$D$9:$E$58,2,FALSE)=0,\"\",VLOOKUP(CL279,'Footnotes list'!$D$9:$E$58,2,FALSE) ) )","v":""},null,null,null,null,{"$f":"IF(TRIM(CQ279)=\"\", \"\", IF(VLOOKUP(CQ279,'Footnotes list'!$D$9:$E$58,2,FALSE)=0,\"\",VLOOKUP(CQ279,'Footnotes list'!$D$9:$E$58,2,FALSE) ) )","v":""},null,null,null,null,{"$f":"IF(TRIM(CV279)=\"\", \"\", IF(VLOOKUP(CV279,'Footnotes list'!$D$9:$E$58,2,FALSE)=0,\"\",VLOOKUP(CV279,'Footnotes list'!$D$9:$E$58,2,FALSE) ) )","v":""},null,null,null,null,{"$f":"IF(TRIM(DA279)=\"\", \"\", IF(VLOOKUP(DA279,'Footnotes list'!$D$9:$E$58,2,FALSE)=0,\"\",VLOOKUP(DA279,'Footnotes list'!$D$9:$E$58,2,FALSE) ) )","v":""},null,null,null,null,{"$f":"IF(TRIM(DF279)=\"\", \"\", IF(VLOOKUP(DF279,'Footnotes list'!$D$9:$E$58,2,FALSE)=0,\"\",VLOOKUP(DF279,'Footnotes list'!$D$9:$E$58,2,FALSE) ) )","v":""},null,null,null,null,{"$f":"IF(TRIM(DK279)=\"\", \"\", IF(VLOOKUP(DK279,'Footnotes list'!$D$9:$E$58,2,FALSE)=0,\"\",VLOOKUP(DK279,'Footnotes list'!$D$9:$E$58,2,FALSE) ) )","v":""},null,null,null,null,{"$f":"IF(TRIM(DP279)=\"\", \"\", IF(VLOOKUP(DP279,'Footnotes list'!$D$9:$E$58,2,FALSE)=0,\"\",VLOOKUP(DP279,'Footnotes list'!$D$9:$E$58,2,FALSE) ) )","v":""},null,null,null,null,{"$f":"IF(TRIM(DU279)=\"\", \"\", IF(VLOOKUP(DU279,'Footnotes list'!$D$9:$E$58,2,FALSE)=0,\"\",VLOOKUP(DU279,'Footnotes list'!$D$9:$E$58,2,FALSE) ) )","v":""},null,null,null,null,{"$f":"IF(TRIM(DZ279)=\"\", \"\", IF(VLOOKUP(DZ279,'Footnotes list'!$D$9:$E$58,2,FALSE)=0,\"\",VLOOKUP(DZ279,'Footnotes list'!$D$9:$E$58,2,FALSE) ) )","v":""},null,null,null,null,{"$f":"IF(TRIM(EE279)=\"\", \"\", IF(VLOOKUP(EE279,'Footnotes list'!$D$9:$E$58,2,FALSE)=0,\"\",VLOOKUP(EE279,'Footnotes list'!$D$9:$E$58,2,FALSE) ) )","v":""},null,null,null,null,{"$f":"IF(TRIM(EJ279)=\"\", \"\", IF(VLOOKUP(EJ279,'Footnotes list'!$D$9:$E$58,2,FALSE)=0,\"\",VLOOKUP(EJ279,'Footnotes list'!$D$9:$E$58,2,FALSE) ) )","v":""},null,null,null,null,{"$f":"IF(TRIM(EO279)=\"\", \"\", IF(VLOOKUP(EO279,'Footnotes list'!$D$9:$E$58,2,FALSE)=0,\"\",VLOOKUP(EO279,'Footnotes list'!$D$9:$E$58,2,FALSE) ) )","v":""},null,null,null,null,{"$f":"IF(TRIM(ET279)=\"\", \"\", IF(VLOOKUP(ET279,'Footnotes list'!$D$9:$E$58,2,FALSE)=0,\"\",VLOOKUP(ET279,'Footnotes list'!$D$9:$E$58,2,FALSE) ) )","v":""},null,null,null,null,{"$f":"IF(TRIM(EY279)=\"\", \"\", IF(VLOOKUP(EY279,'Footnotes list'!$D$9:$E$58,2,FALSE)=0,\"\",VLOOKUP(EY279,'Footnotes list'!$D$9:$E$58,2,FALSE) ) )","v":""}]
[null,null,"Q","C_REP","cleaner and resource efficient products",null,null,null,null,null,{"$f":"IF(TRIM(J280)=\"\", \"\", IF(VLOOKUP(J280,'Footnotes list'!$D$9:$E$58,2,FALSE)=0,\"\",VLOOKUP(J280,'Footnotes list'!$D$9:$E$58,2,FALSE) ) )","v":""},null,null,null,null,{"$f":"IF(TRIM(O280)=\"\", \"\", IF(VLOOKUP(O280,'Footnotes list'!$D$9:$E$58,2,FALSE)=0,\"\",VLOOKUP(O280,'Footnotes list'!$D$9:$E$58,2,FALSE) ) )","v":""},null,null,null,null,{"$f":"IF(TRIM(T280)=\"\", \"\", IF(VLOOKUP(T280,'Footnotes list'!$D$9:$E$58,2,FALSE)=0,\"\",VLOOKUP(T280,'Footnotes list'!$D$9:$E$58,2,FALSE) ) )","v":""},null,null,null,null,{"$f":"IF(TRIM(Y280)=\"\", \"\", IF(VLOOKUP(Y280,'Footnotes list'!$D$9:$E$58,2,FALSE)=0,\"\",VLOOKUP(Y280,'Footnotes list'!$D$9:$E$58,2,FALSE) ) )","v":""},null,null,null,null,{"$f":"IF(TRIM(AD280)=\"\", \"\", IF(VLOOKUP(AD280,'Footnotes list'!$D$9:$E$58,2,FALSE)=0,\"\",VLOOKUP(AD280,'Footnotes list'!$D$9:$E$58,2,FALSE) ) )","v":""},null,null,null,null,{"$f":"IF(TRIM(AI280)=\"\", \"\", IF(VLOOKUP(AI280,'Footnotes list'!$D$9:$E$58,2,FALSE)=0,\"\",VLOOKUP(AI280,'Footnotes list'!$D$9:$E$58,2,FALSE) ) )","v":""},null,null,null,null,{"$f":"IF(TRIM(AN280)=\"\", \"\", IF(VLOOKUP(AN280,'Footnotes list'!$D$9:$E$58,2,FALSE)=0,\"\",VLOOKUP(AN280,'Footnotes list'!$D$9:$E$58,2,FALSE) ) )","v":""},null,null,null,null,{"$f":"IF(TRIM(AS280)=\"\", \"\", IF(VLOOKUP(AS280,'Footnotes list'!$D$9:$E$58,2,FALSE)=0,\"\",VLOOKUP(AS280,'Footnotes list'!$D$9:$E$58,2,FALSE) ) )","v":""},null,null,null,null,{"$f":"IF(TRIM(AX280)=\"\", \"\", IF(VLOOKUP(AX280,'Footnotes list'!$D$9:$E$58,2,FALSE)=0,\"\",VLOOKUP(AX280,'Footnotes list'!$D$9:$E$58,2,FALSE) ) )","v":""},null,null,null,null,{"$f":"IF(TRIM(BC280)=\"\", \"\", IF(VLOOKUP(BC280,'Footnotes list'!$D$9:$E$58,2,FALSE)=0,\"\",VLOOKUP(BC280,'Footnotes list'!$D$9:$E$58,2,FALSE) ) )","v":""},null,null,null,null,{"$f":"IF(TRIM(BH280)=\"\", \"\", IF(VLOOKUP(BH280,'Footnotes list'!$D$9:$E$58,2,FALSE)=0,\"\",VLOOKUP(BH280,'Footnotes list'!$D$9:$E$58,2,FALSE) ) )","v":""},null,null,null,null,{"$f":"IF(TRIM(BM280)=\"\", \"\", IF(VLOOKUP(BM280,'Footnotes list'!$D$9:$E$58,2,FALSE)=0,\"\",VLOOKUP(BM280,'Footnotes list'!$D$9:$E$58,2,FALSE) ) )","v":""},null,null,null,null,{"$f":"IF(TRIM(BR280)=\"\", \"\", IF(VLOOKUP(BR280,'Footnotes list'!$D$9:$E$58,2,FALSE)=0,\"\",VLOOKUP(BR280,'Footnotes list'!$D$9:$E$58,2,FALSE) ) )","v":""},null,null,null,null,{"$f":"IF(TRIM(BW280)=\"\", \"\", IF(VLOOKUP(BW280,'Footnotes list'!$D$9:$E$58,2,FALSE)=0,\"\",VLOOKUP(BW280,'Footnotes list'!$D$9:$E$58,2,FALSE) ) )","v":""},null,null,null,null,{"$f":"IF(TRIM(CB280)=\"\", \"\", IF(VLOOKUP(CB280,'Footnotes list'!$D$9:$E$58,2,FALSE)=0,\"\",VLOOKUP(CB280,'Footnotes list'!$D$9:$E$58,2,FALSE) ) )","v":""},null,null,null,null,{"$f":"IF(TRIM(CG280)=\"\", \"\", IF(VLOOKUP(CG280,'Footnotes list'!$D$9:$E$58,2,FALSE)=0,\"\",VLOOKUP(CG280,'Footnotes list'!$D$9:$E$58,2,FALSE) ) )","v":""},null,null,null,null,{"$f":"IF(TRIM(CL280)=\"\", \"\", IF(VLOOKUP(CL280,'Footnotes list'!$D$9:$E$58,2,FALSE)=0,\"\",VLOOKUP(CL280,'Footnotes list'!$D$9:$E$58,2,FALSE) ) )","v":""},null,null,null,null,{"$f":"IF(TRIM(CQ280)=\"\", \"\", IF(VLOOKUP(CQ280,'Footnotes list'!$D$9:$E$58,2,FALSE)=0,\"\",VLOOKUP(CQ280,'Footnotes list'!$D$9:$E$58,2,FALSE) ) )","v":""},null,null,null,null,{"$f":"IF(TRIM(CV280)=\"\", \"\", IF(VLOOKUP(CV280,'Footnotes list'!$D$9:$E$58,2,FALSE)=0,\"\",VLOOKUP(CV280,'Footnotes list'!$D$9:$E$58,2,FALSE) ) )","v":""},null,null,null,null,{"$f":"IF(TRIM(DA280)=\"\", \"\", IF(VLOOKUP(DA280,'Footnotes list'!$D$9:$E$58,2,FALSE)=0,\"\",VLOOKUP(DA280,'Footnotes list'!$D$9:$E$58,2,FALSE) ) )","v":""},null,null,null,null,{"$f":"IF(TRIM(DF280)=\"\", \"\", IF(VLOOKUP(DF280,'Footnotes list'!$D$9:$E$58,2,FALSE)=0,\"\",VLOOKUP(DF280,'Footnotes list'!$D$9:$E$58,2,FALSE) ) )","v":""},null,null,null,null,{"$f":"IF(TRIM(DK280)=\"\", \"\", IF(VLOOKUP(DK280,'Footnotes list'!$D$9:$E$58,2,FALSE)=0,\"\",VLOOKUP(DK280,'Footnotes list'!$D$9:$E$58,2,FALSE) ) )","v":""},null,null,null,null,{"$f":"IF(TRIM(DP280)=\"\", \"\", IF(VLOOKUP(DP280,'Footnotes list'!$D$9:$E$58,2,FALSE)=0,\"\",VLOOKUP(DP280,'Footnotes list'!$D$9:$E$58,2,FALSE) ) )","v":""},null,null,null,null,{"$f":"IF(TRIM(DU280)=\"\", \"\", IF(VLOOKUP(DU280,'Footnotes list'!$D$9:$E$58,2,FALSE)=0,\"\",VLOOKUP(DU280,'Footnotes list'!$D$9:$E$58,2,FALSE) ) )","v":""},null,null,null,null,{"$f":"IF(TRIM(DZ280)=\"\", \"\", IF(VLOOKUP(DZ280,'Footnotes list'!$D$9:$E$58,2,FALSE)=0,\"\",VLOOKUP(DZ280,'Footnotes list'!$D$9:$E$58,2,FALSE) ) )","v":""},null,null,null,null,{"$f":"IF(TRIM(EE280)=\"\", \"\", IF(VLOOKUP(EE280,'Footnotes list'!$D$9:$E$58,2,FALSE)=0,\"\",VLOOKUP(EE280,'Footnotes list'!$D$9:$E$58,2,FALSE) ) )","v":""},null,null,null,null,{"$f":"IF(TRIM(EJ280)=\"\", \"\", IF(VLOOKUP(EJ280,'Footnotes list'!$D$9:$E$58,2,FALSE)=0,\"\",VLOOKUP(EJ280,'Footnotes list'!$D$9:$E$58,2,FALSE) ) )","v":""},null,null,null,null,{"$f":"IF(TRIM(EO280)=\"\", \"\", IF(VLOOKUP(EO280,'Footnotes list'!$D$9:$E$58,2,FALSE)=0,\"\",VLOOKUP(EO280,'Footnotes list'!$D$9:$E$58,2,FALSE) ) )","v":""},null,null,null,null,{"$f":"IF(TRIM(ET280)=\"\", \"\", IF(VLOOKUP(ET280,'Footnotes list'!$D$9:$E$58,2,FALSE)=0,\"\",VLOOKUP(ET280,'Footnotes list'!$D$9:$E$58,2,FALSE) ) )","v":""},null,null,null,null,{"$f":"IF(TRIM(EY280)=\"\", \"\", IF(VLOOKUP(EY280,'Footnotes list'!$D$9:$E$58,2,FALSE)=0,\"\",VLOOKUP(EY280,'Footnotes list'!$D$9:$E$58,2,FALSE) ) )","v":""}]
[null,null,"R","TOT_EGSS","Total R - Arts, entertainment and recreation, of which:",null,null,null,null,null,{"$f":"IF(TRIM(J281)=\"\", \"\", IF(VLOOKUP(J281,'Footnotes list'!$D$9:$E$58,2,FALSE)=0,\"\",VLOOKUP(J281,'Footnotes list'!$D$9:$E$58,2,FALSE) ) )","v":""},null,null,null,null,{"$f":"IF(TRIM(O281)=\"\", \"\", IF(VLOOKUP(O281,'Footnotes list'!$D$9:$E$58,2,FALSE)=0,\"\",VLOOKUP(O281,'Footnotes list'!$D$9:$E$58,2,FALSE) ) )","v":""},null,null,null,null,{"$f":"IF(TRIM(T281)=\"\", \"\", IF(VLOOKUP(T281,'Footnotes list'!$D$9:$E$58,2,FALSE)=0,\"\",VLOOKUP(T281,'Footnotes list'!$D$9:$E$58,2,FALSE) ) )","v":""},null,null,null,null,{"$f":"IF(TRIM(Y281)=\"\", \"\", IF(VLOOKUP(Y281,'Footnotes list'!$D$9:$E$58,2,FALSE)=0,\"\",VLOOKUP(Y281,'Footnotes list'!$D$9:$E$58,2,FALSE) ) )","v":""},null,null,null,null,{"$f":"IF(TRIM(AD281)=\"\", \"\", IF(VLOOKUP(AD281,'Footnotes list'!$D$9:$E$58,2,FALSE)=0,\"\",VLOOKUP(AD281,'Footnotes list'!$D$9:$E$58,2,FALSE) ) )","v":""},null,null,null,null,{"$f":"IF(TRIM(AI281)=\"\", \"\", IF(VLOOKUP(AI281,'Footnotes list'!$D$9:$E$58,2,FALSE)=0,\"\",VLOOKUP(AI281,'Footnotes list'!$D$9:$E$58,2,FALSE) ) )","v":""},null,null,null,null,{"$f":"IF(TRIM(AN281)=\"\", \"\", IF(VLOOKUP(AN281,'Footnotes list'!$D$9:$E$58,2,FALSE)=0,\"\",VLOOKUP(AN281,'Footnotes list'!$D$9:$E$58,2,FALSE) ) )","v":""},null,null,null,null,{"$f":"IF(TRIM(AS281)=\"\", \"\", IF(VLOOKUP(AS281,'Footnotes list'!$D$9:$E$58,2,FALSE)=0,\"\",VLOOKUP(AS281,'Footnotes list'!$D$9:$E$58,2,FALSE) ) )","v":""},null,null,null,null,{"$f":"IF(TRIM(AX281)=\"\", \"\", IF(VLOOKUP(AX281,'Footnotes list'!$D$9:$E$58,2,FALSE)=0,\"\",VLOOKUP(AX281,'Footnotes list'!$D$9:$E$58,2,FALSE) ) )","v":""},null,null,null,null,{"$f":"IF(TRIM(BC281)=\"\", \"\", IF(VLOOKUP(BC281,'Footnotes list'!$D$9:$E$58,2,FALSE)=0,\"\",VLOOKUP(BC281,'Footnotes list'!$D$9:$E$58,2,FALSE) ) )","v":""},null,null,null,null,{"$f":"IF(TRIM(BH281)=\"\", \"\", IF(VLOOKUP(BH281,'Footnotes list'!$D$9:$E$58,2,FALSE)=0,\"\",VLOOKUP(BH281,'Footnotes list'!$D$9:$E$58,2,FALSE) ) )","v":""},null,null,null,null,{"$f":"IF(TRIM(BM281)=\"\", \"\", IF(VLOOKUP(BM281,'Footnotes list'!$D$9:$E$58,2,FALSE)=0,\"\",VLOOKUP(BM281,'Footnotes list'!$D$9:$E$58,2,FALSE) ) )","v":""},null,null,null,null,{"$f":"IF(TRIM(BR281)=\"\", \"\", IF(VLOOKUP(BR281,'Footnotes list'!$D$9:$E$58,2,FALSE)=0,\"\",VLOOKUP(BR281,'Footnotes list'!$D$9:$E$58,2,FALSE) ) )","v":""},null,null,null,null,{"$f":"IF(TRIM(BW281)=\"\", \"\", IF(VLOOKUP(BW281,'Footnotes list'!$D$9:$E$58,2,FALSE)=0,\"\",VLOOKUP(BW281,'Footnotes list'!$D$9:$E$58,2,FALSE) ) )","v":""},null,null,null,null,{"$f":"IF(TRIM(CB281)=\"\", \"\", IF(VLOOKUP(CB281,'Footnotes list'!$D$9:$E$58,2,FALSE)=0,\"\",VLOOKUP(CB281,'Footnotes list'!$D$9:$E$58,2,FALSE) ) )","v":""},null,null,null,null,{"$f":"IF(TRIM(CG281)=\"\", \"\", IF(VLOOKUP(CG281,'Footnotes list'!$D$9:$E$58,2,FALSE)=0,\"\",VLOOKUP(CG281,'Footnotes list'!$D$9:$E$58,2,FALSE) ) )","v":""},null,null,null,null,{"$f":"IF(TRIM(CL281)=\"\", \"\", IF(VLOOKUP(CL281,'Footnotes list'!$D$9:$E$58,2,FALSE)=0,\"\",VLOOKUP(CL281,'Footnotes list'!$D$9:$E$58,2,FALSE) ) )","v":""},null,null,null,null,{"$f":"IF(TRIM(CQ281)=\"\", \"\", IF(VLOOKUP(CQ281,'Footnotes list'!$D$9:$E$58,2,FALSE)=0,\"\",VLOOKUP(CQ281,'Footnotes list'!$D$9:$E$58,2,FALSE) ) )","v":""},null,null,null,null,{"$f":"IF(TRIM(CV281)=\"\", \"\", IF(VLOOKUP(CV281,'Footnotes list'!$D$9:$E$58,2,FALSE)=0,\"\",VLOOKUP(CV281,'Footnotes list'!$D$9:$E$58,2,FALSE) ) )","v":""},null,null,null,null,{"$f":"IF(TRIM(DA281)=\"\", \"\", IF(VLOOKUP(DA281,'Footnotes list'!$D$9:$E$58,2,FALSE)=0,\"\",VLOOKUP(DA281,'Footnotes list'!$D$9:$E$58,2,FALSE) ) )","v":""},null,null,null,null,{"$f":"IF(TRIM(DF281)=\"\", \"\", IF(VLOOKUP(DF281,'Footnotes list'!$D$9:$E$58,2,FALSE)=0,\"\",VLOOKUP(DF281,'Footnotes list'!$D$9:$E$58,2,FALSE) ) )","v":""},null,null,null,null,{"$f":"IF(TRIM(DK281)=\"\", \"\", IF(VLOOKUP(DK281,'Footnotes list'!$D$9:$E$58,2,FALSE)=0,\"\",VLOOKUP(DK281,'Footnotes list'!$D$9:$E$58,2,FALSE) ) )","v":""},null,null,null,null,{"$f":"IF(TRIM(DP281)=\"\", \"\", IF(VLOOKUP(DP281,'Footnotes list'!$D$9:$E$58,2,FALSE)=0,\"\",VLOOKUP(DP281,'Footnotes list'!$D$9:$E$58,2,FALSE) ) )","v":""},null,null,null,null,{"$f":"IF(TRIM(DU281)=\"\", \"\", IF(VLOOKUP(DU281,'Footnotes list'!$D$9:$E$58,2,FALSE)=0,\"\",VLOOKUP(DU281,'Footnotes list'!$D$9:$E$58,2,FALSE) ) )","v":""},null,null,null,null,{"$f":"IF(TRIM(DZ281)=\"\", \"\", IF(VLOOKUP(DZ281,'Footnotes list'!$D$9:$E$58,2,FALSE)=0,\"\",VLOOKUP(DZ281,'Footnotes list'!$D$9:$E$58,2,FALSE) ) )","v":""},null,null,null,null,{"$f":"IF(TRIM(EE281)=\"\", \"\", IF(VLOOKUP(EE281,'Footnotes list'!$D$9:$E$58,2,FALSE)=0,\"\",VLOOKUP(EE281,'Footnotes list'!$D$9:$E$58,2,FALSE) ) )","v":""},null,null,null,null,{"$f":"IF(TRIM(EJ281)=\"\", \"\", IF(VLOOKUP(EJ281,'Footnotes list'!$D$9:$E$58,2,FALSE)=0,\"\",VLOOKUP(EJ281,'Footnotes list'!$D$9:$E$58,2,FALSE) ) )","v":""},null,null,null,null,{"$f":"IF(TRIM(EO281)=\"\", \"\", IF(VLOOKUP(EO281,'Footnotes list'!$D$9:$E$58,2,FALSE)=0,\"\",VLOOKUP(EO281,'Footnotes list'!$D$9:$E$58,2,FALSE) ) )","v":""},null,null,null,null,{"$f":"IF(TRIM(ET281)=\"\", \"\", IF(VLOOKUP(ET281,'Footnotes list'!$D$9:$E$58,2,FALSE)=0,\"\",VLOOKUP(ET281,'Footnotes list'!$D$9:$E$58,2,FALSE) ) )","v":""},null,null,null,null,{"$f":"IF(TRIM(EY281)=\"\", \"\", IF(VLOOKUP(EY281,'Footnotes list'!$D$9:$E$58,2,FALSE)=0,\"\",VLOOKUP(EY281,'Footnotes list'!$D$9:$E$58,2,FALSE) ) )","v":""}]
[null,null,"R","ANC","ancillary activities",null,null,null,null,null,{"$f":"IF(TRIM(J282)=\"\", \"\", IF(VLOOKUP(J282,'Footnotes list'!$D$9:$E$58,2,FALSE)=0,\"\",VLOOKUP(J282,'Footnotes list'!$D$9:$E$58,2,FALSE) ) )","v":""},null,null,null,null,{"$f":"IF(TRIM(O282)=\"\", \"\", IF(VLOOKUP(O282,'Footnotes list'!$D$9:$E$58,2,FALSE)=0,\"\",VLOOKUP(O282,'Footnotes list'!$D$9:$E$58,2,FALSE) ) )","v":""},null,null,null,null,{"$f":"IF(TRIM(T282)=\"\", \"\", IF(VLOOKUP(T282,'Footnotes list'!$D$9:$E$58,2,FALSE)=0,\"\",VLOOKUP(T282,'Footnotes list'!$D$9:$E$58,2,FALSE) ) )","v":""},null,null,null,null,{"$f":"IF(TRIM(Y282)=\"\", \"\", IF(VLOOKUP(Y282,'Footnotes list'!$D$9:$E$58,2,FALSE)=0,\"\",VLOOKUP(Y282,'Footnotes list'!$D$9:$E$58,2,FALSE) ) )","v":""},null,null,null,null,{"$f":"IF(TRIM(AD282)=\"\", \"\", IF(VLOOKUP(AD282,'Footnotes list'!$D$9:$E$58,2,FALSE)=0,\"\",VLOOKUP(AD282,'Footnotes list'!$D$9:$E$58,2,FALSE) ) )","v":""},null,null,null,null,{"$f":"IF(TRIM(AI282)=\"\", \"\", IF(VLOOKUP(AI282,'Footnotes list'!$D$9:$E$58,2,FALSE)=0,\"\",VLOOKUP(AI282,'Footnotes list'!$D$9:$E$58,2,FALSE) ) )","v":""},null,null,null,null,{"$f":"IF(TRIM(AN282)=\"\", \"\", IF(VLOOKUP(AN282,'Footnotes list'!$D$9:$E$58,2,FALSE)=0,\"\",VLOOKUP(AN282,'Footnotes list'!$D$9:$E$58,2,FALSE) ) )","v":""},null,null,null,null,{"$f":"IF(TRIM(AS282)=\"\", \"\", IF(VLOOKUP(AS282,'Footnotes list'!$D$9:$E$58,2,FALSE)=0,\"\",VLOOKUP(AS282,'Footnotes list'!$D$9:$E$58,2,FALSE) ) )","v":""},null,null,null,null,{"$f":"IF(TRIM(AX282)=\"\", \"\", IF(VLOOKUP(AX282,'Footnotes list'!$D$9:$E$58,2,FALSE)=0,\"\",VLOOKUP(AX282,'Footnotes list'!$D$9:$E$58,2,FALSE) ) )","v":""},null,null,null,null,{"$f":"IF(TRIM(BC282)=\"\", \"\", IF(VLOOKUP(BC282,'Footnotes list'!$D$9:$E$58,2,FALSE)=0,\"\",VLOOKUP(BC282,'Footnotes list'!$D$9:$E$58,2,FALSE) ) )","v":""},null,null,null,null,{"$f":"IF(TRIM(BH282)=\"\", \"\", IF(VLOOKUP(BH282,'Footnotes list'!$D$9:$E$58,2,FALSE)=0,\"\",VLOOKUP(BH282,'Footnotes list'!$D$9:$E$58,2,FALSE) ) )","v":""},null,null,null,null,{"$f":"IF(TRIM(BM282)=\"\", \"\", IF(VLOOKUP(BM282,'Footnotes list'!$D$9:$E$58,2,FALSE)=0,\"\",VLOOKUP(BM282,'Footnotes list'!$D$9:$E$58,2,FALSE) ) )","v":""},null,null,null,null,{"$f":"IF(TRIM(BR282)=\"\", \"\", IF(VLOOKUP(BR282,'Footnotes list'!$D$9:$E$58,2,FALSE)=0,\"\",VLOOKUP(BR282,'Footnotes list'!$D$9:$E$58,2,FALSE) ) )","v":""},null,null,null,null,{"$f":"IF(TRIM(BW282)=\"\", \"\", IF(VLOOKUP(BW282,'Footnotes list'!$D$9:$E$58,2,FALSE)=0,\"\",VLOOKUP(BW282,'Footnotes list'!$D$9:$E$58,2,FALSE) ) )","v":""},null,null,null,null,{"$f":"IF(TRIM(CB282)=\"\", \"\", IF(VLOOKUP(CB282,'Footnotes list'!$D$9:$E$58,2,FALSE)=0,\"\",VLOOKUP(CB282,'Footnotes list'!$D$9:$E$58,2,FALSE) ) )","v":""},null,null,null,null,{"$f":"IF(TRIM(CG282)=\"\", \"\", IF(VLOOKUP(CG282,'Footnotes list'!$D$9:$E$58,2,FALSE)=0,\"\",VLOOKUP(CG282,'Footnotes list'!$D$9:$E$58,2,FALSE) ) )","v":""},null,null,null,null,{"$f":"IF(TRIM(CL282)=\"\", \"\", IF(VLOOKUP(CL282,'Footnotes list'!$D$9:$E$58,2,FALSE)=0,\"\",VLOOKUP(CL282,'Footnotes list'!$D$9:$E$58,2,FALSE) ) )","v":""},null,null,null,null,{"$f":"IF(TRIM(CQ282)=\"\", \"\", IF(VLOOKUP(CQ282,'Footnotes list'!$D$9:$E$58,2,FALSE)=0,\"\",VLOOKUP(CQ282,'Footnotes list'!$D$9:$E$58,2,FALSE) ) )","v":""},null,null,null,null,{"$f":"IF(TRIM(CV282)=\"\", \"\", IF(VLOOKUP(CV282,'Footnotes list'!$D$9:$E$58,2,FALSE)=0,\"\",VLOOKUP(CV282,'Footnotes list'!$D$9:$E$58,2,FALSE) ) )","v":""},null,null,null,null,{"$f":"IF(TRIM(DA282)=\"\", \"\", IF(VLOOKUP(DA282,'Footnotes list'!$D$9:$E$58,2,FALSE)=0,\"\",VLOOKUP(DA282,'Footnotes list'!$D$9:$E$58,2,FALSE) ) )","v":""},null,null,null,null,{"$f":"IF(TRIM(DF282)=\"\", \"\", IF(VLOOKUP(DF282,'Footnotes list'!$D$9:$E$58,2,FALSE)=0,\"\",VLOOKUP(DF282,'Footnotes list'!$D$9:$E$58,2,FALSE) ) )","v":""},null,null,null,null,{"$f":"IF(TRIM(DK282)=\"\", \"\", IF(VLOOKUP(DK282,'Footnotes list'!$D$9:$E$58,2,FALSE)=0,\"\",VLOOKUP(DK282,'Footnotes list'!$D$9:$E$58,2,FALSE) ) )","v":""},null,null,null,null,{"$f":"IF(TRIM(DP282)=\"\", \"\", IF(VLOOKUP(DP282,'Footnotes list'!$D$9:$E$58,2,FALSE)=0,\"\",VLOOKUP(DP282,'Footnotes list'!$D$9:$E$58,2,FALSE) ) )","v":""},null,null,null,null,{"$f":"IF(TRIM(DU282)=\"\", \"\", IF(VLOOKUP(DU282,'Footnotes list'!$D$9:$E$58,2,FALSE)=0,\"\",VLOOKUP(DU282,'Footnotes list'!$D$9:$E$58,2,FALSE) ) )","v":""},null,null,null,null,{"$f":"IF(TRIM(DZ282)=\"\", \"\", IF(VLOOKUP(DZ282,'Footnotes list'!$D$9:$E$58,2,FALSE)=0,\"\",VLOOKUP(DZ282,'Footnotes list'!$D$9:$E$58,2,FALSE) ) )","v":""},null,null,null,null,{"$f":"IF(TRIM(EE282)=\"\", \"\", IF(VLOOKUP(EE282,'Footnotes list'!$D$9:$E$58,2,FALSE)=0,\"\",VLOOKUP(EE282,'Footnotes list'!$D$9:$E$58,2,FALSE) ) )","v":""},null,null,null,null,{"$f":"IF(TRIM(EJ282)=\"\", \"\", IF(VLOOKUP(EJ282,'Footnotes list'!$D$9:$E$58,2,FALSE)=0,\"\",VLOOKUP(EJ282,'Footnotes list'!$D$9:$E$58,2,FALSE) ) )","v":""},null,null,null,null,{"$f":"IF(TRIM(EO282)=\"\", \"\", IF(VLOOKUP(EO282,'Footnotes list'!$D$9:$E$58,2,FALSE)=0,\"\",VLOOKUP(EO282,'Footnotes list'!$D$9:$E$58,2,FALSE) ) )","v":""},null,null,null,null,{"$f":"IF(TRIM(ET282)=\"\", \"\", IF(VLOOKUP(ET282,'Footnotes list'!$D$9:$E$58,2,FALSE)=0,\"\",VLOOKUP(ET282,'Footnotes list'!$D$9:$E$58,2,FALSE) ) )","v":""},null,null,null,null,{"$f":"IF(TRIM(EY282)=\"\", \"\", IF(VLOOKUP(EY282,'Footnotes list'!$D$9:$E$58,2,FALSE)=0,\"\",VLOOKUP(EY282,'Footnotes list'!$D$9:$E$58,2,FALSE) ) )","v":""}]
[null,null,"R","NMKT","non-market activities",null,null,null,null,null,{"$f":"IF(TRIM(J283)=\"\", \"\", IF(VLOOKUP(J283,'Footnotes list'!$D$9:$E$58,2,FALSE)=0,\"\",VLOOKUP(J283,'Footnotes list'!$D$9:$E$58,2,FALSE) ) )","v":""},null,null,null,null,{"$f":"IF(TRIM(O283)=\"\", \"\", IF(VLOOKUP(O283,'Footnotes list'!$D$9:$E$58,2,FALSE)=0,\"\",VLOOKUP(O283,'Footnotes list'!$D$9:$E$58,2,FALSE) ) )","v":""},null,null,null,null,{"$f":"IF(TRIM(T283)=\"\", \"\", IF(VLOOKUP(T283,'Footnotes list'!$D$9:$E$58,2,FALSE)=0,\"\",VLOOKUP(T283,'Footnotes list'!$D$9:$E$58,2,FALSE) ) )","v":""},null,null,null,null,{"$f":"IF(TRIM(Y283)=\"\", \"\", IF(VLOOKUP(Y283,'Footnotes list'!$D$9:$E$58,2,FALSE)=0,\"\",VLOOKUP(Y283,'Footnotes list'!$D$9:$E$58,2,FALSE) ) )","v":""},null,null,null,null,{"$f":"IF(TRIM(AD283)=\"\", \"\", IF(VLOOKUP(AD283,'Footnotes list'!$D$9:$E$58,2,FALSE)=0,\"\",VLOOKUP(AD283,'Footnotes list'!$D$9:$E$58,2,FALSE) ) )","v":""},null,null,null,null,{"$f":"IF(TRIM(AI283)=\"\", \"\", IF(VLOOKUP(AI283,'Footnotes list'!$D$9:$E$58,2,FALSE)=0,\"\",VLOOKUP(AI283,'Footnotes list'!$D$9:$E$58,2,FALSE) ) )","v":""},null,null,null,null,{"$f":"IF(TRIM(AN283)=\"\", \"\", IF(VLOOKUP(AN283,'Footnotes list'!$D$9:$E$58,2,FALSE)=0,\"\",VLOOKUP(AN283,'Footnotes list'!$D$9:$E$58,2,FALSE) ) )","v":""},null,null,null,null,{"$f":"IF(TRIM(AS283)=\"\", \"\", IF(VLOOKUP(AS283,'Footnotes list'!$D$9:$E$58,2,FALSE)=0,\"\",VLOOKUP(AS283,'Footnotes list'!$D$9:$E$58,2,FALSE) ) )","v":""},null,null,null,null,{"$f":"IF(TRIM(AX283)=\"\", \"\", IF(VLOOKUP(AX283,'Footnotes list'!$D$9:$E$58,2,FALSE)=0,\"\",VLOOKUP(AX283,'Footnotes list'!$D$9:$E$58,2,FALSE) ) )","v":""},null,null,null,null,{"$f":"IF(TRIM(BC283)=\"\", \"\", IF(VLOOKUP(BC283,'Footnotes list'!$D$9:$E$58,2,FALSE)=0,\"\",VLOOKUP(BC283,'Footnotes list'!$D$9:$E$58,2,FALSE) ) )","v":""},null,null,null,null,{"$f":"IF(TRIM(BH283)=\"\", \"\", IF(VLOOKUP(BH283,'Footnotes list'!$D$9:$E$58,2,FALSE)=0,\"\",VLOOKUP(BH283,'Footnotes list'!$D$9:$E$58,2,FALSE) ) )","v":""},null,null,null,null,{"$f":"IF(TRIM(BM283)=\"\", \"\", IF(VLOOKUP(BM283,'Footnotes list'!$D$9:$E$58,2,FALSE)=0,\"\",VLOOKUP(BM283,'Footnotes list'!$D$9:$E$58,2,FALSE) ) )","v":""},null,null,null,null,{"$f":"IF(TRIM(BR283)=\"\", \"\", IF(VLOOKUP(BR283,'Footnotes list'!$D$9:$E$58,2,FALSE)=0,\"\",VLOOKUP(BR283,'Footnotes list'!$D$9:$E$58,2,FALSE) ) )","v":""},null,null,null,null,{"$f":"IF(TRIM(BW283)=\"\", \"\", IF(VLOOKUP(BW283,'Footnotes list'!$D$9:$E$58,2,FALSE)=0,\"\",VLOOKUP(BW283,'Footnotes list'!$D$9:$E$58,2,FALSE) ) )","v":""},null,null,null,null,{"$f":"IF(TRIM(CB283)=\"\", \"\", IF(VLOOKUP(CB283,'Footnotes list'!$D$9:$E$58,2,FALSE)=0,\"\",VLOOKUP(CB283,'Footnotes list'!$D$9:$E$58,2,FALSE) ) )","v":""},null,null,null,null,{"$f":"IF(TRIM(CG283)=\"\", \"\", IF(VLOOKUP(CG283,'Footnotes list'!$D$9:$E$58,2,FALSE)=0,\"\",VLOOKUP(CG283,'Footnotes list'!$D$9:$E$58,2,FALSE) ) )","v":""},null,null,null,null,{"$f":"IF(TRIM(CL283)=\"\", \"\", IF(VLOOKUP(CL283,'Footnotes list'!$D$9:$E$58,2,FALSE)=0,\"\",VLOOKUP(CL283,'Footnotes list'!$D$9:$E$58,2,FALSE) ) )","v":""},null,null,null,null,{"$f":"IF(TRIM(CQ283)=\"\", \"\", IF(VLOOKUP(CQ283,'Footnotes list'!$D$9:$E$58,2,FALSE)=0,\"\",VLOOKUP(CQ283,'Footnotes list'!$D$9:$E$58,2,FALSE) ) )","v":""},null,null,null,null,{"$f":"IF(TRIM(CV283)=\"\", \"\", IF(VLOOKUP(CV283,'Footnotes list'!$D$9:$E$58,2,FALSE)=0,\"\",VLOOKUP(CV283,'Footnotes list'!$D$9:$E$58,2,FALSE) ) )","v":""},null,null,null,null,{"$f":"IF(TRIM(DA283)=\"\", \"\", IF(VLOOKUP(DA283,'Footnotes list'!$D$9:$E$58,2,FALSE)=0,\"\",VLOOKUP(DA283,'Footnotes list'!$D$9:$E$58,2,FALSE) ) )","v":""},null,null,null,null,{"$f":"IF(TRIM(DF283)=\"\", \"\", IF(VLOOKUP(DF283,'Footnotes list'!$D$9:$E$58,2,FALSE)=0,\"\",VLOOKUP(DF283,'Footnotes list'!$D$9:$E$58,2,FALSE) ) )","v":""},null,null,null,null,{"$f":"IF(TRIM(DK283)=\"\", \"\", IF(VLOOKUP(DK283,'Footnotes list'!$D$9:$E$58,2,FALSE)=0,\"\",VLOOKUP(DK283,'Footnotes list'!$D$9:$E$58,2,FALSE) ) )","v":""},null,null,null,null,{"$f":"IF(TRIM(DP283)=\"\", \"\", IF(VLOOKUP(DP283,'Footnotes list'!$D$9:$E$58,2,FALSE)=0,\"\",VLOOKUP(DP283,'Footnotes list'!$D$9:$E$58,2,FALSE) ) )","v":""},null,null,null,null,{"$f":"IF(TRIM(DU283)=\"\", \"\", IF(VLOOKUP(DU283,'Footnotes list'!$D$9:$E$58,2,FALSE)=0,\"\",VLOOKUP(DU283,'Footnotes list'!$D$9:$E$58,2,FALSE) ) )","v":""},null,null,null,null,{"$f":"IF(TRIM(DZ283)=\"\", \"\", IF(VLOOKUP(DZ283,'Footnotes list'!$D$9:$E$58,2,FALSE)=0,\"\",VLOOKUP(DZ283,'Footnotes list'!$D$9:$E$58,2,FALSE) ) )","v":""},null,null,null,null,{"$f":"IF(TRIM(EE283)=\"\", \"\", IF(VLOOKUP(EE283,'Footnotes list'!$D$9:$E$58,2,FALSE)=0,\"\",VLOOKUP(EE283,'Footnotes list'!$D$9:$E$58,2,FALSE) ) )","v":""},null,null,null,null,{"$f":"IF(TRIM(EJ283)=\"\", \"\", IF(VLOOKUP(EJ283,'Footnotes list'!$D$9:$E$58,2,FALSE)=0,\"\",VLOOKUP(EJ283,'Footnotes list'!$D$9:$E$58,2,FALSE) ) )","v":""},null,null,null,null,{"$f":"IF(TRIM(EO283)=\"\", \"\", IF(VLOOKUP(EO283,'Footnotes list'!$D$9:$E$58,2,FALSE)=0,\"\",VLOOKUP(EO283,'Footnotes list'!$D$9:$E$58,2,FALSE) ) )","v":""},null,null,null,null,{"$f":"IF(TRIM(ET283)=\"\", \"\", IF(VLOOKUP(ET283,'Footnotes list'!$D$9:$E$58,2,FALSE)=0,\"\",VLOOKUP(ET283,'Footnotes list'!$D$9:$E$58,2,FALSE) ) )","v":""},null,null,null,null,{"$f":"IF(TRIM(EY283)=\"\", \"\", IF(VLOOKUP(EY283,'Footnotes list'!$D$9:$E$58,2,FALSE)=0,\"\",VLOOKUP(EY283,'Footnotes list'!$D$9:$E$58,2,FALSE) ) )","v":""}]
[null,null,"R","OWN_USE","activities for own final use",null,null,null,null,null,{"$f":"IF(TRIM(J284)=\"\", \"\", IF(VLOOKUP(J284,'Footnotes list'!$D$9:$E$58,2,FALSE)=0,\"\",VLOOKUP(J284,'Footnotes list'!$D$9:$E$58,2,FALSE) ) )","v":""},null,null,null,null,{"$f":"IF(TRIM(O284)=\"\", \"\", IF(VLOOKUP(O284,'Footnotes list'!$D$9:$E$58,2,FALSE)=0,\"\",VLOOKUP(O284,'Footnotes list'!$D$9:$E$58,2,FALSE) ) )","v":""},null,null,null,null,{"$f":"IF(TRIM(T284)=\"\", \"\", IF(VLOOKUP(T284,'Footnotes list'!$D$9:$E$58,2,FALSE)=0,\"\",VLOOKUP(T284,'Footnotes list'!$D$9:$E$58,2,FALSE) ) )","v":""},null,null,null,null,{"$f":"IF(TRIM(Y284)=\"\", \"\", IF(VLOOKUP(Y284,'Footnotes list'!$D$9:$E$58,2,FALSE)=0,\"\",VLOOKUP(Y284,'Footnotes list'!$D$9:$E$58,2,FALSE) ) )","v":""},null,null,null,null,{"$f":"IF(TRIM(AD284)=\"\", \"\", IF(VLOOKUP(AD284,'Footnotes list'!$D$9:$E$58,2,FALSE)=0,\"\",VLOOKUP(AD284,'Footnotes list'!$D$9:$E$58,2,FALSE) ) )","v":""},null,null,null,null,{"$f":"IF(TRIM(AI284)=\"\", \"\", IF(VLOOKUP(AI284,'Footnotes list'!$D$9:$E$58,2,FALSE)=0,\"\",VLOOKUP(AI284,'Footnotes list'!$D$9:$E$58,2,FALSE) ) )","v":""},null,null,null,null,{"$f":"IF(TRIM(AN284)=\"\", \"\", IF(VLOOKUP(AN284,'Footnotes list'!$D$9:$E$58,2,FALSE)=0,\"\",VLOOKUP(AN284,'Footnotes list'!$D$9:$E$58,2,FALSE) ) )","v":""},null,null,null,null,{"$f":"IF(TRIM(AS284)=\"\", \"\", IF(VLOOKUP(AS284,'Footnotes list'!$D$9:$E$58,2,FALSE)=0,\"\",VLOOKUP(AS284,'Footnotes list'!$D$9:$E$58,2,FALSE) ) )","v":""},null,null,null,null,{"$f":"IF(TRIM(AX284)=\"\", \"\", IF(VLOOKUP(AX284,'Footnotes list'!$D$9:$E$58,2,FALSE)=0,\"\",VLOOKUP(AX284,'Footnotes list'!$D$9:$E$58,2,FALSE) ) )","v":""},null,null,null,null,{"$f":"IF(TRIM(BC284)=\"\", \"\", IF(VLOOKUP(BC284,'Footnotes list'!$D$9:$E$58,2,FALSE)=0,\"\",VLOOKUP(BC284,'Footnotes list'!$D$9:$E$58,2,FALSE) ) )","v":""},null,null,null,null,{"$f":"IF(TRIM(BH284)=\"\", \"\", IF(VLOOKUP(BH284,'Footnotes list'!$D$9:$E$58,2,FALSE)=0,\"\",VLOOKUP(BH284,'Footnotes list'!$D$9:$E$58,2,FALSE) ) )","v":""},null,null,null,null,{"$f":"IF(TRIM(BM284)=\"\", \"\", IF(VLOOKUP(BM284,'Footnotes list'!$D$9:$E$58,2,FALSE)=0,\"\",VLOOKUP(BM284,'Footnotes list'!$D$9:$E$58,2,FALSE) ) )","v":""},null,null,null,null,{"$f":"IF(TRIM(BR284)=\"\", \"\", IF(VLOOKUP(BR284,'Footnotes list'!$D$9:$E$58,2,FALSE)=0,\"\",VLOOKUP(BR284,'Footnotes list'!$D$9:$E$58,2,FALSE) ) )","v":""},null,null,null,null,{"$f":"IF(TRIM(BW284)=\"\", \"\", IF(VLOOKUP(BW284,'Footnotes list'!$D$9:$E$58,2,FALSE)=0,\"\",VLOOKUP(BW284,'Footnotes list'!$D$9:$E$58,2,FALSE) ) )","v":""},null,null,null,null,{"$f":"IF(TRIM(CB284)=\"\", \"\", IF(VLOOKUP(CB284,'Footnotes list'!$D$9:$E$58,2,FALSE)=0,\"\",VLOOKUP(CB284,'Footnotes list'!$D$9:$E$58,2,FALSE) ) )","v":""},null,null,null,null,{"$f":"IF(TRIM(CG284)=\"\", \"\", IF(VLOOKUP(CG284,'Footnotes list'!$D$9:$E$58,2,FALSE)=0,\"\",VLOOKUP(CG284,'Footnotes list'!$D$9:$E$58,2,FALSE) ) )","v":""},null,null,null,null,{"$f":"IF(TRIM(CL284)=\"\", \"\", IF(VLOOKUP(CL284,'Footnotes list'!$D$9:$E$58,2,FALSE)=0,\"\",VLOOKUP(CL284,'Footnotes list'!$D$9:$E$58,2,FALSE) ) )","v":""},null,null,null,null,{"$f":"IF(TRIM(CQ284)=\"\", \"\", IF(VLOOKUP(CQ284,'Footnotes list'!$D$9:$E$58,2,FALSE)=0,\"\",VLOOKUP(CQ284,'Footnotes list'!$D$9:$E$58,2,FALSE) ) )","v":""},null,null,null,null,{"$f":"IF(TRIM(CV284)=\"\", \"\", IF(VLOOKUP(CV284,'Footnotes list'!$D$9:$E$58,2,FALSE)=0,\"\",VLOOKUP(CV284,'Footnotes list'!$D$9:$E$58,2,FALSE) ) )","v":""},null,null,null,null,{"$f":"IF(TRIM(DA284)=\"\", \"\", IF(VLOOKUP(DA284,'Footnotes list'!$D$9:$E$58,2,FALSE)=0,\"\",VLOOKUP(DA284,'Footnotes list'!$D$9:$E$58,2,FALSE) ) )","v":""},null,null,null,null,{"$f":"IF(TRIM(DF284)=\"\", \"\", IF(VLOOKUP(DF284,'Footnotes list'!$D$9:$E$58,2,FALSE)=0,\"\",VLOOKUP(DF284,'Footnotes list'!$D$9:$E$58,2,FALSE) ) )","v":""},null,null,null,null,{"$f":"IF(TRIM(DK284)=\"\", \"\", IF(VLOOKUP(DK284,'Footnotes list'!$D$9:$E$58,2,FALSE)=0,\"\",VLOOKUP(DK284,'Footnotes list'!$D$9:$E$58,2,FALSE) ) )","v":""},null,null,null,null,{"$f":"IF(TRIM(DP284)=\"\", \"\", IF(VLOOKUP(DP284,'Footnotes list'!$D$9:$E$58,2,FALSE)=0,\"\",VLOOKUP(DP284,'Footnotes list'!$D$9:$E$58,2,FALSE) ) )","v":""},null,null,null,null,{"$f":"IF(TRIM(DU284)=\"\", \"\", IF(VLOOKUP(DU284,'Footnotes list'!$D$9:$E$58,2,FALSE)=0,\"\",VLOOKUP(DU284,'Footnotes list'!$D$9:$E$58,2,FALSE) ) )","v":""},null,null,null,null,{"$f":"IF(TRIM(DZ284)=\"\", \"\", IF(VLOOKUP(DZ284,'Footnotes list'!$D$9:$E$58,2,FALSE)=0,\"\",VLOOKUP(DZ284,'Footnotes list'!$D$9:$E$58,2,FALSE) ) )","v":""},null,null,null,null,{"$f":"IF(TRIM(EE284)=\"\", \"\", IF(VLOOKUP(EE284,'Footnotes list'!$D$9:$E$58,2,FALSE)=0,\"\",VLOOKUP(EE284,'Footnotes list'!$D$9:$E$58,2,FALSE) ) )","v":""},null,null,null,null,{"$f":"IF(TRIM(EJ284)=\"\", \"\", IF(VLOOKUP(EJ284,'Footnotes list'!$D$9:$E$58,2,FALSE)=0,\"\",VLOOKUP(EJ284,'Footnotes list'!$D$9:$E$58,2,FALSE) ) )","v":""},null,null,null,null,{"$f":"IF(TRIM(EO284)=\"\", \"\", IF(VLOOKUP(EO284,'Footnotes list'!$D$9:$E$58,2,FALSE)=0,\"\",VLOOKUP(EO284,'Footnotes list'!$D$9:$E$58,2,FALSE) ) )","v":""},null,null,null,null,{"$f":"IF(TRIM(ET284)=\"\", \"\", IF(VLOOKUP(ET284,'Footnotes list'!$D$9:$E$58,2,FALSE)=0,\"\",VLOOKUP(ET284,'Footnotes list'!$D$9:$E$58,2,FALSE) ) )","v":""},null,null,null,null,{"$f":"IF(TRIM(EY284)=\"\", \"\", IF(VLOOKUP(EY284,'Footnotes list'!$D$9:$E$58,2,FALSE)=0,\"\",VLOOKUP(EY284,'Footnotes list'!$D$9:$E$58,2,FALSE) ) )","v":""}]
[null,null,"R","MKT","market activities, including:",null,null,null,null,null,{"$f":"IF(TRIM(J285)=\"\", \"\", IF(VLOOKUP(J285,'Footnotes list'!$D$9:$E$58,2,FALSE)=0,\"\",VLOOKUP(J285,'Footnotes list'!$D$9:$E$58,2,FALSE) ) )","v":""},null,null,null,null,{"$f":"IF(TRIM(O285)=\"\", \"\", IF(VLOOKUP(O285,'Footnotes list'!$D$9:$E$58,2,FALSE)=0,\"\",VLOOKUP(O285,'Footnotes list'!$D$9:$E$58,2,FALSE) ) )","v":""},null,null,null,null,{"$f":"IF(TRIM(T285)=\"\", \"\", IF(VLOOKUP(T285,'Footnotes list'!$D$9:$E$58,2,FALSE)=0,\"\",VLOOKUP(T285,'Footnotes list'!$D$9:$E$58,2,FALSE) ) )","v":""},null,null,null,null,{"$f":"IF(TRIM(Y285)=\"\", \"\", IF(VLOOKUP(Y285,'Footnotes list'!$D$9:$E$58,2,FALSE)=0,\"\",VLOOKUP(Y285,'Footnotes list'!$D$9:$E$58,2,FALSE) ) )","v":""},null,null,null,null,{"$f":"IF(TRIM(AD285)=\"\", \"\", IF(VLOOKUP(AD285,'Footnotes list'!$D$9:$E$58,2,FALSE)=0,\"\",VLOOKUP(AD285,'Footnotes list'!$D$9:$E$58,2,FALSE) ) )","v":""},null,null,null,null,{"$f":"IF(TRIM(AI285)=\"\", \"\", IF(VLOOKUP(AI285,'Footnotes list'!$D$9:$E$58,2,FALSE)=0,\"\",VLOOKUP(AI285,'Footnotes list'!$D$9:$E$58,2,FALSE) ) )","v":""},null,null,null,null,{"$f":"IF(TRIM(AN285)=\"\", \"\", IF(VLOOKUP(AN285,'Footnotes list'!$D$9:$E$58,2,FALSE)=0,\"\",VLOOKUP(AN285,'Footnotes list'!$D$9:$E$58,2,FALSE) ) )","v":""},null,null,null,null,{"$f":"IF(TRIM(AS285)=\"\", \"\", IF(VLOOKUP(AS285,'Footnotes list'!$D$9:$E$58,2,FALSE)=0,\"\",VLOOKUP(AS285,'Footnotes list'!$D$9:$E$58,2,FALSE) ) )","v":""},null,null,null,null,{"$f":"IF(TRIM(AX285)=\"\", \"\", IF(VLOOKUP(AX285,'Footnotes list'!$D$9:$E$58,2,FALSE)=0,\"\",VLOOKUP(AX285,'Footnotes list'!$D$9:$E$58,2,FALSE) ) )","v":""},null,null,null,null,{"$f":"IF(TRIM(BC285)=\"\", \"\", IF(VLOOKUP(BC285,'Footnotes list'!$D$9:$E$58,2,FALSE)=0,\"\",VLOOKUP(BC285,'Footnotes list'!$D$9:$E$58,2,FALSE) ) )","v":""},null,null,null,null,{"$f":"IF(TRIM(BH285)=\"\", \"\", IF(VLOOKUP(BH285,'Footnotes list'!$D$9:$E$58,2,FALSE)=0,\"\",VLOOKUP(BH285,'Footnotes list'!$D$9:$E$58,2,FALSE) ) )","v":""},null,null,null,null,{"$f":"IF(TRIM(BM285)=\"\", \"\", IF(VLOOKUP(BM285,'Footnotes list'!$D$9:$E$58,2,FALSE)=0,\"\",VLOOKUP(BM285,'Footnotes list'!$D$9:$E$58,2,FALSE) ) )","v":""},null,null,null,null,{"$f":"IF(TRIM(BR285)=\"\", \"\", IF(VLOOKUP(BR285,'Footnotes list'!$D$9:$E$58,2,FALSE)=0,\"\",VLOOKUP(BR285,'Footnotes list'!$D$9:$E$58,2,FALSE) ) )","v":""},null,null,null,null,{"$f":"IF(TRIM(BW285)=\"\", \"\", IF(VLOOKUP(BW285,'Footnotes list'!$D$9:$E$58,2,FALSE)=0,\"\",VLOOKUP(BW285,'Footnotes list'!$D$9:$E$58,2,FALSE) ) )","v":""},null,null,null,null,{"$f":"IF(TRIM(CB285)=\"\", \"\", IF(VLOOKUP(CB285,'Footnotes list'!$D$9:$E$58,2,FALSE)=0,\"\",VLOOKUP(CB285,'Footnotes list'!$D$9:$E$58,2,FALSE) ) )","v":""},null,null,null,null,{"$f":"IF(TRIM(CG285)=\"\", \"\", IF(VLOOKUP(CG285,'Footnotes list'!$D$9:$E$58,2,FALSE)=0,\"\",VLOOKUP(CG285,'Footnotes list'!$D$9:$E$58,2,FALSE) ) )","v":""},null,null,null,null,{"$f":"IF(TRIM(CL285)=\"\", \"\", IF(VLOOKUP(CL285,'Footnotes list'!$D$9:$E$58,2,FALSE)=0,\"\",VLOOKUP(CL285,'Footnotes list'!$D$9:$E$58,2,FALSE) ) )","v":""},null,null,null,null,{"$f":"IF(TRIM(CQ285)=\"\", \"\", IF(VLOOKUP(CQ285,'Footnotes list'!$D$9:$E$58,2,FALSE)=0,\"\",VLOOKUP(CQ285,'Footnotes list'!$D$9:$E$58,2,FALSE) ) )","v":""},null,null,null,null,{"$f":"IF(TRIM(CV285)=\"\", \"\", IF(VLOOKUP(CV285,'Footnotes list'!$D$9:$E$58,2,FALSE)=0,\"\",VLOOKUP(CV285,'Footnotes list'!$D$9:$E$58,2,FALSE) ) )","v":""},null,null,null,null,{"$f":"IF(TRIM(DA285)=\"\", \"\", IF(VLOOKUP(DA285,'Footnotes list'!$D$9:$E$58,2,FALSE)=0,\"\",VLOOKUP(DA285,'Footnotes list'!$D$9:$E$58,2,FALSE) ) )","v":""},null,null,null,null,{"$f":"IF(TRIM(DF285)=\"\", \"\", IF(VLOOKUP(DF285,'Footnotes list'!$D$9:$E$58,2,FALSE)=0,\"\",VLOOKUP(DF285,'Footnotes list'!$D$9:$E$58,2,FALSE) ) )","v":""},null,null,null,null,{"$f":"IF(TRIM(DK285)=\"\", \"\", IF(VLOOKUP(DK285,'Footnotes list'!$D$9:$E$58,2,FALSE)=0,\"\",VLOOKUP(DK285,'Footnotes list'!$D$9:$E$58,2,FALSE) ) )","v":""},null,null,null,null,{"$f":"IF(TRIM(DP285)=\"\", \"\", IF(VLOOKUP(DP285,'Footnotes list'!$D$9:$E$58,2,FALSE)=0,\"\",VLOOKUP(DP285,'Footnotes list'!$D$9:$E$58,2,FALSE) ) )","v":""},null,null,null,null,{"$f":"IF(TRIM(DU285)=\"\", \"\", IF(VLOOKUP(DU285,'Footnotes list'!$D$9:$E$58,2,FALSE)=0,\"\",VLOOKUP(DU285,'Footnotes list'!$D$9:$E$58,2,FALSE) ) )","v":""},null,null,null,null,{"$f":"IF(TRIM(DZ285)=\"\", \"\", IF(VLOOKUP(DZ285,'Footnotes list'!$D$9:$E$58,2,FALSE)=0,\"\",VLOOKUP(DZ285,'Footnotes list'!$D$9:$E$58,2,FALSE) ) )","v":""},null,null,null,null,{"$f":"IF(TRIM(EE285)=\"\", \"\", IF(VLOOKUP(EE285,'Footnotes list'!$D$9:$E$58,2,FALSE)=0,\"\",VLOOKUP(EE285,'Footnotes list'!$D$9:$E$58,2,FALSE) ) )","v":""},null,null,null,null,{"$f":"IF(TRIM(EJ285)=\"\", \"\", IF(VLOOKUP(EJ285,'Footnotes list'!$D$9:$E$58,2,FALSE)=0,\"\",VLOOKUP(EJ285,'Footnotes list'!$D$9:$E$58,2,FALSE) ) )","v":""},null,null,null,null,{"$f":"IF(TRIM(EO285)=\"\", \"\", IF(VLOOKUP(EO285,'Footnotes list'!$D$9:$E$58,2,FALSE)=0,\"\",VLOOKUP(EO285,'Footnotes list'!$D$9:$E$58,2,FALSE) ) )","v":""},null,null,null,null,{"$f":"IF(TRIM(ET285)=\"\", \"\", IF(VLOOKUP(ET285,'Footnotes list'!$D$9:$E$58,2,FALSE)=0,\"\",VLOOKUP(ET285,'Footnotes list'!$D$9:$E$58,2,FALSE) ) )","v":""},null,null,null,null,{"$f":"IF(TRIM(EY285)=\"\", \"\", IF(VLOOKUP(EY285,'Footnotes list'!$D$9:$E$58,2,FALSE)=0,\"\",VLOOKUP(EY285,'Footnotes list'!$D$9:$E$58,2,FALSE) ) )","v":""}]
[null,null,"R","ES_CS","environmental specific services",null,null,null,null,null,{"$f":"IF(TRIM(J286)=\"\", \"\", IF(VLOOKUP(J286,'Footnotes list'!$D$9:$E$58,2,FALSE)=0,\"\",VLOOKUP(J286,'Footnotes list'!$D$9:$E$58,2,FALSE) ) )","v":""},null,null,null,null,{"$f":"IF(TRIM(O286)=\"\", \"\", IF(VLOOKUP(O286,'Footnotes list'!$D$9:$E$58,2,FALSE)=0,\"\",VLOOKUP(O286,'Footnotes list'!$D$9:$E$58,2,FALSE) ) )","v":""},null,null,null,null,{"$f":"IF(TRIM(T286)=\"\", \"\", IF(VLOOKUP(T286,'Footnotes list'!$D$9:$E$58,2,FALSE)=0,\"\",VLOOKUP(T286,'Footnotes list'!$D$9:$E$58,2,FALSE) ) )","v":""},null,null,null,null,{"$f":"IF(TRIM(Y286)=\"\", \"\", IF(VLOOKUP(Y286,'Footnotes list'!$D$9:$E$58,2,FALSE)=0,\"\",VLOOKUP(Y286,'Footnotes list'!$D$9:$E$58,2,FALSE) ) )","v":""},null,null,null,null,{"$f":"IF(TRIM(AD286)=\"\", \"\", IF(VLOOKUP(AD286,'Footnotes list'!$D$9:$E$58,2,FALSE)=0,\"\",VLOOKUP(AD286,'Footnotes list'!$D$9:$E$58,2,FALSE) ) )","v":""},null,null,null,null,{"$f":"IF(TRIM(AI286)=\"\", \"\", IF(VLOOKUP(AI286,'Footnotes list'!$D$9:$E$58,2,FALSE)=0,\"\",VLOOKUP(AI286,'Footnotes list'!$D$9:$E$58,2,FALSE) ) )","v":""},null,null,null,null,{"$f":"IF(TRIM(AN286)=\"\", \"\", IF(VLOOKUP(AN286,'Footnotes list'!$D$9:$E$58,2,FALSE)=0,\"\",VLOOKUP(AN286,'Footnotes list'!$D$9:$E$58,2,FALSE) ) )","v":""},null,null,null,null,{"$f":"IF(TRIM(AS286)=\"\", \"\", IF(VLOOKUP(AS286,'Footnotes list'!$D$9:$E$58,2,FALSE)=0,\"\",VLOOKUP(AS286,'Footnotes list'!$D$9:$E$58,2,FALSE) ) )","v":""},null,null,null,null,{"$f":"IF(TRIM(AX286)=\"\", \"\", IF(VLOOKUP(AX286,'Footnotes list'!$D$9:$E$58,2,FALSE)=0,\"\",VLOOKUP(AX286,'Footnotes list'!$D$9:$E$58,2,FALSE) ) )","v":""},null,null,null,null,{"$f":"IF(TRIM(BC286)=\"\", \"\", IF(VLOOKUP(BC286,'Footnotes list'!$D$9:$E$58,2,FALSE)=0,\"\",VLOOKUP(BC286,'Footnotes list'!$D$9:$E$58,2,FALSE) ) )","v":""},null,null,null,null,{"$f":"IF(TRIM(BH286)=\"\", \"\", IF(VLOOKUP(BH286,'Footnotes list'!$D$9:$E$58,2,FALSE)=0,\"\",VLOOKUP(BH286,'Footnotes list'!$D$9:$E$58,2,FALSE) ) )","v":""},null,null,null,null,{"$f":"IF(TRIM(BM286)=\"\", \"\", IF(VLOOKUP(BM286,'Footnotes list'!$D$9:$E$58,2,FALSE)=0,\"\",VLOOKUP(BM286,'Footnotes list'!$D$9:$E$58,2,FALSE) ) )","v":""},null,null,null,null,{"$f":"IF(TRIM(BR286)=\"\", \"\", IF(VLOOKUP(BR286,'Footnotes list'!$D$9:$E$58,2,FALSE)=0,\"\",VLOOKUP(BR286,'Footnotes list'!$D$9:$E$58,2,FALSE) ) )","v":""},null,null,null,null,{"$f":"IF(TRIM(BW286)=\"\", \"\", IF(VLOOKUP(BW286,'Footnotes list'!$D$9:$E$58,2,FALSE)=0,\"\",VLOOKUP(BW286,'Footnotes list'!$D$9:$E$58,2,FALSE) ) )","v":""},null,null,null,null,{"$f":"IF(TRIM(CB286)=\"\", \"\", IF(VLOOKUP(CB286,'Footnotes list'!$D$9:$E$58,2,FALSE)=0,\"\",VLOOKUP(CB286,'Footnotes list'!$D$9:$E$58,2,FALSE) ) )","v":""},null,null,null,null,{"$f":"IF(TRIM(CG286)=\"\", \"\", IF(VLOOKUP(CG286,'Footnotes list'!$D$9:$E$58,2,FALSE)=0,\"\",VLOOKUP(CG286,'Footnotes list'!$D$9:$E$58,2,FALSE) ) )","v":""},null,null,null,null,{"$f":"IF(TRIM(CL286)=\"\", \"\", IF(VLOOKUP(CL286,'Footnotes list'!$D$9:$E$58,2,FALSE)=0,\"\",VLOOKUP(CL286,'Footnotes list'!$D$9:$E$58,2,FALSE) ) )","v":""},null,null,null,null,{"$f":"IF(TRIM(CQ286)=\"\", \"\", IF(VLOOKUP(CQ286,'Footnotes list'!$D$9:$E$58,2,FALSE)=0,\"\",VLOOKUP(CQ286,'Footnotes list'!$D$9:$E$58,2,FALSE) ) )","v":""},null,null,null,null,{"$f":"IF(TRIM(CV286)=\"\", \"\", IF(VLOOKUP(CV286,'Footnotes list'!$D$9:$E$58,2,FALSE)=0,\"\",VLOOKUP(CV286,'Footnotes list'!$D$9:$E$58,2,FALSE) ) )","v":""},null,null,null,null,{"$f":"IF(TRIM(DA286)=\"\", \"\", IF(VLOOKUP(DA286,'Footnotes list'!$D$9:$E$58,2,FALSE)=0,\"\",VLOOKUP(DA286,'Footnotes list'!$D$9:$E$58,2,FALSE) ) )","v":""},null,null,null,null,{"$f":"IF(TRIM(DF286)=\"\", \"\", IF(VLOOKUP(DF286,'Footnotes list'!$D$9:$E$58,2,FALSE)=0,\"\",VLOOKUP(DF286,'Footnotes list'!$D$9:$E$58,2,FALSE) ) )","v":""},null,null,null,null,{"$f":"IF(TRIM(DK286)=\"\", \"\", IF(VLOOKUP(DK286,'Footnotes list'!$D$9:$E$58,2,FALSE)=0,\"\",VLOOKUP(DK286,'Footnotes list'!$D$9:$E$58,2,FALSE) ) )","v":""},null,null,null,null,{"$f":"IF(TRIM(DP286)=\"\", \"\", IF(VLOOKUP(DP286,'Footnotes list'!$D$9:$E$58,2,FALSE)=0,\"\",VLOOKUP(DP286,'Footnotes list'!$D$9:$E$58,2,FALSE) ) )","v":""},null,null,null,null,{"$f":"IF(TRIM(DU286)=\"\", \"\", IF(VLOOKUP(DU286,'Footnotes list'!$D$9:$E$58,2,FALSE)=0,\"\",VLOOKUP(DU286,'Footnotes list'!$D$9:$E$58,2,FALSE) ) )","v":""},null,null,null,null,{"$f":"IF(TRIM(DZ286)=\"\", \"\", IF(VLOOKUP(DZ286,'Footnotes list'!$D$9:$E$58,2,FALSE)=0,\"\",VLOOKUP(DZ286,'Footnotes list'!$D$9:$E$58,2,FALSE) ) )","v":""},null,null,null,null,{"$f":"IF(TRIM(EE286)=\"\", \"\", IF(VLOOKUP(EE286,'Footnotes list'!$D$9:$E$58,2,FALSE)=0,\"\",VLOOKUP(EE286,'Footnotes list'!$D$9:$E$58,2,FALSE) ) )","v":""},null,null,null,null,{"$f":"IF(TRIM(EJ286)=\"\", \"\", IF(VLOOKUP(EJ286,'Footnotes list'!$D$9:$E$58,2,FALSE)=0,\"\",VLOOKUP(EJ286,'Footnotes list'!$D$9:$E$58,2,FALSE) ) )","v":""},null,null,null,null,{"$f":"IF(TRIM(EO286)=\"\", \"\", IF(VLOOKUP(EO286,'Footnotes list'!$D$9:$E$58,2,FALSE)=0,\"\",VLOOKUP(EO286,'Footnotes list'!$D$9:$E$58,2,FALSE) ) )","v":""},null,null,null,null,{"$f":"IF(TRIM(ET286)=\"\", \"\", IF(VLOOKUP(ET286,'Footnotes list'!$D$9:$E$58,2,FALSE)=0,\"\",VLOOKUP(ET286,'Footnotes list'!$D$9:$E$58,2,FALSE) ) )","v":""},null,null,null,null,{"$f":"IF(TRIM(EY286)=\"\", \"\", IF(VLOOKUP(EY286,'Footnotes list'!$D$9:$E$58,2,FALSE)=0,\"\",VLOOKUP(EY286,'Footnotes list'!$D$9:$E$58,2,FALSE) ) )","v":""}]
[null,null,"R","C_REP","cleaner and resource efficient products",null,null,null,null,null,{"$f":"IF(TRIM(J287)=\"\", \"\", IF(VLOOKUP(J287,'Footnotes list'!$D$9:$E$58,2,FALSE)=0,\"\",VLOOKUP(J287,'Footnotes list'!$D$9:$E$58,2,FALSE) ) )","v":""},null,null,null,null,{"$f":"IF(TRIM(O287)=\"\", \"\", IF(VLOOKUP(O287,'Footnotes list'!$D$9:$E$58,2,FALSE)=0,\"\",VLOOKUP(O287,'Footnotes list'!$D$9:$E$58,2,FALSE) ) )","v":""},null,null,null,null,{"$f":"IF(TRIM(T287)=\"\", \"\", IF(VLOOKUP(T287,'Footnotes list'!$D$9:$E$58,2,FALSE)=0,\"\",VLOOKUP(T287,'Footnotes list'!$D$9:$E$58,2,FALSE) ) )","v":""},null,null,null,null,{"$f":"IF(TRIM(Y287)=\"\", \"\", IF(VLOOKUP(Y287,'Footnotes list'!$D$9:$E$58,2,FALSE)=0,\"\",VLOOKUP(Y287,'Footnotes list'!$D$9:$E$58,2,FALSE) ) )","v":""},null,null,null,null,{"$f":"IF(TRIM(AD287)=\"\", \"\", IF(VLOOKUP(AD287,'Footnotes list'!$D$9:$E$58,2,FALSE)=0,\"\",VLOOKUP(AD287,'Footnotes list'!$D$9:$E$58,2,FALSE) ) )","v":""},null,null,null,null,{"$f":"IF(TRIM(AI287)=\"\", \"\", IF(VLOOKUP(AI287,'Footnotes list'!$D$9:$E$58,2,FALSE)=0,\"\",VLOOKUP(AI287,'Footnotes list'!$D$9:$E$58,2,FALSE) ) )","v":""},null,null,null,null,{"$f":"IF(TRIM(AN287)=\"\", \"\", IF(VLOOKUP(AN287,'Footnotes list'!$D$9:$E$58,2,FALSE)=0,\"\",VLOOKUP(AN287,'Footnotes list'!$D$9:$E$58,2,FALSE) ) )","v":""},null,null,null,null,{"$f":"IF(TRIM(AS287)=\"\", \"\", IF(VLOOKUP(AS287,'Footnotes list'!$D$9:$E$58,2,FALSE)=0,\"\",VLOOKUP(AS287,'Footnotes list'!$D$9:$E$58,2,FALSE) ) )","v":""},null,null,null,null,{"$f":"IF(TRIM(AX287)=\"\", \"\", IF(VLOOKUP(AX287,'Footnotes list'!$D$9:$E$58,2,FALSE)=0,\"\",VLOOKUP(AX287,'Footnotes list'!$D$9:$E$58,2,FALSE) ) )","v":""},null,null,null,null,{"$f":"IF(TRIM(BC287)=\"\", \"\", IF(VLOOKUP(BC287,'Footnotes list'!$D$9:$E$58,2,FALSE)=0,\"\",VLOOKUP(BC287,'Footnotes list'!$D$9:$E$58,2,FALSE) ) )","v":""},null,null,null,null,{"$f":"IF(TRIM(BH287)=\"\", \"\", IF(VLOOKUP(BH287,'Footnotes list'!$D$9:$E$58,2,FALSE)=0,\"\",VLOOKUP(BH287,'Footnotes list'!$D$9:$E$58,2,FALSE) ) )","v":""},null,null,null,null,{"$f":"IF(TRIM(BM287)=\"\", \"\", IF(VLOOKUP(BM287,'Footnotes list'!$D$9:$E$58,2,FALSE)=0,\"\",VLOOKUP(BM287,'Footnotes list'!$D$9:$E$58,2,FALSE) ) )","v":""},null,null,null,null,{"$f":"IF(TRIM(BR287)=\"\", \"\", IF(VLOOKUP(BR287,'Footnotes list'!$D$9:$E$58,2,FALSE)=0,\"\",VLOOKUP(BR287,'Footnotes list'!$D$9:$E$58,2,FALSE) ) )","v":""},null,null,null,null,{"$f":"IF(TRIM(BW287)=\"\", \"\", IF(VLOOKUP(BW287,'Footnotes list'!$D$9:$E$58,2,FALSE)=0,\"\",VLOOKUP(BW287,'Footnotes list'!$D$9:$E$58,2,FALSE) ) )","v":""},null,null,null,null,{"$f":"IF(TRIM(CB287)=\"\", \"\", IF(VLOOKUP(CB287,'Footnotes list'!$D$9:$E$58,2,FALSE)=0,\"\",VLOOKUP(CB287,'Footnotes list'!$D$9:$E$58,2,FALSE) ) )","v":""},null,null,null,null,{"$f":"IF(TRIM(CG287)=\"\", \"\", IF(VLOOKUP(CG287,'Footnotes list'!$D$9:$E$58,2,FALSE)=0,\"\",VLOOKUP(CG287,'Footnotes list'!$D$9:$E$58,2,FALSE) ) )","v":""},null,null,null,null,{"$f":"IF(TRIM(CL287)=\"\", \"\", IF(VLOOKUP(CL287,'Footnotes list'!$D$9:$E$58,2,FALSE)=0,\"\",VLOOKUP(CL287,'Footnotes list'!$D$9:$E$58,2,FALSE) ) )","v":""},null,null,null,null,{"$f":"IF(TRIM(CQ287)=\"\", \"\", IF(VLOOKUP(CQ287,'Footnotes list'!$D$9:$E$58,2,FALSE)=0,\"\",VLOOKUP(CQ287,'Footnotes list'!$D$9:$E$58,2,FALSE) ) )","v":""},null,null,null,null,{"$f":"IF(TRIM(CV287)=\"\", \"\", IF(VLOOKUP(CV287,'Footnotes list'!$D$9:$E$58,2,FALSE)=0,\"\",VLOOKUP(CV287,'Footnotes list'!$D$9:$E$58,2,FALSE) ) )","v":""},null,null,null,null,{"$f":"IF(TRIM(DA287)=\"\", \"\", IF(VLOOKUP(DA287,'Footnotes list'!$D$9:$E$58,2,FALSE)=0,\"\",VLOOKUP(DA287,'Footnotes list'!$D$9:$E$58,2,FALSE) ) )","v":""},null,null,null,null,{"$f":"IF(TRIM(DF287)=\"\", \"\", IF(VLOOKUP(DF287,'Footnotes list'!$D$9:$E$58,2,FALSE)=0,\"\",VLOOKUP(DF287,'Footnotes list'!$D$9:$E$58,2,FALSE) ) )","v":""},null,null,null,null,{"$f":"IF(TRIM(DK287)=\"\", \"\", IF(VLOOKUP(DK287,'Footnotes list'!$D$9:$E$58,2,FALSE)=0,\"\",VLOOKUP(DK287,'Footnotes list'!$D$9:$E$58,2,FALSE) ) )","v":""},null,null,null,null,{"$f":"IF(TRIM(DP287)=\"\", \"\", IF(VLOOKUP(DP287,'Footnotes list'!$D$9:$E$58,2,FALSE)=0,\"\",VLOOKUP(DP287,'Footnotes list'!$D$9:$E$58,2,FALSE) ) )","v":""},null,null,null,null,{"$f":"IF(TRIM(DU287)=\"\", \"\", IF(VLOOKUP(DU287,'Footnotes list'!$D$9:$E$58,2,FALSE)=0,\"\",VLOOKUP(DU287,'Footnotes list'!$D$9:$E$58,2,FALSE) ) )","v":""},null,null,null,null,{"$f":"IF(TRIM(DZ287)=\"\", \"\", IF(VLOOKUP(DZ287,'Footnotes list'!$D$9:$E$58,2,FALSE)=0,\"\",VLOOKUP(DZ287,'Footnotes list'!$D$9:$E$58,2,FALSE) ) )","v":""},null,null,null,null,{"$f":"IF(TRIM(EE287)=\"\", \"\", IF(VLOOKUP(EE287,'Footnotes list'!$D$9:$E$58,2,FALSE)=0,\"\",VLOOKUP(EE287,'Footnotes list'!$D$9:$E$58,2,FALSE) ) )","v":""},null,null,null,null,{"$f":"IF(TRIM(EJ287)=\"\", \"\", IF(VLOOKUP(EJ287,'Footnotes list'!$D$9:$E$58,2,FALSE)=0,\"\",VLOOKUP(EJ287,'Footnotes list'!$D$9:$E$58,2,FALSE) ) )","v":""},null,null,null,null,{"$f":"IF(TRIM(EO287)=\"\", \"\", IF(VLOOKUP(EO287,'Footnotes list'!$D$9:$E$58,2,FALSE)=0,\"\",VLOOKUP(EO287,'Footnotes list'!$D$9:$E$58,2,FALSE) ) )","v":""},null,null,null,null,{"$f":"IF(TRIM(ET287)=\"\", \"\", IF(VLOOKUP(ET287,'Footnotes list'!$D$9:$E$58,2,FALSE)=0,\"\",VLOOKUP(ET287,'Footnotes list'!$D$9:$E$58,2,FALSE) ) )","v":""},null,null,null,null,{"$f":"IF(TRIM(EY287)=\"\", \"\", IF(VLOOKUP(EY287,'Footnotes list'!$D$9:$E$58,2,FALSE)=0,\"\",VLOOKUP(EY287,'Footnotes list'!$D$9:$E$58,2,FALSE) ) )","v":""}]
[null,null,"S","TOT_EGSS","Total S - Other service activities, of which:",null,null,null,null,null,{"$f":"IF(TRIM(J288)=\"\", \"\", IF(VLOOKUP(J288,'Footnotes list'!$D$9:$E$58,2,FALSE)=0,\"\",VLOOKUP(J288,'Footnotes list'!$D$9:$E$58,2,FALSE) ) )","v":""},null,null,null,null,{"$f":"IF(TRIM(O288)=\"\", \"\", IF(VLOOKUP(O288,'Footnotes list'!$D$9:$E$58,2,FALSE)=0,\"\",VLOOKUP(O288,'Footnotes list'!$D$9:$E$58,2,FALSE) ) )","v":""},null,null,null,null,{"$f":"IF(TRIM(T288)=\"\", \"\", IF(VLOOKUP(T288,'Footnotes list'!$D$9:$E$58,2,FALSE)=0,\"\",VLOOKUP(T288,'Footnotes list'!$D$9:$E$58,2,FALSE) ) )","v":""},null,null,null,null,{"$f":"IF(TRIM(Y288)=\"\", \"\", IF(VLOOKUP(Y288,'Footnotes list'!$D$9:$E$58,2,FALSE)=0,\"\",VLOOKUP(Y288,'Footnotes list'!$D$9:$E$58,2,FALSE) ) )","v":""},null,null,null,null,{"$f":"IF(TRIM(AD288)=\"\", \"\", IF(VLOOKUP(AD288,'Footnotes list'!$D$9:$E$58,2,FALSE)=0,\"\",VLOOKUP(AD288,'Footnotes list'!$D$9:$E$58,2,FALSE) ) )","v":""},null,null,null,null,{"$f":"IF(TRIM(AI288)=\"\", \"\", IF(VLOOKUP(AI288,'Footnotes list'!$D$9:$E$58,2,FALSE)=0,\"\",VLOOKUP(AI288,'Footnotes list'!$D$9:$E$58,2,FALSE) ) )","v":""},null,null,null,null,{"$f":"IF(TRIM(AN288)=\"\", \"\", IF(VLOOKUP(AN288,'Footnotes list'!$D$9:$E$58,2,FALSE)=0,\"\",VLOOKUP(AN288,'Footnotes list'!$D$9:$E$58,2,FALSE) ) )","v":""},null,null,null,null,{"$f":"IF(TRIM(AS288)=\"\", \"\", IF(VLOOKUP(AS288,'Footnotes list'!$D$9:$E$58,2,FALSE)=0,\"\",VLOOKUP(AS288,'Footnotes list'!$D$9:$E$58,2,FALSE) ) )","v":""},null,null,null,null,{"$f":"IF(TRIM(AX288)=\"\", \"\", IF(VLOOKUP(AX288,'Footnotes list'!$D$9:$E$58,2,FALSE)=0,\"\",VLOOKUP(AX288,'Footnotes list'!$D$9:$E$58,2,FALSE) ) )","v":""},null,null,null,null,{"$f":"IF(TRIM(BC288)=\"\", \"\", IF(VLOOKUP(BC288,'Footnotes list'!$D$9:$E$58,2,FALSE)=0,\"\",VLOOKUP(BC288,'Footnotes list'!$D$9:$E$58,2,FALSE) ) )","v":""},null,null,null,null,{"$f":"IF(TRIM(BH288)=\"\", \"\", IF(VLOOKUP(BH288,'Footnotes list'!$D$9:$E$58,2,FALSE)=0,\"\",VLOOKUP(BH288,'Footnotes list'!$D$9:$E$58,2,FALSE) ) )","v":""},null,null,null,null,{"$f":"IF(TRIM(BM288)=\"\", \"\", IF(VLOOKUP(BM288,'Footnotes list'!$D$9:$E$58,2,FALSE)=0,\"\",VLOOKUP(BM288,'Footnotes list'!$D$9:$E$58,2,FALSE) ) )","v":""},null,null,null,null,{"$f":"IF(TRIM(BR288)=\"\", \"\", IF(VLOOKUP(BR288,'Footnotes list'!$D$9:$E$58,2,FALSE)=0,\"\",VLOOKUP(BR288,'Footnotes list'!$D$9:$E$58,2,FALSE) ) )","v":""},null,null,null,null,{"$f":"IF(TRIM(BW288)=\"\", \"\", IF(VLOOKUP(BW288,'Footnotes list'!$D$9:$E$58,2,FALSE)=0,\"\",VLOOKUP(BW288,'Footnotes list'!$D$9:$E$58,2,FALSE) ) )","v":""},null,null,null,null,{"$f":"IF(TRIM(CB288)=\"\", \"\", IF(VLOOKUP(CB288,'Footnotes list'!$D$9:$E$58,2,FALSE)=0,\"\",VLOOKUP(CB288,'Footnotes list'!$D$9:$E$58,2,FALSE) ) )","v":""},null,null,null,null,{"$f":"IF(TRIM(CG288)=\"\", \"\", IF(VLOOKUP(CG288,'Footnotes list'!$D$9:$E$58,2,FALSE)=0,\"\",VLOOKUP(CG288,'Footnotes list'!$D$9:$E$58,2,FALSE) ) )","v":""},null,null,null,null,{"$f":"IF(TRIM(CL288)=\"\", \"\", IF(VLOOKUP(CL288,'Footnotes list'!$D$9:$E$58,2,FALSE)=0,\"\",VLOOKUP(CL288,'Footnotes list'!$D$9:$E$58,2,FALSE) ) )","v":""},null,null,null,null,{"$f":"IF(TRIM(CQ288)=\"\", \"\", IF(VLOOKUP(CQ288,'Footnotes list'!$D$9:$E$58,2,FALSE)=0,\"\",VLOOKUP(CQ288,'Footnotes list'!$D$9:$E$58,2,FALSE) ) )","v":""},null,null,null,null,{"$f":"IF(TRIM(CV288)=\"\", \"\", IF(VLOOKUP(CV288,'Footnotes list'!$D$9:$E$58,2,FALSE)=0,\"\",VLOOKUP(CV288,'Footnotes list'!$D$9:$E$58,2,FALSE) ) )","v":""},null,null,null,null,{"$f":"IF(TRIM(DA288)=\"\", \"\", IF(VLOOKUP(DA288,'Footnotes list'!$D$9:$E$58,2,FALSE)=0,\"\",VLOOKUP(DA288,'Footnotes list'!$D$9:$E$58,2,FALSE) ) )","v":""},null,null,null,null,{"$f":"IF(TRIM(DF288)=\"\", \"\", IF(VLOOKUP(DF288,'Footnotes list'!$D$9:$E$58,2,FALSE)=0,\"\",VLOOKUP(DF288,'Footnotes list'!$D$9:$E$58,2,FALSE) ) )","v":""},null,null,null,null,{"$f":"IF(TRIM(DK288)=\"\", \"\", IF(VLOOKUP(DK288,'Footnotes list'!$D$9:$E$58,2,FALSE)=0,\"\",VLOOKUP(DK288,'Footnotes list'!$D$9:$E$58,2,FALSE) ) )","v":""},null,null,null,null,{"$f":"IF(TRIM(DP288)=\"\", \"\", IF(VLOOKUP(DP288,'Footnotes list'!$D$9:$E$58,2,FALSE)=0,\"\",VLOOKUP(DP288,'Footnotes list'!$D$9:$E$58,2,FALSE) ) )","v":""},null,null,null,null,{"$f":"IF(TRIM(DU288)=\"\", \"\", IF(VLOOKUP(DU288,'Footnotes list'!$D$9:$E$58,2,FALSE)=0,\"\",VLOOKUP(DU288,'Footnotes list'!$D$9:$E$58,2,FALSE) ) )","v":""},null,null,null,null,{"$f":"IF(TRIM(DZ288)=\"\", \"\", IF(VLOOKUP(DZ288,'Footnotes list'!$D$9:$E$58,2,FALSE)=0,\"\",VLOOKUP(DZ288,'Footnotes list'!$D$9:$E$58,2,FALSE) ) )","v":""},null,null,null,null,{"$f":"IF(TRIM(EE288)=\"\", \"\", IF(VLOOKUP(EE288,'Footnotes list'!$D$9:$E$58,2,FALSE)=0,\"\",VLOOKUP(EE288,'Footnotes list'!$D$9:$E$58,2,FALSE) ) )","v":""},null,null,null,null,{"$f":"IF(TRIM(EJ288)=\"\", \"\", IF(VLOOKUP(EJ288,'Footnotes list'!$D$9:$E$58,2,FALSE)=0,\"\",VLOOKUP(EJ288,'Footnotes list'!$D$9:$E$58,2,FALSE) ) )","v":""},null,null,null,null,{"$f":"IF(TRIM(EO288)=\"\", \"\", IF(VLOOKUP(EO288,'Footnotes list'!$D$9:$E$58,2,FALSE)=0,\"\",VLOOKUP(EO288,'Footnotes list'!$D$9:$E$58,2,FALSE) ) )","v":""},null,null,null,null,{"$f":"IF(TRIM(ET288)=\"\", \"\", IF(VLOOKUP(ET288,'Footnotes list'!$D$9:$E$58,2,FALSE)=0,\"\",VLOOKUP(ET288,'Footnotes list'!$D$9:$E$58,2,FALSE) ) )","v":""},null,null,null,null,{"$f":"IF(TRIM(EY288)=\"\", \"\", IF(VLOOKUP(EY288,'Footnotes list'!$D$9:$E$58,2,FALSE)=0,\"\",VLOOKUP(EY288,'Footnotes list'!$D$9:$E$58,2,FALSE) ) )","v":""}]
[null,null,"S","ANC","ancillary activities",null,null,null,null,null,{"$f":"IF(TRIM(J289)=\"\", \"\", IF(VLOOKUP(J289,'Footnotes list'!$D$9:$E$58,2,FALSE)=0,\"\",VLOOKUP(J289,'Footnotes list'!$D$9:$E$58,2,FALSE) ) )","v":""},null,null,null,null,{"$f":"IF(TRIM(O289)=\"\", \"\", IF(VLOOKUP(O289,'Footnotes list'!$D$9:$E$58,2,FALSE)=0,\"\",VLOOKUP(O289,'Footnotes list'!$D$9:$E$58,2,FALSE) ) )","v":""},null,null,null,null,{"$f":"IF(TRIM(T289)=\"\", \"\", IF(VLOOKUP(T289,'Footnotes list'!$D$9:$E$58,2,FALSE)=0,\"\",VLOOKUP(T289,'Footnotes list'!$D$9:$E$58,2,FALSE) ) )","v":""},null,null,null,null,{"$f":"IF(TRIM(Y289)=\"\", \"\", IF(VLOOKUP(Y289,'Footnotes list'!$D$9:$E$58,2,FALSE)=0,\"\",VLOOKUP(Y289,'Footnotes list'!$D$9:$E$58,2,FALSE) ) )","v":""},null,null,null,null,{"$f":"IF(TRIM(AD289)=\"\", \"\", IF(VLOOKUP(AD289,'Footnotes list'!$D$9:$E$58,2,FALSE)=0,\"\",VLOOKUP(AD289,'Footnotes list'!$D$9:$E$58,2,FALSE) ) )","v":""},null,null,null,null,{"$f":"IF(TRIM(AI289)=\"\", \"\", IF(VLOOKUP(AI289,'Footnotes list'!$D$9:$E$58,2,FALSE)=0,\"\",VLOOKUP(AI289,'Footnotes list'!$D$9:$E$58,2,FALSE) ) )","v":""},null,null,null,null,{"$f":"IF(TRIM(AN289)=\"\", \"\", IF(VLOOKUP(AN289,'Footnotes list'!$D$9:$E$58,2,FALSE)=0,\"\",VLOOKUP(AN289,'Footnotes list'!$D$9:$E$58,2,FALSE) ) )","v":""},null,null,null,null,{"$f":"IF(TRIM(AS289)=\"\", \"\", IF(VLOOKUP(AS289,'Footnotes list'!$D$9:$E$58,2,FALSE)=0,\"\",VLOOKUP(AS289,'Footnotes list'!$D$9:$E$58,2,FALSE) ) )","v":""},null,null,null,null,{"$f":"IF(TRIM(AX289)=\"\", \"\", IF(VLOOKUP(AX289,'Footnotes list'!$D$9:$E$58,2,FALSE)=0,\"\",VLOOKUP(AX289,'Footnotes list'!$D$9:$E$58,2,FALSE) ) )","v":""},null,null,null,null,{"$f":"IF(TRIM(BC289)=\"\", \"\", IF(VLOOKUP(BC289,'Footnotes list'!$D$9:$E$58,2,FALSE)=0,\"\",VLOOKUP(BC289,'Footnotes list'!$D$9:$E$58,2,FALSE) ) )","v":""},null,null,null,null,{"$f":"IF(TRIM(BH289)=\"\", \"\", IF(VLOOKUP(BH289,'Footnotes list'!$D$9:$E$58,2,FALSE)=0,\"\",VLOOKUP(BH289,'Footnotes list'!$D$9:$E$58,2,FALSE) ) )","v":""},null,null,null,null,{"$f":"IF(TRIM(BM289)=\"\", \"\", IF(VLOOKUP(BM289,'Footnotes list'!$D$9:$E$58,2,FALSE)=0,\"\",VLOOKUP(BM289,'Footnotes list'!$D$9:$E$58,2,FALSE) ) )","v":""},null,null,null,null,{"$f":"IF(TRIM(BR289)=\"\", \"\", IF(VLOOKUP(BR289,'Footnotes list'!$D$9:$E$58,2,FALSE)=0,\"\",VLOOKUP(BR289,'Footnotes list'!$D$9:$E$58,2,FALSE) ) )","v":""},null,null,null,null,{"$f":"IF(TRIM(BW289)=\"\", \"\", IF(VLOOKUP(BW289,'Footnotes list'!$D$9:$E$58,2,FALSE)=0,\"\",VLOOKUP(BW289,'Footnotes list'!$D$9:$E$58,2,FALSE) ) )","v":""},null,null,null,null,{"$f":"IF(TRIM(CB289)=\"\", \"\", IF(VLOOKUP(CB289,'Footnotes list'!$D$9:$E$58,2,FALSE)=0,\"\",VLOOKUP(CB289,'Footnotes list'!$D$9:$E$58,2,FALSE) ) )","v":""},null,null,null,null,{"$f":"IF(TRIM(CG289)=\"\", \"\", IF(VLOOKUP(CG289,'Footnotes list'!$D$9:$E$58,2,FALSE)=0,\"\",VLOOKUP(CG289,'Footnotes list'!$D$9:$E$58,2,FALSE) ) )","v":""},null,null,null,null,{"$f":"IF(TRIM(CL289)=\"\", \"\", IF(VLOOKUP(CL289,'Footnotes list'!$D$9:$E$58,2,FALSE)=0,\"\",VLOOKUP(CL289,'Footnotes list'!$D$9:$E$58,2,FALSE) ) )","v":""},null,null,null,null,{"$f":"IF(TRIM(CQ289)=\"\", \"\", IF(VLOOKUP(CQ289,'Footnotes list'!$D$9:$E$58,2,FALSE)=0,\"\",VLOOKUP(CQ289,'Footnotes list'!$D$9:$E$58,2,FALSE) ) )","v":""},null,null,null,null,{"$f":"IF(TRIM(CV289)=\"\", \"\", IF(VLOOKUP(CV289,'Footnotes list'!$D$9:$E$58,2,FALSE)=0,\"\",VLOOKUP(CV289,'Footnotes list'!$D$9:$E$58,2,FALSE) ) )","v":""},null,null,null,null,{"$f":"IF(TRIM(DA289)=\"\", \"\", IF(VLOOKUP(DA289,'Footnotes list'!$D$9:$E$58,2,FALSE)=0,\"\",VLOOKUP(DA289,'Footnotes list'!$D$9:$E$58,2,FALSE) ) )","v":""},null,null,null,null,{"$f":"IF(TRIM(DF289)=\"\", \"\", IF(VLOOKUP(DF289,'Footnotes list'!$D$9:$E$58,2,FALSE)=0,\"\",VLOOKUP(DF289,'Footnotes list'!$D$9:$E$58,2,FALSE) ) )","v":""},null,null,null,null,{"$f":"IF(TRIM(DK289)=\"\", \"\", IF(VLOOKUP(DK289,'Footnotes list'!$D$9:$E$58,2,FALSE)=0,\"\",VLOOKUP(DK289,'Footnotes list'!$D$9:$E$58,2,FALSE) ) )","v":""},null,null,null,null,{"$f":"IF(TRIM(DP289)=\"\", \"\", IF(VLOOKUP(DP289,'Footnotes list'!$D$9:$E$58,2,FALSE)=0,\"\",VLOOKUP(DP289,'Footnotes list'!$D$9:$E$58,2,FALSE) ) )","v":""},null,null,null,null,{"$f":"IF(TRIM(DU289)=\"\", \"\", IF(VLOOKUP(DU289,'Footnotes list'!$D$9:$E$58,2,FALSE)=0,\"\",VLOOKUP(DU289,'Footnotes list'!$D$9:$E$58,2,FALSE) ) )","v":""},null,null,null,null,{"$f":"IF(TRIM(DZ289)=\"\", \"\", IF(VLOOKUP(DZ289,'Footnotes list'!$D$9:$E$58,2,FALSE)=0,\"\",VLOOKUP(DZ289,'Footnotes list'!$D$9:$E$58,2,FALSE) ) )","v":""},null,null,null,null,{"$f":"IF(TRIM(EE289)=\"\", \"\", IF(VLOOKUP(EE289,'Footnotes list'!$D$9:$E$58,2,FALSE)=0,\"\",VLOOKUP(EE289,'Footnotes list'!$D$9:$E$58,2,FALSE) ) )","v":""},null,null,null,null,{"$f":"IF(TRIM(EJ289)=\"\", \"\", IF(VLOOKUP(EJ289,'Footnotes list'!$D$9:$E$58,2,FALSE)=0,\"\",VLOOKUP(EJ289,'Footnotes list'!$D$9:$E$58,2,FALSE) ) )","v":""},null,null,null,null,{"$f":"IF(TRIM(EO289)=\"\", \"\", IF(VLOOKUP(EO289,'Footnotes list'!$D$9:$E$58,2,FALSE)=0,\"\",VLOOKUP(EO289,'Footnotes list'!$D$9:$E$58,2,FALSE) ) )","v":""},null,null,null,null,{"$f":"IF(TRIM(ET289)=\"\", \"\", IF(VLOOKUP(ET289,'Footnotes list'!$D$9:$E$58,2,FALSE)=0,\"\",VLOOKUP(ET289,'Footnotes list'!$D$9:$E$58,2,FALSE) ) )","v":""},null,null,null,null,{"$f":"IF(TRIM(EY289)=\"\", \"\", IF(VLOOKUP(EY289,'Footnotes list'!$D$9:$E$58,2,FALSE)=0,\"\",VLOOKUP(EY289,'Footnotes list'!$D$9:$E$58,2,FALSE) ) )","v":""}]
[null,null,"S","NMKT","non-market activities",null,null,null,null,null,{"$f":"IF(TRIM(J290)=\"\", \"\", IF(VLOOKUP(J290,'Footnotes list'!$D$9:$E$58,2,FALSE)=0,\"\",VLOOKUP(J290,'Footnotes list'!$D$9:$E$58,2,FALSE) ) )","v":""},null,null,null,null,{"$f":"IF(TRIM(O290)=\"\", \"\", IF(VLOOKUP(O290,'Footnotes list'!$D$9:$E$58,2,FALSE)=0,\"\",VLOOKUP(O290,'Footnotes list'!$D$9:$E$58,2,FALSE) ) )","v":""},null,null,null,null,{"$f":"IF(TRIM(T290)=\"\", \"\", IF(VLOOKUP(T290,'Footnotes list'!$D$9:$E$58,2,FALSE)=0,\"\",VLOOKUP(T290,'Footnotes list'!$D$9:$E$58,2,FALSE) ) )","v":""},null,null,null,null,{"$f":"IF(TRIM(Y290)=\"\", \"\", IF(VLOOKUP(Y290,'Footnotes list'!$D$9:$E$58,2,FALSE)=0,\"\",VLOOKUP(Y290,'Footnotes list'!$D$9:$E$58,2,FALSE) ) )","v":""},null,null,null,null,{"$f":"IF(TRIM(AD290)=\"\", \"\", IF(VLOOKUP(AD290,'Footnotes list'!$D$9:$E$58,2,FALSE)=0,\"\",VLOOKUP(AD290,'Footnotes list'!$D$9:$E$58,2,FALSE) ) )","v":""},null,null,null,null,{"$f":"IF(TRIM(AI290)=\"\", \"\", IF(VLOOKUP(AI290,'Footnotes list'!$D$9:$E$58,2,FALSE)=0,\"\",VLOOKUP(AI290,'Footnotes list'!$D$9:$E$58,2,FALSE) ) )","v":""},null,null,null,null,{"$f":"IF(TRIM(AN290)=\"\", \"\", IF(VLOOKUP(AN290,'Footnotes list'!$D$9:$E$58,2,FALSE)=0,\"\",VLOOKUP(AN290,'Footnotes list'!$D$9:$E$58,2,FALSE) ) )","v":""},null,null,null,null,{"$f":"IF(TRIM(AS290)=\"\", \"\", IF(VLOOKUP(AS290,'Footnotes list'!$D$9:$E$58,2,FALSE)=0,\"\",VLOOKUP(AS290,'Footnotes list'!$D$9:$E$58,2,FALSE) ) )","v":""},null,null,null,null,{"$f":"IF(TRIM(AX290)=\"\", \"\", IF(VLOOKUP(AX290,'Footnotes list'!$D$9:$E$58,2,FALSE)=0,\"\",VLOOKUP(AX290,'Footnotes list'!$D$9:$E$58,2,FALSE) ) )","v":""},null,null,null,null,{"$f":"IF(TRIM(BC290)=\"\", \"\", IF(VLOOKUP(BC290,'Footnotes list'!$D$9:$E$58,2,FALSE)=0,\"\",VLOOKUP(BC290,'Footnotes list'!$D$9:$E$58,2,FALSE) ) )","v":""},null,null,null,null,{"$f":"IF(TRIM(BH290)=\"\", \"\", IF(VLOOKUP(BH290,'Footnotes list'!$D$9:$E$58,2,FALSE)=0,\"\",VLOOKUP(BH290,'Footnotes list'!$D$9:$E$58,2,FALSE) ) )","v":""},null,null,null,null,{"$f":"IF(TRIM(BM290)=\"\", \"\", IF(VLOOKUP(BM290,'Footnotes list'!$D$9:$E$58,2,FALSE)=0,\"\",VLOOKUP(BM290,'Footnotes list'!$D$9:$E$58,2,FALSE) ) )","v":""},null,null,null,null,{"$f":"IF(TRIM(BR290)=\"\", \"\", IF(VLOOKUP(BR290,'Footnotes list'!$D$9:$E$58,2,FALSE)=0,\"\",VLOOKUP(BR290,'Footnotes list'!$D$9:$E$58,2,FALSE) ) )","v":""},null,null,null,null,{"$f":"IF(TRIM(BW290)=\"\", \"\", IF(VLOOKUP(BW290,'Footnotes list'!$D$9:$E$58,2,FALSE)=0,\"\",VLOOKUP(BW290,'Footnotes list'!$D$9:$E$58,2,FALSE) ) )","v":""},null,null,null,null,{"$f":"IF(TRIM(CB290)=\"\", \"\", IF(VLOOKUP(CB290,'Footnotes list'!$D$9:$E$58,2,FALSE)=0,\"\",VLOOKUP(CB290,'Footnotes list'!$D$9:$E$58,2,FALSE) ) )","v":""},null,null,null,null,{"$f":"IF(TRIM(CG290)=\"\", \"\", IF(VLOOKUP(CG290,'Footnotes list'!$D$9:$E$58,2,FALSE)=0,\"\",VLOOKUP(CG290,'Footnotes list'!$D$9:$E$58,2,FALSE) ) )","v":""},null,null,null,null,{"$f":"IF(TRIM(CL290)=\"\", \"\", IF(VLOOKUP(CL290,'Footnotes list'!$D$9:$E$58,2,FALSE)=0,\"\",VLOOKUP(CL290,'Footnotes list'!$D$9:$E$58,2,FALSE) ) )","v":""},null,null,null,null,{"$f":"IF(TRIM(CQ290)=\"\", \"\", IF(VLOOKUP(CQ290,'Footnotes list'!$D$9:$E$58,2,FALSE)=0,\"\",VLOOKUP(CQ290,'Footnotes list'!$D$9:$E$58,2,FALSE) ) )","v":""},null,null,null,null,{"$f":"IF(TRIM(CV290)=\"\", \"\", IF(VLOOKUP(CV290,'Footnotes list'!$D$9:$E$58,2,FALSE)=0,\"\",VLOOKUP(CV290,'Footnotes list'!$D$9:$E$58,2,FALSE) ) )","v":""},null,null,null,null,{"$f":"IF(TRIM(DA290)=\"\", \"\", IF(VLOOKUP(DA290,'Footnotes list'!$D$9:$E$58,2,FALSE)=0,\"\",VLOOKUP(DA290,'Footnotes list'!$D$9:$E$58,2,FALSE) ) )","v":""},null,null,null,null,{"$f":"IF(TRIM(DF290)=\"\", \"\", IF(VLOOKUP(DF290,'Footnotes list'!$D$9:$E$58,2,FALSE)=0,\"\",VLOOKUP(DF290,'Footnotes list'!$D$9:$E$58,2,FALSE) ) )","v":""},null,null,null,null,{"$f":"IF(TRIM(DK290)=\"\", \"\", IF(VLOOKUP(DK290,'Footnotes list'!$D$9:$E$58,2,FALSE)=0,\"\",VLOOKUP(DK290,'Footnotes list'!$D$9:$E$58,2,FALSE) ) )","v":""},null,null,null,null,{"$f":"IF(TRIM(DP290)=\"\", \"\", IF(VLOOKUP(DP290,'Footnotes list'!$D$9:$E$58,2,FALSE)=0,\"\",VLOOKUP(DP290,'Footnotes list'!$D$9:$E$58,2,FALSE) ) )","v":""},null,null,null,null,{"$f":"IF(TRIM(DU290)=\"\", \"\", IF(VLOOKUP(DU290,'Footnotes list'!$D$9:$E$58,2,FALSE)=0,\"\",VLOOKUP(DU290,'Footnotes list'!$D$9:$E$58,2,FALSE) ) )","v":""},null,null,null,null,{"$f":"IF(TRIM(DZ290)=\"\", \"\", IF(VLOOKUP(DZ290,'Footnotes list'!$D$9:$E$58,2,FALSE)=0,\"\",VLOOKUP(DZ290,'Footnotes list'!$D$9:$E$58,2,FALSE) ) )","v":""},null,null,null,null,{"$f":"IF(TRIM(EE290)=\"\", \"\", IF(VLOOKUP(EE290,'Footnotes list'!$D$9:$E$58,2,FALSE)=0,\"\",VLOOKUP(EE290,'Footnotes list'!$D$9:$E$58,2,FALSE) ) )","v":""},null,null,null,null,{"$f":"IF(TRIM(EJ290)=\"\", \"\", IF(VLOOKUP(EJ290,'Footnotes list'!$D$9:$E$58,2,FALSE)=0,\"\",VLOOKUP(EJ290,'Footnotes list'!$D$9:$E$58,2,FALSE) ) )","v":""},null,null,null,null,{"$f":"IF(TRIM(EO290)=\"\", \"\", IF(VLOOKUP(EO290,'Footnotes list'!$D$9:$E$58,2,FALSE)=0,\"\",VLOOKUP(EO290,'Footnotes list'!$D$9:$E$58,2,FALSE) ) )","v":""},null,null,null,null,{"$f":"IF(TRIM(ET290)=\"\", \"\", IF(VLOOKUP(ET290,'Footnotes list'!$D$9:$E$58,2,FALSE)=0,\"\",VLOOKUP(ET290,'Footnotes list'!$D$9:$E$58,2,FALSE) ) )","v":""},null,null,null,null,{"$f":"IF(TRIM(EY290)=\"\", \"\", IF(VLOOKUP(EY290,'Footnotes list'!$D$9:$E$58,2,FALSE)=0,\"\",VLOOKUP(EY290,'Footnotes list'!$D$9:$E$58,2,FALSE) ) )","v":""}]
[null,null,"S","OWN_USE","activities for own final use",null,null,null,null,null,{"$f":"IF(TRIM(J291)=\"\", \"\", IF(VLOOKUP(J291,'Footnotes list'!$D$9:$E$58,2,FALSE)=0,\"\",VLOOKUP(J291,'Footnotes list'!$D$9:$E$58,2,FALSE) ) )","v":""},null,null,null,null,{"$f":"IF(TRIM(O291)=\"\", \"\", IF(VLOOKUP(O291,'Footnotes list'!$D$9:$E$58,2,FALSE)=0,\"\",VLOOKUP(O291,'Footnotes list'!$D$9:$E$58,2,FALSE) ) )","v":""},null,null,null,null,{"$f":"IF(TRIM(T291)=\"\", \"\", IF(VLOOKUP(T291,'Footnotes list'!$D$9:$E$58,2,FALSE)=0,\"\",VLOOKUP(T291,'Footnotes list'!$D$9:$E$58,2,FALSE) ) )","v":""},null,null,null,null,{"$f":"IF(TRIM(Y291)=\"\", \"\", IF(VLOOKUP(Y291,'Footnotes list'!$D$9:$E$58,2,FALSE)=0,\"\",VLOOKUP(Y291,'Footnotes list'!$D$9:$E$58,2,FALSE) ) )","v":""},null,null,null,null,{"$f":"IF(TRIM(AD291)=\"\", \"\", IF(VLOOKUP(AD291,'Footnotes list'!$D$9:$E$58,2,FALSE)=0,\"\",VLOOKUP(AD291,'Footnotes list'!$D$9:$E$58,2,FALSE) ) )","v":""},null,null,null,null,{"$f":"IF(TRIM(AI291)=\"\", \"\", IF(VLOOKUP(AI291,'Footnotes list'!$D$9:$E$58,2,FALSE)=0,\"\",VLOOKUP(AI291,'Footnotes list'!$D$9:$E$58,2,FALSE) ) )","v":""},null,null,null,null,{"$f":"IF(TRIM(AN291)=\"\", \"\", IF(VLOOKUP(AN291,'Footnotes list'!$D$9:$E$58,2,FALSE)=0,\"\",VLOOKUP(AN291,'Footnotes list'!$D$9:$E$58,2,FALSE) ) )","v":""},null,null,null,null,{"$f":"IF(TRIM(AS291)=\"\", \"\", IF(VLOOKUP(AS291,'Footnotes list'!$D$9:$E$58,2,FALSE)=0,\"\",VLOOKUP(AS291,'Footnotes list'!$D$9:$E$58,2,FALSE) ) )","v":""},null,null,null,null,{"$f":"IF(TRIM(AX291)=\"\", \"\", IF(VLOOKUP(AX291,'Footnotes list'!$D$9:$E$58,2,FALSE)=0,\"\",VLOOKUP(AX291,'Footnotes list'!$D$9:$E$58,2,FALSE) ) )","v":""},null,null,null,null,{"$f":"IF(TRIM(BC291)=\"\", \"\", IF(VLOOKUP(BC291,'Footnotes list'!$D$9:$E$58,2,FALSE)=0,\"\",VLOOKUP(BC291,'Footnotes list'!$D$9:$E$58,2,FALSE) ) )","v":""},null,null,null,null,{"$f":"IF(TRIM(BH291)=\"\", \"\", IF(VLOOKUP(BH291,'Footnotes list'!$D$9:$E$58,2,FALSE)=0,\"\",VLOOKUP(BH291,'Footnotes list'!$D$9:$E$58,2,FALSE) ) )","v":""},null,null,null,null,{"$f":"IF(TRIM(BM291)=\"\", \"\", IF(VLOOKUP(BM291,'Footnotes list'!$D$9:$E$58,2,FALSE)=0,\"\",VLOOKUP(BM291,'Footnotes list'!$D$9:$E$58,2,FALSE) ) )","v":""},null,null,null,null,{"$f":"IF(TRIM(BR291)=\"\", \"\", IF(VLOOKUP(BR291,'Footnotes list'!$D$9:$E$58,2,FALSE)=0,\"\",VLOOKUP(BR291,'Footnotes list'!$D$9:$E$58,2,FALSE) ) )","v":""},null,null,null,null,{"$f":"IF(TRIM(BW291)=\"\", \"\", IF(VLOOKUP(BW291,'Footnotes list'!$D$9:$E$58,2,FALSE)=0,\"\",VLOOKUP(BW291,'Footnotes list'!$D$9:$E$58,2,FALSE) ) )","v":""},null,null,null,null,{"$f":"IF(TRIM(CB291)=\"\", \"\", IF(VLOOKUP(CB291,'Footnotes list'!$D$9:$E$58,2,FALSE)=0,\"\",VLOOKUP(CB291,'Footnotes list'!$D$9:$E$58,2,FALSE) ) )","v":""},null,null,null,null,{"$f":"IF(TRIM(CG291)=\"\", \"\", IF(VLOOKUP(CG291,'Footnotes list'!$D$9:$E$58,2,FALSE)=0,\"\",VLOOKUP(CG291,'Footnotes list'!$D$9:$E$58,2,FALSE) ) )","v":""},null,null,null,null,{"$f":"IF(TRIM(CL291)=\"\", \"\", IF(VLOOKUP(CL291,'Footnotes list'!$D$9:$E$58,2,FALSE)=0,\"\",VLOOKUP(CL291,'Footnotes list'!$D$9:$E$58,2,FALSE) ) )","v":""},null,null,null,null,{"$f":"IF(TRIM(CQ291)=\"\", \"\", IF(VLOOKUP(CQ291,'Footnotes list'!$D$9:$E$58,2,FALSE)=0,\"\",VLOOKUP(CQ291,'Footnotes list'!$D$9:$E$58,2,FALSE) ) )","v":""},null,null,null,null,{"$f":"IF(TRIM(CV291)=\"\", \"\", IF(VLOOKUP(CV291,'Footnotes list'!$D$9:$E$58,2,FALSE)=0,\"\",VLOOKUP(CV291,'Footnotes list'!$D$9:$E$58,2,FALSE) ) )","v":""},null,null,null,null,{"$f":"IF(TRIM(DA291)=\"\", \"\", IF(VLOOKUP(DA291,'Footnotes list'!$D$9:$E$58,2,FALSE)=0,\"\",VLOOKUP(DA291,'Footnotes list'!$D$9:$E$58,2,FALSE) ) )","v":""},null,null,null,null,{"$f":"IF(TRIM(DF291)=\"\", \"\", IF(VLOOKUP(DF291,'Footnotes list'!$D$9:$E$58,2,FALSE)=0,\"\",VLOOKUP(DF291,'Footnotes list'!$D$9:$E$58,2,FALSE) ) )","v":""},null,null,null,null,{"$f":"IF(TRIM(DK291)=\"\", \"\", IF(VLOOKUP(DK291,'Footnotes list'!$D$9:$E$58,2,FALSE)=0,\"\",VLOOKUP(DK291,'Footnotes list'!$D$9:$E$58,2,FALSE) ) )","v":""},null,null,null,null,{"$f":"IF(TRIM(DP291)=\"\", \"\", IF(VLOOKUP(DP291,'Footnotes list'!$D$9:$E$58,2,FALSE)=0,\"\",VLOOKUP(DP291,'Footnotes list'!$D$9:$E$58,2,FALSE) ) )","v":""},null,null,null,null,{"$f":"IF(TRIM(DU291)=\"\", \"\", IF(VLOOKUP(DU291,'Footnotes list'!$D$9:$E$58,2,FALSE)=0,\"\",VLOOKUP(DU291,'Footnotes list'!$D$9:$E$58,2,FALSE) ) )","v":""},null,null,null,null,{"$f":"IF(TRIM(DZ291)=\"\", \"\", IF(VLOOKUP(DZ291,'Footnotes list'!$D$9:$E$58,2,FALSE)=0,\"\",VLOOKUP(DZ291,'Footnotes list'!$D$9:$E$58,2,FALSE) ) )","v":""},null,null,null,null,{"$f":"IF(TRIM(EE291)=\"\", \"\", IF(VLOOKUP(EE291,'Footnotes list'!$D$9:$E$58,2,FALSE)=0,\"\",VLOOKUP(EE291,'Footnotes list'!$D$9:$E$58,2,FALSE) ) )","v":""},null,null,null,null,{"$f":"IF(TRIM(EJ291)=\"\", \"\", IF(VLOOKUP(EJ291,'Footnotes list'!$D$9:$E$58,2,FALSE)=0,\"\",VLOOKUP(EJ291,'Footnotes list'!$D$9:$E$58,2,FALSE) ) )","v":""},null,null,null,null,{"$f":"IF(TRIM(EO291)=\"\", \"\", IF(VLOOKUP(EO291,'Footnotes list'!$D$9:$E$58,2,FALSE)=0,\"\",VLOOKUP(EO291,'Footnotes list'!$D$9:$E$58,2,FALSE) ) )","v":""},null,null,null,null,{"$f":"IF(TRIM(ET291)=\"\", \"\", IF(VLOOKUP(ET291,'Footnotes list'!$D$9:$E$58,2,FALSE)=0,\"\",VLOOKUP(ET291,'Footnotes list'!$D$9:$E$58,2,FALSE) ) )","v":""},null,null,null,null,{"$f":"IF(TRIM(EY291)=\"\", \"\", IF(VLOOKUP(EY291,'Footnotes list'!$D$9:$E$58,2,FALSE)=0,\"\",VLOOKUP(EY291,'Footnotes list'!$D$9:$E$58,2,FALSE) ) )","v":""}]
[null,null,"S","MKT","market activities, including:",null,null,null,null,null,{"$f":"IF(TRIM(J292)=\"\", \"\", IF(VLOOKUP(J292,'Footnotes list'!$D$9:$E$58,2,FALSE)=0,\"\",VLOOKUP(J292,'Footnotes list'!$D$9:$E$58,2,FALSE) ) )","v":""},null,null,null,null,{"$f":"IF(TRIM(O292)=\"\", \"\", IF(VLOOKUP(O292,'Footnotes list'!$D$9:$E$58,2,FALSE)=0,\"\",VLOOKUP(O292,'Footnotes list'!$D$9:$E$58,2,FALSE) ) )","v":""},null,null,null,null,{"$f":"IF(TRIM(T292)=\"\", \"\", IF(VLOOKUP(T292,'Footnotes list'!$D$9:$E$58,2,FALSE)=0,\"\",VLOOKUP(T292,'Footnotes list'!$D$9:$E$58,2,FALSE) ) )","v":""},null,null,null,null,{"$f":"IF(TRIM(Y292)=\"\", \"\", IF(VLOOKUP(Y292,'Footnotes list'!$D$9:$E$58,2,FALSE)=0,\"\",VLOOKUP(Y292,'Footnotes list'!$D$9:$E$58,2,FALSE) ) )","v":""},null,null,null,null,{"$f":"IF(TRIM(AD292)=\"\", \"\", IF(VLOOKUP(AD292,'Footnotes list'!$D$9:$E$58,2,FALSE)=0,\"\",VLOOKUP(AD292,'Footnotes list'!$D$9:$E$58,2,FALSE) ) )","v":""},null,null,null,null,{"$f":"IF(TRIM(AI292)=\"\", \"\", IF(VLOOKUP(AI292,'Footnotes list'!$D$9:$E$58,2,FALSE)=0,\"\",VLOOKUP(AI292,'Footnotes list'!$D$9:$E$58,2,FALSE) ) )","v":""},null,null,null,null,{"$f":"IF(TRIM(AN292)=\"\", \"\", IF(VLOOKUP(AN292,'Footnotes list'!$D$9:$E$58,2,FALSE)=0,\"\",VLOOKUP(AN292,'Footnotes list'!$D$9:$E$58,2,FALSE) ) )","v":""},null,null,null,null,{"$f":"IF(TRIM(AS292)=\"\", \"\", IF(VLOOKUP(AS292,'Footnotes list'!$D$9:$E$58,2,FALSE)=0,\"\",VLOOKUP(AS292,'Footnotes list'!$D$9:$E$58,2,FALSE) ) )","v":""},null,null,null,null,{"$f":"IF(TRIM(AX292)=\"\", \"\", IF(VLOOKUP(AX292,'Footnotes list'!$D$9:$E$58,2,FALSE)=0,\"\",VLOOKUP(AX292,'Footnotes list'!$D$9:$E$58,2,FALSE) ) )","v":""},null,null,null,null,{"$f":"IF(TRIM(BC292)=\"\", \"\", IF(VLOOKUP(BC292,'Footnotes list'!$D$9:$E$58,2,FALSE)=0,\"\",VLOOKUP(BC292,'Footnotes list'!$D$9:$E$58,2,FALSE) ) )","v":""},null,null,null,null,{"$f":"IF(TRIM(BH292)=\"\", \"\", IF(VLOOKUP(BH292,'Footnotes list'!$D$9:$E$58,2,FALSE)=0,\"\",VLOOKUP(BH292,'Footnotes list'!$D$9:$E$58,2,FALSE) ) )","v":""},null,null,null,null,{"$f":"IF(TRIM(BM292)=\"\", \"\", IF(VLOOKUP(BM292,'Footnotes list'!$D$9:$E$58,2,FALSE)=0,\"\",VLOOKUP(BM292,'Footnotes list'!$D$9:$E$58,2,FALSE) ) )","v":""},null,null,null,null,{"$f":"IF(TRIM(BR292)=\"\", \"\", IF(VLOOKUP(BR292,'Footnotes list'!$D$9:$E$58,2,FALSE)=0,\"\",VLOOKUP(BR292,'Footnotes list'!$D$9:$E$58,2,FALSE) ) )","v":""},null,null,null,null,{"$f":"IF(TRIM(BW292)=\"\", \"\", IF(VLOOKUP(BW292,'Footnotes list'!$D$9:$E$58,2,FALSE)=0,\"\",VLOOKUP(BW292,'Footnotes list'!$D$9:$E$58,2,FALSE) ) )","v":""},null,null,null,null,{"$f":"IF(TRIM(CB292)=\"\", \"\", IF(VLOOKUP(CB292,'Footnotes list'!$D$9:$E$58,2,FALSE)=0,\"\",VLOOKUP(CB292,'Footnotes list'!$D$9:$E$58,2,FALSE) ) )","v":""},null,null,null,null,{"$f":"IF(TRIM(CG292)=\"\", \"\", IF(VLOOKUP(CG292,'Footnotes list'!$D$9:$E$58,2,FALSE)=0,\"\",VLOOKUP(CG292,'Footnotes list'!$D$9:$E$58,2,FALSE) ) )","v":""},null,null,null,null,{"$f":"IF(TRIM(CL292)=\"\", \"\", IF(VLOOKUP(CL292,'Footnotes list'!$D$9:$E$58,2,FALSE)=0,\"\",VLOOKUP(CL292,'Footnotes list'!$D$9:$E$58,2,FALSE) ) )","v":""},null,null,null,null,{"$f":"IF(TRIM(CQ292)=\"\", \"\", IF(VLOOKUP(CQ292,'Footnotes list'!$D$9:$E$58,2,FALSE)=0,\"\",VLOOKUP(CQ292,'Footnotes list'!$D$9:$E$58,2,FALSE) ) )","v":""},null,null,null,null,{"$f":"IF(TRIM(CV292)=\"\", \"\", IF(VLOOKUP(CV292,'Footnotes list'!$D$9:$E$58,2,FALSE)=0,\"\",VLOOKUP(CV292,'Footnotes list'!$D$9:$E$58,2,FALSE) ) )","v":""},null,null,null,null,{"$f":"IF(TRIM(DA292)=\"\", \"\", IF(VLOOKUP(DA292,'Footnotes list'!$D$9:$E$58,2,FALSE)=0,\"\",VLOOKUP(DA292,'Footnotes list'!$D$9:$E$58,2,FALSE) ) )","v":""},null,null,null,null,{"$f":"IF(TRIM(DF292)=\"\", \"\", IF(VLOOKUP(DF292,'Footnotes list'!$D$9:$E$58,2,FALSE)=0,\"\",VLOOKUP(DF292,'Footnotes list'!$D$9:$E$58,2,FALSE) ) )","v":""},null,null,null,null,{"$f":"IF(TRIM(DK292)=\"\", \"\", IF(VLOOKUP(DK292,'Footnotes list'!$D$9:$E$58,2,FALSE)=0,\"\",VLOOKUP(DK292,'Footnotes list'!$D$9:$E$58,2,FALSE) ) )","v":""},null,null,null,null,{"$f":"IF(TRIM(DP292)=\"\", \"\", IF(VLOOKUP(DP292,'Footnotes list'!$D$9:$E$58,2,FALSE)=0,\"\",VLOOKUP(DP292,'Footnotes list'!$D$9:$E$58,2,FALSE) ) )","v":""},null,null,null,null,{"$f":"IF(TRIM(DU292)=\"\", \"\", IF(VLOOKUP(DU292,'Footnotes list'!$D$9:$E$58,2,FALSE)=0,\"\",VLOOKUP(DU292,'Footnotes list'!$D$9:$E$58,2,FALSE) ) )","v":""},null,null,null,null,{"$f":"IF(TRIM(DZ292)=\"\", \"\", IF(VLOOKUP(DZ292,'Footnotes list'!$D$9:$E$58,2,FALSE)=0,\"\",VLOOKUP(DZ292,'Footnotes list'!$D$9:$E$58,2,FALSE) ) )","v":""},null,null,null,null,{"$f":"IF(TRIM(EE292)=\"\", \"\", IF(VLOOKUP(EE292,'Footnotes list'!$D$9:$E$58,2,FALSE)=0,\"\",VLOOKUP(EE292,'Footnotes list'!$D$9:$E$58,2,FALSE) ) )","v":""},null,null,null,null,{"$f":"IF(TRIM(EJ292)=\"\", \"\", IF(VLOOKUP(EJ292,'Footnotes list'!$D$9:$E$58,2,FALSE)=0,\"\",VLOOKUP(EJ292,'Footnotes list'!$D$9:$E$58,2,FALSE) ) )","v":""},null,null,null,null,{"$f":"IF(TRIM(EO292)=\"\", \"\", IF(VLOOKUP(EO292,'Footnotes list'!$D$9:$E$58,2,FALSE)=0,\"\",VLOOKUP(EO292,'Footnotes list'!$D$9:$E$58,2,FALSE) ) )","v":""},null,null,null,null,{"$f":"IF(TRIM(ET292)=\"\", \"\", IF(VLOOKUP(ET292,'Footnotes list'!$D$9:$E$58,2,FALSE)=0,\"\",VLOOKUP(ET292,'Footnotes list'!$D$9:$E$58,2,FALSE) ) )","v":""},null,null,null,null,{"$f":"IF(TRIM(EY292)=\"\", \"\", IF(VLOOKUP(EY292,'Footnotes list'!$D$9:$E$58,2,FALSE)=0,\"\",VLOOKUP(EY292,'Footnotes list'!$D$9:$E$58,2,FALSE) ) )","v":""}]
[null,null,"S","ES_CS","environmental specific services",null,null,null,null,null,{"$f":"IF(TRIM(J293)=\"\", \"\", IF(VLOOKUP(J293,'Footnotes list'!$D$9:$E$58,2,FALSE)=0,\"\",VLOOKUP(J293,'Footnotes list'!$D$9:$E$58,2,FALSE) ) )","v":""},null,null,null,null,{"$f":"IF(TRIM(O293)=\"\", \"\", IF(VLOOKUP(O293,'Footnotes list'!$D$9:$E$58,2,FALSE)=0,\"\",VLOOKUP(O293,'Footnotes list'!$D$9:$E$58,2,FALSE) ) )","v":""},null,null,null,null,{"$f":"IF(TRIM(T293)=\"\", \"\", IF(VLOOKUP(T293,'Footnotes list'!$D$9:$E$58,2,FALSE)=0,\"\",VLOOKUP(T293,'Footnotes list'!$D$9:$E$58,2,FALSE) ) )","v":""},null,null,null,null,{"$f":"IF(TRIM(Y293)=\"\", \"\", IF(VLOOKUP(Y293,'Footnotes list'!$D$9:$E$58,2,FALSE)=0,\"\",VLOOKUP(Y293,'Footnotes list'!$D$9:$E$58,2,FALSE) ) )","v":""},null,null,null,null,{"$f":"IF(TRIM(AD293)=\"\", \"\", IF(VLOOKUP(AD293,'Footnotes list'!$D$9:$E$58,2,FALSE)=0,\"\",VLOOKUP(AD293,'Footnotes list'!$D$9:$E$58,2,FALSE) ) )","v":""},null,null,null,null,{"$f":"IF(TRIM(AI293)=\"\", \"\", IF(VLOOKUP(AI293,'Footnotes list'!$D$9:$E$58,2,FALSE)=0,\"\",VLOOKUP(AI293,'Footnotes list'!$D$9:$E$58,2,FALSE) ) )","v":""},null,null,null,null,{"$f":"IF(TRIM(AN293)=\"\", \"\", IF(VLOOKUP(AN293,'Footnotes list'!$D$9:$E$58,2,FALSE)=0,\"\",VLOOKUP(AN293,'Footnotes list'!$D$9:$E$58,2,FALSE) ) )","v":""},null,null,null,null,{"$f":"IF(TRIM(AS293)=\"\", \"\", IF(VLOOKUP(AS293,'Footnotes list'!$D$9:$E$58,2,FALSE)=0,\"\",VLOOKUP(AS293,'Footnotes list'!$D$9:$E$58,2,FALSE) ) )","v":""},null,null,null,null,{"$f":"IF(TRIM(AX293)=\"\", \"\", IF(VLOOKUP(AX293,'Footnotes list'!$D$9:$E$58,2,FALSE)=0,\"\",VLOOKUP(AX293,'Footnotes list'!$D$9:$E$58,2,FALSE) ) )","v":""},null,null,null,null,{"$f":"IF(TRIM(BC293)=\"\", \"\", IF(VLOOKUP(BC293,'Footnotes list'!$D$9:$E$58,2,FALSE)=0,\"\",VLOOKUP(BC293,'Footnotes list'!$D$9:$E$58,2,FALSE) ) )","v":""},null,null,null,null,{"$f":"IF(TRIM(BH293)=\"\", \"\", IF(VLOOKUP(BH293,'Footnotes list'!$D$9:$E$58,2,FALSE)=0,\"\",VLOOKUP(BH293,'Footnotes list'!$D$9:$E$58,2,FALSE) ) )","v":""},null,null,null,null,{"$f":"IF(TRIM(BM293)=\"\", \"\", IF(VLOOKUP(BM293,'Footnotes list'!$D$9:$E$58,2,FALSE)=0,\"\",VLOOKUP(BM293,'Footnotes list'!$D$9:$E$58,2,FALSE) ) )","v":""},null,null,null,null,{"$f":"IF(TRIM(BR293)=\"\", \"\", IF(VLOOKUP(BR293,'Footnotes list'!$D$9:$E$58,2,FALSE)=0,\"\",VLOOKUP(BR293,'Footnotes list'!$D$9:$E$58,2,FALSE) ) )","v":""},null,null,null,null,{"$f":"IF(TRIM(BW293)=\"\", \"\", IF(VLOOKUP(BW293,'Footnotes list'!$D$9:$E$58,2,FALSE)=0,\"\",VLOOKUP(BW293,'Footnotes list'!$D$9:$E$58,2,FALSE) ) )","v":""},null,null,null,null,{"$f":"IF(TRIM(CB293)=\"\", \"\", IF(VLOOKUP(CB293,'Footnotes list'!$D$9:$E$58,2,FALSE)=0,\"\",VLOOKUP(CB293,'Footnotes list'!$D$9:$E$58,2,FALSE) ) )","v":""},null,null,null,null,{"$f":"IF(TRIM(CG293)=\"\", \"\", IF(VLOOKUP(CG293,'Footnotes list'!$D$9:$E$58,2,FALSE)=0,\"\",VLOOKUP(CG293,'Footnotes list'!$D$9:$E$58,2,FALSE) ) )","v":""},null,null,null,null,{"$f":"IF(TRIM(CL293)=\"\", \"\", IF(VLOOKUP(CL293,'Footnotes list'!$D$9:$E$58,2,FALSE)=0,\"\",VLOOKUP(CL293,'Footnotes list'!$D$9:$E$58,2,FALSE) ) )","v":""},null,null,null,null,{"$f":"IF(TRIM(CQ293)=\"\", \"\", IF(VLOOKUP(CQ293,'Footnotes list'!$D$9:$E$58,2,FALSE)=0,\"\",VLOOKUP(CQ293,'Footnotes list'!$D$9:$E$58,2,FALSE) ) )","v":""},null,null,null,null,{"$f":"IF(TRIM(CV293)=\"\", \"\", IF(VLOOKUP(CV293,'Footnotes list'!$D$9:$E$58,2,FALSE)=0,\"\",VLOOKUP(CV293,'Footnotes list'!$D$9:$E$58,2,FALSE) ) )","v":""},null,null,null,null,{"$f":"IF(TRIM(DA293)=\"\", \"\", IF(VLOOKUP(DA293,'Footnotes list'!$D$9:$E$58,2,FALSE)=0,\"\",VLOOKUP(DA293,'Footnotes list'!$D$9:$E$58,2,FALSE) ) )","v":""},null,null,null,null,{"$f":"IF(TRIM(DF293)=\"\", \"\", IF(VLOOKUP(DF293,'Footnotes list'!$D$9:$E$58,2,FALSE)=0,\"\",VLOOKUP(DF293,'Footnotes list'!$D$9:$E$58,2,FALSE) ) )","v":""},null,null,null,null,{"$f":"IF(TRIM(DK293)=\"\", \"\", IF(VLOOKUP(DK293,'Footnotes list'!$D$9:$E$58,2,FALSE)=0,\"\",VLOOKUP(DK293,'Footnotes list'!$D$9:$E$58,2,FALSE) ) )","v":""},null,null,null,null,{"$f":"IF(TRIM(DP293)=\"\", \"\", IF(VLOOKUP(DP293,'Footnotes list'!$D$9:$E$58,2,FALSE)=0,\"\",VLOOKUP(DP293,'Footnotes list'!$D$9:$E$58,2,FALSE) ) )","v":""},null,null,null,null,{"$f":"IF(TRIM(DU293)=\"\", \"\", IF(VLOOKUP(DU293,'Footnotes list'!$D$9:$E$58,2,FALSE)=0,\"\",VLOOKUP(DU293,'Footnotes list'!$D$9:$E$58,2,FALSE) ) )","v":""},null,null,null,null,{"$f":"IF(TRIM(DZ293)=\"\", \"\", IF(VLOOKUP(DZ293,'Footnotes list'!$D$9:$E$58,2,FALSE)=0,\"\",VLOOKUP(DZ293,'Footnotes list'!$D$9:$E$58,2,FALSE) ) )","v":""},null,null,null,null,{"$f":"IF(TRIM(EE293)=\"\", \"\", IF(VLOOKUP(EE293,'Footnotes list'!$D$9:$E$58,2,FALSE)=0,\"\",VLOOKUP(EE293,'Footnotes list'!$D$9:$E$58,2,FALSE) ) )","v":""},null,null,null,null,{"$f":"IF(TRIM(EJ293)=\"\", \"\", IF(VLOOKUP(EJ293,'Footnotes list'!$D$9:$E$58,2,FALSE)=0,\"\",VLOOKUP(EJ293,'Footnotes list'!$D$9:$E$58,2,FALSE) ) )","v":""},null,null,null,null,{"$f":"IF(TRIM(EO293)=\"\", \"\", IF(VLOOKUP(EO293,'Footnotes list'!$D$9:$E$58,2,FALSE)=0,\"\",VLOOKUP(EO293,'Footnotes list'!$D$9:$E$58,2,FALSE) ) )","v":""},null,null,null,null,{"$f":"IF(TRIM(ET293)=\"\", \"\", IF(VLOOKUP(ET293,'Footnotes list'!$D$9:$E$58,2,FALSE)=0,\"\",VLOOKUP(ET293,'Footnotes list'!$D$9:$E$58,2,FALSE) ) )","v":""},null,null,null,null,{"$f":"IF(TRIM(EY293)=\"\", \"\", IF(VLOOKUP(EY293,'Footnotes list'!$D$9:$E$58,2,FALSE)=0,\"\",VLOOKUP(EY293,'Footnotes list'!$D$9:$E$58,2,FALSE) ) )","v":""}]
[null,null,"S","C_REP","cleaner and resource efficient products",null,null,null,null,null,{"$f":"IF(TRIM(J294)=\"\", \"\", IF(VLOOKUP(J294,'Footnotes list'!$D$9:$E$58,2,FALSE)=0,\"\",VLOOKUP(J294,'Footnotes list'!$D$9:$E$58,2,FALSE) ) )","v":""},null,null,null,null,{"$f":"IF(TRIM(O294)=\"\", \"\", IF(VLOOKUP(O294,'Footnotes list'!$D$9:$E$58,2,FALSE)=0,\"\",VLOOKUP(O294,'Footnotes list'!$D$9:$E$58,2,FALSE) ) )","v":""},null,null,null,null,{"$f":"IF(TRIM(T294)=\"\", \"\", IF(VLOOKUP(T294,'Footnotes list'!$D$9:$E$58,2,FALSE)=0,\"\",VLOOKUP(T294,'Footnotes list'!$D$9:$E$58,2,FALSE) ) )","v":""},null,null,null,null,{"$f":"IF(TRIM(Y294)=\"\", \"\", IF(VLOOKUP(Y294,'Footnotes list'!$D$9:$E$58,2,FALSE)=0,\"\",VLOOKUP(Y294,'Footnotes list'!$D$9:$E$58,2,FALSE) ) )","v":""},null,null,null,null,{"$f":"IF(TRIM(AD294)=\"\", \"\", IF(VLOOKUP(AD294,'Footnotes list'!$D$9:$E$58,2,FALSE)=0,\"\",VLOOKUP(AD294,'Footnotes list'!$D$9:$E$58,2,FALSE) ) )","v":""},null,null,null,null,{"$f":"IF(TRIM(AI294)=\"\", \"\", IF(VLOOKUP(AI294,'Footnotes list'!$D$9:$E$58,2,FALSE)=0,\"\",VLOOKUP(AI294,'Footnotes list'!$D$9:$E$58,2,FALSE) ) )","v":""},null,null,null,null,{"$f":"IF(TRIM(AN294)=\"\", \"\", IF(VLOOKUP(AN294,'Footnotes list'!$D$9:$E$58,2,FALSE)=0,\"\",VLOOKUP(AN294,'Footnotes list'!$D$9:$E$58,2,FALSE) ) )","v":""},null,null,null,null,{"$f":"IF(TRIM(AS294)=\"\", \"\", IF(VLOOKUP(AS294,'Footnotes list'!$D$9:$E$58,2,FALSE)=0,\"\",VLOOKUP(AS294,'Footnotes list'!$D$9:$E$58,2,FALSE) ) )","v":""},null,null,null,null,{"$f":"IF(TRIM(AX294)=\"\", \"\", IF(VLOOKUP(AX294,'Footnotes list'!$D$9:$E$58,2,FALSE)=0,\"\",VLOOKUP(AX294,'Footnotes list'!$D$9:$E$58,2,FALSE) ) )","v":""},null,null,null,null,{"$f":"IF(TRIM(BC294)=\"\", \"\", IF(VLOOKUP(BC294,'Footnotes list'!$D$9:$E$58,2,FALSE)=0,\"\",VLOOKUP(BC294,'Footnotes list'!$D$9:$E$58,2,FALSE) ) )","v":""},null,null,null,null,{"$f":"IF(TRIM(BH294)=\"\", \"\", IF(VLOOKUP(BH294,'Footnotes list'!$D$9:$E$58,2,FALSE)=0,\"\",VLOOKUP(BH294,'Footnotes list'!$D$9:$E$58,2,FALSE) ) )","v":""},null,null,null,null,{"$f":"IF(TRIM(BM294)=\"\", \"\", IF(VLOOKUP(BM294,'Footnotes list'!$D$9:$E$58,2,FALSE)=0,\"\",VLOOKUP(BM294,'Footnotes list'!$D$9:$E$58,2,FALSE) ) )","v":""},null,null,null,null,{"$f":"IF(TRIM(BR294)=\"\", \"\", IF(VLOOKUP(BR294,'Footnotes list'!$D$9:$E$58,2,FALSE)=0,\"\",VLOOKUP(BR294,'Footnotes list'!$D$9:$E$58,2,FALSE) ) )","v":""},null,null,null,null,{"$f":"IF(TRIM(BW294)=\"\", \"\", IF(VLOOKUP(BW294,'Footnotes list'!$D$9:$E$58,2,FALSE)=0,\"\",VLOOKUP(BW294,'Footnotes list'!$D$9:$E$58,2,FALSE) ) )","v":""},null,null,null,null,{"$f":"IF(TRIM(CB294)=\"\", \"\", IF(VLOOKUP(CB294,'Footnotes list'!$D$9:$E$58,2,FALSE)=0,\"\",VLOOKUP(CB294,'Footnotes list'!$D$9:$E$58,2,FALSE) ) )","v":""},null,null,null,null,{"$f":"IF(TRIM(CG294)=\"\", \"\", IF(VLOOKUP(CG294,'Footnotes list'!$D$9:$E$58,2,FALSE)=0,\"\",VLOOKUP(CG294,'Footnotes list'!$D$9:$E$58,2,FALSE) ) )","v":""},null,null,null,null,{"$f":"IF(TRIM(CL294)=\"\", \"\", IF(VLOOKUP(CL294,'Footnotes list'!$D$9:$E$58,2,FALSE)=0,\"\",VLOOKUP(CL294,'Footnotes list'!$D$9:$E$58,2,FALSE) ) )","v":""},null,null,null,null,{"$f":"IF(TRIM(CQ294)=\"\", \"\", IF(VLOOKUP(CQ294,'Footnotes list'!$D$9:$E$58,2,FALSE)=0,\"\",VLOOKUP(CQ294,'Footnotes list'!$D$9:$E$58,2,FALSE) ) )","v":""},null,null,null,null,{"$f":"IF(TRIM(CV294)=\"\", \"\", IF(VLOOKUP(CV294,'Footnotes list'!$D$9:$E$58,2,FALSE)=0,\"\",VLOOKUP(CV294,'Footnotes list'!$D$9:$E$58,2,FALSE) ) )","v":""},null,null,null,null,{"$f":"IF(TRIM(DA294)=\"\", \"\", IF(VLOOKUP(DA294,'Footnotes list'!$D$9:$E$58,2,FALSE)=0,\"\",VLOOKUP(DA294,'Footnotes list'!$D$9:$E$58,2,FALSE) ) )","v":""},null,null,null,null,{"$f":"IF(TRIM(DF294)=\"\", \"\", IF(VLOOKUP(DF294,'Footnotes list'!$D$9:$E$58,2,FALSE)=0,\"\",VLOOKUP(DF294,'Footnotes list'!$D$9:$E$58,2,FALSE) ) )","v":""},null,null,null,null,{"$f":"IF(TRIM(DK294)=\"\", \"\", IF(VLOOKUP(DK294,'Footnotes list'!$D$9:$E$58,2,FALSE)=0,\"\",VLOOKUP(DK294,'Footnotes list'!$D$9:$E$58,2,FALSE) ) )","v":""},null,null,null,null,{"$f":"IF(TRIM(DP294)=\"\", \"\", IF(VLOOKUP(DP294,'Footnotes list'!$D$9:$E$58,2,FALSE)=0,\"\",VLOOKUP(DP294,'Footnotes list'!$D$9:$E$58,2,FALSE) ) )","v":""},null,null,null,null,{"$f":"IF(TRIM(DU294)=\"\", \"\", IF(VLOOKUP(DU294,'Footnotes list'!$D$9:$E$58,2,FALSE)=0,\"\",VLOOKUP(DU294,'Footnotes list'!$D$9:$E$58,2,FALSE) ) )","v":""},null,null,null,null,{"$f":"IF(TRIM(DZ294)=\"\", \"\", IF(VLOOKUP(DZ294,'Footnotes list'!$D$9:$E$58,2,FALSE)=0,\"\",VLOOKUP(DZ294,'Footnotes list'!$D$9:$E$58,2,FALSE) ) )","v":""},null,null,null,null,{"$f":"IF(TRIM(EE294)=\"\", \"\", IF(VLOOKUP(EE294,'Footnotes list'!$D$9:$E$58,2,FALSE)=0,\"\",VLOOKUP(EE294,'Footnotes list'!$D$9:$E$58,2,FALSE) ) )","v":""},null,null,null,null,{"$f":"IF(TRIM(EJ294)=\"\", \"\", IF(VLOOKUP(EJ294,'Footnotes list'!$D$9:$E$58,2,FALSE)=0,\"\",VLOOKUP(EJ294,'Footnotes list'!$D$9:$E$58,2,FALSE) ) )","v":""},null,null,null,null,{"$f":"IF(TRIM(EO294)=\"\", \"\", IF(VLOOKUP(EO294,'Footnotes list'!$D$9:$E$58,2,FALSE)=0,\"\",VLOOKUP(EO294,'Footnotes list'!$D$9:$E$58,2,FALSE) ) )","v":""},null,null,null,null,{"$f":"IF(TRIM(ET294)=\"\", \"\", IF(VLOOKUP(ET294,'Footnotes list'!$D$9:$E$58,2,FALSE)=0,\"\",VLOOKUP(ET294,'Footnotes list'!$D$9:$E$58,2,FALSE) ) )","v":""},null,null,null,null,{"$f":"IF(TRIM(EY294)=\"\", \"\", IF(VLOOKUP(EY294,'Footnotes list'!$D$9:$E$58,2,FALSE)=0,\"\",VLOOKUP(EY294,'Footnotes list'!$D$9:$E$58,2,FALSE) ) )","v":""}]
[null,null,"T","TOT_EGSS","Total T - Activities of households as employers; undifferentiated goods- and services-producing activities of households for own use, of which:",null,null,null,null,null,{"$f":"IF(TRIM(J295)=\"\", \"\", IF(VLOOKUP(J295,'Footnotes list'!$D$9:$E$58,2,FALSE)=0,\"\",VLOOKUP(J295,'Footnotes list'!$D$9:$E$58,2,FALSE) ) )","v":""},null,null,null,null,{"$f":"IF(TRIM(O295)=\"\", \"\", IF(VLOOKUP(O295,'Footnotes list'!$D$9:$E$58,2,FALSE)=0,\"\",VLOOKUP(O295,'Footnotes list'!$D$9:$E$58,2,FALSE) ) )","v":""},null,null,null,null,{"$f":"IF(TRIM(T295)=\"\", \"\", IF(VLOOKUP(T295,'Footnotes list'!$D$9:$E$58,2,FALSE)=0,\"\",VLOOKUP(T295,'Footnotes list'!$D$9:$E$58,2,FALSE) ) )","v":""},null,null,null,null,{"$f":"IF(TRIM(Y295)=\"\", \"\", IF(VLOOKUP(Y295,'Footnotes list'!$D$9:$E$58,2,FALSE)=0,\"\",VLOOKUP(Y295,'Footnotes list'!$D$9:$E$58,2,FALSE) ) )","v":""},null,null,null,null,{"$f":"IF(TRIM(AD295)=\"\", \"\", IF(VLOOKUP(AD295,'Footnotes list'!$D$9:$E$58,2,FALSE)=0,\"\",VLOOKUP(AD295,'Footnotes list'!$D$9:$E$58,2,FALSE) ) )","v":""},null,null,null,null,{"$f":"IF(TRIM(AI295)=\"\", \"\", IF(VLOOKUP(AI295,'Footnotes list'!$D$9:$E$58,2,FALSE)=0,\"\",VLOOKUP(AI295,'Footnotes list'!$D$9:$E$58,2,FALSE) ) )","v":""},null,null,null,null,{"$f":"IF(TRIM(AN295)=\"\", \"\", IF(VLOOKUP(AN295,'Footnotes list'!$D$9:$E$58,2,FALSE)=0,\"\",VLOOKUP(AN295,'Footnotes list'!$D$9:$E$58,2,FALSE) ) )","v":""},null,null,null,null,{"$f":"IF(TRIM(AS295)=\"\", \"\", IF(VLOOKUP(AS295,'Footnotes list'!$D$9:$E$58,2,FALSE)=0,\"\",VLOOKUP(AS295,'Footnotes list'!$D$9:$E$58,2,FALSE) ) )","v":""},null,null,null,null,{"$f":"IF(TRIM(AX295)=\"\", \"\", IF(VLOOKUP(AX295,'Footnotes list'!$D$9:$E$58,2,FALSE)=0,\"\",VLOOKUP(AX295,'Footnotes list'!$D$9:$E$58,2,FALSE) ) )","v":""},null,null,null,null,{"$f":"IF(TRIM(BC295)=\"\", \"\", IF(VLOOKUP(BC295,'Footnotes list'!$D$9:$E$58,2,FALSE)=0,\"\",VLOOKUP(BC295,'Footnotes list'!$D$9:$E$58,2,FALSE) ) )","v":""},null,null,null,null,{"$f":"IF(TRIM(BH295)=\"\", \"\", IF(VLOOKUP(BH295,'Footnotes list'!$D$9:$E$58,2,FALSE)=0,\"\",VLOOKUP(BH295,'Footnotes list'!$D$9:$E$58,2,FALSE) ) )","v":""},null,null,null,null,{"$f":"IF(TRIM(BM295)=\"\", \"\", IF(VLOOKUP(BM295,'Footnotes list'!$D$9:$E$58,2,FALSE)=0,\"\",VLOOKUP(BM295,'Footnotes list'!$D$9:$E$58,2,FALSE) ) )","v":""},null,null,null,null,{"$f":"IF(TRIM(BR295)=\"\", \"\", IF(VLOOKUP(BR295,'Footnotes list'!$D$9:$E$58,2,FALSE)=0,\"\",VLOOKUP(BR295,'Footnotes list'!$D$9:$E$58,2,FALSE) ) )","v":""},null,null,null,null,{"$f":"IF(TRIM(BW295)=\"\", \"\", IF(VLOOKUP(BW295,'Footnotes list'!$D$9:$E$58,2,FALSE)=0,\"\",VLOOKUP(BW295,'Footnotes list'!$D$9:$E$58,2,FALSE) ) )","v":""},null,null,null,null,{"$f":"IF(TRIM(CB295)=\"\", \"\", IF(VLOOKUP(CB295,'Footnotes list'!$D$9:$E$58,2,FALSE)=0,\"\",VLOOKUP(CB295,'Footnotes list'!$D$9:$E$58,2,FALSE) ) )","v":""},null,null,null,null,{"$f":"IF(TRIM(CG295)=\"\", \"\", IF(VLOOKUP(CG295,'Footnotes list'!$D$9:$E$58,2,FALSE)=0,\"\",VLOOKUP(CG295,'Footnotes list'!$D$9:$E$58,2,FALSE) ) )","v":""},null,null,null,null,{"$f":"IF(TRIM(CL295)=\"\", \"\", IF(VLOOKUP(CL295,'Footnotes list'!$D$9:$E$58,2,FALSE)=0,\"\",VLOOKUP(CL295,'Footnotes list'!$D$9:$E$58,2,FALSE) ) )","v":""},null,null,null,null,{"$f":"IF(TRIM(CQ295)=\"\", \"\", IF(VLOOKUP(CQ295,'Footnotes list'!$D$9:$E$58,2,FALSE)=0,\"\",VLOOKUP(CQ295,'Footnotes list'!$D$9:$E$58,2,FALSE) ) )","v":""},null,null,null,null,{"$f":"IF(TRIM(CV295)=\"\", \"\", IF(VLOOKUP(CV295,'Footnotes list'!$D$9:$E$58,2,FALSE)=0,\"\",VLOOKUP(CV295,'Footnotes list'!$D$9:$E$58,2,FALSE) ) )","v":""},null,null,null,null,{"$f":"IF(TRIM(DA295)=\"\", \"\", IF(VLOOKUP(DA295,'Footnotes list'!$D$9:$E$58,2,FALSE)=0,\"\",VLOOKUP(DA295,'Footnotes list'!$D$9:$E$58,2,FALSE) ) )","v":""},null,null,null,null,{"$f":"IF(TRIM(DF295)=\"\", \"\", IF(VLOOKUP(DF295,'Footnotes list'!$D$9:$E$58,2,FALSE)=0,\"\",VLOOKUP(DF295,'Footnotes list'!$D$9:$E$58,2,FALSE) ) )","v":""},null,null,null,null,{"$f":"IF(TRIM(DK295)=\"\", \"\", IF(VLOOKUP(DK295,'Footnotes list'!$D$9:$E$58,2,FALSE)=0,\"\",VLOOKUP(DK295,'Footnotes list'!$D$9:$E$58,2,FALSE) ) )","v":""},null,null,null,null,{"$f":"IF(TRIM(DP295)=\"\", \"\", IF(VLOOKUP(DP295,'Footnotes list'!$D$9:$E$58,2,FALSE)=0,\"\",VLOOKUP(DP295,'Footnotes list'!$D$9:$E$58,2,FALSE) ) )","v":""},null,null,null,null,{"$f":"IF(TRIM(DU295)=\"\", \"\", IF(VLOOKUP(DU295,'Footnotes list'!$D$9:$E$58,2,FALSE)=0,\"\",VLOOKUP(DU295,'Footnotes list'!$D$9:$E$58,2,FALSE) ) )","v":""},null,null,null,null,{"$f":"IF(TRIM(DZ295)=\"\", \"\", IF(VLOOKUP(DZ295,'Footnotes list'!$D$9:$E$58,2,FALSE)=0,\"\",VLOOKUP(DZ295,'Footnotes list'!$D$9:$E$58,2,FALSE) ) )","v":""},null,null,null,null,{"$f":"IF(TRIM(EE295)=\"\", \"\", IF(VLOOKUP(EE295,'Footnotes list'!$D$9:$E$58,2,FALSE)=0,\"\",VLOOKUP(EE295,'Footnotes list'!$D$9:$E$58,2,FALSE) ) )","v":""},null,null,null,null,{"$f":"IF(TRIM(EJ295)=\"\", \"\", IF(VLOOKUP(EJ295,'Footnotes list'!$D$9:$E$58,2,FALSE)=0,\"\",VLOOKUP(EJ295,'Footnotes list'!$D$9:$E$58,2,FALSE) ) )","v":""},null,null,null,null,{"$f":"IF(TRIM(EO295)=\"\", \"\", IF(VLOOKUP(EO295,'Footnotes list'!$D$9:$E$58,2,FALSE)=0,\"\",VLOOKUP(EO295,'Footnotes list'!$D$9:$E$58,2,FALSE) ) )","v":""},null,null,null,null,{"$f":"IF(TRIM(ET295)=\"\", \"\", IF(VLOOKUP(ET295,'Footnotes list'!$D$9:$E$58,2,FALSE)=0,\"\",VLOOKUP(ET295,'Footnotes list'!$D$9:$E$58,2,FALSE) ) )","v":""},null,null,null,null,{"$f":"IF(TRIM(EY295)=\"\", \"\", IF(VLOOKUP(EY295,'Footnotes list'!$D$9:$E$58,2,FALSE)=0,\"\",VLOOKUP(EY295,'Footnotes list'!$D$9:$E$58,2,FALSE) ) )","v":""}]
[null,null,"T","ANC","ancillary activities",null,null,null,null,null,{"$f":"IF(TRIM(J296)=\"\", \"\", IF(VLOOKUP(J296,'Footnotes list'!$D$9:$E$58,2,FALSE)=0,\"\",VLOOKUP(J296,'Footnotes list'!$D$9:$E$58,2,FALSE) ) )","v":""},null,null,null,null,{"$f":"IF(TRIM(O296)=\"\", \"\", IF(VLOOKUP(O296,'Footnotes list'!$D$9:$E$58,2,FALSE)=0,\"\",VLOOKUP(O296,'Footnotes list'!$D$9:$E$58,2,FALSE) ) )","v":""},null,null,null,null,{"$f":"IF(TRIM(T296)=\"\", \"\", IF(VLOOKUP(T296,'Footnotes list'!$D$9:$E$58,2,FALSE)=0,\"\",VLOOKUP(T296,'Footnotes list'!$D$9:$E$58,2,FALSE) ) )","v":""},null,null,null,null,{"$f":"IF(TRIM(Y296)=\"\", \"\", IF(VLOOKUP(Y296,'Footnotes list'!$D$9:$E$58,2,FALSE)=0,\"\",VLOOKUP(Y296,'Footnotes list'!$D$9:$E$58,2,FALSE) ) )","v":""},null,null,null,null,{"$f":"IF(TRIM(AD296)=\"\", \"\", IF(VLOOKUP(AD296,'Footnotes list'!$D$9:$E$58,2,FALSE)=0,\"\",VLOOKUP(AD296,'Footnotes list'!$D$9:$E$58,2,FALSE) ) )","v":""},null,null,null,null,{"$f":"IF(TRIM(AI296)=\"\", \"\", IF(VLOOKUP(AI296,'Footnotes list'!$D$9:$E$58,2,FALSE)=0,\"\",VLOOKUP(AI296,'Footnotes list'!$D$9:$E$58,2,FALSE) ) )","v":""},null,null,null,null,{"$f":"IF(TRIM(AN296)=\"\", \"\", IF(VLOOKUP(AN296,'Footnotes list'!$D$9:$E$58,2,FALSE)=0,\"\",VLOOKUP(AN296,'Footnotes list'!$D$9:$E$58,2,FALSE) ) )","v":""},null,null,null,null,{"$f":"IF(TRIM(AS296)=\"\", \"\", IF(VLOOKUP(AS296,'Footnotes list'!$D$9:$E$58,2,FALSE)=0,\"\",VLOOKUP(AS296,'Footnotes list'!$D$9:$E$58,2,FALSE) ) )","v":""},null,null,null,null,{"$f":"IF(TRIM(AX296)=\"\", \"\", IF(VLOOKUP(AX296,'Footnotes list'!$D$9:$E$58,2,FALSE)=0,\"\",VLOOKUP(AX296,'Footnotes list'!$D$9:$E$58,2,FALSE) ) )","v":""},null,null,null,null,{"$f":"IF(TRIM(BC296)=\"\", \"\", IF(VLOOKUP(BC296,'Footnotes list'!$D$9:$E$58,2,FALSE)=0,\"\",VLOOKUP(BC296,'Footnotes list'!$D$9:$E$58,2,FALSE) ) )","v":""},null,null,null,null,{"$f":"IF(TRIM(BH296)=\"\", \"\", IF(VLOOKUP(BH296,'Footnotes list'!$D$9:$E$58,2,FALSE)=0,\"\",VLOOKUP(BH296,'Footnotes list'!$D$9:$E$58,2,FALSE) ) )","v":""},null,null,null,null,{"$f":"IF(TRIM(BM296)=\"\", \"\", IF(VLOOKUP(BM296,'Footnotes list'!$D$9:$E$58,2,FALSE)=0,\"\",VLOOKUP(BM296,'Footnotes list'!$D$9:$E$58,2,FALSE) ) )","v":""},null,null,null,null,{"$f":"IF(TRIM(BR296)=\"\", \"\", IF(VLOOKUP(BR296,'Footnotes list'!$D$9:$E$58,2,FALSE)=0,\"\",VLOOKUP(BR296,'Footnotes list'!$D$9:$E$58,2,FALSE) ) )","v":""},null,null,null,null,{"$f":"IF(TRIM(BW296)=\"\", \"\", IF(VLOOKUP(BW296,'Footnotes list'!$D$9:$E$58,2,FALSE)=0,\"\",VLOOKUP(BW296,'Footnotes list'!$D$9:$E$58,2,FALSE) ) )","v":""},null,null,null,null,{"$f":"IF(TRIM(CB296)=\"\", \"\", IF(VLOOKUP(CB296,'Footnotes list'!$D$9:$E$58,2,FALSE)=0,\"\",VLOOKUP(CB296,'Footnotes list'!$D$9:$E$58,2,FALSE) ) )","v":""},null,null,null,null,{"$f":"IF(TRIM(CG296)=\"\", \"\", IF(VLOOKUP(CG296,'Footnotes list'!$D$9:$E$58,2,FALSE)=0,\"\",VLOOKUP(CG296,'Footnotes list'!$D$9:$E$58,2,FALSE) ) )","v":""},null,null,null,null,{"$f":"IF(TRIM(CL296)=\"\", \"\", IF(VLOOKUP(CL296,'Footnotes list'!$D$9:$E$58,2,FALSE)=0,\"\",VLOOKUP(CL296,'Footnotes list'!$D$9:$E$58,2,FALSE) ) )","v":""},null,null,null,null,{"$f":"IF(TRIM(CQ296)=\"\", \"\", IF(VLOOKUP(CQ296,'Footnotes list'!$D$9:$E$58,2,FALSE)=0,\"\",VLOOKUP(CQ296,'Footnotes list'!$D$9:$E$58,2,FALSE) ) )","v":""},null,null,null,null,{"$f":"IF(TRIM(CV296)=\"\", \"\", IF(VLOOKUP(CV296,'Footnotes list'!$D$9:$E$58,2,FALSE)=0,\"\",VLOOKUP(CV296,'Footnotes list'!$D$9:$E$58,2,FALSE) ) )","v":""},null,null,null,null,{"$f":"IF(TRIM(DA296)=\"\", \"\", IF(VLOOKUP(DA296,'Footnotes list'!$D$9:$E$58,2,FALSE)=0,\"\",VLOOKUP(DA296,'Footnotes list'!$D$9:$E$58,2,FALSE) ) )","v":""},null,null,null,null,{"$f":"IF(TRIM(DF296)=\"\", \"\", IF(VLOOKUP(DF296,'Footnotes list'!$D$9:$E$58,2,FALSE)=0,\"\",VLOOKUP(DF296,'Footnotes list'!$D$9:$E$58,2,FALSE) ) )","v":""},null,null,null,null,{"$f":"IF(TRIM(DK296)=\"\", \"\", IF(VLOOKUP(DK296,'Footnotes list'!$D$9:$E$58,2,FALSE)=0,\"\",VLOOKUP(DK296,'Footnotes list'!$D$9:$E$58,2,FALSE) ) )","v":""},null,null,null,null,{"$f":"IF(TRIM(DP296)=\"\", \"\", IF(VLOOKUP(DP296,'Footnotes list'!$D$9:$E$58,2,FALSE)=0,\"\",VLOOKUP(DP296,'Footnotes list'!$D$9:$E$58,2,FALSE) ) )","v":""},null,null,null,null,{"$f":"IF(TRIM(DU296)=\"\", \"\", IF(VLOOKUP(DU296,'Footnotes list'!$D$9:$E$58,2,FALSE)=0,\"\",VLOOKUP(DU296,'Footnotes list'!$D$9:$E$58,2,FALSE) ) )","v":""},null,null,null,null,{"$f":"IF(TRIM(DZ296)=\"\", \"\", IF(VLOOKUP(DZ296,'Footnotes list'!$D$9:$E$58,2,FALSE)=0,\"\",VLOOKUP(DZ296,'Footnotes list'!$D$9:$E$58,2,FALSE) ) )","v":""},null,null,null,null,{"$f":"IF(TRIM(EE296)=\"\", \"\", IF(VLOOKUP(EE296,'Footnotes list'!$D$9:$E$58,2,FALSE)=0,\"\",VLOOKUP(EE296,'Footnotes list'!$D$9:$E$58,2,FALSE) ) )","v":""},null,null,null,null,{"$f":"IF(TRIM(EJ296)=\"\", \"\", IF(VLOOKUP(EJ296,'Footnotes list'!$D$9:$E$58,2,FALSE)=0,\"\",VLOOKUP(EJ296,'Footnotes list'!$D$9:$E$58,2,FALSE) ) )","v":""},null,null,null,null,{"$f":"IF(TRIM(EO296)=\"\", \"\", IF(VLOOKUP(EO296,'Footnotes list'!$D$9:$E$58,2,FALSE)=0,\"\",VLOOKUP(EO296,'Footnotes list'!$D$9:$E$58,2,FALSE) ) )","v":""},null,null,null,null,{"$f":"IF(TRIM(ET296)=\"\", \"\", IF(VLOOKUP(ET296,'Footnotes list'!$D$9:$E$58,2,FALSE)=0,\"\",VLOOKUP(ET296,'Footnotes list'!$D$9:$E$58,2,FALSE) ) )","v":""},null,null,null,null,{"$f":"IF(TRIM(EY296)=\"\", \"\", IF(VLOOKUP(EY296,'Footnotes list'!$D$9:$E$58,2,FALSE)=0,\"\",VLOOKUP(EY296,'Footnotes list'!$D$9:$E$58,2,FALSE) ) )","v":""}]
[null,null,"T","NMKT","non-market activities",null,null,null,null,null,{"$f":"IF(TRIM(J297)=\"\", \"\", IF(VLOOKUP(J297,'Footnotes list'!$D$9:$E$58,2,FALSE)=0,\"\",VLOOKUP(J297,'Footnotes list'!$D$9:$E$58,2,FALSE) ) )","v":""},null,null,null,null,{"$f":"IF(TRIM(O297)=\"\", \"\", IF(VLOOKUP(O297,'Footnotes list'!$D$9:$E$58,2,FALSE)=0,\"\",VLOOKUP(O297,'Footnotes list'!$D$9:$E$58,2,FALSE) ) )","v":""},null,null,null,null,{"$f":"IF(TRIM(T297)=\"\", \"\", IF(VLOOKUP(T297,'Footnotes list'!$D$9:$E$58,2,FALSE)=0,\"\",VLOOKUP(T297,'Footnotes list'!$D$9:$E$58,2,FALSE) ) )","v":""},null,null,null,null,{"$f":"IF(TRIM(Y297)=\"\", \"\", IF(VLOOKUP(Y297,'Footnotes list'!$D$9:$E$58,2,FALSE)=0,\"\",VLOOKUP(Y297,'Footnotes list'!$D$9:$E$58,2,FALSE) ) )","v":""},null,null,null,null,{"$f":"IF(TRIM(AD297)=\"\", \"\", IF(VLOOKUP(AD297,'Footnotes list'!$D$9:$E$58,2,FALSE)=0,\"\",VLOOKUP(AD297,'Footnotes list'!$D$9:$E$58,2,FALSE) ) )","v":""},null,null,null,null,{"$f":"IF(TRIM(AI297)=\"\", \"\", IF(VLOOKUP(AI297,'Footnotes list'!$D$9:$E$58,2,FALSE)=0,\"\",VLOOKUP(AI297,'Footnotes list'!$D$9:$E$58,2,FALSE) ) )","v":""},null,null,null,null,{"$f":"IF(TRIM(AN297)=\"\", \"\", IF(VLOOKUP(AN297,'Footnotes list'!$D$9:$E$58,2,FALSE)=0,\"\",VLOOKUP(AN297,'Footnotes list'!$D$9:$E$58,2,FALSE) ) )","v":""},null,null,null,null,{"$f":"IF(TRIM(AS297)=\"\", \"\", IF(VLOOKUP(AS297,'Footnotes list'!$D$9:$E$58,2,FALSE)=0,\"\",VLOOKUP(AS297,'Footnotes list'!$D$9:$E$58,2,FALSE) ) )","v":""},null,null,null,null,{"$f":"IF(TRIM(AX297)=\"\", \"\", IF(VLOOKUP(AX297,'Footnotes list'!$D$9:$E$58,2,FALSE)=0,\"\",VLOOKUP(AX297,'Footnotes list'!$D$9:$E$58,2,FALSE) ) )","v":""},null,null,null,null,{"$f":"IF(TRIM(BC297)=\"\", \"\", IF(VLOOKUP(BC297,'Footnotes list'!$D$9:$E$58,2,FALSE)=0,\"\",VLOOKUP(BC297,'Footnotes list'!$D$9:$E$58,2,FALSE) ) )","v":""},null,null,null,null,{"$f":"IF(TRIM(BH297)=\"\", \"\", IF(VLOOKUP(BH297,'Footnotes list'!$D$9:$E$58,2,FALSE)=0,\"\",VLOOKUP(BH297,'Footnotes list'!$D$9:$E$58,2,FALSE) ) )","v":""},null,null,null,null,{"$f":"IF(TRIM(BM297)=\"\", \"\", IF(VLOOKUP(BM297,'Footnotes list'!$D$9:$E$58,2,FALSE)=0,\"\",VLOOKUP(BM297,'Footnotes list'!$D$9:$E$58,2,FALSE) ) )","v":""},null,null,null,null,{"$f":"IF(TRIM(BR297)=\"\", \"\", IF(VLOOKUP(BR297,'Footnotes list'!$D$9:$E$58,2,FALSE)=0,\"\",VLOOKUP(BR297,'Footnotes list'!$D$9:$E$58,2,FALSE) ) )","v":""},null,null,null,null,{"$f":"IF(TRIM(BW297)=\"\", \"\", IF(VLOOKUP(BW297,'Footnotes list'!$D$9:$E$58,2,FALSE)=0,\"\",VLOOKUP(BW297,'Footnotes list'!$D$9:$E$58,2,FALSE) ) )","v":""},null,null,null,null,{"$f":"IF(TRIM(CB297)=\"\", \"\", IF(VLOOKUP(CB297,'Footnotes list'!$D$9:$E$58,2,FALSE)=0,\"\",VLOOKUP(CB297,'Footnotes list'!$D$9:$E$58,2,FALSE) ) )","v":""},null,null,null,null,{"$f":"IF(TRIM(CG297)=\"\", \"\", IF(VLOOKUP(CG297,'Footnotes list'!$D$9:$E$58,2,FALSE)=0,\"\",VLOOKUP(CG297,'Footnotes list'!$D$9:$E$58,2,FALSE) ) )","v":""},null,null,null,null,{"$f":"IF(TRIM(CL297)=\"\", \"\", IF(VLOOKUP(CL297,'Footnotes list'!$D$9:$E$58,2,FALSE)=0,\"\",VLOOKUP(CL297,'Footnotes list'!$D$9:$E$58,2,FALSE) ) )","v":""},null,null,null,null,{"$f":"IF(TRIM(CQ297)=\"\", \"\", IF(VLOOKUP(CQ297,'Footnotes list'!$D$9:$E$58,2,FALSE)=0,\"\",VLOOKUP(CQ297,'Footnotes list'!$D$9:$E$58,2,FALSE) ) )","v":""},null,null,null,null,{"$f":"IF(TRIM(CV297)=\"\", \"\", IF(VLOOKUP(CV297,'Footnotes list'!$D$9:$E$58,2,FALSE)=0,\"\",VLOOKUP(CV297,'Footnotes list'!$D$9:$E$58,2,FALSE) ) )","v":""},null,null,null,null,{"$f":"IF(TRIM(DA297)=\"\", \"\", IF(VLOOKUP(DA297,'Footnotes list'!$D$9:$E$58,2,FALSE)=0,\"\",VLOOKUP(DA297,'Footnotes list'!$D$9:$E$58,2,FALSE) ) )","v":""},null,null,null,null,{"$f":"IF(TRIM(DF297)=\"\", \"\", IF(VLOOKUP(DF297,'Footnotes list'!$D$9:$E$58,2,FALSE)=0,\"\",VLOOKUP(DF297,'Footnotes list'!$D$9:$E$58,2,FALSE) ) )","v":""},null,null,null,null,{"$f":"IF(TRIM(DK297)=\"\", \"\", IF(VLOOKUP(DK297,'Footnotes list'!$D$9:$E$58,2,FALSE)=0,\"\",VLOOKUP(DK297,'Footnotes list'!$D$9:$E$58,2,FALSE) ) )","v":""},null,null,null,null,{"$f":"IF(TRIM(DP297)=\"\", \"\", IF(VLOOKUP(DP297,'Footnotes list'!$D$9:$E$58,2,FALSE)=0,\"\",VLOOKUP(DP297,'Footnotes list'!$D$9:$E$58,2,FALSE) ) )","v":""},null,null,null,null,{"$f":"IF(TRIM(DU297)=\"\", \"\", IF(VLOOKUP(DU297,'Footnotes list'!$D$9:$E$58,2,FALSE)=0,\"\",VLOOKUP(DU297,'Footnotes list'!$D$9:$E$58,2,FALSE) ) )","v":""},null,null,null,null,{"$f":"IF(TRIM(DZ297)=\"\", \"\", IF(VLOOKUP(DZ297,'Footnotes list'!$D$9:$E$58,2,FALSE)=0,\"\",VLOOKUP(DZ297,'Footnotes list'!$D$9:$E$58,2,FALSE) ) )","v":""},null,null,null,null,{"$f":"IF(TRIM(EE297)=\"\", \"\", IF(VLOOKUP(EE297,'Footnotes list'!$D$9:$E$58,2,FALSE)=0,\"\",VLOOKUP(EE297,'Footnotes list'!$D$9:$E$58,2,FALSE) ) )","v":""},null,null,null,null,{"$f":"IF(TRIM(EJ297)=\"\", \"\", IF(VLOOKUP(EJ297,'Footnotes list'!$D$9:$E$58,2,FALSE)=0,\"\",VLOOKUP(EJ297,'Footnotes list'!$D$9:$E$58,2,FALSE) ) )","v":""},null,null,null,null,{"$f":"IF(TRIM(EO297)=\"\", \"\", IF(VLOOKUP(EO297,'Footnotes list'!$D$9:$E$58,2,FALSE)=0,\"\",VLOOKUP(EO297,'Footnotes list'!$D$9:$E$58,2,FALSE) ) )","v":""},null,null,null,null,{"$f":"IF(TRIM(ET297)=\"\", \"\", IF(VLOOKUP(ET297,'Footnotes list'!$D$9:$E$58,2,FALSE)=0,\"\",VLOOKUP(ET297,'Footnotes list'!$D$9:$E$58,2,FALSE) ) )","v":""},null,null,null,null,{"$f":"IF(TRIM(EY297)=\"\", \"\", IF(VLOOKUP(EY297,'Footnotes list'!$D$9:$E$58,2,FALSE)=0,\"\",VLOOKUP(EY297,'Footnotes list'!$D$9:$E$58,2,FALSE) ) )","v":""}]
[null,null,"T","OWN_USE","activities for own final use",null,null,null,null,null,{"$f":"IF(TRIM(J298)=\"\", \"\", IF(VLOOKUP(J298,'Footnotes list'!$D$9:$E$58,2,FALSE)=0,\"\",VLOOKUP(J298,'Footnotes list'!$D$9:$E$58,2,FALSE) ) )","v":""},null,null,null,null,{"$f":"IF(TRIM(O298)=\"\", \"\", IF(VLOOKUP(O298,'Footnotes list'!$D$9:$E$58,2,FALSE)=0,\"\",VLOOKUP(O298,'Footnotes list'!$D$9:$E$58,2,FALSE) ) )","v":""},null,null,null,null,{"$f":"IF(TRIM(T298)=\"\", \"\", IF(VLOOKUP(T298,'Footnotes list'!$D$9:$E$58,2,FALSE)=0,\"\",VLOOKUP(T298,'Footnotes list'!$D$9:$E$58,2,FALSE) ) )","v":""},null,null,null,null,{"$f":"IF(TRIM(Y298)=\"\", \"\", IF(VLOOKUP(Y298,'Footnotes list'!$D$9:$E$58,2,FALSE)=0,\"\",VLOOKUP(Y298,'Footnotes list'!$D$9:$E$58,2,FALSE) ) )","v":""},null,null,null,null,{"$f":"IF(TRIM(AD298)=\"\", \"\", IF(VLOOKUP(AD298,'Footnotes list'!$D$9:$E$58,2,FALSE)=0,\"\",VLOOKUP(AD298,'Footnotes list'!$D$9:$E$58,2,FALSE) ) )","v":""},null,null,null,null,{"$f":"IF(TRIM(AI298)=\"\", \"\", IF(VLOOKUP(AI298,'Footnotes list'!$D$9:$E$58,2,FALSE)=0,\"\",VLOOKUP(AI298,'Footnotes list'!$D$9:$E$58,2,FALSE) ) )","v":""},null,null,null,null,{"$f":"IF(TRIM(AN298)=\"\", \"\", IF(VLOOKUP(AN298,'Footnotes list'!$D$9:$E$58,2,FALSE)=0,\"\",VLOOKUP(AN298,'Footnotes list'!$D$9:$E$58,2,FALSE) ) )","v":""},null,null,null,null,{"$f":"IF(TRIM(AS298)=\"\", \"\", IF(VLOOKUP(AS298,'Footnotes list'!$D$9:$E$58,2,FALSE)=0,\"\",VLOOKUP(AS298,'Footnotes list'!$D$9:$E$58,2,FALSE) ) )","v":""},null,null,null,null,{"$f":"IF(TRIM(AX298)=\"\", \"\", IF(VLOOKUP(AX298,'Footnotes list'!$D$9:$E$58,2,FALSE)=0,\"\",VLOOKUP(AX298,'Footnotes list'!$D$9:$E$58,2,FALSE) ) )","v":""},null,null,null,null,{"$f":"IF(TRIM(BC298)=\"\", \"\", IF(VLOOKUP(BC298,'Footnotes list'!$D$9:$E$58,2,FALSE)=0,\"\",VLOOKUP(BC298,'Footnotes list'!$D$9:$E$58,2,FALSE) ) )","v":""},null,null,null,null,{"$f":"IF(TRIM(BH298)=\"\", \"\", IF(VLOOKUP(BH298,'Footnotes list'!$D$9:$E$58,2,FALSE)=0,\"\",VLOOKUP(BH298,'Footnotes list'!$D$9:$E$58,2,FALSE) ) )","v":""},null,null,null,null,{"$f":"IF(TRIM(BM298)=\"\", \"\", IF(VLOOKUP(BM298,'Footnotes list'!$D$9:$E$58,2,FALSE)=0,\"\",VLOOKUP(BM298,'Footnotes list'!$D$9:$E$58,2,FALSE) ) )","v":""},null,null,null,null,{"$f":"IF(TRIM(BR298)=\"\", \"\", IF(VLOOKUP(BR298,'Footnotes list'!$D$9:$E$58,2,FALSE)=0,\"\",VLOOKUP(BR298,'Footnotes list'!$D$9:$E$58,2,FALSE) ) )","v":""},null,null,null,null,{"$f":"IF(TRIM(BW298)=\"\", \"\", IF(VLOOKUP(BW298,'Footnotes list'!$D$9:$E$58,2,FALSE)=0,\"\",VLOOKUP(BW298,'Footnotes list'!$D$9:$E$58,2,FALSE) ) )","v":""},null,null,null,null,{"$f":"IF(TRIM(CB298)=\"\", \"\", IF(VLOOKUP(CB298,'Footnotes list'!$D$9:$E$58,2,FALSE)=0,\"\",VLOOKUP(CB298,'Footnotes list'!$D$9:$E$58,2,FALSE) ) )","v":""},null,null,null,null,{"$f":"IF(TRIM(CG298)=\"\", \"\", IF(VLOOKUP(CG298,'Footnotes list'!$D$9:$E$58,2,FALSE)=0,\"\",VLOOKUP(CG298,'Footnotes list'!$D$9:$E$58,2,FALSE) ) )","v":""},null,null,null,null,{"$f":"IF(TRIM(CL298)=\"\", \"\", IF(VLOOKUP(CL298,'Footnotes list'!$D$9:$E$58,2,FALSE)=0,\"\",VLOOKUP(CL298,'Footnotes list'!$D$9:$E$58,2,FALSE) ) )","v":""},null,null,null,null,{"$f":"IF(TRIM(CQ298)=\"\", \"\", IF(VLOOKUP(CQ298,'Footnotes list'!$D$9:$E$58,2,FALSE)=0,\"\",VLOOKUP(CQ298,'Footnotes list'!$D$9:$E$58,2,FALSE) ) )","v":""},null,null,null,null,{"$f":"IF(TRIM(CV298)=\"\", \"\", IF(VLOOKUP(CV298,'Footnotes list'!$D$9:$E$58,2,FALSE)=0,\"\",VLOOKUP(CV298,'Footnotes list'!$D$9:$E$58,2,FALSE) ) )","v":""},null,null,null,null,{"$f":"IF(TRIM(DA298)=\"\", \"\", IF(VLOOKUP(DA298,'Footnotes list'!$D$9:$E$58,2,FALSE)=0,\"\",VLOOKUP(DA298,'Footnotes list'!$D$9:$E$58,2,FALSE) ) )","v":""},null,null,null,null,{"$f":"IF(TRIM(DF298)=\"\", \"\", IF(VLOOKUP(DF298,'Footnotes list'!$D$9:$E$58,2,FALSE)=0,\"\",VLOOKUP(DF298,'Footnotes list'!$D$9:$E$58,2,FALSE) ) )","v":""},null,null,null,null,{"$f":"IF(TRIM(DK298)=\"\", \"\", IF(VLOOKUP(DK298,'Footnotes list'!$D$9:$E$58,2,FALSE)=0,\"\",VLOOKUP(DK298,'Footnotes list'!$D$9:$E$58,2,FALSE) ) )","v":""},null,null,null,null,{"$f":"IF(TRIM(DP298)=\"\", \"\", IF(VLOOKUP(DP298,'Footnotes list'!$D$9:$E$58,2,FALSE)=0,\"\",VLOOKUP(DP298,'Footnotes list'!$D$9:$E$58,2,FALSE) ) )","v":""},null,null,null,null,{"$f":"IF(TRIM(DU298)=\"\", \"\", IF(VLOOKUP(DU298,'Footnotes list'!$D$9:$E$58,2,FALSE)=0,\"\",VLOOKUP(DU298,'Footnotes list'!$D$9:$E$58,2,FALSE) ) )","v":""},null,null,null,null,{"$f":"IF(TRIM(DZ298)=\"\", \"\", IF(VLOOKUP(DZ298,'Footnotes list'!$D$9:$E$58,2,FALSE)=0,\"\",VLOOKUP(DZ298,'Footnotes list'!$D$9:$E$58,2,FALSE) ) )","v":""},null,null,null,null,{"$f":"IF(TRIM(EE298)=\"\", \"\", IF(VLOOKUP(EE298,'Footnotes list'!$D$9:$E$58,2,FALSE)=0,\"\",VLOOKUP(EE298,'Footnotes list'!$D$9:$E$58,2,FALSE) ) )","v":""},null,null,null,null,{"$f":"IF(TRIM(EJ298)=\"\", \"\", IF(VLOOKUP(EJ298,'Footnotes list'!$D$9:$E$58,2,FALSE)=0,\"\",VLOOKUP(EJ298,'Footnotes list'!$D$9:$E$58,2,FALSE) ) )","v":""},null,null,null,null,{"$f":"IF(TRIM(EO298)=\"\", \"\", IF(VLOOKUP(EO298,'Footnotes list'!$D$9:$E$58,2,FALSE)=0,\"\",VLOOKUP(EO298,'Footnotes list'!$D$9:$E$58,2,FALSE) ) )","v":""},null,null,null,null,{"$f":"IF(TRIM(ET298)=\"\", \"\", IF(VLOOKUP(ET298,'Footnotes list'!$D$9:$E$58,2,FALSE)=0,\"\",VLOOKUP(ET298,'Footnotes list'!$D$9:$E$58,2,FALSE) ) )","v":""},null,null,null,null,{"$f":"IF(TRIM(EY298)=\"\", \"\", IF(VLOOKUP(EY298,'Footnotes list'!$D$9:$E$58,2,FALSE)=0,\"\",VLOOKUP(EY298,'Footnotes list'!$D$9:$E$58,2,FALSE) ) )","v":""}]
[null,null,"T","MKT","market activities, including:",null,null,null,null,null,{"$f":"IF(TRIM(J299)=\"\", \"\", IF(VLOOKUP(J299,'Footnotes list'!$D$9:$E$58,2,FALSE)=0,\"\",VLOOKUP(J299,'Footnotes list'!$D$9:$E$58,2,FALSE) ) )","v":""},null,null,null,null,{"$f":"IF(TRIM(O299)=\"\", \"\", IF(VLOOKUP(O299,'Footnotes list'!$D$9:$E$58,2,FALSE)=0,\"\",VLOOKUP(O299,'Footnotes list'!$D$9:$E$58,2,FALSE) ) )","v":""},null,null,null,null,{"$f":"IF(TRIM(T299)=\"\", \"\", IF(VLOOKUP(T299,'Footnotes list'!$D$9:$E$58,2,FALSE)=0,\"\",VLOOKUP(T299,'Footnotes list'!$D$9:$E$58,2,FALSE) ) )","v":""},null,null,null,null,{"$f":"IF(TRIM(Y299)=\"\", \"\", IF(VLOOKUP(Y299,'Footnotes list'!$D$9:$E$58,2,FALSE)=0,\"\",VLOOKUP(Y299,'Footnotes list'!$D$9:$E$58,2,FALSE) ) )","v":""},null,null,null,null,{"$f":"IF(TRIM(AD299)=\"\", \"\", IF(VLOOKUP(AD299,'Footnotes list'!$D$9:$E$58,2,FALSE)=0,\"\",VLOOKUP(AD299,'Footnotes list'!$D$9:$E$58,2,FALSE) ) )","v":""},null,null,null,null,{"$f":"IF(TRIM(AI299)=\"\", \"\", IF(VLOOKUP(AI299,'Footnotes list'!$D$9:$E$58,2,FALSE)=0,\"\",VLOOKUP(AI299,'Footnotes list'!$D$9:$E$58,2,FALSE) ) )","v":""},null,null,null,null,{"$f":"IF(TRIM(AN299)=\"\", \"\", IF(VLOOKUP(AN299,'Footnotes list'!$D$9:$E$58,2,FALSE)=0,\"\",VLOOKUP(AN299,'Footnotes list'!$D$9:$E$58,2,FALSE) ) )","v":""},null,null,null,null,{"$f":"IF(TRIM(AS299)=\"\", \"\", IF(VLOOKUP(AS299,'Footnotes list'!$D$9:$E$58,2,FALSE)=0,\"\",VLOOKUP(AS299,'Footnotes list'!$D$9:$E$58,2,FALSE) ) )","v":""},null,null,null,null,{"$f":"IF(TRIM(AX299)=\"\", \"\", IF(VLOOKUP(AX299,'Footnotes list'!$D$9:$E$58,2,FALSE)=0,\"\",VLOOKUP(AX299,'Footnotes list'!$D$9:$E$58,2,FALSE) ) )","v":""},null,null,null,null,{"$f":"IF(TRIM(BC299)=\"\", \"\", IF(VLOOKUP(BC299,'Footnotes list'!$D$9:$E$58,2,FALSE)=0,\"\",VLOOKUP(BC299,'Footnotes list'!$D$9:$E$58,2,FALSE) ) )","v":""},null,null,null,null,{"$f":"IF(TRIM(BH299)=\"\", \"\", IF(VLOOKUP(BH299,'Footnotes list'!$D$9:$E$58,2,FALSE)=0,\"\",VLOOKUP(BH299,'Footnotes list'!$D$9:$E$58,2,FALSE) ) )","v":""},null,null,null,null,{"$f":"IF(TRIM(BM299)=\"\", \"\", IF(VLOOKUP(BM299,'Footnotes list'!$D$9:$E$58,2,FALSE)=0,\"\",VLOOKUP(BM299,'Footnotes list'!$D$9:$E$58,2,FALSE) ) )","v":""},null,null,null,null,{"$f":"IF(TRIM(BR299)=\"\", \"\", IF(VLOOKUP(BR299,'Footnotes list'!$D$9:$E$58,2,FALSE)=0,\"\",VLOOKUP(BR299,'Footnotes list'!$D$9:$E$58,2,FALSE) ) )","v":""},null,null,null,null,{"$f":"IF(TRIM(BW299)=\"\", \"\", IF(VLOOKUP(BW299,'Footnotes list'!$D$9:$E$58,2,FALSE)=0,\"\",VLOOKUP(BW299,'Footnotes list'!$D$9:$E$58,2,FALSE) ) )","v":""},null,null,null,null,{"$f":"IF(TRIM(CB299)=\"\", \"\", IF(VLOOKUP(CB299,'Footnotes list'!$D$9:$E$58,2,FALSE)=0,\"\",VLOOKUP(CB299,'Footnotes list'!$D$9:$E$58,2,FALSE) ) )","v":""},null,null,null,null,{"$f":"IF(TRIM(CG299)=\"\", \"\", IF(VLOOKUP(CG299,'Footnotes list'!$D$9:$E$58,2,FALSE)=0,\"\",VLOOKUP(CG299,'Footnotes list'!$D$9:$E$58,2,FALSE) ) )","v":""},null,null,null,null,{"$f":"IF(TRIM(CL299)=\"\", \"\", IF(VLOOKUP(CL299,'Footnotes list'!$D$9:$E$58,2,FALSE)=0,\"\",VLOOKUP(CL299,'Footnotes list'!$D$9:$E$58,2,FALSE) ) )","v":""},null,null,null,null,{"$f":"IF(TRIM(CQ299)=\"\", \"\", IF(VLOOKUP(CQ299,'Footnotes list'!$D$9:$E$58,2,FALSE)=0,\"\",VLOOKUP(CQ299,'Footnotes list'!$D$9:$E$58,2,FALSE) ) )","v":""},null,null,null,null,{"$f":"IF(TRIM(CV299)=\"\", \"\", IF(VLOOKUP(CV299,'Footnotes list'!$D$9:$E$58,2,FALSE)=0,\"\",VLOOKUP(CV299,'Footnotes list'!$D$9:$E$58,2,FALSE) ) )","v":""},null,null,null,null,{"$f":"IF(TRIM(DA299)=\"\", \"\", IF(VLOOKUP(DA299,'Footnotes list'!$D$9:$E$58,2,FALSE)=0,\"\",VLOOKUP(DA299,'Footnotes list'!$D$9:$E$58,2,FALSE) ) )","v":""},null,null,null,null,{"$f":"IF(TRIM(DF299)=\"\", \"\", IF(VLOOKUP(DF299,'Footnotes list'!$D$9:$E$58,2,FALSE)=0,\"\",VLOOKUP(DF299,'Footnotes list'!$D$9:$E$58,2,FALSE) ) )","v":""},null,null,null,null,{"$f":"IF(TRIM(DK299)=\"\", \"\", IF(VLOOKUP(DK299,'Footnotes list'!$D$9:$E$58,2,FALSE)=0,\"\",VLOOKUP(DK299,'Footnotes list'!$D$9:$E$58,2,FALSE) ) )","v":""},null,null,null,null,{"$f":"IF(TRIM(DP299)=\"\", \"\", IF(VLOOKUP(DP299,'Footnotes list'!$D$9:$E$58,2,FALSE)=0,\"\",VLOOKUP(DP299,'Footnotes list'!$D$9:$E$58,2,FALSE) ) )","v":""},null,null,null,null,{"$f":"IF(TRIM(DU299)=\"\", \"\", IF(VLOOKUP(DU299,'Footnotes list'!$D$9:$E$58,2,FALSE)=0,\"\",VLOOKUP(DU299,'Footnotes list'!$D$9:$E$58,2,FALSE) ) )","v":""},null,null,null,null,{"$f":"IF(TRIM(DZ299)=\"\", \"\", IF(VLOOKUP(DZ299,'Footnotes list'!$D$9:$E$58,2,FALSE)=0,\"\",VLOOKUP(DZ299,'Footnotes list'!$D$9:$E$58,2,FALSE) ) )","v":""},null,null,null,null,{"$f":"IF(TRIM(EE299)=\"\", \"\", IF(VLOOKUP(EE299,'Footnotes list'!$D$9:$E$58,2,FALSE)=0,\"\",VLOOKUP(EE299,'Footnotes list'!$D$9:$E$58,2,FALSE) ) )","v":""},null,null,null,null,{"$f":"IF(TRIM(EJ299)=\"\", \"\", IF(VLOOKUP(EJ299,'Footnotes list'!$D$9:$E$58,2,FALSE)=0,\"\",VLOOKUP(EJ299,'Footnotes list'!$D$9:$E$58,2,FALSE) ) )","v":""},null,null,null,null,{"$f":"IF(TRIM(EO299)=\"\", \"\", IF(VLOOKUP(EO299,'Footnotes list'!$D$9:$E$58,2,FALSE)=0,\"\",VLOOKUP(EO299,'Footnotes list'!$D$9:$E$58,2,FALSE) ) )","v":""},null,null,null,null,{"$f":"IF(TRIM(ET299)=\"\", \"\", IF(VLOOKUP(ET299,'Footnotes list'!$D$9:$E$58,2,FALSE)=0,\"\",VLOOKUP(ET299,'Footnotes list'!$D$9:$E$58,2,FALSE) ) )","v":""},null,null,null,null,{"$f":"IF(TRIM(EY299)=\"\", \"\", IF(VLOOKUP(EY299,'Footnotes list'!$D$9:$E$58,2,FALSE)=0,\"\",VLOOKUP(EY299,'Footnotes list'!$D$9:$E$58,2,FALSE) ) )","v":""}]
[null,null,"T","ES_CS","environmental specific services",null,null,null,null,null,{"$f":"IF(TRIM(J300)=\"\", \"\", IF(VLOOKUP(J300,'Footnotes list'!$D$9:$E$58,2,FALSE)=0,\"\",VLOOKUP(J300,'Footnotes list'!$D$9:$E$58,2,FALSE) ) )","v":""},null,null,null,null,{"$f":"IF(TRIM(O300)=\"\", \"\", IF(VLOOKUP(O300,'Footnotes list'!$D$9:$E$58,2,FALSE)=0,\"\",VLOOKUP(O300,'Footnotes list'!$D$9:$E$58,2,FALSE) ) )","v":""},null,null,null,null,{"$f":"IF(TRIM(T300)=\"\", \"\", IF(VLOOKUP(T300,'Footnotes list'!$D$9:$E$58,2,FALSE)=0,\"\",VLOOKUP(T300,'Footnotes list'!$D$9:$E$58,2,FALSE) ) )","v":""},null,null,null,null,{"$f":"IF(TRIM(Y300)=\"\", \"\", IF(VLOOKUP(Y300,'Footnotes list'!$D$9:$E$58,2,FALSE)=0,\"\",VLOOKUP(Y300,'Footnotes list'!$D$9:$E$58,2,FALSE) ) )","v":""},null,null,null,null,{"$f":"IF(TRIM(AD300)=\"\", \"\", IF(VLOOKUP(AD300,'Footnotes list'!$D$9:$E$58,2,FALSE)=0,\"\",VLOOKUP(AD300,'Footnotes list'!$D$9:$E$58,2,FALSE) ) )","v":""},null,null,null,null,{"$f":"IF(TRIM(AI300)=\"\", \"\", IF(VLOOKUP(AI300,'Footnotes list'!$D$9:$E$58,2,FALSE)=0,\"\",VLOOKUP(AI300,'Footnotes list'!$D$9:$E$58,2,FALSE) ) )","v":""},null,null,null,null,{"$f":"IF(TRIM(AN300)=\"\", \"\", IF(VLOOKUP(AN300,'Footnotes list'!$D$9:$E$58,2,FALSE)=0,\"\",VLOOKUP(AN300,'Footnotes list'!$D$9:$E$58,2,FALSE) ) )","v":""},null,null,null,null,{"$f":"IF(TRIM(AS300)=\"\", \"\", IF(VLOOKUP(AS300,'Footnotes list'!$D$9:$E$58,2,FALSE)=0,\"\",VLOOKUP(AS300,'Footnotes list'!$D$9:$E$58,2,FALSE) ) )","v":""},null,null,null,null,{"$f":"IF(TRIM(AX300)=\"\", \"\", IF(VLOOKUP(AX300,'Footnotes list'!$D$9:$E$58,2,FALSE)=0,\"\",VLOOKUP(AX300,'Footnotes list'!$D$9:$E$58,2,FALSE) ) )","v":""},null,null,null,null,{"$f":"IF(TRIM(BC300)=\"\", \"\", IF(VLOOKUP(BC300,'Footnotes list'!$D$9:$E$58,2,FALSE)=0,\"\",VLOOKUP(BC300,'Footnotes list'!$D$9:$E$58,2,FALSE) ) )","v":""},null,null,null,null,{"$f":"IF(TRIM(BH300)=\"\", \"\", IF(VLOOKUP(BH300,'Footnotes list'!$D$9:$E$58,2,FALSE)=0,\"\",VLOOKUP(BH300,'Footnotes list'!$D$9:$E$58,2,FALSE) ) )","v":""},null,null,null,null,{"$f":"IF(TRIM(BM300)=\"\", \"\", IF(VLOOKUP(BM300,'Footnotes list'!$D$9:$E$58,2,FALSE)=0,\"\",VLOOKUP(BM300,'Footnotes list'!$D$9:$E$58,2,FALSE) ) )","v":""},null,null,null,null,{"$f":"IF(TRIM(BR300)=\"\", \"\", IF(VLOOKUP(BR300,'Footnotes list'!$D$9:$E$58,2,FALSE)=0,\"\",VLOOKUP(BR300,'Footnotes list'!$D$9:$E$58,2,FALSE) ) )","v":""},null,null,null,null,{"$f":"IF(TRIM(BW300)=\"\", \"\", IF(VLOOKUP(BW300,'Footnotes list'!$D$9:$E$58,2,FALSE)=0,\"\",VLOOKUP(BW300,'Footnotes list'!$D$9:$E$58,2,FALSE) ) )","v":""},null,null,null,null,{"$f":"IF(TRIM(CB300)=\"\", \"\", IF(VLOOKUP(CB300,'Footnotes list'!$D$9:$E$58,2,FALSE)=0,\"\",VLOOKUP(CB300,'Footnotes list'!$D$9:$E$58,2,FALSE) ) )","v":""},null,null,null,null,{"$f":"IF(TRIM(CG300)=\"\", \"\", IF(VLOOKUP(CG300,'Footnotes list'!$D$9:$E$58,2,FALSE)=0,\"\",VLOOKUP(CG300,'Footnotes list'!$D$9:$E$58,2,FALSE) ) )","v":""},null,null,null,null,{"$f":"IF(TRIM(CL300)=\"\", \"\", IF(VLOOKUP(CL300,'Footnotes list'!$D$9:$E$58,2,FALSE)=0,\"\",VLOOKUP(CL300,'Footnotes list'!$D$9:$E$58,2,FALSE) ) )","v":""},null,null,null,null,{"$f":"IF(TRIM(CQ300)=\"\", \"\", IF(VLOOKUP(CQ300,'Footnotes list'!$D$9:$E$58,2,FALSE)=0,\"\",VLOOKUP(CQ300,'Footnotes list'!$D$9:$E$58,2,FALSE) ) )","v":""},null,null,null,null,{"$f":"IF(TRIM(CV300)=\"\", \"\", IF(VLOOKUP(CV300,'Footnotes list'!$D$9:$E$58,2,FALSE)=0,\"\",VLOOKUP(CV300,'Footnotes list'!$D$9:$E$58,2,FALSE) ) )","v":""},null,null,null,null,{"$f":"IF(TRIM(DA300)=\"\", \"\", IF(VLOOKUP(DA300,'Footnotes list'!$D$9:$E$58,2,FALSE)=0,\"\",VLOOKUP(DA300,'Footnotes list'!$D$9:$E$58,2,FALSE) ) )","v":""},null,null,null,null,{"$f":"IF(TRIM(DF300)=\"\", \"\", IF(VLOOKUP(DF300,'Footnotes list'!$D$9:$E$58,2,FALSE)=0,\"\",VLOOKUP(DF300,'Footnotes list'!$D$9:$E$58,2,FALSE) ) )","v":""},null,null,null,null,{"$f":"IF(TRIM(DK300)=\"\", \"\", IF(VLOOKUP(DK300,'Footnotes list'!$D$9:$E$58,2,FALSE)=0,\"\",VLOOKUP(DK300,'Footnotes list'!$D$9:$E$58,2,FALSE) ) )","v":""},null,null,null,null,{"$f":"IF(TRIM(DP300)=\"\", \"\", IF(VLOOKUP(DP300,'Footnotes list'!$D$9:$E$58,2,FALSE)=0,\"\",VLOOKUP(DP300,'Footnotes list'!$D$9:$E$58,2,FALSE) ) )","v":""},null,null,null,null,{"$f":"IF(TRIM(DU300)=\"\", \"\", IF(VLOOKUP(DU300,'Footnotes list'!$D$9:$E$58,2,FALSE)=0,\"\",VLOOKUP(DU300,'Footnotes list'!$D$9:$E$58,2,FALSE) ) )","v":""},null,null,null,null,{"$f":"IF(TRIM(DZ300)=\"\", \"\", IF(VLOOKUP(DZ300,'Footnotes list'!$D$9:$E$58,2,FALSE)=0,\"\",VLOOKUP(DZ300,'Footnotes list'!$D$9:$E$58,2,FALSE) ) )","v":""},null,null,null,null,{"$f":"IF(TRIM(EE300)=\"\", \"\", IF(VLOOKUP(EE300,'Footnotes list'!$D$9:$E$58,2,FALSE)=0,\"\",VLOOKUP(EE300,'Footnotes list'!$D$9:$E$58,2,FALSE) ) )","v":""},null,null,null,null,{"$f":"IF(TRIM(EJ300)=\"\", \"\", IF(VLOOKUP(EJ300,'Footnotes list'!$D$9:$E$58,2,FALSE)=0,\"\",VLOOKUP(EJ300,'Footnotes list'!$D$9:$E$58,2,FALSE) ) )","v":""},null,null,null,null,{"$f":"IF(TRIM(EO300)=\"\", \"\", IF(VLOOKUP(EO300,'Footnotes list'!$D$9:$E$58,2,FALSE)=0,\"\",VLOOKUP(EO300,'Footnotes list'!$D$9:$E$58,2,FALSE) ) )","v":""},null,null,null,null,{"$f":"IF(TRIM(ET300)=\"\", \"\", IF(VLOOKUP(ET300,'Footnotes list'!$D$9:$E$58,2,FALSE)=0,\"\",VLOOKUP(ET300,'Footnotes list'!$D$9:$E$58,2,FALSE) ) )","v":""},null,null,null,null,{"$f":"IF(TRIM(EY300)=\"\", \"\", IF(VLOOKUP(EY300,'Footnotes list'!$D$9:$E$58,2,FALSE)=0,\"\",VLOOKUP(EY300,'Footnotes list'!$D$9:$E$58,2,FALSE) ) )","v":""}]
[null,null,"T","C_REP","cleaner and resource efficient products",null,null,null,null,null,{"$f":"IF(TRIM(J301)=\"\", \"\", IF(VLOOKUP(J301,'Footnotes list'!$D$9:$E$58,2,FALSE)=0,\"\",VLOOKUP(J301,'Footnotes list'!$D$9:$E$58,2,FALSE) ) )","v":""},null,null,null,null,{"$f":"IF(TRIM(O301)=\"\", \"\", IF(VLOOKUP(O301,'Footnotes list'!$D$9:$E$58,2,FALSE)=0,\"\",VLOOKUP(O301,'Footnotes list'!$D$9:$E$58,2,FALSE) ) )","v":""},null,null,null,null,{"$f":"IF(TRIM(T301)=\"\", \"\", IF(VLOOKUP(T301,'Footnotes list'!$D$9:$E$58,2,FALSE)=0,\"\",VLOOKUP(T301,'Footnotes list'!$D$9:$E$58,2,FALSE) ) )","v":""},null,null,null,null,{"$f":"IF(TRIM(Y301)=\"\", \"\", IF(VLOOKUP(Y301,'Footnotes list'!$D$9:$E$58,2,FALSE)=0,\"\",VLOOKUP(Y301,'Footnotes list'!$D$9:$E$58,2,FALSE) ) )","v":""},null,null,null,null,{"$f":"IF(TRIM(AD301)=\"\", \"\", IF(VLOOKUP(AD301,'Footnotes list'!$D$9:$E$58,2,FALSE)=0,\"\",VLOOKUP(AD301,'Footnotes list'!$D$9:$E$58,2,FALSE) ) )","v":""},null,null,null,null,{"$f":"IF(TRIM(AI301)=\"\", \"\", IF(VLOOKUP(AI301,'Footnotes list'!$D$9:$E$58,2,FALSE)=0,\"\",VLOOKUP(AI301,'Footnotes list'!$D$9:$E$58,2,FALSE) ) )","v":""},null,null,null,null,{"$f":"IF(TRIM(AN301)=\"\", \"\", IF(VLOOKUP(AN301,'Footnotes list'!$D$9:$E$58,2,FALSE)=0,\"\",VLOOKUP(AN301,'Footnotes list'!$D$9:$E$58,2,FALSE) ) )","v":""},null,null,null,null,{"$f":"IF(TRIM(AS301)=\"\", \"\", IF(VLOOKUP(AS301,'Footnotes list'!$D$9:$E$58,2,FALSE)=0,\"\",VLOOKUP(AS301,'Footnotes list'!$D$9:$E$58,2,FALSE) ) )","v":""},null,null,null,null,{"$f":"IF(TRIM(AX301)=\"\", \"\", IF(VLOOKUP(AX301,'Footnotes list'!$D$9:$E$58,2,FALSE)=0,\"\",VLOOKUP(AX301,'Footnotes list'!$D$9:$E$58,2,FALSE) ) )","v":""},null,null,null,null,{"$f":"IF(TRIM(BC301)=\"\", \"\", IF(VLOOKUP(BC301,'Footnotes list'!$D$9:$E$58,2,FALSE)=0,\"\",VLOOKUP(BC301,'Footnotes list'!$D$9:$E$58,2,FALSE) ) )","v":""},null,null,null,null,{"$f":"IF(TRIM(BH301)=\"\", \"\", IF(VLOOKUP(BH301,'Footnotes list'!$D$9:$E$58,2,FALSE)=0,\"\",VLOOKUP(BH301,'Footnotes list'!$D$9:$E$58,2,FALSE) ) )","v":""},null,null,null,null,{"$f":"IF(TRIM(BM301)=\"\", \"\", IF(VLOOKUP(BM301,'Footnotes list'!$D$9:$E$58,2,FALSE)=0,\"\",VLOOKUP(BM301,'Footnotes list'!$D$9:$E$58,2,FALSE) ) )","v":""},null,null,null,null,{"$f":"IF(TRIM(BR301)=\"\", \"\", IF(VLOOKUP(BR301,'Footnotes list'!$D$9:$E$58,2,FALSE)=0,\"\",VLOOKUP(BR301,'Footnotes list'!$D$9:$E$58,2,FALSE) ) )","v":""},null,null,null,null,{"$f":"IF(TRIM(BW301)=\"\", \"\", IF(VLOOKUP(BW301,'Footnotes list'!$D$9:$E$58,2,FALSE)=0,\"\",VLOOKUP(BW301,'Footnotes list'!$D$9:$E$58,2,FALSE) ) )","v":""},null,null,null,null,{"$f":"IF(TRIM(CB301)=\"\", \"\", IF(VLOOKUP(CB301,'Footnotes list'!$D$9:$E$58,2,FALSE)=0,\"\",VLOOKUP(CB301,'Footnotes list'!$D$9:$E$58,2,FALSE) ) )","v":""},null,null,null,null,{"$f":"IF(TRIM(CG301)=\"\", \"\", IF(VLOOKUP(CG301,'Footnotes list'!$D$9:$E$58,2,FALSE)=0,\"\",VLOOKUP(CG301,'Footnotes list'!$D$9:$E$58,2,FALSE) ) )","v":""},null,null,null,null,{"$f":"IF(TRIM(CL301)=\"\", \"\", IF(VLOOKUP(CL301,'Footnotes list'!$D$9:$E$58,2,FALSE)=0,\"\",VLOOKUP(CL301,'Footnotes list'!$D$9:$E$58,2,FALSE) ) )","v":""},null,null,null,null,{"$f":"IF(TRIM(CQ301)=\"\", \"\", IF(VLOOKUP(CQ301,'Footnotes list'!$D$9:$E$58,2,FALSE)=0,\"\",VLOOKUP(CQ301,'Footnotes list'!$D$9:$E$58,2,FALSE) ) )","v":""},null,null,null,null,{"$f":"IF(TRIM(CV301)=\"\", \"\", IF(VLOOKUP(CV301,'Footnotes list'!$D$9:$E$58,2,FALSE)=0,\"\",VLOOKUP(CV301,'Footnotes list'!$D$9:$E$58,2,FALSE) ) )","v":""},null,null,null,null,{"$f":"IF(TRIM(DA301)=\"\", \"\", IF(VLOOKUP(DA301,'Footnotes list'!$D$9:$E$58,2,FALSE)=0,\"\",VLOOKUP(DA301,'Footnotes list'!$D$9:$E$58,2,FALSE) ) )","v":""},null,null,null,null,{"$f":"IF(TRIM(DF301)=\"\", \"\", IF(VLOOKUP(DF301,'Footnotes list'!$D$9:$E$58,2,FALSE)=0,\"\",VLOOKUP(DF301,'Footnotes list'!$D$9:$E$58,2,FALSE) ) )","v":""},null,null,null,null,{"$f":"IF(TRIM(DK301)=\"\", \"\", IF(VLOOKUP(DK301,'Footnotes list'!$D$9:$E$58,2,FALSE)=0,\"\",VLOOKUP(DK301,'Footnotes list'!$D$9:$E$58,2,FALSE) ) )","v":""},null,null,null,null,{"$f":"IF(TRIM(DP301)=\"\", \"\", IF(VLOOKUP(DP301,'Footnotes list'!$D$9:$E$58,2,FALSE)=0,\"\",VLOOKUP(DP301,'Footnotes list'!$D$9:$E$58,2,FALSE) ) )","v":""},null,null,null,null,{"$f":"IF(TRIM(DU301)=\"\", \"\", IF(VLOOKUP(DU301,'Footnotes list'!$D$9:$E$58,2,FALSE)=0,\"\",VLOOKUP(DU301,'Footnotes list'!$D$9:$E$58,2,FALSE) ) )","v":""},null,null,null,null,{"$f":"IF(TRIM(DZ301)=\"\", \"\", IF(VLOOKUP(DZ301,'Footnotes list'!$D$9:$E$58,2,FALSE)=0,\"\",VLOOKUP(DZ301,'Footnotes list'!$D$9:$E$58,2,FALSE) ) )","v":""},null,null,null,null,{"$f":"IF(TRIM(EE301)=\"\", \"\", IF(VLOOKUP(EE301,'Footnotes list'!$D$9:$E$58,2,FALSE)=0,\"\",VLOOKUP(EE301,'Footnotes list'!$D$9:$E$58,2,FALSE) ) )","v":""},null,null,null,null,{"$f":"IF(TRIM(EJ301)=\"\", \"\", IF(VLOOKUP(EJ301,'Footnotes list'!$D$9:$E$58,2,FALSE)=0,\"\",VLOOKUP(EJ301,'Footnotes list'!$D$9:$E$58,2,FALSE) ) )","v":""},null,null,null,null,{"$f":"IF(TRIM(EO301)=\"\", \"\", IF(VLOOKUP(EO301,'Footnotes list'!$D$9:$E$58,2,FALSE)=0,\"\",VLOOKUP(EO301,'Footnotes list'!$D$9:$E$58,2,FALSE) ) )","v":""},null,null,null,null,{"$f":"IF(TRIM(ET301)=\"\", \"\", IF(VLOOKUP(ET301,'Footnotes list'!$D$9:$E$58,2,FALSE)=0,\"\",VLOOKUP(ET301,'Footnotes list'!$D$9:$E$58,2,FALSE) ) )","v":""},null,null,null,null,{"$f":"IF(TRIM(EY301)=\"\", \"\", IF(VLOOKUP(EY301,'Footnotes list'!$D$9:$E$58,2,FALSE)=0,\"\",VLOOKUP(EY301,'Footnotes list'!$D$9:$E$58,2,FALSE) ) )","v":""}]
[null,null,"U","TOT_EGSS","Total U - Activities of extraterritorial organizations and bodies, of which:",null,null,null,null,null,{"$f":"IF(TRIM(J302)=\"\", \"\", IF(VLOOKUP(J302,'Footnotes list'!$D$9:$E$58,2,FALSE)=0,\"\",VLOOKUP(J302,'Footnotes list'!$D$9:$E$58,2,FALSE) ) )","v":""},null,null,null,null,{"$f":"IF(TRIM(O302)=\"\", \"\", IF(VLOOKUP(O302,'Footnotes list'!$D$9:$E$58,2,FALSE)=0,\"\",VLOOKUP(O302,'Footnotes list'!$D$9:$E$58,2,FALSE) ) )","v":""},null,null,null,null,{"$f":"IF(TRIM(T302)=\"\", \"\", IF(VLOOKUP(T302,'Footnotes list'!$D$9:$E$58,2,FALSE)=0,\"\",VLOOKUP(T302,'Footnotes list'!$D$9:$E$58,2,FALSE) ) )","v":""},null,null,null,null,{"$f":"IF(TRIM(Y302)=\"\", \"\", IF(VLOOKUP(Y302,'Footnotes list'!$D$9:$E$58,2,FALSE)=0,\"\",VLOOKUP(Y302,'Footnotes list'!$D$9:$E$58,2,FALSE) ) )","v":""},null,null,null,null,{"$f":"IF(TRIM(AD302)=\"\", \"\", IF(VLOOKUP(AD302,'Footnotes list'!$D$9:$E$58,2,FALSE)=0,\"\",VLOOKUP(AD302,'Footnotes list'!$D$9:$E$58,2,FALSE) ) )","v":""},null,null,null,null,{"$f":"IF(TRIM(AI302)=\"\", \"\", IF(VLOOKUP(AI302,'Footnotes list'!$D$9:$E$58,2,FALSE)=0,\"\",VLOOKUP(AI302,'Footnotes list'!$D$9:$E$58,2,FALSE) ) )","v":""},null,null,null,null,{"$f":"IF(TRIM(AN302)=\"\", \"\", IF(VLOOKUP(AN302,'Footnotes list'!$D$9:$E$58,2,FALSE)=0,\"\",VLOOKUP(AN302,'Footnotes list'!$D$9:$E$58,2,FALSE) ) )","v":""},null,null,null,null,{"$f":"IF(TRIM(AS302)=\"\", \"\", IF(VLOOKUP(AS302,'Footnotes list'!$D$9:$E$58,2,FALSE)=0,\"\",VLOOKUP(AS302,'Footnotes list'!$D$9:$E$58,2,FALSE) ) )","v":""},null,null,null,null,{"$f":"IF(TRIM(AX302)=\"\", \"\", IF(VLOOKUP(AX302,'Footnotes list'!$D$9:$E$58,2,FALSE)=0,\"\",VLOOKUP(AX302,'Footnotes list'!$D$9:$E$58,2,FALSE) ) )","v":""},null,null,null,null,{"$f":"IF(TRIM(BC302)=\"\", \"\", IF(VLOOKUP(BC302,'Footnotes list'!$D$9:$E$58,2,FALSE)=0,\"\",VLOOKUP(BC302,'Footnotes list'!$D$9:$E$58,2,FALSE) ) )","v":""},null,null,null,null,{"$f":"IF(TRIM(BH302)=\"\", \"\", IF(VLOOKUP(BH302,'Footnotes list'!$D$9:$E$58,2,FALSE)=0,\"\",VLOOKUP(BH302,'Footnotes list'!$D$9:$E$58,2,FALSE) ) )","v":""},null,null,null,null,{"$f":"IF(TRIM(BM302)=\"\", \"\", IF(VLOOKUP(BM302,'Footnotes list'!$D$9:$E$58,2,FALSE)=0,\"\",VLOOKUP(BM302,'Footnotes list'!$D$9:$E$58,2,FALSE) ) )","v":""},null,null,null,null,{"$f":"IF(TRIM(BR302)=\"\", \"\", IF(VLOOKUP(BR302,'Footnotes list'!$D$9:$E$58,2,FALSE)=0,\"\",VLOOKUP(BR302,'Footnotes list'!$D$9:$E$58,2,FALSE) ) )","v":""},null,null,null,null,{"$f":"IF(TRIM(BW302)=\"\", \"\", IF(VLOOKUP(BW302,'Footnotes list'!$D$9:$E$58,2,FALSE)=0,\"\",VLOOKUP(BW302,'Footnotes list'!$D$9:$E$58,2,FALSE) ) )","v":""},null,null,null,null,{"$f":"IF(TRIM(CB302)=\"\", \"\", IF(VLOOKUP(CB302,'Footnotes list'!$D$9:$E$58,2,FALSE)=0,\"\",VLOOKUP(CB302,'Footnotes list'!$D$9:$E$58,2,FALSE) ) )","v":""},null,null,null,null,{"$f":"IF(TRIM(CG302)=\"\", \"\", IF(VLOOKUP(CG302,'Footnotes list'!$D$9:$E$58,2,FALSE)=0,\"\",VLOOKUP(CG302,'Footnotes list'!$D$9:$E$58,2,FALSE) ) )","v":""},null,null,null,null,{"$f":"IF(TRIM(CL302)=\"\", \"\", IF(VLOOKUP(CL302,'Footnotes list'!$D$9:$E$58,2,FALSE)=0,\"\",VLOOKUP(CL302,'Footnotes list'!$D$9:$E$58,2,FALSE) ) )","v":""},null,null,null,null,{"$f":"IF(TRIM(CQ302)=\"\", \"\", IF(VLOOKUP(CQ302,'Footnotes list'!$D$9:$E$58,2,FALSE)=0,\"\",VLOOKUP(CQ302,'Footnotes list'!$D$9:$E$58,2,FALSE) ) )","v":""},null,null,null,null,{"$f":"IF(TRIM(CV302)=\"\", \"\", IF(VLOOKUP(CV302,'Footnotes list'!$D$9:$E$58,2,FALSE)=0,\"\",VLOOKUP(CV302,'Footnotes list'!$D$9:$E$58,2,FALSE) ) )","v":""},null,null,null,null,{"$f":"IF(TRIM(DA302)=\"\", \"\", IF(VLOOKUP(DA302,'Footnotes list'!$D$9:$E$58,2,FALSE)=0,\"\",VLOOKUP(DA302,'Footnotes list'!$D$9:$E$58,2,FALSE) ) )","v":""},null,null,null,null,{"$f":"IF(TRIM(DF302)=\"\", \"\", IF(VLOOKUP(DF302,'Footnotes list'!$D$9:$E$58,2,FALSE)=0,\"\",VLOOKUP(DF302,'Footnotes list'!$D$9:$E$58,2,FALSE) ) )","v":""},null,null,null,null,{"$f":"IF(TRIM(DK302)=\"\", \"\", IF(VLOOKUP(DK302,'Footnotes list'!$D$9:$E$58,2,FALSE)=0,\"\",VLOOKUP(DK302,'Footnotes list'!$D$9:$E$58,2,FALSE) ) )","v":""},null,null,null,null,{"$f":"IF(TRIM(DP302)=\"\", \"\", IF(VLOOKUP(DP302,'Footnotes list'!$D$9:$E$58,2,FALSE)=0,\"\",VLOOKUP(DP302,'Footnotes list'!$D$9:$E$58,2,FALSE) ) )","v":""},null,null,null,null,{"$f":"IF(TRIM(DU302)=\"\", \"\", IF(VLOOKUP(DU302,'Footnotes list'!$D$9:$E$58,2,FALSE)=0,\"\",VLOOKUP(DU302,'Footnotes list'!$D$9:$E$58,2,FALSE) ) )","v":""},null,null,null,null,{"$f":"IF(TRIM(DZ302)=\"\", \"\", IF(VLOOKUP(DZ302,'Footnotes list'!$D$9:$E$58,2,FALSE)=0,\"\",VLOOKUP(DZ302,'Footnotes list'!$D$9:$E$58,2,FALSE) ) )","v":""},null,null,null,null,{"$f":"IF(TRIM(EE302)=\"\", \"\", IF(VLOOKUP(EE302,'Footnotes list'!$D$9:$E$58,2,FALSE)=0,\"\",VLOOKUP(EE302,'Footnotes list'!$D$9:$E$58,2,FALSE) ) )","v":""},null,null,null,null,{"$f":"IF(TRIM(EJ302)=\"\", \"\", IF(VLOOKUP(EJ302,'Footnotes list'!$D$9:$E$58,2,FALSE)=0,\"\",VLOOKUP(EJ302,'Footnotes list'!$D$9:$E$58,2,FALSE) ) )","v":""},null,null,null,null,{"$f":"IF(TRIM(EO302)=\"\", \"\", IF(VLOOKUP(EO302,'Footnotes list'!$D$9:$E$58,2,FALSE)=0,\"\",VLOOKUP(EO302,'Footnotes list'!$D$9:$E$58,2,FALSE) ) )","v":""},null,null,null,null,{"$f":"IF(TRIM(ET302)=\"\", \"\", IF(VLOOKUP(ET302,'Footnotes list'!$D$9:$E$58,2,FALSE)=0,\"\",VLOOKUP(ET302,'Footnotes list'!$D$9:$E$58,2,FALSE) ) )","v":""},null,null,null,null,{"$f":"IF(TRIM(EY302)=\"\", \"\", IF(VLOOKUP(EY302,'Footnotes list'!$D$9:$E$58,2,FALSE)=0,\"\",VLOOKUP(EY302,'Footnotes list'!$D$9:$E$58,2,FALSE) ) )","v":""}]
[null,null,"U","ANC","ancillary activities",null,null,null,null,null,{"$f":"IF(TRIM(J303)=\"\", \"\", IF(VLOOKUP(J303,'Footnotes list'!$D$9:$E$58,2,FALSE)=0,\"\",VLOOKUP(J303,'Footnotes list'!$D$9:$E$58,2,FALSE) ) )","v":""},null,null,null,null,{"$f":"IF(TRIM(O303)=\"\", \"\", IF(VLOOKUP(O303,'Footnotes list'!$D$9:$E$58,2,FALSE)=0,\"\",VLOOKUP(O303,'Footnotes list'!$D$9:$E$58,2,FALSE) ) )","v":""},null,null,null,null,{"$f":"IF(TRIM(T303)=\"\", \"\", IF(VLOOKUP(T303,'Footnotes list'!$D$9:$E$58,2,FALSE)=0,\"\",VLOOKUP(T303,'Footnotes list'!$D$9:$E$58,2,FALSE) ) )","v":""},null,null,null,null,{"$f":"IF(TRIM(Y303)=\"\", \"\", IF(VLOOKUP(Y303,'Footnotes list'!$D$9:$E$58,2,FALSE)=0,\"\",VLOOKUP(Y303,'Footnotes list'!$D$9:$E$58,2,FALSE) ) )","v":""},null,null,null,null,{"$f":"IF(TRIM(AD303)=\"\", \"\", IF(VLOOKUP(AD303,'Footnotes list'!$D$9:$E$58,2,FALSE)=0,\"\",VLOOKUP(AD303,'Footnotes list'!$D$9:$E$58,2,FALSE) ) )","v":""},null,null,null,null,{"$f":"IF(TRIM(AI303)=\"\", \"\", IF(VLOOKUP(AI303,'Footnotes list'!$D$9:$E$58,2,FALSE)=0,\"\",VLOOKUP(AI303,'Footnotes list'!$D$9:$E$58,2,FALSE) ) )","v":""},null,null,null,null,{"$f":"IF(TRIM(AN303)=\"\", \"\", IF(VLOOKUP(AN303,'Footnotes list'!$D$9:$E$58,2,FALSE)=0,\"\",VLOOKUP(AN303,'Footnotes list'!$D$9:$E$58,2,FALSE) ) )","v":""},null,null,null,null,{"$f":"IF(TRIM(AS303)=\"\", \"\", IF(VLOOKUP(AS303,'Footnotes list'!$D$9:$E$58,2,FALSE)=0,\"\",VLOOKUP(AS303,'Footnotes list'!$D$9:$E$58,2,FALSE) ) )","v":""},null,null,null,null,{"$f":"IF(TRIM(AX303)=\"\", \"\", IF(VLOOKUP(AX303,'Footnotes list'!$D$9:$E$58,2,FALSE)=0,\"\",VLOOKUP(AX303,'Footnotes list'!$D$9:$E$58,2,FALSE) ) )","v":""},null,null,null,null,{"$f":"IF(TRIM(BC303)=\"\", \"\", IF(VLOOKUP(BC303,'Footnotes list'!$D$9:$E$58,2,FALSE)=0,\"\",VLOOKUP(BC303,'Footnotes list'!$D$9:$E$58,2,FALSE) ) )","v":""},null,null,null,null,{"$f":"IF(TRIM(BH303)=\"\", \"\", IF(VLOOKUP(BH303,'Footnotes list'!$D$9:$E$58,2,FALSE)=0,\"\",VLOOKUP(BH303,'Footnotes list'!$D$9:$E$58,2,FALSE) ) )","v":""},null,null,null,null,{"$f":"IF(TRIM(BM303)=\"\", \"\", IF(VLOOKUP(BM303,'Footnotes list'!$D$9:$E$58,2,FALSE)=0,\"\",VLOOKUP(BM303,'Footnotes list'!$D$9:$E$58,2,FALSE) ) )","v":""},null,null,null,null,{"$f":"IF(TRIM(BR303)=\"\", \"\", IF(VLOOKUP(BR303,'Footnotes list'!$D$9:$E$58,2,FALSE)=0,\"\",VLOOKUP(BR303,'Footnotes list'!$D$9:$E$58,2,FALSE) ) )","v":""},null,null,null,null,{"$f":"IF(TRIM(BW303)=\"\", \"\", IF(VLOOKUP(BW303,'Footnotes list'!$D$9:$E$58,2,FALSE)=0,\"\",VLOOKUP(BW303,'Footnotes list'!$D$9:$E$58,2,FALSE) ) )","v":""},null,null,null,null,{"$f":"IF(TRIM(CB303)=\"\", \"\", IF(VLOOKUP(CB303,'Footnotes list'!$D$9:$E$58,2,FALSE)=0,\"\",VLOOKUP(CB303,'Footnotes list'!$D$9:$E$58,2,FALSE) ) )","v":""},null,null,null,null,{"$f":"IF(TRIM(CG303)=\"\", \"\", IF(VLOOKUP(CG303,'Footnotes list'!$D$9:$E$58,2,FALSE)=0,\"\",VLOOKUP(CG303,'Footnotes list'!$D$9:$E$58,2,FALSE) ) )","v":""},null,null,null,null,{"$f":"IF(TRIM(CL303)=\"\", \"\", IF(VLOOKUP(CL303,'Footnotes list'!$D$9:$E$58,2,FALSE)=0,\"\",VLOOKUP(CL303,'Footnotes list'!$D$9:$E$58,2,FALSE) ) )","v":""},null,null,null,null,{"$f":"IF(TRIM(CQ303)=\"\", \"\", IF(VLOOKUP(CQ303,'Footnotes list'!$D$9:$E$58,2,FALSE)=0,\"\",VLOOKUP(CQ303,'Footnotes list'!$D$9:$E$58,2,FALSE) ) )","v":""},null,null,null,null,{"$f":"IF(TRIM(CV303)=\"\", \"\", IF(VLOOKUP(CV303,'Footnotes list'!$D$9:$E$58,2,FALSE)=0,\"\",VLOOKUP(CV303,'Footnotes list'!$D$9:$E$58,2,FALSE) ) )","v":""},null,null,null,null,{"$f":"IF(TRIM(DA303)=\"\", \"\", IF(VLOOKUP(DA303,'Footnotes list'!$D$9:$E$58,2,FALSE)=0,\"\",VLOOKUP(DA303,'Footnotes list'!$D$9:$E$58,2,FALSE) ) )","v":""},null,null,null,null,{"$f":"IF(TRIM(DF303)=\"\", \"\", IF(VLOOKUP(DF303,'Footnotes list'!$D$9:$E$58,2,FALSE)=0,\"\",VLOOKUP(DF303,'Footnotes list'!$D$9:$E$58,2,FALSE) ) )","v":""},null,null,null,null,{"$f":"IF(TRIM(DK303)=\"\", \"\", IF(VLOOKUP(DK303,'Footnotes list'!$D$9:$E$58,2,FALSE)=0,\"\",VLOOKUP(DK303,'Footnotes list'!$D$9:$E$58,2,FALSE) ) )","v":""},null,null,null,null,{"$f":"IF(TRIM(DP303)=\"\", \"\", IF(VLOOKUP(DP303,'Footnotes list'!$D$9:$E$58,2,FALSE)=0,\"\",VLOOKUP(DP303,'Footnotes list'!$D$9:$E$58,2,FALSE) ) )","v":""},null,null,null,null,{"$f":"IF(TRIM(DU303)=\"\", \"\", IF(VLOOKUP(DU303,'Footnotes list'!$D$9:$E$58,2,FALSE)=0,\"\",VLOOKUP(DU303,'Footnotes list'!$D$9:$E$58,2,FALSE) ) )","v":""},null,null,null,null,{"$f":"IF(TRIM(DZ303)=\"\", \"\", IF(VLOOKUP(DZ303,'Footnotes list'!$D$9:$E$58,2,FALSE)=0,\"\",VLOOKUP(DZ303,'Footnotes list'!$D$9:$E$58,2,FALSE) ) )","v":""},null,null,null,null,{"$f":"IF(TRIM(EE303)=\"\", \"\", IF(VLOOKUP(EE303,'Footnotes list'!$D$9:$E$58,2,FALSE)=0,\"\",VLOOKUP(EE303,'Footnotes list'!$D$9:$E$58,2,FALSE) ) )","v":""},null,null,null,null,{"$f":"IF(TRIM(EJ303)=\"\", \"\", IF(VLOOKUP(EJ303,'Footnotes list'!$D$9:$E$58,2,FALSE)=0,\"\",VLOOKUP(EJ303,'Footnotes list'!$D$9:$E$58,2,FALSE) ) )","v":""},null,null,null,null,{"$f":"IF(TRIM(EO303)=\"\", \"\", IF(VLOOKUP(EO303,'Footnotes list'!$D$9:$E$58,2,FALSE)=0,\"\",VLOOKUP(EO303,'Footnotes list'!$D$9:$E$58,2,FALSE) ) )","v":""},null,null,null,null,{"$f":"IF(TRIM(ET303)=\"\", \"\", IF(VLOOKUP(ET303,'Footnotes list'!$D$9:$E$58,2,FALSE)=0,\"\",VLOOKUP(ET303,'Footnotes list'!$D$9:$E$58,2,FALSE) ) )","v":""},null,null,null,null,{"$f":"IF(TRIM(EY303)=\"\", \"\", IF(VLOOKUP(EY303,'Footnotes list'!$D$9:$E$58,2,FALSE)=0,\"\",VLOOKUP(EY303,'Footnotes list'!$D$9:$E$58,2,FALSE) ) )","v":""}]
[null,null,"U","NMKT","non-market activities",null,null,null,null,null,{"$f":"IF(TRIM(J304)=\"\", \"\", IF(VLOOKUP(J304,'Footnotes list'!$D$9:$E$58,2,FALSE)=0,\"\",VLOOKUP(J304,'Footnotes list'!$D$9:$E$58,2,FALSE) ) )","v":""},null,null,null,null,{"$f":"IF(TRIM(O304)=\"\", \"\", IF(VLOOKUP(O304,'Footnotes list'!$D$9:$E$58,2,FALSE)=0,\"\",VLOOKUP(O304,'Footnotes list'!$D$9:$E$58,2,FALSE) ) )","v":""},null,null,null,null,{"$f":"IF(TRIM(T304)=\"\", \"\", IF(VLOOKUP(T304,'Footnotes list'!$D$9:$E$58,2,FALSE)=0,\"\",VLOOKUP(T304,'Footnotes list'!$D$9:$E$58,2,FALSE) ) )","v":""},null,null,null,null,{"$f":"IF(TRIM(Y304)=\"\", \"\", IF(VLOOKUP(Y304,'Footnotes list'!$D$9:$E$58,2,FALSE)=0,\"\",VLOOKUP(Y304,'Footnotes list'!$D$9:$E$58,2,FALSE) ) )","v":""},null,null,null,null,{"$f":"IF(TRIM(AD304)=\"\", \"\", IF(VLOOKUP(AD304,'Footnotes list'!$D$9:$E$58,2,FALSE)=0,\"\",VLOOKUP(AD304,'Footnotes list'!$D$9:$E$58,2,FALSE) ) )","v":""},null,null,null,null,{"$f":"IF(TRIM(AI304)=\"\", \"\", IF(VLOOKUP(AI304,'Footnotes list'!$D$9:$E$58,2,FALSE)=0,\"\",VLOOKUP(AI304,'Footnotes list'!$D$9:$E$58,2,FALSE) ) )","v":""},null,null,null,null,{"$f":"IF(TRIM(AN304)=\"\", \"\", IF(VLOOKUP(AN304,'Footnotes list'!$D$9:$E$58,2,FALSE)=0,\"\",VLOOKUP(AN304,'Footnotes list'!$D$9:$E$58,2,FALSE) ) )","v":""},null,null,null,null,{"$f":"IF(TRIM(AS304)=\"\", \"\", IF(VLOOKUP(AS304,'Footnotes list'!$D$9:$E$58,2,FALSE)=0,\"\",VLOOKUP(AS304,'Footnotes list'!$D$9:$E$58,2,FALSE) ) )","v":""},null,null,null,null,{"$f":"IF(TRIM(AX304)=\"\", \"\", IF(VLOOKUP(AX304,'Footnotes list'!$D$9:$E$58,2,FALSE)=0,\"\",VLOOKUP(AX304,'Footnotes list'!$D$9:$E$58,2,FALSE) ) )","v":""},null,null,null,null,{"$f":"IF(TRIM(BC304)=\"\", \"\", IF(VLOOKUP(BC304,'Footnotes list'!$D$9:$E$58,2,FALSE)=0,\"\",VLOOKUP(BC304,'Footnotes list'!$D$9:$E$58,2,FALSE) ) )","v":""},null,null,null,null,{"$f":"IF(TRIM(BH304)=\"\", \"\", IF(VLOOKUP(BH304,'Footnotes list'!$D$9:$E$58,2,FALSE)=0,\"\",VLOOKUP(BH304,'Footnotes list'!$D$9:$E$58,2,FALSE) ) )","v":""},null,null,null,null,{"$f":"IF(TRIM(BM304)=\"\", \"\", IF(VLOOKUP(BM304,'Footnotes list'!$D$9:$E$58,2,FALSE)=0,\"\",VLOOKUP(BM304,'Footnotes list'!$D$9:$E$58,2,FALSE) ) )","v":""},null,null,null,null,{"$f":"IF(TRIM(BR304)=\"\", \"\", IF(VLOOKUP(BR304,'Footnotes list'!$D$9:$E$58,2,FALSE)=0,\"\",VLOOKUP(BR304,'Footnotes list'!$D$9:$E$58,2,FALSE) ) )","v":""},null,null,null,null,{"$f":"IF(TRIM(BW304)=\"\", \"\", IF(VLOOKUP(BW304,'Footnotes list'!$D$9:$E$58,2,FALSE)=0,\"\",VLOOKUP(BW304,'Footnotes list'!$D$9:$E$58,2,FALSE) ) )","v":""},null,null,null,null,{"$f":"IF(TRIM(CB304)=\"\", \"\", IF(VLOOKUP(CB304,'Footnotes list'!$D$9:$E$58,2,FALSE)=0,\"\",VLOOKUP(CB304,'Footnotes list'!$D$9:$E$58,2,FALSE) ) )","v":""},null,null,null,null,{"$f":"IF(TRIM(CG304)=\"\", \"\", IF(VLOOKUP(CG304,'Footnotes list'!$D$9:$E$58,2,FALSE)=0,\"\",VLOOKUP(CG304,'Footnotes list'!$D$9:$E$58,2,FALSE) ) )","v":""},null,null,null,null,{"$f":"IF(TRIM(CL304)=\"\", \"\", IF(VLOOKUP(CL304,'Footnotes list'!$D$9:$E$58,2,FALSE)=0,\"\",VLOOKUP(CL304,'Footnotes list'!$D$9:$E$58,2,FALSE) ) )","v":""},null,null,null,null,{"$f":"IF(TRIM(CQ304)=\"\", \"\", IF(VLOOKUP(CQ304,'Footnotes list'!$D$9:$E$58,2,FALSE)=0,\"\",VLOOKUP(CQ304,'Footnotes list'!$D$9:$E$58,2,FALSE) ) )","v":""},null,null,null,null,{"$f":"IF(TRIM(CV304)=\"\", \"\", IF(VLOOKUP(CV304,'Footnotes list'!$D$9:$E$58,2,FALSE)=0,\"\",VLOOKUP(CV304,'Footnotes list'!$D$9:$E$58,2,FALSE) ) )","v":""},null,null,null,null,{"$f":"IF(TRIM(DA304)=\"\", \"\", IF(VLOOKUP(DA304,'Footnotes list'!$D$9:$E$58,2,FALSE)=0,\"\",VLOOKUP(DA304,'Footnotes list'!$D$9:$E$58,2,FALSE) ) )","v":""},null,null,null,null,{"$f":"IF(TRIM(DF304)=\"\", \"\", IF(VLOOKUP(DF304,'Footnotes list'!$D$9:$E$58,2,FALSE)=0,\"\",VLOOKUP(DF304,'Footnotes list'!$D$9:$E$58,2,FALSE) ) )","v":""},null,null,null,null,{"$f":"IF(TRIM(DK304)=\"\", \"\", IF(VLOOKUP(DK304,'Footnotes list'!$D$9:$E$58,2,FALSE)=0,\"\",VLOOKUP(DK304,'Footnotes list'!$D$9:$E$58,2,FALSE) ) )","v":""},null,null,null,null,{"$f":"IF(TRIM(DP304)=\"\", \"\", IF(VLOOKUP(DP304,'Footnotes list'!$D$9:$E$58,2,FALSE)=0,\"\",VLOOKUP(DP304,'Footnotes list'!$D$9:$E$58,2,FALSE) ) )","v":""},null,null,null,null,{"$f":"IF(TRIM(DU304)=\"\", \"\", IF(VLOOKUP(DU304,'Footnotes list'!$D$9:$E$58,2,FALSE)=0,\"\",VLOOKUP(DU304,'Footnotes list'!$D$9:$E$58,2,FALSE) ) )","v":""},null,null,null,null,{"$f":"IF(TRIM(DZ304)=\"\", \"\", IF(VLOOKUP(DZ304,'Footnotes list'!$D$9:$E$58,2,FALSE)=0,\"\",VLOOKUP(DZ304,'Footnotes list'!$D$9:$E$58,2,FALSE) ) )","v":""},null,null,null,null,{"$f":"IF(TRIM(EE304)=\"\", \"\", IF(VLOOKUP(EE304,'Footnotes list'!$D$9:$E$58,2,FALSE)=0,\"\",VLOOKUP(EE304,'Footnotes list'!$D$9:$E$58,2,FALSE) ) )","v":""},null,null,null,null,{"$f":"IF(TRIM(EJ304)=\"\", \"\", IF(VLOOKUP(EJ304,'Footnotes list'!$D$9:$E$58,2,FALSE)=0,\"\",VLOOKUP(EJ304,'Footnotes list'!$D$9:$E$58,2,FALSE) ) )","v":""},null,null,null,null,{"$f":"IF(TRIM(EO304)=\"\", \"\", IF(VLOOKUP(EO304,'Footnotes list'!$D$9:$E$58,2,FALSE)=0,\"\",VLOOKUP(EO304,'Footnotes list'!$D$9:$E$58,2,FALSE) ) )","v":""},null,null,null,null,{"$f":"IF(TRIM(ET304)=\"\", \"\", IF(VLOOKUP(ET304,'Footnotes list'!$D$9:$E$58,2,FALSE)=0,\"\",VLOOKUP(ET304,'Footnotes list'!$D$9:$E$58,2,FALSE) ) )","v":""},null,null,null,null,{"$f":"IF(TRIM(EY304)=\"\", \"\", IF(VLOOKUP(EY304,'Footnotes list'!$D$9:$E$58,2,FALSE)=0,\"\",VLOOKUP(EY304,'Footnotes list'!$D$9:$E$58,2,FALSE) ) )","v":""}]
[null,null,"U","OWN_USE","activities for own final use",null,null,null,null,null,{"$f":"IF(TRIM(J305)=\"\", \"\", IF(VLOOKUP(J305,'Footnotes list'!$D$9:$E$58,2,FALSE)=0,\"\",VLOOKUP(J305,'Footnotes list'!$D$9:$E$58,2,FALSE) ) )","v":""},null,null,null,null,{"$f":"IF(TRIM(O305)=\"\", \"\", IF(VLOOKUP(O305,'Footnotes list'!$D$9:$E$58,2,FALSE)=0,\"\",VLOOKUP(O305,'Footnotes list'!$D$9:$E$58,2,FALSE) ) )","v":""},null,null,null,null,{"$f":"IF(TRIM(T305)=\"\", \"\", IF(VLOOKUP(T305,'Footnotes list'!$D$9:$E$58,2,FALSE)=0,\"\",VLOOKUP(T305,'Footnotes list'!$D$9:$E$58,2,FALSE) ) )","v":""},null,null,null,null,{"$f":"IF(TRIM(Y305)=\"\", \"\", IF(VLOOKUP(Y305,'Footnotes list'!$D$9:$E$58,2,FALSE)=0,\"\",VLOOKUP(Y305,'Footnotes list'!$D$9:$E$58,2,FALSE) ) )","v":""},null,null,null,null,{"$f":"IF(TRIM(AD305)=\"\", \"\", IF(VLOOKUP(AD305,'Footnotes list'!$D$9:$E$58,2,FALSE)=0,\"\",VLOOKUP(AD305,'Footnotes list'!$D$9:$E$58,2,FALSE) ) )","v":""},null,null,null,null,{"$f":"IF(TRIM(AI305)=\"\", \"\", IF(VLOOKUP(AI305,'Footnotes list'!$D$9:$E$58,2,FALSE)=0,\"\",VLOOKUP(AI305,'Footnotes list'!$D$9:$E$58,2,FALSE) ) )","v":""},null,null,null,null,{"$f":"IF(TRIM(AN305)=\"\", \"\", IF(VLOOKUP(AN305,'Footnotes list'!$D$9:$E$58,2,FALSE)=0,\"\",VLOOKUP(AN305,'Footnotes list'!$D$9:$E$58,2,FALSE) ) )","v":""},null,null,null,null,{"$f":"IF(TRIM(AS305)=\"\", \"\", IF(VLOOKUP(AS305,'Footnotes list'!$D$9:$E$58,2,FALSE)=0,\"\",VLOOKUP(AS305,'Footnotes list'!$D$9:$E$58,2,FALSE) ) )","v":""},null,null,null,null,{"$f":"IF(TRIM(AX305)=\"\", \"\", IF(VLOOKUP(AX305,'Footnotes list'!$D$9:$E$58,2,FALSE)=0,\"\",VLOOKUP(AX305,'Footnotes list'!$D$9:$E$58,2,FALSE) ) )","v":""},null,null,null,null,{"$f":"IF(TRIM(BC305)=\"\", \"\", IF(VLOOKUP(BC305,'Footnotes list'!$D$9:$E$58,2,FALSE)=0,\"\",VLOOKUP(BC305,'Footnotes list'!$D$9:$E$58,2,FALSE) ) )","v":""},null,null,null,null,{"$f":"IF(TRIM(BH305)=\"\", \"\", IF(VLOOKUP(BH305,'Footnotes list'!$D$9:$E$58,2,FALSE)=0,\"\",VLOOKUP(BH305,'Footnotes list'!$D$9:$E$58,2,FALSE) ) )","v":""},null,null,null,null,{"$f":"IF(TRIM(BM305)=\"\", \"\", IF(VLOOKUP(BM305,'Footnotes list'!$D$9:$E$58,2,FALSE)=0,\"\",VLOOKUP(BM305,'Footnotes list'!$D$9:$E$58,2,FALSE) ) )","v":""},null,null,null,null,{"$f":"IF(TRIM(BR305)=\"\", \"\", IF(VLOOKUP(BR305,'Footnotes list'!$D$9:$E$58,2,FALSE)=0,\"\",VLOOKUP(BR305,'Footnotes list'!$D$9:$E$58,2,FALSE) ) )","v":""},null,null,null,null,{"$f":"IF(TRIM(BW305)=\"\", \"\", IF(VLOOKUP(BW305,'Footnotes list'!$D$9:$E$58,2,FALSE)=0,\"\",VLOOKUP(BW305,'Footnotes list'!$D$9:$E$58,2,FALSE) ) )","v":""},null,null,null,null,{"$f":"IF(TRIM(CB305)=\"\", \"\", IF(VLOOKUP(CB305,'Footnotes list'!$D$9:$E$58,2,FALSE)=0,\"\",VLOOKUP(CB305,'Footnotes list'!$D$9:$E$58,2,FALSE) ) )","v":""},null,null,null,null,{"$f":"IF(TRIM(CG305)=\"\", \"\", IF(VLOOKUP(CG305,'Footnotes list'!$D$9:$E$58,2,FALSE)=0,\"\",VLOOKUP(CG305,'Footnotes list'!$D$9:$E$58,2,FALSE) ) )","v":""},null,null,null,null,{"$f":"IF(TRIM(CL305)=\"\", \"\", IF(VLOOKUP(CL305,'Footnotes list'!$D$9:$E$58,2,FALSE)=0,\"\",VLOOKUP(CL305,'Footnotes list'!$D$9:$E$58,2,FALSE) ) )","v":""},null,null,null,null,{"$f":"IF(TRIM(CQ305)=\"\", \"\", IF(VLOOKUP(CQ305,'Footnotes list'!$D$9:$E$58,2,FALSE)=0,\"\",VLOOKUP(CQ305,'Footnotes list'!$D$9:$E$58,2,FALSE) ) )","v":""},null,null,null,null,{"$f":"IF(TRIM(CV305)=\"\", \"\", IF(VLOOKUP(CV305,'Footnotes list'!$D$9:$E$58,2,FALSE)=0,\"\",VLOOKUP(CV305,'Footnotes list'!$D$9:$E$58,2,FALSE) ) )","v":""},null,null,null,null,{"$f":"IF(TRIM(DA305)=\"\", \"\", IF(VLOOKUP(DA305,'Footnotes list'!$D$9:$E$58,2,FALSE)=0,\"\",VLOOKUP(DA305,'Footnotes list'!$D$9:$E$58,2,FALSE) ) )","v":""},null,null,null,null,{"$f":"IF(TRIM(DF305)=\"\", \"\", IF(VLOOKUP(DF305,'Footnotes list'!$D$9:$E$58,2,FALSE)=0,\"\",VLOOKUP(DF305,'Footnotes list'!$D$9:$E$58,2,FALSE) ) )","v":""},null,null,null,null,{"$f":"IF(TRIM(DK305)=\"\", \"\", IF(VLOOKUP(DK305,'Footnotes list'!$D$9:$E$58,2,FALSE)=0,\"\",VLOOKUP(DK305,'Footnotes list'!$D$9:$E$58,2,FALSE) ) )","v":""},null,null,null,null,{"$f":"IF(TRIM(DP305)=\"\", \"\", IF(VLOOKUP(DP305,'Footnotes list'!$D$9:$E$58,2,FALSE)=0,\"\",VLOOKUP(DP305,'Footnotes list'!$D$9:$E$58,2,FALSE) ) )","v":""},null,null,null,null,{"$f":"IF(TRIM(DU305)=\"\", \"\", IF(VLOOKUP(DU305,'Footnotes list'!$D$9:$E$58,2,FALSE)=0,\"\",VLOOKUP(DU305,'Footnotes list'!$D$9:$E$58,2,FALSE) ) )","v":""},null,null,null,null,{"$f":"IF(TRIM(DZ305)=\"\", \"\", IF(VLOOKUP(DZ305,'Footnotes list'!$D$9:$E$58,2,FALSE)=0,\"\",VLOOKUP(DZ305,'Footnotes list'!$D$9:$E$58,2,FALSE) ) )","v":""},null,null,null,null,{"$f":"IF(TRIM(EE305)=\"\", \"\", IF(VLOOKUP(EE305,'Footnotes list'!$D$9:$E$58,2,FALSE)=0,\"\",VLOOKUP(EE305,'Footnotes list'!$D$9:$E$58,2,FALSE) ) )","v":""},null,null,null,null,{"$f":"IF(TRIM(EJ305)=\"\", \"\", IF(VLOOKUP(EJ305,'Footnotes list'!$D$9:$E$58,2,FALSE)=0,\"\",VLOOKUP(EJ305,'Footnotes list'!$D$9:$E$58,2,FALSE) ) )","v":""},null,null,null,null,{"$f":"IF(TRIM(EO305)=\"\", \"\", IF(VLOOKUP(EO305,'Footnotes list'!$D$9:$E$58,2,FALSE)=0,\"\",VLOOKUP(EO305,'Footnotes list'!$D$9:$E$58,2,FALSE) ) )","v":""},null,null,null,null,{"$f":"IF(TRIM(ET305)=\"\", \"\", IF(VLOOKUP(ET305,'Footnotes list'!$D$9:$E$58,2,FALSE)=0,\"\",VLOOKUP(ET305,'Footnotes list'!$D$9:$E$58,2,FALSE) ) )","v":""},null,null,null,null,{"$f":"IF(TRIM(EY305)=\"\", \"\", IF(VLOOKUP(EY305,'Footnotes list'!$D$9:$E$58,2,FALSE)=0,\"\",VLOOKUP(EY305,'Footnotes list'!$D$9:$E$58,2,FALSE) ) )","v":""}]
[null,null,"U","MKT","market activities, including:",null,null,null,null,null,{"$f":"IF(TRIM(J306)=\"\", \"\", IF(VLOOKUP(J306,'Footnotes list'!$D$9:$E$58,2,FALSE)=0,\"\",VLOOKUP(J306,'Footnotes list'!$D$9:$E$58,2,FALSE) ) )","v":""},null,null,null,null,{"$f":"IF(TRIM(O306)=\"\", \"\", IF(VLOOKUP(O306,'Footnotes list'!$D$9:$E$58,2,FALSE)=0,\"\",VLOOKUP(O306,'Footnotes list'!$D$9:$E$58,2,FALSE) ) )","v":""},null,null,null,null,{"$f":"IF(TRIM(T306)=\"\", \"\", IF(VLOOKUP(T306,'Footnotes list'!$D$9:$E$58,2,FALSE)=0,\"\",VLOOKUP(T306,'Footnotes list'!$D$9:$E$58,2,FALSE) ) )","v":""},null,null,null,null,{"$f":"IF(TRIM(Y306)=\"\", \"\", IF(VLOOKUP(Y306,'Footnotes list'!$D$9:$E$58,2,FALSE)=0,\"\",VLOOKUP(Y306,'Footnotes list'!$D$9:$E$58,2,FALSE) ) )","v":""},null,null,null,null,{"$f":"IF(TRIM(AD306)=\"\", \"\", IF(VLOOKUP(AD306,'Footnotes list'!$D$9:$E$58,2,FALSE)=0,\"\",VLOOKUP(AD306,'Footnotes list'!$D$9:$E$58,2,FALSE) ) )","v":""},null,null,null,null,{"$f":"IF(TRIM(AI306)=\"\", \"\", IF(VLOOKUP(AI306,'Footnotes list'!$D$9:$E$58,2,FALSE)=0,\"\",VLOOKUP(AI306,'Footnotes list'!$D$9:$E$58,2,FALSE) ) )","v":""},null,null,null,null,{"$f":"IF(TRIM(AN306)=\"\", \"\", IF(VLOOKUP(AN306,'Footnotes list'!$D$9:$E$58,2,FALSE)=0,\"\",VLOOKUP(AN306,'Footnotes list'!$D$9:$E$58,2,FALSE) ) )","v":""},null,null,null,null,{"$f":"IF(TRIM(AS306)=\"\", \"\", IF(VLOOKUP(AS306,'Footnotes list'!$D$9:$E$58,2,FALSE)=0,\"\",VLOOKUP(AS306,'Footnotes list'!$D$9:$E$58,2,FALSE) ) )","v":""},null,null,null,null,{"$f":"IF(TRIM(AX306)=\"\", \"\", IF(VLOOKUP(AX306,'Footnotes list'!$D$9:$E$58,2,FALSE)=0,\"\",VLOOKUP(AX306,'Footnotes list'!$D$9:$E$58,2,FALSE) ) )","v":""},null,null,null,null,{"$f":"IF(TRIM(BC306)=\"\", \"\", IF(VLOOKUP(BC306,'Footnotes list'!$D$9:$E$58,2,FALSE)=0,\"\",VLOOKUP(BC306,'Footnotes list'!$D$9:$E$58,2,FALSE) ) )","v":""},null,null,null,null,{"$f":"IF(TRIM(BH306)=\"\", \"\", IF(VLOOKUP(BH306,'Footnotes list'!$D$9:$E$58,2,FALSE)=0,\"\",VLOOKUP(BH306,'Footnotes list'!$D$9:$E$58,2,FALSE) ) )","v":""},null,null,null,null,{"$f":"IF(TRIM(BM306)=\"\", \"\", IF(VLOOKUP(BM306,'Footnotes list'!$D$9:$E$58,2,FALSE)=0,\"\",VLOOKUP(BM306,'Footnotes list'!$D$9:$E$58,2,FALSE) ) )","v":""},null,null,null,null,{"$f":"IF(TRIM(BR306)=\"\", \"\", IF(VLOOKUP(BR306,'Footnotes list'!$D$9:$E$58,2,FALSE)=0,\"\",VLOOKUP(BR306,'Footnotes list'!$D$9:$E$58,2,FALSE) ) )","v":""},null,null,null,null,{"$f":"IF(TRIM(BW306)=\"\", \"\", IF(VLOOKUP(BW306,'Footnotes list'!$D$9:$E$58,2,FALSE)=0,\"\",VLOOKUP(BW306,'Footnotes list'!$D$9:$E$58,2,FALSE) ) )","v":""},null,null,null,null,{"$f":"IF(TRIM(CB306)=\"\", \"\", IF(VLOOKUP(CB306,'Footnotes list'!$D$9:$E$58,2,FALSE)=0,\"\",VLOOKUP(CB306,'Footnotes list'!$D$9:$E$58,2,FALSE) ) )","v":""},null,null,null,null,{"$f":"IF(TRIM(CG306)=\"\", \"\", IF(VLOOKUP(CG306,'Footnotes list'!$D$9:$E$58,2,FALSE)=0,\"\",VLOOKUP(CG306,'Footnotes list'!$D$9:$E$58,2,FALSE) ) )","v":""},null,null,null,null,{"$f":"IF(TRIM(CL306)=\"\", \"\", IF(VLOOKUP(CL306,'Footnotes list'!$D$9:$E$58,2,FALSE)=0,\"\",VLOOKUP(CL306,'Footnotes list'!$D$9:$E$58,2,FALSE) ) )","v":""},null,null,null,null,{"$f":"IF(TRIM(CQ306)=\"\", \"\", IF(VLOOKUP(CQ306,'Footnotes list'!$D$9:$E$58,2,FALSE)=0,\"\",VLOOKUP(CQ306,'Footnotes list'!$D$9:$E$58,2,FALSE) ) )","v":""},null,null,null,null,{"$f":"IF(TRIM(CV306)=\"\", \"\", IF(VLOOKUP(CV306,'Footnotes list'!$D$9:$E$58,2,FALSE)=0,\"\",VLOOKUP(CV306,'Footnotes list'!$D$9:$E$58,2,FALSE) ) )","v":""},null,null,null,null,{"$f":"IF(TRIM(DA306)=\"\", \"\", IF(VLOOKUP(DA306,'Footnotes list'!$D$9:$E$58,2,FALSE)=0,\"\",VLOOKUP(DA306,'Footnotes list'!$D$9:$E$58,2,FALSE) ) )","v":""},null,null,null,null,{"$f":"IF(TRIM(DF306)=\"\", \"\", IF(VLOOKUP(DF306,'Footnotes list'!$D$9:$E$58,2,FALSE)=0,\"\",VLOOKUP(DF306,'Footnotes list'!$D$9:$E$58,2,FALSE) ) )","v":""},null,null,null,null,{"$f":"IF(TRIM(DK306)=\"\", \"\", IF(VLOOKUP(DK306,'Footnotes list'!$D$9:$E$58,2,FALSE)=0,\"\",VLOOKUP(DK306,'Footnotes list'!$D$9:$E$58,2,FALSE) ) )","v":""},null,null,null,null,{"$f":"IF(TRIM(DP306)=\"\", \"\", IF(VLOOKUP(DP306,'Footnotes list'!$D$9:$E$58,2,FALSE)=0,\"\",VLOOKUP(DP306,'Footnotes list'!$D$9:$E$58,2,FALSE) ) )","v":""},null,null,null,null,{"$f":"IF(TRIM(DU306)=\"\", \"\", IF(VLOOKUP(DU306,'Footnotes list'!$D$9:$E$58,2,FALSE)=0,\"\",VLOOKUP(DU306,'Footnotes list'!$D$9:$E$58,2,FALSE) ) )","v":""},null,null,null,null,{"$f":"IF(TRIM(DZ306)=\"\", \"\", IF(VLOOKUP(DZ306,'Footnotes list'!$D$9:$E$58,2,FALSE)=0,\"\",VLOOKUP(DZ306,'Footnotes list'!$D$9:$E$58,2,FALSE) ) )","v":""},null,null,null,null,{"$f":"IF(TRIM(EE306)=\"\", \"\", IF(VLOOKUP(EE306,'Footnotes list'!$D$9:$E$58,2,FALSE)=0,\"\",VLOOKUP(EE306,'Footnotes list'!$D$9:$E$58,2,FALSE) ) )","v":""},null,null,null,null,{"$f":"IF(TRIM(EJ306)=\"\", \"\", IF(VLOOKUP(EJ306,'Footnotes list'!$D$9:$E$58,2,FALSE)=0,\"\",VLOOKUP(EJ306,'Footnotes list'!$D$9:$E$58,2,FALSE) ) )","v":""},null,null,null,null,{"$f":"IF(TRIM(EO306)=\"\", \"\", IF(VLOOKUP(EO306,'Footnotes list'!$D$9:$E$58,2,FALSE)=0,\"\",VLOOKUP(EO306,'Footnotes list'!$D$9:$E$58,2,FALSE) ) )","v":""},null,null,null,null,{"$f":"IF(TRIM(ET306)=\"\", \"\", IF(VLOOKUP(ET306,'Footnotes list'!$D$9:$E$58,2,FALSE)=0,\"\",VLOOKUP(ET306,'Footnotes list'!$D$9:$E$58,2,FALSE) ) )","v":""},null,null,null,null,{"$f":"IF(TRIM(EY306)=\"\", \"\", IF(VLOOKUP(EY306,'Footnotes list'!$D$9:$E$58,2,FALSE)=0,\"\",VLOOKUP(EY306,'Footnotes list'!$D$9:$E$58,2,FALSE) ) )","v":""}]
[null,null,"U","ES_CS","environmental specific services",null,null,null,null,null,{"$f":"IF(TRIM(J307)=\"\", \"\", IF(VLOOKUP(J307,'Footnotes list'!$D$9:$E$58,2,FALSE)=0,\"\",VLOOKUP(J307,'Footnotes list'!$D$9:$E$58,2,FALSE) ) )","v":""},null,null,null,null,{"$f":"IF(TRIM(O307)=\"\", \"\", IF(VLOOKUP(O307,'Footnotes list'!$D$9:$E$58,2,FALSE)=0,\"\",VLOOKUP(O307,'Footnotes list'!$D$9:$E$58,2,FALSE) ) )","v":""},null,null,null,null,{"$f":"IF(TRIM(T307)=\"\", \"\", IF(VLOOKUP(T307,'Footnotes list'!$D$9:$E$58,2,FALSE)=0,\"\",VLOOKUP(T307,'Footnotes list'!$D$9:$E$58,2,FALSE) ) )","v":""},null,null,null,null,{"$f":"IF(TRIM(Y307)=\"\", \"\", IF(VLOOKUP(Y307,'Footnotes list'!$D$9:$E$58,2,FALSE)=0,\"\",VLOOKUP(Y307,'Footnotes list'!$D$9:$E$58,2,FALSE) ) )","v":""},null,null,null,null,{"$f":"IF(TRIM(AD307)=\"\", \"\", IF(VLOOKUP(AD307,'Footnotes list'!$D$9:$E$58,2,FALSE)=0,\"\",VLOOKUP(AD307,'Footnotes list'!$D$9:$E$58,2,FALSE) ) )","v":""},null,null,null,null,{"$f":"IF(TRIM(AI307)=\"\", \"\", IF(VLOOKUP(AI307,'Footnotes list'!$D$9:$E$58,2,FALSE)=0,\"\",VLOOKUP(AI307,'Footnotes list'!$D$9:$E$58,2,FALSE) ) )","v":""},null,null,null,null,{"$f":"IF(TRIM(AN307)=\"\", \"\", IF(VLOOKUP(AN307,'Footnotes list'!$D$9:$E$58,2,FALSE)=0,\"\",VLOOKUP(AN307,'Footnotes list'!$D$9:$E$58,2,FALSE) ) )","v":""},null,null,null,null,{"$f":"IF(TRIM(AS307)=\"\", \"\", IF(VLOOKUP(AS307,'Footnotes list'!$D$9:$E$58,2,FALSE)=0,\"\",VLOOKUP(AS307,'Footnotes list'!$D$9:$E$58,2,FALSE) ) )","v":""},null,null,null,null,{"$f":"IF(TRIM(AX307)=\"\", \"\", IF(VLOOKUP(AX307,'Footnotes list'!$D$9:$E$58,2,FALSE)=0,\"\",VLOOKUP(AX307,'Footnotes list'!$D$9:$E$58,2,FALSE) ) )","v":""},null,null,null,null,{"$f":"IF(TRIM(BC307)=\"\", \"\", IF(VLOOKUP(BC307,'Footnotes list'!$D$9:$E$58,2,FALSE)=0,\"\",VLOOKUP(BC307,'Footnotes list'!$D$9:$E$58,2,FALSE) ) )","v":""},null,null,null,null,{"$f":"IF(TRIM(BH307)=\"\", \"\", IF(VLOOKUP(BH307,'Footnotes list'!$D$9:$E$58,2,FALSE)=0,\"\",VLOOKUP(BH307,'Footnotes list'!$D$9:$E$58,2,FALSE) ) )","v":""},null,null,null,null,{"$f":"IF(TRIM(BM307)=\"\", \"\", IF(VLOOKUP(BM307,'Footnotes list'!$D$9:$E$58,2,FALSE)=0,\"\",VLOOKUP(BM307,'Footnotes list'!$D$9:$E$58,2,FALSE) ) )","v":""},null,null,null,null,{"$f":"IF(TRIM(BR307)=\"\", \"\", IF(VLOOKUP(BR307,'Footnotes list'!$D$9:$E$58,2,FALSE)=0,\"\",VLOOKUP(BR307,'Footnotes list'!$D$9:$E$58,2,FALSE) ) )","v":""},null,null,null,null,{"$f":"IF(TRIM(BW307)=\"\", \"\", IF(VLOOKUP(BW307,'Footnotes list'!$D$9:$E$58,2,FALSE)=0,\"\",VLOOKUP(BW307,'Footnotes list'!$D$9:$E$58,2,FALSE) ) )","v":""},null,null,null,null,{"$f":"IF(TRIM(CB307)=\"\", \"\", IF(VLOOKUP(CB307,'Footnotes list'!$D$9:$E$58,2,FALSE)=0,\"\",VLOOKUP(CB307,'Footnotes list'!$D$9:$E$58,2,FALSE) ) )","v":""},null,null,null,null,{"$f":"IF(TRIM(CG307)=\"\", \"\", IF(VLOOKUP(CG307,'Footnotes list'!$D$9:$E$58,2,FALSE)=0,\"\",VLOOKUP(CG307,'Footnotes list'!$D$9:$E$58,2,FALSE) ) )","v":""},null,null,null,null,{"$f":"IF(TRIM(CL307)=\"\", \"\", IF(VLOOKUP(CL307,'Footnotes list'!$D$9:$E$58,2,FALSE)=0,\"\",VLOOKUP(CL307,'Footnotes list'!$D$9:$E$58,2,FALSE) ) )","v":""},null,null,null,null,{"$f":"IF(TRIM(CQ307)=\"\", \"\", IF(VLOOKUP(CQ307,'Footnotes list'!$D$9:$E$58,2,FALSE)=0,\"\",VLOOKUP(CQ307,'Footnotes list'!$D$9:$E$58,2,FALSE) ) )","v":""},null,null,null,null,{"$f":"IF(TRIM(CV307)=\"\", \"\", IF(VLOOKUP(CV307,'Footnotes list'!$D$9:$E$58,2,FALSE)=0,\"\",VLOOKUP(CV307,'Footnotes list'!$D$9:$E$58,2,FALSE) ) )","v":""},null,null,null,null,{"$f":"IF(TRIM(DA307)=\"\", \"\", IF(VLOOKUP(DA307,'Footnotes list'!$D$9:$E$58,2,FALSE)=0,\"\",VLOOKUP(DA307,'Footnotes list'!$D$9:$E$58,2,FALSE) ) )","v":""},null,null,null,null,{"$f":"IF(TRIM(DF307)=\"\", \"\", IF(VLOOKUP(DF307,'Footnotes list'!$D$9:$E$58,2,FALSE)=0,\"\",VLOOKUP(DF307,'Footnotes list'!$D$9:$E$58,2,FALSE) ) )","v":""},null,null,null,null,{"$f":"IF(TRIM(DK307)=\"\", \"\", IF(VLOOKUP(DK307,'Footnotes list'!$D$9:$E$58,2,FALSE)=0,\"\",VLOOKUP(DK307,'Footnotes list'!$D$9:$E$58,2,FALSE) ) )","v":""},null,null,null,null,{"$f":"IF(TRIM(DP307)=\"\", \"\", IF(VLOOKUP(DP307,'Footnotes list'!$D$9:$E$58,2,FALSE)=0,\"\",VLOOKUP(DP307,'Footnotes list'!$D$9:$E$58,2,FALSE) ) )","v":""},null,null,null,null,{"$f":"IF(TRIM(DU307)=\"\", \"\", IF(VLOOKUP(DU307,'Footnotes list'!$D$9:$E$58,2,FALSE)=0,\"\",VLOOKUP(DU307,'Footnotes list'!$D$9:$E$58,2,FALSE) ) )","v":""},null,null,null,null,{"$f":"IF(TRIM(DZ307)=\"\", \"\", IF(VLOOKUP(DZ307,'Footnotes list'!$D$9:$E$58,2,FALSE)=0,\"\",VLOOKUP(DZ307,'Footnotes list'!$D$9:$E$58,2,FALSE) ) )","v":""},null,null,null,null,{"$f":"IF(TRIM(EE307)=\"\", \"\", IF(VLOOKUP(EE307,'Footnotes list'!$D$9:$E$58,2,FALSE)=0,\"\",VLOOKUP(EE307,'Footnotes list'!$D$9:$E$58,2,FALSE) ) )","v":""},null,null,null,null,{"$f":"IF(TRIM(EJ307)=\"\", \"\", IF(VLOOKUP(EJ307,'Footnotes list'!$D$9:$E$58,2,FALSE)=0,\"\",VLOOKUP(EJ307,'Footnotes list'!$D$9:$E$58,2,FALSE) ) )","v":""},null,null,null,null,{"$f":"IF(TRIM(EO307)=\"\", \"\", IF(VLOOKUP(EO307,'Footnotes list'!$D$9:$E$58,2,FALSE)=0,\"\",VLOOKUP(EO307,'Footnotes list'!$D$9:$E$58,2,FALSE) ) )","v":""},null,null,null,null,{"$f":"IF(TRIM(ET307)=\"\", \"\", IF(VLOOKUP(ET307,'Footnotes list'!$D$9:$E$58,2,FALSE)=0,\"\",VLOOKUP(ET307,'Footnotes list'!$D$9:$E$58,2,FALSE) ) )","v":""},null,null,null,null,{"$f":"IF(TRIM(EY307)=\"\", \"\", IF(VLOOKUP(EY307,'Footnotes list'!$D$9:$E$58,2,FALSE)=0,\"\",VLOOKUP(EY307,'Footnotes list'!$D$9:$E$58,2,FALSE) ) )","v":""}]
[null,null,"U","C_REP","cleaner and resource efficient products",null,null,null,null,null,{"$f":"IF(TRIM(J308)=\"\", \"\", IF(VLOOKUP(J308,'Footnotes list'!$D$9:$E$58,2,FALSE)=0,\"\",VLOOKUP(J308,'Footnotes list'!$D$9:$E$58,2,FALSE) ) )","v":""},null,null,null,null,{"$f":"IF(TRIM(O308)=\"\", \"\", IF(VLOOKUP(O308,'Footnotes list'!$D$9:$E$58,2,FALSE)=0,\"\",VLOOKUP(O308,'Footnotes list'!$D$9:$E$58,2,FALSE) ) )","v":""},null,null,null,null,{"$f":"IF(TRIM(T308)=\"\", \"\", IF(VLOOKUP(T308,'Footnotes list'!$D$9:$E$58,2,FALSE)=0,\"\",VLOOKUP(T308,'Footnotes list'!$D$9:$E$58,2,FALSE) ) )","v":""},null,null,null,null,{"$f":"IF(TRIM(Y308)=\"\", \"\", IF(VLOOKUP(Y308,'Footnotes list'!$D$9:$E$58,2,FALSE)=0,\"\",VLOOKUP(Y308,'Footnotes list'!$D$9:$E$58,2,FALSE) ) )","v":""},null,null,null,null,{"$f":"IF(TRIM(AD308)=\"\", \"\", IF(VLOOKUP(AD308,'Footnotes list'!$D$9:$E$58,2,FALSE)=0,\"\",VLOOKUP(AD308,'Footnotes list'!$D$9:$E$58,2,FALSE) ) )","v":""},null,null,null,null,{"$f":"IF(TRIM(AI308)=\"\", \"\", IF(VLOOKUP(AI308,'Footnotes list'!$D$9:$E$58,2,FALSE)=0,\"\",VLOOKUP(AI308,'Footnotes list'!$D$9:$E$58,2,FALSE) ) )","v":""},null,null,null,null,{"$f":"IF(TRIM(AN308)=\"\", \"\", IF(VLOOKUP(AN308,'Footnotes list'!$D$9:$E$58,2,FALSE)=0,\"\",VLOOKUP(AN308,'Footnotes list'!$D$9:$E$58,2,FALSE) ) )","v":""},null,null,null,null,{"$f":"IF(TRIM(AS308)=\"\", \"\", IF(VLOOKUP(AS308,'Footnotes list'!$D$9:$E$58,2,FALSE)=0,\"\",VLOOKUP(AS308,'Footnotes list'!$D$9:$E$58,2,FALSE) ) )","v":""},null,null,null,null,{"$f":"IF(TRIM(AX308)=\"\", \"\", IF(VLOOKUP(AX308,'Footnotes list'!$D$9:$E$58,2,FALSE)=0,\"\",VLOOKUP(AX308,'Footnotes list'!$D$9:$E$58,2,FALSE) ) )","v":""},null,null,null,null,{"$f":"IF(TRIM(BC308)=\"\", \"\", IF(VLOOKUP(BC308,'Footnotes list'!$D$9:$E$58,2,FALSE)=0,\"\",VLOOKUP(BC308,'Footnotes list'!$D$9:$E$58,2,FALSE) ) )","v":""},null,null,null,null,{"$f":"IF(TRIM(BH308)=\"\", \"\", IF(VLOOKUP(BH308,'Footnotes list'!$D$9:$E$58,2,FALSE)=0,\"\",VLOOKUP(BH308,'Footnotes list'!$D$9:$E$58,2,FALSE) ) )","v":""},null,null,null,null,{"$f":"IF(TRIM(BM308)=\"\", \"\", IF(VLOOKUP(BM308,'Footnotes list'!$D$9:$E$58,2,FALSE)=0,\"\",VLOOKUP(BM308,'Footnotes list'!$D$9:$E$58,2,FALSE) ) )","v":""},null,null,null,null,{"$f":"IF(TRIM(BR308)=\"\", \"\", IF(VLOOKUP(BR308,'Footnotes list'!$D$9:$E$58,2,FALSE)=0,\"\",VLOOKUP(BR308,'Footnotes list'!$D$9:$E$58,2,FALSE) ) )","v":""},null,null,null,null,{"$f":"IF(TRIM(BW308)=\"\", \"\", IF(VLOOKUP(BW308,'Footnotes list'!$D$9:$E$58,2,FALSE)=0,\"\",VLOOKUP(BW308,'Footnotes list'!$D$9:$E$58,2,FALSE) ) )","v":""},null,null,null,null,{"$f":"IF(TRIM(CB308)=\"\", \"\", IF(VLOOKUP(CB308,'Footnotes list'!$D$9:$E$58,2,FALSE)=0,\"\",VLOOKUP(CB308,'Footnotes list'!$D$9:$E$58,2,FALSE) ) )","v":""},null,null,null,null,{"$f":"IF(TRIM(CG308)=\"\", \"\", IF(VLOOKUP(CG308,'Footnotes list'!$D$9:$E$58,2,FALSE)=0,\"\",VLOOKUP(CG308,'Footnotes list'!$D$9:$E$58,2,FALSE) ) )","v":""},null,null,null,null,{"$f":"IF(TRIM(CL308)=\"\", \"\", IF(VLOOKUP(CL308,'Footnotes list'!$D$9:$E$58,2,FALSE)=0,\"\",VLOOKUP(CL308,'Footnotes list'!$D$9:$E$58,2,FALSE) ) )","v":""},null,null,null,null,{"$f":"IF(TRIM(CQ308)=\"\", \"\", IF(VLOOKUP(CQ308,'Footnotes list'!$D$9:$E$58,2,FALSE)=0,\"\",VLOOKUP(CQ308,'Footnotes list'!$D$9:$E$58,2,FALSE) ) )","v":""},null,null,null,null,{"$f":"IF(TRIM(CV308)=\"\", \"\", IF(VLOOKUP(CV308,'Footnotes list'!$D$9:$E$58,2,FALSE)=0,\"\",VLOOKUP(CV308,'Footnotes list'!$D$9:$E$58,2,FALSE) ) )","v":""},null,null,null,null,{"$f":"IF(TRIM(DA308)=\"\", \"\", IF(VLOOKUP(DA308,'Footnotes list'!$D$9:$E$58,2,FALSE)=0,\"\",VLOOKUP(DA308,'Footnotes list'!$D$9:$E$58,2,FALSE) ) )","v":""},null,null,null,null,{"$f":"IF(TRIM(DF308)=\"\", \"\", IF(VLOOKUP(DF308,'Footnotes list'!$D$9:$E$58,2,FALSE)=0,\"\",VLOOKUP(DF308,'Footnotes list'!$D$9:$E$58,2,FALSE) ) )","v":""},null,null,null,null,{"$f":"IF(TRIM(DK308)=\"\", \"\", IF(VLOOKUP(DK308,'Footnotes list'!$D$9:$E$58,2,FALSE)=0,\"\",VLOOKUP(DK308,'Footnotes list'!$D$9:$E$58,2,FALSE) ) )","v":""},null,null,null,null,{"$f":"IF(TRIM(DP308)=\"\", \"\", IF(VLOOKUP(DP308,'Footnotes list'!$D$9:$E$58,2,FALSE)=0,\"\",VLOOKUP(DP308,'Footnotes list'!$D$9:$E$58,2,FALSE) ) )","v":""},null,null,null,null,{"$f":"IF(TRIM(DU308)=\"\", \"\", IF(VLOOKUP(DU308,'Footnotes list'!$D$9:$E$58,2,FALSE)=0,\"\",VLOOKUP(DU308,'Footnotes list'!$D$9:$E$58,2,FALSE) ) )","v":""},null,null,null,null,{"$f":"IF(TRIM(DZ308)=\"\", \"\", IF(VLOOKUP(DZ308,'Footnotes list'!$D$9:$E$58,2,FALSE)=0,\"\",VLOOKUP(DZ308,'Footnotes list'!$D$9:$E$58,2,FALSE) ) )","v":""},null,null,null,null,{"$f":"IF(TRIM(EE308)=\"\", \"\", IF(VLOOKUP(EE308,'Footnotes list'!$D$9:$E$58,2,FALSE)=0,\"\",VLOOKUP(EE308,'Footnotes list'!$D$9:$E$58,2,FALSE) ) )","v":""},null,null,null,null,{"$f":"IF(TRIM(EJ308)=\"\", \"\", IF(VLOOKUP(EJ308,'Footnotes list'!$D$9:$E$58,2,FALSE)=0,\"\",VLOOKUP(EJ308,'Footnotes list'!$D$9:$E$58,2,FALSE) ) )","v":""},null,null,null,null,{"$f":"IF(TRIM(EO308)=\"\", \"\", IF(VLOOKUP(EO308,'Footnotes list'!$D$9:$E$58,2,FALSE)=0,\"\",VLOOKUP(EO308,'Footnotes list'!$D$9:$E$58,2,FALSE) ) )","v":""},null,null,null,null,{"$f":"IF(TRIM(ET308)=\"\", \"\", IF(VLOOKUP(ET308,'Footnotes list'!$D$9:$E$58,2,FALSE)=0,\"\",VLOOKUP(ET308,'Footnotes list'!$D$9:$E$58,2,FALSE) ) )","v":""},null,null,null,null,{"$f":"IF(TRIM(EY308)=\"\", \"\", IF(VLOOKUP(EY308,'Footnotes list'!$D$9:$E$58,2,FALSE)=0,\"\",VLOOKUP(EY308,'Footnotes list'!$D$9:$E$58,2,FALSE) ) )","v":""}]
[null,null,"G-I_K_L_N_Q-U","TOT_EGSS","Total G + H + I + K + L + N + Q + R + S + T + U -Services (except information and communication, professional, scientific and technical activities, public administration and defence; compulsory social security and education), of which:",null,null,null,null,null,{"$f":"IF(TRIM(J309)=\"\", \"\", IF(VLOOKUP(J309,'Footnotes list'!$D$9:$E$58,2,FALSE)=0,\"\",VLOOKUP(J309,'Footnotes list'!$D$9:$E$58,2,FALSE) ) )","v":""},null,null,null,null,{"$f":"IF(TRIM(O309)=\"\", \"\", IF(VLOOKUP(O309,'Footnotes list'!$D$9:$E$58,2,FALSE)=0,\"\",VLOOKUP(O309,'Footnotes list'!$D$9:$E$58,2,FALSE) ) )","v":""},null,null,null,null,{"$f":"IF(TRIM(T309)=\"\", \"\", IF(VLOOKUP(T309,'Footnotes list'!$D$9:$E$58,2,FALSE)=0,\"\",VLOOKUP(T309,'Footnotes list'!$D$9:$E$58,2,FALSE) ) )","v":""},null,null,null,null,{"$f":"IF(TRIM(Y309)=\"\", \"\", IF(VLOOKUP(Y309,'Footnotes list'!$D$9:$E$58,2,FALSE)=0,\"\",VLOOKUP(Y309,'Footnotes list'!$D$9:$E$58,2,FALSE) ) )","v":""},null,null,null,null,{"$f":"IF(TRIM(AD309)=\"\", \"\", IF(VLOOKUP(AD309,'Footnotes list'!$D$9:$E$58,2,FALSE)=0,\"\",VLOOKUP(AD309,'Footnotes list'!$D$9:$E$58,2,FALSE) ) )","v":""},null,null,null,null,{"$f":"IF(TRIM(AI309)=\"\", \"\", IF(VLOOKUP(AI309,'Footnotes list'!$D$9:$E$58,2,FALSE)=0,\"\",VLOOKUP(AI309,'Footnotes list'!$D$9:$E$58,2,FALSE) ) )","v":""},null,null,null,null,{"$f":"IF(TRIM(AN309)=\"\", \"\", IF(VLOOKUP(AN309,'Footnotes list'!$D$9:$E$58,2,FALSE)=0,\"\",VLOOKUP(AN309,'Footnotes list'!$D$9:$E$58,2,FALSE) ) )","v":""},null,null,null,null,{"$f":"IF(TRIM(AS309)=\"\", \"\", IF(VLOOKUP(AS309,'Footnotes list'!$D$9:$E$58,2,FALSE)=0,\"\",VLOOKUP(AS309,'Footnotes list'!$D$9:$E$58,2,FALSE) ) )","v":""},null,null,null,null,{"$f":"IF(TRIM(AX309)=\"\", \"\", IF(VLOOKUP(AX309,'Footnotes list'!$D$9:$E$58,2,FALSE)=0,\"\",VLOOKUP(AX309,'Footnotes list'!$D$9:$E$58,2,FALSE) ) )","v":""},null,null,null,null,{"$f":"IF(TRIM(BC309)=\"\", \"\", IF(VLOOKUP(BC309,'Footnotes list'!$D$9:$E$58,2,FALSE)=0,\"\",VLOOKUP(BC309,'Footnotes list'!$D$9:$E$58,2,FALSE) ) )","v":""},null,null,null,null,{"$f":"IF(TRIM(BH309)=\"\", \"\", IF(VLOOKUP(BH309,'Footnotes list'!$D$9:$E$58,2,FALSE)=0,\"\",VLOOKUP(BH309,'Footnotes list'!$D$9:$E$58,2,FALSE) ) )","v":""},null,null,null,null,{"$f":"IF(TRIM(BM309)=\"\", \"\", IF(VLOOKUP(BM309,'Footnotes list'!$D$9:$E$58,2,FALSE)=0,\"\",VLOOKUP(BM309,'Footnotes list'!$D$9:$E$58,2,FALSE) ) )","v":""},null,null,null,null,{"$f":"IF(TRIM(BR309)=\"\", \"\", IF(VLOOKUP(BR309,'Footnotes list'!$D$9:$E$58,2,FALSE)=0,\"\",VLOOKUP(BR309,'Footnotes list'!$D$9:$E$58,2,FALSE) ) )","v":""},null,null,null,null,{"$f":"IF(TRIM(BW309)=\"\", \"\", IF(VLOOKUP(BW309,'Footnotes list'!$D$9:$E$58,2,FALSE)=0,\"\",VLOOKUP(BW309,'Footnotes list'!$D$9:$E$58,2,FALSE) ) )","v":""},null,null,null,null,{"$f":"IF(TRIM(CB309)=\"\", \"\", IF(VLOOKUP(CB309,'Footnotes list'!$D$9:$E$58,2,FALSE)=0,\"\",VLOOKUP(CB309,'Footnotes list'!$D$9:$E$58,2,FALSE) ) )","v":""},null,null,null,null,{"$f":"IF(TRIM(CG309)=\"\", \"\", IF(VLOOKUP(CG309,'Footnotes list'!$D$9:$E$58,2,FALSE)=0,\"\",VLOOKUP(CG309,'Footnotes list'!$D$9:$E$58,2,FALSE) ) )","v":""},null,null,null,null,{"$f":"IF(TRIM(CL309)=\"\", \"\", IF(VLOOKUP(CL309,'Footnotes list'!$D$9:$E$58,2,FALSE)=0,\"\",VLOOKUP(CL309,'Footnotes list'!$D$9:$E$58,2,FALSE) ) )","v":""},null,null,null,null,{"$f":"IF(TRIM(CQ309)=\"\", \"\", IF(VLOOKUP(CQ309,'Footnotes list'!$D$9:$E$58,2,FALSE)=0,\"\",VLOOKUP(CQ309,'Footnotes list'!$D$9:$E$58,2,FALSE) ) )","v":""},null,null,null,null,{"$f":"IF(TRIM(CV309)=\"\", \"\", IF(VLOOKUP(CV309,'Footnotes list'!$D$9:$E$58,2,FALSE)=0,\"\",VLOOKUP(CV309,'Footnotes list'!$D$9:$E$58,2,FALSE) ) )","v":""},null,null,null,null,{"$f":"IF(TRIM(DA309)=\"\", \"\", IF(VLOOKUP(DA309,'Footnotes list'!$D$9:$E$58,2,FALSE)=0,\"\",VLOOKUP(DA309,'Footnotes list'!$D$9:$E$58,2,FALSE) ) )","v":""},null,null,null,null,{"$f":"IF(TRIM(DF309)=\"\", \"\", IF(VLOOKUP(DF309,'Footnotes list'!$D$9:$E$58,2,FALSE)=0,\"\",VLOOKUP(DF309,'Footnotes list'!$D$9:$E$58,2,FALSE) ) )","v":""},null,null,null,null,{"$f":"IF(TRIM(DK309)=\"\", \"\", IF(VLOOKUP(DK309,'Footnotes list'!$D$9:$E$58,2,FALSE)=0,\"\",VLOOKUP(DK309,'Footnotes list'!$D$9:$E$58,2,FALSE) ) )","v":""},null,null,null,null,{"$f":"IF(TRIM(DP309)=\"\", \"\", IF(VLOOKUP(DP309,'Footnotes list'!$D$9:$E$58,2,FALSE)=0,\"\",VLOOKUP(DP309,'Footnotes list'!$D$9:$E$58,2,FALSE) ) )","v":""},null,null,null,null,{"$f":"IF(TRIM(DU309)=\"\", \"\", IF(VLOOKUP(DU309,'Footnotes list'!$D$9:$E$58,2,FALSE)=0,\"\",VLOOKUP(DU309,'Footnotes list'!$D$9:$E$58,2,FALSE) ) )","v":""},null,null,null,null,{"$f":"IF(TRIM(DZ309)=\"\", \"\", IF(VLOOKUP(DZ309,'Footnotes list'!$D$9:$E$58,2,FALSE)=0,\"\",VLOOKUP(DZ309,'Footnotes list'!$D$9:$E$58,2,FALSE) ) )","v":""},null,null,null,null,{"$f":"IF(TRIM(EE309)=\"\", \"\", IF(VLOOKUP(EE309,'Footnotes list'!$D$9:$E$58,2,FALSE)=0,\"\",VLOOKUP(EE309,'Footnotes list'!$D$9:$E$58,2,FALSE) ) )","v":""},null,null,null,null,{"$f":"IF(TRIM(EJ309)=\"\", \"\", IF(VLOOKUP(EJ309,'Footnotes list'!$D$9:$E$58,2,FALSE)=0,\"\",VLOOKUP(EJ309,'Footnotes list'!$D$9:$E$58,2,FALSE) ) )","v":""},null,null,null,null,{"$f":"IF(TRIM(EO309)=\"\", \"\", IF(VLOOKUP(EO309,'Footnotes list'!$D$9:$E$58,2,FALSE)=0,\"\",VLOOKUP(EO309,'Footnotes list'!$D$9:$E$58,2,FALSE) ) )","v":""},null,null,null,null,{"$f":"IF(TRIM(ET309)=\"\", \"\", IF(VLOOKUP(ET309,'Footnotes list'!$D$9:$E$58,2,FALSE)=0,\"\",VLOOKUP(ET309,'Footnotes list'!$D$9:$E$58,2,FALSE) ) )","v":""},null,null,null,null,{"$f":"IF(TRIM(EY309)=\"\", \"\", IF(VLOOKUP(EY309,'Footnotes list'!$D$9:$E$58,2,FALSE)=0,\"\",VLOOKUP(EY309,'Footnotes list'!$D$9:$E$58,2,FALSE) ) )","v":""}]
[null,null,"G-I_K_L_N_Q-U","ANC","ancillary activities",null,null,null,null,null,{"$f":"IF(TRIM(J310)=\"\", \"\", IF(VLOOKUP(J310,'Footnotes list'!$D$9:$E$58,2,FALSE)=0,\"\",VLOOKUP(J310,'Footnotes list'!$D$9:$E$58,2,FALSE) ) )","v":""},null,null,null,null,{"$f":"IF(TRIM(O310)=\"\", \"\", IF(VLOOKUP(O310,'Footnotes list'!$D$9:$E$58,2,FALSE)=0,\"\",VLOOKUP(O310,'Footnotes list'!$D$9:$E$58,2,FALSE) ) )","v":""},null,null,null,null,{"$f":"IF(TRIM(T310)=\"\", \"\", IF(VLOOKUP(T310,'Footnotes list'!$D$9:$E$58,2,FALSE)=0,\"\",VLOOKUP(T310,'Footnotes list'!$D$9:$E$58,2,FALSE) ) )","v":""},null,null,null,null,{"$f":"IF(TRIM(Y310)=\"\", \"\", IF(VLOOKUP(Y310,'Footnotes list'!$D$9:$E$58,2,FALSE)=0,\"\",VLOOKUP(Y310,'Footnotes list'!$D$9:$E$58,2,FALSE) ) )","v":""},null,null,null,null,{"$f":"IF(TRIM(AD310)=\"\", \"\", IF(VLOOKUP(AD310,'Footnotes list'!$D$9:$E$58,2,FALSE)=0,\"\",VLOOKUP(AD310,'Footnotes list'!$D$9:$E$58,2,FALSE) ) )","v":""},null,null,null,null,{"$f":"IF(TRIM(AI310)=\"\", \"\", IF(VLOOKUP(AI310,'Footnotes list'!$D$9:$E$58,2,FALSE)=0,\"\",VLOOKUP(AI310,'Footnotes list'!$D$9:$E$58,2,FALSE) ) )","v":""},null,null,null,null,{"$f":"IF(TRIM(AN310)=\"\", \"\", IF(VLOOKUP(AN310,'Footnotes list'!$D$9:$E$58,2,FALSE)=0,\"\",VLOOKUP(AN310,'Footnotes list'!$D$9:$E$58,2,FALSE) ) )","v":""},null,null,null,null,{"$f":"IF(TRIM(AS310)=\"\", \"\", IF(VLOOKUP(AS310,'Footnotes list'!$D$9:$E$58,2,FALSE)=0,\"\",VLOOKUP(AS310,'Footnotes list'!$D$9:$E$58,2,FALSE) ) )","v":""},null,null,null,null,{"$f":"IF(TRIM(AX310)=\"\", \"\", IF(VLOOKUP(AX310,'Footnotes list'!$D$9:$E$58,2,FALSE)=0,\"\",VLOOKUP(AX310,'Footnotes list'!$D$9:$E$58,2,FALSE) ) )","v":""},null,null,null,null,{"$f":"IF(TRIM(BC310)=\"\", \"\", IF(VLOOKUP(BC310,'Footnotes list'!$D$9:$E$58,2,FALSE)=0,\"\",VLOOKUP(BC310,'Footnotes list'!$D$9:$E$58,2,FALSE) ) )","v":""},null,null,null,null,{"$f":"IF(TRIM(BH310)=\"\", \"\", IF(VLOOKUP(BH310,'Footnotes list'!$D$9:$E$58,2,FALSE)=0,\"\",VLOOKUP(BH310,'Footnotes list'!$D$9:$E$58,2,FALSE) ) )","v":""},null,null,null,null,{"$f":"IF(TRIM(BM310)=\"\", \"\", IF(VLOOKUP(BM310,'Footnotes list'!$D$9:$E$58,2,FALSE)=0,\"\",VLOOKUP(BM310,'Footnotes list'!$D$9:$E$58,2,FALSE) ) )","v":""},null,null,null,null,{"$f":"IF(TRIM(BR310)=\"\", \"\", IF(VLOOKUP(BR310,'Footnotes list'!$D$9:$E$58,2,FALSE)=0,\"\",VLOOKUP(BR310,'Footnotes list'!$D$9:$E$58,2,FALSE) ) )","v":""},null,null,null,null,{"$f":"IF(TRIM(BW310)=\"\", \"\", IF(VLOOKUP(BW310,'Footnotes list'!$D$9:$E$58,2,FALSE)=0,\"\",VLOOKUP(BW310,'Footnotes list'!$D$9:$E$58,2,FALSE) ) )","v":""},null,null,null,null,{"$f":"IF(TRIM(CB310)=\"\", \"\", IF(VLOOKUP(CB310,'Footnotes list'!$D$9:$E$58,2,FALSE)=0,\"\",VLOOKUP(CB310,'Footnotes list'!$D$9:$E$58,2,FALSE) ) )","v":""},null,null,null,null,{"$f":"IF(TRIM(CG310)=\"\", \"\", IF(VLOOKUP(CG310,'Footnotes list'!$D$9:$E$58,2,FALSE)=0,\"\",VLOOKUP(CG310,'Footnotes list'!$D$9:$E$58,2,FALSE) ) )","v":""},null,null,null,null,{"$f":"IF(TRIM(CL310)=\"\", \"\", IF(VLOOKUP(CL310,'Footnotes list'!$D$9:$E$58,2,FALSE)=0,\"\",VLOOKUP(CL310,'Footnotes list'!$D$9:$E$58,2,FALSE) ) )","v":""},null,null,null,null,{"$f":"IF(TRIM(CQ310)=\"\", \"\", IF(VLOOKUP(CQ310,'Footnotes list'!$D$9:$E$58,2,FALSE)=0,\"\",VLOOKUP(CQ310,'Footnotes list'!$D$9:$E$58,2,FALSE) ) )","v":""},null,null,null,null,{"$f":"IF(TRIM(CV310)=\"\", \"\", IF(VLOOKUP(CV310,'Footnotes list'!$D$9:$E$58,2,FALSE)=0,\"\",VLOOKUP(CV310,'Footnotes list'!$D$9:$E$58,2,FALSE) ) )","v":""},null,null,null,null,{"$f":"IF(TRIM(DA310)=\"\", \"\", IF(VLOOKUP(DA310,'Footnotes list'!$D$9:$E$58,2,FALSE)=0,\"\",VLOOKUP(DA310,'Footnotes list'!$D$9:$E$58,2,FALSE) ) )","v":""},null,null,null,null,{"$f":"IF(TRIM(DF310)=\"\", \"\", IF(VLOOKUP(DF310,'Footnotes list'!$D$9:$E$58,2,FALSE)=0,\"\",VLOOKUP(DF310,'Footnotes list'!$D$9:$E$58,2,FALSE) ) )","v":""},null,null,null,null,{"$f":"IF(TRIM(DK310)=\"\", \"\", IF(VLOOKUP(DK310,'Footnotes list'!$D$9:$E$58,2,FALSE)=0,\"\",VLOOKUP(DK310,'Footnotes list'!$D$9:$E$58,2,FALSE) ) )","v":""},null,null,null,null,{"$f":"IF(TRIM(DP310)=\"\", \"\", IF(VLOOKUP(DP310,'Footnotes list'!$D$9:$E$58,2,FALSE)=0,\"\",VLOOKUP(DP310,'Footnotes list'!$D$9:$E$58,2,FALSE) ) )","v":""},null,null,null,null,{"$f":"IF(TRIM(DU310)=\"\", \"\", IF(VLOOKUP(DU310,'Footnotes list'!$D$9:$E$58,2,FALSE)=0,\"\",VLOOKUP(DU310,'Footnotes list'!$D$9:$E$58,2,FALSE) ) )","v":""},null,null,null,null,{"$f":"IF(TRIM(DZ310)=\"\", \"\", IF(VLOOKUP(DZ310,'Footnotes list'!$D$9:$E$58,2,FALSE)=0,\"\",VLOOKUP(DZ310,'Footnotes list'!$D$9:$E$58,2,FALSE) ) )","v":""},null,null,null,null,{"$f":"IF(TRIM(EE310)=\"\", \"\", IF(VLOOKUP(EE310,'Footnotes list'!$D$9:$E$58,2,FALSE)=0,\"\",VLOOKUP(EE310,'Footnotes list'!$D$9:$E$58,2,FALSE) ) )","v":""},null,null,null,null,{"$f":"IF(TRIM(EJ310)=\"\", \"\", IF(VLOOKUP(EJ310,'Footnotes list'!$D$9:$E$58,2,FALSE)=0,\"\",VLOOKUP(EJ310,'Footnotes list'!$D$9:$E$58,2,FALSE) ) )","v":""},null,null,null,null,{"$f":"IF(TRIM(EO310)=\"\", \"\", IF(VLOOKUP(EO310,'Footnotes list'!$D$9:$E$58,2,FALSE)=0,\"\",VLOOKUP(EO310,'Footnotes list'!$D$9:$E$58,2,FALSE) ) )","v":""},null,null,null,null,{"$f":"IF(TRIM(ET310)=\"\", \"\", IF(VLOOKUP(ET310,'Footnotes list'!$D$9:$E$58,2,FALSE)=0,\"\",VLOOKUP(ET310,'Footnotes list'!$D$9:$E$58,2,FALSE) ) )","v":""},null,null,null,null,{"$f":"IF(TRIM(EY310)=\"\", \"\", IF(VLOOKUP(EY310,'Footnotes list'!$D$9:$E$58,2,FALSE)=0,\"\",VLOOKUP(EY310,'Footnotes list'!$D$9:$E$58,2,FALSE) ) )","v":""}]
[null,null,"G-I_K_L_N_Q-U","NMKT","non-market activities",null,null,null,null,null,{"$f":"IF(TRIM(J311)=\"\", \"\", IF(VLOOKUP(J311,'Footnotes list'!$D$9:$E$58,2,FALSE)=0,\"\",VLOOKUP(J311,'Footnotes list'!$D$9:$E$58,2,FALSE) ) )","v":""},null,null,null,null,{"$f":"IF(TRIM(O311)=\"\", \"\", IF(VLOOKUP(O311,'Footnotes list'!$D$9:$E$58,2,FALSE)=0,\"\",VLOOKUP(O311,'Footnotes list'!$D$9:$E$58,2,FALSE) ) )","v":""},null,null,null,null,{"$f":"IF(TRIM(T311)=\"\", \"\", IF(VLOOKUP(T311,'Footnotes list'!$D$9:$E$58,2,FALSE)=0,\"\",VLOOKUP(T311,'Footnotes list'!$D$9:$E$58,2,FALSE) ) )","v":""},null,null,null,null,{"$f":"IF(TRIM(Y311)=\"\", \"\", IF(VLOOKUP(Y311,'Footnotes list'!$D$9:$E$58,2,FALSE)=0,\"\",VLOOKUP(Y311,'Footnotes list'!$D$9:$E$58,2,FALSE) ) )","v":""},null,null,null,null,{"$f":"IF(TRIM(AD311)=\"\", \"\", IF(VLOOKUP(AD311,'Footnotes list'!$D$9:$E$58,2,FALSE)=0,\"\",VLOOKUP(AD311,'Footnotes list'!$D$9:$E$58,2,FALSE) ) )","v":""},null,null,null,null,{"$f":"IF(TRIM(AI311)=\"\", \"\", IF(VLOOKUP(AI311,'Footnotes list'!$D$9:$E$58,2,FALSE)=0,\"\",VLOOKUP(AI311,'Footnotes list'!$D$9:$E$58,2,FALSE) ) )","v":""},null,null,null,null,{"$f":"IF(TRIM(AN311)=\"\", \"\", IF(VLOOKUP(AN311,'Footnotes list'!$D$9:$E$58,2,FALSE)=0,\"\",VLOOKUP(AN311,'Footnotes list'!$D$9:$E$58,2,FALSE) ) )","v":""},null,null,null,null,{"$f":"IF(TRIM(AS311)=\"\", \"\", IF(VLOOKUP(AS311,'Footnotes list'!$D$9:$E$58,2,FALSE)=0,\"\",VLOOKUP(AS311,'Footnotes list'!$D$9:$E$58,2,FALSE) ) )","v":""},null,null,null,null,{"$f":"IF(TRIM(AX311)=\"\", \"\", IF(VLOOKUP(AX311,'Footnotes list'!$D$9:$E$58,2,FALSE)=0,\"\",VLOOKUP(AX311,'Footnotes list'!$D$9:$E$58,2,FALSE) ) )","v":""},null,null,null,null,{"$f":"IF(TRIM(BC311)=\"\", \"\", IF(VLOOKUP(BC311,'Footnotes list'!$D$9:$E$58,2,FALSE)=0,\"\",VLOOKUP(BC311,'Footnotes list'!$D$9:$E$58,2,FALSE) ) )","v":""},null,null,null,null,{"$f":"IF(TRIM(BH311)=\"\", \"\", IF(VLOOKUP(BH311,'Footnotes list'!$D$9:$E$58,2,FALSE)=0,\"\",VLOOKUP(BH311,'Footnotes list'!$D$9:$E$58,2,FALSE) ) )","v":""},null,null,null,null,{"$f":"IF(TRIM(BM311)=\"\", \"\", IF(VLOOKUP(BM311,'Footnotes list'!$D$9:$E$58,2,FALSE)=0,\"\",VLOOKUP(BM311,'Footnotes list'!$D$9:$E$58,2,FALSE) ) )","v":""},null,null,null,null,{"$f":"IF(TRIM(BR311)=\"\", \"\", IF(VLOOKUP(BR311,'Footnotes list'!$D$9:$E$58,2,FALSE)=0,\"\",VLOOKUP(BR311,'Footnotes list'!$D$9:$E$58,2,FALSE) ) )","v":""},null,null,null,null,{"$f":"IF(TRIM(BW311)=\"\", \"\", IF(VLOOKUP(BW311,'Footnotes list'!$D$9:$E$58,2,FALSE)=0,\"\",VLOOKUP(BW311,'Footnotes list'!$D$9:$E$58,2,FALSE) ) )","v":""},null,null,null,null,{"$f":"IF(TRIM(CB311)=\"\", \"\", IF(VLOOKUP(CB311,'Footnotes list'!$D$9:$E$58,2,FALSE)=0,\"\",VLOOKUP(CB311,'Footnotes list'!$D$9:$E$58,2,FALSE) ) )","v":""},null,null,null,null,{"$f":"IF(TRIM(CG311)=\"\", \"\", IF(VLOOKUP(CG311,'Footnotes list'!$D$9:$E$58,2,FALSE)=0,\"\",VLOOKUP(CG311,'Footnotes list'!$D$9:$E$58,2,FALSE) ) )","v":""},null,null,null,null,{"$f":"IF(TRIM(CL311)=\"\", \"\", IF(VLOOKUP(CL311,'Footnotes list'!$D$9:$E$58,2,FALSE)=0,\"\",VLOOKUP(CL311,'Footnotes list'!$D$9:$E$58,2,FALSE) ) )","v":""},null,null,null,null,{"$f":"IF(TRIM(CQ311)=\"\", \"\", IF(VLOOKUP(CQ311,'Footnotes list'!$D$9:$E$58,2,FALSE)=0,\"\",VLOOKUP(CQ311,'Footnotes list'!$D$9:$E$58,2,FALSE) ) )","v":""},null,null,null,null,{"$f":"IF(TRIM(CV311)=\"\", \"\", IF(VLOOKUP(CV311,'Footnotes list'!$D$9:$E$58,2,FALSE)=0,\"\",VLOOKUP(CV311,'Footnotes list'!$D$9:$E$58,2,FALSE) ) )","v":""},null,null,null,null,{"$f":"IF(TRIM(DA311)=\"\", \"\", IF(VLOOKUP(DA311,'Footnotes list'!$D$9:$E$58,2,FALSE)=0,\"\",VLOOKUP(DA311,'Footnotes list'!$D$9:$E$58,2,FALSE) ) )","v":""},null,null,null,null,{"$f":"IF(TRIM(DF311)=\"\", \"\", IF(VLOOKUP(DF311,'Footnotes list'!$D$9:$E$58,2,FALSE)=0,\"\",VLOOKUP(DF311,'Footnotes list'!$D$9:$E$58,2,FALSE) ) )","v":""},null,null,null,null,{"$f":"IF(TRIM(DK311)=\"\", \"\", IF(VLOOKUP(DK311,'Footnotes list'!$D$9:$E$58,2,FALSE)=0,\"\",VLOOKUP(DK311,'Footnotes list'!$D$9:$E$58,2,FALSE) ) )","v":""},null,null,null,null,{"$f":"IF(TRIM(DP311)=\"\", \"\", IF(VLOOKUP(DP311,'Footnotes list'!$D$9:$E$58,2,FALSE)=0,\"\",VLOOKUP(DP311,'Footnotes list'!$D$9:$E$58,2,FALSE) ) )","v":""},null,null,null,null,{"$f":"IF(TRIM(DU311)=\"\", \"\", IF(VLOOKUP(DU311,'Footnotes list'!$D$9:$E$58,2,FALSE)=0,\"\",VLOOKUP(DU311,'Footnotes list'!$D$9:$E$58,2,FALSE) ) )","v":""},null,null,null,null,{"$f":"IF(TRIM(DZ311)=\"\", \"\", IF(VLOOKUP(DZ311,'Footnotes list'!$D$9:$E$58,2,FALSE)=0,\"\",VLOOKUP(DZ311,'Footnotes list'!$D$9:$E$58,2,FALSE) ) )","v":""},null,null,null,null,{"$f":"IF(TRIM(EE311)=\"\", \"\", IF(VLOOKUP(EE311,'Footnotes list'!$D$9:$E$58,2,FALSE)=0,\"\",VLOOKUP(EE311,'Footnotes list'!$D$9:$E$58,2,FALSE) ) )","v":""},null,null,null,null,{"$f":"IF(TRIM(EJ311)=\"\", \"\", IF(VLOOKUP(EJ311,'Footnotes list'!$D$9:$E$58,2,FALSE)=0,\"\",VLOOKUP(EJ311,'Footnotes list'!$D$9:$E$58,2,FALSE) ) )","v":""},null,null,null,null,{"$f":"IF(TRIM(EO311)=\"\", \"\", IF(VLOOKUP(EO311,'Footnotes list'!$D$9:$E$58,2,FALSE)=0,\"\",VLOOKUP(EO311,'Footnotes list'!$D$9:$E$58,2,FALSE) ) )","v":""},null,null,null,null,{"$f":"IF(TRIM(ET311)=\"\", \"\", IF(VLOOKUP(ET311,'Footnotes list'!$D$9:$E$58,2,FALSE)=0,\"\",VLOOKUP(ET311,'Footnotes list'!$D$9:$E$58,2,FALSE) ) )","v":""},null,null,null,null,{"$f":"IF(TRIM(EY311)=\"\", \"\", IF(VLOOKUP(EY311,'Footnotes list'!$D$9:$E$58,2,FALSE)=0,\"\",VLOOKUP(EY311,'Footnotes list'!$D$9:$E$58,2,FALSE) ) )","v":""}]
[null,null,"G-I_K_L_N_Q-U","OWN_USE","activities for own final use",null,null,null,null,null,{"$f":"IF(TRIM(J312)=\"\", \"\", IF(VLOOKUP(J312,'Footnotes list'!$D$9:$E$58,2,FALSE)=0,\"\",VLOOKUP(J312,'Footnotes list'!$D$9:$E$58,2,FALSE) ) )","v":""},null,null,null,null,{"$f":"IF(TRIM(O312)=\"\", \"\", IF(VLOOKUP(O312,'Footnotes list'!$D$9:$E$58,2,FALSE)=0,\"\",VLOOKUP(O312,'Footnotes list'!$D$9:$E$58,2,FALSE) ) )","v":""},null,null,null,null,{"$f":"IF(TRIM(T312)=\"\", \"\", IF(VLOOKUP(T312,'Footnotes list'!$D$9:$E$58,2,FALSE)=0,\"\",VLOOKUP(T312,'Footnotes list'!$D$9:$E$58,2,FALSE) ) )","v":""},null,null,null,null,{"$f":"IF(TRIM(Y312)=\"\", \"\", IF(VLOOKUP(Y312,'Footnotes list'!$D$9:$E$58,2,FALSE)=0,\"\",VLOOKUP(Y312,'Footnotes list'!$D$9:$E$58,2,FALSE) ) )","v":""},null,null,null,null,{"$f":"IF(TRIM(AD312)=\"\", \"\", IF(VLOOKUP(AD312,'Footnotes list'!$D$9:$E$58,2,FALSE)=0,\"\",VLOOKUP(AD312,'Footnotes list'!$D$9:$E$58,2,FALSE) ) )","v":""},null,null,null,null,{"$f":"IF(TRIM(AI312)=\"\", \"\", IF(VLOOKUP(AI312,'Footnotes list'!$D$9:$E$58,2,FALSE)=0,\"\",VLOOKUP(AI312,'Footnotes list'!$D$9:$E$58,2,FALSE) ) )","v":""},null,null,null,null,{"$f":"IF(TRIM(AN312)=\"\", \"\", IF(VLOOKUP(AN312,'Footnotes list'!$D$9:$E$58,2,FALSE)=0,\"\",VLOOKUP(AN312,'Footnotes list'!$D$9:$E$58,2,FALSE) ) )","v":""},null,null,null,null,{"$f":"IF(TRIM(AS312)=\"\", \"\", IF(VLOOKUP(AS312,'Footnotes list'!$D$9:$E$58,2,FALSE)=0,\"\",VLOOKUP(AS312,'Footnotes list'!$D$9:$E$58,2,FALSE) ) )","v":""},null,null,null,null,{"$f":"IF(TRIM(AX312)=\"\", \"\", IF(VLOOKUP(AX312,'Footnotes list'!$D$9:$E$58,2,FALSE)=0,\"\",VLOOKUP(AX312,'Footnotes list'!$D$9:$E$58,2,FALSE) ) )","v":""},null,null,null,null,{"$f":"IF(TRIM(BC312)=\"\", \"\", IF(VLOOKUP(BC312,'Footnotes list'!$D$9:$E$58,2,FALSE)=0,\"\",VLOOKUP(BC312,'Footnotes list'!$D$9:$E$58,2,FALSE) ) )","v":""},null,null,null,null,{"$f":"IF(TRIM(BH312)=\"\", \"\", IF(VLOOKUP(BH312,'Footnotes list'!$D$9:$E$58,2,FALSE)=0,\"\",VLOOKUP(BH312,'Footnotes list'!$D$9:$E$58,2,FALSE) ) )","v":""},null,null,null,null,{"$f":"IF(TRIM(BM312)=\"\", \"\", IF(VLOOKUP(BM312,'Footnotes list'!$D$9:$E$58,2,FALSE)=0,\"\",VLOOKUP(BM312,'Footnotes list'!$D$9:$E$58,2,FALSE) ) )","v":""},null,null,null,null,{"$f":"IF(TRIM(BR312)=\"\", \"\", IF(VLOOKUP(BR312,'Footnotes list'!$D$9:$E$58,2,FALSE)=0,\"\",VLOOKUP(BR312,'Footnotes list'!$D$9:$E$58,2,FALSE) ) )","v":""},null,null,null,null,{"$f":"IF(TRIM(BW312)=\"\", \"\", IF(VLOOKUP(BW312,'Footnotes list'!$D$9:$E$58,2,FALSE)=0,\"\",VLOOKUP(BW312,'Footnotes list'!$D$9:$E$58,2,FALSE) ) )","v":""},null,null,null,null,{"$f":"IF(TRIM(CB312)=\"\", \"\", IF(VLOOKUP(CB312,'Footnotes list'!$D$9:$E$58,2,FALSE)=0,\"\",VLOOKUP(CB312,'Footnotes list'!$D$9:$E$58,2,FALSE) ) )","v":""},null,null,null,null,{"$f":"IF(TRIM(CG312)=\"\", \"\", IF(VLOOKUP(CG312,'Footnotes list'!$D$9:$E$58,2,FALSE)=0,\"\",VLOOKUP(CG312,'Footnotes list'!$D$9:$E$58,2,FALSE) ) )","v":""},null,null,null,null,{"$f":"IF(TRIM(CL312)=\"\", \"\", IF(VLOOKUP(CL312,'Footnotes list'!$D$9:$E$58,2,FALSE)=0,\"\",VLOOKUP(CL312,'Footnotes list'!$D$9:$E$58,2,FALSE) ) )","v":""},null,null,null,null,{"$f":"IF(TRIM(CQ312)=\"\", \"\", IF(VLOOKUP(CQ312,'Footnotes list'!$D$9:$E$58,2,FALSE)=0,\"\",VLOOKUP(CQ312,'Footnotes list'!$D$9:$E$58,2,FALSE) ) )","v":""},null,null,null,null,{"$f":"IF(TRIM(CV312)=\"\", \"\", IF(VLOOKUP(CV312,'Footnotes list'!$D$9:$E$58,2,FALSE)=0,\"\",VLOOKUP(CV312,'Footnotes list'!$D$9:$E$58,2,FALSE) ) )","v":""},null,null,null,null,{"$f":"IF(TRIM(DA312)=\"\", \"\", IF(VLOOKUP(DA312,'Footnotes list'!$D$9:$E$58,2,FALSE)=0,\"\",VLOOKUP(DA312,'Footnotes list'!$D$9:$E$58,2,FALSE) ) )","v":""},null,null,null,null,{"$f":"IF(TRIM(DF312)=\"\", \"\", IF(VLOOKUP(DF312,'Footnotes list'!$D$9:$E$58,2,FALSE)=0,\"\",VLOOKUP(DF312,'Footnotes list'!$D$9:$E$58,2,FALSE) ) )","v":""},null,null,null,null,{"$f":"IF(TRIM(DK312)=\"\", \"\", IF(VLOOKUP(DK312,'Footnotes list'!$D$9:$E$58,2,FALSE)=0,\"\",VLOOKUP(DK312,'Footnotes list'!$D$9:$E$58,2,FALSE) ) )","v":""},null,null,null,null,{"$f":"IF(TRIM(DP312)=\"\", \"\", IF(VLOOKUP(DP312,'Footnotes list'!$D$9:$E$58,2,FALSE)=0,\"\",VLOOKUP(DP312,'Footnotes list'!$D$9:$E$58,2,FALSE) ) )","v":""},null,null,null,null,{"$f":"IF(TRIM(DU312)=\"\", \"\", IF(VLOOKUP(DU312,'Footnotes list'!$D$9:$E$58,2,FALSE)=0,\"\",VLOOKUP(DU312,'Footnotes list'!$D$9:$E$58,2,FALSE) ) )","v":""},null,null,null,null,{"$f":"IF(TRIM(DZ312)=\"\", \"\", IF(VLOOKUP(DZ312,'Footnotes list'!$D$9:$E$58,2,FALSE)=0,\"\",VLOOKUP(DZ312,'Footnotes list'!$D$9:$E$58,2,FALSE) ) )","v":""},null,null,null,null,{"$f":"IF(TRIM(EE312)=\"\", \"\", IF(VLOOKUP(EE312,'Footnotes list'!$D$9:$E$58,2,FALSE)=0,\"\",VLOOKUP(EE312,'Footnotes list'!$D$9:$E$58,2,FALSE) ) )","v":""},null,null,null,null,{"$f":"IF(TRIM(EJ312)=\"\", \"\", IF(VLOOKUP(EJ312,'Footnotes list'!$D$9:$E$58,2,FALSE)=0,\"\",VLOOKUP(EJ312,'Footnotes list'!$D$9:$E$58,2,FALSE) ) )","v":""},null,null,null,null,{"$f":"IF(TRIM(EO312)=\"\", \"\", IF(VLOOKUP(EO312,'Footnotes list'!$D$9:$E$58,2,FALSE)=0,\"\",VLOOKUP(EO312,'Footnotes list'!$D$9:$E$58,2,FALSE) ) )","v":""},null,null,null,null,{"$f":"IF(TRIM(ET312)=\"\", \"\", IF(VLOOKUP(ET312,'Footnotes list'!$D$9:$E$58,2,FALSE)=0,\"\",VLOOKUP(ET312,'Footnotes list'!$D$9:$E$58,2,FALSE) ) )","v":""},null,null,null,null,{"$f":"IF(TRIM(EY312)=\"\", \"\", IF(VLOOKUP(EY312,'Footnotes list'!$D$9:$E$58,2,FALSE)=0,\"\",VLOOKUP(EY312,'Footnotes list'!$D$9:$E$58,2,FALSE) ) )","v":""}]
[null,null,"G-I_K_L_N_Q-U","MKT","market activities, including:",null,null,null,null,null,{"$f":"IF(TRIM(J313)=\"\", \"\", IF(VLOOKUP(J313,'Footnotes list'!$D$9:$E$58,2,FALSE)=0,\"\",VLOOKUP(J313,'Footnotes list'!$D$9:$E$58,2,FALSE) ) )","v":""},null,null,null,null,{"$f":"IF(TRIM(O313)=\"\", \"\", IF(VLOOKUP(O313,'Footnotes list'!$D$9:$E$58,2,FALSE)=0,\"\",VLOOKUP(O313,'Footnotes list'!$D$9:$E$58,2,FALSE) ) )","v":""},null,null,null,null,{"$f":"IF(TRIM(T313)=\"\", \"\", IF(VLOOKUP(T313,'Footnotes list'!$D$9:$E$58,2,FALSE)=0,\"\",VLOOKUP(T313,'Footnotes list'!$D$9:$E$58,2,FALSE) ) )","v":""},null,null,null,null,{"$f":"IF(TRIM(Y313)=\"\", \"\", IF(VLOOKUP(Y313,'Footnotes list'!$D$9:$E$58,2,FALSE)=0,\"\",VLOOKUP(Y313,'Footnotes list'!$D$9:$E$58,2,FALSE) ) )","v":""},null,null,null,null,{"$f":"IF(TRIM(AD313)=\"\", \"\", IF(VLOOKUP(AD313,'Footnotes list'!$D$9:$E$58,2,FALSE)=0,\"\",VLOOKUP(AD313,'Footnotes list'!$D$9:$E$58,2,FALSE) ) )","v":""},null,null,null,null,{"$f":"IF(TRIM(AI313)=\"\", \"\", IF(VLOOKUP(AI313,'Footnotes list'!$D$9:$E$58,2,FALSE)=0,\"\",VLOOKUP(AI313,'Footnotes list'!$D$9:$E$58,2,FALSE) ) )","v":""},null,null,null,null,{"$f":"IF(TRIM(AN313)=\"\", \"\", IF(VLOOKUP(AN313,'Footnotes list'!$D$9:$E$58,2,FALSE)=0,\"\",VLOOKUP(AN313,'Footnotes list'!$D$9:$E$58,2,FALSE) ) )","v":""},null,null,null,null,{"$f":"IF(TRIM(AS313)=\"\", \"\", IF(VLOOKUP(AS313,'Footnotes list'!$D$9:$E$58,2,FALSE)=0,\"\",VLOOKUP(AS313,'Footnotes list'!$D$9:$E$58,2,FALSE) ) )","v":""},null,null,null,null,{"$f":"IF(TRIM(AX313)=\"\", \"\", IF(VLOOKUP(AX313,'Footnotes list'!$D$9:$E$58,2,FALSE)=0,\"\",VLOOKUP(AX313,'Footnotes list'!$D$9:$E$58,2,FALSE) ) )","v":""},null,null,null,null,{"$f":"IF(TRIM(BC313)=\"\", \"\", IF(VLOOKUP(BC313,'Footnotes list'!$D$9:$E$58,2,FALSE)=0,\"\",VLOOKUP(BC313,'Footnotes list'!$D$9:$E$58,2,FALSE) ) )","v":""},null,null,null,null,{"$f":"IF(TRIM(BH313)=\"\", \"\", IF(VLOOKUP(BH313,'Footnotes list'!$D$9:$E$58,2,FALSE)=0,\"\",VLOOKUP(BH313,'Footnotes list'!$D$9:$E$58,2,FALSE) ) )","v":""},null,null,null,null,{"$f":"IF(TRIM(BM313)=\"\", \"\", IF(VLOOKUP(BM313,'Footnotes list'!$D$9:$E$58,2,FALSE)=0,\"\",VLOOKUP(BM313,'Footnotes list'!$D$9:$E$58,2,FALSE) ) )","v":""},null,null,null,null,{"$f":"IF(TRIM(BR313)=\"\", \"\", IF(VLOOKUP(BR313,'Footnotes list'!$D$9:$E$58,2,FALSE)=0,\"\",VLOOKUP(BR313,'Footnotes list'!$D$9:$E$58,2,FALSE) ) )","v":""},null,null,null,null,{"$f":"IF(TRIM(BW313)=\"\", \"\", IF(VLOOKUP(BW313,'Footnotes list'!$D$9:$E$58,2,FALSE)=0,\"\",VLOOKUP(BW313,'Footnotes list'!$D$9:$E$58,2,FALSE) ) )","v":""},null,null,null,null,{"$f":"IF(TRIM(CB313)=\"\", \"\", IF(VLOOKUP(CB313,'Footnotes list'!$D$9:$E$58,2,FALSE)=0,\"\",VLOOKUP(CB313,'Footnotes list'!$D$9:$E$58,2,FALSE) ) )","v":""},null,null,null,null,{"$f":"IF(TRIM(CG313)=\"\", \"\", IF(VLOOKUP(CG313,'Footnotes list'!$D$9:$E$58,2,FALSE)=0,\"\",VLOOKUP(CG313,'Footnotes list'!$D$9:$E$58,2,FALSE) ) )","v":""},null,null,null,null,{"$f":"IF(TRIM(CL313)=\"\", \"\", IF(VLOOKUP(CL313,'Footnotes list'!$D$9:$E$58,2,FALSE)=0,\"\",VLOOKUP(CL313,'Footnotes list'!$D$9:$E$58,2,FALSE) ) )","v":""},null,null,null,null,{"$f":"IF(TRIM(CQ313)=\"\", \"\", IF(VLOOKUP(CQ313,'Footnotes list'!$D$9:$E$58,2,FALSE)=0,\"\",VLOOKUP(CQ313,'Footnotes list'!$D$9:$E$58,2,FALSE) ) )","v":""},null,null,null,null,{"$f":"IF(TRIM(CV313)=\"\", \"\", IF(VLOOKUP(CV313,'Footnotes list'!$D$9:$E$58,2,FALSE)=0,\"\",VLOOKUP(CV313,'Footnotes list'!$D$9:$E$58,2,FALSE) ) )","v":""},null,null,null,null,{"$f":"IF(TRIM(DA313)=\"\", \"\", IF(VLOOKUP(DA313,'Footnotes list'!$D$9:$E$58,2,FALSE)=0,\"\",VLOOKUP(DA313,'Footnotes list'!$D$9:$E$58,2,FALSE) ) )","v":""},null,null,null,null,{"$f":"IF(TRIM(DF313)=\"\", \"\", IF(VLOOKUP(DF313,'Footnotes list'!$D$9:$E$58,2,FALSE)=0,\"\",VLOOKUP(DF313,'Footnotes list'!$D$9:$E$58,2,FALSE) ) )","v":""},null,null,null,null,{"$f":"IF(TRIM(DK313)=\"\", \"\", IF(VLOOKUP(DK313,'Footnotes list'!$D$9:$E$58,2,FALSE)=0,\"\",VLOOKUP(DK313,'Footnotes list'!$D$9:$E$58,2,FALSE) ) )","v":""},null,null,null,null,{"$f":"IF(TRIM(DP313)=\"\", \"\", IF(VLOOKUP(DP313,'Footnotes list'!$D$9:$E$58,2,FALSE)=0,\"\",VLOOKUP(DP313,'Footnotes list'!$D$9:$E$58,2,FALSE) ) )","v":""},null,null,null,null,{"$f":"IF(TRIM(DU313)=\"\", \"\", IF(VLOOKUP(DU313,'Footnotes list'!$D$9:$E$58,2,FALSE)=0,\"\",VLOOKUP(DU313,'Footnotes list'!$D$9:$E$58,2,FALSE) ) )","v":""},null,null,null,null,{"$f":"IF(TRIM(DZ313)=\"\", \"\", IF(VLOOKUP(DZ313,'Footnotes list'!$D$9:$E$58,2,FALSE)=0,\"\",VLOOKUP(DZ313,'Footnotes list'!$D$9:$E$58,2,FALSE) ) )","v":""},null,null,null,null,{"$f":"IF(TRIM(EE313)=\"\", \"\", IF(VLOOKUP(EE313,'Footnotes list'!$D$9:$E$58,2,FALSE)=0,\"\",VLOOKUP(EE313,'Footnotes list'!$D$9:$E$58,2,FALSE) ) )","v":""},null,null,null,null,{"$f":"IF(TRIM(EJ313)=\"\", \"\", IF(VLOOKUP(EJ313,'Footnotes list'!$D$9:$E$58,2,FALSE)=0,\"\",VLOOKUP(EJ313,'Footnotes list'!$D$9:$E$58,2,FALSE) ) )","v":""},null,null,null,null,{"$f":"IF(TRIM(EO313)=\"\", \"\", IF(VLOOKUP(EO313,'Footnotes list'!$D$9:$E$58,2,FALSE)=0,\"\",VLOOKUP(EO313,'Footnotes list'!$D$9:$E$58,2,FALSE) ) )","v":""},null,null,null,null,{"$f":"IF(TRIM(ET313)=\"\", \"\", IF(VLOOKUP(ET313,'Footnotes list'!$D$9:$E$58,2,FALSE)=0,\"\",VLOOKUP(ET313,'Footnotes list'!$D$9:$E$58,2,FALSE) ) )","v":""},null,null,null,null,{"$f":"IF(TRIM(EY313)=\"\", \"\", IF(VLOOKUP(EY313,'Footnotes list'!$D$9:$E$58,2,FALSE)=0,\"\",VLOOKUP(EY313,'Footnotes list'!$D$9:$E$58,2,FALSE) ) )","v":""}]
[null,null,"G-I_K_L_N_Q-U","ES_CS","environmental specific services",null,null,null,null,null,{"$f":"IF(TRIM(J314)=\"\", \"\", IF(VLOOKUP(J314,'Footnotes list'!$D$9:$E$58,2,FALSE)=0,\"\",VLOOKUP(J314,'Footnotes list'!$D$9:$E$58,2,FALSE) ) )","v":""},null,null,null,null,{"$f":"IF(TRIM(O314)=\"\", \"\", IF(VLOOKUP(O314,'Footnotes list'!$D$9:$E$58,2,FALSE)=0,\"\",VLOOKUP(O314,'Footnotes list'!$D$9:$E$58,2,FALSE) ) )","v":""},null,null,null,null,{"$f":"IF(TRIM(T314)=\"\", \"\", IF(VLOOKUP(T314,'Footnotes list'!$D$9:$E$58,2,FALSE)=0,\"\",VLOOKUP(T314,'Footnotes list'!$D$9:$E$58,2,FALSE) ) )","v":""},null,null,null,null,{"$f":"IF(TRIM(Y314)=\"\", \"\", IF(VLOOKUP(Y314,'Footnotes list'!$D$9:$E$58,2,FALSE)=0,\"\",VLOOKUP(Y314,'Footnotes list'!$D$9:$E$58,2,FALSE) ) )","v":""},null,null,null,null,{"$f":"IF(TRIM(AD314)=\"\", \"\", IF(VLOOKUP(AD314,'Footnotes list'!$D$9:$E$58,2,FALSE)=0,\"\",VLOOKUP(AD314,'Footnotes list'!$D$9:$E$58,2,FALSE) ) )","v":""},null,null,null,null,{"$f":"IF(TRIM(AI314)=\"\", \"\", IF(VLOOKUP(AI314,'Footnotes list'!$D$9:$E$58,2,FALSE)=0,\"\",VLOOKUP(AI314,'Footnotes list'!$D$9:$E$58,2,FALSE) ) )","v":""},null,null,null,null,{"$f":"IF(TRIM(AN314)=\"\", \"\", IF(VLOOKUP(AN314,'Footnotes list'!$D$9:$E$58,2,FALSE)=0,\"\",VLOOKUP(AN314,'Footnotes list'!$D$9:$E$58,2,FALSE) ) )","v":""},null,null,null,null,{"$f":"IF(TRIM(AS314)=\"\", \"\", IF(VLOOKUP(AS314,'Footnotes list'!$D$9:$E$58,2,FALSE)=0,\"\",VLOOKUP(AS314,'Footnotes list'!$D$9:$E$58,2,FALSE) ) )","v":""},null,null,null,null,{"$f":"IF(TRIM(AX314)=\"\", \"\", IF(VLOOKUP(AX314,'Footnotes list'!$D$9:$E$58,2,FALSE)=0,\"\",VLOOKUP(AX314,'Footnotes list'!$D$9:$E$58,2,FALSE) ) )","v":""},null,null,null,null,{"$f":"IF(TRIM(BC314)=\"\", \"\", IF(VLOOKUP(BC314,'Footnotes list'!$D$9:$E$58,2,FALSE)=0,\"\",VLOOKUP(BC314,'Footnotes list'!$D$9:$E$58,2,FALSE) ) )","v":""},null,null,null,null,{"$f":"IF(TRIM(BH314)=\"\", \"\", IF(VLOOKUP(BH314,'Footnotes list'!$D$9:$E$58,2,FALSE)=0,\"\",VLOOKUP(BH314,'Footnotes list'!$D$9:$E$58,2,FALSE) ) )","v":""},null,null,null,null,{"$f":"IF(TRIM(BM314)=\"\", \"\", IF(VLOOKUP(BM314,'Footnotes list'!$D$9:$E$58,2,FALSE)=0,\"\",VLOOKUP(BM314,'Footnotes list'!$D$9:$E$58,2,FALSE) ) )","v":""},null,null,null,null,{"$f":"IF(TRIM(BR314)=\"\", \"\", IF(VLOOKUP(BR314,'Footnotes list'!$D$9:$E$58,2,FALSE)=0,\"\",VLOOKUP(BR314,'Footnotes list'!$D$9:$E$58,2,FALSE) ) )","v":""},null,null,null,null,{"$f":"IF(TRIM(BW314)=\"\", \"\", IF(VLOOKUP(BW314,'Footnotes list'!$D$9:$E$58,2,FALSE)=0,\"\",VLOOKUP(BW314,'Footnotes list'!$D$9:$E$58,2,FALSE) ) )","v":""},null,null,null,null,{"$f":"IF(TRIM(CB314)=\"\", \"\", IF(VLOOKUP(CB314,'Footnotes list'!$D$9:$E$58,2,FALSE)=0,\"\",VLOOKUP(CB314,'Footnotes list'!$D$9:$E$58,2,FALSE) ) )","v":""},null,null,null,null,{"$f":"IF(TRIM(CG314)=\"\", \"\", IF(VLOOKUP(CG314,'Footnotes list'!$D$9:$E$58,2,FALSE)=0,\"\",VLOOKUP(CG314,'Footnotes list'!$D$9:$E$58,2,FALSE) ) )","v":""},null,null,null,null,{"$f":"IF(TRIM(CL314)=\"\", \"\", IF(VLOOKUP(CL314,'Footnotes list'!$D$9:$E$58,2,FALSE)=0,\"\",VLOOKUP(CL314,'Footnotes list'!$D$9:$E$58,2,FALSE) ) )","v":""},null,null,null,null,{"$f":"IF(TRIM(CQ314)=\"\", \"\", IF(VLOOKUP(CQ314,'Footnotes list'!$D$9:$E$58,2,FALSE)=0,\"\",VLOOKUP(CQ314,'Footnotes list'!$D$9:$E$58,2,FALSE) ) )","v":""},null,null,null,null,{"$f":"IF(TRIM(CV314)=\"\", \"\", IF(VLOOKUP(CV314,'Footnotes list'!$D$9:$E$58,2,FALSE)=0,\"\",VLOOKUP(CV314,'Footnotes list'!$D$9:$E$58,2,FALSE) ) )","v":""},null,null,null,null,{"$f":"IF(TRIM(DA314)=\"\", \"\", IF(VLOOKUP(DA314,'Footnotes list'!$D$9:$E$58,2,FALSE)=0,\"\",VLOOKUP(DA314,'Footnotes list'!$D$9:$E$58,2,FALSE) ) )","v":""},null,null,null,null,{"$f":"IF(TRIM(DF314)=\"\", \"\", IF(VLOOKUP(DF314,'Footnotes list'!$D$9:$E$58,2,FALSE)=0,\"\",VLOOKUP(DF314,'Footnotes list'!$D$9:$E$58,2,FALSE) ) )","v":""},null,null,null,null,{"$f":"IF(TRIM(DK314)=\"\", \"\", IF(VLOOKUP(DK314,'Footnotes list'!$D$9:$E$58,2,FALSE)=0,\"\",VLOOKUP(DK314,'Footnotes list'!$D$9:$E$58,2,FALSE) ) )","v":""},null,null,null,null,{"$f":"IF(TRIM(DP314)=\"\", \"\", IF(VLOOKUP(DP314,'Footnotes list'!$D$9:$E$58,2,FALSE)=0,\"\",VLOOKUP(DP314,'Footnotes list'!$D$9:$E$58,2,FALSE) ) )","v":""},null,null,null,null,{"$f":"IF(TRIM(DU314)=\"\", \"\", IF(VLOOKUP(DU314,'Footnotes list'!$D$9:$E$58,2,FALSE)=0,\"\",VLOOKUP(DU314,'Footnotes list'!$D$9:$E$58,2,FALSE) ) )","v":""},null,null,null,null,{"$f":"IF(TRIM(DZ314)=\"\", \"\", IF(VLOOKUP(DZ314,'Footnotes list'!$D$9:$E$58,2,FALSE)=0,\"\",VLOOKUP(DZ314,'Footnotes list'!$D$9:$E$58,2,FALSE) ) )","v":""},null,null,null,null,{"$f":"IF(TRIM(EE314)=\"\", \"\", IF(VLOOKUP(EE314,'Footnotes list'!$D$9:$E$58,2,FALSE)=0,\"\",VLOOKUP(EE314,'Footnotes list'!$D$9:$E$58,2,FALSE) ) )","v":""},null,null,null,null,{"$f":"IF(TRIM(EJ314)=\"\", \"\", IF(VLOOKUP(EJ314,'Footnotes list'!$D$9:$E$58,2,FALSE)=0,\"\",VLOOKUP(EJ314,'Footnotes list'!$D$9:$E$58,2,FALSE) ) )","v":""},null,null,null,null,{"$f":"IF(TRIM(EO314)=\"\", \"\", IF(VLOOKUP(EO314,'Footnotes list'!$D$9:$E$58,2,FALSE)=0,\"\",VLOOKUP(EO314,'Footnotes list'!$D$9:$E$58,2,FALSE) ) )","v":""},null,null,null,null,{"$f":"IF(TRIM(ET314)=\"\", \"\", IF(VLOOKUP(ET314,'Footnotes list'!$D$9:$E$58,2,FALSE)=0,\"\",VLOOKUP(ET314,'Footnotes list'!$D$9:$E$58,2,FALSE) ) )","v":""},null,null,null,null,{"$f":"IF(TRIM(EY314)=\"\", \"\", IF(VLOOKUP(EY314,'Footnotes list'!$D$9:$E$58,2,FALSE)=0,\"\",VLOOKUP(EY314,'Footnotes list'!$D$9:$E$58,2,FALSE) ) )","v":""}]
[null,null,"G-I_K_L_N_Q-U","C_REP","cleaner and resource efficient products",null,null,null,null,null,{"$f":"IF(TRIM(J315)=\"\", \"\", IF(VLOOKUP(J315,'Footnotes list'!$D$9:$E$58,2,FALSE)=0,\"\",VLOOKUP(J315,'Footnotes list'!$D$9:$E$58,2,FALSE) ) )","v":""},null,null,null,null,{"$f":"IF(TRIM(O315)=\"\", \"\", IF(VLOOKUP(O315,'Footnotes list'!$D$9:$E$58,2,FALSE)=0,\"\",VLOOKUP(O315,'Footnotes list'!$D$9:$E$58,2,FALSE) ) )","v":""},null,null,null,null,{"$f":"IF(TRIM(T315)=\"\", \"\", IF(VLOOKUP(T315,'Footnotes list'!$D$9:$E$58,2,FALSE)=0,\"\",VLOOKUP(T315,'Footnotes list'!$D$9:$E$58,2,FALSE) ) )","v":""},null,null,null,null,{"$f":"IF(TRIM(Y315)=\"\", \"\", IF(VLOOKUP(Y315,'Footnotes list'!$D$9:$E$58,2,FALSE)=0,\"\",VLOOKUP(Y315,'Footnotes list'!$D$9:$E$58,2,FALSE) ) )","v":""},null,null,null,null,{"$f":"IF(TRIM(AD315)=\"\", \"\", IF(VLOOKUP(AD315,'Footnotes list'!$D$9:$E$58,2,FALSE)=0,\"\",VLOOKUP(AD315,'Footnotes list'!$D$9:$E$58,2,FALSE) ) )","v":""},null,null,null,null,{"$f":"IF(TRIM(AI315)=\"\", \"\", IF(VLOOKUP(AI315,'Footnotes list'!$D$9:$E$58,2,FALSE)=0,\"\",VLOOKUP(AI315,'Footnotes list'!$D$9:$E$58,2,FALSE) ) )","v":""},null,null,null,null,{"$f":"IF(TRIM(AN315)=\"\", \"\", IF(VLOOKUP(AN315,'Footnotes list'!$D$9:$E$58,2,FALSE)=0,\"\",VLOOKUP(AN315,'Footnotes list'!$D$9:$E$58,2,FALSE) ) )","v":""},null,null,null,null,{"$f":"IF(TRIM(AS315)=\"\", \"\", IF(VLOOKUP(AS315,'Footnotes list'!$D$9:$E$58,2,FALSE)=0,\"\",VLOOKUP(AS315,'Footnotes list'!$D$9:$E$58,2,FALSE) ) )","v":""},null,null,null,null,{"$f":"IF(TRIM(AX315)=\"\", \"\", IF(VLOOKUP(AX315,'Footnotes list'!$D$9:$E$58,2,FALSE)=0,\"\",VLOOKUP(AX315,'Footnotes list'!$D$9:$E$58,2,FALSE) ) )","v":""},null,null,null,null,{"$f":"IF(TRIM(BC315)=\"\", \"\", IF(VLOOKUP(BC315,'Footnotes list'!$D$9:$E$58,2,FALSE)=0,\"\",VLOOKUP(BC315,'Footnotes list'!$D$9:$E$58,2,FALSE) ) )","v":""},null,null,null,null,{"$f":"IF(TRIM(BH315)=\"\", \"\", IF(VLOOKUP(BH315,'Footnotes list'!$D$9:$E$58,2,FALSE)=0,\"\",VLOOKUP(BH315,'Footnotes list'!$D$9:$E$58,2,FALSE) ) )","v":""},null,null,null,null,{"$f":"IF(TRIM(BM315)=\"\", \"\", IF(VLOOKUP(BM315,'Footnotes list'!$D$9:$E$58,2,FALSE)=0,\"\",VLOOKUP(BM315,'Footnotes list'!$D$9:$E$58,2,FALSE) ) )","v":""},null,null,null,null,{"$f":"IF(TRIM(BR315)=\"\", \"\", IF(VLOOKUP(BR315,'Footnotes list'!$D$9:$E$58,2,FALSE)=0,\"\",VLOOKUP(BR315,'Footnotes list'!$D$9:$E$58,2,FALSE) ) )","v":""},null,null,null,null,{"$f":"IF(TRIM(BW315)=\"\", \"\", IF(VLOOKUP(BW315,'Footnotes list'!$D$9:$E$58,2,FALSE)=0,\"\",VLOOKUP(BW315,'Footnotes list'!$D$9:$E$58,2,FALSE) ) )","v":""},null,null,null,null,{"$f":"IF(TRIM(CB315)=\"\", \"\", IF(VLOOKUP(CB315,'Footnotes list'!$D$9:$E$58,2,FALSE)=0,\"\",VLOOKUP(CB315,'Footnotes list'!$D$9:$E$58,2,FALSE) ) )","v":""},null,null,null,null,{"$f":"IF(TRIM(CG315)=\"\", \"\", IF(VLOOKUP(CG315,'Footnotes list'!$D$9:$E$58,2,FALSE)=0,\"\",VLOOKUP(CG315,'Footnotes list'!$D$9:$E$58,2,FALSE) ) )","v":""},null,null,null,null,{"$f":"IF(TRIM(CL315)=\"\", \"\", IF(VLOOKUP(CL315,'Footnotes list'!$D$9:$E$58,2,FALSE)=0,\"\",VLOOKUP(CL315,'Footnotes list'!$D$9:$E$58,2,FALSE) ) )","v":""},null,null,null,null,{"$f":"IF(TRIM(CQ315)=\"\", \"\", IF(VLOOKUP(CQ315,'Footnotes list'!$D$9:$E$58,2,FALSE)=0,\"\",VLOOKUP(CQ315,'Footnotes list'!$D$9:$E$58,2,FALSE) ) )","v":""},null,null,null,null,{"$f":"IF(TRIM(CV315)=\"\", \"\", IF(VLOOKUP(CV315,'Footnotes list'!$D$9:$E$58,2,FALSE)=0,\"\",VLOOKUP(CV315,'Footnotes list'!$D$9:$E$58,2,FALSE) ) )","v":""},null,null,null,null,{"$f":"IF(TRIM(DA315)=\"\", \"\", IF(VLOOKUP(DA315,'Footnotes list'!$D$9:$E$58,2,FALSE)=0,\"\",VLOOKUP(DA315,'Footnotes list'!$D$9:$E$58,2,FALSE) ) )","v":""},null,null,null,null,{"$f":"IF(TRIM(DF315)=\"\", \"\", IF(VLOOKUP(DF315,'Footnotes list'!$D$9:$E$58,2,FALSE)=0,\"\",VLOOKUP(DF315,'Footnotes list'!$D$9:$E$58,2,FALSE) ) )","v":""},null,null,null,null,{"$f":"IF(TRIM(DK315)=\"\", \"\", IF(VLOOKUP(DK315,'Footnotes list'!$D$9:$E$58,2,FALSE)=0,\"\",VLOOKUP(DK315,'Footnotes list'!$D$9:$E$58,2,FALSE) ) )","v":""},null,null,null,null,{"$f":"IF(TRIM(DP315)=\"\", \"\", IF(VLOOKUP(DP315,'Footnotes list'!$D$9:$E$58,2,FALSE)=0,\"\",VLOOKUP(DP315,'Footnotes list'!$D$9:$E$58,2,FALSE) ) )","v":""},null,null,null,null,{"$f":"IF(TRIM(DU315)=\"\", \"\", IF(VLOOKUP(DU315,'Footnotes list'!$D$9:$E$58,2,FALSE)=0,\"\",VLOOKUP(DU315,'Footnotes list'!$D$9:$E$58,2,FALSE) ) )","v":""},null,null,null,null,{"$f":"IF(TRIM(DZ315)=\"\", \"\", IF(VLOOKUP(DZ315,'Footnotes list'!$D$9:$E$58,2,FALSE)=0,\"\",VLOOKUP(DZ315,'Footnotes list'!$D$9:$E$58,2,FALSE) ) )","v":""},null,null,null,null,{"$f":"IF(TRIM(EE315)=\"\", \"\", IF(VLOOKUP(EE315,'Footnotes list'!$D$9:$E$58,2,FALSE)=0,\"\",VLOOKUP(EE315,'Footnotes list'!$D$9:$E$58,2,FALSE) ) )","v":""},null,null,null,null,{"$f":"IF(TRIM(EJ315)=\"\", \"\", IF(VLOOKUP(EJ315,'Footnotes list'!$D$9:$E$58,2,FALSE)=0,\"\",VLOOKUP(EJ315,'Footnotes list'!$D$9:$E$58,2,FALSE) ) )","v":""},null,null,null,null,{"$f":"IF(TRIM(EO315)=\"\", \"\", IF(VLOOKUP(EO315,'Footnotes list'!$D$9:$E$58,2,FALSE)=0,\"\",VLOOKUP(EO315,'Footnotes list'!$D$9:$E$58,2,FALSE) ) )","v":""},null,null,null,null,{"$f":"IF(TRIM(ET315)=\"\", \"\", IF(VLOOKUP(ET315,'Footnotes list'!$D$9:$E$58,2,FALSE)=0,\"\",VLOOKUP(ET315,'Footnotes list'!$D$9:$E$58,2,FALSE) ) )","v":""},null,null,null,null,{"$f":"IF(TRIM(EY315)=\"\", \"\", IF(VLOOKUP(EY315,'Footnotes list'!$D$9:$E$58,2,FALSE)=0,\"\",VLOOKUP(EY315,'Footnotes list'!$D$9:$E$58,2,FALSE) ) )","v":""}]
[]
[null,null,null,"Grey: Automatic calculation. Formula can be overwritten (with \"unlock formulas\")"]
[null,null,null,"Cyan: Non Mandatory variables"]
[null,null,null,"Light yellow: Footnotes (only to be filled-in when relevant)"]

{"sheet":"EMPLOYMENT","index":9,"n_rows":319,"n_cols":156,"rows_kept":319,"cut":false,"hidden":false,"merged":[[316,3,316,5],[5,94,5,95],[5,99,5,100],[5,104,5,105],[5,109,5,110],[5,114,5,115],[5,119,5,120],[5,124,5,125],[5,129,5,130],[303,4,303,5],[304,4,304,5],[305,4,305,5],[306,4,306,5],[307,4,307,5],[308,4,308,5],[298,4,298,5],[299,4,299,5],[300,4,300,5],[301,4,301,5],[294,4,294,5],[295,4,295,5],[296,4,296,5],[297,4,297,5],[302,4,302,5],[5,54,5,55],[5,59,5,60],[5,64,5,65],[5,69,5,70],[5,74,5,75],[5,79,5,80],[5,84,5,85],[5,89,5,90],[5,139,5,140],[5,9,5,10],[5,14,5,15],[5,19,5,20],[5,24,5,25],[5,29,5,30],[5,34,5,35],[5,39,5,40],[5,44,5,45],[5,49,5,50],[5,154,5,155],[4,97,4,100],[4,102,4,105],[4,107,4,110],[4,112,4,115],[4,117,4,120],[4,122,4,125],[4,127,4,130],[4,132,4,135],[4,137,4,140],[5,134,5,135],[4,142,4,145],[4,147,4,150],[4,152,4,155],[5,144,5,145],[5,149,5,150],[4,52,4,55],[4,57,4,60],[4,62,4,65],[4,67,4,70],[4,72,4,75],[4,77,4,80],[4,82,4,85],[4,87,4,90],[4,92,4,95],[4,7,4,10],[4,12,4,15],[4,17,4,20],[4,22,4,25],[4,27,4,30],[4,32,4,35],[4,37,4,40],[4,42,4,45],[4,47,4,50],[288,4,288,5],[289,4,289,5],[290,4,290,5],[291,4,291,5],[292,4,292,5],[293,4,293,5],[284,4,284,5],[285,4,285,5],[286,4,286,5],[287,4,287,5],[281,4,281,5],[282,4,282,5],[283,4,283,5],[274,4,274,5],[275,4,275,5],[276,4,276,5],[277,4,277,5],[278,4,278,5],[279,4,279,5],[270,4,270,5],[271,4,271,5],[272,4,272,5],[273,4,273,5],[266,4,266,5],[267,4,267,5],[268,4,268,5],[269,4,269,5],[280,4,280,5],[260,4,260,5],[261,4,261,5],[262,4,262,5],[263,4,263,5],[264,4,264,5],[265,4,265,5],[256,4,256,5],[257,4,257,5],[258,4,258,5],[259,4,259,5],[253,4,253,5],[254,4,254,5],[255,4,255,5],[246,4,246,5],[247,4,247,5],[248,4,248,5],[249,4,249,5],[250,4,250,5],[251,4,251,5],[242,4,242,5],[243,4,243,5],[244,4,244,5],[245,4,245,5],[238,4,238,5],[239,4,239,5],[240,4,240,5],[241,4,241,5],[252,4,252,5],[232,4,232,5],[233,4,233,5],[234,4,234,5],[235,4,235,5],[236,4,236,5],[237,4,237,5],[228,4,228,5],[229,4,229,5],[230,4,230,5],[231,4,231,5],[225,4,225,5],[226,4,226,5],[227,4,227,5],[218,4,218,5],[219,4,219,5],[220,4,220,5],[221,4,221,5],[222,4,222,5],[223,4,223,5],[214,4,214,5],[215,4,215,5],[216,4,216,5],[217,4,217,5],[210,4,210,5],[211,4,211,5],[212,4,212,5],[213,4,213,5],[224,4,224,5],[204,4,204,5],[205,4,205,5],[206,4,206,5],[207,4,207,5],[208,4,208,5],[209,4,209,5],[200,4,200,5],[201,4,201,5],[202,4,202,5],[203,4,203,5],[197,4,197,5],[198,4,198,5],[199,4,199,5],[190,4,190,5],[191,4,191,5],[192,4,192,5],[193,4,193,5],[194,4,194,5],[195,4,195,5],[186,4,186,5],[187,4,187,5],[188,4,188,5],[189,4,189,5],[182,4,182,5],[183,4,183,5],[184,4,184,5],[185,4,185,5],[196,4,196,5],[176,4,176,5],[177,4,177,5],[178,4,178,5],[179,4,179,5],[180,4,180,5],[181,4,181,5],[172,4,172,5],[173,4,173,5],[174,4,174,5],[175,4,175,5],[169,4,169,5],[170,4,170,5],[171,4,171,5],[162,4,162,5],[163,4,163,5],[164,4,164,5],[165,4,165,5],[166,4,166,5],[167,4,167,5],[158,4,158,5],[159,4,159,5],[160,4,160,5],[161,4,161,5],[154,4,154,5],[155,4,155,5],[156,4,156,5],[157,4,157,5],[168,4,168,5],[148,4,148,5],[149,4,149,5],[150,4,150,5],[151,4,151,5],[152,4,152,5],[153,4,153,5],[144,4,144,5],[145,4,145,5],[146,4,146,5],[147,4,147,5],[141,4,141,5],[142,4,142,5],[143,4,143,5],[134,4,134,5],[135,4,135,5],[136,4,136,5],[137,4,137,5],[138,4,138,5],[139,4,139,5],[130,4,130,5],[131,4,131,5],[132,4,132,5],[133,4,133,5],[126,4,126,5],[127,4,127,5],[128,4,128,5],[129,4,129,5],[140,4,140,5],[120,4,120,5],[121,4,121,5],[122,4,122,5],[123,4,123,5],[124,4,124,5],[125,4,125,5],[116,4,116,5],[117,4,117,5],[118,4,118,5],[119,4,119,5],[113,4,113,5],[114,4,114,5],[115,4,115,5],[106,4,106,5],[107,4,107,5],[108,4,108,5],[109,4,109,5],[110,4,110,5],[111,4,111,5],[102,4,102,5],[103,4,103,5],[104,4,104,5],[105,4,105,5],[98,4,98,5],[99,4,99,5],[100,4,100,5],[101,4,101,5],[112,4,112,5],[93,4,93,5],[94,4,94,5],[95,4,95,5],[96,4,96,5],[97,4,97,5],[88,4,88,5],[89,4,89,5],[90,4,90,5],[91,4,91,5],[86,4,86,5],[87,4,87,5],[78,4,78,5],[79,4,79,5],[80,4,80,5],[81,4,81,5],[82,4,82,5],[83,4,83,5],[92,4,92,5],[75,4,75,5],[76,4,76,5],[77,4,77,5],[70,4,70,5],[71,4,71,5],[72,4,72,5],[73,4,73,5],[84,4,84,5],[85,4,85,5],[66,4,66,5],[67,4,67,5],[68,4,68,5],[69,4,69,5],[60,4,60,5],[61,4,61,5],[62,4,62,5],[63,4,63,5],[74,4,74,5],[59,4,59,5],[50,4,50,5],[51,4,51,5],[52,4,52,5],[53,4,53,5],[54,4,54,5],[55,4,55,5],[64,4,64,5],[65,4,65,5],[48,4,48,5],[49,4,49,5],[42,4,42,5],[43,4,43,5],[44,4,44,5],[45,4,45,5],[56,4,56,5],[57,4,57,5],[58,4,58,5],[314,4,314,5],[8,4,8,5],[9,4,9,5],[10,4,10,5],[11,4,11,5],[12,4,12,5],[13,4,13,5],[28,4,28,5],[29,4,29,5],[30,4,30,5],[31,4,31,5],[22,4,22,5],[23,4,23,5],[24,4,24,5],[25,4,25,5],[26,4,26,5],[27,4,27,5],[36,4,36,5],[18,4,18,5],[19,4,19,5],[20,4,20,5],[21,4,21,5],[14,4,14,5],[15,4,15,5],[1,6,3,70],[1,71,3,145],[1,146,3,150],[1,151,3,155],[309,4,309,5],[310,4,310,5],[311,4,311,5],[312,4,312,5],[313,4,313,5],[5,4,5,5],[7,4,7,5],[16,4,16,5],[17,4,17,5],[38,4,38,5],[39,4,39,5],[40,4,40,5],[41,4,41,5],[32,4,32,5],[33,4,33,5],[34,4,34,5],[35,4,35,5],[46,4,46,5],[37,4,37,5],[47,4,47,5]]}
[]
[null,null,null,"Country:",{"$f":"\"\" &'GETTING STARTED'!G9","v":""},{"$f":"\"\" &'GETTING STARTED'!E9","v":""},null,null,null,null,null,null,null,null,null,null,null,null,null,null,null,null,null,null,null,null,null,null,null,null,null,null,null,null,null,null,null,null,null,null,null,null,null,null,null,null,null,null,null,null,null,null,null,null,null,null,null,null,null,null,null,null,null,null,null,null,null,null,null,null,null,null,null,null,null,null,null,null,null,null,null,null,null,null,null,null,null,null,null,null,null,null,null,null,null,null,null,null,null,null,null,null,null,null,null,null,null,null,null,null,null,null,null,null,null,null,null,null,null,null,null,null,null,null,null,null,null,null,null,null,null,null,null,null,null,null,null,null,null,null,null,null,null,null,null,null,null,null,null,null,null,"MEMO"]
[null,null,null,"Year:",{"$f":"\"\" &'GETTING STARTED'!E10","v":""},null,"A. Environmental Protection",null,null,null,null,null,null,null,null,null,null,null,null,null,null,null,null,null,null,null,null,null,null,null,null,null,null,null,null,null,null,null,null,null,null,null,null,null,null,null,null,null,null,null,null,null,null,null,null,null,null,null,null,null,null,null,null,null,null,null,null,null,null,null,null,"B. Resources Management",null,null,null,null,null,null,null,null,null,null,null,null,null,null,null,null,null,null,null,null,null,null,null,null,null,null,null,null,null,null,null,null,null,null,null,null,null,null,null,null,null,null,null,null,null,null,null,null,null,null,null,null,null,null,null,null,null,null,null,null,null,null,null,null,null,null,null,null,null,null,null,null,null,null,null,null,null,null,null,"ITEM"]
[null,null,null,"Unit:","FTE","Million units of national currency"]
[null,null,null,"Characteristic / variable","EMP_DC","EMPLOYMENT","CEPA 1",null,null,null,null,"CEPA 1.1.2 and 1.2.2",null,null,null,null,"CEPA 2",null,null,null,null,"CEPA 3",null,null,null,null,"CEPA 4",null,null,null,null,"CEPA 5",null,null,null,null,"CEPA 6",null,null,null,null,"CEPA 7 + CEPA 8 + CEPA 9",null,null,null,null,"CEPA 7",null,null,null,null,"CEPA 8",null,null,null,null,"CEPA 8.1.2",null,null,null,null,"CEPA 9",null,null,null,null,"CEPA 1-9",null,null,null,null,"CReMA 10",null,null,null,null,"CReMA 11",null,null,null,null,"CReMA   11 A",null,null,null,null,"CReMA 11 B",null,null,null,null,"CReMA 13 ",null,null,null,null,"CReMA 13 A",null,null,null,null,"CReMA 13 B",null,null,null,null,"CReMA 13 C",null,null,null,null,"CReMA 14",null,null,null,null,"CReMA 12 + CReMA 15 + CReMA 16",null,null,null,null,"CReMA 12",null,null,null,null,"CReMA 15",null,null,null,null,"CReMA 15.5.1",null,null,null,null,"CReMA 16",null,null,null,null,"CReMA 10-16",null,null,null,null,"CEPA 1-9 and CReMA 10-16",null,null,null,null,"CREMA13B_MEMO"]
[null,null,null,null,"EGSS - EMPLOYMENT",null,"Protection of ambient air and climate ","Standard footnote","Confidentiality footnote","Explanatory footnote",null,"Protection of climate and ozone layer (as a subgroup of protection of ambient air and climate)","Standard footnote","Confidentiality footnote","Explanatory footnote",null,"Wastewater management","Standard footnote","Confidentiality footnote","Explanatory footnote",null,"Waste management ","Standard footnote","Confidentiality footnote","Explanatory footnote",null,"Protection and remediation of soil, groundwater and surface water ","Standard footnote","Confidentiality footnote","Explanatory footnote",null,"Noise and vibration abatement ","Standard footnote","Confidentiality footnote","Explanatory footnote",null,"Protection of biodiversity and landscapes ","Standard footnote","Confidentiality footnote","Explanatory footnote",null,"Protection against radiation; Research and development (R&D) and Other","Standard footnote","Confidentiality footnote","Explanatory footnote",null,"Protection against radiation ","Standard footnote","Confidentiality footnote","Explanatory footnote",null,"Research and development (R&D) for environmental protection","Standard footnote","Confidentiality footnote","Explanatory footnote",null,"R&D for the protection of climate and ozone layer (as a subgroup of research and development for environmental protection)","Standard footnote","Confidentiality footnote","Explanatory footnote",null,"Other","Standard footnote","Confidentiality footnote","Explanatory footnote",null,"Total CEPA","Standard footnote","Confidentiality footnote","Explanatory footnote",null,"Management of waters","Standard footnote","Confidentiality footnote","Explanatory footnote",null,"Management of forest resources","Standard footnote","Confidentiality footnote","Explanatory footnote",null,"Management of forest areas","Standard footnote","Confidentiality footnote","Explanatory footnote",null,"Minimisation of the intake of  forest resources","Standard footnote","Confidentiality footnote","Explanatory footnote",null,"Management of fossil energy resources","Standard footnote","Confidentiality footnote","Explanatory footnote",null,"Production of energy from renewable sources","Standard footnote","Confidentiality footnote","Explanatory footnote",null,"Heat/Energy saving and management","Standard footnote","Confidentiality footnote","Explanatory footnote",null,"Minimisation of the intake of fossil resources as raw material ","Standard footnote","Confidentiality footnote","Explanatory footnote",null,"Management of minerals","Standard footnote","Confidentiality footnote","Explanatory footnote",null,"Management of wild flora and fauna; Research and development (R&D) and Other","Standard footnote","Confidentiality footnote","Explanatory footnote",null,"Management of wild flora and fauna","Standard footnote","Confidentiality footnote","Explanatory footnote",null,"Research and development (R&D) for resource management","Standard footnote","Confidentiality footnote","Explanatory footnote",null,"R&D for the production of energy from renewable sources (as a subgroup of R& D for resource management) ","Standard footnote","Confidentiality footnote","Explanatory footnote",null,"Other","Standard footnote","Confidentiality footnote","Explanatory footnote",null,"Total CReMA","Standard footnote","Confidentiality footnote","Explanatory footnote",null,"TOTAL CEPA and CReMA","Standard footnote","Confidentiality footnote","Explanatory footnote",null,"Part of GVA related to energy-efficiency measures undertaken for the construction of the NZEBs","Standard footnote","Confidentiality footnote","Explanatory footnote"]
[null,null,null,null,null,null,"CEPA1",null,null,null,null,"CEPA112_122",null,null,null,null,"CEPA2",null,null,null,null,"CEPA3",null,null,null,null,"CEPA4",null,null,null,null,"CEPA5",null,null,null,null,"CEPA6",null,null,null,null,"CEPA7-9",null,null,null,null,"CEPA7",null,null,null,null,"CEPA8",null,null,null,null,"CEPA812",null,null,null,null,"CEPA9",null,null,null,null,"TOT_CEPA",null,null,null,null,"CREMA10",null,null,null,null,"CREMA11",null,null,null,null,"CREMA11A",null,null,null,null,"CREMA11B",null,null,null,null,"CREMA13",null,null,null,null,"CREMA13A",null,null,null,null,"CREMA13B",null,null,null,null,"CREMA13C",null,null,null,null,"CREMA14",null,null,null,null,"CREMA12_15_16",null,null,null,null,"CREMA12",null,null,null,null,"CREMA15",null,null,null,null,"CREMA15A",null,null,null,null,"CREMA16",null,null,null,null,"TOT_CREMA",null,null,null,null,"TOTAL",null,null,null,null,"CREMA13B_MEMO"]
[null,null,"TOTAL","TOT_EGSS","Total gross value added, of which:",null,{"$f":"G15+G22+G29+G127+G134+G169+G197+G218+G260+G267+G309","v":0},null,null,null,{"$f":"IF(TRIM(J8)=\"\", \"\", IF(VLOOKUP(J8,'Footnotes list'!$D$9:$E$58,2,FALSE)=0,\"\",VLOOKUP(J8,'Footnotes list'!$D$9:$E$58,2,FALSE) ) )","v":""},null,null,null,null,{"$f":"IF(TRIM(O8)=\"\", \"\", IF(VLOOKUP(O8,'Footnotes list'!$D$9:$E$58,2,FALSE)=0,\"\",VLOOKUP(O8,'Footnotes list'!$D$9:$E$58,2,FALSE) ) )","v":""},{"$f":"Q15+Q22+Q29+Q127+Q134+Q169+Q197+Q218+Q260+Q267+Q309","v":0},null,null,null,{"$f":"IF(TRIM(T8)=\"\", \"\", IF(VLOOKUP(T8,'Footnotes list'!$D$9:$E$58,2,FALSE)=0,\"\",VLOOKUP(T8,'Footnotes list'!$D$9:$E$58,2,FALSE) ) )","v":""},{"$f":"V15+V22+V29+V127+V134+V169+V197+V218+V260+V267+V309","v":0},null,null,null,{"$f":"IF(TRIM(Y8)=\"\", \"\", IF(VLOOKUP(Y8,'Footnotes list'!$D$9:$E$58,2,FALSE)=0,\"\",VLOOKUP(Y8,'Footnotes list'!$D$9:$E$58,2,FALSE) ) )","v":""},{"$f":"AA15+AA22+AA29+AA127+AA134+AA169+AA197+AA218+AA260+AA267+AA309","v":0},null,null,null,{"$f":"IF(TRIM(AD8)=\"\", \"\", IF(VLOOKUP(AD8,'Footnotes list'!$D$9:$E$58,2,FALSE)=0,\"\",VLOOKUP(AD8,'Footnotes list'!$D$9:$E$58,2,FALSE) ) )","v":""},{"$f":"AF15+AF22+AF29+AF127+AF134+AF169+AF197+AF218+AF260+AF267+AF309","v":0},null,null,null,{"$f":"IF(TRIM(AI8)=\"\", \"\", IF(VLOOKUP(AI8,'Footnotes list'!$D$9:$E$58,2,FALSE)=0,\"\",VLOOKUP(AI8,'Footnotes list'!$D$9:$E$58,2,FALSE) ) )","v":""},{"$f":"AK15+AK22+AK29+AK127+AK134+AK169+AK197+AK218+AK260+AK267+AK309","v":0},null,null,null,{"$f":"IF(TRIM(AN8)=\"\", \"\", IF(VLOOKUP(AN8,'Footnotes list'!$D$9:$E$58,2,FALSE)=0,\"\",VLOOKUP(AN8,'Footnotes list'!$D$9:$E$58,2,FALSE) ) )","v":""},{"$f":"AP15+AP22+AP29+AP127+AP134+AP169+AP197+AP218+AP260+AP267+AP309","v":0},null,null,null,{"$f":"IF(TRIM(AS8)=\"\", \"\", IF(VLOOKUP(AS8,'Footnotes list'!$D$9:$E$58,2,FALSE)=0,\"\",VLOOKUP(AS8,'Footnotes list'!$D$9:$E$58,2,FALSE) ) )","v":""},null,null,null,null,{"$f":"IF(TRIM(AX8)=\"\", \"\", IF(VLOOKUP(AX8,'Footnotes list'!$D$9:$E$58,2,FALSE)=0,\"\",VLOOKUP(AX8,'Footnotes list'!$D$9:$E$58,2,FALSE) ) )","v":""},null,null,null,null,{"$f":"IF(TRIM(BC8)=\"\", \"\", IF(VLOOKUP(BC8,'Footnotes list'!$D$9:$E$58,2,FALSE)=0,\"\",VLOOKUP(BC8,'Footnotes list'!$D$9:$E$58,2,FALSE) ) )","v":""},null,null,null,null,{"$f":"IF(TRIM(BH8)=\"\", \"\", IF(VLOOKUP(BH8,'Footnotes list'!$D$9:$E$58,2,FALSE)=0,\"\",VLOOKUP(BH8,'Footnotes list'!$D$9:$E$58,2,FALSE) ) )","v":""},null,null,null,null,{"$f":"IF(TRIM(BM8)=\"\", \"\", IF(VLOOKUP(BM8,'Footnotes list'!$D$9:$E$58,2,FALSE)=0,\"\",VLOOKUP(BM8,'Footnotes list'!$D$9:$E$58,2,FALSE) ) )","v":""},{"$f":"G8+Q8+V8+AA8+AF8+AK8+AP8","v":0},null,null,null,{"$f":"IF(TRIM(BR8)=\"\", \"\", IF(VLOOKUP(BR8,'Footnotes list'!$D$9:$E$58,2,FALSE)=0,\"\",VLOOKUP(BR8,'Footnotes list'!$D$9:$E$58,2,FALSE) ) )","v":""},{"$f":"BT15+BT22+BT29+BT127+BT134+BT169+BT197+BT218+BT260+BT267+BT309","v":0},null,null,null,{"$f":"IF(TRIM(BW8)=\"\", \"\", IF(VLOOKUP(BW8,'Footnotes list'!$D$9:$E$58,2,FALSE)=0,\"\",VLOOKUP(BW8,'Footnotes list'!$D$9:$E$58,2,FALSE) ) )","v":""},{"$f":"BY15+BY22+BY29+BY127+BY134+BY169+BY197+BY218+BY260+BY267+BY309","v":0},null,null,null,{"$f":"IF(TRIM(CB8)=\"\", \"\", IF(VLOOKUP(CB8,'Footnotes list'!$D$9:$E$58,2,FALSE)=0,\"\",VLOOKUP(CB8,'Footnotes list'!$D$9:$E$58,2,FALSE) ) )","v":""},null,null,null,null,{"$f":"IF(TRIM(CG8)=\"\", \"\", IF(VLOOKUP(CG8,'Footnotes list'!$D$9:$E$58,2,FALSE)=0,\"\",VLOOKUP(CG8,'Footnotes list'!$D$9:$E$58,2,FALSE) ) )","v":""},null,null,null,null,{"$f":"IF(TRIM(CL8)=\"\", \"\", IF(VLOOKUP(CL8,'Footnotes list'!$D$9:$E$58,2,FALSE)=0,\"\",VLOOKUP(CL8,'Footnotes list'!$D$9:$E$58,2,FALSE) ) )","v":""},{"$f":"CN15+CN22+CN29+CN127+CN134+CN169+CN197+CN218+CN260+CN267+CN309","v":0},null,null,null,{"$f":"IF(TRIM(CQ8)=\"\", \"\", IF(VLOOKUP(CQ8,'Footnotes list'!$D$9:$E$58,2,FALSE)=0,\"\",VLOOKUP(CQ8,'Footnotes list'!$D$9:$E$58,2,FALSE) ) )","v":""},{"$f":"CS15+CS22+CS29+CS127+CS134+CS169+CS197+CS218+CS260+CS267+CS309","v":0},null,null,null,{"$f":"IF(TRIM(CV8)=\"\", \"\", IF(VLOOKUP(CV8,'Footnotes list'!$D$9:$E$58,2,FALSE)=0,\"\",VLOOKUP(CV8,'Footnotes list'!$D$9:$E$58,2,FALSE) ) )","v":""},{"$f":"CX15+CX22+CX29+CX127+CX134+CX169+CX197+CX218+CX260+CX267+CX309","v":0},null,null,null,{"$f":"IF(TRIM(DA8)=\"\", \"\", IF(VLOOKUP(DA8,'Footnotes list'!$D$9:$E$58,2,FALSE)=0,\"\",VLOOKUP(DA8,'Footnotes list'!$D$9:$E$58,2,FALSE) ) )","v":""},{"$f":"DC15+DC22+DC29+DC127+DC134+DC169+DC197+DC218+DC260+DC267+DC309","v":0},null,null,null,{"$f":"IF(TRIM(DF8)=\"\", \"\", IF(VLOOKUP(DF8,'Footnotes list'!$D$9:$E$58,2,FALSE)=0,\"\",VLOOKUP(DF8,'Footnotes list'!$D$9:$E$58,2,FALSE) ) )","v":""},{"$f":"DH15+DH22+DH29+DH127+DH134+DH169+DH197+DH218+DH260+DH267+DH309","v":0},null,null,null,{"$f":"IF(TRIM(DK8)=\"\", \"\", IF(VLOOKUP(DK8,'Footnotes list'!$D$9:$E$58,2,FALSE)=0,\"\",VLOOKUP(DK8,'Footnotes list'!$D$9:$E$58,2,FALSE) ) )","v":""},{"$f":"DM15+DM22+DM29+DM127+DM134+DM169+DM197+DM218+DM260+DM267+DM309","v":0},null,null,null,{"$f":"IF(TRIM(DP8)=\"\", \"\", IF(VLOOKUP(DP8,'Footnotes list'!$D$9:$E$58,2,FALSE)=0,\"\",VLOOKUP(DP8,'Footnotes list'!$D$9:$E$58,2,FALSE) ) )","v":""},null,null,null,null,{"$f":"IF(TRIM(DU8)=\"\", \"\", IF(VLOOKUP(DU8,'Footnotes list'!$D$9:$E$58,2,FALSE)=0,\"\",VLOOKUP(DU8,'Footnotes list'!$D$9:$E$58,2,FALSE) ) )","v":""},null,null,null,null,{"$f":"IF(TRIM(DZ8)=\"\", \"\", IF(VLOOKUP(DZ8,'Footnotes list'!$D$9:$E$58,2,FALSE)=0,\"\",VLOOKUP(DZ8,'Footnotes list'!$D$9:$E$58,2,FALSE) ) )","v":""},null,null,null,null,{"$f":"IF(TRIM(EE8)=\"\", \"\", IF(VLOOKUP(EE8,'Footnotes list'!$D$9:$E$58,2,FALSE)=0,\"\",VLOOKUP(EE8,'Footnotes list'!$D$9:$E$58,2,FALSE) ) )","v":""},null,null,null,null,{"$f":"IF(TRIM(EJ8)=\"\", \"\", IF(VLOOKUP(EJ8,'Footnotes list'!$D$9:$E$58,2,FALSE)=0,\"\",VLOOKUP(EJ8,'Footnotes list'!$D$9:$E$58,2,FALSE) ) )","v":""},{"$f":"DM8+DH8+CN8+BY8+BT8","v":0},null,null,null,{"$f":"IF(TRIM(EO8)=\"\", \"\", IF(VLOOKUP(EO8,'Footnotes list'!$D$9:$E$58,2,FALSE)=0,\"\",VLOOKUP(EO8,'Footnotes list'!$D$9:$E$58,2,FALSE) ) )","v":""},{"$f":"EL8+BO8","v":0},null,null,null,{"$f":"IF(TRIM(ET8)=\"\", \"\", IF(VLOOKUP(ET8,'Footnotes list'!$D$9:$E$58,2,FALSE)=0,\"\",VLOOKUP(ET8,'Footnotes list'!$D$9:$E$58,2,FALSE) ) )","v":""},null,null,null,null,{"$f":"IF(TRIM(EY8)=\"\", \"\", IF(VLOOKUP(EY8,'Footnotes list'!$D$9:$E$58,2,FALSE)=0,\"\",VLOOKUP(EY8,'Footnotes list'!$D$9:$E$58,2,FALSE) ) )","v":""}]
[null,null,"TOTAL","ANC","ancillary activities",null,null,null,null,null,{"$f":"IF(TRIM(J9)=\"\", \"\", IF(VLOOKUP(J9,'Footnotes list'!$D$9:$E$58,2,FALSE)=0,\"\",VLOOKUP(J9,'Footnotes list'!$D$9:$E$58,2,FALSE) ) )","v":""},null,null,null,null,{"$f":"IF(TRIM(O9)=\"\", \"\", IF(VLOOKUP(O9,'Footnotes list'!$D$9:$E$58,2,FALSE)=0,\"\",VLOOKUP(O9,'Footnotes list'!$D$9:$E$58,2,FALSE) ) )","v":""},null,null,null,null,{"$f":"IF(TRIM(T9)=\"\", \"\", IF(VLOOKUP(T9,'Footnotes list'!$D$9:$E$58,2,FALSE)=0,\"\",VLOOKUP(T9,'Footnotes list'!$D$9:$E$58,2,FALSE) ) )","v":""},null,null,null,null,{"$f":"IF(TRIM(Y9)=\"\", \"\", IF(VLOOKUP(Y9,'Footnotes list'!$D$9:$E$58,2,FALSE)=0,\"\",VLOOKUP(Y9,'Footnotes list'!$D$9:$E$58,2,FALSE) ) )","v":""},null,null,null,null,{"$f":"IF(TRIM(AD9)=\"\", \"\", IF(VLOOKUP(AD9,'Footnotes list'!$D$9:$E$58,2,FALSE)=0,\"\",VLOOKUP(AD9,'Footnotes list'!$D$9:$E$58,2,FALSE) ) )","v":""},null,null,null,null,{"$f":"IF(TRIM(AI9)=\"\", \"\", IF(VLOOKUP(AI9,'Footnotes list'!$D$9:$E$58,2,FALSE)=0,\"\",VLOOKUP(AI9,'Footnotes list'!$D$9:$E$58,2,FALSE) ) )","v":""},null,null,null,null,{"$f":"IF(TRIM(AN9)=\"\", \"\", IF(VLOOKUP(AN9,'Footnotes list'!$D$9:$E$58,2,FALSE)=0,\"\",VLOOKUP(AN9,'Footnotes list'!$D$9:$E$58,2,FALSE) ) )","v":""},null,null,null,null,{"$f":"IF(TRIM(AS9)=\"\", \"\", IF(VLOOKUP(AS9,'Footnotes list'!$D$9:$E$58,2,FALSE)=0,\"\",VLOOKUP(AS9,'Footnotes list'!$D$9:$E$58,2,FALSE) ) )","v":""},null,null,null,null,{"$f":"IF(TRIM(AX9)=\"\", \"\", IF(VLOOKUP(AX9,'Footnotes list'!$D$9:$E$58,2,FALSE)=0,\"\",VLOOKUP(AX9,'Footnotes list'!$D$9:$E$58,2,FALSE) ) )","v":""},null,null,null,null,{"$f":"IF(TRIM(BC9)=\"\", \"\", IF(VLOOKUP(BC9,'Footnotes list'!$D$9:$E$58,2,FALSE)=0,\"\",VLOOKUP(BC9,'Footnotes list'!$D$9:$E$58,2,FALSE) ) )","v":""},null,null,null,null,{"$f":"IF(TRIM(BH9)=\"\", \"\", IF(VLOOKUP(BH9,'Footnotes list'!$D$9:$E$58,2,FALSE)=0,\"\",VLOOKUP(BH9,'Footnotes list'!$D$9:$E$58,2,FALSE) ) )","v":""},null,null,null,null,{"$f":"IF(TRIM(BM9)=\"\", \"\", IF(VLOOKUP(BM9,'Footnotes list'!$D$9:$E$58,2,FALSE)=0,\"\",VLOOKUP(BM9,'Footnotes list'!$D$9:$E$58,2,FALSE) ) )","v":""},null,null,null,null,{"$f":"IF(TRIM(BR9)=\"\", \"\", IF(VLOOKUP(BR9,'Footnotes list'!$D$9:$E$58,2,FALSE)=0,\"\",VLOOKUP(BR9,'Footnotes list'!$D$9:$E$58,2,FALSE) ) )","v":""},null,null,null,null,{"$f":"IF(TRIM(BW9)=\"\", \"\", IF(VLOOKUP(BW9,'Footnotes list'!$D$9:$E$58,2,FALSE)=0,\"\",VLOOKUP(BW9,'Footnotes list'!$D$9:$E$58,2,FALSE) ) )","v":""},null,null,null,null,{"$f":"IF(TRIM(CB9)=\"\", \"\", IF(VLOOKUP(CB9,'Footnotes list'!$D$9:$E$58,2,FALSE)=0,\"\",VLOOKUP(CB9,'Footnotes list'!$D$9:$E$58,2,FALSE) ) )","v":""},null,null,null,null,{"$f":"IF(TRIM(CG9)=\"\", \"\", IF(VLOOKUP(CG9,'Footnotes list'!$D$9:$E$58,2,FALSE)=0,\"\",VLOOKUP(CG9,'Footnotes list'!$D$9:$E$58,2,FALSE) ) )","v":""},null,null,null,null,{"$f":"IF(TRIM(CL9)=\"\", \"\", IF(VLOOKUP(CL9,'Footnotes list'!$D$9:$E$58,2,FALSE)=0,\"\",VLOOKUP(CL9,'Footnotes list'!$D$9:$E$58,2,FALSE) ) )","v":""},null,null,null,null,{"$f":"IF(TRIM(CQ9)=\"\", \"\", IF(VLOOKUP(CQ9,'Footnotes list'!$D$9:$E$58,2,FALSE)=0,\"\",VLOOKUP(CQ9,'Footnotes list'!$D$9:$E$58,2,FALSE) ) )","v":""},null,null,null,null,{"$f":"IF(TRIM(CV9)=\"\", \"\", IF(VLOOKUP(CV9,'Footnotes list'!$D$9:$E$58,2,FALSE)=0,\"\",VLOOKUP(CV9,'Footnotes list'!$D$9:$E$58,2,FALSE) ) )","v":""},null,null,null,null,{"$f":"IF(TRIM(DA9)=\"\", \"\", IF(VLOOKUP(DA9,'Footnotes list'!$D$9:$E$58,2,FALSE)=0,\"\",VLOOKUP(DA9,'Footnotes list'!$D$9:$E$58,2,FALSE) ) )","v":""},null,null,null,null,{"$f":"IF(TRIM(DF9)=\"\", \"\", IF(VLOOKUP(DF9,'Footnotes list'!$D$9:$E$58,2,FALSE)=0,\"\",VLOOKUP(DF9,'Footnotes list'!$D$9:$E$58,2,FALSE) ) )","v":""},null,null,null,null,{"$f":"IF(TRIM(DK9)=\"\", \"\", IF(VLOOKUP(DK9,'Footnotes list'!$D$9:$E$58,2,FALSE)=0,\"\",VLOOKUP(DK9,'Footnotes list'!$D$9:$E$58,2,FALSE) ) )","v":""},null,null,null,null,{"$f":"IF(TRIM(DP9)=\"\", \"\", IF(VLOOKUP(DP9,'Footnotes list'!$D$9:$E$58,2,FALSE)=0,\"\",VLOOKUP(DP9,'Footnotes list'!$D$9:$E$58,2,FALSE) ) )","v":""},null,null,null,null,{"$f":"IF(TRIM(DU9)=\"\", \"\", IF(VLOOKUP(DU9,'Footnotes list'!$D$9:$E$58,2,FALSE)=0,\"\",VLOOKUP(DU9,'Footnotes list'!$D$9:$E$58,2,FALSE) ) )","v":""},null,null,null,null,{"$f":"IF(TRIM(DZ9)=\"\", \"\", IF(VLOOKUP(DZ9,'Footnotes list'!$D$9:$E$58,2,FALSE)=0,\"\",VLOOKUP(DZ9,'Footnotes list'!$D$9:$E$58,2,FALSE) ) )","v":""},null,null,null,null,{"$f":"IF(TRIM(EE9)=\"\", \"\", IF(VLOOKUP(EE9,'Footnotes list'!$D$9:$E$58,2,FALSE)=0,\"\",VLOOKUP(EE9,'Footnotes list'!$D$9:$E$58,2,FALSE) ) )","v":""},null,null,null,null,{"$f":"IF(TRIM(EJ9)=\"\", \"\", IF(VLOOKUP(EJ9,'Footnotes list'!$D$9:$E$58,2,FALSE)=0,\"\",VLOOKUP(EJ9,'Footnotes list'!$D$9:$E$58,2,FALSE) ) )","v":""},null,null,null,null,{"$f":"IF(TRIM(EO9)=\"\", \"\", IF(VLOOKUP(EO9,'Footnotes list'!$D$9:$E$58,2,FALSE)=0,\"\",VLOOKUP(EO9,'Footnotes list'!$D$9:$E$58,2,FALSE) ) )","v":""},null,null,null,null,{"$f":"IF(TRIM(ET9)=\"\", \"\", IF(VLOOKUP(ET9,'Footnotes list'!$D$9:$E$58,2,FALSE)=0,\"\",VLOOKUP(ET9,'Footnotes list'!$D$9:$E$58,2,FALSE) ) )","v":""},null,null,null,null,{"$f":"IF(TRIM(EY9)=\"\", \"\", IF(VLOOKUP(EY9,'Footnotes list'!$D$9:$E$58,2,FALSE)=0,\"\",VLOOKUP(EY9,'Footnotes list'!$D$9:$E$58,2,FALSE) ) )","v":""}]
[null,null,"TOTAL","NMKT","non-market activities",null,null,null,null,null,{"$f":"IF(TRIM(J10)=\"\", \"\", IF(VLOOKUP(J10,'Footnotes list'!$D$9:$E$58,2,FALSE)=0,\"\",VLOOKUP(J10,'Footnotes list'!$D$9:$E$58,2,FALSE) ) )","v":""},null,null,null,null,{"$f":"IF(TRIM(O10)=\"\", \"\", IF(VLOOKUP(O10,'Footnotes list'!$D$9:$E$58,2,FALSE)=0,\"\",VLOOKUP(O10,'Footnotes list'!$D$9:$E$58,2,FALSE) ) )","v":""},null,null,null,null,{"$f":"IF(TRIM(T10)=\"\", \"\", IF(VLOOKUP(T10,'Footnotes list'!$D$9:$E$58,2,FALSE)=0,\"\",VLOOKUP(T10,'Footnotes list'!$D$9:$E$58,2,FALSE) ) )","v":""},null,null,null,null,{"$f":"IF(TRIM(Y10)=\"\", \"\", IF(VLOOKUP(Y10,'Footnotes list'!$D$9:$E$58,2,FALSE)=0,\"\",VLOOKUP(Y10,'Footnotes list'!$D$9:$E$58,2,FALSE) ) )","v":""},null,null,null,null,{"$f":"IF(TRIM(AD10)=\"\", \"\", IF(VLOOKUP(AD10,'Footnotes list'!$D$9:$E$58,2,FALSE)=0,\"\",VLOOKUP(AD10,'Footnotes list'!$D$9:$E$58,2,FALSE) ) )","v":""},null,null,null,null,{"$f":"IF(TRIM(AI10)=\"\", \"\", IF(VLOOKUP(AI10,'Footnotes list'!$D$9:$E$58,2,FALSE)=0,\"\",VLOOKUP(AI10,'Footnotes list'!$D$9:$E$58,2,FALSE) ) )","v":""},null,null,null,null,{"$f":"IF(TRIM(AN10)=\"\", \"\", IF(VLOOKUP(AN10,'Footnotes list'!$D$9:$E$58,2,FALSE)=0,\"\",VLOOKUP(AN10,'Footnotes list'!$D$9:$E$58,2,FALSE) ) )","v":""},null,null,null,null,{"$f":"IF(TRIM(AS10)=\"\", \"\", IF(VLOOKUP(AS10,'Footnotes list'!$D$9:$E$58,2,FALSE)=0,\"\",VLOOKUP(AS10,'Footnotes list'!$D$9:$E$58,2,FALSE) ) )","v":""},null,null,null,null,{"$f":"IF(TRIM(AX10)=\"\", \"\", IF(VLOOKUP(AX10,'Footnotes list'!$D$9:$E$58,2,FALSE)=0,\"\",VLOOKUP(AX10,'Footnotes list'!$D$9:$E$58,2,FALSE) ) )","v":""},null,null,null,null,{"$f":"IF(TRIM(BC10)=\"\", \"\", IF(VLOOKUP(BC10,'Footnotes list'!$D$9:$E$58,2,FALSE)=0,\"\",VLOOKUP(BC10,'Footnotes list'!$D$9:$E$58,2,FALSE) ) )","v":""},null,null,null,null,{"$f":"IF(TRIM(BH10)=\"\", \"\", IF(VLOOKUP(BH10,'Footnotes list'!$D$9:$E$58,2,FALSE)=0,\"\",VLOOKUP(BH10,'Footnotes list'!$D$9:$E$58,2,FALSE) ) )","v":""},null,null,null,null,{"$f":"IF(TRIM(BM10)=\"\", \"\", IF(VLOOKUP(BM10,'Footnotes list'!$D$9:$E$58,2,FALSE)=0,\"\",VLOOKUP(BM10,'Footnotes list'!$D$9:$E$58,2,FALSE) ) )","v":""},null,null,null,null,{"$f":"IF(TRIM(BR10)=\"\", \"\", IF(VLOOKUP(BR10,'Footnotes list'!$D$9:$E$58,2,FALSE)=0,\"\",VLOOKUP(BR10,'Footnotes list'!$D$9:$E$58,2,FALSE) ) )","v":""},null,null,null,null,{"$f":"IF(TRIM(BW10)=\"\", \"\", IF(VLOOKUP(BW10,'Footnotes list'!$D$9:$E$58,2,FALSE)=0,\"\",VLOOKUP(BW10,'Footnotes list'!$D$9:$E$58,2,FALSE) ) )","v":""},null,null,null,null,{"$f":"IF(TRIM(CB10)=\"\", \"\", IF(VLOOKUP(CB10,'Footnotes list'!$D$9:$E$58,2,FALSE)=0,\"\",VLOOKUP(CB10,'Footnotes list'!$D$9:$E$58,2,FALSE) ) )","v":""},null,null,null,null,{"$f":"IF(TRIM(CG10)=\"\", \"\", IF(VLOOKUP(CG10,'Footnotes list'!$D$9:$E$58,2,FALSE)=0,\"\",VLOOKUP(CG10,'Footnotes list'!$D$9:$E$58,2,FALSE) ) )","v":""},null,null,null,null,{"$f":"IF(TRIM(CL10)=\"\", \"\", IF(VLOOKUP(CL10,'Footnotes list'!$D$9:$E$58,2,FALSE)=0,\"\",VLOOKUP(CL10,'Footnotes list'!$D$9:$E$58,2,FALSE) ) )","v":""},null,null,null,null,{"$f":"IF(TRIM(CQ10)=\"\", \"\", IF(VLOOKUP(CQ10,'Footnotes list'!$D$9:$E$58,2,FALSE)=0,\"\",VLOOKUP(CQ10,'Footnotes list'!$D$9:$E$58,2,FALSE) ) )","v":""},null,null,null,null,{"$f":"IF(TRIM(CV10)=\"\", \"\", IF(VLOOKUP(CV10,'Footnotes list'!$D$9:$E$58,2,FALSE)=0,\"\",VLOOKUP(CV10,'Footnotes list'!$D$9:$E$58,2,FALSE) ) )","v":""},null,null,null,null,{"$f":"IF(TRIM(DA10)=\"\", \"\", IF(VLOOKUP(DA10,'Footnotes list'!$D$9:$E$58,2,FALSE)=0,\"\",VLOOKUP(DA10,'Footnotes list'!$D$9:$E$58,2,FALSE) ) )","v":""},null,null,null,null,{"$f":"IF(TRIM(DF10)=\"\", \"\", IF(VLOOKUP(DF10,'Footnotes list'!$D$9:$E$58,2,FALSE)=0,\"\",VLOOKUP(DF10,'Footnotes list'!$D$9:$E$58,2,FALSE) ) )","v":""},null,null,null,null,{"$f":"IF(TRIM(DK10)=\"\", \"\", IF(VLOOKUP(DK10,'Footnotes list'!$D$9:$E$58,2,FALSE)=0,\"\",VLOOKUP(DK10,'Footnotes list'!$D$9:$E$58,2,FALSE) ) )","v":""},null,null,null,null,{"$f":"IF(TRIM(DP10)=\"\", \"\", IF(VLOOKUP(DP10,'Footnotes list'!$D$9:$E$58,2,FALSE)=0,\"\",VLOOKUP(DP10,'Footnotes list'!$D$9:$E$58,2,FALSE) ) )","v":""},null,null,null,null,{"$f":"IF(TRIM(DU10)=\"\", \"\", IF(VLOOKUP(DU10,'Footnotes list'!$D$9:$E$58,2,FALSE)=0,\"\",VLOOKUP(DU10,'Footnotes list'!$D$9:$E$58,2,FALSE) ) )","v":""},null,null,null,null,{"$f":"IF(TRIM(DZ10)=\"\", \"\", IF(VLOOKUP(DZ10,'Footnotes list'!$D$9:$E$58,2,FALSE)=0,\"\",VLOOKUP(DZ10,'Footnotes list'!$D$9:$E$58,2,FALSE) ) )","v":""},null,null,null,null,{"$f":"IF(TRIM(EE10)=\"\", \"\", IF(VLOOKUP(EE10,'Footnotes list'!$D$9:$E$58,2,FALSE)=0,\"\",VLOOKUP(EE10,'Footnotes list'!$D$9:$E$58,2,FALSE) ) )","v":""},null,null,null,null,{"$f":"IF(TRIM(EJ10)=\"\", \"\", IF(VLOOKUP(EJ10,'Footnotes list'!$D$9:$E$58,2,FALSE)=0,\"\",VLOOKUP(EJ10,'Footnotes list'!$D$9:$E$58,2,FALSE) ) )","v":""},null,null,null,null,{"$f":"IF(TRIM(EO10)=\"\", \"\", IF(VLOOKUP(EO10,'Footnotes list'!$D$9:$E$58,2,FALSE)=0,\"\",VLOOKUP(EO10,'Footnotes list'!$D$9:$E$58,2,FALSE) ) )","v":""},null,null,null,null,{"$f":"IF(TRIM(ET10)=\"\", \"\", IF(VLOOKUP(ET10,'Footnotes list'!$D$9:$E$58,2,FALSE)=0,\"\",VLOOKUP(ET10,'Footnotes list'!$D$9:$E$58,2,FALSE) ) )","v":""},null,null,null,null,{"$f":"IF(TRIM(EY10)=\"\", \"\", IF(VLOOKUP(EY10,'Footnotes list'!$D$9:$E$58,2,FALSE)=0,\"\",VLOOKUP(EY10,'Footnotes list'!$D$9:$E$58,2,FALSE) ) )","v":""}]
[null,null,"TOTAL","OWN_USE","activities for own final use",null,null,null,null,null,{"$f":"IF(TRIM(J11)=\"\", \"\", IF(VLOOKUP(J11,'Footnotes list'!$D$9:$E$58,2,FALSE)=0,\"\",VLOOKUP(J11,'Footnotes list'!$D$9:$E$58,2,FALSE) ) )","v":""},null,null,null,null,{"$f":"IF(TRIM(O11)=\"\", \"\", IF(VLOOKUP(O11,'Footnotes list'!$D$9:$E$58,2,FALSE)=0,\"\",VLOOKUP(O11,'Footnotes list'!$D$9:$E$58,2,FALSE) ) )","v":""},null,null,null,null,{"$f":"IF(TRIM(T11)=\"\", \"\", IF(VLOOKUP(T11,'Footnotes list'!$D$9:$E$58,2,FALSE)=0,\"\",VLOOKUP(T11,'Footnotes list'!$D$9:$E$58,2,FALSE) ) )","v":""},null,null,null,null,{"$f":"IF(TRIM(Y11)=\"\", \"\", IF(VLOOKUP(Y11,'Footnotes list'!$D$9:$E$58,2,FALSE)=0,\"\",VLOOKUP(Y11,'Footnotes list'!$D$9:$E$58,2,FALSE) ) )","v":""},null,null,null,null,{"$f":"IF(TRIM(AD11)=\"\", \"\", IF(VLOOKUP(AD11,'Footnotes list'!$D$9:$E$58,2,FALSE)=0,\"\",VLOOKUP(AD11,'Footnotes list'!$D$9:$E$58,2,FALSE) ) )","v":""},null,null,null,null,{"$f":"IF(TRIM(AI11)=\"\", \"\", IF(VLOOKUP(AI11,'Footnotes list'!$D$9:$E$58,2,FALSE)=0,\"\",VLOOKUP(AI11,'Footnotes list'!$D$9:$E$58,2,FALSE) ) )","v":""},null,null,null,null,{"$f":"IF(TRIM(AN11)=\"\", \"\", IF(VLOOKUP(AN11,'Footnotes list'!$D$9:$E$58,2,FALSE)=0,\"\",VLOOKUP(AN11,'Footnotes list'!$D$9:$E$58,2,FALSE) ) )","v":""},null,null,null,null,{"$f":"IF(TRIM(AS11)=\"\", \"\", IF(VLOOKUP(AS11,'Footnotes list'!$D$9:$E$58,2,FALSE)=0,\"\",VLOOKUP(AS11,'Footnotes list'!$D$9:$E$58,2,FALSE) ) )","v":""},null,null,null,null,{"$f":"IF(TRIM(AX11)=\"\", \"\", IF(VLOOKUP(AX11,'Footnotes list'!$D$9:$E$58,2,FALSE)=0,\"\",VLOOKUP(AX11,'Footnotes list'!$D$9:$E$58,2,FALSE) ) )","v":""},null,null,null,null,{"$f":"IF(TRIM(BC11)=\"\", \"\", IF(VLOOKUP(BC11,'Footnotes list'!$D$9:$E$58,2,FALSE)=0,\"\",VLOOKUP(BC11,'Footnotes list'!$D$9:$E$58,2,FALSE) ) )","v":""},null,null,null,null,{"$f":"IF(TRIM(BH11)=\"\", \"\", IF(VLOOKUP(BH11,'Footnotes list'!$D$9:$E$58,2,FALSE)=0,\"\",VLOOKUP(BH11,'Footnotes list'!$D$9:$E$58,2,FALSE) ) )","v":""},null,null,null,null,{"$f":"IF(TRIM(BM11)=\"\", \"\", IF(VLOOKUP(BM11,'Footnotes list'!$D$9:$E$58,2,FALSE)=0,\"\",VLOOKUP(BM11,'Footnotes list'!$D$9:$E$58,2,FALSE) ) )","v":""},null,null,null,null,{"$f":"IF(TRIM(BR11)=\"\", \"\", IF(VLOOKUP(BR11,'Footnotes list'!$D$9:$E$58,2,FALSE)=0,\"\",VLOOKUP(BR11,'Footnotes list'!$D$9:$E$58,2,FALSE) ) )","v":""},null,null,null,null,{"$f":"IF(TRIM(BW11)=\"\", \"\", IF(VLOOKUP(BW11,'Footnotes list'!$D$9:$E$58,2,FALSE)=0,\"\",VLOOKUP(BW11,'Footnotes list'!$D$9:$E$58,2,FALSE) ) )","v":""},null,null,null,null,{"$f":"IF(TRIM(CB11)=\"\", \"\", IF(VLOOKUP(CB11,'Footnotes list'!$D$9:$E$58,2,FALSE)=0,\"\",VLOOKUP(CB11,'Footnotes list'!$D$9:$E$58,2,FALSE) ) )","v":""},null,null,null,null,{"$f":"IF(TRIM(CG11)=\"\", \"\", IF(VLOOKUP(CG11,'Footnotes list'!$D$9:$E$58,2,FALSE)=0,\"\",VLOOKUP(CG11,'Footnotes list'!$D$9:$E$58,2,FALSE) ) )","v":""},null,null,null,null,{"$f":"IF(TRIM(CL11)=\"\", \"\", IF(VLOOKUP(CL11,'Footnotes list'!$D$9:$E$58,2,FALSE)=0,\"\",VLOOKUP(CL11,'Footnotes list'!$D$9:$E$58,2,FALSE) ) )","v":""},null,null,null,null,{"$f":"IF(TRIM(CQ11)=\"\", \"\", IF(VLOOKUP(CQ11,'Footnotes list'!$D$9:$E$58,2,FALSE)=0,\"\",VLOOKUP(CQ11,'Footnotes list'!$D$9:$E$58,2,FALSE) ) )","v":""},null,null,null,null,{"$f":"IF(TRIM(CV11)=\"\", \"\", IF(VLOOKUP(CV11,'Footnotes list'!$D$9:$E$58,2,FALSE)=0,\"\",VLOOKUP(CV11,'Footnotes list'!$D$9:$E$58,2,FALSE) ) )","v":""},null,null,null,null,{"$f":"IF(TRIM(DA11)=\"\", \"\", IF(VLOOKUP(DA11,'Footnotes list'!$D$9:$E$58,2,FALSE)=0,\"\",VLOOKUP(DA11,'Footnotes list'!$D$9:$E$58,2,FALSE) ) )","v":""},null,null,null,null,{"$f":"IF(TRIM(DF11)=\"\", \"\", IF(VLOOKUP(DF11,'Footnotes list'!$D$9:$E$58,2,FALSE)=0,\"\",VLOOKUP(DF11,'Footnotes list'!$D$9:$E$58,2,FALSE) ) )","v":""},null,null,null,null,{"$f":"IF(TRIM(DK11)=\"\", \"\", IF(VLOOKUP(DK11,'Footnotes list'!$D$9:$E$58,2,FALSE)=0,\"\",VLOOKUP(DK11,'Footnotes list'!$D$9:$E$58,2,FALSE) ) )","v":""},null,null,null,null,{"$f":"IF(TRIM(DP11)=\"\", \"\", IF(VLOOKUP(DP11,'Footnotes list'!$D$9:$E$58,2,FALSE)=0,\"\",VLOOKUP(DP11,'Footnotes list'!$D$9:$E$58,2,FALSE) ) )","v":""},null,null,null,null,{"$f":"IF(TRIM(DU11)=\"\", \"\", IF(VLOOKUP(DU11,'Footnotes list'!$D$9:$E$58,2,FALSE)=0,\"\",VLOOKUP(DU11,'Footnotes list'!$D$9:$E$58,2,FALSE) ) )","v":""},null,null,null,null,{"$f":"IF(TRIM(DZ11)=\"\", \"\", IF(VLOOKUP(DZ11,'Footnotes list'!$D$9:$E$58,2,FALSE)=0,\"\",VLOOKUP(DZ11,'Footnotes list'!$D$9:$E$58,2,FALSE) ) )","v":""},null,null,null,null,{"$f":"IF(TRIM(EE11)=\"\", \"\", IF(VLOOKUP(EE11,'Footnotes list'!$D$9:$E$58,2,FALSE)=0,\"\",VLOOKUP(EE11,'Footnotes list'!$D$9:$E$58,2,FALSE) ) )","v":""},null,null,null,null,{"$f":"IF(TRIM(EJ11)=\"\", \"\", IF(VLOOKUP(EJ11,'Footnotes list'!$D$9:$E$58,2,FALSE)=0,\"\",VLOOKUP(EJ11,'Footnotes list'!$D$9:$E$58,2,FALSE) ) )","v":""},null,null,null,null,{"$f":"IF(TRIM(EO11)=\"\", \"\", IF(VLOOKUP(EO11,'Footnotes list'!$D$9:$E$58,2,FALSE)=0,\"\",VLOOKUP(EO11,'Footnotes list'!$D$9:$E$58,2,FALSE) ) )","v":""},null,null,null,null,{"$f":"IF(TRIM(ET11)=\"\", \"\", IF(VLOOKUP(ET11,'Footnotes list'!$D$9:$E$58,2,FALSE)=0,\"\",VLOOKUP(ET11,'Footnotes list'!$D$9:$E$58,2,FALSE) ) )","v":""},null,null,null,null,{"$f":"IF(TRIM(EY11)=\"\", \"\", IF(VLOOKUP(EY11,'Footnotes list'!$D$9:$E$58,2,FALSE)=0,\"\",VLOOKUP(EY11,'Footnotes list'!$D$9:$E$58,2,FALSE) ) )","v":""}]
[null,null,"TOTAL","MKT","market activities, including:",null,{"$f":"G19+G26+G33+G131+G138+G173+G201+G222+G264+G271+G313","v":0},null,null,null,{"$f":"IF(TRIM(J12)=\"\", \"\", IF(VLOOKUP(J12,'Footnotes list'!$D$9:$E$58,2,FALSE)=0,\"\",VLOOKUP(J12,'Footnotes list'!$D$9:$E$58,2,FALSE) ) )","v":""},null,null,null,null,{"$f":"IF(TRIM(O12)=\"\", \"\", IF(VLOOKUP(O12,'Footnotes list'!$D$9:$E$58,2,FALSE)=0,\"\",VLOOKUP(O12,'Footnotes list'!$D$9:$E$58,2,FALSE) ) )","v":""},{"$f":"Q19+Q26+Q33+Q131+Q138+Q173+Q201+Q222+Q264+Q271+Q313","v":0},null,null,null,{"$f":"IF(TRIM(T12)=\"\", \"\", IF(VLOOKUP(T12,'Footnotes list'!$D$9:$E$58,2,FALSE)=0,\"\",VLOOKUP(T12,'Footnotes list'!$D$9:$E$58,2,FALSE) ) )","v":""},{"$f":"V19+V26+V33+V131+V138+V173+V201+V222+V264+V271+V313","v":0},null,null,null,{"$f":"IF(TRIM(Y12)=\"\", \"\", IF(VLOOKUP(Y12,'Footnotes list'!$D$9:$E$58,2,FALSE)=0,\"\",VLOOKUP(Y12,'Footnotes list'!$D$9:$E$58,2,FALSE) ) )","v":""},{"$f":"AA19+AA26+AA33+AA131+AA138+AA173+AA201+AA222+AA264+AA271+AA313","v":0},null,null,null,{"$f":"IF(TRIM(AD12)=\"\", \"\", IF(VLOOKUP(AD12,'Footnotes list'!$D$9:$E$58,2,FALSE)=0,\"\",VLOOKUP(AD12,'Footnotes list'!$D$9:$E$58,2,FALSE) ) )","v":""},{"$f":"AF19+AF26+AF33+AF131+AF138+AF173+AF201+AF222+AF264+AF271+AF313","v":0},null,null,null,{"$f":"IF(TRIM(AI12)=\"\", \"\", IF(VLOOKUP(AI12,'Footnotes list'!$D$9:$E$58,2,FALSE)=0,\"\",VLOOKUP(AI12,'Footnotes list'!$D$9:$E$58,2,FALSE) ) )","v":""},{"$f":"AK19+AK26+AK33+AK131+AK138+AK173+AK201+AK222+AK264+AK271+AK313","v":0},null,null,null,{"$f":"IF(TRIM(AN12)=\"\", \"\", IF(VLOOKUP(AN12,'Footnotes list'!$D$9:$E$58,2,FALSE)=0,\"\",VLOOKUP(AN12,'Footnotes list'!$D$9:$E$58,2,FALSE) ) )","v":""},{"$f":"AP19+AP26+AP33+AP131+AP138+AP173+AP201+AP222+AP264+AP271+AP313","v":0},null,null,null,{"$f":"IF(TRIM(AS12)=\"\", \"\", IF(VLOOKUP(AS12,'Footnotes list'!$D$9:$E$58,2,FALSE)=0,\"\",VLOOKUP(AS12,'Footnotes list'!$D$9:$E$58,2,FALSE) ) )","v":""},null,null,null,null,{"$f":"IF(TRIM(AX12)=\"\", \"\", IF(VLOOKUP(AX12,'Footnotes list'!$D$9:$E$58,2,FALSE)=0,\"\",VLOOKUP(AX12,'Footnotes list'!$D$9:$E$58,2,FALSE) ) )","v":""},null,null,null,null,{"$f":"IF(TRIM(BC12)=\"\", \"\", IF(VLOOKUP(BC12,'Footnotes list'!$D$9:$E$58,2,FALSE)=0,\"\",VLOOKUP(BC12,'Footnotes list'!$D$9:$E$58,2,FALSE) ) )","v":""},null,null,null,null,{"$f":"IF(TRIM(BH12)=\"\", \"\", IF(VLOOKUP(BH12,'Footnotes list'!$D$9:$E$58,2,FALSE)=0,\"\",VLOOKUP(BH12,'Footnotes list'!$D$9:$E$58,2,FALSE) ) )","v":""},null,null,null,null,{"$f":"IF(TRIM(BM12)=\"\", \"\", IF(VLOOKUP(BM12,'Footnotes list'!$D$9:$E$58,2,FALSE)=0,\"\",VLOOKUP(BM12,'Footnotes list'!$D$9:$E$58,2,FALSE) ) )","v":""},{"$f":"G12+Q12+V12+AA12+AF12+AK12+AP12","v":0},null,null,null,{"$f":"IF(TRIM(BR12)=\"\", \"\", IF(VLOOKUP(BR12,'Footnotes list'!$D$9:$E$58,2,FALSE)=0,\"\",VLOOKUP(BR12,'Footnotes list'!$D$9:$E$58,2,FALSE) ) )","v":""},{"$f":"BT19+BT26+BT33+BT131+BT138+BT173+BT201+BT222+BT264+BT271+BT313","v":0},null,null,null,{"$f":"IF(TRIM(BW12)=\"\", \"\", IF(VLOOKUP(BW12,'Footnotes list'!$D$9:$E$58,2,FALSE)=0,\"\",VLOOKUP(BW12,'Footnotes list'!$D$9:$E$58,2,FALSE) ) )","v":""},{"$f":"BY19+BY26+BY33+BY131+BY138+BY173+BY201+BY222+BY264+BY271+BY313","v":0},null,null,null,{"$f":"IF(TRIM(CB12)=\"\", \"\", IF(VLOOKUP(CB12,'Footnotes list'!$D$9:$E$58,2,FALSE)=0,\"\",VLOOKUP(CB12,'Footnotes list'!$D$9:$E$58,2,FALSE) ) )","v":""},null,null,null,null,{"$f":"IF(TRIM(CG12)=\"\", \"\", IF(VLOOKUP(CG12,'Footnotes list'!$D$9:$E$58,2,FALSE)=0,\"\",VLOOKUP(CG12,'Footnotes list'!$D$9:$E$58,2,FALSE) ) )","v":""},null,null,null,null,{"$f":"IF(TRIM(CL12)=\"\", \"\", IF(VLOOKUP(CL12,'Footnotes list'!$D$9:$E$58,2,FALSE)=0,\"\",VLOOKUP(CL12,'Footnotes list'!$D$9:$E$58,2,FALSE) ) )","v":""},{"$f":"CN19+CN26+CN33+CN131+CN138+CN173+CN201+CN222+CN264+CN271+CN313","v":0},null,null,null,{"$f":"IF(TRIM(CQ12)=\"\", \"\", IF(VLOOKUP(CQ12,'Footnotes list'!$D$9:$E$58,2,FALSE)=0,\"\",VLOOKUP(CQ12,'Footnotes list'!$D$9:$E$58,2,FALSE) ) )","v":""},{"$f":"CS19+CS26+CS33+CS131+CS138+CS173+CS201+CS222+CS264+CS271+CS313","v":0},null,null,null,{"$f":"IF(TRIM(CV12)=\"\", \"\", IF(VLOOKUP(CV12,'Footnotes list'!$D$9:$E$58,2,FALSE)=0,\"\",VLOOKUP(CV12,'Footnotes list'!$D$9:$E$58,2,FALSE) ) )","v":""},{"$f":"CX19+CX26+CX33+CX131+CX138+CX173+CX201+CX222+CX264+CX271+CX313","v":0},null,null,null,{"$f":"IF(TRIM(DA12)=\"\", \"\", IF(VLOOKUP(DA12,'Footnotes list'!$D$9:$E$58,2,FALSE)=0,\"\",VLOOKUP(DA12,'Footnotes list'!$D$9:$E$58,2,FALSE) ) )","v":""},{"$f":"DC19+DC26+DC33+DC131+DC138+DC173+DC201+DC222+DC264+DC271+DC313","v":0},null,null,null,{"$f":"IF(TRIM(DF12)=\"\", \"\", IF(VLOOKUP(DF12,'Footnotes list'!$D$9:$E$58,2,FALSE)=0,\"\",VLOOKUP(DF12,'Footnotes list'!$D$9:$E$58,2,FALSE) ) )","v":""},{"$f":"DH19+DH26+DH33+DH131+DH138+DH173+DH201+DH222+DH264+DH271+DH313","v":0},null,null,null,{"$f":"IF(TRIM(DK12)=\"\", \"\", IF(VLOOKUP(DK12,'Footnotes list'!$D$9:$E$58,2,FALSE)=0,\"\",VLOOKUP(DK12,'Footnotes list'!$D$9:$E$58,2,FALSE) ) )","v":""},{"$f":"DM19+DM26+DM33+DM131+DM138+DM173+DM201+DM222+DM264+DM271+DM313","v":0},null,null,null,{"$f":"IF(TRIM(DP12)=\"\", \"\", IF(VLOOKUP(DP12,'Footnotes list'!$D$9:$E$58,2,FALSE)=0,\"\",VLOOKUP(DP12,'Footnotes list'!$D$9:$E$58,2,FALSE) ) )","v":""},null,null,null,null,{"$f":"IF(TRIM(DU12)=\"\", \"\", IF(VLOOKUP(DU12,'Footnotes list'!$D$9:$E$58,2,FALSE)=0,\"\",VLOOKUP(DU12,'Footnotes list'!$D$9:$E$58,2,FALSE) ) )","v":""},null,null,null,null,{"$f":"IF(TRIM(DZ12)=\"\", \"\", IF(VLOOKUP(DZ12,'Footnotes list'!$D$9:$E$58,2,FALSE)=0,\"\",VLOOKUP(DZ12,'Footnotes list'!$D$9:$E$58,2,FALSE) ) )","v":""},null,null,null,null,{"$f":"IF(TRIM(EE12)=\"\", \"\", IF(VLOOKUP(EE12,'Footnotes list'!$D$9:$E$58,2,FALSE)=0,\"\",VLOOKUP(EE12,'Footnotes list'!$D$9:$E$58,2,FALSE) ) )","v":""},null,null,null,null,{"$f":"IF(TRIM(EJ12)=\"\", \"\", IF(VLOOKUP(EJ12,'Footnotes list'!$D$9:$E$58,2,FALSE)=0,\"\",VLOOKUP(EJ12,'Footnotes list'!$D$9:$E$58,2,FALSE) ) )","v":""},{"$f":"DM12+DH12+CN12+BY12+BT12","v":0},null,null,null,{"$f":"IF(TRIM(EO12)=\"\", \"\", IF(VLOOKUP(EO12,'Footnotes list'!$D$9:$E$58,2,FALSE)=0,\"\",VLOOKUP(EO12,'Footnotes list'!$D$9:$E$58,2,FALSE) ) )","v":""},{"$f":"EL12+BO12","v":0},null,null,null,{"$f":"IF(TRIM(ET12)=\"\", \"\", IF(VLOOKUP(ET12,'Footnotes list'!$D$9:$E$58,2,FALSE)=0,\"\",VLOOKUP(ET12,'Footnotes list'!$D$9:$E$58,2,FALSE) ) )","v":""},null,null,null,null,{"$f":"IF(TRIM(EY12)=\"\", \"\", IF(VLOOKUP(EY12,'Footnotes list'!$D$9:$E$58,2,FALSE)=0,\"\",VLOOKUP(EY12,'Footnotes list'!$D$9:$E$58,2,FALSE) ) )","v":""}]
[null,null,"TOTAL","ES_CS","environmental specific services",null,null,null,null,null,{"$f":"IF(TRIM(J13)=\"\", \"\", IF(VLOOKUP(J13,'Footnotes list'!$D$9:$E$58,2,FALSE)=0,\"\",VLOOKUP(J13,'Footnotes list'!$D$9:$E$58,2,FALSE) ) )","v":""},null,null,null,null,{"$f":"IF(TRIM(O13)=\"\", \"\", IF(VLOOKUP(O13,'Footnotes list'!$D$9:$E$58,2,FALSE)=0,\"\",VLOOKUP(O13,'Footnotes list'!$D$9:$E$58,2,FALSE) ) )","v":""},null,null,null,null,{"$f":"IF(TRIM(T13)=\"\", \"\", IF(VLOOKUP(T13,'Footnotes list'!$D$9:$E$58,2,FALSE)=0,\"\",VLOOKUP(T13,'Footnotes list'!$D$9:$E$58,2,FALSE) ) )","v":""},null,null,null,null,{"$f":"IF(TRIM(Y13)=\"\", \"\", IF(VLOOKUP(Y13,'Footnotes list'!$D$9:$E$58,2,FALSE)=0,\"\",VLOOKUP(Y13,'Footnotes list'!$D$9:$E$58,2,FALSE) ) )","v":""},null,null,null,null,{"$f":"IF(TRIM(AD13)=\"\", \"\", IF(VLOOKUP(AD13,'Footnotes list'!$D$9:$E$58,2,FALSE)=0,\"\",VLOOKUP(AD13,'Footnotes list'!$D$9:$E$58,2,FALSE) ) )","v":""},null,null,null,null,{"$f":"IF(TRIM(AI13)=\"\", \"\", IF(VLOOKUP(AI13,'Footnotes list'!$D$9:$E$58,2,FALSE)=0,\"\",VLOOKUP(AI13,'Footnotes list'!$D$9:$E$58,2,FALSE) ) )","v":""},null,null,null,null,{"$f":"IF(TRIM(AN13)=\"\", \"\", IF(VLOOKUP(AN13,'Footnotes list'!$D$9:$E$58,2,FALSE)=0,\"\",VLOOKUP(AN13,'Footnotes list'!$D$9:$E$58,2,FALSE) ) )","v":""},null,null,null,null,{"$f":"IF(TRIM(AS13)=\"\", \"\", IF(VLOOKUP(AS13,'Footnotes list'!$D$9:$E$58,2,FALSE)=0,\"\",VLOOKUP(AS13,'Footnotes list'!$D$9:$E$58,2,FALSE) ) )","v":""},null,null,null,null,{"$f":"IF(TRIM(AX13)=\"\", \"\", IF(VLOOKUP(AX13,'Footnotes list'!$D$9:$E$58,2,FALSE)=0,\"\",VLOOKUP(AX13,'Footnotes list'!$D$9:$E$58,2,FALSE) ) )","v":""},null,null,null,null,{"$f":"IF(TRIM(BC13)=\"\", \"\", IF(VLOOKUP(BC13,'Footnotes list'!$D$9:$E$58,2,FALSE)=0,\"\",VLOOKUP(BC13,'Footnotes list'!$D$9:$E$58,2,FALSE) ) )","v":""},null,null,null,null,{"$f":"IF(TRIM(BH13)=\"\", \"\", IF(VLOOKUP(BH13,'Footnotes list'!$D$9:$E$58,2,FALSE)=0,\"\",VLOOKUP(BH13,'Footnotes list'!$D$9:$E$58,2,FALSE) ) )","v":""},null,null,null,null,{"$f":"IF(TRIM(BM13)=\"\", \"\", IF(VLOOKUP(BM13,'Footnotes list'!$D$9:$E$58,2,FALSE)=0,\"\",VLOOKUP(BM13,'Footnotes list'!$D$9:$E$58,2,FALSE) ) )","v":""},null,null,null,null,{"$f":"IF(TRIM(BR13)=\"\", \"\", IF(VLOOKUP(BR13,'Footnotes list'!$D$9:$E$58,2,FALSE)=0,\"\",VLOOKUP(BR13,'Footnotes list'!$D$9:$E$58,2,FALSE) ) )","v":""},null,null,null,null,{"$f":"IF(TRIM(BW13)=\"\", \"\", IF(VLOOKUP(BW13,'Footnotes list'!$D$9:$E$58,2,FALSE)=0,\"\",VLOOKUP(BW13,'Footnotes list'!$D$9:$E$58,2,FALSE) ) )","v":""},null,null,null,null,{"$f":"IF(TRIM(CB13)=\"\", \"\", IF(VLOOKUP(CB13,'Footnotes list'!$D$9:$E$58,2,FALSE)=0,\"\",VLOOKUP(CB13,'Footnotes list'!$D$9:$E$58,2,FALSE) ) )","v":""},null,null,null,null,{"$f":"IF(TRIM(CG13)=\"\", \"\", IF(VLOOKUP(CG13,'Footnotes list'!$D$9:$E$58,2,FALSE)=0,\"\",VLOOKUP(CG13,'Footnotes list'!$D$9:$E$58,2,FALSE) ) )","v":""},null,null,null,null,{"$f":"IF(TRIM(CL13)=\"\", \"\", IF(VLOOKUP(CL13,'Footnotes list'!$D$9:$E$58,2,FALSE)=0,\"\",VLOOKUP(CL13,'Footnotes list'!$D$9:$E$58,2,FALSE) ) )","v":""},null,null,null,null,{"$f":"IF(TRIM(CQ13)=\"\", \"\", IF(VLOOKUP(CQ13,'Footnotes list'!$D$9:$E$58,2,FALSE)=0,\"\",VLOOKUP(CQ13,'Footnotes list'!$D$9:$E$58,2,FALSE) ) )","v":""},null,null,null,null,{"$f":"IF(TRIM(CV13)=\"\", \"\", IF(VLOOKUP(CV13,'Footnotes list'!$D$9:$E$58,2,FALSE)=0,\"\",VLOOKUP(CV13,'Footnotes list'!$D$9:$E$58,2,FALSE) ) )","v":""},null,null,null,null,{"$f":"IF(TRIM(DA13)=\"\", \"\", IF(VLOOKUP(DA13,'Footnotes list'!$D$9:$E$58,2,FALSE)=0,\"\",VLOOKUP(DA13,'Footnotes list'!$D$9:$E$58,2,FALSE) ) )","v":""},null,null,null,null,{"$f":"IF(TRIM(DF13)=\"\", \"\", IF(VLOOKUP(DF13,'Footnotes list'!$D$9:$E$58,2,FALSE)=0,\"\",VLOOKUP(DF13,'Footnotes list'!$D$9:$E$58,2,FALSE) ) )","v":""},null,null,null,null,{"$f":"IF(TRIM(DK13)=\"\", \"\", IF(VLOOKUP(DK13,'Footnotes list'!$D$9:$E$58,2,FALSE)=0,\"\",VLOOKUP(DK13,'Footnotes list'!$D$9:$E$58,2,FALSE) ) )","v":""},null,null,null,null,{"$f":"IF(TRIM(DP13)=\"\", \"\", IF(VLOOKUP(DP13,'Footnotes list'!$D$9:$E$58,2,FALSE)=0,\"\",VLOOKUP(DP13,'Footnotes list'!$D$9:$E$58,2,FALSE) ) )","v":""},null,null,null,null,{"$f":"IF(TRIM(DU13)=\"\", \"\", IF(VLOOKUP(DU13,'Footnotes list'!$D$9:$E$58,2,FALSE)=0,\"\",VLOOKUP(DU13,'Footnotes list'!$D$9:$E$58,2,FALSE) ) )","v":""},null,null,null,null,{"$f":"IF(TRIM(DZ13)=\"\", \"\", IF(VLOOKUP(DZ13,'Footnotes list'!$D$9:$E$58,2,FALSE)=0,\"\",VLOOKUP(DZ13,'Footnotes list'!$D$9:$E$58,2,FALSE) ) )","v":""},null,null,null,null,{"$f":"IF(TRIM(EE13)=\"\", \"\", IF(VLOOKUP(EE13,'Footnotes list'!$D$9:$E$58,2,FALSE)=0,\"\",VLOOKUP(EE13,'Footnotes list'!$D$9:$E$58,2,FALSE) ) )","v":""},null,null,null,null,{"$f":"IF(TRIM(EJ13)=\"\", \"\", IF(VLOOKUP(EJ13,'Footnotes list'!$D$9:$E$58,2,FALSE)=0,\"\",VLOOKUP(EJ13,'Footnotes list'!$D$9:$E$58,2,FALSE) ) )","v":""},null,null,null,null,{"$f":"IF(TRIM(EO13)=\"\", \"\", IF(VLOOKUP(EO13,'Footnotes list'!$D$9:$E$58,2,FALSE)=0,\"\",VLOOKUP(EO13,'Footnotes list'!$D$9:$E$58,2,FALSE) ) )","v":""},null,null,null,null,{"$f":"IF(TRIM(ET13)=\"\", \"\", IF(VLOOKUP(ET13,'Footnotes list'!$D$9:$E$58,2,FALSE)=0,\"\",VLOOKUP(ET13,'Footnotes list'!$D$9:$E$58,2,FALSE) ) )","v":""},null,null,null,null,{"$f":"IF(TRIM(EY13)=\"\", \"\", IF(VLOOKUP(EY13,'Footnotes list'!$D$9:$E$58,2,FALSE)=0,\"\",VLOOKUP(EY13,'Footnotes list'!$D$9:$E$58,2,FALSE) ) )","v":""}]
[null,null,"TOTAL","C_REP","cleaner and resource efficient products",null,null,null,null,null,{"$f":"IF(TRIM(J14)=\"\", \"\", IF(VLOOKUP(J14,'Footnotes list'!$D$9:$E$58,2,FALSE)=0,\"\",VLOOKUP(J14,'Footnotes list'!$D$9:$E$58,2,FALSE) ) )","v":""},null,null,null,null,{"$f":"IF(TRIM(O14)=\"\", \"\", IF(VLOOKUP(O14,'Footnotes list'!$D$9:$E$58,2,FALSE)=0,\"\",VLOOKUP(O14,'Footnotes list'!$D$9:$E$58,2,FALSE) ) )","v":""},null,null,null,null,{"$f":"IF(TRIM(T14)=\"\", \"\", IF(VLOOKUP(T14,'Footnotes list'!$D$9:$E$58,2,FALSE)=0,\"\",VLOOKUP(T14,'Footnotes list'!$D$9:$E$58,2,FALSE) ) )","v":""},null,null,null,null,{"$f":"IF(TRIM(Y14)=\"\", \"\", IF(VLOOKUP(Y14,'Footnotes list'!$D$9:$E$58,2,FALSE)=0,\"\",VLOOKUP(Y14,'Footnotes list'!$D$9:$E$58,2,FALSE) ) )","v":""},null,null,null,null,{"$f":"IF(TRIM(AD14)=\"\", \"\", IF(VLOOKUP(AD14,'Footnotes list'!$D$9:$E$58,2,FALSE)=0,\"\",VLOOKUP(AD14,'Footnotes list'!$D$9:$E$58,2,FALSE) ) )","v":""},null,null,null,null,{"$f":"IF(TRIM(AI14)=\"\", \"\", IF(VLOOKUP(AI14,'Footnotes list'!$D$9:$E$58,2,FALSE)=0,\"\",VLOOKUP(AI14,'Footnotes list'!$D$9:$E$58,2,FALSE) ) )","v":""},null,null,null,null,{"$f":"IF(TRIM(AN14)=\"\", \"\", IF(VLOOKUP(AN14,'Footnotes list'!$D$9:$E$58,2,FALSE)=0,\"\",VLOOKUP(AN14,'Footnotes list'!$D$9:$E$58,2,FALSE) ) )","v":""},null,null,null,null,{"$f":"IF(TRIM(AS14)=\"\", \"\", IF(VLOOKUP(AS14,'Footnotes list'!$D$9:$E$58,2,FALSE)=0,\"\",VLOOKUP(AS14,'Footnotes list'!$D$9:$E$58,2,FALSE) ) )","v":""},null,null,null,null,{"$f":"IF(TRIM(AX14)=\"\", \"\", IF(VLOOKUP(AX14,'Footnotes list'!$D$9:$E$58,2,FALSE)=0,\"\",VLOOKUP(AX14,'Footnotes list'!$D$9:$E$58,2,FALSE) ) )","v":""},null,null,null,null,{"$f":"IF(TRIM(BC14)=\"\", \"\", IF(VLOOKUP(BC14,'Footnotes list'!$D$9:$E$58,2,FALSE)=0,\"\",VLOOKUP(BC14,'Footnotes list'!$D$9:$E$58,2,FALSE) ) )","v":""},null,null,null,null,{"$f":"IF(TRIM(BH14)=\"\", \"\", IF(VLOOKUP(BH14,'Footnotes list'!$D$9:$E$58,2,FALSE)=0,\"\",VLOOKUP(BH14,'Footnotes list'!$D$9:$E$58,2,FALSE) ) )","v":""},null,null,null,null,{"$f":"IF(TRIM(BM14)=\"\", \"\", IF(VLOOKUP(BM14,'Footnotes list'!$D$9:$E$58,2,FALSE)=0,\"\",VLOOKUP(BM14,'Footnotes list'!$D$9:$E$58,2,FALSE) ) )","v":""},null,null,null,null,{"$f":"IF(TRIM(BR14)=\"\", \"\", IF(VLOOKUP(BR14,'Footnotes list'!$D$9:$E$58,2,FALSE)=0,\"\",VLOOKUP(BR14,'Footnotes list'!$D$9:$E$58,2,FALSE) ) )","v":""},null,null,null,null,{"$f":"IF(TRIM(BW14)=\"\", \"\", IF(VLOOKUP(BW14,'Footnotes list'!$D$9:$E$58,2,FALSE)=0,\"\",VLOOKUP(BW14,'Footnotes list'!$D$9:$E$58,2,FALSE) ) )","v":""},null,null,null,null,{"$f":"IF(TRIM(CB14)=\"\", \"\", IF(VLOOKUP(CB14,'Footnotes list'!$D$9:$E$58,2,FALSE)=0,\"\",VLOOKUP(CB14,'Footnotes list'!$D$9:$E$58,2,FALSE) ) )","v":""},null,null,null,null,{"$f":"IF(TRIM(CG14)=\"\", \"\", IF(VLOOKUP(CG14,'Footnotes list'!$D$9:$E$58,2,FALSE)=0,\"\",VLOOKUP(CG14,'Footnotes list'!$D$9:$E$58,2,FALSE) ) )","v":""},null,null,null,null,{"$f":"IF(TRIM(CL14)=\"\", \"\", IF(VLOOKUP(CL14,'Footnotes list'!$D$9:$E$58,2,FALSE)=0,\"\",VLOOKUP(CL14,'Footnotes list'!$D$9:$E$58,2,FALSE) ) )","v":""},null,null,null,null,{"$f":"IF(TRIM(CQ14)=\"\", \"\", IF(VLOOKUP(CQ14,'Footnotes list'!$D$9:$E$58,2,FALSE)=0,\"\",VLOOKUP(CQ14,'Footnotes list'!$D$9:$E$58,2,FALSE) ) )","v":""},null,null,null,null,{"$f":"IF(TRIM(CV14)=\"\", \"\", IF(VLOOKUP(CV14,'Footnotes list'!$D$9:$E$58,2,FALSE)=0,\"\",VLOOKUP(CV14,'Footnotes list'!$D$9:$E$58,2,FALSE) ) )","v":""},null,null,null,null,{"$f":"IF(TRIM(DA14)=\"\", \"\", IF(VLOOKUP(DA14,'Footnotes list'!$D$9:$E$58,2,FALSE)=0,\"\",VLOOKUP(DA14,'Footnotes list'!$D$9:$E$58,2,FALSE) ) )","v":""},null,null,null,null,{"$f":"IF(TRIM(DF14)=\"\", \"\", IF(VLOOKUP(DF14,'Footnotes list'!$D$9:$E$58,2,FALSE)=0,\"\",VLOOKUP(DF14,'Footnotes list'!$D$9:$E$58,2,FALSE) ) )","v":""},null,null,null,null,{"$f":"IF(TRIM(DK14)=\"\", \"\", IF(VLOOKUP(DK14,'Footnotes list'!$D$9:$E$58,2,FALSE)=0,\"\",VLOOKUP(DK14,'Footnotes list'!$D$9:$E$58,2,FALSE) ) )","v":""},null,null,null,null,{"$f":"IF(TRIM(DP14)=\"\", \"\", IF(VLOOKUP(DP14,'Footnotes list'!$D$9:$E$58,2,FALSE)=0,\"\",VLOOKUP(DP14,'Footnotes list'!$D$9:$E$58,2,FALSE) ) )","v":""},null,null,null,null,{"$f":"IF(TRIM(DU14)=\"\", \"\", IF(VLOOKUP(DU14,'Footnotes list'!$D$9:$E$58,2,FALSE)=0,\"\",VLOOKUP(DU14,'Footnotes list'!$D$9:$E$58,2,FALSE) ) )","v":""},null,null,null,null,{"$f":"IF(TRIM(DZ14)=\"\", \"\", IF(VLOOKUP(DZ14,'Footnotes list'!$D$9:$E$58,2,FALSE)=0,\"\",VLOOKUP(DZ14,'Footnotes list'!$D$9:$E$58,2,FALSE) ) )","v":""},null,null,null,null,{"$f":"IF(TRIM(EE14)=\"\", \"\", IF(VLOOKUP(EE14,'Footnotes list'!$D$9:$E$58,2,FALSE)=0,\"\",VLOOKUP(EE14,'Footnotes list'!$D$9:$E$58,2,FALSE) ) )","v":""},null,null,null,null,{"$f":"IF(TRIM(EJ14)=\"\", \"\", IF(VLOOKUP(EJ14,'Footnotes list'!$D$9:$E$58,2,FALSE)=0,\"\",VLOOKUP(EJ14,'Footnotes list'!$D$9:$E$58,2,FALSE) ) )","v":""},null,null,null,null,{"$f":"IF(TRIM(EO14)=\"\", \"\", IF(VLOOKUP(EO14,'Footnotes list'!$D$9:$E$58,2,FALSE)=0,\"\",VLOOKUP(EO14,'Footnotes list'!$D$9:$E$58,2,FALSE) ) )","v":""},null,null,null,null,{"$f":"IF(TRIM(ET14)=\"\", \"\", IF(VLOOKUP(ET14,'Footnotes list'!$D$9:$E$58,2,FALSE)=0,\"\",VLOOKUP(ET14,'Footnotes list'!$D$9:$E$58,2,FALSE) ) )","v":""},null,null,null,null,{"$f":"IF(TRIM(EY14)=\"\", \"\", IF(VLOOKUP(EY14,'Footnotes list'!$D$9:$E$58,2,FALSE)=0,\"\",VLOOKUP(EY14,'Footnotes list'!$D$9:$E$58,2,FALSE) ) )","v":""}]
[null,null,"A","TOT_EGSS","Total A - Agriculture, forestry and fishing, of which:",null,null,null,null,null,{"$f":"IF(TRIM(J15)=\"\", \"\", IF(VLOOKUP(J15,'Footnotes list'!$D$9:$E$58,2,FALSE)=0,\"\",VLOOKUP(J15,'Footnotes list'!$D$9:$E$58,2,FALSE) ) )","v":""},null,null,null,null,{"$f":"IF(TRIM(O15)=\"\", \"\", IF(VLOOKUP(O15,'Footnotes list'!$D$9:$E$58,2,FALSE)=0,\"\",VLOOKUP(O15,'Footnotes list'!$D$9:$E$58,2,FALSE) ) )","v":""},null,null,null,null,{"$f":"IF(TRIM(T15)=\"\", \"\", IF(VLOOKUP(T15,'Footnotes list'!$D$9:$E$58,2,FALSE)=0,\"\",VLOOKUP(T15,'Footnotes list'!$D$9:$E$58,2,FALSE) ) )","v":""},null,null,null,null,{"$f":"IF(TRIM(Y15)=\"\", \"\", IF(VLOOKUP(Y15,'Footnotes list'!$D$9:$E$58,2,FALSE)=0,\"\",VLOOKUP(Y15,'Footnotes list'!$D$9:$E$58,2,FALSE) ) )","v":""},null,null,null,null,{"$f":"IF(TRIM(AD15)=\"\", \"\", IF(VLOOKUP(AD15,'Footnotes list'!$D$9:$E$58,2,FALSE)=0,\"\",VLOOKUP(AD15,'Footnotes list'!$D$9:$E$58,2,FALSE) ) )","v":""},null,null,null,null,{"$f":"IF(TRIM(AI15)=\"\", \"\", IF(VLOOKUP(AI15,'Footnotes list'!$D$9:$E$58,2,FALSE)=0,\"\",VLOOKUP(AI15,'Footnotes list'!$D$9:$E$58,2,FALSE) ) )","v":""},null,null,null,null,{"$f":"IF(TRIM(AN15)=\"\", \"\", IF(VLOOKUP(AN15,'Footnotes list'!$D$9:$E$58,2,FALSE)=0,\"\",VLOOKUP(AN15,'Footnotes list'!$D$9:$E$58,2,FALSE) ) )","v":""},null,null,null,null,{"$f":"IF(TRIM(AS15)=\"\", \"\", IF(VLOOKUP(AS15,'Footnotes list'!$D$9:$E$58,2,FALSE)=0,\"\",VLOOKUP(AS15,'Footnotes list'!$D$9:$E$58,2,FALSE) ) )","v":""},null,null,null,null,{"$f":"IF(TRIM(AX15)=\"\", \"\", IF(VLOOKUP(AX15,'Footnotes list'!$D$9:$E$58,2,FALSE)=0,\"\",VLOOKUP(AX15,'Footnotes list'!$D$9:$E$58,2,FALSE) ) )","v":""},null,null,null,null,{"$f":"IF(TRIM(BC15)=\"\", \"\", IF(VLOOKUP(BC15,'Footnotes list'!$D$9:$E$58,2,FALSE)=0,\"\",VLOOKUP(BC15,'Footnotes list'!$D$9:$E$58,2,FALSE) ) )","v":""},null,null,null,null,{"$f":"IF(TRIM(BH15)=\"\", \"\", IF(VLOOKUP(BH15,'Footnotes list'!$D$9:$E$58,2,FALSE)=0,\"\",VLOOKUP(BH15,'Footnotes list'!$D$9:$E$58,2,FALSE) ) )","v":""},null,null,null,null,{"$f":"IF(TRIM(BM15)=\"\", \"\", IF(VLOOKUP(BM15,'Footnotes list'!$D$9:$E$58,2,FALSE)=0,\"\",VLOOKUP(BM15,'Footnotes list'!$D$9:$E$58,2,FALSE) ) )","v":""},null,null,null,null,{"$f":"IF(TRIM(BR15)=\"\", \"\", IF(VLOOKUP(BR15,'Footnotes list'!$D$9:$E$58,2,FALSE)=0,\"\",VLOOKUP(BR15,'Footnotes list'!$D$9:$E$58,2,FALSE) ) )","v":""},null,null,null,null,{"$f":"IF(TRIM(BW15)=\"\", \"\", IF(VLOOKUP(BW15,'Footnotes list'!$D$9:$E$58,2,FALSE)=0,\"\",VLOOKUP(BW15,'Footnotes list'!$D$9:$E$58,2,FALSE) ) )","v":""},null,null,null,null,{"$f":"IF(TRIM(CB15)=\"\", \"\", IF(VLOOKUP(CB15,'Footnotes list'!$D$9:$E$58,2,FALSE)=0,\"\",VLOOKUP(CB15,'Footnotes list'!$D$9:$E$58,2,FALSE) ) )","v":""},null,null,null,null,{"$f":"IF(TRIM(CG15)=\"\", \"\", IF(VLOOKUP(CG15,'Footnotes list'!$D$9:$E$58,2,FALSE)=0,\"\",VLOOKUP(CG15,'Footnotes list'!$D$9:$E$58,2,FALSE) ) )","v":""},null,null,null,null,{"$f":"IF(TRIM(CL15)=\"\", \"\", IF(VLOOKUP(CL15,'Footnotes list'!$D$9:$E$58,2,FALSE)=0,\"\",VLOOKUP(CL15,'Footnotes list'!$D$9:$E$58,2,FALSE) ) )","v":""},null,null,null,null,{"$f":"IF(TRIM(CQ15)=\"\", \"\", IF(VLOOKUP(CQ15,'Footnotes list'!$D$9:$E$58,2,FALSE)=0,\"\",VLOOKUP(CQ15,'Footnotes list'!$D$9:$E$58,2,FALSE) ) )","v":""},null,null,null,null,{"$f":"IF(TRIM(CV15)=\"\", \"\", IF(VLOOKUP(CV15,'Footnotes list'!$D$9:$E$58,2,FALSE)=0,\"\",VLOOKUP(CV15,'Footnotes list'!$D$9:$E$58,2,FALSE) ) )","v":""},null,null,null,null,{"$f":"IF(TRIM(DA15)=\"\", \"\", IF(VLOOKUP(DA15,'Footnotes list'!$D$9:$E$58,2,FALSE)=0,\"\",VLOOKUP(DA15,'Footnotes list'!$D$9:$E$58,2,FALSE) ) )","v":""},null,null,null,null,{"$f":"IF(TRIM(DF15)=\"\", \"\", IF(VLOOKUP(DF15,'Footnotes list'!$D$9:$E$58,2,FALSE)=0,\"\",VLOOKUP(DF15,'Footnotes list'!$D$9:$E$58,2,FALSE) ) )","v":""},null,null,null,null,{"$f":"IF(TRIM(DK15)=\"\", \"\", IF(VLOOKUP(DK15,'Footnotes list'!$D$9:$E$58,2,FALSE)=0,\"\",VLOOKUP(DK15,'Footnotes list'!$D$9:$E$58,2,FALSE) ) )","v":""},null,null,null,null,{"$f":"IF(TRIM(DP15)=\"\", \"\", IF(VLOOKUP(DP15,'Footnotes list'!$D$9:$E$58,2,FALSE)=0,\"\",VLOOKUP(DP15,'Footnotes list'!$D$9:$E$58,2,FALSE) ) )","v":""},null,null,null,null,{"$f":"IF(TRIM(DU15)=\"\", \"\", IF(VLOOKUP(DU15,'Footnotes list'!$D$9:$E$58,2,FALSE)=0,\"\",VLOOKUP(DU15,'Footnotes list'!$D$9:$E$58,2,FALSE) ) )","v":""},null,null,null,null,{"$f":"IF(TRIM(DZ15)=\"\", \"\", IF(VLOOKUP(DZ15,'Footnotes list'!$D$9:$E$58,2,FALSE)=0,\"\",VLOOKUP(DZ15,'Footnotes list'!$D$9:$E$58,2,FALSE) ) )","v":""},null,null,null,null,{"$f":"IF(TRIM(EE15)=\"\", \"\", IF(VLOOKUP(EE15,'Footnotes list'!$D$9:$E$58,2,FALSE)=0,\"\",VLOOKUP(EE15,'Footnotes list'!$D$9:$E$58,2,FALSE) ) )","v":""},null,null,null,null,{"$f":"IF(TRIM(EJ15)=\"\", \"\", IF(VLOOKUP(EJ15,'Footnotes list'!$D$9:$E$58,2,FALSE)=0,\"\",VLOOKUP(EJ15,'Footnotes list'!$D$9:$E$58,2,FALSE) ) )","v":""},null,null,null,null,{"$f":"IF(TRIM(EO15)=\"\", \"\", IF(VLOOKUP(EO15,'Footnotes list'!$D$9:$E$58,2,FALSE)=0,\"\",VLOOKUP(EO15,'Footnotes list'!$D$9:$E$58,2,FALSE) ) )","v":""},null,null,null,null,{"$f":"IF(TRIM(ET15)=\"\", \"\", IF(VLOOKUP(ET15,'Footnotes list'!$D$9:$E$58,2,FALSE)=0,\"\",VLOOKUP(ET15,'Footnotes list'!$D$9:$E$58,2,FALSE) ) )","v":""},null,null,null,null,{"$f":"IF(TRIM(EY15)=\"\", \"\", IF(VLOOKUP(EY15,'Footnotes list'!$D$9:$E$58,2,FALSE)=0,\"\",VLOOKUP(EY15,'Footnotes list'!$D$9:$E$58,2,FALSE) ) )","v":""}]
[null,null,"A","ANC","ancillary activities",null,null,null,null,null,{"$f":"IF(TRIM(J16)=\"\", \"\", IF(VLOOKUP(J16,'Footnotes list'!$D$9:$E$58,2,FALSE)=0,\"\",VLOOKUP(J16,'Footnotes list'!$D$9:$E$58,2,FALSE) ) )","v":""},null,null,null,null,{"$f":"IF(TRIM(O16)=\"\", \"\", IF(VLOOKUP(O16,'Footnotes list'!$D$9:$E$58,2,FALSE)=0,\"\",VLOOKUP(O16,'Footnotes list'!$D$9:$E$58,2,FALSE) ) )","v":""},null,null,null,null,{"$f":"IF(TRIM(T16)=\"\", \"\", IF(VLOOKUP(T16,'Footnotes list'!$D$9:$E$58,2,FALSE)=0,\"\",VLOOKUP(T16,'Footnotes list'!$D$9:$E$58,2,FALSE) ) )","v":""},null,null,null,null,{"$f":"IF(TRIM(Y16)=\"\", \"\", IF(VLOOKUP(Y16,'Footnotes list'!$D$9:$E$58,2,FALSE)=0,\"\",VLOOKUP(Y16,'Footnotes list'!$D$9:$E$58,2,FALSE) ) )","v":""},null,null,null,null,{"$f":"IF(TRIM(AD16)=\"\", \"\", IF(VLOOKUP(AD16,'Footnotes list'!$D$9:$E$58,2,FALSE)=0,\"\",VLOOKUP(AD16,'Footnotes list'!$D$9:$E$58,2,FALSE) ) )","v":""},null,null,null,null,{"$f":"IF(TRIM(AI16)=\"\", \"\", IF(VLOOKUP(AI16,'Footnotes list'!$D$9:$E$58,2,FALSE)=0,\"\",VLOOKUP(AI16,'Footnotes list'!$D$9:$E$58,2,FALSE) ) )","v":""},null,null,null,null,{"$f":"IF(TRIM(AN16)=\"\", \"\", IF(VLOOKUP(AN16,'Footnotes list'!$D$9:$E$58,2,FALSE)=0,\"\",VLOOKUP(AN16,'Footnotes list'!$D$9:$E$58,2,FALSE) ) )","v":""},null,null,null,null,{"$f":"IF(TRIM(AS16)=\"\", \"\", IF(VLOOKUP(AS16,'Footnotes list'!$D$9:$E$58,2,FALSE)=0,\"\",VLOOKUP(AS16,'Footnotes list'!$D$9:$E$58,2,FALSE) ) )","v":""},null,null,null,null,{"$f":"IF(TRIM(AX16)=\"\", \"\", IF(VLOOKUP(AX16,'Footnotes list'!$D$9:$E$58,2,FALSE)=0,\"\",VLOOKUP(AX16,'Footnotes list'!$D$9:$E$58,2,FALSE) ) )","v":""},null,null,null,null,{"$f":"IF(TRIM(BC16)=\"\", \"\", IF(VLOOKUP(BC16,'Footnotes list'!$D$9:$E$58,2,FALSE)=0,\"\",VLOOKUP(BC16,'Footnotes list'!$D$9:$E$58,2,FALSE) ) )","v":""},null,null,null,null,{"$f":"IF(TRIM(BH16)=\"\", \"\", IF(VLOOKUP(BH16,'Footnotes list'!$D$9:$E$58,2,FALSE)=0,\"\",VLOOKUP(BH16,'Footnotes list'!$D$9:$E$58,2,FALSE) ) )","v":""},null,null,null,null,{"$f":"IF(TRIM(BM16)=\"\", \"\", IF(VLOOKUP(BM16,'Footnotes list'!$D$9:$E$58,2,FALSE)=0,\"\",VLOOKUP(BM16,'Footnotes list'!$D$9:$E$58,2,FALSE) ) )","v":""},null,null,null,null,{"$f":"IF(TRIM(BR16)=\"\", \"\", IF(VLOOKUP(BR16,'Footnotes list'!$D$9:$E$58,2,FALSE)=0,\"\",VLOOKUP(BR16,'Footnotes list'!$D$9:$E$58,2,FALSE) ) )","v":""},null,null,null,null,{"$f":"IF(TRIM(BW16)=\"\", \"\", IF(VLOOKUP(BW16,'Footnotes list'!$D$9:$E$58,2,FALSE)=0,\"\",VLOOKUP(BW16,'Footnotes list'!$D$9:$E$58,2,FALSE) ) )","v":""},null,null,null,null,{"$f":"IF(TRIM(CB16)=\"\", \"\", IF(VLOOKUP(CB16,'Footnotes list'!$D$9:$E$58,2,FALSE)=0,\"\",VLOOKUP(CB16,'Footnotes list'!$D$9:$E$58,2,FALSE) ) )","v":""},null,null,null,null,{"$f":"IF(TRIM(CG16)=\"\", \"\", IF(VLOOKUP(CG16,'Footnotes list'!$D$9:$E$58,2,FALSE)=0,\"\",VLOOKUP(CG16,'Footnotes list'!$D$9:$E$58,2,FALSE) ) )","v":""},null,null,null,null,{"$f":"IF(TRIM(CL16)=\"\", \"\", IF(VLOOKUP(CL16,'Footnotes list'!$D$9:$E$58,2,FALSE)=0,\"\",VLOOKUP(CL16,'Footnotes list'!$D$9:$E$58,2,FALSE) ) )","v":""},null,null,null,null,{"$f":"IF(TRIM(CQ16)=\"\", \"\", IF(VLOOKUP(CQ16,'Footnotes list'!$D$9:$E$58,2,FALSE)=0,\"\",VLOOKUP(CQ16,'Footnotes list'!$D$9:$E$58,2,FALSE) ) )","v":""},null,null,null,null,{"$f":"IF(TRIM(CV16)=\"\", \"\", IF(VLOOKUP(CV16,'Footnotes list'!$D$9:$E$58,2,FALSE)=0,\"\",VLOOKUP(CV16,'Footnotes list'!$D$9:$E$58,2,FALSE) ) )","v":""},null,null,null,null,{"$f":"IF(TRIM(DA16)=\"\", \"\", IF(VLOOKUP(DA16,'Footnotes list'!$D$9:$E$58,2,FALSE)=0,\"\",VLOOKUP(DA16,'Footnotes list'!$D$9:$E$58,2,FALSE) ) )","v":""},null,null,null,null,{"$f":"IF(TRIM(DF16)=\"\", \"\", IF(VLOOKUP(DF16,'Footnotes list'!$D$9:$E$58,2,FALSE)=0,\"\",VLOOKUP(DF16,'Footnotes list'!$D$9:$E$58,2,FALSE) ) )","v":""},null,null,null,null,{"$f":"IF(TRIM(DK16)=\"\", \"\", IF(VLOOKUP(DK16,'Footnotes list'!$D$9:$E$58,2,FALSE)=0,\"\",VLOOKUP(DK16,'Footnotes list'!$D$9:$E$58,2,FALSE) ) )","v":""},null,null,null,null,{"$f":"IF(TRIM(DP16)=\"\", \"\", IF(VLOOKUP(DP16,'Footnotes list'!$D$9:$E$58,2,FALSE)=0,\"\",VLOOKUP(DP16,'Footnotes list'!$D$9:$E$58,2,FALSE) ) )","v":""},null,null,null,null,{"$f":"IF(TRIM(DU16)=\"\", \"\", IF(VLOOKUP(DU16,'Footnotes list'!$D$9:$E$58,2,FALSE)=0,\"\",VLOOKUP(DU16,'Footnotes list'!$D$9:$E$58,2,FALSE) ) )","v":""},null,null,null,null,{"$f":"IF(TRIM(DZ16)=\"\", \"\", IF(VLOOKUP(DZ16,'Footnotes list'!$D$9:$E$58,2,FALSE)=0,\"\",VLOOKUP(DZ16,'Footnotes list'!$D$9:$E$58,2,FALSE) ) )","v":""},null,null,null,null,{"$f":"IF(TRIM(EE16)=\"\", \"\", IF(VLOOKUP(EE16,'Footnotes list'!$D$9:$E$58,2,FALSE)=0,\"\",VLOOKUP(EE16,'Footnotes list'!$D$9:$E$58,2,FALSE) ) )","v":""},null,null,null,null,{"$f":"IF(TRIM(EJ16)=\"\", \"\", IF(VLOOKUP(EJ16,'Footnotes list'!$D$9:$E$58,2,FALSE)=0,\"\",VLOOKUP(EJ16,'Footnotes list'!$D$9:$E$58,2,FALSE) ) )","v":""},null,null,null,null,{"$f":"IF(TRIM(EO16)=\"\", \"\", IF(VLOOKUP(EO16,'Footnotes list'!$D$9:$E$58,2,FALSE)=0,\"\",VLOOKUP(EO16,'Footnotes list'!$D$9:$E$58,2,FALSE) ) )","v":""},null,null,null,null,{"$f":"IF(TRIM(ET16)=\"\", \"\", IF(VLOOKUP(ET16,'Footnotes list'!$D$9:$E$58,2,FALSE)=0,\"\",VLOOKUP(ET16,'Footnotes list'!$D$9:$E$58,2,FALSE) ) )","v":""},null,null,null,null,{"$f":"IF(TRIM(EY16)=\"\", \"\", IF(VLOOKUP(EY16,'Footnotes list'!$D$9:$E$58,2,FALSE)=0,\"\",VLOOKUP(EY16,'Footnotes list'!$D$9:$E$58,2,FALSE) ) )","v":""}]
[null,null,"A","NMKT","non-market activities",null,null,null,null,null,{"$f":"IF(TRIM(J17)=\"\", \"\", IF(VLOOKUP(J17,'Footnotes list'!$D$9:$E$58,2,FALSE)=0,\"\",VLOOKUP(J17,'Footnotes list'!$D$9:$E$58,2,FALSE) ) )","v":""},null,null,null,null,{"$f":"IF(TRIM(O17)=\"\", \"\", IF(VLOOKUP(O17,'Footnotes list'!$D$9:$E$58,2,FALSE)=0,\"\",VLOOKUP(O17,'Footnotes list'!$D$9:$E$58,2,FALSE) ) )","v":""},null,null,null,null,{"$f":"IF(TRIM(T17)=\"\", \"\", IF(VLOOKUP(T17,'Footnotes list'!$D$9:$E$58,2,FALSE)=0,\"\",VLOOKUP(T17,'Footnotes list'!$D$9:$E$58,2,FALSE) ) )","v":""},null,null,null,null,{"$f":"IF(TRIM(Y17)=\"\", \"\", IF(VLOOKUP(Y17,'Footnotes list'!$D$9:$E$58,2,FALSE)=0,\"\",VLOOKUP(Y17,'Footnotes list'!$D$9:$E$58,2,FALSE) ) )","v":""},null,null,null,null,{"$f":"IF(TRIM(AD17)=\"\", \"\", IF(VLOOKUP(AD17,'Footnotes list'!$D$9:$E$58,2,FALSE)=0,\"\",VLOOKUP(AD17,'Footnotes list'!$D$9:$E$58,2,FALSE) ) )","v":""},null,null,null,null,{"$f":"IF(TRIM(AI17)=\"\", \"\", IF(VLOOKUP(AI17,'Footnotes list'!$D$9:$E$58,2,FALSE)=0,\"\",VLOOKUP(AI17,'Footnotes list'!$D$9:$E$58,2,FALSE) ) )","v":""},null,null,null,null,{"$f":"IF(TRIM(AN17)=\"\", \"\", IF(VLOOKUP(AN17,'Footnotes list'!$D$9:$E$58,2,FALSE)=0,\"\",VLOOKUP(AN17,'Footnotes list'!$D$9:$E$58,2,FALSE) ) )","v":""},null,null,null,null,{"$f":"IF(TRIM(AS17)=\"\", \"\", IF(VLOOKUP(AS17,'Footnotes list'!$D$9:$E$58,2,FALSE)=0,\"\",VLOOKUP(AS17,'Footnotes list'!$D$9:$E$58,2,FALSE) ) )","v":""},null,null,null,null,{"$f":"IF(TRIM(AX17)=\"\", \"\", IF(VLOOKUP(AX17,'Footnotes list'!$D$9:$E$58,2,FALSE)=0,\"\",VLOOKUP(AX17,'Footnotes list'!$D$9:$E$58,2,FALSE) ) )","v":""},null,null,null,null,{"$f":"IF(TRIM(BC17)=\"\", \"\", IF(VLOOKUP(BC17,'Footnotes list'!$D$9:$E$58,2,FALSE)=0,\"\",VLOOKUP(BC17,'Footnotes list'!$D$9:$E$58,2,FALSE) ) )","v":""},null,null,null,null,{"$f":"IF(TRIM(BH17)=\"\", \"\", IF(VLOOKUP(BH17,'Footnotes list'!$D$9:$E$58,2,FALSE)=0,\"\",VLOOKUP(BH17,'Footnotes list'!$D$9:$E$58,2,FALSE) ) )","v":""},null,null,null,null,{"$f":"IF(TRIM(BM17)=\"\", \"\", IF(VLOOKUP(BM17,'Footnotes list'!$D$9:$E$58,2,FALSE)=0,\"\",VLOOKUP(BM17,'Footnotes list'!$D$9:$E$58,2,FALSE) ) )","v":""},null,null,null,null,{"$f":"IF(TRIM(BR17)=\"\", \"\", IF(VLOOKUP(BR17,'Footnotes list'!$D$9:$E$58,2,FALSE)=0,\"\",VLOOKUP(BR17,'Footnotes list'!$D$9:$E$58,2,FALSE) ) )","v":""},null,null,null,null,{"$f":"IF(TRIM(BW17)=\"\", \"\", IF(VLOOKUP(BW17,'Footnotes list'!$D$9:$E$58,2,FALSE)=0,\"\",VLOOKUP(BW17,'Footnotes list'!$D$9:$E$58,2,FALSE) ) )","v":""},null,null,null,null,{"$f":"IF(TRIM(CB17)=\"\", \"\", IF(VLOOKUP(CB17,'Footnotes list'!$D$9:$E$58,2,FALSE)=0,\"\",VLOOKUP(CB17,'Footnotes list'!$D$9:$E$58,2,FALSE) ) )","v":""},null,null,null,null,{"$f":"IF(TRIM(CG17)=\"\", \"\", IF(VLOOKUP(CG17,'Footnotes list'!$D$9:$E$58,2,FALSE)=0,\"\",VLOOKUP(CG17,'Footnotes list'!$D$9:$E$58,2,FALSE) ) )","v":""},null,null,null,null,{"$f":"IF(TRIM(CL17)=\"\", \"\", IF(VLOOKUP(CL17,'Footnotes list'!$D$9:$E$58,2,FALSE)=0,\"\",VLOOKUP(CL17,'Footnotes list'!$D$9:$E$58,2,FALSE) ) )","v":""},null,null,null,null,{"$f":"IF(TRIM(CQ17)=\"\", \"\", IF(VLOOKUP(CQ17,'Footnotes list'!$D$9:$E$58,2,FALSE)=0,\"\",VLOOKUP(CQ17,'Footnotes list'!$D$9:$E$58,2,FALSE) ) )","v":""},null,null,null,null,{"$f":"IF(TRIM(CV17)=\"\", \"\", IF(VLOOKUP(CV17,'Footnotes list'!$D$9:$E$58,2,FALSE)=0,\"\",VLOOKUP(CV17,'Footnotes list'!$D$9:$E$58,2,FALSE) ) )","v":""},null,null,null,null,{"$f":"IF(TRIM(DA17)=\"\", \"\", IF(VLOOKUP(DA17,'Footnotes list'!$D$9:$E$58,2,FALSE)=0,\"\",VLOOKUP(DA17,'Footnotes list'!$D$9:$E$58,2,FALSE) ) )","v":""},null,null,null,null,{"$f":"IF(TRIM(DF17)=\"\", \"\", IF(VLOOKUP(DF17,'Footnotes list'!$D$9:$E$58,2,FALSE)=0,\"\",VLOOKUP(DF17,'Footnotes list'!$D$9:$E$58,2,FALSE) ) )","v":""},null,null,null,null,{"$f":"IF(TRIM(DK17)=\"\", \"\", IF(VLOOKUP(DK17,'Footnotes list'!$D$9:$E$58,2,FALSE)=0,\"\",VLOOKUP(DK17,'Footnotes list'!$D$9:$E$58,2,FALSE) ) )","v":""},null,null,null,null,{"$f":"IF(TRIM(DP17)=\"\", \"\", IF(VLOOKUP(DP17,'Footnotes list'!$D$9:$E$58,2,FALSE)=0,\"\",VLOOKUP(DP17,'Footnotes list'!$D$9:$E$58,2,FALSE) ) )","v":""},null,null,null,null,{"$f":"IF(TRIM(DU17)=\"\", \"\", IF(VLOOKUP(DU17,'Footnotes list'!$D$9:$E$58,2,FALSE)=0,\"\",VLOOKUP(DU17,'Footnotes list'!$D$9:$E$58,2,FALSE) ) )","v":""},null,null,null,null,{"$f":"IF(TRIM(DZ17)=\"\", \"\", IF(VLOOKUP(DZ17,'Footnotes list'!$D$9:$E$58,2,FALSE)=0,\"\",VLOOKUP(DZ17,'Footnotes list'!$D$9:$E$58,2,FALSE) ) )","v":""},null,null,null,null,{"$f":"IF(TRIM(EE17)=\"\", \"\", IF(VLOOKUP(EE17,'Footnotes list'!$D$9:$E$58,2,FALSE)=0,\"\",VLOOKUP(EE17,'Footnotes list'!$D$9:$E$58,2,FALSE) ) )","v":""},null,null,null,null,{"$f":"IF(TRIM(EJ17)=\"\", \"\", IF(VLOOKUP(EJ17,'Footnotes list'!$D$9:$E$58,2,FALSE)=0,\"\",VLOOKUP(EJ17,'Footnotes list'!$D$9:$E$58,2,FALSE) ) )","v":""},null,null,null,null,{"$f":"IF(TRIM(EO17)=\"\", \"\", IF(VLOOKUP(EO17,'Footnotes list'!$D$9:$E$58,2,FALSE)=0,\"\",VLOOKUP(EO17,'Footnotes list'!$D$9:$E$58,2,FALSE) ) )","v":""},null,null,null,null,{"$f":"IF(TRIM(ET17)=\"\", \"\", IF(VLOOKUP(ET17,'Footnotes list'!$D$9:$E$58,2,FALSE)=0,\"\",VLOOKUP(ET17,'Footnotes list'!$D$9:$E$58,2,FALSE) ) )","v":""},null,null,null,null,{"$f":"IF(TRIM(EY17)=\"\", \"\", IF(VLOOKUP(EY17,'Footnotes list'!$D$9:$E$58,2,FALSE)=0,\"\",VLOOKUP(EY17,'Footnotes list'!$D$9:$E$58,2,FALSE) ) )","v":""}]
[null,null,"A","OWN_USE","activities for own final use",null,null,null,null,null,{"$f":"IF(TRIM(J18)=\"\", \"\", IF(VLOOKUP(J18,'Footnotes list'!$D$9:$E$58,2,FALSE)=0,\"\",VLOOKUP(J18,'Footnotes list'!$D$9:$E$58,2,FALSE) ) )","v":""},null,null,null,null,{"$f":"IF(TRIM(O18)=\"\", \"\", IF(VLOOKUP(O18,'Footnotes list'!$D$9:$E$58,2,FALSE)=0,\"\",VLOOKUP(O18,'Footnotes list'!$D$9:$E$58,2,FALSE) ) )","v":""},null,null,null,null,{"$f":"IF(TRIM(T18)=\"\", \"\", IF(VLOOKUP(T18,'Footnotes list'!$D$9:$E$58,2,FALSE)=0,\"\",VLOOKUP(T18,'Footnotes list'!$D$9:$E$58,2,FALSE) ) )","v":""},null,null,null,null,{"$f":"IF(TRIM(Y18)=\"\", \"\", IF(VLOOKUP(Y18,'Footnotes list'!$D$9:$E$58,2,FALSE)=0,\"\",VLOOKUP(Y18,'Footnotes list'!$D$9:$E$58,2,FALSE) ) )","v":""},null,null,null,null,{"$f":"IF(TRIM(AD18)=\"\", \"\", IF(VLOOKUP(AD18,'Footnotes list'!$D$9:$E$58,2,FALSE)=0,\"\",VLOOKUP(AD18,'Footnotes list'!$D$9:$E$58,2,FALSE) ) )","v":""},null,null,null,null,{"$f":"IF(TRIM(AI18)=\"\", \"\", IF(VLOOKUP(AI18,'Footnotes list'!$D$9:$E$58,2,FALSE)=0,\"\",VLOOKUP(AI18,'Footnotes list'!$D$9:$E$58,2,FALSE) ) )","v":""},null,null,null,null,{"$f":"IF(TRIM(AN18)=\"\", \"\", IF(VLOOKUP(AN18,'Footnotes list'!$D$9:$E$58,2,FALSE)=0,\"\",VLOOKUP(AN18,'Footnotes list'!$D$9:$E$58,2,FALSE) ) )","v":""},null,null,null,null,{"$f":"IF(TRIM(AS18)=\"\", \"\", IF(VLOOKUP(AS18,'Footnotes list'!$D$9:$E$58,2,FALSE)=0,\"\",VLOOKUP(AS18,'Footnotes list'!$D$9:$E$58,2,FALSE) ) )","v":""},null,null,null,null,{"$f":"IF(TRIM(AX18)=\"\", \"\", IF(VLOOKUP(AX18,'Footnotes list'!$D$9:$E$58,2,FALSE)=0,\"\",VLOOKUP(AX18,'Footnotes list'!$D$9:$E$58,2,FALSE) ) )","v":""},null,null,null,null,{"$f":"IF(TRIM(BC18)=\"\", \"\", IF(VLOOKUP(BC18,'Footnotes list'!$D$9:$E$58,2,FALSE)=0,\"\",VLOOKUP(BC18,'Footnotes list'!$D$9:$E$58,2,FALSE) ) )","v":""},null,null,null,null,{"$f":"IF(TRIM(BH18)=\"\", \"\", IF(VLOOKUP(BH18,'Footnotes list'!$D$9:$E$58,2,FALSE)=0,\"\",VLOOKUP(BH18,'Footnotes list'!$D$9:$E$58,2,FALSE) ) )","v":""},null,null,null,null,{"$f":"IF(TRIM(BM18)=\"\", \"\", IF(VLOOKUP(BM18,'Footnotes list'!$D$9:$E$58,2,FALSE)=0,\"\",VLOOKUP(BM18,'Footnotes list'!$D$9:$E$58,2,FALSE) ) )","v":""},null,null,null,null,{"$f":"IF(TRIM(BR18)=\"\", \"\", IF(VLOOKUP(BR18,'Footnotes list'!$D$9:$E$58,2,FALSE)=0,\"\",VLOOKUP(BR18,'Footnotes list'!$D$9:$E$58,2,FALSE) ) )","v":""},null,null,null,null,{"$f":"IF(TRIM(BW18)=\"\", \"\", IF(VLOOKUP(BW18,'Footnotes list'!$D$9:$E$58,2,FALSE)=0,\"\",VLOOKUP(BW18,'Footnotes list'!$D$9:$E$58,2,FALSE) ) )","v":""},null,null,null,null,{"$f":"IF(TRIM(CB18)=\"\", \"\", IF(VLOOKUP(CB18,'Footnotes list'!$D$9:$E$58,2,FALSE)=0,\"\",VLOOKUP(CB18,'Footnotes list'!$D$9:$E$58,2,FALSE) ) )","v":""},null,null,null,null,{"$f":"IF(TRIM(CG18)=\"\", \"\", IF(VLOOKUP(CG18,'Footnotes list'!$D$9:$E$58,2,FALSE)=0,\"\",VLOOKUP(CG18,'Footnotes list'!$D$9:$E$58,2,FALSE) ) )","v":""},null,null,null,null,{"$f":"IF(TRIM(CL18)=\"\", \"\", IF(VLOOKUP(CL18,'Footnotes list'!$D$9:$E$58,2,FALSE)=0,\"\",VLOOKUP(CL18,'Footnotes list'!$D$9:$E$58,2,FALSE) ) )","v":""},null,null,null,null,{"$f":"IF(TRIM(CQ18)=\"\", \"\", IF(VLOOKUP(CQ18,'Footnotes list'!$D$9:$E$58,2,FALSE)=0,\"\",VLOOKUP(CQ18,'Footnotes list'!$D$9:$E$58,2,FALSE) ) )","v":""},null,null,null,null,{"$f":"IF(TRIM(CV18)=\"\", \"\", IF(VLOOKUP(CV18,'Footnotes list'!$D$9:$E$58,2,FALSE)=0,\"\",VLOOKUP(CV18,'Footnotes list'!$D$9:$E$58,2,FALSE) ) )","v":""},null,null,null,null,{"$f":"IF(TRIM(DA18)=\"\", \"\", IF(VLOOKUP(DA18,'Footnotes list'!$D$9:$E$58,2,FALSE)=0,\"\",VLOOKUP(DA18,'Footnotes list'!$D$9:$E$58,2,FALSE) ) )","v":""},null,null,null,null,{"$f":"IF(TRIM(DF18)=\"\", \"\", IF(VLOOKUP(DF18,'Footnotes list'!$D$9:$E$58,2,FALSE)=0,\"\",VLOOKUP(DF18,'Footnotes list'!$D$9:$E$58,2,FALSE) ) )","v":""},null,null,null,null,{"$f":"IF(TRIM(DK18)=\"\", \"\", IF(VLOOKUP(DK18,'Footnotes list'!$D$9:$E$58,2,FALSE)=0,\"\",VLOOKUP(DK18,'Footnotes list'!$D$9:$E$58,2,FALSE) ) )","v":""},null,null,null,null,{"$f":"IF(TRIM(DP18)=\"\", \"\", IF(VLOOKUP(DP18,'Footnotes list'!$D$9:$E$58,2,FALSE)=0,\"\",VLOOKUP(DP18,'Footnotes list'!$D$9:$E$58,2,FALSE) ) )","v":""},null,null,null,null,{"$f":"IF(TRIM(DU18)=\"\", \"\", IF(VLOOKUP(DU18,'Footnotes list'!$D$9:$E$58,2,FALSE)=0,\"\",VLOOKUP(DU18,'Footnotes list'!$D$9:$E$58,2,FALSE) ) )","v":""},null,null,null,null,{"$f":"IF(TRIM(DZ18)=\"\", \"\", IF(VLOOKUP(DZ18,'Footnotes list'!$D$9:$E$58,2,FALSE)=0,\"\",VLOOKUP(DZ18,'Footnotes list'!$D$9:$E$58,2,FALSE) ) )","v":""},null,null,null,null,{"$f":"IF(TRIM(EE18)=\"\", \"\", IF(VLOOKUP(EE18,'Footnotes list'!$D$9:$E$58,2,FALSE)=0,\"\",VLOOKUP(EE18,'Footnotes list'!$D$9:$E$58,2,FALSE) ) )","v":""},null,null,null,null,{"$f":"IF(TRIM(EJ18)=\"\", \"\", IF(VLOOKUP(EJ18,'Footnotes list'!$D$9:$E$58,2,FALSE)=0,\"\",VLOOKUP(EJ18,'Footnotes list'!$D$9:$E$58,2,FALSE) ) )","v":""},null,null,null,null,{"$f":"IF(TRIM(EO18)=\"\", \"\", IF(VLOOKUP(EO18,'Footnotes list'!$D$9:$E$58,2,FALSE)=0,\"\",VLOOKUP(EO18,'Footnotes list'!$D$9:$E$58,2,FALSE) ) )","v":""},null,null,null,null,{"$f":"IF(TRIM(ET18)=\"\", \"\", IF(VLOOKUP(ET18,'Footnotes list'!$D$9:$E$58,2,FALSE)=0,\"\",VLOOKUP(ET18,'Footnotes list'!$D$9:$E$58,2,FALSE) ) )","v":""},null,null,null,null,{"$f":"IF(TRIM(EY18)=\"\", \"\", IF(VLOOKUP(EY18,'Footnotes list'!$D$9:$E$58,2,FALSE)=0,\"\",VLOOKUP(EY18,'Footnotes list'!$D$9:$E$58,2,FALSE) ) )","v":""}]
[null,null,"A","MKT","market activities, Including:",null,null,null,null,null,{"$f":"IF(TRIM(J19)=\"\", \"\", IF(VLOOKUP(J19,'Footnotes list'!$D$9:$E$58,2,FALSE)=0,\"\",VLOOKUP(J19,'Footnotes list'!$D$9:$E$58,2,FALSE) ) )","v":""},null,null,null,null,{"$f":"IF(TRIM(O19)=\"\", \"\", IF(VLOOKUP(O19,'Footnotes list'!$D$9:$E$58,2,FALSE)=0,\"\",VLOOKUP(O19,'Footnotes list'!$D$9:$E$58,2,FALSE) ) )","v":""},null,null,null,null,{"$f":"IF(TRIM(T19)=\"\", \"\", IF(VLOOKUP(T19,'Footnotes list'!$D$9:$E$58,2,FALSE)=0,\"\",VLOOKUP(T19,'Footnotes list'!$D$9:$E$58,2,FALSE) ) )","v":""},null,null,null,null,{"$f":"IF(TRIM(Y19)=\"\", \"\", IF(VLOOKUP(Y19,'Footnotes list'!$D$9:$E$58,2,FALSE)=0,\"\",VLOOKUP(Y19,'Footnotes list'!$D$9:$E$58,2,FALSE) ) )","v":""},null,null,null,null,{"$f":"IF(TRIM(AD19)=\"\", \"\", IF(VLOOKUP(AD19,'Footnotes list'!$D$9:$E$58,2,FALSE)=0,\"\",VLOOKUP(AD19,'Footnotes list'!$D$9:$E$58,2,FALSE) ) )","v":""},null,null,null,null,{"$f":"IF(TRIM(AI19)=\"\", \"\", IF(VLOOKUP(AI19,'Footnotes list'!$D$9:$E$58,2,FALSE)=0,\"\",VLOOKUP(AI19,'Footnotes list'!$D$9:$E$58,2,FALSE) ) )","v":""},null,null,null,null,{"$f":"IF(TRIM(AN19)=\"\", \"\", IF(VLOOKUP(AN19,'Footnotes list'!$D$9:$E$58,2,FALSE)=0,\"\",VLOOKUP(AN19,'Footnotes list'!$D$9:$E$58,2,FALSE) ) )","v":""},null,null,null,null,{"$f":"IF(TRIM(AS19)=\"\", \"\", IF(VLOOKUP(AS19,'Footnotes list'!$D$9:$E$58,2,FALSE)=0,\"\",VLOOKUP(AS19,'Footnotes list'!$D$9:$E$58,2,FALSE) ) )","v":""},null,null,null,null,{"$f":"IF(TRIM(AX19)=\"\", \"\", IF(VLOOKUP(AX19,'Footnotes list'!$D$9:$E$58,2,FALSE)=0,\"\",VLOOKUP(AX19,'Footnotes list'!$D$9:$E$58,2,FALSE) ) )","v":""},null,null,null,null,{"$f":"IF(TRIM(BC19)=\"\", \"\", IF(VLOOKUP(BC19,'Footnotes list'!$D$9:$E$58,2,FALSE)=0,\"\",VLOOKUP(BC19,'Footnotes list'!$D$9:$E$58,2,FALSE) ) )","v":""},null,null,null,null,{"$f":"IF(TRIM(BH19)=\"\", \"\", IF(VLOOKUP(BH19,'Footnotes list'!$D$9:$E$58,2,FALSE)=0,\"\",VLOOKUP(BH19,'Footnotes list'!$D$9:$E$58,2,FALSE) ) )","v":""},null,null,null,null,{"$f":"IF(TRIM(BM19)=\"\", \"\", IF(VLOOKUP(BM19,'Footnotes list'!$D$9:$E$58,2,FALSE)=0,\"\",VLOOKUP(BM19,'Footnotes list'!$D$9:$E$58,2,FALSE) ) )","v":""},null,null,null,null,{"$f":"IF(TRIM(BR19)=\"\", \"\", IF(VLOOKUP(BR19,'Footnotes list'!$D$9:$E$58,2,FALSE)=0,\"\",VLOOKUP(BR19,'Footnotes list'!$D$9:$E$58,2,FALSE) ) )","v":""},null,null,null,null,{"$f":"IF(TRIM(BW19)=\"\", \"\", IF(VLOOKUP(BW19,'Footnotes list'!$D$9:$E$58,2,FALSE)=0,\"\",VLOOKUP(BW19,'Footnotes list'!$D$9:$E$58,2,FALSE) ) )","v":""},null,null,null,null,{"$f":"IF(TRIM(CB19)=\"\", \"\", IF(VLOOKUP(CB19,'Footnotes list'!$D$9:$E$58,2,FALSE)=0,\"\",VLOOKUP(CB19,'Footnotes list'!$D$9:$E$58,2,FALSE) ) )","v":""},null,null,null,null,{"$f":"IF(TRIM(CG19)=\"\", \"\", IF(VLOOKUP(CG19,'Footnotes list'!$D$9:$E$58,2,FALSE)=0,\"\",VLOOKUP(CG19,'Footnotes list'!$D$9:$E$58,2,FALSE) ) )","v":""},null,null,null,null,{"$f":"IF(TRIM(CL19)=\"\", \"\", IF(VLOOKUP(CL19,'Footnotes list'!$D$9:$E$58,2,FALSE)=0,\"\",VLOOKUP(CL19,'Footnotes list'!$D$9:$E$58,2,FALSE) ) )","v":""},null,null,null,null,{"$f":"IF(TRIM(CQ19)=\"\", \"\", IF(VLOOKUP(CQ19,'Footnotes list'!$D$9:$E$58,2,FALSE)=0,\"\",VLOOKUP(CQ19,'Footnotes list'!$D$9:$E$58,2,FALSE) ) )","v":""},null,null,null,null,{"$f":"IF(TRIM(CV19)=\"\", \"\", IF(VLOOKUP(CV19,'Footnotes list'!$D$9:$E$58,2,FALSE)=0,\"\",VLOOKUP(CV19,'Footnotes list'!$D$9:$E$58,2,FALSE) ) )","v":""},null,null,null,null,{"$f":"IF(TRIM(DA19)=\"\", \"\", IF(VLOOKUP(DA19,'Footnotes list'!$D$9:$E$58,2,FALSE)=0,\"\",VLOOKUP(DA19,'Footnotes list'!$D$9:$E$58,2,FALSE) ) )","v":""},null,null,null,null,{"$f":"IF(TRIM(DF19)=\"\", \"\", IF(VLOOKUP(DF19,'Footnotes list'!$D$9:$E$58,2,FALSE)=0,\"\",VLOOKUP(DF19,'Footnotes list'!$D$9:$E$58,2,FALSE) ) )","v":""},null,null,null,null,{"$f":"IF(TRIM(DK19)=\"\", \"\", IF(VLOOKUP(DK19,'Footnotes list'!$D$9:$E$58,2,FALSE)=0,\"\",VLOOKUP(DK19,'Footnotes list'!$D$9:$E$58,2,FALSE) ) )","v":""},null,null,null,null,{"$f":"IF(TRIM(DP19)=\"\", \"\", IF(VLOOKUP(DP19,'Footnotes list'!$D$9:$E$58,2,FALSE)=0,\"\",VLOOKUP(DP19,'Footnotes list'!$D$9:$E$58,2,FALSE) ) )","v":""},null,null,null,null,{"$f":"IF(TRIM(DU19)=\"\", \"\", IF(VLOOKUP(DU19,'Footnotes list'!$D$9:$E$58,2,FALSE)=0,\"\",VLOOKUP(DU19,'Footnotes list'!$D$9:$E$58,2,FALSE) ) )","v":""},null,null,null,null,{"$f":"IF(TRIM(DZ19)=\"\", \"\", IF(VLOOKUP(DZ19,'Footnotes list'!$D$9:$E$58,2,FALSE)=0,\"\",VLOOKUP(DZ19,'Footnotes list'!$D$9:$E$58,2,FALSE) ) )","v":""},null,null,null,null,{"$f":"IF(TRIM(EE19)=\"\", \"\", IF(VLOOKUP(EE19,'Footnotes list'!$D$9:$E$58,2,FALSE)=0,\"\",VLOOKUP(EE19,'Footnotes list'!$D$9:$E$58,2,FALSE) ) )","v":""},null,null,null,null,{"$f":"IF(TRIM(EJ19)=\"\", \"\", IF(VLOOKUP(EJ19,'Footnotes list'!$D$9:$E$58,2,FALSE)=0,\"\",VLOOKUP(EJ19,'Footnotes list'!$D$9:$E$58,2,FALSE) ) )","v":""},null,null,null,null,{"$f":"IF(TRIM(EO19)=\"\", \"\", IF(VLOOKUP(EO19,'Footnotes list'!$D$9:$E$58,2,FALSE)=0,\"\",VLOOKUP(EO19,'Footnotes list'!$D$9:$E$58,2,FALSE) ) )","v":""},null,null,null,null,{"$f":"IF(TRIM(ET19)=\"\", \"\", IF(VLOOKUP(ET19,'Footnotes list'!$D$9:$E$58,2,FALSE)=0,\"\",VLOOKUP(ET19,'Footnotes list'!$D$9:$E$58,2,FALSE) ) )","v":""},null,null,null,null,{"$f":"IF(TRIM(EY19)=\"\", \"\", IF(VLOOKUP(EY19,'Footnotes list'!$D$9:$E$58,2,FALSE)=0,\"\",VLOOKUP(EY19,'Footnotes list'!$D$9:$E$58,2,FALSE) ) )","v":""}]
[null,null,"A","ES_CS","environmental specific services",null,null,null,null,null,{"$f":"IF(TRIM(J20)=\"\", \"\", IF(VLOOKUP(J20,'Footnotes list'!$D$9:$E$58,2,FALSE)=0,\"\",VLOOKUP(J20,'Footnotes list'!$D$9:$E$58,2,FALSE) ) )","v":""},null,null,null,null,{"$f":"IF(TRIM(O20)=\"\", \"\", IF(VLOOKUP(O20,'Footnotes list'!$D$9:$E$58,2,FALSE)=0,\"\",VLOOKUP(O20,'Footnotes list'!$D$9:$E$58,2,FALSE) ) )","v":""},null,null,null,null,{"$f":"IF(TRIM(T20)=\"\", \"\", IF(VLOOKUP(T20,'Footnotes list'!$D$9:$E$58,2,FALSE)=0,\"\",VLOOKUP(T20,'Footnotes list'!$D$9:$E$58,2,FALSE) ) )","v":""},null,null,null,null,{"$f":"IF(TRIM(Y20)=\"\", \"\", IF(VLOOKUP(Y20,'Footnotes list'!$D$9:$E$58,2,FALSE)=0,\"\",VLOOKUP(Y20,'Footnotes list'!$D$9:$E$58,2,FALSE) ) )","v":""},null,null,null,null,{"$f":"IF(TRIM(AD20)=\"\", \"\", IF(VLOOKUP(AD20,'Footnotes list'!$D$9:$E$58,2,FALSE)=0,\"\",VLOOKUP(AD20,'Footnotes list'!$D$9:$E$58,2,FALSE) ) )","v":""},null,null,null,null,{"$f":"IF(TRIM(AI20)=\"\", \"\", IF(VLOOKUP(AI20,'Footnotes list'!$D$9:$E$58,2,FALSE)=0,\"\",VLOOKUP(AI20,'Footnotes list'!$D$9:$E$58,2,FALSE) ) )","v":""},null,null,null,null,{"$f":"IF(TRIM(AN20)=\"\", \"\", IF(VLOOKUP(AN20,'Footnotes list'!$D$9:$E$58,2,FALSE)=0,\"\",VLOOKUP(AN20,'Footnotes list'!$D$9:$E$58,2,FALSE) ) )","v":""},null,null,null,null,{"$f":"IF(TRIM(AS20)=\"\", \"\", IF(VLOOKUP(AS20,'Footnotes list'!$D$9:$E$58,2,FALSE)=0,\"\",VLOOKUP(AS20,'Footnotes list'!$D$9:$E$58,2,FALSE) ) )","v":""},null,null,null,null,{"$f":"IF(TRIM(AX20)=\"\", \"\", IF(VLOOKUP(AX20,'Footnotes list'!$D$9:$E$58,2,FALSE)=0,\"\",VLOOKUP(AX20,'Footnotes list'!$D$9:$E$58,2,FALSE) ) )","v":""},null,null,null,null,{"$f":"IF(TRIM(BC20)=\"\", \"\", IF(VLOOKUP(BC20,'Footnotes list'!$D$9:$E$58,2,FALSE)=0,\"\",VLOOKUP(BC20,'Footnotes list'!$D$9:$E$58,2,FALSE) ) )","v":""},null,null,null,null,{"$f":"IF(TRIM(BH20)=\"\", \"\", IF(VLOOKUP(BH20,'Footnotes list'!$D$9:$E$58,2,FALSE)=0,\"\",VLOOKUP(BH20,'Footnotes list'!$D$9:$E$58,2,FALSE) ) )","v":""},null,null,null,null,{"$f":"IF(TRIM(BM20)=\"\", \"\", IF(VLOOKUP(BM20,'Footnotes list'!$D$9:$E$58,2,FALSE)=0,\"\",VLOOKUP(BM20,'Footnotes list'!$D$9:$E$58,2,FALSE) ) )","v":""},null,null,null,null,{"$f":"IF(TRIM(BR20)=\"\", \"\", IF(VLOOKUP(BR20,'Footnotes list'!$D$9:$E$58,2,FALSE)=0,\"\",VLOOKUP(BR20,'Footnotes list'!$D$9:$E$58,2,FALSE) ) )","v":""},null,null,null,null,{"$f":"IF(TRIM(BW20)=\"\", \"\", IF(VLOOKUP(BW20,'Footnotes list'!$D$9:$E$58,2,FALSE)=0,\"\",VLOOKUP(BW20,'Footnotes list'!$D$9:$E$58,2,FALSE) ) )","v":""},null,null,null,null,{"$f":"IF(TRIM(CB20)=\"\", \"\", IF(VLOOKUP(CB20,'Footnotes list'!$D$9:$E$58,2,FALSE)=0,\"\",VLOOKUP(CB20,'Footnotes list'!$D$9:$E$58,2,FALSE) ) )","v":""},null,null,null,null,{"$f":"IF(TRIM(CG20)=\"\", \"\", IF(VLOOKUP(CG20,'Footnotes list'!$D$9:$E$58,2,FALSE)=0,\"\",VLOOKUP(CG20,'Footnotes list'!$D$9:$E$58,2,FALSE) ) )","v":""},null,null,null,null,{"$f":"IF(TRIM(CL20)=\"\", \"\", IF(VLOOKUP(CL20,'Footnotes list'!$D$9:$E$58,2,FALSE)=0,\"\",VLOOKUP(CL20,'Footnotes list'!$D$9:$E$58,2,FALSE) ) )","v":""},null,null,null,null,{"$f":"IF(TRIM(CQ20)=\"\", \"\", IF(VLOOKUP(CQ20,'Footnotes list'!$D$9:$E$58,2,FALSE)=0,\"\",VLOOKUP(CQ20,'Footnotes list'!$D$9:$E$58,2,FALSE) ) )","v":""},null,null,null,null,{"$f":"IF(TRIM(CV20)=\"\", \"\", IF(VLOOKUP(CV20,'Footnotes list'!$D$9:$E$58,2,FALSE)=0,\"\",VLOOKUP(CV20,'Footnotes list'!$D$9:$E$58,2,FALSE) ) )","v":""},null,null,null,null,{"$f":"IF(TRIM(DA20)=\"\", \"\", IF(VLOOKUP(DA20,'Footnotes list'!$D$9:$E$58,2,FALSE)=0,\"\",VLOOKUP(DA20,'Footnotes list'!$D$9:$E$58,2,FALSE) ) )","v":""},null,null,null,null,{"$f":"IF(TRIM(DF20)=\"\", \"\", IF(VLOOKUP(DF20,'Footnotes list'!$D$9:$E$58,2,FALSE)=0,\"\",VLOOKUP(DF20,'Footnotes list'!$D$9:$E$58,2,FALSE) ) )","v":""},null,null,null,null,{"$f":"IF(TRIM(DK20)=\"\", \"\", IF(VLOOKUP(DK20,'Footnotes list'!$D$9:$E$58,2,FALSE)=0,\"\",VLOOKUP(DK20,'Footnotes list'!$D$9:$E$58,2,FALSE) ) )","v":""},null,null,null,null,{"$f":"IF(TRIM(DP20)=\"\", \"\", IF(VLOOKUP(DP20,'Footnotes list'!$D$9:$E$58,2,FALSE)=0,\"\",VLOOKUP(DP20,'Footnotes list'!$D$9:$E$58,2,FALSE) ) )","v":""},null,null,null,null,{"$f":"IF(TRIM(DU20)=\"\", \"\", IF(VLOOKUP(DU20,'Footnotes list'!$D$9:$E$58,2,FALSE)=0,\"\",VLOOKUP(DU20,'Footnotes list'!$D$9:$E$58,2,FALSE) ) )","v":""},null,null,null,null,{"$f":"IF(TRIM(DZ20)=\"\", \"\", IF(VLOOKUP(DZ20,'Footnotes list'!$D$9:$E$58,2,FALSE)=0,\"\",VLOOKUP(DZ20,'Footnotes list'!$D$9:$E$58,2,FALSE) ) )","v":""},null,null,null,null,{"$f":"IF(TRIM(EE20)=\"\", \"\", IF(VLOOKUP(EE20,'Footnotes list'!$D$9:$E$58,2,FALSE)=0,\"\",VLOOKUP(EE20,'Footnotes list'!$D$9:$E$58,2,FALSE) ) )","v":""},null,null,null,null,{"$f":"IF(TRIM(EJ20)=\"\", \"\", IF(VLOOKUP(EJ20,'Footnotes list'!$D$9:$E$58,2,FALSE)=0,\"\",VLOOKUP(EJ20,'Footnotes list'!$D$9:$E$58,2,FALSE) ) )","v":""},null,null,null,null,{"$f":"IF(TRIM(EO20)=\"\", \"\", IF(VLOOKUP(EO20,'Footnotes list'!$D$9:$E$58,2,FALSE)=0,\"\",VLOOKUP(EO20,'Footnotes list'!$D$9:$E$58,2,FALSE) ) )","v":""},null,null,null,null,{"$f":"IF(TRIM(ET20)=\"\", \"\", IF(VLOOKUP(ET20,'Footnotes list'!$D$9:$E$58,2,FALSE)=0,\"\",VLOOKUP(ET20,'Footnotes list'!$D$9:$E$58,2,FALSE) ) )","v":""},null,null,null,null,{"$f":"IF(TRIM(EY20)=\"\", \"\", IF(VLOOKUP(EY20,'Footnotes list'!$D$9:$E$58,2,FALSE)=0,\"\",VLOOKUP(EY20,'Footnotes list'!$D$9:$E$58,2,FALSE) ) )","v":""}]
[null,null,"A","C_REP","cleaner and resource efficient products",null,null,null,null,null,{"$f":"IF(TRIM(J21)=\"\", \"\", IF(VLOOKUP(J21,'Footnotes list'!$D$9:$E$58,2,FALSE)=0,\"\",VLOOKUP(J21,'Footnotes list'!$D$9:$E$58,2,FALSE) ) )","v":""},null,null,null,null,{"$f":"IF(TRIM(O21)=\"\", \"\", IF(VLOOKUP(O21,'Footnotes list'!$D$9:$E$58,2,FALSE)=0,\"\",VLOOKUP(O21,'Footnotes list'!$D$9:$E$58,2,FALSE) ) )","v":""},null,null,null,null,{"$f":"IF(TRIM(T21)=\"\", \"\", IF(VLOOKUP(T21,'Footnotes list'!$D$9:$E$58,2,FALSE)=0,\"\",VLOOKUP(T21,'Footnotes list'!$D$9:$E$58,2,FALSE) ) )","v":""},null,null,null,null,{"$f":"IF(TRIM(Y21)=\"\", \"\", IF(VLOOKUP(Y21,'Footnotes list'!$D$9:$E$58,2,FALSE)=0,\"\",VLOOKUP(Y21,'Footnotes list'!$D$9:$E$58,2,FALSE) ) )","v":""},null,null,null,null,{"$f":"IF(TRIM(AD21)=\"\", \"\", IF(VLOOKUP(AD21,'Footnotes list'!$D$9:$E$58,2,FALSE)=0,\"\",VLOOKUP(AD21,'Footnotes list'!$D$9:$E$58,2,FALSE) ) )","v":""},null,null,null,null,{"$f":"IF(TRIM(AI21)=\"\", \"\", IF(VLOOKUP(AI21,'Footnotes list'!$D$9:$E$58,2,FALSE)=0,\"\",VLOOKUP(AI21,'Footnotes list'!$D$9:$E$58,2,FALSE) ) )","v":""},null,null,null,null,{"$f":"IF(TRIM(AN21)=\"\", \"\", IF(VLOOKUP(AN21,'Footnotes list'!$D$9:$E$58,2,FALSE)=0,\"\",VLOOKUP(AN21,'Footnotes list'!$D$9:$E$58,2,FALSE) ) )","v":""},null,null,null,null,{"$f":"IF(TRIM(AS21)=\"\", \"\", IF(VLOOKUP(AS21,'Footnotes list'!$D$9:$E$58,2,FALSE)=0,\"\",VLOOKUP(AS21,'Footnotes list'!$D$9:$E$58,2,FALSE) ) )","v":""},null,null,null,null,{"$f":"IF(TRIM(AX21)=\"\", \"\", IF(VLOOKUP(AX21,'Footnotes list'!$D$9:$E$58,2,FALSE)=0,\"\",VLOOKUP(AX21,'Footnotes list'!$D$9:$E$58,2,FALSE) ) )","v":""},null,null,null,null,{"$f":"IF(TRIM(BC21)=\"\", \"\", IF(VLOOKUP(BC21,'Footnotes list'!$D$9:$E$58,2,FALSE)=0,\"\",VLOOKUP(BC21,'Footnotes list'!$D$9:$E$58,2,FALSE) ) )","v":""},null,null,null,null,{"$f":"IF(TRIM(BH21)=\"\", \"\", IF(VLOOKUP(BH21,'Footnotes list'!$D$9:$E$58,2,FALSE)=0,\"\",VLOOKUP(BH21,'Footnotes list'!$D$9:$E$58,2,FALSE) ) )","v":""},null,null,null,null,{"$f":"IF(TRIM(BM21)=\"\", \"\", IF(VLOOKUP(BM21,'Footnotes list'!$D$9:$E$58,2,FALSE)=0,\"\",VLOOKUP(BM21,'Footnotes list'!$D$9:$E$58,2,FALSE) ) )","v":""},null,null,null,null,{"$f":"IF(TRIM(BR21)=\"\", \"\", IF(VLOOKUP(BR21,'Footnotes list'!$D$9:$E$58,2,FALSE)=0,\"\",VLOOKUP(BR21,'Footnotes list'!$D$9:$E$58,2,FALSE) ) )","v":""},null,null,null,null,{"$f":"IF(TRIM(BW21)=\"\", \"\", IF(VLOOKUP(BW21,'Footnotes list'!$D$9:$E$58,2,FALSE)=0,\"\",VLOOKUP(BW21,'Footnotes list'!$D$9:$E$58,2,FALSE) ) )","v":""},null,null,null,null,{"$f":"IF(TRIM(CB21)=\"\", \"\", IF(VLOOKUP(CB21,'Footnotes list'!$D$9:$E$58,2,FALSE)=0,\"\",VLOOKUP(CB21,'Footnotes list'!$D$9:$E$58,2,FALSE) ) )","v":""},null,null,null,null,{"$f":"IF(TRIM(CG21)=\"\", \"\", IF(VLOOKUP(CG21,'Footnotes list'!$D$9:$E$58,2,FALSE)=0,\"\",VLOOKUP(CG21,'Footnotes list'!$D$9:$E$58,2,FALSE) ) )","v":""},null,null,null,null,{"$f":"IF(TRIM(CL21)=\"\", \"\", IF(VLOOKUP(CL21,'Footnotes list'!$D$9:$E$58,2,FALSE)=0,\"\",VLOOKUP(CL21,'Footnotes list'!$D$9:$E$58,2,FALSE) ) )","v":""},null,null,null,null,{"$f":"IF(TRIM(CQ21)=\"\", \"\", IF(VLOOKUP(CQ21,'Footnotes list'!$D$9:$E$58,2,FALSE)=0,\"\",VLOOKUP(CQ21,'Footnotes list'!$D$9:$E$58,2,FALSE) ) )","v":""},null,null,null,null,{"$f":"IF(TRIM(CV21)=\"\", \"\", IF(VLOOKUP(CV21,'Footnotes list'!$D$9:$E$58,2,FALSE)=0,\"\",VLOOKUP(CV21,'Footnotes list'!$D$9:$E$58,2,FALSE) ) )","v":""},null,null,null,null,{"$f":"IF(TRIM(DA21)=\"\", \"\", IF(VLOOKUP(DA21,'Footnotes list'!$D$9:$E$58,2,FALSE)=0,\"\",VLOOKUP(DA21,'Footnotes list'!$D$9:$E$58,2,FALSE) ) )","v":""},null,null,null,null,{"$f":"IF(TRIM(DF21)=\"\", \"\", IF(VLOOKUP(DF21,'Footnotes list'!$D$9:$E$58,2,FALSE)=0,\"\",VLOOKUP(DF21,'Footnotes list'!$D$9:$E$58,2,FALSE) ) )","v":""},null,null,null,null,{"$f":"IF(TRIM(DK21)=\"\", \"\", IF(VLOOKUP(DK21,'Footnotes list'!$D$9:$E$58,2,FALSE)=0,\"\",VLOOKUP(DK21,'Footnotes list'!$D$9:$E$58,2,FALSE) ) )","v":""},null,null,null,null,{"$f":"IF(TRIM(DP21)=\"\", \"\", IF(VLOOKUP(DP21,'Footnotes list'!$D$9:$E$58,2,FALSE)=0,\"\",VLOOKUP(DP21,'Footnotes list'!$D$9:$E$58,2,FALSE) ) )","v":""},null,null,null,null,{"$f":"IF(TRIM(DU21)=\"\", \"\", IF(VLOOKUP(DU21,'Footnotes list'!$D$9:$E$58,2,FALSE)=0,\"\",VLOOKUP(DU21,'Footnotes list'!$D$9:$E$58,2,FALSE) ) )","v":""},null,null,null,null,{"$f":"IF(TRIM(DZ21)=\"\", \"\", IF(VLOOKUP(DZ21,'Footnotes list'!$D$9:$E$58,2,FALSE)=0,\"\",VLOOKUP(DZ21,'Footnotes list'!$D$9:$E$58,2,FALSE) ) )","v":""},null,null,null,null,{"$f":"IF(TRIM(EE21)=\"\", \"\", IF(VLOOKUP(EE21,'Footnotes list'!$D$9:$E$58,2,FALSE)=0,\"\",VLOOKUP(EE21,'Footnotes list'!$D$9:$E$58,2,FALSE) ) )","v":""},null,null,null,null,{"$f":"IF(TRIM(EJ21)=\"\", \"\", IF(VLOOKUP(EJ21,'Footnotes list'!$D$9:$E$58,2,FALSE)=0,\"\",VLOOKUP(EJ21,'Footnotes list'!$D$9:$E$58,2,FALSE) ) )","v":""},null,null,null,null,{"$f":"IF(TRIM(EO21)=\"\", \"\", IF(VLOOKUP(EO21,'Footnotes list'!$D$9:$E$58,2,FALSE)=0,\"\",VLOOKUP(EO21,'Footnotes list'!$D$9:$E$58,2,FALSE) ) )","v":""},null,null,null,null,{"$f":"IF(TRIM(ET21)=\"\", \"\", IF(VLOOKUP(ET21,'Footnotes list'!$D$9:$E$58,2,FALSE)=0,\"\",VLOOKUP(ET21,'Footnotes list'!$D$9:$E$58,2,FALSE) ) )","v":""},null,null,null,null,{"$f":"IF(TRIM(EY21)=\"\", \"\", IF(VLOOKUP(EY21,'Footnotes list'!$D$9:$E$58,2,FALSE)=0,\"\",VLOOKUP(EY21,'Footnotes list'!$D$9:$E$58,2,FALSE) ) )","v":""}]
[null,null,"B","TOT_EGSS","Total B - Mining and quarrying, of which:",null,null,null,null,null,{"$f":"IF(TRIM(J22)=\"\", \"\", IF(VLOOKUP(J22,'Footnotes list'!$D$9:$E$58,2,FALSE)=0,\"\",VLOOKUP(J22,'Footnotes list'!$D$9:$E$58,2,FALSE) ) )","v":""},null,null,null,null,{"$f":"IF(TRIM(O22)=\"\", \"\", IF(VLOOKUP(O22,'Footnotes list'!$D$9:$E$58,2,FALSE)=0,\"\",VLOOKUP(O22,'Footnotes list'!$D$9:$E$58,2,FALSE) ) )","v":""},null,null,null,null,{"$f":"IF(TRIM(T22)=\"\", \"\", IF(VLOOKUP(T22,'Footnotes list'!$D$9:$E$58,2,FALSE)=0,\"\",VLOOKUP(T22,'Footnotes list'!$D$9:$E$58,2,FALSE) ) )","v":""},null,null,null,null,{"$f":"IF(TRIM(Y22)=\"\", \"\", IF(VLOOKUP(Y22,'Footnotes list'!$D$9:$E$58,2,FALSE)=0,\"\",VLOOKUP(Y22,'Footnotes list'!$D$9:$E$58,2,FALSE) ) )","v":""},null,null,null,null,{"$f":"IF(TRIM(AD22)=\"\", \"\", IF(VLOOKUP(AD22,'Footnotes list'!$D$9:$E$58,2,FALSE)=0,\"\",VLOOKUP(AD22,'Footnotes list'!$D$9:$E$58,2,FALSE) ) )","v":""},null,null,null,null,{"$f":"IF(TRIM(AI22)=\"\", \"\", IF(VLOOKUP(AI22,'Footnotes list'!$D$9:$E$58,2,FALSE)=0,\"\",VLOOKUP(AI22,'Footnotes list'!$D$9:$E$58,2,FALSE) ) )","v":""},null,null,null,null,{"$f":"IF(TRIM(AN22)=\"\", \"\", IF(VLOOKUP(AN22,'Footnotes list'!$D$9:$E$58,2,FALSE)=0,\"\",VLOOKUP(AN22,'Footnotes list'!$D$9:$E$58,2,FALSE) ) )","v":""},null,null,null,null,{"$f":"IF(TRIM(AS22)=\"\", \"\", IF(VLOOKUP(AS22,'Footnotes list'!$D$9:$E$58,2,FALSE)=0,\"\",VLOOKUP(AS22,'Footnotes list'!$D$9:$E$58,2,FALSE) ) )","v":""},null,null,null,null,{"$f":"IF(TRIM(AX22)=\"\", \"\", IF(VLOOKUP(AX22,'Footnotes list'!$D$9:$E$58,2,FALSE)=0,\"\",VLOOKUP(AX22,'Footnotes list'!$D$9:$E$58,2,FALSE) ) )","v":""},null,null,null,null,{"$f":"IF(TRIM(BC22)=\"\", \"\", IF(VLOOKUP(BC22,'Footnotes list'!$D$9:$E$58,2,FALSE)=0,\"\",VLOOKUP(BC22,'Footnotes list'!$D$9:$E$58,2,FALSE) ) )","v":""},null,null,null,null,{"$f":"IF(TRIM(BH22)=\"\", \"\", IF(VLOOKUP(BH22,'Footnotes list'!$D$9:$E$58,2,FALSE)=0,\"\",VLOOKUP(BH22,'Footnotes list'!$D$9:$E$58,2,FALSE) ) )","v":""},null,null,null,null,{"$f":"IF(TRIM(BM22)=\"\", \"\", IF(VLOOKUP(BM22,'Footnotes list'!$D$9:$E$58,2,FALSE)=0,\"\",VLOOKUP(BM22,'Footnotes list'!$D$9:$E$58,2,FALSE) ) )","v":""},null,null,null,null,{"$f":"IF(TRIM(BR22)=\"\", \"\", IF(VLOOKUP(BR22,'Footnotes list'!$D$9:$E$58,2,FALSE)=0,\"\",VLOOKUP(BR22,'Footnotes list'!$D$9:$E$58,2,FALSE) ) )","v":""},null,null,null,null,{"$f":"IF(TRIM(BW22)=\"\", \"\", IF(VLOOKUP(BW22,'Footnotes list'!$D$9:$E$58,2,FALSE)=0,\"\",VLOOKUP(BW22,'Footnotes list'!$D$9:$E$58,2,FALSE) ) )","v":""},null,null,null,null,{"$f":"IF(TRIM(CB22)=\"\", \"\", IF(VLOOKUP(CB22,'Footnotes list'!$D$9:$E$58,2,FALSE)=0,\"\",VLOOKUP(CB22,'Footnotes list'!$D$9:$E$58,2,FALSE) ) )","v":""},null,null,null,null,{"$f":"IF(TRIM(CG22)=\"\", \"\", IF(VLOOKUP(CG22,'Footnotes list'!$D$9:$E$58,2,FALSE)=0,\"\",VLOOKUP(CG22,'Footnotes list'!$D$9:$E$58,2,FALSE) ) )","v":""},null,null,null,null,{"$f":"IF(TRIM(CL22)=\"\", \"\", IF(VLOOKUP(CL22,'Footnotes list'!$D$9:$E$58,2,FALSE)=0,\"\",VLOOKUP(CL22,'Footnotes list'!$D$9:$E$58,2,FALSE) ) )","v":""},null,null,null,null,{"$f":"IF(TRIM(CQ22)=\"\", \"\", IF(VLOOKUP(CQ22,'Footnotes list'!$D$9:$E$58,2,FALSE)=0,\"\",VLOOKUP(CQ22,'Footnotes list'!$D$9:$E$58,2,FALSE) ) )","v":""},null,null,null,null,{"$f":"IF(TRIM(CV22)=\"\", \"\", IF(VLOOKUP(CV22,'Footnotes list'!$D$9:$E$58,2,FALSE)=0,\"\",VLOOKUP(CV22,'Footnotes list'!$D$9:$E$58,2,FALSE) ) )","v":""},null,null,null,null,{"$f":"IF(TRIM(DA22)=\"\", \"\", IF(VLOOKUP(DA22,'Footnotes list'!$D$9:$E$58,2,FALSE)=0,\"\",VLOOKUP(DA22,'Footnotes list'!$D$9:$E$58,2,FALSE) ) )","v":""},null,null,null,null,{"$f":"IF(TRIM(DF22)=\"\", \"\", IF(VLOOKUP(DF22,'Footnotes list'!$D$9:$E$58,2,FALSE)=0,\"\",VLOOKUP(DF22,'Footnotes list'!$D$9:$E$58,2,FALSE) ) )","v":""},null,null,null,null,{"$f":"IF(TRIM(DK22)=\"\", \"\", IF(VLOOKUP(DK22,'Footnotes list'!$D$9:$E$58,2,FALSE)=0,\"\",VLOOKUP(DK22,'Footnotes list'!$D$9:$E$58,2,FALSE) ) )","v":""},null,null,null,null,{"$f":"IF(TRIM(DP22)=\"\", \"\", IF(VLOOKUP(DP22,'Footnotes list'!$D$9:$E$58,2,FALSE)=0,\"\",VLOOKUP(DP22,'Footnotes list'!$D$9:$E$58,2,FALSE) ) )","v":""},null,null,null,null,{"$f":"IF(TRIM(DU22)=\"\", \"\", IF(VLOOKUP(DU22,'Footnotes list'!$D$9:$E$58,2,FALSE)=0,\"\",VLOOKUP(DU22,'Footnotes list'!$D$9:$E$58,2,FALSE) ) )","v":""},null,null,null,null,{"$f":"IF(TRIM(DZ22)=\"\", \"\", IF(VLOOKUP(DZ22,'Footnotes list'!$D$9:$E$58,2,FALSE)=0,\"\",VLOOKUP(DZ22,'Footnotes list'!$D$9:$E$58,2,FALSE) ) )","v":""},null,null,null,null,{"$f":"IF(TRIM(EE22)=\"\", \"\", IF(VLOOKUP(EE22,'Footnotes list'!$D$9:$E$58,2,FALSE)=0,\"\",VLOOKUP(EE22,'Footnotes list'!$D$9:$E$58,2,FALSE) ) )","v":""},null,null,null,null,{"$f":"IF(TRIM(EJ22)=\"\", \"\", IF(VLOOKUP(EJ22,'Footnotes list'!$D$9:$E$58,2,FALSE)=0,\"\",VLOOKUP(EJ22,'Footnotes list'!$D$9:$E$58,2,FALSE) ) )","v":""},null,null,null,null,{"$f":"IF(TRIM(EO22)=\"\", \"\", IF(VLOOKUP(EO22,'Footnotes list'!$D$9:$E$58,2,FALSE)=0,\"\",VLOOKUP(EO22,'Footnotes list'!$D$9:$E$58,2,FALSE) ) )","v":""},null,null,null,null,{"$f":"IF(TRIM(ET22)=\"\", \"\", IF(VLOOKUP(ET22,'Footnotes list'!$D$9:$E$58,2,FALSE)=0,\"\",VLOOKUP(ET22,'Footnotes list'!$D$9:$E$58,2,FALSE) ) )","v":""},null,null,null,null,{"$f":"IF(TRIM(EY22)=\"\", \"\", IF(VLOOKUP(EY22,'Footnotes list'!$D$9:$E$58,2,FALSE)=0,\"\",VLOOKUP(EY22,'Footnotes list'!$D$9:$E$58,2,FALSE) ) )","v":""}]
[null,null,"B","ANC","ancillary activities",null,null,null,null,null,{"$f":"IF(TRIM(J23)=\"\", \"\", IF(VLOOKUP(J23,'Footnotes list'!$D$9:$E$58,2,FALSE)=0,\"\",VLOOKUP(J23,'Footnotes list'!$D$9:$E$58,2,FALSE) ) )","v":""},null,null,null,null,{"$f":"IF(TRIM(O23)=\"\", \"\", IF(VLOOKUP(O23,'Footnotes list'!$D$9:$E$58,2,FALSE)=0,\"\",VLOOKUP(O23,'Footnotes list'!$D$9:$E$58,2,FALSE) ) )","v":""},null,null,null,null,{"$f":"IF(TRIM(T23)=\"\", \"\", IF(VLOOKUP(T23,'Footnotes list'!$D$9:$E$58,2,FALSE)=0,\"\",VLOOKUP(T23,'Footnotes list'!$D$9:$E$58,2,FALSE) ) )","v":""},null,null,null,null,{"$f":"IF(TRIM(Y23)=\"\", \"\", IF(VLOOKUP(Y23,'Footnotes list'!$D$9:$E$58,2,FALSE)=0,\"\",VLOOKUP(Y23,'Footnotes list'!$D$9:$E$58,2,FALSE) ) )","v":""},null,null,null,null,{"$f":"IF(TRIM(AD23)=\"\", \"\", IF(VLOOKUP(AD23,'Footnotes list'!$D$9:$E$58,2,FALSE)=0,\"\",VLOOKUP(AD23,'Footnotes list'!$D$9:$E$58,2,FALSE) ) )","v":""},null,null,null,null,{"$f":"IF(TRIM(AI23)=\"\", \"\", IF(VLOOKUP(AI23,'Footnotes list'!$D$9:$E$58,2,FALSE)=0,\"\",VLOOKUP(AI23,'Footnotes list'!$D$9:$E$58,2,FALSE) ) )","v":""},null,null,null,null,{"$f":"IF(TRIM(AN23)=\"\", \"\", IF(VLOOKUP(AN23,'Footnotes list'!$D$9:$E$58,2,FALSE)=0,\"\",VLOOKUP(AN23,'Footnotes list'!$D$9:$E$58,2,FALSE) ) )","v":""},null,null,null,null,{"$f":"IF(TRIM(AS23)=\"\", \"\", IF(VLOOKUP(AS23,'Footnotes list'!$D$9:$E$58,2,FALSE)=0,\"\",VLOOKUP(AS23,'Footnotes list'!$D$9:$E$58,2,FALSE) ) )","v":""},null,null,null,null,{"$f":"IF(TRIM(AX23)=\"\", \"\", IF(VLOOKUP(AX23,'Footnotes list'!$D$9:$E$58,2,FALSE)=0,\"\",VLOOKUP(AX23,'Footnotes list'!$D$9:$E$58,2,FALSE) ) )","v":""},null,null,null,null,{"$f":"IF(TRIM(BC23)=\"\", \"\", IF(VLOOKUP(BC23,'Footnotes list'!$D$9:$E$58,2,FALSE)=0,\"\",VLOOKUP(BC23,'Footnotes list'!$D$9:$E$58,2,FALSE) ) )","v":""},null,null,null,null,{"$f":"IF(TRIM(BH23)=\"\", \"\", IF(VLOOKUP(BH23,'Footnotes list'!$D$9:$E$58,2,FALSE)=0,\"\",VLOOKUP(BH23,'Footnotes list'!$D$9:$E$58,2,FALSE) ) )","v":""},null,null,null,null,{"$f":"IF(TRIM(BM23)=\"\", \"\", IF(VLOOKUP(BM23,'Footnotes list'!$D$9:$E$58,2,FALSE)=0,\"\",VLOOKUP(BM23,'Footnotes list'!$D$9:$E$58,2,FALSE) ) )","v":""},null,null,null,null,{"$f":"IF(TRIM(BR23)=\"\", \"\", IF(VLOOKUP(BR23,'Footnotes list'!$D$9:$E$58,2,FALSE)=0,\"\",VLOOKUP(BR23,'Footnotes list'!$D$9:$E$58,2,FALSE) ) )","v":""},null,null,null,null,{"$f":"IF(TRIM(BW23)=\"\", \"\", IF(VLOOKUP(BW23,'Footnotes list'!$D$9:$E$58,2,FALSE)=0,\"\",VLOOKUP(BW23,'Footnotes list'!$D$9:$E$58,2,FALSE) ) )","v":""},null,null,null,null,{"$f":"IF(TRIM(CB23)=\"\", \"\", IF(VLOOKUP(CB23,'Footnotes list'!$D$9:$E$58,2,FALSE)=0,\"\",VLOOKUP(CB23,'Footnotes list'!$D$9:$E$58,2,FALSE) ) )","v":""},null,null,null,null,{"$f":"IF(TRIM(CG23)=\"\", \"\", IF(VLOOKUP(CG23,'Footnotes list'!$D$9:$E$58,2,FALSE)=0,\"\",VLOOKUP(CG23,'Footnotes list'!$D$9:$E$58,2,FALSE) ) )","v":""},null,null,null,null,{"$f":"IF(TRIM(CL23)=\"\", \"\", IF(VLOOKUP(CL23,'Footnotes list'!$D$9:$E$58,2,FALSE)=0,\"\",VLOOKUP(CL23,'Footnotes list'!$D$9:$E$58,2,FALSE) ) )","v":""},null,null,null,null,{"$f":"IF(TRIM(CQ23)=\"\", \"\", IF(VLOOKUP(CQ23,'Footnotes list'!$D$9:$E$58,2,FALSE)=0,\"\",VLOOKUP(CQ23,'Footnotes list'!$D$9:$E$58,2,FALSE) ) )","v":""},null,null,null,null,{"$f":"IF(TRIM(CV23)=\"\", \"\", IF(VLOOKUP(CV23,'Footnotes list'!$D$9:$E$58,2,FALSE)=0,\"\",VLOOKUP(CV23,'Footnotes list'!$D$9:$E$58,2,FALSE) ) )","v":""},null,null,null,null,{"$f":"IF(TRIM(DA23)=\"\", \"\", IF(VLOOKUP(DA23,'Footnotes list'!$D$9:$E$58,2,FALSE)=0,\"\",VLOOKUP(DA23,'Footnotes list'!$D$9:$E$58,2,FALSE) ) )","v":""},null,null,null,null,{"$f":"IF(TRIM(DF23)=\"\", \"\", IF(VLOOKUP(DF23,'Footnotes list'!$D$9:$E$58,2,FALSE)=0,\"\",VLOOKUP(DF23,'Footnotes list'!$D$9:$E$58,2,FALSE) ) )","v":""},null,null,null,null,{"$f":"IF(TRIM(DK23)=\"\", \"\", IF(VLOOKUP(DK23,'Footnotes list'!$D$9:$E$58,2,FALSE)=0,\"\",VLOOKUP(DK23,'Footnotes list'!$D$9:$E$58,2,FALSE) ) )","v":""},null,null,null,null,{"$f":"IF(TRIM(DP23)=\"\", \"\", IF(VLOOKUP(DP23,'Footnotes list'!$D$9:$E$58,2,FALSE)=0,\"\",VLOOKUP(DP23,'Footnotes list'!$D$9:$E$58,2,FALSE) ) )","v":""},null,null,null,null,{"$f":"IF(TRIM(DU23)=\"\", \"\", IF(VLOOKUP(DU23,'Footnotes list'!$D$9:$E$58,2,FALSE)=0,\"\",VLOOKUP(DU23,'Footnotes list'!$D$9:$E$58,2,FALSE) ) )","v":""},null,null,null,null,{"$f":"IF(TRIM(DZ23)=\"\", \"\", IF(VLOOKUP(DZ23,'Footnotes list'!$D$9:$E$58,2,FALSE)=0,\"\",VLOOKUP(DZ23,'Footnotes list'!$D$9:$E$58,2,FALSE) ) )","v":""},null,null,null,null,{"$f":"IF(TRIM(EE23)=\"\", \"\", IF(VLOOKUP(EE23,'Footnotes list'!$D$9:$E$58,2,FALSE)=0,\"\",VLOOKUP(EE23,'Footnotes list'!$D$9:$E$58,2,FALSE) ) )","v":""},null,null,null,null,{"$f":"IF(TRIM(EJ23)=\"\", \"\", IF(VLOOKUP(EJ23,'Footnotes list'!$D$9:$E$58,2,FALSE)=0,\"\",VLOOKUP(EJ23,'Footnotes list'!$D$9:$E$58,2,FALSE) ) )","v":""},null,null,null,null,{"$f":"IF(TRIM(EO23)=\"\", \"\", IF(VLOOKUP(EO23,'Footnotes list'!$D$9:$E$58,2,FALSE)=0,\"\",VLOOKUP(EO23,'Footnotes list'!$D$9:$E$58,2,FALSE) ) )","v":""},null,null,null,null,{"$f":"IF(TRIM(ET23)=\"\", \"\", IF(VLOOKUP(ET23,'Footnotes list'!$D$9:$E$58,2,FALSE)=0,\"\",VLOOKUP(ET23,'Footnotes list'!$D$9:$E$58,2,FALSE) ) )","v":""},null,null,null,null,{"$f":"IF(TRIM(EY23)=\"\", \"\", IF(VLOOKUP(EY23,'Footnotes list'!$D$9:$E$58,2,FALSE)=0,\"\",VLOOKUP(EY23,'Footnotes list'!$D$9:$E$58,2,FALSE) ) )","v":""}]
[null,null,"B","NMKT","non-market activities",null,null,null,null,null,{"$f":"IF(TRIM(J24)=\"\", \"\", IF(VLOOKUP(J24,'Footnotes list'!$D$9:$E$58,2,FALSE)=0,\"\",VLOOKUP(J24,'Footnotes list'!$D$9:$E$58,2,FALSE) ) )","v":""},null,null,null,null,{"$f":"IF(TRIM(O24)=\"\", \"\", IF(VLOOKUP(O24,'Footnotes list'!$D$9:$E$58,2,FALSE)=0,\"\",VLOOKUP(O24,'Footnotes list'!$D$9:$E$58,2,FALSE) ) )","v":""},null,null,null,null,{"$f":"IF(TRIM(T24)=\"\", \"\", IF(VLOOKUP(T24,'Footnotes list'!$D$9:$E$58,2,FALSE)=0,\"\",VLOOKUP(T24,'Footnotes list'!$D$9:$E$58,2,FALSE) ) )","v":""},null,null,null,null,{"$f":"IF(TRIM(Y24)=\"\", \"\", IF(VLOOKUP(Y24,'Footnotes list'!$D$9:$E$58,2,FALSE)=0,\"\",VLOOKUP(Y24,'Footnotes list'!$D$9:$E$58,2,FALSE) ) )","v":""},null,null,null,null,{"$f":"IF(TRIM(AD24)=\"\", \"\", IF(VLOOKUP(AD24,'Footnotes list'!$D$9:$E$58,2,FALSE)=0,\"\",VLOOKUP(AD24,'Footnotes list'!$D$9:$E$58,2,FALSE) ) )","v":""},null,null,null,null,{"$f":"IF(TRIM(AI24)=\"\", \"\", IF(VLOOKUP(AI24,'Footnotes list'!$D$9:$E$58,2,FALSE)=0,\"\",VLOOKUP(AI24,'Footnotes list'!$D$9:$E$58,2,FALSE) ) )","v":""},null,null,null,null,{"$f":"IF(TRIM(AN24)=\"\", \"\", IF(VLOOKUP(AN24,'Footnotes list'!$D$9:$E$58,2,FALSE)=0,\"\",VLOOKUP(AN24,'Footnotes list'!$D$9:$E$58,2,FALSE) ) )","v":""},null,null,null,null,{"$f":"IF(TRIM(AS24)=\"\", \"\", IF(VLOOKUP(AS24,'Footnotes list'!$D$9:$E$58,2,FALSE)=0,\"\",VLOOKUP(AS24,'Footnotes list'!$D$9:$E$58,2,FALSE) ) )","v":""},null,null,null,null,{"$f":"IF(TRIM(AX24)=\"\", \"\", IF(VLOOKUP(AX24,'Footnotes list'!$D$9:$E$58,2,FALSE)=0,\"\",VLOOKUP(AX24,'Footnotes list'!$D$9:$E$58,2,FALSE) ) )","v":""},null,null,null,null,{"$f":"IF(TRIM(BC24)=\"\", \"\", IF(VLOOKUP(BC24,'Footnotes list'!$D$9:$E$58,2,FALSE)=0,\"\",VLOOKUP(BC24,'Footnotes list'!$D$9:$E$58,2,FALSE) ) )","v":""},null,null,null,null,{"$f":"IF(TRIM(BH24)=\"\", \"\", IF(VLOOKUP(BH24,'Footnotes list'!$D$9:$E$58,2,FALSE)=0,\"\",VLOOKUP(BH24,'Footnotes list'!$D$9:$E$58,2,FALSE) ) )","v":""},null,null,null,null,{"$f":"IF(TRIM(BM24)=\"\", \"\", IF(VLOOKUP(BM24,'Footnotes list'!$D$9:$E$58,2,FALSE)=0,\"\",VLOOKUP(BM24,'Footnotes list'!$D$9:$E$58,2,FALSE) ) )","v":""},null,null,null,null,{"$f":"IF(TRIM(BR24)=\"\", \"\", IF(VLOOKUP(BR24,'Footnotes list'!$D$9:$E$58,2,FALSE)=0,\"\",VLOOKUP(BR24,'Footnotes list'!$D$9:$E$58,2,FALSE) ) )","v":""},null,null,null,null,{"$f":"IF(TRIM(BW24)=\"\", \"\", IF(VLOOKUP(BW24,'Footnotes list'!$D$9:$E$58,2,FALSE)=0,\"\",VLOOKUP(BW24,'Footnotes list'!$D$9:$E$58,2,FALSE) ) )","v":""},null,null,null,null,{"$f":"IF(TRIM(CB24)=\"\", \"\", IF(VLOOKUP(CB24,'Footnotes list'!$D$9:$E$58,2,FALSE)=0,\"\",VLOOKUP(CB24,'Footnotes list'!$D$9:$E$58,2,FALSE) ) )","v":""},null,null,null,null,{"$f":"IF(TRIM(CG24)=\"\", \"\", IF(VLOOKUP(CG24,'Footnotes list'!$D$9:$E$58,2,FALSE)=0,\"\",VLOOKUP(CG24,'Footnotes list'!$D$9:$E$58,2,FALSE) ) )","v":""},null,null,null,null,{"$f":"IF(TRIM(CL24)=\"\", \"\", IF(VLOOKUP(CL24,'Footnotes list'!$D$9:$E$58,2,FALSE)=0,\"\",VLOOKUP(CL24,'Footnotes list'!$D$9:$E$58,2,FALSE) ) )","v":""},null,null,null,null,{"$f":"IF(TRIM(CQ24)=\"\", \"\", IF(VLOOKUP(CQ24,'Footnotes list'!$D$9:$E$58,2,FALSE)=0,\"\",VLOOKUP(CQ24,'Footnotes list'!$D$9:$E$58,2,FALSE) ) )","v":""},null,null,null,null,{"$f":"IF(TRIM(CV24)=\"\", \"\", IF(VLOOKUP(CV24,'Footnotes list'!$D$9:$E$58,2,FALSE)=0,\"\",VLOOKUP(CV24,'Footnotes list'!$D$9:$E$58,2,FALSE) ) )","v":""},null,null,null,null,{"$f":"IF(TRIM(DA24)=\"\", \"\", IF(VLOOKUP(DA24,'Footnotes list'!$D$9:$E$58,2,FALSE)=0,\"\",VLOOKUP(DA24,'Footnotes list'!$D$9:$E$58,2,FALSE) ) )","v":""},null,null,null,null,{"$f":"IF(TRIM(DF24)=\"\", \"\", IF(VLOOKUP(DF24,'Footnotes list'!$D$9:$E$58,2,FALSE)=0,\"\",VLOOKUP(DF24,'Footnotes list'!$D$9:$E$58,2,FALSE) ) )","v":""},null,null,null,null,{"$f":"IF(TRIM(DK24)=\"\", \"\", IF(VLOOKUP(DK24,'Footnotes list'!$D$9:$E$58,2,FALSE)=0,\"\",VLOOKUP(DK24,'Footnotes list'!$D$9:$E$58,2,FALSE) ) )","v":""},null,null,null,null,{"$f":"IF(TRIM(DP24)=\"\", \"\", IF(VLOOKUP(DP24,'Footnotes list'!$D$9:$E$58,2,FALSE)=0,\"\",VLOOKUP(DP24,'Footnotes list'!$D$9:$E$58,2,FALSE) ) )","v":""},null,null,null,null,{"$f":"IF(TRIM(DU24)=\"\", \"\", IF(VLOOKUP(DU24,'Footnotes list'!$D$9:$E$58,2,FALSE)=0,\"\",VLOOKUP(DU24,'Footnotes list'!$D$9:$E$58,2,FALSE) ) )","v":""},null,null,null,null,{"$f":"IF(TRIM(DZ24)=\"\", \"\", IF(VLOOKUP(DZ24,'Footnotes list'!$D$9:$E$58,2,FALSE)=0,\"\",VLOOKUP(DZ24,'Footnotes list'!$D$9:$E$58,2,FALSE) ) )","v":""},null,null,null,null,{"$f":"IF(TRIM(EE24)=\"\", \"\", IF(VLOOKUP(EE24,'Footnotes list'!$D$9:$E$58,2,FALSE)=0,\"\",VLOOKUP(EE24,'Footnotes list'!$D$9:$E$58,2,FALSE) ) )","v":""},null,null,null,null,{"$f":"IF(TRIM(EJ24)=\"\", \"\", IF(VLOOKUP(EJ24,'Footnotes list'!$D$9:$E$58,2,FALSE)=0,\"\",VLOOKUP(EJ24,'Footnotes list'!$D$9:$E$58,2,FALSE) ) )","v":""},null,null,null,null,{"$f":"IF(TRIM(EO24)=\"\", \"\", IF(VLOOKUP(EO24,'Footnotes list'!$D$9:$E$58,2,FALSE)=0,\"\",VLOOKUP(EO24,'Footnotes list'!$D$9:$E$58,2,FALSE) ) )","v":""},null,null,null,null,{"$f":"IF(TRIM(ET24)=\"\", \"\", IF(VLOOKUP(ET24,'Footnotes list'!$D$9:$E$58,2,FALSE)=0,\"\",VLOOKUP(ET24,'Footnotes list'!$D$9:$E$58,2,FALSE) ) )","v":""},null,null,null,null,{"$f":"IF(TRIM(EY24)=\"\", \"\", IF(VLOOKUP(EY24,'Footnotes list'!$D$9:$E$58,2,FALSE)=0,\"\",VLOOKUP(EY24,'Footnotes list'!$D$9:$E$58,2,FALSE) ) )","v":""}]
[null,null,"B","OWN_USE","activities for own final use",null,null,null,null,null,{"$f":"IF(TRIM(J25)=\"\", \"\", IF(VLOOKUP(J25,'Footnotes list'!$D$9:$E$58,2,FALSE)=0,\"\",VLOOKUP(J25,'Footnotes list'!$D$9:$E$58,2,FALSE) ) )","v":""},null,null,null,null,{"$f":"IF(TRIM(O25)=\"\", \"\", IF(VLOOKUP(O25,'Footnotes list'!$D$9:$E$58,2,FALSE)=0,\"\",VLOOKUP(O25,'Footnotes list'!$D$9:$E$58,2,FALSE) ) )","v":""},null,null,null,null,{"$f":"IF(TRIM(T25)=\"\", \"\", IF(VLOOKUP(T25,'Footnotes list'!$D$9:$E$58,2,FALSE)=0,\"\",VLOOKUP(T25,'Footnotes list'!$D$9:$E$58,2,FALSE) ) )","v":""},null,null,null,null,{"$f":"IF(TRIM(Y25)=\"\", \"\", IF(VLOOKUP(Y25,'Footnotes list'!$D$9:$E$58,2,FALSE)=0,\"\",VLOOKUP(Y25,'Footnotes list'!$D$9:$E$58,2,FALSE) ) )","v":""},null,null,null,null,{"$f":"IF(TRIM(AD25)=\"\", \"\", IF(VLOOKUP(AD25,'Footnotes list'!$D$9:$E$58,2,FALSE)=0,\"\",VLOOKUP(AD25,'Footnotes list'!$D$9:$E$58,2,FALSE) ) )","v":""},null,null,null,null,{"$f":"IF(TRIM(AI25)=\"\", \"\", IF(VLOOKUP(AI25,'Footnotes list'!$D$9:$E$58,2,FALSE)=0,\"\",VLOOKUP(AI25,'Footnotes list'!$D$9:$E$58,2,FALSE) ) )","v":""},null,null,null,null,{"$f":"IF(TRIM(AN25)=\"\", \"\", IF(VLOOKUP(AN25,'Footnotes list'!$D$9:$E$58,2,FALSE)=0,\"\",VLOOKUP(AN25,'Footnotes list'!$D$9:$E$58,2,FALSE) ) )","v":""},null,null,null,null,{"$f":"IF(TRIM(AS25)=\"\", \"\", IF(VLOOKUP(AS25,'Footnotes list'!$D$9:$E$58,2,FALSE)=0,\"\",VLOOKUP(AS25,'Footnotes list'!$D$9:$E$58,2,FALSE) ) )","v":""},null,null,null,null,{"$f":"IF(TRIM(AX25)=\"\", \"\", IF(VLOOKUP(AX25,'Footnotes list'!$D$9:$E$58,2,FALSE)=0,\"\",VLOOKUP(AX25,'Footnotes list'!$D$9:$E$58,2,FALSE) ) )","v":""},null,null,null,null,{"$f":"IF(TRIM(BC25)=\"\", \"\", IF(VLOOKUP(BC25,'Footnotes list'!$D$9:$E$58,2,FALSE)=0,\"\",VLOOKUP(BC25,'Footnotes list'!$D$9:$E$58,2,FALSE) ) )","v":""},null,null,null,null,{"$f":"IF(TRIM(BH25)=\"\", \"\", IF(VLOOKUP(BH25,'Footnotes list'!$D$9:$E$58,2,FALSE)=0,\"\",VLOOKUP(BH25,'Footnotes list'!$D$9:$E$58,2,FALSE) ) )","v":""},null,null,null,null,{"$f":"IF(TRIM(BM25)=\"\", \"\", IF(VLOOKUP(BM25,'Footnotes list'!$D$9:$E$58,2,FALSE)=0,\"\",VLOOKUP(BM25,'Footnotes list'!$D$9:$E$58,2,FALSE) ) )","v":""},null,null,null,null,{"$f":"IF(TRIM(BR25)=\"\", \"\", IF(VLOOKUP(BR25,'Footnotes list'!$D$9:$E$58,2,FALSE)=0,\"\",VLOOKUP(BR25,'Footnotes list'!$D$9:$E$58,2,FALSE) ) )","v":""},null,null,null,null,{"$f":"IF(TRIM(BW25)=\"\", \"\", IF(VLOOKUP(BW25,'Footnotes list'!$D$9:$E$58,2,FALSE)=0,\"\",VLOOKUP(BW25,'Footnotes list'!$D$9:$E$58,2,FALSE) ) )","v":""},null,null,null,null,{"$f":"IF(TRIM(CB25)=\"\", \"\", IF(VLOOKUP(CB25,'Footnotes list'!$D$9:$E$58,2,FALSE)=0,\"\",VLOOKUP(CB25,'Footnotes list'!$D$9:$E$58,2,FALSE) ) )","v":""},null,null,null,null,{"$f":"IF(TRIM(CG25)=\"\", \"\", IF(VLOOKUP(CG25,'Footnotes list'!$D$9:$E$58,2,FALSE)=0,\"\",VLOOKUP(CG25,'Footnotes list'!$D$9:$E$58,2,FALSE) ) )","v":""},null,null,null,null,{"$f":"IF(TRIM(CL25)=\"\", \"\", IF(VLOOKUP(CL25,'Footnotes list'!$D$9:$E$58,2,FALSE)=0,\"\",VLOOKUP(CL25,'Footnotes list'!$D$9:$E$58,2,FALSE) ) )","v":""},null,null,null,null,{"$f":"IF(TRIM(CQ25)=\"\", \"\", IF(VLOOKUP(CQ25,'Footnotes list'!$D$9:$E$58,2,FALSE)=0,\"\",VLOOKUP(CQ25,'Footnotes list'!$D$9:$E$58,2,FALSE) ) )","v":""},null,null,null,null,{"$f":"IF(TRIM(CV25)=\"\", \"\", IF(VLOOKUP(CV25,'Footnotes list'!$D$9:$E$58,2,FALSE)=0,\"\",VLOOKUP(CV25,'Footnotes list'!$D$9:$E$58,2,FALSE) ) )","v":""},null,null,null,null,{"$f":"IF(TRIM(DA25)=\"\", \"\", IF(VLOOKUP(DA25,'Footnotes list'!$D$9:$E$58,2,FALSE)=0,\"\",VLOOKUP(DA25,'Footnotes list'!$D$9:$E$58,2,FALSE) ) )","v":""},null,null,null,null,{"$f":"IF(TRIM(DF25)=\"\", \"\", IF(VLOOKUP(DF25,'Footnotes list'!$D$9:$E$58,2,FALSE)=0,\"\",VLOOKUP(DF25,'Footnotes list'!$D$9:$E$58,2,FALSE) ) )","v":""},null,null,null,null,{"$f":"IF(TRIM(DK25)=\"\", \"\", IF(VLOOKUP(DK25,'Footnotes list'!$D$9:$E$58,2,FALSE)=0,\"\",VLOOKUP(DK25,'Footnotes list'!$D$9:$E$58,2,FALSE) ) )","v":""},null,null,null,null,{"$f":"IF(TRIM(DP25)=\"\", \"\", IF(VLOOKUP(DP25,'Footnotes list'!$D$9:$E$58,2,FALSE)=0,\"\",VLOOKUP(DP25,'Footnotes list'!$D$9:$E$58,2,FALSE) ) )","v":""},null,null,null,null,{"$f":"IF(TRIM(DU25)=\"\", \"\", IF(VLOOKUP(DU25,'Footnotes list'!$D$9:$E$58,2,FALSE)=0,\"\",VLOOKUP(DU25,'Footnotes list'!$D$9:$E$58,2,FALSE) ) )","v":""},null,null,null,null,{"$f":"IF(TRIM(DZ25)=\"\", \"\", IF(VLOOKUP(DZ25,'Footnotes list'!$D$9:$E$58,2,FALSE)=0,\"\",VLOOKUP(DZ25,'Footnotes list'!$D$9:$E$58,2,FALSE) ) )","v":""},null,null,null,null,{"$f":"IF(TRIM(EE25)=\"\", \"\", IF(VLOOKUP(EE25,'Footnotes list'!$D$9:$E$58,2,FALSE)=0,\"\",VLOOKUP(EE25,'Footnotes list'!$D$9:$E$58,2,FALSE) ) )","v":""},null,null,null,null,{"$f":"IF(TRIM(EJ25)=\"\", \"\", IF(VLOOKUP(EJ25,'Footnotes list'!$D$9:$E$58,2,FALSE)=0,\"\",VLOOKUP(EJ25,'Footnotes list'!$D$9:$E$58,2,FALSE) ) )","v":""},null,null,null,null,{"$f":"IF(TRIM(EO25)=\"\", \"\", IF(VLOOKUP(EO25,'Footnotes list'!$D$9:$E$58,2,FALSE)=0,\"\",VLOOKUP(EO25,'Footnotes list'!$D$9:$E$58,2,FALSE) ) )","v":""},null,null,null,null,{"$f":"IF(TRIM(ET25)=\"\", \"\", IF(VLOOKUP(ET25,'Footnotes list'!$D$9:$E$58,2,FALSE)=0,\"\",VLOOKUP(ET25,'Footnotes list'!$D$9:$E$58,2,FALSE) ) )","v":""},null,null,null,null,{"$f":"IF(TRIM(EY25)=\"\", \"\", IF(VLOOKUP(EY25,'Footnotes list'!$D$9:$E$58,2,FALSE)=0,\"\",VLOOKUP(EY25,'Footnotes list'!$D$9:$E$58,2,FALSE) ) )","v":""}]
[null,null,"B","MKT","market activities, including:",null,null,null,null,null,{"$f":"IF(TRIM(J26)=\"\", \"\", IF(VLOOKUP(J26,'Footnotes list'!$D$9:$E$58,2,FALSE)=0,\"\",VLOOKUP(J26,'Footnotes list'!$D$9:$E$58,2,FALSE) ) )","v":""},null,null,null,null,{"$f":"IF(TRIM(O26)=\"\", \"\", IF(VLOOKUP(O26,'Footnotes list'!$D$9:$E$58,2,FALSE)=0,\"\",VLOOKUP(O26,'Footnotes list'!$D$9:$E$58,2,FALSE) ) )","v":""},null,null,null,null,{"$f":"IF(TRIM(T26)=\"\", \"\", IF(VLOOKUP(T26,'Footnotes list'!$D$9:$E$58,2,FALSE)=0,\"\",VLOOKUP(T26,'Footnotes list'!$D$9:$E$58,2,FALSE) ) )","v":""},null,null,null,null,{"$f":"IF(TRIM(Y26)=\"\", \"\", IF(VLOOKUP(Y26,'Footnotes list'!$D$9:$E$58,2,FALSE)=0,\"\",VLOOKUP(Y26,'Footnotes list'!$D$9:$E$58,2,FALSE) ) )","v":""},null,null,null,null,{"$f":"IF(TRIM(AD26)=\"\", \"\", IF(VLOOKUP(AD26,'Footnotes list'!$D$9:$E$58,2,FALSE)=0,\"\",VLOOKUP(AD26,'Footnotes list'!$D$9:$E$58,2,FALSE) ) )","v":""},null,null,null,null,{"$f":"IF(TRIM(AI26)=\"\", \"\", IF(VLOOKUP(AI26,'Footnotes list'!$D$9:$E$58,2,FALSE)=0,\"\",VLOOKUP(AI26,'Footnotes list'!$D$9:$E$58,2,FALSE) ) )","v":""},null,null,null,null,{"$f":"IF(TRIM(AN26)=\"\", \"\", IF(VLOOKUP(AN26,'Footnotes list'!$D$9:$E$58,2,FALSE)=0,\"\",VLOOKUP(AN26,'Footnotes list'!$D$9:$E$58,2,FALSE) ) )","v":""},null,null,null,null,{"$f":"IF(TRIM(AS26)=\"\", \"\", IF(VLOOKUP(AS26,'Footnotes list'!$D$9:$E$58,2,FALSE)=0,\"\",VLOOKUP(AS26,'Footnotes list'!$D$9:$E$58,2,FALSE) ) )","v":""},null,null,null,null,{"$f":"IF(TRIM(AX26)=\"\", \"\", IF(VLOOKUP(AX26,'Footnotes list'!$D$9:$E$58,2,FALSE)=0,\"\",VLOOKUP(AX26,'Footnotes list'!$D$9:$E$58,2,FALSE) ) )","v":""},null,null,null,null,{"$f":"IF(TRIM(BC26)=\"\", \"\", IF(VLOOKUP(BC26,'Footnotes list'!$D$9:$E$58,2,FALSE)=0,\"\",VLOOKUP(BC26,'Footnotes list'!$D$9:$E$58,2,FALSE) ) )","v":""},null,null,null,null,{"$f":"IF(TRIM(BH26)=\"\", \"\", IF(VLOOKUP(BH26,'Footnotes list'!$D$9:$E$58,2,FALSE)=0,\"\",VLOOKUP(BH26,'Footnotes list'!$D$9:$E$58,2,FALSE) ) )","v":""},null,null,null,null,{"$f":"IF(TRIM(BM26)=\"\", \"\", IF(VLOOKUP(BM26,'Footnotes list'!$D$9:$E$58,2,FALSE)=0,\"\",VLOOKUP(BM26,'Footnotes list'!$D$9:$E$58,2,FALSE) ) )","v":""},null,null,null,null,{"$f":"IF(TRIM(BR26)=\"\", \"\", IF(VLOOKUP(BR26,'Footnotes list'!$D$9:$E$58,2,FALSE)=0,\"\",VLOOKUP(BR26,'Footnotes list'!$D$9:$E$58,2,FALSE) ) )","v":""},null,null,null,null,{"$f":"IF(TRIM(BW26)=\"\", \"\", IF(VLOOKUP(BW26,'Footnotes list'!$D$9:$E$58,2,FALSE)=0,\"\",VLOOKUP(BW26,'Footnotes list'!$D$9:$E$58,2,FALSE) ) )","v":""},null,null,null,null,{"$f":"IF(TRIM(CB26)=\"\", \"\", IF(VLOOKUP(CB26,'Footnotes list'!$D$9:$E$58,2,FALSE)=0,\"\",VLOOKUP(CB26,'Footnotes list'!$D$9:$E$58,2,FALSE) ) )","v":""},null,null,null,null,{"$f":"IF(TRIM(CG26)=\"\", \"\", IF(VLOOKUP(CG26,'Footnotes list'!$D$9:$E$58,2,FALSE)=0,\"\",VLOOKUP(CG26,'Footnotes list'!$D$9:$E$58,2,FALSE) ) )","v":""},null,null,null,null,{"$f":"IF(TRIM(CL26)=\"\", \"\", IF(VLOOKUP(CL26,'Footnotes list'!$D$9:$E$58,2,FALSE)=0,\"\",VLOOKUP(CL26,'Footnotes list'!$D$9:$E$58,2,FALSE) ) )","v":""},null,null,null,null,{"$f":"IF(TRIM(CQ26)=\"\", \"\", IF(VLOOKUP(CQ26,'Footnotes list'!$D$9:$E$58,2,FALSE)=0,\"\",VLOOKUP(CQ26,'Footnotes list'!$D$9:$E$58,2,FALSE) ) )","v":""},null,null,null,null,{"$f":"IF(TRIM(CV26)=\"\", \"\", IF(VLOOKUP(CV26,'Footnotes list'!$D$9:$E$58,2,FALSE)=0,\"\",VLOOKUP(CV26,'Footnotes list'!$D$9:$E$58,2,FALSE) ) )","v":""},null,null,null,null,{"$f":"IF(TRIM(DA26)=\"\", \"\", IF(VLOOKUP(DA26,'Footnotes list'!$D$9:$E$58,2,FALSE)=0,\"\",VLOOKUP(DA26,'Footnotes list'!$D$9:$E$58,2,FALSE) ) )","v":""},null,null,null,null,{"$f":"IF(TRIM(DF26)=\"\", \"\", IF(VLOOKUP(DF26,'Footnotes list'!$D$9:$E$58,2,FALSE)=0,\"\",VLOOKUP(DF26,'Footnotes list'!$D$9:$E$58,2,FALSE) ) )","v":""},null,null,null,null,{"$f":"IF(TRIM(DK26)=\"\", \"\", IF(VLOOKUP(DK26,'Footnotes list'!$D$9:$E$58,2,FALSE)=0,\"\",VLOOKUP(DK26,'Footnotes list'!$D$9:$E$58,2,FALSE) ) )","v":""},null,null,null,null,{"$f":"IF(TRIM(DP26)=\"\", \"\", IF(VLOOKUP(DP26,'Footnotes list'!$D$9:$E$58,2,FALSE)=0,\"\",VLOOKUP(DP26,'Footnotes list'!$D$9:$E$58,2,FALSE) ) )","v":""},null,null,null,null,{"$f":"IF(TRIM(DU26)=\"\", \"\", IF(VLOOKUP(DU26,'Footnotes list'!$D$9:$E$58,2,FALSE)=0,\"\",VLOOKUP(DU26,'Footnotes list'!$D$9:$E$58,2,FALSE) ) )","v":""},null,null,null,null,{"$f":"IF(TRIM(DZ26)=\"\", \"\", IF(VLOOKUP(DZ26,'Footnotes list'!$D$9:$E$58,2,FALSE)=0,\"\",VLOOKUP(DZ26,'Footnotes list'!$D$9:$E$58,2,FALSE) ) )","v":""},null,null,null,null,{"$f":"IF(TRIM(EE26)=\"\", \"\", IF(VLOOKUP(EE26,'Footnotes list'!$D$9:$E$58,2,FALSE)=0,\"\",VLOOKUP(EE26,'Footnotes list'!$D$9:$E$58,2,FALSE) ) )","v":""},null,null,null,null,{"$f":"IF(TRIM(EJ26)=\"\", \"\", IF(VLOOKUP(EJ26,'Footnotes list'!$D$9:$E$58,2,FALSE)=0,\"\",VLOOKUP(EJ26,'Footnotes list'!$D$9:$E$58,2,FALSE) ) )","v":""},null,null,null,null,{"$f":"IF(TRIM(EO26)=\"\", \"\", IF(VLOOKUP(EO26,'Footnotes list'!$D$9:$E$58,2,FALSE)=0,\"\",VLOOKUP(EO26,'Footnotes list'!$D$9:$E$58,2,FALSE) ) )","v":""},null,null,null,null,{"$f":"IF(TRIM(ET26)=\"\", \"\", IF(VLOOKUP(ET26,'Footnotes list'!$D$9:$E$58,2,FALSE)=0,\"\",VLOOKUP(ET26,'Footnotes list'!$D$9:$E$58,2,FALSE) ) )","v":""},null,null,null,null,{"$f":"IF(TRIM(EY26)=\"\", \"\", IF(VLOOKUP(EY26,'Footnotes list'!$D$9:$E$58,2,FALSE)=0,\"\",VLOOKUP(EY26,'Footnotes list'!$D$9:$E$58,2,FALSE) ) )","v":""}]
[null,null,"B","ES_CS","environmental specific services",null,null,null,null,null,{"$f":"IF(TRIM(J27)=\"\", \"\", IF(VLOOKUP(J27,'Footnotes list'!$D$9:$E$58,2,FALSE)=0,\"\",VLOOKUP(J27,'Footnotes list'!$D$9:$E$58,2,FALSE) ) )","v":""},null,null,null,null,{"$f":"IF(TRIM(O27)=\"\", \"\", IF(VLOOKUP(O27,'Footnotes list'!$D$9:$E$58,2,FALSE)=0,\"\",VLOOKUP(O27,'Footnotes list'!$D$9:$E$58,2,FALSE) ) )","v":""},null,null,null,null,{"$f":"IF(TRIM(T27)=\"\", \"\", IF(VLOOKUP(T27,'Footnotes list'!$D$9:$E$58,2,FALSE)=0,\"\",VLOOKUP(T27,'Footnotes list'!$D$9:$E$58,2,FALSE) ) )","v":""},null,null,null,null,{"$f":"IF(TRIM(Y27)=\"\", \"\", IF(VLOOKUP(Y27,'Footnotes list'!$D$9:$E$58,2,FALSE)=0,\"\",VLOOKUP(Y27,'Footnotes list'!$D$9:$E$58,2,FALSE) ) )","v":""},null,null,null,null,{"$f":"IF(TRIM(AD27)=\"\", \"\", IF(VLOOKUP(AD27,'Footnotes list'!$D$9:$E$58,2,FALSE)=0,\"\",VLOOKUP(AD27,'Footnotes list'!$D$9:$E$58,2,FALSE) ) )","v":""},null,null,null,null,{"$f":"IF(TRIM(AI27)=\"\", \"\", IF(VLOOKUP(AI27,'Footnotes list'!$D$9:$E$58,2,FALSE)=0,\"\",VLOOKUP(AI27,'Footnotes list'!$D$9:$E$58,2,FALSE) ) )","v":""},null,null,null,null,{"$f":"IF(TRIM(AN27)=\"\", \"\", IF(VLOOKUP(AN27,'Footnotes list'!$D$9:$E$58,2,FALSE)=0,\"\",VLOOKUP(AN27,'Footnotes list'!$D$9:$E$58,2,FALSE) ) )","v":""},null,null,null,null,{"$f":"IF(TRIM(AS27)=\"\", \"\", IF(VLOOKUP(AS27,'Footnotes list'!$D$9:$E$58,2,FALSE)=0,\"\",VLOOKUP(AS27,'Footnotes list'!$D$9:$E$58,2,FALSE) ) )","v":""},null,null,null,null,{"$f":"IF(TRIM(AX27)=\"\", \"\", IF(VLOOKUP(AX27,'Footnotes list'!$D$9:$E$58,2,FALSE)=0,\"\",VLOOKUP(AX27,'Footnotes list'!$D$9:$E$58,2,FALSE) ) )","v":""},null,null,null,null,{"$f":"IF(TRIM(BC27)=\"\", \"\", IF(VLOOKUP(BC27,'Footnotes list'!$D$9:$E$58,2,FALSE)=0,\"\",VLOOKUP(BC27,'Footnotes list'!$D$9:$E$58,2,FALSE) ) )","v":""},null,null,null,null,{"$f":"IF(TRIM(BH27)=\"\", \"\", IF(VLOOKUP(BH27,'Footnotes list'!$D$9:$E$58,2,FALSE)=0,\"\",VLOOKUP(BH27,'Footnotes list'!$D$9:$E$58,2,FALSE) ) )","v":""},null,null,null,null,{"$f":"IF(TRIM(BM27)=\"\", \"\", IF(VLOOKUP(BM27,'Footnotes list'!$D$9:$E$58,2,FALSE)=0,\"\",VLOOKUP(BM27,'Footnotes list'!$D$9:$E$58,2,FALSE) ) )","v":""},null,null,null,null,{"$f":"IF(TRIM(BR27)=\"\", \"\", IF(VLOOKUP(BR27,'Footnotes list'!$D$9:$E$58,2,FALSE)=0,\"\",VLOOKUP(BR27,'Footnotes list'!$D$9:$E$58,2,FALSE) ) )","v":""},null,null,null,null,{"$f":"IF(TRIM(BW27)=\"\", \"\", IF(VLOOKUP(BW27,'Footnotes list'!$D$9:$E$58,2,FALSE)=0,\"\",VLOOKUP(BW27,'Footnotes list'!$D$9:$E$58,2,FALSE) ) )","v":""},null,null,null,null,{"$f":"IF(TRIM(CB27)=\"\", \"\", IF(VLOOKUP(CB27,'Footnotes list'!$D$9:$E$58,2,FALSE)=0,\"\",VLOOKUP(CB27,'Footnotes list'!$D$9:$E$58,2,FALSE) ) )","v":""},null,null,null,null,{"$f":"IF(TRIM(CG27)=\"\", \"\", IF(VLOOKUP(CG27,'Footnotes list'!$D$9:$E$58,2,FALSE)=0,\"\",VLOOKUP(CG27,'Footnotes list'!$D$9:$E$58,2,FALSE) ) )","v":""},null,null,null,null,{"$f":"IF(TRIM(CL27)=\"\", \"\", IF(VLOOKUP(CL27,'Footnotes list'!$D$9:$E$58,2,FALSE)=0,\"\",VLOOKUP(CL27,'Footnotes list'!$D$9:$E$58,2,FALSE) ) )","v":""},null,null,null,null,{"$f":"IF(TRIM(CQ27)=\"\", \"\", IF(VLOOKUP(CQ27,'Footnotes list'!$D$9:$E$58,2,FALSE)=0,\"\",VLOOKUP(CQ27,'Footnotes list'!$D$9:$E$58,2,FALSE) ) )","v":""},null,null,null,null,{"$f":"IF(TRIM(CV27)=\"\", \"\", IF(VLOOKUP(CV27,'Footnotes list'!$D$9:$E$58,2,FALSE)=0,\"\",VLOOKUP(CV27,'Footnotes list'!$D$9:$E$58,2,FALSE) ) )","v":""},null,null,null,null,{"$f":"IF(TRIM(DA27)=\"\", \"\", IF(VLOOKUP(DA27,'Footnotes list'!$D$9:$E$58,2,FALSE)=0,\"\",VLOOKUP(DA27,'Footnotes list'!$D$9:$E$58,2,FALSE) ) )","v":""},null,null,null,null,{"$f":"IF(TRIM(DF27)=\"\", \"\", IF(VLOOKUP(DF27,'Footnotes list'!$D$9:$E$58,2,FALSE)=0,\"\",VLOOKUP(DF27,'Footnotes list'!$D$9:$E$58,2,FALSE) ) )","v":""},null,null,null,null,{"$f":"IF(TRIM(DK27)=\"\", \"\", IF(VLOOKUP(DK27,'Footnotes list'!$D$9:$E$58,2,FALSE)=0,\"\",VLOOKUP(DK27,'Footnotes list'!$D$9:$E$58,2,FALSE) ) )","v":""},null,null,null,null,{"$f":"IF(TRIM(DP27)=\"\", \"\", IF(VLOOKUP(DP27,'Footnotes list'!$D$9:$E$58,2,FALSE)=0,\"\",VLOOKUP(DP27,'Footnotes list'!$D$9:$E$58,2,FALSE) ) )","v":""},null,null,null,null,{"$f":"IF(TRIM(DU27)=\"\", \"\", IF(VLOOKUP(DU27,'Footnotes list'!$D$9:$E$58,2,FALSE)=0,\"\",VLOOKUP(DU27,'Footnotes list'!$D$9:$E$58,2,FALSE) ) )","v":""},null,null,null,null,{"$f":"IF(TRIM(DZ27)=\"\", \"\", IF(VLOOKUP(DZ27,'Footnotes list'!$D$9:$E$58,2,FALSE)=0,\"\",VLOOKUP(DZ27,'Footnotes list'!$D$9:$E$58,2,FALSE) ) )","v":""},null,null,null,null,{"$f":"IF(TRIM(EE27)=\"\", \"\", IF(VLOOKUP(EE27,'Footnotes list'!$D$9:$E$58,2,FALSE)=0,\"\",VLOOKUP(EE27,'Footnotes list'!$D$9:$E$58,2,FALSE) ) )","v":""},null,null,null,null,{"$f":"IF(TRIM(EJ27)=\"\", \"\", IF(VLOOKUP(EJ27,'Footnotes list'!$D$9:$E$58,2,FALSE)=0,\"\",VLOOKUP(EJ27,'Footnotes list'!$D$9:$E$58,2,FALSE) ) )","v":""},null,null,null,null,{"$f":"IF(TRIM(EO27)=\"\", \"\", IF(VLOOKUP(EO27,'Footnotes list'!$D$9:$E$58,2,FALSE)=0,\"\",VLOOKUP(EO27,'Footnotes list'!$D$9:$E$58,2,FALSE) ) )","v":""},null,null,null,null,{"$f":"IF(TRIM(ET27)=\"\", \"\", IF(VLOOKUP(ET27,'Footnotes list'!$D$9:$E$58,2,FALSE)=0,\"\",VLOOKUP(ET27,'Footnotes list'!$D$9:$E$58,2,FALSE) ) )","v":""},null,null,null,null,{"$f":"IF(TRIM(EY27)=\"\", \"\", IF(VLOOKUP(EY27,'Footnotes list'!$D$9:$E$58,2,FALSE)=0,\"\",VLOOKUP(EY27,'Footnotes list'!$D$9:$E$58,2,FALSE) ) )","v":""}]
[null,null,"B","C_REP","cleaner and resource efficient products",null,null,null,null,null,{"$f":"IF(TRIM(J28)=\"\", \"\", IF(VLOOKUP(J28,'Footnotes list'!$D$9:$E$58,2,FALSE)=0,\"\",VLOOKUP(J28,'Footnotes list'!$D$9:$E$58,2,FALSE) ) )","v":""},null,null,null,null,{"$f":"IF(TRIM(O28)=\"\", \"\", IF(VLOOKUP(O28,'Footnotes list'!$D$9:$E$58,2,FALSE)=0,\"\",VLOOKUP(O28,'Footnotes list'!$D$9:$E$58,2,FALSE) ) )","v":""},null,null,null,null,{"$f":"IF(TRIM(T28)=\"\", \"\", IF(VLOOKUP(T28,'Footnotes list'!$D$9:$E$58,2,FALSE)=0,\"\",VLOOKUP(T28,'Footnotes list'!$D$9:$E$58,2,FALSE) ) )","v":""},null,null,null,null,{"$f":"IF(TRIM(Y28)=\"\", \"\", IF(VLOOKUP(Y28,'Footnotes list'!$D$9:$E$58,2,FALSE)=0,\"\",VLOOKUP(Y28,'Footnotes list'!$D$9:$E$58,2,FALSE) ) )","v":""},null,null,null,null,{"$f":"IF(TRIM(AD28)=\"\", \"\", IF(VLOOKUP(AD28,'Footnotes list'!$D$9:$E$58,2,FALSE)=0,\"\",VLOOKUP(AD28,'Footnotes list'!$D$9:$E$58,2,FALSE) ) )","v":""},null,null,null,null,{"$f":"IF(TRIM(AI28)=\"\", \"\", IF(VLOOKUP(AI28,'Footnotes list'!$D$9:$E$58,2,FALSE)=0,\"\",VLOOKUP(AI28,'Footnotes list'!$D$9:$E$58,2,FALSE) ) )","v":""},null,null,null,null,{"$f":"IF(TRIM(AN28)=\"\", \"\", IF(VLOOKUP(AN28,'Footnotes list'!$D$9:$E$58,2,FALSE)=0,\"\",VLOOKUP(AN28,'Footnotes list'!$D$9:$E$58,2,FALSE) ) )","v":""},null,null,null,null,{"$f":"IF(TRIM(AS28)=\"\", \"\", IF(VLOOKUP(AS28,'Footnotes list'!$D$9:$E$58,2,FALSE)=0,\"\",VLOOKUP(AS28,'Footnotes list'!$D$9:$E$58,2,FALSE) ) )","v":""},null,null,null,null,{"$f":"IF(TRIM(AX28)=\"\", \"\", IF(VLOOKUP(AX28,'Footnotes list'!$D$9:$E$58,2,FALSE)=0,\"\",VLOOKUP(AX28,'Footnotes list'!$D$9:$E$58,2,FALSE) ) )","v":""},null,null,null,null,{"$f":"IF(TRIM(BC28)=\"\", \"\", IF(VLOOKUP(BC28,'Footnotes list'!$D$9:$E$58,2,FALSE)=0,\"\",VLOOKUP(BC28,'Footnotes list'!$D$9:$E$58,2,FALSE) ) )","v":""},null,null,null,null,{"$f":"IF(TRIM(BH28)=\"\", \"\", IF(VLOOKUP(BH28,'Footnotes list'!$D$9:$E$58,2,FALSE)=0,\"\",VLOOKUP(BH28,'Footnotes list'!$D$9:$E$58,2,FALSE) ) )","v":""},null,null,null,null,{"$f":"IF(TRIM(BM28)=\"\", \"\", IF(VLOOKUP(BM28,'Footnotes list'!$D$9:$E$58,2,FALSE)=0,\"\",VLOOKUP(BM28,'Footnotes list'!$D$9:$E$58,2,FALSE) ) )","v":""},null,null,null,null,{"$f":"IF(TRIM(BR28)=\"\", \"\", IF(VLOOKUP(BR28,'Footnotes list'!$D$9:$E$58,2,FALSE)=0,\"\",VLOOKUP(BR28,'Footnotes list'!$D$9:$E$58,2,FALSE) ) )","v":""},null,null,null,null,{"$f":"IF(TRIM(BW28)=\"\", \"\", IF(VLOOKUP(BW28,'Footnotes list'!$D$9:$E$58,2,FALSE)=0,\"\",VLOOKUP(BW28,'Footnotes list'!$D$9:$E$58,2,FALSE) ) )","v":""},null,null,null,null,{"$f":"IF(TRIM(CB28)=\"\", \"\", IF(VLOOKUP(CB28,'Footnotes list'!$D$9:$E$58,2,FALSE)=0,\"\",VLOOKUP(CB28,'Footnotes list'!$D$9:$E$58,2,FALSE) ) )","v":""},null,null,null,null,{"$f":"IF(TRIM(CG28)=\"\", \"\", IF(VLOOKUP(CG28,'Footnotes list'!$D$9:$E$58,2,FALSE)=0,\"\",VLOOKUP(CG28,'Footnotes list'!$D$9:$E$58,2,FALSE) ) )","v":""},null,null,null,null,{"$f":"IF(TRIM(CL28)=\"\", \"\", IF(VLOOKUP(CL28,'Footnotes list'!$D$9:$E$58,2,FALSE)=0,\"\",VLOOKUP(CL28,'Footnotes list'!$D$9:$E$58,2,FALSE) ) )","v":""},null,null,null,null,{"$f":"IF(TRIM(CQ28)=\"\", \"\", IF(VLOOKUP(CQ28,'Footnotes list'!$D$9:$E$58,2,FALSE)=0,\"\",VLOOKUP(CQ28,'Footnotes list'!$D$9:$E$58,2,FALSE) ) )","v":""},null,null,null,null,{"$f":"IF(TRIM(CV28)=\"\", \"\", IF(VLOOKUP(CV28,'Footnotes list'!$D$9:$E$58,2,FALSE)=0,\"\",VLOOKUP(CV28,'Footnotes list'!$D$9:$E$58,2,FALSE) ) )","v":""},null,null,null,null,{"$f":"IF(TRIM(DA28)=\"\", \"\", IF(VLOOKUP(DA28,'Footnotes list'!$D$9:$E$58,2,FALSE)=0,\"\",VLOOKUP(DA28,'Footnotes list'!$D$9:$E$58,2,FALSE) ) )","v":""},null,null,null,null,{"$f":"IF(TRIM(DF28)=\"\", \"\", IF(VLOOKUP(DF28,'Footnotes list'!$D$9:$E$58,2,FALSE)=0,\"\",VLOOKUP(DF28,'Footnotes list'!$D$9:$E$58,2,FALSE) ) )","v":""},null,null,null,null,{"$f":"IF(TRIM(DK28)=\"\", \"\", IF(VLOOKUP(DK28,'Footnotes list'!$D$9:$E$58,2,FALSE)=0,\"\",VLOOKUP(DK28,'Footnotes list'!$D$9:$E$58,2,FALSE) ) )","v":""},null,null,null,null,{"$f":"IF(TRIM(DP28)=\"\", \"\", IF(VLOOKUP(DP28,'Footnotes list'!$D$9:$E$58,2,FALSE)=0,\"\",VLOOKUP(DP28,'Footnotes list'!$D$9:$E$58,2,FALSE) ) )","v":""},null,null,null,null,{"$f":"IF(TRIM(DU28)=\"\", \"\", IF(VLOOKUP(DU28,'Footnotes list'!$D$9:$E$58,2,FALSE)=0,\"\",VLOOKUP(DU28,'Footnotes list'!$D$9:$E$58,2,FALSE) ) )","v":""},null,null,null,null,{"$f":"IF(TRIM(DZ28)=\"\", \"\", IF(VLOOKUP(DZ28,'Footnotes list'!$D$9:$E$58,2,FALSE)=0,\"\",VLOOKUP(DZ28,'Footnotes list'!$D$9:$E$58,2,FALSE) ) )","v":""},null,null,null,null,{"$f":"IF(TRIM(EE28)=\"\", \"\", IF(VLOOKUP(EE28,'Footnotes list'!$D$9:$E$58,2,FALSE)=0,\"\",VLOOKUP(EE28,'Footnotes list'!$D$9:$E$58,2,FALSE) ) )","v":""},null,null,null,null,{"$f":"IF(TRIM(EJ28)=\"\", \"\", IF(VLOOKUP(EJ28,'Footnotes list'!$D$9:$E$58,2,FALSE)=0,\"\",VLOOKUP(EJ28,'Footnotes list'!$D$9:$E$58,2,FALSE) ) )","v":""},null,null,null,null,{"$f":"IF(TRIM(EO28)=\"\", \"\", IF(VLOOKUP(EO28,'Footnotes list'!$D$9:$E$58,2,FALSE)=0,\"\",VLOOKUP(EO28,'Footnotes list'!$D$9:$E$58,2,FALSE) ) )","v":""},null,null,null,null,{"$f":"IF(TRIM(ET28)=\"\", \"\", IF(VLOOKUP(ET28,'Footnotes list'!$D$9:$E$58,2,FALSE)=0,\"\",VLOOKUP(ET28,'Footnotes list'!$D$9:$E$58,2,FALSE) ) )","v":""},null,null,null,null,{"$f":"IF(TRIM(EY28)=\"\", \"\", IF(VLOOKUP(EY28,'Footnotes list'!$D$9:$E$58,2,FALSE)=0,\"\",VLOOKUP(EY28,'Footnotes list'!$D$9:$E$58,2,FALSE) ) )","v":""}]
[null,null,"C","TOT_EGSS","Total C - Manufacturing, of which:",null,null,null,null,null,{"$f":"IF(TRIM(J29)=\"\", \"\", IF(VLOOKUP(J29,'Footnotes list'!$D$9:$E$58,2,FALSE)=0,\"\",VLOOKUP(J29,'Footnotes list'!$D$9:$E$58,2,FALSE) ) )","v":""},null,null,null,null,{"$f":"IF(TRIM(O29)=\"\", \"\", IF(VLOOKUP(O29,'Footnotes list'!$D$9:$E$58,2,FALSE)=0,\"\",VLOOKUP(O29,'Footnotes list'!$D$9:$E$58,2,FALSE) ) )","v":""},null,null,null,null,{"$f":"IF(TRIM(T29)=\"\", \"\", IF(VLOOKUP(T29,'Footnotes list'!$D$9:$E$58,2,FALSE)=0,\"\",VLOOKUP(T29,'Footnotes list'!$D$9:$E$58,2,FALSE) ) )","v":""},null,null,null,null,{"$f":"IF(TRIM(Y29)=\"\", \"\", IF(VLOOKUP(Y29,'Footnotes list'!$D$9:$E$58,2,FALSE)=0,\"\",VLOOKUP(Y29,'Footnotes list'!$D$9:$E$58,2,FALSE) ) )","v":""},null,null,null,null,{"$f":"IF(TRIM(AD29)=\"\", \"\", IF(VLOOKUP(AD29,'Footnotes list'!$D$9:$E$58,2,FALSE)=0,\"\",VLOOKUP(AD29,'Footnotes list'!$D$9:$E$58,2,FALSE) ) )","v":""},null,null,null,null,{"$f":"IF(TRIM(AI29)=\"\", \"\", IF(VLOOKUP(AI29,'Footnotes list'!$D$9:$E$58,2,FALSE)=0,\"\",VLOOKUP(AI29,'Footnotes list'!$D$9:$E$58,2,FALSE) ) )","v":""},null,null,null,null,{"$f":"IF(TRIM(AN29)=\"\", \"\", IF(VLOOKUP(AN29,'Footnotes list'!$D$9:$E$58,2,FALSE)=0,\"\",VLOOKUP(AN29,'Footnotes list'!$D$9:$E$58,2,FALSE) ) )","v":""},null,null,null,null,{"$f":"IF(TRIM(AS29)=\"\", \"\", IF(VLOOKUP(AS29,'Footnotes list'!$D$9:$E$58,2,FALSE)=0,\"\",VLOOKUP(AS29,'Footnotes list'!$D$9:$E$58,2,FALSE) ) )","v":""},null,null,null,null,{"$f":"IF(TRIM(AX29)=\"\", \"\", IF(VLOOKUP(AX29,'Footnotes list'!$D$9:$E$58,2,FALSE)=0,\"\",VLOOKUP(AX29,'Footnotes list'!$D$9:$E$58,2,FALSE) ) )","v":""},null,null,null,null,{"$f":"IF(TRIM(BC29)=\"\", \"\", IF(VLOOKUP(BC29,'Footnotes list'!$D$9:$E$58,2,FALSE)=0,\"\",VLOOKUP(BC29,'Footnotes list'!$D$9:$E$58,2,FALSE) ) )","v":""},null,null,null,null,{"$f":"IF(TRIM(BH29)=\"\", \"\", IF(VLOOKUP(BH29,'Footnotes list'!$D$9:$E$58,2,FALSE)=0,\"\",VLOOKUP(BH29,'Footnotes list'!$D$9:$E$58,2,FALSE) ) )","v":""},null,null,null,null,{"$f":"IF(TRIM(BM29)=\"\", \"\", IF(VLOOKUP(BM29,'Footnotes list'!$D$9:$E$58,2,FALSE)=0,\"\",VLOOKUP(BM29,'Footnotes list'!$D$9:$E$58,2,FALSE) ) )","v":""},null,null,null,null,{"$f":"IF(TRIM(BR29)=\"\", \"\", IF(VLOOKUP(BR29,'Footnotes list'!$D$9:$E$58,2,FALSE)=0,\"\",VLOOKUP(BR29,'Footnotes list'!$D$9:$E$58,2,FALSE) ) )","v":""},null,null,null,null,{"$f":"IF(TRIM(BW29)=\"\", \"\", IF(VLOOKUP(BW29,'Footnotes list'!$D$9:$E$58,2,FALSE)=0,\"\",VLOOKUP(BW29,'Footnotes list'!$D$9:$E$58,2,FALSE) ) )","v":""},null,null,null,null,{"$f":"IF(TRIM(CB29)=\"\", \"\", IF(VLOOKUP(CB29,'Footnotes list'!$D$9:$E$58,2,FALSE)=0,\"\",VLOOKUP(CB29,'Footnotes list'!$D$9:$E$58,2,FALSE) ) )","v":""},null,null,null,null,{"$f":"IF(TRIM(CG29)=\"\", \"\", IF(VLOOKUP(CG29,'Footnotes list'!$D$9:$E$58,2,FALSE)=0,\"\",VLOOKUP(CG29,'Footnotes list'!$D$9:$E$58,2,FALSE) ) )","v":""},null,null,null,null,{"$f":"IF(TRIM(CL29)=\"\", \"\", IF(VLOOKUP(CL29,'Footnotes list'!$D$9:$E$58,2,FALSE)=0,\"\",VLOOKUP(CL29,'Footnotes list'!$D$9:$E$58,2,FALSE) ) )","v":""},null,null,null,null,{"$f":"IF(TRIM(CQ29)=\"\", \"\", IF(VLOOKUP(CQ29,'Footnotes list'!$D$9:$E$58,2,FALSE)=0,\"\",VLOOKUP(CQ29,'Footnotes list'!$D$9:$E$58,2,FALSE) ) )","v":""},null,null,null,null,{"$f":"IF(TRIM(CV29)=\"\", \"\", IF(VLOOKUP(CV29,'Footnotes list'!$D$9:$E$58,2,FALSE)=0,\"\",VLOOKUP(CV29,'Footnotes list'!$D$9:$E$58,2,FALSE) ) )","v":""},null,null,null,null,{"$f":"IF(TRIM(DA29)=\"\", \"\", IF(VLOOKUP(DA29,'Footnotes list'!$D$9:$E$58,2,FALSE)=0,\"\",VLOOKUP(DA29,'Footnotes list'!$D$9:$E$58,2,FALSE) ) )","v":""},null,null,null,null,{"$f":"IF(TRIM(DF29)=\"\", \"\", IF(VLOOKUP(DF29,'Footnotes list'!$D$9:$E$58,2,FALSE)=0,\"\",VLOOKUP(DF29,'Footnotes list'!$D$9:$E$58,2,FALSE) ) )","v":""},null,null,null,null,{"$f":"IF(TRIM(DK29)=\"\", \"\", IF(VLOOKUP(DK29,'Footnotes list'!$D$9:$E$58,2,FALSE)=0,\"\",VLOOKUP(DK29,'Footnotes list'!$D$9:$E$58,2,FALSE) ) )","v":""},null,null,null,null,{"$f":"IF(TRIM(DP29)=\"\", \"\", IF(VLOOKUP(DP29,'Footnotes list'!$D$9:$E$58,2,FALSE)=0,\"\",VLOOKUP(DP29,'Footnotes list'!$D$9:$E$58,2,FALSE) ) )","v":""},null,null,null,null,{"$f":"IF(TRIM(DU29)=\"\", \"\", IF(VLOOKUP(DU29,'Footnotes list'!$D$9:$E$58,2,FALSE)=0,\"\",VLOOKUP(DU29,'Footnotes list'!$D$9:$E$58,2,FALSE) ) )","v":""},null,null,null,null,{"$f":"IF(TRIM(DZ29)=\"\", \"\", IF(VLOOKUP(DZ29,'Footnotes list'!$D$9:$E$58,2,FALSE)=0,\"\",VLOOKUP(DZ29,'Footnotes list'!$D$9:$E$58,2,FALSE) ) )","v":""},null,null,null,null,{"$f":"IF(TRIM(EE29)=\"\", \"\", IF(VLOOKUP(EE29,'Footnotes list'!$D$9:$E$58,2,FALSE)=0,\"\",VLOOKUP(EE29,'Footnotes list'!$D$9:$E$58,2,FALSE) ) )","v":""},null,null,null,null,{"$f":"IF(TRIM(EJ29)=\"\", \"\", IF(VLOOKUP(EJ29,'Footnotes list'!$D$9:$E$58,2,FALSE)=0,\"\",VLOOKUP(EJ29,'Footnotes list'!$D$9:$E$58,2,FALSE) ) )","v":""},null,null,null,null,{"$f":"IF(TRIM(EO29)=\"\", \"\", IF(VLOOKUP(EO29,'Footnotes list'!$D$9:$E$58,2,FALSE)=0,\"\",VLOOKUP(EO29,'Footnotes list'!$D$9:$E$58,2,FALSE) ) )","v":""},null,null,null,null,{"$f":"IF(TRIM(ET29)=\"\", \"\", IF(VLOOKUP(ET29,'Footnotes list'!$D$9:$E$58,2,FALSE)=0,\"\",VLOOKUP(ET29,'Footnotes list'!$D$9:$E$58,2,FALSE) ) )","v":""},null,null,null,null,{"$f":"IF(TRIM(EY29)=\"\", \"\", IF(VLOOKUP(EY29,'Footnotes list'!$D$9:$E$58,2,FALSE)=0,\"\",VLOOKUP(EY29,'Footnotes list'!$D$9:$E$58,2,FALSE) ) )","v":""}]
[null,null,"C","ANC","ancillary activities",null,null,null,null,null,{"$f":"IF(TRIM(J30)=\"\", \"\", IF(VLOOKUP(J30,'Footnotes list'!$D$9:$E$58,2,FALSE)=0,\"\",VLOOKUP(J30,'Footnotes list'!$D$9:$E$58,2,FALSE) ) )","v":""},null,null,null,null,{"$f":"IF(TRIM(O30)=\"\", \"\", IF(VLOOKUP(O30,'Footnotes list'!$D$9:$E$58,2,FALSE)=0,\"\",VLOOKUP(O30,'Footnotes list'!$D$9:$E$58,2,FALSE) ) )","v":""},null,null,null,null,{"$f":"IF(TRIM(T30)=\"\", \"\", IF(VLOOKUP(T30,'Footnotes list'!$D$9:$E$58,2,FALSE)=0,\"\",VLOOKUP(T30,'Footnotes list'!$D$9:$E$58,2,FALSE) ) )","v":""},null,null,null,null,{"$f":"IF(TRIM(Y30)=\"\", \"\", IF(VLOOKUP(Y30,'Footnotes list'!$D$9:$E$58,2,FALSE)=0,\"\",VLOOKUP(Y30,'Footnotes list'!$D$9:$E$58,2,FALSE) ) )","v":""},null,null,null,null,{"$f":"IF(TRIM(AD30)=\"\", \"\", IF(VLOOKUP(AD30,'Footnotes list'!$D$9:$E$58,2,FALSE)=0,\"\",VLOOKUP(AD30,'Footnotes list'!$D$9:$E$58,2,FALSE) ) )","v":""},null,null,null,null,{"$f":"IF(TRIM(AI30)=\"\", \"\", IF(VLOOKUP(AI30,'Footnotes list'!$D$9:$E$58,2,FALSE)=0,\"\",VLOOKUP(AI30,'Footnotes list'!$D$9:$E$58,2,FALSE) ) )","v":""},null,null,null,null,{"$f":"IF(TRIM(AN30)=\"\", \"\", IF(VLOOKUP(AN30,'Footnotes list'!$D$9:$E$58,2,FALSE)=0,\"\",VLOOKUP(AN30,'Footnotes list'!$D$9:$E$58,2,FALSE) ) )","v":""},null,null,null,null,{"$f":"IF(TRIM(AS30)=\"\", \"\", IF(VLOOKUP(AS30,'Footnotes list'!$D$9:$E$58,2,FALSE)=0,\"\",VLOOKUP(AS30,'Footnotes list'!$D$9:$E$58,2,FALSE) ) )","v":""},null,null,null,null,{"$f":"IF(TRIM(AX30)=\"\", \"\", IF(VLOOKUP(AX30,'Footnotes list'!$D$9:$E$58,2,FALSE)=0,\"\",VLOOKUP(AX30,'Footnotes list'!$D$9:$E$58,2,FALSE) ) )","v":""},null,null,null,null,{"$f":"IF(TRIM(BC30)=\"\", \"\", IF(VLOOKUP(BC30,'Footnotes list'!$D$9:$E$58,2,FALSE)=0,\"\",VLOOKUP(BC30,'Footnotes list'!$D$9:$E$58,2,FALSE) ) )","v":""},null,null,null,null,{"$f":"IF(TRIM(BH30)=\"\", \"\", IF(VLOOKUP(BH30,'Footnotes list'!$D$9:$E$58,2,FALSE)=0,\"\",VLOOKUP(BH30,'Footnotes list'!$D$9:$E$58,2,FALSE) ) )","v":""},null,null,null,null,{"$f":"IF(TRIM(BM30)=\"\", \"\", IF(VLOOKUP(BM30,'Footnotes list'!$D$9:$E$58,2,FALSE)=0,\"\",VLOOKUP(BM30,'Footnotes list'!$D$9:$E$58,2,FALSE) ) )","v":""},null,null,null,null,{"$f":"IF(TRIM(BR30)=\"\", \"\", IF(VLOOKUP(BR30,'Footnotes list'!$D$9:$E$58,2,FALSE)=0,\"\",VLOOKUP(BR30,'Footnotes list'!$D$9:$E$58,2,FALSE) ) )","v":""},null,null,null,null,{"$f":"IF(TRIM(BW30)=\"\", \"\", IF(VLOOKUP(BW30,'Footnotes list'!$D$9:$E$58,2,FALSE)=0,\"\",VLOOKUP(BW30,'Footnotes list'!$D$9:$E$58,2,FALSE) ) )","v":""},null,null,null,null,{"$f":"IF(TRIM(CB30)=\"\", \"\", IF(VLOOKUP(CB30,'Footnotes list'!$D$9:$E$58,2,FALSE)=0,\"\",VLOOKUP(CB30,'Footnotes list'!$D$9:$E$58,2,FALSE) ) )","v":""},null,null,null,null,{"$f":"IF(TRIM(CG30)=\"\", \"\", IF(VLOOKUP(CG30,'Footnotes list'!$D$9:$E$58,2,FALSE)=0,\"\",VLOOKUP(CG30,'Footnotes list'!$D$9:$E$58,2,FALSE) ) )","v":""},null,null,null,null,{"$f":"IF(TRIM(CL30)=\"\", \"\", IF(VLOOKUP(CL30,'Footnotes list'!$D$9:$E$58,2,FALSE)=0,\"\",VLOOKUP(CL30,'Footnotes list'!$D$9:$E$58,2,FALSE) ) )","v":""},null,null,null,null,{"$f":"IF(TRIM(CQ30)=\"\", \"\", IF(VLOOKUP(CQ30,'Footnotes list'!$D$9:$E$58,2,FALSE)=0,\"\",VLOOKUP(CQ30,'Footnotes list'!$D$9:$E$58,2,FALSE) ) )","v":""},null,null,null,null,{"$f":"IF(TRIM(CV30)=\"\", \"\", IF(VLOOKUP(CV30,'Footnotes list'!$D$9:$E$58,2,FALSE)=0,\"\",VLOOKUP(CV30,'Footnotes list'!$D$9:$E$58,2,FALSE) ) )","v":""},null,null,null,null,{"$f":"IF(TRIM(DA30)=\"\", \"\", IF(VLOOKUP(DA30,'Footnotes list'!$D$9:$E$58,2,FALSE)=0,\"\",VLOOKUP(DA30,'Footnotes list'!$D$9:$E$58,2,FALSE) ) )","v":""},null,null,null,null,{"$f":"IF(TRIM(DF30)=\"\", \"\", IF(VLOOKUP(DF30,'Footnotes list'!$D$9:$E$58,2,FALSE)=0,\"\",VLOOKUP(DF30,'Footnotes list'!$D$9:$E$58,2,FALSE) ) )","v":""},null,null,null,null,{"$f":"IF(TRIM(DK30)=\"\", \"\", IF(VLOOKUP(DK30,'Footnotes list'!$D$9:$E$58,2,FALSE)=0,\"\",VLOOKUP(DK30,'Footnotes list'!$D$9:$E$58,2,FALSE) ) )","v":""},null,null,null,null,{"$f":"IF(TRIM(DP30)=\"\", \"\", IF(VLOOKUP(DP30,'Footnotes list'!$D$9:$E$58,2,FALSE)=0,\"\",VLOOKUP(DP30,'Footnotes list'!$D$9:$E$58,2,FALSE) ) )","v":""},null,null,null,null,{"$f":"IF(TRIM(DU30)=\"\", \"\", IF(VLOOKUP(DU30,'Footnotes list'!$D$9:$E$58,2,FALSE)=0,\"\",VLOOKUP(DU30,'Footnotes list'!$D$9:$E$58,2,FALSE) ) )","v":""},null,null,null,null,{"$f":"IF(TRIM(DZ30)=\"\", \"\", IF(VLOOKUP(DZ30,'Footnotes list'!$D$9:$E$58,2,FALSE)=0,\"\",VLOOKUP(DZ30,'Footnotes list'!$D$9:$E$58,2,FALSE) ) )","v":""},null,null,null,null,{"$f":"IF(TRIM(EE30)=\"\", \"\", IF(VLOOKUP(EE30,'Footnotes list'!$D$9:$E$58,2,FALSE)=0,\"\",VLOOKUP(EE30,'Footnotes list'!$D$9:$E$58,2,FALSE) ) )","v":""},null,null,null,null,{"$f":"IF(TRIM(EJ30)=\"\", \"\", IF(VLOOKUP(EJ30,'Footnotes list'!$D$9:$E$58,2,FALSE)=0,\"\",VLOOKUP(EJ30,'Footnotes list'!$D$9:$E$58,2,FALSE) ) )","v":""},null,null,null,null,{"$f":"IF(TRIM(EO30)=\"\", \"\", IF(VLOOKUP(EO30,'Footnotes list'!$D$9:$E$58,2,FALSE)=0,\"\",VLOOKUP(EO30,'Footnotes list'!$D$9:$E$58,2,FALSE) ) )","v":""},null,null,null,null,{"$f":"IF(TRIM(ET30)=\"\", \"\", IF(VLOOKUP(ET30,'Footnotes list'!$D$9:$E$58,2,FALSE)=0,\"\",VLOOKUP(ET30,'Footnotes list'!$D$9:$E$58,2,FALSE) ) )","v":""},null,null,null,null,{"$f":"IF(TRIM(EY30)=\"\", \"\", IF(VLOOKUP(EY30,'Footnotes list'!$D$9:$E$58,2,FALSE)=0,\"\",VLOOKUP(EY30,'Footnotes list'!$D$9:$E$58,2,FALSE) ) )","v":""}]
[null,null,"C","NMKT","non-market activities",null,null,null,null,null,{"$f":"IF(TRIM(J31)=\"\", \"\", IF(VLOOKUP(J31,'Footnotes list'!$D$9:$E$58,2,FALSE)=0,\"\",VLOOKUP(J31,'Footnotes list'!$D$9:$E$58,2,FALSE) ) )","v":""},null,null,null,null,{"$f":"IF(TRIM(O31)=\"\", \"\", IF(VLOOKUP(O31,'Footnotes list'!$D$9:$E$58,2,FALSE)=0,\"\",VLOOKUP(O31,'Footnotes list'!$D$9:$E$58,2,FALSE) ) )","v":""},null,null,null,null,{"$f":"IF(TRIM(T31)=\"\", \"\", IF(VLOOKUP(T31,'Footnotes list'!$D$9:$E$58,2,FALSE)=0,\"\",VLOOKUP(T31,'Footnotes list'!$D$9:$E$58,2,FALSE) ) )","v":""},null,null,null,null,{"$f":"IF(TRIM(Y31)=\"\", \"\", IF(VLOOKUP(Y31,'Footnotes list'!$D$9:$E$58,2,FALSE)=0,\"\",VLOOKUP(Y31,'Footnotes list'!$D$9:$E$58,2,FALSE) ) )","v":""},null,null,null,null,{"$f":"IF(TRIM(AD31)=\"\", \"\", IF(VLOOKUP(AD31,'Footnotes list'!$D$9:$E$58,2,FALSE)=0,\"\",VLOOKUP(AD31,'Footnotes list'!$D$9:$E$58,2,FALSE) ) )","v":""},null,null,null,null,{"$f":"IF(TRIM(AI31)=\"\", \"\", IF(VLOOKUP(AI31,'Footnotes list'!$D$9:$E$58,2,FALSE)=0,\"\",VLOOKUP(AI31,'Footnotes list'!$D$9:$E$58,2,FALSE) ) )","v":""},null,null,null,null,{"$f":"IF(TRIM(AN31)=\"\", \"\", IF(VLOOKUP(AN31,'Footnotes list'!$D$9:$E$58,2,FALSE)=0,\"\",VLOOKUP(AN31,'Footnotes list'!$D$9:$E$58,2,FALSE) ) )","v":""},null,null,null,null,{"$f":"IF(TRIM(AS31)=\"\", \"\", IF(VLOOKUP(AS31,'Footnotes list'!$D$9:$E$58,2,FALSE)=0,\"\",VLOOKUP(AS31,'Footnotes list'!$D$9:$E$58,2,FALSE) ) )","v":""},null,null,null,null,{"$f":"IF(TRIM(AX31)=\"\", \"\", IF(VLOOKUP(AX31,'Footnotes list'!$D$9:$E$58,2,FALSE)=0,\"\",VLOOKUP(AX31,'Footnotes list'!$D$9:$E$58,2,FALSE) ) )","v":""},null,null,null,null,{"$f":"IF(TRIM(BC31)=\"\", \"\", IF(VLOOKUP(BC31,'Footnotes list'!$D$9:$E$58,2,FALSE)=0,\"\",VLOOKUP(BC31,'Footnotes list'!$D$9:$E$58,2,FALSE) ) )","v":""},null,null,null,null,{"$f":"IF(TRIM(BH31)=\"\", \"\", IF(VLOOKUP(BH31,'Footnotes list'!$D$9:$E$58,2,FALSE)=0,\"\",VLOOKUP(BH31,'Footnotes list'!$D$9:$E$58,2,FALSE) ) )","v":""},null,null,null,null,{"$f":"IF(TRIM(BM31)=\"\", \"\", IF(VLOOKUP(BM31,'Footnotes list'!$D$9:$E$58,2,FALSE)=0,\"\",VLOOKUP(BM31,'Footnotes list'!$D$9:$E$58,2,FALSE) ) )","v":""},null,null,null,null,{"$f":"IF(TRIM(BR31)=\"\", \"\", IF(VLOOKUP(BR31,'Footnotes list'!$D$9:$E$58,2,FALSE)=0,\"\",VLOOKUP(BR31,'Footnotes list'!$D$9:$E$58,2,FALSE) ) )","v":""},null,null,null,null,{"$f":"IF(TRIM(BW31)=\"\", \"\", IF(VLOOKUP(BW31,'Footnotes list'!$D$9:$E$58,2,FALSE)=0,\"\",VLOOKUP(BW31,'Footnotes list'!$D$9:$E$58,2,FALSE) ) )","v":""},null,null,null,null,{"$f":"IF(TRIM(CB31)=\"\", \"\", IF(VLOOKUP(CB31,'Footnotes list'!$D$9:$E$58,2,FALSE)=0,\"\",VLOOKUP(CB31,'Footnotes list'!$D$9:$E$58,2,FALSE) ) )","v":""},null,null,null,null,{"$f":"IF(TRIM(CG31)=\"\", \"\", IF(VLOOKUP(CG31,'Footnotes list'!$D$9:$E$58,2,FALSE)=0,\"\",VLOOKUP(CG31,'Footnotes list'!$D$9:$E$58,2,FALSE) ) )","v":""},null,null,null,null,{"$f":"IF(TRIM(CL31)=\"\", \"\", IF(VLOOKUP(CL31,'Footnotes list'!$D$9:$E$58,2,FALSE)=0,\"\",VLOOKUP(CL31,'Footnotes list'!$D$9:$E$58,2,FALSE) ) )","v":""},null,null,null,null,{"$f":"IF(TRIM(CQ31)=\"\", \"\", IF(VLOOKUP(CQ31,'Footnotes list'!$D$9:$E$58,2,FALSE)=0,\"\",VLOOKUP(CQ31,'Footnotes list'!$D$9:$E$58,2,FALSE) ) )","v":""},null,null,null,null,{"$f":"IF(TRIM(CV31)=\"\", \"\", IF(VLOOKUP(CV31,'Footnotes list'!$D$9:$E$58,2,FALSE)=0,\"\",VLOOKUP(CV31,'Footnotes list'!$D$9:$E$58,2,FALSE) ) )","v":""},null,null,null,null,{"$f":"IF(TRIM(DA31)=\"\", \"\", IF(VLOOKUP(DA31,'Footnotes list'!$D$9:$E$58,2,FALSE)=0,\"\",VLOOKUP(DA31,'Footnotes list'!$D$9:$E$58,2,FALSE) ) )","v":""},null,null,null,null,{"$f":"IF(TRIM(DF31)=\"\", \"\", IF(VLOOKUP(DF31,'Footnotes list'!$D$9:$E$58,2,FALSE)=0,\"\",VLOOKUP(DF31,'Footnotes list'!$D$9:$E$58,2,FALSE) ) )","v":""},null,null,null,null,{"$f":"IF(TRIM(DK31)=\"\", \"\", IF(VLOOKUP(DK31,'Footnotes list'!$D$9:$E$58,2,FALSE)=0,\"\",VLOOKUP(DK31,'Footnotes list'!$D$9:$E$58,2,FALSE) ) )","v":""},null,null,null,null,{"$f":"IF(TRIM(DP31)=\"\", \"\", IF(VLOOKUP(DP31,'Footnotes list'!$D$9:$E$58,2,FALSE)=0,\"\",VLOOKUP(DP31,'Footnotes list'!$D$9:$E$58,2,FALSE) ) )","v":""},null,null,null,null,{"$f":"IF(TRIM(DU31)=\"\", \"\", IF(VLOOKUP(DU31,'Footnotes list'!$D$9:$E$58,2,FALSE)=0,\"\",VLOOKUP(DU31,'Footnotes list'!$D$9:$E$58,2,FALSE) ) )","v":""},null,null,null,null,{"$f":"IF(TRIM(DZ31)=\"\", \"\", IF(VLOOKUP(DZ31,'Footnotes list'!$D$9:$E$58,2,FALSE)=0,\"\",VLOOKUP(DZ31,'Footnotes list'!$D$9:$E$58,2,FALSE) ) )","v":""},null,null,null,null,{"$f":"IF(TRIM(EE31)=\"\", \"\", IF(VLOOKUP(EE31,'Footnotes list'!$D$9:$E$58,2,FALSE)=0,\"\",VLOOKUP(EE31,'Footnotes list'!$D$9:$E$58,2,FALSE) ) )","v":""},null,null,null,null,{"$f":"IF(TRIM(EJ31)=\"\", \"\", IF(VLOOKUP(EJ31,'Footnotes list'!$D$9:$E$58,2,FALSE)=0,\"\",VLOOKUP(EJ31,'Footnotes list'!$D$9:$E$58,2,FALSE) ) )","v":""},null,null,null,null,{"$f":"IF(TRIM(EO31)=\"\", \"\", IF(VLOOKUP(EO31,'Footnotes list'!$D$9:$E$58,2,FALSE)=0,\"\",VLOOKUP(EO31,'Footnotes list'!$D$9:$E$58,2,FALSE) ) )","v":""},null,null,null,null,{"$f":"IF(TRIM(ET31)=\"\", \"\", IF(VLOOKUP(ET31,'Footnotes list'!$D$9:$E$58,2,FALSE)=0,\"\",VLOOKUP(ET31,'Footnotes list'!$D$9:$E$58,2,FALSE) ) )","v":""},null,null,null,null,{"$f":"IF(TRIM(EY31)=\"\", \"\", IF(VLOOKUP(EY31,'Footnotes list'!$D$9:$E$58,2,FALSE)=0,\"\",VLOOKUP(EY31,'Footnotes list'!$D$9:$E$58,2,FALSE) ) )","v":""}]
[null,null,"C","OWN_USE","activities for own final use",null,null,null,null,null,{"$f":"IF(TRIM(J32)=\"\", \"\", IF(VLOOKUP(J32,'Footnotes list'!$D$9:$E$58,2,FALSE)=0,\"\",VLOOKUP(J32,'Footnotes list'!$D$9:$E$58,2,FALSE) ) )","v":""},null,null,null,null,{"$f":"IF(TRIM(O32)=\"\", \"\", IF(VLOOKUP(O32,'Footnotes list'!$D$9:$E$58,2,FALSE)=0,\"\",VLOOKUP(O32,'Footnotes list'!$D$9:$E$58,2,FALSE) ) )","v":""},null,null,null,null,{"$f":"IF(TRIM(T32)=\"\", \"\", IF(VLOOKUP(T32,'Footnotes list'!$D$9:$E$58,2,FALSE)=0,\"\",VLOOKUP(T32,'Footnotes list'!$D$9:$E$58,2,FALSE) ) )","v":""},null,null,null,null,{"$f":"IF(TRIM(Y32)=\"\", \"\", IF(VLOOKUP(Y32,'Footnotes list'!$D$9:$E$58,2,FALSE)=0,\"\",VLOOKUP(Y32,'Footnotes list'!$D$9:$E$58,2,FALSE) ) )","v":""},null,null,null,null,{"$f":"IF(TRIM(AD32)=\"\", \"\", IF(VLOOKUP(AD32,'Footnotes list'!$D$9:$E$58,2,FALSE)=0,\"\",VLOOKUP(AD32,'Footnotes list'!$D$9:$E$58,2,FALSE) ) )","v":""},null,null,null,null,{"$f":"IF(TRIM(AI32)=\"\", \"\", IF(VLOOKUP(AI32,'Footnotes list'!$D$9:$E$58,2,FALSE)=0,\"\",VLOOKUP(AI32,'Footnotes list'!$D$9:$E$58,2,FALSE) ) )","v":""},null,null,null,null,{"$f":"IF(TRIM(AN32)=\"\", \"\", IF(VLOOKUP(AN32,'Footnotes list'!$D$9:$E$58,2,FALSE)=0,\"\",VLOOKUP(AN32,'Footnotes list'!$D$9:$E$58,2,FALSE) ) )","v":""},null,null,null,null,{"$f":"IF(TRIM(AS32)=\"\", \"\", IF(VLOOKUP(AS32,'Footnotes list'!$D$9:$E$58,2,FALSE)=0,\"\",VLOOKUP(AS32,'Footnotes list'!$D$9:$E$58,2,FALSE) ) )","v":""},null,null,null,null,{"$f":"IF(TRIM(AX32)=\"\", \"\", IF(VLOOKUP(AX32,'Footnotes list'!$D$9:$E$58,2,FALSE)=0,\"\",VLOOKUP(AX32,'Footnotes list'!$D$9:$E$58,2,FALSE) ) )","v":""},null,null,null,null,{"$f":"IF(TRIM(BC32)=\"\", \"\", IF(VLOOKUP(BC32,'Footnotes list'!$D$9:$E$58,2,FALSE)=0,\"\",VLOOKUP(BC32,'Footnotes list'!$D$9:$E$58,2,FALSE) ) )","v":""},null,null,null,null,{"$f":"IF(TRIM(BH32)=\"\", \"\", IF(VLOOKUP(BH32,'Footnotes list'!$D$9:$E$58,2,FALSE)=0,\"\",VLOOKUP(BH32,'Footnotes list'!$D$9:$E$58,2,FALSE) ) )","v":""},null,null,null,null,{"$f":"IF(TRIM(BM32)=\"\", \"\", IF(VLOOKUP(BM32,'Footnotes list'!$D$9:$E$58,2,FALSE)=0,\"\",VLOOKUP(BM32,'Footnotes list'!$D$9:$E$58,2,FALSE) ) )","v":""},null,null,null,null,{"$f":"IF(TRIM(BR32)=\"\", \"\", IF(VLOOKUP(BR32,'Footnotes list'!$D$9:$E$58,2,FALSE)=0,\"\",VLOOKUP(BR32,'Footnotes list'!$D$9:$E$58,2,FALSE) ) )","v":""},null,null,null,null,{"$f":"IF(TRIM(BW32)=\"\", \"\", IF(VLOOKUP(BW32,'Footnotes list'!$D$9:$E$58,2,FALSE)=0,\"\",VLOOKUP(BW32,'Footnotes list'!$D$9:$E$58,2,FALSE) ) )","v":""},null,null,null,null,{"$f":"IF(TRIM(CB32)=\"\", \"\", IF(VLOOKUP(CB32,'Footnotes list'!$D$9:$E$58,2,FALSE)=0,\"\",VLOOKUP(CB32,'Footnotes list'!$D$9:$E$58,2,FALSE) ) )","v":""},null,null,null,null,{"$f":"IF(TRIM(CG32)=\"\", \"\", IF(VLOOKUP(CG32,'Footnotes list'!$D$9:$E$58,2,FALSE)=0,\"\",VLOOKUP(CG32,'Footnotes list'!$D$9:$E$58,2,FALSE) ) )","v":""},null,null,null,null,{"$f":"IF(TRIM(CL32)=\"\", \"\", IF(VLOOKUP(CL32,'Footnotes list'!$D$9:$E$58,2,FALSE)=0,\"\",VLOOKUP(CL32,'Footnotes list'!$D$9:$E$58,2,FALSE) ) )","v":""},null,null,null,null,{"$f":"IF(TRIM(CQ32)=\"\", \"\", IF(VLOOKUP(CQ32,'Footnotes list'!$D$9:$E$58,2,FALSE)=0,\"\",VLOOKUP(CQ32,'Footnotes list'!$D$9:$E$58,2,FALSE) ) )","v":""},null,null,null,null,{"$f":"IF(TRIM(CV32)=\"\", \"\", IF(VLOOKUP(CV32,'Footnotes list'!$D$9:$E$58,2,FALSE)=0,\"\",VLOOKUP(CV32,'Footnotes list'!$D$9:$E$58,2,FALSE) ) )","v":""},null,null,null,null,{"$f":"IF(TRIM(DA32)=\"\", \"\", IF(VLOOKUP(DA32,'Footnotes list'!$D$9:$E$58,2,FALSE)=0,\"\",VLOOKUP(DA32,'Footnotes list'!$D$9:$E$58,2,FALSE) ) )","v":""},null,null,null,null,{"$f":"IF(TRIM(DF32)=\"\", \"\", IF(VLOOKUP(DF32,'Footnotes list'!$D$9:$E$58,2,FALSE)=0,\"\",VLOOKUP(DF32,'Footnotes list'!$D$9:$E$58,2,FALSE) ) )","v":""},null,null,null,null,{"$f":"IF(TRIM(DK32)=\"\", \"\", IF(VLOOKUP(DK32,'Footnotes list'!$D$9:$E$58,2,FALSE)=0,\"\",VLOOKUP(DK32,'Footnotes list'!$D$9:$E$58,2,FALSE) ) )","v":""},null,null,null,null,{"$f":"IF(TRIM(DP32)=\"\", \"\", IF(VLOOKUP(DP32,'Footnotes list'!$D$9:$E$58,2,FALSE)=0,\"\",VLOOKUP(DP32,'Footnotes list'!$D$9:$E$58,2,FALSE) ) )","v":""},null,null,null,null,{"$f":"IF(TRIM(DU32)=\"\", \"\", IF(VLOOKUP(DU32,'Footnotes list'!$D$9:$E$58,2,FALSE)=0,\"\",VLOOKUP(DU32,'Footnotes list'!$D$9:$E$58,2,FALSE) ) )","v":""},null,null,null,null,{"$f":"IF(TRIM(DZ32)=\"\", \"\", IF(VLOOKUP(DZ32,'Footnotes list'!$D$9:$E$58,2,FALSE)=0,\"\",VLOOKUP(DZ32,'Footnotes list'!$D$9:$E$58,2,FALSE) ) )","v":""},null,null,null,null,{"$f":"IF(TRIM(EE32)=\"\", \"\", IF(VLOOKUP(EE32,'Footnotes list'!$D$9:$E$58,2,FALSE)=0,\"\",VLOOKUP(EE32,'Footnotes list'!$D$9:$E$58,2,FALSE) ) )","v":""},null,null,null,null,{"$f":"IF(TRIM(EJ32)=\"\", \"\", IF(VLOOKUP(EJ32,'Footnotes list'!$D$9:$E$58,2,FALSE)=0,\"\",VLOOKUP(EJ32,'Footnotes list'!$D$9:$E$58,2,FALSE) ) )","v":""},null,null,null,null,{"$f":"IF(TRIM(EO32)=\"\", \"\", IF(VLOOKUP(EO32,'Footnotes list'!$D$9:$E$58,2,FALSE)=0,\"\",VLOOKUP(EO32,'Footnotes list'!$D$9:$E$58,2,FALSE) ) )","v":""},null,null,null,null,{"$f":"IF(TRIM(ET32)=\"\", \"\", IF(VLOOKUP(ET32,'Footnotes list'!$D$9:$E$58,2,FALSE)=0,\"\",VLOOKUP(ET32,'Footnotes list'!$D$9:$E$58,2,FALSE) ) )","v":""},null,null,null,null,{"$f":"IF(TRIM(EY32)=\"\", \"\", IF(VLOOKUP(EY32,'Footnotes list'!$D$9:$E$58,2,FALSE)=0,\"\",VLOOKUP(EY32,'Footnotes list'!$D$9:$E$58,2,FALSE) ) )","v":""}]
[null,null,"C","MKT","market activities, including:",null,null,null,null,null,{"$f":"IF(TRIM(J33)=\"\", \"\", IF(VLOOKUP(J33,'Footnotes list'!$D$9:$E$58,2,FALSE)=0,\"\",VLOOKUP(J33,'Footnotes list'!$D$9:$E$58,2,FALSE) ) )","v":""},null,null,null,null,{"$f":"IF(TRIM(O33)=\"\", \"\", IF(VLOOKUP(O33,'Footnotes list'!$D$9:$E$58,2,FALSE)=0,\"\",VLOOKUP(O33,'Footnotes list'!$D$9:$E$58,2,FALSE) ) )","v":""},null,null,null,null,{"$f":"IF(TRIM(T33)=\"\", \"\", IF(VLOOKUP(T33,'Footnotes list'!$D$9:$E$58,2,FALSE)=0,\"\",VLOOKUP(T33,'Footnotes list'!$D$9:$E$58,2,FALSE) ) )","v":""},null,null,null,null,{"$f":"IF(TRIM(Y33)=\"\", \"\", IF(VLOOKUP(Y33,'Footnotes list'!$D$9:$E$58,2,FALSE)=0,\"\",VLOOKUP(Y33,'Footnotes list'!$D$9:$E$58,2,FALSE) ) )","v":""},null,null,null,null,{"$f":"IF(TRIM(AD33)=\"\", \"\", IF(VLOOKUP(AD33,'Footnotes list'!$D$9:$E$58,2,FALSE)=0,\"\",VLOOKUP(AD33,'Footnotes list'!$D$9:$E$58,2,FALSE) ) )","v":""},null,null,null,null,{"$f":"IF(TRIM(AI33)=\"\", \"\", IF(VLOOKUP(AI33,'Footnotes list'!$D$9:$E$58,2,FALSE)=0,\"\",VLOOKUP(AI33,'Footnotes list'!$D$9:$E$58,2,FALSE) ) )","v":""},null,null,null,null,{"$f":"IF(TRIM(AN33)=\"\", \"\", IF(VLOOKUP(AN33,'Footnotes list'!$D$9:$E$58,2,FALSE)=0,\"\",VLOOKUP(AN33,'Footnotes list'!$D$9:$E$58,2,FALSE) ) )","v":""},null,null,null,null,{"$f":"IF(TRIM(AS33)=\"\", \"\", IF(VLOOKUP(AS33,'Footnotes list'!$D$9:$E$58,2,FALSE)=0,\"\",VLOOKUP(AS33,'Footnotes list'!$D$9:$E$58,2,FALSE) ) )","v":""},null,null,null,null,{"$f":"IF(TRIM(AX33)=\"\", \"\", IF(VLOOKUP(AX33,'Footnotes list'!$D$9:$E$58,2,FALSE)=0,\"\",VLOOKUP(AX33,'Footnotes list'!$D$9:$E$58,2,FALSE) ) )","v":""},null,null,null,null,{"$f":"IF(TRIM(BC33)=\"\", \"\", IF(VLOOKUP(BC33,'Footnotes list'!$D$9:$E$58,2,FALSE)=0,\"\",VLOOKUP(BC33,'Footnotes list'!$D$9:$E$58,2,FALSE) ) )","v":""},null,null,null,null,{"$f":"IF(TRIM(BH33)=\"\", \"\", IF(VLOOKUP(BH33,'Footnotes list'!$D$9:$E$58,2,FALSE)=0,\"\",VLOOKUP(BH33,'Footnotes list'!$D$9:$E$58,2,FALSE) ) )","v":""},null,null,null,null,{"$f":"IF(TRIM(BM33)=\"\", \"\", IF(VLOOKUP(BM33,'Footnotes list'!$D$9:$E$58,2,FALSE)=0,\"\",VLOOKUP(BM33,'Footnotes list'!$D$9:$E$58,2,FALSE) ) )","v":""},null,null,null,null,{"$f":"IF(TRIM(BR33)=\"\", \"\", IF(VLOOKUP(BR33,'Footnotes list'!$D$9:$E$58,2,FALSE)=0,\"\",VLOOKUP(BR33,'Footnotes list'!$D$9:$E$58,2,FALSE) ) )","v":""},null,null,null,null,{"$f":"IF(TRIM(BW33)=\"\", \"\", IF(VLOOKUP(BW33,'Footnotes list'!$D$9:$E$58,2,FALSE)=0,\"\",VLOOKUP(BW33,'Footnotes list'!$D$9:$E$58,2,FALSE) ) )","v":""},null,null,null,null,{"$f":"IF(TRIM(CB33)=\"\", \"\", IF(VLOOKUP(CB33,'Footnotes list'!$D$9:$E$58,2,FALSE)=0,\"\",VLOOKUP(CB33,'Footnotes list'!$D$9:$E$58,2,FALSE) ) )","v":""},null,null,null,null,{"$f":"IF(TRIM(CG33)=\"\", \"\", IF(VLOOKUP(CG33,'Footnotes list'!$D$9:$E$58,2,FALSE)=0,\"\",VLOOKUP(CG33,'Footnotes list'!$D$9:$E$58,2,FALSE) ) )","v":""},null,null,null,null,{"$f":"IF(TRIM(CL33)=\"\", \"\", IF(VLOOKUP(CL33,'Footnotes list'!$D$9:$E$58,2,FALSE)=0,\"\",VLOOKUP(CL33,'Footnotes list'!$D$9:$E$58,2,FALSE) ) )","v":""},null,null,null,null,{"$f":"IF(TRIM(CQ33)=\"\", \"\", IF(VLOOKUP(CQ33,'Footnotes list'!$D$9:$E$58,2,FALSE)=0,\"\",VLOOKUP(CQ33,'Footnotes list'!$D$9:$E$58,2,FALSE) ) )","v":""},null,null,null,null,{"$f":"IF(TRIM(CV33)=\"\", \"\", IF(VLOOKUP(CV33,'Footnotes list'!$D$9:$E$58,2,FALSE)=0,\"\",VLOOKUP(CV33,'Footnotes list'!$D$9:$E$58,2,FALSE) ) )","v":""},null,null,null,null,{"$f":"IF(TRIM(DA33)=\"\", \"\", IF(VLOOKUP(DA33,'Footnotes list'!$D$9:$E$58,2,FALSE)=0,\"\",VLOOKUP(DA33,'Footnotes list'!$D$9:$E$58,2,FALSE) ) )","v":""},null,null,null,null,{"$f":"IF(TRIM(DF33)=\"\", \"\", IF(VLOOKUP(DF33,'Footnotes list'!$D$9:$E$58,2,FALSE)=0,\"\",VLOOKUP(DF33,'Footnotes list'!$D$9:$E$58,2,FALSE) ) )","v":""},null,null,null,null,{"$f":"IF(TRIM(DK33)=\"\", \"\", IF(VLOOKUP(DK33,'Footnotes list'!$D$9:$E$58,2,FALSE)=0,\"\",VLOOKUP(DK33,'Footnotes list'!$D$9:$E$58,2,FALSE) ) )","v":""},null,null,null,null,{"$f":"IF(TRIM(DP33)=\"\", \"\", IF(VLOOKUP(DP33,'Footnotes list'!$D$9:$E$58,2,FALSE)=0,\"\",VLOOKUP(DP33,'Footnotes list'!$D$9:$E$58,2,FALSE) ) )","v":""},null,null,null,null,{"$f":"IF(TRIM(DU33)=\"\", \"\", IF(VLOOKUP(DU33,'Footnotes list'!$D$9:$E$58,2,FALSE)=0,\"\",VLOOKUP(DU33,'Footnotes list'!$D$9:$E$58,2,FALSE) ) )","v":""},null,null,null,null,{"$f":"IF(TRIM(DZ33)=\"\", \"\", IF(VLOOKUP(DZ33,'Footnotes list'!$D$9:$E$58,2,FALSE)=0,\"\",VLOOKUP(DZ33,'Footnotes list'!$D$9:$E$58,2,FALSE) ) )","v":""},null,null,null,null,{"$f":"IF(TRIM(EE33)=\"\", \"\", IF(VLOOKUP(EE33,'Footnotes list'!$D$9:$E$58,2,FALSE)=0,\"\",VLOOKUP(EE33,'Footnotes list'!$D$9:$E$58,2,FALSE) ) )","v":""},null,null,null,null,{"$f":"IF(TRIM(EJ33)=\"\", \"\", IF(VLOOKUP(EJ33,'Footnotes list'!$D$9:$E$58,2,FALSE)=0,\"\",VLOOKUP(EJ33,'Footnotes list'!$D$9:$E$58,2,FALSE) ) )","v":""},null,null,null,null,{"$f":"IF(TRIM(EO33)=\"\", \"\", IF(VLOOKUP(EO33,'Footnotes list'!$D$9:$E$58,2,FALSE)=0,\"\",VLOOKUP(EO33,'Footnotes list'!$D$9:$E$58,2,FALSE) ) )","v":""},null,null,null,null,{"$f":"IF(TRIM(ET33)=\"\", \"\", IF(VLOOKUP(ET33,'Footnotes list'!$D$9:$E$58,2,FALSE)=0,\"\",VLOOKUP(ET33,'Footnotes list'!$D$9:$E$58,2,FALSE) ) )","v":""},null,null,null,null,{"$f":"IF(TRIM(EY33)=\"\", \"\", IF(VLOOKUP(EY33,'Footnotes list'!$D$9:$E$58,2,FALSE)=0,\"\",VLOOKUP(EY33,'Footnotes list'!$D$9:$E$58,2,FALSE) ) )","v":""}]
[null,null,"C","ES_CS","environmental specific services",null,null,null,null,null,{"$f":"IF(TRIM(J34)=\"\", \"\", IF(VLOOKUP(J34,'Footnotes list'!$D$9:$E$58,2,FALSE)=0,\"\",VLOOKUP(J34,'Footnotes list'!$D$9:$E$58,2,FALSE) ) )","v":""},null,null,null,null,{"$f":"IF(TRIM(O34)=\"\", \"\", IF(VLOOKUP(O34,'Footnotes list'!$D$9:$E$58,2,FALSE)=0,\"\",VLOOKUP(O34,'Footnotes list'!$D$9:$E$58,2,FALSE) ) )","v":""},null,null,null,null,{"$f":"IF(TRIM(T34)=\"\", \"\", IF(VLOOKUP(T34,'Footnotes list'!$D$9:$E$58,2,FALSE)=0,\"\",VLOOKUP(T34,'Footnotes list'!$D$9:$E$58,2,FALSE) ) )","v":""},null,null,null,null,{"$f":"IF(TRIM(Y34)=\"\", \"\", IF(VLOOKUP(Y34,'Footnotes list'!$D$9:$E$58,2,FALSE)=0,\"\",VLOOKUP(Y34,'Footnotes list'!$D$9:$E$58,2,FALSE) ) )","v":""},null,null,null,null,{"$f":"IF(TRIM(AD34)=\"\", \"\", IF(VLOOKUP(AD34,'Footnotes list'!$D$9:$E$58,2,FALSE)=0,\"\",VLOOKUP(AD34,'Footnotes list'!$D$9:$E$58,2,FALSE) ) )","v":""},null,null,null,null,{"$f":"IF(TRIM(AI34)=\"\", \"\", IF(VLOOKUP(AI34,'Footnotes list'!$D$9:$E$58,2,FALSE)=0,\"\",VLOOKUP(AI34,'Footnotes list'!$D$9:$E$58,2,FALSE) ) )","v":""},null,null,null,null,{"$f":"IF(TRIM(AN34)=\"\", \"\", IF(VLOOKUP(AN34,'Footnotes list'!$D$9:$E$58,2,FALSE)=0,\"\",VLOOKUP(AN34,'Footnotes list'!$D$9:$E$58,2,FALSE) ) )","v":""},null,null,null,null,{"$f":"IF(TRIM(AS34)=\"\", \"\", IF(VLOOKUP(AS34,'Footnotes list'!$D$9:$E$58,2,FALSE)=0,\"\",VLOOKUP(AS34,'Footnotes list'!$D$9:$E$58,2,FALSE) ) )","v":""},null,null,null,null,{"$f":"IF(TRIM(AX34)=\"\", \"\", IF(VLOOKUP(AX34,'Footnotes list'!$D$9:$E$58,2,FALSE)=0,\"\",VLOOKUP(AX34,'Footnotes list'!$D$9:$E$58,2,FALSE) ) )","v":""},null,null,null,null,{"$f":"IF(TRIM(BC34)=\"\", \"\", IF(VLOOKUP(BC34,'Footnotes list'!$D$9:$E$58,2,FALSE)=0,\"\",VLOOKUP(BC34,'Footnotes list'!$D$9:$E$58,2,FALSE) ) )","v":""},null,null,null,null,{"$f":"IF(TRIM(BH34)=\"\", \"\", IF(VLOOKUP(BH34,'Footnotes list'!$D$9:$E$58,2,FALSE)=0,\"\",VLOOKUP(BH34,'Footnotes list'!$D$9:$E$58,2,FALSE) ) )","v":""},null,null,null,null,{"$f":"IF(TRIM(BM34)=\"\", \"\", IF(VLOOKUP(BM34,'Footnotes list'!$D$9:$E$58,2,FALSE)=0,\"\",VLOOKUP(BM34,'Footnotes list'!$D$9:$E$58,2,FALSE) ) )","v":""},null,null,null,null,{"$f":"IF(TRIM(BR34)=\"\", \"\", IF(VLOOKUP(BR34,'Footnotes list'!$D$9:$E$58,2,FALSE)=0,\"\",VLOOKUP(BR34,'Footnotes list'!$D$9:$E$58,2,FALSE) ) )","v":""},null,null,null,null,{"$f":"IF(TRIM(BW34)=\"\", \"\", IF(VLOOKUP(BW34,'Footnotes list'!$D$9:$E$58,2,FALSE)=0,\"\",VLOOKUP(BW34,'Footnotes list'!$D$9:$E$58,2,FALSE) ) )","v":""},null,null,null,null,{"$f":"IF(TRIM(CB34)=\"\", \"\", IF(VLOOKUP(CB34,'Footnotes list'!$D$9:$E$58,2,FALSE)=0,\"\",VLOOKUP(CB34,'Footnotes list'!$D$9:$E$58,2,FALSE) ) )","v":""},null,null,null,null,{"$f":"IF(TRIM(CG34)=\"\", \"\", IF(VLOOKUP(CG34,'Footnotes list'!$D$9:$E$58,2,FALSE)=0,\"\",VLOOKUP(CG34,'Footnotes list'!$D$9:$E$58,2,FALSE) ) )","v":""},null,null,null,null,{"$f":"IF(TRIM(CL34)=\"\", \"\", IF(VLOOKUP(CL34,'Footnotes list'!$D$9:$E$58,2,FALSE)=0,\"\",VLOOKUP(CL34,'Footnotes list'!$D$9:$E$58,2,FALSE) ) )","v":""},null,null,null,null,{"$f":"IF(TRIM(CQ34)=\"\", \"\", IF(VLOOKUP(CQ34,'Footnotes list'!$D$9:$E$58,2,FALSE)=0,\"\",VLOOKUP(CQ34,'Footnotes list'!$D$9:$E$58,2,FALSE) ) )","v":""},null,null,null,null,{"$f":"IF(TRIM(CV34)=\"\", \"\", IF(VLOOKUP(CV34,'Footnotes list'!$D$9:$E$58,2,FALSE)=0,\"\",VLOOKUP(CV34,'Footnotes list'!$D$9:$E$58,2,FALSE) ) )","v":""},null,null,null,null,{"$f":"IF(TRIM(DA34)=\"\", \"\", IF(VLOOKUP(DA34,'Footnotes list'!$D$9:$E$58,2,FALSE)=0,\"\",VLOOKUP(DA34,'Footnotes list'!$D$9:$E$58,2,FALSE) ) )","v":""},null,null,null,null,{"$f":"IF(TRIM(DF34)=\"\", \"\", IF(VLOOKUP(DF34,'Footnotes list'!$D$9:$E$58,2,FALSE)=0,\"\",VLOOKUP(DF34,'Footnotes list'!$D$9:$E$58,2,FALSE) ) )","v":""},null,null,null,null,{"$f":"IF(TRIM(DK34)=\"\", \"\", IF(VLOOKUP(DK34,'Footnotes list'!$D$9:$E$58,2,FALSE)=0,\"\",VLOOKUP(DK34,'Footnotes list'!$D$9:$E$58,2,FALSE) ) )","v":""},null,null,null,null,{"$f":"IF(TRIM(DP34)=\"\", \"\", IF(VLOOKUP(DP34,'Footnotes list'!$D$9:$E$58,2,FALSE)=0,\"\",VLOOKUP(DP34,'Footnotes list'!$D$9:$E$58,2,FALSE) ) )","v":""},null,null,null,null,{"$f":"IF(TRIM(DU34)=\"\", \"\", IF(VLOOKUP(DU34,'Footnotes list'!$D$9:$E$58,2,FALSE)=0,\"\",VLOOKUP(DU34,'Footnotes list'!$D$9:$E$58,2,FALSE) ) )","v":""},null,null,null,null,{"$f":"IF(TRIM(DZ34)=\"\", \"\", IF(VLOOKUP(DZ34,'Footnotes list'!$D$9:$E$58,2,FALSE)=0,\"\",VLOOKUP(DZ34,'Footnotes list'!$D$9:$E$58,2,FALSE) ) )","v":""},null,null,null,null,{"$f":"IF(TRIM(EE34)=\"\", \"\", IF(VLOOKUP(EE34,'Footnotes list'!$D$9:$E$58,2,FALSE)=0,\"\",VLOOKUP(EE34,'Footnotes list'!$D$9:$E$58,2,FALSE) ) )","v":""},null,null,null,null,{"$f":"IF(TRIM(EJ34)=\"\", \"\", IF(VLOOKUP(EJ34,'Footnotes list'!$D$9:$E$58,2,FALSE)=0,\"\",VLOOKUP(EJ34,'Footnotes list'!$D$9:$E$58,2,FALSE) ) )","v":""},null,null,null,null,{"$f":"IF(TRIM(EO34)=\"\", \"\", IF(VLOOKUP(EO34,'Footnotes list'!$D$9:$E$58,2,FALSE)=0,\"\",VLOOKUP(EO34,'Footnotes list'!$D$9:$E$58,2,FALSE) ) )","v":""},null,null,null,null,{"$f":"IF(TRIM(ET34)=\"\", \"\", IF(VLOOKUP(ET34,'Footnotes list'!$D$9:$E$58,2,FALSE)=0,\"\",VLOOKUP(ET34,'Footnotes list'!$D$9:$E$58,2,FALSE) ) )","v":""},null,null,null,null,{"$f":"IF(TRIM(EY34)=\"\", \"\", IF(VLOOKUP(EY34,'Footnotes list'!$D$9:$E$58,2,FALSE)=0,\"\",VLOOKUP(EY34,'Footnotes list'!$D$9:$E$58,2,FALSE) ) )","v":""}]
[null,null,"C","C_REP","cleaner and resource efficient products",null,null,null,null,null,{"$f":"IF(TRIM(J35)=\"\", \"\", IF(VLOOKUP(J35,'Footnotes list'!$D$9:$E$58,2,FALSE)=0,\"\",VLOOKUP(J35,'Footnotes list'!$D$9:$E$58,2,FALSE) ) )","v":""},null,null,null,null,{"$f":"IF(TRIM(O35)=\"\", \"\", IF(VLOOKUP(O35,'Footnotes list'!$D$9:$E$58,2,FALSE)=0,\"\",VLOOKUP(O35,'Footnotes list'!$D$9:$E$58,2,FALSE) ) )","v":""},null,null,null,null,{"$f":"IF(TRIM(T35)=\"\", \"\", IF(VLOOKUP(T35,'Footnotes list'!$D$9:$E$58,2,FALSE)=0,\"\",VLOOKUP(T35,'Footnotes list'!$D$9:$E$58,2,FALSE) ) )","v":""},null,null,null,null,{"$f":"IF(TRIM(Y35)=\"\", \"\", IF(VLOOKUP(Y35,'Footnotes list'!$D$9:$E$58,2,FALSE)=0,\"\",VLOOKUP(Y35,'Footnotes list'!$D$9:$E$58,2,FALSE) ) )","v":""},null,null,null,null,{"$f":"IF(TRIM(AD35)=\"\", \"\", IF(VLOOKUP(AD35,'Footnotes list'!$D$9:$E$58,2,FALSE)=0,\"\",VLOOKUP(AD35,'Footnotes list'!$D$9:$E$58,2,FALSE) ) )","v":""},null,null,null,null,{"$f":"IF(TRIM(AI35)=\"\", \"\", IF(VLOOKUP(AI35,'Footnotes list'!$D$9:$E$58,2,FALSE)=0,\"\",VLOOKUP(AI35,'Footnotes list'!$D$9:$E$58,2,FALSE) ) )","v":""},null,null,null,null,{"$f":"IF(TRIM(AN35)=\"\", \"\", IF(VLOOKUP(AN35,'Footnotes list'!$D$9:$E$58,2,FALSE)=0,\"\",VLOOKUP(AN35,'Footnotes list'!$D$9:$E$58,2,FALSE) ) )","v":""},null,null,null,null,{"$f":"IF(TRIM(AS35)=\"\", \"\", IF(VLOOKUP(AS35,'Footnotes list'!$D$9:$E$58,2,FALSE)=0,\"\",VLOOKUP(AS35,'Footnotes list'!$D$9:$E$58,2,FALSE) ) )","v":""},null,null,null,null,{"$f":"IF(TRIM(AX35)=\"\", \"\", IF(VLOOKUP(AX35,'Footnotes list'!$D$9:$E$58,2,FALSE)=0,\"\",VLOOKUP(AX35,'Footnotes list'!$D$9:$E$58,2,FALSE) ) )","v":""},null,null,null,null,{"$f":"IF(TRIM(BC35)=\"\", \"\", IF(VLOOKUP(BC35,'Footnotes list'!$D$9:$E$58,2,FALSE)=0,\"\",VLOOKUP(BC35,'Footnotes list'!$D$9:$E$58,2,FALSE) ) )","v":""},null,null,null,null,{"$f":"IF(TRIM(BH35)=\"\", \"\", IF(VLOOKUP(BH35,'Footnotes list'!$D$9:$E$58,2,FALSE)=0,\"\",VLOOKUP(BH35,'Footnotes list'!$D$9:$E$58,2,FALSE) ) )","v":""},null,null,null,null,{"$f":"IF(TRIM(BM35)=\"\", \"\", IF(VLOOKUP(BM35,'Footnotes list'!$D$9:$E$58,2,FALSE)=0,\"\",VLOOKUP(BM35,'Footnotes list'!$D$9:$E$58,2,FALSE) ) )","v":""},null,null,null,null,{"$f":"IF(TRIM(BR35)=\"\", \"\", IF(VLOOKUP(BR35,'Footnotes list'!$D$9:$E$58,2,FALSE)=0,\"\",VLOOKUP(BR35,'Footnotes list'!$D$9:$E$58,2,FALSE) ) )","v":""},null,null,null,null,{"$f":"IF(TRIM(BW35)=\"\", \"\", IF(VLOOKUP(BW35,'Footnotes list'!$D$9:$E$58,2,FALSE)=0,\"\",VLOOKUP(BW35,'Footnotes list'!$D$9:$E$58,2,FALSE) ) )","v":""},null,null,null,null,{"$f":"IF(TRIM(CB35)=\"\", \"\", IF(VLOOKUP(CB35,'Footnotes list'!$D$9:$E$58,2,FALSE)=0,\"\",VLOOKUP(CB35,'Footnotes list'!$D$9:$E$58,2,FALSE) ) )","v":""},null,null,null,null,{"$f":"IF(TRIM(CG35)=\"\", \"\", IF(VLOOKUP(CG35,'Footnotes list'!$D$9:$E$58,2,FALSE)=0,\"\",VLOOKUP(CG35,'Footnotes list'!$D$9:$E$58,2,FALSE) ) )","v":""},null,null,null,null,{"$f":"IF(TRIM(CL35)=\"\", \"\", IF(VLOOKUP(CL35,'Footnotes list'!$D$9:$E$58,2,FALSE)=0,\"\",VLOOKUP(CL35,'Footnotes list'!$D$9:$E$58,2,FALSE) ) )","v":""},null,null,null,null,{"$f":"IF(TRIM(CQ35)=\"\", \"\", IF(VLOOKUP(CQ35,'Footnotes list'!$D$9:$E$58,2,FALSE)=0,\"\",VLOOKUP(CQ35,'Footnotes list'!$D$9:$E$58,2,FALSE) ) )","v":""},null,null,null,null,{"$f":"IF(TRIM(CV35)=\"\", \"\", IF(VLOOKUP(CV35,'Footnotes list'!$D$9:$E$58,2,FALSE)=0,\"\",VLOOKUP(CV35,'Footnotes list'!$D$9:$E$58,2,FALSE) ) )","v":""},null,null,null,null,{"$f":"IF(TRIM(DA35)=\"\", \"\", IF(VLOOKUP(DA35,'Footnotes list'!$D$9:$E$58,2,FALSE)=0,\"\",VLOOKUP(DA35,'Footnotes list'!$D$9:$E$58,2,FALSE) ) )","v":""},null,null,null,null,{"$f":"IF(TRIM(DF35)=\"\", \"\", IF(VLOOKUP(DF35,'Footnotes list'!$D$9:$E$58,2,FALSE)=0,\"\",VLOOKUP(DF35,'Footnotes list'!$D$9:$E$58,2,FALSE) ) )","v":""},null,null,null,null,{"$f":"IF(TRIM(DK35)=\"\", \"\", IF(VLOOKUP(DK35,'Footnotes list'!$D$9:$E$58,2,FALSE)=0,\"\",VLOOKUP(DK35,'Footnotes list'!$D$9:$E$58,2,FALSE) ) )","v":""},null,null,null,null,{"$f":"IF(TRIM(DP35)=\"\", \"\", IF(VLOOKUP(DP35,'Footnotes list'!$D$9:$E$58,2,FALSE)=0,\"\",VLOOKUP(DP35,'Footnotes list'!$D$9:$E$58,2,FALSE) ) )","v":""},null,null,null,null,{"$f":"IF(TRIM(DU35)=\"\", \"\", IF(VLOOKUP(DU35,'Footnotes list'!$D$9:$E$58,2,FALSE)=0,\"\",VLOOKUP(DU35,'Footnotes list'!$D$9:$E$58,2,FALSE) ) )","v":""},null,null,null,null,{"$f":"IF(TRIM(DZ35)=\"\", \"\", IF(VLOOKUP(DZ35,'Footnotes list'!$D$9:$E$58,2,FALSE)=0,\"\",VLOOKUP(DZ35,'Footnotes list'!$D$9:$E$58,2,FALSE) ) )","v":""},null,null,null,null,{"$f":"IF(TRIM(EE35)=\"\", \"\", IF(VLOOKUP(EE35,'Footnotes list'!$D$9:$E$58,2,FALSE)=0,\"\",VLOOKUP(EE35,'Footnotes list'!$D$9:$E$58,2,FALSE) ) )","v":""},null,null,null,null,{"$f":"IF(TRIM(EJ35)=\"\", \"\", IF(VLOOKUP(EJ35,'Footnotes list'!$D$9:$E$58,2,FALSE)=0,\"\",VLOOKUP(EJ35,'Footnotes list'!$D$9:$E$58,2,FALSE) ) )","v":""},null,null,null,null,{"$f":"IF(TRIM(EO35)=\"\", \"\", IF(VLOOKUP(EO35,'Footnotes list'!$D$9:$E$58,2,FALSE)=0,\"\",VLOOKUP(EO35,'Footnotes list'!$D$9:$E$58,2,FALSE) ) )","v":""},null,null,null,null,{"$f":"IF(TRIM(ET35)=\"\", \"\", IF(VLOOKUP(ET35,'Footnotes list'!$D$9:$E$58,2,FALSE)=0,\"\",VLOOKUP(ET35,'Footnotes list'!$D$9:$E$58,2,FALSE) ) )","v":""},null,null,null,null,{"$f":"IF(TRIM(EY35)=\"\", \"\", IF(VLOOKUP(EY35,'Footnotes list'!$D$9:$E$58,2,FALSE)=0,\"\",VLOOKUP(EY35,'Footnotes list'!$D$9:$E$58,2,FALSE) ) )","v":""}]
[null,null,"C10-C12","TOT_EGSS","Total  C10 - C12 - Manufacture of food products, beverages and tobacco products, of which:",null,null,null,null,null,{"$f":"IF(TRIM(J36)=\"\", \"\", IF(VLOOKUP(J36,'Footnotes list'!$D$9:$E$58,2,FALSE)=0,\"\",VLOOKUP(J36,'Footnotes list'!$D$9:$E$58,2,FALSE) ) )","v":""},null,null,null,null,{"$f":"IF(TRIM(O36)=\"\", \"\", IF(VLOOKUP(O36,'Footnotes list'!$D$9:$E$58,2,FALSE)=0,\"\",VLOOKUP(O36,'Footnotes list'!$D$9:$E$58,2,FALSE) ) )","v":""},null,null,null,null,{"$f":"IF(TRIM(T36)=\"\", \"\", IF(VLOOKUP(T36,'Footnotes list'!$D$9:$E$58,2,FALSE)=0,\"\",VLOOKUP(T36,'Footnotes list'!$D$9:$E$58,2,FALSE) ) )","v":""},null,null,null,null,{"$f":"IF(TRIM(Y36)=\"\", \"\", IF(VLOOKUP(Y36,'Footnotes list'!$D$9:$E$58,2,FALSE)=0,\"\",VLOOKUP(Y36,'Footnotes list'!$D$9:$E$58,2,FALSE) ) )","v":""},null,null,null,null,{"$f":"IF(TRIM(AD36)=\"\", \"\", IF(VLOOKUP(AD36,'Footnotes list'!$D$9:$E$58,2,FALSE)=0,\"\",VLOOKUP(AD36,'Footnotes list'!$D$9:$E$58,2,FALSE) ) )","v":""},null,null,null,null,{"$f":"IF(TRIM(AI36)=\"\", \"\", IF(VLOOKUP(AI36,'Footnotes list'!$D$9:$E$58,2,FALSE)=0,\"\",VLOOKUP(AI36,'Footnotes list'!$D$9:$E$58,2,FALSE) ) )","v":""},null,null,null,null,{"$f":"IF(TRIM(AN36)=\"\", \"\", IF(VLOOKUP(AN36,'Footnotes list'!$D$9:$E$58,2,FALSE)=0,\"\",VLOOKUP(AN36,'Footnotes list'!$D$9:$E$58,2,FALSE) ) )","v":""},null,null,null,null,{"$f":"IF(TRIM(AS36)=\"\", \"\", IF(VLOOKUP(AS36,'Footnotes list'!$D$9:$E$58,2,FALSE)=0,\"\",VLOOKUP(AS36,'Footnotes list'!$D$9:$E$58,2,FALSE) ) )","v":""},null,null,null,null,{"$f":"IF(TRIM(AX36)=\"\", \"\", IF(VLOOKUP(AX36,'Footnotes list'!$D$9:$E$58,2,FALSE)=0,\"\",VLOOKUP(AX36,'Footnotes list'!$D$9:$E$58,2,FALSE) ) )","v":""},null,null,null,null,{"$f":"IF(TRIM(BC36)=\"\", \"\", IF(VLOOKUP(BC36,'Footnotes list'!$D$9:$E$58,2,FALSE)=0,\"\",VLOOKUP(BC36,'Footnotes list'!$D$9:$E$58,2,FALSE) ) )","v":""},null,null,null,null,{"$f":"IF(TRIM(BH36)=\"\", \"\", IF(VLOOKUP(BH36,'Footnotes list'!$D$9:$E$58,2,FALSE)=0,\"\",VLOOKUP(BH36,'Footnotes list'!$D$9:$E$58,2,FALSE) ) )","v":""},null,null,null,null,{"$f":"IF(TRIM(BM36)=\"\", \"\", IF(VLOOKUP(BM36,'Footnotes list'!$D$9:$E$58,2,FALSE)=0,\"\",VLOOKUP(BM36,'Footnotes list'!$D$9:$E$58,2,FALSE) ) )","v":""},null,null,null,null,{"$f":"IF(TRIM(BR36)=\"\", \"\", IF(VLOOKUP(BR36,'Footnotes list'!$D$9:$E$58,2,FALSE)=0,\"\",VLOOKUP(BR36,'Footnotes list'!$D$9:$E$58,2,FALSE) ) )","v":""},null,null,null,null,{"$f":"IF(TRIM(BW36)=\"\", \"\", IF(VLOOKUP(BW36,'Footnotes list'!$D$9:$E$58,2,FALSE)=0,\"\",VLOOKUP(BW36,'Footnotes list'!$D$9:$E$58,2,FALSE) ) )","v":""},null,null,null,null,{"$f":"IF(TRIM(CB36)=\"\", \"\", IF(VLOOKUP(CB36,'Footnotes list'!$D$9:$E$58,2,FALSE)=0,\"\",VLOOKUP(CB36,'Footnotes list'!$D$9:$E$58,2,FALSE) ) )","v":""},null,null,null,null,{"$f":"IF(TRIM(CG36)=\"\", \"\", IF(VLOOKUP(CG36,'Footnotes list'!$D$9:$E$58,2,FALSE)=0,\"\",VLOOKUP(CG36,'Footnotes list'!$D$9:$E$58,2,FALSE) ) )","v":""},null,null,null,null,{"$f":"IF(TRIM(CL36)=\"\", \"\", IF(VLOOKUP(CL36,'Footnotes list'!$D$9:$E$58,2,FALSE)=0,\"\",VLOOKUP(CL36,'Footnotes list'!$D$9:$E$58,2,FALSE) ) )","v":""},null,null,null,null,{"$f":"IF(TRIM(CQ36)=\"\", \"\", IF(VLOOKUP(CQ36,'Footnotes list'!$D$9:$E$58,2,FALSE)=0,\"\",VLOOKUP(CQ36,'Footnotes list'!$D$9:$E$58,2,FALSE) ) )","v":""},null,null,null,null,{"$f":"IF(TRIM(CV36)=\"\", \"\", IF(VLOOKUP(CV36,'Footnotes list'!$D$9:$E$58,2,FALSE)=0,\"\",VLOOKUP(CV36,'Footnotes list'!$D$9:$E$58,2,FALSE) ) )","v":""},null,null,null,null,{"$f":"IF(TRIM(DA36)=\"\", \"\", IF(VLOOKUP(DA36,'Footnotes list'!$D$9:$E$58,2,FALSE)=0,\"\",VLOOKUP(DA36,'Footnotes list'!$D$9:$E$58,2,FALSE) ) )","v":""},null,null,null,null,{"$f":"IF(TRIM(DF36)=\"\", \"\", IF(VLOOKUP(DF36,'Footnotes list'!$D$9:$E$58,2,FALSE)=0,\"\",VLOOKUP(DF36,'Footnotes list'!$D$9:$E$58,2,FALSE) ) )","v":""},null,null,null,null,{"$f":"IF(TRIM(DK36)=\"\", \"\", IF(VLOOKUP(DK36,'Footnotes list'!$D$9:$E$58,2,FALSE)=0,\"\",VLOOKUP(DK36,'Footnotes list'!$D$9:$E$58,2,FALSE) ) )","v":""},null,null,null,null,{"$f":"IF(TRIM(DP36)=\"\", \"\", IF(VLOOKUP(DP36,'Footnotes list'!$D$9:$E$58,2,FALSE)=0,\"\",VLOOKUP(DP36,'Footnotes list'!$D$9:$E$58,2,FALSE) ) )","v":""},null,null,null,null,{"$f":"IF(TRIM(DU36)=\"\", \"\", IF(VLOOKUP(DU36,'Footnotes list'!$D$9:$E$58,2,FALSE)=0,\"\",VLOOKUP(DU36,'Footnotes list'!$D$9:$E$58,2,FALSE) ) )","v":""},null,null,null,null,{"$f":"IF(TRIM(DZ36)=\"\", \"\", IF(VLOOKUP(DZ36,'Footnotes list'!$D$9:$E$58,2,FALSE)=0,\"\",VLOOKUP(DZ36,'Footnotes list'!$D$9:$E$58,2,FALSE) ) )","v":""},null,null,null,null,{"$f":"IF(TRIM(EE36)=\"\", \"\", IF(VLOOKUP(EE36,'Footnotes list'!$D$9:$E$58,2,FALSE)=0,\"\",VLOOKUP(EE36,'Footnotes list'!$D$9:$E$58,2,FALSE) ) )","v":""},null,null,null,null,{"$f":"IF(TRIM(EJ36)=\"\", \"\", IF(VLOOKUP(EJ36,'Footnotes list'!$D$9:$E$58,2,FALSE)=0,\"\",VLOOKUP(EJ36,'Footnotes list'!$D$9:$E$58,2,FALSE) ) )","v":""},null,null,null,null,{"$f":"IF(TRIM(EO36)=\"\", \"\", IF(VLOOKUP(EO36,'Footnotes list'!$D$9:$E$58,2,FALSE)=0,\"\",VLOOKUP(EO36,'Footnotes list'!$D$9:$E$58,2,FALSE) ) )","v":""},null,null,null,null,{"$f":"IF(TRIM(ET36)=\"\", \"\", IF(VLOOKUP(ET36,'Footnotes list'!$D$9:$E$58,2,FALSE)=0,\"\",VLOOKUP(ET36,'Footnotes list'!$D$9:$E$58,2,FALSE) ) )","v":""},null,null,null,null,{"$f":"IF(TRIM(EY36)=\"\", \"\", IF(VLOOKUP(EY36,'Footnotes list'!$D$9:$E$58,2,FALSE)=0,\"\",VLOOKUP(EY36,'Footnotes list'!$D$9:$E$58,2,FALSE) ) )","v":""}]
[null,null,"C10-C12","ANC","ancillary activities",null,null,null,null,null,{"$f":"IF(TRIM(J37)=\"\", \"\", IF(VLOOKUP(J37,'Footnotes list'!$D$9:$E$58,2,FALSE)=0,\"\",VLOOKUP(J37,'Footnotes list'!$D$9:$E$58,2,FALSE) ) )","v":""},null,null,null,null,{"$f":"IF(TRIM(O37)=\"\", \"\", IF(VLOOKUP(O37,'Footnotes list'!$D$9:$E$58,2,FALSE)=0,\"\",VLOOKUP(O37,'Footnotes list'!$D$9:$E$58,2,FALSE) ) )","v":""},null,null,null,null,{"$f":"IF(TRIM(T37)=\"\", \"\", IF(VLOOKUP(T37,'Footnotes list'!$D$9:$E$58,2,FALSE)=0,\"\",VLOOKUP(T37,'Footnotes list'!$D$9:$E$58,2,FALSE) ) )","v":""},null,null,null,null,{"$f":"IF(TRIM(Y37)=\"\", \"\", IF(VLOOKUP(Y37,'Footnotes list'!$D$9:$E$58,2,FALSE)=0,\"\",VLOOKUP(Y37,'Footnotes list'!$D$9:$E$58,2,FALSE) ) )","v":""},null,null,null,null,{"$f":"IF(TRIM(AD37)=\"\", \"\", IF(VLOOKUP(AD37,'Footnotes list'!$D$9:$E$58,2,FALSE)=0,\"\",VLOOKUP(AD37,'Footnotes list'!$D$9:$E$58,2,FALSE) ) )","v":""},null,null,null,null,{"$f":"IF(TRIM(AI37)=\"\", \"\", IF(VLOOKUP(AI37,'Footnotes list'!$D$9:$E$58,2,FALSE)=0,\"\",VLOOKUP(AI37,'Footnotes list'!$D$9:$E$58,2,FALSE) ) )","v":""},null,null,null,null,{"$f":"IF(TRIM(AN37)=\"\", \"\", IF(VLOOKUP(AN37,'Footnotes list'!$D$9:$E$58,2,FALSE)=0,\"\",VLOOKUP(AN37,'Footnotes list'!$D$9:$E$58,2,FALSE) ) )","v":""},null,null,null,null,{"$f":"IF(TRIM(AS37)=\"\", \"\", IF(VLOOKUP(AS37,'Footnotes list'!$D$9:$E$58,2,FALSE)=0,\"\",VLOOKUP(AS37,'Footnotes list'!$D$9:$E$58,2,FALSE) ) )","v":""},null,null,null,null,{"$f":"IF(TRIM(AX37)=\"\", \"\", IF(VLOOKUP(AX37,'Footnotes list'!$D$9:$E$58,2,FALSE)=0,\"\",VLOOKUP(AX37,'Footnotes list'!$D$9:$E$58,2,FALSE) ) )","v":""},null,null,null,null,{"$f":"IF(TRIM(BC37)=\"\", \"\", IF(VLOOKUP(BC37,'Footnotes list'!$D$9:$E$58,2,FALSE)=0,\"\",VLOOKUP(BC37,'Footnotes list'!$D$9:$E$58,2,FALSE) ) )","v":""},null,null,null,null,{"$f":"IF(TRIM(BH37)=\"\", \"\", IF(VLOOKUP(BH37,'Footnotes list'!$D$9:$E$58,2,FALSE)=0,\"\",VLOOKUP(BH37,'Footnotes list'!$D$9:$E$58,2,FALSE) ) )","v":""},null,null,null,null,{"$f":"IF(TRIM(BM37)=\"\", \"\", IF(VLOOKUP(BM37,'Footnotes list'!$D$9:$E$58,2,FALSE)=0,\"\",VLOOKUP(BM37,'Footnotes list'!$D$9:$E$58,2,FALSE) ) )","v":""},null,null,null,null,{"$f":"IF(TRIM(BR37)=\"\", \"\", IF(VLOOKUP(BR37,'Footnotes list'!$D$9:$E$58,2,FALSE)=0,\"\",VLOOKUP(BR37,'Footnotes list'!$D$9:$E$58,2,FALSE) ) )","v":""},null,null,null,null,{"$f":"IF(TRIM(BW37)=\"\", \"\", IF(VLOOKUP(BW37,'Footnotes list'!$D$9:$E$58,2,FALSE)=0,\"\",VLOOKUP(BW37,'Footnotes list'!$D$9:$E$58,2,FALSE) ) )","v":""},null,null,null,null,{"$f":"IF(TRIM(CB37)=\"\", \"\", IF(VLOOKUP(CB37,'Footnotes list'!$D$9:$E$58,2,FALSE)=0,\"\",VLOOKUP(CB37,'Footnotes list'!$D$9:$E$58,2,FALSE) ) )","v":""},null,null,null,null,{"$f":"IF(TRIM(CG37)=\"\", \"\", IF(VLOOKUP(CG37,'Footnotes list'!$D$9:$E$58,2,FALSE)=0,\"\",VLOOKUP(CG37,'Footnotes list'!$D$9:$E$58,2,FALSE) ) )","v":""},null,null,null,null,{"$f":"IF(TRIM(CL37)=\"\", \"\", IF(VLOOKUP(CL37,'Footnotes list'!$D$9:$E$58,2,FALSE)=0,\"\",VLOOKUP(CL37,'Footnotes list'!$D$9:$E$58,2,FALSE) ) )","v":""},null,null,null,null,{"$f":"IF(TRIM(CQ37)=\"\", \"\", IF(VLOOKUP(CQ37,'Footnotes list'!$D$9:$E$58,2,FALSE)=0,\"\",VLOOKUP(CQ37,'Footnotes list'!$D$9:$E$58,2,FALSE) ) )","v":""},null,null,null,null,{"$f":"IF(TRIM(CV37)=\"\", \"\", IF(VLOOKUP(CV37,'Footnotes list'!$D$9:$E$58,2,FALSE)=0,\"\",VLOOKUP(CV37,'Footnotes list'!$D$9:$E$58,2,FALSE) ) )","v":""},null,null,null,null,{"$f":"IF(TRIM(DA37)=\"\", \"\", IF(VLOOKUP(DA37,'Footnotes list'!$D$9:$E$58,2,FALSE)=0,\"\",VLOOKUP(DA37,'Footnotes list'!$D$9:$E$58,2,FALSE) ) )","v":""},null,null,null,null,{"$f":"IF(TRIM(DF37)=\"\", \"\", IF(VLOOKUP(DF37,'Footnotes list'!$D$9:$E$58,2,FALSE)=0,\"\",VLOOKUP(DF37,'Footnotes list'!$D$9:$E$58,2,FALSE) ) )","v":""},null,null,null,null,{"$f":"IF(TRIM(DK37)=\"\", \"\", IF(VLOOKUP(DK37,'Footnotes list'!$D$9:$E$58,2,FALSE)=0,\"\",VLOOKUP(DK37,'Footnotes list'!$D$9:$E$58,2,FALSE) ) )","v":""},null,null,null,null,{"$f":"IF(TRIM(DP37)=\"\", \"\", IF(VLOOKUP(DP37,'Footnotes list'!$D$9:$E$58,2,FALSE)=0,\"\",VLOOKUP(DP37,'Footnotes list'!$D$9:$E$58,2,FALSE) ) )","v":""},null,null,null,null,{"$f":"IF(TRIM(DU37)=\"\", \"\", IF(VLOOKUP(DU37,'Footnotes list'!$D$9:$E$58,2,FALSE)=0,\"\",VLOOKUP(DU37,'Footnotes list'!$D$9:$E$58,2,FALSE) ) )","v":""},null,null,null,null,{"$f":"IF(TRIM(DZ37)=\"\", \"\", IF(VLOOKUP(DZ37,'Footnotes list'!$D$9:$E$58,2,FALSE)=0,\"\",VLOOKUP(DZ37,'Footnotes list'!$D$9:$E$58,2,FALSE) ) )","v":""},null,null,null,null,{"$f":"IF(TRIM(EE37)=\"\", \"\", IF(VLOOKUP(EE37,'Footnotes list'!$D$9:$E$58,2,FALSE)=0,\"\",VLOOKUP(EE37,'Footnotes list'!$D$9:$E$58,2,FALSE) ) )","v":""},null,null,null,null,{"$f":"IF(TRIM(EJ37)=\"\", \"\", IF(VLOOKUP(EJ37,'Footnotes list'!$D$9:$E$58,2,FALSE)=0,\"\",VLOOKUP(EJ37,'Footnotes list'!$D$9:$E$58,2,FALSE) ) )","v":""},null,null,null,null,{"$f":"IF(TRIM(EO37)=\"\", \"\", IF(VLOOKUP(EO37,'Footnotes list'!$D$9:$E$58,2,FALSE)=0,\"\",VLOOKUP(EO37,'Footnotes list'!$D$9:$E$58,2,FALSE) ) )","v":""},null,null,null,null,{"$f":"IF(TRIM(ET37)=\"\", \"\", IF(VLOOKUP(ET37,'Footnotes list'!$D$9:$E$58,2,FALSE)=0,\"\",VLOOKUP(ET37,'Footnotes list'!$D$9:$E$58,2,FALSE) ) )","v":""},null,null,null,null,{"$f":"IF(TRIM(EY37)=\"\", \"\", IF(VLOOKUP(EY37,'Footnotes list'!$D$9:$E$58,2,FALSE)=0,\"\",VLOOKUP(EY37,'Footnotes list'!$D$9:$E$58,2,FALSE) ) )","v":""}]
[null,null,"C10-C12","NMKT","non-market activities",null,null,null,null,null,{"$f":"IF(TRIM(J38)=\"\", \"\", IF(VLOOKUP(J38,'Footnotes list'!$D$9:$E$58,2,FALSE)=0,\"\",VLOOKUP(J38,'Footnotes list'!$D$9:$E$58,2,FALSE) ) )","v":""},null,null,null,null,{"$f":"IF(TRIM(O38)=\"\", \"\", IF(VLOOKUP(O38,'Footnotes list'!$D$9:$E$58,2,FALSE)=0,\"\",VLOOKUP(O38,'Footnotes list'!$D$9:$E$58,2,FALSE) ) )","v":""},null,null,null,null,{"$f":"IF(TRIM(T38)=\"\", \"\", IF(VLOOKUP(T38,'Footnotes list'!$D$9:$E$58,2,FALSE)=0,\"\",VLOOKUP(T38,'Footnotes list'!$D$9:$E$58,2,FALSE) ) )","v":""},null,null,null,null,{"$f":"IF(TRIM(Y38)=\"\", \"\", IF(VLOOKUP(Y38,'Footnotes list'!$D$9:$E$58,2,FALSE)=0,\"\",VLOOKUP(Y38,'Footnotes list'!$D$9:$E$58,2,FALSE) ) )","v":""},null,null,null,null,{"$f":"IF(TRIM(AD38)=\"\", \"\", IF(VLOOKUP(AD38,'Footnotes list'!$D$9:$E$58,2,FALSE)=0,\"\",VLOOKUP(AD38,'Footnotes list'!$D$9:$E$58,2,FALSE) ) )","v":""},null,null,null,null,{"$f":"IF(TRIM(AI38)=\"\", \"\", IF(VLOOKUP(AI38,'Footnotes list'!$D$9:$E$58,2,FALSE)=0,\"\",VLOOKUP(AI38,'Footnotes list'!$D$9:$E$58,2,FALSE) ) )","v":""},null,null,null,null,{"$f":"IF(TRIM(AN38)=\"\", \"\", IF(VLOOKUP(AN38,'Footnotes list'!$D$9:$E$58,2,FALSE)=0,\"\",VLOOKUP(AN38,'Footnotes list'!$D$9:$E$58,2,FALSE) ) )","v":""},null,null,null,null,{"$f":"IF(TRIM(AS38)=\"\", \"\", IF(VLOOKUP(AS38,'Footnotes list'!$D$9:$E$58,2,FALSE)=0,\"\",VLOOKUP(AS38,'Footnotes list'!$D$9:$E$58,2,FALSE) ) )","v":""},null,null,null,null,{"$f":"IF(TRIM(AX38)=\"\", \"\", IF(VLOOKUP(AX38,'Footnotes list'!$D$9:$E$58,2,FALSE)=0,\"\",VLOOKUP(AX38,'Footnotes list'!$D$9:$E$58,2,FALSE) ) )","v":""},null,null,null,null,{"$f":"IF(TRIM(BC38)=\"\", \"\", IF(VLOOKUP(BC38,'Footnotes list'!$D$9:$E$58,2,FALSE)=0,\"\",VLOOKUP(BC38,'Footnotes list'!$D$9:$E$58,2,FALSE) ) )","v":""},null,null,null,null,{"$f":"IF(TRIM(BH38)=\"\", \"\", IF(VLOOKUP(BH38,'Footnotes list'!$D$9:$E$58,2,FALSE)=0,\"\",VLOOKUP(BH38,'Footnotes list'!$D$9:$E$58,2,FALSE) ) )","v":""},null,null,null,null,{"$f":"IF(TRIM(BM38)=\"\", \"\", IF(VLOOKUP(BM38,'Footnotes list'!$D$9:$E$58,2,FALSE)=0,\"\",VLOOKUP(BM38,'Footnotes list'!$D$9:$E$58,2,FALSE) ) )","v":""},null,null,null,null,{"$f":"IF(TRIM(BR38)=\"\", \"\", IF(VLOOKUP(BR38,'Footnotes list'!$D$9:$E$58,2,FALSE)=0,\"\",VLOOKUP(BR38,'Footnotes list'!$D$9:$E$58,2,FALSE) ) )","v":""},null,null,null,null,{"$f":"IF(TRIM(BW38)=\"\", \"\", IF(VLOOKUP(BW38,'Footnotes list'!$D$9:$E$58,2,FALSE)=0,\"\",VLOOKUP(BW38,'Footnotes list'!$D$9:$E$58,2,FALSE) ) )","v":""},null,null,null,null,{"$f":"IF(TRIM(CB38)=\"\", \"\", IF(VLOOKUP(CB38,'Footnotes list'!$D$9:$E$58,2,FALSE)=0,\"\",VLOOKUP(CB38,'Footnotes list'!$D$9:$E$58,2,FALSE) ) )","v":""},null,null,null,null,{"$f":"IF(TRIM(CG38)=\"\", \"\", IF(VLOOKUP(CG38,'Footnotes list'!$D$9:$E$58,2,FALSE)=0,\"\",VLOOKUP(CG38,'Footnotes list'!$D$9:$E$58,2,FALSE) ) )","v":""},null,null,null,null,{"$f":"IF(TRIM(CL38)=\"\", \"\", IF(VLOOKUP(CL38,'Footnotes list'!$D$9:$E$58,2,FALSE)=0,\"\",VLOOKUP(CL38,'Footnotes list'!$D$9:$E$58,2,FALSE) ) )","v":""},null,null,null,null,{"$f":"IF(TRIM(CQ38)=\"\", \"\", IF(VLOOKUP(CQ38,'Footnotes list'!$D$9:$E$58,2,FALSE)=0,\"\",VLOOKUP(CQ38,'Footnotes list'!$D$9:$E$58,2,FALSE) ) )","v":""},null,null,null,null,{"$f":"IF(TRIM(CV38)=\"\", \"\", IF(VLOOKUP(CV38,'Footnotes list'!$D$9:$E$58,2,FALSE)=0,\"\",VLOOKUP(CV38,'Footnotes list'!$D$9:$E$58,2,FALSE) ) )","v":""},null,null,null,null,{"$f":"IF(TRIM(DA38)=\"\", \"\", IF(VLOOKUP(DA38,'Footnotes list'!$D$9:$E$58,2,FALSE)=0,\"\",VLOOKUP(DA38,'Footnotes list'!$D$9:$E$58,2,FALSE) ) )","v":""},null,null,null,null,{"$f":"IF(TRIM(DF38)=\"\", \"\", IF(VLOOKUP(DF38,'Footnotes list'!$D$9:$E$58,2,FALSE)=0,\"\",VLOOKUP(DF38,'Footnotes list'!$D$9:$E$58,2,FALSE) ) )","v":""},null,null,null,null,{"$f":"IF(TRIM(DK38)=\"\", \"\", IF(VLOOKUP(DK38,'Footnotes list'!$D$9:$E$58,2,FALSE)=0,\"\",VLOOKUP(DK38,'Footnotes list'!$D$9:$E$58,2,FALSE) ) )","v":""},null,null,null,null,{"$f":"IF(TRIM(DP38)=\"\", \"\", IF(VLOOKUP(DP38,'Footnotes list'!$D$9:$E$58,2,FALSE)=0,\"\",VLOOKUP(DP38,'Footnotes list'!$D$9:$E$58,2,FALSE) ) )","v":""},null,null,null,null,{"$f":"IF(TRIM(DU38)=\"\", \"\", IF(VLOOKUP(DU38,'Footnotes list'!$D$9:$E$58,2,FALSE)=0,\"\",VLOOKUP(DU38,'Footnotes list'!$D$9:$E$58,2,FALSE) ) )","v":""},null,null,null,null,{"$f":"IF(TRIM(DZ38)=\"\", \"\", IF(VLOOKUP(DZ38,'Footnotes list'!$D$9:$E$58,2,FALSE)=0,\"\",VLOOKUP(DZ38,'Footnotes list'!$D$9:$E$58,2,FALSE) ) )","v":""},null,null,null,null,{"$f":"IF(TRIM(EE38)=\"\", \"\", IF(VLOOKUP(EE38,'Footnotes list'!$D$9:$E$58,2,FALSE)=0,\"\",VLOOKUP(EE38,'Footnotes list'!$D$9:$E$58,2,FALSE) ) )","v":""},null,null,null,null,{"$f":"IF(TRIM(EJ38)=\"\", \"\", IF(VLOOKUP(EJ38,'Footnotes list'!$D$9:$E$58,2,FALSE)=0,\"\",VLOOKUP(EJ38,'Footnotes list'!$D$9:$E$58,2,FALSE) ) )","v":""},null,null,null,null,{"$f":"IF(TRIM(EO38)=\"\", \"\", IF(VLOOKUP(EO38,'Footnotes list'!$D$9:$E$58,2,FALSE)=0,\"\",VLOOKUP(EO38,'Footnotes list'!$D$9:$E$58,2,FALSE) ) )","v":""},null,null,null,null,{"$f":"IF(TRIM(ET38)=\"\", \"\", IF(VLOOKUP(ET38,'Footnotes list'!$D$9:$E$58,2,FALSE)=0,\"\",VLOOKUP(ET38,'Footnotes list'!$D$9:$E$58,2,FALSE) ) )","v":""},null,null,null,null,{"$f":"IF(TRIM(EY38)=\"\", \"\", IF(VLOOKUP(EY38,'Footnotes list'!$D$9:$E$58,2,FALSE)=0,\"\",VLOOKUP(EY38,'Footnotes list'!$D$9:$E$58,2,FALSE) ) )","v":""}]
[null,null,"C10-C12","OWN_USE","activities for own final use",null,null,null,null,null,{"$f":"IF(TRIM(J39)=\"\", \"\", IF(VLOOKUP(J39,'Footnotes list'!$D$9:$E$58,2,FALSE)=0,\"\",VLOOKUP(J39,'Footnotes list'!$D$9:$E$58,2,FALSE) ) )","v":""},null,null,null,null,{"$f":"IF(TRIM(O39)=\"\", \"\", IF(VLOOKUP(O39,'Footnotes list'!$D$9:$E$58,2,FALSE)=0,\"\",VLOOKUP(O39,'Footnotes list'!$D$9:$E$58,2,FALSE) ) )","v":""},null,null,null,null,{"$f":"IF(TRIM(T39)=\"\", \"\", IF(VLOOKUP(T39,'Footnotes list'!$D$9:$E$58,2,FALSE)=0,\"\",VLOOKUP(T39,'Footnotes list'!$D$9:$E$58,2,FALSE) ) )","v":""},null,null,null,null,{"$f":"IF(TRIM(Y39)=\"\", \"\", IF(VLOOKUP(Y39,'Footnotes list'!$D$9:$E$58,2,FALSE)=0,\"\",VLOOKUP(Y39,'Footnotes list'!$D$9:$E$58,2,FALSE) ) )","v":""},null,null,null,null,{"$f":"IF(TRIM(AD39)=\"\", \"\", IF(VLOOKUP(AD39,'Footnotes list'!$D$9:$E$58,2,FALSE)=0,\"\",VLOOKUP(AD39,'Footnotes list'!$D$9:$E$58,2,FALSE) ) )","v":""},null,null,null,null,{"$f":"IF(TRIM(AI39)=\"\", \"\", IF(VLOOKUP(AI39,'Footnotes list'!$D$9:$E$58,2,FALSE)=0,\"\",VLOOKUP(AI39,'Footnotes list'!$D$9:$E$58,2,FALSE) ) )","v":""},null,null,null,null,{"$f":"IF(TRIM(AN39)=\"\", \"\", IF(VLOOKUP(AN39,'Footnotes list'!$D$9:$E$58,2,FALSE)=0,\"\",VLOOKUP(AN39,'Footnotes list'!$D$9:$E$58,2,FALSE) ) )","v":""},null,null,null,null,{"$f":"IF(TRIM(AS39)=\"\", \"\", IF(VLOOKUP(AS39,'Footnotes list'!$D$9:$E$58,2,FALSE)=0,\"\",VLOOKUP(AS39,'Footnotes list'!$D$9:$E$58,2,FALSE) ) )","v":""},null,null,null,null,{"$f":"IF(TRIM(AX39)=\"\", \"\", IF(VLOOKUP(AX39,'Footnotes list'!$D$9:$E$58,2,FALSE)=0,\"\",VLOOKUP(AX39,'Footnotes list'!$D$9:$E$58,2,FALSE) ) )","v":""},null,null,null,null,{"$f":"IF(TRIM(BC39)=\"\", \"\", IF(VLOOKUP(BC39,'Footnotes list'!$D$9:$E$58,2,FALSE)=0,\"\",VLOOKUP(BC39,'Footnotes list'!$D$9:$E$58,2,FALSE) ) )","v":""},null,null,null,null,{"$f":"IF(TRIM(BH39)=\"\", \"\", IF(VLOOKUP(BH39,'Footnotes list'!$D$9:$E$58,2,FALSE)=0,\"\",VLOOKUP(BH39,'Footnotes list'!$D$9:$E$58,2,FALSE) ) )","v":""},null,null,null,null,{"$f":"IF(TRIM(BM39)=\"\", \"\", IF(VLOOKUP(BM39,'Footnotes list'!$D$9:$E$58,2,FALSE)=0,\"\",VLOOKUP(BM39,'Footnotes list'!$D$9:$E$58,2,FALSE) ) )","v":""},null,null,null,null,{"$f":"IF(TRIM(BR39)=\"\", \"\", IF(VLOOKUP(BR39,'Footnotes list'!$D$9:$E$58,2,FALSE)=0,\"\",VLOOKUP(BR39,'Footnotes list'!$D$9:$E$58,2,FALSE) ) )","v":""},null,null,null,null,{"$f":"IF(TRIM(BW39)=\"\", \"\", IF(VLOOKUP(BW39,'Footnotes list'!$D$9:$E$58,2,FALSE)=0,\"\",VLOOKUP(BW39,'Footnotes list'!$D$9:$E$58,2,FALSE) ) )","v":""},null,null,null,null,{"$f":"IF(TRIM(CB39)=\"\", \"\", IF(VLOOKUP(CB39,'Footnotes list'!$D$9:$E$58,2,FALSE)=0,\"\",VLOOKUP(CB39,'Footnotes list'!$D$9:$E$58,2,FALSE) ) )","v":""},null,null,null,null,{"$f":"IF(TRIM(CG39)=\"\", \"\", IF(VLOOKUP(CG39,'Footnotes list'!$D$9:$E$58,2,FALSE)=0,\"\",VLOOKUP(CG39,'Footnotes list'!$D$9:$E$58,2,FALSE) ) )","v":""},null,null,null,null,{"$f":"IF(TRIM(CL39)=\"\", \"\", IF(VLOOKUP(CL39,'Footnotes list'!$D$9:$E$58,2,FALSE)=0,\"\",VLOOKUP(CL39,'Footnotes list'!$D$9:$E$58,2,FALSE) ) )","v":""},null,null,null,null,{"$f":"IF(TRIM(CQ39)=\"\", \"\", IF(VLOOKUP(CQ39,'Footnotes list'!$D$9:$E$58,2,FALSE)=0,\"\",VLOOKUP(CQ39,'Footnotes list'!$D$9:$E$58,2,FALSE) ) )","v":""},null,null,null,null,{"$f":"IF(TRIM(CV39)=\"\", \"\", IF(VLOOKUP(CV39,'Footnotes list'!$D$9:$E$58,2,FALSE)=0,\"\",VLOOKUP(CV39,'Footnotes list'!$D$9:$E$58,2,FALSE) ) )","v":""},null,null,null,null,{"$f":"IF(TRIM(DA39)=\"\", \"\", IF(VLOOKUP(DA39,'Footnotes list'!$D$9:$E$58,2,FALSE)=0,\"\",VLOOKUP(DA39,'Footnotes list'!$D$9:$E$58,2,FALSE) ) )","v":""},null,null,null,null,{"$f":"IF(TRIM(DF39)=\"\", \"\", IF(VLOOKUP(DF39,'Footnotes list'!$D$9:$E$58,2,FALSE)=0,\"\",VLOOKUP(DF39,'Footnotes list'!$D$9:$E$58,2,FALSE) ) )","v":""},null,null,null,null,{"$f":"IF(TRIM(DK39)=\"\", \"\", IF(VLOOKUP(DK39,'Footnotes list'!$D$9:$E$58,2,FALSE)=0,\"\",VLOOKUP(DK39,'Footnotes list'!$D$9:$E$58,2,FALSE) ) )","v":""},null,null,null,null,{"$f":"IF(TRIM(DP39)=\"\", \"\", IF(VLOOKUP(DP39,'Footnotes list'!$D$9:$E$58,2,FALSE)=0,\"\",VLOOKUP(DP39,'Footnotes list'!$D$9:$E$58,2,FALSE) ) )","v":""},null,null,null,null,{"$f":"IF(TRIM(DU39)=\"\", \"\", IF(VLOOKUP(DU39,'Footnotes list'!$D$9:$E$58,2,FALSE)=0,\"\",VLOOKUP(DU39,'Footnotes list'!$D$9:$E$58,2,FALSE) ) )","v":""},null,null,null,null,{"$f":"IF(TRIM(DZ39)=\"\", \"\", IF(VLOOKUP(DZ39,'Footnotes list'!$D$9:$E$58,2,FALSE)=0,\"\",VLOOKUP(DZ39,'Footnotes list'!$D$9:$E$58,2,FALSE) ) )","v":""},null,null,null,null,{"$f":"IF(TRIM(EE39)=\"\", \"\", IF(VLOOKUP(EE39,'Footnotes list'!$D$9:$E$58,2,FALSE)=0,\"\",VLOOKUP(EE39,'Footnotes list'!$D$9:$E$58,2,FALSE) ) )","v":""},null,null,null,null,{"$f":"IF(TRIM(EJ39)=\"\", \"\", IF(VLOOKUP(EJ39,'Footnotes list'!$D$9:$E$58,2,FALSE)=0,\"\",VLOOKUP(EJ39,'Footnotes list'!$D$9:$E$58,2,FALSE) ) )","v":""},null,null,null,null,{"$f":"IF(TRIM(EO39)=\"\", \"\", IF(VLOOKUP(EO39,'Footnotes list'!$D$9:$E$58,2,FALSE)=0,\"\",VLOOKUP(EO39,'Footnotes list'!$D$9:$E$58,2,FALSE) ) )","v":""},null,null,null,null,{"$f":"IF(TRIM(ET39)=\"\", \"\", IF(VLOOKUP(ET39,'Footnotes list'!$D$9:$E$58,2,FALSE)=0,\"\",VLOOKUP(ET39,'Footnotes list'!$D$9:$E$58,2,FALSE) ) )","v":""},null,null,null,null,{"$f":"IF(TRIM(EY39)=\"\", \"\", IF(VLOOKUP(EY39,'Footnotes list'!$D$9:$E$58,2,FALSE)=0,\"\",VLOOKUP(EY39,'Footnotes list'!$D$9:$E$58,2,FALSE) ) )","v":""}]
[null,null,"C10-C12","MKT","market activities, including:",null,null,null,null,null,{"$f":"IF(TRIM(J40)=\"\", \"\", IF(VLOOKUP(J40,'Footnotes list'!$D$9:$E$58,2,FALSE)=0,\"\",VLOOKUP(J40,'Footnotes list'!$D$9:$E$58,2,FALSE) ) )","v":""},null,null,null,null,{"$f":"IF(TRIM(O40)=\"\", \"\", IF(VLOOKUP(O40,'Footnotes list'!$D$9:$E$58,2,FALSE)=0,\"\",VLOOKUP(O40,'Footnotes list'!$D$9:$E$58,2,FALSE) ) )","v":""},null,null,null,null,{"$f":"IF(TRIM(T40)=\"\", \"\", IF(VLOOKUP(T40,'Footnotes list'!$D$9:$E$58,2,FALSE)=0,\"\",VLOOKUP(T40,'Footnotes list'!$D$9:$E$58,2,FALSE) ) )","v":""},null,null,null,null,{"$f":"IF(TRIM(Y40)=\"\", \"\", IF(VLOOKUP(Y40,'Footnotes list'!$D$9:$E$58,2,FALSE)=0,\"\",VLOOKUP(Y40,'Footnotes list'!$D$9:$E$58,2,FALSE) ) )","v":""},null,null,null,null,{"$f":"IF(TRIM(AD40)=\"\", \"\", IF(VLOOKUP(AD40,'Footnotes list'!$D$9:$E$58,2,FALSE)=0,\"\",VLOOKUP(AD40,'Footnotes list'!$D$9:$E$58,2,FALSE) ) )","v":""},null,null,null,null,{"$f":"IF(TRIM(AI40)=\"\", \"\", IF(VLOOKUP(AI40,'Footnotes list'!$D$9:$E$58,2,FALSE)=0,\"\",VLOOKUP(AI40,'Footnotes list'!$D$9:$E$58,2,FALSE) ) )","v":""},null,null,null,null,{"$f":"IF(TRIM(AN40)=\"\", \"\", IF(VLOOKUP(AN40,'Footnotes list'!$D$9:$E$58,2,FALSE)=0,\"\",VLOOKUP(AN40,'Footnotes list'!$D$9:$E$58,2,FALSE) ) )","v":""},null,null,null,null,{"$f":"IF(TRIM(AS40)=\"\", \"\", IF(VLOOKUP(AS40,'Footnotes list'!$D$9:$E$58,2,FALSE)=0,\"\",VLOOKUP(AS40,'Footnotes list'!$D$9:$E$58,2,FALSE) ) )","v":""},null,null,null,null,{"$f":"IF(TRIM(AX40)=\"\", \"\", IF(VLOOKUP(AX40,'Footnotes list'!$D$9:$E$58,2,FALSE)=0,\"\",VLOOKUP(AX40,'Footnotes list'!$D$9:$E$58,2,FALSE) ) )","v":""},null,null,null,null,{"$f":"IF(TRIM(BC40)=\"\", \"\", IF(VLOOKUP(BC40,'Footnotes list'!$D$9:$E$58,2,FALSE)=0,\"\",VLOOKUP(BC40,'Footnotes list'!$D$9:$E$58,2,FALSE) ) )","v":""},null,null,null,null,{"$f":"IF(TRIM(BH40)=\"\", \"\", IF(VLOOKUP(BH40,'Footnotes list'!$D$9:$E$58,2,FALSE)=0,\"\",VLOOKUP(BH40,'Footnotes list'!$D$9:$E$58,2,FALSE) ) )","v":""},null,null,null,null,{"$f":"IF(TRIM(BM40)=\"\", \"\", IF(VLOOKUP(BM40,'Footnotes list'!$D$9:$E$58,2,FALSE)=0,\"\",VLOOKUP(BM40,'Footnotes list'!$D$9:$E$58,2,FALSE) ) )","v":""},null,null,null,null,{"$f":"IF(TRIM(BR40)=\"\", \"\", IF(VLOOKUP(BR40,'Footnotes list'!$D$9:$E$58,2,FALSE)=0,\"\",VLOOKUP(BR40,'Footnotes list'!$D$9:$E$58,2,FALSE) ) )","v":""},null,null,null,null,{"$f":"IF(TRIM(BW40)=\"\", \"\", IF(VLOOKUP(BW40,'Footnotes list'!$D$9:$E$58,2,FALSE)=0,\"\",VLOOKUP(BW40,'Footnotes list'!$D$9:$E$58,2,FALSE) ) )","v":""},null,null,null,null,{"$f":"IF(TRIM(CB40)=\"\", \"\", IF(VLOOKUP(CB40,'Footnotes list'!$D$9:$E$58,2,FALSE)=0,\"\",VLOOKUP(CB40,'Footnotes list'!$D$9:$E$58,2,FALSE) ) )","v":""},null,null,null,null,{"$f":"IF(TRIM(CG40)=\"\", \"\", IF(VLOOKUP(CG40,'Footnotes list'!$D$9:$E$58,2,FALSE)=0,\"\",VLOOKUP(CG40,'Footnotes list'!$D$9:$E$58,2,FALSE) ) )","v":""},null,null,null,null,{"$f":"IF(TRIM(CL40)=\"\", \"\", IF(VLOOKUP(CL40,'Footnotes list'!$D$9:$E$58,2,FALSE)=0,\"\",VLOOKUP(CL40,'Footnotes list'!$D$9:$E$58,2,FALSE) ) )","v":""},null,null,null,null,{"$f":"IF(TRIM(CQ40)=\"\", \"\", IF(VLOOKUP(CQ40,'Footnotes list'!$D$9:$E$58,2,FALSE)=0,\"\",VLOOKUP(CQ40,'Footnotes list'!$D$9:$E$58,2,FALSE) ) )","v":""},null,null,null,null,{"$f":"IF(TRIM(CV40)=\"\", \"\", IF(VLOOKUP(CV40,'Footnotes list'!$D$9:$E$58,2,FALSE)=0,\"\",VLOOKUP(CV40,'Footnotes list'!$D$9:$E$58,2,FALSE) ) )","v":""},null,null,null,null,{"$f":"IF(TRIM(DA40)=\"\", \"\", IF(VLOOKUP(DA40,'Footnotes list'!$D$9:$E$58,2,FALSE)=0,\"\",VLOOKUP(DA40,'Footnotes list'!$D$9:$E$58,2,FALSE) ) )","v":""},null,null,null,null,{"$f":"IF(TRIM(DF40)=\"\", \"\", IF(VLOOKUP(DF40,'Footnotes list'!$D$9:$E$58,2,FALSE)=0,\"\",VLOOKUP(DF40,'Footnotes list'!$D$9:$E$58,2,FALSE) ) )","v":""},null,null,null,null,{"$f":"IF(TRIM(DK40)=\"\", \"\", IF(VLOOKUP(DK40,'Footnotes list'!$D$9:$E$58,2,FALSE)=0,\"\",VLOOKUP(DK40,'Footnotes list'!$D$9:$E$58,2,FALSE) ) )","v":""},null,null,null,null,{"$f":"IF(TRIM(DP40)=\"\", \"\", IF(VLOOKUP(DP40,'Footnotes list'!$D$9:$E$58,2,FALSE)=0,\"\",VLOOKUP(DP40,'Footnotes list'!$D$9:$E$58,2,FALSE) ) )","v":""},null,null,null,null,{"$f":"IF(TRIM(DU40)=\"\", \"\", IF(VLOOKUP(DU40,'Footnotes list'!$D$9:$E$58,2,FALSE)=0,\"\",VLOOKUP(DU40,'Footnotes list'!$D$9:$E$58,2,FALSE) ) )","v":""},null,null,null,null,{"$f":"IF(TRIM(DZ40)=\"\", \"\", IF(VLOOKUP(DZ40,'Footnotes list'!$D$9:$E$58,2,FALSE)=0,\"\",VLOOKUP(DZ40,'Footnotes list'!$D$9:$E$58,2,FALSE) ) )","v":""},null,null,null,null,{"$f":"IF(TRIM(EE40)=\"\", \"\", IF(VLOOKUP(EE40,'Footnotes list'!$D$9:$E$58,2,FALSE)=0,\"\",VLOOKUP(EE40,'Footnotes list'!$D$9:$E$58,2,FALSE) ) )","v":""},null,null,null,null,{"$f":"IF(TRIM(EJ40)=\"\", \"\", IF(VLOOKUP(EJ40,'Footnotes list'!$D$9:$E$58,2,FALSE)=0,\"\",VLOOKUP(EJ40,'Footnotes list'!$D$9:$E$58,2,FALSE) ) )","v":""},null,null,null,null,{"$f":"IF(TRIM(EO40)=\"\", \"\", IF(VLOOKUP(EO40,'Footnotes list'!$D$9:$E$58,2,FALSE)=0,\"\",VLOOKUP(EO40,'Footnotes list'!$D$9:$E$58,2,FALSE) ) )","v":""},null,null,null,null,{"$f":"IF(TRIM(ET40)=\"\", \"\", IF(VLOOKUP(ET40,'Footnotes list'!$D$9:$E$58,2,FALSE)=0,\"\",VLOOKUP(ET40,'Footnotes list'!$D$9:$E$58,2,FALSE) ) )","v":""},null,null,null,null,{"$f":"IF(TRIM(EY40)=\"\", \"\", IF(VLOOKUP(EY40,'Footnotes list'!$D$9:$E$58,2,FALSE)=0,\"\",VLOOKUP(EY40,'Footnotes list'!$D$9:$E$58,2,FALSE) ) )","v":""}]
[null,null,"C10-C12","ES_CS","environmental specific services",null,null,null,null,null,{"$f":"IF(TRIM(J41)=\"\", \"\", IF(VLOOKUP(J41,'Footnotes list'!$D$9:$E$58,2,FALSE)=0,\"\",VLOOKUP(J41,'Footnotes list'!$D$9:$E$58,2,FALSE) ) )","v":""},null,null,null,null,{"$f":"IF(TRIM(O41)=\"\", \"\", IF(VLOOKUP(O41,'Footnotes list'!$D$9:$E$58,2,FALSE)=0,\"\",VLOOKUP(O41,'Footnotes list'!$D$9:$E$58,2,FALSE) ) )","v":""},null,null,null,null,{"$f":"IF(TRIM(T41)=\"\", \"\", IF(VLOOKUP(T41,'Footnotes list'!$D$9:$E$58,2,FALSE)=0,\"\",VLOOKUP(T41,'Footnotes list'!$D$9:$E$58,2,FALSE) ) )","v":""},null,null,null,null,{"$f":"IF(TRIM(Y41)=\"\", \"\", IF(VLOOKUP(Y41,'Footnotes list'!$D$9:$E$58,2,FALSE)=0,\"\",VLOOKUP(Y41,'Footnotes list'!$D$9:$E$58,2,FALSE) ) )","v":""},null,null,null,null,{"$f":"IF(TRIM(AD41)=\"\", \"\", IF(VLOOKUP(AD41,'Footnotes list'!$D$9:$E$58,2,FALSE)=0,\"\",VLOOKUP(AD41,'Footnotes list'!$D$9:$E$58,2,FALSE) ) )","v":""},null,null,null,null,{"$f":"IF(TRIM(AI41)=\"\", \"\", IF(VLOOKUP(AI41,'Footnotes list'!$D$9:$E$58,2,FALSE)=0,\"\",VLOOKUP(AI41,'Footnotes list'!$D$9:$E$58,2,FALSE) ) )","v":""},null,null,null,null,{"$f":"IF(TRIM(AN41)=\"\", \"\", IF(VLOOKUP(AN41,'Footnotes list'!$D$9:$E$58,2,FALSE)=0,\"\",VLOOKUP(AN41,'Footnotes list'!$D$9:$E$58,2,FALSE) ) )","v":""},null,null,null,null,{"$f":"IF(TRIM(AS41)=\"\", \"\", IF(VLOOKUP(AS41,'Footnotes list'!$D$9:$E$58,2,FALSE)=0,\"\",VLOOKUP(AS41,'Footnotes list'!$D$9:$E$58,2,FALSE) ) )","v":""},null,null,null,null,{"$f":"IF(TRIM(AX41)=\"\", \"\", IF(VLOOKUP(AX41,'Footnotes list'!$D$9:$E$58,2,FALSE)=0,\"\",VLOOKUP(AX41,'Footnotes list'!$D$9:$E$58,2,FALSE) ) )","v":""},null,null,null,null,{"$f":"IF(TRIM(BC41)=\"\", \"\", IF(VLOOKUP(BC41,'Footnotes list'!$D$9:$E$58,2,FALSE)=0,\"\",VLOOKUP(BC41,'Footnotes list'!$D$9:$E$58,2,FALSE) ) )","v":""},null,null,null,null,{"$f":"IF(TRIM(BH41)=\"\", \"\", IF(VLOOKUP(BH41,'Footnotes list'!$D$9:$E$58,2,FALSE)=0,\"\",VLOOKUP(BH41,'Footnotes list'!$D$9:$E$58,2,FALSE) ) )","v":""},null,null,null,null,{"$f":"IF(TRIM(BM41)=\"\", \"\", IF(VLOOKUP(BM41,'Footnotes list'!$D$9:$E$58,2,FALSE)=0,\"\",VLOOKUP(BM41,'Footnotes list'!$D$9:$E$58,2,FALSE) ) )","v":""},null,null,null,null,{"$f":"IF(TRIM(BR41)=\"\", \"\", IF(VLOOKUP(BR41,'Footnotes list'!$D$9:$E$58,2,FALSE)=0,\"\",VLOOKUP(BR41,'Footnotes list'!$D$9:$E$58,2,FALSE) ) )","v":""},null,null,null,null,{"$f":"IF(TRIM(BW41)=\"\", \"\", IF(VLOOKUP(BW41,'Footnotes list'!$D$9:$E$58,2,FALSE)=0,\"\",VLOOKUP(BW41,'Footnotes list'!$D$9:$E$58,2,FALSE) ) )","v":""},null,null,null,null,{"$f":"IF(TRIM(CB41)=\"\", \"\", IF(VLOOKUP(CB41,'Footnotes list'!$D$9:$E$58,2,FALSE)=0,\"\",VLOOKUP(CB41,'Footnotes list'!$D$9:$E$58,2,FALSE) ) )","v":""},null,null,null,null,{"$f":"IF(TRIM(CG41)=\"\", \"\", IF(VLOOKUP(CG41,'Footnotes list'!$D$9:$E$58,2,FALSE)=0,\"\",VLOOKUP(CG41,'Footnotes list'!$D$9:$E$58,2,FALSE) ) )","v":""},null,null,null,null,{"$f":"IF(TRIM(CL41)=\"\", \"\", IF(VLOOKUP(CL41,'Footnotes list'!$D$9:$E$58,2,FALSE)=0,\"\",VLOOKUP(CL41,'Footnotes list'!$D$9:$E$58,2,FALSE) ) )","v":""},null,null,null,null,{"$f":"IF(TRIM(CQ41)=\"\", \"\", IF(VLOOKUP(CQ41,'Footnotes list'!$D$9:$E$58,2,FALSE)=0,\"\",VLOOKUP(CQ41,'Footnotes list'!$D$9:$E$58,2,FALSE) ) )","v":""},null,null,null,null,{"$f":"IF(TRIM(CV41)=\"\", \"\", IF(VLOOKUP(CV41,'Footnotes list'!$D$9:$E$58,2,FALSE)=0,\"\",VLOOKUP(CV41,'Footnotes list'!$D$9:$E$58,2,FALSE) ) )","v":""},null,null,null,null,{"$f":"IF(TRIM(DA41)=\"\", \"\", IF(VLOOKUP(DA41,'Footnotes list'!$D$9:$E$58,2,FALSE)=0,\"\",VLOOKUP(DA41,'Footnotes list'!$D$9:$E$58,2,FALSE) ) )","v":""},null,null,null,null,{"$f":"IF(TRIM(DF41)=\"\", \"\", IF(VLOOKUP(DF41,'Footnotes list'!$D$9:$E$58,2,FALSE)=0,\"\",VLOOKUP(DF41,'Footnotes list'!$D$9:$E$58,2,FALSE) ) )","v":""},null,null,null,null,{"$f":"IF(TRIM(DK41)=\"\", \"\", IF(VLOOKUP(DK41,'Footnotes list'!$D$9:$E$58,2,FALSE)=0,\"\",VLOOKUP(DK41,'Footnotes list'!$D$9:$E$58,2,FALSE) ) )","v":""},null,null,null,null,{"$f":"IF(TRIM(DP41)=\"\", \"\", IF(VLOOKUP(DP41,'Footnotes list'!$D$9:$E$58,2,FALSE)=0,\"\",VLOOKUP(DP41,'Footnotes list'!$D$9:$E$58,2,FALSE) ) )","v":""},null,null,null,null,{"$f":"IF(TRIM(DU41)=\"\", \"\", IF(VLOOKUP(DU41,'Footnotes list'!$D$9:$E$58,2,FALSE)=0,\"\",VLOOKUP(DU41,'Footnotes list'!$D$9:$E$58,2,FALSE) ) )","v":""},null,null,null,null,{"$f":"IF(TRIM(DZ41)=\"\", \"\", IF(VLOOKUP(DZ41,'Footnotes list'!$D$9:$E$58,2,FALSE)=0,\"\",VLOOKUP(DZ41,'Footnotes list'!$D$9:$E$58,2,FALSE) ) )","v":""},null,null,null,null,{"$f":"IF(TRIM(EE41)=\"\", \"\", IF(VLOOKUP(EE41,'Footnotes list'!$D$9:$E$58,2,FALSE)=0,\"\",VLOOKUP(EE41,'Footnotes list'!$D$9:$E$58,2,FALSE) ) )","v":""},null,null,null,null,{"$f":"IF(TRIM(EJ41)=\"\", \"\", IF(VLOOKUP(EJ41,'Footnotes list'!$D$9:$E$58,2,FALSE)=0,\"\",VLOOKUP(EJ41,'Footnotes list'!$D$9:$E$58,2,FALSE) ) )","v":""},null,null,null,null,{"$f":"IF(TRIM(EO41)=\"\", \"\", IF(VLOOKUP(EO41,'Footnotes list'!$D$9:$E$58,2,FALSE)=0,\"\",VLOOKUP(EO41,'Footnotes list'!$D$9:$E$58,2,FALSE) ) )","v":""},null,null,null,null,{"$f":"IF(TRIM(ET41)=\"\", \"\", IF(VLOOKUP(ET41,'Footnotes list'!$D$9:$E$58,2,FALSE)=0,\"\",VLOOKUP(ET41,'Footnotes list'!$D$9:$E$58,2,FALSE) ) )","v":""},null,null,null,null,{"$f":"IF(TRIM(EY41)=\"\", \"\", IF(VLOOKUP(EY41,'Footnotes list'!$D$9:$E$58,2,FALSE)=0,\"\",VLOOKUP(EY41,'Footnotes list'!$D$9:$E$58,2,FALSE) ) )","v":""}]
[null,null,"C10-C12","C_REP","cleaner and resource efficient products",null,null,null,null,null,{"$f":"IF(TRIM(J42)=\"\", \"\", IF(VLOOKUP(J42,'Footnotes list'!$D$9:$E$58,2,FALSE)=0,\"\",VLOOKUP(J42,'Footnotes list'!$D$9:$E$58,2,FALSE) ) )","v":""},null,null,null,null,{"$f":"IF(TRIM(O42)=\"\", \"\", IF(VLOOKUP(O42,'Footnotes list'!$D$9:$E$58,2,FALSE)=0,\"\",VLOOKUP(O42,'Footnotes list'!$D$9:$E$58,2,FALSE) ) )","v":""},null,null,null,null,{"$f":"IF(TRIM(T42)=\"\", \"\", IF(VLOOKUP(T42,'Footnotes list'!$D$9:$E$58,2,FALSE)=0,\"\",VLOOKUP(T42,'Footnotes list'!$D$9:$E$58,2,FALSE) ) )","v":""},null,null,null,null,{"$f":"IF(TRIM(Y42)=\"\", \"\", IF(VLOOKUP(Y42,'Footnotes list'!$D$9:$E$58,2,FALSE)=0,\"\",VLOOKUP(Y42,'Footnotes list'!$D$9:$E$58,2,FALSE) ) )","v":""},null,null,null,null,{"$f":"IF(TRIM(AD42)=\"\", \"\", IF(VLOOKUP(AD42,'Footnotes list'!$D$9:$E$58,2,FALSE)=0,\"\",VLOOKUP(AD42,'Footnotes list'!$D$9:$E$58,2,FALSE) ) )","v":""},null,null,null,null,{"$f":"IF(TRIM(AI42)=\"\", \"\", IF(VLOOKUP(AI42,'Footnotes list'!$D$9:$E$58,2,FALSE)=0,\"\",VLOOKUP(AI42,'Footnotes list'!$D$9:$E$58,2,FALSE) ) )","v":""},null,null,null,null,{"$f":"IF(TRIM(AN42)=\"\", \"\", IF(VLOOKUP(AN42,'Footnotes list'!$D$9:$E$58,2,FALSE)=0,\"\",VLOOKUP(AN42,'Footnotes list'!$D$9:$E$58,2,FALSE) ) )","v":""},null,null,null,null,{"$f":"IF(TRIM(AS42)=\"\", \"\", IF(VLOOKUP(AS42,'Footnotes list'!$D$9:$E$58,2,FALSE)=0,\"\",VLOOKUP(AS42,'Footnotes list'!$D$9:$E$58,2,FALSE) ) )","v":""},null,null,null,null,{"$f":"IF(TRIM(AX42)=\"\", \"\", IF(VLOOKUP(AX42,'Footnotes list'!$D$9:$E$58,2,FALSE)=0,\"\",VLOOKUP(AX42,'Footnotes list'!$D$9:$E$58,2,FALSE) ) )","v":""},null,null,null,null,{"$f":"IF(TRIM(BC42)=\"\", \"\", IF(VLOOKUP(BC42,'Footnotes list'!$D$9:$E$58,2,FALSE)=0,\"\",VLOOKUP(BC42,'Footnotes list'!$D$9:$E$58,2,FALSE) ) )","v":""},null,null,null,null,{"$f":"IF(TRIM(BH42)=\"\", \"\", IF(VLOOKUP(BH42,'Footnotes list'!$D$9:$E$58,2,FALSE)=0,\"\",VLOOKUP(BH42,'Footnotes list'!$D$9:$E$58,2,FALSE) ) )","v":""},null,null,null,null,{"$f":"IF(TRIM(BM42)=\"\", \"\", IF(VLOOKUP(BM42,'Footnotes list'!$D$9:$E$58,2,FALSE)=0,\"\",VLOOKUP(BM42,'Footnotes list'!$D$9:$E$58,2,FALSE) ) )","v":""},null,null,null,null,{"$f":"IF(TRIM(BR42)=\"\", \"\", IF(VLOOKUP(BR42,'Footnotes list'!$D$9:$E$58,2,FALSE)=0,\"\",VLOOKUP(BR42,'Footnotes list'!$D$9:$E$58,2,FALSE) ) )","v":""},null,null,null,null,{"$f":"IF(TRIM(BW42)=\"\", \"\", IF(VLOOKUP(BW42,'Footnotes list'!$D$9:$E$58,2,FALSE)=0,\"\",VLOOKUP(BW42,'Footnotes list'!$D$9:$E$58,2,FALSE) ) )","v":""},null,null,null,null,{"$f":"IF(TRIM(CB42)=\"\", \"\", IF(VLOOKUP(CB42,'Footnotes list'!$D$9:$E$58,2,FALSE)=0,\"\",VLOOKUP(CB42,'Footnotes list'!$D$9:$E$58,2,FALSE) ) )","v":""},null,null,null,null,{"$f":"IF(TRIM(CG42)=\"\", \"\", IF(VLOOKUP(CG42,'Footnotes list'!$D$9:$E$58,2,FALSE)=0,\"\",VLOOKUP(CG42,'Footnotes list'!$D$9:$E$58,2,FALSE) ) )","v":""},null,null,null,null,{"$f":"IF(TRIM(CL42)=\"\", \"\", IF(VLOOKUP(CL42,'Footnotes list'!$D$9:$E$58,2,FALSE)=0,\"\",VLOOKUP(CL42,'Footnotes list'!$D$9:$E$58,2,FALSE) ) )","v":""},null,null,null,null,{"$f":"IF(TRIM(CQ42)=\"\", \"\", IF(VLOOKUP(CQ42,'Footnotes list'!$D$9:$E$58,2,FALSE)=0,\"\",VLOOKUP(CQ42,'Footnotes list'!$D$9:$E$58,2,FALSE) ) )","v":""},null,null,null,null,{"$f":"IF(TRIM(CV42)=\"\", \"\", IF(VLOOKUP(CV42,'Footnotes list'!$D$9:$E$58,2,FALSE)=0,\"\",VLOOKUP(CV42,'Footnotes list'!$D$9:$E$58,2,FALSE) ) )","v":""},null,null,null,null,{"$f":"IF(TRIM(DA42)=\"\", \"\", IF(VLOOKUP(DA42,'Footnotes list'!$D$9:$E$58,2,FALSE)=0,\"\",VLOOKUP(DA42,'Footnotes list'!$D$9:$E$58,2,FALSE) ) )","v":""},null,null,null,null,{"$f":"IF(TRIM(DF42)=\"\", \"\", IF(VLOOKUP(DF42,'Footnotes list'!$D$9:$E$58,2,FALSE)=0,\"\",VLOOKUP(DF42,'Footnotes list'!$D$9:$E$58,2,FALSE) ) )","v":""},null,null,null,null,{"$f":"IF(TRIM(DK42)=\"\", \"\", IF(VLOOKUP(DK42,'Footnotes list'!$D$9:$E$58,2,FALSE)=0,\"\",VLOOKUP(DK42,'Footnotes list'!$D$9:$E$58,2,FALSE) ) )","v":""},null,null,null,null,{"$f":"IF(TRIM(DP42)=\"\", \"\", IF(VLOOKUP(DP42,'Footnotes list'!$D$9:$E$58,2,FALSE)=0,\"\",VLOOKUP(DP42,'Footnotes list'!$D$9:$E$58,2,FALSE) ) )","v":""},null,null,null,null,{"$f":"IF(TRIM(DU42)=\"\", \"\", IF(VLOOKUP(DU42,'Footnotes list'!$D$9:$E$58,2,FALSE)=0,\"\",VLOOKUP(DU42,'Footnotes list'!$D$9:$E$58,2,FALSE) ) )","v":""},null,null,null,null,{"$f":"IF(TRIM(DZ42)=\"\", \"\", IF(VLOOKUP(DZ42,'Footnotes list'!$D$9:$E$58,2,FALSE)=0,\"\",VLOOKUP(DZ42,'Footnotes list'!$D$9:$E$58,2,FALSE) ) )","v":""},null,null,null,null,{"$f":"IF(TRIM(EE42)=\"\", \"\", IF(VLOOKUP(EE42,'Footnotes list'!$D$9:$E$58,2,FALSE)=0,\"\",VLOOKUP(EE42,'Footnotes list'!$D$9:$E$58,2,FALSE) ) )","v":""},null,null,null,null,{"$f":"IF(TRIM(EJ42)=\"\", \"\", IF(VLOOKUP(EJ42,'Footnotes list'!$D$9:$E$58,2,FALSE)=0,\"\",VLOOKUP(EJ42,'Footnotes list'!$D$9:$E$58,2,FALSE) ) )","v":""},null,null,null,null,{"$f":"IF(TRIM(EO42)=\"\", \"\", IF(VLOOKUP(EO42,'Footnotes list'!$D$9:$E$58,2,FALSE)=0,\"\",VLOOKUP(EO42,'Footnotes list'!$D$9:$E$58,2,FALSE) ) )","v":""},null,null,null,null,{"$f":"IF(TRIM(ET42)=\"\", \"\", IF(VLOOKUP(ET42,'Footnotes list'!$D$9:$E$58,2,FALSE)=0,\"\",VLOOKUP(ET42,'Footnotes list'!$D$9:$E$58,2,FALSE) ) )","v":""},null,null,null,null,{"$f":"IF(TRIM(EY42)=\"\", \"\", IF(VLOOKUP(EY42,'Footnotes list'!$D$9:$E$58,2,FALSE)=0,\"\",VLOOKUP(EY42,'Footnotes list'!$D$9:$E$58,2,FALSE) ) )","v":""}]
[null,null,"C13-C15","TOT_EGSS","Total C13 - C15 Manufacture of textiles, wearing apparel, leather and related products, of which:",null,null,null,null,null,{"$f":"IF(TRIM(J43)=\"\", \"\", IF(VLOOKUP(J43,'Footnotes list'!$D$9:$E$58,2,FALSE)=0,\"\",VLOOKUP(J43,'Footnotes list'!$D$9:$E$58,2,FALSE) ) )","v":""},null,null,null,null,{"$f":"IF(TRIM(O43)=\"\", \"\", IF(VLOOKUP(O43,'Footnotes list'!$D$9:$E$58,2,FALSE)=0,\"\",VLOOKUP(O43,'Footnotes list'!$D$9:$E$58,2,FALSE) ) )","v":""},null,null,null,null,{"$f":"IF(TRIM(T43)=\"\", \"\", IF(VLOOKUP(T43,'Footnotes list'!$D$9:$E$58,2,FALSE)=0,\"\",VLOOKUP(T43,'Footnotes list'!$D$9:$E$58,2,FALSE) ) )","v":""},null,null,null,null,{"$f":"IF(TRIM(Y43)=\"\", \"\", IF(VLOOKUP(Y43,'Footnotes list'!$D$9:$E$58,2,FALSE)=0,\"\",VLOOKUP(Y43,'Footnotes list'!$D$9:$E$58,2,FALSE) ) )","v":""},null,null,null,null,{"$f":"IF(TRIM(AD43)=\"\", \"\", IF(VLOOKUP(AD43,'Footnotes list'!$D$9:$E$58,2,FALSE)=0,\"\",VLOOKUP(AD43,'Footnotes list'!$D$9:$E$58,2,FALSE) ) )","v":""},null,null,null,null,{"$f":"IF(TRIM(AI43)=\"\", \"\", IF(VLOOKUP(AI43,'Footnotes list'!$D$9:$E$58,2,FALSE)=0,\"\",VLOOKUP(AI43,'Footnotes list'!$D$9:$E$58,2,FALSE) ) )","v":""},null,null,null,null,{"$f":"IF(TRIM(AN43)=\"\", \"\", IF(VLOOKUP(AN43,'Footnotes list'!$D$9:$E$58,2,FALSE)=0,\"\",VLOOKUP(AN43,'Footnotes list'!$D$9:$E$58,2,FALSE) ) )","v":""},null,null,null,null,{"$f":"IF(TRIM(AS43)=\"\", \"\", IF(VLOOKUP(AS43,'Footnotes list'!$D$9:$E$58,2,FALSE)=0,\"\",VLOOKUP(AS43,'Footnotes list'!$D$9:$E$58,2,FALSE) ) )","v":""},null,null,null,null,{"$f":"IF(TRIM(AX43)=\"\", \"\", IF(VLOOKUP(AX43,'Footnotes list'!$D$9:$E$58,2,FALSE)=0,\"\",VLOOKUP(AX43,'Footnotes list'!$D$9:$E$58,2,FALSE) ) )","v":""},null,null,null,null,{"$f":"IF(TRIM(BC43)=\"\", \"\", IF(VLOOKUP(BC43,'Footnotes list'!$D$9:$E$58,2,FALSE)=0,\"\",VLOOKUP(BC43,'Footnotes list'!$D$9:$E$58,2,FALSE) ) )","v":""},null,null,null,null,{"$f":"IF(TRIM(BH43)=\"\", \"\", IF(VLOOKUP(BH43,'Footnotes list'!$D$9:$E$58,2,FALSE)=0,\"\",VLOOKUP(BH43,'Footnotes list'!$D$9:$E$58,2,FALSE) ) )","v":""},null,null,null,null,{"$f":"IF(TRIM(BM43)=\"\", \"\", IF(VLOOKUP(BM43,'Footnotes list'!$D$9:$E$58,2,FALSE)=0,\"\",VLOOKUP(BM43,'Footnotes list'!$D$9:$E$58,2,FALSE) ) )","v":""},null,null,null,null,{"$f":"IF(TRIM(BR43)=\"\", \"\", IF(VLOOKUP(BR43,'Footnotes list'!$D$9:$E$58,2,FALSE)=0,\"\",VLOOKUP(BR43,'Footnotes list'!$D$9:$E$58,2,FALSE) ) )","v":""},null,null,null,null,{"$f":"IF(TRIM(BW43)=\"\", \"\", IF(VLOOKUP(BW43,'Footnotes list'!$D$9:$E$58,2,FALSE)=0,\"\",VLOOKUP(BW43,'Footnotes list'!$D$9:$E$58,2,FALSE) ) )","v":""},null,null,null,null,{"$f":"IF(TRIM(CB43)=\"\", \"\", IF(VLOOKUP(CB43,'Footnotes list'!$D$9:$E$58,2,FALSE)=0,\"\",VLOOKUP(CB43,'Footnotes list'!$D$9:$E$58,2,FALSE) ) )","v":""},null,null,null,null,{"$f":"IF(TRIM(CG43)=\"\", \"\", IF(VLOOKUP(CG43,'Footnotes list'!$D$9:$E$58,2,FALSE)=0,\"\",VLOOKUP(CG43,'Footnotes list'!$D$9:$E$58,2,FALSE) ) )","v":""},null,null,null,null,{"$f":"IF(TRIM(CL43)=\"\", \"\", IF(VLOOKUP(CL43,'Footnotes list'!$D$9:$E$58,2,FALSE)=0,\"\",VLOOKUP(CL43,'Footnotes list'!$D$9:$E$58,2,FALSE) ) )","v":""},null,null,null,null,{"$f":"IF(TRIM(CQ43)=\"\", \"\", IF(VLOOKUP(CQ43,'Footnotes list'!$D$9:$E$58,2,FALSE)=0,\"\",VLOOKUP(CQ43,'Footnotes list'!$D$9:$E$58,2,FALSE) ) )","v":""},null,null,null,null,{"$f":"IF(TRIM(CV43)=\"\", \"\", IF(VLOOKUP(CV43,'Footnotes list'!$D$9:$E$58,2,FALSE)=0,\"\",VLOOKUP(CV43,'Footnotes list'!$D$9:$E$58,2,FALSE) ) )","v":""},null,null,null,null,{"$f":"IF(TRIM(DA43)=\"\", \"\", IF(VLOOKUP(DA43,'Footnotes list'!$D$9:$E$58,2,FALSE)=0,\"\",VLOOKUP(DA43,'Footnotes list'!$D$9:$E$58,2,FALSE) ) )","v":""},null,null,null,null,{"$f":"IF(TRIM(DF43)=\"\", \"\", IF(VLOOKUP(DF43,'Footnotes list'!$D$9:$E$58,2,FALSE)=0,\"\",VLOOKUP(DF43,'Footnotes list'!$D$9:$E$58,2,FALSE) ) )","v":""},null,null,null,null,{"$f":"IF(TRIM(DK43)=\"\", \"\", IF(VLOOKUP(DK43,'Footnotes list'!$D$9:$E$58,2,FALSE)=0,\"\",VLOOKUP(DK43,'Footnotes list'!$D$9:$E$58,2,FALSE) ) )","v":""},null,null,null,null,{"$f":"IF(TRIM(DP43)=\"\", \"\", IF(VLOOKUP(DP43,'Footnotes list'!$D$9:$E$58,2,FALSE)=0,\"\",VLOOKUP(DP43,'Footnotes list'!$D$9:$E$58,2,FALSE) ) )","v":""},null,null,null,null,{"$f":"IF(TRIM(DU43)=\"\", \"\", IF(VLOOKUP(DU43,'Footnotes list'!$D$9:$E$58,2,FALSE)=0,\"\",VLOOKUP(DU43,'Footnotes list'!$D$9:$E$58,2,FALSE) ) )","v":""},null,null,null,null,{"$f":"IF(TRIM(DZ43)=\"\", \"\", IF(VLOOKUP(DZ43,'Footnotes list'!$D$9:$E$58,2,FALSE)=0,\"\",VLOOKUP(DZ43,'Footnotes list'!$D$9:$E$58,2,FALSE) ) )","v":""},null,null,null,null,{"$f":"IF(TRIM(EE43)=\"\", \"\", IF(VLOOKUP(EE43,'Footnotes list'!$D$9:$E$58,2,FALSE)=0,\"\",VLOOKUP(EE43,'Footnotes list'!$D$9:$E$58,2,FALSE) ) )","v":""},null,null,null,null,{"$f":"IF(TRIM(EJ43)=\"\", \"\", IF(VLOOKUP(EJ43,'Footnotes list'!$D$9:$E$58,2,FALSE)=0,\"\",VLOOKUP(EJ43,'Footnotes list'!$D$9:$E$58,2,FALSE) ) )","v":""},null,null,null,null,{"$f":"IF(TRIM(EO43)=\"\", \"\", IF(VLOOKUP(EO43,'Footnotes list'!$D$9:$E$58,2,FALSE)=0,\"\",VLOOKUP(EO43,'Footnotes list'!$D$9:$E$58,2,FALSE) ) )","v":""},null,null,null,null,{"$f":"IF(TRIM(ET43)=\"\", \"\", IF(VLOOKUP(ET43,'Footnotes list'!$D$9:$E$58,2,FALSE)=0,\"\",VLOOKUP(ET43,'Footnotes list'!$D$9:$E$58,2,FALSE) ) )","v":""},null,null,null,null,{"$f":"IF(TRIM(EY43)=\"\", \"\", IF(VLOOKUP(EY43,'Footnotes list'!$D$9:$E$58,2,FALSE)=0,\"\",VLOOKUP(EY43,'Footnotes list'!$D$9:$E$58,2,FALSE) ) )","v":""}]
[null,null,"C13-C15","ANC","ancillary activities",null,null,null,null,null,{"$f":"IF(TRIM(J44)=\"\", \"\", IF(VLOOKUP(J44,'Footnotes list'!$D$9:$E$58,2,FALSE)=0,\"\",VLOOKUP(J44,'Footnotes list'!$D$9:$E$58,2,FALSE) ) )","v":""},null,null,null,null,{"$f":"IF(TRIM(O44)=\"\", \"\", IF(VLOOKUP(O44,'Footnotes list'!$D$9:$E$58,2,FALSE)=0,\"\",VLOOKUP(O44,'Footnotes list'!$D$9:$E$58,2,FALSE) ) )","v":""},null,null,null,null,{"$f":"IF(TRIM(T44)=\"\", \"\", IF(VLOOKUP(T44,'Footnotes list'!$D$9:$E$58,2,FALSE)=0,\"\",VLOOKUP(T44,'Footnotes list'!$D$9:$E$58,2,FALSE) ) )","v":""},null,null,null,null,{"$f":"IF(TRIM(Y44)=\"\", \"\", IF(VLOOKUP(Y44,'Footnotes list'!$D$9:$E$58,2,FALSE)=0,\"\",VLOOKUP(Y44,'Footnotes list'!$D$9:$E$58,2,FALSE) ) )","v":""},null,null,null,null,{"$f":"IF(TRIM(AD44)=\"\", \"\", IF(VLOOKUP(AD44,'Footnotes list'!$D$9:$E$58,2,FALSE)=0,\"\",VLOOKUP(AD44,'Footnotes list'!$D$9:$E$58,2,FALSE) ) )","v":""},null,null,null,null,{"$f":"IF(TRIM(AI44)=\"\", \"\", IF(VLOOKUP(AI44,'Footnotes list'!$D$9:$E$58,2,FALSE)=0,\"\",VLOOKUP(AI44,'Footnotes list'!$D$9:$E$58,2,FALSE) ) )","v":""},null,null,null,null,{"$f":"IF(TRIM(AN44)=\"\", \"\", IF(VLOOKUP(AN44,'Footnotes list'!$D$9:$E$58,2,FALSE)=0,\"\",VLOOKUP(AN44,'Footnotes list'!$D$9:$E$58,2,FALSE) ) )","v":""},null,null,null,null,{"$f":"IF(TRIM(AS44)=\"\", \"\", IF(VLOOKUP(AS44,'Footnotes list'!$D$9:$E$58,2,FALSE)=0,\"\",VLOOKUP(AS44,'Footnotes list'!$D$9:$E$58,2,FALSE) ) )","v":""},null,null,null,null,{"$f":"IF(TRIM(AX44)=\"\", \"\", IF(VLOOKUP(AX44,'Footnotes list'!$D$9:$E$58,2,FALSE)=0,\"\",VLOOKUP(AX44,'Footnotes list'!$D$9:$E$58,2,FALSE) ) )","v":""},null,null,null,null,{"$f":"IF(TRIM(BC44)=\"\", \"\", IF(VLOOKUP(BC44,'Footnotes list'!$D$9:$E$58,2,FALSE)=0,\"\",VLOOKUP(BC44,'Footnotes list'!$D$9:$E$58,2,FALSE) ) )","v":""},null,null,null,null,{"$f":"IF(TRIM(BH44)=\"\", \"\", IF(VLOOKUP(BH44,'Footnotes list'!$D$9:$E$58,2,FALSE)=0,\"\",VLOOKUP(BH44,'Footnotes list'!$D$9:$E$58,2,FALSE) ) )","v":""},null,null,null,null,{"$f":"IF(TRIM(BM44)=\"\", \"\", IF(VLOOKUP(BM44,'Footnotes list'!$D$9:$E$58,2,FALSE)=0,\"\",VLOOKUP(BM44,'Footnotes list'!$D$9:$E$58,2,FALSE) ) )","v":""},null,null,null,null,{"$f":"IF(TRIM(BR44)=\"\", \"\", IF(VLOOKUP(BR44,'Footnotes list'!$D$9:$E$58,2,FALSE)=0,\"\",VLOOKUP(BR44,'Footnotes list'!$D$9:$E$58,2,FALSE) ) )","v":""},null,null,null,null,{"$f":"IF(TRIM(BW44)=\"\", \"\", IF(VLOOKUP(BW44,'Footnotes list'!$D$9:$E$58,2,FALSE)=0,\"\",VLOOKUP(BW44,'Footnotes list'!$D$9:$E$58,2,FALSE) ) )","v":""},null,null,null,null,{"$f":"IF(TRIM(CB44)=\"\", \"\", IF(VLOOKUP(CB44,'Footnotes list'!$D$9:$E$58,2,FALSE)=0,\"\",VLOOKUP(CB44,'Footnotes list'!$D$9:$E$58,2,FALSE) ) )","v":""},null,null,null,null,{"$f":"IF(TRIM(CG44)=\"\", \"\", IF(VLOOKUP(CG44,'Footnotes list'!$D$9:$E$58,2,FALSE)=0,\"\",VLOOKUP(CG44,'Footnotes list'!$D$9:$E$58,2,FALSE) ) )","v":""},null,null,null,null,{"$f":"IF(TRIM(CL44)=\"\", \"\", IF(VLOOKUP(CL44,'Footnotes list'!$D$9:$E$58,2,FALSE)=0,\"\",VLOOKUP(CL44,'Footnotes list'!$D$9:$E$58,2,FALSE) ) )","v":""},null,null,null,null,{"$f":"IF(TRIM(CQ44)=\"\", \"\", IF(VLOOKUP(CQ44,'Footnotes list'!$D$9:$E$58,2,FALSE)=0,\"\",VLOOKUP(CQ44,'Footnotes list'!$D$9:$E$58,2,FALSE) ) )","v":""},null,null,null,null,{"$f":"IF(TRIM(CV44)=\"\", \"\", IF(VLOOKUP(CV44,'Footnotes list'!$D$9:$E$58,2,FALSE)=0,\"\",VLOOKUP(CV44,'Footnotes list'!$D$9:$E$58,2,FALSE) ) )","v":""},null,null,null,null,{"$f":"IF(TRIM(DA44)=\"\", \"\", IF(VLOOKUP(DA44,'Footnotes list'!$D$9:$E$58,2,FALSE)=0,\"\",VLOOKUP(DA44,'Footnotes list'!$D$9:$E$58,2,FALSE) ) )","v":""},null,null,null,null,{"$f":"IF(TRIM(DF44)=\"\", \"\", IF(VLOOKUP(DF44,'Footnotes list'!$D$9:$E$58,2,FALSE)=0,\"\",VLOOKUP(DF44,'Footnotes list'!$D$9:$E$58,2,FALSE) ) )","v":""},null,null,null,null,{"$f":"IF(TRIM(DK44)=\"\", \"\", IF(VLOOKUP(DK44,'Footnotes list'!$D$9:$E$58,2,FALSE)=0,\"\",VLOOKUP(DK44,'Footnotes list'!$D$9:$E$58,2,FALSE) ) )","v":""},null,null,null,null,{"$f":"IF(TRIM(DP44)=\"\", \"\", IF(VLOOKUP(DP44,'Footnotes list'!$D$9:$E$58,2,FALSE)=0,\"\",VLOOKUP(DP44,'Footnotes list'!$D$9:$E$58,2,FALSE) ) )","v":""},null,null,null,null,{"$f":"IF(TRIM(DU44)=\"\", \"\", IF(VLOOKUP(DU44,'Footnotes list'!$D$9:$E$58,2,FALSE)=0,\"\",VLOOKUP(DU44,'Footnotes list'!$D$9:$E$58,2,FALSE) ) )","v":""},null,null,null,null,{"$f":"IF(TRIM(DZ44)=\"\", \"\", IF(VLOOKUP(DZ44,'Footnotes list'!$D$9:$E$58,2,FALSE)=0,\"\",VLOOKUP(DZ44,'Footnotes list'!$D$9:$E$58,2,FALSE) ) )","v":""},null,null,null,null,{"$f":"IF(TRIM(EE44)=\"\", \"\", IF(VLOOKUP(EE44,'Footnotes list'!$D$9:$E$58,2,FALSE)=0,\"\",VLOOKUP(EE44,'Footnotes list'!$D$9:$E$58,2,FALSE) ) )","v":""},null,null,null,null,{"$f":"IF(TRIM(EJ44)=\"\", \"\", IF(VLOOKUP(EJ44,'Footnotes list'!$D$9:$E$58,2,FALSE)=0,\"\",VLOOKUP(EJ44,'Footnotes list'!$D$9:$E$58,2,FALSE) ) )","v":""},null,null,null,null,{"$f":"IF(TRIM(EO44)=\"\", \"\", IF(VLOOKUP(EO44,'Footnotes list'!$D$9:$E$58,2,FALSE)=0,\"\",VLOOKUP(EO44,'Footnotes list'!$D$9:$E$58,2,FALSE) ) )","v":""},null,null,null,null,{"$f":"IF(TRIM(ET44)=\"\", \"\", IF(VLOOKUP(ET44,'Footnotes list'!$D$9:$E$58,2,FALSE)=0,\"\",VLOOKUP(ET44,'Footnotes list'!$D$9:$E$58,2,FALSE) ) )","v":""},null,null,null,null,{"$f":"IF(TRIM(EY44)=\"\", \"\", IF(VLOOKUP(EY44,'Footnotes list'!$D$9:$E$58,2,FALSE)=0,\"\",VLOOKUP(EY44,'Footnotes list'!$D$9:$E$58,2,FALSE) ) )","v":""}]
[null,null,"C13-C15","NMKT","non-market activities",null,null,null,null,null,{"$f":"IF(TRIM(J45)=\"\", \"\", IF(VLOOKUP(J45,'Footnotes list'!$D$9:$E$58,2,FALSE)=0,\"\",VLOOKUP(J45,'Footnotes list'!$D$9:$E$58,2,FALSE) ) )","v":""},null,null,null,null,{"$f":"IF(TRIM(O45)=\"\", \"\", IF(VLOOKUP(O45,'Footnotes list'!$D$9:$E$58,2,FALSE)=0,\"\",VLOOKUP(O45,'Footnotes list'!$D$9:$E$58,2,FALSE) ) )","v":""},null,null,null,null,{"$f":"IF(TRIM(T45)=\"\", \"\", IF(VLOOKUP(T45,'Footnotes list'!$D$9:$E$58,2,FALSE)=0,\"\",VLOOKUP(T45,'Footnotes list'!$D$9:$E$58,2,FALSE) ) )","v":""},null,null,null,null,{"$f":"IF(TRIM(Y45)=\"\", \"\", IF(VLOOKUP(Y45,'Footnotes list'!$D$9:$E$58,2,FALSE)=0,\"\",VLOOKUP(Y45,'Footnotes list'!$D$9:$E$58,2,FALSE) ) )","v":""},null,null,null,null,{"$f":"IF(TRIM(AD45)=\"\", \"\", IF(VLOOKUP(AD45,'Footnotes list'!$D$9:$E$58,2,FALSE)=0,\"\",VLOOKUP(AD45,'Footnotes list'!$D$9:$E$58,2,FALSE) ) )","v":""},null,null,null,null,{"$f":"IF(TRIM(AI45)=\"\", \"\", IF(VLOOKUP(AI45,'Footnotes list'!$D$9:$E$58,2,FALSE)=0,\"\",VLOOKUP(AI45,'Footnotes list'!$D$9:$E$58,2,FALSE) ) )","v":""},null,null,null,null,{"$f":"IF(TRIM(AN45)=\"\", \"\", IF(VLOOKUP(AN45,'Footnotes list'!$D$9:$E$58,2,FALSE)=0,\"\",VLOOKUP(AN45,'Footnotes list'!$D$9:$E$58,2,FALSE) ) )","v":""},null,null,null,null,{"$f":"IF(TRIM(AS45)=\"\", \"\", IF(VLOOKUP(AS45,'Footnotes list'!$D$9:$E$58,2,FALSE)=0,\"\",VLOOKUP(AS45,'Footnotes list'!$D$9:$E$58,2,FALSE) ) )","v":""},null,null,null,null,{"$f":"IF(TRIM(AX45)=\"\", \"\", IF(VLOOKUP(AX45,'Footnotes list'!$D$9:$E$58,2,FALSE)=0,\"\",VLOOKUP(AX45,'Footnotes list'!$D$9:$E$58,2,FALSE) ) )","v":""},null,null,null,null,{"$f":"IF(TRIM(BC45)=\"\", \"\", IF(VLOOKUP(BC45,'Footnotes list'!$D$9:$E$58,2,FALSE)=0,\"\",VLOOKUP(BC45,'Footnotes list'!$D$9:$E$58,2,FALSE) ) )","v":""},null,null,null,null,{"$f":"IF(TRIM(BH45)=\"\", \"\", IF(VLOOKUP(BH45,'Footnotes list'!$D$9:$E$58,2,FALSE)=0,\"\",VLOOKUP(BH45,'Footnotes list'!$D$9:$E$58,2,FALSE) ) )","v":""},null,null,null,null,{"$f":"IF(TRIM(BM45)=\"\", \"\", IF(VLOOKUP(BM45,'Footnotes list'!$D$9:$E$58,2,FALSE)=0,\"\",VLOOKUP(BM45,'Footnotes list'!$D$9:$E$58,2,FALSE) ) )","v":""},null,null,null,null,{"$f":"IF(TRIM(BR45)=\"\", \"\", IF(VLOOKUP(BR45,'Footnotes list'!$D$9:$E$58,2,FALSE)=0,\"\",VLOOKUP(BR45,'Footnotes list'!$D$9:$E$58,2,FALSE) ) )","v":""},null,null,null,null,{"$f":"IF(TRIM(BW45)=\"\", \"\", IF(VLOOKUP(BW45,'Footnotes list'!$D$9:$E$58,2,FALSE)=0,\"\",VLOOKUP(BW45,'Footnotes list'!$D$9:$E$58,2,FALSE) ) )","v":""},null,null,null,null,{"$f":"IF(TRIM(CB45)=\"\", \"\", IF(VLOOKUP(CB45,'Footnotes list'!$D$9:$E$58,2,FALSE)=0,\"\",VLOOKUP(CB45,'Footnotes list'!$D$9:$E$58,2,FALSE) ) )","v":""},null,null,null,null,{"$f":"IF(TRIM(CG45)=\"\", \"\", IF(VLOOKUP(CG45,'Footnotes list'!$D$9:$E$58,2,FALSE)=0,\"\",VLOOKUP(CG45,'Footnotes list'!$D$9:$E$58,2,FALSE) ) )","v":""},null,null,null,null,{"$f":"IF(TRIM(CL45)=\"\", \"\", IF(VLOOKUP(CL45,'Footnotes list'!$D$9:$E$58,2,FALSE)=0,\"\",VLOOKUP(CL45,'Footnotes list'!$D$9:$E$58,2,FALSE) ) )","v":""},null,null,null,null,{"$f":"IF(TRIM(CQ45)=\"\", \"\", IF(VLOOKUP(CQ45,'Footnotes list'!$D$9:$E$58,2,FALSE)=0,\"\",VLOOKUP(CQ45,'Footnotes list'!$D$9:$E$58,2,FALSE) ) )","v":""},null,null,null,null,{"$f":"IF(TRIM(CV45)=\"\", \"\", IF(VLOOKUP(CV45,'Footnotes list'!$D$9:$E$58,2,FALSE)=0,\"\",VLOOKUP(CV45,'Footnotes list'!$D$9:$E$58,2,FALSE) ) )","v":""},null,null,null,null,{"$f":"IF(TRIM(DA45)=\"\", \"\", IF(VLOOKUP(DA45,'Footnotes list'!$D$9:$E$58,2,FALSE)=0,\"\",VLOOKUP(DA45,'Footnotes list'!$D$9:$E$58,2,FALSE) ) )","v":""},null,null,null,null,{"$f":"IF(TRIM(DF45)=\"\", \"\", IF(VLOOKUP(DF45,'Footnotes list'!$D$9:$E$58,2,FALSE)=0,\"\",VLOOKUP(DF45,'Footnotes list'!$D$9:$E$58,2,FALSE) ) )","v":""},null,null,null,null,{"$f":"IF(TRIM(DK45)=\"\", \"\", IF(VLOOKUP(DK45,'Footnotes list'!$D$9:$E$58,2,FALSE)=0,\"\",VLOOKUP(DK45,'Footnotes list'!$D$9:$E$58,2,FALSE) ) )","v":""},null,null,null,null,{"$f":"IF(TRIM(DP45)=\"\", \"\", IF(VLOOKUP(DP45,'Footnotes list'!$D$9:$E$58,2,FALSE)=0,\"\",VLOOKUP(DP45,'Footnotes list'!$D$9:$E$58,2,FALSE) ) )","v":""},null,null,null,null,{"$f":"IF(TRIM(DU45)=\"\", \"\", IF(VLOOKUP(DU45,'Footnotes list'!$D$9:$E$58,2,FALSE)=0,\"\",VLOOKUP(DU45,'Footnotes list'!$D$9:$E$58,2,FALSE) ) )","v":""},null,null,null,null,{"$f":"IF(TRIM(DZ45)=\"\", \"\", IF(VLOOKUP(DZ45,'Footnotes list'!$D$9:$E$58,2,FALSE)=0,\"\",VLOOKUP(DZ45,'Footnotes list'!$D$9:$E$58,2,FALSE) ) )","v":""},null,null,null,null,{"$f":"IF(TRIM(EE45)=\"\", \"\", IF(VLOOKUP(EE45,'Footnotes list'!$D$9:$E$58,2,FALSE)=0,\"\",VLOOKUP(EE45,'Footnotes list'!$D$9:$E$58,2,FALSE) ) )","v":""},null,null,null,null,{"$f":"IF(TRIM(EJ45)=\"\", \"\", IF(VLOOKUP(EJ45,'Footnotes list'!$D$9:$E$58,2,FALSE)=0,\"\",VLOOKUP(EJ45,'Footnotes list'!$D$9:$E$58,2,FALSE) ) )","v":""},null,null,null,null,{"$f":"IF(TRIM(EO45)=\"\", \"\", IF(VLOOKUP(EO45,'Footnotes list'!$D$9:$E$58,2,FALSE)=0,\"\",VLOOKUP(EO45,'Footnotes list'!$D$9:$E$58,2,FALSE) ) )","v":""},null,null,null,null,{"$f":"IF(TRIM(ET45)=\"\", \"\", IF(VLOOKUP(ET45,'Footnotes list'!$D$9:$E$58,2,FALSE)=0,\"\",VLOOKUP(ET45,'Footnotes list'!$D$9:$E$58,2,FALSE) ) )","v":""},null,null,null,null,{"$f":"IF(TRIM(EY45)=\"\", \"\", IF(VLOOKUP(EY45,'Footnotes list'!$D$9:$E$58,2,FALSE)=0,\"\",VLOOKUP(EY45,'Footnotes list'!$D$9:$E$58,2,FALSE) ) )","v":""}]
[null,null,"C13-C15","OWN_USE","activities for own final use",null,null,null,null,null,{"$f":"IF(TRIM(J46)=\"\", \"\", IF(VLOOKUP(J46,'Footnotes list'!$D$9:$E$58,2,FALSE)=0,\"\",VLOOKUP(J46,'Footnotes list'!$D$9:$E$58,2,FALSE) ) )","v":""},null,null,null,null,{"$f":"IF(TRIM(O46)=\"\", \"\", IF(VLOOKUP(O46,'Footnotes list'!$D$9:$E$58,2,FALSE)=0,\"\",VLOOKUP(O46,'Footnotes list'!$D$9:$E$58,2,FALSE) ) )","v":""},null,null,null,null,{"$f":"IF(TRIM(T46)=\"\", \"\", IF(VLOOKUP(T46,'Footnotes list'!$D$9:$E$58,2,FALSE)=0,\"\",VLOOKUP(T46,'Footnotes list'!$D$9:$E$58,2,FALSE) ) )","v":""},null,null,null,null,{"$f":"IF(TRIM(Y46)=\"\", \"\", IF(VLOOKUP(Y46,'Footnotes list'!$D$9:$E$58,2,FALSE)=0,\"\",VLOOKUP(Y46,'Footnotes list'!$D$9:$E$58,2,FALSE) ) )","v":""},null,null,null,null,{"$f":"IF(TRIM(AD46)=\"\", \"\", IF(VLOOKUP(AD46,'Footnotes list'!$D$9:$E$58,2,FALSE)=0,\"\",VLOOKUP(AD46,'Footnotes list'!$D$9:$E$58,2,FALSE) ) )","v":""},null,null,null,null,{"$f":"IF(TRIM(AI46)=\"\", \"\", IF(VLOOKUP(AI46,'Footnotes list'!$D$9:$E$58,2,FALSE)=0,\"\",VLOOKUP(AI46,'Footnotes list'!$D$9:$E$58,2,FALSE) ) )","v":""},null,null,null,null,{"$f":"IF(TRIM(AN46)=\"\", \"\", IF(VLOOKUP(AN46,'Footnotes list'!$D$9:$E$58,2,FALSE)=0,\"\",VLOOKUP(AN46,'Footnotes list'!$D$9:$E$58,2,FALSE) ) )","v":""},null,null,null,null,{"$f":"IF(TRIM(AS46)=\"\", \"\", IF(VLOOKUP(AS46,'Footnotes list'!$D$9:$E$58,2,FALSE)=0,\"\",VLOOKUP(AS46,'Footnotes list'!$D$9:$E$58,2,FALSE) ) )","v":""},null,null,null,null,{"$f":"IF(TRIM(AX46)=\"\", \"\", IF(VLOOKUP(AX46,'Footnotes list'!$D$9:$E$58,2,FALSE)=0,\"\",VLOOKUP(AX46,'Footnotes list'!$D$9:$E$58,2,FALSE) ) )","v":""},null,null,null,null,{"$f":"IF(TRIM(BC46)=\"\", \"\", IF(VLOOKUP(BC46,'Footnotes list'!$D$9:$E$58,2,FALSE)=0,\"\",VLOOKUP(BC46,'Footnotes list'!$D$9:$E$58,2,FALSE) ) )","v":""},null,null,null,null,{"$f":"IF(TRIM(BH46)=\"\", \"\", IF(VLOOKUP(BH46,'Footnotes list'!$D$9:$E$58,2,FALSE)=0,\"\",VLOOKUP(BH46,'Footnotes list'!$D$9:$E$58,2,FALSE) ) )","v":""},null,null,null,null,{"$f":"IF(TRIM(BM46)=\"\", \"\", IF(VLOOKUP(BM46,'Footnotes list'!$D$9:$E$58,2,FALSE)=0,\"\",VLOOKUP(BM46,'Footnotes list'!$D$9:$E$58,2,FALSE) ) )","v":""},null,null,null,null,{"$f":"IF(TRIM(BR46)=\"\", \"\", IF(VLOOKUP(BR46,'Footnotes list'!$D$9:$E$58,2,FALSE)=0,\"\",VLOOKUP(BR46,'Footnotes list'!$D$9:$E$58,2,FALSE) ) )","v":""},null,null,null,null,{"$f":"IF(TRIM(BW46)=\"\", \"\", IF(VLOOKUP(BW46,'Footnotes list'!$D$9:$E$58,2,FALSE)=0,\"\",VLOOKUP(BW46,'Footnotes list'!$D$9:$E$58,2,FALSE) ) )","v":""},null,null,null,null,{"$f":"IF(TRIM(CB46)=\"\", \"\", IF(VLOOKUP(CB46,'Footnotes list'!$D$9:$E$58,2,FALSE)=0,\"\",VLOOKUP(CB46,'Footnotes list'!$D$9:$E$58,2,FALSE) ) )","v":""},null,null,null,null,{"$f":"IF(TRIM(CG46)=\"\", \"\", IF(VLOOKUP(CG46,'Footnotes list'!$D$9:$E$58,2,FALSE)=0,\"\",VLOOKUP(CG46,'Footnotes list'!$D$9:$E$58,2,FALSE) ) )","v":""},null,null,null,null,{"$f":"IF(TRIM(CL46)=\"\", \"\", IF(VLOOKUP(CL46,'Footnotes list'!$D$9:$E$58,2,FALSE)=0,\"\",VLOOKUP(CL46,'Footnotes list'!$D$9:$E$58,2,FALSE) ) )","v":""},null,null,null,null,{"$f":"IF(TRIM(CQ46)=\"\", \"\", IF(VLOOKUP(CQ46,'Footnotes list'!$D$9:$E$58,2,FALSE)=0,\"\",VLOOKUP(CQ46,'Footnotes list'!$D$9:$E$58,2,FALSE) ) )","v":""},null,null,null,null,{"$f":"IF(TRIM(CV46)=\"\", \"\", IF(VLOOKUP(CV46,'Footnotes list'!$D$9:$E$58,2,FALSE)=0,\"\",VLOOKUP(CV46,'Footnotes list'!$D$9:$E$58,2,FALSE) ) )","v":""},null,null,null,null,{"$f":"IF(TRIM(DA46)=\"\", \"\", IF(VLOOKUP(DA46,'Footnotes list'!$D$9:$E$58,2,FALSE)=0,\"\",VLOOKUP(DA46,'Footnotes list'!$D$9:$E$58,2,FALSE) ) )","v":""},null,null,null,null,{"$f":"IF(TRIM(DF46)=\"\", \"\", IF(VLOOKUP(DF46,'Footnotes list'!$D$9:$E$58,2,FALSE)=0,\"\",VLOOKUP(DF46,'Footnotes list'!$D$9:$E$58,2,FALSE) ) )","v":""},null,null,null,null,{"$f":"IF(TRIM(DK46)=\"\", \"\", IF(VLOOKUP(DK46,'Footnotes list'!$D$9:$E$58,2,FALSE)=0,\"\",VLOOKUP(DK46,'Footnotes list'!$D$9:$E$58,2,FALSE) ) )","v":""},null,null,null,null,{"$f":"IF(TRIM(DP46)=\"\", \"\", IF(VLOOKUP(DP46,'Footnotes list'!$D$9:$E$58,2,FALSE)=0,\"\",VLOOKUP(DP46,'Footnotes list'!$D$9:$E$58,2,FALSE) ) )","v":""},null,null,null,null,{"$f":"IF(TRIM(DU46)=\"\", \"\", IF(VLOOKUP(DU46,'Footnotes list'!$D$9:$E$58,2,FALSE)=0,\"\",VLOOKUP(DU46,'Footnotes list'!$D$9:$E$58,2,FALSE) ) )","v":""},null,null,null,null,{"$f":"IF(TRIM(DZ46)=\"\", \"\", IF(VLOOKUP(DZ46,'Footnotes list'!$D$9:$E$58,2,FALSE)=0,\"\",VLOOKUP(DZ46,'Footnotes list'!$D$9:$E$58,2,FALSE) ) )","v":""},null,null,null,null,{"$f":"IF(TRIM(EE46)=\"\", \"\", IF(VLOOKUP(EE46,'Footnotes list'!$D$9:$E$58,2,FALSE)=0,\"\",VLOOKUP(EE46,'Footnotes list'!$D$9:$E$58,2,FALSE) ) )","v":""},null,null,null,null,{"$f":"IF(TRIM(EJ46)=\"\", \"\", IF(VLOOKUP(EJ46,'Footnotes list'!$D$9:$E$58,2,FALSE)=0,\"\",VLOOKUP(EJ46,'Footnotes list'!$D$9:$E$58,2,FALSE) ) )","v":""},null,null,null,null,{"$f":"IF(TRIM(EO46)=\"\", \"\", IF(VLOOKUP(EO46,'Footnotes list'!$D$9:$E$58,2,FALSE)=0,\"\",VLOOKUP(EO46,'Footnotes list'!$D$9:$E$58,2,FALSE) ) )","v":""},null,null,null,null,{"$f":"IF(TRIM(ET46)=\"\", \"\", IF(VLOOKUP(ET46,'Footnotes list'!$D$9:$E$58,2,FALSE)=0,\"\",VLOOKUP(ET46,'Footnotes list'!$D$9:$E$58,2,FALSE) ) )","v":""},null,null,null,null,{"$f":"IF(TRIM(EY46)=\"\", \"\", IF(VLOOKUP(EY46,'Footnotes list'!$D$9:$E$58,2,FALSE)=0,\"\",VLOOKUP(EY46,'Footnotes list'!$D$9:$E$58,2,FALSE) ) )","v":""}]
[null,null,"C13-C15","MKT","market activities, including:",null,null,null,null,null,{"$f":"IF(TRIM(J47)=\"\", \"\", IF(VLOOKUP(J47,'Footnotes list'!$D$9:$E$58,2,FALSE)=0,\"\",VLOOKUP(J47,'Footnotes list'!$D$9:$E$58,2,FALSE) ) )","v":""},null,null,null,null,{"$f":"IF(TRIM(O47)=\"\", \"\", IF(VLOOKUP(O47,'Footnotes list'!$D$9:$E$58,2,FALSE)=0,\"\",VLOOKUP(O47,'Footnotes list'!$D$9:$E$58,2,FALSE) ) )","v":""},null,null,null,null,{"$f":"IF(TRIM(T47)=\"\", \"\", IF(VLOOKUP(T47,'Footnotes list'!$D$9:$E$58,2,FALSE)=0,\"\",VLOOKUP(T47,'Footnotes list'!$D$9:$E$58,2,FALSE) ) )","v":""},null,null,null,null,{"$f":"IF(TRIM(Y47)=\"\", \"\", IF(VLOOKUP(Y47,'Footnotes list'!$D$9:$E$58,2,FALSE)=0,\"\",VLOOKUP(Y47,'Footnotes list'!$D$9:$E$58,2,FALSE) ) )","v":""},null,null,null,null,{"$f":"IF(TRIM(AD47)=\"\", \"\", IF(VLOOKUP(AD47,'Footnotes list'!$D$9:$E$58,2,FALSE)=0,\"\",VLOOKUP(AD47,'Footnotes list'!$D$9:$E$58,2,FALSE) ) )","v":""},null,null,null,null,{"$f":"IF(TRIM(AI47)=\"\", \"\", IF(VLOOKUP(AI47,'Footnotes list'!$D$9:$E$58,2,FALSE)=0,\"\",VLOOKUP(AI47,'Footnotes list'!$D$9:$E$58,2,FALSE) ) )","v":""},null,null,null,null,{"$f":"IF(TRIM(AN47)=\"\", \"\", IF(VLOOKUP(AN47,'Footnotes list'!$D$9:$E$58,2,FALSE)=0,\"\",VLOOKUP(AN47,'Footnotes list'!$D$9:$E$58,2,FALSE) ) )","v":""},null,null,null,null,{"$f":"IF(TRIM(AS47)=\"\", \"\", IF(VLOOKUP(AS47,'Footnotes list'!$D$9:$E$58,2,FALSE)=0,\"\",VLOOKUP(AS47,'Footnotes list'!$D$9:$E$58,2,FALSE) ) )","v":""},null,null,null,null,{"$f":"IF(TRIM(AX47)=\"\", \"\", IF(VLOOKUP(AX47,'Footnotes list'!$D$9:$E$58,2,FALSE)=0,\"\",VLOOKUP(AX47,'Footnotes list'!$D$9:$E$58,2,FALSE) ) )","v":""},null,null,null,null,{"$f":"IF(TRIM(BC47)=\"\", \"\", IF(VLOOKUP(BC47,'Footnotes list'!$D$9:$E$58,2,FALSE)=0,\"\",VLOOKUP(BC47,'Footnotes list'!$D$9:$E$58,2,FALSE) ) )","v":""},null,null,null,null,{"$f":"IF(TRIM(BH47)=\"\", \"\", IF(VLOOKUP(BH47,'Footnotes list'!$D$9:$E$58,2,FALSE)=0,\"\",VLOOKUP(BH47,'Footnotes list'!$D$9:$E$58,2,FALSE) ) )","v":""},null,null,null,null,{"$f":"IF(TRIM(BM47)=\"\", \"\", IF(VLOOKUP(BM47,'Footnotes list'!$D$9:$E$58,2,FALSE)=0,\"\",VLOOKUP(BM47,'Footnotes list'!$D$9:$E$58,2,FALSE) ) )","v":""},null,null,null,null,{"$f":"IF(TRIM(BR47)=\"\", \"\", IF(VLOOKUP(BR47,'Footnotes list'!$D$9:$E$58,2,FALSE)=0,\"\",VLOOKUP(BR47,'Footnotes list'!$D$9:$E$58,2,FALSE) ) )","v":""},null,null,null,null,{"$f":"IF(TRIM(BW47)=\"\", \"\", IF(VLOOKUP(BW47,'Footnotes list'!$D$9:$E$58,2,FALSE)=0,\"\",VLOOKUP(BW47,'Footnotes list'!$D$9:$E$58,2,FALSE) ) )","v":""},null,null,null,null,{"$f":"IF(TRIM(CB47)=\"\", \"\", IF(VLOOKUP(CB47,'Footnotes list'!$D$9:$E$58,2,FALSE)=0,\"\",VLOOKUP(CB47,'Footnotes list'!$D$9:$E$58,2,FALSE) ) )","v":""},null,null,null,null,{"$f":"IF(TRIM(CG47)=\"\", \"\", IF(VLOOKUP(CG47,'Footnotes list'!$D$9:$E$58,2,FALSE)=0,\"\",VLOOKUP(CG47,'Footnotes list'!$D$9:$E$58,2,FALSE) ) )","v":""},null,null,null,null,{"$f":"IF(TRIM(CL47)=\"\", \"\", IF(VLOOKUP(CL47,'Footnotes list'!$D$9:$E$58,2,FALSE)=0,\"\",VLOOKUP(CL47,'Footnotes list'!$D$9:$E$58,2,FALSE) ) )","v":""},null,null,null,null,{"$f":"IF(TRIM(CQ47)=\"\", \"\", IF(VLOOKUP(CQ47,'Footnotes list'!$D$9:$E$58,2,FALSE)=0,\"\",VLOOKUP(CQ47,'Footnotes list'!$D$9:$E$58,2,FALSE) ) )","v":""},null,null,null,null,{"$f":"IF(TRIM(CV47)=\"\", \"\", IF(VLOOKUP(CV47,'Footnotes list'!$D$9:$E$58,2,FALSE)=0,\"\",VLOOKUP(CV47,'Footnotes list'!$D$9:$E$58,2,FALSE) ) )","v":""},null,null,null,null,{"$f":"IF(TRIM(DA47)=\"\", \"\", IF(VLOOKUP(DA47,'Footnotes list'!$D$9:$E$58,2,FALSE)=0,\"\",VLOOKUP(DA47,'Footnotes list'!$D$9:$E$58,2,FALSE) ) )","v":""},null,null,null,null,{"$f":"IF(TRIM(DF47)=\"\", \"\", IF(VLOOKUP(DF47,'Footnotes list'!$D$9:$E$58,2,FALSE)=0,\"\",VLOOKUP(DF47,'Footnotes list'!$D$9:$E$58,2,FALSE) ) )","v":""},null,null,null,null,{"$f":"IF(TRIM(DK47)=\"\", \"\", IF(VLOOKUP(DK47,'Footnotes list'!$D$9:$E$58,2,FALSE)=0,\"\",VLOOKUP(DK47,'Footnotes list'!$D$9:$E$58,2,FALSE) ) )","v":""},null,null,null,null,{"$f":"IF(TRIM(DP47)=\"\", \"\", IF(VLOOKUP(DP47,'Footnotes list'!$D$9:$E$58,2,FALSE)=0,\"\",VLOOKUP(DP47,'Footnotes list'!$D$9:$E$58,2,FALSE) ) )","v":""},null,null,null,null,{"$f":"IF(TRIM(DU47)=\"\", \"\", IF(VLOOKUP(DU47,'Footnotes list'!$D$9:$E$58,2,FALSE)=0,\"\",VLOOKUP(DU47,'Footnotes list'!$D$9:$E$58,2,FALSE) ) )","v":""},null,null,null,null,{"$f":"IF(TRIM(DZ47)=\"\", \"\", IF(VLOOKUP(DZ47,'Footnotes list'!$D$9:$E$58,2,FALSE)=0,\"\",VLOOKUP(DZ47,'Footnotes list'!$D$9:$E$58,2,FALSE) ) )","v":""},null,null,null,null,{"$f":"IF(TRIM(EE47)=\"\", \"\", IF(VLOOKUP(EE47,'Footnotes list'!$D$9:$E$58,2,FALSE)=0,\"\",VLOOKUP(EE47,'Footnotes list'!$D$9:$E$58,2,FALSE) ) )","v":""},null,null,null,null,{"$f":"IF(TRIM(EJ47)=\"\", \"\", IF(VLOOKUP(EJ47,'Footnotes list'!$D$9:$E$58,2,FALSE)=0,\"\",VLOOKUP(EJ47,'Footnotes list'!$D$9:$E$58,2,FALSE) ) )","v":""},null,null,null,null,{"$f":"IF(TRIM(EO47)=\"\", \"\", IF(VLOOKUP(EO47,'Footnotes list'!$D$9:$E$58,2,FALSE)=0,\"\",VLOOKUP(EO47,'Footnotes list'!$D$9:$E$58,2,FALSE) ) )","v":""},null,null,null,null,{"$f":"IF(TRIM(ET47)=\"\", \"\", IF(VLOOKUP(ET47,'Footnotes list'!$D$9:$E$58,2,FALSE)=0,\"\",VLOOKUP(ET47,'Footnotes list'!$D$9:$E$58,2,FALSE) ) )","v":""},null,null,null,null,{"$f":"IF(TRIM(EY47)=\"\", \"\", IF(VLOOKUP(EY47,'Footnotes list'!$D$9:$E$58,2,FALSE)=0,\"\",VLOOKUP(EY47,'Footnotes list'!$D$9:$E$58,2,FALSE) ) )","v":""}]
[null,null,"C13-C15","ES_CS","environmental specific services",null,null,null,null,null,{"$f":"IF(TRIM(J48)=\"\", \"\", IF(VLOOKUP(J48,'Footnotes list'!$D$9:$E$58,2,FALSE)=0,\"\",VLOOKUP(J48,'Footnotes list'!$D$9:$E$58,2,FALSE) ) )","v":""},null,null,null,null,{"$f":"IF(TRIM(O48)=\"\", \"\", IF(VLOOKUP(O48,'Footnotes list'!$D$9:$E$58,2,FALSE)=0,\"\",VLOOKUP(O48,'Footnotes list'!$D$9:$E$58,2,FALSE) ) )","v":""},null,null,null,null,{"$f":"IF(TRIM(T48)=\"\", \"\", IF(VLOOKUP(T48,'Footnotes list'!$D$9:$E$58,2,FALSE)=0,\"\",VLOOKUP(T48,'Footnotes list'!$D$9:$E$58,2,FALSE) ) )","v":""},null,null,null,null,{"$f":"IF(TRIM(Y48)=\"\", \"\", IF(VLOOKUP(Y48,'Footnotes list'!$D$9:$E$58,2,FALSE)=0,\"\",VLOOKUP(Y48,'Footnotes list'!$D$9:$E$58,2,FALSE) ) )","v":""},null,null,null,null,{"$f":"IF(TRIM(AD48)=\"\", \"\", IF(VLOOKUP(AD48,'Footnotes list'!$D$9:$E$58,2,FALSE)=0,\"\",VLOOKUP(AD48,'Footnotes list'!$D$9:$E$58,2,FALSE) ) )","v":""},null,null,null,null,{"$f":"IF(TRIM(AI48)=\"\", \"\", IF(VLOOKUP(AI48,'Footnotes list'!$D$9:$E$58,2,FALSE)=0,\"\",VLOOKUP(AI48,'Footnotes list'!$D$9:$E$58,2,FALSE) ) )","v":""},null,null,null,null,{"$f":"IF(TRIM(AN48)=\"\", \"\", IF(VLOOKUP(AN48,'Footnotes list'!$D$9:$E$58,2,FALSE)=0,\"\",VLOOKUP(AN48,'Footnotes list'!$D$9:$E$58,2,FALSE) ) )","v":""},null,null,null,null,{"$f":"IF(TRIM(AS48)=\"\", \"\", IF(VLOOKUP(AS48,'Footnotes list'!$D$9:$E$58,2,FALSE)=0,\"\",VLOOKUP(AS48,'Footnotes list'!$D$9:$E$58,2,FALSE) ) )","v":""},null,null,null,null,{"$f":"IF(TRIM(AX48)=\"\", \"\", IF(VLOOKUP(AX48,'Footnotes list'!$D$9:$E$58,2,FALSE)=0,\"\",VLOOKUP(AX48,'Footnotes list'!$D$9:$E$58,2,FALSE) ) )","v":""},null,null,null,null,{"$f":"IF(TRIM(BC48)=\"\", \"\", IF(VLOOKUP(BC48,'Footnotes list'!$D$9:$E$58,2,FALSE)=0,\"\",VLOOKUP(BC48,'Footnotes list'!$D$9:$E$58,2,FALSE) ) )","v":""},null,null,null,null,{"$f":"IF(TRIM(BH48)=\"\", \"\", IF(VLOOKUP(BH48,'Footnotes list'!$D$9:$E$58,2,FALSE)=0,\"\",VLOOKUP(BH48,'Footnotes list'!$D$9:$E$58,2,FALSE) ) )","v":""},null,null,null,null,{"$f":"IF(TRIM(BM48)=\"\", \"\", IF(VLOOKUP(BM48,'Footnotes list'!$D$9:$E$58,2,FALSE)=0,\"\",VLOOKUP(BM48,'Footnotes list'!$D$9:$E$58,2,FALSE) ) )","v":""},null,null,null,null,{"$f":"IF(TRIM(BR48)=\"\", \"\", IF(VLOOKUP(BR48,'Footnotes list'!$D$9:$E$58,2,FALSE)=0,\"\",VLOOKUP(BR48,'Footnotes list'!$D$9:$E$58,2,FALSE) ) )","v":""},null,null,null,null,{"$f":"IF(TRIM(BW48)=\"\", \"\", IF(VLOOKUP(BW48,'Footnotes list'!$D$9:$E$58,2,FALSE)=0,\"\",VLOOKUP(BW48,'Footnotes list'!$D$9:$E$58,2,FALSE) ) )","v":""},null,null,null,null,{"$f":"IF(TRIM(CB48)=\"\", \"\", IF(VLOOKUP(CB48,'Footnotes list'!$D$9:$E$58,2,FALSE)=0,\"\",VLOOKUP(CB48,'Footnotes list'!$D$9:$E$58,2,FALSE) ) )","v":""},null,null,null,null,{"$f":"IF(TRIM(CG48)=\"\", \"\", IF(VLOOKUP(CG48,'Footnotes list'!$D$9:$E$58,2,FALSE)=0,\"\",VLOOKUP(CG48,'Footnotes list'!$D$9:$E$58,2,FALSE) ) )","v":""},null,null,null,null,{"$f":"IF(TRIM(CL48)=\"\", \"\", IF(VLOOKUP(CL48,'Footnotes list'!$D$9:$E$58,2,FALSE)=0,\"\",VLOOKUP(CL48,'Footnotes list'!$D$9:$E$58,2,FALSE) ) )","v":""},null,null,null,null,{"$f":"IF(TRIM(CQ48)=\"\", \"\", IF(VLOOKUP(CQ48,'Footnotes list'!$D$9:$E$58,2,FALSE)=0,\"\",VLOOKUP(CQ48,'Footnotes list'!$D$9:$E$58,2,FALSE) ) )","v":""},null,null,null,null,{"$f":"IF(TRIM(CV48)=\"\", \"\", IF(VLOOKUP(CV48,'Footnotes list'!$D$9:$E$58,2,FALSE)=0,\"\",VLOOKUP(CV48,'Footnotes list'!$D$9:$E$58,2,FALSE) ) )","v":""},null,null,null,null,{"$f":"IF(TRIM(DA48)=\"\", \"\", IF(VLOOKUP(DA48,'Footnotes list'!$D$9:$E$58,2,FALSE)=0,\"\",VLOOKUP(DA48,'Footnotes list'!$D$9:$E$58,2,FALSE) ) )","v":""},null,null,null,null,{"$f":"IF(TRIM(DF48)=\"\", \"\", IF(VLOOKUP(DF48,'Footnotes list'!$D$9:$E$58,2,FALSE)=0,\"\",VLOOKUP(DF48,'Footnotes list'!$D$9:$E$58,2,FALSE) ) )","v":""},null,null,null,null,{"$f":"IF(TRIM(DK48)=\"\", \"\", IF(VLOOKUP(DK48,'Footnotes list'!$D$9:$E$58,2,FALSE)=0,\"\",VLOOKUP(DK48,'Footnotes list'!$D$9:$E$58,2,FALSE) ) )","v":""},null,null,null,null,{"$f":"IF(TRIM(DP48)=\"\", \"\", IF(VLOOKUP(DP48,'Footnotes list'!$D$9:$E$58,2,FALSE)=0,\"\",VLOOKUP(DP48,'Footnotes list'!$D$9:$E$58,2,FALSE) ) )","v":""},null,null,null,null,{"$f":"IF(TRIM(DU48)=\"\", \"\", IF(VLOOKUP(DU48,'Footnotes list'!$D$9:$E$58,2,FALSE)=0,\"\",VLOOKUP(DU48,'Footnotes list'!$D$9:$E$58,2,FALSE) ) )","v":""},null,null,null,null,{"$f":"IF(TRIM(DZ48)=\"\", \"\", IF(VLOOKUP(DZ48,'Footnotes list'!$D$9:$E$58,2,FALSE)=0,\"\",VLOOKUP(DZ48,'Footnotes list'!$D$9:$E$58,2,FALSE) ) )","v":""},null,null,null,null,{"$f":"IF(TRIM(EE48)=\"\", \"\", IF(VLOOKUP(EE48,'Footnotes list'!$D$9:$E$58,2,FALSE)=0,\"\",VLOOKUP(EE48,'Footnotes list'!$D$9:$E$58,2,FALSE) ) )","v":""},null,null,null,null,{"$f":"IF(TRIM(EJ48)=\"\", \"\", IF(VLOOKUP(EJ48,'Footnotes list'!$D$9:$E$58,2,FALSE)=0,\"\",VLOOKUP(EJ48,'Footnotes list'!$D$9:$E$58,2,FALSE) ) )","v":""},null,null,null,null,{"$f":"IF(TRIM(EO48)=\"\", \"\", IF(VLOOKUP(EO48,'Footnotes list'!$D$9:$E$58,2,FALSE)=0,\"\",VLOOKUP(EO48,'Footnotes list'!$D$9:$E$58,2,FALSE) ) )","v":""},null,null,null,null,{"$f":"IF(TRIM(ET48)=\"\", \"\", IF(VLOOKUP(ET48,'Footnotes list'!$D$9:$E$58,2,FALSE)=0,\"\",VLOOKUP(ET48,'Footnotes list'!$D$9:$E$58,2,FALSE) ) )","v":""},null,null,null,null,{"$f":"IF(TRIM(EY48)=\"\", \"\", IF(VLOOKUP(EY48,'Footnotes list'!$D$9:$E$58,2,FALSE)=0,\"\",VLOOKUP(EY48,'Footnotes list'!$D$9:$E$58,2,FALSE) ) )","v":""}]
[null,null,"C13-C15","C_REP","cleaner and resource efficient products",null,null,null,null,null,{"$f":"IF(TRIM(J49)=\"\", \"\", IF(VLOOKUP(J49,'Footnotes list'!$D$9:$E$58,2,FALSE)=0,\"\",VLOOKUP(J49,'Footnotes list'!$D$9:$E$58,2,FALSE) ) )","v":""},null,null,null,null,{"$f":"IF(TRIM(O49)=\"\", \"\", IF(VLOOKUP(O49,'Footnotes list'!$D$9:$E$58,2,FALSE)=0,\"\",VLOOKUP(O49,'Footnotes list'!$D$9:$E$58,2,FALSE) ) )","v":""},null,null,null,null,{"$f":"IF(TRIM(T49)=\"\", \"\", IF(VLOOKUP(T49,'Footnotes list'!$D$9:$E$58,2,FALSE)=0,\"\",VLOOKUP(T49,'Footnotes list'!$D$9:$E$58,2,FALSE) ) )","v":""},null,null,null,null,{"$f":"IF(TRIM(Y49)=\"\", \"\", IF(VLOOKUP(Y49,'Footnotes list'!$D$9:$E$58,2,FALSE)=0,\"\",VLOOKUP(Y49,'Footnotes list'!$D$9:$E$58,2,FALSE) ) )","v":""},null,null,null,null,{"$f":"IF(TRIM(AD49)=\"\", \"\", IF(VLOOKUP(AD49,'Footnotes list'!$D$9:$E$58,2,FALSE)=0,\"\",VLOOKUP(AD49,'Footnotes list'!$D$9:$E$58,2,FALSE) ) )","v":""},null,null,null,null,{"$f":"IF(TRIM(AI49)=\"\", \"\", IF(VLOOKUP(AI49,'Footnotes list'!$D$9:$E$58,2,FALSE)=0,\"\",VLOOKUP(AI49,'Footnotes list'!$D$9:$E$58,2,FALSE) ) )","v":""},null,null,null,null,{"$f":"IF(TRIM(AN49)=\"\", \"\", IF(VLOOKUP(AN49,'Footnotes list'!$D$9:$E$58,2,FALSE)=0,\"\",VLOOKUP(AN49,'Footnotes list'!$D$9:$E$58,2,FALSE) ) )","v":""},null,null,null,null,{"$f":"IF(TRIM(AS49)=\"\", \"\", IF(VLOOKUP(AS49,'Footnotes list'!$D$9:$E$58,2,FALSE)=0,\"\",VLOOKUP(AS49,'Footnotes list'!$D$9:$E$58,2,FALSE) ) )","v":""},null,null,null,null,{"$f":"IF(TRIM(AX49)=\"\", \"\", IF(VLOOKUP(AX49,'Footnotes list'!$D$9:$E$58,2,FALSE)=0,\"\",VLOOKUP(AX49,'Footnotes list'!$D$9:$E$58,2,FALSE) ) )","v":""},null,null,null,null,{"$f":"IF(TRIM(BC49)=\"\", \"\", IF(VLOOKUP(BC49,'Footnotes list'!$D$9:$E$58,2,FALSE)=0,\"\",VLOOKUP(BC49,'Footnotes list'!$D$9:$E$58,2,FALSE) ) )","v":""},null,null,null,null,{"$f":"IF(TRIM(BH49)=\"\", \"\", IF(VLOOKUP(BH49,'Footnotes list'!$D$9:$E$58,2,FALSE)=0,\"\",VLOOKUP(BH49,'Footnotes list'!$D$9:$E$58,2,FALSE) ) )","v":""},null,null,null,null,{"$f":"IF(TRIM(BM49)=\"\", \"\", IF(VLOOKUP(BM49,'Footnotes list'!$D$9:$E$58,2,FALSE)=0,\"\",VLOOKUP(BM49,'Footnotes list'!$D$9:$E$58,2,FALSE) ) )","v":""},null,null,null,null,{"$f":"IF(TRIM(BR49)=\"\", \"\", IF(VLOOKUP(BR49,'Footnotes list'!$D$9:$E$58,2,FALSE)=0,\"\",VLOOKUP(BR49,'Footnotes list'!$D$9:$E$58,2,FALSE) ) )","v":""},null,null,null,null,{"$f":"IF(TRIM(BW49)=\"\", \"\", IF(VLOOKUP(BW49,'Footnotes list'!$D$9:$E$58,2,FALSE)=0,\"\",VLOOKUP(BW49,'Footnotes list'!$D$9:$E$58,2,FALSE) ) )","v":""},null,null,null,null,{"$f":"IF(TRIM(CB49)=\"\", \"\", IF(VLOOKUP(CB49,'Footnotes list'!$D$9:$E$58,2,FALSE)=0,\"\",VLOOKUP(CB49,'Footnotes list'!$D$9:$E$58,2,FALSE) ) )","v":""},null,null,null,null,{"$f":"IF(TRIM(CG49)=\"\", \"\", IF(VLOOKUP(CG49,'Footnotes list'!$D$9:$E$58,2,FALSE)=0,\"\",VLOOKUP(CG49,'Footnotes list'!$D$9:$E$58,2,FALSE) ) )","v":""},null,null,null,null,{"$f":"IF(TRIM(CL49)=\"\", \"\", IF(VLOOKUP(CL49,'Footnotes list'!$D$9:$E$58,2,FALSE)=0,\"\",VLOOKUP(CL49,'Footnotes list'!$D$9:$E$58,2,FALSE) ) )","v":""},null,null,null,null,{"$f":"IF(TRIM(CQ49)=\"\", \"\", IF(VLOOKUP(CQ49,'Footnotes list'!$D$9:$E$58,2,FALSE)=0,\"\",VLOOKUP(CQ49,'Footnotes list'!$D$9:$E$58,2,FALSE) ) )","v":""},null,null,null,null,{"$f":"IF(TRIM(CV49)=\"\", \"\", IF(VLOOKUP(CV49,'Footnotes list'!$D$9:$E$58,2,FALSE)=0,\"\",VLOOKUP(CV49,'Footnotes list'!$D$9:$E$58,2,FALSE) ) )","v":""},null,null,null,null,{"$f":"IF(TRIM(DA49)=\"\", \"\", IF(VLOOKUP(DA49,'Footnotes list'!$D$9:$E$58,2,FALSE)=0,\"\",VLOOKUP(DA49,'Footnotes list'!$D$9:$E$58,2,FALSE) ) )","v":""},null,null,null,null,{"$f":"IF(TRIM(DF49)=\"\", \"\", IF(VLOOKUP(DF49,'Footnotes list'!$D$9:$E$58,2,FALSE)=0,\"\",VLOOKUP(DF49,'Footnotes list'!$D$9:$E$58,2,FALSE) ) )","v":""},null,null,null,null,{"$f":"IF(TRIM(DK49)=\"\", \"\", IF(VLOOKUP(DK49,'Footnotes list'!$D$9:$E$58,2,FALSE)=0,\"\",VLOOKUP(DK49,'Footnotes list'!$D$9:$E$58,2,FALSE) ) )","v":""},null,null,null,null,{"$f":"IF(TRIM(DP49)=\"\", \"\", IF(VLOOKUP(DP49,'Footnotes list'!$D$9:$E$58,2,FALSE)=0,\"\",VLOOKUP(DP49,'Footnotes list'!$D$9:$E$58,2,FALSE) ) )","v":""},null,null,null,null,{"$f":"IF(TRIM(DU49)=\"\", \"\", IF(VLOOKUP(DU49,'Footnotes list'!$D$9:$E$58,2,FALSE)=0,\"\",VLOOKUP(DU49,'Footnotes list'!$D$9:$E$58,2,FALSE) ) )","v":""},null,null,null,null,{"$f":"IF(TRIM(DZ49)=\"\", \"\", IF(VLOOKUP(DZ49,'Footnotes list'!$D$9:$E$58,2,FALSE)=0,\"\",VLOOKUP(DZ49,'Footnotes list'!$D$9:$E$58,2,FALSE) ) )","v":""},null,null,null,null,{"$f":"IF(TRIM(EE49)=\"\", \"\", IF(VLOOKUP(EE49,'Footnotes list'!$D$9:$E$58,2,FALSE)=0,\"\",VLOOKUP(EE49,'Footnotes list'!$D$9:$E$58,2,FALSE) ) )","v":""},null,null,null,null,{"$f":"IF(TRIM(EJ49)=\"\", \"\", IF(VLOOKUP(EJ49,'Footnotes list'!$D$9:$E$58,2,FALSE)=0,\"\",VLOOKUP(EJ49,'Footnotes list'!$D$9:$E$58,2,FALSE) ) )","v":""},null,null,null,null,{"$f":"IF(TRIM(EO49)=\"\", \"\", IF(VLOOKUP(EO49,'Footnotes list'!$D$9:$E$58,2,FALSE)=0,\"\",VLOOKUP(EO49,'Footnotes list'!$D$9:$E$58,2,FALSE) ) )","v":""},null,null,null,null,{"$f":"IF(TRIM(ET49)=\"\", \"\", IF(VLOOKUP(ET49,'Footnotes list'!$D$9:$E$58,2,FALSE)=0,\"\",VLOOKUP(ET49,'Footnotes list'!$D$9:$E$58,2,FALSE) ) )","v":""},null,null,null,null,{"$f":"IF(TRIM(EY49)=\"\", \"\", IF(VLOOKUP(EY49,'Footnotes list'!$D$9:$E$58,2,FALSE)=0,\"\",VLOOKUP(EY49,'Footnotes list'!$D$9:$E$58,2,FALSE) ) )","v":""}]
[null,null,"C16-C18","TOT_EGSS","Total C16 - C18 Manufacture of wood and paper products, and printing, of which:",null,null,null,null,null,{"$f":"IF(TRIM(J50)=\"\", \"\", IF(VLOOKUP(J50,'Footnotes list'!$D$9:$E$58,2,FALSE)=0,\"\",VLOOKUP(J50,'Footnotes list'!$D$9:$E$58,2,FALSE) ) )","v":""},null,null,null,null,{"$f":"IF(TRIM(O50)=\"\", \"\", IF(VLOOKUP(O50,'Footnotes list'!$D$9:$E$58,2,FALSE)=0,\"\",VLOOKUP(O50,'Footnotes list'!$D$9:$E$58,2,FALSE) ) )","v":""},null,null,null,null,{"$f":"IF(TRIM(T50)=\"\", \"\", IF(VLOOKUP(T50,'Footnotes list'!$D$9:$E$58,2,FALSE)=0,\"\",VLOOKUP(T50,'Footnotes list'!$D$9:$E$58,2,FALSE) ) )","v":""},null,null,null,null,{"$f":"IF(TRIM(Y50)=\"\", \"\", IF(VLOOKUP(Y50,'Footnotes list'!$D$9:$E$58,2,FALSE)=0,\"\",VLOOKUP(Y50,'Footnotes list'!$D$9:$E$58,2,FALSE) ) )","v":""},null,null,null,null,{"$f":"IF(TRIM(AD50)=\"\", \"\", IF(VLOOKUP(AD50,'Footnotes list'!$D$9:$E$58,2,FALSE)=0,\"\",VLOOKUP(AD50,'Footnotes list'!$D$9:$E$58,2,FALSE) ) )","v":""},null,null,null,null,{"$f":"IF(TRIM(AI50)=\"\", \"\", IF(VLOOKUP(AI50,'Footnotes list'!$D$9:$E$58,2,FALSE)=0,\"\",VLOOKUP(AI50,'Footnotes list'!$D$9:$E$58,2,FALSE) ) )","v":""},null,null,null,null,{"$f":"IF(TRIM(AN50)=\"\", \"\", IF(VLOOKUP(AN50,'Footnotes list'!$D$9:$E$58,2,FALSE)=0,\"\",VLOOKUP(AN50,'Footnotes list'!$D$9:$E$58,2,FALSE) ) )","v":""},null,null,null,null,{"$f":"IF(TRIM(AS50)=\"\", \"\", IF(VLOOKUP(AS50,'Footnotes list'!$D$9:$E$58,2,FALSE)=0,\"\",VLOOKUP(AS50,'Footnotes list'!$D$9:$E$58,2,FALSE) ) )","v":""},null,null,null,null,{"$f":"IF(TRIM(AX50)=\"\", \"\", IF(VLOOKUP(AX50,'Footnotes list'!$D$9:$E$58,2,FALSE)=0,\"\",VLOOKUP(AX50,'Footnotes list'!$D$9:$E$58,2,FALSE) ) )","v":""},null,null,null,null,{"$f":"IF(TRIM(BC50)=\"\", \"\", IF(VLOOKUP(BC50,'Footnotes list'!$D$9:$E$58,2,FALSE)=0,\"\",VLOOKUP(BC50,'Footnotes list'!$D$9:$E$58,2,FALSE) ) )","v":""},null,null,null,null,{"$f":"IF(TRIM(BH50)=\"\", \"\", IF(VLOOKUP(BH50,'Footnotes list'!$D$9:$E$58,2,FALSE)=0,\"\",VLOOKUP(BH50,'Footnotes list'!$D$9:$E$58,2,FALSE) ) )","v":""},null,null,null,null,{"$f":"IF(TRIM(BM50)=\"\", \"\", IF(VLOOKUP(BM50,'Footnotes list'!$D$9:$E$58,2,FALSE)=0,\"\",VLOOKUP(BM50,'Footnotes list'!$D$9:$E$58,2,FALSE) ) )","v":""},null,null,null,null,{"$f":"IF(TRIM(BR50)=\"\", \"\", IF(VLOOKUP(BR50,'Footnotes list'!$D$9:$E$58,2,FALSE)=0,\"\",VLOOKUP(BR50,'Footnotes list'!$D$9:$E$58,2,FALSE) ) )","v":""},null,null,null,null,{"$f":"IF(TRIM(BW50)=\"\", \"\", IF(VLOOKUP(BW50,'Footnotes list'!$D$9:$E$58,2,FALSE)=0,\"\",VLOOKUP(BW50,'Footnotes list'!$D$9:$E$58,2,FALSE) ) )","v":""},null,null,null,null,{"$f":"IF(TRIM(CB50)=\"\", \"\", IF(VLOOKUP(CB50,'Footnotes list'!$D$9:$E$58,2,FALSE)=0,\"\",VLOOKUP(CB50,'Footnotes list'!$D$9:$E$58,2,FALSE) ) )","v":""},null,null,null,null,{"$f":"IF(TRIM(CG50)=\"\", \"\", IF(VLOOKUP(CG50,'Footnotes list'!$D$9:$E$58,2,FALSE)=0,\"\",VLOOKUP(CG50,'Footnotes list'!$D$9:$E$58,2,FALSE) ) )","v":""},null,null,null,null,{"$f":"IF(TRIM(CL50)=\"\", \"\", IF(VLOOKUP(CL50,'Footnotes list'!$D$9:$E$58,2,FALSE)=0,\"\",VLOOKUP(CL50,'Footnotes list'!$D$9:$E$58,2,FALSE) ) )","v":""},null,null,null,null,{"$f":"IF(TRIM(CQ50)=\"\", \"\", IF(VLOOKUP(CQ50,'Footnotes list'!$D$9:$E$58,2,FALSE)=0,\"\",VLOOKUP(CQ50,'Footnotes list'!$D$9:$E$58,2,FALSE) ) )","v":""},null,null,null,null,{"$f":"IF(TRIM(CV50)=\"\", \"\", IF(VLOOKUP(CV50,'Footnotes list'!$D$9:$E$58,2,FALSE)=0,\"\",VLOOKUP(CV50,'Footnotes list'!$D$9:$E$58,2,FALSE) ) )","v":""},null,null,null,null,{"$f":"IF(TRIM(DA50)=\"\", \"\", IF(VLOOKUP(DA50,'Footnotes list'!$D$9:$E$58,2,FALSE)=0,\"\",VLOOKUP(DA50,'Footnotes list'!$D$9:$E$58,2,FALSE) ) )","v":""},null,null,null,null,{"$f":"IF(TRIM(DF50)=\"\", \"\", IF(VLOOKUP(DF50,'Footnotes list'!$D$9:$E$58,2,FALSE)=0,\"\",VLOOKUP(DF50,'Footnotes list'!$D$9:$E$58,2,FALSE) ) )","v":""},null,null,null,null,{"$f":"IF(TRIM(DK50)=\"\", \"\", IF(VLOOKUP(DK50,'Footnotes list'!$D$9:$E$58,2,FALSE)=0,\"\",VLOOKUP(DK50,'Footnotes list'!$D$9:$E$58,2,FALSE) ) )","v":""},null,null,null,null,{"$f":"IF(TRIM(DP50)=\"\", \"\", IF(VLOOKUP(DP50,'Footnotes list'!$D$9:$E$58,2,FALSE)=0,\"\",VLOOKUP(DP50,'Footnotes list'!$D$9:$E$58,2,FALSE) ) )","v":""},null,null,null,null,{"$f":"IF(TRIM(DU50)=\"\", \"\", IF(VLOOKUP(DU50,'Footnotes list'!$D$9:$E$58,2,FALSE)=0,\"\",VLOOKUP(DU50,'Footnotes list'!$D$9:$E$58,2,FALSE) ) )","v":""},null,null,null,null,{"$f":"IF(TRIM(DZ50)=\"\", \"\", IF(VLOOKUP(DZ50,'Footnotes list'!$D$9:$E$58,2,FALSE)=0,\"\",VLOOKUP(DZ50,'Footnotes list'!$D$9:$E$58,2,FALSE) ) )","v":""},null,null,null,null,{"$f":"IF(TRIM(EE50)=\"\", \"\", IF(VLOOKUP(EE50,'Footnotes list'!$D$9:$E$58,2,FALSE)=0,\"\",VLOOKUP(EE50,'Footnotes list'!$D$9:$E$58,2,FALSE) ) )","v":""},null,null,null,null,{"$f":"IF(TRIM(EJ50)=\"\", \"\", IF(VLOOKUP(EJ50,'Footnotes list'!$D$9:$E$58,2,FALSE)=0,\"\",VLOOKUP(EJ50,'Footnotes list'!$D$9:$E$58,2,FALSE) ) )","v":""},null,null,null,null,{"$f":"IF(TRIM(EO50)=\"\", \"\", IF(VLOOKUP(EO50,'Footnotes list'!$D$9:$E$58,2,FALSE)=0,\"\",VLOOKUP(EO50,'Footnotes list'!$D$9:$E$58,2,FALSE) ) )","v":""},null,null,null,null,{"$f":"IF(TRIM(ET50)=\"\", \"\", IF(VLOOKUP(ET50,'Footnotes list'!$D$9:$E$58,2,FALSE)=0,\"\",VLOOKUP(ET50,'Footnotes list'!$D$9:$E$58,2,FALSE) ) )","v":""},null,null,null,null,{"$f":"IF(TRIM(EY50)=\"\", \"\", IF(VLOOKUP(EY50,'Footnotes list'!$D$9:$E$58,2,FALSE)=0,\"\",VLOOKUP(EY50,'Footnotes list'!$D$9:$E$58,2,FALSE) ) )","v":""}]
[null,null,"C16-C18","ANC","ancillary activities",null,null,null,null,null,{"$f":"IF(TRIM(J51)=\"\", \"\", IF(VLOOKUP(J51,'Footnotes list'!$D$9:$E$58,2,FALSE)=0,\"\",VLOOKUP(J51,'Footnotes list'!$D$9:$E$58,2,FALSE) ) )","v":""},null,null,null,null,{"$f":"IF(TRIM(O51)=\"\", \"\", IF(VLOOKUP(O51,'Footnotes list'!$D$9:$E$58,2,FALSE)=0,\"\",VLOOKUP(O51,'Footnotes list'!$D$9:$E$58,2,FALSE) ) )","v":""},null,null,null,null,{"$f":"IF(TRIM(T51)=\"\", \"\", IF(VLOOKUP(T51,'Footnotes list'!$D$9:$E$58,2,FALSE)=0,\"\",VLOOKUP(T51,'Footnotes list'!$D$9:$E$58,2,FALSE) ) )","v":""},null,null,null,null,{"$f":"IF(TRIM(Y51)=\"\", \"\", IF(VLOOKUP(Y51,'Footnotes list'!$D$9:$E$58,2,FALSE)=0,\"\",VLOOKUP(Y51,'Footnotes list'!$D$9:$E$58,2,FALSE) ) )","v":""},null,null,null,null,{"$f":"IF(TRIM(AD51)=\"\", \"\", IF(VLOOKUP(AD51,'Footnotes list'!$D$9:$E$58,2,FALSE)=0,\"\",VLOOKUP(AD51,'Footnotes list'!$D$9:$E$58,2,FALSE) ) )","v":""},null,null,null,null,{"$f":"IF(TRIM(AI51)=\"\", \"\", IF(VLOOKUP(AI51,'Footnotes list'!$D$9:$E$58,2,FALSE)=0,\"\",VLOOKUP(AI51,'Footnotes list'!$D$9:$E$58,2,FALSE) ) )","v":""},null,null,null,null,{"$f":"IF(TRIM(AN51)=\"\", \"\", IF(VLOOKUP(AN51,'Footnotes list'!$D$9:$E$58,2,FALSE)=0,\"\",VLOOKUP(AN51,'Footnotes list'!$D$9:$E$58,2,FALSE) ) )","v":""},null,null,null,null,{"$f":"IF(TRIM(AS51)=\"\", \"\", IF(VLOOKUP(AS51,'Footnotes list'!$D$9:$E$58,2,FALSE)=0,\"\",VLOOKUP(AS51,'Footnotes list'!$D$9:$E$58,2,FALSE) ) )","v":""},null,null,null,null,{"$f":"IF(TRIM(AX51)=\"\", \"\", IF(VLOOKUP(AX51,'Footnotes list'!$D$9:$E$58,2,FALSE)=0,\"\",VLOOKUP(AX51,'Footnotes list'!$D$9:$E$58,2,FALSE) ) )","v":""},null,null,null,null,{"$f":"IF(TRIM(BC51)=\"\", \"\", IF(VLOOKUP(BC51,'Footnotes list'!$D$9:$E$58,2,FALSE)=0,\"\",VLOOKUP(BC51,'Footnotes list'!$D$9:$E$58,2,FALSE) ) )","v":""},null,null,null,null,{"$f":"IF(TRIM(BH51)=\"\", \"\", IF(VLOOKUP(BH51,'Footnotes list'!$D$9:$E$58,2,FALSE)=0,\"\",VLOOKUP(BH51,'Footnotes list'!$D$9:$E$58,2,FALSE) ) )","v":""},null,null,null,null,{"$f":"IF(TRIM(BM51)=\"\", \"\", IF(VLOOKUP(BM51,'Footnotes list'!$D$9:$E$58,2,FALSE)=0,\"\",VLOOKUP(BM51,'Footnotes list'!$D$9:$E$58,2,FALSE) ) )","v":""},null,null,null,null,{"$f":"IF(TRIM(BR51)=\"\", \"\", IF(VLOOKUP(BR51,'Footnotes list'!$D$9:$E$58,2,FALSE)=0,\"\",VLOOKUP(BR51,'Footnotes list'!$D$9:$E$58,2,FALSE) ) )","v":""},null,null,null,null,{"$f":"IF(TRIM(BW51)=\"\", \"\", IF(VLOOKUP(BW51,'Footnotes list'!$D$9:$E$58,2,FALSE)=0,\"\",VLOOKUP(BW51,'Footnotes list'!$D$9:$E$58,2,FALSE) ) )","v":""},null,null,null,null,{"$f":"IF(TRIM(CB51)=\"\", \"\", IF(VLOOKUP(CB51,'Footnotes list'!$D$9:$E$58,2,FALSE)=0,\"\",VLOOKUP(CB51,'Footnotes list'!$D$9:$E$58,2,FALSE) ) )","v":""},null,null,null,null,{"$f":"IF(TRIM(CG51)=\"\", \"\", IF(VLOOKUP(CG51,'Footnotes list'!$D$9:$E$58,2,FALSE)=0,\"\",VLOOKUP(CG51,'Footnotes list'!$D$9:$E$58,2,FALSE) ) )","v":""},null,null,null,null,{"$f":"IF(TRIM(CL51)=\"\", \"\", IF(VLOOKUP(CL51,'Footnotes list'!$D$9:$E$58,2,FALSE)=0,\"\",VLOOKUP(CL51,'Footnotes list'!$D$9:$E$58,2,FALSE) ) )","v":""},null,null,null,null,{"$f":"IF(TRIM(CQ51)=\"\", \"\", IF(VLOOKUP(CQ51,'Footnotes list'!$D$9:$E$58,2,FALSE)=0,\"\",VLOOKUP(CQ51,'Footnotes list'!$D$9:$E$58,2,FALSE) ) )","v":""},null,null,null,null,{"$f":"IF(TRIM(CV51)=\"\", \"\", IF(VLOOKUP(CV51,'Footnotes list'!$D$9:$E$58,2,FALSE)=0,\"\",VLOOKUP(CV51,'Footnotes list'!$D$9:$E$58,2,FALSE) ) )","v":""},null,null,null,null,{"$f":"IF(TRIM(DA51)=\"\", \"\", IF(VLOOKUP(DA51,'Footnotes list'!$D$9:$E$58,2,FALSE)=0,\"\",VLOOKUP(DA51,'Footnotes list'!$D$9:$E$58,2,FALSE) ) )","v":""},null,null,null,null,{"$f":"IF(TRIM(DF51)=\"\", \"\", IF(VLOOKUP(DF51,'Footnotes list'!$D$9:$E$58,2,FALSE)=0,\"\",VLOOKUP(DF51,'Footnotes list'!$D$9:$E$58,2,FALSE) ) )","v":""},null,null,null,null,{"$f":"IF(TRIM(DK51)=\"\", \"\", IF(VLOOKUP(DK51,'Footnotes list'!$D$9:$E$58,2,FALSE)=0,\"\",VLOOKUP(DK51,'Footnotes list'!$D$9:$E$58,2,FALSE) ) )","v":""},null,null,null,null,{"$f":"IF(TRIM(DP51)=\"\", \"\", IF(VLOOKUP(DP51,'Footnotes list'!$D$9:$E$58,2,FALSE)=0,\"\",VLOOKUP(DP51,'Footnotes list'!$D$9:$E$58,2,FALSE) ) )","v":""},null,null,null,null,{"$f":"IF(TRIM(DU51)=\"\", \"\", IF(VLOOKUP(DU51,'Footnotes list'!$D$9:$E$58,2,FALSE)=0,\"\",VLOOKUP(DU51,'Footnotes list'!$D$9:$E$58,2,FALSE) ) )","v":""},null,null,null,null,{"$f":"IF(TRIM(DZ51)=\"\", \"\", IF(VLOOKUP(DZ51,'Footnotes list'!$D$9:$E$58,2,FALSE)=0,\"\",VLOOKUP(DZ51,'Footnotes list'!$D$9:$E$58,2,FALSE) ) )","v":""},null,null,null,null,{"$f":"IF(TRIM(EE51)=\"\", \"\", IF(VLOOKUP(EE51,'Footnotes list'!$D$9:$E$58,2,FALSE)=0,\"\",VLOOKUP(EE51,'Footnotes list'!$D$9:$E$58,2,FALSE) ) )","v":""},null,null,null,null,{"$f":"IF(TRIM(EJ51)=\"\", \"\", IF(VLOOKUP(EJ51,'Footnotes list'!$D$9:$E$58,2,FALSE)=0,\"\",VLOOKUP(EJ51,'Footnotes list'!$D$9:$E$58,2,FALSE) ) )","v":""},null,null,null,null,{"$f":"IF(TRIM(EO51)=\"\", \"\", IF(VLOOKUP(EO51,'Footnotes list'!$D$9:$E$58,2,FALSE)=0,\"\",VLOOKUP(EO51,'Footnotes list'!$D$9:$E$58,2,FALSE) ) )","v":""},null,null,null,null,{"$f":"IF(TRIM(ET51)=\"\", \"\", IF(VLOOKUP(ET51,'Footnotes list'!$D$9:$E$58,2,FALSE)=0,\"\",VLOOKUP(ET51,'Footnotes list'!$D$9:$E$58,2,FALSE) ) )","v":""},null,null,null,null,{"$f":"IF(TRIM(EY51)=\"\", \"\", IF(VLOOKUP(EY51,'Footnotes list'!$D$9:$E$58,2,FALSE)=0,\"\",VLOOKUP(EY51,'Footnotes list'!$D$9:$E$58,2,FALSE) ) )","v":""}]
[null,null,"C16-C18","NMKT","non-market activities",null,null,null,null,null,{"$f":"IF(TRIM(J52)=\"\", \"\", IF(VLOOKUP(J52,'Footnotes list'!$D$9:$E$58,2,FALSE)=0,\"\",VLOOKUP(J52,'Footnotes list'!$D$9:$E$58,2,FALSE) ) )","v":""},null,null,null,null,{"$f":"IF(TRIM(O52)=\"\", \"\", IF(VLOOKUP(O52,'Footnotes list'!$D$9:$E$58,2,FALSE)=0,\"\",VLOOKUP(O52,'Footnotes list'!$D$9:$E$58,2,FALSE) ) )","v":""},null,null,null,null,{"$f":"IF(TRIM(T52)=\"\", \"\", IF(VLOOKUP(T52,'Footnotes list'!$D$9:$E$58,2,FALSE)=0,\"\",VLOOKUP(T52,'Footnotes list'!$D$9:$E$58,2,FALSE) ) )","v":""},null,null,null,null,{"$f":"IF(TRIM(Y52)=\"\", \"\", IF(VLOOKUP(Y52,'Footnotes list'!$D$9:$E$58,2,FALSE)=0,\"\",VLOOKUP(Y52,'Footnotes list'!$D$9:$E$58,2,FALSE) ) )","v":""},null,null,null,null,{"$f":"IF(TRIM(AD52)=\"\", \"\", IF(VLOOKUP(AD52,'Footnotes list'!$D$9:$E$58,2,FALSE)=0,\"\",VLOOKUP(AD52,'Footnotes list'!$D$9:$E$58,2,FALSE) ) )","v":""},null,null,null,null,{"$f":"IF(TRIM(AI52)=\"\", \"\", IF(VLOOKUP(AI52,'Footnotes list'!$D$9:$E$58,2,FALSE)=0,\"\",VLOOKUP(AI52,'Footnotes list'!$D$9:$E$58,2,FALSE) ) )","v":""},null,null,null,null,{"$f":"IF(TRIM(AN52)=\"\", \"\", IF(VLOOKUP(AN52,'Footnotes list'!$D$9:$E$58,2,FALSE)=0,\"\",VLOOKUP(AN52,'Footnotes list'!$D$9:$E$58,2,FALSE) ) )","v":""},null,null,null,null,{"$f":"IF(TRIM(AS52)=\"\", \"\", IF(VLOOKUP(AS52,'Footnotes list'!$D$9:$E$58,2,FALSE)=0,\"\",VLOOKUP(AS52,'Footnotes list'!$D$9:$E$58,2,FALSE) ) )","v":""},null,null,null,null,{"$f":"IF(TRIM(AX52)=\"\", \"\", IF(VLOOKUP(AX52,'Footnotes list'!$D$9:$E$58,2,FALSE)=0,\"\",VLOOKUP(AX52,'Footnotes list'!$D$9:$E$58,2,FALSE) ) )","v":""},null,null,null,null,{"$f":"IF(TRIM(BC52)=\"\", \"\", IF(VLOOKUP(BC52,'Footnotes list'!$D$9:$E$58,2,FALSE)=0,\"\",VLOOKUP(BC52,'Footnotes list'!$D$9:$E$58,2,FALSE) ) )","v":""},null,null,null,null,{"$f":"IF(TRIM(BH52)=\"\", \"\", IF(VLOOKUP(BH52,'Footnotes list'!$D$9:$E$58,2,FALSE)=0,\"\",VLOOKUP(BH52,'Footnotes list'!$D$9:$E$58,2,FALSE) ) )","v":""},null,null,null,null,{"$f":"IF(TRIM(BM52)=\"\", \"\", IF(VLOOKUP(BM52,'Footnotes list'!$D$9:$E$58,2,FALSE)=0,\"\",VLOOKUP(BM52,'Footnotes list'!$D$9:$E$58,2,FALSE) ) )","v":""},null,null,null,null,{"$f":"IF(TRIM(BR52)=\"\", \"\", IF(VLOOKUP(BR52,'Footnotes list'!$D$9:$E$58,2,FALSE)=0,\"\",VLOOKUP(BR52,'Footnotes list'!$D$9:$E$58,2,FALSE) ) )","v":""},null,null,null,null,{"$f":"IF(TRIM(BW52)=\"\", \"\", IF(VLOOKUP(BW52,'Footnotes list'!$D$9:$E$58,2,FALSE)=0,\"\",VLOOKUP(BW52,'Footnotes list'!$D$9:$E$58,2,FALSE) ) )","v":""},null,null,null,null,{"$f":"IF(TRIM(CB52)=\"\", \"\", IF(VLOOKUP(CB52,'Footnotes list'!$D$9:$E$58,2,FALSE)=0,\"\",VLOOKUP(CB52,'Footnotes list'!$D$9:$E$58,2,FALSE) ) )","v":""},null,null,null,null,{"$f":"IF(TRIM(CG52)=\"\", \"\", IF(VLOOKUP(CG52,'Footnotes list'!$D$9:$E$58,2,FALSE)=0,\"\",VLOOKUP(CG52,'Footnotes list'!$D$9:$E$58,2,FALSE) ) )","v":""},null,null,null,null,{"$f":"IF(TRIM(CL52)=\"\", \"\", IF(VLOOKUP(CL52,'Footnotes list'!$D$9:$E$58,2,FALSE)=0,\"\",VLOOKUP(CL52,'Footnotes list'!$D$9:$E$58,2,FALSE) ) )","v":""},null,null,null,null,{"$f":"IF(TRIM(CQ52)=\"\", \"\", IF(VLOOKUP(CQ52,'Footnotes list'!$D$9:$E$58,2,FALSE)=0,\"\",VLOOKUP(CQ52,'Footnotes list'!$D$9:$E$58,2,FALSE) ) )","v":""},null,null,null,null,{"$f":"IF(TRIM(CV52)=\"\", \"\", IF(VLOOKUP(CV52,'Footnotes list'!$D$9:$E$58,2,FALSE)=0,\"\",VLOOKUP(CV52,'Footnotes list'!$D$9:$E$58,2,FALSE) ) )","v":""},null,null,null,null,{"$f":"IF(TRIM(DA52)=\"\", \"\", IF(VLOOKUP(DA52,'Footnotes list'!$D$9:$E$58,2,FALSE)=0,\"\",VLOOKUP(DA52,'Footnotes list'!$D$9:$E$58,2,FALSE) ) )","v":""},null,null,null,null,{"$f":"IF(TRIM(DF52)=\"\", \"\", IF(VLOOKUP(DF52,'Footnotes list'!$D$9:$E$58,2,FALSE)=0,\"\",VLOOKUP(DF52,'Footnotes list'!$D$9:$E$58,2,FALSE) ) )","v":""},null,null,null,null,{"$f":"IF(TRIM(DK52)=\"\", \"\", IF(VLOOKUP(DK52,'Footnotes list'!$D$9:$E$58,2,FALSE)=0,\"\",VLOOKUP(DK52,'Footnotes list'!$D$9:$E$58,2,FALSE) ) )","v":""},null,null,null,null,{"$f":"IF(TRIM(DP52)=\"\", \"\", IF(VLOOKUP(DP52,'Footnotes list'!$D$9:$E$58,2,FALSE)=0,\"\",VLOOKUP(DP52,'Footnotes list'!$D$9:$E$58,2,FALSE) ) )","v":""},null,null,null,null,{"$f":"IF(TRIM(DU52)=\"\", \"\", IF(VLOOKUP(DU52,'Footnotes list'!$D$9:$E$58,2,FALSE)=0,\"\",VLOOKUP(DU52,'Footnotes list'!$D$9:$E$58,2,FALSE) ) )","v":""},null,null,null,null,{"$f":"IF(TRIM(DZ52)=\"\", \"\", IF(VLOOKUP(DZ52,'Footnotes list'!$D$9:$E$58,2,FALSE)=0,\"\",VLOOKUP(DZ52,'Footnotes list'!$D$9:$E$58,2,FALSE) ) )","v":""},null,null,null,null,{"$f":"IF(TRIM(EE52)=\"\", \"\", IF(VLOOKUP(EE52,'Footnotes list'!$D$9:$E$58,2,FALSE)=0,\"\",VLOOKUP(EE52,'Footnotes list'!$D$9:$E$58,2,FALSE) ) )","v":""},null,null,null,null,{"$f":"IF(TRIM(EJ52)=\"\", \"\", IF(VLOOKUP(EJ52,'Footnotes list'!$D$9:$E$58,2,FALSE)=0,\"\",VLOOKUP(EJ52,'Footnotes list'!$D$9:$E$58,2,FALSE) ) )","v":""},null,null,null,null,{"$f":"IF(TRIM(EO52)=\"\", \"\", IF(VLOOKUP(EO52,'Footnotes list'!$D$9:$E$58,2,FALSE)=0,\"\",VLOOKUP(EO52,'Footnotes list'!$D$9:$E$58,2,FALSE) ) )","v":""},null,null,null,null,{"$f":"IF(TRIM(ET52)=\"\", \"\", IF(VLOOKUP(ET52,'Footnotes list'!$D$9:$E$58,2,FALSE)=0,\"\",VLOOKUP(ET52,'Footnotes list'!$D$9:$E$58,2,FALSE) ) )","v":""},null,null,null,null,{"$f":"IF(TRIM(EY52)=\"\", \"\", IF(VLOOKUP(EY52,'Footnotes list'!$D$9:$E$58,2,FALSE)=0,\"\",VLOOKUP(EY52,'Footnotes list'!$D$9:$E$58,2,FALSE) ) )","v":""}]
[null,null,"C16-C18","OWN_USE","activities for own final use",null,null,null,null,null,{"$f":"IF(TRIM(J53)=\"\", \"\", IF(VLOOKUP(J53,'Footnotes list'!$D$9:$E$58,2,FALSE)=0,\"\",VLOOKUP(J53,'Footnotes list'!$D$9:$E$58,2,FALSE) ) )","v":""},null,null,null,null,{"$f":"IF(TRIM(O53)=\"\", \"\", IF(VLOOKUP(O53,'Footnotes list'!$D$9:$E$58,2,FALSE)=0,\"\",VLOOKUP(O53,'Footnotes list'!$D$9:$E$58,2,FALSE) ) )","v":""},null,null,null,null,{"$f":"IF(TRIM(T53)=\"\", \"\", IF(VLOOKUP(T53,'Footnotes list'!$D$9:$E$58,2,FALSE)=0,\"\",VLOOKUP(T53,'Footnotes list'!$D$9:$E$58,2,FALSE) ) )","v":""},null,null,null,null,{"$f":"IF(TRIM(Y53)=\"\", \"\", IF(VLOOKUP(Y53,'Footnotes list'!$D$9:$E$58,2,FALSE)=0,\"\",VLOOKUP(Y53,'Footnotes list'!$D$9:$E$58,2,FALSE) ) )","v":""},null,null,null,null,{"$f":"IF(TRIM(AD53)=\"\", \"\", IF(VLOOKUP(AD53,'Footnotes list'!$D$9:$E$58,2,FALSE)=0,\"\",VLOOKUP(AD53,'Footnotes list'!$D$9:$E$58,2,FALSE) ) )","v":""},null,null,null,null,{"$f":"IF(TRIM(AI53)=\"\", \"\", IF(VLOOKUP(AI53,'Footnotes list'!$D$9:$E$58,2,FALSE)=0,\"\",VLOOKUP(AI53,'Footnotes list'!$D$9:$E$58,2,FALSE) ) )","v":""},null,null,null,null,{"$f":"IF(TRIM(AN53)=\"\", \"\", IF(VLOOKUP(AN53,'Footnotes list'!$D$9:$E$58,2,FALSE)=0,\"\",VLOOKUP(AN53,'Footnotes list'!$D$9:$E$58,2,FALSE) ) )","v":""},null,null,null,null,{"$f":"IF(TRIM(AS53)=\"\", \"\", IF(VLOOKUP(AS53,'Footnotes list'!$D$9:$E$58,2,FALSE)=0,\"\",VLOOKUP(AS53,'Footnotes list'!$D$9:$E$58,2,FALSE) ) )","v":""},null,null,null,null,{"$f":"IF(TRIM(AX53)=\"\", \"\", IF(VLOOKUP(AX53,'Footnotes list'!$D$9:$E$58,2,FALSE)=0,\"\",VLOOKUP(AX53,'Footnotes list'!$D$9:$E$58,2,FALSE) ) )","v":""},null,null,null,null,{"$f":"IF(TRIM(BC53)=\"\", \"\", IF(VLOOKUP(BC53,'Footnotes list'!$D$9:$E$58,2,FALSE)=0,\"\",VLOOKUP(BC53,'Footnotes list'!$D$9:$E$58,2,FALSE) ) )","v":""},null,null,null,null,{"$f":"IF(TRIM(BH53)=\"\", \"\", IF(VLOOKUP(BH53,'Footnotes list'!$D$9:$E$58,2,FALSE)=0,\"\",VLOOKUP(BH53,'Footnotes list'!$D$9:$E$58,2,FALSE) ) )","v":""},null,null,null,null,{"$f":"IF(TRIM(BM53)=\"\", \"\", IF(VLOOKUP(BM53,'Footnotes list'!$D$9:$E$58,2,FALSE)=0,\"\",VLOOKUP(BM53,'Footnotes list'!$D$9:$E$58,2,FALSE) ) )","v":""},null,null,null,null,{"$f":"IF(TRIM(BR53)=\"\", \"\", IF(VLOOKUP(BR53,'Footnotes list'!$D$9:$E$58,2,FALSE)=0,\"\",VLOOKUP(BR53,'Footnotes list'!$D$9:$E$58,2,FALSE) ) )","v":""},null,null,null,null,{"$f":"IF(TRIM(BW53)=\"\", \"\", IF(VLOOKUP(BW53,'Footnotes list'!$D$9:$E$58,2,FALSE)=0,\"\",VLOOKUP(BW53,'Footnotes list'!$D$9:$E$58,2,FALSE) ) )","v":""},null,null,null,null,{"$f":"IF(TRIM(CB53)=\"\", \"\", IF(VLOOKUP(CB53,'Footnotes list'!$D$9:$E$58,2,FALSE)=0,\"\",VLOOKUP(CB53,'Footnotes list'!$D$9:$E$58,2,FALSE) ) )","v":""},null,null,null,null,{"$f":"IF(TRIM(CG53)=\"\", \"\", IF(VLOOKUP(CG53,'Footnotes list'!$D$9:$E$58,2,FALSE)=0,\"\",VLOOKUP(CG53,'Footnotes list'!$D$9:$E$58,2,FALSE) ) )","v":""},null,null,null,null,{"$f":"IF(TRIM(CL53)=\"\", \"\", IF(VLOOKUP(CL53,'Footnotes list'!$D$9:$E$58,2,FALSE)=0,\"\",VLOOKUP(CL53,'Footnotes list'!$D$9:$E$58,2,FALSE) ) )","v":""},null,null,null,null,{"$f":"IF(TRIM(CQ53)=\"\", \"\", IF(VLOOKUP(CQ53,'Footnotes list'!$D$9:$E$58,2,FALSE)=0,\"\",VLOOKUP(CQ53,'Footnotes list'!$D$9:$E$58,2,FALSE) ) )","v":""},null,null,null,null,{"$f":"IF(TRIM(CV53)=\"\", \"\", IF(VLOOKUP(CV53,'Footnotes list'!$D$9:$E$58,2,FALSE)=0,\"\",VLOOKUP(CV53,'Footnotes list'!$D$9:$E$58,2,FALSE) ) )","v":""},null,null,null,null,{"$f":"IF(TRIM(DA53)=\"\", \"\", IF(VLOOKUP(DA53,'Footnotes list'!$D$9:$E$58,2,FALSE)=0,\"\",VLOOKUP(DA53,'Footnotes list'!$D$9:$E$58,2,FALSE) ) )","v":""},null,null,null,null,{"$f":"IF(TRIM(DF53)=\"\", \"\", IF(VLOOKUP(DF53,'Footnotes list'!$D$9:$E$58,2,FALSE)=0,\"\",VLOOKUP(DF53,'Footnotes list'!$D$9:$E$58,2,FALSE) ) )","v":""},null,null,null,null,{"$f":"IF(TRIM(DK53)=\"\", \"\", IF(VLOOKUP(DK53,'Footnotes list'!$D$9:$E$58,2,FALSE)=0,\"\",VLOOKUP(DK53,'Footnotes list'!$D$9:$E$58,2,FALSE) ) )","v":""},null,null,null,null,{"$f":"IF(TRIM(DP53)=\"\", \"\", IF(VLOOKUP(DP53,'Footnotes list'!$D$9:$E$58,2,FALSE)=0,\"\",VLOOKUP(DP53,'Footnotes list'!$D$9:$E$58,2,FALSE) ) )","v":""},null,null,null,null,{"$f":"IF(TRIM(DU53)=\"\", \"\", IF(VLOOKUP(DU53,'Footnotes list'!$D$9:$E$58,2,FALSE)=0,\"\",VLOOKUP(DU53,'Footnotes list'!$D$9:$E$58,2,FALSE) ) )","v":""},null,null,null,null,{"$f":"IF(TRIM(DZ53)=\"\", \"\", IF(VLOOKUP(DZ53,'Footnotes list'!$D$9:$E$58,2,FALSE)=0,\"\",VLOOKUP(DZ53,'Footnotes list'!$D$9:$E$58,2,FALSE) ) )","v":""},null,null,null,null,{"$f":"IF(TRIM(EE53)=\"\", \"\", IF(VLOOKUP(EE53,'Footnotes list'!$D$9:$E$58,2,FALSE)=0,\"\",VLOOKUP(EE53,'Footnotes list'!$D$9:$E$58,2,FALSE) ) )","v":""},null,null,null,null,{"$f":"IF(TRIM(EJ53)=\"\", \"\", IF(VLOOKUP(EJ53,'Footnotes list'!$D$9:$E$58,2,FALSE)=0,\"\",VLOOKUP(EJ53,'Footnotes list'!$D$9:$E$58,2,FALSE) ) )","v":""},null,null,null,null,{"$f":"IF(TRIM(EO53)=\"\", \"\", IF(VLOOKUP(EO53,'Footnotes list'!$D$9:$E$58,2,FALSE)=0,\"\",VLOOKUP(EO53,'Footnotes list'!$D$9:$E$58,2,FALSE) ) )","v":""},null,null,null,null,{"$f":"IF(TRIM(ET53)=\"\", \"\", IF(VLOOKUP(ET53,'Footnotes list'!$D$9:$E$58,2,FALSE)=0,\"\",VLOOKUP(ET53,'Footnotes list'!$D$9:$E$58,2,FALSE) ) )","v":""},null,null,null,null,{"$f":"IF(TRIM(EY53)=\"\", \"\", IF(VLOOKUP(EY53,'Footnotes list'!$D$9:$E$58,2,FALSE)=0,\"\",VLOOKUP(EY53,'Footnotes list'!$D$9:$E$58,2,FALSE) ) )","v":""}]
[null,null,"C16-C18","MKT","market activities, including:",null,null,null,null,null,{"$f":"IF(TRIM(J54)=\"\", \"\", IF(VLOOKUP(J54,'Footnotes list'!$D$9:$E$58,2,FALSE)=0,\"\",VLOOKUP(J54,'Footnotes list'!$D$9:$E$58,2,FALSE) ) )","v":""},null,null,null,null,{"$f":"IF(TRIM(O54)=\"\", \"\", IF(VLOOKUP(O54,'Footnotes list'!$D$9:$E$58,2,FALSE)=0,\"\",VLOOKUP(O54,'Footnotes list'!$D$9:$E$58,2,FALSE) ) )","v":""},null,null,null,null,{"$f":"IF(TRIM(T54)=\"\", \"\", IF(VLOOKUP(T54,'Footnotes list'!$D$9:$E$58,2,FALSE)=0,\"\",VLOOKUP(T54,'Footnotes list'!$D$9:$E$58,2,FALSE) ) )","v":""},null,null,null,null,{"$f":"IF(TRIM(Y54)=\"\", \"\", IF(VLOOKUP(Y54,'Footnotes list'!$D$9:$E$58,2,FALSE)=0,\"\",VLOOKUP(Y54,'Footnotes list'!$D$9:$E$58,2,FALSE) ) )","v":""},null,null,null,null,{"$f":"IF(TRIM(AD54)=\"\", \"\", IF(VLOOKUP(AD54,'Footnotes list'!$D$9:$E$58,2,FALSE)=0,\"\",VLOOKUP(AD54,'Footnotes list'!$D$9:$E$58,2,FALSE) ) )","v":""},null,null,null,null,{"$f":"IF(TRIM(AI54)=\"\", \"\", IF(VLOOKUP(AI54,'Footnotes list'!$D$9:$E$58,2,FALSE)=0,\"\",VLOOKUP(AI54,'Footnotes list'!$D$9:$E$58,2,FALSE) ) )","v":""},null,null,null,null,{"$f":"IF(TRIM(AN54)=\"\", \"\", IF(VLOOKUP(AN54,'Footnotes list'!$D$9:$E$58,2,FALSE)=0,\"\",VLOOKUP(AN54,'Footnotes list'!$D$9:$E$58,2,FALSE) ) )","v":""},null,null,null,null,{"$f":"IF(TRIM(AS54)=\"\", \"\", IF(VLOOKUP(AS54,'Footnotes list'!$D$9:$E$58,2,FALSE)=0,\"\",VLOOKUP(AS54,'Footnotes list'!$D$9:$E$58,2,FALSE) ) )","v":""},null,null,null,null,{"$f":"IF(TRIM(AX54)=\"\", \"\", IF(VLOOKUP(AX54,'Footnotes list'!$D$9:$E$58,2,FALSE)=0,\"\",VLOOKUP(AX54,'Footnotes list'!$D$9:$E$58,2,FALSE) ) )","v":""},null,null,null,null,{"$f":"IF(TRIM(BC54)=\"\", \"\", IF(VLOOKUP(BC54,'Footnotes list'!$D$9:$E$58,2,FALSE)=0,\"\",VLOOKUP(BC54,'Footnotes list'!$D$9:$E$58,2,FALSE) ) )","v":""},null,null,null,null,{"$f":"IF(TRIM(BH54)=\"\", \"\", IF(VLOOKUP(BH54,'Footnotes list'!$D$9:$E$58,2,FALSE)=0,\"\",VLOOKUP(BH54,'Footnotes list'!$D$9:$E$58,2,FALSE) ) )","v":""},null,null,null,null,{"$f":"IF(TRIM(BM54)=\"\", \"\", IF(VLOOKUP(BM54,'Footnotes list'!$D$9:$E$58,2,FALSE)=0,\"\",VLOOKUP(BM54,'Footnotes list'!$D$9:$E$58,2,FALSE) ) )","v":""},null,null,null,null,{"$f":"IF(TRIM(BR54)=\"\", \"\", IF(VLOOKUP(BR54,'Footnotes list'!$D$9:$E$58,2,FALSE)=0,\"\",VLOOKUP(BR54,'Footnotes list'!$D$9:$E$58,2,FALSE) ) )","v":""},null,null,null,null,{"$f":"IF(TRIM(BW54)=\"\", \"\", IF(VLOOKUP(BW54,'Footnotes list'!$D$9:$E$58,2,FALSE)=0,\"\",VLOOKUP(BW54,'Footnotes list'!$D$9:$E$58,2,FALSE) ) )","v":""},null,null,null,null,{"$f":"IF(TRIM(CB54)=\"\", \"\", IF(VLOOKUP(CB54,'Footnotes list'!$D$9:$E$58,2,FALSE)=0,\"\",VLOOKUP(CB54,'Footnotes list'!$D$9:$E$58,2,FALSE) ) )","v":""},null,null,null,null,{"$f":"IF(TRIM(CG54)=\"\", \"\", IF(VLOOKUP(CG54,'Footnotes list'!$D$9:$E$58,2,FALSE)=0,\"\",VLOOKUP(CG54,'Footnotes list'!$D$9:$E$58,2,FALSE) ) )","v":""},null,null,null,null,{"$f":"IF(TRIM(CL54)=\"\", \"\", IF(VLOOKUP(CL54,'Footnotes list'!$D$9:$E$58,2,FALSE)=0,\"\",VLOOKUP(CL54,'Footnotes list'!$D$9:$E$58,2,FALSE) ) )","v":""},null,null,null,null,{"$f":"IF(TRIM(CQ54)=\"\", \"\", IF(VLOOKUP(CQ54,'Footnotes list'!$D$9:$E$58,2,FALSE)=0,\"\",VLOOKUP(CQ54,'Footnotes list'!$D$9:$E$58,2,FALSE) ) )","v":""},null,null,null,null,{"$f":"IF(TRIM(CV54)=\"\", \"\", IF(VLOOKUP(CV54,'Footnotes list'!$D$9:$E$58,2,FALSE)=0,\"\",VLOOKUP(CV54,'Footnotes list'!$D$9:$E$58,2,FALSE) ) )","v":""},null,null,null,null,{"$f":"IF(TRIM(DA54)=\"\", \"\", IF(VLOOKUP(DA54,'Footnotes list'!$D$9:$E$58,2,FALSE)=0,\"\",VLOOKUP(DA54,'Footnotes list'!$D$9:$E$58,2,FALSE) ) )","v":""},null,null,null,null,{"$f":"IF(TRIM(DF54)=\"\", \"\", IF(VLOOKUP(DF54,'Footnotes list'!$D$9:$E$58,2,FALSE)=0,\"\",VLOOKUP(DF54,'Footnotes list'!$D$9:$E$58,2,FALSE) ) )","v":""},null,null,null,null,{"$f":"IF(TRIM(DK54)=\"\", \"\", IF(VLOOKUP(DK54,'Footnotes list'!$D$9:$E$58,2,FALSE)=0,\"\",VLOOKUP(DK54,'Footnotes list'!$D$9:$E$58,2,FALSE) ) )","v":""},null,null,null,null,{"$f":"IF(TRIM(DP54)=\"\", \"\", IF(VLOOKUP(DP54,'Footnotes list'!$D$9:$E$58,2,FALSE)=0,\"\",VLOOKUP(DP54,'Footnotes list'!$D$9:$E$58,2,FALSE) ) )","v":""},null,null,null,null,{"$f":"IF(TRIM(DU54)=\"\", \"\", IF(VLOOKUP(DU54,'Footnotes list'!$D$9:$E$58,2,FALSE)=0,\"\",VLOOKUP(DU54,'Footnotes list'!$D$9:$E$58,2,FALSE) ) )","v":""},null,null,null,null,{"$f":"IF(TRIM(DZ54)=\"\", \"\", IF(VLOOKUP(DZ54,'Footnotes list'!$D$9:$E$58,2,FALSE)=0,\"\",VLOOKUP(DZ54,'Footnotes list'!$D$9:$E$58,2,FALSE) ) )","v":""},null,null,null,null,{"$f":"IF(TRIM(EE54)=\"\", \"\", IF(VLOOKUP(EE54,'Footnotes list'!$D$9:$E$58,2,FALSE)=0,\"\",VLOOKUP(EE54,'Footnotes list'!$D$9:$E$58,2,FALSE) ) )","v":""},null,null,null,null,{"$f":"IF(TRIM(EJ54)=\"\", \"\", IF(VLOOKUP(EJ54,'Footnotes list'!$D$9:$E$58,2,FALSE)=0,\"\",VLOOKUP(EJ54,'Footnotes list'!$D$9:$E$58,2,FALSE) ) )","v":""},null,null,null,null,{"$f":"IF(TRIM(EO54)=\"\", \"\", IF(VLOOKUP(EO54,'Footnotes list'!$D$9:$E$58,2,FALSE)=0,\"\",VLOOKUP(EO54,'Footnotes list'!$D$9:$E$58,2,FALSE) ) )","v":""},null,null,null,null,{"$f":"IF(TRIM(ET54)=\"\", \"\", IF(VLOOKUP(ET54,'Footnotes list'!$D$9:$E$58,2,FALSE)=0,\"\",VLOOKUP(ET54,'Footnotes list'!$D$9:$E$58,2,FALSE) ) )","v":""},null,null,null,null,{"$f":"IF(TRIM(EY54)=\"\", \"\", IF(VLOOKUP(EY54,'Footnotes list'!$D$9:$E$58,2,FALSE)=0,\"\",VLOOKUP(EY54,'Footnotes list'!$D$9:$E$58,2,FALSE) ) )","v":""}]
[null,null,"C16-C18","ES_CS","environmental specific services",null,null,null,null,null,{"$f":"IF(TRIM(J55)=\"\", \"\", IF(VLOOKUP(J55,'Footnotes list'!$D$9:$E$58,2,FALSE)=0,\"\",VLOOKUP(J55,'Footnotes list'!$D$9:$E$58,2,FALSE) ) )","v":""},null,null,null,null,{"$f":"IF(TRIM(O55)=\"\", \"\", IF(VLOOKUP(O55,'Footnotes list'!$D$9:$E$58,2,FALSE)=0,\"\",VLOOKUP(O55,'Footnotes list'!$D$9:$E$58,2,FALSE) ) )","v":""},null,null,null,null,{"$f":"IF(TRIM(T55)=\"\", \"\", IF(VLOOKUP(T55,'Footnotes list'!$D$9:$E$58,2,FALSE)=0,\"\",VLOOKUP(T55,'Footnotes list'!$D$9:$E$58,2,FALSE) ) )","v":""},null,null,null,null,{"$f":"IF(TRIM(Y55)=\"\", \"\", IF(VLOOKUP(Y55,'Footnotes list'!$D$9:$E$58,2,FALSE)=0,\"\",VLOOKUP(Y55,'Footnotes list'!$D$9:$E$58,2,FALSE) ) )","v":""},null,null,null,null,{"$f":"IF(TRIM(AD55)=\"\", \"\", IF(VLOOKUP(AD55,'Footnotes list'!$D$9:$E$58,2,FALSE)=0,\"\",VLOOKUP(AD55,'Footnotes list'!$D$9:$E$58,2,FALSE) ) )","v":""},null,null,null,null,{"$f":"IF(TRIM(AI55)=\"\", \"\", IF(VLOOKUP(AI55,'Footnotes list'!$D$9:$E$58,2,FALSE)=0,\"\",VLOOKUP(AI55,'Footnotes list'!$D$9:$E$58,2,FALSE) ) )","v":""},null,null,null,null,{"$f":"IF(TRIM(AN55)=\"\", \"\", IF(VLOOKUP(AN55,'Footnotes list'!$D$9:$E$58,2,FALSE)=0,\"\",VLOOKUP(AN55,'Footnotes list'!$D$9:$E$58,2,FALSE) ) )","v":""},null,null,null,null,{"$f":"IF(TRIM(AS55)=\"\", \"\", IF(VLOOKUP(AS55,'Footnotes list'!$D$9:$E$58,2,FALSE)=0,\"\",VLOOKUP(AS55,'Footnotes list'!$D$9:$E$58,2,FALSE) ) )","v":""},null,null,null,null,{"$f":"IF(TRIM(AX55)=\"\", \"\", IF(VLOOKUP(AX55,'Footnotes list'!$D$9:$E$58,2,FALSE)=0,\"\",VLOOKUP(AX55,'Footnotes list'!$D$9:$E$58,2,FALSE) ) )","v":""},null,null,null,null,{"$f":"IF(TRIM(BC55)=\"\", \"\", IF(VLOOKUP(BC55,'Footnotes list'!$D$9:$E$58,2,FALSE)=0,\"\",VLOOKUP(BC55,'Footnotes list'!$D$9:$E$58,2,FALSE) ) )","v":""},null,null,null,null,{"$f":"IF(TRIM(BH55)=\"\", \"\", IF(VLOOKUP(BH55,'Footnotes list'!$D$9:$E$58,2,FALSE)=0,\"\",VLOOKUP(BH55,'Footnotes list'!$D$9:$E$58,2,FALSE) ) )","v":""},null,null,null,null,{"$f":"IF(TRIM(BM55)=\"\", \"\", IF(VLOOKUP(BM55,'Footnotes list'!$D$9:$E$58,2,FALSE)=0,\"\",VLOOKUP(BM55,'Footnotes list'!$D$9:$E$58,2,FALSE) ) )","v":""},null,null,null,null,{"$f":"IF(TRIM(BR55)=\"\", \"\", IF(VLOOKUP(BR55,'Footnotes list'!$D$9:$E$58,2,FALSE)=0,\"\",VLOOKUP(BR55,'Footnotes list'!$D$9:$E$58,2,FALSE) ) )","v":""},null,null,null,null,{"$f":"IF(TRIM(BW55)=\"\", \"\", IF(VLOOKUP(BW55,'Footnotes list'!$D$9:$E$58,2,FALSE)=0,\"\",VLOOKUP(BW55,'Footnotes list'!$D$9:$E$58,2,FALSE) ) )","v":""},null,null,null,null,{"$f":"IF(TRIM(CB55)=\"\", \"\", IF(VLOOKUP(CB55,'Footnotes list'!$D$9:$E$58,2,FALSE)=0,\"\",VLOOKUP(CB55,'Footnotes list'!$D$9:$E$58,2,FALSE) ) )","v":""},null,null,null,null,{"$f":"IF(TRIM(CG55)=\"\", \"\", IF(VLOOKUP(CG55,'Footnotes list'!$D$9:$E$58,2,FALSE)=0,\"\",VLOOKUP(CG55,'Footnotes list'!$D$9:$E$58,2,FALSE) ) )","v":""},null,null,null,null,{"$f":"IF(TRIM(CL55)=\"\", \"\", IF(VLOOKUP(CL55,'Footnotes list'!$D$9:$E$58,2,FALSE)=0,\"\",VLOOKUP(CL55,'Footnotes list'!$D$9:$E$58,2,FALSE) ) )","v":""},null,null,null,null,{"$f":"IF(TRIM(CQ55)=\"\", \"\", IF(VLOOKUP(CQ55,'Footnotes list'!$D$9:$E$58,2,FALSE)=0,\"\",VLOOKUP(CQ55,'Footnotes list'!$D$9:$E$58,2,FALSE) ) )","v":""},null,null,null,null,{"$f":"IF(TRIM(CV55)=\"\", \"\", IF(VLOOKUP(CV55,'Footnotes list'!$D$9:$E$58,2,FALSE)=0,\"\",VLOOKUP(CV55,'Footnotes list'!$D$9:$E$58,2,FALSE) ) )","v":""},null,null,null,null,{"$f":"IF(TRIM(DA55)=\"\", \"\", IF(VLOOKUP(DA55,'Footnotes list'!$D$9:$E$58,2,FALSE)=0,\"\",VLOOKUP(DA55,'Footnotes list'!$D$9:$E$58,2,FALSE) ) )","v":""},null,null,null,null,{"$f":"IF(TRIM(DF55)=\"\", \"\", IF(VLOOKUP(DF55,'Footnotes list'!$D$9:$E$58,2,FALSE)=0,\"\",VLOOKUP(DF55,'Footnotes list'!$D$9:$E$58,2,FALSE) ) )","v":""},null,null,null,null,{"$f":"IF(TRIM(DK55)=\"\", \"\", IF(VLOOKUP(DK55,'Footnotes list'!$D$9:$E$58,2,FALSE)=0,\"\",VLOOKUP(DK55,'Footnotes list'!$D$9:$E$58,2,FALSE) ) )","v":""},null,null,null,null,{"$f":"IF(TRIM(DP55)=\"\", \"\", IF(VLOOKUP(DP55,'Footnotes list'!$D$9:$E$58,2,FALSE)=0,\"\",VLOOKUP(DP55,'Footnotes list'!$D$9:$E$58,2,FALSE) ) )","v":""},null,null,null,null,{"$f":"IF(TRIM(DU55)=\"\", \"\", IF(VLOOKUP(DU55,'Footnotes list'!$D$9:$E$58,2,FALSE)=0,\"\",VLOOKUP(DU55,'Footnotes list'!$D$9:$E$58,2,FALSE) ) )","v":""},null,null,null,null,{"$f":"IF(TRIM(DZ55)=\"\", \"\", IF(VLOOKUP(DZ55,'Footnotes list'!$D$9:$E$58,2,FALSE)=0,\"\",VLOOKUP(DZ55,'Footnotes list'!$D$9:$E$58,2,FALSE) ) )","v":""},null,null,null,null,{"$f":"IF(TRIM(EE55)=\"\", \"\", IF(VLOOKUP(EE55,'Footnotes list'!$D$9:$E$58,2,FALSE)=0,\"\",VLOOKUP(EE55,'Footnotes list'!$D$9:$E$58,2,FALSE) ) )","v":""},null,null,null,null,{"$f":"IF(TRIM(EJ55)=\"\", \"\", IF(VLOOKUP(EJ55,'Footnotes list'!$D$9:$E$58,2,FALSE)=0,\"\",VLOOKUP(EJ55,'Footnotes list'!$D$9:$E$58,2,FALSE) ) )","v":""},null,null,null,null,{"$f":"IF(TRIM(EO55)=\"\", \"\", IF(VLOOKUP(EO55,'Footnotes list'!$D$9:$E$58,2,FALSE)=0,\"\",VLOOKUP(EO55,'Footnotes list'!$D$9:$E$58,2,FALSE) ) )","v":""},null,null,null,null,{"$f":"IF(TRIM(ET55)=\"\", \"\", IF(VLOOKUP(ET55,'Footnotes list'!$D$9:$E$58,2,FALSE)=0,\"\",VLOOKUP(ET55,'Footnotes list'!$D$9:$E$58,2,FALSE) ) )","v":""},null,null,null,null,{"$f":"IF(TRIM(EY55)=\"\", \"\", IF(VLOOKUP(EY55,'Footnotes list'!$D$9:$E$58,2,FALSE)=0,\"\",VLOOKUP(EY55,'Footnotes list'!$D$9:$E$58,2,FALSE) ) )","v":""}]
[null,null,"C16-C18","C_REP","cleaner and resource efficient products",null,null,null,null,null,{"$f":"IF(TRIM(J56)=\"\", \"\", IF(VLOOKUP(J56,'Footnotes list'!$D$9:$E$58,2,FALSE)=0,\"\",VLOOKUP(J56,'Footnotes list'!$D$9:$E$58,2,FALSE) ) )","v":""},null,null,null,null,{"$f":"IF(TRIM(O56)=\"\", \"\", IF(VLOOKUP(O56,'Footnotes list'!$D$9:$E$58,2,FALSE)=0,\"\",VLOOKUP(O56,'Footnotes list'!$D$9:$E$58,2,FALSE) ) )","v":""},null,null,null,null,{"$f":"IF(TRIM(T56)=\"\", \"\", IF(VLOOKUP(T56,'Footnotes list'!$D$9:$E$58,2,FALSE)=0,\"\",VLOOKUP(T56,'Footnotes list'!$D$9:$E$58,2,FALSE) ) )","v":""},null,null,null,null,{"$f":"IF(TRIM(Y56)=\"\", \"\", IF(VLOOKUP(Y56,'Footnotes list'!$D$9:$E$58,2,FALSE)=0,\"\",VLOOKUP(Y56,'Footnotes list'!$D$9:$E$58,2,FALSE) ) )","v":""},null,null,null,null,{"$f":"IF(TRIM(AD56)=\"\", \"\", IF(VLOOKUP(AD56,'Footnotes list'!$D$9:$E$58,2,FALSE)=0,\"\",VLOOKUP(AD56,'Footnotes list'!$D$9:$E$58,2,FALSE) ) )","v":""},null,null,null,null,{"$f":"IF(TRIM(AI56)=\"\", \"\", IF(VLOOKUP(AI56,'Footnotes list'!$D$9:$E$58,2,FALSE)=0,\"\",VLOOKUP(AI56,'Footnotes list'!$D$9:$E$58,2,FALSE) ) )","v":""},null,null,null,null,{"$f":"IF(TRIM(AN56)=\"\", \"\", IF(VLOOKUP(AN56,'Footnotes list'!$D$9:$E$58,2,FALSE)=0,\"\",VLOOKUP(AN56,'Footnotes list'!$D$9:$E$58,2,FALSE) ) )","v":""},null,null,null,null,{"$f":"IF(TRIM(AS56)=\"\", \"\", IF(VLOOKUP(AS56,'Footnotes list'!$D$9:$E$58,2,FALSE)=0,\"\",VLOOKUP(AS56,'Footnotes list'!$D$9:$E$58,2,FALSE) ) )","v":""},null,null,null,null,{"$f":"IF(TRIM(AX56)=\"\", \"\", IF(VLOOKUP(AX56,'Footnotes list'!$D$9:$E$58,2,FALSE)=0,\"\",VLOOKUP(AX56,'Footnotes list'!$D$9:$E$58,2,FALSE) ) )","v":""},null,null,null,null,{"$f":"IF(TRIM(BC56)=\"\", \"\", IF(VLOOKUP(BC56,'Footnotes list'!$D$9:$E$58,2,FALSE)=0,\"\",VLOOKUP(BC56,'Footnotes list'!$D$9:$E$58,2,FALSE) ) )","v":""},null,null,null,null,{"$f":"IF(TRIM(BH56)=\"\", \"\", IF(VLOOKUP(BH56,'Footnotes list'!$D$9:$E$58,2,FALSE)=0,\"\",VLOOKUP(BH56,'Footnotes list'!$D$9:$E$58,2,FALSE) ) )","v":""},null,null,null,null,{"$f":"IF(TRIM(BM56)=\"\", \"\", IF(VLOOKUP(BM56,'Footnotes list'!$D$9:$E$58,2,FALSE)=0,\"\",VLOOKUP(BM56,'Footnotes list'!$D$9:$E$58,2,FALSE) ) )","v":""},null,null,null,null,{"$f":"IF(TRIM(BR56)=\"\", \"\", IF(VLOOKUP(BR56,'Footnotes list'!$D$9:$E$58,2,FALSE)=0,\"\",VLOOKUP(BR56,'Footnotes list'!$D$9:$E$58,2,FALSE) ) )","v":""},null,null,null,null,{"$f":"IF(TRIM(BW56)=\"\", \"\", IF(VLOOKUP(BW56,'Footnotes list'!$D$9:$E$58,2,FALSE)=0,\"\",VLOOKUP(BW56,'Footnotes list'!$D$9:$E$58,2,FALSE) ) )","v":""},null,null,null,null,{"$f":"IF(TRIM(CB56)=\"\", \"\", IF(VLOOKUP(CB56,'Footnotes list'!$D$9:$E$58,2,FALSE)=0,\"\",VLOOKUP(CB56,'Footnotes list'!$D$9:$E$58,2,FALSE) ) )","v":""},null,null,null,null,{"$f":"IF(TRIM(CG56)=\"\", \"\", IF(VLOOKUP(CG56,'Footnotes list'!$D$9:$E$58,2,FALSE)=0,\"\",VLOOKUP(CG56,'Footnotes list'!$D$9:$E$58,2,FALSE) ) )","v":""},null,null,null,null,{"$f":"IF(TRIM(CL56)=\"\", \"\", IF(VLOOKUP(CL56,'Footnotes list'!$D$9:$E$58,2,FALSE)=0,\"\",VLOOKUP(CL56,'Footnotes list'!$D$9:$E$58,2,FALSE) ) )","v":""},null,null,null,null,{"$f":"IF(TRIM(CQ56)=\"\", \"\", IF(VLOOKUP(CQ56,'Footnotes list'!$D$9:$E$58,2,FALSE)=0,\"\",VLOOKUP(CQ56,'Footnotes list'!$D$9:$E$58,2,FALSE) ) )","v":""},null,null,null,null,{"$f":"IF(TRIM(CV56)=\"\", \"\", IF(VLOOKUP(CV56,'Footnotes list'!$D$9:$E$58,2,FALSE)=0,\"\",VLOOKUP(CV56,'Footnotes list'!$D$9:$E$58,2,FALSE) ) )","v":""},null,null,null,null,{"$f":"IF(TRIM(DA56)=\"\", \"\", IF(VLOOKUP(DA56,'Footnotes list'!$D$9:$E$58,2,FALSE)=0,\"\",VLOOKUP(DA56,'Footnotes list'!$D$9:$E$58,2,FALSE) ) )","v":""},null,null,null,null,{"$f":"IF(TRIM(DF56)=\"\", \"\", IF(VLOOKUP(DF56,'Footnotes list'!$D$9:$E$58,2,FALSE)=0,\"\",VLOOKUP(DF56,'Footnotes list'!$D$9:$E$58,2,FALSE) ) )","v":""},null,null,null,null,{"$f":"IF(TRIM(DK56)=\"\", \"\", IF(VLOOKUP(DK56,'Footnotes list'!$D$9:$E$58,2,FALSE)=0,\"\",VLOOKUP(DK56,'Footnotes list'!$D$9:$E$58,2,FALSE) ) )","v":""},null,null,null,null,{"$f":"IF(TRIM(DP56)=\"\", \"\", IF(VLOOKUP(DP56,'Footnotes list'!$D$9:$E$58,2,FALSE)=0,\"\",VLOOKUP(DP56,'Footnotes list'!$D$9:$E$58,2,FALSE) ) )","v":""},null,null,null,null,{"$f":"IF(TRIM(DU56)=\"\", \"\", IF(VLOOKUP(DU56,'Footnotes list'!$D$9:$E$58,2,FALSE)=0,\"\",VLOOKUP(DU56,'Footnotes list'!$D$9:$E$58,2,FALSE) ) )","v":""},null,null,null,null,{"$f":"IF(TRIM(DZ56)=\"\", \"\", IF(VLOOKUP(DZ56,'Footnotes list'!$D$9:$E$58,2,FALSE)=0,\"\",VLOOKUP(DZ56,'Footnotes list'!$D$9:$E$58,2,FALSE) ) )","v":""},null,null,null,null,{"$f":"IF(TRIM(EE56)=\"\", \"\", IF(VLOOKUP(EE56,'Footnotes list'!$D$9:$E$58,2,FALSE)=0,\"\",VLOOKUP(EE56,'Footnotes list'!$D$9:$E$58,2,FALSE) ) )","v":""},null,null,null,null,{"$f":"IF(TRIM(EJ56)=\"\", \"\", IF(VLOOKUP(EJ56,'Footnotes list'!$D$9:$E$58,2,FALSE)=0,\"\",VLOOKUP(EJ56,'Footnotes list'!$D$9:$E$58,2,FALSE) ) )","v":""},null,null,null,null,{"$f":"IF(TRIM(EO56)=\"\", \"\", IF(VLOOKUP(EO56,'Footnotes list'!$D$9:$E$58,2,FALSE)=0,\"\",VLOOKUP(EO56,'Footnotes list'!$D$9:$E$58,2,FALSE) ) )","v":""},null,null,null,null,{"$f":"IF(TRIM(ET56)=\"\", \"\", IF(VLOOKUP(ET56,'Footnotes list'!$D$9:$E$58,2,FALSE)=0,\"\",VLOOKUP(ET56,'Footnotes list'!$D$9:$E$58,2,FALSE) ) )","v":""},null,null,null,null,{"$f":"IF(TRIM(EY56)=\"\", \"\", IF(VLOOKUP(EY56,'Footnotes list'!$D$9:$E$58,2,FALSE)=0,\"\",VLOOKUP(EY56,'Footnotes list'!$D$9:$E$58,2,FALSE) ) )","v":""}]
[null,null,"C19","TOT_EGSS","Total C19 - Manufacture of coke and refined petroleum products, of which:",null,null,null,null,null,{"$f":"IF(TRIM(J57)=\"\", \"\", IF(VLOOKUP(J57,'Footnotes list'!$D$9:$E$58,2,FALSE)=0,\"\",VLOOKUP(J57,'Footnotes list'!$D$9:$E$58,2,FALSE) ) )","v":""},null,null,null,null,{"$f":"IF(TRIM(O57)=\"\", \"\", IF(VLOOKUP(O57,'Footnotes list'!$D$9:$E$58,2,FALSE)=0,\"\",VLOOKUP(O57,'Footnotes list'!$D$9:$E$58,2,FALSE) ) )","v":""},null,null,null,null,{"$f":"IF(TRIM(T57)=\"\", \"\", IF(VLOOKUP(T57,'Footnotes list'!$D$9:$E$58,2,FALSE)=0,\"\",VLOOKUP(T57,'Footnotes list'!$D$9:$E$58,2,FALSE) ) )","v":""},null,null,null,null,{"$f":"IF(TRIM(Y57)=\"\", \"\", IF(VLOOKUP(Y57,'Footnotes list'!$D$9:$E$58,2,FALSE)=0,\"\",VLOOKUP(Y57,'Footnotes list'!$D$9:$E$58,2,FALSE) ) )","v":""},null,null,null,null,{"$f":"IF(TRIM(AD57)=\"\", \"\", IF(VLOOKUP(AD57,'Footnotes list'!$D$9:$E$58,2,FALSE)=0,\"\",VLOOKUP(AD57,'Footnotes list'!$D$9:$E$58,2,FALSE) ) )","v":""},null,null,null,null,{"$f":"IF(TRIM(AI57)=\"\", \"\", IF(VLOOKUP(AI57,'Footnotes list'!$D$9:$E$58,2,FALSE)=0,\"\",VLOOKUP(AI57,'Footnotes list'!$D$9:$E$58,2,FALSE) ) )","v":""},null,null,null,null,{"$f":"IF(TRIM(AN57)=\"\", \"\", IF(VLOOKUP(AN57,'Footnotes list'!$D$9:$E$58,2,FALSE)=0,\"\",VLOOKUP(AN57,'Footnotes list'!$D$9:$E$58,2,FALSE) ) )","v":""},null,null,null,null,{"$f":"IF(TRIM(AS57)=\"\", \"\", IF(VLOOKUP(AS57,'Footnotes list'!$D$9:$E$58,2,FALSE)=0,\"\",VLOOKUP(AS57,'Footnotes list'!$D$9:$E$58,2,FALSE) ) )","v":""},null,null,null,null,{"$f":"IF(TRIM(AX57)=\"\", \"\", IF(VLOOKUP(AX57,'Footnotes list'!$D$9:$E$58,2,FALSE)=0,\"\",VLOOKUP(AX57,'Footnotes list'!$D$9:$E$58,2,FALSE) ) )","v":""},null,null,null,null,{"$f":"IF(TRIM(BC57)=\"\", \"\", IF(VLOOKUP(BC57,'Footnotes list'!$D$9:$E$58,2,FALSE)=0,\"\",VLOOKUP(BC57,'Footnotes list'!$D$9:$E$58,2,FALSE) ) )","v":""},null,null,null,null,{"$f":"IF(TRIM(BH57)=\"\", \"\", IF(VLOOKUP(BH57,'Footnotes list'!$D$9:$E$58,2,FALSE)=0,\"\",VLOOKUP(BH57,'Footnotes list'!$D$9:$E$58,2,FALSE) ) )","v":""},null,null,null,null,{"$f":"IF(TRIM(BM57)=\"\", \"\", IF(VLOOKUP(BM57,'Footnotes list'!$D$9:$E$58,2,FALSE)=0,\"\",VLOOKUP(BM57,'Footnotes list'!$D$9:$E$58,2,FALSE) ) )","v":""},null,null,null,null,{"$f":"IF(TRIM(BR57)=\"\", \"\", IF(VLOOKUP(BR57,'Footnotes list'!$D$9:$E$58,2,FALSE)=0,\"\",VLOOKUP(BR57,'Footnotes list'!$D$9:$E$58,2,FALSE) ) )","v":""},null,null,null,null,{"$f":"IF(TRIM(BW57)=\"\", \"\", IF(VLOOKUP(BW57,'Footnotes list'!$D$9:$E$58,2,FALSE)=0,\"\",VLOOKUP(BW57,'Footnotes list'!$D$9:$E$58,2,FALSE) ) )","v":""},null,null,null,null,{"$f":"IF(TRIM(CB57)=\"\", \"\", IF(VLOOKUP(CB57,'Footnotes list'!$D$9:$E$58,2,FALSE)=0,\"\",VLOOKUP(CB57,'Footnotes list'!$D$9:$E$58,2,FALSE) ) )","v":""},null,null,null,null,{"$f":"IF(TRIM(CG57)=\"\", \"\", IF(VLOOKUP(CG57,'Footnotes list'!$D$9:$E$58,2,FALSE)=0,\"\",VLOOKUP(CG57,'Footnotes list'!$D$9:$E$58,2,FALSE) ) )","v":""},null,null,null,null,{"$f":"IF(TRIM(CL57)=\"\", \"\", IF(VLOOKUP(CL57,'Footnotes list'!$D$9:$E$58,2,FALSE)=0,\"\",VLOOKUP(CL57,'Footnotes list'!$D$9:$E$58,2,FALSE) ) )","v":""},null,null,null,null,{"$f":"IF(TRIM(CQ57)=\"\", \"\", IF(VLOOKUP(CQ57,'Footnotes list'!$D$9:$E$58,2,FALSE)=0,\"\",VLOOKUP(CQ57,'Footnotes list'!$D$9:$E$58,2,FALSE) ) )","v":""},null,null,null,null,{"$f":"IF(TRIM(CV57)=\"\", \"\", IF(VLOOKUP(CV57,'Footnotes list'!$D$9:$E$58,2,FALSE)=0,\"\",VLOOKUP(CV57,'Footnotes list'!$D$9:$E$58,2,FALSE) ) )","v":""},null,null,null,null,{"$f":"IF(TRIM(DA57)=\"\", \"\", IF(VLOOKUP(DA57,'Footnotes list'!$D$9:$E$58,2,FALSE)=0,\"\",VLOOKUP(DA57,'Footnotes list'!$D$9:$E$58,2,FALSE) ) )","v":""},null,null,null,null,{"$f":"IF(TRIM(DF57)=\"\", \"\", IF(VLOOKUP(DF57,'Footnotes list'!$D$9:$E$58,2,FALSE)=0,\"\",VLOOKUP(DF57,'Footnotes list'!$D$9:$E$58,2,FALSE) ) )","v":""},null,null,null,null,{"$f":"IF(TRIM(DK57)=\"\", \"\", IF(VLOOKUP(DK57,'Footnotes list'!$D$9:$E$58,2,FALSE)=0,\"\",VLOOKUP(DK57,'Footnotes list'!$D$9:$E$58,2,FALSE) ) )","v":""},null,null,null,null,{"$f":"IF(TRIM(DP57)=\"\", \"\", IF(VLOOKUP(DP57,'Footnotes list'!$D$9:$E$58,2,FALSE)=0,\"\",VLOOKUP(DP57,'Footnotes list'!$D$9:$E$58,2,FALSE) ) )","v":""},null,null,null,null,{"$f":"IF(TRIM(DU57)=\"\", \"\", IF(VLOOKUP(DU57,'Footnotes list'!$D$9:$E$58,2,FALSE)=0,\"\",VLOOKUP(DU57,'Footnotes list'!$D$9:$E$58,2,FALSE) ) )","v":""},null,null,null,null,{"$f":"IF(TRIM(DZ57)=\"\", \"\", IF(VLOOKUP(DZ57,'Footnotes list'!$D$9:$E$58,2,FALSE)=0,\"\",VLOOKUP(DZ57,'Footnotes list'!$D$9:$E$58,2,FALSE) ) )","v":""},null,null,null,null,{"$f":"IF(TRIM(EE57)=\"\", \"\", IF(VLOOKUP(EE57,'Footnotes list'!$D$9:$E$58,2,FALSE)=0,\"\",VLOOKUP(EE57,'Footnotes list'!$D$9:$E$58,2,FALSE) ) )","v":""},null,null,null,null,{"$f":"IF(TRIM(EJ57)=\"\", \"\", IF(VLOOKUP(EJ57,'Footnotes list'!$D$9:$E$58,2,FALSE)=0,\"\",VLOOKUP(EJ57,'Footnotes list'!$D$9:$E$58,2,FALSE) ) )","v":""},null,null,null,null,{"$f":"IF(TRIM(EO57)=\"\", \"\", IF(VLOOKUP(EO57,'Footnotes list'!$D$9:$E$58,2,FALSE)=0,\"\",VLOOKUP(EO57,'Footnotes list'!$D$9:$E$58,2,FALSE) ) )","v":""},null,null,null,null,{"$f":"IF(TRIM(ET57)=\"\", \"\", IF(VLOOKUP(ET57,'Footnotes list'!$D$9:$E$58,2,FALSE)=0,\"\",VLOOKUP(ET57,'Footnotes list'!$D$9:$E$58,2,FALSE) ) )","v":""},null,null,null,null,{"$f":"IF(TRIM(EY57)=\"\", \"\", IF(VLOOKUP(EY57,'Footnotes list'!$D$9:$E$58,2,FALSE)=0,\"\",VLOOKUP(EY57,'Footnotes list'!$D$9:$E$58,2,FALSE) ) )","v":""}]
[null,null,"C19","ANC","ancillary activities",null,null,null,null,null,{"$f":"IF(TRIM(J58)=\"\", \"\", IF(VLOOKUP(J58,'Footnotes list'!$D$9:$E$58,2,FALSE)=0,\"\",VLOOKUP(J58,'Footnotes list'!$D$9:$E$58,2,FALSE) ) )","v":""},null,null,null,null,{"$f":"IF(TRIM(O58)=\"\", \"\", IF(VLOOKUP(O58,'Footnotes list'!$D$9:$E$58,2,FALSE)=0,\"\",VLOOKUP(O58,'Footnotes list'!$D$9:$E$58,2,FALSE) ) )","v":""},null,null,null,null,{"$f":"IF(TRIM(T58)=\"\", \"\", IF(VLOOKUP(T58,'Footnotes list'!$D$9:$E$58,2,FALSE)=0,\"\",VLOOKUP(T58,'Footnotes list'!$D$9:$E$58,2,FALSE) ) )","v":""},null,null,null,null,{"$f":"IF(TRIM(Y58)=\"\", \"\", IF(VLOOKUP(Y58,'Footnotes list'!$D$9:$E$58,2,FALSE)=0,\"\",VLOOKUP(Y58,'Footnotes list'!$D$9:$E$58,2,FALSE) ) )","v":""},null,null,null,null,{"$f":"IF(TRIM(AD58)=\"\", \"\", IF(VLOOKUP(AD58,'Footnotes list'!$D$9:$E$58,2,FALSE)=0,\"\",VLOOKUP(AD58,'Footnotes list'!$D$9:$E$58,2,FALSE) ) )","v":""},null,null,null,null,{"$f":"IF(TRIM(AI58)=\"\", \"\", IF(VLOOKUP(AI58,'Footnotes list'!$D$9:$E$58,2,FALSE)=0,\"\",VLOOKUP(AI58,'Footnotes list'!$D$9:$E$58,2,FALSE) ) )","v":""},null,null,null,null,{"$f":"IF(TRIM(AN58)=\"\", \"\", IF(VLOOKUP(AN58,'Footnotes list'!$D$9:$E$58,2,FALSE)=0,\"\",VLOOKUP(AN58,'Footnotes list'!$D$9:$E$58,2,FALSE) ) )","v":""},null,null,null,null,{"$f":"IF(TRIM(AS58)=\"\", \"\", IF(VLOOKUP(AS58,'Footnotes list'!$D$9:$E$58,2,FALSE)=0,\"\",VLOOKUP(AS58,'Footnotes list'!$D$9:$E$58,2,FALSE) ) )","v":""},null,null,null,null,{"$f":"IF(TRIM(AX58)=\"\", \"\", IF(VLOOKUP(AX58,'Footnotes list'!$D$9:$E$58,2,FALSE)=0,\"\",VLOOKUP(AX58,'Footnotes list'!$D$9:$E$58,2,FALSE) ) )","v":""},null,null,null,null,{"$f":"IF(TRIM(BC58)=\"\", \"\", IF(VLOOKUP(BC58,'Footnotes list'!$D$9:$E$58,2,FALSE)=0,\"\",VLOOKUP(BC58,'Footnotes list'!$D$9:$E$58,2,FALSE) ) )","v":""},null,null,null,null,{"$f":"IF(TRIM(BH58)=\"\", \"\", IF(VLOOKUP(BH58,'Footnotes list'!$D$9:$E$58,2,FALSE)=0,\"\",VLOOKUP(BH58,'Footnotes list'!$D$9:$E$58,2,FALSE) ) )","v":""},null,null,null,null,{"$f":"IF(TRIM(BM58)=\"\", \"\", IF(VLOOKUP(BM58,'Footnotes list'!$D$9:$E$58,2,FALSE)=0,\"\",VLOOKUP(BM58,'Footnotes list'!$D$9:$E$58,2,FALSE) ) )","v":""},null,null,null,null,{"$f":"IF(TRIM(BR58)=\"\", \"\", IF(VLOOKUP(BR58,'Footnotes list'!$D$9:$E$58,2,FALSE)=0,\"\",VLOOKUP(BR58,'Footnotes list'!$D$9:$E$58,2,FALSE) ) )","v":""},null,null,null,null,{"$f":"IF(TRIM(BW58)=\"\", \"\", IF(VLOOKUP(BW58,'Footnotes list'!$D$9:$E$58,2,FALSE)=0,\"\",VLOOKUP(BW58,'Footnotes list'!$D$9:$E$58,2,FALSE) ) )","v":""},null,null,null,null,{"$f":"IF(TRIM(CB58)=\"\", \"\", IF(VLOOKUP(CB58,'Footnotes list'!$D$9:$E$58,2,FALSE)=0,\"\",VLOOKUP(CB58,'Footnotes list'!$D$9:$E$58,2,FALSE) ) )","v":""},null,null,null,null,{"$f":"IF(TRIM(CG58)=\"\", \"\", IF(VLOOKUP(CG58,'Footnotes list'!$D$9:$E$58,2,FALSE)=0,\"\",VLOOKUP(CG58,'Footnotes list'!$D$9:$E$58,2,FALSE) ) )","v":""},null,null,null,null,{"$f":"IF(TRIM(CL58)=\"\", \"\", IF(VLOOKUP(CL58,'Footnotes list'!$D$9:$E$58,2,FALSE)=0,\"\",VLOOKUP(CL58,'Footnotes list'!$D$9:$E$58,2,FALSE) ) )","v":""},null,null,null,null,{"$f":"IF(TRIM(CQ58)=\"\", \"\", IF(VLOOKUP(CQ58,'Footnotes list'!$D$9:$E$58,2,FALSE)=0,\"\",VLOOKUP(CQ58,'Footnotes list'!$D$9:$E$58,2,FALSE) ) )","v":""},null,null,null,null,{"$f":"IF(TRIM(CV58)=\"\", \"\", IF(VLOOKUP(CV58,'Footnotes list'!$D$9:$E$58,2,FALSE)=0,\"\",VLOOKUP(CV58,'Footnotes list'!$D$9:$E$58,2,FALSE) ) )","v":""},null,null,null,null,{"$f":"IF(TRIM(DA58)=\"\", \"\", IF(VLOOKUP(DA58,'Footnotes list'!$D$9:$E$58,2,FALSE)=0,\"\",VLOOKUP(DA58,'Footnotes list'!$D$9:$E$58,2,FALSE) ) )","v":""},null,null,null,null,{"$f":"IF(TRIM(DF58)=\"\", \"\", IF(VLOOKUP(DF58,'Footnotes list'!$D$9:$E$58,2,FALSE)=0,\"\",VLOOKUP(DF58,'Footnotes list'!$D$9:$E$58,2,FALSE) ) )","v":""},null,null,null,null,{"$f":"IF(TRIM(DK58)=\"\", \"\", IF(VLOOKUP(DK58,'Footnotes list'!$D$9:$E$58,2,FALSE)=0,\"\",VLOOKUP(DK58,'Footnotes list'!$D$9:$E$58,2,FALSE) ) )","v":""},null,null,null,null,{"$f":"IF(TRIM(DP58)=\"\", \"\", IF(VLOOKUP(DP58,'Footnotes list'!$D$9:$E$58,2,FALSE)=0,\"\",VLOOKUP(DP58,'Footnotes list'!$D$9:$E$58,2,FALSE) ) )","v":""},null,null,null,null,{"$f":"IF(TRIM(DU58)=\"\", \"\", IF(VLOOKUP(DU58,'Footnotes list'!$D$9:$E$58,2,FALSE)=0,\"\",VLOOKUP(DU58,'Footnotes list'!$D$9:$E$58,2,FALSE) ) )","v":""},null,null,null,null,{"$f":"IF(TRIM(DZ58)=\"\", \"\", IF(VLOOKUP(DZ58,'Footnotes list'!$D$9:$E$58,2,FALSE)=0,\"\",VLOOKUP(DZ58,'Footnotes list'!$D$9:$E$58,2,FALSE) ) )","v":""},null,null,null,null,{"$f":"IF(TRIM(EE58)=\"\", \"\", IF(VLOOKUP(EE58,'Footnotes list'!$D$9:$E$58,2,FALSE)=0,\"\",VLOOKUP(EE58,'Footnotes list'!$D$9:$E$58,2,FALSE) ) )","v":""},null,null,null,null,{"$f":"IF(TRIM(EJ58)=\"\", \"\", IF(VLOOKUP(EJ58,'Footnotes list'!$D$9:$E$58,2,FALSE)=0,\"\",VLOOKUP(EJ58,'Footnotes list'!$D$9:$E$58,2,FALSE) ) )","v":""},null,null,null,null,{"$f":"IF(TRIM(EO58)=\"\", \"\", IF(VLOOKUP(EO58,'Footnotes list'!$D$9:$E$58,2,FALSE)=0,\"\",VLOOKUP(EO58,'Footnotes list'!$D$9:$E$58,2,FALSE) ) )","v":""},null,null,null,null,{"$f":"IF(TRIM(ET58)=\"\", \"\", IF(VLOOKUP(ET58,'Footnotes list'!$D$9:$E$58,2,FALSE)=0,\"\",VLOOKUP(ET58,'Footnotes list'!$D$9:$E$58,2,FALSE) ) )","v":""},null,null,null,null,{"$f":"IF(TRIM(EY58)=\"\", \"\", IF(VLOOKUP(EY58,'Footnotes list'!$D$9:$E$58,2,FALSE)=0,\"\",VLOOKUP(EY58,'Footnotes list'!$D$9:$E$58,2,FALSE) ) )","v":""}]
[null,null,"C19","NMKT","non-market activities",null,null,null,null,null,{"$f":"IF(TRIM(J59)=\"\", \"\", IF(VLOOKUP(J59,'Footnotes list'!$D$9:$E$58,2,FALSE)=0,\"\",VLOOKUP(J59,'Footnotes list'!$D$9:$E$58,2,FALSE) ) )","v":""},null,null,null,null,{"$f":"IF(TRIM(O59)=\"\", \"\", IF(VLOOKUP(O59,'Footnotes list'!$D$9:$E$58,2,FALSE)=0,\"\",VLOOKUP(O59,'Footnotes list'!$D$9:$E$58,2,FALSE) ) )","v":""},null,null,null,null,{"$f":"IF(TRIM(T59)=\"\", \"\", IF(VLOOKUP(T59,'Footnotes list'!$D$9:$E$58,2,FALSE)=0,\"\",VLOOKUP(T59,'Footnotes list'!$D$9:$E$58,2,FALSE) ) )","v":""},null,null,null,null,{"$f":"IF(TRIM(Y59)=\"\", \"\", IF(VLOOKUP(Y59,'Footnotes list'!$D$9:$E$58,2,FALSE)=0,\"\",VLOOKUP(Y59,'Footnotes list'!$D$9:$E$58,2,FALSE) ) )","v":""},null,null,null,null,{"$f":"IF(TRIM(AD59)=\"\", \"\", IF(VLOOKUP(AD59,'Footnotes list'!$D$9:$E$58,2,FALSE)=0,\"\",VLOOKUP(AD59,'Footnotes list'!$D$9:$E$58,2,FALSE) ) )","v":""},null,null,null,null,{"$f":"IF(TRIM(AI59)=\"\", \"\", IF(VLOOKUP(AI59,'Footnotes list'!$D$9:$E$58,2,FALSE)=0,\"\",VLOOKUP(AI59,'Footnotes list'!$D$9:$E$58,2,FALSE) ) )","v":""},null,null,null,null,{"$f":"IF(TRIM(AN59)=\"\", \"\", IF(VLOOKUP(AN59,'Footnotes list'!$D$9:$E$58,2,FALSE)=0,\"\",VLOOKUP(AN59,'Footnotes list'!$D$9:$E$58,2,FALSE) ) )","v":""},null,null,null,null,{"$f":"IF(TRIM(AS59)=\"\", \"\", IF(VLOOKUP(AS59,'Footnotes list'!$D$9:$E$58,2,FALSE)=0,\"\",VLOOKUP(AS59,'Footnotes list'!$D$9:$E$58,2,FALSE) ) )","v":""},null,null,null,null,{"$f":"IF(TRIM(AX59)=\"\", \"\", IF(VLOOKUP(AX59,'Footnotes list'!$D$9:$E$58,2,FALSE)=0,\"\",VLOOKUP(AX59,'Footnotes list'!$D$9:$E$58,2,FALSE) ) )","v":""},null,null,null,null,{"$f":"IF(TRIM(BC59)=\"\", \"\", IF(VLOOKUP(BC59,'Footnotes list'!$D$9:$E$58,2,FALSE)=0,\"\",VLOOKUP(BC59,'Footnotes list'!$D$9:$E$58,2,FALSE) ) )","v":""},null,null,null,null,{"$f":"IF(TRIM(BH59)=\"\", \"\", IF(VLOOKUP(BH59,'Footnotes list'!$D$9:$E$58,2,FALSE)=0,\"\",VLOOKUP(BH59,'Footnotes list'!$D$9:$E$58,2,FALSE) ) )","v":""},null,null,null,null,{"$f":"IF(TRIM(BM59)=\"\", \"\", IF(VLOOKUP(BM59,'Footnotes list'!$D$9:$E$58,2,FALSE)=0,\"\",VLOOKUP(BM59,'Footnotes list'!$D$9:$E$58,2,FALSE) ) )","v":""},null,null,null,null,{"$f":"IF(TRIM(BR59)=\"\", \"\", IF(VLOOKUP(BR59,'Footnotes list'!$D$9:$E$58,2,FALSE)=0,\"\",VLOOKUP(BR59,'Footnotes list'!$D$9:$E$58,2,FALSE) ) )","v":""},null,null,null,null,{"$f":"IF(TRIM(BW59)=\"\", \"\", IF(VLOOKUP(BW59,'Footnotes list'!$D$9:$E$58,2,FALSE)=0,\"\",VLOOKUP(BW59,'Footnotes list'!$D$9:$E$58,2,FALSE) ) )","v":""},null,null,null,null,{"$f":"IF(TRIM(CB59)=\"\", \"\", IF(VLOOKUP(CB59,'Footnotes list'!$D$9:$E$58,2,FALSE)=0,\"\",VLOOKUP(CB59,'Footnotes list'!$D$9:$E$58,2,FALSE) ) )","v":""},null,null,null,null,{"$f":"IF(TRIM(CG59)=\"\", \"\", IF(VLOOKUP(CG59,'Footnotes list'!$D$9:$E$58,2,FALSE)=0,\"\",VLOOKUP(CG59,'Footnotes list'!$D$9:$E$58,2,FALSE) ) )","v":""},null,null,null,null,{"$f":"IF(TRIM(CL59)=\"\", \"\", IF(VLOOKUP(CL59,'Footnotes list'!$D$9:$E$58,2,FALSE)=0,\"\",VLOOKUP(CL59,'Footnotes list'!$D$9:$E$58,2,FALSE) ) )","v":""},null,null,null,null,{"$f":"IF(TRIM(CQ59)=\"\", \"\", IF(VLOOKUP(CQ59,'Footnotes list'!$D$9:$E$58,2,FALSE)=0,\"\",VLOOKUP(CQ59,'Footnotes list'!$D$9:$E$58,2,FALSE) ) )","v":""},null,null,null,null,{"$f":"IF(TRIM(CV59)=\"\", \"\", IF(VLOOKUP(CV59,'Footnotes list'!$D$9:$E$58,2,FALSE)=0,\"\",VLOOKUP(CV59,'Footnotes list'!$D$9:$E$58,2,FALSE) ) )","v":""},null,null,null,null,{"$f":"IF(TRIM(DA59)=\"\", \"\", IF(VLOOKUP(DA59,'Footnotes list'!$D$9:$E$58,2,FALSE)=0,\"\",VLOOKUP(DA59,'Footnotes list'!$D$9:$E$58,2,FALSE) ) )","v":""},null,null,null,null,{"$f":"IF(TRIM(DF59)=\"\", \"\", IF(VLOOKUP(DF59,'Footnotes list'!$D$9:$E$58,2,FALSE)=0,\"\",VLOOKUP(DF59,'Footnotes list'!$D$9:$E$58,2,FALSE) ) )","v":""},null,null,null,null,{"$f":"IF(TRIM(DK59)=\"\", \"\", IF(VLOOKUP(DK59,'Footnotes list'!$D$9:$E$58,2,FALSE)=0,\"\",VLOOKUP(DK59,'Footnotes list'!$D$9:$E$58,2,FALSE) ) )","v":""},null,null,null,null,{"$f":"IF(TRIM(DP59)=\"\", \"\", IF(VLOOKUP(DP59,'Footnotes list'!$D$9:$E$58,2,FALSE)=0,\"\",VLOOKUP(DP59,'Footnotes list'!$D$9:$E$58,2,FALSE) ) )","v":""},null,null,null,null,{"$f":"IF(TRIM(DU59)=\"\", \"\", IF(VLOOKUP(DU59,'Footnotes list'!$D$9:$E$58,2,FALSE)=0,\"\",VLOOKUP(DU59,'Footnotes list'!$D$9:$E$58,2,FALSE) ) )","v":""},null,null,null,null,{"$f":"IF(TRIM(DZ59)=\"\", \"\", IF(VLOOKUP(DZ59,'Footnotes list'!$D$9:$E$58,2,FALSE)=0,\"\",VLOOKUP(DZ59,'Footnotes list'!$D$9:$E$58,2,FALSE) ) )","v":""},null,null,null,null,{"$f":"IF(TRIM(EE59)=\"\", \"\", IF(VLOOKUP(EE59,'Footnotes list'!$D$9:$E$58,2,FALSE)=0,\"\",VLOOKUP(EE59,'Footnotes list'!$D$9:$E$58,2,FALSE) ) )","v":""},null,null,null,null,{"$f":"IF(TRIM(EJ59)=\"\", \"\", IF(VLOOKUP(EJ59,'Footnotes list'!$D$9:$E$58,2,FALSE)=0,\"\",VLOOKUP(EJ59,'Footnotes list'!$D$9:$E$58,2,FALSE) ) )","v":""},null,null,null,null,{"$f":"IF(TRIM(EO59)=\"\", \"\", IF(VLOOKUP(EO59,'Footnotes list'!$D$9:$E$58,2,FALSE)=0,\"\",VLOOKUP(EO59,'Footnotes list'!$D$9:$E$58,2,FALSE) ) )","v":""},null,null,null,null,{"$f":"IF(TRIM(ET59)=\"\", \"\", IF(VLOOKUP(ET59,'Footnotes list'!$D$9:$E$58,2,FALSE)=0,\"\",VLOOKUP(ET59,'Footnotes list'!$D$9:$E$58,2,FALSE) ) )","v":""},null,null,null,null,{"$f":"IF(TRIM(EY59)=\"\", \"\", IF(VLOOKUP(EY59,'Footnotes list'!$D$9:$E$58,2,FALSE)=0,\"\",VLOOKUP(EY59,'Footnotes list'!$D$9:$E$58,2,FALSE) ) )","v":""}]
[null,null,"C19","OWN_USE","activities for own final use",null,null,null,null,null,{"$f":"IF(TRIM(J60)=\"\", \"\", IF(VLOOKUP(J60,'Footnotes list'!$D$9:$E$58,2,FALSE)=0,\"\",VLOOKUP(J60,'Footnotes list'!$D$9:$E$58,2,FALSE) ) )","v":""},null,null,null,null,{"$f":"IF(TRIM(O60)=\"\", \"\", IF(VLOOKUP(O60,'Footnotes list'!$D$9:$E$58,2,FALSE)=0,\"\",VLOOKUP(O60,'Footnotes list'!$D$9:$E$58,2,FALSE) ) )","v":""},null,null,null,null,{"$f":"IF(TRIM(T60)=\"\", \"\", IF(VLOOKUP(T60,'Footnotes list'!$D$9:$E$58,2,FALSE)=0,\"\",VLOOKUP(T60,'Footnotes list'!$D$9:$E$58,2,FALSE) ) )","v":""},null,null,null,null,{"$f":"IF(TRIM(Y60)=\"\", \"\", IF(VLOOKUP(Y60,'Footnotes list'!$D$9:$E$58,2,FALSE)=0,\"\",VLOOKUP(Y60,'Footnotes list'!$D$9:$E$58,2,FALSE) ) )","v":""},null,null,null,null,{"$f":"IF(TRIM(AD60)=\"\", \"\", IF(VLOOKUP(AD60,'Footnotes list'!$D$9:$E$58,2,FALSE)=0,\"\",VLOOKUP(AD60,'Footnotes list'!$D$9:$E$58,2,FALSE) ) )","v":""},null,null,null,null,{"$f":"IF(TRIM(AI60)=\"\", \"\", IF(VLOOKUP(AI60,'Footnotes list'!$D$9:$E$58,2,FALSE)=0,\"\",VLOOKUP(AI60,'Footnotes list'!$D$9:$E$58,2,FALSE) ) )","v":""},null,null,null,null,{"$f":"IF(TRIM(AN60)=\"\", \"\", IF(VLOOKUP(AN60,'Footnotes list'!$D$9:$E$58,2,FALSE)=0,\"\",VLOOKUP(AN60,'Footnotes list'!$D$9:$E$58,2,FALSE) ) )","v":""},null,null,null,null,{"$f":"IF(TRIM(AS60)=\"\", \"\", IF(VLOOKUP(AS60,'Footnotes list'!$D$9:$E$58,2,FALSE)=0,\"\",VLOOKUP(AS60,'Footnotes list'!$D$9:$E$58,2,FALSE) ) )","v":""},null,null,null,null,{"$f":"IF(TRIM(AX60)=\"\", \"\", IF(VLOOKUP(AX60,'Footnotes list'!$D$9:$E$58,2,FALSE)=0,\"\",VLOOKUP(AX60,'Footnotes list'!$D$9:$E$58,2,FALSE) ) )","v":""},null,null,null,null,{"$f":"IF(TRIM(BC60)=\"\", \"\", IF(VLOOKUP(BC60,'Footnotes list'!$D$9:$E$58,2,FALSE)=0,\"\",VLOOKUP(BC60,'Footnotes list'!$D$9:$E$58,2,FALSE) ) )","v":""},null,null,null,null,{"$f":"IF(TRIM(BH60)=\"\", \"\", IF(VLOOKUP(BH60,'Footnotes list'!$D$9:$E$58,2,FALSE)=0,\"\",VLOOKUP(BH60,'Footnotes list'!$D$9:$E$58,2,FALSE) ) )","v":""},null,null,null,null,{"$f":"IF(TRIM(BM60)=\"\", \"\", IF(VLOOKUP(BM60,'Footnotes list'!$D$9:$E$58,2,FALSE)=0,\"\",VLOOKUP(BM60,'Footnotes list'!$D$9:$E$58,2,FALSE) ) )","v":""},null,null,null,null,{"$f":"IF(TRIM(BR60)=\"\", \"\", IF(VLOOKUP(BR60,'Footnotes list'!$D$9:$E$58,2,FALSE)=0,\"\",VLOOKUP(BR60,'Footnotes list'!$D$9:$E$58,2,FALSE) ) )","v":""},null,null,null,null,{"$f":"IF(TRIM(BW60)=\"\", \"\", IF(VLOOKUP(BW60,'Footnotes list'!$D$9:$E$58,2,FALSE)=0,\"\",VLOOKUP(BW60,'Footnotes list'!$D$9:$E$58,2,FALSE) ) )","v":""},null,null,null,null,{"$f":"IF(TRIM(CB60)=\"\", \"\", IF(VLOOKUP(CB60,'Footnotes list'!$D$9:$E$58,2,FALSE)=0,\"\",VLOOKUP(CB60,'Footnotes list'!$D$9:$E$58,2,FALSE) ) )","v":""},null,null,null,null,{"$f":"IF(TRIM(CG60)=\"\", \"\", IF(VLOOKUP(CG60,'Footnotes list'!$D$9:$E$58,2,FALSE)=0,\"\",VLOOKUP(CG60,'Footnotes list'!$D$9:$E$58,2,FALSE) ) )","v":""},null,null,null,null,{"$f":"IF(TRIM(CL60)=\"\", \"\", IF(VLOOKUP(CL60,'Footnotes list'!$D$9:$E$58,2,FALSE)=0,\"\",VLOOKUP(CL60,'Footnotes list'!$D$9:$E$58,2,FALSE) ) )","v":""},null,null,null,null,{"$f":"IF(TRIM(CQ60)=\"\", \"\", IF(VLOOKUP(CQ60,'Footnotes list'!$D$9:$E$58,2,FALSE)=0,\"\",VLOOKUP(CQ60,'Footnotes list'!$D$9:$E$58,2,FALSE) ) )","v":""},null,null,null,null,{"$f":"IF(TRIM(CV60)=\"\", \"\", IF(VLOOKUP(CV60,'Footnotes list'!$D$9:$E$58,2,FALSE)=0,\"\",VLOOKUP(CV60,'Footnotes list'!$D$9:$E$58,2,FALSE) ) )","v":""},null,null,null,null,{"$f":"IF(TRIM(DA60)=\"\", \"\", IF(VLOOKUP(DA60,'Footnotes list'!$D$9:$E$58,2,FALSE)=0,\"\",VLOOKUP(DA60,'Footnotes list'!$D$9:$E$58,2,FALSE) ) )","v":""},null,null,null,null,{"$f":"IF(TRIM(DF60)=\"\", \"\", IF(VLOOKUP(DF60,'Footnotes list'!$D$9:$E$58,2,FALSE)=0,\"\",VLOOKUP(DF60,'Footnotes list'!$D$9:$E$58,2,FALSE) ) )","v":""},null,null,null,null,{"$f":"IF(TRIM(DK60)=\"\", \"\", IF(VLOOKUP(DK60,'Footnotes list'!$D$9:$E$58,2,FALSE)=0,\"\",VLOOKUP(DK60,'Footnotes list'!$D$9:$E$58,2,FALSE) ) )","v":""},null,null,null,null,{"$f":"IF(TRIM(DP60)=\"\", \"\", IF(VLOOKUP(DP60,'Footnotes list'!$D$9:$E$58,2,FALSE)=0,\"\",VLOOKUP(DP60,'Footnotes list'!$D$9:$E$58,2,FALSE) ) )","v":""},null,null,null,null,{"$f":"IF(TRIM(DU60)=\"\", \"\", IF(VLOOKUP(DU60,'Footnotes list'!$D$9:$E$58,2,FALSE)=0,\"\",VLOOKUP(DU60,'Footnotes list'!$D$9:$E$58,2,FALSE) ) )","v":""},null,null,null,null,{"$f":"IF(TRIM(DZ60)=\"\", \"\", IF(VLOOKUP(DZ60,'Footnotes list'!$D$9:$E$58,2,FALSE)=0,\"\",VLOOKUP(DZ60,'Footnotes list'!$D$9:$E$58,2,FALSE) ) )","v":""},null,null,null,null,{"$f":"IF(TRIM(EE60)=\"\", \"\", IF(VLOOKUP(EE60,'Footnotes list'!$D$9:$E$58,2,FALSE)=0,\"\",VLOOKUP(EE60,'Footnotes list'!$D$9:$E$58,2,FALSE) ) )","v":""},null,null,null,null,{"$f":"IF(TRIM(EJ60)=\"\", \"\", IF(VLOOKUP(EJ60,'Footnotes list'!$D$9:$E$58,2,FALSE)=0,\"\",VLOOKUP(EJ60,'Footnotes list'!$D$9:$E$58,2,FALSE) ) )","v":""},null,null,null,null,{"$f":"IF(TRIM(EO60)=\"\", \"\", IF(VLOOKUP(EO60,'Footnotes list'!$D$9:$E$58,2,FALSE)=0,\"\",VLOOKUP(EO60,'Footnotes list'!$D$9:$E$58,2,FALSE) ) )","v":""},null,null,null,null,{"$f":"IF(TRIM(ET60)=\"\", \"\", IF(VLOOKUP(ET60,'Footnotes list'!$D$9:$E$58,2,FALSE)=0,\"\",VLOOKUP(ET60,'Footnotes list'!$D$9:$E$58,2,FALSE) ) )","v":""},null,null,null,null,{"$f":"IF(TRIM(EY60)=\"\", \"\", IF(VLOOKUP(EY60,'Footnotes list'!$D$9:$E$58,2,FALSE)=0,\"\",VLOOKUP(EY60,'Footnotes list'!$D$9:$E$58,2,FALSE) ) )","v":""}]
[null,null,"C19","MKT","market activities, including:",null,null,null,null,null,{"$f":"IF(TRIM(J61)=\"\", \"\", IF(VLOOKUP(J61,'Footnotes list'!$D$9:$E$58,2,FALSE)=0,\"\",VLOOKUP(J61,'Footnotes list'!$D$9:$E$58,2,FALSE) ) )","v":""},null,null,null,null,{"$f":"IF(TRIM(O61)=\"\", \"\", IF(VLOOKUP(O61,'Footnotes list'!$D$9:$E$58,2,FALSE)=0,\"\",VLOOKUP(O61,'Footnotes list'!$D$9:$E$58,2,FALSE) ) )","v":""},null,null,null,null,{"$f":"IF(TRIM(T61)=\"\", \"\", IF(VLOOKUP(T61,'Footnotes list'!$D$9:$E$58,2,FALSE)=0,\"\",VLOOKUP(T61,'Footnotes list'!$D$9:$E$58,2,FALSE) ) )","v":""},null,null,null,null,{"$f":"IF(TRIM(Y61)=\"\", \"\", IF(VLOOKUP(Y61,'Footnotes list'!$D$9:$E$58,2,FALSE)=0,\"\",VLOOKUP(Y61,'Footnotes list'!$D$9:$E$58,2,FALSE) ) )","v":""},null,null,null,null,{"$f":"IF(TRIM(AD61)=\"\", \"\", IF(VLOOKUP(AD61,'Footnotes list'!$D$9:$E$58,2,FALSE)=0,\"\",VLOOKUP(AD61,'Footnotes list'!$D$9:$E$58,2,FALSE) ) )","v":""},null,null,null,null,{"$f":"IF(TRIM(AI61)=\"\", \"\", IF(VLOOKUP(AI61,'Footnotes list'!$D$9:$E$58,2,FALSE)=0,\"\",VLOOKUP(AI61,'Footnotes list'!$D$9:$E$58,2,FALSE) ) )","v":""},null,null,null,null,{"$f":"IF(TRIM(AN61)=\"\", \"\", IF(VLOOKUP(AN61,'Footnotes list'!$D$9:$E$58,2,FALSE)=0,\"\",VLOOKUP(AN61,'Footnotes list'!$D$9:$E$58,2,FALSE) ) )","v":""},null,null,null,null,{"$f":"IF(TRIM(AS61)=\"\", \"\", IF(VLOOKUP(AS61,'Footnotes list'!$D$9:$E$58,2,FALSE)=0,\"\",VLOOKUP(AS61,'Footnotes list'!$D$9:$E$58,2,FALSE) ) )","v":""},null,null,null,null,{"$f":"IF(TRIM(AX61)=\"\", \"\", IF(VLOOKUP(AX61,'Footnotes list'!$D$9:$E$58,2,FALSE)=0,\"\",VLOOKUP(AX61,'Footnotes list'!$D$9:$E$58,2,FALSE) ) )","v":""},null,null,null,null,{"$f":"IF(TRIM(BC61)=\"\", \"\", IF(VLOOKUP(BC61,'Footnotes list'!$D$9:$E$58,2,FALSE)=0,\"\",VLOOKUP(BC61,'Footnotes list'!$D$9:$E$58,2,FALSE) ) )","v":""},null,null,null,null,{"$f":"IF(TRIM(BH61)=\"\", \"\", IF(VLOOKUP(BH61,'Footnotes list'!$D$9:$E$58,2,FALSE)=0,\"\",VLOOKUP(BH61,'Footnotes list'!$D$9:$E$58,2,FALSE) ) )","v":""},null,null,null,null,{"$f":"IF(TRIM(BM61)=\"\", \"\", IF(VLOOKUP(BM61,'Footnotes list'!$D$9:$E$58,2,FALSE)=0,\"\",VLOOKUP(BM61,'Footnotes list'!$D$9:$E$58,2,FALSE) ) )","v":""},null,null,null,null,{"$f":"IF(TRIM(BR61)=\"\", \"\", IF(VLOOKUP(BR61,'Footnotes list'!$D$9:$E$58,2,FALSE)=0,\"\",VLOOKUP(BR61,'Footnotes list'!$D$9:$E$58,2,FALSE) ) )","v":""},null,null,null,null,{"$f":"IF(TRIM(BW61)=\"\", \"\", IF(VLOOKUP(BW61,'Footnotes list'!$D$9:$E$58,2,FALSE)=0,\"\",VLOOKUP(BW61,'Footnotes list'!$D$9:$E$58,2,FALSE) ) )","v":""},null,null,null,null,{"$f":"IF(TRIM(CB61)=\"\", \"\", IF(VLOOKUP(CB61,'Footnotes list'!$D$9:$E$58,2,FALSE)=0,\"\",VLOOKUP(CB61,'Footnotes list'!$D$9:$E$58,2,FALSE) ) )","v":""},null,null,null,null,{"$f":"IF(TRIM(CG61)=\"\", \"\", IF(VLOOKUP(CG61,'Footnotes list'!$D$9:$E$58,2,FALSE)=0,\"\",VLOOKUP(CG61,'Footnotes list'!$D$9:$E$58,2,FALSE) ) )","v":""},null,null,null,null,{"$f":"IF(TRIM(CL61)=\"\", \"\", IF(VLOOKUP(CL61,'Footnotes list'!$D$9:$E$58,2,FALSE)=0,\"\",VLOOKUP(CL61,'Footnotes list'!$D$9:$E$58,2,FALSE) ) )","v":""},null,null,null,null,{"$f":"IF(TRIM(CQ61)=\"\", \"\", IF(VLOOKUP(CQ61,'Footnotes list'!$D$9:$E$58,2,FALSE)=0,\"\",VLOOKUP(CQ61,'Footnotes list'!$D$9:$E$58,2,FALSE) ) )","v":""},null,null,null,null,{"$f":"IF(TRIM(CV61)=\"\", \"\", IF(VLOOKUP(CV61,'Footnotes list'!$D$9:$E$58,2,FALSE)=0,\"\",VLOOKUP(CV61,'Footnotes list'!$D$9:$E$58,2,FALSE) ) )","v":""},null,null,null,null,{"$f":"IF(TRIM(DA61)=\"\", \"\", IF(VLOOKUP(DA61,'Footnotes list'!$D$9:$E$58,2,FALSE)=0,\"\",VLOOKUP(DA61,'Footnotes list'!$D$9:$E$58,2,FALSE) ) )","v":""},null,null,null,null,{"$f":"IF(TRIM(DF61)=\"\", \"\", IF(VLOOKUP(DF61,'Footnotes list'!$D$9:$E$58,2,FALSE)=0,\"\",VLOOKUP(DF61,'Footnotes list'!$D$9:$E$58,2,FALSE) ) )","v":""},null,null,null,null,{"$f":"IF(TRIM(DK61)=\"\", \"\", IF(VLOOKUP(DK61,'Footnotes list'!$D$9:$E$58,2,FALSE)=0,\"\",VLOOKUP(DK61,'Footnotes list'!$D$9:$E$58,2,FALSE) ) )","v":""},null,null,null,null,{"$f":"IF(TRIM(DP61)=\"\", \"\", IF(VLOOKUP(DP61,'Footnotes list'!$D$9:$E$58,2,FALSE)=0,\"\",VLOOKUP(DP61,'Footnotes list'!$D$9:$E$58,2,FALSE) ) )","v":""},null,null,null,null,{"$f":"IF(TRIM(DU61)=\"\", \"\", IF(VLOOKUP(DU61,'Footnotes list'!$D$9:$E$58,2,FALSE)=0,\"\",VLOOKUP(DU61,'Footnotes list'!$D$9:$E$58,2,FALSE) ) )","v":""},null,null,null,null,{"$f":"IF(TRIM(DZ61)=\"\", \"\", IF(VLOOKUP(DZ61,'Footnotes list'!$D$9:$E$58,2,FALSE)=0,\"\",VLOOKUP(DZ61,'Footnotes list'!$D$9:$E$58,2,FALSE) ) )","v":""},null,null,null,null,{"$f":"IF(TRIM(EE61)=\"\", \"\", IF(VLOOKUP(EE61,'Footnotes list'!$D$9:$E$58,2,FALSE)=0,\"\",VLOOKUP(EE61,'Footnotes list'!$D$9:$E$58,2,FALSE) ) )","v":""},null,null,null,null,{"$f":"IF(TRIM(EJ61)=\"\", \"\", IF(VLOOKUP(EJ61,'Footnotes list'!$D$9:$E$58,2,FALSE)=0,\"\",VLOOKUP(EJ61,'Footnotes list'!$D$9:$E$58,2,FALSE) ) )","v":""},null,null,null,null,{"$f":"IF(TRIM(EO61)=\"\", \"\", IF(VLOOKUP(EO61,'Footnotes list'!$D$9:$E$58,2,FALSE)=0,\"\",VLOOKUP(EO61,'Footnotes list'!$D$9:$E$58,2,FALSE) ) )","v":""},null,null,null,null,{"$f":"IF(TRIM(ET61)=\"\", \"\", IF(VLOOKUP(ET61,'Footnotes list'!$D$9:$E$58,2,FALSE)=0,\"\",VLOOKUP(ET61,'Footnotes list'!$D$9:$E$58,2,FALSE) ) )","v":""},null,null,null,null,{"$f":"IF(TRIM(EY61)=\"\", \"\", IF(VLOOKUP(EY61,'Footnotes list'!$D$9:$E$58,2,FALSE)=0,\"\",VLOOKUP(EY61,'Footnotes list'!$D$9:$E$58,2,FALSE) ) )","v":""}]
[null,null,"C19","ES_CS","environmental specific services",null,null,null,null,null,{"$f":"IF(TRIM(J62)=\"\", \"\", IF(VLOOKUP(J62,'Footnotes list'!$D$9:$E$58,2,FALSE)=0,\"\",VLOOKUP(J62,'Footnotes list'!$D$9:$E$58,2,FALSE) ) )","v":""},null,null,null,null,{"$f":"IF(TRIM(O62)=\"\", \"\", IF(VLOOKUP(O62,'Footnotes list'!$D$9:$E$58,2,FALSE)=0,\"\",VLOOKUP(O62,'Footnotes list'!$D$9:$E$58,2,FALSE) ) )","v":""},null,null,null,null,{"$f":"IF(TRIM(T62)=\"\", \"\", IF(VLOOKUP(T62,'Footnotes list'!$D$9:$E$58,2,FALSE)=0,\"\",VLOOKUP(T62,'Footnotes list'!$D$9:$E$58,2,FALSE) ) )","v":""},null,null,null,null,{"$f":"IF(TRIM(Y62)=\"\", \"\", IF(VLOOKUP(Y62,'Footnotes list'!$D$9:$E$58,2,FALSE)=0,\"\",VLOOKUP(Y62,'Footnotes list'!$D$9:$E$58,2,FALSE) ) )","v":""},null,null,null,null,{"$f":"IF(TRIM(AD62)=\"\", \"\", IF(VLOOKUP(AD62,'Footnotes list'!$D$9:$E$58,2,FALSE)=0,\"\",VLOOKUP(AD62,'Footnotes list'!$D$9:$E$58,2,FALSE) ) )","v":""},null,null,null,null,{"$f":"IF(TRIM(AI62)=\"\", \"\", IF(VLOOKUP(AI62,'Footnotes list'!$D$9:$E$58,2,FALSE)=0,\"\",VLOOKUP(AI62,'Footnotes list'!$D$9:$E$58,2,FALSE) ) )","v":""},null,null,null,null,{"$f":"IF(TRIM(AN62)=\"\", \"\", IF(VLOOKUP(AN62,'Footnotes list'!$D$9:$E$58,2,FALSE)=0,\"\",VLOOKUP(AN62,'Footnotes list'!$D$9:$E$58,2,FALSE) ) )","v":""},null,null,null,null,{"$f":"IF(TRIM(AS62)=\"\", \"\", IF(VLOOKUP(AS62,'Footnotes list'!$D$9:$E$58,2,FALSE)=0,\"\",VLOOKUP(AS62,'Footnotes list'!$D$9:$E$58,2,FALSE) ) )","v":""},null,null,null,null,{"$f":"IF(TRIM(AX62)=\"\", \"\", IF(VLOOKUP(AX62,'Footnotes list'!$D$9:$E$58,2,FALSE)=0,\"\",VLOOKUP(AX62,'Footnotes list'!$D$9:$E$58,2,FALSE) ) )","v":""},null,null,null,null,{"$f":"IF(TRIM(BC62)=\"\", \"\", IF(VLOOKUP(BC62,'Footnotes list'!$D$9:$E$58,2,FALSE)=0,\"\",VLOOKUP(BC62,'Footnotes list'!$D$9:$E$58,2,FALSE) ) )","v":""},null,null,null,null,{"$f":"IF(TRIM(BH62)=\"\", \"\", IF(VLOOKUP(BH62,'Footnotes list'!$D$9:$E$58,2,FALSE)=0,\"\",VLOOKUP(BH62,'Footnotes list'!$D$9:$E$58,2,FALSE) ) )","v":""},null,null,null,null,{"$f":"IF(TRIM(BM62)=\"\", \"\", IF(VLOOKUP(BM62,'Footnotes list'!$D$9:$E$58,2,FALSE)=0,\"\",VLOOKUP(BM62,'Footnotes list'!$D$9:$E$58,2,FALSE) ) )","v":""},null,null,null,null,{"$f":"IF(TRIM(BR62)=\"\", \"\", IF(VLOOKUP(BR62,'Footnotes list'!$D$9:$E$58,2,FALSE)=0,\"\",VLOOKUP(BR62,'Footnotes list'!$D$9:$E$58,2,FALSE) ) )","v":""},null,null,null,null,{"$f":"IF(TRIM(BW62)=\"\", \"\", IF(VLOOKUP(BW62,'Footnotes list'!$D$9:$E$58,2,FALSE)=0,\"\",VLOOKUP(BW62,'Footnotes list'!$D$9:$E$58,2,FALSE) ) )","v":""},null,null,null,null,{"$f":"IF(TRIM(CB62)=\"\", \"\", IF(VLOOKUP(CB62,'Footnotes list'!$D$9:$E$58,2,FALSE)=0,\"\",VLOOKUP(CB62,'Footnotes list'!$D$9:$E$58,2,FALSE) ) )","v":""},null,null,null,null,{"$f":"IF(TRIM(CG62)=\"\", \"\", IF(VLOOKUP(CG62,'Footnotes list'!$D$9:$E$58,2,FALSE)=0,\"\",VLOOKUP(CG62,'Footnotes list'!$D$9:$E$58,2,FALSE) ) )","v":""},null,null,null,null,{"$f":"IF(TRIM(CL62)=\"\", \"\", IF(VLOOKUP(CL62,'Footnotes list'!$D$9:$E$58,2,FALSE)=0,\"\",VLOOKUP(CL62,'Footnotes list'!$D$9:$E$58,2,FALSE) ) )","v":""},null,null,null,null,{"$f":"IF(TRIM(CQ62)=\"\", \"\", IF(VLOOKUP(CQ62,'Footnotes list'!$D$9:$E$58,2,FALSE)=0,\"\",VLOOKUP(CQ62,'Footnotes list'!$D$9:$E$58,2,FALSE) ) )","v":""},null,null,null,null,{"$f":"IF(TRIM(CV62)=\"\", \"\", IF(VLOOKUP(CV62,'Footnotes list'!$D$9:$E$58,2,FALSE)=0,\"\",VLOOKUP(CV62,'Footnotes list'!$D$9:$E$58,2,FALSE) ) )","v":""},null,null,null,null,{"$f":"IF(TRIM(DA62)=\"\", \"\", IF(VLOOKUP(DA62,'Footnotes list'!$D$9:$E$58,2,FALSE)=0,\"\",VLOOKUP(DA62,'Footnotes list'!$D$9:$E$58,2,FALSE) ) )","v":""},null,null,null,null,{"$f":"IF(TRIM(DF62)=\"\", \"\", IF(VLOOKUP(DF62,'Footnotes list'!$D$9:$E$58,2,FALSE)=0,\"\",VLOOKUP(DF62,'Footnotes list'!$D$9:$E$58,2,FALSE) ) )","v":""},null,null,null,null,{"$f":"IF(TRIM(DK62)=\"\", \"\", IF(VLOOKUP(DK62,'Footnotes list'!$D$9:$E$58,2,FALSE)=0,\"\",VLOOKUP(DK62,'Footnotes list'!$D$9:$E$58,2,FALSE) ) )","v":""},null,null,null,null,{"$f":"IF(TRIM(DP62)=\"\", \"\", IF(VLOOKUP(DP62,'Footnotes list'!$D$9:$E$58,2,FALSE)=0,\"\",VLOOKUP(DP62,'Footnotes list'!$D$9:$E$58,2,FALSE) ) )","v":""},null,null,null,null,{"$f":"IF(TRIM(DU62)=\"\", \"\", IF(VLOOKUP(DU62,'Footnotes list'!$D$9:$E$58,2,FALSE)=0,\"\",VLOOKUP(DU62,'Footnotes list'!$D$9:$E$58,2,FALSE) ) )","v":""},null,null,null,null,{"$f":"IF(TRIM(DZ62)=\"\", \"\", IF(VLOOKUP(DZ62,'Footnotes list'!$D$9:$E$58,2,FALSE)=0,\"\",VLOOKUP(DZ62,'Footnotes list'!$D$9:$E$58,2,FALSE) ) )","v":""},null,null,null,null,{"$f":"IF(TRIM(EE62)=\"\", \"\", IF(VLOOKUP(EE62,'Footnotes list'!$D$9:$E$58,2,FALSE)=0,\"\",VLOOKUP(EE62,'Footnotes list'!$D$9:$E$58,2,FALSE) ) )","v":""},null,null,null,null,{"$f":"IF(TRIM(EJ62)=\"\", \"\", IF(VLOOKUP(EJ62,'Footnotes list'!$D$9:$E$58,2,FALSE)=0,\"\",VLOOKUP(EJ62,'Footnotes list'!$D$9:$E$58,2,FALSE) ) )","v":""},null,null,null,null,{"$f":"IF(TRIM(EO62)=\"\", \"\", IF(VLOOKUP(EO62,'Footnotes list'!$D$9:$E$58,2,FALSE)=0,\"\",VLOOKUP(EO62,'Footnotes list'!$D$9:$E$58,2,FALSE) ) )","v":""},null,null,null,null,{"$f":"IF(TRIM(ET62)=\"\", \"\", IF(VLOOKUP(ET62,'Footnotes list'!$D$9:$E$58,2,FALSE)=0,\"\",VLOOKUP(ET62,'Footnotes list'!$D$9:$E$58,2,FALSE) ) )","v":""},null,null,null,null,{"$f":"IF(TRIM(EY62)=\"\", \"\", IF(VLOOKUP(EY62,'Footnotes list'!$D$9:$E$58,2,FALSE)=0,\"\",VLOOKUP(EY62,'Footnotes list'!$D$9:$E$58,2,FALSE) ) )","v":""}]
[null,null,"C19","C_REP","cleaner and resource efficient products",null,null,null,null,null,{"$f":"IF(TRIM(J63)=\"\", \"\", IF(VLOOKUP(J63,'Footnotes list'!$D$9:$E$58,2,FALSE)=0,\"\",VLOOKUP(J63,'Footnotes list'!$D$9:$E$58,2,FALSE) ) )","v":""},null,null,null,null,{"$f":"IF(TRIM(O63)=\"\", \"\", IF(VLOOKUP(O63,'Footnotes list'!$D$9:$E$58,2,FALSE)=0,\"\",VLOOKUP(O63,'Footnotes list'!$D$9:$E$58,2,FALSE) ) )","v":""},null,null,null,null,{"$f":"IF(TRIM(T63)=\"\", \"\", IF(VLOOKUP(T63,'Footnotes list'!$D$9:$E$58,2,FALSE)=0,\"\",VLOOKUP(T63,'Footnotes list'!$D$9:$E$58,2,FALSE) ) )","v":""},null,null,null,null,{"$f":"IF(TRIM(Y63)=\"\", \"\", IF(VLOOKUP(Y63,'Footnotes list'!$D$9:$E$58,2,FALSE)=0,\"\",VLOOKUP(Y63,'Footnotes list'!$D$9:$E$58,2,FALSE) ) )","v":""},null,null,null,null,{"$f":"IF(TRIM(AD63)=\"\", \"\", IF(VLOOKUP(AD63,'Footnotes list'!$D$9:$E$58,2,FALSE)=0,\"\",VLOOKUP(AD63,'Footnotes list'!$D$9:$E$58,2,FALSE) ) )","v":""},null,null,null,null,{"$f":"IF(TRIM(AI63)=\"\", \"\", IF(VLOOKUP(AI63,'Footnotes list'!$D$9:$E$58,2,FALSE)=0,\"\",VLOOKUP(AI63,'Footnotes list'!$D$9:$E$58,2,FALSE) ) )","v":""},null,null,null,null,{"$f":"IF(TRIM(AN63)=\"\", \"\", IF(VLOOKUP(AN63,'Footnotes list'!$D$9:$E$58,2,FALSE)=0,\"\",VLOOKUP(AN63,'Footnotes list'!$D$9:$E$58,2,FALSE) ) )","v":""},null,null,null,null,{"$f":"IF(TRIM(AS63)=\"\", \"\", IF(VLOOKUP(AS63,'Footnotes list'!$D$9:$E$58,2,FALSE)=0,\"\",VLOOKUP(AS63,'Footnotes list'!$D$9:$E$58,2,FALSE) ) )","v":""},null,null,null,null,{"$f":"IF(TRIM(AX63)=\"\", \"\", IF(VLOOKUP(AX63,'Footnotes list'!$D$9:$E$58,2,FALSE)=0,\"\",VLOOKUP(AX63,'Footnotes list'!$D$9:$E$58,2,FALSE) ) )","v":""},null,null,null,null,{"$f":"IF(TRIM(BC63)=\"\", \"\", IF(VLOOKUP(BC63,'Footnotes list'!$D$9:$E$58,2,FALSE)=0,\"\",VLOOKUP(BC63,'Footnotes list'!$D$9:$E$58,2,FALSE) ) )","v":""},null,null,null,null,{"$f":"IF(TRIM(BH63)=\"\", \"\", IF(VLOOKUP(BH63,'Footnotes list'!$D$9:$E$58,2,FALSE)=0,\"\",VLOOKUP(BH63,'Footnotes list'!$D$9:$E$58,2,FALSE) ) )","v":""},null,null,null,null,{"$f":"IF(TRIM(BM63)=\"\", \"\", IF(VLOOKUP(BM63,'Footnotes list'!$D$9:$E$58,2,FALSE)=0,\"\",VLOOKUP(BM63,'Footnotes list'!$D$9:$E$58,2,FALSE) ) )","v":""},null,null,null,null,{"$f":"IF(TRIM(BR63)=\"\", \"\", IF(VLOOKUP(BR63,'Footnotes list'!$D$9:$E$58,2,FALSE)=0,\"\",VLOOKUP(BR63,'Footnotes list'!$D$9:$E$58,2,FALSE) ) )","v":""},null,null,null,null,{"$f":"IF(TRIM(BW63)=\"\", \"\", IF(VLOOKUP(BW63,'Footnotes list'!$D$9:$E$58,2,FALSE)=0,\"\",VLOOKUP(BW63,'Footnotes list'!$D$9:$E$58,2,FALSE) ) )","v":""},null,null,null,null,{"$f":"IF(TRIM(CB63)=\"\", \"\", IF(VLOOKUP(CB63,'Footnotes list'!$D$9:$E$58,2,FALSE)=0,\"\",VLOOKUP(CB63,'Footnotes list'!$D$9:$E$58,2,FALSE) ) )","v":""},null,null,null,null,{"$f":"IF(TRIM(CG63)=\"\", \"\", IF(VLOOKUP(CG63,'Footnotes list'!$D$9:$E$58,2,FALSE)=0,\"\",VLOOKUP(CG63,'Footnotes list'!$D$9:$E$58,2,FALSE) ) )","v":""},null,null,null,null,{"$f":"IF(TRIM(CL63)=\"\", \"\", IF(VLOOKUP(CL63,'Footnotes list'!$D$9:$E$58,2,FALSE)=0,\"\",VLOOKUP(CL63,'Footnotes list'!$D$9:$E$58,2,FALSE) ) )","v":""},null,null,null,null,{"$f":"IF(TRIM(CQ63)=\"\", \"\", IF(VLOOKUP(CQ63,'Footnotes list'!$D$9:$E$58,2,FALSE)=0,\"\",VLOOKUP(CQ63,'Footnotes list'!$D$9:$E$58,2,FALSE) ) )","v":""},null,null,null,null,{"$f":"IF(TRIM(CV63)=\"\", \"\", IF(VLOOKUP(CV63,'Footnotes list'!$D$9:$E$58,2,FALSE)=0,\"\",VLOOKUP(CV63,'Footnotes list'!$D$9:$E$58,2,FALSE) ) )","v":""},null,null,null,null,{"$f":"IF(TRIM(DA63)=\"\", \"\", IF(VLOOKUP(DA63,'Footnotes list'!$D$9:$E$58,2,FALSE)=0,\"\",VLOOKUP(DA63,'Footnotes list'!$D$9:$E$58,2,FALSE) ) )","v":""},null,null,null,null,{"$f":"IF(TRIM(DF63)=\"\", \"\", IF(VLOOKUP(DF63,'Footnotes list'!$D$9:$E$58,2,FALSE)=0,\"\",VLOOKUP(DF63,'Footnotes list'!$D$9:$E$58,2,FALSE) ) )","v":""},null,null,null,null,{"$f":"IF(TRIM(DK63)=\"\", \"\", IF(VLOOKUP(DK63,'Footnotes list'!$D$9:$E$58,2,FALSE)=0,\"\",VLOOKUP(DK63,'Footnotes list'!$D$9:$E$58,2,FALSE) ) )","v":""},null,null,null,null,{"$f":"IF(TRIM(DP63)=\"\", \"\", IF(VLOOKUP(DP63,'Footnotes list'!$D$9:$E$58,2,FALSE)=0,\"\",VLOOKUP(DP63,'Footnotes list'!$D$9:$E$58,2,FALSE) ) )","v":""},null,null,null,null,{"$f":"IF(TRIM(DU63)=\"\", \"\", IF(VLOOKUP(DU63,'Footnotes list'!$D$9:$E$58,2,FALSE)=0,\"\",VLOOKUP(DU63,'Footnotes list'!$D$9:$E$58,2,FALSE) ) )","v":""},null,null,null,null,{"$f":"IF(TRIM(DZ63)=\"\", \"\", IF(VLOOKUP(DZ63,'Footnotes list'!$D$9:$E$58,2,FALSE)=0,\"\",VLOOKUP(DZ63,'Footnotes list'!$D$9:$E$58,2,FALSE) ) )","v":""},null,null,null,null,{"$f":"IF(TRIM(EE63)=\"\", \"\", IF(VLOOKUP(EE63,'Footnotes list'!$D$9:$E$58,2,FALSE)=0,\"\",VLOOKUP(EE63,'Footnotes list'!$D$9:$E$58,2,FALSE) ) )","v":""},null,null,null,null,{"$f":"IF(TRIM(EJ63)=\"\", \"\", IF(VLOOKUP(EJ63,'Footnotes list'!$D$9:$E$58,2,FALSE)=0,\"\",VLOOKUP(EJ63,'Footnotes list'!$D$9:$E$58,2,FALSE) ) )","v":""},null,null,null,null,{"$f":"IF(TRIM(EO63)=\"\", \"\", IF(VLOOKUP(EO63,'Footnotes list'!$D$9:$E$58,2,FALSE)=0,\"\",VLOOKUP(EO63,'Footnotes list'!$D$9:$E$58,2,FALSE) ) )","v":""},null,null,null,null,{"$f":"IF(TRIM(ET63)=\"\", \"\", IF(VLOOKUP(ET63,'Footnotes list'!$D$9:$E$58,2,FALSE)=0,\"\",VLOOKUP(ET63,'Footnotes list'!$D$9:$E$58,2,FALSE) ) )","v":""},null,null,null,null,{"$f":"IF(TRIM(EY63)=\"\", \"\", IF(VLOOKUP(EY63,'Footnotes list'!$D$9:$E$58,2,FALSE)=0,\"\",VLOOKUP(EY63,'Footnotes list'!$D$9:$E$58,2,FALSE) ) )","v":""}]
[null,null,"C20","TOT_EGSS","Total C20 - Manufacture of chemicals and chemical products, of which:",null,null,null,null,null,{"$f":"IF(TRIM(J64)=\"\", \"\", IF(VLOOKUP(J64,'Footnotes list'!$D$9:$E$58,2,FALSE)=0,\"\",VLOOKUP(J64,'Footnotes list'!$D$9:$E$58,2,FALSE) ) )","v":""},null,null,null,null,{"$f":"IF(TRIM(O64)=\"\", \"\", IF(VLOOKUP(O64,'Footnotes list'!$D$9:$E$58,2,FALSE)=0,\"\",VLOOKUP(O64,'Footnotes list'!$D$9:$E$58,2,FALSE) ) )","v":""},null,null,null,null,{"$f":"IF(TRIM(T64)=\"\", \"\", IF(VLOOKUP(T64,'Footnotes list'!$D$9:$E$58,2,FALSE)=0,\"\",VLOOKUP(T64,'Footnotes list'!$D$9:$E$58,2,FALSE) ) )","v":""},null,null,null,null,{"$f":"IF(TRIM(Y64)=\"\", \"\", IF(VLOOKUP(Y64,'Footnotes list'!$D$9:$E$58,2,FALSE)=0,\"\",VLOOKUP(Y64,'Footnotes list'!$D$9:$E$58,2,FALSE) ) )","v":""},null,null,null,null,{"$f":"IF(TRIM(AD64)=\"\", \"\", IF(VLOOKUP(AD64,'Footnotes list'!$D$9:$E$58,2,FALSE)=0,\"\",VLOOKUP(AD64,'Footnotes list'!$D$9:$E$58,2,FALSE) ) )","v":""},null,null,null,null,{"$f":"IF(TRIM(AI64)=\"\", \"\", IF(VLOOKUP(AI64,'Footnotes list'!$D$9:$E$58,2,FALSE)=0,\"\",VLOOKUP(AI64,'Footnotes list'!$D$9:$E$58,2,FALSE) ) )","v":""},null,null,null,null,{"$f":"IF(TRIM(AN64)=\"\", \"\", IF(VLOOKUP(AN64,'Footnotes list'!$D$9:$E$58,2,FALSE)=0,\"\",VLOOKUP(AN64,'Footnotes list'!$D$9:$E$58,2,FALSE) ) )","v":""},null,null,null,null,{"$f":"IF(TRIM(AS64)=\"\", \"\", IF(VLOOKUP(AS64,'Footnotes list'!$D$9:$E$58,2,FALSE)=0,\"\",VLOOKUP(AS64,'Footnotes list'!$D$9:$E$58,2,FALSE) ) )","v":""},null,null,null,null,{"$f":"IF(TRIM(AX64)=\"\", \"\", IF(VLOOKUP(AX64,'Footnotes list'!$D$9:$E$58,2,FALSE)=0,\"\",VLOOKUP(AX64,'Footnotes list'!$D$9:$E$58,2,FALSE) ) )","v":""},null,null,null,null,{"$f":"IF(TRIM(BC64)=\"\", \"\", IF(VLOOKUP(BC64,'Footnotes list'!$D$9:$E$58,2,FALSE)=0,\"\",VLOOKUP(BC64,'Footnotes list'!$D$9:$E$58,2,FALSE) ) )","v":""},null,null,null,null,{"$f":"IF(TRIM(BH64)=\"\", \"\", IF(VLOOKUP(BH64,'Footnotes list'!$D$9:$E$58,2,FALSE)=0,\"\",VLOOKUP(BH64,'Footnotes list'!$D$9:$E$58,2,FALSE) ) )","v":""},null,null,null,null,{"$f":"IF(TRIM(BM64)=\"\", \"\", IF(VLOOKUP(BM64,'Footnotes list'!$D$9:$E$58,2,FALSE)=0,\"\",VLOOKUP(BM64,'Footnotes list'!$D$9:$E$58,2,FALSE) ) )","v":""},null,null,null,null,{"$f":"IF(TRIM(BR64)=\"\", \"\", IF(VLOOKUP(BR64,'Footnotes list'!$D$9:$E$58,2,FALSE)=0,\"\",VLOOKUP(BR64,'Footnotes list'!$D$9:$E$58,2,FALSE) ) )","v":""},null,null,null,null,{"$f":"IF(TRIM(BW64)=\"\", \"\", IF(VLOOKUP(BW64,'Footnotes list'!$D$9:$E$58,2,FALSE)=0,\"\",VLOOKUP(BW64,'Footnotes list'!$D$9:$E$58,2,FALSE) ) )","v":""},null,null,null,null,{"$f":"IF(TRIM(CB64)=\"\", \"\", IF(VLOOKUP(CB64,'Footnotes list'!$D$9:$E$58,2,FALSE)=0,\"\",VLOOKUP(CB64,'Footnotes list'!$D$9:$E$58,2,FALSE) ) )","v":""},null,null,null,null,{"$f":"IF(TRIM(CG64)=\"\", \"\", IF(VLOOKUP(CG64,'Footnotes list'!$D$9:$E$58,2,FALSE)=0,\"\",VLOOKUP(CG64,'Footnotes list'!$D$9:$E$58,2,FALSE) ) )","v":""},null,null,null,null,{"$f":"IF(TRIM(CL64)=\"\", \"\", IF(VLOOKUP(CL64,'Footnotes list'!$D$9:$E$58,2,FALSE)=0,\"\",VLOOKUP(CL64,'Footnotes list'!$D$9:$E$58,2,FALSE) ) )","v":""},null,null,null,null,{"$f":"IF(TRIM(CQ64)=\"\", \"\", IF(VLOOKUP(CQ64,'Footnotes list'!$D$9:$E$58,2,FALSE)=0,\"\",VLOOKUP(CQ64,'Footnotes list'!$D$9:$E$58,2,FALSE) ) )","v":""},null,null,null,null,{"$f":"IF(TRIM(CV64)=\"\", \"\", IF(VLOOKUP(CV64,'Footnotes list'!$D$9:$E$58,2,FALSE)=0,\"\",VLOOKUP(CV64,'Footnotes list'!$D$9:$E$58,2,FALSE) ) )","v":""},null,null,null,null,{"$f":"IF(TRIM(DA64)=\"\", \"\", IF(VLOOKUP(DA64,'Footnotes list'!$D$9:$E$58,2,FALSE)=0,\"\",VLOOKUP(DA64,'Footnotes list'!$D$9:$E$58,2,FALSE) ) )","v":""},null,null,null,null,{"$f":"IF(TRIM(DF64)=\"\", \"\", IF(VLOOKUP(DF64,'Footnotes list'!$D$9:$E$58,2,FALSE)=0,\"\",VLOOKUP(DF64,'Footnotes list'!$D$9:$E$58,2,FALSE) ) )","v":""},null,null,null,null,{"$f":"IF(TRIM(DK64)=\"\", \"\", IF(VLOOKUP(DK64,'Footnotes list'!$D$9:$E$58,2,FALSE)=0,\"\",VLOOKUP(DK64,'Footnotes list'!$D$9:$E$58,2,FALSE) ) )","v":""},null,null,null,null,{"$f":"IF(TRIM(DP64)=\"\", \"\", IF(VLOOKUP(DP64,'Footnotes list'!$D$9:$E$58,2,FALSE)=0,\"\",VLOOKUP(DP64,'Footnotes list'!$D$9:$E$58,2,FALSE) ) )","v":""},null,null,null,null,{"$f":"IF(TRIM(DU64)=\"\", \"\", IF(VLOOKUP(DU64,'Footnotes list'!$D$9:$E$58,2,FALSE)=0,\"\",VLOOKUP(DU64,'Footnotes list'!$D$9:$E$58,2,FALSE) ) )","v":""},null,null,null,null,{"$f":"IF(TRIM(DZ64)=\"\", \"\", IF(VLOOKUP(DZ64,'Footnotes list'!$D$9:$E$58,2,FALSE)=0,\"\",VLOOKUP(DZ64,'Footnotes list'!$D$9:$E$58,2,FALSE) ) )","v":""},null,null,null,null,{"$f":"IF(TRIM(EE64)=\"\", \"\", IF(VLOOKUP(EE64,'Footnotes list'!$D$9:$E$58,2,FALSE)=0,\"\",VLOOKUP(EE64,'Footnotes list'!$D$9:$E$58,2,FALSE) ) )","v":""},null,null,null,null,{"$f":"IF(TRIM(EJ64)=\"\", \"\", IF(VLOOKUP(EJ64,'Footnotes list'!$D$9:$E$58,2,FALSE)=0,\"\",VLOOKUP(EJ64,'Footnotes list'!$D$9:$E$58,2,FALSE) ) )","v":""},null,null,null,null,{"$f":"IF(TRIM(EO64)=\"\", \"\", IF(VLOOKUP(EO64,'Footnotes list'!$D$9:$E$58,2,FALSE)=0,\"\",VLOOKUP(EO64,'Footnotes list'!$D$9:$E$58,2,FALSE) ) )","v":""},null,null,null,null,{"$f":"IF(TRIM(ET64)=\"\", \"\", IF(VLOOKUP(ET64,'Footnotes list'!$D$9:$E$58,2,FALSE)=0,\"\",VLOOKUP(ET64,'Footnotes list'!$D$9:$E$58,2,FALSE) ) )","v":""},null,null,null,null,{"$f":"IF(TRIM(EY64)=\"\", \"\", IF(VLOOKUP(EY64,'Footnotes list'!$D$9:$E$58,2,FALSE)=0,\"\",VLOOKUP(EY64,'Footnotes list'!$D$9:$E$58,2,FALSE) ) )","v":""}]
[null,null,"C20","ANC","ancillary activities",null,null,null,null,null,{"$f":"IF(TRIM(J65)=\"\", \"\", IF(VLOOKUP(J65,'Footnotes list'!$D$9:$E$58,2,FALSE)=0,\"\",VLOOKUP(J65,'Footnotes list'!$D$9:$E$58,2,FALSE) ) )","v":""},null,null,null,null,{"$f":"IF(TRIM(O65)=\"\", \"\", IF(VLOOKUP(O65,'Footnotes list'!$D$9:$E$58,2,FALSE)=0,\"\",VLOOKUP(O65,'Footnotes list'!$D$9:$E$58,2,FALSE) ) )","v":""},null,null,null,null,{"$f":"IF(TRIM(T65)=\"\", \"\", IF(VLOOKUP(T65,'Footnotes list'!$D$9:$E$58,2,FALSE)=0,\"\",VLOOKUP(T65,'Footnotes list'!$D$9:$E$58,2,FALSE) ) )","v":""},null,null,null,null,{"$f":"IF(TRIM(Y65)=\"\", \"\", IF(VLOOKUP(Y65,'Footnotes list'!$D$9:$E$58,2,FALSE)=0,\"\",VLOOKUP(Y65,'Footnotes list'!$D$9:$E$58,2,FALSE) ) )","v":""},null,null,null,null,{"$f":"IF(TRIM(AD65)=\"\", \"\", IF(VLOOKUP(AD65,'Footnotes list'!$D$9:$E$58,2,FALSE)=0,\"\",VLOOKUP(AD65,'Footnotes list'!$D$9:$E$58,2,FALSE) ) )","v":""},null,null,null,null,{"$f":"IF(TRIM(AI65)=\"\", \"\", IF(VLOOKUP(AI65,'Footnotes list'!$D$9:$E$58,2,FALSE)=0,\"\",VLOOKUP(AI65,'Footnotes list'!$D$9:$E$58,2,FALSE) ) )","v":""},null,null,null,null,{"$f":"IF(TRIM(AN65)=\"\", \"\", IF(VLOOKUP(AN65,'Footnotes list'!$D$9:$E$58,2,FALSE)=0,\"\",VLOOKUP(AN65,'Footnotes list'!$D$9:$E$58,2,FALSE) ) )","v":""},null,null,null,null,{"$f":"IF(TRIM(AS65)=\"\", \"\", IF(VLOOKUP(AS65,'Footnotes list'!$D$9:$E$58,2,FALSE)=0,\"\",VLOOKUP(AS65,'Footnotes list'!$D$9:$E$58,2,FALSE) ) )","v":""},null,null,null,null,{"$f":"IF(TRIM(AX65)=\"\", \"\", IF(VLOOKUP(AX65,'Footnotes list'!$D$9:$E$58,2,FALSE)=0,\"\",VLOOKUP(AX65,'Footnotes list'!$D$9:$E$58,2,FALSE) ) )","v":""},null,null,null,null,{"$f":"IF(TRIM(BC65)=\"\", \"\", IF(VLOOKUP(BC65,'Footnotes list'!$D$9:$E$58,2,FALSE)=0,\"\",VLOOKUP(BC65,'Footnotes list'!$D$9:$E$58,2,FALSE) ) )","v":""},null,null,null,null,{"$f":"IF(TRIM(BH65)=\"\", \"\", IF(VLOOKUP(BH65,'Footnotes list'!$D$9:$E$58,2,FALSE)=0,\"\",VLOOKUP(BH65,'Footnotes list'!$D$9:$E$58,2,FALSE) ) )","v":""},null,null,null,null,{"$f":"IF(TRIM(BM65)=\"\", \"\", IF(VLOOKUP(BM65,'Footnotes list'!$D$9:$E$58,2,FALSE)=0,\"\",VLOOKUP(BM65,'Footnotes list'!$D$9:$E$58,2,FALSE) ) )","v":""},null,null,null,null,{"$f":"IF(TRIM(BR65)=\"\", \"\", IF(VLOOKUP(BR65,'Footnotes list'!$D$9:$E$58,2,FALSE)=0,\"\",VLOOKUP(BR65,'Footnotes list'!$D$9:$E$58,2,FALSE) ) )","v":""},null,null,null,null,{"$f":"IF(TRIM(BW65)=\"\", \"\", IF(VLOOKUP(BW65,'Footnotes list'!$D$9:$E$58,2,FALSE)=0,\"\",VLOOKUP(BW65,'Footnotes list'!$D$9:$E$58,2,FALSE) ) )","v":""},null,null,null,null,{"$f":"IF(TRIM(CB65)=\"\", \"\", IF(VLOOKUP(CB65,'Footnotes list'!$D$9:$E$58,2,FALSE)=0,\"\",VLOOKUP(CB65,'Footnotes list'!$D$9:$E$58,2,FALSE) ) )","v":""},null,null,null,null,{"$f":"IF(TRIM(CG65)=\"\", \"\", IF(VLOOKUP(CG65,'Footnotes list'!$D$9:$E$58,2,FALSE)=0,\"\",VLOOKUP(CG65,'Footnotes list'!$D$9:$E$58,2,FALSE) ) )","v":""},null,null,null,null,{"$f":"IF(TRIM(CL65)=\"\", \"\", IF(VLOOKUP(CL65,'Footnotes list'!$D$9:$E$58,2,FALSE)=0,\"\",VLOOKUP(CL65,'Footnotes list'!$D$9:$E$58,2,FALSE) ) )","v":""},null,null,null,null,{"$f":"IF(TRIM(CQ65)=\"\", \"\", IF(VLOOKUP(CQ65,'Footnotes list'!$D$9:$E$58,2,FALSE)=0,\"\",VLOOKUP(CQ65,'Footnotes list'!$D$9:$E$58,2,FALSE) ) )","v":""},null,null,null,null,{"$f":"IF(TRIM(CV65)=\"\", \"\", IF(VLOOKUP(CV65,'Footnotes list'!$D$9:$E$58,2,FALSE)=0,\"\",VLOOKUP(CV65,'Footnotes list'!$D$9:$E$58,2,FALSE) ) )","v":""},null,null,null,null,{"$f":"IF(TRIM(DA65)=\"\", \"\", IF(VLOOKUP(DA65,'Footnotes list'!$D$9:$E$58,2,FALSE)=0,\"\",VLOOKUP(DA65,'Footnotes list'!$D$9:$E$58,2,FALSE) ) )","v":""},null,null,null,null,{"$f":"IF(TRIM(DF65)=\"\", \"\", IF(VLOOKUP(DF65,'Footnotes list'!$D$9:$E$58,2,FALSE)=0,\"\",VLOOKUP(DF65,'Footnotes list'!$D$9:$E$58,2,FALSE) ) )","v":""},null,null,null,null,{"$f":"IF(TRIM(DK65)=\"\", \"\", IF(VLOOKUP(DK65,'Footnotes list'!$D$9:$E$58,2,FALSE)=0,\"\",VLOOKUP(DK65,'Footnotes list'!$D$9:$E$58,2,FALSE) ) )","v":""},null,null,null,null,{"$f":"IF(TRIM(DP65)=\"\", \"\", IF(VLOOKUP(DP65,'Footnotes list'!$D$9:$E$58,2,FALSE)=0,\"\",VLOOKUP(DP65,'Footnotes list'!$D$9:$E$58,2,FALSE) ) )","v":""},null,null,null,null,{"$f":"IF(TRIM(DU65)=\"\", \"\", IF(VLOOKUP(DU65,'Footnotes list'!$D$9:$E$58,2,FALSE)=0,\"\",VLOOKUP(DU65,'Footnotes list'!$D$9:$E$58,2,FALSE) ) )","v":""},null,null,null,null,{"$f":"IF(TRIM(DZ65)=\"\", \"\", IF(VLOOKUP(DZ65,'Footnotes list'!$D$9:$E$58,2,FALSE)=0,\"\",VLOOKUP(DZ65,'Footnotes list'!$D$9:$E$58,2,FALSE) ) )","v":""},null,null,null,null,{"$f":"IF(TRIM(EE65)=\"\", \"\", IF(VLOOKUP(EE65,'Footnotes list'!$D$9:$E$58,2,FALSE)=0,\"\",VLOOKUP(EE65,'Footnotes list'!$D$9:$E$58,2,FALSE) ) )","v":""},null,null,null,null,{"$f":"IF(TRIM(EJ65)=\"\", \"\", IF(VLOOKUP(EJ65,'Footnotes list'!$D$9:$E$58,2,FALSE)=0,\"\",VLOOKUP(EJ65,'Footnotes list'!$D$9:$E$58,2,FALSE) ) )","v":""},null,null,null,null,{"$f":"IF(TRIM(EO65)=\"\", \"\", IF(VLOOKUP(EO65,'Footnotes list'!$D$9:$E$58,2,FALSE)=0,\"\",VLOOKUP(EO65,'Footnotes list'!$D$9:$E$58,2,FALSE) ) )","v":""},null,null,null,null,{"$f":"IF(TRIM(ET65)=\"\", \"\", IF(VLOOKUP(ET65,'Footnotes list'!$D$9:$E$58,2,FALSE)=0,\"\",VLOOKUP(ET65,'Footnotes list'!$D$9:$E$58,2,FALSE) ) )","v":""},null,null,null,null,{"$f":"IF(TRIM(EY65)=\"\", \"\", IF(VLOOKUP(EY65,'Footnotes list'!$D$9:$E$58,2,FALSE)=0,\"\",VLOOKUP(EY65,'Footnotes list'!$D$9:$E$58,2,FALSE) ) )","v":""}]
[null,null,"C20","NMKT","non-market activities",null,null,null,null,null,{"$f":"IF(TRIM(J66)=\"\", \"\", IF(VLOOKUP(J66,'Footnotes list'!$D$9:$E$58,2,FALSE)=0,\"\",VLOOKUP(J66,'Footnotes list'!$D$9:$E$58,2,FALSE) ) )","v":""},null,null,null,null,{"$f":"IF(TRIM(O66)=\"\", \"\", IF(VLOOKUP(O66,'Footnotes list'!$D$9:$E$58,2,FALSE)=0,\"\",VLOOKUP(O66,'Footnotes list'!$D$9:$E$58,2,FALSE) ) )","v":""},null,null,null,null,{"$f":"IF(TRIM(T66)=\"\", \"\", IF(VLOOKUP(T66,'Footnotes list'!$D$9:$E$58,2,FALSE)=0,\"\",VLOOKUP(T66,'Footnotes list'!$D$9:$E$58,2,FALSE) ) )","v":""},null,null,null,null,{"$f":"IF(TRIM(Y66)=\"\", \"\", IF(VLOOKUP(Y66,'Footnotes list'!$D$9:$E$58,2,FALSE)=0,\"\",VLOOKUP(Y66,'Footnotes list'!$D$9:$E$58,2,FALSE) ) )","v":""},null,null,null,null,{"$f":"IF(TRIM(AD66)=\"\", \"\", IF(VLOOKUP(AD66,'Footnotes list'!$D$9:$E$58,2,FALSE)=0,\"\",VLOOKUP(AD66,'Footnotes list'!$D$9:$E$58,2,FALSE) ) )","v":""},null,null,null,null,{"$f":"IF(TRIM(AI66)=\"\", \"\", IF(VLOOKUP(AI66,'Footnotes list'!$D$9:$E$58,2,FALSE)=0,\"\",VLOOKUP(AI66,'Footnotes list'!$D$9:$E$58,2,FALSE) ) )","v":""},null,null,null,null,{"$f":"IF(TRIM(AN66)=\"\", \"\", IF(VLOOKUP(AN66,'Footnotes list'!$D$9:$E$58,2,FALSE)=0,\"\",VLOOKUP(AN66,'Footnotes list'!$D$9:$E$58,2,FALSE) ) )","v":""},null,null,null,null,{"$f":"IF(TRIM(AS66)=\"\", \"\", IF(VLOOKUP(AS66,'Footnotes list'!$D$9:$E$58,2,FALSE)=0,\"\",VLOOKUP(AS66,'Footnotes list'!$D$9:$E$58,2,FALSE) ) )","v":""},null,null,null,null,{"$f":"IF(TRIM(AX66)=\"\", \"\", IF(VLOOKUP(AX66,'Footnotes list'!$D$9:$E$58,2,FALSE)=0,\"\",VLOOKUP(AX66,'Footnotes list'!$D$9:$E$58,2,FALSE) ) )","v":""},null,null,null,null,{"$f":"IF(TRIM(BC66)=\"\", \"\", IF(VLOOKUP(BC66,'Footnotes list'!$D$9:$E$58,2,FALSE)=0,\"\",VLOOKUP(BC66,'Footnotes list'!$D$9:$E$58,2,FALSE) ) )","v":""},null,null,null,null,{"$f":"IF(TRIM(BH66)=\"\", \"\", IF(VLOOKUP(BH66,'Footnotes list'!$D$9:$E$58,2,FALSE)=0,\"\",VLOOKUP(BH66,'Footnotes list'!$D$9:$E$58,2,FALSE) ) )","v":""},null,null,null,null,{"$f":"IF(TRIM(BM66)=\"\", \"\", IF(VLOOKUP(BM66,'Footnotes list'!$D$9:$E$58,2,FALSE)=0,\"\",VLOOKUP(BM66,'Footnotes list'!$D$9:$E$58,2,FALSE) ) )","v":""},null,null,null,null,{"$f":"IF(TRIM(BR66)=\"\", \"\", IF(VLOOKUP(BR66,'Footnotes list'!$D$9:$E$58,2,FALSE)=0,\"\",VLOOKUP(BR66,'Footnotes list'!$D$9:$E$58,2,FALSE) ) )","v":""},null,null,null,null,{"$f":"IF(TRIM(BW66)=\"\", \"\", IF(VLOOKUP(BW66,'Footnotes list'!$D$9:$E$58,2,FALSE)=0,\"\",VLOOKUP(BW66,'Footnotes list'!$D$9:$E$58,2,FALSE) ) )","v":""},null,null,null,null,{"$f":"IF(TRIM(CB66)=\"\", \"\", IF(VLOOKUP(CB66,'Footnotes list'!$D$9:$E$58,2,FALSE)=0,\"\",VLOOKUP(CB66,'Footnotes list'!$D$9:$E$58,2,FALSE) ) )","v":""},null,null,null,null,{"$f":"IF(TRIM(CG66)=\"\", \"\", IF(VLOOKUP(CG66,'Footnotes list'!$D$9:$E$58,2,FALSE)=0,\"\",VLOOKUP(CG66,'Footnotes list'!$D$9:$E$58,2,FALSE) ) )","v":""},null,null,null,null,{"$f":"IF(TRIM(CL66)=\"\", \"\", IF(VLOOKUP(CL66,'Footnotes list'!$D$9:$E$58,2,FALSE)=0,\"\",VLOOKUP(CL66,'Footnotes list'!$D$9:$E$58,2,FALSE) ) )","v":""},null,null,null,null,{"$f":"IF(TRIM(CQ66)=\"\", \"\", IF(VLOOKUP(CQ66,'Footnotes list'!$D$9:$E$58,2,FALSE)=0,\"\",VLOOKUP(CQ66,'Footnotes list'!$D$9:$E$58,2,FALSE) ) )","v":""},null,null,null,null,{"$f":"IF(TRIM(CV66)=\"\", \"\", IF(VLOOKUP(CV66,'Footnotes list'!$D$9:$E$58,2,FALSE)=0,\"\",VLOOKUP(CV66,'Footnotes list'!$D$9:$E$58,2,FALSE) ) )","v":""},null,null,null,null,{"$f":"IF(TRIM(DA66)=\"\", \"\", IF(VLOOKUP(DA66,'Footnotes list'!$D$9:$E$58,2,FALSE)=0,\"\",VLOOKUP(DA66,'Footnotes list'!$D$9:$E$58,2,FALSE) ) )","v":""},null,null,null,null,{"$f":"IF(TRIM(DF66)=\"\", \"\", IF(VLOOKUP(DF66,'Footnotes list'!$D$9:$E$58,2,FALSE)=0,\"\",VLOOKUP(DF66,'Footnotes list'!$D$9:$E$58,2,FALSE) ) )","v":""},null,null,null,null,{"$f":"IF(TRIM(DK66)=\"\", \"\", IF(VLOOKUP(DK66,'Footnotes list'!$D$9:$E$58,2,FALSE)=0,\"\",VLOOKUP(DK66,'Footnotes list'!$D$9:$E$58,2,FALSE) ) )","v":""},null,null,null,null,{"$f":"IF(TRIM(DP66)=\"\", \"\", IF(VLOOKUP(DP66,'Footnotes list'!$D$9:$E$58,2,FALSE)=0,\"\",VLOOKUP(DP66,'Footnotes list'!$D$9:$E$58,2,FALSE) ) )","v":""},null,null,null,null,{"$f":"IF(TRIM(DU66)=\"\", \"\", IF(VLOOKUP(DU66,'Footnotes list'!$D$9:$E$58,2,FALSE)=0,\"\",VLOOKUP(DU66,'Footnotes list'!$D$9:$E$58,2,FALSE) ) )","v":""},null,null,null,null,{"$f":"IF(TRIM(DZ66)=\"\", \"\", IF(VLOOKUP(DZ66,'Footnotes list'!$D$9:$E$58,2,FALSE)=0,\"\",VLOOKUP(DZ66,'Footnotes list'!$D$9:$E$58,2,FALSE) ) )","v":""},null,null,null,null,{"$f":"IF(TRIM(EE66)=\"\", \"\", IF(VLOOKUP(EE66,'Footnotes list'!$D$9:$E$58,2,FALSE)=0,\"\",VLOOKUP(EE66,'Footnotes list'!$D$9:$E$58,2,FALSE) ) )","v":""},null,null,null,null,{"$f":"IF(TRIM(EJ66)=\"\", \"\", IF(VLOOKUP(EJ66,'Footnotes list'!$D$9:$E$58,2,FALSE)=0,\"\",VLOOKUP(EJ66,'Footnotes list'!$D$9:$E$58,2,FALSE) ) )","v":""},null,null,null,null,{"$f":"IF(TRIM(EO66)=\"\", \"\", IF(VLOOKUP(EO66,'Footnotes list'!$D$9:$E$58,2,FALSE)=0,\"\",VLOOKUP(EO66,'Footnotes list'!$D$9:$E$58,2,FALSE) ) )","v":""},null,null,null,null,{"$f":"IF(TRIM(ET66)=\"\", \"\", IF(VLOOKUP(ET66,'Footnotes list'!$D$9:$E$58,2,FALSE)=0,\"\",VLOOKUP(ET66,'Footnotes list'!$D$9:$E$58,2,FALSE) ) )","v":""},null,null,null,null,{"$f":"IF(TRIM(EY66)=\"\", \"\", IF(VLOOKUP(EY66,'Footnotes list'!$D$9:$E$58,2,FALSE)=0,\"\",VLOOKUP(EY66,'Footnotes list'!$D$9:$E$58,2,FALSE) ) )","v":""}]
[null,null,"C20","OWN_USE","activities for own final use",null,null,null,null,null,{"$f":"IF(TRIM(J67)=\"\", \"\", IF(VLOOKUP(J67,'Footnotes list'!$D$9:$E$58,2,FALSE)=0,\"\",VLOOKUP(J67,'Footnotes list'!$D$9:$E$58,2,FALSE) ) )","v":""},null,null,null,null,{"$f":"IF(TRIM(O67)=\"\", \"\", IF(VLOOKUP(O67,'Footnotes list'!$D$9:$E$58,2,FALSE)=0,\"\",VLOOKUP(O67,'Footnotes list'!$D$9:$E$58,2,FALSE) ) )","v":""},null,null,null,null,{"$f":"IF(TRIM(T67)=\"\", \"\", IF(VLOOKUP(T67,'Footnotes list'!$D$9:$E$58,2,FALSE)=0,\"\",VLOOKUP(T67,'Footnotes list'!$D$9:$E$58,2,FALSE) ) )","v":""},null,null,null,null,{"$f":"IF(TRIM(Y67)=\"\", \"\", IF(VLOOKUP(Y67,'Footnotes list'!$D$9:$E$58,2,FALSE)=0,\"\",VLOOKUP(Y67,'Footnotes list'!$D$9:$E$58,2,FALSE) ) )","v":""},null,null,null,null,{"$f":"IF(TRIM(AD67)=\"\", \"\", IF(VLOOKUP(AD67,'Footnotes list'!$D$9:$E$58,2,FALSE)=0,\"\",VLOOKUP(AD67,'Footnotes list'!$D$9:$E$58,2,FALSE) ) )","v":""},null,null,null,null,{"$f":"IF(TRIM(AI67)=\"\", \"\", IF(VLOOKUP(AI67,'Footnotes list'!$D$9:$E$58,2,FALSE)=0,\"\",VLOOKUP(AI67,'Footnotes list'!$D$9:$E$58,2,FALSE) ) )","v":""},null,null,null,null,{"$f":"IF(TRIM(AN67)=\"\", \"\", IF(VLOOKUP(AN67,'Footnotes list'!$D$9:$E$58,2,FALSE)=0,\"\",VLOOKUP(AN67,'Footnotes list'!$D$9:$E$58,2,FALSE) ) )","v":""},null,null,null,null,{"$f":"IF(TRIM(AS67)=\"\", \"\", IF(VLOOKUP(AS67,'Footnotes list'!$D$9:$E$58,2,FALSE)=0,\"\",VLOOKUP(AS67,'Footnotes list'!$D$9:$E$58,2,FALSE) ) )","v":""},null,null,null,null,{"$f":"IF(TRIM(AX67)=\"\", \"\", IF(VLOOKUP(AX67,'Footnotes list'!$D$9:$E$58,2,FALSE)=0,\"\",VLOOKUP(AX67,'Footnotes list'!$D$9:$E$58,2,FALSE) ) )","v":""},null,null,null,null,{"$f":"IF(TRIM(BC67)=\"\", \"\", IF(VLOOKUP(BC67,'Footnotes list'!$D$9:$E$58,2,FALSE)=0,\"\",VLOOKUP(BC67,'Footnotes list'!$D$9:$E$58,2,FALSE) ) )","v":""},null,null,null,null,{"$f":"IF(TRIM(BH67)=\"\", \"\", IF(VLOOKUP(BH67,'Footnotes list'!$D$9:$E$58,2,FALSE)=0,\"\",VLOOKUP(BH67,'Footnotes list'!$D$9:$E$58,2,FALSE) ) )","v":""},null,null,null,null,{"$f":"IF(TRIM(BM67)=\"\", \"\", IF(VLOOKUP(BM67,'Footnotes list'!$D$9:$E$58,2,FALSE)=0,\"\",VLOOKUP(BM67,'Footnotes list'!$D$9:$E$58,2,FALSE) ) )","v":""},null,null,null,null,{"$f":"IF(TRIM(BR67)=\"\", \"\", IF(VLOOKUP(BR67,'Footnotes list'!$D$9:$E$58,2,FALSE)=0,\"\",VLOOKUP(BR67,'Footnotes list'!$D$9:$E$58,2,FALSE) ) )","v":""},null,null,null,null,{"$f":"IF(TRIM(BW67)=\"\", \"\", IF(VLOOKUP(BW67,'Footnotes list'!$D$9:$E$58,2,FALSE)=0,\"\",VLOOKUP(BW67,'Footnotes list'!$D$9:$E$58,2,FALSE) ) )","v":""},null,null,null,null,{"$f":"IF(TRIM(CB67)=\"\", \"\", IF(VLOOKUP(CB67,'Footnotes list'!$D$9:$E$58,2,FALSE)=0,\"\",VLOOKUP(CB67,'Footnotes list'!$D$9:$E$58,2,FALSE) ) )","v":""},null,null,null,null,{"$f":"IF(TRIM(CG67)=\"\", \"\", IF(VLOOKUP(CG67,'Footnotes list'!$D$9:$E$58,2,FALSE)=0,\"\",VLOOKUP(CG67,'Footnotes list'!$D$9:$E$58,2,FALSE) ) )","v":""},null,null,null,null,{"$f":"IF(TRIM(CL67)=\"\", \"\", IF(VLOOKUP(CL67,'Footnotes list'!$D$9:$E$58,2,FALSE)=0,\"\",VLOOKUP(CL67,'Footnotes list'!$D$9:$E$58,2,FALSE) ) )","v":""},null,null,null,null,{"$f":"IF(TRIM(CQ67)=\"\", \"\", IF(VLOOKUP(CQ67,'Footnotes list'!$D$9:$E$58,2,FALSE)=0,\"\",VLOOKUP(CQ67,'Footnotes list'!$D$9:$E$58,2,FALSE) ) )","v":""},null,null,null,null,{"$f":"IF(TRIM(CV67)=\"\", \"\", IF(VLOOKUP(CV67,'Footnotes list'!$D$9:$E$58,2,FALSE)=0,\"\",VLOOKUP(CV67,'Footnotes list'!$D$9:$E$58,2,FALSE) ) )","v":""},null,null,null,null,{"$f":"IF(TRIM(DA67)=\"\", \"\", IF(VLOOKUP(DA67,'Footnotes list'!$D$9:$E$58,2,FALSE)=0,\"\",VLOOKUP(DA67,'Footnotes list'!$D$9:$E$58,2,FALSE) ) )","v":""},null,null,null,null,{"$f":"IF(TRIM(DF67)=\"\", \"\", IF(VLOOKUP(DF67,'Footnotes list'!$D$9:$E$58,2,FALSE)=0,\"\",VLOOKUP(DF67,'Footnotes list'!$D$9:$E$58,2,FALSE) ) )","v":""},null,null,null,null,{"$f":"IF(TRIM(DK67)=\"\", \"\", IF(VLOOKUP(DK67,'Footnotes list'!$D$9:$E$58,2,FALSE)=0,\"\",VLOOKUP(DK67,'Footnotes list'!$D$9:$E$58,2,FALSE) ) )","v":""},null,null,null,null,{"$f":"IF(TRIM(DP67)=\"\", \"\", IF(VLOOKUP(DP67,'Footnotes list'!$D$9:$E$58,2,FALSE)=0,\"\",VLOOKUP(DP67,'Footnotes list'!$D$9:$E$58,2,FALSE) ) )","v":""},null,null,null,null,{"$f":"IF(TRIM(DU67)=\"\", \"\", IF(VLOOKUP(DU67,'Footnotes list'!$D$9:$E$58,2,FALSE)=0,\"\",VLOOKUP(DU67,'Footnotes list'!$D$9:$E$58,2,FALSE) ) )","v":""},null,null,null,null,{"$f":"IF(TRIM(DZ67)=\"\", \"\", IF(VLOOKUP(DZ67,'Footnotes list'!$D$9:$E$58,2,FALSE)=0,\"\",VLOOKUP(DZ67,'Footnotes list'!$D$9:$E$58,2,FALSE) ) )","v":""},null,null,null,null,{"$f":"IF(TRIM(EE67)=\"\", \"\", IF(VLOOKUP(EE67,'Footnotes list'!$D$9:$E$58,2,FALSE)=0,\"\",VLOOKUP(EE67,'Footnotes list'!$D$9:$E$58,2,FALSE) ) )","v":""},null,null,null,null,{"$f":"IF(TRIM(EJ67)=\"\", \"\", IF(VLOOKUP(EJ67,'Footnotes list'!$D$9:$E$58,2,FALSE)=0,\"\",VLOOKUP(EJ67,'Footnotes list'!$D$9:$E$58,2,FALSE) ) )","v":""},null,null,null,null,{"$f":"IF(TRIM(EO67)=\"\", \"\", IF(VLOOKUP(EO67,'Footnotes list'!$D$9:$E$58,2,FALSE)=0,\"\",VLOOKUP(EO67,'Footnotes list'!$D$9:$E$58,2,FALSE) ) )","v":""},null,null,null,null,{"$f":"IF(TRIM(ET67)=\"\", \"\", IF(VLOOKUP(ET67,'Footnotes list'!$D$9:$E$58,2,FALSE)=0,\"\",VLOOKUP(ET67,'Footnotes list'!$D$9:$E$58,2,FALSE) ) )","v":""},null,null,null,null,{"$f":"IF(TRIM(EY67)=\"\", \"\", IF(VLOOKUP(EY67,'Footnotes list'!$D$9:$E$58,2,FALSE)=0,\"\",VLOOKUP(EY67,'Footnotes list'!$D$9:$E$58,2,FALSE) ) )","v":""}]
[null,null,"C20","MKT","market activities, including:",null,null,null,null,null,{"$f":"IF(TRIM(J68)=\"\", \"\", IF(VLOOKUP(J68,'Footnotes list'!$D$9:$E$58,2,FALSE)=0,\"\",VLOOKUP(J68,'Footnotes list'!$D$9:$E$58,2,FALSE) ) )","v":""},null,null,null,null,{"$f":"IF(TRIM(O68)=\"\", \"\", IF(VLOOKUP(O68,'Footnotes list'!$D$9:$E$58,2,FALSE)=0,\"\",VLOOKUP(O68,'Footnotes list'!$D$9:$E$58,2,FALSE) ) )","v":""},null,null,null,null,{"$f":"IF(TRIM(T68)=\"\", \"\", IF(VLOOKUP(T68,'Footnotes list'!$D$9:$E$58,2,FALSE)=0,\"\",VLOOKUP(T68,'Footnotes list'!$D$9:$E$58,2,FALSE) ) )","v":""},null,null,null,null,{"$f":"IF(TRIM(Y68)=\"\", \"\", IF(VLOOKUP(Y68,'Footnotes list'!$D$9:$E$58,2,FALSE)=0,\"\",VLOOKUP(Y68,'Footnotes list'!$D$9:$E$58,2,FALSE) ) )","v":""},null,null,null,null,{"$f":"IF(TRIM(AD68)=\"\", \"\", IF(VLOOKUP(AD68,'Footnotes list'!$D$9:$E$58,2,FALSE)=0,\"\",VLOOKUP(AD68,'Footnotes list'!$D$9:$E$58,2,FALSE) ) )","v":""},null,null,null,null,{"$f":"IF(TRIM(AI68)=\"\", \"\", IF(VLOOKUP(AI68,'Footnotes list'!$D$9:$E$58,2,FALSE)=0,\"\",VLOOKUP(AI68,'Footnotes list'!$D$9:$E$58,2,FALSE) ) )","v":""},null,null,null,null,{"$f":"IF(TRIM(AN68)=\"\", \"\", IF(VLOOKUP(AN68,'Footnotes list'!$D$9:$E$58,2,FALSE)=0,\"\",VLOOKUP(AN68,'Footnotes list'!$D$9:$E$58,2,FALSE) ) )","v":""},null,null,null,null,{"$f":"IF(TRIM(AS68)=\"\", \"\", IF(VLOOKUP(AS68,'Footnotes list'!$D$9:$E$58,2,FALSE)=0,\"\",VLOOKUP(AS68,'Footnotes list'!$D$9:$E$58,2,FALSE) ) )","v":""},null,null,null,null,{"$f":"IF(TRIM(AX68)=\"\", \"\", IF(VLOOKUP(AX68,'Footnotes list'!$D$9:$E$58,2,FALSE)=0,\"\",VLOOKUP(AX68,'Footnotes list'!$D$9:$E$58,2,FALSE) ) )","v":""},null,null,null,null,{"$f":"IF(TRIM(BC68)=\"\", \"\", IF(VLOOKUP(BC68,'Footnotes list'!$D$9:$E$58,2,FALSE)=0,\"\",VLOOKUP(BC68,'Footnotes list'!$D$9:$E$58,2,FALSE) ) )","v":""},null,null,null,null,{"$f":"IF(TRIM(BH68)=\"\", \"\", IF(VLOOKUP(BH68,'Footnotes list'!$D$9:$E$58,2,FALSE)=0,\"\",VLOOKUP(BH68,'Footnotes list'!$D$9:$E$58,2,FALSE) ) )","v":""},null,null,null,null,{"$f":"IF(TRIM(BM68)=\"\", \"\", IF(VLOOKUP(BM68,'Footnotes list'!$D$9:$E$58,2,FALSE)=0,\"\",VLOOKUP(BM68,'Footnotes list'!$D$9:$E$58,2,FALSE) ) )","v":""},null,null,null,null,{"$f":"IF(TRIM(BR68)=\"\", \"\", IF(VLOOKUP(BR68,'Footnotes list'!$D$9:$E$58,2,FALSE)=0,\"\",VLOOKUP(BR68,'Footnotes list'!$D$9:$E$58,2,FALSE) ) )","v":""},null,null,null,null,{"$f":"IF(TRIM(BW68)=\"\", \"\", IF(VLOOKUP(BW68,'Footnotes list'!$D$9:$E$58,2,FALSE)=0,\"\",VLOOKUP(BW68,'Footnotes list'!$D$9:$E$58,2,FALSE) ) )","v":""},null,null,null,null,{"$f":"IF(TRIM(CB68)=\"\", \"\", IF(VLOOKUP(CB68,'Footnotes list'!$D$9:$E$58,2,FALSE)=0,\"\",VLOOKUP(CB68,'Footnotes list'!$D$9:$E$58,2,FALSE) ) )","v":""},null,null,null,null,{"$f":"IF(TRIM(CG68)=\"\", \"\", IF(VLOOKUP(CG68,'Footnotes list'!$D$9:$E$58,2,FALSE)=0,\"\",VLOOKUP(CG68,'Footnotes list'!$D$9:$E$58,2,FALSE) ) )","v":""},null,null,null,null,{"$f":"IF(TRIM(CL68)=\"\", \"\", IF(VLOOKUP(CL68,'Footnotes list'!$D$9:$E$58,2,FALSE)=0,\"\",VLOOKUP(CL68,'Footnotes list'!$D$9:$E$58,2,FALSE) ) )","v":""},null,null,null,null,{"$f":"IF(TRIM(CQ68)=\"\", \"\", IF(VLOOKUP(CQ68,'Footnotes list'!$D$9:$E$58,2,FALSE)=0,\"\",VLOOKUP(CQ68,'Footnotes list'!$D$9:$E$58,2,FALSE) ) )","v":""},null,null,null,null,{"$f":"IF(TRIM(CV68)=\"\", \"\", IF(VLOOKUP(CV68,'Footnotes list'!$D$9:$E$58,2,FALSE)=0,\"\",VLOOKUP(CV68,'Footnotes list'!$D$9:$E$58,2,FALSE) ) )","v":""},null,null,null,null,{"$f":"IF(TRIM(DA68)=\"\", \"\", IF(VLOOKUP(DA68,'Footnotes list'!$D$9:$E$58,2,FALSE)=0,\"\",VLOOKUP(DA68,'Footnotes list'!$D$9:$E$58,2,FALSE) ) )","v":""},null,null,null,null,{"$f":"IF(TRIM(DF68)=\"\", \"\", IF(VLOOKUP(DF68,'Footnotes list'!$D$9:$E$58,2,FALSE)=0,\"\",VLOOKUP(DF68,'Footnotes list'!$D$9:$E$58,2,FALSE) ) )","v":""},null,null,null,null,{"$f":"IF(TRIM(DK68)=\"\", \"\", IF(VLOOKUP(DK68,'Footnotes list'!$D$9:$E$58,2,FALSE)=0,\"\",VLOOKUP(DK68,'Footnotes list'!$D$9:$E$58,2,FALSE) ) )","v":""},null,null,null,null,{"$f":"IF(TRIM(DP68)=\"\", \"\", IF(VLOOKUP(DP68,'Footnotes list'!$D$9:$E$58,2,FALSE)=0,\"\",VLOOKUP(DP68,'Footnotes list'!$D$9:$E$58,2,FALSE) ) )","v":""},null,null,null,null,{"$f":"IF(TRIM(DU68)=\"\", \"\", IF(VLOOKUP(DU68,'Footnotes list'!$D$9:$E$58,2,FALSE)=0,\"\",VLOOKUP(DU68,'Footnotes list'!$D$9:$E$58,2,FALSE) ) )","v":""},null,null,null,null,{"$f":"IF(TRIM(DZ68)=\"\", \"\", IF(VLOOKUP(DZ68,'Footnotes list'!$D$9:$E$58,2,FALSE)=0,\"\",VLOOKUP(DZ68,'Footnotes list'!$D$9:$E$58,2,FALSE) ) )","v":""},null,null,null,null,{"$f":"IF(TRIM(EE68)=\"\", \"\", IF(VLOOKUP(EE68,'Footnotes list'!$D$9:$E$58,2,FALSE)=0,\"\",VLOOKUP(EE68,'Footnotes list'!$D$9:$E$58,2,FALSE) ) )","v":""},null,null,null,null,{"$f":"IF(TRIM(EJ68)=\"\", \"\", IF(VLOOKUP(EJ68,'Footnotes list'!$D$9:$E$58,2,FALSE)=0,\"\",VLOOKUP(EJ68,'Footnotes list'!$D$9:$E$58,2,FALSE) ) )","v":""},null,null,null,null,{"$f":"IF(TRIM(EO68)=\"\", \"\", IF(VLOOKUP(EO68,'Footnotes list'!$D$9:$E$58,2,FALSE)=0,\"\",VLOOKUP(EO68,'Footnotes list'!$D$9:$E$58,2,FALSE) ) )","v":""},null,null,null,null,{"$f":"IF(TRIM(ET68)=\"\", \"\", IF(VLOOKUP(ET68,'Footnotes list'!$D$9:$E$58,2,FALSE)=0,\"\",VLOOKUP(ET68,'Footnotes list'!$D$9:$E$58,2,FALSE) ) )","v":""},null,null,null,null,{"$f":"IF(TRIM(EY68)=\"\", \"\", IF(VLOOKUP(EY68,'Footnotes list'!$D$9:$E$58,2,FALSE)=0,\"\",VLOOKUP(EY68,'Footnotes list'!$D$9:$E$58,2,FALSE) ) )","v":""}]
[null,null,"C20","ES_CS","environmental specific services",null,null,null,null,null,{"$f":"IF(TRIM(J69)=\"\", \"\", IF(VLOOKUP(J69,'Footnotes list'!$D$9:$E$58,2,FALSE)=0,\"\",VLOOKUP(J69,'Footnotes list'!$D$9:$E$58,2,FALSE) ) )","v":""},null,null,null,null,{"$f":"IF(TRIM(O69)=\"\", \"\", IF(VLOOKUP(O69,'Footnotes list'!$D$9:$E$58,2,FALSE)=0,\"\",VLOOKUP(O69,'Footnotes list'!$D$9:$E$58,2,FALSE) ) )","v":""},null,null,null,null,{"$f":"IF(TRIM(T69)=\"\", \"\", IF(VLOOKUP(T69,'Footnotes list'!$D$9:$E$58,2,FALSE)=0,\"\",VLOOKUP(T69,'Footnotes list'!$D$9:$E$58,2,FALSE) ) )","v":""},null,null,null,null,{"$f":"IF(TRIM(Y69)=\"\", \"\", IF(VLOOKUP(Y69,'Footnotes list'!$D$9:$E$58,2,FALSE)=0,\"\",VLOOKUP(Y69,'Footnotes list'!$D$9:$E$58,2,FALSE) ) )","v":""},null,null,null,null,{"$f":"IF(TRIM(AD69)=\"\", \"\", IF(VLOOKUP(AD69,'Footnotes list'!$D$9:$E$58,2,FALSE)=0,\"\",VLOOKUP(AD69,'Footnotes list'!$D$9:$E$58,2,FALSE) ) )","v":""},null,null,null,null,{"$f":"IF(TRIM(AI69)=\"\", \"\", IF(VLOOKUP(AI69,'Footnotes list'!$D$9:$E$58,2,FALSE)=0,\"\",VLOOKUP(AI69,'Footnotes list'!$D$9:$E$58,2,FALSE) ) )","v":""},null,null,null,null,{"$f":"IF(TRIM(AN69)=\"\", \"\", IF(VLOOKUP(AN69,'Footnotes list'!$D$9:$E$58,2,FALSE)=0,\"\",VLOOKUP(AN69,'Footnotes list'!$D$9:$E$58,2,FALSE) ) )","v":""},null,null,null,null,{"$f":"IF(TRIM(AS69)=\"\", \"\", IF(VLOOKUP(AS69,'Footnotes list'!$D$9:$E$58,2,FALSE)=0,\"\",VLOOKUP(AS69,'Footnotes list'!$D$9:$E$58,2,FALSE) ) )","v":""},null,null,null,null,{"$f":"IF(TRIM(AX69)=\"\", \"\", IF(VLOOKUP(AX69,'Footnotes list'!$D$9:$E$58,2,FALSE)=0,\"\",VLOOKUP(AX69,'Footnotes list'!$D$9:$E$58,2,FALSE) ) )","v":""},null,null,null,null,{"$f":"IF(TRIM(BC69)=\"\", \"\", IF(VLOOKUP(BC69,'Footnotes list'!$D$9:$E$58,2,FALSE)=0,\"\",VLOOKUP(BC69,'Footnotes list'!$D$9:$E$58,2,FALSE) ) )","v":""},null,null,null,null,{"$f":"IF(TRIM(BH69)=\"\", \"\", IF(VLOOKUP(BH69,'Footnotes list'!$D$9:$E$58,2,FALSE)=0,\"\",VLOOKUP(BH69,'Footnotes list'!$D$9:$E$58,2,FALSE) ) )","v":""},null,null,null,null,{"$f":"IF(TRIM(BM69)=\"\", \"\", IF(VLOOKUP(BM69,'Footnotes list'!$D$9:$E$58,2,FALSE)=0,\"\",VLOOKUP(BM69,'Footnotes list'!$D$9:$E$58,2,FALSE) ) )","v":""},null,null,null,null,{"$f":"IF(TRIM(BR69)=\"\", \"\", IF(VLOOKUP(BR69,'Footnotes list'!$D$9:$E$58,2,FALSE)=0,\"\",VLOOKUP(BR69,'Footnotes list'!$D$9:$E$58,2,FALSE) ) )","v":""},null,null,null,null,{"$f":"IF(TRIM(BW69)=\"\", \"\", IF(VLOOKUP(BW69,'Footnotes list'!$D$9:$E$58,2,FALSE)=0,\"\",VLOOKUP(BW69,'Footnotes list'!$D$9:$E$58,2,FALSE) ) )","v":""},null,null,null,null,{"$f":"IF(TRIM(CB69)=\"\", \"\", IF(VLOOKUP(CB69,'Footnotes list'!$D$9:$E$58,2,FALSE)=0,\"\",VLOOKUP(CB69,'Footnotes list'!$D$9:$E$58,2,FALSE) ) )","v":""},null,null,null,null,{"$f":"IF(TRIM(CG69)=\"\", \"\", IF(VLOOKUP(CG69,'Footnotes list'!$D$9:$E$58,2,FALSE)=0,\"\",VLOOKUP(CG69,'Footnotes list'!$D$9:$E$58,2,FALSE) ) )","v":""},null,null,null,null,{"$f":"IF(TRIM(CL69)=\"\", \"\", IF(VLOOKUP(CL69,'Footnotes list'!$D$9:$E$58,2,FALSE)=0,\"\",VLOOKUP(CL69,'Footnotes list'!$D$9:$E$58,2,FALSE) ) )","v":""},null,null,null,null,{"$f":"IF(TRIM(CQ69)=\"\", \"\", IF(VLOOKUP(CQ69,'Footnotes list'!$D$9:$E$58,2,FALSE)=0,\"\",VLOOKUP(CQ69,'Footnotes list'!$D$9:$E$58,2,FALSE) ) )","v":""},null,null,null,null,{"$f":"IF(TRIM(CV69)=\"\", \"\", IF(VLOOKUP(CV69,'Footnotes list'!$D$9:$E$58,2,FALSE)=0,\"\",VLOOKUP(CV69,'Footnotes list'!$D$9:$E$58,2,FALSE) ) )","v":""},null,null,null,null,{"$f":"IF(TRIM(DA69)=\"\", \"\", IF(VLOOKUP(DA69,'Footnotes list'!$D$9:$E$58,2,FALSE)=0,\"\",VLOOKUP(DA69,'Footnotes list'!$D$9:$E$58,2,FALSE) ) )","v":""},null,null,null,null,{"$f":"IF(TRIM(DF69)=\"\", \"\", IF(VLOOKUP(DF69,'Footnotes list'!$D$9:$E$58,2,FALSE)=0,\"\",VLOOKUP(DF69,'Footnotes list'!$D$9:$E$58,2,FALSE) ) )","v":""},null,null,null,null,{"$f":"IF(TRIM(DK69)=\"\", \"\", IF(VLOOKUP(DK69,'Footnotes list'!$D$9:$E$58,2,FALSE)=0,\"\",VLOOKUP(DK69,'Footnotes list'!$D$9:$E$58,2,FALSE) ) )","v":""},null,null,null,null,{"$f":"IF(TRIM(DP69)=\"\", \"\", IF(VLOOKUP(DP69,'Footnotes list'!$D$9:$E$58,2,FALSE)=0,\"\",VLOOKUP(DP69,'Footnotes list'!$D$9:$E$58,2,FALSE) ) )","v":""},null,null,null,null,{"$f":"IF(TRIM(DU69)=\"\", \"\", IF(VLOOKUP(DU69,'Footnotes list'!$D$9:$E$58,2,FALSE)=0,\"\",VLOOKUP(DU69,'Footnotes list'!$D$9:$E$58,2,FALSE) ) )","v":""},null,null,null,null,{"$f":"IF(TRIM(DZ69)=\"\", \"\", IF(VLOOKUP(DZ69,'Footnotes list'!$D$9:$E$58,2,FALSE)=0,\"\",VLOOKUP(DZ69,'Footnotes list'!$D$9:$E$58,2,FALSE) ) )","v":""},null,null,null,null,{"$f":"IF(TRIM(EE69)=\"\", \"\", IF(VLOOKUP(EE69,'Footnotes list'!$D$9:$E$58,2,FALSE)=0,\"\",VLOOKUP(EE69,'Footnotes list'!$D$9:$E$58,2,FALSE) ) )","v":""},null,null,null,null,{"$f":"IF(TRIM(EJ69)=\"\", \"\", IF(VLOOKUP(EJ69,'Footnotes list'!$D$9:$E$58,2,FALSE)=0,\"\",VLOOKUP(EJ69,'Footnotes list'!$D$9:$E$58,2,FALSE) ) )","v":""},null,null,null,null,{"$f":"IF(TRIM(EO69)=\"\", \"\", IF(VLOOKUP(EO69,'Footnotes list'!$D$9:$E$58,2,FALSE)=0,\"\",VLOOKUP(EO69,'Footnotes list'!$D$9:$E$58,2,FALSE) ) )","v":""},null,null,null,null,{"$f":"IF(TRIM(ET69)=\"\", \"\", IF(VLOOKUP(ET69,'Footnotes list'!$D$9:$E$58,2,FALSE)=0,\"\",VLOOKUP(ET69,'Footnotes list'!$D$9:$E$58,2,FALSE) ) )","v":""},null,null,null,null,{"$f":"IF(TRIM(EY69)=\"\", \"\", IF(VLOOKUP(EY69,'Footnotes list'!$D$9:$E$58,2,FALSE)=0,\"\",VLOOKUP(EY69,'Footnotes list'!$D$9:$E$58,2,FALSE) ) )","v":""}]
[null,null,"C20","C_REP","cleaner and resource efficient products",null,null,null,null,null,{"$f":"IF(TRIM(J70)=\"\", \"\", IF(VLOOKUP(J70,'Footnotes list'!$D$9:$E$58,2,FALSE)=0,\"\",VLOOKUP(J70,'Footnotes list'!$D$9:$E$58,2,FALSE) ) )","v":""},null,null,null,null,{"$f":"IF(TRIM(O70)=\"\", \"\", IF(VLOOKUP(O70,'Footnotes list'!$D$9:$E$58,2,FALSE)=0,\"\",VLOOKUP(O70,'Footnotes list'!$D$9:$E$58,2,FALSE) ) )","v":""},null,null,null,null,{"$f":"IF(TRIM(T70)=\"\", \"\", IF(VLOOKUP(T70,'Footnotes list'!$D$9:$E$58,2,FALSE)=0,\"\",VLOOKUP(T70,'Footnotes list'!$D$9:$E$58,2,FALSE) ) )","v":""},null,null,null,null,{"$f":"IF(TRIM(Y70)=\"\", \"\", IF(VLOOKUP(Y70,'Footnotes list'!$D$9:$E$58,2,FALSE)=0,\"\",VLOOKUP(Y70,'Footnotes list'!$D$9:$E$58,2,FALSE) ) )","v":""},null,null,null,null,{"$f":"IF(TRIM(AD70)=\"\", \"\", IF(VLOOKUP(AD70,'Footnotes list'!$D$9:$E$58,2,FALSE)=0,\"\",VLOOKUP(AD70,'Footnotes list'!$D$9:$E$58,2,FALSE) ) )","v":""},null,null,null,null,{"$f":"IF(TRIM(AI70)=\"\", \"\", IF(VLOOKUP(AI70,'Footnotes list'!$D$9:$E$58,2,FALSE)=0,\"\",VLOOKUP(AI70,'Footnotes list'!$D$9:$E$58,2,FALSE) ) )","v":""},null,null,null,null,{"$f":"IF(TRIM(AN70)=\"\", \"\", IF(VLOOKUP(AN70,'Footnotes list'!$D$9:$E$58,2,FALSE)=0,\"\",VLOOKUP(AN70,'Footnotes list'!$D$9:$E$58,2,FALSE) ) )","v":""},null,null,null,null,{"$f":"IF(TRIM(AS70)=\"\", \"\", IF(VLOOKUP(AS70,'Footnotes list'!$D$9:$E$58,2,FALSE)=0,\"\",VLOOKUP(AS70,'Footnotes list'!$D$9:$E$58,2,FALSE) ) )","v":""},null,null,null,null,{"$f":"IF(TRIM(AX70)=\"\", \"\", IF(VLOOKUP(AX70,'Footnotes list'!$D$9:$E$58,2,FALSE)=0,\"\",VLOOKUP(AX70,'Footnotes list'!$D$9:$E$58,2,FALSE) ) )","v":""},null,null,null,null,{"$f":"IF(TRIM(BC70)=\"\", \"\", IF(VLOOKUP(BC70,'Footnotes list'!$D$9:$E$58,2,FALSE)=0,\"\",VLOOKUP(BC70,'Footnotes list'!$D$9:$E$58,2,FALSE) ) )","v":""},null,null,null,null,{"$f":"IF(TRIM(BH70)=\"\", \"\", IF(VLOOKUP(BH70,'Footnotes list'!$D$9:$E$58,2,FALSE)=0,\"\",VLOOKUP(BH70,'Footnotes list'!$D$9:$E$58,2,FALSE) ) )","v":""},null,null,null,null,{"$f":"IF(TRIM(BM70)=\"\", \"\", IF(VLOOKUP(BM70,'Footnotes list'!$D$9:$E$58,2,FALSE)=0,\"\",VLOOKUP(BM70,'Footnotes list'!$D$9:$E$58,2,FALSE) ) )","v":""},null,null,null,null,{"$f":"IF(TRIM(BR70)=\"\", \"\", IF(VLOOKUP(BR70,'Footnotes list'!$D$9:$E$58,2,FALSE)=0,\"\",VLOOKUP(BR70,'Footnotes list'!$D$9:$E$58,2,FALSE) ) )","v":""},null,null,null,null,{"$f":"IF(TRIM(BW70)=\"\", \"\", IF(VLOOKUP(BW70,'Footnotes list'!$D$9:$E$58,2,FALSE)=0,\"\",VLOOKUP(BW70,'Footnotes list'!$D$9:$E$58,2,FALSE) ) )","v":""},null,null,null,null,{"$f":"IF(TRIM(CB70)=\"\", \"\", IF(VLOOKUP(CB70,'Footnotes list'!$D$9:$E$58,2,FALSE)=0,\"\",VLOOKUP(CB70,'Footnotes list'!$D$9:$E$58,2,FALSE) ) )","v":""},null,null,null,null,{"$f":"IF(TRIM(CG70)=\"\", \"\", IF(VLOOKUP(CG70,'Footnotes list'!$D$9:$E$58,2,FALSE)=0,\"\",VLOOKUP(CG70,'Footnotes list'!$D$9:$E$58,2,FALSE) ) )","v":""},null,null,null,null,{"$f":"IF(TRIM(CL70)=\"\", \"\", IF(VLOOKUP(CL70,'Footnotes list'!$D$9:$E$58,2,FALSE)=0,\"\",VLOOKUP(CL70,'Footnotes list'!$D$9:$E$58,2,FALSE) ) )","v":""},null,null,null,null,{"$f":"IF(TRIM(CQ70)=\"\", \"\", IF(VLOOKUP(CQ70,'Footnotes list'!$D$9:$E$58,2,FALSE)=0,\"\",VLOOKUP(CQ70,'Footnotes list'!$D$9:$E$58,2,FALSE) ) )","v":""},null,null,null,null,{"$f":"IF(TRIM(CV70)=\"\", \"\", IF(VLOOKUP(CV70,'Footnotes list'!$D$9:$E$58,2,FALSE)=0,\"\",VLOOKUP(CV70,'Footnotes list'!$D$9:$E$58,2,FALSE) ) )","v":""},null,null,null,null,{"$f":"IF(TRIM(DA70)=\"\", \"\", IF(VLOOKUP(DA70,'Footnotes list'!$D$9:$E$58,2,FALSE)=0,\"\",VLOOKUP(DA70,'Footnotes list'!$D$9:$E$58,2,FALSE) ) )","v":""},null,null,null,null,{"$f":"IF(TRIM(DF70)=\"\", \"\", IF(VLOOKUP(DF70,'Footnotes list'!$D$9:$E$58,2,FALSE)=0,\"\",VLOOKUP(DF70,'Footnotes list'!$D$9:$E$58,2,FALSE) ) )","v":""},null,null,null,null,{"$f":"IF(TRIM(DK70)=\"\", \"\", IF(VLOOKUP(DK70,'Footnotes list'!$D$9:$E$58,2,FALSE)=0,\"\",VLOOKUP(DK70,'Footnotes list'!$D$9:$E$58,2,FALSE) ) )","v":""},null,null,null,null,{"$f":"IF(TRIM(DP70)=\"\", \"\", IF(VLOOKUP(DP70,'Footnotes list'!$D$9:$E$58,2,FALSE)=0,\"\",VLOOKUP(DP70,'Footnotes list'!$D$9:$E$58,2,FALSE) ) )","v":""},null,null,null,null,{"$f":"IF(TRIM(DU70)=\"\", \"\", IF(VLOOKUP(DU70,'Footnotes list'!$D$9:$E$58,2,FALSE)=0,\"\",VLOOKUP(DU70,'Footnotes list'!$D$9:$E$58,2,FALSE) ) )","v":""},null,null,null,null,{"$f":"IF(TRIM(DZ70)=\"\", \"\", IF(VLOOKUP(DZ70,'Footnotes list'!$D$9:$E$58,2,FALSE)=0,\"\",VLOOKUP(DZ70,'Footnotes list'!$D$9:$E$58,2,FALSE) ) )","v":""},null,null,null,null,{"$f":"IF(TRIM(EE70)=\"\", \"\", IF(VLOOKUP(EE70,'Footnotes list'!$D$9:$E$58,2,FALSE)=0,\"\",VLOOKUP(EE70,'Footnotes list'!$D$9:$E$58,2,FALSE) ) )","v":""},null,null,null,null,{"$f":"IF(TRIM(EJ70)=\"\", \"\", IF(VLOOKUP(EJ70,'Footnotes list'!$D$9:$E$58,2,FALSE)=0,\"\",VLOOKUP(EJ70,'Footnotes list'!$D$9:$E$58,2,FALSE) ) )","v":""},null,null,null,null,{"$f":"IF(TRIM(EO70)=\"\", \"\", IF(VLOOKUP(EO70,'Footnotes list'!$D$9:$E$58,2,FALSE)=0,\"\",VLOOKUP(EO70,'Footnotes list'!$D$9:$E$58,2,FALSE) ) )","v":""},null,null,null,null,{"$f":"IF(TRIM(ET70)=\"\", \"\", IF(VLOOKUP(ET70,'Footnotes list'!$D$9:$E$58,2,FALSE)=0,\"\",VLOOKUP(ET70,'Footnotes list'!$D$9:$E$58,2,FALSE) ) )","v":""},null,null,null,null,{"$f":"IF(TRIM(EY70)=\"\", \"\", IF(VLOOKUP(EY70,'Footnotes list'!$D$9:$E$58,2,FALSE)=0,\"\",VLOOKUP(EY70,'Footnotes list'!$D$9:$E$58,2,FALSE) ) )","v":""}]
[null,null,"C21","TOT_EGSS","Total C21 - Manufacture of basic pharmaceutical products and pharmaceutical preparations, of which:",null,null,null,null,null,{"$f":"IF(TRIM(J71)=\"\", \"\", IF(VLOOKUP(J71,'Footnotes list'!$D$9:$E$58,2,FALSE)=0,\"\",VLOOKUP(J71,'Footnotes list'!$D$9:$E$58,2,FALSE) ) )","v":""},null,null,null,null,{"$f":"IF(TRIM(O71)=\"\", \"\", IF(VLOOKUP(O71,'Footnotes list'!$D$9:$E$58,2,FALSE)=0,\"\",VLOOKUP(O71,'Footnotes list'!$D$9:$E$58,2,FALSE) ) )","v":""},null,null,null,null,{"$f":"IF(TRIM(T71)=\"\", \"\", IF(VLOOKUP(T71,'Footnotes list'!$D$9:$E$58,2,FALSE)=0,\"\",VLOOKUP(T71,'Footnotes list'!$D$9:$E$58,2,FALSE) ) )","v":""},null,null,null,null,{"$f":"IF(TRIM(Y71)=\"\", \"\", IF(VLOOKUP(Y71,'Footnotes list'!$D$9:$E$58,2,FALSE)=0,\"\",VLOOKUP(Y71,'Footnotes list'!$D$9:$E$58,2,FALSE) ) )","v":""},null,null,null,null,{"$f":"IF(TRIM(AD71)=\"\", \"\", IF(VLOOKUP(AD71,'Footnotes list'!$D$9:$E$58,2,FALSE)=0,\"\",VLOOKUP(AD71,'Footnotes list'!$D$9:$E$58,2,FALSE) ) )","v":""},null,null,null,null,{"$f":"IF(TRIM(AI71)=\"\", \"\", IF(VLOOKUP(AI71,'Footnotes list'!$D$9:$E$58,2,FALSE)=0,\"\",VLOOKUP(AI71,'Footnotes list'!$D$9:$E$58,2,FALSE) ) )","v":""},null,null,null,null,{"$f":"IF(TRIM(AN71)=\"\", \"\", IF(VLOOKUP(AN71,'Footnotes list'!$D$9:$E$58,2,FALSE)=0,\"\",VLOOKUP(AN71,'Footnotes list'!$D$9:$E$58,2,FALSE) ) )","v":""},null,null,null,null,{"$f":"IF(TRIM(AS71)=\"\", \"\", IF(VLOOKUP(AS71,'Footnotes list'!$D$9:$E$58,2,FALSE)=0,\"\",VLOOKUP(AS71,'Footnotes list'!$D$9:$E$58,2,FALSE) ) )","v":""},null,null,null,null,{"$f":"IF(TRIM(AX71)=\"\", \"\", IF(VLOOKUP(AX71,'Footnotes list'!$D$9:$E$58,2,FALSE)=0,\"\",VLOOKUP(AX71,'Footnotes list'!$D$9:$E$58,2,FALSE) ) )","v":""},null,null,null,null,{"$f":"IF(TRIM(BC71)=\"\", \"\", IF(VLOOKUP(BC71,'Footnotes list'!$D$9:$E$58,2,FALSE)=0,\"\",VLOOKUP(BC71,'Footnotes list'!$D$9:$E$58,2,FALSE) ) )","v":""},null,null,null,null,{"$f":"IF(TRIM(BH71)=\"\", \"\", IF(VLOOKUP(BH71,'Footnotes list'!$D$9:$E$58,2,FALSE)=0,\"\",VLOOKUP(BH71,'Footnotes list'!$D$9:$E$58,2,FALSE) ) )","v":""},null,null,null,null,{"$f":"IF(TRIM(BM71)=\"\", \"\", IF(VLOOKUP(BM71,'Footnotes list'!$D$9:$E$58,2,FALSE)=0,\"\",VLOOKUP(BM71,'Footnotes list'!$D$9:$E$58,2,FALSE) ) )","v":""},null,null,null,null,{"$f":"IF(TRIM(BR71)=\"\", \"\", IF(VLOOKUP(BR71,'Footnotes list'!$D$9:$E$58,2,FALSE)=0,\"\",VLOOKUP(BR71,'Footnotes list'!$D$9:$E$58,2,FALSE) ) )","v":""},null,null,null,null,{"$f":"IF(TRIM(BW71)=\"\", \"\", IF(VLOOKUP(BW71,'Footnotes list'!$D$9:$E$58,2,FALSE)=0,\"\",VLOOKUP(BW71,'Footnotes list'!$D$9:$E$58,2,FALSE) ) )","v":""},null,null,null,null,{"$f":"IF(TRIM(CB71)=\"\", \"\", IF(VLOOKUP(CB71,'Footnotes list'!$D$9:$E$58,2,FALSE)=0,\"\",VLOOKUP(CB71,'Footnotes list'!$D$9:$E$58,2,FALSE) ) )","v":""},null,null,null,null,{"$f":"IF(TRIM(CG71)=\"\", \"\", IF(VLOOKUP(CG71,'Footnotes list'!$D$9:$E$58,2,FALSE)=0,\"\",VLOOKUP(CG71,'Footnotes list'!$D$9:$E$58,2,FALSE) ) )","v":""},null,null,null,null,{"$f":"IF(TRIM(CL71)=\"\", \"\", IF(VLOOKUP(CL71,'Footnotes list'!$D$9:$E$58,2,FALSE)=0,\"\",VLOOKUP(CL71,'Footnotes list'!$D$9:$E$58,2,FALSE) ) )","v":""},null,null,null,null,{"$f":"IF(TRIM(CQ71)=\"\", \"\", IF(VLOOKUP(CQ71,'Footnotes list'!$D$9:$E$58,2,FALSE)=0,\"\",VLOOKUP(CQ71,'Footnotes list'!$D$9:$E$58,2,FALSE) ) )","v":""},null,null,null,null,{"$f":"IF(TRIM(CV71)=\"\", \"\", IF(VLOOKUP(CV71,'Footnotes list'!$D$9:$E$58,2,FALSE)=0,\"\",VLOOKUP(CV71,'Footnotes list'!$D$9:$E$58,2,FALSE) ) )","v":""},null,null,null,null,{"$f":"IF(TRIM(DA71)=\"\", \"\", IF(VLOOKUP(DA71,'Footnotes list'!$D$9:$E$58,2,FALSE)=0,\"\",VLOOKUP(DA71,'Footnotes list'!$D$9:$E$58,2,FALSE) ) )","v":""},null,null,null,null,{"$f":"IF(TRIM(DF71)=\"\", \"\", IF(VLOOKUP(DF71,'Footnotes list'!$D$9:$E$58,2,FALSE)=0,\"\",VLOOKUP(DF71,'Footnotes list'!$D$9:$E$58,2,FALSE) ) )","v":""},null,null,null,null,{"$f":"IF(TRIM(DK71)=\"\", \"\", IF(VLOOKUP(DK71,'Footnotes list'!$D$9:$E$58,2,FALSE)=0,\"\",VLOOKUP(DK71,'Footnotes list'!$D$9:$E$58,2,FALSE) ) )","v":""},null,null,null,null,{"$f":"IF(TRIM(DP71)=\"\", \"\", IF(VLOOKUP(DP71,'Footnotes list'!$D$9:$E$58,2,FALSE)=0,\"\",VLOOKUP(DP71,'Footnotes list'!$D$9:$E$58,2,FALSE) ) )","v":""},null,null,null,null,{"$f":"IF(TRIM(DU71)=\"\", \"\", IF(VLOOKUP(DU71,'Footnotes list'!$D$9:$E$58,2,FALSE)=0,\"\",VLOOKUP(DU71,'Footnotes list'!$D$9:$E$58,2,FALSE) ) )","v":""},null,null,null,null,{"$f":"IF(TRIM(DZ71)=\"\", \"\", IF(VLOOKUP(DZ71,'Footnotes list'!$D$9:$E$58,2,FALSE)=0,\"\",VLOOKUP(DZ71,'Footnotes list'!$D$9:$E$58,2,FALSE) ) )","v":""},null,null,null,null,{"$f":"IF(TRIM(EE71)=\"\", \"\", IF(VLOOKUP(EE71,'Footnotes list'!$D$9:$E$58,2,FALSE)=0,\"\",VLOOKUP(EE71,'Footnotes list'!$D$9:$E$58,2,FALSE) ) )","v":""},null,null,null,null,{"$f":"IF(TRIM(EJ71)=\"\", \"\", IF(VLOOKUP(EJ71,'Footnotes list'!$D$9:$E$58,2,FALSE)=0,\"\",VLOOKUP(EJ71,'Footnotes list'!$D$9:$E$58,2,FALSE) ) )","v":""},null,null,null,null,{"$f":"IF(TRIM(EO71)=\"\", \"\", IF(VLOOKUP(EO71,'Footnotes list'!$D$9:$E$58,2,FALSE)=0,\"\",VLOOKUP(EO71,'Footnotes list'!$D$9:$E$58,2,FALSE) ) )","v":""},null,null,null,null,{"$f":"IF(TRIM(ET71)=\"\", \"\", IF(VLOOKUP(ET71,'Footnotes list'!$D$9:$E$58,2,FALSE)=0,\"\",VLOOKUP(ET71,'Footnotes list'!$D$9:$E$58,2,FALSE) ) )","v":""},null,null,null,null,{"$f":"IF(TRIM(EY71)=\"\", \"\", IF(VLOOKUP(EY71,'Footnotes list'!$D$9:$E$58,2,FALSE)=0,\"\",VLOOKUP(EY71,'Footnotes list'!$D$9:$E$58,2,FALSE) ) )","v":""}]
[null,null,"C21","ANC","ancillary activities",null,null,null,null,null,{"$f":"IF(TRIM(J72)=\"\", \"\", IF(VLOOKUP(J72,'Footnotes list'!$D$9:$E$58,2,FALSE)=0,\"\",VLOOKUP(J72,'Footnotes list'!$D$9:$E$58,2,FALSE) ) )","v":""},null,null,null,null,{"$f":"IF(TRIM(O72)=\"\", \"\", IF(VLOOKUP(O72,'Footnotes list'!$D$9:$E$58,2,FALSE)=0,\"\",VLOOKUP(O72,'Footnotes list'!$D$9:$E$58,2,FALSE) ) )","v":""},null,null,null,null,{"$f":"IF(TRIM(T72)=\"\", \"\", IF(VLOOKUP(T72,'Footnotes list'!$D$9:$E$58,2,FALSE)=0,\"\",VLOOKUP(T72,'Footnotes list'!$D$9:$E$58,2,FALSE) ) )","v":""},null,null,null,null,{"$f":"IF(TRIM(Y72)=\"\", \"\", IF(VLOOKUP(Y72,'Footnotes list'!$D$9:$E$58,2,FALSE)=0,\"\",VLOOKUP(Y72,'Footnotes list'!$D$9:$E$58,2,FALSE) ) )","v":""},null,null,null,null,{"$f":"IF(TRIM(AD72)=\"\", \"\", IF(VLOOKUP(AD72,'Footnotes list'!$D$9:$E$58,2,FALSE)=0,\"\",VLOOKUP(AD72,'Footnotes list'!$D$9:$E$58,2,FALSE) ) )","v":""},null,null,null,null,{"$f":"IF(TRIM(AI72)=\"\", \"\", IF(VLOOKUP(AI72,'Footnotes list'!$D$9:$E$58,2,FALSE)=0,\"\",VLOOKUP(AI72,'Footnotes list'!$D$9:$E$58,2,FALSE) ) )","v":""},null,null,null,null,{"$f":"IF(TRIM(AN72)=\"\", \"\", IF(VLOOKUP(AN72,'Footnotes list'!$D$9:$E$58,2,FALSE)=0,\"\",VLOOKUP(AN72,'Footnotes list'!$D$9:$E$58,2,FALSE) ) )","v":""},null,null,null,null,{"$f":"IF(TRIM(AS72)=\"\", \"\", IF(VLOOKUP(AS72,'Footnotes list'!$D$9:$E$58,2,FALSE)=0,\"\",VLOOKUP(AS72,'Footnotes list'!$D$9:$E$58,2,FALSE) ) )","v":""},null,null,null,null,{"$f":"IF(TRIM(AX72)=\"\", \"\", IF(VLOOKUP(AX72,'Footnotes list'!$D$9:$E$58,2,FALSE)=0,\"\",VLOOKUP(AX72,'Footnotes list'!$D$9:$E$58,2,FALSE) ) )","v":""},null,null,null,null,{"$f":"IF(TRIM(BC72)=\"\", \"\", IF(VLOOKUP(BC72,'Footnotes list'!$D$9:$E$58,2,FALSE)=0,\"\",VLOOKUP(BC72,'Footnotes list'!$D$9:$E$58,2,FALSE) ) )","v":""},null,null,null,null,{"$f":"IF(TRIM(BH72)=\"\", \"\", IF(VLOOKUP(BH72,'Footnotes list'!$D$9:$E$58,2,FALSE)=0,\"\",VLOOKUP(BH72,'Footnotes list'!$D$9:$E$58,2,FALSE) ) )","v":""},null,null,null,null,{"$f":"IF(TRIM(BM72)=\"\", \"\", IF(VLOOKUP(BM72,'Footnotes list'!$D$9:$E$58,2,FALSE)=0,\"\",VLOOKUP(BM72,'Footnotes list'!$D$9:$E$58,2,FALSE) ) )","v":""},null,null,null,null,{"$f":"IF(TRIM(BR72)=\"\", \"\", IF(VLOOKUP(BR72,'Footnotes list'!$D$9:$E$58,2,FALSE)=0,\"\",VLOOKUP(BR72,'Footnotes list'!$D$9:$E$58,2,FALSE) ) )","v":""},null,null,null,null,{"$f":"IF(TRIM(BW72)=\"\", \"\", IF(VLOOKUP(BW72,'Footnotes list'!$D$9:$E$58,2,FALSE)=0,\"\",VLOOKUP(BW72,'Footnotes list'!$D$9:$E$58,2,FALSE) ) )","v":""},null,null,null,null,{"$f":"IF(TRIM(CB72)=\"\", \"\", IF(VLOOKUP(CB72,'Footnotes list'!$D$9:$E$58,2,FALSE)=0,\"\",VLOOKUP(CB72,'Footnotes list'!$D$9:$E$58,2,FALSE) ) )","v":""},null,null,null,null,{"$f":"IF(TRIM(CG72)=\"\", \"\", IF(VLOOKUP(CG72,'Footnotes list'!$D$9:$E$58,2,FALSE)=0,\"\",VLOOKUP(CG72,'Footnotes list'!$D$9:$E$58,2,FALSE) ) )","v":""},null,null,null,null,{"$f":"IF(TRIM(CL72)=\"\", \"\", IF(VLOOKUP(CL72,'Footnotes list'!$D$9:$E$58,2,FALSE)=0,\"\",VLOOKUP(CL72,'Footnotes list'!$D$9:$E$58,2,FALSE) ) )","v":""},null,null,null,null,{"$f":"IF(TRIM(CQ72)=\"\", \"\", IF(VLOOKUP(CQ72,'Footnotes list'!$D$9:$E$58,2,FALSE)=0,\"\",VLOOKUP(CQ72,'Footnotes list'!$D$9:$E$58,2,FALSE) ) )","v":""},null,null,null,null,{"$f":"IF(TRIM(CV72)=\"\", \"\", IF(VLOOKUP(CV72,'Footnotes list'!$D$9:$E$58,2,FALSE)=0,\"\",VLOOKUP(CV72,'Footnotes list'!$D$9:$E$58,2,FALSE) ) )","v":""},null,null,null,null,{"$f":"IF(TRIM(DA72)=\"\", \"\", IF(VLOOKUP(DA72,'Footnotes list'!$D$9:$E$58,2,FALSE)=0,\"\",VLOOKUP(DA72,'Footnotes list'!$D$9:$E$58,2,FALSE) ) )","v":""},null,null,null,null,{"$f":"IF(TRIM(DF72)=\"\", \"\", IF(VLOOKUP(DF72,'Footnotes list'!$D$9:$E$58,2,FALSE)=0,\"\",VLOOKUP(DF72,'Footnotes list'!$D$9:$E$58,2,FALSE) ) )","v":""},null,null,null,null,{"$f":"IF(TRIM(DK72)=\"\", \"\", IF(VLOOKUP(DK72,'Footnotes list'!$D$9:$E$58,2,FALSE)=0,\"\",VLOOKUP(DK72,'Footnotes list'!$D$9:$E$58,2,FALSE) ) )","v":""},null,null,null,null,{"$f":"IF(TRIM(DP72)=\"\", \"\", IF(VLOOKUP(DP72,'Footnotes list'!$D$9:$E$58,2,FALSE)=0,\"\",VLOOKUP(DP72,'Footnotes list'!$D$9:$E$58,2,FALSE) ) )","v":""},null,null,null,null,{"$f":"IF(TRIM(DU72)=\"\", \"\", IF(VLOOKUP(DU72,'Footnotes list'!$D$9:$E$58,2,FALSE)=0,\"\",VLOOKUP(DU72,'Footnotes list'!$D$9:$E$58,2,FALSE) ) )","v":""},null,null,null,null,{"$f":"IF(TRIM(DZ72)=\"\", \"\", IF(VLOOKUP(DZ72,'Footnotes list'!$D$9:$E$58,2,FALSE)=0,\"\",VLOOKUP(DZ72,'Footnotes list'!$D$9:$E$58,2,FALSE) ) )","v":""},null,null,null,null,{"$f":"IF(TRIM(EE72)=\"\", \"\", IF(VLOOKUP(EE72,'Footnotes list'!$D$9:$E$58,2,FALSE)=0,\"\",VLOOKUP(EE72,'Footnotes list'!$D$9:$E$58,2,FALSE) ) )","v":""},null,null,null,null,{"$f":"IF(TRIM(EJ72)=\"\", \"\", IF(VLOOKUP(EJ72,'Footnotes list'!$D$9:$E$58,2,FALSE)=0,\"\",VLOOKUP(EJ72,'Footnotes list'!$D$9:$E$58,2,FALSE) ) )","v":""},null,null,null,null,{"$f":"IF(TRIM(EO72)=\"\", \"\", IF(VLOOKUP(EO72,'Footnotes list'!$D$9:$E$58,2,FALSE)=0,\"\",VLOOKUP(EO72,'Footnotes list'!$D$9:$E$58,2,FALSE) ) )","v":""},null,null,null,null,{"$f":"IF(TRIM(ET72)=\"\", \"\", IF(VLOOKUP(ET72,'Footnotes list'!$D$9:$E$58,2,FALSE)=0,\"\",VLOOKUP(ET72,'Footnotes list'!$D$9:$E$58,2,FALSE) ) )","v":""},null,null,null,null,{"$f":"IF(TRIM(EY72)=\"\", \"\", IF(VLOOKUP(EY72,'Footnotes list'!$D$9:$E$58,2,FALSE)=0,\"\",VLOOKUP(EY72,'Footnotes list'!$D$9:$E$58,2,FALSE) ) )","v":""}]
[null,null,"C21","NMKT","non-market activities",null,null,null,null,null,{"$f":"IF(TRIM(J73)=\"\", \"\", IF(VLOOKUP(J73,'Footnotes list'!$D$9:$E$58,2,FALSE)=0,\"\",VLOOKUP(J73,'Footnotes list'!$D$9:$E$58,2,FALSE) ) )","v":""},null,null,null,null,{"$f":"IF(TRIM(O73)=\"\", \"\", IF(VLOOKUP(O73,'Footnotes list'!$D$9:$E$58,2,FALSE)=0,\"\",VLOOKUP(O73,'Footnotes list'!$D$9:$E$58,2,FALSE) ) )","v":""},null,null,null,null,{"$f":"IF(TRIM(T73)=\"\", \"\", IF(VLOOKUP(T73,'Footnotes list'!$D$9:$E$58,2,FALSE)=0,\"\",VLOOKUP(T73,'Footnotes list'!$D$9:$E$58,2,FALSE) ) )","v":""},null,null,null,null,{"$f":"IF(TRIM(Y73)=\"\", \"\", IF(VLOOKUP(Y73,'Footnotes list'!$D$9:$E$58,2,FALSE)=0,\"\",VLOOKUP(Y73,'Footnotes list'!$D$9:$E$58,2,FALSE) ) )","v":""},null,null,null,null,{"$f":"IF(TRIM(AD73)=\"\", \"\", IF(VLOOKUP(AD73,'Footnotes list'!$D$9:$E$58,2,FALSE)=0,\"\",VLOOKUP(AD73,'Footnotes list'!$D$9:$E$58,2,FALSE) ) )","v":""},null,null,null,null,{"$f":"IF(TRIM(AI73)=\"\", \"\", IF(VLOOKUP(AI73,'Footnotes list'!$D$9:$E$58,2,FALSE)=0,\"\",VLOOKUP(AI73,'Footnotes list'!$D$9:$E$58,2,FALSE) ) )","v":""},null,null,null,null,{"$f":"IF(TRIM(AN73)=\"\", \"\", IF(VLOOKUP(AN73,'Footnotes list'!$D$9:$E$58,2,FALSE)=0,\"\",VLOOKUP(AN73,'Footnotes list'!$D$9:$E$58,2,FALSE) ) )","v":""},null,null,null,null,{"$f":"IF(TRIM(AS73)=\"\", \"\", IF(VLOOKUP(AS73,'Footnotes list'!$D$9:$E$58,2,FALSE)=0,\"\",VLOOKUP(AS73,'Footnotes list'!$D$9:$E$58,2,FALSE) ) )","v":""},null,null,null,null,{"$f":"IF(TRIM(AX73)=\"\", \"\", IF(VLOOKUP(AX73,'Footnotes list'!$D$9:$E$58,2,FALSE)=0,\"\",VLOOKUP(AX73,'Footnotes list'!$D$9:$E$58,2,FALSE) ) )","v":""},null,null,null,null,{"$f":"IF(TRIM(BC73)=\"\", \"\", IF(VLOOKUP(BC73,'Footnotes list'!$D$9:$E$58,2,FALSE)=0,\"\",VLOOKUP(BC73,'Footnotes list'!$D$9:$E$58,2,FALSE) ) )","v":""},null,null,null,null,{"$f":"IF(TRIM(BH73)=\"\", \"\", IF(VLOOKUP(BH73,'Footnotes list'!$D$9:$E$58,2,FALSE)=0,\"\",VLOOKUP(BH73,'Footnotes list'!$D$9:$E$58,2,FALSE) ) )","v":""},null,null,null,null,{"$f":"IF(TRIM(BM73)=\"\", \"\", IF(VLOOKUP(BM73,'Footnotes list'!$D$9:$E$58,2,FALSE)=0,\"\",VLOOKUP(BM73,'Footnotes list'!$D$9:$E$58,2,FALSE) ) )","v":""},null,null,null,null,{"$f":"IF(TRIM(BR73)=\"\", \"\", IF(VLOOKUP(BR73,'Footnotes list'!$D$9:$E$58,2,FALSE)=0,\"\",VLOOKUP(BR73,'Footnotes list'!$D$9:$E$58,2,FALSE) ) )","v":""},null,null,null,null,{"$f":"IF(TRIM(BW73)=\"\", \"\", IF(VLOOKUP(BW73,'Footnotes list'!$D$9:$E$58,2,FALSE)=0,\"\",VLOOKUP(BW73,'Footnotes list'!$D$9:$E$58,2,FALSE) ) )","v":""},null,null,null,null,{"$f":"IF(TRIM(CB73)=\"\", \"\", IF(VLOOKUP(CB73,'Footnotes list'!$D$9:$E$58,2,FALSE)=0,\"\",VLOOKUP(CB73,'Footnotes list'!$D$9:$E$58,2,FALSE) ) )","v":""},null,null,null,null,{"$f":"IF(TRIM(CG73)=\"\", \"\", IF(VLOOKUP(CG73,'Footnotes list'!$D$9:$E$58,2,FALSE)=0,\"\",VLOOKUP(CG73,'Footnotes list'!$D$9:$E$58,2,FALSE) ) )","v":""},null,null,null,null,{"$f":"IF(TRIM(CL73)=\"\", \"\", IF(VLOOKUP(CL73,'Footnotes list'!$D$9:$E$58,2,FALSE)=0,\"\",VLOOKUP(CL73,'Footnotes list'!$D$9:$E$58,2,FALSE) ) )","v":""},null,null,null,null,{"$f":"IF(TRIM(CQ73)=\"\", \"\", IF(VLOOKUP(CQ73,'Footnotes list'!$D$9:$E$58,2,FALSE)=0,\"\",VLOOKUP(CQ73,'Footnotes list'!$D$9:$E$58,2,FALSE) ) )","v":""},null,null,null,null,{"$f":"IF(TRIM(CV73)=\"\", \"\", IF(VLOOKUP(CV73,'Footnotes list'!$D$9:$E$58,2,FALSE)=0,\"\",VLOOKUP(CV73,'Footnotes list'!$D$9:$E$58,2,FALSE) ) )","v":""},null,null,null,null,{"$f":"IF(TRIM(DA73)=\"\", \"\", IF(VLOOKUP(DA73,'Footnotes list'!$D$9:$E$58,2,FALSE)=0,\"\",VLOOKUP(DA73,'Footnotes list'!$D$9:$E$58,2,FALSE) ) )","v":""},null,null,null,null,{"$f":"IF(TRIM(DF73)=\"\", \"\", IF(VLOOKUP(DF73,'Footnotes list'!$D$9:$E$58,2,FALSE)=0,\"\",VLOOKUP(DF73,'Footnotes list'!$D$9:$E$58,2,FALSE) ) )","v":""},null,null,null,null,{"$f":"IF(TRIM(DK73)=\"\", \"\", IF(VLOOKUP(DK73,'Footnotes list'!$D$9:$E$58,2,FALSE)=0,\"\",VLOOKUP(DK73,'Footnotes list'!$D$9:$E$58,2,FALSE) ) )","v":""},null,null,null,null,{"$f":"IF(TRIM(DP73)=\"\", \"\", IF(VLOOKUP(DP73,'Footnotes list'!$D$9:$E$58,2,FALSE)=0,\"\",VLOOKUP(DP73,'Footnotes list'!$D$9:$E$58,2,FALSE) ) )","v":""},null,null,null,null,{"$f":"IF(TRIM(DU73)=\"\", \"\", IF(VLOOKUP(DU73,'Footnotes list'!$D$9:$E$58,2,FALSE)=0,\"\",VLOOKUP(DU73,'Footnotes list'!$D$9:$E$58,2,FALSE) ) )","v":""},null,null,null,null,{"$f":"IF(TRIM(DZ73)=\"\", \"\", IF(VLOOKUP(DZ73,'Footnotes list'!$D$9:$E$58,2,FALSE)=0,\"\",VLOOKUP(DZ73,'Footnotes list'!$D$9:$E$58,2,FALSE) ) )","v":""},null,null,null,null,{"$f":"IF(TRIM(EE73)=\"\", \"\", IF(VLOOKUP(EE73,'Footnotes list'!$D$9:$E$58,2,FALSE)=0,\"\",VLOOKUP(EE73,'Footnotes list'!$D$9:$E$58,2,FALSE) ) )","v":""},null,null,null,null,{"$f":"IF(TRIM(EJ73)=\"\", \"\", IF(VLOOKUP(EJ73,'Footnotes list'!$D$9:$E$58,2,FALSE)=0,\"\",VLOOKUP(EJ73,'Footnotes list'!$D$9:$E$58,2,FALSE) ) )","v":""},null,null,null,null,{"$f":"IF(TRIM(EO73)=\"\", \"\", IF(VLOOKUP(EO73,'Footnotes list'!$D$9:$E$58,2,FALSE)=0,\"\",VLOOKUP(EO73,'Footnotes list'!$D$9:$E$58,2,FALSE) ) )","v":""},null,null,null,null,{"$f":"IF(TRIM(ET73)=\"\", \"\", IF(VLOOKUP(ET73,'Footnotes list'!$D$9:$E$58,2,FALSE)=0,\"\",VLOOKUP(ET73,'Footnotes list'!$D$9:$E$58,2,FALSE) ) )","v":""},null,null,null,null,{"$f":"IF(TRIM(EY73)=\"\", \"\", IF(VLOOKUP(EY73,'Footnotes list'!$D$9:$E$58,2,FALSE)=0,\"\",VLOOKUP(EY73,'Footnotes list'!$D$9:$E$58,2,FALSE) ) )","v":""}]
[null,null,"C21","OWN_USE","activities for own final use",null,null,null,null,null,{"$f":"IF(TRIM(J74)=\"\", \"\", IF(VLOOKUP(J74,'Footnotes list'!$D$9:$E$58,2,FALSE)=0,\"\",VLOOKUP(J74,'Footnotes list'!$D$9:$E$58,2,FALSE) ) )","v":""},null,null,null,null,{"$f":"IF(TRIM(O74)=\"\", \"\", IF(VLOOKUP(O74,'Footnotes list'!$D$9:$E$58,2,FALSE)=0,\"\",VLOOKUP(O74,'Footnotes list'!$D$9:$E$58,2,FALSE) ) )","v":""},null,null,null,null,{"$f":"IF(TRIM(T74)=\"\", \"\", IF(VLOOKUP(T74,'Footnotes list'!$D$9:$E$58,2,FALSE)=0,\"\",VLOOKUP(T74,'Footnotes list'!$D$9:$E$58,2,FALSE) ) )","v":""},null,null,null,null,{"$f":"IF(TRIM(Y74)=\"\", \"\", IF(VLOOKUP(Y74,'Footnotes list'!$D$9:$E$58,2,FALSE)=0,\"\",VLOOKUP(Y74,'Footnotes list'!$D$9:$E$58,2,FALSE) ) )","v":""},null,null,null,null,{"$f":"IF(TRIM(AD74)=\"\", \"\", IF(VLOOKUP(AD74,'Footnotes list'!$D$9:$E$58,2,FALSE)=0,\"\",VLOOKUP(AD74,'Footnotes list'!$D$9:$E$58,2,FALSE) ) )","v":""},null,null,null,null,{"$f":"IF(TRIM(AI74)=\"\", \"\", IF(VLOOKUP(AI74,'Footnotes list'!$D$9:$E$58,2,FALSE)=0,\"\",VLOOKUP(AI74,'Footnotes list'!$D$9:$E$58,2,FALSE) ) )","v":""},null,null,null,null,{"$f":"IF(TRIM(AN74)=\"\", \"\", IF(VLOOKUP(AN74,'Footnotes list'!$D$9:$E$58,2,FALSE)=0,\"\",VLOOKUP(AN74,'Footnotes list'!$D$9:$E$58,2,FALSE) ) )","v":""},null,null,null,null,{"$f":"IF(TRIM(AS74)=\"\", \"\", IF(VLOOKUP(AS74,'Footnotes list'!$D$9:$E$58,2,FALSE)=0,\"\",VLOOKUP(AS74,'Footnotes list'!$D$9:$E$58,2,FALSE) ) )","v":""},null,null,null,null,{"$f":"IF(TRIM(AX74)=\"\", \"\", IF(VLOOKUP(AX74,'Footnotes list'!$D$9:$E$58,2,FALSE)=0,\"\",VLOOKUP(AX74,'Footnotes list'!$D$9:$E$58,2,FALSE) ) )","v":""},null,null,null,null,{"$f":"IF(TRIM(BC74)=\"\", \"\", IF(VLOOKUP(BC74,'Footnotes list'!$D$9:$E$58,2,FALSE)=0,\"\",VLOOKUP(BC74,'Footnotes list'!$D$9:$E$58,2,FALSE) ) )","v":""},null,null,null,null,{"$f":"IF(TRIM(BH74)=\"\", \"\", IF(VLOOKUP(BH74,'Footnotes list'!$D$9:$E$58,2,FALSE)=0,\"\",VLOOKUP(BH74,'Footnotes list'!$D$9:$E$58,2,FALSE) ) )","v":""},null,null,null,null,{"$f":"IF(TRIM(BM74)=\"\", \"\", IF(VLOOKUP(BM74,'Footnotes list'!$D$9:$E$58,2,FALSE)=0,\"\",VLOOKUP(BM74,'Footnotes list'!$D$9:$E$58,2,FALSE) ) )","v":""},null,null,null,null,{"$f":"IF(TRIM(BR74)=\"\", \"\", IF(VLOOKUP(BR74,'Footnotes list'!$D$9:$E$58,2,FALSE)=0,\"\",VLOOKUP(BR74,'Footnotes list'!$D$9:$E$58,2,FALSE) ) )","v":""},null,null,null,null,{"$f":"IF(TRIM(BW74)=\"\", \"\", IF(VLOOKUP(BW74,'Footnotes list'!$D$9:$E$58,2,FALSE)=0,\"\",VLOOKUP(BW74,'Footnotes list'!$D$9:$E$58,2,FALSE) ) )","v":""},null,null,null,null,{"$f":"IF(TRIM(CB74)=\"\", \"\", IF(VLOOKUP(CB74,'Footnotes list'!$D$9:$E$58,2,FALSE)=0,\"\",VLOOKUP(CB74,'Footnotes list'!$D$9:$E$58,2,FALSE) ) )","v":""},null,null,null,null,{"$f":"IF(TRIM(CG74)=\"\", \"\", IF(VLOOKUP(CG74,'Footnotes list'!$D$9:$E$58,2,FALSE)=0,\"\",VLOOKUP(CG74,'Footnotes list'!$D$9:$E$58,2,FALSE) ) )","v":""},null,null,null,null,{"$f":"IF(TRIM(CL74)=\"\", \"\", IF(VLOOKUP(CL74,'Footnotes list'!$D$9:$E$58,2,FALSE)=0,\"\",VLOOKUP(CL74,'Footnotes list'!$D$9:$E$58,2,FALSE) ) )","v":""},null,null,null,null,{"$f":"IF(TRIM(CQ74)=\"\", \"\", IF(VLOOKUP(CQ74,'Footnotes list'!$D$9:$E$58,2,FALSE)=0,\"\",VLOOKUP(CQ74,'Footnotes list'!$D$9:$E$58,2,FALSE) ) )","v":""},null,null,null,null,{"$f":"IF(TRIM(CV74)=\"\", \"\", IF(VLOOKUP(CV74,'Footnotes list'!$D$9:$E$58,2,FALSE)=0,\"\",VLOOKUP(CV74,'Footnotes list'!$D$9:$E$58,2,FALSE) ) )","v":""},null,null,null,null,{"$f":"IF(TRIM(DA74)=\"\", \"\", IF(VLOOKUP(DA74,'Footnotes list'!$D$9:$E$58,2,FALSE)=0,\"\",VLOOKUP(DA74,'Footnotes list'!$D$9:$E$58,2,FALSE) ) )","v":""},null,null,null,null,{"$f":"IF(TRIM(DF74)=\"\", \"\", IF(VLOOKUP(DF74,'Footnotes list'!$D$9:$E$58,2,FALSE)=0,\"\",VLOOKUP(DF74,'Footnotes list'!$D$9:$E$58,2,FALSE) ) )","v":""},null,null,null,null,{"$f":"IF(TRIM(DK74)=\"\", \"\", IF(VLOOKUP(DK74,'Footnotes list'!$D$9:$E$58,2,FALSE)=0,\"\",VLOOKUP(DK74,'Footnotes list'!$D$9:$E$58,2,FALSE) ) )","v":""},null,null,null,null,{"$f":"IF(TRIM(DP74)=\"\", \"\", IF(VLOOKUP(DP74,'Footnotes list'!$D$9:$E$58,2,FALSE)=0,\"\",VLOOKUP(DP74,'Footnotes list'!$D$9:$E$58,2,FALSE) ) )","v":""},null,null,null,null,{"$f":"IF(TRIM(DU74)=\"\", \"\", IF(VLOOKUP(DU74,'Footnotes list'!$D$9:$E$58,2,FALSE)=0,\"\",VLOOKUP(DU74,'Footnotes list'!$D$9:$E$58,2,FALSE) ) )","v":""},null,null,null,null,{"$f":"IF(TRIM(DZ74)=\"\", \"\", IF(VLOOKUP(DZ74,'Footnotes list'!$D$9:$E$58,2,FALSE)=0,\"\",VLOOKUP(DZ74,'Footnotes list'!$D$9:$E$58,2,FALSE) ) )","v":""},null,null,null,null,{"$f":"IF(TRIM(EE74)=\"\", \"\", IF(VLOOKUP(EE74,'Footnotes list'!$D$9:$E$58,2,FALSE)=0,\"\",VLOOKUP(EE74,'Footnotes list'!$D$9:$E$58,2,FALSE) ) )","v":""},null,null,null,null,{"$f":"IF(TRIM(EJ74)=\"\", \"\", IF(VLOOKUP(EJ74,'Footnotes list'!$D$9:$E$58,2,FALSE)=0,\"\",VLOOKUP(EJ74,'Footnotes list'!$D$9:$E$58,2,FALSE) ) )","v":""},null,null,null,null,{"$f":"IF(TRIM(EO74)=\"\", \"\", IF(VLOOKUP(EO74,'Footnotes list'!$D$9:$E$58,2,FALSE)=0,\"\",VLOOKUP(EO74,'Footnotes list'!$D$9:$E$58,2,FALSE) ) )","v":""},null,null,null,null,{"$f":"IF(TRIM(ET74)=\"\", \"\", IF(VLOOKUP(ET74,'Footnotes list'!$D$9:$E$58,2,FALSE)=0,\"\",VLOOKUP(ET74,'Footnotes list'!$D$9:$E$58,2,FALSE) ) )","v":""},null,null,null,null,{"$f":"IF(TRIM(EY74)=\"\", \"\", IF(VLOOKUP(EY74,'Footnotes list'!$D$9:$E$58,2,FALSE)=0,\"\",VLOOKUP(EY74,'Footnotes list'!$D$9:$E$58,2,FALSE) ) )","v":""}]
[null,null,"C21","MKT","market activities, including:",null,null,null,null,null,{"$f":"IF(TRIM(J75)=\"\", \"\", IF(VLOOKUP(J75,'Footnotes list'!$D$9:$E$58,2,FALSE)=0,\"\",VLOOKUP(J75,'Footnotes list'!$D$9:$E$58,2,FALSE) ) )","v":""},null,null,null,null,{"$f":"IF(TRIM(O75)=\"\", \"\", IF(VLOOKUP(O75,'Footnotes list'!$D$9:$E$58,2,FALSE)=0,\"\",VLOOKUP(O75,'Footnotes list'!$D$9:$E$58,2,FALSE) ) )","v":""},null,null,null,null,{"$f":"IF(TRIM(T75)=\"\", \"\", IF(VLOOKUP(T75,'Footnotes list'!$D$9:$E$58,2,FALSE)=0,\"\",VLOOKUP(T75,'Footnotes list'!$D$9:$E$58,2,FALSE) ) )","v":""},null,null,null,null,{"$f":"IF(TRIM(Y75)=\"\", \"\", IF(VLOOKUP(Y75,'Footnotes list'!$D$9:$E$58,2,FALSE)=0,\"\",VLOOKUP(Y75,'Footnotes list'!$D$9:$E$58,2,FALSE) ) )","v":""},null,null,null,null,{"$f":"IF(TRIM(AD75)=\"\", \"\", IF(VLOOKUP(AD75,'Footnotes list'!$D$9:$E$58,2,FALSE)=0,\"\",VLOOKUP(AD75,'Footnotes list'!$D$9:$E$58,2,FALSE) ) )","v":""},null,null,null,null,{"$f":"IF(TRIM(AI75)=\"\", \"\", IF(VLOOKUP(AI75,'Footnotes list'!$D$9:$E$58,2,FALSE)=0,\"\",VLOOKUP(AI75,'Footnotes list'!$D$9:$E$58,2,FALSE) ) )","v":""},null,null,null,null,{"$f":"IF(TRIM(AN75)=\"\", \"\", IF(VLOOKUP(AN75,'Footnotes list'!$D$9:$E$58,2,FALSE)=0,\"\",VLOOKUP(AN75,'Footnotes list'!$D$9:$E$58,2,FALSE) ) )","v":""},null,null,null,null,{"$f":"IF(TRIM(AS75)=\"\", \"\", IF(VLOOKUP(AS75,'Footnotes list'!$D$9:$E$58,2,FALSE)=0,\"\",VLOOKUP(AS75,'Footnotes list'!$D$9:$E$58,2,FALSE) ) )","v":""},null,null,null,null,{"$f":"IF(TRIM(AX75)=\"\", \"\", IF(VLOOKUP(AX75,'Footnotes list'!$D$9:$E$58,2,FALSE)=0,\"\",VLOOKUP(AX75,'Footnotes list'!$D$9:$E$58,2,FALSE) ) )","v":""},null,null,null,null,{"$f":"IF(TRIM(BC75)=\"\", \"\", IF(VLOOKUP(BC75,'Footnotes list'!$D$9:$E$58,2,FALSE)=0,\"\",VLOOKUP(BC75,'Footnotes list'!$D$9:$E$58,2,FALSE) ) )","v":""},null,null,null,null,{"$f":"IF(TRIM(BH75)=\"\", \"\", IF(VLOOKUP(BH75,'Footnotes list'!$D$9:$E$58,2,FALSE)=0,\"\",VLOOKUP(BH75,'Footnotes list'!$D$9:$E$58,2,FALSE) ) )","v":""},null,null,null,null,{"$f":"IF(TRIM(BM75)=\"\", \"\", IF(VLOOKUP(BM75,'Footnotes list'!$D$9:$E$58,2,FALSE)=0,\"\",VLOOKUP(BM75,'Footnotes list'!$D$9:$E$58,2,FALSE) ) )","v":""},null,null,null,null,{"$f":"IF(TRIM(BR75)=\"\", \"\", IF(VLOOKUP(BR75,'Footnotes list'!$D$9:$E$58,2,FALSE)=0,\"\",VLOOKUP(BR75,'Footnotes list'!$D$9:$E$58,2,FALSE) ) )","v":""},null,null,null,null,{"$f":"IF(TRIM(BW75)=\"\", \"\", IF(VLOOKUP(BW75,'Footnotes list'!$D$9:$E$58,2,FALSE)=0,\"\",VLOOKUP(BW75,'Footnotes list'!$D$9:$E$58,2,FALSE) ) )","v":""},null,null,null,null,{"$f":"IF(TRIM(CB75)=\"\", \"\", IF(VLOOKUP(CB75,'Footnotes list'!$D$9:$E$58,2,FALSE)=0,\"\",VLOOKUP(CB75,'Footnotes list'!$D$9:$E$58,2,FALSE) ) )","v":""},null,null,null,null,{"$f":"IF(TRIM(CG75)=\"\", \"\", IF(VLOOKUP(CG75,'Footnotes list'!$D$9:$E$58,2,FALSE)=0,\"\",VLOOKUP(CG75,'Footnotes list'!$D$9:$E$58,2,FALSE) ) )","v":""},null,null,null,null,{"$f":"IF(TRIM(CL75)=\"\", \"\", IF(VLOOKUP(CL75,'Footnotes list'!$D$9:$E$58,2,FALSE)=0,\"\",VLOOKUP(CL75,'Footnotes list'!$D$9:$E$58,2,FALSE) ) )","v":""},null,null,null,null,{"$f":"IF(TRIM(CQ75)=\"\", \"\", IF(VLOOKUP(CQ75,'Footnotes list'!$D$9:$E$58,2,FALSE)=0,\"\",VLOOKUP(CQ75,'Footnotes list'!$D$9:$E$58,2,FALSE) ) )","v":""},null,null,null,null,{"$f":"IF(TRIM(CV75)=\"\", \"\", IF(VLOOKUP(CV75,'Footnotes list'!$D$9:$E$58,2,FALSE)=0,\"\",VLOOKUP(CV75,'Footnotes list'!$D$9:$E$58,2,FALSE) ) )","v":""},null,null,null,null,{"$f":"IF(TRIM(DA75)=\"\", \"\", IF(VLOOKUP(DA75,'Footnotes list'!$D$9:$E$58,2,FALSE)=0,\"\",VLOOKUP(DA75,'Footnotes list'!$D$9:$E$58,2,FALSE) ) )","v":""},null,null,null,null,{"$f":"IF(TRIM(DF75)=\"\", \"\", IF(VLOOKUP(DF75,'Footnotes list'!$D$9:$E$58,2,FALSE)=0,\"\",VLOOKUP(DF75,'Footnotes list'!$D$9:$E$58,2,FALSE) ) )","v":""},null,null,null,null,{"$f":"IF(TRIM(DK75)=\"\", \"\", IF(VLOOKUP(DK75,'Footnotes list'!$D$9:$E$58,2,FALSE)=0,\"\",VLOOKUP(DK75,'Footnotes list'!$D$9:$E$58,2,FALSE) ) )","v":""},null,null,null,null,{"$f":"IF(TRIM(DP75)=\"\", \"\", IF(VLOOKUP(DP75,'Footnotes list'!$D$9:$E$58,2,FALSE)=0,\"\",VLOOKUP(DP75,'Footnotes list'!$D$9:$E$58,2,FALSE) ) )","v":""},null,null,null,null,{"$f":"IF(TRIM(DU75)=\"\", \"\", IF(VLOOKUP(DU75,'Footnotes list'!$D$9:$E$58,2,FALSE)=0,\"\",VLOOKUP(DU75,'Footnotes list'!$D$9:$E$58,2,FALSE) ) )","v":""},null,null,null,null,{"$f":"IF(TRIM(DZ75)=\"\", \"\", IF(VLOOKUP(DZ75,'Footnotes list'!$D$9:$E$58,2,FALSE)=0,\"\",VLOOKUP(DZ75,'Footnotes list'!$D$9:$E$58,2,FALSE) ) )","v":""},null,null,null,null,{"$f":"IF(TRIM(EE75)=\"\", \"\", IF(VLOOKUP(EE75,'Footnotes list'!$D$9:$E$58,2,FALSE)=0,\"\",VLOOKUP(EE75,'Footnotes list'!$D$9:$E$58,2,FALSE) ) )","v":""},null,null,null,null,{"$f":"IF(TRIM(EJ75)=\"\", \"\", IF(VLOOKUP(EJ75,'Footnotes list'!$D$9:$E$58,2,FALSE)=0,\"\",VLOOKUP(EJ75,'Footnotes list'!$D$9:$E$58,2,FALSE) ) )","v":""},null,null,null,null,{"$f":"IF(TRIM(EO75)=\"\", \"\", IF(VLOOKUP(EO75,'Footnotes list'!$D$9:$E$58,2,FALSE)=0,\"\",VLOOKUP(EO75,'Footnotes list'!$D$9:$E$58,2,FALSE) ) )","v":""},null,null,null,null,{"$f":"IF(TRIM(ET75)=\"\", \"\", IF(VLOOKUP(ET75,'Footnotes list'!$D$9:$E$58,2,FALSE)=0,\"\",VLOOKUP(ET75,'Footnotes list'!$D$9:$E$58,2,FALSE) ) )","v":""},null,null,null,null,{"$f":"IF(TRIM(EY75)=\"\", \"\", IF(VLOOKUP(EY75,'Footnotes list'!$D$9:$E$58,2,FALSE)=0,\"\",VLOOKUP(EY75,'Footnotes list'!$D$9:$E$58,2,FALSE) ) )","v":""}]
[null,null,"C21","ES_CS","environmental specific services",null,null,null,null,null,{"$f":"IF(TRIM(J76)=\"\", \"\", IF(VLOOKUP(J76,'Footnotes list'!$D$9:$E$58,2,FALSE)=0,\"\",VLOOKUP(J76,'Footnotes list'!$D$9:$E$58,2,FALSE) ) )","v":""},null,null,null,null,{"$f":"IF(TRIM(O76)=\"\", \"\", IF(VLOOKUP(O76,'Footnotes list'!$D$9:$E$58,2,FALSE)=0,\"\",VLOOKUP(O76,'Footnotes list'!$D$9:$E$58,2,FALSE) ) )","v":""},null,null,null,null,{"$f":"IF(TRIM(T76)=\"\", \"\", IF(VLOOKUP(T76,'Footnotes list'!$D$9:$E$58,2,FALSE)=0,\"\",VLOOKUP(T76,'Footnotes list'!$D$9:$E$58,2,FALSE) ) )","v":""},null,null,null,null,{"$f":"IF(TRIM(Y76)=\"\", \"\", IF(VLOOKUP(Y76,'Footnotes list'!$D$9:$E$58,2,FALSE)=0,\"\",VLOOKUP(Y76,'Footnotes list'!$D$9:$E$58,2,FALSE) ) )","v":""},null,null,null,null,{"$f":"IF(TRIM(AD76)=\"\", \"\", IF(VLOOKUP(AD76,'Footnotes list'!$D$9:$E$58,2,FALSE)=0,\"\",VLOOKUP(AD76,'Footnotes list'!$D$9:$E$58,2,FALSE) ) )","v":""},null,null,null,null,{"$f":"IF(TRIM(AI76)=\"\", \"\", IF(VLOOKUP(AI76,'Footnotes list'!$D$9:$E$58,2,FALSE)=0,\"\",VLOOKUP(AI76,'Footnotes list'!$D$9:$E$58,2,FALSE) ) )","v":""},null,null,null,null,{"$f":"IF(TRIM(AN76)=\"\", \"\", IF(VLOOKUP(AN76,'Footnotes list'!$D$9:$E$58,2,FALSE)=0,\"\",VLOOKUP(AN76,'Footnotes list'!$D$9:$E$58,2,FALSE) ) )","v":""},null,null,null,null,{"$f":"IF(TRIM(AS76)=\"\", \"\", IF(VLOOKUP(AS76,'Footnotes list'!$D$9:$E$58,2,FALSE)=0,\"\",VLOOKUP(AS76,'Footnotes list'!$D$9:$E$58,2,FALSE) ) )","v":""},null,null,null,null,{"$f":"IF(TRIM(AX76)=\"\", \"\", IF(VLOOKUP(AX76,'Footnotes list'!$D$9:$E$58,2,FALSE)=0,\"\",VLOOKUP(AX76,'Footnotes list'!$D$9:$E$58,2,FALSE) ) )","v":""},null,null,null,null,{"$f":"IF(TRIM(BC76)=\"\", \"\", IF(VLOOKUP(BC76,'Footnotes list'!$D$9:$E$58,2,FALSE)=0,\"\",VLOOKUP(BC76,'Footnotes list'!$D$9:$E$58,2,FALSE) ) )","v":""},null,null,null,null,{"$f":"IF(TRIM(BH76)=\"\", \"\", IF(VLOOKUP(BH76,'Footnotes list'!$D$9:$E$58,2,FALSE)=0,\"\",VLOOKUP(BH76,'Footnotes list'!$D$9:$E$58,2,FALSE) ) )","v":""},null,null,null,null,{"$f":"IF(TRIM(BM76)=\"\", \"\", IF(VLOOKUP(BM76,'Footnotes list'!$D$9:$E$58,2,FALSE)=0,\"\",VLOOKUP(BM76,'Footnotes list'!$D$9:$E$58,2,FALSE) ) )","v":""},null,null,null,null,{"$f":"IF(TRIM(BR76)=\"\", \"\", IF(VLOOKUP(BR76,'Footnotes list'!$D$9:$E$58,2,FALSE)=0,\"\",VLOOKUP(BR76,'Footnotes list'!$D$9:$E$58,2,FALSE) ) )","v":""},null,null,null,null,{"$f":"IF(TRIM(BW76)=\"\", \"\", IF(VLOOKUP(BW76,'Footnotes list'!$D$9:$E$58,2,FALSE)=0,\"\",VLOOKUP(BW76,'Footnotes list'!$D$9:$E$58,2,FALSE) ) )","v":""},null,null,null,null,{"$f":"IF(TRIM(CB76)=\"\", \"\", IF(VLOOKUP(CB76,'Footnotes list'!$D$9:$E$58,2,FALSE)=0,\"\",VLOOKUP(CB76,'Footnotes list'!$D$9:$E$58,2,FALSE) ) )","v":""},null,null,null,null,{"$f":"IF(TRIM(CG76)=\"\", \"\", IF(VLOOKUP(CG76,'Footnotes list'!$D$9:$E$58,2,FALSE)=0,\"\",VLOOKUP(CG76,'Footnotes list'!$D$9:$E$58,2,FALSE) ) )","v":""},null,null,null,null,{"$f":"IF(TRIM(CL76)=\"\", \"\", IF(VLOOKUP(CL76,'Footnotes list'!$D$9:$E$58,2,FALSE)=0,\"\",VLOOKUP(CL76,'Footnotes list'!$D$9:$E$58,2,FALSE) ) )","v":""},null,null,null,null,{"$f":"IF(TRIM(CQ76)=\"\", \"\", IF(VLOOKUP(CQ76,'Footnotes list'!$D$9:$E$58,2,FALSE)=0,\"\",VLOOKUP(CQ76,'Footnotes list'!$D$9:$E$58,2,FALSE) ) )","v":""},null,null,null,null,{"$f":"IF(TRIM(CV76)=\"\", \"\", IF(VLOOKUP(CV76,'Footnotes list'!$D$9:$E$58,2,FALSE)=0,\"\",VLOOKUP(CV76,'Footnotes list'!$D$9:$E$58,2,FALSE) ) )","v":""},null,null,null,null,{"$f":"IF(TRIM(DA76)=\"\", \"\", IF(VLOOKUP(DA76,'Footnotes list'!$D$9:$E$58,2,FALSE)=0,\"\",VLOOKUP(DA76,'Footnotes list'!$D$9:$E$58,2,FALSE) ) )","v":""},null,null,null,null,{"$f":"IF(TRIM(DF76)=\"\", \"\", IF(VLOOKUP(DF76,'Footnotes list'!$D$9:$E$58,2,FALSE)=0,\"\",VLOOKUP(DF76,'Footnotes list'!$D$9:$E$58,2,FALSE) ) )","v":""},null,null,null,null,{"$f":"IF(TRIM(DK76)=\"\", \"\", IF(VLOOKUP(DK76,'Footnotes list'!$D$9:$E$58,2,FALSE)=0,\"\",VLOOKUP(DK76,'Footnotes list'!$D$9:$E$58,2,FALSE) ) )","v":""},null,null,null,null,{"$f":"IF(TRIM(DP76)=\"\", \"\", IF(VLOOKUP(DP76,'Footnotes list'!$D$9:$E$58,2,FALSE)=0,\"\",VLOOKUP(DP76,'Footnotes list'!$D$9:$E$58,2,FALSE) ) )","v":""},null,null,null,null,{"$f":"IF(TRIM(DU76)=\"\", \"\", IF(VLOOKUP(DU76,'Footnotes list'!$D$9:$E$58,2,FALSE)=0,\"\",VLOOKUP(DU76,'Footnotes list'!$D$9:$E$58,2,FALSE) ) )","v":""},null,null,null,null,{"$f":"IF(TRIM(DZ76)=\"\", \"\", IF(VLOOKUP(DZ76,'Footnotes list'!$D$9:$E$58,2,FALSE)=0,\"\",VLOOKUP(DZ76,'Footnotes list'!$D$9:$E$58,2,FALSE) ) )","v":""},null,null,null,null,{"$f":"IF(TRIM(EE76)=\"\", \"\", IF(VLOOKUP(EE76,'Footnotes list'!$D$9:$E$58,2,FALSE)=0,\"\",VLOOKUP(EE76,'Footnotes list'!$D$9:$E$58,2,FALSE) ) )","v":""},null,null,null,null,{"$f":"IF(TRIM(EJ76)=\"\", \"\", IF(VLOOKUP(EJ76,'Footnotes list'!$D$9:$E$58,2,FALSE)=0,\"\",VLOOKUP(EJ76,'Footnotes list'!$D$9:$E$58,2,FALSE) ) )","v":""},null,null,null,null,{"$f":"IF(TRIM(EO76)=\"\", \"\", IF(VLOOKUP(EO76,'Footnotes list'!$D$9:$E$58,2,FALSE)=0,\"\",VLOOKUP(EO76,'Footnotes list'!$D$9:$E$58,2,FALSE) ) )","v":""},null,null,null,null,{"$f":"IF(TRIM(ET76)=\"\", \"\", IF(VLOOKUP(ET76,'Footnotes list'!$D$9:$E$58,2,FALSE)=0,\"\",VLOOKUP(ET76,'Footnotes list'!$D$9:$E$58,2,FALSE) ) )","v":""},null,null,null,null,{"$f":"IF(TRIM(EY76)=\"\", \"\", IF(VLOOKUP(EY76,'Footnotes list'!$D$9:$E$58,2,FALSE)=0,\"\",VLOOKUP(EY76,'Footnotes list'!$D$9:$E$58,2,FALSE) ) )","v":""}]
[null,null,"C21","C_REP","cleaner and resource efficient products",null,null,null,null,null,{"$f":"IF(TRIM(J77)=\"\", \"\", IF(VLOOKUP(J77,'Footnotes list'!$D$9:$E$58,2,FALSE)=0,\"\",VLOOKUP(J77,'Footnotes list'!$D$9:$E$58,2,FALSE) ) )","v":""},null,null,null,null,{"$f":"IF(TRIM(O77)=\"\", \"\", IF(VLOOKUP(O77,'Footnotes list'!$D$9:$E$58,2,FALSE)=0,\"\",VLOOKUP(O77,'Footnotes list'!$D$9:$E$58,2,FALSE) ) )","v":""},null,null,null,null,{"$f":"IF(TRIM(T77)=\"\", \"\", IF(VLOOKUP(T77,'Footnotes list'!$D$9:$E$58,2,FALSE)=0,\"\",VLOOKUP(T77,'Footnotes list'!$D$9:$E$58,2,FALSE) ) )","v":""},null,null,null,null,{"$f":"IF(TRIM(Y77)=\"\", \"\", IF(VLOOKUP(Y77,'Footnotes list'!$D$9:$E$58,2,FALSE)=0,\"\",VLOOKUP(Y77,'Footnotes list'!$D$9:$E$58,2,FALSE) ) )","v":""},null,null,null,null,{"$f":"IF(TRIM(AD77)=\"\", \"\", IF(VLOOKUP(AD77,'Footnotes list'!$D$9:$E$58,2,FALSE)=0,\"\",VLOOKUP(AD77,'Footnotes list'!$D$9:$E$58,2,FALSE) ) )","v":""},null,null,null,null,{"$f":"IF(TRIM(AI77)=\"\", \"\", IF(VLOOKUP(AI77,'Footnotes list'!$D$9:$E$58,2,FALSE)=0,\"\",VLOOKUP(AI77,'Footnotes list'!$D$9:$E$58,2,FALSE) ) )","v":""},null,null,null,null,{"$f":"IF(TRIM(AN77)=\"\", \"\", IF(VLOOKUP(AN77,'Footnotes list'!$D$9:$E$58,2,FALSE)=0,\"\",VLOOKUP(AN77,'Footnotes list'!$D$9:$E$58,2,FALSE) ) )","v":""},null,null,null,null,{"$f":"IF(TRIM(AS77)=\"\", \"\", IF(VLOOKUP(AS77,'Footnotes list'!$D$9:$E$58,2,FALSE)=0,\"\",VLOOKUP(AS77,'Footnotes list'!$D$9:$E$58,2,FALSE) ) )","v":""},null,null,null,null,{"$f":"IF(TRIM(AX77)=\"\", \"\", IF(VLOOKUP(AX77,'Footnotes list'!$D$9:$E$58,2,FALSE)=0,\"\",VLOOKUP(AX77,'Footnotes list'!$D$9:$E$58,2,FALSE) ) )","v":""},null,null,null,null,{"$f":"IF(TRIM(BC77)=\"\", \"\", IF(VLOOKUP(BC77,'Footnotes list'!$D$9:$E$58,2,FALSE)=0,\"\",VLOOKUP(BC77,'Footnotes list'!$D$9:$E$58,2,FALSE) ) )","v":""},null,null,null,null,{"$f":"IF(TRIM(BH77)=\"\", \"\", IF(VLOOKUP(BH77,'Footnotes list'!$D$9:$E$58,2,FALSE)=0,\"\",VLOOKUP(BH77,'Footnotes list'!$D$9:$E$58,2,FALSE) ) )","v":""},null,null,null,null,{"$f":"IF(TRIM(BM77)=\"\", \"\", IF(VLOOKUP(BM77,'Footnotes list'!$D$9:$E$58,2,FALSE)=0,\"\",VLOOKUP(BM77,'Footnotes list'!$D$9:$E$58,2,FALSE) ) )","v":""},null,null,null,null,{"$f":"IF(TRIM(BR77)=\"\", \"\", IF(VLOOKUP(BR77,'Footnotes list'!$D$9:$E$58,2,FALSE)=0,\"\",VLOOKUP(BR77,'Footnotes list'!$D$9:$E$58,2,FALSE) ) )","v":""},null,null,null,null,{"$f":"IF(TRIM(BW77)=\"\", \"\", IF(VLOOKUP(BW77,'Footnotes list'!$D$9:$E$58,2,FALSE)=0,\"\",VLOOKUP(BW77,'Footnotes list'!$D$9:$E$58,2,FALSE) ) )","v":""},null,null,null,null,{"$f":"IF(TRIM(CB77)=\"\", \"\", IF(VLOOKUP(CB77,'Footnotes list'!$D$9:$E$58,2,FALSE)=0,\"\",VLOOKUP(CB77,'Footnotes list'!$D$9:$E$58,2,FALSE) ) )","v":""},null,null,null,null,{"$f":"IF(TRIM(CG77)=\"\", \"\", IF(VLOOKUP(CG77,'Footnotes list'!$D$9:$E$58,2,FALSE)=0,\"\",VLOOKUP(CG77,'Footnotes list'!$D$9:$E$58,2,FALSE) ) )","v":""},null,null,null,null,{"$f":"IF(TRIM(CL77)=\"\", \"\", IF(VLOOKUP(CL77,'Footnotes list'!$D$9:$E$58,2,FALSE)=0,\"\",VLOOKUP(CL77,'Footnotes list'!$D$9:$E$58,2,FALSE) ) )","v":""},null,null,null,null,{"$f":"IF(TRIM(CQ77)=\"\", \"\", IF(VLOOKUP(CQ77,'Footnotes list'!$D$9:$E$58,2,FALSE)=0,\"\",VLOOKUP(CQ77,'Footnotes list'!$D$9:$E$58,2,FALSE) ) )","v":""},null,null,null,null,{"$f":"IF(TRIM(CV77)=\"\", \"\", IF(VLOOKUP(CV77,'Footnotes list'!$D$9:$E$58,2,FALSE)=0,\"\",VLOOKUP(CV77,'Footnotes list'!$D$9:$E$58,2,FALSE) ) )","v":""},null,null,null,null,{"$f":"IF(TRIM(DA77)=\"\", \"\", IF(VLOOKUP(DA77,'Footnotes list'!$D$9:$E$58,2,FALSE)=0,\"\",VLOOKUP(DA77,'Footnotes list'!$D$9:$E$58,2,FALSE) ) )","v":""},null,null,null,null,{"$f":"IF(TRIM(DF77)=\"\", \"\", IF(VLOOKUP(DF77,'Footnotes list'!$D$9:$E$58,2,FALSE)=0,\"\",VLOOKUP(DF77,'Footnotes list'!$D$9:$E$58,2,FALSE) ) )","v":""},null,null,null,null,{"$f":"IF(TRIM(DK77)=\"\", \"\", IF(VLOOKUP(DK77,'Footnotes list'!$D$9:$E$58,2,FALSE)=0,\"\",VLOOKUP(DK77,'Footnotes list'!$D$9:$E$58,2,FALSE) ) )","v":""},null,null,null,null,{"$f":"IF(TRIM(DP77)=\"\", \"\", IF(VLOOKUP(DP77,'Footnotes list'!$D$9:$E$58,2,FALSE)=0,\"\",VLOOKUP(DP77,'Footnotes list'!$D$9:$E$58,2,FALSE) ) )","v":""},null,null,null,null,{"$f":"IF(TRIM(DU77)=\"\", \"\", IF(VLOOKUP(DU77,'Footnotes list'!$D$9:$E$58,2,FALSE)=0,\"\",VLOOKUP(DU77,'Footnotes list'!$D$9:$E$58,2,FALSE) ) )","v":""},null,null,null,null,{"$f":"IF(TRIM(DZ77)=\"\", \"\", IF(VLOOKUP(DZ77,'Footnotes list'!$D$9:$E$58,2,FALSE)=0,\"\",VLOOKUP(DZ77,'Footnotes list'!$D$9:$E$58,2,FALSE) ) )","v":""},null,null,null,null,{"$f":"IF(TRIM(EE77)=\"\", \"\", IF(VLOOKUP(EE77,'Footnotes list'!$D$9:$E$58,2,FALSE)=0,\"\",VLOOKUP(EE77,'Footnotes list'!$D$9:$E$58,2,FALSE) ) )","v":""},null,null,null,null,{"$f":"IF(TRIM(EJ77)=\"\", \"\", IF(VLOOKUP(EJ77,'Footnotes list'!$D$9:$E$58,2,FALSE)=0,\"\",VLOOKUP(EJ77,'Footnotes list'!$D$9:$E$58,2,FALSE) ) )","v":""},null,null,null,null,{"$f":"IF(TRIM(EO77)=\"\", \"\", IF(VLOOKUP(EO77,'Footnotes list'!$D$9:$E$58,2,FALSE)=0,\"\",VLOOKUP(EO77,'Footnotes list'!$D$9:$E$58,2,FALSE) ) )","v":""},null,null,null,null,{"$f":"IF(TRIM(ET77)=\"\", \"\", IF(VLOOKUP(ET77,'Footnotes list'!$D$9:$E$58,2,FALSE)=0,\"\",VLOOKUP(ET77,'Footnotes list'!$D$9:$E$58,2,FALSE) ) )","v":""},null,null,null,null,{"$f":"IF(TRIM(EY77)=\"\", \"\", IF(VLOOKUP(EY77,'Footnotes list'!$D$9:$E$58,2,FALSE)=0,\"\",VLOOKUP(EY77,'Footnotes list'!$D$9:$E$58,2,FALSE) ) )","v":""}]
[null,null,"C22_C23","TOT_EGSS","Total C22 - C23 Manufacture of rubber and plastic products, and other non-metallic mineral products, of which:",null,null,null,null,null,{"$f":"IF(TRIM(J78)=\"\", \"\", IF(VLOOKUP(J78,'Footnotes list'!$D$9:$E$58,2,FALSE)=0,\"\",VLOOKUP(J78,'Footnotes list'!$D$9:$E$58,2,FALSE) ) )","v":""},null,null,null,null,{"$f":"IF(TRIM(O78)=\"\", \"\", IF(VLOOKUP(O78,'Footnotes list'!$D$9:$E$58,2,FALSE)=0,\"\",VLOOKUP(O78,'Footnotes list'!$D$9:$E$58,2,FALSE) ) )","v":""},null,null,null,null,{"$f":"IF(TRIM(T78)=\"\", \"\", IF(VLOOKUP(T78,'Footnotes list'!$D$9:$E$58,2,FALSE)=0,\"\",VLOOKUP(T78,'Footnotes list'!$D$9:$E$58,2,FALSE) ) )","v":""},null,null,null,null,{"$f":"IF(TRIM(Y78)=\"\", \"\", IF(VLOOKUP(Y78,'Footnotes list'!$D$9:$E$58,2,FALSE)=0,\"\",VLOOKUP(Y78,'Footnotes list'!$D$9:$E$58,2,FALSE) ) )","v":""},null,null,null,null,{"$f":"IF(TRIM(AD78)=\"\", \"\", IF(VLOOKUP(AD78,'Footnotes list'!$D$9:$E$58,2,FALSE)=0,\"\",VLOOKUP(AD78,'Footnotes list'!$D$9:$E$58,2,FALSE) ) )","v":""},null,null,null,null,{"$f":"IF(TRIM(AI78)=\"\", \"\", IF(VLOOKUP(AI78,'Footnotes list'!$D$9:$E$58,2,FALSE)=0,\"\",VLOOKUP(AI78,'Footnotes list'!$D$9:$E$58,2,FALSE) ) )","v":""},null,null,null,null,{"$f":"IF(TRIM(AN78)=\"\", \"\", IF(VLOOKUP(AN78,'Footnotes list'!$D$9:$E$58,2,FALSE)=0,\"\",VLOOKUP(AN78,'Footnotes list'!$D$9:$E$58,2,FALSE) ) )","v":""},null,null,null,null,{"$f":"IF(TRIM(AS78)=\"\", \"\", IF(VLOOKUP(AS78,'Footnotes list'!$D$9:$E$58,2,FALSE)=0,\"\",VLOOKUP(AS78,'Footnotes list'!$D$9:$E$58,2,FALSE) ) )","v":""},null,null,null,null,{"$f":"IF(TRIM(AX78)=\"\", \"\", IF(VLOOKUP(AX78,'Footnotes list'!$D$9:$E$58,2,FALSE)=0,\"\",VLOOKUP(AX78,'Footnotes list'!$D$9:$E$58,2,FALSE) ) )","v":""},null,null,null,null,{"$f":"IF(TRIM(BC78)=\"\", \"\", IF(VLOOKUP(BC78,'Footnotes list'!$D$9:$E$58,2,FALSE)=0,\"\",VLOOKUP(BC78,'Footnotes list'!$D$9:$E$58,2,FALSE) ) )","v":""},null,null,null,null,{"$f":"IF(TRIM(BH78)=\"\", \"\", IF(VLOOKUP(BH78,'Footnotes list'!$D$9:$E$58,2,FALSE)=0,\"\",VLOOKUP(BH78,'Footnotes list'!$D$9:$E$58,2,FALSE) ) )","v":""},null,null,null,null,{"$f":"IF(TRIM(BM78)=\"\", \"\", IF(VLOOKUP(BM78,'Footnotes list'!$D$9:$E$58,2,FALSE)=0,\"\",VLOOKUP(BM78,'Footnotes list'!$D$9:$E$58,2,FALSE) ) )","v":""},null,null,null,null,{"$f":"IF(TRIM(BR78)=\"\", \"\", IF(VLOOKUP(BR78,'Footnotes list'!$D$9:$E$58,2,FALSE)=0,\"\",VLOOKUP(BR78,'Footnotes list'!$D$9:$E$58,2,FALSE) ) )","v":""},null,null,null,null,{"$f":"IF(TRIM(BW78)=\"\", \"\", IF(VLOOKUP(BW78,'Footnotes list'!$D$9:$E$58,2,FALSE)=0,\"\",VLOOKUP(BW78,'Footnotes list'!$D$9:$E$58,2,FALSE) ) )","v":""},null,null,null,null,{"$f":"IF(TRIM(CB78)=\"\", \"\", IF(VLOOKUP(CB78,'Footnotes list'!$D$9:$E$58,2,FALSE)=0,\"\",VLOOKUP(CB78,'Footnotes list'!$D$9:$E$58,2,FALSE) ) )","v":""},null,null,null,null,{"$f":"IF(TRIM(CG78)=\"\", \"\", IF(VLOOKUP(CG78,'Footnotes list'!$D$9:$E$58,2,FALSE)=0,\"\",VLOOKUP(CG78,'Footnotes list'!$D$9:$E$58,2,FALSE) ) )","v":""},null,null,null,null,{"$f":"IF(TRIM(CL78)=\"\", \"\", IF(VLOOKUP(CL78,'Footnotes list'!$D$9:$E$58,2,FALSE)=0,\"\",VLOOKUP(CL78,'Footnotes list'!$D$9:$E$58,2,FALSE) ) )","v":""},null,null,null,null,{"$f":"IF(TRIM(CQ78)=\"\", \"\", IF(VLOOKUP(CQ78,'Footnotes list'!$D$9:$E$58,2,FALSE)=0,\"\",VLOOKUP(CQ78,'Footnotes list'!$D$9:$E$58,2,FALSE) ) )","v":""},null,null,null,null,{"$f":"IF(TRIM(CV78)=\"\", \"\", IF(VLOOKUP(CV78,'Footnotes list'!$D$9:$E$58,2,FALSE)=0,\"\",VLOOKUP(CV78,'Footnotes list'!$D$9:$E$58,2,FALSE) ) )","v":""},null,null,null,null,{"$f":"IF(TRIM(DA78)=\"\", \"\", IF(VLOOKUP(DA78,'Footnotes list'!$D$9:$E$58,2,FALSE)=0,\"\",VLOOKUP(DA78,'Footnotes list'!$D$9:$E$58,2,FALSE) ) )","v":""},null,null,null,null,{"$f":"IF(TRIM(DF78)=\"\", \"\", IF(VLOOKUP(DF78,'Footnotes list'!$D$9:$E$58,2,FALSE)=0,\"\",VLOOKUP(DF78,'Footnotes list'!$D$9:$E$58,2,FALSE) ) )","v":""},null,null,null,null,{"$f":"IF(TRIM(DK78)=\"\", \"\", IF(VLOOKUP(DK78,'Footnotes list'!$D$9:$E$58,2,FALSE)=0,\"\",VLOOKUP(DK78,'Footnotes list'!$D$9:$E$58,2,FALSE) ) )","v":""},null,null,null,null,{"$f":"IF(TRIM(DP78)=\"\", \"\", IF(VLOOKUP(DP78,'Footnotes list'!$D$9:$E$58,2,FALSE)=0,\"\",VLOOKUP(DP78,'Footnotes list'!$D$9:$E$58,2,FALSE) ) )","v":""},null,null,null,null,{"$f":"IF(TRIM(DU78)=\"\", \"\", IF(VLOOKUP(DU78,'Footnotes list'!$D$9:$E$58,2,FALSE)=0,\"\",VLOOKUP(DU78,'Footnotes list'!$D$9:$E$58,2,FALSE) ) )","v":""},null,null,null,null,{"$f":"IF(TRIM(DZ78)=\"\", \"\", IF(VLOOKUP(DZ78,'Footnotes list'!$D$9:$E$58,2,FALSE)=0,\"\",VLOOKUP(DZ78,'Footnotes list'!$D$9:$E$58,2,FALSE) ) )","v":""},null,null,null,null,{"$f":"IF(TRIM(EE78)=\"\", \"\", IF(VLOOKUP(EE78,'Footnotes list'!$D$9:$E$58,2,FALSE)=0,\"\",VLOOKUP(EE78,'Footnotes list'!$D$9:$E$58,2,FALSE) ) )","v":""},null,null,null,null,{"$f":"IF(TRIM(EJ78)=\"\", \"\", IF(VLOOKUP(EJ78,'Footnotes list'!$D$9:$E$58,2,FALSE)=0,\"\",VLOOKUP(EJ78,'Footnotes list'!$D$9:$E$58,2,FALSE) ) )","v":""},null,null,null,null,{"$f":"IF(TRIM(EO78)=\"\", \"\", IF(VLOOKUP(EO78,'Footnotes list'!$D$9:$E$58,2,FALSE)=0,\"\",VLOOKUP(EO78,'Footnotes list'!$D$9:$E$58,2,FALSE) ) )","v":""},null,null,null,null,{"$f":"IF(TRIM(ET78)=\"\", \"\", IF(VLOOKUP(ET78,'Footnotes list'!$D$9:$E$58,2,FALSE)=0,\"\",VLOOKUP(ET78,'Footnotes list'!$D$9:$E$58,2,FALSE) ) )","v":""},null,null,null,null,{"$f":"IF(TRIM(EY78)=\"\", \"\", IF(VLOOKUP(EY78,'Footnotes list'!$D$9:$E$58,2,FALSE)=0,\"\",VLOOKUP(EY78,'Footnotes list'!$D$9:$E$58,2,FALSE) ) )","v":""}]
[null,null,"C22_C23","ANC","ancillary activities",null,null,null,null,null,{"$f":"IF(TRIM(J79)=\"\", \"\", IF(VLOOKUP(J79,'Footnotes list'!$D$9:$E$58,2,FALSE)=0,\"\",VLOOKUP(J79,'Footnotes list'!$D$9:$E$58,2,FALSE) ) )","v":""},null,null,null,null,{"$f":"IF(TRIM(O79)=\"\", \"\", IF(VLOOKUP(O79,'Footnotes list'!$D$9:$E$58,2,FALSE)=0,\"\",VLOOKUP(O79,'Footnotes list'!$D$9:$E$58,2,FALSE) ) )","v":""},null,null,null,null,{"$f":"IF(TRIM(T79)=\"\", \"\", IF(VLOOKUP(T79,'Footnotes list'!$D$9:$E$58,2,FALSE)=0,\"\",VLOOKUP(T79,'Footnotes list'!$D$9:$E$58,2,FALSE) ) )","v":""},null,null,null,null,{"$f":"IF(TRIM(Y79)=\"\", \"\", IF(VLOOKUP(Y79,'Footnotes list'!$D$9:$E$58,2,FALSE)=0,\"\",VLOOKUP(Y79,'Footnotes list'!$D$9:$E$58,2,FALSE) ) )","v":""},null,null,null,null,{"$f":"IF(TRIM(AD79)=\"\", \"\", IF(VLOOKUP(AD79,'Footnotes list'!$D$9:$E$58,2,FALSE)=0,\"\",VLOOKUP(AD79,'Footnotes list'!$D$9:$E$58,2,FALSE) ) )","v":""},null,null,null,null,{"$f":"IF(TRIM(AI79)=\"\", \"\", IF(VLOOKUP(AI79,'Footnotes list'!$D$9:$E$58,2,FALSE)=0,\"\",VLOOKUP(AI79,'Footnotes list'!$D$9:$E$58,2,FALSE) ) )","v":""},null,null,null,null,{"$f":"IF(TRIM(AN79)=\"\", \"\", IF(VLOOKUP(AN79,'Footnotes list'!$D$9:$E$58,2,FALSE)=0,\"\",VLOOKUP(AN79,'Footnotes list'!$D$9:$E$58,2,FALSE) ) )","v":""},null,null,null,null,{"$f":"IF(TRIM(AS79)=\"\", \"\", IF(VLOOKUP(AS79,'Footnotes list'!$D$9:$E$58,2,FALSE)=0,\"\",VLOOKUP(AS79,'Footnotes list'!$D$9:$E$58,2,FALSE) ) )","v":""},null,null,null,null,{"$f":"IF(TRIM(AX79)=\"\", \"\", IF(VLOOKUP(AX79,'Footnotes list'!$D$9:$E$58,2,FALSE)=0,\"\",VLOOKUP(AX79,'Footnotes list'!$D$9:$E$58,2,FALSE) ) )","v":""},null,null,null,null,{"$f":"IF(TRIM(BC79)=\"\", \"\", IF(VLOOKUP(BC79,'Footnotes list'!$D$9:$E$58,2,FALSE)=0,\"\",VLOOKUP(BC79,'Footnotes list'!$D$9:$E$58,2,FALSE) ) )","v":""},null,null,null,null,{"$f":"IF(TRIM(BH79)=\"\", \"\", IF(VLOOKUP(BH79,'Footnotes list'!$D$9:$E$58,2,FALSE)=0,\"\",VLOOKUP(BH79,'Footnotes list'!$D$9:$E$58,2,FALSE) ) )","v":""},null,null,null,null,{"$f":"IF(TRIM(BM79)=\"\", \"\", IF(VLOOKUP(BM79,'Footnotes list'!$D$9:$E$58,2,FALSE)=0,\"\",VLOOKUP(BM79,'Footnotes list'!$D$9:$E$58,2,FALSE) ) )","v":""},null,null,null,null,{"$f":"IF(TRIM(BR79)=\"\", \"\", IF(VLOOKUP(BR79,'Footnotes list'!$D$9:$E$58,2,FALSE)=0,\"\",VLOOKUP(BR79,'Footnotes list'!$D$9:$E$58,2,FALSE) ) )","v":""},null,null,null,null,{"$f":"IF(TRIM(BW79)=\"\", \"\", IF(VLOOKUP(BW79,'Footnotes list'!$D$9:$E$58,2,FALSE)=0,\"\",VLOOKUP(BW79,'Footnotes list'!$D$9:$E$58,2,FALSE) ) )","v":""},null,null,null,null,{"$f":"IF(TRIM(CB79)=\"\", \"\", IF(VLOOKUP(CB79,'Footnotes list'!$D$9:$E$58,2,FALSE)=0,\"\",VLOOKUP(CB79,'Footnotes list'!$D$9:$E$58,2,FALSE) ) )","v":""},null,null,null,null,{"$f":"IF(TRIM(CG79)=\"\", \"\", IF(VLOOKUP(CG79,'Footnotes list'!$D$9:$E$58,2,FALSE)=0,\"\",VLOOKUP(CG79,'Footnotes list'!$D$9:$E$58,2,FALSE) ) )","v":""},null,null,null,null,{"$f":"IF(TRIM(CL79)=\"\", \"\", IF(VLOOKUP(CL79,'Footnotes list'!$D$9:$E$58,2,FALSE)=0,\"\",VLOOKUP(CL79,'Footnotes list'!$D$9:$E$58,2,FALSE) ) )","v":""},null,null,null,null,{"$f":"IF(TRIM(CQ79)=\"\", \"\", IF(VLOOKUP(CQ79,'Footnotes list'!$D$9:$E$58,2,FALSE)=0,\"\",VLOOKUP(CQ79,'Footnotes list'!$D$9:$E$58,2,FALSE) ) )","v":""},null,null,null,null,{"$f":"IF(TRIM(CV79)=\"\", \"\", IF(VLOOKUP(CV79,'Footnotes list'!$D$9:$E$58,2,FALSE)=0,\"\",VLOOKUP(CV79,'Footnotes list'!$D$9:$E$58,2,FALSE) ) )","v":""},null,null,null,null,{"$f":"IF(TRIM(DA79)=\"\", \"\", IF(VLOOKUP(DA79,'Footnotes list'!$D$9:$E$58,2,FALSE)=0,\"\",VLOOKUP(DA79,'Footnotes list'!$D$9:$E$58,2,FALSE) ) )","v":""},null,null,null,null,{"$f":"IF(TRIM(DF79)=\"\", \"\", IF(VLOOKUP(DF79,'Footnotes list'!$D$9:$E$58,2,FALSE)=0,\"\",VLOOKUP(DF79,'Footnotes list'!$D$9:$E$58,2,FALSE) ) )","v":""},null,null,null,null,{"$f":"IF(TRIM(DK79)=\"\", \"\", IF(VLOOKUP(DK79,'Footnotes list'!$D$9:$E$58,2,FALSE)=0,\"\",VLOOKUP(DK79,'Footnotes list'!$D$9:$E$58,2,FALSE) ) )","v":""},null,null,null,null,{"$f":"IF(TRIM(DP79)=\"\", \"\", IF(VLOOKUP(DP79,'Footnotes list'!$D$9:$E$58,2,FALSE)=0,\"\",VLOOKUP(DP79,'Footnotes list'!$D$9:$E$58,2,FALSE) ) )","v":""},null,null,null,null,{"$f":"IF(TRIM(DU79)=\"\", \"\", IF(VLOOKUP(DU79,'Footnotes list'!$D$9:$E$58,2,FALSE)=0,\"\",VLOOKUP(DU79,'Footnotes list'!$D$9:$E$58,2,FALSE) ) )","v":""},null,null,null,null,{"$f":"IF(TRIM(DZ79)=\"\", \"\", IF(VLOOKUP(DZ79,'Footnotes list'!$D$9:$E$58,2,FALSE)=0,\"\",VLOOKUP(DZ79,'Footnotes list'!$D$9:$E$58,2,FALSE) ) )","v":""},null,null,null,null,{"$f":"IF(TRIM(EE79)=\"\", \"\", IF(VLOOKUP(EE79,'Footnotes list'!$D$9:$E$58,2,FALSE)=0,\"\",VLOOKUP(EE79,'Footnotes list'!$D$9:$E$58,2,FALSE) ) )","v":""},null,null,null,null,{"$f":"IF(TRIM(EJ79)=\"\", \"\", IF(VLOOKUP(EJ79,'Footnotes list'!$D$9:$E$58,2,FALSE)=0,\"\",VLOOKUP(EJ79,'Footnotes list'!$D$9:$E$58,2,FALSE) ) )","v":""},null,null,null,null,{"$f":"IF(TRIM(EO79)=\"\", \"\", IF(VLOOKUP(EO79,'Footnotes list'!$D$9:$E$58,2,FALSE)=0,\"\",VLOOKUP(EO79,'Footnotes list'!$D$9:$E$58,2,FALSE) ) )","v":""},null,null,null,null,{"$f":"IF(TRIM(ET79)=\"\", \"\", IF(VLOOKUP(ET79,'Footnotes list'!$D$9:$E$58,2,FALSE)=0,\"\",VLOOKUP(ET79,'Footnotes list'!$D$9:$E$58,2,FALSE) ) )","v":""},null,null,null,null,{"$f":"IF(TRIM(EY79)=\"\", \"\", IF(VLOOKUP(EY79,'Footnotes list'!$D$9:$E$58,2,FALSE)=0,\"\",VLOOKUP(EY79,'Footnotes list'!$D$9:$E$58,2,FALSE) ) )","v":""}]
[null,null,"C22_C23","NMKT","non-market activities",null,null,null,null,null,{"$f":"IF(TRIM(J80)=\"\", \"\", IF(VLOOKUP(J80,'Footnotes list'!$D$9:$E$58,2,FALSE)=0,\"\",VLOOKUP(J80,'Footnotes list'!$D$9:$E$58,2,FALSE) ) )","v":""},null,null,null,null,{"$f":"IF(TRIM(O80)=\"\", \"\", IF(VLOOKUP(O80,'Footnotes list'!$D$9:$E$58,2,FALSE)=0,\"\",VLOOKUP(O80,'Footnotes list'!$D$9:$E$58,2,FALSE) ) )","v":""},null,null,null,null,{"$f":"IF(TRIM(T80)=\"\", \"\", IF(VLOOKUP(T80,'Footnotes list'!$D$9:$E$58,2,FALSE)=0,\"\",VLOOKUP(T80,'Footnotes list'!$D$9:$E$58,2,FALSE) ) )","v":""},null,null,null,null,{"$f":"IF(TRIM(Y80)=\"\", \"\", IF(VLOOKUP(Y80,'Footnotes list'!$D$9:$E$58,2,FALSE)=0,\"\",VLOOKUP(Y80,'Footnotes list'!$D$9:$E$58,2,FALSE) ) )","v":""},null,null,null,null,{"$f":"IF(TRIM(AD80)=\"\", \"\", IF(VLOOKUP(AD80,'Footnotes list'!$D$9:$E$58,2,FALSE)=0,\"\",VLOOKUP(AD80,'Footnotes list'!$D$9:$E$58,2,FALSE) ) )","v":""},null,null,null,null,{"$f":"IF(TRIM(AI80)=\"\", \"\", IF(VLOOKUP(AI80,'Footnotes list'!$D$9:$E$58,2,FALSE)=0,\"\",VLOOKUP(AI80,'Footnotes list'!$D$9:$E$58,2,FALSE) ) )","v":""},null,null,null,null,{"$f":"IF(TRIM(AN80)=\"\", \"\", IF(VLOOKUP(AN80,'Footnotes list'!$D$9:$E$58,2,FALSE)=0,\"\",VLOOKUP(AN80,'Footnotes list'!$D$9:$E$58,2,FALSE) ) )","v":""},null,null,null,null,{"$f":"IF(TRIM(AS80)=\"\", \"\", IF(VLOOKUP(AS80,'Footnotes list'!$D$9:$E$58,2,FALSE)=0,\"\",VLOOKUP(AS80,'Footnotes list'!$D$9:$E$58,2,FALSE) ) )","v":""},null,null,null,null,{"$f":"IF(TRIM(AX80)=\"\", \"\", IF(VLOOKUP(AX80,'Footnotes list'!$D$9:$E$58,2,FALSE)=0,\"\",VLOOKUP(AX80,'Footnotes list'!$D$9:$E$58,2,FALSE) ) )","v":""},null,null,null,null,{"$f":"IF(TRIM(BC80)=\"\", \"\", IF(VLOOKUP(BC80,'Footnotes list'!$D$9:$E$58,2,FALSE)=0,\"\",VLOOKUP(BC80,'Footnotes list'!$D$9:$E$58,2,FALSE) ) )","v":""},null,null,null,null,{"$f":"IF(TRIM(BH80)=\"\", \"\", IF(VLOOKUP(BH80,'Footnotes list'!$D$9:$E$58,2,FALSE)=0,\"\",VLOOKUP(BH80,'Footnotes list'!$D$9:$E$58,2,FALSE) ) )","v":""},null,null,null,null,{"$f":"IF(TRIM(BM80)=\"\", \"\", IF(VLOOKUP(BM80,'Footnotes list'!$D$9:$E$58,2,FALSE)=0,\"\",VLOOKUP(BM80,'Footnotes list'!$D$9:$E$58,2,FALSE) ) )","v":""},null,null,null,null,{"$f":"IF(TRIM(BR80)=\"\", \"\", IF(VLOOKUP(BR80,'Footnotes list'!$D$9:$E$58,2,FALSE)=0,\"\",VLOOKUP(BR80,'Footnotes list'!$D$9:$E$58,2,FALSE) ) )","v":""},null,null,null,null,{"$f":"IF(TRIM(BW80)=\"\", \"\", IF(VLOOKUP(BW80,'Footnotes list'!$D$9:$E$58,2,FALSE)=0,\"\",VLOOKUP(BW80,'Footnotes list'!$D$9:$E$58,2,FALSE) ) )","v":""},null,null,null,null,{"$f":"IF(TRIM(CB80)=\"\", \"\", IF(VLOOKUP(CB80,'Footnotes list'!$D$9:$E$58,2,FALSE)=0,\"\",VLOOKUP(CB80,'Footnotes list'!$D$9:$E$58,2,FALSE) ) )","v":""},null,null,null,null,{"$f":"IF(TRIM(CG80)=\"\", \"\", IF(VLOOKUP(CG80,'Footnotes list'!$D$9:$E$58,2,FALSE)=0,\"\",VLOOKUP(CG80,'Footnotes list'!$D$9:$E$58,2,FALSE) ) )","v":""},null,null,null,null,{"$f":"IF(TRIM(CL80)=\"\", \"\", IF(VLOOKUP(CL80,'Footnotes list'!$D$9:$E$58,2,FALSE)=0,\"\",VLOOKUP(CL80,'Footnotes list'!$D$9:$E$58,2,FALSE) ) )","v":""},null,null,null,null,{"$f":"IF(TRIM(CQ80)=\"\", \"\", IF(VLOOKUP(CQ80,'Footnotes list'!$D$9:$E$58,2,FALSE)=0,\"\",VLOOKUP(CQ80,'Footnotes list'!$D$9:$E$58,2,FALSE) ) )","v":""},null,null,null,null,{"$f":"IF(TRIM(CV80)=\"\", \"\", IF(VLOOKUP(CV80,'Footnotes list'!$D$9:$E$58,2,FALSE)=0,\"\",VLOOKUP(CV80,'Footnotes list'!$D$9:$E$58,2,FALSE) ) )","v":""},null,null,null,null,{"$f":"IF(TRIM(DA80)=\"\", \"\", IF(VLOOKUP(DA80,'Footnotes list'!$D$9:$E$58,2,FALSE)=0,\"\",VLOOKUP(DA80,'Footnotes list'!$D$9:$E$58,2,FALSE) ) )","v":""},null,null,null,null,{"$f":"IF(TRIM(DF80)=\"\", \"\", IF(VLOOKUP(DF80,'Footnotes list'!$D$9:$E$58,2,FALSE)=0,\"\",VLOOKUP(DF80,'Footnotes list'!$D$9:$E$58,2,FALSE) ) )","v":""},null,null,null,null,{"$f":"IF(TRIM(DK80)=\"\", \"\", IF(VLOOKUP(DK80,'Footnotes list'!$D$9:$E$58,2,FALSE)=0,\"\",VLOOKUP(DK80,'Footnotes list'!$D$9:$E$58,2,FALSE) ) )","v":""},null,null,null,null,{"$f":"IF(TRIM(DP80)=\"\", \"\", IF(VLOOKUP(DP80,'Footnotes list'!$D$9:$E$58,2,FALSE)=0,\"\",VLOOKUP(DP80,'Footnotes list'!$D$9:$E$58,2,FALSE) ) )","v":""},null,null,null,null,{"$f":"IF(TRIM(DU80)=\"\", \"\", IF(VLOOKUP(DU80,'Footnotes list'!$D$9:$E$58,2,FALSE)=0,\"\",VLOOKUP(DU80,'Footnotes list'!$D$9:$E$58,2,FALSE) ) )","v":""},null,null,null,null,{"$f":"IF(TRIM(DZ80)=\"\", \"\", IF(VLOOKUP(DZ80,'Footnotes list'!$D$9:$E$58,2,FALSE)=0,\"\",VLOOKUP(DZ80,'Footnotes list'!$D$9:$E$58,2,FALSE) ) )","v":""},null,null,null,null,{"$f":"IF(TRIM(EE80)=\"\", \"\", IF(VLOOKUP(EE80,'Footnotes list'!$D$9:$E$58,2,FALSE)=0,\"\",VLOOKUP(EE80,'Footnotes list'!$D$9:$E$58,2,FALSE) ) )","v":""},null,null,null,null,{"$f":"IF(TRIM(EJ80)=\"\", \"\", IF(VLOOKUP(EJ80,'Footnotes list'!$D$9:$E$58,2,FALSE)=0,\"\",VLOOKUP(EJ80,'Footnotes list'!$D$9:$E$58,2,FALSE) ) )","v":""},null,null,null,null,{"$f":"IF(TRIM(EO80)=\"\", \"\", IF(VLOOKUP(EO80,'Footnotes list'!$D$9:$E$58,2,FALSE)=0,\"\",VLOOKUP(EO80,'Footnotes list'!$D$9:$E$58,2,FALSE) ) )","v":""},null,null,null,null,{"$f":"IF(TRIM(ET80)=\"\", \"\", IF(VLOOKUP(ET80,'Footnotes list'!$D$9:$E$58,2,FALSE)=0,\"\",VLOOKUP(ET80,'Footnotes list'!$D$9:$E$58,2,FALSE) ) )","v":""},null,null,null,null,{"$f":"IF(TRIM(EY80)=\"\", \"\", IF(VLOOKUP(EY80,'Footnotes list'!$D$9:$E$58,2,FALSE)=0,\"\",VLOOKUP(EY80,'Footnotes list'!$D$9:$E$58,2,FALSE) ) )","v":""}]
[null,null,"C22_C23","OWN_USE","activities for own final use",null,null,null,null,null,{"$f":"IF(TRIM(J81)=\"\", \"\", IF(VLOOKUP(J81,'Footnotes list'!$D$9:$E$58,2,FALSE)=0,\"\",VLOOKUP(J81,'Footnotes list'!$D$9:$E$58,2,FALSE) ) )","v":""},null,null,null,null,{"$f":"IF(TRIM(O81)=\"\", \"\", IF(VLOOKUP(O81,'Footnotes list'!$D$9:$E$58,2,FALSE)=0,\"\",VLOOKUP(O81,'Footnotes list'!$D$9:$E$58,2,FALSE) ) )","v":""},null,null,null,null,{"$f":"IF(TRIM(T81)=\"\", \"\", IF(VLOOKUP(T81,'Footnotes list'!$D$9:$E$58,2,FALSE)=0,\"\",VLOOKUP(T81,'Footnotes list'!$D$9:$E$58,2,FALSE) ) )","v":""},null,null,null,null,{"$f":"IF(TRIM(Y81)=\"\", \"\", IF(VLOOKUP(Y81,'Footnotes list'!$D$9:$E$58,2,FALSE)=0,\"\",VLOOKUP(Y81,'Footnotes list'!$D$9:$E$58,2,FALSE) ) )","v":""},null,null,null,null,{"$f":"IF(TRIM(AD81)=\"\", \"\", IF(VLOOKUP(AD81,'Footnotes list'!$D$9:$E$58,2,FALSE)=0,\"\",VLOOKUP(AD81,'Footnotes list'!$D$9:$E$58,2,FALSE) ) )","v":""},null,null,null,null,{"$f":"IF(TRIM(AI81)=\"\", \"\", IF(VLOOKUP(AI81,'Footnotes list'!$D$9:$E$58,2,FALSE)=0,\"\",VLOOKUP(AI81,'Footnotes list'!$D$9:$E$58,2,FALSE) ) )","v":""},null,null,null,null,{"$f":"IF(TRIM(AN81)=\"\", \"\", IF(VLOOKUP(AN81,'Footnotes list'!$D$9:$E$58,2,FALSE)=0,\"\",VLOOKUP(AN81,'Footnotes list'!$D$9:$E$58,2,FALSE) ) )","v":""},null,null,null,null,{"$f":"IF(TRIM(AS81)=\"\", \"\", IF(VLOOKUP(AS81,'Footnotes list'!$D$9:$E$58,2,FALSE)=0,\"\",VLOOKUP(AS81,'Footnotes list'!$D$9:$E$58,2,FALSE) ) )","v":""},null,null,null,null,{"$f":"IF(TRIM(AX81)=\"\", \"\", IF(VLOOKUP(AX81,'Footnotes list'!$D$9:$E$58,2,FALSE)=0,\"\",VLOOKUP(AX81,'Footnotes list'!$D$9:$E$58,2,FALSE) ) )","v":""},null,null,null,null,{"$f":"IF(TRIM(BC81)=\"\", \"\", IF(VLOOKUP(BC81,'Footnotes list'!$D$9:$E$58,2,FALSE)=0,\"\",VLOOKUP(BC81,'Footnotes list'!$D$9:$E$58,2,FALSE) ) )","v":""},null,null,null,null,{"$f":"IF(TRIM(BH81)=\"\", \"\", IF(VLOOKUP(BH81,'Footnotes list'!$D$9:$E$58,2,FALSE)=0,\"\",VLOOKUP(BH81,'Footnotes list'!$D$9:$E$58,2,FALSE) ) )","v":""},null,null,null,null,{"$f":"IF(TRIM(BM81)=\"\", \"\", IF(VLOOKUP(BM81,'Footnotes list'!$D$9:$E$58,2,FALSE)=0,\"\",VLOOKUP(BM81,'Footnotes list'!$D$9:$E$58,2,FALSE) ) )","v":""},null,null,null,null,{"$f":"IF(TRIM(BR81)=\"\", \"\", IF(VLOOKUP(BR81,'Footnotes list'!$D$9:$E$58,2,FALSE)=0,\"\",VLOOKUP(BR81,'Footnotes list'!$D$9:$E$58,2,FALSE) ) )","v":""},null,null,null,null,{"$f":"IF(TRIM(BW81)=\"\", \"\", IF(VLOOKUP(BW81,'Footnotes list'!$D$9:$E$58,2,FALSE)=0,\"\",VLOOKUP(BW81,'Footnotes list'!$D$9:$E$58,2,FALSE) ) )","v":""},null,null,null,null,{"$f":"IF(TRIM(CB81)=\"\", \"\", IF(VLOOKUP(CB81,'Footnotes list'!$D$9:$E$58,2,FALSE)=0,\"\",VLOOKUP(CB81,'Footnotes list'!$D$9:$E$58,2,FALSE) ) )","v":""},null,null,null,null,{"$f":"IF(TRIM(CG81)=\"\", \"\", IF(VLOOKUP(CG81,'Footnotes list'!$D$9:$E$58,2,FALSE)=0,\"\",VLOOKUP(CG81,'Footnotes list'!$D$9:$E$58,2,FALSE) ) )","v":""},null,null,null,null,{"$f":"IF(TRIM(CL81)=\"\", \"\", IF(VLOOKUP(CL81,'Footnotes list'!$D$9:$E$58,2,FALSE)=0,\"\",VLOOKUP(CL81,'Footnotes list'!$D$9:$E$58,2,FALSE) ) )","v":""},null,null,null,null,{"$f":"IF(TRIM(CQ81)=\"\", \"\", IF(VLOOKUP(CQ81,'Footnotes list'!$D$9:$E$58,2,FALSE)=0,\"\",VLOOKUP(CQ81,'Footnotes list'!$D$9:$E$58,2,FALSE) ) )","v":""},null,null,null,null,{"$f":"IF(TRIM(CV81)=\"\", \"\", IF(VLOOKUP(CV81,'Footnotes list'!$D$9:$E$58,2,FALSE)=0,\"\",VLOOKUP(CV81,'Footnotes list'!$D$9:$E$58,2,FALSE) ) )","v":""},null,null,null,null,{"$f":"IF(TRIM(DA81)=\"\", \"\", IF(VLOOKUP(DA81,'Footnotes list'!$D$9:$E$58,2,FALSE)=0,\"\",VLOOKUP(DA81,'Footnotes list'!$D$9:$E$58,2,FALSE) ) )","v":""},null,null,null,null,{"$f":"IF(TRIM(DF81)=\"\", \"\", IF(VLOOKUP(DF81,'Footnotes list'!$D$9:$E$58,2,FALSE)=0,\"\",VLOOKUP(DF81,'Footnotes list'!$D$9:$E$58,2,FALSE) ) )","v":""},null,null,null,null,{"$f":"IF(TRIM(DK81)=\"\", \"\", IF(VLOOKUP(DK81,'Footnotes list'!$D$9:$E$58,2,FALSE)=0,\"\",VLOOKUP(DK81,'Footnotes list'!$D$9:$E$58,2,FALSE) ) )","v":""},null,null,null,null,{"$f":"IF(TRIM(DP81)=\"\", \"\", IF(VLOOKUP(DP81,'Footnotes list'!$D$9:$E$58,2,FALSE)=0,\"\",VLOOKUP(DP81,'Footnotes list'!$D$9:$E$58,2,FALSE) ) )","v":""},null,null,null,null,{"$f":"IF(TRIM(DU81)=\"\", \"\", IF(VLOOKUP(DU81,'Footnotes list'!$D$9:$E$58,2,FALSE)=0,\"\",VLOOKUP(DU81,'Footnotes list'!$D$9:$E$58,2,FALSE) ) )","v":""},null,null,null,null,{"$f":"IF(TRIM(DZ81)=\"\", \"\", IF(VLOOKUP(DZ81,'Footnotes list'!$D$9:$E$58,2,FALSE)=0,\"\",VLOOKUP(DZ81,'Footnotes list'!$D$9:$E$58,2,FALSE) ) )","v":""},null,null,null,null,{"$f":"IF(TRIM(EE81)=\"\", \"\", IF(VLOOKUP(EE81,'Footnotes list'!$D$9:$E$58,2,FALSE)=0,\"\",VLOOKUP(EE81,'Footnotes list'!$D$9:$E$58,2,FALSE) ) )","v":""},null,null,null,null,{"$f":"IF(TRIM(EJ81)=\"\", \"\", IF(VLOOKUP(EJ81,'Footnotes list'!$D$9:$E$58,2,FALSE)=0,\"\",VLOOKUP(EJ81,'Footnotes list'!$D$9:$E$58,2,FALSE) ) )","v":""},null,null,null,null,{"$f":"IF(TRIM(EO81)=\"\", \"\", IF(VLOOKUP(EO81,'Footnotes list'!$D$9:$E$58,2,FALSE)=0,\"\",VLOOKUP(EO81,'Footnotes list'!$D$9:$E$58,2,FALSE) ) )","v":""},null,null,null,null,{"$f":"IF(TRIM(ET81)=\"\", \"\", IF(VLOOKUP(ET81,'Footnotes list'!$D$9:$E$58,2,FALSE)=0,\"\",VLOOKUP(ET81,'Footnotes list'!$D$9:$E$58,2,FALSE) ) )","v":""},null,null,null,null,{"$f":"IF(TRIM(EY81)=\"\", \"\", IF(VLOOKUP(EY81,'Footnotes list'!$D$9:$E$58,2,FALSE)=0,\"\",VLOOKUP(EY81,'Footnotes list'!$D$9:$E$58,2,FALSE) ) )","v":""}]
[null,null,"C22_C23","MKT","market activities, including:",null,null,null,null,null,{"$f":"IF(TRIM(J82)=\"\", \"\", IF(VLOOKUP(J82,'Footnotes list'!$D$9:$E$58,2,FALSE)=0,\"\",VLOOKUP(J82,'Footnotes list'!$D$9:$E$58,2,FALSE) ) )","v":""},null,null,null,null,{"$f":"IF(TRIM(O82)=\"\", \"\", IF(VLOOKUP(O82,'Footnotes list'!$D$9:$E$58,2,FALSE)=0,\"\",VLOOKUP(O82,'Footnotes list'!$D$9:$E$58,2,FALSE) ) )","v":""},null,null,null,null,{"$f":"IF(TRIM(T82)=\"\", \"\", IF(VLOOKUP(T82,'Footnotes list'!$D$9:$E$58,2,FALSE)=0,\"\",VLOOKUP(T82,'Footnotes list'!$D$9:$E$58,2,FALSE) ) )","v":""},null,null,null,null,{"$f":"IF(TRIM(Y82)=\"\", \"\", IF(VLOOKUP(Y82,'Footnotes list'!$D$9:$E$58,2,FALSE)=0,\"\",VLOOKUP(Y82,'Footnotes list'!$D$9:$E$58,2,FALSE) ) )","v":""},null,null,null,null,{"$f":"IF(TRIM(AD82)=\"\", \"\", IF(VLOOKUP(AD82,'Footnotes list'!$D$9:$E$58,2,FALSE)=0,\"\",VLOOKUP(AD82,'Footnotes list'!$D$9:$E$58,2,FALSE) ) )","v":""},null,null,null,null,{"$f":"IF(TRIM(AI82)=\"\", \"\", IF(VLOOKUP(AI82,'Footnotes list'!$D$9:$E$58,2,FALSE)=0,\"\",VLOOKUP(AI82,'Footnotes list'!$D$9:$E$58,2,FALSE) ) )","v":""},null,null,null,null,{"$f":"IF(TRIM(AN82)=\"\", \"\", IF(VLOOKUP(AN82,'Footnotes list'!$D$9:$E$58,2,FALSE)=0,\"\",VLOOKUP(AN82,'Footnotes list'!$D$9:$E$58,2,FALSE) ) )","v":""},null,null,null,null,{"$f":"IF(TRIM(AS82)=\"\", \"\", IF(VLOOKUP(AS82,'Footnotes list'!$D$9:$E$58,2,FALSE)=0,\"\",VLOOKUP(AS82,'Footnotes list'!$D$9:$E$58,2,FALSE) ) )","v":""},null,null,null,null,{"$f":"IF(TRIM(AX82)=\"\", \"\", IF(VLOOKUP(AX82,'Footnotes list'!$D$9:$E$58,2,FALSE)=0,\"\",VLOOKUP(AX82,'Footnotes list'!$D$9:$E$58,2,FALSE) ) )","v":""},null,null,null,null,{"$f":"IF(TRIM(BC82)=\"\", \"\", IF(VLOOKUP(BC82,'Footnotes list'!$D$9:$E$58,2,FALSE)=0,\"\",VLOOKUP(BC82,'Footnotes list'!$D$9:$E$58,2,FALSE) ) )","v":""},null,null,null,null,{"$f":"IF(TRIM(BH82)=\"\", \"\", IF(VLOOKUP(BH82,'Footnotes list'!$D$9:$E$58,2,FALSE)=0,\"\",VLOOKUP(BH82,'Footnotes list'!$D$9:$E$58,2,FALSE) ) )","v":""},null,null,null,null,{"$f":"IF(TRIM(BM82)=\"\", \"\", IF(VLOOKUP(BM82,'Footnotes list'!$D$9:$E$58,2,FALSE)=0,\"\",VLOOKUP(BM82,'Footnotes list'!$D$9:$E$58,2,FALSE) ) )","v":""},null,null,null,null,{"$f":"IF(TRIM(BR82)=\"\", \"\", IF(VLOOKUP(BR82,'Footnotes list'!$D$9:$E$58,2,FALSE)=0,\"\",VLOOKUP(BR82,'Footnotes list'!$D$9:$E$58,2,FALSE) ) )","v":""},null,null,null,null,{"$f":"IF(TRIM(BW82)=\"\", \"\", IF(VLOOKUP(BW82,'Footnotes list'!$D$9:$E$58,2,FALSE)=0,\"\",VLOOKUP(BW82,'Footnotes list'!$D$9:$E$58,2,FALSE) ) )","v":""},null,null,null,null,{"$f":"IF(TRIM(CB82)=\"\", \"\", IF(VLOOKUP(CB82,'Footnotes list'!$D$9:$E$58,2,FALSE)=0,\"\",VLOOKUP(CB82,'Footnotes list'!$D$9:$E$58,2,FALSE) ) )","v":""},null,null,null,null,{"$f":"IF(TRIM(CG82)=\"\", \"\", IF(VLOOKUP(CG82,'Footnotes list'!$D$9:$E$58,2,FALSE)=0,\"\",VLOOKUP(CG82,'Footnotes list'!$D$9:$E$58,2,FALSE) ) )","v":""},null,null,null,null,{"$f":"IF(TRIM(CL82)=\"\", \"\", IF(VLOOKUP(CL82,'Footnotes list'!$D$9:$E$58,2,FALSE)=0,\"\",VLOOKUP(CL82,'Footnotes list'!$D$9:$E$58,2,FALSE) ) )","v":""},null,null,null,null,{"$f":"IF(TRIM(CQ82)=\"\", \"\", IF(VLOOKUP(CQ82,'Footnotes list'!$D$9:$E$58,2,FALSE)=0,\"\",VLOOKUP(CQ82,'Footnotes list'!$D$9:$E$58,2,FALSE) ) )","v":""},null,null,null,null,{"$f":"IF(TRIM(CV82)=\"\", \"\", IF(VLOOKUP(CV82,'Footnotes list'!$D$9:$E$58,2,FALSE)=0,\"\",VLOOKUP(CV82,'Footnotes list'!$D$9:$E$58,2,FALSE) ) )","v":""},null,null,null,null,{"$f":"IF(TRIM(DA82)=\"\", \"\", IF(VLOOKUP(DA82,'Footnotes list'!$D$9:$E$58,2,FALSE)=0,\"\",VLOOKUP(DA82,'Footnotes list'!$D$9:$E$58,2,FALSE) ) )","v":""},null,null,null,null,{"$f":"IF(TRIM(DF82)=\"\", \"\", IF(VLOOKUP(DF82,'Footnotes list'!$D$9:$E$58,2,FALSE)=0,\"\",VLOOKUP(DF82,'Footnotes list'!$D$9:$E$58,2,FALSE) ) )","v":""},null,null,null,null,{"$f":"IF(TRIM(DK82)=\"\", \"\", IF(VLOOKUP(DK82,'Footnotes list'!$D$9:$E$58,2,FALSE)=0,\"\",VLOOKUP(DK82,'Footnotes list'!$D$9:$E$58,2,FALSE) ) )","v":""},null,null,null,null,{"$f":"IF(TRIM(DP82)=\"\", \"\", IF(VLOOKUP(DP82,'Footnotes list'!$D$9:$E$58,2,FALSE)=0,\"\",VLOOKUP(DP82,'Footnotes list'!$D$9:$E$58,2,FALSE) ) )","v":""},null,null,null,null,{"$f":"IF(TRIM(DU82)=\"\", \"\", IF(VLOOKUP(DU82,'Footnotes list'!$D$9:$E$58,2,FALSE)=0,\"\",VLOOKUP(DU82,'Footnotes list'!$D$9:$E$58,2,FALSE) ) )","v":""},null,null,null,null,{"$f":"IF(TRIM(DZ82)=\"\", \"\", IF(VLOOKUP(DZ82,'Footnotes list'!$D$9:$E$58,2,FALSE)=0,\"\",VLOOKUP(DZ82,'Footnotes list'!$D$9:$E$58,2,FALSE) ) )","v":""},null,null,null,null,{"$f":"IF(TRIM(EE82)=\"\", \"\", IF(VLOOKUP(EE82,'Footnotes list'!$D$9:$E$58,2,FALSE)=0,\"\",VLOOKUP(EE82,'Footnotes list'!$D$9:$E$58,2,FALSE) ) )","v":""},null,null,null,null,{"$f":"IF(TRIM(EJ82)=\"\", \"\", IF(VLOOKUP(EJ82,'Footnotes list'!$D$9:$E$58,2,FALSE)=0,\"\",VLOOKUP(EJ82,'Footnotes list'!$D$9:$E$58,2,FALSE) ) )","v":""},null,null,null,null,{"$f":"IF(TRIM(EO82)=\"\", \"\", IF(VLOOKUP(EO82,'Footnotes list'!$D$9:$E$58,2,FALSE)=0,\"\",VLOOKUP(EO82,'Footnotes list'!$D$9:$E$58,2,FALSE) ) )","v":""},null,null,null,null,{"$f":"IF(TRIM(ET82)=\"\", \"\", IF(VLOOKUP(ET82,'Footnotes list'!$D$9:$E$58,2,FALSE)=0,\"\",VLOOKUP(ET82,'Footnotes list'!$D$9:$E$58,2,FALSE) ) )","v":""},null,null,null,null,{"$f":"IF(TRIM(EY82)=\"\", \"\", IF(VLOOKUP(EY82,'Footnotes list'!$D$9:$E$58,2,FALSE)=0,\"\",VLOOKUP(EY82,'Footnotes list'!$D$9:$E$58,2,FALSE) ) )","v":""}]
[null,null,"C22_C23","ES_CS","environmental specific services",null,null,null,null,null,{"$f":"IF(TRIM(J83)=\"\", \"\", IF(VLOOKUP(J83,'Footnotes list'!$D$9:$E$58,2,FALSE)=0,\"\",VLOOKUP(J83,'Footnotes list'!$D$9:$E$58,2,FALSE) ) )","v":""},null,null,null,null,{"$f":"IF(TRIM(O83)=\"\", \"\", IF(VLOOKUP(O83,'Footnotes list'!$D$9:$E$58,2,FALSE)=0,\"\",VLOOKUP(O83,'Footnotes list'!$D$9:$E$58,2,FALSE) ) )","v":""},null,null,null,null,{"$f":"IF(TRIM(T83)=\"\", \"\", IF(VLOOKUP(T83,'Footnotes list'!$D$9:$E$58,2,FALSE)=0,\"\",VLOOKUP(T83,'Footnotes list'!$D$9:$E$58,2,FALSE) ) )","v":""},null,null,null,null,{"$f":"IF(TRIM(Y83)=\"\", \"\", IF(VLOOKUP(Y83,'Footnotes list'!$D$9:$E$58,2,FALSE)=0,\"\",VLOOKUP(Y83,'Footnotes list'!$D$9:$E$58,2,FALSE) ) )","v":""},null,null,null,null,{"$f":"IF(TRIM(AD83)=\"\", \"\", IF(VLOOKUP(AD83,'Footnotes list'!$D$9:$E$58,2,FALSE)=0,\"\",VLOOKUP(AD83,'Footnotes list'!$D$9:$E$58,2,FALSE) ) )","v":""},null,null,null,null,{"$f":"IF(TRIM(AI83)=\"\", \"\", IF(VLOOKUP(AI83,'Footnotes list'!$D$9:$E$58,2,FALSE)=0,\"\",VLOOKUP(AI83,'Footnotes list'!$D$9:$E$58,2,FALSE) ) )","v":""},null,null,null,null,{"$f":"IF(TRIM(AN83)=\"\", \"\", IF(VLOOKUP(AN83,'Footnotes list'!$D$9:$E$58,2,FALSE)=0,\"\",VLOOKUP(AN83,'Footnotes list'!$D$9:$E$58,2,FALSE) ) )","v":""},null,null,null,null,{"$f":"IF(TRIM(AS83)=\"\", \"\", IF(VLOOKUP(AS83,'Footnotes list'!$D$9:$E$58,2,FALSE)=0,\"\",VLOOKUP(AS83,'Footnotes list'!$D$9:$E$58,2,FALSE) ) )","v":""},null,null,null,null,{"$f":"IF(TRIM(AX83)=\"\", \"\", IF(VLOOKUP(AX83,'Footnotes list'!$D$9:$E$58,2,FALSE)=0,\"\",VLOOKUP(AX83,'Footnotes list'!$D$9:$E$58,2,FALSE) ) )","v":""},null,null,null,null,{"$f":"IF(TRIM(BC83)=\"\", \"\", IF(VLOOKUP(BC83,'Footnotes list'!$D$9:$E$58,2,FALSE)=0,\"\",VLOOKUP(BC83,'Footnotes list'!$D$9:$E$58,2,FALSE) ) )","v":""},null,null,null,null,{"$f":"IF(TRIM(BH83)=\"\", \"\", IF(VLOOKUP(BH83,'Footnotes list'!$D$9:$E$58,2,FALSE)=0,\"\",VLOOKUP(BH83,'Footnotes list'!$D$9:$E$58,2,FALSE) ) )","v":""},null,null,null,null,{"$f":"IF(TRIM(BM83)=\"\", \"\", IF(VLOOKUP(BM83,'Footnotes list'!$D$9:$E$58,2,FALSE)=0,\"\",VLOOKUP(BM83,'Footnotes list'!$D$9:$E$58,2,FALSE) ) )","v":""},null,null,null,null,{"$f":"IF(TRIM(BR83)=\"\", \"\", IF(VLOOKUP(BR83,'Footnotes list'!$D$9:$E$58,2,FALSE)=0,\"\",VLOOKUP(BR83,'Footnotes list'!$D$9:$E$58,2,FALSE) ) )","v":""},null,null,null,null,{"$f":"IF(TRIM(BW83)=\"\", \"\", IF(VLOOKUP(BW83,'Footnotes list'!$D$9:$E$58,2,FALSE)=0,\"\",VLOOKUP(BW83,'Footnotes list'!$D$9:$E$58,2,FALSE) ) )","v":""},null,null,null,null,{"$f":"IF(TRIM(CB83)=\"\", \"\", IF(VLOOKUP(CB83,'Footnotes list'!$D$9:$E$58,2,FALSE)=0,\"\",VLOOKUP(CB83,'Footnotes list'!$D$9:$E$58,2,FALSE) ) )","v":""},null,null,null,null,{"$f":"IF(TRIM(CG83)=\"\", \"\", IF(VLOOKUP(CG83,'Footnotes list'!$D$9:$E$58,2,FALSE)=0,\"\",VLOOKUP(CG83,'Footnotes list'!$D$9:$E$58,2,FALSE) ) )","v":""},null,null,null,null,{"$f":"IF(TRIM(CL83)=\"\", \"\", IF(VLOOKUP(CL83,'Footnotes list'!$D$9:$E$58,2,FALSE)=0,\"\",VLOOKUP(CL83,'Footnotes list'!$D$9:$E$58,2,FALSE) ) )","v":""},null,null,null,null,{"$f":"IF(TRIM(CQ83)=\"\", \"\", IF(VLOOKUP(CQ83,'Footnotes list'!$D$9:$E$58,2,FALSE)=0,\"\",VLOOKUP(CQ83,'Footnotes list'!$D$9:$E$58,2,FALSE) ) )","v":""},null,null,null,null,{"$f":"IF(TRIM(CV83)=\"\", \"\", IF(VLOOKUP(CV83,'Footnotes list'!$D$9:$E$58,2,FALSE)=0,\"\",VLOOKUP(CV83,'Footnotes list'!$D$9:$E$58,2,FALSE) ) )","v":""},null,null,null,null,{"$f":"IF(TRIM(DA83)=\"\", \"\", IF(VLOOKUP(DA83,'Footnotes list'!$D$9:$E$58,2,FALSE)=0,\"\",VLOOKUP(DA83,'Footnotes list'!$D$9:$E$58,2,FALSE) ) )","v":""},null,null,null,null,{"$f":"IF(TRIM(DF83)=\"\", \"\", IF(VLOOKUP(DF83,'Footnotes list'!$D$9:$E$58,2,FALSE)=0,\"\",VLOOKUP(DF83,'Footnotes list'!$D$9:$E$58,2,FALSE) ) )","v":""},null,null,null,null,{"$f":"IF(TRIM(DK83)=\"\", \"\", IF(VLOOKUP(DK83,'Footnotes list'!$D$9:$E$58,2,FALSE)=0,\"\",VLOOKUP(DK83,'Footnotes list'!$D$9:$E$58,2,FALSE) ) )","v":""},null,null,null,null,{"$f":"IF(TRIM(DP83)=\"\", \"\", IF(VLOOKUP(DP83,'Footnotes list'!$D$9:$E$58,2,FALSE)=0,\"\",VLOOKUP(DP83,'Footnotes list'!$D$9:$E$58,2,FALSE) ) )","v":""},null,null,null,null,{"$f":"IF(TRIM(DU83)=\"\", \"\", IF(VLOOKUP(DU83,'Footnotes list'!$D$9:$E$58,2,FALSE)=0,\"\",VLOOKUP(DU83,'Footnotes list'!$D$9:$E$58,2,FALSE) ) )","v":""},null,null,null,null,{"$f":"IF(TRIM(DZ83)=\"\", \"\", IF(VLOOKUP(DZ83,'Footnotes list'!$D$9:$E$58,2,FALSE)=0,\"\",VLOOKUP(DZ83,'Footnotes list'!$D$9:$E$58,2,FALSE) ) )","v":""},null,null,null,null,{"$f":"IF(TRIM(EE83)=\"\", \"\", IF(VLOOKUP(EE83,'Footnotes list'!$D$9:$E$58,2,FALSE)=0,\"\",VLOOKUP(EE83,'Footnotes list'!$D$9:$E$58,2,FALSE) ) )","v":""},null,null,null,null,{"$f":"IF(TRIM(EJ83)=\"\", \"\", IF(VLOOKUP(EJ83,'Footnotes list'!$D$9:$E$58,2,FALSE)=0,\"\",VLOOKUP(EJ83,'Footnotes list'!$D$9:$E$58,2,FALSE) ) )","v":""},null,null,null,null,{"$f":"IF(TRIM(EO83)=\"\", \"\", IF(VLOOKUP(EO83,'Footnotes list'!$D$9:$E$58,2,FALSE)=0,\"\",VLOOKUP(EO83,'Footnotes list'!$D$9:$E$58,2,FALSE) ) )","v":""},null,null,null,null,{"$f":"IF(TRIM(ET83)=\"\", \"\", IF(VLOOKUP(ET83,'Footnotes list'!$D$9:$E$58,2,FALSE)=0,\"\",VLOOKUP(ET83,'Footnotes list'!$D$9:$E$58,2,FALSE) ) )","v":""},null,null,null,null,{"$f":"IF(TRIM(EY83)=\"\", \"\", IF(VLOOKUP(EY83,'Footnotes list'!$D$9:$E$58,2,FALSE)=0,\"\",VLOOKUP(EY83,'Footnotes list'!$D$9:$E$58,2,FALSE) ) )","v":""}]
[null,null,"C22_C23","C_REP","cleaner and resource efficient products",null,null,null,null,null,{"$f":"IF(TRIM(J84)=\"\", \"\", IF(VLOOKUP(J84,'Footnotes list'!$D$9:$E$58,2,FALSE)=0,\"\",VLOOKUP(J84,'Footnotes list'!$D$9:$E$58,2,FALSE) ) )","v":""},null,null,null,null,{"$f":"IF(TRIM(O84)=\"\", \"\", IF(VLOOKUP(O84,'Footnotes list'!$D$9:$E$58,2,FALSE)=0,\"\",VLOOKUP(O84,'Footnotes list'!$D$9:$E$58,2,FALSE) ) )","v":""},null,null,null,null,{"$f":"IF(TRIM(T84)=\"\", \"\", IF(VLOOKUP(T84,'Footnotes list'!$D$9:$E$58,2,FALSE)=0,\"\",VLOOKUP(T84,'Footnotes list'!$D$9:$E$58,2,FALSE) ) )","v":""},null,null,null,null,{"$f":"IF(TRIM(Y84)=\"\", \"\", IF(VLOOKUP(Y84,'Footnotes list'!$D$9:$E$58,2,FALSE)=0,\"\",VLOOKUP(Y84,'Footnotes list'!$D$9:$E$58,2,FALSE) ) )","v":""},null,null,null,null,{"$f":"IF(TRIM(AD84)=\"\", \"\", IF(VLOOKUP(AD84,'Footnotes list'!$D$9:$E$58,2,FALSE)=0,\"\",VLOOKUP(AD84,'Footnotes list'!$D$9:$E$58,2,FALSE) ) )","v":""},null,null,null,null,{"$f":"IF(TRIM(AI84)=\"\", \"\", IF(VLOOKUP(AI84,'Footnotes list'!$D$9:$E$58,2,FALSE)=0,\"\",VLOOKUP(AI84,'Footnotes list'!$D$9:$E$58,2,FALSE) ) )","v":""},null,null,null,null,{"$f":"IF(TRIM(AN84)=\"\", \"\", IF(VLOOKUP(AN84,'Footnotes list'!$D$9:$E$58,2,FALSE)=0,\"\",VLOOKUP(AN84,'Footnotes list'!$D$9:$E$58,2,FALSE) ) )","v":""},null,null,null,null,{"$f":"IF(TRIM(AS84)=\"\", \"\", IF(VLOOKUP(AS84,'Footnotes list'!$D$9:$E$58,2,FALSE)=0,\"\",VLOOKUP(AS84,'Footnotes list'!$D$9:$E$58,2,FALSE) ) )","v":""},null,null,null,null,{"$f":"IF(TRIM(AX84)=\"\", \"\", IF(VLOOKUP(AX84,'Footnotes list'!$D$9:$E$58,2,FALSE)=0,\"\",VLOOKUP(AX84,'Footnotes list'!$D$9:$E$58,2,FALSE) ) )","v":""},null,null,null,null,{"$f":"IF(TRIM(BC84)=\"\", \"\", IF(VLOOKUP(BC84,'Footnotes list'!$D$9:$E$58,2,FALSE)=0,\"\",VLOOKUP(BC84,'Footnotes list'!$D$9:$E$58,2,FALSE) ) )","v":""},null,null,null,null,{"$f":"IF(TRIM(BH84)=\"\", \"\", IF(VLOOKUP(BH84,'Footnotes list'!$D$9:$E$58,2,FALSE)=0,\"\",VLOOKUP(BH84,'Footnotes list'!$D$9:$E$58,2,FALSE) ) )","v":""},null,null,null,null,{"$f":"IF(TRIM(BM84)=\"\", \"\", IF(VLOOKUP(BM84,'Footnotes list'!$D$9:$E$58,2,FALSE)=0,\"\",VLOOKUP(BM84,'Footnotes list'!$D$9:$E$58,2,FALSE) ) )","v":""},null,null,null,null,{"$f":"IF(TRIM(BR84)=\"\", \"\", IF(VLOOKUP(BR84,'Footnotes list'!$D$9:$E$58,2,FALSE)=0,\"\",VLOOKUP(BR84,'Footnotes list'!$D$9:$E$58,2,FALSE) ) )","v":""},null,null,null,null,{"$f":"IF(TRIM(BW84)=\"\", \"\", IF(VLOOKUP(BW84,'Footnotes list'!$D$9:$E$58,2,FALSE)=0,\"\",VLOOKUP(BW84,'Footnotes list'!$D$9:$E$58,2,FALSE) ) )","v":""},null,null,null,null,{"$f":"IF(TRIM(CB84)=\"\", \"\", IF(VLOOKUP(CB84,'Footnotes list'!$D$9:$E$58,2,FALSE)=0,\"\",VLOOKUP(CB84,'Footnotes list'!$D$9:$E$58,2,FALSE) ) )","v":""},null,null,null,null,{"$f":"IF(TRIM(CG84)=\"\", \"\", IF(VLOOKUP(CG84,'Footnotes list'!$D$9:$E$58,2,FALSE)=0,\"\",VLOOKUP(CG84,'Footnotes list'!$D$9:$E$58,2,FALSE) ) )","v":""},null,null,null,null,{"$f":"IF(TRIM(CL84)=\"\", \"\", IF(VLOOKUP(CL84,'Footnotes list'!$D$9:$E$58,2,FALSE)=0,\"\",VLOOKUP(CL84,'Footnotes list'!$D$9:$E$58,2,FALSE) ) )","v":""},null,null,null,null,{"$f":"IF(TRIM(CQ84)=\"\", \"\", IF(VLOOKUP(CQ84,'Footnotes list'!$D$9:$E$58,2,FALSE)=0,\"\",VLOOKUP(CQ84,'Footnotes list'!$D$9:$E$58,2,FALSE) ) )","v":""},null,null,null,null,{"$f":"IF(TRIM(CV84)=\"\", \"\", IF(VLOOKUP(CV84,'Footnotes list'!$D$9:$E$58,2,FALSE)=0,\"\",VLOOKUP(CV84,'Footnotes list'!$D$9:$E$58,2,FALSE) ) )","v":""},null,null,null,null,{"$f":"IF(TRIM(DA84)=\"\", \"\", IF(VLOOKUP(DA84,'Footnotes list'!$D$9:$E$58,2,FALSE)=0,\"\",VLOOKUP(DA84,'Footnotes list'!$D$9:$E$58,2,FALSE) ) )","v":""},null,null,null,null,{"$f":"IF(TRIM(DF84)=\"\", \"\", IF(VLOOKUP(DF84,'Footnotes list'!$D$9:$E$58,2,FALSE)=0,\"\",VLOOKUP(DF84,'Footnotes list'!$D$9:$E$58,2,FALSE) ) )","v":""},null,null,null,null,{"$f":"IF(TRIM(DK84)=\"\", \"\", IF(VLOOKUP(DK84,'Footnotes list'!$D$9:$E$58,2,FALSE)=0,\"\",VLOOKUP(DK84,'Footnotes list'!$D$9:$E$58,2,FALSE) ) )","v":""},null,null,null,null,{"$f":"IF(TRIM(DP84)=\"\", \"\", IF(VLOOKUP(DP84,'Footnotes list'!$D$9:$E$58,2,FALSE)=0,\"\",VLOOKUP(DP84,'Footnotes list'!$D$9:$E$58,2,FALSE) ) )","v":""},null,null,null,null,{"$f":"IF(TRIM(DU84)=\"\", \"\", IF(VLOOKUP(DU84,'Footnotes list'!$D$9:$E$58,2,FALSE)=0,\"\",VLOOKUP(DU84,'Footnotes list'!$D$9:$E$58,2,FALSE) ) )","v":""},null,null,null,null,{"$f":"IF(TRIM(DZ84)=\"\", \"\", IF(VLOOKUP(DZ84,'Footnotes list'!$D$9:$E$58,2,FALSE)=0,\"\",VLOOKUP(DZ84,'Footnotes list'!$D$9:$E$58,2,FALSE) ) )","v":""},null,null,null,null,{"$f":"IF(TRIM(EE84)=\"\", \"\", IF(VLOOKUP(EE84,'Footnotes list'!$D$9:$E$58,2,FALSE)=0,\"\",VLOOKUP(EE84,'Footnotes list'!$D$9:$E$58,2,FALSE) ) )","v":""},null,null,null,null,{"$f":"IF(TRIM(EJ84)=\"\", \"\", IF(VLOOKUP(EJ84,'Footnotes list'!$D$9:$E$58,2,FALSE)=0,\"\",VLOOKUP(EJ84,'Footnotes list'!$D$9:$E$58,2,FALSE) ) )","v":""},null,null,null,null,{"$f":"IF(TRIM(EO84)=\"\", \"\", IF(VLOOKUP(EO84,'Footnotes list'!$D$9:$E$58,2,FALSE)=0,\"\",VLOOKUP(EO84,'Footnotes list'!$D$9:$E$58,2,FALSE) ) )","v":""},null,null,null,null,{"$f":"IF(TRIM(ET84)=\"\", \"\", IF(VLOOKUP(ET84,'Footnotes list'!$D$9:$E$58,2,FALSE)=0,\"\",VLOOKUP(ET84,'Footnotes list'!$D$9:$E$58,2,FALSE) ) )","v":""},null,null,null,null,{"$f":"IF(TRIM(EY84)=\"\", \"\", IF(VLOOKUP(EY84,'Footnotes list'!$D$9:$E$58,2,FALSE)=0,\"\",VLOOKUP(EY84,'Footnotes list'!$D$9:$E$58,2,FALSE) ) )","v":""}]
[null,null,"C24_C25","TOT_EGSS","Total C24 - C25 Manufacture of basic metals and fabricated metal products, except machinery and equipment, of which:",null,null,null,null,null,{"$f":"IF(TRIM(J85)=\"\", \"\", IF(VLOOKUP(J85,'Footnotes list'!$D$9:$E$58,2,FALSE)=0,\"\",VLOOKUP(J85,'Footnotes list'!$D$9:$E$58,2,FALSE) ) )","v":""},null,null,null,null,{"$f":"IF(TRIM(O85)=\"\", \"\", IF(VLOOKUP(O85,'Footnotes list'!$D$9:$E$58,2,FALSE)=0,\"\",VLOOKUP(O85,'Footnotes list'!$D$9:$E$58,2,FALSE) ) )","v":""},null,null,null,null,{"$f":"IF(TRIM(T85)=\"\", \"\", IF(VLOOKUP(T85,'Footnotes list'!$D$9:$E$58,2,FALSE)=0,\"\",VLOOKUP(T85,'Footnotes list'!$D$9:$E$58,2,FALSE) ) )","v":""},null,null,null,null,{"$f":"IF(TRIM(Y85)=\"\", \"\", IF(VLOOKUP(Y85,'Footnotes list'!$D$9:$E$58,2,FALSE)=0,\"\",VLOOKUP(Y85,'Footnotes list'!$D$9:$E$58,2,FALSE) ) )","v":""},null,null,null,null,{"$f":"IF(TRIM(AD85)=\"\", \"\", IF(VLOOKUP(AD85,'Footnotes list'!$D$9:$E$58,2,FALSE)=0,\"\",VLOOKUP(AD85,'Footnotes list'!$D$9:$E$58,2,FALSE) ) )","v":""},null,null,null,null,{"$f":"IF(TRIM(AI85)=\"\", \"\", IF(VLOOKUP(AI85,'Footnotes list'!$D$9:$E$58,2,FALSE)=0,\"\",VLOOKUP(AI85,'Footnotes list'!$D$9:$E$58,2,FALSE) ) )","v":""},null,null,null,null,{"$f":"IF(TRIM(AN85)=\"\", \"\", IF(VLOOKUP(AN85,'Footnotes list'!$D$9:$E$58,2,FALSE)=0,\"\",VLOOKUP(AN85,'Footnotes list'!$D$9:$E$58,2,FALSE) ) )","v":""},null,null,null,null,{"$f":"IF(TRIM(AS85)=\"\", \"\", IF(VLOOKUP(AS85,'Footnotes list'!$D$9:$E$58,2,FALSE)=0,\"\",VLOOKUP(AS85,'Footnotes list'!$D$9:$E$58,2,FALSE) ) )","v":""},null,null,null,null,{"$f":"IF(TRIM(AX85)=\"\", \"\", IF(VLOOKUP(AX85,'Footnotes list'!$D$9:$E$58,2,FALSE)=0,\"\",VLOOKUP(AX85,'Footnotes list'!$D$9:$E$58,2,FALSE) ) )","v":""},null,null,null,null,{"$f":"IF(TRIM(BC85)=\"\", \"\", IF(VLOOKUP(BC85,'Footnotes list'!$D$9:$E$58,2,FALSE)=0,\"\",VLOOKUP(BC85,'Footnotes list'!$D$9:$E$58,2,FALSE) ) )","v":""},null,null,null,null,{"$f":"IF(TRIM(BH85)=\"\", \"\", IF(VLOOKUP(BH85,'Footnotes list'!$D$9:$E$58,2,FALSE)=0,\"\",VLOOKUP(BH85,'Footnotes list'!$D$9:$E$58,2,FALSE) ) )","v":""},null,null,null,null,{"$f":"IF(TRIM(BM85)=\"\", \"\", IF(VLOOKUP(BM85,'Footnotes list'!$D$9:$E$58,2,FALSE)=0,\"\",VLOOKUP(BM85,'Footnotes list'!$D$9:$E$58,2,FALSE) ) )","v":""},null,null,null,null,{"$f":"IF(TRIM(BR85)=\"\", \"\", IF(VLOOKUP(BR85,'Footnotes list'!$D$9:$E$58,2,FALSE)=0,\"\",VLOOKUP(BR85,'Footnotes list'!$D$9:$E$58,2,FALSE) ) )","v":""},null,null,null,null,{"$f":"IF(TRIM(BW85)=\"\", \"\", IF(VLOOKUP(BW85,'Footnotes list'!$D$9:$E$58,2,FALSE)=0,\"\",VLOOKUP(BW85,'Footnotes list'!$D$9:$E$58,2,FALSE) ) )","v":""},null,null,null,null,{"$f":"IF(TRIM(CB85)=\"\", \"\", IF(VLOOKUP(CB85,'Footnotes list'!$D$9:$E$58,2,FALSE)=0,\"\",VLOOKUP(CB85,'Footnotes list'!$D$9:$E$58,2,FALSE) ) )","v":""},null,null,null,null,{"$f":"IF(TRIM(CG85)=\"\", \"\", IF(VLOOKUP(CG85,'Footnotes list'!$D$9:$E$58,2,FALSE)=0,\"\",VLOOKUP(CG85,'Footnotes list'!$D$9:$E$58,2,FALSE) ) )","v":""},null,null,null,null,{"$f":"IF(TRIM(CL85)=\"\", \"\", IF(VLOOKUP(CL85,'Footnotes list'!$D$9:$E$58,2,FALSE)=0,\"\",VLOOKUP(CL85,'Footnotes list'!$D$9:$E$58,2,FALSE) ) )","v":""},null,null,null,null,{"$f":"IF(TRIM(CQ85)=\"\", \"\", IF(VLOOKUP(CQ85,'Footnotes list'!$D$9:$E$58,2,FALSE)=0,\"\",VLOOKUP(CQ85,'Footnotes list'!$D$9:$E$58,2,FALSE) ) )","v":""},null,null,null,null,{"$f":"IF(TRIM(CV85)=\"\", \"\", IF(VLOOKUP(CV85,'Footnotes list'!$D$9:$E$58,2,FALSE)=0,\"\",VLOOKUP(CV85,'Footnotes list'!$D$9:$E$58,2,FALSE) ) )","v":""},null,null,null,null,{"$f":"IF(TRIM(DA85)=\"\", \"\", IF(VLOOKUP(DA85,'Footnotes list'!$D$9:$E$58,2,FALSE)=0,\"\",VLOOKUP(DA85,'Footnotes list'!$D$9:$E$58,2,FALSE) ) )","v":""},null,null,null,null,{"$f":"IF(TRIM(DF85)=\"\", \"\", IF(VLOOKUP(DF85,'Footnotes list'!$D$9:$E$58,2,FALSE)=0,\"\",VLOOKUP(DF85,'Footnotes list'!$D$9:$E$58,2,FALSE) ) )","v":""},null,null,null,null,{"$f":"IF(TRIM(DK85)=\"\", \"\", IF(VLOOKUP(DK85,'Footnotes list'!$D$9:$E$58,2,FALSE)=0,\"\",VLOOKUP(DK85,'Footnotes list'!$D$9:$E$58,2,FALSE) ) )","v":""},null,null,null,null,{"$f":"IF(TRIM(DP85)=\"\", \"\", IF(VLOOKUP(DP85,'Footnotes list'!$D$9:$E$58,2,FALSE)=0,\"\",VLOOKUP(DP85,'Footnotes list'!$D$9:$E$58,2,FALSE) ) )","v":""},null,null,null,null,{"$f":"IF(TRIM(DU85)=\"\", \"\", IF(VLOOKUP(DU85,'Footnotes list'!$D$9:$E$58,2,FALSE)=0,\"\",VLOOKUP(DU85,'Footnotes list'!$D$9:$E$58,2,FALSE) ) )","v":""},null,null,null,null,{"$f":"IF(TRIM(DZ85)=\"\", \"\", IF(VLOOKUP(DZ85,'Footnotes list'!$D$9:$E$58,2,FALSE)=0,\"\",VLOOKUP(DZ85,'Footnotes list'!$D$9:$E$58,2,FALSE) ) )","v":""},null,null,null,null,{"$f":"IF(TRIM(EE85)=\"\", \"\", IF(VLOOKUP(EE85,'Footnotes list'!$D$9:$E$58,2,FALSE)=0,\"\",VLOOKUP(EE85,'Footnotes list'!$D$9:$E$58,2,FALSE) ) )","v":""},null,null,null,null,{"$f":"IF(TRIM(EJ85)=\"\", \"\", IF(VLOOKUP(EJ85,'Footnotes list'!$D$9:$E$58,2,FALSE)=0,\"\",VLOOKUP(EJ85,'Footnotes list'!$D$9:$E$58,2,FALSE) ) )","v":""},null,null,null,null,{"$f":"IF(TRIM(EO85)=\"\", \"\", IF(VLOOKUP(EO85,'Footnotes list'!$D$9:$E$58,2,FALSE)=0,\"\",VLOOKUP(EO85,'Footnotes list'!$D$9:$E$58,2,FALSE) ) )","v":""},null,null,null,null,{"$f":"IF(TRIM(ET85)=\"\", \"\", IF(VLOOKUP(ET85,'Footnotes list'!$D$9:$E$58,2,FALSE)=0,\"\",VLOOKUP(ET85,'Footnotes list'!$D$9:$E$58,2,FALSE) ) )","v":""},null,null,null,null,{"$f":"IF(TRIM(EY85)=\"\", \"\", IF(VLOOKUP(EY85,'Footnotes list'!$D$9:$E$58,2,FALSE)=0,\"\",VLOOKUP(EY85,'Footnotes list'!$D$9:$E$58,2,FALSE) ) )","v":""}]
[null,null,"C24_C25","ANC","ancillary activities",null,null,null,null,null,{"$f":"IF(TRIM(J86)=\"\", \"\", IF(VLOOKUP(J86,'Footnotes list'!$D$9:$E$58,2,FALSE)=0,\"\",VLOOKUP(J86,'Footnotes list'!$D$9:$E$58,2,FALSE) ) )","v":""},null,null,null,null,{"$f":"IF(TRIM(O86)=\"\", \"\", IF(VLOOKUP(O86,'Footnotes list'!$D$9:$E$58,2,FALSE)=0,\"\",VLOOKUP(O86,'Footnotes list'!$D$9:$E$58,2,FALSE) ) )","v":""},null,null,null,null,{"$f":"IF(TRIM(T86)=\"\", \"\", IF(VLOOKUP(T86,'Footnotes list'!$D$9:$E$58,2,FALSE)=0,\"\",VLOOKUP(T86,'Footnotes list'!$D$9:$E$58,2,FALSE) ) )","v":""},null,null,null,null,{"$f":"IF(TRIM(Y86)=\"\", \"\", IF(VLOOKUP(Y86,'Footnotes list'!$D$9:$E$58,2,FALSE)=0,\"\",VLOOKUP(Y86,'Footnotes list'!$D$9:$E$58,2,FALSE) ) )","v":""},null,null,null,null,{"$f":"IF(TRIM(AD86)=\"\", \"\", IF(VLOOKUP(AD86,'Footnotes list'!$D$9:$E$58,2,FALSE)=0,\"\",VLOOKUP(AD86,'Footnotes list'!$D$9:$E$58,2,FALSE) ) )","v":""},null,null,null,null,{"$f":"IF(TRIM(AI86)=\"\", \"\", IF(VLOOKUP(AI86,'Footnotes list'!$D$9:$E$58,2,FALSE)=0,\"\",VLOOKUP(AI86,'Footnotes list'!$D$9:$E$58,2,FALSE) ) )","v":""},null,null,null,null,{"$f":"IF(TRIM(AN86)=\"\", \"\", IF(VLOOKUP(AN86,'Footnotes list'!$D$9:$E$58,2,FALSE)=0,\"\",VLOOKUP(AN86,'Footnotes list'!$D$9:$E$58,2,FALSE) ) )","v":""},null,null,null,null,{"$f":"IF(TRIM(AS86)=\"\", \"\", IF(VLOOKUP(AS86,'Footnotes list'!$D$9:$E$58,2,FALSE)=0,\"\",VLOOKUP(AS86,'Footnotes list'!$D$9:$E$58,2,FALSE) ) )","v":""},null,null,null,null,{"$f":"IF(TRIM(AX86)=\"\", \"\", IF(VLOOKUP(AX86,'Footnotes list'!$D$9:$E$58,2,FALSE)=0,\"\",VLOOKUP(AX86,'Footnotes list'!$D$9:$E$58,2,FALSE) ) )","v":""},null,null,null,null,{"$f":"IF(TRIM(BC86)=\"\", \"\", IF(VLOOKUP(BC86,'Footnotes list'!$D$9:$E$58,2,FALSE)=0,\"\",VLOOKUP(BC86,'Footnotes list'!$D$9:$E$58,2,FALSE) ) )","v":""},null,null,null,null,{"$f":"IF(TRIM(BH86)=\"\", \"\", IF(VLOOKUP(BH86,'Footnotes list'!$D$9:$E$58,2,FALSE)=0,\"\",VLOOKUP(BH86,'Footnotes list'!$D$9:$E$58,2,FALSE) ) )","v":""},null,null,null,null,{"$f":"IF(TRIM(BM86)=\"\", \"\", IF(VLOOKUP(BM86,'Footnotes list'!$D$9:$E$58,2,FALSE)=0,\"\",VLOOKUP(BM86,'Footnotes list'!$D$9:$E$58,2,FALSE) ) )","v":""},null,null,null,null,{"$f":"IF(TRIM(BR86)=\"\", \"\", IF(VLOOKUP(BR86,'Footnotes list'!$D$9:$E$58,2,FALSE)=0,\"\",VLOOKUP(BR86,'Footnotes list'!$D$9:$E$58,2,FALSE) ) )","v":""},null,null,null,null,{"$f":"IF(TRIM(BW86)=\"\", \"\", IF(VLOOKUP(BW86,'Footnotes list'!$D$9:$E$58,2,FALSE)=0,\"\",VLOOKUP(BW86,'Footnotes list'!$D$9:$E$58,2,FALSE) ) )","v":""},null,null,null,null,{"$f":"IF(TRIM(CB86)=\"\", \"\", IF(VLOOKUP(CB86,'Footnotes list'!$D$9:$E$58,2,FALSE)=0,\"\",VLOOKUP(CB86,'Footnotes list'!$D$9:$E$58,2,FALSE) ) )","v":""},null,null,null,null,{"$f":"IF(TRIM(CG86)=\"\", \"\", IF(VLOOKUP(CG86,'Footnotes list'!$D$9:$E$58,2,FALSE)=0,\"\",VLOOKUP(CG86,'Footnotes list'!$D$9:$E$58,2,FALSE) ) )","v":""},null,null,null,null,{"$f":"IF(TRIM(CL86)=\"\", \"\", IF(VLOOKUP(CL86,'Footnotes list'!$D$9:$E$58,2,FALSE)=0,\"\",VLOOKUP(CL86,'Footnotes list'!$D$9:$E$58,2,FALSE) ) )","v":""},null,null,null,null,{"$f":"IF(TRIM(CQ86)=\"\", \"\", IF(VLOOKUP(CQ86,'Footnotes list'!$D$9:$E$58,2,FALSE)=0,\"\",VLOOKUP(CQ86,'Footnotes list'!$D$9:$E$58,2,FALSE) ) )","v":""},null,null,null,null,{"$f":"IF(TRIM(CV86)=\"\", \"\", IF(VLOOKUP(CV86,'Footnotes list'!$D$9:$E$58,2,FALSE)=0,\"\",VLOOKUP(CV86,'Footnotes list'!$D$9:$E$58,2,FALSE) ) )","v":""},null,null,null,null,{"$f":"IF(TRIM(DA86)=\"\", \"\", IF(VLOOKUP(DA86,'Footnotes list'!$D$9:$E$58,2,FALSE)=0,\"\",VLOOKUP(DA86,'Footnotes list'!$D$9:$E$58,2,FALSE) ) )","v":""},null,null,null,null,{"$f":"IF(TRIM(DF86)=\"\", \"\", IF(VLOOKUP(DF86,'Footnotes list'!$D$9:$E$58,2,FALSE)=0,\"\",VLOOKUP(DF86,'Footnotes list'!$D$9:$E$58,2,FALSE) ) )","v":""},null,null,null,null,{"$f":"IF(TRIM(DK86)=\"\", \"\", IF(VLOOKUP(DK86,'Footnotes list'!$D$9:$E$58,2,FALSE)=0,\"\",VLOOKUP(DK86,'Footnotes list'!$D$9:$E$58,2,FALSE) ) )","v":""},null,null,null,null,{"$f":"IF(TRIM(DP86)=\"\", \"\", IF(VLOOKUP(DP86,'Footnotes list'!$D$9:$E$58,2,FALSE)=0,\"\",VLOOKUP(DP86,'Footnotes list'!$D$9:$E$58,2,FALSE) ) )","v":""},null,null,null,null,{"$f":"IF(TRIM(DU86)=\"\", \"\", IF(VLOOKUP(DU86,'Footnotes list'!$D$9:$E$58,2,FALSE)=0,\"\",VLOOKUP(DU86,'Footnotes list'!$D$9:$E$58,2,FALSE) ) )","v":""},null,null,null,null,{"$f":"IF(TRIM(DZ86)=\"\", \"\", IF(VLOOKUP(DZ86,'Footnotes list'!$D$9:$E$58,2,FALSE)=0,\"\",VLOOKUP(DZ86,'Footnotes list'!$D$9:$E$58,2,FALSE) ) )","v":""},null,null,null,null,{"$f":"IF(TRIM(EE86)=\"\", \"\", IF(VLOOKUP(EE86,'Footnotes list'!$D$9:$E$58,2,FALSE)=0,\"\",VLOOKUP(EE86,'Footnotes list'!$D$9:$E$58,2,FALSE) ) )","v":""},null,null,null,null,{"$f":"IF(TRIM(EJ86)=\"\", \"\", IF(VLOOKUP(EJ86,'Footnotes list'!$D$9:$E$58,2,FALSE)=0,\"\",VLOOKUP(EJ86,'Footnotes list'!$D$9:$E$58,2,FALSE) ) )","v":""},null,null,null,null,{"$f":"IF(TRIM(EO86)=\"\", \"\", IF(VLOOKUP(EO86,'Footnotes list'!$D$9:$E$58,2,FALSE)=0,\"\",VLOOKUP(EO86,'Footnotes list'!$D$9:$E$58,2,FALSE) ) )","v":""},null,null,null,null,{"$f":"IF(TRIM(ET86)=\"\", \"\", IF(VLOOKUP(ET86,'Footnotes list'!$D$9:$E$58,2,FALSE)=0,\"\",VLOOKUP(ET86,'Footnotes list'!$D$9:$E$58,2,FALSE) ) )","v":""},null,null,null,null,{"$f":"IF(TRIM(EY86)=\"\", \"\", IF(VLOOKUP(EY86,'Footnotes list'!$D$9:$E$58,2,FALSE)=0,\"\",VLOOKUP(EY86,'Footnotes list'!$D$9:$E$58,2,FALSE) ) )","v":""}]
[null,null,"C24_C25","NMKT","non-market activities",null,null,null,null,null,{"$f":"IF(TRIM(J87)=\"\", \"\", IF(VLOOKUP(J87,'Footnotes list'!$D$9:$E$58,2,FALSE)=0,\"\",VLOOKUP(J87,'Footnotes list'!$D$9:$E$58,2,FALSE) ) )","v":""},null,null,null,null,{"$f":"IF(TRIM(O87)=\"\", \"\", IF(VLOOKUP(O87,'Footnotes list'!$D$9:$E$58,2,FALSE)=0,\"\",VLOOKUP(O87,'Footnotes list'!$D$9:$E$58,2,FALSE) ) )","v":""},null,null,null,null,{"$f":"IF(TRIM(T87)=\"\", \"\", IF(VLOOKUP(T87,'Footnotes list'!$D$9:$E$58,2,FALSE)=0,\"\",VLOOKUP(T87,'Footnotes list'!$D$9:$E$58,2,FALSE) ) )","v":""},null,null,null,null,{"$f":"IF(TRIM(Y87)=\"\", \"\", IF(VLOOKUP(Y87,'Footnotes list'!$D$9:$E$58,2,FALSE)=0,\"\",VLOOKUP(Y87,'Footnotes list'!$D$9:$E$58,2,FALSE) ) )","v":""},null,null,null,null,{"$f":"IF(TRIM(AD87)=\"\", \"\", IF(VLOOKUP(AD87,'Footnotes list'!$D$9:$E$58,2,FALSE)=0,\"\",VLOOKUP(AD87,'Footnotes list'!$D$9:$E$58,2,FALSE) ) )","v":""},null,null,null,null,{"$f":"IF(TRIM(AI87)=\"\", \"\", IF(VLOOKUP(AI87,'Footnotes list'!$D$9:$E$58,2,FALSE)=0,\"\",VLOOKUP(AI87,'Footnotes list'!$D$9:$E$58,2,FALSE) ) )","v":""},null,null,null,null,{"$f":"IF(TRIM(AN87)=\"\", \"\", IF(VLOOKUP(AN87,'Footnotes list'!$D$9:$E$58,2,FALSE)=0,\"\",VLOOKUP(AN87,'Footnotes list'!$D$9:$E$58,2,FALSE) ) )","v":""},null,null,null,null,{"$f":"IF(TRIM(AS87)=\"\", \"\", IF(VLOOKUP(AS87,'Footnotes list'!$D$9:$E$58,2,FALSE)=0,\"\",VLOOKUP(AS87,'Footnotes list'!$D$9:$E$58,2,FALSE) ) )","v":""},null,null,null,null,{"$f":"IF(TRIM(AX87)=\"\", \"\", IF(VLOOKUP(AX87,'Footnotes list'!$D$9:$E$58,2,FALSE)=0,\"\",VLOOKUP(AX87,'Footnotes list'!$D$9:$E$58,2,FALSE) ) )","v":""},null,null,null,null,{"$f":"IF(TRIM(BC87)=\"\", \"\", IF(VLOOKUP(BC87,'Footnotes list'!$D$9:$E$58,2,FALSE)=0,\"\",VLOOKUP(BC87,'Footnotes list'!$D$9:$E$58,2,FALSE) ) )","v":""},null,null,null,null,{"$f":"IF(TRIM(BH87)=\"\", \"\", IF(VLOOKUP(BH87,'Footnotes list'!$D$9:$E$58,2,FALSE)=0,\"\",VLOOKUP(BH87,'Footnotes list'!$D$9:$E$58,2,FALSE) ) )","v":""},null,null,null,null,{"$f":"IF(TRIM(BM87)=\"\", \"\", IF(VLOOKUP(BM87,'Footnotes list'!$D$9:$E$58,2,FALSE)=0,\"\",VLOOKUP(BM87,'Footnotes list'!$D$9:$E$58,2,FALSE) ) )","v":""},null,null,null,null,{"$f":"IF(TRIM(BR87)=\"\", \"\", IF(VLOOKUP(BR87,'Footnotes list'!$D$9:$E$58,2,FALSE)=0,\"\",VLOOKUP(BR87,'Footnotes list'!$D$9:$E$58,2,FALSE) ) )","v":""},null,null,null,null,{"$f":"IF(TRIM(BW87)=\"\", \"\", IF(VLOOKUP(BW87,'Footnotes list'!$D$9:$E$58,2,FALSE)=0,\"\",VLOOKUP(BW87,'Footnotes list'!$D$9:$E$58,2,FALSE) ) )","v":""},null,null,null,null,{"$f":"IF(TRIM(CB87)=\"\", \"\", IF(VLOOKUP(CB87,'Footnotes list'!$D$9:$E$58,2,FALSE)=0,\"\",VLOOKUP(CB87,'Footnotes list'!$D$9:$E$58,2,FALSE) ) )","v":""},null,null,null,null,{"$f":"IF(TRIM(CG87)=\"\", \"\", IF(VLOOKUP(CG87,'Footnotes list'!$D$9:$E$58,2,FALSE)=0,\"\",VLOOKUP(CG87,'Footnotes list'!$D$9:$E$58,2,FALSE) ) )","v":""},null,null,null,null,{"$f":"IF(TRIM(CL87)=\"\", \"\", IF(VLOOKUP(CL87,'Footnotes list'!$D$9:$E$58,2,FALSE)=0,\"\",VLOOKUP(CL87,'Footnotes list'!$D$9:$E$58,2,FALSE) ) )","v":""},null,null,null,null,{"$f":"IF(TRIM(CQ87)=\"\", \"\", IF(VLOOKUP(CQ87,'Footnotes list'!$D$9:$E$58,2,FALSE)=0,\"\",VLOOKUP(CQ87,'Footnotes list'!$D$9:$E$58,2,FALSE) ) )","v":""},null,null,null,null,{"$f":"IF(TRIM(CV87)=\"\", \"\", IF(VLOOKUP(CV87,'Footnotes list'!$D$9:$E$58,2,FALSE)=0,\"\",VLOOKUP(CV87,'Footnotes list'!$D$9:$E$58,2,FALSE) ) )","v":""},null,null,null,null,{"$f":"IF(TRIM(DA87)=\"\", \"\", IF(VLOOKUP(DA87,'Footnotes list'!$D$9:$E$58,2,FALSE)=0,\"\",VLOOKUP(DA87,'Footnotes list'!$D$9:$E$58,2,FALSE) ) )","v":""},null,null,null,null,{"$f":"IF(TRIM(DF87)=\"\", \"\", IF(VLOOKUP(DF87,'Footnotes list'!$D$9:$E$58,2,FALSE)=0,\"\",VLOOKUP(DF87,'Footnotes list'!$D$9:$E$58,2,FALSE) ) )","v":""},null,null,null,null,{"$f":"IF(TRIM(DK87)=\"\", \"\", IF(VLOOKUP(DK87,'Footnotes list'!$D$9:$E$58,2,FALSE)=0,\"\",VLOOKUP(DK87,'Footnotes list'!$D$9:$E$58,2,FALSE) ) )","v":""},null,null,null,null,{"$f":"IF(TRIM(DP87)=\"\", \"\", IF(VLOOKUP(DP87,'Footnotes list'!$D$9:$E$58,2,FALSE)=0,\"\",VLOOKUP(DP87,'Footnotes list'!$D$9:$E$58,2,FALSE) ) )","v":""},null,null,null,null,{"$f":"IF(TRIM(DU87)=\"\", \"\", IF(VLOOKUP(DU87,'Footnotes list'!$D$9:$E$58,2,FALSE)=0,\"\",VLOOKUP(DU87,'Footnotes list'!$D$9:$E$58,2,FALSE) ) )","v":""},null,null,null,null,{"$f":"IF(TRIM(DZ87)=\"\", \"\", IF(VLOOKUP(DZ87,'Footnotes list'!$D$9:$E$58,2,FALSE)=0,\"\",VLOOKUP(DZ87,'Footnotes list'!$D$9:$E$58,2,FALSE) ) )","v":""},null,null,null,null,{"$f":"IF(TRIM(EE87)=\"\", \"\", IF(VLOOKUP(EE87,'Footnotes list'!$D$9:$E$58,2,FALSE)=0,\"\",VLOOKUP(EE87,'Footnotes list'!$D$9:$E$58,2,FALSE) ) )","v":""},null,null,null,null,{"$f":"IF(TRIM(EJ87)=\"\", \"\", IF(VLOOKUP(EJ87,'Footnotes list'!$D$9:$E$58,2,FALSE)=0,\"\",VLOOKUP(EJ87,'Footnotes list'!$D$9:$E$58,2,FALSE) ) )","v":""},null,null,null,null,{"$f":"IF(TRIM(EO87)=\"\", \"\", IF(VLOOKUP(EO87,'Footnotes list'!$D$9:$E$58,2,FALSE)=0,\"\",VLOOKUP(EO87,'Footnotes list'!$D$9:$E$58,2,FALSE) ) )","v":""},null,null,null,null,{"$f":"IF(TRIM(ET87)=\"\", \"\", IF(VLOOKUP(ET87,'Footnotes list'!$D$9:$E$58,2,FALSE)=0,\"\",VLOOKUP(ET87,'Footnotes list'!$D$9:$E$58,2,FALSE) ) )","v":""},null,null,null,null,{"$f":"IF(TRIM(EY87)=\"\", \"\", IF(VLOOKUP(EY87,'Footnotes list'!$D$9:$E$58,2,FALSE)=0,\"\",VLOOKUP(EY87,'Footnotes list'!$D$9:$E$58,2,FALSE) ) )","v":""}]
[null,null,"C24_C25","OWN_USE","activities for own final use",null,null,null,null,null,{"$f":"IF(TRIM(J88)=\"\", \"\", IF(VLOOKUP(J88,'Footnotes list'!$D$9:$E$58,2,FALSE)=0,\"\",VLOOKUP(J88,'Footnotes list'!$D$9:$E$58,2,FALSE) ) )","v":""},null,null,null,null,{"$f":"IF(TRIM(O88)=\"\", \"\", IF(VLOOKUP(O88,'Footnotes list'!$D$9:$E$58,2,FALSE)=0,\"\",VLOOKUP(O88,'Footnotes list'!$D$9:$E$58,2,FALSE) ) )","v":""},null,null,null,null,{"$f":"IF(TRIM(T88)=\"\", \"\", IF(VLOOKUP(T88,'Footnotes list'!$D$9:$E$58,2,FALSE)=0,\"\",VLOOKUP(T88,'Footnotes list'!$D$9:$E$58,2,FALSE) ) )","v":""},null,null,null,null,{"$f":"IF(TRIM(Y88)=\"\", \"\", IF(VLOOKUP(Y88,'Footnotes list'!$D$9:$E$58,2,FALSE)=0,\"\",VLOOKUP(Y88,'Footnotes list'!$D$9:$E$58,2,FALSE) ) )","v":""},null,null,null,null,{"$f":"IF(TRIM(AD88)=\"\", \"\", IF(VLOOKUP(AD88,'Footnotes list'!$D$9:$E$58,2,FALSE)=0,\"\",VLOOKUP(AD88,'Footnotes list'!$D$9:$E$58,2,FALSE) ) )","v":""},null,null,null,null,{"$f":"IF(TRIM(AI88)=\"\", \"\", IF(VLOOKUP(AI88,'Footnotes list'!$D$9:$E$58,2,FALSE)=0,\"\",VLOOKUP(AI88,'Footnotes list'!$D$9:$E$58,2,FALSE) ) )","v":""},null,null,null,null,{"$f":"IF(TRIM(AN88)=\"\", \"\", IF(VLOOKUP(AN88,'Footnotes list'!$D$9:$E$58,2,FALSE)=0,\"\",VLOOKUP(AN88,'Footnotes list'!$D$9:$E$58,2,FALSE) ) )","v":""},null,null,null,null,{"$f":"IF(TRIM(AS88)=\"\", \"\", IF(VLOOKUP(AS88,'Footnotes list'!$D$9:$E$58,2,FALSE)=0,\"\",VLOOKUP(AS88,'Footnotes list'!$D$9:$E$58,2,FALSE) ) )","v":""},null,null,null,null,{"$f":"IF(TRIM(AX88)=\"\", \"\", IF(VLOOKUP(AX88,'Footnotes list'!$D$9:$E$58,2,FALSE)=0,\"\",VLOOKUP(AX88,'Footnotes list'!$D$9:$E$58,2,FALSE) ) )","v":""},null,null,null,null,{"$f":"IF(TRIM(BC88)=\"\", \"\", IF(VLOOKUP(BC88,'Footnotes list'!$D$9:$E$58,2,FALSE)=0,\"\",VLOOKUP(BC88,'Footnotes list'!$D$9:$E$58,2,FALSE) ) )","v":""},null,null,null,null,{"$f":"IF(TRIM(BH88)=\"\", \"\", IF(VLOOKUP(BH88,'Footnotes list'!$D$9:$E$58,2,FALSE)=0,\"\",VLOOKUP(BH88,'Footnotes list'!$D$9:$E$58,2,FALSE) ) )","v":""},null,null,null,null,{"$f":"IF(TRIM(BM88)=\"\", \"\", IF(VLOOKUP(BM88,'Footnotes list'!$D$9:$E$58,2,FALSE)=0,\"\",VLOOKUP(BM88,'Footnotes list'!$D$9:$E$58,2,FALSE) ) )","v":""},null,null,null,null,{"$f":"IF(TRIM(BR88)=\"\", \"\", IF(VLOOKUP(BR88,'Footnotes list'!$D$9:$E$58,2,FALSE)=0,\"\",VLOOKUP(BR88,'Footnotes list'!$D$9:$E$58,2,FALSE) ) )","v":""},null,null,null,null,{"$f":"IF(TRIM(BW88)=\"\", \"\", IF(VLOOKUP(BW88,'Footnotes list'!$D$9:$E$58,2,FALSE)=0,\"\",VLOOKUP(BW88,'Footnotes list'!$D$9:$E$58,2,FALSE) ) )","v":""},null,null,null,null,{"$f":"IF(TRIM(CB88)=\"\", \"\", IF(VLOOKUP(CB88,'Footnotes list'!$D$9:$E$58,2,FALSE)=0,\"\",VLOOKUP(CB88,'Footnotes list'!$D$9:$E$58,2,FALSE) ) )","v":""},null,null,null,null,{"$f":"IF(TRIM(CG88)=\"\", \"\", IF(VLOOKUP(CG88,'Footnotes list'!$D$9:$E$58,2,FALSE)=0,\"\",VLOOKUP(CG88,'Footnotes list'!$D$9:$E$58,2,FALSE) ) )","v":""},null,null,null,null,{"$f":"IF(TRIM(CL88)=\"\", \"\", IF(VLOOKUP(CL88,'Footnotes list'!$D$9:$E$58,2,FALSE)=0,\"\",VLOOKUP(CL88,'Footnotes list'!$D$9:$E$58,2,FALSE) ) )","v":""},null,null,null,null,{"$f":"IF(TRIM(CQ88)=\"\", \"\", IF(VLOOKUP(CQ88,'Footnotes list'!$D$9:$E$58,2,FALSE)=0,\"\",VLOOKUP(CQ88,'Footnotes list'!$D$9:$E$58,2,FALSE) ) )","v":""},null,null,null,null,{"$f":"IF(TRIM(CV88)=\"\", \"\", IF(VLOOKUP(CV88,'Footnotes list'!$D$9:$E$58,2,FALSE)=0,\"\",VLOOKUP(CV88,'Footnotes list'!$D$9:$E$58,2,FALSE) ) )","v":""},null,null,null,null,{"$f":"IF(TRIM(DA88)=\"\", \"\", IF(VLOOKUP(DA88,'Footnotes list'!$D$9:$E$58,2,FALSE)=0,\"\",VLOOKUP(DA88,'Footnotes list'!$D$9:$E$58,2,FALSE) ) )","v":""},null,null,null,null,{"$f":"IF(TRIM(DF88)=\"\", \"\", IF(VLOOKUP(DF88,'Footnotes list'!$D$9:$E$58,2,FALSE)=0,\"\",VLOOKUP(DF88,'Footnotes list'!$D$9:$E$58,2,FALSE) ) )","v":""},null,null,null,null,{"$f":"IF(TRIM(DK88)=\"\", \"\", IF(VLOOKUP(DK88,'Footnotes list'!$D$9:$E$58,2,FALSE)=0,\"\",VLOOKUP(DK88,'Footnotes list'!$D$9:$E$58,2,FALSE) ) )","v":""},null,null,null,null,{"$f":"IF(TRIM(DP88)=\"\", \"\", IF(VLOOKUP(DP88,'Footnotes list'!$D$9:$E$58,2,FALSE)=0,\"\",VLOOKUP(DP88,'Footnotes list'!$D$9:$E$58,2,FALSE) ) )","v":""},null,null,null,null,{"$f":"IF(TRIM(DU88)=\"\", \"\", IF(VLOOKUP(DU88,'Footnotes list'!$D$9:$E$58,2,FALSE)=0,\"\",VLOOKUP(DU88,'Footnotes list'!$D$9:$E$58,2,FALSE) ) )","v":""},null,null,null,null,{"$f":"IF(TRIM(DZ88)=\"\", \"\", IF(VLOOKUP(DZ88,'Footnotes list'!$D$9:$E$58,2,FALSE)=0,\"\",VLOOKUP(DZ88,'Footnotes list'!$D$9:$E$58,2,FALSE) ) )","v":""},null,null,null,null,{"$f":"IF(TRIM(EE88)=\"\", \"\", IF(VLOOKUP(EE88,'Footnotes list'!$D$9:$E$58,2,FALSE)=0,\"\",VLOOKUP(EE88,'Footnotes list'!$D$9:$E$58,2,FALSE) ) )","v":""},null,null,null,null,{"$f":"IF(TRIM(EJ88)=\"\", \"\", IF(VLOOKUP(EJ88,'Footnotes list'!$D$9:$E$58,2,FALSE)=0,\"\",VLOOKUP(EJ88,'Footnotes list'!$D$9:$E$58,2,FALSE) ) )","v":""},null,null,null,null,{"$f":"IF(TRIM(EO88)=\"\", \"\", IF(VLOOKUP(EO88,'Footnotes list'!$D$9:$E$58,2,FALSE)=0,\"\",VLOOKUP(EO88,'Footnotes list'!$D$9:$E$58,2,FALSE) ) )","v":""},null,null,null,null,{"$f":"IF(TRIM(ET88)=\"\", \"\", IF(VLOOKUP(ET88,'Footnotes list'!$D$9:$E$58,2,FALSE)=0,\"\",VLOOKUP(ET88,'Footnotes list'!$D$9:$E$58,2,FALSE) ) )","v":""},null,null,null,null,{"$f":"IF(TRIM(EY88)=\"\", \"\", IF(VLOOKUP(EY88,'Footnotes list'!$D$9:$E$58,2,FALSE)=0,\"\",VLOOKUP(EY88,'Footnotes list'!$D$9:$E$58,2,FALSE) ) )","v":""}]
[null,null,"C24_C25","MKT","market activities, including:",null,null,null,null,null,{"$f":"IF(TRIM(J89)=\"\", \"\", IF(VLOOKUP(J89,'Footnotes list'!$D$9:$E$58,2,FALSE)=0,\"\",VLOOKUP(J89,'Footnotes list'!$D$9:$E$58,2,FALSE) ) )","v":""},null,null,null,null,{"$f":"IF(TRIM(O89)=\"\", \"\", IF(VLOOKUP(O89,'Footnotes list'!$D$9:$E$58,2,FALSE)=0,\"\",VLOOKUP(O89,'Footnotes list'!$D$9:$E$58,2,FALSE) ) )","v":""},null,null,null,null,{"$f":"IF(TRIM(T89)=\"\", \"\", IF(VLOOKUP(T89,'Footnotes list'!$D$9:$E$58,2,FALSE)=0,\"\",VLOOKUP(T89,'Footnotes list'!$D$9:$E$58,2,FALSE) ) )","v":""},null,null,null,null,{"$f":"IF(TRIM(Y89)=\"\", \"\", IF(VLOOKUP(Y89,'Footnotes list'!$D$9:$E$58,2,FALSE)=0,\"\",VLOOKUP(Y89,'Footnotes list'!$D$9:$E$58,2,FALSE) ) )","v":""},null,null,null,null,{"$f":"IF(TRIM(AD89)=\"\", \"\", IF(VLOOKUP(AD89,'Footnotes list'!$D$9:$E$58,2,FALSE)=0,\"\",VLOOKUP(AD89,'Footnotes list'!$D$9:$E$58,2,FALSE) ) )","v":""},null,null,null,null,{"$f":"IF(TRIM(AI89)=\"\", \"\", IF(VLOOKUP(AI89,'Footnotes list'!$D$9:$E$58,2,FALSE)=0,\"\",VLOOKUP(AI89,'Footnotes list'!$D$9:$E$58,2,FALSE) ) )","v":""},null,null,null,null,{"$f":"IF(TRIM(AN89)=\"\", \"\", IF(VLOOKUP(AN89,'Footnotes list'!$D$9:$E$58,2,FALSE)=0,\"\",VLOOKUP(AN89,'Footnotes list'!$D$9:$E$58,2,FALSE) ) )","v":""},null,null,null,null,{"$f":"IF(TRIM(AS89)=\"\", \"\", IF(VLOOKUP(AS89,'Footnotes list'!$D$9:$E$58,2,FALSE)=0,\"\",VLOOKUP(AS89,'Footnotes list'!$D$9:$E$58,2,FALSE) ) )","v":""},null,null,null,null,{"$f":"IF(TRIM(AX89)=\"\", \"\", IF(VLOOKUP(AX89,'Footnotes list'!$D$9:$E$58,2,FALSE)=0,\"\",VLOOKUP(AX89,'Footnotes list'!$D$9:$E$58,2,FALSE) ) )","v":""},null,null,null,null,{"$f":"IF(TRIM(BC89)=\"\", \"\", IF(VLOOKUP(BC89,'Footnotes list'!$D$9:$E$58,2,FALSE)=0,\"\",VLOOKUP(BC89,'Footnotes list'!$D$9:$E$58,2,FALSE) ) )","v":""},null,null,null,null,{"$f":"IF(TRIM(BH89)=\"\", \"\", IF(VLOOKUP(BH89,'Footnotes list'!$D$9:$E$58,2,FALSE)=0,\"\",VLOOKUP(BH89,'Footnotes list'!$D$9:$E$58,2,FALSE) ) )","v":""},null,null,null,null,{"$f":"IF(TRIM(BM89)=\"\", \"\", IF(VLOOKUP(BM89,'Footnotes list'!$D$9:$E$58,2,FALSE)=0,\"\",VLOOKUP(BM89,'Footnotes list'!$D$9:$E$58,2,FALSE) ) )","v":""},null,null,null,null,{"$f":"IF(TRIM(BR89)=\"\", \"\", IF(VLOOKUP(BR89,'Footnotes list'!$D$9:$E$58,2,FALSE)=0,\"\",VLOOKUP(BR89,'Footnotes list'!$D$9:$E$58,2,FALSE) ) )","v":""},null,null,null,null,{"$f":"IF(TRIM(BW89)=\"\", \"\", IF(VLOOKUP(BW89,'Footnotes list'!$D$9:$E$58,2,FALSE)=0,\"\",VLOOKUP(BW89,'Footnotes list'!$D$9:$E$58,2,FALSE) ) )","v":""},null,null,null,null,{"$f":"IF(TRIM(CB89)=\"\", \"\", IF(VLOOKUP(CB89,'Footnotes list'!$D$9:$E$58,2,FALSE)=0,\"\",VLOOKUP(CB89,'Footnotes list'!$D$9:$E$58,2,FALSE) ) )","v":""},null,null,null,null,{"$f":"IF(TRIM(CG89)=\"\", \"\", IF(VLOOKUP(CG89,'Footnotes list'!$D$9:$E$58,2,FALSE)=0,\"\",VLOOKUP(CG89,'Footnotes list'!$D$9:$E$58,2,FALSE) ) )","v":""},null,null,null,null,{"$f":"IF(TRIM(CL89)=\"\", \"\", IF(VLOOKUP(CL89,'Footnotes list'!$D$9:$E$58,2,FALSE)=0,\"\",VLOOKUP(CL89,'Footnotes list'!$D$9:$E$58,2,FALSE) ) )","v":""},null,null,null,null,{"$f":"IF(TRIM(CQ89)=\"\", \"\", IF(VLOOKUP(CQ89,'Footnotes list'!$D$9:$E$58,2,FALSE)=0,\"\",VLOOKUP(CQ89,'Footnotes list'!$D$9:$E$58,2,FALSE) ) )","v":""},null,null,null,null,{"$f":"IF(TRIM(CV89)=\"\", \"\", IF(VLOOKUP(CV89,'Footnotes list'!$D$9:$E$58,2,FALSE)=0,\"\",VLOOKUP(CV89,'Footnotes list'!$D$9:$E$58,2,FALSE) ) )","v":""},null,null,null,null,{"$f":"IF(TRIM(DA89)=\"\", \"\", IF(VLOOKUP(DA89,'Footnotes list'!$D$9:$E$58,2,FALSE)=0,\"\",VLOOKUP(DA89,'Footnotes list'!$D$9:$E$58,2,FALSE) ) )","v":""},null,null,null,null,{"$f":"IF(TRIM(DF89)=\"\", \"\", IF(VLOOKUP(DF89,'Footnotes list'!$D$9:$E$58,2,FALSE)=0,\"\",VLOOKUP(DF89,'Footnotes list'!$D$9:$E$58,2,FALSE) ) )","v":""},null,null,null,null,{"$f":"IF(TRIM(DK89)=\"\", \"\", IF(VLOOKUP(DK89,'Footnotes list'!$D$9:$E$58,2,FALSE)=0,\"\",VLOOKUP(DK89,'Footnotes list'!$D$9:$E$58,2,FALSE) ) )","v":""},null,null,null,null,{"$f":"IF(TRIM(DP89)=\"\", \"\", IF(VLOOKUP(DP89,'Footnotes list'!$D$9:$E$58,2,FALSE)=0,\"\",VLOOKUP(DP89,'Footnotes list'!$D$9:$E$58,2,FALSE) ) )","v":""},null,null,null,null,{"$f":"IF(TRIM(DU89)=\"\", \"\", IF(VLOOKUP(DU89,'Footnotes list'!$D$9:$E$58,2,FALSE)=0,\"\",VLOOKUP(DU89,'Footnotes list'!$D$9:$E$58,2,FALSE) ) )","v":""},null,null,null,null,{"$f":"IF(TRIM(DZ89)=\"\", \"\", IF(VLOOKUP(DZ89,'Footnotes list'!$D$9:$E$58,2,FALSE)=0,\"\",VLOOKUP(DZ89,'Footnotes list'!$D$9:$E$58,2,FALSE) ) )","v":""},null,null,null,null,{"$f":"IF(TRIM(EE89)=\"\", \"\", IF(VLOOKUP(EE89,'Footnotes list'!$D$9:$E$58,2,FALSE)=0,\"\",VLOOKUP(EE89,'Footnotes list'!$D$9:$E$58,2,FALSE) ) )","v":""},null,null,null,null,{"$f":"IF(TRIM(EJ89)=\"\", \"\", IF(VLOOKUP(EJ89,'Footnotes list'!$D$9:$E$58,2,FALSE)=0,\"\",VLOOKUP(EJ89,'Footnotes list'!$D$9:$E$58,2,FALSE) ) )","v":""},null,null,null,null,{"$f":"IF(TRIM(EO89)=\"\", \"\", IF(VLOOKUP(EO89,'Footnotes list'!$D$9:$E$58,2,FALSE)=0,\"\",VLOOKUP(EO89,'Footnotes list'!$D$9:$E$58,2,FALSE) ) )","v":""},null,null,null,null,{"$f":"IF(TRIM(ET89)=\"\", \"\", IF(VLOOKUP(ET89,'Footnotes list'!$D$9:$E$58,2,FALSE)=0,\"\",VLOOKUP(ET89,'Footnotes list'!$D$9:$E$58,2,FALSE) ) )","v":""},null,null,null,null,{"$f":"IF(TRIM(EY89)=\"\", \"\", IF(VLOOKUP(EY89,'Footnotes list'!$D$9:$E$58,2,FALSE)=0,\"\",VLOOKUP(EY89,'Footnotes list'!$D$9:$E$58,2,FALSE) ) )","v":""}]
[null,null,"C24_C25","ES_CS","environmental specific services",null,null,null,null,null,{"$f":"IF(TRIM(J90)=\"\", \"\", IF(VLOOKUP(J90,'Footnotes list'!$D$9:$E$58,2,FALSE)=0,\"\",VLOOKUP(J90,'Footnotes list'!$D$9:$E$58,2,FALSE) ) )","v":""},null,null,null,null,{"$f":"IF(TRIM(O90)=\"\", \"\", IF(VLOOKUP(O90,'Footnotes list'!$D$9:$E$58,2,FALSE)=0,\"\",VLOOKUP(O90,'Footnotes list'!$D$9:$E$58,2,FALSE) ) )","v":""},null,null,null,null,{"$f":"IF(TRIM(T90)=\"\", \"\", IF(VLOOKUP(T90,'Footnotes list'!$D$9:$E$58,2,FALSE)=0,\"\",VLOOKUP(T90,'Footnotes list'!$D$9:$E$58,2,FALSE) ) )","v":""},null,null,null,null,{"$f":"IF(TRIM(Y90)=\"\", \"\", IF(VLOOKUP(Y90,'Footnotes list'!$D$9:$E$58,2,FALSE)=0,\"\",VLOOKUP(Y90,'Footnotes list'!$D$9:$E$58,2,FALSE) ) )","v":""},null,null,null,null,{"$f":"IF(TRIM(AD90)=\"\", \"\", IF(VLOOKUP(AD90,'Footnotes list'!$D$9:$E$58,2,FALSE)=0,\"\",VLOOKUP(AD90,'Footnotes list'!$D$9:$E$58,2,FALSE) ) )","v":""},null,null,null,null,{"$f":"IF(TRIM(AI90)=\"\", \"\", IF(VLOOKUP(AI90,'Footnotes list'!$D$9:$E$58,2,FALSE)=0,\"\",VLOOKUP(AI90,'Footnotes list'!$D$9:$E$58,2,FALSE) ) )","v":""},null,null,null,null,{"$f":"IF(TRIM(AN90)=\"\", \"\", IF(VLOOKUP(AN90,'Footnotes list'!$D$9:$E$58,2,FALSE)=0,\"\",VLOOKUP(AN90,'Footnotes list'!$D$9:$E$58,2,FALSE) ) )","v":""},null,null,null,null,{"$f":"IF(TRIM(AS90)=\"\", \"\", IF(VLOOKUP(AS90,'Footnotes list'!$D$9:$E$58,2,FALSE)=0,\"\",VLOOKUP(AS90,'Footnotes list'!$D$9:$E$58,2,FALSE) ) )","v":""},null,null,null,null,{"$f":"IF(TRIM(AX90)=\"\", \"\", IF(VLOOKUP(AX90,'Footnotes list'!$D$9:$E$58,2,FALSE)=0,\"\",VLOOKUP(AX90,'Footnotes list'!$D$9:$E$58,2,FALSE) ) )","v":""},null,null,null,null,{"$f":"IF(TRIM(BC90)=\"\", \"\", IF(VLOOKUP(BC90,'Footnotes list'!$D$9:$E$58,2,FALSE)=0,\"\",VLOOKUP(BC90,'Footnotes list'!$D$9:$E$58,2,FALSE) ) )","v":""},null,null,null,null,{"$f":"IF(TRIM(BH90)=\"\", \"\", IF(VLOOKUP(BH90,'Footnotes list'!$D$9:$E$58,2,FALSE)=0,\"\",VLOOKUP(BH90,'Footnotes list'!$D$9:$E$58,2,FALSE) ) )","v":""},null,null,null,null,{"$f":"IF(TRIM(BM90)=\"\", \"\", IF(VLOOKUP(BM90,'Footnotes list'!$D$9:$E$58,2,FALSE)=0,\"\",VLOOKUP(BM90,'Footnotes list'!$D$9:$E$58,2,FALSE) ) )","v":""},null,null,null,null,{"$f":"IF(TRIM(BR90)=\"\", \"\", IF(VLOOKUP(BR90,'Footnotes list'!$D$9:$E$58,2,FALSE)=0,\"\",VLOOKUP(BR90,'Footnotes list'!$D$9:$E$58,2,FALSE) ) )","v":""},null,null,null,null,{"$f":"IF(TRIM(BW90)=\"\", \"\", IF(VLOOKUP(BW90,'Footnotes list'!$D$9:$E$58,2,FALSE)=0,\"\",VLOOKUP(BW90,'Footnotes list'!$D$9:$E$58,2,FALSE) ) )","v":""},null,null,null,null,{"$f":"IF(TRIM(CB90)=\"\", \"\", IF(VLOOKUP(CB90,'Footnotes list'!$D$9:$E$58,2,FALSE)=0,\"\",VLOOKUP(CB90,'Footnotes list'!$D$9:$E$58,2,FALSE) ) )","v":""},null,null,null,null,{"$f":"IF(TRIM(CG90)=\"\", \"\", IF(VLOOKUP(CG90,'Footnotes list'!$D$9:$E$58,2,FALSE)=0,\"\",VLOOKUP(CG90,'Footnotes list'!$D$9:$E$58,2,FALSE) ) )","v":""},null,null,null,null,{"$f":"IF(TRIM(CL90)=\"\", \"\", IF(VLOOKUP(CL90,'Footnotes list'!$D$9:$E$58,2,FALSE)=0,\"\",VLOOKUP(CL90,'Footnotes list'!$D$9:$E$58,2,FALSE) ) )","v":""},null,null,null,null,{"$f":"IF(TRIM(CQ90)=\"\", \"\", IF(VLOOKUP(CQ90,'Footnotes list'!$D$9:$E$58,2,FALSE)=0,\"\",VLOOKUP(CQ90,'Footnotes list'!$D$9:$E$58,2,FALSE) ) )","v":""},null,null,null,null,{"$f":"IF(TRIM(CV90)=\"\", \"\", IF(VLOOKUP(CV90,'Footnotes list'!$D$9:$E$58,2,FALSE)=0,\"\",VLOOKUP(CV90,'Footnotes list'!$D$9:$E$58,2,FALSE) ) )","v":""},null,null,null,null,{"$f":"IF(TRIM(DA90)=\"\", \"\", IF(VLOOKUP(DA90,'Footnotes list'!$D$9:$E$58,2,FALSE)=0,\"\",VLOOKUP(DA90,'Footnotes list'!$D$9:$E$58,2,FALSE) ) )","v":""},null,null,null,null,{"$f":"IF(TRIM(DF90)=\"\", \"\", IF(VLOOKUP(DF90,'Footnotes list'!$D$9:$E$58,2,FALSE)=0,\"\",VLOOKUP(DF90,'Footnotes list'!$D$9:$E$58,2,FALSE) ) )","v":""},null,null,null,null,{"$f":"IF(TRIM(DK90)=\"\", \"\", IF(VLOOKUP(DK90,'Footnotes list'!$D$9:$E$58,2,FALSE)=0,\"\",VLOOKUP(DK90,'Footnotes list'!$D$9:$E$58,2,FALSE) ) )","v":""},null,null,null,null,{"$f":"IF(TRIM(DP90)=\"\", \"\", IF(VLOOKUP(DP90,'Footnotes list'!$D$9:$E$58,2,FALSE)=0,\"\",VLOOKUP(DP90,'Footnotes list'!$D$9:$E$58,2,FALSE) ) )","v":""},null,null,null,null,{"$f":"IF(TRIM(DU90)=\"\", \"\", IF(VLOOKUP(DU90,'Footnotes list'!$D$9:$E$58,2,FALSE)=0,\"\",VLOOKUP(DU90,'Footnotes list'!$D$9:$E$58,2,FALSE) ) )","v":""},null,null,null,null,{"$f":"IF(TRIM(DZ90)=\"\", \"\", IF(VLOOKUP(DZ90,'Footnotes list'!$D$9:$E$58,2,FALSE)=0,\"\",VLOOKUP(DZ90,'Footnotes list'!$D$9:$E$58,2,FALSE) ) )","v":""},null,null,null,null,{"$f":"IF(TRIM(EE90)=\"\", \"\", IF(VLOOKUP(EE90,'Footnotes list'!$D$9:$E$58,2,FALSE)=0,\"\",VLOOKUP(EE90,'Footnotes list'!$D$9:$E$58,2,FALSE) ) )","v":""},null,null,null,null,{"$f":"IF(TRIM(EJ90)=\"\", \"\", IF(VLOOKUP(EJ90,'Footnotes list'!$D$9:$E$58,2,FALSE)=0,\"\",VLOOKUP(EJ90,'Footnotes list'!$D$9:$E$58,2,FALSE) ) )","v":""},null,null,null,null,{"$f":"IF(TRIM(EO90)=\"\", \"\", IF(VLOOKUP(EO90,'Footnotes list'!$D$9:$E$58,2,FALSE)=0,\"\",VLOOKUP(EO90,'Footnotes list'!$D$9:$E$58,2,FALSE) ) )","v":""},null,null,null,null,{"$f":"IF(TRIM(ET90)=\"\", \"\", IF(VLOOKUP(ET90,'Footnotes list'!$D$9:$E$58,2,FALSE)=0,\"\",VLOOKUP(ET90,'Footnotes list'!$D$9:$E$58,2,FALSE) ) )","v":""},null,null,null,null,{"$f":"IF(TRIM(EY90)=\"\", \"\", IF(VLOOKUP(EY90,'Footnotes list'!$D$9:$E$58,2,FALSE)=0,\"\",VLOOKUP(EY90,'Footnotes list'!$D$9:$E$58,2,FALSE) ) )","v":""}]
[null,null,"C24_C25","C_REP","cleaner and resource efficient products",null,null,null,null,null,{"$f":"IF(TRIM(J91)=\"\", \"\", IF(VLOOKUP(J91,'Footnotes list'!$D$9:$E$58,2,FALSE)=0,\"\",VLOOKUP(J91,'Footnotes list'!$D$9:$E$58,2,FALSE) ) )","v":""},null,null,null,null,{"$f":"IF(TRIM(O91)=\"\", \"\", IF(VLOOKUP(O91,'Footnotes list'!$D$9:$E$58,2,FALSE)=0,\"\",VLOOKUP(O91,'Footnotes list'!$D$9:$E$58,2,FALSE) ) )","v":""},null,null,null,null,{"$f":"IF(TRIM(T91)=\"\", \"\", IF(VLOOKUP(T91,'Footnotes list'!$D$9:$E$58,2,FALSE)=0,\"\",VLOOKUP(T91,'Footnotes list'!$D$9:$E$58,2,FALSE) ) )","v":""},null,null,null,null,{"$f":"IF(TRIM(Y91)=\"\", \"\", IF(VLOOKUP(Y91,'Footnotes list'!$D$9:$E$58,2,FALSE)=0,\"\",VLOOKUP(Y91,'Footnotes list'!$D$9:$E$58,2,FALSE) ) )","v":""},null,null,null,null,{"$f":"IF(TRIM(AD91)=\"\", \"\", IF(VLOOKUP(AD91,'Footnotes list'!$D$9:$E$58,2,FALSE)=0,\"\",VLOOKUP(AD91,'Footnotes list'!$D$9:$E$58,2,FALSE) ) )","v":""},null,null,null,null,{"$f":"IF(TRIM(AI91)=\"\", \"\", IF(VLOOKUP(AI91,'Footnotes list'!$D$9:$E$58,2,FALSE)=0,\"\",VLOOKUP(AI91,'Footnotes list'!$D$9:$E$58,2,FALSE) ) )","v":""},null,null,null,null,{"$f":"IF(TRIM(AN91)=\"\", \"\", IF(VLOOKUP(AN91,'Footnotes list'!$D$9:$E$58,2,FALSE)=0,\"\",VLOOKUP(AN91,'Footnotes list'!$D$9:$E$58,2,FALSE) ) )","v":""},null,null,null,null,{"$f":"IF(TRIM(AS91)=\"\", \"\", IF(VLOOKUP(AS91,'Footnotes list'!$D$9:$E$58,2,FALSE)=0,\"\",VLOOKUP(AS91,'Footnotes list'!$D$9:$E$58,2,FALSE) ) )","v":""},null,null,null,null,{"$f":"IF(TRIM(AX91)=\"\", \"\", IF(VLOOKUP(AX91,'Footnotes list'!$D$9:$E$58,2,FALSE)=0,\"\",VLOOKUP(AX91,'Footnotes list'!$D$9:$E$58,2,FALSE) ) )","v":""},null,null,null,null,{"$f":"IF(TRIM(BC91)=\"\", \"\", IF(VLOOKUP(BC91,'Footnotes list'!$D$9:$E$58,2,FALSE)=0,\"\",VLOOKUP(BC91,'Footnotes list'!$D$9:$E$58,2,FALSE) ) )","v":""},null,null,null,null,{"$f":"IF(TRIM(BH91)=\"\", \"\", IF(VLOOKUP(BH91,'Footnotes list'!$D$9:$E$58,2,FALSE)=0,\"\",VLOOKUP(BH91,'Footnotes list'!$D$9:$E$58,2,FALSE) ) )","v":""},null,null,null,null,{"$f":"IF(TRIM(BM91)=\"\", \"\", IF(VLOOKUP(BM91,'Footnotes list'!$D$9:$E$58,2,FALSE)=0,\"\",VLOOKUP(BM91,'Footnotes list'!$D$9:$E$58,2,FALSE) ) )","v":""},null,null,null,null,{"$f":"IF(TRIM(BR91)=\"\", \"\", IF(VLOOKUP(BR91,'Footnotes list'!$D$9:$E$58,2,FALSE)=0,\"\",VLOOKUP(BR91,'Footnotes list'!$D$9:$E$58,2,FALSE) ) )","v":""},null,null,null,null,{"$f":"IF(TRIM(BW91)=\"\", \"\", IF(VLOOKUP(BW91,'Footnotes list'!$D$9:$E$58,2,FALSE)=0,\"\",VLOOKUP(BW91,'Footnotes list'!$D$9:$E$58,2,FALSE) ) )","v":""},null,null,null,null,{"$f":"IF(TRIM(CB91)=\"\", \"\", IF(VLOOKUP(CB91,'Footnotes list'!$D$9:$E$58,2,FALSE)=0,\"\",VLOOKUP(CB91,'Footnotes list'!$D$9:$E$58,2,FALSE) ) )","v":""},null,null,null,null,{"$f":"IF(TRIM(CG91)=\"\", \"\", IF(VLOOKUP(CG91,'Footnotes list'!$D$9:$E$58,2,FALSE)=0,\"\",VLOOKUP(CG91,'Footnotes list'!$D$9:$E$58,2,FALSE) ) )","v":""},null,null,null,null,{"$f":"IF(TRIM(CL91)=\"\", \"\", IF(VLOOKUP(CL91,'Footnotes list'!$D$9:$E$58,2,FALSE)=0,\"\",VLOOKUP(CL91,'Footnotes list'!$D$9:$E$58,2,FALSE) ) )","v":""},null,null,null,null,{"$f":"IF(TRIM(CQ91)=\"\", \"\", IF(VLOOKUP(CQ91,'Footnotes list'!$D$9:$E$58,2,FALSE)=0,\"\",VLOOKUP(CQ91,'Footnotes list'!$D$9:$E$58,2,FALSE) ) )","v":""},null,null,null,null,{"$f":"IF(TRIM(CV91)=\"\", \"\", IF(VLOOKUP(CV91,'Footnotes list'!$D$9:$E$58,2,FALSE)=0,\"\",VLOOKUP(CV91,'Footnotes list'!$D$9:$E$58,2,FALSE) ) )","v":""},null,null,null,null,{"$f":"IF(TRIM(DA91)=\"\", \"\", IF(VLOOKUP(DA91,'Footnotes list'!$D$9:$E$58,2,FALSE)=0,\"\",VLOOKUP(DA91,'Footnotes list'!$D$9:$E$58,2,FALSE) ) )","v":""},null,null,null,null,{"$f":"IF(TRIM(DF91)=\"\", \"\", IF(VLOOKUP(DF91,'Footnotes list'!$D$9:$E$58,2,FALSE)=0,\"\",VLOOKUP(DF91,'Footnotes list'!$D$9:$E$58,2,FALSE) ) )","v":""},null,null,null,null,{"$f":"IF(TRIM(DK91)=\"\", \"\", IF(VLOOKUP(DK91,'Footnotes list'!$D$9:$E$58,2,FALSE)=0,\"\",VLOOKUP(DK91,'Footnotes list'!$D$9:$E$58,2,FALSE) ) )","v":""},null,null,null,null,{"$f":"IF(TRIM(DP91)=\"\", \"\", IF(VLOOKUP(DP91,'Footnotes list'!$D$9:$E$58,2,FALSE)=0,\"\",VLOOKUP(DP91,'Footnotes list'!$D$9:$E$58,2,FALSE) ) )","v":""},null,null,null,null,{"$f":"IF(TRIM(DU91)=\"\", \"\", IF(VLOOKUP(DU91,'Footnotes list'!$D$9:$E$58,2,FALSE)=0,\"\",VLOOKUP(DU91,'Footnotes list'!$D$9:$E$58,2,FALSE) ) )","v":""},null,null,null,null,{"$f":"IF(TRIM(DZ91)=\"\", \"\", IF(VLOOKUP(DZ91,'Footnotes list'!$D$9:$E$58,2,FALSE)=0,\"\",VLOOKUP(DZ91,'Footnotes list'!$D$9:$E$58,2,FALSE) ) )","v":""},null,null,null,null,{"$f":"IF(TRIM(EE91)=\"\", \"\", IF(VLOOKUP(EE91,'Footnotes list'!$D$9:$E$58,2,FALSE)=0,\"\",VLOOKUP(EE91,'Footnotes list'!$D$9:$E$58,2,FALSE) ) )","v":""},null,null,null,null,{"$f":"IF(TRIM(EJ91)=\"\", \"\", IF(VLOOKUP(EJ91,'Footnotes list'!$D$9:$E$58,2,FALSE)=0,\"\",VLOOKUP(EJ91,'Footnotes list'!$D$9:$E$58,2,FALSE) ) )","v":""},null,null,null,null,{"$f":"IF(TRIM(EO91)=\"\", \"\", IF(VLOOKUP(EO91,'Footnotes list'!$D$9:$E$58,2,FALSE)=0,\"\",VLOOKUP(EO91,'Footnotes list'!$D$9:$E$58,2,FALSE) ) )","v":""},null,null,null,null,{"$f":"IF(TRIM(ET91)=\"\", \"\", IF(VLOOKUP(ET91,'Footnotes list'!$D$9:$E$58,2,FALSE)=0,\"\",VLOOKUP(ET91,'Footnotes list'!$D$9:$E$58,2,FALSE) ) )","v":""},null,null,null,null,{"$f":"IF(TRIM(EY91)=\"\", \"\", IF(VLOOKUP(EY91,'Footnotes list'!$D$9:$E$58,2,FALSE)=0,\"\",VLOOKUP(EY91,'Footnotes list'!$D$9:$E$58,2,FALSE) ) )","v":""}]
[null,null,"C26","TOT_EGSS","Total C26 - Manufacture of computer, electronic and optical products, of which:",null,null,null,null,null,{"$f":"IF(TRIM(J92)=\"\", \"\", IF(VLOOKUP(J92,'Footnotes list'!$D$9:$E$58,2,FALSE)=0,\"\",VLOOKUP(J92,'Footnotes list'!$D$9:$E$58,2,FALSE) ) )","v":""},null,null,null,null,{"$f":"IF(TRIM(O92)=\"\", \"\", IF(VLOOKUP(O92,'Footnotes list'!$D$9:$E$58,2,FALSE)=0,\"\",VLOOKUP(O92,'Footnotes list'!$D$9:$E$58,2,FALSE) ) )","v":""},null,null,null,null,{"$f":"IF(TRIM(T92)=\"\", \"\", IF(VLOOKUP(T92,'Footnotes list'!$D$9:$E$58,2,FALSE)=0,\"\",VLOOKUP(T92,'Footnotes list'!$D$9:$E$58,2,FALSE) ) )","v":""},null,null,null,null,{"$f":"IF(TRIM(Y92)=\"\", \"\", IF(VLOOKUP(Y92,'Footnotes list'!$D$9:$E$58,2,FALSE)=0,\"\",VLOOKUP(Y92,'Footnotes list'!$D$9:$E$58,2,FALSE) ) )","v":""},null,null,null,null,{"$f":"IF(TRIM(AD92)=\"\", \"\", IF(VLOOKUP(AD92,'Footnotes list'!$D$9:$E$58,2,FALSE)=0,\"\",VLOOKUP(AD92,'Footnotes list'!$D$9:$E$58,2,FALSE) ) )","v":""},null,null,null,null,{"$f":"IF(TRIM(AI92)=\"\", \"\", IF(VLOOKUP(AI92,'Footnotes list'!$D$9:$E$58,2,FALSE)=0,\"\",VLOOKUP(AI92,'Footnotes list'!$D$9:$E$58,2,FALSE) ) )","v":""},null,null,null,null,{"$f":"IF(TRIM(AN92)=\"\", \"\", IF(VLOOKUP(AN92,'Footnotes list'!$D$9:$E$58,2,FALSE)=0,\"\",VLOOKUP(AN92,'Footnotes list'!$D$9:$E$58,2,FALSE) ) )","v":""},null,null,null,null,{"$f":"IF(TRIM(AS92)=\"\", \"\", IF(VLOOKUP(AS92,'Footnotes list'!$D$9:$E$58,2,FALSE)=0,\"\",VLOOKUP(AS92,'Footnotes list'!$D$9:$E$58,2,FALSE) ) )","v":""},null,null,null,null,{"$f":"IF(TRIM(AX92)=\"\", \"\", IF(VLOOKUP(AX92,'Footnotes list'!$D$9:$E$58,2,FALSE)=0,\"\",VLOOKUP(AX92,'Footnotes list'!$D$9:$E$58,2,FALSE) ) )","v":""},null,null,null,null,{"$f":"IF(TRIM(BC92)=\"\", \"\", IF(VLOOKUP(BC92,'Footnotes list'!$D$9:$E$58,2,FALSE)=0,\"\",VLOOKUP(BC92,'Footnotes list'!$D$9:$E$58,2,FALSE) ) )","v":""},null,null,null,null,{"$f":"IF(TRIM(BH92)=\"\", \"\", IF(VLOOKUP(BH92,'Footnotes list'!$D$9:$E$58,2,FALSE)=0,\"\",VLOOKUP(BH92,'Footnotes list'!$D$9:$E$58,2,FALSE) ) )","v":""},null,null,null,null,{"$f":"IF(TRIM(BM92)=\"\", \"\", IF(VLOOKUP(BM92,'Footnotes list'!$D$9:$E$58,2,FALSE)=0,\"\",VLOOKUP(BM92,'Footnotes list'!$D$9:$E$58,2,FALSE) ) )","v":""},null,null,null,null,{"$f":"IF(TRIM(BR92)=\"\", \"\", IF(VLOOKUP(BR92,'Footnotes list'!$D$9:$E$58,2,FALSE)=0,\"\",VLOOKUP(BR92,'Footnotes list'!$D$9:$E$58,2,FALSE) ) )","v":""},null,null,null,null,{"$f":"IF(TRIM(BW92)=\"\", \"\", IF(VLOOKUP(BW92,'Footnotes list'!$D$9:$E$58,2,FALSE)=0,\"\",VLOOKUP(BW92,'Footnotes list'!$D$9:$E$58,2,FALSE) ) )","v":""},null,null,null,null,{"$f":"IF(TRIM(CB92)=\"\", \"\", IF(VLOOKUP(CB92,'Footnotes list'!$D$9:$E$58,2,FALSE)=0,\"\",VLOOKUP(CB92,'Footnotes list'!$D$9:$E$58,2,FALSE) ) )","v":""},null,null,null,null,{"$f":"IF(TRIM(CG92)=\"\", \"\", IF(VLOOKUP(CG92,'Footnotes list'!$D$9:$E$58,2,FALSE)=0,\"\",VLOOKUP(CG92,'Footnotes list'!$D$9:$E$58,2,FALSE) ) )","v":""},null,null,null,null,{"$f":"IF(TRIM(CL92)=\"\", \"\", IF(VLOOKUP(CL92,'Footnotes list'!$D$9:$E$58,2,FALSE)=0,\"\",VLOOKUP(CL92,'Footnotes list'!$D$9:$E$58,2,FALSE) ) )","v":""},null,null,null,null,{"$f":"IF(TRIM(CQ92)=\"\", \"\", IF(VLOOKUP(CQ92,'Footnotes list'!$D$9:$E$58,2,FALSE)=0,\"\",VLOOKUP(CQ92,'Footnotes list'!$D$9:$E$58,2,FALSE) ) )","v":""},null,null,null,null,{"$f":"IF(TRIM(CV92)=\"\", \"\", IF(VLOOKUP(CV92,'Footnotes list'!$D$9:$E$58,2,FALSE)=0,\"\",VLOOKUP(CV92,'Footnotes list'!$D$9:$E$58,2,FALSE) ) )","v":""},null,null,null,null,{"$f":"IF(TRIM(DA92)=\"\", \"\", IF(VLOOKUP(DA92,'Footnotes list'!$D$9:$E$58,2,FALSE)=0,\"\",VLOOKUP(DA92,'Footnotes list'!$D$9:$E$58,2,FALSE) ) )","v":""},null,null,null,null,{"$f":"IF(TRIM(DF92)=\"\", \"\", IF(VLOOKUP(DF92,'Footnotes list'!$D$9:$E$58,2,FALSE)=0,\"\",VLOOKUP(DF92,'Footnotes list'!$D$9:$E$58,2,FALSE) ) )","v":""},null,null,null,null,{"$f":"IF(TRIM(DK92)=\"\", \"\", IF(VLOOKUP(DK92,'Footnotes list'!$D$9:$E$58,2,FALSE)=0,\"\",VLOOKUP(DK92,'Footnotes list'!$D$9:$E$58,2,FALSE) ) )","v":""},null,null,null,null,{"$f":"IF(TRIM(DP92)=\"\", \"\", IF(VLOOKUP(DP92,'Footnotes list'!$D$9:$E$58,2,FALSE)=0,\"\",VLOOKUP(DP92,'Footnotes list'!$D$9:$E$58,2,FALSE) ) )","v":""},null,null,null,null,{"$f":"IF(TRIM(DU92)=\"\", \"\", IF(VLOOKUP(DU92,'Footnotes list'!$D$9:$E$58,2,FALSE)=0,\"\",VLOOKUP(DU92,'Footnotes list'!$D$9:$E$58,2,FALSE) ) )","v":""},null,null,null,null,{"$f":"IF(TRIM(DZ92)=\"\", \"\", IF(VLOOKUP(DZ92,'Footnotes list'!$D$9:$E$58,2,FALSE)=0,\"\",VLOOKUP(DZ92,'Footnotes list'!$D$9:$E$58,2,FALSE) ) )","v":""},null,null,null,null,{"$f":"IF(TRIM(EE92)=\"\", \"\", IF(VLOOKUP(EE92,'Footnotes list'!$D$9:$E$58,2,FALSE)=0,\"\",VLOOKUP(EE92,'Footnotes list'!$D$9:$E$58,2,FALSE) ) )","v":""},null,null,null,null,{"$f":"IF(TRIM(EJ92)=\"\", \"\", IF(VLOOKUP(EJ92,'Footnotes list'!$D$9:$E$58,2,FALSE)=0,\"\",VLOOKUP(EJ92,'Footnotes list'!$D$9:$E$58,2,FALSE) ) )","v":""},null,null,null,null,{"$f":"IF(TRIM(EO92)=\"\", \"\", IF(VLOOKUP(EO92,'Footnotes list'!$D$9:$E$58,2,FALSE)=0,\"\",VLOOKUP(EO92,'Footnotes list'!$D$9:$E$58,2,FALSE) ) )","v":""},null,null,null,null,{"$f":"IF(TRIM(ET92)=\"\", \"\", IF(VLOOKUP(ET92,'Footnotes list'!$D$9:$E$58,2,FALSE)=0,\"\",VLOOKUP(ET92,'Footnotes list'!$D$9:$E$58,2,FALSE) ) )","v":""},null,null,null,null,{"$f":"IF(TRIM(EY92)=\"\", \"\", IF(VLOOKUP(EY92,'Footnotes list'!$D$9:$E$58,2,FALSE)=0,\"\",VLOOKUP(EY92,'Footnotes list'!$D$9:$E$58,2,FALSE) ) )","v":""}]
[null,null,"C26","ANC","ancillary activities",null,null,null,null,null,{"$f":"IF(TRIM(J93)=\"\", \"\", IF(VLOOKUP(J93,'Footnotes list'!$D$9:$E$58,2,FALSE)=0,\"\",VLOOKUP(J93,'Footnotes list'!$D$9:$E$58,2,FALSE) ) )","v":""},null,null,null,null,{"$f":"IF(TRIM(O93)=\"\", \"\", IF(VLOOKUP(O93,'Footnotes list'!$D$9:$E$58,2,FALSE)=0,\"\",VLOOKUP(O93,'Footnotes list'!$D$9:$E$58,2,FALSE) ) )","v":""},null,null,null,null,{"$f":"IF(TRIM(T93)=\"\", \"\", IF(VLOOKUP(T93,'Footnotes list'!$D$9:$E$58,2,FALSE)=0,\"\",VLOOKUP(T93,'Footnotes list'!$D$9:$E$58,2,FALSE) ) )","v":""},null,null,null,null,{"$f":"IF(TRIM(Y93)=\"\", \"\", IF(VLOOKUP(Y93,'Footnotes list'!$D$9:$E$58,2,FALSE)=0,\"\",VLOOKUP(Y93,'Footnotes list'!$D$9:$E$58,2,FALSE) ) )","v":""},null,null,null,null,{"$f":"IF(TRIM(AD93)=\"\", \"\", IF(VLOOKUP(AD93,'Footnotes list'!$D$9:$E$58,2,FALSE)=0,\"\",VLOOKUP(AD93,'Footnotes list'!$D$9:$E$58,2,FALSE) ) )","v":""},null,null,null,null,{"$f":"IF(TRIM(AI93)=\"\", \"\", IF(VLOOKUP(AI93,'Footnotes list'!$D$9:$E$58,2,FALSE)=0,\"\",VLOOKUP(AI93,'Footnotes list'!$D$9:$E$58,2,FALSE) ) )","v":""},null,null,null,null,{"$f":"IF(TRIM(AN93)=\"\", \"\", IF(VLOOKUP(AN93,'Footnotes list'!$D$9:$E$58,2,FALSE)=0,\"\",VLOOKUP(AN93,'Footnotes list'!$D$9:$E$58,2,FALSE) ) )","v":""},null,null,null,null,{"$f":"IF(TRIM(AS93)=\"\", \"\", IF(VLOOKUP(AS93,'Footnotes list'!$D$9:$E$58,2,FALSE)=0,\"\",VLOOKUP(AS93,'Footnotes list'!$D$9:$E$58,2,FALSE) ) )","v":""},null,null,null,null,{"$f":"IF(TRIM(AX93)=\"\", \"\", IF(VLOOKUP(AX93,'Footnotes list'!$D$9:$E$58,2,FALSE)=0,\"\",VLOOKUP(AX93,'Footnotes list'!$D$9:$E$58,2,FALSE) ) )","v":""},null,null,null,null,{"$f":"IF(TRIM(BC93)=\"\", \"\", IF(VLOOKUP(BC93,'Footnotes list'!$D$9:$E$58,2,FALSE)=0,\"\",VLOOKUP(BC93,'Footnotes list'!$D$9:$E$58,2,FALSE) ) )","v":""},null,null,null,null,{"$f":"IF(TRIM(BH93)=\"\", \"\", IF(VLOOKUP(BH93,'Footnotes list'!$D$9:$E$58,2,FALSE)=0,\"\",VLOOKUP(BH93,'Footnotes list'!$D$9:$E$58,2,FALSE) ) )","v":""},null,null,null,null,{"$f":"IF(TRIM(BM93)=\"\", \"\", IF(VLOOKUP(BM93,'Footnotes list'!$D$9:$E$58,2,FALSE)=0,\"\",VLOOKUP(BM93,'Footnotes list'!$D$9:$E$58,2,FALSE) ) )","v":""},null,null,null,null,{"$f":"IF(TRIM(BR93)=\"\", \"\", IF(VLOOKUP(BR93,'Footnotes list'!$D$9:$E$58,2,FALSE)=0,\"\",VLOOKUP(BR93,'Footnotes list'!$D$9:$E$58,2,FALSE) ) )","v":""},null,null,null,null,{"$f":"IF(TRIM(BW93)=\"\", \"\", IF(VLOOKUP(BW93,'Footnotes list'!$D$9:$E$58,2,FALSE)=0,\"\",VLOOKUP(BW93,'Footnotes list'!$D$9:$E$58,2,FALSE) ) )","v":""},null,null,null,null,{"$f":"IF(TRIM(CB93)=\"\", \"\", IF(VLOOKUP(CB93,'Footnotes list'!$D$9:$E$58,2,FALSE)=0,\"\",VLOOKUP(CB93,'Footnotes list'!$D$9:$E$58,2,FALSE) ) )","v":""},null,null,null,null,{"$f":"IF(TRIM(CG93)=\"\", \"\", IF(VLOOKUP(CG93,'Footnotes list'!$D$9:$E$58,2,FALSE)=0,\"\",VLOOKUP(CG93,'Footnotes list'!$D$9:$E$58,2,FALSE) ) )","v":""},null,null,null,null,{"$f":"IF(TRIM(CL93)=\"\", \"\", IF(VLOOKUP(CL93,'Footnotes list'!$D$9:$E$58,2,FALSE)=0,\"\",VLOOKUP(CL93,'Footnotes list'!$D$9:$E$58,2,FALSE) ) )","v":""},null,null,null,null,{"$f":"IF(TRIM(CQ93)=\"\", \"\", IF(VLOOKUP(CQ93,'Footnotes list'!$D$9:$E$58,2,FALSE)=0,\"\",VLOOKUP(CQ93,'Footnotes list'!$D$9:$E$58,2,FALSE) ) )","v":""},null,null,null,null,{"$f":"IF(TRIM(CV93)=\"\", \"\", IF(VLOOKUP(CV93,'Footnotes list'!$D$9:$E$58,2,FALSE)=0,\"\",VLOOKUP(CV93,'Footnotes list'!$D$9:$E$58,2,FALSE) ) )","v":""},null,null,null,null,{"$f":"IF(TRIM(DA93)=\"\", \"\", IF(VLOOKUP(DA93,'Footnotes list'!$D$9:$E$58,2,FALSE)=0,\"\",VLOOKUP(DA93,'Footnotes list'!$D$9:$E$58,2,FALSE) ) )","v":""},null,null,null,null,{"$f":"IF(TRIM(DF93)=\"\", \"\", IF(VLOOKUP(DF93,'Footnotes list'!$D$9:$E$58,2,FALSE)=0,\"\",VLOOKUP(DF93,'Footnotes list'!$D$9:$E$58,2,FALSE) ) )","v":""},null,null,null,null,{"$f":"IF(TRIM(DK93)=\"\", \"\", IF(VLOOKUP(DK93,'Footnotes list'!$D$9:$E$58,2,FALSE)=0,\"\",VLOOKUP(DK93,'Footnotes list'!$D$9:$E$58,2,FALSE) ) )","v":""},null,null,null,null,{"$f":"IF(TRIM(DP93)=\"\", \"\", IF(VLOOKUP(DP93,'Footnotes list'!$D$9:$E$58,2,FALSE)=0,\"\",VLOOKUP(DP93,'Footnotes list'!$D$9:$E$58,2,FALSE) ) )","v":""},null,null,null,null,{"$f":"IF(TRIM(DU93)=\"\", \"\", IF(VLOOKUP(DU93,'Footnotes list'!$D$9:$E$58,2,FALSE)=0,\"\",VLOOKUP(DU93,'Footnotes list'!$D$9:$E$58,2,FALSE) ) )","v":""},null,null,null,null,{"$f":"IF(TRIM(DZ93)=\"\", \"\", IF(VLOOKUP(DZ93,'Footnotes list'!$D$9:$E$58,2,FALSE)=0,\"\",VLOOKUP(DZ93,'Footnotes list'!$D$9:$E$58,2,FALSE) ) )","v":""},null,null,null,null,{"$f":"IF(TRIM(EE93)=\"\", \"\", IF(VLOOKUP(EE93,'Footnotes list'!$D$9:$E$58,2,FALSE)=0,\"\",VLOOKUP(EE93,'Footnotes list'!$D$9:$E$58,2,FALSE) ) )","v":""},null,null,null,null,{"$f":"IF(TRIM(EJ93)=\"\", \"\", IF(VLOOKUP(EJ93,'Footnotes list'!$D$9:$E$58,2,FALSE)=0,\"\",VLOOKUP(EJ93,'Footnotes list'!$D$9:$E$58,2,FALSE) ) )","v":""},null,null,null,null,{"$f":"IF(TRIM(EO93)=\"\", \"\", IF(VLOOKUP(EO93,'Footnotes list'!$D$9:$E$58,2,FALSE)=0,\"\",VLOOKUP(EO93,'Footnotes list'!$D$9:$E$58,2,FALSE) ) )","v":""},null,null,null,null,{"$f":"IF(TRIM(ET93)=\"\", \"\", IF(VLOOKUP(ET93,'Footnotes list'!$D$9:$E$58,2,FALSE)=0,\"\",VLOOKUP(ET93,'Footnotes list'!$D$9:$E$58,2,FALSE) ) )","v":""},null,null,null,null,{"$f":"IF(TRIM(EY93)=\"\", \"\", IF(VLOOKUP(EY93,'Footnotes list'!$D$9:$E$58,2,FALSE)=0,\"\",VLOOKUP(EY93,'Footnotes list'!$D$9:$E$58,2,FALSE) ) )","v":""}]
[null,null,"C26","NMKT","non-market activities",null,null,null,null,null,{"$f":"IF(TRIM(J94)=\"\", \"\", IF(VLOOKUP(J94,'Footnotes list'!$D$9:$E$58,2,FALSE)=0,\"\",VLOOKUP(J94,'Footnotes list'!$D$9:$E$58,2,FALSE) ) )","v":""},null,null,null,null,{"$f":"IF(TRIM(O94)=\"\", \"\", IF(VLOOKUP(O94,'Footnotes list'!$D$9:$E$58,2,FALSE)=0,\"\",VLOOKUP(O94,'Footnotes list'!$D$9:$E$58,2,FALSE) ) )","v":""},null,null,null,null,{"$f":"IF(TRIM(T94)=\"\", \"\", IF(VLOOKUP(T94,'Footnotes list'!$D$9:$E$58,2,FALSE)=0,\"\",VLOOKUP(T94,'Footnotes list'!$D$9:$E$58,2,FALSE) ) )","v":""},null,null,null,null,{"$f":"IF(TRIM(Y94)=\"\", \"\", IF(VLOOKUP(Y94,'Footnotes list'!$D$9:$E$58,2,FALSE)=0,\"\",VLOOKUP(Y94,'Footnotes list'!$D$9:$E$58,2,FALSE) ) )","v":""},null,null,null,null,{"$f":"IF(TRIM(AD94)=\"\", \"\", IF(VLOOKUP(AD94,'Footnotes list'!$D$9:$E$58,2,FALSE)=0,\"\",VLOOKUP(AD94,'Footnotes list'!$D$9:$E$58,2,FALSE) ) )","v":""},null,null,null,null,{"$f":"IF(TRIM(AI94)=\"\", \"\", IF(VLOOKUP(AI94,'Footnotes list'!$D$9:$E$58,2,FALSE)=0,\"\",VLOOKUP(AI94,'Footnotes list'!$D$9:$E$58,2,FALSE) ) )","v":""},null,null,null,null,{"$f":"IF(TRIM(AN94)=\"\", \"\", IF(VLOOKUP(AN94,'Footnotes list'!$D$9:$E$58,2,FALSE)=0,\"\",VLOOKUP(AN94,'Footnotes list'!$D$9:$E$58,2,FALSE) ) )","v":""},null,null,null,null,{"$f":"IF(TRIM(AS94)=\"\", \"\", IF(VLOOKUP(AS94,'Footnotes list'!$D$9:$E$58,2,FALSE)=0,\"\",VLOOKUP(AS94,'Footnotes list'!$D$9:$E$58,2,FALSE) ) )","v":""},null,null,null,null,{"$f":"IF(TRIM(AX94)=\"\", \"\", IF(VLOOKUP(AX94,'Footnotes list'!$D$9:$E$58,2,FALSE)=0,\"\",VLOOKUP(AX94,'Footnotes list'!$D$9:$E$58,2,FALSE) ) )","v":""},null,null,null,null,{"$f":"IF(TRIM(BC94)=\"\", \"\", IF(VLOOKUP(BC94,'Footnotes list'!$D$9:$E$58,2,FALSE)=0,\"\",VLOOKUP(BC94,'Footnotes list'!$D$9:$E$58,2,FALSE) ) )","v":""},null,null,null,null,{"$f":"IF(TRIM(BH94)=\"\", \"\", IF(VLOOKUP(BH94,'Footnotes list'!$D$9:$E$58,2,FALSE)=0,\"\",VLOOKUP(BH94,'Footnotes list'!$D$9:$E$58,2,FALSE) ) )","v":""},null,null,null,null,{"$f":"IF(TRIM(BM94)=\"\", \"\", IF(VLOOKUP(BM94,'Footnotes list'!$D$9:$E$58,2,FALSE)=0,\"\",VLOOKUP(BM94,'Footnotes list'!$D$9:$E$58,2,FALSE) ) )","v":""},null,null,null,null,{"$f":"IF(TRIM(BR94)=\"\", \"\", IF(VLOOKUP(BR94,'Footnotes list'!$D$9:$E$58,2,FALSE)=0,\"\",VLOOKUP(BR94,'Footnotes list'!$D$9:$E$58,2,FALSE) ) )","v":""},null,null,null,null,{"$f":"IF(TRIM(BW94)=\"\", \"\", IF(VLOOKUP(BW94,'Footnotes list'!$D$9:$E$58,2,FALSE)=0,\"\",VLOOKUP(BW94,'Footnotes list'!$D$9:$E$58,2,FALSE) ) )","v":""},null,null,null,null,{"$f":"IF(TRIM(CB94)=\"\", \"\", IF(VLOOKUP(CB94,'Footnotes list'!$D$9:$E$58,2,FALSE)=0,\"\",VLOOKUP(CB94,'Footnotes list'!$D$9:$E$58,2,FALSE) ) )","v":""},null,null,null,null,{"$f":"IF(TRIM(CG94)=\"\", \"\", IF(VLOOKUP(CG94,'Footnotes list'!$D$9:$E$58,2,FALSE)=0,\"\",VLOOKUP(CG94,'Footnotes list'!$D$9:$E$58,2,FALSE) ) )","v":""},null,null,null,null,{"$f":"IF(TRIM(CL94)=\"\", \"\", IF(VLOOKUP(CL94,'Footnotes list'!$D$9:$E$58,2,FALSE)=0,\"\",VLOOKUP(CL94,'Footnotes list'!$D$9:$E$58,2,FALSE) ) )","v":""},null,null,null,null,{"$f":"IF(TRIM(CQ94)=\"\", \"\", IF(VLOOKUP(CQ94,'Footnotes list'!$D$9:$E$58,2,FALSE)=0,\"\",VLOOKUP(CQ94,'Footnotes list'!$D$9:$E$58,2,FALSE) ) )","v":""},null,null,null,null,{"$f":"IF(TRIM(CV94)=\"\", \"\", IF(VLOOKUP(CV94,'Footnotes list'!$D$9:$E$58,2,FALSE)=0,\"\",VLOOKUP(CV94,'Footnotes list'!$D$9:$E$58,2,FALSE) ) )","v":""},null,null,null,null,{"$f":"IF(TRIM(DA94)=\"\", \"\", IF(VLOOKUP(DA94,'Footnotes list'!$D$9:$E$58,2,FALSE)=0,\"\",VLOOKUP(DA94,'Footnotes list'!$D$9:$E$58,2,FALSE) ) )","v":""},null,null,null,null,{"$f":"IF(TRIM(DF94)=\"\", \"\", IF(VLOOKUP(DF94,'Footnotes list'!$D$9:$E$58,2,FALSE)=0,\"\",VLOOKUP(DF94,'Footnotes list'!$D$9:$E$58,2,FALSE) ) )","v":""},null,null,null,null,{"$f":"IF(TRIM(DK94)=\"\", \"\", IF(VLOOKUP(DK94,'Footnotes list'!$D$9:$E$58,2,FALSE)=0,\"\",VLOOKUP(DK94,'Footnotes list'!$D$9:$E$58,2,FALSE) ) )","v":""},null,null,null,null,{"$f":"IF(TRIM(DP94)=\"\", \"\", IF(VLOOKUP(DP94,'Footnotes list'!$D$9:$E$58,2,FALSE)=0,\"\",VLOOKUP(DP94,'Footnotes list'!$D$9:$E$58,2,FALSE) ) )","v":""},null,null,null,null,{"$f":"IF(TRIM(DU94)=\"\", \"\", IF(VLOOKUP(DU94,'Footnotes list'!$D$9:$E$58,2,FALSE)=0,\"\",VLOOKUP(DU94,'Footnotes list'!$D$9:$E$58,2,FALSE) ) )","v":""},null,null,null,null,{"$f":"IF(TRIM(DZ94)=\"\", \"\", IF(VLOOKUP(DZ94,'Footnotes list'!$D$9:$E$58,2,FALSE)=0,\"\",VLOOKUP(DZ94,'Footnotes list'!$D$9:$E$58,2,FALSE) ) )","v":""},null,null,null,null,{"$f":"IF(TRIM(EE94)=\"\", \"\", IF(VLOOKUP(EE94,'Footnotes list'!$D$9:$E$58,2,FALSE)=0,\"\",VLOOKUP(EE94,'Footnotes list'!$D$9:$E$58,2,FALSE) ) )","v":""},null,null,null,null,{"$f":"IF(TRIM(EJ94)=\"\", \"\", IF(VLOOKUP(EJ94,'Footnotes list'!$D$9:$E$58,2,FALSE)=0,\"\",VLOOKUP(EJ94,'Footnotes list'!$D$9:$E$58,2,FALSE) ) )","v":""},null,null,null,null,{"$f":"IF(TRIM(EO94)=\"\", \"\", IF(VLOOKUP(EO94,'Footnotes list'!$D$9:$E$58,2,FALSE)=0,\"\",VLOOKUP(EO94,'Footnotes list'!$D$9:$E$58,2,FALSE) ) )","v":""},null,null,null,null,{"$f":"IF(TRIM(ET94)=\"\", \"\", IF(VLOOKUP(ET94,'Footnotes list'!$D$9:$E$58,2,FALSE)=0,\"\",VLOOKUP(ET94,'Footnotes list'!$D$9:$E$58,2,FALSE) ) )","v":""},null,null,null,null,{"$f":"IF(TRIM(EY94)=\"\", \"\", IF(VLOOKUP(EY94,'Footnotes list'!$D$9:$E$58,2,FALSE)=0,\"\",VLOOKUP(EY94,'Footnotes list'!$D$9:$E$58,2,FALSE) ) )","v":""}]
[null,null,"C26","OWN_USE","activities for own final use",null,null,null,null,null,{"$f":"IF(TRIM(J95)=\"\", \"\", IF(VLOOKUP(J95,'Footnotes list'!$D$9:$E$58,2,FALSE)=0,\"\",VLOOKUP(J95,'Footnotes list'!$D$9:$E$58,2,FALSE) ) )","v":""},null,null,null,null,{"$f":"IF(TRIM(O95)=\"\", \"\", IF(VLOOKUP(O95,'Footnotes list'!$D$9:$E$58,2,FALSE)=0,\"\",VLOOKUP(O95,'Footnotes list'!$D$9:$E$58,2,FALSE) ) )","v":""},null,null,null,null,{"$f":"IF(TRIM(T95)=\"\", \"\", IF(VLOOKUP(T95,'Footnotes list'!$D$9:$E$58,2,FALSE)=0,\"\",VLOOKUP(T95,'Footnotes list'!$D$9:$E$58,2,FALSE) ) )","v":""},null,null,null,null,{"$f":"IF(TRIM(Y95)=\"\", \"\", IF(VLOOKUP(Y95,'Footnotes list'!$D$9:$E$58,2,FALSE)=0,\"\",VLOOKUP(Y95,'Footnotes list'!$D$9:$E$58,2,FALSE) ) )","v":""},null,null,null,null,{"$f":"IF(TRIM(AD95)=\"\", \"\", IF(VLOOKUP(AD95,'Footnotes list'!$D$9:$E$58,2,FALSE)=0,\"\",VLOOKUP(AD95,'Footnotes list'!$D$9:$E$58,2,FALSE) ) )","v":""},null,null,null,null,{"$f":"IF(TRIM(AI95)=\"\", \"\", IF(VLOOKUP(AI95,'Footnotes list'!$D$9:$E$58,2,FALSE)=0,\"\",VLOOKUP(AI95,'Footnotes list'!$D$9:$E$58,2,FALSE) ) )","v":""},null,null,null,null,{"$f":"IF(TRIM(AN95)=\"\", \"\", IF(VLOOKUP(AN95,'Footnotes list'!$D$9:$E$58,2,FALSE)=0,\"\",VLOOKUP(AN95,'Footnotes list'!$D$9:$E$58,2,FALSE) ) )","v":""},null,null,null,null,{"$f":"IF(TRIM(AS95)=\"\", \"\", IF(VLOOKUP(AS95,'Footnotes list'!$D$9:$E$58,2,FALSE)=0,\"\",VLOOKUP(AS95,'Footnotes list'!$D$9:$E$58,2,FALSE) ) )","v":""},null,null,null,null,{"$f":"IF(TRIM(AX95)=\"\", \"\", IF(VLOOKUP(AX95,'Footnotes list'!$D$9:$E$58,2,FALSE)=0,\"\",VLOOKUP(AX95,'Footnotes list'!$D$9:$E$58,2,FALSE) ) )","v":""},null,null,null,null,{"$f":"IF(TRIM(BC95)=\"\", \"\", IF(VLOOKUP(BC95,'Footnotes list'!$D$9:$E$58,2,FALSE)=0,\"\",VLOOKUP(BC95,'Footnotes list'!$D$9:$E$58,2,FALSE) ) )","v":""},null,null,null,null,{"$f":"IF(TRIM(BH95)=\"\", \"\", IF(VLOOKUP(BH95,'Footnotes list'!$D$9:$E$58,2,FALSE)=0,\"\",VLOOKUP(BH95,'Footnotes list'!$D$9:$E$58,2,FALSE) ) )","v":""},null,null,null,null,{"$f":"IF(TRIM(BM95)=\"\", \"\", IF(VLOOKUP(BM95,'Footnotes list'!$D$9:$E$58,2,FALSE)=0,\"\",VLOOKUP(BM95,'Footnotes list'!$D$9:$E$58,2,FALSE) ) )","v":""},null,null,null,null,{"$f":"IF(TRIM(BR95)=\"\", \"\", IF(VLOOKUP(BR95,'Footnotes list'!$D$9:$E$58,2,FALSE)=0,\"\",VLOOKUP(BR95,'Footnotes list'!$D$9:$E$58,2,FALSE) ) )","v":""},null,null,null,null,{"$f":"IF(TRIM(BW95)=\"\", \"\", IF(VLOOKUP(BW95,'Footnotes list'!$D$9:$E$58,2,FALSE)=0,\"\",VLOOKUP(BW95,'Footnotes list'!$D$9:$E$58,2,FALSE) ) )","v":""},null,null,null,null,{"$f":"IF(TRIM(CB95)=\"\", \"\", IF(VLOOKUP(CB95,'Footnotes list'!$D$9:$E$58,2,FALSE)=0,\"\",VLOOKUP(CB95,'Footnotes list'!$D$9:$E$58,2,FALSE) ) )","v":""},null,null,null,null,{"$f":"IF(TRIM(CG95)=\"\", \"\", IF(VLOOKUP(CG95,'Footnotes list'!$D$9:$E$58,2,FALSE)=0,\"\",VLOOKUP(CG95,'Footnotes list'!$D$9:$E$58,2,FALSE) ) )","v":""},null,null,null,null,{"$f":"IF(TRIM(CL95)=\"\", \"\", IF(VLOOKUP(CL95,'Footnotes list'!$D$9:$E$58,2,FALSE)=0,\"\",VLOOKUP(CL95,'Footnotes list'!$D$9:$E$58,2,FALSE) ) )","v":""},null,null,null,null,{"$f":"IF(TRIM(CQ95)=\"\", \"\", IF(VLOOKUP(CQ95,'Footnotes list'!$D$9:$E$58,2,FALSE)=0,\"\",VLOOKUP(CQ95,'Footnotes list'!$D$9:$E$58,2,FALSE) ) )","v":""},null,null,null,null,{"$f":"IF(TRIM(CV95)=\"\", \"\", IF(VLOOKUP(CV95,'Footnotes list'!$D$9:$E$58,2,FALSE)=0,\"\",VLOOKUP(CV95,'Footnotes list'!$D$9:$E$58,2,FALSE) ) )","v":""},null,null,null,null,{"$f":"IF(TRIM(DA95)=\"\", \"\", IF(VLOOKUP(DA95,'Footnotes list'!$D$9:$E$58,2,FALSE)=0,\"\",VLOOKUP(DA95,'Footnotes list'!$D$9:$E$58,2,FALSE) ) )","v":""},null,null,null,null,{"$f":"IF(TRIM(DF95)=\"\", \"\", IF(VLOOKUP(DF95,'Footnotes list'!$D$9:$E$58,2,FALSE)=0,\"\",VLOOKUP(DF95,'Footnotes list'!$D$9:$E$58,2,FALSE) ) )","v":""},null,null,null,null,{"$f":"IF(TRIM(DK95)=\"\", \"\", IF(VLOOKUP(DK95,'Footnotes list'!$D$9:$E$58,2,FALSE)=0,\"\",VLOOKUP(DK95,'Footnotes list'!$D$9:$E$58,2,FALSE) ) )","v":""},null,null,null,null,{"$f":"IF(TRIM(DP95)=\"\", \"\", IF(VLOOKUP(DP95,'Footnotes list'!$D$9:$E$58,2,FALSE)=0,\"\",VLOOKUP(DP95,'Footnotes list'!$D$9:$E$58,2,FALSE) ) )","v":""},null,null,null,null,{"$f":"IF(TRIM(DU95)=\"\", \"\", IF(VLOOKUP(DU95,'Footnotes list'!$D$9:$E$58,2,FALSE)=0,\"\",VLOOKUP(DU95,'Footnotes list'!$D$9:$E$58,2,FALSE) ) )","v":""},null,null,null,null,{"$f":"IF(TRIM(DZ95)=\"\", \"\", IF(VLOOKUP(DZ95,'Footnotes list'!$D$9:$E$58,2,FALSE)=0,\"\",VLOOKUP(DZ95,'Footnotes list'!$D$9:$E$58,2,FALSE) ) )","v":""},null,null,null,null,{"$f":"IF(TRIM(EE95)=\"\", \"\", IF(VLOOKUP(EE95,'Footnotes list'!$D$9:$E$58,2,FALSE)=0,\"\",VLOOKUP(EE95,'Footnotes list'!$D$9:$E$58,2,FALSE) ) )","v":""},null,null,null,null,{"$f":"IF(TRIM(EJ95)=\"\", \"\", IF(VLOOKUP(EJ95,'Footnotes list'!$D$9:$E$58,2,FALSE)=0,\"\",VLOOKUP(EJ95,'Footnotes list'!$D$9:$E$58,2,FALSE) ) )","v":""},null,null,null,null,{"$f":"IF(TRIM(EO95)=\"\", \"\", IF(VLOOKUP(EO95,'Footnotes list'!$D$9:$E$58,2,FALSE)=0,\"\",VLOOKUP(EO95,'Footnotes list'!$D$9:$E$58,2,FALSE) ) )","v":""},null,null,null,null,{"$f":"IF(TRIM(ET95)=\"\", \"\", IF(VLOOKUP(ET95,'Footnotes list'!$D$9:$E$58,2,FALSE)=0,\"\",VLOOKUP(ET95,'Footnotes list'!$D$9:$E$58,2,FALSE) ) )","v":""},null,null,null,null,{"$f":"IF(TRIM(EY95)=\"\", \"\", IF(VLOOKUP(EY95,'Footnotes list'!$D$9:$E$58,2,FALSE)=0,\"\",VLOOKUP(EY95,'Footnotes list'!$D$9:$E$58,2,FALSE) ) )","v":""}]
[null,null,"C26","MKT","market activities, including:",null,null,null,null,null,{"$f":"IF(TRIM(J96)=\"\", \"\", IF(VLOOKUP(J96,'Footnotes list'!$D$9:$E$58,2,FALSE)=0,\"\",VLOOKUP(J96,'Footnotes list'!$D$9:$E$58,2,FALSE) ) )","v":""},null,null,null,null,{"$f":"IF(TRIM(O96)=\"\", \"\", IF(VLOOKUP(O96,'Footnotes list'!$D$9:$E$58,2,FALSE)=0,\"\",VLOOKUP(O96,'Footnotes list'!$D$9:$E$58,2,FALSE) ) )","v":""},null,null,null,null,{"$f":"IF(TRIM(T96)=\"\", \"\", IF(VLOOKUP(T96,'Footnotes list'!$D$9:$E$58,2,FALSE)=0,\"\",VLOOKUP(T96,'Footnotes list'!$D$9:$E$58,2,FALSE) ) )","v":""},null,null,null,null,{"$f":"IF(TRIM(Y96)=\"\", \"\", IF(VLOOKUP(Y96,'Footnotes list'!$D$9:$E$58,2,FALSE)=0,\"\",VLOOKUP(Y96,'Footnotes list'!$D$9:$E$58,2,FALSE) ) )","v":""},null,null,null,null,{"$f":"IF(TRIM(AD96)=\"\", \"\", IF(VLOOKUP(AD96,'Footnotes list'!$D$9:$E$58,2,FALSE)=0,\"\",VLOOKUP(AD96,'Footnotes list'!$D$9:$E$58,2,FALSE) ) )","v":""},null,null,null,null,{"$f":"IF(TRIM(AI96)=\"\", \"\", IF(VLOOKUP(AI96,'Footnotes list'!$D$9:$E$58,2,FALSE)=0,\"\",VLOOKUP(AI96,'Footnotes list'!$D$9:$E$58,2,FALSE) ) )","v":""},null,null,null,null,{"$f":"IF(TRIM(AN96)=\"\", \"\", IF(VLOOKUP(AN96,'Footnotes list'!$D$9:$E$58,2,FALSE)=0,\"\",VLOOKUP(AN96,'Footnotes list'!$D$9:$E$58,2,FALSE) ) )","v":""},null,null,null,null,{"$f":"IF(TRIM(AS96)=\"\", \"\", IF(VLOOKUP(AS96,'Footnotes list'!$D$9:$E$58,2,FALSE)=0,\"\",VLOOKUP(AS96,'Footnotes list'!$D$9:$E$58,2,FALSE) ) )","v":""},null,null,null,null,{"$f":"IF(TRIM(AX96)=\"\", \"\", IF(VLOOKUP(AX96,'Footnotes list'!$D$9:$E$58,2,FALSE)=0,\"\",VLOOKUP(AX96,'Footnotes list'!$D$9:$E$58,2,FALSE) ) )","v":""},null,null,null,null,{"$f":"IF(TRIM(BC96)=\"\", \"\", IF(VLOOKUP(BC96,'Footnotes list'!$D$9:$E$58,2,FALSE)=0,\"\",VLOOKUP(BC96,'Footnotes list'!$D$9:$E$58,2,FALSE) ) )","v":""},null,null,null,null,{"$f":"IF(TRIM(BH96)=\"\", \"\", IF(VLOOKUP(BH96,'Footnotes list'!$D$9:$E$58,2,FALSE)=0,\"\",VLOOKUP(BH96,'Footnotes list'!$D$9:$E$58,2,FALSE) ) )","v":""},null,null,null,null,{"$f":"IF(TRIM(BM96)=\"\", \"\", IF(VLOOKUP(BM96,'Footnotes list'!$D$9:$E$58,2,FALSE)=0,\"\",VLOOKUP(BM96,'Footnotes list'!$D$9:$E$58,2,FALSE) ) )","v":""},null,null,null,null,{"$f":"IF(TRIM(BR96)=\"\", \"\", IF(VLOOKUP(BR96,'Footnotes list'!$D$9:$E$58,2,FALSE)=0,\"\",VLOOKUP(BR96,'Footnotes list'!$D$9:$E$58,2,FALSE) ) )","v":""},null,null,null,null,{"$f":"IF(TRIM(BW96)=\"\", \"\", IF(VLOOKUP(BW96,'Footnotes list'!$D$9:$E$58,2,FALSE)=0,\"\",VLOOKUP(BW96,'Footnotes list'!$D$9:$E$58,2,FALSE) ) )","v":""},null,null,null,null,{"$f":"IF(TRIM(CB96)=\"\", \"\", IF(VLOOKUP(CB96,'Footnotes list'!$D$9:$E$58,2,FALSE)=0,\"\",VLOOKUP(CB96,'Footnotes list'!$D$9:$E$58,2,FALSE) ) )","v":""},null,null,null,null,{"$f":"IF(TRIM(CG96)=\"\", \"\", IF(VLOOKUP(CG96,'Footnotes list'!$D$9:$E$58,2,FALSE)=0,\"\",VLOOKUP(CG96,'Footnotes list'!$D$9:$E$58,2,FALSE) ) )","v":""},null,null,null,null,{"$f":"IF(TRIM(CL96)=\"\", \"\", IF(VLOOKUP(CL96,'Footnotes list'!$D$9:$E$58,2,FALSE)=0,\"\",VLOOKUP(CL96,'Footnotes list'!$D$9:$E$58,2,FALSE) ) )","v":""},null,null,null,null,{"$f":"IF(TRIM(CQ96)=\"\", \"\", IF(VLOOKUP(CQ96,'Footnotes list'!$D$9:$E$58,2,FALSE)=0,\"\",VLOOKUP(CQ96,'Footnotes list'!$D$9:$E$58,2,FALSE) ) )","v":""},null,null,null,null,{"$f":"IF(TRIM(CV96)=\"\", \"\", IF(VLOOKUP(CV96,'Footnotes list'!$D$9:$E$58,2,FALSE)=0,\"\",VLOOKUP(CV96,'Footnotes list'!$D$9:$E$58,2,FALSE) ) )","v":""},null,null,null,null,{"$f":"IF(TRIM(DA96)=\"\", \"\", IF(VLOOKUP(DA96,'Footnotes list'!$D$9:$E$58,2,FALSE)=0,\"\",VLOOKUP(DA96,'Footnotes list'!$D$9:$E$58,2,FALSE) ) )","v":""},null,null,null,null,{"$f":"IF(TRIM(DF96)=\"\", \"\", IF(VLOOKUP(DF96,'Footnotes list'!$D$9:$E$58,2,FALSE)=0,\"\",VLOOKUP(DF96,'Footnotes list'!$D$9:$E$58,2,FALSE) ) )","v":""},null,null,null,null,{"$f":"IF(TRIM(DK96)=\"\", \"\", IF(VLOOKUP(DK96,'Footnotes list'!$D$9:$E$58,2,FALSE)=0,\"\",VLOOKUP(DK96,'Footnotes list'!$D$9:$E$58,2,FALSE) ) )","v":""},null,null,null,null,{"$f":"IF(TRIM(DP96)=\"\", \"\", IF(VLOOKUP(DP96,'Footnotes list'!$D$9:$E$58,2,FALSE)=0,\"\",VLOOKUP(DP96,'Footnotes list'!$D$9:$E$58,2,FALSE) ) )","v":""},null,null,null,null,{"$f":"IF(TRIM(DU96)=\"\", \"\", IF(VLOOKUP(DU96,'Footnotes list'!$D$9:$E$58,2,FALSE)=0,\"\",VLOOKUP(DU96,'Footnotes list'!$D$9:$E$58,2,FALSE) ) )","v":""},null,null,null,null,{"$f":"IF(TRIM(DZ96)=\"\", \"\", IF(VLOOKUP(DZ96,'Footnotes list'!$D$9:$E$58,2,FALSE)=0,\"\",VLOOKUP(DZ96,'Footnotes list'!$D$9:$E$58,2,FALSE) ) )","v":""},null,null,null,null,{"$f":"IF(TRIM(EE96)=\"\", \"\", IF(VLOOKUP(EE96,'Footnotes list'!$D$9:$E$58,2,FALSE)=0,\"\",VLOOKUP(EE96,'Footnotes list'!$D$9:$E$58,2,FALSE) ) )","v":""},null,null,null,null,{"$f":"IF(TRIM(EJ96)=\"\", \"\", IF(VLOOKUP(EJ96,'Footnotes list'!$D$9:$E$58,2,FALSE)=0,\"\",VLOOKUP(EJ96,'Footnotes list'!$D$9:$E$58,2,FALSE) ) )","v":""},null,null,null,null,{"$f":"IF(TRIM(EO96)=\"\", \"\", IF(VLOOKUP(EO96,'Footnotes list'!$D$9:$E$58,2,FALSE)=0,\"\",VLOOKUP(EO96,'Footnotes list'!$D$9:$E$58,2,FALSE) ) )","v":""},null,null,null,null,{"$f":"IF(TRIM(ET96)=\"\", \"\", IF(VLOOKUP(ET96,'Footnotes list'!$D$9:$E$58,2,FALSE)=0,\"\",VLOOKUP(ET96,'Footnotes list'!$D$9:$E$58,2,FALSE) ) )","v":""},null,null,null,null,{"$f":"IF(TRIM(EY96)=\"\", \"\", IF(VLOOKUP(EY96,'Footnotes list'!$D$9:$E$58,2,FALSE)=0,\"\",VLOOKUP(EY96,'Footnotes list'!$D$9:$E$58,2,FALSE) ) )","v":""}]
[null,null,"C26","ES_CS","environmental specific services",null,null,null,null,null,{"$f":"IF(TRIM(J97)=\"\", \"\", IF(VLOOKUP(J97,'Footnotes list'!$D$9:$E$58,2,FALSE)=0,\"\",VLOOKUP(J97,'Footnotes list'!$D$9:$E$58,2,FALSE) ) )","v":""},null,null,null,null,{"$f":"IF(TRIM(O97)=\"\", \"\", IF(VLOOKUP(O97,'Footnotes list'!$D$9:$E$58,2,FALSE)=0,\"\",VLOOKUP(O97,'Footnotes list'!$D$9:$E$58,2,FALSE) ) )","v":""},null,null,null,null,{"$f":"IF(TRIM(T97)=\"\", \"\", IF(VLOOKUP(T97,'Footnotes list'!$D$9:$E$58,2,FALSE)=0,\"\",VLOOKUP(T97,'Footnotes list'!$D$9:$E$58,2,FALSE) ) )","v":""},null,null,null,null,{"$f":"IF(TRIM(Y97)=\"\", \"\", IF(VLOOKUP(Y97,'Footnotes list'!$D$9:$E$58,2,FALSE)=0,\"\",VLOOKUP(Y97,'Footnotes list'!$D$9:$E$58,2,FALSE) ) )","v":""},null,null,null,null,{"$f":"IF(TRIM(AD97)=\"\", \"\", IF(VLOOKUP(AD97,'Footnotes list'!$D$9:$E$58,2,FALSE)=0,\"\",VLOOKUP(AD97,'Footnotes list'!$D$9:$E$58,2,FALSE) ) )","v":""},null,null,null,null,{"$f":"IF(TRIM(AI97)=\"\", \"\", IF(VLOOKUP(AI97,'Footnotes list'!$D$9:$E$58,2,FALSE)=0,\"\",VLOOKUP(AI97,'Footnotes list'!$D$9:$E$58,2,FALSE) ) )","v":""},null,null,null,null,{"$f":"IF(TRIM(AN97)=\"\", \"\", IF(VLOOKUP(AN97,'Footnotes list'!$D$9:$E$58,2,FALSE)=0,\"\",VLOOKUP(AN97,'Footnotes list'!$D$9:$E$58,2,FALSE) ) )","v":""},null,null,null,null,{"$f":"IF(TRIM(AS97)=\"\", \"\", IF(VLOOKUP(AS97,'Footnotes list'!$D$9:$E$58,2,FALSE)=0,\"\",VLOOKUP(AS97,'Footnotes list'!$D$9:$E$58,2,FALSE) ) )","v":""},null,null,null,null,{"$f":"IF(TRIM(AX97)=\"\", \"\", IF(VLOOKUP(AX97,'Footnotes list'!$D$9:$E$58,2,FALSE)=0,\"\",VLOOKUP(AX97,'Footnotes list'!$D$9:$E$58,2,FALSE) ) )","v":""},null,null,null,null,{"$f":"IF(TRIM(BC97)=\"\", \"\", IF(VLOOKUP(BC97,'Footnotes list'!$D$9:$E$58,2,FALSE)=0,\"\",VLOOKUP(BC97,'Footnotes list'!$D$9:$E$58,2,FALSE) ) )","v":""},null,null,null,null,{"$f":"IF(TRIM(BH97)=\"\", \"\", IF(VLOOKUP(BH97,'Footnotes list'!$D$9:$E$58,2,FALSE)=0,\"\",VLOOKUP(BH97,'Footnotes list'!$D$9:$E$58,2,FALSE) ) )","v":""},null,null,null,null,{"$f":"IF(TRIM(BM97)=\"\", \"\", IF(VLOOKUP(BM97,'Footnotes list'!$D$9:$E$58,2,FALSE)=0,\"\",VLOOKUP(BM97,'Footnotes list'!$D$9:$E$58,2,FALSE) ) )","v":""},null,null,null,null,{"$f":"IF(TRIM(BR97)=\"\", \"\", IF(VLOOKUP(BR97,'Footnotes list'!$D$9:$E$58,2,FALSE)=0,\"\",VLOOKUP(BR97,'Footnotes list'!$D$9:$E$58,2,FALSE) ) )","v":""},null,null,null,null,{"$f":"IF(TRIM(BW97)=\"\", \"\", IF(VLOOKUP(BW97,'Footnotes list'!$D$9:$E$58,2,FALSE)=0,\"\",VLOOKUP(BW97,'Footnotes list'!$D$9:$E$58,2,FALSE) ) )","v":""},null,null,null,null,{"$f":"IF(TRIM(CB97)=\"\", \"\", IF(VLOOKUP(CB97,'Footnotes list'!$D$9:$E$58,2,FALSE)=0,\"\",VLOOKUP(CB97,'Footnotes list'!$D$9:$E$58,2,FALSE) ) )","v":""},null,null,null,null,{"$f":"IF(TRIM(CG97)=\"\", \"\", IF(VLOOKUP(CG97,'Footnotes list'!$D$9:$E$58,2,FALSE)=0,\"\",VLOOKUP(CG97,'Footnotes list'!$D$9:$E$58,2,FALSE) ) )","v":""},null,null,null,null,{"$f":"IF(TRIM(CL97)=\"\", \"\", IF(VLOOKUP(CL97,'Footnotes list'!$D$9:$E$58,2,FALSE)=0,\"\",VLOOKUP(CL97,'Footnotes list'!$D$9:$E$58,2,FALSE) ) )","v":""},null,null,null,null,{"$f":"IF(TRIM(CQ97)=\"\", \"\", IF(VLOOKUP(CQ97,'Footnotes list'!$D$9:$E$58,2,FALSE)=0,\"\",VLOOKUP(CQ97,'Footnotes list'!$D$9:$E$58,2,FALSE) ) )","v":""},null,null,null,null,{"$f":"IF(TRIM(CV97)=\"\", \"\", IF(VLOOKUP(CV97,'Footnotes list'!$D$9:$E$58,2,FALSE)=0,\"\",VLOOKUP(CV97,'Footnotes list'!$D$9:$E$58,2,FALSE) ) )","v":""},null,null,null,null,{"$f":"IF(TRIM(DA97)=\"\", \"\", IF(VLOOKUP(DA97,'Footnotes list'!$D$9:$E$58,2,FALSE)=0,\"\",VLOOKUP(DA97,'Footnotes list'!$D$9:$E$58,2,FALSE) ) )","v":""},null,null,null,null,{"$f":"IF(TRIM(DF97)=\"\", \"\", IF(VLOOKUP(DF97,'Footnotes list'!$D$9:$E$58,2,FALSE)=0,\"\",VLOOKUP(DF97,'Footnotes list'!$D$9:$E$58,2,FALSE) ) )","v":""},null,null,null,null,{"$f":"IF(TRIM(DK97)=\"\", \"\", IF(VLOOKUP(DK97,'Footnotes list'!$D$9:$E$58,2,FALSE)=0,\"\",VLOOKUP(DK97,'Footnotes list'!$D$9:$E$58,2,FALSE) ) )","v":""},null,null,null,null,{"$f":"IF(TRIM(DP97)=\"\", \"\", IF(VLOOKUP(DP97,'Footnotes list'!$D$9:$E$58,2,FALSE)=0,\"\",VLOOKUP(DP97,'Footnotes list'!$D$9:$E$58,2,FALSE) ) )","v":""},null,null,null,null,{"$f":"IF(TRIM(DU97)=\"\", \"\", IF(VLOOKUP(DU97,'Footnotes list'!$D$9:$E$58,2,FALSE)=0,\"\",VLOOKUP(DU97,'Footnotes list'!$D$9:$E$58,2,FALSE) ) )","v":""},null,null,null,null,{"$f":"IF(TRIM(DZ97)=\"\", \"\", IF(VLOOKUP(DZ97,'Footnotes list'!$D$9:$E$58,2,FALSE)=0,\"\",VLOOKUP(DZ97,'Footnotes list'!$D$9:$E$58,2,FALSE) ) )","v":""},null,null,null,null,{"$f":"IF(TRIM(EE97)=\"\", \"\", IF(VLOOKUP(EE97,'Footnotes list'!$D$9:$E$58,2,FALSE)=0,\"\",VLOOKUP(EE97,'Footnotes list'!$D$9:$E$58,2,FALSE) ) )","v":""},null,null,null,null,{"$f":"IF(TRIM(EJ97)=\"\", \"\", IF(VLOOKUP(EJ97,'Footnotes list'!$D$9:$E$58,2,FALSE)=0,\"\",VLOOKUP(EJ97,'Footnotes list'!$D$9:$E$58,2,FALSE) ) )","v":""},null,null,null,null,{"$f":"IF(TRIM(EO97)=\"\", \"\", IF(VLOOKUP(EO97,'Footnotes list'!$D$9:$E$58,2,FALSE)=0,\"\",VLOOKUP(EO97,'Footnotes list'!$D$9:$E$58,2,FALSE) ) )","v":""},null,null,null,null,{"$f":"IF(TRIM(ET97)=\"\", \"\", IF(VLOOKUP(ET97,'Footnotes list'!$D$9:$E$58,2,FALSE)=0,\"\",VLOOKUP(ET97,'Footnotes list'!$D$9:$E$58,2,FALSE) ) )","v":""},null,null,null,null,{"$f":"IF(TRIM(EY97)=\"\", \"\", IF(VLOOKUP(EY97,'Footnotes list'!$D$9:$E$58,2,FALSE)=0,\"\",VLOOKUP(EY97,'Footnotes list'!$D$9:$E$58,2,FALSE) ) )","v":""}]
[null,null,"C26","C_REP","cleaner and resource efficient products",null,null,null,null,null,{"$f":"IF(TRIM(J98)=\"\", \"\", IF(VLOOKUP(J98,'Footnotes list'!$D$9:$E$58,2,FALSE)=0,\"\",VLOOKUP(J98,'Footnotes list'!$D$9:$E$58,2,FALSE) ) )","v":""},null,null,null,null,{"$f":"IF(TRIM(O98)=\"\", \"\", IF(VLOOKUP(O98,'Footnotes list'!$D$9:$E$58,2,FALSE)=0,\"\",VLOOKUP(O98,'Footnotes list'!$D$9:$E$58,2,FALSE) ) )","v":""},null,null,null,null,{"$f":"IF(TRIM(T98)=\"\", \"\", IF(VLOOKUP(T98,'Footnotes list'!$D$9:$E$58,2,FALSE)=0,\"\",VLOOKUP(T98,'Footnotes list'!$D$9:$E$58,2,FALSE) ) )","v":""},null,null,null,null,{"$f":"IF(TRIM(Y98)=\"\", \"\", IF(VLOOKUP(Y98,'Footnotes list'!$D$9:$E$58,2,FALSE)=0,\"\",VLOOKUP(Y98,'Footnotes list'!$D$9:$E$58,2,FALSE) ) )","v":""},null,null,null,null,{"$f":"IF(TRIM(AD98)=\"\", \"\", IF(VLOOKUP(AD98,'Footnotes list'!$D$9:$E$58,2,FALSE)=0,\"\",VLOOKUP(AD98,'Footnotes list'!$D$9:$E$58,2,FALSE) ) )","v":""},null,null,null,null,{"$f":"IF(TRIM(AI98)=\"\", \"\", IF(VLOOKUP(AI98,'Footnotes list'!$D$9:$E$58,2,FALSE)=0,\"\",VLOOKUP(AI98,'Footnotes list'!$D$9:$E$58,2,FALSE) ) )","v":""},null,null,null,null,{"$f":"IF(TRIM(AN98)=\"\", \"\", IF(VLOOKUP(AN98,'Footnotes list'!$D$9:$E$58,2,FALSE)=0,\"\",VLOOKUP(AN98,'Footnotes list'!$D$9:$E$58,2,FALSE) ) )","v":""},null,null,null,null,{"$f":"IF(TRIM(AS98)=\"\", \"\", IF(VLOOKUP(AS98,'Footnotes list'!$D$9:$E$58,2,FALSE)=0,\"\",VLOOKUP(AS98,'Footnotes list'!$D$9:$E$58,2,FALSE) ) )","v":""},null,null,null,null,{"$f":"IF(TRIM(AX98)=\"\", \"\", IF(VLOOKUP(AX98,'Footnotes list'!$D$9:$E$58,2,FALSE)=0,\"\",VLOOKUP(AX98,'Footnotes list'!$D$9:$E$58,2,FALSE) ) )","v":""},null,null,null,null,{"$f":"IF(TRIM(BC98)=\"\", \"\", IF(VLOOKUP(BC98,'Footnotes list'!$D$9:$E$58,2,FALSE)=0,\"\",VLOOKUP(BC98,'Footnotes list'!$D$9:$E$58,2,FALSE) ) )","v":""},null,null,null,null,{"$f":"IF(TRIM(BH98)=\"\", \"\", IF(VLOOKUP(BH98,'Footnotes list'!$D$9:$E$58,2,FALSE)=0,\"\",VLOOKUP(BH98,'Footnotes list'!$D$9:$E$58,2,FALSE) ) )","v":""},null,null,null,null,{"$f":"IF(TRIM(BM98)=\"\", \"\", IF(VLOOKUP(BM98,'Footnotes list'!$D$9:$E$58,2,FALSE)=0,\"\",VLOOKUP(BM98,'Footnotes list'!$D$9:$E$58,2,FALSE) ) )","v":""},null,null,null,null,{"$f":"IF(TRIM(BR98)=\"\", \"\", IF(VLOOKUP(BR98,'Footnotes list'!$D$9:$E$58,2,FALSE)=0,\"\",VLOOKUP(BR98,'Footnotes list'!$D$9:$E$58,2,FALSE) ) )","v":""},null,null,null,null,{"$f":"IF(TRIM(BW98)=\"\", \"\", IF(VLOOKUP(BW98,'Footnotes list'!$D$9:$E$58,2,FALSE)=0,\"\",VLOOKUP(BW98,'Footnotes list'!$D$9:$E$58,2,FALSE) ) )","v":""},null,null,null,null,{"$f":"IF(TRIM(CB98)=\"\", \"\", IF(VLOOKUP(CB98,'Footnotes list'!$D$9:$E$58,2,FALSE)=0,\"\",VLOOKUP(CB98,'Footnotes list'!$D$9:$E$58,2,FALSE) ) )","v":""},null,null,null,null,{"$f":"IF(TRIM(CG98)=\"\", \"\", IF(VLOOKUP(CG98,'Footnotes list'!$D$9:$E$58,2,FALSE)=0,\"\",VLOOKUP(CG98,'Footnotes list'!$D$9:$E$58,2,FALSE) ) )","v":""},null,null,null,null,{"$f":"IF(TRIM(CL98)=\"\", \"\", IF(VLOOKUP(CL98,'Footnotes list'!$D$9:$E$58,2,FALSE)=0,\"\",VLOOKUP(CL98,'Footnotes list'!$D$9:$E$58,2,FALSE) ) )","v":""},null,null,null,null,{"$f":"IF(TRIM(CQ98)=\"\", \"\", IF(VLOOKUP(CQ98,'Footnotes list'!$D$9:$E$58,2,FALSE)=0,\"\",VLOOKUP(CQ98,'Footnotes list'!$D$9:$E$58,2,FALSE) ) )","v":""},null,null,null,null,{"$f":"IF(TRIM(CV98)=\"\", \"\", IF(VLOOKUP(CV98,'Footnotes list'!$D$9:$E$58,2,FALSE)=0,\"\",VLOOKUP(CV98,'Footnotes list'!$D$9:$E$58,2,FALSE) ) )","v":""},null,null,null,null,{"$f":"IF(TRIM(DA98)=\"\", \"\", IF(VLOOKUP(DA98,'Footnotes list'!$D$9:$E$58,2,FALSE)=0,\"\",VLOOKUP(DA98,'Footnotes list'!$D$9:$E$58,2,FALSE) ) )","v":""},null,null,null,null,{"$f":"IF(TRIM(DF98)=\"\", \"\", IF(VLOOKUP(DF98,'Footnotes list'!$D$9:$E$58,2,FALSE)=0,\"\",VLOOKUP(DF98,'Footnotes list'!$D$9:$E$58,2,FALSE) ) )","v":""},null,null,null,null,{"$f":"IF(TRIM(DK98)=\"\", \"\", IF(VLOOKUP(DK98,'Footnotes list'!$D$9:$E$58,2,FALSE)=0,\"\",VLOOKUP(DK98,'Footnotes list'!$D$9:$E$58,2,FALSE) ) )","v":""},null,null,null,null,{"$f":"IF(TRIM(DP98)=\"\", \"\", IF(VLOOKUP(DP98,'Footnotes list'!$D$9:$E$58,2,FALSE)=0,\"\",VLOOKUP(DP98,'Footnotes list'!$D$9:$E$58,2,FALSE) ) )","v":""},null,null,null,null,{"$f":"IF(TRIM(DU98)=\"\", \"\", IF(VLOOKUP(DU98,'Footnotes list'!$D$9:$E$58,2,FALSE)=0,\"\",VLOOKUP(DU98,'Footnotes list'!$D$9:$E$58,2,FALSE) ) )","v":""},null,null,null,null,{"$f":"IF(TRIM(DZ98)=\"\", \"\", IF(VLOOKUP(DZ98,'Footnotes list'!$D$9:$E$58,2,FALSE)=0,\"\",VLOOKUP(DZ98,'Footnotes list'!$D$9:$E$58,2,FALSE) ) )","v":""},null,null,null,null,{"$f":"IF(TRIM(EE98)=\"\", \"\", IF(VLOOKUP(EE98,'Footnotes list'!$D$9:$E$58,2,FALSE)=0,\"\",VLOOKUP(EE98,'Footnotes list'!$D$9:$E$58,2,FALSE) ) )","v":""},null,null,null,null,{"$f":"IF(TRIM(EJ98)=\"\", \"\", IF(VLOOKUP(EJ98,'Footnotes list'!$D$9:$E$58,2,FALSE)=0,\"\",VLOOKUP(EJ98,'Footnotes list'!$D$9:$E$58,2,FALSE) ) )","v":""},null,null,null,null,{"$f":"IF(TRIM(EO98)=\"\", \"\", IF(VLOOKUP(EO98,'Footnotes list'!$D$9:$E$58,2,FALSE)=0,\"\",VLOOKUP(EO98,'Footnotes list'!$D$9:$E$58,2,FALSE) ) )","v":""},null,null,null,null,{"$f":"IF(TRIM(ET98)=\"\", \"\", IF(VLOOKUP(ET98,'Footnotes list'!$D$9:$E$58,2,FALSE)=0,\"\",VLOOKUP(ET98,'Footnotes list'!$D$9:$E$58,2,FALSE) ) )","v":""},null,null,null,null,{"$f":"IF(TRIM(EY98)=\"\", \"\", IF(VLOOKUP(EY98,'Footnotes list'!$D$9:$E$58,2,FALSE)=0,\"\",VLOOKUP(EY98,'Footnotes list'!$D$9:$E$58,2,FALSE) ) )","v":""}]
[null,null,"C27","TOT_EGSS","Total C27 - Manufacture of electrical equipment, of which:",null,null,null,null,null,{"$f":"IF(TRIM(J99)=\"\", \"\", IF(VLOOKUP(J99,'Footnotes list'!$D$9:$E$58,2,FALSE)=0,\"\",VLOOKUP(J99,'Footnotes list'!$D$9:$E$58,2,FALSE) ) )","v":""},null,null,null,null,{"$f":"IF(TRIM(O99)=\"\", \"\", IF(VLOOKUP(O99,'Footnotes list'!$D$9:$E$58,2,FALSE)=0,\"\",VLOOKUP(O99,'Footnotes list'!$D$9:$E$58,2,FALSE) ) )","v":""},null,null,null,null,{"$f":"IF(TRIM(T99)=\"\", \"\", IF(VLOOKUP(T99,'Footnotes list'!$D$9:$E$58,2,FALSE)=0,\"\",VLOOKUP(T99,'Footnotes list'!$D$9:$E$58,2,FALSE) ) )","v":""},null,null,null,null,{"$f":"IF(TRIM(Y99)=\"\", \"\", IF(VLOOKUP(Y99,'Footnotes list'!$D$9:$E$58,2,FALSE)=0,\"\",VLOOKUP(Y99,'Footnotes list'!$D$9:$E$58,2,FALSE) ) )","v":""},null,null,null,null,{"$f":"IF(TRIM(AD99)=\"\", \"\", IF(VLOOKUP(AD99,'Footnotes list'!$D$9:$E$58,2,FALSE)=0,\"\",VLOOKUP(AD99,'Footnotes list'!$D$9:$E$58,2,FALSE) ) )","v":""},null,null,null,null,{"$f":"IF(TRIM(AI99)=\"\", \"\", IF(VLOOKUP(AI99,'Footnotes list'!$D$9:$E$58,2,FALSE)=0,\"\",VLOOKUP(AI99,'Footnotes list'!$D$9:$E$58,2,FALSE) ) )","v":""},null,null,null,null,{"$f":"IF(TRIM(AN99)=\"\", \"\", IF(VLOOKUP(AN99,'Footnotes list'!$D$9:$E$58,2,FALSE)=0,\"\",VLOOKUP(AN99,'Footnotes list'!$D$9:$E$58,2,FALSE) ) )","v":""},null,null,null,null,{"$f":"IF(TRIM(AS99)=\"\", \"\", IF(VLOOKUP(AS99,'Footnotes list'!$D$9:$E$58,2,FALSE)=0,\"\",VLOOKUP(AS99,'Footnotes list'!$D$9:$E$58,2,FALSE) ) )","v":""},null,null,null,null,{"$f":"IF(TRIM(AX99)=\"\", \"\", IF(VLOOKUP(AX99,'Footnotes list'!$D$9:$E$58,2,FALSE)=0,\"\",VLOOKUP(AX99,'Footnotes list'!$D$9:$E$58,2,FALSE) ) )","v":""},null,null,null,null,{"$f":"IF(TRIM(BC99)=\"\", \"\", IF(VLOOKUP(BC99,'Footnotes list'!$D$9:$E$58,2,FALSE)=0,\"\",VLOOKUP(BC99,'Footnotes list'!$D$9:$E$58,2,FALSE) ) )","v":""},null,null,null,null,{"$f":"IF(TRIM(BH99)=\"\", \"\", IF(VLOOKUP(BH99,'Footnotes list'!$D$9:$E$58,2,FALSE)=0,\"\",VLOOKUP(BH99,'Footnotes list'!$D$9:$E$58,2,FALSE) ) )","v":""},null,null,null,null,{"$f":"IF(TRIM(BM99)=\"\", \"\", IF(VLOOKUP(BM99,'Footnotes list'!$D$9:$E$58,2,FALSE)=0,\"\",VLOOKUP(BM99,'Footnotes list'!$D$9:$E$58,2,FALSE) ) )","v":""},null,null,null,null,{"$f":"IF(TRIM(BR99)=\"\", \"\", IF(VLOOKUP(BR99,'Footnotes list'!$D$9:$E$58,2,FALSE)=0,\"\",VLOOKUP(BR99,'Footnotes list'!$D$9:$E$58,2,FALSE) ) )","v":""},null,null,null,null,{"$f":"IF(TRIM(BW99)=\"\", \"\", IF(VLOOKUP(BW99,'Footnotes list'!$D$9:$E$58,2,FALSE)=0,\"\",VLOOKUP(BW99,'Footnotes list'!$D$9:$E$58,2,FALSE) ) )","v":""},null,null,null,null,{"$f":"IF(TRIM(CB99)=\"\", \"\", IF(VLOOKUP(CB99,'Footnotes list'!$D$9:$E$58,2,FALSE)=0,\"\",VLOOKUP(CB99,'Footnotes list'!$D$9:$E$58,2,FALSE) ) )","v":""},null,null,null,null,{"$f":"IF(TRIM(CG99)=\"\", \"\", IF(VLOOKUP(CG99,'Footnotes list'!$D$9:$E$58,2,FALSE)=0,\"\",VLOOKUP(CG99,'Footnotes list'!$D$9:$E$58,2,FALSE) ) )","v":""},null,null,null,null,{"$f":"IF(TRIM(CL99)=\"\", \"\", IF(VLOOKUP(CL99,'Footnotes list'!$D$9:$E$58,2,FALSE)=0,\"\",VLOOKUP(CL99,'Footnotes list'!$D$9:$E$58,2,FALSE) ) )","v":""},null,null,null,null,{"$f":"IF(TRIM(CQ99)=\"\", \"\", IF(VLOOKUP(CQ99,'Footnotes list'!$D$9:$E$58,2,FALSE)=0,\"\",VLOOKUP(CQ99,'Footnotes list'!$D$9:$E$58,2,FALSE) ) )","v":""},null,null,null,null,{"$f":"IF(TRIM(CV99)=\"\", \"\", IF(VLOOKUP(CV99,'Footnotes list'!$D$9:$E$58,2,FALSE)=0,\"\",VLOOKUP(CV99,'Footnotes list'!$D$9:$E$58,2,FALSE) ) )","v":""},null,null,null,null,{"$f":"IF(TRIM(DA99)=\"\", \"\", IF(VLOOKUP(DA99,'Footnotes list'!$D$9:$E$58,2,FALSE)=0,\"\",VLOOKUP(DA99,'Footnotes list'!$D$9:$E$58,2,FALSE) ) )","v":""},null,null,null,null,{"$f":"IF(TRIM(DF99)=\"\", \"\", IF(VLOOKUP(DF99,'Footnotes list'!$D$9:$E$58,2,FALSE)=0,\"\",VLOOKUP(DF99,'Footnotes list'!$D$9:$E$58,2,FALSE) ) )","v":""},null,null,null,null,{"$f":"IF(TRIM(DK99)=\"\", \"\", IF(VLOOKUP(DK99,'Footnotes list'!$D$9:$E$58,2,FALSE)=0,\"\",VLOOKUP(DK99,'Footnotes list'!$D$9:$E$58,2,FALSE) ) )","v":""},null,null,null,null,{"$f":"IF(TRIM(DP99)=\"\", \"\", IF(VLOOKUP(DP99,'Footnotes list'!$D$9:$E$58,2,FALSE)=0,\"\",VLOOKUP(DP99,'Footnotes list'!$D$9:$E$58,2,FALSE) ) )","v":""},null,null,null,null,{"$f":"IF(TRIM(DU99)=\"\", \"\", IF(VLOOKUP(DU99,'Footnotes list'!$D$9:$E$58,2,FALSE)=0,\"\",VLOOKUP(DU99,'Footnotes list'!$D$9:$E$58,2,FALSE) ) )","v":""},null,null,null,null,{"$f":"IF(TRIM(DZ99)=\"\", \"\", IF(VLOOKUP(DZ99,'Footnotes list'!$D$9:$E$58,2,FALSE)=0,\"\",VLOOKUP(DZ99,'Footnotes list'!$D$9:$E$58,2,FALSE) ) )","v":""},null,null,null,null,{"$f":"IF(TRIM(EE99)=\"\", \"\", IF(VLOOKUP(EE99,'Footnotes list'!$D$9:$E$58,2,FALSE)=0,\"\",VLOOKUP(EE99,'Footnotes list'!$D$9:$E$58,2,FALSE) ) )","v":""},null,null,null,null,{"$f":"IF(TRIM(EJ99)=\"\", \"\", IF(VLOOKUP(EJ99,'Footnotes list'!$D$9:$E$58,2,FALSE)=0,\"\",VLOOKUP(EJ99,'Footnotes list'!$D$9:$E$58,2,FALSE) ) )","v":""},null,null,null,null,{"$f":"IF(TRIM(EO99)=\"\", \"\", IF(VLOOKUP(EO99,'Footnotes list'!$D$9:$E$58,2,FALSE)=0,\"\",VLOOKUP(EO99,'Footnotes list'!$D$9:$E$58,2,FALSE) ) )","v":""},null,null,null,null,{"$f":"IF(TRIM(ET99)=\"\", \"\", IF(VLOOKUP(ET99,'Footnotes list'!$D$9:$E$58,2,FALSE)=0,\"\",VLOOKUP(ET99,'Footnotes list'!$D$9:$E$58,2,FALSE) ) )","v":""},null,null,null,null,{"$f":"IF(TRIM(EY99)=\"\", \"\", IF(VLOOKUP(EY99,'Footnotes list'!$D$9:$E$58,2,FALSE)=0,\"\",VLOOKUP(EY99,'Footnotes list'!$D$9:$E$58,2,FALSE) ) )","v":""}]
[null,null,"C27","ANC","ancillary activities",null,null,null,null,null,{"$f":"IF(TRIM(J100)=\"\", \"\", IF(VLOOKUP(J100,'Footnotes list'!$D$9:$E$58,2,FALSE)=0,\"\",VLOOKUP(J100,'Footnotes list'!$D$9:$E$58,2,FALSE) ) )","v":""},null,null,null,null,{"$f":"IF(TRIM(O100)=\"\", \"\", IF(VLOOKUP(O100,'Footnotes list'!$D$9:$E$58,2,FALSE)=0,\"\",VLOOKUP(O100,'Footnotes list'!$D$9:$E$58,2,FALSE) ) )","v":""},null,null,null,null,{"$f":"IF(TRIM(T100)=\"\", \"\", IF(VLOOKUP(T100,'Footnotes list'!$D$9:$E$58,2,FALSE)=0,\"\",VLOOKUP(T100,'Footnotes list'!$D$9:$E$58,2,FALSE) ) )","v":""},null,null,null,null,{"$f":"IF(TRIM(Y100)=\"\", \"\", IF(VLOOKUP(Y100,'Footnotes list'!$D$9:$E$58,2,FALSE)=0,\"\",VLOOKUP(Y100,'Footnotes list'!$D$9:$E$58,2,FALSE) ) )","v":""},null,null,null,null,{"$f":"IF(TRIM(AD100)=\"\", \"\", IF(VLOOKUP(AD100,'Footnotes list'!$D$9:$E$58,2,FALSE)=0,\"\",VLOOKUP(AD100,'Footnotes list'!$D$9:$E$58,2,FALSE) ) )","v":""},null,null,null,null,{"$f":"IF(TRIM(AI100)=\"\", \"\", IF(VLOOKUP(AI100,'Footnotes list'!$D$9:$E$58,2,FALSE)=0,\"\",VLOOKUP(AI100,'Footnotes list'!$D$9:$E$58,2,FALSE) ) )","v":""},null,null,null,null,{"$f":"IF(TRIM(AN100)=\"\", \"\", IF(VLOOKUP(AN100,'Footnotes list'!$D$9:$E$58,2,FALSE)=0,\"\",VLOOKUP(AN100,'Footnotes list'!$D$9:$E$58,2,FALSE) ) )","v":""},null,null,null,null,{"$f":"IF(TRIM(AS100)=\"\", \"\", IF(VLOOKUP(AS100,'Footnotes list'!$D$9:$E$58,2,FALSE)=0,\"\",VLOOKUP(AS100,'Footnotes list'!$D$9:$E$58,2,FALSE) ) )","v":""},null,null,null,null,{"$f":"IF(TRIM(AX100)=\"\", \"\", IF(VLOOKUP(AX100,'Footnotes list'!$D$9:$E$58,2,FALSE)=0,\"\",VLOOKUP(AX100,'Footnotes list'!$D$9:$E$58,2,FALSE) ) )","v":""},null,null,null,null,{"$f":"IF(TRIM(BC100)=\"\", \"\", IF(VLOOKUP(BC100,'Footnotes list'!$D$9:$E$58,2,FALSE)=0,\"\",VLOOKUP(BC100,'Footnotes list'!$D$9:$E$58,2,FALSE) ) )","v":""},null,null,null,null,{"$f":"IF(TRIM(BH100)=\"\", \"\", IF(VLOOKUP(BH100,'Footnotes list'!$D$9:$E$58,2,FALSE)=0,\"\",VLOOKUP(BH100,'Footnotes list'!$D$9:$E$58,2,FALSE) ) )","v":""},null,null,null,null,{"$f":"IF(TRIM(BM100)=\"\", \"\", IF(VLOOKUP(BM100,'Footnotes list'!$D$9:$E$58,2,FALSE)=0,\"\",VLOOKUP(BM100,'Footnotes list'!$D$9:$E$58,2,FALSE) ) )","v":""},null,null,null,null,{"$f":"IF(TRIM(BR100)=\"\", \"\", IF(VLOOKUP(BR100,'Footnotes list'!$D$9:$E$58,2,FALSE)=0,\"\",VLOOKUP(BR100,'Footnotes list'!$D$9:$E$58,2,FALSE) ) )","v":""},null,null,null,null,{"$f":"IF(TRIM(BW100)=\"\", \"\", IF(VLOOKUP(BW100,'Footnotes list'!$D$9:$E$58,2,FALSE)=0,\"\",VLOOKUP(BW100,'Footnotes list'!$D$9:$E$58,2,FALSE) ) )","v":""},null,null,null,null,{"$f":"IF(TRIM(CB100)=\"\", \"\", IF(VLOOKUP(CB100,'Footnotes list'!$D$9:$E$58,2,FALSE)=0,\"\",VLOOKUP(CB100,'Footnotes list'!$D$9:$E$58,2,FALSE) ) )","v":""},null,null,null,null,{"$f":"IF(TRIM(CG100)=\"\", \"\", IF(VLOOKUP(CG100,'Footnotes list'!$D$9:$E$58,2,FALSE)=0,\"\",VLOOKUP(CG100,'Footnotes list'!$D$9:$E$58,2,FALSE) ) )","v":""},null,null,null,null,{"$f":"IF(TRIM(CL100)=\"\", \"\", IF(VLOOKUP(CL100,'Footnotes list'!$D$9:$E$58,2,FALSE)=0,\"\",VLOOKUP(CL100,'Footnotes list'!$D$9:$E$58,2,FALSE) ) )","v":""},null,null,null,null,{"$f":"IF(TRIM(CQ100)=\"\", \"\", IF(VLOOKUP(CQ100,'Footnotes list'!$D$9:$E$58,2,FALSE)=0,\"\",VLOOKUP(CQ100,'Footnotes list'!$D$9:$E$58,2,FALSE) ) )","v":""},null,null,null,null,{"$f":"IF(TRIM(CV100)=\"\", \"\", IF(VLOOKUP(CV100,'Footnotes list'!$D$9:$E$58,2,FALSE)=0,\"\",VLOOKUP(CV100,'Footnotes list'!$D$9:$E$58,2,FALSE) ) )","v":""},null,null,null,null,{"$f":"IF(TRIM(DA100)=\"\", \"\", IF(VLOOKUP(DA100,'Footnotes list'!$D$9:$E$58,2,FALSE)=0,\"\",VLOOKUP(DA100,'Footnotes list'!$D$9:$E$58,2,FALSE) ) )","v":""},null,null,null,null,{"$f":"IF(TRIM(DF100)=\"\", \"\", IF(VLOOKUP(DF100,'Footnotes list'!$D$9:$E$58,2,FALSE)=0,\"\",VLOOKUP(DF100,'Footnotes list'!$D$9:$E$58,2,FALSE) ) )","v":""},null,null,null,null,{"$f":"IF(TRIM(DK100)=\"\", \"\", IF(VLOOKUP(DK100,'Footnotes list'!$D$9:$E$58,2,FALSE)=0,\"\",VLOOKUP(DK100,'Footnotes list'!$D$9:$E$58,2,FALSE) ) )","v":""},null,null,null,null,{"$f":"IF(TRIM(DP100)=\"\", \"\", IF(VLOOKUP(DP100,'Footnotes list'!$D$9:$E$58,2,FALSE)=0,\"\",VLOOKUP(DP100,'Footnotes list'!$D$9:$E$58,2,FALSE) ) )","v":""},null,null,null,null,{"$f":"IF(TRIM(DU100)=\"\", \"\", IF(VLOOKUP(DU100,'Footnotes list'!$D$9:$E$58,2,FALSE)=0,\"\",VLOOKUP(DU100,'Footnotes list'!$D$9:$E$58,2,FALSE) ) )","v":""},null,null,null,null,{"$f":"IF(TRIM(DZ100)=\"\", \"\", IF(VLOOKUP(DZ100,'Footnotes list'!$D$9:$E$58,2,FALSE)=0,\"\",VLOOKUP(DZ100,'Footnotes list'!$D$9:$E$58,2,FALSE) ) )","v":""},null,null,null,null,{"$f":"IF(TRIM(EE100)=\"\", \"\", IF(VLOOKUP(EE100,'Footnotes list'!$D$9:$E$58,2,FALSE)=0,\"\",VLOOKUP(EE100,'Footnotes list'!$D$9:$E$58,2,FALSE) ) )","v":""},null,null,null,null,{"$f":"IF(TRIM(EJ100)=\"\", \"\", IF(VLOOKUP(EJ100,'Footnotes list'!$D$9:$E$58,2,FALSE)=0,\"\",VLOOKUP(EJ100,'Footnotes list'!$D$9:$E$58,2,FALSE) ) )","v":""},null,null,null,null,{"$f":"IF(TRIM(EO100)=\"\", \"\", IF(VLOOKUP(EO100,'Footnotes list'!$D$9:$E$58,2,FALSE)=0,\"\",VLOOKUP(EO100,'Footnotes list'!$D$9:$E$58,2,FALSE) ) )","v":""},null,null,null,null,{"$f":"IF(TRIM(ET100)=\"\", \"\", IF(VLOOKUP(ET100,'Footnotes list'!$D$9:$E$58,2,FALSE)=0,\"\",VLOOKUP(ET100,'Footnotes list'!$D$9:$E$58,2,FALSE) ) )","v":""},null,null,null,null,{"$f":"IF(TRIM(EY100)=\"\", \"\", IF(VLOOKUP(EY100,'Footnotes list'!$D$9:$E$58,2,FALSE)=0,\"\",VLOOKUP(EY100,'Footnotes list'!$D$9:$E$58,2,FALSE) ) )","v":""}]
[null,null,"C27","NMKT","non-market activities",null,null,null,null,null,{"$f":"IF(TRIM(J101)=\"\", \"\", IF(VLOOKUP(J101,'Footnotes list'!$D$9:$E$58,2,FALSE)=0,\"\",VLOOKUP(J101,'Footnotes list'!$D$9:$E$58,2,FALSE) ) )","v":""},null,null,null,null,{"$f":"IF(TRIM(O101)=\"\", \"\", IF(VLOOKUP(O101,'Footnotes list'!$D$9:$E$58,2,FALSE)=0,\"\",VLOOKUP(O101,'Footnotes list'!$D$9:$E$58,2,FALSE) ) )","v":""},null,null,null,null,{"$f":"IF(TRIM(T101)=\"\", \"\", IF(VLOOKUP(T101,'Footnotes list'!$D$9:$E$58,2,FALSE)=0,\"\",VLOOKUP(T101,'Footnotes list'!$D$9:$E$58,2,FALSE) ) )","v":""},null,null,null,null,{"$f":"IF(TRIM(Y101)=\"\", \"\", IF(VLOOKUP(Y101,'Footnotes list'!$D$9:$E$58,2,FALSE)=0,\"\",VLOOKUP(Y101,'Footnotes list'!$D$9:$E$58,2,FALSE) ) )","v":""},null,null,null,null,{"$f":"IF(TRIM(AD101)=\"\", \"\", IF(VLOOKUP(AD101,'Footnotes list'!$D$9:$E$58,2,FALSE)=0,\"\",VLOOKUP(AD101,'Footnotes list'!$D$9:$E$58,2,FALSE) ) )","v":""},null,null,null,null,{"$f":"IF(TRIM(AI101)=\"\", \"\", IF(VLOOKUP(AI101,'Footnotes list'!$D$9:$E$58,2,FALSE)=0,\"\",VLOOKUP(AI101,'Footnotes list'!$D$9:$E$58,2,FALSE) ) )","v":""},null,null,null,null,{"$f":"IF(TRIM(AN101)=\"\", \"\", IF(VLOOKUP(AN101,'Footnotes list'!$D$9:$E$58,2,FALSE)=0,\"\",VLOOKUP(AN101,'Footnotes list'!$D$9:$E$58,2,FALSE) ) )","v":""},null,null,null,null,{"$f":"IF(TRIM(AS101)=\"\", \"\", IF(VLOOKUP(AS101,'Footnotes list'!$D$9:$E$58,2,FALSE)=0,\"\",VLOOKUP(AS101,'Footnotes list'!$D$9:$E$58,2,FALSE) ) )","v":""},null,null,null,null,{"$f":"IF(TRIM(AX101)=\"\", \"\", IF(VLOOKUP(AX101,'Footnotes list'!$D$9:$E$58,2,FALSE)=0,\"\",VLOOKUP(AX101,'Footnotes list'!$D$9:$E$58,2,FALSE) ) )","v":""},null,null,null,null,{"$f":"IF(TRIM(BC101)=\"\", \"\", IF(VLOOKUP(BC101,'Footnotes list'!$D$9:$E$58,2,FALSE)=0,\"\",VLOOKUP(BC101,'Footnotes list'!$D$9:$E$58,2,FALSE) ) )","v":""},null,null,null,null,{"$f":"IF(TRIM(BH101)=\"\", \"\", IF(VLOOKUP(BH101,'Footnotes list'!$D$9:$E$58,2,FALSE)=0,\"\",VLOOKUP(BH101,'Footnotes list'!$D$9:$E$58,2,FALSE) ) )","v":""},null,null,null,null,{"$f":"IF(TRIM(BM101)=\"\", \"\", IF(VLOOKUP(BM101,'Footnotes list'!$D$9:$E$58,2,FALSE)=0,\"\",VLOOKUP(BM101,'Footnotes list'!$D$9:$E$58,2,FALSE) ) )","v":""},null,null,null,null,{"$f":"IF(TRIM(BR101)=\"\", \"\", IF(VLOOKUP(BR101,'Footnotes list'!$D$9:$E$58,2,FALSE)=0,\"\",VLOOKUP(BR101,'Footnotes list'!$D$9:$E$58,2,FALSE) ) )","v":""},null,null,null,null,{"$f":"IF(TRIM(BW101)=\"\", \"\", IF(VLOOKUP(BW101,'Footnotes list'!$D$9:$E$58,2,FALSE)=0,\"\",VLOOKUP(BW101,'Footnotes list'!$D$9:$E$58,2,FALSE) ) )","v":""},null,null,null,null,{"$f":"IF(TRIM(CB101)=\"\", \"\", IF(VLOOKUP(CB101,'Footnotes list'!$D$9:$E$58,2,FALSE)=0,\"\",VLOOKUP(CB101,'Footnotes list'!$D$9:$E$58,2,FALSE) ) )","v":""},null,null,null,null,{"$f":"IF(TRIM(CG101)=\"\", \"\", IF(VLOOKUP(CG101,'Footnotes list'!$D$9:$E$58,2,FALSE)=0,\"\",VLOOKUP(CG101,'Footnotes list'!$D$9:$E$58,2,FALSE) ) )","v":""},null,null,null,null,{"$f":"IF(TRIM(CL101)=\"\", \"\", IF(VLOOKUP(CL101,'Footnotes list'!$D$9:$E$58,2,FALSE)=0,\"\",VLOOKUP(CL101,'Footnotes list'!$D$9:$E$58,2,FALSE) ) )","v":""},null,null,null,null,{"$f":"IF(TRIM(CQ101)=\"\", \"\", IF(VLOOKUP(CQ101,'Footnotes list'!$D$9:$E$58,2,FALSE)=0,\"\",VLOOKUP(CQ101,'Footnotes list'!$D$9:$E$58,2,FALSE) ) )","v":""},null,null,null,null,{"$f":"IF(TRIM(CV101)=\"\", \"\", IF(VLOOKUP(CV101,'Footnotes list'!$D$9:$E$58,2,FALSE)=0,\"\",VLOOKUP(CV101,'Footnotes list'!$D$9:$E$58,2,FALSE) ) )","v":""},null,null,null,null,{"$f":"IF(TRIM(DA101)=\"\", \"\", IF(VLOOKUP(DA101,'Footnotes list'!$D$9:$E$58,2,FALSE)=0,\"\",VLOOKUP(DA101,'Footnotes list'!$D$9:$E$58,2,FALSE) ) )","v":""},null,null,null,null,{"$f":"IF(TRIM(DF101)=\"\", \"\", IF(VLOOKUP(DF101,'Footnotes list'!$D$9:$E$58,2,FALSE)=0,\"\",VLOOKUP(DF101,'Footnotes list'!$D$9:$E$58,2,FALSE) ) )","v":""},null,null,null,null,{"$f":"IF(TRIM(DK101)=\"\", \"\", IF(VLOOKUP(DK101,'Footnotes list'!$D$9:$E$58,2,FALSE)=0,\"\",VLOOKUP(DK101,'Footnotes list'!$D$9:$E$58,2,FALSE) ) )","v":""},null,null,null,null,{"$f":"IF(TRIM(DP101)=\"\", \"\", IF(VLOOKUP(DP101,'Footnotes list'!$D$9:$E$58,2,FALSE)=0,\"\",VLOOKUP(DP101,'Footnotes list'!$D$9:$E$58,2,FALSE) ) )","v":""},null,null,null,null,{"$f":"IF(TRIM(DU101)=\"\", \"\", IF(VLOOKUP(DU101,'Footnotes list'!$D$9:$E$58,2,FALSE)=0,\"\",VLOOKUP(DU101,'Footnotes list'!$D$9:$E$58,2,FALSE) ) )","v":""},null,null,null,null,{"$f":"IF(TRIM(DZ101)=\"\", \"\", IF(VLOOKUP(DZ101,'Footnotes list'!$D$9:$E$58,2,FALSE)=0,\"\",VLOOKUP(DZ101,'Footnotes list'!$D$9:$E$58,2,FALSE) ) )","v":""},null,null,null,null,{"$f":"IF(TRIM(EE101)=\"\", \"\", IF(VLOOKUP(EE101,'Footnotes list'!$D$9:$E$58,2,FALSE)=0,\"\",VLOOKUP(EE101,'Footnotes list'!$D$9:$E$58,2,FALSE) ) )","v":""},null,null,null,null,{"$f":"IF(TRIM(EJ101)=\"\", \"\", IF(VLOOKUP(EJ101,'Footnotes list'!$D$9:$E$58,2,FALSE)=0,\"\",VLOOKUP(EJ101,'Footnotes list'!$D$9:$E$58,2,FALSE) ) )","v":""},null,null,null,null,{"$f":"IF(TRIM(EO101)=\"\", \"\", IF(VLOOKUP(EO101,'Footnotes list'!$D$9:$E$58,2,FALSE)=0,\"\",VLOOKUP(EO101,'Footnotes list'!$D$9:$E$58,2,FALSE) ) )","v":""},null,null,null,null,{"$f":"IF(TRIM(ET101)=\"\", \"\", IF(VLOOKUP(ET101,'Footnotes list'!$D$9:$E$58,2,FALSE)=0,\"\",VLOOKUP(ET101,'Footnotes list'!$D$9:$E$58,2,FALSE) ) )","v":""},null,null,null,null,{"$f":"IF(TRIM(EY101)=\"\", \"\", IF(VLOOKUP(EY101,'Footnotes list'!$D$9:$E$58,2,FALSE)=0,\"\",VLOOKUP(EY101,'Footnotes list'!$D$9:$E$58,2,FALSE) ) )","v":""}]
[null,null,"C27","OWN_USE","activities for own final use",null,null,null,null,null,{"$f":"IF(TRIM(J102)=\"\", \"\", IF(VLOOKUP(J102,'Footnotes list'!$D$9:$E$58,2,FALSE)=0,\"\",VLOOKUP(J102,'Footnotes list'!$D$9:$E$58,2,FALSE) ) )","v":""},null,null,null,null,{"$f":"IF(TRIM(O102)=\"\", \"\", IF(VLOOKUP(O102,'Footnotes list'!$D$9:$E$58,2,FALSE)=0,\"\",VLOOKUP(O102,'Footnotes list'!$D$9:$E$58,2,FALSE) ) )","v":""},null,null,null,null,{"$f":"IF(TRIM(T102)=\"\", \"\", IF(VLOOKUP(T102,'Footnotes list'!$D$9:$E$58,2,FALSE)=0,\"\",VLOOKUP(T102,'Footnotes list'!$D$9:$E$58,2,FALSE) ) )","v":""},null,null,null,null,{"$f":"IF(TRIM(Y102)=\"\", \"\", IF(VLOOKUP(Y102,'Footnotes list'!$D$9:$E$58,2,FALSE)=0,\"\",VLOOKUP(Y102,'Footnotes list'!$D$9:$E$58,2,FALSE) ) )","v":""},null,null,null,null,{"$f":"IF(TRIM(AD102)=\"\", \"\", IF(VLOOKUP(AD102,'Footnotes list'!$D$9:$E$58,2,FALSE)=0,\"\",VLOOKUP(AD102,'Footnotes list'!$D$9:$E$58,2,FALSE) ) )","v":""},null,null,null,null,{"$f":"IF(TRIM(AI102)=\"\", \"\", IF(VLOOKUP(AI102,'Footnotes list'!$D$9:$E$58,2,FALSE)=0,\"\",VLOOKUP(AI102,'Footnotes list'!$D$9:$E$58,2,FALSE) ) )","v":""},null,null,null,null,{"$f":"IF(TRIM(AN102)=\"\", \"\", IF(VLOOKUP(AN102,'Footnotes list'!$D$9:$E$58,2,FALSE)=0,\"\",VLOOKUP(AN102,'Footnotes list'!$D$9:$E$58,2,FALSE) ) )","v":""},null,null,null,null,{"$f":"IF(TRIM(AS102)=\"\", \"\", IF(VLOOKUP(AS102,'Footnotes list'!$D$9:$E$58,2,FALSE)=0,\"\",VLOOKUP(AS102,'Footnotes list'!$D$9:$E$58,2,FALSE) ) )","v":""},null,null,null,null,{"$f":"IF(TRIM(AX102)=\"\", \"\", IF(VLOOKUP(AX102,'Footnotes list'!$D$9:$E$58,2,FALSE)=0,\"\",VLOOKUP(AX102,'Footnotes list'!$D$9:$E$58,2,FALSE) ) )","v":""},null,null,null,null,{"$f":"IF(TRIM(BC102)=\"\", \"\", IF(VLOOKUP(BC102,'Footnotes list'!$D$9:$E$58,2,FALSE)=0,\"\",VLOOKUP(BC102,'Footnotes list'!$D$9:$E$58,2,FALSE) ) )","v":""},null,null,null,null,{"$f":"IF(TRIM(BH102)=\"\", \"\", IF(VLOOKUP(BH102,'Footnotes list'!$D$9:$E$58,2,FALSE)=0,\"\",VLOOKUP(BH102,'Footnotes list'!$D$9:$E$58,2,FALSE) ) )","v":""},null,null,null,null,{"$f":"IF(TRIM(BM102)=\"\", \"\", IF(VLOOKUP(BM102,'Footnotes list'!$D$9:$E$58,2,FALSE)=0,\"\",VLOOKUP(BM102,'Footnotes list'!$D$9:$E$58,2,FALSE) ) )","v":""},null,null,null,null,{"$f":"IF(TRIM(BR102)=\"\", \"\", IF(VLOOKUP(BR102,'Footnotes list'!$D$9:$E$58,2,FALSE)=0,\"\",VLOOKUP(BR102,'Footnotes list'!$D$9:$E$58,2,FALSE) ) )","v":""},null,null,null,null,{"$f":"IF(TRIM(BW102)=\"\", \"\", IF(VLOOKUP(BW102,'Footnotes list'!$D$9:$E$58,2,FALSE)=0,\"\",VLOOKUP(BW102,'Footnotes list'!$D$9:$E$58,2,FALSE) ) )","v":""},null,null,null,null,{"$f":"IF(TRIM(CB102)=\"\", \"\", IF(VLOOKUP(CB102,'Footnotes list'!$D$9:$E$58,2,FALSE)=0,\"\",VLOOKUP(CB102,'Footnotes list'!$D$9:$E$58,2,FALSE) ) )","v":""},null,null,null,null,{"$f":"IF(TRIM(CG102)=\"\", \"\", IF(VLOOKUP(CG102,'Footnotes list'!$D$9:$E$58,2,FALSE)=0,\"\",VLOOKUP(CG102,'Footnotes list'!$D$9:$E$58,2,FALSE) ) )","v":""},null,null,null,null,{"$f":"IF(TRIM(CL102)=\"\", \"\", IF(VLOOKUP(CL102,'Footnotes list'!$D$9:$E$58,2,FALSE)=0,\"\",VLOOKUP(CL102,'Footnotes list'!$D$9:$E$58,2,FALSE) ) )","v":""},null,null,null,null,{"$f":"IF(TRIM(CQ102)=\"\", \"\", IF(VLOOKUP(CQ102,'Footnotes list'!$D$9:$E$58,2,FALSE)=0,\"\",VLOOKUP(CQ102,'Footnotes list'!$D$9:$E$58,2,FALSE) ) )","v":""},null,null,null,null,{"$f":"IF(TRIM(CV102)=\"\", \"\", IF(VLOOKUP(CV102,'Footnotes list'!$D$9:$E$58,2,FALSE)=0,\"\",VLOOKUP(CV102,'Footnotes list'!$D$9:$E$58,2,FALSE) ) )","v":""},null,null,null,null,{"$f":"IF(TRIM(DA102)=\"\", \"\", IF(VLOOKUP(DA102,'Footnotes list'!$D$9:$E$58,2,FALSE)=0,\"\",VLOOKUP(DA102,'Footnotes list'!$D$9:$E$58,2,FALSE) ) )","v":""},null,null,null,null,{"$f":"IF(TRIM(DF102)=\"\", \"\", IF(VLOOKUP(DF102,'Footnotes list'!$D$9:$E$58,2,FALSE)=0,\"\",VLOOKUP(DF102,'Footnotes list'!$D$9:$E$58,2,FALSE) ) )","v":""},null,null,null,null,{"$f":"IF(TRIM(DK102)=\"\", \"\", IF(VLOOKUP(DK102,'Footnotes list'!$D$9:$E$58,2,FALSE)=0,\"\",VLOOKUP(DK102,'Footnotes list'!$D$9:$E$58,2,FALSE) ) )","v":""},null,null,null,null,{"$f":"IF(TRIM(DP102)=\"\", \"\", IF(VLOOKUP(DP102,'Footnotes list'!$D$9:$E$58,2,FALSE)=0,\"\",VLOOKUP(DP102,'Footnotes list'!$D$9:$E$58,2,FALSE) ) )","v":""},null,null,null,null,{"$f":"IF(TRIM(DU102)=\"\", \"\", IF(VLOOKUP(DU102,'Footnotes list'!$D$9:$E$58,2,FALSE)=0,\"\",VLOOKUP(DU102,'Footnotes list'!$D$9:$E$58,2,FALSE) ) )","v":""},null,null,null,null,{"$f":"IF(TRIM(DZ102)=\"\", \"\", IF(VLOOKUP(DZ102,'Footnotes list'!$D$9:$E$58,2,FALSE)=0,\"\",VLOOKUP(DZ102,'Footnotes list'!$D$9:$E$58,2,FALSE) ) )","v":""},null,null,null,null,{"$f":"IF(TRIM(EE102)=\"\", \"\", IF(VLOOKUP(EE102,'Footnotes list'!$D$9:$E$58,2,FALSE)=0,\"\",VLOOKUP(EE102,'Footnotes list'!$D$9:$E$58,2,FALSE) ) )","v":""},null,null,null,null,{"$f":"IF(TRIM(EJ102)=\"\", \"\", IF(VLOOKUP(EJ102,'Footnotes list'!$D$9:$E$58,2,FALSE)=0,\"\",VLOOKUP(EJ102,'Footnotes list'!$D$9:$E$58,2,FALSE) ) )","v":""},null,null,null,null,{"$f":"IF(TRIM(EO102)=\"\", \"\", IF(VLOOKUP(EO102,'Footnotes list'!$D$9:$E$58,2,FALSE)=0,\"\",VLOOKUP(EO102,'Footnotes list'!$D$9:$E$58,2,FALSE) ) )","v":""},null,null,null,null,{"$f":"IF(TRIM(ET102)=\"\", \"\", IF(VLOOKUP(ET102,'Footnotes list'!$D$9:$E$58,2,FALSE)=0,\"\",VLOOKUP(ET102,'Footnotes list'!$D$9:$E$58,2,FALSE) ) )","v":""},null,null,null,null,{"$f":"IF(TRIM(EY102)=\"\", \"\", IF(VLOOKUP(EY102,'Footnotes list'!$D$9:$E$58,2,FALSE)=0,\"\",VLOOKUP(EY102,'Footnotes list'!$D$9:$E$58,2,FALSE) ) )","v":""}]
[null,null,"C27","MKT","market activities, including:",null,null,null,null,null,{"$f":"IF(TRIM(J103)=\"\", \"\", IF(VLOOKUP(J103,'Footnotes list'!$D$9:$E$58,2,FALSE)=0,\"\",VLOOKUP(J103,'Footnotes list'!$D$9:$E$58,2,FALSE) ) )","v":""},null,null,null,null,{"$f":"IF(TRIM(O103)=\"\", \"\", IF(VLOOKUP(O103,'Footnotes list'!$D$9:$E$58,2,FALSE)=0,\"\",VLOOKUP(O103,'Footnotes list'!$D$9:$E$58,2,FALSE) ) )","v":""},null,null,null,null,{"$f":"IF(TRIM(T103)=\"\", \"\", IF(VLOOKUP(T103,'Footnotes list'!$D$9:$E$58,2,FALSE)=0,\"\",VLOOKUP(T103,'Footnotes list'!$D$9:$E$58,2,FALSE) ) )","v":""},null,null,null,null,{"$f":"IF(TRIM(Y103)=\"\", \"\", IF(VLOOKUP(Y103,'Footnotes list'!$D$9:$E$58,2,FALSE)=0,\"\",VLOOKUP(Y103,'Footnotes list'!$D$9:$E$58,2,FALSE) ) )","v":""},null,null,null,null,{"$f":"IF(TRIM(AD103)=\"\", \"\", IF(VLOOKUP(AD103,'Footnotes list'!$D$9:$E$58,2,FALSE)=0,\"\",VLOOKUP(AD103,'Footnotes list'!$D$9:$E$58,2,FALSE) ) )","v":""},null,null,null,null,{"$f":"IF(TRIM(AI103)=\"\", \"\", IF(VLOOKUP(AI103,'Footnotes list'!$D$9:$E$58,2,FALSE)=0,\"\",VLOOKUP(AI103,'Footnotes list'!$D$9:$E$58,2,FALSE) ) )","v":""},null,null,null,null,{"$f":"IF(TRIM(AN103)=\"\", \"\", IF(VLOOKUP(AN103,'Footnotes list'!$D$9:$E$58,2,FALSE)=0,\"\",VLOOKUP(AN103,'Footnotes list'!$D$9:$E$58,2,FALSE) ) )","v":""},null,null,null,null,{"$f":"IF(TRIM(AS103)=\"\", \"\", IF(VLOOKUP(AS103,'Footnotes list'!$D$9:$E$58,2,FALSE)=0,\"\",VLOOKUP(AS103,'Footnotes list'!$D$9:$E$58,2,FALSE) ) )","v":""},null,null,null,null,{"$f":"IF(TRIM(AX103)=\"\", \"\", IF(VLOOKUP(AX103,'Footnotes list'!$D$9:$E$58,2,FALSE)=0,\"\",VLOOKUP(AX103,'Footnotes list'!$D$9:$E$58,2,FALSE) ) )","v":""},null,null,null,null,{"$f":"IF(TRIM(BC103)=\"\", \"\", IF(VLOOKUP(BC103,'Footnotes list'!$D$9:$E$58,2,FALSE)=0,\"\",VLOOKUP(BC103,'Footnotes list'!$D$9:$E$58,2,FALSE) ) )","v":""},null,null,null,null,{"$f":"IF(TRIM(BH103)=\"\", \"\", IF(VLOOKUP(BH103,'Footnotes list'!$D$9:$E$58,2,FALSE)=0,\"\",VLOOKUP(BH103,'Footnotes list'!$D$9:$E$58,2,FALSE) ) )","v":""},null,null,null,null,{"$f":"IF(TRIM(BM103)=\"\", \"\", IF(VLOOKUP(BM103,'Footnotes list'!$D$9:$E$58,2,FALSE)=0,\"\",VLOOKUP(BM103,'Footnotes list'!$D$9:$E$58,2,FALSE) ) )","v":""},null,null,null,null,{"$f":"IF(TRIM(BR103)=\"\", \"\", IF(VLOOKUP(BR103,'Footnotes list'!$D$9:$E$58,2,FALSE)=0,\"\",VLOOKUP(BR103,'Footnotes list'!$D$9:$E$58,2,FALSE) ) )","v":""},null,null,null,null,{"$f":"IF(TRIM(BW103)=\"\", \"\", IF(VLOOKUP(BW103,'Footnotes list'!$D$9:$E$58,2,FALSE)=0,\"\",VLOOKUP(BW103,'Footnotes list'!$D$9:$E$58,2,FALSE) ) )","v":""},null,null,null,null,{"$f":"IF(TRIM(CB103)=\"\", \"\", IF(VLOOKUP(CB103,'Footnotes list'!$D$9:$E$58,2,FALSE)=0,\"\",VLOOKUP(CB103,'Footnotes list'!$D$9:$E$58,2,FALSE) ) )","v":""},null,null,null,null,{"$f":"IF(TRIM(CG103)=\"\", \"\", IF(VLOOKUP(CG103,'Footnotes list'!$D$9:$E$58,2,FALSE)=0,\"\",VLOOKUP(CG103,'Footnotes list'!$D$9:$E$58,2,FALSE) ) )","v":""},null,null,null,null,{"$f":"IF(TRIM(CL103)=\"\", \"\", IF(VLOOKUP(CL103,'Footnotes list'!$D$9:$E$58,2,FALSE)=0,\"\",VLOOKUP(CL103,'Footnotes list'!$D$9:$E$58,2,FALSE) ) )","v":""},null,null,null,null,{"$f":"IF(TRIM(CQ103)=\"\", \"\", IF(VLOOKUP(CQ103,'Footnotes list'!$D$9:$E$58,2,FALSE)=0,\"\",VLOOKUP(CQ103,'Footnotes list'!$D$9:$E$58,2,FALSE) ) )","v":""},null,null,null,null,{"$f":"IF(TRIM(CV103)=\"\", \"\", IF(VLOOKUP(CV103,'Footnotes list'!$D$9:$E$58,2,FALSE)=0,\"\",VLOOKUP(CV103,'Footnotes list'!$D$9:$E$58,2,FALSE) ) )","v":""},null,null,null,null,{"$f":"IF(TRIM(DA103)=\"\", \"\", IF(VLOOKUP(DA103,'Footnotes list'!$D$9:$E$58,2,FALSE)=0,\"\",VLOOKUP(DA103,'Footnotes list'!$D$9:$E$58,2,FALSE) ) )","v":""},null,null,null,null,{"$f":"IF(TRIM(DF103)=\"\", \"\", IF(VLOOKUP(DF103,'Footnotes list'!$D$9:$E$58,2,FALSE)=0,\"\",VLOOKUP(DF103,'Footnotes list'!$D$9:$E$58,2,FALSE) ) )","v":""},null,null,null,null,{"$f":"IF(TRIM(DK103)=\"\", \"\", IF(VLOOKUP(DK103,'Footnotes list'!$D$9:$E$58,2,FALSE)=0,\"\",VLOOKUP(DK103,'Footnotes list'!$D$9:$E$58,2,FALSE) ) )","v":""},null,null,null,null,{"$f":"IF(TRIM(DP103)=\"\", \"\", IF(VLOOKUP(DP103,'Footnotes list'!$D$9:$E$58,2,FALSE)=0,\"\",VLOOKUP(DP103,'Footnotes list'!$D$9:$E$58,2,FALSE) ) )","v":""},null,null,null,null,{"$f":"IF(TRIM(DU103)=\"\", \"\", IF(VLOOKUP(DU103,'Footnotes list'!$D$9:$E$58,2,FALSE)=0,\"\",VLOOKUP(DU103,'Footnotes list'!$D$9:$E$58,2,FALSE) ) )","v":""},null,null,null,null,{"$f":"IF(TRIM(DZ103)=\"\", \"\", IF(VLOOKUP(DZ103,'Footnotes list'!$D$9:$E$58,2,FALSE)=0,\"\",VLOOKUP(DZ103,'Footnotes list'!$D$9:$E$58,2,FALSE) ) )","v":""},null,null,null,null,{"$f":"IF(TRIM(EE103)=\"\", \"\", IF(VLOOKUP(EE103,'Footnotes list'!$D$9:$E$58,2,FALSE)=0,\"\",VLOOKUP(EE103,'Footnotes list'!$D$9:$E$58,2,FALSE) ) )","v":""},null,null,null,null,{"$f":"IF(TRIM(EJ103)=\"\", \"\", IF(VLOOKUP(EJ103,'Footnotes list'!$D$9:$E$58,2,FALSE)=0,\"\",VLOOKUP(EJ103,'Footnotes list'!$D$9:$E$58,2,FALSE) ) )","v":""},null,null,null,null,{"$f":"IF(TRIM(EO103)=\"\", \"\", IF(VLOOKUP(EO103,'Footnotes list'!$D$9:$E$58,2,FALSE)=0,\"\",VLOOKUP(EO103,'Footnotes list'!$D$9:$E$58,2,FALSE) ) )","v":""},null,null,null,null,{"$f":"IF(TRIM(ET103)=\"\", \"\", IF(VLOOKUP(ET103,'Footnotes list'!$D$9:$E$58,2,FALSE)=0,\"\",VLOOKUP(ET103,'Footnotes list'!$D$9:$E$58,2,FALSE) ) )","v":""},null,null,null,null,{"$f":"IF(TRIM(EY103)=\"\", \"\", IF(VLOOKUP(EY103,'Footnotes list'!$D$9:$E$58,2,FALSE)=0,\"\",VLOOKUP(EY103,'Footnotes list'!$D$9:$E$58,2,FALSE) ) )","v":""}]
[null,null,"C27","ES_CS","environmental specific services",null,null,null,null,null,{"$f":"IF(TRIM(J104)=\"\", \"\", IF(VLOOKUP(J104,'Footnotes list'!$D$9:$E$58,2,FALSE)=0,\"\",VLOOKUP(J104,'Footnotes list'!$D$9:$E$58,2,FALSE) ) )","v":""},null,null,null,null,{"$f":"IF(TRIM(O104)=\"\", \"\", IF(VLOOKUP(O104,'Footnotes list'!$D$9:$E$58,2,FALSE)=0,\"\",VLOOKUP(O104,'Footnotes list'!$D$9:$E$58,2,FALSE) ) )","v":""},null,null,null,null,{"$f":"IF(TRIM(T104)=\"\", \"\", IF(VLOOKUP(T104,'Footnotes list'!$D$9:$E$58,2,FALSE)=0,\"\",VLOOKUP(T104,'Footnotes list'!$D$9:$E$58,2,FALSE) ) )","v":""},null,null,null,null,{"$f":"IF(TRIM(Y104)=\"\", \"\", IF(VLOOKUP(Y104,'Footnotes list'!$D$9:$E$58,2,FALSE)=0,\"\",VLOOKUP(Y104,'Footnotes list'!$D$9:$E$58,2,FALSE) ) )","v":""},null,null,null,null,{"$f":"IF(TRIM(AD104)=\"\", \"\", IF(VLOOKUP(AD104,'Footnotes list'!$D$9:$E$58,2,FALSE)=0,\"\",VLOOKUP(AD104,'Footnotes list'!$D$9:$E$58,2,FALSE) ) )","v":""},null,null,null,null,{"$f":"IF(TRIM(AI104)=\"\", \"\", IF(VLOOKUP(AI104,'Footnotes list'!$D$9:$E$58,2,FALSE)=0,\"\",VLOOKUP(AI104,'Footnotes list'!$D$9:$E$58,2,FALSE) ) )","v":""},null,null,null,null,{"$f":"IF(TRIM(AN104)=\"\", \"\", IF(VLOOKUP(AN104,'Footnotes list'!$D$9:$E$58,2,FALSE)=0,\"\",VLOOKUP(AN104,'Footnotes list'!$D$9:$E$58,2,FALSE) ) )","v":""},null,null,null,null,{"$f":"IF(TRIM(AS104)=\"\", \"\", IF(VLOOKUP(AS104,'Footnotes list'!$D$9:$E$58,2,FALSE)=0,\"\",VLOOKUP(AS104,'Footnotes list'!$D$9:$E$58,2,FALSE) ) )","v":""},null,null,null,null,{"$f":"IF(TRIM(AX104)=\"\", \"\", IF(VLOOKUP(AX104,'Footnotes list'!$D$9:$E$58,2,FALSE)=0,\"\",VLOOKUP(AX104,'Footnotes list'!$D$9:$E$58,2,FALSE) ) )","v":""},null,null,null,null,{"$f":"IF(TRIM(BC104)=\"\", \"\", IF(VLOOKUP(BC104,'Footnotes list'!$D$9:$E$58,2,FALSE)=0,\"\",VLOOKUP(BC104,'Footnotes list'!$D$9:$E$58,2,FALSE) ) )","v":""},null,null,null,null,{"$f":"IF(TRIM(BH104)=\"\", \"\", IF(VLOOKUP(BH104,'Footnotes list'!$D$9:$E$58,2,FALSE)=0,\"\",VLOOKUP(BH104,'Footnotes list'!$D$9:$E$58,2,FALSE) ) )","v":""},null,null,null,null,{"$f":"IF(TRIM(BM104)=\"\", \"\", IF(VLOOKUP(BM104,'Footnotes list'!$D$9:$E$58,2,FALSE)=0,\"\",VLOOKUP(BM104,'Footnotes list'!$D$9:$E$58,2,FALSE) ) )","v":""},null,null,null,null,{"$f":"IF(TRIM(BR104)=\"\", \"\", IF(VLOOKUP(BR104,'Footnotes list'!$D$9:$E$58,2,FALSE)=0,\"\",VLOOKUP(BR104,'Footnotes list'!$D$9:$E$58,2,FALSE) ) )","v":""},null,null,null,null,{"$f":"IF(TRIM(BW104)=\"\", \"\", IF(VLOOKUP(BW104,'Footnotes list'!$D$9:$E$58,2,FALSE)=0,\"\",VLOOKUP(BW104,'Footnotes list'!$D$9:$E$58,2,FALSE) ) )","v":""},null,null,null,null,{"$f":"IF(TRIM(CB104)=\"\", \"\", IF(VLOOKUP(CB104,'Footnotes list'!$D$9:$E$58,2,FALSE)=0,\"\",VLOOKUP(CB104,'Footnotes list'!$D$9:$E$58,2,FALSE) ) )","v":""},null,null,null,null,{"$f":"IF(TRIM(CG104)=\"\", \"\", IF(VLOOKUP(CG104,'Footnotes list'!$D$9:$E$58,2,FALSE)=0,\"\",VLOOKUP(CG104,'Footnotes list'!$D$9:$E$58,2,FALSE) ) )","v":""},null,null,null,null,{"$f":"IF(TRIM(CL104)=\"\", \"\", IF(VLOOKUP(CL104,'Footnotes list'!$D$9:$E$58,2,FALSE)=0,\"\",VLOOKUP(CL104,'Footnotes list'!$D$9:$E$58,2,FALSE) ) )","v":""},null,null,null,null,{"$f":"IF(TRIM(CQ104)=\"\", \"\", IF(VLOOKUP(CQ104,'Footnotes list'!$D$9:$E$58,2,FALSE)=0,\"\",VLOOKUP(CQ104,'Footnotes list'!$D$9:$E$58,2,FALSE) ) )","v":""},null,null,null,null,{"$f":"IF(TRIM(CV104)=\"\", \"\", IF(VLOOKUP(CV104,'Footnotes list'!$D$9:$E$58,2,FALSE)=0,\"\",VLOOKUP(CV104,'Footnotes list'!$D$9:$E$58,2,FALSE) ) )","v":""},null,null,null,null,{"$f":"IF(TRIM(DA104)=\"\", \"\", IF(VLOOKUP(DA104,'Footnotes list'!$D$9:$E$58,2,FALSE)=0,\"\",VLOOKUP(DA104,'Footnotes list'!$D$9:$E$58,2,FALSE) ) )","v":""},null,null,null,null,{"$f":"IF(TRIM(DF104)=\"\", \"\", IF(VLOOKUP(DF104,'Footnotes list'!$D$9:$E$58,2,FALSE)=0,\"\",VLOOKUP(DF104,'Footnotes list'!$D$9:$E$58,2,FALSE) ) )","v":""},null,null,null,null,{"$f":"IF(TRIM(DK104)=\"\", \"\", IF(VLOOKUP(DK104,'Footnotes list'!$D$9:$E$58,2,FALSE)=0,\"\",VLOOKUP(DK104,'Footnotes list'!$D$9:$E$58,2,FALSE) ) )","v":""},null,null,null,null,{"$f":"IF(TRIM(DP104)=\"\", \"\", IF(VLOOKUP(DP104,'Footnotes list'!$D$9:$E$58,2,FALSE)=0,\"\",VLOOKUP(DP104,'Footnotes list'!$D$9:$E$58,2,FALSE) ) )","v":""},null,null,null,null,{"$f":"IF(TRIM(DU104)=\"\", \"\", IF(VLOOKUP(DU104,'Footnotes list'!$D$9:$E$58,2,FALSE)=0,\"\",VLOOKUP(DU104,'Footnotes list'!$D$9:$E$58,2,FALSE) ) )","v":""},null,null,null,null,{"$f":"IF(TRIM(DZ104)=\"\", \"\", IF(VLOOKUP(DZ104,'Footnotes list'!$D$9:$E$58,2,FALSE)=0,\"\",VLOOKUP(DZ104,'Footnotes list'!$D$9:$E$58,2,FALSE) ) )","v":""},null,null,null,null,{"$f":"IF(TRIM(EE104)=\"\", \"\", IF(VLOOKUP(EE104,'Footnotes list'!$D$9:$E$58,2,FALSE)=0,\"\",VLOOKUP(EE104,'Footnotes list'!$D$9:$E$58,2,FALSE) ) )","v":""},null,null,null,null,{"$f":"IF(TRIM(EJ104)=\"\", \"\", IF(VLOOKUP(EJ104,'Footnotes list'!$D$9:$E$58,2,FALSE)=0,\"\",VLOOKUP(EJ104,'Footnotes list'!$D$9:$E$58,2,FALSE) ) )","v":""},null,null,null,null,{"$f":"IF(TRIM(EO104)=\"\", \"\", IF(VLOOKUP(EO104,'Footnotes list'!$D$9:$E$58,2,FALSE)=0,\"\",VLOOKUP(EO104,'Footnotes list'!$D$9:$E$58,2,FALSE) ) )","v":""},null,null,null,null,{"$f":"IF(TRIM(ET104)=\"\", \"\", IF(VLOOKUP(ET104,'Footnotes list'!$D$9:$E$58,2,FALSE)=0,\"\",VLOOKUP(ET104,'Footnotes list'!$D$9:$E$58,2,FALSE) ) )","v":""},null,null,null,null,{"$f":"IF(TRIM(EY104)=\"\", \"\", IF(VLOOKUP(EY104,'Footnotes list'!$D$9:$E$58,2,FALSE)=0,\"\",VLOOKUP(EY104,'Footnotes list'!$D$9:$E$58,2,FALSE) ) )","v":""}]
[null,null,"C27","C_REP","cleaner and resource efficient products",null,null,null,null,null,{"$f":"IF(TRIM(J105)=\"\", \"\", IF(VLOOKUP(J105,'Footnotes list'!$D$9:$E$58,2,FALSE)=0,\"\",VLOOKUP(J105,'Footnotes list'!$D$9:$E$58,2,FALSE) ) )","v":""},null,null,null,null,{"$f":"IF(TRIM(O105)=\"\", \"\", IF(VLOOKUP(O105,'Footnotes list'!$D$9:$E$58,2,FALSE)=0,\"\",VLOOKUP(O105,'Footnotes list'!$D$9:$E$58,2,FALSE) ) )","v":""},null,null,null,null,{"$f":"IF(TRIM(T105)=\"\", \"\", IF(VLOOKUP(T105,'Footnotes list'!$D$9:$E$58,2,FALSE)=0,\"\",VLOOKUP(T105,'Footnotes list'!$D$9:$E$58,2,FALSE) ) )","v":""},null,null,null,null,{"$f":"IF(TRIM(Y105)=\"\", \"\", IF(VLOOKUP(Y105,'Footnotes list'!$D$9:$E$58,2,FALSE)=0,\"\",VLOOKUP(Y105,'Footnotes list'!$D$9:$E$58,2,FALSE) ) )","v":""},null,null,null,null,{"$f":"IF(TRIM(AD105)=\"\", \"\", IF(VLOOKUP(AD105,'Footnotes list'!$D$9:$E$58,2,FALSE)=0,\"\",VLOOKUP(AD105,'Footnotes list'!$D$9:$E$58,2,FALSE) ) )","v":""},null,null,null,null,{"$f":"IF(TRIM(AI105)=\"\", \"\", IF(VLOOKUP(AI105,'Footnotes list'!$D$9:$E$58,2,FALSE)=0,\"\",VLOOKUP(AI105,'Footnotes list'!$D$9:$E$58,2,FALSE) ) )","v":""},null,null,null,null,{"$f":"IF(TRIM(AN105)=\"\", \"\", IF(VLOOKUP(AN105,'Footnotes list'!$D$9:$E$58,2,FALSE)=0,\"\",VLOOKUP(AN105,'Footnotes list'!$D$9:$E$58,2,FALSE) ) )","v":""},null,null,null,null,{"$f":"IF(TRIM(AS105)=\"\", \"\", IF(VLOOKUP(AS105,'Footnotes list'!$D$9:$E$58,2,FALSE)=0,\"\",VLOOKUP(AS105,'Footnotes list'!$D$9:$E$58,2,FALSE) ) )","v":""},null,null,null,null,{"$f":"IF(TRIM(AX105)=\"\", \"\", IF(VLOOKUP(AX105,'Footnotes list'!$D$9:$E$58,2,FALSE)=0,\"\",VLOOKUP(AX105,'Footnotes list'!$D$9:$E$58,2,FALSE) ) )","v":""},null,null,null,null,{"$f":"IF(TRIM(BC105)=\"\", \"\", IF(VLOOKUP(BC105,'Footnotes list'!$D$9:$E$58,2,FALSE)=0,\"\",VLOOKUP(BC105,'Footnotes list'!$D$9:$E$58,2,FALSE) ) )","v":""},null,null,null,null,{"$f":"IF(TRIM(BH105)=\"\", \"\", IF(VLOOKUP(BH105,'Footnotes list'!$D$9:$E$58,2,FALSE)=0,\"\",VLOOKUP(BH105,'Footnotes list'!$D$9:$E$58,2,FALSE) ) )","v":""},null,null,null,null,{"$f":"IF(TRIM(BM105)=\"\", \"\", IF(VLOOKUP(BM105,'Footnotes list'!$D$9:$E$58,2,FALSE)=0,\"\",VLOOKUP(BM105,'Footnotes list'!$D$9:$E$58,2,FALSE) ) )","v":""},null,null,null,null,{"$f":"IF(TRIM(BR105)=\"\", \"\", IF(VLOOKUP(BR105,'Footnotes list'!$D$9:$E$58,2,FALSE)=0,\"\",VLOOKUP(BR105,'Footnotes list'!$D$9:$E$58,2,FALSE) ) )","v":""},null,null,null,null,{"$f":"IF(TRIM(BW105)=\"\", \"\", IF(VLOOKUP(BW105,'Footnotes list'!$D$9:$E$58,2,FALSE)=0,\"\",VLOOKUP(BW105,'Footnotes list'!$D$9:$E$58,2,FALSE) ) )","v":""},null,null,null,null,{"$f":"IF(TRIM(CB105)=\"\", \"\", IF(VLOOKUP(CB105,'Footnotes list'!$D$9:$E$58,2,FALSE)=0,\"\",VLOOKUP(CB105,'Footnotes list'!$D$9:$E$58,2,FALSE) ) )","v":""},null,null,null,null,{"$f":"IF(TRIM(CG105)=\"\", \"\", IF(VLOOKUP(CG105,'Footnotes list'!$D$9:$E$58,2,FALSE)=0,\"\",VLOOKUP(CG105,'Footnotes list'!$D$9:$E$58,2,FALSE) ) )","v":""},null,null,null,null,{"$f":"IF(TRIM(CL105)=\"\", \"\", IF(VLOOKUP(CL105,'Footnotes list'!$D$9:$E$58,2,FALSE)=0,\"\",VLOOKUP(CL105,'Footnotes list'!$D$9:$E$58,2,FALSE) ) )","v":""},null,null,null,null,{"$f":"IF(TRIM(CQ105)=\"\", \"\", IF(VLOOKUP(CQ105,'Footnotes list'!$D$9:$E$58,2,FALSE)=0,\"\",VLOOKUP(CQ105,'Footnotes list'!$D$9:$E$58,2,FALSE) ) )","v":""},null,null,null,null,{"$f":"IF(TRIM(CV105)=\"\", \"\", IF(VLOOKUP(CV105,'Footnotes list'!$D$9:$E$58,2,FALSE)=0,\"\",VLOOKUP(CV105,'Footnotes list'!$D$9:$E$58,2,FALSE) ) )","v":""},null,null,null,null,{"$f":"IF(TRIM(DA105)=\"\", \"\", IF(VLOOKUP(DA105,'Footnotes list'!$D$9:$E$58,2,FALSE)=0,\"\",VLOOKUP(DA105,'Footnotes list'!$D$9:$E$58,2,FALSE) ) )","v":""},null,null,null,null,{"$f":"IF(TRIM(DF105)=\"\", \"\", IF(VLOOKUP(DF105,'Footnotes list'!$D$9:$E$58,2,FALSE)=0,\"\",VLOOKUP(DF105,'Footnotes list'!$D$9:$E$58,2,FALSE) ) )","v":""},null,null,null,null,{"$f":"IF(TRIM(DK105)=\"\", \"\", IF(VLOOKUP(DK105,'Footnotes list'!$D$9:$E$58,2,FALSE)=0,\"\",VLOOKUP(DK105,'Footnotes list'!$D$9:$E$58,2,FALSE) ) )","v":""},null,null,null,null,{"$f":"IF(TRIM(DP105)=\"\", \"\", IF(VLOOKUP(DP105,'Footnotes list'!$D$9:$E$58,2,FALSE)=0,\"\",VLOOKUP(DP105,'Footnotes list'!$D$9:$E$58,2,FALSE) ) )","v":""},null,null,null,null,{"$f":"IF(TRIM(DU105)=\"\", \"\", IF(VLOOKUP(DU105,'Footnotes list'!$D$9:$E$58,2,FALSE)=0,\"\",VLOOKUP(DU105,'Footnotes list'!$D$9:$E$58,2,FALSE) ) )","v":""},null,null,null,null,{"$f":"IF(TRIM(DZ105)=\"\", \"\", IF(VLOOKUP(DZ105,'Footnotes list'!$D$9:$E$58,2,FALSE)=0,\"\",VLOOKUP(DZ105,'Footnotes list'!$D$9:$E$58,2,FALSE) ) )","v":""},null,null,null,null,{"$f":"IF(TRIM(EE105)=\"\", \"\", IF(VLOOKUP(EE105,'Footnotes list'!$D$9:$E$58,2,FALSE)=0,\"\",VLOOKUP(EE105,'Footnotes list'!$D$9:$E$58,2,FALSE) ) )","v":""},null,null,null,null,{"$f":"IF(TRIM(EJ105)=\"\", \"\", IF(VLOOKUP(EJ105,'Footnotes list'!$D$9:$E$58,2,FALSE)=0,\"\",VLOOKUP(EJ105,'Footnotes list'!$D$9:$E$58,2,FALSE) ) )","v":""},null,null,null,null,{"$f":"IF(TRIM(EO105)=\"\", \"\", IF(VLOOKUP(EO105,'Footnotes list'!$D$9:$E$58,2,FALSE)=0,\"\",VLOOKUP(EO105,'Footnotes list'!$D$9:$E$58,2,FALSE) ) )","v":""},null,null,null,null,{"$f":"IF(TRIM(ET105)=\"\", \"\", IF(VLOOKUP(ET105,'Footnotes list'!$D$9:$E$58,2,FALSE)=0,\"\",VLOOKUP(ET105,'Footnotes list'!$D$9:$E$58,2,FALSE) ) )","v":""},null,null,null,null,{"$f":"IF(TRIM(EY105)=\"\", \"\", IF(VLOOKUP(EY105,'Footnotes list'!$D$9:$E$58,2,FALSE)=0,\"\",VLOOKUP(EY105,'Footnotes list'!$D$9:$E$58,2,FALSE) ) )","v":""}]
[null,null,"C28","TOT_EGSS","Total C28 - Manufacture of machinery and equipment n.e.c., of which:",null,null,null,null,null,{"$f":"IF(TRIM(J106)=\"\", \"\", IF(VLOOKUP(J106,'Footnotes list'!$D$9:$E$58,2,FALSE)=0,\"\",VLOOKUP(J106,'Footnotes list'!$D$9:$E$58,2,FALSE) ) )","v":""},null,null,null,null,{"$f":"IF(TRIM(O106)=\"\", \"\", IF(VLOOKUP(O106,'Footnotes list'!$D$9:$E$58,2,FALSE)=0,\"\",VLOOKUP(O106,'Footnotes list'!$D$9:$E$58,2,FALSE) ) )","v":""},null,null,null,null,{"$f":"IF(TRIM(T106)=\"\", \"\", IF(VLOOKUP(T106,'Footnotes list'!$D$9:$E$58,2,FALSE)=0,\"\",VLOOKUP(T106,'Footnotes list'!$D$9:$E$58,2,FALSE) ) )","v":""},null,null,null,null,{"$f":"IF(TRIM(Y106)=\"\", \"\", IF(VLOOKUP(Y106,'Footnotes list'!$D$9:$E$58,2,FALSE)=0,\"\",VLOOKUP(Y106,'Footnotes list'!$D$9:$E$58,2,FALSE) ) )","v":""},null,null,null,null,{"$f":"IF(TRIM(AD106)=\"\", \"\", IF(VLOOKUP(AD106,'Footnotes list'!$D$9:$E$58,2,FALSE)=0,\"\",VLOOKUP(AD106,'Footnotes list'!$D$9:$E$58,2,FALSE) ) )","v":""},null,null,null,null,{"$f":"IF(TRIM(AI106)=\"\", \"\", IF(VLOOKUP(AI106,'Footnotes list'!$D$9:$E$58,2,FALSE)=0,\"\",VLOOKUP(AI106,'Footnotes list'!$D$9:$E$58,2,FALSE) ) )","v":""},null,null,null,null,{"$f":"IF(TRIM(AN106)=\"\", \"\", IF(VLOOKUP(AN106,'Footnotes list'!$D$9:$E$58,2,FALSE)=0,\"\",VLOOKUP(AN106,'Footnotes list'!$D$9:$E$58,2,FALSE) ) )","v":""},null,null,null,null,{"$f":"IF(TRIM(AS106)=\"\", \"\", IF(VLOOKUP(AS106,'Footnotes list'!$D$9:$E$58,2,FALSE)=0,\"\",VLOOKUP(AS106,'Footnotes list'!$D$9:$E$58,2,FALSE) ) )","v":""},null,null,null,null,{"$f":"IF(TRIM(AX106)=\"\", \"\", IF(VLOOKUP(AX106,'Footnotes list'!$D$9:$E$58,2,FALSE)=0,\"\",VLOOKUP(AX106,'Footnotes list'!$D$9:$E$58,2,FALSE) ) )","v":""},null,null,null,null,{"$f":"IF(TRIM(BC106)=\"\", \"\", IF(VLOOKUP(BC106,'Footnotes list'!$D$9:$E$58,2,FALSE)=0,\"\",VLOOKUP(BC106,'Footnotes list'!$D$9:$E$58,2,FALSE) ) )","v":""},null,null,null,null,{"$f":"IF(TRIM(BH106)=\"\", \"\", IF(VLOOKUP(BH106,'Footnotes list'!$D$9:$E$58,2,FALSE)=0,\"\",VLOOKUP(BH106,'Footnotes list'!$D$9:$E$58,2,FALSE) ) )","v":""},null,null,null,null,{"$f":"IF(TRIM(BM106)=\"\", \"\", IF(VLOOKUP(BM106,'Footnotes list'!$D$9:$E$58,2,FALSE)=0,\"\",VLOOKUP(BM106,'Footnotes list'!$D$9:$E$58,2,FALSE) ) )","v":""},null,null,null,null,{"$f":"IF(TRIM(BR106)=\"\", \"\", IF(VLOOKUP(BR106,'Footnotes list'!$D$9:$E$58,2,FALSE)=0,\"\",VLOOKUP(BR106,'Footnotes list'!$D$9:$E$58,2,FALSE) ) )","v":""},null,null,null,null,{"$f":"IF(TRIM(BW106)=\"\", \"\", IF(VLOOKUP(BW106,'Footnotes list'!$D$9:$E$58,2,FALSE)=0,\"\",VLOOKUP(BW106,'Footnotes list'!$D$9:$E$58,2,FALSE) ) )","v":""},null,null,null,null,{"$f":"IF(TRIM(CB106)=\"\", \"\", IF(VLOOKUP(CB106,'Footnotes list'!$D$9:$E$58,2,FALSE)=0,\"\",VLOOKUP(CB106,'Footnotes list'!$D$9:$E$58,2,FALSE) ) )","v":""},null,null,null,null,{"$f":"IF(TRIM(CG106)=\"\", \"\", IF(VLOOKUP(CG106,'Footnotes list'!$D$9:$E$58,2,FALSE)=0,\"\",VLOOKUP(CG106,'Footnotes list'!$D$9:$E$58,2,FALSE) ) )","v":""},null,null,null,null,{"$f":"IF(TRIM(CL106)=\"\", \"\", IF(VLOOKUP(CL106,'Footnotes list'!$D$9:$E$58,2,FALSE)=0,\"\",VLOOKUP(CL106,'Footnotes list'!$D$9:$E$58,2,FALSE) ) )","v":""},null,null,null,null,{"$f":"IF(TRIM(CQ106)=\"\", \"\", IF(VLOOKUP(CQ106,'Footnotes list'!$D$9:$E$58,2,FALSE)=0,\"\",VLOOKUP(CQ106,'Footnotes list'!$D$9:$E$58,2,FALSE) ) )","v":""},null,null,null,null,{"$f":"IF(TRIM(CV106)=\"\", \"\", IF(VLOOKUP(CV106,'Footnotes list'!$D$9:$E$58,2,FALSE)=0,\"\",VLOOKUP(CV106,'Footnotes list'!$D$9:$E$58,2,FALSE) ) )","v":""},null,null,null,null,{"$f":"IF(TRIM(DA106)=\"\", \"\", IF(VLOOKUP(DA106,'Footnotes list'!$D$9:$E$58,2,FALSE)=0,\"\",VLOOKUP(DA106,'Footnotes list'!$D$9:$E$58,2,FALSE) ) )","v":""},null,null,null,null,{"$f":"IF(TRIM(DF106)=\"\", \"\", IF(VLOOKUP(DF106,'Footnotes list'!$D$9:$E$58,2,FALSE)=0,\"\",VLOOKUP(DF106,'Footnotes list'!$D$9:$E$58,2,FALSE) ) )","v":""},null,null,null,null,{"$f":"IF(TRIM(DK106)=\"\", \"\", IF(VLOOKUP(DK106,'Footnotes list'!$D$9:$E$58,2,FALSE)=0,\"\",VLOOKUP(DK106,'Footnotes list'!$D$9:$E$58,2,FALSE) ) )","v":""},null,null,null,null,{"$f":"IF(TRIM(DP106)=\"\", \"\", IF(VLOOKUP(DP106,'Footnotes list'!$D$9:$E$58,2,FALSE)=0,\"\",VLOOKUP(DP106,'Footnotes list'!$D$9:$E$58,2,FALSE) ) )","v":""},null,null,null,null,{"$f":"IF(TRIM(DU106)=\"\", \"\", IF(VLOOKUP(DU106,'Footnotes list'!$D$9:$E$58,2,FALSE)=0,\"\",VLOOKUP(DU106,'Footnotes list'!$D$9:$E$58,2,FALSE) ) )","v":""},null,null,null,null,{"$f":"IF(TRIM(DZ106)=\"\", \"\", IF(VLOOKUP(DZ106,'Footnotes list'!$D$9:$E$58,2,FALSE)=0,\"\",VLOOKUP(DZ106,'Footnotes list'!$D$9:$E$58,2,FALSE) ) )","v":""},null,null,null,null,{"$f":"IF(TRIM(EE106)=\"\", \"\", IF(VLOOKUP(EE106,'Footnotes list'!$D$9:$E$58,2,FALSE)=0,\"\",VLOOKUP(EE106,'Footnotes list'!$D$9:$E$58,2,FALSE) ) )","v":""},null,null,null,null,{"$f":"IF(TRIM(EJ106)=\"\", \"\", IF(VLOOKUP(EJ106,'Footnotes list'!$D$9:$E$58,2,FALSE)=0,\"\",VLOOKUP(EJ106,'Footnotes list'!$D$9:$E$58,2,FALSE) ) )","v":""},null,null,null,null,{"$f":"IF(TRIM(EO106)=\"\", \"\", IF(VLOOKUP(EO106,'Footnotes list'!$D$9:$E$58,2,FALSE)=0,\"\",VLOOKUP(EO106,'Footnotes list'!$D$9:$E$58,2,FALSE) ) )","v":""},null,null,null,null,{"$f":"IF(TRIM(ET106)=\"\", \"\", IF(VLOOKUP(ET106,'Footnotes list'!$D$9:$E$58,2,FALSE)=0,\"\",VLOOKUP(ET106,'Footnotes list'!$D$9:$E$58,2,FALSE) ) )","v":""},null,null,null,null,{"$f":"IF(TRIM(EY106)=\"\", \"\", IF(VLOOKUP(EY106,'Footnotes list'!$D$9:$E$58,2,FALSE)=0,\"\",VLOOKUP(EY106,'Footnotes list'!$D$9:$E$58,2,FALSE) ) )","v":""}]
[null,null,"C28","ANC","ancillary activities",null,null,null,null,null,{"$f":"IF(TRIM(J107)=\"\", \"\", IF(VLOOKUP(J107,'Footnotes list'!$D$9:$E$58,2,FALSE)=0,\"\",VLOOKUP(J107,'Footnotes list'!$D$9:$E$58,2,FALSE) ) )","v":""},null,null,null,null,{"$f":"IF(TRIM(O107)=\"\", \"\", IF(VLOOKUP(O107,'Footnotes list'!$D$9:$E$58,2,FALSE)=0,\"\",VLOOKUP(O107,'Footnotes list'!$D$9:$E$58,2,FALSE) ) )","v":""},null,null,null,null,{"$f":"IF(TRIM(T107)=\"\", \"\", IF(VLOOKUP(T107,'Footnotes list'!$D$9:$E$58,2,FALSE)=0,\"\",VLOOKUP(T107,'Footnotes list'!$D$9:$E$58,2,FALSE) ) )","v":""},null,null,null,null,{"$f":"IF(TRIM(Y107)=\"\", \"\", IF(VLOOKUP(Y107,'Footnotes list'!$D$9:$E$58,2,FALSE)=0,\"\",VLOOKUP(Y107,'Footnotes list'!$D$9:$E$58,2,FALSE) ) )","v":""},null,null,null,null,{"$f":"IF(TRIM(AD107)=\"\", \"\", IF(VLOOKUP(AD107,'Footnotes list'!$D$9:$E$58,2,FALSE)=0,\"\",VLOOKUP(AD107,'Footnotes list'!$D$9:$E$58,2,FALSE) ) )","v":""},null,null,null,null,{"$f":"IF(TRIM(AI107)=\"\", \"\", IF(VLOOKUP(AI107,'Footnotes list'!$D$9:$E$58,2,FALSE)=0,\"\",VLOOKUP(AI107,'Footnotes list'!$D$9:$E$58,2,FALSE) ) )","v":""},null,null,null,null,{"$f":"IF(TRIM(AN107)=\"\", \"\", IF(VLOOKUP(AN107,'Footnotes list'!$D$9:$E$58,2,FALSE)=0,\"\",VLOOKUP(AN107,'Footnotes list'!$D$9:$E$58,2,FALSE) ) )","v":""},null,null,null,null,{"$f":"IF(TRIM(AS107)=\"\", \"\", IF(VLOOKUP(AS107,'Footnotes list'!$D$9:$E$58,2,FALSE)=0,\"\",VLOOKUP(AS107,'Footnotes list'!$D$9:$E$58,2,FALSE) ) )","v":""},null,null,null,null,{"$f":"IF(TRIM(AX107)=\"\", \"\", IF(VLOOKUP(AX107,'Footnotes list'!$D$9:$E$58,2,FALSE)=0,\"\",VLOOKUP(AX107,'Footnotes list'!$D$9:$E$58,2,FALSE) ) )","v":""},null,null,null,null,{"$f":"IF(TRIM(BC107)=\"\", \"\", IF(VLOOKUP(BC107,'Footnotes list'!$D$9:$E$58,2,FALSE)=0,\"\",VLOOKUP(BC107,'Footnotes list'!$D$9:$E$58,2,FALSE) ) )","v":""},null,null,null,null,{"$f":"IF(TRIM(BH107)=\"\", \"\", IF(VLOOKUP(BH107,'Footnotes list'!$D$9:$E$58,2,FALSE)=0,\"\",VLOOKUP(BH107,'Footnotes list'!$D$9:$E$58,2,FALSE) ) )","v":""},null,null,null,null,{"$f":"IF(TRIM(BM107)=\"\", \"\", IF(VLOOKUP(BM107,'Footnotes list'!$D$9:$E$58,2,FALSE)=0,\"\",VLOOKUP(BM107,'Footnotes list'!$D$9:$E$58,2,FALSE) ) )","v":""},null,null,null,null,{"$f":"IF(TRIM(BR107)=\"\", \"\", IF(VLOOKUP(BR107,'Footnotes list'!$D$9:$E$58,2,FALSE)=0,\"\",VLOOKUP(BR107,'Footnotes list'!$D$9:$E$58,2,FALSE) ) )","v":""},null,null,null,null,{"$f":"IF(TRIM(BW107)=\"\", \"\", IF(VLOOKUP(BW107,'Footnotes list'!$D$9:$E$58,2,FALSE)=0,\"\",VLOOKUP(BW107,'Footnotes list'!$D$9:$E$58,2,FALSE) ) )","v":""},null,null,null,null,{"$f":"IF(TRIM(CB107)=\"\", \"\", IF(VLOOKUP(CB107,'Footnotes list'!$D$9:$E$58,2,FALSE)=0,\"\",VLOOKUP(CB107,'Footnotes list'!$D$9:$E$58,2,FALSE) ) )","v":""},null,null,null,null,{"$f":"IF(TRIM(CG107)=\"\", \"\", IF(VLOOKUP(CG107,'Footnotes list'!$D$9:$E$58,2,FALSE)=0,\"\",VLOOKUP(CG107,'Footnotes list'!$D$9:$E$58,2,FALSE) ) )","v":""},null,null,null,null,{"$f":"IF(TRIM(CL107)=\"\", \"\", IF(VLOOKUP(CL107,'Footnotes list'!$D$9:$E$58,2,FALSE)=0,\"\",VLOOKUP(CL107,'Footnotes list'!$D$9:$E$58,2,FALSE) ) )","v":""},null,null,null,null,{"$f":"IF(TRIM(CQ107)=\"\", \"\", IF(VLOOKUP(CQ107,'Footnotes list'!$D$9:$E$58,2,FALSE)=0,\"\",VLOOKUP(CQ107,'Footnotes list'!$D$9:$E$58,2,FALSE) ) )","v":""},null,null,null,null,{"$f":"IF(TRIM(CV107)=\"\", \"\", IF(VLOOKUP(CV107,'Footnotes list'!$D$9:$E$58,2,FALSE)=0,\"\",VLOOKUP(CV107,'Footnotes list'!$D$9:$E$58,2,FALSE) ) )","v":""},null,null,null,null,{"$f":"IF(TRIM(DA107)=\"\", \"\", IF(VLOOKUP(DA107,'Footnotes list'!$D$9:$E$58,2,FALSE)=0,\"\",VLOOKUP(DA107,'Footnotes list'!$D$9:$E$58,2,FALSE) ) )","v":""},null,null,null,null,{"$f":"IF(TRIM(DF107)=\"\", \"\", IF(VLOOKUP(DF107,'Footnotes list'!$D$9:$E$58,2,FALSE)=0,\"\",VLOOKUP(DF107,'Footnotes list'!$D$9:$E$58,2,FALSE) ) )","v":""},null,null,null,null,{"$f":"IF(TRIM(DK107)=\"\", \"\", IF(VLOOKUP(DK107,'Footnotes list'!$D$9:$E$58,2,FALSE)=0,\"\",VLOOKUP(DK107,'Footnotes list'!$D$9:$E$58,2,FALSE) ) )","v":""},null,null,null,null,{"$f":"IF(TRIM(DP107)=\"\", \"\", IF(VLOOKUP(DP107,'Footnotes list'!$D$9:$E$58,2,FALSE)=0,\"\",VLOOKUP(DP107,'Footnotes list'!$D$9:$E$58,2,FALSE) ) )","v":""},null,null,null,null,{"$f":"IF(TRIM(DU107)=\"\", \"\", IF(VLOOKUP(DU107,'Footnotes list'!$D$9:$E$58,2,FALSE)=0,\"\",VLOOKUP(DU107,'Footnotes list'!$D$9:$E$58,2,FALSE) ) )","v":""},null,null,null,null,{"$f":"IF(TRIM(DZ107)=\"\", \"\", IF(VLOOKUP(DZ107,'Footnotes list'!$D$9:$E$58,2,FALSE)=0,\"\",VLOOKUP(DZ107,'Footnotes list'!$D$9:$E$58,2,FALSE) ) )","v":""},null,null,null,null,{"$f":"IF(TRIM(EE107)=\"\", \"\", IF(VLOOKUP(EE107,'Footnotes list'!$D$9:$E$58,2,FALSE)=0,\"\",VLOOKUP(EE107,'Footnotes list'!$D$9:$E$58,2,FALSE) ) )","v":""},null,null,null,null,{"$f":"IF(TRIM(EJ107)=\"\", \"\", IF(VLOOKUP(EJ107,'Footnotes list'!$D$9:$E$58,2,FALSE)=0,\"\",VLOOKUP(EJ107,'Footnotes list'!$D$9:$E$58,2,FALSE) ) )","v":""},null,null,null,null,{"$f":"IF(TRIM(EO107)=\"\", \"\", IF(VLOOKUP(EO107,'Footnotes list'!$D$9:$E$58,2,FALSE)=0,\"\",VLOOKUP(EO107,'Footnotes list'!$D$9:$E$58,2,FALSE) ) )","v":""},null,null,null,null,{"$f":"IF(TRIM(ET107)=\"\", \"\", IF(VLOOKUP(ET107,'Footnotes list'!$D$9:$E$58,2,FALSE)=0,\"\",VLOOKUP(ET107,'Footnotes list'!$D$9:$E$58,2,FALSE) ) )","v":""},null,null,null,null,{"$f":"IF(TRIM(EY107)=\"\", \"\", IF(VLOOKUP(EY107,'Footnotes list'!$D$9:$E$58,2,FALSE)=0,\"\",VLOOKUP(EY107,'Footnotes list'!$D$9:$E$58,2,FALSE) ) )","v":""}]
[null,null,"C28","NMKT","non-market activities",null,null,null,null,null,{"$f":"IF(TRIM(J108)=\"\", \"\", IF(VLOOKUP(J108,'Footnotes list'!$D$9:$E$58,2,FALSE)=0,\"\",VLOOKUP(J108,'Footnotes list'!$D$9:$E$58,2,FALSE) ) )","v":""},null,null,null,null,{"$f":"IF(TRIM(O108)=\"\", \"\", IF(VLOOKUP(O108,'Footnotes list'!$D$9:$E$58,2,FALSE)=0,\"\",VLOOKUP(O108,'Footnotes list'!$D$9:$E$58,2,FALSE) ) )","v":""},null,null,null,null,{"$f":"IF(TRIM(T108)=\"\", \"\", IF(VLOOKUP(T108,'Footnotes list'!$D$9:$E$58,2,FALSE)=0,\"\",VLOOKUP(T108,'Footnotes list'!$D$9:$E$58,2,FALSE) ) )","v":""},null,null,null,null,{"$f":"IF(TRIM(Y108)=\"\", \"\", IF(VLOOKUP(Y108,'Footnotes list'!$D$9:$E$58,2,FALSE)=0,\"\",VLOOKUP(Y108,'Footnotes list'!$D$9:$E$58,2,FALSE) ) )","v":""},null,null,null,null,{"$f":"IF(TRIM(AD108)=\"\", \"\", IF(VLOOKUP(AD108,'Footnotes list'!$D$9:$E$58,2,FALSE)=0,\"\",VLOOKUP(AD108,'Footnotes list'!$D$9:$E$58,2,FALSE) ) )","v":""},null,null,null,null,{"$f":"IF(TRIM(AI108)=\"\", \"\", IF(VLOOKUP(AI108,'Footnotes list'!$D$9:$E$58,2,FALSE)=0,\"\",VLOOKUP(AI108,'Footnotes list'!$D$9:$E$58,2,FALSE) ) )","v":""},null,null,null,null,{"$f":"IF(TRIM(AN108)=\"\", \"\", IF(VLOOKUP(AN108,'Footnotes list'!$D$9:$E$58,2,FALSE)=0,\"\",VLOOKUP(AN108,'Footnotes list'!$D$9:$E$58,2,FALSE) ) )","v":""},null,null,null,null,{"$f":"IF(TRIM(AS108)=\"\", \"\", IF(VLOOKUP(AS108,'Footnotes list'!$D$9:$E$58,2,FALSE)=0,\"\",VLOOKUP(AS108,'Footnotes list'!$D$9:$E$58,2,FALSE) ) )","v":""},null,null,null,null,{"$f":"IF(TRIM(AX108)=\"\", \"\", IF(VLOOKUP(AX108,'Footnotes list'!$D$9:$E$58,2,FALSE)=0,\"\",VLOOKUP(AX108,'Footnotes list'!$D$9:$E$58,2,FALSE) ) )","v":""},null,null,null,null,{"$f":"IF(TRIM(BC108)=\"\", \"\", IF(VLOOKUP(BC108,'Footnotes list'!$D$9:$E$58,2,FALSE)=0,\"\",VLOOKUP(BC108,'Footnotes list'!$D$9:$E$58,2,FALSE) ) )","v":""},null,null,null,null,{"$f":"IF(TRIM(BH108)=\"\", \"\", IF(VLOOKUP(BH108,'Footnotes list'!$D$9:$E$58,2,FALSE)=0,\"\",VLOOKUP(BH108,'Footnotes list'!$D$9:$E$58,2,FALSE) ) )","v":""},null,null,null,null,{"$f":"IF(TRIM(BM108)=\"\", \"\", IF(VLOOKUP(BM108,'Footnotes list'!$D$9:$E$58,2,FALSE)=0,\"\",VLOOKUP(BM108,'Footnotes list'!$D$9:$E$58,2,FALSE) ) )","v":""},null,null,null,null,{"$f":"IF(TRIM(BR108)=\"\", \"\", IF(VLOOKUP(BR108,'Footnotes list'!$D$9:$E$58,2,FALSE)=0,\"\",VLOOKUP(BR108,'Footnotes list'!$D$9:$E$58,2,FALSE) ) )","v":""},null,null,null,null,{"$f":"IF(TRIM(BW108)=\"\", \"\", IF(VLOOKUP(BW108,'Footnotes list'!$D$9:$E$58,2,FALSE)=0,\"\",VLOOKUP(BW108,'Footnotes list'!$D$9:$E$58,2,FALSE) ) )","v":""},null,null,null,null,{"$f":"IF(TRIM(CB108)=\"\", \"\", IF(VLOOKUP(CB108,'Footnotes list'!$D$9:$E$58,2,FALSE)=0,\"\",VLOOKUP(CB108,'Footnotes list'!$D$9:$E$58,2,FALSE) ) )","v":""},null,null,null,null,{"$f":"IF(TRIM(CG108)=\"\", \"\", IF(VLOOKUP(CG108,'Footnotes list'!$D$9:$E$58,2,FALSE)=0,\"\",VLOOKUP(CG108,'Footnotes list'!$D$9:$E$58,2,FALSE) ) )","v":""},null,null,null,null,{"$f":"IF(TRIM(CL108)=\"\", \"\", IF(VLOOKUP(CL108,'Footnotes list'!$D$9:$E$58,2,FALSE)=0,\"\",VLOOKUP(CL108,'Footnotes list'!$D$9:$E$58,2,FALSE) ) )","v":""},null,null,null,null,{"$f":"IF(TRIM(CQ108)=\"\", \"\", IF(VLOOKUP(CQ108,'Footnotes list'!$D$9:$E$58,2,FALSE)=0,\"\",VLOOKUP(CQ108,'Footnotes list'!$D$9:$E$58,2,FALSE) ) )","v":""},null,null,null,null,{"$f":"IF(TRIM(CV108)=\"\", \"\", IF(VLOOKUP(CV108,'Footnotes list'!$D$9:$E$58,2,FALSE)=0,\"\",VLOOKUP(CV108,'Footnotes list'!$D$9:$E$58,2,FALSE) ) )","v":""},null,null,null,null,{"$f":"IF(TRIM(DA108)=\"\", \"\", IF(VLOOKUP(DA108,'Footnotes list'!$D$9:$E$58,2,FALSE)=0,\"\",VLOOKUP(DA108,'Footnotes list'!$D$9:$E$58,2,FALSE) ) )","v":""},null,null,null,null,{"$f":"IF(TRIM(DF108)=\"\", \"\", IF(VLOOKUP(DF108,'Footnotes list'!$D$9:$E$58,2,FALSE)=0,\"\",VLOOKUP(DF108,'Footnotes list'!$D$9:$E$58,2,FALSE) ) )","v":""},null,null,null,null,{"$f":"IF(TRIM(DK108)=\"\", \"\", IF(VLOOKUP(DK108,'Footnotes list'!$D$9:$E$58,2,FALSE)=0,\"\",VLOOKUP(DK108,'Footnotes list'!$D$9:$E$58,2,FALSE) ) )","v":""},null,null,null,null,{"$f":"IF(TRIM(DP108)=\"\", \"\", IF(VLOOKUP(DP108,'Footnotes list'!$D$9:$E$58,2,FALSE)=0,\"\",VLOOKUP(DP108,'Footnotes list'!$D$9:$E$58,2,FALSE) ) )","v":""},null,null,null,null,{"$f":"IF(TRIM(DU108)=\"\", \"\", IF(VLOOKUP(DU108,'Footnotes list'!$D$9:$E$58,2,FALSE)=0,\"\",VLOOKUP(DU108,'Footnotes list'!$D$9:$E$58,2,FALSE) ) )","v":""},null,null,null,null,{"$f":"IF(TRIM(DZ108)=\"\", \"\", IF(VLOOKUP(DZ108,'Footnotes list'!$D$9:$E$58,2,FALSE)=0,\"\",VLOOKUP(DZ108,'Footnotes list'!$D$9:$E$58,2,FALSE) ) )","v":""},null,null,null,null,{"$f":"IF(TRIM(EE108)=\"\", \"\", IF(VLOOKUP(EE108,'Footnotes list'!$D$9:$E$58,2,FALSE)=0,\"\",VLOOKUP(EE108,'Footnotes list'!$D$9:$E$58,2,FALSE) ) )","v":""},null,null,null,null,{"$f":"IF(TRIM(EJ108)=\"\", \"\", IF(VLOOKUP(EJ108,'Footnotes list'!$D$9:$E$58,2,FALSE)=0,\"\",VLOOKUP(EJ108,'Footnotes list'!$D$9:$E$58,2,FALSE) ) )","v":""},null,null,null,null,{"$f":"IF(TRIM(EO108)=\"\", \"\", IF(VLOOKUP(EO108,'Footnotes list'!$D$9:$E$58,2,FALSE)=0,\"\",VLOOKUP(EO108,'Footnotes list'!$D$9:$E$58,2,FALSE) ) )","v":""},null,null,null,null,{"$f":"IF(TRIM(ET108)=\"\", \"\", IF(VLOOKUP(ET108,'Footnotes list'!$D$9:$E$58,2,FALSE)=0,\"\",VLOOKUP(ET108,'Footnotes list'!$D$9:$E$58,2,FALSE) ) )","v":""},null,null,null,null,{"$f":"IF(TRIM(EY108)=\"\", \"\", IF(VLOOKUP(EY108,'Footnotes list'!$D$9:$E$58,2,FALSE)=0,\"\",VLOOKUP(EY108,'Footnotes list'!$D$9:$E$58,2,FALSE) ) )","v":""}]
[null,null,"C28","OWN_USE","activities for own final use",null,null,null,null,null,{"$f":"IF(TRIM(J109)=\"\", \"\", IF(VLOOKUP(J109,'Footnotes list'!$D$9:$E$58,2,FALSE)=0,\"\",VLOOKUP(J109,'Footnotes list'!$D$9:$E$58,2,FALSE) ) )","v":""},null,null,null,null,{"$f":"IF(TRIM(O109)=\"\", \"\", IF(VLOOKUP(O109,'Footnotes list'!$D$9:$E$58,2,FALSE)=0,\"\",VLOOKUP(O109,'Footnotes list'!$D$9:$E$58,2,FALSE) ) )","v":""},null,null,null,null,{"$f":"IF(TRIM(T109)=\"\", \"\", IF(VLOOKUP(T109,'Footnotes list'!$D$9:$E$58,2,FALSE)=0,\"\",VLOOKUP(T109,'Footnotes list'!$D$9:$E$58,2,FALSE) ) )","v":""},null,null,null,null,{"$f":"IF(TRIM(Y109)=\"\", \"\", IF(VLOOKUP(Y109,'Footnotes list'!$D$9:$E$58,2,FALSE)=0,\"\",VLOOKUP(Y109,'Footnotes list'!$D$9:$E$58,2,FALSE) ) )","v":""},null,null,null,null,{"$f":"IF(TRIM(AD109)=\"\", \"\", IF(VLOOKUP(AD109,'Footnotes list'!$D$9:$E$58,2,FALSE)=0,\"\",VLOOKUP(AD109,'Footnotes list'!$D$9:$E$58,2,FALSE) ) )","v":""},null,null,null,null,{"$f":"IF(TRIM(AI109)=\"\", \"\", IF(VLOOKUP(AI109,'Footnotes list'!$D$9:$E$58,2,FALSE)=0,\"\",VLOOKUP(AI109,'Footnotes list'!$D$9:$E$58,2,FALSE) ) )","v":""},null,null,null,null,{"$f":"IF(TRIM(AN109)=\"\", \"\", IF(VLOOKUP(AN109,'Footnotes list'!$D$9:$E$58,2,FALSE)=0,\"\",VLOOKUP(AN109,'Footnotes list'!$D$9:$E$58,2,FALSE) ) )","v":""},null,null,null,null,{"$f":"IF(TRIM(AS109)=\"\", \"\", IF(VLOOKUP(AS109,'Footnotes list'!$D$9:$E$58,2,FALSE)=0,\"\",VLOOKUP(AS109,'Footnotes list'!$D$9:$E$58,2,FALSE) ) )","v":""},null,null,null,null,{"$f":"IF(TRIM(AX109)=\"\", \"\", IF(VLOOKUP(AX109,'Footnotes list'!$D$9:$E$58,2,FALSE)=0,\"\",VLOOKUP(AX109,'Footnotes list'!$D$9:$E$58,2,FALSE) ) )","v":""},null,null,null,null,{"$f":"IF(TRIM(BC109)=\"\", \"\", IF(VLOOKUP(BC109,'Footnotes list'!$D$9:$E$58,2,FALSE)=0,\"\",VLOOKUP(BC109,'Footnotes list'!$D$9:$E$58,2,FALSE) ) )","v":""},null,null,null,null,{"$f":"IF(TRIM(BH109)=\"\", \"\", IF(VLOOKUP(BH109,'Footnotes list'!$D$9:$E$58,2,FALSE)=0,\"\",VLOOKUP(BH109,'Footnotes list'!$D$9:$E$58,2,FALSE) ) )","v":""},null,null,null,null,{"$f":"IF(TRIM(BM109)=\"\", \"\", IF(VLOOKUP(BM109,'Footnotes list'!$D$9:$E$58,2,FALSE)=0,\"\",VLOOKUP(BM109,'Footnotes list'!$D$9:$E$58,2,FALSE) ) )","v":""},null,null,null,null,{"$f":"IF(TRIM(BR109)=\"\", \"\", IF(VLOOKUP(BR109,'Footnotes list'!$D$9:$E$58,2,FALSE)=0,\"\",VLOOKUP(BR109,'Footnotes list'!$D$9:$E$58,2,FALSE) ) )","v":""},null,null,null,null,{"$f":"IF(TRIM(BW109)=\"\", \"\", IF(VLOOKUP(BW109,'Footnotes list'!$D$9:$E$58,2,FALSE)=0,\"\",VLOOKUP(BW109,'Footnotes list'!$D$9:$E$58,2,FALSE) ) )","v":""},null,null,null,null,{"$f":"IF(TRIM(CB109)=\"\", \"\", IF(VLOOKUP(CB109,'Footnotes list'!$D$9:$E$58,2,FALSE)=0,\"\",VLOOKUP(CB109,'Footnotes list'!$D$9:$E$58,2,FALSE) ) )","v":""},null,null,null,null,{"$f":"IF(TRIM(CG109)=\"\", \"\", IF(VLOOKUP(CG109,'Footnotes list'!$D$9:$E$58,2,FALSE)=0,\"\",VLOOKUP(CG109,'Footnotes list'!$D$9:$E$58,2,FALSE) ) )","v":""},null,null,null,null,{"$f":"IF(TRIM(CL109)=\"\", \"\", IF(VLOOKUP(CL109,'Footnotes list'!$D$9:$E$58,2,FALSE)=0,\"\",VLOOKUP(CL109,'Footnotes list'!$D$9:$E$58,2,FALSE) ) )","v":""},null,null,null,null,{"$f":"IF(TRIM(CQ109)=\"\", \"\", IF(VLOOKUP(CQ109,'Footnotes list'!$D$9:$E$58,2,FALSE)=0,\"\",VLOOKUP(CQ109,'Footnotes list'!$D$9:$E$58,2,FALSE) ) )","v":""},null,null,null,null,{"$f":"IF(TRIM(CV109)=\"\", \"\", IF(VLOOKUP(CV109,'Footnotes list'!$D$9:$E$58,2,FALSE)=0,\"\",VLOOKUP(CV109,'Footnotes list'!$D$9:$E$58,2,FALSE) ) )","v":""},null,null,null,null,{"$f":"IF(TRIM(DA109)=\"\", \"\", IF(VLOOKUP(DA109,'Footnotes list'!$D$9:$E$58,2,FALSE)=0,\"\",VLOOKUP(DA109,'Footnotes list'!$D$9:$E$58,2,FALSE) ) )","v":""},null,null,null,null,{"$f":"IF(TRIM(DF109)=\"\", \"\", IF(VLOOKUP(DF109,'Footnotes list'!$D$9:$E$58,2,FALSE)=0,\"\",VLOOKUP(DF109,'Footnotes list'!$D$9:$E$58,2,FALSE) ) )","v":""},null,null,null,null,{"$f":"IF(TRIM(DK109)=\"\", \"\", IF(VLOOKUP(DK109,'Footnotes list'!$D$9:$E$58,2,FALSE)=0,\"\",VLOOKUP(DK109,'Footnotes list'!$D$9:$E$58,2,FALSE) ) )","v":""},null,null,null,null,{"$f":"IF(TRIM(DP109)=\"\", \"\", IF(VLOOKUP(DP109,'Footnotes list'!$D$9:$E$58,2,FALSE)=0,\"\",VLOOKUP(DP109,'Footnotes list'!$D$9:$E$58,2,FALSE) ) )","v":""},null,null,null,null,{"$f":"IF(TRIM(DU109)=\"\", \"\", IF(VLOOKUP(DU109,'Footnotes list'!$D$9:$E$58,2,FALSE)=0,\"\",VLOOKUP(DU109,'Footnotes list'!$D$9:$E$58,2,FALSE) ) )","v":""},null,null,null,null,{"$f":"IF(TRIM(DZ109)=\"\", \"\", IF(VLOOKUP(DZ109,'Footnotes list'!$D$9:$E$58,2,FALSE)=0,\"\",VLOOKUP(DZ109,'Footnotes list'!$D$9:$E$58,2,FALSE) ) )","v":""},null,null,null,null,{"$f":"IF(TRIM(EE109)=\"\", \"\", IF(VLOOKUP(EE109,'Footnotes list'!$D$9:$E$58,2,FALSE)=0,\"\",VLOOKUP(EE109,'Footnotes list'!$D$9:$E$58,2,FALSE) ) )","v":""},null,null,null,null,{"$f":"IF(TRIM(EJ109)=\"\", \"\", IF(VLOOKUP(EJ109,'Footnotes list'!$D$9:$E$58,2,FALSE)=0,\"\",VLOOKUP(EJ109,'Footnotes list'!$D$9:$E$58,2,FALSE) ) )","v":""},null,null,null,null,{"$f":"IF(TRIM(EO109)=\"\", \"\", IF(VLOOKUP(EO109,'Footnotes list'!$D$9:$E$58,2,FALSE)=0,\"\",VLOOKUP(EO109,'Footnotes list'!$D$9:$E$58,2,FALSE) ) )","v":""},null,null,null,null,{"$f":"IF(TRIM(ET109)=\"\", \"\", IF(VLOOKUP(ET109,'Footnotes list'!$D$9:$E$58,2,FALSE)=0,\"\",VLOOKUP(ET109,'Footnotes list'!$D$9:$E$58,2,FALSE) ) )","v":""},null,null,null,null,{"$f":"IF(TRIM(EY109)=\"\", \"\", IF(VLOOKUP(EY109,'Footnotes list'!$D$9:$E$58,2,FALSE)=0,\"\",VLOOKUP(EY109,'Footnotes list'!$D$9:$E$58,2,FALSE) ) )","v":""}]
[null,null,"C28","MKT","market activities, including:",null,null,null,null,null,{"$f":"IF(TRIM(J110)=\"\", \"\", IF(VLOOKUP(J110,'Footnotes list'!$D$9:$E$58,2,FALSE)=0,\"\",VLOOKUP(J110,'Footnotes list'!$D$9:$E$58,2,FALSE) ) )","v":""},null,null,null,null,{"$f":"IF(TRIM(O110)=\"\", \"\", IF(VLOOKUP(O110,'Footnotes list'!$D$9:$E$58,2,FALSE)=0,\"\",VLOOKUP(O110,'Footnotes list'!$D$9:$E$58,2,FALSE) ) )","v":""},null,null,null,null,{"$f":"IF(TRIM(T110)=\"\", \"\", IF(VLOOKUP(T110,'Footnotes list'!$D$9:$E$58,2,FALSE)=0,\"\",VLOOKUP(T110,'Footnotes list'!$D$9:$E$58,2,FALSE) ) )","v":""},null,null,null,null,{"$f":"IF(TRIM(Y110)=\"\", \"\", IF(VLOOKUP(Y110,'Footnotes list'!$D$9:$E$58,2,FALSE)=0,\"\",VLOOKUP(Y110,'Footnotes list'!$D$9:$E$58,2,FALSE) ) )","v":""},null,null,null,null,{"$f":"IF(TRIM(AD110)=\"\", \"\", IF(VLOOKUP(AD110,'Footnotes list'!$D$9:$E$58,2,FALSE)=0,\"\",VLOOKUP(AD110,'Footnotes list'!$D$9:$E$58,2,FALSE) ) )","v":""},null,null,null,null,{"$f":"IF(TRIM(AI110)=\"\", \"\", IF(VLOOKUP(AI110,'Footnotes list'!$D$9:$E$58,2,FALSE)=0,\"\",VLOOKUP(AI110,'Footnotes list'!$D$9:$E$58,2,FALSE) ) )","v":""},null,null,null,null,{"$f":"IF(TRIM(AN110)=\"\", \"\", IF(VLOOKUP(AN110,'Footnotes list'!$D$9:$E$58,2,FALSE)=0,\"\",VLOOKUP(AN110,'Footnotes list'!$D$9:$E$58,2,FALSE) ) )","v":""},null,null,null,null,{"$f":"IF(TRIM(AS110)=\"\", \"\", IF(VLOOKUP(AS110,'Footnotes list'!$D$9:$E$58,2,FALSE)=0,\"\",VLOOKUP(AS110,'Footnotes list'!$D$9:$E$58,2,FALSE) ) )","v":""},null,null,null,null,{"$f":"IF(TRIM(AX110)=\"\", \"\", IF(VLOOKUP(AX110,'Footnotes list'!$D$9:$E$58,2,FALSE)=0,\"\",VLOOKUP(AX110,'Footnotes list'!$D$9:$E$58,2,FALSE) ) )","v":""},null,null,null,null,{"$f":"IF(TRIM(BC110)=\"\", \"\", IF(VLOOKUP(BC110,'Footnotes list'!$D$9:$E$58,2,FALSE)=0,\"\",VLOOKUP(BC110,'Footnotes list'!$D$9:$E$58,2,FALSE) ) )","v":""},null,null,null,null,{"$f":"IF(TRIM(BH110)=\"\", \"\", IF(VLOOKUP(BH110,'Footnotes list'!$D$9:$E$58,2,FALSE)=0,\"\",VLOOKUP(BH110,'Footnotes list'!$D$9:$E$58,2,FALSE) ) )","v":""},null,null,null,null,{"$f":"IF(TRIM(BM110)=\"\", \"\", IF(VLOOKUP(BM110,'Footnotes list'!$D$9:$E$58,2,FALSE)=0,\"\",VLOOKUP(BM110,'Footnotes list'!$D$9:$E$58,2,FALSE) ) )","v":""},null,null,null,null,{"$f":"IF(TRIM(BR110)=\"\", \"\", IF(VLOOKUP(BR110,'Footnotes list'!$D$9:$E$58,2,FALSE)=0,\"\",VLOOKUP(BR110,'Footnotes list'!$D$9:$E$58,2,FALSE) ) )","v":""},null,null,null,null,{"$f":"IF(TRIM(BW110)=\"\", \"\", IF(VLOOKUP(BW110,'Footnotes list'!$D$9:$E$58,2,FALSE)=0,\"\",VLOOKUP(BW110,'Footnotes list'!$D$9:$E$58,2,FALSE) ) )","v":""},null,null,null,null,{"$f":"IF(TRIM(CB110)=\"\", \"\", IF(VLOOKUP(CB110,'Footnotes list'!$D$9:$E$58,2,FALSE)=0,\"\",VLOOKUP(CB110,'Footnotes list'!$D$9:$E$58,2,FALSE) ) )","v":""},null,null,null,null,{"$f":"IF(TRIM(CG110)=\"\", \"\", IF(VLOOKUP(CG110,'Footnotes list'!$D$9:$E$58,2,FALSE)=0,\"\",VLOOKUP(CG110,'Footnotes list'!$D$9:$E$58,2,FALSE) ) )","v":""},null,null,null,null,{"$f":"IF(TRIM(CL110)=\"\", \"\", IF(VLOOKUP(CL110,'Footnotes list'!$D$9:$E$58,2,FALSE)=0,\"\",VLOOKUP(CL110,'Footnotes list'!$D$9:$E$58,2,FALSE) ) )","v":""},null,null,null,null,{"$f":"IF(TRIM(CQ110)=\"\", \"\", IF(VLOOKUP(CQ110,'Footnotes list'!$D$9:$E$58,2,FALSE)=0,\"\",VLOOKUP(CQ110,'Footnotes list'!$D$9:$E$58,2,FALSE) ) )","v":""},null,null,null,null,{"$f":"IF(TRIM(CV110)=\"\", \"\", IF(VLOOKUP(CV110,'Footnotes list'!$D$9:$E$58,2,FALSE)=0,\"\",VLOOKUP(CV110,'Footnotes list'!$D$9:$E$58,2,FALSE) ) )","v":""},null,null,null,null,{"$f":"IF(TRIM(DA110)=\"\", \"\", IF(VLOOKUP(DA110,'Footnotes list'!$D$9:$E$58,2,FALSE)=0,\"\",VLOOKUP(DA110,'Footnotes list'!$D$9:$E$58,2,FALSE) ) )","v":""},null,null,null,null,{"$f":"IF(TRIM(DF110)=\"\", \"\", IF(VLOOKUP(DF110,'Footnotes list'!$D$9:$E$58,2,FALSE)=0,\"\",VLOOKUP(DF110,'Footnotes list'!$D$9:$E$58,2,FALSE) ) )","v":""},null,null,null,null,{"$f":"IF(TRIM(DK110)=\"\", \"\", IF(VLOOKUP(DK110,'Footnotes list'!$D$9:$E$58,2,FALSE)=0,\"\",VLOOKUP(DK110,'Footnotes list'!$D$9:$E$58,2,FALSE) ) )","v":""},null,null,null,null,{"$f":"IF(TRIM(DP110)=\"\", \"\", IF(VLOOKUP(DP110,'Footnotes list'!$D$9:$E$58,2,FALSE)=0,\"\",VLOOKUP(DP110,'Footnotes list'!$D$9:$E$58,2,FALSE) ) )","v":""},null,null,null,null,{"$f":"IF(TRIM(DU110)=\"\", \"\", IF(VLOOKUP(DU110,'Footnotes list'!$D$9:$E$58,2,FALSE)=0,\"\",VLOOKUP(DU110,'Footnotes list'!$D$9:$E$58,2,FALSE) ) )","v":""},null,null,null,null,{"$f":"IF(TRIM(DZ110)=\"\", \"\", IF(VLOOKUP(DZ110,'Footnotes list'!$D$9:$E$58,2,FALSE)=0,\"\",VLOOKUP(DZ110,'Footnotes list'!$D$9:$E$58,2,FALSE) ) )","v":""},null,null,null,null,{"$f":"IF(TRIM(EE110)=\"\", \"\", IF(VLOOKUP(EE110,'Footnotes list'!$D$9:$E$58,2,FALSE)=0,\"\",VLOOKUP(EE110,'Footnotes list'!$D$9:$E$58,2,FALSE) ) )","v":""},null,null,null,null,{"$f":"IF(TRIM(EJ110)=\"\", \"\", IF(VLOOKUP(EJ110,'Footnotes list'!$D$9:$E$58,2,FALSE)=0,\"\",VLOOKUP(EJ110,'Footnotes list'!$D$9:$E$58,2,FALSE) ) )","v":""},null,null,null,null,{"$f":"IF(TRIM(EO110)=\"\", \"\", IF(VLOOKUP(EO110,'Footnotes list'!$D$9:$E$58,2,FALSE)=0,\"\",VLOOKUP(EO110,'Footnotes list'!$D$9:$E$58,2,FALSE) ) )","v":""},null,null,null,null,{"$f":"IF(TRIM(ET110)=\"\", \"\", IF(VLOOKUP(ET110,'Footnotes list'!$D$9:$E$58,2,FALSE)=0,\"\",VLOOKUP(ET110,'Footnotes list'!$D$9:$E$58,2,FALSE) ) )","v":""},null,null,null,null,{"$f":"IF(TRIM(EY110)=\"\", \"\", IF(VLOOKUP(EY110,'Footnotes list'!$D$9:$E$58,2,FALSE)=0,\"\",VLOOKUP(EY110,'Footnotes list'!$D$9:$E$58,2,FALSE) ) )","v":""}]
[null,null,"C28","ES_CS","environmental specific services",null,null,null,null,null,{"$f":"IF(TRIM(J111)=\"\", \"\", IF(VLOOKUP(J111,'Footnotes list'!$D$9:$E$58,2,FALSE)=0,\"\",VLOOKUP(J111,'Footnotes list'!$D$9:$E$58,2,FALSE) ) )","v":""},null,null,null,null,{"$f":"IF(TRIM(O111)=\"\", \"\", IF(VLOOKUP(O111,'Footnotes list'!$D$9:$E$58,2,FALSE)=0,\"\",VLOOKUP(O111,'Footnotes list'!$D$9:$E$58,2,FALSE) ) )","v":""},null,null,null,null,{"$f":"IF(TRIM(T111)=\"\", \"\", IF(VLOOKUP(T111,'Footnotes list'!$D$9:$E$58,2,FALSE)=0,\"\",VLOOKUP(T111,'Footnotes list'!$D$9:$E$58,2,FALSE) ) )","v":""},null,null,null,null,{"$f":"IF(TRIM(Y111)=\"\", \"\", IF(VLOOKUP(Y111,'Footnotes list'!$D$9:$E$58,2,FALSE)=0,\"\",VLOOKUP(Y111,'Footnotes list'!$D$9:$E$58,2,FALSE) ) )","v":""},null,null,null,null,{"$f":"IF(TRIM(AD111)=\"\", \"\", IF(VLOOKUP(AD111,'Footnotes list'!$D$9:$E$58,2,FALSE)=0,\"\",VLOOKUP(AD111,'Footnotes list'!$D$9:$E$58,2,FALSE) ) )","v":""},null,null,null,null,{"$f":"IF(TRIM(AI111)=\"\", \"\", IF(VLOOKUP(AI111,'Footnotes list'!$D$9:$E$58,2,FALSE)=0,\"\",VLOOKUP(AI111,'Footnotes list'!$D$9:$E$58,2,FALSE) ) )","v":""},null,null,null,null,{"$f":"IF(TRIM(AN111)=\"\", \"\", IF(VLOOKUP(AN111,'Footnotes list'!$D$9:$E$58,2,FALSE)=0,\"\",VLOOKUP(AN111,'Footnotes list'!$D$9:$E$58,2,FALSE) ) )","v":""},null,null,null,null,{"$f":"IF(TRIM(AS111)=\"\", \"\", IF(VLOOKUP(AS111,'Footnotes list'!$D$9:$E$58,2,FALSE)=0,\"\",VLOOKUP(AS111,'Footnotes list'!$D$9:$E$58,2,FALSE) ) )","v":""},null,null,null,null,{"$f":"IF(TRIM(AX111)=\"\", \"\", IF(VLOOKUP(AX111,'Footnotes list'!$D$9:$E$58,2,FALSE)=0,\"\",VLOOKUP(AX111,'Footnotes list'!$D$9:$E$58,2,FALSE) ) )","v":""},null,null,null,null,{"$f":"IF(TRIM(BC111)=\"\", \"\", IF(VLOOKUP(BC111,'Footnotes list'!$D$9:$E$58,2,FALSE)=0,\"\",VLOOKUP(BC111,'Footnotes list'!$D$9:$E$58,2,FALSE) ) )","v":""},null,null,null,null,{"$f":"IF(TRIM(BH111)=\"\", \"\", IF(VLOOKUP(BH111,'Footnotes list'!$D$9:$E$58,2,FALSE)=0,\"\",VLOOKUP(BH111,'Footnotes list'!$D$9:$E$58,2,FALSE) ) )","v":""},null,null,null,null,{"$f":"IF(TRIM(BM111)=\"\", \"\", IF(VLOOKUP(BM111,'Footnotes list'!$D$9:$E$58,2,FALSE)=0,\"\",VLOOKUP(BM111,'Footnotes list'!$D$9:$E$58,2,FALSE) ) )","v":""},null,null,null,null,{"$f":"IF(TRIM(BR111)=\"\", \"\", IF(VLOOKUP(BR111,'Footnotes list'!$D$9:$E$58,2,FALSE)=0,\"\",VLOOKUP(BR111,'Footnotes list'!$D$9:$E$58,2,FALSE) ) )","v":""},null,null,null,null,{"$f":"IF(TRIM(BW111)=\"\", \"\", IF(VLOOKUP(BW111,'Footnotes list'!$D$9:$E$58,2,FALSE)=0,\"\",VLOOKUP(BW111,'Footnotes list'!$D$9:$E$58,2,FALSE) ) )","v":""},null,null,null,null,{"$f":"IF(TRIM(CB111)=\"\", \"\", IF(VLOOKUP(CB111,'Footnotes list'!$D$9:$E$58,2,FALSE)=0,\"\",VLOOKUP(CB111,'Footnotes list'!$D$9:$E$58,2,FALSE) ) )","v":""},null,null,null,null,{"$f":"IF(TRIM(CG111)=\"\", \"\", IF(VLOOKUP(CG111,'Footnotes list'!$D$9:$E$58,2,FALSE)=0,\"\",VLOOKUP(CG111,'Footnotes list'!$D$9:$E$58,2,FALSE) ) )","v":""},null,null,null,null,{"$f":"IF(TRIM(CL111)=\"\", \"\", IF(VLOOKUP(CL111,'Footnotes list'!$D$9:$E$58,2,FALSE)=0,\"\",VLOOKUP(CL111,'Footnotes list'!$D$9:$E$58,2,FALSE) ) )","v":""},null,null,null,null,{"$f":"IF(TRIM(CQ111)=\"\", \"\", IF(VLOOKUP(CQ111,'Footnotes list'!$D$9:$E$58,2,FALSE)=0,\"\",VLOOKUP(CQ111,'Footnotes list'!$D$9:$E$58,2,FALSE) ) )","v":""},null,null,null,null,{"$f":"IF(TRIM(CV111)=\"\", \"\", IF(VLOOKUP(CV111,'Footnotes list'!$D$9:$E$58,2,FALSE)=0,\"\",VLOOKUP(CV111,'Footnotes list'!$D$9:$E$58,2,FALSE) ) )","v":""},null,null,null,null,{"$f":"IF(TRIM(DA111)=\"\", \"\", IF(VLOOKUP(DA111,'Footnotes list'!$D$9:$E$58,2,FALSE)=0,\"\",VLOOKUP(DA111,'Footnotes list'!$D$9:$E$58,2,FALSE) ) )","v":""},null,null,null,null,{"$f":"IF(TRIM(DF111)=\"\", \"\", IF(VLOOKUP(DF111,'Footnotes list'!$D$9:$E$58,2,FALSE)=0,\"\",VLOOKUP(DF111,'Footnotes list'!$D$9:$E$58,2,FALSE) ) )","v":""},null,null,null,null,{"$f":"IF(TRIM(DK111)=\"\", \"\", IF(VLOOKUP(DK111,'Footnotes list'!$D$9:$E$58,2,FALSE)=0,\"\",VLOOKUP(DK111,'Footnotes list'!$D$9:$E$58,2,FALSE) ) )","v":""},null,null,null,null,{"$f":"IF(TRIM(DP111)=\"\", \"\", IF(VLOOKUP(DP111,'Footnotes list'!$D$9:$E$58,2,FALSE)=0,\"\",VLOOKUP(DP111,'Footnotes list'!$D$9:$E$58,2,FALSE) ) )","v":""},null,null,null,null,{"$f":"IF(TRIM(DU111)=\"\", \"\", IF(VLOOKUP(DU111,'Footnotes list'!$D$9:$E$58,2,FALSE)=0,\"\",VLOOKUP(DU111,'Footnotes list'!$D$9:$E$58,2,FALSE) ) )","v":""},null,null,null,null,{"$f":"IF(TRIM(DZ111)=\"\", \"\", IF(VLOOKUP(DZ111,'Footnotes list'!$D$9:$E$58,2,FALSE)=0,\"\",VLOOKUP(DZ111,'Footnotes list'!$D$9:$E$58,2,FALSE) ) )","v":""},null,null,null,null,{"$f":"IF(TRIM(EE111)=\"\", \"\", IF(VLOOKUP(EE111,'Footnotes list'!$D$9:$E$58,2,FALSE)=0,\"\",VLOOKUP(EE111,'Footnotes list'!$D$9:$E$58,2,FALSE) ) )","v":""},null,null,null,null,{"$f":"IF(TRIM(EJ111)=\"\", \"\", IF(VLOOKUP(EJ111,'Footnotes list'!$D$9:$E$58,2,FALSE)=0,\"\",VLOOKUP(EJ111,'Footnotes list'!$D$9:$E$58,2,FALSE) ) )","v":""},null,null,null,null,{"$f":"IF(TRIM(EO111)=\"\", \"\", IF(VLOOKUP(EO111,'Footnotes list'!$D$9:$E$58,2,FALSE)=0,\"\",VLOOKUP(EO111,'Footnotes list'!$D$9:$E$58,2,FALSE) ) )","v":""},null,null,null,null,{"$f":"IF(TRIM(ET111)=\"\", \"\", IF(VLOOKUP(ET111,'Footnotes list'!$D$9:$E$58,2,FALSE)=0,\"\",VLOOKUP(ET111,'Footnotes list'!$D$9:$E$58,2,FALSE) ) )","v":""},null,null,null,null,{"$f":"IF(TRIM(EY111)=\"\", \"\", IF(VLOOKUP(EY111,'Footnotes list'!$D$9:$E$58,2,FALSE)=0,\"\",VLOOKUP(EY111,'Footnotes list'!$D$9:$E$58,2,FALSE) ) )","v":""}]
[null,null,"C28","C_REP","cleaner and resource efficient products",null,null,null,null,null,{"$f":"IF(TRIM(J112)=\"\", \"\", IF(VLOOKUP(J112,'Footnotes list'!$D$9:$E$58,2,FALSE)=0,\"\",VLOOKUP(J112,'Footnotes list'!$D$9:$E$58,2,FALSE) ) )","v":""},null,null,null,null,{"$f":"IF(TRIM(O112)=\"\", \"\", IF(VLOOKUP(O112,'Footnotes list'!$D$9:$E$58,2,FALSE)=0,\"\",VLOOKUP(O112,'Footnotes list'!$D$9:$E$58,2,FALSE) ) )","v":""},null,null,null,null,{"$f":"IF(TRIM(T112)=\"\", \"\", IF(VLOOKUP(T112,'Footnotes list'!$D$9:$E$58,2,FALSE)=0,\"\",VLOOKUP(T112,'Footnotes list'!$D$9:$E$58,2,FALSE) ) )","v":""},null,null,null,null,{"$f":"IF(TRIM(Y112)=\"\", \"\", IF(VLOOKUP(Y112,'Footnotes list'!$D$9:$E$58,2,FALSE)=0,\"\",VLOOKUP(Y112,'Footnotes list'!$D$9:$E$58,2,FALSE) ) )","v":""},null,null,null,null,{"$f":"IF(TRIM(AD112)=\"\", \"\", IF(VLOOKUP(AD112,'Footnotes list'!$D$9:$E$58,2,FALSE)=0,\"\",VLOOKUP(AD112,'Footnotes list'!$D$9:$E$58,2,FALSE) ) )","v":""},null,null,null,null,{"$f":"IF(TRIM(AI112)=\"\", \"\", IF(VLOOKUP(AI112,'Footnotes list'!$D$9:$E$58,2,FALSE)=0,\"\",VLOOKUP(AI112,'Footnotes list'!$D$9:$E$58,2,FALSE) ) )","v":""},null,null,null,null,{"$f":"IF(TRIM(AN112)=\"\", \"\", IF(VLOOKUP(AN112,'Footnotes list'!$D$9:$E$58,2,FALSE)=0,\"\",VLOOKUP(AN112,'Footnotes list'!$D$9:$E$58,2,FALSE) ) )","v":""},null,null,null,null,{"$f":"IF(TRIM(AS112)=\"\", \"\", IF(VLOOKUP(AS112,'Footnotes list'!$D$9:$E$58,2,FALSE)=0,\"\",VLOOKUP(AS112,'Footnotes list'!$D$9:$E$58,2,FALSE) ) )","v":""},null,null,null,null,{"$f":"IF(TRIM(AX112)=\"\", \"\", IF(VLOOKUP(AX112,'Footnotes list'!$D$9:$E$58,2,FALSE)=0,\"\",VLOOKUP(AX112,'Footnotes list'!$D$9:$E$58,2,FALSE) ) )","v":""},null,null,null,null,{"$f":"IF(TRIM(BC112)=\"\", \"\", IF(VLOOKUP(BC112,'Footnotes list'!$D$9:$E$58,2,FALSE)=0,\"\",VLOOKUP(BC112,'Footnotes list'!$D$9:$E$58,2,FALSE) ) )","v":""},null,null,null,null,{"$f":"IF(TRIM(BH112)=\"\", \"\", IF(VLOOKUP(BH112,'Footnotes list'!$D$9:$E$58,2,FALSE)=0,\"\",VLOOKUP(BH112,'Footnotes list'!$D$9:$E$58,2,FALSE) ) )","v":""},null,null,null,null,{"$f":"IF(TRIM(BM112)=\"\", \"\", IF(VLOOKUP(BM112,'Footnotes list'!$D$9:$E$58,2,FALSE)=0,\"\",VLOOKUP(BM112,'Footnotes list'!$D$9:$E$58,2,FALSE) ) )","v":""},null,null,null,null,{"$f":"IF(TRIM(BR112)=\"\", \"\", IF(VLOOKUP(BR112,'Footnotes list'!$D$9:$E$58,2,FALSE)=0,\"\",VLOOKUP(BR112,'Footnotes list'!$D$9:$E$58,2,FALSE) ) )","v":""},null,null,null,null,{"$f":"IF(TRIM(BW112)=\"\", \"\", IF(VLOOKUP(BW112,'Footnotes list'!$D$9:$E$58,2,FALSE)=0,\"\",VLOOKUP(BW112,'Footnotes list'!$D$9:$E$58,2,FALSE) ) )","v":""},null,null,null,null,{"$f":"IF(TRIM(CB112)=\"\", \"\", IF(VLOOKUP(CB112,'Footnotes list'!$D$9:$E$58,2,FALSE)=0,\"\",VLOOKUP(CB112,'Footnotes list'!$D$9:$E$58,2,FALSE) ) )","v":""},null,null,null,null,{"$f":"IF(TRIM(CG112)=\"\", \"\", IF(VLOOKUP(CG112,'Footnotes list'!$D$9:$E$58,2,FALSE)=0,\"\",VLOOKUP(CG112,'Footnotes list'!$D$9:$E$58,2,FALSE) ) )","v":""},null,null,null,null,{"$f":"IF(TRIM(CL112)=\"\", \"\", IF(VLOOKUP(CL112,'Footnotes list'!$D$9:$E$58,2,FALSE)=0,\"\",VLOOKUP(CL112,'Footnotes list'!$D$9:$E$58,2,FALSE) ) )","v":""},null,null,null,null,{"$f":"IF(TRIM(CQ112)=\"\", \"\", IF(VLOOKUP(CQ112,'Footnotes list'!$D$9:$E$58,2,FALSE)=0,\"\",VLOOKUP(CQ112,'Footnotes list'!$D$9:$E$58,2,FALSE) ) )","v":""},null,null,null,null,{"$f":"IF(TRIM(CV112)=\"\", \"\", IF(VLOOKUP(CV112,'Footnotes list'!$D$9:$E$58,2,FALSE)=0,\"\",VLOOKUP(CV112,'Footnotes list'!$D$9:$E$58,2,FALSE) ) )","v":""},null,null,null,null,{"$f":"IF(TRIM(DA112)=\"\", \"\", IF(VLOOKUP(DA112,'Footnotes list'!$D$9:$E$58,2,FALSE)=0,\"\",VLOOKUP(DA112,'Footnotes list'!$D$9:$E$58,2,FALSE) ) )","v":""},null,null,null,null,{"$f":"IF(TRIM(DF112)=\"\", \"\", IF(VLOOKUP(DF112,'Footnotes list'!$D$9:$E$58,2,FALSE)=0,\"\",VLOOKUP(DF112,'Footnotes list'!$D$9:$E$58,2,FALSE) ) )","v":""},null,null,null,null,{"$f":"IF(TRIM(DK112)=\"\", \"\", IF(VLOOKUP(DK112,'Footnotes list'!$D$9:$E$58,2,FALSE)=0,\"\",VLOOKUP(DK112,'Footnotes list'!$D$9:$E$58,2,FALSE) ) )","v":""},null,null,null,null,{"$f":"IF(TRIM(DP112)=\"\", \"\", IF(VLOOKUP(DP112,'Footnotes list'!$D$9:$E$58,2,FALSE)=0,\"\",VLOOKUP(DP112,'Footnotes list'!$D$9:$E$58,2,FALSE) ) )","v":""},null,null,null,null,{"$f":"IF(TRIM(DU112)=\"\", \"\", IF(VLOOKUP(DU112,'Footnotes list'!$D$9:$E$58,2,FALSE)=0,\"\",VLOOKUP(DU112,'Footnotes list'!$D$9:$E$58,2,FALSE) ) )","v":""},null,null,null,null,{"$f":"IF(TRIM(DZ112)=\"\", \"\", IF(VLOOKUP(DZ112,'Footnotes list'!$D$9:$E$58,2,FALSE)=0,\"\",VLOOKUP(DZ112,'Footnotes list'!$D$9:$E$58,2,FALSE) ) )","v":""},null,null,null,null,{"$f":"IF(TRIM(EE112)=\"\", \"\", IF(VLOOKUP(EE112,'Footnotes list'!$D$9:$E$58,2,FALSE)=0,\"\",VLOOKUP(EE112,'Footnotes list'!$D$9:$E$58,2,FALSE) ) )","v":""},null,null,null,null,{"$f":"IF(TRIM(EJ112)=\"\", \"\", IF(VLOOKUP(EJ112,'Footnotes list'!$D$9:$E$58,2,FALSE)=0,\"\",VLOOKUP(EJ112,'Footnotes list'!$D$9:$E$58,2,FALSE) ) )","v":""},null,null,null,null,{"$f":"IF(TRIM(EO112)=\"\", \"\", IF(VLOOKUP(EO112,'Footnotes list'!$D$9:$E$58,2,FALSE)=0,\"\",VLOOKUP(EO112,'Footnotes list'!$D$9:$E$58,2,FALSE) ) )","v":""},null,null,null,null,{"$f":"IF(TRIM(ET112)=\"\", \"\", IF(VLOOKUP(ET112,'Footnotes list'!$D$9:$E$58,2,FALSE)=0,\"\",VLOOKUP(ET112,'Footnotes list'!$D$9:$E$58,2,FALSE) ) )","v":""},null,null,null,null,{"$f":"IF(TRIM(EY112)=\"\", \"\", IF(VLOOKUP(EY112,'Footnotes list'!$D$9:$E$58,2,FALSE)=0,\"\",VLOOKUP(EY112,'Footnotes list'!$D$9:$E$58,2,FALSE) ) )","v":""}]
[null,null,"C29_C30","TOT_EGSS","Total C29 - C30 Manufacture of transport equipment, of which:",null,null,null,null,null,{"$f":"IF(TRIM(J113)=\"\", \"\", IF(VLOOKUP(J113,'Footnotes list'!$D$9:$E$58,2,FALSE)=0,\"\",VLOOKUP(J113,'Footnotes list'!$D$9:$E$58,2,FALSE) ) )","v":""},null,null,null,null,{"$f":"IF(TRIM(O113)=\"\", \"\", IF(VLOOKUP(O113,'Footnotes list'!$D$9:$E$58,2,FALSE)=0,\"\",VLOOKUP(O113,'Footnotes list'!$D$9:$E$58,2,FALSE) ) )","v":""},null,null,null,null,{"$f":"IF(TRIM(T113)=\"\", \"\", IF(VLOOKUP(T113,'Footnotes list'!$D$9:$E$58,2,FALSE)=0,\"\",VLOOKUP(T113,'Footnotes list'!$D$9:$E$58,2,FALSE) ) )","v":""},null,null,null,null,{"$f":"IF(TRIM(Y113)=\"\", \"\", IF(VLOOKUP(Y113,'Footnotes list'!$D$9:$E$58,2,FALSE)=0,\"\",VLOOKUP(Y113,'Footnotes list'!$D$9:$E$58,2,FALSE) ) )","v":""},null,null,null,null,{"$f":"IF(TRIM(AD113)=\"\", \"\", IF(VLOOKUP(AD113,'Footnotes list'!$D$9:$E$58,2,FALSE)=0,\"\",VLOOKUP(AD113,'Footnotes list'!$D$9:$E$58,2,FALSE) ) )","v":""},null,null,null,null,{"$f":"IF(TRIM(AI113)=\"\", \"\", IF(VLOOKUP(AI113,'Footnotes list'!$D$9:$E$58,2,FALSE)=0,\"\",VLOOKUP(AI113,'Footnotes list'!$D$9:$E$58,2,FALSE) ) )","v":""},null,null,null,null,{"$f":"IF(TRIM(AN113)=\"\", \"\", IF(VLOOKUP(AN113,'Footnotes list'!$D$9:$E$58,2,FALSE)=0,\"\",VLOOKUP(AN113,'Footnotes list'!$D$9:$E$58,2,FALSE) ) )","v":""},null,null,null,null,{"$f":"IF(TRIM(AS113)=\"\", \"\", IF(VLOOKUP(AS113,'Footnotes list'!$D$9:$E$58,2,FALSE)=0,\"\",VLOOKUP(AS113,'Footnotes list'!$D$9:$E$58,2,FALSE) ) )","v":""},null,null,null,null,{"$f":"IF(TRIM(AX113)=\"\", \"\", IF(VLOOKUP(AX113,'Footnotes list'!$D$9:$E$58,2,FALSE)=0,\"\",VLOOKUP(AX113,'Footnotes list'!$D$9:$E$58,2,FALSE) ) )","v":""},null,null,null,null,{"$f":"IF(TRIM(BC113)=\"\", \"\", IF(VLOOKUP(BC113,'Footnotes list'!$D$9:$E$58,2,FALSE)=0,\"\",VLOOKUP(BC113,'Footnotes list'!$D$9:$E$58,2,FALSE) ) )","v":""},null,null,null,null,{"$f":"IF(TRIM(BH113)=\"\", \"\", IF(VLOOKUP(BH113,'Footnotes list'!$D$9:$E$58,2,FALSE)=0,\"\",VLOOKUP(BH113,'Footnotes list'!$D$9:$E$58,2,FALSE) ) )","v":""},null,null,null,null,{"$f":"IF(TRIM(BM113)=\"\", \"\", IF(VLOOKUP(BM113,'Footnotes list'!$D$9:$E$58,2,FALSE)=0,\"\",VLOOKUP(BM113,'Footnotes list'!$D$9:$E$58,2,FALSE) ) )","v":""},null,null,null,null,{"$f":"IF(TRIM(BR113)=\"\", \"\", IF(VLOOKUP(BR113,'Footnotes list'!$D$9:$E$58,2,FALSE)=0,\"\",VLOOKUP(BR113,'Footnotes list'!$D$9:$E$58,2,FALSE) ) )","v":""},null,null,null,null,{"$f":"IF(TRIM(BW113)=\"\", \"\", IF(VLOOKUP(BW113,'Footnotes list'!$D$9:$E$58,2,FALSE)=0,\"\",VLOOKUP(BW113,'Footnotes list'!$D$9:$E$58,2,FALSE) ) )","v":""},null,null,null,null,{"$f":"IF(TRIM(CB113)=\"\", \"\", IF(VLOOKUP(CB113,'Footnotes list'!$D$9:$E$58,2,FALSE)=0,\"\",VLOOKUP(CB113,'Footnotes list'!$D$9:$E$58,2,FALSE) ) )","v":""},null,null,null,null,{"$f":"IF(TRIM(CG113)=\"\", \"\", IF(VLOOKUP(CG113,'Footnotes list'!$D$9:$E$58,2,FALSE)=0,\"\",VLOOKUP(CG113,'Footnotes list'!$D$9:$E$58,2,FALSE) ) )","v":""},null,null,null,null,{"$f":"IF(TRIM(CL113)=\"\", \"\", IF(VLOOKUP(CL113,'Footnotes list'!$D$9:$E$58,2,FALSE)=0,\"\",VLOOKUP(CL113,'Footnotes list'!$D$9:$E$58,2,FALSE) ) )","v":""},null,null,null,null,{"$f":"IF(TRIM(CQ113)=\"\", \"\", IF(VLOOKUP(CQ113,'Footnotes list'!$D$9:$E$58,2,FALSE)=0,\"\",VLOOKUP(CQ113,'Footnotes list'!$D$9:$E$58,2,FALSE) ) )","v":""},null,null,null,null,{"$f":"IF(TRIM(CV113)=\"\", \"\", IF(VLOOKUP(CV113,'Footnotes list'!$D$9:$E$58,2,FALSE)=0,\"\",VLOOKUP(CV113,'Footnotes list'!$D$9:$E$58,2,FALSE) ) )","v":""},null,null,null,null,{"$f":"IF(TRIM(DA113)=\"\", \"\", IF(VLOOKUP(DA113,'Footnotes list'!$D$9:$E$58,2,FALSE)=0,\"\",VLOOKUP(DA113,'Footnotes list'!$D$9:$E$58,2,FALSE) ) )","v":""},null,null,null,null,{"$f":"IF(TRIM(DF113)=\"\", \"\", IF(VLOOKUP(DF113,'Footnotes list'!$D$9:$E$58,2,FALSE)=0,\"\",VLOOKUP(DF113,'Footnotes list'!$D$9:$E$58,2,FALSE) ) )","v":""},null,null,null,null,{"$f":"IF(TRIM(DK113)=\"\", \"\", IF(VLOOKUP(DK113,'Footnotes list'!$D$9:$E$58,2,FALSE)=0,\"\",VLOOKUP(DK113,'Footnotes list'!$D$9:$E$58,2,FALSE) ) )","v":""},null,null,null,null,{"$f":"IF(TRIM(DP113)=\"\", \"\", IF(VLOOKUP(DP113,'Footnotes list'!$D$9:$E$58,2,FALSE)=0,\"\",VLOOKUP(DP113,'Footnotes list'!$D$9:$E$58,2,FALSE) ) )","v":""},null,null,null,null,{"$f":"IF(TRIM(DU113)=\"\", \"\", IF(VLOOKUP(DU113,'Footnotes list'!$D$9:$E$58,2,FALSE)=0,\"\",VLOOKUP(DU113,'Footnotes list'!$D$9:$E$58,2,FALSE) ) )","v":""},null,null,null,null,{"$f":"IF(TRIM(DZ113)=\"\", \"\", IF(VLOOKUP(DZ113,'Footnotes list'!$D$9:$E$58,2,FALSE)=0,\"\",VLOOKUP(DZ113,'Footnotes list'!$D$9:$E$58,2,FALSE) ) )","v":""},null,null,null,null,{"$f":"IF(TRIM(EE113)=\"\", \"\", IF(VLOOKUP(EE113,'Footnotes list'!$D$9:$E$58,2,FALSE)=0,\"\",VLOOKUP(EE113,'Footnotes list'!$D$9:$E$58,2,FALSE) ) )","v":""},null,null,null,null,{"$f":"IF(TRIM(EJ113)=\"\", \"\", IF(VLOOKUP(EJ113,'Footnotes list'!$D$9:$E$58,2,FALSE)=0,\"\",VLOOKUP(EJ113,'Footnotes list'!$D$9:$E$58,2,FALSE) ) )","v":""},null,null,null,null,{"$f":"IF(TRIM(EO113)=\"\", \"\", IF(VLOOKUP(EO113,'Footnotes list'!$D$9:$E$58,2,FALSE)=0,\"\",VLOOKUP(EO113,'Footnotes list'!$D$9:$E$58,2,FALSE) ) )","v":""},null,null,null,null,{"$f":"IF(TRIM(ET113)=\"\", \"\", IF(VLOOKUP(ET113,'Footnotes list'!$D$9:$E$58,2,FALSE)=0,\"\",VLOOKUP(ET113,'Footnotes list'!$D$9:$E$58,2,FALSE) ) )","v":""},null,null,null,null,{"$f":"IF(TRIM(EY113)=\"\", \"\", IF(VLOOKUP(EY113,'Footnotes list'!$D$9:$E$58,2,FALSE)=0,\"\",VLOOKUP(EY113,'Footnotes list'!$D$9:$E$58,2,FALSE) ) )","v":""}]
[null,null,"C29_C30","ANC","ancillary activities",null,null,null,null,null,{"$f":"IF(TRIM(J114)=\"\", \"\", IF(VLOOKUP(J114,'Footnotes list'!$D$9:$E$58,2,FALSE)=0,\"\",VLOOKUP(J114,'Footnotes list'!$D$9:$E$58,2,FALSE) ) )","v":""},null,null,null,null,{"$f":"IF(TRIM(O114)=\"\", \"\", IF(VLOOKUP(O114,'Footnotes list'!$D$9:$E$58,2,FALSE)=0,\"\",VLOOKUP(O114,'Footnotes list'!$D$9:$E$58,2,FALSE) ) )","v":""},null,null,null,null,{"$f":"IF(TRIM(T114)=\"\", \"\", IF(VLOOKUP(T114,'Footnotes list'!$D$9:$E$58,2,FALSE)=0,\"\",VLOOKUP(T114,'Footnotes list'!$D$9:$E$58,2,FALSE) ) )","v":""},null,null,null,null,{"$f":"IF(TRIM(Y114)=\"\", \"\", IF(VLOOKUP(Y114,'Footnotes list'!$D$9:$E$58,2,FALSE)=0,\"\",VLOOKUP(Y114,'Footnotes list'!$D$9:$E$58,2,FALSE) ) )","v":""},null,null,null,null,{"$f":"IF(TRIM(AD114)=\"\", \"\", IF(VLOOKUP(AD114,'Footnotes list'!$D$9:$E$58,2,FALSE)=0,\"\",VLOOKUP(AD114,'Footnotes list'!$D$9:$E$58,2,FALSE) ) )","v":""},null,null,null,null,{"$f":"IF(TRIM(AI114)=\"\", \"\", IF(VLOOKUP(AI114,'Footnotes list'!$D$9:$E$58,2,FALSE)=0,\"\",VLOOKUP(AI114,'Footnotes list'!$D$9:$E$58,2,FALSE) ) )","v":""},null,null,null,null,{"$f":"IF(TRIM(AN114)=\"\", \"\", IF(VLOOKUP(AN114,'Footnotes list'!$D$9:$E$58,2,FALSE)=0,\"\",VLOOKUP(AN114,'Footnotes list'!$D$9:$E$58,2,FALSE) ) )","v":""},null,null,null,null,{"$f":"IF(TRIM(AS114)=\"\", \"\", IF(VLOOKUP(AS114,'Footnotes list'!$D$9:$E$58,2,FALSE)=0,\"\",VLOOKUP(AS114,'Footnotes list'!$D$9:$E$58,2,FALSE) ) )","v":""},null,null,null,null,{"$f":"IF(TRIM(AX114)=\"\", \"\", IF(VLOOKUP(AX114,'Footnotes list'!$D$9:$E$58,2,FALSE)=0,\"\",VLOOKUP(AX114,'Footnotes list'!$D$9:$E$58,2,FALSE) ) )","v":""},null,null,null,null,{"$f":"IF(TRIM(BC114)=\"\", \"\", IF(VLOOKUP(BC114,'Footnotes list'!$D$9:$E$58,2,FALSE)=0,\"\",VLOOKUP(BC114,'Footnotes list'!$D$9:$E$58,2,FALSE) ) )","v":""},null,null,null,null,{"$f":"IF(TRIM(BH114)=\"\", \"\", IF(VLOOKUP(BH114,'Footnotes list'!$D$9:$E$58,2,FALSE)=0,\"\",VLOOKUP(BH114,'Footnotes list'!$D$9:$E$58,2,FALSE) ) )","v":""},null,null,null,null,{"$f":"IF(TRIM(BM114)=\"\", \"\", IF(VLOOKUP(BM114,'Footnotes list'!$D$9:$E$58,2,FALSE)=0,\"\",VLOOKUP(BM114,'Footnotes list'!$D$9:$E$58,2,FALSE) ) )","v":""},null,null,null,null,{"$f":"IF(TRIM(BR114)=\"\", \"\", IF(VLOOKUP(BR114,'Footnotes list'!$D$9:$E$58,2,FALSE)=0,\"\",VLOOKUP(BR114,'Footnotes list'!$D$9:$E$58,2,FALSE) ) )","v":""},null,null,null,null,{"$f":"IF(TRIM(BW114)=\"\", \"\", IF(VLOOKUP(BW114,'Footnotes list'!$D$9:$E$58,2,FALSE)=0,\"\",VLOOKUP(BW114,'Footnotes list'!$D$9:$E$58,2,FALSE) ) )","v":""},null,null,null,null,{"$f":"IF(TRIM(CB114)=\"\", \"\", IF(VLOOKUP(CB114,'Footnotes list'!$D$9:$E$58,2,FALSE)=0,\"\",VLOOKUP(CB114,'Footnotes list'!$D$9:$E$58,2,FALSE) ) )","v":""},null,null,null,null,{"$f":"IF(TRIM(CG114)=\"\", \"\", IF(VLOOKUP(CG114,'Footnotes list'!$D$9:$E$58,2,FALSE)=0,\"\",VLOOKUP(CG114,'Footnotes list'!$D$9:$E$58,2,FALSE) ) )","v":""},null,null,null,null,{"$f":"IF(TRIM(CL114)=\"\", \"\", IF(VLOOKUP(CL114,'Footnotes list'!$D$9:$E$58,2,FALSE)=0,\"\",VLOOKUP(CL114,'Footnotes list'!$D$9:$E$58,2,FALSE) ) )","v":""},null,null,null,null,{"$f":"IF(TRIM(CQ114)=\"\", \"\", IF(VLOOKUP(CQ114,'Footnotes list'!$D$9:$E$58,2,FALSE)=0,\"\",VLOOKUP(CQ114,'Footnotes list'!$D$9:$E$58,2,FALSE) ) )","v":""},null,null,null,null,{"$f":"IF(TRIM(CV114)=\"\", \"\", IF(VLOOKUP(CV114,'Footnotes list'!$D$9:$E$58,2,FALSE)=0,\"\",VLOOKUP(CV114,'Footnotes list'!$D$9:$E$58,2,FALSE) ) )","v":""},null,null,null,null,{"$f":"IF(TRIM(DA114)=\"\", \"\", IF(VLOOKUP(DA114,'Footnotes list'!$D$9:$E$58,2,FALSE)=0,\"\",VLOOKUP(DA114,'Footnotes list'!$D$9:$E$58,2,FALSE) ) )","v":""},null,null,null,null,{"$f":"IF(TRIM(DF114)=\"\", \"\", IF(VLOOKUP(DF114,'Footnotes list'!$D$9:$E$58,2,FALSE)=0,\"\",VLOOKUP(DF114,'Footnotes list'!$D$9:$E$58,2,FALSE) ) )","v":""},null,null,null,null,{"$f":"IF(TRIM(DK114)=\"\", \"\", IF(VLOOKUP(DK114,'Footnotes list'!$D$9:$E$58,2,FALSE)=0,\"\",VLOOKUP(DK114,'Footnotes list'!$D$9:$E$58,2,FALSE) ) )","v":""},null,null,null,null,{"$f":"IF(TRIM(DP114)=\"\", \"\", IF(VLOOKUP(DP114,'Footnotes list'!$D$9:$E$58,2,FALSE)=0,\"\",VLOOKUP(DP114,'Footnotes list'!$D$9:$E$58,2,FALSE) ) )","v":""},null,null,null,null,{"$f":"IF(TRIM(DU114)=\"\", \"\", IF(VLOOKUP(DU114,'Footnotes list'!$D$9:$E$58,2,FALSE)=0,\"\",VLOOKUP(DU114,'Footnotes list'!$D$9:$E$58,2,FALSE) ) )","v":""},null,null,null,null,{"$f":"IF(TRIM(DZ114)=\"\", \"\", IF(VLOOKUP(DZ114,'Footnotes list'!$D$9:$E$58,2,FALSE)=0,\"\",VLOOKUP(DZ114,'Footnotes list'!$D$9:$E$58,2,FALSE) ) )","v":""},null,null,null,null,{"$f":"IF(TRIM(EE114)=\"\", \"\", IF(VLOOKUP(EE114,'Footnotes list'!$D$9:$E$58,2,FALSE)=0,\"\",VLOOKUP(EE114,'Footnotes list'!$D$9:$E$58,2,FALSE) ) )","v":""},null,null,null,null,{"$f":"IF(TRIM(EJ114)=\"\", \"\", IF(VLOOKUP(EJ114,'Footnotes list'!$D$9:$E$58,2,FALSE)=0,\"\",VLOOKUP(EJ114,'Footnotes list'!$D$9:$E$58,2,FALSE) ) )","v":""},null,null,null,null,{"$f":"IF(TRIM(EO114)=\"\", \"\", IF(VLOOKUP(EO114,'Footnotes list'!$D$9:$E$58,2,FALSE)=0,\"\",VLOOKUP(EO114,'Footnotes list'!$D$9:$E$58,2,FALSE) ) )","v":""},null,null,null,null,{"$f":"IF(TRIM(ET114)=\"\", \"\", IF(VLOOKUP(ET114,'Footnotes list'!$D$9:$E$58,2,FALSE)=0,\"\",VLOOKUP(ET114,'Footnotes list'!$D$9:$E$58,2,FALSE) ) )","v":""},null,null,null,null,{"$f":"IF(TRIM(EY114)=\"\", \"\", IF(VLOOKUP(EY114,'Footnotes list'!$D$9:$E$58,2,FALSE)=0,\"\",VLOOKUP(EY114,'Footnotes list'!$D$9:$E$58,2,FALSE) ) )","v":""}]
[null,null,"C29_C30","NMKT","non-market activities",null,null,null,null,null,{"$f":"IF(TRIM(J115)=\"\", \"\", IF(VLOOKUP(J115,'Footnotes list'!$D$9:$E$58,2,FALSE)=0,\"\",VLOOKUP(J115,'Footnotes list'!$D$9:$E$58,2,FALSE) ) )","v":""},null,null,null,null,{"$f":"IF(TRIM(O115)=\"\", \"\", IF(VLOOKUP(O115,'Footnotes list'!$D$9:$E$58,2,FALSE)=0,\"\",VLOOKUP(O115,'Footnotes list'!$D$9:$E$58,2,FALSE) ) )","v":""},null,null,null,null,{"$f":"IF(TRIM(T115)=\"\", \"\", IF(VLOOKUP(T115,'Footnotes list'!$D$9:$E$58,2,FALSE)=0,\"\",VLOOKUP(T115,'Footnotes list'!$D$9:$E$58,2,FALSE) ) )","v":""},null,null,null,null,{"$f":"IF(TRIM(Y115)=\"\", \"\", IF(VLOOKUP(Y115,'Footnotes list'!$D$9:$E$58,2,FALSE)=0,\"\",VLOOKUP(Y115,'Footnotes list'!$D$9:$E$58,2,FALSE) ) )","v":""},null,null,null,null,{"$f":"IF(TRIM(AD115)=\"\", \"\", IF(VLOOKUP(AD115,'Footnotes list'!$D$9:$E$58,2,FALSE)=0,\"\",VLOOKUP(AD115,'Footnotes list'!$D$9:$E$58,2,FALSE) ) )","v":""},null,null,null,null,{"$f":"IF(TRIM(AI115)=\"\", \"\", IF(VLOOKUP(AI115,'Footnotes list'!$D$9:$E$58,2,FALSE)=0,\"\",VLOOKUP(AI115,'Footnotes list'!$D$9:$E$58,2,FALSE) ) )","v":""},null,null,null,null,{"$f":"IF(TRIM(AN115)=\"\", \"\", IF(VLOOKUP(AN115,'Footnotes list'!$D$9:$E$58,2,FALSE)=0,\"\",VLOOKUP(AN115,'Footnotes list'!$D$9:$E$58,2,FALSE) ) )","v":""},null,null,null,null,{"$f":"IF(TRIM(AS115)=\"\", \"\", IF(VLOOKUP(AS115,'Footnotes list'!$D$9:$E$58,2,FALSE)=0,\"\",VLOOKUP(AS115,'Footnotes list'!$D$9:$E$58,2,FALSE) ) )","v":""},null,null,null,null,{"$f":"IF(TRIM(AX115)=\"\", \"\", IF(VLOOKUP(AX115,'Footnotes list'!$D$9:$E$58,2,FALSE)=0,\"\",VLOOKUP(AX115,'Footnotes list'!$D$9:$E$58,2,FALSE) ) )","v":""},null,null,null,null,{"$f":"IF(TRIM(BC115)=\"\", \"\", IF(VLOOKUP(BC115,'Footnotes list'!$D$9:$E$58,2,FALSE)=0,\"\",VLOOKUP(BC115,'Footnotes list'!$D$9:$E$58,2,FALSE) ) )","v":""},null,null,null,null,{"$f":"IF(TRIM(BH115)=\"\", \"\", IF(VLOOKUP(BH115,'Footnotes list'!$D$9:$E$58,2,FALSE)=0,\"\",VLOOKUP(BH115,'Footnotes list'!$D$9:$E$58,2,FALSE) ) )","v":""},null,null,null,null,{"$f":"IF(TRIM(BM115)=\"\", \"\", IF(VLOOKUP(BM115,'Footnotes list'!$D$9:$E$58,2,FALSE)=0,\"\",VLOOKUP(BM115,'Footnotes list'!$D$9:$E$58,2,FALSE) ) )","v":""},null,null,null,null,{"$f":"IF(TRIM(BR115)=\"\", \"\", IF(VLOOKUP(BR115,'Footnotes list'!$D$9:$E$58,2,FALSE)=0,\"\",VLOOKUP(BR115,'Footnotes list'!$D$9:$E$58,2,FALSE) ) )","v":""},null,null,null,null,{"$f":"IF(TRIM(BW115)=\"\", \"\", IF(VLOOKUP(BW115,'Footnotes list'!$D$9:$E$58,2,FALSE)=0,\"\",VLOOKUP(BW115,'Footnotes list'!$D$9:$E$58,2,FALSE) ) )","v":""},null,null,null,null,{"$f":"IF(TRIM(CB115)=\"\", \"\", IF(VLOOKUP(CB115,'Footnotes list'!$D$9:$E$58,2,FALSE)=0,\"\",VLOOKUP(CB115,'Footnotes list'!$D$9:$E$58,2,FALSE) ) )","v":""},null,null,null,null,{"$f":"IF(TRIM(CG115)=\"\", \"\", IF(VLOOKUP(CG115,'Footnotes list'!$D$9:$E$58,2,FALSE)=0,\"\",VLOOKUP(CG115,'Footnotes list'!$D$9:$E$58,2,FALSE) ) )","v":""},null,null,null,null,{"$f":"IF(TRIM(CL115)=\"\", \"\", IF(VLOOKUP(CL115,'Footnotes list'!$D$9:$E$58,2,FALSE)=0,\"\",VLOOKUP(CL115,'Footnotes list'!$D$9:$E$58,2,FALSE) ) )","v":""},null,null,null,null,{"$f":"IF(TRIM(CQ115)=\"\", \"\", IF(VLOOKUP(CQ115,'Footnotes list'!$D$9:$E$58,2,FALSE)=0,\"\",VLOOKUP(CQ115,'Footnotes list'!$D$9:$E$58,2,FALSE) ) )","v":""},null,null,null,null,{"$f":"IF(TRIM(CV115)=\"\", \"\", IF(VLOOKUP(CV115,'Footnotes list'!$D$9:$E$58,2,FALSE)=0,\"\",VLOOKUP(CV115,'Footnotes list'!$D$9:$E$58,2,FALSE) ) )","v":""},null,null,null,null,{"$f":"IF(TRIM(DA115)=\"\", \"\", IF(VLOOKUP(DA115,'Footnotes list'!$D$9:$E$58,2,FALSE)=0,\"\",VLOOKUP(DA115,'Footnotes list'!$D$9:$E$58,2,FALSE) ) )","v":""},null,null,null,null,{"$f":"IF(TRIM(DF115)=\"\", \"\", IF(VLOOKUP(DF115,'Footnotes list'!$D$9:$E$58,2,FALSE)=0,\"\",VLOOKUP(DF115,'Footnotes list'!$D$9:$E$58,2,FALSE) ) )","v":""},null,null,null,null,{"$f":"IF(TRIM(DK115)=\"\", \"\", IF(VLOOKUP(DK115,'Footnotes list'!$D$9:$E$58,2,FALSE)=0,\"\",VLOOKUP(DK115,'Footnotes list'!$D$9:$E$58,2,FALSE) ) )","v":""},null,null,null,null,{"$f":"IF(TRIM(DP115)=\"\", \"\", IF(VLOOKUP(DP115,'Footnotes list'!$D$9:$E$58,2,FALSE)=0,\"\",VLOOKUP(DP115,'Footnotes list'!$D$9:$E$58,2,FALSE) ) )","v":""},null,null,null,null,{"$f":"IF(TRIM(DU115)=\"\", \"\", IF(VLOOKUP(DU115,'Footnotes list'!$D$9:$E$58,2,FALSE)=0,\"\",VLOOKUP(DU115,'Footnotes list'!$D$9:$E$58,2,FALSE) ) )","v":""},null,null,null,null,{"$f":"IF(TRIM(DZ115)=\"\", \"\", IF(VLOOKUP(DZ115,'Footnotes list'!$D$9:$E$58,2,FALSE)=0,\"\",VLOOKUP(DZ115,'Footnotes list'!$D$9:$E$58,2,FALSE) ) )","v":""},null,null,null,null,{"$f":"IF(TRIM(EE115)=\"\", \"\", IF(VLOOKUP(EE115,'Footnotes list'!$D$9:$E$58,2,FALSE)=0,\"\",VLOOKUP(EE115,'Footnotes list'!$D$9:$E$58,2,FALSE) ) )","v":""},null,null,null,null,{"$f":"IF(TRIM(EJ115)=\"\", \"\", IF(VLOOKUP(EJ115,'Footnotes list'!$D$9:$E$58,2,FALSE)=0,\"\",VLOOKUP(EJ115,'Footnotes list'!$D$9:$E$58,2,FALSE) ) )","v":""},null,null,null,null,{"$f":"IF(TRIM(EO115)=\"\", \"\", IF(VLOOKUP(EO115,'Footnotes list'!$D$9:$E$58,2,FALSE)=0,\"\",VLOOKUP(EO115,'Footnotes list'!$D$9:$E$58,2,FALSE) ) )","v":""},null,null,null,null,{"$f":"IF(TRIM(ET115)=\"\", \"\", IF(VLOOKUP(ET115,'Footnotes list'!$D$9:$E$58,2,FALSE)=0,\"\",VLOOKUP(ET115,'Footnotes list'!$D$9:$E$58,2,FALSE) ) )","v":""},null,null,null,null,{"$f":"IF(TRIM(EY115)=\"\", \"\", IF(VLOOKUP(EY115,'Footnotes list'!$D$9:$E$58,2,FALSE)=0,\"\",VLOOKUP(EY115,'Footnotes list'!$D$9:$E$58,2,FALSE) ) )","v":""}]
[null,null,"C29_C30","OWN_USE","activities for own final use",null,null,null,null,null,{"$f":"IF(TRIM(J116)=\"\", \"\", IF(VLOOKUP(J116,'Footnotes list'!$D$9:$E$58,2,FALSE)=0,\"\",VLOOKUP(J116,'Footnotes list'!$D$9:$E$58,2,FALSE) ) )","v":""},null,null,null,null,{"$f":"IF(TRIM(O116)=\"\", \"\", IF(VLOOKUP(O116,'Footnotes list'!$D$9:$E$58,2,FALSE)=0,\"\",VLOOKUP(O116,'Footnotes list'!$D$9:$E$58,2,FALSE) ) )","v":""},null,null,null,null,{"$f":"IF(TRIM(T116)=\"\", \"\", IF(VLOOKUP(T116,'Footnotes list'!$D$9:$E$58,2,FALSE)=0,\"\",VLOOKUP(T116,'Footnotes list'!$D$9:$E$58,2,FALSE) ) )","v":""},null,null,null,null,{"$f":"IF(TRIM(Y116)=\"\", \"\", IF(VLOOKUP(Y116,'Footnotes list'!$D$9:$E$58,2,FALSE)=0,\"\",VLOOKUP(Y116,'Footnotes list'!$D$9:$E$58,2,FALSE) ) )","v":""},null,null,null,null,{"$f":"IF(TRIM(AD116)=\"\", \"\", IF(VLOOKUP(AD116,'Footnotes list'!$D$9:$E$58,2,FALSE)=0,\"\",VLOOKUP(AD116,'Footnotes list'!$D$9:$E$58,2,FALSE) ) )","v":""},null,null,null,null,{"$f":"IF(TRIM(AI116)=\"\", \"\", IF(VLOOKUP(AI116,'Footnotes list'!$D$9:$E$58,2,FALSE)=0,\"\",VLOOKUP(AI116,'Footnotes list'!$D$9:$E$58,2,FALSE) ) )","v":""},null,null,null,null,{"$f":"IF(TRIM(AN116)=\"\", \"\", IF(VLOOKUP(AN116,'Footnotes list'!$D$9:$E$58,2,FALSE)=0,\"\",VLOOKUP(AN116,'Footnotes list'!$D$9:$E$58,2,FALSE) ) )","v":""},null,null,null,null,{"$f":"IF(TRIM(AS116)=\"\", \"\", IF(VLOOKUP(AS116,'Footnotes list'!$D$9:$E$58,2,FALSE)=0,\"\",VLOOKUP(AS116,'Footnotes list'!$D$9:$E$58,2,FALSE) ) )","v":""},null,null,null,null,{"$f":"IF(TRIM(AX116)=\"\", \"\", IF(VLOOKUP(AX116,'Footnotes list'!$D$9:$E$58,2,FALSE)=0,\"\",VLOOKUP(AX116,'Footnotes list'!$D$9:$E$58,2,FALSE) ) )","v":""},null,null,null,null,{"$f":"IF(TRIM(BC116)=\"\", \"\", IF(VLOOKUP(BC116,'Footnotes list'!$D$9:$E$58,2,FALSE)=0,\"\",VLOOKUP(BC116,'Footnotes list'!$D$9:$E$58,2,FALSE) ) )","v":""},null,null,null,null,{"$f":"IF(TRIM(BH116)=\"\", \"\", IF(VLOOKUP(BH116,'Footnotes list'!$D$9:$E$58,2,FALSE)=0,\"\",VLOOKUP(BH116,'Footnotes list'!$D$9:$E$58,2,FALSE) ) )","v":""},null,null,null,null,{"$f":"IF(TRIM(BM116)=\"\", \"\", IF(VLOOKUP(BM116,'Footnotes list'!$D$9:$E$58,2,FALSE)=0,\"\",VLOOKUP(BM116,'Footnotes list'!$D$9:$E$58,2,FALSE) ) )","v":""},null,null,null,null,{"$f":"IF(TRIM(BR116)=\"\", \"\", IF(VLOOKUP(BR116,'Footnotes list'!$D$9:$E$58,2,FALSE)=0,\"\",VLOOKUP(BR116,'Footnotes list'!$D$9:$E$58,2,FALSE) ) )","v":""},null,null,null,null,{"$f":"IF(TRIM(BW116)=\"\", \"\", IF(VLOOKUP(BW116,'Footnotes list'!$D$9:$E$58,2,FALSE)=0,\"\",VLOOKUP(BW116,'Footnotes list'!$D$9:$E$58,2,FALSE) ) )","v":""},null,null,null,null,{"$f":"IF(TRIM(CB116)=\"\", \"\", IF(VLOOKUP(CB116,'Footnotes list'!$D$9:$E$58,2,FALSE)=0,\"\",VLOOKUP(CB116,'Footnotes list'!$D$9:$E$58,2,FALSE) ) )","v":""},null,null,null,null,{"$f":"IF(TRIM(CG116)=\"\", \"\", IF(VLOOKUP(CG116,'Footnotes list'!$D$9:$E$58,2,FALSE)=0,\"\",VLOOKUP(CG116,'Footnotes list'!$D$9:$E$58,2,FALSE) ) )","v":""},null,null,null,null,{"$f":"IF(TRIM(CL116)=\"\", \"\", IF(VLOOKUP(CL116,'Footnotes list'!$D$9:$E$58,2,FALSE)=0,\"\",VLOOKUP(CL116,'Footnotes list'!$D$9:$E$58,2,FALSE) ) )","v":""},null,null,null,null,{"$f":"IF(TRIM(CQ116)=\"\", \"\", IF(VLOOKUP(CQ116,'Footnotes list'!$D$9:$E$58,2,FALSE)=0,\"\",VLOOKUP(CQ116,'Footnotes list'!$D$9:$E$58,2,FALSE) ) )","v":""},null,null,null,null,{"$f":"IF(TRIM(CV116)=\"\", \"\", IF(VLOOKUP(CV116,'Footnotes list'!$D$9:$E$58,2,FALSE)=0,\"\",VLOOKUP(CV116,'Footnotes list'!$D$9:$E$58,2,FALSE) ) )","v":""},null,null,null,null,{"$f":"IF(TRIM(DA116)=\"\", \"\", IF(VLOOKUP(DA116,'Footnotes list'!$D$9:$E$58,2,FALSE)=0,\"\",VLOOKUP(DA116,'Footnotes list'!$D$9:$E$58,2,FALSE) ) )","v":""},null,null,null,null,{"$f":"IF(TRIM(DF116)=\"\", \"\", IF(VLOOKUP(DF116,'Footnotes list'!$D$9:$E$58,2,FALSE)=0,\"\",VLOOKUP(DF116,'Footnotes list'!$D$9:$E$58,2,FALSE) ) )","v":""},null,null,null,null,{"$f":"IF(TRIM(DK116)=\"\", \"\", IF(VLOOKUP(DK116,'Footnotes list'!$D$9:$E$58,2,FALSE)=0,\"\",VLOOKUP(DK116,'Footnotes list'!$D$9:$E$58,2,FALSE) ) )","v":""},null,null,null,null,{"$f":"IF(TRIM(DP116)=\"\", \"\", IF(VLOOKUP(DP116,'Footnotes list'!$D$9:$E$58,2,FALSE)=0,\"\",VLOOKUP(DP116,'Footnotes list'!$D$9:$E$58,2,FALSE) ) )","v":""},null,null,null,null,{"$f":"IF(TRIM(DU116)=\"\", \"\", IF(VLOOKUP(DU116,'Footnotes list'!$D$9:$E$58,2,FALSE)=0,\"\",VLOOKUP(DU116,'Footnotes list'!$D$9:$E$58,2,FALSE) ) )","v":""},null,null,null,null,{"$f":"IF(TRIM(DZ116)=\"\", \"\", IF(VLOOKUP(DZ116,'Footnotes list'!$D$9:$E$58,2,FALSE)=0,\"\",VLOOKUP(DZ116,'Footnotes list'!$D$9:$E$58,2,FALSE) ) )","v":""},null,null,null,null,{"$f":"IF(TRIM(EE116)=\"\", \"\", IF(VLOOKUP(EE116,'Footnotes list'!$D$9:$E$58,2,FALSE)=0,\"\",VLOOKUP(EE116,'Footnotes list'!$D$9:$E$58,2,FALSE) ) )","v":""},null,null,null,null,{"$f":"IF(TRIM(EJ116)=\"\", \"\", IF(VLOOKUP(EJ116,'Footnotes list'!$D$9:$E$58,2,FALSE)=0,\"\",VLOOKUP(EJ116,'Footnotes list'!$D$9:$E$58,2,FALSE) ) )","v":""},null,null,null,null,{"$f":"IF(TRIM(EO116)=\"\", \"\", IF(VLOOKUP(EO116,'Footnotes list'!$D$9:$E$58,2,FALSE)=0,\"\",VLOOKUP(EO116,'Footnotes list'!$D$9:$E$58,2,FALSE) ) )","v":""},null,null,null,null,{"$f":"IF(TRIM(ET116)=\"\", \"\", IF(VLOOKUP(ET116,'Footnotes list'!$D$9:$E$58,2,FALSE)=0,\"\",VLOOKUP(ET116,'Footnotes list'!$D$9:$E$58,2,FALSE) ) )","v":""},null,null,null,null,{"$f":"IF(TRIM(EY116)=\"\", \"\", IF(VLOOKUP(EY116,'Footnotes list'!$D$9:$E$58,2,FALSE)=0,\"\",VLOOKUP(EY116,'Footnotes list'!$D$9:$E$58,2,FALSE) ) )","v":""}]
[null,null,"C29_C30","MKT","market activities, including:",null,null,null,null,null,{"$f":"IF(TRIM(J117)=\"\", \"\", IF(VLOOKUP(J117,'Footnotes list'!$D$9:$E$58,2,FALSE)=0,\"\",VLOOKUP(J117,'Footnotes list'!$D$9:$E$58,2,FALSE) ) )","v":""},null,null,null,null,{"$f":"IF(TRIM(O117)=\"\", \"\", IF(VLOOKUP(O117,'Footnotes list'!$D$9:$E$58,2,FALSE)=0,\"\",VLOOKUP(O117,'Footnotes list'!$D$9:$E$58,2,FALSE) ) )","v":""},null,null,null,null,{"$f":"IF(TRIM(T117)=\"\", \"\", IF(VLOOKUP(T117,'Footnotes list'!$D$9:$E$58,2,FALSE)=0,\"\",VLOOKUP(T117,'Footnotes list'!$D$9:$E$58,2,FALSE) ) )","v":""},null,null,null,null,{"$f":"IF(TRIM(Y117)=\"\", \"\", IF(VLOOKUP(Y117,'Footnotes list'!$D$9:$E$58,2,FALSE)=0,\"\",VLOOKUP(Y117,'Footnotes list'!$D$9:$E$58,2,FALSE) ) )","v":""},null,null,null,null,{"$f":"IF(TRIM(AD117)=\"\", \"\", IF(VLOOKUP(AD117,'Footnotes list'!$D$9:$E$58,2,FALSE)=0,\"\",VLOOKUP(AD117,'Footnotes list'!$D$9:$E$58,2,FALSE) ) )","v":""},null,null,null,null,{"$f":"IF(TRIM(AI117)=\"\", \"\", IF(VLOOKUP(AI117,'Footnotes list'!$D$9:$E$58,2,FALSE)=0,\"\",VLOOKUP(AI117,'Footnotes list'!$D$9:$E$58,2,FALSE) ) )","v":""},null,null,null,null,{"$f":"IF(TRIM(AN117)=\"\", \"\", IF(VLOOKUP(AN117,'Footnotes list'!$D$9:$E$58,2,FALSE)=0,\"\",VLOOKUP(AN117,'Footnotes list'!$D$9:$E$58,2,FALSE) ) )","v":""},null,null,null,null,{"$f":"IF(TRIM(AS117)=\"\", \"\", IF(VLOOKUP(AS117,'Footnotes list'!$D$9:$E$58,2,FALSE)=0,\"\",VLOOKUP(AS117,'Footnotes list'!$D$9:$E$58,2,FALSE) ) )","v":""},null,null,null,null,{"$f":"IF(TRIM(AX117)=\"\", \"\", IF(VLOOKUP(AX117,'Footnotes list'!$D$9:$E$58,2,FALSE)=0,\"\",VLOOKUP(AX117,'Footnotes list'!$D$9:$E$58,2,FALSE) ) )","v":""},null,null,null,null,{"$f":"IF(TRIM(BC117)=\"\", \"\", IF(VLOOKUP(BC117,'Footnotes list'!$D$9:$E$58,2,FALSE)=0,\"\",VLOOKUP(BC117,'Footnotes list'!$D$9:$E$58,2,FALSE) ) )","v":""},null,null,null,null,{"$f":"IF(TRIM(BH117)=\"\", \"\", IF(VLOOKUP(BH117,'Footnotes list'!$D$9:$E$58,2,FALSE)=0,\"\",VLOOKUP(BH117,'Footnotes list'!$D$9:$E$58,2,FALSE) ) )","v":""},null,null,null,null,{"$f":"IF(TRIM(BM117)=\"\", \"\", IF(VLOOKUP(BM117,'Footnotes list'!$D$9:$E$58,2,FALSE)=0,\"\",VLOOKUP(BM117,'Footnotes list'!$D$9:$E$58,2,FALSE) ) )","v":""},null,null,null,null,{"$f":"IF(TRIM(BR117)=\"\", \"\", IF(VLOOKUP(BR117,'Footnotes list'!$D$9:$E$58,2,FALSE)=0,\"\",VLOOKUP(BR117,'Footnotes list'!$D$9:$E$58,2,FALSE) ) )","v":""},null,null,null,null,{"$f":"IF(TRIM(BW117)=\"\", \"\", IF(VLOOKUP(BW117,'Footnotes list'!$D$9:$E$58,2,FALSE)=0,\"\",VLOOKUP(BW117,'Footnotes list'!$D$9:$E$58,2,FALSE) ) )","v":""},null,null,null,null,{"$f":"IF(TRIM(CB117)=\"\", \"\", IF(VLOOKUP(CB117,'Footnotes list'!$D$9:$E$58,2,FALSE)=0,\"\",VLOOKUP(CB117,'Footnotes list'!$D$9:$E$58,2,FALSE) ) )","v":""},null,null,null,null,{"$f":"IF(TRIM(CG117)=\"\", \"\", IF(VLOOKUP(CG117,'Footnotes list'!$D$9:$E$58,2,FALSE)=0,\"\",VLOOKUP(CG117,'Footnotes list'!$D$9:$E$58,2,FALSE) ) )","v":""},null,null,null,null,{"$f":"IF(TRIM(CL117)=\"\", \"\", IF(VLOOKUP(CL117,'Footnotes list'!$D$9:$E$58,2,FALSE)=0,\"\",VLOOKUP(CL117,'Footnotes list'!$D$9:$E$58,2,FALSE) ) )","v":""},null,null,null,null,{"$f":"IF(TRIM(CQ117)=\"\", \"\", IF(VLOOKUP(CQ117,'Footnotes list'!$D$9:$E$58,2,FALSE)=0,\"\",VLOOKUP(CQ117,'Footnotes list'!$D$9:$E$58,2,FALSE) ) )","v":""},null,null,null,null,{"$f":"IF(TRIM(CV117)=\"\", \"\", IF(VLOOKUP(CV117,'Footnotes list'!$D$9:$E$58,2,FALSE)=0,\"\",VLOOKUP(CV117,'Footnotes list'!$D$9:$E$58,2,FALSE) ) )","v":""},null,null,null,null,{"$f":"IF(TRIM(DA117)=\"\", \"\", IF(VLOOKUP(DA117,'Footnotes list'!$D$9:$E$58,2,FALSE)=0,\"\",VLOOKUP(DA117,'Footnotes list'!$D$9:$E$58,2,FALSE) ) )","v":""},null,null,null,null,{"$f":"IF(TRIM(DF117)=\"\", \"\", IF(VLOOKUP(DF117,'Footnotes list'!$D$9:$E$58,2,FALSE)=0,\"\",VLOOKUP(DF117,'Footnotes list'!$D$9:$E$58,2,FALSE) ) )","v":""},null,null,null,null,{"$f":"IF(TRIM(DK117)=\"\", \"\", IF(VLOOKUP(DK117,'Footnotes list'!$D$9:$E$58,2,FALSE)=0,\"\",VLOOKUP(DK117,'Footnotes list'!$D$9:$E$58,2,FALSE) ) )","v":""},null,null,null,null,{"$f":"IF(TRIM(DP117)=\"\", \"\", IF(VLOOKUP(DP117,'Footnotes list'!$D$9:$E$58,2,FALSE)=0,\"\",VLOOKUP(DP117,'Footnotes list'!$D$9:$E$58,2,FALSE) ) )","v":""},null,null,null,null,{"$f":"IF(TRIM(DU117)=\"\", \"\", IF(VLOOKUP(DU117,'Footnotes list'!$D$9:$E$58,2,FALSE)=0,\"\",VLOOKUP(DU117,'Footnotes list'!$D$9:$E$58,2,FALSE) ) )","v":""},null,null,null,null,{"$f":"IF(TRIM(DZ117)=\"\", \"\", IF(VLOOKUP(DZ117,'Footnotes list'!$D$9:$E$58,2,FALSE)=0,\"\",VLOOKUP(DZ117,'Footnotes list'!$D$9:$E$58,2,FALSE) ) )","v":""},null,null,null,null,{"$f":"IF(TRIM(EE117)=\"\", \"\", IF(VLOOKUP(EE117,'Footnotes list'!$D$9:$E$58,2,FALSE)=0,\"\",VLOOKUP(EE117,'Footnotes list'!$D$9:$E$58,2,FALSE) ) )","v":""},null,null,null,null,{"$f":"IF(TRIM(EJ117)=\"\", \"\", IF(VLOOKUP(EJ117,'Footnotes list'!$D$9:$E$58,2,FALSE)=0,\"\",VLOOKUP(EJ117,'Footnotes list'!$D$9:$E$58,2,FALSE) ) )","v":""},null,null,null,null,{"$f":"IF(TRIM(EO117)=\"\", \"\", IF(VLOOKUP(EO117,'Footnotes list'!$D$9:$E$58,2,FALSE)=0,\"\",VLOOKUP(EO117,'Footnotes list'!$D$9:$E$58,2,FALSE) ) )","v":""},null,null,null,null,{"$f":"IF(TRIM(ET117)=\"\", \"\", IF(VLOOKUP(ET117,'Footnotes list'!$D$9:$E$58,2,FALSE)=0,\"\",VLOOKUP(ET117,'Footnotes list'!$D$9:$E$58,2,FALSE) ) )","v":""},null,null,null,null,{"$f":"IF(TRIM(EY117)=\"\", \"\", IF(VLOOKUP(EY117,'Footnotes list'!$D$9:$E$58,2,FALSE)=0,\"\",VLOOKUP(EY117,'Footnotes list'!$D$9:$E$58,2,FALSE) ) )","v":""}]
[null,null,"C29_C30","ES_CS","environmental specific services",null,null,null,null,null,{"$f":"IF(TRIM(J118)=\"\", \"\", IF(VLOOKUP(J118,'Footnotes list'!$D$9:$E$58,2,FALSE)=0,\"\",VLOOKUP(J118,'Footnotes list'!$D$9:$E$58,2,FALSE) ) )","v":""},null,null,null,null,{"$f":"IF(TRIM(O118)=\"\", \"\", IF(VLOOKUP(O118,'Footnotes list'!$D$9:$E$58,2,FALSE)=0,\"\",VLOOKUP(O118,'Footnotes list'!$D$9:$E$58,2,FALSE) ) )","v":""},null,null,null,null,{"$f":"IF(TRIM(T118)=\"\", \"\", IF(VLOOKUP(T118,'Footnotes list'!$D$9:$E$58,2,FALSE)=0,\"\",VLOOKUP(T118,'Footnotes list'!$D$9:$E$58,2,FALSE) ) )","v":""},null,null,null,null,{"$f":"IF(TRIM(Y118)=\"\", \"\", IF(VLOOKUP(Y118,'Footnotes list'!$D$9:$E$58,2,FALSE)=0,\"\",VLOOKUP(Y118,'Footnotes list'!$D$9:$E$58,2,FALSE) ) )","v":""},null,null,null,null,{"$f":"IF(TRIM(AD118)=\"\", \"\", IF(VLOOKUP(AD118,'Footnotes list'!$D$9:$E$58,2,FALSE)=0,\"\",VLOOKUP(AD118,'Footnotes list'!$D$9:$E$58,2,FALSE) ) )","v":""},null,null,null,null,{"$f":"IF(TRIM(AI118)=\"\", \"\", IF(VLOOKUP(AI118,'Footnotes list'!$D$9:$E$58,2,FALSE)=0,\"\",VLOOKUP(AI118,'Footnotes list'!$D$9:$E$58,2,FALSE) ) )","v":""},null,null,null,null,{"$f":"IF(TRIM(AN118)=\"\", \"\", IF(VLOOKUP(AN118,'Footnotes list'!$D$9:$E$58,2,FALSE)=0,\"\",VLOOKUP(AN118,'Footnotes list'!$D$9:$E$58,2,FALSE) ) )","v":""},null,null,null,null,{"$f":"IF(TRIM(AS118)=\"\", \"\", IF(VLOOKUP(AS118,'Footnotes list'!$D$9:$E$58,2,FALSE)=0,\"\",VLOOKUP(AS118,'Footnotes list'!$D$9:$E$58,2,FALSE) ) )","v":""},null,null,null,null,{"$f":"IF(TRIM(AX118)=\"\", \"\", IF(VLOOKUP(AX118,'Footnotes list'!$D$9:$E$58,2,FALSE)=0,\"\",VLOOKUP(AX118,'Footnotes list'!$D$9:$E$58,2,FALSE) ) )","v":""},null,null,null,null,{"$f":"IF(TRIM(BC118)=\"\", \"\", IF(VLOOKUP(BC118,'Footnotes list'!$D$9:$E$58,2,FALSE)=0,\"\",VLOOKUP(BC118,'Footnotes list'!$D$9:$E$58,2,FALSE) ) )","v":""},null,null,null,null,{"$f":"IF(TRIM(BH118)=\"\", \"\", IF(VLOOKUP(BH118,'Footnotes list'!$D$9:$E$58,2,FALSE)=0,\"\",VLOOKUP(BH118,'Footnotes list'!$D$9:$E$58,2,FALSE) ) )","v":""},null,null,null,null,{"$f":"IF(TRIM(BM118)=\"\", \"\", IF(VLOOKUP(BM118,'Footnotes list'!$D$9:$E$58,2,FALSE)=0,\"\",VLOOKUP(BM118,'Footnotes list'!$D$9:$E$58,2,FALSE) ) )","v":""},null,null,null,null,{"$f":"IF(TRIM(BR118)=\"\", \"\", IF(VLOOKUP(BR118,'Footnotes list'!$D$9:$E$58,2,FALSE)=0,\"\",VLOOKUP(BR118,'Footnotes list'!$D$9:$E$58,2,FALSE) ) )","v":""},null,null,null,null,{"$f":"IF(TRIM(BW118)=\"\", \"\", IF(VLOOKUP(BW118,'Footnotes list'!$D$9:$E$58,2,FALSE)=0,\"\",VLOOKUP(BW118,'Footnotes list'!$D$9:$E$58,2,FALSE) ) )","v":""},null,null,null,null,{"$f":"IF(TRIM(CB118)=\"\", \"\", IF(VLOOKUP(CB118,'Footnotes list'!$D$9:$E$58,2,FALSE)=0,\"\",VLOOKUP(CB118,'Footnotes list'!$D$9:$E$58,2,FALSE) ) )","v":""},null,null,null,null,{"$f":"IF(TRIM(CG118)=\"\", \"\", IF(VLOOKUP(CG118,'Footnotes list'!$D$9:$E$58,2,FALSE)=0,\"\",VLOOKUP(CG118,'Footnotes list'!$D$9:$E$58,2,FALSE) ) )","v":""},null,null,null,null,{"$f":"IF(TRIM(CL118)=\"\", \"\", IF(VLOOKUP(CL118,'Footnotes list'!$D$9:$E$58,2,FALSE)=0,\"\",VLOOKUP(CL118,'Footnotes list'!$D$9:$E$58,2,FALSE) ) )","v":""},null,null,null,null,{"$f":"IF(TRIM(CQ118)=\"\", \"\", IF(VLOOKUP(CQ118,'Footnotes list'!$D$9:$E$58,2,FALSE)=0,\"\",VLOOKUP(CQ118,'Footnotes list'!$D$9:$E$58,2,FALSE) ) )","v":""},null,null,null,null,{"$f":"IF(TRIM(CV118)=\"\", \"\", IF(VLOOKUP(CV118,'Footnotes list'!$D$9:$E$58,2,FALSE)=0,\"\",VLOOKUP(CV118,'Footnotes list'!$D$9:$E$58,2,FALSE) ) )","v":""},null,null,null,null,{"$f":"IF(TRIM(DA118)=\"\", \"\", IF(VLOOKUP(DA118,'Footnotes list'!$D$9:$E$58,2,FALSE)=0,\"\",VLOOKUP(DA118,'Footnotes list'!$D$9:$E$58,2,FALSE) ) )","v":""},null,null,null,null,{"$f":"IF(TRIM(DF118)=\"\", \"\", IF(VLOOKUP(DF118,'Footnotes list'!$D$9:$E$58,2,FALSE)=0,\"\",VLOOKUP(DF118,'Footnotes list'!$D$9:$E$58,2,FALSE) ) )","v":""},null,null,null,null,{"$f":"IF(TRIM(DK118)=\"\", \"\", IF(VLOOKUP(DK118,'Footnotes list'!$D$9:$E$58,2,FALSE)=0,\"\",VLOOKUP(DK118,'Footnotes list'!$D$9:$E$58,2,FALSE) ) )","v":""},null,null,null,null,{"$f":"IF(TRIM(DP118)=\"\", \"\", IF(VLOOKUP(DP118,'Footnotes list'!$D$9:$E$58,2,FALSE)=0,\"\",VLOOKUP(DP118,'Footnotes list'!$D$9:$E$58,2,FALSE) ) )","v":""},null,null,null,null,{"$f":"IF(TRIM(DU118)=\"\", \"\", IF(VLOOKUP(DU118,'Footnotes list'!$D$9:$E$58,2,FALSE)=0,\"\",VLOOKUP(DU118,'Footnotes list'!$D$9:$E$58,2,FALSE) ) )","v":""},null,null,null,null,{"$f":"IF(TRIM(DZ118)=\"\", \"\", IF(VLOOKUP(DZ118,'Footnotes list'!$D$9:$E$58,2,FALSE)=0,\"\",VLOOKUP(DZ118,'Footnotes list'!$D$9:$E$58,2,FALSE) ) )","v":""},null,null,null,null,{"$f":"IF(TRIM(EE118)=\"\", \"\", IF(VLOOKUP(EE118,'Footnotes list'!$D$9:$E$58,2,FALSE)=0,\"\",VLOOKUP(EE118,'Footnotes list'!$D$9:$E$58,2,FALSE) ) )","v":""},null,null,null,null,{"$f":"IF(TRIM(EJ118)=\"\", \"\", IF(VLOOKUP(EJ118,'Footnotes list'!$D$9:$E$58,2,FALSE)=0,\"\",VLOOKUP(EJ118,'Footnotes list'!$D$9:$E$58,2,FALSE) ) )","v":""},null,null,null,null,{"$f":"IF(TRIM(EO118)=\"\", \"\", IF(VLOOKUP(EO118,'Footnotes list'!$D$9:$E$58,2,FALSE)=0,\"\",VLOOKUP(EO118,'Footnotes list'!$D$9:$E$58,2,FALSE) ) )","v":""},null,null,null,null,{"$f":"IF(TRIM(ET118)=\"\", \"\", IF(VLOOKUP(ET118,'Footnotes list'!$D$9:$E$58,2,FALSE)=0,\"\",VLOOKUP(ET118,'Footnotes list'!$D$9:$E$58,2,FALSE) ) )","v":""},null,null,null,null,{"$f":"IF(TRIM(EY118)=\"\", \"\", IF(VLOOKUP(EY118,'Footnotes list'!$D$9:$E$58,2,FALSE)=0,\"\",VLOOKUP(EY118,'Footnotes list'!$D$9:$E$58,2,FALSE) ) )","v":""}]
[null,null,"C29_C30","C_REP","cleaner and resource efficient products",null,null,null,null,null,{"$f":"IF(TRIM(J119)=\"\", \"\", IF(VLOOKUP(J119,'Footnotes list'!$D$9:$E$58,2,FALSE)=0,\"\",VLOOKUP(J119,'Footnotes list'!$D$9:$E$58,2,FALSE) ) )","v":""},null,null,null,null,{"$f":"IF(TRIM(O119)=\"\", \"\", IF(VLOOKUP(O119,'Footnotes list'!$D$9:$E$58,2,FALSE)=0,\"\",VLOOKUP(O119,'Footnotes list'!$D$9:$E$58,2,FALSE) ) )","v":""},null,null,null,null,{"$f":"IF(TRIM(T119)=\"\", \"\", IF(VLOOKUP(T119,'Footnotes list'!$D$9:$E$58,2,FALSE)=0,\"\",VLOOKUP(T119,'Footnotes list'!$D$9:$E$58,2,FALSE) ) )","v":""},null,null,null,null,{"$f":"IF(TRIM(Y119)=\"\", \"\", IF(VLOOKUP(Y119,'Footnotes list'!$D$9:$E$58,2,FALSE)=0,\"\",VLOOKUP(Y119,'Footnotes list'!$D$9:$E$58,2,FALSE) ) )","v":""},null,null,null,null,{"$f":"IF(TRIM(AD119)=\"\", \"\", IF(VLOOKUP(AD119,'Footnotes list'!$D$9:$E$58,2,FALSE)=0,\"\",VLOOKUP(AD119,'Footnotes list'!$D$9:$E$58,2,FALSE) ) )","v":""},null,null,null,null,{"$f":"IF(TRIM(AI119)=\"\", \"\", IF(VLOOKUP(AI119,'Footnotes list'!$D$9:$E$58,2,FALSE)=0,\"\",VLOOKUP(AI119,'Footnotes list'!$D$9:$E$58,2,FALSE) ) )","v":""},null,null,null,null,{"$f":"IF(TRIM(AN119)=\"\", \"\", IF(VLOOKUP(AN119,'Footnotes list'!$D$9:$E$58,2,FALSE)=0,\"\",VLOOKUP(AN119,'Footnotes list'!$D$9:$E$58,2,FALSE) ) )","v":""},null,null,null,null,{"$f":"IF(TRIM(AS119)=\"\", \"\", IF(VLOOKUP(AS119,'Footnotes list'!$D$9:$E$58,2,FALSE)=0,\"\",VLOOKUP(AS119,'Footnotes list'!$D$9:$E$58,2,FALSE) ) )","v":""},null,null,null,null,{"$f":"IF(TRIM(AX119)=\"\", \"\", IF(VLOOKUP(AX119,'Footnotes list'!$D$9:$E$58,2,FALSE)=0,\"\",VLOOKUP(AX119,'Footnotes list'!$D$9:$E$58,2,FALSE) ) )","v":""},null,null,null,null,{"$f":"IF(TRIM(BC119)=\"\", \"\", IF(VLOOKUP(BC119,'Footnotes list'!$D$9:$E$58,2,FALSE)=0,\"\",VLOOKUP(BC119,'Footnotes list'!$D$9:$E$58,2,FALSE) ) )","v":""},null,null,null,null,{"$f":"IF(TRIM(BH119)=\"\", \"\", IF(VLOOKUP(BH119,'Footnotes list'!$D$9:$E$58,2,FALSE)=0,\"\",VLOOKUP(BH119,'Footnotes list'!$D$9:$E$58,2,FALSE) ) )","v":""},null,null,null,null,{"$f":"IF(TRIM(BM119)=\"\", \"\", IF(VLOOKUP(BM119,'Footnotes list'!$D$9:$E$58,2,FALSE)=0,\"\",VLOOKUP(BM119,'Footnotes list'!$D$9:$E$58,2,FALSE) ) )","v":""},null,null,null,null,{"$f":"IF(TRIM(BR119)=\"\", \"\", IF(VLOOKUP(BR119,'Footnotes list'!$D$9:$E$58,2,FALSE)=0,\"\",VLOOKUP(BR119,'Footnotes list'!$D$9:$E$58,2,FALSE) ) )","v":""},null,null,null,null,{"$f":"IF(TRIM(BW119)=\"\", \"\", IF(VLOOKUP(BW119,'Footnotes list'!$D$9:$E$58,2,FALSE)=0,\"\",VLOOKUP(BW119,'Footnotes list'!$D$9:$E$58,2,FALSE) ) )","v":""},null,null,null,null,{"$f":"IF(TRIM(CB119)=\"\", \"\", IF(VLOOKUP(CB119,'Footnotes list'!$D$9:$E$58,2,FALSE)=0,\"\",VLOOKUP(CB119,'Footnotes list'!$D$9:$E$58,2,FALSE) ) )","v":""},null,null,null,null,{"$f":"IF(TRIM(CG119)=\"\", \"\", IF(VLOOKUP(CG119,'Footnotes list'!$D$9:$E$58,2,FALSE)=0,\"\",VLOOKUP(CG119,'Footnotes list'!$D$9:$E$58,2,FALSE) ) )","v":""},null,null,null,null,{"$f":"IF(TRIM(CL119)=\"\", \"\", IF(VLOOKUP(CL119,'Footnotes list'!$D$9:$E$58,2,FALSE)=0,\"\",VLOOKUP(CL119,'Footnotes list'!$D$9:$E$58,2,FALSE) ) )","v":""},null,null,null,null,{"$f":"IF(TRIM(CQ119)=\"\", \"\", IF(VLOOKUP(CQ119,'Footnotes list'!$D$9:$E$58,2,FALSE)=0,\"\",VLOOKUP(CQ119,'Footnotes list'!$D$9:$E$58,2,FALSE) ) )","v":""},null,null,null,null,{"$f":"IF(TRIM(CV119)=\"\", \"\", IF(VLOOKUP(CV119,'Footnotes list'!$D$9:$E$58,2,FALSE)=0,\"\",VLOOKUP(CV119,'Footnotes list'!$D$9:$E$58,2,FALSE) ) )","v":""},null,null,null,null,{"$f":"IF(TRIM(DA119)=\"\", \"\", IF(VLOOKUP(DA119,'Footnotes list'!$D$9:$E$58,2,FALSE)=0,\"\",VLOOKUP(DA119,'Footnotes list'!$D$9:$E$58,2,FALSE) ) )","v":""},null,null,null,null,{"$f":"IF(TRIM(DF119)=\"\", \"\", IF(VLOOKUP(DF119,'Footnotes list'!$D$9:$E$58,2,FALSE)=0,\"\",VLOOKUP(DF119,'Footnotes list'!$D$9:$E$58,2,FALSE) ) )","v":""},null,null,null,null,{"$f":"IF(TRIM(DK119)=\"\", \"\", IF(VLOOKUP(DK119,'Footnotes list'!$D$9:$E$58,2,FALSE)=0,\"\",VLOOKUP(DK119,'Footnotes list'!$D$9:$E$58,2,FALSE) ) )","v":""},null,null,null,null,{"$f":"IF(TRIM(DP119)=\"\", \"\", IF(VLOOKUP(DP119,'Footnotes list'!$D$9:$E$58,2,FALSE)=0,\"\",VLOOKUP(DP119,'Footnotes list'!$D$9:$E$58,2,FALSE) ) )","v":""},null,null,null,null,{"$f":"IF(TRIM(DU119)=\"\", \"\", IF(VLOOKUP(DU119,'Footnotes list'!$D$9:$E$58,2,FALSE)=0,\"\",VLOOKUP(DU119,'Footnotes list'!$D$9:$E$58,2,FALSE) ) )","v":""},null,null,null,null,{"$f":"IF(TRIM(DZ119)=\"\", \"\", IF(VLOOKUP(DZ119,'Footnotes list'!$D$9:$E$58,2,FALSE)=0,\"\",VLOOKUP(DZ119,'Footnotes list'!$D$9:$E$58,2,FALSE) ) )","v":""},null,null,null,null,{"$f":"IF(TRIM(EE119)=\"\", \"\", IF(VLOOKUP(EE119,'Footnotes list'!$D$9:$E$58,2,FALSE)=0,\"\",VLOOKUP(EE119,'Footnotes list'!$D$9:$E$58,2,FALSE) ) )","v":""},null,null,null,null,{"$f":"IF(TRIM(EJ119)=\"\", \"\", IF(VLOOKUP(EJ119,'Footnotes list'!$D$9:$E$58,2,FALSE)=0,\"\",VLOOKUP(EJ119,'Footnotes list'!$D$9:$E$58,2,FALSE) ) )","v":""},null,null,null,null,{"$f":"IF(TRIM(EO119)=\"\", \"\", IF(VLOOKUP(EO119,'Footnotes list'!$D$9:$E$58,2,FALSE)=0,\"\",VLOOKUP(EO119,'Footnotes list'!$D$9:$E$58,2,FALSE) ) )","v":""},null,null,null,null,{"$f":"IF(TRIM(ET119)=\"\", \"\", IF(VLOOKUP(ET119,'Footnotes list'!$D$9:$E$58,2,FALSE)=0,\"\",VLOOKUP(ET119,'Footnotes list'!$D$9:$E$58,2,FALSE) ) )","v":""},null,null,null,null,{"$f":"IF(TRIM(EY119)=\"\", \"\", IF(VLOOKUP(EY119,'Footnotes list'!$D$9:$E$58,2,FALSE)=0,\"\",VLOOKUP(EY119,'Footnotes list'!$D$9:$E$58,2,FALSE) ) )","v":""}]
[null,null,"C31-C33","TOT_EGSS","Total C31 - C33 Manufacture of furniture; other manufacturing; repair and installation of machinery and equipment, of which:",null,null,null,null,null,{"$f":"IF(TRIM(J120)=\"\", \"\", IF(VLOOKUP(J120,'Footnotes list'!$D$9:$E$58,2,FALSE)=0,\"\",VLOOKUP(J120,'Footnotes list'!$D$9:$E$58,2,FALSE) ) )","v":""},null,null,null,null,{"$f":"IF(TRIM(O120)=\"\", \"\", IF(VLOOKUP(O120,'Footnotes list'!$D$9:$E$58,2,FALSE)=0,\"\",VLOOKUP(O120,'Footnotes list'!$D$9:$E$58,2,FALSE) ) )","v":""},null,null,null,null,{"$f":"IF(TRIM(T120)=\"\", \"\", IF(VLOOKUP(T120,'Footnotes list'!$D$9:$E$58,2,FALSE)=0,\"\",VLOOKUP(T120,'Footnotes list'!$D$9:$E$58,2,FALSE) ) )","v":""},null,null,null,null,{"$f":"IF(TRIM(Y120)=\"\", \"\", IF(VLOOKUP(Y120,'Footnotes list'!$D$9:$E$58,2,FALSE)=0,\"\",VLOOKUP(Y120,'Footnotes list'!$D$9:$E$58,2,FALSE) ) )","v":""},null,null,null,null,{"$f":"IF(TRIM(AD120)=\"\", \"\", IF(VLOOKUP(AD120,'Footnotes list'!$D$9:$E$58,2,FALSE)=0,\"\",VLOOKUP(AD120,'Footnotes list'!$D$9:$E$58,2,FALSE) ) )","v":""},null,null,null,null,{"$f":"IF(TRIM(AI120)=\"\", \"\", IF(VLOOKUP(AI120,'Footnotes list'!$D$9:$E$58,2,FALSE)=0,\"\",VLOOKUP(AI120,'Footnotes list'!$D$9:$E$58,2,FALSE) ) )","v":""},null,null,null,null,{"$f":"IF(TRIM(AN120)=\"\", \"\", IF(VLOOKUP(AN120,'Footnotes list'!$D$9:$E$58,2,FALSE)=0,\"\",VLOOKUP(AN120,'Footnotes list'!$D$9:$E$58,2,FALSE) ) )","v":""},null,null,null,null,{"$f":"IF(TRIM(AS120)=\"\", \"\", IF(VLOOKUP(AS120,'Footnotes list'!$D$9:$E$58,2,FALSE)=0,\"\",VLOOKUP(AS120,'Footnotes list'!$D$9:$E$58,2,FALSE) ) )","v":""},null,null,null,null,{"$f":"IF(TRIM(AX120)=\"\", \"\", IF(VLOOKUP(AX120,'Footnotes list'!$D$9:$E$58,2,FALSE)=0,\"\",VLOOKUP(AX120,'Footnotes list'!$D$9:$E$58,2,FALSE) ) )","v":""},null,null,null,null,{"$f":"IF(TRIM(BC120)=\"\", \"\", IF(VLOOKUP(BC120,'Footnotes list'!$D$9:$E$58,2,FALSE)=0,\"\",VLOOKUP(BC120,'Footnotes list'!$D$9:$E$58,2,FALSE) ) )","v":""},null,null,null,null,{"$f":"IF(TRIM(BH120)=\"\", \"\", IF(VLOOKUP(BH120,'Footnotes list'!$D$9:$E$58,2,FALSE)=0,\"\",VLOOKUP(BH120,'Footnotes list'!$D$9:$E$58,2,FALSE) ) )","v":""},null,null,null,null,{"$f":"IF(TRIM(BM120)=\"\", \"\", IF(VLOOKUP(BM120,'Footnotes list'!$D$9:$E$58,2,FALSE)=0,\"\",VLOOKUP(BM120,'Footnotes list'!$D$9:$E$58,2,FALSE) ) )","v":""},null,null,null,null,{"$f":"IF(TRIM(BR120)=\"\", \"\", IF(VLOOKUP(BR120,'Footnotes list'!$D$9:$E$58,2,FALSE)=0,\"\",VLOOKUP(BR120,'Footnotes list'!$D$9:$E$58,2,FALSE) ) )","v":""},null,null,null,null,{"$f":"IF(TRIM(BW120)=\"\", \"\", IF(VLOOKUP(BW120,'Footnotes list'!$D$9:$E$58,2,FALSE)=0,\"\",VLOOKUP(BW120,'Footnotes list'!$D$9:$E$58,2,FALSE) ) )","v":""},null,null,null,null,{"$f":"IF(TRIM(CB120)=\"\", \"\", IF(VLOOKUP(CB120,'Footnotes list'!$D$9:$E$58,2,FALSE)=0,\"\",VLOOKUP(CB120,'Footnotes list'!$D$9:$E$58,2,FALSE) ) )","v":""},null,null,null,null,{"$f":"IF(TRIM(CG120)=\"\", \"\", IF(VLOOKUP(CG120,'Footnotes list'!$D$9:$E$58,2,FALSE)=0,\"\",VLOOKUP(CG120,'Footnotes list'!$D$9:$E$58,2,FALSE) ) )","v":""},null,null,null,null,{"$f":"IF(TRIM(CL120)=\"\", \"\", IF(VLOOKUP(CL120,'Footnotes list'!$D$9:$E$58,2,FALSE)=0,\"\",VLOOKUP(CL120,'Footnotes list'!$D$9:$E$58,2,FALSE) ) )","v":""},null,null,null,null,{"$f":"IF(TRIM(CQ120)=\"\", \"\", IF(VLOOKUP(CQ120,'Footnotes list'!$D$9:$E$58,2,FALSE)=0,\"\",VLOOKUP(CQ120,'Footnotes list'!$D$9:$E$58,2,FALSE) ) )","v":""},null,null,null,null,{"$f":"IF(TRIM(CV120)=\"\", \"\", IF(VLOOKUP(CV120,'Footnotes list'!$D$9:$E$58,2,FALSE)=0,\"\",VLOOKUP(CV120,'Footnotes list'!$D$9:$E$58,2,FALSE) ) )","v":""},null,null,null,null,{"$f":"IF(TRIM(DA120)=\"\", \"\", IF(VLOOKUP(DA120,'Footnotes list'!$D$9:$E$58,2,FALSE)=0,\"\",VLOOKUP(DA120,'Footnotes list'!$D$9:$E$58,2,FALSE) ) )","v":""},null,null,null,null,{"$f":"IF(TRIM(DF120)=\"\", \"\", IF(VLOOKUP(DF120,'Footnotes list'!$D$9:$E$58,2,FALSE)=0,\"\",VLOOKUP(DF120,'Footnotes list'!$D$9:$E$58,2,FALSE) ) )","v":""},null,null,null,null,{"$f":"IF(TRIM(DK120)=\"\", \"\", IF(VLOOKUP(DK120,'Footnotes list'!$D$9:$E$58,2,FALSE)=0,\"\",VLOOKUP(DK120,'Footnotes list'!$D$9:$E$58,2,FALSE) ) )","v":""},null,null,null,null,{"$f":"IF(TRIM(DP120)=\"\", \"\", IF(VLOOKUP(DP120,'Footnotes list'!$D$9:$E$58,2,FALSE)=0,\"\",VLOOKUP(DP120,'Footnotes list'!$D$9:$E$58,2,FALSE) ) )","v":""},null,null,null,null,{"$f":"IF(TRIM(DU120)=\"\", \"\", IF(VLOOKUP(DU120,'Footnotes list'!$D$9:$E$58,2,FALSE)=0,\"\",VLOOKUP(DU120,'Footnotes list'!$D$9:$E$58,2,FALSE) ) )","v":""},null,null,null,null,{"$f":"IF(TRIM(DZ120)=\"\", \"\", IF(VLOOKUP(DZ120,'Footnotes list'!$D$9:$E$58,2,FALSE)=0,\"\",VLOOKUP(DZ120,'Footnotes list'!$D$9:$E$58,2,FALSE) ) )","v":""},null,null,null,null,{"$f":"IF(TRIM(EE120)=\"\", \"\", IF(VLOOKUP(EE120,'Footnotes list'!$D$9:$E$58,2,FALSE)=0,\"\",VLOOKUP(EE120,'Footnotes list'!$D$9:$E$58,2,FALSE) ) )","v":""},null,null,null,null,{"$f":"IF(TRIM(EJ120)=\"\", \"\", IF(VLOOKUP(EJ120,'Footnotes list'!$D$9:$E$58,2,FALSE)=0,\"\",VLOOKUP(EJ120,'Footnotes list'!$D$9:$E$58,2,FALSE) ) )","v":""},null,null,null,null,{"$f":"IF(TRIM(EO120)=\"\", \"\", IF(VLOOKUP(EO120,'Footnotes list'!$D$9:$E$58,2,FALSE)=0,\"\",VLOOKUP(EO120,'Footnotes list'!$D$9:$E$58,2,FALSE) ) )","v":""},null,null,null,null,{"$f":"IF(TRIM(ET120)=\"\", \"\", IF(VLOOKUP(ET120,'Footnotes list'!$D$9:$E$58,2,FALSE)=0,\"\",VLOOKUP(ET120,'Footnotes list'!$D$9:$E$58,2,FALSE) ) )","v":""},null,null,null,null,{"$f":"IF(TRIM(EY120)=\"\", \"\", IF(VLOOKUP(EY120,'Footnotes list'!$D$9:$E$58,2,FALSE)=0,\"\",VLOOKUP(EY120,'Footnotes list'!$D$9:$E$58,2,FALSE) ) )","v":""}]
[null,null,"C31-C33","ANC","ancillary activities",null,null,null,null,null,{"$f":"IF(TRIM(J121)=\"\", \"\", IF(VLOOKUP(J121,'Footnotes list'!$D$9:$E$58,2,FALSE)=0,\"\",VLOOKUP(J121,'Footnotes list'!$D$9:$E$58,2,FALSE) ) )","v":""},null,null,null,null,{"$f":"IF(TRIM(O121)=\"\", \"\", IF(VLOOKUP(O121,'Footnotes list'!$D$9:$E$58,2,FALSE)=0,\"\",VLOOKUP(O121,'Footnotes list'!$D$9:$E$58,2,FALSE) ) )","v":""},null,null,null,null,{"$f":"IF(TRIM(T121)=\"\", \"\", IF(VLOOKUP(T121,'Footnotes list'!$D$9:$E$58,2,FALSE)=0,\"\",VLOOKUP(T121,'Footnotes list'!$D$9:$E$58,2,FALSE) ) )","v":""},null,null,null,null,{"$f":"IF(TRIM(Y121)=\"\", \"\", IF(VLOOKUP(Y121,'Footnotes list'!$D$9:$E$58,2,FALSE)=0,\"\",VLOOKUP(Y121,'Footnotes list'!$D$9:$E$58,2,FALSE) ) )","v":""},null,null,null,null,{"$f":"IF(TRIM(AD121)=\"\", \"\", IF(VLOOKUP(AD121,'Footnotes list'!$D$9:$E$58,2,FALSE)=0,\"\",VLOOKUP(AD121,'Footnotes list'!$D$9:$E$58,2,FALSE) ) )","v":""},null,null,null,null,{"$f":"IF(TRIM(AI121)=\"\", \"\", IF(VLOOKUP(AI121,'Footnotes list'!$D$9:$E$58,2,FALSE)=0,\"\",VLOOKUP(AI121,'Footnotes list'!$D$9:$E$58,2,FALSE) ) )","v":""},null,null,null,null,{"$f":"IF(TRIM(AN121)=\"\", \"\", IF(VLOOKUP(AN121,'Footnotes list'!$D$9:$E$58,2,FALSE)=0,\"\",VLOOKUP(AN121,'Footnotes list'!$D$9:$E$58,2,FALSE) ) )","v":""},null,null,null,null,{"$f":"IF(TRIM(AS121)=\"\", \"\", IF(VLOOKUP(AS121,'Footnotes list'!$D$9:$E$58,2,FALSE)=0,\"\",VLOOKUP(AS121,'Footnotes list'!$D$9:$E$58,2,FALSE) ) )","v":""},null,null,null,null,{"$f":"IF(TRIM(AX121)=\"\", \"\", IF(VLOOKUP(AX121,'Footnotes list'!$D$9:$E$58,2,FALSE)=0,\"\",VLOOKUP(AX121,'Footnotes list'!$D$9:$E$58,2,FALSE) ) )","v":""},null,null,null,null,{"$f":"IF(TRIM(BC121)=\"\", \"\", IF(VLOOKUP(BC121,'Footnotes list'!$D$9:$E$58,2,FALSE)=0,\"\",VLOOKUP(BC121,'Footnotes list'!$D$9:$E$58,2,FALSE) ) )","v":""},null,null,null,null,{"$f":"IF(TRIM(BH121)=\"\", \"\", IF(VLOOKUP(BH121,'Footnotes list'!$D$9:$E$58,2,FALSE)=0,\"\",VLOOKUP(BH121,'Footnotes list'!$D$9:$E$58,2,FALSE) ) )","v":""},null,null,null,null,{"$f":"IF(TRIM(BM121)=\"\", \"\", IF(VLOOKUP(BM121,'Footnotes list'!$D$9:$E$58,2,FALSE)=0,\"\",VLOOKUP(BM121,'Footnotes list'!$D$9:$E$58,2,FALSE) ) )","v":""},null,null,null,null,{"$f":"IF(TRIM(BR121)=\"\", \"\", IF(VLOOKUP(BR121,'Footnotes list'!$D$9:$E$58,2,FALSE)=0,\"\",VLOOKUP(BR121,'Footnotes list'!$D$9:$E$58,2,FALSE) ) )","v":""},null,null,null,null,{"$f":"IF(TRIM(BW121)=\"\", \"\", IF(VLOOKUP(BW121,'Footnotes list'!$D$9:$E$58,2,FALSE)=0,\"\",VLOOKUP(BW121,'Footnotes list'!$D$9:$E$58,2,FALSE) ) )","v":""},null,null,null,null,{"$f":"IF(TRIM(CB121)=\"\", \"\", IF(VLOOKUP(CB121,'Footnotes list'!$D$9:$E$58,2,FALSE)=0,\"\",VLOOKUP(CB121,'Footnotes list'!$D$9:$E$58,2,FALSE) ) )","v":""},null,null,null,null,{"$f":"IF(TRIM(CG121)=\"\", \"\", IF(VLOOKUP(CG121,'Footnotes list'!$D$9:$E$58,2,FALSE)=0,\"\",VLOOKUP(CG121,'Footnotes list'!$D$9:$E$58,2,FALSE) ) )","v":""},null,null,null,null,{"$f":"IF(TRIM(CL121)=\"\", \"\", IF(VLOOKUP(CL121,'Footnotes list'!$D$9:$E$58,2,FALSE)=0,\"\",VLOOKUP(CL121,'Footnotes list'!$D$9:$E$58,2,FALSE) ) )","v":""},null,null,null,null,{"$f":"IF(TRIM(CQ121)=\"\", \"\", IF(VLOOKUP(CQ121,'Footnotes list'!$D$9:$E$58,2,FALSE)=0,\"\",VLOOKUP(CQ121,'Footnotes list'!$D$9:$E$58,2,FALSE) ) )","v":""},null,null,null,null,{"$f":"IF(TRIM(CV121)=\"\", \"\", IF(VLOOKUP(CV121,'Footnotes list'!$D$9:$E$58,2,FALSE)=0,\"\",VLOOKUP(CV121,'Footnotes list'!$D$9:$E$58,2,FALSE) ) )","v":""},null,null,null,null,{"$f":"IF(TRIM(DA121)=\"\", \"\", IF(VLOOKUP(DA121,'Footnotes list'!$D$9:$E$58,2,FALSE)=0,\"\",VLOOKUP(DA121,'Footnotes list'!$D$9:$E$58,2,FALSE) ) )","v":""},null,null,null,null,{"$f":"IF(TRIM(DF121)=\"\", \"\", IF(VLOOKUP(DF121,'Footnotes list'!$D$9:$E$58,2,FALSE)=0,\"\",VLOOKUP(DF121,'Footnotes list'!$D$9:$E$58,2,FALSE) ) )","v":""},null,null,null,null,{"$f":"IF(TRIM(DK121)=\"\", \"\", IF(VLOOKUP(DK121,'Footnotes list'!$D$9:$E$58,2,FALSE)=0,\"\",VLOOKUP(DK121,'Footnotes list'!$D$9:$E$58,2,FALSE) ) )","v":""},null,null,null,null,{"$f":"IF(TRIM(DP121)=\"\", \"\", IF(VLOOKUP(DP121,'Footnotes list'!$D$9:$E$58,2,FALSE)=0,\"\",VLOOKUP(DP121,'Footnotes list'!$D$9:$E$58,2,FALSE) ) )","v":""},null,null,null,null,{"$f":"IF(TRIM(DU121)=\"\", \"\", IF(VLOOKUP(DU121,'Footnotes list'!$D$9:$E$58,2,FALSE)=0,\"\",VLOOKUP(DU121,'Footnotes list'!$D$9:$E$58,2,FALSE) ) )","v":""},null,null,null,null,{"$f":"IF(TRIM(DZ121)=\"\", \"\", IF(VLOOKUP(DZ121,'Footnotes list'!$D$9:$E$58,2,FALSE)=0,\"\",VLOOKUP(DZ121,'Footnotes list'!$D$9:$E$58,2,FALSE) ) )","v":""},null,null,null,null,{"$f":"IF(TRIM(EE121)=\"\", \"\", IF(VLOOKUP(EE121,'Footnotes list'!$D$9:$E$58,2,FALSE)=0,\"\",VLOOKUP(EE121,'Footnotes list'!$D$9:$E$58,2,FALSE) ) )","v":""},null,null,null,null,{"$f":"IF(TRIM(EJ121)=\"\", \"\", IF(VLOOKUP(EJ121,'Footnotes list'!$D$9:$E$58,2,FALSE)=0,\"\",VLOOKUP(EJ121,'Footnotes list'!$D$9:$E$58,2,FALSE) ) )","v":""},null,null,null,null,{"$f":"IF(TRIM(EO121)=\"\", \"\", IF(VLOOKUP(EO121,'Footnotes list'!$D$9:$E$58,2,FALSE)=0,\"\",VLOOKUP(EO121,'Footnotes list'!$D$9:$E$58,2,FALSE) ) )","v":""},null,null,null,null,{"$f":"IF(TRIM(ET121)=\"\", \"\", IF(VLOOKUP(ET121,'Footnotes list'!$D$9:$E$58,2,FALSE)=0,\"\",VLOOKUP(ET121,'Footnotes list'!$D$9:$E$58,2,FALSE) ) )","v":""},null,null,null,null,{"$f":"IF(TRIM(EY121)=\"\", \"\", IF(VLOOKUP(EY121,'Footnotes list'!$D$9:$E$58,2,FALSE)=0,\"\",VLOOKUP(EY121,'Footnotes list'!$D$9:$E$58,2,FALSE) ) )","v":""}]
[null,null,"C31-C33","NMKT","non-market activities",null,null,null,null,null,{"$f":"IF(TRIM(J122)=\"\", \"\", IF(VLOOKUP(J122,'Footnotes list'!$D$9:$E$58,2,FALSE)=0,\"\",VLOOKUP(J122,'Footnotes list'!$D$9:$E$58,2,FALSE) ) )","v":""},null,null,null,null,{"$f":"IF(TRIM(O122)=\"\", \"\", IF(VLOOKUP(O122,'Footnotes list'!$D$9:$E$58,2,FALSE)=0,\"\",VLOOKUP(O122,'Footnotes list'!$D$9:$E$58,2,FALSE) ) )","v":""},null,null,null,null,{"$f":"IF(TRIM(T122)=\"\", \"\", IF(VLOOKUP(T122,'Footnotes list'!$D$9:$E$58,2,FALSE)=0,\"\",VLOOKUP(T122,'Footnotes list'!$D$9:$E$58,2,FALSE) ) )","v":""},null,null,null,null,{"$f":"IF(TRIM(Y122)=\"\", \"\", IF(VLOOKUP(Y122,'Footnotes list'!$D$9:$E$58,2,FALSE)=0,\"\",VLOOKUP(Y122,'Footnotes list'!$D$9:$E$58,2,FALSE) ) )","v":""},null,null,null,null,{"$f":"IF(TRIM(AD122)=\"\", \"\", IF(VLOOKUP(AD122,'Footnotes list'!$D$9:$E$58,2,FALSE)=0,\"\",VLOOKUP(AD122,'Footnotes list'!$D$9:$E$58,2,FALSE) ) )","v":""},null,null,null,null,{"$f":"IF(TRIM(AI122)=\"\", \"\", IF(VLOOKUP(AI122,'Footnotes list'!$D$9:$E$58,2,FALSE)=0,\"\",VLOOKUP(AI122,'Footnotes list'!$D$9:$E$58,2,FALSE) ) )","v":""},null,null,null,null,{"$f":"IF(TRIM(AN122)=\"\", \"\", IF(VLOOKUP(AN122,'Footnotes list'!$D$9:$E$58,2,FALSE)=0,\"\",VLOOKUP(AN122,'Footnotes list'!$D$9:$E$58,2,FALSE) ) )","v":""},null,null,null,null,{"$f":"IF(TRIM(AS122)=\"\", \"\", IF(VLOOKUP(AS122,'Footnotes list'!$D$9:$E$58,2,FALSE)=0,\"\",VLOOKUP(AS122,'Footnotes list'!$D$9:$E$58,2,FALSE) ) )","v":""},null,null,null,null,{"$f":"IF(TRIM(AX122)=\"\", \"\", IF(VLOOKUP(AX122,'Footnotes list'!$D$9:$E$58,2,FALSE)=0,\"\",VLOOKUP(AX122,'Footnotes list'!$D$9:$E$58,2,FALSE) ) )","v":""},null,null,null,null,{"$f":"IF(TRIM(BC122)=\"\", \"\", IF(VLOOKUP(BC122,'Footnotes list'!$D$9:$E$58,2,FALSE)=0,\"\",VLOOKUP(BC122,'Footnotes list'!$D$9:$E$58,2,FALSE) ) )","v":""},null,null,null,null,{"$f":"IF(TRIM(BH122)=\"\", \"\", IF(VLOOKUP(BH122,'Footnotes list'!$D$9:$E$58,2,FALSE)=0,\"\",VLOOKUP(BH122,'Footnotes list'!$D$9:$E$58,2,FALSE) ) )","v":""},null,null,null,null,{"$f":"IF(TRIM(BM122)=\"\", \"\", IF(VLOOKUP(BM122,'Footnotes list'!$D$9:$E$58,2,FALSE)=0,\"\",VLOOKUP(BM122,'Footnotes list'!$D$9:$E$58,2,FALSE) ) )","v":""},null,null,null,null,{"$f":"IF(TRIM(BR122)=\"\", \"\", IF(VLOOKUP(BR122,'Footnotes list'!$D$9:$E$58,2,FALSE)=0,\"\",VLOOKUP(BR122,'Footnotes list'!$D$9:$E$58,2,FALSE) ) )","v":""},null,null,null,null,{"$f":"IF(TRIM(BW122)=\"\", \"\", IF(VLOOKUP(BW122,'Footnotes list'!$D$9:$E$58,2,FALSE)=0,\"\",VLOOKUP(BW122,'Footnotes list'!$D$9:$E$58,2,FALSE) ) )","v":""},null,null,null,null,{"$f":"IF(TRIM(CB122)=\"\", \"\", IF(VLOOKUP(CB122,'Footnotes list'!$D$9:$E$58,2,FALSE)=0,\"\",VLOOKUP(CB122,'Footnotes list'!$D$9:$E$58,2,FALSE) ) )","v":""},null,null,null,null,{"$f":"IF(TRIM(CG122)=\"\", \"\", IF(VLOOKUP(CG122,'Footnotes list'!$D$9:$E$58,2,FALSE)=0,\"\",VLOOKUP(CG122,'Footnotes list'!$D$9:$E$58,2,FALSE) ) )","v":""},null,null,null,null,{"$f":"IF(TRIM(CL122)=\"\", \"\", IF(VLOOKUP(CL122,'Footnotes list'!$D$9:$E$58,2,FALSE)=0,\"\",VLOOKUP(CL122,'Footnotes list'!$D$9:$E$58,2,FALSE) ) )","v":""},null,null,null,null,{"$f":"IF(TRIM(CQ122)=\"\", \"\", IF(VLOOKUP(CQ122,'Footnotes list'!$D$9:$E$58,2,FALSE)=0,\"\",VLOOKUP(CQ122,'Footnotes list'!$D$9:$E$58,2,FALSE) ) )","v":""},null,null,null,null,{"$f":"IF(TRIM(CV122)=\"\", \"\", IF(VLOOKUP(CV122,'Footnotes list'!$D$9:$E$58,2,FALSE)=0,\"\",VLOOKUP(CV122,'Footnotes list'!$D$9:$E$58,2,FALSE) ) )","v":""},null,null,null,null,{"$f":"IF(TRIM(DA122)=\"\", \"\", IF(VLOOKUP(DA122,'Footnotes list'!$D$9:$E$58,2,FALSE)=0,\"\",VLOOKUP(DA122,'Footnotes list'!$D$9:$E$58,2,FALSE) ) )","v":""},null,null,null,null,{"$f":"IF(TRIM(DF122)=\"\", \"\", IF(VLOOKUP(DF122,'Footnotes list'!$D$9:$E$58,2,FALSE)=0,\"\",VLOOKUP(DF122,'Footnotes list'!$D$9:$E$58,2,FALSE) ) )","v":""},null,null,null,null,{"$f":"IF(TRIM(DK122)=\"\", \"\", IF(VLOOKUP(DK122,'Footnotes list'!$D$9:$E$58,2,FALSE)=0,\"\",VLOOKUP(DK122,'Footnotes list'!$D$9:$E$58,2,FALSE) ) )","v":""},null,null,null,null,{"$f":"IF(TRIM(DP122)=\"\", \"\", IF(VLOOKUP(DP122,'Footnotes list'!$D$9:$E$58,2,FALSE)=0,\"\",VLOOKUP(DP122,'Footnotes list'!$D$9:$E$58,2,FALSE) ) )","v":""},null,null,null,null,{"$f":"IF(TRIM(DU122)=\"\", \"\", IF(VLOOKUP(DU122,'Footnotes list'!$D$9:$E$58,2,FALSE)=0,\"\",VLOOKUP(DU122,'Footnotes list'!$D$9:$E$58,2,FALSE) ) )","v":""},null,null,null,null,{"$f":"IF(TRIM(DZ122)=\"\", \"\", IF(VLOOKUP(DZ122,'Footnotes list'!$D$9:$E$58,2,FALSE)=0,\"\",VLOOKUP(DZ122,'Footnotes list'!$D$9:$E$58,2,FALSE) ) )","v":""},null,null,null,null,{"$f":"IF(TRIM(EE122)=\"\", \"\", IF(VLOOKUP(EE122,'Footnotes list'!$D$9:$E$58,2,FALSE)=0,\"\",VLOOKUP(EE122,'Footnotes list'!$D$9:$E$58,2,FALSE) ) )","v":""},null,null,null,null,{"$f":"IF(TRIM(EJ122)=\"\", \"\", IF(VLOOKUP(EJ122,'Footnotes list'!$D$9:$E$58,2,FALSE)=0,\"\",VLOOKUP(EJ122,'Footnotes list'!$D$9:$E$58,2,FALSE) ) )","v":""},null,null,null,null,{"$f":"IF(TRIM(EO122)=\"\", \"\", IF(VLOOKUP(EO122,'Footnotes list'!$D$9:$E$58,2,FALSE)=0,\"\",VLOOKUP(EO122,'Footnotes list'!$D$9:$E$58,2,FALSE) ) )","v":""},null,null,null,null,{"$f":"IF(TRIM(ET122)=\"\", \"\", IF(VLOOKUP(ET122,'Footnotes list'!$D$9:$E$58,2,FALSE)=0,\"\",VLOOKUP(ET122,'Footnotes list'!$D$9:$E$58,2,FALSE) ) )","v":""},null,null,null,null,{"$f":"IF(TRIM(EY122)=\"\", \"\", IF(VLOOKUP(EY122,'Footnotes list'!$D$9:$E$58,2,FALSE)=0,\"\",VLOOKUP(EY122,'Footnotes list'!$D$9:$E$58,2,FALSE) ) )","v":""}]
[null,null,"C31-C33","OWN_USE","activities for own final use",null,null,null,null,null,{"$f":"IF(TRIM(J123)=\"\", \"\", IF(VLOOKUP(J123,'Footnotes list'!$D$9:$E$58,2,FALSE)=0,\"\",VLOOKUP(J123,'Footnotes list'!$D$9:$E$58,2,FALSE) ) )","v":""},null,null,null,null,{"$f":"IF(TRIM(O123)=\"\", \"\", IF(VLOOKUP(O123,'Footnotes list'!$D$9:$E$58,2,FALSE)=0,\"\",VLOOKUP(O123,'Footnotes list'!$D$9:$E$58,2,FALSE) ) )","v":""},null,null,null,null,{"$f":"IF(TRIM(T123)=\"\", \"\", IF(VLOOKUP(T123,'Footnotes list'!$D$9:$E$58,2,FALSE)=0,\"\",VLOOKUP(T123,'Footnotes list'!$D$9:$E$58,2,FALSE) ) )","v":""},null,null,null,null,{"$f":"IF(TRIM(Y123)=\"\", \"\", IF(VLOOKUP(Y123,'Footnotes list'!$D$9:$E$58,2,FALSE)=0,\"\",VLOOKUP(Y123,'Footnotes list'!$D$9:$E$58,2,FALSE) ) )","v":""},null,null,null,null,{"$f":"IF(TRIM(AD123)=\"\", \"\", IF(VLOOKUP(AD123,'Footnotes list'!$D$9:$E$58,2,FALSE)=0,\"\",VLOOKUP(AD123,'Footnotes list'!$D$9:$E$58,2,FALSE) ) )","v":""},null,null,null,null,{"$f":"IF(TRIM(AI123)=\"\", \"\", IF(VLOOKUP(AI123,'Footnotes list'!$D$9:$E$58,2,FALSE)=0,\"\",VLOOKUP(AI123,'Footnotes list'!$D$9:$E$58,2,FALSE) ) )","v":""},null,null,null,null,{"$f":"IF(TRIM(AN123)=\"\", \"\", IF(VLOOKUP(AN123,'Footnotes list'!$D$9:$E$58,2,FALSE)=0,\"\",VLOOKUP(AN123,'Footnotes list'!$D$9:$E$58,2,FALSE) ) )","v":""},null,null,null,null,{"$f":"IF(TRIM(AS123)=\"\", \"\", IF(VLOOKUP(AS123,'Footnotes list'!$D$9:$E$58,2,FALSE)=0,\"\",VLOOKUP(AS123,'Footnotes list'!$D$9:$E$58,2,FALSE) ) )","v":""},null,null,null,null,{"$f":"IF(TRIM(AX123)=\"\", \"\", IF(VLOOKUP(AX123,'Footnotes list'!$D$9:$E$58,2,FALSE)=0,\"\",VLOOKUP(AX123,'Footnotes list'!$D$9:$E$58,2,FALSE) ) )","v":""},null,null,null,null,{"$f":"IF(TRIM(BC123)=\"\", \"\", IF(VLOOKUP(BC123,'Footnotes list'!$D$9:$E$58,2,FALSE)=0,\"\",VLOOKUP(BC123,'Footnotes list'!$D$9:$E$58,2,FALSE) ) )","v":""},null,null,null,null,{"$f":"IF(TRIM(BH123)=\"\", \"\", IF(VLOOKUP(BH123,'Footnotes list'!$D$9:$E$58,2,FALSE)=0,\"\",VLOOKUP(BH123,'Footnotes list'!$D$9:$E$58,2,FALSE) ) )","v":""},null,null,null,null,{"$f":"IF(TRIM(BM123)=\"\", \"\", IF(VLOOKUP(BM123,'Footnotes list'!$D$9:$E$58,2,FALSE)=0,\"\",VLOOKUP(BM123,'Footnotes list'!$D$9:$E$58,2,FALSE) ) )","v":""},null,null,null,null,{"$f":"IF(TRIM(BR123)=\"\", \"\", IF(VLOOKUP(BR123,'Footnotes list'!$D$9:$E$58,2,FALSE)=0,\"\",VLOOKUP(BR123,'Footnotes list'!$D$9:$E$58,2,FALSE) ) )","v":""},null,null,null,null,{"$f":"IF(TRIM(BW123)=\"\", \"\", IF(VLOOKUP(BW123,'Footnotes list'!$D$9:$E$58,2,FALSE)=0,\"\",VLOOKUP(BW123,'Footnotes list'!$D$9:$E$58,2,FALSE) ) )","v":""},null,null,null,null,{"$f":"IF(TRIM(CB123)=\"\", \"\", IF(VLOOKUP(CB123,'Footnotes list'!$D$9:$E$58,2,FALSE)=0,\"\",VLOOKUP(CB123,'Footnotes list'!$D$9:$E$58,2,FALSE) ) )","v":""},null,null,null,null,{"$f":"IF(TRIM(CG123)=\"\", \"\", IF(VLOOKUP(CG123,'Footnotes list'!$D$9:$E$58,2,FALSE)=0,\"\",VLOOKUP(CG123,'Footnotes list'!$D$9:$E$58,2,FALSE) ) )","v":""},null,null,null,null,{"$f":"IF(TRIM(CL123)=\"\", \"\", IF(VLOOKUP(CL123,'Footnotes list'!$D$9:$E$58,2,FALSE)=0,\"\",VLOOKUP(CL123,'Footnotes list'!$D$9:$E$58,2,FALSE) ) )","v":""},null,null,null,null,{"$f":"IF(TRIM(CQ123)=\"\", \"\", IF(VLOOKUP(CQ123,'Footnotes list'!$D$9:$E$58,2,FALSE)=0,\"\",VLOOKUP(CQ123,'Footnotes list'!$D$9:$E$58,2,FALSE) ) )","v":""},null,null,null,null,{"$f":"IF(TRIM(CV123)=\"\", \"\", IF(VLOOKUP(CV123,'Footnotes list'!$D$9:$E$58,2,FALSE)=0,\"\",VLOOKUP(CV123,'Footnotes list'!$D$9:$E$58,2,FALSE) ) )","v":""},null,null,null,null,{"$f":"IF(TRIM(DA123)=\"\", \"\", IF(VLOOKUP(DA123,'Footnotes list'!$D$9:$E$58,2,FALSE)=0,\"\",VLOOKUP(DA123,'Footnotes list'!$D$9:$E$58,2,FALSE) ) )","v":""},null,null,null,null,{"$f":"IF(TRIM(DF123)=\"\", \"\", IF(VLOOKUP(DF123,'Footnotes list'!$D$9:$E$58,2,FALSE)=0,\"\",VLOOKUP(DF123,'Footnotes list'!$D$9:$E$58,2,FALSE) ) )","v":""},null,null,null,null,{"$f":"IF(TRIM(DK123)=\"\", \"\", IF(VLOOKUP(DK123,'Footnotes list'!$D$9:$E$58,2,FALSE)=0,\"\",VLOOKUP(DK123,'Footnotes list'!$D$9:$E$58,2,FALSE) ) )","v":""},null,null,null,null,{"$f":"IF(TRIM(DP123)=\"\", \"\", IF(VLOOKUP(DP123,'Footnotes list'!$D$9:$E$58,2,FALSE)=0,\"\",VLOOKUP(DP123,'Footnotes list'!$D$9:$E$58,2,FALSE) ) )","v":""},null,null,null,null,{"$f":"IF(TRIM(DU123)=\"\", \"\", IF(VLOOKUP(DU123,'Footnotes list'!$D$9:$E$58,2,FALSE)=0,\"\",VLOOKUP(DU123,'Footnotes list'!$D$9:$E$58,2,FALSE) ) )","v":""},null,null,null,null,{"$f":"IF(TRIM(DZ123)=\"\", \"\", IF(VLOOKUP(DZ123,'Footnotes list'!$D$9:$E$58,2,FALSE)=0,\"\",VLOOKUP(DZ123,'Footnotes list'!$D$9:$E$58,2,FALSE) ) )","v":""},null,null,null,null,{"$f":"IF(TRIM(EE123)=\"\", \"\", IF(VLOOKUP(EE123,'Footnotes list'!$D$9:$E$58,2,FALSE)=0,\"\",VLOOKUP(EE123,'Footnotes list'!$D$9:$E$58,2,FALSE) ) )","v":""},null,null,null,null,{"$f":"IF(TRIM(EJ123)=\"\", \"\", IF(VLOOKUP(EJ123,'Footnotes list'!$D$9:$E$58,2,FALSE)=0,\"\",VLOOKUP(EJ123,'Footnotes list'!$D$9:$E$58,2,FALSE) ) )","v":""},null,null,null,null,{"$f":"IF(TRIM(EO123)=\"\", \"\", IF(VLOOKUP(EO123,'Footnotes list'!$D$9:$E$58,2,FALSE)=0,\"\",VLOOKUP(EO123,'Footnotes list'!$D$9:$E$58,2,FALSE) ) )","v":""},null,null,null,null,{"$f":"IF(TRIM(ET123)=\"\", \"\", IF(VLOOKUP(ET123,'Footnotes list'!$D$9:$E$58,2,FALSE)=0,\"\",VLOOKUP(ET123,'Footnotes list'!$D$9:$E$58,2,FALSE) ) )","v":""},null,null,null,null,{"$f":"IF(TRIM(EY123)=\"\", \"\", IF(VLOOKUP(EY123,'Footnotes list'!$D$9:$E$58,2,FALSE)=0,\"\",VLOOKUP(EY123,'Footnotes list'!$D$9:$E$58,2,FALSE) ) )","v":""}]
[null,null,"C31-C33","MKT","market activities, including:",null,null,null,null,null,{"$f":"IF(TRIM(J124)=\"\", \"\", IF(VLOOKUP(J124,'Footnotes list'!$D$9:$E$58,2,FALSE)=0,\"\",VLOOKUP(J124,'Footnotes list'!$D$9:$E$58,2,FALSE) ) )","v":""},null,null,null,null,{"$f":"IF(TRIM(O124)=\"\", \"\", IF(VLOOKUP(O124,'Footnotes list'!$D$9:$E$58,2,FALSE)=0,\"\",VLOOKUP(O124,'Footnotes list'!$D$9:$E$58,2,FALSE) ) )","v":""},null,null,null,null,{"$f":"IF(TRIM(T124)=\"\", \"\", IF(VLOOKUP(T124,'Footnotes list'!$D$9:$E$58,2,FALSE)=0,\"\",VLOOKUP(T124,'Footnotes list'!$D$9:$E$58,2,FALSE) ) )","v":""},null,null,null,null,{"$f":"IF(TRIM(Y124)=\"\", \"\", IF(VLOOKUP(Y124,'Footnotes list'!$D$9:$E$58,2,FALSE)=0,\"\",VLOOKUP(Y124,'Footnotes list'!$D$9:$E$58,2,FALSE) ) )","v":""},null,null,null,null,{"$f":"IF(TRIM(AD124)=\"\", \"\", IF(VLOOKUP(AD124,'Footnotes list'!$D$9:$E$58,2,FALSE)=0,\"\",VLOOKUP(AD124,'Footnotes list'!$D$9:$E$58,2,FALSE) ) )","v":""},null,null,null,null,{"$f":"IF(TRIM(AI124)=\"\", \"\", IF(VLOOKUP(AI124,'Footnotes list'!$D$9:$E$58,2,FALSE)=0,\"\",VLOOKUP(AI124,'Footnotes list'!$D$9:$E$58,2,FALSE) ) )","v":""},null,null,null,null,{"$f":"IF(TRIM(AN124)=\"\", \"\", IF(VLOOKUP(AN124,'Footnotes list'!$D$9:$E$58,2,FALSE)=0,\"\",VLOOKUP(AN124,'Footnotes list'!$D$9:$E$58,2,FALSE) ) )","v":""},null,null,null,null,{"$f":"IF(TRIM(AS124)=\"\", \"\", IF(VLOOKUP(AS124,'Footnotes list'!$D$9:$E$58,2,FALSE)=0,\"\",VLOOKUP(AS124,'Footnotes list'!$D$9:$E$58,2,FALSE) ) )","v":""},null,null,null,null,{"$f":"IF(TRIM(AX124)=\"\", \"\", IF(VLOOKUP(AX124,'Footnotes list'!$D$9:$E$58,2,FALSE)=0,\"\",VLOOKUP(AX124,'Footnotes list'!$D$9:$E$58,2,FALSE) ) )","v":""},null,null,null,null,{"$f":"IF(TRIM(BC124)=\"\", \"\", IF(VLOOKUP(BC124,'Footnotes list'!$D$9:$E$58,2,FALSE)=0,\"\",VLOOKUP(BC124,'Footnotes list'!$D$9:$E$58,2,FALSE) ) )","v":""},null,null,null,null,{"$f":"IF(TRIM(BH124)=\"\", \"\", IF(VLOOKUP(BH124,'Footnotes list'!$D$9:$E$58,2,FALSE)=0,\"\",VLOOKUP(BH124,'Footnotes list'!$D$9:$E$58,2,FALSE) ) )","v":""},null,null,null,null,{"$f":"IF(TRIM(BM124)=\"\", \"\", IF(VLOOKUP(BM124,'Footnotes list'!$D$9:$E$58,2,FALSE)=0,\"\",VLOOKUP(BM124,'Footnotes list'!$D$9:$E$58,2,FALSE) ) )","v":""},null,null,null,null,{"$f":"IF(TRIM(BR124)=\"\", \"\", IF(VLOOKUP(BR124,'Footnotes list'!$D$9:$E$58,2,FALSE)=0,\"\",VLOOKUP(BR124,'Footnotes list'!$D$9:$E$58,2,FALSE) ) )","v":""},null,null,null,null,{"$f":"IF(TRIM(BW124)=\"\", \"\", IF(VLOOKUP(BW124,'Footnotes list'!$D$9:$E$58,2,FALSE)=0,\"\",VLOOKUP(BW124,'Footnotes list'!$D$9:$E$58,2,FALSE) ) )","v":""},null,null,null,null,{"$f":"IF(TRIM(CB124)=\"\", \"\", IF(VLOOKUP(CB124,'Footnotes list'!$D$9:$E$58,2,FALSE)=0,\"\",VLOOKUP(CB124,'Footnotes list'!$D$9:$E$58,2,FALSE) ) )","v":""},null,null,null,null,{"$f":"IF(TRIM(CG124)=\"\", \"\", IF(VLOOKUP(CG124,'Footnotes list'!$D$9:$E$58,2,FALSE)=0,\"\",VLOOKUP(CG124,'Footnotes list'!$D$9:$E$58,2,FALSE) ) )","v":""},null,null,null,null,{"$f":"IF(TRIM(CL124)=\"\", \"\", IF(VLOOKUP(CL124,'Footnotes list'!$D$9:$E$58,2,FALSE)=0,\"\",VLOOKUP(CL124,'Footnotes list'!$D$9:$E$58,2,FALSE) ) )","v":""},null,null,null,null,{"$f":"IF(TRIM(CQ124)=\"\", \"\", IF(VLOOKUP(CQ124,'Footnotes list'!$D$9:$E$58,2,FALSE)=0,\"\",VLOOKUP(CQ124,'Footnotes list'!$D$9:$E$58,2,FALSE) ) )","v":""},null,null,null,null,{"$f":"IF(TRIM(CV124)=\"\", \"\", IF(VLOOKUP(CV124,'Footnotes list'!$D$9:$E$58,2,FALSE)=0,\"\",VLOOKUP(CV124,'Footnotes list'!$D$9:$E$58,2,FALSE) ) )","v":""},null,null,null,null,{"$f":"IF(TRIM(DA124)=\"\", \"\", IF(VLOOKUP(DA124,'Footnotes list'!$D$9:$E$58,2,FALSE)=0,\"\",VLOOKUP(DA124,'Footnotes list'!$D$9:$E$58,2,FALSE) ) )","v":""},null,null,null,null,{"$f":"IF(TRIM(DF124)=\"\", \"\", IF(VLOOKUP(DF124,'Footnotes list'!$D$9:$E$58,2,FALSE)=0,\"\",VLOOKUP(DF124,'Footnotes list'!$D$9:$E$58,2,FALSE) ) )","v":""},null,null,null,null,{"$f":"IF(TRIM(DK124)=\"\", \"\", IF(VLOOKUP(DK124,'Footnotes list'!$D$9:$E$58,2,FALSE)=0,\"\",VLOOKUP(DK124,'Footnotes list'!$D$9:$E$58,2,FALSE) ) )","v":""},null,null,null,null,{"$f":"IF(TRIM(DP124)=\"\", \"\", IF(VLOOKUP(DP124,'Footnotes list'!$D$9:$E$58,2,FALSE)=0,\"\",VLOOKUP(DP124,'Footnotes list'!$D$9:$E$58,2,FALSE) ) )","v":""},null,null,null,null,{"$f":"IF(TRIM(DU124)=\"\", \"\", IF(VLOOKUP(DU124,'Footnotes list'!$D$9:$E$58,2,FALSE)=0,\"\",VLOOKUP(DU124,'Footnotes list'!$D$9:$E$58,2,FALSE) ) )","v":""},null,null,null,null,{"$f":"IF(TRIM(DZ124)=\"\", \"\", IF(VLOOKUP(DZ124,'Footnotes list'!$D$9:$E$58,2,FALSE)=0,\"\",VLOOKUP(DZ124,'Footnotes list'!$D$9:$E$58,2,FALSE) ) )","v":""},null,null,null,null,{"$f":"IF(TRIM(EE124)=\"\", \"\", IF(VLOOKUP(EE124,'Footnotes list'!$D$9:$E$58,2,FALSE)=0,\"\",VLOOKUP(EE124,'Footnotes list'!$D$9:$E$58,2,FALSE) ) )","v":""},null,null,null,null,{"$f":"IF(TRIM(EJ124)=\"\", \"\", IF(VLOOKUP(EJ124,'Footnotes list'!$D$9:$E$58,2,FALSE)=0,\"\",VLOOKUP(EJ124,'Footnotes list'!$D$9:$E$58,2,FALSE) ) )","v":""},null,null,null,null,{"$f":"IF(TRIM(EO124)=\"\", \"\", IF(VLOOKUP(EO124,'Footnotes list'!$D$9:$E$58,2,FALSE)=0,\"\",VLOOKUP(EO124,'Footnotes list'!$D$9:$E$58,2,FALSE) ) )","v":""},null,null,null,null,{"$f":"IF(TRIM(ET124)=\"\", \"\", IF(VLOOKUP(ET124,'Footnotes list'!$D$9:$E$58,2,FALSE)=0,\"\",VLOOKUP(ET124,'Footnotes list'!$D$9:$E$58,2,FALSE) ) )","v":""},null,null,null,null,{"$f":"IF(TRIM(EY124)=\"\", \"\", IF(VLOOKUP(EY124,'Footnotes list'!$D$9:$E$58,2,FALSE)=0,\"\",VLOOKUP(EY124,'Footnotes list'!$D$9:$E$58,2,FALSE) ) )","v":""}]
[null,null,"C31-C33","ES_CS","environmental specific services",null,null,null,null,null,{"$f":"IF(TRIM(J125)=\"\", \"\", IF(VLOOKUP(J125,'Footnotes list'!$D$9:$E$58,2,FALSE)=0,\"\",VLOOKUP(J125,'Footnotes list'!$D$9:$E$58,2,FALSE) ) )","v":""},null,null,null,null,{"$f":"IF(TRIM(O125)=\"\", \"\", IF(VLOOKUP(O125,'Footnotes list'!$D$9:$E$58,2,FALSE)=0,\"\",VLOOKUP(O125,'Footnotes list'!$D$9:$E$58,2,FALSE) ) )","v":""},null,null,null,null,{"$f":"IF(TRIM(T125)=\"\", \"\", IF(VLOOKUP(T125,'Footnotes list'!$D$9:$E$58,2,FALSE)=0,\"\",VLOOKUP(T125,'Footnotes list'!$D$9:$E$58,2,FALSE) ) )","v":""},null,null,null,null,{"$f":"IF(TRIM(Y125)=\"\", \"\", IF(VLOOKUP(Y125,'Footnotes list'!$D$9:$E$58,2,FALSE)=0,\"\",VLOOKUP(Y125,'Footnotes list'!$D$9:$E$58,2,FALSE) ) )","v":""},null,null,null,null,{"$f":"IF(TRIM(AD125)=\"\", \"\", IF(VLOOKUP(AD125,'Footnotes list'!$D$9:$E$58,2,FALSE)=0,\"\",VLOOKUP(AD125,'Footnotes list'!$D$9:$E$58,2,FALSE) ) )","v":""},null,null,null,null,{"$f":"IF(TRIM(AI125)=\"\", \"\", IF(VLOOKUP(AI125,'Footnotes list'!$D$9:$E$58,2,FALSE)=0,\"\",VLOOKUP(AI125,'Footnotes list'!$D$9:$E$58,2,FALSE) ) )","v":""},null,null,null,null,{"$f":"IF(TRIM(AN125)=\"\", \"\", IF(VLOOKUP(AN125,'Footnotes list'!$D$9:$E$58,2,FALSE)=0,\"\",VLOOKUP(AN125,'Footnotes list'!$D$9:$E$58,2,FALSE) ) )","v":""},null,null,null,null,{"$f":"IF(TRIM(AS125)=\"\", \"\", IF(VLOOKUP(AS125,'Footnotes list'!$D$9:$E$58,2,FALSE)=0,\"\",VLOOKUP(AS125,'Footnotes list'!$D$9:$E$58,2,FALSE) ) )","v":""},null,null,null,null,{"$f":"IF(TRIM(AX125)=\"\", \"\", IF(VLOOKUP(AX125,'Footnotes list'!$D$9:$E$58,2,FALSE)=0,\"\",VLOOKUP(AX125,'Footnotes list'!$D$9:$E$58,2,FALSE) ) )","v":""},null,null,null,null,{"$f":"IF(TRIM(BC125)=\"\", \"\", IF(VLOOKUP(BC125,'Footnotes list'!$D$9:$E$58,2,FALSE)=0,\"\",VLOOKUP(BC125,'Footnotes list'!$D$9:$E$58,2,FALSE) ) )","v":""},null,null,null,null,{"$f":"IF(TRIM(BH125)=\"\", \"\", IF(VLOOKUP(BH125,'Footnotes list'!$D$9:$E$58,2,FALSE)=0,\"\",VLOOKUP(BH125,'Footnotes list'!$D$9:$E$58,2,FALSE) ) )","v":""},null,null,null,null,{"$f":"IF(TRIM(BM125)=\"\", \"\", IF(VLOOKUP(BM125,'Footnotes list'!$D$9:$E$58,2,FALSE)=0,\"\",VLOOKUP(BM125,'Footnotes list'!$D$9:$E$58,2,FALSE) ) )","v":""},null,null,null,null,{"$f":"IF(TRIM(BR125)=\"\", \"\", IF(VLOOKUP(BR125,'Footnotes list'!$D$9:$E$58,2,FALSE)=0,\"\",VLOOKUP(BR125,'Footnotes list'!$D$9:$E$58,2,FALSE) ) )","v":""},null,null,null,null,{"$f":"IF(TRIM(BW125)=\"\", \"\", IF(VLOOKUP(BW125,'Footnotes list'!$D$9:$E$58,2,FALSE)=0,\"\",VLOOKUP(BW125,'Footnotes list'!$D$9:$E$58,2,FALSE) ) )","v":""},null,null,null,null,{"$f":"IF(TRIM(CB125)=\"\", \"\", IF(VLOOKUP(CB125,'Footnotes list'!$D$9:$E$58,2,FALSE)=0,\"\",VLOOKUP(CB125,'Footnotes list'!$D$9:$E$58,2,FALSE) ) )","v":""},null,null,null,null,{"$f":"IF(TRIM(CG125)=\"\", \"\", IF(VLOOKUP(CG125,'Footnotes list'!$D$9:$E$58,2,FALSE)=0,\"\",VLOOKUP(CG125,'Footnotes list'!$D$9:$E$58,2,FALSE) ) )","v":""},null,null,null,null,{"$f":"IF(TRIM(CL125)=\"\", \"\", IF(VLOOKUP(CL125,'Footnotes list'!$D$9:$E$58,2,FALSE)=0,\"\",VLOOKUP(CL125,'Footnotes list'!$D$9:$E$58,2,FALSE) ) )","v":""},null,null,null,null,{"$f":"IF(TRIM(CQ125)=\"\", \"\", IF(VLOOKUP(CQ125,'Footnotes list'!$D$9:$E$58,2,FALSE)=0,\"\",VLOOKUP(CQ125,'Footnotes list'!$D$9:$E$58,2,FALSE) ) )","v":""},null,null,null,null,{"$f":"IF(TRIM(CV125)=\"\", \"\", IF(VLOOKUP(CV125,'Footnotes list'!$D$9:$E$58,2,FALSE)=0,\"\",VLOOKUP(CV125,'Footnotes list'!$D$9:$E$58,2,FALSE) ) )","v":""},null,null,null,null,{"$f":"IF(TRIM(DA125)=\"\", \"\", IF(VLOOKUP(DA125,'Footnotes list'!$D$9:$E$58,2,FALSE)=0,\"\",VLOOKUP(DA125,'Footnotes list'!$D$9:$E$58,2,FALSE) ) )","v":""},null,null,null,null,{"$f":"IF(TRIM(DF125)=\"\", \"\", IF(VLOOKUP(DF125,'Footnotes list'!$D$9:$E$58,2,FALSE)=0,\"\",VLOOKUP(DF125,'Footnotes list'!$D$9:$E$58,2,FALSE) ) )","v":""},null,null,null,null,{"$f":"IF(TRIM(DK125)=\"\", \"\", IF(VLOOKUP(DK125,'Footnotes list'!$D$9:$E$58,2,FALSE)=0,\"\",VLOOKUP(DK125,'Footnotes list'!$D$9:$E$58,2,FALSE) ) )","v":""},null,null,null,null,{"$f":"IF(TRIM(DP125)=\"\", \"\", IF(VLOOKUP(DP125,'Footnotes list'!$D$9:$E$58,2,FALSE)=0,\"\",VLOOKUP(DP125,'Footnotes list'!$D$9:$E$58,2,FALSE) ) )","v":""},null,null,null,null,{"$f":"IF(TRIM(DU125)=\"\", \"\", IF(VLOOKUP(DU125,'Footnotes list'!$D$9:$E$58,2,FALSE)=0,\"\",VLOOKUP(DU125,'Footnotes list'!$D$9:$E$58,2,FALSE) ) )","v":""},null,null,null,null,{"$f":"IF(TRIM(DZ125)=\"\", \"\", IF(VLOOKUP(DZ125,'Footnotes list'!$D$9:$E$58,2,FALSE)=0,\"\",VLOOKUP(DZ125,'Footnotes list'!$D$9:$E$58,2,FALSE) ) )","v":""},null,null,null,null,{"$f":"IF(TRIM(EE125)=\"\", \"\", IF(VLOOKUP(EE125,'Footnotes list'!$D$9:$E$58,2,FALSE)=0,\"\",VLOOKUP(EE125,'Footnotes list'!$D$9:$E$58,2,FALSE) ) )","v":""},null,null,null,null,{"$f":"IF(TRIM(EJ125)=\"\", \"\", IF(VLOOKUP(EJ125,'Footnotes list'!$D$9:$E$58,2,FALSE)=0,\"\",VLOOKUP(EJ125,'Footnotes list'!$D$9:$E$58,2,FALSE) ) )","v":""},null,null,null,null,{"$f":"IF(TRIM(EO125)=\"\", \"\", IF(VLOOKUP(EO125,'Footnotes list'!$D$9:$E$58,2,FALSE)=0,\"\",VLOOKUP(EO125,'Footnotes list'!$D$9:$E$58,2,FALSE) ) )","v":""},null,null,null,null,{"$f":"IF(TRIM(ET125)=\"\", \"\", IF(VLOOKUP(ET125,'Footnotes list'!$D$9:$E$58,2,FALSE)=0,\"\",VLOOKUP(ET125,'Footnotes list'!$D$9:$E$58,2,FALSE) ) )","v":""},null,null,null,null,{"$f":"IF(TRIM(EY125)=\"\", \"\", IF(VLOOKUP(EY125,'Footnotes list'!$D$9:$E$58,2,FALSE)=0,\"\",VLOOKUP(EY125,'Footnotes list'!$D$9:$E$58,2,FALSE) ) )","v":""}]
[null,null,"C31-C33","C_REP","cleaner and resource efficient products",null,null,null,null,null,{"$f":"IF(TRIM(J126)=\"\", \"\", IF(VLOOKUP(J126,'Footnotes list'!$D$9:$E$58,2,FALSE)=0,\"\",VLOOKUP(J126,'Footnotes list'!$D$9:$E$58,2,FALSE) ) )","v":""},null,null,null,null,{"$f":"IF(TRIM(O126)=\"\", \"\", IF(VLOOKUP(O126,'Footnotes list'!$D$9:$E$58,2,FALSE)=0,\"\",VLOOKUP(O126,'Footnotes list'!$D$9:$E$58,2,FALSE) ) )","v":""},null,null,null,null,{"$f":"IF(TRIM(T126)=\"\", \"\", IF(VLOOKUP(T126,'Footnotes list'!$D$9:$E$58,2,FALSE)=0,\"\",VLOOKUP(T126,'Footnotes list'!$D$9:$E$58,2,FALSE) ) )","v":""},null,null,null,null,{"$f":"IF(TRIM(Y126)=\"\", \"\", IF(VLOOKUP(Y126,'Footnotes list'!$D$9:$E$58,2,FALSE)=0,\"\",VLOOKUP(Y126,'Footnotes list'!$D$9:$E$58,2,FALSE) ) )","v":""},null,null,null,null,{"$f":"IF(TRIM(AD126)=\"\", \"\", IF(VLOOKUP(AD126,'Footnotes list'!$D$9:$E$58,2,FALSE)=0,\"\",VLOOKUP(AD126,'Footnotes list'!$D$9:$E$58,2,FALSE) ) )","v":""},null,null,null,null,{"$f":"IF(TRIM(AI126)=\"\", \"\", IF(VLOOKUP(AI126,'Footnotes list'!$D$9:$E$58,2,FALSE)=0,\"\",VLOOKUP(AI126,'Footnotes list'!$D$9:$E$58,2,FALSE) ) )","v":""},null,null,null,null,{"$f":"IF(TRIM(AN126)=\"\", \"\", IF(VLOOKUP(AN126,'Footnotes list'!$D$9:$E$58,2,FALSE)=0,\"\",VLOOKUP(AN126,'Footnotes list'!$D$9:$E$58,2,FALSE) ) )","v":""},null,null,null,null,{"$f":"IF(TRIM(AS126)=\"\", \"\", IF(VLOOKUP(AS126,'Footnotes list'!$D$9:$E$58,2,FALSE)=0,\"\",VLOOKUP(AS126,'Footnotes list'!$D$9:$E$58,2,FALSE) ) )","v":""},null,null,null,null,{"$f":"IF(TRIM(AX126)=\"\", \"\", IF(VLOOKUP(AX126,'Footnotes list'!$D$9:$E$58,2,FALSE)=0,\"\",VLOOKUP(AX126,'Footnotes list'!$D$9:$E$58,2,FALSE) ) )","v":""},null,null,null,null,{"$f":"IF(TRIM(BC126)=\"\", \"\", IF(VLOOKUP(BC126,'Footnotes list'!$D$9:$E$58,2,FALSE)=0,\"\",VLOOKUP(BC126,'Footnotes list'!$D$9:$E$58,2,FALSE) ) )","v":""},null,null,null,null,{"$f":"IF(TRIM(BH126)=\"\", \"\", IF(VLOOKUP(BH126,'Footnotes list'!$D$9:$E$58,2,FALSE)=0,\"\",VLOOKUP(BH126,'Footnotes list'!$D$9:$E$58,2,FALSE) ) )","v":""},null,null,null,null,{"$f":"IF(TRIM(BM126)=\"\", \"\", IF(VLOOKUP(BM126,'Footnotes list'!$D$9:$E$58,2,FALSE)=0,\"\",VLOOKUP(BM126,'Footnotes list'!$D$9:$E$58,2,FALSE) ) )","v":""},null,null,null,null,{"$f":"IF(TRIM(BR126)=\"\", \"\", IF(VLOOKUP(BR126,'Footnotes list'!$D$9:$E$58,2,FALSE)=0,\"\",VLOOKUP(BR126,'Footnotes list'!$D$9:$E$58,2,FALSE) ) )","v":""},null,null,null,null,{"$f":"IF(TRIM(BW126)=\"\", \"\", IF(VLOOKUP(BW126,'Footnotes list'!$D$9:$E$58,2,FALSE)=0,\"\",VLOOKUP(BW126,'Footnotes list'!$D$9:$E$58,2,FALSE) ) )","v":""},null,null,null,null,{"$f":"IF(TRIM(CB126)=\"\", \"\", IF(VLOOKUP(CB126,'Footnotes list'!$D$9:$E$58,2,FALSE)=0,\"\",VLOOKUP(CB126,'Footnotes list'!$D$9:$E$58,2,FALSE) ) )","v":""},null,null,null,null,{"$f":"IF(TRIM(CG126)=\"\", \"\", IF(VLOOKUP(CG126,'Footnotes list'!$D$9:$E$58,2,FALSE)=0,\"\",VLOOKUP(CG126,'Footnotes list'!$D$9:$E$58,2,FALSE) ) )","v":""},null,null,null,null,{"$f":"IF(TRIM(CL126)=\"\", \"\", IF(VLOOKUP(CL126,'Footnotes list'!$D$9:$E$58,2,FALSE)=0,\"\",VLOOKUP(CL126,'Footnotes list'!$D$9:$E$58,2,FALSE) ) )","v":""},null,null,null,null,{"$f":"IF(TRIM(CQ126)=\"\", \"\", IF(VLOOKUP(CQ126,'Footnotes list'!$D$9:$E$58,2,FALSE)=0,\"\",VLOOKUP(CQ126,'Footnotes list'!$D$9:$E$58,2,FALSE) ) )","v":""},null,null,null,null,{"$f":"IF(TRIM(CV126)=\"\", \"\", IF(VLOOKUP(CV126,'Footnotes list'!$D$9:$E$58,2,FALSE)=0,\"\",VLOOKUP(CV126,'Footnotes list'!$D$9:$E$58,2,FALSE) ) )","v":""},null,null,null,null,{"$f":"IF(TRIM(DA126)=\"\", \"\", IF(VLOOKUP(DA126,'Footnotes list'!$D$9:$E$58,2,FALSE)=0,\"\",VLOOKUP(DA126,'Footnotes list'!$D$9:$E$58,2,FALSE) ) )","v":""},null,null,null,null,{"$f":"IF(TRIM(DF126)=\"\", \"\", IF(VLOOKUP(DF126,'Footnotes list'!$D$9:$E$58,2,FALSE)=0,\"\",VLOOKUP(DF126,'Footnotes list'!$D$9:$E$58,2,FALSE) ) )","v":""},null,null,null,null,{"$f":"IF(TRIM(DK126)=\"\", \"\", IF(VLOOKUP(DK126,'Footnotes list'!$D$9:$E$58,2,FALSE)=0,\"\",VLOOKUP(DK126,'Footnotes list'!$D$9:$E$58,2,FALSE) ) )","v":""},null,null,null,null,{"$f":"IF(TRIM(DP126)=\"\", \"\", IF(VLOOKUP(DP126,'Footnotes list'!$D$9:$E$58,2,FALSE)=0,\"\",VLOOKUP(DP126,'Footnotes list'!$D$9:$E$58,2,FALSE) ) )","v":""},null,null,null,null,{"$f":"IF(TRIM(DU126)=\"\", \"\", IF(VLOOKUP(DU126,'Footnotes list'!$D$9:$E$58,2,FALSE)=0,\"\",VLOOKUP(DU126,'Footnotes list'!$D$9:$E$58,2,FALSE) ) )","v":""},null,null,null,null,{"$f":"IF(TRIM(DZ126)=\"\", \"\", IF(VLOOKUP(DZ126,'Footnotes list'!$D$9:$E$58,2,FALSE)=0,\"\",VLOOKUP(DZ126,'Footnotes list'!$D$9:$E$58,2,FALSE) ) )","v":""},null,null,null,null,{"$f":"IF(TRIM(EE126)=\"\", \"\", IF(VLOOKUP(EE126,'Footnotes list'!$D$9:$E$58,2,FALSE)=0,\"\",VLOOKUP(EE126,'Footnotes list'!$D$9:$E$58,2,FALSE) ) )","v":""},null,null,null,null,{"$f":"IF(TRIM(EJ126)=\"\", \"\", IF(VLOOKUP(EJ126,'Footnotes list'!$D$9:$E$58,2,FALSE)=0,\"\",VLOOKUP(EJ126,'Footnotes list'!$D$9:$E$58,2,FALSE) ) )","v":""},null,null,null,null,{"$f":"IF(TRIM(EO126)=\"\", \"\", IF(VLOOKUP(EO126,'Footnotes list'!$D$9:$E$58,2,FALSE)=0,\"\",VLOOKUP(EO126,'Footnotes list'!$D$9:$E$58,2,FALSE) ) )","v":""},null,null,null,null,{"$f":"IF(TRIM(ET126)=\"\", \"\", IF(VLOOKUP(ET126,'Footnotes list'!$D$9:$E$58,2,FALSE)=0,\"\",VLOOKUP(ET126,'Footnotes list'!$D$9:$E$58,2,FALSE) ) )","v":""},null,null,null,null,{"$f":"IF(TRIM(EY126)=\"\", \"\", IF(VLOOKUP(EY126,'Footnotes list'!$D$9:$E$58,2,FALSE)=0,\"\",VLOOKUP(EY126,'Footnotes list'!$D$9:$E$58,2,FALSE) ) )","v":""}]
[null,null,"D","TOT_EGSS","Total D - Electricity, gas, steam and air conditioning supply, of which:",null,null,null,null,null,{"$f":"IF(TRIM(J127)=\"\", \"\", IF(VLOOKUP(J127,'Footnotes list'!$D$9:$E$58,2,FALSE)=0,\"\",VLOOKUP(J127,'Footnotes list'!$D$9:$E$58,2,FALSE) ) )","v":""},null,null,null,null,{"$f":"IF(TRIM(O127)=\"\", \"\", IF(VLOOKUP(O127,'Footnotes list'!$D$9:$E$58,2,FALSE)=0,\"\",VLOOKUP(O127,'Footnotes list'!$D$9:$E$58,2,FALSE) ) )","v":""},null,null,null,null,{"$f":"IF(TRIM(T127)=\"\", \"\", IF(VLOOKUP(T127,'Footnotes list'!$D$9:$E$58,2,FALSE)=0,\"\",VLOOKUP(T127,'Footnotes list'!$D$9:$E$58,2,FALSE) ) )","v":""},null,null,null,null,{"$f":"IF(TRIM(Y127)=\"\", \"\", IF(VLOOKUP(Y127,'Footnotes list'!$D$9:$E$58,2,FALSE)=0,\"\",VLOOKUP(Y127,'Footnotes list'!$D$9:$E$58,2,FALSE) ) )","v":""},null,null,null,null,{"$f":"IF(TRIM(AD127)=\"\", \"\", IF(VLOOKUP(AD127,'Footnotes list'!$D$9:$E$58,2,FALSE)=0,\"\",VLOOKUP(AD127,'Footnotes list'!$D$9:$E$58,2,FALSE) ) )","v":""},null,null,null,null,{"$f":"IF(TRIM(AI127)=\"\", \"\", IF(VLOOKUP(AI127,'Footnotes list'!$D$9:$E$58,2,FALSE)=0,\"\",VLOOKUP(AI127,'Footnotes list'!$D$9:$E$58,2,FALSE) ) )","v":""},null,null,null,null,{"$f":"IF(TRIM(AN127)=\"\", \"\", IF(VLOOKUP(AN127,'Footnotes list'!$D$9:$E$58,2,FALSE)=0,\"\",VLOOKUP(AN127,'Footnotes list'!$D$9:$E$58,2,FALSE) ) )","v":""},null,null,null,null,{"$f":"IF(TRIM(AS127)=\"\", \"\", IF(VLOOKUP(AS127,'Footnotes list'!$D$9:$E$58,2,FALSE)=0,\"\",VLOOKUP(AS127,'Footnotes list'!$D$9:$E$58,2,FALSE) ) )","v":""},null,null,null,null,{"$f":"IF(TRIM(AX127)=\"\", \"\", IF(VLOOKUP(AX127,'Footnotes list'!$D$9:$E$58,2,FALSE)=0,\"\",VLOOKUP(AX127,'Footnotes list'!$D$9:$E$58,2,FALSE) ) )","v":""},null,null,null,null,{"$f":"IF(TRIM(BC127)=\"\", \"\", IF(VLOOKUP(BC127,'Footnotes list'!$D$9:$E$58,2,FALSE)=0,\"\",VLOOKUP(BC127,'Footnotes list'!$D$9:$E$58,2,FALSE) ) )","v":""},null,null,null,null,{"$f":"IF(TRIM(BH127)=\"\", \"\", IF(VLOOKUP(BH127,'Footnotes list'!$D$9:$E$58,2,FALSE)=0,\"\",VLOOKUP(BH127,'Footnotes list'!$D$9:$E$58,2,FALSE) ) )","v":""},null,null,null,null,{"$f":"IF(TRIM(BM127)=\"\", \"\", IF(VLOOKUP(BM127,'Footnotes list'!$D$9:$E$58,2,FALSE)=0,\"\",VLOOKUP(BM127,'Footnotes list'!$D$9:$E$58,2,FALSE) ) )","v":""},null,null,null,null,{"$f":"IF(TRIM(BR127)=\"\", \"\", IF(VLOOKUP(BR127,'Footnotes list'!$D$9:$E$58,2,FALSE)=0,\"\",VLOOKUP(BR127,'Footnotes list'!$D$9:$E$58,2,FALSE) ) )","v":""},null,null,null,null,{"$f":"IF(TRIM(BW127)=\"\", \"\", IF(VLOOKUP(BW127,'Footnotes list'!$D$9:$E$58,2,FALSE)=0,\"\",VLOOKUP(BW127,'Footnotes list'!$D$9:$E$58,2,FALSE) ) )","v":""},null,null,null,null,{"$f":"IF(TRIM(CB127)=\"\", \"\", IF(VLOOKUP(CB127,'Footnotes list'!$D$9:$E$58,2,FALSE)=0,\"\",VLOOKUP(CB127,'Footnotes list'!$D$9:$E$58,2,FALSE) ) )","v":""},null,null,null,null,{"$f":"IF(TRIM(CG127)=\"\", \"\", IF(VLOOKUP(CG127,'Footnotes list'!$D$9:$E$58,2,FALSE)=0,\"\",VLOOKUP(CG127,'Footnotes list'!$D$9:$E$58,2,FALSE) ) )","v":""},null,null,null,null,{"$f":"IF(TRIM(CL127)=\"\", \"\", IF(VLOOKUP(CL127,'Footnotes list'!$D$9:$E$58,2,FALSE)=0,\"\",VLOOKUP(CL127,'Footnotes list'!$D$9:$E$58,2,FALSE) ) )","v":""},null,null,null,null,{"$f":"IF(TRIM(CQ127)=\"\", \"\", IF(VLOOKUP(CQ127,'Footnotes list'!$D$9:$E$58,2,FALSE)=0,\"\",VLOOKUP(CQ127,'Footnotes list'!$D$9:$E$58,2,FALSE) ) )","v":""},null,null,null,null,{"$f":"IF(TRIM(CV127)=\"\", \"\", IF(VLOOKUP(CV127,'Footnotes list'!$D$9:$E$58,2,FALSE)=0,\"\",VLOOKUP(CV127,'Footnotes list'!$D$9:$E$58,2,FALSE) ) )","v":""},null,null,null,null,{"$f":"IF(TRIM(DA127)=\"\", \"\", IF(VLOOKUP(DA127,'Footnotes list'!$D$9:$E$58,2,FALSE)=0,\"\",VLOOKUP(DA127,'Footnotes list'!$D$9:$E$58,2,FALSE) ) )","v":""},null,null,null,null,{"$f":"IF(TRIM(DF127)=\"\", \"\", IF(VLOOKUP(DF127,'Footnotes list'!$D$9:$E$58,2,FALSE)=0,\"\",VLOOKUP(DF127,'Footnotes list'!$D$9:$E$58,2,FALSE) ) )","v":""},null,null,null,null,{"$f":"IF(TRIM(DK127)=\"\", \"\", IF(VLOOKUP(DK127,'Footnotes list'!$D$9:$E$58,2,FALSE)=0,\"\",VLOOKUP(DK127,'Footnotes list'!$D$9:$E$58,2,FALSE) ) )","v":""},null,null,null,null,{"$f":"IF(TRIM(DP127)=\"\", \"\", IF(VLOOKUP(DP127,'Footnotes list'!$D$9:$E$58,2,FALSE)=0,\"\",VLOOKUP(DP127,'Footnotes list'!$D$9:$E$58,2,FALSE) ) )","v":""},null,null,null,null,{"$f":"IF(TRIM(DU127)=\"\", \"\", IF(VLOOKUP(DU127,'Footnotes list'!$D$9:$E$58,2,FALSE)=0,\"\",VLOOKUP(DU127,'Footnotes list'!$D$9:$E$58,2,FALSE) ) )","v":""},null,null,null,null,{"$f":"IF(TRIM(DZ127)=\"\", \"\", IF(VLOOKUP(DZ127,'Footnotes list'!$D$9:$E$58,2,FALSE)=0,\"\",VLOOKUP(DZ127,'Footnotes list'!$D$9:$E$58,2,FALSE) ) )","v":""},null,null,null,null,{"$f":"IF(TRIM(EE127)=\"\", \"\", IF(VLOOKUP(EE127,'Footnotes list'!$D$9:$E$58,2,FALSE)=0,\"\",VLOOKUP(EE127,'Footnotes list'!$D$9:$E$58,2,FALSE) ) )","v":""},null,null,null,null,{"$f":"IF(TRIM(EJ127)=\"\", \"\", IF(VLOOKUP(EJ127,'Footnotes list'!$D$9:$E$58,2,FALSE)=0,\"\",VLOOKUP(EJ127,'Footnotes list'!$D$9:$E$58,2,FALSE) ) )","v":""},null,null,null,null,{"$f":"IF(TRIM(EO127)=\"\", \"\", IF(VLOOKUP(EO127,'Footnotes list'!$D$9:$E$58,2,FALSE)=0,\"\",VLOOKUP(EO127,'Footnotes list'!$D$9:$E$58,2,FALSE) ) )","v":""},null,null,null,null,{"$f":"IF(TRIM(ET127)=\"\", \"\", IF(VLOOKUP(ET127,'Footnotes list'!$D$9:$E$58,2,FALSE)=0,\"\",VLOOKUP(ET127,'Footnotes list'!$D$9:$E$58,2,FALSE) ) )","v":""},null,null,null,null,{"$f":"IF(TRIM(EY127)=\"\", \"\", IF(VLOOKUP(EY127,'Footnotes list'!$D$9:$E$58,2,FALSE)=0,\"\",VLOOKUP(EY127,'Footnotes list'!$D$9:$E$58,2,FALSE) ) )","v":""}]
[null,null,"D","ANC","ancillary activities",null,null,null,null,null,{"$f":"IF(TRIM(J128)=\"\", \"\", IF(VLOOKUP(J128,'Footnotes list'!$D$9:$E$58,2,FALSE)=0,\"\",VLOOKUP(J128,'Footnotes list'!$D$9:$E$58,2,FALSE) ) )","v":""},null,null,null,null,{"$f":"IF(TRIM(O128)=\"\", \"\", IF(VLOOKUP(O128,'Footnotes list'!$D$9:$E$58,2,FALSE)=0,\"\",VLOOKUP(O128,'Footnotes list'!$D$9:$E$58,2,FALSE) ) )","v":""},null,null,null,null,{"$f":"IF(TRIM(T128)=\"\", \"\", IF(VLOOKUP(T128,'Footnotes list'!$D$9:$E$58,2,FALSE)=0,\"\",VLOOKUP(T128,'Footnotes list'!$D$9:$E$58,2,FALSE) ) )","v":""},null,null,null,null,{"$f":"IF(TRIM(Y128)=\"\", \"\", IF(VLOOKUP(Y128,'Footnotes list'!$D$9:$E$58,2,FALSE)=0,\"\",VLOOKUP(Y128,'Footnotes list'!$D$9:$E$58,2,FALSE) ) )","v":""},null,null,null,null,{"$f":"IF(TRIM(AD128)=\"\", \"\", IF(VLOOKUP(AD128,'Footnotes list'!$D$9:$E$58,2,FALSE)=0,\"\",VLOOKUP(AD128,'Footnotes list'!$D$9:$E$58,2,FALSE) ) )","v":""},null,null,null,null,{"$f":"IF(TRIM(AI128)=\"\", \"\", IF(VLOOKUP(AI128,'Footnotes list'!$D$9:$E$58,2,FALSE)=0,\"\",VLOOKUP(AI128,'Footnotes list'!$D$9:$E$58,2,FALSE) ) )","v":""},null,null,null,null,{"$f":"IF(TRIM(AN128)=\"\", \"\", IF(VLOOKUP(AN128,'Footnotes list'!$D$9:$E$58,2,FALSE)=0,\"\",VLOOKUP(AN128,'Footnotes list'!$D$9:$E$58,2,FALSE) ) )","v":""},null,null,null,null,{"$f":"IF(TRIM(AS128)=\"\", \"\", IF(VLOOKUP(AS128,'Footnotes list'!$D$9:$E$58,2,FALSE)=0,\"\",VLOOKUP(AS128,'Footnotes list'!$D$9:$E$58,2,FALSE) ) )","v":""},null,null,null,null,{"$f":"IF(TRIM(AX128)=\"\", \"\", IF(VLOOKUP(AX128,'Footnotes list'!$D$9:$E$58,2,FALSE)=0,\"\",VLOOKUP(AX128,'Footnotes list'!$D$9:$E$58,2,FALSE) ) )","v":""},null,null,null,null,{"$f":"IF(TRIM(BC128)=\"\", \"\", IF(VLOOKUP(BC128,'Footnotes list'!$D$9:$E$58,2,FALSE)=0,\"\",VLOOKUP(BC128,'Footnotes list'!$D$9:$E$58,2,FALSE) ) )","v":""},null,null,null,null,{"$f":"IF(TRIM(BH128)=\"\", \"\", IF(VLOOKUP(BH128,'Footnotes list'!$D$9:$E$58,2,FALSE)=0,\"\",VLOOKUP(BH128,'Footnotes list'!$D$9:$E$58,2,FALSE) ) )","v":""},null,null,null,null,{"$f":"IF(TRIM(BM128)=\"\", \"\", IF(VLOOKUP(BM128,'Footnotes list'!$D$9:$E$58,2,FALSE)=0,\"\",VLOOKUP(BM128,'Footnotes list'!$D$9:$E$58,2,FALSE) ) )","v":""},null,null,null,null,{"$f":"IF(TRIM(BR128)=\"\", \"\", IF(VLOOKUP(BR128,'Footnotes list'!$D$9:$E$58,2,FALSE)=0,\"\",VLOOKUP(BR128,'Footnotes list'!$D$9:$E$58,2,FALSE) ) )","v":""},null,null,null,null,{"$f":"IF(TRIM(BW128)=\"\", \"\", IF(VLOOKUP(BW128,'Footnotes list'!$D$9:$E$58,2,FALSE)=0,\"\",VLOOKUP(BW128,'Footnotes list'!$D$9:$E$58,2,FALSE) ) )","v":""},null,null,null,null,{"$f":"IF(TRIM(CB128)=\"\", \"\", IF(VLOOKUP(CB128,'Footnotes list'!$D$9:$E$58,2,FALSE)=0,\"\",VLOOKUP(CB128,'Footnotes list'!$D$9:$E$58,2,FALSE) ) )","v":""},null,null,null,null,{"$f":"IF(TRIM(CG128)=\"\", \"\", IF(VLOOKUP(CG128,'Footnotes list'!$D$9:$E$58,2,FALSE)=0,\"\",VLOOKUP(CG128,'Footnotes list'!$D$9:$E$58,2,FALSE) ) )","v":""},null,null,null,null,{"$f":"IF(TRIM(CL128)=\"\", \"\", IF(VLOOKUP(CL128,'Footnotes list'!$D$9:$E$58,2,FALSE)=0,\"\",VLOOKUP(CL128,'Footnotes list'!$D$9:$E$58,2,FALSE) ) )","v":""},null,null,null,null,{"$f":"IF(TRIM(CQ128)=\"\", \"\", IF(VLOOKUP(CQ128,'Footnotes list'!$D$9:$E$58,2,FALSE)=0,\"\",VLOOKUP(CQ128,'Footnotes list'!$D$9:$E$58,2,FALSE) ) )","v":""},null,null,null,null,{"$f":"IF(TRIM(CV128)=\"\", \"\", IF(VLOOKUP(CV128,'Footnotes list'!$D$9:$E$58,2,FALSE)=0,\"\",VLOOKUP(CV128,'Footnotes list'!$D$9:$E$58,2,FALSE) ) )","v":""},null,null,null,null,{"$f":"IF(TRIM(DA128)=\"\", \"\", IF(VLOOKUP(DA128,'Footnotes list'!$D$9:$E$58,2,FALSE)=0,\"\",VLOOKUP(DA128,'Footnotes list'!$D$9:$E$58,2,FALSE) ) )","v":""},null,null,null,null,{"$f":"IF(TRIM(DF128)=\"\", \"\", IF(VLOOKUP(DF128,'Footnotes list'!$D$9:$E$58,2,FALSE)=0,\"\",VLOOKUP(DF128,'Footnotes list'!$D$9:$E$58,2,FALSE) ) )","v":""},null,null,null,null,{"$f":"IF(TRIM(DK128)=\"\", \"\", IF(VLOOKUP(DK128,'Footnotes list'!$D$9:$E$58,2,FALSE)=0,\"\",VLOOKUP(DK128,'Footnotes list'!$D$9:$E$58,2,FALSE) ) )","v":""},null,null,null,null,{"$f":"IF(TRIM(DP128)=\"\", \"\", IF(VLOOKUP(DP128,'Footnotes list'!$D$9:$E$58,2,FALSE)=0,\"\",VLOOKUP(DP128,'Footnotes list'!$D$9:$E$58,2,FALSE) ) )","v":""},null,null,null,null,{"$f":"IF(TRIM(DU128)=\"\", \"\", IF(VLOOKUP(DU128,'Footnotes list'!$D$9:$E$58,2,FALSE)=0,\"\",VLOOKUP(DU128,'Footnotes list'!$D$9:$E$58,2,FALSE) ) )","v":""},null,null,null,null,{"$f":"IF(TRIM(DZ128)=\"\", \"\", IF(VLOOKUP(DZ128,'Footnotes list'!$D$9:$E$58,2,FALSE)=0,\"\",VLOOKUP(DZ128,'Footnotes list'!$D$9:$E$58,2,FALSE) ) )","v":""},null,null,null,null,{"$f":"IF(TRIM(EE128)=\"\", \"\", IF(VLOOKUP(EE128,'Footnotes list'!$D$9:$E$58,2,FALSE)=0,\"\",VLOOKUP(EE128,'Footnotes list'!$D$9:$E$58,2,FALSE) ) )","v":""},null,null,null,null,{"$f":"IF(TRIM(EJ128)=\"\", \"\", IF(VLOOKUP(EJ128,'Footnotes list'!$D$9:$E$58,2,FALSE)=0,\"\",VLOOKUP(EJ128,'Footnotes list'!$D$9:$E$58,2,FALSE) ) )","v":""},null,null,null,null,{"$f":"IF(TRIM(EO128)=\"\", \"\", IF(VLOOKUP(EO128,'Footnotes list'!$D$9:$E$58,2,FALSE)=0,\"\",VLOOKUP(EO128,'Footnotes list'!$D$9:$E$58,2,FALSE) ) )","v":""},null,null,null,null,{"$f":"IF(TRIM(ET128)=\"\", \"\", IF(VLOOKUP(ET128,'Footnotes list'!$D$9:$E$58,2,FALSE)=0,\"\",VLOOKUP(ET128,'Footnotes list'!$D$9:$E$58,2,FALSE) ) )","v":""},null,null,null,null,{"$f":"IF(TRIM(EY128)=\"\", \"\", IF(VLOOKUP(EY128,'Footnotes list'!$D$9:$E$58,2,FALSE)=0,\"\",VLOOKUP(EY128,'Footnotes list'!$D$9:$E$58,2,FALSE) ) )","v":""}]
[null,null,"D","NMKT","non-market activities",null,null,null,null,null,{"$f":"IF(TRIM(J129)=\"\", \"\", IF(VLOOKUP(J129,'Footnotes list'!$D$9:$E$58,2,FALSE)=0,\"\",VLOOKUP(J129,'Footnotes list'!$D$9:$E$58,2,FALSE) ) )","v":""},null,null,null,null,{"$f":"IF(TRIM(O129)=\"\", \"\", IF(VLOOKUP(O129,'Footnotes list'!$D$9:$E$58,2,FALSE)=0,\"\",VLOOKUP(O129,'Footnotes list'!$D$9:$E$58,2,FALSE) ) )","v":""},null,null,null,null,{"$f":"IF(TRIM(T129)=\"\", \"\", IF(VLOOKUP(T129,'Footnotes list'!$D$9:$E$58,2,FALSE)=0,\"\",VLOOKUP(T129,'Footnotes list'!$D$9:$E$58,2,FALSE) ) )","v":""},null,null,null,null,{"$f":"IF(TRIM(Y129)=\"\", \"\", IF(VLOOKUP(Y129,'Footnotes list'!$D$9:$E$58,2,FALSE)=0,\"\",VLOOKUP(Y129,'Footnotes list'!$D$9:$E$58,2,FALSE) ) )","v":""},null,null,null,null,{"$f":"IF(TRIM(AD129)=\"\", \"\", IF(VLOOKUP(AD129,'Footnotes list'!$D$9:$E$58,2,FALSE)=0,\"\",VLOOKUP(AD129,'Footnotes list'!$D$9:$E$58,2,FALSE) ) )","v":""},null,null,null,null,{"$f":"IF(TRIM(AI129)=\"\", \"\", IF(VLOOKUP(AI129,'Footnotes list'!$D$9:$E$58,2,FALSE)=0,\"\",VLOOKUP(AI129,'Footnotes list'!$D$9:$E$58,2,FALSE) ) )","v":""},null,null,null,null,{"$f":"IF(TRIM(AN129)=\"\", \"\", IF(VLOOKUP(AN129,'Footnotes list'!$D$9:$E$58,2,FALSE)=0,\"\",VLOOKUP(AN129,'Footnotes list'!$D$9:$E$58,2,FALSE) ) )","v":""},null,null,null,null,{"$f":"IF(TRIM(AS129)=\"\", \"\", IF(VLOOKUP(AS129,'Footnotes list'!$D$9:$E$58,2,FALSE)=0,\"\",VLOOKUP(AS129,'Footnotes list'!$D$9:$E$58,2,FALSE) ) )","v":""},null,null,null,null,{"$f":"IF(TRIM(AX129)=\"\", \"\", IF(VLOOKUP(AX129,'Footnotes list'!$D$9:$E$58,2,FALSE)=0,\"\",VLOOKUP(AX129,'Footnotes list'!$D$9:$E$58,2,FALSE) ) )","v":""},null,null,null,null,{"$f":"IF(TRIM(BC129)=\"\", \"\", IF(VLOOKUP(BC129,'Footnotes list'!$D$9:$E$58,2,FALSE)=0,\"\",VLOOKUP(BC129,'Footnotes list'!$D$9:$E$58,2,FALSE) ) )","v":""},null,null,null,null,{"$f":"IF(TRIM(BH129)=\"\", \"\", IF(VLOOKUP(BH129,'Footnotes list'!$D$9:$E$58,2,FALSE)=0,\"\",VLOOKUP(BH129,'Footnotes list'!$D$9:$E$58,2,FALSE) ) )","v":""},null,null,null,null,{"$f":"IF(TRIM(BM129)=\"\", \"\", IF(VLOOKUP(BM129,'Footnotes list'!$D$9:$E$58,2,FALSE)=0,\"\",VLOOKUP(BM129,'Footnotes list'!$D$9:$E$58,2,FALSE) ) )","v":""},null,null,null,null,{"$f":"IF(TRIM(BR129)=\"\", \"\", IF(VLOOKUP(BR129,'Footnotes list'!$D$9:$E$58,2,FALSE)=0,\"\",VLOOKUP(BR129,'Footnotes list'!$D$9:$E$58,2,FALSE) ) )","v":""},null,null,null,null,{"$f":"IF(TRIM(BW129)=\"\", \"\", IF(VLOOKUP(BW129,'Footnotes list'!$D$9:$E$58,2,FALSE)=0,\"\",VLOOKUP(BW129,'Footnotes list'!$D$9:$E$58,2,FALSE) ) )","v":""},null,null,null,null,{"$f":"IF(TRIM(CB129)=\"\", \"\", IF(VLOOKUP(CB129,'Footnotes list'!$D$9:$E$58,2,FALSE)=0,\"\",VLOOKUP(CB129,'Footnotes list'!$D$9:$E$58,2,FALSE) ) )","v":""},null,null,null,null,{"$f":"IF(TRIM(CG129)=\"\", \"\", IF(VLOOKUP(CG129,'Footnotes list'!$D$9:$E$58,2,FALSE)=0,\"\",VLOOKUP(CG129,'Footnotes list'!$D$9:$E$58,2,FALSE) ) )","v":""},null,null,null,null,{"$f":"IF(TRIM(CL129)=\"\", \"\", IF(VLOOKUP(CL129,'Footnotes list'!$D$9:$E$58,2,FALSE)=0,\"\",VLOOKUP(CL129,'Footnotes list'!$D$9:$E$58,2,FALSE) ) )","v":""},null,null,null,null,{"$f":"IF(TRIM(CQ129)=\"\", \"\", IF(VLOOKUP(CQ129,'Footnotes list'!$D$9:$E$58,2,FALSE)=0,\"\",VLOOKUP(CQ129,'Footnotes list'!$D$9:$E$58,2,FALSE) ) )","v":""},null,null,null,null,{"$f":"IF(TRIM(CV129)=\"\", \"\", IF(VLOOKUP(CV129,'Footnotes list'!$D$9:$E$58,2,FALSE)=0,\"\",VLOOKUP(CV129,'Footnotes list'!$D$9:$E$58,2,FALSE) ) )","v":""},null,null,null,null,{"$f":"IF(TRIM(DA129)=\"\", \"\", IF(VLOOKUP(DA129,'Footnotes list'!$D$9:$E$58,2,FALSE)=0,\"\",VLOOKUP(DA129,'Footnotes list'!$D$9:$E$58,2,FALSE) ) )","v":""},null,null,null,null,{"$f":"IF(TRIM(DF129)=\"\", \"\", IF(VLOOKUP(DF129,'Footnotes list'!$D$9:$E$58,2,FALSE)=0,\"\",VLOOKUP(DF129,'Footnotes list'!$D$9:$E$58,2,FALSE) ) )","v":""},null,null,null,null,{"$f":"IF(TRIM(DK129)=\"\", \"\", IF(VLOOKUP(DK129,'Footnotes list'!$D$9:$E$58,2,FALSE)=0,\"\",VLOOKUP(DK129,'Footnotes list'!$D$9:$E$58,2,FALSE) ) )","v":""},null,null,null,null,{"$f":"IF(TRIM(DP129)=\"\", \"\", IF(VLOOKUP(DP129,'Footnotes list'!$D$9:$E$58,2,FALSE)=0,\"\",VLOOKUP(DP129,'Footnotes list'!$D$9:$E$58,2,FALSE) ) )","v":""},null,null,null,null,{"$f":"IF(TRIM(DU129)=\"\", \"\", IF(VLOOKUP(DU129,'Footnotes list'!$D$9:$E$58,2,FALSE)=0,\"\",VLOOKUP(DU129,'Footnotes list'!$D$9:$E$58,2,FALSE) ) )","v":""},null,null,null,null,{"$f":"IF(TRIM(DZ129)=\"\", \"\", IF(VLOOKUP(DZ129,'Footnotes list'!$D$9:$E$58,2,FALSE)=0,\"\",VLOOKUP(DZ129,'Footnotes list'!$D$9:$E$58,2,FALSE) ) )","v":""},null,null,null,null,{"$f":"IF(TRIM(EE129)=\"\", \"\", IF(VLOOKUP(EE129,'Footnotes list'!$D$9:$E$58,2,FALSE)=0,\"\",VLOOKUP(EE129,'Footnotes list'!$D$9:$E$58,2,FALSE) ) )","v":""},null,null,null,null,{"$f":"IF(TRIM(EJ129)=\"\", \"\", IF(VLOOKUP(EJ129,'Footnotes list'!$D$9:$E$58,2,FALSE)=0,\"\",VLOOKUP(EJ129,'Footnotes list'!$D$9:$E$58,2,FALSE) ) )","v":""},null,null,null,null,{"$f":"IF(TRIM(EO129)=\"\", \"\", IF(VLOOKUP(EO129,'Footnotes list'!$D$9:$E$58,2,FALSE)=0,\"\",VLOOKUP(EO129,'Footnotes list'!$D$9:$E$58,2,FALSE) ) )","v":""},null,null,null,null,{"$f":"IF(TRIM(ET129)=\"\", \"\", IF(VLOOKUP(ET129,'Footnotes list'!$D$9:$E$58,2,FALSE)=0,\"\",VLOOKUP(ET129,'Footnotes list'!$D$9:$E$58,2,FALSE) ) )","v":""},null,null,null,null,{"$f":"IF(TRIM(EY129)=\"\", \"\", IF(VLOOKUP(EY129,'Footnotes list'!$D$9:$E$58,2,FALSE)=0,\"\",VLOOKUP(EY129,'Footnotes list'!$D$9:$E$58,2,FALSE) ) )","v":""}]
[null,null,"D","OWN_USE","activities for own final use",null,null,null,null,null,{"$f":"IF(TRIM(J130)=\"\", \"\", IF(VLOOKUP(J130,'Footnotes list'!$D$9:$E$58,2,FALSE)=0,\"\",VLOOKUP(J130,'Footnotes list'!$D$9:$E$58,2,FALSE) ) )","v":""},null,null,null,null,{"$f":"IF(TRIM(O130)=\"\", \"\", IF(VLOOKUP(O130,'Footnotes list'!$D$9:$E$58,2,FALSE)=0,\"\",VLOOKUP(O130,'Footnotes list'!$D$9:$E$58,2,FALSE) ) )","v":""},null,null,null,null,{"$f":"IF(TRIM(T130)=\"\", \"\", IF(VLOOKUP(T130,'Footnotes list'!$D$9:$E$58,2,FALSE)=0,\"\",VLOOKUP(T130,'Footnotes list'!$D$9:$E$58,2,FALSE) ) )","v":""},null,null,null,null,{"$f":"IF(TRIM(Y130)=\"\", \"\", IF(VLOOKUP(Y130,'Footnotes list'!$D$9:$E$58,2,FALSE)=0,\"\",VLOOKUP(Y130,'Footnotes list'!$D$9:$E$58,2,FALSE) ) )","v":""},null,null,null,null,{"$f":"IF(TRIM(AD130)=\"\", \"\", IF(VLOOKUP(AD130,'Footnotes list'!$D$9:$E$58,2,FALSE)=0,\"\",VLOOKUP(AD130,'Footnotes list'!$D$9:$E$58,2,FALSE) ) )","v":""},null,null,null,null,{"$f":"IF(TRIM(AI130)=\"\", \"\", IF(VLOOKUP(AI130,'Footnotes list'!$D$9:$E$58,2,FALSE)=0,\"\",VLOOKUP(AI130,'Footnotes list'!$D$9:$E$58,2,FALSE) ) )","v":""},null,null,null,null,{"$f":"IF(TRIM(AN130)=\"\", \"\", IF(VLOOKUP(AN130,'Footnotes list'!$D$9:$E$58,2,FALSE)=0,\"\",VLOOKUP(AN130,'Footnotes list'!$D$9:$E$58,2,FALSE) ) )","v":""},null,null,null,null,{"$f":"IF(TRIM(AS130)=\"\", \"\", IF(VLOOKUP(AS130,'Footnotes list'!$D$9:$E$58,2,FALSE)=0,\"\",VLOOKUP(AS130,'Footnotes list'!$D$9:$E$58,2,FALSE) ) )","v":""},null,null,null,null,{"$f":"IF(TRIM(AX130)=\"\", \"\", IF(VLOOKUP(AX130,'Footnotes list'!$D$9:$E$58,2,FALSE)=0,\"\",VLOOKUP(AX130,'Footnotes list'!$D$9:$E$58,2,FALSE) ) )","v":""},null,null,null,null,{"$f":"IF(TRIM(BC130)=\"\", \"\", IF(VLOOKUP(BC130,'Footnotes list'!$D$9:$E$58,2,FALSE)=0,\"\",VLOOKUP(BC130,'Footnotes list'!$D$9:$E$58,2,FALSE) ) )","v":""},null,null,null,null,{"$f":"IF(TRIM(BH130)=\"\", \"\", IF(VLOOKUP(BH130,'Footnotes list'!$D$9:$E$58,2,FALSE)=0,\"\",VLOOKUP(BH130,'Footnotes list'!$D$9:$E$58,2,FALSE) ) )","v":""},null,null,null,null,{"$f":"IF(TRIM(BM130)=\"\", \"\", IF(VLOOKUP(BM130,'Footnotes list'!$D$9:$E$58,2,FALSE)=0,\"\",VLOOKUP(BM130,'Footnotes list'!$D$9:$E$58,2,FALSE) ) )","v":""},null,null,null,null,{"$f":"IF(TRIM(BR130)=\"\", \"\", IF(VLOOKUP(BR130,'Footnotes list'!$D$9:$E$58,2,FALSE)=0,\"\",VLOOKUP(BR130,'Footnotes list'!$D$9:$E$58,2,FALSE) ) )","v":""},null,null,null,null,{"$f":"IF(TRIM(BW130)=\"\", \"\", IF(VLOOKUP(BW130,'Footnotes list'!$D$9:$E$58,2,FALSE)=0,\"\",VLOOKUP(BW130,'Footnotes list'!$D$9:$E$58,2,FALSE) ) )","v":""},null,null,null,null,{"$f":"IF(TRIM(CB130)=\"\", \"\", IF(VLOOKUP(CB130,'Footnotes list'!$D$9:$E$58,2,FALSE)=0,\"\",VLOOKUP(CB130,'Footnotes list'!$D$9:$E$58,2,FALSE) ) )","v":""},null,null,null,null,{"$f":"IF(TRIM(CG130)=\"\", \"\", IF(VLOOKUP(CG130,'Footnotes list'!$D$9:$E$58,2,FALSE)=0,\"\",VLOOKUP(CG130,'Footnotes list'!$D$9:$E$58,2,FALSE) ) )","v":""},null,null,null,null,{"$f":"IF(TRIM(CL130)=\"\", \"\", IF(VLOOKUP(CL130,'Footnotes list'!$D$9:$E$58,2,FALSE)=0,\"\",VLOOKUP(CL130,'Footnotes list'!$D$9:$E$58,2,FALSE) ) )","v":""},null,null,null,null,{"$f":"IF(TRIM(CQ130)=\"\", \"\", IF(VLOOKUP(CQ130,'Footnotes list'!$D$9:$E$58,2,FALSE)=0,\"\",VLOOKUP(CQ130,'Footnotes list'!$D$9:$E$58,2,FALSE) ) )","v":""},null,null,null,null,{"$f":"IF(TRIM(CV130)=\"\", \"\", IF(VLOOKUP(CV130,'Footnotes list'!$D$9:$E$58,2,FALSE)=0,\"\",VLOOKUP(CV130,'Footnotes list'!$D$9:$E$58,2,FALSE) ) )","v":""},null,null,null,null,{"$f":"IF(TRIM(DA130)=\"\", \"\", IF(VLOOKUP(DA130,'Footnotes list'!$D$9:$E$58,2,FALSE)=0,\"\",VLOOKUP(DA130,'Footnotes list'!$D$9:$E$58,2,FALSE) ) )","v":""},null,null,null,null,{"$f":"IF(TRIM(DF130)=\"\", \"\", IF(VLOOKUP(DF130,'Footnotes list'!$D$9:$E$58,2,FALSE)=0,\"\",VLOOKUP(DF130,'Footnotes list'!$D$9:$E$58,2,FALSE) ) )","v":""},null,null,null,null,{"$f":"IF(TRIM(DK130)=\"\", \"\", IF(VLOOKUP(DK130,'Footnotes list'!$D$9:$E$58,2,FALSE)=0,\"\",VLOOKUP(DK130,'Footnotes list'!$D$9:$E$58,2,FALSE) ) )","v":""},null,null,null,null,{"$f":"IF(TRIM(DP130)=\"\", \"\", IF(VLOOKUP(DP130,'Footnotes list'!$D$9:$E$58,2,FALSE)=0,\"\",VLOOKUP(DP130,'Footnotes list'!$D$9:$E$58,2,FALSE) ) )","v":""},null,null,null,null,{"$f":"IF(TRIM(DU130)=\"\", \"\", IF(VLOOKUP(DU130,'Footnotes list'!$D$9:$E$58,2,FALSE)=0,\"\",VLOOKUP(DU130,'Footnotes list'!$D$9:$E$58,2,FALSE) ) )","v":""},null,null,null,null,{"$f":"IF(TRIM(DZ130)=\"\", \"\", IF(VLOOKUP(DZ130,'Footnotes list'!$D$9:$E$58,2,FALSE)=0,\"\",VLOOKUP(DZ130,'Footnotes list'!$D$9:$E$58,2,FALSE) ) )","v":""},null,null,null,null,{"$f":"IF(TRIM(EE130)=\"\", \"\", IF(VLOOKUP(EE130,'Footnotes list'!$D$9:$E$58,2,FALSE)=0,\"\",VLOOKUP(EE130,'Footnotes list'!$D$9:$E$58,2,FALSE) ) )","v":""},null,null,null,null,{"$f":"IF(TRIM(EJ130)=\"\", \"\", IF(VLOOKUP(EJ130,'Footnotes list'!$D$9:$E$58,2,FALSE)=0,\"\",VLOOKUP(EJ130,'Footnotes list'!$D$9:$E$58,2,FALSE) ) )","v":""},null,null,null,null,{"$f":"IF(TRIM(EO130)=\"\", \"\", IF(VLOOKUP(EO130,'Footnotes list'!$D$9:$E$58,2,FALSE)=0,\"\",VLOOKUP(EO130,'Footnotes list'!$D$9:$E$58,2,FALSE) ) )","v":""},null,null,null,null,{"$f":"IF(TRIM(ET130)=\"\", \"\", IF(VLOOKUP(ET130,'Footnotes list'!$D$9:$E$58,2,FALSE)=0,\"\",VLOOKUP(ET130,'Footnotes list'!$D$9:$E$58,2,FALSE) ) )","v":""},null,null,null,null,{"$f":"IF(TRIM(EY130)=\"\", \"\", IF(VLOOKUP(EY130,'Footnotes list'!$D$9:$E$58,2,FALSE)=0,\"\",VLOOKUP(EY130,'Footnotes list'!$D$9:$E$58,2,FALSE) ) )","v":""}]
[null,null,"D","MKT","market activities, including:",null,null,null,null,null,{"$f":"IF(TRIM(J131)=\"\", \"\", IF(VLOOKUP(J131,'Footnotes list'!$D$9:$E$58,2,FALSE)=0,\"\",VLOOKUP(J131,'Footnotes list'!$D$9:$E$58,2,FALSE) ) )","v":""},null,null,null,null,{"$f":"IF(TRIM(O131)=\"\", \"\", IF(VLOOKUP(O131,'Footnotes list'!$D$9:$E$58,2,FALSE)=0,\"\",VLOOKUP(O131,'Footnotes list'!$D$9:$E$58,2,FALSE) ) )","v":""},null,null,null,null,{"$f":"IF(TRIM(T131)=\"\", \"\", IF(VLOOKUP(T131,'Footnotes list'!$D$9:$E$58,2,FALSE)=0,\"\",VLOOKUP(T131,'Footnotes list'!$D$9:$E$58,2,FALSE) ) )","v":""},null,null,null,null,{"$f":"IF(TRIM(Y131)=\"\", \"\", IF(VLOOKUP(Y131,'Footnotes list'!$D$9:$E$58,2,FALSE)=0,\"\",VLOOKUP(Y131,'Footnotes list'!$D$9:$E$58,2,FALSE) ) )","v":""},null,null,null,null,{"$f":"IF(TRIM(AD131)=\"\", \"\", IF(VLOOKUP(AD131,'Footnotes list'!$D$9:$E$58,2,FALSE)=0,\"\",VLOOKUP(AD131,'Footnotes list'!$D$9:$E$58,2,FALSE) ) )","v":""},null,null,null,null,{"$f":"IF(TRIM(AI131)=\"\", \"\", IF(VLOOKUP(AI131,'Footnotes list'!$D$9:$E$58,2,FALSE)=0,\"\",VLOOKUP(AI131,'Footnotes list'!$D$9:$E$58,2,FALSE) ) )","v":""},null,null,null,null,{"$f":"IF(TRIM(AN131)=\"\", \"\", IF(VLOOKUP(AN131,'Footnotes list'!$D$9:$E$58,2,FALSE)=0,\"\",VLOOKUP(AN131,'Footnotes list'!$D$9:$E$58,2,FALSE) ) )","v":""},null,null,null,null,{"$f":"IF(TRIM(AS131)=\"\", \"\", IF(VLOOKUP(AS131,'Footnotes list'!$D$9:$E$58,2,FALSE)=0,\"\",VLOOKUP(AS131,'Footnotes list'!$D$9:$E$58,2,FALSE) ) )","v":""},null,null,null,null,{"$f":"IF(TRIM(AX131)=\"\", \"\", IF(VLOOKUP(AX131,'Footnotes list'!$D$9:$E$58,2,FALSE)=0,\"\",VLOOKUP(AX131,'Footnotes list'!$D$9:$E$58,2,FALSE) ) )","v":""},null,null,null,null,{"$f":"IF(TRIM(BC131)=\"\", \"\", IF(VLOOKUP(BC131,'Footnotes list'!$D$9:$E$58,2,FALSE)=0,\"\",VLOOKUP(BC131,'Footnotes list'!$D$9:$E$58,2,FALSE) ) )","v":""},null,null,null,null,{"$f":"IF(TRIM(BH131)=\"\", \"\", IF(VLOOKUP(BH131,'Footnotes list'!$D$9:$E$58,2,FALSE)=0,\"\",VLOOKUP(BH131,'Footnotes list'!$D$9:$E$58,2,FALSE) ) )","v":""},null,null,null,null,{"$f":"IF(TRIM(BM131)=\"\", \"\", IF(VLOOKUP(BM131,'Footnotes list'!$D$9:$E$58,2,FALSE)=0,\"\",VLOOKUP(BM131,'Footnotes list'!$D$9:$E$58,2,FALSE) ) )","v":""},null,null,null,null,{"$f":"IF(TRIM(BR131)=\"\", \"\", IF(VLOOKUP(BR131,'Footnotes list'!$D$9:$E$58,2,FALSE)=0,\"\",VLOOKUP(BR131,'Footnotes list'!$D$9:$E$58,2,FALSE) ) )","v":""},null,null,null,null,{"$f":"IF(TRIM(BW131)=\"\", \"\", IF(VLOOKUP(BW131,'Footnotes list'!$D$9:$E$58,2,FALSE)=0,\"\",VLOOKUP(BW131,'Footnotes list'!$D$9:$E$58,2,FALSE) ) )","v":""},null,null,null,null,{"$f":"IF(TRIM(CB131)=\"\", \"\", IF(VLOOKUP(CB131,'Footnotes list'!$D$9:$E$58,2,FALSE)=0,\"\",VLOOKUP(CB131,'Footnotes list'!$D$9:$E$58,2,FALSE) ) )","v":""},null,null,null,null,{"$f":"IF(TRIM(CG131)=\"\", \"\", IF(VLOOKUP(CG131,'Footnotes list'!$D$9:$E$58,2,FALSE)=0,\"\",VLOOKUP(CG131,'Footnotes list'!$D$9:$E$58,2,FALSE) ) )","v":""},null,null,null,null,{"$f":"IF(TRIM(CL131)=\"\", \"\", IF(VLOOKUP(CL131,'Footnotes list'!$D$9:$E$58,2,FALSE)=0,\"\",VLOOKUP(CL131,'Footnotes list'!$D$9:$E$58,2,FALSE) ) )","v":""},null,null,null,null,{"$f":"IF(TRIM(CQ131)=\"\", \"\", IF(VLOOKUP(CQ131,'Footnotes list'!$D$9:$E$58,2,FALSE)=0,\"\",VLOOKUP(CQ131,'Footnotes list'!$D$9:$E$58,2,FALSE) ) )","v":""},null,null,null,null,{"$f":"IF(TRIM(CV131)=\"\", \"\", IF(VLOOKUP(CV131,'Footnotes list'!$D$9:$E$58,2,FALSE)=0,\"\",VLOOKUP(CV131,'Footnotes list'!$D$9:$E$58,2,FALSE) ) )","v":""},null,null,null,null,{"$f":"IF(TRIM(DA131)=\"\", \"\", IF(VLOOKUP(DA131,'Footnotes list'!$D$9:$E$58,2,FALSE)=0,\"\",VLOOKUP(DA131,'Footnotes list'!$D$9:$E$58,2,FALSE) ) )","v":""},null,null,null,null,{"$f":"IF(TRIM(DF131)=\"\", \"\", IF(VLOOKUP(DF131,'Footnotes list'!$D$9:$E$58,2,FALSE)=0,\"\",VLOOKUP(DF131,'Footnotes list'!$D$9:$E$58,2,FALSE) ) )","v":""},null,null,null,null,{"$f":"IF(TRIM(DK131)=\"\", \"\", IF(VLOOKUP(DK131,'Footnotes list'!$D$9:$E$58,2,FALSE)=0,\"\",VLOOKUP(DK131,'Footnotes list'!$D$9:$E$58,2,FALSE) ) )","v":""},null,null,null,null,{"$f":"IF(TRIM(DP131)=\"\", \"\", IF(VLOOKUP(DP131,'Footnotes list'!$D$9:$E$58,2,FALSE)=0,\"\",VLOOKUP(DP131,'Footnotes list'!$D$9:$E$58,2,FALSE) ) )","v":""},null,null,null,null,{"$f":"IF(TRIM(DU131)=\"\", \"\", IF(VLOOKUP(DU131,'Footnotes list'!$D$9:$E$58,2,FALSE)=0,\"\",VLOOKUP(DU131,'Footnotes list'!$D$9:$E$58,2,FALSE) ) )","v":""},null,null,null,null,{"$f":"IF(TRIM(DZ131)=\"\", \"\", IF(VLOOKUP(DZ131,'Footnotes list'!$D$9:$E$58,2,FALSE)=0,\"\",VLOOKUP(DZ131,'Footnotes list'!$D$9:$E$58,2,FALSE) ) )","v":""},null,null,null,null,{"$f":"IF(TRIM(EE131)=\"\", \"\", IF(VLOOKUP(EE131,'Footnotes list'!$D$9:$E$58,2,FALSE)=0,\"\",VLOOKUP(EE131,'Footnotes list'!$D$9:$E$58,2,FALSE) ) )","v":""},null,null,null,null,{"$f":"IF(TRIM(EJ131)=\"\", \"\", IF(VLOOKUP(EJ131,'Footnotes list'!$D$9:$E$58,2,FALSE)=0,\"\",VLOOKUP(EJ131,'Footnotes list'!$D$9:$E$58,2,FALSE) ) )","v":""},null,null,null,null,{"$f":"IF(TRIM(EO131)=\"\", \"\", IF(VLOOKUP(EO131,'Footnotes list'!$D$9:$E$58,2,FALSE)=0,\"\",VLOOKUP(EO131,'Footnotes list'!$D$9:$E$58,2,FALSE) ) )","v":""},null,null,null,null,{"$f":"IF(TRIM(ET131)=\"\", \"\", IF(VLOOKUP(ET131,'Footnotes list'!$D$9:$E$58,2,FALSE)=0,\"\",VLOOKUP(ET131,'Footnotes list'!$D$9:$E$58,2,FALSE) ) )","v":""},null,null,null,null,{"$f":"IF(TRIM(EY131)=\"\", \"\", IF(VLOOKUP(EY131,'Footnotes list'!$D$9:$E$58,2,FALSE)=0,\"\",VLOOKUP(EY131,'Footnotes list'!$D$9:$E$58,2,FALSE) ) )","v":""}]
[null,null,"D","ES_CS","environmental specific services",null,null,null,null,null,{"$f":"IF(TRIM(J132)=\"\", \"\", IF(VLOOKUP(J132,'Footnotes list'!$D$9:$E$58,2,FALSE)=0,\"\",VLOOKUP(J132,'Footnotes list'!$D$9:$E$58,2,FALSE) ) )","v":""},null,null,null,null,{"$f":"IF(TRIM(O132)=\"\", \"\", IF(VLOOKUP(O132,'Footnotes list'!$D$9:$E$58,2,FALSE)=0,\"\",VLOOKUP(O132,'Footnotes list'!$D$9:$E$58,2,FALSE) ) )","v":""},null,null,null,null,{"$f":"IF(TRIM(T132)=\"\", \"\", IF(VLOOKUP(T132,'Footnotes list'!$D$9:$E$58,2,FALSE)=0,\"\",VLOOKUP(T132,'Footnotes list'!$D$9:$E$58,2,FALSE) ) )","v":""},null,null,null,null,{"$f":"IF(TRIM(Y132)=\"\", \"\", IF(VLOOKUP(Y132,'Footnotes list'!$D$9:$E$58,2,FALSE)=0,\"\",VLOOKUP(Y132,'Footnotes list'!$D$9:$E$58,2,FALSE) ) )","v":""},null,null,null,null,{"$f":"IF(TRIM(AD132)=\"\", \"\", IF(VLOOKUP(AD132,'Footnotes list'!$D$9:$E$58,2,FALSE)=0,\"\",VLOOKUP(AD132,'Footnotes list'!$D$9:$E$58,2,FALSE) ) )","v":""},null,null,null,null,{"$f":"IF(TRIM(AI132)=\"\", \"\", IF(VLOOKUP(AI132,'Footnotes list'!$D$9:$E$58,2,FALSE)=0,\"\",VLOOKUP(AI132,'Footnotes list'!$D$9:$E$58,2,FALSE) ) )","v":""},null,null,null,null,{"$f":"IF(TRIM(AN132)=\"\", \"\", IF(VLOOKUP(AN132,'Footnotes list'!$D$9:$E$58,2,FALSE)=0,\"\",VLOOKUP(AN132,'Footnotes list'!$D$9:$E$58,2,FALSE) ) )","v":""},null,null,null,null,{"$f":"IF(TRIM(AS132)=\"\", \"\", IF(VLOOKUP(AS132,'Footnotes list'!$D$9:$E$58,2,FALSE)=0,\"\",VLOOKUP(AS132,'Footnotes list'!$D$9:$E$58,2,FALSE) ) )","v":""},null,null,null,null,{"$f":"IF(TRIM(AX132)=\"\", \"\", IF(VLOOKUP(AX132,'Footnotes list'!$D$9:$E$58,2,FALSE)=0,\"\",VLOOKUP(AX132,'Footnotes list'!$D$9:$E$58,2,FALSE) ) )","v":""},null,null,null,null,{"$f":"IF(TRIM(BC132)=\"\", \"\", IF(VLOOKUP(BC132,'Footnotes list'!$D$9:$E$58,2,FALSE)=0,\"\",VLOOKUP(BC132,'Footnotes list'!$D$9:$E$58,2,FALSE) ) )","v":""},null,null,null,null,{"$f":"IF(TRIM(BH132)=\"\", \"\", IF(VLOOKUP(BH132,'Footnotes list'!$D$9:$E$58,2,FALSE)=0,\"\",VLOOKUP(BH132,'Footnotes list'!$D$9:$E$58,2,FALSE) ) )","v":""},null,null,null,null,{"$f":"IF(TRIM(BM132)=\"\", \"\", IF(VLOOKUP(BM132,'Footnotes list'!$D$9:$E$58,2,FALSE)=0,\"\",VLOOKUP(BM132,'Footnotes list'!$D$9:$E$58,2,FALSE) ) )","v":""},null,null,null,null,{"$f":"IF(TRIM(BR132)=\"\", \"\", IF(VLOOKUP(BR132,'Footnotes list'!$D$9:$E$58,2,FALSE)=0,\"\",VLOOKUP(BR132,'Footnotes list'!$D$9:$E$58,2,FALSE) ) )","v":""},null,null,null,null,{"$f":"IF(TRIM(BW132)=\"\", \"\", IF(VLOOKUP(BW132,'Footnotes list'!$D$9:$E$58,2,FALSE)=0,\"\",VLOOKUP(BW132,'Footnotes list'!$D$9:$E$58,2,FALSE) ) )","v":""},null,null,null,null,{"$f":"IF(TRIM(CB132)=\"\", \"\", IF(VLOOKUP(CB132,'Footnotes list'!$D$9:$E$58,2,FALSE)=0,\"\",VLOOKUP(CB132,'Footnotes list'!$D$9:$E$58,2,FALSE) ) )","v":""},null,null,null,null,{"$f":"IF(TRIM(CG132)=\"\", \"\", IF(VLOOKUP(CG132,'Footnotes list'!$D$9:$E$58,2,FALSE)=0,\"\",VLOOKUP(CG132,'Footnotes list'!$D$9:$E$58,2,FALSE) ) )","v":""},null,null,null,null,{"$f":"IF(TRIM(CL132)=\"\", \"\", IF(VLOOKUP(CL132,'Footnotes list'!$D$9:$E$58,2,FALSE)=0,\"\",VLOOKUP(CL132,'Footnotes list'!$D$9:$E$58,2,FALSE) ) )","v":""},null,null,null,null,{"$f":"IF(TRIM(CQ132)=\"\", \"\", IF(VLOOKUP(CQ132,'Footnotes list'!$D$9:$E$58,2,FALSE)=0,\"\",VLOOKUP(CQ132,'Footnotes list'!$D$9:$E$58,2,FALSE) ) )","v":""},null,null,null,null,{"$f":"IF(TRIM(CV132)=\"\", \"\", IF(VLOOKUP(CV132,'Footnotes list'!$D$9:$E$58,2,FALSE)=0,\"\",VLOOKUP(CV132,'Footnotes list'!$D$9:$E$58,2,FALSE) ) )","v":""},null,null,null,null,{"$f":"IF(TRIM(DA132)=\"\", \"\", IF(VLOOKUP(DA132,'Footnotes list'!$D$9:$E$58,2,FALSE)=0,\"\",VLOOKUP(DA132,'Footnotes list'!$D$9:$E$58,2,FALSE) ) )","v":""},null,null,null,null,{"$f":"IF(TRIM(DF132)=\"\", \"\", IF(VLOOKUP(DF132,'Footnotes list'!$D$9:$E$58,2,FALSE)=0,\"\",VLOOKUP(DF132,'Footnotes list'!$D$9:$E$58,2,FALSE) ) )","v":""},null,null,null,null,{"$f":"IF(TRIM(DK132)=\"\", \"\", IF(VLOOKUP(DK132,'Footnotes list'!$D$9:$E$58,2,FALSE)=0,\"\",VLOOKUP(DK132,'Footnotes list'!$D$9:$E$58,2,FALSE) ) )","v":""},null,null,null,null,{"$f":"IF(TRIM(DP132)=\"\", \"\", IF(VLOOKUP(DP132,'Footnotes list'!$D$9:$E$58,2,FALSE)=0,\"\",VLOOKUP(DP132,'Footnotes list'!$D$9:$E$58,2,FALSE) ) )","v":""},null,null,null,null,{"$f":"IF(TRIM(DU132)=\"\", \"\", IF(VLOOKUP(DU132,'Footnotes list'!$D$9:$E$58,2,FALSE)=0,\"\",VLOOKUP(DU132,'Footnotes list'!$D$9:$E$58,2,FALSE) ) )","v":""},null,null,null,null,{"$f":"IF(TRIM(DZ132)=\"\", \"\", IF(VLOOKUP(DZ132,'Footnotes list'!$D$9:$E$58,2,FALSE)=0,\"\",VLOOKUP(DZ132,'Footnotes list'!$D$9:$E$58,2,FALSE) ) )","v":""},null,null,null,null,{"$f":"IF(TRIM(EE132)=\"\", \"\", IF(VLOOKUP(EE132,'Footnotes list'!$D$9:$E$58,2,FALSE)=0,\"\",VLOOKUP(EE132,'Footnotes list'!$D$9:$E$58,2,FALSE) ) )","v":""},null,null,null,null,{"$f":"IF(TRIM(EJ132)=\"\", \"\", IF(VLOOKUP(EJ132,'Footnotes list'!$D$9:$E$58,2,FALSE)=0,\"\",VLOOKUP(EJ132,'Footnotes list'!$D$9:$E$58,2,FALSE) ) )","v":""},null,null,null,null,{"$f":"IF(TRIM(EO132)=\"\", \"\", IF(VLOOKUP(EO132,'Footnotes list'!$D$9:$E$58,2,FALSE)=0,\"\",VLOOKUP(EO132,'Footnotes list'!$D$9:$E$58,2,FALSE) ) )","v":""},null,null,null,null,{"$f":"IF(TRIM(ET132)=\"\", \"\", IF(VLOOKUP(ET132,'Footnotes list'!$D$9:$E$58,2,FALSE)=0,\"\",VLOOKUP(ET132,'Footnotes list'!$D$9:$E$58,2,FALSE) ) )","v":""},null,null,null,null,{"$f":"IF(TRIM(EY132)=\"\", \"\", IF(VLOOKUP(EY132,'Footnotes list'!$D$9:$E$58,2,FALSE)=0,\"\",VLOOKUP(EY132,'Footnotes list'!$D$9:$E$58,2,FALSE) ) )","v":""}]
[null,null,"D","C_REP","cleaner and resource efficient products",null,null,null,null,null,{"$f":"IF(TRIM(J133)=\"\", \"\", IF(VLOOKUP(J133,'Footnotes list'!$D$9:$E$58,2,FALSE)=0,\"\",VLOOKUP(J133,'Footnotes list'!$D$9:$E$58,2,FALSE) ) )","v":""},null,null,null,null,{"$f":"IF(TRIM(O133)=\"\", \"\", IF(VLOOKUP(O133,'Footnotes list'!$D$9:$E$58,2,FALSE)=0,\"\",VLOOKUP(O133,'Footnotes list'!$D$9:$E$58,2,FALSE) ) )","v":""},null,null,null,null,{"$f":"IF(TRIM(T133)=\"\", \"\", IF(VLOOKUP(T133,'Footnotes list'!$D$9:$E$58,2,FALSE)=0,\"\",VLOOKUP(T133,'Footnotes list'!$D$9:$E$58,2,FALSE) ) )","v":""},null,null,null,null,{"$f":"IF(TRIM(Y133)=\"\", \"\", IF(VLOOKUP(Y133,'Footnotes list'!$D$9:$E$58,2,FALSE)=0,\"\",VLOOKUP(Y133,'Footnotes list'!$D$9:$E$58,2,FALSE) ) )","v":""},null,null,null,null,{"$f":"IF(TRIM(AD133)=\"\", \"\", IF(VLOOKUP(AD133,'Footnotes list'!$D$9:$E$58,2,FALSE)=0,\"\",VLOOKUP(AD133,'Footnotes list'!$D$9:$E$58,2,FALSE) ) )","v":""},null,null,null,null,{"$f":"IF(TRIM(AI133)=\"\", \"\", IF(VLOOKUP(AI133,'Footnotes list'!$D$9:$E$58,2,FALSE)=0,\"\",VLOOKUP(AI133,'Footnotes list'!$D$9:$E$58,2,FALSE) ) )","v":""},null,null,null,null,{"$f":"IF(TRIM(AN133)=\"\", \"\", IF(VLOOKUP(AN133,'Footnotes list'!$D$9:$E$58,2,FALSE)=0,\"\",VLOOKUP(AN133,'Footnotes list'!$D$9:$E$58,2,FALSE) ) )","v":""},null,null,null,null,{"$f":"IF(TRIM(AS133)=\"\", \"\", IF(VLOOKUP(AS133,'Footnotes list'!$D$9:$E$58,2,FALSE)=0,\"\",VLOOKUP(AS133,'Footnotes list'!$D$9:$E$58,2,FALSE) ) )","v":""},null,null,null,null,{"$f":"IF(TRIM(AX133)=\"\", \"\", IF(VLOOKUP(AX133,'Footnotes list'!$D$9:$E$58,2,FALSE)=0,\"\",VLOOKUP(AX133,'Footnotes list'!$D$9:$E$58,2,FALSE) ) )","v":""},null,null,null,null,{"$f":"IF(TRIM(BC133)=\"\", \"\", IF(VLOOKUP(BC133,'Footnotes list'!$D$9:$E$58,2,FALSE)=0,\"\",VLOOKUP(BC133,'Footnotes list'!$D$9:$E$58,2,FALSE) ) )","v":""},null,null,null,null,{"$f":"IF(TRIM(BH133)=\"\", \"\", IF(VLOOKUP(BH133,'Footnotes list'!$D$9:$E$58,2,FALSE)=0,\"\",VLOOKUP(BH133,'Footnotes list'!$D$9:$E$58,2,FALSE) ) )","v":""},null,null,null,null,{"$f":"IF(TRIM(BM133)=\"\", \"\", IF(VLOOKUP(BM133,'Footnotes list'!$D$9:$E$58,2,FALSE)=0,\"\",VLOOKUP(BM133,'Footnotes list'!$D$9:$E$58,2,FALSE) ) )","v":""},null,null,null,null,{"$f":"IF(TRIM(BR133)=\"\", \"\", IF(VLOOKUP(BR133,'Footnotes list'!$D$9:$E$58,2,FALSE)=0,\"\",VLOOKUP(BR133,'Footnotes list'!$D$9:$E$58,2,FALSE) ) )","v":""},null,null,null,null,{"$f":"IF(TRIM(BW133)=\"\", \"\", IF(VLOOKUP(BW133,'Footnotes list'!$D$9:$E$58,2,FALSE)=0,\"\",VLOOKUP(BW133,'Footnotes list'!$D$9:$E$58,2,FALSE) ) )","v":""},null,null,null,null,{"$f":"IF(TRIM(CB133)=\"\", \"\", IF(VLOOKUP(CB133,'Footnotes list'!$D$9:$E$58,2,FALSE)=0,\"\",VLOOKUP(CB133,'Footnotes list'!$D$9:$E$58,2,FALSE) ) )","v":""},null,null,null,null,{"$f":"IF(TRIM(CG133)=\"\", \"\", IF(VLOOKUP(CG133,'Footnotes list'!$D$9:$E$58,2,FALSE)=0,\"\",VLOOKUP(CG133,'Footnotes list'!$D$9:$E$58,2,FALSE) ) )","v":""},null,null,null,null,{"$f":"IF(TRIM(CL133)=\"\", \"\", IF(VLOOKUP(CL133,'Footnotes list'!$D$9:$E$58,2,FALSE)=0,\"\",VLOOKUP(CL133,'Footnotes list'!$D$9:$E$58,2,FALSE) ) )","v":""},null,null,null,null,{"$f":"IF(TRIM(CQ133)=\"\", \"\", IF(VLOOKUP(CQ133,'Footnotes list'!$D$9:$E$58,2,FALSE)=0,\"\",VLOOKUP(CQ133,'Footnotes list'!$D$9:$E$58,2,FALSE) ) )","v":""},null,null,null,null,{"$f":"IF(TRIM(CV133)=\"\", \"\", IF(VLOOKUP(CV133,'Footnotes list'!$D$9:$E$58,2,FALSE)=0,\"\",VLOOKUP(CV133,'Footnotes list'!$D$9:$E$58,2,FALSE) ) )","v":""},null,null,null,null,{"$f":"IF(TRIM(DA133)=\"\", \"\", IF(VLOOKUP(DA133,'Footnotes list'!$D$9:$E$58,2,FALSE)=0,\"\",VLOOKUP(DA133,'Footnotes list'!$D$9:$E$58,2,FALSE) ) )","v":""},null,null,null,null,{"$f":"IF(TRIM(DF133)=\"\", \"\", IF(VLOOKUP(DF133,'Footnotes list'!$D$9:$E$58,2,FALSE)=0,\"\",VLOOKUP(DF133,'Footnotes list'!$D$9:$E$58,2,FALSE) ) )","v":""},null,null,null,null,{"$f":"IF(TRIM(DK133)=\"\", \"\", IF(VLOOKUP(DK133,'Footnotes list'!$D$9:$E$58,2,FALSE)=0,\"\",VLOOKUP(DK133,'Footnotes list'!$D$9:$E$58,2,FALSE) ) )","v":""},null,null,null,null,{"$f":"IF(TRIM(DP133)=\"\", \"\", IF(VLOOKUP(DP133,'Footnotes list'!$D$9:$E$58,2,FALSE)=0,\"\",VLOOKUP(DP133,'Footnotes list'!$D$9:$E$58,2,FALSE) ) )","v":""},null,null,null,null,{"$f":"IF(TRIM(DU133)=\"\", \"\", IF(VLOOKUP(DU133,'Footnotes list'!$D$9:$E$58,2,FALSE)=0,\"\",VLOOKUP(DU133,'Footnotes list'!$D$9:$E$58,2,FALSE) ) )","v":""},null,null,null,null,{"$f":"IF(TRIM(DZ133)=\"\", \"\", IF(VLOOKUP(DZ133,'Footnotes list'!$D$9:$E$58,2,FALSE)=0,\"\",VLOOKUP(DZ133,'Footnotes list'!$D$9:$E$58,2,FALSE) ) )","v":""},null,null,null,null,{"$f":"IF(TRIM(EE133)=\"\", \"\", IF(VLOOKUP(EE133,'Footnotes list'!$D$9:$E$58,2,FALSE)=0,\"\",VLOOKUP(EE133,'Footnotes list'!$D$9:$E$58,2,FALSE) ) )","v":""},null,null,null,null,{"$f":"IF(TRIM(EJ133)=\"\", \"\", IF(VLOOKUP(EJ133,'Footnotes list'!$D$9:$E$58,2,FALSE)=0,\"\",VLOOKUP(EJ133,'Footnotes list'!$D$9:$E$58,2,FALSE) ) )","v":""},null,null,null,null,{"$f":"IF(TRIM(EO133)=\"\", \"\", IF(VLOOKUP(EO133,'Footnotes list'!$D$9:$E$58,2,FALSE)=0,\"\",VLOOKUP(EO133,'Footnotes list'!$D$9:$E$58,2,FALSE) ) )","v":""},null,null,null,null,{"$f":"IF(TRIM(ET133)=\"\", \"\", IF(VLOOKUP(ET133,'Footnotes list'!$D$9:$E$58,2,FALSE)=0,\"\",VLOOKUP(ET133,'Footnotes list'!$D$9:$E$58,2,FALSE) ) )","v":""},null,null,null,null,{"$f":"IF(TRIM(EY133)=\"\", \"\", IF(VLOOKUP(EY133,'Footnotes list'!$D$9:$E$58,2,FALSE)=0,\"\",VLOOKUP(EY133,'Footnotes list'!$D$9:$E$58,2,FALSE) ) )","v":""}]
[null,null,"E","TOT_EGSS","Total E - Water supply; sewerage, waste management and remediation activities, of which:",null,null,null,null,null,{"$f":"IF(TRIM(J134)=\"\", \"\", IF(VLOOKUP(J134,'Footnotes list'!$D$9:$E$58,2,FALSE)=0,\"\",VLOOKUP(J134,'Footnotes list'!$D$9:$E$58,2,FALSE) ) )","v":""},null,null,null,null,{"$f":"IF(TRIM(O134)=\"\", \"\", IF(VLOOKUP(O134,'Footnotes list'!$D$9:$E$58,2,FALSE)=0,\"\",VLOOKUP(O134,'Footnotes list'!$D$9:$E$58,2,FALSE) ) )","v":""},null,null,null,null,{"$f":"IF(TRIM(T134)=\"\", \"\", IF(VLOOKUP(T134,'Footnotes list'!$D$9:$E$58,2,FALSE)=0,\"\",VLOOKUP(T134,'Footnotes list'!$D$9:$E$58,2,FALSE) ) )","v":""},null,null,null,null,{"$f":"IF(TRIM(Y134)=\"\", \"\", IF(VLOOKUP(Y134,'Footnotes list'!$D$9:$E$58,2,FALSE)=0,\"\",VLOOKUP(Y134,'Footnotes list'!$D$9:$E$58,2,FALSE) ) )","v":""},null,null,null,null,{"$f":"IF(TRIM(AD134)=\"\", \"\", IF(VLOOKUP(AD134,'Footnotes list'!$D$9:$E$58,2,FALSE)=0,\"\",VLOOKUP(AD134,'Footnotes list'!$D$9:$E$58,2,FALSE) ) )","v":""},null,null,null,null,{"$f":"IF(TRIM(AI134)=\"\", \"\", IF(VLOOKUP(AI134,'Footnotes list'!$D$9:$E$58,2,FALSE)=0,\"\",VLOOKUP(AI134,'Footnotes list'!$D$9:$E$58,2,FALSE) ) )","v":""},null,null,null,null,{"$f":"IF(TRIM(AN134)=\"\", \"\", IF(VLOOKUP(AN134,'Footnotes list'!$D$9:$E$58,2,FALSE)=0,\"\",VLOOKUP(AN134,'Footnotes list'!$D$9:$E$58,2,FALSE) ) )","v":""},null,null,null,null,{"$f":"IF(TRIM(AS134)=\"\", \"\", IF(VLOOKUP(AS134,'Footnotes list'!$D$9:$E$58,2,FALSE)=0,\"\",VLOOKUP(AS134,'Footnotes list'!$D$9:$E$58,2,FALSE) ) )","v":""},null,null,null,null,{"$f":"IF(TRIM(AX134)=\"\", \"\", IF(VLOOKUP(AX134,'Footnotes list'!$D$9:$E$58,2,FALSE)=0,\"\",VLOOKUP(AX134,'Footnotes list'!$D$9:$E$58,2,FALSE) ) )","v":""},null,null,null,null,{"$f":"IF(TRIM(BC134)=\"\", \"\", IF(VLOOKUP(BC134,'Footnotes list'!$D$9:$E$58,2,FALSE)=0,\"\",VLOOKUP(BC134,'Footnotes list'!$D$9:$E$58,2,FALSE) ) )","v":""},null,null,null,null,{"$f":"IF(TRIM(BH134)=\"\", \"\", IF(VLOOKUP(BH134,'Footnotes list'!$D$9:$E$58,2,FALSE)=0,\"\",VLOOKUP(BH134,'Footnotes list'!$D$9:$E$58,2,FALSE) ) )","v":""},null,null,null,null,{"$f":"IF(TRIM(BM134)=\"\", \"\", IF(VLOOKUP(BM134,'Footnotes list'!$D$9:$E$58,2,FALSE)=0,\"\",VLOOKUP(BM134,'Footnotes list'!$D$9:$E$58,2,FALSE) ) )","v":""},null,null,null,null,{"$f":"IF(TRIM(BR134)=\"\", \"\", IF(VLOOKUP(BR134,'Footnotes list'!$D$9:$E$58,2,FALSE)=0,\"\",VLOOKUP(BR134,'Footnotes list'!$D$9:$E$58,2,FALSE) ) )","v":""},null,null,null,null,{"$f":"IF(TRIM(BW134)=\"\", \"\", IF(VLOOKUP(BW134,'Footnotes list'!$D$9:$E$58,2,FALSE)=0,\"\",VLOOKUP(BW134,'Footnotes list'!$D$9:$E$58,2,FALSE) ) )","v":""},null,null,null,null,{"$f":"IF(TRIM(CB134)=\"\", \"\", IF(VLOOKUP(CB134,'Footnotes list'!$D$9:$E$58,2,FALSE)=0,\"\",VLOOKUP(CB134,'Footnotes list'!$D$9:$E$58,2,FALSE) ) )","v":""},null,null,null,null,{"$f":"IF(TRIM(CG134)=\"\", \"\", IF(VLOOKUP(CG134,'Footnotes list'!$D$9:$E$58,2,FALSE)=0,\"\",VLOOKUP(CG134,'Footnotes list'!$D$9:$E$58,2,FALSE) ) )","v":""},null,null,null,null,{"$f":"IF(TRIM(CL134)=\"\", \"\", IF(VLOOKUP(CL134,'Footnotes list'!$D$9:$E$58,2,FALSE)=0,\"\",VLOOKUP(CL134,'Footnotes list'!$D$9:$E$58,2,FALSE) ) )","v":""},null,null,null,null,{"$f":"IF(TRIM(CQ134)=\"\", \"\", IF(VLOOKUP(CQ134,'Footnotes list'!$D$9:$E$58,2,FALSE)=0,\"\",VLOOKUP(CQ134,'Footnotes list'!$D$9:$E$58,2,FALSE) ) )","v":""},null,null,null,null,{"$f":"IF(TRIM(CV134)=\"\", \"\", IF(VLOOKUP(CV134,'Footnotes list'!$D$9:$E$58,2,FALSE)=0,\"\",VLOOKUP(CV134,'Footnotes list'!$D$9:$E$58,2,FALSE) ) )","v":""},null,null,null,null,{"$f":"IF(TRIM(DA134)=\"\", \"\", IF(VLOOKUP(DA134,'Footnotes list'!$D$9:$E$58,2,FALSE)=0,\"\",VLOOKUP(DA134,'Footnotes list'!$D$9:$E$58,2,FALSE) ) )","v":""},null,null,null,null,{"$f":"IF(TRIM(DF134)=\"\", \"\", IF(VLOOKUP(DF134,'Footnotes list'!$D$9:$E$58,2,FALSE)=0,\"\",VLOOKUP(DF134,'Footnotes list'!$D$9:$E$58,2,FALSE) ) )","v":""},null,null,null,null,{"$f":"IF(TRIM(DK134)=\"\", \"\", IF(VLOOKUP(DK134,'Footnotes list'!$D$9:$E$58,2,FALSE)=0,\"\",VLOOKUP(DK134,'Footnotes list'!$D$9:$E$58,2,FALSE) ) )","v":""},null,null,null,null,{"$f":"IF(TRIM(DP134)=\"\", \"\", IF(VLOOKUP(DP134,'Footnotes list'!$D$9:$E$58,2,FALSE)=0,\"\",VLOOKUP(DP134,'Footnotes list'!$D$9:$E$58,2,FALSE) ) )","v":""},null,null,null,null,{"$f":"IF(TRIM(DU134)=\"\", \"\", IF(VLOOKUP(DU134,'Footnotes list'!$D$9:$E$58,2,FALSE)=0,\"\",VLOOKUP(DU134,'Footnotes list'!$D$9:$E$58,2,FALSE) ) )","v":""},null,null,null,null,{"$f":"IF(TRIM(DZ134)=\"\", \"\", IF(VLOOKUP(DZ134,'Footnotes list'!$D$9:$E$58,2,FALSE)=0,\"\",VLOOKUP(DZ134,'Footnotes list'!$D$9:$E$58,2,FALSE) ) )","v":""},null,null,null,null,{"$f":"IF(TRIM(EE134)=\"\", \"\", IF(VLOOKUP(EE134,'Footnotes list'!$D$9:$E$58,2,FALSE)=0,\"\",VLOOKUP(EE134,'Footnotes list'!$D$9:$E$58,2,FALSE) ) )","v":""},null,null,null,null,{"$f":"IF(TRIM(EJ134)=\"\", \"\", IF(VLOOKUP(EJ134,'Footnotes list'!$D$9:$E$58,2,FALSE)=0,\"\",VLOOKUP(EJ134,'Footnotes list'!$D$9:$E$58,2,FALSE) ) )","v":""},null,null,null,null,{"$f":"IF(TRIM(EO134)=\"\", \"\", IF(VLOOKUP(EO134,'Footnotes list'!$D$9:$E$58,2,FALSE)=0,\"\",VLOOKUP(EO134,'Footnotes list'!$D$9:$E$58,2,FALSE) ) )","v":""},null,null,null,null,{"$f":"IF(TRIM(ET134)=\"\", \"\", IF(VLOOKUP(ET134,'Footnotes list'!$D$9:$E$58,2,FALSE)=0,\"\",VLOOKUP(ET134,'Footnotes list'!$D$9:$E$58,2,FALSE) ) )","v":""},null,null,null,null,{"$f":"IF(TRIM(EY134)=\"\", \"\", IF(VLOOKUP(EY134,'Footnotes list'!$D$9:$E$58,2,FALSE)=0,\"\",VLOOKUP(EY134,'Footnotes list'!$D$9:$E$58,2,FALSE) ) )","v":""}]
[null,null,"E","ANC","ancillary activities",null,null,null,null,null,{"$f":"IF(TRIM(J135)=\"\", \"\", IF(VLOOKUP(J135,'Footnotes list'!$D$9:$E$58,2,FALSE)=0,\"\",VLOOKUP(J135,'Footnotes list'!$D$9:$E$58,2,FALSE) ) )","v":""},null,null,null,null,{"$f":"IF(TRIM(O135)=\"\", \"\", IF(VLOOKUP(O135,'Footnotes list'!$D$9:$E$58,2,FALSE)=0,\"\",VLOOKUP(O135,'Footnotes list'!$D$9:$E$58,2,FALSE) ) )","v":""},null,null,null,null,{"$f":"IF(TRIM(T135)=\"\", \"\", IF(VLOOKUP(T135,'Footnotes list'!$D$9:$E$58,2,FALSE)=0,\"\",VLOOKUP(T135,'Footnotes list'!$D$9:$E$58,2,FALSE) ) )","v":""},null,null,null,null,{"$f":"IF(TRIM(Y135)=\"\", \"\", IF(VLOOKUP(Y135,'Footnotes list'!$D$9:$E$58,2,FALSE)=0,\"\",VLOOKUP(Y135,'Footnotes list'!$D$9:$E$58,2,FALSE) ) )","v":""},null,null,null,null,{"$f":"IF(TRIM(AD135)=\"\", \"\", IF(VLOOKUP(AD135,'Footnotes list'!$D$9:$E$58,2,FALSE)=0,\"\",VLOOKUP(AD135,'Footnotes list'!$D$9:$E$58,2,FALSE) ) )","v":""},null,null,null,null,{"$f":"IF(TRIM(AI135)=\"\", \"\", IF(VLOOKUP(AI135,'Footnotes list'!$D$9:$E$58,2,FALSE)=0,\"\",VLOOKUP(AI135,'Footnotes list'!$D$9:$E$58,2,FALSE) ) )","v":""},null,null,null,null,{"$f":"IF(TRIM(AN135)=\"\", \"\", IF(VLOOKUP(AN135,'Footnotes list'!$D$9:$E$58,2,FALSE)=0,\"\",VLOOKUP(AN135,'Footnotes list'!$D$9:$E$58,2,FALSE) ) )","v":""},null,null,null,null,{"$f":"IF(TRIM(AS135)=\"\", \"\", IF(VLOOKUP(AS135,'Footnotes list'!$D$9:$E$58,2,FALSE)=0,\"\",VLOOKUP(AS135,'Footnotes list'!$D$9:$E$58,2,FALSE) ) )","v":""},null,null,null,null,{"$f":"IF(TRIM(AX135)=\"\", \"\", IF(VLOOKUP(AX135,'Footnotes list'!$D$9:$E$58,2,FALSE)=0,\"\",VLOOKUP(AX135,'Footnotes list'!$D$9:$E$58,2,FALSE) ) )","v":""},null,null,null,null,{"$f":"IF(TRIM(BC135)=\"\", \"\", IF(VLOOKUP(BC135,'Footnotes list'!$D$9:$E$58,2,FALSE)=0,\"\",VLOOKUP(BC135,'Footnotes list'!$D$9:$E$58,2,FALSE) ) )","v":""},null,null,null,null,{"$f":"IF(TRIM(BH135)=\"\", \"\", IF(VLOOKUP(BH135,'Footnotes list'!$D$9:$E$58,2,FALSE)=0,\"\",VLOOKUP(BH135,'Footnotes list'!$D$9:$E$58,2,FALSE) ) )","v":""},null,null,null,null,{"$f":"IF(TRIM(BM135)=\"\", \"\", IF(VLOOKUP(BM135,'Footnotes list'!$D$9:$E$58,2,FALSE)=0,\"\",VLOOKUP(BM135,'Footnotes list'!$D$9:$E$58,2,FALSE) ) )","v":""},null,null,null,null,{"$f":"IF(TRIM(BR135)=\"\", \"\", IF(VLOOKUP(BR135,'Footnotes list'!$D$9:$E$58,2,FALSE)=0,\"\",VLOOKUP(BR135,'Footnotes list'!$D$9:$E$58,2,FALSE) ) )","v":""},null,null,null,null,{"$f":"IF(TRIM(BW135)=\"\", \"\", IF(VLOOKUP(BW135,'Footnotes list'!$D$9:$E$58,2,FALSE)=0,\"\",VLOOKUP(BW135,'Footnotes list'!$D$9:$E$58,2,FALSE) ) )","v":""},null,null,null,null,{"$f":"IF(TRIM(CB135)=\"\", \"\", IF(VLOOKUP(CB135,'Footnotes list'!$D$9:$E$58,2,FALSE)=0,\"\",VLOOKUP(CB135,'Footnotes list'!$D$9:$E$58,2,FALSE) ) )","v":""},null,null,null,null,{"$f":"IF(TRIM(CG135)=\"\", \"\", IF(VLOOKUP(CG135,'Footnotes list'!$D$9:$E$58,2,FALSE)=0,\"\",VLOOKUP(CG135,'Footnotes list'!$D$9:$E$58,2,FALSE) ) )","v":""},null,null,null,null,{"$f":"IF(TRIM(CL135)=\"\", \"\", IF(VLOOKUP(CL135,'Footnotes list'!$D$9:$E$58,2,FALSE)=0,\"\",VLOOKUP(CL135,'Footnotes list'!$D$9:$E$58,2,FALSE) ) )","v":""},null,null,null,null,{"$f":"IF(TRIM(CQ135)=\"\", \"\", IF(VLOOKUP(CQ135,'Footnotes list'!$D$9:$E$58,2,FALSE)=0,\"\",VLOOKUP(CQ135,'Footnotes list'!$D$9:$E$58,2,FALSE) ) )","v":""},null,null,null,null,{"$f":"IF(TRIM(CV135)=\"\", \"\", IF(VLOOKUP(CV135,'Footnotes list'!$D$9:$E$58,2,FALSE)=0,\"\",VLOOKUP(CV135,'Footnotes list'!$D$9:$E$58,2,FALSE) ) )","v":""},null,null,null,null,{"$f":"IF(TRIM(DA135)=\"\", \"\", IF(VLOOKUP(DA135,'Footnotes list'!$D$9:$E$58,2,FALSE)=0,\"\",VLOOKUP(DA135,'Footnotes list'!$D$9:$E$58,2,FALSE) ) )","v":""},null,null,null,null,{"$f":"IF(TRIM(DF135)=\"\", \"\", IF(VLOOKUP(DF135,'Footnotes list'!$D$9:$E$58,2,FALSE)=0,\"\",VLOOKUP(DF135,'Footnotes list'!$D$9:$E$58,2,FALSE) ) )","v":""},null,null,null,null,{"$f":"IF(TRIM(DK135)=\"\", \"\", IF(VLOOKUP(DK135,'Footnotes list'!$D$9:$E$58,2,FALSE)=0,\"\",VLOOKUP(DK135,'Footnotes list'!$D$9:$E$58,2,FALSE) ) )","v":""},null,null,null,null,{"$f":"IF(TRIM(DP135)=\"\", \"\", IF(VLOOKUP(DP135,'Footnotes list'!$D$9:$E$58,2,FALSE)=0,\"\",VLOOKUP(DP135,'Footnotes list'!$D$9:$E$58,2,FALSE) ) )","v":""},null,null,null,null,{"$f":"IF(TRIM(DU135)=\"\", \"\", IF(VLOOKUP(DU135,'Footnotes list'!$D$9:$E$58,2,FALSE)=0,\"\",VLOOKUP(DU135,'Footnotes list'!$D$9:$E$58,2,FALSE) ) )","v":""},null,null,null,null,{"$f":"IF(TRIM(DZ135)=\"\", \"\", IF(VLOOKUP(DZ135,'Footnotes list'!$D$9:$E$58,2,FALSE)=0,\"\",VLOOKUP(DZ135,'Footnotes list'!$D$9:$E$58,2,FALSE) ) )","v":""},null,null,null,null,{"$f":"IF(TRIM(EE135)=\"\", \"\", IF(VLOOKUP(EE135,'Footnotes list'!$D$9:$E$58,2,FALSE)=0,\"\",VLOOKUP(EE135,'Footnotes list'!$D$9:$E$58,2,FALSE) ) )","v":""},null,null,null,null,{"$f":"IF(TRIM(EJ135)=\"\", \"\", IF(VLOOKUP(EJ135,'Footnotes list'!$D$9:$E$58,2,FALSE)=0,\"\",VLOOKUP(EJ135,'Footnotes list'!$D$9:$E$58,2,FALSE) ) )","v":""},null,null,null,null,{"$f":"IF(TRIM(EO135)=\"\", \"\", IF(VLOOKUP(EO135,'Footnotes list'!$D$9:$E$58,2,FALSE)=0,\"\",VLOOKUP(EO135,'Footnotes list'!$D$9:$E$58,2,FALSE) ) )","v":""},null,null,null,null,{"$f":"IF(TRIM(ET135)=\"\", \"\", IF(VLOOKUP(ET135,'Footnotes list'!$D$9:$E$58,2,FALSE)=0,\"\",VLOOKUP(ET135,'Footnotes list'!$D$9:$E$58,2,FALSE) ) )","v":""},null,null,null,null,{"$f":"IF(TRIM(EY135)=\"\", \"\", IF(VLOOKUP(EY135,'Footnotes list'!$D$9:$E$58,2,FALSE)=0,\"\",VLOOKUP(EY135,'Footnotes list'!$D$9:$E$58,2,FALSE) ) )","v":""}]
[null,null,"E","NMKT","non-market activities",null,null,null,null,null,{"$f":"IF(TRIM(J136)=\"\", \"\", IF(VLOOKUP(J136,'Footnotes list'!$D$9:$E$58,2,FALSE)=0,\"\",VLOOKUP(J136,'Footnotes list'!$D$9:$E$58,2,FALSE) ) )","v":""},null,null,null,null,{"$f":"IF(TRIM(O136)=\"\", \"\", IF(VLOOKUP(O136,'Footnotes list'!$D$9:$E$58,2,FALSE)=0,\"\",VLOOKUP(O136,'Footnotes list'!$D$9:$E$58,2,FALSE) ) )","v":""},null,null,null,null,{"$f":"IF(TRIM(T136)=\"\", \"\", IF(VLOOKUP(T136,'Footnotes list'!$D$9:$E$58,2,FALSE)=0,\"\",VLOOKUP(T136,'Footnotes list'!$D$9:$E$58,2,FALSE) ) )","v":""},null,null,null,null,{"$f":"IF(TRIM(Y136)=\"\", \"\", IF(VLOOKUP(Y136,'Footnotes list'!$D$9:$E$58,2,FALSE)=0,\"\",VLOOKUP(Y136,'Footnotes list'!$D$9:$E$58,2,FALSE) ) )","v":""},null,null,null,null,{"$f":"IF(TRIM(AD136)=\"\", \"\", IF(VLOOKUP(AD136,'Footnotes list'!$D$9:$E$58,2,FALSE)=0,\"\",VLOOKUP(AD136,'Footnotes list'!$D$9:$E$58,2,FALSE) ) )","v":""},null,null,null,null,{"$f":"IF(TRIM(AI136)=\"\", \"\", IF(VLOOKUP(AI136,'Footnotes list'!$D$9:$E$58,2,FALSE)=0,\"\",VLOOKUP(AI136,'Footnotes list'!$D$9:$E$58,2,FALSE) ) )","v":""},null,null,null,null,{"$f":"IF(TRIM(AN136)=\"\", \"\", IF(VLOOKUP(AN136,'Footnotes list'!$D$9:$E$58,2,FALSE)=0,\"\",VLOOKUP(AN136,'Footnotes list'!$D$9:$E$58,2,FALSE) ) )","v":""},null,null,null,null,{"$f":"IF(TRIM(AS136)=\"\", \"\", IF(VLOOKUP(AS136,'Footnotes list'!$D$9:$E$58,2,FALSE)=0,\"\",VLOOKUP(AS136,'Footnotes list'!$D$9:$E$58,2,FALSE) ) )","v":""},null,null,null,null,{"$f":"IF(TRIM(AX136)=\"\", \"\", IF(VLOOKUP(AX136,'Footnotes list'!$D$9:$E$58,2,FALSE)=0,\"\",VLOOKUP(AX136,'Footnotes list'!$D$9:$E$58,2,FALSE) ) )","v":""},null,null,null,null,{"$f":"IF(TRIM(BC136)=\"\", \"\", IF(VLOOKUP(BC136,'Footnotes list'!$D$9:$E$58,2,FALSE)=0,\"\",VLOOKUP(BC136,'Footnotes list'!$D$9:$E$58,2,FALSE) ) )","v":""},null,null,null,null,{"$f":"IF(TRIM(BH136)=\"\", \"\", IF(VLOOKUP(BH136,'Footnotes list'!$D$9:$E$58,2,FALSE)=0,\"\",VLOOKUP(BH136,'Footnotes list'!$D$9:$E$58,2,FALSE) ) )","v":""},null,null,null,null,{"$f":"IF(TRIM(BM136)=\"\", \"\", IF(VLOOKUP(BM136,'Footnotes list'!$D$9:$E$58,2,FALSE)=0,\"\",VLOOKUP(BM136,'Footnotes list'!$D$9:$E$58,2,FALSE) ) )","v":""},null,null,null,null,{"$f":"IF(TRIM(BR136)=\"\", \"\", IF(VLOOKUP(BR136,'Footnotes list'!$D$9:$E$58,2,FALSE)=0,\"\",VLOOKUP(BR136,'Footnotes list'!$D$9:$E$58,2,FALSE) ) )","v":""},null,null,null,null,{"$f":"IF(TRIM(BW136)=\"\", \"\", IF(VLOOKUP(BW136,'Footnotes list'!$D$9:$E$58,2,FALSE)=0,\"\",VLOOKUP(BW136,'Footnotes list'!$D$9:$E$58,2,FALSE) ) )","v":""},null,null,null,null,{"$f":"IF(TRIM(CB136)=\"\", \"\", IF(VLOOKUP(CB136,'Footnotes list'!$D$9:$E$58,2,FALSE)=0,\"\",VLOOKUP(CB136,'Footnotes list'!$D$9:$E$58,2,FALSE) ) )","v":""},null,null,null,null,{"$f":"IF(TRIM(CG136)=\"\", \"\", IF(VLOOKUP(CG136,'Footnotes list'!$D$9:$E$58,2,FALSE)=0,\"\",VLOOKUP(CG136,'Footnotes list'!$D$9:$E$58,2,FALSE) ) )","v":""},null,null,null,null,{"$f":"IF(TRIM(CL136)=\"\", \"\", IF(VLOOKUP(CL136,'Footnotes list'!$D$9:$E$58,2,FALSE)=0,\"\",VLOOKUP(CL136,'Footnotes list'!$D$9:$E$58,2,FALSE) ) )","v":""},null,null,null,null,{"$f":"IF(TRIM(CQ136)=\"\", \"\", IF(VLOOKUP(CQ136,'Footnotes list'!$D$9:$E$58,2,FALSE)=0,\"\",VLOOKUP(CQ136,'Footnotes list'!$D$9:$E$58,2,FALSE) ) )","v":""},null,null,null,null,{"$f":"IF(TRIM(CV136)=\"\", \"\", IF(VLOOKUP(CV136,'Footnotes list'!$D$9:$E$58,2,FALSE)=0,\"\",VLOOKUP(CV136,'Footnotes list'!$D$9:$E$58,2,FALSE) ) )","v":""},null,null,null,null,{"$f":"IF(TRIM(DA136)=\"\", \"\", IF(VLOOKUP(DA136,'Footnotes list'!$D$9:$E$58,2,FALSE)=0,\"\",VLOOKUP(DA136,'Footnotes list'!$D$9:$E$58,2,FALSE) ) )","v":""},null,null,null,null,{"$f":"IF(TRIM(DF136)=\"\", \"\", IF(VLOOKUP(DF136,'Footnotes list'!$D$9:$E$58,2,FALSE)=0,\"\",VLOOKUP(DF136,'Footnotes list'!$D$9:$E$58,2,FALSE) ) )","v":""},null,null,null,null,{"$f":"IF(TRIM(DK136)=\"\", \"\", IF(VLOOKUP(DK136,'Footnotes list'!$D$9:$E$58,2,FALSE)=0,\"\",VLOOKUP(DK136,'Footnotes list'!$D$9:$E$58,2,FALSE) ) )","v":""},null,null,null,null,{"$f":"IF(TRIM(DP136)=\"\", \"\", IF(VLOOKUP(DP136,'Footnotes list'!$D$9:$E$58,2,FALSE)=0,\"\",VLOOKUP(DP136,'Footnotes list'!$D$9:$E$58,2,FALSE) ) )","v":""},null,null,null,null,{"$f":"IF(TRIM(DU136)=\"\", \"\", IF(VLOOKUP(DU136,'Footnotes list'!$D$9:$E$58,2,FALSE)=0,\"\",VLOOKUP(DU136,'Footnotes list'!$D$9:$E$58,2,FALSE) ) )","v":""},null,null,null,null,{"$f":"IF(TRIM(DZ136)=\"\", \"\", IF(VLOOKUP(DZ136,'Footnotes list'!$D$9:$E$58,2,FALSE)=0,\"\",VLOOKUP(DZ136,'Footnotes list'!$D$9:$E$58,2,FALSE) ) )","v":""},null,null,null,null,{"$f":"IF(TRIM(EE136)=\"\", \"\", IF(VLOOKUP(EE136,'Footnotes list'!$D$9:$E$58,2,FALSE)=0,\"\",VLOOKUP(EE136,'Footnotes list'!$D$9:$E$58,2,FALSE) ) )","v":""},null,null,null,null,{"$f":"IF(TRIM(EJ136)=\"\", \"\", IF(VLOOKUP(EJ136,'Footnotes list'!$D$9:$E$58,2,FALSE)=0,\"\",VLOOKUP(EJ136,'Footnotes list'!$D$9:$E$58,2,FALSE) ) )","v":""},null,null,null,null,{"$f":"IF(TRIM(EO136)=\"\", \"\", IF(VLOOKUP(EO136,'Footnotes list'!$D$9:$E$58,2,FALSE)=0,\"\",VLOOKUP(EO136,'Footnotes list'!$D$9:$E$58,2,FALSE) ) )","v":""},null,null,null,null,{"$f":"IF(TRIM(ET136)=\"\", \"\", IF(VLOOKUP(ET136,'Footnotes list'!$D$9:$E$58,2,FALSE)=0,\"\",VLOOKUP(ET136,'Footnotes list'!$D$9:$E$58,2,FALSE) ) )","v":""},null,null,null,null,{"$f":"IF(TRIM(EY136)=\"\", \"\", IF(VLOOKUP(EY136,'Footnotes list'!$D$9:$E$58,2,FALSE)=0,\"\",VLOOKUP(EY136,'Footnotes list'!$D$9:$E$58,2,FALSE) ) )","v":""}]
[null,null,"E","OWN_USE","activities for own final use",null,null,null,null,null,{"$f":"IF(TRIM(J137)=\"\", \"\", IF(VLOOKUP(J137,'Footnotes list'!$D$9:$E$58,2,FALSE)=0,\"\",VLOOKUP(J137,'Footnotes list'!$D$9:$E$58,2,FALSE) ) )","v":""},null,null,null,null,{"$f":"IF(TRIM(O137)=\"\", \"\", IF(VLOOKUP(O137,'Footnotes list'!$D$9:$E$58,2,FALSE)=0,\"\",VLOOKUP(O137,'Footnotes list'!$D$9:$E$58,2,FALSE) ) )","v":""},null,null,null,null,{"$f":"IF(TRIM(T137)=\"\", \"\", IF(VLOOKUP(T137,'Footnotes list'!$D$9:$E$58,2,FALSE)=0,\"\",VLOOKUP(T137,'Footnotes list'!$D$9:$E$58,2,FALSE) ) )","v":""},null,null,null,null,{"$f":"IF(TRIM(Y137)=\"\", \"\", IF(VLOOKUP(Y137,'Footnotes list'!$D$9:$E$58,2,FALSE)=0,\"\",VLOOKUP(Y137,'Footnotes list'!$D$9:$E$58,2,FALSE) ) )","v":""},null,null,null,null,{"$f":"IF(TRIM(AD137)=\"\", \"\", IF(VLOOKUP(AD137,'Footnotes list'!$D$9:$E$58,2,FALSE)=0,\"\",VLOOKUP(AD137,'Footnotes list'!$D$9:$E$58,2,FALSE) ) )","v":""},null,null,null,null,{"$f":"IF(TRIM(AI137)=\"\", \"\", IF(VLOOKUP(AI137,'Footnotes list'!$D$9:$E$58,2,FALSE)=0,\"\",VLOOKUP(AI137,'Footnotes list'!$D$9:$E$58,2,FALSE) ) )","v":""},null,null,null,null,{"$f":"IF(TRIM(AN137)=\"\", \"\", IF(VLOOKUP(AN137,'Footnotes list'!$D$9:$E$58,2,FALSE)=0,\"\",VLOOKUP(AN137,'Footnotes list'!$D$9:$E$58,2,FALSE) ) )","v":""},null,null,null,null,{"$f":"IF(TRIM(AS137)=\"\", \"\", IF(VLOOKUP(AS137,'Footnotes list'!$D$9:$E$58,2,FALSE)=0,\"\",VLOOKUP(AS137,'Footnotes list'!$D$9:$E$58,2,FALSE) ) )","v":""},null,null,null,null,{"$f":"IF(TRIM(AX137)=\"\", \"\", IF(VLOOKUP(AX137,'Footnotes list'!$D$9:$E$58,2,FALSE)=0,\"\",VLOOKUP(AX137,'Footnotes list'!$D$9:$E$58,2,FALSE) ) )","v":""},null,null,null,null,{"$f":"IF(TRIM(BC137)=\"\", \"\", IF(VLOOKUP(BC137,'Footnotes list'!$D$9:$E$58,2,FALSE)=0,\"\",VLOOKUP(BC137,'Footnotes list'!$D$9:$E$58,2,FALSE) ) )","v":""},null,null,null,null,{"$f":"IF(TRIM(BH137)=\"\", \"\", IF(VLOOKUP(BH137,'Footnotes list'!$D$9:$E$58,2,FALSE)=0,\"\",VLOOKUP(BH137,'Footnotes list'!$D$9:$E$58,2,FALSE) ) )","v":""},null,null,null,null,{"$f":"IF(TRIM(BM137)=\"\", \"\", IF(VLOOKUP(BM137,'Footnotes list'!$D$9:$E$58,2,FALSE)=0,\"\",VLOOKUP(BM137,'Footnotes list'!$D$9:$E$58,2,FALSE) ) )","v":""},null,null,null,null,{"$f":"IF(TRIM(BR137)=\"\", \"\", IF(VLOOKUP(BR137,'Footnotes list'!$D$9:$E$58,2,FALSE)=0,\"\",VLOOKUP(BR137,'Footnotes list'!$D$9:$E$58,2,FALSE) ) )","v":""},null,null,null,null,{"$f":"IF(TRIM(BW137)=\"\", \"\", IF(VLOOKUP(BW137,'Footnotes list'!$D$9:$E$58,2,FALSE)=0,\"\",VLOOKUP(BW137,'Footnotes list'!$D$9:$E$58,2,FALSE) ) )","v":""},null,null,null,null,{"$f":"IF(TRIM(CB137)=\"\", \"\", IF(VLOOKUP(CB137,'Footnotes list'!$D$9:$E$58,2,FALSE)=0,\"\",VLOOKUP(CB137,'Footnotes list'!$D$9:$E$58,2,FALSE) ) )","v":""},null,null,null,null,{"$f":"IF(TRIM(CG137)=\"\", \"\", IF(VLOOKUP(CG137,'Footnotes list'!$D$9:$E$58,2,FALSE)=0,\"\",VLOOKUP(CG137,'Footnotes list'!$D$9:$E$58,2,FALSE) ) )","v":""},null,null,null,null,{"$f":"IF(TRIM(CL137)=\"\", \"\", IF(VLOOKUP(CL137,'Footnotes list'!$D$9:$E$58,2,FALSE)=0,\"\",VLOOKUP(CL137,'Footnotes list'!$D$9:$E$58,2,FALSE) ) )","v":""},null,null,null,null,{"$f":"IF(TRIM(CQ137)=\"\", \"\", IF(VLOOKUP(CQ137,'Footnotes list'!$D$9:$E$58,2,FALSE)=0,\"\",VLOOKUP(CQ137,'Footnotes list'!$D$9:$E$58,2,FALSE) ) )","v":""},null,null,null,null,{"$f":"IF(TRIM(CV137)=\"\", \"\", IF(VLOOKUP(CV137,'Footnotes list'!$D$9:$E$58,2,FALSE)=0,\"\",VLOOKUP(CV137,'Footnotes list'!$D$9:$E$58,2,FALSE) ) )","v":""},null,null,null,null,{"$f":"IF(TRIM(DA137)=\"\", \"\", IF(VLOOKUP(DA137,'Footnotes list'!$D$9:$E$58,2,FALSE)=0,\"\",VLOOKUP(DA137,'Footnotes list'!$D$9:$E$58,2,FALSE) ) )","v":""},null,null,null,null,{"$f":"IF(TRIM(DF137)=\"\", \"\", IF(VLOOKUP(DF137,'Footnotes list'!$D$9:$E$58,2,FALSE)=0,\"\",VLOOKUP(DF137,'Footnotes list'!$D$9:$E$58,2,FALSE) ) )","v":""},null,null,null,null,{"$f":"IF(TRIM(DK137)=\"\", \"\", IF(VLOOKUP(DK137,'Footnotes list'!$D$9:$E$58,2,FALSE)=0,\"\",VLOOKUP(DK137,'Footnotes list'!$D$9:$E$58,2,FALSE) ) )","v":""},null,null,null,null,{"$f":"IF(TRIM(DP137)=\"\", \"\", IF(VLOOKUP(DP137,'Footnotes list'!$D$9:$E$58,2,FALSE)=0,\"\",VLOOKUP(DP137,'Footnotes list'!$D$9:$E$58,2,FALSE) ) )","v":""},null,null,null,null,{"$f":"IF(TRIM(DU137)=\"\", \"\", IF(VLOOKUP(DU137,'Footnotes list'!$D$9:$E$58,2,FALSE)=0,\"\",VLOOKUP(DU137,'Footnotes list'!$D$9:$E$58,2,FALSE) ) )","v":""},null,null,null,null,{"$f":"IF(TRIM(DZ137)=\"\", \"\", IF(VLOOKUP(DZ137,'Footnotes list'!$D$9:$E$58,2,FALSE)=0,\"\",VLOOKUP(DZ137,'Footnotes list'!$D$9:$E$58,2,FALSE) ) )","v":""},null,null,null,null,{"$f":"IF(TRIM(EE137)=\"\", \"\", IF(VLOOKUP(EE137,'Footnotes list'!$D$9:$E$58,2,FALSE)=0,\"\",VLOOKUP(EE137,'Footnotes list'!$D$9:$E$58,2,FALSE) ) )","v":""},null,null,null,null,{"$f":"IF(TRIM(EJ137)=\"\", \"\", IF(VLOOKUP(EJ137,'Footnotes list'!$D$9:$E$58,2,FALSE)=0,\"\",VLOOKUP(EJ137,'Footnotes list'!$D$9:$E$58,2,FALSE) ) )","v":""},null,null,null,null,{"$f":"IF(TRIM(EO137)=\"\", \"\", IF(VLOOKUP(EO137,'Footnotes list'!$D$9:$E$58,2,FALSE)=0,\"\",VLOOKUP(EO137,'Footnotes list'!$D$9:$E$58,2,FALSE) ) )","v":""},null,null,null,null,{"$f":"IF(TRIM(ET137)=\"\", \"\", IF(VLOOKUP(ET137,'Footnotes list'!$D$9:$E$58,2,FALSE)=0,\"\",VLOOKUP(ET137,'Footnotes list'!$D$9:$E$58,2,FALSE) ) )","v":""},null,null,null,null,{"$f":"IF(TRIM(EY137)=\"\", \"\", IF(VLOOKUP(EY137,'Footnotes list'!$D$9:$E$58,2,FALSE)=0,\"\",VLOOKUP(EY137,'Footnotes list'!$D$9:$E$58,2,FALSE) ) )","v":""}]
[null,null,"E","MKT","market activities, including:",null,null,null,null,null,{"$f":"IF(TRIM(J138)=\"\", \"\", IF(VLOOKUP(J138,'Footnotes list'!$D$9:$E$58,2,FALSE)=0,\"\",VLOOKUP(J138,'Footnotes list'!$D$9:$E$58,2,FALSE) ) )","v":""},null,null,null,null,{"$f":"IF(TRIM(O138)=\"\", \"\", IF(VLOOKUP(O138,'Footnotes list'!$D$9:$E$58,2,FALSE)=0,\"\",VLOOKUP(O138,'Footnotes list'!$D$9:$E$58,2,FALSE) ) )","v":""},null,null,null,null,{"$f":"IF(TRIM(T138)=\"\", \"\", IF(VLOOKUP(T138,'Footnotes list'!$D$9:$E$58,2,FALSE)=0,\"\",VLOOKUP(T138,'Footnotes list'!$D$9:$E$58,2,FALSE) ) )","v":""},null,null,null,null,{"$f":"IF(TRIM(Y138)=\"\", \"\", IF(VLOOKUP(Y138,'Footnotes list'!$D$9:$E$58,2,FALSE)=0,\"\",VLOOKUP(Y138,'Footnotes list'!$D$9:$E$58,2,FALSE) ) )","v":""},null,null,null,null,{"$f":"IF(TRIM(AD138)=\"\", \"\", IF(VLOOKUP(AD138,'Footnotes list'!$D$9:$E$58,2,FALSE)=0,\"\",VLOOKUP(AD138,'Footnotes list'!$D$9:$E$58,2,FALSE) ) )","v":""},null,null,null,null,{"$f":"IF(TRIM(AI138)=\"\", \"\", IF(VLOOKUP(AI138,'Footnotes list'!$D$9:$E$58,2,FALSE)=0,\"\",VLOOKUP(AI138,'Footnotes list'!$D$9:$E$58,2,FALSE) ) )","v":""},null,null,null,null,{"$f":"IF(TRIM(AN138)=\"\", \"\", IF(VLOOKUP(AN138,'Footnotes list'!$D$9:$E$58,2,FALSE)=0,\"\",VLOOKUP(AN138,'Footnotes list'!$D$9:$E$58,2,FALSE) ) )","v":""},null,null,null,null,{"$f":"IF(TRIM(AS138)=\"\", \"\", IF(VLOOKUP(AS138,'Footnotes list'!$D$9:$E$58,2,FALSE)=0,\"\",VLOOKUP(AS138,'Footnotes list'!$D$9:$E$58,2,FALSE) ) )","v":""},null,null,null,null,{"$f":"IF(TRIM(AX138)=\"\", \"\", IF(VLOOKUP(AX138,'Footnotes list'!$D$9:$E$58,2,FALSE)=0,\"\",VLOOKUP(AX138,'Footnotes list'!$D$9:$E$58,2,FALSE) ) )","v":""},null,null,null,null,{"$f":"IF(TRIM(BC138)=\"\", \"\", IF(VLOOKUP(BC138,'Footnotes list'!$D$9:$E$58,2,FALSE)=0,\"\",VLOOKUP(BC138,'Footnotes list'!$D$9:$E$58,2,FALSE) ) )","v":""},null,null,null,null,{"$f":"IF(TRIM(BH138)=\"\", \"\", IF(VLOOKUP(BH138,'Footnotes list'!$D$9:$E$58,2,FALSE)=0,\"\",VLOOKUP(BH138,'Footnotes list'!$D$9:$E$58,2,FALSE) ) )","v":""},null,null,null,null,{"$f":"IF(TRIM(BM138)=\"\", \"\", IF(VLOOKUP(BM138,'Footnotes list'!$D$9:$E$58,2,FALSE)=0,\"\",VLOOKUP(BM138,'Footnotes list'!$D$9:$E$58,2,FALSE) ) )","v":""},null,null,null,null,{"$f":"IF(TRIM(BR138)=\"\", \"\", IF(VLOOKUP(BR138,'Footnotes list'!$D$9:$E$58,2,FALSE)=0,\"\",VLOOKUP(BR138,'Footnotes list'!$D$9:$E$58,2,FALSE) ) )","v":""},null,null,null,null,{"$f":"IF(TRIM(BW138)=\"\", \"\", IF(VLOOKUP(BW138,'Footnotes list'!$D$9:$E$58,2,FALSE)=0,\"\",VLOOKUP(BW138,'Footnotes list'!$D$9:$E$58,2,FALSE) ) )","v":""},null,null,null,null,{"$f":"IF(TRIM(CB138)=\"\", \"\", IF(VLOOKUP(CB138,'Footnotes list'!$D$9:$E$58,2,FALSE)=0,\"\",VLOOKUP(CB138,'Footnotes list'!$D$9:$E$58,2,FALSE) ) )","v":""},null,null,null,null,{"$f":"IF(TRIM(CG138)=\"\", \"\", IF(VLOOKUP(CG138,'Footnotes list'!$D$9:$E$58,2,FALSE)=0,\"\",VLOOKUP(CG138,'Footnotes list'!$D$9:$E$58,2,FALSE) ) )","v":""},null,null,null,null,{"$f":"IF(TRIM(CL138)=\"\", \"\", IF(VLOOKUP(CL138,'Footnotes list'!$D$9:$E$58,2,FALSE)=0,\"\",VLOOKUP(CL138,'Footnotes list'!$D$9:$E$58,2,FALSE) ) )","v":""},null,null,null,null,{"$f":"IF(TRIM(CQ138)=\"\", \"\", IF(VLOOKUP(CQ138,'Footnotes list'!$D$9:$E$58,2,FALSE)=0,\"\",VLOOKUP(CQ138,'Footnotes list'!$D$9:$E$58,2,FALSE) ) )","v":""},null,null,null,null,{"$f":"IF(TRIM(CV138)=\"\", \"\", IF(VLOOKUP(CV138,'Footnotes list'!$D$9:$E$58,2,FALSE)=0,\"\",VLOOKUP(CV138,'Footnotes list'!$D$9:$E$58,2,FALSE) ) )","v":""},null,null,null,null,{"$f":"IF(TRIM(DA138)=\"\", \"\", IF(VLOOKUP(DA138,'Footnotes list'!$D$9:$E$58,2,FALSE)=0,\"\",VLOOKUP(DA138,'Footnotes list'!$D$9:$E$58,2,FALSE) ) )","v":""},null,null,null,null,{"$f":"IF(TRIM(DF138)=\"\", \"\", IF(VLOOKUP(DF138,'Footnotes list'!$D$9:$E$58,2,FALSE)=0,\"\",VLOOKUP(DF138,'Footnotes list'!$D$9:$E$58,2,FALSE) ) )","v":""},null,null,null,null,{"$f":"IF(TRIM(DK138)=\"\", \"\", IF(VLOOKUP(DK138,'Footnotes list'!$D$9:$E$58,2,FALSE)=0,\"\",VLOOKUP(DK138,'Footnotes list'!$D$9:$E$58,2,FALSE) ) )","v":""},null,null,null,null,{"$f":"IF(TRIM(DP138)=\"\", \"\", IF(VLOOKUP(DP138,'Footnotes list'!$D$9:$E$58,2,FALSE)=0,\"\",VLOOKUP(DP138,'Footnotes list'!$D$9:$E$58,2,FALSE) ) )","v":""},null,null,null,null,{"$f":"IF(TRIM(DU138)=\"\", \"\", IF(VLOOKUP(DU138,'Footnotes list'!$D$9:$E$58,2,FALSE)=0,\"\",VLOOKUP(DU138,'Footnotes list'!$D$9:$E$58,2,FALSE) ) )","v":""},null,null,null,null,{"$f":"IF(TRIM(DZ138)=\"\", \"\", IF(VLOOKUP(DZ138,'Footnotes list'!$D$9:$E$58,2,FALSE)=0,\"\",VLOOKUP(DZ138,'Footnotes list'!$D$9:$E$58,2,FALSE) ) )","v":""},null,null,null,null,{"$f":"IF(TRIM(EE138)=\"\", \"\", IF(VLOOKUP(EE138,'Footnotes list'!$D$9:$E$58,2,FALSE)=0,\"\",VLOOKUP(EE138,'Footnotes list'!$D$9:$E$58,2,FALSE) ) )","v":""},null,null,null,null,{"$f":"IF(TRIM(EJ138)=\"\", \"\", IF(VLOOKUP(EJ138,'Footnotes list'!$D$9:$E$58,2,FALSE)=0,\"\",VLOOKUP(EJ138,'Footnotes list'!$D$9:$E$58,2,FALSE) ) )","v":""},null,null,null,null,{"$f":"IF(TRIM(EO138)=\"\", \"\", IF(VLOOKUP(EO138,'Footnotes list'!$D$9:$E$58,2,FALSE)=0,\"\",VLOOKUP(EO138,'Footnotes list'!$D$9:$E$58,2,FALSE) ) )","v":""},null,null,null,null,{"$f":"IF(TRIM(ET138)=\"\", \"\", IF(VLOOKUP(ET138,'Footnotes list'!$D$9:$E$58,2,FALSE)=0,\"\",VLOOKUP(ET138,'Footnotes list'!$D$9:$E$58,2,FALSE) ) )","v":""},null,null,null,null,{"$f":"IF(TRIM(EY138)=\"\", \"\", IF(VLOOKUP(EY138,'Footnotes list'!$D$9:$E$58,2,FALSE)=0,\"\",VLOOKUP(EY138,'Footnotes list'!$D$9:$E$58,2,FALSE) ) )","v":""}]
[null,null,"E","ES_CS","environmental specific services",null,null,null,null,null,{"$f":"IF(TRIM(J139)=\"\", \"\", IF(VLOOKUP(J139,'Footnotes list'!$D$9:$E$58,2,FALSE)=0,\"\",VLOOKUP(J139,'Footnotes list'!$D$9:$E$58,2,FALSE) ) )","v":""},null,null,null,null,{"$f":"IF(TRIM(O139)=\"\", \"\", IF(VLOOKUP(O139,'Footnotes list'!$D$9:$E$58,2,FALSE)=0,\"\",VLOOKUP(O139,'Footnotes list'!$D$9:$E$58,2,FALSE) ) )","v":""},null,null,null,null,{"$f":"IF(TRIM(T139)=\"\", \"\", IF(VLOOKUP(T139,'Footnotes list'!$D$9:$E$58,2,FALSE)=0,\"\",VLOOKUP(T139,'Footnotes list'!$D$9:$E$58,2,FALSE) ) )","v":""},null,null,null,null,{"$f":"IF(TRIM(Y139)=\"\", \"\", IF(VLOOKUP(Y139,'Footnotes list'!$D$9:$E$58,2,FALSE)=0,\"\",VLOOKUP(Y139,'Footnotes list'!$D$9:$E$58,2,FALSE) ) )","v":""},null,null,null,null,{"$f":"IF(TRIM(AD139)=\"\", \"\", IF(VLOOKUP(AD139,'Footnotes list'!$D$9:$E$58,2,FALSE)=0,\"\",VLOOKUP(AD139,'Footnotes list'!$D$9:$E$58,2,FALSE) ) )","v":""},null,null,null,null,{"$f":"IF(TRIM(AI139)=\"\", \"\", IF(VLOOKUP(AI139,'Footnotes list'!$D$9:$E$58,2,FALSE)=0,\"\",VLOOKUP(AI139,'Footnotes list'!$D$9:$E$58,2,FALSE) ) )","v":""},null,null,null,null,{"$f":"IF(TRIM(AN139)=\"\", \"\", IF(VLOOKUP(AN139,'Footnotes list'!$D$9:$E$58,2,FALSE)=0,\"\",VLOOKUP(AN139,'Footnotes list'!$D$9:$E$58,2,FALSE) ) )","v":""},null,null,null,null,{"$f":"IF(TRIM(AS139)=\"\", \"\", IF(VLOOKUP(AS139,'Footnotes list'!$D$9:$E$58,2,FALSE)=0,\"\",VLOOKUP(AS139,'Footnotes list'!$D$9:$E$58,2,FALSE) ) )","v":""},null,null,null,null,{"$f":"IF(TRIM(AX139)=\"\", \"\", IF(VLOOKUP(AX139,'Footnotes list'!$D$9:$E$58,2,FALSE)=0,\"\",VLOOKUP(AX139,'Footnotes list'!$D$9:$E$58,2,FALSE) ) )","v":""},null,null,null,null,{"$f":"IF(TRIM(BC139)=\"\", \"\", IF(VLOOKUP(BC139,'Footnotes list'!$D$9:$E$58,2,FALSE)=0,\"\",VLOOKUP(BC139,'Footnotes list'!$D$9:$E$58,2,FALSE) ) )","v":""},null,null,null,null,{"$f":"IF(TRIM(BH139)=\"\", \"\", IF(VLOOKUP(BH139,'Footnotes list'!$D$9:$E$58,2,FALSE)=0,\"\",VLOOKUP(BH139,'Footnotes list'!$D$9:$E$58,2,FALSE) ) )","v":""},null,null,null,null,{"$f":"IF(TRIM(BM139)=\"\", \"\", IF(VLOOKUP(BM139,'Footnotes list'!$D$9:$E$58,2,FALSE)=0,\"\",VLOOKUP(BM139,'Footnotes list'!$D$9:$E$58,2,FALSE) ) )","v":""},null,null,null,null,{"$f":"IF(TRIM(BR139)=\"\", \"\", IF(VLOOKUP(BR139,'Footnotes list'!$D$9:$E$58,2,FALSE)=0,\"\",VLOOKUP(BR139,'Footnotes list'!$D$9:$E$58,2,FALSE) ) )","v":""},null,null,null,null,{"$f":"IF(TRIM(BW139)=\"\", \"\", IF(VLOOKUP(BW139,'Footnotes list'!$D$9:$E$58,2,FALSE)=0,\"\",VLOOKUP(BW139,'Footnotes list'!$D$9:$E$58,2,FALSE) ) )","v":""},null,null,null,null,{"$f":"IF(TRIM(CB139)=\"\", \"\", IF(VLOOKUP(CB139,'Footnotes list'!$D$9:$E$58,2,FALSE)=0,\"\",VLOOKUP(CB139,'Footnotes list'!$D$9:$E$58,2,FALSE) ) )","v":""},null,null,null,null,{"$f":"IF(TRIM(CG139)=\"\", \"\", IF(VLOOKUP(CG139,'Footnotes list'!$D$9:$E$58,2,FALSE)=0,\"\",VLOOKUP(CG139,'Footnotes list'!$D$9:$E$58,2,FALSE) ) )","v":""},null,null,null,null,{"$f":"IF(TRIM(CL139)=\"\", \"\", IF(VLOOKUP(CL139,'Footnotes list'!$D$9:$E$58,2,FALSE)=0,\"\",VLOOKUP(CL139,'Footnotes list'!$D$9:$E$58,2,FALSE) ) )","v":""},null,null,null,null,{"$f":"IF(TRIM(CQ139)=\"\", \"\", IF(VLOOKUP(CQ139,'Footnotes list'!$D$9:$E$58,2,FALSE)=0,\"\",VLOOKUP(CQ139,'Footnotes list'!$D$9:$E$58,2,FALSE) ) )","v":""},null,null,null,null,{"$f":"IF(TRIM(CV139)=\"\", \"\", IF(VLOOKUP(CV139,'Footnotes list'!$D$9:$E$58,2,FALSE)=0,\"\",VLOOKUP(CV139,'Footnotes list'!$D$9:$E$58,2,FALSE) ) )","v":""},null,null,null,null,{"$f":"IF(TRIM(DA139)=\"\", \"\", IF(VLOOKUP(DA139,'Footnotes list'!$D$9:$E$58,2,FALSE)=0,\"\",VLOOKUP(DA139,'Footnotes list'!$D$9:$E$58,2,FALSE) ) )","v":""},null,null,null,null,{"$f":"IF(TRIM(DF139)=\"\", \"\", IF(VLOOKUP(DF139,'Footnotes list'!$D$9:$E$58,2,FALSE)=0,\"\",VLOOKUP(DF139,'Footnotes list'!$D$9:$E$58,2,FALSE) ) )","v":""},null,null,null,null,{"$f":"IF(TRIM(DK139)=\"\", \"\", IF(VLOOKUP(DK139,'Footnotes list'!$D$9:$E$58,2,FALSE)=0,\"\",VLOOKUP(DK139,'Footnotes list'!$D$9:$E$58,2,FALSE) ) )","v":""},null,null,null,null,{"$f":"IF(TRIM(DP139)=\"\", \"\", IF(VLOOKUP(DP139,'Footnotes list'!$D$9:$E$58,2,FALSE)=0,\"\",VLOOKUP(DP139,'Footnotes list'!$D$9:$E$58,2,FALSE) ) )","v":""},null,null,null,null,{"$f":"IF(TRIM(DU139)=\"\", \"\", IF(VLOOKUP(DU139,'Footnotes list'!$D$9:$E$58,2,FALSE)=0,\"\",VLOOKUP(DU139,'Footnotes list'!$D$9:$E$58,2,FALSE) ) )","v":""},null,null,null,null,{"$f":"IF(TRIM(DZ139)=\"\", \"\", IF(VLOOKUP(DZ139,'Footnotes list'!$D$9:$E$58,2,FALSE)=0,\"\",VLOOKUP(DZ139,'Footnotes list'!$D$9:$E$58,2,FALSE) ) )","v":""},null,null,null,null,{"$f":"IF(TRIM(EE139)=\"\", \"\", IF(VLOOKUP(EE139,'Footnotes list'!$D$9:$E$58,2,FALSE)=0,\"\",VLOOKUP(EE139,'Footnotes list'!$D$9:$E$58,2,FALSE) ) )","v":""},null,null,null,null,{"$f":"IF(TRIM(EJ139)=\"\", \"\", IF(VLOOKUP(EJ139,'Footnotes list'!$D$9:$E$58,2,FALSE)=0,\"\",VLOOKUP(EJ139,'Footnotes list'!$D$9:$E$58,2,FALSE) ) )","v":""},null,null,null,null,{"$f":"IF(TRIM(EO139)=\"\", \"\", IF(VLOOKUP(EO139,'Footnotes list'!$D$9:$E$58,2,FALSE)=0,\"\",VLOOKUP(EO139,'Footnotes list'!$D$9:$E$58,2,FALSE) ) )","v":""},null,null,null,null,{"$f":"IF(TRIM(ET139)=\"\", \"\", IF(VLOOKUP(ET139,'Footnotes list'!$D$9:$E$58,2,FALSE)=0,\"\",VLOOKUP(ET139,'Footnotes list'!$D$9:$E$58,2,FALSE) ) )","v":""},null,null,null,null,{"$f":"IF(TRIM(EY139)=\"\", \"\", IF(VLOOKUP(EY139,'Footnotes list'!$D$9:$E$58,2,FALSE)=0,\"\",VLOOKUP(EY139,'Footnotes list'!$D$9:$E$58,2,FALSE) ) )","v":""}]
[null,null,"E","C_REP","cleaner and resource efficient products",null,null,null,null,null,{"$f":"IF(TRIM(J140)=\"\", \"\", IF(VLOOKUP(J140,'Footnotes list'!$D$9:$E$58,2,FALSE)=0,\"\",VLOOKUP(J140,'Footnotes list'!$D$9:$E$58,2,FALSE) ) )","v":""},null,null,null,null,{"$f":"IF(TRIM(O140)=\"\", \"\", IF(VLOOKUP(O140,'Footnotes list'!$D$9:$E$58,2,FALSE)=0,\"\",VLOOKUP(O140,'Footnotes list'!$D$9:$E$58,2,FALSE) ) )","v":""},null,null,null,null,{"$f":"IF(TRIM(T140)=\"\", \"\", IF(VLOOKUP(T140,'Footnotes list'!$D$9:$E$58,2,FALSE)=0,\"\",VLOOKUP(T140,'Footnotes list'!$D$9:$E$58,2,FALSE) ) )","v":""},null,null,null,null,{"$f":"IF(TRIM(Y140)=\"\", \"\", IF(VLOOKUP(Y140,'Footnotes list'!$D$9:$E$58,2,FALSE)=0,\"\",VLOOKUP(Y140,'Footnotes list'!$D$9:$E$58,2,FALSE) ) )","v":""},null,null,null,null,{"$f":"IF(TRIM(AD140)=\"\", \"\", IF(VLOOKUP(AD140,'Footnotes list'!$D$9:$E$58,2,FALSE)=0,\"\",VLOOKUP(AD140,'Footnotes list'!$D$9:$E$58,2,FALSE) ) )","v":""},null,null,null,null,{"$f":"IF(TRIM(AI140)=\"\", \"\", IF(VLOOKUP(AI140,'Footnotes list'!$D$9:$E$58,2,FALSE)=0,\"\",VLOOKUP(AI140,'Footnotes list'!$D$9:$E$58,2,FALSE) ) )","v":""},null,null,null,null,{"$f":"IF(TRIM(AN140)=\"\", \"\", IF(VLOOKUP(AN140,'Footnotes list'!$D$9:$E$58,2,FALSE)=0,\"\",VLOOKUP(AN140,'Footnotes list'!$D$9:$E$58,2,FALSE) ) )","v":""},null,null,null,null,{"$f":"IF(TRIM(AS140)=\"\", \"\", IF(VLOOKUP(AS140,'Footnotes list'!$D$9:$E$58,2,FALSE)=0,\"\",VLOOKUP(AS140,'Footnotes list'!$D$9:$E$58,2,FALSE) ) )","v":""},null,null,null,null,{"$f":"IF(TRIM(AX140)=\"\", \"\", IF(VLOOKUP(AX140,'Footnotes list'!$D$9:$E$58,2,FALSE)=0,\"\",VLOOKUP(AX140,'Footnotes list'!$D$9:$E$58,2,FALSE) ) )","v":""},null,null,null,null,{"$f":"IF(TRIM(BC140)=\"\", \"\", IF(VLOOKUP(BC140,'Footnotes list'!$D$9:$E$58,2,FALSE)=0,\"\",VLOOKUP(BC140,'Footnotes list'!$D$9:$E$58,2,FALSE) ) )","v":""},null,null,null,null,{"$f":"IF(TRIM(BH140)=\"\", \"\", IF(VLOOKUP(BH140,'Footnotes list'!$D$9:$E$58,2,FALSE)=0,\"\",VLOOKUP(BH140,'Footnotes list'!$D$9:$E$58,2,FALSE) ) )","v":""},null,null,null,null,{"$f":"IF(TRIM(BM140)=\"\", \"\", IF(VLOOKUP(BM140,'Footnotes list'!$D$9:$E$58,2,FALSE)=0,\"\",VLOOKUP(BM140,'Footnotes list'!$D$9:$E$58,2,FALSE) ) )","v":""},null,null,null,null,{"$f":"IF(TRIM(BR140)=\"\", \"\", IF(VLOOKUP(BR140,'Footnotes list'!$D$9:$E$58,2,FALSE)=0,\"\",VLOOKUP(BR140,'Footnotes list'!$D$9:$E$58,2,FALSE) ) )","v":""},null,null,null,null,{"$f":"IF(TRIM(BW140)=\"\", \"\", IF(VLOOKUP(BW140,'Footnotes list'!$D$9:$E$58,2,FALSE)=0,\"\",VLOOKUP(BW140,'Footnotes list'!$D$9:$E$58,2,FALSE) ) )","v":""},null,null,null,null,{"$f":"IF(TRIM(CB140)=\"\", \"\", IF(VLOOKUP(CB140,'Footnotes list'!$D$9:$E$58,2,FALSE)=0,\"\",VLOOKUP(CB140,'Footnotes list'!$D$9:$E$58,2,FALSE) ) )","v":""},null,null,null,null,{"$f":"IF(TRIM(CG140)=\"\", \"\", IF(VLOOKUP(CG140,'Footnotes list'!$D$9:$E$58,2,FALSE)=0,\"\",VLOOKUP(CG140,'Footnotes list'!$D$9:$E$58,2,FALSE) ) )","v":""},null,null,null,null,{"$f":"IF(TRIM(CL140)=\"\", \"\", IF(VLOOKUP(CL140,'Footnotes list'!$D$9:$E$58,2,FALSE)=0,\"\",VLOOKUP(CL140,'Footnotes list'!$D$9:$E$58,2,FALSE) ) )","v":""},null,null,null,null,{"$f":"IF(TRIM(CQ140)=\"\", \"\", IF(VLOOKUP(CQ140,'Footnotes list'!$D$9:$E$58,2,FALSE)=0,\"\",VLOOKUP(CQ140,'Footnotes list'!$D$9:$E$58,2,FALSE) ) )","v":""},null,null,null,null,{"$f":"IF(TRIM(CV140)=\"\", \"\", IF(VLOOKUP(CV140,'Footnotes list'!$D$9:$E$58,2,FALSE)=0,\"\",VLOOKUP(CV140,'Footnotes list'!$D$9:$E$58,2,FALSE) ) )","v":""},null,null,null,null,{"$f":"IF(TRIM(DA140)=\"\", \"\", IF(VLOOKUP(DA140,'Footnotes list'!$D$9:$E$58,2,FALSE)=0,\"\",VLOOKUP(DA140,'Footnotes list'!$D$9:$E$58,2,FALSE) ) )","v":""},null,null,null,null,{"$f":"IF(TRIM(DF140)=\"\", \"\", IF(VLOOKUP(DF140,'Footnotes list'!$D$9:$E$58,2,FALSE)=0,\"\",VLOOKUP(DF140,'Footnotes list'!$D$9:$E$58,2,FALSE) ) )","v":""},null,null,null,null,{"$f":"IF(TRIM(DK140)=\"\", \"\", IF(VLOOKUP(DK140,'Footnotes list'!$D$9:$E$58,2,FALSE)=0,\"\",VLOOKUP(DK140,'Footnotes list'!$D$9:$E$58,2,FALSE) ) )","v":""},null,null,null,null,{"$f":"IF(TRIM(DP140)=\"\", \"\", IF(VLOOKUP(DP140,'Footnotes list'!$D$9:$E$58,2,FALSE)=0,\"\",VLOOKUP(DP140,'Footnotes list'!$D$9:$E$58,2,FALSE) ) )","v":""},null,null,null,null,{"$f":"IF(TRIM(DU140)=\"\", \"\", IF(VLOOKUP(DU140,'Footnotes list'!$D$9:$E$58,2,FALSE)=0,\"\",VLOOKUP(DU140,'Footnotes list'!$D$9:$E$58,2,FALSE) ) )","v":""},null,null,null,null,{"$f":"IF(TRIM(DZ140)=\"\", \"\", IF(VLOOKUP(DZ140,'Footnotes list'!$D$9:$E$58,2,FALSE)=0,\"\",VLOOKUP(DZ140,'Footnotes list'!$D$9:$E$58,2,FALSE) ) )","v":""},null,null,null,null,{"$f":"IF(TRIM(EE140)=\"\", \"\", IF(VLOOKUP(EE140,'Footnotes list'!$D$9:$E$58,2,FALSE)=0,\"\",VLOOKUP(EE140,'Footnotes list'!$D$9:$E$58,2,FALSE) ) )","v":""},null,null,null,null,{"$f":"IF(TRIM(EJ140)=\"\", \"\", IF(VLOOKUP(EJ140,'Footnotes list'!$D$9:$E$58,2,FALSE)=0,\"\",VLOOKUP(EJ140,'Footnotes list'!$D$9:$E$58,2,FALSE) ) )","v":""},null,null,null,null,{"$f":"IF(TRIM(EO140)=\"\", \"\", IF(VLOOKUP(EO140,'Footnotes list'!$D$9:$E$58,2,FALSE)=0,\"\",VLOOKUP(EO140,'Footnotes list'!$D$9:$E$58,2,FALSE) ) )","v":""},null,null,null,null,{"$f":"IF(TRIM(ET140)=\"\", \"\", IF(VLOOKUP(ET140,'Footnotes list'!$D$9:$E$58,2,FALSE)=0,\"\",VLOOKUP(ET140,'Footnotes list'!$D$9:$E$58,2,FALSE) ) )","v":""},null,null,null,null,{"$f":"IF(TRIM(EY140)=\"\", \"\", IF(VLOOKUP(EY140,'Footnotes list'!$D$9:$E$58,2,FALSE)=0,\"\",VLOOKUP(EY140,'Footnotes list'!$D$9:$E$58,2,FALSE) ) )","v":""}]
[null,null,"E36","TOT_EGSS","Total E36 - Water collection, treatment and supply, of which:",null,null,null,null,null,{"$f":"IF(TRIM(J141)=\"\", \"\", IF(VLOOKUP(J141,'Footnotes list'!$D$9:$E$58,2,FALSE)=0,\"\",VLOOKUP(J141,'Footnotes list'!$D$9:$E$58,2,FALSE) ) )","v":""},null,null,null,null,{"$f":"IF(TRIM(O141)=\"\", \"\", IF(VLOOKUP(O141,'Footnotes list'!$D$9:$E$58,2,FALSE)=0,\"\",VLOOKUP(O141,'Footnotes list'!$D$9:$E$58,2,FALSE) ) )","v":""},null,null,null,null,{"$f":"IF(TRIM(T141)=\"\", \"\", IF(VLOOKUP(T141,'Footnotes list'!$D$9:$E$58,2,FALSE)=0,\"\",VLOOKUP(T141,'Footnotes list'!$D$9:$E$58,2,FALSE) ) )","v":""},null,null,null,null,{"$f":"IF(TRIM(Y141)=\"\", \"\", IF(VLOOKUP(Y141,'Footnotes list'!$D$9:$E$58,2,FALSE)=0,\"\",VLOOKUP(Y141,'Footnotes list'!$D$9:$E$58,2,FALSE) ) )","v":""},null,null,null,null,{"$f":"IF(TRIM(AD141)=\"\", \"\", IF(VLOOKUP(AD141,'Footnotes list'!$D$9:$E$58,2,FALSE)=0,\"\",VLOOKUP(AD141,'Footnotes list'!$D$9:$E$58,2,FALSE) ) )","v":""},null,null,null,null,{"$f":"IF(TRIM(AI141)=\"\", \"\", IF(VLOOKUP(AI141,'Footnotes list'!$D$9:$E$58,2,FALSE)=0,\"\",VLOOKUP(AI141,'Footnotes list'!$D$9:$E$58,2,FALSE) ) )","v":""},null,null,null,null,{"$f":"IF(TRIM(AN141)=\"\", \"\", IF(VLOOKUP(AN141,'Footnotes list'!$D$9:$E$58,2,FALSE)=0,\"\",VLOOKUP(AN141,'Footnotes list'!$D$9:$E$58,2,FALSE) ) )","v":""},null,null,null,null,{"$f":"IF(TRIM(AS141)=\"\", \"\", IF(VLOOKUP(AS141,'Footnotes list'!$D$9:$E$58,2,FALSE)=0,\"\",VLOOKUP(AS141,'Footnotes list'!$D$9:$E$58,2,FALSE) ) )","v":""},null,null,null,null,{"$f":"IF(TRIM(AX141)=\"\", \"\", IF(VLOOKUP(AX141,'Footnotes list'!$D$9:$E$58,2,FALSE)=0,\"\",VLOOKUP(AX141,'Footnotes list'!$D$9:$E$58,2,FALSE) ) )","v":""},null,null,null,null,{"$f":"IF(TRIM(BC141)=\"\", \"\", IF(VLOOKUP(BC141,'Footnotes list'!$D$9:$E$58,2,FALSE)=0,\"\",VLOOKUP(BC141,'Footnotes list'!$D$9:$E$58,2,FALSE) ) )","v":""},null,null,null,null,{"$f":"IF(TRIM(BH141)=\"\", \"\", IF(VLOOKUP(BH141,'Footnotes list'!$D$9:$E$58,2,FALSE)=0,\"\",VLOOKUP(BH141,'Footnotes list'!$D$9:$E$58,2,FALSE) ) )","v":""},null,null,null,null,{"$f":"IF(TRIM(BM141)=\"\", \"\", IF(VLOOKUP(BM141,'Footnotes list'!$D$9:$E$58,2,FALSE)=0,\"\",VLOOKUP(BM141,'Footnotes list'!$D$9:$E$58,2,FALSE) ) )","v":""},null,null,null,null,{"$f":"IF(TRIM(BR141)=\"\", \"\", IF(VLOOKUP(BR141,'Footnotes list'!$D$9:$E$58,2,FALSE)=0,\"\",VLOOKUP(BR141,'Footnotes list'!$D$9:$E$58,2,FALSE) ) )","v":""},null,null,null,null,{"$f":"IF(TRIM(BW141)=\"\", \"\", IF(VLOOKUP(BW141,'Footnotes list'!$D$9:$E$58,2,FALSE)=0,\"\",VLOOKUP(BW141,'Footnotes list'!$D$9:$E$58,2,FALSE) ) )","v":""},null,null,null,null,{"$f":"IF(TRIM(CB141)=\"\", \"\", IF(VLOOKUP(CB141,'Footnotes list'!$D$9:$E$58,2,FALSE)=0,\"\",VLOOKUP(CB141,'Footnotes list'!$D$9:$E$58,2,FALSE) ) )","v":""},null,null,null,null,{"$f":"IF(TRIM(CG141)=\"\", \"\", IF(VLOOKUP(CG141,'Footnotes list'!$D$9:$E$58,2,FALSE)=0,\"\",VLOOKUP(CG141,'Footnotes list'!$D$9:$E$58,2,FALSE) ) )","v":""},null,null,null,null,{"$f":"IF(TRIM(CL141)=\"\", \"\", IF(VLOOKUP(CL141,'Footnotes list'!$D$9:$E$58,2,FALSE)=0,\"\",VLOOKUP(CL141,'Footnotes list'!$D$9:$E$58,2,FALSE) ) )","v":""},null,null,null,null,{"$f":"IF(TRIM(CQ141)=\"\", \"\", IF(VLOOKUP(CQ141,'Footnotes list'!$D$9:$E$58,2,FALSE)=0,\"\",VLOOKUP(CQ141,'Footnotes list'!$D$9:$E$58,2,FALSE) ) )","v":""},null,null,null,null,{"$f":"IF(TRIM(CV141)=\"\", \"\", IF(VLOOKUP(CV141,'Footnotes list'!$D$9:$E$58,2,FALSE)=0,\"\",VLOOKUP(CV141,'Footnotes list'!$D$9:$E$58,2,FALSE) ) )","v":""},null,null,null,null,{"$f":"IF(TRIM(DA141)=\"\", \"\", IF(VLOOKUP(DA141,'Footnotes list'!$D$9:$E$58,2,FALSE)=0,\"\",VLOOKUP(DA141,'Footnotes list'!$D$9:$E$58,2,FALSE) ) )","v":""},null,null,null,null,{"$f":"IF(TRIM(DF141)=\"\", \"\", IF(VLOOKUP(DF141,'Footnotes list'!$D$9:$E$58,2,FALSE)=0,\"\",VLOOKUP(DF141,'Footnotes list'!$D$9:$E$58,2,FALSE) ) )","v":""},null,null,null,null,{"$f":"IF(TRIM(DK141)=\"\", \"\", IF(VLOOKUP(DK141,'Footnotes list'!$D$9:$E$58,2,FALSE)=0,\"\",VLOOKUP(DK141,'Footnotes list'!$D$9:$E$58,2,FALSE) ) )","v":""},null,null,null,null,{"$f":"IF(TRIM(DP141)=\"\", \"\", IF(VLOOKUP(DP141,'Footnotes list'!$D$9:$E$58,2,FALSE)=0,\"\",VLOOKUP(DP141,'Footnotes list'!$D$9:$E$58,2,FALSE) ) )","v":""},null,null,null,null,{"$f":"IF(TRIM(DU141)=\"\", \"\", IF(VLOOKUP(DU141,'Footnotes list'!$D$9:$E$58,2,FALSE)=0,\"\",VLOOKUP(DU141,'Footnotes list'!$D$9:$E$58,2,FALSE) ) )","v":""},null,null,null,null,{"$f":"IF(TRIM(DZ141)=\"\", \"\", IF(VLOOKUP(DZ141,'Footnotes list'!$D$9:$E$58,2,FALSE)=0,\"\",VLOOKUP(DZ141,'Footnotes list'!$D$9:$E$58,2,FALSE) ) )","v":""},null,null,null,null,{"$f":"IF(TRIM(EE141)=\"\", \"\", IF(VLOOKUP(EE141,'Footnotes list'!$D$9:$E$58,2,FALSE)=0,\"\",VLOOKUP(EE141,'Footnotes list'!$D$9:$E$58,2,FALSE) ) )","v":""},null,null,null,null,{"$f":"IF(TRIM(EJ141)=\"\", \"\", IF(VLOOKUP(EJ141,'Footnotes list'!$D$9:$E$58,2,FALSE)=0,\"\",VLOOKUP(EJ141,'Footnotes list'!$D$9:$E$58,2,FALSE) ) )","v":""},null,null,null,null,{"$f":"IF(TRIM(EO141)=\"\", \"\", IF(VLOOKUP(EO141,'Footnotes list'!$D$9:$E$58,2,FALSE)=0,\"\",VLOOKUP(EO141,'Footnotes list'!$D$9:$E$58,2,FALSE) ) )","v":""},null,null,null,null,{"$f":"IF(TRIM(ET141)=\"\", \"\", IF(VLOOKUP(ET141,'Footnotes list'!$D$9:$E$58,2,FALSE)=0,\"\",VLOOKUP(ET141,'Footnotes list'!$D$9:$E$58,2,FALSE) ) )","v":""},null,null,null,null,{"$f":"IF(TRIM(EY141)=\"\", \"\", IF(VLOOKUP(EY141,'Footnotes list'!$D$9:$E$58,2,FALSE)=0,\"\",VLOOKUP(EY141,'Footnotes list'!$D$9:$E$58,2,FALSE) ) )","v":""}]
[null,null,"E36","ANC","ancillary activities",null,null,null,null,null,{"$f":"IF(TRIM(J142)=\"\", \"\", IF(VLOOKUP(J142,'Footnotes list'!$D$9:$E$58,2,FALSE)=0,\"\",VLOOKUP(J142,'Footnotes list'!$D$9:$E$58,2,FALSE) ) )","v":""},null,null,null,null,{"$f":"IF(TRIM(O142)=\"\", \"\", IF(VLOOKUP(O142,'Footnotes list'!$D$9:$E$58,2,FALSE)=0,\"\",VLOOKUP(O142,'Footnotes list'!$D$9:$E$58,2,FALSE) ) )","v":""},null,null,null,null,{"$f":"IF(TRIM(T142)=\"\", \"\", IF(VLOOKUP(T142,'Footnotes list'!$D$9:$E$58,2,FALSE)=0,\"\",VLOOKUP(T142,'Footnotes list'!$D$9:$E$58,2,FALSE) ) )","v":""},null,null,null,null,{"$f":"IF(TRIM(Y142)=\"\", \"\", IF(VLOOKUP(Y142,'Footnotes list'!$D$9:$E$58,2,FALSE)=0,\"\",VLOOKUP(Y142,'Footnotes list'!$D$9:$E$58,2,FALSE) ) )","v":""},null,null,null,null,{"$f":"IF(TRIM(AD142)=\"\", \"\", IF(VLOOKUP(AD142,'Footnotes list'!$D$9:$E$58,2,FALSE)=0,\"\",VLOOKUP(AD142,'Footnotes list'!$D$9:$E$58,2,FALSE) ) )","v":""},null,null,null,null,{"$f":"IF(TRIM(AI142)=\"\", \"\", IF(VLOOKUP(AI142,'Footnotes list'!$D$9:$E$58,2,FALSE)=0,\"\",VLOOKUP(AI142,'Footnotes list'!$D$9:$E$58,2,FALSE) ) )","v":""},null,null,null,null,{"$f":"IF(TRIM(AN142)=\"\", \"\", IF(VLOOKUP(AN142,'Footnotes list'!$D$9:$E$58,2,FALSE)=0,\"\",VLOOKUP(AN142,'Footnotes list'!$D$9:$E$58,2,FALSE) ) )","v":""},null,null,null,null,{"$f":"IF(TRIM(AS142)=\"\", \"\", IF(VLOOKUP(AS142,'Footnotes list'!$D$9:$E$58,2,FALSE)=0,\"\",VLOOKUP(AS142,'Footnotes list'!$D$9:$E$58,2,FALSE) ) )","v":""},null,null,null,null,{"$f":"IF(TRIM(AX142)=\"\", \"\", IF(VLOOKUP(AX142,'Footnotes list'!$D$9:$E$58,2,FALSE)=0,\"\",VLOOKUP(AX142,'Footnotes list'!$D$9:$E$58,2,FALSE) ) )","v":""},null,null,null,null,{"$f":"IF(TRIM(BC142)=\"\", \"\", IF(VLOOKUP(BC142,'Footnotes list'!$D$9:$E$58,2,FALSE)=0,\"\",VLOOKUP(BC142,'Footnotes list'!$D$9:$E$58,2,FALSE) ) )","v":""},null,null,null,null,{"$f":"IF(TRIM(BH142)=\"\", \"\", IF(VLOOKUP(BH142,'Footnotes list'!$D$9:$E$58,2,FALSE)=0,\"\",VLOOKUP(BH142,'Footnotes list'!$D$9:$E$58,2,FALSE) ) )","v":""},null,null,null,null,{"$f":"IF(TRIM(BM142)=\"\", \"\", IF(VLOOKUP(BM142,'Footnotes list'!$D$9:$E$58,2,FALSE)=0,\"\",VLOOKUP(BM142,'Footnotes list'!$D$9:$E$58,2,FALSE) ) )","v":""},null,null,null,null,{"$f":"IF(TRIM(BR142)=\"\", \"\", IF(VLOOKUP(BR142,'Footnotes list'!$D$9:$E$58,2,FALSE)=0,\"\",VLOOKUP(BR142,'Footnotes list'!$D$9:$E$58,2,FALSE) ) )","v":""},null,null,null,null,{"$f":"IF(TRIM(BW142)=\"\", \"\", IF(VLOOKUP(BW142,'Footnotes list'!$D$9:$E$58,2,FALSE)=0,\"\",VLOOKUP(BW142,'Footnotes list'!$D$9:$E$58,2,FALSE) ) )","v":""},null,null,null,null,{"$f":"IF(TRIM(CB142)=\"\", \"\", IF(VLOOKUP(CB142,'Footnotes list'!$D$9:$E$58,2,FALSE)=0,\"\",VLOOKUP(CB142,'Footnotes list'!$D$9:$E$58,2,FALSE) ) )","v":""},null,null,null,null,{"$f":"IF(TRIM(CG142)=\"\", \"\", IF(VLOOKUP(CG142,'Footnotes list'!$D$9:$E$58,2,FALSE)=0,\"\",VLOOKUP(CG142,'Footnotes list'!$D$9:$E$58,2,FALSE) ) )","v":""},null,null,null,null,{"$f":"IF(TRIM(CL142)=\"\", \"\", IF(VLOOKUP(CL142,'Footnotes list'!$D$9:$E$58,2,FALSE)=0,\"\",VLOOKUP(CL142,'Footnotes list'!$D$9:$E$58,2,FALSE) ) )","v":""},null,null,null,null,{"$f":"IF(TRIM(CQ142)=\"\", \"\", IF(VLOOKUP(CQ142,'Footnotes list'!$D$9:$E$58,2,FALSE)=0,\"\",VLOOKUP(CQ142,'Footnotes list'!$D$9:$E$58,2,FALSE) ) )","v":""},null,null,null,null,{"$f":"IF(TRIM(CV142)=\"\", \"\", IF(VLOOKUP(CV142,'Footnotes list'!$D$9:$E$58,2,FALSE)=0,\"\",VLOOKUP(CV142,'Footnotes list'!$D$9:$E$58,2,FALSE) ) )","v":""},null,null,null,null,{"$f":"IF(TRIM(DA142)=\"\", \"\", IF(VLOOKUP(DA142,'Footnotes list'!$D$9:$E$58,2,FALSE)=0,\"\",VLOOKUP(DA142,'Footnotes list'!$D$9:$E$58,2,FALSE) ) )","v":""},null,null,null,null,{"$f":"IF(TRIM(DF142)=\"\", \"\", IF(VLOOKUP(DF142,'Footnotes list'!$D$9:$E$58,2,FALSE)=0,\"\",VLOOKUP(DF142,'Footnotes list'!$D$9:$E$58,2,FALSE) ) )","v":""},null,null,null,null,{"$f":"IF(TRIM(DK142)=\"\", \"\", IF(VLOOKUP(DK142,'Footnotes list'!$D$9:$E$58,2,FALSE)=0,\"\",VLOOKUP(DK142,'Footnotes list'!$D$9:$E$58,2,FALSE) ) )","v":""},null,null,null,null,{"$f":"IF(TRIM(DP142)=\"\", \"\", IF(VLOOKUP(DP142,'Footnotes list'!$D$9:$E$58,2,FALSE)=0,\"\",VLOOKUP(DP142,'Footnotes list'!$D$9:$E$58,2,FALSE) ) )","v":""},null,null,null,null,{"$f":"IF(TRIM(DU142)=\"\", \"\", IF(VLOOKUP(DU142,'Footnotes list'!$D$9:$E$58,2,FALSE)=0,\"\",VLOOKUP(DU142,'Footnotes list'!$D$9:$E$58,2,FALSE) ) )","v":""},null,null,null,null,{"$f":"IF(TRIM(DZ142)=\"\", \"\", IF(VLOOKUP(DZ142,'Footnotes list'!$D$9:$E$58,2,FALSE)=0,\"\",VLOOKUP(DZ142,'Footnotes list'!$D$9:$E$58,2,FALSE) ) )","v":""},null,null,null,null,{"$f":"IF(TRIM(EE142)=\"\", \"\", IF(VLOOKUP(EE142,'Footnotes list'!$D$9:$E$58,2,FALSE)=0,\"\",VLOOKUP(EE142,'Footnotes list'!$D$9:$E$58,2,FALSE) ) )","v":""},null,null,null,null,{"$f":"IF(TRIM(EJ142)=\"\", \"\", IF(VLOOKUP(EJ142,'Footnotes list'!$D$9:$E$58,2,FALSE)=0,\"\",VLOOKUP(EJ142,'Footnotes list'!$D$9:$E$58,2,FALSE) ) )","v":""},null,null,null,null,{"$f":"IF(TRIM(EO142)=\"\", \"\", IF(VLOOKUP(EO142,'Footnotes list'!$D$9:$E$58,2,FALSE)=0,\"\",VLOOKUP(EO142,'Footnotes list'!$D$9:$E$58,2,FALSE) ) )","v":""},null,null,null,null,{"$f":"IF(TRIM(ET142)=\"\", \"\", IF(VLOOKUP(ET142,'Footnotes list'!$D$9:$E$58,2,FALSE)=0,\"\",VLOOKUP(ET142,'Footnotes list'!$D$9:$E$58,2,FALSE) ) )","v":""},null,null,null,null,{"$f":"IF(TRIM(EY142)=\"\", \"\", IF(VLOOKUP(EY142,'Footnotes list'!$D$9:$E$58,2,FALSE)=0,\"\",VLOOKUP(EY142,'Footnotes list'!$D$9:$E$58,2,FALSE) ) )","v":""}]
[null,null,"E36","NMKT","non-market activities",null,null,null,null,null,{"$f":"IF(TRIM(J143)=\"\", \"\", IF(VLOOKUP(J143,'Footnotes list'!$D$9:$E$58,2,FALSE)=0,\"\",VLOOKUP(J143,'Footnotes list'!$D$9:$E$58,2,FALSE) ) )","v":""},null,null,null,null,{"$f":"IF(TRIM(O143)=\"\", \"\", IF(VLOOKUP(O143,'Footnotes list'!$D$9:$E$58,2,FALSE)=0,\"\",VLOOKUP(O143,'Footnotes list'!$D$9:$E$58,2,FALSE) ) )","v":""},null,null,null,null,{"$f":"IF(TRIM(T143)=\"\", \"\", IF(VLOOKUP(T143,'Footnotes list'!$D$9:$E$58,2,FALSE)=0,\"\",VLOOKUP(T143,'Footnotes list'!$D$9:$E$58,2,FALSE) ) )","v":""},null,null,null,null,{"$f":"IF(TRIM(Y143)=\"\", \"\", IF(VLOOKUP(Y143,'Footnotes list'!$D$9:$E$58,2,FALSE)=0,\"\",VLOOKUP(Y143,'Footnotes list'!$D$9:$E$58,2,FALSE) ) )","v":""},null,null,null,null,{"$f":"IF(TRIM(AD143)=\"\", \"\", IF(VLOOKUP(AD143,'Footnotes list'!$D$9:$E$58,2,FALSE)=0,\"\",VLOOKUP(AD143,'Footnotes list'!$D$9:$E$58,2,FALSE) ) )","v":""},null,null,null,null,{"$f":"IF(TRIM(AI143)=\"\", \"\", IF(VLOOKUP(AI143,'Footnotes list'!$D$9:$E$58,2,FALSE)=0,\"\",VLOOKUP(AI143,'Footnotes list'!$D$9:$E$58,2,FALSE) ) )","v":""},null,null,null,null,{"$f":"IF(TRIM(AN143)=\"\", \"\", IF(VLOOKUP(AN143,'Footnotes list'!$D$9:$E$58,2,FALSE)=0,\"\",VLOOKUP(AN143,'Footnotes list'!$D$9:$E$58,2,FALSE) ) )","v":""},null,null,null,null,{"$f":"IF(TRIM(AS143)=\"\", \"\", IF(VLOOKUP(AS143,'Footnotes list'!$D$9:$E$58,2,FALSE)=0,\"\",VLOOKUP(AS143,'Footnotes list'!$D$9:$E$58,2,FALSE) ) )","v":""},null,null,null,null,{"$f":"IF(TRIM(AX143)=\"\", \"\", IF(VLOOKUP(AX143,'Footnotes list'!$D$9:$E$58,2,FALSE)=0,\"\",VLOOKUP(AX143,'Footnotes list'!$D$9:$E$58,2,FALSE) ) )","v":""},null,null,null,null,{"$f":"IF(TRIM(BC143)=\"\", \"\", IF(VLOOKUP(BC143,'Footnotes list'!$D$9:$E$58,2,FALSE)=0,\"\",VLOOKUP(BC143,'Footnotes list'!$D$9:$E$58,2,FALSE) ) )","v":""},null,null,null,null,{"$f":"IF(TRIM(BH143)=\"\", \"\", IF(VLOOKUP(BH143,'Footnotes list'!$D$9:$E$58,2,FALSE)=0,\"\",VLOOKUP(BH143,'Footnotes list'!$D$9:$E$58,2,FALSE) ) )","v":""},null,null,null,null,{"$f":"IF(TRIM(BM143)=\"\", \"\", IF(VLOOKUP(BM143,'Footnotes list'!$D$9:$E$58,2,FALSE)=0,\"\",VLOOKUP(BM143,'Footnotes list'!$D$9:$E$58,2,FALSE) ) )","v":""},null,null,null,null,{"$f":"IF(TRIM(BR143)=\"\", \"\", IF(VLOOKUP(BR143,'Footnotes list'!$D$9:$E$58,2,FALSE)=0,\"\",VLOOKUP(BR143,'Footnotes list'!$D$9:$E$58,2,FALSE) ) )","v":""},null,null,null,null,{"$f":"IF(TRIM(BW143)=\"\", \"\", IF(VLOOKUP(BW143,'Footnotes list'!$D$9:$E$58,2,FALSE)=0,\"\",VLOOKUP(BW143,'Footnotes list'!$D$9:$E$58,2,FALSE) ) )","v":""},null,null,null,null,{"$f":"IF(TRIM(CB143)=\"\", \"\", IF(VLOOKUP(CB143,'Footnotes list'!$D$9:$E$58,2,FALSE)=0,\"\",VLOOKUP(CB143,'Footnotes list'!$D$9:$E$58,2,FALSE) ) )","v":""},null,null,null,null,{"$f":"IF(TRIM(CG143)=\"\", \"\", IF(VLOOKUP(CG143,'Footnotes list'!$D$9:$E$58,2,FALSE)=0,\"\",VLOOKUP(CG143,'Footnotes list'!$D$9:$E$58,2,FALSE) ) )","v":""},null,null,null,null,{"$f":"IF(TRIM(CL143)=\"\", \"\", IF(VLOOKUP(CL143,'Footnotes list'!$D$9:$E$58,2,FALSE)=0,\"\",VLOOKUP(CL143,'Footnotes list'!$D$9:$E$58,2,FALSE) ) )","v":""},null,null,null,null,{"$f":"IF(TRIM(CQ143)=\"\", \"\", IF(VLOOKUP(CQ143,'Footnotes list'!$D$9:$E$58,2,FALSE)=0,\"\",VLOOKUP(CQ143,'Footnotes list'!$D$9:$E$58,2,FALSE) ) )","v":""},null,null,null,null,{"$f":"IF(TRIM(CV143)=\"\", \"\", IF(VLOOKUP(CV143,'Footnotes list'!$D$9:$E$58,2,FALSE)=0,\"\",VLOOKUP(CV143,'Footnotes list'!$D$9:$E$58,2,FALSE) ) )","v":""},null,null,null,null,{"$f":"IF(TRIM(DA143)=\"\", \"\", IF(VLOOKUP(DA143,'Footnotes list'!$D$9:$E$58,2,FALSE)=0,\"\",VLOOKUP(DA143,'Footnotes list'!$D$9:$E$58,2,FALSE) ) )","v":""},null,null,null,null,{"$f":"IF(TRIM(DF143)=\"\", \"\", IF(VLOOKUP(DF143,'Footnotes list'!$D$9:$E$58,2,FALSE)=0,\"\",VLOOKUP(DF143,'Footnotes list'!$D$9:$E$58,2,FALSE) ) )","v":""},null,null,null,null,{"$f":"IF(TRIM(DK143)=\"\", \"\", IF(VLOOKUP(DK143,'Footnotes list'!$D$9:$E$58,2,FALSE)=0,\"\",VLOOKUP(DK143,'Footnotes list'!$D$9:$E$58,2,FALSE) ) )","v":""},null,null,null,null,{"$f":"IF(TRIM(DP143)=\"\", \"\", IF(VLOOKUP(DP143,'Footnotes list'!$D$9:$E$58,2,FALSE)=0,\"\",VLOOKUP(DP143,'Footnotes list'!$D$9:$E$58,2,FALSE) ) )","v":""},null,null,null,null,{"$f":"IF(TRIM(DU143)=\"\", \"\", IF(VLOOKUP(DU143,'Footnotes list'!$D$9:$E$58,2,FALSE)=0,\"\",VLOOKUP(DU143,'Footnotes list'!$D$9:$E$58,2,FALSE) ) )","v":""},null,null,null,null,{"$f":"IF(TRIM(DZ143)=\"\", \"\", IF(VLOOKUP(DZ143,'Footnotes list'!$D$9:$E$58,2,FALSE)=0,\"\",VLOOKUP(DZ143,'Footnotes list'!$D$9:$E$58,2,FALSE) ) )","v":""},null,null,null,null,{"$f":"IF(TRIM(EE143)=\"\", \"\", IF(VLOOKUP(EE143,'Footnotes list'!$D$9:$E$58,2,FALSE)=0,\"\",VLOOKUP(EE143,'Footnotes list'!$D$9:$E$58,2,FALSE) ) )","v":""},null,null,null,null,{"$f":"IF(TRIM(EJ143)=\"\", \"\", IF(VLOOKUP(EJ143,'Footnotes list'!$D$9:$E$58,2,FALSE)=0,\"\",VLOOKUP(EJ143,'Footnotes list'!$D$9:$E$58,2,FALSE) ) )","v":""},null,null,null,null,{"$f":"IF(TRIM(EO143)=\"\", \"\", IF(VLOOKUP(EO143,'Footnotes list'!$D$9:$E$58,2,FALSE)=0,\"\",VLOOKUP(EO143,'Footnotes list'!$D$9:$E$58,2,FALSE) ) )","v":""},null,null,null,null,{"$f":"IF(TRIM(ET143)=\"\", \"\", IF(VLOOKUP(ET143,'Footnotes list'!$D$9:$E$58,2,FALSE)=0,\"\",VLOOKUP(ET143,'Footnotes list'!$D$9:$E$58,2,FALSE) ) )","v":""},null,null,null,null,{"$f":"IF(TRIM(EY143)=\"\", \"\", IF(VLOOKUP(EY143,'Footnotes list'!$D$9:$E$58,2,FALSE)=0,\"\",VLOOKUP(EY143,'Footnotes list'!$D$9:$E$58,2,FALSE) ) )","v":""}]
[null,null,"E36","OWN_USE","activities for own final use",null,null,null,null,null,{"$f":"IF(TRIM(J144)=\"\", \"\", IF(VLOOKUP(J144,'Footnotes list'!$D$9:$E$58,2,FALSE)=0,\"\",VLOOKUP(J144,'Footnotes list'!$D$9:$E$58,2,FALSE) ) )","v":""},null,null,null,null,{"$f":"IF(TRIM(O144)=\"\", \"\", IF(VLOOKUP(O144,'Footnotes list'!$D$9:$E$58,2,FALSE)=0,\"\",VLOOKUP(O144,'Footnotes list'!$D$9:$E$58,2,FALSE) ) )","v":""},null,null,null,null,{"$f":"IF(TRIM(T144)=\"\", \"\", IF(VLOOKUP(T144,'Footnotes list'!$D$9:$E$58,2,FALSE)=0,\"\",VLOOKUP(T144,'Footnotes list'!$D$9:$E$58,2,FALSE) ) )","v":""},null,null,null,null,{"$f":"IF(TRIM(Y144)=\"\", \"\", IF(VLOOKUP(Y144,'Footnotes list'!$D$9:$E$58,2,FALSE)=0,\"\",VLOOKUP(Y144,'Footnotes list'!$D$9:$E$58,2,FALSE) ) )","v":""},null,null,null,null,{"$f":"IF(TRIM(AD144)=\"\", \"\", IF(VLOOKUP(AD144,'Footnotes list'!$D$9:$E$58,2,FALSE)=0,\"\",VLOOKUP(AD144,'Footnotes list'!$D$9:$E$58,2,FALSE) ) )","v":""},null,null,null,null,{"$f":"IF(TRIM(AI144)=\"\", \"\", IF(VLOOKUP(AI144,'Footnotes list'!$D$9:$E$58,2,FALSE)=0,\"\",VLOOKUP(AI144,'Footnotes list'!$D$9:$E$58,2,FALSE) ) )","v":""},null,null,null,null,{"$f":"IF(TRIM(AN144)=\"\", \"\", IF(VLOOKUP(AN144,'Footnotes list'!$D$9:$E$58,2,FALSE)=0,\"\",VLOOKUP(AN144,'Footnotes list'!$D$9:$E$58,2,FALSE) ) )","v":""},null,null,null,null,{"$f":"IF(TRIM(AS144)=\"\", \"\", IF(VLOOKUP(AS144,'Footnotes list'!$D$9:$E$58,2,FALSE)=0,\"\",VLOOKUP(AS144,'Footnotes list'!$D$9:$E$58,2,FALSE) ) )","v":""},null,null,null,null,{"$f":"IF(TRIM(AX144)=\"\", \"\", IF(VLOOKUP(AX144,'Footnotes list'!$D$9:$E$58,2,FALSE)=0,\"\",VLOOKUP(AX144,'Footnotes list'!$D$9:$E$58,2,FALSE) ) )","v":""},null,null,null,null,{"$f":"IF(TRIM(BC144)=\"\", \"\", IF(VLOOKUP(BC144,'Footnotes list'!$D$9:$E$58,2,FALSE)=0,\"\",VLOOKUP(BC144,'Footnotes list'!$D$9:$E$58,2,FALSE) ) )","v":""},null,null,null,null,{"$f":"IF(TRIM(BH144)=\"\", \"\", IF(VLOOKUP(BH144,'Footnotes list'!$D$9:$E$58,2,FALSE)=0,\"\",VLOOKUP(BH144,'Footnotes list'!$D$9:$E$58,2,FALSE) ) )","v":""},null,null,null,null,{"$f":"IF(TRIM(BM144)=\"\", \"\", IF(VLOOKUP(BM144,'Footnotes list'!$D$9:$E$58,2,FALSE)=0,\"\",VLOOKUP(BM144,'Footnotes list'!$D$9:$E$58,2,FALSE) ) )","v":""},null,null,null,null,{"$f":"IF(TRIM(BR144)=\"\", \"\", IF(VLOOKUP(BR144,'Footnotes list'!$D$9:$E$58,2,FALSE)=0,\"\",VLOOKUP(BR144,'Footnotes list'!$D$9:$E$58,2,FALSE) ) )","v":""},null,null,null,null,{"$f":"IF(TRIM(BW144)=\"\", \"\", IF(VLOOKUP(BW144,'Footnotes list'!$D$9:$E$58,2,FALSE)=0,\"\",VLOOKUP(BW144,'Footnotes list'!$D$9:$E$58,2,FALSE) ) )","v":""},null,null,null,null,{"$f":"IF(TRIM(CB144)=\"\", \"\", IF(VLOOKUP(CB144,'Footnotes list'!$D$9:$E$58,2,FALSE)=0,\"\",VLOOKUP(CB144,'Footnotes list'!$D$9:$E$58,2,FALSE) ) )","v":""},null,null,null,null,{"$f":"IF(TRIM(CG144)=\"\", \"\", IF(VLOOKUP(CG144,'Footnotes list'!$D$9:$E$58,2,FALSE)=0,\"\",VLOOKUP(CG144,'Footnotes list'!$D$9:$E$58,2,FALSE) ) )","v":""},null,null,null,null,{"$f":"IF(TRIM(CL144)=\"\", \"\", IF(VLOOKUP(CL144,'Footnotes list'!$D$9:$E$58,2,FALSE)=0,\"\",VLOOKUP(CL144,'Footnotes list'!$D$9:$E$58,2,FALSE) ) )","v":""},null,null,null,null,{"$f":"IF(TRIM(CQ144)=\"\", \"\", IF(VLOOKUP(CQ144,'Footnotes list'!$D$9:$E$58,2,FALSE)=0,\"\",VLOOKUP(CQ144,'Footnotes list'!$D$9:$E$58,2,FALSE) ) )","v":""},null,null,null,null,{"$f":"IF(TRIM(CV144)=\"\", \"\", IF(VLOOKUP(CV144,'Footnotes list'!$D$9:$E$58,2,FALSE)=0,\"\",VLOOKUP(CV144,'Footnotes list'!$D$9:$E$58,2,FALSE) ) )","v":""},null,null,null,null,{"$f":"IF(TRIM(DA144)=\"\", \"\", IF(VLOOKUP(DA144,'Footnotes list'!$D$9:$E$58,2,FALSE)=0,\"\",VLOOKUP(DA144,'Footnotes list'!$D$9:$E$58,2,FALSE) ) )","v":""},null,null,null,null,{"$f":"IF(TRIM(DF144)=\"\", \"\", IF(VLOOKUP(DF144,'Footnotes list'!$D$9:$E$58,2,FALSE)=0,\"\",VLOOKUP(DF144,'Footnotes list'!$D$9:$E$58,2,FALSE) ) )","v":""},null,null,null,null,{"$f":"IF(TRIM(DK144)=\"\", \"\", IF(VLOOKUP(DK144,'Footnotes list'!$D$9:$E$58,2,FALSE)=0,\"\",VLOOKUP(DK144,'Footnotes list'!$D$9:$E$58,2,FALSE) ) )","v":""},null,null,null,null,{"$f":"IF(TRIM(DP144)=\"\", \"\", IF(VLOOKUP(DP144,'Footnotes list'!$D$9:$E$58,2,FALSE)=0,\"\",VLOOKUP(DP144,'Footnotes list'!$D$9:$E$58,2,FALSE) ) )","v":""},null,null,null,null,{"$f":"IF(TRIM(DU144)=\"\", \"\", IF(VLOOKUP(DU144,'Footnotes list'!$D$9:$E$58,2,FALSE)=0,\"\",VLOOKUP(DU144,'Footnotes list'!$D$9:$E$58,2,FALSE) ) )","v":""},null,null,null,null,{"$f":"IF(TRIM(DZ144)=\"\", \"\", IF(VLOOKUP(DZ144,'Footnotes list'!$D$9:$E$58,2,FALSE)=0,\"\",VLOOKUP(DZ144,'Footnotes list'!$D$9:$E$58,2,FALSE) ) )","v":""},null,null,null,null,{"$f":"IF(TRIM(EE144)=\"\", \"\", IF(VLOOKUP(EE144,'Footnotes list'!$D$9:$E$58,2,FALSE)=0,\"\",VLOOKUP(EE144,'Footnotes list'!$D$9:$E$58,2,FALSE) ) )","v":""},null,null,null,null,{"$f":"IF(TRIM(EJ144)=\"\", \"\", IF(VLOOKUP(EJ144,'Footnotes list'!$D$9:$E$58,2,FALSE)=0,\"\",VLOOKUP(EJ144,'Footnotes list'!$D$9:$E$58,2,FALSE) ) )","v":""},null,null,null,null,{"$f":"IF(TRIM(EO144)=\"\", \"\", IF(VLOOKUP(EO144,'Footnotes list'!$D$9:$E$58,2,FALSE)=0,\"\",VLOOKUP(EO144,'Footnotes list'!$D$9:$E$58,2,FALSE) ) )","v":""},null,null,null,null,{"$f":"IF(TRIM(ET144)=\"\", \"\", IF(VLOOKUP(ET144,'Footnotes list'!$D$9:$E$58,2,FALSE)=0,\"\",VLOOKUP(ET144,'Footnotes list'!$D$9:$E$58,2,FALSE) ) )","v":""},null,null,null,null,{"$f":"IF(TRIM(EY144)=\"\", \"\", IF(VLOOKUP(EY144,'Footnotes list'!$D$9:$E$58,2,FALSE)=0,\"\",VLOOKUP(EY144,'Footnotes list'!$D$9:$E$58,2,FALSE) ) )","v":""}]
[null,null,"E36","MKT","market activities, including:",null,null,null,null,null,{"$f":"IF(TRIM(J145)=\"\", \"\", IF(VLOOKUP(J145,'Footnotes list'!$D$9:$E$58,2,FALSE)=0,\"\",VLOOKUP(J145,'Footnotes list'!$D$9:$E$58,2,FALSE) ) )","v":""},null,null,null,null,{"$f":"IF(TRIM(O145)=\"\", \"\", IF(VLOOKUP(O145,'Footnotes list'!$D$9:$E$58,2,FALSE)=0,\"\",VLOOKUP(O145,'Footnotes list'!$D$9:$E$58,2,FALSE) ) )","v":""},null,null,null,null,{"$f":"IF(TRIM(T145)=\"\", \"\", IF(VLOOKUP(T145,'Footnotes list'!$D$9:$E$58,2,FALSE)=0,\"\",VLOOKUP(T145,'Footnotes list'!$D$9:$E$58,2,FALSE) ) )","v":""},null,null,null,null,{"$f":"IF(TRIM(Y145)=\"\", \"\", IF(VLOOKUP(Y145,'Footnotes list'!$D$9:$E$58,2,FALSE)=0,\"\",VLOOKUP(Y145,'Footnotes list'!$D$9:$E$58,2,FALSE) ) )","v":""},null,null,null,null,{"$f":"IF(TRIM(AD145)=\"\", \"\", IF(VLOOKUP(AD145,'Footnotes list'!$D$9:$E$58,2,FALSE)=0,\"\",VLOOKUP(AD145,'Footnotes list'!$D$9:$E$58,2,FALSE) ) )","v":""},null,null,null,null,{"$f":"IF(TRIM(AI145)=\"\", \"\", IF(VLOOKUP(AI145,'Footnotes list'!$D$9:$E$58,2,FALSE)=0,\"\",VLOOKUP(AI145,'Footnotes list'!$D$9:$E$58,2,FALSE) ) )","v":""},null,null,null,null,{"$f":"IF(TRIM(AN145)=\"\", \"\", IF(VLOOKUP(AN145,'Footnotes list'!$D$9:$E$58,2,FALSE)=0,\"\",VLOOKUP(AN145,'Footnotes list'!$D$9:$E$58,2,FALSE) ) )","v":""},null,null,null,null,{"$f":"IF(TRIM(AS145)=\"\", \"\", IF(VLOOKUP(AS145,'Footnotes list'!$D$9:$E$58,2,FALSE)=0,\"\",VLOOKUP(AS145,'Footnotes list'!$D$9:$E$58,2,FALSE) ) )","v":""},null,null,null,null,{"$f":"IF(TRIM(AX145)=\"\", \"\", IF(VLOOKUP(AX145,'Footnotes list'!$D$9:$E$58,2,FALSE)=0,\"\",VLOOKUP(AX145,'Footnotes list'!$D$9:$E$58,2,FALSE) ) )","v":""},null,null,null,null,{"$f":"IF(TRIM(BC145)=\"\", \"\", IF(VLOOKUP(BC145,'Footnotes list'!$D$9:$E$58,2,FALSE)=0,\"\",VLOOKUP(BC145,'Footnotes list'!$D$9:$E$58,2,FALSE) ) )","v":""},null,null,null,null,{"$f":"IF(TRIM(BH145)=\"\", \"\", IF(VLOOKUP(BH145,'Footnotes list'!$D$9:$E$58,2,FALSE)=0,\"\",VLOOKUP(BH145,'Footnotes list'!$D$9:$E$58,2,FALSE) ) )","v":""},null,null,null,null,{"$f":"IF(TRIM(BM145)=\"\", \"\", IF(VLOOKUP(BM145,'Footnotes list'!$D$9:$E$58,2,FALSE)=0,\"\",VLOOKUP(BM145,'Footnotes list'!$D$9:$E$58,2,FALSE) ) )","v":""},null,null,null,null,{"$f":"IF(TRIM(BR145)=\"\", \"\", IF(VLOOKUP(BR145,'Footnotes list'!$D$9:$E$58,2,FALSE)=0,\"\",VLOOKUP(BR145,'Footnotes list'!$D$9:$E$58,2,FALSE) ) )","v":""},null,null,null,null,{"$f":"IF(TRIM(BW145)=\"\", \"\", IF(VLOOKUP(BW145,'Footnotes list'!$D$9:$E$58,2,FALSE)=0,\"\",VLOOKUP(BW145,'Footnotes list'!$D$9:$E$58,2,FALSE) ) )","v":""},null,null,null,null,{"$f":"IF(TRIM(CB145)=\"\", \"\", IF(VLOOKUP(CB145,'Footnotes list'!$D$9:$E$58,2,FALSE)=0,\"\",VLOOKUP(CB145,'Footnotes list'!$D$9:$E$58,2,FALSE) ) )","v":""},null,null,null,null,{"$f":"IF(TRIM(CG145)=\"\", \"\", IF(VLOOKUP(CG145,'Footnotes list'!$D$9:$E$58,2,FALSE)=0,\"\",VLOOKUP(CG145,'Footnotes list'!$D$9:$E$58,2,FALSE) ) )","v":""},null,null,null,null,{"$f":"IF(TRIM(CL145)=\"\", \"\", IF(VLOOKUP(CL145,'Footnotes list'!$D$9:$E$58,2,FALSE)=0,\"\",VLOOKUP(CL145,'Footnotes list'!$D$9:$E$58,2,FALSE) ) )","v":""},null,null,null,null,{"$f":"IF(TRIM(CQ145)=\"\", \"\", IF(VLOOKUP(CQ145,'Footnotes list'!$D$9:$E$58,2,FALSE)=0,\"\",VLOOKUP(CQ145,'Footnotes list'!$D$9:$E$58,2,FALSE) ) )","v":""},null,null,null,null,{"$f":"IF(TRIM(CV145)=\"\", \"\", IF(VLOOKUP(CV145,'Footnotes list'!$D$9:$E$58,2,FALSE)=0,\"\",VLOOKUP(CV145,'Footnotes list'!$D$9:$E$58,2,FALSE) ) )","v":""},null,null,null,null,{"$f":"IF(TRIM(DA145)=\"\", \"\", IF(VLOOKUP(DA145,'Footnotes list'!$D$9:$E$58,2,FALSE)=0,\"\",VLOOKUP(DA145,'Footnotes list'!$D$9:$E$58,2,FALSE) ) )","v":""},null,null,null,null,{"$f":"IF(TRIM(DF145)=\"\", \"\", IF(VLOOKUP(DF145,'Footnotes list'!$D$9:$E$58,2,FALSE)=0,\"\",VLOOKUP(DF145,'Footnotes list'!$D$9:$E$58,2,FALSE) ) )","v":""},null,null,null,null,{"$f":"IF(TRIM(DK145)=\"\", \"\", IF(VLOOKUP(DK145,'Footnotes list'!$D$9:$E$58,2,FALSE)=0,\"\",VLOOKUP(DK145,'Footnotes list'!$D$9:$E$58,2,FALSE) ) )","v":""},null,null,null,null,{"$f":"IF(TRIM(DP145)=\"\", \"\", IF(VLOOKUP(DP145,'Footnotes list'!$D$9:$E$58,2,FALSE)=0,\"\",VLOOKUP(DP145,'Footnotes list'!$D$9:$E$58,2,FALSE) ) )","v":""},null,null,null,null,{"$f":"IF(TRIM(DU145)=\"\", \"\", IF(VLOOKUP(DU145,'Footnotes list'!$D$9:$E$58,2,FALSE)=0,\"\",VLOOKUP(DU145,'Footnotes list'!$D$9:$E$58,2,FALSE) ) )","v":""},null,null,null,null,{"$f":"IF(TRIM(DZ145)=\"\", \"\", IF(VLOOKUP(DZ145,'Footnotes list'!$D$9:$E$58,2,FALSE)=0,\"\",VLOOKUP(DZ145,'Footnotes list'!$D$9:$E$58,2,FALSE) ) )","v":""},null,null,null,null,{"$f":"IF(TRIM(EE145)=\"\", \"\", IF(VLOOKUP(EE145,'Footnotes list'!$D$9:$E$58,2,FALSE)=0,\"\",VLOOKUP(EE145,'Footnotes list'!$D$9:$E$58,2,FALSE) ) )","v":""},null,null,null,null,{"$f":"IF(TRIM(EJ145)=\"\", \"\", IF(VLOOKUP(EJ145,'Footnotes list'!$D$9:$E$58,2,FALSE)=0,\"\",VLOOKUP(EJ145,'Footnotes list'!$D$9:$E$58,2,FALSE) ) )","v":""},null,null,null,null,{"$f":"IF(TRIM(EO145)=\"\", \"\", IF(VLOOKUP(EO145,'Footnotes list'!$D$9:$E$58,2,FALSE)=0,\"\",VLOOKUP(EO145,'Footnotes list'!$D$9:$E$58,2,FALSE) ) )","v":""},null,null,null,null,{"$f":"IF(TRIM(ET145)=\"\", \"\", IF(VLOOKUP(ET145,'Footnotes list'!$D$9:$E$58,2,FALSE)=0,\"\",VLOOKUP(ET145,'Footnotes list'!$D$9:$E$58,2,FALSE) ) )","v":""},null,null,null,null,{"$f":"IF(TRIM(EY145)=\"\", \"\", IF(VLOOKUP(EY145,'Footnotes list'!$D$9:$E$58,2,FALSE)=0,\"\",VLOOKUP(EY145,'Footnotes list'!$D$9:$E$58,2,FALSE) ) )","v":""}]
[null,null,"E36","ES_CS","environmental specific services",null,null,null,null,null,{"$f":"IF(TRIM(J146)=\"\", \"\", IF(VLOOKUP(J146,'Footnotes list'!$D$9:$E$58,2,FALSE)=0,\"\",VLOOKUP(J146,'Footnotes list'!$D$9:$E$58,2,FALSE) ) )","v":""},null,null,null,null,{"$f":"IF(TRIM(O146)=\"\", \"\", IF(VLOOKUP(O146,'Footnotes list'!$D$9:$E$58,2,FALSE)=0,\"\",VLOOKUP(O146,'Footnotes list'!$D$9:$E$58,2,FALSE) ) )","v":""},null,null,null,null,{"$f":"IF(TRIM(T146)=\"\", \"\", IF(VLOOKUP(T146,'Footnotes list'!$D$9:$E$58,2,FALSE)=0,\"\",VLOOKUP(T146,'Footnotes list'!$D$9:$E$58,2,FALSE) ) )","v":""},null,null,null,null,{"$f":"IF(TRIM(Y146)=\"\", \"\", IF(VLOOKUP(Y146,'Footnotes list'!$D$9:$E$58,2,FALSE)=0,\"\",VLOOKUP(Y146,'Footnotes list'!$D$9:$E$58,2,FALSE) ) )","v":""},null,null,null,null,{"$f":"IF(TRIM(AD146)=\"\", \"\", IF(VLOOKUP(AD146,'Footnotes list'!$D$9:$E$58,2,FALSE)=0,\"\",VLOOKUP(AD146,'Footnotes list'!$D$9:$E$58,2,FALSE) ) )","v":""},null,null,null,null,{"$f":"IF(TRIM(AI146)=\"\", \"\", IF(VLOOKUP(AI146,'Footnotes list'!$D$9:$E$58,2,FALSE)=0,\"\",VLOOKUP(AI146,'Footnotes list'!$D$9:$E$58,2,FALSE) ) )","v":""},null,null,null,null,{"$f":"IF(TRIM(AN146)=\"\", \"\", IF(VLOOKUP(AN146,'Footnotes list'!$D$9:$E$58,2,FALSE)=0,\"\",VLOOKUP(AN146,'Footnotes list'!$D$9:$E$58,2,FALSE) ) )","v":""},null,null,null,null,{"$f":"IF(TRIM(AS146)=\"\", \"\", IF(VLOOKUP(AS146,'Footnotes list'!$D$9:$E$58,2,FALSE)=0,\"\",VLOOKUP(AS146,'Footnotes list'!$D$9:$E$58,2,FALSE) ) )","v":""},null,null,null,null,{"$f":"IF(TRIM(AX146)=\"\", \"\", IF(VLOOKUP(AX146,'Footnotes list'!$D$9:$E$58,2,FALSE)=0,\"\",VLOOKUP(AX146,'Footnotes list'!$D$9:$E$58,2,FALSE) ) )","v":""},null,null,null,null,{"$f":"IF(TRIM(BC146)=\"\", \"\", IF(VLOOKUP(BC146,'Footnotes list'!$D$9:$E$58,2,FALSE)=0,\"\",VLOOKUP(BC146,'Footnotes list'!$D$9:$E$58,2,FALSE) ) )","v":""},null,null,null,null,{"$f":"IF(TRIM(BH146)=\"\", \"\", IF(VLOOKUP(BH146,'Footnotes list'!$D$9:$E$58,2,FALSE)=0,\"\",VLOOKUP(BH146,'Footnotes list'!$D$9:$E$58,2,FALSE) ) )","v":""},null,null,null,null,{"$f":"IF(TRIM(BM146)=\"\", \"\", IF(VLOOKUP(BM146,'Footnotes list'!$D$9:$E$58,2,FALSE)=0,\"\",VLOOKUP(BM146,'Footnotes list'!$D$9:$E$58,2,FALSE) ) )","v":""},null,null,null,null,{"$f":"IF(TRIM(BR146)=\"\", \"\", IF(VLOOKUP(BR146,'Footnotes list'!$D$9:$E$58,2,FALSE)=0,\"\",VLOOKUP(BR146,'Footnotes list'!$D$9:$E$58,2,FALSE) ) )","v":""},null,null,null,null,{"$f":"IF(TRIM(BW146)=\"\", \"\", IF(VLOOKUP(BW146,'Footnotes list'!$D$9:$E$58,2,FALSE)=0,\"\",VLOOKUP(BW146,'Footnotes list'!$D$9:$E$58,2,FALSE) ) )","v":""},null,null,null,null,{"$f":"IF(TRIM(CB146)=\"\", \"\", IF(VLOOKUP(CB146,'Footnotes list'!$D$9:$E$58,2,FALSE)=0,\"\",VLOOKUP(CB146,'Footnotes list'!$D$9:$E$58,2,FALSE) ) )","v":""},null,null,null,null,{"$f":"IF(TRIM(CG146)=\"\", \"\", IF(VLOOKUP(CG146,'Footnotes list'!$D$9:$E$58,2,FALSE)=0,\"\",VLOOKUP(CG146,'Footnotes list'!$D$9:$E$58,2,FALSE) ) )","v":""},null,null,null,null,{"$f":"IF(TRIM(CL146)=\"\", \"\", IF(VLOOKUP(CL146,'Footnotes list'!$D$9:$E$58,2,FALSE)=0,\"\",VLOOKUP(CL146,'Footnotes list'!$D$9:$E$58,2,FALSE) ) )","v":""},null,null,null,null,{"$f":"IF(TRIM(CQ146)=\"\", \"\", IF(VLOOKUP(CQ146,'Footnotes list'!$D$9:$E$58,2,FALSE)=0,\"\",VLOOKUP(CQ146,'Footnotes list'!$D$9:$E$58,2,FALSE) ) )","v":""},null,null,null,null,{"$f":"IF(TRIM(CV146)=\"\", \"\", IF(VLOOKUP(CV146,'Footnotes list'!$D$9:$E$58,2,FALSE)=0,\"\",VLOOKUP(CV146,'Footnotes list'!$D$9:$E$58,2,FALSE) ) )","v":""},null,null,null,null,{"$f":"IF(TRIM(DA146)=\"\", \"\", IF(VLOOKUP(DA146,'Footnotes list'!$D$9:$E$58,2,FALSE)=0,\"\",VLOOKUP(DA146,'Footnotes list'!$D$9:$E$58,2,FALSE) ) )","v":""},null,null,null,null,{"$f":"IF(TRIM(DF146)=\"\", \"\", IF(VLOOKUP(DF146,'Footnotes list'!$D$9:$E$58,2,FALSE)=0,\"\",VLOOKUP(DF146,'Footnotes list'!$D$9:$E$58,2,FALSE) ) )","v":""},null,null,null,null,{"$f":"IF(TRIM(DK146)=\"\", \"\", IF(VLOOKUP(DK146,'Footnotes list'!$D$9:$E$58,2,FALSE)=0,\"\",VLOOKUP(DK146,'Footnotes list'!$D$9:$E$58,2,FALSE) ) )","v":""},null,null,null,null,{"$f":"IF(TRIM(DP146)=\"\", \"\", IF(VLOOKUP(DP146,'Footnotes list'!$D$9:$E$58,2,FALSE)=0,\"\",VLOOKUP(DP146,'Footnotes list'!$D$9:$E$58,2,FALSE) ) )","v":""},null,null,null,null,{"$f":"IF(TRIM(DU146)=\"\", \"\", IF(VLOOKUP(DU146,'Footnotes list'!$D$9:$E$58,2,FALSE)=0,\"\",VLOOKUP(DU146,'Footnotes list'!$D$9:$E$58,2,FALSE) ) )","v":""},null,null,null,null,{"$f":"IF(TRIM(DZ146)=\"\", \"\", IF(VLOOKUP(DZ146,'Footnotes list'!$D$9:$E$58,2,FALSE)=0,\"\",VLOOKUP(DZ146,'Footnotes list'!$D$9:$E$58,2,FALSE) ) )","v":""},null,null,null,null,{"$f":"IF(TRIM(EE146)=\"\", \"\", IF(VLOOKUP(EE146,'Footnotes list'!$D$9:$E$58,2,FALSE)=0,\"\",VLOOKUP(EE146,'Footnotes list'!$D$9:$E$58,2,FALSE) ) )","v":""},null,null,null,null,{"$f":"IF(TRIM(EJ146)=\"\", \"\", IF(VLOOKUP(EJ146,'Footnotes list'!$D$9:$E$58,2,FALSE)=0,\"\",VLOOKUP(EJ146,'Footnotes list'!$D$9:$E$58,2,FALSE) ) )","v":""},null,null,null,null,{"$f":"IF(TRIM(EO146)=\"\", \"\", IF(VLOOKUP(EO146,'Footnotes list'!$D$9:$E$58,2,FALSE)=0,\"\",VLOOKUP(EO146,'Footnotes list'!$D$9:$E$58,2,FALSE) ) )","v":""},null,null,null,null,{"$f":"IF(TRIM(ET146)=\"\", \"\", IF(VLOOKUP(ET146,'Footnotes list'!$D$9:$E$58,2,FALSE)=0,\"\",VLOOKUP(ET146,'Footnotes list'!$D$9:$E$58,2,FALSE) ) )","v":""},null,null,null,null,{"$f":"IF(TRIM(EY146)=\"\", \"\", IF(VLOOKUP(EY146,'Footnotes list'!$D$9:$E$58,2,FALSE)=0,\"\",VLOOKUP(EY146,'Footnotes list'!$D$9:$E$58,2,FALSE) ) )","v":""}]
[null,null,"E36","C_REP","cleaner and resource efficient products",null,null,null,null,null,{"$f":"IF(TRIM(J147)=\"\", \"\", IF(VLOOKUP(J147,'Footnotes list'!$D$9:$E$58,2,FALSE)=0,\"\",VLOOKUP(J147,'Footnotes list'!$D$9:$E$58,2,FALSE) ) )","v":""},null,null,null,null,{"$f":"IF(TRIM(O147)=\"\", \"\", IF(VLOOKUP(O147,'Footnotes list'!$D$9:$E$58,2,FALSE)=0,\"\",VLOOKUP(O147,'Footnotes list'!$D$9:$E$58,2,FALSE) ) )","v":""},null,null,null,null,{"$f":"IF(TRIM(T147)=\"\", \"\", IF(VLOOKUP(T147,'Footnotes list'!$D$9:$E$58,2,FALSE)=0,\"\",VLOOKUP(T147,'Footnotes list'!$D$9:$E$58,2,FALSE) ) )","v":""},null,null,null,null,{"$f":"IF(TRIM(Y147)=\"\", \"\", IF(VLOOKUP(Y147,'Footnotes list'!$D$9:$E$58,2,FALSE)=0,\"\",VLOOKUP(Y147,'Footnotes list'!$D$9:$E$58,2,FALSE) ) )","v":""},null,null,null,null,{"$f":"IF(TRIM(AD147)=\"\", \"\", IF(VLOOKUP(AD147,'Footnotes list'!$D$9:$E$58,2,FALSE)=0,\"\",VLOOKUP(AD147,'Footnotes list'!$D$9:$E$58,2,FALSE) ) )","v":""},null,null,null,null,{"$f":"IF(TRIM(AI147)=\"\", \"\", IF(VLOOKUP(AI147,'Footnotes list'!$D$9:$E$58,2,FALSE)=0,\"\",VLOOKUP(AI147,'Footnotes list'!$D$9:$E$58,2,FALSE) ) )","v":""},null,null,null,null,{"$f":"IF(TRIM(AN147)=\"\", \"\", IF(VLOOKUP(AN147,'Footnotes list'!$D$9:$E$58,2,FALSE)=0,\"\",VLOOKUP(AN147,'Footnotes list'!$D$9:$E$58,2,FALSE) ) )","v":""},null,null,null,null,{"$f":"IF(TRIM(AS147)=\"\", \"\", IF(VLOOKUP(AS147,'Footnotes list'!$D$9:$E$58,2,FALSE)=0,\"\",VLOOKUP(AS147,'Footnotes list'!$D$9:$E$58,2,FALSE) ) )","v":""},null,null,null,null,{"$f":"IF(TRIM(AX147)=\"\", \"\", IF(VLOOKUP(AX147,'Footnotes list'!$D$9:$E$58,2,FALSE)=0,\"\",VLOOKUP(AX147,'Footnotes list'!$D$9:$E$58,2,FALSE) ) )","v":""},null,null,null,null,{"$f":"IF(TRIM(BC147)=\"\", \"\", IF(VLOOKUP(BC147,'Footnotes list'!$D$9:$E$58,2,FALSE)=0,\"\",VLOOKUP(BC147,'Footnotes list'!$D$9:$E$58,2,FALSE) ) )","v":""},null,null,null,null,{"$f":"IF(TRIM(BH147)=\"\", \"\", IF(VLOOKUP(BH147,'Footnotes list'!$D$9:$E$58,2,FALSE)=0,\"\",VLOOKUP(BH147,'Footnotes list'!$D$9:$E$58,2,FALSE) ) )","v":""},null,null,null,null,{"$f":"IF(TRIM(BM147)=\"\", \"\", IF(VLOOKUP(BM147,'Footnotes list'!$D$9:$E$58,2,FALSE)=0,\"\",VLOOKUP(BM147,'Footnotes list'!$D$9:$E$58,2,FALSE) ) )","v":""},null,null,null,null,{"$f":"IF(TRIM(BR147)=\"\", \"\", IF(VLOOKUP(BR147,'Footnotes list'!$D$9:$E$58,2,FALSE)=0,\"\",VLOOKUP(BR147,'Footnotes list'!$D$9:$E$58,2,FALSE) ) )","v":""},null,null,null,null,{"$f":"IF(TRIM(BW147)=\"\", \"\", IF(VLOOKUP(BW147,'Footnotes list'!$D$9:$E$58,2,FALSE)=0,\"\",VLOOKUP(BW147,'Footnotes list'!$D$9:$E$58,2,FALSE) ) )","v":""},null,null,null,null,{"$f":"IF(TRIM(CB147)=\"\", \"\", IF(VLOOKUP(CB147,'Footnotes list'!$D$9:$E$58,2,FALSE)=0,\"\",VLOOKUP(CB147,'Footnotes list'!$D$9:$E$58,2,FALSE) ) )","v":""},null,null,null,null,{"$f":"IF(TRIM(CG147)=\"\", \"\", IF(VLOOKUP(CG147,'Footnotes list'!$D$9:$E$58,2,FALSE)=0,\"\",VLOOKUP(CG147,'Footnotes list'!$D$9:$E$58,2,FALSE) ) )","v":""},null,null,null,null,{"$f":"IF(TRIM(CL147)=\"\", \"\", IF(VLOOKUP(CL147,'Footnotes list'!$D$9:$E$58,2,FALSE)=0,\"\",VLOOKUP(CL147,'Footnotes list'!$D$9:$E$58,2,FALSE) ) )","v":""},null,null,null,null,{"$f":"IF(TRIM(CQ147)=\"\", \"\", IF(VLOOKUP(CQ147,'Footnotes list'!$D$9:$E$58,2,FALSE)=0,\"\",VLOOKUP(CQ147,'Footnotes list'!$D$9:$E$58,2,FALSE) ) )","v":""},null,null,null,null,{"$f":"IF(TRIM(CV147)=\"\", \"\", IF(VLOOKUP(CV147,'Footnotes list'!$D$9:$E$58,2,FALSE)=0,\"\",VLOOKUP(CV147,'Footnotes list'!$D$9:$E$58,2,FALSE) ) )","v":""},null,null,null,null,{"$f":"IF(TRIM(DA147)=\"\", \"\", IF(VLOOKUP(DA147,'Footnotes list'!$D$9:$E$58,2,FALSE)=0,\"\",VLOOKUP(DA147,'Footnotes list'!$D$9:$E$58,2,FALSE) ) )","v":""},null,null,null,null,{"$f":"IF(TRIM(DF147)=\"\", \"\", IF(VLOOKUP(DF147,'Footnotes list'!$D$9:$E$58,2,FALSE)=0,\"\",VLOOKUP(DF147,'Footnotes list'!$D$9:$E$58,2,FALSE) ) )","v":""},null,null,null,null,{"$f":"IF(TRIM(DK147)=\"\", \"\", IF(VLOOKUP(DK147,'Footnotes list'!$D$9:$E$58,2,FALSE)=0,\"\",VLOOKUP(DK147,'Footnotes list'!$D$9:$E$58,2,FALSE) ) )","v":""},null,null,null,null,{"$f":"IF(TRIM(DP147)=\"\", \"\", IF(VLOOKUP(DP147,'Footnotes list'!$D$9:$E$58,2,FALSE)=0,\"\",VLOOKUP(DP147,'Footnotes list'!$D$9:$E$58,2,FALSE) ) )","v":""},null,null,null,null,{"$f":"IF(TRIM(DU147)=\"\", \"\", IF(VLOOKUP(DU147,'Footnotes list'!$D$9:$E$58,2,FALSE)=0,\"\",VLOOKUP(DU147,'Footnotes list'!$D$9:$E$58,2,FALSE) ) )","v":""},null,null,null,null,{"$f":"IF(TRIM(DZ147)=\"\", \"\", IF(VLOOKUP(DZ147,'Footnotes list'!$D$9:$E$58,2,FALSE)=0,\"\",VLOOKUP(DZ147,'Footnotes list'!$D$9:$E$58,2,FALSE) ) )","v":""},null,null,null,null,{"$f":"IF(TRIM(EE147)=\"\", \"\", IF(VLOOKUP(EE147,'Footnotes list'!$D$9:$E$58,2,FALSE)=0,\"\",VLOOKUP(EE147,'Footnotes list'!$D$9:$E$58,2,FALSE) ) )","v":""},null,null,null,null,{"$f":"IF(TRIM(EJ147)=\"\", \"\", IF(VLOOKUP(EJ147,'Footnotes list'!$D$9:$E$58,2,FALSE)=0,\"\",VLOOKUP(EJ147,'Footnotes list'!$D$9:$E$58,2,FALSE) ) )","v":""},null,null,null,null,{"$f":"IF(TRIM(EO147)=\"\", \"\", IF(VLOOKUP(EO147,'Footnotes list'!$D$9:$E$58,2,FALSE)=0,\"\",VLOOKUP(EO147,'Footnotes list'!$D$9:$E$58,2,FALSE) ) )","v":""},null,null,null,null,{"$f":"IF(TRIM(ET147)=\"\", \"\", IF(VLOOKUP(ET147,'Footnotes list'!$D$9:$E$58,2,FALSE)=0,\"\",VLOOKUP(ET147,'Footnotes list'!$D$9:$E$58,2,FALSE) ) )","v":""},null,null,null,null,{"$f":"IF(TRIM(EY147)=\"\", \"\", IF(VLOOKUP(EY147,'Footnotes list'!$D$9:$E$58,2,FALSE)=0,\"\",VLOOKUP(EY147,'Footnotes list'!$D$9:$E$58,2,FALSE) ) )","v":""}]
[null,null,"E37","TOT_EGSS","Total E37 - Sewerage, of which:",null,null,null,null,null,{"$f":"IF(TRIM(J148)=\"\", \"\", IF(VLOOKUP(J148,'Footnotes list'!$D$9:$E$58,2,FALSE)=0,\"\",VLOOKUP(J148,'Footnotes list'!$D$9:$E$58,2,FALSE) ) )","v":""},null,null,null,null,{"$f":"IF(TRIM(O148)=\"\", \"\", IF(VLOOKUP(O148,'Footnotes list'!$D$9:$E$58,2,FALSE)=0,\"\",VLOOKUP(O148,'Footnotes list'!$D$9:$E$58,2,FALSE) ) )","v":""},null,null,null,null,{"$f":"IF(TRIM(T148)=\"\", \"\", IF(VLOOKUP(T148,'Footnotes list'!$D$9:$E$58,2,FALSE)=0,\"\",VLOOKUP(T148,'Footnotes list'!$D$9:$E$58,2,FALSE) ) )","v":""},null,null,null,null,{"$f":"IF(TRIM(Y148)=\"\", \"\", IF(VLOOKUP(Y148,'Footnotes list'!$D$9:$E$58,2,FALSE)=0,\"\",VLOOKUP(Y148,'Footnotes list'!$D$9:$E$58,2,FALSE) ) )","v":""},null,null,null,null,{"$f":"IF(TRIM(AD148)=\"\", \"\", IF(VLOOKUP(AD148,'Footnotes list'!$D$9:$E$58,2,FALSE)=0,\"\",VLOOKUP(AD148,'Footnotes list'!$D$9:$E$58,2,FALSE) ) )","v":""},null,null,null,null,{"$f":"IF(TRIM(AI148)=\"\", \"\", IF(VLOOKUP(AI148,'Footnotes list'!$D$9:$E$58,2,FALSE)=0,\"\",VLOOKUP(AI148,'Footnotes list'!$D$9:$E$58,2,FALSE) ) )","v":""},null,null,null,null,{"$f":"IF(TRIM(AN148)=\"\", \"\", IF(VLOOKUP(AN148,'Footnotes list'!$D$9:$E$58,2,FALSE)=0,\"\",VLOOKUP(AN148,'Footnotes list'!$D$9:$E$58,2,FALSE) ) )","v":""},null,null,null,null,{"$f":"IF(TRIM(AS148)=\"\", \"\", IF(VLOOKUP(AS148,'Footnotes list'!$D$9:$E$58,2,FALSE)=0,\"\",VLOOKUP(AS148,'Footnotes list'!$D$9:$E$58,2,FALSE) ) )","v":""},null,null,null,null,{"$f":"IF(TRIM(AX148)=\"\", \"\", IF(VLOOKUP(AX148,'Footnotes list'!$D$9:$E$58,2,FALSE)=0,\"\",VLOOKUP(AX148,'Footnotes list'!$D$9:$E$58,2,FALSE) ) )","v":""},null,null,null,null,{"$f":"IF(TRIM(BC148)=\"\", \"\", IF(VLOOKUP(BC148,'Footnotes list'!$D$9:$E$58,2,FALSE)=0,\"\",VLOOKUP(BC148,'Footnotes list'!$D$9:$E$58,2,FALSE) ) )","v":""},null,null,null,null,{"$f":"IF(TRIM(BH148)=\"\", \"\", IF(VLOOKUP(BH148,'Footnotes list'!$D$9:$E$58,2,FALSE)=0,\"\",VLOOKUP(BH148,'Footnotes list'!$D$9:$E$58,2,FALSE) ) )","v":""},null,null,null,null,{"$f":"IF(TRIM(BM148)=\"\", \"\", IF(VLOOKUP(BM148,'Footnotes list'!$D$9:$E$58,2,FALSE)=0,\"\",VLOOKUP(BM148,'Footnotes list'!$D$9:$E$58,2,FALSE) ) )","v":""},null,null,null,null,{"$f":"IF(TRIM(BR148)=\"\", \"\", IF(VLOOKUP(BR148,'Footnotes list'!$D$9:$E$58,2,FALSE)=0,\"\",VLOOKUP(BR148,'Footnotes list'!$D$9:$E$58,2,FALSE) ) )","v":""},null,null,null,null,{"$f":"IF(TRIM(BW148)=\"\", \"\", IF(VLOOKUP(BW148,'Footnotes list'!$D$9:$E$58,2,FALSE)=0,\"\",VLOOKUP(BW148,'Footnotes list'!$D$9:$E$58,2,FALSE) ) )","v":""},null,null,null,null,{"$f":"IF(TRIM(CB148)=\"\", \"\", IF(VLOOKUP(CB148,'Footnotes list'!$D$9:$E$58,2,FALSE)=0,\"\",VLOOKUP(CB148,'Footnotes list'!$D$9:$E$58,2,FALSE) ) )","v":""},null,null,null,null,{"$f":"IF(TRIM(CG148)=\"\", \"\", IF(VLOOKUP(CG148,'Footnotes list'!$D$9:$E$58,2,FALSE)=0,\"\",VLOOKUP(CG148,'Footnotes list'!$D$9:$E$58,2,FALSE) ) )","v":""},null,null,null,null,{"$f":"IF(TRIM(CL148)=\"\", \"\", IF(VLOOKUP(CL148,'Footnotes list'!$D$9:$E$58,2,FALSE)=0,\"\",VLOOKUP(CL148,'Footnotes list'!$D$9:$E$58,2,FALSE) ) )","v":""},null,null,null,null,{"$f":"IF(TRIM(CQ148)=\"\", \"\", IF(VLOOKUP(CQ148,'Footnotes list'!$D$9:$E$58,2,FALSE)=0,\"\",VLOOKUP(CQ148,'Footnotes list'!$D$9:$E$58,2,FALSE) ) )","v":""},null,null,null,null,{"$f":"IF(TRIM(CV148)=\"\", \"\", IF(VLOOKUP(CV148,'Footnotes list'!$D$9:$E$58,2,FALSE)=0,\"\",VLOOKUP(CV148,'Footnotes list'!$D$9:$E$58,2,FALSE) ) )","v":""},null,null,null,null,{"$f":"IF(TRIM(DA148)=\"\", \"\", IF(VLOOKUP(DA148,'Footnotes list'!$D$9:$E$58,2,FALSE)=0,\"\",VLOOKUP(DA148,'Footnotes list'!$D$9:$E$58,2,FALSE) ) )","v":""},null,null,null,null,{"$f":"IF(TRIM(DF148)=\"\", \"\", IF(VLOOKUP(DF148,'Footnotes list'!$D$9:$E$58,2,FALSE)=0,\"\",VLOOKUP(DF148,'Footnotes list'!$D$9:$E$58,2,FALSE) ) )","v":""},null,null,null,null,{"$f":"IF(TRIM(DK148)=\"\", \"\", IF(VLOOKUP(DK148,'Footnotes list'!$D$9:$E$58,2,FALSE)=0,\"\",VLOOKUP(DK148,'Footnotes list'!$D$9:$E$58,2,FALSE) ) )","v":""},null,null,null,null,{"$f":"IF(TRIM(DP148)=\"\", \"\", IF(VLOOKUP(DP148,'Footnotes list'!$D$9:$E$58,2,FALSE)=0,\"\",VLOOKUP(DP148,'Footnotes list'!$D$9:$E$58,2,FALSE) ) )","v":""},null,null,null,null,{"$f":"IF(TRIM(DU148)=\"\", \"\", IF(VLOOKUP(DU148,'Footnotes list'!$D$9:$E$58,2,FALSE)=0,\"\",VLOOKUP(DU148,'Footnotes list'!$D$9:$E$58,2,FALSE) ) )","v":""},null,null,null,null,{"$f":"IF(TRIM(DZ148)=\"\", \"\", IF(VLOOKUP(DZ148,'Footnotes list'!$D$9:$E$58,2,FALSE)=0,\"\",VLOOKUP(DZ148,'Footnotes list'!$D$9:$E$58,2,FALSE) ) )","v":""},null,null,null,null,{"$f":"IF(TRIM(EE148)=\"\", \"\", IF(VLOOKUP(EE148,'Footnotes list'!$D$9:$E$58,2,FALSE)=0,\"\",VLOOKUP(EE148,'Footnotes list'!$D$9:$E$58,2,FALSE) ) )","v":""},null,null,null,null,{"$f":"IF(TRIM(EJ148)=\"\", \"\", IF(VLOOKUP(EJ148,'Footnotes list'!$D$9:$E$58,2,FALSE)=0,\"\",VLOOKUP(EJ148,'Footnotes list'!$D$9:$E$58,2,FALSE) ) )","v":""},null,null,null,null,{"$f":"IF(TRIM(EO148)=\"\", \"\", IF(VLOOKUP(EO148,'Footnotes list'!$D$9:$E$58,2,FALSE)=0,\"\",VLOOKUP(EO148,'Footnotes list'!$D$9:$E$58,2,FALSE) ) )","v":""},null,null,null,null,{"$f":"IF(TRIM(ET148)=\"\", \"\", IF(VLOOKUP(ET148,'Footnotes list'!$D$9:$E$58,2,FALSE)=0,\"\",VLOOKUP(ET148,'Footnotes list'!$D$9:$E$58,2,FALSE) ) )","v":""},null,null,null,null,{"$f":"IF(TRIM(EY148)=\"\", \"\", IF(VLOOKUP(EY148,'Footnotes list'!$D$9:$E$58,2,FALSE)=0,\"\",VLOOKUP(EY148,'Footnotes list'!$D$9:$E$58,2,FALSE) ) )","v":""}]
[null,null,"E37","ANC","ancillary activities",null,null,null,null,null,{"$f":"IF(TRIM(J149)=\"\", \"\", IF(VLOOKUP(J149,'Footnotes list'!$D$9:$E$58,2,FALSE)=0,\"\",VLOOKUP(J149,'Footnotes list'!$D$9:$E$58,2,FALSE) ) )","v":""},null,null,null,null,{"$f":"IF(TRIM(O149)=\"\", \"\", IF(VLOOKUP(O149,'Footnotes list'!$D$9:$E$58,2,FALSE)=0,\"\",VLOOKUP(O149,'Footnotes list'!$D$9:$E$58,2,FALSE) ) )","v":""},null,null,null,null,{"$f":"IF(TRIM(T149)=\"\", \"\", IF(VLOOKUP(T149,'Footnotes list'!$D$9:$E$58,2,FALSE)=0,\"\",VLOOKUP(T149,'Footnotes list'!$D$9:$E$58,2,FALSE) ) )","v":""},null,null,null,null,{"$f":"IF(TRIM(Y149)=\"\", \"\", IF(VLOOKUP(Y149,'Footnotes list'!$D$9:$E$58,2,FALSE)=0,\"\",VLOOKUP(Y149,'Footnotes list'!$D$9:$E$58,2,FALSE) ) )","v":""},null,null,null,null,{"$f":"IF(TRIM(AD149)=\"\", \"\", IF(VLOOKUP(AD149,'Footnotes list'!$D$9:$E$58,2,FALSE)=0,\"\",VLOOKUP(AD149,'Footnotes list'!$D$9:$E$58,2,FALSE) ) )","v":""},null,null,null,null,{"$f":"IF(TRIM(AI149)=\"\", \"\", IF(VLOOKUP(AI149,'Footnotes list'!$D$9:$E$58,2,FALSE)=0,\"\",VLOOKUP(AI149,'Footnotes list'!$D$9:$E$58,2,FALSE) ) )","v":""},null,null,null,null,{"$f":"IF(TRIM(AN149)=\"\", \"\", IF(VLOOKUP(AN149,'Footnotes list'!$D$9:$E$58,2,FALSE)=0,\"\",VLOOKUP(AN149,'Footnotes list'!$D$9:$E$58,2,FALSE) ) )","v":""},null,null,null,null,{"$f":"IF(TRIM(AS149)=\"\", \"\", IF(VLOOKUP(AS149,'Footnotes list'!$D$9:$E$58,2,FALSE)=0,\"\",VLOOKUP(AS149,'Footnotes list'!$D$9:$E$58,2,FALSE) ) )","v":""},null,null,null,null,{"$f":"IF(TRIM(AX149)=\"\", \"\", IF(VLOOKUP(AX149,'Footnotes list'!$D$9:$E$58,2,FALSE)=0,\"\",VLOOKUP(AX149,'Footnotes list'!$D$9:$E$58,2,FALSE) ) )","v":""},null,null,null,null,{"$f":"IF(TRIM(BC149)=\"\", \"\", IF(VLOOKUP(BC149,'Footnotes list'!$D$9:$E$58,2,FALSE)=0,\"\",VLOOKUP(BC149,'Footnotes list'!$D$9:$E$58,2,FALSE) ) )","v":""},null,null,null,null,{"$f":"IF(TRIM(BH149)=\"\", \"\", IF(VLOOKUP(BH149,'Footnotes list'!$D$9:$E$58,2,FALSE)=0,\"\",VLOOKUP(BH149,'Footnotes list'!$D$9:$E$58,2,FALSE) ) )","v":""},null,null,null,null,{"$f":"IF(TRIM(BM149)=\"\", \"\", IF(VLOOKUP(BM149,'Footnotes list'!$D$9:$E$58,2,FALSE)=0,\"\",VLOOKUP(BM149,'Footnotes list'!$D$9:$E$58,2,FALSE) ) )","v":""},null,null,null,null,{"$f":"IF(TRIM(BR149)=\"\", \"\", IF(VLOOKUP(BR149,'Footnotes list'!$D$9:$E$58,2,FALSE)=0,\"\",VLOOKUP(BR149,'Footnotes list'!$D$9:$E$58,2,FALSE) ) )","v":""},null,null,null,null,{"$f":"IF(TRIM(BW149)=\"\", \"\", IF(VLOOKUP(BW149,'Footnotes list'!$D$9:$E$58,2,FALSE)=0,\"\",VLOOKUP(BW149,'Footnotes list'!$D$9:$E$58,2,FALSE) ) )","v":""},null,null,null,null,{"$f":"IF(TRIM(CB149)=\"\", \"\", IF(VLOOKUP(CB149,'Footnotes list'!$D$9:$E$58,2,FALSE)=0,\"\",VLOOKUP(CB149,'Footnotes list'!$D$9:$E$58,2,FALSE) ) )","v":""},null,null,null,null,{"$f":"IF(TRIM(CG149)=\"\", \"\", IF(VLOOKUP(CG149,'Footnotes list'!$D$9:$E$58,2,FALSE)=0,\"\",VLOOKUP(CG149,'Footnotes list'!$D$9:$E$58,2,FALSE) ) )","v":""},null,null,null,null,{"$f":"IF(TRIM(CL149)=\"\", \"\", IF(VLOOKUP(CL149,'Footnotes list'!$D$9:$E$58,2,FALSE)=0,\"\",VLOOKUP(CL149,'Footnotes list'!$D$9:$E$58,2,FALSE) ) )","v":""},null,null,null,null,{"$f":"IF(TRIM(CQ149)=\"\", \"\", IF(VLOOKUP(CQ149,'Footnotes list'!$D$9:$E$58,2,FALSE)=0,\"\",VLOOKUP(CQ149,'Footnotes list'!$D$9:$E$58,2,FALSE) ) )","v":""},null,null,null,null,{"$f":"IF(TRIM(CV149)=\"\", \"\", IF(VLOOKUP(CV149,'Footnotes list'!$D$9:$E$58,2,FALSE)=0,\"\",VLOOKUP(CV149,'Footnotes list'!$D$9:$E$58,2,FALSE) ) )","v":""},null,null,null,null,{"$f":"IF(TRIM(DA149)=\"\", \"\", IF(VLOOKUP(DA149,'Footnotes list'!$D$9:$E$58,2,FALSE)=0,\"\",VLOOKUP(DA149,'Footnotes list'!$D$9:$E$58,2,FALSE) ) )","v":""},null,null,null,null,{"$f":"IF(TRIM(DF149)=\"\", \"\", IF(VLOOKUP(DF149,'Footnotes list'!$D$9:$E$58,2,FALSE)=0,\"\",VLOOKUP(DF149,'Footnotes list'!$D$9:$E$58,2,FALSE) ) )","v":""},null,null,null,null,{"$f":"IF(TRIM(DK149)=\"\", \"\", IF(VLOOKUP(DK149,'Footnotes list'!$D$9:$E$58,2,FALSE)=0,\"\",VLOOKUP(DK149,'Footnotes list'!$D$9:$E$58,2,FALSE) ) )","v":""},null,null,null,null,{"$f":"IF(TRIM(DP149)=\"\", \"\", IF(VLOOKUP(DP149,'Footnotes list'!$D$9:$E$58,2,FALSE)=0,\"\",VLOOKUP(DP149,'Footnotes list'!$D$9:$E$58,2,FALSE) ) )","v":""},null,null,null,null,{"$f":"IF(TRIM(DU149)=\"\", \"\", IF(VLOOKUP(DU149,'Footnotes list'!$D$9:$E$58,2,FALSE)=0,\"\",VLOOKUP(DU149,'Footnotes list'!$D$9:$E$58,2,FALSE) ) )","v":""},null,null,null,null,{"$f":"IF(TRIM(DZ149)=\"\", \"\", IF(VLOOKUP(DZ149,'Footnotes list'!$D$9:$E$58,2,FALSE)=0,\"\",VLOOKUP(DZ149,'Footnotes list'!$D$9:$E$58,2,FALSE) ) )","v":""},null,null,null,null,{"$f":"IF(TRIM(EE149)=\"\", \"\", IF(VLOOKUP(EE149,'Footnotes list'!$D$9:$E$58,2,FALSE)=0,\"\",VLOOKUP(EE149,'Footnotes list'!$D$9:$E$58,2,FALSE) ) )","v":""},null,null,null,null,{"$f":"IF(TRIM(EJ149)=\"\", \"\", IF(VLOOKUP(EJ149,'Footnotes list'!$D$9:$E$58,2,FALSE)=0,\"\",VLOOKUP(EJ149,'Footnotes list'!$D$9:$E$58,2,FALSE) ) )","v":""},null,null,null,null,{"$f":"IF(TRIM(EO149)=\"\", \"\", IF(VLOOKUP(EO149,'Footnotes list'!$D$9:$E$58,2,FALSE)=0,\"\",VLOOKUP(EO149,'Footnotes list'!$D$9:$E$58,2,FALSE) ) )","v":""},null,null,null,null,{"$f":"IF(TRIM(ET149)=\"\", \"\", IF(VLOOKUP(ET149,'Footnotes list'!$D$9:$E$58,2,FALSE)=0,\"\",VLOOKUP(ET149,'Footnotes list'!$D$9:$E$58,2,FALSE) ) )","v":""},null,null,null,null,{"$f":"IF(TRIM(EY149)=\"\", \"\", IF(VLOOKUP(EY149,'Footnotes list'!$D$9:$E$58,2,FALSE)=0,\"\",VLOOKUP(EY149,'Footnotes list'!$D$9:$E$58,2,FALSE) ) )","v":""}]
[null,null,"E37","NMKT","non-market activities",null,null,null,null,null,{"$f":"IF(TRIM(J150)=\"\", \"\", IF(VLOOKUP(J150,'Footnotes list'!$D$9:$E$58,2,FALSE)=0,\"\",VLOOKUP(J150,'Footnotes list'!$D$9:$E$58,2,FALSE) ) )","v":""},null,null,null,null,{"$f":"IF(TRIM(O150)=\"\", \"\", IF(VLOOKUP(O150,'Footnotes list'!$D$9:$E$58,2,FALSE)=0,\"\",VLOOKUP(O150,'Footnotes list'!$D$9:$E$58,2,FALSE) ) )","v":""},null,null,null,null,{"$f":"IF(TRIM(T150)=\"\", \"\", IF(VLOOKUP(T150,'Footnotes list'!$D$9:$E$58,2,FALSE)=0,\"\",VLOOKUP(T150,'Footnotes list'!$D$9:$E$58,2,FALSE) ) )","v":""},null,null,null,null,{"$f":"IF(TRIM(Y150)=\"\", \"\", IF(VLOOKUP(Y150,'Footnotes list'!$D$9:$E$58,2,FALSE)=0,\"\",VLOOKUP(Y150,'Footnotes list'!$D$9:$E$58,2,FALSE) ) )","v":""},null,null,null,null,{"$f":"IF(TRIM(AD150)=\"\", \"\", IF(VLOOKUP(AD150,'Footnotes list'!$D$9:$E$58,2,FALSE)=0,\"\",VLOOKUP(AD150,'Footnotes list'!$D$9:$E$58,2,FALSE) ) )","v":""},null,null,null,null,{"$f":"IF(TRIM(AI150)=\"\", \"\", IF(VLOOKUP(AI150,'Footnotes list'!$D$9:$E$58,2,FALSE)=0,\"\",VLOOKUP(AI150,'Footnotes list'!$D$9:$E$58,2,FALSE) ) )","v":""},null,null,null,null,{"$f":"IF(TRIM(AN150)=\"\", \"\", IF(VLOOKUP(AN150,'Footnotes list'!$D$9:$E$58,2,FALSE)=0,\"\",VLOOKUP(AN150,'Footnotes list'!$D$9:$E$58,2,FALSE) ) )","v":""},null,null,null,null,{"$f":"IF(TRIM(AS150)=\"\", \"\", IF(VLOOKUP(AS150,'Footnotes list'!$D$9:$E$58,2,FALSE)=0,\"\",VLOOKUP(AS150,'Footnotes list'!$D$9:$E$58,2,FALSE) ) )","v":""},null,null,null,null,{"$f":"IF(TRIM(AX150)=\"\", \"\", IF(VLOOKUP(AX150,'Footnotes list'!$D$9:$E$58,2,FALSE)=0,\"\",VLOOKUP(AX150,'Footnotes list'!$D$9:$E$58,2,FALSE) ) )","v":""},null,null,null,null,{"$f":"IF(TRIM(BC150)=\"\", \"\", IF(VLOOKUP(BC150,'Footnotes list'!$D$9:$E$58,2,FALSE)=0,\"\",VLOOKUP(BC150,'Footnotes list'!$D$9:$E$58,2,FALSE) ) )","v":""},null,null,null,null,{"$f":"IF(TRIM(BH150)=\"\", \"\", IF(VLOOKUP(BH150,'Footnotes list'!$D$9:$E$58,2,FALSE)=0,\"\",VLOOKUP(BH150,'Footnotes list'!$D$9:$E$58,2,FALSE) ) )","v":""},null,null,null,null,{"$f":"IF(TRIM(BM150)=\"\", \"\", IF(VLOOKUP(BM150,'Footnotes list'!$D$9:$E$58,2,FALSE)=0,\"\",VLOOKUP(BM150,'Footnotes list'!$D$9:$E$58,2,FALSE) ) )","v":""},null,null,null,null,{"$f":"IF(TRIM(BR150)=\"\", \"\", IF(VLOOKUP(BR150,'Footnotes list'!$D$9:$E$58,2,FALSE)=0,\"\",VLOOKUP(BR150,'Footnotes list'!$D$9:$E$58,2,FALSE) ) )","v":""},null,null,null,null,{"$f":"IF(TRIM(BW150)=\"\", \"\", IF(VLOOKUP(BW150,'Footnotes list'!$D$9:$E$58,2,FALSE)=0,\"\",VLOOKUP(BW150,'Footnotes list'!$D$9:$E$58,2,FALSE) ) )","v":""},null,null,null,null,{"$f":"IF(TRIM(CB150)=\"\", \"\", IF(VLOOKUP(CB150,'Footnotes list'!$D$9:$E$58,2,FALSE)=0,\"\",VLOOKUP(CB150,'Footnotes list'!$D$9:$E$58,2,FALSE) ) )","v":""},null,null,null,null,{"$f":"IF(TRIM(CG150)=\"\", \"\", IF(VLOOKUP(CG150,'Footnotes list'!$D$9:$E$58,2,FALSE)=0,\"\",VLOOKUP(CG150,'Footnotes list'!$D$9:$E$58,2,FALSE) ) )","v":""},null,null,null,null,{"$f":"IF(TRIM(CL150)=\"\", \"\", IF(VLOOKUP(CL150,'Footnotes list'!$D$9:$E$58,2,FALSE)=0,\"\",VLOOKUP(CL150,'Footnotes list'!$D$9:$E$58,2,FALSE) ) )","v":""},null,null,null,null,{"$f":"IF(TRIM(CQ150)=\"\", \"\", IF(VLOOKUP(CQ150,'Footnotes list'!$D$9:$E$58,2,FALSE)=0,\"\",VLOOKUP(CQ150,'Footnotes list'!$D$9:$E$58,2,FALSE) ) )","v":""},null,null,null,null,{"$f":"IF(TRIM(CV150)=\"\", \"\", IF(VLOOKUP(CV150,'Footnotes list'!$D$9:$E$58,2,FALSE)=0,\"\",VLOOKUP(CV150,'Footnotes list'!$D$9:$E$58,2,FALSE) ) )","v":""},null,null,null,null,{"$f":"IF(TRIM(DA150)=\"\", \"\", IF(VLOOKUP(DA150,'Footnotes list'!$D$9:$E$58,2,FALSE)=0,\"\",VLOOKUP(DA150,'Footnotes list'!$D$9:$E$58,2,FALSE) ) )","v":""},null,null,null,null,{"$f":"IF(TRIM(DF150)=\"\", \"\", IF(VLOOKUP(DF150,'Footnotes list'!$D$9:$E$58,2,FALSE)=0,\"\",VLOOKUP(DF150,'Footnotes list'!$D$9:$E$58,2,FALSE) ) )","v":""},null,null,null,null,{"$f":"IF(TRIM(DK150)=\"\", \"\", IF(VLOOKUP(DK150,'Footnotes list'!$D$9:$E$58,2,FALSE)=0,\"\",VLOOKUP(DK150,'Footnotes list'!$D$9:$E$58,2,FALSE) ) )","v":""},null,null,null,null,{"$f":"IF(TRIM(DP150)=\"\", \"\", IF(VLOOKUP(DP150,'Footnotes list'!$D$9:$E$58,2,FALSE)=0,\"\",VLOOKUP(DP150,'Footnotes list'!$D$9:$E$58,2,FALSE) ) )","v":""},null,null,null,null,{"$f":"IF(TRIM(DU150)=\"\", \"\", IF(VLOOKUP(DU150,'Footnotes list'!$D$9:$E$58,2,FALSE)=0,\"\",VLOOKUP(DU150,'Footnotes list'!$D$9:$E$58,2,FALSE) ) )","v":""},null,null,null,null,{"$f":"IF(TRIM(DZ150)=\"\", \"\", IF(VLOOKUP(DZ150,'Footnotes list'!$D$9:$E$58,2,FALSE)=0,\"\",VLOOKUP(DZ150,'Footnotes list'!$D$9:$E$58,2,FALSE) ) )","v":""},null,null,null,null,{"$f":"IF(TRIM(EE150)=\"\", \"\", IF(VLOOKUP(EE150,'Footnotes list'!$D$9:$E$58,2,FALSE)=0,\"\",VLOOKUP(EE150,'Footnotes list'!$D$9:$E$58,2,FALSE) ) )","v":""},null,null,null,null,{"$f":"IF(TRIM(EJ150)=\"\", \"\", IF(VLOOKUP(EJ150,'Footnotes list'!$D$9:$E$58,2,FALSE)=0,\"\",VLOOKUP(EJ150,'Footnotes list'!$D$9:$E$58,2,FALSE) ) )","v":""},null,null,null,null,{"$f":"IF(TRIM(EO150)=\"\", \"\", IF(VLOOKUP(EO150,'Footnotes list'!$D$9:$E$58,2,FALSE)=0,\"\",VLOOKUP(EO150,'Footnotes list'!$D$9:$E$58,2,FALSE) ) )","v":""},null,null,null,null,{"$f":"IF(TRIM(ET150)=\"\", \"\", IF(VLOOKUP(ET150,'Footnotes list'!$D$9:$E$58,2,FALSE)=0,\"\",VLOOKUP(ET150,'Footnotes list'!$D$9:$E$58,2,FALSE) ) )","v":""},null,null,null,null,{"$f":"IF(TRIM(EY150)=\"\", \"\", IF(VLOOKUP(EY150,'Footnotes list'!$D$9:$E$58,2,FALSE)=0,\"\",VLOOKUP(EY150,'Footnotes list'!$D$9:$E$58,2,FALSE) ) )","v":""}]
[null,null,"E37","OWN_USE","activities for own final use",null,null,null,null,null,{"$f":"IF(TRIM(J151)=\"\", \"\", IF(VLOOKUP(J151,'Footnotes list'!$D$9:$E$58,2,FALSE)=0,\"\",VLOOKUP(J151,'Footnotes list'!$D$9:$E$58,2,FALSE) ) )","v":""},null,null,null,null,{"$f":"IF(TRIM(O151)=\"\", \"\", IF(VLOOKUP(O151,'Footnotes list'!$D$9:$E$58,2,FALSE)=0,\"\",VLOOKUP(O151,'Footnotes list'!$D$9:$E$58,2,FALSE) ) )","v":""},null,null,null,null,{"$f":"IF(TRIM(T151)=\"\", \"\", IF(VLOOKUP(T151,'Footnotes list'!$D$9:$E$58,2,FALSE)=0,\"\",VLOOKUP(T151,'Footnotes list'!$D$9:$E$58,2,FALSE) ) )","v":""},null,null,null,null,{"$f":"IF(TRIM(Y151)=\"\", \"\", IF(VLOOKUP(Y151,'Footnotes list'!$D$9:$E$58,2,FALSE)=0,\"\",VLOOKUP(Y151,'Footnotes list'!$D$9:$E$58,2,FALSE) ) )","v":""},null,null,null,null,{"$f":"IF(TRIM(AD151)=\"\", \"\", IF(VLOOKUP(AD151,'Footnotes list'!$D$9:$E$58,2,FALSE)=0,\"\",VLOOKUP(AD151,'Footnotes list'!$D$9:$E$58,2,FALSE) ) )","v":""},null,null,null,null,{"$f":"IF(TRIM(AI151)=\"\", \"\", IF(VLOOKUP(AI151,'Footnotes list'!$D$9:$E$58,2,FALSE)=0,\"\",VLOOKUP(AI151,'Footnotes list'!$D$9:$E$58,2,FALSE) ) )","v":""},null,null,null,null,{"$f":"IF(TRIM(AN151)=\"\", \"\", IF(VLOOKUP(AN151,'Footnotes list'!$D$9:$E$58,2,FALSE)=0,\"\",VLOOKUP(AN151,'Footnotes list'!$D$9:$E$58,2,FALSE) ) )","v":""},null,null,null,null,{"$f":"IF(TRIM(AS151)=\"\", \"\", IF(VLOOKUP(AS151,'Footnotes list'!$D$9:$E$58,2,FALSE)=0,\"\",VLOOKUP(AS151,'Footnotes list'!$D$9:$E$58,2,FALSE) ) )","v":""},null,null,null,null,{"$f":"IF(TRIM(AX151)=\"\", \"\", IF(VLOOKUP(AX151,'Footnotes list'!$D$9:$E$58,2,FALSE)=0,\"\",VLOOKUP(AX151,'Footnotes list'!$D$9:$E$58,2,FALSE) ) )","v":""},null,null,null,null,{"$f":"IF(TRIM(BC151)=\"\", \"\", IF(VLOOKUP(BC151,'Footnotes list'!$D$9:$E$58,2,FALSE)=0,\"\",VLOOKUP(BC151,'Footnotes list'!$D$9:$E$58,2,FALSE) ) )","v":""},null,null,null,null,{"$f":"IF(TRIM(BH151)=\"\", \"\", IF(VLOOKUP(BH151,'Footnotes list'!$D$9:$E$58,2,FALSE)=0,\"\",VLOOKUP(BH151,'Footnotes list'!$D$9:$E$58,2,FALSE) ) )","v":""},null,null,null,null,{"$f":"IF(TRIM(BM151)=\"\", \"\", IF(VLOOKUP(BM151,'Footnotes list'!$D$9:$E$58,2,FALSE)=0,\"\",VLOOKUP(BM151,'Footnotes list'!$D$9:$E$58,2,FALSE) ) )","v":""},null,null,null,null,{"$f":"IF(TRIM(BR151)=\"\", \"\", IF(VLOOKUP(BR151,'Footnotes list'!$D$9:$E$58,2,FALSE)=0,\"\",VLOOKUP(BR151,'Footnotes list'!$D$9:$E$58,2,FALSE) ) )","v":""},null,null,null,null,{"$f":"IF(TRIM(BW151)=\"\", \"\", IF(VLOOKUP(BW151,'Footnotes list'!$D$9:$E$58,2,FALSE)=0,\"\",VLOOKUP(BW151,'Footnotes list'!$D$9:$E$58,2,FALSE) ) )","v":""},null,null,null,null,{"$f":"IF(TRIM(CB151)=\"\", \"\", IF(VLOOKUP(CB151,'Footnotes list'!$D$9:$E$58,2,FALSE)=0,\"\",VLOOKUP(CB151,'Footnotes list'!$D$9:$E$58,2,FALSE) ) )","v":""},null,null,null,null,{"$f":"IF(TRIM(CG151)=\"\", \"\", IF(VLOOKUP(CG151,'Footnotes list'!$D$9:$E$58,2,FALSE)=0,\"\",VLOOKUP(CG151,'Footnotes list'!$D$9:$E$58,2,FALSE) ) )","v":""},null,null,null,null,{"$f":"IF(TRIM(CL151)=\"\", \"\", IF(VLOOKUP(CL151,'Footnotes list'!$D$9:$E$58,2,FALSE)=0,\"\",VLOOKUP(CL151,'Footnotes list'!$D$9:$E$58,2,FALSE) ) )","v":""},null,null,null,null,{"$f":"IF(TRIM(CQ151)=\"\", \"\", IF(VLOOKUP(CQ151,'Footnotes list'!$D$9:$E$58,2,FALSE)=0,\"\",VLOOKUP(CQ151,'Footnotes list'!$D$9:$E$58,2,FALSE) ) )","v":""},null,null,null,null,{"$f":"IF(TRIM(CV151)=\"\", \"\", IF(VLOOKUP(CV151,'Footnotes list'!$D$9:$E$58,2,FALSE)=0,\"\",VLOOKUP(CV151,'Footnotes list'!$D$9:$E$58,2,FALSE) ) )","v":""},null,null,null,null,{"$f":"IF(TRIM(DA151)=\"\", \"\", IF(VLOOKUP(DA151,'Footnotes list'!$D$9:$E$58,2,FALSE)=0,\"\",VLOOKUP(DA151,'Footnotes list'!$D$9:$E$58,2,FALSE) ) )","v":""},null,null,null,null,{"$f":"IF(TRIM(DF151)=\"\", \"\", IF(VLOOKUP(DF151,'Footnotes list'!$D$9:$E$58,2,FALSE)=0,\"\",VLOOKUP(DF151,'Footnotes list'!$D$9:$E$58,2,FALSE) ) )","v":""},null,null,null,null,{"$f":"IF(TRIM(DK151)=\"\", \"\", IF(VLOOKUP(DK151,'Footnotes list'!$D$9:$E$58,2,FALSE)=0,\"\",VLOOKUP(DK151,'Footnotes list'!$D$9:$E$58,2,FALSE) ) )","v":""},null,null,null,null,{"$f":"IF(TRIM(DP151)=\"\", \"\", IF(VLOOKUP(DP151,'Footnotes list'!$D$9:$E$58,2,FALSE)=0,\"\",VLOOKUP(DP151,'Footnotes list'!$D$9:$E$58,2,FALSE) ) )","v":""},null,null,null,null,{"$f":"IF(TRIM(DU151)=\"\", \"\", IF(VLOOKUP(DU151,'Footnotes list'!$D$9:$E$58,2,FALSE)=0,\"\",VLOOKUP(DU151,'Footnotes list'!$D$9:$E$58,2,FALSE) ) )","v":""},null,null,null,null,{"$f":"IF(TRIM(DZ151)=\"\", \"\", IF(VLOOKUP(DZ151,'Footnotes list'!$D$9:$E$58,2,FALSE)=0,\"\",VLOOKUP(DZ151,'Footnotes list'!$D$9:$E$58,2,FALSE) ) )","v":""},null,null,null,null,{"$f":"IF(TRIM(EE151)=\"\", \"\", IF(VLOOKUP(EE151,'Footnotes list'!$D$9:$E$58,2,FALSE)=0,\"\",VLOOKUP(EE151,'Footnotes list'!$D$9:$E$58,2,FALSE) ) )","v":""},null,null,null,null,{"$f":"IF(TRIM(EJ151)=\"\", \"\", IF(VLOOKUP(EJ151,'Footnotes list'!$D$9:$E$58,2,FALSE)=0,\"\",VLOOKUP(EJ151,'Footnotes list'!$D$9:$E$58,2,FALSE) ) )","v":""},null,null,null,null,{"$f":"IF(TRIM(EO151)=\"\", \"\", IF(VLOOKUP(EO151,'Footnotes list'!$D$9:$E$58,2,FALSE)=0,\"\",VLOOKUP(EO151,'Footnotes list'!$D$9:$E$58,2,FALSE) ) )","v":""},null,null,null,null,{"$f":"IF(TRIM(ET151)=\"\", \"\", IF(VLOOKUP(ET151,'Footnotes list'!$D$9:$E$58,2,FALSE)=0,\"\",VLOOKUP(ET151,'Footnotes list'!$D$9:$E$58,2,FALSE) ) )","v":""},null,null,null,null,{"$f":"IF(TRIM(EY151)=\"\", \"\", IF(VLOOKUP(EY151,'Footnotes list'!$D$9:$E$58,2,FALSE)=0,\"\",VLOOKUP(EY151,'Footnotes list'!$D$9:$E$58,2,FALSE) ) )","v":""}]
[null,null,"E37","MKT","market activities, including:",null,null,null,null,null,{"$f":"IF(TRIM(J152)=\"\", \"\", IF(VLOOKUP(J152,'Footnotes list'!$D$9:$E$58,2,FALSE)=0,\"\",VLOOKUP(J152,'Footnotes list'!$D$9:$E$58,2,FALSE) ) )","v":""},null,null,null,null,{"$f":"IF(TRIM(O152)=\"\", \"\", IF(VLOOKUP(O152,'Footnotes list'!$D$9:$E$58,2,FALSE)=0,\"\",VLOOKUP(O152,'Footnotes list'!$D$9:$E$58,2,FALSE) ) )","v":""},null,null,null,null,{"$f":"IF(TRIM(T152)=\"\", \"\", IF(VLOOKUP(T152,'Footnotes list'!$D$9:$E$58,2,FALSE)=0,\"\",VLOOKUP(T152,'Footnotes list'!$D$9:$E$58,2,FALSE) ) )","v":""},null,null,null,null,{"$f":"IF(TRIM(Y152)=\"\", \"\", IF(VLOOKUP(Y152,'Footnotes list'!$D$9:$E$58,2,FALSE)=0,\"\",VLOOKUP(Y152,'Footnotes list'!$D$9:$E$58,2,FALSE) ) )","v":""},null,null,null,null,{"$f":"IF(TRIM(AD152)=\"\", \"\", IF(VLOOKUP(AD152,'Footnotes list'!$D$9:$E$58,2,FALSE)=0,\"\",VLOOKUP(AD152,'Footnotes list'!$D$9:$E$58,2,FALSE) ) )","v":""},null,null,null,null,{"$f":"IF(TRIM(AI152)=\"\", \"\", IF(VLOOKUP(AI152,'Footnotes list'!$D$9:$E$58,2,FALSE)=0,\"\",VLOOKUP(AI152,'Footnotes list'!$D$9:$E$58,2,FALSE) ) )","v":""},null,null,null,null,{"$f":"IF(TRIM(AN152)=\"\", \"\", IF(VLOOKUP(AN152,'Footnotes list'!$D$9:$E$58,2,FALSE)=0,\"\",VLOOKUP(AN152,'Footnotes list'!$D$9:$E$58,2,FALSE) ) )","v":""},null,null,null,null,{"$f":"IF(TRIM(AS152)=\"\", \"\", IF(VLOOKUP(AS152,'Footnotes list'!$D$9:$E$58,2,FALSE)=0,\"\",VLOOKUP(AS152,'Footnotes list'!$D$9:$E$58,2,FALSE) ) )","v":""},null,null,null,null,{"$f":"IF(TRIM(AX152)=\"\", \"\", IF(VLOOKUP(AX152,'Footnotes list'!$D$9:$E$58,2,FALSE)=0,\"\",VLOOKUP(AX152,'Footnotes list'!$D$9:$E$58,2,FALSE) ) )","v":""},null,null,null,null,{"$f":"IF(TRIM(BC152)=\"\", \"\", IF(VLOOKUP(BC152,'Footnotes list'!$D$9:$E$58,2,FALSE)=0,\"\",VLOOKUP(BC152,'Footnotes list'!$D$9:$E$58,2,FALSE) ) )","v":""},null,null,null,null,{"$f":"IF(TRIM(BH152)=\"\", \"\", IF(VLOOKUP(BH152,'Footnotes list'!$D$9:$E$58,2,FALSE)=0,\"\",VLOOKUP(BH152,'Footnotes list'!$D$9:$E$58,2,FALSE) ) )","v":""},null,null,null,null,{"$f":"IF(TRIM(BM152)=\"\", \"\", IF(VLOOKUP(BM152,'Footnotes list'!$D$9:$E$58,2,FALSE)=0,\"\",VLOOKUP(BM152,'Footnotes list'!$D$9:$E$58,2,FALSE) ) )","v":""},null,null,null,null,{"$f":"IF(TRIM(BR152)=\"\", \"\", IF(VLOOKUP(BR152,'Footnotes list'!$D$9:$E$58,2,FALSE)=0,\"\",VLOOKUP(BR152,'Footnotes list'!$D$9:$E$58,2,FALSE) ) )","v":""},null,null,null,null,{"$f":"IF(TRIM(BW152)=\"\", \"\", IF(VLOOKUP(BW152,'Footnotes list'!$D$9:$E$58,2,FALSE)=0,\"\",VLOOKUP(BW152,'Footnotes list'!$D$9:$E$58,2,FALSE) ) )","v":""},null,null,null,null,{"$f":"IF(TRIM(CB152)=\"\", \"\", IF(VLOOKUP(CB152,'Footnotes list'!$D$9:$E$58,2,FALSE)=0,\"\",VLOOKUP(CB152,'Footnotes list'!$D$9:$E$58,2,FALSE) ) )","v":""},null,null,null,null,{"$f":"IF(TRIM(CG152)=\"\", \"\", IF(VLOOKUP(CG152,'Footnotes list'!$D$9:$E$58,2,FALSE)=0,\"\",VLOOKUP(CG152,'Footnotes list'!$D$9:$E$58,2,FALSE) ) )","v":""},null,null,null,null,{"$f":"IF(TRIM(CL152)=\"\", \"\", IF(VLOOKUP(CL152,'Footnotes list'!$D$9:$E$58,2,FALSE)=0,\"\",VLOOKUP(CL152,'Footnotes list'!$D$9:$E$58,2,FALSE) ) )","v":""},null,null,null,null,{"$f":"IF(TRIM(CQ152)=\"\", \"\", IF(VLOOKUP(CQ152,'Footnotes list'!$D$9:$E$58,2,FALSE)=0,\"\",VLOOKUP(CQ152,'Footnotes list'!$D$9:$E$58,2,FALSE) ) )","v":""},null,null,null,null,{"$f":"IF(TRIM(CV152)=\"\", \"\", IF(VLOOKUP(CV152,'Footnotes list'!$D$9:$E$58,2,FALSE)=0,\"\",VLOOKUP(CV152,'Footnotes list'!$D$9:$E$58,2,FALSE) ) )","v":""},null,null,null,null,{"$f":"IF(TRIM(DA152)=\"\", \"\", IF(VLOOKUP(DA152,'Footnotes list'!$D$9:$E$58,2,FALSE)=0,\"\",VLOOKUP(DA152,'Footnotes list'!$D$9:$E$58,2,FALSE) ) )","v":""},null,null,null,null,{"$f":"IF(TRIM(DF152)=\"\", \"\", IF(VLOOKUP(DF152,'Footnotes list'!$D$9:$E$58,2,FALSE)=0,\"\",VLOOKUP(DF152,'Footnotes list'!$D$9:$E$58,2,FALSE) ) )","v":""},null,null,null,null,{"$f":"IF(TRIM(DK152)=\"\", \"\", IF(VLOOKUP(DK152,'Footnotes list'!$D$9:$E$58,2,FALSE)=0,\"\",VLOOKUP(DK152,'Footnotes list'!$D$9:$E$58,2,FALSE) ) )","v":""},null,null,null,null,{"$f":"IF(TRIM(DP152)=\"\", \"\", IF(VLOOKUP(DP152,'Footnotes list'!$D$9:$E$58,2,FALSE)=0,\"\",VLOOKUP(DP152,'Footnotes list'!$D$9:$E$58,2,FALSE) ) )","v":""},null,null,null,null,{"$f":"IF(TRIM(DU152)=\"\", \"\", IF(VLOOKUP(DU152,'Footnotes list'!$D$9:$E$58,2,FALSE)=0,\"\",VLOOKUP(DU152,'Footnotes list'!$D$9:$E$58,2,FALSE) ) )","v":""},null,null,null,null,{"$f":"IF(TRIM(DZ152)=\"\", \"\", IF(VLOOKUP(DZ152,'Footnotes list'!$D$9:$E$58,2,FALSE)=0,\"\",VLOOKUP(DZ152,'Footnotes list'!$D$9:$E$58,2,FALSE) ) )","v":""},null,null,null,null,{"$f":"IF(TRIM(EE152)=\"\", \"\", IF(VLOOKUP(EE152,'Footnotes list'!$D$9:$E$58,2,FALSE)=0,\"\",VLOOKUP(EE152,'Footnotes list'!$D$9:$E$58,2,FALSE) ) )","v":""},null,null,null,null,{"$f":"IF(TRIM(EJ152)=\"\", \"\", IF(VLOOKUP(EJ152,'Footnotes list'!$D$9:$E$58,2,FALSE)=0,\"\",VLOOKUP(EJ152,'Footnotes list'!$D$9:$E$58,2,FALSE) ) )","v":""},null,null,null,null,{"$f":"IF(TRIM(EO152)=\"\", \"\", IF(VLOOKUP(EO152,'Footnotes list'!$D$9:$E$58,2,FALSE)=0,\"\",VLOOKUP(EO152,'Footnotes list'!$D$9:$E$58,2,FALSE) ) )","v":""},null,null,null,null,{"$f":"IF(TRIM(ET152)=\"\", \"\", IF(VLOOKUP(ET152,'Footnotes list'!$D$9:$E$58,2,FALSE)=0,\"\",VLOOKUP(ET152,'Footnotes list'!$D$9:$E$58,2,FALSE) ) )","v":""},null,null,null,null,{"$f":"IF(TRIM(EY152)=\"\", \"\", IF(VLOOKUP(EY152,'Footnotes list'!$D$9:$E$58,2,FALSE)=0,\"\",VLOOKUP(EY152,'Footnotes list'!$D$9:$E$58,2,FALSE) ) )","v":""}]
[null,null,"E37","ES_CS","environmental specific services",null,null,null,null,null,{"$f":"IF(TRIM(J153)=\"\", \"\", IF(VLOOKUP(J153,'Footnotes list'!$D$9:$E$58,2,FALSE)=0,\"\",VLOOKUP(J153,'Footnotes list'!$D$9:$E$58,2,FALSE) ) )","v":""},null,null,null,null,{"$f":"IF(TRIM(O153)=\"\", \"\", IF(VLOOKUP(O153,'Footnotes list'!$D$9:$E$58,2,FALSE)=0,\"\",VLOOKUP(O153,'Footnotes list'!$D$9:$E$58,2,FALSE) ) )","v":""},null,null,null,null,{"$f":"IF(TRIM(T153)=\"\", \"\", IF(VLOOKUP(T153,'Footnotes list'!$D$9:$E$58,2,FALSE)=0,\"\",VLOOKUP(T153,'Footnotes list'!$D$9:$E$58,2,FALSE) ) )","v":""},null,null,null,null,{"$f":"IF(TRIM(Y153)=\"\", \"\", IF(VLOOKUP(Y153,'Footnotes list'!$D$9:$E$58,2,FALSE)=0,\"\",VLOOKUP(Y153,'Footnotes list'!$D$9:$E$58,2,FALSE) ) )","v":""},null,null,null,null,{"$f":"IF(TRIM(AD153)=\"\", \"\", IF(VLOOKUP(AD153,'Footnotes list'!$D$9:$E$58,2,FALSE)=0,\"\",VLOOKUP(AD153,'Footnotes list'!$D$9:$E$58,2,FALSE) ) )","v":""},null,null,null,null,{"$f":"IF(TRIM(AI153)=\"\", \"\", IF(VLOOKUP(AI153,'Footnotes list'!$D$9:$E$58,2,FALSE)=0,\"\",VLOOKUP(AI153,'Footnotes list'!$D$9:$E$58,2,FALSE) ) )","v":""},null,null,null,null,{"$f":"IF(TRIM(AN153)=\"\", \"\", IF(VLOOKUP(AN153,'Footnotes list'!$D$9:$E$58,2,FALSE)=0,\"\",VLOOKUP(AN153,'Footnotes list'!$D$9:$E$58,2,FALSE) ) )","v":""},null,null,null,null,{"$f":"IF(TRIM(AS153)=\"\", \"\", IF(VLOOKUP(AS153,'Footnotes list'!$D$9:$E$58,2,FALSE)=0,\"\",VLOOKUP(AS153,'Footnotes list'!$D$9:$E$58,2,FALSE) ) )","v":""},null,null,null,null,{"$f":"IF(TRIM(AX153)=\"\", \"\", IF(VLOOKUP(AX153,'Footnotes list'!$D$9:$E$58,2,FALSE)=0,\"\",VLOOKUP(AX153,'Footnotes list'!$D$9:$E$58,2,FALSE) ) )","v":""},null,null,null,null,{"$f":"IF(TRIM(BC153)=\"\", \"\", IF(VLOOKUP(BC153,'Footnotes list'!$D$9:$E$58,2,FALSE)=0,\"\",VLOOKUP(BC153,'Footnotes list'!$D$9:$E$58,2,FALSE) ) )","v":""},null,null,null,null,{"$f":"IF(TRIM(BH153)=\"\", \"\", IF(VLOOKUP(BH153,'Footnotes list'!$D$9:$E$58,2,FALSE)=0,\"\",VLOOKUP(BH153,'Footnotes list'!$D$9:$E$58,2,FALSE) ) )","v":""},null,null,null,null,{"$f":"IF(TRIM(BM153)=\"\", \"\", IF(VLOOKUP(BM153,'Footnotes list'!$D$9:$E$58,2,FALSE)=0,\"\",VLOOKUP(BM153,'Footnotes list'!$D$9:$E$58,2,FALSE) ) )","v":""},null,null,null,null,{"$f":"IF(TRIM(BR153)=\"\", \"\", IF(VLOOKUP(BR153,'Footnotes list'!$D$9:$E$58,2,FALSE)=0,\"\",VLOOKUP(BR153,'Footnotes list'!$D$9:$E$58,2,FALSE) ) )","v":""},null,null,null,null,{"$f":"IF(TRIM(BW153)=\"\", \"\", IF(VLOOKUP(BW153,'Footnotes list'!$D$9:$E$58,2,FALSE)=0,\"\",VLOOKUP(BW153,'Footnotes list'!$D$9:$E$58,2,FALSE) ) )","v":""},null,null,null,null,{"$f":"IF(TRIM(CB153)=\"\", \"\", IF(VLOOKUP(CB153,'Footnotes list'!$D$9:$E$58,2,FALSE)=0,\"\",VLOOKUP(CB153,'Footnotes list'!$D$9:$E$58,2,FALSE) ) )","v":""},null,null,null,null,{"$f":"IF(TRIM(CG153)=\"\", \"\", IF(VLOOKUP(CG153,'Footnotes list'!$D$9:$E$58,2,FALSE)=0,\"\",VLOOKUP(CG153,'Footnotes list'!$D$9:$E$58,2,FALSE) ) )","v":""},null,null,null,null,{"$f":"IF(TRIM(CL153)=\"\", \"\", IF(VLOOKUP(CL153,'Footnotes list'!$D$9:$E$58,2,FALSE)=0,\"\",VLOOKUP(CL153,'Footnotes list'!$D$9:$E$58,2,FALSE) ) )","v":""},null,null,null,null,{"$f":"IF(TRIM(CQ153)=\"\", \"\", IF(VLOOKUP(CQ153,'Footnotes list'!$D$9:$E$58,2,FALSE)=0,\"\",VLOOKUP(CQ153,'Footnotes list'!$D$9:$E$58,2,FALSE) ) )","v":""},null,null,null,null,{"$f":"IF(TRIM(CV153)=\"\", \"\", IF(VLOOKUP(CV153,'Footnotes list'!$D$9:$E$58,2,FALSE)=0,\"\",VLOOKUP(CV153,'Footnotes list'!$D$9:$E$58,2,FALSE) ) )","v":""},null,null,null,null,{"$f":"IF(TRIM(DA153)=\"\", \"\", IF(VLOOKUP(DA153,'Footnotes list'!$D$9:$E$58,2,FALSE)=0,\"\",VLOOKUP(DA153,'Footnotes list'!$D$9:$E$58,2,FALSE) ) )","v":""},null,null,null,null,{"$f":"IF(TRIM(DF153)=\"\", \"\", IF(VLOOKUP(DF153,'Footnotes list'!$D$9:$E$58,2,FALSE)=0,\"\",VLOOKUP(DF153,'Footnotes list'!$D$9:$E$58,2,FALSE) ) )","v":""},null,null,null,null,{"$f":"IF(TRIM(DK153)=\"\", \"\", IF(VLOOKUP(DK153,'Footnotes list'!$D$9:$E$58,2,FALSE)=0,\"\",VLOOKUP(DK153,'Footnotes list'!$D$9:$E$58,2,FALSE) ) )","v":""},null,null,null,null,{"$f":"IF(TRIM(DP153)=\"\", \"\", IF(VLOOKUP(DP153,'Footnotes list'!$D$9:$E$58,2,FALSE)=0,\"\",VLOOKUP(DP153,'Footnotes list'!$D$9:$E$58,2,FALSE) ) )","v":""},null,null,null,null,{"$f":"IF(TRIM(DU153)=\"\", \"\", IF(VLOOKUP(DU153,'Footnotes list'!$D$9:$E$58,2,FALSE)=0,\"\",VLOOKUP(DU153,'Footnotes list'!$D$9:$E$58,2,FALSE) ) )","v":""},null,null,null,null,{"$f":"IF(TRIM(DZ153)=\"\", \"\", IF(VLOOKUP(DZ153,'Footnotes list'!$D$9:$E$58,2,FALSE)=0,\"\",VLOOKUP(DZ153,'Footnotes list'!$D$9:$E$58,2,FALSE) ) )","v":""},null,null,null,null,{"$f":"IF(TRIM(EE153)=\"\", \"\", IF(VLOOKUP(EE153,'Footnotes list'!$D$9:$E$58,2,FALSE)=0,\"\",VLOOKUP(EE153,'Footnotes list'!$D$9:$E$58,2,FALSE) ) )","v":""},null,null,null,null,{"$f":"IF(TRIM(EJ153)=\"\", \"\", IF(VLOOKUP(EJ153,'Footnotes list'!$D$9:$E$58,2,FALSE)=0,\"\",VLOOKUP(EJ153,'Footnotes list'!$D$9:$E$58,2,FALSE) ) )","v":""},null,null,null,null,{"$f":"IF(TRIM(EO153)=\"\", \"\", IF(VLOOKUP(EO153,'Footnotes list'!$D$9:$E$58,2,FALSE)=0,\"\",VLOOKUP(EO153,'Footnotes list'!$D$9:$E$58,2,FALSE) ) )","v":""},null,null,null,null,{"$f":"IF(TRIM(ET153)=\"\", \"\", IF(VLOOKUP(ET153,'Footnotes list'!$D$9:$E$58,2,FALSE)=0,\"\",VLOOKUP(ET153,'Footnotes list'!$D$9:$E$58,2,FALSE) ) )","v":""},null,null,null,null,{"$f":"IF(TRIM(EY153)=\"\", \"\", IF(VLOOKUP(EY153,'Footnotes list'!$D$9:$E$58,2,FALSE)=0,\"\",VLOOKUP(EY153,'Footnotes list'!$D$9:$E$58,2,FALSE) ) )","v":""}]
[null,null,"E37","C_REP","cleaner and resource efficient products",null,null,null,null,null,{"$f":"IF(TRIM(J154)=\"\", \"\", IF(VLOOKUP(J154,'Footnotes list'!$D$9:$E$58,2,FALSE)=0,\"\",VLOOKUP(J154,'Footnotes list'!$D$9:$E$58,2,FALSE) ) )","v":""},null,null,null,null,{"$f":"IF(TRIM(O154)=\"\", \"\", IF(VLOOKUP(O154,'Footnotes list'!$D$9:$E$58,2,FALSE)=0,\"\",VLOOKUP(O154,'Footnotes list'!$D$9:$E$58,2,FALSE) ) )","v":""},null,null,null,null,{"$f":"IF(TRIM(T154)=\"\", \"\", IF(VLOOKUP(T154,'Footnotes list'!$D$9:$E$58,2,FALSE)=0,\"\",VLOOKUP(T154,'Footnotes list'!$D$9:$E$58,2,FALSE) ) )","v":""},null,null,null,null,{"$f":"IF(TRIM(Y154)=\"\", \"\", IF(VLOOKUP(Y154,'Footnotes list'!$D$9:$E$58,2,FALSE)=0,\"\",VLOOKUP(Y154,'Footnotes list'!$D$9:$E$58,2,FALSE) ) )","v":""},null,null,null,null,{"$f":"IF(TRIM(AD154)=\"\", \"\", IF(VLOOKUP(AD154,'Footnotes list'!$D$9:$E$58,2,FALSE)=0,\"\",VLOOKUP(AD154,'Footnotes list'!$D$9:$E$58,2,FALSE) ) )","v":""},null,null,null,null,{"$f":"IF(TRIM(AI154)=\"\", \"\", IF(VLOOKUP(AI154,'Footnotes list'!$D$9:$E$58,2,FALSE)=0,\"\",VLOOKUP(AI154,'Footnotes list'!$D$9:$E$58,2,FALSE) ) )","v":""},null,null,null,null,{"$f":"IF(TRIM(AN154)=\"\", \"\", IF(VLOOKUP(AN154,'Footnotes list'!$D$9:$E$58,2,FALSE)=0,\"\",VLOOKUP(AN154,'Footnotes list'!$D$9:$E$58,2,FALSE) ) )","v":""},null,null,null,null,{"$f":"IF(TRIM(AS154)=\"\", \"\", IF(VLOOKUP(AS154,'Footnotes list'!$D$9:$E$58,2,FALSE)=0,\"\",VLOOKUP(AS154,'Footnotes list'!$D$9:$E$58,2,FALSE) ) )","v":""},null,null,null,null,{"$f":"IF(TRIM(AX154)=\"\", \"\", IF(VLOOKUP(AX154,'Footnotes list'!$D$9:$E$58,2,FALSE)=0,\"\",VLOOKUP(AX154,'Footnotes list'!$D$9:$E$58,2,FALSE) ) )","v":""},null,null,null,null,{"$f":"IF(TRIM(BC154)=\"\", \"\", IF(VLOOKUP(BC154,'Footnotes list'!$D$9:$E$58,2,FALSE)=0,\"\",VLOOKUP(BC154,'Footnotes list'!$D$9:$E$58,2,FALSE) ) )","v":""},null,null,null,null,{"$f":"IF(TRIM(BH154)=\"\", \"\", IF(VLOOKUP(BH154,'Footnotes list'!$D$9:$E$58,2,FALSE)=0,\"\",VLOOKUP(BH154,'Footnotes list'!$D$9:$E$58,2,FALSE) ) )","v":""},null,null,null,null,{"$f":"IF(TRIM(BM154)=\"\", \"\", IF(VLOOKUP(BM154,'Footnotes list'!$D$9:$E$58,2,FALSE)=0,\"\",VLOOKUP(BM154,'Footnotes list'!$D$9:$E$58,2,FALSE) ) )","v":""},null,null,null,null,{"$f":"IF(TRIM(BR154)=\"\", \"\", IF(VLOOKUP(BR154,'Footnotes list'!$D$9:$E$58,2,FALSE)=0,\"\",VLOOKUP(BR154,'Footnotes list'!$D$9:$E$58,2,FALSE) ) )","v":""},null,null,null,null,{"$f":"IF(TRIM(BW154)=\"\", \"\", IF(VLOOKUP(BW154,'Footnotes list'!$D$9:$E$58,2,FALSE)=0,\"\",VLOOKUP(BW154,'Footnotes list'!$D$9:$E$58,2,FALSE) ) )","v":""},null,null,null,null,{"$f":"IF(TRIM(CB154)=\"\", \"\", IF(VLOOKUP(CB154,'Footnotes list'!$D$9:$E$58,2,FALSE)=0,\"\",VLOOKUP(CB154,'Footnotes list'!$D$9:$E$58,2,FALSE) ) )","v":""},null,null,null,null,{"$f":"IF(TRIM(CG154)=\"\", \"\", IF(VLOOKUP(CG154,'Footnotes list'!$D$9:$E$58,2,FALSE)=0,\"\",VLOOKUP(CG154,'Footnotes list'!$D$9:$E$58,2,FALSE) ) )","v":""},null,null,null,null,{"$f":"IF(TRIM(CL154)=\"\", \"\", IF(VLOOKUP(CL154,'Footnotes list'!$D$9:$E$58,2,FALSE)=0,\"\",VLOOKUP(CL154,'Footnotes list'!$D$9:$E$58,2,FALSE) ) )","v":""},null,null,null,null,{"$f":"IF(TRIM(CQ154)=\"\", \"\", IF(VLOOKUP(CQ154,'Footnotes list'!$D$9:$E$58,2,FALSE)=0,\"\",VLOOKUP(CQ154,'Footnotes list'!$D$9:$E$58,2,FALSE) ) )","v":""},null,null,null,null,{"$f":"IF(TRIM(CV154)=\"\", \"\", IF(VLOOKUP(CV154,'Footnotes list'!$D$9:$E$58,2,FALSE)=0,\"\",VLOOKUP(CV154,'Footnotes list'!$D$9:$E$58,2,FALSE) ) )","v":""},null,null,null,null,{"$f":"IF(TRIM(DA154)=\"\", \"\", IF(VLOOKUP(DA154,'Footnotes list'!$D$9:$E$58,2,FALSE)=0,\"\",VLOOKUP(DA154,'Footnotes list'!$D$9:$E$58,2,FALSE) ) )","v":""},null,null,null,null,{"$f":"IF(TRIM(DF154)=\"\", \"\", IF(VLOOKUP(DF154,'Footnotes list'!$D$9:$E$58,2,FALSE)=0,\"\",VLOOKUP(DF154,'Footnotes list'!$D$9:$E$58,2,FALSE) ) )","v":""},null,null,null,null,{"$f":"IF(TRIM(DK154)=\"\", \"\", IF(VLOOKUP(DK154,'Footnotes list'!$D$9:$E$58,2,FALSE)=0,\"\",VLOOKUP(DK154,'Footnotes list'!$D$9:$E$58,2,FALSE) ) )","v":""},null,null,null,null,{"$f":"IF(TRIM(DP154)=\"\", \"\", IF(VLOOKUP(DP154,'Footnotes list'!$D$9:$E$58,2,FALSE)=0,\"\",VLOOKUP(DP154,'Footnotes list'!$D$9:$E$58,2,FALSE) ) )","v":""},null,null,null,null,{"$f":"IF(TRIM(DU154)=\"\", \"\", IF(VLOOKUP(DU154,'Footnotes list'!$D$9:$E$58,2,FALSE)=0,\"\",VLOOKUP(DU154,'Footnotes list'!$D$9:$E$58,2,FALSE) ) )","v":""},null,null,null,null,{"$f":"IF(TRIM(DZ154)=\"\", \"\", IF(VLOOKUP(DZ154,'Footnotes list'!$D$9:$E$58,2,FALSE)=0,\"\",VLOOKUP(DZ154,'Footnotes list'!$D$9:$E$58,2,FALSE) ) )","v":""},null,null,null,null,{"$f":"IF(TRIM(EE154)=\"\", \"\", IF(VLOOKUP(EE154,'Footnotes list'!$D$9:$E$58,2,FALSE)=0,\"\",VLOOKUP(EE154,'Footnotes list'!$D$9:$E$58,2,FALSE) ) )","v":""},null,null,null,null,{"$f":"IF(TRIM(EJ154)=\"\", \"\", IF(VLOOKUP(EJ154,'Footnotes list'!$D$9:$E$58,2,FALSE)=0,\"\",VLOOKUP(EJ154,'Footnotes list'!$D$9:$E$58,2,FALSE) ) )","v":""},null,null,null,null,{"$f":"IF(TRIM(EO154)=\"\", \"\", IF(VLOOKUP(EO154,'Footnotes list'!$D$9:$E$58,2,FALSE)=0,\"\",VLOOKUP(EO154,'Footnotes list'!$D$9:$E$58,2,FALSE) ) )","v":""},null,null,null,null,{"$f":"IF(TRIM(ET154)=\"\", \"\", IF(VLOOKUP(ET154,'Footnotes list'!$D$9:$E$58,2,FALSE)=0,\"\",VLOOKUP(ET154,'Footnotes list'!$D$9:$E$58,2,FALSE) ) )","v":""},null,null,null,null,{"$f":"IF(TRIM(EY154)=\"\", \"\", IF(VLOOKUP(EY154,'Footnotes list'!$D$9:$E$58,2,FALSE)=0,\"\",VLOOKUP(EY154,'Footnotes list'!$D$9:$E$58,2,FALSE) ) )","v":""}]
[null,null,"E38","TOT_EGSS","Total E38 - Waste collection, treatment and disposal activities; materials recovery, of which:",null,null,null,null,null,{"$f":"IF(TRIM(J155)=\"\", \"\", IF(VLOOKUP(J155,'Footnotes list'!$D$9:$E$58,2,FALSE)=0,\"\",VLOOKUP(J155,'Footnotes list'!$D$9:$E$58,2,FALSE) ) )","v":""},null,null,null,null,{"$f":"IF(TRIM(O155)=\"\", \"\", IF(VLOOKUP(O155,'Footnotes list'!$D$9:$E$58,2,FALSE)=0,\"\",VLOOKUP(O155,'Footnotes list'!$D$9:$E$58,2,FALSE) ) )","v":""},null,null,null,null,{"$f":"IF(TRIM(T155)=\"\", \"\", IF(VLOOKUP(T155,'Footnotes list'!$D$9:$E$58,2,FALSE)=0,\"\",VLOOKUP(T155,'Footnotes list'!$D$9:$E$58,2,FALSE) ) )","v":""},null,null,null,null,{"$f":"IF(TRIM(Y155)=\"\", \"\", IF(VLOOKUP(Y155,'Footnotes list'!$D$9:$E$58,2,FALSE)=0,\"\",VLOOKUP(Y155,'Footnotes list'!$D$9:$E$58,2,FALSE) ) )","v":""},null,null,null,null,{"$f":"IF(TRIM(AD155)=\"\", \"\", IF(VLOOKUP(AD155,'Footnotes list'!$D$9:$E$58,2,FALSE)=0,\"\",VLOOKUP(AD155,'Footnotes list'!$D$9:$E$58,2,FALSE) ) )","v":""},null,null,null,null,{"$f":"IF(TRIM(AI155)=\"\", \"\", IF(VLOOKUP(AI155,'Footnotes list'!$D$9:$E$58,2,FALSE)=0,\"\",VLOOKUP(AI155,'Footnotes list'!$D$9:$E$58,2,FALSE) ) )","v":""},null,null,null,null,{"$f":"IF(TRIM(AN155)=\"\", \"\", IF(VLOOKUP(AN155,'Footnotes list'!$D$9:$E$58,2,FALSE)=0,\"\",VLOOKUP(AN155,'Footnotes list'!$D$9:$E$58,2,FALSE) ) )","v":""},null,null,null,null,{"$f":"IF(TRIM(AS155)=\"\", \"\", IF(VLOOKUP(AS155,'Footnotes list'!$D$9:$E$58,2,FALSE)=0,\"\",VLOOKUP(AS155,'Footnotes list'!$D$9:$E$58,2,FALSE) ) )","v":""},null,null,null,null,{"$f":"IF(TRIM(AX155)=\"\", \"\", IF(VLOOKUP(AX155,'Footnotes list'!$D$9:$E$58,2,FALSE)=0,\"\",VLOOKUP(AX155,'Footnotes list'!$D$9:$E$58,2,FALSE) ) )","v":""},null,null,null,null,{"$f":"IF(TRIM(BC155)=\"\", \"\", IF(VLOOKUP(BC155,'Footnotes list'!$D$9:$E$58,2,FALSE)=0,\"\",VLOOKUP(BC155,'Footnotes list'!$D$9:$E$58,2,FALSE) ) )","v":""},null,null,null,null,{"$f":"IF(TRIM(BH155)=\"\", \"\", IF(VLOOKUP(BH155,'Footnotes list'!$D$9:$E$58,2,FALSE)=0,\"\",VLOOKUP(BH155,'Footnotes list'!$D$9:$E$58,2,FALSE) ) )","v":""},null,null,null,null,{"$f":"IF(TRIM(BM155)=\"\", \"\", IF(VLOOKUP(BM155,'Footnotes list'!$D$9:$E$58,2,FALSE)=0,\"\",VLOOKUP(BM155,'Footnotes list'!$D$9:$E$58,2,FALSE) ) )","v":""},null,null,null,null,{"$f":"IF(TRIM(BR155)=\"\", \"\", IF(VLOOKUP(BR155,'Footnotes list'!$D$9:$E$58,2,FALSE)=0,\"\",VLOOKUP(BR155,'Footnotes list'!$D$9:$E$58,2,FALSE) ) )","v":""},null,null,null,null,{"$f":"IF(TRIM(BW155)=\"\", \"\", IF(VLOOKUP(BW155,'Footnotes list'!$D$9:$E$58,2,FALSE)=0,\"\",VLOOKUP(BW155,'Footnotes list'!$D$9:$E$58,2,FALSE) ) )","v":""},null,null,null,null,{"$f":"IF(TRIM(CB155)=\"\", \"\", IF(VLOOKUP(CB155,'Footnotes list'!$D$9:$E$58,2,FALSE)=0,\"\",VLOOKUP(CB155,'Footnotes list'!$D$9:$E$58,2,FALSE) ) )","v":""},null,null,null,null,{"$f":"IF(TRIM(CG155)=\"\", \"\", IF(VLOOKUP(CG155,'Footnotes list'!$D$9:$E$58,2,FALSE)=0,\"\",VLOOKUP(CG155,'Footnotes list'!$D$9:$E$58,2,FALSE) ) )","v":""},null,null,null,null,{"$f":"IF(TRIM(CL155)=\"\", \"\", IF(VLOOKUP(CL155,'Footnotes list'!$D$9:$E$58,2,FALSE)=0,\"\",VLOOKUP(CL155,'Footnotes list'!$D$9:$E$58,2,FALSE) ) )","v":""},null,null,null,null,{"$f":"IF(TRIM(CQ155)=\"\", \"\", IF(VLOOKUP(CQ155,'Footnotes list'!$D$9:$E$58,2,FALSE)=0,\"\",VLOOKUP(CQ155,'Footnotes list'!$D$9:$E$58,2,FALSE) ) )","v":""},null,null,null,null,{"$f":"IF(TRIM(CV155)=\"\", \"\", IF(VLOOKUP(CV155,'Footnotes list'!$D$9:$E$58,2,FALSE)=0,\"\",VLOOKUP(CV155,'Footnotes list'!$D$9:$E$58,2,FALSE) ) )","v":""},null,null,null,null,{"$f":"IF(TRIM(DA155)=\"\", \"\", IF(VLOOKUP(DA155,'Footnotes list'!$D$9:$E$58,2,FALSE)=0,\"\",VLOOKUP(DA155,'Footnotes list'!$D$9:$E$58,2,FALSE) ) )","v":""},null,null,null,null,{"$f":"IF(TRIM(DF155)=\"\", \"\", IF(VLOOKUP(DF155,'Footnotes list'!$D$9:$E$58,2,FALSE)=0,\"\",VLOOKUP(DF155,'Footnotes list'!$D$9:$E$58,2,FALSE) ) )","v":""},null,null,null,null,{"$f":"IF(TRIM(DK155)=\"\", \"\", IF(VLOOKUP(DK155,'Footnotes list'!$D$9:$E$58,2,FALSE)=0,\"\",VLOOKUP(DK155,'Footnotes list'!$D$9:$E$58,2,FALSE) ) )","v":""},null,null,null,null,{"$f":"IF(TRIM(DP155)=\"\", \"\", IF(VLOOKUP(DP155,'Footnotes list'!$D$9:$E$58,2,FALSE)=0,\"\",VLOOKUP(DP155,'Footnotes list'!$D$9:$E$58,2,FALSE) ) )","v":""},null,null,null,null,{"$f":"IF(TRIM(DU155)=\"\", \"\", IF(VLOOKUP(DU155,'Footnotes list'!$D$9:$E$58,2,FALSE)=0,\"\",VLOOKUP(DU155,'Footnotes list'!$D$9:$E$58,2,FALSE) ) )","v":""},null,null,null,null,{"$f":"IF(TRIM(DZ155)=\"\", \"\", IF(VLOOKUP(DZ155,'Footnotes list'!$D$9:$E$58,2,FALSE)=0,\"\",VLOOKUP(DZ155,'Footnotes list'!$D$9:$E$58,2,FALSE) ) )","v":""},null,null,null,null,{"$f":"IF(TRIM(EE155)=\"\", \"\", IF(VLOOKUP(EE155,'Footnotes list'!$D$9:$E$58,2,FALSE)=0,\"\",VLOOKUP(EE155,'Footnotes list'!$D$9:$E$58,2,FALSE) ) )","v":""},null,null,null,null,{"$f":"IF(TRIM(EJ155)=\"\", \"\", IF(VLOOKUP(EJ155,'Footnotes list'!$D$9:$E$58,2,FALSE)=0,\"\",VLOOKUP(EJ155,'Footnotes list'!$D$9:$E$58,2,FALSE) ) )","v":""},null,null,null,null,{"$f":"IF(TRIM(EO155)=\"\", \"\", IF(VLOOKUP(EO155,'Footnotes list'!$D$9:$E$58,2,FALSE)=0,\"\",VLOOKUP(EO155,'Footnotes list'!$D$9:$E$58,2,FALSE) ) )","v":""},null,null,null,null,{"$f":"IF(TRIM(ET155)=\"\", \"\", IF(VLOOKUP(ET155,'Footnotes list'!$D$9:$E$58,2,FALSE)=0,\"\",VLOOKUP(ET155,'Footnotes list'!$D$9:$E$58,2,FALSE) ) )","v":""},null,null,null,null,{"$f":"IF(TRIM(EY155)=\"\", \"\", IF(VLOOKUP(EY155,'Footnotes list'!$D$9:$E$58,2,FALSE)=0,\"\",VLOOKUP(EY155,'Footnotes list'!$D$9:$E$58,2,FALSE) ) )","v":""}]
[null,null,"E38","ANC","ancillary activities",null,null,null,null,null,{"$f":"IF(TRIM(J156)=\"\", \"\", IF(VLOOKUP(J156,'Footnotes list'!$D$9:$E$58,2,FALSE)=0,\"\",VLOOKUP(J156,'Footnotes list'!$D$9:$E$58,2,FALSE) ) )","v":""},null,null,null,null,{"$f":"IF(TRIM(O156)=\"\", \"\", IF(VLOOKUP(O156,'Footnotes list'!$D$9:$E$58,2,FALSE)=0,\"\",VLOOKUP(O156,'Footnotes list'!$D$9:$E$58,2,FALSE) ) )","v":""},null,null,null,null,{"$f":"IF(TRIM(T156)=\"\", \"\", IF(VLOOKUP(T156,'Footnotes list'!$D$9:$E$58,2,FALSE)=0,\"\",VLOOKUP(T156,'Footnotes list'!$D$9:$E$58,2,FALSE) ) )","v":""},null,null,null,null,{"$f":"IF(TRIM(Y156)=\"\", \"\", IF(VLOOKUP(Y156,'Footnotes list'!$D$9:$E$58,2,FALSE)=0,\"\",VLOOKUP(Y156,'Footnotes list'!$D$9:$E$58,2,FALSE) ) )","v":""},null,null,null,null,{"$f":"IF(TRIM(AD156)=\"\", \"\", IF(VLOOKUP(AD156,'Footnotes list'!$D$9:$E$58,2,FALSE)=0,\"\",VLOOKUP(AD156,'Footnotes list'!$D$9:$E$58,2,FALSE) ) )","v":""},null,null,null,null,{"$f":"IF(TRIM(AI156)=\"\", \"\", IF(VLOOKUP(AI156,'Footnotes list'!$D$9:$E$58,2,FALSE)=0,\"\",VLOOKUP(AI156,'Footnotes list'!$D$9:$E$58,2,FALSE) ) )","v":""},null,null,null,null,{"$f":"IF(TRIM(AN156)=\"\", \"\", IF(VLOOKUP(AN156,'Footnotes list'!$D$9:$E$58,2,FALSE)=0,\"\",VLOOKUP(AN156,'Footnotes list'!$D$9:$E$58,2,FALSE) ) )","v":""},null,null,null,null,{"$f":"IF(TRIM(AS156)=\"\", \"\", IF(VLOOKUP(AS156,'Footnotes list'!$D$9:$E$58,2,FALSE)=0,\"\",VLOOKUP(AS156,'Footnotes list'!$D$9:$E$58,2,FALSE) ) )","v":""},null,null,null,null,{"$f":"IF(TRIM(AX156)=\"\", \"\", IF(VLOOKUP(AX156,'Footnotes list'!$D$9:$E$58,2,FALSE)=0,\"\",VLOOKUP(AX156,'Footnotes list'!$D$9:$E$58,2,FALSE) ) )","v":""},null,null,null,null,{"$f":"IF(TRIM(BC156)=\"\", \"\", IF(VLOOKUP(BC156,'Footnotes list'!$D$9:$E$58,2,FALSE)=0,\"\",VLOOKUP(BC156,'Footnotes list'!$D$9:$E$58,2,FALSE) ) )","v":""},null,null,null,null,{"$f":"IF(TRIM(BH156)=\"\", \"\", IF(VLOOKUP(BH156,'Footnotes list'!$D$9:$E$58,2,FALSE)=0,\"\",VLOOKUP(BH156,'Footnotes list'!$D$9:$E$58,2,FALSE) ) )","v":""},null,null,null,null,{"$f":"IF(TRIM(BM156)=\"\", \"\", IF(VLOOKUP(BM156,'Footnotes list'!$D$9:$E$58,2,FALSE)=0,\"\",VLOOKUP(BM156,'Footnotes list'!$D$9:$E$58,2,FALSE) ) )","v":""},null,null,null,null,{"$f":"IF(TRIM(BR156)=\"\", \"\", IF(VLOOKUP(BR156,'Footnotes list'!$D$9:$E$58,2,FALSE)=0,\"\",VLOOKUP(BR156,'Footnotes list'!$D$9:$E$58,2,FALSE) ) )","v":""},null,null,null,null,{"$f":"IF(TRIM(BW156)=\"\", \"\", IF(VLOOKUP(BW156,'Footnotes list'!$D$9:$E$58,2,FALSE)=0,\"\",VLOOKUP(BW156,'Footnotes list'!$D$9:$E$58,2,FALSE) ) )","v":""},null,null,null,null,{"$f":"IF(TRIM(CB156)=\"\", \"\", IF(VLOOKUP(CB156,'Footnotes list'!$D$9:$E$58,2,FALSE)=0,\"\",VLOOKUP(CB156,'Footnotes list'!$D$9:$E$58,2,FALSE) ) )","v":""},null,null,null,null,{"$f":"IF(TRIM(CG156)=\"\", \"\", IF(VLOOKUP(CG156,'Footnotes list'!$D$9:$E$58,2,FALSE)=0,\"\",VLOOKUP(CG156,'Footnotes list'!$D$9:$E$58,2,FALSE) ) )","v":""},null,null,null,null,{"$f":"IF(TRIM(CL156)=\"\", \"\", IF(VLOOKUP(CL156,'Footnotes list'!$D$9:$E$58,2,FALSE)=0,\"\",VLOOKUP(CL156,'Footnotes list'!$D$9:$E$58,2,FALSE) ) )","v":""},null,null,null,null,{"$f":"IF(TRIM(CQ156)=\"\", \"\", IF(VLOOKUP(CQ156,'Footnotes list'!$D$9:$E$58,2,FALSE)=0,\"\",VLOOKUP(CQ156,'Footnotes list'!$D$9:$E$58,2,FALSE) ) )","v":""},null,null,null,null,{"$f":"IF(TRIM(CV156)=\"\", \"\", IF(VLOOKUP(CV156,'Footnotes list'!$D$9:$E$58,2,FALSE)=0,\"\",VLOOKUP(CV156,'Footnotes list'!$D$9:$E$58,2,FALSE) ) )","v":""},null,null,null,null,{"$f":"IF(TRIM(DA156)=\"\", \"\", IF(VLOOKUP(DA156,'Footnotes list'!$D$9:$E$58,2,FALSE)=0,\"\",VLOOKUP(DA156,'Footnotes list'!$D$9:$E$58,2,FALSE) ) )","v":""},null,null,null,null,{"$f":"IF(TRIM(DF156)=\"\", \"\", IF(VLOOKUP(DF156,'Footnotes list'!$D$9:$E$58,2,FALSE)=0,\"\",VLOOKUP(DF156,'Footnotes list'!$D$9:$E$58,2,FALSE) ) )","v":""},null,null,null,null,{"$f":"IF(TRIM(DK156)=\"\", \"\", IF(VLOOKUP(DK156,'Footnotes list'!$D$9:$E$58,2,FALSE)=0,\"\",VLOOKUP(DK156,'Footnotes list'!$D$9:$E$58,2,FALSE) ) )","v":""},null,null,null,null,{"$f":"IF(TRIM(DP156)=\"\", \"\", IF(VLOOKUP(DP156,'Footnotes list'!$D$9:$E$58,2,FALSE)=0,\"\",VLOOKUP(DP156,'Footnotes list'!$D$9:$E$58,2,FALSE) ) )","v":""},null,null,null,null,{"$f":"IF(TRIM(DU156)=\"\", \"\", IF(VLOOKUP(DU156,'Footnotes list'!$D$9:$E$58,2,FALSE)=0,\"\",VLOOKUP(DU156,'Footnotes list'!$D$9:$E$58,2,FALSE) ) )","v":""},null,null,null,null,{"$f":"IF(TRIM(DZ156)=\"\", \"\", IF(VLOOKUP(DZ156,'Footnotes list'!$D$9:$E$58,2,FALSE)=0,\"\",VLOOKUP(DZ156,'Footnotes list'!$D$9:$E$58,2,FALSE) ) )","v":""},null,null,null,null,{"$f":"IF(TRIM(EE156)=\"\", \"\", IF(VLOOKUP(EE156,'Footnotes list'!$D$9:$E$58,2,FALSE)=0,\"\",VLOOKUP(EE156,'Footnotes list'!$D$9:$E$58,2,FALSE) ) )","v":""},null,null,null,null,{"$f":"IF(TRIM(EJ156)=\"\", \"\", IF(VLOOKUP(EJ156,'Footnotes list'!$D$9:$E$58,2,FALSE)=0,\"\",VLOOKUP(EJ156,'Footnotes list'!$D$9:$E$58,2,FALSE) ) )","v":""},null,null,null,null,{"$f":"IF(TRIM(EO156)=\"\", \"\", IF(VLOOKUP(EO156,'Footnotes list'!$D$9:$E$58,2,FALSE)=0,\"\",VLOOKUP(EO156,'Footnotes list'!$D$9:$E$58,2,FALSE) ) )","v":""},null,null,null,null,{"$f":"IF(TRIM(ET156)=\"\", \"\", IF(VLOOKUP(ET156,'Footnotes list'!$D$9:$E$58,2,FALSE)=0,\"\",VLOOKUP(ET156,'Footnotes list'!$D$9:$E$58,2,FALSE) ) )","v":""},null,null,null,null,{"$f":"IF(TRIM(EY156)=\"\", \"\", IF(VLOOKUP(EY156,'Footnotes list'!$D$9:$E$58,2,FALSE)=0,\"\",VLOOKUP(EY156,'Footnotes list'!$D$9:$E$58,2,FALSE) ) )","v":""}]
[null,null,"E38","NMKT","non-market activities",null,null,null,null,null,{"$f":"IF(TRIM(J157)=\"\", \"\", IF(VLOOKUP(J157,'Footnotes list'!$D$9:$E$58,2,FALSE)=0,\"\",VLOOKUP(J157,'Footnotes list'!$D$9:$E$58,2,FALSE) ) )","v":""},null,null,null,null,{"$f":"IF(TRIM(O157)=\"\", \"\", IF(VLOOKUP(O157,'Footnotes list'!$D$9:$E$58,2,FALSE)=0,\"\",VLOOKUP(O157,'Footnotes list'!$D$9:$E$58,2,FALSE) ) )","v":""},null,null,null,null,{"$f":"IF(TRIM(T157)=\"\", \"\", IF(VLOOKUP(T157,'Footnotes list'!$D$9:$E$58,2,FALSE)=0,\"\",VLOOKUP(T157,'Footnotes list'!$D$9:$E$58,2,FALSE) ) )","v":""},null,null,null,null,{"$f":"IF(TRIM(Y157)=\"\", \"\", IF(VLOOKUP(Y157,'Footnotes list'!$D$9:$E$58,2,FALSE)=0,\"\",VLOOKUP(Y157,'Footnotes list'!$D$9:$E$58,2,FALSE) ) )","v":""},null,null,null,null,{"$f":"IF(TRIM(AD157)=\"\", \"\", IF(VLOOKUP(AD157,'Footnotes list'!$D$9:$E$58,2,FALSE)=0,\"\",VLOOKUP(AD157,'Footnotes list'!$D$9:$E$58,2,FALSE) ) )","v":""},null,null,null,null,{"$f":"IF(TRIM(AI157)=\"\", \"\", IF(VLOOKUP(AI157,'Footnotes list'!$D$9:$E$58,2,FALSE)=0,\"\",VLOOKUP(AI157,'Footnotes list'!$D$9:$E$58,2,FALSE) ) )","v":""},null,null,null,null,{"$f":"IF(TRIM(AN157)=\"\", \"\", IF(VLOOKUP(AN157,'Footnotes list'!$D$9:$E$58,2,FALSE)=0,\"\",VLOOKUP(AN157,'Footnotes list'!$D$9:$E$58,2,FALSE) ) )","v":""},null,null,null,null,{"$f":"IF(TRIM(AS157)=\"\", \"\", IF(VLOOKUP(AS157,'Footnotes list'!$D$9:$E$58,2,FALSE)=0,\"\",VLOOKUP(AS157,'Footnotes list'!$D$9:$E$58,2,FALSE) ) )","v":""},null,null,null,null,{"$f":"IF(TRIM(AX157)=\"\", \"\", IF(VLOOKUP(AX157,'Footnotes list'!$D$9:$E$58,2,FALSE)=0,\"\",VLOOKUP(AX157,'Footnotes list'!$D$9:$E$58,2,FALSE) ) )","v":""},null,null,null,null,{"$f":"IF(TRIM(BC157)=\"\", \"\", IF(VLOOKUP(BC157,'Footnotes list'!$D$9:$E$58,2,FALSE)=0,\"\",VLOOKUP(BC157,'Footnotes list'!$D$9:$E$58,2,FALSE) ) )","v":""},null,null,null,null,{"$f":"IF(TRIM(BH157)=\"\", \"\", IF(VLOOKUP(BH157,'Footnotes list'!$D$9:$E$58,2,FALSE)=0,\"\",VLOOKUP(BH157,'Footnotes list'!$D$9:$E$58,2,FALSE) ) )","v":""},null,null,null,null,{"$f":"IF(TRIM(BM157)=\"\", \"\", IF(VLOOKUP(BM157,'Footnotes list'!$D$9:$E$58,2,FALSE)=0,\"\",VLOOKUP(BM157,'Footnotes list'!$D$9:$E$58,2,FALSE) ) )","v":""},null,null,null,null,{"$f":"IF(TRIM(BR157)=\"\", \"\", IF(VLOOKUP(BR157,'Footnotes list'!$D$9:$E$58,2,FALSE)=0,\"\",VLOOKUP(BR157,'Footnotes list'!$D$9:$E$58,2,FALSE) ) )","v":""},null,null,null,null,{"$f":"IF(TRIM(BW157)=\"\", \"\", IF(VLOOKUP(BW157,'Footnotes list'!$D$9:$E$58,2,FALSE)=0,\"\",VLOOKUP(BW157,'Footnotes list'!$D$9:$E$58,2,FALSE) ) )","v":""},null,null,null,null,{"$f":"IF(TRIM(CB157)=\"\", \"\", IF(VLOOKUP(CB157,'Footnotes list'!$D$9:$E$58,2,FALSE)=0,\"\",VLOOKUP(CB157,'Footnotes list'!$D$9:$E$58,2,FALSE) ) )","v":""},null,null,null,null,{"$f":"IF(TRIM(CG157)=\"\", \"\", IF(VLOOKUP(CG157,'Footnotes list'!$D$9:$E$58,2,FALSE)=0,\"\",VLOOKUP(CG157,'Footnotes list'!$D$9:$E$58,2,FALSE) ) )","v":""},null,null,null,null,{"$f":"IF(TRIM(CL157)=\"\", \"\", IF(VLOOKUP(CL157,'Footnotes list'!$D$9:$E$58,2,FALSE)=0,\"\",VLOOKUP(CL157,'Footnotes list'!$D$9:$E$58,2,FALSE) ) )","v":""},null,null,null,null,{"$f":"IF(TRIM(CQ157)=\"\", \"\", IF(VLOOKUP(CQ157,'Footnotes list'!$D$9:$E$58,2,FALSE)=0,\"\",VLOOKUP(CQ157,'Footnotes list'!$D$9:$E$58,2,FALSE) ) )","v":""},null,null,null,null,{"$f":"IF(TRIM(CV157)=\"\", \"\", IF(VLOOKUP(CV157,'Footnotes list'!$D$9:$E$58,2,FALSE)=0,\"\",VLOOKUP(CV157,'Footnotes list'!$D$9:$E$58,2,FALSE) ) )","v":""},null,null,null,null,{"$f":"IF(TRIM(DA157)=\"\", \"\", IF(VLOOKUP(DA157,'Footnotes list'!$D$9:$E$58,2,FALSE)=0,\"\",VLOOKUP(DA157,'Footnotes list'!$D$9:$E$58,2,FALSE) ) )","v":""},null,null,null,null,{"$f":"IF(TRIM(DF157)=\"\", \"\", IF(VLOOKUP(DF157,'Footnotes list'!$D$9:$E$58,2,FALSE)=0,\"\",VLOOKUP(DF157,'Footnotes list'!$D$9:$E$58,2,FALSE) ) )","v":""},null,null,null,null,{"$f":"IF(TRIM(DK157)=\"\", \"\", IF(VLOOKUP(DK157,'Footnotes list'!$D$9:$E$58,2,FALSE)=0,\"\",VLOOKUP(DK157,'Footnotes list'!$D$9:$E$58,2,FALSE) ) )","v":""},null,null,null,null,{"$f":"IF(TRIM(DP157)=\"\", \"\", IF(VLOOKUP(DP157,'Footnotes list'!$D$9:$E$58,2,FALSE)=0,\"\",VLOOKUP(DP157,'Footnotes list'!$D$9:$E$58,2,FALSE) ) )","v":""},null,null,null,null,{"$f":"IF(TRIM(DU157)=\"\", \"\", IF(VLOOKUP(DU157,'Footnotes list'!$D$9:$E$58,2,FALSE)=0,\"\",VLOOKUP(DU157,'Footnotes list'!$D$9:$E$58,2,FALSE) ) )","v":""},null,null,null,null,{"$f":"IF(TRIM(DZ157)=\"\", \"\", IF(VLOOKUP(DZ157,'Footnotes list'!$D$9:$E$58,2,FALSE)=0,\"\",VLOOKUP(DZ157,'Footnotes list'!$D$9:$E$58,2,FALSE) ) )","v":""},null,null,null,null,{"$f":"IF(TRIM(EE157)=\"\", \"\", IF(VLOOKUP(EE157,'Footnotes list'!$D$9:$E$58,2,FALSE)=0,\"\",VLOOKUP(EE157,'Footnotes list'!$D$9:$E$58,2,FALSE) ) )","v":""},null,null,null,null,{"$f":"IF(TRIM(EJ157)=\"\", \"\", IF(VLOOKUP(EJ157,'Footnotes list'!$D$9:$E$58,2,FALSE)=0,\"\",VLOOKUP(EJ157,'Footnotes list'!$D$9:$E$58,2,FALSE) ) )","v":""},null,null,null,null,{"$f":"IF(TRIM(EO157)=\"\", \"\", IF(VLOOKUP(EO157,'Footnotes list'!$D$9:$E$58,2,FALSE)=0,\"\",VLOOKUP(EO157,'Footnotes list'!$D$9:$E$58,2,FALSE) ) )","v":""},null,null,null,null,{"$f":"IF(TRIM(ET157)=\"\", \"\", IF(VLOOKUP(ET157,'Footnotes list'!$D$9:$E$58,2,FALSE)=0,\"\",VLOOKUP(ET157,'Footnotes list'!$D$9:$E$58,2,FALSE) ) )","v":""},null,null,null,null,{"$f":"IF(TRIM(EY157)=\"\", \"\", IF(VLOOKUP(EY157,'Footnotes list'!$D$9:$E$58,2,FALSE)=0,\"\",VLOOKUP(EY157,'Footnotes list'!$D$9:$E$58,2,FALSE) ) )","v":""}]
[null,null,"E38","OWN_USE","activities for own final use",null,null,null,null,null,{"$f":"IF(TRIM(J158)=\"\", \"\", IF(VLOOKUP(J158,'Footnotes list'!$D$9:$E$58,2,FALSE)=0,\"\",VLOOKUP(J158,'Footnotes list'!$D$9:$E$58,2,FALSE) ) )","v":""},null,null,null,null,{"$f":"IF(TRIM(O158)=\"\", \"\", IF(VLOOKUP(O158,'Footnotes list'!$D$9:$E$58,2,FALSE)=0,\"\",VLOOKUP(O158,'Footnotes list'!$D$9:$E$58,2,FALSE) ) )","v":""},null,null,null,null,{"$f":"IF(TRIM(T158)=\"\", \"\", IF(VLOOKUP(T158,'Footnotes list'!$D$9:$E$58,2,FALSE)=0,\"\",VLOOKUP(T158,'Footnotes list'!$D$9:$E$58,2,FALSE) ) )","v":""},null,null,null,null,{"$f":"IF(TRIM(Y158)=\"\", \"\", IF(VLOOKUP(Y158,'Footnotes list'!$D$9:$E$58,2,FALSE)=0,\"\",VLOOKUP(Y158,'Footnotes list'!$D$9:$E$58,2,FALSE) ) )","v":""},null,null,null,null,{"$f":"IF(TRIM(AD158)=\"\", \"\", IF(VLOOKUP(AD158,'Footnotes list'!$D$9:$E$58,2,FALSE)=0,\"\",VLOOKUP(AD158,'Footnotes list'!$D$9:$E$58,2,FALSE) ) )","v":""},null,null,null,null,{"$f":"IF(TRIM(AI158)=\"\", \"\", IF(VLOOKUP(AI158,'Footnotes list'!$D$9:$E$58,2,FALSE)=0,\"\",VLOOKUP(AI158,'Footnotes list'!$D$9:$E$58,2,FALSE) ) )","v":""},null,null,null,null,{"$f":"IF(TRIM(AN158)=\"\", \"\", IF(VLOOKUP(AN158,'Footnotes list'!$D$9:$E$58,2,FALSE)=0,\"\",VLOOKUP(AN158,'Footnotes list'!$D$9:$E$58,2,FALSE) ) )","v":""},null,null,null,null,{"$f":"IF(TRIM(AS158)=\"\", \"\", IF(VLOOKUP(AS158,'Footnotes list'!$D$9:$E$58,2,FALSE)=0,\"\",VLOOKUP(AS158,'Footnotes list'!$D$9:$E$58,2,FALSE) ) )","v":""},null,null,null,null,{"$f":"IF(TRIM(AX158)=\"\", \"\", IF(VLOOKUP(AX158,'Footnotes list'!$D$9:$E$58,2,FALSE)=0,\"\",VLOOKUP(AX158,'Footnotes list'!$D$9:$E$58,2,FALSE) ) )","v":""},null,null,null,null,{"$f":"IF(TRIM(BC158)=\"\", \"\", IF(VLOOKUP(BC158,'Footnotes list'!$D$9:$E$58,2,FALSE)=0,\"\",VLOOKUP(BC158,'Footnotes list'!$D$9:$E$58,2,FALSE) ) )","v":""},null,null,null,null,{"$f":"IF(TRIM(BH158)=\"\", \"\", IF(VLOOKUP(BH158,'Footnotes list'!$D$9:$E$58,2,FALSE)=0,\"\",VLOOKUP(BH158,'Footnotes list'!$D$9:$E$58,2,FALSE) ) )","v":""},null,null,null,null,{"$f":"IF(TRIM(BM158)=\"\", \"\", IF(VLOOKUP(BM158,'Footnotes list'!$D$9:$E$58,2,FALSE)=0,\"\",VLOOKUP(BM158,'Footnotes list'!$D$9:$E$58,2,FALSE) ) )","v":""},null,null,null,null,{"$f":"IF(TRIM(BR158)=\"\", \"\", IF(VLOOKUP(BR158,'Footnotes list'!$D$9:$E$58,2,FALSE)=0,\"\",VLOOKUP(BR158,'Footnotes list'!$D$9:$E$58,2,FALSE) ) )","v":""},null,null,null,null,{"$f":"IF(TRIM(BW158)=\"\", \"\", IF(VLOOKUP(BW158,'Footnotes list'!$D$9:$E$58,2,FALSE)=0,\"\",VLOOKUP(BW158,'Footnotes list'!$D$9:$E$58,2,FALSE) ) )","v":""},null,null,null,null,{"$f":"IF(TRIM(CB158)=\"\", \"\", IF(VLOOKUP(CB158,'Footnotes list'!$D$9:$E$58,2,FALSE)=0,\"\",VLOOKUP(CB158,'Footnotes list'!$D$9:$E$58,2,FALSE) ) )","v":""},null,null,null,null,{"$f":"IF(TRIM(CG158)=\"\", \"\", IF(VLOOKUP(CG158,'Footnotes list'!$D$9:$E$58,2,FALSE)=0,\"\",VLOOKUP(CG158,'Footnotes list'!$D$9:$E$58,2,FALSE) ) )","v":""},null,null,null,null,{"$f":"IF(TRIM(CL158)=\"\", \"\", IF(VLOOKUP(CL158,'Footnotes list'!$D$9:$E$58,2,FALSE)=0,\"\",VLOOKUP(CL158,'Footnotes list'!$D$9:$E$58,2,FALSE) ) )","v":""},null,null,null,null,{"$f":"IF(TRIM(CQ158)=\"\", \"\", IF(VLOOKUP(CQ158,'Footnotes list'!$D$9:$E$58,2,FALSE)=0,\"\",VLOOKUP(CQ158,'Footnotes list'!$D$9:$E$58,2,FALSE) ) )","v":""},null,null,null,null,{"$f":"IF(TRIM(CV158)=\"\", \"\", IF(VLOOKUP(CV158,'Footnotes list'!$D$9:$E$58,2,FALSE)=0,\"\",VLOOKUP(CV158,'Footnotes list'!$D$9:$E$58,2,FALSE) ) )","v":""},null,null,null,null,{"$f":"IF(TRIM(DA158)=\"\", \"\", IF(VLOOKUP(DA158,'Footnotes list'!$D$9:$E$58,2,FALSE)=0,\"\",VLOOKUP(DA158,'Footnotes list'!$D$9:$E$58,2,FALSE) ) )","v":""},null,null,null,null,{"$f":"IF(TRIM(DF158)=\"\", \"\", IF(VLOOKUP(DF158,'Footnotes list'!$D$9:$E$58,2,FALSE)=0,\"\",VLOOKUP(DF158,'Footnotes list'!$D$9:$E$58,2,FALSE) ) )","v":""},null,null,null,null,{"$f":"IF(TRIM(DK158)=\"\", \"\", IF(VLOOKUP(DK158,'Footnotes list'!$D$9:$E$58,2,FALSE)=0,\"\",VLOOKUP(DK158,'Footnotes list'!$D$9:$E$58,2,FALSE) ) )","v":""},null,null,null,null,{"$f":"IF(TRIM(DP158)=\"\", \"\", IF(VLOOKUP(DP158,'Footnotes list'!$D$9:$E$58,2,FALSE)=0,\"\",VLOOKUP(DP158,'Footnotes list'!$D$9:$E$58,2,FALSE) ) )","v":""},null,null,null,null,{"$f":"IF(TRIM(DU158)=\"\", \"\", IF(VLOOKUP(DU158,'Footnotes list'!$D$9:$E$58,2,FALSE)=0,\"\",VLOOKUP(DU158,'Footnotes list'!$D$9:$E$58,2,FALSE) ) )","v":""},null,null,null,null,{"$f":"IF(TRIM(DZ158)=\"\", \"\", IF(VLOOKUP(DZ158,'Footnotes list'!$D$9:$E$58,2,FALSE)=0,\"\",VLOOKUP(DZ158,'Footnotes list'!$D$9:$E$58,2,FALSE) ) )","v":""},null,null,null,null,{"$f":"IF(TRIM(EE158)=\"\", \"\", IF(VLOOKUP(EE158,'Footnotes list'!$D$9:$E$58,2,FALSE)=0,\"\",VLOOKUP(EE158,'Footnotes list'!$D$9:$E$58,2,FALSE) ) )","v":""},null,null,null,null,{"$f":"IF(TRIM(EJ158)=\"\", \"\", IF(VLOOKUP(EJ158,'Footnotes list'!$D$9:$E$58,2,FALSE)=0,\"\",VLOOKUP(EJ158,'Footnotes list'!$D$9:$E$58,2,FALSE) ) )","v":""},null,null,null,null,{"$f":"IF(TRIM(EO158)=\"\", \"\", IF(VLOOKUP(EO158,'Footnotes list'!$D$9:$E$58,2,FALSE)=0,\"\",VLOOKUP(EO158,'Footnotes list'!$D$9:$E$58,2,FALSE) ) )","v":""},null,null,null,null,{"$f":"IF(TRIM(ET158)=\"\", \"\", IF(VLOOKUP(ET158,'Footnotes list'!$D$9:$E$58,2,FALSE)=0,\"\",VLOOKUP(ET158,'Footnotes list'!$D$9:$E$58,2,FALSE) ) )","v":""},null,null,null,null,{"$f":"IF(TRIM(EY158)=\"\", \"\", IF(VLOOKUP(EY158,'Footnotes list'!$D$9:$E$58,2,FALSE)=0,\"\",VLOOKUP(EY158,'Footnotes list'!$D$9:$E$58,2,FALSE) ) )","v":""}]
[null,null,"E38","MKT","market activities, including:",null,null,null,null,null,{"$f":"IF(TRIM(J159)=\"\", \"\", IF(VLOOKUP(J159,'Footnotes list'!$D$9:$E$58,2,FALSE)=0,\"\",VLOOKUP(J159,'Footnotes list'!$D$9:$E$58,2,FALSE) ) )","v":""},null,null,null,null,{"$f":"IF(TRIM(O159)=\"\", \"\", IF(VLOOKUP(O159,'Footnotes list'!$D$9:$E$58,2,FALSE)=0,\"\",VLOOKUP(O159,'Footnotes list'!$D$9:$E$58,2,FALSE) ) )","v":""},null,null,null,null,{"$f":"IF(TRIM(T159)=\"\", \"\", IF(VLOOKUP(T159,'Footnotes list'!$D$9:$E$58,2,FALSE)=0,\"\",VLOOKUP(T159,'Footnotes list'!$D$9:$E$58,2,FALSE) ) )","v":""},null,null,null,null,{"$f":"IF(TRIM(Y159)=\"\", \"\", IF(VLOOKUP(Y159,'Footnotes list'!$D$9:$E$58,2,FALSE)=0,\"\",VLOOKUP(Y159,'Footnotes list'!$D$9:$E$58,2,FALSE) ) )","v":""},null,null,null,null,{"$f":"IF(TRIM(AD159)=\"\", \"\", IF(VLOOKUP(AD159,'Footnotes list'!$D$9:$E$58,2,FALSE)=0,\"\",VLOOKUP(AD159,'Footnotes list'!$D$9:$E$58,2,FALSE) ) )","v":""},null,null,null,null,{"$f":"IF(TRIM(AI159)=\"\", \"\", IF(VLOOKUP(AI159,'Footnotes list'!$D$9:$E$58,2,FALSE)=0,\"\",VLOOKUP(AI159,'Footnotes list'!$D$9:$E$58,2,FALSE) ) )","v":""},null,null,null,null,{"$f":"IF(TRIM(AN159)=\"\", \"\", IF(VLOOKUP(AN159,'Footnotes list'!$D$9:$E$58,2,FALSE)=0,\"\",VLOOKUP(AN159,'Footnotes list'!$D$9:$E$58,2,FALSE) ) )","v":""},null,null,null,null,{"$f":"IF(TRIM(AS159)=\"\", \"\", IF(VLOOKUP(AS159,'Footnotes list'!$D$9:$E$58,2,FALSE)=0,\"\",VLOOKUP(AS159,'Footnotes list'!$D$9:$E$58,2,FALSE) ) )","v":""},null,null,null,null,{"$f":"IF(TRIM(AX159)=\"\", \"\", IF(VLOOKUP(AX159,'Footnotes list'!$D$9:$E$58,2,FALSE)=0,\"\",VLOOKUP(AX159,'Footnotes list'!$D$9:$E$58,2,FALSE) ) )","v":""},null,null,null,null,{"$f":"IF(TRIM(BC159)=\"\", \"\", IF(VLOOKUP(BC159,'Footnotes list'!$D$9:$E$58,2,FALSE)=0,\"\",VLOOKUP(BC159,'Footnotes list'!$D$9:$E$58,2,FALSE) ) )","v":""},null,null,null,null,{"$f":"IF(TRIM(BH159)=\"\", \"\", IF(VLOOKUP(BH159,'Footnotes list'!$D$9:$E$58,2,FALSE)=0,\"\",VLOOKUP(BH159,'Footnotes list'!$D$9:$E$58,2,FALSE) ) )","v":""},null,null,null,null,{"$f":"IF(TRIM(BM159)=\"\", \"\", IF(VLOOKUP(BM159,'Footnotes list'!$D$9:$E$58,2,FALSE)=0,\"\",VLOOKUP(BM159,'Footnotes list'!$D$9:$E$58,2,FALSE) ) )","v":""},null,null,null,null,{"$f":"IF(TRIM(BR159)=\"\", \"\", IF(VLOOKUP(BR159,'Footnotes list'!$D$9:$E$58,2,FALSE)=0,\"\",VLOOKUP(BR159,'Footnotes list'!$D$9:$E$58,2,FALSE) ) )","v":""},null,null,null,null,{"$f":"IF(TRIM(BW159)=\"\", \"\", IF(VLOOKUP(BW159,'Footnotes list'!$D$9:$E$58,2,FALSE)=0,\"\",VLOOKUP(BW159,'Footnotes list'!$D$9:$E$58,2,FALSE) ) )","v":""},null,null,null,null,{"$f":"IF(TRIM(CB159)=\"\", \"\", IF(VLOOKUP(CB159,'Footnotes list'!$D$9:$E$58,2,FALSE)=0,\"\",VLOOKUP(CB159,'Footnotes list'!$D$9:$E$58,2,FALSE) ) )","v":""},null,null,null,null,{"$f":"IF(TRIM(CG159)=\"\", \"\", IF(VLOOKUP(CG159,'Footnotes list'!$D$9:$E$58,2,FALSE)=0,\"\",VLOOKUP(CG159,'Footnotes list'!$D$9:$E$58,2,FALSE) ) )","v":""},null,null,null,null,{"$f":"IF(TRIM(CL159)=\"\", \"\", IF(VLOOKUP(CL159,'Footnotes list'!$D$9:$E$58,2,FALSE)=0,\"\",VLOOKUP(CL159,'Footnotes list'!$D$9:$E$58,2,FALSE) ) )","v":""},null,null,null,null,{"$f":"IF(TRIM(CQ159)=\"\", \"\", IF(VLOOKUP(CQ159,'Footnotes list'!$D$9:$E$58,2,FALSE)=0,\"\",VLOOKUP(CQ159,'Footnotes list'!$D$9:$E$58,2,FALSE) ) )","v":""},null,null,null,null,{"$f":"IF(TRIM(CV159)=\"\", \"\", IF(VLOOKUP(CV159,'Footnotes list'!$D$9:$E$58,2,FALSE)=0,\"\",VLOOKUP(CV159,'Footnotes list'!$D$9:$E$58,2,FALSE) ) )","v":""},null,null,null,null,{"$f":"IF(TRIM(DA159)=\"\", \"\", IF(VLOOKUP(DA159,'Footnotes list'!$D$9:$E$58,2,FALSE)=0,\"\",VLOOKUP(DA159,'Footnotes list'!$D$9:$E$58,2,FALSE) ) )","v":""},null,null,null,null,{"$f":"IF(TRIM(DF159)=\"\", \"\", IF(VLOOKUP(DF159,'Footnotes list'!$D$9:$E$58,2,FALSE)=0,\"\",VLOOKUP(DF159,'Footnotes list'!$D$9:$E$58,2,FALSE) ) )","v":""},null,null,null,null,{"$f":"IF(TRIM(DK159)=\"\", \"\", IF(VLOOKUP(DK159,'Footnotes list'!$D$9:$E$58,2,FALSE)=0,\"\",VLOOKUP(DK159,'Footnotes list'!$D$9:$E$58,2,FALSE) ) )","v":""},null,null,null,null,{"$f":"IF(TRIM(DP159)=\"\", \"\", IF(VLOOKUP(DP159,'Footnotes list'!$D$9:$E$58,2,FALSE)=0,\"\",VLOOKUP(DP159,'Footnotes list'!$D$9:$E$58,2,FALSE) ) )","v":""},null,null,null,null,{"$f":"IF(TRIM(DU159)=\"\", \"\", IF(VLOOKUP(DU159,'Footnotes list'!$D$9:$E$58,2,FALSE)=0,\"\",VLOOKUP(DU159,'Footnotes list'!$D$9:$E$58,2,FALSE) ) )","v":""},null,null,null,null,{"$f":"IF(TRIM(DZ159)=\"\", \"\", IF(VLOOKUP(DZ159,'Footnotes list'!$D$9:$E$58,2,FALSE)=0,\"\",VLOOKUP(DZ159,'Footnotes list'!$D$9:$E$58,2,FALSE) ) )","v":""},null,null,null,null,{"$f":"IF(TRIM(EE159)=\"\", \"\", IF(VLOOKUP(EE159,'Footnotes list'!$D$9:$E$58,2,FALSE)=0,\"\",VLOOKUP(EE159,'Footnotes list'!$D$9:$E$58,2,FALSE) ) )","v":""},null,null,null,null,{"$f":"IF(TRIM(EJ159)=\"\", \"\", IF(VLOOKUP(EJ159,'Footnotes list'!$D$9:$E$58,2,FALSE)=0,\"\",VLOOKUP(EJ159,'Footnotes list'!$D$9:$E$58,2,FALSE) ) )","v":""},null,null,null,null,{"$f":"IF(TRIM(EO159)=\"\", \"\", IF(VLOOKUP(EO159,'Footnotes list'!$D$9:$E$58,2,FALSE)=0,\"\",VLOOKUP(EO159,'Footnotes list'!$D$9:$E$58,2,FALSE) ) )","v":""},null,null,null,null,{"$f":"IF(TRIM(ET159)=\"\", \"\", IF(VLOOKUP(ET159,'Footnotes list'!$D$9:$E$58,2,FALSE)=0,\"\",VLOOKUP(ET159,'Footnotes list'!$D$9:$E$58,2,FALSE) ) )","v":""},null,null,null,null,{"$f":"IF(TRIM(EY159)=\"\", \"\", IF(VLOOKUP(EY159,'Footnotes list'!$D$9:$E$58,2,FALSE)=0,\"\",VLOOKUP(EY159,'Footnotes list'!$D$9:$E$58,2,FALSE) ) )","v":""}]
[null,null,"E38","ES_CS","environmental specific services",null,null,null,null,null,{"$f":"IF(TRIM(J160)=\"\", \"\", IF(VLOOKUP(J160,'Footnotes list'!$D$9:$E$58,2,FALSE)=0,\"\",VLOOKUP(J160,'Footnotes list'!$D$9:$E$58,2,FALSE) ) )","v":""},null,null,null,null,{"$f":"IF(TRIM(O160)=\"\", \"\", IF(VLOOKUP(O160,'Footnotes list'!$D$9:$E$58,2,FALSE)=0,\"\",VLOOKUP(O160,'Footnotes list'!$D$9:$E$58,2,FALSE) ) )","v":""},null,null,null,null,{"$f":"IF(TRIM(T160)=\"\", \"\", IF(VLOOKUP(T160,'Footnotes list'!$D$9:$E$58,2,FALSE)=0,\"\",VLOOKUP(T160,'Footnotes list'!$D$9:$E$58,2,FALSE) ) )","v":""},null,null,null,null,{"$f":"IF(TRIM(Y160)=\"\", \"\", IF(VLOOKUP(Y160,'Footnotes list'!$D$9:$E$58,2,FALSE)=0,\"\",VLOOKUP(Y160,'Footnotes list'!$D$9:$E$58,2,FALSE) ) )","v":""},null,null,null,null,{"$f":"IF(TRIM(AD160)=\"\", \"\", IF(VLOOKUP(AD160,'Footnotes list'!$D$9:$E$58,2,FALSE)=0,\"\",VLOOKUP(AD160,'Footnotes list'!$D$9:$E$58,2,FALSE) ) )","v":""},null,null,null,null,{"$f":"IF(TRIM(AI160)=\"\", \"\", IF(VLOOKUP(AI160,'Footnotes list'!$D$9:$E$58,2,FALSE)=0,\"\",VLOOKUP(AI160,'Footnotes list'!$D$9:$E$58,2,FALSE) ) )","v":""},null,null,null,null,{"$f":"IF(TRIM(AN160)=\"\", \"\", IF(VLOOKUP(AN160,'Footnotes list'!$D$9:$E$58,2,FALSE)=0,\"\",VLOOKUP(AN160,'Footnotes list'!$D$9:$E$58,2,FALSE) ) )","v":""},null,null,null,null,{"$f":"IF(TRIM(AS160)=\"\", \"\", IF(VLOOKUP(AS160,'Footnotes list'!$D$9:$E$58,2,FALSE)=0,\"\",VLOOKUP(AS160,'Footnotes list'!$D$9:$E$58,2,FALSE) ) )","v":""},null,null,null,null,{"$f":"IF(TRIM(AX160)=\"\", \"\", IF(VLOOKUP(AX160,'Footnotes list'!$D$9:$E$58,2,FALSE)=0,\"\",VLOOKUP(AX160,'Footnotes list'!$D$9:$E$58,2,FALSE) ) )","v":""},null,null,null,null,{"$f":"IF(TRIM(BC160)=\"\", \"\", IF(VLOOKUP(BC160,'Footnotes list'!$D$9:$E$58,2,FALSE)=0,\"\",VLOOKUP(BC160,'Footnotes list'!$D$9:$E$58,2,FALSE) ) )","v":""},null,null,null,null,{"$f":"IF(TRIM(BH160)=\"\", \"\", IF(VLOOKUP(BH160,'Footnotes list'!$D$9:$E$58,2,FALSE)=0,\"\",VLOOKUP(BH160,'Footnotes list'!$D$9:$E$58,2,FALSE) ) )","v":""},null,null,null,null,{"$f":"IF(TRIM(BM160)=\"\", \"\", IF(VLOOKUP(BM160,'Footnotes list'!$D$9:$E$58,2,FALSE)=0,\"\",VLOOKUP(BM160,'Footnotes list'!$D$9:$E$58,2,FALSE) ) )","v":""},null,null,null,null,{"$f":"IF(TRIM(BR160)=\"\", \"\", IF(VLOOKUP(BR160,'Footnotes list'!$D$9:$E$58,2,FALSE)=0,\"\",VLOOKUP(BR160,'Footnotes list'!$D$9:$E$58,2,FALSE) ) )","v":""},null,null,null,null,{"$f":"IF(TRIM(BW160)=\"\", \"\", IF(VLOOKUP(BW160,'Footnotes list'!$D$9:$E$58,2,FALSE)=0,\"\",VLOOKUP(BW160,'Footnotes list'!$D$9:$E$58,2,FALSE) ) )","v":""},null,null,null,null,{"$f":"IF(TRIM(CB160)=\"\", \"\", IF(VLOOKUP(CB160,'Footnotes list'!$D$9:$E$58,2,FALSE)=0,\"\",VLOOKUP(CB160,'Footnotes list'!$D$9:$E$58,2,FALSE) ) )","v":""},null,null,null,null,{"$f":"IF(TRIM(CG160)=\"\", \"\", IF(VLOOKUP(CG160,'Footnotes list'!$D$9:$E$58,2,FALSE)=0,\"\",VLOOKUP(CG160,'Footnotes list'!$D$9:$E$58,2,FALSE) ) )","v":""},null,null,null,null,{"$f":"IF(TRIM(CL160)=\"\", \"\", IF(VLOOKUP(CL160,'Footnotes list'!$D$9:$E$58,2,FALSE)=0,\"\",VLOOKUP(CL160,'Footnotes list'!$D$9:$E$58,2,FALSE) ) )","v":""},null,null,null,null,{"$f":"IF(TRIM(CQ160)=\"\", \"\", IF(VLOOKUP(CQ160,'Footnotes list'!$D$9:$E$58,2,FALSE)=0,\"\",VLOOKUP(CQ160,'Footnotes list'!$D$9:$E$58,2,FALSE) ) )","v":""},null,null,null,null,{"$f":"IF(TRIM(CV160)=\"\", \"\", IF(VLOOKUP(CV160,'Footnotes list'!$D$9:$E$58,2,FALSE)=0,\"\",VLOOKUP(CV160,'Footnotes list'!$D$9:$E$58,2,FALSE) ) )","v":""},null,null,null,null,{"$f":"IF(TRIM(DA160)=\"\", \"\", IF(VLOOKUP(DA160,'Footnotes list'!$D$9:$E$58,2,FALSE)=0,\"\",VLOOKUP(DA160,'Footnotes list'!$D$9:$E$58,2,FALSE) ) )","v":""},null,null,null,null,{"$f":"IF(TRIM(DF160)=\"\", \"\", IF(VLOOKUP(DF160,'Footnotes list'!$D$9:$E$58,2,FALSE)=0,\"\",VLOOKUP(DF160,'Footnotes list'!$D$9:$E$58,2,FALSE) ) )","v":""},null,null,null,null,{"$f":"IF(TRIM(DK160)=\"\", \"\", IF(VLOOKUP(DK160,'Footnotes list'!$D$9:$E$58,2,FALSE)=0,\"\",VLOOKUP(DK160,'Footnotes list'!$D$9:$E$58,2,FALSE) ) )","v":""},null,null,null,null,{"$f":"IF(TRIM(DP160)=\"\", \"\", IF(VLOOKUP(DP160,'Footnotes list'!$D$9:$E$58,2,FALSE)=0,\"\",VLOOKUP(DP160,'Footnotes list'!$D$9:$E$58,2,FALSE) ) )","v":""},null,null,null,null,{"$f":"IF(TRIM(DU160)=\"\", \"\", IF(VLOOKUP(DU160,'Footnotes list'!$D$9:$E$58,2,FALSE)=0,\"\",VLOOKUP(DU160,'Footnotes list'!$D$9:$E$58,2,FALSE) ) )","v":""},null,null,null,null,{"$f":"IF(TRIM(DZ160)=\"\", \"\", IF(VLOOKUP(DZ160,'Footnotes list'!$D$9:$E$58,2,FALSE)=0,\"\",VLOOKUP(DZ160,'Footnotes list'!$D$9:$E$58,2,FALSE) ) )","v":""},null,null,null,null,{"$f":"IF(TRIM(EE160)=\"\", \"\", IF(VLOOKUP(EE160,'Footnotes list'!$D$9:$E$58,2,FALSE)=0,\"\",VLOOKUP(EE160,'Footnotes list'!$D$9:$E$58,2,FALSE) ) )","v":""},null,null,null,null,{"$f":"IF(TRIM(EJ160)=\"\", \"\", IF(VLOOKUP(EJ160,'Footnotes list'!$D$9:$E$58,2,FALSE)=0,\"\",VLOOKUP(EJ160,'Footnotes list'!$D$9:$E$58,2,FALSE) ) )","v":""},null,null,null,null,{"$f":"IF(TRIM(EO160)=\"\", \"\", IF(VLOOKUP(EO160,'Footnotes list'!$D$9:$E$58,2,FALSE)=0,\"\",VLOOKUP(EO160,'Footnotes list'!$D$9:$E$58,2,FALSE) ) )","v":""},null,null,null,null,{"$f":"IF(TRIM(ET160)=\"\", \"\", IF(VLOOKUP(ET160,'Footnotes list'!$D$9:$E$58,2,FALSE)=0,\"\",VLOOKUP(ET160,'Footnotes list'!$D$9:$E$58,2,FALSE) ) )","v":""},null,null,null,null,{"$f":"IF(TRIM(EY160)=\"\", \"\", IF(VLOOKUP(EY160,'Footnotes list'!$D$9:$E$58,2,FALSE)=0,\"\",VLOOKUP(EY160,'Footnotes list'!$D$9:$E$58,2,FALSE) ) )","v":""}]
[null,null,"E38","C_REP","cleaner and resource efficient products",null,null,null,null,null,{"$f":"IF(TRIM(J161)=\"\", \"\", IF(VLOOKUP(J161,'Footnotes list'!$D$9:$E$58,2,FALSE)=0,\"\",VLOOKUP(J161,'Footnotes list'!$D$9:$E$58,2,FALSE) ) )","v":""},null,null,null,null,{"$f":"IF(TRIM(O161)=\"\", \"\", IF(VLOOKUP(O161,'Footnotes list'!$D$9:$E$58,2,FALSE)=0,\"\",VLOOKUP(O161,'Footnotes list'!$D$9:$E$58,2,FALSE) ) )","v":""},null,null,null,null,{"$f":"IF(TRIM(T161)=\"\", \"\", IF(VLOOKUP(T161,'Footnotes list'!$D$9:$E$58,2,FALSE)=0,\"\",VLOOKUP(T161,'Footnotes list'!$D$9:$E$58,2,FALSE) ) )","v":""},null,null,null,null,{"$f":"IF(TRIM(Y161)=\"\", \"\", IF(VLOOKUP(Y161,'Footnotes list'!$D$9:$E$58,2,FALSE)=0,\"\",VLOOKUP(Y161,'Footnotes list'!$D$9:$E$58,2,FALSE) ) )","v":""},null,null,null,null,{"$f":"IF(TRIM(AD161)=\"\", \"\", IF(VLOOKUP(AD161,'Footnotes list'!$D$9:$E$58,2,FALSE)=0,\"\",VLOOKUP(AD161,'Footnotes list'!$D$9:$E$58,2,FALSE) ) )","v":""},null,null,null,null,{"$f":"IF(TRIM(AI161)=\"\", \"\", IF(VLOOKUP(AI161,'Footnotes list'!$D$9:$E$58,2,FALSE)=0,\"\",VLOOKUP(AI161,'Footnotes list'!$D$9:$E$58,2,FALSE) ) )","v":""},null,null,null,null,{"$f":"IF(TRIM(AN161)=\"\", \"\", IF(VLOOKUP(AN161,'Footnotes list'!$D$9:$E$58,2,FALSE)=0,\"\",VLOOKUP(AN161,'Footnotes list'!$D$9:$E$58,2,FALSE) ) )","v":""},null,null,null,null,{"$f":"IF(TRIM(AS161)=\"\", \"\", IF(VLOOKUP(AS161,'Footnotes list'!$D$9:$E$58,2,FALSE)=0,\"\",VLOOKUP(AS161,'Footnotes list'!$D$9:$E$58,2,FALSE) ) )","v":""},null,null,null,null,{"$f":"IF(TRIM(AX161)=\"\", \"\", IF(VLOOKUP(AX161,'Footnotes list'!$D$9:$E$58,2,FALSE)=0,\"\",VLOOKUP(AX161,'Footnotes list'!$D$9:$E$58,2,FALSE) ) )","v":""},null,null,null,null,{"$f":"IF(TRIM(BC161)=\"\", \"\", IF(VLOOKUP(BC161,'Footnotes list'!$D$9:$E$58,2,FALSE)=0,\"\",VLOOKUP(BC161,'Footnotes list'!$D$9:$E$58,2,FALSE) ) )","v":""},null,null,null,null,{"$f":"IF(TRIM(BH161)=\"\", \"\", IF(VLOOKUP(BH161,'Footnotes list'!$D$9:$E$58,2,FALSE)=0,\"\",VLOOKUP(BH161,'Footnotes list'!$D$9:$E$58,2,FALSE) ) )","v":""},null,null,null,null,{"$f":"IF(TRIM(BM161)=\"\", \"\", IF(VLOOKUP(BM161,'Footnotes list'!$D$9:$E$58,2,FALSE)=0,\"\",VLOOKUP(BM161,'Footnotes list'!$D$9:$E$58,2,FALSE) ) )","v":""},null,null,null,null,{"$f":"IF(TRIM(BR161)=\"\", \"\", IF(VLOOKUP(BR161,'Footnotes list'!$D$9:$E$58,2,FALSE)=0,\"\",VLOOKUP(BR161,'Footnotes list'!$D$9:$E$58,2,FALSE) ) )","v":""},null,null,null,null,{"$f":"IF(TRIM(BW161)=\"\", \"\", IF(VLOOKUP(BW161,'Footnotes list'!$D$9:$E$58,2,FALSE)=0,\"\",VLOOKUP(BW161,'Footnotes list'!$D$9:$E$58,2,FALSE) ) )","v":""},null,null,null,null,{"$f":"IF(TRIM(CB161)=\"\", \"\", IF(VLOOKUP(CB161,'Footnotes list'!$D$9:$E$58,2,FALSE)=0,\"\",VLOOKUP(CB161,'Footnotes list'!$D$9:$E$58,2,FALSE) ) )","v":""},null,null,null,null,{"$f":"IF(TRIM(CG161)=\"\", \"\", IF(VLOOKUP(CG161,'Footnotes list'!$D$9:$E$58,2,FALSE)=0,\"\",VLOOKUP(CG161,'Footnotes list'!$D$9:$E$58,2,FALSE) ) )","v":""},null,null,null,null,{"$f":"IF(TRIM(CL161)=\"\", \"\", IF(VLOOKUP(CL161,'Footnotes list'!$D$9:$E$58,2,FALSE)=0,\"\",VLOOKUP(CL161,'Footnotes list'!$D$9:$E$58,2,FALSE) ) )","v":""},null,null,null,null,{"$f":"IF(TRIM(CQ161)=\"\", \"\", IF(VLOOKUP(CQ161,'Footnotes list'!$D$9:$E$58,2,FALSE)=0,\"\",VLOOKUP(CQ161,'Footnotes list'!$D$9:$E$58,2,FALSE) ) )","v":""},null,null,null,null,{"$f":"IF(TRIM(CV161)=\"\", \"\", IF(VLOOKUP(CV161,'Footnotes list'!$D$9:$E$58,2,FALSE)=0,\"\",VLOOKUP(CV161,'Footnotes list'!$D$9:$E$58,2,FALSE) ) )","v":""},null,null,null,null,{"$f":"IF(TRIM(DA161)=\"\", \"\", IF(VLOOKUP(DA161,'Footnotes list'!$D$9:$E$58,2,FALSE)=0,\"\",VLOOKUP(DA161,'Footnotes list'!$D$9:$E$58,2,FALSE) ) )","v":""},null,null,null,null,{"$f":"IF(TRIM(DF161)=\"\", \"\", IF(VLOOKUP(DF161,'Footnotes list'!$D$9:$E$58,2,FALSE)=0,\"\",VLOOKUP(DF161,'Footnotes list'!$D$9:$E$58,2,FALSE) ) )","v":""},null,null,null,null,{"$f":"IF(TRIM(DK161)=\"\", \"\", IF(VLOOKUP(DK161,'Footnotes list'!$D$9:$E$58,2,FALSE)=0,\"\",VLOOKUP(DK161,'Footnotes list'!$D$9:$E$58,2,FALSE) ) )","v":""},null,null,null,null,{"$f":"IF(TRIM(DP161)=\"\", \"\", IF(VLOOKUP(DP161,'Footnotes list'!$D$9:$E$58,2,FALSE)=0,\"\",VLOOKUP(DP161,'Footnotes list'!$D$9:$E$58,2,FALSE) ) )","v":""},null,null,null,null,{"$f":"IF(TRIM(DU161)=\"\", \"\", IF(VLOOKUP(DU161,'Footnotes list'!$D$9:$E$58,2,FALSE)=0,\"\",VLOOKUP(DU161,'Footnotes list'!$D$9:$E$58,2,FALSE) ) )","v":""},null,null,null,null,{"$f":"IF(TRIM(DZ161)=\"\", \"\", IF(VLOOKUP(DZ161,'Footnotes list'!$D$9:$E$58,2,FALSE)=0,\"\",VLOOKUP(DZ161,'Footnotes list'!$D$9:$E$58,2,FALSE) ) )","v":""},null,null,null,null,{"$f":"IF(TRIM(EE161)=\"\", \"\", IF(VLOOKUP(EE161,'Footnotes list'!$D$9:$E$58,2,FALSE)=0,\"\",VLOOKUP(EE161,'Footnotes list'!$D$9:$E$58,2,FALSE) ) )","v":""},null,null,null,null,{"$f":"IF(TRIM(EJ161)=\"\", \"\", IF(VLOOKUP(EJ161,'Footnotes list'!$D$9:$E$58,2,FALSE)=0,\"\",VLOOKUP(EJ161,'Footnotes list'!$D$9:$E$58,2,FALSE) ) )","v":""},null,null,null,null,{"$f":"IF(TRIM(EO161)=\"\", \"\", IF(VLOOKUP(EO161,'Footnotes list'!$D$9:$E$58,2,FALSE)=0,\"\",VLOOKUP(EO161,'Footnotes list'!$D$9:$E$58,2,FALSE) ) )","v":""},null,null,null,null,{"$f":"IF(TRIM(ET161)=\"\", \"\", IF(VLOOKUP(ET161,'Footnotes list'!$D$9:$E$58,2,FALSE)=0,\"\",VLOOKUP(ET161,'Footnotes list'!$D$9:$E$58,2,FALSE) ) )","v":""},null,null,null,null,{"$f":"IF(TRIM(EY161)=\"\", \"\", IF(VLOOKUP(EY161,'Footnotes list'!$D$9:$E$58,2,FALSE)=0,\"\",VLOOKUP(EY161,'Footnotes list'!$D$9:$E$58,2,FALSE) ) )","v":""}]
[null,null,"E39","TOT_EGSS","Total E39 - Remediation activities and other waste management services, of which:",null,null,null,null,null,{"$f":"IF(TRIM(J162)=\"\", \"\", IF(VLOOKUP(J162,'Footnotes list'!$D$9:$E$58,2,FALSE)=0,\"\",VLOOKUP(J162,'Footnotes list'!$D$9:$E$58,2,FALSE) ) )","v":""},null,null,null,null,{"$f":"IF(TRIM(O162)=\"\", \"\", IF(VLOOKUP(O162,'Footnotes list'!$D$9:$E$58,2,FALSE)=0,\"\",VLOOKUP(O162,'Footnotes list'!$D$9:$E$58,2,FALSE) ) )","v":""},null,null,null,null,{"$f":"IF(TRIM(T162)=\"\", \"\", IF(VLOOKUP(T162,'Footnotes list'!$D$9:$E$58,2,FALSE)=0,\"\",VLOOKUP(T162,'Footnotes list'!$D$9:$E$58,2,FALSE) ) )","v":""},null,null,null,null,{"$f":"IF(TRIM(Y162)=\"\", \"\", IF(VLOOKUP(Y162,'Footnotes list'!$D$9:$E$58,2,FALSE)=0,\"\",VLOOKUP(Y162,'Footnotes list'!$D$9:$E$58,2,FALSE) ) )","v":""},null,null,null,null,{"$f":"IF(TRIM(AD162)=\"\", \"\", IF(VLOOKUP(AD162,'Footnotes list'!$D$9:$E$58,2,FALSE)=0,\"\",VLOOKUP(AD162,'Footnotes list'!$D$9:$E$58,2,FALSE) ) )","v":""},null,null,null,null,{"$f":"IF(TRIM(AI162)=\"\", \"\", IF(VLOOKUP(AI162,'Footnotes list'!$D$9:$E$58,2,FALSE)=0,\"\",VLOOKUP(AI162,'Footnotes list'!$D$9:$E$58,2,FALSE) ) )","v":""},null,null,null,null,{"$f":"IF(TRIM(AN162)=\"\", \"\", IF(VLOOKUP(AN162,'Footnotes list'!$D$9:$E$58,2,FALSE)=0,\"\",VLOOKUP(AN162,'Footnotes list'!$D$9:$E$58,2,FALSE) ) )","v":""},null,null,null,null,{"$f":"IF(TRIM(AS162)=\"\", \"\", IF(VLOOKUP(AS162,'Footnotes list'!$D$9:$E$58,2,FALSE)=0,\"\",VLOOKUP(AS162,'Footnotes list'!$D$9:$E$58,2,FALSE) ) )","v":""},null,null,null,null,{"$f":"IF(TRIM(AX162)=\"\", \"\", IF(VLOOKUP(AX162,'Footnotes list'!$D$9:$E$58,2,FALSE)=0,\"\",VLOOKUP(AX162,'Footnotes list'!$D$9:$E$58,2,FALSE) ) )","v":""},null,null,null,null,{"$f":"IF(TRIM(BC162)=\"\", \"\", IF(VLOOKUP(BC162,'Footnotes list'!$D$9:$E$58,2,FALSE)=0,\"\",VLOOKUP(BC162,'Footnotes list'!$D$9:$E$58,2,FALSE) ) )","v":""},null,null,null,null,{"$f":"IF(TRIM(BH162)=\"\", \"\", IF(VLOOKUP(BH162,'Footnotes list'!$D$9:$E$58,2,FALSE)=0,\"\",VLOOKUP(BH162,'Footnotes list'!$D$9:$E$58,2,FALSE) ) )","v":""},null,null,null,null,{"$f":"IF(TRIM(BM162)=\"\", \"\", IF(VLOOKUP(BM162,'Footnotes list'!$D$9:$E$58,2,FALSE)=0,\"\",VLOOKUP(BM162,'Footnotes list'!$D$9:$E$58,2,FALSE) ) )","v":""},null,null,null,null,{"$f":"IF(TRIM(BR162)=\"\", \"\", IF(VLOOKUP(BR162,'Footnotes list'!$D$9:$E$58,2,FALSE)=0,\"\",VLOOKUP(BR162,'Footnotes list'!$D$9:$E$58,2,FALSE) ) )","v":""},null,null,null,null,{"$f":"IF(TRIM(BW162)=\"\", \"\", IF(VLOOKUP(BW162,'Footnotes list'!$D$9:$E$58,2,FALSE)=0,\"\",VLOOKUP(BW162,'Footnotes list'!$D$9:$E$58,2,FALSE) ) )","v":""},null,null,null,null,{"$f":"IF(TRIM(CB162)=\"\", \"\", IF(VLOOKUP(CB162,'Footnotes list'!$D$9:$E$58,2,FALSE)=0,\"\",VLOOKUP(CB162,'Footnotes list'!$D$9:$E$58,2,FALSE) ) )","v":""},null,null,null,null,{"$f":"IF(TRIM(CG162)=\"\", \"\", IF(VLOOKUP(CG162,'Footnotes list'!$D$9:$E$58,2,FALSE)=0,\"\",VLOOKUP(CG162,'Footnotes list'!$D$9:$E$58,2,FALSE) ) )","v":""},null,null,null,null,{"$f":"IF(TRIM(CL162)=\"\", \"\", IF(VLOOKUP(CL162,'Footnotes list'!$D$9:$E$58,2,FALSE)=0,\"\",VLOOKUP(CL162,'Footnotes list'!$D$9:$E$58,2,FALSE) ) )","v":""},null,null,null,null,{"$f":"IF(TRIM(CQ162)=\"\", \"\", IF(VLOOKUP(CQ162,'Footnotes list'!$D$9:$E$58,2,FALSE)=0,\"\",VLOOKUP(CQ162,'Footnotes list'!$D$9:$E$58,2,FALSE) ) )","v":""},null,null,null,null,{"$f":"IF(TRIM(CV162)=\"\", \"\", IF(VLOOKUP(CV162,'Footnotes list'!$D$9:$E$58,2,FALSE)=0,\"\",VLOOKUP(CV162,'Footnotes list'!$D$9:$E$58,2,FALSE) ) )","v":""},null,null,null,null,{"$f":"IF(TRIM(DA162)=\"\", \"\", IF(VLOOKUP(DA162,'Footnotes list'!$D$9:$E$58,2,FALSE)=0,\"\",VLOOKUP(DA162,'Footnotes list'!$D$9:$E$58,2,FALSE) ) )","v":""},null,null,null,null,{"$f":"IF(TRIM(DF162)=\"\", \"\", IF(VLOOKUP(DF162,'Footnotes list'!$D$9:$E$58,2,FALSE)=0,\"\",VLOOKUP(DF162,'Footnotes list'!$D$9:$E$58,2,FALSE) ) )","v":""},null,null,null,null,{"$f":"IF(TRIM(DK162)=\"\", \"\", IF(VLOOKUP(DK162,'Footnotes list'!$D$9:$E$58,2,FALSE)=0,\"\",VLOOKUP(DK162,'Footnotes list'!$D$9:$E$58,2,FALSE) ) )","v":""},null,null,null,null,{"$f":"IF(TRIM(DP162)=\"\", \"\", IF(VLOOKUP(DP162,'Footnotes list'!$D$9:$E$58,2,FALSE)=0,\"\",VLOOKUP(DP162,'Footnotes list'!$D$9:$E$58,2,FALSE) ) )","v":""},null,null,null,null,{"$f":"IF(TRIM(DU162)=\"\", \"\", IF(VLOOKUP(DU162,'Footnotes list'!$D$9:$E$58,2,FALSE)=0,\"\",VLOOKUP(DU162,'Footnotes list'!$D$9:$E$58,2,FALSE) ) )","v":""},null,null,null,null,{"$f":"IF(TRIM(DZ162)=\"\", \"\", IF(VLOOKUP(DZ162,'Footnotes list'!$D$9:$E$58,2,FALSE)=0,\"\",VLOOKUP(DZ162,'Footnotes list'!$D$9:$E$58,2,FALSE) ) )","v":""},null,null,null,null,{"$f":"IF(TRIM(EE162)=\"\", \"\", IF(VLOOKUP(EE162,'Footnotes list'!$D$9:$E$58,2,FALSE)=0,\"\",VLOOKUP(EE162,'Footnotes list'!$D$9:$E$58,2,FALSE) ) )","v":""},null,null,null,null,{"$f":"IF(TRIM(EJ162)=\"\", \"\", IF(VLOOKUP(EJ162,'Footnotes list'!$D$9:$E$58,2,FALSE)=0,\"\",VLOOKUP(EJ162,'Footnotes list'!$D$9:$E$58,2,FALSE) ) )","v":""},null,null,null,null,{"$f":"IF(TRIM(EO162)=\"\", \"\", IF(VLOOKUP(EO162,'Footnotes list'!$D$9:$E$58,2,FALSE)=0,\"\",VLOOKUP(EO162,'Footnotes list'!$D$9:$E$58,2,FALSE) ) )","v":""},null,null,null,null,{"$f":"IF(TRIM(ET162)=\"\", \"\", IF(VLOOKUP(ET162,'Footnotes list'!$D$9:$E$58,2,FALSE)=0,\"\",VLOOKUP(ET162,'Footnotes list'!$D$9:$E$58,2,FALSE) ) )","v":""},null,null,null,null,{"$f":"IF(TRIM(EY162)=\"\", \"\", IF(VLOOKUP(EY162,'Footnotes list'!$D$9:$E$58,2,FALSE)=0,\"\",VLOOKUP(EY162,'Footnotes list'!$D$9:$E$58,2,FALSE) ) )","v":""}]
[null,null,"E39","ANC","ancillary activities",null,null,null,null,null,{"$f":"IF(TRIM(J163)=\"\", \"\", IF(VLOOKUP(J163,'Footnotes list'!$D$9:$E$58,2,FALSE)=0,\"\",VLOOKUP(J163,'Footnotes list'!$D$9:$E$58,2,FALSE) ) )","v":""},null,null,null,null,{"$f":"IF(TRIM(O163)=\"\", \"\", IF(VLOOKUP(O163,'Footnotes list'!$D$9:$E$58,2,FALSE)=0,\"\",VLOOKUP(O163,'Footnotes list'!$D$9:$E$58,2,FALSE) ) )","v":""},null,null,null,null,{"$f":"IF(TRIM(T163)=\"\", \"\", IF(VLOOKUP(T163,'Footnotes list'!$D$9:$E$58,2,FALSE)=0,\"\",VLOOKUP(T163,'Footnotes list'!$D$9:$E$58,2,FALSE) ) )","v":""},null,null,null,null,{"$f":"IF(TRIM(Y163)=\"\", \"\", IF(VLOOKUP(Y163,'Footnotes list'!$D$9:$E$58,2,FALSE)=0,\"\",VLOOKUP(Y163,'Footnotes list'!$D$9:$E$58,2,FALSE) ) )","v":""},null,null,null,null,{"$f":"IF(TRIM(AD163)=\"\", \"\", IF(VLOOKUP(AD163,'Footnotes list'!$D$9:$E$58,2,FALSE)=0,\"\",VLOOKUP(AD163,'Footnotes list'!$D$9:$E$58,2,FALSE) ) )","v":""},null,null,null,null,{"$f":"IF(TRIM(AI163)=\"\", \"\", IF(VLOOKUP(AI163,'Footnotes list'!$D$9:$E$58,2,FALSE)=0,\"\",VLOOKUP(AI163,'Footnotes list'!$D$9:$E$58,2,FALSE) ) )","v":""},null,null,null,null,{"$f":"IF(TRIM(AN163)=\"\", \"\", IF(VLOOKUP(AN163,'Footnotes list'!$D$9:$E$58,2,FALSE)=0,\"\",VLOOKUP(AN163,'Footnotes list'!$D$9:$E$58,2,FALSE) ) )","v":""},null,null,null,null,{"$f":"IF(TRIM(AS163)=\"\", \"\", IF(VLOOKUP(AS163,'Footnotes list'!$D$9:$E$58,2,FALSE)=0,\"\",VLOOKUP(AS163,'Footnotes list'!$D$9:$E$58,2,FALSE) ) )","v":""},null,null,null,null,{"$f":"IF(TRIM(AX163)=\"\", \"\", IF(VLOOKUP(AX163,'Footnotes list'!$D$9:$E$58,2,FALSE)=0,\"\",VLOOKUP(AX163,'Footnotes list'!$D$9:$E$58,2,FALSE) ) )","v":""},null,null,null,null,{"$f":"IF(TRIM(BC163)=\"\", \"\", IF(VLOOKUP(BC163,'Footnotes list'!$D$9:$E$58,2,FALSE)=0,\"\",VLOOKUP(BC163,'Footnotes list'!$D$9:$E$58,2,FALSE) ) )","v":""},null,null,null,null,{"$f":"IF(TRIM(BH163)=\"\", \"\", IF(VLOOKUP(BH163,'Footnotes list'!$D$9:$E$58,2,FALSE)=0,\"\",VLOOKUP(BH163,'Footnotes list'!$D$9:$E$58,2,FALSE) ) )","v":""},null,null,null,null,{"$f":"IF(TRIM(BM163)=\"\", \"\", IF(VLOOKUP(BM163,'Footnotes list'!$D$9:$E$58,2,FALSE)=0,\"\",VLOOKUP(BM163,'Footnotes list'!$D$9:$E$58,2,FALSE) ) )","v":""},null,null,null,null,{"$f":"IF(TRIM(BR163)=\"\", \"\", IF(VLOOKUP(BR163,'Footnotes list'!$D$9:$E$58,2,FALSE)=0,\"\",VLOOKUP(BR163,'Footnotes list'!$D$9:$E$58,2,FALSE) ) )","v":""},null,null,null,null,{"$f":"IF(TRIM(BW163)=\"\", \"\", IF(VLOOKUP(BW163,'Footnotes list'!$D$9:$E$58,2,FALSE)=0,\"\",VLOOKUP(BW163,'Footnotes list'!$D$9:$E$58,2,FALSE) ) )","v":""},null,null,null,null,{"$f":"IF(TRIM(CB163)=\"\", \"\", IF(VLOOKUP(CB163,'Footnotes list'!$D$9:$E$58,2,FALSE)=0,\"\",VLOOKUP(CB163,'Footnotes list'!$D$9:$E$58,2,FALSE) ) )","v":""},null,null,null,null,{"$f":"IF(TRIM(CG163)=\"\", \"\", IF(VLOOKUP(CG163,'Footnotes list'!$D$9:$E$58,2,FALSE)=0,\"\",VLOOKUP(CG163,'Footnotes list'!$D$9:$E$58,2,FALSE) ) )","v":""},null,null,null,null,{"$f":"IF(TRIM(CL163)=\"\", \"\", IF(VLOOKUP(CL163,'Footnotes list'!$D$9:$E$58,2,FALSE)=0,\"\",VLOOKUP(CL163,'Footnotes list'!$D$9:$E$58,2,FALSE) ) )","v":""},null,null,null,null,{"$f":"IF(TRIM(CQ163)=\"\", \"\", IF(VLOOKUP(CQ163,'Footnotes list'!$D$9:$E$58,2,FALSE)=0,\"\",VLOOKUP(CQ163,'Footnotes list'!$D$9:$E$58,2,FALSE) ) )","v":""},null,null,null,null,{"$f":"IF(TRIM(CV163)=\"\", \"\", IF(VLOOKUP(CV163,'Footnotes list'!$D$9:$E$58,2,FALSE)=0,\"\",VLOOKUP(CV163,'Footnotes list'!$D$9:$E$58,2,FALSE) ) )","v":""},null,null,null,null,{"$f":"IF(TRIM(DA163)=\"\", \"\", IF(VLOOKUP(DA163,'Footnotes list'!$D$9:$E$58,2,FALSE)=0,\"\",VLOOKUP(DA163,'Footnotes list'!$D$9:$E$58,2,FALSE) ) )","v":""},null,null,null,null,{"$f":"IF(TRIM(DF163)=\"\", \"\", IF(VLOOKUP(DF163,'Footnotes list'!$D$9:$E$58,2,FALSE)=0,\"\",VLOOKUP(DF163,'Footnotes list'!$D$9:$E$58,2,FALSE) ) )","v":""},null,null,null,null,{"$f":"IF(TRIM(DK163)=\"\", \"\", IF(VLOOKUP(DK163,'Footnotes list'!$D$9:$E$58,2,FALSE)=0,\"\",VLOOKUP(DK163,'Footnotes list'!$D$9:$E$58,2,FALSE) ) )","v":""},null,null,null,null,{"$f":"IF(TRIM(DP163)=\"\", \"\", IF(VLOOKUP(DP163,'Footnotes list'!$D$9:$E$58,2,FALSE)=0,\"\",VLOOKUP(DP163,'Footnotes list'!$D$9:$E$58,2,FALSE) ) )","v":""},null,null,null,null,{"$f":"IF(TRIM(DU163)=\"\", \"\", IF(VLOOKUP(DU163,'Footnotes list'!$D$9:$E$58,2,FALSE)=0,\"\",VLOOKUP(DU163,'Footnotes list'!$D$9:$E$58,2,FALSE) ) )","v":""},null,null,null,null,{"$f":"IF(TRIM(DZ163)=\"\", \"\", IF(VLOOKUP(DZ163,'Footnotes list'!$D$9:$E$58,2,FALSE)=0,\"\",VLOOKUP(DZ163,'Footnotes list'!$D$9:$E$58,2,FALSE) ) )","v":""},null,null,null,null,{"$f":"IF(TRIM(EE163)=\"\", \"\", IF(VLOOKUP(EE163,'Footnotes list'!$D$9:$E$58,2,FALSE)=0,\"\",VLOOKUP(EE163,'Footnotes list'!$D$9:$E$58,2,FALSE) ) )","v":""},null,null,null,null,{"$f":"IF(TRIM(EJ163)=\"\", \"\", IF(VLOOKUP(EJ163,'Footnotes list'!$D$9:$E$58,2,FALSE)=0,\"\",VLOOKUP(EJ163,'Footnotes list'!$D$9:$E$58,2,FALSE) ) )","v":""},null,null,null,null,{"$f":"IF(TRIM(EO163)=\"\", \"\", IF(VLOOKUP(EO163,'Footnotes list'!$D$9:$E$58,2,FALSE)=0,\"\",VLOOKUP(EO163,'Footnotes list'!$D$9:$E$58,2,FALSE) ) )","v":""},null,null,null,null,{"$f":"IF(TRIM(ET163)=\"\", \"\", IF(VLOOKUP(ET163,'Footnotes list'!$D$9:$E$58,2,FALSE)=0,\"\",VLOOKUP(ET163,'Footnotes list'!$D$9:$E$58,2,FALSE) ) )","v":""},null,null,null,null,{"$f":"IF(TRIM(EY163)=\"\", \"\", IF(VLOOKUP(EY163,'Footnotes list'!$D$9:$E$58,2,FALSE)=0,\"\",VLOOKUP(EY163,'Footnotes list'!$D$9:$E$58,2,FALSE) ) )","v":""}]
[null,null,"E39","NMKT","non-market activities",null,null,null,null,null,{"$f":"IF(TRIM(J164)=\"\", \"\", IF(VLOOKUP(J164,'Footnotes list'!$D$9:$E$58,2,FALSE)=0,\"\",VLOOKUP(J164,'Footnotes list'!$D$9:$E$58,2,FALSE) ) )","v":""},null,null,null,null,{"$f":"IF(TRIM(O164)=\"\", \"\", IF(VLOOKUP(O164,'Footnotes list'!$D$9:$E$58,2,FALSE)=0,\"\",VLOOKUP(O164,'Footnotes list'!$D$9:$E$58,2,FALSE) ) )","v":""},null,null,null,null,{"$f":"IF(TRIM(T164)=\"\", \"\", IF(VLOOKUP(T164,'Footnotes list'!$D$9:$E$58,2,FALSE)=0,\"\",VLOOKUP(T164,'Footnotes list'!$D$9:$E$58,2,FALSE) ) )","v":""},null,null,null,null,{"$f":"IF(TRIM(Y164)=\"\", \"\", IF(VLOOKUP(Y164,'Footnotes list'!$D$9:$E$58,2,FALSE)=0,\"\",VLOOKUP(Y164,'Footnotes list'!$D$9:$E$58,2,FALSE) ) )","v":""},null,null,null,null,{"$f":"IF(TRIM(AD164)=\"\", \"\", IF(VLOOKUP(AD164,'Footnotes list'!$D$9:$E$58,2,FALSE)=0,\"\",VLOOKUP(AD164,'Footnotes list'!$D$9:$E$58,2,FALSE) ) )","v":""},null,null,null,null,{"$f":"IF(TRIM(AI164)=\"\", \"\", IF(VLOOKUP(AI164,'Footnotes list'!$D$9:$E$58,2,FALSE)=0,\"\",VLOOKUP(AI164,'Footnotes list'!$D$9:$E$58,2,FALSE) ) )","v":""},null,null,null,null,{"$f":"IF(TRIM(AN164)=\"\", \"\", IF(VLOOKUP(AN164,'Footnotes list'!$D$9:$E$58,2,FALSE)=0,\"\",VLOOKUP(AN164,'Footnotes list'!$D$9:$E$58,2,FALSE) ) )","v":""},null,null,null,null,{"$f":"IF(TRIM(AS164)=\"\", \"\", IF(VLOOKUP(AS164,'Footnotes list'!$D$9:$E$58,2,FALSE)=0,\"\",VLOOKUP(AS164,'Footnotes list'!$D$9:$E$58,2,FALSE) ) )","v":""},null,null,null,null,{"$f":"IF(TRIM(AX164)=\"\", \"\", IF(VLOOKUP(AX164,'Footnotes list'!$D$9:$E$58,2,FALSE)=0,\"\",VLOOKUP(AX164,'Footnotes list'!$D$9:$E$58,2,FALSE) ) )","v":""},null,null,null,null,{"$f":"IF(TRIM(BC164)=\"\", \"\", IF(VLOOKUP(BC164,'Footnotes list'!$D$9:$E$58,2,FALSE)=0,\"\",VLOOKUP(BC164,'Footnotes list'!$D$9:$E$58,2,FALSE) ) )","v":""},null,null,null,null,{"$f":"IF(TRIM(BH164)=\"\", \"\", IF(VLOOKUP(BH164,'Footnotes list'!$D$9:$E$58,2,FALSE)=0,\"\",VLOOKUP(BH164,'Footnotes list'!$D$9:$E$58,2,FALSE) ) )","v":""},null,null,null,null,{"$f":"IF(TRIM(BM164)=\"\", \"\", IF(VLOOKUP(BM164,'Footnotes list'!$D$9:$E$58,2,FALSE)=0,\"\",VLOOKUP(BM164,'Footnotes list'!$D$9:$E$58,2,FALSE) ) )","v":""},null,null,null,null,{"$f":"IF(TRIM(BR164)=\"\", \"\", IF(VLOOKUP(BR164,'Footnotes list'!$D$9:$E$58,2,FALSE)=0,\"\",VLOOKUP(BR164,'Footnotes list'!$D$9:$E$58,2,FALSE) ) )","v":""},null,null,null,null,{"$f":"IF(TRIM(BW164)=\"\", \"\", IF(VLOOKUP(BW164,'Footnotes list'!$D$9:$E$58,2,FALSE)=0,\"\",VLOOKUP(BW164,'Footnotes list'!$D$9:$E$58,2,FALSE) ) )","v":""},null,null,null,null,{"$f":"IF(TRIM(CB164)=\"\", \"\", IF(VLOOKUP(CB164,'Footnotes list'!$D$9:$E$58,2,FALSE)=0,\"\",VLOOKUP(CB164,'Footnotes list'!$D$9:$E$58,2,FALSE) ) )","v":""},null,null,null,null,{"$f":"IF(TRIM(CG164)=\"\", \"\", IF(VLOOKUP(CG164,'Footnotes list'!$D$9:$E$58,2,FALSE)=0,\"\",VLOOKUP(CG164,'Footnotes list'!$D$9:$E$58,2,FALSE) ) )","v":""},null,null,null,null,{"$f":"IF(TRIM(CL164)=\"\", \"\", IF(VLOOKUP(CL164,'Footnotes list'!$D$9:$E$58,2,FALSE)=0,\"\",VLOOKUP(CL164,'Footnotes list'!$D$9:$E$58,2,FALSE) ) )","v":""},null,null,null,null,{"$f":"IF(TRIM(CQ164)=\"\", \"\", IF(VLOOKUP(CQ164,'Footnotes list'!$D$9:$E$58,2,FALSE)=0,\"\",VLOOKUP(CQ164,'Footnotes list'!$D$9:$E$58,2,FALSE) ) )","v":""},null,null,null,null,{"$f":"IF(TRIM(CV164)=\"\", \"\", IF(VLOOKUP(CV164,'Footnotes list'!$D$9:$E$58,2,FALSE)=0,\"\",VLOOKUP(CV164,'Footnotes list'!$D$9:$E$58,2,FALSE) ) )","v":""},null,null,null,null,{"$f":"IF(TRIM(DA164)=\"\", \"\", IF(VLOOKUP(DA164,'Footnotes list'!$D$9:$E$58,2,FALSE)=0,\"\",VLOOKUP(DA164,'Footnotes list'!$D$9:$E$58,2,FALSE) ) )","v":""},null,null,null,null,{"$f":"IF(TRIM(DF164)=\"\", \"\", IF(VLOOKUP(DF164,'Footnotes list'!$D$9:$E$58,2,FALSE)=0,\"\",VLOOKUP(DF164,'Footnotes list'!$D$9:$E$58,2,FALSE) ) )","v":""},null,null,null,null,{"$f":"IF(TRIM(DK164)=\"\", \"\", IF(VLOOKUP(DK164,'Footnotes list'!$D$9:$E$58,2,FALSE)=0,\"\",VLOOKUP(DK164,'Footnotes list'!$D$9:$E$58,2,FALSE) ) )","v":""},null,null,null,null,{"$f":"IF(TRIM(DP164)=\"\", \"\", IF(VLOOKUP(DP164,'Footnotes list'!$D$9:$E$58,2,FALSE)=0,\"\",VLOOKUP(DP164,'Footnotes list'!$D$9:$E$58,2,FALSE) ) )","v":""},null,null,null,null,{"$f":"IF(TRIM(DU164)=\"\", \"\", IF(VLOOKUP(DU164,'Footnotes list'!$D$9:$E$58,2,FALSE)=0,\"\",VLOOKUP(DU164,'Footnotes list'!$D$9:$E$58,2,FALSE) ) )","v":""},null,null,null,null,{"$f":"IF(TRIM(DZ164)=\"\", \"\", IF(VLOOKUP(DZ164,'Footnotes list'!$D$9:$E$58,2,FALSE)=0,\"\",VLOOKUP(DZ164,'Footnotes list'!$D$9:$E$58,2,FALSE) ) )","v":""},null,null,null,null,{"$f":"IF(TRIM(EE164)=\"\", \"\", IF(VLOOKUP(EE164,'Footnotes list'!$D$9:$E$58,2,FALSE)=0,\"\",VLOOKUP(EE164,'Footnotes list'!$D$9:$E$58,2,FALSE) ) )","v":""},null,null,null,null,{"$f":"IF(TRIM(EJ164)=\"\", \"\", IF(VLOOKUP(EJ164,'Footnotes list'!$D$9:$E$58,2,FALSE)=0,\"\",VLOOKUP(EJ164,'Footnotes list'!$D$9:$E$58,2,FALSE) ) )","v":""},null,null,null,null,{"$f":"IF(TRIM(EO164)=\"\", \"\", IF(VLOOKUP(EO164,'Footnotes list'!$D$9:$E$58,2,FALSE)=0,\"\",VLOOKUP(EO164,'Footnotes list'!$D$9:$E$58,2,FALSE) ) )","v":""},null,null,null,null,{"$f":"IF(TRIM(ET164)=\"\", \"\", IF(VLOOKUP(ET164,'Footnotes list'!$D$9:$E$58,2,FALSE)=0,\"\",VLOOKUP(ET164,'Footnotes list'!$D$9:$E$58,2,FALSE) ) )","v":""},null,null,null,null,{"$f":"IF(TRIM(EY164)=\"\", \"\", IF(VLOOKUP(EY164,'Footnotes list'!$D$9:$E$58,2,FALSE)=0,\"\",VLOOKUP(EY164,'Footnotes list'!$D$9:$E$58,2,FALSE) ) )","v":""}]
[null,null,"E39","OWN_USE","activities for own final use",null,null,null,null,null,{"$f":"IF(TRIM(J165)=\"\", \"\", IF(VLOOKUP(J165,'Footnotes list'!$D$9:$E$58,2,FALSE)=0,\"\",VLOOKUP(J165,'Footnotes list'!$D$9:$E$58,2,FALSE) ) )","v":""},null,null,null,null,{"$f":"IF(TRIM(O165)=\"\", \"\", IF(VLOOKUP(O165,'Footnotes list'!$D$9:$E$58,2,FALSE)=0,\"\",VLOOKUP(O165,'Footnotes list'!$D$9:$E$58,2,FALSE) ) )","v":""},null,null,null,null,{"$f":"IF(TRIM(T165)=\"\", \"\", IF(VLOOKUP(T165,'Footnotes list'!$D$9:$E$58,2,FALSE)=0,\"\",VLOOKUP(T165,'Footnotes list'!$D$9:$E$58,2,FALSE) ) )","v":""},null,null,null,null,{"$f":"IF(TRIM(Y165)=\"\", \"\", IF(VLOOKUP(Y165,'Footnotes list'!$D$9:$E$58,2,FALSE)=0,\"\",VLOOKUP(Y165,'Footnotes list'!$D$9:$E$58,2,FALSE) ) )","v":""},null,null,null,null,{"$f":"IF(TRIM(AD165)=\"\", \"\", IF(VLOOKUP(AD165,'Footnotes list'!$D$9:$E$58,2,FALSE)=0,\"\",VLOOKUP(AD165,'Footnotes list'!$D$9:$E$58,2,FALSE) ) )","v":""},null,null,null,null,{"$f":"IF(TRIM(AI165)=\"\", \"\", IF(VLOOKUP(AI165,'Footnotes list'!$D$9:$E$58,2,FALSE)=0,\"\",VLOOKUP(AI165,'Footnotes list'!$D$9:$E$58,2,FALSE) ) )","v":""},null,null,null,null,{"$f":"IF(TRIM(AN165)=\"\", \"\", IF(VLOOKUP(AN165,'Footnotes list'!$D$9:$E$58,2,FALSE)=0,\"\",VLOOKUP(AN165,'Footnotes list'!$D$9:$E$58,2,FALSE) ) )","v":""},null,null,null,null,{"$f":"IF(TRIM(AS165)=\"\", \"\", IF(VLOOKUP(AS165,'Footnotes list'!$D$9:$E$58,2,FALSE)=0,\"\",VLOOKUP(AS165,'Footnotes list'!$D$9:$E$58,2,FALSE) ) )","v":""},null,null,null,null,{"$f":"IF(TRIM(AX165)=\"\", \"\", IF(VLOOKUP(AX165,'Footnotes list'!$D$9:$E$58,2,FALSE)=0,\"\",VLOOKUP(AX165,'Footnotes list'!$D$9:$E$58,2,FALSE) ) )","v":""},null,null,null,null,{"$f":"IF(TRIM(BC165)=\"\", \"\", IF(VLOOKUP(BC165,'Footnotes list'!$D$9:$E$58,2,FALSE)=0,\"\",VLOOKUP(BC165,'Footnotes list'!$D$9:$E$58,2,FALSE) ) )","v":""},null,null,null,null,{"$f":"IF(TRIM(BH165)=\"\", \"\", IF(VLOOKUP(BH165,'Footnotes list'!$D$9:$E$58,2,FALSE)=0,\"\",VLOOKUP(BH165,'Footnotes list'!$D$9:$E$58,2,FALSE) ) )","v":""},null,null,null,null,{"$f":"IF(TRIM(BM165)=\"\", \"\", IF(VLOOKUP(BM165,'Footnotes list'!$D$9:$E$58,2,FALSE)=0,\"\",VLOOKUP(BM165,'Footnotes list'!$D$9:$E$58,2,FALSE) ) )","v":""},null,null,null,null,{"$f":"IF(TRIM(BR165)=\"\", \"\", IF(VLOOKUP(BR165,'Footnotes list'!$D$9:$E$58,2,FALSE)=0,\"\",VLOOKUP(BR165,'Footnotes list'!$D$9:$E$58,2,FALSE) ) )","v":""},null,null,null,null,{"$f":"IF(TRIM(BW165)=\"\", \"\", IF(VLOOKUP(BW165,'Footnotes list'!$D$9:$E$58,2,FALSE)=0,\"\",VLOOKUP(BW165,'Footnotes list'!$D$9:$E$58,2,FALSE) ) )","v":""},null,null,null,null,{"$f":"IF(TRIM(CB165)=\"\", \"\", IF(VLOOKUP(CB165,'Footnotes list'!$D$9:$E$58,2,FALSE)=0,\"\",VLOOKUP(CB165,'Footnotes list'!$D$9:$E$58,2,FALSE) ) )","v":""},null,null,null,null,{"$f":"IF(TRIM(CG165)=\"\", \"\", IF(VLOOKUP(CG165,'Footnotes list'!$D$9:$E$58,2,FALSE)=0,\"\",VLOOKUP(CG165,'Footnotes list'!$D$9:$E$58,2,FALSE) ) )","v":""},null,null,null,null,{"$f":"IF(TRIM(CL165)=\"\", \"\", IF(VLOOKUP(CL165,'Footnotes list'!$D$9:$E$58,2,FALSE)=0,\"\",VLOOKUP(CL165,'Footnotes list'!$D$9:$E$58,2,FALSE) ) )","v":""},null,null,null,null,{"$f":"IF(TRIM(CQ165)=\"\", \"\", IF(VLOOKUP(CQ165,'Footnotes list'!$D$9:$E$58,2,FALSE)=0,\"\",VLOOKUP(CQ165,'Footnotes list'!$D$9:$E$58,2,FALSE) ) )","v":""},null,null,null,null,{"$f":"IF(TRIM(CV165)=\"\", \"\", IF(VLOOKUP(CV165,'Footnotes list'!$D$9:$E$58,2,FALSE)=0,\"\",VLOOKUP(CV165,'Footnotes list'!$D$9:$E$58,2,FALSE) ) )","v":""},null,null,null,null,{"$f":"IF(TRIM(DA165)=\"\", \"\", IF(VLOOKUP(DA165,'Footnotes list'!$D$9:$E$58,2,FALSE)=0,\"\",VLOOKUP(DA165,'Footnotes list'!$D$9:$E$58,2,FALSE) ) )","v":""},null,null,null,null,{"$f":"IF(TRIM(DF165)=\"\", \"\", IF(VLOOKUP(DF165,'Footnotes list'!$D$9:$E$58,2,FALSE)=0,\"\",VLOOKUP(DF165,'Footnotes list'!$D$9:$E$58,2,FALSE) ) )","v":""},null,null,null,null,{"$f":"IF(TRIM(DK165)=\"\", \"\", IF(VLOOKUP(DK165,'Footnotes list'!$D$9:$E$58,2,FALSE)=0,\"\",VLOOKUP(DK165,'Footnotes list'!$D$9:$E$58,2,FALSE) ) )","v":""},null,null,null,null,{"$f":"IF(TRIM(DP165)=\"\", \"\", IF(VLOOKUP(DP165,'Footnotes list'!$D$9:$E$58,2,FALSE)=0,\"\",VLOOKUP(DP165,'Footnotes list'!$D$9:$E$58,2,FALSE) ) )","v":""},null,null,null,null,{"$f":"IF(TRIM(DU165)=\"\", \"\", IF(VLOOKUP(DU165,'Footnotes list'!$D$9:$E$58,2,FALSE)=0,\"\",VLOOKUP(DU165,'Footnotes list'!$D$9:$E$58,2,FALSE) ) )","v":""},null,null,null,null,{"$f":"IF(TRIM(DZ165)=\"\", \"\", IF(VLOOKUP(DZ165,'Footnotes list'!$D$9:$E$58,2,FALSE)=0,\"\",VLOOKUP(DZ165,'Footnotes list'!$D$9:$E$58,2,FALSE) ) )","v":""},null,null,null,null,{"$f":"IF(TRIM(EE165)=\"\", \"\", IF(VLOOKUP(EE165,'Footnotes list'!$D$9:$E$58,2,FALSE)=0,\"\",VLOOKUP(EE165,'Footnotes list'!$D$9:$E$58,2,FALSE) ) )","v":""},null,null,null,null,{"$f":"IF(TRIM(EJ165)=\"\", \"\", IF(VLOOKUP(EJ165,'Footnotes list'!$D$9:$E$58,2,FALSE)=0,\"\",VLOOKUP(EJ165,'Footnotes list'!$D$9:$E$58,2,FALSE) ) )","v":""},null,null,null,null,{"$f":"IF(TRIM(EO165)=\"\", \"\", IF(VLOOKUP(EO165,'Footnotes list'!$D$9:$E$58,2,FALSE)=0,\"\",VLOOKUP(EO165,'Footnotes list'!$D$9:$E$58,2,FALSE) ) )","v":""},null,null,null,null,{"$f":"IF(TRIM(ET165)=\"\", \"\", IF(VLOOKUP(ET165,'Footnotes list'!$D$9:$E$58,2,FALSE)=0,\"\",VLOOKUP(ET165,'Footnotes list'!$D$9:$E$58,2,FALSE) ) )","v":""},null,null,null,null,{"$f":"IF(TRIM(EY165)=\"\", \"\", IF(VLOOKUP(EY165,'Footnotes list'!$D$9:$E$58,2,FALSE)=0,\"\",VLOOKUP(EY165,'Footnotes list'!$D$9:$E$58,2,FALSE) ) )","v":""}]
[null,null,"E39","MKT","market activities, including:",null,null,null,null,null,{"$f":"IF(TRIM(J166)=\"\", \"\", IF(VLOOKUP(J166,'Footnotes list'!$D$9:$E$58,2,FALSE)=0,\"\",VLOOKUP(J166,'Footnotes list'!$D$9:$E$58,2,FALSE) ) )","v":""},null,null,null,null,{"$f":"IF(TRIM(O166)=\"\", \"\", IF(VLOOKUP(O166,'Footnotes list'!$D$9:$E$58,2,FALSE)=0,\"\",VLOOKUP(O166,'Footnotes list'!$D$9:$E$58,2,FALSE) ) )","v":""},null,null,null,null,{"$f":"IF(TRIM(T166)=\"\", \"\", IF(VLOOKUP(T166,'Footnotes list'!$D$9:$E$58,2,FALSE)=0,\"\",VLOOKUP(T166,'Footnotes list'!$D$9:$E$58,2,FALSE) ) )","v":""},null,null,null,null,{"$f":"IF(TRIM(Y166)=\"\", \"\", IF(VLOOKUP(Y166,'Footnotes list'!$D$9:$E$58,2,FALSE)=0,\"\",VLOOKUP(Y166,'Footnotes list'!$D$9:$E$58,2,FALSE) ) )","v":""},null,null,null,null,{"$f":"IF(TRIM(AD166)=\"\", \"\", IF(VLOOKUP(AD166,'Footnotes list'!$D$9:$E$58,2,FALSE)=0,\"\",VLOOKUP(AD166,'Footnotes list'!$D$9:$E$58,2,FALSE) ) )","v":""},null,null,null,null,{"$f":"IF(TRIM(AI166)=\"\", \"\", IF(VLOOKUP(AI166,'Footnotes list'!$D$9:$E$58,2,FALSE)=0,\"\",VLOOKUP(AI166,'Footnotes list'!$D$9:$E$58,2,FALSE) ) )","v":""},null,null,null,null,{"$f":"IF(TRIM(AN166)=\"\", \"\", IF(VLOOKUP(AN166,'Footnotes list'!$D$9:$E$58,2,FALSE)=0,\"\",VLOOKUP(AN166,'Footnotes list'!$D$9:$E$58,2,FALSE) ) )","v":""},null,null,null,null,{"$f":"IF(TRIM(AS166)=\"\", \"\", IF(VLOOKUP(AS166,'Footnotes list'!$D$9:$E$58,2,FALSE)=0,\"\",VLOOKUP(AS166,'Footnotes list'!$D$9:$E$58,2,FALSE) ) )","v":""},null,null,null,null,{"$f":"IF(TRIM(AX166)=\"\", \"\", IF(VLOOKUP(AX166,'Footnotes list'!$D$9:$E$58,2,FALSE)=0,\"\",VLOOKUP(AX166,'Footnotes list'!$D$9:$E$58,2,FALSE) ) )","v":""},null,null,null,null,{"$f":"IF(TRIM(BC166)=\"\", \"\", IF(VLOOKUP(BC166,'Footnotes list'!$D$9:$E$58,2,FALSE)=0,\"\",VLOOKUP(BC166,'Footnotes list'!$D$9:$E$58,2,FALSE) ) )","v":""},null,null,null,null,{"$f":"IF(TRIM(BH166)=\"\", \"\", IF(VLOOKUP(BH166,'Footnotes list'!$D$9:$E$58,2,FALSE)=0,\"\",VLOOKUP(BH166,'Footnotes list'!$D$9:$E$58,2,FALSE) ) )","v":""},null,null,null,null,{"$f":"IF(TRIM(BM166)=\"\", \"\", IF(VLOOKUP(BM166,'Footnotes list'!$D$9:$E$58,2,FALSE)=0,\"\",VLOOKUP(BM166,'Footnotes list'!$D$9:$E$58,2,FALSE) ) )","v":""},null,null,null,null,{"$f":"IF(TRIM(BR166)=\"\", \"\", IF(VLOOKUP(BR166,'Footnotes list'!$D$9:$E$58,2,FALSE)=0,\"\",VLOOKUP(BR166,'Footnotes list'!$D$9:$E$58,2,FALSE) ) )","v":""},null,null,null,null,{"$f":"IF(TRIM(BW166)=\"\", \"\", IF(VLOOKUP(BW166,'Footnotes list'!$D$9:$E$58,2,FALSE)=0,\"\",VLOOKUP(BW166,'Footnotes list'!$D$9:$E$58,2,FALSE) ) )","v":""},null,null,null,null,{"$f":"IF(TRIM(CB166)=\"\", \"\", IF(VLOOKUP(CB166,'Footnotes list'!$D$9:$E$58,2,FALSE)=0,\"\",VLOOKUP(CB166,'Footnotes list'!$D$9:$E$58,2,FALSE) ) )","v":""},null,null,null,null,{"$f":"IF(TRIM(CG166)=\"\", \"\", IF(VLOOKUP(CG166,'Footnotes list'!$D$9:$E$58,2,FALSE)=0,\"\",VLOOKUP(CG166,'Footnotes list'!$D$9:$E$58,2,FALSE) ) )","v":""},null,null,null,null,{"$f":"IF(TRIM(CL166)=\"\", \"\", IF(VLOOKUP(CL166,'Footnotes list'!$D$9:$E$58,2,FALSE)=0,\"\",VLOOKUP(CL166,'Footnotes list'!$D$9:$E$58,2,FALSE) ) )","v":""},null,null,null,null,{"$f":"IF(TRIM(CQ166)=\"\", \"\", IF(VLOOKUP(CQ166,'Footnotes list'!$D$9:$E$58,2,FALSE)=0,\"\",VLOOKUP(CQ166,'Footnotes list'!$D$9:$E$58,2,FALSE) ) )","v":""},null,null,null,null,{"$f":"IF(TRIM(CV166)=\"\", \"\", IF(VLOOKUP(CV166,'Footnotes list'!$D$9:$E$58,2,FALSE)=0,\"\",VLOOKUP(CV166,'Footnotes list'!$D$9:$E$58,2,FALSE) ) )","v":""},null,null,null,null,{"$f":"IF(TRIM(DA166)=\"\", \"\", IF(VLOOKUP(DA166,'Footnotes list'!$D$9:$E$58,2,FALSE)=0,\"\",VLOOKUP(DA166,'Footnotes list'!$D$9:$E$58,2,FALSE) ) )","v":""},null,null,null,null,{"$f":"IF(TRIM(DF166)=\"\", \"\", IF(VLOOKUP(DF166,'Footnotes list'!$D$9:$E$58,2,FALSE)=0,\"\",VLOOKUP(DF166,'Footnotes list'!$D$9:$E$58,2,FALSE) ) )","v":""},null,null,null,null,{"$f":"IF(TRIM(DK166)=\"\", \"\", IF(VLOOKUP(DK166,'Footnotes list'!$D$9:$E$58,2,FALSE)=0,\"\",VLOOKUP(DK166,'Footnotes list'!$D$9:$E$58,2,FALSE) ) )","v":""},null,null,null,null,{"$f":"IF(TRIM(DP166)=\"\", \"\", IF(VLOOKUP(DP166,'Footnotes list'!$D$9:$E$58,2,FALSE)=0,\"\",VLOOKUP(DP166,'Footnotes list'!$D$9:$E$58,2,FALSE) ) )","v":""},null,null,null,null,{"$f":"IF(TRIM(DU166)=\"\", \"\", IF(VLOOKUP(DU166,'Footnotes list'!$D$9:$E$58,2,FALSE)=0,\"\",VLOOKUP(DU166,'Footnotes list'!$D$9:$E$58,2,FALSE) ) )","v":""},null,null,null,null,{"$f":"IF(TRIM(DZ166)=\"\", \"\", IF(VLOOKUP(DZ166,'Footnotes list'!$D$9:$E$58,2,FALSE)=0,\"\",VLOOKUP(DZ166,'Footnotes list'!$D$9:$E$58,2,FALSE) ) )","v":""},null,null,null,null,{"$f":"IF(TRIM(EE166)=\"\", \"\", IF(VLOOKUP(EE166,'Footnotes list'!$D$9:$E$58,2,FALSE)=0,\"\",VLOOKUP(EE166,'Footnotes list'!$D$9:$E$58,2,FALSE) ) )","v":""},null,null,null,null,{"$f":"IF(TRIM(EJ166)=\"\", \"\", IF(VLOOKUP(EJ166,'Footnotes list'!$D$9:$E$58,2,FALSE)=0,\"\",VLOOKUP(EJ166,'Footnotes list'!$D$9:$E$58,2,FALSE) ) )","v":""},null,null,null,null,{"$f":"IF(TRIM(EO166)=\"\", \"\", IF(VLOOKUP(EO166,'Footnotes list'!$D$9:$E$58,2,FALSE)=0,\"\",VLOOKUP(EO166,'Footnotes list'!$D$9:$E$58,2,FALSE) ) )","v":""},null,null,null,null,{"$f":"IF(TRIM(ET166)=\"\", \"\", IF(VLOOKUP(ET166,'Footnotes list'!$D$9:$E$58,2,FALSE)=0,\"\",VLOOKUP(ET166,'Footnotes list'!$D$9:$E$58,2,FALSE) ) )","v":""},null,null,null,null,{"$f":"IF(TRIM(EY166)=\"\", \"\", IF(VLOOKUP(EY166,'Footnotes list'!$D$9:$E$58,2,FALSE)=0,\"\",VLOOKUP(EY166,'Footnotes list'!$D$9:$E$58,2,FALSE) ) )","v":""}]
[null,null,"E39","ES_CS","environmental specific services",null,null,null,null,null,{"$f":"IF(TRIM(J167)=\"\", \"\", IF(VLOOKUP(J167,'Footnotes list'!$D$9:$E$58,2,FALSE)=0,\"\",VLOOKUP(J167,'Footnotes list'!$D$9:$E$58,2,FALSE) ) )","v":""},null,null,null,null,{"$f":"IF(TRIM(O167)=\"\", \"\", IF(VLOOKUP(O167,'Footnotes list'!$D$9:$E$58,2,FALSE)=0,\"\",VLOOKUP(O167,'Footnotes list'!$D$9:$E$58,2,FALSE) ) )","v":""},null,null,null,null,{"$f":"IF(TRIM(T167)=\"\", \"\", IF(VLOOKUP(T167,'Footnotes list'!$D$9:$E$58,2,FALSE)=0,\"\",VLOOKUP(T167,'Footnotes list'!$D$9:$E$58,2,FALSE) ) )","v":""},null,null,null,null,{"$f":"IF(TRIM(Y167)=\"\", \"\", IF(VLOOKUP(Y167,'Footnotes list'!$D$9:$E$58,2,FALSE)=0,\"\",VLOOKUP(Y167,'Footnotes list'!$D$9:$E$58,2,FALSE) ) )","v":""},null,null,null,null,{"$f":"IF(TRIM(AD167)=\"\", \"\", IF(VLOOKUP(AD167,'Footnotes list'!$D$9:$E$58,2,FALSE)=0,\"\",VLOOKUP(AD167,'Footnotes list'!$D$9:$E$58,2,FALSE) ) )","v":""},null,null,null,null,{"$f":"IF(TRIM(AI167)=\"\", \"\", IF(VLOOKUP(AI167,'Footnotes list'!$D$9:$E$58,2,FALSE)=0,\"\",VLOOKUP(AI167,'Footnotes list'!$D$9:$E$58,2,FALSE) ) )","v":""},null,null,null,null,{"$f":"IF(TRIM(AN167)=\"\", \"\", IF(VLOOKUP(AN167,'Footnotes list'!$D$9:$E$58,2,FALSE)=0,\"\",VLOOKUP(AN167,'Footnotes list'!$D$9:$E$58,2,FALSE) ) )","v":""},null,null,null,null,{"$f":"IF(TRIM(AS167)=\"\", \"\", IF(VLOOKUP(AS167,'Footnotes list'!$D$9:$E$58,2,FALSE)=0,\"\",VLOOKUP(AS167,'Footnotes list'!$D$9:$E$58,2,FALSE) ) )","v":""},null,null,null,null,{"$f":"IF(TRIM(AX167)=\"\", \"\", IF(VLOOKUP(AX167,'Footnotes list'!$D$9:$E$58,2,FALSE)=0,\"\",VLOOKUP(AX167,'Footnotes list'!$D$9:$E$58,2,FALSE) ) )","v":""},null,null,null,null,{"$f":"IF(TRIM(BC167)=\"\", \"\", IF(VLOOKUP(BC167,'Footnotes list'!$D$9:$E$58,2,FALSE)=0,\"\",VLOOKUP(BC167,'Footnotes list'!$D$9:$E$58,2,FALSE) ) )","v":""},null,null,null,null,{"$f":"IF(TRIM(BH167)=\"\", \"\", IF(VLOOKUP(BH167,'Footnotes list'!$D$9:$E$58,2,FALSE)=0,\"\",VLOOKUP(BH167,'Footnotes list'!$D$9:$E$58,2,FALSE) ) )","v":""},null,null,null,null,{"$f":"IF(TRIM(BM167)=\"\", \"\", IF(VLOOKUP(BM167,'Footnotes list'!$D$9:$E$58,2,FALSE)=0,\"\",VLOOKUP(BM167,'Footnotes list'!$D$9:$E$58,2,FALSE) ) )","v":""},null,null,null,null,{"$f":"IF(TRIM(BR167)=\"\", \"\", IF(VLOOKUP(BR167,'Footnotes list'!$D$9:$E$58,2,FALSE)=0,\"\",VLOOKUP(BR167,'Footnotes list'!$D$9:$E$58,2,FALSE) ) )","v":""},null,null,null,null,{"$f":"IF(TRIM(BW167)=\"\", \"\", IF(VLOOKUP(BW167,'Footnotes list'!$D$9:$E$58,2,FALSE)=0,\"\",VLOOKUP(BW167,'Footnotes list'!$D$9:$E$58,2,FALSE) ) )","v":""},null,null,null,null,{"$f":"IF(TRIM(CB167)=\"\", \"\", IF(VLOOKUP(CB167,'Footnotes list'!$D$9:$E$58,2,FALSE)=0,\"\",VLOOKUP(CB167,'Footnotes list'!$D$9:$E$58,2,FALSE) ) )","v":""},null,null,null,null,{"$f":"IF(TRIM(CG167)=\"\", \"\", IF(VLOOKUP(CG167,'Footnotes list'!$D$9:$E$58,2,FALSE)=0,\"\",VLOOKUP(CG167,'Footnotes list'!$D$9:$E$58,2,FALSE) ) )","v":""},null,null,null,null,{"$f":"IF(TRIM(CL167)=\"\", \"\", IF(VLOOKUP(CL167,'Footnotes list'!$D$9:$E$58,2,FALSE)=0,\"\",VLOOKUP(CL167,'Footnotes list'!$D$9:$E$58,2,FALSE) ) )","v":""},null,null,null,null,{"$f":"IF(TRIM(CQ167)=\"\", \"\", IF(VLOOKUP(CQ167,'Footnotes list'!$D$9:$E$58,2,FALSE)=0,\"\",VLOOKUP(CQ167,'Footnotes list'!$D$9:$E$58,2,FALSE) ) )","v":""},null,null,null,null,{"$f":"IF(TRIM(CV167)=\"\", \"\", IF(VLOOKUP(CV167,'Footnotes list'!$D$9:$E$58,2,FALSE)=0,\"\",VLOOKUP(CV167,'Footnotes list'!$D$9:$E$58,2,FALSE) ) )","v":""},null,null,null,null,{"$f":"IF(TRIM(DA167)=\"\", \"\", IF(VLOOKUP(DA167,'Footnotes list'!$D$9:$E$58,2,FALSE)=0,\"\",VLOOKUP(DA167,'Footnotes list'!$D$9:$E$58,2,FALSE) ) )","v":""},null,null,null,null,{"$f":"IF(TRIM(DF167)=\"\", \"\", IF(VLOOKUP(DF167,'Footnotes list'!$D$9:$E$58,2,FALSE)=0,\"\",VLOOKUP(DF167,'Footnotes list'!$D$9:$E$58,2,FALSE) ) )","v":""},null,null,null,null,{"$f":"IF(TRIM(DK167)=\"\", \"\", IF(VLOOKUP(DK167,'Footnotes list'!$D$9:$E$58,2,FALSE)=0,\"\",VLOOKUP(DK167,'Footnotes list'!$D$9:$E$58,2,FALSE) ) )","v":""},null,null,null,null,{"$f":"IF(TRIM(DP167)=\"\", \"\", IF(VLOOKUP(DP167,'Footnotes list'!$D$9:$E$58,2,FALSE)=0,\"\",VLOOKUP(DP167,'Footnotes list'!$D$9:$E$58,2,FALSE) ) )","v":""},null,null,null,null,{"$f":"IF(TRIM(DU167)=\"\", \"\", IF(VLOOKUP(DU167,'Footnotes list'!$D$9:$E$58,2,FALSE)=0,\"\",VLOOKUP(DU167,'Footnotes list'!$D$9:$E$58,2,FALSE) ) )","v":""},null,null,null,null,{"$f":"IF(TRIM(DZ167)=\"\", \"\", IF(VLOOKUP(DZ167,'Footnotes list'!$D$9:$E$58,2,FALSE)=0,\"\",VLOOKUP(DZ167,'Footnotes list'!$D$9:$E$58,2,FALSE) ) )","v":""},null,null,null,null,{"$f":"IF(TRIM(EE167)=\"\", \"\", IF(VLOOKUP(EE167,'Footnotes list'!$D$9:$E$58,2,FALSE)=0,\"\",VLOOKUP(EE167,'Footnotes list'!$D$9:$E$58,2,FALSE) ) )","v":""},null,null,null,null,{"$f":"IF(TRIM(EJ167)=\"\", \"\", IF(VLOOKUP(EJ167,'Footnotes list'!$D$9:$E$58,2,FALSE)=0,\"\",VLOOKUP(EJ167,'Footnotes list'!$D$9:$E$58,2,FALSE) ) )","v":""},null,null,null,null,{"$f":"IF(TRIM(EO167)=\"\", \"\", IF(VLOOKUP(EO167,'Footnotes list'!$D$9:$E$58,2,FALSE)=0,\"\",VLOOKUP(EO167,'Footnotes list'!$D$9:$E$58,2,FALSE) ) )","v":""},null,null,null,null,{"$f":"IF(TRIM(ET167)=\"\", \"\", IF(VLOOKUP(ET167,'Footnotes list'!$D$9:$E$58,2,FALSE)=0,\"\",VLOOKUP(ET167,'Footnotes list'!$D$9:$E$58,2,FALSE) ) )","v":""},null,null,null,null,{"$f":"IF(TRIM(EY167)=\"\", \"\", IF(VLOOKUP(EY167,'Footnotes list'!$D$9:$E$58,2,FALSE)=0,\"\",VLOOKUP(EY167,'Footnotes list'!$D$9:$E$58,2,FALSE) ) )","v":""}]
[null,null,"E39","C_REP","cleaner and resource efficient products",null,null,null,null,null,{"$f":"IF(TRIM(J168)=\"\", \"\", IF(VLOOKUP(J168,'Footnotes list'!$D$9:$E$58,2,FALSE)=0,\"\",VLOOKUP(J168,'Footnotes list'!$D$9:$E$58,2,FALSE) ) )","v":""},null,null,null,null,{"$f":"IF(TRIM(O168)=\"\", \"\", IF(VLOOKUP(O168,'Footnotes list'!$D$9:$E$58,2,FALSE)=0,\"\",VLOOKUP(O168,'Footnotes list'!$D$9:$E$58,2,FALSE) ) )","v":""},null,null,null,null,{"$f":"IF(TRIM(T168)=\"\", \"\", IF(VLOOKUP(T168,'Footnotes list'!$D$9:$E$58,2,FALSE)=0,\"\",VLOOKUP(T168,'Footnotes list'!$D$9:$E$58,2,FALSE) ) )","v":""},null,null,null,null,{"$f":"IF(TRIM(Y168)=\"\", \"\", IF(VLOOKUP(Y168,'Footnotes list'!$D$9:$E$58,2,FALSE)=0,\"\",VLOOKUP(Y168,'Footnotes list'!$D$9:$E$58,2,FALSE) ) )","v":""},null,null,null,null,{"$f":"IF(TRIM(AD168)=\"\", \"\", IF(VLOOKUP(AD168,'Footnotes list'!$D$9:$E$58,2,FALSE)=0,\"\",VLOOKUP(AD168,'Footnotes list'!$D$9:$E$58,2,FALSE) ) )","v":""},null,null,null,null,{"$f":"IF(TRIM(AI168)=\"\", \"\", IF(VLOOKUP(AI168,'Footnotes list'!$D$9:$E$58,2,FALSE)=0,\"\",VLOOKUP(AI168,'Footnotes list'!$D$9:$E$58,2,FALSE) ) )","v":""},null,null,null,null,{"$f":"IF(TRIM(AN168)=\"\", \"\", IF(VLOOKUP(AN168,'Footnotes list'!$D$9:$E$58,2,FALSE)=0,\"\",VLOOKUP(AN168,'Footnotes list'!$D$9:$E$58,2,FALSE) ) )","v":""},null,null,null,null,{"$f":"IF(TRIM(AS168)=\"\", \"\", IF(VLOOKUP(AS168,'Footnotes list'!$D$9:$E$58,2,FALSE)=0,\"\",VLOOKUP(AS168,'Footnotes list'!$D$9:$E$58,2,FALSE) ) )","v":""},null,null,null,null,{"$f":"IF(TRIM(AX168)=\"\", \"\", IF(VLOOKUP(AX168,'Footnotes list'!$D$9:$E$58,2,FALSE)=0,\"\",VLOOKUP(AX168,'Footnotes list'!$D$9:$E$58,2,FALSE) ) )","v":""},null,null,null,null,{"$f":"IF(TRIM(BC168)=\"\", \"\", IF(VLOOKUP(BC168,'Footnotes list'!$D$9:$E$58,2,FALSE)=0,\"\",VLOOKUP(BC168,'Footnotes list'!$D$9:$E$58,2,FALSE) ) )","v":""},null,null,null,null,{"$f":"IF(TRIM(BH168)=\"\", \"\", IF(VLOOKUP(BH168,'Footnotes list'!$D$9:$E$58,2,FALSE)=0,\"\",VLOOKUP(BH168,'Footnotes list'!$D$9:$E$58,2,FALSE) ) )","v":""},null,null,null,null,{"$f":"IF(TRIM(BM168)=\"\", \"\", IF(VLOOKUP(BM168,'Footnotes list'!$D$9:$E$58,2,FALSE)=0,\"\",VLOOKUP(BM168,'Footnotes list'!$D$9:$E$58,2,FALSE) ) )","v":""},null,null,null,null,{"$f":"IF(TRIM(BR168)=\"\", \"\", IF(VLOOKUP(BR168,'Footnotes list'!$D$9:$E$58,2,FALSE)=0,\"\",VLOOKUP(BR168,'Footnotes list'!$D$9:$E$58,2,FALSE) ) )","v":""},null,null,null,null,{"$f":"IF(TRIM(BW168)=\"\", \"\", IF(VLOOKUP(BW168,'Footnotes list'!$D$9:$E$58,2,FALSE)=0,\"\",VLOOKUP(BW168,'Footnotes list'!$D$9:$E$58,2,FALSE) ) )","v":""},null,null,null,null,{"$f":"IF(TRIM(CB168)=\"\", \"\", IF(VLOOKUP(CB168,'Footnotes list'!$D$9:$E$58,2,FALSE)=0,\"\",VLOOKUP(CB168,'Footnotes list'!$D$9:$E$58,2,FALSE) ) )","v":""},null,null,null,null,{"$f":"IF(TRIM(CG168)=\"\", \"\", IF(VLOOKUP(CG168,'Footnotes list'!$D$9:$E$58,2,FALSE)=0,\"\",VLOOKUP(CG168,'Footnotes list'!$D$9:$E$58,2,FALSE) ) )","v":""},null,null,null,null,{"$f":"IF(TRIM(CL168)=\"\", \"\", IF(VLOOKUP(CL168,'Footnotes list'!$D$9:$E$58,2,FALSE)=0,\"\",VLOOKUP(CL168,'Footnotes list'!$D$9:$E$58,2,FALSE) ) )","v":""},null,null,null,null,{"$f":"IF(TRIM(CQ168)=\"\", \"\", IF(VLOOKUP(CQ168,'Footnotes list'!$D$9:$E$58,2,FALSE)=0,\"\",VLOOKUP(CQ168,'Footnotes list'!$D$9:$E$58,2,FALSE) ) )","v":""},null,null,null,null,{"$f":"IF(TRIM(CV168)=\"\", \"\", IF(VLOOKUP(CV168,'Footnotes list'!$D$9:$E$58,2,FALSE)=0,\"\",VLOOKUP(CV168,'Footnotes list'!$D$9:$E$58,2,FALSE) ) )","v":""},null,null,null,null,{"$f":"IF(TRIM(DA168)=\"\", \"\", IF(VLOOKUP(DA168,'Footnotes list'!$D$9:$E$58,2,FALSE)=0,\"\",VLOOKUP(DA168,'Footnotes list'!$D$9:$E$58,2,FALSE) ) )","v":""},null,null,null,null,{"$f":"IF(TRIM(DF168)=\"\", \"\", IF(VLOOKUP(DF168,'Footnotes list'!$D$9:$E$58,2,FALSE)=0,\"\",VLOOKUP(DF168,'Footnotes list'!$D$9:$E$58,2,FALSE) ) )","v":""},null,null,null,null,{"$f":"IF(TRIM(DK168)=\"\", \"\", IF(VLOOKUP(DK168,'Footnotes list'!$D$9:$E$58,2,FALSE)=0,\"\",VLOOKUP(DK168,'Footnotes list'!$D$9:$E$58,2,FALSE) ) )","v":""},null,null,null,null,{"$f":"IF(TRIM(DP168)=\"\", \"\", IF(VLOOKUP(DP168,'Footnotes list'!$D$9:$E$58,2,FALSE)=0,\"\",VLOOKUP(DP168,'Footnotes list'!$D$9:$E$58,2,FALSE) ) )","v":""},null,null,null,null,{"$f":"IF(TRIM(DU168)=\"\", \"\", IF(VLOOKUP(DU168,'Footnotes list'!$D$9:$E$58,2,FALSE)=0,\"\",VLOOKUP(DU168,'Footnotes list'!$D$9:$E$58,2,FALSE) ) )","v":""},null,null,null,null,{"$f":"IF(TRIM(DZ168)=\"\", \"\", IF(VLOOKUP(DZ168,'Footnotes list'!$D$9:$E$58,2,FALSE)=0,\"\",VLOOKUP(DZ168,'Footnotes list'!$D$9:$E$58,2,FALSE) ) )","v":""},null,null,null,null,{"$f":"IF(TRIM(EE168)=\"\", \"\", IF(VLOOKUP(EE168,'Footnotes list'!$D$9:$E$58,2,FALSE)=0,\"\",VLOOKUP(EE168,'Footnotes list'!$D$9:$E$58,2,FALSE) ) )","v":""},null,null,null,null,{"$f":"IF(TRIM(EJ168)=\"\", \"\", IF(VLOOKUP(EJ168,'Footnotes list'!$D$9:$E$58,2,FALSE)=0,\"\",VLOOKUP(EJ168,'Footnotes list'!$D$9:$E$58,2,FALSE) ) )","v":""},null,null,null,null,{"$f":"IF(TRIM(EO168)=\"\", \"\", IF(VLOOKUP(EO168,'Footnotes list'!$D$9:$E$58,2,FALSE)=0,\"\",VLOOKUP(EO168,'Footnotes list'!$D$9:$E$58,2,FALSE) ) )","v":""},null,null,null,null,{"$f":"IF(TRIM(ET168)=\"\", \"\", IF(VLOOKUP(ET168,'Footnotes list'!$D$9:$E$58,2,FALSE)=0,\"\",VLOOKUP(ET168,'Footnotes list'!$D$9:$E$58,2,FALSE) ) )","v":""},null,null,null,null,{"$f":"IF(TRIM(EY168)=\"\", \"\", IF(VLOOKUP(EY168,'Footnotes list'!$D$9:$E$58,2,FALSE)=0,\"\",VLOOKUP(EY168,'Footnotes list'!$D$9:$E$58,2,FALSE) ) )","v":""}]
[null,null,"F","TOT_EGSS","Total F - Construction, of which:",null,null,null,null,null,{"$f":"IF(TRIM(J169)=\"\", \"\", IF(VLOOKUP(J169,'Footnotes list'!$D$9:$E$58,2,FALSE)=0,\"\",VLOOKUP(J169,'Footnotes list'!$D$9:$E$58,2,FALSE) ) )","v":""},null,null,null,null,{"$f":"IF(TRIM(O169)=\"\", \"\", IF(VLOOKUP(O169,'Footnotes list'!$D$9:$E$58,2,FALSE)=0,\"\",VLOOKUP(O169,'Footnotes list'!$D$9:$E$58,2,FALSE) ) )","v":""},null,null,null,null,{"$f":"IF(TRIM(T169)=\"\", \"\", IF(VLOOKUP(T169,'Footnotes list'!$D$9:$E$58,2,FALSE)=0,\"\",VLOOKUP(T169,'Footnotes list'!$D$9:$E$58,2,FALSE) ) )","v":""},null,null,null,null,{"$f":"IF(TRIM(Y169)=\"\", \"\", IF(VLOOKUP(Y169,'Footnotes list'!$D$9:$E$58,2,FALSE)=0,\"\",VLOOKUP(Y169,'Footnotes list'!$D$9:$E$58,2,FALSE) ) )","v":""},null,null,null,null,{"$f":"IF(TRIM(AD169)=\"\", \"\", IF(VLOOKUP(AD169,'Footnotes list'!$D$9:$E$58,2,FALSE)=0,\"\",VLOOKUP(AD169,'Footnotes list'!$D$9:$E$58,2,FALSE) ) )","v":""},null,null,null,null,{"$f":"IF(TRIM(AI169)=\"\", \"\", IF(VLOOKUP(AI169,'Footnotes list'!$D$9:$E$58,2,FALSE)=0,\"\",VLOOKUP(AI169,'Footnotes list'!$D$9:$E$58,2,FALSE) ) )","v":""},null,null,null,null,{"$f":"IF(TRIM(AN169)=\"\", \"\", IF(VLOOKUP(AN169,'Footnotes list'!$D$9:$E$58,2,FALSE)=0,\"\",VLOOKUP(AN169,'Footnotes list'!$D$9:$E$58,2,FALSE) ) )","v":""},null,null,null,null,{"$f":"IF(TRIM(AS169)=\"\", \"\", IF(VLOOKUP(AS169,'Footnotes list'!$D$9:$E$58,2,FALSE)=0,\"\",VLOOKUP(AS169,'Footnotes list'!$D$9:$E$58,2,FALSE) ) )","v":""},null,null,null,null,{"$f":"IF(TRIM(AX169)=\"\", \"\", IF(VLOOKUP(AX169,'Footnotes list'!$D$9:$E$58,2,FALSE)=0,\"\",VLOOKUP(AX169,'Footnotes list'!$D$9:$E$58,2,FALSE) ) )","v":""},null,null,null,null,{"$f":"IF(TRIM(BC169)=\"\", \"\", IF(VLOOKUP(BC169,'Footnotes list'!$D$9:$E$58,2,FALSE)=0,\"\",VLOOKUP(BC169,'Footnotes list'!$D$9:$E$58,2,FALSE) ) )","v":""},null,null,null,null,{"$f":"IF(TRIM(BH169)=\"\", \"\", IF(VLOOKUP(BH169,'Footnotes list'!$D$9:$E$58,2,FALSE)=0,\"\",VLOOKUP(BH169,'Footnotes list'!$D$9:$E$58,2,FALSE) ) )","v":""},null,null,null,null,{"$f":"IF(TRIM(BM169)=\"\", \"\", IF(VLOOKUP(BM169,'Footnotes list'!$D$9:$E$58,2,FALSE)=0,\"\",VLOOKUP(BM169,'Footnotes list'!$D$9:$E$58,2,FALSE) ) )","v":""},null,null,null,null,{"$f":"IF(TRIM(BR169)=\"\", \"\", IF(VLOOKUP(BR169,'Footnotes list'!$D$9:$E$58,2,FALSE)=0,\"\",VLOOKUP(BR169,'Footnotes list'!$D$9:$E$58,2,FALSE) ) )","v":""},null,null,null,null,{"$f":"IF(TRIM(BW169)=\"\", \"\", IF(VLOOKUP(BW169,'Footnotes list'!$D$9:$E$58,2,FALSE)=0,\"\",VLOOKUP(BW169,'Footnotes list'!$D$9:$E$58,2,FALSE) ) )","v":""},null,null,null,null,{"$f":"IF(TRIM(CB169)=\"\", \"\", IF(VLOOKUP(CB169,'Footnotes list'!$D$9:$E$58,2,FALSE)=0,\"\",VLOOKUP(CB169,'Footnotes list'!$D$9:$E$58,2,FALSE) ) )","v":""},null,null,null,null,{"$f":"IF(TRIM(CG169)=\"\", \"\", IF(VLOOKUP(CG169,'Footnotes list'!$D$9:$E$58,2,FALSE)=0,\"\",VLOOKUP(CG169,'Footnotes list'!$D$9:$E$58,2,FALSE) ) )","v":""},null,null,null,null,{"$f":"IF(TRIM(CL169)=\"\", \"\", IF(VLOOKUP(CL169,'Footnotes list'!$D$9:$E$58,2,FALSE)=0,\"\",VLOOKUP(CL169,'Footnotes list'!$D$9:$E$58,2,FALSE) ) )","v":""},null,null,null,null,{"$f":"IF(TRIM(CQ169)=\"\", \"\", IF(VLOOKUP(CQ169,'Footnotes list'!$D$9:$E$58,2,FALSE)=0,\"\",VLOOKUP(CQ169,'Footnotes list'!$D$9:$E$58,2,FALSE) ) )","v":""},null,null,null,null,{"$f":"IF(TRIM(CV169)=\"\", \"\", IF(VLOOKUP(CV169,'Footnotes list'!$D$9:$E$58,2,FALSE)=0,\"\",VLOOKUP(CV169,'Footnotes list'!$D$9:$E$58,2,FALSE) ) )","v":""},null,null,null,null,{"$f":"IF(TRIM(DA169)=\"\", \"\", IF(VLOOKUP(DA169,'Footnotes list'!$D$9:$E$58,2,FALSE)=0,\"\",VLOOKUP(DA169,'Footnotes list'!$D$9:$E$58,2,FALSE) ) )","v":""},null,null,null,null,{"$f":"IF(TRIM(DF169)=\"\", \"\", IF(VLOOKUP(DF169,'Footnotes list'!$D$9:$E$58,2,FALSE)=0,\"\",VLOOKUP(DF169,'Footnotes list'!$D$9:$E$58,2,FALSE) ) )","v":""},null,null,null,null,{"$f":"IF(TRIM(DK169)=\"\", \"\", IF(VLOOKUP(DK169,'Footnotes list'!$D$9:$E$58,2,FALSE)=0,\"\",VLOOKUP(DK169,'Footnotes list'!$D$9:$E$58,2,FALSE) ) )","v":""},null,null,null,null,{"$f":"IF(TRIM(DP169)=\"\", \"\", IF(VLOOKUP(DP169,'Footnotes list'!$D$9:$E$58,2,FALSE)=0,\"\",VLOOKUP(DP169,'Footnotes list'!$D$9:$E$58,2,FALSE) ) )","v":""},null,null,null,null,{"$f":"IF(TRIM(DU169)=\"\", \"\", IF(VLOOKUP(DU169,'Footnotes list'!$D$9:$E$58,2,FALSE)=0,\"\",VLOOKUP(DU169,'Footnotes list'!$D$9:$E$58,2,FALSE) ) )","v":""},null,null,null,null,{"$f":"IF(TRIM(DZ169)=\"\", \"\", IF(VLOOKUP(DZ169,'Footnotes list'!$D$9:$E$58,2,FALSE)=0,\"\",VLOOKUP(DZ169,'Footnotes list'!$D$9:$E$58,2,FALSE) ) )","v":""},null,null,null,null,{"$f":"IF(TRIM(EE169)=\"\", \"\", IF(VLOOKUP(EE169,'Footnotes list'!$D$9:$E$58,2,FALSE)=0,\"\",VLOOKUP(EE169,'Footnotes list'!$D$9:$E$58,2,FALSE) ) )","v":""},null,null,null,null,{"$f":"IF(TRIM(EJ169)=\"\", \"\", IF(VLOOKUP(EJ169,'Footnotes list'!$D$9:$E$58,2,FALSE)=0,\"\",VLOOKUP(EJ169,'Footnotes list'!$D$9:$E$58,2,FALSE) ) )","v":""},null,null,null,null,{"$f":"IF(TRIM(EO169)=\"\", \"\", IF(VLOOKUP(EO169,'Footnotes list'!$D$9:$E$58,2,FALSE)=0,\"\",VLOOKUP(EO169,'Footnotes list'!$D$9:$E$58,2,FALSE) ) )","v":""},null,null,null,null,{"$f":"IF(TRIM(ET169)=\"\", \"\", IF(VLOOKUP(ET169,'Footnotes list'!$D$9:$E$58,2,FALSE)=0,\"\",VLOOKUP(ET169,'Footnotes list'!$D$9:$E$58,2,FALSE) ) )","v":""},null,null,null,null,{"$f":"IF(TRIM(EY169)=\"\", \"\", IF(VLOOKUP(EY169,'Footnotes list'!$D$9:$E$58,2,FALSE)=0,\"\",VLOOKUP(EY169,'Footnotes list'!$D$9:$E$58,2,FALSE) ) )","v":""}]
[null,null,"F","ANC","ancillary activities",null,null,null,null,null,{"$f":"IF(TRIM(J170)=\"\", \"\", IF(VLOOKUP(J170,'Footnotes list'!$D$9:$E$58,2,FALSE)=0,\"\",VLOOKUP(J170,'Footnotes list'!$D$9:$E$58,2,FALSE) ) )","v":""},null,null,null,null,{"$f":"IF(TRIM(O170)=\"\", \"\", IF(VLOOKUP(O170,'Footnotes list'!$D$9:$E$58,2,FALSE)=0,\"\",VLOOKUP(O170,'Footnotes list'!$D$9:$E$58,2,FALSE) ) )","v":""},null,null,null,null,{"$f":"IF(TRIM(T170)=\"\", \"\", IF(VLOOKUP(T170,'Footnotes list'!$D$9:$E$58,2,FALSE)=0,\"\",VLOOKUP(T170,'Footnotes list'!$D$9:$E$58,2,FALSE) ) )","v":""},null,null,null,null,{"$f":"IF(TRIM(Y170)=\"\", \"\", IF(VLOOKUP(Y170,'Footnotes list'!$D$9:$E$58,2,FALSE)=0,\"\",VLOOKUP(Y170,'Footnotes list'!$D$9:$E$58,2,FALSE) ) )","v":""},null,null,null,null,{"$f":"IF(TRIM(AD170)=\"\", \"\", IF(VLOOKUP(AD170,'Footnotes list'!$D$9:$E$58,2,FALSE)=0,\"\",VLOOKUP(AD170,'Footnotes list'!$D$9:$E$58,2,FALSE) ) )","v":""},null,null,null,null,{"$f":"IF(TRIM(AI170)=\"\", \"\", IF(VLOOKUP(AI170,'Footnotes list'!$D$9:$E$58,2,FALSE)=0,\"\",VLOOKUP(AI170,'Footnotes list'!$D$9:$E$58,2,FALSE) ) )","v":""},null,null,null,null,{"$f":"IF(TRIM(AN170)=\"\", \"\", IF(VLOOKUP(AN170,'Footnotes list'!$D$9:$E$58,2,FALSE)=0,\"\",VLOOKUP(AN170,'Footnotes list'!$D$9:$E$58,2,FALSE) ) )","v":""},null,null,null,null,{"$f":"IF(TRIM(AS170)=\"\", \"\", IF(VLOOKUP(AS170,'Footnotes list'!$D$9:$E$58,2,FALSE)=0,\"\",VLOOKUP(AS170,'Footnotes list'!$D$9:$E$58,2,FALSE) ) )","v":""},null,null,null,null,{"$f":"IF(TRIM(AX170)=\"\", \"\", IF(VLOOKUP(AX170,'Footnotes list'!$D$9:$E$58,2,FALSE)=0,\"\",VLOOKUP(AX170,'Footnotes list'!$D$9:$E$58,2,FALSE) ) )","v":""},null,null,null,null,{"$f":"IF(TRIM(BC170)=\"\", \"\", IF(VLOOKUP(BC170,'Footnotes list'!$D$9:$E$58,2,FALSE)=0,\"\",VLOOKUP(BC170,'Footnotes list'!$D$9:$E$58,2,FALSE) ) )","v":""},null,null,null,null,{"$f":"IF(TRIM(BH170)=\"\", \"\", IF(VLOOKUP(BH170,'Footnotes list'!$D$9:$E$58,2,FALSE)=0,\"\",VLOOKUP(BH170,'Footnotes list'!$D$9:$E$58,2,FALSE) ) )","v":""},null,null,null,null,{"$f":"IF(TRIM(BM170)=\"\", \"\", IF(VLOOKUP(BM170,'Footnotes list'!$D$9:$E$58,2,FALSE)=0,\"\",VLOOKUP(BM170,'Footnotes list'!$D$9:$E$58,2,FALSE) ) )","v":""},null,null,null,null,{"$f":"IF(TRIM(BR170)=\"\", \"\", IF(VLOOKUP(BR170,'Footnotes list'!$D$9:$E$58,2,FALSE)=0,\"\",VLOOKUP(BR170,'Footnotes list'!$D$9:$E$58,2,FALSE) ) )","v":""},null,null,null,null,{"$f":"IF(TRIM(BW170)=\"\", \"\", IF(VLOOKUP(BW170,'Footnotes list'!$D$9:$E$58,2,FALSE)=0,\"\",VLOOKUP(BW170,'Footnotes list'!$D$9:$E$58,2,FALSE) ) )","v":""},null,null,null,null,{"$f":"IF(TRIM(CB170)=\"\", \"\", IF(VLOOKUP(CB170,'Footnotes list'!$D$9:$E$58,2,FALSE)=0,\"\",VLOOKUP(CB170,'Footnotes list'!$D$9:$E$58,2,FALSE) ) )","v":""},null,null,null,null,{"$f":"IF(TRIM(CG170)=\"\", \"\", IF(VLOOKUP(CG170,'Footnotes list'!$D$9:$E$58,2,FALSE)=0,\"\",VLOOKUP(CG170,'Footnotes list'!$D$9:$E$58,2,FALSE) ) )","v":""},null,null,null,null,{"$f":"IF(TRIM(CL170)=\"\", \"\", IF(VLOOKUP(CL170,'Footnotes list'!$D$9:$E$58,2,FALSE)=0,\"\",VLOOKUP(CL170,'Footnotes list'!$D$9:$E$58,2,FALSE) ) )","v":""},null,null,null,null,{"$f":"IF(TRIM(CQ170)=\"\", \"\", IF(VLOOKUP(CQ170,'Footnotes list'!$D$9:$E$58,2,FALSE)=0,\"\",VLOOKUP(CQ170,'Footnotes list'!$D$9:$E$58,2,FALSE) ) )","v":""},null,null,null,null,{"$f":"IF(TRIM(CV170)=\"\", \"\", IF(VLOOKUP(CV170,'Footnotes list'!$D$9:$E$58,2,FALSE)=0,\"\",VLOOKUP(CV170,'Footnotes list'!$D$9:$E$58,2,FALSE) ) )","v":""},null,null,null,null,{"$f":"IF(TRIM(DA170)=\"\", \"\", IF(VLOOKUP(DA170,'Footnotes list'!$D$9:$E$58,2,FALSE)=0,\"\",VLOOKUP(DA170,'Footnotes list'!$D$9:$E$58,2,FALSE) ) )","v":""},null,null,null,null,{"$f":"IF(TRIM(DF170)=\"\", \"\", IF(VLOOKUP(DF170,'Footnotes list'!$D$9:$E$58,2,FALSE)=0,\"\",VLOOKUP(DF170,'Footnotes list'!$D$9:$E$58,2,FALSE) ) )","v":""},null,null,null,null,{"$f":"IF(TRIM(DK170)=\"\", \"\", IF(VLOOKUP(DK170,'Footnotes list'!$D$9:$E$58,2,FALSE)=0,\"\",VLOOKUP(DK170,'Footnotes list'!$D$9:$E$58,2,FALSE) ) )","v":""},null,null,null,null,{"$f":"IF(TRIM(DP170)=\"\", \"\", IF(VLOOKUP(DP170,'Footnotes list'!$D$9:$E$58,2,FALSE)=0,\"\",VLOOKUP(DP170,'Footnotes list'!$D$9:$E$58,2,FALSE) ) )","v":""},null,null,null,null,{"$f":"IF(TRIM(DU170)=\"\", \"\", IF(VLOOKUP(DU170,'Footnotes list'!$D$9:$E$58,2,FALSE)=0,\"\",VLOOKUP(DU170,'Footnotes list'!$D$9:$E$58,2,FALSE) ) )","v":""},null,null,null,null,{"$f":"IF(TRIM(DZ170)=\"\", \"\", IF(VLOOKUP(DZ170,'Footnotes list'!$D$9:$E$58,2,FALSE)=0,\"\",VLOOKUP(DZ170,'Footnotes list'!$D$9:$E$58,2,FALSE) ) )","v":""},null,null,null,null,{"$f":"IF(TRIM(EE170)=\"\", \"\", IF(VLOOKUP(EE170,'Footnotes list'!$D$9:$E$58,2,FALSE)=0,\"\",VLOOKUP(EE170,'Footnotes list'!$D$9:$E$58,2,FALSE) ) )","v":""},null,null,null,null,{"$f":"IF(TRIM(EJ170)=\"\", \"\", IF(VLOOKUP(EJ170,'Footnotes list'!$D$9:$E$58,2,FALSE)=0,\"\",VLOOKUP(EJ170,'Footnotes list'!$D$9:$E$58,2,FALSE) ) )","v":""},null,null,null,null,{"$f":"IF(TRIM(EO170)=\"\", \"\", IF(VLOOKUP(EO170,'Footnotes list'!$D$9:$E$58,2,FALSE)=0,\"\",VLOOKUP(EO170,'Footnotes list'!$D$9:$E$58,2,FALSE) ) )","v":""},null,null,null,null,{"$f":"IF(TRIM(ET170)=\"\", \"\", IF(VLOOKUP(ET170,'Footnotes list'!$D$9:$E$58,2,FALSE)=0,\"\",VLOOKUP(ET170,'Footnotes list'!$D$9:$E$58,2,FALSE) ) )","v":""},null,null,null,null,{"$f":"IF(TRIM(EY170)=\"\", \"\", IF(VLOOKUP(EY170,'Footnotes list'!$D$9:$E$58,2,FALSE)=0,\"\",VLOOKUP(EY170,'Footnotes list'!$D$9:$E$58,2,FALSE) ) )","v":""}]
[null,null,"F","NMKT","non-market activities",null,null,null,null,null,{"$f":"IF(TRIM(J171)=\"\", \"\", IF(VLOOKUP(J171,'Footnotes list'!$D$9:$E$58,2,FALSE)=0,\"\",VLOOKUP(J171,'Footnotes list'!$D$9:$E$58,2,FALSE) ) )","v":""},null,null,null,null,{"$f":"IF(TRIM(O171)=\"\", \"\", IF(VLOOKUP(O171,'Footnotes list'!$D$9:$E$58,2,FALSE)=0,\"\",VLOOKUP(O171,'Footnotes list'!$D$9:$E$58,2,FALSE) ) )","v":""},null,null,null,null,{"$f":"IF(TRIM(T171)=\"\", \"\", IF(VLOOKUP(T171,'Footnotes list'!$D$9:$E$58,2,FALSE)=0,\"\",VLOOKUP(T171,'Footnotes list'!$D$9:$E$58,2,FALSE) ) )","v":""},null,null,null,null,{"$f":"IF(TRIM(Y171)=\"\", \"\", IF(VLOOKUP(Y171,'Footnotes list'!$D$9:$E$58,2,FALSE)=0,\"\",VLOOKUP(Y171,'Footnotes list'!$D$9:$E$58,2,FALSE) ) )","v":""},null,null,null,null,{"$f":"IF(TRIM(AD171)=\"\", \"\", IF(VLOOKUP(AD171,'Footnotes list'!$D$9:$E$58,2,FALSE)=0,\"\",VLOOKUP(AD171,'Footnotes list'!$D$9:$E$58,2,FALSE) ) )","v":""},null,null,null,null,{"$f":"IF(TRIM(AI171)=\"\", \"\", IF(VLOOKUP(AI171,'Footnotes list'!$D$9:$E$58,2,FALSE)=0,\"\",VLOOKUP(AI171,'Footnotes list'!$D$9:$E$58,2,FALSE) ) )","v":""},null,null,null,null,{"$f":"IF(TRIM(AN171)=\"\", \"\", IF(VLOOKUP(AN171,'Footnotes list'!$D$9:$E$58,2,FALSE)=0,\"\",VLOOKUP(AN171,'Footnotes list'!$D$9:$E$58,2,FALSE) ) )","v":""},null,null,null,null,{"$f":"IF(TRIM(AS171)=\"\", \"\", IF(VLOOKUP(AS171,'Footnotes list'!$D$9:$E$58,2,FALSE)=0,\"\",VLOOKUP(AS171,'Footnotes list'!$D$9:$E$58,2,FALSE) ) )","v":""},null,null,null,null,{"$f":"IF(TRIM(AX171)=\"\", \"\", IF(VLOOKUP(AX171,'Footnotes list'!$D$9:$E$58,2,FALSE)=0,\"\",VLOOKUP(AX171,'Footnotes list'!$D$9:$E$58,2,FALSE) ) )","v":""},null,null,null,null,{"$f":"IF(TRIM(BC171)=\"\", \"\", IF(VLOOKUP(BC171,'Footnotes list'!$D$9:$E$58,2,FALSE)=0,\"\",VLOOKUP(BC171,'Footnotes list'!$D$9:$E$58,2,FALSE) ) )","v":""},null,null,null,null,{"$f":"IF(TRIM(BH171)=\"\", \"\", IF(VLOOKUP(BH171,'Footnotes list'!$D$9:$E$58,2,FALSE)=0,\"\",VLOOKUP(BH171,'Footnotes list'!$D$9:$E$58,2,FALSE) ) )","v":""},null,null,null,null,{"$f":"IF(TRIM(BM171)=\"\", \"\", IF(VLOOKUP(BM171,'Footnotes list'!$D$9:$E$58,2,FALSE)=0,\"\",VLOOKUP(BM171,'Footnotes list'!$D$9:$E$58,2,FALSE) ) )","v":""},null,null,null,null,{"$f":"IF(TRIM(BR171)=\"\", \"\", IF(VLOOKUP(BR171,'Footnotes list'!$D$9:$E$58,2,FALSE)=0,\"\",VLOOKUP(BR171,'Footnotes list'!$D$9:$E$58,2,FALSE) ) )","v":""},null,null,null,null,{"$f":"IF(TRIM(BW171)=\"\", \"\", IF(VLOOKUP(BW171,'Footnotes list'!$D$9:$E$58,2,FALSE)=0,\"\",VLOOKUP(BW171,'Footnotes list'!$D$9:$E$58,2,FALSE) ) )","v":""},null,null,null,null,{"$f":"IF(TRIM(CB171)=\"\", \"\", IF(VLOOKUP(CB171,'Footnotes list'!$D$9:$E$58,2,FALSE)=0,\"\",VLOOKUP(CB171,'Footnotes list'!$D$9:$E$58,2,FALSE) ) )","v":""},null,null,null,null,{"$f":"IF(TRIM(CG171)=\"\", \"\", IF(VLOOKUP(CG171,'Footnotes list'!$D$9:$E$58,2,FALSE)=0,\"\",VLOOKUP(CG171,'Footnotes list'!$D$9:$E$58,2,FALSE) ) )","v":""},null,null,null,null,{"$f":"IF(TRIM(CL171)=\"\", \"\", IF(VLOOKUP(CL171,'Footnotes list'!$D$9:$E$58,2,FALSE)=0,\"\",VLOOKUP(CL171,'Footnotes list'!$D$9:$E$58,2,FALSE) ) )","v":""},null,null,null,null,{"$f":"IF(TRIM(CQ171)=\"\", \"\", IF(VLOOKUP(CQ171,'Footnotes list'!$D$9:$E$58,2,FALSE)=0,\"\",VLOOKUP(CQ171,'Footnotes list'!$D$9:$E$58,2,FALSE) ) )","v":""},null,null,null,null,{"$f":"IF(TRIM(CV171)=\"\", \"\", IF(VLOOKUP(CV171,'Footnotes list'!$D$9:$E$58,2,FALSE)=0,\"\",VLOOKUP(CV171,'Footnotes list'!$D$9:$E$58,2,FALSE) ) )","v":""},null,null,null,null,{"$f":"IF(TRIM(DA171)=\"\", \"\", IF(VLOOKUP(DA171,'Footnotes list'!$D$9:$E$58,2,FALSE)=0,\"\",VLOOKUP(DA171,'Footnotes list'!$D$9:$E$58,2,FALSE) ) )","v":""},null,null,null,null,{"$f":"IF(TRIM(DF171)=\"\", \"\", IF(VLOOKUP(DF171,'Footnotes list'!$D$9:$E$58,2,FALSE)=0,\"\",VLOOKUP(DF171,'Footnotes list'!$D$9:$E$58,2,FALSE) ) )","v":""},null,null,null,null,{"$f":"IF(TRIM(DK171)=\"\", \"\", IF(VLOOKUP(DK171,'Footnotes list'!$D$9:$E$58,2,FALSE)=0,\"\",VLOOKUP(DK171,'Footnotes list'!$D$9:$E$58,2,FALSE) ) )","v":""},null,null,null,null,{"$f":"IF(TRIM(DP171)=\"\", \"\", IF(VLOOKUP(DP171,'Footnotes list'!$D$9:$E$58,2,FALSE)=0,\"\",VLOOKUP(DP171,'Footnotes list'!$D$9:$E$58,2,FALSE) ) )","v":""},null,null,null,null,{"$f":"IF(TRIM(DU171)=\"\", \"\", IF(VLOOKUP(DU171,'Footnotes list'!$D$9:$E$58,2,FALSE)=0,\"\",VLOOKUP(DU171,'Footnotes list'!$D$9:$E$58,2,FALSE) ) )","v":""},null,null,null,null,{"$f":"IF(TRIM(DZ171)=\"\", \"\", IF(VLOOKUP(DZ171,'Footnotes list'!$D$9:$E$58,2,FALSE)=0,\"\",VLOOKUP(DZ171,'Footnotes list'!$D$9:$E$58,2,FALSE) ) )","v":""},null,null,null,null,{"$f":"IF(TRIM(EE171)=\"\", \"\", IF(VLOOKUP(EE171,'Footnotes list'!$D$9:$E$58,2,FALSE)=0,\"\",VLOOKUP(EE171,'Footnotes list'!$D$9:$E$58,2,FALSE) ) )","v":""},null,null,null,null,{"$f":"IF(TRIM(EJ171)=\"\", \"\", IF(VLOOKUP(EJ171,'Footnotes list'!$D$9:$E$58,2,FALSE)=0,\"\",VLOOKUP(EJ171,'Footnotes list'!$D$9:$E$58,2,FALSE) ) )","v":""},null,null,null,null,{"$f":"IF(TRIM(EO171)=\"\", \"\", IF(VLOOKUP(EO171,'Footnotes list'!$D$9:$E$58,2,FALSE)=0,\"\",VLOOKUP(EO171,'Footnotes list'!$D$9:$E$58,2,FALSE) ) )","v":""},null,null,null,null,{"$f":"IF(TRIM(ET171)=\"\", \"\", IF(VLOOKUP(ET171,'Footnotes list'!$D$9:$E$58,2,FALSE)=0,\"\",VLOOKUP(ET171,'Footnotes list'!$D$9:$E$58,2,FALSE) ) )","v":""},null,null,null,null,{"$f":"IF(TRIM(EY171)=\"\", \"\", IF(VLOOKUP(EY171,'Footnotes list'!$D$9:$E$58,2,FALSE)=0,\"\",VLOOKUP(EY171,'Footnotes list'!$D$9:$E$58,2,FALSE) ) )","v":""}]
[null,null,"F","OWN_USE","activities for own final use",null,null,null,null,null,{"$f":"IF(TRIM(J172)=\"\", \"\", IF(VLOOKUP(J172,'Footnotes list'!$D$9:$E$58,2,FALSE)=0,\"\",VLOOKUP(J172,'Footnotes list'!$D$9:$E$58,2,FALSE) ) )","v":""},null,null,null,null,{"$f":"IF(TRIM(O172)=\"\", \"\", IF(VLOOKUP(O172,'Footnotes list'!$D$9:$E$58,2,FALSE)=0,\"\",VLOOKUP(O172,'Footnotes list'!$D$9:$E$58,2,FALSE) ) )","v":""},null,null,null,null,{"$f":"IF(TRIM(T172)=\"\", \"\", IF(VLOOKUP(T172,'Footnotes list'!$D$9:$E$58,2,FALSE)=0,\"\",VLOOKUP(T172,'Footnotes list'!$D$9:$E$58,2,FALSE) ) )","v":""},null,null,null,null,{"$f":"IF(TRIM(Y172)=\"\", \"\", IF(VLOOKUP(Y172,'Footnotes list'!$D$9:$E$58,2,FALSE)=0,\"\",VLOOKUP(Y172,'Footnotes list'!$D$9:$E$58,2,FALSE) ) )","v":""},null,null,null,null,{"$f":"IF(TRIM(AD172)=\"\", \"\", IF(VLOOKUP(AD172,'Footnotes list'!$D$9:$E$58,2,FALSE)=0,\"\",VLOOKUP(AD172,'Footnotes list'!$D$9:$E$58,2,FALSE) ) )","v":""},null,null,null,null,{"$f":"IF(TRIM(AI172)=\"\", \"\", IF(VLOOKUP(AI172,'Footnotes list'!$D$9:$E$58,2,FALSE)=0,\"\",VLOOKUP(AI172,'Footnotes list'!$D$9:$E$58,2,FALSE) ) )","v":""},null,null,null,null,{"$f":"IF(TRIM(AN172)=\"\", \"\", IF(VLOOKUP(AN172,'Footnotes list'!$D$9:$E$58,2,FALSE)=0,\"\",VLOOKUP(AN172,'Footnotes list'!$D$9:$E$58,2,FALSE) ) )","v":""},null,null,null,null,{"$f":"IF(TRIM(AS172)=\"\", \"\", IF(VLOOKUP(AS172,'Footnotes list'!$D$9:$E$58,2,FALSE)=0,\"\",VLOOKUP(AS172,'Footnotes list'!$D$9:$E$58,2,FALSE) ) )","v":""},null,null,null,null,{"$f":"IF(TRIM(AX172)=\"\", \"\", IF(VLOOKUP(AX172,'Footnotes list'!$D$9:$E$58,2,FALSE)=0,\"\",VLOOKUP(AX172,'Footnotes list'!$D$9:$E$58,2,FALSE) ) )","v":""},null,null,null,null,{"$f":"IF(TRIM(BC172)=\"\", \"\", IF(VLOOKUP(BC172,'Footnotes list'!$D$9:$E$58,2,FALSE)=0,\"\",VLOOKUP(BC172,'Footnotes list'!$D$9:$E$58,2,FALSE) ) )","v":""},null,null,null,null,{"$f":"IF(TRIM(BH172)=\"\", \"\", IF(VLOOKUP(BH172,'Footnotes list'!$D$9:$E$58,2,FALSE)=0,\"\",VLOOKUP(BH172,'Footnotes list'!$D$9:$E$58,2,FALSE) ) )","v":""},null,null,null,null,{"$f":"IF(TRIM(BM172)=\"\", \"\", IF(VLOOKUP(BM172,'Footnotes list'!$D$9:$E$58,2,FALSE)=0,\"\",VLOOKUP(BM172,'Footnotes list'!$D$9:$E$58,2,FALSE) ) )","v":""},null,null,null,null,{"$f":"IF(TRIM(BR172)=\"\", \"\", IF(VLOOKUP(BR172,'Footnotes list'!$D$9:$E$58,2,FALSE)=0,\"\",VLOOKUP(BR172,'Footnotes list'!$D$9:$E$58,2,FALSE) ) )","v":""},null,null,null,null,{"$f":"IF(TRIM(BW172)=\"\", \"\", IF(VLOOKUP(BW172,'Footnotes list'!$D$9:$E$58,2,FALSE)=0,\"\",VLOOKUP(BW172,'Footnotes list'!$D$9:$E$58,2,FALSE) ) )","v":""},null,null,null,null,{"$f":"IF(TRIM(CB172)=\"\", \"\", IF(VLOOKUP(CB172,'Footnotes list'!$D$9:$E$58,2,FALSE)=0,\"\",VLOOKUP(CB172,'Footnotes list'!$D$9:$E$58,2,FALSE) ) )","v":""},null,null,null,null,{"$f":"IF(TRIM(CG172)=\"\", \"\", IF(VLOOKUP(CG172,'Footnotes list'!$D$9:$E$58,2,FALSE)=0,\"\",VLOOKUP(CG172,'Footnotes list'!$D$9:$E$58,2,FALSE) ) )","v":""},null,null,null,null,{"$f":"IF(TRIM(CL172)=\"\", \"\", IF(VLOOKUP(CL172,'Footnotes list'!$D$9:$E$58,2,FALSE)=0,\"\",VLOOKUP(CL172,'Footnotes list'!$D$9:$E$58,2,FALSE) ) )","v":""},null,null,null,null,{"$f":"IF(TRIM(CQ172)=\"\", \"\", IF(VLOOKUP(CQ172,'Footnotes list'!$D$9:$E$58,2,FALSE)=0,\"\",VLOOKUP(CQ172,'Footnotes list'!$D$9:$E$58,2,FALSE) ) )","v":""},null,null,null,null,{"$f":"IF(TRIM(CV172)=\"\", \"\", IF(VLOOKUP(CV172,'Footnotes list'!$D$9:$E$58,2,FALSE)=0,\"\",VLOOKUP(CV172,'Footnotes list'!$D$9:$E$58,2,FALSE) ) )","v":""},null,null,null,null,{"$f":"IF(TRIM(DA172)=\"\", \"\", IF(VLOOKUP(DA172,'Footnotes list'!$D$9:$E$58,2,FALSE)=0,\"\",VLOOKUP(DA172,'Footnotes list'!$D$9:$E$58,2,FALSE) ) )","v":""},null,null,null,null,{"$f":"IF(TRIM(DF172)=\"\", \"\", IF(VLOOKUP(DF172,'Footnotes list'!$D$9:$E$58,2,FALSE)=0,\"\",VLOOKUP(DF172,'Footnotes list'!$D$9:$E$58,2,FALSE) ) )","v":""},null,null,null,null,{"$f":"IF(TRIM(DK172)=\"\", \"\", IF(VLOOKUP(DK172,'Footnotes list'!$D$9:$E$58,2,FALSE)=0,\"\",VLOOKUP(DK172,'Footnotes list'!$D$9:$E$58,2,FALSE) ) )","v":""},null,null,null,null,{"$f":"IF(TRIM(DP172)=\"\", \"\", IF(VLOOKUP(DP172,'Footnotes list'!$D$9:$E$58,2,FALSE)=0,\"\",VLOOKUP(DP172,'Footnotes list'!$D$9:$E$58,2,FALSE) ) )","v":""},null,null,null,null,{"$f":"IF(TRIM(DU172)=\"\", \"\", IF(VLOOKUP(DU172,'Footnotes list'!$D$9:$E$58,2,FALSE)=0,\"\",VLOOKUP(DU172,'Footnotes list'!$D$9:$E$58,2,FALSE) ) )","v":""},null,null,null,null,{"$f":"IF(TRIM(DZ172)=\"\", \"\", IF(VLOOKUP(DZ172,'Footnotes list'!$D$9:$E$58,2,FALSE)=0,\"\",VLOOKUP(DZ172,'Footnotes list'!$D$9:$E$58,2,FALSE) ) )","v":""},null,null,null,null,{"$f":"IF(TRIM(EE172)=\"\", \"\", IF(VLOOKUP(EE172,'Footnotes list'!$D$9:$E$58,2,FALSE)=0,\"\",VLOOKUP(EE172,'Footnotes list'!$D$9:$E$58,2,FALSE) ) )","v":""},null,null,null,null,{"$f":"IF(TRIM(EJ172)=\"\", \"\", IF(VLOOKUP(EJ172,'Footnotes list'!$D$9:$E$58,2,FALSE)=0,\"\",VLOOKUP(EJ172,'Footnotes list'!$D$9:$E$58,2,FALSE) ) )","v":""},null,null,null,null,{"$f":"IF(TRIM(EO172)=\"\", \"\", IF(VLOOKUP(EO172,'Footnotes list'!$D$9:$E$58,2,FALSE)=0,\"\",VLOOKUP(EO172,'Footnotes list'!$D$9:$E$58,2,FALSE) ) )","v":""},null,null,null,null,{"$f":"IF(TRIM(ET172)=\"\", \"\", IF(VLOOKUP(ET172,'Footnotes list'!$D$9:$E$58,2,FALSE)=0,\"\",VLOOKUP(ET172,'Footnotes list'!$D$9:$E$58,2,FALSE) ) )","v":""},null,null,null,null,{"$f":"IF(TRIM(EY172)=\"\", \"\", IF(VLOOKUP(EY172,'Footnotes list'!$D$9:$E$58,2,FALSE)=0,\"\",VLOOKUP(EY172,'Footnotes list'!$D$9:$E$58,2,FALSE) ) )","v":""}]
[null,null,"F","MKT","market activities, including:",null,null,null,null,null,{"$f":"IF(TRIM(J173)=\"\", \"\", IF(VLOOKUP(J173,'Footnotes list'!$D$9:$E$58,2,FALSE)=0,\"\",VLOOKUP(J173,'Footnotes list'!$D$9:$E$58,2,FALSE) ) )","v":""},null,null,null,null,{"$f":"IF(TRIM(O173)=\"\", \"\", IF(VLOOKUP(O173,'Footnotes list'!$D$9:$E$58,2,FALSE)=0,\"\",VLOOKUP(O173,'Footnotes list'!$D$9:$E$58,2,FALSE) ) )","v":""},null,null,null,null,{"$f":"IF(TRIM(T173)=\"\", \"\", IF(VLOOKUP(T173,'Footnotes list'!$D$9:$E$58,2,FALSE)=0,\"\",VLOOKUP(T173,'Footnotes list'!$D$9:$E$58,2,FALSE) ) )","v":""},null,null,null,null,{"$f":"IF(TRIM(Y173)=\"\", \"\", IF(VLOOKUP(Y173,'Footnotes list'!$D$9:$E$58,2,FALSE)=0,\"\",VLOOKUP(Y173,'Footnotes list'!$D$9:$E$58,2,FALSE) ) )","v":""},null,null,null,null,{"$f":"IF(TRIM(AD173)=\"\", \"\", IF(VLOOKUP(AD173,'Footnotes list'!$D$9:$E$58,2,FALSE)=0,\"\",VLOOKUP(AD173,'Footnotes list'!$D$9:$E$58,2,FALSE) ) )","v":""},null,null,null,null,{"$f":"IF(TRIM(AI173)=\"\", \"\", IF(VLOOKUP(AI173,'Footnotes list'!$D$9:$E$58,2,FALSE)=0,\"\",VLOOKUP(AI173,'Footnotes list'!$D$9:$E$58,2,FALSE) ) )","v":""},null,null,null,null,{"$f":"IF(TRIM(AN173)=\"\", \"\", IF(VLOOKUP(AN173,'Footnotes list'!$D$9:$E$58,2,FALSE)=0,\"\",VLOOKUP(AN173,'Footnotes list'!$D$9:$E$58,2,FALSE) ) )","v":""},null,null,null,null,{"$f":"IF(TRIM(AS173)=\"\", \"\", IF(VLOOKUP(AS173,'Footnotes list'!$D$9:$E$58,2,FALSE)=0,\"\",VLOOKUP(AS173,'Footnotes list'!$D$9:$E$58,2,FALSE) ) )","v":""},null,null,null,null,{"$f":"IF(TRIM(AX173)=\"\", \"\", IF(VLOOKUP(AX173,'Footnotes list'!$D$9:$E$58,2,FALSE)=0,\"\",VLOOKUP(AX173,'Footnotes list'!$D$9:$E$58,2,FALSE) ) )","v":""},null,null,null,null,{"$f":"IF(TRIM(BC173)=\"\", \"\", IF(VLOOKUP(BC173,'Footnotes list'!$D$9:$E$58,2,FALSE)=0,\"\",VLOOKUP(BC173,'Footnotes list'!$D$9:$E$58,2,FALSE) ) )","v":""},null,null,null,null,{"$f":"IF(TRIM(BH173)=\"\", \"\", IF(VLOOKUP(BH173,'Footnotes list'!$D$9:$E$58,2,FALSE)=0,\"\",VLOOKUP(BH173,'Footnotes list'!$D$9:$E$58,2,FALSE) ) )","v":""},null,null,null,null,{"$f":"IF(TRIM(BM173)=\"\", \"\", IF(VLOOKUP(BM173,'Footnotes list'!$D$9:$E$58,2,FALSE)=0,\"\",VLOOKUP(BM173,'Footnotes list'!$D$9:$E$58,2,FALSE) ) )","v":""},null,null,null,null,{"$f":"IF(TRIM(BR173)=\"\", \"\", IF(VLOOKUP(BR173,'Footnotes list'!$D$9:$E$58,2,FALSE)=0,\"\",VLOOKUP(BR173,'Footnotes list'!$D$9:$E$58,2,FALSE) ) )","v":""},null,null,null,null,{"$f":"IF(TRIM(BW173)=\"\", \"\", IF(VLOOKUP(BW173,'Footnotes list'!$D$9:$E$58,2,FALSE)=0,\"\",VLOOKUP(BW173,'Footnotes list'!$D$9:$E$58,2,FALSE) ) )","v":""},null,null,null,null,{"$f":"IF(TRIM(CB173)=\"\", \"\", IF(VLOOKUP(CB173,'Footnotes list'!$D$9:$E$58,2,FALSE)=0,\"\",VLOOKUP(CB173,'Footnotes list'!$D$9:$E$58,2,FALSE) ) )","v":""},null,null,null,null,{"$f":"IF(TRIM(CG173)=\"\", \"\", IF(VLOOKUP(CG173,'Footnotes list'!$D$9:$E$58,2,FALSE)=0,\"\",VLOOKUP(CG173,'Footnotes list'!$D$9:$E$58,2,FALSE) ) )","v":""},null,null,null,null,{"$f":"IF(TRIM(CL173)=\"\", \"\", IF(VLOOKUP(CL173,'Footnotes list'!$D$9:$E$58,2,FALSE)=0,\"\",VLOOKUP(CL173,'Footnotes list'!$D$9:$E$58,2,FALSE) ) )","v":""},null,null,null,null,{"$f":"IF(TRIM(CQ173)=\"\", \"\", IF(VLOOKUP(CQ173,'Footnotes list'!$D$9:$E$58,2,FALSE)=0,\"\",VLOOKUP(CQ173,'Footnotes list'!$D$9:$E$58,2,FALSE) ) )","v":""},null,null,null,null,{"$f":"IF(TRIM(CV173)=\"\", \"\", IF(VLOOKUP(CV173,'Footnotes list'!$D$9:$E$58,2,FALSE)=0,\"\",VLOOKUP(CV173,'Footnotes list'!$D$9:$E$58,2,FALSE) ) )","v":""},null,null,null,null,{"$f":"IF(TRIM(DA173)=\"\", \"\", IF(VLOOKUP(DA173,'Footnotes list'!$D$9:$E$58,2,FALSE)=0,\"\",VLOOKUP(DA173,'Footnotes list'!$D$9:$E$58,2,FALSE) ) )","v":""},null,null,null,null,{"$f":"IF(TRIM(DF173)=\"\", \"\", IF(VLOOKUP(DF173,'Footnotes list'!$D$9:$E$58,2,FALSE)=0,\"\",VLOOKUP(DF173,'Footnotes list'!$D$9:$E$58,2,FALSE) ) )","v":""},null,null,null,null,{"$f":"IF(TRIM(DK173)=\"\", \"\", IF(VLOOKUP(DK173,'Footnotes list'!$D$9:$E$58,2,FALSE)=0,\"\",VLOOKUP(DK173,'Footnotes list'!$D$9:$E$58,2,FALSE) ) )","v":""},null,null,null,null,{"$f":"IF(TRIM(DP173)=\"\", \"\", IF(VLOOKUP(DP173,'Footnotes list'!$D$9:$E$58,2,FALSE)=0,\"\",VLOOKUP(DP173,'Footnotes list'!$D$9:$E$58,2,FALSE) ) )","v":""},null,null,null,null,{"$f":"IF(TRIM(DU173)=\"\", \"\", IF(VLOOKUP(DU173,'Footnotes list'!$D$9:$E$58,2,FALSE)=0,\"\",VLOOKUP(DU173,'Footnotes list'!$D$9:$E$58,2,FALSE) ) )","v":""},null,null,null,null,{"$f":"IF(TRIM(DZ173)=\"\", \"\", IF(VLOOKUP(DZ173,'Footnotes list'!$D$9:$E$58,2,FALSE)=0,\"\",VLOOKUP(DZ173,'Footnotes list'!$D$9:$E$58,2,FALSE) ) )","v":""},null,null,null,null,{"$f":"IF(TRIM(EE173)=\"\", \"\", IF(VLOOKUP(EE173,'Footnotes list'!$D$9:$E$58,2,FALSE)=0,\"\",VLOOKUP(EE173,'Footnotes list'!$D$9:$E$58,2,FALSE) ) )","v":""},null,null,null,null,{"$f":"IF(TRIM(EJ173)=\"\", \"\", IF(VLOOKUP(EJ173,'Footnotes list'!$D$9:$E$58,2,FALSE)=0,\"\",VLOOKUP(EJ173,'Footnotes list'!$D$9:$E$58,2,FALSE) ) )","v":""},null,null,null,null,{"$f":"IF(TRIM(EO173)=\"\", \"\", IF(VLOOKUP(EO173,'Footnotes list'!$D$9:$E$58,2,FALSE)=0,\"\",VLOOKUP(EO173,'Footnotes list'!$D$9:$E$58,2,FALSE) ) )","v":""},null,null,null,null,{"$f":"IF(TRIM(ET173)=\"\", \"\", IF(VLOOKUP(ET173,'Footnotes list'!$D$9:$E$58,2,FALSE)=0,\"\",VLOOKUP(ET173,'Footnotes list'!$D$9:$E$58,2,FALSE) ) )","v":""},null,null,null,null,{"$f":"IF(TRIM(EY173)=\"\", \"\", IF(VLOOKUP(EY173,'Footnotes list'!$D$9:$E$58,2,FALSE)=0,\"\",VLOOKUP(EY173,'Footnotes list'!$D$9:$E$58,2,FALSE) ) )","v":""}]
[null,null,"F","ES_CS","environmental specific services",null,null,null,null,null,{"$f":"IF(TRIM(J174)=\"\", \"\", IF(VLOOKUP(J174,'Footnotes list'!$D$9:$E$58,2,FALSE)=0,\"\",VLOOKUP(J174,'Footnotes list'!$D$9:$E$58,2,FALSE) ) )","v":""},null,null,null,null,{"$f":"IF(TRIM(O174)=\"\", \"\", IF(VLOOKUP(O174,'Footnotes list'!$D$9:$E$58,2,FALSE)=0,\"\",VLOOKUP(O174,'Footnotes list'!$D$9:$E$58,2,FALSE) ) )","v":""},null,null,null,null,{"$f":"IF(TRIM(T174)=\"\", \"\", IF(VLOOKUP(T174,'Footnotes list'!$D$9:$E$58,2,FALSE)=0,\"\",VLOOKUP(T174,'Footnotes list'!$D$9:$E$58,2,FALSE) ) )","v":""},null,null,null,null,{"$f":"IF(TRIM(Y174)=\"\", \"\", IF(VLOOKUP(Y174,'Footnotes list'!$D$9:$E$58,2,FALSE)=0,\"\",VLOOKUP(Y174,'Footnotes list'!$D$9:$E$58,2,FALSE) ) )","v":""},null,null,null,null,{"$f":"IF(TRIM(AD174)=\"\", \"\", IF(VLOOKUP(AD174,'Footnotes list'!$D$9:$E$58,2,FALSE)=0,\"\",VLOOKUP(AD174,'Footnotes list'!$D$9:$E$58,2,FALSE) ) )","v":""},null,null,null,null,{"$f":"IF(TRIM(AI174)=\"\", \"\", IF(VLOOKUP(AI174,'Footnotes list'!$D$9:$E$58,2,FALSE)=0,\"\",VLOOKUP(AI174,'Footnotes list'!$D$9:$E$58,2,FALSE) ) )","v":""},null,null,null,null,{"$f":"IF(TRIM(AN174)=\"\", \"\", IF(VLOOKUP(AN174,'Footnotes list'!$D$9:$E$58,2,FALSE)=0,\"\",VLOOKUP(AN174,'Footnotes list'!$D$9:$E$58,2,FALSE) ) )","v":""},null,null,null,null,{"$f":"IF(TRIM(AS174)=\"\", \"\", IF(VLOOKUP(AS174,'Footnotes list'!$D$9:$E$58,2,FALSE)=0,\"\",VLOOKUP(AS174,'Footnotes list'!$D$9:$E$58,2,FALSE) ) )","v":""},null,null,null,null,{"$f":"IF(TRIM(AX174)=\"\", \"\", IF(VLOOKUP(AX174,'Footnotes list'!$D$9:$E$58,2,FALSE)=0,\"\",VLOOKUP(AX174,'Footnotes list'!$D$9:$E$58,2,FALSE) ) )","v":""},null,null,null,null,{"$f":"IF(TRIM(BC174)=\"\", \"\", IF(VLOOKUP(BC174,'Footnotes list'!$D$9:$E$58,2,FALSE)=0,\"\",VLOOKUP(BC174,'Footnotes list'!$D$9:$E$58,2,FALSE) ) )","v":""},null,null,null,null,{"$f":"IF(TRIM(BH174)=\"\", \"\", IF(VLOOKUP(BH174,'Footnotes list'!$D$9:$E$58,2,FALSE)=0,\"\",VLOOKUP(BH174,'Footnotes list'!$D$9:$E$58,2,FALSE) ) )","v":""},null,null,null,null,{"$f":"IF(TRIM(BM174)=\"\", \"\", IF(VLOOKUP(BM174,'Footnotes list'!$D$9:$E$58,2,FALSE)=0,\"\",VLOOKUP(BM174,'Footnotes list'!$D$9:$E$58,2,FALSE) ) )","v":""},null,null,null,null,{"$f":"IF(TRIM(BR174)=\"\", \"\", IF(VLOOKUP(BR174,'Footnotes list'!$D$9:$E$58,2,FALSE)=0,\"\",VLOOKUP(BR174,'Footnotes list'!$D$9:$E$58,2,FALSE) ) )","v":""},null,null,null,null,{"$f":"IF(TRIM(BW174)=\"\", \"\", IF(VLOOKUP(BW174,'Footnotes list'!$D$9:$E$58,2,FALSE)=0,\"\",VLOOKUP(BW174,'Footnotes list'!$D$9:$E$58,2,FALSE) ) )","v":""},null,null,null,null,{"$f":"IF(TRIM(CB174)=\"\", \"\", IF(VLOOKUP(CB174,'Footnotes list'!$D$9:$E$58,2,FALSE)=0,\"\",VLOOKUP(CB174,'Footnotes list'!$D$9:$E$58,2,FALSE) ) )","v":""},null,null,null,null,{"$f":"IF(TRIM(CG174)=\"\", \"\", IF(VLOOKUP(CG174,'Footnotes list'!$D$9:$E$58,2,FALSE)=0,\"\",VLOOKUP(CG174,'Footnotes list'!$D$9:$E$58,2,FALSE) ) )","v":""},null,null,null,null,{"$f":"IF(TRIM(CL174)=\"\", \"\", IF(VLOOKUP(CL174,'Footnotes list'!$D$9:$E$58,2,FALSE)=0,\"\",VLOOKUP(CL174,'Footnotes list'!$D$9:$E$58,2,FALSE) ) )","v":""},null,null,null,null,{"$f":"IF(TRIM(CQ174)=\"\", \"\", IF(VLOOKUP(CQ174,'Footnotes list'!$D$9:$E$58,2,FALSE)=0,\"\",VLOOKUP(CQ174,'Footnotes list'!$D$9:$E$58,2,FALSE) ) )","v":""},null,null,null,null,{"$f":"IF(TRIM(CV174)=\"\", \"\", IF(VLOOKUP(CV174,'Footnotes list'!$D$9:$E$58,2,FALSE)=0,\"\",VLOOKUP(CV174,'Footnotes list'!$D$9:$E$58,2,FALSE) ) )","v":""},null,null,null,null,{"$f":"IF(TRIM(DA174)=\"\", \"\", IF(VLOOKUP(DA174,'Footnotes list'!$D$9:$E$58,2,FALSE)=0,\"\",VLOOKUP(DA174,'Footnotes list'!$D$9:$E$58,2,FALSE) ) )","v":""},null,null,null,null,{"$f":"IF(TRIM(DF174)=\"\", \"\", IF(VLOOKUP(DF174,'Footnotes list'!$D$9:$E$58,2,FALSE)=0,\"\",VLOOKUP(DF174,'Footnotes list'!$D$9:$E$58,2,FALSE) ) )","v":""},null,null,null,null,{"$f":"IF(TRIM(DK174)=\"\", \"\", IF(VLOOKUP(DK174,'Footnotes list'!$D$9:$E$58,2,FALSE)=0,\"\",VLOOKUP(DK174,'Footnotes list'!$D$9:$E$58,2,FALSE) ) )","v":""},null,null,null,null,{"$f":"IF(TRIM(DP174)=\"\", \"\", IF(VLOOKUP(DP174,'Footnotes list'!$D$9:$E$58,2,FALSE)=0,\"\",VLOOKUP(DP174,'Footnotes list'!$D$9:$E$58,2,FALSE) ) )","v":""},null,null,null,null,{"$f":"IF(TRIM(DU174)=\"\", \"\", IF(VLOOKUP(DU174,'Footnotes list'!$D$9:$E$58,2,FALSE)=0,\"\",VLOOKUP(DU174,'Footnotes list'!$D$9:$E$58,2,FALSE) ) )","v":""},null,null,null,null,{"$f":"IF(TRIM(DZ174)=\"\", \"\", IF(VLOOKUP(DZ174,'Footnotes list'!$D$9:$E$58,2,FALSE)=0,\"\",VLOOKUP(DZ174,'Footnotes list'!$D$9:$E$58,2,FALSE) ) )","v":""},null,null,null,null,{"$f":"IF(TRIM(EE174)=\"\", \"\", IF(VLOOKUP(EE174,'Footnotes list'!$D$9:$E$58,2,FALSE)=0,\"\",VLOOKUP(EE174,'Footnotes list'!$D$9:$E$58,2,FALSE) ) )","v":""},null,null,null,null,{"$f":"IF(TRIM(EJ174)=\"\", \"\", IF(VLOOKUP(EJ174,'Footnotes list'!$D$9:$E$58,2,FALSE)=0,\"\",VLOOKUP(EJ174,'Footnotes list'!$D$9:$E$58,2,FALSE) ) )","v":""},null,null,null,null,{"$f":"IF(TRIM(EO174)=\"\", \"\", IF(VLOOKUP(EO174,'Footnotes list'!$D$9:$E$58,2,FALSE)=0,\"\",VLOOKUP(EO174,'Footnotes list'!$D$9:$E$58,2,FALSE) ) )","v":""},null,null,null,null,{"$f":"IF(TRIM(ET174)=\"\", \"\", IF(VLOOKUP(ET174,'Footnotes list'!$D$9:$E$58,2,FALSE)=0,\"\",VLOOKUP(ET174,'Footnotes list'!$D$9:$E$58,2,FALSE) ) )","v":""},null,null,null,null,{"$f":"IF(TRIM(EY174)=\"\", \"\", IF(VLOOKUP(EY174,'Footnotes list'!$D$9:$E$58,2,FALSE)=0,\"\",VLOOKUP(EY174,'Footnotes list'!$D$9:$E$58,2,FALSE) ) )","v":""}]
[null,null,"F","C_REP","cleaner and resource efficient products",null,null,null,null,null,{"$f":"IF(TRIM(J175)=\"\", \"\", IF(VLOOKUP(J175,'Footnotes list'!$D$9:$E$58,2,FALSE)=0,\"\",VLOOKUP(J175,'Footnotes list'!$D$9:$E$58,2,FALSE) ) )","v":""},null,null,null,null,{"$f":"IF(TRIM(O175)=\"\", \"\", IF(VLOOKUP(O175,'Footnotes list'!$D$9:$E$58,2,FALSE)=0,\"\",VLOOKUP(O175,'Footnotes list'!$D$9:$E$58,2,FALSE) ) )","v":""},null,null,null,null,{"$f":"IF(TRIM(T175)=\"\", \"\", IF(VLOOKUP(T175,'Footnotes list'!$D$9:$E$58,2,FALSE)=0,\"\",VLOOKUP(T175,'Footnotes list'!$D$9:$E$58,2,FALSE) ) )","v":""},null,null,null,null,{"$f":"IF(TRIM(Y175)=\"\", \"\", IF(VLOOKUP(Y175,'Footnotes list'!$D$9:$E$58,2,FALSE)=0,\"\",VLOOKUP(Y175,'Footnotes list'!$D$9:$E$58,2,FALSE) ) )","v":""},null,null,null,null,{"$f":"IF(TRIM(AD175)=\"\", \"\", IF(VLOOKUP(AD175,'Footnotes list'!$D$9:$E$58,2,FALSE)=0,\"\",VLOOKUP(AD175,'Footnotes list'!$D$9:$E$58,2,FALSE) ) )","v":""},null,null,null,null,{"$f":"IF(TRIM(AI175)=\"\", \"\", IF(VLOOKUP(AI175,'Footnotes list'!$D$9:$E$58,2,FALSE)=0,\"\",VLOOKUP(AI175,'Footnotes list'!$D$9:$E$58,2,FALSE) ) )","v":""},null,null,null,null,{"$f":"IF(TRIM(AN175)=\"\", \"\", IF(VLOOKUP(AN175,'Footnotes list'!$D$9:$E$58,2,FALSE)=0,\"\",VLOOKUP(AN175,'Footnotes list'!$D$9:$E$58,2,FALSE) ) )","v":""},null,null,null,null,{"$f":"IF(TRIM(AS175)=\"\", \"\", IF(VLOOKUP(AS175,'Footnotes list'!$D$9:$E$58,2,FALSE)=0,\"\",VLOOKUP(AS175,'Footnotes list'!$D$9:$E$58,2,FALSE) ) )","v":""},null,null,null,null,{"$f":"IF(TRIM(AX175)=\"\", \"\", IF(VLOOKUP(AX175,'Footnotes list'!$D$9:$E$58,2,FALSE)=0,\"\",VLOOKUP(AX175,'Footnotes list'!$D$9:$E$58,2,FALSE) ) )","v":""},null,null,null,null,{"$f":"IF(TRIM(BC175)=\"\", \"\", IF(VLOOKUP(BC175,'Footnotes list'!$D$9:$E$58,2,FALSE)=0,\"\",VLOOKUP(BC175,'Footnotes list'!$D$9:$E$58,2,FALSE) ) )","v":""},null,null,null,null,{"$f":"IF(TRIM(BH175)=\"\", \"\", IF(VLOOKUP(BH175,'Footnotes list'!$D$9:$E$58,2,FALSE)=0,\"\",VLOOKUP(BH175,'Footnotes list'!$D$9:$E$58,2,FALSE) ) )","v":""},null,null,null,null,{"$f":"IF(TRIM(BM175)=\"\", \"\", IF(VLOOKUP(BM175,'Footnotes list'!$D$9:$E$58,2,FALSE)=0,\"\",VLOOKUP(BM175,'Footnotes list'!$D$9:$E$58,2,FALSE) ) )","v":""},null,null,null,null,{"$f":"IF(TRIM(BR175)=\"\", \"\", IF(VLOOKUP(BR175,'Footnotes list'!$D$9:$E$58,2,FALSE)=0,\"\",VLOOKUP(BR175,'Footnotes list'!$D$9:$E$58,2,FALSE) ) )","v":""},null,null,null,null,{"$f":"IF(TRIM(BW175)=\"\", \"\", IF(VLOOKUP(BW175,'Footnotes list'!$D$9:$E$58,2,FALSE)=0,\"\",VLOOKUP(BW175,'Footnotes list'!$D$9:$E$58,2,FALSE) ) )","v":""},null,null,null,null,{"$f":"IF(TRIM(CB175)=\"\", \"\", IF(VLOOKUP(CB175,'Footnotes list'!$D$9:$E$58,2,FALSE)=0,\"\",VLOOKUP(CB175,'Footnotes list'!$D$9:$E$58,2,FALSE) ) )","v":""},null,null,null,null,{"$f":"IF(TRIM(CG175)=\"\", \"\", IF(VLOOKUP(CG175,'Footnotes list'!$D$9:$E$58,2,FALSE)=0,\"\",VLOOKUP(CG175,'Footnotes list'!$D$9:$E$58,2,FALSE) ) )","v":""},null,null,null,null,{"$f":"IF(TRIM(CL175)=\"\", \"\", IF(VLOOKUP(CL175,'Footnotes list'!$D$9:$E$58,2,FALSE)=0,\"\",VLOOKUP(CL175,'Footnotes list'!$D$9:$E$58,2,FALSE) ) )","v":""},null,null,null,null,{"$f":"IF(TRIM(CQ175)=\"\", \"\", IF(VLOOKUP(CQ175,'Footnotes list'!$D$9:$E$58,2,FALSE)=0,\"\",VLOOKUP(CQ175,'Footnotes list'!$D$9:$E$58,2,FALSE) ) )","v":""},null,null,null,null,{"$f":"IF(TRIM(CV175)=\"\", \"\", IF(VLOOKUP(CV175,'Footnotes list'!$D$9:$E$58,2,FALSE)=0,\"\",VLOOKUP(CV175,'Footnotes list'!$D$9:$E$58,2,FALSE) ) )","v":""},null,null,null,null,{"$f":"IF(TRIM(DA175)=\"\", \"\", IF(VLOOKUP(DA175,'Footnotes list'!$D$9:$E$58,2,FALSE)=0,\"\",VLOOKUP(DA175,'Footnotes list'!$D$9:$E$58,2,FALSE) ) )","v":""},null,null,null,null,{"$f":"IF(TRIM(DF175)=\"\", \"\", IF(VLOOKUP(DF175,'Footnotes list'!$D$9:$E$58,2,FALSE)=0,\"\",VLOOKUP(DF175,'Footnotes list'!$D$9:$E$58,2,FALSE) ) )","v":""},null,null,null,null,{"$f":"IF(TRIM(DK175)=\"\", \"\", IF(VLOOKUP(DK175,'Footnotes list'!$D$9:$E$58,2,FALSE)=0,\"\",VLOOKUP(DK175,'Footnotes list'!$D$9:$E$58,2,FALSE) ) )","v":""},null,null,null,null,{"$f":"IF(TRIM(DP175)=\"\", \"\", IF(VLOOKUP(DP175,'Footnotes list'!$D$9:$E$58,2,FALSE)=0,\"\",VLOOKUP(DP175,'Footnotes list'!$D$9:$E$58,2,FALSE) ) )","v":""},null,null,null,null,{"$f":"IF(TRIM(DU175)=\"\", \"\", IF(VLOOKUP(DU175,'Footnotes list'!$D$9:$E$58,2,FALSE)=0,\"\",VLOOKUP(DU175,'Footnotes list'!$D$9:$E$58,2,FALSE) ) )","v":""},null,null,null,null,{"$f":"IF(TRIM(DZ175)=\"\", \"\", IF(VLOOKUP(DZ175,'Footnotes list'!$D$9:$E$58,2,FALSE)=0,\"\",VLOOKUP(DZ175,'Footnotes list'!$D$9:$E$58,2,FALSE) ) )","v":""},null,null,null,null,{"$f":"IF(TRIM(EE175)=\"\", \"\", IF(VLOOKUP(EE175,'Footnotes list'!$D$9:$E$58,2,FALSE)=0,\"\",VLOOKUP(EE175,'Footnotes list'!$D$9:$E$58,2,FALSE) ) )","v":""},null,null,null,null,{"$f":"IF(TRIM(EJ175)=\"\", \"\", IF(VLOOKUP(EJ175,'Footnotes list'!$D$9:$E$58,2,FALSE)=0,\"\",VLOOKUP(EJ175,'Footnotes list'!$D$9:$E$58,2,FALSE) ) )","v":""},null,null,null,null,{"$f":"IF(TRIM(EO175)=\"\", \"\", IF(VLOOKUP(EO175,'Footnotes list'!$D$9:$E$58,2,FALSE)=0,\"\",VLOOKUP(EO175,'Footnotes list'!$D$9:$E$58,2,FALSE) ) )","v":""},null,null,null,null,{"$f":"IF(TRIM(ET175)=\"\", \"\", IF(VLOOKUP(ET175,'Footnotes list'!$D$9:$E$58,2,FALSE)=0,\"\",VLOOKUP(ET175,'Footnotes list'!$D$9:$E$58,2,FALSE) ) )","v":""},null,null,null,null,{"$f":"IF(TRIM(EY175)=\"\", \"\", IF(VLOOKUP(EY175,'Footnotes list'!$D$9:$E$58,2,FALSE)=0,\"\",VLOOKUP(EY175,'Footnotes list'!$D$9:$E$58,2,FALSE) ) )","v":""}]
[null,null,"G","TOT_EGSS","Total G - Wholesale and retail trade, of which:",null,null,null,null,null,{"$f":"IF(TRIM(J176)=\"\", \"\", IF(VLOOKUP(J176,'Footnotes list'!$D$9:$E$58,2,FALSE)=0,\"\",VLOOKUP(J176,'Footnotes list'!$D$9:$E$58,2,FALSE) ) )","v":""},null,null,null,null,{"$f":"IF(TRIM(O176)=\"\", \"\", IF(VLOOKUP(O176,'Footnotes list'!$D$9:$E$58,2,FALSE)=0,\"\",VLOOKUP(O176,'Footnotes list'!$D$9:$E$58,2,FALSE) ) )","v":""},null,null,null,null,{"$f":"IF(TRIM(T176)=\"\", \"\", IF(VLOOKUP(T176,'Footnotes list'!$D$9:$E$58,2,FALSE)=0,\"\",VLOOKUP(T176,'Footnotes list'!$D$9:$E$58,2,FALSE) ) )","v":""},null,null,null,null,{"$f":"IF(TRIM(Y176)=\"\", \"\", IF(VLOOKUP(Y176,'Footnotes list'!$D$9:$E$58,2,FALSE)=0,\"\",VLOOKUP(Y176,'Footnotes list'!$D$9:$E$58,2,FALSE) ) )","v":""},null,null,null,null,{"$f":"IF(TRIM(AD176)=\"\", \"\", IF(VLOOKUP(AD176,'Footnotes list'!$D$9:$E$58,2,FALSE)=0,\"\",VLOOKUP(AD176,'Footnotes list'!$D$9:$E$58,2,FALSE) ) )","v":""},null,null,null,null,{"$f":"IF(TRIM(AI176)=\"\", \"\", IF(VLOOKUP(AI176,'Footnotes list'!$D$9:$E$58,2,FALSE)=0,\"\",VLOOKUP(AI176,'Footnotes list'!$D$9:$E$58,2,FALSE) ) )","v":""},null,null,null,null,{"$f":"IF(TRIM(AN176)=\"\", \"\", IF(VLOOKUP(AN176,'Footnotes list'!$D$9:$E$58,2,FALSE)=0,\"\",VLOOKUP(AN176,'Footnotes list'!$D$9:$E$58,2,FALSE) ) )","v":""},null,null,null,null,{"$f":"IF(TRIM(AS176)=\"\", \"\", IF(VLOOKUP(AS176,'Footnotes list'!$D$9:$E$58,2,FALSE)=0,\"\",VLOOKUP(AS176,'Footnotes list'!$D$9:$E$58,2,FALSE) ) )","v":""},null,null,null,null,{"$f":"IF(TRIM(AX176)=\"\", \"\", IF(VLOOKUP(AX176,'Footnotes list'!$D$9:$E$58,2,FALSE)=0,\"\",VLOOKUP(AX176,'Footnotes list'!$D$9:$E$58,2,FALSE) ) )","v":""},null,null,null,null,{"$f":"IF(TRIM(BC176)=\"\", \"\", IF(VLOOKUP(BC176,'Footnotes list'!$D$9:$E$58,2,FALSE)=0,\"\",VLOOKUP(BC176,'Footnotes list'!$D$9:$E$58,2,FALSE) ) )","v":""},null,null,null,null,{"$f":"IF(TRIM(BH176)=\"\", \"\", IF(VLOOKUP(BH176,'Footnotes list'!$D$9:$E$58,2,FALSE)=0,\"\",VLOOKUP(BH176,'Footnotes list'!$D$9:$E$58,2,FALSE) ) )","v":""},null,null,null,null,{"$f":"IF(TRIM(BM176)=\"\", \"\", IF(VLOOKUP(BM176,'Footnotes list'!$D$9:$E$58,2,FALSE)=0,\"\",VLOOKUP(BM176,'Footnotes list'!$D$9:$E$58,2,FALSE) ) )","v":""},null,null,null,null,{"$f":"IF(TRIM(BR176)=\"\", \"\", IF(VLOOKUP(BR176,'Footnotes list'!$D$9:$E$58,2,FALSE)=0,\"\",VLOOKUP(BR176,'Footnotes list'!$D$9:$E$58,2,FALSE) ) )","v":""},null,null,null,null,{"$f":"IF(TRIM(BW176)=\"\", \"\", IF(VLOOKUP(BW176,'Footnotes list'!$D$9:$E$58,2,FALSE)=0,\"\",VLOOKUP(BW176,'Footnotes list'!$D$9:$E$58,2,FALSE) ) )","v":""},null,null,null,null,{"$f":"IF(TRIM(CB176)=\"\", \"\", IF(VLOOKUP(CB176,'Footnotes list'!$D$9:$E$58,2,FALSE)=0,\"\",VLOOKUP(CB176,'Footnotes list'!$D$9:$E$58,2,FALSE) ) )","v":""},null,null,null,null,{"$f":"IF(TRIM(CG176)=\"\", \"\", IF(VLOOKUP(CG176,'Footnotes list'!$D$9:$E$58,2,FALSE)=0,\"\",VLOOKUP(CG176,'Footnotes list'!$D$9:$E$58,2,FALSE) ) )","v":""},null,null,null,null,{"$f":"IF(TRIM(CL176)=\"\", \"\", IF(VLOOKUP(CL176,'Footnotes list'!$D$9:$E$58,2,FALSE)=0,\"\",VLOOKUP(CL176,'Footnotes list'!$D$9:$E$58,2,FALSE) ) )","v":""},null,null,null,null,{"$f":"IF(TRIM(CQ176)=\"\", \"\", IF(VLOOKUP(CQ176,'Footnotes list'!$D$9:$E$58,2,FALSE)=0,\"\",VLOOKUP(CQ176,'Footnotes list'!$D$9:$E$58,2,FALSE) ) )","v":""},null,null,null,null,{"$f":"IF(TRIM(CV176)=\"\", \"\", IF(VLOOKUP(CV176,'Footnotes list'!$D$9:$E$58,2,FALSE)=0,\"\",VLOOKUP(CV176,'Footnotes list'!$D$9:$E$58,2,FALSE) ) )","v":""},null,null,null,null,{"$f":"IF(TRIM(DA176)=\"\", \"\", IF(VLOOKUP(DA176,'Footnotes list'!$D$9:$E$58,2,FALSE)=0,\"\",VLOOKUP(DA176,'Footnotes list'!$D$9:$E$58,2,FALSE) ) )","v":""},null,null,null,null,{"$f":"IF(TRIM(DF176)=\"\", \"\", IF(VLOOKUP(DF176,'Footnotes list'!$D$9:$E$58,2,FALSE)=0,\"\",VLOOKUP(DF176,'Footnotes list'!$D$9:$E$58,2,FALSE) ) )","v":""},null,null,null,null,{"$f":"IF(TRIM(DK176)=\"\", \"\", IF(VLOOKUP(DK176,'Footnotes list'!$D$9:$E$58,2,FALSE)=0,\"\",VLOOKUP(DK176,'Footnotes list'!$D$9:$E$58,2,FALSE) ) )","v":""},null,null,null,null,{"$f":"IF(TRIM(DP176)=\"\", \"\", IF(VLOOKUP(DP176,'Footnotes list'!$D$9:$E$58,2,FALSE)=0,\"\",VLOOKUP(DP176,'Footnotes list'!$D$9:$E$58,2,FALSE) ) )","v":""},null,null,null,null,{"$f":"IF(TRIM(DU176)=\"\", \"\", IF(VLOOKUP(DU176,'Footnotes list'!$D$9:$E$58,2,FALSE)=0,\"\",VLOOKUP(DU176,'Footnotes list'!$D$9:$E$58,2,FALSE) ) )","v":""},null,null,null,null,{"$f":"IF(TRIM(DZ176)=\"\", \"\", IF(VLOOKUP(DZ176,'Footnotes list'!$D$9:$E$58,2,FALSE)=0,\"\",VLOOKUP(DZ176,'Footnotes list'!$D$9:$E$58,2,FALSE) ) )","v":""},null,null,null,null,{"$f":"IF(TRIM(EE176)=\"\", \"\", IF(VLOOKUP(EE176,'Footnotes list'!$D$9:$E$58,2,FALSE)=0,\"\",VLOOKUP(EE176,'Footnotes list'!$D$9:$E$58,2,FALSE) ) )","v":""},null,null,null,null,{"$f":"IF(TRIM(EJ176)=\"\", \"\", IF(VLOOKUP(EJ176,'Footnotes list'!$D$9:$E$58,2,FALSE)=0,\"\",VLOOKUP(EJ176,'Footnotes list'!$D$9:$E$58,2,FALSE) ) )","v":""},null,null,null,null,{"$f":"IF(TRIM(EO176)=\"\", \"\", IF(VLOOKUP(EO176,'Footnotes list'!$D$9:$E$58,2,FALSE)=0,\"\",VLOOKUP(EO176,'Footnotes list'!$D$9:$E$58,2,FALSE) ) )","v":""},null,null,null,null,{"$f":"IF(TRIM(ET176)=\"\", \"\", IF(VLOOKUP(ET176,'Footnotes list'!$D$9:$E$58,2,FALSE)=0,\"\",VLOOKUP(ET176,'Footnotes list'!$D$9:$E$58,2,FALSE) ) )","v":""},null,null,null,null,{"$f":"IF(TRIM(EY176)=\"\", \"\", IF(VLOOKUP(EY176,'Footnotes list'!$D$9:$E$58,2,FALSE)=0,\"\",VLOOKUP(EY176,'Footnotes list'!$D$9:$E$58,2,FALSE) ) )","v":""}]
[null,null,"G","ANC","ancillary activities",null,null,null,null,null,{"$f":"IF(TRIM(J177)=\"\", \"\", IF(VLOOKUP(J177,'Footnotes list'!$D$9:$E$58,2,FALSE)=0,\"\",VLOOKUP(J177,'Footnotes list'!$D$9:$E$58,2,FALSE) ) )","v":""},null,null,null,null,{"$f":"IF(TRIM(O177)=\"\", \"\", IF(VLOOKUP(O177,'Footnotes list'!$D$9:$E$58,2,FALSE)=0,\"\",VLOOKUP(O177,'Footnotes list'!$D$9:$E$58,2,FALSE) ) )","v":""},null,null,null,null,{"$f":"IF(TRIM(T177)=\"\", \"\", IF(VLOOKUP(T177,'Footnotes list'!$D$9:$E$58,2,FALSE)=0,\"\",VLOOKUP(T177,'Footnotes list'!$D$9:$E$58,2,FALSE) ) )","v":""},null,null,null,null,{"$f":"IF(TRIM(Y177)=\"\", \"\", IF(VLOOKUP(Y177,'Footnotes list'!$D$9:$E$58,2,FALSE)=0,\"\",VLOOKUP(Y177,'Footnotes list'!$D$9:$E$58,2,FALSE) ) )","v":""},null,null,null,null,{"$f":"IF(TRIM(AD177)=\"\", \"\", IF(VLOOKUP(AD177,'Footnotes list'!$D$9:$E$58,2,FALSE)=0,\"\",VLOOKUP(AD177,'Footnotes list'!$D$9:$E$58,2,FALSE) ) )","v":""},null,null,null,null,{"$f":"IF(TRIM(AI177)=\"\", \"\", IF(VLOOKUP(AI177,'Footnotes list'!$D$9:$E$58,2,FALSE)=0,\"\",VLOOKUP(AI177,'Footnotes list'!$D$9:$E$58,2,FALSE) ) )","v":""},null,null,null,null,{"$f":"IF(TRIM(AN177)=\"\", \"\", IF(VLOOKUP(AN177,'Footnotes list'!$D$9:$E$58,2,FALSE)=0,\"\",VLOOKUP(AN177,'Footnotes list'!$D$9:$E$58,2,FALSE) ) )","v":""},null,null,null,null,{"$f":"IF(TRIM(AS177)=\"\", \"\", IF(VLOOKUP(AS177,'Footnotes list'!$D$9:$E$58,2,FALSE)=0,\"\",VLOOKUP(AS177,'Footnotes list'!$D$9:$E$58,2,FALSE) ) )","v":""},null,null,null,null,{"$f":"IF(TRIM(AX177)=\"\", \"\", IF(VLOOKUP(AX177,'Footnotes list'!$D$9:$E$58,2,FALSE)=0,\"\",VLOOKUP(AX177,'Footnotes list'!$D$9:$E$58,2,FALSE) ) )","v":""},null,null,null,null,{"$f":"IF(TRIM(BC177)=\"\", \"\", IF(VLOOKUP(BC177,'Footnotes list'!$D$9:$E$58,2,FALSE)=0,\"\",VLOOKUP(BC177,'Footnotes list'!$D$9:$E$58,2,FALSE) ) )","v":""},null,null,null,null,{"$f":"IF(TRIM(BH177)=\"\", \"\", IF(VLOOKUP(BH177,'Footnotes list'!$D$9:$E$58,2,FALSE)=0,\"\",VLOOKUP(BH177,'Footnotes list'!$D$9:$E$58,2,FALSE) ) )","v":""},null,null,null,null,{"$f":"IF(TRIM(BM177)=\"\", \"\", IF(VLOOKUP(BM177,'Footnotes list'!$D$9:$E$58,2,FALSE)=0,\"\",VLOOKUP(BM177,'Footnotes list'!$D$9:$E$58,2,FALSE) ) )","v":""},null,null,null,null,{"$f":"IF(TRIM(BR177)=\"\", \"\", IF(VLOOKUP(BR177,'Footnotes list'!$D$9:$E$58,2,FALSE)=0,\"\",VLOOKUP(BR177,'Footnotes list'!$D$9:$E$58,2,FALSE) ) )","v":""},null,null,null,null,{"$f":"IF(TRIM(BW177)=\"\", \"\", IF(VLOOKUP(BW177,'Footnotes list'!$D$9:$E$58,2,FALSE)=0,\"\",VLOOKUP(BW177,'Footnotes list'!$D$9:$E$58,2,FALSE) ) )","v":""},null,null,null,null,{"$f":"IF(TRIM(CB177)=\"\", \"\", IF(VLOOKUP(CB177,'Footnotes list'!$D$9:$E$58,2,FALSE)=0,\"\",VLOOKUP(CB177,'Footnotes list'!$D$9:$E$58,2,FALSE) ) )","v":""},null,null,null,null,{"$f":"IF(TRIM(CG177)=\"\", \"\", IF(VLOOKUP(CG177,'Footnotes list'!$D$9:$E$58,2,FALSE)=0,\"\",VLOOKUP(CG177,'Footnotes list'!$D$9:$E$58,2,FALSE) ) )","v":""},null,null,null,null,{"$f":"IF(TRIM(CL177)=\"\", \"\", IF(VLOOKUP(CL177,'Footnotes list'!$D$9:$E$58,2,FALSE)=0,\"\",VLOOKUP(CL177,'Footnotes list'!$D$9:$E$58,2,FALSE) ) )","v":""},null,null,null,null,{"$f":"IF(TRIM(CQ177)=\"\", \"\", IF(VLOOKUP(CQ177,'Footnotes list'!$D$9:$E$58,2,FALSE)=0,\"\",VLOOKUP(CQ177,'Footnotes list'!$D$9:$E$58,2,FALSE) ) )","v":""},null,null,null,null,{"$f":"IF(TRIM(CV177)=\"\", \"\", IF(VLOOKUP(CV177,'Footnotes list'!$D$9:$E$58,2,FALSE)=0,\"\",VLOOKUP(CV177,'Footnotes list'!$D$9:$E$58,2,FALSE) ) )","v":""},null,null,null,null,{"$f":"IF(TRIM(DA177)=\"\", \"\", IF(VLOOKUP(DA177,'Footnotes list'!$D$9:$E$58,2,FALSE)=0,\"\",VLOOKUP(DA177,'Footnotes list'!$D$9:$E$58,2,FALSE) ) )","v":""},null,null,null,null,{"$f":"IF(TRIM(DF177)=\"\", \"\", IF(VLOOKUP(DF177,'Footnotes list'!$D$9:$E$58,2,FALSE)=0,\"\",VLOOKUP(DF177,'Footnotes list'!$D$9:$E$58,2,FALSE) ) )","v":""},null,null,null,null,{"$f":"IF(TRIM(DK177)=\"\", \"\", IF(VLOOKUP(DK177,'Footnotes list'!$D$9:$E$58,2,FALSE)=0,\"\",VLOOKUP(DK177,'Footnotes list'!$D$9:$E$58,2,FALSE) ) )","v":""},null,null,null,null,{"$f":"IF(TRIM(DP177)=\"\", \"\", IF(VLOOKUP(DP177,'Footnotes list'!$D$9:$E$58,2,FALSE)=0,\"\",VLOOKUP(DP177,'Footnotes list'!$D$9:$E$58,2,FALSE) ) )","v":""},null,null,null,null,{"$f":"IF(TRIM(DU177)=\"\", \"\", IF(VLOOKUP(DU177,'Footnotes list'!$D$9:$E$58,2,FALSE)=0,\"\",VLOOKUP(DU177,'Footnotes list'!$D$9:$E$58,2,FALSE) ) )","v":""},null,null,null,null,{"$f":"IF(TRIM(DZ177)=\"\", \"\", IF(VLOOKUP(DZ177,'Footnotes list'!$D$9:$E$58,2,FALSE)=0,\"\",VLOOKUP(DZ177,'Footnotes list'!$D$9:$E$58,2,FALSE) ) )","v":""},null,null,null,null,{"$f":"IF(TRIM(EE177)=\"\", \"\", IF(VLOOKUP(EE177,'Footnotes list'!$D$9:$E$58,2,FALSE)=0,\"\",VLOOKUP(EE177,'Footnotes list'!$D$9:$E$58,2,FALSE) ) )","v":""},null,null,null,null,{"$f":"IF(TRIM(EJ177)=\"\", \"\", IF(VLOOKUP(EJ177,'Footnotes list'!$D$9:$E$58,2,FALSE)=0,\"\",VLOOKUP(EJ177,'Footnotes list'!$D$9:$E$58,2,FALSE) ) )","v":""},null,null,null,null,{"$f":"IF(TRIM(EO177)=\"\", \"\", IF(VLOOKUP(EO177,'Footnotes list'!$D$9:$E$58,2,FALSE)=0,\"\",VLOOKUP(EO177,'Footnotes list'!$D$9:$E$58,2,FALSE) ) )","v":""},null,null,null,null,{"$f":"IF(TRIM(ET177)=\"\", \"\", IF(VLOOKUP(ET177,'Footnotes list'!$D$9:$E$58,2,FALSE)=0,\"\",VLOOKUP(ET177,'Footnotes list'!$D$9:$E$58,2,FALSE) ) )","v":""},null,null,null,null,{"$f":"IF(TRIM(EY177)=\"\", \"\", IF(VLOOKUP(EY177,'Footnotes list'!$D$9:$E$58,2,FALSE)=0,\"\",VLOOKUP(EY177,'Footnotes list'!$D$9:$E$58,2,FALSE) ) )","v":""}]
[null,null,"G","NMKT","non-market activities",null,null,null,null,null,{"$f":"IF(TRIM(J178)=\"\", \"\", IF(VLOOKUP(J178,'Footnotes list'!$D$9:$E$58,2,FALSE)=0,\"\",VLOOKUP(J178,'Footnotes list'!$D$9:$E$58,2,FALSE) ) )","v":""},null,null,null,null,{"$f":"IF(TRIM(O178)=\"\", \"\", IF(VLOOKUP(O178,'Footnotes list'!$D$9:$E$58,2,FALSE)=0,\"\",VLOOKUP(O178,'Footnotes list'!$D$9:$E$58,2,FALSE) ) )","v":""},null,null,null,null,{"$f":"IF(TRIM(T178)=\"\", \"\", IF(VLOOKUP(T178,'Footnotes list'!$D$9:$E$58,2,FALSE)=0,\"\",VLOOKUP(T178,'Footnotes list'!$D$9:$E$58,2,FALSE) ) )","v":""},null,null,null,null,{"$f":"IF(TRIM(Y178)=\"\", \"\", IF(VLOOKUP(Y178,'Footnotes list'!$D$9:$E$58,2,FALSE)=0,\"\",VLOOKUP(Y178,'Footnotes list'!$D$9:$E$58,2,FALSE) ) )","v":""},null,null,null,null,{"$f":"IF(TRIM(AD178)=\"\", \"\", IF(VLOOKUP(AD178,'Footnotes list'!$D$9:$E$58,2,FALSE)=0,\"\",VLOOKUP(AD178,'Footnotes list'!$D$9:$E$58,2,FALSE) ) )","v":""},null,null,null,null,{"$f":"IF(TRIM(AI178)=\"\", \"\", IF(VLOOKUP(AI178,'Footnotes list'!$D$9:$E$58,2,FALSE)=0,\"\",VLOOKUP(AI178,'Footnotes list'!$D$9:$E$58,2,FALSE) ) )","v":""},null,null,null,null,{"$f":"IF(TRIM(AN178)=\"\", \"\", IF(VLOOKUP(AN178,'Footnotes list'!$D$9:$E$58,2,FALSE)=0,\"\",VLOOKUP(AN178,'Footnotes list'!$D$9:$E$58,2,FALSE) ) )","v":""},null,null,null,null,{"$f":"IF(TRIM(AS178)=\"\", \"\", IF(VLOOKUP(AS178,'Footnotes list'!$D$9:$E$58,2,FALSE)=0,\"\",VLOOKUP(AS178,'Footnotes list'!$D$9:$E$58,2,FALSE) ) )","v":""},null,null,null,null,{"$f":"IF(TRIM(AX178)=\"\", \"\", IF(VLOOKUP(AX178,'Footnotes list'!$D$9:$E$58,2,FALSE)=0,\"\",VLOOKUP(AX178,'Footnotes list'!$D$9:$E$58,2,FALSE) ) )","v":""},null,null,null,null,{"$f":"IF(TRIM(BC178)=\"\", \"\", IF(VLOOKUP(BC178,'Footnotes list'!$D$9:$E$58,2,FALSE)=0,\"\",VLOOKUP(BC178,'Footnotes list'!$D$9:$E$58,2,FALSE) ) )","v":""},null,null,null,null,{"$f":"IF(TRIM(BH178)=\"\", \"\", IF(VLOOKUP(BH178,'Footnotes list'!$D$9:$E$58,2,FALSE)=0,\"\",VLOOKUP(BH178,'Footnotes list'!$D$9:$E$58,2,FALSE) ) )","v":""},null,null,null,null,{"$f":"IF(TRIM(BM178)=\"\", \"\", IF(VLOOKUP(BM178,'Footnotes list'!$D$9:$E$58,2,FALSE)=0,\"\",VLOOKUP(BM178,'Footnotes list'!$D$9:$E$58,2,FALSE) ) )","v":""},null,null,null,null,{"$f":"IF(TRIM(BR178)=\"\", \"\", IF(VLOOKUP(BR178,'Footnotes list'!$D$9:$E$58,2,FALSE)=0,\"\",VLOOKUP(BR178,'Footnotes list'!$D$9:$E$58,2,FALSE) ) )","v":""},null,null,null,null,{"$f":"IF(TRIM(BW178)=\"\", \"\", IF(VLOOKUP(BW178,'Footnotes list'!$D$9:$E$58,2,FALSE)=0,\"\",VLOOKUP(BW178,'Footnotes list'!$D$9:$E$58,2,FALSE) ) )","v":""},null,null,null,null,{"$f":"IF(TRIM(CB178)=\"\", \"\", IF(VLOOKUP(CB178,'Footnotes list'!$D$9:$E$58,2,FALSE)=0,\"\",VLOOKUP(CB178,'Footnotes list'!$D$9:$E$58,2,FALSE) ) )","v":""},null,null,null,null,{"$f":"IF(TRIM(CG178)=\"\", \"\", IF(VLOOKUP(CG178,'Footnotes list'!$D$9:$E$58,2,FALSE)=0,\"\",VLOOKUP(CG178,'Footnotes list'!$D$9:$E$58,2,FALSE) ) )","v":""},null,null,null,null,{"$f":"IF(TRIM(CL178)=\"\", \"\", IF(VLOOKUP(CL178,'Footnotes list'!$D$9:$E$58,2,FALSE)=0,\"\",VLOOKUP(CL178,'Footnotes list'!$D$9:$E$58,2,FALSE) ) )","v":""},null,null,null,null,{"$f":"IF(TRIM(CQ178)=\"\", \"\", IF(VLOOKUP(CQ178,'Footnotes list'!$D$9:$E$58,2,FALSE)=0,\"\",VLOOKUP(CQ178,'Footnotes list'!$D$9:$E$58,2,FALSE) ) )","v":""},null,null,null,null,{"$f":"IF(TRIM(CV178)=\"\", \"\", IF(VLOOKUP(CV178,'Footnotes list'!$D$9:$E$58,2,FALSE)=0,\"\",VLOOKUP(CV178,'Footnotes list'!$D$9:$E$58,2,FALSE) ) )","v":""},null,null,null,null,{"$f":"IF(TRIM(DA178)=\"\", \"\", IF(VLOOKUP(DA178,'Footnotes list'!$D$9:$E$58,2,FALSE)=0,\"\",VLOOKUP(DA178,'Footnotes list'!$D$9:$E$58,2,FALSE) ) )","v":""},null,null,null,null,{"$f":"IF(TRIM(DF178)=\"\", \"\", IF(VLOOKUP(DF178,'Footnotes list'!$D$9:$E$58,2,FALSE)=0,\"\",VLOOKUP(DF178,'Footnotes list'!$D$9:$E$58,2,FALSE) ) )","v":""},null,null,null,null,{"$f":"IF(TRIM(DK178)=\"\", \"\", IF(VLOOKUP(DK178,'Footnotes list'!$D$9:$E$58,2,FALSE)=0,\"\",VLOOKUP(DK178,'Footnotes list'!$D$9:$E$58,2,FALSE) ) )","v":""},null,null,null,null,{"$f":"IF(TRIM(DP178)=\"\", \"\", IF(VLOOKUP(DP178,'Footnotes list'!$D$9:$E$58,2,FALSE)=0,\"\",VLOOKUP(DP178,'Footnotes list'!$D$9:$E$58,2,FALSE) ) )","v":""},null,null,null,null,{"$f":"IF(TRIM(DU178)=\"\", \"\", IF(VLOOKUP(DU178,'Footnotes list'!$D$9:$E$58,2,FALSE)=0,\"\",VLOOKUP(DU178,'Footnotes list'!$D$9:$E$58,2,FALSE) ) )","v":""},null,null,null,null,{"$f":"IF(TRIM(DZ178)=\"\", \"\", IF(VLOOKUP(DZ178,'Footnotes list'!$D$9:$E$58,2,FALSE)=0,\"\",VLOOKUP(DZ178,'Footnotes list'!$D$9:$E$58,2,FALSE) ) )","v":""},null,null,null,null,{"$f":"IF(TRIM(EE178)=\"\", \"\", IF(VLOOKUP(EE178,'Footnotes list'!$D$9:$E$58,2,FALSE)=0,\"\",VLOOKUP(EE178,'Footnotes list'!$D$9:$E$58,2,FALSE) ) )","v":""},null,null,null,null,{"$f":"IF(TRIM(EJ178)=\"\", \"\", IF(VLOOKUP(EJ178,'Footnotes list'!$D$9:$E$58,2,FALSE)=0,\"\",VLOOKUP(EJ178,'Footnotes list'!$D$9:$E$58,2,FALSE) ) )","v":""},null,null,null,null,{"$f":"IF(TRIM(EO178)=\"\", \"\", IF(VLOOKUP(EO178,'Footnotes list'!$D$9:$E$58,2,FALSE)=0,\"\",VLOOKUP(EO178,'Footnotes list'!$D$9:$E$58,2,FALSE) ) )","v":""},null,null,null,null,{"$f":"IF(TRIM(ET178)=\"\", \"\", IF(VLOOKUP(ET178,'Footnotes list'!$D$9:$E$58,2,FALSE)=0,\"\",VLOOKUP(ET178,'Footnotes list'!$D$9:$E$58,2,FALSE) ) )","v":""},null,null,null,null,{"$f":"IF(TRIM(EY178)=\"\", \"\", IF(VLOOKUP(EY178,'Footnotes list'!$D$9:$E$58,2,FALSE)=0,\"\",VLOOKUP(EY178,'Footnotes list'!$D$9:$E$58,2,FALSE) ) )","v":""}]
[null,null,"G","OWN_USE","activities for own final use",null,null,null,null,null,{"$f":"IF(TRIM(J179)=\"\", \"\", IF(VLOOKUP(J179,'Footnotes list'!$D$9:$E$58,2,FALSE)=0,\"\",VLOOKUP(J179,'Footnotes list'!$D$9:$E$58,2,FALSE) ) )","v":""},null,null,null,null,{"$f":"IF(TRIM(O179)=\"\", \"\", IF(VLOOKUP(O179,'Footnotes list'!$D$9:$E$58,2,FALSE)=0,\"\",VLOOKUP(O179,'Footnotes list'!$D$9:$E$58,2,FALSE) ) )","v":""},null,null,null,null,{"$f":"IF(TRIM(T179)=\"\", \"\", IF(VLOOKUP(T179,'Footnotes list'!$D$9:$E$58,2,FALSE)=0,\"\",VLOOKUP(T179,'Footnotes list'!$D$9:$E$58,2,FALSE) ) )","v":""},null,null,null,null,{"$f":"IF(TRIM(Y179)=\"\", \"\", IF(VLOOKUP(Y179,'Footnotes list'!$D$9:$E$58,2,FALSE)=0,\"\",VLOOKUP(Y179,'Footnotes list'!$D$9:$E$58,2,FALSE) ) )","v":""},null,null,null,null,{"$f":"IF(TRIM(AD179)=\"\", \"\", IF(VLOOKUP(AD179,'Footnotes list'!$D$9:$E$58,2,FALSE)=0,\"\",VLOOKUP(AD179,'Footnotes list'!$D$9:$E$58,2,FALSE) ) )","v":""},null,null,null,null,{"$f":"IF(TRIM(AI179)=\"\", \"\", IF(VLOOKUP(AI179,'Footnotes list'!$D$9:$E$58,2,FALSE)=0,\"\",VLOOKUP(AI179,'Footnotes list'!$D$9:$E$58,2,FALSE) ) )","v":""},null,null,null,null,{"$f":"IF(TRIM(AN179)=\"\", \"\", IF(VLOOKUP(AN179,'Footnotes list'!$D$9:$E$58,2,FALSE)=0,\"\",VLOOKUP(AN179,'Footnotes list'!$D$9:$E$58,2,FALSE) ) )","v":""},null,null,null,null,{"$f":"IF(TRIM(AS179)=\"\", \"\", IF(VLOOKUP(AS179,'Footnotes list'!$D$9:$E$58,2,FALSE)=0,\"\",VLOOKUP(AS179,'Footnotes list'!$D$9:$E$58,2,FALSE) ) )","v":""},null,null,null,null,{"$f":"IF(TRIM(AX179)=\"\", \"\", IF(VLOOKUP(AX179,'Footnotes list'!$D$9:$E$58,2,FALSE)=0,\"\",VLOOKUP(AX179,'Footnotes list'!$D$9:$E$58,2,FALSE) ) )","v":""},null,null,null,null,{"$f":"IF(TRIM(BC179)=\"\", \"\", IF(VLOOKUP(BC179,'Footnotes list'!$D$9:$E$58,2,FALSE)=0,\"\",VLOOKUP(BC179,'Footnotes list'!$D$9:$E$58,2,FALSE) ) )","v":""},null,null,null,null,{"$f":"IF(TRIM(BH179)=\"\", \"\", IF(VLOOKUP(BH179,'Footnotes list'!$D$9:$E$58,2,FALSE)=0,\"\",VLOOKUP(BH179,'Footnotes list'!$D$9:$E$58,2,FALSE) ) )","v":""},null,null,null,null,{"$f":"IF(TRIM(BM179)=\"\", \"\", IF(VLOOKUP(BM179,'Footnotes list'!$D$9:$E$58,2,FALSE)=0,\"\",VLOOKUP(BM179,'Footnotes list'!$D$9:$E$58,2,FALSE) ) )","v":""},null,null,null,null,{"$f":"IF(TRIM(BR179)=\"\", \"\", IF(VLOOKUP(BR179,'Footnotes list'!$D$9:$E$58,2,FALSE)=0,\"\",VLOOKUP(BR179,'Footnotes list'!$D$9:$E$58,2,FALSE) ) )","v":""},null,null,null,null,{"$f":"IF(TRIM(BW179)=\"\", \"\", IF(VLOOKUP(BW179,'Footnotes list'!$D$9:$E$58,2,FALSE)=0,\"\",VLOOKUP(BW179,'Footnotes list'!$D$9:$E$58,2,FALSE) ) )","v":""},null,null,null,null,{"$f":"IF(TRIM(CB179)=\"\", \"\", IF(VLOOKUP(CB179,'Footnotes list'!$D$9:$E$58,2,FALSE)=0,\"\",VLOOKUP(CB179,'Footnotes list'!$D$9:$E$58,2,FALSE) ) )","v":""},null,null,null,null,{"$f":"IF(TRIM(CG179)=\"\", \"\", IF(VLOOKUP(CG179,'Footnotes list'!$D$9:$E$58,2,FALSE)=0,\"\",VLOOKUP(CG179,'Footnotes list'!$D$9:$E$58,2,FALSE) ) )","v":""},null,null,null,null,{"$f":"IF(TRIM(CL179)=\"\", \"\", IF(VLOOKUP(CL179,'Footnotes list'!$D$9:$E$58,2,FALSE)=0,\"\",VLOOKUP(CL179,'Footnotes list'!$D$9:$E$58,2,FALSE) ) )","v":""},null,null,null,null,{"$f":"IF(TRIM(CQ179)=\"\", \"\", IF(VLOOKUP(CQ179,'Footnotes list'!$D$9:$E$58,2,FALSE)=0,\"\",VLOOKUP(CQ179,'Footnotes list'!$D$9:$E$58,2,FALSE) ) )","v":""},null,null,null,null,{"$f":"IF(TRIM(CV179)=\"\", \"\", IF(VLOOKUP(CV179,'Footnotes list'!$D$9:$E$58,2,FALSE)=0,\"\",VLOOKUP(CV179,'Footnotes list'!$D$9:$E$58,2,FALSE) ) )","v":""},null,null,null,null,{"$f":"IF(TRIM(DA179)=\"\", \"\", IF(VLOOKUP(DA179,'Footnotes list'!$D$9:$E$58,2,FALSE)=0,\"\",VLOOKUP(DA179,'Footnotes list'!$D$9:$E$58,2,FALSE) ) )","v":""},null,null,null,null,{"$f":"IF(TRIM(DF179)=\"\", \"\", IF(VLOOKUP(DF179,'Footnotes list'!$D$9:$E$58,2,FALSE)=0,\"\",VLOOKUP(DF179,'Footnotes list'!$D$9:$E$58,2,FALSE) ) )","v":""},null,null,null,null,{"$f":"IF(TRIM(DK179)=\"\", \"\", IF(VLOOKUP(DK179,'Footnotes list'!$D$9:$E$58,2,FALSE)=0,\"\",VLOOKUP(DK179,'Footnotes list'!$D$9:$E$58,2,FALSE) ) )","v":""},null,null,null,null,{"$f":"IF(TRIM(DP179)=\"\", \"\", IF(VLOOKUP(DP179,'Footnotes list'!$D$9:$E$58,2,FALSE)=0,\"\",VLOOKUP(DP179,'Footnotes list'!$D$9:$E$58,2,FALSE) ) )","v":""},null,null,null,null,{"$f":"IF(TRIM(DU179)=\"\", \"\", IF(VLOOKUP(DU179,'Footnotes list'!$D$9:$E$58,2,FALSE)=0,\"\",VLOOKUP(DU179,'Footnotes list'!$D$9:$E$58,2,FALSE) ) )","v":""},null,null,null,null,{"$f":"IF(TRIM(DZ179)=\"\", \"\", IF(VLOOKUP(DZ179,'Footnotes list'!$D$9:$E$58,2,FALSE)=0,\"\",VLOOKUP(DZ179,'Footnotes list'!$D$9:$E$58,2,FALSE) ) )","v":""},null,null,null,null,{"$f":"IF(TRIM(EE179)=\"\", \"\", IF(VLOOKUP(EE179,'Footnotes list'!$D$9:$E$58,2,FALSE)=0,\"\",VLOOKUP(EE179,'Footnotes list'!$D$9:$E$58,2,FALSE) ) )","v":""},null,null,null,null,{"$f":"IF(TRIM(EJ179)=\"\", \"\", IF(VLOOKUP(EJ179,'Footnotes list'!$D$9:$E$58,2,FALSE)=0,\"\",VLOOKUP(EJ179,'Footnotes list'!$D$9:$E$58,2,FALSE) ) )","v":""},null,null,null,null,{"$f":"IF(TRIM(EO179)=\"\", \"\", IF(VLOOKUP(EO179,'Footnotes list'!$D$9:$E$58,2,FALSE)=0,\"\",VLOOKUP(EO179,'Footnotes list'!$D$9:$E$58,2,FALSE) ) )","v":""},null,null,null,null,{"$f":"IF(TRIM(ET179)=\"\", \"\", IF(VLOOKUP(ET179,'Footnotes list'!$D$9:$E$58,2,FALSE)=0,\"\",VLOOKUP(ET179,'Footnotes list'!$D$9:$E$58,2,FALSE) ) )","v":""},null,null,null,null,{"$f":"IF(TRIM(EY179)=\"\", \"\", IF(VLOOKUP(EY179,'Footnotes list'!$D$9:$E$58,2,FALSE)=0,\"\",VLOOKUP(EY179,'Footnotes list'!$D$9:$E$58,2,FALSE) ) )","v":""}]
[null,null,"G","MKT","market activities, including:",null,null,null,null,null,{"$f":"IF(TRIM(J180)=\"\", \"\", IF(VLOOKUP(J180,'Footnotes list'!$D$9:$E$58,2,FALSE)=0,\"\",VLOOKUP(J180,'Footnotes list'!$D$9:$E$58,2,FALSE) ) )","v":""},null,null,null,null,{"$f":"IF(TRIM(O180)=\"\", \"\", IF(VLOOKUP(O180,'Footnotes list'!$D$9:$E$58,2,FALSE)=0,\"\",VLOOKUP(O180,'Footnotes list'!$D$9:$E$58,2,FALSE) ) )","v":""},null,null,null,null,{"$f":"IF(TRIM(T180)=\"\", \"\", IF(VLOOKUP(T180,'Footnotes list'!$D$9:$E$58,2,FALSE)=0,\"\",VLOOKUP(T180,'Footnotes list'!$D$9:$E$58,2,FALSE) ) )","v":""},null,null,null,null,{"$f":"IF(TRIM(Y180)=\"\", \"\", IF(VLOOKUP(Y180,'Footnotes list'!$D$9:$E$58,2,FALSE)=0,\"\",VLOOKUP(Y180,'Footnotes list'!$D$9:$E$58,2,FALSE) ) )","v":""},null,null,null,null,{"$f":"IF(TRIM(AD180)=\"\", \"\", IF(VLOOKUP(AD180,'Footnotes list'!$D$9:$E$58,2,FALSE)=0,\"\",VLOOKUP(AD180,'Footnotes list'!$D$9:$E$58,2,FALSE) ) )","v":""},null,null,null,null,{"$f":"IF(TRIM(AI180)=\"\", \"\", IF(VLOOKUP(AI180,'Footnotes list'!$D$9:$E$58,2,FALSE)=0,\"\",VLOOKUP(AI180,'Footnotes list'!$D$9:$E$58,2,FALSE) ) )","v":""},null,null,null,null,{"$f":"IF(TRIM(AN180)=\"\", \"\", IF(VLOOKUP(AN180,'Footnotes list'!$D$9:$E$58,2,FALSE)=0,\"\",VLOOKUP(AN180,'Footnotes list'!$D$9:$E$58,2,FALSE) ) )","v":""},null,null,null,null,{"$f":"IF(TRIM(AS180)=\"\", \"\", IF(VLOOKUP(AS180,'Footnotes list'!$D$9:$E$58,2,FALSE)=0,\"\",VLOOKUP(AS180,'Footnotes list'!$D$9:$E$58,2,FALSE) ) )","v":""},null,null,null,null,{"$f":"IF(TRIM(AX180)=\"\", \"\", IF(VLOOKUP(AX180,'Footnotes list'!$D$9:$E$58,2,FALSE)=0,\"\",VLOOKUP(AX180,'Footnotes list'!$D$9:$E$58,2,FALSE) ) )","v":""},null,null,null,null,{"$f":"IF(TRIM(BC180)=\"\", \"\", IF(VLOOKUP(BC180,'Footnotes list'!$D$9:$E$58,2,FALSE)=0,\"\",VLOOKUP(BC180,'Footnotes list'!$D$9:$E$58,2,FALSE) ) )","v":""},null,null,null,null,{"$f":"IF(TRIM(BH180)=\"\", \"\", IF(VLOOKUP(BH180,'Footnotes list'!$D$9:$E$58,2,FALSE)=0,\"\",VLOOKUP(BH180,'Footnotes list'!$D$9:$E$58,2,FALSE) ) )","v":""},null,null,null,null,{"$f":"IF(TRIM(BM180)=\"\", \"\", IF(VLOOKUP(BM180,'Footnotes list'!$D$9:$E$58,2,FALSE)=0,\"\",VLOOKUP(BM180,'Footnotes list'!$D$9:$E$58,2,FALSE) ) )","v":""},null,null,null,null,{"$f":"IF(TRIM(BR180)=\"\", \"\", IF(VLOOKUP(BR180,'Footnotes list'!$D$9:$E$58,2,FALSE)=0,\"\",VLOOKUP(BR180,'Footnotes list'!$D$9:$E$58,2,FALSE) ) )","v":""},null,null,null,null,{"$f":"IF(TRIM(BW180)=\"\", \"\", IF(VLOOKUP(BW180,'Footnotes list'!$D$9:$E$58,2,FALSE)=0,\"\",VLOOKUP(BW180,'Footnotes list'!$D$9:$E$58,2,FALSE) ) )","v":""},null,null,null,null,{"$f":"IF(TRIM(CB180)=\"\", \"\", IF(VLOOKUP(CB180,'Footnotes list'!$D$9:$E$58,2,FALSE)=0,\"\",VLOOKUP(CB180,'Footnotes list'!$D$9:$E$58,2,FALSE) ) )","v":""},null,null,null,null,{"$f":"IF(TRIM(CG180)=\"\", \"\", IF(VLOOKUP(CG180,'Footnotes list'!$D$9:$E$58,2,FALSE)=0,\"\",VLOOKUP(CG180,'Footnotes list'!$D$9:$E$58,2,FALSE) ) )","v":""},null,null,null,null,{"$f":"IF(TRIM(CL180)=\"\", \"\", IF(VLOOKUP(CL180,'Footnotes list'!$D$9:$E$58,2,FALSE)=0,\"\",VLOOKUP(CL180,'Footnotes list'!$D$9:$E$58,2,FALSE) ) )","v":""},null,null,null,null,{"$f":"IF(TRIM(CQ180)=\"\", \"\", IF(VLOOKUP(CQ180,'Footnotes list'!$D$9:$E$58,2,FALSE)=0,\"\",VLOOKUP(CQ180,'Footnotes list'!$D$9:$E$58,2,FALSE) ) )","v":""},null,null,null,null,{"$f":"IF(TRIM(CV180)=\"\", \"\", IF(VLOOKUP(CV180,'Footnotes list'!$D$9:$E$58,2,FALSE)=0,\"\",VLOOKUP(CV180,'Footnotes list'!$D$9:$E$58,2,FALSE) ) )","v":""},null,null,null,null,{"$f":"IF(TRIM(DA180)=\"\", \"\", IF(VLOOKUP(DA180,'Footnotes list'!$D$9:$E$58,2,FALSE)=0,\"\",VLOOKUP(DA180,'Footnotes list'!$D$9:$E$58,2,FALSE) ) )","v":""},null,null,null,null,{"$f":"IF(TRIM(DF180)=\"\", \"\", IF(VLOOKUP(DF180,'Footnotes list'!$D$9:$E$58,2,FALSE)=0,\"\",VLOOKUP(DF180,'Footnotes list'!$D$9:$E$58,2,FALSE) ) )","v":""},null,null,null,null,{"$f":"IF(TRIM(DK180)=\"\", \"\", IF(VLOOKUP(DK180,'Footnotes list'!$D$9:$E$58,2,FALSE)=0,\"\",VLOOKUP(DK180,'Footnotes list'!$D$9:$E$58,2,FALSE) ) )","v":""},null,null,null,null,{"$f":"IF(TRIM(DP180)=\"\", \"\", IF(VLOOKUP(DP180,'Footnotes list'!$D$9:$E$58,2,FALSE)=0,\"\",VLOOKUP(DP180,'Footnotes list'!$D$9:$E$58,2,FALSE) ) )","v":""},null,null,null,null,{"$f":"IF(TRIM(DU180)=\"\", \"\", IF(VLOOKUP(DU180,'Footnotes list'!$D$9:$E$58,2,FALSE)=0,\"\",VLOOKUP(DU180,'Footnotes list'!$D$9:$E$58,2,FALSE) ) )","v":""},null,null,null,null,{"$f":"IF(TRIM(DZ180)=\"\", \"\", IF(VLOOKUP(DZ180,'Footnotes list'!$D$9:$E$58,2,FALSE)=0,\"\",VLOOKUP(DZ180,'Footnotes list'!$D$9:$E$58,2,FALSE) ) )","v":""},null,null,null,null,{"$f":"IF(TRIM(EE180)=\"\", \"\", IF(VLOOKUP(EE180,'Footnotes list'!$D$9:$E$58,2,FALSE)=0,\"\",VLOOKUP(EE180,'Footnotes list'!$D$9:$E$58,2,FALSE) ) )","v":""},null,null,null,null,{"$f":"IF(TRIM(EJ180)=\"\", \"\", IF(VLOOKUP(EJ180,'Footnotes list'!$D$9:$E$58,2,FALSE)=0,\"\",VLOOKUP(EJ180,'Footnotes list'!$D$9:$E$58,2,FALSE) ) )","v":""},null,null,null,null,{"$f":"IF(TRIM(EO180)=\"\", \"\", IF(VLOOKUP(EO180,'Footnotes list'!$D$9:$E$58,2,FALSE)=0,\"\",VLOOKUP(EO180,'Footnotes list'!$D$9:$E$58,2,FALSE) ) )","v":""},null,null,null,null,{"$f":"IF(TRIM(ET180)=\"\", \"\", IF(VLOOKUP(ET180,'Footnotes list'!$D$9:$E$58,2,FALSE)=0,\"\",VLOOKUP(ET180,'Footnotes list'!$D$9:$E$58,2,FALSE) ) )","v":""},null,null,null,null,{"$f":"IF(TRIM(EY180)=\"\", \"\", IF(VLOOKUP(EY180,'Footnotes list'!$D$9:$E$58,2,FALSE)=0,\"\",VLOOKUP(EY180,'Footnotes list'!$D$9:$E$58,2,FALSE) ) )","v":""}]
[null,null,"G","ES_CS","environmental specific services",null,null,null,null,null,{"$f":"IF(TRIM(J181)=\"\", \"\", IF(VLOOKUP(J181,'Footnotes list'!$D$9:$E$58,2,FALSE)=0,\"\",VLOOKUP(J181,'Footnotes list'!$D$9:$E$58,2,FALSE) ) )","v":""},null,null,null,null,{"$f":"IF(TRIM(O181)=\"\", \"\", IF(VLOOKUP(O181,'Footnotes list'!$D$9:$E$58,2,FALSE)=0,\"\",VLOOKUP(O181,'Footnotes list'!$D$9:$E$58,2,FALSE) ) )","v":""},null,null,null,null,{"$f":"IF(TRIM(T181)=\"\", \"\", IF(VLOOKUP(T181,'Footnotes list'!$D$9:$E$58,2,FALSE)=0,\"\",VLOOKUP(T181,'Footnotes list'!$D$9:$E$58,2,FALSE) ) )","v":""},null,null,null,null,{"$f":"IF(TRIM(Y181)=\"\", \"\", IF(VLOOKUP(Y181,'Footnotes list'!$D$9:$E$58,2,FALSE)=0,\"\",VLOOKUP(Y181,'Footnotes list'!$D$9:$E$58,2,FALSE) ) )","v":""},null,null,null,null,{"$f":"IF(TRIM(AD181)=\"\", \"\", IF(VLOOKUP(AD181,'Footnotes list'!$D$9:$E$58,2,FALSE)=0,\"\",VLOOKUP(AD181,'Footnotes list'!$D$9:$E$58,2,FALSE) ) )","v":""},null,null,null,null,{"$f":"IF(TRIM(AI181)=\"\", \"\", IF(VLOOKUP(AI181,'Footnotes list'!$D$9:$E$58,2,FALSE)=0,\"\",VLOOKUP(AI181,'Footnotes list'!$D$9:$E$58,2,FALSE) ) )","v":""},null,null,null,null,{"$f":"IF(TRIM(AN181)=\"\", \"\", IF(VLOOKUP(AN181,'Footnotes list'!$D$9:$E$58,2,FALSE)=0,\"\",VLOOKUP(AN181,'Footnotes list'!$D$9:$E$58,2,FALSE) ) )","v":""},null,null,null,null,{"$f":"IF(TRIM(AS181)=\"\", \"\", IF(VLOOKUP(AS181,'Footnotes list'!$D$9:$E$58,2,FALSE)=0,\"\",VLOOKUP(AS181,'Footnotes list'!$D$9:$E$58,2,FALSE) ) )","v":""},null,null,null,null,{"$f":"IF(TRIM(AX181)=\"\", \"\", IF(VLOOKUP(AX181,'Footnotes list'!$D$9:$E$58,2,FALSE)=0,\"\",VLOOKUP(AX181,'Footnotes list'!$D$9:$E$58,2,FALSE) ) )","v":""},null,null,null,null,{"$f":"IF(TRIM(BC181)=\"\", \"\", IF(VLOOKUP(BC181,'Footnotes list'!$D$9:$E$58,2,FALSE)=0,\"\",VLOOKUP(BC181,'Footnotes list'!$D$9:$E$58,2,FALSE) ) )","v":""},null,null,null,null,{"$f":"IF(TRIM(BH181)=\"\", \"\", IF(VLOOKUP(BH181,'Footnotes list'!$D$9:$E$58,2,FALSE)=0,\"\",VLOOKUP(BH181,'Footnotes list'!$D$9:$E$58,2,FALSE) ) )","v":""},null,null,null,null,{"$f":"IF(TRIM(BM181)=\"\", \"\", IF(VLOOKUP(BM181,'Footnotes list'!$D$9:$E$58,2,FALSE)=0,\"\",VLOOKUP(BM181,'Footnotes list'!$D$9:$E$58,2,FALSE) ) )","v":""},null,null,null,null,{"$f":"IF(TRIM(BR181)=\"\", \"\", IF(VLOOKUP(BR181,'Footnotes list'!$D$9:$E$58,2,FALSE)=0,\"\",VLOOKUP(BR181,'Footnotes list'!$D$9:$E$58,2,FALSE) ) )","v":""},null,null,null,null,{"$f":"IF(TRIM(BW181)=\"\", \"\", IF(VLOOKUP(BW181,'Footnotes list'!$D$9:$E$58,2,FALSE)=0,\"\",VLOOKUP(BW181,'Footnotes list'!$D$9:$E$58,2,FALSE) ) )","v":""},null,null,null,null,{"$f":"IF(TRIM(CB181)=\"\", \"\", IF(VLOOKUP(CB181,'Footnotes list'!$D$9:$E$58,2,FALSE)=0,\"\",VLOOKUP(CB181,'Footnotes list'!$D$9:$E$58,2,FALSE) ) )","v":""},null,null,null,null,{"$f":"IF(TRIM(CG181)=\"\", \"\", IF(VLOOKUP(CG181,'Footnotes list'!$D$9:$E$58,2,FALSE)=0,\"\",VLOOKUP(CG181,'Footnotes list'!$D$9:$E$58,2,FALSE) ) )","v":""},null,null,null,null,{"$f":"IF(TRIM(CL181)=\"\", \"\", IF(VLOOKUP(CL181,'Footnotes list'!$D$9:$E$58,2,FALSE)=0,\"\",VLOOKUP(CL181,'Footnotes list'!$D$9:$E$58,2,FALSE) ) )","v":""},null,null,null,null,{"$f":"IF(TRIM(CQ181)=\"\", \"\", IF(VLOOKUP(CQ181,'Footnotes list'!$D$9:$E$58,2,FALSE)=0,\"\",VLOOKUP(CQ181,'Footnotes list'!$D$9:$E$58,2,FALSE) ) )","v":""},null,null,null,null,{"$f":"IF(TRIM(CV181)=\"\", \"\", IF(VLOOKUP(CV181,'Footnotes list'!$D$9:$E$58,2,FALSE)=0,\"\",VLOOKUP(CV181,'Footnotes list'!$D$9:$E$58,2,FALSE) ) )","v":""},null,null,null,null,{"$f":"IF(TRIM(DA181)=\"\", \"\", IF(VLOOKUP(DA181,'Footnotes list'!$D$9:$E$58,2,FALSE)=0,\"\",VLOOKUP(DA181,'Footnotes list'!$D$9:$E$58,2,FALSE) ) )","v":""},null,null,null,null,{"$f":"IF(TRIM(DF181)=\"\", \"\", IF(VLOOKUP(DF181,'Footnotes list'!$D$9:$E$58,2,FALSE)=0,\"\",VLOOKUP(DF181,'Footnotes list'!$D$9:$E$58,2,FALSE) ) )","v":""},null,null,null,null,{"$f":"IF(TRIM(DK181)=\"\", \"\", IF(VLOOKUP(DK181,'Footnotes list'!$D$9:$E$58,2,FALSE)=0,\"\",VLOOKUP(DK181,'Footnotes list'!$D$9:$E$58,2,FALSE) ) )","v":""},null,null,null,null,{"$f":"IF(TRIM(DP181)=\"\", \"\", IF(VLOOKUP(DP181,'Footnotes list'!$D$9:$E$58,2,FALSE)=0,\"\",VLOOKUP(DP181,'Footnotes list'!$D$9:$E$58,2,FALSE) ) )","v":""},null,null,null,null,{"$f":"IF(TRIM(DU181)=\"\", \"\", IF(VLOOKUP(DU181,'Footnotes list'!$D$9:$E$58,2,FALSE)=0,\"\",VLOOKUP(DU181,'Footnotes list'!$D$9:$E$58,2,FALSE) ) )","v":""},null,null,null,null,{"$f":"IF(TRIM(DZ181)=\"\", \"\", IF(VLOOKUP(DZ181,'Footnotes list'!$D$9:$E$58,2,FALSE)=0,\"\",VLOOKUP(DZ181,'Footnotes list'!$D$9:$E$58,2,FALSE) ) )","v":""},null,null,null,null,{"$f":"IF(TRIM(EE181)=\"\", \"\", IF(VLOOKUP(EE181,'Footnotes list'!$D$9:$E$58,2,FALSE)=0,\"\",VLOOKUP(EE181,'Footnotes list'!$D$9:$E$58,2,FALSE) ) )","v":""},null,null,null,null,{"$f":"IF(TRIM(EJ181)=\"\", \"\", IF(VLOOKUP(EJ181,'Footnotes list'!$D$9:$E$58,2,FALSE)=0,\"\",VLOOKUP(EJ181,'Footnotes list'!$D$9:$E$58,2,FALSE) ) )","v":""},null,null,null,null,{"$f":"IF(TRIM(EO181)=\"\", \"\", IF(VLOOKUP(EO181,'Footnotes list'!$D$9:$E$58,2,FALSE)=0,\"\",VLOOKUP(EO181,'Footnotes list'!$D$9:$E$58,2,FALSE) ) )","v":""},null,null,null,null,{"$f":"IF(TRIM(ET181)=\"\", \"\", IF(VLOOKUP(ET181,'Footnotes list'!$D$9:$E$58,2,FALSE)=0,\"\",VLOOKUP(ET181,'Footnotes list'!$D$9:$E$58,2,FALSE) ) )","v":""},null,null,null,null,{"$f":"IF(TRIM(EY181)=\"\", \"\", IF(VLOOKUP(EY181,'Footnotes list'!$D$9:$E$58,2,FALSE)=0,\"\",VLOOKUP(EY181,'Footnotes list'!$D$9:$E$58,2,FALSE) ) )","v":""}]
[null,null,"G","C_REP","cleaner and resource efficient products",null,null,null,null,null,{"$f":"IF(TRIM(J182)=\"\", \"\", IF(VLOOKUP(J182,'Footnotes list'!$D$9:$E$58,2,FALSE)=0,\"\",VLOOKUP(J182,'Footnotes list'!$D$9:$E$58,2,FALSE) ) )","v":""},null,null,null,null,{"$f":"IF(TRIM(O182)=\"\", \"\", IF(VLOOKUP(O182,'Footnotes list'!$D$9:$E$58,2,FALSE)=0,\"\",VLOOKUP(O182,'Footnotes list'!$D$9:$E$58,2,FALSE) ) )","v":""},null,null,null,null,{"$f":"IF(TRIM(T182)=\"\", \"\", IF(VLOOKUP(T182,'Footnotes list'!$D$9:$E$58,2,FALSE)=0,\"\",VLOOKUP(T182,'Footnotes list'!$D$9:$E$58,2,FALSE) ) )","v":""},null,null,null,null,{"$f":"IF(TRIM(Y182)=\"\", \"\", IF(VLOOKUP(Y182,'Footnotes list'!$D$9:$E$58,2,FALSE)=0,\"\",VLOOKUP(Y182,'Footnotes list'!$D$9:$E$58,2,FALSE) ) )","v":""},null,null,null,null,{"$f":"IF(TRIM(AD182)=\"\", \"\", IF(VLOOKUP(AD182,'Footnotes list'!$D$9:$E$58,2,FALSE)=0,\"\",VLOOKUP(AD182,'Footnotes list'!$D$9:$E$58,2,FALSE) ) )","v":""},null,null,null,null,{"$f":"IF(TRIM(AI182)=\"\", \"\", IF(VLOOKUP(AI182,'Footnotes list'!$D$9:$E$58,2,FALSE)=0,\"\",VLOOKUP(AI182,'Footnotes list'!$D$9:$E$58,2,FALSE) ) )","v":""},null,null,null,null,{"$f":"IF(TRIM(AN182)=\"\", \"\", IF(VLOOKUP(AN182,'Footnotes list'!$D$9:$E$58,2,FALSE)=0,\"\",VLOOKUP(AN182,'Footnotes list'!$D$9:$E$58,2,FALSE) ) )","v":""},null,null,null,null,{"$f":"IF(TRIM(AS182)=\"\", \"\", IF(VLOOKUP(AS182,'Footnotes list'!$D$9:$E$58,2,FALSE)=0,\"\",VLOOKUP(AS182,'Footnotes list'!$D$9:$E$58,2,FALSE) ) )","v":""},null,null,null,null,{"$f":"IF(TRIM(AX182)=\"\", \"\", IF(VLOOKUP(AX182,'Footnotes list'!$D$9:$E$58,2,FALSE)=0,\"\",VLOOKUP(AX182,'Footnotes list'!$D$9:$E$58,2,FALSE) ) )","v":""},null,null,null,null,{"$f":"IF(TRIM(BC182)=\"\", \"\", IF(VLOOKUP(BC182,'Footnotes list'!$D$9:$E$58,2,FALSE)=0,\"\",VLOOKUP(BC182,'Footnotes list'!$D$9:$E$58,2,FALSE) ) )","v":""},null,null,null,null,{"$f":"IF(TRIM(BH182)=\"\", \"\", IF(VLOOKUP(BH182,'Footnotes list'!$D$9:$E$58,2,FALSE)=0,\"\",VLOOKUP(BH182,'Footnotes list'!$D$9:$E$58,2,FALSE) ) )","v":""},null,null,null,null,{"$f":"IF(TRIM(BM182)=\"\", \"\", IF(VLOOKUP(BM182,'Footnotes list'!$D$9:$E$58,2,FALSE)=0,\"\",VLOOKUP(BM182,'Footnotes list'!$D$9:$E$58,2,FALSE) ) )","v":""},null,null,null,null,{"$f":"IF(TRIM(BR182)=\"\", \"\", IF(VLOOKUP(BR182,'Footnotes list'!$D$9:$E$58,2,FALSE)=0,\"\",VLOOKUP(BR182,'Footnotes list'!$D$9:$E$58,2,FALSE) ) )","v":""},null,null,null,null,{"$f":"IF(TRIM(BW182)=\"\", \"\", IF(VLOOKUP(BW182,'Footnotes list'!$D$9:$E$58,2,FALSE)=0,\"\",VLOOKUP(BW182,'Footnotes list'!$D$9:$E$58,2,FALSE) ) )","v":""},null,null,null,null,{"$f":"IF(TRIM(CB182)=\"\", \"\", IF(VLOOKUP(CB182,'Footnotes list'!$D$9:$E$58,2,FALSE)=0,\"\",VLOOKUP(CB182,'Footnotes list'!$D$9:$E$58,2,FALSE) ) )","v":""},null,null,null,null,{"$f":"IF(TRIM(CG182)=\"\", \"\", IF(VLOOKUP(CG182,'Footnotes list'!$D$9:$E$58,2,FALSE)=0,\"\",VLOOKUP(CG182,'Footnotes list'!$D$9:$E$58,2,FALSE) ) )","v":""},null,null,null,null,{"$f":"IF(TRIM(CL182)=\"\", \"\", IF(VLOOKUP(CL182,'Footnotes list'!$D$9:$E$58,2,FALSE)=0,\"\",VLOOKUP(CL182,'Footnotes list'!$D$9:$E$58,2,FALSE) ) )","v":""},null,null,null,null,{"$f":"IF(TRIM(CQ182)=\"\", \"\", IF(VLOOKUP(CQ182,'Footnotes list'!$D$9:$E$58,2,FALSE)=0,\"\",VLOOKUP(CQ182,'Footnotes list'!$D$9:$E$58,2,FALSE) ) )","v":""},null,null,null,null,{"$f":"IF(TRIM(CV182)=\"\", \"\", IF(VLOOKUP(CV182,'Footnotes list'!$D$9:$E$58,2,FALSE)=0,\"\",VLOOKUP(CV182,'Footnotes list'!$D$9:$E$58,2,FALSE) ) )","v":""},null,null,null,null,{"$f":"IF(TRIM(DA182)=\"\", \"\", IF(VLOOKUP(DA182,'Footnotes list'!$D$9:$E$58,2,FALSE)=0,\"\",VLOOKUP(DA182,'Footnotes list'!$D$9:$E$58,2,FALSE) ) )","v":""},null,null,null,null,{"$f":"IF(TRIM(DF182)=\"\", \"\", IF(VLOOKUP(DF182,'Footnotes list'!$D$9:$E$58,2,FALSE)=0,\"\",VLOOKUP(DF182,'Footnotes list'!$D$9:$E$58,2,FALSE) ) )","v":""},null,null,null,null,{"$f":"IF(TRIM(DK182)=\"\", \"\", IF(VLOOKUP(DK182,'Footnotes list'!$D$9:$E$58,2,FALSE)=0,\"\",VLOOKUP(DK182,'Footnotes list'!$D$9:$E$58,2,FALSE) ) )","v":""},null,null,null,null,{"$f":"IF(TRIM(DP182)=\"\", \"\", IF(VLOOKUP(DP182,'Footnotes list'!$D$9:$E$58,2,FALSE)=0,\"\",VLOOKUP(DP182,'Footnotes list'!$D$9:$E$58,2,FALSE) ) )","v":""},null,null,null,null,{"$f":"IF(TRIM(DU182)=\"\", \"\", IF(VLOOKUP(DU182,'Footnotes list'!$D$9:$E$58,2,FALSE)=0,\"\",VLOOKUP(DU182,'Footnotes list'!$D$9:$E$58,2,FALSE) ) )","v":""},null,null,null,null,{"$f":"IF(TRIM(DZ182)=\"\", \"\", IF(VLOOKUP(DZ182,'Footnotes list'!$D$9:$E$58,2,FALSE)=0,\"\",VLOOKUP(DZ182,'Footnotes list'!$D$9:$E$58,2,FALSE) ) )","v":""},null,null,null,null,{"$f":"IF(TRIM(EE182)=\"\", \"\", IF(VLOOKUP(EE182,'Footnotes list'!$D$9:$E$58,2,FALSE)=0,\"\",VLOOKUP(EE182,'Footnotes list'!$D$9:$E$58,2,FALSE) ) )","v":""},null,null,null,null,{"$f":"IF(TRIM(EJ182)=\"\", \"\", IF(VLOOKUP(EJ182,'Footnotes list'!$D$9:$E$58,2,FALSE)=0,\"\",VLOOKUP(EJ182,'Footnotes list'!$D$9:$E$58,2,FALSE) ) )","v":""},null,null,null,null,{"$f":"IF(TRIM(EO182)=\"\", \"\", IF(VLOOKUP(EO182,'Footnotes list'!$D$9:$E$58,2,FALSE)=0,\"\",VLOOKUP(EO182,'Footnotes list'!$D$9:$E$58,2,FALSE) ) )","v":""},null,null,null,null,{"$f":"IF(TRIM(ET182)=\"\", \"\", IF(VLOOKUP(ET182,'Footnotes list'!$D$9:$E$58,2,FALSE)=0,\"\",VLOOKUP(ET182,'Footnotes list'!$D$9:$E$58,2,FALSE) ) )","v":""},null,null,null,null,{"$f":"IF(TRIM(EY182)=\"\", \"\", IF(VLOOKUP(EY182,'Footnotes list'!$D$9:$E$58,2,FALSE)=0,\"\",VLOOKUP(EY182,'Footnotes list'!$D$9:$E$58,2,FALSE) ) )","v":""}]
[null,null,"H","TOT_EGSS","Total H - Transportation and storage, of which:",null,null,null,null,null,{"$f":"IF(TRIM(J183)=\"\", \"\", IF(VLOOKUP(J183,'Footnotes list'!$D$9:$E$58,2,FALSE)=0,\"\",VLOOKUP(J183,'Footnotes list'!$D$9:$E$58,2,FALSE) ) )","v":""},null,null,null,null,{"$f":"IF(TRIM(O183)=\"\", \"\", IF(VLOOKUP(O183,'Footnotes list'!$D$9:$E$58,2,FALSE)=0,\"\",VLOOKUP(O183,'Footnotes list'!$D$9:$E$58,2,FALSE) ) )","v":""},null,null,null,null,{"$f":"IF(TRIM(T183)=\"\", \"\", IF(VLOOKUP(T183,'Footnotes list'!$D$9:$E$58,2,FALSE)=0,\"\",VLOOKUP(T183,'Footnotes list'!$D$9:$E$58,2,FALSE) ) )","v":""},null,null,null,null,{"$f":"IF(TRIM(Y183)=\"\", \"\", IF(VLOOKUP(Y183,'Footnotes list'!$D$9:$E$58,2,FALSE)=0,\"\",VLOOKUP(Y183,'Footnotes list'!$D$9:$E$58,2,FALSE) ) )","v":""},null,null,null,null,{"$f":"IF(TRIM(AD183)=\"\", \"\", IF(VLOOKUP(AD183,'Footnotes list'!$D$9:$E$58,2,FALSE)=0,\"\",VLOOKUP(AD183,'Footnotes list'!$D$9:$E$58,2,FALSE) ) )","v":""},null,null,null,null,{"$f":"IF(TRIM(AI183)=\"\", \"\", IF(VLOOKUP(AI183,'Footnotes list'!$D$9:$E$58,2,FALSE)=0,\"\",VLOOKUP(AI183,'Footnotes list'!$D$9:$E$58,2,FALSE) ) )","v":""},null,null,null,null,{"$f":"IF(TRIM(AN183)=\"\", \"\", IF(VLOOKUP(AN183,'Footnotes list'!$D$9:$E$58,2,FALSE)=0,\"\",VLOOKUP(AN183,'Footnotes list'!$D$9:$E$58,2,FALSE) ) )","v":""},null,null,null,null,{"$f":"IF(TRIM(AS183)=\"\", \"\", IF(VLOOKUP(AS183,'Footnotes list'!$D$9:$E$58,2,FALSE)=0,\"\",VLOOKUP(AS183,'Footnotes list'!$D$9:$E$58,2,FALSE) ) )","v":""},null,null,null,null,{"$f":"IF(TRIM(AX183)=\"\", \"\", IF(VLOOKUP(AX183,'Footnotes list'!$D$9:$E$58,2,FALSE)=0,\"\",VLOOKUP(AX183,'Footnotes list'!$D$9:$E$58,2,FALSE) ) )","v":""},null,null,null,null,{"$f":"IF(TRIM(BC183)=\"\", \"\", IF(VLOOKUP(BC183,'Footnotes list'!$D$9:$E$58,2,FALSE)=0,\"\",VLOOKUP(BC183,'Footnotes list'!$D$9:$E$58,2,FALSE) ) )","v":""},null,null,null,null,{"$f":"IF(TRIM(BH183)=\"\", \"\", IF(VLOOKUP(BH183,'Footnotes list'!$D$9:$E$58,2,FALSE)=0,\"\",VLOOKUP(BH183,'Footnotes list'!$D$9:$E$58,2,FALSE) ) )","v":""},null,null,null,null,{"$f":"IF(TRIM(BM183)=\"\", \"\", IF(VLOOKUP(BM183,'Footnotes list'!$D$9:$E$58,2,FALSE)=0,\"\",VLOOKUP(BM183,'Footnotes list'!$D$9:$E$58,2,FALSE) ) )","v":""},null,null,null,null,{"$f":"IF(TRIM(BR183)=\"\", \"\", IF(VLOOKUP(BR183,'Footnotes list'!$D$9:$E$58,2,FALSE)=0,\"\",VLOOKUP(BR183,'Footnotes list'!$D$9:$E$58,2,FALSE) ) )","v":""},null,null,null,null,{"$f":"IF(TRIM(BW183)=\"\", \"\", IF(VLOOKUP(BW183,'Footnotes list'!$D$9:$E$58,2,FALSE)=0,\"\",VLOOKUP(BW183,'Footnotes list'!$D$9:$E$58,2,FALSE) ) )","v":""},null,null,null,null,{"$f":"IF(TRIM(CB183)=\"\", \"\", IF(VLOOKUP(CB183,'Footnotes list'!$D$9:$E$58,2,FALSE)=0,\"\",VLOOKUP(CB183,'Footnotes list'!$D$9:$E$58,2,FALSE) ) )","v":""},null,null,null,null,{"$f":"IF(TRIM(CG183)=\"\", \"\", IF(VLOOKUP(CG183,'Footnotes list'!$D$9:$E$58,2,FALSE)=0,\"\",VLOOKUP(CG183,'Footnotes list'!$D$9:$E$58,2,FALSE) ) )","v":""},null,null,null,null,{"$f":"IF(TRIM(CL183)=\"\", \"\", IF(VLOOKUP(CL183,'Footnotes list'!$D$9:$E$58,2,FALSE)=0,\"\",VLOOKUP(CL183,'Footnotes list'!$D$9:$E$58,2,FALSE) ) )","v":""},null,null,null,null,{"$f":"IF(TRIM(CQ183)=\"\", \"\", IF(VLOOKUP(CQ183,'Footnotes list'!$D$9:$E$58,2,FALSE)=0,\"\",VLOOKUP(CQ183,'Footnotes list'!$D$9:$E$58,2,FALSE) ) )","v":""},null,null,null,null,{"$f":"IF(TRIM(CV183)=\"\", \"\", IF(VLOOKUP(CV183,'Footnotes list'!$D$9:$E$58,2,FALSE)=0,\"\",VLOOKUP(CV183,'Footnotes list'!$D$9:$E$58,2,FALSE) ) )","v":""},null,null,null,null,{"$f":"IF(TRIM(DA183)=\"\", \"\", IF(VLOOKUP(DA183,'Footnotes list'!$D$9:$E$58,2,FALSE)=0,\"\",VLOOKUP(DA183,'Footnotes list'!$D$9:$E$58,2,FALSE) ) )","v":""},null,null,null,null,{"$f":"IF(TRIM(DF183)=\"\", \"\", IF(VLOOKUP(DF183,'Footnotes list'!$D$9:$E$58,2,FALSE)=0,\"\",VLOOKUP(DF183,'Footnotes list'!$D$9:$E$58,2,FALSE) ) )","v":""},null,null,null,null,{"$f":"IF(TRIM(DK183)=\"\", \"\", IF(VLOOKUP(DK183,'Footnotes list'!$D$9:$E$58,2,FALSE)=0,\"\",VLOOKUP(DK183,'Footnotes list'!$D$9:$E$58,2,FALSE) ) )","v":""},null,null,null,null,{"$f":"IF(TRIM(DP183)=\"\", \"\", IF(VLOOKUP(DP183,'Footnotes list'!$D$9:$E$58,2,FALSE)=0,\"\",VLOOKUP(DP183,'Footnotes list'!$D$9:$E$58,2,FALSE) ) )","v":""},null,null,null,null,{"$f":"IF(TRIM(DU183)=\"\", \"\", IF(VLOOKUP(DU183,'Footnotes list'!$D$9:$E$58,2,FALSE)=0,\"\",VLOOKUP(DU183,'Footnotes list'!$D$9:$E$58,2,FALSE) ) )","v":""},null,null,null,null,{"$f":"IF(TRIM(DZ183)=\"\", \"\", IF(VLOOKUP(DZ183,'Footnotes list'!$D$9:$E$58,2,FALSE)=0,\"\",VLOOKUP(DZ183,'Footnotes list'!$D$9:$E$58,2,FALSE) ) )","v":""},null,null,null,null,{"$f":"IF(TRIM(EE183)=\"\", \"\", IF(VLOOKUP(EE183,'Footnotes list'!$D$9:$E$58,2,FALSE)=0,\"\",VLOOKUP(EE183,'Footnotes list'!$D$9:$E$58,2,FALSE) ) )","v":""},null,null,null,null,{"$f":"IF(TRIM(EJ183)=\"\", \"\", IF(VLOOKUP(EJ183,'Footnotes list'!$D$9:$E$58,2,FALSE)=0,\"\",VLOOKUP(EJ183,'Footnotes list'!$D$9:$E$58,2,FALSE) ) )","v":""},null,null,null,null,{"$f":"IF(TRIM(EO183)=\"\", \"\", IF(VLOOKUP(EO183,'Footnotes list'!$D$9:$E$58,2,FALSE)=0,\"\",VLOOKUP(EO183,'Footnotes list'!$D$9:$E$58,2,FALSE) ) )","v":""},null,null,null,null,{"$f":"IF(TRIM(ET183)=\"\", \"\", IF(VLOOKUP(ET183,'Footnotes list'!$D$9:$E$58,2,FALSE)=0,\"\",VLOOKUP(ET183,'Footnotes list'!$D$9:$E$58,2,FALSE) ) )","v":""},null,null,null,null,{"$f":"IF(TRIM(EY183)=\"\", \"\", IF(VLOOKUP(EY183,'Footnotes list'!$D$9:$E$58,2,FALSE)=0,\"\",VLOOKUP(EY183,'Footnotes list'!$D$9:$E$58,2,FALSE) ) )","v":""}]
[null,null,"H","ANC","ancillary activities",null,null,null,null,null,{"$f":"IF(TRIM(J184)=\"\", \"\", IF(VLOOKUP(J184,'Footnotes list'!$D$9:$E$58,2,FALSE)=0,\"\",VLOOKUP(J184,'Footnotes list'!$D$9:$E$58,2,FALSE) ) )","v":""},null,null,null,null,{"$f":"IF(TRIM(O184)=\"\", \"\", IF(VLOOKUP(O184,'Footnotes list'!$D$9:$E$58,2,FALSE)=0,\"\",VLOOKUP(O184,'Footnotes list'!$D$9:$E$58,2,FALSE) ) )","v":""},null,null,null,null,{"$f":"IF(TRIM(T184)=\"\", \"\", IF(VLOOKUP(T184,'Footnotes list'!$D$9:$E$58,2,FALSE)=0,\"\",VLOOKUP(T184,'Footnotes list'!$D$9:$E$58,2,FALSE) ) )","v":""},null,null,null,null,{"$f":"IF(TRIM(Y184)=\"\", \"\", IF(VLOOKUP(Y184,'Footnotes list'!$D$9:$E$58,2,FALSE)=0,\"\",VLOOKUP(Y184,'Footnotes list'!$D$9:$E$58,2,FALSE) ) )","v":""},null,null,null,null,{"$f":"IF(TRIM(AD184)=\"\", \"\", IF(VLOOKUP(AD184,'Footnotes list'!$D$9:$E$58,2,FALSE)=0,\"\",VLOOKUP(AD184,'Footnotes list'!$D$9:$E$58,2,FALSE) ) )","v":""},null,null,null,null,{"$f":"IF(TRIM(AI184)=\"\", \"\", IF(VLOOKUP(AI184,'Footnotes list'!$D$9:$E$58,2,FALSE)=0,\"\",VLOOKUP(AI184,'Footnotes list'!$D$9:$E$58,2,FALSE) ) )","v":""},null,null,null,null,{"$f":"IF(TRIM(AN184)=\"\", \"\", IF(VLOOKUP(AN184,'Footnotes list'!$D$9:$E$58,2,FALSE)=0,\"\",VLOOKUP(AN184,'Footnotes list'!$D$9:$E$58,2,FALSE) ) )","v":""},null,null,null,null,{"$f":"IF(TRIM(AS184)=\"\", \"\", IF(VLOOKUP(AS184,'Footnotes list'!$D$9:$E$58,2,FALSE)=0,\"\",VLOOKUP(AS184,'Footnotes list'!$D$9:$E$58,2,FALSE) ) )","v":""},null,null,null,null,{"$f":"IF(TRIM(AX184)=\"\", \"\", IF(VLOOKUP(AX184,'Footnotes list'!$D$9:$E$58,2,FALSE)=0,\"\",VLOOKUP(AX184,'Footnotes list'!$D$9:$E$58,2,FALSE) ) )","v":""},null,null,null,null,{"$f":"IF(TRIM(BC184)=\"\", \"\", IF(VLOOKUP(BC184,'Footnotes list'!$D$9:$E$58,2,FALSE)=0,\"\",VLOOKUP(BC184,'Footnotes list'!$D$9:$E$58,2,FALSE) ) )","v":""},null,null,null,null,{"$f":"IF(TRIM(BH184)=\"\", \"\", IF(VLOOKUP(BH184,'Footnotes list'!$D$9:$E$58,2,FALSE)=0,\"\",VLOOKUP(BH184,'Footnotes list'!$D$9:$E$58,2,FALSE) ) )","v":""},null,null,null,null,{"$f":"IF(TRIM(BM184)=\"\", \"\", IF(VLOOKUP(BM184,'Footnotes list'!$D$9:$E$58,2,FALSE)=0,\"\",VLOOKUP(BM184,'Footnotes list'!$D$9:$E$58,2,FALSE) ) )","v":""},null,null,null,null,{"$f":"IF(TRIM(BR184)=\"\", \"\", IF(VLOOKUP(BR184,'Footnotes list'!$D$9:$E$58,2,FALSE)=0,\"\",VLOOKUP(BR184,'Footnotes list'!$D$9:$E$58,2,FALSE) ) )","v":""},null,null,null,null,{"$f":"IF(TRIM(BW184)=\"\", \"\", IF(VLOOKUP(BW184,'Footnotes list'!$D$9:$E$58,2,FALSE)=0,\"\",VLOOKUP(BW184,'Footnotes list'!$D$9:$E$58,2,FALSE) ) )","v":""},null,null,null,null,{"$f":"IF(TRIM(CB184)=\"\", \"\", IF(VLOOKUP(CB184,'Footnotes list'!$D$9:$E$58,2,FALSE)=0,\"\",VLOOKUP(CB184,'Footnotes list'!$D$9:$E$58,2,FALSE) ) )","v":""},null,null,null,null,{"$f":"IF(TRIM(CG184)=\"\", \"\", IF(VLOOKUP(CG184,'Footnotes list'!$D$9:$E$58,2,FALSE)=0,\"\",VLOOKUP(CG184,'Footnotes list'!$D$9:$E$58,2,FALSE) ) )","v":""},null,null,null,null,{"$f":"IF(TRIM(CL184)=\"\", \"\", IF(VLOOKUP(CL184,'Footnotes list'!$D$9:$E$58,2,FALSE)=0,\"\",VLOOKUP(CL184,'Footnotes list'!$D$9:$E$58,2,FALSE) ) )","v":""},null,null,null,null,{"$f":"IF(TRIM(CQ184)=\"\", \"\", IF(VLOOKUP(CQ184,'Footnotes list'!$D$9:$E$58,2,FALSE)=0,\"\",VLOOKUP(CQ184,'Footnotes list'!$D$9:$E$58,2,FALSE) ) )","v":""},null,null,null,null,{"$f":"IF(TRIM(CV184)=\"\", \"\", IF(VLOOKUP(CV184,'Footnotes list'!$D$9:$E$58,2,FALSE)=0,\"\",VLOOKUP(CV184,'Footnotes list'!$D$9:$E$58,2,FALSE) ) )","v":""},null,null,null,null,{"$f":"IF(TRIM(DA184)=\"\", \"\", IF(VLOOKUP(DA184,'Footnotes list'!$D$9:$E$58,2,FALSE)=0,\"\",VLOOKUP(DA184,'Footnotes list'!$D$9:$E$58,2,FALSE) ) )","v":""},null,null,null,null,{"$f":"IF(TRIM(DF184)=\"\", \"\", IF(VLOOKUP(DF184,'Footnotes list'!$D$9:$E$58,2,FALSE)=0,\"\",VLOOKUP(DF184,'Footnotes list'!$D$9:$E$58,2,FALSE) ) )","v":""},null,null,null,null,{"$f":"IF(TRIM(DK184)=\"\", \"\", IF(VLOOKUP(DK184,'Footnotes list'!$D$9:$E$58,2,FALSE)=0,\"\",VLOOKUP(DK184,'Footnotes list'!$D$9:$E$58,2,FALSE) ) )","v":""},null,null,null,null,{"$f":"IF(TRIM(DP184)=\"\", \"\", IF(VLOOKUP(DP184,'Footnotes list'!$D$9:$E$58,2,FALSE)=0,\"\",VLOOKUP(DP184,'Footnotes list'!$D$9:$E$58,2,FALSE) ) )","v":""},null,null,null,null,{"$f":"IF(TRIM(DU184)=\"\", \"\", IF(VLOOKUP(DU184,'Footnotes list'!$D$9:$E$58,2,FALSE)=0,\"\",VLOOKUP(DU184,'Footnotes list'!$D$9:$E$58,2,FALSE) ) )","v":""},null,null,null,null,{"$f":"IF(TRIM(DZ184)=\"\", \"\", IF(VLOOKUP(DZ184,'Footnotes list'!$D$9:$E$58,2,FALSE)=0,\"\",VLOOKUP(DZ184,'Footnotes list'!$D$9:$E$58,2,FALSE) ) )","v":""},null,null,null,null,{"$f":"IF(TRIM(EE184)=\"\", \"\", IF(VLOOKUP(EE184,'Footnotes list'!$D$9:$E$58,2,FALSE)=0,\"\",VLOOKUP(EE184,'Footnotes list'!$D$9:$E$58,2,FALSE) ) )","v":""},null,null,null,null,{"$f":"IF(TRIM(EJ184)=\"\", \"\", IF(VLOOKUP(EJ184,'Footnotes list'!$D$9:$E$58,2,FALSE)=0,\"\",VLOOKUP(EJ184,'Footnotes list'!$D$9:$E$58,2,FALSE) ) )","v":""},null,null,null,null,{"$f":"IF(TRIM(EO184)=\"\", \"\", IF(VLOOKUP(EO184,'Footnotes list'!$D$9:$E$58,2,FALSE)=0,\"\",VLOOKUP(EO184,'Footnotes list'!$D$9:$E$58,2,FALSE) ) )","v":""},null,null,null,null,{"$f":"IF(TRIM(ET184)=\"\", \"\", IF(VLOOKUP(ET184,'Footnotes list'!$D$9:$E$58,2,FALSE)=0,\"\",VLOOKUP(ET184,'Footnotes list'!$D$9:$E$58,2,FALSE) ) )","v":""},null,null,null,null,{"$f":"IF(TRIM(EY184)=\"\", \"\", IF(VLOOKUP(EY184,'Footnotes list'!$D$9:$E$58,2,FALSE)=0,\"\",VLOOKUP(EY184,'Footnotes list'!$D$9:$E$58,2,FALSE) ) )","v":""}]
[null,null,"H","NMKT","non-market activities",null,null,null,null,null,{"$f":"IF(TRIM(J185)=\"\", \"\", IF(VLOOKUP(J185,'Footnotes list'!$D$9:$E$58,2,FALSE)=0,\"\",VLOOKUP(J185,'Footnotes list'!$D$9:$E$58,2,FALSE) ) )","v":""},null,null,null,null,{"$f":"IF(TRIM(O185)=\"\", \"\", IF(VLOOKUP(O185,'Footnotes list'!$D$9:$E$58,2,FALSE)=0,\"\",VLOOKUP(O185,'Footnotes list'!$D$9:$E$58,2,FALSE) ) )","v":""},null,null,null,null,{"$f":"IF(TRIM(T185)=\"\", \"\", IF(VLOOKUP(T185,'Footnotes list'!$D$9:$E$58,2,FALSE)=0,\"\",VLOOKUP(T185,'Footnotes list'!$D$9:$E$58,2,FALSE) ) )","v":""},null,null,null,null,{"$f":"IF(TRIM(Y185)=\"\", \"\", IF(VLOOKUP(Y185,'Footnotes list'!$D$9:$E$58,2,FALSE)=0,\"\",VLOOKUP(Y185,'Footnotes list'!$D$9:$E$58,2,FALSE) ) )","v":""},null,null,null,null,{"$f":"IF(TRIM(AD185)=\"\", \"\", IF(VLOOKUP(AD185,'Footnotes list'!$D$9:$E$58,2,FALSE)=0,\"\",VLOOKUP(AD185,'Footnotes list'!$D$9:$E$58,2,FALSE) ) )","v":""},null,null,null,null,{"$f":"IF(TRIM(AI185)=\"\", \"\", IF(VLOOKUP(AI185,'Footnotes list'!$D$9:$E$58,2,FALSE)=0,\"\",VLOOKUP(AI185,'Footnotes list'!$D$9:$E$58,2,FALSE) ) )","v":""},null,null,null,null,{"$f":"IF(TRIM(AN185)=\"\", \"\", IF(VLOOKUP(AN185,'Footnotes list'!$D$9:$E$58,2,FALSE)=0,\"\",VLOOKUP(AN185,'Footnotes list'!$D$9:$E$58,2,FALSE) ) )","v":""},null,null,null,null,{"$f":"IF(TRIM(AS185)=\"\", \"\", IF(VLOOKUP(AS185,'Footnotes list'!$D$9:$E$58,2,FALSE)=0,\"\",VLOOKUP(AS185,'Footnotes list'!$D$9:$E$58,2,FALSE) ) )","v":""},null,null,null,null,{"$f":"IF(TRIM(AX185)=\"\", \"\", IF(VLOOKUP(AX185,'Footnotes list'!$D$9:$E$58,2,FALSE)=0,\"\",VLOOKUP(AX185,'Footnotes list'!$D$9:$E$58,2,FALSE) ) )","v":""},null,null,null,null,{"$f":"IF(TRIM(BC185)=\"\", \"\", IF(VLOOKUP(BC185,'Footnotes list'!$D$9:$E$58,2,FALSE)=0,\"\",VLOOKUP(BC185,'Footnotes list'!$D$9:$E$58,2,FALSE) ) )","v":""},null,null,null,null,{"$f":"IF(TRIM(BH185)=\"\", \"\", IF(VLOOKUP(BH185,'Footnotes list'!$D$9:$E$58,2,FALSE)=0,\"\",VLOOKUP(BH185,'Footnotes list'!$D$9:$E$58,2,FALSE) ) )","v":""},null,null,null,null,{"$f":"IF(TRIM(BM185)=\"\", \"\", IF(VLOOKUP(BM185,'Footnotes list'!$D$9:$E$58,2,FALSE)=0,\"\",VLOOKUP(BM185,'Footnotes list'!$D$9:$E$58,2,FALSE) ) )","v":""},null,null,null,null,{"$f":"IF(TRIM(BR185)=\"\", \"\", IF(VLOOKUP(BR185,'Footnotes list'!$D$9:$E$58,2,FALSE)=0,\"\",VLOOKUP(BR185,'Footnotes list'!$D$9:$E$58,2,FALSE) ) )","v":""},null,null,null,null,{"$f":"IF(TRIM(BW185)=\"\", \"\", IF(VLOOKUP(BW185,'Footnotes list'!$D$9:$E$58,2,FALSE)=0,\"\",VLOOKUP(BW185,'Footnotes list'!$D$9:$E$58,2,FALSE) ) )","v":""},null,null,null,null,{"$f":"IF(TRIM(CB185)=\"\", \"\", IF(VLOOKUP(CB185,'Footnotes list'!$D$9:$E$58,2,FALSE)=0,\"\",VLOOKUP(CB185,'Footnotes list'!$D$9:$E$58,2,FALSE) ) )","v":""},null,null,null,null,{"$f":"IF(TRIM(CG185)=\"\", \"\", IF(VLOOKUP(CG185,'Footnotes list'!$D$9:$E$58,2,FALSE)=0,\"\",VLOOKUP(CG185,'Footnotes list'!$D$9:$E$58,2,FALSE) ) )","v":""},null,null,null,null,{"$f":"IF(TRIM(CL185)=\"\", \"\", IF(VLOOKUP(CL185,'Footnotes list'!$D$9:$E$58,2,FALSE)=0,\"\",VLOOKUP(CL185,'Footnotes list'!$D$9:$E$58,2,FALSE) ) )","v":""},null,null,null,null,{"$f":"IF(TRIM(CQ185)=\"\", \"\", IF(VLOOKUP(CQ185,'Footnotes list'!$D$9:$E$58,2,FALSE)=0,\"\",VLOOKUP(CQ185,'Footnotes list'!$D$9:$E$58,2,FALSE) ) )","v":""},null,null,null,null,{"$f":"IF(TRIM(CV185)=\"\", \"\", IF(VLOOKUP(CV185,'Footnotes list'!$D$9:$E$58,2,FALSE)=0,\"\",VLOOKUP(CV185,'Footnotes list'!$D$9:$E$58,2,FALSE) ) )","v":""},null,null,null,null,{"$f":"IF(TRIM(DA185)=\"\", \"\", IF(VLOOKUP(DA185,'Footnotes list'!$D$9:$E$58,2,FALSE)=0,\"\",VLOOKUP(DA185,'Footnotes list'!$D$9:$E$58,2,FALSE) ) )","v":""},null,null,null,null,{"$f":"IF(TRIM(DF185)=\"\", \"\", IF(VLOOKUP(DF185,'Footnotes list'!$D$9:$E$58,2,FALSE)=0,\"\",VLOOKUP(DF185,'Footnotes list'!$D$9:$E$58,2,FALSE) ) )","v":""},null,null,null,null,{"$f":"IF(TRIM(DK185)=\"\", \"\", IF(VLOOKUP(DK185,'Footnotes list'!$D$9:$E$58,2,FALSE)=0,\"\",VLOOKUP(DK185,'Footnotes list'!$D$9:$E$58,2,FALSE) ) )","v":""},null,null,null,null,{"$f":"IF(TRIM(DP185)=\"\", \"\", IF(VLOOKUP(DP185,'Footnotes list'!$D$9:$E$58,2,FALSE)=0,\"\",VLOOKUP(DP185,'Footnotes list'!$D$9:$E$58,2,FALSE) ) )","v":""},null,null,null,null,{"$f":"IF(TRIM(DU185)=\"\", \"\", IF(VLOOKUP(DU185,'Footnotes list'!$D$9:$E$58,2,FALSE)=0,\"\",VLOOKUP(DU185,'Footnotes list'!$D$9:$E$58,2,FALSE) ) )","v":""},null,null,null,null,{"$f":"IF(TRIM(DZ185)=\"\", \"\", IF(VLOOKUP(DZ185,'Footnotes list'!$D$9:$E$58,2,FALSE)=0,\"\",VLOOKUP(DZ185,'Footnotes list'!$D$9:$E$58,2,FALSE) ) )","v":""},null,null,null,null,{"$f":"IF(TRIM(EE185)=\"\", \"\", IF(VLOOKUP(EE185,'Footnotes list'!$D$9:$E$58,2,FALSE)=0,\"\",VLOOKUP(EE185,'Footnotes list'!$D$9:$E$58,2,FALSE) ) )","v":""},null,null,null,null,{"$f":"IF(TRIM(EJ185)=\"\", \"\", IF(VLOOKUP(EJ185,'Footnotes list'!$D$9:$E$58,2,FALSE)=0,\"\",VLOOKUP(EJ185,'Footnotes list'!$D$9:$E$58,2,FALSE) ) )","v":""},null,null,null,null,{"$f":"IF(TRIM(EO185)=\"\", \"\", IF(VLOOKUP(EO185,'Footnotes list'!$D$9:$E$58,2,FALSE)=0,\"\",VLOOKUP(EO185,'Footnotes list'!$D$9:$E$58,2,FALSE) ) )","v":""},null,null,null,null,{"$f":"IF(TRIM(ET185)=\"\", \"\", IF(VLOOKUP(ET185,'Footnotes list'!$D$9:$E$58,2,FALSE)=0,\"\",VLOOKUP(ET185,'Footnotes list'!$D$9:$E$58,2,FALSE) ) )","v":""},null,null,null,null,{"$f":"IF(TRIM(EY185)=\"\", \"\", IF(VLOOKUP(EY185,'Footnotes list'!$D$9:$E$58,2,FALSE)=0,\"\",VLOOKUP(EY185,'Footnotes list'!$D$9:$E$58,2,FALSE) ) )","v":""}]
[null,null,"H","OWN_USE","activities for own final use",null,null,null,null,null,{"$f":"IF(TRIM(J186)=\"\", \"\", IF(VLOOKUP(J186,'Footnotes list'!$D$9:$E$58,2,FALSE)=0,\"\",VLOOKUP(J186,'Footnotes list'!$D$9:$E$58,2,FALSE) ) )","v":""},null,null,null,null,{"$f":"IF(TRIM(O186)=\"\", \"\", IF(VLOOKUP(O186,'Footnotes list'!$D$9:$E$58,2,FALSE)=0,\"\",VLOOKUP(O186,'Footnotes list'!$D$9:$E$58,2,FALSE) ) )","v":""},null,null,null,null,{"$f":"IF(TRIM(T186)=\"\", \"\", IF(VLOOKUP(T186,'Footnotes list'!$D$9:$E$58,2,FALSE)=0,\"\",VLOOKUP(T186,'Footnotes list'!$D$9:$E$58,2,FALSE) ) )","v":""},null,null,null,null,{"$f":"IF(TRIM(Y186)=\"\", \"\", IF(VLOOKUP(Y186,'Footnotes list'!$D$9:$E$58,2,FALSE)=0,\"\",VLOOKUP(Y186,'Footnotes list'!$D$9:$E$58,2,FALSE) ) )","v":""},null,null,null,null,{"$f":"IF(TRIM(AD186)=\"\", \"\", IF(VLOOKUP(AD186,'Footnotes list'!$D$9:$E$58,2,FALSE)=0,\"\",VLOOKUP(AD186,'Footnotes list'!$D$9:$E$58,2,FALSE) ) )","v":""},null,null,null,null,{"$f":"IF(TRIM(AI186)=\"\", \"\", IF(VLOOKUP(AI186,'Footnotes list'!$D$9:$E$58,2,FALSE)=0,\"\",VLOOKUP(AI186,'Footnotes list'!$D$9:$E$58,2,FALSE) ) )","v":""},null,null,null,null,{"$f":"IF(TRIM(AN186)=\"\", \"\", IF(VLOOKUP(AN186,'Footnotes list'!$D$9:$E$58,2,FALSE)=0,\"\",VLOOKUP(AN186,'Footnotes list'!$D$9:$E$58,2,FALSE) ) )","v":""},null,null,null,null,{"$f":"IF(TRIM(AS186)=\"\", \"\", IF(VLOOKUP(AS186,'Footnotes list'!$D$9:$E$58,2,FALSE)=0,\"\",VLOOKUP(AS186,'Footnotes list'!$D$9:$E$58,2,FALSE) ) )","v":""},null,null,null,null,{"$f":"IF(TRIM(AX186)=\"\", \"\", IF(VLOOKUP(AX186,'Footnotes list'!$D$9:$E$58,2,FALSE)=0,\"\",VLOOKUP(AX186,'Footnotes list'!$D$9:$E$58,2,FALSE) ) )","v":""},null,null,null,null,{"$f":"IF(TRIM(BC186)=\"\", \"\", IF(VLOOKUP(BC186,'Footnotes list'!$D$9:$E$58,2,FALSE)=0,\"\",VLOOKUP(BC186,'Footnotes list'!$D$9:$E$58,2,FALSE) ) )","v":""},null,null,null,null,{"$f":"IF(TRIM(BH186)=\"\", \"\", IF(VLOOKUP(BH186,'Footnotes list'!$D$9:$E$58,2,FALSE)=0,\"\",VLOOKUP(BH186,'Footnotes list'!$D$9:$E$58,2,FALSE) ) )","v":""},null,null,null,null,{"$f":"IF(TRIM(BM186)=\"\", \"\", IF(VLOOKUP(BM186,'Footnotes list'!$D$9:$E$58,2,FALSE)=0,\"\",VLOOKUP(BM186,'Footnotes list'!$D$9:$E$58,2,FALSE) ) )","v":""},null,null,null,null,{"$f":"IF(TRIM(BR186)=\"\", \"\", IF(VLOOKUP(BR186,'Footnotes list'!$D$9:$E$58,2,FALSE)=0,\"\",VLOOKUP(BR186,'Footnotes list'!$D$9:$E$58,2,FALSE) ) )","v":""},null,null,null,null,{"$f":"IF(TRIM(BW186)=\"\", \"\", IF(VLOOKUP(BW186,'Footnotes list'!$D$9:$E$58,2,FALSE)=0,\"\",VLOOKUP(BW186,'Footnotes list'!$D$9:$E$58,2,FALSE) ) )","v":""},null,null,null,null,{"$f":"IF(TRIM(CB186)=\"\", \"\", IF(VLOOKUP(CB186,'Footnotes list'!$D$9:$E$58,2,FALSE)=0,\"\",VLOOKUP(CB186,'Footnotes list'!$D$9:$E$58,2,FALSE) ) )","v":""},null,null,null,null,{"$f":"IF(TRIM(CG186)=\"\", \"\", IF(VLOOKUP(CG186,'Footnotes list'!$D$9:$E$58,2,FALSE)=0,\"\",VLOOKUP(CG186,'Footnotes list'!$D$9:$E$58,2,FALSE) ) )","v":""},null,null,null,null,{"$f":"IF(TRIM(CL186)=\"\", \"\", IF(VLOOKUP(CL186,'Footnotes list'!$D$9:$E$58,2,FALSE)=0,\"\",VLOOKUP(CL186,'Footnotes list'!$D$9:$E$58,2,FALSE) ) )","v":""},null,null,null,null,{"$f":"IF(TRIM(CQ186)=\"\", \"\", IF(VLOOKUP(CQ186,'Footnotes list'!$D$9:$E$58,2,FALSE)=0,\"\",VLOOKUP(CQ186,'Footnotes list'!$D$9:$E$58,2,FALSE) ) )","v":""},null,null,null,null,{"$f":"IF(TRIM(CV186)=\"\", \"\", IF(VLOOKUP(CV186,'Footnotes list'!$D$9:$E$58,2,FALSE)=0,\"\",VLOOKUP(CV186,'Footnotes list'!$D$9:$E$58,2,FALSE) ) )","v":""},null,null,null,null,{"$f":"IF(TRIM(DA186)=\"\", \"\", IF(VLOOKUP(DA186,'Footnotes list'!$D$9:$E$58,2,FALSE)=0,\"\",VLOOKUP(DA186,'Footnotes list'!$D$9:$E$58,2,FALSE) ) )","v":""},null,null,null,null,{"$f":"IF(TRIM(DF186)=\"\", \"\", IF(VLOOKUP(DF186,'Footnotes list'!$D$9:$E$58,2,FALSE)=0,\"\",VLOOKUP(DF186,'Footnotes list'!$D$9:$E$58,2,FALSE) ) )","v":""},null,null,null,null,{"$f":"IF(TRIM(DK186)=\"\", \"\", IF(VLOOKUP(DK186,'Footnotes list'!$D$9:$E$58,2,FALSE)=0,\"\",VLOOKUP(DK186,'Footnotes list'!$D$9:$E$58,2,FALSE) ) )","v":""},null,null,null,null,{"$f":"IF(TRIM(DP186)=\"\", \"\", IF(VLOOKUP(DP186,'Footnotes list'!$D$9:$E$58,2,FALSE)=0,\"\",VLOOKUP(DP186,'Footnotes list'!$D$9:$E$58,2,FALSE) ) )","v":""},null,null,null,null,{"$f":"IF(TRIM(DU186)=\"\", \"\", IF(VLOOKUP(DU186,'Footnotes list'!$D$9:$E$58,2,FALSE)=0,\"\",VLOOKUP(DU186,'Footnotes list'!$D$9:$E$58,2,FALSE) ) )","v":""},null,null,null,null,{"$f":"IF(TRIM(DZ186)=\"\", \"\", IF(VLOOKUP(DZ186,'Footnotes list'!$D$9:$E$58,2,FALSE)=0,\"\",VLOOKUP(DZ186,'Footnotes list'!$D$9:$E$58,2,FALSE) ) )","v":""},null,null,null,null,{"$f":"IF(TRIM(EE186)=\"\", \"\", IF(VLOOKUP(EE186,'Footnotes list'!$D$9:$E$58,2,FALSE)=0,\"\",VLOOKUP(EE186,'Footnotes list'!$D$9:$E$58,2,FALSE) ) )","v":""},null,null,null,null,{"$f":"IF(TRIM(EJ186)=\"\", \"\", IF(VLOOKUP(EJ186,'Footnotes list'!$D$9:$E$58,2,FALSE)=0,\"\",VLOOKUP(EJ186,'Footnotes list'!$D$9:$E$58,2,FALSE) ) )","v":""},null,null,null,null,{"$f":"IF(TRIM(EO186)=\"\", \"\", IF(VLOOKUP(EO186,'Footnotes list'!$D$9:$E$58,2,FALSE)=0,\"\",VLOOKUP(EO186,'Footnotes list'!$D$9:$E$58,2,FALSE) ) )","v":""},null,null,null,null,{"$f":"IF(TRIM(ET186)=\"\", \"\", IF(VLOOKUP(ET186,'Footnotes list'!$D$9:$E$58,2,FALSE)=0,\"\",VLOOKUP(ET186,'Footnotes list'!$D$9:$E$58,2,FALSE) ) )","v":""},null,null,null,null,{"$f":"IF(TRIM(EY186)=\"\", \"\", IF(VLOOKUP(EY186,'Footnotes list'!$D$9:$E$58,2,FALSE)=0,\"\",VLOOKUP(EY186,'Footnotes list'!$D$9:$E$58,2,FALSE) ) )","v":""}]
[null,null,"H","MKT","market activities, including:",null,null,null,null,null,{"$f":"IF(TRIM(J187)=\"\", \"\", IF(VLOOKUP(J187,'Footnotes list'!$D$9:$E$58,2,FALSE)=0,\"\",VLOOKUP(J187,'Footnotes list'!$D$9:$E$58,2,FALSE) ) )","v":""},null,null,null,null,{"$f":"IF(TRIM(O187)=\"\", \"\", IF(VLOOKUP(O187,'Footnotes list'!$D$9:$E$58,2,FALSE)=0,\"\",VLOOKUP(O187,'Footnotes list'!$D$9:$E$58,2,FALSE) ) )","v":""},null,null,null,null,{"$f":"IF(TRIM(T187)=\"\", \"\", IF(VLOOKUP(T187,'Footnotes list'!$D$9:$E$58,2,FALSE)=0,\"\",VLOOKUP(T187,'Footnotes list'!$D$9:$E$58,2,FALSE) ) )","v":""},null,null,null,null,{"$f":"IF(TRIM(Y187)=\"\", \"\", IF(VLOOKUP(Y187,'Footnotes list'!$D$9:$E$58,2,FALSE)=0,\"\",VLOOKUP(Y187,'Footnotes list'!$D$9:$E$58,2,FALSE) ) )","v":""},null,null,null,null,{"$f":"IF(TRIM(AD187)=\"\", \"\", IF(VLOOKUP(AD187,'Footnotes list'!$D$9:$E$58,2,FALSE)=0,\"\",VLOOKUP(AD187,'Footnotes list'!$D$9:$E$58,2,FALSE) ) )","v":""},null,null,null,null,{"$f":"IF(TRIM(AI187)=\"\", \"\", IF(VLOOKUP(AI187,'Footnotes list'!$D$9:$E$58,2,FALSE)=0,\"\",VLOOKUP(AI187,'Footnotes list'!$D$9:$E$58,2,FALSE) ) )","v":""},null,null,null,null,{"$f":"IF(TRIM(AN187)=\"\", \"\", IF(VLOOKUP(AN187,'Footnotes list'!$D$9:$E$58,2,FALSE)=0,\"\",VLOOKUP(AN187,'Footnotes list'!$D$9:$E$58,2,FALSE) ) )","v":""},null,null,null,null,{"$f":"IF(TRIM(AS187)=\"\", \"\", IF(VLOOKUP(AS187,'Footnotes list'!$D$9:$E$58,2,FALSE)=0,\"\",VLOOKUP(AS187,'Footnotes list'!$D$9:$E$58,2,FALSE) ) )","v":""},null,null,null,null,{"$f":"IF(TRIM(AX187)=\"\", \"\", IF(VLOOKUP(AX187,'Footnotes list'!$D$9:$E$58,2,FALSE)=0,\"\",VLOOKUP(AX187,'Footnotes list'!$D$9:$E$58,2,FALSE) ) )","v":""},null,null,null,null,{"$f":"IF(TRIM(BC187)=\"\", \"\", IF(VLOOKUP(BC187,'Footnotes list'!$D$9:$E$58,2,FALSE)=0,\"\",VLOOKUP(BC187,'Footnotes list'!$D$9:$E$58,2,FALSE) ) )","v":""},null,null,null,null,{"$f":"IF(TRIM(BH187)=\"\", \"\", IF(VLOOKUP(BH187,'Footnotes list'!$D$9:$E$58,2,FALSE)=0,\"\",VLOOKUP(BH187,'Footnotes list'!$D$9:$E$58,2,FALSE) ) )","v":""},null,null,null,null,{"$f":"IF(TRIM(BM187)=\"\", \"\", IF(VLOOKUP(BM187,'Footnotes list'!$D$9:$E$58,2,FALSE)=0,\"\",VLOOKUP(BM187,'Footnotes list'!$D$9:$E$58,2,FALSE) ) )","v":""},null,null,null,null,{"$f":"IF(TRIM(BR187)=\"\", \"\", IF(VLOOKUP(BR187,'Footnotes list'!$D$9:$E$58,2,FALSE)=0,\"\",VLOOKUP(BR187,'Footnotes list'!$D$9:$E$58,2,FALSE) ) )","v":""},null,null,null,null,{"$f":"IF(TRIM(BW187)=\"\", \"\", IF(VLOOKUP(BW187,'Footnotes list'!$D$9:$E$58,2,FALSE)=0,\"\",VLOOKUP(BW187,'Footnotes list'!$D$9:$E$58,2,FALSE) ) )","v":""},null,null,null,null,{"$f":"IF(TRIM(CB187)=\"\", \"\", IF(VLOOKUP(CB187,'Footnotes list'!$D$9:$E$58,2,FALSE)=0,\"\",VLOOKUP(CB187,'Footnotes list'!$D$9:$E$58,2,FALSE) ) )","v":""},null,null,null,null,{"$f":"IF(TRIM(CG187)=\"\", \"\", IF(VLOOKUP(CG187,'Footnotes list'!$D$9:$E$58,2,FALSE)=0,\"\",VLOOKUP(CG187,'Footnotes list'!$D$9:$E$58,2,FALSE) ) )","v":""},null,null,null,null,{"$f":"IF(TRIM(CL187)=\"\", \"\", IF(VLOOKUP(CL187,'Footnotes list'!$D$9:$E$58,2,FALSE)=0,\"\",VLOOKUP(CL187,'Footnotes list'!$D$9:$E$58,2,FALSE) ) )","v":""},null,null,null,null,{"$f":"IF(TRIM(CQ187)=\"\", \"\", IF(VLOOKUP(CQ187,'Footnotes list'!$D$9:$E$58,2,FALSE)=0,\"\",VLOOKUP(CQ187,'Footnotes list'!$D$9:$E$58,2,FALSE) ) )","v":""},null,null,null,null,{"$f":"IF(TRIM(CV187)=\"\", \"\", IF(VLOOKUP(CV187,'Footnotes list'!$D$9:$E$58,2,FALSE)=0,\"\",VLOOKUP(CV187,'Footnotes list'!$D$9:$E$58,2,FALSE) ) )","v":""},null,null,null,null,{"$f":"IF(TRIM(DA187)=\"\", \"\", IF(VLOOKUP(DA187,'Footnotes list'!$D$9:$E$58,2,FALSE)=0,\"\",VLOOKUP(DA187,'Footnotes list'!$D$9:$E$58,2,FALSE) ) )","v":""},null,null,null,null,{"$f":"IF(TRIM(DF187)=\"\", \"\", IF(VLOOKUP(DF187,'Footnotes list'!$D$9:$E$58,2,FALSE)=0,\"\",VLOOKUP(DF187,'Footnotes list'!$D$9:$E$58,2,FALSE) ) )","v":""},null,null,null,null,{"$f":"IF(TRIM(DK187)=\"\", \"\", IF(VLOOKUP(DK187,'Footnotes list'!$D$9:$E$58,2,FALSE)=0,\"\",VLOOKUP(DK187,'Footnotes list'!$D$9:$E$58,2,FALSE) ) )","v":""},null,null,null,null,{"$f":"IF(TRIM(DP187)=\"\", \"\", IF(VLOOKUP(DP187,'Footnotes list'!$D$9:$E$58,2,FALSE)=0,\"\",VLOOKUP(DP187,'Footnotes list'!$D$9:$E$58,2,FALSE) ) )","v":""},null,null,null,null,{"$f":"IF(TRIM(DU187)=\"\", \"\", IF(VLOOKUP(DU187,'Footnotes list'!$D$9:$E$58,2,FALSE)=0,\"\",VLOOKUP(DU187,'Footnotes list'!$D$9:$E$58,2,FALSE) ) )","v":""},null,null,null,null,{"$f":"IF(TRIM(DZ187)=\"\", \"\", IF(VLOOKUP(DZ187,'Footnotes list'!$D$9:$E$58,2,FALSE)=0,\"\",VLOOKUP(DZ187,'Footnotes list'!$D$9:$E$58,2,FALSE) ) )","v":""},null,null,null,null,{"$f":"IF(TRIM(EE187)=\"\", \"\", IF(VLOOKUP(EE187,'Footnotes list'!$D$9:$E$58,2,FALSE)=0,\"\",VLOOKUP(EE187,'Footnotes list'!$D$9:$E$58,2,FALSE) ) )","v":""},null,null,null,null,{"$f":"IF(TRIM(EJ187)=\"\", \"\", IF(VLOOKUP(EJ187,'Footnotes list'!$D$9:$E$58,2,FALSE)=0,\"\",VLOOKUP(EJ187,'Footnotes list'!$D$9:$E$58,2,FALSE) ) )","v":""},null,null,null,null,{"$f":"IF(TRIM(EO187)=\"\", \"\", IF(VLOOKUP(EO187,'Footnotes list'!$D$9:$E$58,2,FALSE)=0,\"\",VLOOKUP(EO187,'Footnotes list'!$D$9:$E$58,2,FALSE) ) )","v":""},null,null,null,null,{"$f":"IF(TRIM(ET187)=\"\", \"\", IF(VLOOKUP(ET187,'Footnotes list'!$D$9:$E$58,2,FALSE)=0,\"\",VLOOKUP(ET187,'Footnotes list'!$D$9:$E$58,2,FALSE) ) )","v":""},null,null,null,null,{"$f":"IF(TRIM(EY187)=\"\", \"\", IF(VLOOKUP(EY187,'Footnotes list'!$D$9:$E$58,2,FALSE)=0,\"\",VLOOKUP(EY187,'Footnotes list'!$D$9:$E$58,2,FALSE) ) )","v":""}]
[null,null,"H","ES_CS","environmental specific services",null,null,null,null,null,{"$f":"IF(TRIM(J188)=\"\", \"\", IF(VLOOKUP(J188,'Footnotes list'!$D$9:$E$58,2,FALSE)=0,\"\",VLOOKUP(J188,'Footnotes list'!$D$9:$E$58,2,FALSE) ) )","v":""},null,null,null,null,{"$f":"IF(TRIM(O188)=\"\", \"\", IF(VLOOKUP(O188,'Footnotes list'!$D$9:$E$58,2,FALSE)=0,\"\",VLOOKUP(O188,'Footnotes list'!$D$9:$E$58,2,FALSE) ) )","v":""},null,null,null,null,{"$f":"IF(TRIM(T188)=\"\", \"\", IF(VLOOKUP(T188,'Footnotes list'!$D$9:$E$58,2,FALSE)=0,\"\",VLOOKUP(T188,'Footnotes list'!$D$9:$E$58,2,FALSE) ) )","v":""},null,null,null,null,{"$f":"IF(TRIM(Y188)=\"\", \"\", IF(VLOOKUP(Y188,'Footnotes list'!$D$9:$E$58,2,FALSE)=0,\"\",VLOOKUP(Y188,'Footnotes list'!$D$9:$E$58,2,FALSE) ) )","v":""},null,null,null,null,{"$f":"IF(TRIM(AD188)=\"\", \"\", IF(VLOOKUP(AD188,'Footnotes list'!$D$9:$E$58,2,FALSE)=0,\"\",VLOOKUP(AD188,'Footnotes list'!$D$9:$E$58,2,FALSE) ) )","v":""},null,null,null,null,{"$f":"IF(TRIM(AI188)=\"\", \"\", IF(VLOOKUP(AI188,'Footnotes list'!$D$9:$E$58,2,FALSE)=0,\"\",VLOOKUP(AI188,'Footnotes list'!$D$9:$E$58,2,FALSE) ) )","v":""},null,null,null,null,{"$f":"IF(TRIM(AN188)=\"\", \"\", IF(VLOOKUP(AN188,'Footnotes list'!$D$9:$E$58,2,FALSE)=0,\"\",VLOOKUP(AN188,'Footnotes list'!$D$9:$E$58,2,FALSE) ) )","v":""},null,null,null,null,{"$f":"IF(TRIM(AS188)=\"\", \"\", IF(VLOOKUP(AS188,'Footnotes list'!$D$9:$E$58,2,FALSE)=0,\"\",VLOOKUP(AS188,'Footnotes list'!$D$9:$E$58,2,FALSE) ) )","v":""},null,null,null,null,{"$f":"IF(TRIM(AX188)=\"\", \"\", IF(VLOOKUP(AX188,'Footnotes list'!$D$9:$E$58,2,FALSE)=0,\"\",VLOOKUP(AX188,'Footnotes list'!$D$9:$E$58,2,FALSE) ) )","v":""},null,null,null,null,{"$f":"IF(TRIM(BC188)=\"\", \"\", IF(VLOOKUP(BC188,'Footnotes list'!$D$9:$E$58,2,FALSE)=0,\"\",VLOOKUP(BC188,'Footnotes list'!$D$9:$E$58,2,FALSE) ) )","v":""},null,null,null,null,{"$f":"IF(TRIM(BH188)=\"\", \"\", IF(VLOOKUP(BH188,'Footnotes list'!$D$9:$E$58,2,FALSE)=0,\"\",VLOOKUP(BH188,'Footnotes list'!$D$9:$E$58,2,FALSE) ) )","v":""},null,null,null,null,{"$f":"IF(TRIM(BM188)=\"\", \"\", IF(VLOOKUP(BM188,'Footnotes list'!$D$9:$E$58,2,FALSE)=0,\"\",VLOOKUP(BM188,'Footnotes list'!$D$9:$E$58,2,FALSE) ) )","v":""},null,null,null,null,{"$f":"IF(TRIM(BR188)=\"\", \"\", IF(VLOOKUP(BR188,'Footnotes list'!$D$9:$E$58,2,FALSE)=0,\"\",VLOOKUP(BR188,'Footnotes list'!$D$9:$E$58,2,FALSE) ) )","v":""},null,null,null,null,{"$f":"IF(TRIM(BW188)=\"\", \"\", IF(VLOOKUP(BW188,'Footnotes list'!$D$9:$E$58,2,FALSE)=0,\"\",VLOOKUP(BW188,'Footnotes list'!$D$9:$E$58,2,FALSE) ) )","v":""},null,null,null,null,{"$f":"IF(TRIM(CB188)=\"\", \"\", IF(VLOOKUP(CB188,'Footnotes list'!$D$9:$E$58,2,FALSE)=0,\"\",VLOOKUP(CB188,'Footnotes list'!$D$9:$E$58,2,FALSE) ) )","v":""},null,null,null,null,{"$f":"IF(TRIM(CG188)=\"\", \"\", IF(VLOOKUP(CG188,'Footnotes list'!$D$9:$E$58,2,FALSE)=0,\"\",VLOOKUP(CG188,'Footnotes list'!$D$9:$E$58,2,FALSE) ) )","v":""},null,null,null,null,{"$f":"IF(TRIM(CL188)=\"\", \"\", IF(VLOOKUP(CL188,'Footnotes list'!$D$9:$E$58,2,FALSE)=0,\"\",VLOOKUP(CL188,'Footnotes list'!$D$9:$E$58,2,FALSE) ) )","v":""},null,null,null,null,{"$f":"IF(TRIM(CQ188)=\"\", \"\", IF(VLOOKUP(CQ188,'Footnotes list'!$D$9:$E$58,2,FALSE)=0,\"\",VLOOKUP(CQ188,'Footnotes list'!$D$9:$E$58,2,FALSE) ) )","v":""},null,null,null,null,{"$f":"IF(TRIM(CV188)=\"\", \"\", IF(VLOOKUP(CV188,'Footnotes list'!$D$9:$E$58,2,FALSE)=0,\"\",VLOOKUP(CV188,'Footnotes list'!$D$9:$E$58,2,FALSE) ) )","v":""},null,null,null,null,{"$f":"IF(TRIM(DA188)=\"\", \"\", IF(VLOOKUP(DA188,'Footnotes list'!$D$9:$E$58,2,FALSE)=0,\"\",VLOOKUP(DA188,'Footnotes list'!$D$9:$E$58,2,FALSE) ) )","v":""},null,null,null,null,{"$f":"IF(TRIM(DF188)=\"\", \"\", IF(VLOOKUP(DF188,'Footnotes list'!$D$9:$E$58,2,FALSE)=0,\"\",VLOOKUP(DF188,'Footnotes list'!$D$9:$E$58,2,FALSE) ) )","v":""},null,null,null,null,{"$f":"IF(TRIM(DK188)=\"\", \"\", IF(VLOOKUP(DK188,'Footnotes list'!$D$9:$E$58,2,FALSE)=0,\"\",VLOOKUP(DK188,'Footnotes list'!$D$9:$E$58,2,FALSE) ) )","v":""},null,null,null,null,{"$f":"IF(TRIM(DP188)=\"\", \"\", IF(VLOOKUP(DP188,'Footnotes list'!$D$9:$E$58,2,FALSE)=0,\"\",VLOOKUP(DP188,'Footnotes list'!$D$9:$E$58,2,FALSE) ) )","v":""},null,null,null,null,{"$f":"IF(TRIM(DU188)=\"\", \"\", IF(VLOOKUP(DU188,'Footnotes list'!$D$9:$E$58,2,FALSE)=0,\"\",VLOOKUP(DU188,'Footnotes list'!$D$9:$E$58,2,FALSE) ) )","v":""},null,null,null,null,{"$f":"IF(TRIM(DZ188)=\"\", \"\", IF(VLOOKUP(DZ188,'Footnotes list'!$D$9:$E$58,2,FALSE)=0,\"\",VLOOKUP(DZ188,'Footnotes list'!$D$9:$E$58,2,FALSE) ) )","v":""},null,null,null,null,{"$f":"IF(TRIM(EE188)=\"\", \"\", IF(VLOOKUP(EE188,'Footnotes list'!$D$9:$E$58,2,FALSE)=0,\"\",VLOOKUP(EE188,'Footnotes list'!$D$9:$E$58,2,FALSE) ) )","v":""},null,null,null,null,{"$f":"IF(TRIM(EJ188)=\"\", \"\", IF(VLOOKUP(EJ188,'Footnotes list'!$D$9:$E$58,2,FALSE)=0,\"\",VLOOKUP(EJ188,'Footnotes list'!$D$9:$E$58,2,FALSE) ) )","v":""},null,null,null,null,{"$f":"IF(TRIM(EO188)=\"\", \"\", IF(VLOOKUP(EO188,'Footnotes list'!$D$9:$E$58,2,FALSE)=0,\"\",VLOOKUP(EO188,'Footnotes list'!$D$9:$E$58,2,FALSE) ) )","v":""},null,null,null,null,{"$f":"IF(TRIM(ET188)=\"\", \"\", IF(VLOOKUP(ET188,'Footnotes list'!$D$9:$E$58,2,FALSE)=0,\"\",VLOOKUP(ET188,'Footnotes list'!$D$9:$E$58,2,FALSE) ) )","v":""},null,null,null,null,{"$f":"IF(TRIM(EY188)=\"\", \"\", IF(VLOOKUP(EY188,'Footnotes list'!$D$9:$E$58,2,FALSE)=0,\"\",VLOOKUP(EY188,'Footnotes list'!$D$9:$E$58,2,FALSE) ) )","v":""}]
[null,null,"H","C_REP","cleaner and resource efficient products",null,null,null,null,null,{"$f":"IF(TRIM(J189)=\"\", \"\", IF(VLOOKUP(J189,'Footnotes list'!$D$9:$E$58,2,FALSE)=0,\"\",VLOOKUP(J189,'Footnotes list'!$D$9:$E$58,2,FALSE) ) )","v":""},null,null,null,null,{"$f":"IF(TRIM(O189)=\"\", \"\", IF(VLOOKUP(O189,'Footnotes list'!$D$9:$E$58,2,FALSE)=0,\"\",VLOOKUP(O189,'Footnotes list'!$D$9:$E$58,2,FALSE) ) )","v":""},null,null,null,null,{"$f":"IF(TRIM(T189)=\"\", \"\", IF(VLOOKUP(T189,'Footnotes list'!$D$9:$E$58,2,FALSE)=0,\"\",VLOOKUP(T189,'Footnotes list'!$D$9:$E$58,2,FALSE) ) )","v":""},null,null,null,null,{"$f":"IF(TRIM(Y189)=\"\", \"\", IF(VLOOKUP(Y189,'Footnotes list'!$D$9:$E$58,2,FALSE)=0,\"\",VLOOKUP(Y189,'Footnotes list'!$D$9:$E$58,2,FALSE) ) )","v":""},null,null,null,null,{"$f":"IF(TRIM(AD189)=\"\", \"\", IF(VLOOKUP(AD189,'Footnotes list'!$D$9:$E$58,2,FALSE)=0,\"\",VLOOKUP(AD189,'Footnotes list'!$D$9:$E$58,2,FALSE) ) )","v":""},null,null,null,null,{"$f":"IF(TRIM(AI189)=\"\", \"\", IF(VLOOKUP(AI189,'Footnotes list'!$D$9:$E$58,2,FALSE)=0,\"\",VLOOKUP(AI189,'Footnotes list'!$D$9:$E$58,2,FALSE) ) )","v":""},null,null,null,null,{"$f":"IF(TRIM(AN189)=\"\", \"\", IF(VLOOKUP(AN189,'Footnotes list'!$D$9:$E$58,2,FALSE)=0,\"\",VLOOKUP(AN189,'Footnotes list'!$D$9:$E$58,2,FALSE) ) )","v":""},null,null,null,null,{"$f":"IF(TRIM(AS189)=\"\", \"\", IF(VLOOKUP(AS189,'Footnotes list'!$D$9:$E$58,2,FALSE)=0,\"\",VLOOKUP(AS189,'Footnotes list'!$D$9:$E$58,2,FALSE) ) )","v":""},null,null,null,null,{"$f":"IF(TRIM(AX189)=\"\", \"\", IF(VLOOKUP(AX189,'Footnotes list'!$D$9:$E$58,2,FALSE)=0,\"\",VLOOKUP(AX189,'Footnotes list'!$D$9:$E$58,2,FALSE) ) )","v":""},null,null,null,null,{"$f":"IF(TRIM(BC189)=\"\", \"\", IF(VLOOKUP(BC189,'Footnotes list'!$D$9:$E$58,2,FALSE)=0,\"\",VLOOKUP(BC189,'Footnotes list'!$D$9:$E$58,2,FALSE) ) )","v":""},null,null,null,null,{"$f":"IF(TRIM(BH189)=\"\", \"\", IF(VLOOKUP(BH189,'Footnotes list'!$D$9:$E$58,2,FALSE)=0,\"\",VLOOKUP(BH189,'Footnotes list'!$D$9:$E$58,2,FALSE) ) )","v":""},null,null,null,null,{"$f":"IF(TRIM(BM189)=\"\", \"\", IF(VLOOKUP(BM189,'Footnotes list'!$D$9:$E$58,2,FALSE)=0,\"\",VLOOKUP(BM189,'Footnotes list'!$D$9:$E$58,2,FALSE) ) )","v":""},null,null,null,null,{"$f":"IF(TRIM(BR189)=\"\", \"\", IF(VLOOKUP(BR189,'Footnotes list'!$D$9:$E$58,2,FALSE)=0,\"\",VLOOKUP(BR189,'Footnotes list'!$D$9:$E$58,2,FALSE) ) )","v":""},null,null,null,null,{"$f":"IF(TRIM(BW189)=\"\", \"\", IF(VLOOKUP(BW189,'Footnotes list'!$D$9:$E$58,2,FALSE)=0,\"\",VLOOKUP(BW189,'Footnotes list'!$D$9:$E$58,2,FALSE) ) )","v":""},null,null,null,null,{"$f":"IF(TRIM(CB189)=\"\", \"\", IF(VLOOKUP(CB189,'Footnotes list'!$D$9:$E$58,2,FALSE)=0,\"\",VLOOKUP(CB189,'Footnotes list'!$D$9:$E$58,2,FALSE) ) )","v":""},null,null,null,null,{"$f":"IF(TRIM(CG189)=\"\", \"\", IF(VLOOKUP(CG189,'Footnotes list'!$D$9:$E$58,2,FALSE)=0,\"\",VLOOKUP(CG189,'Footnotes list'!$D$9:$E$58,2,FALSE) ) )","v":""},null,null,null,null,{"$f":"IF(TRIM(CL189)=\"\", \"\", IF(VLOOKUP(CL189,'Footnotes list'!$D$9:$E$58,2,FALSE)=0,\"\",VLOOKUP(CL189,'Footnotes list'!$D$9:$E$58,2,FALSE) ) )","v":""},null,null,null,null,{"$f":"IF(TRIM(CQ189)=\"\", \"\", IF(VLOOKUP(CQ189,'Footnotes list'!$D$9:$E$58,2,FALSE)=0,\"\",VLOOKUP(CQ189,'Footnotes list'!$D$9:$E$58,2,FALSE) ) )","v":""},null,null,null,null,{"$f":"IF(TRIM(CV189)=\"\", \"\", IF(VLOOKUP(CV189,'Footnotes list'!$D$9:$E$58,2,FALSE)=0,\"\",VLOOKUP(CV189,'Footnotes list'!$D$9:$E$58,2,FALSE) ) )","v":""},null,null,null,null,{"$f":"IF(TRIM(DA189)=\"\", \"\", IF(VLOOKUP(DA189,'Footnotes list'!$D$9:$E$58,2,FALSE)=0,\"\",VLOOKUP(DA189,'Footnotes list'!$D$9:$E$58,2,FALSE) ) )","v":""},null,null,null,null,{"$f":"IF(TRIM(DF189)=\"\", \"\", IF(VLOOKUP(DF189,'Footnotes list'!$D$9:$E$58,2,FALSE)=0,\"\",VLOOKUP(DF189,'Footnotes list'!$D$9:$E$58,2,FALSE) ) )","v":""},null,null,null,null,{"$f":"IF(TRIM(DK189)=\"\", \"\", IF(VLOOKUP(DK189,'Footnotes list'!$D$9:$E$58,2,FALSE)=0,\"\",VLOOKUP(DK189,'Footnotes list'!$D$9:$E$58,2,FALSE) ) )","v":""},null,null,null,null,{"$f":"IF(TRIM(DP189)=\"\", \"\", IF(VLOOKUP(DP189,'Footnotes list'!$D$9:$E$58,2,FALSE)=0,\"\",VLOOKUP(DP189,'Footnotes list'!$D$9:$E$58,2,FALSE) ) )","v":""},null,null,null,null,{"$f":"IF(TRIM(DU189)=\"\", \"\", IF(VLOOKUP(DU189,'Footnotes list'!$D$9:$E$58,2,FALSE)=0,\"\",VLOOKUP(DU189,'Footnotes list'!$D$9:$E$58,2,FALSE) ) )","v":""},null,null,null,null,{"$f":"IF(TRIM(DZ189)=\"\", \"\", IF(VLOOKUP(DZ189,'Footnotes list'!$D$9:$E$58,2,FALSE)=0,\"\",VLOOKUP(DZ189,'Footnotes list'!$D$9:$E$58,2,FALSE) ) )","v":""},null,null,null,null,{"$f":"IF(TRIM(EE189)=\"\", \"\", IF(VLOOKUP(EE189,'Footnotes list'!$D$9:$E$58,2,FALSE)=0,\"\",VLOOKUP(EE189,'Footnotes list'!$D$9:$E$58,2,FALSE) ) )","v":""},null,null,null,null,{"$f":"IF(TRIM(EJ189)=\"\", \"\", IF(VLOOKUP(EJ189,'Footnotes list'!$D$9:$E$58,2,FALSE)=0,\"\",VLOOKUP(EJ189,'Footnotes list'!$D$9:$E$58,2,FALSE) ) )","v":""},null,null,null,null,{"$f":"IF(TRIM(EO189)=\"\", \"\", IF(VLOOKUP(EO189,'Footnotes list'!$D$9:$E$58,2,FALSE)=0,\"\",VLOOKUP(EO189,'Footnotes list'!$D$9:$E$58,2,FALSE) ) )","v":""},null,null,null,null,{"$f":"IF(TRIM(ET189)=\"\", \"\", IF(VLOOKUP(ET189,'Footnotes list'!$D$9:$E$58,2,FALSE)=0,\"\",VLOOKUP(ET189,'Footnotes list'!$D$9:$E$58,2,FALSE) ) )","v":""},null,null,null,null,{"$f":"IF(TRIM(EY189)=\"\", \"\", IF(VLOOKUP(EY189,'Footnotes list'!$D$9:$E$58,2,FALSE)=0,\"\",VLOOKUP(EY189,'Footnotes list'!$D$9:$E$58,2,FALSE) ) )","v":""}]
[null,null,"I","TOT_EGSS","Total I - Accommodation and food service activities, of which:",null,null,null,null,null,{"$f":"IF(TRIM(J190)=\"\", \"\", IF(VLOOKUP(J190,'Footnotes list'!$D$9:$E$58,2,FALSE)=0,\"\",VLOOKUP(J190,'Footnotes list'!$D$9:$E$58,2,FALSE) ) )","v":""},null,null,null,null,{"$f":"IF(TRIM(O190)=\"\", \"\", IF(VLOOKUP(O190,'Footnotes list'!$D$9:$E$58,2,FALSE)=0,\"\",VLOOKUP(O190,'Footnotes list'!$D$9:$E$58,2,FALSE) ) )","v":""},null,null,null,null,{"$f":"IF(TRIM(T190)=\"\", \"\", IF(VLOOKUP(T190,'Footnotes list'!$D$9:$E$58,2,FALSE)=0,\"\",VLOOKUP(T190,'Footnotes list'!$D$9:$E$58,2,FALSE) ) )","v":""},null,null,null,null,{"$f":"IF(TRIM(Y190)=\"\", \"\", IF(VLOOKUP(Y190,'Footnotes list'!$D$9:$E$58,2,FALSE)=0,\"\",VLOOKUP(Y190,'Footnotes list'!$D$9:$E$58,2,FALSE) ) )","v":""},null,null,null,null,{"$f":"IF(TRIM(AD190)=\"\", \"\", IF(VLOOKUP(AD190,'Footnotes list'!$D$9:$E$58,2,FALSE)=0,\"\",VLOOKUP(AD190,'Footnotes list'!$D$9:$E$58,2,FALSE) ) )","v":""},null,null,null,null,{"$f":"IF(TRIM(AI190)=\"\", \"\", IF(VLOOKUP(AI190,'Footnotes list'!$D$9:$E$58,2,FALSE)=0,\"\",VLOOKUP(AI190,'Footnotes list'!$D$9:$E$58,2,FALSE) ) )","v":""},null,null,null,null,{"$f":"IF(TRIM(AN190)=\"\", \"\", IF(VLOOKUP(AN190,'Footnotes list'!$D$9:$E$58,2,FALSE)=0,\"\",VLOOKUP(AN190,'Footnotes list'!$D$9:$E$58,2,FALSE) ) )","v":""},null,null,null,null,{"$f":"IF(TRIM(AS190)=\"\", \"\", IF(VLOOKUP(AS190,'Footnotes list'!$D$9:$E$58,2,FALSE)=0,\"\",VLOOKUP(AS190,'Footnotes list'!$D$9:$E$58,2,FALSE) ) )","v":""},null,null,null,null,{"$f":"IF(TRIM(AX190)=\"\", \"\", IF(VLOOKUP(AX190,'Footnotes list'!$D$9:$E$58,2,FALSE)=0,\"\",VLOOKUP(AX190,'Footnotes list'!$D$9:$E$58,2,FALSE) ) )","v":""},null,null,null,null,{"$f":"IF(TRIM(BC190)=\"\", \"\", IF(VLOOKUP(BC190,'Footnotes list'!$D$9:$E$58,2,FALSE)=0,\"\",VLOOKUP(BC190,'Footnotes list'!$D$9:$E$58,2,FALSE) ) )","v":""},null,null,null,null,{"$f":"IF(TRIM(BH190)=\"\", \"\", IF(VLOOKUP(BH190,'Footnotes list'!$D$9:$E$58,2,FALSE)=0,\"\",VLOOKUP(BH190,'Footnotes list'!$D$9:$E$58,2,FALSE) ) )","v":""},null,null,null,null,{"$f":"IF(TRIM(BM190)=\"\", \"\", IF(VLOOKUP(BM190,'Footnotes list'!$D$9:$E$58,2,FALSE)=0,\"\",VLOOKUP(BM190,'Footnotes list'!$D$9:$E$58,2,FALSE) ) )","v":""},null,null,null,null,{"$f":"IF(TRIM(BR190)=\"\", \"\", IF(VLOOKUP(BR190,'Footnotes list'!$D$9:$E$58,2,FALSE)=0,\"\",VLOOKUP(BR190,'Footnotes list'!$D$9:$E$58,2,FALSE) ) )","v":""},null,null,null,null,{"$f":"IF(TRIM(BW190)=\"\", \"\", IF(VLOOKUP(BW190,'Footnotes list'!$D$9:$E$58,2,FALSE)=0,\"\",VLOOKUP(BW190,'Footnotes list'!$D$9:$E$58,2,FALSE) ) )","v":""},null,null,null,null,{"$f":"IF(TRIM(CB190)=\"\", \"\", IF(VLOOKUP(CB190,'Footnotes list'!$D$9:$E$58,2,FALSE)=0,\"\",VLOOKUP(CB190,'Footnotes list'!$D$9:$E$58,2,FALSE) ) )","v":""},null,null,null,null,{"$f":"IF(TRIM(CG190)=\"\", \"\", IF(VLOOKUP(CG190,'Footnotes list'!$D$9:$E$58,2,FALSE)=0,\"\",VLOOKUP(CG190,'Footnotes list'!$D$9:$E$58,2,FALSE) ) )","v":""},null,null,null,null,{"$f":"IF(TRIM(CL190)=\"\", \"\", IF(VLOOKUP(CL190,'Footnotes list'!$D$9:$E$58,2,FALSE)=0,\"\",VLOOKUP(CL190,'Footnotes list'!$D$9:$E$58,2,FALSE) ) )","v":""},null,null,null,null,{"$f":"IF(TRIM(CQ190)=\"\", \"\", IF(VLOOKUP(CQ190,'Footnotes list'!$D$9:$E$58,2,FALSE)=0,\"\",VLOOKUP(CQ190,'Footnotes list'!$D$9:$E$58,2,FALSE) ) )","v":""},null,null,null,null,{"$f":"IF(TRIM(CV190)=\"\", \"\", IF(VLOOKUP(CV190,'Footnotes list'!$D$9:$E$58,2,FALSE)=0,\"\",VLOOKUP(CV190,'Footnotes list'!$D$9:$E$58,2,FALSE) ) )","v":""},null,null,null,null,{"$f":"IF(TRIM(DA190)=\"\", \"\", IF(VLOOKUP(DA190,'Footnotes list'!$D$9:$E$58,2,FALSE)=0,\"\",VLOOKUP(DA190,'Footnotes list'!$D$9:$E$58,2,FALSE) ) )","v":""},null,null,null,null,{"$f":"IF(TRIM(DF190)=\"\", \"\", IF(VLOOKUP(DF190,'Footnotes list'!$D$9:$E$58,2,FALSE)=0,\"\",VLOOKUP(DF190,'Footnotes list'!$D$9:$E$58,2,FALSE) ) )","v":""},null,null,null,null,{"$f":"IF(TRIM(DK190)=\"\", \"\", IF(VLOOKUP(DK190,'Footnotes list'!$D$9:$E$58,2,FALSE)=0,\"\",VLOOKUP(DK190,'Footnotes list'!$D$9:$E$58,2,FALSE) ) )","v":""},null,null,null,null,{"$f":"IF(TRIM(DP190)=\"\", \"\", IF(VLOOKUP(DP190,'Footnotes list'!$D$9:$E$58,2,FALSE)=0,\"\",VLOOKUP(DP190,'Footnotes list'!$D$9:$E$58,2,FALSE) ) )","v":""},null,null,null,null,{"$f":"IF(TRIM(DU190)=\"\", \"\", IF(VLOOKUP(DU190,'Footnotes list'!$D$9:$E$58,2,FALSE)=0,\"\",VLOOKUP(DU190,'Footnotes list'!$D$9:$E$58,2,FALSE) ) )","v":""},null,null,null,null,{"$f":"IF(TRIM(DZ190)=\"\", \"\", IF(VLOOKUP(DZ190,'Footnotes list'!$D$9:$E$58,2,FALSE)=0,\"\",VLOOKUP(DZ190,'Footnotes list'!$D$9:$E$58,2,FALSE) ) )","v":""},null,null,null,null,{"$f":"IF(TRIM(EE190)=\"\", \"\", IF(VLOOKUP(EE190,'Footnotes list'!$D$9:$E$58,2,FALSE)=0,\"\",VLOOKUP(EE190,'Footnotes list'!$D$9:$E$58,2,FALSE) ) )","v":""},null,null,null,null,{"$f":"IF(TRIM(EJ190)=\"\", \"\", IF(VLOOKUP(EJ190,'Footnotes list'!$D$9:$E$58,2,FALSE)=0,\"\",VLOOKUP(EJ190,'Footnotes list'!$D$9:$E$58,2,FALSE) ) )","v":""},null,null,null,null,{"$f":"IF(TRIM(EO190)=\"\", \"\", IF(VLOOKUP(EO190,'Footnotes list'!$D$9:$E$58,2,FALSE)=0,\"\",VLOOKUP(EO190,'Footnotes list'!$D$9:$E$58,2,FALSE) ) )","v":""},null,null,null,null,{"$f":"IF(TRIM(ET190)=\"\", \"\", IF(VLOOKUP(ET190,'Footnotes list'!$D$9:$E$58,2,FALSE)=0,\"\",VLOOKUP(ET190,'Footnotes list'!$D$9:$E$58,2,FALSE) ) )","v":""},null,null,null,null,{"$f":"IF(TRIM(EY190)=\"\", \"\", IF(VLOOKUP(EY190,'Footnotes list'!$D$9:$E$58,2,FALSE)=0,\"\",VLOOKUP(EY190,'Footnotes list'!$D$9:$E$58,2,FALSE) ) )","v":""}]
[null,null,"I","ANC","ancillary activities",null,null,null,null,null,{"$f":"IF(TRIM(J191)=\"\", \"\", IF(VLOOKUP(J191,'Footnotes list'!$D$9:$E$58,2,FALSE)=0,\"\",VLOOKUP(J191,'Footnotes list'!$D$9:$E$58,2,FALSE) ) )","v":""},null,null,null,null,{"$f":"IF(TRIM(O191)=\"\", \"\", IF(VLOOKUP(O191,'Footnotes list'!$D$9:$E$58,2,FALSE)=0,\"\",VLOOKUP(O191,'Footnotes list'!$D$9:$E$58,2,FALSE) ) )","v":""},null,null,null,null,{"$f":"IF(TRIM(T191)=\"\", \"\", IF(VLOOKUP(T191,'Footnotes list'!$D$9:$E$58,2,FALSE)=0,\"\",VLOOKUP(T191,'Footnotes list'!$D$9:$E$58,2,FALSE) ) )","v":""},null,null,null,null,{"$f":"IF(TRIM(Y191)=\"\", \"\", IF(VLOOKUP(Y191,'Footnotes list'!$D$9:$E$58,2,FALSE)=0,\"\",VLOOKUP(Y191,'Footnotes list'!$D$9:$E$58,2,FALSE) ) )","v":""},null,null,null,null,{"$f":"IF(TRIM(AD191)=\"\", \"\", IF(VLOOKUP(AD191,'Footnotes list'!$D$9:$E$58,2,FALSE)=0,\"\",VLOOKUP(AD191,'Footnotes list'!$D$9:$E$58,2,FALSE) ) )","v":""},null,null,null,null,{"$f":"IF(TRIM(AI191)=\"\", \"\", IF(VLOOKUP(AI191,'Footnotes list'!$D$9:$E$58,2,FALSE)=0,\"\",VLOOKUP(AI191,'Footnotes list'!$D$9:$E$58,2,FALSE) ) )","v":""},null,null,null,null,{"$f":"IF(TRIM(AN191)=\"\", \"\", IF(VLOOKUP(AN191,'Footnotes list'!$D$9:$E$58,2,FALSE)=0,\"\",VLOOKUP(AN191,'Footnotes list'!$D$9:$E$58,2,FALSE) ) )","v":""},null,null,null,null,{"$f":"IF(TRIM(AS191)=\"\", \"\", IF(VLOOKUP(AS191,'Footnotes list'!$D$9:$E$58,2,FALSE)=0,\"\",VLOOKUP(AS191,'Footnotes list'!$D$9:$E$58,2,FALSE) ) )","v":""},null,null,null,null,{"$f":"IF(TRIM(AX191)=\"\", \"\", IF(VLOOKUP(AX191,'Footnotes list'!$D$9:$E$58,2,FALSE)=0,\"\",VLOOKUP(AX191,'Footnotes list'!$D$9:$E$58,2,FALSE) ) )","v":""},null,null,null,null,{"$f":"IF(TRIM(BC191)=\"\", \"\", IF(VLOOKUP(BC191,'Footnotes list'!$D$9:$E$58,2,FALSE)=0,\"\",VLOOKUP(BC191,'Footnotes list'!$D$9:$E$58,2,FALSE) ) )","v":""},null,null,null,null,{"$f":"IF(TRIM(BH191)=\"\", \"\", IF(VLOOKUP(BH191,'Footnotes list'!$D$9:$E$58,2,FALSE)=0,\"\",VLOOKUP(BH191,'Footnotes list'!$D$9:$E$58,2,FALSE) ) )","v":""},null,null,null,null,{"$f":"IF(TRIM(BM191)=\"\", \"\", IF(VLOOKUP(BM191,'Footnotes list'!$D$9:$E$58,2,FALSE)=0,\"\",VLOOKUP(BM191,'Footnotes list'!$D$9:$E$58,2,FALSE) ) )","v":""},null,null,null,null,{"$f":"IF(TRIM(BR191)=\"\", \"\", IF(VLOOKUP(BR191,'Footnotes list'!$D$9:$E$58,2,FALSE)=0,\"\",VLOOKUP(BR191,'Footnotes list'!$D$9:$E$58,2,FALSE) ) )","v":""},null,null,null,null,{"$f":"IF(TRIM(BW191)=\"\", \"\", IF(VLOOKUP(BW191,'Footnotes list'!$D$9:$E$58,2,FALSE)=0,\"\",VLOOKUP(BW191,'Footnotes list'!$D$9:$E$58,2,FALSE) ) )","v":""},null,null,null,null,{"$f":"IF(TRIM(CB191)=\"\", \"\", IF(VLOOKUP(CB191,'Footnotes list'!$D$9:$E$58,2,FALSE)=0,\"\",VLOOKUP(CB191,'Footnotes list'!$D$9:$E$58,2,FALSE) ) )","v":""},null,null,null,null,{"$f":"IF(TRIM(CG191)=\"\", \"\", IF(VLOOKUP(CG191,'Footnotes list'!$D$9:$E$58,2,FALSE)=0,\"\",VLOOKUP(CG191,'Footnotes list'!$D$9:$E$58,2,FALSE) ) )","v":""},null,null,null,null,{"$f":"IF(TRIM(CL191)=\"\", \"\", IF(VLOOKUP(CL191,'Footnotes list'!$D$9:$E$58,2,FALSE)=0,\"\",VLOOKUP(CL191,'Footnotes list'!$D$9:$E$58,2,FALSE) ) )","v":""},null,null,null,null,{"$f":"IF(TRIM(CQ191)=\"\", \"\", IF(VLOOKUP(CQ191,'Footnotes list'!$D$9:$E$58,2,FALSE)=0,\"\",VLOOKUP(CQ191,'Footnotes list'!$D$9:$E$58,2,FALSE) ) )","v":""},null,null,null,null,{"$f":"IF(TRIM(CV191)=\"\", \"\", IF(VLOOKUP(CV191,'Footnotes list'!$D$9:$E$58,2,FALSE)=0,\"\",VLOOKUP(CV191,'Footnotes list'!$D$9:$E$58,2,FALSE) ) )","v":""},null,null,null,null,{"$f":"IF(TRIM(DA191)=\"\", \"\", IF(VLOOKUP(DA191,'Footnotes list'!$D$9:$E$58,2,FALSE)=0,\"\",VLOOKUP(DA191,'Footnotes list'!$D$9:$E$58,2,FALSE) ) )","v":""},null,null,null,null,{"$f":"IF(TRIM(DF191)=\"\", \"\", IF(VLOOKUP(DF191,'Footnotes list'!$D$9:$E$58,2,FALSE)=0,\"\",VLOOKUP(DF191,'Footnotes list'!$D$9:$E$58,2,FALSE) ) )","v":""},null,null,null,null,{"$f":"IF(TRIM(DK191)=\"\", \"\", IF(VLOOKUP(DK191,'Footnotes list'!$D$9:$E$58,2,FALSE)=0,\"\",VLOOKUP(DK191,'Footnotes list'!$D$9:$E$58,2,FALSE) ) )","v":""},null,null,null,null,{"$f":"IF(TRIM(DP191)=\"\", \"\", IF(VLOOKUP(DP191,'Footnotes list'!$D$9:$E$58,2,FALSE)=0,\"\",VLOOKUP(DP191,'Footnotes list'!$D$9:$E$58,2,FALSE) ) )","v":""},null,null,null,null,{"$f":"IF(TRIM(DU191)=\"\", \"\", IF(VLOOKUP(DU191,'Footnotes list'!$D$9:$E$58,2,FALSE)=0,\"\",VLOOKUP(DU191,'Footnotes list'!$D$9:$E$58,2,FALSE) ) )","v":""},null,null,null,null,{"$f":"IF(TRIM(DZ191)=\"\", \"\", IF(VLOOKUP(DZ191,'Footnotes list'!$D$9:$E$58,2,FALSE)=0,\"\",VLOOKUP(DZ191,'Footnotes list'!$D$9:$E$58,2,FALSE) ) )","v":""},null,null,null,null,{"$f":"IF(TRIM(EE191)=\"\", \"\", IF(VLOOKUP(EE191,'Footnotes list'!$D$9:$E$58,2,FALSE)=0,\"\",VLOOKUP(EE191,'Footnotes list'!$D$9:$E$58,2,FALSE) ) )","v":""},null,null,null,null,{"$f":"IF(TRIM(EJ191)=\"\", \"\", IF(VLOOKUP(EJ191,'Footnotes list'!$D$9:$E$58,2,FALSE)=0,\"\",VLOOKUP(EJ191,'Footnotes list'!$D$9:$E$58,2,FALSE) ) )","v":""},null,null,null,null,{"$f":"IF(TRIM(EO191)=\"\", \"\", IF(VLOOKUP(EO191,'Footnotes list'!$D$9:$E$58,2,FALSE)=0,\"\",VLOOKUP(EO191,'Footnotes list'!$D$9:$E$58,2,FALSE) ) )","v":""},null,null,null,null,{"$f":"IF(TRIM(ET191)=\"\", \"\", IF(VLOOKUP(ET191,'Footnotes list'!$D$9:$E$58,2,FALSE)=0,\"\",VLOOKUP(ET191,'Footnotes list'!$D$9:$E$58,2,FALSE) ) )","v":""},null,null,null,null,{"$f":"IF(TRIM(EY191)=\"\", \"\", IF(VLOOKUP(EY191,'Footnotes list'!$D$9:$E$58,2,FALSE)=0,\"\",VLOOKUP(EY191,'Footnotes list'!$D$9:$E$58,2,FALSE) ) )","v":""}]
[null,null,"I","NMKT","non-market activities",null,null,null,null,null,{"$f":"IF(TRIM(J192)=\"\", \"\", IF(VLOOKUP(J192,'Footnotes list'!$D$9:$E$58,2,FALSE)=0,\"\",VLOOKUP(J192,'Footnotes list'!$D$9:$E$58,2,FALSE) ) )","v":""},null,null,null,null,{"$f":"IF(TRIM(O192)=\"\", \"\", IF(VLOOKUP(O192,'Footnotes list'!$D$9:$E$58,2,FALSE)=0,\"\",VLOOKUP(O192,'Footnotes list'!$D$9:$E$58,2,FALSE) ) )","v":""},null,null,null,null,{"$f":"IF(TRIM(T192)=\"\", \"\", IF(VLOOKUP(T192,'Footnotes list'!$D$9:$E$58,2,FALSE)=0,\"\",VLOOKUP(T192,'Footnotes list'!$D$9:$E$58,2,FALSE) ) )","v":""},null,null,null,null,{"$f":"IF(TRIM(Y192)=\"\", \"\", IF(VLOOKUP(Y192,'Footnotes list'!$D$9:$E$58,2,FALSE)=0,\"\",VLOOKUP(Y192,'Footnotes list'!$D$9:$E$58,2,FALSE) ) )","v":""},null,null,null,null,{"$f":"IF(TRIM(AD192)=\"\", \"\", IF(VLOOKUP(AD192,'Footnotes list'!$D$9:$E$58,2,FALSE)=0,\"\",VLOOKUP(AD192,'Footnotes list'!$D$9:$E$58,2,FALSE) ) )","v":""},null,null,null,null,{"$f":"IF(TRIM(AI192)=\"\", \"\", IF(VLOOKUP(AI192,'Footnotes list'!$D$9:$E$58,2,FALSE)=0,\"\",VLOOKUP(AI192,'Footnotes list'!$D$9:$E$58,2,FALSE) ) )","v":""},null,null,null,null,{"$f":"IF(TRIM(AN192)=\"\", \"\", IF(VLOOKUP(AN192,'Footnotes list'!$D$9:$E$58,2,FALSE)=0,\"\",VLOOKUP(AN192,'Footnotes list'!$D$9:$E$58,2,FALSE) ) )","v":""},null,null,null,null,{"$f":"IF(TRIM(AS192)=\"\", \"\", IF(VLOOKUP(AS192,'Footnotes list'!$D$9:$E$58,2,FALSE)=0,\"\",VLOOKUP(AS192,'Footnotes list'!$D$9:$E$58,2,FALSE) ) )","v":""},null,null,null,null,{"$f":"IF(TRIM(AX192)=\"\", \"\", IF(VLOOKUP(AX192,'Footnotes list'!$D$9:$E$58,2,FALSE)=0,\"\",VLOOKUP(AX192,'Footnotes list'!$D$9:$E$58,2,FALSE) ) )","v":""},null,null,null,null,{"$f":"IF(TRIM(BC192)=\"\", \"\", IF(VLOOKUP(BC192,'Footnotes list'!$D$9:$E$58,2,FALSE)=0,\"\",VLOOKUP(BC192,'Footnotes list'!$D$9:$E$58,2,FALSE) ) )","v":""},null,null,null,null,{"$f":"IF(TRIM(BH192)=\"\", \"\", IF(VLOOKUP(BH192,'Footnotes list'!$D$9:$E$58,2,FALSE)=0,\"\",VLOOKUP(BH192,'Footnotes list'!$D$9:$E$58,2,FALSE) ) )","v":""},null,null,null,null,{"$f":"IF(TRIM(BM192)=\"\", \"\", IF(VLOOKUP(BM192,'Footnotes list'!$D$9:$E$58,2,FALSE)=0,\"\",VLOOKUP(BM192,'Footnotes list'!$D$9:$E$58,2,FALSE) ) )","v":""},null,null,null,null,{"$f":"IF(TRIM(BR192)=\"\", \"\", IF(VLOOKUP(BR192,'Footnotes list'!$D$9:$E$58,2,FALSE)=0,\"\",VLOOKUP(BR192,'Footnotes list'!$D$9:$E$58,2,FALSE) ) )","v":""},null,null,null,null,{"$f":"IF(TRIM(BW192)=\"\", \"\", IF(VLOOKUP(BW192,'Footnotes list'!$D$9:$E$58,2,FALSE)=0,\"\",VLOOKUP(BW192,'Footnotes list'!$D$9:$E$58,2,FALSE) ) )","v":""},null,null,null,null,{"$f":"IF(TRIM(CB192)=\"\", \"\", IF(VLOOKUP(CB192,'Footnotes list'!$D$9:$E$58,2,FALSE)=0,\"\",VLOOKUP(CB192,'Footnotes list'!$D$9:$E$58,2,FALSE) ) )","v":""},null,null,null,null,{"$f":"IF(TRIM(CG192)=\"\", \"\", IF(VLOOKUP(CG192,'Footnotes list'!$D$9:$E$58,2,FALSE)=0,\"\",VLOOKUP(CG192,'Footnotes list'!$D$9:$E$58,2,FALSE) ) )","v":""},null,null,null,null,{"$f":"IF(TRIM(CL192)=\"\", \"\", IF(VLOOKUP(CL192,'Footnotes list'!$D$9:$E$58,2,FALSE)=0,\"\",VLOOKUP(CL192,'Footnotes list'!$D$9:$E$58,2,FALSE) ) )","v":""},null,null,null,null,{"$f":"IF(TRIM(CQ192)=\"\", \"\", IF(VLOOKUP(CQ192,'Footnotes list'!$D$9:$E$58,2,FALSE)=0,\"\",VLOOKUP(CQ192,'Footnotes list'!$D$9:$E$58,2,FALSE) ) )","v":""},null,null,null,null,{"$f":"IF(TRIM(CV192)=\"\", \"\", IF(VLOOKUP(CV192,'Footnotes list'!$D$9:$E$58,2,FALSE)=0,\"\",VLOOKUP(CV192,'Footnotes list'!$D$9:$E$58,2,FALSE) ) )","v":""},null,null,null,null,{"$f":"IF(TRIM(DA192)=\"\", \"\", IF(VLOOKUP(DA192,'Footnotes list'!$D$9:$E$58,2,FALSE)=0,\"\",VLOOKUP(DA192,'Footnotes list'!$D$9:$E$58,2,FALSE) ) )","v":""},null,null,null,null,{"$f":"IF(TRIM(DF192)=\"\", \"\", IF(VLOOKUP(DF192,'Footnotes list'!$D$9:$E$58,2,FALSE)=0,\"\",VLOOKUP(DF192,'Footnotes list'!$D$9:$E$58,2,FALSE) ) )","v":""},null,null,null,null,{"$f":"IF(TRIM(DK192)=\"\", \"\", IF(VLOOKUP(DK192,'Footnotes list'!$D$9:$E$58,2,FALSE)=0,\"\",VLOOKUP(DK192,'Footnotes list'!$D$9:$E$58,2,FALSE) ) )","v":""},null,null,null,null,{"$f":"IF(TRIM(DP192)=\"\", \"\", IF(VLOOKUP(DP192,'Footnotes list'!$D$9:$E$58,2,FALSE)=0,\"\",VLOOKUP(DP192,'Footnotes list'!$D$9:$E$58,2,FALSE) ) )","v":""},null,null,null,null,{"$f":"IF(TRIM(DU192)=\"\", \"\", IF(VLOOKUP(DU192,'Footnotes list'!$D$9:$E$58,2,FALSE)=0,\"\",VLOOKUP(DU192,'Footnotes list'!$D$9:$E$58,2,FALSE) ) )","v":""},null,null,null,null,{"$f":"IF(TRIM(DZ192)=\"\", \"\", IF(VLOOKUP(DZ192,'Footnotes list'!$D$9:$E$58,2,FALSE)=0,\"\",VLOOKUP(DZ192,'Footnotes list'!$D$9:$E$58,2,FALSE) ) )","v":""},null,null,null,null,{"$f":"IF(TRIM(EE192)=\"\", \"\", IF(VLOOKUP(EE192,'Footnotes list'!$D$9:$E$58,2,FALSE)=0,\"\",VLOOKUP(EE192,'Footnotes list'!$D$9:$E$58,2,FALSE) ) )","v":""},null,null,null,null,{"$f":"IF(TRIM(EJ192)=\"\", \"\", IF(VLOOKUP(EJ192,'Footnotes list'!$D$9:$E$58,2,FALSE)=0,\"\",VLOOKUP(EJ192,'Footnotes list'!$D$9:$E$58,2,FALSE) ) )","v":""},null,null,null,null,{"$f":"IF(TRIM(EO192)=\"\", \"\", IF(VLOOKUP(EO192,'Footnotes list'!$D$9:$E$58,2,FALSE)=0,\"\",VLOOKUP(EO192,'Footnotes list'!$D$9:$E$58,2,FALSE) ) )","v":""},null,null,null,null,{"$f":"IF(TRIM(ET192)=\"\", \"\", IF(VLOOKUP(ET192,'Footnotes list'!$D$9:$E$58,2,FALSE)=0,\"\",VLOOKUP(ET192,'Footnotes list'!$D$9:$E$58,2,FALSE) ) )","v":""},null,null,null,null,{"$f":"IF(TRIM(EY192)=\"\", \"\", IF(VLOOKUP(EY192,'Footnotes list'!$D$9:$E$58,2,FALSE)=0,\"\",VLOOKUP(EY192,'Footnotes list'!$D$9:$E$58,2,FALSE) ) )","v":""}]
[null,null,"I","OWN_USE","activities for own final use",null,null,null,null,null,{"$f":"IF(TRIM(J193)=\"\", \"\", IF(VLOOKUP(J193,'Footnotes list'!$D$9:$E$58,2,FALSE)=0,\"\",VLOOKUP(J193,'Footnotes list'!$D$9:$E$58,2,FALSE) ) )","v":""},null,null,null,null,{"$f":"IF(TRIM(O193)=\"\", \"\", IF(VLOOKUP(O193,'Footnotes list'!$D$9:$E$58,2,FALSE)=0,\"\",VLOOKUP(O193,'Footnotes list'!$D$9:$E$58,2,FALSE) ) )","v":""},null,null,null,null,{"$f":"IF(TRIM(T193)=\"\", \"\", IF(VLOOKUP(T193,'Footnotes list'!$D$9:$E$58,2,FALSE)=0,\"\",VLOOKUP(T193,'Footnotes list'!$D$9:$E$58,2,FALSE) ) )","v":""},null,null,null,null,{"$f":"IF(TRIM(Y193)=\"\", \"\", IF(VLOOKUP(Y193,'Footnotes list'!$D$9:$E$58,2,FALSE)=0,\"\",VLOOKUP(Y193,'Footnotes list'!$D$9:$E$58,2,FALSE) ) )","v":""},null,null,null,null,{"$f":"IF(TRIM(AD193)=\"\", \"\", IF(VLOOKUP(AD193,'Footnotes list'!$D$9:$E$58,2,FALSE)=0,\"\",VLOOKUP(AD193,'Footnotes list'!$D$9:$E$58,2,FALSE) ) )","v":""},null,null,null,null,{"$f":"IF(TRIM(AI193)=\"\", \"\", IF(VLOOKUP(AI193,'Footnotes list'!$D$9:$E$58,2,FALSE)=0,\"\",VLOOKUP(AI193,'Footnotes list'!$D$9:$E$58,2,FALSE) ) )","v":""},null,null,null,null,{"$f":"IF(TRIM(AN193)=\"\", \"\", IF(VLOOKUP(AN193,'Footnotes list'!$D$9:$E$58,2,FALSE)=0,\"\",VLOOKUP(AN193,'Footnotes list'!$D$9:$E$58,2,FALSE) ) )","v":""},null,null,null,null,{"$f":"IF(TRIM(AS193)=\"\", \"\", IF(VLOOKUP(AS193,'Footnotes list'!$D$9:$E$58,2,FALSE)=0,\"\",VLOOKUP(AS193,'Footnotes list'!$D$9:$E$58,2,FALSE) ) )","v":""},null,null,null,null,{"$f":"IF(TRIM(AX193)=\"\", \"\", IF(VLOOKUP(AX193,'Footnotes list'!$D$9:$E$58,2,FALSE)=0,\"\",VLOOKUP(AX193,'Footnotes list'!$D$9:$E$58,2,FALSE) ) )","v":""},null,null,null,null,{"$f":"IF(TRIM(BC193)=\"\", \"\", IF(VLOOKUP(BC193,'Footnotes list'!$D$9:$E$58,2,FALSE)=0,\"\",VLOOKUP(BC193,'Footnotes list'!$D$9:$E$58,2,FALSE) ) )","v":""},null,null,null,null,{"$f":"IF(TRIM(BH193)=\"\", \"\", IF(VLOOKUP(BH193,'Footnotes list'!$D$9:$E$58,2,FALSE)=0,\"\",VLOOKUP(BH193,'Footnotes list'!$D$9:$E$58,2,FALSE) ) )","v":""},null,null,null,null,{"$f":"IF(TRIM(BM193)=\"\", \"\", IF(VLOOKUP(BM193,'Footnotes list'!$D$9:$E$58,2,FALSE)=0,\"\",VLOOKUP(BM193,'Footnotes list'!$D$9:$E$58,2,FALSE) ) )","v":""},null,null,null,null,{"$f":"IF(TRIM(BR193)=\"\", \"\", IF(VLOOKUP(BR193,'Footnotes list'!$D$9:$E$58,2,FALSE)=0,\"\",VLOOKUP(BR193,'Footnotes list'!$D$9:$E$58,2,FALSE) ) )","v":""},null,null,null,null,{"$f":"IF(TRIM(BW193)=\"\", \"\", IF(VLOOKUP(BW193,'Footnotes list'!$D$9:$E$58,2,FALSE)=0,\"\",VLOOKUP(BW193,'Footnotes list'!$D$9:$E$58,2,FALSE) ) )","v":""},null,null,null,null,{"$f":"IF(TRIM(CB193)=\"\", \"\", IF(VLOOKUP(CB193,'Footnotes list'!$D$9:$E$58,2,FALSE)=0,\"\",VLOOKUP(CB193,'Footnotes list'!$D$9:$E$58,2,FALSE) ) )","v":""},null,null,null,null,{"$f":"IF(TRIM(CG193)=\"\", \"\", IF(VLOOKUP(CG193,'Footnotes list'!$D$9:$E$58,2,FALSE)=0,\"\",VLOOKUP(CG193,'Footnotes list'!$D$9:$E$58,2,FALSE) ) )","v":""},null,null,null,null,{"$f":"IF(TRIM(CL193)=\"\", \"\", IF(VLOOKUP(CL193,'Footnotes list'!$D$9:$E$58,2,FALSE)=0,\"\",VLOOKUP(CL193,'Footnotes list'!$D$9:$E$58,2,FALSE) ) )","v":""},null,null,null,null,{"$f":"IF(TRIM(CQ193)=\"\", \"\", IF(VLOOKUP(CQ193,'Footnotes list'!$D$9:$E$58,2,FALSE)=0,\"\",VLOOKUP(CQ193,'Footnotes list'!$D$9:$E$58,2,FALSE) ) )","v":""},null,null,null,null,{"$f":"IF(TRIM(CV193)=\"\", \"\", IF(VLOOKUP(CV193,'Footnotes list'!$D$9:$E$58,2,FALSE)=0,\"\",VLOOKUP(CV193,'Footnotes list'!$D$9:$E$58,2,FALSE) ) )","v":""},null,null,null,null,{"$f":"IF(TRIM(DA193)=\"\", \"\", IF(VLOOKUP(DA193,'Footnotes list'!$D$9:$E$58,2,FALSE)=0,\"\",VLOOKUP(DA193,'Footnotes list'!$D$9:$E$58,2,FALSE) ) )","v":""},null,null,null,null,{"$f":"IF(TRIM(DF193)=\"\", \"\", IF(VLOOKUP(DF193,'Footnotes list'!$D$9:$E$58,2,FALSE)=0,\"\",VLOOKUP(DF193,'Footnotes list'!$D$9:$E$58,2,FALSE) ) )","v":""},null,null,null,null,{"$f":"IF(TRIM(DK193)=\"\", \"\", IF(VLOOKUP(DK193,'Footnotes list'!$D$9:$E$58,2,FALSE)=0,\"\",VLOOKUP(DK193,'Footnotes list'!$D$9:$E$58,2,FALSE) ) )","v":""},null,null,null,null,{"$f":"IF(TRIM(DP193)=\"\", \"\", IF(VLOOKUP(DP193,'Footnotes list'!$D$9:$E$58,2,FALSE)=0,\"\",VLOOKUP(DP193,'Footnotes list'!$D$9:$E$58,2,FALSE) ) )","v":""},null,null,null,null,{"$f":"IF(TRIM(DU193)=\"\", \"\", IF(VLOOKUP(DU193,'Footnotes list'!$D$9:$E$58,2,FALSE)=0,\"\",VLOOKUP(DU193,'Footnotes list'!$D$9:$E$58,2,FALSE) ) )","v":""},null,null,null,null,{"$f":"IF(TRIM(DZ193)=\"\", \"\", IF(VLOOKUP(DZ193,'Footnotes list'!$D$9:$E$58,2,FALSE)=0,\"\",VLOOKUP(DZ193,'Footnotes list'!$D$9:$E$58,2,FALSE) ) )","v":""},null,null,null,null,{"$f":"IF(TRIM(EE193)=\"\", \"\", IF(VLOOKUP(EE193,'Footnotes list'!$D$9:$E$58,2,FALSE)=0,\"\",VLOOKUP(EE193,'Footnotes list'!$D$9:$E$58,2,FALSE) ) )","v":""},null,null,null,null,{"$f":"IF(TRIM(EJ193)=\"\", \"\", IF(VLOOKUP(EJ193,'Footnotes list'!$D$9:$E$58,2,FALSE)=0,\"\",VLOOKUP(EJ193,'Footnotes list'!$D$9:$E$58,2,FALSE) ) )","v":""},null,null,null,null,{"$f":"IF(TRIM(EO193)=\"\", \"\", IF(VLOOKUP(EO193,'Footnotes list'!$D$9:$E$58,2,FALSE)=0,\"\",VLOOKUP(EO193,'Footnotes list'!$D$9:$E$58,2,FALSE) ) )","v":""},null,null,null,null,{"$f":"IF(TRIM(ET193)=\"\", \"\", IF(VLOOKUP(ET193,'Footnotes list'!$D$9:$E$58,2,FALSE)=0,\"\",VLOOKUP(ET193,'Footnotes list'!$D$9:$E$58,2,FALSE) ) )","v":""},null,null,null,null,{"$f":"IF(TRIM(EY193)=\"\", \"\", IF(VLOOKUP(EY193,'Footnotes list'!$D$9:$E$58,2,FALSE)=0,\"\",VLOOKUP(EY193,'Footnotes list'!$D$9:$E$58,2,FALSE) ) )","v":""}]
[null,null,"I","MKT","market activities, including:",null,null,null,null,null,{"$f":"IF(TRIM(J194)=\"\", \"\", IF(VLOOKUP(J194,'Footnotes list'!$D$9:$E$58,2,FALSE)=0,\"\",VLOOKUP(J194,'Footnotes list'!$D$9:$E$58,2,FALSE) ) )","v":""},null,null,null,null,{"$f":"IF(TRIM(O194)=\"\", \"\", IF(VLOOKUP(O194,'Footnotes list'!$D$9:$E$58,2,FALSE)=0,\"\",VLOOKUP(O194,'Footnotes list'!$D$9:$E$58,2,FALSE) ) )","v":""},null,null,null,null,{"$f":"IF(TRIM(T194)=\"\", \"\", IF(VLOOKUP(T194,'Footnotes list'!$D$9:$E$58,2,FALSE)=0,\"\",VLOOKUP(T194,'Footnotes list'!$D$9:$E$58,2,FALSE) ) )","v":""},null,null,null,null,{"$f":"IF(TRIM(Y194)=\"\", \"\", IF(VLOOKUP(Y194,'Footnotes list'!$D$9:$E$58,2,FALSE)=0,\"\",VLOOKUP(Y194,'Footnotes list'!$D$9:$E$58,2,FALSE) ) )","v":""},null,null,null,null,{"$f":"IF(TRIM(AD194)=\"\", \"\", IF(VLOOKUP(AD194,'Footnotes list'!$D$9:$E$58,2,FALSE)=0,\"\",VLOOKUP(AD194,'Footnotes list'!$D$9:$E$58,2,FALSE) ) )","v":""},null,null,null,null,{"$f":"IF(TRIM(AI194)=\"\", \"\", IF(VLOOKUP(AI194,'Footnotes list'!$D$9:$E$58,2,FALSE)=0,\"\",VLOOKUP(AI194,'Footnotes list'!$D$9:$E$58,2,FALSE) ) )","v":""},null,null,null,null,{"$f":"IF(TRIM(AN194)=\"\", \"\", IF(VLOOKUP(AN194,'Footnotes list'!$D$9:$E$58,2,FALSE)=0,\"\",VLOOKUP(AN194,'Footnotes list'!$D$9:$E$58,2,FALSE) ) )","v":""},null,null,null,null,{"$f":"IF(TRIM(AS194)=\"\", \"\", IF(VLOOKUP(AS194,'Footnotes list'!$D$9:$E$58,2,FALSE)=0,\"\",VLOOKUP(AS194,'Footnotes list'!$D$9:$E$58,2,FALSE) ) )","v":""},null,null,null,null,{"$f":"IF(TRIM(AX194)=\"\", \"\", IF(VLOOKUP(AX194,'Footnotes list'!$D$9:$E$58,2,FALSE)=0,\"\",VLOOKUP(AX194,'Footnotes list'!$D$9:$E$58,2,FALSE) ) )","v":""},null,null,null,null,{"$f":"IF(TRIM(BC194)=\"\", \"\", IF(VLOOKUP(BC194,'Footnotes list'!$D$9:$E$58,2,FALSE)=0,\"\",VLOOKUP(BC194,'Footnotes list'!$D$9:$E$58,2,FALSE) ) )","v":""},null,null,null,null,{"$f":"IF(TRIM(BH194)=\"\", \"\", IF(VLOOKUP(BH194,'Footnotes list'!$D$9:$E$58,2,FALSE)=0,\"\",VLOOKUP(BH194,'Footnotes list'!$D$9:$E$58,2,FALSE) ) )","v":""},null,null,null,null,{"$f":"IF(TRIM(BM194)=\"\", \"\", IF(VLOOKUP(BM194,'Footnotes list'!$D$9:$E$58,2,FALSE)=0,\"\",VLOOKUP(BM194,'Footnotes list'!$D$9:$E$58,2,FALSE) ) )","v":""},null,null,null,null,{"$f":"IF(TRIM(BR194)=\"\", \"\", IF(VLOOKUP(BR194,'Footnotes list'!$D$9:$E$58,2,FALSE)=0,\"\",VLOOKUP(BR194,'Footnotes list'!$D$9:$E$58,2,FALSE) ) )","v":""},null,null,null,null,{"$f":"IF(TRIM(BW194)=\"\", \"\", IF(VLOOKUP(BW194,'Footnotes list'!$D$9:$E$58,2,FALSE)=0,\"\",VLOOKUP(BW194,'Footnotes list'!$D$9:$E$58,2,FALSE) ) )","v":""},null,null,null,null,{"$f":"IF(TRIM(CB194)=\"\", \"\", IF(VLOOKUP(CB194,'Footnotes list'!$D$9:$E$58,2,FALSE)=0,\"\",VLOOKUP(CB194,'Footnotes list'!$D$9:$E$58,2,FALSE) ) )","v":""},null,null,null,null,{"$f":"IF(TRIM(CG194)=\"\", \"\", IF(VLOOKUP(CG194,'Footnotes list'!$D$9:$E$58,2,FALSE)=0,\"\",VLOOKUP(CG194,'Footnotes list'!$D$9:$E$58,2,FALSE) ) )","v":""},null,null,null,null,{"$f":"IF(TRIM(CL194)=\"\", \"\", IF(VLOOKUP(CL194,'Footnotes list'!$D$9:$E$58,2,FALSE)=0,\"\",VLOOKUP(CL194,'Footnotes list'!$D$9:$E$58,2,FALSE) ) )","v":""},null,null,null,null,{"$f":"IF(TRIM(CQ194)=\"\", \"\", IF(VLOOKUP(CQ194,'Footnotes list'!$D$9:$E$58,2,FALSE)=0,\"\",VLOOKUP(CQ194,'Footnotes list'!$D$9:$E$58,2,FALSE) ) )","v":""},null,null,null,null,{"$f":"IF(TRIM(CV194)=\"\", \"\", IF(VLOOKUP(CV194,'Footnotes list'!$D$9:$E$58,2,FALSE)=0,\"\",VLOOKUP(CV194,'Footnotes list'!$D$9:$E$58,2,FALSE) ) )","v":""},null,null,null,null,{"$f":"IF(TRIM(DA194)=\"\", \"\", IF(VLOOKUP(DA194,'Footnotes list'!$D$9:$E$58,2,FALSE)=0,\"\",VLOOKUP(DA194,'Footnotes list'!$D$9:$E$58,2,FALSE) ) )","v":""},null,null,null,null,{"$f":"IF(TRIM(DF194)=\"\", \"\", IF(VLOOKUP(DF194,'Footnotes list'!$D$9:$E$58,2,FALSE)=0,\"\",VLOOKUP(DF194,'Footnotes list'!$D$9:$E$58,2,FALSE) ) )","v":""},null,null,null,null,{"$f":"IF(TRIM(DK194)=\"\", \"\", IF(VLOOKUP(DK194,'Footnotes list'!$D$9:$E$58,2,FALSE)=0,\"\",VLOOKUP(DK194,'Footnotes list'!$D$9:$E$58,2,FALSE) ) )","v":""},null,null,null,null,{"$f":"IF(TRIM(DP194)=\"\", \"\", IF(VLOOKUP(DP194,'Footnotes list'!$D$9:$E$58,2,FALSE)=0,\"\",VLOOKUP(DP194,'Footnotes list'!$D$9:$E$58,2,FALSE) ) )","v":""},null,null,null,null,{"$f":"IF(TRIM(DU194)=\"\", \"\", IF(VLOOKUP(DU194,'Footnotes list'!$D$9:$E$58,2,FALSE)=0,\"\",VLOOKUP(DU194,'Footnotes list'!$D$9:$E$58,2,FALSE) ) )","v":""},null,null,null,null,{"$f":"IF(TRIM(DZ194)=\"\", \"\", IF(VLOOKUP(DZ194,'Footnotes list'!$D$9:$E$58,2,FALSE)=0,\"\",VLOOKUP(DZ194,'Footnotes list'!$D$9:$E$58,2,FALSE) ) )","v":""},null,null,null,null,{"$f":"IF(TRIM(EE194)=\"\", \"\", IF(VLOOKUP(EE194,'Footnotes list'!$D$9:$E$58,2,FALSE)=0,\"\",VLOOKUP(EE194,'Footnotes list'!$D$9:$E$58,2,FALSE) ) )","v":""},null,null,null,null,{"$f":"IF(TRIM(EJ194)=\"\", \"\", IF(VLOOKUP(EJ194,'Footnotes list'!$D$9:$E$58,2,FALSE)=0,\"\",VLOOKUP(EJ194,'Footnotes list'!$D$9:$E$58,2,FALSE) ) )","v":""},null,null,null,null,{"$f":"IF(TRIM(EO194)=\"\", \"\", IF(VLOOKUP(EO194,'Footnotes list'!$D$9:$E$58,2,FALSE)=0,\"\",VLOOKUP(EO194,'Footnotes list'!$D$9:$E$58,2,FALSE) ) )","v":""},null,null,null,null,{"$f":"IF(TRIM(ET194)=\"\", \"\", IF(VLOOKUP(ET194,'Footnotes list'!$D$9:$E$58,2,FALSE)=0,\"\",VLOOKUP(ET194,'Footnotes list'!$D$9:$E$58,2,FALSE) ) )","v":""},null,null,null,null,{"$f":"IF(TRIM(EY194)=\"\", \"\", IF(VLOOKUP(EY194,'Footnotes list'!$D$9:$E$58,2,FALSE)=0,\"\",VLOOKUP(EY194,'Footnotes list'!$D$9:$E$58,2,FALSE) ) )","v":""}]
[null,null,"I","ES_CS","environmental specific services",null,null,null,null,null,{"$f":"IF(TRIM(J195)=\"\", \"\", IF(VLOOKUP(J195,'Footnotes list'!$D$9:$E$58,2,FALSE)=0,\"\",VLOOKUP(J195,'Footnotes list'!$D$9:$E$58,2,FALSE) ) )","v":""},null,null,null,null,{"$f":"IF(TRIM(O195)=\"\", \"\", IF(VLOOKUP(O195,'Footnotes list'!$D$9:$E$58,2,FALSE)=0,\"\",VLOOKUP(O195,'Footnotes list'!$D$9:$E$58,2,FALSE) ) )","v":""},null,null,null,null,{"$f":"IF(TRIM(T195)=\"\", \"\", IF(VLOOKUP(T195,'Footnotes list'!$D$9:$E$58,2,FALSE)=0,\"\",VLOOKUP(T195,'Footnotes list'!$D$9:$E$58,2,FALSE) ) )","v":""},null,null,null,null,{"$f":"IF(TRIM(Y195)=\"\", \"\", IF(VLOOKUP(Y195,'Footnotes list'!$D$9:$E$58,2,FALSE)=0,\"\",VLOOKUP(Y195,'Footnotes list'!$D$9:$E$58,2,FALSE) ) )","v":""},null,null,null,null,{"$f":"IF(TRIM(AD195)=\"\", \"\", IF(VLOOKUP(AD195,'Footnotes list'!$D$9:$E$58,2,FALSE)=0,\"\",VLOOKUP(AD195,'Footnotes list'!$D$9:$E$58,2,FALSE) ) )","v":""},null,null,null,null,{"$f":"IF(TRIM(AI195)=\"\", \"\", IF(VLOOKUP(AI195,'Footnotes list'!$D$9:$E$58,2,FALSE)=0,\"\",VLOOKUP(AI195,'Footnotes list'!$D$9:$E$58,2,FALSE) ) )","v":""},null,null,null,null,{"$f":"IF(TRIM(AN195)=\"\", \"\", IF(VLOOKUP(AN195,'Footnotes list'!$D$9:$E$58,2,FALSE)=0,\"\",VLOOKUP(AN195,'Footnotes list'!$D$9:$E$58,2,FALSE) ) )","v":""},null,null,null,null,{"$f":"IF(TRIM(AS195)=\"\", \"\", IF(VLOOKUP(AS195,'Footnotes list'!$D$9:$E$58,2,FALSE)=0,\"\",VLOOKUP(AS195,'Footnotes list'!$D$9:$E$58,2,FALSE) ) )","v":""},null,null,null,null,{"$f":"IF(TRIM(AX195)=\"\", \"\", IF(VLOOKUP(AX195,'Footnotes list'!$D$9:$E$58,2,FALSE)=0,\"\",VLOOKUP(AX195,'Footnotes list'!$D$9:$E$58,2,FALSE) ) )","v":""},null,null,null,null,{"$f":"IF(TRIM(BC195)=\"\", \"\", IF(VLOOKUP(BC195,'Footnotes list'!$D$9:$E$58,2,FALSE)=0,\"\",VLOOKUP(BC195,'Footnotes list'!$D$9:$E$58,2,FALSE) ) )","v":""},null,null,null,null,{"$f":"IF(TRIM(BH195)=\"\", \"\", IF(VLOOKUP(BH195,'Footnotes list'!$D$9:$E$58,2,FALSE)=0,\"\",VLOOKUP(BH195,'Footnotes list'!$D$9:$E$58,2,FALSE) ) )","v":""},null,null,null,null,{"$f":"IF(TRIM(BM195)=\"\", \"\", IF(VLOOKUP(BM195,'Footnotes list'!$D$9:$E$58,2,FALSE)=0,\"\",VLOOKUP(BM195,'Footnotes list'!$D$9:$E$58,2,FALSE) ) )","v":""},null,null,null,null,{"$f":"IF(TRIM(BR195)=\"\", \"\", IF(VLOOKUP(BR195,'Footnotes list'!$D$9:$E$58,2,FALSE)=0,\"\",VLOOKUP(BR195,'Footnotes list'!$D$9:$E$58,2,FALSE) ) )","v":""},null,null,null,null,{"$f":"IF(TRIM(BW195)=\"\", \"\", IF(VLOOKUP(BW195,'Footnotes list'!$D$9:$E$58,2,FALSE)=0,\"\",VLOOKUP(BW195,'Footnotes list'!$D$9:$E$58,2,FALSE) ) )","v":""},null,null,null,null,{"$f":"IF(TRIM(CB195)=\"\", \"\", IF(VLOOKUP(CB195,'Footnotes list'!$D$9:$E$58,2,FALSE)=0,\"\",VLOOKUP(CB195,'Footnotes list'!$D$9:$E$58,2,FALSE) ) )","v":""},null,null,null,null,{"$f":"IF(TRIM(CG195)=\"\", \"\", IF(VLOOKUP(CG195,'Footnotes list'!$D$9:$E$58,2,FALSE)=0,\"\",VLOOKUP(CG195,'Footnotes list'!$D$9:$E$58,2,FALSE) ) )","v":""},null,null,null,null,{"$f":"IF(TRIM(CL195)=\"\", \"\", IF(VLOOKUP(CL195,'Footnotes list'!$D$9:$E$58,2,FALSE)=0,\"\",VLOOKUP(CL195,'Footnotes list'!$D$9:$E$58,2,FALSE) ) )","v":""},null,null,null,null,{"$f":"IF(TRIM(CQ195)=\"\", \"\", IF(VLOOKUP(CQ195,'Footnotes list'!$D$9:$E$58,2,FALSE)=0,\"\",VLOOKUP(CQ195,'Footnotes list'!$D$9:$E$58,2,FALSE) ) )","v":""},null,null,null,null,{"$f":"IF(TRIM(CV195)=\"\", \"\", IF(VLOOKUP(CV195,'Footnotes list'!$D$9:$E$58,2,FALSE)=0,\"\",VLOOKUP(CV195,'Footnotes list'!$D$9:$E$58,2,FALSE) ) )","v":""},null,null,null,null,{"$f":"IF(TRIM(DA195)=\"\", \"\", IF(VLOOKUP(DA195,'Footnotes list'!$D$9:$E$58,2,FALSE)=0,\"\",VLOOKUP(DA195,'Footnotes list'!$D$9:$E$58,2,FALSE) ) )","v":""},null,null,null,null,{"$f":"IF(TRIM(DF195)=\"\", \"\", IF(VLOOKUP(DF195,'Footnotes list'!$D$9:$E$58,2,FALSE)=0,\"\",VLOOKUP(DF195,'Footnotes list'!$D$9:$E$58,2,FALSE) ) )","v":""},null,null,null,null,{"$f":"IF(TRIM(DK195)=\"\", \"\", IF(VLOOKUP(DK195,'Footnotes list'!$D$9:$E$58,2,FALSE)=0,\"\",VLOOKUP(DK195,'Footnotes list'!$D$9:$E$58,2,FALSE) ) )","v":""},null,null,null,null,{"$f":"IF(TRIM(DP195)=\"\", \"\", IF(VLOOKUP(DP195,'Footnotes list'!$D$9:$E$58,2,FALSE)=0,\"\",VLOOKUP(DP195,'Footnotes list'!$D$9:$E$58,2,FALSE) ) )","v":""},null,null,null,null,{"$f":"IF(TRIM(DU195)=\"\", \"\", IF(VLOOKUP(DU195,'Footnotes list'!$D$9:$E$58,2,FALSE)=0,\"\",VLOOKUP(DU195,'Footnotes list'!$D$9:$E$58,2,FALSE) ) )","v":""},null,null,null,null,{"$f":"IF(TRIM(DZ195)=\"\", \"\", IF(VLOOKUP(DZ195,'Footnotes list'!$D$9:$E$58,2,FALSE)=0,\"\",VLOOKUP(DZ195,'Footnotes list'!$D$9:$E$58,2,FALSE) ) )","v":""},null,null,null,null,{"$f":"IF(TRIM(EE195)=\"\", \"\", IF(VLOOKUP(EE195,'Footnotes list'!$D$9:$E$58,2,FALSE)=0,\"\",VLOOKUP(EE195,'Footnotes list'!$D$9:$E$58,2,FALSE) ) )","v":""},null,null,null,null,{"$f":"IF(TRIM(EJ195)=\"\", \"\", IF(VLOOKUP(EJ195,'Footnotes list'!$D$9:$E$58,2,FALSE)=0,\"\",VLOOKUP(EJ195,'Footnotes list'!$D$9:$E$58,2,FALSE) ) )","v":""},null,null,null,null,{"$f":"IF(TRIM(EO195)=\"\", \"\", IF(VLOOKUP(EO195,'Footnotes list'!$D$9:$E$58,2,FALSE)=0,\"\",VLOOKUP(EO195,'Footnotes list'!$D$9:$E$58,2,FALSE) ) )","v":""},null,null,null,null,{"$f":"IF(TRIM(ET195)=\"\", \"\", IF(VLOOKUP(ET195,'Footnotes list'!$D$9:$E$58,2,FALSE)=0,\"\",VLOOKUP(ET195,'Footnotes list'!$D$9:$E$58,2,FALSE) ) )","v":""},null,null,null,null,{"$f":"IF(TRIM(EY195)=\"\", \"\", IF(VLOOKUP(EY195,'Footnotes list'!$D$9:$E$58,2,FALSE)=0,\"\",VLOOKUP(EY195,'Footnotes list'!$D$9:$E$58,2,FALSE) ) )","v":""}]
[null,null,"I","C_REP","cleaner and resource efficient products",null,null,null,null,null,{"$f":"IF(TRIM(J196)=\"\", \"\", IF(VLOOKUP(J196,'Footnotes list'!$D$9:$E$58,2,FALSE)=0,\"\",VLOOKUP(J196,'Footnotes list'!$D$9:$E$58,2,FALSE) ) )","v":""},null,null,null,null,{"$f":"IF(TRIM(O196)=\"\", \"\", IF(VLOOKUP(O196,'Footnotes list'!$D$9:$E$58,2,FALSE)=0,\"\",VLOOKUP(O196,'Footnotes list'!$D$9:$E$58,2,FALSE) ) )","v":""},null,null,null,null,{"$f":"IF(TRIM(T196)=\"\", \"\", IF(VLOOKUP(T196,'Footnotes list'!$D$9:$E$58,2,FALSE)=0,\"\",VLOOKUP(T196,'Footnotes list'!$D$9:$E$58,2,FALSE) ) )","v":""},null,null,null,null,{"$f":"IF(TRIM(Y196)=\"\", \"\", IF(VLOOKUP(Y196,'Footnotes list'!$D$9:$E$58,2,FALSE)=0,\"\",VLOOKUP(Y196,'Footnotes list'!$D$9:$E$58,2,FALSE) ) )","v":""},null,null,null,null,{"$f":"IF(TRIM(AD196)=\"\", \"\", IF(VLOOKUP(AD196,'Footnotes list'!$D$9:$E$58,2,FALSE)=0,\"\",VLOOKUP(AD196,'Footnotes list'!$D$9:$E$58,2,FALSE) ) )","v":""},null,null,null,null,{"$f":"IF(TRIM(AI196)=\"\", \"\", IF(VLOOKUP(AI196,'Footnotes list'!$D$9:$E$58,2,FALSE)=0,\"\",VLOOKUP(AI196,'Footnotes list'!$D$9:$E$58,2,FALSE) ) )","v":""},null,null,null,null,{"$f":"IF(TRIM(AN196)=\"\", \"\", IF(VLOOKUP(AN196,'Footnotes list'!$D$9:$E$58,2,FALSE)=0,\"\",VLOOKUP(AN196,'Footnotes list'!$D$9:$E$58,2,FALSE) ) )","v":""},null,null,null,null,{"$f":"IF(TRIM(AS196)=\"\", \"\", IF(VLOOKUP(AS196,'Footnotes list'!$D$9:$E$58,2,FALSE)=0,\"\",VLOOKUP(AS196,'Footnotes list'!$D$9:$E$58,2,FALSE) ) )","v":""},null,null,null,null,{"$f":"IF(TRIM(AX196)=\"\", \"\", IF(VLOOKUP(AX196,'Footnotes list'!$D$9:$E$58,2,FALSE)=0,\"\",VLOOKUP(AX196,'Footnotes list'!$D$9:$E$58,2,FALSE) ) )","v":""},null,null,null,null,{"$f":"IF(TRIM(BC196)=\"\", \"\", IF(VLOOKUP(BC196,'Footnotes list'!$D$9:$E$58,2,FALSE)=0,\"\",VLOOKUP(BC196,'Footnotes list'!$D$9:$E$58,2,FALSE) ) )","v":""},null,null,null,null,{"$f":"IF(TRIM(BH196)=\"\", \"\", IF(VLOOKUP(BH196,'Footnotes list'!$D$9:$E$58,2,FALSE)=0,\"\",VLOOKUP(BH196,'Footnotes list'!$D$9:$E$58,2,FALSE) ) )","v":""},null,null,null,null,{"$f":"IF(TRIM(BM196)=\"\", \"\", IF(VLOOKUP(BM196,'Footnotes list'!$D$9:$E$58,2,FALSE)=0,\"\",VLOOKUP(BM196,'Footnotes list'!$D$9:$E$58,2,FALSE) ) )","v":""},null,null,null,null,{"$f":"IF(TRIM(BR196)=\"\", \"\", IF(VLOOKUP(BR196,'Footnotes list'!$D$9:$E$58,2,FALSE)=0,\"\",VLOOKUP(BR196,'Footnotes list'!$D$9:$E$58,2,FALSE) ) )","v":""},null,null,null,null,{"$f":"IF(TRIM(BW196)=\"\", \"\", IF(VLOOKUP(BW196,'Footnotes list'!$D$9:$E$58,2,FALSE)=0,\"\",VLOOKUP(BW196,'Footnotes list'!$D$9:$E$58,2,FALSE) ) )","v":""},null,null,null,null,{"$f":"IF(TRIM(CB196)=\"\", \"\", IF(VLOOKUP(CB196,'Footnotes list'!$D$9:$E$58,2,FALSE)=0,\"\",VLOOKUP(CB196,'Footnotes list'!$D$9:$E$58,2,FALSE) ) )","v":""},null,null,null,null,{"$f":"IF(TRIM(CG196)=\"\", \"\", IF(VLOOKUP(CG196,'Footnotes list'!$D$9:$E$58,2,FALSE)=0,\"\",VLOOKUP(CG196,'Footnotes list'!$D$9:$E$58,2,FALSE) ) )","v":""},null,null,null,null,{"$f":"IF(TRIM(CL196)=\"\", \"\", IF(VLOOKUP(CL196,'Footnotes list'!$D$9:$E$58,2,FALSE)=0,\"\",VLOOKUP(CL196,'Footnotes list'!$D$9:$E$58,2,FALSE) ) )","v":""},null,null,null,null,{"$f":"IF(TRIM(CQ196)=\"\", \"\", IF(VLOOKUP(CQ196,'Footnotes list'!$D$9:$E$58,2,FALSE)=0,\"\",VLOOKUP(CQ196,'Footnotes list'!$D$9:$E$58,2,FALSE) ) )","v":""},null,null,null,null,{"$f":"IF(TRIM(CV196)=\"\", \"\", IF(VLOOKUP(CV196,'Footnotes list'!$D$9:$E$58,2,FALSE)=0,\"\",VLOOKUP(CV196,'Footnotes list'!$D$9:$E$58,2,FALSE) ) )","v":""},null,null,null,null,{"$f":"IF(TRIM(DA196)=\"\", \"\", IF(VLOOKUP(DA196,'Footnotes list'!$D$9:$E$58,2,FALSE)=0,\"\",VLOOKUP(DA196,'Footnotes list'!$D$9:$E$58,2,FALSE) ) )","v":""},null,null,null,null,{"$f":"IF(TRIM(DF196)=\"\", \"\", IF(VLOOKUP(DF196,'Footnotes list'!$D$9:$E$58,2,FALSE)=0,\"\",VLOOKUP(DF196,'Footnotes list'!$D$9:$E$58,2,FALSE) ) )","v":""},null,null,null,null,{"$f":"IF(TRIM(DK196)=\"\", \"\", IF(VLOOKUP(DK196,'Footnotes list'!$D$9:$E$58,2,FALSE)=0,\"\",VLOOKUP(DK196,'Footnotes list'!$D$9:$E$58,2,FALSE) ) )","v":""},null,null,null,null,{"$f":"IF(TRIM(DP196)=\"\", \"\", IF(VLOOKUP(DP196,'Footnotes list'!$D$9:$E$58,2,FALSE)=0,\"\",VLOOKUP(DP196,'Footnotes list'!$D$9:$E$58,2,FALSE) ) )","v":""},null,null,null,null,{"$f":"IF(TRIM(DU196)=\"\", \"\", IF(VLOOKUP(DU196,'Footnotes list'!$D$9:$E$58,2,FALSE)=0,\"\",VLOOKUP(DU196,'Footnotes list'!$D$9:$E$58,2,FALSE) ) )","v":""},null,null,null,null,{"$f":"IF(TRIM(DZ196)=\"\", \"\", IF(VLOOKUP(DZ196,'Footnotes list'!$D$9:$E$58,2,FALSE)=0,\"\",VLOOKUP(DZ196,'Footnotes list'!$D$9:$E$58,2,FALSE) ) )","v":""},null,null,null,null,{"$f":"IF(TRIM(EE196)=\"\", \"\", IF(VLOOKUP(EE196,'Footnotes list'!$D$9:$E$58,2,FALSE)=0,\"\",VLOOKUP(EE196,'Footnotes list'!$D$9:$E$58,2,FALSE) ) )","v":""},null,null,null,null,{"$f":"IF(TRIM(EJ196)=\"\", \"\", IF(VLOOKUP(EJ196,'Footnotes list'!$D$9:$E$58,2,FALSE)=0,\"\",VLOOKUP(EJ196,'Footnotes list'!$D$9:$E$58,2,FALSE) ) )","v":""},null,null,null,null,{"$f":"IF(TRIM(EO196)=\"\", \"\", IF(VLOOKUP(EO196,'Footnotes list'!$D$9:$E$58,2,FALSE)=0,\"\",VLOOKUP(EO196,'Footnotes list'!$D$9:$E$58,2,FALSE) ) )","v":""},null,null,null,null,{"$f":"IF(TRIM(ET196)=\"\", \"\", IF(VLOOKUP(ET196,'Footnotes list'!$D$9:$E$58,2,FALSE)=0,\"\",VLOOKUP(ET196,'Footnotes list'!$D$9:$E$58,2,FALSE) ) )","v":""},null,null,null,null,{"$f":"IF(TRIM(EY196)=\"\", \"\", IF(VLOOKUP(EY196,'Footnotes list'!$D$9:$E$58,2,FALSE)=0,\"\",VLOOKUP(EY196,'Footnotes list'!$D$9:$E$58,2,FALSE) ) )","v":""}]
[null,null,"J","TOT_EGSS","Total J - Information and communication, of which:",null,null,null,null,null,{"$f":"IF(TRIM(J197)=\"\", \"\", IF(VLOOKUP(J197,'Footnotes list'!$D$9:$E$58,2,FALSE)=0,\"\",VLOOKUP(J197,'Footnotes list'!$D$9:$E$58,2,FALSE) ) )","v":""},null,null,null,null,{"$f":"IF(TRIM(O197)=\"\", \"\", IF(VLOOKUP(O197,'Footnotes list'!$D$9:$E$58,2,FALSE)=0,\"\",VLOOKUP(O197,'Footnotes list'!$D$9:$E$58,2,FALSE) ) )","v":""},null,null,null,null,{"$f":"IF(TRIM(T197)=\"\", \"\", IF(VLOOKUP(T197,'Footnotes list'!$D$9:$E$58,2,FALSE)=0,\"\",VLOOKUP(T197,'Footnotes list'!$D$9:$E$58,2,FALSE) ) )","v":""},null,null,null,null,{"$f":"IF(TRIM(Y197)=\"\", \"\", IF(VLOOKUP(Y197,'Footnotes list'!$D$9:$E$58,2,FALSE)=0,\"\",VLOOKUP(Y197,'Footnotes list'!$D$9:$E$58,2,FALSE) ) )","v":""},null,null,null,null,{"$f":"IF(TRIM(AD197)=\"\", \"\", IF(VLOOKUP(AD197,'Footnotes list'!$D$9:$E$58,2,FALSE)=0,\"\",VLOOKUP(AD197,'Footnotes list'!$D$9:$E$58,2,FALSE) ) )","v":""},null,null,null,null,{"$f":"IF(TRIM(AI197)=\"\", \"\", IF(VLOOKUP(AI197,'Footnotes list'!$D$9:$E$58,2,FALSE)=0,\"\",VLOOKUP(AI197,'Footnotes list'!$D$9:$E$58,2,FALSE) ) )","v":""},null,null,null,null,{"$f":"IF(TRIM(AN197)=\"\", \"\", IF(VLOOKUP(AN197,'Footnotes list'!$D$9:$E$58,2,FALSE)=0,\"\",VLOOKUP(AN197,'Footnotes list'!$D$9:$E$58,2,FALSE) ) )","v":""},null,null,null,null,{"$f":"IF(TRIM(AS197)=\"\", \"\", IF(VLOOKUP(AS197,'Footnotes list'!$D$9:$E$58,2,FALSE)=0,\"\",VLOOKUP(AS197,'Footnotes list'!$D$9:$E$58,2,FALSE) ) )","v":""},null,null,null,null,{"$f":"IF(TRIM(AX197)=\"\", \"\", IF(VLOOKUP(AX197,'Footnotes list'!$D$9:$E$58,2,FALSE)=0,\"\",VLOOKUP(AX197,'Footnotes list'!$D$9:$E$58,2,FALSE) ) )","v":""},null,null,null,null,{"$f":"IF(TRIM(BC197)=\"\", \"\", IF(VLOOKUP(BC197,'Footnotes list'!$D$9:$E$58,2,FALSE)=0,\"\",VLOOKUP(BC197,'Footnotes list'!$D$9:$E$58,2,FALSE) ) )","v":""},null,null,null,null,{"$f":"IF(TRIM(BH197)=\"\", \"\", IF(VLOOKUP(BH197,'Footnotes list'!$D$9:$E$58,2,FALSE)=0,\"\",VLOOKUP(BH197,'Footnotes list'!$D$9:$E$58,2,FALSE) ) )","v":""},null,null,null,null,{"$f":"IF(TRIM(BM197)=\"\", \"\", IF(VLOOKUP(BM197,'Footnotes list'!$D$9:$E$58,2,FALSE)=0,\"\",VLOOKUP(BM197,'Footnotes list'!$D$9:$E$58,2,FALSE) ) )","v":""},null,null,null,null,{"$f":"IF(TRIM(BR197)=\"\", \"\", IF(VLOOKUP(BR197,'Footnotes list'!$D$9:$E$58,2,FALSE)=0,\"\",VLOOKUP(BR197,'Footnotes list'!$D$9:$E$58,2,FALSE) ) )","v":""},null,null,null,null,{"$f":"IF(TRIM(BW197)=\"\", \"\", IF(VLOOKUP(BW197,'Footnotes list'!$D$9:$E$58,2,FALSE)=0,\"\",VLOOKUP(BW197,'Footnotes list'!$D$9:$E$58,2,FALSE) ) )","v":""},null,null,null,null,{"$f":"IF(TRIM(CB197)=\"\", \"\", IF(VLOOKUP(CB197,'Footnotes list'!$D$9:$E$58,2,FALSE)=0,\"\",VLOOKUP(CB197,'Footnotes list'!$D$9:$E$58,2,FALSE) ) )","v":""},null,null,null,null,{"$f":"IF(TRIM(CG197)=\"\", \"\", IF(VLOOKUP(CG197,'Footnotes list'!$D$9:$E$58,2,FALSE)=0,\"\",VLOOKUP(CG197,'Footnotes list'!$D$9:$E$58,2,FALSE) ) )","v":""},null,null,null,null,{"$f":"IF(TRIM(CL197)=\"\", \"\", IF(VLOOKUP(CL197,'Footnotes list'!$D$9:$E$58,2,FALSE)=0,\"\",VLOOKUP(CL197,'Footnotes list'!$D$9:$E$58,2,FALSE) ) )","v":""},null,null,null,null,{"$f":"IF(TRIM(CQ197)=\"\", \"\", IF(VLOOKUP(CQ197,'Footnotes list'!$D$9:$E$58,2,FALSE)=0,\"\",VLOOKUP(CQ197,'Footnotes list'!$D$9:$E$58,2,FALSE) ) )","v":""},null,null,null,null,{"$f":"IF(TRIM(CV197)=\"\", \"\", IF(VLOOKUP(CV197,'Footnotes list'!$D$9:$E$58,2,FALSE)=0,\"\",VLOOKUP(CV197,'Footnotes list'!$D$9:$E$58,2,FALSE) ) )","v":""},null,null,null,null,{"$f":"IF(TRIM(DA197)=\"\", \"\", IF(VLOOKUP(DA197,'Footnotes list'!$D$9:$E$58,2,FALSE)=0,\"\",VLOOKUP(DA197,'Footnotes list'!$D$9:$E$58,2,FALSE) ) )","v":""},null,null,null,null,{"$f":"IF(TRIM(DF197)=\"\", \"\", IF(VLOOKUP(DF197,'Footnotes list'!$D$9:$E$58,2,FALSE)=0,\"\",VLOOKUP(DF197,'Footnotes list'!$D$9:$E$58,2,FALSE) ) )","v":""},null,null,null,null,{"$f":"IF(TRIM(DK197)=\"\", \"\", IF(VLOOKUP(DK197,'Footnotes list'!$D$9:$E$58,2,FALSE)=0,\"\",VLOOKUP(DK197,'Footnotes list'!$D$9:$E$58,2,FALSE) ) )","v":""},null,null,null,null,{"$f":"IF(TRIM(DP197)=\"\", \"\", IF(VLOOKUP(DP197,'Footnotes list'!$D$9:$E$58,2,FALSE)=0,\"\",VLOOKUP(DP197,'Footnotes list'!$D$9:$E$58,2,FALSE) ) )","v":""},null,null,null,null,{"$f":"IF(TRIM(DU197)=\"\", \"\", IF(VLOOKUP(DU197,'Footnotes list'!$D$9:$E$58,2,FALSE)=0,\"\",VLOOKUP(DU197,'Footnotes list'!$D$9:$E$58,2,FALSE) ) )","v":""},null,null,null,null,{"$f":"IF(TRIM(DZ197)=\"\", \"\", IF(VLOOKUP(DZ197,'Footnotes list'!$D$9:$E$58,2,FALSE)=0,\"\",VLOOKUP(DZ197,'Footnotes list'!$D$9:$E$58,2,FALSE) ) )","v":""},null,null,null,null,{"$f":"IF(TRIM(EE197)=\"\", \"\", IF(VLOOKUP(EE197,'Footnotes list'!$D$9:$E$58,2,FALSE)=0,\"\",VLOOKUP(EE197,'Footnotes list'!$D$9:$E$58,2,FALSE) ) )","v":""},null,null,null,null,{"$f":"IF(TRIM(EJ197)=\"\", \"\", IF(VLOOKUP(EJ197,'Footnotes list'!$D$9:$E$58,2,FALSE)=0,\"\",VLOOKUP(EJ197,'Footnotes list'!$D$9:$E$58,2,FALSE) ) )","v":""},null,null,null,null,{"$f":"IF(TRIM(EO197)=\"\", \"\", IF(VLOOKUP(EO197,'Footnotes list'!$D$9:$E$58,2,FALSE)=0,\"\",VLOOKUP(EO197,'Footnotes list'!$D$9:$E$58,2,FALSE) ) )","v":""},null,null,null,null,{"$f":"IF(TRIM(ET197)=\"\", \"\", IF(VLOOKUP(ET197,'Footnotes list'!$D$9:$E$58,2,FALSE)=0,\"\",VLOOKUP(ET197,'Footnotes list'!$D$9:$E$58,2,FALSE) ) )","v":""},null,null,null,null,{"$f":"IF(TRIM(EY197)=\"\", \"\", IF(VLOOKUP(EY197,'Footnotes list'!$D$9:$E$58,2,FALSE)=0,\"\",VLOOKUP(EY197,'Footnotes list'!$D$9:$E$58,2,FALSE) ) )","v":""}]
[null,null,"J","ANC","ancillary activities",null,null,null,null,null,{"$f":"IF(TRIM(J198)=\"\", \"\", IF(VLOOKUP(J198,'Footnotes list'!$D$9:$E$58,2,FALSE)=0,\"\",VLOOKUP(J198,'Footnotes list'!$D$9:$E$58,2,FALSE) ) )","v":""},null,null,null,null,{"$f":"IF(TRIM(O198)=\"\", \"\", IF(VLOOKUP(O198,'Footnotes list'!$D$9:$E$58,2,FALSE)=0,\"\",VLOOKUP(O198,'Footnotes list'!$D$9:$E$58,2,FALSE) ) )","v":""},null,null,null,null,{"$f":"IF(TRIM(T198)=\"\", \"\", IF(VLOOKUP(T198,'Footnotes list'!$D$9:$E$58,2,FALSE)=0,\"\",VLOOKUP(T198,'Footnotes list'!$D$9:$E$58,2,FALSE) ) )","v":""},null,null,null,null,{"$f":"IF(TRIM(Y198)=\"\", \"\", IF(VLOOKUP(Y198,'Footnotes list'!$D$9:$E$58,2,FALSE)=0,\"\",VLOOKUP(Y198,'Footnotes list'!$D$9:$E$58,2,FALSE) ) )","v":""},null,null,null,null,{"$f":"IF(TRIM(AD198)=\"\", \"\", IF(VLOOKUP(AD198,'Footnotes list'!$D$9:$E$58,2,FALSE)=0,\"\",VLOOKUP(AD198,'Footnotes list'!$D$9:$E$58,2,FALSE) ) )","v":""},null,null,null,null,{"$f":"IF(TRIM(AI198)=\"\", \"\", IF(VLOOKUP(AI198,'Footnotes list'!$D$9:$E$58,2,FALSE)=0,\"\",VLOOKUP(AI198,'Footnotes list'!$D$9:$E$58,2,FALSE) ) )","v":""},null,null,null,null,{"$f":"IF(TRIM(AN198)=\"\", \"\", IF(VLOOKUP(AN198,'Footnotes list'!$D$9:$E$58,2,FALSE)=0,\"\",VLOOKUP(AN198,'Footnotes list'!$D$9:$E$58,2,FALSE) ) )","v":""},null,null,null,null,{"$f":"IF(TRIM(AS198)=\"\", \"\", IF(VLOOKUP(AS198,'Footnotes list'!$D$9:$E$58,2,FALSE)=0,\"\",VLOOKUP(AS198,'Footnotes list'!$D$9:$E$58,2,FALSE) ) )","v":""},null,null,null,null,{"$f":"IF(TRIM(AX198)=\"\", \"\", IF(VLOOKUP(AX198,'Footnotes list'!$D$9:$E$58,2,FALSE)=0,\"\",VLOOKUP(AX198,'Footnotes list'!$D$9:$E$58,2,FALSE) ) )","v":""},null,null,null,null,{"$f":"IF(TRIM(BC198)=\"\", \"\", IF(VLOOKUP(BC198,'Footnotes list'!$D$9:$E$58,2,FALSE)=0,\"\",VLOOKUP(BC198,'Footnotes list'!$D$9:$E$58,2,FALSE) ) )","v":""},null,null,null,null,{"$f":"IF(TRIM(BH198)=\"\", \"\", IF(VLOOKUP(BH198,'Footnotes list'!$D$9:$E$58,2,FALSE)=0,\"\",VLOOKUP(BH198,'Footnotes list'!$D$9:$E$58,2,FALSE) ) )","v":""},null,null,null,null,{"$f":"IF(TRIM(BM198)=\"\", \"\", IF(VLOOKUP(BM198,'Footnotes list'!$D$9:$E$58,2,FALSE)=0,\"\",VLOOKUP(BM198,'Footnotes list'!$D$9:$E$58,2,FALSE) ) )","v":""},null,null,null,null,{"$f":"IF(TRIM(BR198)=\"\", \"\", IF(VLOOKUP(BR198,'Footnotes list'!$D$9:$E$58,2,FALSE)=0,\"\",VLOOKUP(BR198,'Footnotes list'!$D$9:$E$58,2,FALSE) ) )","v":""},null,null,null,null,{"$f":"IF(TRIM(BW198)=\"\", \"\", IF(VLOOKUP(BW198,'Footnotes list'!$D$9:$E$58,2,FALSE)=0,\"\",VLOOKUP(BW198,'Footnotes list'!$D$9:$E$58,2,FALSE) ) )","v":""},null,null,null,null,{"$f":"IF(TRIM(CB198)=\"\", \"\", IF(VLOOKUP(CB198,'Footnotes list'!$D$9:$E$58,2,FALSE)=0,\"\",VLOOKUP(CB198,'Footnotes list'!$D$9:$E$58,2,FALSE) ) )","v":""},null,null,null,null,{"$f":"IF(TRIM(CG198)=\"\", \"\", IF(VLOOKUP(CG198,'Footnotes list'!$D$9:$E$58,2,FALSE)=0,\"\",VLOOKUP(CG198,'Footnotes list'!$D$9:$E$58,2,FALSE) ) )","v":""},null,null,null,null,{"$f":"IF(TRIM(CL198)=\"\", \"\", IF(VLOOKUP(CL198,'Footnotes list'!$D$9:$E$58,2,FALSE)=0,\"\",VLOOKUP(CL198,'Footnotes list'!$D$9:$E$58,2,FALSE) ) )","v":""},null,null,null,null,{"$f":"IF(TRIM(CQ198)=\"\", \"\", IF(VLOOKUP(CQ198,'Footnotes list'!$D$9:$E$58,2,FALSE)=0,\"\",VLOOKUP(CQ198,'Footnotes list'!$D$9:$E$58,2,FALSE) ) )","v":""},null,null,null,null,{"$f":"IF(TRIM(CV198)=\"\", \"\", IF(VLOOKUP(CV198,'Footnotes list'!$D$9:$E$58,2,FALSE)=0,\"\",VLOOKUP(CV198,'Footnotes list'!$D$9:$E$58,2,FALSE) ) )","v":""},null,null,null,null,{"$f":"IF(TRIM(DA198)=\"\", \"\", IF(VLOOKUP(DA198,'Footnotes list'!$D$9:$E$58,2,FALSE)=0,\"\",VLOOKUP(DA198,'Footnotes list'!$D$9:$E$58,2,FALSE) ) )","v":""},null,null,null,null,{"$f":"IF(TRIM(DF198)=\"\", \"\", IF(VLOOKUP(DF198,'Footnotes list'!$D$9:$E$58,2,FALSE)=0,\"\",VLOOKUP(DF198,'Footnotes list'!$D$9:$E$58,2,FALSE) ) )","v":""},null,null,null,null,{"$f":"IF(TRIM(DK198)=\"\", \"\", IF(VLOOKUP(DK198,'Footnotes list'!$D$9:$E$58,2,FALSE)=0,\"\",VLOOKUP(DK198,'Footnotes list'!$D$9:$E$58,2,FALSE) ) )","v":""},null,null,null,null,{"$f":"IF(TRIM(DP198)=\"\", \"\", IF(VLOOKUP(DP198,'Footnotes list'!$D$9:$E$58,2,FALSE)=0,\"\",VLOOKUP(DP198,'Footnotes list'!$D$9:$E$58,2,FALSE) ) )","v":""},null,null,null,null,{"$f":"IF(TRIM(DU198)=\"\", \"\", IF(VLOOKUP(DU198,'Footnotes list'!$D$9:$E$58,2,FALSE)=0,\"\",VLOOKUP(DU198,'Footnotes list'!$D$9:$E$58,2,FALSE) ) )","v":""},null,null,null,null,{"$f":"IF(TRIM(DZ198)=\"\", \"\", IF(VLOOKUP(DZ198,'Footnotes list'!$D$9:$E$58,2,FALSE)=0,\"\",VLOOKUP(DZ198,'Footnotes list'!$D$9:$E$58,2,FALSE) ) )","v":""},null,null,null,null,{"$f":"IF(TRIM(EE198)=\"\", \"\", IF(VLOOKUP(EE198,'Footnotes list'!$D$9:$E$58,2,FALSE)=0,\"\",VLOOKUP(EE198,'Footnotes list'!$D$9:$E$58,2,FALSE) ) )","v":""},null,null,null,null,{"$f":"IF(TRIM(EJ198)=\"\", \"\", IF(VLOOKUP(EJ198,'Footnotes list'!$D$9:$E$58,2,FALSE)=0,\"\",VLOOKUP(EJ198,'Footnotes list'!$D$9:$E$58,2,FALSE) ) )","v":""},null,null,null,null,{"$f":"IF(TRIM(EO198)=\"\", \"\", IF(VLOOKUP(EO198,'Footnotes list'!$D$9:$E$58,2,FALSE)=0,\"\",VLOOKUP(EO198,'Footnotes list'!$D$9:$E$58,2,FALSE) ) )","v":""},null,null,null,null,{"$f":"IF(TRIM(ET198)=\"\", \"\", IF(VLOOKUP(ET198,'Footnotes list'!$D$9:$E$58,2,FALSE)=0,\"\",VLOOKUP(ET198,'Footnotes list'!$D$9:$E$58,2,FALSE) ) )","v":""},null,null,null,null,{"$f":"IF(TRIM(EY198)=\"\", \"\", IF(VLOOKUP(EY198,'Footnotes list'!$D$9:$E$58,2,FALSE)=0,\"\",VLOOKUP(EY198,'Footnotes list'!$D$9:$E$58,2,FALSE) ) )","v":""}]
[null,null,"J","NMKT","non-market activities",null,null,null,null,null,{"$f":"IF(TRIM(J199)=\"\", \"\", IF(VLOOKUP(J199,'Footnotes list'!$D$9:$E$58,2,FALSE)=0,\"\",VLOOKUP(J199,'Footnotes list'!$D$9:$E$58,2,FALSE) ) )","v":""},null,null,null,null,{"$f":"IF(TRIM(O199)=\"\", \"\", IF(VLOOKUP(O199,'Footnotes list'!$D$9:$E$58,2,FALSE)=0,\"\",VLOOKUP(O199,'Footnotes list'!$D$9:$E$58,2,FALSE) ) )","v":""},null,null,null,null,{"$f":"IF(TRIM(T199)=\"\", \"\", IF(VLOOKUP(T199,'Footnotes list'!$D$9:$E$58,2,FALSE)=0,\"\",VLOOKUP(T199,'Footnotes list'!$D$9:$E$58,2,FALSE) ) )","v":""},null,null,null,null,{"$f":"IF(TRIM(Y199)=\"\", \"\", IF(VLOOKUP(Y199,'Footnotes list'!$D$9:$E$58,2,FALSE)=0,\"\",VLOOKUP(Y199,'Footnotes list'!$D$9:$E$58,2,FALSE) ) )","v":""},null,null,null,null,{"$f":"IF(TRIM(AD199)=\"\", \"\", IF(VLOOKUP(AD199,'Footnotes list'!$D$9:$E$58,2,FALSE)=0,\"\",VLOOKUP(AD199,'Footnotes list'!$D$9:$E$58,2,FALSE) ) )","v":""},null,null,null,null,{"$f":"IF(TRIM(AI199)=\"\", \"\", IF(VLOOKUP(AI199,'Footnotes list'!$D$9:$E$58,2,FALSE)=0,\"\",VLOOKUP(AI199,'Footnotes list'!$D$9:$E$58,2,FALSE) ) )","v":""},null,null,null,null,{"$f":"IF(TRIM(AN199)=\"\", \"\", IF(VLOOKUP(AN199,'Footnotes list'!$D$9:$E$58,2,FALSE)=0,\"\",VLOOKUP(AN199,'Footnotes list'!$D$9:$E$58,2,FALSE) ) )","v":""},null,null,null,null,{"$f":"IF(TRIM(AS199)=\"\", \"\", IF(VLOOKUP(AS199,'Footnotes list'!$D$9:$E$58,2,FALSE)=0,\"\",VLOOKUP(AS199,'Footnotes list'!$D$9:$E$58,2,FALSE) ) )","v":""},null,null,null,null,{"$f":"IF(TRIM(AX199)=\"\", \"\", IF(VLOOKUP(AX199,'Footnotes list'!$D$9:$E$58,2,FALSE)=0,\"\",VLOOKUP(AX199,'Footnotes list'!$D$9:$E$58,2,FALSE) ) )","v":""},null,null,null,null,{"$f":"IF(TRIM(BC199)=\"\", \"\", IF(VLOOKUP(BC199,'Footnotes list'!$D$9:$E$58,2,FALSE)=0,\"\",VLOOKUP(BC199,'Footnotes list'!$D$9:$E$58,2,FALSE) ) )","v":""},null,null,null,null,{"$f":"IF(TRIM(BH199)=\"\", \"\", IF(VLOOKUP(BH199,'Footnotes list'!$D$9:$E$58,2,FALSE)=0,\"\",VLOOKUP(BH199,'Footnotes list'!$D$9:$E$58,2,FALSE) ) )","v":""},null,null,null,null,{"$f":"IF(TRIM(BM199)=\"\", \"\", IF(VLOOKUP(BM199,'Footnotes list'!$D$9:$E$58,2,FALSE)=0,\"\",VLOOKUP(BM199,'Footnotes list'!$D$9:$E$58,2,FALSE) ) )","v":""},null,null,null,null,{"$f":"IF(TRIM(BR199)=\"\", \"\", IF(VLOOKUP(BR199,'Footnotes list'!$D$9:$E$58,2,FALSE)=0,\"\",VLOOKUP(BR199,'Footnotes list'!$D$9:$E$58,2,FALSE) ) )","v":""},null,null,null,null,{"$f":"IF(TRIM(BW199)=\"\", \"\", IF(VLOOKUP(BW199,'Footnotes list'!$D$9:$E$58,2,FALSE)=0,\"\",VLOOKUP(BW199,'Footnotes list'!$D$9:$E$58,2,FALSE) ) )","v":""},null,null,null,null,{"$f":"IF(TRIM(CB199)=\"\", \"\", IF(VLOOKUP(CB199,'Footnotes list'!$D$9:$E$58,2,FALSE)=0,\"\",VLOOKUP(CB199,'Footnotes list'!$D$9:$E$58,2,FALSE) ) )","v":""},null,null,null,null,{"$f":"IF(TRIM(CG199)=\"\", \"\", IF(VLOOKUP(CG199,'Footnotes list'!$D$9:$E$58,2,FALSE)=0,\"\",VLOOKUP(CG199,'Footnotes list'!$D$9:$E$58,2,FALSE) ) )","v":""},null,null,null,null,{"$f":"IF(TRIM(CL199)=\"\", \"\", IF(VLOOKUP(CL199,'Footnotes list'!$D$9:$E$58,2,FALSE)=0,\"\",VLOOKUP(CL199,'Footnotes list'!$D$9:$E$58,2,FALSE) ) )","v":""},null,null,null,null,{"$f":"IF(TRIM(CQ199)=\"\", \"\", IF(VLOOKUP(CQ199,'Footnotes list'!$D$9:$E$58,2,FALSE)=0,\"\",VLOOKUP(CQ199,'Footnotes list'!$D$9:$E$58,2,FALSE) ) )","v":""},null,null,null,null,{"$f":"IF(TRIM(CV199)=\"\", \"\", IF(VLOOKUP(CV199,'Footnotes list'!$D$9:$E$58,2,FALSE)=0,\"\",VLOOKUP(CV199,'Footnotes list'!$D$9:$E$58,2,FALSE) ) )","v":""},null,null,null,null,{"$f":"IF(TRIM(DA199)=\"\", \"\", IF(VLOOKUP(DA199,'Footnotes list'!$D$9:$E$58,2,FALSE)=0,\"\",VLOOKUP(DA199,'Footnotes list'!$D$9:$E$58,2,FALSE) ) )","v":""},null,null,null,null,{"$f":"IF(TRIM(DF199)=\"\", \"\", IF(VLOOKUP(DF199,'Footnotes list'!$D$9:$E$58,2,FALSE)=0,\"\",VLOOKUP(DF199,'Footnotes list'!$D$9:$E$58,2,FALSE) ) )","v":""},null,null,null,null,{"$f":"IF(TRIM(DK199)=\"\", \"\", IF(VLOOKUP(DK199,'Footnotes list'!$D$9:$E$58,2,FALSE)=0,\"\",VLOOKUP(DK199,'Footnotes list'!$D$9:$E$58,2,FALSE) ) )","v":""},null,null,null,null,{"$f":"IF(TRIM(DP199)=\"\", \"\", IF(VLOOKUP(DP199,'Footnotes list'!$D$9:$E$58,2,FALSE)=0,\"\",VLOOKUP(DP199,'Footnotes list'!$D$9:$E$58,2,FALSE) ) )","v":""},null,null,null,null,{"$f":"IF(TRIM(DU199)=\"\", \"\", IF(VLOOKUP(DU199,'Footnotes list'!$D$9:$E$58,2,FALSE)=0,\"\",VLOOKUP(DU199,'Footnotes list'!$D$9:$E$58,2,FALSE) ) )","v":""},null,null,null,null,{"$f":"IF(TRIM(DZ199)=\"\", \"\", IF(VLOOKUP(DZ199,'Footnotes list'!$D$9:$E$58,2,FALSE)=0,\"\",VLOOKUP(DZ199,'Footnotes list'!$D$9:$E$58,2,FALSE) ) )","v":""},null,null,null,null,{"$f":"IF(TRIM(EE199)=\"\", \"\", IF(VLOOKUP(EE199,'Footnotes list'!$D$9:$E$58,2,FALSE)=0,\"\",VLOOKUP(EE199,'Footnotes list'!$D$9:$E$58,2,FALSE) ) )","v":""},null,null,null,null,{"$f":"IF(TRIM(EJ199)=\"\", \"\", IF(VLOOKUP(EJ199,'Footnotes list'!$D$9:$E$58,2,FALSE)=0,\"\",VLOOKUP(EJ199,'Footnotes list'!$D$9:$E$58,2,FALSE) ) )","v":""},null,null,null,null,{"$f":"IF(TRIM(EO199)=\"\", \"\", IF(VLOOKUP(EO199,'Footnotes list'!$D$9:$E$58,2,FALSE)=0,\"\",VLOOKUP(EO199,'Footnotes list'!$D$9:$E$58,2,FALSE) ) )","v":""},null,null,null,null,{"$f":"IF(TRIM(ET199)=\"\", \"\", IF(VLOOKUP(ET199,'Footnotes list'!$D$9:$E$58,2,FALSE)=0,\"\",VLOOKUP(ET199,'Footnotes list'!$D$9:$E$58,2,FALSE) ) )","v":""},null,null,null,null,{"$f":"IF(TRIM(EY199)=\"\", \"\", IF(VLOOKUP(EY199,'Footnotes list'!$D$9:$E$58,2,FALSE)=0,\"\",VLOOKUP(EY199,'Footnotes list'!$D$9:$E$58,2,FALSE) ) )","v":""}]
[null,null,"J","OWN_USE","activities for own final use",null,null,null,null,null,{"$f":"IF(TRIM(J200)=\"\", \"\", IF(VLOOKUP(J200,'Footnotes list'!$D$9:$E$58,2,FALSE)=0,\"\",VLOOKUP(J200,'Footnotes list'!$D$9:$E$58,2,FALSE) ) )","v":""},null,null,null,null,{"$f":"IF(TRIM(O200)=\"\", \"\", IF(VLOOKUP(O200,'Footnotes list'!$D$9:$E$58,2,FALSE)=0,\"\",VLOOKUP(O200,'Footnotes list'!$D$9:$E$58,2,FALSE) ) )","v":""},null,null,null,null,{"$f":"IF(TRIM(T200)=\"\", \"\", IF(VLOOKUP(T200,'Footnotes list'!$D$9:$E$58,2,FALSE)=0,\"\",VLOOKUP(T200,'Footnotes list'!$D$9:$E$58,2,FALSE) ) )","v":""},null,null,null,null,{"$f":"IF(TRIM(Y200)=\"\", \"\", IF(VLOOKUP(Y200,'Footnotes list'!$D$9:$E$58,2,FALSE)=0,\"\",VLOOKUP(Y200,'Footnotes list'!$D$9:$E$58,2,FALSE) ) )","v":""},null,null,null,null,{"$f":"IF(TRIM(AD200)=\"\", \"\", IF(VLOOKUP(AD200,'Footnotes list'!$D$9:$E$58,2,FALSE)=0,\"\",VLOOKUP(AD200,'Footnotes list'!$D$9:$E$58,2,FALSE) ) )","v":""},null,null,null,null,{"$f":"IF(TRIM(AI200)=\"\", \"\", IF(VLOOKUP(AI200,'Footnotes list'!$D$9:$E$58,2,FALSE)=0,\"\",VLOOKUP(AI200,'Footnotes list'!$D$9:$E$58,2,FALSE) ) )","v":""},null,null,null,null,{"$f":"IF(TRIM(AN200)=\"\", \"\", IF(VLOOKUP(AN200,'Footnotes list'!$D$9:$E$58,2,FALSE)=0,\"\",VLOOKUP(AN200,'Footnotes list'!$D$9:$E$58,2,FALSE) ) )","v":""},null,null,null,null,{"$f":"IF(TRIM(AS200)=\"\", \"\", IF(VLOOKUP(AS200,'Footnotes list'!$D$9:$E$58,2,FALSE)=0,\"\",VLOOKUP(AS200,'Footnotes list'!$D$9:$E$58,2,FALSE) ) )","v":""},null,null,null,null,{"$f":"IF(TRIM(AX200)=\"\", \"\", IF(VLOOKUP(AX200,'Footnotes list'!$D$9:$E$58,2,FALSE)=0,\"\",VLOOKUP(AX200,'Footnotes list'!$D$9:$E$58,2,FALSE) ) )","v":""},null,null,null,null,{"$f":"IF(TRIM(BC200)=\"\", \"\", IF(VLOOKUP(BC200,'Footnotes list'!$D$9:$E$58,2,FALSE)=0,\"\",VLOOKUP(BC200,'Footnotes list'!$D$9:$E$58,2,FALSE) ) )","v":""},null,null,null,null,{"$f":"IF(TRIM(BH200)=\"\", \"\", IF(VLOOKUP(BH200,'Footnotes list'!$D$9:$E$58,2,FALSE)=0,\"\",VLOOKUP(BH200,'Footnotes list'!$D$9:$E$58,2,FALSE) ) )","v":""},null,null,null,null,{"$f":"IF(TRIM(BM200)=\"\", \"\", IF(VLOOKUP(BM200,'Footnotes list'!$D$9:$E$58,2,FALSE)=0,\"\",VLOOKUP(BM200,'Footnotes list'!$D$9:$E$58,2,FALSE) ) )","v":""},null,null,null,null,{"$f":"IF(TRIM(BR200)=\"\", \"\", IF(VLOOKUP(BR200,'Footnotes list'!$D$9:$E$58,2,FALSE)=0,\"\",VLOOKUP(BR200,'Footnotes list'!$D$9:$E$58,2,FALSE) ) )","v":""},null,null,null,null,{"$f":"IF(TRIM(BW200)=\"\", \"\", IF(VLOOKUP(BW200,'Footnotes list'!$D$9:$E$58,2,FALSE)=0,\"\",VLOOKUP(BW200,'Footnotes list'!$D$9:$E$58,2,FALSE) ) )","v":""},null,null,null,null,{"$f":"IF(TRIM(CB200)=\"\", \"\", IF(VLOOKUP(CB200,'Footnotes list'!$D$9:$E$58,2,FALSE)=0,\"\",VLOOKUP(CB200,'Footnotes list'!$D$9:$E$58,2,FALSE) ) )","v":""},null,null,null,null,{"$f":"IF(TRIM(CG200)=\"\", \"\", IF(VLOOKUP(CG200,'Footnotes list'!$D$9:$E$58,2,FALSE)=0,\"\",VLOOKUP(CG200,'Footnotes list'!$D$9:$E$58,2,FALSE) ) )","v":""},null,null,null,null,{"$f":"IF(TRIM(CL200)=\"\", \"\", IF(VLOOKUP(CL200,'Footnotes list'!$D$9:$E$58,2,FALSE)=0,\"\",VLOOKUP(CL200,'Footnotes list'!$D$9:$E$58,2,FALSE) ) )","v":""},null,null,null,null,{"$f":"IF(TRIM(CQ200)=\"\", \"\", IF(VLOOKUP(CQ200,'Footnotes list'!$D$9:$E$58,2,FALSE)=0,\"\",VLOOKUP(CQ200,'Footnotes list'!$D$9:$E$58,2,FALSE) ) )","v":""},null,null,null,null,{"$f":"IF(TRIM(CV200)=\"\", \"\", IF(VLOOKUP(CV200,'Footnotes list'!$D$9:$E$58,2,FALSE)=0,\"\",VLOOKUP(CV200,'Footnotes list'!$D$9:$E$58,2,FALSE) ) )","v":""},null,null,null,null,{"$f":"IF(TRIM(DA200)=\"\", \"\", IF(VLOOKUP(DA200,'Footnotes list'!$D$9:$E$58,2,FALSE)=0,\"\",VLOOKUP(DA200,'Footnotes list'!$D$9:$E$58,2,FALSE) ) )","v":""},null,null,null,null,{"$f":"IF(TRIM(DF200)=\"\", \"\", IF(VLOOKUP(DF200,'Footnotes list'!$D$9:$E$58,2,FALSE)=0,\"\",VLOOKUP(DF200,'Footnotes list'!$D$9:$E$58,2,FALSE) ) )","v":""},null,null,null,null,{"$f":"IF(TRIM(DK200)=\"\", \"\", IF(VLOOKUP(DK200,'Footnotes list'!$D$9:$E$58,2,FALSE)=0,\"\",VLOOKUP(DK200,'Footnotes list'!$D$9:$E$58,2,FALSE) ) )","v":""},null,null,null,null,{"$f":"IF(TRIM(DP200)=\"\", \"\", IF(VLOOKUP(DP200,'Footnotes list'!$D$9:$E$58,2,FALSE)=0,\"\",VLOOKUP(DP200,'Footnotes list'!$D$9:$E$58,2,FALSE) ) )","v":""},null,null,null,null,{"$f":"IF(TRIM(DU200)=\"\", \"\", IF(VLOOKUP(DU200,'Footnotes list'!$D$9:$E$58,2,FALSE)=0,\"\",VLOOKUP(DU200,'Footnotes list'!$D$9:$E$58,2,FALSE) ) )","v":""},null,null,null,null,{"$f":"IF(TRIM(DZ200)=\"\", \"\", IF(VLOOKUP(DZ200,'Footnotes list'!$D$9:$E$58,2,FALSE)=0,\"\",VLOOKUP(DZ200,'Footnotes list'!$D$9:$E$58,2,FALSE) ) )","v":""},null,null,null,null,{"$f":"IF(TRIM(EE200)=\"\", \"\", IF(VLOOKUP(EE200,'Footnotes list'!$D$9:$E$58,2,FALSE)=0,\"\",VLOOKUP(EE200,'Footnotes list'!$D$9:$E$58,2,FALSE) ) )","v":""},null,null,null,null,{"$f":"IF(TRIM(EJ200)=\"\", \"\", IF(VLOOKUP(EJ200,'Footnotes list'!$D$9:$E$58,2,FALSE)=0,\"\",VLOOKUP(EJ200,'Footnotes list'!$D$9:$E$58,2,FALSE) ) )","v":""},null,null,null,null,{"$f":"IF(TRIM(EO200)=\"\", \"\", IF(VLOOKUP(EO200,'Footnotes list'!$D$9:$E$58,2,FALSE)=0,\"\",VLOOKUP(EO200,'Footnotes list'!$D$9:$E$58,2,FALSE) ) )","v":""},null,null,null,null,{"$f":"IF(TRIM(ET200)=\"\", \"\", IF(VLOOKUP(ET200,'Footnotes list'!$D$9:$E$58,2,FALSE)=0,\"\",VLOOKUP(ET200,'Footnotes list'!$D$9:$E$58,2,FALSE) ) )","v":""},null,null,null,null,{"$f":"IF(TRIM(EY200)=\"\", \"\", IF(VLOOKUP(EY200,'Footnotes list'!$D$9:$E$58,2,FALSE)=0,\"\",VLOOKUP(EY200,'Footnotes list'!$D$9:$E$58,2,FALSE) ) )","v":""}]
[null,null,"J","MKT","market activities, including:",null,null,null,null,null,{"$f":"IF(TRIM(J201)=\"\", \"\", IF(VLOOKUP(J201,'Footnotes list'!$D$9:$E$58,2,FALSE)=0,\"\",VLOOKUP(J201,'Footnotes list'!$D$9:$E$58,2,FALSE) ) )","v":""},null,null,null,null,{"$f":"IF(TRIM(O201)=\"\", \"\", IF(VLOOKUP(O201,'Footnotes list'!$D$9:$E$58,2,FALSE)=0,\"\",VLOOKUP(O201,'Footnotes list'!$D$9:$E$58,2,FALSE) ) )","v":""},null,null,null,null,{"$f":"IF(TRIM(T201)=\"\", \"\", IF(VLOOKUP(T201,'Footnotes list'!$D$9:$E$58,2,FALSE)=0,\"\",VLOOKUP(T201,'Footnotes list'!$D$9:$E$58,2,FALSE) ) )","v":""},null,null,null,null,{"$f":"IF(TRIM(Y201)=\"\", \"\", IF(VLOOKUP(Y201,'Footnotes list'!$D$9:$E$58,2,FALSE)=0,\"\",VLOOKUP(Y201,'Footnotes list'!$D$9:$E$58,2,FALSE) ) )","v":""},null,null,null,null,{"$f":"IF(TRIM(AD201)=\"\", \"\", IF(VLOOKUP(AD201,'Footnotes list'!$D$9:$E$58,2,FALSE)=0,\"\",VLOOKUP(AD201,'Footnotes list'!$D$9:$E$58,2,FALSE) ) )","v":""},null,null,null,null,{"$f":"IF(TRIM(AI201)=\"\", \"\", IF(VLOOKUP(AI201,'Footnotes list'!$D$9:$E$58,2,FALSE)=0,\"\",VLOOKUP(AI201,'Footnotes list'!$D$9:$E$58,2,FALSE) ) )","v":""},null,null,null,null,{"$f":"IF(TRIM(AN201)=\"\", \"\", IF(VLOOKUP(AN201,'Footnotes list'!$D$9:$E$58,2,FALSE)=0,\"\",VLOOKUP(AN201,'Footnotes list'!$D$9:$E$58,2,FALSE) ) )","v":""},null,null,null,null,{"$f":"IF(TRIM(AS201)=\"\", \"\", IF(VLOOKUP(AS201,'Footnotes list'!$D$9:$E$58,2,FALSE)=0,\"\",VLOOKUP(AS201,'Footnotes list'!$D$9:$E$58,2,FALSE) ) )","v":""},null,null,null,null,{"$f":"IF(TRIM(AX201)=\"\", \"\", IF(VLOOKUP(AX201,'Footnotes list'!$D$9:$E$58,2,FALSE)=0,\"\",VLOOKUP(AX201,'Footnotes list'!$D$9:$E$58,2,FALSE) ) )","v":""},null,null,null,null,{"$f":"IF(TRIM(BC201)=\"\", \"\", IF(VLOOKUP(BC201,'Footnotes list'!$D$9:$E$58,2,FALSE)=0,\"\",VLOOKUP(BC201,'Footnotes list'!$D$9:$E$58,2,FALSE) ) )","v":""},null,null,null,null,{"$f":"IF(TRIM(BH201)=\"\", \"\", IF(VLOOKUP(BH201,'Footnotes list'!$D$9:$E$58,2,FALSE)=0,\"\",VLOOKUP(BH201,'Footnotes list'!$D$9:$E$58,2,FALSE) ) )","v":""},null,null,null,null,{"$f":"IF(TRIM(BM201)=\"\", \"\", IF(VLOOKUP(BM201,'Footnotes list'!$D$9:$E$58,2,FALSE)=0,\"\",VLOOKUP(BM201,'Footnotes list'!$D$9:$E$58,2,FALSE) ) )","v":""},null,null,null,null,{"$f":"IF(TRIM(BR201)=\"\", \"\", IF(VLOOKUP(BR201,'Footnotes list'!$D$9:$E$58,2,FALSE)=0,\"\",VLOOKUP(BR201,'Footnotes list'!$D$9:$E$58,2,FALSE) ) )","v":""},null,null,null,null,{"$f":"IF(TRIM(BW201)=\"\", \"\", IF(VLOOKUP(BW201,'Footnotes list'!$D$9:$E$58,2,FALSE)=0,\"\",VLOOKUP(BW201,'Footnotes list'!$D$9:$E$58,2,FALSE) ) )","v":""},null,null,null,null,{"$f":"IF(TRIM(CB201)=\"\", \"\", IF(VLOOKUP(CB201,'Footnotes list'!$D$9:$E$58,2,FALSE)=0,\"\",VLOOKUP(CB201,'Footnotes list'!$D$9:$E$58,2,FALSE) ) )","v":""},null,null,null,null,{"$f":"IF(TRIM(CG201)=\"\", \"\", IF(VLOOKUP(CG201,'Footnotes list'!$D$9:$E$58,2,FALSE)=0,\"\",VLOOKUP(CG201,'Footnotes list'!$D$9:$E$58,2,FALSE) ) )","v":""},null,null,null,null,{"$f":"IF(TRIM(CL201)=\"\", \"\", IF(VLOOKUP(CL201,'Footnotes list'!$D$9:$E$58,2,FALSE)=0,\"\",VLOOKUP(CL201,'Footnotes list'!$D$9:$E$58,2,FALSE) ) )","v":""},null,null,null,null,{"$f":"IF(TRIM(CQ201)=\"\", \"\", IF(VLOOKUP(CQ201,'Footnotes list'!$D$9:$E$58,2,FALSE)=0,\"\",VLOOKUP(CQ201,'Footnotes list'!$D$9:$E$58,2,FALSE) ) )","v":""},null,null,null,null,{"$f":"IF(TRIM(CV201)=\"\", \"\", IF(VLOOKUP(CV201,'Footnotes list'!$D$9:$E$58,2,FALSE)=0,\"\",VLOOKUP(CV201,'Footnotes list'!$D$9:$E$58,2,FALSE) ) )","v":""},null,null,null,null,{"$f":"IF(TRIM(DA201)=\"\", \"\", IF(VLOOKUP(DA201,'Footnotes list'!$D$9:$E$58,2,FALSE)=0,\"\",VLOOKUP(DA201,'Footnotes list'!$D$9:$E$58,2,FALSE) ) )","v":""},null,null,null,null,{"$f":"IF(TRIM(DF201)=\"\", \"\", IF(VLOOKUP(DF201,'Footnotes list'!$D$9:$E$58,2,FALSE)=0,\"\",VLOOKUP(DF201,'Footnotes list'!$D$9:$E$58,2,FALSE) ) )","v":""},null,null,null,null,{"$f":"IF(TRIM(DK201)=\"\", \"\", IF(VLOOKUP(DK201,'Footnotes list'!$D$9:$E$58,2,FALSE)=0,\"\",VLOOKUP(DK201,'Footnotes list'!$D$9:$E$58,2,FALSE) ) )","v":""},null,null,null,null,{"$f":"IF(TRIM(DP201)=\"\", \"\", IF(VLOOKUP(DP201,'Footnotes list'!$D$9:$E$58,2,FALSE)=0,\"\",VLOOKUP(DP201,'Footnotes list'!$D$9:$E$58,2,FALSE) ) )","v":""},null,null,null,null,{"$f":"IF(TRIM(DU201)=\"\", \"\", IF(VLOOKUP(DU201,'Footnotes list'!$D$9:$E$58,2,FALSE)=0,\"\",VLOOKUP(DU201,'Footnotes list'!$D$9:$E$58,2,FALSE) ) )","v":""},null,null,null,null,{"$f":"IF(TRIM(DZ201)=\"\", \"\", IF(VLOOKUP(DZ201,'Footnotes list'!$D$9:$E$58,2,FALSE)=0,\"\",VLOOKUP(DZ201,'Footnotes list'!$D$9:$E$58,2,FALSE) ) )","v":""},null,null,null,null,{"$f":"IF(TRIM(EE201)=\"\", \"\", IF(VLOOKUP(EE201,'Footnotes list'!$D$9:$E$58,2,FALSE)=0,\"\",VLOOKUP(EE201,'Footnotes list'!$D$9:$E$58,2,FALSE) ) )","v":""},null,null,null,null,{"$f":"IF(TRIM(EJ201)=\"\", \"\", IF(VLOOKUP(EJ201,'Footnotes list'!$D$9:$E$58,2,FALSE)=0,\"\",VLOOKUP(EJ201,'Footnotes list'!$D$9:$E$58,2,FALSE) ) )","v":""},null,null,null,null,{"$f":"IF(TRIM(EO201)=\"\", \"\", IF(VLOOKUP(EO201,'Footnotes list'!$D$9:$E$58,2,FALSE)=0,\"\",VLOOKUP(EO201,'Footnotes list'!$D$9:$E$58,2,FALSE) ) )","v":""},null,null,null,null,{"$f":"IF(TRIM(ET201)=\"\", \"\", IF(VLOOKUP(ET201,'Footnotes list'!$D$9:$E$58,2,FALSE)=0,\"\",VLOOKUP(ET201,'Footnotes list'!$D$9:$E$58,2,FALSE) ) )","v":""},null,null,null,null,{"$f":"IF(TRIM(EY201)=\"\", \"\", IF(VLOOKUP(EY201,'Footnotes list'!$D$9:$E$58,2,FALSE)=0,\"\",VLOOKUP(EY201,'Footnotes list'!$D$9:$E$58,2,FALSE) ) )","v":""}]
[null,null,"J","ES_CS","environmental specific services",null,null,null,null,null,{"$f":"IF(TRIM(J202)=\"\", \"\", IF(VLOOKUP(J202,'Footnotes list'!$D$9:$E$58,2,FALSE)=0,\"\",VLOOKUP(J202,'Footnotes list'!$D$9:$E$58,2,FALSE) ) )","v":""},null,null,null,null,{"$f":"IF(TRIM(O202)=\"\", \"\", IF(VLOOKUP(O202,'Footnotes list'!$D$9:$E$58,2,FALSE)=0,\"\",VLOOKUP(O202,'Footnotes list'!$D$9:$E$58,2,FALSE) ) )","v":""},null,null,null,null,{"$f":"IF(TRIM(T202)=\"\", \"\", IF(VLOOKUP(T202,'Footnotes list'!$D$9:$E$58,2,FALSE)=0,\"\",VLOOKUP(T202,'Footnotes list'!$D$9:$E$58,2,FALSE) ) )","v":""},null,null,null,null,{"$f":"IF(TRIM(Y202)=\"\", \"\", IF(VLOOKUP(Y202,'Footnotes list'!$D$9:$E$58,2,FALSE)=0,\"\",VLOOKUP(Y202,'Footnotes list'!$D$9:$E$58,2,FALSE) ) )","v":""},null,null,null,null,{"$f":"IF(TRIM(AD202)=\"\", \"\", IF(VLOOKUP(AD202,'Footnotes list'!$D$9:$E$58,2,FALSE)=0,\"\",VLOOKUP(AD202,'Footnotes list'!$D$9:$E$58,2,FALSE) ) )","v":""},null,null,null,null,{"$f":"IF(TRIM(AI202)=\"\", \"\", IF(VLOOKUP(AI202,'Footnotes list'!$D$9:$E$58,2,FALSE)=0,\"\",VLOOKUP(AI202,'Footnotes list'!$D$9:$E$58,2,FALSE) ) )","v":""},null,null,null,null,{"$f":"IF(TRIM(AN202)=\"\", \"\", IF(VLOOKUP(AN202,'Footnotes list'!$D$9:$E$58,2,FALSE)=0,\"\",VLOOKUP(AN202,'Footnotes list'!$D$9:$E$58,2,FALSE) ) )","v":""},null,null,null,null,{"$f":"IF(TRIM(AS202)=\"\", \"\", IF(VLOOKUP(AS202,'Footnotes list'!$D$9:$E$58,2,FALSE)=0,\"\",VLOOKUP(AS202,'Footnotes list'!$D$9:$E$58,2,FALSE) ) )","v":""},null,null,null,null,{"$f":"IF(TRIM(AX202)=\"\", \"\", IF(VLOOKUP(AX202,'Footnotes list'!$D$9:$E$58,2,FALSE)=0,\"\",VLOOKUP(AX202,'Footnotes list'!$D$9:$E$58,2,FALSE) ) )","v":""},null,null,null,null,{"$f":"IF(TRIM(BC202)=\"\", \"\", IF(VLOOKUP(BC202,'Footnotes list'!$D$9:$E$58,2,FALSE)=0,\"\",VLOOKUP(BC202,'Footnotes list'!$D$9:$E$58,2,FALSE) ) )","v":""},null,null,null,null,{"$f":"IF(TRIM(BH202)=\"\", \"\", IF(VLOOKUP(BH202,'Footnotes list'!$D$9:$E$58,2,FALSE)=0,\"\",VLOOKUP(BH202,'Footnotes list'!$D$9:$E$58,2,FALSE) ) )","v":""},null,null,null,null,{"$f":"IF(TRIM(BM202)=\"\", \"\", IF(VLOOKUP(BM202,'Footnotes list'!$D$9:$E$58,2,FALSE)=0,\"\",VLOOKUP(BM202,'Footnotes list'!$D$9:$E$58,2,FALSE) ) )","v":""},null,null,null,null,{"$f":"IF(TRIM(BR202)=\"\", \"\", IF(VLOOKUP(BR202,'Footnotes list'!$D$9:$E$58,2,FALSE)=0,\"\",VLOOKUP(BR202,'Footnotes list'!$D$9:$E$58,2,FALSE) ) )","v":""},null,null,null,null,{"$f":"IF(TRIM(BW202)=\"\", \"\", IF(VLOOKUP(BW202,'Footnotes list'!$D$9:$E$58,2,FALSE)=0,\"\",VLOOKUP(BW202,'Footnotes list'!$D$9:$E$58,2,FALSE) ) )","v":""},null,null,null,null,{"$f":"IF(TRIM(CB202)=\"\", \"\", IF(VLOOKUP(CB202,'Footnotes list'!$D$9:$E$58,2,FALSE)=0,\"\",VLOOKUP(CB202,'Footnotes list'!$D$9:$E$58,2,FALSE) ) )","v":""},null,null,null,null,{"$f":"IF(TRIM(CG202)=\"\", \"\", IF(VLOOKUP(CG202,'Footnotes list'!$D$9:$E$58,2,FALSE)=0,\"\",VLOOKUP(CG202,'Footnotes list'!$D$9:$E$58,2,FALSE) ) )","v":""},null,null,null,null,{"$f":"IF(TRIM(CL202)=\"\", \"\", IF(VLOOKUP(CL202,'Footnotes list'!$D$9:$E$58,2,FALSE)=0,\"\",VLOOKUP(CL202,'Footnotes list'!$D$9:$E$58,2,FALSE) ) )","v":""},null,null,null,null,{"$f":"IF(TRIM(CQ202)=\"\", \"\", IF(VLOOKUP(CQ202,'Footnotes list'!$D$9:$E$58,2,FALSE)=0,\"\",VLOOKUP(CQ202,'Footnotes list'!$D$9:$E$58,2,FALSE) ) )","v":""},null,null,null,null,{"$f":"IF(TRIM(CV202)=\"\", \"\", IF(VLOOKUP(CV202,'Footnotes list'!$D$9:$E$58,2,FALSE)=0,\"\",VLOOKUP(CV202,'Footnotes list'!$D$9:$E$58,2,FALSE) ) )","v":""},null,null,null,null,{"$f":"IF(TRIM(DA202)=\"\", \"\", IF(VLOOKUP(DA202,'Footnotes list'!$D$9:$E$58,2,FALSE)=0,\"\",VLOOKUP(DA202,'Footnotes list'!$D$9:$E$58,2,FALSE) ) )","v":""},null,null,null,null,{"$f":"IF(TRIM(DF202)=\"\", \"\", IF(VLOOKUP(DF202,'Footnotes list'!$D$9:$E$58,2,FALSE)=0,\"\",VLOOKUP(DF202,'Footnotes list'!$D$9:$E$58,2,FALSE) ) )","v":""},null,null,null,null,{"$f":"IF(TRIM(DK202)=\"\", \"\", IF(VLOOKUP(DK202,'Footnotes list'!$D$9:$E$58,2,FALSE)=0,\"\",VLOOKUP(DK202,'Footnotes list'!$D$9:$E$58,2,FALSE) ) )","v":""},null,null,null,null,{"$f":"IF(TRIM(DP202)=\"\", \"\", IF(VLOOKUP(DP202,'Footnotes list'!$D$9:$E$58,2,FALSE)=0,\"\",VLOOKUP(DP202,'Footnotes list'!$D$9:$E$58,2,FALSE) ) )","v":""},null,null,null,null,{"$f":"IF(TRIM(DU202)=\"\", \"\", IF(VLOOKUP(DU202,'Footnotes list'!$D$9:$E$58,2,FALSE)=0,\"\",VLOOKUP(DU202,'Footnotes list'!$D$9:$E$58,2,FALSE) ) )","v":""},null,null,null,null,{"$f":"IF(TRIM(DZ202)=\"\", \"\", IF(VLOOKUP(DZ202,'Footnotes list'!$D$9:$E$58,2,FALSE)=0,\"\",VLOOKUP(DZ202,'Footnotes list'!$D$9:$E$58,2,FALSE) ) )","v":""},null,null,null,null,{"$f":"IF(TRIM(EE202)=\"\", \"\", IF(VLOOKUP(EE202,'Footnotes list'!$D$9:$E$58,2,FALSE)=0,\"\",VLOOKUP(EE202,'Footnotes list'!$D$9:$E$58,2,FALSE) ) )","v":""},null,null,null,null,{"$f":"IF(TRIM(EJ202)=\"\", \"\", IF(VLOOKUP(EJ202,'Footnotes list'!$D$9:$E$58,2,FALSE)=0,\"\",VLOOKUP(EJ202,'Footnotes list'!$D$9:$E$58,2,FALSE) ) )","v":""},null,null,null,null,{"$f":"IF(TRIM(EO202)=\"\", \"\", IF(VLOOKUP(EO202,'Footnotes list'!$D$9:$E$58,2,FALSE)=0,\"\",VLOOKUP(EO202,'Footnotes list'!$D$9:$E$58,2,FALSE) ) )","v":""},null,null,null,null,{"$f":"IF(TRIM(ET202)=\"\", \"\", IF(VLOOKUP(ET202,'Footnotes list'!$D$9:$E$58,2,FALSE)=0,\"\",VLOOKUP(ET202,'Footnotes list'!$D$9:$E$58,2,FALSE) ) )","v":""},null,null,null,null,{"$f":"IF(TRIM(EY202)=\"\", \"\", IF(VLOOKUP(EY202,'Footnotes list'!$D$9:$E$58,2,FALSE)=0,\"\",VLOOKUP(EY202,'Footnotes list'!$D$9:$E$58,2,FALSE) ) )","v":""}]
[null,null,"J","C_REP","cleaner and resource efficient products",null,null,null,null,null,{"$f":"IF(TRIM(J203)=\"\", \"\", IF(VLOOKUP(J203,'Footnotes list'!$D$9:$E$58,2,FALSE)=0,\"\",VLOOKUP(J203,'Footnotes list'!$D$9:$E$58,2,FALSE) ) )","v":""},null,null,null,null,{"$f":"IF(TRIM(O203)=\"\", \"\", IF(VLOOKUP(O203,'Footnotes list'!$D$9:$E$58,2,FALSE)=0,\"\",VLOOKUP(O203,'Footnotes list'!$D$9:$E$58,2,FALSE) ) )","v":""},null,null,null,null,{"$f":"IF(TRIM(T203)=\"\", \"\", IF(VLOOKUP(T203,'Footnotes list'!$D$9:$E$58,2,FALSE)=0,\"\",VLOOKUP(T203,'Footnotes list'!$D$9:$E$58,2,FALSE) ) )","v":""},null,null,null,null,{"$f":"IF(TRIM(Y203)=\"\", \"\", IF(VLOOKUP(Y203,'Footnotes list'!$D$9:$E$58,2,FALSE)=0,\"\",VLOOKUP(Y203,'Footnotes list'!$D$9:$E$58,2,FALSE) ) )","v":""},null,null,null,null,{"$f":"IF(TRIM(AD203)=\"\", \"\", IF(VLOOKUP(AD203,'Footnotes list'!$D$9:$E$58,2,FALSE)=0,\"\",VLOOKUP(AD203,'Footnotes list'!$D$9:$E$58,2,FALSE) ) )","v":""},null,null,null,null,{"$f":"IF(TRIM(AI203)=\"\", \"\", IF(VLOOKUP(AI203,'Footnotes list'!$D$9:$E$58,2,FALSE)=0,\"\",VLOOKUP(AI203,'Footnotes list'!$D$9:$E$58,2,FALSE) ) )","v":""},null,null,null,null,{"$f":"IF(TRIM(AN203)=\"\", \"\", IF(VLOOKUP(AN203,'Footnotes list'!$D$9:$E$58,2,FALSE)=0,\"\",VLOOKUP(AN203,'Footnotes list'!$D$9:$E$58,2,FALSE) ) )","v":""},null,null,null,null,{"$f":"IF(TRIM(AS203)=\"\", \"\", IF(VLOOKUP(AS203,'Footnotes list'!$D$9:$E$58,2,FALSE)=0,\"\",VLOOKUP(AS203,'Footnotes list'!$D$9:$E$58,2,FALSE) ) )","v":""},null,null,null,null,{"$f":"IF(TRIM(AX203)=\"\", \"\", IF(VLOOKUP(AX203,'Footnotes list'!$D$9:$E$58,2,FALSE)=0,\"\",VLOOKUP(AX203,'Footnotes list'!$D$9:$E$58,2,FALSE) ) )","v":""},null,null,null,null,{"$f":"IF(TRIM(BC203)=\"\", \"\", IF(VLOOKUP(BC203,'Footnotes list'!$D$9:$E$58,2,FALSE)=0,\"\",VLOOKUP(BC203,'Footnotes list'!$D$9:$E$58,2,FALSE) ) )","v":""},null,null,null,null,{"$f":"IF(TRIM(BH203)=\"\", \"\", IF(VLOOKUP(BH203,'Footnotes list'!$D$9:$E$58,2,FALSE)=0,\"\",VLOOKUP(BH203,'Footnotes list'!$D$9:$E$58,2,FALSE) ) )","v":""},null,null,null,null,{"$f":"IF(TRIM(BM203)=\"\", \"\", IF(VLOOKUP(BM203,'Footnotes list'!$D$9:$E$58,2,FALSE)=0,\"\",VLOOKUP(BM203,'Footnotes list'!$D$9:$E$58,2,FALSE) ) )","v":""},null,null,null,null,{"$f":"IF(TRIM(BR203)=\"\", \"\", IF(VLOOKUP(BR203,'Footnotes list'!$D$9:$E$58,2,FALSE)=0,\"\",VLOOKUP(BR203,'Footnotes list'!$D$9:$E$58,2,FALSE) ) )","v":""},null,null,null,null,{"$f":"IF(TRIM(BW203)=\"\", \"\", IF(VLOOKUP(BW203,'Footnotes list'!$D$9:$E$58,2,FALSE)=0,\"\",VLOOKUP(BW203,'Footnotes list'!$D$9:$E$58,2,FALSE) ) )","v":""},null,null,null,null,{"$f":"IF(TRIM(CB203)=\"\", \"\", IF(VLOOKUP(CB203,'Footnotes list'!$D$9:$E$58,2,FALSE)=0,\"\",VLOOKUP(CB203,'Footnotes list'!$D$9:$E$58,2,FALSE) ) )","v":""},null,null,null,null,{"$f":"IF(TRIM(CG203)=\"\", \"\", IF(VLOOKUP(CG203,'Footnotes list'!$D$9:$E$58,2,FALSE)=0,\"\",VLOOKUP(CG203,'Footnotes list'!$D$9:$E$58,2,FALSE) ) )","v":""},null,null,null,null,{"$f":"IF(TRIM(CL203)=\"\", \"\", IF(VLOOKUP(CL203,'Footnotes list'!$D$9:$E$58,2,FALSE)=0,\"\",VLOOKUP(CL203,'Footnotes list'!$D$9:$E$58,2,FALSE) ) )","v":""},null,null,null,null,{"$f":"IF(TRIM(CQ203)=\"\", \"\", IF(VLOOKUP(CQ203,'Footnotes list'!$D$9:$E$58,2,FALSE)=0,\"\",VLOOKUP(CQ203,'Footnotes list'!$D$9:$E$58,2,FALSE) ) )","v":""},null,null,null,null,{"$f":"IF(TRIM(CV203)=\"\", \"\", IF(VLOOKUP(CV203,'Footnotes list'!$D$9:$E$58,2,FALSE)=0,\"\",VLOOKUP(CV203,'Footnotes list'!$D$9:$E$58,2,FALSE) ) )","v":""},null,null,null,null,{"$f":"IF(TRIM(DA203)=\"\", \"\", IF(VLOOKUP(DA203,'Footnotes list'!$D$9:$E$58,2,FALSE)=0,\"\",VLOOKUP(DA203,'Footnotes list'!$D$9:$E$58,2,FALSE) ) )","v":""},null,null,null,null,{"$f":"IF(TRIM(DF203)=\"\", \"\", IF(VLOOKUP(DF203,'Footnotes list'!$D$9:$E$58,2,FALSE)=0,\"\",VLOOKUP(DF203,'Footnotes list'!$D$9:$E$58,2,FALSE) ) )","v":""},null,null,null,null,{"$f":"IF(TRIM(DK203)=\"\", \"\", IF(VLOOKUP(DK203,'Footnotes list'!$D$9:$E$58,2,FALSE)=0,\"\",VLOOKUP(DK203,'Footnotes list'!$D$9:$E$58,2,FALSE) ) )","v":""},null,null,null,null,{"$f":"IF(TRIM(DP203)=\"\", \"\", IF(VLOOKUP(DP203,'Footnotes list'!$D$9:$E$58,2,FALSE)=0,\"\",VLOOKUP(DP203,'Footnotes list'!$D$9:$E$58,2,FALSE) ) )","v":""},null,null,null,null,{"$f":"IF(TRIM(DU203)=\"\", \"\", IF(VLOOKUP(DU203,'Footnotes list'!$D$9:$E$58,2,FALSE)=0,\"\",VLOOKUP(DU203,'Footnotes list'!$D$9:$E$58,2,FALSE) ) )","v":""},null,null,null,null,{"$f":"IF(TRIM(DZ203)=\"\", \"\", IF(VLOOKUP(DZ203,'Footnotes list'!$D$9:$E$58,2,FALSE)=0,\"\",VLOOKUP(DZ203,'Footnotes list'!$D$9:$E$58,2,FALSE) ) )","v":""},null,null,null,null,{"$f":"IF(TRIM(EE203)=\"\", \"\", IF(VLOOKUP(EE203,'Footnotes list'!$D$9:$E$58,2,FALSE)=0,\"\",VLOOKUP(EE203,'Footnotes list'!$D$9:$E$58,2,FALSE) ) )","v":""},null,null,null,null,{"$f":"IF(TRIM(EJ203)=\"\", \"\", IF(VLOOKUP(EJ203,'Footnotes list'!$D$9:$E$58,2,FALSE)=0,\"\",VLOOKUP(EJ203,'Footnotes list'!$D$9:$E$58,2,FALSE) ) )","v":""},null,null,null,null,{"$f":"IF(TRIM(EO203)=\"\", \"\", IF(VLOOKUP(EO203,'Footnotes list'!$D$9:$E$58,2,FALSE)=0,\"\",VLOOKUP(EO203,'Footnotes list'!$D$9:$E$58,2,FALSE) ) )","v":""},null,null,null,null,{"$f":"IF(TRIM(ET203)=\"\", \"\", IF(VLOOKUP(ET203,'Footnotes list'!$D$9:$E$58,2,FALSE)=0,\"\",VLOOKUP(ET203,'Footnotes list'!$D$9:$E$58,2,FALSE) ) )","v":""},null,null,null,null,{"$f":"IF(TRIM(EY203)=\"\", \"\", IF(VLOOKUP(EY203,'Footnotes list'!$D$9:$E$58,2,FALSE)=0,\"\",VLOOKUP(EY203,'Footnotes list'!$D$9:$E$58,2,FALSE) ) )","v":""}]
[null,null,"K","TOT_EGSS","Total K - Financial and insurance activities, of which:",null,null,null,null,null,{"$f":"IF(TRIM(J204)=\"\", \"\", IF(VLOOKUP(J204,'Footnotes list'!$D$9:$E$58,2,FALSE)=0,\"\",VLOOKUP(J204,'Footnotes list'!$D$9:$E$58,2,FALSE) ) )","v":""},null,null,null,null,{"$f":"IF(TRIM(O204)=\"\", \"\", IF(VLOOKUP(O204,'Footnotes list'!$D$9:$E$58,2,FALSE)=0,\"\",VLOOKUP(O204,'Footnotes list'!$D$9:$E$58,2,FALSE) ) )","v":""},null,null,null,null,{"$f":"IF(TRIM(T204)=\"\", \"\", IF(VLOOKUP(T204,'Footnotes list'!$D$9:$E$58,2,FALSE)=0,\"\",VLOOKUP(T204,'Footnotes list'!$D$9:$E$58,2,FALSE) ) )","v":""},null,null,null,null,{"$f":"IF(TRIM(Y204)=\"\", \"\", IF(VLOOKUP(Y204,'Footnotes list'!$D$9:$E$58,2,FALSE)=0,\"\",VLOOKUP(Y204,'Footnotes list'!$D$9:$E$58,2,FALSE) ) )","v":""},null,null,null,null,{"$f":"IF(TRIM(AD204)=\"\", \"\", IF(VLOOKUP(AD204,'Footnotes list'!$D$9:$E$58,2,FALSE)=0,\"\",VLOOKUP(AD204,'Footnotes list'!$D$9:$E$58,2,FALSE) ) )","v":""},null,null,null,null,{"$f":"IF(TRIM(AI204)=\"\", \"\", IF(VLOOKUP(AI204,'Footnotes list'!$D$9:$E$58,2,FALSE)=0,\"\",VLOOKUP(AI204,'Footnotes list'!$D$9:$E$58,2,FALSE) ) )","v":""},null,null,null,null,{"$f":"IF(TRIM(AN204)=\"\", \"\", IF(VLOOKUP(AN204,'Footnotes list'!$D$9:$E$58,2,FALSE)=0,\"\",VLOOKUP(AN204,'Footnotes list'!$D$9:$E$58,2,FALSE) ) )","v":""},null,null,null,null,{"$f":"IF(TRIM(AS204)=\"\", \"\", IF(VLOOKUP(AS204,'Footnotes list'!$D$9:$E$58,2,FALSE)=0,\"\",VLOOKUP(AS204,'Footnotes list'!$D$9:$E$58,2,FALSE) ) )","v":""},null,null,null,null,{"$f":"IF(TRIM(AX204)=\"\", \"\", IF(VLOOKUP(AX204,'Footnotes list'!$D$9:$E$58,2,FALSE)=0,\"\",VLOOKUP(AX204,'Footnotes list'!$D$9:$E$58,2,FALSE) ) )","v":""},null,null,null,null,{"$f":"IF(TRIM(BC204)=\"\", \"\", IF(VLOOKUP(BC204,'Footnotes list'!$D$9:$E$58,2,FALSE)=0,\"\",VLOOKUP(BC204,'Footnotes list'!$D$9:$E$58,2,FALSE) ) )","v":""},null,null,null,null,{"$f":"IF(TRIM(BH204)=\"\", \"\", IF(VLOOKUP(BH204,'Footnotes list'!$D$9:$E$58,2,FALSE)=0,\"\",VLOOKUP(BH204,'Footnotes list'!$D$9:$E$58,2,FALSE) ) )","v":""},null,null,null,null,{"$f":"IF(TRIM(BM204)=\"\", \"\", IF(VLOOKUP(BM204,'Footnotes list'!$D$9:$E$58,2,FALSE)=0,\"\",VLOOKUP(BM204,'Footnotes list'!$D$9:$E$58,2,FALSE) ) )","v":""},null,null,null,null,{"$f":"IF(TRIM(BR204)=\"\", \"\", IF(VLOOKUP(BR204,'Footnotes list'!$D$9:$E$58,2,FALSE)=0,\"\",VLOOKUP(BR204,'Footnotes list'!$D$9:$E$58,2,FALSE) ) )","v":""},null,null,null,null,{"$f":"IF(TRIM(BW204)=\"\", \"\", IF(VLOOKUP(BW204,'Footnotes list'!$D$9:$E$58,2,FALSE)=0,\"\",VLOOKUP(BW204,'Footnotes list'!$D$9:$E$58,2,FALSE) ) )","v":""},null,null,null,null,{"$f":"IF(TRIM(CB204)=\"\", \"\", IF(VLOOKUP(CB204,'Footnotes list'!$D$9:$E$58,2,FALSE)=0,\"\",VLOOKUP(CB204,'Footnotes list'!$D$9:$E$58,2,FALSE) ) )","v":""},null,null,null,null,{"$f":"IF(TRIM(CG204)=\"\", \"\", IF(VLOOKUP(CG204,'Footnotes list'!$D$9:$E$58,2,FALSE)=0,\"\",VLOOKUP(CG204,'Footnotes list'!$D$9:$E$58,2,FALSE) ) )","v":""},null,null,null,null,{"$f":"IF(TRIM(CL204)=\"\", \"\", IF(VLOOKUP(CL204,'Footnotes list'!$D$9:$E$58,2,FALSE)=0,\"\",VLOOKUP(CL204,'Footnotes list'!$D$9:$E$58,2,FALSE) ) )","v":""},null,null,null,null,{"$f":"IF(TRIM(CQ204)=\"\", \"\", IF(VLOOKUP(CQ204,'Footnotes list'!$D$9:$E$58,2,FALSE)=0,\"\",VLOOKUP(CQ204,'Footnotes list'!$D$9:$E$58,2,FALSE) ) )","v":""},null,null,null,null,{"$f":"IF(TRIM(CV204)=\"\", \"\", IF(VLOOKUP(CV204,'Footnotes list'!$D$9:$E$58,2,FALSE)=0,\"\",VLOOKUP(CV204,'Footnotes list'!$D$9:$E$58,2,FALSE) ) )","v":""},null,null,null,null,{"$f":"IF(TRIM(DA204)=\"\", \"\", IF(VLOOKUP(DA204,'Footnotes list'!$D$9:$E$58,2,FALSE)=0,\"\",VLOOKUP(DA204,'Footnotes list'!$D$9:$E$58,2,FALSE) ) )","v":""},null,null,null,null,{"$f":"IF(TRIM(DF204)=\"\", \"\", IF(VLOOKUP(DF204,'Footnotes list'!$D$9:$E$58,2,FALSE)=0,\"\",VLOOKUP(DF204,'Footnotes list'!$D$9:$E$58,2,FALSE) ) )","v":""},null,null,null,null,{"$f":"IF(TRIM(DK204)=\"\", \"\", IF(VLOOKUP(DK204,'Footnotes list'!$D$9:$E$58,2,FALSE)=0,\"\",VLOOKUP(DK204,'Footnotes list'!$D$9:$E$58,2,FALSE) ) )","v":""},null,null,null,null,{"$f":"IF(TRIM(DP204)=\"\", \"\", IF(VLOOKUP(DP204,'Footnotes list'!$D$9:$E$58,2,FALSE)=0,\"\",VLOOKUP(DP204,'Footnotes list'!$D$9:$E$58,2,FALSE) ) )","v":""},null,null,null,null,{"$f":"IF(TRIM(DU204)=\"\", \"\", IF(VLOOKUP(DU204,'Footnotes list'!$D$9:$E$58,2,FALSE)=0,\"\",VLOOKUP(DU204,'Footnotes list'!$D$9:$E$58,2,FALSE) ) )","v":""},null,null,null,null,{"$f":"IF(TRIM(DZ204)=\"\", \"\", IF(VLOOKUP(DZ204,'Footnotes list'!$D$9:$E$58,2,FALSE)=0,\"\",VLOOKUP(DZ204,'Footnotes list'!$D$9:$E$58,2,FALSE) ) )","v":""},null,null,null,null,{"$f":"IF(TRIM(EE204)=\"\", \"\", IF(VLOOKUP(EE204,'Footnotes list'!$D$9:$E$58,2,FALSE)=0,\"\",VLOOKUP(EE204,'Footnotes list'!$D$9:$E$58,2,FALSE) ) )","v":""},null,null,null,null,{"$f":"IF(TRIM(EJ204)=\"\", \"\", IF(VLOOKUP(EJ204,'Footnotes list'!$D$9:$E$58,2,FALSE)=0,\"\",VLOOKUP(EJ204,'Footnotes list'!$D$9:$E$58,2,FALSE) ) )","v":""},null,null,null,null,{"$f":"IF(TRIM(EO204)=\"\", \"\", IF(VLOOKUP(EO204,'Footnotes list'!$D$9:$E$58,2,FALSE)=0,\"\",VLOOKUP(EO204,'Footnotes list'!$D$9:$E$58,2,FALSE) ) )","v":""},null,null,null,null,{"$f":"IF(TRIM(ET204)=\"\", \"\", IF(VLOOKUP(ET204,'Footnotes list'!$D$9:$E$58,2,FALSE)=0,\"\",VLOOKUP(ET204,'Footnotes list'!$D$9:$E$58,2,FALSE) ) )","v":""},null,null,null,null,{"$f":"IF(TRIM(EY204)=\"\", \"\", IF(VLOOKUP(EY204,'Footnotes list'!$D$9:$E$58,2,FALSE)=0,\"\",VLOOKUP(EY204,'Footnotes list'!$D$9:$E$58,2,FALSE) ) )","v":""}]
[null,null,"K","ANC","ancillary activities",null,null,null,null,null,{"$f":"IF(TRIM(J205)=\"\", \"\", IF(VLOOKUP(J205,'Footnotes list'!$D$9:$E$58,2,FALSE)=0,\"\",VLOOKUP(J205,'Footnotes list'!$D$9:$E$58,2,FALSE) ) )","v":""},null,null,null,null,{"$f":"IF(TRIM(O205)=\"\", \"\", IF(VLOOKUP(O205,'Footnotes list'!$D$9:$E$58,2,FALSE)=0,\"\",VLOOKUP(O205,'Footnotes list'!$D$9:$E$58,2,FALSE) ) )","v":""},null,null,null,null,{"$f":"IF(TRIM(T205)=\"\", \"\", IF(VLOOKUP(T205,'Footnotes list'!$D$9:$E$58,2,FALSE)=0,\"\",VLOOKUP(T205,'Footnotes list'!$D$9:$E$58,2,FALSE) ) )","v":""},null,null,null,null,{"$f":"IF(TRIM(Y205)=\"\", \"\", IF(VLOOKUP(Y205,'Footnotes list'!$D$9:$E$58,2,FALSE)=0,\"\",VLOOKUP(Y205,'Footnotes list'!$D$9:$E$58,2,FALSE) ) )","v":""},null,null,null,null,{"$f":"IF(TRIM(AD205)=\"\", \"\", IF(VLOOKUP(AD205,'Footnotes list'!$D$9:$E$58,2,FALSE)=0,\"\",VLOOKUP(AD205,'Footnotes list'!$D$9:$E$58,2,FALSE) ) )","v":""},null,null,null,null,{"$f":"IF(TRIM(AI205)=\"\", \"\", IF(VLOOKUP(AI205,'Footnotes list'!$D$9:$E$58,2,FALSE)=0,\"\",VLOOKUP(AI205,'Footnotes list'!$D$9:$E$58,2,FALSE) ) )","v":""},null,null,null,null,{"$f":"IF(TRIM(AN205)=\"\", \"\", IF(VLOOKUP(AN205,'Footnotes list'!$D$9:$E$58,2,FALSE)=0,\"\",VLOOKUP(AN205,'Footnotes list'!$D$9:$E$58,2,FALSE) ) )","v":""},null,null,null,null,{"$f":"IF(TRIM(AS205)=\"\", \"\", IF(VLOOKUP(AS205,'Footnotes list'!$D$9:$E$58,2,FALSE)=0,\"\",VLOOKUP(AS205,'Footnotes list'!$D$9:$E$58,2,FALSE) ) )","v":""},null,null,null,null,{"$f":"IF(TRIM(AX205)=\"\", \"\", IF(VLOOKUP(AX205,'Footnotes list'!$D$9:$E$58,2,FALSE)=0,\"\",VLOOKUP(AX205,'Footnotes list'!$D$9:$E$58,2,FALSE) ) )","v":""},null,null,null,null,{"$f":"IF(TRIM(BC205)=\"\", \"\", IF(VLOOKUP(BC205,'Footnotes list'!$D$9:$E$58,2,FALSE)=0,\"\",VLOOKUP(BC205,'Footnotes list'!$D$9:$E$58,2,FALSE) ) )","v":""},null,null,null,null,{"$f":"IF(TRIM(BH205)=\"\", \"\", IF(VLOOKUP(BH205,'Footnotes list'!$D$9:$E$58,2,FALSE)=0,\"\",VLOOKUP(BH205,'Footnotes list'!$D$9:$E$58,2,FALSE) ) )","v":""},null,null,null,null,{"$f":"IF(TRIM(BM205)=\"\", \"\", IF(VLOOKUP(BM205,'Footnotes list'!$D$9:$E$58,2,FALSE)=0,\"\",VLOOKUP(BM205,'Footnotes list'!$D$9:$E$58,2,FALSE) ) )","v":""},null,null,null,null,{"$f":"IF(TRIM(BR205)=\"\", \"\", IF(VLOOKUP(BR205,'Footnotes list'!$D$9:$E$58,2,FALSE)=0,\"\",VLOOKUP(BR205,'Footnotes list'!$D$9:$E$58,2,FALSE) ) )","v":""},null,null,null,null,{"$f":"IF(TRIM(BW205)=\"\", \"\", IF(VLOOKUP(BW205,'Footnotes list'!$D$9:$E$58,2,FALSE)=0,\"\",VLOOKUP(BW205,'Footnotes list'!$D$9:$E$58,2,FALSE) ) )","v":""},null,null,null,null,{"$f":"IF(TRIM(CB205)=\"\", \"\", IF(VLOOKUP(CB205,'Footnotes list'!$D$9:$E$58,2,FALSE)=0,\"\",VLOOKUP(CB205,'Footnotes list'!$D$9:$E$58,2,FALSE) ) )","v":""},null,null,null,null,{"$f":"IF(TRIM(CG205)=\"\", \"\", IF(VLOOKUP(CG205,'Footnotes list'!$D$9:$E$58,2,FALSE)=0,\"\",VLOOKUP(CG205,'Footnotes list'!$D$9:$E$58,2,FALSE) ) )","v":""},null,null,null,null,{"$f":"IF(TRIM(CL205)=\"\", \"\", IF(VLOOKUP(CL205,'Footnotes list'!$D$9:$E$58,2,FALSE)=0,\"\",VLOOKUP(CL205,'Footnotes list'!$D$9:$E$58,2,FALSE) ) )","v":""},null,null,null,null,{"$f":"IF(TRIM(CQ205)=\"\", \"\", IF(VLOOKUP(CQ205,'Footnotes list'!$D$9:$E$58,2,FALSE)=0,\"\",VLOOKUP(CQ205,'Footnotes list'!$D$9:$E$58,2,FALSE) ) )","v":""},null,null,null,null,{"$f":"IF(TRIM(CV205)=\"\", \"\", IF(VLOOKUP(CV205,'Footnotes list'!$D$9:$E$58,2,FALSE)=0,\"\",VLOOKUP(CV205,'Footnotes list'!$D$9:$E$58,2,FALSE) ) )","v":""},null,null,null,null,{"$f":"IF(TRIM(DA205)=\"\", \"\", IF(VLOOKUP(DA205,'Footnotes list'!$D$9:$E$58,2,FALSE)=0,\"\",VLOOKUP(DA205,'Footnotes list'!$D$9:$E$58,2,FALSE) ) )","v":""},null,null,null,null,{"$f":"IF(TRIM(DF205)=\"\", \"\", IF(VLOOKUP(DF205,'Footnotes list'!$D$9:$E$58,2,FALSE)=0,\"\",VLOOKUP(DF205,'Footnotes list'!$D$9:$E$58,2,FALSE) ) )","v":""},null,null,null,null,{"$f":"IF(TRIM(DK205)=\"\", \"\", IF(VLOOKUP(DK205,'Footnotes list'!$D$9:$E$58,2,FALSE)=0,\"\",VLOOKUP(DK205,'Footnotes list'!$D$9:$E$58,2,FALSE) ) )","v":""},null,null,null,null,{"$f":"IF(TRIM(DP205)=\"\", \"\", IF(VLOOKUP(DP205,'Footnotes list'!$D$9:$E$58,2,FALSE)=0,\"\",VLOOKUP(DP205,'Footnotes list'!$D$9:$E$58,2,FALSE) ) )","v":""},null,null,null,null,{"$f":"IF(TRIM(DU205)=\"\", \"\", IF(VLOOKUP(DU205,'Footnotes list'!$D$9:$E$58,2,FALSE)=0,\"\",VLOOKUP(DU205,'Footnotes list'!$D$9:$E$58,2,FALSE) ) )","v":""},null,null,null,null,{"$f":"IF(TRIM(DZ205)=\"\", \"\", IF(VLOOKUP(DZ205,'Footnotes list'!$D$9:$E$58,2,FALSE)=0,\"\",VLOOKUP(DZ205,'Footnotes list'!$D$9:$E$58,2,FALSE) ) )","v":""},null,null,null,null,{"$f":"IF(TRIM(EE205)=\"\", \"\", IF(VLOOKUP(EE205,'Footnotes list'!$D$9:$E$58,2,FALSE)=0,\"\",VLOOKUP(EE205,'Footnotes list'!$D$9:$E$58,2,FALSE) ) )","v":""},null,null,null,null,{"$f":"IF(TRIM(EJ205)=\"\", \"\", IF(VLOOKUP(EJ205,'Footnotes list'!$D$9:$E$58,2,FALSE)=0,\"\",VLOOKUP(EJ205,'Footnotes list'!$D$9:$E$58,2,FALSE) ) )","v":""},null,null,null,null,{"$f":"IF(TRIM(EO205)=\"\", \"\", IF(VLOOKUP(EO205,'Footnotes list'!$D$9:$E$58,2,FALSE)=0,\"\",VLOOKUP(EO205,'Footnotes list'!$D$9:$E$58,2,FALSE) ) )","v":""},null,null,null,null,{"$f":"IF(TRIM(ET205)=\"\", \"\", IF(VLOOKUP(ET205,'Footnotes list'!$D$9:$E$58,2,FALSE)=0,\"\",VLOOKUP(ET205,'Footnotes list'!$D$9:$E$58,2,FALSE) ) )","v":""},null,null,null,null,{"$f":"IF(TRIM(EY205)=\"\", \"\", IF(VLOOKUP(EY205,'Footnotes list'!$D$9:$E$58,2,FALSE)=0,\"\",VLOOKUP(EY205,'Footnotes list'!$D$9:$E$58,2,FALSE) ) )","v":""}]
[null,null,"K","NMKT","non-market activities",null,null,null,null,null,{"$f":"IF(TRIM(J206)=\"\", \"\", IF(VLOOKUP(J206,'Footnotes list'!$D$9:$E$58,2,FALSE)=0,\"\",VLOOKUP(J206,'Footnotes list'!$D$9:$E$58,2,FALSE) ) )","v":""},null,null,null,null,{"$f":"IF(TRIM(O206)=\"\", \"\", IF(VLOOKUP(O206,'Footnotes list'!$D$9:$E$58,2,FALSE)=0,\"\",VLOOKUP(O206,'Footnotes list'!$D$9:$E$58,2,FALSE) ) )","v":""},null,null,null,null,{"$f":"IF(TRIM(T206)=\"\", \"\", IF(VLOOKUP(T206,'Footnotes list'!$D$9:$E$58,2,FALSE)=0,\"\",VLOOKUP(T206,'Footnotes list'!$D$9:$E$58,2,FALSE) ) )","v":""},null,null,null,null,{"$f":"IF(TRIM(Y206)=\"\", \"\", IF(VLOOKUP(Y206,'Footnotes list'!$D$9:$E$58,2,FALSE)=0,\"\",VLOOKUP(Y206,'Footnotes list'!$D$9:$E$58,2,FALSE) ) )","v":""},null,null,null,null,{"$f":"IF(TRIM(AD206)=\"\", \"\", IF(VLOOKUP(AD206,'Footnotes list'!$D$9:$E$58,2,FALSE)=0,\"\",VLOOKUP(AD206,'Footnotes list'!$D$9:$E$58,2,FALSE) ) )","v":""},null,null,null,null,{"$f":"IF(TRIM(AI206)=\"\", \"\", IF(VLOOKUP(AI206,'Footnotes list'!$D$9:$E$58,2,FALSE)=0,\"\",VLOOKUP(AI206,'Footnotes list'!$D$9:$E$58,2,FALSE) ) )","v":""},null,null,null,null,{"$f":"IF(TRIM(AN206)=\"\", \"\", IF(VLOOKUP(AN206,'Footnotes list'!$D$9:$E$58,2,FALSE)=0,\"\",VLOOKUP(AN206,'Footnotes list'!$D$9:$E$58,2,FALSE) ) )","v":""},null,null,null,null,{"$f":"IF(TRIM(AS206)=\"\", \"\", IF(VLOOKUP(AS206,'Footnotes list'!$D$9:$E$58,2,FALSE)=0,\"\",VLOOKUP(AS206,'Footnotes list'!$D$9:$E$58,2,FALSE) ) )","v":""},null,null,null,null,{"$f":"IF(TRIM(AX206)=\"\", \"\", IF(VLOOKUP(AX206,'Footnotes list'!$D$9:$E$58,2,FALSE)=0,\"\",VLOOKUP(AX206,'Footnotes list'!$D$9:$E$58,2,FALSE) ) )","v":""},null,null,null,null,{"$f":"IF(TRIM(BC206)=\"\", \"\", IF(VLOOKUP(BC206,'Footnotes list'!$D$9:$E$58,2,FALSE)=0,\"\",VLOOKUP(BC206,'Footnotes list'!$D$9:$E$58,2,FALSE) ) )","v":""},null,null,null,null,{"$f":"IF(TRIM(BH206)=\"\", \"\", IF(VLOOKUP(BH206,'Footnotes list'!$D$9:$E$58,2,FALSE)=0,\"\",VLOOKUP(BH206,'Footnotes list'!$D$9:$E$58,2,FALSE) ) )","v":""},null,null,null,null,{"$f":"IF(TRIM(BM206)=\"\", \"\", IF(VLOOKUP(BM206,'Footnotes list'!$D$9:$E$58,2,FALSE)=0,\"\",VLOOKUP(BM206,'Footnotes list'!$D$9:$E$58,2,FALSE) ) )","v":""},null,null,null,null,{"$f":"IF(TRIM(BR206)=\"\", \"\", IF(VLOOKUP(BR206,'Footnotes list'!$D$9:$E$58,2,FALSE)=0,\"\",VLOOKUP(BR206,'Footnotes list'!$D$9:$E$58,2,FALSE) ) )","v":""},null,null,null,null,{"$f":"IF(TRIM(BW206)=\"\", \"\", IF(VLOOKUP(BW206,'Footnotes list'!$D$9:$E$58,2,FALSE)=0,\"\",VLOOKUP(BW206,'Footnotes list'!$D$9:$E$58,2,FALSE) ) )","v":""},null,null,null,null,{"$f":"IF(TRIM(CB206)=\"\", \"\", IF(VLOOKUP(CB206,'Footnotes list'!$D$9:$E$58,2,FALSE)=0,\"\",VLOOKUP(CB206,'Footnotes list'!$D$9:$E$58,2,FALSE) ) )","v":""},null,null,null,null,{"$f":"IF(TRIM(CG206)=\"\", \"\", IF(VLOOKUP(CG206,'Footnotes list'!$D$9:$E$58,2,FALSE)=0,\"\",VLOOKUP(CG206,'Footnotes list'!$D$9:$E$58,2,FALSE) ) )","v":""},null,null,null,null,{"$f":"IF(TRIM(CL206)=\"\", \"\", IF(VLOOKUP(CL206,'Footnotes list'!$D$9:$E$58,2,FALSE)=0,\"\",VLOOKUP(CL206,'Footnotes list'!$D$9:$E$58,2,FALSE) ) )","v":""},null,null,null,null,{"$f":"IF(TRIM(CQ206)=\"\", \"\", IF(VLOOKUP(CQ206,'Footnotes list'!$D$9:$E$58,2,FALSE)=0,\"\",VLOOKUP(CQ206,'Footnotes list'!$D$9:$E$58,2,FALSE) ) )","v":""},null,null,null,null,{"$f":"IF(TRIM(CV206)=\"\", \"\", IF(VLOOKUP(CV206,'Footnotes list'!$D$9:$E$58,2,FALSE)=0,\"\",VLOOKUP(CV206,'Footnotes list'!$D$9:$E$58,2,FALSE) ) )","v":""},null,null,null,null,{"$f":"IF(TRIM(DA206)=\"\", \"\", IF(VLOOKUP(DA206,'Footnotes list'!$D$9:$E$58,2,FALSE)=0,\"\",VLOOKUP(DA206,'Footnotes list'!$D$9:$E$58,2,FALSE) ) )","v":""},null,null,null,null,{"$f":"IF(TRIM(DF206)=\"\", \"\", IF(VLOOKUP(DF206,'Footnotes list'!$D$9:$E$58,2,FALSE)=0,\"\",VLOOKUP(DF206,'Footnotes list'!$D$9:$E$58,2,FALSE) ) )","v":""},null,null,null,null,{"$f":"IF(TRIM(DK206)=\"\", \"\", IF(VLOOKUP(DK206,'Footnotes list'!$D$9:$E$58,2,FALSE)=0,\"\",VLOOKUP(DK206,'Footnotes list'!$D$9:$E$58,2,FALSE) ) )","v":""},null,null,null,null,{"$f":"IF(TRIM(DP206)=\"\", \"\", IF(VLOOKUP(DP206,'Footnotes list'!$D$9:$E$58,2,FALSE)=0,\"\",VLOOKUP(DP206,'Footnotes list'!$D$9:$E$58,2,FALSE) ) )","v":""},null,null,null,null,{"$f":"IF(TRIM(DU206)=\"\", \"\", IF(VLOOKUP(DU206,'Footnotes list'!$D$9:$E$58,2,FALSE)=0,\"\",VLOOKUP(DU206,'Footnotes list'!$D$9:$E$58,2,FALSE) ) )","v":""},null,null,null,null,{"$f":"IF(TRIM(DZ206)=\"\", \"\", IF(VLOOKUP(DZ206,'Footnotes list'!$D$9:$E$58,2,FALSE)=0,\"\",VLOOKUP(DZ206,'Footnotes list'!$D$9:$E$58,2,FALSE) ) )","v":""},null,null,null,null,{"$f":"IF(TRIM(EE206)=\"\", \"\", IF(VLOOKUP(EE206,'Footnotes list'!$D$9:$E$58,2,FALSE)=0,\"\",VLOOKUP(EE206,'Footnotes list'!$D$9:$E$58,2,FALSE) ) )","v":""},null,null,null,null,{"$f":"IF(TRIM(EJ206)=\"\", \"\", IF(VLOOKUP(EJ206,'Footnotes list'!$D$9:$E$58,2,FALSE)=0,\"\",VLOOKUP(EJ206,'Footnotes list'!$D$9:$E$58,2,FALSE) ) )","v":""},null,null,null,null,{"$f":"IF(TRIM(EO206)=\"\", \"\", IF(VLOOKUP(EO206,'Footnotes list'!$D$9:$E$58,2,FALSE)=0,\"\",VLOOKUP(EO206,'Footnotes list'!$D$9:$E$58,2,FALSE) ) )","v":""},null,null,null,null,{"$f":"IF(TRIM(ET206)=\"\", \"\", IF(VLOOKUP(ET206,'Footnotes list'!$D$9:$E$58,2,FALSE)=0,\"\",VLOOKUP(ET206,'Footnotes list'!$D$9:$E$58,2,FALSE) ) )","v":""},null,null,null,null,{"$f":"IF(TRIM(EY206)=\"\", \"\", IF(VLOOKUP(EY206,'Footnotes list'!$D$9:$E$58,2,FALSE)=0,\"\",VLOOKUP(EY206,'Footnotes list'!$D$9:$E$58,2,FALSE) ) )","v":""}]
[null,null,"K","OWN_USE","activities for own final use",null,null,null,null,null,{"$f":"IF(TRIM(J207)=\"\", \"\", IF(VLOOKUP(J207,'Footnotes list'!$D$9:$E$58,2,FALSE)=0,\"\",VLOOKUP(J207,'Footnotes list'!$D$9:$E$58,2,FALSE) ) )","v":""},null,null,null,null,{"$f":"IF(TRIM(O207)=\"\", \"\", IF(VLOOKUP(O207,'Footnotes list'!$D$9:$E$58,2,FALSE)=0,\"\",VLOOKUP(O207,'Footnotes list'!$D$9:$E$58,2,FALSE) ) )","v":""},null,null,null,null,{"$f":"IF(TRIM(T207)=\"\", \"\", IF(VLOOKUP(T207,'Footnotes list'!$D$9:$E$58,2,FALSE)=0,\"\",VLOOKUP(T207,'Footnotes list'!$D$9:$E$58,2,FALSE) ) )","v":""},null,null,null,null,{"$f":"IF(TRIM(Y207)=\"\", \"\", IF(VLOOKUP(Y207,'Footnotes list'!$D$9:$E$58,2,FALSE)=0,\"\",VLOOKUP(Y207,'Footnotes list'!$D$9:$E$58,2,FALSE) ) )","v":""},null,null,null,null,{"$f":"IF(TRIM(AD207)=\"\", \"\", IF(VLOOKUP(AD207,'Footnotes list'!$D$9:$E$58,2,FALSE)=0,\"\",VLOOKUP(AD207,'Footnotes list'!$D$9:$E$58,2,FALSE) ) )","v":""},null,null,null,null,{"$f":"IF(TRIM(AI207)=\"\", \"\", IF(VLOOKUP(AI207,'Footnotes list'!$D$9:$E$58,2,FALSE)=0,\"\",VLOOKUP(AI207,'Footnotes list'!$D$9:$E$58,2,FALSE) ) )","v":""},null,null,null,null,{"$f":"IF(TRIM(AN207)=\"\", \"\", IF(VLOOKUP(AN207,'Footnotes list'!$D$9:$E$58,2,FALSE)=0,\"\",VLOOKUP(AN207,'Footnotes list'!$D$9:$E$58,2,FALSE) ) )","v":""},null,null,null,null,{"$f":"IF(TRIM(AS207)=\"\", \"\", IF(VLOOKUP(AS207,'Footnotes list'!$D$9:$E$58,2,FALSE)=0,\"\",VLOOKUP(AS207,'Footnotes list'!$D$9:$E$58,2,FALSE) ) )","v":""},null,null,null,null,{"$f":"IF(TRIM(AX207)=\"\", \"\", IF(VLOOKUP(AX207,'Footnotes list'!$D$9:$E$58,2,FALSE)=0,\"\",VLOOKUP(AX207,'Footnotes list'!$D$9:$E$58,2,FALSE) ) )","v":""},null,null,null,null,{"$f":"IF(TRIM(BC207)=\"\", \"\", IF(VLOOKUP(BC207,'Footnotes list'!$D$9:$E$58,2,FALSE)=0,\"\",VLOOKUP(BC207,'Footnotes list'!$D$9:$E$58,2,FALSE) ) )","v":""},null,null,null,null,{"$f":"IF(TRIM(BH207)=\"\", \"\", IF(VLOOKUP(BH207,'Footnotes list'!$D$9:$E$58,2,FALSE)=0,\"\",VLOOKUP(BH207,'Footnotes list'!$D$9:$E$58,2,FALSE) ) )","v":""},null,null,null,null,{"$f":"IF(TRIM(BM207)=\"\", \"\", IF(VLOOKUP(BM207,'Footnotes list'!$D$9:$E$58,2,FALSE)=0,\"\",VLOOKUP(BM207,'Footnotes list'!$D$9:$E$58,2,FALSE) ) )","v":""},null,null,null,null,{"$f":"IF(TRIM(BR207)=\"\", \"\", IF(VLOOKUP(BR207,'Footnotes list'!$D$9:$E$58,2,FALSE)=0,\"\",VLOOKUP(BR207,'Footnotes list'!$D$9:$E$58,2,FALSE) ) )","v":""},null,null,null,null,{"$f":"IF(TRIM(BW207)=\"\", \"\", IF(VLOOKUP(BW207,'Footnotes list'!$D$9:$E$58,2,FALSE)=0,\"\",VLOOKUP(BW207,'Footnotes list'!$D$9:$E$58,2,FALSE) ) )","v":""},null,null,null,null,{"$f":"IF(TRIM(CB207)=\"\", \"\", IF(VLOOKUP(CB207,'Footnotes list'!$D$9:$E$58,2,FALSE)=0,\"\",VLOOKUP(CB207,'Footnotes list'!$D$9:$E$58,2,FALSE) ) )","v":""},null,null,null,null,{"$f":"IF(TRIM(CG207)=\"\", \"\", IF(VLOOKUP(CG207,'Footnotes list'!$D$9:$E$58,2,FALSE)=0,\"\",VLOOKUP(CG207,'Footnotes list'!$D$9:$E$58,2,FALSE) ) )","v":""},null,null,null,null,{"$f":"IF(TRIM(CL207)=\"\", \"\", IF(VLOOKUP(CL207,'Footnotes list'!$D$9:$E$58,2,FALSE)=0,\"\",VLOOKUP(CL207,'Footnotes list'!$D$9:$E$58,2,FALSE) ) )","v":""},null,null,null,null,{"$f":"IF(TRIM(CQ207)=\"\", \"\", IF(VLOOKUP(CQ207,'Footnotes list'!$D$9:$E$58,2,FALSE)=0,\"\",VLOOKUP(CQ207,'Footnotes list'!$D$9:$E$58,2,FALSE) ) )","v":""},null,null,null,null,{"$f":"IF(TRIM(CV207)=\"\", \"\", IF(VLOOKUP(CV207,'Footnotes list'!$D$9:$E$58,2,FALSE)=0,\"\",VLOOKUP(CV207,'Footnotes list'!$D$9:$E$58,2,FALSE) ) )","v":""},null,null,null,null,{"$f":"IF(TRIM(DA207)=\"\", \"\", IF(VLOOKUP(DA207,'Footnotes list'!$D$9:$E$58,2,FALSE)=0,\"\",VLOOKUP(DA207,'Footnotes list'!$D$9:$E$58,2,FALSE) ) )","v":""},null,null,null,null,{"$f":"IF(TRIM(DF207)=\"\", \"\", IF(VLOOKUP(DF207,'Footnotes list'!$D$9:$E$58,2,FALSE)=0,\"\",VLOOKUP(DF207,'Footnotes list'!$D$9:$E$58,2,FALSE) ) )","v":""},null,null,null,null,{"$f":"IF(TRIM(DK207)=\"\", \"\", IF(VLOOKUP(DK207,'Footnotes list'!$D$9:$E$58,2,FALSE)=0,\"\",VLOOKUP(DK207,'Footnotes list'!$D$9:$E$58,2,FALSE) ) )","v":""},null,null,null,null,{"$f":"IF(TRIM(DP207)=\"\", \"\", IF(VLOOKUP(DP207,'Footnotes list'!$D$9:$E$58,2,FALSE)=0,\"\",VLOOKUP(DP207,'Footnotes list'!$D$9:$E$58,2,FALSE) ) )","v":""},null,null,null,null,{"$f":"IF(TRIM(DU207)=\"\", \"\", IF(VLOOKUP(DU207,'Footnotes list'!$D$9:$E$58,2,FALSE)=0,\"\",VLOOKUP(DU207,'Footnotes list'!$D$9:$E$58,2,FALSE) ) )","v":""},null,null,null,null,{"$f":"IF(TRIM(DZ207)=\"\", \"\", IF(VLOOKUP(DZ207,'Footnotes list'!$D$9:$E$58,2,FALSE)=0,\"\",VLOOKUP(DZ207,'Footnotes list'!$D$9:$E$58,2,FALSE) ) )","v":""},null,null,null,null,{"$f":"IF(TRIM(EE207)=\"\", \"\", IF(VLOOKUP(EE207,'Footnotes list'!$D$9:$E$58,2,FALSE)=0,\"\",VLOOKUP(EE207,'Footnotes list'!$D$9:$E$58,2,FALSE) ) )","v":""},null,null,null,null,{"$f":"IF(TRIM(EJ207)=\"\", \"\", IF(VLOOKUP(EJ207,'Footnotes list'!$D$9:$E$58,2,FALSE)=0,\"\",VLOOKUP(EJ207,'Footnotes list'!$D$9:$E$58,2,FALSE) ) )","v":""},null,null,null,null,{"$f":"IF(TRIM(EO207)=\"\", \"\", IF(VLOOKUP(EO207,'Footnotes list'!$D$9:$E$58,2,FALSE)=0,\"\",VLOOKUP(EO207,'Footnotes list'!$D$9:$E$58,2,FALSE) ) )","v":""},null,null,null,null,{"$f":"IF(TRIM(ET207)=\"\", \"\", IF(VLOOKUP(ET207,'Footnotes list'!$D$9:$E$58,2,FALSE)=0,\"\",VLOOKUP(ET207,'Footnotes list'!$D$9:$E$58,2,FALSE) ) )","v":""},null,null,null,null,{"$f":"IF(TRIM(EY207)=\"\", \"\", IF(VLOOKUP(EY207,'Footnotes list'!$D$9:$E$58,2,FALSE)=0,\"\",VLOOKUP(EY207,'Footnotes list'!$D$9:$E$58,2,FALSE) ) )","v":""}]
[null,null,"K","MKT","market activities, including:",null,null,null,null,null,{"$f":"IF(TRIM(J208)=\"\", \"\", IF(VLOOKUP(J208,'Footnotes list'!$D$9:$E$58,2,FALSE)=0,\"\",VLOOKUP(J208,'Footnotes list'!$D$9:$E$58,2,FALSE) ) )","v":""},null,null,null,null,{"$f":"IF(TRIM(O208)=\"\", \"\", IF(VLOOKUP(O208,'Footnotes list'!$D$9:$E$58,2,FALSE)=0,\"\",VLOOKUP(O208,'Footnotes list'!$D$9:$E$58,2,FALSE) ) )","v":""},null,null,null,null,{"$f":"IF(TRIM(T208)=\"\", \"\", IF(VLOOKUP(T208,'Footnotes list'!$D$9:$E$58,2,FALSE)=0,\"\",VLOOKUP(T208,'Footnotes list'!$D$9:$E$58,2,FALSE) ) )","v":""},null,null,null,null,{"$f":"IF(TRIM(Y208)=\"\", \"\", IF(VLOOKUP(Y208,'Footnotes list'!$D$9:$E$58,2,FALSE)=0,\"\",VLOOKUP(Y208,'Footnotes list'!$D$9:$E$58,2,FALSE) ) )","v":""},null,null,null,null,{"$f":"IF(TRIM(AD208)=\"\", \"\", IF(VLOOKUP(AD208,'Footnotes list'!$D$9:$E$58,2,FALSE)=0,\"\",VLOOKUP(AD208,'Footnotes list'!$D$9:$E$58,2,FALSE) ) )","v":""},null,null,null,null,{"$f":"IF(TRIM(AI208)=\"\", \"\", IF(VLOOKUP(AI208,'Footnotes list'!$D$9:$E$58,2,FALSE)=0,\"\",VLOOKUP(AI208,'Footnotes list'!$D$9:$E$58,2,FALSE) ) )","v":""},null,null,null,null,{"$f":"IF(TRIM(AN208)=\"\", \"\", IF(VLOOKUP(AN208,'Footnotes list'!$D$9:$E$58,2,FALSE)=0,\"\",VLOOKUP(AN208,'Footnotes list'!$D$9:$E$58,2,FALSE) ) )","v":""},null,null,null,null,{"$f":"IF(TRIM(AS208)=\"\", \"\", IF(VLOOKUP(AS208,'Footnotes list'!$D$9:$E$58,2,FALSE)=0,\"\",VLOOKUP(AS208,'Footnotes list'!$D$9:$E$58,2,FALSE) ) )","v":""},null,null,null,null,{"$f":"IF(TRIM(AX208)=\"\", \"\", IF(VLOOKUP(AX208,'Footnotes list'!$D$9:$E$58,2,FALSE)=0,\"\",VLOOKUP(AX208,'Footnotes list'!$D$9:$E$58,2,FALSE) ) )","v":""},null,null,null,null,{"$f":"IF(TRIM(BC208)=\"\", \"\", IF(VLOOKUP(BC208,'Footnotes list'!$D$9:$E$58,2,FALSE)=0,\"\",VLOOKUP(BC208,'Footnotes list'!$D$9:$E$58,2,FALSE) ) )","v":""},null,null,null,null,{"$f":"IF(TRIM(BH208)=\"\", \"\", IF(VLOOKUP(BH208,'Footnotes list'!$D$9:$E$58,2,FALSE)=0,\"\",VLOOKUP(BH208,'Footnotes list'!$D$9:$E$58,2,FALSE) ) )","v":""},null,null,null,null,{"$f":"IF(TRIM(BM208)=\"\", \"\", IF(VLOOKUP(BM208,'Footnotes list'!$D$9:$E$58,2,FALSE)=0,\"\",VLOOKUP(BM208,'Footnotes list'!$D$9:$E$58,2,FALSE) ) )","v":""},null,null,null,null,{"$f":"IF(TRIM(BR208)=\"\", \"\", IF(VLOOKUP(BR208,'Footnotes list'!$D$9:$E$58,2,FALSE)=0,\"\",VLOOKUP(BR208,'Footnotes list'!$D$9:$E$58,2,FALSE) ) )","v":""},null,null,null,null,{"$f":"IF(TRIM(BW208)=\"\", \"\", IF(VLOOKUP(BW208,'Footnotes list'!$D$9:$E$58,2,FALSE)=0,\"\",VLOOKUP(BW208,'Footnotes list'!$D$9:$E$58,2,FALSE) ) )","v":""},null,null,null,null,{"$f":"IF(TRIM(CB208)=\"\", \"\", IF(VLOOKUP(CB208,'Footnotes list'!$D$9:$E$58,2,FALSE)=0,\"\",VLOOKUP(CB208,'Footnotes list'!$D$9:$E$58,2,FALSE) ) )","v":""},null,null,null,null,{"$f":"IF(TRIM(CG208)=\"\", \"\", IF(VLOOKUP(CG208,'Footnotes list'!$D$9:$E$58,2,FALSE)=0,\"\",VLOOKUP(CG208,'Footnotes list'!$D$9:$E$58,2,FALSE) ) )","v":""},null,null,null,null,{"$f":"IF(TRIM(CL208)=\"\", \"\", IF(VLOOKUP(CL208,'Footnotes list'!$D$9:$E$58,2,FALSE)=0,\"\",VLOOKUP(CL208,'Footnotes list'!$D$9:$E$58,2,FALSE) ) )","v":""},null,null,null,null,{"$f":"IF(TRIM(CQ208)=\"\", \"\", IF(VLOOKUP(CQ208,'Footnotes list'!$D$9:$E$58,2,FALSE)=0,\"\",VLOOKUP(CQ208,'Footnotes list'!$D$9:$E$58,2,FALSE) ) )","v":""},null,null,null,null,{"$f":"IF(TRIM(CV208)=\"\", \"\", IF(VLOOKUP(CV208,'Footnotes list'!$D$9:$E$58,2,FALSE)=0,\"\",VLOOKUP(CV208,'Footnotes list'!$D$9:$E$58,2,FALSE) ) )","v":""},null,null,null,null,{"$f":"IF(TRIM(DA208)=\"\", \"\", IF(VLOOKUP(DA208,'Footnotes list'!$D$9:$E$58,2,FALSE)=0,\"\",VLOOKUP(DA208,'Footnotes list'!$D$9:$E$58,2,FALSE) ) )","v":""},null,null,null,null,{"$f":"IF(TRIM(DF208)=\"\", \"\", IF(VLOOKUP(DF208,'Footnotes list'!$D$9:$E$58,2,FALSE)=0,\"\",VLOOKUP(DF208,'Footnotes list'!$D$9:$E$58,2,FALSE) ) )","v":""},null,null,null,null,{"$f":"IF(TRIM(DK208)=\"\", \"\", IF(VLOOKUP(DK208,'Footnotes list'!$D$9:$E$58,2,FALSE)=0,\"\",VLOOKUP(DK208,'Footnotes list'!$D$9:$E$58,2,FALSE) ) )","v":""},null,null,null,null,{"$f":"IF(TRIM(DP208)=\"\", \"\", IF(VLOOKUP(DP208,'Footnotes list'!$D$9:$E$58,2,FALSE)=0,\"\",VLOOKUP(DP208,'Footnotes list'!$D$9:$E$58,2,FALSE) ) )","v":""},null,null,null,null,{"$f":"IF(TRIM(DU208)=\"\", \"\", IF(VLOOKUP(DU208,'Footnotes list'!$D$9:$E$58,2,FALSE)=0,\"\",VLOOKUP(DU208,'Footnotes list'!$D$9:$E$58,2,FALSE) ) )","v":""},null,null,null,null,{"$f":"IF(TRIM(DZ208)=\"\", \"\", IF(VLOOKUP(DZ208,'Footnotes list'!$D$9:$E$58,2,FALSE)=0,\"\",VLOOKUP(DZ208,'Footnotes list'!$D$9:$E$58,2,FALSE) ) )","v":""},null,null,null,null,{"$f":"IF(TRIM(EE208)=\"\", \"\", IF(VLOOKUP(EE208,'Footnotes list'!$D$9:$E$58,2,FALSE)=0,\"\",VLOOKUP(EE208,'Footnotes list'!$D$9:$E$58,2,FALSE) ) )","v":""},null,null,null,null,{"$f":"IF(TRIM(EJ208)=\"\", \"\", IF(VLOOKUP(EJ208,'Footnotes list'!$D$9:$E$58,2,FALSE)=0,\"\",VLOOKUP(EJ208,'Footnotes list'!$D$9:$E$58,2,FALSE) ) )","v":""},null,null,null,null,{"$f":"IF(TRIM(EO208)=\"\", \"\", IF(VLOOKUP(EO208,'Footnotes list'!$D$9:$E$58,2,FALSE)=0,\"\",VLOOKUP(EO208,'Footnotes list'!$D$9:$E$58,2,FALSE) ) )","v":""},null,null,null,null,{"$f":"IF(TRIM(ET208)=\"\", \"\", IF(VLOOKUP(ET208,'Footnotes list'!$D$9:$E$58,2,FALSE)=0,\"\",VLOOKUP(ET208,'Footnotes list'!$D$9:$E$58,2,FALSE) ) )","v":""},null,null,null,null,{"$f":"IF(TRIM(EY208)=\"\", \"\", IF(VLOOKUP(EY208,'Footnotes list'!$D$9:$E$58,2,FALSE)=0,\"\",VLOOKUP(EY208,'Footnotes list'!$D$9:$E$58,2,FALSE) ) )","v":""}]
[null,null,"K","ES_CS","environmental specific services",null,null,null,null,null,{"$f":"IF(TRIM(J209)=\"\", \"\", IF(VLOOKUP(J209,'Footnotes list'!$D$9:$E$58,2,FALSE)=0,\"\",VLOOKUP(J209,'Footnotes list'!$D$9:$E$58,2,FALSE) ) )","v":""},null,null,null,null,{"$f":"IF(TRIM(O209)=\"\", \"\", IF(VLOOKUP(O209,'Footnotes list'!$D$9:$E$58,2,FALSE)=0,\"\",VLOOKUP(O209,'Footnotes list'!$D$9:$E$58,2,FALSE) ) )","v":""},null,null,null,null,{"$f":"IF(TRIM(T209)=\"\", \"\", IF(VLOOKUP(T209,'Footnotes list'!$D$9:$E$58,2,FALSE)=0,\"\",VLOOKUP(T209,'Footnotes list'!$D$9:$E$58,2,FALSE) ) )","v":""},null,null,null,null,{"$f":"IF(TRIM(Y209)=\"\", \"\", IF(VLOOKUP(Y209,'Footnotes list'!$D$9:$E$58,2,FALSE)=0,\"\",VLOOKUP(Y209,'Footnotes list'!$D$9:$E$58,2,FALSE) ) )","v":""},null,null,null,null,{"$f":"IF(TRIM(AD209)=\"\", \"\", IF(VLOOKUP(AD209,'Footnotes list'!$D$9:$E$58,2,FALSE)=0,\"\",VLOOKUP(AD209,'Footnotes list'!$D$9:$E$58,2,FALSE) ) )","v":""},null,null,null,null,{"$f":"IF(TRIM(AI209)=\"\", \"\", IF(VLOOKUP(AI209,'Footnotes list'!$D$9:$E$58,2,FALSE)=0,\"\",VLOOKUP(AI209,'Footnotes list'!$D$9:$E$58,2,FALSE) ) )","v":""},null,null,null,null,{"$f":"IF(TRIM(AN209)=\"\", \"\", IF(VLOOKUP(AN209,'Footnotes list'!$D$9:$E$58,2,FALSE)=0,\"\",VLOOKUP(AN209,'Footnotes list'!$D$9:$E$58,2,FALSE) ) )","v":""},null,null,null,null,{"$f":"IF(TRIM(AS209)=\"\", \"\", IF(VLOOKUP(AS209,'Footnotes list'!$D$9:$E$58,2,FALSE)=0,\"\",VLOOKUP(AS209,'Footnotes list'!$D$9:$E$58,2,FALSE) ) )","v":""},null,null,null,null,{"$f":"IF(TRIM(AX209)=\"\", \"\", IF(VLOOKUP(AX209,'Footnotes list'!$D$9:$E$58,2,FALSE)=0,\"\",VLOOKUP(AX209,'Footnotes list'!$D$9:$E$58,2,FALSE) ) )","v":""},null,null,null,null,{"$f":"IF(TRIM(BC209)=\"\", \"\", IF(VLOOKUP(BC209,'Footnotes list'!$D$9:$E$58,2,FALSE)=0,\"\",VLOOKUP(BC209,'Footnotes list'!$D$9:$E$58,2,FALSE) ) )","v":""},null,null,null,null,{"$f":"IF(TRIM(BH209)=\"\", \"\", IF(VLOOKUP(BH209,'Footnotes list'!$D$9:$E$58,2,FALSE)=0,\"\",VLOOKUP(BH209,'Footnotes list'!$D$9:$E$58,2,FALSE) ) )","v":""},null,null,null,null,{"$f":"IF(TRIM(BM209)=\"\", \"\", IF(VLOOKUP(BM209,'Footnotes list'!$D$9:$E$58,2,FALSE)=0,\"\",VLOOKUP(BM209,'Footnotes list'!$D$9:$E$58,2,FALSE) ) )","v":""},null,null,null,null,{"$f":"IF(TRIM(BR209)=\"\", \"\", IF(VLOOKUP(BR209,'Footnotes list'!$D$9:$E$58,2,FALSE)=0,\"\",VLOOKUP(BR209,'Footnotes list'!$D$9:$E$58,2,FALSE) ) )","v":""},null,null,null,null,{"$f":"IF(TRIM(BW209)=\"\", \"\", IF(VLOOKUP(BW209,'Footnotes list'!$D$9:$E$58,2,FALSE)=0,\"\",VLOOKUP(BW209,'Footnotes list'!$D$9:$E$58,2,FALSE) ) )","v":""},null,null,null,null,{"$f":"IF(TRIM(CB209)=\"\", \"\", IF(VLOOKUP(CB209,'Footnotes list'!$D$9:$E$58,2,FALSE)=0,\"\",VLOOKUP(CB209,'Footnotes list'!$D$9:$E$58,2,FALSE) ) )","v":""},null,null,null,null,{"$f":"IF(TRIM(CG209)=\"\", \"\", IF(VLOOKUP(CG209,'Footnotes list'!$D$9:$E$58,2,FALSE)=0,\"\",VLOOKUP(CG209,'Footnotes list'!$D$9:$E$58,2,FALSE) ) )","v":""},null,null,null,null,{"$f":"IF(TRIM(CL209)=\"\", \"\", IF(VLOOKUP(CL209,'Footnotes list'!$D$9:$E$58,2,FALSE)=0,\"\",VLOOKUP(CL209,'Footnotes list'!$D$9:$E$58,2,FALSE) ) )","v":""},null,null,null,null,{"$f":"IF(TRIM(CQ209)=\"\", \"\", IF(VLOOKUP(CQ209,'Footnotes list'!$D$9:$E$58,2,FALSE)=0,\"\",VLOOKUP(CQ209,'Footnotes list'!$D$9:$E$58,2,FALSE) ) )","v":""},null,null,null,null,{"$f":"IF(TRIM(CV209)=\"\", \"\", IF(VLOOKUP(CV209,'Footnotes list'!$D$9:$E$58,2,FALSE)=0,\"\",VLOOKUP(CV209,'Footnotes list'!$D$9:$E$58,2,FALSE) ) )","v":""},null,null,null,null,{"$f":"IF(TRIM(DA209)=\"\", \"\", IF(VLOOKUP(DA209,'Footnotes list'!$D$9:$E$58,2,FALSE)=0,\"\",VLOOKUP(DA209,'Footnotes list'!$D$9:$E$58,2,FALSE) ) )","v":""},null,null,null,null,{"$f":"IF(TRIM(DF209)=\"\", \"\", IF(VLOOKUP(DF209,'Footnotes list'!$D$9:$E$58,2,FALSE)=0,\"\",VLOOKUP(DF209,'Footnotes list'!$D$9:$E$58,2,FALSE) ) )","v":""},null,null,null,null,{"$f":"IF(TRIM(DK209)=\"\", \"\", IF(VLOOKUP(DK209,'Footnotes list'!$D$9:$E$58,2,FALSE)=0,\"\",VLOOKUP(DK209,'Footnotes list'!$D$9:$E$58,2,FALSE) ) )","v":""},null,null,null,null,{"$f":"IF(TRIM(DP209)=\"\", \"\", IF(VLOOKUP(DP209,'Footnotes list'!$D$9:$E$58,2,FALSE)=0,\"\",VLOOKUP(DP209,'Footnotes list'!$D$9:$E$58,2,FALSE) ) )","v":""},null,null,null,null,{"$f":"IF(TRIM(DU209)=\"\", \"\", IF(VLOOKUP(DU209,'Footnotes list'!$D$9:$E$58,2,FALSE)=0,\"\",VLOOKUP(DU209,'Footnotes list'!$D$9:$E$58,2,FALSE) ) )","v":""},null,null,null,null,{"$f":"IF(TRIM(DZ209)=\"\", \"\", IF(VLOOKUP(DZ209,'Footnotes list'!$D$9:$E$58,2,FALSE)=0,\"\",VLOOKUP(DZ209,'Footnotes list'!$D$9:$E$58,2,FALSE) ) )","v":""},null,null,null,null,{"$f":"IF(TRIM(EE209)=\"\", \"\", IF(VLOOKUP(EE209,'Footnotes list'!$D$9:$E$58,2,FALSE)=0,\"\",VLOOKUP(EE209,'Footnotes list'!$D$9:$E$58,2,FALSE) ) )","v":""},null,null,null,null,{"$f":"IF(TRIM(EJ209)=\"\", \"\", IF(VLOOKUP(EJ209,'Footnotes list'!$D$9:$E$58,2,FALSE)=0,\"\",VLOOKUP(EJ209,'Footnotes list'!$D$9:$E$58,2,FALSE) ) )","v":""},null,null,null,null,{"$f":"IF(TRIM(EO209)=\"\", \"\", IF(VLOOKUP(EO209,'Footnotes list'!$D$9:$E$58,2,FALSE)=0,\"\",VLOOKUP(EO209,'Footnotes list'!$D$9:$E$58,2,FALSE) ) )","v":""},null,null,null,null,{"$f":"IF(TRIM(ET209)=\"\", \"\", IF(VLOOKUP(ET209,'Footnotes list'!$D$9:$E$58,2,FALSE)=0,\"\",VLOOKUP(ET209,'Footnotes list'!$D$9:$E$58,2,FALSE) ) )","v":""},null,null,null,null,{"$f":"IF(TRIM(EY209)=\"\", \"\", IF(VLOOKUP(EY209,'Footnotes list'!$D$9:$E$58,2,FALSE)=0,\"\",VLOOKUP(EY209,'Footnotes list'!$D$9:$E$58,2,FALSE) ) )","v":""}]
[null,null,"K","C_REP","cleaner and resource efficient products",null,null,null,null,null,{"$f":"IF(TRIM(J210)=\"\", \"\", IF(VLOOKUP(J210,'Footnotes list'!$D$9:$E$58,2,FALSE)=0,\"\",VLOOKUP(J210,'Footnotes list'!$D$9:$E$58,2,FALSE) ) )","v":""},null,null,null,null,{"$f":"IF(TRIM(O210)=\"\", \"\", IF(VLOOKUP(O210,'Footnotes list'!$D$9:$E$58,2,FALSE)=0,\"\",VLOOKUP(O210,'Footnotes list'!$D$9:$E$58,2,FALSE) ) )","v":""},null,null,null,null,{"$f":"IF(TRIM(T210)=\"\", \"\", IF(VLOOKUP(T210,'Footnotes list'!$D$9:$E$58,2,FALSE)=0,\"\",VLOOKUP(T210,'Footnotes list'!$D$9:$E$58,2,FALSE) ) )","v":""},null,null,null,null,{"$f":"IF(TRIM(Y210)=\"\", \"\", IF(VLOOKUP(Y210,'Footnotes list'!$D$9:$E$58,2,FALSE)=0,\"\",VLOOKUP(Y210,'Footnotes list'!$D$9:$E$58,2,FALSE) ) )","v":""},null,null,null,null,{"$f":"IF(TRIM(AD210)=\"\", \"\", IF(VLOOKUP(AD210,'Footnotes list'!$D$9:$E$58,2,FALSE)=0,\"\",VLOOKUP(AD210,'Footnotes list'!$D$9:$E$58,2,FALSE) ) )","v":""},null,null,null,null,{"$f":"IF(TRIM(AI210)=\"\", \"\", IF(VLOOKUP(AI210,'Footnotes list'!$D$9:$E$58,2,FALSE)=0,\"\",VLOOKUP(AI210,'Footnotes list'!$D$9:$E$58,2,FALSE) ) )","v":""},null,null,null,null,{"$f":"IF(TRIM(AN210)=\"\", \"\", IF(VLOOKUP(AN210,'Footnotes list'!$D$9:$E$58,2,FALSE)=0,\"\",VLOOKUP(AN210,'Footnotes list'!$D$9:$E$58,2,FALSE) ) )","v":""},null,null,null,null,{"$f":"IF(TRIM(AS210)=\"\", \"\", IF(VLOOKUP(AS210,'Footnotes list'!$D$9:$E$58,2,FALSE)=0,\"\",VLOOKUP(AS210,'Footnotes list'!$D$9:$E$58,2,FALSE) ) )","v":""},null,null,null,null,{"$f":"IF(TRIM(AX210)=\"\", \"\", IF(VLOOKUP(AX210,'Footnotes list'!$D$9:$E$58,2,FALSE)=0,\"\",VLOOKUP(AX210,'Footnotes list'!$D$9:$E$58,2,FALSE) ) )","v":""},null,null,null,null,{"$f":"IF(TRIM(BC210)=\"\", \"\", IF(VLOOKUP(BC210,'Footnotes list'!$D$9:$E$58,2,FALSE)=0,\"\",VLOOKUP(BC210,'Footnotes list'!$D$9:$E$58,2,FALSE) ) )","v":""},null,null,null,null,{"$f":"IF(TRIM(BH210)=\"\", \"\", IF(VLOOKUP(BH210,'Footnotes list'!$D$9:$E$58,2,FALSE)=0,\"\",VLOOKUP(BH210,'Footnotes list'!$D$9:$E$58,2,FALSE) ) )","v":""},null,null,null,null,{"$f":"IF(TRIM(BM210)=\"\", \"\", IF(VLOOKUP(BM210,'Footnotes list'!$D$9:$E$58,2,FALSE)=0,\"\",VLOOKUP(BM210,'Footnotes list'!$D$9:$E$58,2,FALSE) ) )","v":""},null,null,null,null,{"$f":"IF(TRIM(BR210)=\"\", \"\", IF(VLOOKUP(BR210,'Footnotes list'!$D$9:$E$58,2,FALSE)=0,\"\",VLOOKUP(BR210,'Footnotes list'!$D$9:$E$58,2,FALSE) ) )","v":""},null,null,null,null,{"$f":"IF(TRIM(BW210)=\"\", \"\", IF(VLOOKUP(BW210,'Footnotes list'!$D$9:$E$58,2,FALSE)=0,\"\",VLOOKUP(BW210,'Footnotes list'!$D$9:$E$58,2,FALSE) ) )","v":""},null,null,null,null,{"$f":"IF(TRIM(CB210)=\"\", \"\", IF(VLOOKUP(CB210,'Footnotes list'!$D$9:$E$58,2,FALSE)=0,\"\",VLOOKUP(CB210,'Footnotes list'!$D$9:$E$58,2,FALSE) ) )","v":""},null,null,null,null,{"$f":"IF(TRIM(CG210)=\"\", \"\", IF(VLOOKUP(CG210,'Footnotes list'!$D$9:$E$58,2,FALSE)=0,\"\",VLOOKUP(CG210,'Footnotes list'!$D$9:$E$58,2,FALSE) ) )","v":""},null,null,null,null,{"$f":"IF(TRIM(CL210)=\"\", \"\", IF(VLOOKUP(CL210,'Footnotes list'!$D$9:$E$58,2,FALSE)=0,\"\",VLOOKUP(CL210,'Footnotes list'!$D$9:$E$58,2,FALSE) ) )","v":""},null,null,null,null,{"$f":"IF(TRIM(CQ210)=\"\", \"\", IF(VLOOKUP(CQ210,'Footnotes list'!$D$9:$E$58,2,FALSE)=0,\"\",VLOOKUP(CQ210,'Footnotes list'!$D$9:$E$58,2,FALSE) ) )","v":""},null,null,null,null,{"$f":"IF(TRIM(CV210)=\"\", \"\", IF(VLOOKUP(CV210,'Footnotes list'!$D$9:$E$58,2,FALSE)=0,\"\",VLOOKUP(CV210,'Footnotes list'!$D$9:$E$58,2,FALSE) ) )","v":""},null,null,null,null,{"$f":"IF(TRIM(DA210)=\"\", \"\", IF(VLOOKUP(DA210,'Footnotes list'!$D$9:$E$58,2,FALSE)=0,\"\",VLOOKUP(DA210,'Footnotes list'!$D$9:$E$58,2,FALSE) ) )","v":""},null,null,null,null,{"$f":"IF(TRIM(DF210)=\"\", \"\", IF(VLOOKUP(DF210,'Footnotes list'!$D$9:$E$58,2,FALSE)=0,\"\",VLOOKUP(DF210,'Footnotes list'!$D$9:$E$58,2,FALSE) ) )","v":""},null,null,null,null,{"$f":"IF(TRIM(DK210)=\"\", \"\", IF(VLOOKUP(DK210,'Footnotes list'!$D$9:$E$58,2,FALSE)=0,\"\",VLOOKUP(DK210,'Footnotes list'!$D$9:$E$58,2,FALSE) ) )","v":""},null,null,null,null,{"$f":"IF(TRIM(DP210)=\"\", \"\", IF(VLOOKUP(DP210,'Footnotes list'!$D$9:$E$58,2,FALSE)=0,\"\",VLOOKUP(DP210,'Footnotes list'!$D$9:$E$58,2,FALSE) ) )","v":""},null,null,null,null,{"$f":"IF(TRIM(DU210)=\"\", \"\", IF(VLOOKUP(DU210,'Footnotes list'!$D$9:$E$58,2,FALSE)=0,\"\",VLOOKUP(DU210,'Footnotes list'!$D$9:$E$58,2,FALSE) ) )","v":""},null,null,null,null,{"$f":"IF(TRIM(DZ210)=\"\", \"\", IF(VLOOKUP(DZ210,'Footnotes list'!$D$9:$E$58,2,FALSE)=0,\"\",VLOOKUP(DZ210,'Footnotes list'!$D$9:$E$58,2,FALSE) ) )","v":""},null,null,null,null,{"$f":"IF(TRIM(EE210)=\"\", \"\", IF(VLOOKUP(EE210,'Footnotes list'!$D$9:$E$58,2,FALSE)=0,\"\",VLOOKUP(EE210,'Footnotes list'!$D$9:$E$58,2,FALSE) ) )","v":""},null,null,null,null,{"$f":"IF(TRIM(EJ210)=\"\", \"\", IF(VLOOKUP(EJ210,'Footnotes list'!$D$9:$E$58,2,FALSE)=0,\"\",VLOOKUP(EJ210,'Footnotes list'!$D$9:$E$58,2,FALSE) ) )","v":""},null,null,null,null,{"$f":"IF(TRIM(EO210)=\"\", \"\", IF(VLOOKUP(EO210,'Footnotes list'!$D$9:$E$58,2,FALSE)=0,\"\",VLOOKUP(EO210,'Footnotes list'!$D$9:$E$58,2,FALSE) ) )","v":""},null,null,null,null,{"$f":"IF(TRIM(ET210)=\"\", \"\", IF(VLOOKUP(ET210,'Footnotes list'!$D$9:$E$58,2,FALSE)=0,\"\",VLOOKUP(ET210,'Footnotes list'!$D$9:$E$58,2,FALSE) ) )","v":""},null,null,null,null,{"$f":"IF(TRIM(EY210)=\"\", \"\", IF(VLOOKUP(EY210,'Footnotes list'!$D$9:$E$58,2,FALSE)=0,\"\",VLOOKUP(EY210,'Footnotes list'!$D$9:$E$58,2,FALSE) ) )","v":""}]
[null,null,"L","TOT_EGSS","Total L - Real estate activities, of which:",null,null,null,null,null,{"$f":"IF(TRIM(J211)=\"\", \"\", IF(VLOOKUP(J211,'Footnotes list'!$D$9:$E$58,2,FALSE)=0,\"\",VLOOKUP(J211,'Footnotes list'!$D$9:$E$58,2,FALSE) ) )","v":""},null,null,null,null,{"$f":"IF(TRIM(O211)=\"\", \"\", IF(VLOOKUP(O211,'Footnotes list'!$D$9:$E$58,2,FALSE)=0,\"\",VLOOKUP(O211,'Footnotes list'!$D$9:$E$58,2,FALSE) ) )","v":""},null,null,null,null,{"$f":"IF(TRIM(T211)=\"\", \"\", IF(VLOOKUP(T211,'Footnotes list'!$D$9:$E$58,2,FALSE)=0,\"\",VLOOKUP(T211,'Footnotes list'!$D$9:$E$58,2,FALSE) ) )","v":""},null,null,null,null,{"$f":"IF(TRIM(Y211)=\"\", \"\", IF(VLOOKUP(Y211,'Footnotes list'!$D$9:$E$58,2,FALSE)=0,\"\",VLOOKUP(Y211,'Footnotes list'!$D$9:$E$58,2,FALSE) ) )","v":""},null,null,null,null,{"$f":"IF(TRIM(AD211)=\"\", \"\", IF(VLOOKUP(AD211,'Footnotes list'!$D$9:$E$58,2,FALSE)=0,\"\",VLOOKUP(AD211,'Footnotes list'!$D$9:$E$58,2,FALSE) ) )","v":""},null,null,null,null,{"$f":"IF(TRIM(AI211)=\"\", \"\", IF(VLOOKUP(AI211,'Footnotes list'!$D$9:$E$58,2,FALSE)=0,\"\",VLOOKUP(AI211,'Footnotes list'!$D$9:$E$58,2,FALSE) ) )","v":""},null,null,null,null,{"$f":"IF(TRIM(AN211)=\"\", \"\", IF(VLOOKUP(AN211,'Footnotes list'!$D$9:$E$58,2,FALSE)=0,\"\",VLOOKUP(AN211,'Footnotes list'!$D$9:$E$58,2,FALSE) ) )","v":""},null,null,null,null,{"$f":"IF(TRIM(AS211)=\"\", \"\", IF(VLOOKUP(AS211,'Footnotes list'!$D$9:$E$58,2,FALSE)=0,\"\",VLOOKUP(AS211,'Footnotes list'!$D$9:$E$58,2,FALSE) ) )","v":""},null,null,null,null,{"$f":"IF(TRIM(AX211)=\"\", \"\", IF(VLOOKUP(AX211,'Footnotes list'!$D$9:$E$58,2,FALSE)=0,\"\",VLOOKUP(AX211,'Footnotes list'!$D$9:$E$58,2,FALSE) ) )","v":""},null,null,null,null,{"$f":"IF(TRIM(BC211)=\"\", \"\", IF(VLOOKUP(BC211,'Footnotes list'!$D$9:$E$58,2,FALSE)=0,\"\",VLOOKUP(BC211,'Footnotes list'!$D$9:$E$58,2,FALSE) ) )","v":""},null,null,null,null,{"$f":"IF(TRIM(BH211)=\"\", \"\", IF(VLOOKUP(BH211,'Footnotes list'!$D$9:$E$58,2,FALSE)=0,\"\",VLOOKUP(BH211,'Footnotes list'!$D$9:$E$58,2,FALSE) ) )","v":""},null,null,null,null,{"$f":"IF(TRIM(BM211)=\"\", \"\", IF(VLOOKUP(BM211,'Footnotes list'!$D$9:$E$58,2,FALSE)=0,\"\",VLOOKUP(BM211,'Footnotes list'!$D$9:$E$58,2,FALSE) ) )","v":""},null,null,null,null,{"$f":"IF(TRIM(BR211)=\"\", \"\", IF(VLOOKUP(BR211,'Footnotes list'!$D$9:$E$58,2,FALSE)=0,\"\",VLOOKUP(BR211,'Footnotes list'!$D$9:$E$58,2,FALSE) ) )","v":""},null,null,null,null,{"$f":"IF(TRIM(BW211)=\"\", \"\", IF(VLOOKUP(BW211,'Footnotes list'!$D$9:$E$58,2,FALSE)=0,\"\",VLOOKUP(BW211,'Footnotes list'!$D$9:$E$58,2,FALSE) ) )","v":""},null,null,null,null,{"$f":"IF(TRIM(CB211)=\"\", \"\", IF(VLOOKUP(CB211,'Footnotes list'!$D$9:$E$58,2,FALSE)=0,\"\",VLOOKUP(CB211,'Footnotes list'!$D$9:$E$58,2,FALSE) ) )","v":""},null,null,null,null,{"$f":"IF(TRIM(CG211)=\"\", \"\", IF(VLOOKUP(CG211,'Footnotes list'!$D$9:$E$58,2,FALSE)=0,\"\",VLOOKUP(CG211,'Footnotes list'!$D$9:$E$58,2,FALSE) ) )","v":""},null,null,null,null,{"$f":"IF(TRIM(CL211)=\"\", \"\", IF(VLOOKUP(CL211,'Footnotes list'!$D$9:$E$58,2,FALSE)=0,\"\",VLOOKUP(CL211,'Footnotes list'!$D$9:$E$58,2,FALSE) ) )","v":""},null,null,null,null,{"$f":"IF(TRIM(CQ211)=\"\", \"\", IF(VLOOKUP(CQ211,'Footnotes list'!$D$9:$E$58,2,FALSE)=0,\"\",VLOOKUP(CQ211,'Footnotes list'!$D$9:$E$58,2,FALSE) ) )","v":""},null,null,null,null,{"$f":"IF(TRIM(CV211)=\"\", \"\", IF(VLOOKUP(CV211,'Footnotes list'!$D$9:$E$58,2,FALSE)=0,\"\",VLOOKUP(CV211,'Footnotes list'!$D$9:$E$58,2,FALSE) ) )","v":""},null,null,null,null,{"$f":"IF(TRIM(DA211)=\"\", \"\", IF(VLOOKUP(DA211,'Footnotes list'!$D$9:$E$58,2,FALSE)=0,\"\",VLOOKUP(DA211,'Footnotes list'!$D$9:$E$58,2,FALSE) ) )","v":""},null,null,null,null,{"$f":"IF(TRIM(DF211)=\"\", \"\", IF(VLOOKUP(DF211,'Footnotes list'!$D$9:$E$58,2,FALSE)=0,\"\",VLOOKUP(DF211,'Footnotes list'!$D$9:$E$58,2,FALSE) ) )","v":""},null,null,null,null,{"$f":"IF(TRIM(DK211)=\"\", \"\", IF(VLOOKUP(DK211,'Footnotes list'!$D$9:$E$58,2,FALSE)=0,\"\",VLOOKUP(DK211,'Footnotes list'!$D$9:$E$58,2,FALSE) ) )","v":""},null,null,null,null,{"$f":"IF(TRIM(DP211)=\"\", \"\", IF(VLOOKUP(DP211,'Footnotes list'!$D$9:$E$58,2,FALSE)=0,\"\",VLOOKUP(DP211,'Footnotes list'!$D$9:$E$58,2,FALSE) ) )","v":""},null,null,null,null,{"$f":"IF(TRIM(DU211)=\"\", \"\", IF(VLOOKUP(DU211,'Footnotes list'!$D$9:$E$58,2,FALSE)=0,\"\",VLOOKUP(DU211,'Footnotes list'!$D$9:$E$58,2,FALSE) ) )","v":""},null,null,null,null,{"$f":"IF(TRIM(DZ211)=\"\", \"\", IF(VLOOKUP(DZ211,'Footnotes list'!$D$9:$E$58,2,FALSE)=0,\"\",VLOOKUP(DZ211,'Footnotes list'!$D$9:$E$58,2,FALSE) ) )","v":""},null,null,null,null,{"$f":"IF(TRIM(EE211)=\"\", \"\", IF(VLOOKUP(EE211,'Footnotes list'!$D$9:$E$58,2,FALSE)=0,\"\",VLOOKUP(EE211,'Footnotes list'!$D$9:$E$58,2,FALSE) ) )","v":""},null,null,null,null,{"$f":"IF(TRIM(EJ211)=\"\", \"\", IF(VLOOKUP(EJ211,'Footnotes list'!$D$9:$E$58,2,FALSE)=0,\"\",VLOOKUP(EJ211,'Footnotes list'!$D$9:$E$58,2,FALSE) ) )","v":""},null,null,null,null,{"$f":"IF(TRIM(EO211)=\"\", \"\", IF(VLOOKUP(EO211,'Footnotes list'!$D$9:$E$58,2,FALSE)=0,\"\",VLOOKUP(EO211,'Footnotes list'!$D$9:$E$58,2,FALSE) ) )","v":""},null,null,null,null,{"$f":"IF(TRIM(ET211)=\"\", \"\", IF(VLOOKUP(ET211,'Footnotes list'!$D$9:$E$58,2,FALSE)=0,\"\",VLOOKUP(ET211,'Footnotes list'!$D$9:$E$58,2,FALSE) ) )","v":""},null,null,null,null,{"$f":"IF(TRIM(EY211)=\"\", \"\", IF(VLOOKUP(EY211,'Footnotes list'!$D$9:$E$58,2,FALSE)=0,\"\",VLOOKUP(EY211,'Footnotes list'!$D$9:$E$58,2,FALSE) ) )","v":""}]
[null,null,"L","ANC","ancillary activities",null,null,null,null,null,{"$f":"IF(TRIM(J212)=\"\", \"\", IF(VLOOKUP(J212,'Footnotes list'!$D$9:$E$58,2,FALSE)=0,\"\",VLOOKUP(J212,'Footnotes list'!$D$9:$E$58,2,FALSE) ) )","v":""},null,null,null,null,{"$f":"IF(TRIM(O212)=\"\", \"\", IF(VLOOKUP(O212,'Footnotes list'!$D$9:$E$58,2,FALSE)=0,\"\",VLOOKUP(O212,'Footnotes list'!$D$9:$E$58,2,FALSE) ) )","v":""},null,null,null,null,{"$f":"IF(TRIM(T212)=\"\", \"\", IF(VLOOKUP(T212,'Footnotes list'!$D$9:$E$58,2,FALSE)=0,\"\",VLOOKUP(T212,'Footnotes list'!$D$9:$E$58,2,FALSE) ) )","v":""},null,null,null,null,{"$f":"IF(TRIM(Y212)=\"\", \"\", IF(VLOOKUP(Y212,'Footnotes list'!$D$9:$E$58,2,FALSE)=0,\"\",VLOOKUP(Y212,'Footnotes list'!$D$9:$E$58,2,FALSE) ) )","v":""},null,null,null,null,{"$f":"IF(TRIM(AD212)=\"\", \"\", IF(VLOOKUP(AD212,'Footnotes list'!$D$9:$E$58,2,FALSE)=0,\"\",VLOOKUP(AD212,'Footnotes list'!$D$9:$E$58,2,FALSE) ) )","v":""},null,null,null,null,{"$f":"IF(TRIM(AI212)=\"\", \"\", IF(VLOOKUP(AI212,'Footnotes list'!$D$9:$E$58,2,FALSE)=0,\"\",VLOOKUP(AI212,'Footnotes list'!$D$9:$E$58,2,FALSE) ) )","v":""},null,null,null,null,{"$f":"IF(TRIM(AN212)=\"\", \"\", IF(VLOOKUP(AN212,'Footnotes list'!$D$9:$E$58,2,FALSE)=0,\"\",VLOOKUP(AN212,'Footnotes list'!$D$9:$E$58,2,FALSE) ) )","v":""},null,null,null,null,{"$f":"IF(TRIM(AS212)=\"\", \"\", IF(VLOOKUP(AS212,'Footnotes list'!$D$9:$E$58,2,FALSE)=0,\"\",VLOOKUP(AS212,'Footnotes list'!$D$9:$E$58,2,FALSE) ) )","v":""},null,null,null,null,{"$f":"IF(TRIM(AX212)=\"\", \"\", IF(VLOOKUP(AX212,'Footnotes list'!$D$9:$E$58,2,FALSE)=0,\"\",VLOOKUP(AX212,'Footnotes list'!$D$9:$E$58,2,FALSE) ) )","v":""},null,null,null,null,{"$f":"IF(TRIM(BC212)=\"\", \"\", IF(VLOOKUP(BC212,'Footnotes list'!$D$9:$E$58,2,FALSE)=0,\"\",VLOOKUP(BC212,'Footnotes list'!$D$9:$E$58,2,FALSE) ) )","v":""},null,null,null,null,{"$f":"IF(TRIM(BH212)=\"\", \"\", IF(VLOOKUP(BH212,'Footnotes list'!$D$9:$E$58,2,FALSE)=0,\"\",VLOOKUP(BH212,'Footnotes list'!$D$9:$E$58,2,FALSE) ) )","v":""},null,null,null,null,{"$f":"IF(TRIM(BM212)=\"\", \"\", IF(VLOOKUP(BM212,'Footnotes list'!$D$9:$E$58,2,FALSE)=0,\"\",VLOOKUP(BM212,'Footnotes list'!$D$9:$E$58,2,FALSE) ) )","v":""},null,null,null,null,{"$f":"IF(TRIM(BR212)=\"\", \"\", IF(VLOOKUP(BR212,'Footnotes list'!$D$9:$E$58,2,FALSE)=0,\"\",VLOOKUP(BR212,'Footnotes list'!$D$9:$E$58,2,FALSE) ) )","v":""},null,null,null,null,{"$f":"IF(TRIM(BW212)=\"\", \"\", IF(VLOOKUP(BW212,'Footnotes list'!$D$9:$E$58,2,FALSE)=0,\"\",VLOOKUP(BW212,'Footnotes list'!$D$9:$E$58,2,FALSE) ) )","v":""},null,null,null,null,{"$f":"IF(TRIM(CB212)=\"\", \"\", IF(VLOOKUP(CB212,'Footnotes list'!$D$9:$E$58,2,FALSE)=0,\"\",VLOOKUP(CB212,'Footnotes list'!$D$9:$E$58,2,FALSE) ) )","v":""},null,null,null,null,{"$f":"IF(TRIM(CG212)=\"\", \"\", IF(VLOOKUP(CG212,'Footnotes list'!$D$9:$E$58,2,FALSE)=0,\"\",VLOOKUP(CG212,'Footnotes list'!$D$9:$E$58,2,FALSE) ) )","v":""},null,null,null,null,{"$f":"IF(TRIM(CL212)=\"\", \"\", IF(VLOOKUP(CL212,'Footnotes list'!$D$9:$E$58,2,FALSE)=0,\"\",VLOOKUP(CL212,'Footnotes list'!$D$9:$E$58,2,FALSE) ) )","v":""},null,null,null,null,{"$f":"IF(TRIM(CQ212)=\"\", \"\", IF(VLOOKUP(CQ212,'Footnotes list'!$D$9:$E$58,2,FALSE)=0,\"\",VLOOKUP(CQ212,'Footnotes list'!$D$9:$E$58,2,FALSE) ) )","v":""},null,null,null,null,{"$f":"IF(TRIM(CV212)=\"\", \"\", IF(VLOOKUP(CV212,'Footnotes list'!$D$9:$E$58,2,FALSE)=0,\"\",VLOOKUP(CV212,'Footnotes list'!$D$9:$E$58,2,FALSE) ) )","v":""},null,null,null,null,{"$f":"IF(TRIM(DA212)=\"\", \"\", IF(VLOOKUP(DA212,'Footnotes list'!$D$9:$E$58,2,FALSE)=0,\"\",VLOOKUP(DA212,'Footnotes list'!$D$9:$E$58,2,FALSE) ) )","v":""},null,null,null,null,{"$f":"IF(TRIM(DF212)=\"\", \"\", IF(VLOOKUP(DF212,'Footnotes list'!$D$9:$E$58,2,FALSE)=0,\"\",VLOOKUP(DF212,'Footnotes list'!$D$9:$E$58,2,FALSE) ) )","v":""},null,null,null,null,{"$f":"IF(TRIM(DK212)=\"\", \"\", IF(VLOOKUP(DK212,'Footnotes list'!$D$9:$E$58,2,FALSE)=0,\"\",VLOOKUP(DK212,'Footnotes list'!$D$9:$E$58,2,FALSE) ) )","v":""},null,null,null,null,{"$f":"IF(TRIM(DP212)=\"\", \"\", IF(VLOOKUP(DP212,'Footnotes list'!$D$9:$E$58,2,FALSE)=0,\"\",VLOOKUP(DP212,'Footnotes list'!$D$9:$E$58,2,FALSE) ) )","v":""},null,null,null,null,{"$f":"IF(TRIM(DU212)=\"\", \"\", IF(VLOOKUP(DU212,'Footnotes list'!$D$9:$E$58,2,FALSE)=0,\"\",VLOOKUP(DU212,'Footnotes list'!$D$9:$E$58,2,FALSE) ) )","v":""},null,null,null,null,{"$f":"IF(TRIM(DZ212)=\"\", \"\", IF(VLOOKUP(DZ212,'Footnotes list'!$D$9:$E$58,2,FALSE)=0,\"\",VLOOKUP(DZ212,'Footnotes list'!$D$9:$E$58,2,FALSE) ) )","v":""},null,null,null,null,{"$f":"IF(TRIM(EE212)=\"\", \"\", IF(VLOOKUP(EE212,'Footnotes list'!$D$9:$E$58,2,FALSE)=0,\"\",VLOOKUP(EE212,'Footnotes list'!$D$9:$E$58,2,FALSE) ) )","v":""},null,null,null,null,{"$f":"IF(TRIM(EJ212)=\"\", \"\", IF(VLOOKUP(EJ212,'Footnotes list'!$D$9:$E$58,2,FALSE)=0,\"\",VLOOKUP(EJ212,'Footnotes list'!$D$9:$E$58,2,FALSE) ) )","v":""},null,null,null,null,{"$f":"IF(TRIM(EO212)=\"\", \"\", IF(VLOOKUP(EO212,'Footnotes list'!$D$9:$E$58,2,FALSE)=0,\"\",VLOOKUP(EO212,'Footnotes list'!$D$9:$E$58,2,FALSE) ) )","v":""},null,null,null,null,{"$f":"IF(TRIM(ET212)=\"\", \"\", IF(VLOOKUP(ET212,'Footnotes list'!$D$9:$E$58,2,FALSE)=0,\"\",VLOOKUP(ET212,'Footnotes list'!$D$9:$E$58,2,FALSE) ) )","v":""},null,null,null,null,{"$f":"IF(TRIM(EY212)=\"\", \"\", IF(VLOOKUP(EY212,'Footnotes list'!$D$9:$E$58,2,FALSE)=0,\"\",VLOOKUP(EY212,'Footnotes list'!$D$9:$E$58,2,FALSE) ) )","v":""}]
[null,null,"L","NMKT","non-market activities",null,null,null,null,null,{"$f":"IF(TRIM(J213)=\"\", \"\", IF(VLOOKUP(J213,'Footnotes list'!$D$9:$E$58,2,FALSE)=0,\"\",VLOOKUP(J213,'Footnotes list'!$D$9:$E$58,2,FALSE) ) )","v":""},null,null,null,null,{"$f":"IF(TRIM(O213)=\"\", \"\", IF(VLOOKUP(O213,'Footnotes list'!$D$9:$E$58,2,FALSE)=0,\"\",VLOOKUP(O213,'Footnotes list'!$D$9:$E$58,2,FALSE) ) )","v":""},null,null,null,null,{"$f":"IF(TRIM(T213)=\"\", \"\", IF(VLOOKUP(T213,'Footnotes list'!$D$9:$E$58,2,FALSE)=0,\"\",VLOOKUP(T213,'Footnotes list'!$D$9:$E$58,2,FALSE) ) )","v":""},null,null,null,null,{"$f":"IF(TRIM(Y213)=\"\", \"\", IF(VLOOKUP(Y213,'Footnotes list'!$D$9:$E$58,2,FALSE)=0,\"\",VLOOKUP(Y213,'Footnotes list'!$D$9:$E$58,2,FALSE) ) )","v":""},null,null,null,null,{"$f":"IF(TRIM(AD213)=\"\", \"\", IF(VLOOKUP(AD213,'Footnotes list'!$D$9:$E$58,2,FALSE)=0,\"\",VLOOKUP(AD213,'Footnotes list'!$D$9:$E$58,2,FALSE) ) )","v":""},null,null,null,null,{"$f":"IF(TRIM(AI213)=\"\", \"\", IF(VLOOKUP(AI213,'Footnotes list'!$D$9:$E$58,2,FALSE)=0,\"\",VLOOKUP(AI213,'Footnotes list'!$D$9:$E$58,2,FALSE) ) )","v":""},null,null,null,null,{"$f":"IF(TRIM(AN213)=\"\", \"\", IF(VLOOKUP(AN213,'Footnotes list'!$D$9:$E$58,2,FALSE)=0,\"\",VLOOKUP(AN213,'Footnotes list'!$D$9:$E$58,2,FALSE) ) )","v":""},null,null,null,null,{"$f":"IF(TRIM(AS213)=\"\", \"\", IF(VLOOKUP(AS213,'Footnotes list'!$D$9:$E$58,2,FALSE)=0,\"\",VLOOKUP(AS213,'Footnotes list'!$D$9:$E$58,2,FALSE) ) )","v":""},null,null,null,null,{"$f":"IF(TRIM(AX213)=\"\", \"\", IF(VLOOKUP(AX213,'Footnotes list'!$D$9:$E$58,2,FALSE)=0,\"\",VLOOKUP(AX213,'Footnotes list'!$D$9:$E$58,2,FALSE) ) )","v":""},null,null,null,null,{"$f":"IF(TRIM(BC213)=\"\", \"\", IF(VLOOKUP(BC213,'Footnotes list'!$D$9:$E$58,2,FALSE)=0,\"\",VLOOKUP(BC213,'Footnotes list'!$D$9:$E$58,2,FALSE) ) )","v":""},null,null,null,null,{"$f":"IF(TRIM(BH213)=\"\", \"\", IF(VLOOKUP(BH213,'Footnotes list'!$D$9:$E$58,2,FALSE)=0,\"\",VLOOKUP(BH213,'Footnotes list'!$D$9:$E$58,2,FALSE) ) )","v":""},null,null,null,null,{"$f":"IF(TRIM(BM213)=\"\", \"\", IF(VLOOKUP(BM213,'Footnotes list'!$D$9:$E$58,2,FALSE)=0,\"\",VLOOKUP(BM213,'Footnotes list'!$D$9:$E$58,2,FALSE) ) )","v":""},null,null,null,null,{"$f":"IF(TRIM(BR213)=\"\", \"\", IF(VLOOKUP(BR213,'Footnotes list'!$D$9:$E$58,2,FALSE)=0,\"\",VLOOKUP(BR213,'Footnotes list'!$D$9:$E$58,2,FALSE) ) )","v":""},null,null,null,null,{"$f":"IF(TRIM(BW213)=\"\", \"\", IF(VLOOKUP(BW213,'Footnotes list'!$D$9:$E$58,2,FALSE)=0,\"\",VLOOKUP(BW213,'Footnotes list'!$D$9:$E$58,2,FALSE) ) )","v":""},null,null,null,null,{"$f":"IF(TRIM(CB213)=\"\", \"\", IF(VLOOKUP(CB213,'Footnotes list'!$D$9:$E$58,2,FALSE)=0,\"\",VLOOKUP(CB213,'Footnotes list'!$D$9:$E$58,2,FALSE) ) )","v":""},null,null,null,null,{"$f":"IF(TRIM(CG213)=\"\", \"\", IF(VLOOKUP(CG213,'Footnotes list'!$D$9:$E$58,2,FALSE)=0,\"\",VLOOKUP(CG213,'Footnotes list'!$D$9:$E$58,2,FALSE) ) )","v":""},null,null,null,null,{"$f":"IF(TRIM(CL213)=\"\", \"\", IF(VLOOKUP(CL213,'Footnotes list'!$D$9:$E$58,2,FALSE)=0,\"\",VLOOKUP(CL213,'Footnotes list'!$D$9:$E$58,2,FALSE) ) )","v":""},null,null,null,null,{"$f":"IF(TRIM(CQ213)=\"\", \"\", IF(VLOOKUP(CQ213,'Footnotes list'!$D$9:$E$58,2,FALSE)=0,\"\",VLOOKUP(CQ213,'Footnotes list'!$D$9:$E$58,2,FALSE) ) )","v":""},null,null,null,null,{"$f":"IF(TRIM(CV213)=\"\", \"\", IF(VLOOKUP(CV213,'Footnotes list'!$D$9:$E$58,2,FALSE)=0,\"\",VLOOKUP(CV213,'Footnotes list'!$D$9:$E$58,2,FALSE) ) )","v":""},null,null,null,null,{"$f":"IF(TRIM(DA213)=\"\", \"\", IF(VLOOKUP(DA213,'Footnotes list'!$D$9:$E$58,2,FALSE)=0,\"\",VLOOKUP(DA213,'Footnotes list'!$D$9:$E$58,2,FALSE) ) )","v":""},null,null,null,null,{"$f":"IF(TRIM(DF213)=\"\", \"\", IF(VLOOKUP(DF213,'Footnotes list'!$D$9:$E$58,2,FALSE)=0,\"\",VLOOKUP(DF213,'Footnotes list'!$D$9:$E$58,2,FALSE) ) )","v":""},null,null,null,null,{"$f":"IF(TRIM(DK213)=\"\", \"\", IF(VLOOKUP(DK213,'Footnotes list'!$D$9:$E$58,2,FALSE)=0,\"\",VLOOKUP(DK213,'Footnotes list'!$D$9:$E$58,2,FALSE) ) )","v":""},null,null,null,null,{"$f":"IF(TRIM(DP213)=\"\", \"\", IF(VLOOKUP(DP213,'Footnotes list'!$D$9:$E$58,2,FALSE)=0,\"\",VLOOKUP(DP213,'Footnotes list'!$D$9:$E$58,2,FALSE) ) )","v":""},null,null,null,null,{"$f":"IF(TRIM(DU213)=\"\", \"\", IF(VLOOKUP(DU213,'Footnotes list'!$D$9:$E$58,2,FALSE)=0,\"\",VLOOKUP(DU213,'Footnotes list'!$D$9:$E$58,2,FALSE) ) )","v":""},null,null,null,null,{"$f":"IF(TRIM(DZ213)=\"\", \"\", IF(VLOOKUP(DZ213,'Footnotes list'!$D$9:$E$58,2,FALSE)=0,\"\",VLOOKUP(DZ213,'Footnotes list'!$D$9:$E$58,2,FALSE) ) )","v":""},null,null,null,null,{"$f":"IF(TRIM(EE213)=\"\", \"\", IF(VLOOKUP(EE213,'Footnotes list'!$D$9:$E$58,2,FALSE)=0,\"\",VLOOKUP(EE213,'Footnotes list'!$D$9:$E$58,2,FALSE) ) )","v":""},null,null,null,null,{"$f":"IF(TRIM(EJ213)=\"\", \"\", IF(VLOOKUP(EJ213,'Footnotes list'!$D$9:$E$58,2,FALSE)=0,\"\",VLOOKUP(EJ213,'Footnotes list'!$D$9:$E$58,2,FALSE) ) )","v":""},null,null,null,null,{"$f":"IF(TRIM(EO213)=\"\", \"\", IF(VLOOKUP(EO213,'Footnotes list'!$D$9:$E$58,2,FALSE)=0,\"\",VLOOKUP(EO213,'Footnotes list'!$D$9:$E$58,2,FALSE) ) )","v":""},null,null,null,null,{"$f":"IF(TRIM(ET213)=\"\", \"\", IF(VLOOKUP(ET213,'Footnotes list'!$D$9:$E$58,2,FALSE)=0,\"\",VLOOKUP(ET213,'Footnotes list'!$D$9:$E$58,2,FALSE) ) )","v":""},null,null,null,null,{"$f":"IF(TRIM(EY213)=\"\", \"\", IF(VLOOKUP(EY213,'Footnotes list'!$D$9:$E$58,2,FALSE)=0,\"\",VLOOKUP(EY213,'Footnotes list'!$D$9:$E$58,2,FALSE) ) )","v":""}]
[null,null,"L","OWN_USE","activities for own final use",null,null,null,null,null,{"$f":"IF(TRIM(J214)=\"\", \"\", IF(VLOOKUP(J214,'Footnotes list'!$D$9:$E$58,2,FALSE)=0,\"\",VLOOKUP(J214,'Footnotes list'!$D$9:$E$58,2,FALSE) ) )","v":""},null,null,null,null,{"$f":"IF(TRIM(O214)=\"\", \"\", IF(VLOOKUP(O214,'Footnotes list'!$D$9:$E$58,2,FALSE)=0,\"\",VLOOKUP(O214,'Footnotes list'!$D$9:$E$58,2,FALSE) ) )","v":""},null,null,null,null,{"$f":"IF(TRIM(T214)=\"\", \"\", IF(VLOOKUP(T214,'Footnotes list'!$D$9:$E$58,2,FALSE)=0,\"\",VLOOKUP(T214,'Footnotes list'!$D$9:$E$58,2,FALSE) ) )","v":""},null,null,null,null,{"$f":"IF(TRIM(Y214)=\"\", \"\", IF(VLOOKUP(Y214,'Footnotes list'!$D$9:$E$58,2,FALSE)=0,\"\",VLOOKUP(Y214,'Footnotes list'!$D$9:$E$58,2,FALSE) ) )","v":""},null,null,null,null,{"$f":"IF(TRIM(AD214)=\"\", \"\", IF(VLOOKUP(AD214,'Footnotes list'!$D$9:$E$58,2,FALSE)=0,\"\",VLOOKUP(AD214,'Footnotes list'!$D$9:$E$58,2,FALSE) ) )","v":""},null,null,null,null,{"$f":"IF(TRIM(AI214)=\"\", \"\", IF(VLOOKUP(AI214,'Footnotes list'!$D$9:$E$58,2,FALSE)=0,\"\",VLOOKUP(AI214,'Footnotes list'!$D$9:$E$58,2,FALSE) ) )","v":""},null,null,null,null,{"$f":"IF(TRIM(AN214)=\"\", \"\", IF(VLOOKUP(AN214,'Footnotes list'!$D$9:$E$58,2,FALSE)=0,\"\",VLOOKUP(AN214,'Footnotes list'!$D$9:$E$58,2,FALSE) ) )","v":""},null,null,null,null,{"$f":"IF(TRIM(AS214)=\"\", \"\", IF(VLOOKUP(AS214,'Footnotes list'!$D$9:$E$58,2,FALSE)=0,\"\",VLOOKUP(AS214,'Footnotes list'!$D$9:$E$58,2,FALSE) ) )","v":""},null,null,null,null,{"$f":"IF(TRIM(AX214)=\"\", \"\", IF(VLOOKUP(AX214,'Footnotes list'!$D$9:$E$58,2,FALSE)=0,\"\",VLOOKUP(AX214,'Footnotes list'!$D$9:$E$58,2,FALSE) ) )","v":""},null,null,null,null,{"$f":"IF(TRIM(BC214)=\"\", \"\", IF(VLOOKUP(BC214,'Footnotes list'!$D$9:$E$58,2,FALSE)=0,\"\",VLOOKUP(BC214,'Footnotes list'!$D$9:$E$58,2,FALSE) ) )","v":""},null,null,null,null,{"$f":"IF(TRIM(BH214)=\"\", \"\", IF(VLOOKUP(BH214,'Footnotes list'!$D$9:$E$58,2,FALSE)=0,\"\",VLOOKUP(BH214,'Footnotes list'!$D$9:$E$58,2,FALSE) ) )","v":""},null,null,null,null,{"$f":"IF(TRIM(BM214)=\"\", \"\", IF(VLOOKUP(BM214,'Footnotes list'!$D$9:$E$58,2,FALSE)=0,\"\",VLOOKUP(BM214,'Footnotes list'!$D$9:$E$58,2,FALSE) ) )","v":""},null,null,null,null,{"$f":"IF(TRIM(BR214)=\"\", \"\", IF(VLOOKUP(BR214,'Footnotes list'!$D$9:$E$58,2,FALSE)=0,\"\",VLOOKUP(BR214,'Footnotes list'!$D$9:$E$58,2,FALSE) ) )","v":""},null,null,null,null,{"$f":"IF(TRIM(BW214)=\"\", \"\", IF(VLOOKUP(BW214,'Footnotes list'!$D$9:$E$58,2,FALSE)=0,\"\",VLOOKUP(BW214,'Footnotes list'!$D$9:$E$58,2,FALSE) ) )","v":""},null,null,null,null,{"$f":"IF(TRIM(CB214)=\"\", \"\", IF(VLOOKUP(CB214,'Footnotes list'!$D$9:$E$58,2,FALSE)=0,\"\",VLOOKUP(CB214,'Footnotes list'!$D$9:$E$58,2,FALSE) ) )","v":""},null,null,null,null,{"$f":"IF(TRIM(CG214)=\"\", \"\", IF(VLOOKUP(CG214,'Footnotes list'!$D$9:$E$58,2,FALSE)=0,\"\",VLOOKUP(CG214,'Footnotes list'!$D$9:$E$58,2,FALSE) ) )","v":""},null,null,null,null,{"$f":"IF(TRIM(CL214)=\"\", \"\", IF(VLOOKUP(CL214,'Footnotes list'!$D$9:$E$58,2,FALSE)=0,\"\",VLOOKUP(CL214,'Footnotes list'!$D$9:$E$58,2,FALSE) ) )","v":""},null,null,null,null,{"$f":"IF(TRIM(CQ214)=\"\", \"\", IF(VLOOKUP(CQ214,'Footnotes list'!$D$9:$E$58,2,FALSE)=0,\"\",VLOOKUP(CQ214,'Footnotes list'!$D$9:$E$58,2,FALSE) ) )","v":""},null,null,null,null,{"$f":"IF(TRIM(CV214)=\"\", \"\", IF(VLOOKUP(CV214,'Footnotes list'!$D$9:$E$58,2,FALSE)=0,\"\",VLOOKUP(CV214,'Footnotes list'!$D$9:$E$58,2,FALSE) ) )","v":""},null,null,null,null,{"$f":"IF(TRIM(DA214)=\"\", \"\", IF(VLOOKUP(DA214,'Footnotes list'!$D$9:$E$58,2,FALSE)=0,\"\",VLOOKUP(DA214,'Footnotes list'!$D$9:$E$58,2,FALSE) ) )","v":""},null,null,null,null,{"$f":"IF(TRIM(DF214)=\"\", \"\", IF(VLOOKUP(DF214,'Footnotes list'!$D$9:$E$58,2,FALSE)=0,\"\",VLOOKUP(DF214,'Footnotes list'!$D$9:$E$58,2,FALSE) ) )","v":""},null,null,null,null,{"$f":"IF(TRIM(DK214)=\"\", \"\", IF(VLOOKUP(DK214,'Footnotes list'!$D$9:$E$58,2,FALSE)=0,\"\",VLOOKUP(DK214,'Footnotes list'!$D$9:$E$58,2,FALSE) ) )","v":""},null,null,null,null,{"$f":"IF(TRIM(DP214)=\"\", \"\", IF(VLOOKUP(DP214,'Footnotes list'!$D$9:$E$58,2,FALSE)=0,\"\",VLOOKUP(DP214,'Footnotes list'!$D$9:$E$58,2,FALSE) ) )","v":""},null,null,null,null,{"$f":"IF(TRIM(DU214)=\"\", \"\", IF(VLOOKUP(DU214,'Footnotes list'!$D$9:$E$58,2,FALSE)=0,\"\",VLOOKUP(DU214,'Footnotes list'!$D$9:$E$58,2,FALSE) ) )","v":""},null,null,null,null,{"$f":"IF(TRIM(DZ214)=\"\", \"\", IF(VLOOKUP(DZ214,'Footnotes list'!$D$9:$E$58,2,FALSE)=0,\"\",VLOOKUP(DZ214,'Footnotes list'!$D$9:$E$58,2,FALSE) ) )","v":""},null,null,null,null,{"$f":"IF(TRIM(EE214)=\"\", \"\", IF(VLOOKUP(EE214,'Footnotes list'!$D$9:$E$58,2,FALSE)=0,\"\",VLOOKUP(EE214,'Footnotes list'!$D$9:$E$58,2,FALSE) ) )","v":""},null,null,null,null,{"$f":"IF(TRIM(EJ214)=\"\", \"\", IF(VLOOKUP(EJ214,'Footnotes list'!$D$9:$E$58,2,FALSE)=0,\"\",VLOOKUP(EJ214,'Footnotes list'!$D$9:$E$58,2,FALSE) ) )","v":""},null,null,null,null,{"$f":"IF(TRIM(EO214)=\"\", \"\", IF(VLOOKUP(EO214,'Footnotes list'!$D$9:$E$58,2,FALSE)=0,\"\",VLOOKUP(EO214,'Footnotes list'!$D$9:$E$58,2,FALSE) ) )","v":""},null,null,null,null,{"$f":"IF(TRIM(ET214)=\"\", \"\", IF(VLOOKUP(ET214,'Footnotes list'!$D$9:$E$58,2,FALSE)=0,\"\",VLOOKUP(ET214,'Footnotes list'!$D$9:$E$58,2,FALSE) ) )","v":""},null,null,null,null,{"$f":"IF(TRIM(EY214)=\"\", \"\", IF(VLOOKUP(EY214,'Footnotes list'!$D$9:$E$58,2,FALSE)=0,\"\",VLOOKUP(EY214,'Footnotes list'!$D$9:$E$58,2,FALSE) ) )","v":""}]
[null,null,"L","MKT","market activities, including:",null,null,null,null,null,{"$f":"IF(TRIM(J215)=\"\", \"\", IF(VLOOKUP(J215,'Footnotes list'!$D$9:$E$58,2,FALSE)=0,\"\",VLOOKUP(J215,'Footnotes list'!$D$9:$E$58,2,FALSE) ) )","v":""},null,null,null,null,{"$f":"IF(TRIM(O215)=\"\", \"\", IF(VLOOKUP(O215,'Footnotes list'!$D$9:$E$58,2,FALSE)=0,\"\",VLOOKUP(O215,'Footnotes list'!$D$9:$E$58,2,FALSE) ) )","v":""},null,null,null,null,{"$f":"IF(TRIM(T215)=\"\", \"\", IF(VLOOKUP(T215,'Footnotes list'!$D$9:$E$58,2,FALSE)=0,\"\",VLOOKUP(T215,'Footnotes list'!$D$9:$E$58,2,FALSE) ) )","v":""},null,null,null,null,{"$f":"IF(TRIM(Y215)=\"\", \"\", IF(VLOOKUP(Y215,'Footnotes list'!$D$9:$E$58,2,FALSE)=0,\"\",VLOOKUP(Y215,'Footnotes list'!$D$9:$E$58,2,FALSE) ) )","v":""},null,null,null,null,{"$f":"IF(TRIM(AD215)=\"\", \"\", IF(VLOOKUP(AD215,'Footnotes list'!$D$9:$E$58,2,FALSE)=0,\"\",VLOOKUP(AD215,'Footnotes list'!$D$9:$E$58,2,FALSE) ) )","v":""},null,null,null,null,{"$f":"IF(TRIM(AI215)=\"\", \"\", IF(VLOOKUP(AI215,'Footnotes list'!$D$9:$E$58,2,FALSE)=0,\"\",VLOOKUP(AI215,'Footnotes list'!$D$9:$E$58,2,FALSE) ) )","v":""},null,null,null,null,{"$f":"IF(TRIM(AN215)=\"\", \"\", IF(VLOOKUP(AN215,'Footnotes list'!$D$9:$E$58,2,FALSE)=0,\"\",VLOOKUP(AN215,'Footnotes list'!$D$9:$E$58,2,FALSE) ) )","v":""},null,null,null,null,{"$f":"IF(TRIM(AS215)=\"\", \"\", IF(VLOOKUP(AS215,'Footnotes list'!$D$9:$E$58,2,FALSE)=0,\"\",VLOOKUP(AS215,'Footnotes list'!$D$9:$E$58,2,FALSE) ) )","v":""},null,null,null,null,{"$f":"IF(TRIM(AX215)=\"\", \"\", IF(VLOOKUP(AX215,'Footnotes list'!$D$9:$E$58,2,FALSE)=0,\"\",VLOOKUP(AX215,'Footnotes list'!$D$9:$E$58,2,FALSE) ) )","v":""},null,null,null,null,{"$f":"IF(TRIM(BC215)=\"\", \"\", IF(VLOOKUP(BC215,'Footnotes list'!$D$9:$E$58,2,FALSE)=0,\"\",VLOOKUP(BC215,'Footnotes list'!$D$9:$E$58,2,FALSE) ) )","v":""},null,null,null,null,{"$f":"IF(TRIM(BH215)=\"\", \"\", IF(VLOOKUP(BH215,'Footnotes list'!$D$9:$E$58,2,FALSE)=0,\"\",VLOOKUP(BH215,'Footnotes list'!$D$9:$E$58,2,FALSE) ) )","v":""},null,null,null,null,{"$f":"IF(TRIM(BM215)=\"\", \"\", IF(VLOOKUP(BM215,'Footnotes list'!$D$9:$E$58,2,FALSE)=0,\"\",VLOOKUP(BM215,'Footnotes list'!$D$9:$E$58,2,FALSE) ) )","v":""},null,null,null,null,{"$f":"IF(TRIM(BR215)=\"\", \"\", IF(VLOOKUP(BR215,'Footnotes list'!$D$9:$E$58,2,FALSE)=0,\"\",VLOOKUP(BR215,'Footnotes list'!$D$9:$E$58,2,FALSE) ) )","v":""},null,null,null,null,{"$f":"IF(TRIM(BW215)=\"\", \"\", IF(VLOOKUP(BW215,'Footnotes list'!$D$9:$E$58,2,FALSE)=0,\"\",VLOOKUP(BW215,'Footnotes list'!$D$9:$E$58,2,FALSE) ) )","v":""},null,null,null,null,{"$f":"IF(TRIM(CB215)=\"\", \"\", IF(VLOOKUP(CB215,'Footnotes list'!$D$9:$E$58,2,FALSE)=0,\"\",VLOOKUP(CB215,'Footnotes list'!$D$9:$E$58,2,FALSE) ) )","v":""},null,null,null,null,{"$f":"IF(TRIM(CG215)=\"\", \"\", IF(VLOOKUP(CG215,'Footnotes list'!$D$9:$E$58,2,FALSE)=0,\"\",VLOOKUP(CG215,'Footnotes list'!$D$9:$E$58,2,FALSE) ) )","v":""},null,null,null,null,{"$f":"IF(TRIM(CL215)=\"\", \"\", IF(VLOOKUP(CL215,'Footnotes list'!$D$9:$E$58,2,FALSE)=0,\"\",VLOOKUP(CL215,'Footnotes list'!$D$9:$E$58,2,FALSE) ) )","v":""},null,null,null,null,{"$f":"IF(TRIM(CQ215)=\"\", \"\", IF(VLOOKUP(CQ215,'Footnotes list'!$D$9:$E$58,2,FALSE)=0,\"\",VLOOKUP(CQ215,'Footnotes list'!$D$9:$E$58,2,FALSE) ) )","v":""},null,null,null,null,{"$f":"IF(TRIM(CV215)=\"\", \"\", IF(VLOOKUP(CV215,'Footnotes list'!$D$9:$E$58,2,FALSE)=0,\"\",VLOOKUP(CV215,'Footnotes list'!$D$9:$E$58,2,FALSE) ) )","v":""},null,null,null,null,{"$f":"IF(TRIM(DA215)=\"\", \"\", IF(VLOOKUP(DA215,'Footnotes list'!$D$9:$E$58,2,FALSE)=0,\"\",VLOOKUP(DA215,'Footnotes list'!$D$9:$E$58,2,FALSE) ) )","v":""},null,null,null,null,{"$f":"IF(TRIM(DF215)=\"\", \"\", IF(VLOOKUP(DF215,'Footnotes list'!$D$9:$E$58,2,FALSE)=0,\"\",VLOOKUP(DF215,'Footnotes list'!$D$9:$E$58,2,FALSE) ) )","v":""},null,null,null,null,{"$f":"IF(TRIM(DK215)=\"\", \"\", IF(VLOOKUP(DK215,'Footnotes list'!$D$9:$E$58,2,FALSE)=0,\"\",VLOOKUP(DK215,'Footnotes list'!$D$9:$E$58,2,FALSE) ) )","v":""},null,null,null,null,{"$f":"IF(TRIM(DP215)=\"\", \"\", IF(VLOOKUP(DP215,'Footnotes list'!$D$9:$E$58,2,FALSE)=0,\"\",VLOOKUP(DP215,'Footnotes list'!$D$9:$E$58,2,FALSE) ) )","v":""},null,null,null,null,{"$f":"IF(TRIM(DU215)=\"\", \"\", IF(VLOOKUP(DU215,'Footnotes list'!$D$9:$E$58,2,FALSE)=0,\"\",VLOOKUP(DU215,'Footnotes list'!$D$9:$E$58,2,FALSE) ) )","v":""},null,null,null,null,{"$f":"IF(TRIM(DZ215)=\"\", \"\", IF(VLOOKUP(DZ215,'Footnotes list'!$D$9:$E$58,2,FALSE)=0,\"\",VLOOKUP(DZ215,'Footnotes list'!$D$9:$E$58,2,FALSE) ) )","v":""},null,null,null,null,{"$f":"IF(TRIM(EE215)=\"\", \"\", IF(VLOOKUP(EE215,'Footnotes list'!$D$9:$E$58,2,FALSE)=0,\"\",VLOOKUP(EE215,'Footnotes list'!$D$9:$E$58,2,FALSE) ) )","v":""},null,null,null,null,{"$f":"IF(TRIM(EJ215)=\"\", \"\", IF(VLOOKUP(EJ215,'Footnotes list'!$D$9:$E$58,2,FALSE)=0,\"\",VLOOKUP(EJ215,'Footnotes list'!$D$9:$E$58,2,FALSE) ) )","v":""},null,null,null,null,{"$f":"IF(TRIM(EO215)=\"\", \"\", IF(VLOOKUP(EO215,'Footnotes list'!$D$9:$E$58,2,FALSE)=0,\"\",VLOOKUP(EO215,'Footnotes list'!$D$9:$E$58,2,FALSE) ) )","v":""},null,null,null,null,{"$f":"IF(TRIM(ET215)=\"\", \"\", IF(VLOOKUP(ET215,'Footnotes list'!$D$9:$E$58,2,FALSE)=0,\"\",VLOOKUP(ET215,'Footnotes list'!$D$9:$E$58,2,FALSE) ) )","v":""},null,null,null,null,{"$f":"IF(TRIM(EY215)=\"\", \"\", IF(VLOOKUP(EY215,'Footnotes list'!$D$9:$E$58,2,FALSE)=0,\"\",VLOOKUP(EY215,'Footnotes list'!$D$9:$E$58,2,FALSE) ) )","v":""}]
[null,null,"L","ES_CS","environmental specific services",null,null,null,null,null,{"$f":"IF(TRIM(J216)=\"\", \"\", IF(VLOOKUP(J216,'Footnotes list'!$D$9:$E$58,2,FALSE)=0,\"\",VLOOKUP(J216,'Footnotes list'!$D$9:$E$58,2,FALSE) ) )","v":""},null,null,null,null,{"$f":"IF(TRIM(O216)=\"\", \"\", IF(VLOOKUP(O216,'Footnotes list'!$D$9:$E$58,2,FALSE)=0,\"\",VLOOKUP(O216,'Footnotes list'!$D$9:$E$58,2,FALSE) ) )","v":""},null,null,null,null,{"$f":"IF(TRIM(T216)=\"\", \"\", IF(VLOOKUP(T216,'Footnotes list'!$D$9:$E$58,2,FALSE)=0,\"\",VLOOKUP(T216,'Footnotes list'!$D$9:$E$58,2,FALSE) ) )","v":""},null,null,null,null,{"$f":"IF(TRIM(Y216)=\"\", \"\", IF(VLOOKUP(Y216,'Footnotes list'!$D$9:$E$58,2,FALSE)=0,\"\",VLOOKUP(Y216,'Footnotes list'!$D$9:$E$58,2,FALSE) ) )","v":""},null,null,null,null,{"$f":"IF(TRIM(AD216)=\"\", \"\", IF(VLOOKUP(AD216,'Footnotes list'!$D$9:$E$58,2,FALSE)=0,\"\",VLOOKUP(AD216,'Footnotes list'!$D$9:$E$58,2,FALSE) ) )","v":""},null,null,null,null,{"$f":"IF(TRIM(AI216)=\"\", \"\", IF(VLOOKUP(AI216,'Footnotes list'!$D$9:$E$58,2,FALSE)=0,\"\",VLOOKUP(AI216,'Footnotes list'!$D$9:$E$58,2,FALSE) ) )","v":""},null,null,null,null,{"$f":"IF(TRIM(AN216)=\"\", \"\", IF(VLOOKUP(AN216,'Footnotes list'!$D$9:$E$58,2,FALSE)=0,\"\",VLOOKUP(AN216,'Footnotes list'!$D$9:$E$58,2,FALSE) ) )","v":""},null,null,null,null,{"$f":"IF(TRIM(AS216)=\"\", \"\", IF(VLOOKUP(AS216,'Footnotes list'!$D$9:$E$58,2,FALSE)=0,\"\",VLOOKUP(AS216,'Footnotes list'!$D$9:$E$58,2,FALSE) ) )","v":""},null,null,null,null,{"$f":"IF(TRIM(AX216)=\"\", \"\", IF(VLOOKUP(AX216,'Footnotes list'!$D$9:$E$58,2,FALSE)=0,\"\",VLOOKUP(AX216,'Footnotes list'!$D$9:$E$58,2,FALSE) ) )","v":""},null,null,null,null,{"$f":"IF(TRIM(BC216)=\"\", \"\", IF(VLOOKUP(BC216,'Footnotes list'!$D$9:$E$58,2,FALSE)=0,\"\",VLOOKUP(BC216,'Footnotes list'!$D$9:$E$58,2,FALSE) ) )","v":""},null,null,null,null,{"$f":"IF(TRIM(BH216)=\"\", \"\", IF(VLOOKUP(BH216,'Footnotes list'!$D$9:$E$58,2,FALSE)=0,\"\",VLOOKUP(BH216,'Footnotes list'!$D$9:$E$58,2,FALSE) ) )","v":""},null,null,null,null,{"$f":"IF(TRIM(BM216)=\"\", \"\", IF(VLOOKUP(BM216,'Footnotes list'!$D$9:$E$58,2,FALSE)=0,\"\",VLOOKUP(BM216,'Footnotes list'!$D$9:$E$58,2,FALSE) ) )","v":""},null,null,null,null,{"$f":"IF(TRIM(BR216)=\"\", \"\", IF(VLOOKUP(BR216,'Footnotes list'!$D$9:$E$58,2,FALSE)=0,\"\",VLOOKUP(BR216,'Footnotes list'!$D$9:$E$58,2,FALSE) ) )","v":""},null,null,null,null,{"$f":"IF(TRIM(BW216)=\"\", \"\", IF(VLOOKUP(BW216,'Footnotes list'!$D$9:$E$58,2,FALSE)=0,\"\",VLOOKUP(BW216,'Footnotes list'!$D$9:$E$58,2,FALSE) ) )","v":""},null,null,null,null,{"$f":"IF(TRIM(CB216)=\"\", \"\", IF(VLOOKUP(CB216,'Footnotes list'!$D$9:$E$58,2,FALSE)=0,\"\",VLOOKUP(CB216,'Footnotes list'!$D$9:$E$58,2,FALSE) ) )","v":""},null,null,null,null,{"$f":"IF(TRIM(CG216)=\"\", \"\", IF(VLOOKUP(CG216,'Footnotes list'!$D$9:$E$58,2,FALSE)=0,\"\",VLOOKUP(CG216,'Footnotes list'!$D$9:$E$58,2,FALSE) ) )","v":""},null,null,null,null,{"$f":"IF(TRIM(CL216)=\"\", \"\", IF(VLOOKUP(CL216,'Footnotes list'!$D$9:$E$58,2,FALSE)=0,\"\",VLOOKUP(CL216,'Footnotes list'!$D$9:$E$58,2,FALSE) ) )","v":""},null,null,null,null,{"$f":"IF(TRIM(CQ216)=\"\", \"\", IF(VLOOKUP(CQ216,'Footnotes list'!$D$9:$E$58,2,FALSE)=0,\"\",VLOOKUP(CQ216,'Footnotes list'!$D$9:$E$58,2,FALSE) ) )","v":""},null,null,null,null,{"$f":"IF(TRIM(CV216)=\"\", \"\", IF(VLOOKUP(CV216,'Footnotes list'!$D$9:$E$58,2,FALSE)=0,\"\",VLOOKUP(CV216,'Footnotes list'!$D$9:$E$58,2,FALSE) ) )","v":""},null,null,null,null,{"$f":"IF(TRIM(DA216)=\"\", \"\", IF(VLOOKUP(DA216,'Footnotes list'!$D$9:$E$58,2,FALSE)=0,\"\",VLOOKUP(DA216,'Footnotes list'!$D$9:$E$58,2,FALSE) ) )","v":""},null,null,null,null,{"$f":"IF(TRIM(DF216)=\"\", \"\", IF(VLOOKUP(DF216,'Footnotes list'!$D$9:$E$58,2,FALSE)=0,\"\",VLOOKUP(DF216,'Footnotes list'!$D$9:$E$58,2,FALSE) ) )","v":""},null,null,null,null,{"$f":"IF(TRIM(DK216)=\"\", \"\", IF(VLOOKUP(DK216,'Footnotes list'!$D$9:$E$58,2,FALSE)=0,\"\",VLOOKUP(DK216,'Footnotes list'!$D$9:$E$58,2,FALSE) ) )","v":""},null,null,null,null,{"$f":"IF(TRIM(DP216)=\"\", \"\", IF(VLOOKUP(DP216,'Footnotes list'!$D$9:$E$58,2,FALSE)=0,\"\",VLOOKUP(DP216,'Footnotes list'!$D$9:$E$58,2,FALSE) ) )","v":""},null,null,null,null,{"$f":"IF(TRIM(DU216)=\"\", \"\", IF(VLOOKUP(DU216,'Footnotes list'!$D$9:$E$58,2,FALSE)=0,\"\",VLOOKUP(DU216,'Footnotes list'!$D$9:$E$58,2,FALSE) ) )","v":""},null,null,null,null,{"$f":"IF(TRIM(DZ216)=\"\", \"\", IF(VLOOKUP(DZ216,'Footnotes list'!$D$9:$E$58,2,FALSE)=0,\"\",VLOOKUP(DZ216,'Footnotes list'!$D$9:$E$58,2,FALSE) ) )","v":""},null,null,null,null,{"$f":"IF(TRIM(EE216)=\"\", \"\", IF(VLOOKUP(EE216,'Footnotes list'!$D$9:$E$58,2,FALSE)=0,\"\",VLOOKUP(EE216,'Footnotes list'!$D$9:$E$58,2,FALSE) ) )","v":""},null,null,null,null,{"$f":"IF(TRIM(EJ216)=\"\", \"\", IF(VLOOKUP(EJ216,'Footnotes list'!$D$9:$E$58,2,FALSE)=0,\"\",VLOOKUP(EJ216,'Footnotes list'!$D$9:$E$58,2,FALSE) ) )","v":""},null,null,null,null,{"$f":"IF(TRIM(EO216)=\"\", \"\", IF(VLOOKUP(EO216,'Footnotes list'!$D$9:$E$58,2,FALSE)=0,\"\",VLOOKUP(EO216,'Footnotes list'!$D$9:$E$58,2,FALSE) ) )","v":""},null,null,null,null,{"$f":"IF(TRIM(ET216)=\"\", \"\", IF(VLOOKUP(ET216,'Footnotes list'!$D$9:$E$58,2,FALSE)=0,\"\",VLOOKUP(ET216,'Footnotes list'!$D$9:$E$58,2,FALSE) ) )","v":""},null,null,null,null,{"$f":"IF(TRIM(EY216)=\"\", \"\", IF(VLOOKUP(EY216,'Footnotes list'!$D$9:$E$58,2,FALSE)=0,\"\",VLOOKUP(EY216,'Footnotes list'!$D$9:$E$58,2,FALSE) ) )","v":""}]
[null,null,"L","C_REP","cleaner and resource efficient products",null,null,null,null,null,{"$f":"IF(TRIM(J217)=\"\", \"\", IF(VLOOKUP(J217,'Footnotes list'!$D$9:$E$58,2,FALSE)=0,\"\",VLOOKUP(J217,'Footnotes list'!$D$9:$E$58,2,FALSE) ) )","v":""},null,null,null,null,{"$f":"IF(TRIM(O217)=\"\", \"\", IF(VLOOKUP(O217,'Footnotes list'!$D$9:$E$58,2,FALSE)=0,\"\",VLOOKUP(O217,'Footnotes list'!$D$9:$E$58,2,FALSE) ) )","v":""},null,null,null,null,{"$f":"IF(TRIM(T217)=\"\", \"\", IF(VLOOKUP(T217,'Footnotes list'!$D$9:$E$58,2,FALSE)=0,\"\",VLOOKUP(T217,'Footnotes list'!$D$9:$E$58,2,FALSE) ) )","v":""},null,null,null,null,{"$f":"IF(TRIM(Y217)=\"\", \"\", IF(VLOOKUP(Y217,'Footnotes list'!$D$9:$E$58,2,FALSE)=0,\"\",VLOOKUP(Y217,'Footnotes list'!$D$9:$E$58,2,FALSE) ) )","v":""},null,null,null,null,{"$f":"IF(TRIM(AD217)=\"\", \"\", IF(VLOOKUP(AD217,'Footnotes list'!$D$9:$E$58,2,FALSE)=0,\"\",VLOOKUP(AD217,'Footnotes list'!$D$9:$E$58,2,FALSE) ) )","v":""},null,null,null,null,{"$f":"IF(TRIM(AI217)=\"\", \"\", IF(VLOOKUP(AI217,'Footnotes list'!$D$9:$E$58,2,FALSE)=0,\"\",VLOOKUP(AI217,'Footnotes list'!$D$9:$E$58,2,FALSE) ) )","v":""},null,null,null,null,{"$f":"IF(TRIM(AN217)=\"\", \"\", IF(VLOOKUP(AN217,'Footnotes list'!$D$9:$E$58,2,FALSE)=0,\"\",VLOOKUP(AN217,'Footnotes list'!$D$9:$E$58,2,FALSE) ) )","v":""},null,null,null,null,{"$f":"IF(TRIM(AS217)=\"\", \"\", IF(VLOOKUP(AS217,'Footnotes list'!$D$9:$E$58,2,FALSE)=0,\"\",VLOOKUP(AS217,'Footnotes list'!$D$9:$E$58,2,FALSE) ) )","v":""},null,null,null,null,{"$f":"IF(TRIM(AX217)=\"\", \"\", IF(VLOOKUP(AX217,'Footnotes list'!$D$9:$E$58,2,FALSE)=0,\"\",VLOOKUP(AX217,'Footnotes list'!$D$9:$E$58,2,FALSE) ) )","v":""},null,null,null,null,{"$f":"IF(TRIM(BC217)=\"\", \"\", IF(VLOOKUP(BC217,'Footnotes list'!$D$9:$E$58,2,FALSE)=0,\"\",VLOOKUP(BC217,'Footnotes list'!$D$9:$E$58,2,FALSE) ) )","v":""},null,null,null,null,{"$f":"IF(TRIM(BH217)=\"\", \"\", IF(VLOOKUP(BH217,'Footnotes list'!$D$9:$E$58,2,FALSE)=0,\"\",VLOOKUP(BH217,'Footnotes list'!$D$9:$E$58,2,FALSE) ) )","v":""},null,null,null,null,{"$f":"IF(TRIM(BM217)=\"\", \"\", IF(VLOOKUP(BM217,'Footnotes list'!$D$9:$E$58,2,FALSE)=0,\"\",VLOOKUP(BM217,'Footnotes list'!$D$9:$E$58,2,FALSE) ) )","v":""},null,null,null,null,{"$f":"IF(TRIM(BR217)=\"\", \"\", IF(VLOOKUP(BR217,'Footnotes list'!$D$9:$E$58,2,FALSE)=0,\"\",VLOOKUP(BR217,'Footnotes list'!$D$9:$E$58,2,FALSE) ) )","v":""},null,null,null,null,{"$f":"IF(TRIM(BW217)=\"\", \"\", IF(VLOOKUP(BW217,'Footnotes list'!$D$9:$E$58,2,FALSE)=0,\"\",VLOOKUP(BW217,'Footnotes list'!$D$9:$E$58,2,FALSE) ) )","v":""},null,null,null,null,{"$f":"IF(TRIM(CB217)=\"\", \"\", IF(VLOOKUP(CB217,'Footnotes list'!$D$9:$E$58,2,FALSE)=0,\"\",VLOOKUP(CB217,'Footnotes list'!$D$9:$E$58,2,FALSE) ) )","v":""},null,null,null,null,{"$f":"IF(TRIM(CG217)=\"\", \"\", IF(VLOOKUP(CG217,'Footnotes list'!$D$9:$E$58,2,FALSE)=0,\"\",VLOOKUP(CG217,'Footnotes list'!$D$9:$E$58,2,FALSE) ) )","v":""},null,null,null,null,{"$f":"IF(TRIM(CL217)=\"\", \"\", IF(VLOOKUP(CL217,'Footnotes list'!$D$9:$E$58,2,FALSE)=0,\"\",VLOOKUP(CL217,'Footnotes list'!$D$9:$E$58,2,FALSE) ) )","v":""},null,null,null,null,{"$f":"IF(TRIM(CQ217)=\"\", \"\", IF(VLOOKUP(CQ217,'Footnotes list'!$D$9:$E$58,2,FALSE)=0,\"\",VLOOKUP(CQ217,'Footnotes list'!$D$9:$E$58,2,FALSE) ) )","v":""},null,null,null,null,{"$f":"IF(TRIM(CV217)=\"\", \"\", IF(VLOOKUP(CV217,'Footnotes list'!$D$9:$E$58,2,FALSE)=0,\"\",VLOOKUP(CV217,'Footnotes list'!$D$9:$E$58,2,FALSE) ) )","v":""},null,null,null,null,{"$f":"IF(TRIM(DA217)=\"\", \"\", IF(VLOOKUP(DA217,'Footnotes list'!$D$9:$E$58,2,FALSE)=0,\"\",VLOOKUP(DA217,'Footnotes list'!$D$9:$E$58,2,FALSE) ) )","v":""},null,null,null,null,{"$f":"IF(TRIM(DF217)=\"\", \"\", IF(VLOOKUP(DF217,'Footnotes list'!$D$9:$E$58,2,FALSE)=0,\"\",VLOOKUP(DF217,'Footnotes list'!$D$9:$E$58,2,FALSE) ) )","v":""},null,null,null,null,{"$f":"IF(TRIM(DK217)=\"\", \"\", IF(VLOOKUP(DK217,'Footnotes list'!$D$9:$E$58,2,FALSE)=0,\"\",VLOOKUP(DK217,'Footnotes list'!$D$9:$E$58,2,FALSE) ) )","v":""},null,null,null,null,{"$f":"IF(TRIM(DP217)=\"\", \"\", IF(VLOOKUP(DP217,'Footnotes list'!$D$9:$E$58,2,FALSE)=0,\"\",VLOOKUP(DP217,'Footnotes list'!$D$9:$E$58,2,FALSE) ) )","v":""},null,null,null,null,{"$f":"IF(TRIM(DU217)=\"\", \"\", IF(VLOOKUP(DU217,'Footnotes list'!$D$9:$E$58,2,FALSE)=0,\"\",VLOOKUP(DU217,'Footnotes list'!$D$9:$E$58,2,FALSE) ) )","v":""},null,null,null,null,{"$f":"IF(TRIM(DZ217)=\"\", \"\", IF(VLOOKUP(DZ217,'Footnotes list'!$D$9:$E$58,2,FALSE)=0,\"\",VLOOKUP(DZ217,'Footnotes list'!$D$9:$E$58,2,FALSE) ) )","v":""},null,null,null,null,{"$f":"IF(TRIM(EE217)=\"\", \"\", IF(VLOOKUP(EE217,'Footnotes list'!$D$9:$E$58,2,FALSE)=0,\"\",VLOOKUP(EE217,'Footnotes list'!$D$9:$E$58,2,FALSE) ) )","v":""},null,null,null,null,{"$f":"IF(TRIM(EJ217)=\"\", \"\", IF(VLOOKUP(EJ217,'Footnotes list'!$D$9:$E$58,2,FALSE)=0,\"\",VLOOKUP(EJ217,'Footnotes list'!$D$9:$E$58,2,FALSE) ) )","v":""},null,null,null,null,{"$f":"IF(TRIM(EO217)=\"\", \"\", IF(VLOOKUP(EO217,'Footnotes list'!$D$9:$E$58,2,FALSE)=0,\"\",VLOOKUP(EO217,'Footnotes list'!$D$9:$E$58,2,FALSE) ) )","v":""},null,null,null,null,{"$f":"IF(TRIM(ET217)=\"\", \"\", IF(VLOOKUP(ET217,'Footnotes list'!$D$9:$E$58,2,FALSE)=0,\"\",VLOOKUP(ET217,'Footnotes list'!$D$9:$E$58,2,FALSE) ) )","v":""},null,null,null,null,{"$f":"IF(TRIM(EY217)=\"\", \"\", IF(VLOOKUP(EY217,'Footnotes list'!$D$9:$E$58,2,FALSE)=0,\"\",VLOOKUP(EY217,'Footnotes list'!$D$9:$E$58,2,FALSE) ) )","v":""}]
[null,null,"M","TOT_EGSS","Total M - Professional, scientific and technical activities, of which:",null,null,null,null,null,{"$f":"IF(TRIM(J218)=\"\", \"\", IF(VLOOKUP(J218,'Footnotes list'!$D$9:$E$58,2,FALSE)=0,\"\",VLOOKUP(J218,'Footnotes list'!$D$9:$E$58,2,FALSE) ) )","v":""},null,null,null,null,{"$f":"IF(TRIM(O218)=\"\", \"\", IF(VLOOKUP(O218,'Footnotes list'!$D$9:$E$58,2,FALSE)=0,\"\",VLOOKUP(O218,'Footnotes list'!$D$9:$E$58,2,FALSE) ) )","v":""},null,null,null,null,{"$f":"IF(TRIM(T218)=\"\", \"\", IF(VLOOKUP(T218,'Footnotes list'!$D$9:$E$58,2,FALSE)=0,\"\",VLOOKUP(T218,'Footnotes list'!$D$9:$E$58,2,FALSE) ) )","v":""},null,null,null,null,{"$f":"IF(TRIM(Y218)=\"\", \"\", IF(VLOOKUP(Y218,'Footnotes list'!$D$9:$E$58,2,FALSE)=0,\"\",VLOOKUP(Y218,'Footnotes list'!$D$9:$E$58,2,FALSE) ) )","v":""},null,null,null,null,{"$f":"IF(TRIM(AD218)=\"\", \"\", IF(VLOOKUP(AD218,'Footnotes list'!$D$9:$E$58,2,FALSE)=0,\"\",VLOOKUP(AD218,'Footnotes list'!$D$9:$E$58,2,FALSE) ) )","v":""},null,null,null,null,{"$f":"IF(TRIM(AI218)=\"\", \"\", IF(VLOOKUP(AI218,'Footnotes list'!$D$9:$E$58,2,FALSE)=0,\"\",VLOOKUP(AI218,'Footnotes list'!$D$9:$E$58,2,FALSE) ) )","v":""},null,null,null,null,{"$f":"IF(TRIM(AN218)=\"\", \"\", IF(VLOOKUP(AN218,'Footnotes list'!$D$9:$E$58,2,FALSE)=0,\"\",VLOOKUP(AN218,'Footnotes list'!$D$9:$E$58,2,FALSE) ) )","v":""},null,null,null,null,{"$f":"IF(TRIM(AS218)=\"\", \"\", IF(VLOOKUP(AS218,'Footnotes list'!$D$9:$E$58,2,FALSE)=0,\"\",VLOOKUP(AS218,'Footnotes list'!$D$9:$E$58,2,FALSE) ) )","v":""},null,null,null,null,{"$f":"IF(TRIM(AX218)=\"\", \"\", IF(VLOOKUP(AX218,'Footnotes list'!$D$9:$E$58,2,FALSE)=0,\"\",VLOOKUP(AX218,'Footnotes list'!$D$9:$E$58,2,FALSE) ) )","v":""},null,null,null,null,{"$f":"IF(TRIM(BC218)=\"\", \"\", IF(VLOOKUP(BC218,'Footnotes list'!$D$9:$E$58,2,FALSE)=0,\"\",VLOOKUP(BC218,'Footnotes list'!$D$9:$E$58,2,FALSE) ) )","v":""},null,null,null,null,{"$f":"IF(TRIM(BH218)=\"\", \"\", IF(VLOOKUP(BH218,'Footnotes list'!$D$9:$E$58,2,FALSE)=0,\"\",VLOOKUP(BH218,'Footnotes list'!$D$9:$E$58,2,FALSE) ) )","v":""},null,null,null,null,{"$f":"IF(TRIM(BM218)=\"\", \"\", IF(VLOOKUP(BM218,'Footnotes list'!$D$9:$E$58,2,FALSE)=0,\"\",VLOOKUP(BM218,'Footnotes list'!$D$9:$E$58,2,FALSE) ) )","v":""},null,null,null,null,{"$f":"IF(TRIM(BR218)=\"\", \"\", IF(VLOOKUP(BR218,'Footnotes list'!$D$9:$E$58,2,FALSE)=0,\"\",VLOOKUP(BR218,'Footnotes list'!$D$9:$E$58,2,FALSE) ) )","v":""},null,null,null,null,{"$f":"IF(TRIM(BW218)=\"\", \"\", IF(VLOOKUP(BW218,'Footnotes list'!$D$9:$E$58,2,FALSE)=0,\"\",VLOOKUP(BW218,'Footnotes list'!$D$9:$E$58,2,FALSE) ) )","v":""},null,null,null,null,{"$f":"IF(TRIM(CB218)=\"\", \"\", IF(VLOOKUP(CB218,'Footnotes list'!$D$9:$E$58,2,FALSE)=0,\"\",VLOOKUP(CB218,'Footnotes list'!$D$9:$E$58,2,FALSE) ) )","v":""},null,null,null,null,{"$f":"IF(TRIM(CG218)=\"\", \"\", IF(VLOOKUP(CG218,'Footnotes list'!$D$9:$E$58,2,FALSE)=0,\"\",VLOOKUP(CG218,'Footnotes list'!$D$9:$E$58,2,FALSE) ) )","v":""},null,null,null,null,{"$f":"IF(TRIM(CL218)=\"\", \"\", IF(VLOOKUP(CL218,'Footnotes list'!$D$9:$E$58,2,FALSE)=0,\"\",VLOOKUP(CL218,'Footnotes list'!$D$9:$E$58,2,FALSE) ) )","v":""},null,null,null,null,{"$f":"IF(TRIM(CQ218)=\"\", \"\", IF(VLOOKUP(CQ218,'Footnotes list'!$D$9:$E$58,2,FALSE)=0,\"\",VLOOKUP(CQ218,'Footnotes list'!$D$9:$E$58,2,FALSE) ) )","v":""},null,null,null,null,{"$f":"IF(TRIM(CV218)=\"\", \"\", IF(VLOOKUP(CV218,'Footnotes list'!$D$9:$E$58,2,FALSE)=0,\"\",VLOOKUP(CV218,'Footnotes list'!$D$9:$E$58,2,FALSE) ) )","v":""},null,null,null,null,{"$f":"IF(TRIM(DA218)=\"\", \"\", IF(VLOOKUP(DA218,'Footnotes list'!$D$9:$E$58,2,FALSE)=0,\"\",VLOOKUP(DA218,'Footnotes list'!$D$9:$E$58,2,FALSE) ) )","v":""},null,null,null,null,{"$f":"IF(TRIM(DF218)=\"\", \"\", IF(VLOOKUP(DF218,'Footnotes list'!$D$9:$E$58,2,FALSE)=0,\"\",VLOOKUP(DF218,'Footnotes list'!$D$9:$E$58,2,FALSE) ) )","v":""},null,null,null,null,{"$f":"IF(TRIM(DK218)=\"\", \"\", IF(VLOOKUP(DK218,'Footnotes list'!$D$9:$E$58,2,FALSE)=0,\"\",VLOOKUP(DK218,'Footnotes list'!$D$9:$E$58,2,FALSE) ) )","v":""},null,null,null,null,{"$f":"IF(TRIM(DP218)=\"\", \"\", IF(VLOOKUP(DP218,'Footnotes list'!$D$9:$E$58,2,FALSE)=0,\"\",VLOOKUP(DP218,'Footnotes list'!$D$9:$E$58,2,FALSE) ) )","v":""},null,null,null,null,{"$f":"IF(TRIM(DU218)=\"\", \"\", IF(VLOOKUP(DU218,'Footnotes list'!$D$9:$E$58,2,FALSE)=0,\"\",VLOOKUP(DU218,'Footnotes list'!$D$9:$E$58,2,FALSE) ) )","v":""},null,null,null,null,{"$f":"IF(TRIM(DZ218)=\"\", \"\", IF(VLOOKUP(DZ218,'Footnotes list'!$D$9:$E$58,2,FALSE)=0,\"\",VLOOKUP(DZ218,'Footnotes list'!$D$9:$E$58,2,FALSE) ) )","v":""},null,null,null,null,{"$f":"IF(TRIM(EE218)=\"\", \"\", IF(VLOOKUP(EE218,'Footnotes list'!$D$9:$E$58,2,FALSE)=0,\"\",VLOOKUP(EE218,'Footnotes list'!$D$9:$E$58,2,FALSE) ) )","v":""},null,null,null,null,{"$f":"IF(TRIM(EJ218)=\"\", \"\", IF(VLOOKUP(EJ218,'Footnotes list'!$D$9:$E$58,2,FALSE)=0,\"\",VLOOKUP(EJ218,'Footnotes list'!$D$9:$E$58,2,FALSE) ) )","v":""},null,null,null,null,{"$f":"IF(TRIM(EO218)=\"\", \"\", IF(VLOOKUP(EO218,'Footnotes list'!$D$9:$E$58,2,FALSE)=0,\"\",VLOOKUP(EO218,'Footnotes list'!$D$9:$E$58,2,FALSE) ) )","v":""},null,null,null,null,{"$f":"IF(TRIM(ET218)=\"\", \"\", IF(VLOOKUP(ET218,'Footnotes list'!$D$9:$E$58,2,FALSE)=0,\"\",VLOOKUP(ET218,'Footnotes list'!$D$9:$E$58,2,FALSE) ) )","v":""},null,null,null,null,{"$f":"IF(TRIM(EY218)=\"\", \"\", IF(VLOOKUP(EY218,'Footnotes list'!$D$9:$E$58,2,FALSE)=0,\"\",VLOOKUP(EY218,'Footnotes list'!$D$9:$E$58,2,FALSE) ) )","v":""}]
[null,null,"M","ANC","ancillary activities",null,null,null,null,null,{"$f":"IF(TRIM(J219)=\"\", \"\", IF(VLOOKUP(J219,'Footnotes list'!$D$9:$E$58,2,FALSE)=0,\"\",VLOOKUP(J219,'Footnotes list'!$D$9:$E$58,2,FALSE) ) )","v":""},null,null,null,null,{"$f":"IF(TRIM(O219)=\"\", \"\", IF(VLOOKUP(O219,'Footnotes list'!$D$9:$E$58,2,FALSE)=0,\"\",VLOOKUP(O219,'Footnotes list'!$D$9:$E$58,2,FALSE) ) )","v":""},null,null,null,null,{"$f":"IF(TRIM(T219)=\"\", \"\", IF(VLOOKUP(T219,'Footnotes list'!$D$9:$E$58,2,FALSE)=0,\"\",VLOOKUP(T219,'Footnotes list'!$D$9:$E$58,2,FALSE) ) )","v":""},null,null,null,null,{"$f":"IF(TRIM(Y219)=\"\", \"\", IF(VLOOKUP(Y219,'Footnotes list'!$D$9:$E$58,2,FALSE)=0,\"\",VLOOKUP(Y219,'Footnotes list'!$D$9:$E$58,2,FALSE) ) )","v":""},null,null,null,null,{"$f":"IF(TRIM(AD219)=\"\", \"\", IF(VLOOKUP(AD219,'Footnotes list'!$D$9:$E$58,2,FALSE)=0,\"\",VLOOKUP(AD219,'Footnotes list'!$D$9:$E$58,2,FALSE) ) )","v":""},null,null,null,null,{"$f":"IF(TRIM(AI219)=\"\", \"\", IF(VLOOKUP(AI219,'Footnotes list'!$D$9:$E$58,2,FALSE)=0,\"\",VLOOKUP(AI219,'Footnotes list'!$D$9:$E$58,2,FALSE) ) )","v":""},null,null,null,null,{"$f":"IF(TRIM(AN219)=\"\", \"\", IF(VLOOKUP(AN219,'Footnotes list'!$D$9:$E$58,2,FALSE)=0,\"\",VLOOKUP(AN219,'Footnotes list'!$D$9:$E$58,2,FALSE) ) )","v":""},null,null,null,null,{"$f":"IF(TRIM(AS219)=\"\", \"\", IF(VLOOKUP(AS219,'Footnotes list'!$D$9:$E$58,2,FALSE)=0,\"\",VLOOKUP(AS219,'Footnotes list'!$D$9:$E$58,2,FALSE) ) )","v":""},null,null,null,null,{"$f":"IF(TRIM(AX219)=\"\", \"\", IF(VLOOKUP(AX219,'Footnotes list'!$D$9:$E$58,2,FALSE)=0,\"\",VLOOKUP(AX219,'Footnotes list'!$D$9:$E$58,2,FALSE) ) )","v":""},null,null,null,null,{"$f":"IF(TRIM(BC219)=\"\", \"\", IF(VLOOKUP(BC219,'Footnotes list'!$D$9:$E$58,2,FALSE)=0,\"\",VLOOKUP(BC219,'Footnotes list'!$D$9:$E$58,2,FALSE) ) )","v":""},null,null,null,null,{"$f":"IF(TRIM(BH219)=\"\", \"\", IF(VLOOKUP(BH219,'Footnotes list'!$D$9:$E$58,2,FALSE)=0,\"\",VLOOKUP(BH219,'Footnotes list'!$D$9:$E$58,2,FALSE) ) )","v":""},null,null,null,null,{"$f":"IF(TRIM(BM219)=\"\", \"\", IF(VLOOKUP(BM219,'Footnotes list'!$D$9:$E$58,2,FALSE)=0,\"\",VLOOKUP(BM219,'Footnotes list'!$D$9:$E$58,2,FALSE) ) )","v":""},null,null,null,null,{"$f":"IF(TRIM(BR219)=\"\", \"\", IF(VLOOKUP(BR219,'Footnotes list'!$D$9:$E$58,2,FALSE)=0,\"\",VLOOKUP(BR219,'Footnotes list'!$D$9:$E$58,2,FALSE) ) )","v":""},null,null,null,null,{"$f":"IF(TRIM(BW219)=\"\", \"\", IF(VLOOKUP(BW219,'Footnotes list'!$D$9:$E$58,2,FALSE)=0,\"\",VLOOKUP(BW219,'Footnotes list'!$D$9:$E$58,2,FALSE) ) )","v":""},null,null,null,null,{"$f":"IF(TRIM(CB219)=\"\", \"\", IF(VLOOKUP(CB219,'Footnotes list'!$D$9:$E$58,2,FALSE)=0,\"\",VLOOKUP(CB219,'Footnotes list'!$D$9:$E$58,2,FALSE) ) )","v":""},null,null,null,null,{"$f":"IF(TRIM(CG219)=\"\", \"\", IF(VLOOKUP(CG219,'Footnotes list'!$D$9:$E$58,2,FALSE)=0,\"\",VLOOKUP(CG219,'Footnotes list'!$D$9:$E$58,2,FALSE) ) )","v":""},null,null,null,null,{"$f":"IF(TRIM(CL219)=\"\", \"\", IF(VLOOKUP(CL219,'Footnotes list'!$D$9:$E$58,2,FALSE)=0,\"\",VLOOKUP(CL219,'Footnotes list'!$D$9:$E$58,2,FALSE) ) )","v":""},null,null,null,null,{"$f":"IF(TRIM(CQ219)=\"\", \"\", IF(VLOOKUP(CQ219,'Footnotes list'!$D$9:$E$58,2,FALSE)=0,\"\",VLOOKUP(CQ219,'Footnotes list'!$D$9:$E$58,2,FALSE) ) )","v":""},null,null,null,null,{"$f":"IF(TRIM(CV219)=\"\", \"\", IF(VLOOKUP(CV219,'Footnotes list'!$D$9:$E$58,2,FALSE)=0,\"\",VLOOKUP(CV219,'Footnotes list'!$D$9:$E$58,2,FALSE) ) )","v":""},null,null,null,null,{"$f":"IF(TRIM(DA219)=\"\", \"\", IF(VLOOKUP(DA219,'Footnotes list'!$D$9:$E$58,2,FALSE)=0,\"\",VLOOKUP(DA219,'Footnotes list'!$D$9:$E$58,2,FALSE) ) )","v":""},null,null,null,null,{"$f":"IF(TRIM(DF219)=\"\", \"\", IF(VLOOKUP(DF219,'Footnotes list'!$D$9:$E$58,2,FALSE)=0,\"\",VLOOKUP(DF219,'Footnotes list'!$D$9:$E$58,2,FALSE) ) )","v":""},null,null,null,null,{"$f":"IF(TRIM(DK219)=\"\", \"\", IF(VLOOKUP(DK219,'Footnotes list'!$D$9:$E$58,2,FALSE)=0,\"\",VLOOKUP(DK219,'Footnotes list'!$D$9:$E$58,2,FALSE) ) )","v":""},null,null,null,null,{"$f":"IF(TRIM(DP219)=\"\", \"\", IF(VLOOKUP(DP219,'Footnotes list'!$D$9:$E$58,2,FALSE)=0,\"\",VLOOKUP(DP219,'Footnotes list'!$D$9:$E$58,2,FALSE) ) )","v":""},null,null,null,null,{"$f":"IF(TRIM(DU219)=\"\", \"\", IF(VLOOKUP(DU219,'Footnotes list'!$D$9:$E$58,2,FALSE)=0,\"\",VLOOKUP(DU219,'Footnotes list'!$D$9:$E$58,2,FALSE) ) )","v":""},null,null,null,null,{"$f":"IF(TRIM(DZ219)=\"\", \"\", IF(VLOOKUP(DZ219,'Footnotes list'!$D$9:$E$58,2,FALSE)=0,\"\",VLOOKUP(DZ219,'Footnotes list'!$D$9:$E$58,2,FALSE) ) )","v":""},null,null,null,null,{"$f":"IF(TRIM(EE219)=\"\", \"\", IF(VLOOKUP(EE219,'Footnotes list'!$D$9:$E$58,2,FALSE)=0,\"\",VLOOKUP(EE219,'Footnotes list'!$D$9:$E$58,2,FALSE) ) )","v":""},null,null,null,null,{"$f":"IF(TRIM(EJ219)=\"\", \"\", IF(VLOOKUP(EJ219,'Footnotes list'!$D$9:$E$58,2,FALSE)=0,\"\",VLOOKUP(EJ219,'Footnotes list'!$D$9:$E$58,2,FALSE) ) )","v":""},null,null,null,null,{"$f":"IF(TRIM(EO219)=\"\", \"\", IF(VLOOKUP(EO219,'Footnotes list'!$D$9:$E$58,2,FALSE)=0,\"\",VLOOKUP(EO219,'Footnotes list'!$D$9:$E$58,2,FALSE) ) )","v":""},null,null,null,null,{"$f":"IF(TRIM(ET219)=\"\", \"\", IF(VLOOKUP(ET219,'Footnotes list'!$D$9:$E$58,2,FALSE)=0,\"\",VLOOKUP(ET219,'Footnotes list'!$D$9:$E$58,2,FALSE) ) )","v":""},null,null,null,null,{"$f":"IF(TRIM(EY219)=\"\", \"\", IF(VLOOKUP(EY219,'Footnotes list'!$D$9:$E$58,2,FALSE)=0,\"\",VLOOKUP(EY219,'Footnotes list'!$D$9:$E$58,2,FALSE) ) )","v":""}]
[null,null,"M","NMKT","non-market activities",null,null,null,null,null,{"$f":"IF(TRIM(J220)=\"\", \"\", IF(VLOOKUP(J220,'Footnotes list'!$D$9:$E$58,2,FALSE)=0,\"\",VLOOKUP(J220,'Footnotes list'!$D$9:$E$58,2,FALSE) ) )","v":""},null,null,null,null,{"$f":"IF(TRIM(O220)=\"\", \"\", IF(VLOOKUP(O220,'Footnotes list'!$D$9:$E$58,2,FALSE)=0,\"\",VLOOKUP(O220,'Footnotes list'!$D$9:$E$58,2,FALSE) ) )","v":""},null,null,null,null,{"$f":"IF(TRIM(T220)=\"\", \"\", IF(VLOOKUP(T220,'Footnotes list'!$D$9:$E$58,2,FALSE)=0,\"\",VLOOKUP(T220,'Footnotes list'!$D$9:$E$58,2,FALSE) ) )","v":""},null,null,null,null,{"$f":"IF(TRIM(Y220)=\"\", \"\", IF(VLOOKUP(Y220,'Footnotes list'!$D$9:$E$58,2,FALSE)=0,\"\",VLOOKUP(Y220,'Footnotes list'!$D$9:$E$58,2,FALSE) ) )","v":""},null,null,null,null,{"$f":"IF(TRIM(AD220)=\"\", \"\", IF(VLOOKUP(AD220,'Footnotes list'!$D$9:$E$58,2,FALSE)=0,\"\",VLOOKUP(AD220,'Footnotes list'!$D$9:$E$58,2,FALSE) ) )","v":""},null,null,null,null,{"$f":"IF(TRIM(AI220)=\"\", \"\", IF(VLOOKUP(AI220,'Footnotes list'!$D$9:$E$58,2,FALSE)=0,\"\",VLOOKUP(AI220,'Footnotes list'!$D$9:$E$58,2,FALSE) ) )","v":""},null,null,null,null,{"$f":"IF(TRIM(AN220)=\"\", \"\", IF(VLOOKUP(AN220,'Footnotes list'!$D$9:$E$58,2,FALSE)=0,\"\",VLOOKUP(AN220,'Footnotes list'!$D$9:$E$58,2,FALSE) ) )","v":""},null,null,null,null,{"$f":"IF(TRIM(AS220)=\"\", \"\", IF(VLOOKUP(AS220,'Footnotes list'!$D$9:$E$58,2,FALSE)=0,\"\",VLOOKUP(AS220,'Footnotes list'!$D$9:$E$58,2,FALSE) ) )","v":""},null,null,null,null,{"$f":"IF(TRIM(AX220)=\"\", \"\", IF(VLOOKUP(AX220,'Footnotes list'!$D$9:$E$58,2,FALSE)=0,\"\",VLOOKUP(AX220,'Footnotes list'!$D$9:$E$58,2,FALSE) ) )","v":""},null,null,null,null,{"$f":"IF(TRIM(BC220)=\"\", \"\", IF(VLOOKUP(BC220,'Footnotes list'!$D$9:$E$58,2,FALSE)=0,\"\",VLOOKUP(BC220,'Footnotes list'!$D$9:$E$58,2,FALSE) ) )","v":""},null,null,null,null,{"$f":"IF(TRIM(BH220)=\"\", \"\", IF(VLOOKUP(BH220,'Footnotes list'!$D$9:$E$58,2,FALSE)=0,\"\",VLOOKUP(BH220,'Footnotes list'!$D$9:$E$58,2,FALSE) ) )","v":""},null,null,null,null,{"$f":"IF(TRIM(BM220)=\"\", \"\", IF(VLOOKUP(BM220,'Footnotes list'!$D$9:$E$58,2,FALSE)=0,\"\",VLOOKUP(BM220,'Footnotes list'!$D$9:$E$58,2,FALSE) ) )","v":""},null,null,null,null,{"$f":"IF(TRIM(BR220)=\"\", \"\", IF(VLOOKUP(BR220,'Footnotes list'!$D$9:$E$58,2,FALSE)=0,\"\",VLOOKUP(BR220,'Footnotes list'!$D$9:$E$58,2,FALSE) ) )","v":""},null,null,null,null,{"$f":"IF(TRIM(BW220)=\"\", \"\", IF(VLOOKUP(BW220,'Footnotes list'!$D$9:$E$58,2,FALSE)=0,\"\",VLOOKUP(BW220,'Footnotes list'!$D$9:$E$58,2,FALSE) ) )","v":""},null,null,null,null,{"$f":"IF(TRIM(CB220)=\"\", \"\", IF(VLOOKUP(CB220,'Footnotes list'!$D$9:$E$58,2,FALSE)=0,\"\",VLOOKUP(CB220,'Footnotes list'!$D$9:$E$58,2,FALSE) ) )","v":""},null,null,null,null,{"$f":"IF(TRIM(CG220)=\"\", \"\", IF(VLOOKUP(CG220,'Footnotes list'!$D$9:$E$58,2,FALSE)=0,\"\",VLOOKUP(CG220,'Footnotes list'!$D$9:$E$58,2,FALSE) ) )","v":""},null,null,null,null,{"$f":"IF(TRIM(CL220)=\"\", \"\", IF(VLOOKUP(CL220,'Footnotes list'!$D$9:$E$58,2,FALSE)=0,\"\",VLOOKUP(CL220,'Footnotes list'!$D$9:$E$58,2,FALSE) ) )","v":""},null,null,null,null,{"$f":"IF(TRIM(CQ220)=\"\", \"\", IF(VLOOKUP(CQ220,'Footnotes list'!$D$9:$E$58,2,FALSE)=0,\"\",VLOOKUP(CQ220,'Footnotes list'!$D$9:$E$58,2,FALSE) ) )","v":""},null,null,null,null,{"$f":"IF(TRIM(CV220)=\"\", \"\", IF(VLOOKUP(CV220,'Footnotes list'!$D$9:$E$58,2,FALSE)=0,\"\",VLOOKUP(CV220,'Footnotes list'!$D$9:$E$58,2,FALSE) ) )","v":""},null,null,null,null,{"$f":"IF(TRIM(DA220)=\"\", \"\", IF(VLOOKUP(DA220,'Footnotes list'!$D$9:$E$58,2,FALSE)=0,\"\",VLOOKUP(DA220,'Footnotes list'!$D$9:$E$58,2,FALSE) ) )","v":""},null,null,null,null,{"$f":"IF(TRIM(DF220)=\"\", \"\", IF(VLOOKUP(DF220,'Footnotes list'!$D$9:$E$58,2,FALSE)=0,\"\",VLOOKUP(DF220,'Footnotes list'!$D$9:$E$58,2,FALSE) ) )","v":""},null,null,null,null,{"$f":"IF(TRIM(DK220)=\"\", \"\", IF(VLOOKUP(DK220,'Footnotes list'!$D$9:$E$58,2,FALSE)=0,\"\",VLOOKUP(DK220,'Footnotes list'!$D$9:$E$58,2,FALSE) ) )","v":""},null,null,null,null,{"$f":"IF(TRIM(DP220)=\"\", \"\", IF(VLOOKUP(DP220,'Footnotes list'!$D$9:$E$58,2,FALSE)=0,\"\",VLOOKUP(DP220,'Footnotes list'!$D$9:$E$58,2,FALSE) ) )","v":""},null,null,null,null,{"$f":"IF(TRIM(DU220)=\"\", \"\", IF(VLOOKUP(DU220,'Footnotes list'!$D$9:$E$58,2,FALSE)=0,\"\",VLOOKUP(DU220,'Footnotes list'!$D$9:$E$58,2,FALSE) ) )","v":""},null,null,null,null,{"$f":"IF(TRIM(DZ220)=\"\", \"\", IF(VLOOKUP(DZ220,'Footnotes list'!$D$9:$E$58,2,FALSE)=0,\"\",VLOOKUP(DZ220,'Footnotes list'!$D$9:$E$58,2,FALSE) ) )","v":""},null,null,null,null,{"$f":"IF(TRIM(EE220)=\"\", \"\", IF(VLOOKUP(EE220,'Footnotes list'!$D$9:$E$58,2,FALSE)=0,\"\",VLOOKUP(EE220,'Footnotes list'!$D$9:$E$58,2,FALSE) ) )","v":""},null,null,null,null,{"$f":"IF(TRIM(EJ220)=\"\", \"\", IF(VLOOKUP(EJ220,'Footnotes list'!$D$9:$E$58,2,FALSE)=0,\"\",VLOOKUP(EJ220,'Footnotes list'!$D$9:$E$58,2,FALSE) ) )","v":""},null,null,null,null,{"$f":"IF(TRIM(EO220)=\"\", \"\", IF(VLOOKUP(EO220,'Footnotes list'!$D$9:$E$58,2,FALSE)=0,\"\",VLOOKUP(EO220,'Footnotes list'!$D$9:$E$58,2,FALSE) ) )","v":""},null,null,null,null,{"$f":"IF(TRIM(ET220)=\"\", \"\", IF(VLOOKUP(ET220,'Footnotes list'!$D$9:$E$58,2,FALSE)=0,\"\",VLOOKUP(ET220,'Footnotes list'!$D$9:$E$58,2,FALSE) ) )","v":""},null,null,null,null,{"$f":"IF(TRIM(EY220)=\"\", \"\", IF(VLOOKUP(EY220,'Footnotes list'!$D$9:$E$58,2,FALSE)=0,\"\",VLOOKUP(EY220,'Footnotes list'!$D$9:$E$58,2,FALSE) ) )","v":""}]
[null,null,"M","OWN_USE","activities for own final use",null,null,null,null,null,{"$f":"IF(TRIM(J221)=\"\", \"\", IF(VLOOKUP(J221,'Footnotes list'!$D$9:$E$58,2,FALSE)=0,\"\",VLOOKUP(J221,'Footnotes list'!$D$9:$E$58,2,FALSE) ) )","v":""},null,null,null,null,{"$f":"IF(TRIM(O221)=\"\", \"\", IF(VLOOKUP(O221,'Footnotes list'!$D$9:$E$58,2,FALSE)=0,\"\",VLOOKUP(O221,'Footnotes list'!$D$9:$E$58,2,FALSE) ) )","v":""},null,null,null,null,{"$f":"IF(TRIM(T221)=\"\", \"\", IF(VLOOKUP(T221,'Footnotes list'!$D$9:$E$58,2,FALSE)=0,\"\",VLOOKUP(T221,'Footnotes list'!$D$9:$E$58,2,FALSE) ) )","v":""},null,null,null,null,{"$f":"IF(TRIM(Y221)=\"\", \"\", IF(VLOOKUP(Y221,'Footnotes list'!$D$9:$E$58,2,FALSE)=0,\"\",VLOOKUP(Y221,'Footnotes list'!$D$9:$E$58,2,FALSE) ) )","v":""},null,null,null,null,{"$f":"IF(TRIM(AD221)=\"\", \"\", IF(VLOOKUP(AD221,'Footnotes list'!$D$9:$E$58,2,FALSE)=0,\"\",VLOOKUP(AD221,'Footnotes list'!$D$9:$E$58,2,FALSE) ) )","v":""},null,null,null,null,{"$f":"IF(TRIM(AI221)=\"\", \"\", IF(VLOOKUP(AI221,'Footnotes list'!$D$9:$E$58,2,FALSE)=0,\"\",VLOOKUP(AI221,'Footnotes list'!$D$9:$E$58,2,FALSE) ) )","v":""},null,null,null,null,{"$f":"IF(TRIM(AN221)=\"\", \"\", IF(VLOOKUP(AN221,'Footnotes list'!$D$9:$E$58,2,FALSE)=0,\"\",VLOOKUP(AN221,'Footnotes list'!$D$9:$E$58,2,FALSE) ) )","v":""},null,null,null,null,{"$f":"IF(TRIM(AS221)=\"\", \"\", IF(VLOOKUP(AS221,'Footnotes list'!$D$9:$E$58,2,FALSE)=0,\"\",VLOOKUP(AS221,'Footnotes list'!$D$9:$E$58,2,FALSE) ) )","v":""},null,null,null,null,{"$f":"IF(TRIM(AX221)=\"\", \"\", IF(VLOOKUP(AX221,'Footnotes list'!$D$9:$E$58,2,FALSE)=0,\"\",VLOOKUP(AX221,'Footnotes list'!$D$9:$E$58,2,FALSE) ) )","v":""},null,null,null,null,{"$f":"IF(TRIM(BC221)=\"\", \"\", IF(VLOOKUP(BC221,'Footnotes list'!$D$9:$E$58,2,FALSE)=0,\"\",VLOOKUP(BC221,'Footnotes list'!$D$9:$E$58,2,FALSE) ) )","v":""},null,null,null,null,{"$f":"IF(TRIM(BH221)=\"\", \"\", IF(VLOOKUP(BH221,'Footnotes list'!$D$9:$E$58,2,FALSE)=0,\"\",VLOOKUP(BH221,'Footnotes list'!$D$9:$E$58,2,FALSE) ) )","v":""},null,null,null,null,{"$f":"IF(TRIM(BM221)=\"\", \"\", IF(VLOOKUP(BM221,'Footnotes list'!$D$9:$E$58,2,FALSE)=0,\"\",VLOOKUP(BM221,'Footnotes list'!$D$9:$E$58,2,FALSE) ) )","v":""},null,null,null,null,{"$f":"IF(TRIM(BR221)=\"\", \"\", IF(VLOOKUP(BR221,'Footnotes list'!$D$9:$E$58,2,FALSE)=0,\"\",VLOOKUP(BR221,'Footnotes list'!$D$9:$E$58,2,FALSE) ) )","v":""},null,null,null,null,{"$f":"IF(TRIM(BW221)=\"\", \"\", IF(VLOOKUP(BW221,'Footnotes list'!$D$9:$E$58,2,FALSE)=0,\"\",VLOOKUP(BW221,'Footnotes list'!$D$9:$E$58,2,FALSE) ) )","v":""},null,null,null,null,{"$f":"IF(TRIM(CB221)=\"\", \"\", IF(VLOOKUP(CB221,'Footnotes list'!$D$9:$E$58,2,FALSE)=0,\"\",VLOOKUP(CB221,'Footnotes list'!$D$9:$E$58,2,FALSE) ) )","v":""},null,null,null,null,{"$f":"IF(TRIM(CG221)=\"\", \"\", IF(VLOOKUP(CG221,'Footnotes list'!$D$9:$E$58,2,FALSE)=0,\"\",VLOOKUP(CG221,'Footnotes list'!$D$9:$E$58,2,FALSE) ) )","v":""},null,null,null,null,{"$f":"IF(TRIM(CL221)=\"\", \"\", IF(VLOOKUP(CL221,'Footnotes list'!$D$9:$E$58,2,FALSE)=0,\"\",VLOOKUP(CL221,'Footnotes list'!$D$9:$E$58,2,FALSE) ) )","v":""},null,null,null,null,{"$f":"IF(TRIM(CQ221)=\"\", \"\", IF(VLOOKUP(CQ221,'Footnotes list'!$D$9:$E$58,2,FALSE)=0,\"\",VLOOKUP(CQ221,'Footnotes list'!$D$9:$E$58,2,FALSE) ) )","v":""},null,null,null,null,{"$f":"IF(TRIM(CV221)=\"\", \"\", IF(VLOOKUP(CV221,'Footnotes list'!$D$9:$E$58,2,FALSE)=0,\"\",VLOOKUP(CV221,'Footnotes list'!$D$9:$E$58,2,FALSE) ) )","v":""},null,null,null,null,{"$f":"IF(TRIM(DA221)=\"\", \"\", IF(VLOOKUP(DA221,'Footnotes list'!$D$9:$E$58,2,FALSE)=0,\"\",VLOOKUP(DA221,'Footnotes list'!$D$9:$E$58,2,FALSE) ) )","v":""},null,null,null,null,{"$f":"IF(TRIM(DF221)=\"\", \"\", IF(VLOOKUP(DF221,'Footnotes list'!$D$9:$E$58,2,FALSE)=0,\"\",VLOOKUP(DF221,'Footnotes list'!$D$9:$E$58,2,FALSE) ) )","v":""},null,null,null,null,{"$f":"IF(TRIM(DK221)=\"\", \"\", IF(VLOOKUP(DK221,'Footnotes list'!$D$9:$E$58,2,FALSE)=0,\"\",VLOOKUP(DK221,'Footnotes list'!$D$9:$E$58,2,FALSE) ) )","v":""},null,null,null,null,{"$f":"IF(TRIM(DP221)=\"\", \"\", IF(VLOOKUP(DP221,'Footnotes list'!$D$9:$E$58,2,FALSE)=0,\"\",VLOOKUP(DP221,'Footnotes list'!$D$9:$E$58,2,FALSE) ) )","v":""},null,null,null,null,{"$f":"IF(TRIM(DU221)=\"\", \"\", IF(VLOOKUP(DU221,'Footnotes list'!$D$9:$E$58,2,FALSE)=0,\"\",VLOOKUP(DU221,'Footnotes list'!$D$9:$E$58,2,FALSE) ) )","v":""},null,null,null,null,{"$f":"IF(TRIM(DZ221)=\"\", \"\", IF(VLOOKUP(DZ221,'Footnotes list'!$D$9:$E$58,2,FALSE)=0,\"\",VLOOKUP(DZ221,'Footnotes list'!$D$9:$E$58,2,FALSE) ) )","v":""},null,null,null,null,{"$f":"IF(TRIM(EE221)=\"\", \"\", IF(VLOOKUP(EE221,'Footnotes list'!$D$9:$E$58,2,FALSE)=0,\"\",VLOOKUP(EE221,'Footnotes list'!$D$9:$E$58,2,FALSE) ) )","v":""},null,null,null,null,{"$f":"IF(TRIM(EJ221)=\"\", \"\", IF(VLOOKUP(EJ221,'Footnotes list'!$D$9:$E$58,2,FALSE)=0,\"\",VLOOKUP(EJ221,'Footnotes list'!$D$9:$E$58,2,FALSE) ) )","v":""},null,null,null,null,{"$f":"IF(TRIM(EO221)=\"\", \"\", IF(VLOOKUP(EO221,'Footnotes list'!$D$9:$E$58,2,FALSE)=0,\"\",VLOOKUP(EO221,'Footnotes list'!$D$9:$E$58,2,FALSE) ) )","v":""},null,null,null,null,{"$f":"IF(TRIM(ET221)=\"\", \"\", IF(VLOOKUP(ET221,'Footnotes list'!$D$9:$E$58,2,FALSE)=0,\"\",VLOOKUP(ET221,'Footnotes list'!$D$9:$E$58,2,FALSE) ) )","v":""},null,null,null,null,{"$f":"IF(TRIM(EY221)=\"\", \"\", IF(VLOOKUP(EY221,'Footnotes list'!$D$9:$E$58,2,FALSE)=0,\"\",VLOOKUP(EY221,'Footnotes list'!$D$9:$E$58,2,FALSE) ) )","v":""}]
[null,null,"M","MKT","market activities, including:",null,null,null,null,null,{"$f":"IF(TRIM(J222)=\"\", \"\", IF(VLOOKUP(J222,'Footnotes list'!$D$9:$E$58,2,FALSE)=0,\"\",VLOOKUP(J222,'Footnotes list'!$D$9:$E$58,2,FALSE) ) )","v":""},null,null,null,null,{"$f":"IF(TRIM(O222)=\"\", \"\", IF(VLOOKUP(O222,'Footnotes list'!$D$9:$E$58,2,FALSE)=0,\"\",VLOOKUP(O222,'Footnotes list'!$D$9:$E$58,2,FALSE) ) )","v":""},null,null,null,null,{"$f":"IF(TRIM(T222)=\"\", \"\", IF(VLOOKUP(T222,'Footnotes list'!$D$9:$E$58,2,FALSE)=0,\"\",VLOOKUP(T222,'Footnotes list'!$D$9:$E$58,2,FALSE) ) )","v":""},null,null,null,null,{"$f":"IF(TRIM(Y222)=\"\", \"\", IF(VLOOKUP(Y222,'Footnotes list'!$D$9:$E$58,2,FALSE)=0,\"\",VLOOKUP(Y222,'Footnotes list'!$D$9:$E$58,2,FALSE) ) )","v":""},null,null,null,null,{"$f":"IF(TRIM(AD222)=\"\", \"\", IF(VLOOKUP(AD222,'Footnotes list'!$D$9:$E$58,2,FALSE)=0,\"\",VLOOKUP(AD222,'Footnotes list'!$D$9:$E$58,2,FALSE) ) )","v":""},null,null,null,null,{"$f":"IF(TRIM(AI222)=\"\", \"\", IF(VLOOKUP(AI222,'Footnotes list'!$D$9:$E$58,2,FALSE)=0,\"\",VLOOKUP(AI222,'Footnotes list'!$D$9:$E$58,2,FALSE) ) )","v":""},null,null,null,null,{"$f":"IF(TRIM(AN222)=\"\", \"\", IF(VLOOKUP(AN222,'Footnotes list'!$D$9:$E$58,2,FALSE)=0,\"\",VLOOKUP(AN222,'Footnotes list'!$D$9:$E$58,2,FALSE) ) )","v":""},null,null,null,null,{"$f":"IF(TRIM(AS222)=\"\", \"\", IF(VLOOKUP(AS222,'Footnotes list'!$D$9:$E$58,2,FALSE)=0,\"\",VLOOKUP(AS222,'Footnotes list'!$D$9:$E$58,2,FALSE) ) )","v":""},null,null,null,null,{"$f":"IF(TRIM(AX222)=\"\", \"\", IF(VLOOKUP(AX222,'Footnotes list'!$D$9:$E$58,2,FALSE)=0,\"\",VLOOKUP(AX222,'Footnotes list'!$D$9:$E$58,2,FALSE) ) )","v":""},null,null,null,null,{"$f":"IF(TRIM(BC222)=\"\", \"\", IF(VLOOKUP(BC222,'Footnotes list'!$D$9:$E$58,2,FALSE)=0,\"\",VLOOKUP(BC222,'Footnotes list'!$D$9:$E$58,2,FALSE) ) )","v":""},null,null,null,null,{"$f":"IF(TRIM(BH222)=\"\", \"\", IF(VLOOKUP(BH222,'Footnotes list'!$D$9:$E$58,2,FALSE)=0,\"\",VLOOKUP(BH222,'Footnotes list'!$D$9:$E$58,2,FALSE) ) )","v":""},null,null,null,null,{"$f":"IF(TRIM(BM222)=\"\", \"\", IF(VLOOKUP(BM222,'Footnotes list'!$D$9:$E$58,2,FALSE)=0,\"\",VLOOKUP(BM222,'Footnotes list'!$D$9:$E$58,2,FALSE) ) )","v":""},null,null,null,null,{"$f":"IF(TRIM(BR222)=\"\", \"\", IF(VLOOKUP(BR222,'Footnotes list'!$D$9:$E$58,2,FALSE)=0,\"\",VLOOKUP(BR222,'Footnotes list'!$D$9:$E$58,2,FALSE) ) )","v":""},null,null,null,null,{"$f":"IF(TRIM(BW222)=\"\", \"\", IF(VLOOKUP(BW222,'Footnotes list'!$D$9:$E$58,2,FALSE)=0,\"\",VLOOKUP(BW222,'Footnotes list'!$D$9:$E$58,2,FALSE) ) )","v":""},null,null,null,null,{"$f":"IF(TRIM(CB222)=\"\", \"\", IF(VLOOKUP(CB222,'Footnotes list'!$D$9:$E$58,2,FALSE)=0,\"\",VLOOKUP(CB222,'Footnotes list'!$D$9:$E$58,2,FALSE) ) )","v":""},null,null,null,null,{"$f":"IF(TRIM(CG222)=\"\", \"\", IF(VLOOKUP(CG222,'Footnotes list'!$D$9:$E$58,2,FALSE)=0,\"\",VLOOKUP(CG222,'Footnotes list'!$D$9:$E$58,2,FALSE) ) )","v":""},null,null,null,null,{"$f":"IF(TRIM(CL222)=\"\", \"\", IF(VLOOKUP(CL222,'Footnotes list'!$D$9:$E$58,2,FALSE)=0,\"\",VLOOKUP(CL222,'Footnotes list'!$D$9:$E$58,2,FALSE) ) )","v":""},null,null,null,null,{"$f":"IF(TRIM(CQ222)=\"\", \"\", IF(VLOOKUP(CQ222,'Footnotes list'!$D$9:$E$58,2,FALSE)=0,\"\",VLOOKUP(CQ222,'Footnotes list'!$D$9:$E$58,2,FALSE) ) )","v":""},null,null,null,null,{"$f":"IF(TRIM(CV222)=\"\", \"\", IF(VLOOKUP(CV222,'Footnotes list'!$D$9:$E$58,2,FALSE)=0,\"\",VLOOKUP(CV222,'Footnotes list'!$D$9:$E$58,2,FALSE) ) )","v":""},null,null,null,null,{"$f":"IF(TRIM(DA222)=\"\", \"\", IF(VLOOKUP(DA222,'Footnotes list'!$D$9:$E$58,2,FALSE)=0,\"\",VLOOKUP(DA222,'Footnotes list'!$D$9:$E$58,2,FALSE) ) )","v":""},null,null,null,null,{"$f":"IF(TRIM(DF222)=\"\", \"\", IF(VLOOKUP(DF222,'Footnotes list'!$D$9:$E$58,2,FALSE)=0,\"\",VLOOKUP(DF222,'Footnotes list'!$D$9:$E$58,2,FALSE) ) )","v":""},null,null,null,null,{"$f":"IF(TRIM(DK222)=\"\", \"\", IF(VLOOKUP(DK222,'Footnotes list'!$D$9:$E$58,2,FALSE)=0,\"\",VLOOKUP(DK222,'Footnotes list'!$D$9:$E$58,2,FALSE) ) )","v":""},null,null,null,null,{"$f":"IF(TRIM(DP222)=\"\", \"\", IF(VLOOKUP(DP222,'Footnotes list'!$D$9:$E$58,2,FALSE)=0,\"\",VLOOKUP(DP222,'Footnotes list'!$D$9:$E$58,2,FALSE) ) )","v":""},null,null,null,null,{"$f":"IF(TRIM(DU222)=\"\", \"\", IF(VLOOKUP(DU222,'Footnotes list'!$D$9:$E$58,2,FALSE)=0,\"\",VLOOKUP(DU222,'Footnotes list'!$D$9:$E$58,2,FALSE) ) )","v":""},null,null,null,null,{"$f":"IF(TRIM(DZ222)=\"\", \"\", IF(VLOOKUP(DZ222,'Footnotes list'!$D$9:$E$58,2,FALSE)=0,\"\",VLOOKUP(DZ222,'Footnotes list'!$D$9:$E$58,2,FALSE) ) )","v":""},null,null,null,null,{"$f":"IF(TRIM(EE222)=\"\", \"\", IF(VLOOKUP(EE222,'Footnotes list'!$D$9:$E$58,2,FALSE)=0,\"\",VLOOKUP(EE222,'Footnotes list'!$D$9:$E$58,2,FALSE) ) )","v":""},null,null,null,null,{"$f":"IF(TRIM(EJ222)=\"\", \"\", IF(VLOOKUP(EJ222,'Footnotes list'!$D$9:$E$58,2,FALSE)=0,\"\",VLOOKUP(EJ222,'Footnotes list'!$D$9:$E$58,2,FALSE) ) )","v":""},null,null,null,null,{"$f":"IF(TRIM(EO222)=\"\", \"\", IF(VLOOKUP(EO222,'Footnotes list'!$D$9:$E$58,2,FALSE)=0,\"\",VLOOKUP(EO222,'Footnotes list'!$D$9:$E$58,2,FALSE) ) )","v":""},null,null,null,null,{"$f":"IF(TRIM(ET222)=\"\", \"\", IF(VLOOKUP(ET222,'Footnotes list'!$D$9:$E$58,2,FALSE)=0,\"\",VLOOKUP(ET222,'Footnotes list'!$D$9:$E$58,2,FALSE) ) )","v":""},null,null,null,null,{"$f":"IF(TRIM(EY222)=\"\", \"\", IF(VLOOKUP(EY222,'Footnotes list'!$D$9:$E$58,2,FALSE)=0,\"\",VLOOKUP(EY222,'Footnotes list'!$D$9:$E$58,2,FALSE) ) )","v":""}]
[null,null,"M","ES_CS","environmental specific services",null,null,null,null,null,{"$f":"IF(TRIM(J223)=\"\", \"\", IF(VLOOKUP(J223,'Footnotes list'!$D$9:$E$58,2,FALSE)=0,\"\",VLOOKUP(J223,'Footnotes list'!$D$9:$E$58,2,FALSE) ) )","v":""},null,null,null,null,{"$f":"IF(TRIM(O223)=\"\", \"\", IF(VLOOKUP(O223,'Footnotes list'!$D$9:$E$58,2,FALSE)=0,\"\",VLOOKUP(O223,'Footnotes list'!$D$9:$E$58,2,FALSE) ) )","v":""},null,null,null,null,{"$f":"IF(TRIM(T223)=\"\", \"\", IF(VLOOKUP(T223,'Footnotes list'!$D$9:$E$58,2,FALSE)=0,\"\",VLOOKUP(T223,'Footnotes list'!$D$9:$E$58,2,FALSE) ) )","v":""},null,null,null,null,{"$f":"IF(TRIM(Y223)=\"\", \"\", IF(VLOOKUP(Y223,'Footnotes list'!$D$9:$E$58,2,FALSE)=0,\"\",VLOOKUP(Y223,'Footnotes list'!$D$9:$E$58,2,FALSE) ) )","v":""},null,null,null,null,{"$f":"IF(TRIM(AD223)=\"\", \"\", IF(VLOOKUP(AD223,'Footnotes list'!$D$9:$E$58,2,FALSE)=0,\"\",VLOOKUP(AD223,'Footnotes list'!$D$9:$E$58,2,FALSE) ) )","v":""},null,null,null,null,{"$f":"IF(TRIM(AI223)=\"\", \"\", IF(VLOOKUP(AI223,'Footnotes list'!$D$9:$E$58,2,FALSE)=0,\"\",VLOOKUP(AI223,'Footnotes list'!$D$9:$E$58,2,FALSE) ) )","v":""},null,null,null,null,{"$f":"IF(TRIM(AN223)=\"\", \"\", IF(VLOOKUP(AN223,'Footnotes list'!$D$9:$E$58,2,FALSE)=0,\"\",VLOOKUP(AN223,'Footnotes list'!$D$9:$E$58,2,FALSE) ) )","v":""},null,null,null,null,{"$f":"IF(TRIM(AS223)=\"\", \"\", IF(VLOOKUP(AS223,'Footnotes list'!$D$9:$E$58,2,FALSE)=0,\"\",VLOOKUP(AS223,'Footnotes list'!$D$9:$E$58,2,FALSE) ) )","v":""},null,null,null,null,{"$f":"IF(TRIM(AX223)=\"\", \"\", IF(VLOOKUP(AX223,'Footnotes list'!$D$9:$E$58,2,FALSE)=0,\"\",VLOOKUP(AX223,'Footnotes list'!$D$9:$E$58,2,FALSE) ) )","v":""},null,null,null,null,{"$f":"IF(TRIM(BC223)=\"\", \"\", IF(VLOOKUP(BC223,'Footnotes list'!$D$9:$E$58,2,FALSE)=0,\"\",VLOOKUP(BC223,'Footnotes list'!$D$9:$E$58,2,FALSE) ) )","v":""},null,null,null,null,{"$f":"IF(TRIM(BH223)=\"\", \"\", IF(VLOOKUP(BH223,'Footnotes list'!$D$9:$E$58,2,FALSE)=0,\"\",VLOOKUP(BH223,'Footnotes list'!$D$9:$E$58,2,FALSE) ) )","v":""},null,null,null,null,{"$f":"IF(TRIM(BM223)=\"\", \"\", IF(VLOOKUP(BM223,'Footnotes list'!$D$9:$E$58,2,FALSE)=0,\"\",VLOOKUP(BM223,'Footnotes list'!$D$9:$E$58,2,FALSE) ) )","v":""},null,null,null,null,{"$f":"IF(TRIM(BR223)=\"\", \"\", IF(VLOOKUP(BR223,'Footnotes list'!$D$9:$E$58,2,FALSE)=0,\"\",VLOOKUP(BR223,'Footnotes list'!$D$9:$E$58,2,FALSE) ) )","v":""},null,null,null,null,{"$f":"IF(TRIM(BW223)=\"\", \"\", IF(VLOOKUP(BW223,'Footnotes list'!$D$9:$E$58,2,FALSE)=0,\"\",VLOOKUP(BW223,'Footnotes list'!$D$9:$E$58,2,FALSE) ) )","v":""},null,null,null,null,{"$f":"IF(TRIM(CB223)=\"\", \"\", IF(VLOOKUP(CB223,'Footnotes list'!$D$9:$E$58,2,FALSE)=0,\"\",VLOOKUP(CB223,'Footnotes list'!$D$9:$E$58,2,FALSE) ) )","v":""},null,null,null,null,{"$f":"IF(TRIM(CG223)=\"\", \"\", IF(VLOOKUP(CG223,'Footnotes list'!$D$9:$E$58,2,FALSE)=0,\"\",VLOOKUP(CG223,'Footnotes list'!$D$9:$E$58,2,FALSE) ) )","v":""},null,null,null,null,{"$f":"IF(TRIM(CL223)=\"\", \"\", IF(VLOOKUP(CL223,'Footnotes list'!$D$9:$E$58,2,FALSE)=0,\"\",VLOOKUP(CL223,'Footnotes list'!$D$9:$E$58,2,FALSE) ) )","v":""},null,null,null,null,{"$f":"IF(TRIM(CQ223)=\"\", \"\", IF(VLOOKUP(CQ223,'Footnotes list'!$D$9:$E$58,2,FALSE)=0,\"\",VLOOKUP(CQ223,'Footnotes list'!$D$9:$E$58,2,FALSE) ) )","v":""},null,null,null,null,{"$f":"IF(TRIM(CV223)=\"\", \"\", IF(VLOOKUP(CV223,'Footnotes list'!$D$9:$E$58,2,FALSE)=0,\"\",VLOOKUP(CV223,'Footnotes list'!$D$9:$E$58,2,FALSE) ) )","v":""},null,null,null,null,{"$f":"IF(TRIM(DA223)=\"\", \"\", IF(VLOOKUP(DA223,'Footnotes list'!$D$9:$E$58,2,FALSE)=0,\"\",VLOOKUP(DA223,'Footnotes list'!$D$9:$E$58,2,FALSE) ) )","v":""},null,null,null,null,{"$f":"IF(TRIM(DF223)=\"\", \"\", IF(VLOOKUP(DF223,'Footnotes list'!$D$9:$E$58,2,FALSE)=0,\"\",VLOOKUP(DF223,'Footnotes list'!$D$9:$E$58,2,FALSE) ) )","v":""},null,null,null,null,{"$f":"IF(TRIM(DK223)=\"\", \"\", IF(VLOOKUP(DK223,'Footnotes list'!$D$9:$E$58,2,FALSE)=0,\"\",VLOOKUP(DK223,'Footnotes list'!$D$9:$E$58,2,FALSE) ) )","v":""},null,null,null,null,{"$f":"IF(TRIM(DP223)=\"\", \"\", IF(VLOOKUP(DP223,'Footnotes list'!$D$9:$E$58,2,FALSE)=0,\"\",VLOOKUP(DP223,'Footnotes list'!$D$9:$E$58,2,FALSE) ) )","v":""},null,null,null,null,{"$f":"IF(TRIM(DU223)=\"\", \"\", IF(VLOOKUP(DU223,'Footnotes list'!$D$9:$E$58,2,FALSE)=0,\"\",VLOOKUP(DU223,'Footnotes list'!$D$9:$E$58,2,FALSE) ) )","v":""},null,null,null,null,{"$f":"IF(TRIM(DZ223)=\"\", \"\", IF(VLOOKUP(DZ223,'Footnotes list'!$D$9:$E$58,2,FALSE)=0,\"\",VLOOKUP(DZ223,'Footnotes list'!$D$9:$E$58,2,FALSE) ) )","v":""},null,null,null,null,{"$f":"IF(TRIM(EE223)=\"\", \"\", IF(VLOOKUP(EE223,'Footnotes list'!$D$9:$E$58,2,FALSE)=0,\"\",VLOOKUP(EE223,'Footnotes list'!$D$9:$E$58,2,FALSE) ) )","v":""},null,null,null,null,{"$f":"IF(TRIM(EJ223)=\"\", \"\", IF(VLOOKUP(EJ223,'Footnotes list'!$D$9:$E$58,2,FALSE)=0,\"\",VLOOKUP(EJ223,'Footnotes list'!$D$9:$E$58,2,FALSE) ) )","v":""},null,null,null,null,{"$f":"IF(TRIM(EO223)=\"\", \"\", IF(VLOOKUP(EO223,'Footnotes list'!$D$9:$E$58,2,FALSE)=0,\"\",VLOOKUP(EO223,'Footnotes list'!$D$9:$E$58,2,FALSE) ) )","v":""},null,null,null,null,{"$f":"IF(TRIM(ET223)=\"\", \"\", IF(VLOOKUP(ET223,'Footnotes list'!$D$9:$E$58,2,FALSE)=0,\"\",VLOOKUP(ET223,'Footnotes list'!$D$9:$E$58,2,FALSE) ) )","v":""},null,null,null,null,{"$f":"IF(TRIM(EY223)=\"\", \"\", IF(VLOOKUP(EY223,'Footnotes list'!$D$9:$E$58,2,FALSE)=0,\"\",VLOOKUP(EY223,'Footnotes list'!$D$9:$E$58,2,FALSE) ) )","v":""}]
[null,null,"M","C_REP","cleaner and resource efficient products",null,null,null,null,null,{"$f":"IF(TRIM(J224)=\"\", \"\", IF(VLOOKUP(J224,'Footnotes list'!$D$9:$E$58,2,FALSE)=0,\"\",VLOOKUP(J224,'Footnotes list'!$D$9:$E$58,2,FALSE) ) )","v":""},null,null,null,null,{"$f":"IF(TRIM(O224)=\"\", \"\", IF(VLOOKUP(O224,'Footnotes list'!$D$9:$E$58,2,FALSE)=0,\"\",VLOOKUP(O224,'Footnotes list'!$D$9:$E$58,2,FALSE) ) )","v":""},null,null,null,null,{"$f":"IF(TRIM(T224)=\"\", \"\", IF(VLOOKUP(T224,'Footnotes list'!$D$9:$E$58,2,FALSE)=0,\"\",VLOOKUP(T224,'Footnotes list'!$D$9:$E$58,2,FALSE) ) )","v":""},null,null,null,null,{"$f":"IF(TRIM(Y224)=\"\", \"\", IF(VLOOKUP(Y224,'Footnotes list'!$D$9:$E$58,2,FALSE)=0,\"\",VLOOKUP(Y224,'Footnotes list'!$D$9:$E$58,2,FALSE) ) )","v":""},null,null,null,null,{"$f":"IF(TRIM(AD224)=\"\", \"\", IF(VLOOKUP(AD224,'Footnotes list'!$D$9:$E$58,2,FALSE)=0,\"\",VLOOKUP(AD224,'Footnotes list'!$D$9:$E$58,2,FALSE) ) )","v":""},null,null,null,null,{"$f":"IF(TRIM(AI224)=\"\", \"\", IF(VLOOKUP(AI224,'Footnotes list'!$D$9:$E$58,2,FALSE)=0,\"\",VLOOKUP(AI224,'Footnotes list'!$D$9:$E$58,2,FALSE) ) )","v":""},null,null,null,null,{"$f":"IF(TRIM(AN224)=\"\", \"\", IF(VLOOKUP(AN224,'Footnotes list'!$D$9:$E$58,2,FALSE)=0,\"\",VLOOKUP(AN224,'Footnotes list'!$D$9:$E$58,2,FALSE) ) )","v":""},null,null,null,null,{"$f":"IF(TRIM(AS224)=\"\", \"\", IF(VLOOKUP(AS224,'Footnotes list'!$D$9:$E$58,2,FALSE)=0,\"\",VLOOKUP(AS224,'Footnotes list'!$D$9:$E$58,2,FALSE) ) )","v":""},null,null,null,null,{"$f":"IF(TRIM(AX224)=\"\", \"\", IF(VLOOKUP(AX224,'Footnotes list'!$D$9:$E$58,2,FALSE)=0,\"\",VLOOKUP(AX224,'Footnotes list'!$D$9:$E$58,2,FALSE) ) )","v":""},null,null,null,null,{"$f":"IF(TRIM(BC224)=\"\", \"\", IF(VLOOKUP(BC224,'Footnotes list'!$D$9:$E$58,2,FALSE)=0,\"\",VLOOKUP(BC224,'Footnotes list'!$D$9:$E$58,2,FALSE) ) )","v":""},null,null,null,null,{"$f":"IF(TRIM(BH224)=\"\", \"\", IF(VLOOKUP(BH224,'Footnotes list'!$D$9:$E$58,2,FALSE)=0,\"\",VLOOKUP(BH224,'Footnotes list'!$D$9:$E$58,2,FALSE) ) )","v":""},null,null,null,null,{"$f":"IF(TRIM(BM224)=\"\", \"\", IF(VLOOKUP(BM224,'Footnotes list'!$D$9:$E$58,2,FALSE)=0,\"\",VLOOKUP(BM224,'Footnotes list'!$D$9:$E$58,2,FALSE) ) )","v":""},null,null,null,null,{"$f":"IF(TRIM(BR224)=\"\", \"\", IF(VLOOKUP(BR224,'Footnotes list'!$D$9:$E$58,2,FALSE)=0,\"\",VLOOKUP(BR224,'Footnotes list'!$D$9:$E$58,2,FALSE) ) )","v":""},null,null,null,null,{"$f":"IF(TRIM(BW224)=\"\", \"\", IF(VLOOKUP(BW224,'Footnotes list'!$D$9:$E$58,2,FALSE)=0,\"\",VLOOKUP(BW224,'Footnotes list'!$D$9:$E$58,2,FALSE) ) )","v":""},null,null,null,null,{"$f":"IF(TRIM(CB224)=\"\", \"\", IF(VLOOKUP(CB224,'Footnotes list'!$D$9:$E$58,2,FALSE)=0,\"\",VLOOKUP(CB224,'Footnotes list'!$D$9:$E$58,2,FALSE) ) )","v":""},null,null,null,null,{"$f":"IF(TRIM(CG224)=\"\", \"\", IF(VLOOKUP(CG224,'Footnotes list'!$D$9:$E$58,2,FALSE)=0,\"\",VLOOKUP(CG224,'Footnotes list'!$D$9:$E$58,2,FALSE) ) )","v":""},null,null,null,null,{"$f":"IF(TRIM(CL224)=\"\", \"\", IF(VLOOKUP(CL224,'Footnotes list'!$D$9:$E$58,2,FALSE)=0,\"\",VLOOKUP(CL224,'Footnotes list'!$D$9:$E$58,2,FALSE) ) )","v":""},null,null,null,null,{"$f":"IF(TRIM(CQ224)=\"\", \"\", IF(VLOOKUP(CQ224,'Footnotes list'!$D$9:$E$58,2,FALSE)=0,\"\",VLOOKUP(CQ224,'Footnotes list'!$D$9:$E$58,2,FALSE) ) )","v":""},null,null,null,null,{"$f":"IF(TRIM(CV224)=\"\", \"\", IF(VLOOKUP(CV224,'Footnotes list'!$D$9:$E$58,2,FALSE)=0,\"\",VLOOKUP(CV224,'Footnotes list'!$D$9:$E$58,2,FALSE) ) )","v":""},null,null,null,null,{"$f":"IF(TRIM(DA224)=\"\", \"\", IF(VLOOKUP(DA224,'Footnotes list'!$D$9:$E$58,2,FALSE)=0,\"\",VLOOKUP(DA224,'Footnotes list'!$D$9:$E$58,2,FALSE) ) )","v":""},null,null,null,null,{"$f":"IF(TRIM(DF224)=\"\", \"\", IF(VLOOKUP(DF224,'Footnotes list'!$D$9:$E$58,2,FALSE)=0,\"\",VLOOKUP(DF224,'Footnotes list'!$D$9:$E$58,2,FALSE) ) )","v":""},null,null,null,null,{"$f":"IF(TRIM(DK224)=\"\", \"\", IF(VLOOKUP(DK224,'Footnotes list'!$D$9:$E$58,2,FALSE)=0,\"\",VLOOKUP(DK224,'Footnotes list'!$D$9:$E$58,2,FALSE) ) )","v":""},null,null,null,null,{"$f":"IF(TRIM(DP224)=\"\", \"\", IF(VLOOKUP(DP224,'Footnotes list'!$D$9:$E$58,2,FALSE)=0,\"\",VLOOKUP(DP224,'Footnotes list'!$D$9:$E$58,2,FALSE) ) )","v":""},null,null,null,null,{"$f":"IF(TRIM(DU224)=\"\", \"\", IF(VLOOKUP(DU224,'Footnotes list'!$D$9:$E$58,2,FALSE)=0,\"\",VLOOKUP(DU224,'Footnotes list'!$D$9:$E$58,2,FALSE) ) )","v":""},null,null,null,null,{"$f":"IF(TRIM(DZ224)=\"\", \"\", IF(VLOOKUP(DZ224,'Footnotes list'!$D$9:$E$58,2,FALSE)=0,\"\",VLOOKUP(DZ224,'Footnotes list'!$D$9:$E$58,2,FALSE) ) )","v":""},null,null,null,null,{"$f":"IF(TRIM(EE224)=\"\", \"\", IF(VLOOKUP(EE224,'Footnotes list'!$D$9:$E$58,2,FALSE)=0,\"\",VLOOKUP(EE224,'Footnotes list'!$D$9:$E$58,2,FALSE) ) )","v":""},null,null,null,null,{"$f":"IF(TRIM(EJ224)=\"\", \"\", IF(VLOOKUP(EJ224,'Footnotes list'!$D$9:$E$58,2,FALSE)=0,\"\",VLOOKUP(EJ224,'Footnotes list'!$D$9:$E$58,2,FALSE) ) )","v":""},null,null,null,null,{"$f":"IF(TRIM(EO224)=\"\", \"\", IF(VLOOKUP(EO224,'Footnotes list'!$D$9:$E$58,2,FALSE)=0,\"\",VLOOKUP(EO224,'Footnotes list'!$D$9:$E$58,2,FALSE) ) )","v":""},null,null,null,null,{"$f":"IF(TRIM(ET224)=\"\", \"\", IF(VLOOKUP(ET224,'Footnotes list'!$D$9:$E$58,2,FALSE)=0,\"\",VLOOKUP(ET224,'Footnotes list'!$D$9:$E$58,2,FALSE) ) )","v":""},null,null,null,null,{"$f":"IF(TRIM(EY224)=\"\", \"\", IF(VLOOKUP(EY224,'Footnotes list'!$D$9:$E$58,2,FALSE)=0,\"\",VLOOKUP(EY224,'Footnotes list'!$D$9:$E$58,2,FALSE) ) )","v":""}]
[null,null,"M69_M70","TOT_EGSS","Total M69-M70 - Legal and accounting activities; Activities of head offices; management consultancy activities, of which:",null,null,null,null,null,{"$f":"IF(TRIM(J225)=\"\", \"\", IF(VLOOKUP(J225,'Footnotes list'!$D$9:$E$58,2,FALSE)=0,\"\",VLOOKUP(J225,'Footnotes list'!$D$9:$E$58,2,FALSE) ) )","v":""},null,null,null,null,{"$f":"IF(TRIM(O225)=\"\", \"\", IF(VLOOKUP(O225,'Footnotes list'!$D$9:$E$58,2,FALSE)=0,\"\",VLOOKUP(O225,'Footnotes list'!$D$9:$E$58,2,FALSE) ) )","v":""},null,null,null,null,{"$f":"IF(TRIM(T225)=\"\", \"\", IF(VLOOKUP(T225,'Footnotes list'!$D$9:$E$58,2,FALSE)=0,\"\",VLOOKUP(T225,'Footnotes list'!$D$9:$E$58,2,FALSE) ) )","v":""},null,null,null,null,{"$f":"IF(TRIM(Y225)=\"\", \"\", IF(VLOOKUP(Y225,'Footnotes list'!$D$9:$E$58,2,FALSE)=0,\"\",VLOOKUP(Y225,'Footnotes list'!$D$9:$E$58,2,FALSE) ) )","v":""},null,null,null,null,{"$f":"IF(TRIM(AD225)=\"\", \"\", IF(VLOOKUP(AD225,'Footnotes list'!$D$9:$E$58,2,FALSE)=0,\"\",VLOOKUP(AD225,'Footnotes list'!$D$9:$E$58,2,FALSE) ) )","v":""},null,null,null,null,{"$f":"IF(TRIM(AI225)=\"\", \"\", IF(VLOOKUP(AI225,'Footnotes list'!$D$9:$E$58,2,FALSE)=0,\"\",VLOOKUP(AI225,'Footnotes list'!$D$9:$E$58,2,FALSE) ) )","v":""},null,null,null,null,{"$f":"IF(TRIM(AN225)=\"\", \"\", IF(VLOOKUP(AN225,'Footnotes list'!$D$9:$E$58,2,FALSE)=0,\"\",VLOOKUP(AN225,'Footnotes list'!$D$9:$E$58,2,FALSE) ) )","v":""},null,null,null,null,{"$f":"IF(TRIM(AS225)=\"\", \"\", IF(VLOOKUP(AS225,'Footnotes list'!$D$9:$E$58,2,FALSE)=0,\"\",VLOOKUP(AS225,'Footnotes list'!$D$9:$E$58,2,FALSE) ) )","v":""},null,null,null,null,{"$f":"IF(TRIM(AX225)=\"\", \"\", IF(VLOOKUP(AX225,'Footnotes list'!$D$9:$E$58,2,FALSE)=0,\"\",VLOOKUP(AX225,'Footnotes list'!$D$9:$E$58,2,FALSE) ) )","v":""},null,null,null,null,{"$f":"IF(TRIM(BC225)=\"\", \"\", IF(VLOOKUP(BC225,'Footnotes list'!$D$9:$E$58,2,FALSE)=0,\"\",VLOOKUP(BC225,'Footnotes list'!$D$9:$E$58,2,FALSE) ) )","v":""},null,null,null,null,{"$f":"IF(TRIM(BH225)=\"\", \"\", IF(VLOOKUP(BH225,'Footnotes list'!$D$9:$E$58,2,FALSE)=0,\"\",VLOOKUP(BH225,'Footnotes list'!$D$9:$E$58,2,FALSE) ) )","v":""},null,null,null,null,{"$f":"IF(TRIM(BM225)=\"\", \"\", IF(VLOOKUP(BM225,'Footnotes list'!$D$9:$E$58,2,FALSE)=0,\"\",VLOOKUP(BM225,'Footnotes list'!$D$9:$E$58,2,FALSE) ) )","v":""},null,null,null,null,{"$f":"IF(TRIM(BR225)=\"\", \"\", IF(VLOOKUP(BR225,'Footnotes list'!$D$9:$E$58,2,FALSE)=0,\"\",VLOOKUP(BR225,'Footnotes list'!$D$9:$E$58,2,FALSE) ) )","v":""},null,null,null,null,{"$f":"IF(TRIM(BW225)=\"\", \"\", IF(VLOOKUP(BW225,'Footnotes list'!$D$9:$E$58,2,FALSE)=0,\"\",VLOOKUP(BW225,'Footnotes list'!$D$9:$E$58,2,FALSE) ) )","v":""},null,null,null,null,{"$f":"IF(TRIM(CB225)=\"\", \"\", IF(VLOOKUP(CB225,'Footnotes list'!$D$9:$E$58,2,FALSE)=0,\"\",VLOOKUP(CB225,'Footnotes list'!$D$9:$E$58,2,FALSE) ) )","v":""},null,null,null,null,{"$f":"IF(TRIM(CG225)=\"\", \"\", IF(VLOOKUP(CG225,'Footnotes list'!$D$9:$E$58,2,FALSE)=0,\"\",VLOOKUP(CG225,'Footnotes list'!$D$9:$E$58,2,FALSE) ) )","v":""},null,null,null,null,{"$f":"IF(TRIM(CL225)=\"\", \"\", IF(VLOOKUP(CL225,'Footnotes list'!$D$9:$E$58,2,FALSE)=0,\"\",VLOOKUP(CL225,'Footnotes list'!$D$9:$E$58,2,FALSE) ) )","v":""},null,null,null,null,{"$f":"IF(TRIM(CQ225)=\"\", \"\", IF(VLOOKUP(CQ225,'Footnotes list'!$D$9:$E$58,2,FALSE)=0,\"\",VLOOKUP(CQ225,'Footnotes list'!$D$9:$E$58,2,FALSE) ) )","v":""},null,null,null,null,{"$f":"IF(TRIM(CV225)=\"\", \"\", IF(VLOOKUP(CV225,'Footnotes list'!$D$9:$E$58,2,FALSE)=0,\"\",VLOOKUP(CV225,'Footnotes list'!$D$9:$E$58,2,FALSE) ) )","v":""},null,null,null,null,{"$f":"IF(TRIM(DA225)=\"\", \"\", IF(VLOOKUP(DA225,'Footnotes list'!$D$9:$E$58,2,FALSE)=0,\"\",VLOOKUP(DA225,'Footnotes list'!$D$9:$E$58,2,FALSE) ) )","v":""},null,null,null,null,{"$f":"IF(TRIM(DF225)=\"\", \"\", IF(VLOOKUP(DF225,'Footnotes list'!$D$9:$E$58,2,FALSE)=0,\"\",VLOOKUP(DF225,'Footnotes list'!$D$9:$E$58,2,FALSE) ) )","v":""},null,null,null,null,{"$f":"IF(TRIM(DK225)=\"\", \"\", IF(VLOOKUP(DK225,'Footnotes list'!$D$9:$E$58,2,FALSE)=0,\"\",VLOOKUP(DK225,'Footnotes list'!$D$9:$E$58,2,FALSE) ) )","v":""},null,null,null,null,{"$f":"IF(TRIM(DP225)=\"\", \"\", IF(VLOOKUP(DP225,'Footnotes list'!$D$9:$E$58,2,FALSE)=0,\"\",VLOOKUP(DP225,'Footnotes list'!$D$9:$E$58,2,FALSE) ) )","v":""},null,null,null,null,{"$f":"IF(TRIM(DU225)=\"\", \"\", IF(VLOOKUP(DU225,'Footnotes list'!$D$9:$E$58,2,FALSE)=0,\"\",VLOOKUP(DU225,'Footnotes list'!$D$9:$E$58,2,FALSE) ) )","v":""},null,null,null,null,{"$f":"IF(TRIM(DZ225)=\"\", \"\", IF(VLOOKUP(DZ225,'Footnotes list'!$D$9:$E$58,2,FALSE)=0,\"\",VLOOKUP(DZ225,'Footnotes list'!$D$9:$E$58,2,FALSE) ) )","v":""},null,null,null,null,{"$f":"IF(TRIM(EE225)=\"\", \"\", IF(VLOOKUP(EE225,'Footnotes list'!$D$9:$E$58,2,FALSE)=0,\"\",VLOOKUP(EE225,'Footnotes list'!$D$9:$E$58,2,FALSE) ) )","v":""},null,null,null,null,{"$f":"IF(TRIM(EJ225)=\"\", \"\", IF(VLOOKUP(EJ225,'Footnotes list'!$D$9:$E$58,2,FALSE)=0,\"\",VLOOKUP(EJ225,'Footnotes list'!$D$9:$E$58,2,FALSE) ) )","v":""},null,null,null,null,{"$f":"IF(TRIM(EO225)=\"\", \"\", IF(VLOOKUP(EO225,'Footnotes list'!$D$9:$E$58,2,FALSE)=0,\"\",VLOOKUP(EO225,'Footnotes list'!$D$9:$E$58,2,FALSE) ) )","v":""},null,null,null,null,{"$f":"IF(TRIM(ET225)=\"\", \"\", IF(VLOOKUP(ET225,'Footnotes list'!$D$9:$E$58,2,FALSE)=0,\"\",VLOOKUP(ET225,'Footnotes list'!$D$9:$E$58,2,FALSE) ) )","v":""},null,null,null,null,{"$f":"IF(TRIM(EY225)=\"\", \"\", IF(VLOOKUP(EY225,'Footnotes list'!$D$9:$E$58,2,FALSE)=0,\"\",VLOOKUP(EY225,'Footnotes list'!$D$9:$E$58,2,FALSE) ) )","v":""}]
[null,null,"M69_M70","ANC","ancillary activities",null,null,null,null,null,{"$f":"IF(TRIM(J226)=\"\", \"\", IF(VLOOKUP(J226,'Footnotes list'!$D$9:$E$58,2,FALSE)=0,\"\",VLOOKUP(J226,'Footnotes list'!$D$9:$E$58,2,FALSE) ) )","v":""},null,null,null,null,{"$f":"IF(TRIM(O226)=\"\", \"\", IF(VLOOKUP(O226,'Footnotes list'!$D$9:$E$58,2,FALSE)=0,\"\",VLOOKUP(O226,'Footnotes list'!$D$9:$E$58,2,FALSE) ) )","v":""},null,null,null,null,{"$f":"IF(TRIM(T226)=\"\", \"\", IF(VLOOKUP(T226,'Footnotes list'!$D$9:$E$58,2,FALSE)=0,\"\",VLOOKUP(T226,'Footnotes list'!$D$9:$E$58,2,FALSE) ) )","v":""},null,null,null,null,{"$f":"IF(TRIM(Y226)=\"\", \"\", IF(VLOOKUP(Y226,'Footnotes list'!$D$9:$E$58,2,FALSE)=0,\"\",VLOOKUP(Y226,'Footnotes list'!$D$9:$E$58,2,FALSE) ) )","v":""},null,null,null,null,{"$f":"IF(TRIM(AD226)=\"\", \"\", IF(VLOOKUP(AD226,'Footnotes list'!$D$9:$E$58,2,FALSE)=0,\"\",VLOOKUP(AD226,'Footnotes list'!$D$9:$E$58,2,FALSE) ) )","v":""},null,null,null,null,{"$f":"IF(TRIM(AI226)=\"\", \"\", IF(VLOOKUP(AI226,'Footnotes list'!$D$9:$E$58,2,FALSE)=0,\"\",VLOOKUP(AI226,'Footnotes list'!$D$9:$E$58,2,FALSE) ) )","v":""},null,null,null,null,{"$f":"IF(TRIM(AN226)=\"\", \"\", IF(VLOOKUP(AN226,'Footnotes list'!$D$9:$E$58,2,FALSE)=0,\"\",VLOOKUP(AN226,'Footnotes list'!$D$9:$E$58,2,FALSE) ) )","v":""},null,null,null,null,{"$f":"IF(TRIM(AS226)=\"\", \"\", IF(VLOOKUP(AS226,'Footnotes list'!$D$9:$E$58,2,FALSE)=0,\"\",VLOOKUP(AS226,'Footnotes list'!$D$9:$E$58,2,FALSE) ) )","v":""},null,null,null,null,{"$f":"IF(TRIM(AX226)=\"\", \"\", IF(VLOOKUP(AX226,'Footnotes list'!$D$9:$E$58,2,FALSE)=0,\"\",VLOOKUP(AX226,'Footnotes list'!$D$9:$E$58,2,FALSE) ) )","v":""},null,null,null,null,{"$f":"IF(TRIM(BC226)=\"\", \"\", IF(VLOOKUP(BC226,'Footnotes list'!$D$9:$E$58,2,FALSE)=0,\"\",VLOOKUP(BC226,'Footnotes list'!$D$9:$E$58,2,FALSE) ) )","v":""},null,null,null,null,{"$f":"IF(TRIM(BH226)=\"\", \"\", IF(VLOOKUP(BH226,'Footnotes list'!$D$9:$E$58,2,FALSE)=0,\"\",VLOOKUP(BH226,'Footnotes list'!$D$9:$E$58,2,FALSE) ) )","v":""},null,null,null,null,{"$f":"IF(TRIM(BM226)=\"\", \"\", IF(VLOOKUP(BM226,'Footnotes list'!$D$9:$E$58,2,FALSE)=0,\"\",VLOOKUP(BM226,'Footnotes list'!$D$9:$E$58,2,FALSE) ) )","v":""},null,null,null,null,{"$f":"IF(TRIM(BR226)=\"\", \"\", IF(VLOOKUP(BR226,'Footnotes list'!$D$9:$E$58,2,FALSE)=0,\"\",VLOOKUP(BR226,'Footnotes list'!$D$9:$E$58,2,FALSE) ) )","v":""},null,null,null,null,{"$f":"IF(TRIM(BW226)=\"\", \"\", IF(VLOOKUP(BW226,'Footnotes list'!$D$9:$E$58,2,FALSE)=0,\"\",VLOOKUP(BW226,'Footnotes list'!$D$9:$E$58,2,FALSE) ) )","v":""},null,null,null,null,{"$f":"IF(TRIM(CB226)=\"\", \"\", IF(VLOOKUP(CB226,'Footnotes list'!$D$9:$E$58,2,FALSE)=0,\"\",VLOOKUP(CB226,'Footnotes list'!$D$9:$E$58,2,FALSE) ) )","v":""},null,null,null,null,{"$f":"IF(TRIM(CG226)=\"\", \"\", IF(VLOOKUP(CG226,'Footnotes list'!$D$9:$E$58,2,FALSE)=0,\"\",VLOOKUP(CG226,'Footnotes list'!$D$9:$E$58,2,FALSE) ) )","v":""},null,null,null,null,{"$f":"IF(TRIM(CL226)=\"\", \"\", IF(VLOOKUP(CL226,'Footnotes list'!$D$9:$E$58,2,FALSE)=0,\"\",VLOOKUP(CL226,'Footnotes list'!$D$9:$E$58,2,FALSE) ) )","v":""},null,null,null,null,{"$f":"IF(TRIM(CQ226)=\"\", \"\", IF(VLOOKUP(CQ226,'Footnotes list'!$D$9:$E$58,2,FALSE)=0,\"\",VLOOKUP(CQ226,'Footnotes list'!$D$9:$E$58,2,FALSE) ) )","v":""},null,null,null,null,{"$f":"IF(TRIM(CV226)=\"\", \"\", IF(VLOOKUP(CV226,'Footnotes list'!$D$9:$E$58,2,FALSE)=0,\"\",VLOOKUP(CV226,'Footnotes list'!$D$9:$E$58,2,FALSE) ) )","v":""},null,null,null,null,{"$f":"IF(TRIM(DA226)=\"\", \"\", IF(VLOOKUP(DA226,'Footnotes list'!$D$9:$E$58,2,FALSE)=0,\"\",VLOOKUP(DA226,'Footnotes list'!$D$9:$E$58,2,FALSE) ) )","v":""},null,null,null,null,{"$f":"IF(TRIM(DF226)=\"\", \"\", IF(VLOOKUP(DF226,'Footnotes list'!$D$9:$E$58,2,FALSE)=0,\"\",VLOOKUP(DF226,'Footnotes list'!$D$9:$E$58,2,FALSE) ) )","v":""},null,null,null,null,{"$f":"IF(TRIM(DK226)=\"\", \"\", IF(VLOOKUP(DK226,'Footnotes list'!$D$9:$E$58,2,FALSE)=0,\"\",VLOOKUP(DK226,'Footnotes list'!$D$9:$E$58,2,FALSE) ) )","v":""},null,null,null,null,{"$f":"IF(TRIM(DP226)=\"\", \"\", IF(VLOOKUP(DP226,'Footnotes list'!$D$9:$E$58,2,FALSE)=0,\"\",VLOOKUP(DP226,'Footnotes list'!$D$9:$E$58,2,FALSE) ) )","v":""},null,null,null,null,{"$f":"IF(TRIM(DU226)=\"\", \"\", IF(VLOOKUP(DU226,'Footnotes list'!$D$9:$E$58,2,FALSE)=0,\"\",VLOOKUP(DU226,'Footnotes list'!$D$9:$E$58,2,FALSE) ) )","v":""},null,null,null,null,{"$f":"IF(TRIM(DZ226)=\"\", \"\", IF(VLOOKUP(DZ226,'Footnotes list'!$D$9:$E$58,2,FALSE)=0,\"\",VLOOKUP(DZ226,'Footnotes list'!$D$9:$E$58,2,FALSE) ) )","v":""},null,null,null,null,{"$f":"IF(TRIM(EE226)=\"\", \"\", IF(VLOOKUP(EE226,'Footnotes list'!$D$9:$E$58,2,FALSE)=0,\"\",VLOOKUP(EE226,'Footnotes list'!$D$9:$E$58,2,FALSE) ) )","v":""},null,null,null,null,{"$f":"IF(TRIM(EJ226)=\"\", \"\", IF(VLOOKUP(EJ226,'Footnotes list'!$D$9:$E$58,2,FALSE)=0,\"\",VLOOKUP(EJ226,'Footnotes list'!$D$9:$E$58,2,FALSE) ) )","v":""},null,null,null,null,{"$f":"IF(TRIM(EO226)=\"\", \"\", IF(VLOOKUP(EO226,'Footnotes list'!$D$9:$E$58,2,FALSE)=0,\"\",VLOOKUP(EO226,'Footnotes list'!$D$9:$E$58,2,FALSE) ) )","v":""},null,null,null,null,{"$f":"IF(TRIM(ET226)=\"\", \"\", IF(VLOOKUP(ET226,'Footnotes list'!$D$9:$E$58,2,FALSE)=0,\"\",VLOOKUP(ET226,'Footnotes list'!$D$9:$E$58,2,FALSE) ) )","v":""},null,null,null,null,{"$f":"IF(TRIM(EY226)=\"\", \"\", IF(VLOOKUP(EY226,'Footnotes list'!$D$9:$E$58,2,FALSE)=0,\"\",VLOOKUP(EY226,'Footnotes list'!$D$9:$E$58,2,FALSE) ) )","v":""}]
[null,null,"M69_M70","NMKT","non-market activities",null,null,null,null,null,{"$f":"IF(TRIM(J227)=\"\", \"\", IF(VLOOKUP(J227,'Footnotes list'!$D$9:$E$58,2,FALSE)=0,\"\",VLOOKUP(J227,'Footnotes list'!$D$9:$E$58,2,FALSE) ) )","v":""},null,null,null,null,{"$f":"IF(TRIM(O227)=\"\", \"\", IF(VLOOKUP(O227,'Footnotes list'!$D$9:$E$58,2,FALSE)=0,\"\",VLOOKUP(O227,'Footnotes list'!$D$9:$E$58,2,FALSE) ) )","v":""},null,null,null,null,{"$f":"IF(TRIM(T227)=\"\", \"\", IF(VLOOKUP(T227,'Footnotes list'!$D$9:$E$58,2,FALSE)=0,\"\",VLOOKUP(T227,'Footnotes list'!$D$9:$E$58,2,FALSE) ) )","v":""},null,null,null,null,{"$f":"IF(TRIM(Y227)=\"\", \"\", IF(VLOOKUP(Y227,'Footnotes list'!$D$9:$E$58,2,FALSE)=0,\"\",VLOOKUP(Y227,'Footnotes list'!$D$9:$E$58,2,FALSE) ) )","v":""},null,null,null,null,{"$f":"IF(TRIM(AD227)=\"\", \"\", IF(VLOOKUP(AD227,'Footnotes list'!$D$9:$E$58,2,FALSE)=0,\"\",VLOOKUP(AD227,'Footnotes list'!$D$9:$E$58,2,FALSE) ) )","v":""},null,null,null,null,{"$f":"IF(TRIM(AI227)=\"\", \"\", IF(VLOOKUP(AI227,'Footnotes list'!$D$9:$E$58,2,FALSE)=0,\"\",VLOOKUP(AI227,'Footnotes list'!$D$9:$E$58,2,FALSE) ) )","v":""},null,null,null,null,{"$f":"IF(TRIM(AN227)=\"\", \"\", IF(VLOOKUP(AN227,'Footnotes list'!$D$9:$E$58,2,FALSE)=0,\"\",VLOOKUP(AN227,'Footnotes list'!$D$9:$E$58,2,FALSE) ) )","v":""},null,null,null,null,{"$f":"IF(TRIM(AS227)=\"\", \"\", IF(VLOOKUP(AS227,'Footnotes list'!$D$9:$E$58,2,FALSE)=0,\"\",VLOOKUP(AS227,'Footnotes list'!$D$9:$E$58,2,FALSE) ) )","v":""},null,null,null,null,{"$f":"IF(TRIM(AX227)=\"\", \"\", IF(VLOOKUP(AX227,'Footnotes list'!$D$9:$E$58,2,FALSE)=0,\"\",VLOOKUP(AX227,'Footnotes list'!$D$9:$E$58,2,FALSE) ) )","v":""},null,null,null,null,{"$f":"IF(TRIM(BC227)=\"\", \"\", IF(VLOOKUP(BC227,'Footnotes list'!$D$9:$E$58,2,FALSE)=0,\"\",VLOOKUP(BC227,'Footnotes list'!$D$9:$E$58,2,FALSE) ) )","v":""},null,null,null,null,{"$f":"IF(TRIM(BH227)=\"\", \"\", IF(VLOOKUP(BH227,'Footnotes list'!$D$9:$E$58,2,FALSE)=0,\"\",VLOOKUP(BH227,'Footnotes list'!$D$9:$E$58,2,FALSE) ) )","v":""},null,null,null,null,{"$f":"IF(TRIM(BM227)=\"\", \"\", IF(VLOOKUP(BM227,'Footnotes list'!$D$9:$E$58,2,FALSE)=0,\"\",VLOOKUP(BM227,'Footnotes list'!$D$9:$E$58,2,FALSE) ) )","v":""},null,null,null,null,{"$f":"IF(TRIM(BR227)=\"\", \"\", IF(VLOOKUP(BR227,'Footnotes list'!$D$9:$E$58,2,FALSE)=0,\"\",VLOOKUP(BR227,'Footnotes list'!$D$9:$E$58,2,FALSE) ) )","v":""},null,null,null,null,{"$f":"IF(TRIM(BW227)=\"\", \"\", IF(VLOOKUP(BW227,'Footnotes list'!$D$9:$E$58,2,FALSE)=0,\"\",VLOOKUP(BW227,'Footnotes list'!$D$9:$E$58,2,FALSE) ) )","v":""},null,null,null,null,{"$f":"IF(TRIM(CB227)=\"\", \"\", IF(VLOOKUP(CB227,'Footnotes list'!$D$9:$E$58,2,FALSE)=0,\"\",VLOOKUP(CB227,'Footnotes list'!$D$9:$E$58,2,FALSE) ) )","v":""},null,null,null,null,{"$f":"IF(TRIM(CG227)=\"\", \"\", IF(VLOOKUP(CG227,'Footnotes list'!$D$9:$E$58,2,FALSE)=0,\"\",VLOOKUP(CG227,'Footnotes list'!$D$9:$E$58,2,FALSE) ) )","v":""},null,null,null,null,{"$f":"IF(TRIM(CL227)=\"\", \"\", IF(VLOOKUP(CL227,'Footnotes list'!$D$9:$E$58,2,FALSE)=0,\"\",VLOOKUP(CL227,'Footnotes list'!$D$9:$E$58,2,FALSE) ) )","v":""},null,null,null,null,{"$f":"IF(TRIM(CQ227)=\"\", \"\", IF(VLOOKUP(CQ227,'Footnotes list'!$D$9:$E$58,2,FALSE)=0,\"\",VLOOKUP(CQ227,'Footnotes list'!$D$9:$E$58,2,FALSE) ) )","v":""},null,null,null,null,{"$f":"IF(TRIM(CV227)=\"\", \"\", IF(VLOOKUP(CV227,'Footnotes list'!$D$9:$E$58,2,FALSE)=0,\"\",VLOOKUP(CV227,'Footnotes list'!$D$9:$E$58,2,FALSE) ) )","v":""},null,null,null,null,{"$f":"IF(TRIM(DA227)=\"\", \"\", IF(VLOOKUP(DA227,'Footnotes list'!$D$9:$E$58,2,FALSE)=0,\"\",VLOOKUP(DA227,'Footnotes list'!$D$9:$E$58,2,FALSE) ) )","v":""},null,null,null,null,{"$f":"IF(TRIM(DF227)=\"\", \"\", IF(VLOOKUP(DF227,'Footnotes list'!$D$9:$E$58,2,FALSE)=0,\"\",VLOOKUP(DF227,'Footnotes list'!$D$9:$E$58,2,FALSE) ) )","v":""},null,null,null,null,{"$f":"IF(TRIM(DK227)=\"\", \"\", IF(VLOOKUP(DK227,'Footnotes list'!$D$9:$E$58,2,FALSE)=0,\"\",VLOOKUP(DK227,'Footnotes list'!$D$9:$E$58,2,FALSE) ) )","v":""},null,null,null,null,{"$f":"IF(TRIM(DP227)=\"\", \"\", IF(VLOOKUP(DP227,'Footnotes list'!$D$9:$E$58,2,FALSE)=0,\"\",VLOOKUP(DP227,'Footnotes list'!$D$9:$E$58,2,FALSE) ) )","v":""},null,null,null,null,{"$f":"IF(TRIM(DU227)=\"\", \"\", IF(VLOOKUP(DU227,'Footnotes list'!$D$9:$E$58,2,FALSE)=0,\"\",VLOOKUP(DU227,'Footnotes list'!$D$9:$E$58,2,FALSE) ) )","v":""},null,null,null,null,{"$f":"IF(TRIM(DZ227)=\"\", \"\", IF(VLOOKUP(DZ227,'Footnotes list'!$D$9:$E$58,2,FALSE)=0,\"\",VLOOKUP(DZ227,'Footnotes list'!$D$9:$E$58,2,FALSE) ) )","v":""},null,null,null,null,{"$f":"IF(TRIM(EE227)=\"\", \"\", IF(VLOOKUP(EE227,'Footnotes list'!$D$9:$E$58,2,FALSE)=0,\"\",VLOOKUP(EE227,'Footnotes list'!$D$9:$E$58,2,FALSE) ) )","v":""},null,null,null,null,{"$f":"IF(TRIM(EJ227)=\"\", \"\", IF(VLOOKUP(EJ227,'Footnotes list'!$D$9:$E$58,2,FALSE)=0,\"\",VLOOKUP(EJ227,'Footnotes list'!$D$9:$E$58,2,FALSE) ) )","v":""},null,null,null,null,{"$f":"IF(TRIM(EO227)=\"\", \"\", IF(VLOOKUP(EO227,'Footnotes list'!$D$9:$E$58,2,FALSE)=0,\"\",VLOOKUP(EO227,'Footnotes list'!$D$9:$E$58,2,FALSE) ) )","v":""},null,null,null,null,{"$f":"IF(TRIM(ET227)=\"\", \"\", IF(VLOOKUP(ET227,'Footnotes list'!$D$9:$E$58,2,FALSE)=0,\"\",VLOOKUP(ET227,'Footnotes list'!$D$9:$E$58,2,FALSE) ) )","v":""},null,null,null,null,{"$f":"IF(TRIM(EY227)=\"\", \"\", IF(VLOOKUP(EY227,'Footnotes list'!$D$9:$E$58,2,FALSE)=0,\"\",VLOOKUP(EY227,'Footnotes list'!$D$9:$E$58,2,FALSE) ) )","v":""}]
[null,null,"M69_M70","OWN_USE","activities for own final use",null,null,null,null,null,{"$f":"IF(TRIM(J228)=\"\", \"\", IF(VLOOKUP(J228,'Footnotes list'!$D$9:$E$58,2,FALSE)=0,\"\",VLOOKUP(J228,'Footnotes list'!$D$9:$E$58,2,FALSE) ) )","v":""},null,null,null,null,{"$f":"IF(TRIM(O228)=\"\", \"\", IF(VLOOKUP(O228,'Footnotes list'!$D$9:$E$58,2,FALSE)=0,\"\",VLOOKUP(O228,'Footnotes list'!$D$9:$E$58,2,FALSE) ) )","v":""},null,null,null,null,{"$f":"IF(TRIM(T228)=\"\", \"\", IF(VLOOKUP(T228,'Footnotes list'!$D$9:$E$58,2,FALSE)=0,\"\",VLOOKUP(T228,'Footnotes list'!$D$9:$E$58,2,FALSE) ) )","v":""},null,null,null,null,{"$f":"IF(TRIM(Y228)=\"\", \"\", IF(VLOOKUP(Y228,'Footnotes list'!$D$9:$E$58,2,FALSE)=0,\"\",VLOOKUP(Y228,'Footnotes list'!$D$9:$E$58,2,FALSE) ) )","v":""},null,null,null,null,{"$f":"IF(TRIM(AD228)=\"\", \"\", IF(VLOOKUP(AD228,'Footnotes list'!$D$9:$E$58,2,FALSE)=0,\"\",VLOOKUP(AD228,'Footnotes list'!$D$9:$E$58,2,FALSE) ) )","v":""},null,null,null,null,{"$f":"IF(TRIM(AI228)=\"\", \"\", IF(VLOOKUP(AI228,'Footnotes list'!$D$9:$E$58,2,FALSE)=0,\"\",VLOOKUP(AI228,'Footnotes list'!$D$9:$E$58,2,FALSE) ) )","v":""},null,null,null,null,{"$f":"IF(TRIM(AN228)=\"\", \"\", IF(VLOOKUP(AN228,'Footnotes list'!$D$9:$E$58,2,FALSE)=0,\"\",VLOOKUP(AN228,'Footnotes list'!$D$9:$E$58,2,FALSE) ) )","v":""},null,null,null,null,{"$f":"IF(TRIM(AS228)=\"\", \"\", IF(VLOOKUP(AS228,'Footnotes list'!$D$9:$E$58,2,FALSE)=0,\"\",VLOOKUP(AS228,'Footnotes list'!$D$9:$E$58,2,FALSE) ) )","v":""},null,null,null,null,{"$f":"IF(TRIM(AX228)=\"\", \"\", IF(VLOOKUP(AX228,'Footnotes list'!$D$9:$E$58,2,FALSE)=0,\"\",VLOOKUP(AX228,'Footnotes list'!$D$9:$E$58,2,FALSE) ) )","v":""},null,null,null,null,{"$f":"IF(TRIM(BC228)=\"\", \"\", IF(VLOOKUP(BC228,'Footnotes list'!$D$9:$E$58,2,FALSE)=0,\"\",VLOOKUP(BC228,'Footnotes list'!$D$9:$E$58,2,FALSE) ) )","v":""},null,null,null,null,{"$f":"IF(TRIM(BH228)=\"\", \"\", IF(VLOOKUP(BH228,'Footnotes list'!$D$9:$E$58,2,FALSE)=0,\"\",VLOOKUP(BH228,'Footnotes list'!$D$9:$E$58,2,FALSE) ) )","v":""},null,null,null,null,{"$f":"IF(TRIM(BM228)=\"\", \"\", IF(VLOOKUP(BM228,'Footnotes list'!$D$9:$E$58,2,FALSE)=0,\"\",VLOOKUP(BM228,'Footnotes list'!$D$9:$E$58,2,FALSE) ) )","v":""},null,null,null,null,{"$f":"IF(TRIM(BR228)=\"\", \"\", IF(VLOOKUP(BR228,'Footnotes list'!$D$9:$E$58,2,FALSE)=0,\"\",VLOOKUP(BR228,'Footnotes list'!$D$9:$E$58,2,FALSE) ) )","v":""},null,null,null,null,{"$f":"IF(TRIM(BW228)=\"\", \"\", IF(VLOOKUP(BW228,'Footnotes list'!$D$9:$E$58,2,FALSE)=0,\"\",VLOOKUP(BW228,'Footnotes list'!$D$9:$E$58,2,FALSE) ) )","v":""},null,null,null,null,{"$f":"IF(TRIM(CB228)=\"\", \"\", IF(VLOOKUP(CB228,'Footnotes list'!$D$9:$E$58,2,FALSE)=0,\"\",VLOOKUP(CB228,'Footnotes list'!$D$9:$E$58,2,FALSE) ) )","v":""},null,null,null,null,{"$f":"IF(TRIM(CG228)=\"\", \"\", IF(VLOOKUP(CG228,'Footnotes list'!$D$9:$E$58,2,FALSE)=0,\"\",VLOOKUP(CG228,'Footnotes list'!$D$9:$E$58,2,FALSE) ) )","v":""},null,null,null,null,{"$f":"IF(TRIM(CL228)=\"\", \"\", IF(VLOOKUP(CL228,'Footnotes list'!$D$9:$E$58,2,FALSE)=0,\"\",VLOOKUP(CL228,'Footnotes list'!$D$9:$E$58,2,FALSE) ) )","v":""},null,null,null,null,{"$f":"IF(TRIM(CQ228)=\"\", \"\", IF(VLOOKUP(CQ228,'Footnotes list'!$D$9:$E$58,2,FALSE)=0,\"\",VLOOKUP(CQ228,'Footnotes list'!$D$9:$E$58,2,FALSE) ) )","v":""},null,null,null,null,{"$f":"IF(TRIM(CV228)=\"\", \"\", IF(VLOOKUP(CV228,'Footnotes list'!$D$9:$E$58,2,FALSE)=0,\"\",VLOOKUP(CV228,'Footnotes list'!$D$9:$E$58,2,FALSE) ) )","v":""},null,null,null,null,{"$f":"IF(TRIM(DA228)=\"\", \"\", IF(VLOOKUP(DA228,'Footnotes list'!$D$9:$E$58,2,FALSE)=0,\"\",VLOOKUP(DA228,'Footnotes list'!$D$9:$E$58,2,FALSE) ) )","v":""},null,null,null,null,{"$f":"IF(TRIM(DF228)=\"\", \"\", IF(VLOOKUP(DF228,'Footnotes list'!$D$9:$E$58,2,FALSE)=0,\"\",VLOOKUP(DF228,'Footnotes list'!$D$9:$E$58,2,FALSE) ) )","v":""},null,null,null,null,{"$f":"IF(TRIM(DK228)=\"\", \"\", IF(VLOOKUP(DK228,'Footnotes list'!$D$9:$E$58,2,FALSE)=0,\"\",VLOOKUP(DK228,'Footnotes list'!$D$9:$E$58,2,FALSE) ) )","v":""},null,null,null,null,{"$f":"IF(TRIM(DP228)=\"\", \"\", IF(VLOOKUP(DP228,'Footnotes list'!$D$9:$E$58,2,FALSE)=0,\"\",VLOOKUP(DP228,'Footnotes list'!$D$9:$E$58,2,FALSE) ) )","v":""},null,null,null,null,{"$f":"IF(TRIM(DU228)=\"\", \"\", IF(VLOOKUP(DU228,'Footnotes list'!$D$9:$E$58,2,FALSE)=0,\"\",VLOOKUP(DU228,'Footnotes list'!$D$9:$E$58,2,FALSE) ) )","v":""},null,null,null,null,{"$f":"IF(TRIM(DZ228)=\"\", \"\", IF(VLOOKUP(DZ228,'Footnotes list'!$D$9:$E$58,2,FALSE)=0,\"\",VLOOKUP(DZ228,'Footnotes list'!$D$9:$E$58,2,FALSE) ) )","v":""},null,null,null,null,{"$f":"IF(TRIM(EE228)=\"\", \"\", IF(VLOOKUP(EE228,'Footnotes list'!$D$9:$E$58,2,FALSE)=0,\"\",VLOOKUP(EE228,'Footnotes list'!$D$9:$E$58,2,FALSE) ) )","v":""},null,null,null,null,{"$f":"IF(TRIM(EJ228)=\"\", \"\", IF(VLOOKUP(EJ228,'Footnotes list'!$D$9:$E$58,2,FALSE)=0,\"\",VLOOKUP(EJ228,'Footnotes list'!$D$9:$E$58,2,FALSE) ) )","v":""},null,null,null,null,{"$f":"IF(TRIM(EO228)=\"\", \"\", IF(VLOOKUP(EO228,'Footnotes list'!$D$9:$E$58,2,FALSE)=0,\"\",VLOOKUP(EO228,'Footnotes list'!$D$9:$E$58,2,FALSE) ) )","v":""},null,null,null,null,{"$f":"IF(TRIM(ET228)=\"\", \"\", IF(VLOOKUP(ET228,'Footnotes list'!$D$9:$E$58,2,FALSE)=0,\"\",VLOOKUP(ET228,'Footnotes list'!$D$9:$E$58,2,FALSE) ) )","v":""},null,null,null,null,{"$f":"IF(TRIM(EY228)=\"\", \"\", IF(VLOOKUP(EY228,'Footnotes list'!$D$9:$E$58,2,FALSE)=0,\"\",VLOOKUP(EY228,'Footnotes list'!$D$9:$E$58,2,FALSE) ) )","v":""}]
[null,null,"M69_M70","MKT","market activities, including:",null,null,null,null,null,{"$f":"IF(TRIM(J229)=\"\", \"\", IF(VLOOKUP(J229,'Footnotes list'!$D$9:$E$58,2,FALSE)=0,\"\",VLOOKUP(J229,'Footnotes list'!$D$9:$E$58,2,FALSE) ) )","v":""},null,null,null,null,{"$f":"IF(TRIM(O229)=\"\", \"\", IF(VLOOKUP(O229,'Footnotes list'!$D$9:$E$58,2,FALSE)=0,\"\",VLOOKUP(O229,'Footnotes list'!$D$9:$E$58,2,FALSE) ) )","v":""},null,null,null,null,{"$f":"IF(TRIM(T229)=\"\", \"\", IF(VLOOKUP(T229,'Footnotes list'!$D$9:$E$58,2,FALSE)=0,\"\",VLOOKUP(T229,'Footnotes list'!$D$9:$E$58,2,FALSE) ) )","v":""},null,null,null,null,{"$f":"IF(TRIM(Y229)=\"\", \"\", IF(VLOOKUP(Y229,'Footnotes list'!$D$9:$E$58,2,FALSE)=0,\"\",VLOOKUP(Y229,'Footnotes list'!$D$9:$E$58,2,FALSE) ) )","v":""},null,null,null,null,{"$f":"IF(TRIM(AD229)=\"\", \"\", IF(VLOOKUP(AD229,'Footnotes list'!$D$9:$E$58,2,FALSE)=0,\"\",VLOOKUP(AD229,'Footnotes list'!$D$9:$E$58,2,FALSE) ) )","v":""},null,null,null,null,{"$f":"IF(TRIM(AI229)=\"\", \"\", IF(VLOOKUP(AI229,'Footnotes list'!$D$9:$E$58,2,FALSE)=0,\"\",VLOOKUP(AI229,'Footnotes list'!$D$9:$E$58,2,FALSE) ) )","v":""},null,null,null,null,{"$f":"IF(TRIM(AN229)=\"\", \"\", IF(VLOOKUP(AN229,'Footnotes list'!$D$9:$E$58,2,FALSE)=0,\"\",VLOOKUP(AN229,'Footnotes list'!$D$9:$E$58,2,FALSE) ) )","v":""},null,null,null,null,{"$f":"IF(TRIM(AS229)=\"\", \"\", IF(VLOOKUP(AS229,'Footnotes list'!$D$9:$E$58,2,FALSE)=0,\"\",VLOOKUP(AS229,'Footnotes list'!$D$9:$E$58,2,FALSE) ) )","v":""},null,null,null,null,{"$f":"IF(TRIM(AX229)=\"\", \"\", IF(VLOOKUP(AX229,'Footnotes list'!$D$9:$E$58,2,FALSE)=0,\"\",VLOOKUP(AX229,'Footnotes list'!$D$9:$E$58,2,FALSE) ) )","v":""},null,null,null,null,{"$f":"IF(TRIM(BC229)=\"\", \"\", IF(VLOOKUP(BC229,'Footnotes list'!$D$9:$E$58,2,FALSE)=0,\"\",VLOOKUP(BC229,'Footnotes list'!$D$9:$E$58,2,FALSE) ) )","v":""},null,null,null,null,{"$f":"IF(TRIM(BH229)=\"\", \"\", IF(VLOOKUP(BH229,'Footnotes list'!$D$9:$E$58,2,FALSE)=0,\"\",VLOOKUP(BH229,'Footnotes list'!$D$9:$E$58,2,FALSE) ) )","v":""},null,null,null,null,{"$f":"IF(TRIM(BM229)=\"\", \"\", IF(VLOOKUP(BM229,'Footnotes list'!$D$9:$E$58,2,FALSE)=0,\"\",VLOOKUP(BM229,'Footnotes list'!$D$9:$E$58,2,FALSE) ) )","v":""},null,null,null,null,{"$f":"IF(TRIM(BR229)=\"\", \"\", IF(VLOOKUP(BR229,'Footnotes list'!$D$9:$E$58,2,FALSE)=0,\"\",VLOOKUP(BR229,'Footnotes list'!$D$9:$E$58,2,FALSE) ) )","v":""},null,null,null,null,{"$f":"IF(TRIM(BW229)=\"\", \"\", IF(VLOOKUP(BW229,'Footnotes list'!$D$9:$E$58,2,FALSE)=0,\"\",VLOOKUP(BW229,'Footnotes list'!$D$9:$E$58,2,FALSE) ) )","v":""},null,null,null,null,{"$f":"IF(TRIM(CB229)=\"\", \"\", IF(VLOOKUP(CB229,'Footnotes list'!$D$9:$E$58,2,FALSE)=0,\"\",VLOOKUP(CB229,'Footnotes list'!$D$9:$E$58,2,FALSE) ) )","v":""},null,null,null,null,{"$f":"IF(TRIM(CG229)=\"\", \"\", IF(VLOOKUP(CG229,'Footnotes list'!$D$9:$E$58,2,FALSE)=0,\"\",VLOOKUP(CG229,'Footnotes list'!$D$9:$E$58,2,FALSE) ) )","v":""},null,null,null,null,{"$f":"IF(TRIM(CL229)=\"\", \"\", IF(VLOOKUP(CL229,'Footnotes list'!$D$9:$E$58,2,FALSE)=0,\"\",VLOOKUP(CL229,'Footnotes list'!$D$9:$E$58,2,FALSE) ) )","v":""},null,null,null,null,{"$f":"IF(TRIM(CQ229)=\"\", \"\", IF(VLOOKUP(CQ229,'Footnotes list'!$D$9:$E$58,2,FALSE)=0,\"\",VLOOKUP(CQ229,'Footnotes list'!$D$9:$E$58,2,FALSE) ) )","v":""},null,null,null,null,{"$f":"IF(TRIM(CV229)=\"\", \"\", IF(VLOOKUP(CV229,'Footnotes list'!$D$9:$E$58,2,FALSE)=0,\"\",VLOOKUP(CV229,'Footnotes list'!$D$9:$E$58,2,FALSE) ) )","v":""},null,null,null,null,{"$f":"IF(TRIM(DA229)=\"\", \"\", IF(VLOOKUP(DA229,'Footnotes list'!$D$9:$E$58,2,FALSE)=0,\"\",VLOOKUP(DA229,'Footnotes list'!$D$9:$E$58,2,FALSE) ) )","v":""},null,null,null,null,{"$f":"IF(TRIM(DF229)=\"\", \"\", IF(VLOOKUP(DF229,'Footnotes list'!$D$9:$E$58,2,FALSE)=0,\"\",VLOOKUP(DF229,'Footnotes list'!$D$9:$E$58,2,FALSE) ) )","v":""},null,null,null,null,{"$f":"IF(TRIM(DK229)=\"\", \"\", IF(VLOOKUP(DK229,'Footnotes list'!$D$9:$E$58,2,FALSE)=0,\"\",VLOOKUP(DK229,'Footnotes list'!$D$9:$E$58,2,FALSE) ) )","v":""},null,null,null,null,{"$f":"IF(TRIM(DP229)=\"\", \"\", IF(VLOOKUP(DP229,'Footnotes list'!$D$9:$E$58,2,FALSE)=0,\"\",VLOOKUP(DP229,'Footnotes list'!$D$9:$E$58,2,FALSE) ) )","v":""},null,null,null,null,{"$f":"IF(TRIM(DU229)=\"\", \"\", IF(VLOOKUP(DU229,'Footnotes list'!$D$9:$E$58,2,FALSE)=0,\"\",VLOOKUP(DU229,'Footnotes list'!$D$9:$E$58,2,FALSE) ) )","v":""},null,null,null,null,{"$f":"IF(TRIM(DZ229)=\"\", \"\", IF(VLOOKUP(DZ229,'Footnotes list'!$D$9:$E$58,2,FALSE)=0,\"\",VLOOKUP(DZ229,'Footnotes list'!$D$9:$E$58,2,FALSE) ) )","v":""},null,null,null,null,{"$f":"IF(TRIM(EE229)=\"\", \"\", IF(VLOOKUP(EE229,'Footnotes list'!$D$9:$E$58,2,FALSE)=0,\"\",VLOOKUP(EE229,'Footnotes list'!$D$9:$E$58,2,FALSE) ) )","v":""},null,null,null,null,{"$f":"IF(TRIM(EJ229)=\"\", \"\", IF(VLOOKUP(EJ229,'Footnotes list'!$D$9:$E$58,2,FALSE)=0,\"\",VLOOKUP(EJ229,'Footnotes list'!$D$9:$E$58,2,FALSE) ) )","v":""},null,null,null,null,{"$f":"IF(TRIM(EO229)=\"\", \"\", IF(VLOOKUP(EO229,'Footnotes list'!$D$9:$E$58,2,FALSE)=0,\"\",VLOOKUP(EO229,'Footnotes list'!$D$9:$E$58,2,FALSE) ) )","v":""},null,null,null,null,{"$f":"IF(TRIM(ET229)=\"\", \"\", IF(VLOOKUP(ET229,'Footnotes list'!$D$9:$E$58,2,FALSE)=0,\"\",VLOOKUP(ET229,'Footnotes list'!$D$9:$E$58,2,FALSE) ) )","v":""},null,null,null,null,{"$f":"IF(TRIM(EY229)=\"\", \"\", IF(VLOOKUP(EY229,'Footnotes list'!$D$9:$E$58,2,FALSE)=0,\"\",VLOOKUP(EY229,'Footnotes list'!$D$9:$E$58,2,FALSE) ) )","v":""}]
[null,null,"M69_M70","ES_CS","environmental specific services",null,null,null,null,null,{"$f":"IF(TRIM(J230)=\"\", \"\", IF(VLOOKUP(J230,'Footnotes list'!$D$9:$E$58,2,FALSE)=0,\"\",VLOOKUP(J230,'Footnotes list'!$D$9:$E$58,2,FALSE) ) )","v":""},null,null,null,null,{"$f":"IF(TRIM(O230)=\"\", \"\", IF(VLOOKUP(O230,'Footnotes list'!$D$9:$E$58,2,FALSE)=0,\"\",VLOOKUP(O230,'Footnotes list'!$D$9:$E$58,2,FALSE) ) )","v":""},null,null,null,null,{"$f":"IF(TRIM(T230)=\"\", \"\", IF(VLOOKUP(T230,'Footnotes list'!$D$9:$E$58,2,FALSE)=0,\"\",VLOOKUP(T230,'Footnotes list'!$D$9:$E$58,2,FALSE) ) )","v":""},null,null,null,null,{"$f":"IF(TRIM(Y230)=\"\", \"\", IF(VLOOKUP(Y230,'Footnotes list'!$D$9:$E$58,2,FALSE)=0,\"\",VLOOKUP(Y230,'Footnotes list'!$D$9:$E$58,2,FALSE) ) )","v":""},null,null,null,null,{"$f":"IF(TRIM(AD230)=\"\", \"\", IF(VLOOKUP(AD230,'Footnotes list'!$D$9:$E$58,2,FALSE)=0,\"\",VLOOKUP(AD230,'Footnotes list'!$D$9:$E$58,2,FALSE) ) )","v":""},null,null,null,null,{"$f":"IF(TRIM(AI230)=\"\", \"\", IF(VLOOKUP(AI230,'Footnotes list'!$D$9:$E$58,2,FALSE)=0,\"\",VLOOKUP(AI230,'Footnotes list'!$D$9:$E$58,2,FALSE) ) )","v":""},null,null,null,null,{"$f":"IF(TRIM(AN230)=\"\", \"\", IF(VLOOKUP(AN230,'Footnotes list'!$D$9:$E$58,2,FALSE)=0,\"\",VLOOKUP(AN230,'Footnotes list'!$D$9:$E$58,2,FALSE) ) )","v":""},null,null,null,null,{"$f":"IF(TRIM(AS230)=\"\", \"\", IF(VLOOKUP(AS230,'Footnotes list'!$D$9:$E$58,2,FALSE)=0,\"\",VLOOKUP(AS230,'Footnotes list'!$D$9:$E$58,2,FALSE) ) )","v":""},null,null,null,null,{"$f":"IF(TRIM(AX230)=\"\", \"\", IF(VLOOKUP(AX230,'Footnotes list'!$D$9:$E$58,2,FALSE)=0,\"\",VLOOKUP(AX230,'Footnotes list'!$D$9:$E$58,2,FALSE) ) )","v":""},null,null,null,null,{"$f":"IF(TRIM(BC230)=\"\", \"\", IF(VLOOKUP(BC230,'Footnotes list'!$D$9:$E$58,2,FALSE)=0,\"\",VLOOKUP(BC230,'Footnotes list'!$D$9:$E$58,2,FALSE) ) )","v":""},null,null,null,null,{"$f":"IF(TRIM(BH230)=\"\", \"\", IF(VLOOKUP(BH230,'Footnotes list'!$D$9:$E$58,2,FALSE)=0,\"\",VLOOKUP(BH230,'Footnotes list'!$D$9:$E$58,2,FALSE) ) )","v":""},null,null,null,null,{"$f":"IF(TRIM(BM230)=\"\", \"\", IF(VLOOKUP(BM230,'Footnotes list'!$D$9:$E$58,2,FALSE)=0,\"\",VLOOKUP(BM230,'Footnotes list'!$D$9:$E$58,2,FALSE) ) )","v":""},null,null,null,null,{"$f":"IF(TRIM(BR230)=\"\", \"\", IF(VLOOKUP(BR230,'Footnotes list'!$D$9:$E$58,2,FALSE)=0,\"\",VLOOKUP(BR230,'Footnotes list'!$D$9:$E$58,2,FALSE) ) )","v":""},null,null,null,null,{"$f":"IF(TRIM(BW230)=\"\", \"\", IF(VLOOKUP(BW230,'Footnotes list'!$D$9:$E$58,2,FALSE)=0,\"\",VLOOKUP(BW230,'Footnotes list'!$D$9:$E$58,2,FALSE) ) )","v":""},null,null,null,null,{"$f":"IF(TRIM(CB230)=\"\", \"\", IF(VLOOKUP(CB230,'Footnotes list'!$D$9:$E$58,2,FALSE)=0,\"\",VLOOKUP(CB230,'Footnotes list'!$D$9:$E$58,2,FALSE) ) )","v":""},null,null,null,null,{"$f":"IF(TRIM(CG230)=\"\", \"\", IF(VLOOKUP(CG230,'Footnotes list'!$D$9:$E$58,2,FALSE)=0,\"\",VLOOKUP(CG230,'Footnotes list'!$D$9:$E$58,2,FALSE) ) )","v":""},null,null,null,null,{"$f":"IF(TRIM(CL230)=\"\", \"\", IF(VLOOKUP(CL230,'Footnotes list'!$D$9:$E$58,2,FALSE)=0,\"\",VLOOKUP(CL230,'Footnotes list'!$D$9:$E$58,2,FALSE) ) )","v":""},null,null,null,null,{"$f":"IF(TRIM(CQ230)=\"\", \"\", IF(VLOOKUP(CQ230,'Footnotes list'!$D$9:$E$58,2,FALSE)=0,\"\",VLOOKUP(CQ230,'Footnotes list'!$D$9:$E$58,2,FALSE) ) )","v":""},null,null,null,null,{"$f":"IF(TRIM(CV230)=\"\", \"\", IF(VLOOKUP(CV230,'Footnotes list'!$D$9:$E$58,2,FALSE)=0,\"\",VLOOKUP(CV230,'Footnotes list'!$D$9:$E$58,2,FALSE) ) )","v":""},null,null,null,null,{"$f":"IF(TRIM(DA230)=\"\", \"\", IF(VLOOKUP(DA230,'Footnotes list'!$D$9:$E$58,2,FALSE)=0,\"\",VLOOKUP(DA230,'Footnotes list'!$D$9:$E$58,2,FALSE) ) )","v":""},null,null,null,null,{"$f":"IF(TRIM(DF230)=\"\", \"\", IF(VLOOKUP(DF230,'Footnotes list'!$D$9:$E$58,2,FALSE)=0,\"\",VLOOKUP(DF230,'Footnotes list'!$D$9:$E$58,2,FALSE) ) )","v":""},null,null,null,null,{"$f":"IF(TRIM(DK230)=\"\", \"\", IF(VLOOKUP(DK230,'Footnotes list'!$D$9:$E$58,2,FALSE)=0,\"\",VLOOKUP(DK230,'Footnotes list'!$D$9:$E$58,2,FALSE) ) )","v":""},null,null,null,null,{"$f":"IF(TRIM(DP230)=\"\", \"\", IF(VLOOKUP(DP230,'Footnotes list'!$D$9:$E$58,2,FALSE)=0,\"\",VLOOKUP(DP230,'Footnotes list'!$D$9:$E$58,2,FALSE) ) )","v":""},null,null,null,null,{"$f":"IF(TRIM(DU230)=\"\", \"\", IF(VLOOKUP(DU230,'Footnotes list'!$D$9:$E$58,2,FALSE)=0,\"\",VLOOKUP(DU230,'Footnotes list'!$D$9:$E$58,2,FALSE) ) )","v":""},null,null,null,null,{"$f":"IF(TRIM(DZ230)=\"\", \"\", IF(VLOOKUP(DZ230,'Footnotes list'!$D$9:$E$58,2,FALSE)=0,\"\",VLOOKUP(DZ230,'Footnotes list'!$D$9:$E$58,2,FALSE) ) )","v":""},null,null,null,null,{"$f":"IF(TRIM(EE230)=\"\", \"\", IF(VLOOKUP(EE230,'Footnotes list'!$D$9:$E$58,2,FALSE)=0,\"\",VLOOKUP(EE230,'Footnotes list'!$D$9:$E$58,2,FALSE) ) )","v":""},null,null,null,null,{"$f":"IF(TRIM(EJ230)=\"\", \"\", IF(VLOOKUP(EJ230,'Footnotes list'!$D$9:$E$58,2,FALSE)=0,\"\",VLOOKUP(EJ230,'Footnotes list'!$D$9:$E$58,2,FALSE) ) )","v":""},null,null,null,null,{"$f":"IF(TRIM(EO230)=\"\", \"\", IF(VLOOKUP(EO230,'Footnotes list'!$D$9:$E$58,2,FALSE)=0,\"\",VLOOKUP(EO230,'Footnotes list'!$D$9:$E$58,2,FALSE) ) )","v":""},null,null,null,null,{"$f":"IF(TRIM(ET230)=\"\", \"\", IF(VLOOKUP(ET230,'Footnotes list'!$D$9:$E$58,2,FALSE)=0,\"\",VLOOKUP(ET230,'Footnotes list'!$D$9:$E$58,2,FALSE) ) )","v":""},null,null,null,null,{"$f":"IF(TRIM(EY230)=\"\", \"\", IF(VLOOKUP(EY230,'Footnotes list'!$D$9:$E$58,2,FALSE)=0,\"\",VLOOKUP(EY230,'Footnotes list'!$D$9:$E$58,2,FALSE) ) )","v":""}]
[null,null,"M69_M70","C_REP","cleaner and resource efficient products",null,null,null,null,null,{"$f":"IF(TRIM(J231)=\"\", \"\", IF(VLOOKUP(J231,'Footnotes list'!$D$9:$E$58,2,FALSE)=0,\"\",VLOOKUP(J231,'Footnotes list'!$D$9:$E$58,2,FALSE) ) )","v":""},null,null,null,null,{"$f":"IF(TRIM(O231)=\"\", \"\", IF(VLOOKUP(O231,'Footnotes list'!$D$9:$E$58,2,FALSE)=0,\"\",VLOOKUP(O231,'Footnotes list'!$D$9:$E$58,2,FALSE) ) )","v":""},null,null,null,null,{"$f":"IF(TRIM(T231)=\"\", \"\", IF(VLOOKUP(T231,'Footnotes list'!$D$9:$E$58,2,FALSE)=0,\"\",VLOOKUP(T231,'Footnotes list'!$D$9:$E$58,2,FALSE) ) )","v":""},null,null,null,null,{"$f":"IF(TRIM(Y231)=\"\", \"\", IF(VLOOKUP(Y231,'Footnotes list'!$D$9:$E$58,2,FALSE)=0,\"\",VLOOKUP(Y231,'Footnotes list'!$D$9:$E$58,2,FALSE) ) )","v":""},null,null,null,null,{"$f":"IF(TRIM(AD231)=\"\", \"\", IF(VLOOKUP(AD231,'Footnotes list'!$D$9:$E$58,2,FALSE)=0,\"\",VLOOKUP(AD231,'Footnotes list'!$D$9:$E$58,2,FALSE) ) )","v":""},null,null,null,null,{"$f":"IF(TRIM(AI231)=\"\", \"\", IF(VLOOKUP(AI231,'Footnotes list'!$D$9:$E$58,2,FALSE)=0,\"\",VLOOKUP(AI231,'Footnotes list'!$D$9:$E$58,2,FALSE) ) )","v":""},null,null,null,null,{"$f":"IF(TRIM(AN231)=\"\", \"\", IF(VLOOKUP(AN231,'Footnotes list'!$D$9:$E$58,2,FALSE)=0,\"\",VLOOKUP(AN231,'Footnotes list'!$D$9:$E$58,2,FALSE) ) )","v":""},null,null,null,null,{"$f":"IF(TRIM(AS231)=\"\", \"\", IF(VLOOKUP(AS231,'Footnotes list'!$D$9:$E$58,2,FALSE)=0,\"\",VLOOKUP(AS231,'Footnotes list'!$D$9:$E$58,2,FALSE) ) )","v":""},null,null,null,null,{"$f":"IF(TRIM(AX231)=\"\", \"\", IF(VLOOKUP(AX231,'Footnotes list'!$D$9:$E$58,2,FALSE)=0,\"\",VLOOKUP(AX231,'Footnotes list'!$D$9:$E$58,2,FALSE) ) )","v":""},null,null,null,null,{"$f":"IF(TRIM(BC231)=\"\", \"\", IF(VLOOKUP(BC231,'Footnotes list'!$D$9:$E$58,2,FALSE)=0,\"\",VLOOKUP(BC231,'Footnotes list'!$D$9:$E$58,2,FALSE) ) )","v":""},null,null,null,null,{"$f":"IF(TRIM(BH231)=\"\", \"\", IF(VLOOKUP(BH231,'Footnotes list'!$D$9:$E$58,2,FALSE)=0,\"\",VLOOKUP(BH231,'Footnotes list'!$D$9:$E$58,2,FALSE) ) )","v":""},null,null,null,null,{"$f":"IF(TRIM(BM231)=\"\", \"\", IF(VLOOKUP(BM231,'Footnotes list'!$D$9:$E$58,2,FALSE)=0,\"\",VLOOKUP(BM231,'Footnotes list'!$D$9:$E$58,2,FALSE) ) )","v":""},null,null,null,null,{"$f":"IF(TRIM(BR231)=\"\", \"\", IF(VLOOKUP(BR231,'Footnotes list'!$D$9:$E$58,2,FALSE)=0,\"\",VLOOKUP(BR231,'Footnotes list'!$D$9:$E$58,2,FALSE) ) )","v":""},null,null,null,null,{"$f":"IF(TRIM(BW231)=\"\", \"\", IF(VLOOKUP(BW231,'Footnotes list'!$D$9:$E$58,2,FALSE)=0,\"\",VLOOKUP(BW231,'Footnotes list'!$D$9:$E$58,2,FALSE) ) )","v":""},null,null,null,null,{"$f":"IF(TRIM(CB231)=\"\", \"\", IF(VLOOKUP(CB231,'Footnotes list'!$D$9:$E$58,2,FALSE)=0,\"\",VLOOKUP(CB231,'Footnotes list'!$D$9:$E$58,2,FALSE) ) )","v":""},null,null,null,null,{"$f":"IF(TRIM(CG231)=\"\", \"\", IF(VLOOKUP(CG231,'Footnotes list'!$D$9:$E$58,2,FALSE)=0,\"\",VLOOKUP(CG231,'Footnotes list'!$D$9:$E$58,2,FALSE) ) )","v":""},null,null,null,null,{"$f":"IF(TRIM(CL231)=\"\", \"\", IF(VLOOKUP(CL231,'Footnotes list'!$D$9:$E$58,2,FALSE)=0,\"\",VLOOKUP(CL231,'Footnotes list'!$D$9:$E$58,2,FALSE) ) )","v":""},null,null,null,null,{"$f":"IF(TRIM(CQ231)=\"\", \"\", IF(VLOOKUP(CQ231,'Footnotes list'!$D$9:$E$58,2,FALSE)=0,\"\",VLOOKUP(CQ231,'Footnotes list'!$D$9:$E$58,2,FALSE) ) )","v":""},null,null,null,null,{"$f":"IF(TRIM(CV231)=\"\", \"\", IF(VLOOKUP(CV231,'Footnotes list'!$D$9:$E$58,2,FALSE)=0,\"\",VLOOKUP(CV231,'Footnotes list'!$D$9:$E$58,2,FALSE) ) )","v":""},null,null,null,null,{"$f":"IF(TRIM(DA231)=\"\", \"\", IF(VLOOKUP(DA231,'Footnotes list'!$D$9:$E$58,2,FALSE)=0,\"\",VLOOKUP(DA231,'Footnotes list'!$D$9:$E$58,2,FALSE) ) )","v":""},null,null,null,null,{"$f":"IF(TRIM(DF231)=\"\", \"\", IF(VLOOKUP(DF231,'Footnotes list'!$D$9:$E$58,2,FALSE)=0,\"\",VLOOKUP(DF231,'Footnotes list'!$D$9:$E$58,2,FALSE) ) )","v":""},null,null,null,null,{"$f":"IF(TRIM(DK231)=\"\", \"\", IF(VLOOKUP(DK231,'Footnotes list'!$D$9:$E$58,2,FALSE)=0,\"\",VLOOKUP(DK231,'Footnotes list'!$D$9:$E$58,2,FALSE) ) )","v":""},null,null,null,null,{"$f":"IF(TRIM(DP231)=\"\", \"\", IF(VLOOKUP(DP231,'Footnotes list'!$D$9:$E$58,2,FALSE)=0,\"\",VLOOKUP(DP231,'Footnotes list'!$D$9:$E$58,2,FALSE) ) )","v":""},null,null,null,null,{"$f":"IF(TRIM(DU231)=\"\", \"\", IF(VLOOKUP(DU231,'Footnotes list'!$D$9:$E$58,2,FALSE)=0,\"\",VLOOKUP(DU231,'Footnotes list'!$D$9:$E$58,2,FALSE) ) )","v":""},null,null,null,null,{"$f":"IF(TRIM(DZ231)=\"\", \"\", IF(VLOOKUP(DZ231,'Footnotes list'!$D$9:$E$58,2,FALSE)=0,\"\",VLOOKUP(DZ231,'Footnotes list'!$D$9:$E$58,2,FALSE) ) )","v":""},null,null,null,null,{"$f":"IF(TRIM(EE231)=\"\", \"\", IF(VLOOKUP(EE231,'Footnotes list'!$D$9:$E$58,2,FALSE)=0,\"\",VLOOKUP(EE231,'Footnotes list'!$D$9:$E$58,2,FALSE) ) )","v":""},null,null,null,null,{"$f":"IF(TRIM(EJ231)=\"\", \"\", IF(VLOOKUP(EJ231,'Footnotes list'!$D$9:$E$58,2,FALSE)=0,\"\",VLOOKUP(EJ231,'Footnotes list'!$D$9:$E$58,2,FALSE) ) )","v":""},null,null,null,null,{"$f":"IF(TRIM(EO231)=\"\", \"\", IF(VLOOKUP(EO231,'Footnotes list'!$D$9:$E$58,2,FALSE)=0,\"\",VLOOKUP(EO231,'Footnotes list'!$D$9:$E$58,2,FALSE) ) )","v":""},null,null,null,null,{"$f":"IF(TRIM(ET231)=\"\", \"\", IF(VLOOKUP(ET231,'Footnotes list'!$D$9:$E$58,2,FALSE)=0,\"\",VLOOKUP(ET231,'Footnotes list'!$D$9:$E$58,2,FALSE) ) )","v":""},null,null,null,null,{"$f":"IF(TRIM(EY231)=\"\", \"\", IF(VLOOKUP(EY231,'Footnotes list'!$D$9:$E$58,2,FALSE)=0,\"\",VLOOKUP(EY231,'Footnotes list'!$D$9:$E$58,2,FALSE) ) )","v":""}]
[null,null,"M71","TOT_EGSS","Total M71 - Architectural and engineering activities; technical testing and analysis, of which:",null,null,null,null,null,{"$f":"IF(TRIM(J232)=\"\", \"\", IF(VLOOKUP(J232,'Footnotes list'!$D$9:$E$58,2,FALSE)=0,\"\",VLOOKUP(J232,'Footnotes list'!$D$9:$E$58,2,FALSE) ) )","v":""},null,null,null,null,{"$f":"IF(TRIM(O232)=\"\", \"\", IF(VLOOKUP(O232,'Footnotes list'!$D$9:$E$58,2,FALSE)=0,\"\",VLOOKUP(O232,'Footnotes list'!$D$9:$E$58,2,FALSE) ) )","v":""},null,null,null,null,{"$f":"IF(TRIM(T232)=\"\", \"\", IF(VLOOKUP(T232,'Footnotes list'!$D$9:$E$58,2,FALSE)=0,\"\",VLOOKUP(T232,'Footnotes list'!$D$9:$E$58,2,FALSE) ) )","v":""},null,null,null,null,{"$f":"IF(TRIM(Y232)=\"\", \"\", IF(VLOOKUP(Y232,'Footnotes list'!$D$9:$E$58,2,FALSE)=0,\"\",VLOOKUP(Y232,'Footnotes list'!$D$9:$E$58,2,FALSE) ) )","v":""},null,null,null,null,{"$f":"IF(TRIM(AD232)=\"\", \"\", IF(VLOOKUP(AD232,'Footnotes list'!$D$9:$E$58,2,FALSE)=0,\"\",VLOOKUP(AD232,'Footnotes list'!$D$9:$E$58,2,FALSE) ) )","v":""},null,null,null,null,{"$f":"IF(TRIM(AI232)=\"\", \"\", IF(VLOOKUP(AI232,'Footnotes list'!$D$9:$E$58,2,FALSE)=0,\"\",VLOOKUP(AI232,'Footnotes list'!$D$9:$E$58,2,FALSE) ) )","v":""},null,null,null,null,{"$f":"IF(TRIM(AN232)=\"\", \"\", IF(VLOOKUP(AN232,'Footnotes list'!$D$9:$E$58,2,FALSE)=0,\"\",VLOOKUP(AN232,'Footnotes list'!$D$9:$E$58,2,FALSE) ) )","v":""},null,null,null,null,{"$f":"IF(TRIM(AS232)=\"\", \"\", IF(VLOOKUP(AS232,'Footnotes list'!$D$9:$E$58,2,FALSE)=0,\"\",VLOOKUP(AS232,'Footnotes list'!$D$9:$E$58,2,FALSE) ) )","v":""},null,null,null,null,{"$f":"IF(TRIM(AX232)=\"\", \"\", IF(VLOOKUP(AX232,'Footnotes list'!$D$9:$E$58,2,FALSE)=0,\"\",VLOOKUP(AX232,'Footnotes list'!$D$9:$E$58,2,FALSE) ) )","v":""},null,null,null,null,{"$f":"IF(TRIM(BC232)=\"\", \"\", IF(VLOOKUP(BC232,'Footnotes list'!$D$9:$E$58,2,FALSE)=0,\"\",VLOOKUP(BC232,'Footnotes list'!$D$9:$E$58,2,FALSE) ) )","v":""},null,null,null,null,{"$f":"IF(TRIM(BH232)=\"\", \"\", IF(VLOOKUP(BH232,'Footnotes list'!$D$9:$E$58,2,FALSE)=0,\"\",VLOOKUP(BH232,'Footnotes list'!$D$9:$E$58,2,FALSE) ) )","v":""},null,null,null,null,{"$f":"IF(TRIM(BM232)=\"\", \"\", IF(VLOOKUP(BM232,'Footnotes list'!$D$9:$E$58,2,FALSE)=0,\"\",VLOOKUP(BM232,'Footnotes list'!$D$9:$E$58,2,FALSE) ) )","v":""},null,null,null,null,{"$f":"IF(TRIM(BR232)=\"\", \"\", IF(VLOOKUP(BR232,'Footnotes list'!$D$9:$E$58,2,FALSE)=0,\"\",VLOOKUP(BR232,'Footnotes list'!$D$9:$E$58,2,FALSE) ) )","v":""},null,null,null,null,{"$f":"IF(TRIM(BW232)=\"\", \"\", IF(VLOOKUP(BW232,'Footnotes list'!$D$9:$E$58,2,FALSE)=0,\"\",VLOOKUP(BW232,'Footnotes list'!$D$9:$E$58,2,FALSE) ) )","v":""},null,null,null,null,{"$f":"IF(TRIM(CB232)=\"\", \"\", IF(VLOOKUP(CB232,'Footnotes list'!$D$9:$E$58,2,FALSE)=0,\"\",VLOOKUP(CB232,'Footnotes list'!$D$9:$E$58,2,FALSE) ) )","v":""},null,null,null,null,{"$f":"IF(TRIM(CG232)=\"\", \"\", IF(VLOOKUP(CG232,'Footnotes list'!$D$9:$E$58,2,FALSE)=0,\"\",VLOOKUP(CG232,'Footnotes list'!$D$9:$E$58,2,FALSE) ) )","v":""},null,null,null,null,{"$f":"IF(TRIM(CL232)=\"\", \"\", IF(VLOOKUP(CL232,'Footnotes list'!$D$9:$E$58,2,FALSE)=0,\"\",VLOOKUP(CL232,'Footnotes list'!$D$9:$E$58,2,FALSE) ) )","v":""},null,null,null,null,{"$f":"IF(TRIM(CQ232)=\"\", \"\", IF(VLOOKUP(CQ232,'Footnotes list'!$D$9:$E$58,2,FALSE)=0,\"\",VLOOKUP(CQ232,'Footnotes list'!$D$9:$E$58,2,FALSE) ) )","v":""},null,null,null,null,{"$f":"IF(TRIM(CV232)=\"\", \"\", IF(VLOOKUP(CV232,'Footnotes list'!$D$9:$E$58,2,FALSE)=0,\"\",VLOOKUP(CV232,'Footnotes list'!$D$9:$E$58,2,FALSE) ) )","v":""},null,null,null,null,{"$f":"IF(TRIM(DA232)=\"\", \"\", IF(VLOOKUP(DA232,'Footnotes list'!$D$9:$E$58,2,FALSE)=0,\"\",VLOOKUP(DA232,'Footnotes list'!$D$9:$E$58,2,FALSE) ) )","v":""},null,null,null,null,{"$f":"IF(TRIM(DF232)=\"\", \"\", IF(VLOOKUP(DF232,'Footnotes list'!$D$9:$E$58,2,FALSE)=0,\"\",VLOOKUP(DF232,'Footnotes list'!$D$9:$E$58,2,FALSE) ) )","v":""},null,null,null,null,{"$f":"IF(TRIM(DK232)=\"\", \"\", IF(VLOOKUP(DK232,'Footnotes list'!$D$9:$E$58,2,FALSE)=0,\"\",VLOOKUP(DK232,'Footnotes list'!$D$9:$E$58,2,FALSE) ) )","v":""},null,null,null,null,{"$f":"IF(TRIM(DP232)=\"\", \"\", IF(VLOOKUP(DP232,'Footnotes list'!$D$9:$E$58,2,FALSE)=0,\"\",VLOOKUP(DP232,'Footnotes list'!$D$9:$E$58,2,FALSE) ) )","v":""},null,null,null,null,{"$f":"IF(TRIM(DU232)=\"\", \"\", IF(VLOOKUP(DU232,'Footnotes list'!$D$9:$E$58,2,FALSE)=0,\"\",VLOOKUP(DU232,'Footnotes list'!$D$9:$E$58,2,FALSE) ) )","v":""},null,null,null,null,{"$f":"IF(TRIM(DZ232)=\"\", \"\", IF(VLOOKUP(DZ232,'Footnotes list'!$D$9:$E$58,2,FALSE)=0,\"\",VLOOKUP(DZ232,'Footnotes list'!$D$9:$E$58,2,FALSE) ) )","v":""},null,null,null,null,{"$f":"IF(TRIM(EE232)=\"\", \"\", IF(VLOOKUP(EE232,'Footnotes list'!$D$9:$E$58,2,FALSE)=0,\"\",VLOOKUP(EE232,'Footnotes list'!$D$9:$E$58,2,FALSE) ) )","v":""},null,null,null,null,{"$f":"IF(TRIM(EJ232)=\"\", \"\", IF(VLOOKUP(EJ232,'Footnotes list'!$D$9:$E$58,2,FALSE)=0,\"\",VLOOKUP(EJ232,'Footnotes list'!$D$9:$E$58,2,FALSE) ) )","v":""},null,null,null,null,{"$f":"IF(TRIM(EO232)=\"\", \"\", IF(VLOOKUP(EO232,'Footnotes list'!$D$9:$E$58,2,FALSE)=0,\"\",VLOOKUP(EO232,'Footnotes list'!$D$9:$E$58,2,FALSE) ) )","v":""},null,null,null,null,{"$f":"IF(TRIM(ET232)=\"\", \"\", IF(VLOOKUP(ET232,'Footnotes list'!$D$9:$E$58,2,FALSE)=0,\"\",VLOOKUP(ET232,'Footnotes list'!$D$9:$E$58,2,FALSE) ) )","v":""},null,null,null,null,{"$f":"IF(TRIM(EY232)=\"\", \"\", IF(VLOOKUP(EY232,'Footnotes list'!$D$9:$E$58,2,FALSE)=0,\"\",VLOOKUP(EY232,'Footnotes list'!$D$9:$E$58,2,FALSE) ) )","v":""}]
[null,null,"M71","ANC","ancillary activities",null,null,null,null,null,{"$f":"IF(TRIM(J233)=\"\", \"\", IF(VLOOKUP(J233,'Footnotes list'!$D$9:$E$58,2,FALSE)=0,\"\",VLOOKUP(J233,'Footnotes list'!$D$9:$E$58,2,FALSE) ) )","v":""},null,null,null,null,{"$f":"IF(TRIM(O233)=\"\", \"\", IF(VLOOKUP(O233,'Footnotes list'!$D$9:$E$58,2,FALSE)=0,\"\",VLOOKUP(O233,'Footnotes list'!$D$9:$E$58,2,FALSE) ) )","v":""},null,null,null,null,{"$f":"IF(TRIM(T233)=\"\", \"\", IF(VLOOKUP(T233,'Footnotes list'!$D$9:$E$58,2,FALSE)=0,\"\",VLOOKUP(T233,'Footnotes list'!$D$9:$E$58,2,FALSE) ) )","v":""},null,null,null,null,{"$f":"IF(TRIM(Y233)=\"\", \"\", IF(VLOOKUP(Y233,'Footnotes list'!$D$9:$E$58,2,FALSE)=0,\"\",VLOOKUP(Y233,'Footnotes list'!$D$9:$E$58,2,FALSE) ) )","v":""},null,null,null,null,{"$f":"IF(TRIM(AD233)=\"\", \"\", IF(VLOOKUP(AD233,'Footnotes list'!$D$9:$E$58,2,FALSE)=0,\"\",VLOOKUP(AD233,'Footnotes list'!$D$9:$E$58,2,FALSE) ) )","v":""},null,null,null,null,{"$f":"IF(TRIM(AI233)=\"\", \"\", IF(VLOOKUP(AI233,'Footnotes list'!$D$9:$E$58,2,FALSE)=0,\"\",VLOOKUP(AI233,'Footnotes list'!$D$9:$E$58,2,FALSE) ) )","v":""},null,null,null,null,{"$f":"IF(TRIM(AN233)=\"\", \"\", IF(VLOOKUP(AN233,'Footnotes list'!$D$9:$E$58,2,FALSE)=0,\"\",VLOOKUP(AN233,'Footnotes list'!$D$9:$E$58,2,FALSE) ) )","v":""},null,null,null,null,{"$f":"IF(TRIM(AS233)=\"\", \"\", IF(VLOOKUP(AS233,'Footnotes list'!$D$9:$E$58,2,FALSE)=0,\"\",VLOOKUP(AS233,'Footnotes list'!$D$9:$E$58,2,FALSE) ) )","v":""},null,null,null,null,{"$f":"IF(TRIM(AX233)=\"\", \"\", IF(VLOOKUP(AX233,'Footnotes list'!$D$9:$E$58,2,FALSE)=0,\"\",VLOOKUP(AX233,'Footnotes list'!$D$9:$E$58,2,FALSE) ) )","v":""},null,null,null,null,{"$f":"IF(TRIM(BC233)=\"\", \"\", IF(VLOOKUP(BC233,'Footnotes list'!$D$9:$E$58,2,FALSE)=0,\"\",VLOOKUP(BC233,'Footnotes list'!$D$9:$E$58,2,FALSE) ) )","v":""},null,null,null,null,{"$f":"IF(TRIM(BH233)=\"\", \"\", IF(VLOOKUP(BH233,'Footnotes list'!$D$9:$E$58,2,FALSE)=0,\"\",VLOOKUP(BH233,'Footnotes list'!$D$9:$E$58,2,FALSE) ) )","v":""},null,null,null,null,{"$f":"IF(TRIM(BM233)=\"\", \"\", IF(VLOOKUP(BM233,'Footnotes list'!$D$9:$E$58,2,FALSE)=0,\"\",VLOOKUP(BM233,'Footnotes list'!$D$9:$E$58,2,FALSE) ) )","v":""},null,null,null,null,{"$f":"IF(TRIM(BR233)=\"\", \"\", IF(VLOOKUP(BR233,'Footnotes list'!$D$9:$E$58,2,FALSE)=0,\"\",VLOOKUP(BR233,'Footnotes list'!$D$9:$E$58,2,FALSE) ) )","v":""},null,null,null,null,{"$f":"IF(TRIM(BW233)=\"\", \"\", IF(VLOOKUP(BW233,'Footnotes list'!$D$9:$E$58,2,FALSE)=0,\"\",VLOOKUP(BW233,'Footnotes list'!$D$9:$E$58,2,FALSE) ) )","v":""},null,null,null,null,{"$f":"IF(TRIM(CB233)=\"\", \"\", IF(VLOOKUP(CB233,'Footnotes list'!$D$9:$E$58,2,FALSE)=0,\"\",VLOOKUP(CB233,'Footnotes list'!$D$9:$E$58,2,FALSE) ) )","v":""},null,null,null,null,{"$f":"IF(TRIM(CG233)=\"\", \"\", IF(VLOOKUP(CG233,'Footnotes list'!$D$9:$E$58,2,FALSE)=0,\"\",VLOOKUP(CG233,'Footnotes list'!$D$9:$E$58,2,FALSE) ) )","v":""},null,null,null,null,{"$f":"IF(TRIM(CL233)=\"\", \"\", IF(VLOOKUP(CL233,'Footnotes list'!$D$9:$E$58,2,FALSE)=0,\"\",VLOOKUP(CL233,'Footnotes list'!$D$9:$E$58,2,FALSE) ) )","v":""},null,null,null,null,{"$f":"IF(TRIM(CQ233)=\"\", \"\", IF(VLOOKUP(CQ233,'Footnotes list'!$D$9:$E$58,2,FALSE)=0,\"\",VLOOKUP(CQ233,'Footnotes list'!$D$9:$E$58,2,FALSE) ) )","v":""},null,null,null,null,{"$f":"IF(TRIM(CV233)=\"\", \"\", IF(VLOOKUP(CV233,'Footnotes list'!$D$9:$E$58,2,FALSE)=0,\"\",VLOOKUP(CV233,'Footnotes list'!$D$9:$E$58,2,FALSE) ) )","v":""},null,null,null,null,{"$f":"IF(TRIM(DA233)=\"\", \"\", IF(VLOOKUP(DA233,'Footnotes list'!$D$9:$E$58,2,FALSE)=0,\"\",VLOOKUP(DA233,'Footnotes list'!$D$9:$E$58,2,FALSE) ) )","v":""},null,null,null,null,{"$f":"IF(TRIM(DF233)=\"\", \"\", IF(VLOOKUP(DF233,'Footnotes list'!$D$9:$E$58,2,FALSE)=0,\"\",VLOOKUP(DF233,'Footnotes list'!$D$9:$E$58,2,FALSE) ) )","v":""},null,null,null,null,{"$f":"IF(TRIM(DK233)=\"\", \"\", IF(VLOOKUP(DK233,'Footnotes list'!$D$9:$E$58,2,FALSE)=0,\"\",VLOOKUP(DK233,'Footnotes list'!$D$9:$E$58,2,FALSE) ) )","v":""},null,null,null,null,{"$f":"IF(TRIM(DP233)=\"\", \"\", IF(VLOOKUP(DP233,'Footnotes list'!$D$9:$E$58,2,FALSE)=0,\"\",VLOOKUP(DP233,'Footnotes list'!$D$9:$E$58,2,FALSE) ) )","v":""},null,null,null,null,{"$f":"IF(TRIM(DU233)=\"\", \"\", IF(VLOOKUP(DU233,'Footnotes list'!$D$9:$E$58,2,FALSE)=0,\"\",VLOOKUP(DU233,'Footnotes list'!$D$9:$E$58,2,FALSE) ) )","v":""},null,null,null,null,{"$f":"IF(TRIM(DZ233)=\"\", \"\", IF(VLOOKUP(DZ233,'Footnotes list'!$D$9:$E$58,2,FALSE)=0,\"\",VLOOKUP(DZ233,'Footnotes list'!$D$9:$E$58,2,FALSE) ) )","v":""},null,null,null,null,{"$f":"IF(TRIM(EE233)=\"\", \"\", IF(VLOOKUP(EE233,'Footnotes list'!$D$9:$E$58,2,FALSE)=0,\"\",VLOOKUP(EE233,'Footnotes list'!$D$9:$E$58,2,FALSE) ) )","v":""},null,null,null,null,{"$f":"IF(TRIM(EJ233)=\"\", \"\", IF(VLOOKUP(EJ233,'Footnotes list'!$D$9:$E$58,2,FALSE)=0,\"\",VLOOKUP(EJ233,'Footnotes list'!$D$9:$E$58,2,FALSE) ) )","v":""},null,null,null,null,{"$f":"IF(TRIM(EO233)=\"\", \"\", IF(VLOOKUP(EO233,'Footnotes list'!$D$9:$E$58,2,FALSE)=0,\"\",VLOOKUP(EO233,'Footnotes list'!$D$9:$E$58,2,FALSE) ) )","v":""},null,null,null,null,{"$f":"IF(TRIM(ET233)=\"\", \"\", IF(VLOOKUP(ET233,'Footnotes list'!$D$9:$E$58,2,FALSE)=0,\"\",VLOOKUP(ET233,'Footnotes list'!$D$9:$E$58,2,FALSE) ) )","v":""},null,null,null,null,{"$f":"IF(TRIM(EY233)=\"\", \"\", IF(VLOOKUP(EY233,'Footnotes list'!$D$9:$E$58,2,FALSE)=0,\"\",VLOOKUP(EY233,'Footnotes list'!$D$9:$E$58,2,FALSE) ) )","v":""}]
[null,null,"M71","NMKT","non-market activities",null,null,null,null,null,{"$f":"IF(TRIM(J234)=\"\", \"\", IF(VLOOKUP(J234,'Footnotes list'!$D$9:$E$58,2,FALSE)=0,\"\",VLOOKUP(J234,'Footnotes list'!$D$9:$E$58,2,FALSE) ) )","v":""},null,null,null,null,{"$f":"IF(TRIM(O234)=\"\", \"\", IF(VLOOKUP(O234,'Footnotes list'!$D$9:$E$58,2,FALSE)=0,\"\",VLOOKUP(O234,'Footnotes list'!$D$9:$E$58,2,FALSE) ) )","v":""},null,null,null,null,{"$f":"IF(TRIM(T234)=\"\", \"\", IF(VLOOKUP(T234,'Footnotes list'!$D$9:$E$58,2,FALSE)=0,\"\",VLOOKUP(T234,'Footnotes list'!$D$9:$E$58,2,FALSE) ) )","v":""},null,null,null,null,{"$f":"IF(TRIM(Y234)=\"\", \"\", IF(VLOOKUP(Y234,'Footnotes list'!$D$9:$E$58,2,FALSE)=0,\"\",VLOOKUP(Y234,'Footnotes list'!$D$9:$E$58,2,FALSE) ) )","v":""},null,null,null,null,{"$f":"IF(TRIM(AD234)=\"\", \"\", IF(VLOOKUP(AD234,'Footnotes list'!$D$9:$E$58,2,FALSE)=0,\"\",VLOOKUP(AD234,'Footnotes list'!$D$9:$E$58,2,FALSE) ) )","v":""},null,null,null,null,{"$f":"IF(TRIM(AI234)=\"\", \"\", IF(VLOOKUP(AI234,'Footnotes list'!$D$9:$E$58,2,FALSE)=0,\"\",VLOOKUP(AI234,'Footnotes list'!$D$9:$E$58,2,FALSE) ) )","v":""},null,null,null,null,{"$f":"IF(TRIM(AN234)=\"\", \"\", IF(VLOOKUP(AN234,'Footnotes list'!$D$9:$E$58,2,FALSE)=0,\"\",VLOOKUP(AN234,'Footnotes list'!$D$9:$E$58,2,FALSE) ) )","v":""},null,null,null,null,{"$f":"IF(TRIM(AS234)=\"\", \"\", IF(VLOOKUP(AS234,'Footnotes list'!$D$9:$E$58,2,FALSE)=0,\"\",VLOOKUP(AS234,'Footnotes list'!$D$9:$E$58,2,FALSE) ) )","v":""},null,null,null,null,{"$f":"IF(TRIM(AX234)=\"\", \"\", IF(VLOOKUP(AX234,'Footnotes list'!$D$9:$E$58,2,FALSE)=0,\"\",VLOOKUP(AX234,'Footnotes list'!$D$9:$E$58,2,FALSE) ) )","v":""},null,null,null,null,{"$f":"IF(TRIM(BC234)=\"\", \"\", IF(VLOOKUP(BC234,'Footnotes list'!$D$9:$E$58,2,FALSE)=0,\"\",VLOOKUP(BC234,'Footnotes list'!$D$9:$E$58,2,FALSE) ) )","v":""},null,null,null,null,{"$f":"IF(TRIM(BH234)=\"\", \"\", IF(VLOOKUP(BH234,'Footnotes list'!$D$9:$E$58,2,FALSE)=0,\"\",VLOOKUP(BH234,'Footnotes list'!$D$9:$E$58,2,FALSE) ) )","v":""},null,null,null,null,{"$f":"IF(TRIM(BM234)=\"\", \"\", IF(VLOOKUP(BM234,'Footnotes list'!$D$9:$E$58,2,FALSE)=0,\"\",VLOOKUP(BM234,'Footnotes list'!$D$9:$E$58,2,FALSE) ) )","v":""},null,null,null,null,{"$f":"IF(TRIM(BR234)=\"\", \"\", IF(VLOOKUP(BR234,'Footnotes list'!$D$9:$E$58,2,FALSE)=0,\"\",VLOOKUP(BR234,'Footnotes list'!$D$9:$E$58,2,FALSE) ) )","v":""},null,null,null,null,{"$f":"IF(TRIM(BW234)=\"\", \"\", IF(VLOOKUP(BW234,'Footnotes list'!$D$9:$E$58,2,FALSE)=0,\"\",VLOOKUP(BW234,'Footnotes list'!$D$9:$E$58,2,FALSE) ) )","v":""},null,null,null,null,{"$f":"IF(TRIM(CB234)=\"\", \"\", IF(VLOOKUP(CB234,'Footnotes list'!$D$9:$E$58,2,FALSE)=0,\"\",VLOOKUP(CB234,'Footnotes list'!$D$9:$E$58,2,FALSE) ) )","v":""},null,null,null,null,{"$f":"IF(TRIM(CG234)=\"\", \"\", IF(VLOOKUP(CG234,'Footnotes list'!$D$9:$E$58,2,FALSE)=0,\"\",VLOOKUP(CG234,'Footnotes list'!$D$9:$E$58,2,FALSE) ) )","v":""},null,null,null,null,{"$f":"IF(TRIM(CL234)=\"\", \"\", IF(VLOOKUP(CL234,'Footnotes list'!$D$9:$E$58,2,FALSE)=0,\"\",VLOOKUP(CL234,'Footnotes list'!$D$9:$E$58,2,FALSE) ) )","v":""},null,null,null,null,{"$f":"IF(TRIM(CQ234)=\"\", \"\", IF(VLOOKUP(CQ234,'Footnotes list'!$D$9:$E$58,2,FALSE)=0,\"\",VLOOKUP(CQ234,'Footnotes list'!$D$9:$E$58,2,FALSE) ) )","v":""},null,null,null,null,{"$f":"IF(TRIM(CV234)=\"\", \"\", IF(VLOOKUP(CV234,'Footnotes list'!$D$9:$E$58,2,FALSE)=0,\"\",VLOOKUP(CV234,'Footnotes list'!$D$9:$E$58,2,FALSE) ) )","v":""},null,null,null,null,{"$f":"IF(TRIM(DA234)=\"\", \"\", IF(VLOOKUP(DA234,'Footnotes list'!$D$9:$E$58,2,FALSE)=0,\"\",VLOOKUP(DA234,'Footnotes list'!$D$9:$E$58,2,FALSE) ) )","v":""},null,null,null,null,{"$f":"IF(TRIM(DF234)=\"\", \"\", IF(VLOOKUP(DF234,'Footnotes list'!$D$9:$E$58,2,FALSE)=0,\"\",VLOOKUP(DF234,'Footnotes list'!$D$9:$E$58,2,FALSE) ) )","v":""},null,null,null,null,{"$f":"IF(TRIM(DK234)=\"\", \"\", IF(VLOOKUP(DK234,'Footnotes list'!$D$9:$E$58,2,FALSE)=0,\"\",VLOOKUP(DK234,'Footnotes list'!$D$9:$E$58,2,FALSE) ) )","v":""},null,null,null,null,{"$f":"IF(TRIM(DP234)=\"\", \"\", IF(VLOOKUP(DP234,'Footnotes list'!$D$9:$E$58,2,FALSE)=0,\"\",VLOOKUP(DP234,'Footnotes list'!$D$9:$E$58,2,FALSE) ) )","v":""},null,null,null,null,{"$f":"IF(TRIM(DU234)=\"\", \"\", IF(VLOOKUP(DU234,'Footnotes list'!$D$9:$E$58,2,FALSE)=0,\"\",VLOOKUP(DU234,'Footnotes list'!$D$9:$E$58,2,FALSE) ) )","v":""},null,null,null,null,{"$f":"IF(TRIM(DZ234)=\"\", \"\", IF(VLOOKUP(DZ234,'Footnotes list'!$D$9:$E$58,2,FALSE)=0,\"\",VLOOKUP(DZ234,'Footnotes list'!$D$9:$E$58,2,FALSE) ) )","v":""},null,null,null,null,{"$f":"IF(TRIM(EE234)=\"\", \"\", IF(VLOOKUP(EE234,'Footnotes list'!$D$9:$E$58,2,FALSE)=0,\"\",VLOOKUP(EE234,'Footnotes list'!$D$9:$E$58,2,FALSE) ) )","v":""},null,null,null,null,{"$f":"IF(TRIM(EJ234)=\"\", \"\", IF(VLOOKUP(EJ234,'Footnotes list'!$D$9:$E$58,2,FALSE)=0,\"\",VLOOKUP(EJ234,'Footnotes list'!$D$9:$E$58,2,FALSE) ) )","v":""},null,null,null,null,{"$f":"IF(TRIM(EO234)=\"\", \"\", IF(VLOOKUP(EO234,'Footnotes list'!$D$9:$E$58,2,FALSE)=0,\"\",VLOOKUP(EO234,'Footnotes list'!$D$9:$E$58,2,FALSE) ) )","v":""},null,null,null,null,{"$f":"IF(TRIM(ET234)=\"\", \"\", IF(VLOOKUP(ET234,'Footnotes list'!$D$9:$E$58,2,FALSE)=0,\"\",VLOOKUP(ET234,'Footnotes list'!$D$9:$E$58,2,FALSE) ) )","v":""},null,null,null,null,{"$f":"IF(TRIM(EY234)=\"\", \"\", IF(VLOOKUP(EY234,'Footnotes list'!$D$9:$E$58,2,FALSE)=0,\"\",VLOOKUP(EY234,'Footnotes list'!$D$9:$E$58,2,FALSE) ) )","v":""}]
[null,null,"M71","OWN_USE","activities for own final use",null,null,null,null,null,{"$f":"IF(TRIM(J235)=\"\", \"\", IF(VLOOKUP(J235,'Footnotes list'!$D$9:$E$58,2,FALSE)=0,\"\",VLOOKUP(J235,'Footnotes list'!$D$9:$E$58,2,FALSE) ) )","v":""},null,null,null,null,{"$f":"IF(TRIM(O235)=\"\", \"\", IF(VLOOKUP(O235,'Footnotes list'!$D$9:$E$58,2,FALSE)=0,\"\",VLOOKUP(O235,'Footnotes list'!$D$9:$E$58,2,FALSE) ) )","v":""},null,null,null,null,{"$f":"IF(TRIM(T235)=\"\", \"\", IF(VLOOKUP(T235,'Footnotes list'!$D$9:$E$58,2,FALSE)=0,\"\",VLOOKUP(T235,'Footnotes list'!$D$9:$E$58,2,FALSE) ) )","v":""},null,null,null,null,{"$f":"IF(TRIM(Y235)=\"\", \"\", IF(VLOOKUP(Y235,'Footnotes list'!$D$9:$E$58,2,FALSE)=0,\"\",VLOOKUP(Y235,'Footnotes list'!$D$9:$E$58,2,FALSE) ) )","v":""},null,null,null,null,{"$f":"IF(TRIM(AD235)=\"\", \"\", IF(VLOOKUP(AD235,'Footnotes list'!$D$9:$E$58,2,FALSE)=0,\"\",VLOOKUP(AD235,'Footnotes list'!$D$9:$E$58,2,FALSE) ) )","v":""},null,null,null,null,{"$f":"IF(TRIM(AI235)=\"\", \"\", IF(VLOOKUP(AI235,'Footnotes list'!$D$9:$E$58,2,FALSE)=0,\"\",VLOOKUP(AI235,'Footnotes list'!$D$9:$E$58,2,FALSE) ) )","v":""},null,null,null,null,{"$f":"IF(TRIM(AN235)=\"\", \"\", IF(VLOOKUP(AN235,'Footnotes list'!$D$9:$E$58,2,FALSE)=0,\"\",VLOOKUP(AN235,'Footnotes list'!$D$9:$E$58,2,FALSE) ) )","v":""},null,null,null,null,{"$f":"IF(TRIM(AS235)=\"\", \"\", IF(VLOOKUP(AS235,'Footnotes list'!$D$9:$E$58,2,FALSE)=0,\"\",VLOOKUP(AS235,'Footnotes list'!$D$9:$E$58,2,FALSE) ) )","v":""},null,null,null,null,{"$f":"IF(TRIM(AX235)=\"\", \"\", IF(VLOOKUP(AX235,'Footnotes list'!$D$9:$E$58,2,FALSE)=0,\"\",VLOOKUP(AX235,'Footnotes list'!$D$9:$E$58,2,FALSE) ) )","v":""},null,null,null,null,{"$f":"IF(TRIM(BC235)=\"\", \"\", IF(VLOOKUP(BC235,'Footnotes list'!$D$9:$E$58,2,FALSE)=0,\"\",VLOOKUP(BC235,'Footnotes list'!$D$9:$E$58,2,FALSE) ) )","v":""},null,null,null,null,{"$f":"IF(TRIM(BH235)=\"\", \"\", IF(VLOOKUP(BH235,'Footnotes list'!$D$9:$E$58,2,FALSE)=0,\"\",VLOOKUP(BH235,'Footnotes list'!$D$9:$E$58,2,FALSE) ) )","v":""},null,null,null,null,{"$f":"IF(TRIM(BM235)=\"\", \"\", IF(VLOOKUP(BM235,'Footnotes list'!$D$9:$E$58,2,FALSE)=0,\"\",VLOOKUP(BM235,'Footnotes list'!$D$9:$E$58,2,FALSE) ) )","v":""},null,null,null,null,{"$f":"IF(TRIM(BR235)=\"\", \"\", IF(VLOOKUP(BR235,'Footnotes list'!$D$9:$E$58,2,FALSE)=0,\"\",VLOOKUP(BR235,'Footnotes list'!$D$9:$E$58,2,FALSE) ) )","v":""},null,null,null,null,{"$f":"IF(TRIM(BW235)=\"\", \"\", IF(VLOOKUP(BW235,'Footnotes list'!$D$9:$E$58,2,FALSE)=0,\"\",VLOOKUP(BW235,'Footnotes list'!$D$9:$E$58,2,FALSE) ) )","v":""},null,null,null,null,{"$f":"IF(TRIM(CB235)=\"\", \"\", IF(VLOOKUP(CB235,'Footnotes list'!$D$9:$E$58,2,FALSE)=0,\"\",VLOOKUP(CB235,'Footnotes list'!$D$9:$E$58,2,FALSE) ) )","v":""},null,null,null,null,{"$f":"IF(TRIM(CG235)=\"\", \"\", IF(VLOOKUP(CG235,'Footnotes list'!$D$9:$E$58,2,FALSE)=0,\"\",VLOOKUP(CG235,'Footnotes list'!$D$9:$E$58,2,FALSE) ) )","v":""},null,null,null,null,{"$f":"IF(TRIM(CL235)=\"\", \"\", IF(VLOOKUP(CL235,'Footnotes list'!$D$9:$E$58,2,FALSE)=0,\"\",VLOOKUP(CL235,'Footnotes list'!$D$9:$E$58,2,FALSE) ) )","v":""},null,null,null,null,{"$f":"IF(TRIM(CQ235)=\"\", \"\", IF(VLOOKUP(CQ235,'Footnotes list'!$D$9:$E$58,2,FALSE)=0,\"\",VLOOKUP(CQ235,'Footnotes list'!$D$9:$E$58,2,FALSE) ) )","v":""},null,null,null,null,{"$f":"IF(TRIM(CV235)=\"\", \"\", IF(VLOOKUP(CV235,'Footnotes list'!$D$9:$E$58,2,FALSE)=0,\"\",VLOOKUP(CV235,'Footnotes list'!$D$9:$E$58,2,FALSE) ) )","v":""},null,null,null,null,{"$f":"IF(TRIM(DA235)=\"\", \"\", IF(VLOOKUP(DA235,'Footnotes list'!$D$9:$E$58,2,FALSE)=0,\"\",VLOOKUP(DA235,'Footnotes list'!$D$9:$E$58,2,FALSE) ) )","v":""},null,null,null,null,{"$f":"IF(TRIM(DF235)=\"\", \"\", IF(VLOOKUP(DF235,'Footnotes list'!$D$9:$E$58,2,FALSE)=0,\"\",VLOOKUP(DF235,'Footnotes list'!$D$9:$E$58,2,FALSE) ) )","v":""},null,null,null,null,{"$f":"IF(TRIM(DK235)=\"\", \"\", IF(VLOOKUP(DK235,'Footnotes list'!$D$9:$E$58,2,FALSE)=0,\"\",VLOOKUP(DK235,'Footnotes list'!$D$9:$E$58,2,FALSE) ) )","v":""},null,null,null,null,{"$f":"IF(TRIM(DP235)=\"\", \"\", IF(VLOOKUP(DP235,'Footnotes list'!$D$9:$E$58,2,FALSE)=0,\"\",VLOOKUP(DP235,'Footnotes list'!$D$9:$E$58,2,FALSE) ) )","v":""},null,null,null,null,{"$f":"IF(TRIM(DU235)=\"\", \"\", IF(VLOOKUP(DU235,'Footnotes list'!$D$9:$E$58,2,FALSE)=0,\"\",VLOOKUP(DU235,'Footnotes list'!$D$9:$E$58,2,FALSE) ) )","v":""},null,null,null,null,{"$f":"IF(TRIM(DZ235)=\"\", \"\", IF(VLOOKUP(DZ235,'Footnotes list'!$D$9:$E$58,2,FALSE)=0,\"\",VLOOKUP(DZ235,'Footnotes list'!$D$9:$E$58,2,FALSE) ) )","v":""},null,null,null,null,{"$f":"IF(TRIM(EE235)=\"\", \"\", IF(VLOOKUP(EE235,'Footnotes list'!$D$9:$E$58,2,FALSE)=0,\"\",VLOOKUP(EE235,'Footnotes list'!$D$9:$E$58,2,FALSE) ) )","v":""},null,null,null,null,{"$f":"IF(TRIM(EJ235)=\"\", \"\", IF(VLOOKUP(EJ235,'Footnotes list'!$D$9:$E$58,2,FALSE)=0,\"\",VLOOKUP(EJ235,'Footnotes list'!$D$9:$E$58,2,FALSE) ) )","v":""},null,null,null,null,{"$f":"IF(TRIM(EO235)=\"\", \"\", IF(VLOOKUP(EO235,'Footnotes list'!$D$9:$E$58,2,FALSE)=0,\"\",VLOOKUP(EO235,'Footnotes list'!$D$9:$E$58,2,FALSE) ) )","v":""},null,null,null,null,{"$f":"IF(TRIM(ET235)=\"\", \"\", IF(VLOOKUP(ET235,'Footnotes list'!$D$9:$E$58,2,FALSE)=0,\"\",VLOOKUP(ET235,'Footnotes list'!$D$9:$E$58,2,FALSE) ) )","v":""},null,null,null,null,{"$f":"IF(TRIM(EY235)=\"\", \"\", IF(VLOOKUP(EY235,'Footnotes list'!$D$9:$E$58,2,FALSE)=0,\"\",VLOOKUP(EY235,'Footnotes list'!$D$9:$E$58,2,FALSE) ) )","v":""}]
[null,null,"M71","MKT","market activities, including:",null,null,null,null,null,{"$f":"IF(TRIM(J236)=\"\", \"\", IF(VLOOKUP(J236,'Footnotes list'!$D$9:$E$58,2,FALSE)=0,\"\",VLOOKUP(J236,'Footnotes list'!$D$9:$E$58,2,FALSE) ) )","v":""},null,null,null,null,{"$f":"IF(TRIM(O236)=\"\", \"\", IF(VLOOKUP(O236,'Footnotes list'!$D$9:$E$58,2,FALSE)=0,\"\",VLOOKUP(O236,'Footnotes list'!$D$9:$E$58,2,FALSE) ) )","v":""},null,null,null,null,{"$f":"IF(TRIM(T236)=\"\", \"\", IF(VLOOKUP(T236,'Footnotes list'!$D$9:$E$58,2,FALSE)=0,\"\",VLOOKUP(T236,'Footnotes list'!$D$9:$E$58,2,FALSE) ) )","v":""},null,null,null,null,{"$f":"IF(TRIM(Y236)=\"\", \"\", IF(VLOOKUP(Y236,'Footnotes list'!$D$9:$E$58,2,FALSE)=0,\"\",VLOOKUP(Y236,'Footnotes list'!$D$9:$E$58,2,FALSE) ) )","v":""},null,null,null,null,{"$f":"IF(TRIM(AD236)=\"\", \"\", IF(VLOOKUP(AD236,'Footnotes list'!$D$9:$E$58,2,FALSE)=0,\"\",VLOOKUP(AD236,'Footnotes list'!$D$9:$E$58,2,FALSE) ) )","v":""},null,null,null,null,{"$f":"IF(TRIM(AI236)=\"\", \"\", IF(VLOOKUP(AI236,'Footnotes list'!$D$9:$E$58,2,FALSE)=0,\"\",VLOOKUP(AI236,'Footnotes list'!$D$9:$E$58,2,FALSE) ) )","v":""},null,null,null,null,{"$f":"IF(TRIM(AN236)=\"\", \"\", IF(VLOOKUP(AN236,'Footnotes list'!$D$9:$E$58,2,FALSE)=0,\"\",VLOOKUP(AN236,'Footnotes list'!$D$9:$E$58,2,FALSE) ) )","v":""},null,null,null,null,{"$f":"IF(TRIM(AS236)=\"\", \"\", IF(VLOOKUP(AS236,'Footnotes list'!$D$9:$E$58,2,FALSE)=0,\"\",VLOOKUP(AS236,'Footnotes list'!$D$9:$E$58,2,FALSE) ) )","v":""},null,null,null,null,{"$f":"IF(TRIM(AX236)=\"\", \"\", IF(VLOOKUP(AX236,'Footnotes list'!$D$9:$E$58,2,FALSE)=0,\"\",VLOOKUP(AX236,'Footnotes list'!$D$9:$E$58,2,FALSE) ) )","v":""},null,null,null,null,{"$f":"IF(TRIM(BC236)=\"\", \"\", IF(VLOOKUP(BC236,'Footnotes list'!$D$9:$E$58,2,FALSE)=0,\"\",VLOOKUP(BC236,'Footnotes list'!$D$9:$E$58,2,FALSE) ) )","v":""},null,null,null,null,{"$f":"IF(TRIM(BH236)=\"\", \"\", IF(VLOOKUP(BH236,'Footnotes list'!$D$9:$E$58,2,FALSE)=0,\"\",VLOOKUP(BH236,'Footnotes list'!$D$9:$E$58,2,FALSE) ) )","v":""},null,null,null,null,{"$f":"IF(TRIM(BM236)=\"\", \"\", IF(VLOOKUP(BM236,'Footnotes list'!$D$9:$E$58,2,FALSE)=0,\"\",VLOOKUP(BM236,'Footnotes list'!$D$9:$E$58,2,FALSE) ) )","v":""},null,null,null,null,{"$f":"IF(TRIM(BR236)=\"\", \"\", IF(VLOOKUP(BR236,'Footnotes list'!$D$9:$E$58,2,FALSE)=0,\"\",VLOOKUP(BR236,'Footnotes list'!$D$9:$E$58,2,FALSE) ) )","v":""},null,null,null,null,{"$f":"IF(TRIM(BW236)=\"\", \"\", IF(VLOOKUP(BW236,'Footnotes list'!$D$9:$E$58,2,FALSE)=0,\"\",VLOOKUP(BW236,'Footnotes list'!$D$9:$E$58,2,FALSE) ) )","v":""},null,null,null,null,{"$f":"IF(TRIM(CB236)=\"\", \"\", IF(VLOOKUP(CB236,'Footnotes list'!$D$9:$E$58,2,FALSE)=0,\"\",VLOOKUP(CB236,'Footnotes list'!$D$9:$E$58,2,FALSE) ) )","v":""},null,null,null,null,{"$f":"IF(TRIM(CG236)=\"\", \"\", IF(VLOOKUP(CG236,'Footnotes list'!$D$9:$E$58,2,FALSE)=0,\"\",VLOOKUP(CG236,'Footnotes list'!$D$9:$E$58,2,FALSE) ) )","v":""},null,null,null,null,{"$f":"IF(TRIM(CL236)=\"\", \"\", IF(VLOOKUP(CL236,'Footnotes list'!$D$9:$E$58,2,FALSE)=0,\"\",VLOOKUP(CL236,'Footnotes list'!$D$9:$E$58,2,FALSE) ) )","v":""},null,null,null,null,{"$f":"IF(TRIM(CQ236)=\"\", \"\", IF(VLOOKUP(CQ236,'Footnotes list'!$D$9:$E$58,2,FALSE)=0,\"\",VLOOKUP(CQ236,'Footnotes list'!$D$9:$E$58,2,FALSE) ) )","v":""},null,null,null,null,{"$f":"IF(TRIM(CV236)=\"\", \"\", IF(VLOOKUP(CV236,'Footnotes list'!$D$9:$E$58,2,FALSE)=0,\"\",VLOOKUP(CV236,'Footnotes list'!$D$9:$E$58,2,FALSE) ) )","v":""},null,null,null,null,{"$f":"IF(TRIM(DA236)=\"\", \"\", IF(VLOOKUP(DA236,'Footnotes list'!$D$9:$E$58,2,FALSE)=0,\"\",VLOOKUP(DA236,'Footnotes list'!$D$9:$E$58,2,FALSE) ) )","v":""},null,null,null,null,{"$f":"IF(TRIM(DF236)=\"\", \"\", IF(VLOOKUP(DF236,'Footnotes list'!$D$9:$E$58,2,FALSE)=0,\"\",VLOOKUP(DF236,'Footnotes list'!$D$9:$E$58,2,FALSE) ) )","v":""},null,null,null,null,{"$f":"IF(TRIM(DK236)=\"\", \"\", IF(VLOOKUP(DK236,'Footnotes list'!$D$9:$E$58,2,FALSE)=0,\"\",VLOOKUP(DK236,'Footnotes list'!$D$9:$E$58,2,FALSE) ) )","v":""},null,null,null,null,{"$f":"IF(TRIM(DP236)=\"\", \"\", IF(VLOOKUP(DP236,'Footnotes list'!$D$9:$E$58,2,FALSE)=0,\"\",VLOOKUP(DP236,'Footnotes list'!$D$9:$E$58,2,FALSE) ) )","v":""},null,null,null,null,{"$f":"IF(TRIM(DU236)=\"\", \"\", IF(VLOOKUP(DU236,'Footnotes list'!$D$9:$E$58,2,FALSE)=0,\"\",VLOOKUP(DU236,'Footnotes list'!$D$9:$E$58,2,FALSE) ) )","v":""},null,null,null,null,{"$f":"IF(TRIM(DZ236)=\"\", \"\", IF(VLOOKUP(DZ236,'Footnotes list'!$D$9:$E$58,2,FALSE)=0,\"\",VLOOKUP(DZ236,'Footnotes list'!$D$9:$E$58,2,FALSE) ) )","v":""},null,null,null,null,{"$f":"IF(TRIM(EE236)=\"\", \"\", IF(VLOOKUP(EE236,'Footnotes list'!$D$9:$E$58,2,FALSE)=0,\"\",VLOOKUP(EE236,'Footnotes list'!$D$9:$E$58,2,FALSE) ) )","v":""},null,null,null,null,{"$f":"IF(TRIM(EJ236)=\"\", \"\", IF(VLOOKUP(EJ236,'Footnotes list'!$D$9:$E$58,2,FALSE)=0,\"\",VLOOKUP(EJ236,'Footnotes list'!$D$9:$E$58,2,FALSE) ) )","v":""},null,null,null,null,{"$f":"IF(TRIM(EO236)=\"\", \"\", IF(VLOOKUP(EO236,'Footnotes list'!$D$9:$E$58,2,FALSE)=0,\"\",VLOOKUP(EO236,'Footnotes list'!$D$9:$E$58,2,FALSE) ) )","v":""},null,null,null,null,{"$f":"IF(TRIM(ET236)=\"\", \"\", IF(VLOOKUP(ET236,'Footnotes list'!$D$9:$E$58,2,FALSE)=0,\"\",VLOOKUP(ET236,'Footnotes list'!$D$9:$E$58,2,FALSE) ) )","v":""},null,null,null,null,{"$f":"IF(TRIM(EY236)=\"\", \"\", IF(VLOOKUP(EY236,'Footnotes list'!$D$9:$E$58,2,FALSE)=0,\"\",VLOOKUP(EY236,'Footnotes list'!$D$9:$E$58,2,FALSE) ) )","v":""}]
[null,null,"M71","ES_CS","environmental specific services",null,null,null,null,null,{"$f":"IF(TRIM(J237)=\"\", \"\", IF(VLOOKUP(J237,'Footnotes list'!$D$9:$E$58,2,FALSE)=0,\"\",VLOOKUP(J237,'Footnotes list'!$D$9:$E$58,2,FALSE) ) )","v":""},null,null,null,null,{"$f":"IF(TRIM(O237)=\"\", \"\", IF(VLOOKUP(O237,'Footnotes list'!$D$9:$E$58,2,FALSE)=0,\"\",VLOOKUP(O237,'Footnotes list'!$D$9:$E$58,2,FALSE) ) )","v":""},null,null,null,null,{"$f":"IF(TRIM(T237)=\"\", \"\", IF(VLOOKUP(T237,'Footnotes list'!$D$9:$E$58,2,FALSE)=0,\"\",VLOOKUP(T237,'Footnotes list'!$D$9:$E$58,2,FALSE) ) )","v":""},null,null,null,null,{"$f":"IF(TRIM(Y237)=\"\", \"\", IF(VLOOKUP(Y237,'Footnotes list'!$D$9:$E$58,2,FALSE)=0,\"\",VLOOKUP(Y237,'Footnotes list'!$D$9:$E$58,2,FALSE) ) )","v":""},null,null,null,null,{"$f":"IF(TRIM(AD237)=\"\", \"\", IF(VLOOKUP(AD237,'Footnotes list'!$D$9:$E$58,2,FALSE)=0,\"\",VLOOKUP(AD237,'Footnotes list'!$D$9:$E$58,2,FALSE) ) )","v":""},null,null,null,null,{"$f":"IF(TRIM(AI237)=\"\", \"\", IF(VLOOKUP(AI237,'Footnotes list'!$D$9:$E$58,2,FALSE)=0,\"\",VLOOKUP(AI237,'Footnotes list'!$D$9:$E$58,2,FALSE) ) )","v":""},null,null,null,null,{"$f":"IF(TRIM(AN237)=\"\", \"\", IF(VLOOKUP(AN237,'Footnotes list'!$D$9:$E$58,2,FALSE)=0,\"\",VLOOKUP(AN237,'Footnotes list'!$D$9:$E$58,2,FALSE) ) )","v":""},null,null,null,null,{"$f":"IF(TRIM(AS237)=\"\", \"\", IF(VLOOKUP(AS237,'Footnotes list'!$D$9:$E$58,2,FALSE)=0,\"\",VLOOKUP(AS237,'Footnotes list'!$D$9:$E$58,2,FALSE) ) )","v":""},null,null,null,null,{"$f":"IF(TRIM(AX237)=\"\", \"\", IF(VLOOKUP(AX237,'Footnotes list'!$D$9:$E$58,2,FALSE)=0,\"\",VLOOKUP(AX237,'Footnotes list'!$D$9:$E$58,2,FALSE) ) )","v":""},null,null,null,null,{"$f":"IF(TRIM(BC237)=\"\", \"\", IF(VLOOKUP(BC237,'Footnotes list'!$D$9:$E$58,2,FALSE)=0,\"\",VLOOKUP(BC237,'Footnotes list'!$D$9:$E$58,2,FALSE) ) )","v":""},null,null,null,null,{"$f":"IF(TRIM(BH237)=\"\", \"\", IF(VLOOKUP(BH237,'Footnotes list'!$D$9:$E$58,2,FALSE)=0,\"\",VLOOKUP(BH237,'Footnotes list'!$D$9:$E$58,2,FALSE) ) )","v":""},null,null,null,null,{"$f":"IF(TRIM(BM237)=\"\", \"\", IF(VLOOKUP(BM237,'Footnotes list'!$D$9:$E$58,2,FALSE)=0,\"\",VLOOKUP(BM237,'Footnotes list'!$D$9:$E$58,2,FALSE) ) )","v":""},null,null,null,null,{"$f":"IF(TRIM(BR237)=\"\", \"\", IF(VLOOKUP(BR237,'Footnotes list'!$D$9:$E$58,2,FALSE)=0,\"\",VLOOKUP(BR237,'Footnotes list'!$D$9:$E$58,2,FALSE) ) )","v":""},null,null,null,null,{"$f":"IF(TRIM(BW237)=\"\", \"\", IF(VLOOKUP(BW237,'Footnotes list'!$D$9:$E$58,2,FALSE)=0,\"\",VLOOKUP(BW237,'Footnotes list'!$D$9:$E$58,2,FALSE) ) )","v":""},null,null,null,null,{"$f":"IF(TRIM(CB237)=\"\", \"\", IF(VLOOKUP(CB237,'Footnotes list'!$D$9:$E$58,2,FALSE)=0,\"\",VLOOKUP(CB237,'Footnotes list'!$D$9:$E$58,2,FALSE) ) )","v":""},null,null,null,null,{"$f":"IF(TRIM(CG237)=\"\", \"\", IF(VLOOKUP(CG237,'Footnotes list'!$D$9:$E$58,2,FALSE)=0,\"\",VLOOKUP(CG237,'Footnotes list'!$D$9:$E$58,2,FALSE) ) )","v":""},null,null,null,null,{"$f":"IF(TRIM(CL237)=\"\", \"\", IF(VLOOKUP(CL237,'Footnotes list'!$D$9:$E$58,2,FALSE)=0,\"\",VLOOKUP(CL237,'Footnotes list'!$D$9:$E$58,2,FALSE) ) )","v":""},null,null,null,null,{"$f":"IF(TRIM(CQ237)=\"\", \"\", IF(VLOOKUP(CQ237,'Footnotes list'!$D$9:$E$58,2,FALSE)=0,\"\",VLOOKUP(CQ237,'Footnotes list'!$D$9:$E$58,2,FALSE) ) )","v":""},null,null,null,null,{"$f":"IF(TRIM(CV237)=\"\", \"\", IF(VLOOKUP(CV237,'Footnotes list'!$D$9:$E$58,2,FALSE)=0,\"\",VLOOKUP(CV237,'Footnotes list'!$D$9:$E$58,2,FALSE) ) )","v":""},null,null,null,null,{"$f":"IF(TRIM(DA237)=\"\", \"\", IF(VLOOKUP(DA237,'Footnotes list'!$D$9:$E$58,2,FALSE)=0,\"\",VLOOKUP(DA237,'Footnotes list'!$D$9:$E$58,2,FALSE) ) )","v":""},null,null,null,null,{"$f":"IF(TRIM(DF237)=\"\", \"\", IF(VLOOKUP(DF237,'Footnotes list'!$D$9:$E$58,2,FALSE)=0,\"\",VLOOKUP(DF237,'Footnotes list'!$D$9:$E$58,2,FALSE) ) )","v":""},null,null,null,null,{"$f":"IF(TRIM(DK237)=\"\", \"\", IF(VLOOKUP(DK237,'Footnotes list'!$D$9:$E$58,2,FALSE)=0,\"\",VLOOKUP(DK237,'Footnotes list'!$D$9:$E$58,2,FALSE) ) )","v":""},null,null,null,null,{"$f":"IF(TRIM(DP237)=\"\", \"\", IF(VLOOKUP(DP237,'Footnotes list'!$D$9:$E$58,2,FALSE)=0,\"\",VLOOKUP(DP237,'Footnotes list'!$D$9:$E$58,2,FALSE) ) )","v":""},null,null,null,null,{"$f":"IF(TRIM(DU237)=\"\", \"\", IF(VLOOKUP(DU237,'Footnotes list'!$D$9:$E$58,2,FALSE)=0,\"\",VLOOKUP(DU237,'Footnotes list'!$D$9:$E$58,2,FALSE) ) )","v":""},null,null,null,null,{"$f":"IF(TRIM(DZ237)=\"\", \"\", IF(VLOOKUP(DZ237,'Footnotes list'!$D$9:$E$58,2,FALSE)=0,\"\",VLOOKUP(DZ237,'Footnotes list'!$D$9:$E$58,2,FALSE) ) )","v":""},null,null,null,null,{"$f":"IF(TRIM(EE237)=\"\", \"\", IF(VLOOKUP(EE237,'Footnotes list'!$D$9:$E$58,2,FALSE)=0,\"\",VLOOKUP(EE237,'Footnotes list'!$D$9:$E$58,2,FALSE) ) )","v":""},null,null,null,null,{"$f":"IF(TRIM(EJ237)=\"\", \"\", IF(VLOOKUP(EJ237,'Footnotes list'!$D$9:$E$58,2,FALSE)=0,\"\",VLOOKUP(EJ237,'Footnotes list'!$D$9:$E$58,2,FALSE) ) )","v":""},null,null,null,null,{"$f":"IF(TRIM(EO237)=\"\", \"\", IF(VLOOKUP(EO237,'Footnotes list'!$D$9:$E$58,2,FALSE)=0,\"\",VLOOKUP(EO237,'Footnotes list'!$D$9:$E$58,2,FALSE) ) )","v":""},null,null,null,null,{"$f":"IF(TRIM(ET237)=\"\", \"\", IF(VLOOKUP(ET237,'Footnotes list'!$D$9:$E$58,2,FALSE)=0,\"\",VLOOKUP(ET237,'Footnotes list'!$D$9:$E$58,2,FALSE) ) )","v":""},null,null,null,null,{"$f":"IF(TRIM(EY237)=\"\", \"\", IF(VLOOKUP(EY237,'Footnotes list'!$D$9:$E$58,2,FALSE)=0,\"\",VLOOKUP(EY237,'Footnotes list'!$D$9:$E$58,2,FALSE) ) )","v":""}]
[null,null,"M71","C_REP","cleaner and resource efficient products",null,null,null,null,null,{"$f":"IF(TRIM(J238)=\"\", \"\", IF(VLOOKUP(J238,'Footnotes list'!$D$9:$E$58,2,FALSE)=0,\"\",VLOOKUP(J238,'Footnotes list'!$D$9:$E$58,2,FALSE) ) )","v":""},null,null,null,null,{"$f":"IF(TRIM(O238)=\"\", \"\", IF(VLOOKUP(O238,'Footnotes list'!$D$9:$E$58,2,FALSE)=0,\"\",VLOOKUP(O238,'Footnotes list'!$D$9:$E$58,2,FALSE) ) )","v":""},null,null,null,null,{"$f":"IF(TRIM(T238)=\"\", \"\", IF(VLOOKUP(T238,'Footnotes list'!$D$9:$E$58,2,FALSE)=0,\"\",VLOOKUP(T238,'Footnotes list'!$D$9:$E$58,2,FALSE) ) )","v":""},null,null,null,null,{"$f":"IF(TRIM(Y238)=\"\", \"\", IF(VLOOKUP(Y238,'Footnotes list'!$D$9:$E$58,2,FALSE)=0,\"\",VLOOKUP(Y238,'Footnotes list'!$D$9:$E$58,2,FALSE) ) )","v":""},null,null,null,null,{"$f":"IF(TRIM(AD238)=\"\", \"\", IF(VLOOKUP(AD238,'Footnotes list'!$D$9:$E$58,2,FALSE)=0,\"\",VLOOKUP(AD238,'Footnotes list'!$D$9:$E$58,2,FALSE) ) )","v":""},null,null,null,null,{"$f":"IF(TRIM(AI238)=\"\", \"\", IF(VLOOKUP(AI238,'Footnotes list'!$D$9:$E$58,2,FALSE)=0,\"\",VLOOKUP(AI238,'Footnotes list'!$D$9:$E$58,2,FALSE) ) )","v":""},null,null,null,null,{"$f":"IF(TRIM(AN238)=\"\", \"\", IF(VLOOKUP(AN238,'Footnotes list'!$D$9:$E$58,2,FALSE)=0,\"\",VLOOKUP(AN238,'Footnotes list'!$D$9:$E$58,2,FALSE) ) )","v":""},null,null,null,null,{"$f":"IF(TRIM(AS238)=\"\", \"\", IF(VLOOKUP(AS238,'Footnotes list'!$D$9:$E$58,2,FALSE)=0,\"\",VLOOKUP(AS238,'Footnotes list'!$D$9:$E$58,2,FALSE) ) )","v":""},null,null,null,null,{"$f":"IF(TRIM(AX238)=\"\", \"\", IF(VLOOKUP(AX238,'Footnotes list'!$D$9:$E$58,2,FALSE)=0,\"\",VLOOKUP(AX238,'Footnotes list'!$D$9:$E$58,2,FALSE) ) )","v":""},null,null,null,null,{"$f":"IF(TRIM(BC238)=\"\", \"\", IF(VLOOKUP(BC238,'Footnotes list'!$D$9:$E$58,2,FALSE)=0,\"\",VLOOKUP(BC238,'Footnotes list'!$D$9:$E$58,2,FALSE) ) )","v":""},null,null,null,null,{"$f":"IF(TRIM(BH238)=\"\", \"\", IF(VLOOKUP(BH238,'Footnotes list'!$D$9:$E$58,2,FALSE)=0,\"\",VLOOKUP(BH238,'Footnotes list'!$D$9:$E$58,2,FALSE) ) )","v":""},null,null,null,null,{"$f":"IF(TRIM(BM238)=\"\", \"\", IF(VLOOKUP(BM238,'Footnotes list'!$D$9:$E$58,2,FALSE)=0,\"\",VLOOKUP(BM238,'Footnotes list'!$D$9:$E$58,2,FALSE) ) )","v":""},null,null,null,null,{"$f":"IF(TRIM(BR238)=\"\", \"\", IF(VLOOKUP(BR238,'Footnotes list'!$D$9:$E$58,2,FALSE)=0,\"\",VLOOKUP(BR238,'Footnotes list'!$D$9:$E$58,2,FALSE) ) )","v":""},null,null,null,null,{"$f":"IF(TRIM(BW238)=\"\", \"\", IF(VLOOKUP(BW238,'Footnotes list'!$D$9:$E$58,2,FALSE)=0,\"\",VLOOKUP(BW238,'Footnotes list'!$D$9:$E$58,2,FALSE) ) )","v":""},null,null,null,null,{"$f":"IF(TRIM(CB238)=\"\", \"\", IF(VLOOKUP(CB238,'Footnotes list'!$D$9:$E$58,2,FALSE)=0,\"\",VLOOKUP(CB238,'Footnotes list'!$D$9:$E$58,2,FALSE) ) )","v":""},null,null,null,null,{"$f":"IF(TRIM(CG238)=\"\", \"\", IF(VLOOKUP(CG238,'Footnotes list'!$D$9:$E$58,2,FALSE)=0,\"\",VLOOKUP(CG238,'Footnotes list'!$D$9:$E$58,2,FALSE) ) )","v":""},null,null,null,null,{"$f":"IF(TRIM(CL238)=\"\", \"\", IF(VLOOKUP(CL238,'Footnotes list'!$D$9:$E$58,2,FALSE)=0,\"\",VLOOKUP(CL238,'Footnotes list'!$D$9:$E$58,2,FALSE) ) )","v":""},null,null,null,null,{"$f":"IF(TRIM(CQ238)=\"\", \"\", IF(VLOOKUP(CQ238,'Footnotes list'!$D$9:$E$58,2,FALSE)=0,\"\",VLOOKUP(CQ238,'Footnotes list'!$D$9:$E$58,2,FALSE) ) )","v":""},null,null,null,null,{"$f":"IF(TRIM(CV238)=\"\", \"\", IF(VLOOKUP(CV238,'Footnotes list'!$D$9:$E$58,2,FALSE)=0,\"\",VLOOKUP(CV238,'Footnotes list'!$D$9:$E$58,2,FALSE) ) )","v":""},null,null,null,null,{"$f":"IF(TRIM(DA238)=\"\", \"\", IF(VLOOKUP(DA238,'Footnotes list'!$D$9:$E$58,2,FALSE)=0,\"\",VLOOKUP(DA238,'Footnotes list'!$D$9:$E$58,2,FALSE) ) )","v":""},null,null,null,null,{"$f":"IF(TRIM(DF238)=\"\", \"\", IF(VLOOKUP(DF238,'Footnotes list'!$D$9:$E$58,2,FALSE)=0,\"\",VLOOKUP(DF238,'Footnotes list'!$D$9:$E$58,2,FALSE) ) )","v":""},null,null,null,null,{"$f":"IF(TRIM(DK238)=\"\", \"\", IF(VLOOKUP(DK238,'Footnotes list'!$D$9:$E$58,2,FALSE)=0,\"\",VLOOKUP(DK238,'Footnotes list'!$D$9:$E$58,2,FALSE) ) )","v":""},null,null,null,null,{"$f":"IF(TRIM(DP238)=\"\", \"\", IF(VLOOKUP(DP238,'Footnotes list'!$D$9:$E$58,2,FALSE)=0,\"\",VLOOKUP(DP238,'Footnotes list'!$D$9:$E$58,2,FALSE) ) )","v":""},null,null,null,null,{"$f":"IF(TRIM(DU238)=\"\", \"\", IF(VLOOKUP(DU238,'Footnotes list'!$D$9:$E$58,2,FALSE)=0,\"\",VLOOKUP(DU238,'Footnotes list'!$D$9:$E$58,2,FALSE) ) )","v":""},null,null,null,null,{"$f":"IF(TRIM(DZ238)=\"\", \"\", IF(VLOOKUP(DZ238,'Footnotes list'!$D$9:$E$58,2,FALSE)=0,\"\",VLOOKUP(DZ238,'Footnotes list'!$D$9:$E$58,2,FALSE) ) )","v":""},null,null,null,null,{"$f":"IF(TRIM(EE238)=\"\", \"\", IF(VLOOKUP(EE238,'Footnotes list'!$D$9:$E$58,2,FALSE)=0,\"\",VLOOKUP(EE238,'Footnotes list'!$D$9:$E$58,2,FALSE) ) )","v":""},null,null,null,null,{"$f":"IF(TRIM(EJ238)=\"\", \"\", IF(VLOOKUP(EJ238,'Footnotes list'!$D$9:$E$58,2,FALSE)=0,\"\",VLOOKUP(EJ238,'Footnotes list'!$D$9:$E$58,2,FALSE) ) )","v":""},null,null,null,null,{"$f":"IF(TRIM(EO238)=\"\", \"\", IF(VLOOKUP(EO238,'Footnotes list'!$D$9:$E$58,2,FALSE)=0,\"\",VLOOKUP(EO238,'Footnotes list'!$D$9:$E$58,2,FALSE) ) )","v":""},null,null,null,null,{"$f":"IF(TRIM(ET238)=\"\", \"\", IF(VLOOKUP(ET238,'Footnotes list'!$D$9:$E$58,2,FALSE)=0,\"\",VLOOKUP(ET238,'Footnotes list'!$D$9:$E$58,2,FALSE) ) )","v":""},null,null,null,null,{"$f":"IF(TRIM(EY238)=\"\", \"\", IF(VLOOKUP(EY238,'Footnotes list'!$D$9:$E$58,2,FALSE)=0,\"\",VLOOKUP(EY238,'Footnotes list'!$D$9:$E$58,2,FALSE) ) )","v":""}]
[null,null,"M72","TOT_EGSS","Total M72 - Scientific research and development, of which:",null,null,null,null,null,{"$f":"IF(TRIM(J239)=\"\", \"\", IF(VLOOKUP(J239,'Footnotes list'!$D$9:$E$58,2,FALSE)=0,\"\",VLOOKUP(J239,'Footnotes list'!$D$9:$E$58,2,FALSE) ) )","v":""},null,null,null,null,{"$f":"IF(TRIM(O239)=\"\", \"\", IF(VLOOKUP(O239,'Footnotes list'!$D$9:$E$58,2,FALSE)=0,\"\",VLOOKUP(O239,'Footnotes list'!$D$9:$E$58,2,FALSE) ) )","v":""},null,null,null,null,{"$f":"IF(TRIM(T239)=\"\", \"\", IF(VLOOKUP(T239,'Footnotes list'!$D$9:$E$58,2,FALSE)=0,\"\",VLOOKUP(T239,'Footnotes list'!$D$9:$E$58,2,FALSE) ) )","v":""},null,null,null,null,{"$f":"IF(TRIM(Y239)=\"\", \"\", IF(VLOOKUP(Y239,'Footnotes list'!$D$9:$E$58,2,FALSE)=0,\"\",VLOOKUP(Y239,'Footnotes list'!$D$9:$E$58,2,FALSE) ) )","v":""},null,null,null,null,{"$f":"IF(TRIM(AD239)=\"\", \"\", IF(VLOOKUP(AD239,'Footnotes list'!$D$9:$E$58,2,FALSE)=0,\"\",VLOOKUP(AD239,'Footnotes list'!$D$9:$E$58,2,FALSE) ) )","v":""},null,null,null,null,{"$f":"IF(TRIM(AI239)=\"\", \"\", IF(VLOOKUP(AI239,'Footnotes list'!$D$9:$E$58,2,FALSE)=0,\"\",VLOOKUP(AI239,'Footnotes list'!$D$9:$E$58,2,FALSE) ) )","v":""},null,null,null,null,{"$f":"IF(TRIM(AN239)=\"\", \"\", IF(VLOOKUP(AN239,'Footnotes list'!$D$9:$E$58,2,FALSE)=0,\"\",VLOOKUP(AN239,'Footnotes list'!$D$9:$E$58,2,FALSE) ) )","v":""},null,null,null,null,{"$f":"IF(TRIM(AS239)=\"\", \"\", IF(VLOOKUP(AS239,'Footnotes list'!$D$9:$E$58,2,FALSE)=0,\"\",VLOOKUP(AS239,'Footnotes list'!$D$9:$E$58,2,FALSE) ) )","v":""},null,null,null,null,{"$f":"IF(TRIM(AX239)=\"\", \"\", IF(VLOOKUP(AX239,'Footnotes list'!$D$9:$E$58,2,FALSE)=0,\"\",VLOOKUP(AX239,'Footnotes list'!$D$9:$E$58,2,FALSE) ) )","v":""},null,null,null,null,{"$f":"IF(TRIM(BC239)=\"\", \"\", IF(VLOOKUP(BC239,'Footnotes list'!$D$9:$E$58,2,FALSE)=0,\"\",VLOOKUP(BC239,'Footnotes list'!$D$9:$E$58,2,FALSE) ) )","v":""},null,null,null,null,{"$f":"IF(TRIM(BH239)=\"\", \"\", IF(VLOOKUP(BH239,'Footnotes list'!$D$9:$E$58,2,FALSE)=0,\"\",VLOOKUP(BH239,'Footnotes list'!$D$9:$E$58,2,FALSE) ) )","v":""},null,null,null,null,{"$f":"IF(TRIM(BM239)=\"\", \"\", IF(VLOOKUP(BM239,'Footnotes list'!$D$9:$E$58,2,FALSE)=0,\"\",VLOOKUP(BM239,'Footnotes list'!$D$9:$E$58,2,FALSE) ) )","v":""},null,null,null,null,{"$f":"IF(TRIM(BR239)=\"\", \"\", IF(VLOOKUP(BR239,'Footnotes list'!$D$9:$E$58,2,FALSE)=0,\"\",VLOOKUP(BR239,'Footnotes list'!$D$9:$E$58,2,FALSE) ) )","v":""},null,null,null,null,{"$f":"IF(TRIM(BW239)=\"\", \"\", IF(VLOOKUP(BW239,'Footnotes list'!$D$9:$E$58,2,FALSE)=0,\"\",VLOOKUP(BW239,'Footnotes list'!$D$9:$E$58,2,FALSE) ) )","v":""},null,null,null,null,{"$f":"IF(TRIM(CB239)=\"\", \"\", IF(VLOOKUP(CB239,'Footnotes list'!$D$9:$E$58,2,FALSE)=0,\"\",VLOOKUP(CB239,'Footnotes list'!$D$9:$E$58,2,FALSE) ) )","v":""},null,null,null,null,{"$f":"IF(TRIM(CG239)=\"\", \"\", IF(VLOOKUP(CG239,'Footnotes list'!$D$9:$E$58,2,FALSE)=0,\"\",VLOOKUP(CG239,'Footnotes list'!$D$9:$E$58,2,FALSE) ) )","v":""},null,null,null,null,{"$f":"IF(TRIM(CL239)=\"\", \"\", IF(VLOOKUP(CL239,'Footnotes list'!$D$9:$E$58,2,FALSE)=0,\"\",VLOOKUP(CL239,'Footnotes list'!$D$9:$E$58,2,FALSE) ) )","v":""},null,null,null,null,{"$f":"IF(TRIM(CQ239)=\"\", \"\", IF(VLOOKUP(CQ239,'Footnotes list'!$D$9:$E$58,2,FALSE)=0,\"\",VLOOKUP(CQ239,'Footnotes list'!$D$9:$E$58,2,FALSE) ) )","v":""},null,null,null,null,{"$f":"IF(TRIM(CV239)=\"\", \"\", IF(VLOOKUP(CV239,'Footnotes list'!$D$9:$E$58,2,FALSE)=0,\"\",VLOOKUP(CV239,'Footnotes list'!$D$9:$E$58,2,FALSE) ) )","v":""},null,null,null,null,{"$f":"IF(TRIM(DA239)=\"\", \"\", IF(VLOOKUP(DA239,'Footnotes list'!$D$9:$E$58,2,FALSE)=0,\"\",VLOOKUP(DA239,'Footnotes list'!$D$9:$E$58,2,FALSE) ) )","v":""},null,null,null,null,{"$f":"IF(TRIM(DF239)=\"\", \"\", IF(VLOOKUP(DF239,'Footnotes list'!$D$9:$E$58,2,FALSE)=0,\"\",VLOOKUP(DF239,'Footnotes list'!$D$9:$E$58,2,FALSE) ) )","v":""},null,null,null,null,{"$f":"IF(TRIM(DK239)=\"\", \"\", IF(VLOOKUP(DK239,'Footnotes list'!$D$9:$E$58,2,FALSE)=0,\"\",VLOOKUP(DK239,'Footnotes list'!$D$9:$E$58,2,FALSE) ) )","v":""},null,null,null,null,{"$f":"IF(TRIM(DP239)=\"\", \"\", IF(VLOOKUP(DP239,'Footnotes list'!$D$9:$E$58,2,FALSE)=0,\"\",VLOOKUP(DP239,'Footnotes list'!$D$9:$E$58,2,FALSE) ) )","v":""},null,null,null,null,{"$f":"IF(TRIM(DU239)=\"\", \"\", IF(VLOOKUP(DU239,'Footnotes list'!$D$9:$E$58,2,FALSE)=0,\"\",VLOOKUP(DU239,'Footnotes list'!$D$9:$E$58,2,FALSE) ) )","v":""},null,null,null,null,{"$f":"IF(TRIM(DZ239)=\"\", \"\", IF(VLOOKUP(DZ239,'Footnotes list'!$D$9:$E$58,2,FALSE)=0,\"\",VLOOKUP(DZ239,'Footnotes list'!$D$9:$E$58,2,FALSE) ) )","v":""},null,null,null,null,{"$f":"IF(TRIM(EE239)=\"\", \"\", IF(VLOOKUP(EE239,'Footnotes list'!$D$9:$E$58,2,FALSE)=0,\"\",VLOOKUP(EE239,'Footnotes list'!$D$9:$E$58,2,FALSE) ) )","v":""},null,null,null,null,{"$f":"IF(TRIM(EJ239)=\"\", \"\", IF(VLOOKUP(EJ239,'Footnotes list'!$D$9:$E$58,2,FALSE)=0,\"\",VLOOKUP(EJ239,'Footnotes list'!$D$9:$E$58,2,FALSE) ) )","v":""},null,null,null,null,{"$f":"IF(TRIM(EO239)=\"\", \"\", IF(VLOOKUP(EO239,'Footnotes list'!$D$9:$E$58,2,FALSE)=0,\"\",VLOOKUP(EO239,'Footnotes list'!$D$9:$E$58,2,FALSE) ) )","v":""},null,null,null,null,{"$f":"IF(TRIM(ET239)=\"\", \"\", IF(VLOOKUP(ET239,'Footnotes list'!$D$9:$E$58,2,FALSE)=0,\"\",VLOOKUP(ET239,'Footnotes list'!$D$9:$E$58,2,FALSE) ) )","v":""},null,null,null,null,{"$f":"IF(TRIM(EY239)=\"\", \"\", IF(VLOOKUP(EY239,'Footnotes list'!$D$9:$E$58,2,FALSE)=0,\"\",VLOOKUP(EY239,'Footnotes list'!$D$9:$E$58,2,FALSE) ) )","v":""}]
[null,null,"M72","ANC","ancillary activities",null,null,null,null,null,{"$f":"IF(TRIM(J240)=\"\", \"\", IF(VLOOKUP(J240,'Footnotes list'!$D$9:$E$58,2,FALSE)=0,\"\",VLOOKUP(J240,'Footnotes list'!$D$9:$E$58,2,FALSE) ) )","v":""},null,null,null,null,{"$f":"IF(TRIM(O240)=\"\", \"\", IF(VLOOKUP(O240,'Footnotes list'!$D$9:$E$58,2,FALSE)=0,\"\",VLOOKUP(O240,'Footnotes list'!$D$9:$E$58,2,FALSE) ) )","v":""},null,null,null,null,{"$f":"IF(TRIM(T240)=\"\", \"\", IF(VLOOKUP(T240,'Footnotes list'!$D$9:$E$58,2,FALSE)=0,\"\",VLOOKUP(T240,'Footnotes list'!$D$9:$E$58,2,FALSE) ) )","v":""},null,null,null,null,{"$f":"IF(TRIM(Y240)=\"\", \"\", IF(VLOOKUP(Y240,'Footnotes list'!$D$9:$E$58,2,FALSE)=0,\"\",VLOOKUP(Y240,'Footnotes list'!$D$9:$E$58,2,FALSE) ) )","v":""},null,null,null,null,{"$f":"IF(TRIM(AD240)=\"\", \"\", IF(VLOOKUP(AD240,'Footnotes list'!$D$9:$E$58,2,FALSE)=0,\"\",VLOOKUP(AD240,'Footnotes list'!$D$9:$E$58,2,FALSE) ) )","v":""},null,null,null,null,{"$f":"IF(TRIM(AI240)=\"\", \"\", IF(VLOOKUP(AI240,'Footnotes list'!$D$9:$E$58,2,FALSE)=0,\"\",VLOOKUP(AI240,'Footnotes list'!$D$9:$E$58,2,FALSE) ) )","v":""},null,null,null,null,{"$f":"IF(TRIM(AN240)=\"\", \"\", IF(VLOOKUP(AN240,'Footnotes list'!$D$9:$E$58,2,FALSE)=0,\"\",VLOOKUP(AN240,'Footnotes list'!$D$9:$E$58,2,FALSE) ) )","v":""},null,null,null,null,{"$f":"IF(TRIM(AS240)=\"\", \"\", IF(VLOOKUP(AS240,'Footnotes list'!$D$9:$E$58,2,FALSE)=0,\"\",VLOOKUP(AS240,'Footnotes list'!$D$9:$E$58,2,FALSE) ) )","v":""},null,null,null,null,{"$f":"IF(TRIM(AX240)=\"\", \"\", IF(VLOOKUP(AX240,'Footnotes list'!$D$9:$E$58,2,FALSE)=0,\"\",VLOOKUP(AX240,'Footnotes list'!$D$9:$E$58,2,FALSE) ) )","v":""},null,null,null,null,{"$f":"IF(TRIM(BC240)=\"\", \"\", IF(VLOOKUP(BC240,'Footnotes list'!$D$9:$E$58,2,FALSE)=0,\"\",VLOOKUP(BC240,'Footnotes list'!$D$9:$E$58,2,FALSE) ) )","v":""},null,null,null,null,{"$f":"IF(TRIM(BH240)=\"\", \"\", IF(VLOOKUP(BH240,'Footnotes list'!$D$9:$E$58,2,FALSE)=0,\"\",VLOOKUP(BH240,'Footnotes list'!$D$9:$E$58,2,FALSE) ) )","v":""},null,null,null,null,{"$f":"IF(TRIM(BM240)=\"\", \"\", IF(VLOOKUP(BM240,'Footnotes list'!$D$9:$E$58,2,FALSE)=0,\"\",VLOOKUP(BM240,'Footnotes list'!$D$9:$E$58,2,FALSE) ) )","v":""},null,null,null,null,{"$f":"IF(TRIM(BR240)=\"\", \"\", IF(VLOOKUP(BR240,'Footnotes list'!$D$9:$E$58,2,FALSE)=0,\"\",VLOOKUP(BR240,'Footnotes list'!$D$9:$E$58,2,FALSE) ) )","v":""},null,null,null,null,{"$f":"IF(TRIM(BW240)=\"\", \"\", IF(VLOOKUP(BW240,'Footnotes list'!$D$9:$E$58,2,FALSE)=0,\"\",VLOOKUP(BW240,'Footnotes list'!$D$9:$E$58,2,FALSE) ) )","v":""},null,null,null,null,{"$f":"IF(TRIM(CB240)=\"\", \"\", IF(VLOOKUP(CB240,'Footnotes list'!$D$9:$E$58,2,FALSE)=0,\"\",VLOOKUP(CB240,'Footnotes list'!$D$9:$E$58,2,FALSE) ) )","v":""},null,null,null,null,{"$f":"IF(TRIM(CG240)=\"\", \"\", IF(VLOOKUP(CG240,'Footnotes list'!$D$9:$E$58,2,FALSE)=0,\"\",VLOOKUP(CG240,'Footnotes list'!$D$9:$E$58,2,FALSE) ) )","v":""},null,null,null,null,{"$f":"IF(TRIM(CL240)=\"\", \"\", IF(VLOOKUP(CL240,'Footnotes list'!$D$9:$E$58,2,FALSE)=0,\"\",VLOOKUP(CL240,'Footnotes list'!$D$9:$E$58,2,FALSE) ) )","v":""},null,null,null,null,{"$f":"IF(TRIM(CQ240)=\"\", \"\", IF(VLOOKUP(CQ240,'Footnotes list'!$D$9:$E$58,2,FALSE)=0,\"\",VLOOKUP(CQ240,'Footnotes list'!$D$9:$E$58,2,FALSE) ) )","v":""},null,null,null,null,{"$f":"IF(TRIM(CV240)=\"\", \"\", IF(VLOOKUP(CV240,'Footnotes list'!$D$9:$E$58,2,FALSE)=0,\"\",VLOOKUP(CV240,'Footnotes list'!$D$9:$E$58,2,FALSE) ) )","v":""},null,null,null,null,{"$f":"IF(TRIM(DA240)=\"\", \"\", IF(VLOOKUP(DA240,'Footnotes list'!$D$9:$E$58,2,FALSE)=0,\"\",VLOOKUP(DA240,'Footnotes list'!$D$9:$E$58,2,FALSE) ) )","v":""},null,null,null,null,{"$f":"IF(TRIM(DF240)=\"\", \"\", IF(VLOOKUP(DF240,'Footnotes list'!$D$9:$E$58,2,FALSE)=0,\"\",VLOOKUP(DF240,'Footnotes list'!$D$9:$E$58,2,FALSE) ) )","v":""},null,null,null,null,{"$f":"IF(TRIM(DK240)=\"\", \"\", IF(VLOOKUP(DK240,'Footnotes list'!$D$9:$E$58,2,FALSE)=0,\"\",VLOOKUP(DK240,'Footnotes list'!$D$9:$E$58,2,FALSE) ) )","v":""},null,null,null,null,{"$f":"IF(TRIM(DP240)=\"\", \"\", IF(VLOOKUP(DP240,'Footnotes list'!$D$9:$E$58,2,FALSE)=0,\"\",VLOOKUP(DP240,'Footnotes list'!$D$9:$E$58,2,FALSE) ) )","v":""},null,null,null,null,{"$f":"IF(TRIM(DU240)=\"\", \"\", IF(VLOOKUP(DU240,'Footnotes list'!$D$9:$E$58,2,FALSE)=0,\"\",VLOOKUP(DU240,'Footnotes list'!$D$9:$E$58,2,FALSE) ) )","v":""},null,null,null,null,{"$f":"IF(TRIM(DZ240)=\"\", \"\", IF(VLOOKUP(DZ240,'Footnotes list'!$D$9:$E$58,2,FALSE)=0,\"\",VLOOKUP(DZ240,'Footnotes list'!$D$9:$E$58,2,FALSE) ) )","v":""},null,null,null,null,{"$f":"IF(TRIM(EE240)=\"\", \"\", IF(VLOOKUP(EE240,'Footnotes list'!$D$9:$E$58,2,FALSE)=0,\"\",VLOOKUP(EE240,'Footnotes list'!$D$9:$E$58,2,FALSE) ) )","v":""},null,null,null,null,{"$f":"IF(TRIM(EJ240)=\"\", \"\", IF(VLOOKUP(EJ240,'Footnotes list'!$D$9:$E$58,2,FALSE)=0,\"\",VLOOKUP(EJ240,'Footnotes list'!$D$9:$E$58,2,FALSE) ) )","v":""},null,null,null,null,{"$f":"IF(TRIM(EO240)=\"\", \"\", IF(VLOOKUP(EO240,'Footnotes list'!$D$9:$E$58,2,FALSE)=0,\"\",VLOOKUP(EO240,'Footnotes list'!$D$9:$E$58,2,FALSE) ) )","v":""},null,null,null,null,{"$f":"IF(TRIM(ET240)=\"\", \"\", IF(VLOOKUP(ET240,'Footnotes list'!$D$9:$E$58,2,FALSE)=0,\"\",VLOOKUP(ET240,'Footnotes list'!$D$9:$E$58,2,FALSE) ) )","v":""},null,null,null,null,{"$f":"IF(TRIM(EY240)=\"\", \"\", IF(VLOOKUP(EY240,'Footnotes list'!$D$9:$E$58,2,FALSE)=0,\"\",VLOOKUP(EY240,'Footnotes list'!$D$9:$E$58,2,FALSE) ) )","v":""}]
[null,null,"M72","NMKT","non-market activities",null,null,null,null,null,{"$f":"IF(TRIM(J241)=\"\", \"\", IF(VLOOKUP(J241,'Footnotes list'!$D$9:$E$58,2,FALSE)=0,\"\",VLOOKUP(J241,'Footnotes list'!$D$9:$E$58,2,FALSE) ) )","v":""},null,null,null,null,{"$f":"IF(TRIM(O241)=\"\", \"\", IF(VLOOKUP(O241,'Footnotes list'!$D$9:$E$58,2,FALSE)=0,\"\",VLOOKUP(O241,'Footnotes list'!$D$9:$E$58,2,FALSE) ) )","v":""},null,null,null,null,{"$f":"IF(TRIM(T241)=\"\", \"\", IF(VLOOKUP(T241,'Footnotes list'!$D$9:$E$58,2,FALSE)=0,\"\",VLOOKUP(T241,'Footnotes list'!$D$9:$E$58,2,FALSE) ) )","v":""},null,null,null,null,{"$f":"IF(TRIM(Y241)=\"\", \"\", IF(VLOOKUP(Y241,'Footnotes list'!$D$9:$E$58,2,FALSE)=0,\"\",VLOOKUP(Y241,'Footnotes list'!$D$9:$E$58,2,FALSE) ) )","v":""},null,null,null,null,{"$f":"IF(TRIM(AD241)=\"\", \"\", IF(VLOOKUP(AD241,'Footnotes list'!$D$9:$E$58,2,FALSE)=0,\"\",VLOOKUP(AD241,'Footnotes list'!$D$9:$E$58,2,FALSE) ) )","v":""},null,null,null,null,{"$f":"IF(TRIM(AI241)=\"\", \"\", IF(VLOOKUP(AI241,'Footnotes list'!$D$9:$E$58,2,FALSE)=0,\"\",VLOOKUP(AI241,'Footnotes list'!$D$9:$E$58,2,FALSE) ) )","v":""},null,null,null,null,{"$f":"IF(TRIM(AN241)=\"\", \"\", IF(VLOOKUP(AN241,'Footnotes list'!$D$9:$E$58,2,FALSE)=0,\"\",VLOOKUP(AN241,'Footnotes list'!$D$9:$E$58,2,FALSE) ) )","v":""},null,null,null,null,{"$f":"IF(TRIM(AS241)=\"\", \"\", IF(VLOOKUP(AS241,'Footnotes list'!$D$9:$E$58,2,FALSE)=0,\"\",VLOOKUP(AS241,'Footnotes list'!$D$9:$E$58,2,FALSE) ) )","v":""},null,null,null,null,{"$f":"IF(TRIM(AX241)=\"\", \"\", IF(VLOOKUP(AX241,'Footnotes list'!$D$9:$E$58,2,FALSE)=0,\"\",VLOOKUP(AX241,'Footnotes list'!$D$9:$E$58,2,FALSE) ) )","v":""},null,null,null,null,{"$f":"IF(TRIM(BC241)=\"\", \"\", IF(VLOOKUP(BC241,'Footnotes list'!$D$9:$E$58,2,FALSE)=0,\"\",VLOOKUP(BC241,'Footnotes list'!$D$9:$E$58,2,FALSE) ) )","v":""},null,null,null,null,{"$f":"IF(TRIM(BH241)=\"\", \"\", IF(VLOOKUP(BH241,'Footnotes list'!$D$9:$E$58,2,FALSE)=0,\"\",VLOOKUP(BH241,'Footnotes list'!$D$9:$E$58,2,FALSE) ) )","v":""},null,null,null,null,{"$f":"IF(TRIM(BM241)=\"\", \"\", IF(VLOOKUP(BM241,'Footnotes list'!$D$9:$E$58,2,FALSE)=0,\"\",VLOOKUP(BM241,'Footnotes list'!$D$9:$E$58,2,FALSE) ) )","v":""},null,null,null,null,{"$f":"IF(TRIM(BR241)=\"\", \"\", IF(VLOOKUP(BR241,'Footnotes list'!$D$9:$E$58,2,FALSE)=0,\"\",VLOOKUP(BR241,'Footnotes list'!$D$9:$E$58,2,FALSE) ) )","v":""},null,null,null,null,{"$f":"IF(TRIM(BW241)=\"\", \"\", IF(VLOOKUP(BW241,'Footnotes list'!$D$9:$E$58,2,FALSE)=0,\"\",VLOOKUP(BW241,'Footnotes list'!$D$9:$E$58,2,FALSE) ) )","v":""},null,null,null,null,{"$f":"IF(TRIM(CB241)=\"\", \"\", IF(VLOOKUP(CB241,'Footnotes list'!$D$9:$E$58,2,FALSE)=0,\"\",VLOOKUP(CB241,'Footnotes list'!$D$9:$E$58,2,FALSE) ) )","v":""},null,null,null,null,{"$f":"IF(TRIM(CG241)=\"\", \"\", IF(VLOOKUP(CG241,'Footnotes list'!$D$9:$E$58,2,FALSE)=0,\"\",VLOOKUP(CG241,'Footnotes list'!$D$9:$E$58,2,FALSE) ) )","v":""},null,null,null,null,{"$f":"IF(TRIM(CL241)=\"\", \"\", IF(VLOOKUP(CL241,'Footnotes list'!$D$9:$E$58,2,FALSE)=0,\"\",VLOOKUP(CL241,'Footnotes list'!$D$9:$E$58,2,FALSE) ) )","v":""},null,null,null,null,{"$f":"IF(TRIM(CQ241)=\"\", \"\", IF(VLOOKUP(CQ241,'Footnotes list'!$D$9:$E$58,2,FALSE)=0,\"\",VLOOKUP(CQ241,'Footnotes list'!$D$9:$E$58,2,FALSE) ) )","v":""},null,null,null,null,{"$f":"IF(TRIM(CV241)=\"\", \"\", IF(VLOOKUP(CV241,'Footnotes list'!$D$9:$E$58,2,FALSE)=0,\"\",VLOOKUP(CV241,'Footnotes list'!$D$9:$E$58,2,FALSE) ) )","v":""},null,null,null,null,{"$f":"IF(TRIM(DA241)=\"\", \"\", IF(VLOOKUP(DA241,'Footnotes list'!$D$9:$E$58,2,FALSE)=0,\"\",VLOOKUP(DA241,'Footnotes list'!$D$9:$E$58,2,FALSE) ) )","v":""},null,null,null,null,{"$f":"IF(TRIM(DF241)=\"\", \"\", IF(VLOOKUP(DF241,'Footnotes list'!$D$9:$E$58,2,FALSE)=0,\"\",VLOOKUP(DF241,'Footnotes list'!$D$9:$E$58,2,FALSE) ) )","v":""},null,null,null,null,{"$f":"IF(TRIM(DK241)=\"\", \"\", IF(VLOOKUP(DK241,'Footnotes list'!$D$9:$E$58,2,FALSE)=0,\"\",VLOOKUP(DK241,'Footnotes list'!$D$9:$E$58,2,FALSE) ) )","v":""},null,null,null,null,{"$f":"IF(TRIM(DP241)=\"\", \"\", IF(VLOOKUP(DP241,'Footnotes list'!$D$9:$E$58,2,FALSE)=0,\"\",VLOOKUP(DP241,'Footnotes list'!$D$9:$E$58,2,FALSE) ) )","v":""},null,null,null,null,{"$f":"IF(TRIM(DU241)=\"\", \"\", IF(VLOOKUP(DU241,'Footnotes list'!$D$9:$E$58,2,FALSE)=0,\"\",VLOOKUP(DU241,'Footnotes list'!$D$9:$E$58,2,FALSE) ) )","v":""},null,null,null,null,{"$f":"IF(TRIM(DZ241)=\"\", \"\", IF(VLOOKUP(DZ241,'Footnotes list'!$D$9:$E$58,2,FALSE)=0,\"\",VLOOKUP(DZ241,'Footnotes list'!$D$9:$E$58,2,FALSE) ) )","v":""},null,null,null,null,{"$f":"IF(TRIM(EE241)=\"\", \"\", IF(VLOOKUP(EE241,'Footnotes list'!$D$9:$E$58,2,FALSE)=0,\"\",VLOOKUP(EE241,'Footnotes list'!$D$9:$E$58,2,FALSE) ) )","v":""},null,null,null,null,{"$f":"IF(TRIM(EJ241)=\"\", \"\", IF(VLOOKUP(EJ241,'Footnotes list'!$D$9:$E$58,2,FALSE)=0,\"\",VLOOKUP(EJ241,'Footnotes list'!$D$9:$E$58,2,FALSE) ) )","v":""},null,null,null,null,{"$f":"IF(TRIM(EO241)=\"\", \"\", IF(VLOOKUP(EO241,'Footnotes list'!$D$9:$E$58,2,FALSE)=0,\"\",VLOOKUP(EO241,'Footnotes list'!$D$9:$E$58,2,FALSE) ) )","v":""},null,null,null,null,{"$f":"IF(TRIM(ET241)=\"\", \"\", IF(VLOOKUP(ET241,'Footnotes list'!$D$9:$E$58,2,FALSE)=0,\"\",VLOOKUP(ET241,'Footnotes list'!$D$9:$E$58,2,FALSE) ) )","v":""},null,null,null,null,{"$f":"IF(TRIM(EY241)=\"\", \"\", IF(VLOOKUP(EY241,'Footnotes list'!$D$9:$E$58,2,FALSE)=0,\"\",VLOOKUP(EY241,'Footnotes list'!$D$9:$E$58,2,FALSE) ) )","v":""}]
[null,null,"M72","OWN_USE","activities for own final use",null,null,null,null,null,{"$f":"IF(TRIM(J242)=\"\", \"\", IF(VLOOKUP(J242,'Footnotes list'!$D$9:$E$58,2,FALSE)=0,\"\",VLOOKUP(J242,'Footnotes list'!$D$9:$E$58,2,FALSE) ) )","v":""},null,null,null,null,{"$f":"IF(TRIM(O242)=\"\", \"\", IF(VLOOKUP(O242,'Footnotes list'!$D$9:$E$58,2,FALSE)=0,\"\",VLOOKUP(O242,'Footnotes list'!$D$9:$E$58,2,FALSE) ) )","v":""},null,null,null,null,{"$f":"IF(TRIM(T242)=\"\", \"\", IF(VLOOKUP(T242,'Footnotes list'!$D$9:$E$58,2,FALSE)=0,\"\",VLOOKUP(T242,'Footnotes list'!$D$9:$E$58,2,FALSE) ) )","v":""},null,null,null,null,{"$f":"IF(TRIM(Y242)=\"\", \"\", IF(VLOOKUP(Y242,'Footnotes list'!$D$9:$E$58,2,FALSE)=0,\"\",VLOOKUP(Y242,'Footnotes list'!$D$9:$E$58,2,FALSE) ) )","v":""},null,null,null,null,{"$f":"IF(TRIM(AD242)=\"\", \"\", IF(VLOOKUP(AD242,'Footnotes list'!$D$9:$E$58,2,FALSE)=0,\"\",VLOOKUP(AD242,'Footnotes list'!$D$9:$E$58,2,FALSE) ) )","v":""},null,null,null,null,{"$f":"IF(TRIM(AI242)=\"\", \"\", IF(VLOOKUP(AI242,'Footnotes list'!$D$9:$E$58,2,FALSE)=0,\"\",VLOOKUP(AI242,'Footnotes list'!$D$9:$E$58,2,FALSE) ) )","v":""},null,null,null,null,{"$f":"IF(TRIM(AN242)=\"\", \"\", IF(VLOOKUP(AN242,'Footnotes list'!$D$9:$E$58,2,FALSE)=0,\"\",VLOOKUP(AN242,'Footnotes list'!$D$9:$E$58,2,FALSE) ) )","v":""},null,null,null,null,{"$f":"IF(TRIM(AS242)=\"\", \"\", IF(VLOOKUP(AS242,'Footnotes list'!$D$9:$E$58,2,FALSE)=0,\"\",VLOOKUP(AS242,'Footnotes list'!$D$9:$E$58,2,FALSE) ) )","v":""},null,null,null,null,{"$f":"IF(TRIM(AX242)=\"\", \"\", IF(VLOOKUP(AX242,'Footnotes list'!$D$9:$E$58,2,FALSE)=0,\"\",VLOOKUP(AX242,'Footnotes list'!$D$9:$E$58,2,FALSE) ) )","v":""},null,null,null,null,{"$f":"IF(TRIM(BC242)=\"\", \"\", IF(VLOOKUP(BC242,'Footnotes list'!$D$9:$E$58,2,FALSE)=0,\"\",VLOOKUP(BC242,'Footnotes list'!$D$9:$E$58,2,FALSE) ) )","v":""},null,null,null,null,{"$f":"IF(TRIM(BH242)=\"\", \"\", IF(VLOOKUP(BH242,'Footnotes list'!$D$9:$E$58,2,FALSE)=0,\"\",VLOOKUP(BH242,'Footnotes list'!$D$9:$E$58,2,FALSE) ) )","v":""},null,null,null,null,{"$f":"IF(TRIM(BM242)=\"\", \"\", IF(VLOOKUP(BM242,'Footnotes list'!$D$9:$E$58,2,FALSE)=0,\"\",VLOOKUP(BM242,'Footnotes list'!$D$9:$E$58,2,FALSE) ) )","v":""},null,null,null,null,{"$f":"IF(TRIM(BR242)=\"\", \"\", IF(VLOOKUP(BR242,'Footnotes list'!$D$9:$E$58,2,FALSE)=0,\"\",VLOOKUP(BR242,'Footnotes list'!$D$9:$E$58,2,FALSE) ) )","v":""},null,null,null,null,{"$f":"IF(TRIM(BW242)=\"\", \"\", IF(VLOOKUP(BW242,'Footnotes list'!$D$9:$E$58,2,FALSE)=0,\"\",VLOOKUP(BW242,'Footnotes list'!$D$9:$E$58,2,FALSE) ) )","v":""},null,null,null,null,{"$f":"IF(TRIM(CB242)=\"\", \"\", IF(VLOOKUP(CB242,'Footnotes list'!$D$9:$E$58,2,FALSE)=0,\"\",VLOOKUP(CB242,'Footnotes list'!$D$9:$E$58,2,FALSE) ) )","v":""},null,null,null,null,{"$f":"IF(TRIM(CG242)=\"\", \"\", IF(VLOOKUP(CG242,'Footnotes list'!$D$9:$E$58,2,FALSE)=0,\"\",VLOOKUP(CG242,'Footnotes list'!$D$9:$E$58,2,FALSE) ) )","v":""},null,null,null,null,{"$f":"IF(TRIM(CL242)=\"\", \"\", IF(VLOOKUP(CL242,'Footnotes list'!$D$9:$E$58,2,FALSE)=0,\"\",VLOOKUP(CL242,'Footnotes list'!$D$9:$E$58,2,FALSE) ) )","v":""},null,null,null,null,{"$f":"IF(TRIM(CQ242)=\"\", \"\", IF(VLOOKUP(CQ242,'Footnotes list'!$D$9:$E$58,2,FALSE)=0,\"\",VLOOKUP(CQ242,'Footnotes list'!$D$9:$E$58,2,FALSE) ) )","v":""},null,null,null,null,{"$f":"IF(TRIM(CV242)=\"\", \"\", IF(VLOOKUP(CV242,'Footnotes list'!$D$9:$E$58,2,FALSE)=0,\"\",VLOOKUP(CV242,'Footnotes list'!$D$9:$E$58,2,FALSE) ) )","v":""},null,null,null,null,{"$f":"IF(TRIM(DA242)=\"\", \"\", IF(VLOOKUP(DA242,'Footnotes list'!$D$9:$E$58,2,FALSE)=0,\"\",VLOOKUP(DA242,'Footnotes list'!$D$9:$E$58,2,FALSE) ) )","v":""},null,null,null,null,{"$f":"IF(TRIM(DF242)=\"\", \"\", IF(VLOOKUP(DF242,'Footnotes list'!$D$9:$E$58,2,FALSE)=0,\"\",VLOOKUP(DF242,'Footnotes list'!$D$9:$E$58,2,FALSE) ) )","v":""},null,null,null,null,{"$f":"IF(TRIM(DK242)=\"\", \"\", IF(VLOOKUP(DK242,'Footnotes list'!$D$9:$E$58,2,FALSE)=0,\"\",VLOOKUP(DK242,'Footnotes list'!$D$9:$E$58,2,FALSE) ) )","v":""},null,null,null,null,{"$f":"IF(TRIM(DP242)=\"\", \"\", IF(VLOOKUP(DP242,'Footnotes list'!$D$9:$E$58,2,FALSE)=0,\"\",VLOOKUP(DP242,'Footnotes list'!$D$9:$E$58,2,FALSE) ) )","v":""},null,null,null,null,{"$f":"IF(TRIM(DU242)=\"\", \"\", IF(VLOOKUP(DU242,'Footnotes list'!$D$9:$E$58,2,FALSE)=0,\"\",VLOOKUP(DU242,'Footnotes list'!$D$9:$E$58,2,FALSE) ) )","v":""},null,null,null,null,{"$f":"IF(TRIM(DZ242)=\"\", \"\", IF(VLOOKUP(DZ242,'Footnotes list'!$D$9:$E$58,2,FALSE)=0,\"\",VLOOKUP(DZ242,'Footnotes list'!$D$9:$E$58,2,FALSE) ) )","v":""},null,null,null,null,{"$f":"IF(TRIM(EE242)=\"\", \"\", IF(VLOOKUP(EE242,'Footnotes list'!$D$9:$E$58,2,FALSE)=0,\"\",VLOOKUP(EE242,'Footnotes list'!$D$9:$E$58,2,FALSE) ) )","v":""},null,null,null,null,{"$f":"IF(TRIM(EJ242)=\"\", \"\", IF(VLOOKUP(EJ242,'Footnotes list'!$D$9:$E$58,2,FALSE)=0,\"\",VLOOKUP(EJ242,'Footnotes list'!$D$9:$E$58,2,FALSE) ) )","v":""},null,null,null,null,{"$f":"IF(TRIM(EO242)=\"\", \"\", IF(VLOOKUP(EO242,'Footnotes list'!$D$9:$E$58,2,FALSE)=0,\"\",VLOOKUP(EO242,'Footnotes list'!$D$9:$E$58,2,FALSE) ) )","v":""},null,null,null,null,{"$f":"IF(TRIM(ET242)=\"\", \"\", IF(VLOOKUP(ET242,'Footnotes list'!$D$9:$E$58,2,FALSE)=0,\"\",VLOOKUP(ET242,'Footnotes list'!$D$9:$E$58,2,FALSE) ) )","v":""},null,null,null,null,{"$f":"IF(TRIM(EY242)=\"\", \"\", IF(VLOOKUP(EY242,'Footnotes list'!$D$9:$E$58,2,FALSE)=0,\"\",VLOOKUP(EY242,'Footnotes list'!$D$9:$E$58,2,FALSE) ) )","v":""}]
[null,null,"M72","MKT","market activities, including:",null,null,null,null,null,{"$f":"IF(TRIM(J243)=\"\", \"\", IF(VLOOKUP(J243,'Footnotes list'!$D$9:$E$58,2,FALSE)=0,\"\",VLOOKUP(J243,'Footnotes list'!$D$9:$E$58,2,FALSE) ) )","v":""},null,null,null,null,{"$f":"IF(TRIM(O243)=\"\", \"\", IF(VLOOKUP(O243,'Footnotes list'!$D$9:$E$58,2,FALSE)=0,\"\",VLOOKUP(O243,'Footnotes list'!$D$9:$E$58,2,FALSE) ) )","v":""},null,null,null,null,{"$f":"IF(TRIM(T243)=\"\", \"\", IF(VLOOKUP(T243,'Footnotes list'!$D$9:$E$58,2,FALSE)=0,\"\",VLOOKUP(T243,'Footnotes list'!$D$9:$E$58,2,FALSE) ) )","v":""},null,null,null,null,{"$f":"IF(TRIM(Y243)=\"\", \"\", IF(VLOOKUP(Y243,'Footnotes list'!$D$9:$E$58,2,FALSE)=0,\"\",VLOOKUP(Y243,'Footnotes list'!$D$9:$E$58,2,FALSE) ) )","v":""},null,null,null,null,{"$f":"IF(TRIM(AD243)=\"\", \"\", IF(VLOOKUP(AD243,'Footnotes list'!$D$9:$E$58,2,FALSE)=0,\"\",VLOOKUP(AD243,'Footnotes list'!$D$9:$E$58,2,FALSE) ) )","v":""},null,null,null,null,{"$f":"IF(TRIM(AI243)=\"\", \"\", IF(VLOOKUP(AI243,'Footnotes list'!$D$9:$E$58,2,FALSE)=0,\"\",VLOOKUP(AI243,'Footnotes list'!$D$9:$E$58,2,FALSE) ) )","v":""},null,null,null,null,{"$f":"IF(TRIM(AN243)=\"\", \"\", IF(VLOOKUP(AN243,'Footnotes list'!$D$9:$E$58,2,FALSE)=0,\"\",VLOOKUP(AN243,'Footnotes list'!$D$9:$E$58,2,FALSE) ) )","v":""},null,null,null,null,{"$f":"IF(TRIM(AS243)=\"\", \"\", IF(VLOOKUP(AS243,'Footnotes list'!$D$9:$E$58,2,FALSE)=0,\"\",VLOOKUP(AS243,'Footnotes list'!$D$9:$E$58,2,FALSE) ) )","v":""},null,null,null,null,{"$f":"IF(TRIM(AX243)=\"\", \"\", IF(VLOOKUP(AX243,'Footnotes list'!$D$9:$E$58,2,FALSE)=0,\"\",VLOOKUP(AX243,'Footnotes list'!$D$9:$E$58,2,FALSE) ) )","v":""},null,null,null,null,{"$f":"IF(TRIM(BC243)=\"\", \"\", IF(VLOOKUP(BC243,'Footnotes list'!$D$9:$E$58,2,FALSE)=0,\"\",VLOOKUP(BC243,'Footnotes list'!$D$9:$E$58,2,FALSE) ) )","v":""},null,null,null,null,{"$f":"IF(TRIM(BH243)=\"\", \"\", IF(VLOOKUP(BH243,'Footnotes list'!$D$9:$E$58,2,FALSE)=0,\"\",VLOOKUP(BH243,'Footnotes list'!$D$9:$E$58,2,FALSE) ) )","v":""},null,null,null,null,{"$f":"IF(TRIM(BM243)=\"\", \"\", IF(VLOOKUP(BM243,'Footnotes list'!$D$9:$E$58,2,FALSE)=0,\"\",VLOOKUP(BM243,'Footnotes list'!$D$9:$E$58,2,FALSE) ) )","v":""},null,null,null,null,{"$f":"IF(TRIM(BR243)=\"\", \"\", IF(VLOOKUP(BR243,'Footnotes list'!$D$9:$E$58,2,FALSE)=0,\"\",VLOOKUP(BR243,'Footnotes list'!$D$9:$E$58,2,FALSE) ) )","v":""},null,null,null,null,{"$f":"IF(TRIM(BW243)=\"\", \"\", IF(VLOOKUP(BW243,'Footnotes list'!$D$9:$E$58,2,FALSE)=0,\"\",VLOOKUP(BW243,'Footnotes list'!$D$9:$E$58,2,FALSE) ) )","v":""},null,null,null,null,{"$f":"IF(TRIM(CB243)=\"\", \"\", IF(VLOOKUP(CB243,'Footnotes list'!$D$9:$E$58,2,FALSE)=0,\"\",VLOOKUP(CB243,'Footnotes list'!$D$9:$E$58,2,FALSE) ) )","v":""},null,null,null,null,{"$f":"IF(TRIM(CG243)=\"\", \"\", IF(VLOOKUP(CG243,'Footnotes list'!$D$9:$E$58,2,FALSE)=0,\"\",VLOOKUP(CG243,'Footnotes list'!$D$9:$E$58,2,FALSE) ) )","v":""},null,null,null,null,{"$f":"IF(TRIM(CL243)=\"\", \"\", IF(VLOOKUP(CL243,'Footnotes list'!$D$9:$E$58,2,FALSE)=0,\"\",VLOOKUP(CL243,'Footnotes list'!$D$9:$E$58,2,FALSE) ) )","v":""},null,null,null,null,{"$f":"IF(TRIM(CQ243)=\"\", \"\", IF(VLOOKUP(CQ243,'Footnotes list'!$D$9:$E$58,2,FALSE)=0,\"\",VLOOKUP(CQ243,'Footnotes list'!$D$9:$E$58,2,FALSE) ) )","v":""},null,null,null,null,{"$f":"IF(TRIM(CV243)=\"\", \"\", IF(VLOOKUP(CV243,'Footnotes list'!$D$9:$E$58,2,FALSE)=0,\"\",VLOOKUP(CV243,'Footnotes list'!$D$9:$E$58,2,FALSE) ) )","v":""},null,null,null,null,{"$f":"IF(TRIM(DA243)=\"\", \"\", IF(VLOOKUP(DA243,'Footnotes list'!$D$9:$E$58,2,FALSE)=0,\"\",VLOOKUP(DA243,'Footnotes list'!$D$9:$E$58,2,FALSE) ) )","v":""},null,null,null,null,{"$f":"IF(TRIM(DF243)=\"\", \"\", IF(VLOOKUP(DF243,'Footnotes list'!$D$9:$E$58,2,FALSE)=0,\"\",VLOOKUP(DF243,'Footnotes list'!$D$9:$E$58,2,FALSE) ) )","v":""},null,null,null,null,{"$f":"IF(TRIM(DK243)=\"\", \"\", IF(VLOOKUP(DK243,'Footnotes list'!$D$9:$E$58,2,FALSE)=0,\"\",VLOOKUP(DK243,'Footnotes list'!$D$9:$E$58,2,FALSE) ) )","v":""},null,null,null,null,{"$f":"IF(TRIM(DP243)=\"\", \"\", IF(VLOOKUP(DP243,'Footnotes list'!$D$9:$E$58,2,FALSE)=0,\"\",VLOOKUP(DP243,'Footnotes list'!$D$9:$E$58,2,FALSE) ) )","v":""},null,null,null,null,{"$f":"IF(TRIM(DU243)=\"\", \"\", IF(VLOOKUP(DU243,'Footnotes list'!$D$9:$E$58,2,FALSE)=0,\"\",VLOOKUP(DU243,'Footnotes list'!$D$9:$E$58,2,FALSE) ) )","v":""},null,null,null,null,{"$f":"IF(TRIM(DZ243)=\"\", \"\", IF(VLOOKUP(DZ243,'Footnotes list'!$D$9:$E$58,2,FALSE)=0,\"\",VLOOKUP(DZ243,'Footnotes list'!$D$9:$E$58,2,FALSE) ) )","v":""},null,null,null,null,{"$f":"IF(TRIM(EE243)=\"\", \"\", IF(VLOOKUP(EE243,'Footnotes list'!$D$9:$E$58,2,FALSE)=0,\"\",VLOOKUP(EE243,'Footnotes list'!$D$9:$E$58,2,FALSE) ) )","v":""},null,null,null,null,{"$f":"IF(TRIM(EJ243)=\"\", \"\", IF(VLOOKUP(EJ243,'Footnotes list'!$D$9:$E$58,2,FALSE)=0,\"\",VLOOKUP(EJ243,'Footnotes list'!$D$9:$E$58,2,FALSE) ) )","v":""},null,null,null,null,{"$f":"IF(TRIM(EO243)=\"\", \"\", IF(VLOOKUP(EO243,'Footnotes list'!$D$9:$E$58,2,FALSE)=0,\"\",VLOOKUP(EO243,'Footnotes list'!$D$9:$E$58,2,FALSE) ) )","v":""},null,null,null,null,{"$f":"IF(TRIM(ET243)=\"\", \"\", IF(VLOOKUP(ET243,'Footnotes list'!$D$9:$E$58,2,FALSE)=0,\"\",VLOOKUP(ET243,'Footnotes list'!$D$9:$E$58,2,FALSE) ) )","v":""},null,null,null,null,{"$f":"IF(TRIM(EY243)=\"\", \"\", IF(VLOOKUP(EY243,'Footnotes list'!$D$9:$E$58,2,FALSE)=0,\"\",VLOOKUP(EY243,'Footnotes list'!$D$9:$E$58,2,FALSE) ) )","v":""}]
[null,null,"M72","ES_CS","environmental specific services",null,null,null,null,null,{"$f":"IF(TRIM(J244)=\"\", \"\", IF(VLOOKUP(J244,'Footnotes list'!$D$9:$E$58,2,FALSE)=0,\"\",VLOOKUP(J244,'Footnotes list'!$D$9:$E$58,2,FALSE) ) )","v":""},null,null,null,null,{"$f":"IF(TRIM(O244)=\"\", \"\", IF(VLOOKUP(O244,'Footnotes list'!$D$9:$E$58,2,FALSE)=0,\"\",VLOOKUP(O244,'Footnotes list'!$D$9:$E$58,2,FALSE) ) )","v":""},null,null,null,null,{"$f":"IF(TRIM(T244)=\"\", \"\", IF(VLOOKUP(T244,'Footnotes list'!$D$9:$E$58,2,FALSE)=0,\"\",VLOOKUP(T244,'Footnotes list'!$D$9:$E$58,2,FALSE) ) )","v":""},null,null,null,null,{"$f":"IF(TRIM(Y244)=\"\", \"\", IF(VLOOKUP(Y244,'Footnotes list'!$D$9:$E$58,2,FALSE)=0,\"\",VLOOKUP(Y244,'Footnotes list'!$D$9:$E$58,2,FALSE) ) )","v":""},null,null,null,null,{"$f":"IF(TRIM(AD244)=\"\", \"\", IF(VLOOKUP(AD244,'Footnotes list'!$D$9:$E$58,2,FALSE)=0,\"\",VLOOKUP(AD244,'Footnotes list'!$D$9:$E$58,2,FALSE) ) )","v":""},null,null,null,null,{"$f":"IF(TRIM(AI244)=\"\", \"\", IF(VLOOKUP(AI244,'Footnotes list'!$D$9:$E$58,2,FALSE)=0,\"\",VLOOKUP(AI244,'Footnotes list'!$D$9:$E$58,2,FALSE) ) )","v":""},null,null,null,null,{"$f":"IF(TRIM(AN244)=\"\", \"\", IF(VLOOKUP(AN244,'Footnotes list'!$D$9:$E$58,2,FALSE)=0,\"\",VLOOKUP(AN244,'Footnotes list'!$D$9:$E$58,2,FALSE) ) )","v":""},null,null,null,null,{"$f":"IF(TRIM(AS244)=\"\", \"\", IF(VLOOKUP(AS244,'Footnotes list'!$D$9:$E$58,2,FALSE)=0,\"\",VLOOKUP(AS244,'Footnotes list'!$D$9:$E$58,2,FALSE) ) )","v":""},null,null,null,null,{"$f":"IF(TRIM(AX244)=\"\", \"\", IF(VLOOKUP(AX244,'Footnotes list'!$D$9:$E$58,2,FALSE)=0,\"\",VLOOKUP(AX244,'Footnotes list'!$D$9:$E$58,2,FALSE) ) )","v":""},null,null,null,null,{"$f":"IF(TRIM(BC244)=\"\", \"\", IF(VLOOKUP(BC244,'Footnotes list'!$D$9:$E$58,2,FALSE)=0,\"\",VLOOKUP(BC244,'Footnotes list'!$D$9:$E$58,2,FALSE) ) )","v":""},null,null,null,null,{"$f":"IF(TRIM(BH244)=\"\", \"\", IF(VLOOKUP(BH244,'Footnotes list'!$D$9:$E$58,2,FALSE)=0,\"\",VLOOKUP(BH244,'Footnotes list'!$D$9:$E$58,2,FALSE) ) )","v":""},null,null,null,null,{"$f":"IF(TRIM(BM244)=\"\", \"\", IF(VLOOKUP(BM244,'Footnotes list'!$D$9:$E$58,2,FALSE)=0,\"\",VLOOKUP(BM244,'Footnotes list'!$D$9:$E$58,2,FALSE) ) )","v":""},null,null,null,null,{"$f":"IF(TRIM(BR244)=\"\", \"\", IF(VLOOKUP(BR244,'Footnotes list'!$D$9:$E$58,2,FALSE)=0,\"\",VLOOKUP(BR244,'Footnotes list'!$D$9:$E$58,2,FALSE) ) )","v":""},null,null,null,null,{"$f":"IF(TRIM(BW244)=\"\", \"\", IF(VLOOKUP(BW244,'Footnotes list'!$D$9:$E$58,2,FALSE)=0,\"\",VLOOKUP(BW244,'Footnotes list'!$D$9:$E$58,2,FALSE) ) )","v":""},null,null,null,null,{"$f":"IF(TRIM(CB244)=\"\", \"\", IF(VLOOKUP(CB244,'Footnotes list'!$D$9:$E$58,2,FALSE)=0,\"\",VLOOKUP(CB244,'Footnotes list'!$D$9:$E$58,2,FALSE) ) )","v":""},null,null,null,null,{"$f":"IF(TRIM(CG244)=\"\", \"\", IF(VLOOKUP(CG244,'Footnotes list'!$D$9:$E$58,2,FALSE)=0,\"\",VLOOKUP(CG244,'Footnotes list'!$D$9:$E$58,2,FALSE) ) )","v":""},null,null,null,null,{"$f":"IF(TRIM(CL244)=\"\", \"\", IF(VLOOKUP(CL244,'Footnotes list'!$D$9:$E$58,2,FALSE)=0,\"\",VLOOKUP(CL244,'Footnotes list'!$D$9:$E$58,2,FALSE) ) )","v":""},null,null,null,null,{"$f":"IF(TRIM(CQ244)=\"\", \"\", IF(VLOOKUP(CQ244,'Footnotes list'!$D$9:$E$58,2,FALSE)=0,\"\",VLOOKUP(CQ244,'Footnotes list'!$D$9:$E$58,2,FALSE) ) )","v":""},null,null,null,null,{"$f":"IF(TRIM(CV244)=\"\", \"\", IF(VLOOKUP(CV244,'Footnotes list'!$D$9:$E$58,2,FALSE)=0,\"\",VLOOKUP(CV244,'Footnotes list'!$D$9:$E$58,2,FALSE) ) )","v":""},null,null,null,null,{"$f":"IF(TRIM(DA244)=\"\", \"\", IF(VLOOKUP(DA244,'Footnotes list'!$D$9:$E$58,2,FALSE)=0,\"\",VLOOKUP(DA244,'Footnotes list'!$D$9:$E$58,2,FALSE) ) )","v":""},null,null,null,null,{"$f":"IF(TRIM(DF244)=\"\", \"\", IF(VLOOKUP(DF244,'Footnotes list'!$D$9:$E$58,2,FALSE)=0,\"\",VLOOKUP(DF244,'Footnotes list'!$D$9:$E$58,2,FALSE) ) )","v":""},null,null,null,null,{"$f":"IF(TRIM(DK244)=\"\", \"\", IF(VLOOKUP(DK244,'Footnotes list'!$D$9:$E$58,2,FALSE)=0,\"\",VLOOKUP(DK244,'Footnotes list'!$D$9:$E$58,2,FALSE) ) )","v":""},null,null,null,null,{"$f":"IF(TRIM(DP244)=\"\", \"\", IF(VLOOKUP(DP244,'Footnotes list'!$D$9:$E$58,2,FALSE)=0,\"\",VLOOKUP(DP244,'Footnotes list'!$D$9:$E$58,2,FALSE) ) )","v":""},null,null,null,null,{"$f":"IF(TRIM(DU244)=\"\", \"\", IF(VLOOKUP(DU244,'Footnotes list'!$D$9:$E$58,2,FALSE)=0,\"\",VLOOKUP(DU244,'Footnotes list'!$D$9:$E$58,2,FALSE) ) )","v":""},null,null,null,null,{"$f":"IF(TRIM(DZ244)=\"\", \"\", IF(VLOOKUP(DZ244,'Footnotes list'!$D$9:$E$58,2,FALSE)=0,\"\",VLOOKUP(DZ244,'Footnotes list'!$D$9:$E$58,2,FALSE) ) )","v":""},null,null,null,null,{"$f":"IF(TRIM(EE244)=\"\", \"\", IF(VLOOKUP(EE244,'Footnotes list'!$D$9:$E$58,2,FALSE)=0,\"\",VLOOKUP(EE244,'Footnotes list'!$D$9:$E$58,2,FALSE) ) )","v":""},null,null,null,null,{"$f":"IF(TRIM(EJ244)=\"\", \"\", IF(VLOOKUP(EJ244,'Footnotes list'!$D$9:$E$58,2,FALSE)=0,\"\",VLOOKUP(EJ244,'Footnotes list'!$D$9:$E$58,2,FALSE) ) )","v":""},null,null,null,null,{"$f":"IF(TRIM(EO244)=\"\", \"\", IF(VLOOKUP(EO244,'Footnotes list'!$D$9:$E$58,2,FALSE)=0,\"\",VLOOKUP(EO244,'Footnotes list'!$D$9:$E$58,2,FALSE) ) )","v":""},null,null,null,null,{"$f":"IF(TRIM(ET244)=\"\", \"\", IF(VLOOKUP(ET244,'Footnotes list'!$D$9:$E$58,2,FALSE)=0,\"\",VLOOKUP(ET244,'Footnotes list'!$D$9:$E$58,2,FALSE) ) )","v":""},null,null,null,null,{"$f":"IF(TRIM(EY244)=\"\", \"\", IF(VLOOKUP(EY244,'Footnotes list'!$D$9:$E$58,2,FALSE)=0,\"\",VLOOKUP(EY244,'Footnotes list'!$D$9:$E$58,2,FALSE) ) )","v":""}]
[null,null,"M72","C_REP","cleaner and resource efficient products",null,null,null,null,null,{"$f":"IF(TRIM(J245)=\"\", \"\", IF(VLOOKUP(J245,'Footnotes list'!$D$9:$E$58,2,FALSE)=0,\"\",VLOOKUP(J245,'Footnotes list'!$D$9:$E$58,2,FALSE) ) )","v":""},null,null,null,null,{"$f":"IF(TRIM(O245)=\"\", \"\", IF(VLOOKUP(O245,'Footnotes list'!$D$9:$E$58,2,FALSE)=0,\"\",VLOOKUP(O245,'Footnotes list'!$D$9:$E$58,2,FALSE) ) )","v":""},null,null,null,null,{"$f":"IF(TRIM(T245)=\"\", \"\", IF(VLOOKUP(T245,'Footnotes list'!$D$9:$E$58,2,FALSE)=0,\"\",VLOOKUP(T245,'Footnotes list'!$D$9:$E$58,2,FALSE) ) )","v":""},null,null,null,null,{"$f":"IF(TRIM(Y245)=\"\", \"\", IF(VLOOKUP(Y245,'Footnotes list'!$D$9:$E$58,2,FALSE)=0,\"\",VLOOKUP(Y245,'Footnotes list'!$D$9:$E$58,2,FALSE) ) )","v":""},null,null,null,null,{"$f":"IF(TRIM(AD245)=\"\", \"\", IF(VLOOKUP(AD245,'Footnotes list'!$D$9:$E$58,2,FALSE)=0,\"\",VLOOKUP(AD245,'Footnotes list'!$D$9:$E$58,2,FALSE) ) )","v":""},null,null,null,null,{"$f":"IF(TRIM(AI245)=\"\", \"\", IF(VLOOKUP(AI245,'Footnotes list'!$D$9:$E$58,2,FALSE)=0,\"\",VLOOKUP(AI245,'Footnotes list'!$D$9:$E$58,2,FALSE) ) )","v":""},null,null,null,null,{"$f":"IF(TRIM(AN245)=\"\", \"\", IF(VLOOKUP(AN245,'Footnotes list'!$D$9:$E$58,2,FALSE)=0,\"\",VLOOKUP(AN245,'Footnotes list'!$D$9:$E$58,2,FALSE) ) )","v":""},null,null,null,null,{"$f":"IF(TRIM(AS245)=\"\", \"\", IF(VLOOKUP(AS245,'Footnotes list'!$D$9:$E$58,2,FALSE)=0,\"\",VLOOKUP(AS245,'Footnotes list'!$D$9:$E$58,2,FALSE) ) )","v":""},null,null,null,null,{"$f":"IF(TRIM(AX245)=\"\", \"\", IF(VLOOKUP(AX245,'Footnotes list'!$D$9:$E$58,2,FALSE)=0,\"\",VLOOKUP(AX245,'Footnotes list'!$D$9:$E$58,2,FALSE) ) )","v":""},null,null,null,null,{"$f":"IF(TRIM(BC245)=\"\", \"\", IF(VLOOKUP(BC245,'Footnotes list'!$D$9:$E$58,2,FALSE)=0,\"\",VLOOKUP(BC245,'Footnotes list'!$D$9:$E$58,2,FALSE) ) )","v":""},null,null,null,null,{"$f":"IF(TRIM(BH245)=\"\", \"\", IF(VLOOKUP(BH245,'Footnotes list'!$D$9:$E$58,2,FALSE)=0,\"\",VLOOKUP(BH245,'Footnotes list'!$D$9:$E$58,2,FALSE) ) )","v":""},null,null,null,null,{"$f":"IF(TRIM(BM245)=\"\", \"\", IF(VLOOKUP(BM245,'Footnotes list'!$D$9:$E$58,2,FALSE)=0,\"\",VLOOKUP(BM245,'Footnotes list'!$D$9:$E$58,2,FALSE) ) )","v":""},null,null,null,null,{"$f":"IF(TRIM(BR245)=\"\", \"\", IF(VLOOKUP(BR245,'Footnotes list'!$D$9:$E$58,2,FALSE)=0,\"\",VLOOKUP(BR245,'Footnotes list'!$D$9:$E$58,2,FALSE) ) )","v":""},null,null,null,null,{"$f":"IF(TRIM(BW245)=\"\", \"\", IF(VLOOKUP(BW245,'Footnotes list'!$D$9:$E$58,2,FALSE)=0,\"\",VLOOKUP(BW245,'Footnotes list'!$D$9:$E$58,2,FALSE) ) )","v":""},null,null,null,null,{"$f":"IF(TRIM(CB245)=\"\", \"\", IF(VLOOKUP(CB245,'Footnotes list'!$D$9:$E$58,2,FALSE)=0,\"\",VLOOKUP(CB245,'Footnotes list'!$D$9:$E$58,2,FALSE) ) )","v":""},null,null,null,null,{"$f":"IF(TRIM(CG245)=\"\", \"\", IF(VLOOKUP(CG245,'Footnotes list'!$D$9:$E$58,2,FALSE)=0,\"\",VLOOKUP(CG245,'Footnotes list'!$D$9:$E$58,2,FALSE) ) )","v":""},null,null,null,null,{"$f":"IF(TRIM(CL245)=\"\", \"\", IF(VLOOKUP(CL245,'Footnotes list'!$D$9:$E$58,2,FALSE)=0,\"\",VLOOKUP(CL245,'Footnotes list'!$D$9:$E$58,2,FALSE) ) )","v":""},null,null,null,null,{"$f":"IF(TRIM(CQ245)=\"\", \"\", IF(VLOOKUP(CQ245,'Footnotes list'!$D$9:$E$58,2,FALSE)=0,\"\",VLOOKUP(CQ245,'Footnotes list'!$D$9:$E$58,2,FALSE) ) )","v":""},null,null,null,null,{"$f":"IF(TRIM(CV245)=\"\", \"\", IF(VLOOKUP(CV245,'Footnotes list'!$D$9:$E$58,2,FALSE)=0,\"\",VLOOKUP(CV245,'Footnotes list'!$D$9:$E$58,2,FALSE) ) )","v":""},null,null,null,null,{"$f":"IF(TRIM(DA245)=\"\", \"\", IF(VLOOKUP(DA245,'Footnotes list'!$D$9:$E$58,2,FALSE)=0,\"\",VLOOKUP(DA245,'Footnotes list'!$D$9:$E$58,2,FALSE) ) )","v":""},null,null,null,null,{"$f":"IF(TRIM(DF245)=\"\", \"\", IF(VLOOKUP(DF245,'Footnotes list'!$D$9:$E$58,2,FALSE)=0,\"\",VLOOKUP(DF245,'Footnotes list'!$D$9:$E$58,2,FALSE) ) )","v":""},null,null,null,null,{"$f":"IF(TRIM(DK245)=\"\", \"\", IF(VLOOKUP(DK245,'Footnotes list'!$D$9:$E$58,2,FALSE)=0,\"\",VLOOKUP(DK245,'Footnotes list'!$D$9:$E$58,2,FALSE) ) )","v":""},null,null,null,null,{"$f":"IF(TRIM(DP245)=\"\", \"\", IF(VLOOKUP(DP245,'Footnotes list'!$D$9:$E$58,2,FALSE)=0,\"\",VLOOKUP(DP245,'Footnotes list'!$D$9:$E$58,2,FALSE) ) )","v":""},null,null,null,null,{"$f":"IF(TRIM(DU245)=\"\", \"\", IF(VLOOKUP(DU245,'Footnotes list'!$D$9:$E$58,2,FALSE)=0,\"\",VLOOKUP(DU245,'Footnotes list'!$D$9:$E$58,2,FALSE) ) )","v":""},null,null,null,null,{"$f":"IF(TRIM(DZ245)=\"\", \"\", IF(VLOOKUP(DZ245,'Footnotes list'!$D$9:$E$58,2,FALSE)=0,\"\",VLOOKUP(DZ245,'Footnotes list'!$D$9:$E$58,2,FALSE) ) )","v":""},null,null,null,null,{"$f":"IF(TRIM(EE245)=\"\", \"\", IF(VLOOKUP(EE245,'Footnotes list'!$D$9:$E$58,2,FALSE)=0,\"\",VLOOKUP(EE245,'Footnotes list'!$D$9:$E$58,2,FALSE) ) )","v":""},null,null,null,null,{"$f":"IF(TRIM(EJ245)=\"\", \"\", IF(VLOOKUP(EJ245,'Footnotes list'!$D$9:$E$58,2,FALSE)=0,\"\",VLOOKUP(EJ245,'Footnotes list'!$D$9:$E$58,2,FALSE) ) )","v":""},null,null,null,null,{"$f":"IF(TRIM(EO245)=\"\", \"\", IF(VLOOKUP(EO245,'Footnotes list'!$D$9:$E$58,2,FALSE)=0,\"\",VLOOKUP(EO245,'Footnotes list'!$D$9:$E$58,2,FALSE) ) )","v":""},null,null,null,null,{"$f":"IF(TRIM(ET245)=\"\", \"\", IF(VLOOKUP(ET245,'Footnotes list'!$D$9:$E$58,2,FALSE)=0,\"\",VLOOKUP(ET245,'Footnotes list'!$D$9:$E$58,2,FALSE) ) )","v":""},null,null,null,null,{"$f":"IF(TRIM(EY245)=\"\", \"\", IF(VLOOKUP(EY245,'Footnotes list'!$D$9:$E$58,2,FALSE)=0,\"\",VLOOKUP(EY245,'Footnotes list'!$D$9:$E$58,2,FALSE) ) )","v":""}]
[null,null,"M73-M75","TOT_EGSS","Total M73-M75 - Advertising and market research; Other professional, scientific and technical activities; Veterinary activities, of which:",null,null,null,null,null,{"$f":"IF(TRIM(J246)=\"\", \"\", IF(VLOOKUP(J246,'Footnotes list'!$D$9:$E$58,2,FALSE)=0,\"\",VLOOKUP(J246,'Footnotes list'!$D$9:$E$58,2,FALSE) ) )","v":""},null,null,null,null,{"$f":"IF(TRIM(O246)=\"\", \"\", IF(VLOOKUP(O246,'Footnotes list'!$D$9:$E$58,2,FALSE)=0,\"\",VLOOKUP(O246,'Footnotes list'!$D$9:$E$58,2,FALSE) ) )","v":""},null,null,null,null,{"$f":"IF(TRIM(T246)=\"\", \"\", IF(VLOOKUP(T246,'Footnotes list'!$D$9:$E$58,2,FALSE)=0,\"\",VLOOKUP(T246,'Footnotes list'!$D$9:$E$58,2,FALSE) ) )","v":""},null,null,null,null,{"$f":"IF(TRIM(Y246)=\"\", \"\", IF(VLOOKUP(Y246,'Footnotes list'!$D$9:$E$58,2,FALSE)=0,\"\",VLOOKUP(Y246,'Footnotes list'!$D$9:$E$58,2,FALSE) ) )","v":""},null,null,null,null,{"$f":"IF(TRIM(AD246)=\"\", \"\", IF(VLOOKUP(AD246,'Footnotes list'!$D$9:$E$58,2,FALSE)=0,\"\",VLOOKUP(AD246,'Footnotes list'!$D$9:$E$58,2,FALSE) ) )","v":""},null,null,null,null,{"$f":"IF(TRIM(AI246)=\"\", \"\", IF(VLOOKUP(AI246,'Footnotes list'!$D$9:$E$58,2,FALSE)=0,\"\",VLOOKUP(AI246,'Footnotes list'!$D$9:$E$58,2,FALSE) ) )","v":""},null,null,null,null,{"$f":"IF(TRIM(AN246)=\"\", \"\", IF(VLOOKUP(AN246,'Footnotes list'!$D$9:$E$58,2,FALSE)=0,\"\",VLOOKUP(AN246,'Footnotes list'!$D$9:$E$58,2,FALSE) ) )","v":""},null,null,null,null,{"$f":"IF(TRIM(AS246)=\"\", \"\", IF(VLOOKUP(AS246,'Footnotes list'!$D$9:$E$58,2,FALSE)=0,\"\",VLOOKUP(AS246,'Footnotes list'!$D$9:$E$58,2,FALSE) ) )","v":""},null,null,null,null,{"$f":"IF(TRIM(AX246)=\"\", \"\", IF(VLOOKUP(AX246,'Footnotes list'!$D$9:$E$58,2,FALSE)=0,\"\",VLOOKUP(AX246,'Footnotes list'!$D$9:$E$58,2,FALSE) ) )","v":""},null,null,null,null,{"$f":"IF(TRIM(BC246)=\"\", \"\", IF(VLOOKUP(BC246,'Footnotes list'!$D$9:$E$58,2,FALSE)=0,\"\",VLOOKUP(BC246,'Footnotes list'!$D$9:$E$58,2,FALSE) ) )","v":""},null,null,null,null,{"$f":"IF(TRIM(BH246)=\"\", \"\", IF(VLOOKUP(BH246,'Footnotes list'!$D$9:$E$58,2,FALSE)=0,\"\",VLOOKUP(BH246,'Footnotes list'!$D$9:$E$58,2,FALSE) ) )","v":""},null,null,null,null,{"$f":"IF(TRIM(BM246)=\"\", \"\", IF(VLOOKUP(BM246,'Footnotes list'!$D$9:$E$58,2,FALSE)=0,\"\",VLOOKUP(BM246,'Footnotes list'!$D$9:$E$58,2,FALSE) ) )","v":""},null,null,null,null,{"$f":"IF(TRIM(BR246)=\"\", \"\", IF(VLOOKUP(BR246,'Footnotes list'!$D$9:$E$58,2,FALSE)=0,\"\",VLOOKUP(BR246,'Footnotes list'!$D$9:$E$58,2,FALSE) ) )","v":""},null,null,null,null,{"$f":"IF(TRIM(BW246)=\"\", \"\", IF(VLOOKUP(BW246,'Footnotes list'!$D$9:$E$58,2,FALSE)=0,\"\",VLOOKUP(BW246,'Footnotes list'!$D$9:$E$58,2,FALSE) ) )","v":""},null,null,null,null,{"$f":"IF(TRIM(CB246)=\"\", \"\", IF(VLOOKUP(CB246,'Footnotes list'!$D$9:$E$58,2,FALSE)=0,\"\",VLOOKUP(CB246,'Footnotes list'!$D$9:$E$58,2,FALSE) ) )","v":""},null,null,null,null,{"$f":"IF(TRIM(CG246)=\"\", \"\", IF(VLOOKUP(CG246,'Footnotes list'!$D$9:$E$58,2,FALSE)=0,\"\",VLOOKUP(CG246,'Footnotes list'!$D$9:$E$58,2,FALSE) ) )","v":""},null,null,null,null,{"$f":"IF(TRIM(CL246)=\"\", \"\", IF(VLOOKUP(CL246,'Footnotes list'!$D$9:$E$58,2,FALSE)=0,\"\",VLOOKUP(CL246,'Footnotes list'!$D$9:$E$58,2,FALSE) ) )","v":""},null,null,null,null,{"$f":"IF(TRIM(CQ246)=\"\", \"\", IF(VLOOKUP(CQ246,'Footnotes list'!$D$9:$E$58,2,FALSE)=0,\"\",VLOOKUP(CQ246,'Footnotes list'!$D$9:$E$58,2,FALSE) ) )","v":""},null,null,null,null,{"$f":"IF(TRIM(CV246)=\"\", \"\", IF(VLOOKUP(CV246,'Footnotes list'!$D$9:$E$58,2,FALSE)=0,\"\",VLOOKUP(CV246,'Footnotes list'!$D$9:$E$58,2,FALSE) ) )","v":""},null,null,null,null,{"$f":"IF(TRIM(DA246)=\"\", \"\", IF(VLOOKUP(DA246,'Footnotes list'!$D$9:$E$58,2,FALSE)=0,\"\",VLOOKUP(DA246,'Footnotes list'!$D$9:$E$58,2,FALSE) ) )","v":""},null,null,null,null,{"$f":"IF(TRIM(DF246)=\"\", \"\", IF(VLOOKUP(DF246,'Footnotes list'!$D$9:$E$58,2,FALSE)=0,\"\",VLOOKUP(DF246,'Footnotes list'!$D$9:$E$58,2,FALSE) ) )","v":""},null,null,null,null,{"$f":"IF(TRIM(DK246)=\"\", \"\", IF(VLOOKUP(DK246,'Footnotes list'!$D$9:$E$58,2,FALSE)=0,\"\",VLOOKUP(DK246,'Footnotes list'!$D$9:$E$58,2,FALSE) ) )","v":""},null,null,null,null,{"$f":"IF(TRIM(DP246)=\"\", \"\", IF(VLOOKUP(DP246,'Footnotes list'!$D$9:$E$58,2,FALSE)=0,\"\",VLOOKUP(DP246,'Footnotes list'!$D$9:$E$58,2,FALSE) ) )","v":""},null,null,null,null,{"$f":"IF(TRIM(DU246)=\"\", \"\", IF(VLOOKUP(DU246,'Footnotes list'!$D$9:$E$58,2,FALSE)=0,\"\",VLOOKUP(DU246,'Footnotes list'!$D$9:$E$58,2,FALSE) ) )","v":""},null,null,null,null,{"$f":"IF(TRIM(DZ246)=\"\", \"\", IF(VLOOKUP(DZ246,'Footnotes list'!$D$9:$E$58,2,FALSE)=0,\"\",VLOOKUP(DZ246,'Footnotes list'!$D$9:$E$58,2,FALSE) ) )","v":""},null,null,null,null,{"$f":"IF(TRIM(EE246)=\"\", \"\", IF(VLOOKUP(EE246,'Footnotes list'!$D$9:$E$58,2,FALSE)=0,\"\",VLOOKUP(EE246,'Footnotes list'!$D$9:$E$58,2,FALSE) ) )","v":""},null,null,null,null,{"$f":"IF(TRIM(EJ246)=\"\", \"\", IF(VLOOKUP(EJ246,'Footnotes list'!$D$9:$E$58,2,FALSE)=0,\"\",VLOOKUP(EJ246,'Footnotes list'!$D$9:$E$58,2,FALSE) ) )","v":""},null,null,null,null,{"$f":"IF(TRIM(EO246)=\"\", \"\", IF(VLOOKUP(EO246,'Footnotes list'!$D$9:$E$58,2,FALSE)=0,\"\",VLOOKUP(EO246,'Footnotes list'!$D$9:$E$58,2,FALSE) ) )","v":""},null,null,null,null,{"$f":"IF(TRIM(ET246)=\"\", \"\", IF(VLOOKUP(ET246,'Footnotes list'!$D$9:$E$58,2,FALSE)=0,\"\",VLOOKUP(ET246,'Footnotes list'!$D$9:$E$58,2,FALSE) ) )","v":""},null,null,null,null,{"$f":"IF(TRIM(EY246)=\"\", \"\", IF(VLOOKUP(EY246,'Footnotes list'!$D$9:$E$58,2,FALSE)=0,\"\",VLOOKUP(EY246,'Footnotes list'!$D$9:$E$58,2,FALSE) ) )","v":""}]
[null,null,"M73-M75","ANC","ancillary activities",null,null,null,null,null,{"$f":"IF(TRIM(J247)=\"\", \"\", IF(VLOOKUP(J247,'Footnotes list'!$D$9:$E$58,2,FALSE)=0,\"\",VLOOKUP(J247,'Footnotes list'!$D$9:$E$58,2,FALSE) ) )","v":""},null,null,null,null,{"$f":"IF(TRIM(O247)=\"\", \"\", IF(VLOOKUP(O247,'Footnotes list'!$D$9:$E$58,2,FALSE)=0,\"\",VLOOKUP(O247,'Footnotes list'!$D$9:$E$58,2,FALSE) ) )","v":""},null,null,null,null,{"$f":"IF(TRIM(T247)=\"\", \"\", IF(VLOOKUP(T247,'Footnotes list'!$D$9:$E$58,2,FALSE)=0,\"\",VLOOKUP(T247,'Footnotes list'!$D$9:$E$58,2,FALSE) ) )","v":""},null,null,null,null,{"$f":"IF(TRIM(Y247)=\"\", \"\", IF(VLOOKUP(Y247,'Footnotes list'!$D$9:$E$58,2,FALSE)=0,\"\",VLOOKUP(Y247,'Footnotes list'!$D$9:$E$58,2,FALSE) ) )","v":""},null,null,null,null,{"$f":"IF(TRIM(AD247)=\"\", \"\", IF(VLOOKUP(AD247,'Footnotes list'!$D$9:$E$58,2,FALSE)=0,\"\",VLOOKUP(AD247,'Footnotes list'!$D$9:$E$58,2,FALSE) ) )","v":""},null,null,null,null,{"$f":"IF(TRIM(AI247)=\"\", \"\", IF(VLOOKUP(AI247,'Footnotes list'!$D$9:$E$58,2,FALSE)=0,\"\",VLOOKUP(AI247,'Footnotes list'!$D$9:$E$58,2,FALSE) ) )","v":""},null,null,null,null,{"$f":"IF(TRIM(AN247)=\"\", \"\", IF(VLOOKUP(AN247,'Footnotes list'!$D$9:$E$58,2,FALSE)=0,\"\",VLOOKUP(AN247,'Footnotes list'!$D$9:$E$58,2,FALSE) ) )","v":""},null,null,null,null,{"$f":"IF(TRIM(AS247)=\"\", \"\", IF(VLOOKUP(AS247,'Footnotes list'!$D$9:$E$58,2,FALSE)=0,\"\",VLOOKUP(AS247,'Footnotes list'!$D$9:$E$58,2,FALSE) ) )","v":""},null,null,null,null,{"$f":"IF(TRIM(AX247)=\"\", \"\", IF(VLOOKUP(AX247,'Footnotes list'!$D$9:$E$58,2,FALSE)=0,\"\",VLOOKUP(AX247,'Footnotes list'!$D$9:$E$58,2,FALSE) ) )","v":""},null,null,null,null,{"$f":"IF(TRIM(BC247)=\"\", \"\", IF(VLOOKUP(BC247,'Footnotes list'!$D$9:$E$58,2,FALSE)=0,\"\",VLOOKUP(BC247,'Footnotes list'!$D$9:$E$58,2,FALSE) ) )","v":""},null,null,null,null,{"$f":"IF(TRIM(BH247)=\"\", \"\", IF(VLOOKUP(BH247,'Footnotes list'!$D$9:$E$58,2,FALSE)=0,\"\",VLOOKUP(BH247,'Footnotes list'!$D$9:$E$58,2,FALSE) ) )","v":""},null,null,null,null,{"$f":"IF(TRIM(BM247)=\"\", \"\", IF(VLOOKUP(BM247,'Footnotes list'!$D$9:$E$58,2,FALSE)=0,\"\",VLOOKUP(BM247,'Footnotes list'!$D$9:$E$58,2,FALSE) ) )","v":""},null,null,null,null,{"$f":"IF(TRIM(BR247)=\"\", \"\", IF(VLOOKUP(BR247,'Footnotes list'!$D$9:$E$58,2,FALSE)=0,\"\",VLOOKUP(BR247,'Footnotes list'!$D$9:$E$58,2,FALSE) ) )","v":""},null,null,null,null,{"$f":"IF(TRIM(BW247)=\"\", \"\", IF(VLOOKUP(BW247,'Footnotes list'!$D$9:$E$58,2,FALSE)=0,\"\",VLOOKUP(BW247,'Footnotes list'!$D$9:$E$58,2,FALSE) ) )","v":""},null,null,null,null,{"$f":"IF(TRIM(CB247)=\"\", \"\", IF(VLOOKUP(CB247,'Footnotes list'!$D$9:$E$58,2,FALSE)=0,\"\",VLOOKUP(CB247,'Footnotes list'!$D$9:$E$58,2,FALSE) ) )","v":""},null,null,null,null,{"$f":"IF(TRIM(CG247)=\"\", \"\", IF(VLOOKUP(CG247,'Footnotes list'!$D$9:$E$58,2,FALSE)=0,\"\",VLOOKUP(CG247,'Footnotes list'!$D$9:$E$58,2,FALSE) ) )","v":""},null,null,null,null,{"$f":"IF(TRIM(CL247)=\"\", \"\", IF(VLOOKUP(CL247,'Footnotes list'!$D$9:$E$58,2,FALSE)=0,\"\",VLOOKUP(CL247,'Footnotes list'!$D$9:$E$58,2,FALSE) ) )","v":""},null,null,null,null,{"$f":"IF(TRIM(CQ247)=\"\", \"\", IF(VLOOKUP(CQ247,'Footnotes list'!$D$9:$E$58,2,FALSE)=0,\"\",VLOOKUP(CQ247,'Footnotes list'!$D$9:$E$58,2,FALSE) ) )","v":""},null,null,null,null,{"$f":"IF(TRIM(CV247)=\"\", \"\", IF(VLOOKUP(CV247,'Footnotes list'!$D$9:$E$58,2,FALSE)=0,\"\",VLOOKUP(CV247,'Footnotes list'!$D$9:$E$58,2,FALSE) ) )","v":""},null,null,null,null,{"$f":"IF(TRIM(DA247)=\"\", \"\", IF(VLOOKUP(DA247,'Footnotes list'!$D$9:$E$58,2,FALSE)=0,\"\",VLOOKUP(DA247,'Footnotes list'!$D$9:$E$58,2,FALSE) ) )","v":""},null,null,null,null,{"$f":"IF(TRIM(DF247)=\"\", \"\", IF(VLOOKUP(DF247,'Footnotes list'!$D$9:$E$58,2,FALSE)=0,\"\",VLOOKUP(DF247,'Footnotes list'!$D$9:$E$58,2,FALSE) ) )","v":""},null,null,null,null,{"$f":"IF(TRIM(DK247)=\"\", \"\", IF(VLOOKUP(DK247,'Footnotes list'!$D$9:$E$58,2,FALSE)=0,\"\",VLOOKUP(DK247,'Footnotes list'!$D$9:$E$58,2,FALSE) ) )","v":""},null,null,null,null,{"$f":"IF(TRIM(DP247)=\"\", \"\", IF(VLOOKUP(DP247,'Footnotes list'!$D$9:$E$58,2,FALSE)=0,\"\",VLOOKUP(DP247,'Footnotes list'!$D$9:$E$58,2,FALSE) ) )","v":""},null,null,null,null,{"$f":"IF(TRIM(DU247)=\"\", \"\", IF(VLOOKUP(DU247,'Footnotes list'!$D$9:$E$58,2,FALSE)=0,\"\",VLOOKUP(DU247,'Footnotes list'!$D$9:$E$58,2,FALSE) ) )","v":""},null,null,null,null,{"$f":"IF(TRIM(DZ247)=\"\", \"\", IF(VLOOKUP(DZ247,'Footnotes list'!$D$9:$E$58,2,FALSE)=0,\"\",VLOOKUP(DZ247,'Footnotes list'!$D$9:$E$58,2,FALSE) ) )","v":""},null,null,null,null,{"$f":"IF(TRIM(EE247)=\"\", \"\", IF(VLOOKUP(EE247,'Footnotes list'!$D$9:$E$58,2,FALSE)=0,\"\",VLOOKUP(EE247,'Footnotes list'!$D$9:$E$58,2,FALSE) ) )","v":""},null,null,null,null,{"$f":"IF(TRIM(EJ247)=\"\", \"\", IF(VLOOKUP(EJ247,'Footnotes list'!$D$9:$E$58,2,FALSE)=0,\"\",VLOOKUP(EJ247,'Footnotes list'!$D$9:$E$58,2,FALSE) ) )","v":""},null,null,null,null,{"$f":"IF(TRIM(EO247)=\"\", \"\", IF(VLOOKUP(EO247,'Footnotes list'!$D$9:$E$58,2,FALSE)=0,\"\",VLOOKUP(EO247,'Footnotes list'!$D$9:$E$58,2,FALSE) ) )","v":""},null,null,null,null,{"$f":"IF(TRIM(ET247)=\"\", \"\", IF(VLOOKUP(ET247,'Footnotes list'!$D$9:$E$58,2,FALSE)=0,\"\",VLOOKUP(ET247,'Footnotes list'!$D$9:$E$58,2,FALSE) ) )","v":""},null,null,null,null,{"$f":"IF(TRIM(EY247)=\"\", \"\", IF(VLOOKUP(EY247,'Footnotes list'!$D$9:$E$58,2,FALSE)=0,\"\",VLOOKUP(EY247,'Footnotes list'!$D$9:$E$58,2,FALSE) ) )","v":""}]
[null,null,"M73-M75","NMKT","non-market activities",null,null,null,null,null,{"$f":"IF(TRIM(J248)=\"\", \"\", IF(VLOOKUP(J248,'Footnotes list'!$D$9:$E$58,2,FALSE)=0,\"\",VLOOKUP(J248,'Footnotes list'!$D$9:$E$58,2,FALSE) ) )","v":""},null,null,null,null,{"$f":"IF(TRIM(O248)=\"\", \"\", IF(VLOOKUP(O248,'Footnotes list'!$D$9:$E$58,2,FALSE)=0,\"\",VLOOKUP(O248,'Footnotes list'!$D$9:$E$58,2,FALSE) ) )","v":""},null,null,null,null,{"$f":"IF(TRIM(T248)=\"\", \"\", IF(VLOOKUP(T248,'Footnotes list'!$D$9:$E$58,2,FALSE)=0,\"\",VLOOKUP(T248,'Footnotes list'!$D$9:$E$58,2,FALSE) ) )","v":""},null,null,null,null,{"$f":"IF(TRIM(Y248)=\"\", \"\", IF(VLOOKUP(Y248,'Footnotes list'!$D$9:$E$58,2,FALSE)=0,\"\",VLOOKUP(Y248,'Footnotes list'!$D$9:$E$58,2,FALSE) ) )","v":""},null,null,null,null,{"$f":"IF(TRIM(AD248)=\"\", \"\", IF(VLOOKUP(AD248,'Footnotes list'!$D$9:$E$58,2,FALSE)=0,\"\",VLOOKUP(AD248,'Footnotes list'!$D$9:$E$58,2,FALSE) ) )","v":""},null,null,null,null,{"$f":"IF(TRIM(AI248)=\"\", \"\", IF(VLOOKUP(AI248,'Footnotes list'!$D$9:$E$58,2,FALSE)=0,\"\",VLOOKUP(AI248,'Footnotes list'!$D$9:$E$58,2,FALSE) ) )","v":""},null,null,null,null,{"$f":"IF(TRIM(AN248)=\"\", \"\", IF(VLOOKUP(AN248,'Footnotes list'!$D$9:$E$58,2,FALSE)=0,\"\",VLOOKUP(AN248,'Footnotes list'!$D$9:$E$58,2,FALSE) ) )","v":""},null,null,null,null,{"$f":"IF(TRIM(AS248)=\"\", \"\", IF(VLOOKUP(AS248,'Footnotes list'!$D$9:$E$58,2,FALSE)=0,\"\",VLOOKUP(AS248,'Footnotes list'!$D$9:$E$58,2,FALSE) ) )","v":""},null,null,null,null,{"$f":"IF(TRIM(AX248)=\"\", \"\", IF(VLOOKUP(AX248,'Footnotes list'!$D$9:$E$58,2,FALSE)=0,\"\",VLOOKUP(AX248,'Footnotes list'!$D$9:$E$58,2,FALSE) ) )","v":""},null,null,null,null,{"$f":"IF(TRIM(BC248)=\"\", \"\", IF(VLOOKUP(BC248,'Footnotes list'!$D$9:$E$58,2,FALSE)=0,\"\",VLOOKUP(BC248,'Footnotes list'!$D$9:$E$58,2,FALSE) ) )","v":""},null,null,null,null,{"$f":"IF(TRIM(BH248)=\"\", \"\", IF(VLOOKUP(BH248,'Footnotes list'!$D$9:$E$58,2,FALSE)=0,\"\",VLOOKUP(BH248,'Footnotes list'!$D$9:$E$58,2,FALSE) ) )","v":""},null,null,null,null,{"$f":"IF(TRIM(BM248)=\"\", \"\", IF(VLOOKUP(BM248,'Footnotes list'!$D$9:$E$58,2,FALSE)=0,\"\",VLOOKUP(BM248,'Footnotes list'!$D$9:$E$58,2,FALSE) ) )","v":""},null,null,null,null,{"$f":"IF(TRIM(BR248)=\"\", \"\", IF(VLOOKUP(BR248,'Footnotes list'!$D$9:$E$58,2,FALSE)=0,\"\",VLOOKUP(BR248,'Footnotes list'!$D$9:$E$58,2,FALSE) ) )","v":""},null,null,null,null,{"$f":"IF(TRIM(BW248)=\"\", \"\", IF(VLOOKUP(BW248,'Footnotes list'!$D$9:$E$58,2,FALSE)=0,\"\",VLOOKUP(BW248,'Footnotes list'!$D$9:$E$58,2,FALSE) ) )","v":""},null,null,null,null,{"$f":"IF(TRIM(CB248)=\"\", \"\", IF(VLOOKUP(CB248,'Footnotes list'!$D$9:$E$58,2,FALSE)=0,\"\",VLOOKUP(CB248,'Footnotes list'!$D$9:$E$58,2,FALSE) ) )","v":""},null,null,null,null,{"$f":"IF(TRIM(CG248)=\"\", \"\", IF(VLOOKUP(CG248,'Footnotes list'!$D$9:$E$58,2,FALSE)=0,\"\",VLOOKUP(CG248,'Footnotes list'!$D$9:$E$58,2,FALSE) ) )","v":""},null,null,null,null,{"$f":"IF(TRIM(CL248)=\"\", \"\", IF(VLOOKUP(CL248,'Footnotes list'!$D$9:$E$58,2,FALSE)=0,\"\",VLOOKUP(CL248,'Footnotes list'!$D$9:$E$58,2,FALSE) ) )","v":""},null,null,null,null,{"$f":"IF(TRIM(CQ248)=\"\", \"\", IF(VLOOKUP(CQ248,'Footnotes list'!$D$9:$E$58,2,FALSE)=0,\"\",VLOOKUP(CQ248,'Footnotes list'!$D$9:$E$58,2,FALSE) ) )","v":""},null,null,null,null,{"$f":"IF(TRIM(CV248)=\"\", \"\", IF(VLOOKUP(CV248,'Footnotes list'!$D$9:$E$58,2,FALSE)=0,\"\",VLOOKUP(CV248,'Footnotes list'!$D$9:$E$58,2,FALSE) ) )","v":""},null,null,null,null,{"$f":"IF(TRIM(DA248)=\"\", \"\", IF(VLOOKUP(DA248,'Footnotes list'!$D$9:$E$58,2,FALSE)=0,\"\",VLOOKUP(DA248,'Footnotes list'!$D$9:$E$58,2,FALSE) ) )","v":""},null,null,null,null,{"$f":"IF(TRIM(DF248)=\"\", \"\", IF(VLOOKUP(DF248,'Footnotes list'!$D$9:$E$58,2,FALSE)=0,\"\",VLOOKUP(DF248,'Footnotes list'!$D$9:$E$58,2,FALSE) ) )","v":""},null,null,null,null,{"$f":"IF(TRIM(DK248)=\"\", \"\", IF(VLOOKUP(DK248,'Footnotes list'!$D$9:$E$58,2,FALSE)=0,\"\",VLOOKUP(DK248,'Footnotes list'!$D$9:$E$58,2,FALSE) ) )","v":""},null,null,null,null,{"$f":"IF(TRIM(DP248)=\"\", \"\", IF(VLOOKUP(DP248,'Footnotes list'!$D$9:$E$58,2,FALSE)=0,\"\",VLOOKUP(DP248,'Footnotes list'!$D$9:$E$58,2,FALSE) ) )","v":""},null,null,null,null,{"$f":"IF(TRIM(DU248)=\"\", \"\", IF(VLOOKUP(DU248,'Footnotes list'!$D$9:$E$58,2,FALSE)=0,\"\",VLOOKUP(DU248,'Footnotes list'!$D$9:$E$58,2,FALSE) ) )","v":""},null,null,null,null,{"$f":"IF(TRIM(DZ248)=\"\", \"\", IF(VLOOKUP(DZ248,'Footnotes list'!$D$9:$E$58,2,FALSE)=0,\"\",VLOOKUP(DZ248,'Footnotes list'!$D$9:$E$58,2,FALSE) ) )","v":""},null,null,null,null,{"$f":"IF(TRIM(EE248)=\"\", \"\", IF(VLOOKUP(EE248,'Footnotes list'!$D$9:$E$58,2,FALSE)=0,\"\",VLOOKUP(EE248,'Footnotes list'!$D$9:$E$58,2,FALSE) ) )","v":""},null,null,null,null,{"$f":"IF(TRIM(EJ248)=\"\", \"\", IF(VLOOKUP(EJ248,'Footnotes list'!$D$9:$E$58,2,FALSE)=0,\"\",VLOOKUP(EJ248,'Footnotes list'!$D$9:$E$58,2,FALSE) ) )","v":""},null,null,null,null,{"$f":"IF(TRIM(EO248)=\"\", \"\", IF(VLOOKUP(EO248,'Footnotes list'!$D$9:$E$58,2,FALSE)=0,\"\",VLOOKUP(EO248,'Footnotes list'!$D$9:$E$58,2,FALSE) ) )","v":""},null,null,null,null,{"$f":"IF(TRIM(ET248)=\"\", \"\", IF(VLOOKUP(ET248,'Footnotes list'!$D$9:$E$58,2,FALSE)=0,\"\",VLOOKUP(ET248,'Footnotes list'!$D$9:$E$58,2,FALSE) ) )","v":""},null,null,null,null,{"$f":"IF(TRIM(EY248)=\"\", \"\", IF(VLOOKUP(EY248,'Footnotes list'!$D$9:$E$58,2,FALSE)=0,\"\",VLOOKUP(EY248,'Footnotes list'!$D$9:$E$58,2,FALSE) ) )","v":""}]
[null,null,"M73-M75","OWN_USE","activities for own final use",null,null,null,null,null,{"$f":"IF(TRIM(J249)=\"\", \"\", IF(VLOOKUP(J249,'Footnotes list'!$D$9:$E$58,2,FALSE)=0,\"\",VLOOKUP(J249,'Footnotes list'!$D$9:$E$58,2,FALSE) ) )","v":""},null,null,null,null,{"$f":"IF(TRIM(O249)=\"\", \"\", IF(VLOOKUP(O249,'Footnotes list'!$D$9:$E$58,2,FALSE)=0,\"\",VLOOKUP(O249,'Footnotes list'!$D$9:$E$58,2,FALSE) ) )","v":""},null,null,null,null,{"$f":"IF(TRIM(T249)=\"\", \"\", IF(VLOOKUP(T249,'Footnotes list'!$D$9:$E$58,2,FALSE)=0,\"\",VLOOKUP(T249,'Footnotes list'!$D$9:$E$58,2,FALSE) ) )","v":""},null,null,null,null,{"$f":"IF(TRIM(Y249)=\"\", \"\", IF(VLOOKUP(Y249,'Footnotes list'!$D$9:$E$58,2,FALSE)=0,\"\",VLOOKUP(Y249,'Footnotes list'!$D$9:$E$58,2,FALSE) ) )","v":""},null,null,null,null,{"$f":"IF(TRIM(AD249)=\"\", \"\", IF(VLOOKUP(AD249,'Footnotes list'!$D$9:$E$58,2,FALSE)=0,\"\",VLOOKUP(AD249,'Footnotes list'!$D$9:$E$58,2,FALSE) ) )","v":""},null,null,null,null,{"$f":"IF(TRIM(AI249)=\"\", \"\", IF(VLOOKUP(AI249,'Footnotes list'!$D$9:$E$58,2,FALSE)=0,\"\",VLOOKUP(AI249,'Footnotes list'!$D$9:$E$58,2,FALSE) ) )","v":""},null,null,null,null,{"$f":"IF(TRIM(AN249)=\"\", \"\", IF(VLOOKUP(AN249,'Footnotes list'!$D$9:$E$58,2,FALSE)=0,\"\",VLOOKUP(AN249,'Footnotes list'!$D$9:$E$58,2,FALSE) ) )","v":""},null,null,null,null,{"$f":"IF(TRIM(AS249)=\"\", \"\", IF(VLOOKUP(AS249,'Footnotes list'!$D$9:$E$58,2,FALSE)=0,\"\",VLOOKUP(AS249,'Footnotes list'!$D$9:$E$58,2,FALSE) ) )","v":""},null,null,null,null,{"$f":"IF(TRIM(AX249)=\"\", \"\", IF(VLOOKUP(AX249,'Footnotes list'!$D$9:$E$58,2,FALSE)=0,\"\",VLOOKUP(AX249,'Footnotes list'!$D$9:$E$58,2,FALSE) ) )","v":""},null,null,null,null,{"$f":"IF(TRIM(BC249)=\"\", \"\", IF(VLOOKUP(BC249,'Footnotes list'!$D$9:$E$58,2,FALSE)=0,\"\",VLOOKUP(BC249,'Footnotes list'!$D$9:$E$58,2,FALSE) ) )","v":""},null,null,null,null,{"$f":"IF(TRIM(BH249)=\"\", \"\", IF(VLOOKUP(BH249,'Footnotes list'!$D$9:$E$58,2,FALSE)=0,\"\",VLOOKUP(BH249,'Footnotes list'!$D$9:$E$58,2,FALSE) ) )","v":""},null,null,null,null,{"$f":"IF(TRIM(BM249)=\"\", \"\", IF(VLOOKUP(BM249,'Footnotes list'!$D$9:$E$58,2,FALSE)=0,\"\",VLOOKUP(BM249,'Footnotes list'!$D$9:$E$58,2,FALSE) ) )","v":""},null,null,null,null,{"$f":"IF(TRIM(BR249)=\"\", \"\", IF(VLOOKUP(BR249,'Footnotes list'!$D$9:$E$58,2,FALSE)=0,\"\",VLOOKUP(BR249,'Footnotes list'!$D$9:$E$58,2,FALSE) ) )","v":""},null,null,null,null,{"$f":"IF(TRIM(BW249)=\"\", \"\", IF(VLOOKUP(BW249,'Footnotes list'!$D$9:$E$58,2,FALSE)=0,\"\",VLOOKUP(BW249,'Footnotes list'!$D$9:$E$58,2,FALSE) ) )","v":""},null,null,null,null,{"$f":"IF(TRIM(CB249)=\"\", \"\", IF(VLOOKUP(CB249,'Footnotes list'!$D$9:$E$58,2,FALSE)=0,\"\",VLOOKUP(CB249,'Footnotes list'!$D$9:$E$58,2,FALSE) ) )","v":""},null,null,null,null,{"$f":"IF(TRIM(CG249)=\"\", \"\", IF(VLOOKUP(CG249,'Footnotes list'!$D$9:$E$58,2,FALSE)=0,\"\",VLOOKUP(CG249,'Footnotes list'!$D$9:$E$58,2,FALSE) ) )","v":""},null,null,null,null,{"$f":"IF(TRIM(CL249)=\"\", \"\", IF(VLOOKUP(CL249,'Footnotes list'!$D$9:$E$58,2,FALSE)=0,\"\",VLOOKUP(CL249,'Footnotes list'!$D$9:$E$58,2,FALSE) ) )","v":""},null,null,null,null,{"$f":"IF(TRIM(CQ249)=\"\", \"\", IF(VLOOKUP(CQ249,'Footnotes list'!$D$9:$E$58,2,FALSE)=0,\"\",VLOOKUP(CQ249,'Footnotes list'!$D$9:$E$58,2,FALSE) ) )","v":""},null,null,null,null,{"$f":"IF(TRIM(CV249)=\"\", \"\", IF(VLOOKUP(CV249,'Footnotes list'!$D$9:$E$58,2,FALSE)=0,\"\",VLOOKUP(CV249,'Footnotes list'!$D$9:$E$58,2,FALSE) ) )","v":""},null,null,null,null,{"$f":"IF(TRIM(DA249)=\"\", \"\", IF(VLOOKUP(DA249,'Footnotes list'!$D$9:$E$58,2,FALSE)=0,\"\",VLOOKUP(DA249,'Footnotes list'!$D$9:$E$58,2,FALSE) ) )","v":""},null,null,null,null,{"$f":"IF(TRIM(DF249)=\"\", \"\", IF(VLOOKUP(DF249,'Footnotes list'!$D$9:$E$58,2,FALSE)=0,\"\",VLOOKUP(DF249,'Footnotes list'!$D$9:$E$58,2,FALSE) ) )","v":""},null,null,null,null,{"$f":"IF(TRIM(DK249)=\"\", \"\", IF(VLOOKUP(DK249,'Footnotes list'!$D$9:$E$58,2,FALSE)=0,\"\",VLOOKUP(DK249,'Footnotes list'!$D$9:$E$58,2,FALSE) ) )","v":""},null,null,null,null,{"$f":"IF(TRIM(DP249)=\"\", \"\", IF(VLOOKUP(DP249,'Footnotes list'!$D$9:$E$58,2,FALSE)=0,\"\",VLOOKUP(DP249,'Footnotes list'!$D$9:$E$58,2,FALSE) ) )","v":""},null,null,null,null,{"$f":"IF(TRIM(DU249)=\"\", \"\", IF(VLOOKUP(DU249,'Footnotes list'!$D$9:$E$58,2,FALSE)=0,\"\",VLOOKUP(DU249,'Footnotes list'!$D$9:$E$58,2,FALSE) ) )","v":""},null,null,null,null,{"$f":"IF(TRIM(DZ249)=\"\", \"\", IF(VLOOKUP(DZ249,'Footnotes list'!$D$9:$E$58,2,FALSE)=0,\"\",VLOOKUP(DZ249,'Footnotes list'!$D$9:$E$58,2,FALSE) ) )","v":""},null,null,null,null,{"$f":"IF(TRIM(EE249)=\"\", \"\", IF(VLOOKUP(EE249,'Footnotes list'!$D$9:$E$58,2,FALSE)=0,\"\",VLOOKUP(EE249,'Footnotes list'!$D$9:$E$58,2,FALSE) ) )","v":""},null,null,null,null,{"$f":"IF(TRIM(EJ249)=\"\", \"\", IF(VLOOKUP(EJ249,'Footnotes list'!$D$9:$E$58,2,FALSE)=0,\"\",VLOOKUP(EJ249,'Footnotes list'!$D$9:$E$58,2,FALSE) ) )","v":""},null,null,null,null,{"$f":"IF(TRIM(EO249)=\"\", \"\", IF(VLOOKUP(EO249,'Footnotes list'!$D$9:$E$58,2,FALSE)=0,\"\",VLOOKUP(EO249,'Footnotes list'!$D$9:$E$58,2,FALSE) ) )","v":""},null,null,null,null,{"$f":"IF(TRIM(ET249)=\"\", \"\", IF(VLOOKUP(ET249,'Footnotes list'!$D$9:$E$58,2,FALSE)=0,\"\",VLOOKUP(ET249,'Footnotes list'!$D$9:$E$58,2,FALSE) ) )","v":""},null,null,null,null,{"$f":"IF(TRIM(EY249)=\"\", \"\", IF(VLOOKUP(EY249,'Footnotes list'!$D$9:$E$58,2,FALSE)=0,\"\",VLOOKUP(EY249,'Footnotes list'!$D$9:$E$58,2,FALSE) ) )","v":""}]
[null,null,"M73-M75","MKT","market activities, including:",null,null,null,null,null,{"$f":"IF(TRIM(J250)=\"\", \"\", IF(VLOOKUP(J250,'Footnotes list'!$D$9:$E$58,2,FALSE)=0,\"\",VLOOKUP(J250,'Footnotes list'!$D$9:$E$58,2,FALSE) ) )","v":""},null,null,null,null,{"$f":"IF(TRIM(O250)=\"\", \"\", IF(VLOOKUP(O250,'Footnotes list'!$D$9:$E$58,2,FALSE)=0,\"\",VLOOKUP(O250,'Footnotes list'!$D$9:$E$58,2,FALSE) ) )","v":""},null,null,null,null,{"$f":"IF(TRIM(T250)=\"\", \"\", IF(VLOOKUP(T250,'Footnotes list'!$D$9:$E$58,2,FALSE)=0,\"\",VLOOKUP(T250,'Footnotes list'!$D$9:$E$58,2,FALSE) ) )","v":""},null,null,null,null,{"$f":"IF(TRIM(Y250)=\"\", \"\", IF(VLOOKUP(Y250,'Footnotes list'!$D$9:$E$58,2,FALSE)=0,\"\",VLOOKUP(Y250,'Footnotes list'!$D$9:$E$58,2,FALSE) ) )","v":""},null,null,null,null,{"$f":"IF(TRIM(AD250)=\"\", \"\", IF(VLOOKUP(AD250,'Footnotes list'!$D$9:$E$58,2,FALSE)=0,\"\",VLOOKUP(AD250,'Footnotes list'!$D$9:$E$58,2,FALSE) ) )","v":""},null,null,null,null,{"$f":"IF(TRIM(AI250)=\"\", \"\", IF(VLOOKUP(AI250,'Footnotes list'!$D$9:$E$58,2,FALSE)=0,\"\",VLOOKUP(AI250,'Footnotes list'!$D$9:$E$58,2,FALSE) ) )","v":""},null,null,null,null,{"$f":"IF(TRIM(AN250)=\"\", \"\", IF(VLOOKUP(AN250,'Footnotes list'!$D$9:$E$58,2,FALSE)=0,\"\",VLOOKUP(AN250,'Footnotes list'!$D$9:$E$58,2,FALSE) ) )","v":""},null,null,null,null,{"$f":"IF(TRIM(AS250)=\"\", \"\", IF(VLOOKUP(AS250,'Footnotes list'!$D$9:$E$58,2,FALSE)=0,\"\",VLOOKUP(AS250,'Footnotes list'!$D$9:$E$58,2,FALSE) ) )","v":""},null,null,null,null,{"$f":"IF(TRIM(AX250)=\"\", \"\", IF(VLOOKUP(AX250,'Footnotes list'!$D$9:$E$58,2,FALSE)=0,\"\",VLOOKUP(AX250,'Footnotes list'!$D$9:$E$58,2,FALSE) ) )","v":""},null,null,null,null,{"$f":"IF(TRIM(BC250)=\"\", \"\", IF(VLOOKUP(BC250,'Footnotes list'!$D$9:$E$58,2,FALSE)=0,\"\",VLOOKUP(BC250,'Footnotes list'!$D$9:$E$58,2,FALSE) ) )","v":""},null,null,null,null,{"$f":"IF(TRIM(BH250)=\"\", \"\", IF(VLOOKUP(BH250,'Footnotes list'!$D$9:$E$58,2,FALSE)=0,\"\",VLOOKUP(BH250,'Footnotes list'!$D$9:$E$58,2,FALSE) ) )","v":""},null,null,null,null,{"$f":"IF(TRIM(BM250)=\"\", \"\", IF(VLOOKUP(BM250,'Footnotes list'!$D$9:$E$58,2,FALSE)=0,\"\",VLOOKUP(BM250,'Footnotes list'!$D$9:$E$58,2,FALSE) ) )","v":""},null,null,null,null,{"$f":"IF(TRIM(BR250)=\"\", \"\", IF(VLOOKUP(BR250,'Footnotes list'!$D$9:$E$58,2,FALSE)=0,\"\",VLOOKUP(BR250,'Footnotes list'!$D$9:$E$58,2,FALSE) ) )","v":""},null,null,null,null,{"$f":"IF(TRIM(BW250)=\"\", \"\", IF(VLOOKUP(BW250,'Footnotes list'!$D$9:$E$58,2,FALSE)=0,\"\",VLOOKUP(BW250,'Footnotes list'!$D$9:$E$58,2,FALSE) ) )","v":""},null,null,null,null,{"$f":"IF(TRIM(CB250)=\"\", \"\", IF(VLOOKUP(CB250,'Footnotes list'!$D$9:$E$58,2,FALSE)=0,\"\",VLOOKUP(CB250,'Footnotes list'!$D$9:$E$58,2,FALSE) ) )","v":""},null,null,null,null,{"$f":"IF(TRIM(CG250)=\"\", \"\", IF(VLOOKUP(CG250,'Footnotes list'!$D$9:$E$58,2,FALSE)=0,\"\",VLOOKUP(CG250,'Footnotes list'!$D$9:$E$58,2,FALSE) ) )","v":""},null,null,null,null,{"$f":"IF(TRIM(CL250)=\"\", \"\", IF(VLOOKUP(CL250,'Footnotes list'!$D$9:$E$58,2,FALSE)=0,\"\",VLOOKUP(CL250,'Footnotes list'!$D$9:$E$58,2,FALSE) ) )","v":""},null,null,null,null,{"$f":"IF(TRIM(CQ250)=\"\", \"\", IF(VLOOKUP(CQ250,'Footnotes list'!$D$9:$E$58,2,FALSE)=0,\"\",VLOOKUP(CQ250,'Footnotes list'!$D$9:$E$58,2,FALSE) ) )","v":""},null,null,null,null,{"$f":"IF(TRIM(CV250)=\"\", \"\", IF(VLOOKUP(CV250,'Footnotes list'!$D$9:$E$58,2,FALSE)=0,\"\",VLOOKUP(CV250,'Footnotes list'!$D$9:$E$58,2,FALSE) ) )","v":""},null,null,null,null,{"$f":"IF(TRIM(DA250)=\"\", \"\", IF(VLOOKUP(DA250,'Footnotes list'!$D$9:$E$58,2,FALSE)=0,\"\",VLOOKUP(DA250,'Footnotes list'!$D$9:$E$58,2,FALSE) ) )","v":""},null,null,null,null,{"$f":"IF(TRIM(DF250)=\"\", \"\", IF(VLOOKUP(DF250,'Footnotes list'!$D$9:$E$58,2,FALSE)=0,\"\",VLOOKUP(DF250,'Footnotes list'!$D$9:$E$58,2,FALSE) ) )","v":""},null,null,null,null,{"$f":"IF(TRIM(DK250)=\"\", \"\", IF(VLOOKUP(DK250,'Footnotes list'!$D$9:$E$58,2,FALSE)=0,\"\",VLOOKUP(DK250,'Footnotes list'!$D$9:$E$58,2,FALSE) ) )","v":""},null,null,null,null,{"$f":"IF(TRIM(DP250)=\"\", \"\", IF(VLOOKUP(DP250,'Footnotes list'!$D$9:$E$58,2,FALSE)=0,\"\",VLOOKUP(DP250,'Footnotes list'!$D$9:$E$58,2,FALSE) ) )","v":""},null,null,null,null,{"$f":"IF(TRIM(DU250)=\"\", \"\", IF(VLOOKUP(DU250,'Footnotes list'!$D$9:$E$58,2,FALSE)=0,\"\",VLOOKUP(DU250,'Footnotes list'!$D$9:$E$58,2,FALSE) ) )","v":""},null,null,null,null,{"$f":"IF(TRIM(DZ250)=\"\", \"\", IF(VLOOKUP(DZ250,'Footnotes list'!$D$9:$E$58,2,FALSE)=0,\"\",VLOOKUP(DZ250,'Footnotes list'!$D$9:$E$58,2,FALSE) ) )","v":""},null,null,null,null,{"$f":"IF(TRIM(EE250)=\"\", \"\", IF(VLOOKUP(EE250,'Footnotes list'!$D$9:$E$58,2,FALSE)=0,\"\",VLOOKUP(EE250,'Footnotes list'!$D$9:$E$58,2,FALSE) ) )","v":""},null,null,null,null,{"$f":"IF(TRIM(EJ250)=\"\", \"\", IF(VLOOKUP(EJ250,'Footnotes list'!$D$9:$E$58,2,FALSE)=0,\"\",VLOOKUP(EJ250,'Footnotes list'!$D$9:$E$58,2,FALSE) ) )","v":""},null,null,null,null,{"$f":"IF(TRIM(EO250)=\"\", \"\", IF(VLOOKUP(EO250,'Footnotes list'!$D$9:$E$58,2,FALSE)=0,\"\",VLOOKUP(EO250,'Footnotes list'!$D$9:$E$58,2,FALSE) ) )","v":""},null,null,null,null,{"$f":"IF(TRIM(ET250)=\"\", \"\", IF(VLOOKUP(ET250,'Footnotes list'!$D$9:$E$58,2,FALSE)=0,\"\",VLOOKUP(ET250,'Footnotes list'!$D$9:$E$58,2,FALSE) ) )","v":""},null,null,null,null,{"$f":"IF(TRIM(EY250)=\"\", \"\", IF(VLOOKUP(EY250,'Footnotes list'!$D$9:$E$58,2,FALSE)=0,\"\",VLOOKUP(EY250,'Footnotes list'!$D$9:$E$58,2,FALSE) ) )","v":""}]
[null,null,"M73-M75","ES_CS","environmental specific services",null,null,null,null,null,{"$f":"IF(TRIM(J251)=\"\", \"\", IF(VLOOKUP(J251,'Footnotes list'!$D$9:$E$58,2,FALSE)=0,\"\",VLOOKUP(J251,'Footnotes list'!$D$9:$E$58,2,FALSE) ) )","v":""},null,null,null,null,{"$f":"IF(TRIM(O251)=\"\", \"\", IF(VLOOKUP(O251,'Footnotes list'!$D$9:$E$58,2,FALSE)=0,\"\",VLOOKUP(O251,'Footnotes list'!$D$9:$E$58,2,FALSE) ) )","v":""},null,null,null,null,{"$f":"IF(TRIM(T251)=\"\", \"\", IF(VLOOKUP(T251,'Footnotes list'!$D$9:$E$58,2,FALSE)=0,\"\",VLOOKUP(T251,'Footnotes list'!$D$9:$E$58,2,FALSE) ) )","v":""},null,null,null,null,{"$f":"IF(TRIM(Y251)=\"\", \"\", IF(VLOOKUP(Y251,'Footnotes list'!$D$9:$E$58,2,FALSE)=0,\"\",VLOOKUP(Y251,'Footnotes list'!$D$9:$E$58,2,FALSE) ) )","v":""},null,null,null,null,{"$f":"IF(TRIM(AD251)=\"\", \"\", IF(VLOOKUP(AD251,'Footnotes list'!$D$9:$E$58,2,FALSE)=0,\"\",VLOOKUP(AD251,'Footnotes list'!$D$9:$E$58,2,FALSE) ) )","v":""},null,null,null,null,{"$f":"IF(TRIM(AI251)=\"\", \"\", IF(VLOOKUP(AI251,'Footnotes list'!$D$9:$E$58,2,FALSE)=0,\"\",VLOOKUP(AI251,'Footnotes list'!$D$9:$E$58,2,FALSE) ) )","v":""},null,null,null,null,{"$f":"IF(TRIM(AN251)=\"\", \"\", IF(VLOOKUP(AN251,'Footnotes list'!$D$9:$E$58,2,FALSE)=0,\"\",VLOOKUP(AN251,'Footnotes list'!$D$9:$E$58,2,FALSE) ) )","v":""},null,null,null,null,{"$f":"IF(TRIM(AS251)=\"\", \"\", IF(VLOOKUP(AS251,'Footnotes list'!$D$9:$E$58,2,FALSE)=0,\"\",VLOOKUP(AS251,'Footnotes list'!$D$9:$E$58,2,FALSE) ) )","v":""},null,null,null,null,{"$f":"IF(TRIM(AX251)=\"\", \"\", IF(VLOOKUP(AX251,'Footnotes list'!$D$9:$E$58,2,FALSE)=0,\"\",VLOOKUP(AX251,'Footnotes list'!$D$9:$E$58,2,FALSE) ) )","v":""},null,null,null,null,{"$f":"IF(TRIM(BC251)=\"\", \"\", IF(VLOOKUP(BC251,'Footnotes list'!$D$9:$E$58,2,FALSE)=0,\"\",VLOOKUP(BC251,'Footnotes list'!$D$9:$E$58,2,FALSE) ) )","v":""},null,null,null,null,{"$f":"IF(TRIM(BH251)=\"\", \"\", IF(VLOOKUP(BH251,'Footnotes list'!$D$9:$E$58,2,FALSE)=0,\"\",VLOOKUP(BH251,'Footnotes list'!$D$9:$E$58,2,FALSE) ) )","v":""},null,null,null,null,{"$f":"IF(TRIM(BM251)=\"\", \"\", IF(VLOOKUP(BM251,'Footnotes list'!$D$9:$E$58,2,FALSE)=0,\"\",VLOOKUP(BM251,'Footnotes list'!$D$9:$E$58,2,FALSE) ) )","v":""},null,null,null,null,{"$f":"IF(TRIM(BR251)=\"\", \"\", IF(VLOOKUP(BR251,'Footnotes list'!$D$9:$E$58,2,FALSE)=0,\"\",VLOOKUP(BR251,'Footnotes list'!$D$9:$E$58,2,FALSE) ) )","v":""},null,null,null,null,{"$f":"IF(TRIM(BW251)=\"\", \"\", IF(VLOOKUP(BW251,'Footnotes list'!$D$9:$E$58,2,FALSE)=0,\"\",VLOOKUP(BW251,'Footnotes list'!$D$9:$E$58,2,FALSE) ) )","v":""},null,null,null,null,{"$f":"IF(TRIM(CB251)=\"\", \"\", IF(VLOOKUP(CB251,'Footnotes list'!$D$9:$E$58,2,FALSE)=0,\"\",VLOOKUP(CB251,'Footnotes list'!$D$9:$E$58,2,FALSE) ) )","v":""},null,null,null,null,{"$f":"IF(TRIM(CG251)=\"\", \"\", IF(VLOOKUP(CG251,'Footnotes list'!$D$9:$E$58,2,FALSE)=0,\"\",VLOOKUP(CG251,'Footnotes list'!$D$9:$E$58,2,FALSE) ) )","v":""},null,null,null,null,{"$f":"IF(TRIM(CL251)=\"\", \"\", IF(VLOOKUP(CL251,'Footnotes list'!$D$9:$E$58,2,FALSE)=0,\"\",VLOOKUP(CL251,'Footnotes list'!$D$9:$E$58,2,FALSE) ) )","v":""},null,null,null,null,{"$f":"IF(TRIM(CQ251)=\"\", \"\", IF(VLOOKUP(CQ251,'Footnotes list'!$D$9:$E$58,2,FALSE)=0,\"\",VLOOKUP(CQ251,'Footnotes list'!$D$9:$E$58,2,FALSE) ) )","v":""},null,null,null,null,{"$f":"IF(TRIM(CV251)=\"\", \"\", IF(VLOOKUP(CV251,'Footnotes list'!$D$9:$E$58,2,FALSE)=0,\"\",VLOOKUP(CV251,'Footnotes list'!$D$9:$E$58,2,FALSE) ) )","v":""},null,null,null,null,{"$f":"IF(TRIM(DA251)=\"\", \"\", IF(VLOOKUP(DA251,'Footnotes list'!$D$9:$E$58,2,FALSE)=0,\"\",VLOOKUP(DA251,'Footnotes list'!$D$9:$E$58,2,FALSE) ) )","v":""},null,null,null,null,{"$f":"IF(TRIM(DF251)=\"\", \"\", IF(VLOOKUP(DF251,'Footnotes list'!$D$9:$E$58,2,FALSE)=0,\"\",VLOOKUP(DF251,'Footnotes list'!$D$9:$E$58,2,FALSE) ) )","v":""},null,null,null,null,{"$f":"IF(TRIM(DK251)=\"\", \"\", IF(VLOOKUP(DK251,'Footnotes list'!$D$9:$E$58,2,FALSE)=0,\"\",VLOOKUP(DK251,'Footnotes list'!$D$9:$E$58,2,FALSE) ) )","v":""},null,null,null,null,{"$f":"IF(TRIM(DP251)=\"\", \"\", IF(VLOOKUP(DP251,'Footnotes list'!$D$9:$E$58,2,FALSE)=0,\"\",VLOOKUP(DP251,'Footnotes list'!$D$9:$E$58,2,FALSE) ) )","v":""},null,null,null,null,{"$f":"IF(TRIM(DU251)=\"\", \"\", IF(VLOOKUP(DU251,'Footnotes list'!$D$9:$E$58,2,FALSE)=0,\"\",VLOOKUP(DU251,'Footnotes list'!$D$9:$E$58,2,FALSE) ) )","v":""},null,null,null,null,{"$f":"IF(TRIM(DZ251)=\"\", \"\", IF(VLOOKUP(DZ251,'Footnotes list'!$D$9:$E$58,2,FALSE)=0,\"\",VLOOKUP(DZ251,'Footnotes list'!$D$9:$E$58,2,FALSE) ) )","v":""},null,null,null,null,{"$f":"IF(TRIM(EE251)=\"\", \"\", IF(VLOOKUP(EE251,'Footnotes list'!$D$9:$E$58,2,FALSE)=0,\"\",VLOOKUP(EE251,'Footnotes list'!$D$9:$E$58,2,FALSE) ) )","v":""},null,null,null,null,{"$f":"IF(TRIM(EJ251)=\"\", \"\", IF(VLOOKUP(EJ251,'Footnotes list'!$D$9:$E$58,2,FALSE)=0,\"\",VLOOKUP(EJ251,'Footnotes list'!$D$9:$E$58,2,FALSE) ) )","v":""},null,null,null,null,{"$f":"IF(TRIM(EO251)=\"\", \"\", IF(VLOOKUP(EO251,'Footnotes list'!$D$9:$E$58,2,FALSE)=0,\"\",VLOOKUP(EO251,'Footnotes list'!$D$9:$E$58,2,FALSE) ) )","v":""},null,null,null,null,{"$f":"IF(TRIM(ET251)=\"\", \"\", IF(VLOOKUP(ET251,'Footnotes list'!$D$9:$E$58,2,FALSE)=0,\"\",VLOOKUP(ET251,'Footnotes list'!$D$9:$E$58,2,FALSE) ) )","v":""},null,null,null,null,{"$f":"IF(TRIM(EY251)=\"\", \"\", IF(VLOOKUP(EY251,'Footnotes list'!$D$9:$E$58,2,FALSE)=0,\"\",VLOOKUP(EY251,'Footnotes list'!$D$9:$E$58,2,FALSE) ) )","v":""}]
[null,null,"M73-M75","C_REP","cleaner and resource efficient products",null,null,null,null,null,{"$f":"IF(TRIM(J252)=\"\", \"\", IF(VLOOKUP(J252,'Footnotes list'!$D$9:$E$58,2,FALSE)=0,\"\",VLOOKUP(J252,'Footnotes list'!$D$9:$E$58,2,FALSE) ) )","v":""},null,null,null,null,{"$f":"IF(TRIM(O252)=\"\", \"\", IF(VLOOKUP(O252,'Footnotes list'!$D$9:$E$58,2,FALSE)=0,\"\",VLOOKUP(O252,'Footnotes list'!$D$9:$E$58,2,FALSE) ) )","v":""},null,null,null,null,{"$f":"IF(TRIM(T252)=\"\", \"\", IF(VLOOKUP(T252,'Footnotes list'!$D$9:$E$58,2,FALSE)=0,\"\",VLOOKUP(T252,'Footnotes list'!$D$9:$E$58,2,FALSE) ) )","v":""},null,null,null,null,{"$f":"IF(TRIM(Y252)=\"\", \"\", IF(VLOOKUP(Y252,'Footnotes list'!$D$9:$E$58,2,FALSE)=0,\"\",VLOOKUP(Y252,'Footnotes list'!$D$9:$E$58,2,FALSE) ) )","v":""},null,null,null,null,{"$f":"IF(TRIM(AD252)=\"\", \"\", IF(VLOOKUP(AD252,'Footnotes list'!$D$9:$E$58,2,FALSE)=0,\"\",VLOOKUP(AD252,'Footnotes list'!$D$9:$E$58,2,FALSE) ) )","v":""},null,null,null,null,{"$f":"IF(TRIM(AI252)=\"\", \"\", IF(VLOOKUP(AI252,'Footnotes list'!$D$9:$E$58,2,FALSE)=0,\"\",VLOOKUP(AI252,'Footnotes list'!$D$9:$E$58,2,FALSE) ) )","v":""},null,null,null,null,{"$f":"IF(TRIM(AN252)=\"\", \"\", IF(VLOOKUP(AN252,'Footnotes list'!$D$9:$E$58,2,FALSE)=0,\"\",VLOOKUP(AN252,'Footnotes list'!$D$9:$E$58,2,FALSE) ) )","v":""},null,null,null,null,{"$f":"IF(TRIM(AS252)=\"\", \"\", IF(VLOOKUP(AS252,'Footnotes list'!$D$9:$E$58,2,FALSE)=0,\"\",VLOOKUP(AS252,'Footnotes list'!$D$9:$E$58,2,FALSE) ) )","v":""},null,null,null,null,{"$f":"IF(TRIM(AX252)=\"\", \"\", IF(VLOOKUP(AX252,'Footnotes list'!$D$9:$E$58,2,FALSE)=0,\"\",VLOOKUP(AX252,'Footnotes list'!$D$9:$E$58,2,FALSE) ) )","v":""},null,null,null,null,{"$f":"IF(TRIM(BC252)=\"\", \"\", IF(VLOOKUP(BC252,'Footnotes list'!$D$9:$E$58,2,FALSE)=0,\"\",VLOOKUP(BC252,'Footnotes list'!$D$9:$E$58,2,FALSE) ) )","v":""},null,null,null,null,{"$f":"IF(TRIM(BH252)=\"\", \"\", IF(VLOOKUP(BH252,'Footnotes list'!$D$9:$E$58,2,FALSE)=0,\"\",VLOOKUP(BH252,'Footnotes list'!$D$9:$E$58,2,FALSE) ) )","v":""},null,null,null,null,{"$f":"IF(TRIM(BM252)=\"\", \"\", IF(VLOOKUP(BM252,'Footnotes list'!$D$9:$E$58,2,FALSE)=0,\"\",VLOOKUP(BM252,'Footnotes list'!$D$9:$E$58,2,FALSE) ) )","v":""},null,null,null,null,{"$f":"IF(TRIM(BR252)=\"\", \"\", IF(VLOOKUP(BR252,'Footnotes list'!$D$9:$E$58,2,FALSE)=0,\"\",VLOOKUP(BR252,'Footnotes list'!$D$9:$E$58,2,FALSE) ) )","v":""},null,null,null,null,{"$f":"IF(TRIM(BW252)=\"\", \"\", IF(VLOOKUP(BW252,'Footnotes list'!$D$9:$E$58,2,FALSE)=0,\"\",VLOOKUP(BW252,'Footnotes list'!$D$9:$E$58,2,FALSE) ) )","v":""},null,null,null,null,{"$f":"IF(TRIM(CB252)=\"\", \"\", IF(VLOOKUP(CB252,'Footnotes list'!$D$9:$E$58,2,FALSE)=0,\"\",VLOOKUP(CB252,'Footnotes list'!$D$9:$E$58,2,FALSE) ) )","v":""},null,null,null,null,{"$f":"IF(TRIM(CG252)=\"\", \"\", IF(VLOOKUP(CG252,'Footnotes list'!$D$9:$E$58,2,FALSE)=0,\"\",VLOOKUP(CG252,'Footnotes list'!$D$9:$E$58,2,FALSE) ) )","v":""},null,null,null,null,{"$f":"IF(TRIM(CL252)=\"\", \"\", IF(VLOOKUP(CL252,'Footnotes list'!$D$9:$E$58,2,FALSE)=0,\"\",VLOOKUP(CL252,'Footnotes list'!$D$9:$E$58,2,FALSE) ) )","v":""},null,null,null,null,{"$f":"IF(TRIM(CQ252)=\"\", \"\", IF(VLOOKUP(CQ252,'Footnotes list'!$D$9:$E$58,2,FALSE)=0,\"\",VLOOKUP(CQ252,'Footnotes list'!$D$9:$E$58,2,FALSE) ) )","v":""},null,null,null,null,{"$f":"IF(TRIM(CV252)=\"\", \"\", IF(VLOOKUP(CV252,'Footnotes list'!$D$9:$E$58,2,FALSE)=0,\"\",VLOOKUP(CV252,'Footnotes list'!$D$9:$E$58,2,FALSE) ) )","v":""},null,null,null,null,{"$f":"IF(TRIM(DA252)=\"\", \"\", IF(VLOOKUP(DA252,'Footnotes list'!$D$9:$E$58,2,FALSE)=0,\"\",VLOOKUP(DA252,'Footnotes list'!$D$9:$E$58,2,FALSE) ) )","v":""},null,null,null,null,{"$f":"IF(TRIM(DF252)=\"\", \"\", IF(VLOOKUP(DF252,'Footnotes list'!$D$9:$E$58,2,FALSE)=0,\"\",VLOOKUP(DF252,'Footnotes list'!$D$9:$E$58,2,FALSE) ) )","v":""},null,null,null,null,{"$f":"IF(TRIM(DK252)=\"\", \"\", IF(VLOOKUP(DK252,'Footnotes list'!$D$9:$E$58,2,FALSE)=0,\"\",VLOOKUP(DK252,'Footnotes list'!$D$9:$E$58,2,FALSE) ) )","v":""},null,null,null,null,{"$f":"IF(TRIM(DP252)=\"\", \"\", IF(VLOOKUP(DP252,'Footnotes list'!$D$9:$E$58,2,FALSE)=0,\"\",VLOOKUP(DP252,'Footnotes list'!$D$9:$E$58,2,FALSE) ) )","v":""},null,null,null,null,{"$f":"IF(TRIM(DU252)=\"\", \"\", IF(VLOOKUP(DU252,'Footnotes list'!$D$9:$E$58,2,FALSE)=0,\"\",VLOOKUP(DU252,'Footnotes list'!$D$9:$E$58,2,FALSE) ) )","v":""},null,null,null,null,{"$f":"IF(TRIM(DZ252)=\"\", \"\", IF(VLOOKUP(DZ252,'Footnotes list'!$D$9:$E$58,2,FALSE)=0,\"\",VLOOKUP(DZ252,'Footnotes list'!$D$9:$E$58,2,FALSE) ) )","v":""},null,null,null,null,{"$f":"IF(TRIM(EE252)=\"\", \"\", IF(VLOOKUP(EE252,'Footnotes list'!$D$9:$E$58,2,FALSE)=0,\"\",VLOOKUP(EE252,'Footnotes list'!$D$9:$E$58,2,FALSE) ) )","v":""},null,null,null,null,{"$f":"IF(TRIM(EJ252)=\"\", \"\", IF(VLOOKUP(EJ252,'Footnotes list'!$D$9:$E$58,2,FALSE)=0,\"\",VLOOKUP(EJ252,'Footnotes list'!$D$9:$E$58,2,FALSE) ) )","v":""},null,null,null,null,{"$f":"IF(TRIM(EO252)=\"\", \"\", IF(VLOOKUP(EO252,'Footnotes list'!$D$9:$E$58,2,FALSE)=0,\"\",VLOOKUP(EO252,'Footnotes list'!$D$9:$E$58,2,FALSE) ) )","v":""},null,null,null,null,{"$f":"IF(TRIM(ET252)=\"\", \"\", IF(VLOOKUP(ET252,'Footnotes list'!$D$9:$E$58,2,FALSE)=0,\"\",VLOOKUP(ET252,'Footnotes list'!$D$9:$E$58,2,FALSE) ) )","v":""},null,null,null,null,{"$f":"IF(TRIM(EY252)=\"\", \"\", IF(VLOOKUP(EY252,'Footnotes list'!$D$9:$E$58,2,FALSE)=0,\"\",VLOOKUP(EY252,'Footnotes list'!$D$9:$E$58,2,FALSE) ) )","v":""}]
[null,null,"N","TOT_EGSS","Total N - Administrative and support service activities, of which:",null,null,null,null,null,{"$f":"IF(TRIM(J253)=\"\", \"\", IF(VLOOKUP(J253,'Footnotes list'!$D$9:$E$58,2,FALSE)=0,\"\",VLOOKUP(J253,'Footnotes list'!$D$9:$E$58,2,FALSE) ) )","v":""},null,null,null,null,{"$f":"IF(TRIM(O253)=\"\", \"\", IF(VLOOKUP(O253,'Footnotes list'!$D$9:$E$58,2,FALSE)=0,\"\",VLOOKUP(O253,'Footnotes list'!$D$9:$E$58,2,FALSE) ) )","v":""},null,null,null,null,{"$f":"IF(TRIM(T253)=\"\", \"\", IF(VLOOKUP(T253,'Footnotes list'!$D$9:$E$58,2,FALSE)=0,\"\",VLOOKUP(T253,'Footnotes list'!$D$9:$E$58,2,FALSE) ) )","v":""},null,null,null,null,{"$f":"IF(TRIM(Y253)=\"\", \"\", IF(VLOOKUP(Y253,'Footnotes list'!$D$9:$E$58,2,FALSE)=0,\"\",VLOOKUP(Y253,'Footnotes list'!$D$9:$E$58,2,FALSE) ) )","v":""},null,null,null,null,{"$f":"IF(TRIM(AD253)=\"\", \"\", IF(VLOOKUP(AD253,'Footnotes list'!$D$9:$E$58,2,FALSE)=0,\"\",VLOOKUP(AD253,'Footnotes list'!$D$9:$E$58,2,FALSE) ) )","v":""},null,null,null,null,{"$f":"IF(TRIM(AI253)=\"\", \"\", IF(VLOOKUP(AI253,'Footnotes list'!$D$9:$E$58,2,FALSE)=0,\"\",VLOOKUP(AI253,'Footnotes list'!$D$9:$E$58,2,FALSE) ) )","v":""},null,null,null,null,{"$f":"IF(TRIM(AN253)=\"\", \"\", IF(VLOOKUP(AN253,'Footnotes list'!$D$9:$E$58,2,FALSE)=0,\"\",VLOOKUP(AN253,'Footnotes list'!$D$9:$E$58,2,FALSE) ) )","v":""},null,null,null,null,{"$f":"IF(TRIM(AS253)=\"\", \"\", IF(VLOOKUP(AS253,'Footnotes list'!$D$9:$E$58,2,FALSE)=0,\"\",VLOOKUP(AS253,'Footnotes list'!$D$9:$E$58,2,FALSE) ) )","v":""},null,null,null,null,{"$f":"IF(TRIM(AX253)=\"\", \"\", IF(VLOOKUP(AX253,'Footnotes list'!$D$9:$E$58,2,FALSE)=0,\"\",VLOOKUP(AX253,'Footnotes list'!$D$9:$E$58,2,FALSE) ) )","v":""},null,null,null,null,{"$f":"IF(TRIM(BC253)=\"\", \"\", IF(VLOOKUP(BC253,'Footnotes list'!$D$9:$E$58,2,FALSE)=0,\"\",VLOOKUP(BC253,'Footnotes list'!$D$9:$E$58,2,FALSE) ) )","v":""},null,null,null,null,{"$f":"IF(TRIM(BH253)=\"\", \"\", IF(VLOOKUP(BH253,'Footnotes list'!$D$9:$E$58,2,FALSE)=0,\"\",VLOOKUP(BH253,'Footnotes list'!$D$9:$E$58,2,FALSE) ) )","v":""},null,null,null,null,{"$f":"IF(TRIM(BM253)=\"\", \"\", IF(VLOOKUP(BM253,'Footnotes list'!$D$9:$E$58,2,FALSE)=0,\"\",VLOOKUP(BM253,'Footnotes list'!$D$9:$E$58,2,FALSE) ) )","v":""},null,null,null,null,{"$f":"IF(TRIM(BR253)=\"\", \"\", IF(VLOOKUP(BR253,'Footnotes list'!$D$9:$E$58,2,FALSE)=0,\"\",VLOOKUP(BR253,'Footnotes list'!$D$9:$E$58,2,FALSE) ) )","v":""},null,null,null,null,{"$f":"IF(TRIM(BW253)=\"\", \"\", IF(VLOOKUP(BW253,'Footnotes list'!$D$9:$E$58,2,FALSE)=0,\"\",VLOOKUP(BW253,'Footnotes list'!$D$9:$E$58,2,FALSE) ) )","v":""},null,null,null,null,{"$f":"IF(TRIM(CB253)=\"\", \"\", IF(VLOOKUP(CB253,'Footnotes list'!$D$9:$E$58,2,FALSE)=0,\"\",VLOOKUP(CB253,'Footnotes list'!$D$9:$E$58,2,FALSE) ) )","v":""},null,null,null,null,{"$f":"IF(TRIM(CG253)=\"\", \"\", IF(VLOOKUP(CG253,'Footnotes list'!$D$9:$E$58,2,FALSE)=0,\"\",VLOOKUP(CG253,'Footnotes list'!$D$9:$E$58,2,FALSE) ) )","v":""},null,null,null,null,{"$f":"IF(TRIM(CL253)=\"\", \"\", IF(VLOOKUP(CL253,'Footnotes list'!$D$9:$E$58,2,FALSE)=0,\"\",VLOOKUP(CL253,'Footnotes list'!$D$9:$E$58,2,FALSE) ) )","v":""},null,null,null,null,{"$f":"IF(TRIM(CQ253)=\"\", \"\", IF(VLOOKUP(CQ253,'Footnotes list'!$D$9:$E$58,2,FALSE)=0,\"\",VLOOKUP(CQ253,'Footnotes list'!$D$9:$E$58,2,FALSE) ) )","v":""},null,null,null,null,{"$f":"IF(TRIM(CV253)=\"\", \"\", IF(VLOOKUP(CV253,'Footnotes list'!$D$9:$E$58,2,FALSE)=0,\"\",VLOOKUP(CV253,'Footnotes list'!$D$9:$E$58,2,FALSE) ) )","v":""},null,null,null,null,{"$f":"IF(TRIM(DA253)=\"\", \"\", IF(VLOOKUP(DA253,'Footnotes list'!$D$9:$E$58,2,FALSE)=0,\"\",VLOOKUP(DA253,'Footnotes list'!$D$9:$E$58,2,FALSE) ) )","v":""},null,null,null,null,{"$f":"IF(TRIM(DF253)=\"\", \"\", IF(VLOOKUP(DF253,'Footnotes list'!$D$9:$E$58,2,FALSE)=0,\"\",VLOOKUP(DF253,'Footnotes list'!$D$9:$E$58,2,FALSE) ) )","v":""},null,null,null,null,{"$f":"IF(TRIM(DK253)=\"\", \"\", IF(VLOOKUP(DK253,'Footnotes list'!$D$9:$E$58,2,FALSE)=0,\"\",VLOOKUP(DK253,'Footnotes list'!$D$9:$E$58,2,FALSE) ) )","v":""},null,null,null,null,{"$f":"IF(TRIM(DP253)=\"\", \"\", IF(VLOOKUP(DP253,'Footnotes list'!$D$9:$E$58,2,FALSE)=0,\"\",VLOOKUP(DP253,'Footnotes list'!$D$9:$E$58,2,FALSE) ) )","v":""},null,null,null,null,{"$f":"IF(TRIM(DU253)=\"\", \"\", IF(VLOOKUP(DU253,'Footnotes list'!$D$9:$E$58,2,FALSE)=0,\"\",VLOOKUP(DU253,'Footnotes list'!$D$9:$E$58,2,FALSE) ) )","v":""},null,null,null,null,{"$f":"IF(TRIM(DZ253)=\"\", \"\", IF(VLOOKUP(DZ253,'Footnotes list'!$D$9:$E$58,2,FALSE)=0,\"\",VLOOKUP(DZ253,'Footnotes list'!$D$9:$E$58,2,FALSE) ) )","v":""},null,null,null,null,{"$f":"IF(TRIM(EE253)=\"\", \"\", IF(VLOOKUP(EE253,'Footnotes list'!$D$9:$E$58,2,FALSE)=0,\"\",VLOOKUP(EE253,'Footnotes list'!$D$9:$E$58,2,FALSE) ) )","v":""},null,null,null,null,{"$f":"IF(TRIM(EJ253)=\"\", \"\", IF(VLOOKUP(EJ253,'Footnotes list'!$D$9:$E$58,2,FALSE)=0,\"\",VLOOKUP(EJ253,'Footnotes list'!$D$9:$E$58,2,FALSE) ) )","v":""},null,null,null,null,{"$f":"IF(TRIM(EO253)=\"\", \"\", IF(VLOOKUP(EO253,'Footnotes list'!$D$9:$E$58,2,FALSE)=0,\"\",VLOOKUP(EO253,'Footnotes list'!$D$9:$E$58,2,FALSE) ) )","v":""},null,null,null,null,{"$f":"IF(TRIM(ET253)=\"\", \"\", IF(VLOOKUP(ET253,'Footnotes list'!$D$9:$E$58,2,FALSE)=0,\"\",VLOOKUP(ET253,'Footnotes list'!$D$9:$E$58,2,FALSE) ) )","v":""},null,null,null,null,{"$f":"IF(TRIM(EY253)=\"\", \"\", IF(VLOOKUP(EY253,'Footnotes list'!$D$9:$E$58,2,FALSE)=0,\"\",VLOOKUP(EY253,'Footnotes list'!$D$9:$E$58,2,FALSE) ) )","v":""}]
[null,null,"N","ANC","ancillary activities",null,null,null,null,null,{"$f":"IF(TRIM(J254)=\"\", \"\", IF(VLOOKUP(J254,'Footnotes list'!$D$9:$E$58,2,FALSE)=0,\"\",VLOOKUP(J254,'Footnotes list'!$D$9:$E$58,2,FALSE) ) )","v":""},null,null,null,null,{"$f":"IF(TRIM(O254)=\"\", \"\", IF(VLOOKUP(O254,'Footnotes list'!$D$9:$E$58,2,FALSE)=0,\"\",VLOOKUP(O254,'Footnotes list'!$D$9:$E$58,2,FALSE) ) )","v":""},null,null,null,null,{"$f":"IF(TRIM(T254)=\"\", \"\", IF(VLOOKUP(T254,'Footnotes list'!$D$9:$E$58,2,FALSE)=0,\"\",VLOOKUP(T254,'Footnotes list'!$D$9:$E$58,2,FALSE) ) )","v":""},null,null,null,null,{"$f":"IF(TRIM(Y254)=\"\", \"\", IF(VLOOKUP(Y254,'Footnotes list'!$D$9:$E$58,2,FALSE)=0,\"\",VLOOKUP(Y254,'Footnotes list'!$D$9:$E$58,2,FALSE) ) )","v":""},null,null,null,null,{"$f":"IF(TRIM(AD254)=\"\", \"\", IF(VLOOKUP(AD254,'Footnotes list'!$D$9:$E$58,2,FALSE)=0,\"\",VLOOKUP(AD254,'Footnotes list'!$D$9:$E$58,2,FALSE) ) )","v":""},null,null,null,null,{"$f":"IF(TRIM(AI254)=\"\", \"\", IF(VLOOKUP(AI254,'Footnotes list'!$D$9:$E$58,2,FALSE)=0,\"\",VLOOKUP(AI254,'Footnotes list'!$D$9:$E$58,2,FALSE) ) )","v":""},null,null,null,null,{"$f":"IF(TRIM(AN254)=\"\", \"\", IF(VLOOKUP(AN254,'Footnotes list'!$D$9:$E$58,2,FALSE)=0,\"\",VLOOKUP(AN254,'Footnotes list'!$D$9:$E$58,2,FALSE) ) )","v":""},null,null,null,null,{"$f":"IF(TRIM(AS254)=\"\", \"\", IF(VLOOKUP(AS254,'Footnotes list'!$D$9:$E$58,2,FALSE)=0,\"\",VLOOKUP(AS254,'Footnotes list'!$D$9:$E$58,2,FALSE) ) )","v":""},null,null,null,null,{"$f":"IF(TRIM(AX254)=\"\", \"\", IF(VLOOKUP(AX254,'Footnotes list'!$D$9:$E$58,2,FALSE)=0,\"\",VLOOKUP(AX254,'Footnotes list'!$D$9:$E$58,2,FALSE) ) )","v":""},null,null,null,null,{"$f":"IF(TRIM(BC254)=\"\", \"\", IF(VLOOKUP(BC254,'Footnotes list'!$D$9:$E$58,2,FALSE)=0,\"\",VLOOKUP(BC254,'Footnotes list'!$D$9:$E$58,2,FALSE) ) )","v":""},null,null,null,null,{"$f":"IF(TRIM(BH254)=\"\", \"\", IF(VLOOKUP(BH254,'Footnotes list'!$D$9:$E$58,2,FALSE)=0,\"\",VLOOKUP(BH254,'Footnotes list'!$D$9:$E$58,2,FALSE) ) )","v":""},null,null,null,null,{"$f":"IF(TRIM(BM254)=\"\", \"\", IF(VLOOKUP(BM254,'Footnotes list'!$D$9:$E$58,2,FALSE)=0,\"\",VLOOKUP(BM254,'Footnotes list'!$D$9:$E$58,2,FALSE) ) )","v":""},null,null,null,null,{"$f":"IF(TRIM(BR254)=\"\", \"\", IF(VLOOKUP(BR254,'Footnotes list'!$D$9:$E$58,2,FALSE)=0,\"\",VLOOKUP(BR254,'Footnotes list'!$D$9:$E$58,2,FALSE) ) )","v":""},null,null,null,null,{"$f":"IF(TRIM(BW254)=\"\", \"\", IF(VLOOKUP(BW254,'Footnotes list'!$D$9:$E$58,2,FALSE)=0,\"\",VLOOKUP(BW254,'Footnotes list'!$D$9:$E$58,2,FALSE) ) )","v":""},null,null,null,null,{"$f":"IF(TRIM(CB254)=\"\", \"\", IF(VLOOKUP(CB254,'Footnotes list'!$D$9:$E$58,2,FALSE)=0,\"\",VLOOKUP(CB254,'Footnotes list'!$D$9:$E$58,2,FALSE) ) )","v":""},null,null,null,null,{"$f":"IF(TRIM(CG254)=\"\", \"\", IF(VLOOKUP(CG254,'Footnotes list'!$D$9:$E$58,2,FALSE)=0,\"\",VLOOKUP(CG254,'Footnotes list'!$D$9:$E$58,2,FALSE) ) )","v":""},null,null,null,null,{"$f":"IF(TRIM(CL254)=\"\", \"\", IF(VLOOKUP(CL254,'Footnotes list'!$D$9:$E$58,2,FALSE)=0,\"\",VLOOKUP(CL254,'Footnotes list'!$D$9:$E$58,2,FALSE) ) )","v":""},null,null,null,null,{"$f":"IF(TRIM(CQ254)=\"\", \"\", IF(VLOOKUP(CQ254,'Footnotes list'!$D$9:$E$58,2,FALSE)=0,\"\",VLOOKUP(CQ254,'Footnotes list'!$D$9:$E$58,2,FALSE) ) )","v":""},null,null,null,null,{"$f":"IF(TRIM(CV254)=\"\", \"\", IF(VLOOKUP(CV254,'Footnotes list'!$D$9:$E$58,2,FALSE)=0,\"\",VLOOKUP(CV254,'Footnotes list'!$D$9:$E$58,2,FALSE) ) )","v":""},null,null,null,null,{"$f":"IF(TRIM(DA254)=\"\", \"\", IF(VLOOKUP(DA254,'Footnotes list'!$D$9:$E$58,2,FALSE)=0,\"\",VLOOKUP(DA254,'Footnotes list'!$D$9:$E$58,2,FALSE) ) )","v":""},null,null,null,null,{"$f":"IF(TRIM(DF254)=\"\", \"\", IF(VLOOKUP(DF254,'Footnotes list'!$D$9:$E$58,2,FALSE)=0,\"\",VLOOKUP(DF254,'Footnotes list'!$D$9:$E$58,2,FALSE) ) )","v":""},null,null,null,null,{"$f":"IF(TRIM(DK254)=\"\", \"\", IF(VLOOKUP(DK254,'Footnotes list'!$D$9:$E$58,2,FALSE)=0,\"\",VLOOKUP(DK254,'Footnotes list'!$D$9:$E$58,2,FALSE) ) )","v":""},null,null,null,null,{"$f":"IF(TRIM(DP254)=\"\", \"\", IF(VLOOKUP(DP254,'Footnotes list'!$D$9:$E$58,2,FALSE)=0,\"\",VLOOKUP(DP254,'Footnotes list'!$D$9:$E$58,2,FALSE) ) )","v":""},null,null,null,null,{"$f":"IF(TRIM(DU254)=\"\", \"\", IF(VLOOKUP(DU254,'Footnotes list'!$D$9:$E$58,2,FALSE)=0,\"\",VLOOKUP(DU254,'Footnotes list'!$D$9:$E$58,2,FALSE) ) )","v":""},null,null,null,null,{"$f":"IF(TRIM(DZ254)=\"\", \"\", IF(VLOOKUP(DZ254,'Footnotes list'!$D$9:$E$58,2,FALSE)=0,\"\",VLOOKUP(DZ254,'Footnotes list'!$D$9:$E$58,2,FALSE) ) )","v":""},null,null,null,null,{"$f":"IF(TRIM(EE254)=\"\", \"\", IF(VLOOKUP(EE254,'Footnotes list'!$D$9:$E$58,2,FALSE)=0,\"\",VLOOKUP(EE254,'Footnotes list'!$D$9:$E$58,2,FALSE) ) )","v":""},null,null,null,null,{"$f":"IF(TRIM(EJ254)=\"\", \"\", IF(VLOOKUP(EJ254,'Footnotes list'!$D$9:$E$58,2,FALSE)=0,\"\",VLOOKUP(EJ254,'Footnotes list'!$D$9:$E$58,2,FALSE) ) )","v":""},null,null,null,null,{"$f":"IF(TRIM(EO254)=\"\", \"\", IF(VLOOKUP(EO254,'Footnotes list'!$D$9:$E$58,2,FALSE)=0,\"\",VLOOKUP(EO254,'Footnotes list'!$D$9:$E$58,2,FALSE) ) )","v":""},null,null,null,null,{"$f":"IF(TRIM(ET254)=\"\", \"\", IF(VLOOKUP(ET254,'Footnotes list'!$D$9:$E$58,2,FALSE)=0,\"\",VLOOKUP(ET254,'Footnotes list'!$D$9:$E$58,2,FALSE) ) )","v":""},null,null,null,null,{"$f":"IF(TRIM(EY254)=\"\", \"\", IF(VLOOKUP(EY254,'Footnotes list'!$D$9:$E$58,2,FALSE)=0,\"\",VLOOKUP(EY254,'Footnotes list'!$D$9:$E$58,2,FALSE) ) )","v":""}]
[null,null,"N","NMKT","non-market activities",null,null,null,null,null,{"$f":"IF(TRIM(J255)=\"\", \"\", IF(VLOOKUP(J255,'Footnotes list'!$D$9:$E$58,2,FALSE)=0,\"\",VLOOKUP(J255,'Footnotes list'!$D$9:$E$58,2,FALSE) ) )","v":""},null,null,null,null,{"$f":"IF(TRIM(O255)=\"\", \"\", IF(VLOOKUP(O255,'Footnotes list'!$D$9:$E$58,2,FALSE)=0,\"\",VLOOKUP(O255,'Footnotes list'!$D$9:$E$58,2,FALSE) ) )","v":""},null,null,null,null,{"$f":"IF(TRIM(T255)=\"\", \"\", IF(VLOOKUP(T255,'Footnotes list'!$D$9:$E$58,2,FALSE)=0,\"\",VLOOKUP(T255,'Footnotes list'!$D$9:$E$58,2,FALSE) ) )","v":""},null,null,null,null,{"$f":"IF(TRIM(Y255)=\"\", \"\", IF(VLOOKUP(Y255,'Footnotes list'!$D$9:$E$58,2,FALSE)=0,\"\",VLOOKUP(Y255,'Footnotes list'!$D$9:$E$58,2,FALSE) ) )","v":""},null,null,null,null,{"$f":"IF(TRIM(AD255)=\"\", \"\", IF(VLOOKUP(AD255,'Footnotes list'!$D$9:$E$58,2,FALSE)=0,\"\",VLOOKUP(AD255,'Footnotes list'!$D$9:$E$58,2,FALSE) ) )","v":""},null,null,null,null,{"$f":"IF(TRIM(AI255)=\"\", \"\", IF(VLOOKUP(AI255,'Footnotes list'!$D$9:$E$58,2,FALSE)=0,\"\",VLOOKUP(AI255,'Footnotes list'!$D$9:$E$58,2,FALSE) ) )","v":""},null,null,null,null,{"$f":"IF(TRIM(AN255)=\"\", \"\", IF(VLOOKUP(AN255,'Footnotes list'!$D$9:$E$58,2,FALSE)=0,\"\",VLOOKUP(AN255,'Footnotes list'!$D$9:$E$58,2,FALSE) ) )","v":""},null,null,null,null,{"$f":"IF(TRIM(AS255)=\"\", \"\", IF(VLOOKUP(AS255,'Footnotes list'!$D$9:$E$58,2,FALSE)=0,\"\",VLOOKUP(AS255,'Footnotes list'!$D$9:$E$58,2,FALSE) ) )","v":""},null,null,null,null,{"$f":"IF(TRIM(AX255)=\"\", \"\", IF(VLOOKUP(AX255,'Footnotes list'!$D$9:$E$58,2,FALSE)=0,\"\",VLOOKUP(AX255,'Footnotes list'!$D$9:$E$58,2,FALSE) ) )","v":""},null,null,null,null,{"$f":"IF(TRIM(BC255)=\"\", \"\", IF(VLOOKUP(BC255,'Footnotes list'!$D$9:$E$58,2,FALSE)=0,\"\",VLOOKUP(BC255,'Footnotes list'!$D$9:$E$58,2,FALSE) ) )","v":""},null,null,null,null,{"$f":"IF(TRIM(BH255)=\"\", \"\", IF(VLOOKUP(BH255,'Footnotes list'!$D$9:$E$58,2,FALSE)=0,\"\",VLOOKUP(BH255,'Footnotes list'!$D$9:$E$58,2,FALSE) ) )","v":""},null,null,null,null,{"$f":"IF(TRIM(BM255)=\"\", \"\", IF(VLOOKUP(BM255,'Footnotes list'!$D$9:$E$58,2,FALSE)=0,\"\",VLOOKUP(BM255,'Footnotes list'!$D$9:$E$58,2,FALSE) ) )","v":""},null,null,null,null,{"$f":"IF(TRIM(BR255)=\"\", \"\", IF(VLOOKUP(BR255,'Footnotes list'!$D$9:$E$58,2,FALSE)=0,\"\",VLOOKUP(BR255,'Footnotes list'!$D$9:$E$58,2,FALSE) ) )","v":""},null,null,null,null,{"$f":"IF(TRIM(BW255)=\"\", \"\", IF(VLOOKUP(BW255,'Footnotes list'!$D$9:$E$58,2,FALSE)=0,\"\",VLOOKUP(BW255,'Footnotes list'!$D$9:$E$58,2,FALSE) ) )","v":""},null,null,null,null,{"$f":"IF(TRIM(CB255)=\"\", \"\", IF(VLOOKUP(CB255,'Footnotes list'!$D$9:$E$58,2,FALSE)=0,\"\",VLOOKUP(CB255,'Footnotes list'!$D$9:$E$58,2,FALSE) ) )","v":""},null,null,null,null,{"$f":"IF(TRIM(CG255)=\"\", \"\", IF(VLOOKUP(CG255,'Footnotes list'!$D$9:$E$58,2,FALSE)=0,\"\",VLOOKUP(CG255,'Footnotes list'!$D$9:$E$58,2,FALSE) ) )","v":""},null,null,null,null,{"$f":"IF(TRIM(CL255)=\"\", \"\", IF(VLOOKUP(CL255,'Footnotes list'!$D$9:$E$58,2,FALSE)=0,\"\",VLOOKUP(CL255,'Footnotes list'!$D$9:$E$58,2,FALSE) ) )","v":""},null,null,null,null,{"$f":"IF(TRIM(CQ255)=\"\", \"\", IF(VLOOKUP(CQ255,'Footnotes list'!$D$9:$E$58,2,FALSE)=0,\"\",VLOOKUP(CQ255,'Footnotes list'!$D$9:$E$58,2,FALSE) ) )","v":""},null,null,null,null,{"$f":"IF(TRIM(CV255)=\"\", \"\", IF(VLOOKUP(CV255,'Footnotes list'!$D$9:$E$58,2,FALSE)=0,\"\",VLOOKUP(CV255,'Footnotes list'!$D$9:$E$58,2,FALSE) ) )","v":""},null,null,null,null,{"$f":"IF(TRIM(DA255)=\"\", \"\", IF(VLOOKUP(DA255,'Footnotes list'!$D$9:$E$58,2,FALSE)=0,\"\",VLOOKUP(DA255,'Footnotes list'!$D$9:$E$58,2,FALSE) ) )","v":""},null,null,null,null,{"$f":"IF(TRIM(DF255)=\"\", \"\", IF(VLOOKUP(DF255,'Footnotes list'!$D$9:$E$58,2,FALSE)=0,\"\",VLOOKUP(DF255,'Footnotes list'!$D$9:$E$58,2,FALSE) ) )","v":""},null,null,null,null,{"$f":"IF(TRIM(DK255)=\"\", \"\", IF(VLOOKUP(DK255,'Footnotes list'!$D$9:$E$58,2,FALSE)=0,\"\",VLOOKUP(DK255,'Footnotes list'!$D$9:$E$58,2,FALSE) ) )","v":""},null,null,null,null,{"$f":"IF(TRIM(DP255)=\"\", \"\", IF(VLOOKUP(DP255,'Footnotes list'!$D$9:$E$58,2,FALSE)=0,\"\",VLOOKUP(DP255,'Footnotes list'!$D$9:$E$58,2,FALSE) ) )","v":""},null,null,null,null,{"$f":"IF(TRIM(DU255)=\"\", \"\", IF(VLOOKUP(DU255,'Footnotes list'!$D$9:$E$58,2,FALSE)=0,\"\",VLOOKUP(DU255,'Footnotes list'!$D$9:$E$58,2,FALSE) ) )","v":""},null,null,null,null,{"$f":"IF(TRIM(DZ255)=\"\", \"\", IF(VLOOKUP(DZ255,'Footnotes list'!$D$9:$E$58,2,FALSE)=0,\"\",VLOOKUP(DZ255,'Footnotes list'!$D$9:$E$58,2,FALSE) ) )","v":""},null,null,null,null,{"$f":"IF(TRIM(EE255)=\"\", \"\", IF(VLOOKUP(EE255,'Footnotes list'!$D$9:$E$58,2,FALSE)=0,\"\",VLOOKUP(EE255,'Footnotes list'!$D$9:$E$58,2,FALSE) ) )","v":""},null,null,null,null,{"$f":"IF(TRIM(EJ255)=\"\", \"\", IF(VLOOKUP(EJ255,'Footnotes list'!$D$9:$E$58,2,FALSE)=0,\"\",VLOOKUP(EJ255,'Footnotes list'!$D$9:$E$58,2,FALSE) ) )","v":""},null,null,null,null,{"$f":"IF(TRIM(EO255)=\"\", \"\", IF(VLOOKUP(EO255,'Footnotes list'!$D$9:$E$58,2,FALSE)=0,\"\",VLOOKUP(EO255,'Footnotes list'!$D$9:$E$58,2,FALSE) ) )","v":""},null,null,null,null,{"$f":"IF(TRIM(ET255)=\"\", \"\", IF(VLOOKUP(ET255,'Footnotes list'!$D$9:$E$58,2,FALSE)=0,\"\",VLOOKUP(ET255,'Footnotes list'!$D$9:$E$58,2,FALSE) ) )","v":""},null,null,null,null,{"$f":"IF(TRIM(EY255)=\"\", \"\", IF(VLOOKUP(EY255,'Footnotes list'!$D$9:$E$58,2,FALSE)=0,\"\",VLOOKUP(EY255,'Footnotes list'!$D$9:$E$58,2,FALSE) ) )","v":""}]
[null,null,"N","OWN_USE","activities for own final use",null,null,null,null,null,{"$f":"IF(TRIM(J256)=\"\", \"\", IF(VLOOKUP(J256,'Footnotes list'!$D$9:$E$58,2,FALSE)=0,\"\",VLOOKUP(J256,'Footnotes list'!$D$9:$E$58,2,FALSE) ) )","v":""},null,null,null,null,{"$f":"IF(TRIM(O256)=\"\", \"\", IF(VLOOKUP(O256,'Footnotes list'!$D$9:$E$58,2,FALSE)=0,\"\",VLOOKUP(O256,'Footnotes list'!$D$9:$E$58,2,FALSE) ) )","v":""},null,null,null,null,{"$f":"IF(TRIM(T256)=\"\", \"\", IF(VLOOKUP(T256,'Footnotes list'!$D$9:$E$58,2,FALSE)=0,\"\",VLOOKUP(T256,'Footnotes list'!$D$9:$E$58,2,FALSE) ) )","v":""},null,null,null,null,{"$f":"IF(TRIM(Y256)=\"\", \"\", IF(VLOOKUP(Y256,'Footnotes list'!$D$9:$E$58,2,FALSE)=0,\"\",VLOOKUP(Y256,'Footnotes list'!$D$9:$E$58,2,FALSE) ) )","v":""},null,null,null,null,{"$f":"IF(TRIM(AD256)=\"\", \"\", IF(VLOOKUP(AD256,'Footnotes list'!$D$9:$E$58,2,FALSE)=0,\"\",VLOOKUP(AD256,'Footnotes list'!$D$9:$E$58,2,FALSE) ) )","v":""},null,null,null,null,{"$f":"IF(TRIM(AI256)=\"\", \"\", IF(VLOOKUP(AI256,'Footnotes list'!$D$9:$E$58,2,FALSE)=0,\"\",VLOOKUP(AI256,'Footnotes list'!$D$9:$E$58,2,FALSE) ) )","v":""},null,null,null,null,{"$f":"IF(TRIM(AN256)=\"\", \"\", IF(VLOOKUP(AN256,'Footnotes list'!$D$9:$E$58,2,FALSE)=0,\"\",VLOOKUP(AN256,'Footnotes list'!$D$9:$E$58,2,FALSE) ) )","v":""},null,null,null,null,{"$f":"IF(TRIM(AS256)=\"\", \"\", IF(VLOOKUP(AS256,'Footnotes list'!$D$9:$E$58,2,FALSE)=0,\"\",VLOOKUP(AS256,'Footnotes list'!$D$9:$E$58,2,FALSE) ) )","v":""},null,null,null,null,{"$f":"IF(TRIM(AX256)=\"\", \"\", IF(VLOOKUP(AX256,'Footnotes list'!$D$9:$E$58,2,FALSE)=0,\"\",VLOOKUP(AX256,'Footnotes list'!$D$9:$E$58,2,FALSE) ) )","v":""},null,null,null,null,{"$f":"IF(TRIM(BC256)=\"\", \"\", IF(VLOOKUP(BC256,'Footnotes list'!$D$9:$E$58,2,FALSE)=0,\"\",VLOOKUP(BC256,'Footnotes list'!$D$9:$E$58,2,FALSE) ) )","v":""},null,null,null,null,{"$f":"IF(TRIM(BH256)=\"\", \"\", IF(VLOOKUP(BH256,'Footnotes list'!$D$9:$E$58,2,FALSE)=0,\"\",VLOOKUP(BH256,'Footnotes list'!$D$9:$E$58,2,FALSE) ) )","v":""},null,null,null,null,{"$f":"IF(TRIM(BM256)=\"\", \"\", IF(VLOOKUP(BM256,'Footnotes list'!$D$9:$E$58,2,FALSE)=0,\"\",VLOOKUP(BM256,'Footnotes list'!$D$9:$E$58,2,FALSE) ) )","v":""},null,null,null,null,{"$f":"IF(TRIM(BR256)=\"\", \"\", IF(VLOOKUP(BR256,'Footnotes list'!$D$9:$E$58,2,FALSE)=0,\"\",VLOOKUP(BR256,'Footnotes list'!$D$9:$E$58,2,FALSE) ) )","v":""},null,null,null,null,{"$f":"IF(TRIM(BW256)=\"\", \"\", IF(VLOOKUP(BW256,'Footnotes list'!$D$9:$E$58,2,FALSE)=0,\"\",VLOOKUP(BW256,'Footnotes list'!$D$9:$E$58,2,FALSE) ) )","v":""},null,null,null,null,{"$f":"IF(TRIM(CB256)=\"\", \"\", IF(VLOOKUP(CB256,'Footnotes list'!$D$9:$E$58,2,FALSE)=0,\"\",VLOOKUP(CB256,'Footnotes list'!$D$9:$E$58,2,FALSE) ) )","v":""},null,null,null,null,{"$f":"IF(TRIM(CG256)=\"\", \"\", IF(VLOOKUP(CG256,'Footnotes list'!$D$9:$E$58,2,FALSE)=0,\"\",VLOOKUP(CG256,'Footnotes list'!$D$9:$E$58,2,FALSE) ) )","v":""},null,null,null,null,{"$f":"IF(TRIM(CL256)=\"\", \"\", IF(VLOOKUP(CL256,'Footnotes list'!$D$9:$E$58,2,FALSE)=0,\"\",VLOOKUP(CL256,'Footnotes list'!$D$9:$E$58,2,FALSE) ) )","v":""},null,null,null,null,{"$f":"IF(TRIM(CQ256)=\"\", \"\", IF(VLOOKUP(CQ256,'Footnotes list'!$D$9:$E$58,2,FALSE)=0,\"\",VLOOKUP(CQ256,'Footnotes list'!$D$9:$E$58,2,FALSE) ) )","v":""},null,null,null,null,{"$f":"IF(TRIM(CV256)=\"\", \"\", IF(VLOOKUP(CV256,'Footnotes list'!$D$9:$E$58,2,FALSE)=0,\"\",VLOOKUP(CV256,'Footnotes list'!$D$9:$E$58,2,FALSE) ) )","v":""},null,null,null,null,{"$f":"IF(TRIM(DA256)=\"\", \"\", IF(VLOOKUP(DA256,'Footnotes list'!$D$9:$E$58,2,FALSE)=0,\"\",VLOOKUP(DA256,'Footnotes list'!$D$9:$E$58,2,FALSE) ) )","v":""},null,null,null,null,{"$f":"IF(TRIM(DF256)=\"\", \"\", IF(VLOOKUP(DF256,'Footnotes list'!$D$9:$E$58,2,FALSE)=0,\"\",VLOOKUP(DF256,'Footnotes list'!$D$9:$E$58,2,FALSE) ) )","v":""},null,null,null,null,{"$f":"IF(TRIM(DK256)=\"\", \"\", IF(VLOOKUP(DK256,'Footnotes list'!$D$9:$E$58,2,FALSE)=0,\"\",VLOOKUP(DK256,'Footnotes list'!$D$9:$E$58,2,FALSE) ) )","v":""},null,null,null,null,{"$f":"IF(TRIM(DP256)=\"\", \"\", IF(VLOOKUP(DP256,'Footnotes list'!$D$9:$E$58,2,FALSE)=0,\"\",VLOOKUP(DP256,'Footnotes list'!$D$9:$E$58,2,FALSE) ) )","v":""},null,null,null,null,{"$f":"IF(TRIM(DU256)=\"\", \"\", IF(VLOOKUP(DU256,'Footnotes list'!$D$9:$E$58,2,FALSE)=0,\"\",VLOOKUP(DU256,'Footnotes list'!$D$9:$E$58,2,FALSE) ) )","v":""},null,null,null,null,{"$f":"IF(TRIM(DZ256)=\"\", \"\", IF(VLOOKUP(DZ256,'Footnotes list'!$D$9:$E$58,2,FALSE)=0,\"\",VLOOKUP(DZ256,'Footnotes list'!$D$9:$E$58,2,FALSE) ) )","v":""},null,null,null,null,{"$f":"IF(TRIM(EE256)=\"\", \"\", IF(VLOOKUP(EE256,'Footnotes list'!$D$9:$E$58,2,FALSE)=0,\"\",VLOOKUP(EE256,'Footnotes list'!$D$9:$E$58,2,FALSE) ) )","v":""},null,null,null,null,{"$f":"IF(TRIM(EJ256)=\"\", \"\", IF(VLOOKUP(EJ256,'Footnotes list'!$D$9:$E$58,2,FALSE)=0,\"\",VLOOKUP(EJ256,'Footnotes list'!$D$9:$E$58,2,FALSE) ) )","v":""},null,null,null,null,{"$f":"IF(TRIM(EO256)=\"\", \"\", IF(VLOOKUP(EO256,'Footnotes list'!$D$9:$E$58,2,FALSE)=0,\"\",VLOOKUP(EO256,'Footnotes list'!$D$9:$E$58,2,FALSE) ) )","v":""},null,null,null,null,{"$f":"IF(TRIM(ET256)=\"\", \"\", IF(VLOOKUP(ET256,'Footnotes list'!$D$9:$E$58,2,FALSE)=0,\"\",VLOOKUP(ET256,'Footnotes list'!$D$9:$E$58,2,FALSE) ) )","v":""},null,null,null,null,{"$f":"IF(TRIM(EY256)=\"\", \"\", IF(VLOOKUP(EY256,'Footnotes list'!$D$9:$E$58,2,FALSE)=0,\"\",VLOOKUP(EY256,'Footnotes list'!$D$9:$E$58,2,FALSE) ) )","v":""}]
[null,null,"N","MKT","market activities, including:",null,null,null,null,null,{"$f":"IF(TRIM(J257)=\"\", \"\", IF(VLOOKUP(J257,'Footnotes list'!$D$9:$E$58,2,FALSE)=0,\"\",VLOOKUP(J257,'Footnotes list'!$D$9:$E$58,2,FALSE) ) )","v":""},null,null,null,null,{"$f":"IF(TRIM(O257)=\"\", \"\", IF(VLOOKUP(O257,'Footnotes list'!$D$9:$E$58,2,FALSE)=0,\"\",VLOOKUP(O257,'Footnotes list'!$D$9:$E$58,2,FALSE) ) )","v":""},null,null,null,null,{"$f":"IF(TRIM(T257)=\"\", \"\", IF(VLOOKUP(T257,'Footnotes list'!$D$9:$E$58,2,FALSE)=0,\"\",VLOOKUP(T257,'Footnotes list'!$D$9:$E$58,2,FALSE) ) )","v":""},null,null,null,null,{"$f":"IF(TRIM(Y257)=\"\", \"\", IF(VLOOKUP(Y257,'Footnotes list'!$D$9:$E$58,2,FALSE)=0,\"\",VLOOKUP(Y257,'Footnotes list'!$D$9:$E$58,2,FALSE) ) )","v":""},null,null,null,null,{"$f":"IF(TRIM(AD257)=\"\", \"\", IF(VLOOKUP(AD257,'Footnotes list'!$D$9:$E$58,2,FALSE)=0,\"\",VLOOKUP(AD257,'Footnotes list'!$D$9:$E$58,2,FALSE) ) )","v":""},null,null,null,null,{"$f":"IF(TRIM(AI257)=\"\", \"\", IF(VLOOKUP(AI257,'Footnotes list'!$D$9:$E$58,2,FALSE)=0,\"\",VLOOKUP(AI257,'Footnotes list'!$D$9:$E$58,2,FALSE) ) )","v":""},null,null,null,null,{"$f":"IF(TRIM(AN257)=\"\", \"\", IF(VLOOKUP(AN257,'Footnotes list'!$D$9:$E$58,2,FALSE)=0,\"\",VLOOKUP(AN257,'Footnotes list'!$D$9:$E$58,2,FALSE) ) )","v":""},null,null,null,null,{"$f":"IF(TRIM(AS257)=\"\", \"\", IF(VLOOKUP(AS257,'Footnotes list'!$D$9:$E$58,2,FALSE)=0,\"\",VLOOKUP(AS257,'Footnotes list'!$D$9:$E$58,2,FALSE) ) )","v":""},null,null,null,null,{"$f":"IF(TRIM(AX257)=\"\", \"\", IF(VLOOKUP(AX257,'Footnotes list'!$D$9:$E$58,2,FALSE)=0,\"\",VLOOKUP(AX257,'Footnotes list'!$D$9:$E$58,2,FALSE) ) )","v":""},null,null,null,null,{"$f":"IF(TRIM(BC257)=\"\", \"\", IF(VLOOKUP(BC257,'Footnotes list'!$D$9:$E$58,2,FALSE)=0,\"\",VLOOKUP(BC257,'Footnotes list'!$D$9:$E$58,2,FALSE) ) )","v":""},null,null,null,null,{"$f":"IF(TRIM(BH257)=\"\", \"\", IF(VLOOKUP(BH257,'Footnotes list'!$D$9:$E$58,2,FALSE)=0,\"\",VLOOKUP(BH257,'Footnotes list'!$D$9:$E$58,2,FALSE) ) )","v":""},null,null,null,null,{"$f":"IF(TRIM(BM257)=\"\", \"\", IF(VLOOKUP(BM257,'Footnotes list'!$D$9:$E$58,2,FALSE)=0,\"\",VLOOKUP(BM257,'Footnotes list'!$D$9:$E$58,2,FALSE) ) )","v":""},null,null,null,null,{"$f":"IF(TRIM(BR257)=\"\", \"\", IF(VLOOKUP(BR257,'Footnotes list'!$D$9:$E$58,2,FALSE)=0,\"\",VLOOKUP(BR257,'Footnotes list'!$D$9:$E$58,2,FALSE) ) )","v":""},null,null,null,null,{"$f":"IF(TRIM(BW257)=\"\", \"\", IF(VLOOKUP(BW257,'Footnotes list'!$D$9:$E$58,2,FALSE)=0,\"\",VLOOKUP(BW257,'Footnotes list'!$D$9:$E$58,2,FALSE) ) )","v":""},null,null,null,null,{"$f":"IF(TRIM(CB257)=\"\", \"\", IF(VLOOKUP(CB257,'Footnotes list'!$D$9:$E$58,2,FALSE)=0,\"\",VLOOKUP(CB257,'Footnotes list'!$D$9:$E$58,2,FALSE) ) )","v":""},null,null,null,null,{"$f":"IF(TRIM(CG257)=\"\", \"\", IF(VLOOKUP(CG257,'Footnotes list'!$D$9:$E$58,2,FALSE)=0,\"\",VLOOKUP(CG257,'Footnotes list'!$D$9:$E$58,2,FALSE) ) )","v":""},null,null,null,null,{"$f":"IF(TRIM(CL257)=\"\", \"\", IF(VLOOKUP(CL257,'Footnotes list'!$D$9:$E$58,2,FALSE)=0,\"\",VLOOKUP(CL257,'Footnotes list'!$D$9:$E$58,2,FALSE) ) )","v":""},null,null,null,null,{"$f":"IF(TRIM(CQ257)=\"\", \"\", IF(VLOOKUP(CQ257,'Footnotes list'!$D$9:$E$58,2,FALSE)=0,\"\",VLOOKUP(CQ257,'Footnotes list'!$D$9:$E$58,2,FALSE) ) )","v":""},null,null,null,null,{"$f":"IF(TRIM(CV257)=\"\", \"\", IF(VLOOKUP(CV257,'Footnotes list'!$D$9:$E$58,2,FALSE)=0,\"\",VLOOKUP(CV257,'Footnotes list'!$D$9:$E$58,2,FALSE) ) )","v":""},null,null,null,null,{"$f":"IF(TRIM(DA257)=\"\", \"\", IF(VLOOKUP(DA257,'Footnotes list'!$D$9:$E$58,2,FALSE)=0,\"\",VLOOKUP(DA257,'Footnotes list'!$D$9:$E$58,2,FALSE) ) )","v":""},null,null,null,null,{"$f":"IF(TRIM(DF257)=\"\", \"\", IF(VLOOKUP(DF257,'Footnotes list'!$D$9:$E$58,2,FALSE)=0,\"\",VLOOKUP(DF257,'Footnotes list'!$D$9:$E$58,2,FALSE) ) )","v":""},null,null,null,null,{"$f":"IF(TRIM(DK257)=\"\", \"\", IF(VLOOKUP(DK257,'Footnotes list'!$D$9:$E$58,2,FALSE)=0,\"\",VLOOKUP(DK257,'Footnotes list'!$D$9:$E$58,2,FALSE) ) )","v":""},null,null,null,null,{"$f":"IF(TRIM(DP257)=\"\", \"\", IF(VLOOKUP(DP257,'Footnotes list'!$D$9:$E$58,2,FALSE)=0,\"\",VLOOKUP(DP257,'Footnotes list'!$D$9:$E$58,2,FALSE) ) )","v":""},null,null,null,null,{"$f":"IF(TRIM(DU257)=\"\", \"\", IF(VLOOKUP(DU257,'Footnotes list'!$D$9:$E$58,2,FALSE)=0,\"\",VLOOKUP(DU257,'Footnotes list'!$D$9:$E$58,2,FALSE) ) )","v":""},null,null,null,null,{"$f":"IF(TRIM(DZ257)=\"\", \"\", IF(VLOOKUP(DZ257,'Footnotes list'!$D$9:$E$58,2,FALSE)=0,\"\",VLOOKUP(DZ257,'Footnotes list'!$D$9:$E$58,2,FALSE) ) )","v":""},null,null,null,null,{"$f":"IF(TRIM(EE257)=\"\", \"\", IF(VLOOKUP(EE257,'Footnotes list'!$D$9:$E$58,2,FALSE)=0,\"\",VLOOKUP(EE257,'Footnotes list'!$D$9:$E$58,2,FALSE) ) )","v":""},null,null,null,null,{"$f":"IF(TRIM(EJ257)=\"\", \"\", IF(VLOOKUP(EJ257,'Footnotes list'!$D$9:$E$58,2,FALSE)=0,\"\",VLOOKUP(EJ257,'Footnotes list'!$D$9:$E$58,2,FALSE) ) )","v":""},null,null,null,null,{"$f":"IF(TRIM(EO257)=\"\", \"\", IF(VLOOKUP(EO257,'Footnotes list'!$D$9:$E$58,2,FALSE)=0,\"\",VLOOKUP(EO257,'Footnotes list'!$D$9:$E$58,2,FALSE) ) )","v":""},null,null,null,null,{"$f":"IF(TRIM(ET257)=\"\", \"\", IF(VLOOKUP(ET257,'Footnotes list'!$D$9:$E$58,2,FALSE)=0,\"\",VLOOKUP(ET257,'Footnotes list'!$D$9:$E$58,2,FALSE) ) )","v":""},null,null,null,null,{"$f":"IF(TRIM(EY257)=\"\", \"\", IF(VLOOKUP(EY257,'Footnotes list'!$D$9:$E$58,2,FALSE)=0,\"\",VLOOKUP(EY257,'Footnotes list'!$D$9:$E$58,2,FALSE) ) )","v":""}]
[null,null,"N","ES_CS","environmental specific services",null,null,null,null,null,{"$f":"IF(TRIM(J258)=\"\", \"\", IF(VLOOKUP(J258,'Footnotes list'!$D$9:$E$58,2,FALSE)=0,\"\",VLOOKUP(J258,'Footnotes list'!$D$9:$E$58,2,FALSE) ) )","v":""},null,null,null,null,{"$f":"IF(TRIM(O258)=\"\", \"\", IF(VLOOKUP(O258,'Footnotes list'!$D$9:$E$58,2,FALSE)=0,\"\",VLOOKUP(O258,'Footnotes list'!$D$9:$E$58,2,FALSE) ) )","v":""},null,null,null,null,{"$f":"IF(TRIM(T258)=\"\", \"\", IF(VLOOKUP(T258,'Footnotes list'!$D$9:$E$58,2,FALSE)=0,\"\",VLOOKUP(T258,'Footnotes list'!$D$9:$E$58,2,FALSE) ) )","v":""},null,null,null,null,{"$f":"IF(TRIM(Y258)=\"\", \"\", IF(VLOOKUP(Y258,'Footnotes list'!$D$9:$E$58,2,FALSE)=0,\"\",VLOOKUP(Y258,'Footnotes list'!$D$9:$E$58,2,FALSE) ) )","v":""},null,null,null,null,{"$f":"IF(TRIM(AD258)=\"\", \"\", IF(VLOOKUP(AD258,'Footnotes list'!$D$9:$E$58,2,FALSE)=0,\"\",VLOOKUP(AD258,'Footnotes list'!$D$9:$E$58,2,FALSE) ) )","v":""},null,null,null,null,{"$f":"IF(TRIM(AI258)=\"\", \"\", IF(VLOOKUP(AI258,'Footnotes list'!$D$9:$E$58,2,FALSE)=0,\"\",VLOOKUP(AI258,'Footnotes list'!$D$9:$E$58,2,FALSE) ) )","v":""},null,null,null,null,{"$f":"IF(TRIM(AN258)=\"\", \"\", IF(VLOOKUP(AN258,'Footnotes list'!$D$9:$E$58,2,FALSE)=0,\"\",VLOOKUP(AN258,'Footnotes list'!$D$9:$E$58,2,FALSE) ) )","v":""},null,null,null,null,{"$f":"IF(TRIM(AS258)=\"\", \"\", IF(VLOOKUP(AS258,'Footnotes list'!$D$9:$E$58,2,FALSE)=0,\"\",VLOOKUP(AS258,'Footnotes list'!$D$9:$E$58,2,FALSE) ) )","v":""},null,null,null,null,{"$f":"IF(TRIM(AX258)=\"\", \"\", IF(VLOOKUP(AX258,'Footnotes list'!$D$9:$E$58,2,FALSE)=0,\"\",VLOOKUP(AX258,'Footnotes list'!$D$9:$E$58,2,FALSE) ) )","v":""},null,null,null,null,{"$f":"IF(TRIM(BC258)=\"\", \"\", IF(VLOOKUP(BC258,'Footnotes list'!$D$9:$E$58,2,FALSE)=0,\"\",VLOOKUP(BC258,'Footnotes list'!$D$9:$E$58,2,FALSE) ) )","v":""},null,null,null,null,{"$f":"IF(TRIM(BH258)=\"\", \"\", IF(VLOOKUP(BH258,'Footnotes list'!$D$9:$E$58,2,FALSE)=0,\"\",VLOOKUP(BH258,'Footnotes list'!$D$9:$E$58,2,FALSE) ) )","v":""},null,null,null,null,{"$f":"IF(TRIM(BM258)=\"\", \"\", IF(VLOOKUP(BM258,'Footnotes list'!$D$9:$E$58,2,FALSE)=0,\"\",VLOOKUP(BM258,'Footnotes list'!$D$9:$E$58,2,FALSE) ) )","v":""},null,null,null,null,{"$f":"IF(TRIM(BR258)=\"\", \"\", IF(VLOOKUP(BR258,'Footnotes list'!$D$9:$E$58,2,FALSE)=0,\"\",VLOOKUP(BR258,'Footnotes list'!$D$9:$E$58,2,FALSE) ) )","v":""},null,null,null,null,{"$f":"IF(TRIM(BW258)=\"\", \"\", IF(VLOOKUP(BW258,'Footnotes list'!$D$9:$E$58,2,FALSE)=0,\"\",VLOOKUP(BW258,'Footnotes list'!$D$9:$E$58,2,FALSE) ) )","v":""},null,null,null,null,{"$f":"IF(TRIM(CB258)=\"\", \"\", IF(VLOOKUP(CB258,'Footnotes list'!$D$9:$E$58,2,FALSE)=0,\"\",VLOOKUP(CB258,'Footnotes list'!$D$9:$E$58,2,FALSE) ) )","v":""},null,null,null,null,{"$f":"IF(TRIM(CG258)=\"\", \"\", IF(VLOOKUP(CG258,'Footnotes list'!$D$9:$E$58,2,FALSE)=0,\"\",VLOOKUP(CG258,'Footnotes list'!$D$9:$E$58,2,FALSE) ) )","v":""},null,null,null,null,{"$f":"IF(TRIM(CL258)=\"\", \"\", IF(VLOOKUP(CL258,'Footnotes list'!$D$9:$E$58,2,FALSE)=0,\"\",VLOOKUP(CL258,'Footnotes list'!$D$9:$E$58,2,FALSE) ) )","v":""},null,null,null,null,{"$f":"IF(TRIM(CQ258)=\"\", \"\", IF(VLOOKUP(CQ258,'Footnotes list'!$D$9:$E$58,2,FALSE)=0,\"\",VLOOKUP(CQ258,'Footnotes list'!$D$9:$E$58,2,FALSE) ) )","v":""},null,null,null,null,{"$f":"IF(TRIM(CV258)=\"\", \"\", IF(VLOOKUP(CV258,'Footnotes list'!$D$9:$E$58,2,FALSE)=0,\"\",VLOOKUP(CV258,'Footnotes list'!$D$9:$E$58,2,FALSE) ) )","v":""},null,null,null,null,{"$f":"IF(TRIM(DA258)=\"\", \"\", IF(VLOOKUP(DA258,'Footnotes list'!$D$9:$E$58,2,FALSE)=0,\"\",VLOOKUP(DA258,'Footnotes list'!$D$9:$E$58,2,FALSE) ) )","v":""},null,null,null,null,{"$f":"IF(TRIM(DF258)=\"\", \"\", IF(VLOOKUP(DF258,'Footnotes list'!$D$9:$E$58,2,FALSE)=0,\"\",VLOOKUP(DF258,'Footnotes list'!$D$9:$E$58,2,FALSE) ) )","v":""},null,null,null,null,{"$f":"IF(TRIM(DK258)=\"\", \"\", IF(VLOOKUP(DK258,'Footnotes list'!$D$9:$E$58,2,FALSE)=0,\"\",VLOOKUP(DK258,'Footnotes list'!$D$9:$E$58,2,FALSE) ) )","v":""},null,null,null,null,{"$f":"IF(TRIM(DP258)=\"\", \"\", IF(VLOOKUP(DP258,'Footnotes list'!$D$9:$E$58,2,FALSE)=0,\"\",VLOOKUP(DP258,'Footnotes list'!$D$9:$E$58,2,FALSE) ) )","v":""},null,null,null,null,{"$f":"IF(TRIM(DU258)=\"\", \"\", IF(VLOOKUP(DU258,'Footnotes list'!$D$9:$E$58,2,FALSE)=0,\"\",VLOOKUP(DU258,'Footnotes list'!$D$9:$E$58,2,FALSE) ) )","v":""},null,null,null,null,{"$f":"IF(TRIM(DZ258)=\"\", \"\", IF(VLOOKUP(DZ258,'Footnotes list'!$D$9:$E$58,2,FALSE)=0,\"\",VLOOKUP(DZ258,'Footnotes list'!$D$9:$E$58,2,FALSE) ) )","v":""},null,null,null,null,{"$f":"IF(TRIM(EE258)=\"\", \"\", IF(VLOOKUP(EE258,'Footnotes list'!$D$9:$E$58,2,FALSE)=0,\"\",VLOOKUP(EE258,'Footnotes list'!$D$9:$E$58,2,FALSE) ) )","v":""},null,null,null,null,{"$f":"IF(TRIM(EJ258)=\"\", \"\", IF(VLOOKUP(EJ258,'Footnotes list'!$D$9:$E$58,2,FALSE)=0,\"\",VLOOKUP(EJ258,'Footnotes list'!$D$9:$E$58,2,FALSE) ) )","v":""},null,null,null,null,{"$f":"IF(TRIM(EO258)=\"\", \"\", IF(VLOOKUP(EO258,'Footnotes list'!$D$9:$E$58,2,FALSE)=0,\"\",VLOOKUP(EO258,'Footnotes list'!$D$9:$E$58,2,FALSE) ) )","v":""},null,null,null,null,{"$f":"IF(TRIM(ET258)=\"\", \"\", IF(VLOOKUP(ET258,'Footnotes list'!$D$9:$E$58,2,FALSE)=0,\"\",VLOOKUP(ET258,'Footnotes list'!$D$9:$E$58,2,FALSE) ) )","v":""},null,null,null,null,{"$f":"IF(TRIM(EY258)=\"\", \"\", IF(VLOOKUP(EY258,'Footnotes list'!$D$9:$E$58,2,FALSE)=0,\"\",VLOOKUP(EY258,'Footnotes list'!$D$9:$E$58,2,FALSE) ) )","v":""}]
[null,null,"N","C_REP","cleaner and resource efficient products",null,null,null,null,null,{"$f":"IF(TRIM(J259)=\"\", \"\", IF(VLOOKUP(J259,'Footnotes list'!$D$9:$E$58,2,FALSE)=0,\"\",VLOOKUP(J259,'Footnotes list'!$D$9:$E$58,2,FALSE) ) )","v":""},null,null,null,null,{"$f":"IF(TRIM(O259)=\"\", \"\", IF(VLOOKUP(O259,'Footnotes list'!$D$9:$E$58,2,FALSE)=0,\"\",VLOOKUP(O259,'Footnotes list'!$D$9:$E$58,2,FALSE) ) )","v":""},null,null,null,null,{"$f":"IF(TRIM(T259)=\"\", \"\", IF(VLOOKUP(T259,'Footnotes list'!$D$9:$E$58,2,FALSE)=0,\"\",VLOOKUP(T259,'Footnotes list'!$D$9:$E$58,2,FALSE) ) )","v":""},null,null,null,null,{"$f":"IF(TRIM(Y259)=\"\", \"\", IF(VLOOKUP(Y259,'Footnotes list'!$D$9:$E$58,2,FALSE)=0,\"\",VLOOKUP(Y259,'Footnotes list'!$D$9:$E$58,2,FALSE) ) )","v":""},null,null,null,null,{"$f":"IF(TRIM(AD259)=\"\", \"\", IF(VLOOKUP(AD259,'Footnotes list'!$D$9:$E$58,2,FALSE)=0,\"\",VLOOKUP(AD259,'Footnotes list'!$D$9:$E$58,2,FALSE) ) )","v":""},null,null,null,null,{"$f":"IF(TRIM(AI259)=\"\", \"\", IF(VLOOKUP(AI259,'Footnotes list'!$D$9:$E$58,2,FALSE)=0,\"\",VLOOKUP(AI259,'Footnotes list'!$D$9:$E$58,2,FALSE) ) )","v":""},null,null,null,null,{"$f":"IF(TRIM(AN259)=\"\", \"\", IF(VLOOKUP(AN259,'Footnotes list'!$D$9:$E$58,2,FALSE)=0,\"\",VLOOKUP(AN259,'Footnotes list'!$D$9:$E$58,2,FALSE) ) )","v":""},null,null,null,null,{"$f":"IF(TRIM(AS259)=\"\", \"\", IF(VLOOKUP(AS259,'Footnotes list'!$D$9:$E$58,2,FALSE)=0,\"\",VLOOKUP(AS259,'Footnotes list'!$D$9:$E$58,2,FALSE) ) )","v":""},null,null,null,null,{"$f":"IF(TRIM(AX259)=\"\", \"\", IF(VLOOKUP(AX259,'Footnotes list'!$D$9:$E$58,2,FALSE)=0,\"\",VLOOKUP(AX259,'Footnotes list'!$D$9:$E$58,2,FALSE) ) )","v":""},null,null,null,null,{"$f":"IF(TRIM(BC259)=\"\", \"\", IF(VLOOKUP(BC259,'Footnotes list'!$D$9:$E$58,2,FALSE)=0,\"\",VLOOKUP(BC259,'Footnotes list'!$D$9:$E$58,2,FALSE) ) )","v":""},null,null,null,null,{"$f":"IF(TRIM(BH259)=\"\", \"\", IF(VLOOKUP(BH259,'Footnotes list'!$D$9:$E$58,2,FALSE)=0,\"\",VLOOKUP(BH259,'Footnotes list'!$D$9:$E$58,2,FALSE) ) )","v":""},null,null,null,null,{"$f":"IF(TRIM(BM259)=\"\", \"\", IF(VLOOKUP(BM259,'Footnotes list'!$D$9:$E$58,2,FALSE)=0,\"\",VLOOKUP(BM259,'Footnotes list'!$D$9:$E$58,2,FALSE) ) )","v":""},null,null,null,null,{"$f":"IF(TRIM(BR259)=\"\", \"\", IF(VLOOKUP(BR259,'Footnotes list'!$D$9:$E$58,2,FALSE)=0,\"\",VLOOKUP(BR259,'Footnotes list'!$D$9:$E$58,2,FALSE) ) )","v":""},null,null,null,null,{"$f":"IF(TRIM(BW259)=\"\", \"\", IF(VLOOKUP(BW259,'Footnotes list'!$D$9:$E$58,2,FALSE)=0,\"\",VLOOKUP(BW259,'Footnotes list'!$D$9:$E$58,2,FALSE) ) )","v":""},null,null,null,null,{"$f":"IF(TRIM(CB259)=\"\", \"\", IF(VLOOKUP(CB259,'Footnotes list'!$D$9:$E$58,2,FALSE)=0,\"\",VLOOKUP(CB259,'Footnotes list'!$D$9:$E$58,2,FALSE) ) )","v":""},null,null,null,null,{"$f":"IF(TRIM(CG259)=\"\", \"\", IF(VLOOKUP(CG259,'Footnotes list'!$D$9:$E$58,2,FALSE)=0,\"\",VLOOKUP(CG259,'Footnotes list'!$D$9:$E$58,2,FALSE) ) )","v":""},null,null,null,null,{"$f":"IF(TRIM(CL259)=\"\", \"\", IF(VLOOKUP(CL259,'Footnotes list'!$D$9:$E$58,2,FALSE)=0,\"\",VLOOKUP(CL259,'Footnotes list'!$D$9:$E$58,2,FALSE) ) )","v":""},null,null,null,null,{"$f":"IF(TRIM(CQ259)=\"\", \"\", IF(VLOOKUP(CQ259,'Footnotes list'!$D$9:$E$58,2,FALSE)=0,\"\",VLOOKUP(CQ259,'Footnotes list'!$D$9:$E$58,2,FALSE) ) )","v":""},null,null,null,null,{"$f":"IF(TRIM(CV259)=\"\", \"\", IF(VLOOKUP(CV259,'Footnotes list'!$D$9:$E$58,2,FALSE)=0,\"\",VLOOKUP(CV259,'Footnotes list'!$D$9:$E$58,2,FALSE) ) )","v":""},null,null,null,null,{"$f":"IF(TRIM(DA259)=\"\", \"\", IF(VLOOKUP(DA259,'Footnotes list'!$D$9:$E$58,2,FALSE)=0,\"\",VLOOKUP(DA259,'Footnotes list'!$D$9:$E$58,2,FALSE) ) )","v":""},null,null,null,null,{"$f":"IF(TRIM(DF259)=\"\", \"\", IF(VLOOKUP(DF259,'Footnotes list'!$D$9:$E$58,2,FALSE)=0,\"\",VLOOKUP(DF259,'Footnotes list'!$D$9:$E$58,2,FALSE) ) )","v":""},null,null,null,null,{"$f":"IF(TRIM(DK259)=\"\", \"\", IF(VLOOKUP(DK259,'Footnotes list'!$D$9:$E$58,2,FALSE)=0,\"\",VLOOKUP(DK259,'Footnotes list'!$D$9:$E$58,2,FALSE) ) )","v":""},null,null,null,null,{"$f":"IF(TRIM(DP259)=\"\", \"\", IF(VLOOKUP(DP259,'Footnotes list'!$D$9:$E$58,2,FALSE)=0,\"\",VLOOKUP(DP259,'Footnotes list'!$D$9:$E$58,2,FALSE) ) )","v":""},null,null,null,null,{"$f":"IF(TRIM(DU259)=\"\", \"\", IF(VLOOKUP(DU259,'Footnotes list'!$D$9:$E$58,2,FALSE)=0,\"\",VLOOKUP(DU259,'Footnotes list'!$D$9:$E$58,2,FALSE) ) )","v":""},null,null,null,null,{"$f":"IF(TRIM(DZ259)=\"\", \"\", IF(VLOOKUP(DZ259,'Footnotes list'!$D$9:$E$58,2,FALSE)=0,\"\",VLOOKUP(DZ259,'Footnotes list'!$D$9:$E$58,2,FALSE) ) )","v":""},null,null,null,null,{"$f":"IF(TRIM(EE259)=\"\", \"\", IF(VLOOKUP(EE259,'Footnotes list'!$D$9:$E$58,2,FALSE)=0,\"\",VLOOKUP(EE259,'Footnotes list'!$D$9:$E$58,2,FALSE) ) )","v":""},null,null,null,null,{"$f":"IF(TRIM(EJ259)=\"\", \"\", IF(VLOOKUP(EJ259,'Footnotes list'!$D$9:$E$58,2,FALSE)=0,\"\",VLOOKUP(EJ259,'Footnotes list'!$D$9:$E$58,2,FALSE) ) )","v":""},null,null,null,null,{"$f":"IF(TRIM(EO259)=\"\", \"\", IF(VLOOKUP(EO259,'Footnotes list'!$D$9:$E$58,2,FALSE)=0,\"\",VLOOKUP(EO259,'Footnotes list'!$D$9:$E$58,2,FALSE) ) )","v":""},null,null,null,null,{"$f":"IF(TRIM(ET259)=\"\", \"\", IF(VLOOKUP(ET259,'Footnotes list'!$D$9:$E$58,2,FALSE)=0,\"\",VLOOKUP(ET259,'Footnotes list'!$D$9:$E$58,2,FALSE) ) )","v":""},null,null,null,null,{"$f":"IF(TRIM(EY259)=\"\", \"\", IF(VLOOKUP(EY259,'Footnotes list'!$D$9:$E$58,2,FALSE)=0,\"\",VLOOKUP(EY259,'Footnotes list'!$D$9:$E$58,2,FALSE) ) )","v":""}]
[null,null,"O","TOT_EGSS","Total O - Public administration and defence, compulsory social security, of which:",null,null,null,null,null,{"$f":"IF(TRIM(J260)=\"\", \"\", IF(VLOOKUP(J260,'Footnotes list'!$D$9:$E$58,2,FALSE)=0,\"\",VLOOKUP(J260,'Footnotes list'!$D$9:$E$58,2,FALSE) ) )","v":""},null,null,null,null,{"$f":"IF(TRIM(O260)=\"\", \"\", IF(VLOOKUP(O260,'Footnotes list'!$D$9:$E$58,2,FALSE)=0,\"\",VLOOKUP(O260,'Footnotes list'!$D$9:$E$58,2,FALSE) ) )","v":""},null,null,null,null,{"$f":"IF(TRIM(T260)=\"\", \"\", IF(VLOOKUP(T260,'Footnotes list'!$D$9:$E$58,2,FALSE)=0,\"\",VLOOKUP(T260,'Footnotes list'!$D$9:$E$58,2,FALSE) ) )","v":""},null,null,null,null,{"$f":"IF(TRIM(Y260)=\"\", \"\", IF(VLOOKUP(Y260,'Footnotes list'!$D$9:$E$58,2,FALSE)=0,\"\",VLOOKUP(Y260,'Footnotes list'!$D$9:$E$58,2,FALSE) ) )","v":""},null,null,null,null,{"$f":"IF(TRIM(AD260)=\"\", \"\", IF(VLOOKUP(AD260,'Footnotes list'!$D$9:$E$58,2,FALSE)=0,\"\",VLOOKUP(AD260,'Footnotes list'!$D$9:$E$58,2,FALSE) ) )","v":""},null,null,null,null,{"$f":"IF(TRIM(AI260)=\"\", \"\", IF(VLOOKUP(AI260,'Footnotes list'!$D$9:$E$58,2,FALSE)=0,\"\",VLOOKUP(AI260,'Footnotes list'!$D$9:$E$58,2,FALSE) ) )","v":""},null,null,null,null,{"$f":"IF(TRIM(AN260)=\"\", \"\", IF(VLOOKUP(AN260,'Footnotes list'!$D$9:$E$58,2,FALSE)=0,\"\",VLOOKUP(AN260,'Footnotes list'!$D$9:$E$58,2,FALSE) ) )","v":""},null,null,null,null,{"$f":"IF(TRIM(AS260)=\"\", \"\", IF(VLOOKUP(AS260,'Footnotes list'!$D$9:$E$58,2,FALSE)=0,\"\",VLOOKUP(AS260,'Footnotes list'!$D$9:$E$58,2,FALSE) ) )","v":""},null,null,null,null,{"$f":"IF(TRIM(AX260)=\"\", \"\", IF(VLOOKUP(AX260,'Footnotes list'!$D$9:$E$58,2,FALSE)=0,\"\",VLOOKUP(AX260,'Footnotes list'!$D$9:$E$58,2,FALSE) ) )","v":""},null,null,null,null,{"$f":"IF(TRIM(BC260)=\"\", \"\", IF(VLOOKUP(BC260,'Footnotes list'!$D$9:$E$58,2,FALSE)=0,\"\",VLOOKUP(BC260,'Footnotes list'!$D$9:$E$58,2,FALSE) ) )","v":""},null,null,null,null,{"$f":"IF(TRIM(BH260)=\"\", \"\", IF(VLOOKUP(BH260,'Footnotes list'!$D$9:$E$58,2,FALSE)=0,\"\",VLOOKUP(BH260,'Footnotes list'!$D$9:$E$58,2,FALSE) ) )","v":""},null,null,null,null,{"$f":"IF(TRIM(BM260)=\"\", \"\", IF(VLOOKUP(BM260,'Footnotes list'!$D$9:$E$58,2,FALSE)=0,\"\",VLOOKUP(BM260,'Footnotes list'!$D$9:$E$58,2,FALSE) ) )","v":""},null,null,null,null,{"$f":"IF(TRIM(BR260)=\"\", \"\", IF(VLOOKUP(BR260,'Footnotes list'!$D$9:$E$58,2,FALSE)=0,\"\",VLOOKUP(BR260,'Footnotes list'!$D$9:$E$58,2,FALSE) ) )","v":""},null,null,null,null,{"$f":"IF(TRIM(BW260)=\"\", \"\", IF(VLOOKUP(BW260,'Footnotes list'!$D$9:$E$58,2,FALSE)=0,\"\",VLOOKUP(BW260,'Footnotes list'!$D$9:$E$58,2,FALSE) ) )","v":""},null,null,null,null,{"$f":"IF(TRIM(CB260)=\"\", \"\", IF(VLOOKUP(CB260,'Footnotes list'!$D$9:$E$58,2,FALSE)=0,\"\",VLOOKUP(CB260,'Footnotes list'!$D$9:$E$58,2,FALSE) ) )","v":""},null,null,null,null,{"$f":"IF(TRIM(CG260)=\"\", \"\", IF(VLOOKUP(CG260,'Footnotes list'!$D$9:$E$58,2,FALSE)=0,\"\",VLOOKUP(CG260,'Footnotes list'!$D$9:$E$58,2,FALSE) ) )","v":""},null,null,null,null,{"$f":"IF(TRIM(CL260)=\"\", \"\", IF(VLOOKUP(CL260,'Footnotes list'!$D$9:$E$58,2,FALSE)=0,\"\",VLOOKUP(CL260,'Footnotes list'!$D$9:$E$58,2,FALSE) ) )","v":""},null,null,null,null,{"$f":"IF(TRIM(CQ260)=\"\", \"\", IF(VLOOKUP(CQ260,'Footnotes list'!$D$9:$E$58,2,FALSE)=0,\"\",VLOOKUP(CQ260,'Footnotes list'!$D$9:$E$58,2,FALSE) ) )","v":""},null,null,null,null,{"$f":"IF(TRIM(CV260)=\"\", \"\", IF(VLOOKUP(CV260,'Footnotes list'!$D$9:$E$58,2,FALSE)=0,\"\",VLOOKUP(CV260,'Footnotes list'!$D$9:$E$58,2,FALSE) ) )","v":""},null,null,null,null,{"$f":"IF(TRIM(DA260)=\"\", \"\", IF(VLOOKUP(DA260,'Footnotes list'!$D$9:$E$58,2,FALSE)=0,\"\",VLOOKUP(DA260,'Footnotes list'!$D$9:$E$58,2,FALSE) ) )","v":""},null,null,null,null,{"$f":"IF(TRIM(DF260)=\"\", \"\", IF(VLOOKUP(DF260,'Footnotes list'!$D$9:$E$58,2,FALSE)=0,\"\",VLOOKUP(DF260,'Footnotes list'!$D$9:$E$58,2,FALSE) ) )","v":""},null,null,null,null,{"$f":"IF(TRIM(DK260)=\"\", \"\", IF(VLOOKUP(DK260,'Footnotes list'!$D$9:$E$58,2,FALSE)=0,\"\",VLOOKUP(DK260,'Footnotes list'!$D$9:$E$58,2,FALSE) ) )","v":""},null,null,null,null,{"$f":"IF(TRIM(DP260)=\"\", \"\", IF(VLOOKUP(DP260,'Footnotes list'!$D$9:$E$58,2,FALSE)=0,\"\",VLOOKUP(DP260,'Footnotes list'!$D$9:$E$58,2,FALSE) ) )","v":""},null,null,null,null,{"$f":"IF(TRIM(DU260)=\"\", \"\", IF(VLOOKUP(DU260,'Footnotes list'!$D$9:$E$58,2,FALSE)=0,\"\",VLOOKUP(DU260,'Footnotes list'!$D$9:$E$58,2,FALSE) ) )","v":""},null,null,null,null,{"$f":"IF(TRIM(DZ260)=\"\", \"\", IF(VLOOKUP(DZ260,'Footnotes list'!$D$9:$E$58,2,FALSE)=0,\"\",VLOOKUP(DZ260,'Footnotes list'!$D$9:$E$58,2,FALSE) ) )","v":""},null,null,null,null,{"$f":"IF(TRIM(EE260)=\"\", \"\", IF(VLOOKUP(EE260,'Footnotes list'!$D$9:$E$58,2,FALSE)=0,\"\",VLOOKUP(EE260,'Footnotes list'!$D$9:$E$58,2,FALSE) ) )","v":""},null,null,null,null,{"$f":"IF(TRIM(EJ260)=\"\", \"\", IF(VLOOKUP(EJ260,'Footnotes list'!$D$9:$E$58,2,FALSE)=0,\"\",VLOOKUP(EJ260,'Footnotes list'!$D$9:$E$58,2,FALSE) ) )","v":""},null,null,null,null,{"$f":"IF(TRIM(EO260)=\"\", \"\", IF(VLOOKUP(EO260,'Footnotes list'!$D$9:$E$58,2,FALSE)=0,\"\",VLOOKUP(EO260,'Footnotes list'!$D$9:$E$58,2,FALSE) ) )","v":""},null,null,null,null,{"$f":"IF(TRIM(ET260)=\"\", \"\", IF(VLOOKUP(ET260,'Footnotes list'!$D$9:$E$58,2,FALSE)=0,\"\",VLOOKUP(ET260,'Footnotes list'!$D$9:$E$58,2,FALSE) ) )","v":""},null,null,null,null,{"$f":"IF(TRIM(EY260)=\"\", \"\", IF(VLOOKUP(EY260,'Footnotes list'!$D$9:$E$58,2,FALSE)=0,\"\",VLOOKUP(EY260,'Footnotes list'!$D$9:$E$58,2,FALSE) ) )","v":""}]
[null,null,"O","ANC","ancillary activities",null,null,null,null,null,{"$f":"IF(TRIM(J261)=\"\", \"\", IF(VLOOKUP(J261,'Footnotes list'!$D$9:$E$58,2,FALSE)=0,\"\",VLOOKUP(J261,'Footnotes list'!$D$9:$E$58,2,FALSE) ) )","v":""},null,null,null,null,{"$f":"IF(TRIM(O261)=\"\", \"\", IF(VLOOKUP(O261,'Footnotes list'!$D$9:$E$58,2,FALSE)=0,\"\",VLOOKUP(O261,'Footnotes list'!$D$9:$E$58,2,FALSE) ) )","v":""},null,null,null,null,{"$f":"IF(TRIM(T261)=\"\", \"\", IF(VLOOKUP(T261,'Footnotes list'!$D$9:$E$58,2,FALSE)=0,\"\",VLOOKUP(T261,'Footnotes list'!$D$9:$E$58,2,FALSE) ) )","v":""},null,null,null,null,{"$f":"IF(TRIM(Y261)=\"\", \"\", IF(VLOOKUP(Y261,'Footnotes list'!$D$9:$E$58,2,FALSE)=0,\"\",VLOOKUP(Y261,'Footnotes list'!$D$9:$E$58,2,FALSE) ) )","v":""},null,null,null,null,{"$f":"IF(TRIM(AD261)=\"\", \"\", IF(VLOOKUP(AD261,'Footnotes list'!$D$9:$E$58,2,FALSE)=0,\"\",VLOOKUP(AD261,'Footnotes list'!$D$9:$E$58,2,FALSE) ) )","v":""},null,null,null,null,{"$f":"IF(TRIM(AI261)=\"\", \"\", IF(VLOOKUP(AI261,'Footnotes list'!$D$9:$E$58,2,FALSE)=0,\"\",VLOOKUP(AI261,'Footnotes list'!$D$9:$E$58,2,FALSE) ) )","v":""},null,null,null,null,{"$f":"IF(TRIM(AN261)=\"\", \"\", IF(VLOOKUP(AN261,'Footnotes list'!$D$9:$E$58,2,FALSE)=0,\"\",VLOOKUP(AN261,'Footnotes list'!$D$9:$E$58,2,FALSE) ) )","v":""},null,null,null,null,{"$f":"IF(TRIM(AS261)=\"\", \"\", IF(VLOOKUP(AS261,'Footnotes list'!$D$9:$E$58,2,FALSE)=0,\"\",VLOOKUP(AS261,'Footnotes list'!$D$9:$E$58,2,FALSE) ) )","v":""},null,null,null,null,{"$f":"IF(TRIM(AX261)=\"\", \"\", IF(VLOOKUP(AX261,'Footnotes list'!$D$9:$E$58,2,FALSE)=0,\"\",VLOOKUP(AX261,'Footnotes list'!$D$9:$E$58,2,FALSE) ) )","v":""},null,null,null,null,{"$f":"IF(TRIM(BC261)=\"\", \"\", IF(VLOOKUP(BC261,'Footnotes list'!$D$9:$E$58,2,FALSE)=0,\"\",VLOOKUP(BC261,'Footnotes list'!$D$9:$E$58,2,FALSE) ) )","v":""},null,null,null,null,{"$f":"IF(TRIM(BH261)=\"\", \"\", IF(VLOOKUP(BH261,'Footnotes list'!$D$9:$E$58,2,FALSE)=0,\"\",VLOOKUP(BH261,'Footnotes list'!$D$9:$E$58,2,FALSE) ) )","v":""},null,null,null,null,{"$f":"IF(TRIM(BM261)=\"\", \"\", IF(VLOOKUP(BM261,'Footnotes list'!$D$9:$E$58,2,FALSE)=0,\"\",VLOOKUP(BM261,'Footnotes list'!$D$9:$E$58,2,FALSE) ) )","v":""},null,null,null,null,{"$f":"IF(TRIM(BR261)=\"\", \"\", IF(VLOOKUP(BR261,'Footnotes list'!$D$9:$E$58,2,FALSE)=0,\"\",VLOOKUP(BR261,'Footnotes list'!$D$9:$E$58,2,FALSE) ) )","v":""},null,null,null,null,{"$f":"IF(TRIM(BW261)=\"\", \"\", IF(VLOOKUP(BW261,'Footnotes list'!$D$9:$E$58,2,FALSE)=0,\"\",VLOOKUP(BW261,'Footnotes list'!$D$9:$E$58,2,FALSE) ) )","v":""},null,null,null,null,{"$f":"IF(TRIM(CB261)=\"\", \"\", IF(VLOOKUP(CB261,'Footnotes list'!$D$9:$E$58,2,FALSE)=0,\"\",VLOOKUP(CB261,'Footnotes list'!$D$9:$E$58,2,FALSE) ) )","v":""},null,null,null,null,{"$f":"IF(TRIM(CG261)=\"\", \"\", IF(VLOOKUP(CG261,'Footnotes list'!$D$9:$E$58,2,FALSE)=0,\"\",VLOOKUP(CG261,'Footnotes list'!$D$9:$E$58,2,FALSE) ) )","v":""},null,null,null,null,{"$f":"IF(TRIM(CL261)=\"\", \"\", IF(VLOOKUP(CL261,'Footnotes list'!$D$9:$E$58,2,FALSE)=0,\"\",VLOOKUP(CL261,'Footnotes list'!$D$9:$E$58,2,FALSE) ) )","v":""},null,null,null,null,{"$f":"IF(TRIM(CQ261)=\"\", \"\", IF(VLOOKUP(CQ261,'Footnotes list'!$D$9:$E$58,2,FALSE)=0,\"\",VLOOKUP(CQ261,'Footnotes list'!$D$9:$E$58,2,FALSE) ) )","v":""},null,null,null,null,{"$f":"IF(TRIM(CV261)=\"\", \"\", IF(VLOOKUP(CV261,'Footnotes list'!$D$9:$E$58,2,FALSE)=0,\"\",VLOOKUP(CV261,'Footnotes list'!$D$9:$E$58,2,FALSE) ) )","v":""},null,null,null,null,{"$f":"IF(TRIM(DA261)=\"\", \"\", IF(VLOOKUP(DA261,'Footnotes list'!$D$9:$E$58,2,FALSE)=0,\"\",VLOOKUP(DA261,'Footnotes list'!$D$9:$E$58,2,FALSE) ) )","v":""},null,null,null,null,{"$f":"IF(TRIM(DF261)=\"\", \"\", IF(VLOOKUP(DF261,'Footnotes list'!$D$9:$E$58,2,FALSE)=0,\"\",VLOOKUP(DF261,'Footnotes list'!$D$9:$E$58,2,FALSE) ) )","v":""},null,null,null,null,{"$f":"IF(TRIM(DK261)=\"\", \"\", IF(VLOOKUP(DK261,'Footnotes list'!$D$9:$E$58,2,FALSE)=0,\"\",VLOOKUP(DK261,'Footnotes list'!$D$9:$E$58,2,FALSE) ) )","v":""},null,null,null,null,{"$f":"IF(TRIM(DP261)=\"\", \"\", IF(VLOOKUP(DP261,'Footnotes list'!$D$9:$E$58,2,FALSE)=0,\"\",VLOOKUP(DP261,'Footnotes list'!$D$9:$E$58,2,FALSE) ) )","v":""},null,null,null,null,{"$f":"IF(TRIM(DU261)=\"\", \"\", IF(VLOOKUP(DU261,'Footnotes list'!$D$9:$E$58,2,FALSE)=0,\"\",VLOOKUP(DU261,'Footnotes list'!$D$9:$E$58,2,FALSE) ) )","v":""},null,null,null,null,{"$f":"IF(TRIM(DZ261)=\"\", \"\", IF(VLOOKUP(DZ261,'Footnotes list'!$D$9:$E$58,2,FALSE)=0,\"\",VLOOKUP(DZ261,'Footnotes list'!$D$9:$E$58,2,FALSE) ) )","v":""},null,null,null,null,{"$f":"IF(TRIM(EE261)=\"\", \"\", IF(VLOOKUP(EE261,'Footnotes list'!$D$9:$E$58,2,FALSE)=0,\"\",VLOOKUP(EE261,'Footnotes list'!$D$9:$E$58,2,FALSE) ) )","v":""},null,null,null,null,{"$f":"IF(TRIM(EJ261)=\"\", \"\", IF(VLOOKUP(EJ261,'Footnotes list'!$D$9:$E$58,2,FALSE)=0,\"\",VLOOKUP(EJ261,'Footnotes list'!$D$9:$E$58,2,FALSE) ) )","v":""},null,null,null,null,{"$f":"IF(TRIM(EO261)=\"\", \"\", IF(VLOOKUP(EO261,'Footnotes list'!$D$9:$E$58,2,FALSE)=0,\"\",VLOOKUP(EO261,'Footnotes list'!$D$9:$E$58,2,FALSE) ) )","v":""},null,null,null,null,{"$f":"IF(TRIM(ET261)=\"\", \"\", IF(VLOOKUP(ET261,'Footnotes list'!$D$9:$E$58,2,FALSE)=0,\"\",VLOOKUP(ET261,'Footnotes list'!$D$9:$E$58,2,FALSE) ) )","v":""},null,null,null,null,{"$f":"IF(TRIM(EY261)=\"\", \"\", IF(VLOOKUP(EY261,'Footnotes list'!$D$9:$E$58,2,FALSE)=0,\"\",VLOOKUP(EY261,'Footnotes list'!$D$9:$E$58,2,FALSE) ) )","v":""}]
[null,null,"O","NMKT","non-market activities",null,null,null,null,null,{"$f":"IF(TRIM(J262)=\"\", \"\", IF(VLOOKUP(J262,'Footnotes list'!$D$9:$E$58,2,FALSE)=0,\"\",VLOOKUP(J262,'Footnotes list'!$D$9:$E$58,2,FALSE) ) )","v":""},null,null,null,null,{"$f":"IF(TRIM(O262)=\"\", \"\", IF(VLOOKUP(O262,'Footnotes list'!$D$9:$E$58,2,FALSE)=0,\"\",VLOOKUP(O262,'Footnotes list'!$D$9:$E$58,2,FALSE) ) )","v":""},null,null,null,null,{"$f":"IF(TRIM(T262)=\"\", \"\", IF(VLOOKUP(T262,'Footnotes list'!$D$9:$E$58,2,FALSE)=0,\"\",VLOOKUP(T262,'Footnotes list'!$D$9:$E$58,2,FALSE) ) )","v":""},null,null,null,null,{"$f":"IF(TRIM(Y262)=\"\", \"\", IF(VLOOKUP(Y262,'Footnotes list'!$D$9:$E$58,2,FALSE)=0,\"\",VLOOKUP(Y262,'Footnotes list'!$D$9:$E$58,2,FALSE) ) )","v":""},null,null,null,null,{"$f":"IF(TRIM(AD262)=\"\", \"\", IF(VLOOKUP(AD262,'Footnotes list'!$D$9:$E$58,2,FALSE)=0,\"\",VLOOKUP(AD262,'Footnotes list'!$D$9:$E$58,2,FALSE) ) )","v":""},null,null,null,null,{"$f":"IF(TRIM(AI262)=\"\", \"\", IF(VLOOKUP(AI262,'Footnotes list'!$D$9:$E$58,2,FALSE)=0,\"\",VLOOKUP(AI262,'Footnotes list'!$D$9:$E$58,2,FALSE) ) )","v":""},null,null,null,null,{"$f":"IF(TRIM(AN262)=\"\", \"\", IF(VLOOKUP(AN262,'Footnotes list'!$D$9:$E$58,2,FALSE)=0,\"\",VLOOKUP(AN262,'Footnotes list'!$D$9:$E$58,2,FALSE) ) )","v":""},null,null,null,null,{"$f":"IF(TRIM(AS262)=\"\", \"\", IF(VLOOKUP(AS262,'Footnotes list'!$D$9:$E$58,2,FALSE)=0,\"\",VLOOKUP(AS262,'Footnotes list'!$D$9:$E$58,2,FALSE) ) )","v":""},null,null,null,null,{"$f":"IF(TRIM(AX262)=\"\", \"\", IF(VLOOKUP(AX262,'Footnotes list'!$D$9:$E$58,2,FALSE)=0,\"\",VLOOKUP(AX262,'Footnotes list'!$D$9:$E$58,2,FALSE) ) )","v":""},null,null,null,null,{"$f":"IF(TRIM(BC262)=\"\", \"\", IF(VLOOKUP(BC262,'Footnotes list'!$D$9:$E$58,2,FALSE)=0,\"\",VLOOKUP(BC262,'Footnotes list'!$D$9:$E$58,2,FALSE) ) )","v":""},null,null,null,null,{"$f":"IF(TRIM(BH262)=\"\", \"\", IF(VLOOKUP(BH262,'Footnotes list'!$D$9:$E$58,2,FALSE)=0,\"\",VLOOKUP(BH262,'Footnotes list'!$D$9:$E$58,2,FALSE) ) )","v":""},null,null,null,null,{"$f":"IF(TRIM(BM262)=\"\", \"\", IF(VLOOKUP(BM262,'Footnotes list'!$D$9:$E$58,2,FALSE)=0,\"\",VLOOKUP(BM262,'Footnotes list'!$D$9:$E$58,2,FALSE) ) )","v":""},null,null,null,null,{"$f":"IF(TRIM(BR262)=\"\", \"\", IF(VLOOKUP(BR262,'Footnotes list'!$D$9:$E$58,2,FALSE)=0,\"\",VLOOKUP(BR262,'Footnotes list'!$D$9:$E$58,2,FALSE) ) )","v":""},null,null,null,null,{"$f":"IF(TRIM(BW262)=\"\", \"\", IF(VLOOKUP(BW262,'Footnotes list'!$D$9:$E$58,2,FALSE)=0,\"\",VLOOKUP(BW262,'Footnotes list'!$D$9:$E$58,2,FALSE) ) )","v":""},null,null,null,null,{"$f":"IF(TRIM(CB262)=\"\", \"\", IF(VLOOKUP(CB262,'Footnotes list'!$D$9:$E$58,2,FALSE)=0,\"\",VLOOKUP(CB262,'Footnotes list'!$D$9:$E$58,2,FALSE) ) )","v":""},null,null,null,null,{"$f":"IF(TRIM(CG262)=\"\", \"\", IF(VLOOKUP(CG262,'Footnotes list'!$D$9:$E$58,2,FALSE)=0,\"\",VLOOKUP(CG262,'Footnotes list'!$D$9:$E$58,2,FALSE) ) )","v":""},null,null,null,null,{"$f":"IF(TRIM(CL262)=\"\", \"\", IF(VLOOKUP(CL262,'Footnotes list'!$D$9:$E$58,2,FALSE)=0,\"\",VLOOKUP(CL262,'Footnotes list'!$D$9:$E$58,2,FALSE) ) )","v":""},null,null,null,null,{"$f":"IF(TRIM(CQ262)=\"\", \"\", IF(VLOOKUP(CQ262,'Footnotes list'!$D$9:$E$58,2,FALSE)=0,\"\",VLOOKUP(CQ262,'Footnotes list'!$D$9:$E$58,2,FALSE) ) )","v":""},null,null,null,null,{"$f":"IF(TRIM(CV262)=\"\", \"\", IF(VLOOKUP(CV262,'Footnotes list'!$D$9:$E$58,2,FALSE)=0,\"\",VLOOKUP(CV262,'Footnotes list'!$D$9:$E$58,2,FALSE) ) )","v":""},null,null,null,null,{"$f":"IF(TRIM(DA262)=\"\", \"\", IF(VLOOKUP(DA262,'Footnotes list'!$D$9:$E$58,2,FALSE)=0,\"\",VLOOKUP(DA262,'Footnotes list'!$D$9:$E$58,2,FALSE) ) )","v":""},null,null,null,null,{"$f":"IF(TRIM(DF262)=\"\", \"\", IF(VLOOKUP(DF262,'Footnotes list'!$D$9:$E$58,2,FALSE)=0,\"\",VLOOKUP(DF262,'Footnotes list'!$D$9:$E$58,2,FALSE) ) )","v":""},null,null,null,null,{"$f":"IF(TRIM(DK262)=\"\", \"\", IF(VLOOKUP(DK262,'Footnotes list'!$D$9:$E$58,2,FALSE)=0,\"\",VLOOKUP(DK262,'Footnotes list'!$D$9:$E$58,2,FALSE) ) )","v":""},null,null,null,null,{"$f":"IF(TRIM(DP262)=\"\", \"\", IF(VLOOKUP(DP262,'Footnotes list'!$D$9:$E$58,2,FALSE)=0,\"\",VLOOKUP(DP262,'Footnotes list'!$D$9:$E$58,2,FALSE) ) )","v":""},null,null,null,null,{"$f":"IF(TRIM(DU262)=\"\", \"\", IF(VLOOKUP(DU262,'Footnotes list'!$D$9:$E$58,2,FALSE)=0,\"\",VLOOKUP(DU262,'Footnotes list'!$D$9:$E$58,2,FALSE) ) )","v":""},null,null,null,null,{"$f":"IF(TRIM(DZ262)=\"\", \"\", IF(VLOOKUP(DZ262,'Footnotes list'!$D$9:$E$58,2,FALSE)=0,\"\",VLOOKUP(DZ262,'Footnotes list'!$D$9:$E$58,2,FALSE) ) )","v":""},null,null,null,null,{"$f":"IF(TRIM(EE262)=\"\", \"\", IF(VLOOKUP(EE262,'Footnotes list'!$D$9:$E$58,2,FALSE)=0,\"\",VLOOKUP(EE262,'Footnotes list'!$D$9:$E$58,2,FALSE) ) )","v":""},null,null,null,null,{"$f":"IF(TRIM(EJ262)=\"\", \"\", IF(VLOOKUP(EJ262,'Footnotes list'!$D$9:$E$58,2,FALSE)=0,\"\",VLOOKUP(EJ262,'Footnotes list'!$D$9:$E$58,2,FALSE) ) )","v":""},null,null,null,null,{"$f":"IF(TRIM(EO262)=\"\", \"\", IF(VLOOKUP(EO262,'Footnotes list'!$D$9:$E$58,2,FALSE)=0,\"\",VLOOKUP(EO262,'Footnotes list'!$D$9:$E$58,2,FALSE) ) )","v":""},null,null,null,null,{"$f":"IF(TRIM(ET262)=\"\", \"\", IF(VLOOKUP(ET262,'Footnotes list'!$D$9:$E$58,2,FALSE)=0,\"\",VLOOKUP(ET262,'Footnotes list'!$D$9:$E$58,2,FALSE) ) )","v":""},null,null,null,null,{"$f":"IF(TRIM(EY262)=\"\", \"\", IF(VLOOKUP(EY262,'Footnotes list'!$D$9:$E$58,2,FALSE)=0,\"\",VLOOKUP(EY262,'Footnotes list'!$D$9:$E$58,2,FALSE) ) )","v":""}]
[null,null,"O","OWN_USE","activities for own final use",null,null,null,null,null,{"$f":"IF(TRIM(J263)=\"\", \"\", IF(VLOOKUP(J263,'Footnotes list'!$D$9:$E$58,2,FALSE)=0,\"\",VLOOKUP(J263,'Footnotes list'!$D$9:$E$58,2,FALSE) ) )","v":""},null,null,null,null,{"$f":"IF(TRIM(O263)=\"\", \"\", IF(VLOOKUP(O263,'Footnotes list'!$D$9:$E$58,2,FALSE)=0,\"\",VLOOKUP(O263,'Footnotes list'!$D$9:$E$58,2,FALSE) ) )","v":""},null,null,null,null,{"$f":"IF(TRIM(T263)=\"\", \"\", IF(VLOOKUP(T263,'Footnotes list'!$D$9:$E$58,2,FALSE)=0,\"\",VLOOKUP(T263,'Footnotes list'!$D$9:$E$58,2,FALSE) ) )","v":""},null,null,null,null,{"$f":"IF(TRIM(Y263)=\"\", \"\", IF(VLOOKUP(Y263,'Footnotes list'!$D$9:$E$58,2,FALSE)=0,\"\",VLOOKUP(Y263,'Footnotes list'!$D$9:$E$58,2,FALSE) ) )","v":""},null,null,null,null,{"$f":"IF(TRIM(AD263)=\"\", \"\", IF(VLOOKUP(AD263,'Footnotes list'!$D$9:$E$58,2,FALSE)=0,\"\",VLOOKUP(AD263,'Footnotes list'!$D$9:$E$58,2,FALSE) ) )","v":""},null,null,null,null,{"$f":"IF(TRIM(AI263)=\"\", \"\", IF(VLOOKUP(AI263,'Footnotes list'!$D$9:$E$58,2,FALSE)=0,\"\",VLOOKUP(AI263,'Footnotes list'!$D$9:$E$58,2,FALSE) ) )","v":""},null,null,null,null,{"$f":"IF(TRIM(AN263)=\"\", \"\", IF(VLOOKUP(AN263,'Footnotes list'!$D$9:$E$58,2,FALSE)=0,\"\",VLOOKUP(AN263,'Footnotes list'!$D$9:$E$58,2,FALSE) ) )","v":""},null,null,null,null,{"$f":"IF(TRIM(AS263)=\"\", \"\", IF(VLOOKUP(AS263,'Footnotes list'!$D$9:$E$58,2,FALSE)=0,\"\",VLOOKUP(AS263,'Footnotes list'!$D$9:$E$58,2,FALSE) ) )","v":""},null,null,null,null,{"$f":"IF(TRIM(AX263)=\"\", \"\", IF(VLOOKUP(AX263,'Footnotes list'!$D$9:$E$58,2,FALSE)=0,\"\",VLOOKUP(AX263,'Footnotes list'!$D$9:$E$58,2,FALSE) ) )","v":""},null,null,null,null,{"$f":"IF(TRIM(BC263)=\"\", \"\", IF(VLOOKUP(BC263,'Footnotes list'!$D$9:$E$58,2,FALSE)=0,\"\",VLOOKUP(BC263,'Footnotes list'!$D$9:$E$58,2,FALSE) ) )","v":""},null,null,null,null,{"$f":"IF(TRIM(BH263)=\"\", \"\", IF(VLOOKUP(BH263,'Footnotes list'!$D$9:$E$58,2,FALSE)=0,\"\",VLOOKUP(BH263,'Footnotes list'!$D$9:$E$58,2,FALSE) ) )","v":""},null,null,null,null,{"$f":"IF(TRIM(BM263)=\"\", \"\", IF(VLOOKUP(BM263,'Footnotes list'!$D$9:$E$58,2,FALSE)=0,\"\",VLOOKUP(BM263,'Footnotes list'!$D$9:$E$58,2,FALSE) ) )","v":""},null,null,null,null,{"$f":"IF(TRIM(BR263)=\"\", \"\", IF(VLOOKUP(BR263,'Footnotes list'!$D$9:$E$58,2,FALSE)=0,\"\",VLOOKUP(BR263,'Footnotes list'!$D$9:$E$58,2,FALSE) ) )","v":""},null,null,null,null,{"$f":"IF(TRIM(BW263)=\"\", \"\", IF(VLOOKUP(BW263,'Footnotes list'!$D$9:$E$58,2,FALSE)=0,\"\",VLOOKUP(BW263,'Footnotes list'!$D$9:$E$58,2,FALSE) ) )","v":""},null,null,null,null,{"$f":"IF(TRIM(CB263)=\"\", \"\", IF(VLOOKUP(CB263,'Footnotes list'!$D$9:$E$58,2,FALSE)=0,\"\",VLOOKUP(CB263,'Footnotes list'!$D$9:$E$58,2,FALSE) ) )","v":""},null,null,null,null,{"$f":"IF(TRIM(CG263)=\"\", \"\", IF(VLOOKUP(CG263,'Footnotes list'!$D$9:$E$58,2,FALSE)=0,\"\",VLOOKUP(CG263,'Footnotes list'!$D$9:$E$58,2,FALSE) ) )","v":""},null,null,null,null,{"$f":"IF(TRIM(CL263)=\"\", \"\", IF(VLOOKUP(CL263,'Footnotes list'!$D$9:$E$58,2,FALSE)=0,\"\",VLOOKUP(CL263,'Footnotes list'!$D$9:$E$58,2,FALSE) ) )","v":""},null,null,null,null,{"$f":"IF(TRIM(CQ263)=\"\", \"\", IF(VLOOKUP(CQ263,'Footnotes list'!$D$9:$E$58,2,FALSE)=0,\"\",VLOOKUP(CQ263,'Footnotes list'!$D$9:$E$58,2,FALSE) ) )","v":""},null,null,null,null,{"$f":"IF(TRIM(CV263)=\"\", \"\", IF(VLOOKUP(CV263,'Footnotes list'!$D$9:$E$58,2,FALSE)=0,\"\",VLOOKUP(CV263,'Footnotes list'!$D$9:$E$58,2,FALSE) ) )","v":""},null,null,null,null,{"$f":"IF(TRIM(DA263)=\"\", \"\", IF(VLOOKUP(DA263,'Footnotes list'!$D$9:$E$58,2,FALSE)=0,\"\",VLOOKUP(DA263,'Footnotes list'!$D$9:$E$58,2,FALSE) ) )","v":""},null,null,null,null,{"$f":"IF(TRIM(DF263)=\"\", \"\", IF(VLOOKUP(DF263,'Footnotes list'!$D$9:$E$58,2,FALSE)=0,\"\",VLOOKUP(DF263,'Footnotes list'!$D$9:$E$58,2,FALSE) ) )","v":""},null,null,null,null,{"$f":"IF(TRIM(DK263)=\"\", \"\", IF(VLOOKUP(DK263,'Footnotes list'!$D$9:$E$58,2,FALSE)=0,\"\",VLOOKUP(DK263,'Footnotes list'!$D$9:$E$58,2,FALSE) ) )","v":""},null,null,null,null,{"$f":"IF(TRIM(DP263)=\"\", \"\", IF(VLOOKUP(DP263,'Footnotes list'!$D$9:$E$58,2,FALSE)=0,\"\",VLOOKUP(DP263,'Footnotes list'!$D$9:$E$58,2,FALSE) ) )","v":""},null,null,null,null,{"$f":"IF(TRIM(DU263)=\"\", \"\", IF(VLOOKUP(DU263,'Footnotes list'!$D$9:$E$58,2,FALSE)=0,\"\",VLOOKUP(DU263,'Footnotes list'!$D$9:$E$58,2,FALSE) ) )","v":""},null,null,null,null,{"$f":"IF(TRIM(DZ263)=\"\", \"\", IF(VLOOKUP(DZ263,'Footnotes list'!$D$9:$E$58,2,FALSE)=0,\"\",VLOOKUP(DZ263,'Footnotes list'!$D$9:$E$58,2,FALSE) ) )","v":""},null,null,null,null,{"$f":"IF(TRIM(EE263)=\"\", \"\", IF(VLOOKUP(EE263,'Footnotes list'!$D$9:$E$58,2,FALSE)=0,\"\",VLOOKUP(EE263,'Footnotes list'!$D$9:$E$58,2,FALSE) ) )","v":""},null,null,null,null,{"$f":"IF(TRIM(EJ263)=\"\", \"\", IF(VLOOKUP(EJ263,'Footnotes list'!$D$9:$E$58,2,FALSE)=0,\"\",VLOOKUP(EJ263,'Footnotes list'!$D$9:$E$58,2,FALSE) ) )","v":""},null,null,null,null,{"$f":"IF(TRIM(EO263)=\"\", \"\", IF(VLOOKUP(EO263,'Footnotes list'!$D$9:$E$58,2,FALSE)=0,\"\",VLOOKUP(EO263,'Footnotes list'!$D$9:$E$58,2,FALSE) ) )","v":""},null,null,null,null,{"$f":"IF(TRIM(ET263)=\"\", \"\", IF(VLOOKUP(ET263,'Footnotes list'!$D$9:$E$58,2,FALSE)=0,\"\",VLOOKUP(ET263,'Footnotes list'!$D$9:$E$58,2,FALSE) ) )","v":""},null,null,null,null,{"$f":"IF(TRIM(EY263)=\"\", \"\", IF(VLOOKUP(EY263,'Footnotes list'!$D$9:$E$58,2,FALSE)=0,\"\",VLOOKUP(EY263,'Footnotes list'!$D$9:$E$58,2,FALSE) ) )","v":""}]
[null,null,"O","MKT","market activities, including:",null,null,null,null,null,{"$f":"IF(TRIM(J264)=\"\", \"\", IF(VLOOKUP(J264,'Footnotes list'!$D$9:$E$58,2,FALSE)=0,\"\",VLOOKUP(J264,'Footnotes list'!$D$9:$E$58,2,FALSE) ) )","v":""},null,null,null,null,{"$f":"IF(TRIM(O264)=\"\", \"\", IF(VLOOKUP(O264,'Footnotes list'!$D$9:$E$58,2,FALSE)=0,\"\",VLOOKUP(O264,'Footnotes list'!$D$9:$E$58,2,FALSE) ) )","v":""},null,null,null,null,{"$f":"IF(TRIM(T264)=\"\", \"\", IF(VLOOKUP(T264,'Footnotes list'!$D$9:$E$58,2,FALSE)=0,\"\",VLOOKUP(T264,'Footnotes list'!$D$9:$E$58,2,FALSE) ) )","v":""},null,null,null,null,{"$f":"IF(TRIM(Y264)=\"\", \"\", IF(VLOOKUP(Y264,'Footnotes list'!$D$9:$E$58,2,FALSE)=0,\"\",VLOOKUP(Y264,'Footnotes list'!$D$9:$E$58,2,FALSE) ) )","v":""},null,null,null,null,{"$f":"IF(TRIM(AD264)=\"\", \"\", IF(VLOOKUP(AD264,'Footnotes list'!$D$9:$E$58,2,FALSE)=0,\"\",VLOOKUP(AD264,'Footnotes list'!$D$9:$E$58,2,FALSE) ) )","v":""},null,null,null,null,{"$f":"IF(TRIM(AI264)=\"\", \"\", IF(VLOOKUP(AI264,'Footnotes list'!$D$9:$E$58,2,FALSE)=0,\"\",VLOOKUP(AI264,'Footnotes list'!$D$9:$E$58,2,FALSE) ) )","v":""},null,null,null,null,{"$f":"IF(TRIM(AN264)=\"\", \"\", IF(VLOOKUP(AN264,'Footnotes list'!$D$9:$E$58,2,FALSE)=0,\"\",VLOOKUP(AN264,'Footnotes list'!$D$9:$E$58,2,FALSE) ) )","v":""},null,null,null,null,{"$f":"IF(TRIM(AS264)=\"\", \"\", IF(VLOOKUP(AS264,'Footnotes list'!$D$9:$E$58,2,FALSE)=0,\"\",VLOOKUP(AS264,'Footnotes list'!$D$9:$E$58,2,FALSE) ) )","v":""},null,null,null,null,{"$f":"IF(TRIM(AX264)=\"\", \"\", IF(VLOOKUP(AX264,'Footnotes list'!$D$9:$E$58,2,FALSE)=0,\"\",VLOOKUP(AX264,'Footnotes list'!$D$9:$E$58,2,FALSE) ) )","v":""},null,null,null,null,{"$f":"IF(TRIM(BC264)=\"\", \"\", IF(VLOOKUP(BC264,'Footnotes list'!$D$9:$E$58,2,FALSE)=0,\"\",VLOOKUP(BC264,'Footnotes list'!$D$9:$E$58,2,FALSE) ) )","v":""},null,null,null,null,{"$f":"IF(TRIM(BH264)=\"\", \"\", IF(VLOOKUP(BH264,'Footnotes list'!$D$9:$E$58,2,FALSE)=0,\"\",VLOOKUP(BH264,'Footnotes list'!$D$9:$E$58,2,FALSE) ) )","v":""},null,null,null,null,{"$f":"IF(TRIM(BM264)=\"\", \"\", IF(VLOOKUP(BM264,'Footnotes list'!$D$9:$E$58,2,FALSE)=0,\"\",VLOOKUP(BM264,'Footnotes list'!$D$9:$E$58,2,FALSE) ) )","v":""},null,null,null,null,{"$f":"IF(TRIM(BR264)=\"\", \"\", IF(VLOOKUP(BR264,'Footnotes list'!$D$9:$E$58,2,FALSE)=0,\"\",VLOOKUP(BR264,'Footnotes list'!$D$9:$E$58,2,FALSE) ) )","v":""},null,null,null,null,{"$f":"IF(TRIM(BW264)=\"\", \"\", IF(VLOOKUP(BW264,'Footnotes list'!$D$9:$E$58,2,FALSE)=0,\"\",VLOOKUP(BW264,'Footnotes list'!$D$9:$E$58,2,FALSE) ) )","v":""},null,null,null,null,{"$f":"IF(TRIM(CB264)=\"\", \"\", IF(VLOOKUP(CB264,'Footnotes list'!$D$9:$E$58,2,FALSE)=0,\"\",VLOOKUP(CB264,'Footnotes list'!$D$9:$E$58,2,FALSE) ) )","v":""},null,null,null,null,{"$f":"IF(TRIM(CG264)=\"\", \"\", IF(VLOOKUP(CG264,'Footnotes list'!$D$9:$E$58,2,FALSE)=0,\"\",VLOOKUP(CG264,'Footnotes list'!$D$9:$E$58,2,FALSE) ) )","v":""},null,null,null,null,{"$f":"IF(TRIM(CL264)=\"\", \"\", IF(VLOOKUP(CL264,'Footnotes list'!$D$9:$E$58,2,FALSE)=0,\"\",VLOOKUP(CL264,'Footnotes list'!$D$9:$E$58,2,FALSE) ) )","v":""},null,null,null,null,{"$f":"IF(TRIM(CQ264)=\"\", \"\", IF(VLOOKUP(CQ264,'Footnotes list'!$D$9:$E$58,2,FALSE)=0,\"\",VLOOKUP(CQ264,'Footnotes list'!$D$9:$E$58,2,FALSE) ) )","v":""},null,null,null,null,{"$f":"IF(TRIM(CV264)=\"\", \"\", IF(VLOOKUP(CV264,'Footnotes list'!$D$9:$E$58,2,FALSE)=0,\"\",VLOOKUP(CV264,'Footnotes list'!$D$9:$E$58,2,FALSE) ) )","v":""},null,null,null,null,{"$f":"IF(TRIM(DA264)=\"\", \"\", IF(VLOOKUP(DA264,'Footnotes list'!$D$9:$E$58,2,FALSE)=0,\"\",VLOOKUP(DA264,'Footnotes list'!$D$9:$E$58,2,FALSE) ) )","v":""},null,null,null,null,{"$f":"IF(TRIM(DF264)=\"\", \"\", IF(VLOOKUP(DF264,'Footnotes list'!$D$9:$E$58,2,FALSE)=0,\"\",VLOOKUP(DF264,'Footnotes list'!$D$9:$E$58,2,FALSE) ) )","v":""},null,null,null,null,{"$f":"IF(TRIM(DK264)=\"\", \"\", IF(VLOOKUP(DK264,'Footnotes list'!$D$9:$E$58,2,FALSE)=0,\"\",VLOOKUP(DK264,'Footnotes list'!$D$9:$E$58,2,FALSE) ) )","v":""},null,null,null,null,{"$f":"IF(TRIM(DP264)=\"\", \"\", IF(VLOOKUP(DP264,'Footnotes list'!$D$9:$E$58,2,FALSE)=0,\"\",VLOOKUP(DP264,'Footnotes list'!$D$9:$E$58,2,FALSE) ) )","v":""},null,null,null,null,{"$f":"IF(TRIM(DU264)=\"\", \"\", IF(VLOOKUP(DU264,'Footnotes list'!$D$9:$E$58,2,FALSE)=0,\"\",VLOOKUP(DU264,'Footnotes list'!$D$9:$E$58,2,FALSE) ) )","v":""},null,null,null,null,{"$f":"IF(TRIM(DZ264)=\"\", \"\", IF(VLOOKUP(DZ264,'Footnotes list'!$D$9:$E$58,2,FALSE)=0,\"\",VLOOKUP(DZ264,'Footnotes list'!$D$9:$E$58,2,FALSE) ) )","v":""},null,null,null,null,{"$f":"IF(TRIM(EE264)=\"\", \"\", IF(VLOOKUP(EE264,'Footnotes list'!$D$9:$E$58,2,FALSE)=0,\"\",VLOOKUP(EE264,'Footnotes list'!$D$9:$E$58,2,FALSE) ) )","v":""},null,null,null,null,{"$f":"IF(TRIM(EJ264)=\"\", \"\", IF(VLOOKUP(EJ264,'Footnotes list'!$D$9:$E$58,2,FALSE)=0,\"\",VLOOKUP(EJ264,'Footnotes list'!$D$9:$E$58,2,FALSE) ) )","v":""},null,null,null,null,{"$f":"IF(TRIM(EO264)=\"\", \"\", IF(VLOOKUP(EO264,'Footnotes list'!$D$9:$E$58,2,FALSE)=0,\"\",VLOOKUP(EO264,'Footnotes list'!$D$9:$E$58,2,FALSE) ) )","v":""},null,null,null,null,{"$f":"IF(TRIM(ET264)=\"\", \"\", IF(VLOOKUP(ET264,'Footnotes list'!$D$9:$E$58,2,FALSE)=0,\"\",VLOOKUP(ET264,'Footnotes list'!$D$9:$E$58,2,FALSE) ) )","v":""},null,null,null,null,{"$f":"IF(TRIM(EY264)=\"\", \"\", IF(VLOOKUP(EY264,'Footnotes list'!$D$9:$E$58,2,FALSE)=0,\"\",VLOOKUP(EY264,'Footnotes list'!$D$9:$E$58,2,FALSE) ) )","v":""}]
[null,null,"O","ES_CS","environmental specific services",null,null,null,null,null,{"$f":"IF(TRIM(J265)=\"\", \"\", IF(VLOOKUP(J265,'Footnotes list'!$D$9:$E$58,2,FALSE)=0,\"\",VLOOKUP(J265,'Footnotes list'!$D$9:$E$58,2,FALSE) ) )","v":""},null,null,null,null,{"$f":"IF(TRIM(O265)=\"\", \"\", IF(VLOOKUP(O265,'Footnotes list'!$D$9:$E$58,2,FALSE)=0,\"\",VLOOKUP(O265,'Footnotes list'!$D$9:$E$58,2,FALSE) ) )","v":""},null,null,null,null,{"$f":"IF(TRIM(T265)=\"\", \"\", IF(VLOOKUP(T265,'Footnotes list'!$D$9:$E$58,2,FALSE)=0,\"\",VLOOKUP(T265,'Footnotes list'!$D$9:$E$58,2,FALSE) ) )","v":""},null,null,null,null,{"$f":"IF(TRIM(Y265)=\"\", \"\", IF(VLOOKUP(Y265,'Footnotes list'!$D$9:$E$58,2,FALSE)=0,\"\",VLOOKUP(Y265,'Footnotes list'!$D$9:$E$58,2,FALSE) ) )","v":""},null,null,null,null,{"$f":"IF(TRIM(AD265)=\"\", \"\", IF(VLOOKUP(AD265,'Footnotes list'!$D$9:$E$58,2,FALSE)=0,\"\",VLOOKUP(AD265,'Footnotes list'!$D$9:$E$58,2,FALSE) ) )","v":""},null,null,null,null,{"$f":"IF(TRIM(AI265)=\"\", \"\", IF(VLOOKUP(AI265,'Footnotes list'!$D$9:$E$58,2,FALSE)=0,\"\",VLOOKUP(AI265,'Footnotes list'!$D$9:$E$58,2,FALSE) ) )","v":""},null,null,null,null,{"$f":"IF(TRIM(AN265)=\"\", \"\", IF(VLOOKUP(AN265,'Footnotes list'!$D$9:$E$58,2,FALSE)=0,\"\",VLOOKUP(AN265,'Footnotes list'!$D$9:$E$58,2,FALSE) ) )","v":""},null,null,null,null,{"$f":"IF(TRIM(AS265)=\"\", \"\", IF(VLOOKUP(AS265,'Footnotes list'!$D$9:$E$58,2,FALSE)=0,\"\",VLOOKUP(AS265,'Footnotes list'!$D$9:$E$58,2,FALSE) ) )","v":""},null,null,null,null,{"$f":"IF(TRIM(AX265)=\"\", \"\", IF(VLOOKUP(AX265,'Footnotes list'!$D$9:$E$58,2,FALSE)=0,\"\",VLOOKUP(AX265,'Footnotes list'!$D$9:$E$58,2,FALSE) ) )","v":""},null,null,null,null,{"$f":"IF(TRIM(BC265)=\"\", \"\", IF(VLOOKUP(BC265,'Footnotes list'!$D$9:$E$58,2,FALSE)=0,\"\",VLOOKUP(BC265,'Footnotes list'!$D$9:$E$58,2,FALSE) ) )","v":""},null,null,null,null,{"$f":"IF(TRIM(BH265)=\"\", \"\", IF(VLOOKUP(BH265,'Footnotes list'!$D$9:$E$58,2,FALSE)=0,\"\",VLOOKUP(BH265,'Footnotes list'!$D$9:$E$58,2,FALSE) ) )","v":""},null,null,null,null,{"$f":"IF(TRIM(BM265)=\"\", \"\", IF(VLOOKUP(BM265,'Footnotes list'!$D$9:$E$58,2,FALSE)=0,\"\",VLOOKUP(BM265,'Footnotes list'!$D$9:$E$58,2,FALSE) ) )","v":""},null,null,null,null,{"$f":"IF(TRIM(BR265)=\"\", \"\", IF(VLOOKUP(BR265,'Footnotes list'!$D$9:$E$58,2,FALSE)=0,\"\",VLOOKUP(BR265,'Footnotes list'!$D$9:$E$58,2,FALSE) ) )","v":""},null,null,null,null,{"$f":"IF(TRIM(BW265)=\"\", \"\", IF(VLOOKUP(BW265,'Footnotes list'!$D$9:$E$58,2,FALSE)=0,\"\",VLOOKUP(BW265,'Footnotes list'!$D$9:$E$58,2,FALSE) ) )","v":""},null,null,null,null,{"$f":"IF(TRIM(CB265)=\"\", \"\", IF(VLOOKUP(CB265,'Footnotes list'!$D$9:$E$58,2,FALSE)=0,\"\",VLOOKUP(CB265,'Footnotes list'!$D$9:$E$58,2,FALSE) ) )","v":""},null,null,null,null,{"$f":"IF(TRIM(CG265)=\"\", \"\", IF(VLOOKUP(CG265,'Footnotes list'!$D$9:$E$58,2,FALSE)=0,\"\",VLOOKUP(CG265,'Footnotes list'!$D$9:$E$58,2,FALSE) ) )","v":""},null,null,null,null,{"$f":"IF(TRIM(CL265)=\"\", \"\", IF(VLOOKUP(CL265,'Footnotes list'!$D$9:$E$58,2,FALSE)=0,\"\",VLOOKUP(CL265,'Footnotes list'!$D$9:$E$58,2,FALSE) ) )","v":""},null,null,null,null,{"$f":"IF(TRIM(CQ265)=\"\", \"\", IF(VLOOKUP(CQ265,'Footnotes list'!$D$9:$E$58,2,FALSE)=0,\"\",VLOOKUP(CQ265,'Footnotes list'!$D$9:$E$58,2,FALSE) ) )","v":""},null,null,null,null,{"$f":"IF(TRIM(CV265)=\"\", \"\", IF(VLOOKUP(CV265,'Footnotes list'!$D$9:$E$58,2,FALSE)=0,\"\",VLOOKUP(CV265,'Footnotes list'!$D$9:$E$58,2,FALSE) ) )","v":""},null,null,null,null,{"$f":"IF(TRIM(DA265)=\"\", \"\", IF(VLOOKUP(DA265,'Footnotes list'!$D$9:$E$58,2,FALSE)=0,\"\",VLOOKUP(DA265,'Footnotes list'!$D$9:$E$58,2,FALSE) ) )","v":""},null,null,null,null,{"$f":"IF(TRIM(DF265)=\"\", \"\", IF(VLOOKUP(DF265,'Footnotes list'!$D$9:$E$58,2,FALSE)=0,\"\",VLOOKUP(DF265,'Footnotes list'!$D$9:$E$58,2,FALSE) ) )","v":""},null,null,null,null,{"$f":"IF(TRIM(DK265)=\"\", \"\", IF(VLOOKUP(DK265,'Footnotes list'!$D$9:$E$58,2,FALSE)=0,\"\",VLOOKUP(DK265,'Footnotes list'!$D$9:$E$58,2,FALSE) ) )","v":""},null,null,null,null,{"$f":"IF(TRIM(DP265)=\"\", \"\", IF(VLOOKUP(DP265,'Footnotes list'!$D$9:$E$58,2,FALSE)=0,\"\",VLOOKUP(DP265,'Footnotes list'!$D$9:$E$58,2,FALSE) ) )","v":""},null,null,null,null,{"$f":"IF(TRIM(DU265)=\"\", \"\", IF(VLOOKUP(DU265,'Footnotes list'!$D$9:$E$58,2,FALSE)=0,\"\",VLOOKUP(DU265,'Footnotes list'!$D$9:$E$58,2,FALSE) ) )","v":""},null,null,null,null,{"$f":"IF(TRIM(DZ265)=\"\", \"\", IF(VLOOKUP(DZ265,'Footnotes list'!$D$9:$E$58,2,FALSE)=0,\"\",VLOOKUP(DZ265,'Footnotes list'!$D$9:$E$58,2,FALSE) ) )","v":""},null,null,null,null,{"$f":"IF(TRIM(EE265)=\"\", \"\", IF(VLOOKUP(EE265,'Footnotes list'!$D$9:$E$58,2,FALSE)=0,\"\",VLOOKUP(EE265,'Footnotes list'!$D$9:$E$58,2,FALSE) ) )","v":""},null,null,null,null,{"$f":"IF(TRIM(EJ265)=\"\", \"\", IF(VLOOKUP(EJ265,'Footnotes list'!$D$9:$E$58,2,FALSE)=0,\"\",VLOOKUP(EJ265,'Footnotes list'!$D$9:$E$58,2,FALSE) ) )","v":""},null,null,null,null,{"$f":"IF(TRIM(EO265)=\"\", \"\", IF(VLOOKUP(EO265,'Footnotes list'!$D$9:$E$58,2,FALSE)=0,\"\",VLOOKUP(EO265,'Footnotes list'!$D$9:$E$58,2,FALSE) ) )","v":""},null,null,null,null,{"$f":"IF(TRIM(ET265)=\"\", \"\", IF(VLOOKUP(ET265,'Footnotes list'!$D$9:$E$58,2,FALSE)=0,\"\",VLOOKUP(ET265,'Footnotes list'!$D$9:$E$58,2,FALSE) ) )","v":""},null,null,null,null,{"$f":"IF(TRIM(EY265)=\"\", \"\", IF(VLOOKUP(EY265,'Footnotes list'!$D$9:$E$58,2,FALSE)=0,\"\",VLOOKUP(EY265,'Footnotes list'!$D$9:$E$58,2,FALSE) ) )","v":""}]
[null,null,"O","C_REP","cleaner and resource efficient products",null,null,null,null,null,{"$f":"IF(TRIM(J266)=\"\", \"\", IF(VLOOKUP(J266,'Footnotes list'!$D$9:$E$58,2,FALSE)=0,\"\",VLOOKUP(J266,'Footnotes list'!$D$9:$E$58,2,FALSE) ) )","v":""},null,null,null,null,{"$f":"IF(TRIM(O266)=\"\", \"\", IF(VLOOKUP(O266,'Footnotes list'!$D$9:$E$58,2,FALSE)=0,\"\",VLOOKUP(O266,'Footnotes list'!$D$9:$E$58,2,FALSE) ) )","v":""},null,null,null,null,{"$f":"IF(TRIM(T266)=\"\", \"\", IF(VLOOKUP(T266,'Footnotes list'!$D$9:$E$58,2,FALSE)=0,\"\",VLOOKUP(T266,'Footnotes list'!$D$9:$E$58,2,FALSE) ) )","v":""},null,null,null,null,{"$f":"IF(TRIM(Y266)=\"\", \"\", IF(VLOOKUP(Y266,'Footnotes list'!$D$9:$E$58,2,FALSE)=0,\"\",VLOOKUP(Y266,'Footnotes list'!$D$9:$E$58,2,FALSE) ) )","v":""},null,null,null,null,{"$f":"IF(TRIM(AD266)=\"\", \"\", IF(VLOOKUP(AD266,'Footnotes list'!$D$9:$E$58,2,FALSE)=0,\"\",VLOOKUP(AD266,'Footnotes list'!$D$9:$E$58,2,FALSE) ) )","v":""},null,null,null,null,{"$f":"IF(TRIM(AI266)=\"\", \"\", IF(VLOOKUP(AI266,'Footnotes list'!$D$9:$E$58,2,FALSE)=0,\"\",VLOOKUP(AI266,'Footnotes list'!$D$9:$E$58,2,FALSE) ) )","v":""},null,null,null,null,{"$f":"IF(TRIM(AN266)=\"\", \"\", IF(VLOOKUP(AN266,'Footnotes list'!$D$9:$E$58,2,FALSE)=0,\"\",VLOOKUP(AN266,'Footnotes list'!$D$9:$E$58,2,FALSE) ) )","v":""},null,null,null,null,{"$f":"IF(TRIM(AS266)=\"\", \"\", IF(VLOOKUP(AS266,'Footnotes list'!$D$9:$E$58,2,FALSE)=0,\"\",VLOOKUP(AS266,'Footnotes list'!$D$9:$E$58,2,FALSE) ) )","v":""},null,null,null,null,{"$f":"IF(TRIM(AX266)=\"\", \"\", IF(VLOOKUP(AX266,'Footnotes list'!$D$9:$E$58,2,FALSE)=0,\"\",VLOOKUP(AX266,'Footnotes list'!$D$9:$E$58,2,FALSE) ) )","v":""},null,null,null,null,{"$f":"IF(TRIM(BC266)=\"\", \"\", IF(VLOOKUP(BC266,'Footnotes list'!$D$9:$E$58,2,FALSE)=0,\"\",VLOOKUP(BC266,'Footnotes list'!$D$9:$E$58,2,FALSE) ) )","v":""},null,null,null,null,{"$f":"IF(TRIM(BH266)=\"\", \"\", IF(VLOOKUP(BH266,'Footnotes list'!$D$9:$E$58,2,FALSE)=0,\"\",VLOOKUP(BH266,'Footnotes list'!$D$9:$E$58,2,FALSE) ) )","v":""},null,null,null,null,{"$f":"IF(TRIM(BM266)=\"\", \"\", IF(VLOOKUP(BM266,'Footnotes list'!$D$9:$E$58,2,FALSE)=0,\"\",VLOOKUP(BM266,'Footnotes list'!$D$9:$E$58,2,FALSE) ) )","v":""},null,null,null,null,{"$f":"IF(TRIM(BR266)=\"\", \"\", IF(VLOOKUP(BR266,'Footnotes list'!$D$9:$E$58,2,FALSE)=0,\"\",VLOOKUP(BR266,'Footnotes list'!$D$9:$E$58,2,FALSE) ) )","v":""},null,null,null,null,{"$f":"IF(TRIM(BW266)=\"\", \"\", IF(VLOOKUP(BW266,'Footnotes list'!$D$9:$E$58,2,FALSE)=0,\"\",VLOOKUP(BW266,'Footnotes list'!$D$9:$E$58,2,FALSE) ) )","v":""},null,null,null,null,{"$f":"IF(TRIM(CB266)=\"\", \"\", IF(VLOOKUP(CB266,'Footnotes list'!$D$9:$E$58,2,FALSE)=0,\"\",VLOOKUP(CB266,'Footnotes list'!$D$9:$E$58,2,FALSE) ) )","v":""},null,null,null,null,{"$f":"IF(TRIM(CG266)=\"\", \"\", IF(VLOOKUP(CG266,'Footnotes list'!$D$9:$E$58,2,FALSE)=0,\"\",VLOOKUP(CG266,'Footnotes list'!$D$9:$E$58,2,FALSE) ) )","v":""},null,null,null,null,{"$f":"IF(TRIM(CL266)=\"\", \"\", IF(VLOOKUP(CL266,'Footnotes list'!$D$9:$E$58,2,FALSE)=0,\"\",VLOOKUP(CL266,'Footnotes list'!$D$9:$E$58,2,FALSE) ) )","v":""},null,null,null,null,{"$f":"IF(TRIM(CQ266)=\"\", \"\", IF(VLOOKUP(CQ266,'Footnotes list'!$D$9:$E$58,2,FALSE)=0,\"\",VLOOKUP(CQ266,'Footnotes list'!$D$9:$E$58,2,FALSE) ) )","v":""},null,null,null,null,{"$f":"IF(TRIM(CV266)=\"\", \"\", IF(VLOOKUP(CV266,'Footnotes list'!$D$9:$E$58,2,FALSE)=0,\"\",VLOOKUP(CV266,'Footnotes list'!$D$9:$E$58,2,FALSE) ) )","v":""},null,null,null,null,{"$f":"IF(TRIM(DA266)=\"\", \"\", IF(VLOOKUP(DA266,'Footnotes list'!$D$9:$E$58,2,FALSE)=0,\"\",VLOOKUP(DA266,'Footnotes list'!$D$9:$E$58,2,FALSE) ) )","v":""},null,null,null,null,{"$f":"IF(TRIM(DF266)=\"\", \"\", IF(VLOOKUP(DF266,'Footnotes list'!$D$9:$E$58,2,FALSE)=0,\"\",VLOOKUP(DF266,'Footnotes list'!$D$9:$E$58,2,FALSE) ) )","v":""},null,null,null,null,{"$f":"IF(TRIM(DK266)=\"\", \"\", IF(VLOOKUP(DK266,'Footnotes list'!$D$9:$E$58,2,FALSE)=0,\"\",VLOOKUP(DK266,'Footnotes list'!$D$9:$E$58,2,FALSE) ) )","v":""},null,null,null,null,{"$f":"IF(TRIM(DP266)=\"\", \"\", IF(VLOOKUP(DP266,'Footnotes list'!$D$9:$E$58,2,FALSE)=0,\"\",VLOOKUP(DP266,'Footnotes list'!$D$9:$E$58,2,FALSE) ) )","v":""},null,null,null,null,{"$f":"IF(TRIM(DU266)=\"\", \"\", IF(VLOOKUP(DU266,'Footnotes list'!$D$9:$E$58,2,FALSE)=0,\"\",VLOOKUP(DU266,'Footnotes list'!$D$9:$E$58,2,FALSE) ) )","v":""},null,null,null,null,{"$f":"IF(TRIM(DZ266)=\"\", \"\", IF(VLOOKUP(DZ266,'Footnotes list'!$D$9:$E$58,2,FALSE)=0,\"\",VLOOKUP(DZ266,'Footnotes list'!$D$9:$E$58,2,FALSE) ) )","v":""},null,null,null,null,{"$f":"IF(TRIM(EE266)=\"\", \"\", IF(VLOOKUP(EE266,'Footnotes list'!$D$9:$E$58,2,FALSE)=0,\"\",VLOOKUP(EE266,'Footnotes list'!$D$9:$E$58,2,FALSE) ) )","v":""},null,null,null,null,{"$f":"IF(TRIM(EJ266)=\"\", \"\", IF(VLOOKUP(EJ266,'Footnotes list'!$D$9:$E$58,2,FALSE)=0,\"\",VLOOKUP(EJ266,'Footnotes list'!$D$9:$E$58,2,FALSE) ) )","v":""},null,null,null,null,{"$f":"IF(TRIM(EO266)=\"\", \"\", IF(VLOOKUP(EO266,'Footnotes list'!$D$9:$E$58,2,FALSE)=0,\"\",VLOOKUP(EO266,'Footnotes list'!$D$9:$E$58,2,FALSE) ) )","v":""},null,null,null,null,{"$f":"IF(TRIM(ET266)=\"\", \"\", IF(VLOOKUP(ET266,'Footnotes list'!$D$9:$E$58,2,FALSE)=0,\"\",VLOOKUP(ET266,'Footnotes list'!$D$9:$E$58,2,FALSE) ) )","v":""},null,null,null,null,{"$f":"IF(TRIM(EY266)=\"\", \"\", IF(VLOOKUP(EY266,'Footnotes list'!$D$9:$E$58,2,FALSE)=0,\"\",VLOOKUP(EY266,'Footnotes list'!$D$9:$E$58,2,FALSE) ) )","v":""}]
[null,null,"P","TOT_EGSS","Total P - Education, of which:",null,null,null,null,null,{"$f":"IF(TRIM(J267)=\"\", \"\", IF(VLOOKUP(J267,'Footnotes list'!$D$9:$E$58,2,FALSE)=0,\"\",VLOOKUP(J267,'Footnotes list'!$D$9:$E$58,2,FALSE) ) )","v":""},null,null,null,null,{"$f":"IF(TRIM(O267)=\"\", \"\", IF(VLOOKUP(O267,'Footnotes list'!$D$9:$E$58,2,FALSE)=0,\"\",VLOOKUP(O267,'Footnotes list'!$D$9:$E$58,2,FALSE) ) )","v":""},null,null,null,null,{"$f":"IF(TRIM(T267)=\"\", \"\", IF(VLOOKUP(T267,'Footnotes list'!$D$9:$E$58,2,FALSE)=0,\"\",VLOOKUP(T267,'Footnotes list'!$D$9:$E$58,2,FALSE) ) )","v":""},null,null,null,null,{"$f":"IF(TRIM(Y267)=\"\", \"\", IF(VLOOKUP(Y267,'Footnotes list'!$D$9:$E$58,2,FALSE)=0,\"\",VLOOKUP(Y267,'Footnotes list'!$D$9:$E$58,2,FALSE) ) )","v":""},null,null,null,null,{"$f":"IF(TRIM(AD267)=\"\", \"\", IF(VLOOKUP(AD267,'Footnotes list'!$D$9:$E$58,2,FALSE)=0,\"\",VLOOKUP(AD267,'Footnotes list'!$D$9:$E$58,2,FALSE) ) )","v":""},null,null,null,null,{"$f":"IF(TRIM(AI267)=\"\", \"\", IF(VLOOKUP(AI267,'Footnotes list'!$D$9:$E$58,2,FALSE)=0,\"\",VLOOKUP(AI267,'Footnotes list'!$D$9:$E$58,2,FALSE) ) )","v":""},null,null,null,null,{"$f":"IF(TRIM(AN267)=\"\", \"\", IF(VLOOKUP(AN267,'Footnotes list'!$D$9:$E$58,2,FALSE)=0,\"\",VLOOKUP(AN267,'Footnotes list'!$D$9:$E$58,2,FALSE) ) )","v":""},null,null,null,null,{"$f":"IF(TRIM(AS267)=\"\", \"\", IF(VLOOKUP(AS267,'Footnotes list'!$D$9:$E$58,2,FALSE)=0,\"\",VLOOKUP(AS267,'Footnotes list'!$D$9:$E$58,2,FALSE) ) )","v":""},null,null,null,null,{"$f":"IF(TRIM(AX267)=\"\", \"\", IF(VLOOKUP(AX267,'Footnotes list'!$D$9:$E$58,2,FALSE)=0,\"\",VLOOKUP(AX267,'Footnotes list'!$D$9:$E$58,2,FALSE) ) )","v":""},null,null,null,null,{"$f":"IF(TRIM(BC267)=\"\", \"\", IF(VLOOKUP(BC267,'Footnotes list'!$D$9:$E$58,2,FALSE)=0,\"\",VLOOKUP(BC267,'Footnotes list'!$D$9:$E$58,2,FALSE) ) )","v":""},null,null,null,null,{"$f":"IF(TRIM(BH267)=\"\", \"\", IF(VLOOKUP(BH267,'Footnotes list'!$D$9:$E$58,2,FALSE)=0,\"\",VLOOKUP(BH267,'Footnotes list'!$D$9:$E$58,2,FALSE) ) )","v":""},null,null,null,null,{"$f":"IF(TRIM(BM267)=\"\", \"\", IF(VLOOKUP(BM267,'Footnotes list'!$D$9:$E$58,2,FALSE)=0,\"\",VLOOKUP(BM267,'Footnotes list'!$D$9:$E$58,2,FALSE) ) )","v":""},null,null,null,null,{"$f":"IF(TRIM(BR267)=\"\", \"\", IF(VLOOKUP(BR267,'Footnotes list'!$D$9:$E$58,2,FALSE)=0,\"\",VLOOKUP(BR267,'Footnotes list'!$D$9:$E$58,2,FALSE) ) )","v":""},null,null,null,null,{"$f":"IF(TRIM(BW267)=\"\", \"\", IF(VLOOKUP(BW267,'Footnotes list'!$D$9:$E$58,2,FALSE)=0,\"\",VLOOKUP(BW267,'Footnotes list'!$D$9:$E$58,2,FALSE) ) )","v":""},null,null,null,null,{"$f":"IF(TRIM(CB267)=\"\", \"\", IF(VLOOKUP(CB267,'Footnotes list'!$D$9:$E$58,2,FALSE)=0,\"\",VLOOKUP(CB267,'Footnotes list'!$D$9:$E$58,2,FALSE) ) )","v":""},null,null,null,null,{"$f":"IF(TRIM(CG267)=\"\", \"\", IF(VLOOKUP(CG267,'Footnotes list'!$D$9:$E$58,2,FALSE)=0,\"\",VLOOKUP(CG267,'Footnotes list'!$D$9:$E$58,2,FALSE) ) )","v":""},null,null,null,null,{"$f":"IF(TRIM(CL267)=\"\", \"\", IF(VLOOKUP(CL267,'Footnotes list'!$D$9:$E$58,2,FALSE)=0,\"\",VLOOKUP(CL267,'Footnotes list'!$D$9:$E$58,2,FALSE) ) )","v":""},null,null,null,null,{"$f":"IF(TRIM(CQ267)=\"\", \"\", IF(VLOOKUP(CQ267,'Footnotes list'!$D$9:$E$58,2,FALSE)=0,\"\",VLOOKUP(CQ267,'Footnotes list'!$D$9:$E$58,2,FALSE) ) )","v":""},null,null,null,null,{"$f":"IF(TRIM(CV267)=\"\", \"\", IF(VLOOKUP(CV267,'Footnotes list'!$D$9:$E$58,2,FALSE)=0,\"\",VLOOKUP(CV267,'Footnotes list'!$D$9:$E$58,2,FALSE) ) )","v":""},null,null,null,null,{"$f":"IF(TRIM(DA267)=\"\", \"\", IF(VLOOKUP(DA267,'Footnotes list'!$D$9:$E$58,2,FALSE)=0,\"\",VLOOKUP(DA267,'Footnotes list'!$D$9:$E$58,2,FALSE) ) )","v":""},null,null,null,null,{"$f":"IF(TRIM(DF267)=\"\", \"\", IF(VLOOKUP(DF267,'Footnotes list'!$D$9:$E$58,2,FALSE)=0,\"\",VLOOKUP(DF267,'Footnotes list'!$D$9:$E$58,2,FALSE) ) )","v":""},null,null,null,null,{"$f":"IF(TRIM(DK267)=\"\", \"\", IF(VLOOKUP(DK267,'Footnotes list'!$D$9:$E$58,2,FALSE)=0,\"\",VLOOKUP(DK267,'Footnotes list'!$D$9:$E$58,2,FALSE) ) )","v":""},null,null,null,null,{"$f":"IF(TRIM(DP267)=\"\", \"\", IF(VLOOKUP(DP267,'Footnotes list'!$D$9:$E$58,2,FALSE)=0,\"\",VLOOKUP(DP267,'Footnotes list'!$D$9:$E$58,2,FALSE) ) )","v":""},null,null,null,null,{"$f":"IF(TRIM(DU267)=\"\", \"\", IF(VLOOKUP(DU267,'Footnotes list'!$D$9:$E$58,2,FALSE)=0,\"\",VLOOKUP(DU267,'Footnotes list'!$D$9:$E$58,2,FALSE) ) )","v":""},null,null,null,null,{"$f":"IF(TRIM(DZ267)=\"\", \"\", IF(VLOOKUP(DZ267,'Footnotes list'!$D$9:$E$58,2,FALSE)=0,\"\",VLOOKUP(DZ267,'Footnotes list'!$D$9:$E$58,2,FALSE) ) )","v":""},null,null,null,null,{"$f":"IF(TRIM(EE267)=\"\", \"\", IF(VLOOKUP(EE267,'Footnotes list'!$D$9:$E$58,2,FALSE)=0,\"\",VLOOKUP(EE267,'Footnotes list'!$D$9:$E$58,2,FALSE) ) )","v":""},null,null,null,null,{"$f":"IF(TRIM(EJ267)=\"\", \"\", IF(VLOOKUP(EJ267,'Footnotes list'!$D$9:$E$58,2,FALSE)=0,\"\",VLOOKUP(EJ267,'Footnotes list'!$D$9:$E$58,2,FALSE) ) )","v":""},null,null,null,null,{"$f":"IF(TRIM(EO267)=\"\", \"\", IF(VLOOKUP(EO267,'Footnotes list'!$D$9:$E$58,2,FALSE)=0,\"\",VLOOKUP(EO267,'Footnotes list'!$D$9:$E$58,2,FALSE) ) )","v":""},null,null,null,null,{"$f":"IF(TRIM(ET267)=\"\", \"\", IF(VLOOKUP(ET267,'Footnotes list'!$D$9:$E$58,2,FALSE)=0,\"\",VLOOKUP(ET267,'Footnotes list'!$D$9:$E$58,2,FALSE) ) )","v":""},null,null,null,null,{"$f":"IF(TRIM(EY267)=\"\", \"\", IF(VLOOKUP(EY267,'Footnotes list'!$D$9:$E$58,2,FALSE)=0,\"\",VLOOKUP(EY267,'Footnotes list'!$D$9:$E$58,2,FALSE) ) )","v":""}]
[null,null,"P","ANC","ancillary activities",null,null,null,null,null,{"$f":"IF(TRIM(J268)=\"\", \"\", IF(VLOOKUP(J268,'Footnotes list'!$D$9:$E$58,2,FALSE)=0,\"\",VLOOKUP(J268,'Footnotes list'!$D$9:$E$58,2,FALSE) ) )","v":""},null,null,null,null,{"$f":"IF(TRIM(O268)=\"\", \"\", IF(VLOOKUP(O268,'Footnotes list'!$D$9:$E$58,2,FALSE)=0,\"\",VLOOKUP(O268,'Footnotes list'!$D$9:$E$58,2,FALSE) ) )","v":""},null,null,null,null,{"$f":"IF(TRIM(T268)=\"\", \"\", IF(VLOOKUP(T268,'Footnotes list'!$D$9:$E$58,2,FALSE)=0,\"\",VLOOKUP(T268,'Footnotes list'!$D$9:$E$58,2,FALSE) ) )","v":""},null,null,null,null,{"$f":"IF(TRIM(Y268)=\"\", \"\", IF(VLOOKUP(Y268,'Footnotes list'!$D$9:$E$58,2,FALSE)=0,\"\",VLOOKUP(Y268,'Footnotes list'!$D$9:$E$58,2,FALSE) ) )","v":""},null,null,null,null,{"$f":"IF(TRIM(AD268)=\"\", \"\", IF(VLOOKUP(AD268,'Footnotes list'!$D$9:$E$58,2,FALSE)=0,\"\",VLOOKUP(AD268,'Footnotes list'!$D$9:$E$58,2,FALSE) ) )","v":""},null,null,null,null,{"$f":"IF(TRIM(AI268)=\"\", \"\", IF(VLOOKUP(AI268,'Footnotes list'!$D$9:$E$58,2,FALSE)=0,\"\",VLOOKUP(AI268,'Footnotes list'!$D$9:$E$58,2,FALSE) ) )","v":""},null,null,null,null,{"$f":"IF(TRIM(AN268)=\"\", \"\", IF(VLOOKUP(AN268,'Footnotes list'!$D$9:$E$58,2,FALSE)=0,\"\",VLOOKUP(AN268,'Footnotes list'!$D$9:$E$58,2,FALSE) ) )","v":""},null,null,null,null,{"$f":"IF(TRIM(AS268)=\"\", \"\", IF(VLOOKUP(AS268,'Footnotes list'!$D$9:$E$58,2,FALSE)=0,\"\",VLOOKUP(AS268,'Footnotes list'!$D$9:$E$58,2,FALSE) ) )","v":""},null,null,null,null,{"$f":"IF(TRIM(AX268)=\"\", \"\", IF(VLOOKUP(AX268,'Footnotes list'!$D$9:$E$58,2,FALSE)=0,\"\",VLOOKUP(AX268,'Footnotes list'!$D$9:$E$58,2,FALSE) ) )","v":""},null,null,null,null,{"$f":"IF(TRIM(BC268)=\"\", \"\", IF(VLOOKUP(BC268,'Footnotes list'!$D$9:$E$58,2,FALSE)=0,\"\",VLOOKUP(BC268,'Footnotes list'!$D$9:$E$58,2,FALSE) ) )","v":""},null,null,null,null,{"$f":"IF(TRIM(BH268)=\"\", \"\", IF(VLOOKUP(BH268,'Footnotes list'!$D$9:$E$58,2,FALSE)=0,\"\",VLOOKUP(BH268,'Footnotes list'!$D$9:$E$58,2,FALSE) ) )","v":""},null,null,null,null,{"$f":"IF(TRIM(BM268)=\"\", \"\", IF(VLOOKUP(BM268,'Footnotes list'!$D$9:$E$58,2,FALSE)=0,\"\",VLOOKUP(BM268,'Footnotes list'!$D$9:$E$58,2,FALSE) ) )","v":""},null,null,null,null,{"$f":"IF(TRIM(BR268)=\"\", \"\", IF(VLOOKUP(BR268,'Footnotes list'!$D$9:$E$58,2,FALSE)=0,\"\",VLOOKUP(BR268,'Footnotes list'!$D$9:$E$58,2,FALSE) ) )","v":""},null,null,null,null,{"$f":"IF(TRIM(BW268)=\"\", \"\", IF(VLOOKUP(BW268,'Footnotes list'!$D$9:$E$58,2,FALSE)=0,\"\",VLOOKUP(BW268,'Footnotes list'!$D$9:$E$58,2,FALSE) ) )","v":""},null,null,null,null,{"$f":"IF(TRIM(CB268)=\"\", \"\", IF(VLOOKUP(CB268,'Footnotes list'!$D$9:$E$58,2,FALSE)=0,\"\",VLOOKUP(CB268,'Footnotes list'!$D$9:$E$58,2,FALSE) ) )","v":""},null,null,null,null,{"$f":"IF(TRIM(CG268)=\"\", \"\", IF(VLOOKUP(CG268,'Footnotes list'!$D$9:$E$58,2,FALSE)=0,\"\",VLOOKUP(CG268,'Footnotes list'!$D$9:$E$58,2,FALSE) ) )","v":""},null,null,null,null,{"$f":"IF(TRIM(CL268)=\"\", \"\", IF(VLOOKUP(CL268,'Footnotes list'!$D$9:$E$58,2,FALSE)=0,\"\",VLOOKUP(CL268,'Footnotes list'!$D$9:$E$58,2,FALSE) ) )","v":""},null,null,null,null,{"$f":"IF(TRIM(CQ268)=\"\", \"\", IF(VLOOKUP(CQ268,'Footnotes list'!$D$9:$E$58,2,FALSE)=0,\"\",VLOOKUP(CQ268,'Footnotes list'!$D$9:$E$58,2,FALSE) ) )","v":""},null,null,null,null,{"$f":"IF(TRIM(CV268)=\"\", \"\", IF(VLOOKUP(CV268,'Footnotes list'!$D$9:$E$58,2,FALSE)=0,\"\",VLOOKUP(CV268,'Footnotes list'!$D$9:$E$58,2,FALSE) ) )","v":""},null,null,null,null,{"$f":"IF(TRIM(DA268)=\"\", \"\", IF(VLOOKUP(DA268,'Footnotes list'!$D$9:$E$58,2,FALSE)=0,\"\",VLOOKUP(DA268,'Footnotes list'!$D$9:$E$58,2,FALSE) ) )","v":""},null,null,null,null,{"$f":"IF(TRIM(DF268)=\"\", \"\", IF(VLOOKUP(DF268,'Footnotes list'!$D$9:$E$58,2,FALSE)=0,\"\",VLOOKUP(DF268,'Footnotes list'!$D$9:$E$58,2,FALSE) ) )","v":""},null,null,null,null,{"$f":"IF(TRIM(DK268)=\"\", \"\", IF(VLOOKUP(DK268,'Footnotes list'!$D$9:$E$58,2,FALSE)=0,\"\",VLOOKUP(DK268,'Footnotes list'!$D$9:$E$58,2,FALSE) ) )","v":""},null,null,null,null,{"$f":"IF(TRIM(DP268)=\"\", \"\", IF(VLOOKUP(DP268,'Footnotes list'!$D$9:$E$58,2,FALSE)=0,\"\",VLOOKUP(DP268,'Footnotes list'!$D$9:$E$58,2,FALSE) ) )","v":""},null,null,null,null,{"$f":"IF(TRIM(DU268)=\"\", \"\", IF(VLOOKUP(DU268,'Footnotes list'!$D$9:$E$58,2,FALSE)=0,\"\",VLOOKUP(DU268,'Footnotes list'!$D$9:$E$58,2,FALSE) ) )","v":""},null,null,null,null,{"$f":"IF(TRIM(DZ268)=\"\", \"\", IF(VLOOKUP(DZ268,'Footnotes list'!$D$9:$E$58,2,FALSE)=0,\"\",VLOOKUP(DZ268,'Footnotes list'!$D$9:$E$58,2,FALSE) ) )","v":""},null,null,null,null,{"$f":"IF(TRIM(EE268)=\"\", \"\", IF(VLOOKUP(EE268,'Footnotes list'!$D$9:$E$58,2,FALSE)=0,\"\",VLOOKUP(EE268,'Footnotes list'!$D$9:$E$58,2,FALSE) ) )","v":""},null,null,null,null,{"$f":"IF(TRIM(EJ268)=\"\", \"\", IF(VLOOKUP(EJ268,'Footnotes list'!$D$9:$E$58,2,FALSE)=0,\"\",VLOOKUP(EJ268,'Footnotes list'!$D$9:$E$58,2,FALSE) ) )","v":""},null,null,null,null,{"$f":"IF(TRIM(EO268)=\"\", \"\", IF(VLOOKUP(EO268,'Footnotes list'!$D$9:$E$58,2,FALSE)=0,\"\",VLOOKUP(EO268,'Footnotes list'!$D$9:$E$58,2,FALSE) ) )","v":""},null,null,null,null,{"$f":"IF(TRIM(ET268)=\"\", \"\", IF(VLOOKUP(ET268,'Footnotes list'!$D$9:$E$58,2,FALSE)=0,\"\",VLOOKUP(ET268,'Footnotes list'!$D$9:$E$58,2,FALSE) ) )","v":""},null,null,null,null,{"$f":"IF(TRIM(EY268)=\"\", \"\", IF(VLOOKUP(EY268,'Footnotes list'!$D$9:$E$58,2,FALSE)=0,\"\",VLOOKUP(EY268,'Footnotes list'!$D$9:$E$58,2,FALSE) ) )","v":""}]
[null,null,"P","NMKT","non-market activities",null,null,null,null,null,{"$f":"IF(TRIM(J269)=\"\", \"\", IF(VLOOKUP(J269,'Footnotes list'!$D$9:$E$58,2,FALSE)=0,\"\",VLOOKUP(J269,'Footnotes list'!$D$9:$E$58,2,FALSE) ) )","v":""},null,null,null,null,{"$f":"IF(TRIM(O269)=\"\", \"\", IF(VLOOKUP(O269,'Footnotes list'!$D$9:$E$58,2,FALSE)=0,\"\",VLOOKUP(O269,'Footnotes list'!$D$9:$E$58,2,FALSE) ) )","v":""},null,null,null,null,{"$f":"IF(TRIM(T269)=\"\", \"\", IF(VLOOKUP(T269,'Footnotes list'!$D$9:$E$58,2,FALSE)=0,\"\",VLOOKUP(T269,'Footnotes list'!$D$9:$E$58,2,FALSE) ) )","v":""},null,null,null,null,{"$f":"IF(TRIM(Y269)=\"\", \"\", IF(VLOOKUP(Y269,'Footnotes list'!$D$9:$E$58,2,FALSE)=0,\"\",VLOOKUP(Y269,'Footnotes list'!$D$9:$E$58,2,FALSE) ) )","v":""},null,null,null,null,{"$f":"IF(TRIM(AD269)=\"\", \"\", IF(VLOOKUP(AD269,'Footnotes list'!$D$9:$E$58,2,FALSE)=0,\"\",VLOOKUP(AD269,'Footnotes list'!$D$9:$E$58,2,FALSE) ) )","v":""},null,null,null,null,{"$f":"IF(TRIM(AI269)=\"\", \"\", IF(VLOOKUP(AI269,'Footnotes list'!$D$9:$E$58,2,FALSE)=0,\"\",VLOOKUP(AI269,'Footnotes list'!$D$9:$E$58,2,FALSE) ) )","v":""},null,null,null,null,{"$f":"IF(TRIM(AN269)=\"\", \"\", IF(VLOOKUP(AN269,'Footnotes list'!$D$9:$E$58,2,FALSE)=0,\"\",VLOOKUP(AN269,'Footnotes list'!$D$9:$E$58,2,FALSE) ) )","v":""},null,null,null,null,{"$f":"IF(TRIM(AS269)=\"\", \"\", IF(VLOOKUP(AS269,'Footnotes list'!$D$9:$E$58,2,FALSE)=0,\"\",VLOOKUP(AS269,'Footnotes list'!$D$9:$E$58,2,FALSE) ) )","v":""},null,null,null,null,{"$f":"IF(TRIM(AX269)=\"\", \"\", IF(VLOOKUP(AX269,'Footnotes list'!$D$9:$E$58,2,FALSE)=0,\"\",VLOOKUP(AX269,'Footnotes list'!$D$9:$E$58,2,FALSE) ) )","v":""},null,null,null,null,{"$f":"IF(TRIM(BC269)=\"\", \"\", IF(VLOOKUP(BC269,'Footnotes list'!$D$9:$E$58,2,FALSE)=0,\"\",VLOOKUP(BC269,'Footnotes list'!$D$9:$E$58,2,FALSE) ) )","v":""},null,null,null,null,{"$f":"IF(TRIM(BH269)=\"\", \"\", IF(VLOOKUP(BH269,'Footnotes list'!$D$9:$E$58,2,FALSE)=0,\"\",VLOOKUP(BH269,'Footnotes list'!$D$9:$E$58,2,FALSE) ) )","v":""},null,null,null,null,{"$f":"IF(TRIM(BM269)=\"\", \"\", IF(VLOOKUP(BM269,'Footnotes list'!$D$9:$E$58,2,FALSE)=0,\"\",VLOOKUP(BM269,'Footnotes list'!$D$9:$E$58,2,FALSE) ) )","v":""},null,null,null,null,{"$f":"IF(TRIM(BR269)=\"\", \"\", IF(VLOOKUP(BR269,'Footnotes list'!$D$9:$E$58,2,FALSE)=0,\"\",VLOOKUP(BR269,'Footnotes list'!$D$9:$E$58,2,FALSE) ) )","v":""},null,null,null,null,{"$f":"IF(TRIM(BW269)=\"\", \"\", IF(VLOOKUP(BW269,'Footnotes list'!$D$9:$E$58,2,FALSE)=0,\"\",VLOOKUP(BW269,'Footnotes list'!$D$9:$E$58,2,FALSE) ) )","v":""},null,null,null,null,{"$f":"IF(TRIM(CB269)=\"\", \"\", IF(VLOOKUP(CB269,'Footnotes list'!$D$9:$E$58,2,FALSE)=0,\"\",VLOOKUP(CB269,'Footnotes list'!$D$9:$E$58,2,FALSE) ) )","v":""},null,null,null,null,{"$f":"IF(TRIM(CG269)=\"\", \"\", IF(VLOOKUP(CG269,'Footnotes list'!$D$9:$E$58,2,FALSE)=0,\"\",VLOOKUP(CG269,'Footnotes list'!$D$9:$E$58,2,FALSE) ) )","v":""},null,null,null,null,{"$f":"IF(TRIM(CL269)=\"\", \"\", IF(VLOOKUP(CL269,'Footnotes list'!$D$9:$E$58,2,FALSE)=0,\"\",VLOOKUP(CL269,'Footnotes list'!$D$9:$E$58,2,FALSE) ) )","v":""},null,null,null,null,{"$f":"IF(TRIM(CQ269)=\"\", \"\", IF(VLOOKUP(CQ269,'Footnotes list'!$D$9:$E$58,2,FALSE)=0,\"\",VLOOKUP(CQ269,'Footnotes list'!$D$9:$E$58,2,FALSE) ) )","v":""},null,null,null,null,{"$f":"IF(TRIM(CV269)=\"\", \"\", IF(VLOOKUP(CV269,'Footnotes list'!$D$9:$E$58,2,FALSE)=0,\"\",VLOOKUP(CV269,'Footnotes list'!$D$9:$E$58,2,FALSE) ) )","v":""},null,null,null,null,{"$f":"IF(TRIM(DA269)=\"\", \"\", IF(VLOOKUP(DA269,'Footnotes list'!$D$9:$E$58,2,FALSE)=0,\"\",VLOOKUP(DA269,'Footnotes list'!$D$9:$E$58,2,FALSE) ) )","v":""},null,null,null,null,{"$f":"IF(TRIM(DF269)=\"\", \"\", IF(VLOOKUP(DF269,'Footnotes list'!$D$9:$E$58,2,FALSE)=0,\"\",VLOOKUP(DF269,'Footnotes list'!$D$9:$E$58,2,FALSE) ) )","v":""},null,null,null,null,{"$f":"IF(TRIM(DK269)=\"\", \"\", IF(VLOOKUP(DK269,'Footnotes list'!$D$9:$E$58,2,FALSE)=0,\"\",VLOOKUP(DK269,'Footnotes list'!$D$9:$E$58,2,FALSE) ) )","v":""},null,null,null,null,{"$f":"IF(TRIM(DP269)=\"\", \"\", IF(VLOOKUP(DP269,'Footnotes list'!$D$9:$E$58,2,FALSE)=0,\"\",VLOOKUP(DP269,'Footnotes list'!$D$9:$E$58,2,FALSE) ) )","v":""},null,null,null,null,{"$f":"IF(TRIM(DU269)=\"\", \"\", IF(VLOOKUP(DU269,'Footnotes list'!$D$9:$E$58,2,FALSE)=0,\"\",VLOOKUP(DU269,'Footnotes list'!$D$9:$E$58,2,FALSE) ) )","v":""},null,null,null,null,{"$f":"IF(TRIM(DZ269)=\"\", \"\", IF(VLOOKUP(DZ269,'Footnotes list'!$D$9:$E$58,2,FALSE)=0,\"\",VLOOKUP(DZ269,'Footnotes list'!$D$9:$E$58,2,FALSE) ) )","v":""},null,null,null,null,{"$f":"IF(TRIM(EE269)=\"\", \"\", IF(VLOOKUP(EE269,'Footnotes list'!$D$9:$E$58,2,FALSE)=0,\"\",VLOOKUP(EE269,'Footnotes list'!$D$9:$E$58,2,FALSE) ) )","v":""},null,null,null,null,{"$f":"IF(TRIM(EJ269)=\"\", \"\", IF(VLOOKUP(EJ269,'Footnotes list'!$D$9:$E$58,2,FALSE)=0,\"\",VLOOKUP(EJ269,'Footnotes list'!$D$9:$E$58,2,FALSE) ) )","v":""},null,null,null,null,{"$f":"IF(TRIM(EO269)=\"\", \"\", IF(VLOOKUP(EO269,'Footnotes list'!$D$9:$E$58,2,FALSE)=0,\"\",VLOOKUP(EO269,'Footnotes list'!$D$9:$E$58,2,FALSE) ) )","v":""},null,null,null,null,{"$f":"IF(TRIM(ET269)=\"\", \"\", IF(VLOOKUP(ET269,'Footnotes list'!$D$9:$E$58,2,FALSE)=0,\"\",VLOOKUP(ET269,'Footnotes list'!$D$9:$E$58,2,FALSE) ) )","v":""},null,null,null,null,{"$f":"IF(TRIM(EY269)=\"\", \"\", IF(VLOOKUP(EY269,'Footnotes list'!$D$9:$E$58,2,FALSE)=0,\"\",VLOOKUP(EY269,'Footnotes list'!$D$9:$E$58,2,FALSE) ) )","v":""}]
[null,null,"P","OWN_USE","activities for own final use",null,null,null,null,null,{"$f":"IF(TRIM(J270)=\"\", \"\", IF(VLOOKUP(J270,'Footnotes list'!$D$9:$E$58,2,FALSE)=0,\"\",VLOOKUP(J270,'Footnotes list'!$D$9:$E$58,2,FALSE) ) )","v":""},null,null,null,null,{"$f":"IF(TRIM(O270)=\"\", \"\", IF(VLOOKUP(O270,'Footnotes list'!$D$9:$E$58,2,FALSE)=0,\"\",VLOOKUP(O270,'Footnotes list'!$D$9:$E$58,2,FALSE) ) )","v":""},null,null,null,null,{"$f":"IF(TRIM(T270)=\"\", \"\", IF(VLOOKUP(T270,'Footnotes list'!$D$9:$E$58,2,FALSE)=0,\"\",VLOOKUP(T270,'Footnotes list'!$D$9:$E$58,2,FALSE) ) )","v":""},null,null,null,null,{"$f":"IF(TRIM(Y270)=\"\", \"\", IF(VLOOKUP(Y270,'Footnotes list'!$D$9:$E$58,2,FALSE)=0,\"\",VLOOKUP(Y270,'Footnotes list'!$D$9:$E$58,2,FALSE) ) )","v":""},null,null,null,null,{"$f":"IF(TRIM(AD270)=\"\", \"\", IF(VLOOKUP(AD270,'Footnotes list'!$D$9:$E$58,2,FALSE)=0,\"\",VLOOKUP(AD270,'Footnotes list'!$D$9:$E$58,2,FALSE) ) )","v":""},null,null,null,null,{"$f":"IF(TRIM(AI270)=\"\", \"\", IF(VLOOKUP(AI270,'Footnotes list'!$D$9:$E$58,2,FALSE)=0,\"\",VLOOKUP(AI270,'Footnotes list'!$D$9:$E$58,2,FALSE) ) )","v":""},null,null,null,null,{"$f":"IF(TRIM(AN270)=\"\", \"\", IF(VLOOKUP(AN270,'Footnotes list'!$D$9:$E$58,2,FALSE)=0,\"\",VLOOKUP(AN270,'Footnotes list'!$D$9:$E$58,2,FALSE) ) )","v":""},null,null,null,null,{"$f":"IF(TRIM(AS270)=\"\", \"\", IF(VLOOKUP(AS270,'Footnotes list'!$D$9:$E$58,2,FALSE)=0,\"\",VLOOKUP(AS270,'Footnotes list'!$D$9:$E$58,2,FALSE) ) )","v":""},null,null,null,null,{"$f":"IF(TRIM(AX270)=\"\", \"\", IF(VLOOKUP(AX270,'Footnotes list'!$D$9:$E$58,2,FALSE)=0,\"\",VLOOKUP(AX270,'Footnotes list'!$D$9:$E$58,2,FALSE) ) )","v":""},null,null,null,null,{"$f":"IF(TRIM(BC270)=\"\", \"\", IF(VLOOKUP(BC270,'Footnotes list'!$D$9:$E$58,2,FALSE)=0,\"\",VLOOKUP(BC270,'Footnotes list'!$D$9:$E$58,2,FALSE) ) )","v":""},null,null,null,null,{"$f":"IF(TRIM(BH270)=\"\", \"\", IF(VLOOKUP(BH270,'Footnotes list'!$D$9:$E$58,2,FALSE)=0,\"\",VLOOKUP(BH270,'Footnotes list'!$D$9:$E$58,2,FALSE) ) )","v":""},null,null,null,null,{"$f":"IF(TRIM(BM270)=\"\", \"\", IF(VLOOKUP(BM270,'Footnotes list'!$D$9:$E$58,2,FALSE)=0,\"\",VLOOKUP(BM270,'Footnotes list'!$D$9:$E$58,2,FALSE) ) )","v":""},null,null,null,null,{"$f":"IF(TRIM(BR270)=\"\", \"\", IF(VLOOKUP(BR270,'Footnotes list'!$D$9:$E$58,2,FALSE)=0,\"\",VLOOKUP(BR270,'Footnotes list'!$D$9:$E$58,2,FALSE) ) )","v":""},null,null,null,null,{"$f":"IF(TRIM(BW270)=\"\", \"\", IF(VLOOKUP(BW270,'Footnotes list'!$D$9:$E$58,2,FALSE)=0,\"\",VLOOKUP(BW270,'Footnotes list'!$D$9:$E$58,2,FALSE) ) )","v":""},null,null,null,null,{"$f":"IF(TRIM(CB270)=\"\", \"\", IF(VLOOKUP(CB270,'Footnotes list'!$D$9:$E$58,2,FALSE)=0,\"\",VLOOKUP(CB270,'Footnotes list'!$D$9:$E$58,2,FALSE) ) )","v":""},null,null,null,null,{"$f":"IF(TRIM(CG270)=\"\", \"\", IF(VLOOKUP(CG270,'Footnotes list'!$D$9:$E$58,2,FALSE)=0,\"\",VLOOKUP(CG270,'Footnotes list'!$D$9:$E$58,2,FALSE) ) )","v":""},null,null,null,null,{"$f":"IF(TRIM(CL270)=\"\", \"\", IF(VLOOKUP(CL270,'Footnotes list'!$D$9:$E$58,2,FALSE)=0,\"\",VLOOKUP(CL270,'Footnotes list'!$D$9:$E$58,2,FALSE) ) )","v":""},null,null,null,null,{"$f":"IF(TRIM(CQ270)=\"\", \"\", IF(VLOOKUP(CQ270,'Footnotes list'!$D$9:$E$58,2,FALSE)=0,\"\",VLOOKUP(CQ270,'Footnotes list'!$D$9:$E$58,2,FALSE) ) )","v":""},null,null,null,null,{"$f":"IF(TRIM(CV270)=\"\", \"\", IF(VLOOKUP(CV270,'Footnotes list'!$D$9:$E$58,2,FALSE)=0,\"\",VLOOKUP(CV270,'Footnotes list'!$D$9:$E$58,2,FALSE) ) )","v":""},null,null,null,null,{"$f":"IF(TRIM(DA270)=\"\", \"\", IF(VLOOKUP(DA270,'Footnotes list'!$D$9:$E$58,2,FALSE)=0,\"\",VLOOKUP(DA270,'Footnotes list'!$D$9:$E$58,2,FALSE) ) )","v":""},null,null,null,null,{"$f":"IF(TRIM(DF270)=\"\", \"\", IF(VLOOKUP(DF270,'Footnotes list'!$D$9:$E$58,2,FALSE)=0,\"\",VLOOKUP(DF270,'Footnotes list'!$D$9:$E$58,2,FALSE) ) )","v":""},null,null,null,null,{"$f":"IF(TRIM(DK270)=\"\", \"\", IF(VLOOKUP(DK270,'Footnotes list'!$D$9:$E$58,2,FALSE)=0,\"\",VLOOKUP(DK270,'Footnotes list'!$D$9:$E$58,2,FALSE) ) )","v":""},null,null,null,null,{"$f":"IF(TRIM(DP270)=\"\", \"\", IF(VLOOKUP(DP270,'Footnotes list'!$D$9:$E$58,2,FALSE)=0,\"\",VLOOKUP(DP270,'Footnotes list'!$D$9:$E$58,2,FALSE) ) )","v":""},null,null,null,null,{"$f":"IF(TRIM(DU270)=\"\", \"\", IF(VLOOKUP(DU270,'Footnotes list'!$D$9:$E$58,2,FALSE)=0,\"\",VLOOKUP(DU270,'Footnotes list'!$D$9:$E$58,2,FALSE) ) )","v":""},null,null,null,null,{"$f":"IF(TRIM(DZ270)=\"\", \"\", IF(VLOOKUP(DZ270,'Footnotes list'!$D$9:$E$58,2,FALSE)=0,\"\",VLOOKUP(DZ270,'Footnotes list'!$D$9:$E$58,2,FALSE) ) )","v":""},null,null,null,null,{"$f":"IF(TRIM(EE270)=\"\", \"\", IF(VLOOKUP(EE270,'Footnotes list'!$D$9:$E$58,2,FALSE)=0,\"\",VLOOKUP(EE270,'Footnotes list'!$D$9:$E$58,2,FALSE) ) )","v":""},null,null,null,null,{"$f":"IF(TRIM(EJ270)=\"\", \"\", IF(VLOOKUP(EJ270,'Footnotes list'!$D$9:$E$58,2,FALSE)=0,\"\",VLOOKUP(EJ270,'Footnotes list'!$D$9:$E$58,2,FALSE) ) )","v":""},null,null,null,null,{"$f":"IF(TRIM(EO270)=\"\", \"\", IF(VLOOKUP(EO270,'Footnotes list'!$D$9:$E$58,2,FALSE)=0,\"\",VLOOKUP(EO270,'Footnotes list'!$D$9:$E$58,2,FALSE) ) )","v":""},null,null,null,null,{"$f":"IF(TRIM(ET270)=\"\", \"\", IF(VLOOKUP(ET270,'Footnotes list'!$D$9:$E$58,2,FALSE)=0,\"\",VLOOKUP(ET270,'Footnotes list'!$D$9:$E$58,2,FALSE) ) )","v":""},null,null,null,null,{"$f":"IF(TRIM(EY270)=\"\", \"\", IF(VLOOKUP(EY270,'Footnotes list'!$D$9:$E$58,2,FALSE)=0,\"\",VLOOKUP(EY270,'Footnotes list'!$D$9:$E$58,2,FALSE) ) )","v":""}]
[null,null,"P","MKT","market activities, including:",null,null,null,null,null,{"$f":"IF(TRIM(J271)=\"\", \"\", IF(VLOOKUP(J271,'Footnotes list'!$D$9:$E$58,2,FALSE)=0,\"\",VLOOKUP(J271,'Footnotes list'!$D$9:$E$58,2,FALSE) ) )","v":""},null,null,null,null,{"$f":"IF(TRIM(O271)=\"\", \"\", IF(VLOOKUP(O271,'Footnotes list'!$D$9:$E$58,2,FALSE)=0,\"\",VLOOKUP(O271,'Footnotes list'!$D$9:$E$58,2,FALSE) ) )","v":""},null,null,null,null,{"$f":"IF(TRIM(T271)=\"\", \"\", IF(VLOOKUP(T271,'Footnotes list'!$D$9:$E$58,2,FALSE)=0,\"\",VLOOKUP(T271,'Footnotes list'!$D$9:$E$58,2,FALSE) ) )","v":""},null,null,null,null,{"$f":"IF(TRIM(Y271)=\"\", \"\", IF(VLOOKUP(Y271,'Footnotes list'!$D$9:$E$58,2,FALSE)=0,\"\",VLOOKUP(Y271,'Footnotes list'!$D$9:$E$58,2,FALSE) ) )","v":""},null,null,null,null,{"$f":"IF(TRIM(AD271)=\"\", \"\", IF(VLOOKUP(AD271,'Footnotes list'!$D$9:$E$58,2,FALSE)=0,\"\",VLOOKUP(AD271,'Footnotes list'!$D$9:$E$58,2,FALSE) ) )","v":""},null,null,null,null,{"$f":"IF(TRIM(AI271)=\"\", \"\", IF(VLOOKUP(AI271,'Footnotes list'!$D$9:$E$58,2,FALSE)=0,\"\",VLOOKUP(AI271,'Footnotes list'!$D$9:$E$58,2,FALSE) ) )","v":""},null,null,null,null,{"$f":"IF(TRIM(AN271)=\"\", \"\", IF(VLOOKUP(AN271,'Footnotes list'!$D$9:$E$58,2,FALSE)=0,\"\",VLOOKUP(AN271,'Footnotes list'!$D$9:$E$58,2,FALSE) ) )","v":""},null,null,null,null,{"$f":"IF(TRIM(AS271)=\"\", \"\", IF(VLOOKUP(AS271,'Footnotes list'!$D$9:$E$58,2,FALSE)=0,\"\",VLOOKUP(AS271,'Footnotes list'!$D$9:$E$58,2,FALSE) ) )","v":""},null,null,null,null,{"$f":"IF(TRIM(AX271)=\"\", \"\", IF(VLOOKUP(AX271,'Footnotes list'!$D$9:$E$58,2,FALSE)=0,\"\",VLOOKUP(AX271,'Footnotes list'!$D$9:$E$58,2,FALSE) ) )","v":""},null,null,null,null,{"$f":"IF(TRIM(BC271)=\"\", \"\", IF(VLOOKUP(BC271,'Footnotes list'!$D$9:$E$58,2,FALSE)=0,\"\",VLOOKUP(BC271,'Footnotes list'!$D$9:$E$58,2,FALSE) ) )","v":""},null,null,null,null,{"$f":"IF(TRIM(BH271)=\"\", \"\", IF(VLOOKUP(BH271,'Footnotes list'!$D$9:$E$58,2,FALSE)=0,\"\",VLOOKUP(BH271,'Footnotes list'!$D$9:$E$58,2,FALSE) ) )","v":""},null,null,null,null,{"$f":"IF(TRIM(BM271)=\"\", \"\", IF(VLOOKUP(BM271,'Footnotes list'!$D$9:$E$58,2,FALSE)=0,\"\",VLOOKUP(BM271,'Footnotes list'!$D$9:$E$58,2,FALSE) ) )","v":""},null,null,null,null,{"$f":"IF(TRIM(BR271)=\"\", \"\", IF(VLOOKUP(BR271,'Footnotes list'!$D$9:$E$58,2,FALSE)=0,\"\",VLOOKUP(BR271,'Footnotes list'!$D$9:$E$58,2,FALSE) ) )","v":""},null,null,null,null,{"$f":"IF(TRIM(BW271)=\"\", \"\", IF(VLOOKUP(BW271,'Footnotes list'!$D$9:$E$58,2,FALSE)=0,\"\",VLOOKUP(BW271,'Footnotes list'!$D$9:$E$58,2,FALSE) ) )","v":""},null,null,null,null,{"$f":"IF(TRIM(CB271)=\"\", \"\", IF(VLOOKUP(CB271,'Footnotes list'!$D$9:$E$58,2,FALSE)=0,\"\",VLOOKUP(CB271,'Footnotes list'!$D$9:$E$58,2,FALSE) ) )","v":""},null,null,null,null,{"$f":"IF(TRIM(CG271)=\"\", \"\", IF(VLOOKUP(CG271,'Footnotes list'!$D$9:$E$58,2,FALSE)=0,\"\",VLOOKUP(CG271,'Footnotes list'!$D$9:$E$58,2,FALSE) ) )","v":""},null,null,null,null,{"$f":"IF(TRIM(CL271)=\"\", \"\", IF(VLOOKUP(CL271,'Footnotes list'!$D$9:$E$58,2,FALSE)=0,\"\",VLOOKUP(CL271,'Footnotes list'!$D$9:$E$58,2,FALSE) ) )","v":""},null,null,null,null,{"$f":"IF(TRIM(CQ271)=\"\", \"\", IF(VLOOKUP(CQ271,'Footnotes list'!$D$9:$E$58,2,FALSE)=0,\"\",VLOOKUP(CQ271,'Footnotes list'!$D$9:$E$58,2,FALSE) ) )","v":""},null,null,null,null,{"$f":"IF(TRIM(CV271)=\"\", \"\", IF(VLOOKUP(CV271,'Footnotes list'!$D$9:$E$58,2,FALSE)=0,\"\",VLOOKUP(CV271,'Footnotes list'!$D$9:$E$58,2,FALSE) ) )","v":""},null,null,null,null,{"$f":"IF(TRIM(DA271)=\"\", \"\", IF(VLOOKUP(DA271,'Footnotes list'!$D$9:$E$58,2,FALSE)=0,\"\",VLOOKUP(DA271,'Footnotes list'!$D$9:$E$58,2,FALSE) ) )","v":""},null,null,null,null,{"$f":"IF(TRIM(DF271)=\"\", \"\", IF(VLOOKUP(DF271,'Footnotes list'!$D$9:$E$58,2,FALSE)=0,\"\",VLOOKUP(DF271,'Footnotes list'!$D$9:$E$58,2,FALSE) ) )","v":""},null,null,null,null,{"$f":"IF(TRIM(DK271)=\"\", \"\", IF(VLOOKUP(DK271,'Footnotes list'!$D$9:$E$58,2,FALSE)=0,\"\",VLOOKUP(DK271,'Footnotes list'!$D$9:$E$58,2,FALSE) ) )","v":""},null,null,null,null,{"$f":"IF(TRIM(DP271)=\"\", \"\", IF(VLOOKUP(DP271,'Footnotes list'!$D$9:$E$58,2,FALSE)=0,\"\",VLOOKUP(DP271,'Footnotes list'!$D$9:$E$58,2,FALSE) ) )","v":""},null,null,null,null,{"$f":"IF(TRIM(DU271)=\"\", \"\", IF(VLOOKUP(DU271,'Footnotes list'!$D$9:$E$58,2,FALSE)=0,\"\",VLOOKUP(DU271,'Footnotes list'!$D$9:$E$58,2,FALSE) ) )","v":""},null,null,null,null,{"$f":"IF(TRIM(DZ271)=\"\", \"\", IF(VLOOKUP(DZ271,'Footnotes list'!$D$9:$E$58,2,FALSE)=0,\"\",VLOOKUP(DZ271,'Footnotes list'!$D$9:$E$58,2,FALSE) ) )","v":""},null,null,null,null,{"$f":"IF(TRIM(EE271)=\"\", \"\", IF(VLOOKUP(EE271,'Footnotes list'!$D$9:$E$58,2,FALSE)=0,\"\",VLOOKUP(EE271,'Footnotes list'!$D$9:$E$58,2,FALSE) ) )","v":""},null,null,null,null,{"$f":"IF(TRIM(EJ271)=\"\", \"\", IF(VLOOKUP(EJ271,'Footnotes list'!$D$9:$E$58,2,FALSE)=0,\"\",VLOOKUP(EJ271,'Footnotes list'!$D$9:$E$58,2,FALSE) ) )","v":""},null,null,null,null,{"$f":"IF(TRIM(EO271)=\"\", \"\", IF(VLOOKUP(EO271,'Footnotes list'!$D$9:$E$58,2,FALSE)=0,\"\",VLOOKUP(EO271,'Footnotes list'!$D$9:$E$58,2,FALSE) ) )","v":""},null,null,null,null,{"$f":"IF(TRIM(ET271)=\"\", \"\", IF(VLOOKUP(ET271,'Footnotes list'!$D$9:$E$58,2,FALSE)=0,\"\",VLOOKUP(ET271,'Footnotes list'!$D$9:$E$58,2,FALSE) ) )","v":""},null,null,null,null,{"$f":"IF(TRIM(EY271)=\"\", \"\", IF(VLOOKUP(EY271,'Footnotes list'!$D$9:$E$58,2,FALSE)=0,\"\",VLOOKUP(EY271,'Footnotes list'!$D$9:$E$58,2,FALSE) ) )","v":""}]
[null,null,"P","ES_CS","environmental specific services",null,null,null,null,null,{"$f":"IF(TRIM(J272)=\"\", \"\", IF(VLOOKUP(J272,'Footnotes list'!$D$9:$E$58,2,FALSE)=0,\"\",VLOOKUP(J272,'Footnotes list'!$D$9:$E$58,2,FALSE) ) )","v":""},null,null,null,null,{"$f":"IF(TRIM(O272)=\"\", \"\", IF(VLOOKUP(O272,'Footnotes list'!$D$9:$E$58,2,FALSE)=0,\"\",VLOOKUP(O272,'Footnotes list'!$D$9:$E$58,2,FALSE) ) )","v":""},null,null,null,null,{"$f":"IF(TRIM(T272)=\"\", \"\", IF(VLOOKUP(T272,'Footnotes list'!$D$9:$E$58,2,FALSE)=0,\"\",VLOOKUP(T272,'Footnotes list'!$D$9:$E$58,2,FALSE) ) )","v":""},null,null,null,null,{"$f":"IF(TRIM(Y272)=\"\", \"\", IF(VLOOKUP(Y272,'Footnotes list'!$D$9:$E$58,2,FALSE)=0,\"\",VLOOKUP(Y272,'Footnotes list'!$D$9:$E$58,2,FALSE) ) )","v":""},null,null,null,null,{"$f":"IF(TRIM(AD272)=\"\", \"\", IF(VLOOKUP(AD272,'Footnotes list'!$D$9:$E$58,2,FALSE)=0,\"\",VLOOKUP(AD272,'Footnotes list'!$D$9:$E$58,2,FALSE) ) )","v":""},null,null,null,null,{"$f":"IF(TRIM(AI272)=\"\", \"\", IF(VLOOKUP(AI272,'Footnotes list'!$D$9:$E$58,2,FALSE)=0,\"\",VLOOKUP(AI272,'Footnotes list'!$D$9:$E$58,2,FALSE) ) )","v":""},null,null,null,null,{"$f":"IF(TRIM(AN272)=\"\", \"\", IF(VLOOKUP(AN272,'Footnotes list'!$D$9:$E$58,2,FALSE)=0,\"\",VLOOKUP(AN272,'Footnotes list'!$D$9:$E$58,2,FALSE) ) )","v":""},null,null,null,null,{"$f":"IF(TRIM(AS272)=\"\", \"\", IF(VLOOKUP(AS272,'Footnotes list'!$D$9:$E$58,2,FALSE)=0,\"\",VLOOKUP(AS272,'Footnotes list'!$D$9:$E$58,2,FALSE) ) )","v":""},null,null,null,null,{"$f":"IF(TRIM(AX272)=\"\", \"\", IF(VLOOKUP(AX272,'Footnotes list'!$D$9:$E$58,2,FALSE)=0,\"\",VLOOKUP(AX272,'Footnotes list'!$D$9:$E$58,2,FALSE) ) )","v":""},null,null,null,null,{"$f":"IF(TRIM(BC272)=\"\", \"\", IF(VLOOKUP(BC272,'Footnotes list'!$D$9:$E$58,2,FALSE)=0,\"\",VLOOKUP(BC272,'Footnotes list'!$D$9:$E$58,2,FALSE) ) )","v":""},null,null,null,null,{"$f":"IF(TRIM(BH272)=\"\", \"\", IF(VLOOKUP(BH272,'Footnotes list'!$D$9:$E$58,2,FALSE)=0,\"\",VLOOKUP(BH272,'Footnotes list'!$D$9:$E$58,2,FALSE) ) )","v":""},null,null,null,null,{"$f":"IF(TRIM(BM272)=\"\", \"\", IF(VLOOKUP(BM272,'Footnotes list'!$D$9:$E$58,2,FALSE)=0,\"\",VLOOKUP(BM272,'Footnotes list'!$D$9:$E$58,2,FALSE) ) )","v":""},null,null,null,null,{"$f":"IF(TRIM(BR272)=\"\", \"\", IF(VLOOKUP(BR272,'Footnotes list'!$D$9:$E$58,2,FALSE)=0,\"\",VLOOKUP(BR272,'Footnotes list'!$D$9:$E$58,2,FALSE) ) )","v":""},null,null,null,null,{"$f":"IF(TRIM(BW272)=\"\", \"\", IF(VLOOKUP(BW272,'Footnotes list'!$D$9:$E$58,2,FALSE)=0,\"\",VLOOKUP(BW272,'Footnotes list'!$D$9:$E$58,2,FALSE) ) )","v":""},null,null,null,null,{"$f":"IF(TRIM(CB272)=\"\", \"\", IF(VLOOKUP(CB272,'Footnotes list'!$D$9:$E$58,2,FALSE)=0,\"\",VLOOKUP(CB272,'Footnotes list'!$D$9:$E$58,2,FALSE) ) )","v":""},null,null,null,null,{"$f":"IF(TRIM(CG272)=\"\", \"\", IF(VLOOKUP(CG272,'Footnotes list'!$D$9:$E$58,2,FALSE)=0,\"\",VLOOKUP(CG272,'Footnotes list'!$D$9:$E$58,2,FALSE) ) )","v":""},null,null,null,null,{"$f":"IF(TRIM(CL272)=\"\", \"\", IF(VLOOKUP(CL272,'Footnotes list'!$D$9:$E$58,2,FALSE)=0,\"\",VLOOKUP(CL272,'Footnotes list'!$D$9:$E$58,2,FALSE) ) )","v":""},null,null,null,null,{"$f":"IF(TRIM(CQ272)=\"\", \"\", IF(VLOOKUP(CQ272,'Footnotes list'!$D$9:$E$58,2,FALSE)=0,\"\",VLOOKUP(CQ272,'Footnotes list'!$D$9:$E$58,2,FALSE) ) )","v":""},null,null,null,null,{"$f":"IF(TRIM(CV272)=\"\", \"\", IF(VLOOKUP(CV272,'Footnotes list'!$D$9:$E$58,2,FALSE)=0,\"\",VLOOKUP(CV272,'Footnotes list'!$D$9:$E$58,2,FALSE) ) )","v":""},null,null,null,null,{"$f":"IF(TRIM(DA272)=\"\", \"\", IF(VLOOKUP(DA272,'Footnotes list'!$D$9:$E$58,2,FALSE)=0,\"\",VLOOKUP(DA272,'Footnotes list'!$D$9:$E$58,2,FALSE) ) )","v":""},null,null,null,null,{"$f":"IF(TRIM(DF272)=\"\", \"\", IF(VLOOKUP(DF272,'Footnotes list'!$D$9:$E$58,2,FALSE)=0,\"\",VLOOKUP(DF272,'Footnotes list'!$D$9:$E$58,2,FALSE) ) )","v":""},null,null,null,null,{"$f":"IF(TRIM(DK272)=\"\", \"\", IF(VLOOKUP(DK272,'Footnotes list'!$D$9:$E$58,2,FALSE)=0,\"\",VLOOKUP(DK272,'Footnotes list'!$D$9:$E$58,2,FALSE) ) )","v":""},null,null,null,null,{"$f":"IF(TRIM(DP272)=\"\", \"\", IF(VLOOKUP(DP272,'Footnotes list'!$D$9:$E$58,2,FALSE)=0,\"\",VLOOKUP(DP272,'Footnotes list'!$D$9:$E$58,2,FALSE) ) )","v":""},null,null,null,null,{"$f":"IF(TRIM(DU272)=\"\", \"\", IF(VLOOKUP(DU272,'Footnotes list'!$D$9:$E$58,2,FALSE)=0,\"\",VLOOKUP(DU272,'Footnotes list'!$D$9:$E$58,2,FALSE) ) )","v":""},null,null,null,null,{"$f":"IF(TRIM(DZ272)=\"\", \"\", IF(VLOOKUP(DZ272,'Footnotes list'!$D$9:$E$58,2,FALSE)=0,\"\",VLOOKUP(DZ272,'Footnotes list'!$D$9:$E$58,2,FALSE) ) )","v":""},null,null,null,null,{"$f":"IF(TRIM(EE272)=\"\", \"\", IF(VLOOKUP(EE272,'Footnotes list'!$D$9:$E$58,2,FALSE)=0,\"\",VLOOKUP(EE272,'Footnotes list'!$D$9:$E$58,2,FALSE) ) )","v":""},null,null,null,null,{"$f":"IF(TRIM(EJ272)=\"\", \"\", IF(VLOOKUP(EJ272,'Footnotes list'!$D$9:$E$58,2,FALSE)=0,\"\",VLOOKUP(EJ272,'Footnotes list'!$D$9:$E$58,2,FALSE) ) )","v":""},null,null,null,null,{"$f":"IF(TRIM(EO272)=\"\", \"\", IF(VLOOKUP(EO272,'Footnotes list'!$D$9:$E$58,2,FALSE)=0,\"\",VLOOKUP(EO272,'Footnotes list'!$D$9:$E$58,2,FALSE) ) )","v":""},null,null,null,null,{"$f":"IF(TRIM(ET272)=\"\", \"\", IF(VLOOKUP(ET272,'Footnotes list'!$D$9:$E$58,2,FALSE)=0,\"\",VLOOKUP(ET272,'Footnotes list'!$D$9:$E$58,2,FALSE) ) )","v":""},null,null,null,null,{"$f":"IF(TRIM(EY272)=\"\", \"\", IF(VLOOKUP(EY272,'Footnotes list'!$D$9:$E$58,2,FALSE)=0,\"\",VLOOKUP(EY272,'Footnotes list'!$D$9:$E$58,2,FALSE) ) )","v":""}]
[null,null,"P","C_REP","cleaner and resource efficient products",null,null,null,null,null,{"$f":"IF(TRIM(J273)=\"\", \"\", IF(VLOOKUP(J273,'Footnotes list'!$D$9:$E$58,2,FALSE)=0,\"\",VLOOKUP(J273,'Footnotes list'!$D$9:$E$58,2,FALSE) ) )","v":""},null,null,null,null,{"$f":"IF(TRIM(O273)=\"\", \"\", IF(VLOOKUP(O273,'Footnotes list'!$D$9:$E$58,2,FALSE)=0,\"\",VLOOKUP(O273,'Footnotes list'!$D$9:$E$58,2,FALSE) ) )","v":""},null,null,null,null,{"$f":"IF(TRIM(T273)=\"\", \"\", IF(VLOOKUP(T273,'Footnotes list'!$D$9:$E$58,2,FALSE)=0,\"\",VLOOKUP(T273,'Footnotes list'!$D$9:$E$58,2,FALSE) ) )","v":""},null,null,null,null,{"$f":"IF(TRIM(Y273)=\"\", \"\", IF(VLOOKUP(Y273,'Footnotes list'!$D$9:$E$58,2,FALSE)=0,\"\",VLOOKUP(Y273,'Footnotes list'!$D$9:$E$58,2,FALSE) ) )","v":""},null,null,null,null,{"$f":"IF(TRIM(AD273)=\"\", \"\", IF(VLOOKUP(AD273,'Footnotes list'!$D$9:$E$58,2,FALSE)=0,\"\",VLOOKUP(AD273,'Footnotes list'!$D$9:$E$58,2,FALSE) ) )","v":""},null,null,null,null,{"$f":"IF(TRIM(AI273)=\"\", \"\", IF(VLOOKUP(AI273,'Footnotes list'!$D$9:$E$58,2,FALSE)=0,\"\",VLOOKUP(AI273,'Footnotes list'!$D$9:$E$58,2,FALSE) ) )","v":""},null,null,null,null,{"$f":"IF(TRIM(AN273)=\"\", \"\", IF(VLOOKUP(AN273,'Footnotes list'!$D$9:$E$58,2,FALSE)=0,\"\",VLOOKUP(AN273,'Footnotes list'!$D$9:$E$58,2,FALSE) ) )","v":""},null,null,null,null,{"$f":"IF(TRIM(AS273)=\"\", \"\", IF(VLOOKUP(AS273,'Footnotes list'!$D$9:$E$58,2,FALSE)=0,\"\",VLOOKUP(AS273,'Footnotes list'!$D$9:$E$58,2,FALSE) ) )","v":""},null,null,null,null,{"$f":"IF(TRIM(AX273)=\"\", \"\", IF(VLOOKUP(AX273,'Footnotes list'!$D$9:$E$58,2,FALSE)=0,\"\",VLOOKUP(AX273,'Footnotes list'!$D$9:$E$58,2,FALSE) ) )","v":""},null,null,null,null,{"$f":"IF(TRIM(BC273)=\"\", \"\", IF(VLOOKUP(BC273,'Footnotes list'!$D$9:$E$58,2,FALSE)=0,\"\",VLOOKUP(BC273,'Footnotes list'!$D$9:$E$58,2,FALSE) ) )","v":""},null,null,null,null,{"$f":"IF(TRIM(BH273)=\"\", \"\", IF(VLOOKUP(BH273,'Footnotes list'!$D$9:$E$58,2,FALSE)=0,\"\",VLOOKUP(BH273,'Footnotes list'!$D$9:$E$58,2,FALSE) ) )","v":""},null,null,null,null,{"$f":"IF(TRIM(BM273)=\"\", \"\", IF(VLOOKUP(BM273,'Footnotes list'!$D$9:$E$58,2,FALSE)=0,\"\",VLOOKUP(BM273,'Footnotes list'!$D$9:$E$58,2,FALSE) ) )","v":""},null,null,null,null,{"$f":"IF(TRIM(BR273)=\"\", \"\", IF(VLOOKUP(BR273,'Footnotes list'!$D$9:$E$58,2,FALSE)=0,\"\",VLOOKUP(BR273,'Footnotes list'!$D$9:$E$58,2,FALSE) ) )","v":""},null,null,null,null,{"$f":"IF(TRIM(BW273)=\"\", \"\", IF(VLOOKUP(BW273,'Footnotes list'!$D$9:$E$58,2,FALSE)=0,\"\",VLOOKUP(BW273,'Footnotes list'!$D$9:$E$58,2,FALSE) ) )","v":""},null,null,null,null,{"$f":"IF(TRIM(CB273)=\"\", \"\", IF(VLOOKUP(CB273,'Footnotes list'!$D$9:$E$58,2,FALSE)=0,\"\",VLOOKUP(CB273,'Footnotes list'!$D$9:$E$58,2,FALSE) ) )","v":""},null,null,null,null,{"$f":"IF(TRIM(CG273)=\"\", \"\", IF(VLOOKUP(CG273,'Footnotes list'!$D$9:$E$58,2,FALSE)=0,\"\",VLOOKUP(CG273,'Footnotes list'!$D$9:$E$58,2,FALSE) ) )","v":""},null,null,null,null,{"$f":"IF(TRIM(CL273)=\"\", \"\", IF(VLOOKUP(CL273,'Footnotes list'!$D$9:$E$58,2,FALSE)=0,\"\",VLOOKUP(CL273,'Footnotes list'!$D$9:$E$58,2,FALSE) ) )","v":""},null,null,null,null,{"$f":"IF(TRIM(CQ273)=\"\", \"\", IF(VLOOKUP(CQ273,'Footnotes list'!$D$9:$E$58,2,FALSE)=0,\"\",VLOOKUP(CQ273,'Footnotes list'!$D$9:$E$58,2,FALSE) ) )","v":""},null,null,null,null,{"$f":"IF(TRIM(CV273)=\"\", \"\", IF(VLOOKUP(CV273,'Footnotes list'!$D$9:$E$58,2,FALSE)=0,\"\",VLOOKUP(CV273,'Footnotes list'!$D$9:$E$58,2,FALSE) ) )","v":""},null,null,null,null,{"$f":"IF(TRIM(DA273)=\"\", \"\", IF(VLOOKUP(DA273,'Footnotes list'!$D$9:$E$58,2,FALSE)=0,\"\",VLOOKUP(DA273,'Footnotes list'!$D$9:$E$58,2,FALSE) ) )","v":""},null,null,null,null,{"$f":"IF(TRIM(DF273)=\"\", \"\", IF(VLOOKUP(DF273,'Footnotes list'!$D$9:$E$58,2,FALSE)=0,\"\",VLOOKUP(DF273,'Footnotes list'!$D$9:$E$58,2,FALSE) ) )","v":""},null,null,null,null,{"$f":"IF(TRIM(DK273)=\"\", \"\", IF(VLOOKUP(DK273,'Footnotes list'!$D$9:$E$58,2,FALSE)=0,\"\",VLOOKUP(DK273,'Footnotes list'!$D$9:$E$58,2,FALSE) ) )","v":""},null,null,null,null,{"$f":"IF(TRIM(DP273)=\"\", \"\", IF(VLOOKUP(DP273,'Footnotes list'!$D$9:$E$58,2,FALSE)=0,\"\",VLOOKUP(DP273,'Footnotes list'!$D$9:$E$58,2,FALSE) ) )","v":""},null,null,null,null,{"$f":"IF(TRIM(DU273)=\"\", \"\", IF(VLOOKUP(DU273,'Footnotes list'!$D$9:$E$58,2,FALSE)=0,\"\",VLOOKUP(DU273,'Footnotes list'!$D$9:$E$58,2,FALSE) ) )","v":""},null,null,null,null,{"$f":"IF(TRIM(DZ273)=\"\", \"\", IF(VLOOKUP(DZ273,'Footnotes list'!$D$9:$E$58,2,FALSE)=0,\"\",VLOOKUP(DZ273,'Footnotes list'!$D$9:$E$58,2,FALSE) ) )","v":""},null,null,null,null,{"$f":"IF(TRIM(EE273)=\"\", \"\", IF(VLOOKUP(EE273,'Footnotes list'!$D$9:$E$58,2,FALSE)=0,\"\",VLOOKUP(EE273,'Footnotes list'!$D$9:$E$58,2,FALSE) ) )","v":""},null,null,null,null,{"$f":"IF(TRIM(EJ273)=\"\", \"\", IF(VLOOKUP(EJ273,'Footnotes list'!$D$9:$E$58,2,FALSE)=0,\"\",VLOOKUP(EJ273,'Footnotes list'!$D$9:$E$58,2,FALSE) ) )","v":""},null,null,null,null,{"$f":"IF(TRIM(EO273)=\"\", \"\", IF(VLOOKUP(EO273,'Footnotes list'!$D$9:$E$58,2,FALSE)=0,\"\",VLOOKUP(EO273,'Footnotes list'!$D$9:$E$58,2,FALSE) ) )","v":""},null,null,null,null,{"$f":"IF(TRIM(ET273)=\"\", \"\", IF(VLOOKUP(ET273,'Footnotes list'!$D$9:$E$58,2,FALSE)=0,\"\",VLOOKUP(ET273,'Footnotes list'!$D$9:$E$58,2,FALSE) ) )","v":""},null,null,null,null,{"$f":"IF(TRIM(EY273)=\"\", \"\", IF(VLOOKUP(EY273,'Footnotes list'!$D$9:$E$58,2,FALSE)=0,\"\",VLOOKUP(EY273,'Footnotes list'!$D$9:$E$58,2,FALSE) ) )","v":""}]
[null,null,"Q","TOT_EGSS","Total Q - Human health and social work activities, of which:",null,null,null,null,null,{"$f":"IF(TRIM(J274)=\"\", \"\", IF(VLOOKUP(J274,'Footnotes list'!$D$9:$E$58,2,FALSE)=0,\"\",VLOOKUP(J274,'Footnotes list'!$D$9:$E$58,2,FALSE) ) )","v":""},null,null,null,null,{"$f":"IF(TRIM(O274)=\"\", \"\", IF(VLOOKUP(O274,'Footnotes list'!$D$9:$E$58,2,FALSE)=0,\"\",VLOOKUP(O274,'Footnotes list'!$D$9:$E$58,2,FALSE) ) )","v":""},null,null,null,null,{"$f":"IF(TRIM(T274)=\"\", \"\", IF(VLOOKUP(T274,'Footnotes list'!$D$9:$E$58,2,FALSE)=0,\"\",VLOOKUP(T274,'Footnotes list'!$D$9:$E$58,2,FALSE) ) )","v":""},null,null,null,null,{"$f":"IF(TRIM(Y274)=\"\", \"\", IF(VLOOKUP(Y274,'Footnotes list'!$D$9:$E$58,2,FALSE)=0,\"\",VLOOKUP(Y274,'Footnotes list'!$D$9:$E$58,2,FALSE) ) )","v":""},null,null,null,null,{"$f":"IF(TRIM(AD274)=\"\", \"\", IF(VLOOKUP(AD274,'Footnotes list'!$D$9:$E$58,2,FALSE)=0,\"\",VLOOKUP(AD274,'Footnotes list'!$D$9:$E$58,2,FALSE) ) )","v":""},null,null,null,null,{"$f":"IF(TRIM(AI274)=\"\", \"\", IF(VLOOKUP(AI274,'Footnotes list'!$D$9:$E$58,2,FALSE)=0,\"\",VLOOKUP(AI274,'Footnotes list'!$D$9:$E$58,2,FALSE) ) )","v":""},null,null,null,null,{"$f":"IF(TRIM(AN274)=\"\", \"\", IF(VLOOKUP(AN274,'Footnotes list'!$D$9:$E$58,2,FALSE)=0,\"\",VLOOKUP(AN274,'Footnotes list'!$D$9:$E$58,2,FALSE) ) )","v":""},null,null,null,null,{"$f":"IF(TRIM(AS274)=\"\", \"\", IF(VLOOKUP(AS274,'Footnotes list'!$D$9:$E$58,2,FALSE)=0,\"\",VLOOKUP(AS274,'Footnotes list'!$D$9:$E$58,2,FALSE) ) )","v":""},null,null,null,null,{"$f":"IF(TRIM(AX274)=\"\", \"\", IF(VLOOKUP(AX274,'Footnotes list'!$D$9:$E$58,2,FALSE)=0,\"\",VLOOKUP(AX274,'Footnotes list'!$D$9:$E$58,2,FALSE) ) )","v":""},null,null,null,null,{"$f":"IF(TRIM(BC274)=\"\", \"\", IF(VLOOKUP(BC274,'Footnotes list'!$D$9:$E$58,2,FALSE)=0,\"\",VLOOKUP(BC274,'Footnotes list'!$D$9:$E$58,2,FALSE) ) )","v":""},null,null,null,null,{"$f":"IF(TRIM(BH274)=\"\", \"\", IF(VLOOKUP(BH274,'Footnotes list'!$D$9:$E$58,2,FALSE)=0,\"\",VLOOKUP(BH274,'Footnotes list'!$D$9:$E$58,2,FALSE) ) )","v":""},null,null,null,null,{"$f":"IF(TRIM(BM274)=\"\", \"\", IF(VLOOKUP(BM274,'Footnotes list'!$D$9:$E$58,2,FALSE)=0,\"\",VLOOKUP(BM274,'Footnotes list'!$D$9:$E$58,2,FALSE) ) )","v":""},null,null,null,null,{"$f":"IF(TRIM(BR274)=\"\", \"\", IF(VLOOKUP(BR274,'Footnotes list'!$D$9:$E$58,2,FALSE)=0,\"\",VLOOKUP(BR274,'Footnotes list'!$D$9:$E$58,2,FALSE) ) )","v":""},null,null,null,null,{"$f":"IF(TRIM(BW274)=\"\", \"\", IF(VLOOKUP(BW274,'Footnotes list'!$D$9:$E$58,2,FALSE)=0,\"\",VLOOKUP(BW274,'Footnotes list'!$D$9:$E$58,2,FALSE) ) )","v":""},null,null,null,null,{"$f":"IF(TRIM(CB274)=\"\", \"\", IF(VLOOKUP(CB274,'Footnotes list'!$D$9:$E$58,2,FALSE)=0,\"\",VLOOKUP(CB274,'Footnotes list'!$D$9:$E$58,2,FALSE) ) )","v":""},null,null,null,null,{"$f":"IF(TRIM(CG274)=\"\", \"\", IF(VLOOKUP(CG274,'Footnotes list'!$D$9:$E$58,2,FALSE)=0,\"\",VLOOKUP(CG274,'Footnotes list'!$D$9:$E$58,2,FALSE) ) )","v":""},null,null,null,null,{"$f":"IF(TRIM(CL274)=\"\", \"\", IF(VLOOKUP(CL274,'Footnotes list'!$D$9:$E$58,2,FALSE)=0,\"\",VLOOKUP(CL274,'Footnotes list'!$D$9:$E$58,2,FALSE) ) )","v":""},null,null,null,null,{"$f":"IF(TRIM(CQ274)=\"\", \"\", IF(VLOOKUP(CQ274,'Footnotes list'!$D$9:$E$58,2,FALSE)=0,\"\",VLOOKUP(CQ274,'Footnotes list'!$D$9:$E$58,2,FALSE) ) )","v":""},null,null,null,null,{"$f":"IF(TRIM(CV274)=\"\", \"\", IF(VLOOKUP(CV274,'Footnotes list'!$D$9:$E$58,2,FALSE)=0,\"\",VLOOKUP(CV274,'Footnotes list'!$D$9:$E$58,2,FALSE) ) )","v":""},null,null,null,null,{"$f":"IF(TRIM(DA274)=\"\", \"\", IF(VLOOKUP(DA274,'Footnotes list'!$D$9:$E$58,2,FALSE)=0,\"\",VLOOKUP(DA274,'Footnotes list'!$D$9:$E$58,2,FALSE) ) )","v":""},null,null,null,null,{"$f":"IF(TRIM(DF274)=\"\", \"\", IF(VLOOKUP(DF274,'Footnotes list'!$D$9:$E$58,2,FALSE)=0,\"\",VLOOKUP(DF274,'Footnotes list'!$D$9:$E$58,2,FALSE) ) )","v":""},null,null,null,null,{"$f":"IF(TRIM(DK274)=\"\", \"\", IF(VLOOKUP(DK274,'Footnotes list'!$D$9:$E$58,2,FALSE)=0,\"\",VLOOKUP(DK274,'Footnotes list'!$D$9:$E$58,2,FALSE) ) )","v":""},null,null,null,null,{"$f":"IF(TRIM(DP274)=\"\", \"\", IF(VLOOKUP(DP274,'Footnotes list'!$D$9:$E$58,2,FALSE)=0,\"\",VLOOKUP(DP274,'Footnotes list'!$D$9:$E$58,2,FALSE) ) )","v":""},null,null,null,null,{"$f":"IF(TRIM(DU274)=\"\", \"\", IF(VLOOKUP(DU274,'Footnotes list'!$D$9:$E$58,2,FALSE)=0,\"\",VLOOKUP(DU274,'Footnotes list'!$D$9:$E$58,2,FALSE) ) )","v":""},null,null,null,null,{"$f":"IF(TRIM(DZ274)=\"\", \"\", IF(VLOOKUP(DZ274,'Footnotes list'!$D$9:$E$58,2,FALSE)=0,\"\",VLOOKUP(DZ274,'Footnotes list'!$D$9:$E$58,2,FALSE) ) )","v":""},null,null,null,null,{"$f":"IF(TRIM(EE274)=\"\", \"\", IF(VLOOKUP(EE274,'Footnotes list'!$D$9:$E$58,2,FALSE)=0,\"\",VLOOKUP(EE274,'Footnotes list'!$D$9:$E$58,2,FALSE) ) )","v":""},null,null,null,null,{"$f":"IF(TRIM(EJ274)=\"\", \"\", IF(VLOOKUP(EJ274,'Footnotes list'!$D$9:$E$58,2,FALSE)=0,\"\",VLOOKUP(EJ274,'Footnotes list'!$D$9:$E$58,2,FALSE) ) )","v":""},null,null,null,null,{"$f":"IF(TRIM(EO274)=\"\", \"\", IF(VLOOKUP(EO274,'Footnotes list'!$D$9:$E$58,2,FALSE)=0,\"\",VLOOKUP(EO274,'Footnotes list'!$D$9:$E$58,2,FALSE) ) )","v":""},null,null,null,null,{"$f":"IF(TRIM(ET274)=\"\", \"\", IF(VLOOKUP(ET274,'Footnotes list'!$D$9:$E$58,2,FALSE)=0,\"\",VLOOKUP(ET274,'Footnotes list'!$D$9:$E$58,2,FALSE) ) )","v":""},null,null,null,null,{"$f":"IF(TRIM(EY274)=\"\", \"\", IF(VLOOKUP(EY274,'Footnotes list'!$D$9:$E$58,2,FALSE)=0,\"\",VLOOKUP(EY274,'Footnotes list'!$D$9:$E$58,2,FALSE) ) )","v":""}]
[null,null,"Q","ANC","ancillary activities",null,null,null,null,null,{"$f":"IF(TRIM(J275)=\"\", \"\", IF(VLOOKUP(J275,'Footnotes list'!$D$9:$E$58,2,FALSE)=0,\"\",VLOOKUP(J275,'Footnotes list'!$D$9:$E$58,2,FALSE) ) )","v":""},null,null,null,null,{"$f":"IF(TRIM(O275)=\"\", \"\", IF(VLOOKUP(O275,'Footnotes list'!$D$9:$E$58,2,FALSE)=0,\"\",VLOOKUP(O275,'Footnotes list'!$D$9:$E$58,2,FALSE) ) )","v":""},null,null,null,null,{"$f":"IF(TRIM(T275)=\"\", \"\", IF(VLOOKUP(T275,'Footnotes list'!$D$9:$E$58,2,FALSE)=0,\"\",VLOOKUP(T275,'Footnotes list'!$D$9:$E$58,2,FALSE) ) )","v":""},null,null,null,null,{"$f":"IF(TRIM(Y275)=\"\", \"\", IF(VLOOKUP(Y275,'Footnotes list'!$D$9:$E$58,2,FALSE)=0,\"\",VLOOKUP(Y275,'Footnotes list'!$D$9:$E$58,2,FALSE) ) )","v":""},null,null,null,null,{"$f":"IF(TRIM(AD275)=\"\", \"\", IF(VLOOKUP(AD275,'Footnotes list'!$D$9:$E$58,2,FALSE)=0,\"\",VLOOKUP(AD275,'Footnotes list'!$D$9:$E$58,2,FALSE) ) )","v":""},null,null,null,null,{"$f":"IF(TRIM(AI275)=\"\", \"\", IF(VLOOKUP(AI275,'Footnotes list'!$D$9:$E$58,2,FALSE)=0,\"\",VLOOKUP(AI275,'Footnotes list'!$D$9:$E$58,2,FALSE) ) )","v":""},null,null,null,null,{"$f":"IF(TRIM(AN275)=\"\", \"\", IF(VLOOKUP(AN275,'Footnotes list'!$D$9:$E$58,2,FALSE)=0,\"\",VLOOKUP(AN275,'Footnotes list'!$D$9:$E$58,2,FALSE) ) )","v":""},null,null,null,null,{"$f":"IF(TRIM(AS275)=\"\", \"\", IF(VLOOKUP(AS275,'Footnotes list'!$D$9:$E$58,2,FALSE)=0,\"\",VLOOKUP(AS275,'Footnotes list'!$D$9:$E$58,2,FALSE) ) )","v":""},null,null,null,null,{"$f":"IF(TRIM(AX275)=\"\", \"\", IF(VLOOKUP(AX275,'Footnotes list'!$D$9:$E$58,2,FALSE)=0,\"\",VLOOKUP(AX275,'Footnotes list'!$D$9:$E$58,2,FALSE) ) )","v":""},null,null,null,null,{"$f":"IF(TRIM(BC275)=\"\", \"\", IF(VLOOKUP(BC275,'Footnotes list'!$D$9:$E$58,2,FALSE)=0,\"\",VLOOKUP(BC275,'Footnotes list'!$D$9:$E$58,2,FALSE) ) )","v":""},null,null,null,null,{"$f":"IF(TRIM(BH275)=\"\", \"\", IF(VLOOKUP(BH275,'Footnotes list'!$D$9:$E$58,2,FALSE)=0,\"\",VLOOKUP(BH275,'Footnotes list'!$D$9:$E$58,2,FALSE) ) )","v":""},null,null,null,null,{"$f":"IF(TRIM(BM275)=\"\", \"\", IF(VLOOKUP(BM275,'Footnotes list'!$D$9:$E$58,2,FALSE)=0,\"\",VLOOKUP(BM275,'Footnotes list'!$D$9:$E$58,2,FALSE) ) )","v":""},null,null,null,null,{"$f":"IF(TRIM(BR275)=\"\", \"\", IF(VLOOKUP(BR275,'Footnotes list'!$D$9:$E$58,2,FALSE)=0,\"\",VLOOKUP(BR275,'Footnotes list'!$D$9:$E$58,2,FALSE) ) )","v":""},null,null,null,null,{"$f":"IF(TRIM(BW275)=\"\", \"\", IF(VLOOKUP(BW275,'Footnotes list'!$D$9:$E$58,2,FALSE)=0,\"\",VLOOKUP(BW275,'Footnotes list'!$D$9:$E$58,2,FALSE) ) )","v":""},null,null,null,null,{"$f":"IF(TRIM(CB275)=\"\", \"\", IF(VLOOKUP(CB275,'Footnotes list'!$D$9:$E$58,2,FALSE)=0,\"\",VLOOKUP(CB275,'Footnotes list'!$D$9:$E$58,2,FALSE) ) )","v":""},null,null,null,null,{"$f":"IF(TRIM(CG275)=\"\", \"\", IF(VLOOKUP(CG275,'Footnotes list'!$D$9:$E$58,2,FALSE)=0,\"\",VLOOKUP(CG275,'Footnotes list'!$D$9:$E$58,2,FALSE) ) )","v":""},null,null,null,null,{"$f":"IF(TRIM(CL275)=\"\", \"\", IF(VLOOKUP(CL275,'Footnotes list'!$D$9:$E$58,2,FALSE)=0,\"\",VLOOKUP(CL275,'Footnotes list'!$D$9:$E$58,2,FALSE) ) )","v":""},null,null,null,null,{"$f":"IF(TRIM(CQ275)=\"\", \"\", IF(VLOOKUP(CQ275,'Footnotes list'!$D$9:$E$58,2,FALSE)=0,\"\",VLOOKUP(CQ275,'Footnotes list'!$D$9:$E$58,2,FALSE) ) )","v":""},null,null,null,null,{"$f":"IF(TRIM(CV275)=\"\", \"\", IF(VLOOKUP(CV275,'Footnotes list'!$D$9:$E$58,2,FALSE)=0,\"\",VLOOKUP(CV275,'Footnotes list'!$D$9:$E$58,2,FALSE) ) )","v":""},null,null,null,null,{"$f":"IF(TRIM(DA275)=\"\", \"\", IF(VLOOKUP(DA275,'Footnotes list'!$D$9:$E$58,2,FALSE)=0,\"\",VLOOKUP(DA275,'Footnotes list'!$D$9:$E$58,2,FALSE) ) )","v":""},null,null,null,null,{"$f":"IF(TRIM(DF275)=\"\", \"\", IF(VLOOKUP(DF275,'Footnotes list'!$D$9:$E$58,2,FALSE)=0,\"\",VLOOKUP(DF275,'Footnotes list'!$D$9:$E$58,2,FALSE) ) )","v":""},null,null,null,null,{"$f":"IF(TRIM(DK275)=\"\", \"\", IF(VLOOKUP(DK275,'Footnotes list'!$D$9:$E$58,2,FALSE)=0,\"\",VLOOKUP(DK275,'Footnotes list'!$D$9:$E$58,2,FALSE) ) )","v":""},null,null,null,null,{"$f":"IF(TRIM(DP275)=\"\", \"\", IF(VLOOKUP(DP275,'Footnotes list'!$D$9:$E$58,2,FALSE)=0,\"\",VLOOKUP(DP275,'Footnotes list'!$D$9:$E$58,2,FALSE) ) )","v":""},null,null,null,null,{"$f":"IF(TRIM(DU275)=\"\", \"\", IF(VLOOKUP(DU275,'Footnotes list'!$D$9:$E$58,2,FALSE)=0,\"\",VLOOKUP(DU275,'Footnotes list'!$D$9:$E$58,2,FALSE) ) )","v":""},null,null,null,null,{"$f":"IF(TRIM(DZ275)=\"\", \"\", IF(VLOOKUP(DZ275,'Footnotes list'!$D$9:$E$58,2,FALSE)=0,\"\",VLOOKUP(DZ275,'Footnotes list'!$D$9:$E$58,2,FALSE) ) )","v":""},null,null,null,null,{"$f":"IF(TRIM(EE275)=\"\", \"\", IF(VLOOKUP(EE275,'Footnotes list'!$D$9:$E$58,2,FALSE)=0,\"\",VLOOKUP(EE275,'Footnotes list'!$D$9:$E$58,2,FALSE) ) )","v":""},null,null,null,null,{"$f":"IF(TRIM(EJ275)=\"\", \"\", IF(VLOOKUP(EJ275,'Footnotes list'!$D$9:$E$58,2,FALSE)=0,\"\",VLOOKUP(EJ275,'Footnotes list'!$D$9:$E$58,2,FALSE) ) )","v":""},null,null,null,null,{"$f":"IF(TRIM(EO275)=\"\", \"\", IF(VLOOKUP(EO275,'Footnotes list'!$D$9:$E$58,2,FALSE)=0,\"\",VLOOKUP(EO275,'Footnotes list'!$D$9:$E$58,2,FALSE) ) )","v":""},null,null,null,null,{"$f":"IF(TRIM(ET275)=\"\", \"\", IF(VLOOKUP(ET275,'Footnotes list'!$D$9:$E$58,2,FALSE)=0,\"\",VLOOKUP(ET275,'Footnotes list'!$D$9:$E$58,2,FALSE) ) )","v":""},null,null,null,null,{"$f":"IF(TRIM(EY275)=\"\", \"\", IF(VLOOKUP(EY275,'Footnotes list'!$D$9:$E$58,2,FALSE)=0,\"\",VLOOKUP(EY275,'Footnotes list'!$D$9:$E$58,2,FALSE) ) )","v":""}]
[null,null,"Q","NMKT","non-market activities",null,null,null,null,null,{"$f":"IF(TRIM(J276)=\"\", \"\", IF(VLOOKUP(J276,'Footnotes list'!$D$9:$E$58,2,FALSE)=0,\"\",VLOOKUP(J276,'Footnotes list'!$D$9:$E$58,2,FALSE) ) )","v":""},null,null,null,null,{"$f":"IF(TRIM(O276)=\"\", \"\", IF(VLOOKUP(O276,'Footnotes list'!$D$9:$E$58,2,FALSE)=0,\"\",VLOOKUP(O276,'Footnotes list'!$D$9:$E$58,2,FALSE) ) )","v":""},null,null,null,null,{"$f":"IF(TRIM(T276)=\"\", \"\", IF(VLOOKUP(T276,'Footnotes list'!$D$9:$E$58,2,FALSE)=0,\"\",VLOOKUP(T276,'Footnotes list'!$D$9:$E$58,2,FALSE) ) )","v":""},null,null,null,null,{"$f":"IF(TRIM(Y276)=\"\", \"\", IF(VLOOKUP(Y276,'Footnotes list'!$D$9:$E$58,2,FALSE)=0,\"\",VLOOKUP(Y276,'Footnotes list'!$D$9:$E$58,2,FALSE) ) )","v":""},null,null,null,null,{"$f":"IF(TRIM(AD276)=\"\", \"\", IF(VLOOKUP(AD276,'Footnotes list'!$D$9:$E$58,2,FALSE)=0,\"\",VLOOKUP(AD276,'Footnotes list'!$D$9:$E$58,2,FALSE) ) )","v":""},null,null,null,null,{"$f":"IF(TRIM(AI276)=\"\", \"\", IF(VLOOKUP(AI276,'Footnotes list'!$D$9:$E$58,2,FALSE)=0,\"\",VLOOKUP(AI276,'Footnotes list'!$D$9:$E$58,2,FALSE) ) )","v":""},null,null,null,null,{"$f":"IF(TRIM(AN276)=\"\", \"\", IF(VLOOKUP(AN276,'Footnotes list'!$D$9:$E$58,2,FALSE)=0,\"\",VLOOKUP(AN276,'Footnotes list'!$D$9:$E$58,2,FALSE) ) )","v":""},null,null,null,null,{"$f":"IF(TRIM(AS276)=\"\", \"\", IF(VLOOKUP(AS276,'Footnotes list'!$D$9:$E$58,2,FALSE)=0,\"\",VLOOKUP(AS276,'Footnotes list'!$D$9:$E$58,2,FALSE) ) )","v":""},null,null,null,null,{"$f":"IF(TRIM(AX276)=\"\", \"\", IF(VLOOKUP(AX276,'Footnotes list'!$D$9:$E$58,2,FALSE)=0,\"\",VLOOKUP(AX276,'Footnotes list'!$D$9:$E$58,2,FALSE) ) )","v":""},null,null,null,null,{"$f":"IF(TRIM(BC276)=\"\", \"\", IF(VLOOKUP(BC276,'Footnotes list'!$D$9:$E$58,2,FALSE)=0,\"\",VLOOKUP(BC276,'Footnotes list'!$D$9:$E$58,2,FALSE) ) )","v":""},null,null,null,null,{"$f":"IF(TRIM(BH276)=\"\", \"\", IF(VLOOKUP(BH276,'Footnotes list'!$D$9:$E$58,2,FALSE)=0,\"\",VLOOKUP(BH276,'Footnotes list'!$D$9:$E$58,2,FALSE) ) )","v":""},null,null,null,null,{"$f":"IF(TRIM(BM276)=\"\", \"\", IF(VLOOKUP(BM276,'Footnotes list'!$D$9:$E$58,2,FALSE)=0,\"\",VLOOKUP(BM276,'Footnotes list'!$D$9:$E$58,2,FALSE) ) )","v":""},null,null,null,null,{"$f":"IF(TRIM(BR276)=\"\", \"\", IF(VLOOKUP(BR276,'Footnotes list'!$D$9:$E$58,2,FALSE)=0,\"\",VLOOKUP(BR276,'Footnotes list'!$D$9:$E$58,2,FALSE) ) )","v":""},null,null,null,null,{"$f":"IF(TRIM(BW276)=\"\", \"\", IF(VLOOKUP(BW276,'Footnotes list'!$D$9:$E$58,2,FALSE)=0,\"\",VLOOKUP(BW276,'Footnotes list'!$D$9:$E$58,2,FALSE) ) )","v":""},null,null,null,null,{"$f":"IF(TRIM(CB276)=\"\", \"\", IF(VLOOKUP(CB276,'Footnotes list'!$D$9:$E$58,2,FALSE)=0,\"\",VLOOKUP(CB276,'Footnotes list'!$D$9:$E$58,2,FALSE) ) )","v":""},null,null,null,null,{"$f":"IF(TRIM(CG276)=\"\", \"\", IF(VLOOKUP(CG276,'Footnotes list'!$D$9:$E$58,2,FALSE)=0,\"\",VLOOKUP(CG276,'Footnotes list'!$D$9:$E$58,2,FALSE) ) )","v":""},null,null,null,null,{"$f":"IF(TRIM(CL276)=\"\", \"\", IF(VLOOKUP(CL276,'Footnotes list'!$D$9:$E$58,2,FALSE)=0,\"\",VLOOKUP(CL276,'Footnotes list'!$D$9:$E$58,2,FALSE) ) )","v":""},null,null,null,null,{"$f":"IF(TRIM(CQ276)=\"\", \"\", IF(VLOOKUP(CQ276,'Footnotes list'!$D$9:$E$58,2,FALSE)=0,\"\",VLOOKUP(CQ276,'Footnotes list'!$D$9:$E$58,2,FALSE) ) )","v":""},null,null,null,null,{"$f":"IF(TRIM(CV276)=\"\", \"\", IF(VLOOKUP(CV276,'Footnotes list'!$D$9:$E$58,2,FALSE)=0,\"\",VLOOKUP(CV276,'Footnotes list'!$D$9:$E$58,2,FALSE) ) )","v":""},null,null,null,null,{"$f":"IF(TRIM(DA276)=\"\", \"\", IF(VLOOKUP(DA276,'Footnotes list'!$D$9:$E$58,2,FALSE)=0,\"\",VLOOKUP(DA276,'Footnotes list'!$D$9:$E$58,2,FALSE) ) )","v":""},null,null,null,null,{"$f":"IF(TRIM(DF276)=\"\", \"\", IF(VLOOKUP(DF276,'Footnotes list'!$D$9:$E$58,2,FALSE)=0,\"\",VLOOKUP(DF276,'Footnotes list'!$D$9:$E$58,2,FALSE) ) )","v":""},null,null,null,null,{"$f":"IF(TRIM(DK276)=\"\", \"\", IF(VLOOKUP(DK276,'Footnotes list'!$D$9:$E$58,2,FALSE)=0,\"\",VLOOKUP(DK276,'Footnotes list'!$D$9:$E$58,2,FALSE) ) )","v":""},null,null,null,null,{"$f":"IF(TRIM(DP276)=\"\", \"\", IF(VLOOKUP(DP276,'Footnotes list'!$D$9:$E$58,2,FALSE)=0,\"\",VLOOKUP(DP276,'Footnotes list'!$D$9:$E$58,2,FALSE) ) )","v":""},null,null,null,null,{"$f":"IF(TRIM(DU276)=\"\", \"\", IF(VLOOKUP(DU276,'Footnotes list'!$D$9:$E$58,2,FALSE)=0,\"\",VLOOKUP(DU276,'Footnotes list'!$D$9:$E$58,2,FALSE) ) )","v":""},null,null,null,null,{"$f":"IF(TRIM(DZ276)=\"\", \"\", IF(VLOOKUP(DZ276,'Footnotes list'!$D$9:$E$58,2,FALSE)=0,\"\",VLOOKUP(DZ276,'Footnotes list'!$D$9:$E$58,2,FALSE) ) )","v":""},null,null,null,null,{"$f":"IF(TRIM(EE276)=\"\", \"\", IF(VLOOKUP(EE276,'Footnotes list'!$D$9:$E$58,2,FALSE)=0,\"\",VLOOKUP(EE276,'Footnotes list'!$D$9:$E$58,2,FALSE) ) )","v":""},null,null,null,null,{"$f":"IF(TRIM(EJ276)=\"\", \"\", IF(VLOOKUP(EJ276,'Footnotes list'!$D$9:$E$58,2,FALSE)=0,\"\",VLOOKUP(EJ276,'Footnotes list'!$D$9:$E$58,2,FALSE) ) )","v":""},null,null,null,null,{"$f":"IF(TRIM(EO276)=\"\", \"\", IF(VLOOKUP(EO276,'Footnotes list'!$D$9:$E$58,2,FALSE)=0,\"\",VLOOKUP(EO276,'Footnotes list'!$D$9:$E$58,2,FALSE) ) )","v":""},null,null,null,null,{"$f":"IF(TRIM(ET276)=\"\", \"\", IF(VLOOKUP(ET276,'Footnotes list'!$D$9:$E$58,2,FALSE)=0,\"\",VLOOKUP(ET276,'Footnotes list'!$D$9:$E$58,2,FALSE) ) )","v":""},null,null,null,null,{"$f":"IF(TRIM(EY276)=\"\", \"\", IF(VLOOKUP(EY276,'Footnotes list'!$D$9:$E$58,2,FALSE)=0,\"\",VLOOKUP(EY276,'Footnotes list'!$D$9:$E$58,2,FALSE) ) )","v":""}]
[null,null,"Q","OWN_USE","activities for own final use",null,null,null,null,null,{"$f":"IF(TRIM(J277)=\"\", \"\", IF(VLOOKUP(J277,'Footnotes list'!$D$9:$E$58,2,FALSE)=0,\"\",VLOOKUP(J277,'Footnotes list'!$D$9:$E$58,2,FALSE) ) )","v":""},null,null,null,null,{"$f":"IF(TRIM(O277)=\"\", \"\", IF(VLOOKUP(O277,'Footnotes list'!$D$9:$E$58,2,FALSE)=0,\"\",VLOOKUP(O277,'Footnotes list'!$D$9:$E$58,2,FALSE) ) )","v":""},null,null,null,null,{"$f":"IF(TRIM(T277)=\"\", \"\", IF(VLOOKUP(T277,'Footnotes list'!$D$9:$E$58,2,FALSE)=0,\"\",VLOOKUP(T277,'Footnotes list'!$D$9:$E$58,2,FALSE) ) )","v":""},null,null,null,null,{"$f":"IF(TRIM(Y277)=\"\", \"\", IF(VLOOKUP(Y277,'Footnotes list'!$D$9:$E$58,2,FALSE)=0,\"\",VLOOKUP(Y277,'Footnotes list'!$D$9:$E$58,2,FALSE) ) )","v":""},null,null,null,null,{"$f":"IF(TRIM(AD277)=\"\", \"\", IF(VLOOKUP(AD277,'Footnotes list'!$D$9:$E$58,2,FALSE)=0,\"\",VLOOKUP(AD277,'Footnotes list'!$D$9:$E$58,2,FALSE) ) )","v":""},null,null,null,null,{"$f":"IF(TRIM(AI277)=\"\", \"\", IF(VLOOKUP(AI277,'Footnotes list'!$D$9:$E$58,2,FALSE)=0,\"\",VLOOKUP(AI277,'Footnotes list'!$D$9:$E$58,2,FALSE) ) )","v":""},null,null,null,null,{"$f":"IF(TRIM(AN277)=\"\", \"\", IF(VLOOKUP(AN277,'Footnotes list'!$D$9:$E$58,2,FALSE)=0,\"\",VLOOKUP(AN277,'Footnotes list'!$D$9:$E$58,2,FALSE) ) )","v":""},null,null,null,null,{"$f":"IF(TRIM(AS277)=\"\", \"\", IF(VLOOKUP(AS277,'Footnotes list'!$D$9:$E$58,2,FALSE)=0,\"\",VLOOKUP(AS277,'Footnotes list'!$D$9:$E$58,2,FALSE) ) )","v":""},null,null,null,null,{"$f":"IF(TRIM(AX277)=\"\", \"\", IF(VLOOKUP(AX277,'Footnotes list'!$D$9:$E$58,2,FALSE)=0,\"\",VLOOKUP(AX277,'Footnotes list'!$D$9:$E$58,2,FALSE) ) )","v":""},null,null,null,null,{"$f":"IF(TRIM(BC277)=\"\", \"\", IF(VLOOKUP(BC277,'Footnotes list'!$D$9:$E$58,2,FALSE)=0,\"\",VLOOKUP(BC277,'Footnotes list'!$D$9:$E$58,2,FALSE) ) )","v":""},null,null,null,null,{"$f":"IF(TRIM(BH277)=\"\", \"\", IF(VLOOKUP(BH277,'Footnotes list'!$D$9:$E$58,2,FALSE)=0,\"\",VLOOKUP(BH277,'Footnotes list'!$D$9:$E$58,2,FALSE) ) )","v":""},null,null,null,null,{"$f":"IF(TRIM(BM277)=\"\", \"\", IF(VLOOKUP(BM277,'Footnotes list'!$D$9:$E$58,2,FALSE)=0,\"\",VLOOKUP(BM277,'Footnotes list'!$D$9:$E$58,2,FALSE) ) )","v":""},null,null,null,null,{"$f":"IF(TRIM(BR277)=\"\", \"\", IF(VLOOKUP(BR277,'Footnotes list'!$D$9:$E$58,2,FALSE)=0,\"\",VLOOKUP(BR277,'Footnotes list'!$D$9:$E$58,2,FALSE) ) )","v":""},null,null,null,null,{"$f":"IF(TRIM(BW277)=\"\", \"\", IF(VLOOKUP(BW277,'Footnotes list'!$D$9:$E$58,2,FALSE)=0,\"\",VLOOKUP(BW277,'Footnotes list'!$D$9:$E$58,2,FALSE) ) )","v":""},null,null,null,null,{"$f":"IF(TRIM(CB277)=\"\", \"\", IF(VLOOKUP(CB277,'Footnotes list'!$D$9:$E$58,2,FALSE)=0,\"\",VLOOKUP(CB277,'Footnotes list'!$D$9:$E$58,2,FALSE) ) )","v":""},null,null,null,null,{"$f":"IF(TRIM(CG277)=\"\", \"\", IF(VLOOKUP(CG277,'Footnotes list'!$D$9:$E$58,2,FALSE)=0,\"\",VLOOKUP(CG277,'Footnotes list'!$D$9:$E$58,2,FALSE) ) )","v":""},null,null,null,null,{"$f":"IF(TRIM(CL277)=\"\", \"\", IF(VLOOKUP(CL277,'Footnotes list'!$D$9:$E$58,2,FALSE)=0,\"\",VLOOKUP(CL277,'Footnotes list'!$D$9:$E$58,2,FALSE) ) )","v":""},null,null,null,null,{"$f":"IF(TRIM(CQ277)=\"\", \"\", IF(VLOOKUP(CQ277,'Footnotes list'!$D$9:$E$58,2,FALSE)=0,\"\",VLOOKUP(CQ277,'Footnotes list'!$D$9:$E$58,2,FALSE) ) )","v":""},null,null,null,null,{"$f":"IF(TRIM(CV277)=\"\", \"\", IF(VLOOKUP(CV277,'Footnotes list'!$D$9:$E$58,2,FALSE)=0,\"\",VLOOKUP(CV277,'Footnotes list'!$D$9:$E$58,2,FALSE) ) )","v":""},null,null,null,null,{"$f":"IF(TRIM(DA277)=\"\", \"\", IF(VLOOKUP(DA277,'Footnotes list'!$D$9:$E$58,2,FALSE)=0,\"\",VLOOKUP(DA277,'Footnotes list'!$D$9:$E$58,2,FALSE) ) )","v":""},null,null,null,null,{"$f":"IF(TRIM(DF277)=\"\", \"\", IF(VLOOKUP(DF277,'Footnotes list'!$D$9:$E$58,2,FALSE)=0,\"\",VLOOKUP(DF277,'Footnotes list'!$D$9:$E$58,2,FALSE) ) )","v":""},null,null,null,null,{"$f":"IF(TRIM(DK277)=\"\", \"\", IF(VLOOKUP(DK277,'Footnotes list'!$D$9:$E$58,2,FALSE)=0,\"\",VLOOKUP(DK277,'Footnotes list'!$D$9:$E$58,2,FALSE) ) )","v":""},null,null,null,null,{"$f":"IF(TRIM(DP277)=\"\", \"\", IF(VLOOKUP(DP277,'Footnotes list'!$D$9:$E$58,2,FALSE)=0,\"\",VLOOKUP(DP277,'Footnotes list'!$D$9:$E$58,2,FALSE) ) )","v":""},null,null,null,null,{"$f":"IF(TRIM(DU277)=\"\", \"\", IF(VLOOKUP(DU277,'Footnotes list'!$D$9:$E$58,2,FALSE)=0,\"\",VLOOKUP(DU277,'Footnotes list'!$D$9:$E$58,2,FALSE) ) )","v":""},null,null,null,null,{"$f":"IF(TRIM(DZ277)=\"\", \"\", IF(VLOOKUP(DZ277,'Footnotes list'!$D$9:$E$58,2,FALSE)=0,\"\",VLOOKUP(DZ277,'Footnotes list'!$D$9:$E$58,2,FALSE) ) )","v":""},null,null,null,null,{"$f":"IF(TRIM(EE277)=\"\", \"\", IF(VLOOKUP(EE277,'Footnotes list'!$D$9:$E$58,2,FALSE)=0,\"\",VLOOKUP(EE277,'Footnotes list'!$D$9:$E$58,2,FALSE) ) )","v":""},null,null,null,null,{"$f":"IF(TRIM(EJ277)=\"\", \"\", IF(VLOOKUP(EJ277,'Footnotes list'!$D$9:$E$58,2,FALSE)=0,\"\",VLOOKUP(EJ277,'Footnotes list'!$D$9:$E$58,2,FALSE) ) )","v":""},null,null,null,null,{"$f":"IF(TRIM(EO277)=\"\", \"\", IF(VLOOKUP(EO277,'Footnotes list'!$D$9:$E$58,2,FALSE)=0,\"\",VLOOKUP(EO277,'Footnotes list'!$D$9:$E$58,2,FALSE) ) )","v":""},null,null,null,null,{"$f":"IF(TRIM(ET277)=\"\", \"\", IF(VLOOKUP(ET277,'Footnotes list'!$D$9:$E$58,2,FALSE)=0,\"\",VLOOKUP(ET277,'Footnotes list'!$D$9:$E$58,2,FALSE) ) )","v":""},null,null,null,null,{"$f":"IF(TRIM(EY277)=\"\", \"\", IF(VLOOKUP(EY277,'Footnotes list'!$D$9:$E$58,2,FALSE)=0,\"\",VLOOKUP(EY277,'Footnotes list'!$D$9:$E$58,2,FALSE) ) )","v":""}]
[null,null,"Q","MKT","market activities, including:",null,null,null,null,null,{"$f":"IF(TRIM(J278)=\"\", \"\", IF(VLOOKUP(J278,'Footnotes list'!$D$9:$E$58,2,FALSE)=0,\"\",VLOOKUP(J278,'Footnotes list'!$D$9:$E$58,2,FALSE) ) )","v":""},null,null,null,null,{"$f":"IF(TRIM(O278)=\"\", \"\", IF(VLOOKUP(O278,'Footnotes list'!$D$9:$E$58,2,FALSE)=0,\"\",VLOOKUP(O278,'Footnotes list'!$D$9:$E$58,2,FALSE) ) )","v":""},null,null,null,null,{"$f":"IF(TRIM(T278)=\"\", \"\", IF(VLOOKUP(T278,'Footnotes list'!$D$9:$E$58,2,FALSE)=0,\"\",VLOOKUP(T278,'Footnotes list'!$D$9:$E$58,2,FALSE) ) )","v":""},null,null,null,null,{"$f":"IF(TRIM(Y278)=\"\", \"\", IF(VLOOKUP(Y278,'Footnotes list'!$D$9:$E$58,2,FALSE)=0,\"\",VLOOKUP(Y278,'Footnotes list'!$D$9:$E$58,2,FALSE) ) )","v":""},null,null,null,null,{"$f":"IF(TRIM(AD278)=\"\", \"\", IF(VLOOKUP(AD278,'Footnotes list'!$D$9:$E$58,2,FALSE)=0,\"\",VLOOKUP(AD278,'Footnotes list'!$D$9:$E$58,2,FALSE) ) )","v":""},null,null,null,null,{"$f":"IF(TRIM(AI278)=\"\", \"\", IF(VLOOKUP(AI278,'Footnotes list'!$D$9:$E$58,2,FALSE)=0,\"\",VLOOKUP(AI278,'Footnotes list'!$D$9:$E$58,2,FALSE) ) )","v":""},null,null,null,null,{"$f":"IF(TRIM(AN278)=\"\", \"\", IF(VLOOKUP(AN278,'Footnotes list'!$D$9:$E$58,2,FALSE)=0,\"\",VLOOKUP(AN278,'Footnotes list'!$D$9:$E$58,2,FALSE) ) )","v":""},null,null,null,null,{"$f":"IF(TRIM(AS278)=\"\", \"\", IF(VLOOKUP(AS278,'Footnotes list'!$D$9:$E$58,2,FALSE)=0,\"\",VLOOKUP(AS278,'Footnotes list'!$D$9:$E$58,2,FALSE) ) )","v":""},null,null,null,null,{"$f":"IF(TRIM(AX278)=\"\", \"\", IF(VLOOKUP(AX278,'Footnotes list'!$D$9:$E$58,2,FALSE)=0,\"\",VLOOKUP(AX278,'Footnotes list'!$D$9:$E$58,2,FALSE) ) )","v":""},null,null,null,null,{"$f":"IF(TRIM(BC278)=\"\", \"\", IF(VLOOKUP(BC278,'Footnotes list'!$D$9:$E$58,2,FALSE)=0,\"\",VLOOKUP(BC278,'Footnotes list'!$D$9:$E$58,2,FALSE) ) )","v":""},null,null,null,null,{"$f":"IF(TRIM(BH278)=\"\", \"\", IF(VLOOKUP(BH278,'Footnotes list'!$D$9:$E$58,2,FALSE)=0,\"\",VLOOKUP(BH278,'Footnotes list'!$D$9:$E$58,2,FALSE) ) )","v":""},null,null,null,null,{"$f":"IF(TRIM(BM278)=\"\", \"\", IF(VLOOKUP(BM278,'Footnotes list'!$D$9:$E$58,2,FALSE)=0,\"\",VLOOKUP(BM278,'Footnotes list'!$D$9:$E$58,2,FALSE) ) )","v":""},null,null,null,null,{"$f":"IF(TRIM(BR278)=\"\", \"\", IF(VLOOKUP(BR278,'Footnotes list'!$D$9:$E$58,2,FALSE)=0,\"\",VLOOKUP(BR278,'Footnotes list'!$D$9:$E$58,2,FALSE) ) )","v":""},null,null,null,null,{"$f":"IF(TRIM(BW278)=\"\", \"\", IF(VLOOKUP(BW278,'Footnotes list'!$D$9:$E$58,2,FALSE)=0,\"\",VLOOKUP(BW278,'Footnotes list'!$D$9:$E$58,2,FALSE) ) )","v":""},null,null,null,null,{"$f":"IF(TRIM(CB278)=\"\", \"\", IF(VLOOKUP(CB278,'Footnotes list'!$D$9:$E$58,2,FALSE)=0,\"\",VLOOKUP(CB278,'Footnotes list'!$D$9:$E$58,2,FALSE) ) )","v":""},null,null,null,null,{"$f":"IF(TRIM(CG278)=\"\", \"\", IF(VLOOKUP(CG278,'Footnotes list'!$D$9:$E$58,2,FALSE)=0,\"\",VLOOKUP(CG278,'Footnotes list'!$D$9:$E$58,2,FALSE) ) )","v":""},null,null,null,null,{"$f":"IF(TRIM(CL278)=\"\", \"\", IF(VLOOKUP(CL278,'Footnotes list'!$D$9:$E$58,2,FALSE)=0,\"\",VLOOKUP(CL278,'Footnotes list'!$D$9:$E$58,2,FALSE) ) )","v":""},null,null,null,null,{"$f":"IF(TRIM(CQ278)=\"\", \"\", IF(VLOOKUP(CQ278,'Footnotes list'!$D$9:$E$58,2,FALSE)=0,\"\",VLOOKUP(CQ278,'Footnotes list'!$D$9:$E$58,2,FALSE) ) )","v":""},null,null,null,null,{"$f":"IF(TRIM(CV278)=\"\", \"\", IF(VLOOKUP(CV278,'Footnotes list'!$D$9:$E$58,2,FALSE)=0,\"\",VLOOKUP(CV278,'Footnotes list'!$D$9:$E$58,2,FALSE) ) )","v":""},null,null,null,null,{"$f":"IF(TRIM(DA278)=\"\", \"\", IF(VLOOKUP(DA278,'Footnotes list'!$D$9:$E$58,2,FALSE)=0,\"\",VLOOKUP(DA278,'Footnotes list'!$D$9:$E$58,2,FALSE) ) )","v":""},null,null,null,null,{"$f":"IF(TRIM(DF278)=\"\", \"\", IF(VLOOKUP(DF278,'Footnotes list'!$D$9:$E$58,2,FALSE)=0,\"\",VLOOKUP(DF278,'Footnotes list'!$D$9:$E$58,2,FALSE) ) )","v":""},null,null,null,null,{"$f":"IF(TRIM(DK278)=\"\", \"\", IF(VLOOKUP(DK278,'Footnotes list'!$D$9:$E$58,2,FALSE)=0,\"\",VLOOKUP(DK278,'Footnotes list'!$D$9:$E$58,2,FALSE) ) )","v":""},null,null,null,null,{"$f":"IF(TRIM(DP278)=\"\", \"\", IF(VLOOKUP(DP278,'Footnotes list'!$D$9:$E$58,2,FALSE)=0,\"\",VLOOKUP(DP278,'Footnotes list'!$D$9:$E$58,2,FALSE) ) )","v":""},null,null,null,null,{"$f":"IF(TRIM(DU278)=\"\", \"\", IF(VLOOKUP(DU278,'Footnotes list'!$D$9:$E$58,2,FALSE)=0,\"\",VLOOKUP(DU278,'Footnotes list'!$D$9:$E$58,2,FALSE) ) )","v":""},null,null,null,null,{"$f":"IF(TRIM(DZ278)=\"\", \"\", IF(VLOOKUP(DZ278,'Footnotes list'!$D$9:$E$58,2,FALSE)=0,\"\",VLOOKUP(DZ278,'Footnotes list'!$D$9:$E$58,2,FALSE) ) )","v":""},null,null,null,null,{"$f":"IF(TRIM(EE278)=\"\", \"\", IF(VLOOKUP(EE278,'Footnotes list'!$D$9:$E$58,2,FALSE)=0,\"\",VLOOKUP(EE278,'Footnotes list'!$D$9:$E$58,2,FALSE) ) )","v":""},null,null,null,null,{"$f":"IF(TRIM(EJ278)=\"\", \"\", IF(VLOOKUP(EJ278,'Footnotes list'!$D$9:$E$58,2,FALSE)=0,\"\",VLOOKUP(EJ278,'Footnotes list'!$D$9:$E$58,2,FALSE) ) )","v":""},null,null,null,null,{"$f":"IF(TRIM(EO278)=\"\", \"\", IF(VLOOKUP(EO278,'Footnotes list'!$D$9:$E$58,2,FALSE)=0,\"\",VLOOKUP(EO278,'Footnotes list'!$D$9:$E$58,2,FALSE) ) )","v":""},null,null,null,null,{"$f":"IF(TRIM(ET278)=\"\", \"\", IF(VLOOKUP(ET278,'Footnotes list'!$D$9:$E$58,2,FALSE)=0,\"\",VLOOKUP(ET278,'Footnotes list'!$D$9:$E$58,2,FALSE) ) )","v":""},null,null,null,null,{"$f":"IF(TRIM(EY278)=\"\", \"\", IF(VLOOKUP(EY278,'Footnotes list'!$D$9:$E$58,2,FALSE)=0,\"\",VLOOKUP(EY278,'Footnotes list'!$D$9:$E$58,2,FALSE) ) )","v":""}]
[null,null,"Q","ES_CS","environmental specific services",null,null,null,null,null,{"$f":"IF(TRIM(J279)=\"\", \"\", IF(VLOOKUP(J279,'Footnotes list'!$D$9:$E$58,2,FALSE)=0,\"\",VLOOKUP(J279,'Footnotes list'!$D$9:$E$58,2,FALSE) ) )","v":""},null,null,null,null,{"$f":"IF(TRIM(O279)=\"\", \"\", IF(VLOOKUP(O279,'Footnotes list'!$D$9:$E$58,2,FALSE)=0,\"\",VLOOKUP(O279,'Footnotes list'!$D$9:$E$58,2,FALSE) ) )","v":""},null,null,null,null,{"$f":"IF(TRIM(T279)=\"\", \"\", IF(VLOOKUP(T279,'Footnotes list'!$D$9:$E$58,2,FALSE)=0,\"\",VLOOKUP(T279,'Footnotes list'!$D$9:$E$58,2,FALSE) ) )","v":""},null,null,null,null,{"$f":"IF(TRIM(Y279)=\"\", \"\", IF(VLOOKUP(Y279,'Footnotes list'!$D$9:$E$58,2,FALSE)=0,\"\",VLOOKUP(Y279,'Footnotes list'!$D$9:$E$58,2,FALSE) ) )","v":""},null,null,null,null,{"$f":"IF(TRIM(AD279)=\"\", \"\", IF(VLOOKUP(AD279,'Footnotes list'!$D$9:$E$58,2,FALSE)=0,\"\",VLOOKUP(AD279,'Footnotes list'!$D$9:$E$58,2,FALSE) ) )","v":""},null,null,null,null,{"$f":"IF(TRIM(AI279)=\"\", \"\", IF(VLOOKUP(AI279,'Footnotes list'!$D$9:$E$58,2,FALSE)=0,\"\",VLOOKUP(AI279,'Footnotes list'!$D$9:$E$58,2,FALSE) ) )","v":""},null,null,null,null,{"$f":"IF(TRIM(AN279)=\"\", \"\", IF(VLOOKUP(AN279,'Footnotes list'!$D$9:$E$58,2,FALSE)=0,\"\",VLOOKUP(AN279,'Footnotes list'!$D$9:$E$58,2,FALSE) ) )","v":""},null,null,null,null,{"$f":"IF(TRIM(AS279)=\"\", \"\", IF(VLOOKUP(AS279,'Footnotes list'!$D$9:$E$58,2,FALSE)=0,\"\",VLOOKUP(AS279,'Footnotes list'!$D$9:$E$58,2,FALSE) ) )","v":""},null,null,null,null,{"$f":"IF(TRIM(AX279)=\"\", \"\", IF(VLOOKUP(AX279,'Footnotes list'!$D$9:$E$58,2,FALSE)=0,\"\",VLOOKUP(AX279,'Footnotes list'!$D$9:$E$58,2,FALSE) ) )","v":""},null,null,null,null,{"$f":"IF(TRIM(BC279)=\"\", \"\", IF(VLOOKUP(BC279,'Footnotes list'!$D$9:$E$58,2,FALSE)=0,\"\",VLOOKUP(BC279,'Footnotes list'!$D$9:$E$58,2,FALSE) ) )","v":""},null,null,null,null,{"$f":"IF(TRIM(BH279)=\"\", \"\", IF(VLOOKUP(BH279,'Footnotes list'!$D$9:$E$58,2,FALSE)=0,\"\",VLOOKUP(BH279,'Footnotes list'!$D$9:$E$58,2,FALSE) ) )","v":""},null,null,null,null,{"$f":"IF(TRIM(BM279)=\"\", \"\", IF(VLOOKUP(BM279,'Footnotes list'!$D$9:$E$58,2,FALSE)=0,\"\",VLOOKUP(BM279,'Footnotes list'!$D$9:$E$58,2,FALSE) ) )","v":""},null,null,null,null,{"$f":"IF(TRIM(BR279)=\"\", \"\", IF(VLOOKUP(BR279,'Footnotes list'!$D$9:$E$58,2,FALSE)=0,\"\",VLOOKUP(BR279,'Footnotes list'!$D$9:$E$58,2,FALSE) ) )","v":""},null,null,null,null,{"$f":"IF(TRIM(BW279)=\"\", \"\", IF(VLOOKUP(BW279,'Footnotes list'!$D$9:$E$58,2,FALSE)=0,\"\",VLOOKUP(BW279,'Footnotes list'!$D$9:$E$58,2,FALSE) ) )","v":""},null,null,null,null,{"$f":"IF(TRIM(CB279)=\"\", \"\", IF(VLOOKUP(CB279,'Footnotes list'!$D$9:$E$58,2,FALSE)=0,\"\",VLOOKUP(CB279,'Footnotes list'!$D$9:$E$58,2,FALSE) ) )","v":""},null,null,null,null,{"$f":"IF(TRIM(CG279)=\"\", \"\", IF(VLOOKUP(CG279,'Footnotes list'!$D$9:$E$58,2,FALSE)=0,\"\",VLOOKUP(CG279,'Footnotes list'!$D$9:$E$58,2,FALSE) ) )","v":""},null,null,null,null,{"$f":"IF(TRIM(CL279)=\"\", \"\", IF(VLOOKUP(CL279,'Footnotes list'!$D$9:$E$58,2,FALSE)=0,\"\",VLOOKUP(CL279,'Footnotes list'!$D$9:$E$58,2,FALSE) ) )","v":""},null,null,null,null,{"$f":"IF(TRIM(CQ279)=\"\", \"\", IF(VLOOKUP(CQ279,'Footnotes list'!$D$9:$E$58,2,FALSE)=0,\"\",VLOOKUP(CQ279,'Footnotes list'!$D$9:$E$58,2,FALSE) ) )","v":""},null,null,null,null,{"$f":"IF(TRIM(CV279)=\"\", \"\", IF(VLOOKUP(CV279,'Footnotes list'!$D$9:$E$58,2,FALSE)=0,\"\",VLOOKUP(CV279,'Footnotes list'!$D$9:$E$58,2,FALSE) ) )","v":""},null,null,null,null,{"$f":"IF(TRIM(DA279)=\"\", \"\", IF(VLOOKUP(DA279,'Footnotes list'!$D$9:$E$58,2,FALSE)=0,\"\",VLOOKUP(DA279,'Footnotes list'!$D$9:$E$58,2,FALSE) ) )","v":""},null,null,null,null,{"$f":"IF(TRIM(DF279)=\"\", \"\", IF(VLOOKUP(DF279,'Footnotes list'!$D$9:$E$58,2,FALSE)=0,\"\",VLOOKUP(DF279,'Footnotes list'!$D$9:$E$58,2,FALSE) ) )","v":""},null,null,null,null,{"$f":"IF(TRIM(DK279)=\"\", \"\", IF(VLOOKUP(DK279,'Footnotes list'!$D$9:$E$58,2,FALSE)=0,\"\",VLOOKUP(DK279,'Footnotes list'!$D$9:$E$58,2,FALSE) ) )","v":""},null,null,null,null,{"$f":"IF(TRIM(DP279)=\"\", \"\", IF(VLOOKUP(DP279,'Footnotes list'!$D$9:$E$58,2,FALSE)=0,\"\",VLOOKUP(DP279,'Footnotes list'!$D$9:$E$58,2,FALSE) ) )","v":""},null,null,null,null,{"$f":"IF(TRIM(DU279)=\"\", \"\", IF(VLOOKUP(DU279,'Footnotes list'!$D$9:$E$58,2,FALSE)=0,\"\",VLOOKUP(DU279,'Footnotes list'!$D$9:$E$58,2,FALSE) ) )","v":""},null,null,null,null,{"$f":"IF(TRIM(DZ279)=\"\", \"\", IF(VLOOKUP(DZ279,'Footnotes list'!$D$9:$E$58,2,FALSE)=0,\"\",VLOOKUP(DZ279,'Footnotes list'!$D$9:$E$58,2,FALSE) ) )","v":""},null,null,null,null,{"$f":"IF(TRIM(EE279)=\"\", \"\", IF(VLOOKUP(EE279,'Footnotes list'!$D$9:$E$58,2,FALSE)=0,\"\",VLOOKUP(EE279,'Footnotes list'!$D$9:$E$58,2,FALSE) ) )","v":""},null,null,null,null,{"$f":"IF(TRIM(EJ279)=\"\", \"\", IF(VLOOKUP(EJ279,'Footnotes list'!$D$9:$E$58,2,FALSE)=0,\"\",VLOOKUP(EJ279,'Footnotes list'!$D$9:$E$58,2,FALSE) ) )","v":""},null,null,null,null,{"$f":"IF(TRIM(EO279)=\"\", \"\", IF(VLOOKUP(EO279,'Footnotes list'!$D$9:$E$58,2,FALSE)=0,\"\",VLOOKUP(EO279,'Footnotes list'!$D$9:$E$58,2,FALSE) ) )","v":""},null,null,null,null,{"$f":"IF(TRIM(ET279)=\"\", \"\", IF(VLOOKUP(ET279,'Footnotes list'!$D$9:$E$58,2,FALSE)=0,\"\",VLOOKUP(ET279,'Footnotes list'!$D$9:$E$58,2,FALSE) ) )","v":""},null,null,null,null,{"$f":"IF(TRIM(EY279)=\"\", \"\", IF(VLOOKUP(EY279,'Footnotes list'!$D$9:$E$58,2,FALSE)=0,\"\",VLOOKUP(EY279,'Footnotes list'!$D$9:$E$58,2,FALSE) ) )","v":""}]
[null,null,"Q","C_REP","cleaner and resource efficient products",null,null,null,null,null,{"$f":"IF(TRIM(J280)=\"\", \"\", IF(VLOOKUP(J280,'Footnotes list'!$D$9:$E$58,2,FALSE)=0,\"\",VLOOKUP(J280,'Footnotes list'!$D$9:$E$58,2,FALSE) ) )","v":""},null,null,null,null,{"$f":"IF(TRIM(O280)=\"\", \"\", IF(VLOOKUP(O280,'Footnotes list'!$D$9:$E$58,2,FALSE)=0,\"\",VLOOKUP(O280,'Footnotes list'!$D$9:$E$58,2,FALSE) ) )","v":""},null,null,null,null,{"$f":"IF(TRIM(T280)=\"\", \"\", IF(VLOOKUP(T280,'Footnotes list'!$D$9:$E$58,2,FALSE)=0,\"\",VLOOKUP(T280,'Footnotes list'!$D$9:$E$58,2,FALSE) ) )","v":""},null,null,null,null,{"$f":"IF(TRIM(Y280)=\"\", \"\", IF(VLOOKUP(Y280,'Footnotes list'!$D$9:$E$58,2,FALSE)=0,\"\",VLOOKUP(Y280,'Footnotes list'!$D$9:$E$58,2,FALSE) ) )","v":""},null,null,null,null,{"$f":"IF(TRIM(AD280)=\"\", \"\", IF(VLOOKUP(AD280,'Footnotes list'!$D$9:$E$58,2,FALSE)=0,\"\",VLOOKUP(AD280,'Footnotes list'!$D$9:$E$58,2,FALSE) ) )","v":""},null,null,null,null,{"$f":"IF(TRIM(AI280)=\"\", \"\", IF(VLOOKUP(AI280,'Footnotes list'!$D$9:$E$58,2,FALSE)=0,\"\",VLOOKUP(AI280,'Footnotes list'!$D$9:$E$58,2,FALSE) ) )","v":""},null,null,null,null,{"$f":"IF(TRIM(AN280)=\"\", \"\", IF(VLOOKUP(AN280,'Footnotes list'!$D$9:$E$58,2,FALSE)=0,\"\",VLOOKUP(AN280,'Footnotes list'!$D$9:$E$58,2,FALSE) ) )","v":""},null,null,null,null,{"$f":"IF(TRIM(AS280)=\"\", \"\", IF(VLOOKUP(AS280,'Footnotes list'!$D$9:$E$58,2,FALSE)=0,\"\",VLOOKUP(AS280,'Footnotes list'!$D$9:$E$58,2,FALSE) ) )","v":""},null,null,null,null,{"$f":"IF(TRIM(AX280)=\"\", \"\", IF(VLOOKUP(AX280,'Footnotes list'!$D$9:$E$58,2,FALSE)=0,\"\",VLOOKUP(AX280,'Footnotes list'!$D$9:$E$58,2,FALSE) ) )","v":""},null,null,null,null,{"$f":"IF(TRIM(BC280)=\"\", \"\", IF(VLOOKUP(BC280,'Footnotes list'!$D$9:$E$58,2,FALSE)=0,\"\",VLOOKUP(BC280,'Footnotes list'!$D$9:$E$58,2,FALSE) ) )","v":""},null,null,null,null,{"$f":"IF(TRIM(BH280)=\"\", \"\", IF(VLOOKUP(BH280,'Footnotes list'!$D$9:$E$58,2,FALSE)=0,\"\",VLOOKUP(BH280,'Footnotes list'!$D$9:$E$58,2,FALSE) ) )","v":""},null,null,null,null,{"$f":"IF(TRIM(BM280)=\"\", \"\", IF(VLOOKUP(BM280,'Footnotes list'!$D$9:$E$58,2,FALSE)=0,\"\",VLOOKUP(BM280,'Footnotes list'!$D$9:$E$58,2,FALSE) ) )","v":""},null,null,null,null,{"$f":"IF(TRIM(BR280)=\"\", \"\", IF(VLOOKUP(BR280,'Footnotes list'!$D$9:$E$58,2,FALSE)=0,\"\",VLOOKUP(BR280,'Footnotes list'!$D$9:$E$58,2,FALSE) ) )","v":""},null,null,null,null,{"$f":"IF(TRIM(BW280)=\"\", \"\", IF(VLOOKUP(BW280,'Footnotes list'!$D$9:$E$58,2,FALSE)=0,\"\",VLOOKUP(BW280,'Footnotes list'!$D$9:$E$58,2,FALSE) ) )","v":""},null,null,null,null,{"$f":"IF(TRIM(CB280)=\"\", \"\", IF(VLOOKUP(CB280,'Footnotes list'!$D$9:$E$58,2,FALSE)=0,\"\",VLOOKUP(CB280,'Footnotes list'!$D$9:$E$58,2,FALSE) ) )","v":""},null,null,null,null,{"$f":"IF(TRIM(CG280)=\"\", \"\", IF(VLOOKUP(CG280,'Footnotes list'!$D$9:$E$58,2,FALSE)=0,\"\",VLOOKUP(CG280,'Footnotes list'!$D$9:$E$58,2,FALSE) ) )","v":""},null,null,null,null,{"$f":"IF(TRIM(CL280)=\"\", \"\", IF(VLOOKUP(CL280,'Footnotes list'!$D$9:$E$58,2,FALSE)=0,\"\",VLOOKUP(CL280,'Footnotes list'!$D$9:$E$58,2,FALSE) ) )","v":""},null,null,null,null,{"$f":"IF(TRIM(CQ280)=\"\", \"\", IF(VLOOKUP(CQ280,'Footnotes list'!$D$9:$E$58,2,FALSE)=0,\"\",VLOOKUP(CQ280,'Footnotes list'!$D$9:$E$58,2,FALSE) ) )","v":""},null,null,null,null,{"$f":"IF(TRIM(CV280)=\"\", \"\", IF(VLOOKUP(CV280,'Footnotes list'!$D$9:$E$58,2,FALSE)=0,\"\",VLOOKUP(CV280,'Footnotes list'!$D$9:$E$58,2,FALSE) ) )","v":""},null,null,null,null,{"$f":"IF(TRIM(DA280)=\"\", \"\", IF(VLOOKUP(DA280,'Footnotes list'!$D$9:$E$58,2,FALSE)=0,\"\",VLOOKUP(DA280,'Footnotes list'!$D$9:$E$58,2,FALSE) ) )","v":""},null,null,null,null,{"$f":"IF(TRIM(DF280)=\"\", \"\", IF(VLOOKUP(DF280,'Footnotes list'!$D$9:$E$58,2,FALSE)=0,\"\",VLOOKUP(DF280,'Footnotes list'!$D$9:$E$58,2,FALSE) ) )","v":""},null,null,null,null,{"$f":"IF(TRIM(DK280)=\"\", \"\", IF(VLOOKUP(DK280,'Footnotes list'!$D$9:$E$58,2,FALSE)=0,\"\",VLOOKUP(DK280,'Footnotes list'!$D$9:$E$58,2,FALSE) ) )","v":""},null,null,null,null,{"$f":"IF(TRIM(DP280)=\"\", \"\", IF(VLOOKUP(DP280,'Footnotes list'!$D$9:$E$58,2,FALSE)=0,\"\",VLOOKUP(DP280,'Footnotes list'!$D$9:$E$58,2,FALSE) ) )","v":""},null,null,null,null,{"$f":"IF(TRIM(DU280)=\"\", \"\", IF(VLOOKUP(DU280,'Footnotes list'!$D$9:$E$58,2,FALSE)=0,\"\",VLOOKUP(DU280,'Footnotes list'!$D$9:$E$58,2,FALSE) ) )","v":""},null,null,null,null,{"$f":"IF(TRIM(DZ280)=\"\", \"\", IF(VLOOKUP(DZ280,'Footnotes list'!$D$9:$E$58,2,FALSE)=0,\"\",VLOOKUP(DZ280,'Footnotes list'!$D$9:$E$58,2,FALSE) ) )","v":""},null,null,null,null,{"$f":"IF(TRIM(EE280)=\"\", \"\", IF(VLOOKUP(EE280,'Footnotes list'!$D$9:$E$58,2,FALSE)=0,\"\",VLOOKUP(EE280,'Footnotes list'!$D$9:$E$58,2,FALSE) ) )","v":""},null,null,null,null,{"$f":"IF(TRIM(EJ280)=\"\", \"\", IF(VLOOKUP(EJ280,'Footnotes list'!$D$9:$E$58,2,FALSE)=0,\"\",VLOOKUP(EJ280,'Footnotes list'!$D$9:$E$58,2,FALSE) ) )","v":""},null,null,null,null,{"$f":"IF(TRIM(EO280)=\"\", \"\", IF(VLOOKUP(EO280,'Footnotes list'!$D$9:$E$58,2,FALSE)=0,\"\",VLOOKUP(EO280,'Footnotes list'!$D$9:$E$58,2,FALSE) ) )","v":""},null,null,null,null,{"$f":"IF(TRIM(ET280)=\"\", \"\", IF(VLOOKUP(ET280,'Footnotes list'!$D$9:$E$58,2,FALSE)=0,\"\",VLOOKUP(ET280,'Footnotes list'!$D$9:$E$58,2,FALSE) ) )","v":""},null,null,null,null,{"$f":"IF(TRIM(EY280)=\"\", \"\", IF(VLOOKUP(EY280,'Footnotes list'!$D$9:$E$58,2,FALSE)=0,\"\",VLOOKUP(EY280,'Footnotes list'!$D$9:$E$58,2,FALSE) ) )","v":""}]
[null,null,"R","TOT_EGSS","Total R - Arts, entertainment and recreation, of which:",null,null,null,null,null,{"$f":"IF(TRIM(J281)=\"\", \"\", IF(VLOOKUP(J281,'Footnotes list'!$D$9:$E$58,2,FALSE)=0,\"\",VLOOKUP(J281,'Footnotes list'!$D$9:$E$58,2,FALSE) ) )","v":""},null,null,null,null,{"$f":"IF(TRIM(O281)=\"\", \"\", IF(VLOOKUP(O281,'Footnotes list'!$D$9:$E$58,2,FALSE)=0,\"\",VLOOKUP(O281,'Footnotes list'!$D$9:$E$58,2,FALSE) ) )","v":""},null,null,null,null,{"$f":"IF(TRIM(T281)=\"\", \"\", IF(VLOOKUP(T281,'Footnotes list'!$D$9:$E$58,2,FALSE)=0,\"\",VLOOKUP(T281,'Footnotes list'!$D$9:$E$58,2,FALSE) ) )","v":""},null,null,null,null,{"$f":"IF(TRIM(Y281)=\"\", \"\", IF(VLOOKUP(Y281,'Footnotes list'!$D$9:$E$58,2,FALSE)=0,\"\",VLOOKUP(Y281,'Footnotes list'!$D$9:$E$58,2,FALSE) ) )","v":""},null,null,null,null,{"$f":"IF(TRIM(AD281)=\"\", \"\", IF(VLOOKUP(AD281,'Footnotes list'!$D$9:$E$58,2,FALSE)=0,\"\",VLOOKUP(AD281,'Footnotes list'!$D$9:$E$58,2,FALSE) ) )","v":""},null,null,null,null,{"$f":"IF(TRIM(AI281)=\"\", \"\", IF(VLOOKUP(AI281,'Footnotes list'!$D$9:$E$58,2,FALSE)=0,\"\",VLOOKUP(AI281,'Footnotes list'!$D$9:$E$58,2,FALSE) ) )","v":""},null,null,null,null,{"$f":"IF(TRIM(AN281)=\"\", \"\", IF(VLOOKUP(AN281,'Footnotes list'!$D$9:$E$58,2,FALSE)=0,\"\",VLOOKUP(AN281,'Footnotes list'!$D$9:$E$58,2,FALSE) ) )","v":""},null,null,null,null,{"$f":"IF(TRIM(AS281)=\"\", \"\", IF(VLOOKUP(AS281,'Footnotes list'!$D$9:$E$58,2,FALSE)=0,\"\",VLOOKUP(AS281,'Footnotes list'!$D$9:$E$58,2,FALSE) ) )","v":""},null,null,null,null,{"$f":"IF(TRIM(AX281)=\"\", \"\", IF(VLOOKUP(AX281,'Footnotes list'!$D$9:$E$58,2,FALSE)=0,\"\",VLOOKUP(AX281,'Footnotes list'!$D$9:$E$58,2,FALSE) ) )","v":""},null,null,null,null,{"$f":"IF(TRIM(BC281)=\"\", \"\", IF(VLOOKUP(BC281,'Footnotes list'!$D$9:$E$58,2,FALSE)=0,\"\",VLOOKUP(BC281,'Footnotes list'!$D$9:$E$58,2,FALSE) ) )","v":""},null,null,null,null,{"$f":"IF(TRIM(BH281)=\"\", \"\", IF(VLOOKUP(BH281,'Footnotes list'!$D$9:$E$58,2,FALSE)=0,\"\",VLOOKUP(BH281,'Footnotes list'!$D$9:$E$58,2,FALSE) ) )","v":""},null,null,null,null,{"$f":"IF(TRIM(BM281)=\"\", \"\", IF(VLOOKUP(BM281,'Footnotes list'!$D$9:$E$58,2,FALSE)=0,\"\",VLOOKUP(BM281,'Footnotes list'!$D$9:$E$58,2,FALSE) ) )","v":""},null,null,null,null,{"$f":"IF(TRIM(BR281)=\"\", \"\", IF(VLOOKUP(BR281,'Footnotes list'!$D$9:$E$58,2,FALSE)=0,\"\",VLOOKUP(BR281,'Footnotes list'!$D$9:$E$58,2,FALSE) ) )","v":""},null,null,null,null,{"$f":"IF(TRIM(BW281)=\"\", \"\", IF(VLOOKUP(BW281,'Footnotes list'!$D$9:$E$58,2,FALSE)=0,\"\",VLOOKUP(BW281,'Footnotes list'!$D$9:$E$58,2,FALSE) ) )","v":""},null,null,null,null,{"$f":"IF(TRIM(CB281)=\"\", \"\", IF(VLOOKUP(CB281,'Footnotes list'!$D$9:$E$58,2,FALSE)=0,\"\",VLOOKUP(CB281,'Footnotes list'!$D$9:$E$58,2,FALSE) ) )","v":""},null,null,null,null,{"$f":"IF(TRIM(CG281)=\"\", \"\", IF(VLOOKUP(CG281,'Footnotes list'!$D$9:$E$58,2,FALSE)=0,\"\",VLOOKUP(CG281,'Footnotes list'!$D$9:$E$58,2,FALSE) ) )","v":""},null,null,null,null,{"$f":"IF(TRIM(CL281)=\"\", \"\", IF(VLOOKUP(CL281,'Footnotes list'!$D$9:$E$58,2,FALSE)=0,\"\",VLOOKUP(CL281,'Footnotes list'!$D$9:$E$58,2,FALSE) ) )","v":""},null,null,null,null,{"$f":"IF(TRIM(CQ281)=\"\", \"\", IF(VLOOKUP(CQ281,'Footnotes list'!$D$9:$E$58,2,FALSE)=0,\"\",VLOOKUP(CQ281,'Footnotes list'!$D$9:$E$58,2,FALSE) ) )","v":""},null,null,null,null,{"$f":"IF(TRIM(CV281)=\"\", \"\", IF(VLOOKUP(CV281,'Footnotes list'!$D$9:$E$58,2,FALSE)=0,\"\",VLOOKUP(CV281,'Footnotes list'!$D$9:$E$58,2,FALSE) ) )","v":""},null,null,null,null,{"$f":"IF(TRIM(DA281)=\"\", \"\", IF(VLOOKUP(DA281,'Footnotes list'!$D$9:$E$58,2,FALSE)=0,\"\",VLOOKUP(DA281,'Footnotes list'!$D$9:$E$58,2,FALSE) ) )","v":""},null,null,null,null,{"$f":"IF(TRIM(DF281)=\"\", \"\", IF(VLOOKUP(DF281,'Footnotes list'!$D$9:$E$58,2,FALSE)=0,\"\",VLOOKUP(DF281,'Footnotes list'!$D$9:$E$58,2,FALSE) ) )","v":""},null,null,null,null,{"$f":"IF(TRIM(DK281)=\"\", \"\", IF(VLOOKUP(DK281,'Footnotes list'!$D$9:$E$58,2,FALSE)=0,\"\",VLOOKUP(DK281,'Footnotes list'!$D$9:$E$58,2,FALSE) ) )","v":""},null,null,null,null,{"$f":"IF(TRIM(DP281)=\"\", \"\", IF(VLOOKUP(DP281,'Footnotes list'!$D$9:$E$58,2,FALSE)=0,\"\",VLOOKUP(DP281,'Footnotes list'!$D$9:$E$58,2,FALSE) ) )","v":""},null,null,null,null,{"$f":"IF(TRIM(DU281)=\"\", \"\", IF(VLOOKUP(DU281,'Footnotes list'!$D$9:$E$58,2,FALSE)=0,\"\",VLOOKUP(DU281,'Footnotes list'!$D$9:$E$58,2,FALSE) ) )","v":""},null,null,null,null,{"$f":"IF(TRIM(DZ281)=\"\", \"\", IF(VLOOKUP(DZ281,'Footnotes list'!$D$9:$E$58,2,FALSE)=0,\"\",VLOOKUP(DZ281,'Footnotes list'!$D$9:$E$58,2,FALSE) ) )","v":""},null,null,null,null,{"$f":"IF(TRIM(EE281)=\"\", \"\", IF(VLOOKUP(EE281,'Footnotes list'!$D$9:$E$58,2,FALSE)=0,\"\",VLOOKUP(EE281,'Footnotes list'!$D$9:$E$58,2,FALSE) ) )","v":""},null,null,null,null,{"$f":"IF(TRIM(EJ281)=\"\", \"\", IF(VLOOKUP(EJ281,'Footnotes list'!$D$9:$E$58,2,FALSE)=0,\"\",VLOOKUP(EJ281,'Footnotes list'!$D$9:$E$58,2,FALSE) ) )","v":""},null,null,null,null,{"$f":"IF(TRIM(EO281)=\"\", \"\", IF(VLOOKUP(EO281,'Footnotes list'!$D$9:$E$58,2,FALSE)=0,\"\",VLOOKUP(EO281,'Footnotes list'!$D$9:$E$58,2,FALSE) ) )","v":""},null,null,null,null,{"$f":"IF(TRIM(ET281)=\"\", \"\", IF(VLOOKUP(ET281,'Footnotes list'!$D$9:$E$58,2,FALSE)=0,\"\",VLOOKUP(ET281,'Footnotes list'!$D$9:$E$58,2,FALSE) ) )","v":""},null,null,null,null,{"$f":"IF(TRIM(EY281)=\"\", \"\", IF(VLOOKUP(EY281,'Footnotes list'!$D$9:$E$58,2,FALSE)=0,\"\",VLOOKUP(EY281,'Footnotes list'!$D$9:$E$58,2,FALSE) ) )","v":""}]
[null,null,"R","ANC","ancillary activities",null,null,null,null,null,{"$f":"IF(TRIM(J282)=\"\", \"\", IF(VLOOKUP(J282,'Footnotes list'!$D$9:$E$58,2,FALSE)=0,\"\",VLOOKUP(J282,'Footnotes list'!$D$9:$E$58,2,FALSE) ) )","v":""},null,null,null,null,{"$f":"IF(TRIM(O282)=\"\", \"\", IF(VLOOKUP(O282,'Footnotes list'!$D$9:$E$58,2,FALSE)=0,\"\",VLOOKUP(O282,'Footnotes list'!$D$9:$E$58,2,FALSE) ) )","v":""},null,null,null,null,{"$f":"IF(TRIM(T282)=\"\", \"\", IF(VLOOKUP(T282,'Footnotes list'!$D$9:$E$58,2,FALSE)=0,\"\",VLOOKUP(T282,'Footnotes list'!$D$9:$E$58,2,FALSE) ) )","v":""},null,null,null,null,{"$f":"IF(TRIM(Y282)=\"\", \"\", IF(VLOOKUP(Y282,'Footnotes list'!$D$9:$E$58,2,FALSE)=0,\"\",VLOOKUP(Y282,'Footnotes list'!$D$9:$E$58,2,FALSE) ) )","v":""},null,null,null,null,{"$f":"IF(TRIM(AD282)=\"\", \"\", IF(VLOOKUP(AD282,'Footnotes list'!$D$9:$E$58,2,FALSE)=0,\"\",VLOOKUP(AD282,'Footnotes list'!$D$9:$E$58,2,FALSE) ) )","v":""},null,null,null,null,{"$f":"IF(TRIM(AI282)=\"\", \"\", IF(VLOOKUP(AI282,'Footnotes list'!$D$9:$E$58,2,FALSE)=0,\"\",VLOOKUP(AI282,'Footnotes list'!$D$9:$E$58,2,FALSE) ) )","v":""},null,null,null,null,{"$f":"IF(TRIM(AN282)=\"\", \"\", IF(VLOOKUP(AN282,'Footnotes list'!$D$9:$E$58,2,FALSE)=0,\"\",VLOOKUP(AN282,'Footnotes list'!$D$9:$E$58,2,FALSE) ) )","v":""},null,null,null,null,{"$f":"IF(TRIM(AS282)=\"\", \"\", IF(VLOOKUP(AS282,'Footnotes list'!$D$9:$E$58,2,FALSE)=0,\"\",VLOOKUP(AS282,'Footnotes list'!$D$9:$E$58,2,FALSE) ) )","v":""},null,null,null,null,{"$f":"IF(TRIM(AX282)=\"\", \"\", IF(VLOOKUP(AX282,'Footnotes list'!$D$9:$E$58,2,FALSE)=0,\"\",VLOOKUP(AX282,'Footnotes list'!$D$9:$E$58,2,FALSE) ) )","v":""},null,null,null,null,{"$f":"IF(TRIM(BC282)=\"\", \"\", IF(VLOOKUP(BC282,'Footnotes list'!$D$9:$E$58,2,FALSE)=0,\"\",VLOOKUP(BC282,'Footnotes list'!$D$9:$E$58,2,FALSE) ) )","v":""},null,null,null,null,{"$f":"IF(TRIM(BH282)=\"\", \"\", IF(VLOOKUP(BH282,'Footnotes list'!$D$9:$E$58,2,FALSE)=0,\"\",VLOOKUP(BH282,'Footnotes list'!$D$9:$E$58,2,FALSE) ) )","v":""},null,null,null,null,{"$f":"IF(TRIM(BM282)=\"\", \"\", IF(VLOOKUP(BM282,'Footnotes list'!$D$9:$E$58,2,FALSE)=0,\"\",VLOOKUP(BM282,'Footnotes list'!$D$9:$E$58,2,FALSE) ) )","v":""},null,null,null,null,{"$f":"IF(TRIM(BR282)=\"\", \"\", IF(VLOOKUP(BR282,'Footnotes list'!$D$9:$E$58,2,FALSE)=0,\"\",VLOOKUP(BR282,'Footnotes list'!$D$9:$E$58,2,FALSE) ) )","v":""},null,null,null,null,{"$f":"IF(TRIM(BW282)=\"\", \"\", IF(VLOOKUP(BW282,'Footnotes list'!$D$9:$E$58,2,FALSE)=0,\"\",VLOOKUP(BW282,'Footnotes list'!$D$9:$E$58,2,FALSE) ) )","v":""},null,null,null,null,{"$f":"IF(TRIM(CB282)=\"\", \"\", IF(VLOOKUP(CB282,'Footnotes list'!$D$9:$E$58,2,FALSE)=0,\"\",VLOOKUP(CB282,'Footnotes list'!$D$9:$E$58,2,FALSE) ) )","v":""},null,null,null,null,{"$f":"IF(TRIM(CG282)=\"\", \"\", IF(VLOOKUP(CG282,'Footnotes list'!$D$9:$E$58,2,FALSE)=0,\"\",VLOOKUP(CG282,'Footnotes list'!$D$9:$E$58,2,FALSE) ) )","v":""},null,null,null,null,{"$f":"IF(TRIM(CL282)=\"\", \"\", IF(VLOOKUP(CL282,'Footnotes list'!$D$9:$E$58,2,FALSE)=0,\"\",VLOOKUP(CL282,'Footnotes list'!$D$9:$E$58,2,FALSE) ) )","v":""},null,null,null,null,{"$f":"IF(TRIM(CQ282)=\"\", \"\", IF(VLOOKUP(CQ282,'Footnotes list'!$D$9:$E$58,2,FALSE)=0,\"\",VLOOKUP(CQ282,'Footnotes list'!$D$9:$E$58,2,FALSE) ) )","v":""},null,null,null,null,{"$f":"IF(TRIM(CV282)=\"\", \"\", IF(VLOOKUP(CV282,'Footnotes list'!$D$9:$E$58,2,FALSE)=0,\"\",VLOOKUP(CV282,'Footnotes list'!$D$9:$E$58,2,FALSE) ) )","v":""},null,null,null,null,{"$f":"IF(TRIM(DA282)=\"\", \"\", IF(VLOOKUP(DA282,'Footnotes list'!$D$9:$E$58,2,FALSE)=0,\"\",VLOOKUP(DA282,'Footnotes list'!$D$9:$E$58,2,FALSE) ) )","v":""},null,null,null,null,{"$f":"IF(TRIM(DF282)=\"\", \"\", IF(VLOOKUP(DF282,'Footnotes list'!$D$9:$E$58,2,FALSE)=0,\"\",VLOOKUP(DF282,'Footnotes list'!$D$9:$E$58,2,FALSE) ) )","v":""},null,null,null,null,{"$f":"IF(TRIM(DK282)=\"\", \"\", IF(VLOOKUP(DK282,'Footnotes list'!$D$9:$E$58,2,FALSE)=0,\"\",VLOOKUP(DK282,'Footnotes list'!$D$9:$E$58,2,FALSE) ) )","v":""},null,null,null,null,{"$f":"IF(TRIM(DP282)=\"\", \"\", IF(VLOOKUP(DP282,'Footnotes list'!$D$9:$E$58,2,FALSE)=0,\"\",VLOOKUP(DP282,'Footnotes list'!$D$9:$E$58,2,FALSE) ) )","v":""},null,null,null,null,{"$f":"IF(TRIM(DU282)=\"\", \"\", IF(VLOOKUP(DU282,'Footnotes list'!$D$9:$E$58,2,FALSE)=0,\"\",VLOOKUP(DU282,'Footnotes list'!$D$9:$E$58,2,FALSE) ) )","v":""},null,null,null,null,{"$f":"IF(TRIM(DZ282)=\"\", \"\", IF(VLOOKUP(DZ282,'Footnotes list'!$D$9:$E$58,2,FALSE)=0,\"\",VLOOKUP(DZ282,'Footnotes list'!$D$9:$E$58,2,FALSE) ) )","v":""},null,null,null,null,{"$f":"IF(TRIM(EE282)=\"\", \"\", IF(VLOOKUP(EE282,'Footnotes list'!$D$9:$E$58,2,FALSE)=0,\"\",VLOOKUP(EE282,'Footnotes list'!$D$9:$E$58,2,FALSE) ) )","v":""},null,null,null,null,{"$f":"IF(TRIM(EJ282)=\"\", \"\", IF(VLOOKUP(EJ282,'Footnotes list'!$D$9:$E$58,2,FALSE)=0,\"\",VLOOKUP(EJ282,'Footnotes list'!$D$9:$E$58,2,FALSE) ) )","v":""},null,null,null,null,{"$f":"IF(TRIM(EO282)=\"\", \"\", IF(VLOOKUP(EO282,'Footnotes list'!$D$9:$E$58,2,FALSE)=0,\"\",VLOOKUP(EO282,'Footnotes list'!$D$9:$E$58,2,FALSE) ) )","v":""},null,null,null,null,{"$f":"IF(TRIM(ET282)=\"\", \"\", IF(VLOOKUP(ET282,'Footnotes list'!$D$9:$E$58,2,FALSE)=0,\"\",VLOOKUP(ET282,'Footnotes list'!$D$9:$E$58,2,FALSE) ) )","v":""},null,null,null,null,{"$f":"IF(TRIM(EY282)=\"\", \"\", IF(VLOOKUP(EY282,'Footnotes list'!$D$9:$E$58,2,FALSE)=0,\"\",VLOOKUP(EY282,'Footnotes list'!$D$9:$E$58,2,FALSE) ) )","v":""}]
[null,null,"R","NMKT","non-market activities",null,null,null,null,null,{"$f":"IF(TRIM(J283)=\"\", \"\", IF(VLOOKUP(J283,'Footnotes list'!$D$9:$E$58,2,FALSE)=0,\"\",VLOOKUP(J283,'Footnotes list'!$D$9:$E$58,2,FALSE) ) )","v":""},null,null,null,null,{"$f":"IF(TRIM(O283)=\"\", \"\", IF(VLOOKUP(O283,'Footnotes list'!$D$9:$E$58,2,FALSE)=0,\"\",VLOOKUP(O283,'Footnotes list'!$D$9:$E$58,2,FALSE) ) )","v":""},null,null,null,null,{"$f":"IF(TRIM(T283)=\"\", \"\", IF(VLOOKUP(T283,'Footnotes list'!$D$9:$E$58,2,FALSE)=0,\"\",VLOOKUP(T283,'Footnotes list'!$D$9:$E$58,2,FALSE) ) )","v":""},null,null,null,null,{"$f":"IF(TRIM(Y283)=\"\", \"\", IF(VLOOKUP(Y283,'Footnotes list'!$D$9:$E$58,2,FALSE)=0,\"\",VLOOKUP(Y283,'Footnotes list'!$D$9:$E$58,2,FALSE) ) )","v":""},null,null,null,null,{"$f":"IF(TRIM(AD283)=\"\", \"\", IF(VLOOKUP(AD283,'Footnotes list'!$D$9:$E$58,2,FALSE)=0,\"\",VLOOKUP(AD283,'Footnotes list'!$D$9:$E$58,2,FALSE) ) )","v":""},null,null,null,null,{"$f":"IF(TRIM(AI283)=\"\", \"\", IF(VLOOKUP(AI283,'Footnotes list'!$D$9:$E$58,2,FALSE)=0,\"\",VLOOKUP(AI283,'Footnotes list'!$D$9:$E$58,2,FALSE) ) )","v":""},null,null,null,null,{"$f":"IF(TRIM(AN283)=\"\", \"\", IF(VLOOKUP(AN283,'Footnotes list'!$D$9:$E$58,2,FALSE)=0,\"\",VLOOKUP(AN283,'Footnotes list'!$D$9:$E$58,2,FALSE) ) )","v":""},null,null,null,null,{"$f":"IF(TRIM(AS283)=\"\", \"\", IF(VLOOKUP(AS283,'Footnotes list'!$D$9:$E$58,2,FALSE)=0,\"\",VLOOKUP(AS283,'Footnotes list'!$D$9:$E$58,2,FALSE) ) )","v":""},null,null,null,null,{"$f":"IF(TRIM(AX283)=\"\", \"\", IF(VLOOKUP(AX283,'Footnotes list'!$D$9:$E$58,2,FALSE)=0,\"\",VLOOKUP(AX283,'Footnotes list'!$D$9:$E$58,2,FALSE) ) )","v":""},null,null,null,null,{"$f":"IF(TRIM(BC283)=\"\", \"\", IF(VLOOKUP(BC283,'Footnotes list'!$D$9:$E$58,2,FALSE)=0,\"\",VLOOKUP(BC283,'Footnotes list'!$D$9:$E$58,2,FALSE) ) )","v":""},null,null,null,null,{"$f":"IF(TRIM(BH283)=\"\", \"\", IF(VLOOKUP(BH283,'Footnotes list'!$D$9:$E$58,2,FALSE)=0,\"\",VLOOKUP(BH283,'Footnotes list'!$D$9:$E$58,2,FALSE) ) )","v":""},null,null,null,null,{"$f":"IF(TRIM(BM283)=\"\", \"\", IF(VLOOKUP(BM283,'Footnotes list'!$D$9:$E$58,2,FALSE)=0,\"\",VLOOKUP(BM283,'Footnotes list'!$D$9:$E$58,2,FALSE) ) )","v":""},null,null,null,null,{"$f":"IF(TRIM(BR283)=\"\", \"\", IF(VLOOKUP(BR283,'Footnotes list'!$D$9:$E$58,2,FALSE)=0,\"\",VLOOKUP(BR283,'Footnotes list'!$D$9:$E$58,2,FALSE) ) )","v":""},null,null,null,null,{"$f":"IF(TRIM(BW283)=\"\", \"\", IF(VLOOKUP(BW283,'Footnotes list'!$D$9:$E$58,2,FALSE)=0,\"\",VLOOKUP(BW283,'Footnotes list'!$D$9:$E$58,2,FALSE) ) )","v":""},null,null,null,null,{"$f":"IF(TRIM(CB283)=\"\", \"\", IF(VLOOKUP(CB283,'Footnotes list'!$D$9:$E$58,2,FALSE)=0,\"\",VLOOKUP(CB283,'Footnotes list'!$D$9:$E$58,2,FALSE) ) )","v":""},null,null,null,null,{"$f":"IF(TRIM(CG283)=\"\", \"\", IF(VLOOKUP(CG283,'Footnotes list'!$D$9:$E$58,2,FALSE)=0,\"\",VLOOKUP(CG283,'Footnotes list'!$D$9:$E$58,2,FALSE) ) )","v":""},null,null,null,null,{"$f":"IF(TRIM(CL283)=\"\", \"\", IF(VLOOKUP(CL283,'Footnotes list'!$D$9:$E$58,2,FALSE)=0,\"\",VLOOKUP(CL283,'Footnotes list'!$D$9:$E$58,2,FALSE) ) )","v":""},null,null,null,null,{"$f":"IF(TRIM(CQ283)=\"\", \"\", IF(VLOOKUP(CQ283,'Footnotes list'!$D$9:$E$58,2,FALSE)=0,\"\",VLOOKUP(CQ283,'Footnotes list'!$D$9:$E$58,2,FALSE) ) )","v":""},null,null,null,null,{"$f":"IF(TRIM(CV283)=\"\", \"\", IF(VLOOKUP(CV283,'Footnotes list'!$D$9:$E$58,2,FALSE)=0,\"\",VLOOKUP(CV283,'Footnotes list'!$D$9:$E$58,2,FALSE) ) )","v":""},null,null,null,null,{"$f":"IF(TRIM(DA283)=\"\", \"\", IF(VLOOKUP(DA283,'Footnotes list'!$D$9:$E$58,2,FALSE)=0,\"\",VLOOKUP(DA283,'Footnotes list'!$D$9:$E$58,2,FALSE) ) )","v":""},null,null,null,null,{"$f":"IF(TRIM(DF283)=\"\", \"\", IF(VLOOKUP(DF283,'Footnotes list'!$D$9:$E$58,2,FALSE)=0,\"\",VLOOKUP(DF283,'Footnotes list'!$D$9:$E$58,2,FALSE) ) )","v":""},null,null,null,null,{"$f":"IF(TRIM(DK283)=\"\", \"\", IF(VLOOKUP(DK283,'Footnotes list'!$D$9:$E$58,2,FALSE)=0,\"\",VLOOKUP(DK283,'Footnotes list'!$D$9:$E$58,2,FALSE) ) )","v":""},null,null,null,null,{"$f":"IF(TRIM(DP283)=\"\", \"\", IF(VLOOKUP(DP283,'Footnotes list'!$D$9:$E$58,2,FALSE)=0,\"\",VLOOKUP(DP283,'Footnotes list'!$D$9:$E$58,2,FALSE) ) )","v":""},null,null,null,null,{"$f":"IF(TRIM(DU283)=\"\", \"\", IF(VLOOKUP(DU283,'Footnotes list'!$D$9:$E$58,2,FALSE)=0,\"\",VLOOKUP(DU283,'Footnotes list'!$D$9:$E$58,2,FALSE) ) )","v":""},null,null,null,null,{"$f":"IF(TRIM(DZ283)=\"\", \"\", IF(VLOOKUP(DZ283,'Footnotes list'!$D$9:$E$58,2,FALSE)=0,\"\",VLOOKUP(DZ283,'Footnotes list'!$D$9:$E$58,2,FALSE) ) )","v":""},null,null,null,null,{"$f":"IF(TRIM(EE283)=\"\", \"\", IF(VLOOKUP(EE283,'Footnotes list'!$D$9:$E$58,2,FALSE)=0,\"\",VLOOKUP(EE283,'Footnotes list'!$D$9:$E$58,2,FALSE) ) )","v":""},null,null,null,null,{"$f":"IF(TRIM(EJ283)=\"\", \"\", IF(VLOOKUP(EJ283,'Footnotes list'!$D$9:$E$58,2,FALSE)=0,\"\",VLOOKUP(EJ283,'Footnotes list'!$D$9:$E$58,2,FALSE) ) )","v":""},null,null,null,null,{"$f":"IF(TRIM(EO283)=\"\", \"\", IF(VLOOKUP(EO283,'Footnotes list'!$D$9:$E$58,2,FALSE)=0,\"\",VLOOKUP(EO283,'Footnotes list'!$D$9:$E$58,2,FALSE) ) )","v":""},null,null,null,null,{"$f":"IF(TRIM(ET283)=\"\", \"\", IF(VLOOKUP(ET283,'Footnotes list'!$D$9:$E$58,2,FALSE)=0,\"\",VLOOKUP(ET283,'Footnotes list'!$D$9:$E$58,2,FALSE) ) )","v":""},null,null,null,null,{"$f":"IF(TRIM(EY283)=\"\", \"\", IF(VLOOKUP(EY283,'Footnotes list'!$D$9:$E$58,2,FALSE)=0,\"\",VLOOKUP(EY283,'Footnotes list'!$D$9:$E$58,2,FALSE) ) )","v":""}]
[null,null,"R","OWN_USE","activities for own final use",null,null,null,null,null,{"$f":"IF(TRIM(J284)=\"\", \"\", IF(VLOOKUP(J284,'Footnotes list'!$D$9:$E$58,2,FALSE)=0,\"\",VLOOKUP(J284,'Footnotes list'!$D$9:$E$58,2,FALSE) ) )","v":""},null,null,null,null,{"$f":"IF(TRIM(O284)=\"\", \"\", IF(VLOOKUP(O284,'Footnotes list'!$D$9:$E$58,2,FALSE)=0,\"\",VLOOKUP(O284,'Footnotes list'!$D$9:$E$58,2,FALSE) ) )","v":""},null,null,null,null,{"$f":"IF(TRIM(T284)=\"\", \"\", IF(VLOOKUP(T284,'Footnotes list'!$D$9:$E$58,2,FALSE)=0,\"\",VLOOKUP(T284,'Footnotes list'!$D$9:$E$58,2,FALSE) ) )","v":""},null,null,null,null,{"$f":"IF(TRIM(Y284)=\"\", \"\", IF(VLOOKUP(Y284,'Footnotes list'!$D$9:$E$58,2,FALSE)=0,\"\",VLOOKUP(Y284,'Footnotes list'!$D$9:$E$58,2,FALSE) ) )","v":""},null,null,null,null,{"$f":"IF(TRIM(AD284)=\"\", \"\", IF(VLOOKUP(AD284,'Footnotes list'!$D$9:$E$58,2,FALSE)=0,\"\",VLOOKUP(AD284,'Footnotes list'!$D$9:$E$58,2,FALSE) ) )","v":""},null,null,null,null,{"$f":"IF(TRIM(AI284)=\"\", \"\", IF(VLOOKUP(AI284,'Footnotes list'!$D$9:$E$58,2,FALSE)=0,\"\",VLOOKUP(AI284,'Footnotes list'!$D$9:$E$58,2,FALSE) ) )","v":""},null,null,null,null,{"$f":"IF(TRIM(AN284)=\"\", \"\", IF(VLOOKUP(AN284,'Footnotes list'!$D$9:$E$58,2,FALSE)=0,\"\",VLOOKUP(AN284,'Footnotes list'!$D$9:$E$58,2,FALSE) ) )","v":""},null,null,null,null,{"$f":"IF(TRIM(AS284)=\"\", \"\", IF(VLOOKUP(AS284,'Footnotes list'!$D$9:$E$58,2,FALSE)=0,\"\",VLOOKUP(AS284,'Footnotes list'!$D$9:$E$58,2,FALSE) ) )","v":""},null,null,null,null,{"$f":"IF(TRIM(AX284)=\"\", \"\", IF(VLOOKUP(AX284,'Footnotes list'!$D$9:$E$58,2,FALSE)=0,\"\",VLOOKUP(AX284,'Footnotes list'!$D$9:$E$58,2,FALSE) ) )","v":""},null,null,null,null,{"$f":"IF(TRIM(BC284)=\"\", \"\", IF(VLOOKUP(BC284,'Footnotes list'!$D$9:$E$58,2,FALSE)=0,\"\",VLOOKUP(BC284,'Footnotes list'!$D$9:$E$58,2,FALSE) ) )","v":""},null,null,null,null,{"$f":"IF(TRIM(BH284)=\"\", \"\", IF(VLOOKUP(BH284,'Footnotes list'!$D$9:$E$58,2,FALSE)=0,\"\",VLOOKUP(BH284,'Footnotes list'!$D$9:$E$58,2,FALSE) ) )","v":""},null,null,null,null,{"$f":"IF(TRIM(BM284)=\"\", \"\", IF(VLOOKUP(BM284,'Footnotes list'!$D$9:$E$58,2,FALSE)=0,\"\",VLOOKUP(BM284,'Footnotes list'!$D$9:$E$58,2,FALSE) ) )","v":""},null,null,null,null,{"$f":"IF(TRIM(BR284)=\"\", \"\", IF(VLOOKUP(BR284,'Footnotes list'!$D$9:$E$58,2,FALSE)=0,\"\",VLOOKUP(BR284,'Footnotes list'!$D$9:$E$58,2,FALSE) ) )","v":""},null,null,null,null,{"$f":"IF(TRIM(BW284)=\"\", \"\", IF(VLOOKUP(BW284,'Footnotes list'!$D$9:$E$58,2,FALSE)=0,\"\",VLOOKUP(BW284,'Footnotes list'!$D$9:$E$58,2,FALSE) ) )","v":""},null,null,null,null,{"$f":"IF(TRIM(CB284)=\"\", \"\", IF(VLOOKUP(CB284,'Footnotes list'!$D$9:$E$58,2,FALSE)=0,\"\",VLOOKUP(CB284,'Footnotes list'!$D$9:$E$58,2,FALSE) ) )","v":""},null,null,null,null,{"$f":"IF(TRIM(CG284)=\"\", \"\", IF(VLOOKUP(CG284,'Footnotes list'!$D$9:$E$58,2,FALSE)=0,\"\",VLOOKUP(CG284,'Footnotes list'!$D$9:$E$58,2,FALSE) ) )","v":""},null,null,null,null,{"$f":"IF(TRIM(CL284)=\"\", \"\", IF(VLOOKUP(CL284,'Footnotes list'!$D$9:$E$58,2,FALSE)=0,\"\",VLOOKUP(CL284,'Footnotes list'!$D$9:$E$58,2,FALSE) ) )","v":""},null,null,null,null,{"$f":"IF(TRIM(CQ284)=\"\", \"\", IF(VLOOKUP(CQ284,'Footnotes list'!$D$9:$E$58,2,FALSE)=0,\"\",VLOOKUP(CQ284,'Footnotes list'!$D$9:$E$58,2,FALSE) ) )","v":""},null,null,null,null,{"$f":"IF(TRIM(CV284)=\"\", \"\", IF(VLOOKUP(CV284,'Footnotes list'!$D$9:$E$58,2,FALSE)=0,\"\",VLOOKUP(CV284,'Footnotes list'!$D$9:$E$58,2,FALSE) ) )","v":""},null,null,null,null,{"$f":"IF(TRIM(DA284)=\"\", \"\", IF(VLOOKUP(DA284,'Footnotes list'!$D$9:$E$58,2,FALSE)=0,\"\",VLOOKUP(DA284,'Footnotes list'!$D$9:$E$58,2,FALSE) ) )","v":""},null,null,null,null,{"$f":"IF(TRIM(DF284)=\"\", \"\", IF(VLOOKUP(DF284,'Footnotes list'!$D$9:$E$58,2,FALSE)=0,\"\",VLOOKUP(DF284,'Footnotes list'!$D$9:$E$58,2,FALSE) ) )","v":""},null,null,null,null,{"$f":"IF(TRIM(DK284)=\"\", \"\", IF(VLOOKUP(DK284,'Footnotes list'!$D$9:$E$58,2,FALSE)=0,\"\",VLOOKUP(DK284,'Footnotes list'!$D$9:$E$58,2,FALSE) ) )","v":""},null,null,null,null,{"$f":"IF(TRIM(DP284)=\"\", \"\", IF(VLOOKUP(DP284,'Footnotes list'!$D$9:$E$58,2,FALSE)=0,\"\",VLOOKUP(DP284,'Footnotes list'!$D$9:$E$58,2,FALSE) ) )","v":""},null,null,null,null,{"$f":"IF(TRIM(DU284)=\"\", \"\", IF(VLOOKUP(DU284,'Footnotes list'!$D$9:$E$58,2,FALSE)=0,\"\",VLOOKUP(DU284,'Footnotes list'!$D$9:$E$58,2,FALSE) ) )","v":""},null,null,null,null,{"$f":"IF(TRIM(DZ284)=\"\", \"\", IF(VLOOKUP(DZ284,'Footnotes list'!$D$9:$E$58,2,FALSE)=0,\"\",VLOOKUP(DZ284,'Footnotes list'!$D$9:$E$58,2,FALSE) ) )","v":""},null,null,null,null,{"$f":"IF(TRIM(EE284)=\"\", \"\", IF(VLOOKUP(EE284,'Footnotes list'!$D$9:$E$58,2,FALSE)=0,\"\",VLOOKUP(EE284,'Footnotes list'!$D$9:$E$58,2,FALSE) ) )","v":""},null,null,null,null,{"$f":"IF(TRIM(EJ284)=\"\", \"\", IF(VLOOKUP(EJ284,'Footnotes list'!$D$9:$E$58,2,FALSE)=0,\"\",VLOOKUP(EJ284,'Footnotes list'!$D$9:$E$58,2,FALSE) ) )","v":""},null,null,null,null,{"$f":"IF(TRIM(EO284)=\"\", \"\", IF(VLOOKUP(EO284,'Footnotes list'!$D$9:$E$58,2,FALSE)=0,\"\",VLOOKUP(EO284,'Footnotes list'!$D$9:$E$58,2,FALSE) ) )","v":""},null,null,null,null,{"$f":"IF(TRIM(ET284)=\"\", \"\", IF(VLOOKUP(ET284,'Footnotes list'!$D$9:$E$58,2,FALSE)=0,\"\",VLOOKUP(ET284,'Footnotes list'!$D$9:$E$58,2,FALSE) ) )","v":""},null,null,null,null,{"$f":"IF(TRIM(EY284)=\"\", \"\", IF(VLOOKUP(EY284,'Footnotes list'!$D$9:$E$58,2,FALSE)=0,\"\",VLOOKUP(EY284,'Footnotes list'!$D$9:$E$58,2,FALSE) ) )","v":""}]
[null,null,"R","MKT","market activities, including:",null,null,null,null,null,{"$f":"IF(TRIM(J285)=\"\", \"\", IF(VLOOKUP(J285,'Footnotes list'!$D$9:$E$58,2,FALSE)=0,\"\",VLOOKUP(J285,'Footnotes list'!$D$9:$E$58,2,FALSE) ) )","v":""},null,null,null,null,{"$f":"IF(TRIM(O285)=\"\", \"\", IF(VLOOKUP(O285,'Footnotes list'!$D$9:$E$58,2,FALSE)=0,\"\",VLOOKUP(O285,'Footnotes list'!$D$9:$E$58,2,FALSE) ) )","v":""},null,null,null,null,{"$f":"IF(TRIM(T285)=\"\", \"\", IF(VLOOKUP(T285,'Footnotes list'!$D$9:$E$58,2,FALSE)=0,\"\",VLOOKUP(T285,'Footnotes list'!$D$9:$E$58,2,FALSE) ) )","v":""},null,null,null,null,{"$f":"IF(TRIM(Y285)=\"\", \"\", IF(VLOOKUP(Y285,'Footnotes list'!$D$9:$E$58,2,FALSE)=0,\"\",VLOOKUP(Y285,'Footnotes list'!$D$9:$E$58,2,FALSE) ) )","v":""},null,null,null,null,{"$f":"IF(TRIM(AD285)=\"\", \"\", IF(VLOOKUP(AD285,'Footnotes list'!$D$9:$E$58,2,FALSE)=0,\"\",VLOOKUP(AD285,'Footnotes list'!$D$9:$E$58,2,FALSE) ) )","v":""},null,null,null,null,{"$f":"IF(TRIM(AI285)=\"\", \"\", IF(VLOOKUP(AI285,'Footnotes list'!$D$9:$E$58,2,FALSE)=0,\"\",VLOOKUP(AI285,'Footnotes list'!$D$9:$E$58,2,FALSE) ) )","v":""},null,null,null,null,{"$f":"IF(TRIM(AN285)=\"\", \"\", IF(VLOOKUP(AN285,'Footnotes list'!$D$9:$E$58,2,FALSE)=0,\"\",VLOOKUP(AN285,'Footnotes list'!$D$9:$E$58,2,FALSE) ) )","v":""},null,null,null,null,{"$f":"IF(TRIM(AS285)=\"\", \"\", IF(VLOOKUP(AS285,'Footnotes list'!$D$9:$E$58,2,FALSE)=0,\"\",VLOOKUP(AS285,'Footnotes list'!$D$9:$E$58,2,FALSE) ) )","v":""},null,null,null,null,{"$f":"IF(TRIM(AX285)=\"\", \"\", IF(VLOOKUP(AX285,'Footnotes list'!$D$9:$E$58,2,FALSE)=0,\"\",VLOOKUP(AX285,'Footnotes list'!$D$9:$E$58,2,FALSE) ) )","v":""},null,null,null,null,{"$f":"IF(TRIM(BC285)=\"\", \"\", IF(VLOOKUP(BC285,'Footnotes list'!$D$9:$E$58,2,FALSE)=0,\"\",VLOOKUP(BC285,'Footnotes list'!$D$9:$E$58,2,FALSE) ) )","v":""},null,null,null,null,{"$f":"IF(TRIM(BH285)=\"\", \"\", IF(VLOOKUP(BH285,'Footnotes list'!$D$9:$E$58,2,FALSE)=0,\"\",VLOOKUP(BH285,'Footnotes list'!$D$9:$E$58,2,FALSE) ) )","v":""},null,null,null,null,{"$f":"IF(TRIM(BM285)=\"\", \"\", IF(VLOOKUP(BM285,'Footnotes list'!$D$9:$E$58,2,FALSE)=0,\"\",VLOOKUP(BM285,'Footnotes list'!$D$9:$E$58,2,FALSE) ) )","v":""},null,null,null,null,{"$f":"IF(TRIM(BR285)=\"\", \"\", IF(VLOOKUP(BR285,'Footnotes list'!$D$9:$E$58,2,FALSE)=0,\"\",VLOOKUP(BR285,'Footnotes list'!$D$9:$E$58,2,FALSE) ) )","v":""},null,null,null,null,{"$f":"IF(TRIM(BW285)=\"\", \"\", IF(VLOOKUP(BW285,'Footnotes list'!$D$9:$E$58,2,FALSE)=0,\"\",VLOOKUP(BW285,'Footnotes list'!$D$9:$E$58,2,FALSE) ) )","v":""},null,null,null,null,{"$f":"IF(TRIM(CB285)=\"\", \"\", IF(VLOOKUP(CB285,'Footnotes list'!$D$9:$E$58,2,FALSE)=0,\"\",VLOOKUP(CB285,'Footnotes list'!$D$9:$E$58,2,FALSE) ) )","v":""},null,null,null,null,{"$f":"IF(TRIM(CG285)=\"\", \"\", IF(VLOOKUP(CG285,'Footnotes list'!$D$9:$E$58,2,FALSE)=0,\"\",VLOOKUP(CG285,'Footnotes list'!$D$9:$E$58,2,FALSE) ) )","v":""},null,null,null,null,{"$f":"IF(TRIM(CL285)=\"\", \"\", IF(VLOOKUP(CL285,'Footnotes list'!$D$9:$E$58,2,FALSE)=0,\"\",VLOOKUP(CL285,'Footnotes list'!$D$9:$E$58,2,FALSE) ) )","v":""},null,null,null,null,{"$f":"IF(TRIM(CQ285)=\"\", \"\", IF(VLOOKUP(CQ285,'Footnotes list'!$D$9:$E$58,2,FALSE)=0,\"\",VLOOKUP(CQ285,'Footnotes list'!$D$9:$E$58,2,FALSE) ) )","v":""},null,null,null,null,{"$f":"IF(TRIM(CV285)=\"\", \"\", IF(VLOOKUP(CV285,'Footnotes list'!$D$9:$E$58,2,FALSE)=0,\"\",VLOOKUP(CV285,'Footnotes list'!$D$9:$E$58,2,FALSE) ) )","v":""},null,null,null,null,{"$f":"IF(TRIM(DA285)=\"\", \"\", IF(VLOOKUP(DA285,'Footnotes list'!$D$9:$E$58,2,FALSE)=0,\"\",VLOOKUP(DA285,'Footnotes list'!$D$9:$E$58,2,FALSE) ) )","v":""},null,null,null,null,{"$f":"IF(TRIM(DF285)=\"\", \"\", IF(VLOOKUP(DF285,'Footnotes list'!$D$9:$E$58,2,FALSE)=0,\"\",VLOOKUP(DF285,'Footnotes list'!$D$9:$E$58,2,FALSE) ) )","v":""},null,null,null,null,{"$f":"IF(TRIM(DK285)=\"\", \"\", IF(VLOOKUP(DK285,'Footnotes list'!$D$9:$E$58,2,FALSE)=0,\"\",VLOOKUP(DK285,'Footnotes list'!$D$9:$E$58,2,FALSE) ) )","v":""},null,null,null,null,{"$f":"IF(TRIM(DP285)=\"\", \"\", IF(VLOOKUP(DP285,'Footnotes list'!$D$9:$E$58,2,FALSE)=0,\"\",VLOOKUP(DP285,'Footnotes list'!$D$9:$E$58,2,FALSE) ) )","v":""},null,null,null,null,{"$f":"IF(TRIM(DU285)=\"\", \"\", IF(VLOOKUP(DU285,'Footnotes list'!$D$9:$E$58,2,FALSE)=0,\"\",VLOOKUP(DU285,'Footnotes list'!$D$9:$E$58,2,FALSE) ) )","v":""},null,null,null,null,{"$f":"IF(TRIM(DZ285)=\"\", \"\", IF(VLOOKUP(DZ285,'Footnotes list'!$D$9:$E$58,2,FALSE)=0,\"\",VLOOKUP(DZ285,'Footnotes list'!$D$9:$E$58,2,FALSE) ) )","v":""},null,null,null,null,{"$f":"IF(TRIM(EE285)=\"\", \"\", IF(VLOOKUP(EE285,'Footnotes list'!$D$9:$E$58,2,FALSE)=0,\"\",VLOOKUP(EE285,'Footnotes list'!$D$9:$E$58,2,FALSE) ) )","v":""},null,null,null,null,{"$f":"IF(TRIM(EJ285)=\"\", \"\", IF(VLOOKUP(EJ285,'Footnotes list'!$D$9:$E$58,2,FALSE)=0,\"\",VLOOKUP(EJ285,'Footnotes list'!$D$9:$E$58,2,FALSE) ) )","v":""},null,null,null,null,{"$f":"IF(TRIM(EO285)=\"\", \"\", IF(VLOOKUP(EO285,'Footnotes list'!$D$9:$E$58,2,FALSE)=0,\"\",VLOOKUP(EO285,'Footnotes list'!$D$9:$E$58,2,FALSE) ) )","v":""},null,null,null,null,{"$f":"IF(TRIM(ET285)=\"\", \"\", IF(VLOOKUP(ET285,'Footnotes list'!$D$9:$E$58,2,FALSE)=0,\"\",VLOOKUP(ET285,'Footnotes list'!$D$9:$E$58,2,FALSE) ) )","v":""},null,null,null,null,{"$f":"IF(TRIM(EY285)=\"\", \"\", IF(VLOOKUP(EY285,'Footnotes list'!$D$9:$E$58,2,FALSE)=0,\"\",VLOOKUP(EY285,'Footnotes list'!$D$9:$E$58,2,FALSE) ) )","v":""}]
[null,null,"R","ES_CS","environmental specific services",null,null,null,null,null,{"$f":"IF(TRIM(J286)=\"\", \"\", IF(VLOOKUP(J286,'Footnotes list'!$D$9:$E$58,2,FALSE)=0,\"\",VLOOKUP(J286,'Footnotes list'!$D$9:$E$58,2,FALSE) ) )","v":""},null,null,null,null,{"$f":"IF(TRIM(O286)=\"\", \"\", IF(VLOOKUP(O286,'Footnotes list'!$D$9:$E$58,2,FALSE)=0,\"\",VLOOKUP(O286,'Footnotes list'!$D$9:$E$58,2,FALSE) ) )","v":""},null,null,null,null,{"$f":"IF(TRIM(T286)=\"\", \"\", IF(VLOOKUP(T286,'Footnotes list'!$D$9:$E$58,2,FALSE)=0,\"\",VLOOKUP(T286,'Footnotes list'!$D$9:$E$58,2,FALSE) ) )","v":""},null,null,null,null,{"$f":"IF(TRIM(Y286)=\"\", \"\", IF(VLOOKUP(Y286,'Footnotes list'!$D$9:$E$58,2,FALSE)=0,\"\",VLOOKUP(Y286,'Footnotes list'!$D$9:$E$58,2,FALSE) ) )","v":""},null,null,null,null,{"$f":"IF(TRIM(AD286)=\"\", \"\", IF(VLOOKUP(AD286,'Footnotes list'!$D$9:$E$58,2,FALSE)=0,\"\",VLOOKUP(AD286,'Footnotes list'!$D$9:$E$58,2,FALSE) ) )","v":""},null,null,null,null,{"$f":"IF(TRIM(AI286)=\"\", \"\", IF(VLOOKUP(AI286,'Footnotes list'!$D$9:$E$58,2,FALSE)=0,\"\",VLOOKUP(AI286,'Footnotes list'!$D$9:$E$58,2,FALSE) ) )","v":""},null,null,null,null,{"$f":"IF(TRIM(AN286)=\"\", \"\", IF(VLOOKUP(AN286,'Footnotes list'!$D$9:$E$58,2,FALSE)=0,\"\",VLOOKUP(AN286,'Footnotes list'!$D$9:$E$58,2,FALSE) ) )","v":""},null,null,null,null,{"$f":"IF(TRIM(AS286)=\"\", \"\", IF(VLOOKUP(AS286,'Footnotes list'!$D$9:$E$58,2,FALSE)=0,\"\",VLOOKUP(AS286,'Footnotes list'!$D$9:$E$58,2,FALSE) ) )","v":""},null,null,null,null,{"$f":"IF(TRIM(AX286)=\"\", \"\", IF(VLOOKUP(AX286,'Footnotes list'!$D$9:$E$58,2,FALSE)=0,\"\",VLOOKUP(AX286,'Footnotes list'!$D$9:$E$58,2,FALSE) ) )","v":""},null,null,null,null,{"$f":"IF(TRIM(BC286)=\"\", \"\", IF(VLOOKUP(BC286,'Footnotes list'!$D$9:$E$58,2,FALSE)=0,\"\",VLOOKUP(BC286,'Footnotes list'!$D$9:$E$58,2,FALSE) ) )","v":""},null,null,null,null,{"$f":"IF(TRIM(BH286)=\"\", \"\", IF(VLOOKUP(BH286,'Footnotes list'!$D$9:$E$58,2,FALSE)=0,\"\",VLOOKUP(BH286,'Footnotes list'!$D$9:$E$58,2,FALSE) ) )","v":""},null,null,null,null,{"$f":"IF(TRIM(BM286)=\"\", \"\", IF(VLOOKUP(BM286,'Footnotes list'!$D$9:$E$58,2,FALSE)=0,\"\",VLOOKUP(BM286,'Footnotes list'!$D$9:$E$58,2,FALSE) ) )","v":""},null,null,null,null,{"$f":"IF(TRIM(BR286)=\"\", \"\", IF(VLOOKUP(BR286,'Footnotes list'!$D$9:$E$58,2,FALSE)=0,\"\",VLOOKUP(BR286,'Footnotes list'!$D$9:$E$58,2,FALSE) ) )","v":""},null,null,null,null,{"$f":"IF(TRIM(BW286)=\"\", \"\", IF(VLOOKUP(BW286,'Footnotes list'!$D$9:$E$58,2,FALSE)=0,\"\",VLOOKUP(BW286,'Footnotes list'!$D$9:$E$58,2,FALSE) ) )","v":""},null,null,null,null,{"$f":"IF(TRIM(CB286)=\"\", \"\", IF(VLOOKUP(CB286,'Footnotes list'!$D$9:$E$58,2,FALSE)=0,\"\",VLOOKUP(CB286,'Footnotes list'!$D$9:$E$58,2,FALSE) ) )","v":""},null,null,null,null,{"$f":"IF(TRIM(CG286)=\"\", \"\", IF(VLOOKUP(CG286,'Footnotes list'!$D$9:$E$58,2,FALSE)=0,\"\",VLOOKUP(CG286,'Footnotes list'!$D$9:$E$58,2,FALSE) ) )","v":""},null,null,null,null,{"$f":"IF(TRIM(CL286)=\"\", \"\", IF(VLOOKUP(CL286,'Footnotes list'!$D$9:$E$58,2,FALSE)=0,\"\",VLOOKUP(CL286,'Footnotes list'!$D$9:$E$58,2,FALSE) ) )","v":""},null,null,null,null,{"$f":"IF(TRIM(CQ286)=\"\", \"\", IF(VLOOKUP(CQ286,'Footnotes list'!$D$9:$E$58,2,FALSE)=0,\"\",VLOOKUP(CQ286,'Footnotes list'!$D$9:$E$58,2,FALSE) ) )","v":""},null,null,null,null,{"$f":"IF(TRIM(CV286)=\"\", \"\", IF(VLOOKUP(CV286,'Footnotes list'!$D$9:$E$58,2,FALSE)=0,\"\",VLOOKUP(CV286,'Footnotes list'!$D$9:$E$58,2,FALSE) ) )","v":""},null,null,null,null,{"$f":"IF(TRIM(DA286)=\"\", \"\", IF(VLOOKUP(DA286,'Footnotes list'!$D$9:$E$58,2,FALSE)=0,\"\",VLOOKUP(DA286,'Footnotes list'!$D$9:$E$58,2,FALSE) ) )","v":""},null,null,null,null,{"$f":"IF(TRIM(DF286)=\"\", \"\", IF(VLOOKUP(DF286,'Footnotes list'!$D$9:$E$58,2,FALSE)=0,\"\",VLOOKUP(DF286,'Footnotes list'!$D$9:$E$58,2,FALSE) ) )","v":""},null,null,null,null,{"$f":"IF(TRIM(DK286)=\"\", \"\", IF(VLOOKUP(DK286,'Footnotes list'!$D$9:$E$58,2,FALSE)=0,\"\",VLOOKUP(DK286,'Footnotes list'!$D$9:$E$58,2,FALSE) ) )","v":""},null,null,null,null,{"$f":"IF(TRIM(DP286)=\"\", \"\", IF(VLOOKUP(DP286,'Footnotes list'!$D$9:$E$58,2,FALSE)=0,\"\",VLOOKUP(DP286,'Footnotes list'!$D$9:$E$58,2,FALSE) ) )","v":""},null,null,null,null,{"$f":"IF(TRIM(DU286)=\"\", \"\", IF(VLOOKUP(DU286,'Footnotes list'!$D$9:$E$58,2,FALSE)=0,\"\",VLOOKUP(DU286,'Footnotes list'!$D$9:$E$58,2,FALSE) ) )","v":""},null,null,null,null,{"$f":"IF(TRIM(DZ286)=\"\", \"\", IF(VLOOKUP(DZ286,'Footnotes list'!$D$9:$E$58,2,FALSE)=0,\"\",VLOOKUP(DZ286,'Footnotes list'!$D$9:$E$58,2,FALSE) ) )","v":""},null,null,null,null,{"$f":"IF(TRIM(EE286)=\"\", \"\", IF(VLOOKUP(EE286,'Footnotes list'!$D$9:$E$58,2,FALSE)=0,\"\",VLOOKUP(EE286,'Footnotes list'!$D$9:$E$58,2,FALSE) ) )","v":""},null,null,null,null,{"$f":"IF(TRIM(EJ286)=\"\", \"\", IF(VLOOKUP(EJ286,'Footnotes list'!$D$9:$E$58,2,FALSE)=0,\"\",VLOOKUP(EJ286,'Footnotes list'!$D$9:$E$58,2,FALSE) ) )","v":""},null,null,null,null,{"$f":"IF(TRIM(EO286)=\"\", \"\", IF(VLOOKUP(EO286,'Footnotes list'!$D$9:$E$58,2,FALSE)=0,\"\",VLOOKUP(EO286,'Footnotes list'!$D$9:$E$58,2,FALSE) ) )","v":""},null,null,null,null,{"$f":"IF(TRIM(ET286)=\"\", \"\", IF(VLOOKUP(ET286,'Footnotes list'!$D$9:$E$58,2,FALSE)=0,\"\",VLOOKUP(ET286,'Footnotes list'!$D$9:$E$58,2,FALSE) ) )","v":""},null,null,null,null,{"$f":"IF(TRIM(EY286)=\"\", \"\", IF(VLOOKUP(EY286,'Footnotes list'!$D$9:$E$58,2,FALSE)=0,\"\",VLOOKUP(EY286,'Footnotes list'!$D$9:$E$58,2,FALSE) ) )","v":""}]
[null,null,"R","C_REP","cleaner and resource efficient products",null,null,null,null,null,{"$f":"IF(TRIM(J287)=\"\", \"\", IF(VLOOKUP(J287,'Footnotes list'!$D$9:$E$58,2,FALSE)=0,\"\",VLOOKUP(J287,'Footnotes list'!$D$9:$E$58,2,FALSE) ) )","v":""},null,null,null,null,{"$f":"IF(TRIM(O287)=\"\", \"\", IF(VLOOKUP(O287,'Footnotes list'!$D$9:$E$58,2,FALSE)=0,\"\",VLOOKUP(O287,'Footnotes list'!$D$9:$E$58,2,FALSE) ) )","v":""},null,null,null,null,{"$f":"IF(TRIM(T287)=\"\", \"\", IF(VLOOKUP(T287,'Footnotes list'!$D$9:$E$58,2,FALSE)=0,\"\",VLOOKUP(T287,'Footnotes list'!$D$9:$E$58,2,FALSE) ) )","v":""},null,null,null,null,{"$f":"IF(TRIM(Y287)=\"\", \"\", IF(VLOOKUP(Y287,'Footnotes list'!$D$9:$E$58,2,FALSE)=0,\"\",VLOOKUP(Y287,'Footnotes list'!$D$9:$E$58,2,FALSE) ) )","v":""},null,null,null,null,{"$f":"IF(TRIM(AD287)=\"\", \"\", IF(VLOOKUP(AD287,'Footnotes list'!$D$9:$E$58,2,FALSE)=0,\"\",VLOOKUP(AD287,'Footnotes list'!$D$9:$E$58,2,FALSE) ) )","v":""},null,null,null,null,{"$f":"IF(TRIM(AI287)=\"\", \"\", IF(VLOOKUP(AI287,'Footnotes list'!$D$9:$E$58,2,FALSE)=0,\"\",VLOOKUP(AI287,'Footnotes list'!$D$9:$E$58,2,FALSE) ) )","v":""},null,null,null,null,{"$f":"IF(TRIM(AN287)=\"\", \"\", IF(VLOOKUP(AN287,'Footnotes list'!$D$9:$E$58,2,FALSE)=0,\"\",VLOOKUP(AN287,'Footnotes list'!$D$9:$E$58,2,FALSE) ) )","v":""},null,null,null,null,{"$f":"IF(TRIM(AS287)=\"\", \"\", IF(VLOOKUP(AS287,'Footnotes list'!$D$9:$E$58,2,FALSE)=0,\"\",VLOOKUP(AS287,'Footnotes list'!$D$9:$E$58,2,FALSE) ) )","v":""},null,null,null,null,{"$f":"IF(TRIM(AX287)=\"\", \"\", IF(VLOOKUP(AX287,'Footnotes list'!$D$9:$E$58,2,FALSE)=0,\"\",VLOOKUP(AX287,'Footnotes list'!$D$9:$E$58,2,FALSE) ) )","v":""},null,null,null,null,{"$f":"IF(TRIM(BC287)=\"\", \"\", IF(VLOOKUP(BC287,'Footnotes list'!$D$9:$E$58,2,FALSE)=0,\"\",VLOOKUP(BC287,'Footnotes list'!$D$9:$E$58,2,FALSE) ) )","v":""},null,null,null,null,{"$f":"IF(TRIM(BH287)=\"\", \"\", IF(VLOOKUP(BH287,'Footnotes list'!$D$9:$E$58,2,FALSE)=0,\"\",VLOOKUP(BH287,'Footnotes list'!$D$9:$E$58,2,FALSE) ) )","v":""},null,null,null,null,{"$f":"IF(TRIM(BM287)=\"\", \"\", IF(VLOOKUP(BM287,'Footnotes list'!$D$9:$E$58,2,FALSE)=0,\"\",VLOOKUP(BM287,'Footnotes list'!$D$9:$E$58,2,FALSE) ) )","v":""},null,null,null,null,{"$f":"IF(TRIM(BR287)=\"\", \"\", IF(VLOOKUP(BR287,'Footnotes list'!$D$9:$E$58,2,FALSE)=0,\"\",VLOOKUP(BR287,'Footnotes list'!$D$9:$E$58,2,FALSE) ) )","v":""},null,null,null,null,{"$f":"IF(TRIM(BW287)=\"\", \"\", IF(VLOOKUP(BW287,'Footnotes list'!$D$9:$E$58,2,FALSE)=0,\"\",VLOOKUP(BW287,'Footnotes list'!$D$9:$E$58,2,FALSE) ) )","v":""},null,null,null,null,{"$f":"IF(TRIM(CB287)=\"\", \"\", IF(VLOOKUP(CB287,'Footnotes list'!$D$9:$E$58,2,FALSE)=0,\"\",VLOOKUP(CB287,'Footnotes list'!$D$9:$E$58,2,FALSE) ) )","v":""},null,null,null,null,{"$f":"IF(TRIM(CG287)=\"\", \"\", IF(VLOOKUP(CG287,'Footnotes list'!$D$9:$E$58,2,FALSE)=0,\"\",VLOOKUP(CG287,'Footnotes list'!$D$9:$E$58,2,FALSE) ) )","v":""},null,null,null,null,{"$f":"IF(TRIM(CL287)=\"\", \"\", IF(VLOOKUP(CL287,'Footnotes list'!$D$9:$E$58,2,FALSE)=0,\"\",VLOOKUP(CL287,'Footnotes list'!$D$9:$E$58,2,FALSE) ) )","v":""},null,null,null,null,{"$f":"IF(TRIM(CQ287)=\"\", \"\", IF(VLOOKUP(CQ287,'Footnotes list'!$D$9:$E$58,2,FALSE)=0,\"\",VLOOKUP(CQ287,'Footnotes list'!$D$9:$E$58,2,FALSE) ) )","v":""},null,null,null,null,{"$f":"IF(TRIM(CV287)=\"\", \"\", IF(VLOOKUP(CV287,'Footnotes list'!$D$9:$E$58,2,FALSE)=0,\"\",VLOOKUP(CV287,'Footnotes list'!$D$9:$E$58,2,FALSE) ) )","v":""},null,null,null,null,{"$f":"IF(TRIM(DA287)=\"\", \"\", IF(VLOOKUP(DA287,'Footnotes list'!$D$9:$E$58,2,FALSE)=0,\"\",VLOOKUP(DA287,'Footnotes list'!$D$9:$E$58,2,FALSE) ) )","v":""},null,null,null,null,{"$f":"IF(TRIM(DF287)=\"\", \"\", IF(VLOOKUP(DF287,'Footnotes list'!$D$9:$E$58,2,FALSE)=0,\"\",VLOOKUP(DF287,'Footnotes list'!$D$9:$E$58,2,FALSE) ) )","v":""},null,null,null,null,{"$f":"IF(TRIM(DK287)=\"\", \"\", IF(VLOOKUP(DK287,'Footnotes list'!$D$9:$E$58,2,FALSE)=0,\"\",VLOOKUP(DK287,'Footnotes list'!$D$9:$E$58,2,FALSE) ) )","v":""},null,null,null,null,{"$f":"IF(TRIM(DP287)=\"\", \"\", IF(VLOOKUP(DP287,'Footnotes list'!$D$9:$E$58,2,FALSE)=0,\"\",VLOOKUP(DP287,'Footnotes list'!$D$9:$E$58,2,FALSE) ) )","v":""},null,null,null,null,{"$f":"IF(TRIM(DU287)=\"\", \"\", IF(VLOOKUP(DU287,'Footnotes list'!$D$9:$E$58,2,FALSE)=0,\"\",VLOOKUP(DU287,'Footnotes list'!$D$9:$E$58,2,FALSE) ) )","v":""},null,null,null,null,{"$f":"IF(TRIM(DZ287)=\"\", \"\", IF(VLOOKUP(DZ287,'Footnotes list'!$D$9:$E$58,2,FALSE)=0,\"\",VLOOKUP(DZ287,'Footnotes list'!$D$9:$E$58,2,FALSE) ) )","v":""},null,null,null,null,{"$f":"IF(TRIM(EE287)=\"\", \"\", IF(VLOOKUP(EE287,'Footnotes list'!$D$9:$E$58,2,FALSE)=0,\"\",VLOOKUP(EE287,'Footnotes list'!$D$9:$E$58,2,FALSE) ) )","v":""},null,null,null,null,{"$f":"IF(TRIM(EJ287)=\"\", \"\", IF(VLOOKUP(EJ287,'Footnotes list'!$D$9:$E$58,2,FALSE)=0,\"\",VLOOKUP(EJ287,'Footnotes list'!$D$9:$E$58,2,FALSE) ) )","v":""},null,null,null,null,{"$f":"IF(TRIM(EO287)=\"\", \"\", IF(VLOOKUP(EO287,'Footnotes list'!$D$9:$E$58,2,FALSE)=0,\"\",VLOOKUP(EO287,'Footnotes list'!$D$9:$E$58,2,FALSE) ) )","v":""},null,null,null,null,{"$f":"IF(TRIM(ET287)=\"\", \"\", IF(VLOOKUP(ET287,'Footnotes list'!$D$9:$E$58,2,FALSE)=0,\"\",VLOOKUP(ET287,'Footnotes list'!$D$9:$E$58,2,FALSE) ) )","v":""},null,null,null,null,{"$f":"IF(TRIM(EY287)=\"\", \"\", IF(VLOOKUP(EY287,'Footnotes list'!$D$9:$E$58,2,FALSE)=0,\"\",VLOOKUP(EY287,'Footnotes list'!$D$9:$E$58,2,FALSE) ) )","v":""}]
[null,null,"S","TOT_EGSS","Total S - Other service activities, of which:",null,null,null,null,null,{"$f":"IF(TRIM(J288)=\"\", \"\", IF(VLOOKUP(J288,'Footnotes list'!$D$9:$E$58,2,FALSE)=0,\"\",VLOOKUP(J288,'Footnotes list'!$D$9:$E$58,2,FALSE) ) )","v":""},null,null,null,null,{"$f":"IF(TRIM(O288)=\"\", \"\", IF(VLOOKUP(O288,'Footnotes list'!$D$9:$E$58,2,FALSE)=0,\"\",VLOOKUP(O288,'Footnotes list'!$D$9:$E$58,2,FALSE) ) )","v":""},null,null,null,null,{"$f":"IF(TRIM(T288)=\"\", \"\", IF(VLOOKUP(T288,'Footnotes list'!$D$9:$E$58,2,FALSE)=0,\"\",VLOOKUP(T288,'Footnotes list'!$D$9:$E$58,2,FALSE) ) )","v":""},null,null,null,null,{"$f":"IF(TRIM(Y288)=\"\", \"\", IF(VLOOKUP(Y288,'Footnotes list'!$D$9:$E$58,2,FALSE)=0,\"\",VLOOKUP(Y288,'Footnotes list'!$D$9:$E$58,2,FALSE) ) )","v":""},null,null,null,null,{"$f":"IF(TRIM(AD288)=\"\", \"\", IF(VLOOKUP(AD288,'Footnotes list'!$D$9:$E$58,2,FALSE)=0,\"\",VLOOKUP(AD288,'Footnotes list'!$D$9:$E$58,2,FALSE) ) )","v":""},null,null,null,null,{"$f":"IF(TRIM(AI288)=\"\", \"\", IF(VLOOKUP(AI288,'Footnotes list'!$D$9:$E$58,2,FALSE)=0,\"\",VLOOKUP(AI288,'Footnotes list'!$D$9:$E$58,2,FALSE) ) )","v":""},null,null,null,null,{"$f":"IF(TRIM(AN288)=\"\", \"\", IF(VLOOKUP(AN288,'Footnotes list'!$D$9:$E$58,2,FALSE)=0,\"\",VLOOKUP(AN288,'Footnotes list'!$D$9:$E$58,2,FALSE) ) )","v":""},null,null,null,null,{"$f":"IF(TRIM(AS288)=\"\", \"\", IF(VLOOKUP(AS288,'Footnotes list'!$D$9:$E$58,2,FALSE)=0,\"\",VLOOKUP(AS288,'Footnotes list'!$D$9:$E$58,2,FALSE) ) )","v":""},null,null,null,null,{"$f":"IF(TRIM(AX288)=\"\", \"\", IF(VLOOKUP(AX288,'Footnotes list'!$D$9:$E$58,2,FALSE)=0,\"\",VLOOKUP(AX288,'Footnotes list'!$D$9:$E$58,2,FALSE) ) )","v":""},null,null,null,null,{"$f":"IF(TRIM(BC288)=\"\", \"\", IF(VLOOKUP(BC288,'Footnotes list'!$D$9:$E$58,2,FALSE)=0,\"\",VLOOKUP(BC288,'Footnotes list'!$D$9:$E$58,2,FALSE) ) )","v":""},null,null,null,null,{"$f":"IF(TRIM(BH288)=\"\", \"\", IF(VLOOKUP(BH288,'Footnotes list'!$D$9:$E$58,2,FALSE)=0,\"\",VLOOKUP(BH288,'Footnotes list'!$D$9:$E$58,2,FALSE) ) )","v":""},null,null,null,null,{"$f":"IF(TRIM(BM288)=\"\", \"\", IF(VLOOKUP(BM288,'Footnotes list'!$D$9:$E$58,2,FALSE)=0,\"\",VLOOKUP(BM288,'Footnotes list'!$D$9:$E$58,2,FALSE) ) )","v":""},null,null,null,null,{"$f":"IF(TRIM(BR288)=\"\", \"\", IF(VLOOKUP(BR288,'Footnotes list'!$D$9:$E$58,2,FALSE)=0,\"\",VLOOKUP(BR288,'Footnotes list'!$D$9:$E$58,2,FALSE) ) )","v":""},null,null,null,null,{"$f":"IF(TRIM(BW288)=\"\", \"\", IF(VLOOKUP(BW288,'Footnotes list'!$D$9:$E$58,2,FALSE)=0,\"\",VLOOKUP(BW288,'Footnotes list'!$D$9:$E$58,2,FALSE) ) )","v":""},null,null,null,null,{"$f":"IF(TRIM(CB288)=\"\", \"\", IF(VLOOKUP(CB288,'Footnotes list'!$D$9:$E$58,2,FALSE)=0,\"\",VLOOKUP(CB288,'Footnotes list'!$D$9:$E$58,2,FALSE) ) )","v":""},null,null,null,null,{"$f":"IF(TRIM(CG288)=\"\", \"\", IF(VLOOKUP(CG288,'Footnotes list'!$D$9:$E$58,2,FALSE)=0,\"\",VLOOKUP(CG288,'Footnotes list'!$D$9:$E$58,2,FALSE) ) )","v":""},null,null,null,null,{"$f":"IF(TRIM(CL288)=\"\", \"\", IF(VLOOKUP(CL288,'Footnotes list'!$D$9:$E$58,2,FALSE)=0,\"\",VLOOKUP(CL288,'Footnotes list'!$D$9:$E$58,2,FALSE) ) )","v":""},null,null,null,null,{"$f":"IF(TRIM(CQ288)=\"\", \"\", IF(VLOOKUP(CQ288,'Footnotes list'!$D$9:$E$58,2,FALSE)=0,\"\",VLOOKUP(CQ288,'Footnotes list'!$D$9:$E$58,2,FALSE) ) )","v":""},null,null,null,null,{"$f":"IF(TRIM(CV288)=\"\", \"\", IF(VLOOKUP(CV288,'Footnotes list'!$D$9:$E$58,2,FALSE)=0,\"\",VLOOKUP(CV288,'Footnotes list'!$D$9:$E$58,2,FALSE) ) )","v":""},null,null,null,null,{"$f":"IF(TRIM(DA288)=\"\", \"\", IF(VLOOKUP(DA288,'Footnotes list'!$D$9:$E$58,2,FALSE)=0,\"\",VLOOKUP(DA288,'Footnotes list'!$D$9:$E$58,2,FALSE) ) )","v":""},null,null,null,null,{"$f":"IF(TRIM(DF288)=\"\", \"\", IF(VLOOKUP(DF288,'Footnotes list'!$D$9:$E$58,2,FALSE)=0,\"\",VLOOKUP(DF288,'Footnotes list'!$D$9:$E$58,2,FALSE) ) )","v":""},null,null,null,null,{"$f":"IF(TRIM(DK288)=\"\", \"\", IF(VLOOKUP(DK288,'Footnotes list'!$D$9:$E$58,2,FALSE)=0,\"\",VLOOKUP(DK288,'Footnotes list'!$D$9:$E$58,2,FALSE) ) )","v":""},null,null,null,null,{"$f":"IF(TRIM(DP288)=\"\", \"\", IF(VLOOKUP(DP288,'Footnotes list'!$D$9:$E$58,2,FALSE)=0,\"\",VLOOKUP(DP288,'Footnotes list'!$D$9:$E$58,2,FALSE) ) )","v":""},null,null,null,null,{"$f":"IF(TRIM(DU288)=\"\", \"\", IF(VLOOKUP(DU288,'Footnotes list'!$D$9:$E$58,2,FALSE)=0,\"\",VLOOKUP(DU288,'Footnotes list'!$D$9:$E$58,2,FALSE) ) )","v":""},null,null,null,null,{"$f":"IF(TRIM(DZ288)=\"\", \"\", IF(VLOOKUP(DZ288,'Footnotes list'!$D$9:$E$58,2,FALSE)=0,\"\",VLOOKUP(DZ288,'Footnotes list'!$D$9:$E$58,2,FALSE) ) )","v":""},null,null,null,null,{"$f":"IF(TRIM(EE288)=\"\", \"\", IF(VLOOKUP(EE288,'Footnotes list'!$D$9:$E$58,2,FALSE)=0,\"\",VLOOKUP(EE288,'Footnotes list'!$D$9:$E$58,2,FALSE) ) )","v":""},null,null,null,null,{"$f":"IF(TRIM(EJ288)=\"\", \"\", IF(VLOOKUP(EJ288,'Footnotes list'!$D$9:$E$58,2,FALSE)=0,\"\",VLOOKUP(EJ288,'Footnotes list'!$D$9:$E$58,2,FALSE) ) )","v":""},null,null,null,null,{"$f":"IF(TRIM(EO288)=\"\", \"\", IF(VLOOKUP(EO288,'Footnotes list'!$D$9:$E$58,2,FALSE)=0,\"\",VLOOKUP(EO288,'Footnotes list'!$D$9:$E$58,2,FALSE) ) )","v":""},null,null,null,null,{"$f":"IF(TRIM(ET288)=\"\", \"\", IF(VLOOKUP(ET288,'Footnotes list'!$D$9:$E$58,2,FALSE)=0,\"\",VLOOKUP(ET288,'Footnotes list'!$D$9:$E$58,2,FALSE) ) )","v":""},null,null,null,null,{"$f":"IF(TRIM(EY288)=\"\", \"\", IF(VLOOKUP(EY288,'Footnotes list'!$D$9:$E$58,2,FALSE)=0,\"\",VLOOKUP(EY288,'Footnotes list'!$D$9:$E$58,2,FALSE) ) )","v":""}]
[null,null,"S","ANC","ancillary activities",null,null,null,null,null,{"$f":"IF(TRIM(J289)=\"\", \"\", IF(VLOOKUP(J289,'Footnotes list'!$D$9:$E$58,2,FALSE)=0,\"\",VLOOKUP(J289,'Footnotes list'!$D$9:$E$58,2,FALSE) ) )","v":""},null,null,null,null,{"$f":"IF(TRIM(O289)=\"\", \"\", IF(VLOOKUP(O289,'Footnotes list'!$D$9:$E$58,2,FALSE)=0,\"\",VLOOKUP(O289,'Footnotes list'!$D$9:$E$58,2,FALSE) ) )","v":""},null,null,null,null,{"$f":"IF(TRIM(T289)=\"\", \"\", IF(VLOOKUP(T289,'Footnotes list'!$D$9:$E$58,2,FALSE)=0,\"\",VLOOKUP(T289,'Footnotes list'!$D$9:$E$58,2,FALSE) ) )","v":""},null,null,null,null,{"$f":"IF(TRIM(Y289)=\"\", \"\", IF(VLOOKUP(Y289,'Footnotes list'!$D$9:$E$58,2,FALSE)=0,\"\",VLOOKUP(Y289,'Footnotes list'!$D$9:$E$58,2,FALSE) ) )","v":""},null,null,null,null,{"$f":"IF(TRIM(AD289)=\"\", \"\", IF(VLOOKUP(AD289,'Footnotes list'!$D$9:$E$58,2,FALSE)=0,\"\",VLOOKUP(AD289,'Footnotes list'!$D$9:$E$58,2,FALSE) ) )","v":""},null,null,null,null,{"$f":"IF(TRIM(AI289)=\"\", \"\", IF(VLOOKUP(AI289,'Footnotes list'!$D$9:$E$58,2,FALSE)=0,\"\",VLOOKUP(AI289,'Footnotes list'!$D$9:$E$58,2,FALSE) ) )","v":""},null,null,null,null,{"$f":"IF(TRIM(AN289)=\"\", \"\", IF(VLOOKUP(AN289,'Footnotes list'!$D$9:$E$58,2,FALSE)=0,\"\",VLOOKUP(AN289,'Footnotes list'!$D$9:$E$58,2,FALSE) ) )","v":""},null,null,null,null,{"$f":"IF(TRIM(AS289)=\"\", \"\", IF(VLOOKUP(AS289,'Footnotes list'!$D$9:$E$58,2,FALSE)=0,\"\",VLOOKUP(AS289,'Footnotes list'!$D$9:$E$58,2,FALSE) ) )","v":""},null,null,null,null,{"$f":"IF(TRIM(AX289)=\"\", \"\", IF(VLOOKUP(AX289,'Footnotes list'!$D$9:$E$58,2,FALSE)=0,\"\",VLOOKUP(AX289,'Footnotes list'!$D$9:$E$58,2,FALSE) ) )","v":""},null,null,null,null,{"$f":"IF(TRIM(BC289)=\"\", \"\", IF(VLOOKUP(BC289,'Footnotes list'!$D$9:$E$58,2,FALSE)=0,\"\",VLOOKUP(BC289,'Footnotes list'!$D$9:$E$58,2,FALSE) ) )","v":""},null,null,null,null,{"$f":"IF(TRIM(BH289)=\"\", \"\", IF(VLOOKUP(BH289,'Footnotes list'!$D$9:$E$58,2,FALSE)=0,\"\",VLOOKUP(BH289,'Footnotes list'!$D$9:$E$58,2,FALSE) ) )","v":""},null,null,null,null,{"$f":"IF(TRIM(BM289)=\"\", \"\", IF(VLOOKUP(BM289,'Footnotes list'!$D$9:$E$58,2,FALSE)=0,\"\",VLOOKUP(BM289,'Footnotes list'!$D$9:$E$58,2,FALSE) ) )","v":""},null,null,null,null,{"$f":"IF(TRIM(BR289)=\"\", \"\", IF(VLOOKUP(BR289,'Footnotes list'!$D$9:$E$58,2,FALSE)=0,\"\",VLOOKUP(BR289,'Footnotes list'!$D$9:$E$58,2,FALSE) ) )","v":""},null,null,null,null,{"$f":"IF(TRIM(BW289)=\"\", \"\", IF(VLOOKUP(BW289,'Footnotes list'!$D$9:$E$58,2,FALSE)=0,\"\",VLOOKUP(BW289,'Footnotes list'!$D$9:$E$58,2,FALSE) ) )","v":""},null,null,null,null,{"$f":"IF(TRIM(CB289)=\"\", \"\", IF(VLOOKUP(CB289,'Footnotes list'!$D$9:$E$58,2,FALSE)=0,\"\",VLOOKUP(CB289,'Footnotes list'!$D$9:$E$58,2,FALSE) ) )","v":""},null,null,null,null,{"$f":"IF(TRIM(CG289)=\"\", \"\", IF(VLOOKUP(CG289,'Footnotes list'!$D$9:$E$58,2,FALSE)=0,\"\",VLOOKUP(CG289,'Footnotes list'!$D$9:$E$58,2,FALSE) ) )","v":""},null,null,null,null,{"$f":"IF(TRIM(CL289)=\"\", \"\", IF(VLOOKUP(CL289,'Footnotes list'!$D$9:$E$58,2,FALSE)=0,\"\",VLOOKUP(CL289,'Footnotes list'!$D$9:$E$58,2,FALSE) ) )","v":""},null,null,null,null,{"$f":"IF(TRIM(CQ289)=\"\", \"\", IF(VLOOKUP(CQ289,'Footnotes list'!$D$9:$E$58,2,FALSE)=0,\"\",VLOOKUP(CQ289,'Footnotes list'!$D$9:$E$58,2,FALSE) ) )","v":""},null,null,null,null,{"$f":"IF(TRIM(CV289)=\"\", \"\", IF(VLOOKUP(CV289,'Footnotes list'!$D$9:$E$58,2,FALSE)=0,\"\",VLOOKUP(CV289,'Footnotes list'!$D$9:$E$58,2,FALSE) ) )","v":""},null,null,null,null,{"$f":"IF(TRIM(DA289)=\"\", \"\", IF(VLOOKUP(DA289,'Footnotes list'!$D$9:$E$58,2,FALSE)=0,\"\",VLOOKUP(DA289,'Footnotes list'!$D$9:$E$58,2,FALSE) ) )","v":""},null,null,null,null,{"$f":"IF(TRIM(DF289)=\"\", \"\", IF(VLOOKUP(DF289,'Footnotes list'!$D$9:$E$58,2,FALSE)=0,\"\",VLOOKUP(DF289,'Footnotes list'!$D$9:$E$58,2,FALSE) ) )","v":""},null,null,null,null,{"$f":"IF(TRIM(DK289)=\"\", \"\", IF(VLOOKUP(DK289,'Footnotes list'!$D$9:$E$58,2,FALSE)=0,\"\",VLOOKUP(DK289,'Footnotes list'!$D$9:$E$58,2,FALSE) ) )","v":""},null,null,null,null,{"$f":"IF(TRIM(DP289)=\"\", \"\", IF(VLOOKUP(DP289,'Footnotes list'!$D$9:$E$58,2,FALSE)=0,\"\",VLOOKUP(DP289,'Footnotes list'!$D$9:$E$58,2,FALSE) ) )","v":""},null,null,null,null,{"$f":"IF(TRIM(DU289)=\"\", \"\", IF(VLOOKUP(DU289,'Footnotes list'!$D$9:$E$58,2,FALSE)=0,\"\",VLOOKUP(DU289,'Footnotes list'!$D$9:$E$58,2,FALSE) ) )","v":""},null,null,null,null,{"$f":"IF(TRIM(DZ289)=\"\", \"\", IF(VLOOKUP(DZ289,'Footnotes list'!$D$9:$E$58,2,FALSE)=0,\"\",VLOOKUP(DZ289,'Footnotes list'!$D$9:$E$58,2,FALSE) ) )","v":""},null,null,null,null,{"$f":"IF(TRIM(EE289)=\"\", \"\", IF(VLOOKUP(EE289,'Footnotes list'!$D$9:$E$58,2,FALSE)=0,\"\",VLOOKUP(EE289,'Footnotes list'!$D$9:$E$58,2,FALSE) ) )","v":""},null,null,null,null,{"$f":"IF(TRIM(EJ289)=\"\", \"\", IF(VLOOKUP(EJ289,'Footnotes list'!$D$9:$E$58,2,FALSE)=0,\"\",VLOOKUP(EJ289,'Footnotes list'!$D$9:$E$58,2,FALSE) ) )","v":""},null,null,null,null,{"$f":"IF(TRIM(EO289)=\"\", \"\", IF(VLOOKUP(EO289,'Footnotes list'!$D$9:$E$58,2,FALSE)=0,\"\",VLOOKUP(EO289,'Footnotes list'!$D$9:$E$58,2,FALSE) ) )","v":""},null,null,null,null,{"$f":"IF(TRIM(ET289)=\"\", \"\", IF(VLOOKUP(ET289,'Footnotes list'!$D$9:$E$58,2,FALSE)=0,\"\",VLOOKUP(ET289,'Footnotes list'!$D$9:$E$58,2,FALSE) ) )","v":""},null,null,null,null,{"$f":"IF(TRIM(EY289)=\"\", \"\", IF(VLOOKUP(EY289,'Footnotes list'!$D$9:$E$58,2,FALSE)=0,\"\",VLOOKUP(EY289,'Footnotes list'!$D$9:$E$58,2,FALSE) ) )","v":""}]
[null,null,"S","NMKT","non-market activities",null,null,null,null,null,{"$f":"IF(TRIM(J290)=\"\", \"\", IF(VLOOKUP(J290,'Footnotes list'!$D$9:$E$58,2,FALSE)=0,\"\",VLOOKUP(J290,'Footnotes list'!$D$9:$E$58,2,FALSE) ) )","v":""},null,null,null,null,{"$f":"IF(TRIM(O290)=\"\", \"\", IF(VLOOKUP(O290,'Footnotes list'!$D$9:$E$58,2,FALSE)=0,\"\",VLOOKUP(O290,'Footnotes list'!$D$9:$E$58,2,FALSE) ) )","v":""},null,null,null,null,{"$f":"IF(TRIM(T290)=\"\", \"\", IF(VLOOKUP(T290,'Footnotes list'!$D$9:$E$58,2,FALSE)=0,\"\",VLOOKUP(T290,'Footnotes list'!$D$9:$E$58,2,FALSE) ) )","v":""},null,null,null,null,{"$f":"IF(TRIM(Y290)=\"\", \"\", IF(VLOOKUP(Y290,'Footnotes list'!$D$9:$E$58,2,FALSE)=0,\"\",VLOOKUP(Y290,'Footnotes list'!$D$9:$E$58,2,FALSE) ) )","v":""},null,null,null,null,{"$f":"IF(TRIM(AD290)=\"\", \"\", IF(VLOOKUP(AD290,'Footnotes list'!$D$9:$E$58,2,FALSE)=0,\"\",VLOOKUP(AD290,'Footnotes list'!$D$9:$E$58,2,FALSE) ) )","v":""},null,null,null,null,{"$f":"IF(TRIM(AI290)=\"\", \"\", IF(VLOOKUP(AI290,'Footnotes list'!$D$9:$E$58,2,FALSE)=0,\"\",VLOOKUP(AI290,'Footnotes list'!$D$9:$E$58,2,FALSE) ) )","v":""},null,null,null,null,{"$f":"IF(TRIM(AN290)=\"\", \"\", IF(VLOOKUP(AN290,'Footnotes list'!$D$9:$E$58,2,FALSE)=0,\"\",VLOOKUP(AN290,'Footnotes list'!$D$9:$E$58,2,FALSE) ) )","v":""},null,null,null,null,{"$f":"IF(TRIM(AS290)=\"\", \"\", IF(VLOOKUP(AS290,'Footnotes list'!$D$9:$E$58,2,FALSE)=0,\"\",VLOOKUP(AS290,'Footnotes list'!$D$9:$E$58,2,FALSE) ) )","v":""},null,null,null,null,{"$f":"IF(TRIM(AX290)=\"\", \"\", IF(VLOOKUP(AX290,'Footnotes list'!$D$9:$E$58,2,FALSE)=0,\"\",VLOOKUP(AX290,'Footnotes list'!$D$9:$E$58,2,FALSE) ) )","v":""},null,null,null,null,{"$f":"IF(TRIM(BC290)=\"\", \"\", IF(VLOOKUP(BC290,'Footnotes list'!$D$9:$E$58,2,FALSE)=0,\"\",VLOOKUP(BC290,'Footnotes list'!$D$9:$E$58,2,FALSE) ) )","v":""},null,null,null,null,{"$f":"IF(TRIM(BH290)=\"\", \"\", IF(VLOOKUP(BH290,'Footnotes list'!$D$9:$E$58,2,FALSE)=0,\"\",VLOOKUP(BH290,'Footnotes list'!$D$9:$E$58,2,FALSE) ) )","v":""},null,null,null,null,{"$f":"IF(TRIM(BM290)=\"\", \"\", IF(VLOOKUP(BM290,'Footnotes list'!$D$9:$E$58,2,FALSE)=0,\"\",VLOOKUP(BM290,'Footnotes list'!$D$9:$E$58,2,FALSE) ) )","v":""},null,null,null,null,{"$f":"IF(TRIM(BR290)=\"\", \"\", IF(VLOOKUP(BR290,'Footnotes list'!$D$9:$E$58,2,FALSE)=0,\"\",VLOOKUP(BR290,'Footnotes list'!$D$9:$E$58,2,FALSE) ) )","v":""},null,null,null,null,{"$f":"IF(TRIM(BW290)=\"\", \"\", IF(VLOOKUP(BW290,'Footnotes list'!$D$9:$E$58,2,FALSE)=0,\"\",VLOOKUP(BW290,'Footnotes list'!$D$9:$E$58,2,FALSE) ) )","v":""},null,null,null,null,{"$f":"IF(TRIM(CB290)=\"\", \"\", IF(VLOOKUP(CB290,'Footnotes list'!$D$9:$E$58,2,FALSE)=0,\"\",VLOOKUP(CB290,'Footnotes list'!$D$9:$E$58,2,FALSE) ) )","v":""},null,null,null,null,{"$f":"IF(TRIM(CG290)=\"\", \"\", IF(VLOOKUP(CG290,'Footnotes list'!$D$9:$E$58,2,FALSE)=0,\"\",VLOOKUP(CG290,'Footnotes list'!$D$9:$E$58,2,FALSE) ) )","v":""},null,null,null,null,{"$f":"IF(TRIM(CL290)=\"\", \"\", IF(VLOOKUP(CL290,'Footnotes list'!$D$9:$E$58,2,FALSE)=0,\"\",VLOOKUP(CL290,'Footnotes list'!$D$9:$E$58,2,FALSE) ) )","v":""},null,null,null,null,{"$f":"IF(TRIM(CQ290)=\"\", \"\", IF(VLOOKUP(CQ290,'Footnotes list'!$D$9:$E$58,2,FALSE)=0,\"\",VLOOKUP(CQ290,'Footnotes list'!$D$9:$E$58,2,FALSE) ) )","v":""},null,null,null,null,{"$f":"IF(TRIM(CV290)=\"\", \"\", IF(VLOOKUP(CV290,'Footnotes list'!$D$9:$E$58,2,FALSE)=0,\"\",VLOOKUP(CV290,'Footnotes list'!$D$9:$E$58,2,FALSE) ) )","v":""},null,null,null,null,{"$f":"IF(TRIM(DA290)=\"\", \"\", IF(VLOOKUP(DA290,'Footnotes list'!$D$9:$E$58,2,FALSE)=0,\"\",VLOOKUP(DA290,'Footnotes list'!$D$9:$E$58,2,FALSE) ) )","v":""},null,null,null,null,{"$f":"IF(TRIM(DF290)=\"\", \"\", IF(VLOOKUP(DF290,'Footnotes list'!$D$9:$E$58,2,FALSE)=0,\"\",VLOOKUP(DF290,'Footnotes list'!$D$9:$E$58,2,FALSE) ) )","v":""},null,null,null,null,{"$f":"IF(TRIM(DK290)=\"\", \"\", IF(VLOOKUP(DK290,'Footnotes list'!$D$9:$E$58,2,FALSE)=0,\"\",VLOOKUP(DK290,'Footnotes list'!$D$9:$E$58,2,FALSE) ) )","v":""},null,null,null,null,{"$f":"IF(TRIM(DP290)=\"\", \"\", IF(VLOOKUP(DP290,'Footnotes list'!$D$9:$E$58,2,FALSE)=0,\"\",VLOOKUP(DP290,'Footnotes list'!$D$9:$E$58,2,FALSE) ) )","v":""},null,null,null,null,{"$f":"IF(TRIM(DU290)=\"\", \"\", IF(VLOOKUP(DU290,'Footnotes list'!$D$9:$E$58,2,FALSE)=0,\"\",VLOOKUP(DU290,'Footnotes list'!$D$9:$E$58,2,FALSE) ) )","v":""},null,null,null,null,{"$f":"IF(TRIM(DZ290)=\"\", \"\", IF(VLOOKUP(DZ290,'Footnotes list'!$D$9:$E$58,2,FALSE)=0,\"\",VLOOKUP(DZ290,'Footnotes list'!$D$9:$E$58,2,FALSE) ) )","v":""},null,null,null,null,{"$f":"IF(TRIM(EE290)=\"\", \"\", IF(VLOOKUP(EE290,'Footnotes list'!$D$9:$E$58,2,FALSE)=0,\"\",VLOOKUP(EE290,'Footnotes list'!$D$9:$E$58,2,FALSE) ) )","v":""},null,null,null,null,{"$f":"IF(TRIM(EJ290)=\"\", \"\", IF(VLOOKUP(EJ290,'Footnotes list'!$D$9:$E$58,2,FALSE)=0,\"\",VLOOKUP(EJ290,'Footnotes list'!$D$9:$E$58,2,FALSE) ) )","v":""},null,null,null,null,{"$f":"IF(TRIM(EO290)=\"\", \"\", IF(VLOOKUP(EO290,'Footnotes list'!$D$9:$E$58,2,FALSE)=0,\"\",VLOOKUP(EO290,'Footnotes list'!$D$9:$E$58,2,FALSE) ) )","v":""},null,null,null,null,{"$f":"IF(TRIM(ET290)=\"\", \"\", IF(VLOOKUP(ET290,'Footnotes list'!$D$9:$E$58,2,FALSE)=0,\"\",VLOOKUP(ET290,'Footnotes list'!$D$9:$E$58,2,FALSE) ) )","v":""},null,null,null,null,{"$f":"IF(TRIM(EY290)=\"\", \"\", IF(VLOOKUP(EY290,'Footnotes list'!$D$9:$E$58,2,FALSE)=0,\"\",VLOOKUP(EY290,'Footnotes list'!$D$9:$E$58,2,FALSE) ) )","v":""}]
[null,null,"S","OWN_USE","activities for own final use",null,null,null,null,null,{"$f":"IF(TRIM(J291)=\"\", \"\", IF(VLOOKUP(J291,'Footnotes list'!$D$9:$E$58,2,FALSE)=0,\"\",VLOOKUP(J291,'Footnotes list'!$D$9:$E$58,2,FALSE) ) )","v":""},null,null,null,null,{"$f":"IF(TRIM(O291)=\"\", \"\", IF(VLOOKUP(O291,'Footnotes list'!$D$9:$E$58,2,FALSE)=0,\"\",VLOOKUP(O291,'Footnotes list'!$D$9:$E$58,2,FALSE) ) )","v":""},null,null,null,null,{"$f":"IF(TRIM(T291)=\"\", \"\", IF(VLOOKUP(T291,'Footnotes list'!$D$9:$E$58,2,FALSE)=0,\"\",VLOOKUP(T291,'Footnotes list'!$D$9:$E$58,2,FALSE) ) )","v":""},null,null,null,null,{"$f":"IF(TRIM(Y291)=\"\", \"\", IF(VLOOKUP(Y291,'Footnotes list'!$D$9:$E$58,2,FALSE)=0,\"\",VLOOKUP(Y291,'Footnotes list'!$D$9:$E$58,2,FALSE) ) )","v":""},null,null,null,null,{"$f":"IF(TRIM(AD291)=\"\", \"\", IF(VLOOKUP(AD291,'Footnotes list'!$D$9:$E$58,2,FALSE)=0,\"\",VLOOKUP(AD291,'Footnotes list'!$D$9:$E$58,2,FALSE) ) )","v":""},null,null,null,null,{"$f":"IF(TRIM(AI291)=\"\", \"\", IF(VLOOKUP(AI291,'Footnotes list'!$D$9:$E$58,2,FALSE)=0,\"\",VLOOKUP(AI291,'Footnotes list'!$D$9:$E$58,2,FALSE) ) )","v":""},null,null,null,null,{"$f":"IF(TRIM(AN291)=\"\", \"\", IF(VLOOKUP(AN291,'Footnotes list'!$D$9:$E$58,2,FALSE)=0,\"\",VLOOKUP(AN291,'Footnotes list'!$D$9:$E$58,2,FALSE) ) )","v":""},null,null,null,null,{"$f":"IF(TRIM(AS291)=\"\", \"\", IF(VLOOKUP(AS291,'Footnotes list'!$D$9:$E$58,2,FALSE)=0,\"\",VLOOKUP(AS291,'Footnotes list'!$D$9:$E$58,2,FALSE) ) )","v":""},null,null,null,null,{"$f":"IF(TRIM(AX291)=\"\", \"\", IF(VLOOKUP(AX291,'Footnotes list'!$D$9:$E$58,2,FALSE)=0,\"\",VLOOKUP(AX291,'Footnotes list'!$D$9:$E$58,2,FALSE) ) )","v":""},null,null,null,null,{"$f":"IF(TRIM(BC291)=\"\", \"\", IF(VLOOKUP(BC291,'Footnotes list'!$D$9:$E$58,2,FALSE)=0,\"\",VLOOKUP(BC291,'Footnotes list'!$D$9:$E$58,2,FALSE) ) )","v":""},null,null,null,null,{"$f":"IF(TRIM(BH291)=\"\", \"\", IF(VLOOKUP(BH291,'Footnotes list'!$D$9:$E$58,2,FALSE)=0,\"\",VLOOKUP(BH291,'Footnotes list'!$D$9:$E$58,2,FALSE) ) )","v":""},null,null,null,null,{"$f":"IF(TRIM(BM291)=\"\", \"\", IF(VLOOKUP(BM291,'Footnotes list'!$D$9:$E$58,2,FALSE)=0,\"\",VLOOKUP(BM291,'Footnotes list'!$D$9:$E$58,2,FALSE) ) )","v":""},null,null,null,null,{"$f":"IF(TRIM(BR291)=\"\", \"\", IF(VLOOKUP(BR291,'Footnotes list'!$D$9:$E$58,2,FALSE)=0,\"\",VLOOKUP(BR291,'Footnotes list'!$D$9:$E$58,2,FALSE) ) )","v":""},null,null,null,null,{"$f":"IF(TRIM(BW291)=\"\", \"\", IF(VLOOKUP(BW291,'Footnotes list'!$D$9:$E$58,2,FALSE)=0,\"\",VLOOKUP(BW291,'Footnotes list'!$D$9:$E$58,2,FALSE) ) )","v":""},null,null,null,null,{"$f":"IF(TRIM(CB291)=\"\", \"\", IF(VLOOKUP(CB291,'Footnotes list'!$D$9:$E$58,2,FALSE)=0,\"\",VLOOKUP(CB291,'Footnotes list'!$D$9:$E$58,2,FALSE) ) )","v":""},null,null,null,null,{"$f":"IF(TRIM(CG291)=\"\", \"\", IF(VLOOKUP(CG291,'Footnotes list'!$D$9:$E$58,2,FALSE)=0,\"\",VLOOKUP(CG291,'Footnotes list'!$D$9:$E$58,2,FALSE) ) )","v":""},null,null,null,null,{"$f":"IF(TRIM(CL291)=\"\", \"\", IF(VLOOKUP(CL291,'Footnotes list'!$D$9:$E$58,2,FALSE)=0,\"\",VLOOKUP(CL291,'Footnotes list'!$D$9:$E$58,2,FALSE) ) )","v":""},null,null,null,null,{"$f":"IF(TRIM(CQ291)=\"\", \"\", IF(VLOOKUP(CQ291,'Footnotes list'!$D$9:$E$58,2,FALSE)=0,\"\",VLOOKUP(CQ291,'Footnotes list'!$D$9:$E$58,2,FALSE) ) )","v":""},null,null,null,null,{"$f":"IF(TRIM(CV291)=\"\", \"\", IF(VLOOKUP(CV291,'Footnotes list'!$D$9:$E$58,2,FALSE)=0,\"\",VLOOKUP(CV291,'Footnotes list'!$D$9:$E$58,2,FALSE) ) )","v":""},null,null,null,null,{"$f":"IF(TRIM(DA291)=\"\", \"\", IF(VLOOKUP(DA291,'Footnotes list'!$D$9:$E$58,2,FALSE)=0,\"\",VLOOKUP(DA291,'Footnotes list'!$D$9:$E$58,2,FALSE) ) )","v":""},null,null,null,null,{"$f":"IF(TRIM(DF291)=\"\", \"\", IF(VLOOKUP(DF291,'Footnotes list'!$D$9:$E$58,2,FALSE)=0,\"\",VLOOKUP(DF291,'Footnotes list'!$D$9:$E$58,2,FALSE) ) )","v":""},null,null,null,null,{"$f":"IF(TRIM(DK291)=\"\", \"\", IF(VLOOKUP(DK291,'Footnotes list'!$D$9:$E$58,2,FALSE)=0,\"\",VLOOKUP(DK291,'Footnotes list'!$D$9:$E$58,2,FALSE) ) )","v":""},null,null,null,null,{"$f":"IF(TRIM(DP291)=\"\", \"\", IF(VLOOKUP(DP291,'Footnotes list'!$D$9:$E$58,2,FALSE)=0,\"\",VLOOKUP(DP291,'Footnotes list'!$D$9:$E$58,2,FALSE) ) )","v":""},null,null,null,null,{"$f":"IF(TRIM(DU291)=\"\", \"\", IF(VLOOKUP(DU291,'Footnotes list'!$D$9:$E$58,2,FALSE)=0,\"\",VLOOKUP(DU291,'Footnotes list'!$D$9:$E$58,2,FALSE) ) )","v":""},null,null,null,null,{"$f":"IF(TRIM(DZ291)=\"\", \"\", IF(VLOOKUP(DZ291,'Footnotes list'!$D$9:$E$58,2,FALSE)=0,\"\",VLOOKUP(DZ291,'Footnotes list'!$D$9:$E$58,2,FALSE) ) )","v":""},null,null,null,null,{"$f":"IF(TRIM(EE291)=\"\", \"\", IF(VLOOKUP(EE291,'Footnotes list'!$D$9:$E$58,2,FALSE)=0,\"\",VLOOKUP(EE291,'Footnotes list'!$D$9:$E$58,2,FALSE) ) )","v":""},null,null,null,null,{"$f":"IF(TRIM(EJ291)=\"\", \"\", IF(VLOOKUP(EJ291,'Footnotes list'!$D$9:$E$58,2,FALSE)=0,\"\",VLOOKUP(EJ291,'Footnotes list'!$D$9:$E$58,2,FALSE) ) )","v":""},null,null,null,null,{"$f":"IF(TRIM(EO291)=\"\", \"\", IF(VLOOKUP(EO291,'Footnotes list'!$D$9:$E$58,2,FALSE)=0,\"\",VLOOKUP(EO291,'Footnotes list'!$D$9:$E$58,2,FALSE) ) )","v":""},null,null,null,null,{"$f":"IF(TRIM(ET291)=\"\", \"\", IF(VLOOKUP(ET291,'Footnotes list'!$D$9:$E$58,2,FALSE)=0,\"\",VLOOKUP(ET291,'Footnotes list'!$D$9:$E$58,2,FALSE) ) )","v":""},null,null,null,null,{"$f":"IF(TRIM(EY291)=\"\", \"\", IF(VLOOKUP(EY291,'Footnotes list'!$D$9:$E$58,2,FALSE)=0,\"\",VLOOKUP(EY291,'Footnotes list'!$D$9:$E$58,2,FALSE) ) )","v":""}]
[null,null,"S","MKT","market activities, including:",null,null,null,null,null,{"$f":"IF(TRIM(J292)=\"\", \"\", IF(VLOOKUP(J292,'Footnotes list'!$D$9:$E$58,2,FALSE)=0,\"\",VLOOKUP(J292,'Footnotes list'!$D$9:$E$58,2,FALSE) ) )","v":""},null,null,null,null,{"$f":"IF(TRIM(O292)=\"\", \"\", IF(VLOOKUP(O292,'Footnotes list'!$D$9:$E$58,2,FALSE)=0,\"\",VLOOKUP(O292,'Footnotes list'!$D$9:$E$58,2,FALSE) ) )","v":""},null,null,null,null,{"$f":"IF(TRIM(T292)=\"\", \"\", IF(VLOOKUP(T292,'Footnotes list'!$D$9:$E$58,2,FALSE)=0,\"\",VLOOKUP(T292,'Footnotes list'!$D$9:$E$58,2,FALSE) ) )","v":""},null,null,null,null,{"$f":"IF(TRIM(Y292)=\"\", \"\", IF(VLOOKUP(Y292,'Footnotes list'!$D$9:$E$58,2,FALSE)=0,\"\",VLOOKUP(Y292,'Footnotes list'!$D$9:$E$58,2,FALSE) ) )","v":""},null,null,null,null,{"$f":"IF(TRIM(AD292)=\"\", \"\", IF(VLOOKUP(AD292,'Footnotes list'!$D$9:$E$58,2,FALSE)=0,\"\",VLOOKUP(AD292,'Footnotes list'!$D$9:$E$58,2,FALSE) ) )","v":""},null,null,null,null,{"$f":"IF(TRIM(AI292)=\"\", \"\", IF(VLOOKUP(AI292,'Footnotes list'!$D$9:$E$58,2,FALSE)=0,\"\",VLOOKUP(AI292,'Footnotes list'!$D$9:$E$58,2,FALSE) ) )","v":""},null,null,null,null,{"$f":"IF(TRIM(AN292)=\"\", \"\", IF(VLOOKUP(AN292,'Footnotes list'!$D$9:$E$58,2,FALSE)=0,\"\",VLOOKUP(AN292,'Footnotes list'!$D$9:$E$58,2,FALSE) ) )","v":""},null,null,null,null,{"$f":"IF(TRIM(AS292)=\"\", \"\", IF(VLOOKUP(AS292,'Footnotes list'!$D$9:$E$58,2,FALSE)=0,\"\",VLOOKUP(AS292,'Footnotes list'!$D$9:$E$58,2,FALSE) ) )","v":""},null,null,null,null,{"$f":"IF(TRIM(AX292)=\"\", \"\", IF(VLOOKUP(AX292,'Footnotes list'!$D$9:$E$58,2,FALSE)=0,\"\",VLOOKUP(AX292,'Footnotes list'!$D$9:$E$58,2,FALSE) ) )","v":""},null,null,null,null,{"$f":"IF(TRIM(BC292)=\"\", \"\", IF(VLOOKUP(BC292,'Footnotes list'!$D$9:$E$58,2,FALSE)=0,\"\",VLOOKUP(BC292,'Footnotes list'!$D$9:$E$58,2,FALSE) ) )","v":""},null,null,null,null,{"$f":"IF(TRIM(BH292)=\"\", \"\", IF(VLOOKUP(BH292,'Footnotes list'!$D$9:$E$58,2,FALSE)=0,\"\",VLOOKUP(BH292,'Footnotes list'!$D$9:$E$58,2,FALSE) ) )","v":""},null,null,null,null,{"$f":"IF(TRIM(BM292)=\"\", \"\", IF(VLOOKUP(BM292,'Footnotes list'!$D$9:$E$58,2,FALSE)=0,\"\",VLOOKUP(BM292,'Footnotes list'!$D$9:$E$58,2,FALSE) ) )","v":""},null,null,null,null,{"$f":"IF(TRIM(BR292)=\"\", \"\", IF(VLOOKUP(BR292,'Footnotes list'!$D$9:$E$58,2,FALSE)=0,\"\",VLOOKUP(BR292,'Footnotes list'!$D$9:$E$58,2,FALSE) ) )","v":""},null,null,null,null,{"$f":"IF(TRIM(BW292)=\"\", \"\", IF(VLOOKUP(BW292,'Footnotes list'!$D$9:$E$58,2,FALSE)=0,\"\",VLOOKUP(BW292,'Footnotes list'!$D$9:$E$58,2,FALSE) ) )","v":""},null,null,null,null,{"$f":"IF(TRIM(CB292)=\"\", \"\", IF(VLOOKUP(CB292,'Footnotes list'!$D$9:$E$58,2,FALSE)=0,\"\",VLOOKUP(CB292,'Footnotes list'!$D$9:$E$58,2,FALSE) ) )","v":""},null,null,null,null,{"$f":"IF(TRIM(CG292)=\"\", \"\", IF(VLOOKUP(CG292,'Footnotes list'!$D$9:$E$58,2,FALSE)=0,\"\",VLOOKUP(CG292,'Footnotes list'!$D$9:$E$58,2,FALSE) ) )","v":""},null,null,null,null,{"$f":"IF(TRIM(CL292)=\"\", \"\", IF(VLOOKUP(CL292,'Footnotes list'!$D$9:$E$58,2,FALSE)=0,\"\",VLOOKUP(CL292,'Footnotes list'!$D$9:$E$58,2,FALSE) ) )","v":""},null,null,null,null,{"$f":"IF(TRIM(CQ292)=\"\", \"\", IF(VLOOKUP(CQ292,'Footnotes list'!$D$9:$E$58,2,FALSE)=0,\"\",VLOOKUP(CQ292,'Footnotes list'!$D$9:$E$58,2,FALSE) ) )","v":""},null,null,null,null,{"$f":"IF(TRIM(CV292)=\"\", \"\", IF(VLOOKUP(CV292,'Footnotes list'!$D$9:$E$58,2,FALSE)=0,\"\",VLOOKUP(CV292,'Footnotes list'!$D$9:$E$58,2,FALSE) ) )","v":""},null,null,null,null,{"$f":"IF(TRIM(DA292)=\"\", \"\", IF(VLOOKUP(DA292,'Footnotes list'!$D$9:$E$58,2,FALSE)=0,\"\",VLOOKUP(DA292,'Footnotes list'!$D$9:$E$58,2,FALSE) ) )","v":""},null,null,null,null,{"$f":"IF(TRIM(DF292)=\"\", \"\", IF(VLOOKUP(DF292,'Footnotes list'!$D$9:$E$58,2,FALSE)=0,\"\",VLOOKUP(DF292,'Footnotes list'!$D$9:$E$58,2,FALSE) ) )","v":""},null,null,null,null,{"$f":"IF(TRIM(DK292)=\"\", \"\", IF(VLOOKUP(DK292,'Footnotes list'!$D$9:$E$58,2,FALSE)=0,\"\",VLOOKUP(DK292,'Footnotes list'!$D$9:$E$58,2,FALSE) ) )","v":""},null,null,null,null,{"$f":"IF(TRIM(DP292)=\"\", \"\", IF(VLOOKUP(DP292,'Footnotes list'!$D$9:$E$58,2,FALSE)=0,\"\",VLOOKUP(DP292,'Footnotes list'!$D$9:$E$58,2,FALSE) ) )","v":""},null,null,null,null,{"$f":"IF(TRIM(DU292)=\"\", \"\", IF(VLOOKUP(DU292,'Footnotes list'!$D$9:$E$58,2,FALSE)=0,\"\",VLOOKUP(DU292,'Footnotes list'!$D$9:$E$58,2,FALSE) ) )","v":""},null,null,null,null,{"$f":"IF(TRIM(DZ292)=\"\", \"\", IF(VLOOKUP(DZ292,'Footnotes list'!$D$9:$E$58,2,FALSE)=0,\"\",VLOOKUP(DZ292,'Footnotes list'!$D$9:$E$58,2,FALSE) ) )","v":""},null,null,null,null,{"$f":"IF(TRIM(EE292)=\"\", \"\", IF(VLOOKUP(EE292,'Footnotes list'!$D$9:$E$58,2,FALSE)=0,\"\",VLOOKUP(EE292,'Footnotes list'!$D$9:$E$58,2,FALSE) ) )","v":""},null,null,null,null,{"$f":"IF(TRIM(EJ292)=\"\", \"\", IF(VLOOKUP(EJ292,'Footnotes list'!$D$9:$E$58,2,FALSE)=0,\"\",VLOOKUP(EJ292,'Footnotes list'!$D$9:$E$58,2,FALSE) ) )","v":""},null,null,null,null,{"$f":"IF(TRIM(EO292)=\"\", \"\", IF(VLOOKUP(EO292,'Footnotes list'!$D$9:$E$58,2,FALSE)=0,\"\",VLOOKUP(EO292,'Footnotes list'!$D$9:$E$58,2,FALSE) ) )","v":""},null,null,null,null,{"$f":"IF(TRIM(ET292)=\"\", \"\", IF(VLOOKUP(ET292,'Footnotes list'!$D$9:$E$58,2,FALSE)=0,\"\",VLOOKUP(ET292,'Footnotes list'!$D$9:$E$58,2,FALSE) ) )","v":""},null,null,null,null,{"$f":"IF(TRIM(EY292)=\"\", \"\", IF(VLOOKUP(EY292,'Footnotes list'!$D$9:$E$58,2,FALSE)=0,\"\",VLOOKUP(EY292,'Footnotes list'!$D$9:$E$58,2,FALSE) ) )","v":""}]
[null,null,"S","ES_CS","environmental specific services",null,null,null,null,null,{"$f":"IF(TRIM(J293)=\"\", \"\", IF(VLOOKUP(J293,'Footnotes list'!$D$9:$E$58,2,FALSE)=0,\"\",VLOOKUP(J293,'Footnotes list'!$D$9:$E$58,2,FALSE) ) )","v":""},null,null,null,null,{"$f":"IF(TRIM(O293)=\"\", \"\", IF(VLOOKUP(O293,'Footnotes list'!$D$9:$E$58,2,FALSE)=0,\"\",VLOOKUP(O293,'Footnotes list'!$D$9:$E$58,2,FALSE) ) )","v":""},null,null,null,null,{"$f":"IF(TRIM(T293)=\"\", \"\", IF(VLOOKUP(T293,'Footnotes list'!$D$9:$E$58,2,FALSE)=0,\"\",VLOOKUP(T293,'Footnotes list'!$D$9:$E$58,2,FALSE) ) )","v":""},null,null,null,null,{"$f":"IF(TRIM(Y293)=\"\", \"\", IF(VLOOKUP(Y293,'Footnotes list'!$D$9:$E$58,2,FALSE)=0,\"\",VLOOKUP(Y293,'Footnotes list'!$D$9:$E$58,2,FALSE) ) )","v":""},null,null,null,null,{"$f":"IF(TRIM(AD293)=\"\", \"\", IF(VLOOKUP(AD293,'Footnotes list'!$D$9:$E$58,2,FALSE)=0,\"\",VLOOKUP(AD293,'Footnotes list'!$D$9:$E$58,2,FALSE) ) )","v":""},null,null,null,null,{"$f":"IF(TRIM(AI293)=\"\", \"\", IF(VLOOKUP(AI293,'Footnotes list'!$D$9:$E$58,2,FALSE)=0,\"\",VLOOKUP(AI293,'Footnotes list'!$D$9:$E$58,2,FALSE) ) )","v":""},null,null,null,null,{"$f":"IF(TRIM(AN293)=\"\", \"\", IF(VLOOKUP(AN293,'Footnotes list'!$D$9:$E$58,2,FALSE)=0,\"\",VLOOKUP(AN293,'Footnotes list'!$D$9:$E$58,2,FALSE) ) )","v":""},null,null,null,null,{"$f":"IF(TRIM(AS293)=\"\", \"\", IF(VLOOKUP(AS293,'Footnotes list'!$D$9:$E$58,2,FALSE)=0,\"\",VLOOKUP(AS293,'Footnotes list'!$D$9:$E$58,2,FALSE) ) )","v":""},null,null,null,null,{"$f":"IF(TRIM(AX293)=\"\", \"\", IF(VLOOKUP(AX293,'Footnotes list'!$D$9:$E$58,2,FALSE)=0,\"\",VLOOKUP(AX293,'Footnotes list'!$D$9:$E$58,2,FALSE) ) )","v":""},null,null,null,null,{"$f":"IF(TRIM(BC293)=\"\", \"\", IF(VLOOKUP(BC293,'Footnotes list'!$D$9:$E$58,2,FALSE)=0,\"\",VLOOKUP(BC293,'Footnotes list'!$D$9:$E$58,2,FALSE) ) )","v":""},null,null,null,null,{"$f":"IF(TRIM(BH293)=\"\", \"\", IF(VLOOKUP(BH293,'Footnotes list'!$D$9:$E$58,2,FALSE)=0,\"\",VLOOKUP(BH293,'Footnotes list'!$D$9:$E$58,2,FALSE) ) )","v":""},null,null,null,null,{"$f":"IF(TRIM(BM293)=\"\", \"\", IF(VLOOKUP(BM293,'Footnotes list'!$D$9:$E$58,2,FALSE)=0,\"\",VLOOKUP(BM293,'Footnotes list'!$D$9:$E$58,2,FALSE) ) )","v":""},null,null,null,null,{"$f":"IF(TRIM(BR293)=\"\", \"\", IF(VLOOKUP(BR293,'Footnotes list'!$D$9:$E$58,2,FALSE)=0,\"\",VLOOKUP(BR293,'Footnotes list'!$D$9:$E$58,2,FALSE) ) )","v":""},null,null,null,null,{"$f":"IF(TRIM(BW293)=\"\", \"\", IF(VLOOKUP(BW293,'Footnotes list'!$D$9:$E$58,2,FALSE)=0,\"\",VLOOKUP(BW293,'Footnotes list'!$D$9:$E$58,2,FALSE) ) )","v":""},null,null,null,null,{"$f":"IF(TRIM(CB293)=\"\", \"\", IF(VLOOKUP(CB293,'Footnotes list'!$D$9:$E$58,2,FALSE)=0,\"\",VLOOKUP(CB293,'Footnotes list'!$D$9:$E$58,2,FALSE) ) )","v":""},null,null,null,null,{"$f":"IF(TRIM(CG293)=\"\", \"\", IF(VLOOKUP(CG293,'Footnotes list'!$D$9:$E$58,2,FALSE)=0,\"\",VLOOKUP(CG293,'Footnotes list'!$D$9:$E$58,2,FALSE) ) )","v":""},null,null,null,null,{"$f":"IF(TRIM(CL293)=\"\", \"\", IF(VLOOKUP(CL293,'Footnotes list'!$D$9:$E$58,2,FALSE)=0,\"\",VLOOKUP(CL293,'Footnotes list'!$D$9:$E$58,2,FALSE) ) )","v":""},null,null,null,null,{"$f":"IF(TRIM(CQ293)=\"\", \"\", IF(VLOOKUP(CQ293,'Footnotes list'!$D$9:$E$58,2,FALSE)=0,\"\",VLOOKUP(CQ293,'Footnotes list'!$D$9:$E$58,2,FALSE) ) )","v":""},null,null,null,null,{"$f":"IF(TRIM(CV293)=\"\", \"\", IF(VLOOKUP(CV293,'Footnotes list'!$D$9:$E$58,2,FALSE)=0,\"\",VLOOKUP(CV293,'Footnotes list'!$D$9:$E$58,2,FALSE) ) )","v":""},null,null,null,null,{"$f":"IF(TRIM(DA293)=\"\", \"\", IF(VLOOKUP(DA293,'Footnotes list'!$D$9:$E$58,2,FALSE)=0,\"\",VLOOKUP(DA293,'Footnotes list'!$D$9:$E$58,2,FALSE) ) )","v":""},null,null,null,null,{"$f":"IF(TRIM(DF293)=\"\", \"\", IF(VLOOKUP(DF293,'Footnotes list'!$D$9:$E$58,2,FALSE)=0,\"\",VLOOKUP(DF293,'Footnotes list'!$D$9:$E$58,2,FALSE) ) )","v":""},null,null,null,null,{"$f":"IF(TRIM(DK293)=\"\", \"\", IF(VLOOKUP(DK293,'Footnotes list'!$D$9:$E$58,2,FALSE)=0,\"\",VLOOKUP(DK293,'Footnotes list'!$D$9:$E$58,2,FALSE) ) )","v":""},null,null,null,null,{"$f":"IF(TRIM(DP293)=\"\", \"\", IF(VLOOKUP(DP293,'Footnotes list'!$D$9:$E$58,2,FALSE)=0,\"\",VLOOKUP(DP293,'Footnotes list'!$D$9:$E$58,2,FALSE) ) )","v":""},null,null,null,null,{"$f":"IF(TRIM(DU293)=\"\", \"\", IF(VLOOKUP(DU293,'Footnotes list'!$D$9:$E$58,2,FALSE)=0,\"\",VLOOKUP(DU293,'Footnotes list'!$D$9:$E$58,2,FALSE) ) )","v":""},null,null,null,null,{"$f":"IF(TRIM(DZ293)=\"\", \"\", IF(VLOOKUP(DZ293,'Footnotes list'!$D$9:$E$58,2,FALSE)=0,\"\",VLOOKUP(DZ293,'Footnotes list'!$D$9:$E$58,2,FALSE) ) )","v":""},null,null,null,null,{"$f":"IF(TRIM(EE293)=\"\", \"\", IF(VLOOKUP(EE293,'Footnotes list'!$D$9:$E$58,2,FALSE)=0,\"\",VLOOKUP(EE293,'Footnotes list'!$D$9:$E$58,2,FALSE) ) )","v":""},null,null,null,null,{"$f":"IF(TRIM(EJ293)=\"\", \"\", IF(VLOOKUP(EJ293,'Footnotes list'!$D$9:$E$58,2,FALSE)=0,\"\",VLOOKUP(EJ293,'Footnotes list'!$D$9:$E$58,2,FALSE) ) )","v":""},null,null,null,null,{"$f":"IF(TRIM(EO293)=\"\", \"\", IF(VLOOKUP(EO293,'Footnotes list'!$D$9:$E$58,2,FALSE)=0,\"\",VLOOKUP(EO293,'Footnotes list'!$D$9:$E$58,2,FALSE) ) )","v":""},null,null,null,null,{"$f":"IF(TRIM(ET293)=\"\", \"\", IF(VLOOKUP(ET293,'Footnotes list'!$D$9:$E$58,2,FALSE)=0,\"\",VLOOKUP(ET293,'Footnotes list'!$D$9:$E$58,2,FALSE) ) )","v":""},null,null,null,null,{"$f":"IF(TRIM(EY293)=\"\", \"\", IF(VLOOKUP(EY293,'Footnotes list'!$D$9:$E$58,2,FALSE)=0,\"\",VLOOKUP(EY293,'Footnotes list'!$D$9:$E$58,2,FALSE) ) )","v":""}]
[null,null,"S","C_REP","cleaner and resource efficient products",null,null,null,null,null,{"$f":"IF(TRIM(J294)=\"\", \"\", IF(VLOOKUP(J294,'Footnotes list'!$D$9:$E$58,2,FALSE)=0,\"\",VLOOKUP(J294,'Footnotes list'!$D$9:$E$58,2,FALSE) ) )","v":""},null,null,null,null,{"$f":"IF(TRIM(O294)=\"\", \"\", IF(VLOOKUP(O294,'Footnotes list'!$D$9:$E$58,2,FALSE)=0,\"\",VLOOKUP(O294,'Footnotes list'!$D$9:$E$58,2,FALSE) ) )","v":""},null,null,null,null,{"$f":"IF(TRIM(T294)=\"\", \"\", IF(VLOOKUP(T294,'Footnotes list'!$D$9:$E$58,2,FALSE)=0,\"\",VLOOKUP(T294,'Footnotes list'!$D$9:$E$58,2,FALSE) ) )","v":""},null,null,null,null,{"$f":"IF(TRIM(Y294)=\"\", \"\", IF(VLOOKUP(Y294,'Footnotes list'!$D$9:$E$58,2,FALSE)=0,\"\",VLOOKUP(Y294,'Footnotes list'!$D$9:$E$58,2,FALSE) ) )","v":""},null,null,null,null,{"$f":"IF(TRIM(AD294)=\"\", \"\", IF(VLOOKUP(AD294,'Footnotes list'!$D$9:$E$58,2,FALSE)=0,\"\",VLOOKUP(AD294,'Footnotes list'!$D$9:$E$58,2,FALSE) ) )","v":""},null,null,null,null,{"$f":"IF(TRIM(AI294)=\"\", \"\", IF(VLOOKUP(AI294,'Footnotes list'!$D$9:$E$58,2,FALSE)=0,\"\",VLOOKUP(AI294,'Footnotes list'!$D$9:$E$58,2,FALSE) ) )","v":""},null,null,null,null,{"$f":"IF(TRIM(AN294)=\"\", \"\", IF(VLOOKUP(AN294,'Footnotes list'!$D$9:$E$58,2,FALSE)=0,\"\",VLOOKUP(AN294,'Footnotes list'!$D$9:$E$58,2,FALSE) ) )","v":""},null,null,null,null,{"$f":"IF(TRIM(AS294)=\"\", \"\", IF(VLOOKUP(AS294,'Footnotes list'!$D$9:$E$58,2,FALSE)=0,\"\",VLOOKUP(AS294,'Footnotes list'!$D$9:$E$58,2,FALSE) ) )","v":""},null,null,null,null,{"$f":"IF(TRIM(AX294)=\"\", \"\", IF(VLOOKUP(AX294,'Footnotes list'!$D$9:$E$58,2,FALSE)=0,\"\",VLOOKUP(AX294,'Footnotes list'!$D$9:$E$58,2,FALSE) ) )","v":""},null,null,null,null,{"$f":"IF(TRIM(BC294)=\"\", \"\", IF(VLOOKUP(BC294,'Footnotes list'!$D$9:$E$58,2,FALSE)=0,\"\",VLOOKUP(BC294,'Footnotes list'!$D$9:$E$58,2,FALSE) ) )","v":""},null,null,null,null,{"$f":"IF(TRIM(BH294)=\"\", \"\", IF(VLOOKUP(BH294,'Footnotes list'!$D$9:$E$58,2,FALSE)=0,\"\",VLOOKUP(BH294,'Footnotes list'!$D$9:$E$58,2,FALSE) ) )","v":""},null,null,null,null,{"$f":"IF(TRIM(BM294)=\"\", \"\", IF(VLOOKUP(BM294,'Footnotes list'!$D$9:$E$58,2,FALSE)=0,\"\",VLOOKUP(BM294,'Footnotes list'!$D$9:$E$58,2,FALSE) ) )","v":""},null,null,null,null,{"$f":"IF(TRIM(BR294)=\"\", \"\", IF(VLOOKUP(BR294,'Footnotes list'!$D$9:$E$58,2,FALSE)=0,\"\",VLOOKUP(BR294,'Footnotes list'!$D$9:$E$58,2,FALSE) ) )","v":""},null,null,null,null,{"$f":"IF(TRIM(BW294)=\"\", \"\", IF(VLOOKUP(BW294,'Footnotes list'!$D$9:$E$58,2,FALSE)=0,\"\",VLOOKUP(BW294,'Footnotes list'!$D$9:$E$58,2,FALSE) ) )","v":""},null,null,null,null,{"$f":"IF(TRIM(CB294)=\"\", \"\", IF(VLOOKUP(CB294,'Footnotes list'!$D$9:$E$58,2,FALSE)=0,\"\",VLOOKUP(CB294,'Footnotes list'!$D$9:$E$58,2,FALSE) ) )","v":""},null,null,null,null,{"$f":"IF(TRIM(CG294)=\"\", \"\", IF(VLOOKUP(CG294,'Footnotes list'!$D$9:$E$58,2,FALSE)=0,\"\",VLOOKUP(CG294,'Footnotes list'!$D$9:$E$58,2,FALSE) ) )","v":""},null,null,null,null,{"$f":"IF(TRIM(CL294)=\"\", \"\", IF(VLOOKUP(CL294,'Footnotes list'!$D$9:$E$58,2,FALSE)=0,\"\",VLOOKUP(CL294,'Footnotes list'!$D$9:$E$58,2,FALSE) ) )","v":""},null,null,null,null,{"$f":"IF(TRIM(CQ294)=\"\", \"\", IF(VLOOKUP(CQ294,'Footnotes list'!$D$9:$E$58,2,FALSE)=0,\"\",VLOOKUP(CQ294,'Footnotes list'!$D$9:$E$58,2,FALSE) ) )","v":""},null,null,null,null,{"$f":"IF(TRIM(CV294)=\"\", \"\", IF(VLOOKUP(CV294,'Footnotes list'!$D$9:$E$58,2,FALSE)=0,\"\",VLOOKUP(CV294,'Footnotes list'!$D$9:$E$58,2,FALSE) ) )","v":""},null,null,null,null,{"$f":"IF(TRIM(DA294)=\"\", \"\", IF(VLOOKUP(DA294,'Footnotes list'!$D$9:$E$58,2,FALSE)=0,\"\",VLOOKUP(DA294,'Footnotes list'!$D$9:$E$58,2,FALSE) ) )","v":""},null,null,null,null,{"$f":"IF(TRIM(DF294)=\"\", \"\", IF(VLOOKUP(DF294,'Footnotes list'!$D$9:$E$58,2,FALSE)=0,\"\",VLOOKUP(DF294,'Footnotes list'!$D$9:$E$58,2,FALSE) ) )","v":""},null,null,null,null,{"$f":"IF(TRIM(DK294)=\"\", \"\", IF(VLOOKUP(DK294,'Footnotes list'!$D$9:$E$58,2,FALSE)=0,\"\",VLOOKUP(DK294,'Footnotes list'!$D$9:$E$58,2,FALSE) ) )","v":""},null,null,null,null,{"$f":"IF(TRIM(DP294)=\"\", \"\", IF(VLOOKUP(DP294,'Footnotes list'!$D$9:$E$58,2,FALSE)=0,\"\",VLOOKUP(DP294,'Footnotes list'!$D$9:$E$58,2,FALSE) ) )","v":""},null,null,null,null,{"$f":"IF(TRIM(DU294)=\"\", \"\", IF(VLOOKUP(DU294,'Footnotes list'!$D$9:$E$58,2,FALSE)=0,\"\",VLOOKUP(DU294,'Footnotes list'!$D$9:$E$58,2,FALSE) ) )","v":""},null,null,null,null,{"$f":"IF(TRIM(DZ294)=\"\", \"\", IF(VLOOKUP(DZ294,'Footnotes list'!$D$9:$E$58,2,FALSE)=0,\"\",VLOOKUP(DZ294,'Footnotes list'!$D$9:$E$58,2,FALSE) ) )","v":""},null,null,null,null,{"$f":"IF(TRIM(EE294)=\"\", \"\", IF(VLOOKUP(EE294,'Footnotes list'!$D$9:$E$58,2,FALSE)=0,\"\",VLOOKUP(EE294,'Footnotes list'!$D$9:$E$58,2,FALSE) ) )","v":""},null,null,null,null,{"$f":"IF(TRIM(EJ294)=\"\", \"\", IF(VLOOKUP(EJ294,'Footnotes list'!$D$9:$E$58,2,FALSE)=0,\"\",VLOOKUP(EJ294,'Footnotes list'!$D$9:$E$58,2,FALSE) ) )","v":""},null,null,null,null,{"$f":"IF(TRIM(EO294)=\"\", \"\", IF(VLOOKUP(EO294,'Footnotes list'!$D$9:$E$58,2,FALSE)=0,\"\",VLOOKUP(EO294,'Footnotes list'!$D$9:$E$58,2,FALSE) ) )","v":""},null,null,null,null,{"$f":"IF(TRIM(ET294)=\"\", \"\", IF(VLOOKUP(ET294,'Footnotes list'!$D$9:$E$58,2,FALSE)=0,\"\",VLOOKUP(ET294,'Footnotes list'!$D$9:$E$58,2,FALSE) ) )","v":""},null,null,null,null,{"$f":"IF(TRIM(EY294)=\"\", \"\", IF(VLOOKUP(EY294,'Footnotes list'!$D$9:$E$58,2,FALSE)=0,\"\",VLOOKUP(EY294,'Footnotes list'!$D$9:$E$58,2,FALSE) ) )","v":""}]
[null,null,"T","TOT_EGSS","Total T - Activities of households as employers; undifferentiated goods- and services-producing activities of households for own use, of which:",null,null,null,null,null,{"$f":"IF(TRIM(J295)=\"\", \"\", IF(VLOOKUP(J295,'Footnotes list'!$D$9:$E$58,2,FALSE)=0,\"\",VLOOKUP(J295,'Footnotes list'!$D$9:$E$58,2,FALSE) ) )","v":""},null,null,null,null,{"$f":"IF(TRIM(O295)=\"\", \"\", IF(VLOOKUP(O295,'Footnotes list'!$D$9:$E$58,2,FALSE)=0,\"\",VLOOKUP(O295,'Footnotes list'!$D$9:$E$58,2,FALSE) ) )","v":""},null,null,null,null,{"$f":"IF(TRIM(T295)=\"\", \"\", IF(VLOOKUP(T295,'Footnotes list'!$D$9:$E$58,2,FALSE)=0,\"\",VLOOKUP(T295,'Footnotes list'!$D$9:$E$58,2,FALSE) ) )","v":""},null,null,null,null,{"$f":"IF(TRIM(Y295)=\"\", \"\", IF(VLOOKUP(Y295,'Footnotes list'!$D$9:$E$58,2,FALSE)=0,\"\",VLOOKUP(Y295,'Footnotes list'!$D$9:$E$58,2,FALSE) ) )","v":""},null,null,null,null,{"$f":"IF(TRIM(AD295)=\"\", \"\", IF(VLOOKUP(AD295,'Footnotes list'!$D$9:$E$58,2,FALSE)=0,\"\",VLOOKUP(AD295,'Footnotes list'!$D$9:$E$58,2,FALSE) ) )","v":""},null,null,null,null,{"$f":"IF(TRIM(AI295)=\"\", \"\", IF(VLOOKUP(AI295,'Footnotes list'!$D$9:$E$58,2,FALSE)=0,\"\",VLOOKUP(AI295,'Footnotes list'!$D$9:$E$58,2,FALSE) ) )","v":""},null,null,null,null,{"$f":"IF(TRIM(AN295)=\"\", \"\", IF(VLOOKUP(AN295,'Footnotes list'!$D$9:$E$58,2,FALSE)=0,\"\",VLOOKUP(AN295,'Footnotes list'!$D$9:$E$58,2,FALSE) ) )","v":""},null,null,null,null,{"$f":"IF(TRIM(AS295)=\"\", \"\", IF(VLOOKUP(AS295,'Footnotes list'!$D$9:$E$58,2,FALSE)=0,\"\",VLOOKUP(AS295,'Footnotes list'!$D$9:$E$58,2,FALSE) ) )","v":""},null,null,null,null,{"$f":"IF(TRIM(AX295)=\"\", \"\", IF(VLOOKUP(AX295,'Footnotes list'!$D$9:$E$58,2,FALSE)=0,\"\",VLOOKUP(AX295,'Footnotes list'!$D$9:$E$58,2,FALSE) ) )","v":""},null,null,null,null,{"$f":"IF(TRIM(BC295)=\"\", \"\", IF(VLOOKUP(BC295,'Footnotes list'!$D$9:$E$58,2,FALSE)=0,\"\",VLOOKUP(BC295,'Footnotes list'!$D$9:$E$58,2,FALSE) ) )","v":""},null,null,null,null,{"$f":"IF(TRIM(BH295)=\"\", \"\", IF(VLOOKUP(BH295,'Footnotes list'!$D$9:$E$58,2,FALSE)=0,\"\",VLOOKUP(BH295,'Footnotes list'!$D$9:$E$58,2,FALSE) ) )","v":""},null,null,null,null,{"$f":"IF(TRIM(BM295)=\"\", \"\", IF(VLOOKUP(BM295,'Footnotes list'!$D$9:$E$58,2,FALSE)=0,\"\",VLOOKUP(BM295,'Footnotes list'!$D$9:$E$58,2,FALSE) ) )","v":""},null,null,null,null,{"$f":"IF(TRIM(BR295)=\"\", \"\", IF(VLOOKUP(BR295,'Footnotes list'!$D$9:$E$58,2,FALSE)=0,\"\",VLOOKUP(BR295,'Footnotes list'!$D$9:$E$58,2,FALSE) ) )","v":""},null,null,null,null,{"$f":"IF(TRIM(BW295)=\"\", \"\", IF(VLOOKUP(BW295,'Footnotes list'!$D$9:$E$58,2,FALSE)=0,\"\",VLOOKUP(BW295,'Footnotes list'!$D$9:$E$58,2,FALSE) ) )","v":""},null,null,null,null,{"$f":"IF(TRIM(CB295)=\"\", \"\", IF(VLOOKUP(CB295,'Footnotes list'!$D$9:$E$58,2,FALSE)=0,\"\",VLOOKUP(CB295,'Footnotes list'!$D$9:$E$58,2,FALSE) ) )","v":""},null,null,null,null,{"$f":"IF(TRIM(CG295)=\"\", \"\", IF(VLOOKUP(CG295,'Footnotes list'!$D$9:$E$58,2,FALSE)=0,\"\",VLOOKUP(CG295,'Footnotes list'!$D$9:$E$58,2,FALSE) ) )","v":""},null,null,null,null,{"$f":"IF(TRIM(CL295)=\"\", \"\", IF(VLOOKUP(CL295,'Footnotes list'!$D$9:$E$58,2,FALSE)=0,\"\",VLOOKUP(CL295,'Footnotes list'!$D$9:$E$58,2,FALSE) ) )","v":""},null,null,null,null,{"$f":"IF(TRIM(CQ295)=\"\", \"\", IF(VLOOKUP(CQ295,'Footnotes list'!$D$9:$E$58,2,FALSE)=0,\"\",VLOOKUP(CQ295,'Footnotes list'!$D$9:$E$58,2,FALSE) ) )","v":""},null,null,null,null,{"$f":"IF(TRIM(CV295)=\"\", \"\", IF(VLOOKUP(CV295,'Footnotes list'!$D$9:$E$58,2,FALSE)=0,\"\",VLOOKUP(CV295,'Footnotes list'!$D$9:$E$58,2,FALSE) ) )","v":""},null,null,null,null,{"$f":"IF(TRIM(DA295)=\"\", \"\", IF(VLOOKUP(DA295,'Footnotes list'!$D$9:$E$58,2,FALSE)=0,\"\",VLOOKUP(DA295,'Footnotes list'!$D$9:$E$58,2,FALSE) ) )","v":""},null,null,null,null,{"$f":"IF(TRIM(DF295)=\"\", \"\", IF(VLOOKUP(DF295,'Footnotes list'!$D$9:$E$58,2,FALSE)=0,\"\",VLOOKUP(DF295,'Footnotes list'!$D$9:$E$58,2,FALSE) ) )","v":""},null,null,null,null,{"$f":"IF(TRIM(DK295)=\"\", \"\", IF(VLOOKUP(DK295,'Footnotes list'!$D$9:$E$58,2,FALSE)=0,\"\",VLOOKUP(DK295,'Footnotes list'!$D$9:$E$58,2,FALSE) ) )","v":""},null,null,null,null,{"$f":"IF(TRIM(DP295)=\"\", \"\", IF(VLOOKUP(DP295,'Footnotes list'!$D$9:$E$58,2,FALSE)=0,\"\",VLOOKUP(DP295,'Footnotes list'!$D$9:$E$58,2,FALSE) ) )","v":""},null,null,null,null,{"$f":"IF(TRIM(DU295)=\"\", \"\", IF(VLOOKUP(DU295,'Footnotes list'!$D$9:$E$58,2,FALSE)=0,\"\",VLOOKUP(DU295,'Footnotes list'!$D$9:$E$58,2,FALSE) ) )","v":""},null,null,null,null,{"$f":"IF(TRIM(DZ295)=\"\", \"\", IF(VLOOKUP(DZ295,'Footnotes list'!$D$9:$E$58,2,FALSE)=0,\"\",VLOOKUP(DZ295,'Footnotes list'!$D$9:$E$58,2,FALSE) ) )","v":""},null,null,null,null,{"$f":"IF(TRIM(EE295)=\"\", \"\", IF(VLOOKUP(EE295,'Footnotes list'!$D$9:$E$58,2,FALSE)=0,\"\",VLOOKUP(EE295,'Footnotes list'!$D$9:$E$58,2,FALSE) ) )","v":""},null,null,null,null,{"$f":"IF(TRIM(EJ295)=\"\", \"\", IF(VLOOKUP(EJ295,'Footnotes list'!$D$9:$E$58,2,FALSE)=0,\"\",VLOOKUP(EJ295,'Footnotes list'!$D$9:$E$58,2,FALSE) ) )","v":""},null,null,null,null,{"$f":"IF(TRIM(EO295)=\"\", \"\", IF(VLOOKUP(EO295,'Footnotes list'!$D$9:$E$58,2,FALSE)=0,\"\",VLOOKUP(EO295,'Footnotes list'!$D$9:$E$58,2,FALSE) ) )","v":""},null,null,null,null,{"$f":"IF(TRIM(ET295)=\"\", \"\", IF(VLOOKUP(ET295,'Footnotes list'!$D$9:$E$58,2,FALSE)=0,\"\",VLOOKUP(ET295,'Footnotes list'!$D$9:$E$58,2,FALSE) ) )","v":""},null,null,null,null,{"$f":"IF(TRIM(EY295)=\"\", \"\", IF(VLOOKUP(EY295,'Footnotes list'!$D$9:$E$58,2,FALSE)=0,\"\",VLOOKUP(EY295,'Footnotes list'!$D$9:$E$58,2,FALSE) ) )","v":""}]
[null,null,"T","ANC","ancillary activities",null,null,null,null,null,{"$f":"IF(TRIM(J296)=\"\", \"\", IF(VLOOKUP(J296,'Footnotes list'!$D$9:$E$58,2,FALSE)=0,\"\",VLOOKUP(J296,'Footnotes list'!$D$9:$E$58,2,FALSE) ) )","v":""},null,null,null,null,{"$f":"IF(TRIM(O296)=\"\", \"\", IF(VLOOKUP(O296,'Footnotes list'!$D$9:$E$58,2,FALSE)=0,\"\",VLOOKUP(O296,'Footnotes list'!$D$9:$E$58,2,FALSE) ) )","v":""},null,null,null,null,{"$f":"IF(TRIM(T296)=\"\", \"\", IF(VLOOKUP(T296,'Footnotes list'!$D$9:$E$58,2,FALSE)=0,\"\",VLOOKUP(T296,'Footnotes list'!$D$9:$E$58,2,FALSE) ) )","v":""},null,null,null,null,{"$f":"IF(TRIM(Y296)=\"\", \"\", IF(VLOOKUP(Y296,'Footnotes list'!$D$9:$E$58,2,FALSE)=0,\"\",VLOOKUP(Y296,'Footnotes list'!$D$9:$E$58,2,FALSE) ) )","v":""},null,null,null,null,{"$f":"IF(TRIM(AD296)=\"\", \"\", IF(VLOOKUP(AD296,'Footnotes list'!$D$9:$E$58,2,FALSE)=0,\"\",VLOOKUP(AD296,'Footnotes list'!$D$9:$E$58,2,FALSE) ) )","v":""},null,null,null,null,{"$f":"IF(TRIM(AI296)=\"\", \"\", IF(VLOOKUP(AI296,'Footnotes list'!$D$9:$E$58,2,FALSE)=0,\"\",VLOOKUP(AI296,'Footnotes list'!$D$9:$E$58,2,FALSE) ) )","v":""},null,null,null,null,{"$f":"IF(TRIM(AN296)=\"\", \"\", IF(VLOOKUP(AN296,'Footnotes list'!$D$9:$E$58,2,FALSE)=0,\"\",VLOOKUP(AN296,'Footnotes list'!$D$9:$E$58,2,FALSE) ) )","v":""},null,null,null,null,{"$f":"IF(TRIM(AS296)=\"\", \"\", IF(VLOOKUP(AS296,'Footnotes list'!$D$9:$E$58,2,FALSE)=0,\"\",VLOOKUP(AS296,'Footnotes list'!$D$9:$E$58,2,FALSE) ) )","v":""},null,null,null,null,{"$f":"IF(TRIM(AX296)=\"\", \"\", IF(VLOOKUP(AX296,'Footnotes list'!$D$9:$E$58,2,FALSE)=0,\"\",VLOOKUP(AX296,'Footnotes list'!$D$9:$E$58,2,FALSE) ) )","v":""},null,null,null,null,{"$f":"IF(TRIM(BC296)=\"\", \"\", IF(VLOOKUP(BC296,'Footnotes list'!$D$9:$E$58,2,FALSE)=0,\"\",VLOOKUP(BC296,'Footnotes list'!$D$9:$E$58,2,FALSE) ) )","v":""},null,null,null,null,{"$f":"IF(TRIM(BH296)=\"\", \"\", IF(VLOOKUP(BH296,'Footnotes list'!$D$9:$E$58,2,FALSE)=0,\"\",VLOOKUP(BH296,'Footnotes list'!$D$9:$E$58,2,FALSE) ) )","v":""},null,null,null,null,{"$f":"IF(TRIM(BM296)=\"\", \"\", IF(VLOOKUP(BM296,'Footnotes list'!$D$9:$E$58,2,FALSE)=0,\"\",VLOOKUP(BM296,'Footnotes list'!$D$9:$E$58,2,FALSE) ) )","v":""},null,null,null,null,{"$f":"IF(TRIM(BR296)=\"\", \"\", IF(VLOOKUP(BR296,'Footnotes list'!$D$9:$E$58,2,FALSE)=0,\"\",VLOOKUP(BR296,'Footnotes list'!$D$9:$E$58,2,FALSE) ) )","v":""},null,null,null,null,{"$f":"IF(TRIM(BW296)=\"\", \"\", IF(VLOOKUP(BW296,'Footnotes list'!$D$9:$E$58,2,FALSE)=0,\"\",VLOOKUP(BW296,'Footnotes list'!$D$9:$E$58,2,FALSE) ) )","v":""},null,null,null,null,{"$f":"IF(TRIM(CB296)=\"\", \"\", IF(VLOOKUP(CB296,'Footnotes list'!$D$9:$E$58,2,FALSE)=0,\"\",VLOOKUP(CB296,'Footnotes list'!$D$9:$E$58,2,FALSE) ) )","v":""},null,null,null,null,{"$f":"IF(TRIM(CG296)=\"\", \"\", IF(VLOOKUP(CG296,'Footnotes list'!$D$9:$E$58,2,FALSE)=0,\"\",VLOOKUP(CG296,'Footnotes list'!$D$9:$E$58,2,FALSE) ) )","v":""},null,null,null,null,{"$f":"IF(TRIM(CL296)=\"\", \"\", IF(VLOOKUP(CL296,'Footnotes list'!$D$9:$E$58,2,FALSE)=0,\"\",VLOOKUP(CL296,'Footnotes list'!$D$9:$E$58,2,FALSE) ) )","v":""},null,null,null,null,{"$f":"IF(TRIM(CQ296)=\"\", \"\", IF(VLOOKUP(CQ296,'Footnotes list'!$D$9:$E$58,2,FALSE)=0,\"\",VLOOKUP(CQ296,'Footnotes list'!$D$9:$E$58,2,FALSE) ) )","v":""},null,null,null,null,{"$f":"IF(TRIM(CV296)=\"\", \"\", IF(VLOOKUP(CV296,'Footnotes list'!$D$9:$E$58,2,FALSE)=0,\"\",VLOOKUP(CV296,'Footnotes list'!$D$9:$E$58,2,FALSE) ) )","v":""},null,null,null,null,{"$f":"IF(TRIM(DA296)=\"\", \"\", IF(VLOOKUP(DA296,'Footnotes list'!$D$9:$E$58,2,FALSE)=0,\"\",VLOOKUP(DA296,'Footnotes list'!$D$9:$E$58,2,FALSE) ) )","v":""},null,null,null,null,{"$f":"IF(TRIM(DF296)=\"\", \"\", IF(VLOOKUP(DF296,'Footnotes list'!$D$9:$E$58,2,FALSE)=0,\"\",VLOOKUP(DF296,'Footnotes list'!$D$9:$E$58,2,FALSE) ) )","v":""},null,null,null,null,{"$f":"IF(TRIM(DK296)=\"\", \"\", IF(VLOOKUP(DK296,'Footnotes list'!$D$9:$E$58,2,FALSE)=0,\"\",VLOOKUP(DK296,'Footnotes list'!$D$9:$E$58,2,FALSE) ) )","v":""},null,null,null,null,{"$f":"IF(TRIM(DP296)=\"\", \"\", IF(VLOOKUP(DP296,'Footnotes list'!$D$9:$E$58,2,FALSE)=0,\"\",VLOOKUP(DP296,'Footnotes list'!$D$9:$E$58,2,FALSE) ) )","v":""},null,null,null,null,{"$f":"IF(TRIM(DU296)=\"\", \"\", IF(VLOOKUP(DU296,'Footnotes list'!$D$9:$E$58,2,FALSE)=0,\"\",VLOOKUP(DU296,'Footnotes list'!$D$9:$E$58,2,FALSE) ) )","v":""},null,null,null,null,{"$f":"IF(TRIM(DZ296)=\"\", \"\", IF(VLOOKUP(DZ296,'Footnotes list'!$D$9:$E$58,2,FALSE)=0,\"\",VLOOKUP(DZ296,'Footnotes list'!$D$9:$E$58,2,FALSE) ) )","v":""},null,null,null,null,{"$f":"IF(TRIM(EE296)=\"\", \"\", IF(VLOOKUP(EE296,'Footnotes list'!$D$9:$E$58,2,FALSE)=0,\"\",VLOOKUP(EE296,'Footnotes list'!$D$9:$E$58,2,FALSE) ) )","v":""},null,null,null,null,{"$f":"IF(TRIM(EJ296)=\"\", \"\", IF(VLOOKUP(EJ296,'Footnotes list'!$D$9:$E$58,2,FALSE)=0,\"\",VLOOKUP(EJ296,'Footnotes list'!$D$9:$E$58,2,FALSE) ) )","v":""},null,null,null,null,{"$f":"IF(TRIM(EO296)=\"\", \"\", IF(VLOOKUP(EO296,'Footnotes list'!$D$9:$E$58,2,FALSE)=0,\"\",VLOOKUP(EO296,'Footnotes list'!$D$9:$E$58,2,FALSE) ) )","v":""},null,null,null,null,{"$f":"IF(TRIM(ET296)=\"\", \"\", IF(VLOOKUP(ET296,'Footnotes list'!$D$9:$E$58,2,FALSE)=0,\"\",VLOOKUP(ET296,'Footnotes list'!$D$9:$E$58,2,FALSE) ) )","v":""},null,null,null,null,{"$f":"IF(TRIM(EY296)=\"\", \"\", IF(VLOOKUP(EY296,'Footnotes list'!$D$9:$E$58,2,FALSE)=0,\"\",VLOOKUP(EY296,'Footnotes list'!$D$9:$E$58,2,FALSE) ) )","v":""}]
[null,null,"T","NMKT","non-market activities",null,null,null,null,null,{"$f":"IF(TRIM(J297)=\"\", \"\", IF(VLOOKUP(J297,'Footnotes list'!$D$9:$E$58,2,FALSE)=0,\"\",VLOOKUP(J297,'Footnotes list'!$D$9:$E$58,2,FALSE) ) )","v":""},null,null,null,null,{"$f":"IF(TRIM(O297)=\"\", \"\", IF(VLOOKUP(O297,'Footnotes list'!$D$9:$E$58,2,FALSE)=0,\"\",VLOOKUP(O297,'Footnotes list'!$D$9:$E$58,2,FALSE) ) )","v":""},null,null,null,null,{"$f":"IF(TRIM(T297)=\"\", \"\", IF(VLOOKUP(T297,'Footnotes list'!$D$9:$E$58,2,FALSE)=0,\"\",VLOOKUP(T297,'Footnotes list'!$D$9:$E$58,2,FALSE) ) )","v":""},null,null,null,null,{"$f":"IF(TRIM(Y297)=\"\", \"\", IF(VLOOKUP(Y297,'Footnotes list'!$D$9:$E$58,2,FALSE)=0,\"\",VLOOKUP(Y297,'Footnotes list'!$D$9:$E$58,2,FALSE) ) )","v":""},null,null,null,null,{"$f":"IF(TRIM(AD297)=\"\", \"\", IF(VLOOKUP(AD297,'Footnotes list'!$D$9:$E$58,2,FALSE)=0,\"\",VLOOKUP(AD297,'Footnotes list'!$D$9:$E$58,2,FALSE) ) )","v":""},null,null,null,null,{"$f":"IF(TRIM(AI297)=\"\", \"\", IF(VLOOKUP(AI297,'Footnotes list'!$D$9:$E$58,2,FALSE)=0,\"\",VLOOKUP(AI297,'Footnotes list'!$D$9:$E$58,2,FALSE) ) )","v":""},null,null,null,null,{"$f":"IF(TRIM(AN297)=\"\", \"\", IF(VLOOKUP(AN297,'Footnotes list'!$D$9:$E$58,2,FALSE)=0,\"\",VLOOKUP(AN297,'Footnotes list'!$D$9:$E$58,2,FALSE) ) )","v":""},null,null,null,null,{"$f":"IF(TRIM(AS297)=\"\", \"\", IF(VLOOKUP(AS297,'Footnotes list'!$D$9:$E$58,2,FALSE)=0,\"\",VLOOKUP(AS297,'Footnotes list'!$D$9:$E$58,2,FALSE) ) )","v":""},null,null,null,null,{"$f":"IF(TRIM(AX297)=\"\", \"\", IF(VLOOKUP(AX297,'Footnotes list'!$D$9:$E$58,2,FALSE)=0,\"\",VLOOKUP(AX297,'Footnotes list'!$D$9:$E$58,2,FALSE) ) )","v":""},null,null,null,null,{"$f":"IF(TRIM(BC297)=\"\", \"\", IF(VLOOKUP(BC297,'Footnotes list'!$D$9:$E$58,2,FALSE)=0,\"\",VLOOKUP(BC297,'Footnotes list'!$D$9:$E$58,2,FALSE) ) )","v":""},null,null,null,null,{"$f":"IF(TRIM(BH297)=\"\", \"\", IF(VLOOKUP(BH297,'Footnotes list'!$D$9:$E$58,2,FALSE)=0,\"\",VLOOKUP(BH297,'Footnotes list'!$D$9:$E$58,2,FALSE) ) )","v":""},null,null,null,null,{"$f":"IF(TRIM(BM297)=\"\", \"\", IF(VLOOKUP(BM297,'Footnotes list'!$D$9:$E$58,2,FALSE)=0,\"\",VLOOKUP(BM297,'Footnotes list'!$D$9:$E$58,2,FALSE) ) )","v":""},null,null,null,null,{"$f":"IF(TRIM(BR297)=\"\", \"\", IF(VLOOKUP(BR297,'Footnotes list'!$D$9:$E$58,2,FALSE)=0,\"\",VLOOKUP(BR297,'Footnotes list'!$D$9:$E$58,2,FALSE) ) )","v":""},null,null,null,null,{"$f":"IF(TRIM(BW297)=\"\", \"\", IF(VLOOKUP(BW297,'Footnotes list'!$D$9:$E$58,2,FALSE)=0,\"\",VLOOKUP(BW297,'Footnotes list'!$D$9:$E$58,2,FALSE) ) )","v":""},null,null,null,null,{"$f":"IF(TRIM(CB297)=\"\", \"\", IF(VLOOKUP(CB297,'Footnotes list'!$D$9:$E$58,2,FALSE)=0,\"\",VLOOKUP(CB297,'Footnotes list'!$D$9:$E$58,2,FALSE) ) )","v":""},null,null,null,null,{"$f":"IF(TRIM(CG297)=\"\", \"\", IF(VLOOKUP(CG297,'Footnotes list'!$D$9:$E$58,2,FALSE)=0,\"\",VLOOKUP(CG297,'Footnotes list'!$D$9:$E$58,2,FALSE) ) )","v":""},null,null,null,null,{"$f":"IF(TRIM(CL297)=\"\", \"\", IF(VLOOKUP(CL297,'Footnotes list'!$D$9:$E$58,2,FALSE)=0,\"\",VLOOKUP(CL297,'Footnotes list'!$D$9:$E$58,2,FALSE) ) )","v":""},null,null,null,null,{"$f":"IF(TRIM(CQ297)=\"\", \"\", IF(VLOOKUP(CQ297,'Footnotes list'!$D$9:$E$58,2,FALSE)=0,\"\",VLOOKUP(CQ297,'Footnotes list'!$D$9:$E$58,2,FALSE) ) )","v":""},null,null,null,null,{"$f":"IF(TRIM(CV297)=\"\", \"\", IF(VLOOKUP(CV297,'Footnotes list'!$D$9:$E$58,2,FALSE)=0,\"\",VLOOKUP(CV297,'Footnotes list'!$D$9:$E$58,2,FALSE) ) )","v":""},null,null,null,null,{"$f":"IF(TRIM(DA297)=\"\", \"\", IF(VLOOKUP(DA297,'Footnotes list'!$D$9:$E$58,2,FALSE)=0,\"\",VLOOKUP(DA297,'Footnotes list'!$D$9:$E$58,2,FALSE) ) )","v":""},null,null,null,null,{"$f":"IF(TRIM(DF297)=\"\", \"\", IF(VLOOKUP(DF297,'Footnotes list'!$D$9:$E$58,2,FALSE)=0,\"\",VLOOKUP(DF297,'Footnotes list'!$D$9:$E$58,2,FALSE) ) )","v":""},null,null,null,null,{"$f":"IF(TRIM(DK297)=\"\", \"\", IF(VLOOKUP(DK297,'Footnotes list'!$D$9:$E$58,2,FALSE)=0,\"\",VLOOKUP(DK297,'Footnotes list'!$D$9:$E$58,2,FALSE) ) )","v":""},null,null,null,null,{"$f":"IF(TRIM(DP297)=\"\", \"\", IF(VLOOKUP(DP297,'Footnotes list'!$D$9:$E$58,2,FALSE)=0,\"\",VLOOKUP(DP297,'Footnotes list'!$D$9:$E$58,2,FALSE) ) )","v":""},null,null,null,null,{"$f":"IF(TRIM(DU297)=\"\", \"\", IF(VLOOKUP(DU297,'Footnotes list'!$D$9:$E$58,2,FALSE)=0,\"\",VLOOKUP(DU297,'Footnotes list'!$D$9:$E$58,2,FALSE) ) )","v":""},null,null,null,null,{"$f":"IF(TRIM(DZ297)=\"\", \"\", IF(VLOOKUP(DZ297,'Footnotes list'!$D$9:$E$58,2,FALSE)=0,\"\",VLOOKUP(DZ297,'Footnotes list'!$D$9:$E$58,2,FALSE) ) )","v":""},null,null,null,null,{"$f":"IF(TRIM(EE297)=\"\", \"\", IF(VLOOKUP(EE297,'Footnotes list'!$D$9:$E$58,2,FALSE)=0,\"\",VLOOKUP(EE297,'Footnotes list'!$D$9:$E$58,2,FALSE) ) )","v":""},null,null,null,null,{"$f":"IF(TRIM(EJ297)=\"\", \"\", IF(VLOOKUP(EJ297,'Footnotes list'!$D$9:$E$58,2,FALSE)=0,\"\",VLOOKUP(EJ297,'Footnotes list'!$D$9:$E$58,2,FALSE) ) )","v":""},null,null,null,null,{"$f":"IF(TRIM(EO297)=\"\", \"\", IF(VLOOKUP(EO297,'Footnotes list'!$D$9:$E$58,2,FALSE)=0,\"\",VLOOKUP(EO297,'Footnotes list'!$D$9:$E$58,2,FALSE) ) )","v":""},null,null,null,null,{"$f":"IF(TRIM(ET297)=\"\", \"\", IF(VLOOKUP(ET297,'Footnotes list'!$D$9:$E$58,2,FALSE)=0,\"\",VLOOKUP(ET297,'Footnotes list'!$D$9:$E$58,2,FALSE) ) )","v":""},null,null,null,null,{"$f":"IF(TRIM(EY297)=\"\", \"\", IF(VLOOKUP(EY297,'Footnotes list'!$D$9:$E$58,2,FALSE)=0,\"\",VLOOKUP(EY297,'Footnotes list'!$D$9:$E$58,2,FALSE) ) )","v":""}]
[null,null,"T","OWN_USE","activities for own final use",null,null,null,null,null,{"$f":"IF(TRIM(J298)=\"\", \"\", IF(VLOOKUP(J298,'Footnotes list'!$D$9:$E$58,2,FALSE)=0,\"\",VLOOKUP(J298,'Footnotes list'!$D$9:$E$58,2,FALSE) ) )","v":""},null,null,null,null,{"$f":"IF(TRIM(O298)=\"\", \"\", IF(VLOOKUP(O298,'Footnotes list'!$D$9:$E$58,2,FALSE)=0,\"\",VLOOKUP(O298,'Footnotes list'!$D$9:$E$58,2,FALSE) ) )","v":""},null,null,null,null,{"$f":"IF(TRIM(T298)=\"\", \"\", IF(VLOOKUP(T298,'Footnotes list'!$D$9:$E$58,2,FALSE)=0,\"\",VLOOKUP(T298,'Footnotes list'!$D$9:$E$58,2,FALSE) ) )","v":""},null,null,null,null,{"$f":"IF(TRIM(Y298)=\"\", \"\", IF(VLOOKUP(Y298,'Footnotes list'!$D$9:$E$58,2,FALSE)=0,\"\",VLOOKUP(Y298,'Footnotes list'!$D$9:$E$58,2,FALSE) ) )","v":""},null,null,null,null,{"$f":"IF(TRIM(AD298)=\"\", \"\", IF(VLOOKUP(AD298,'Footnotes list'!$D$9:$E$58,2,FALSE)=0,\"\",VLOOKUP(AD298,'Footnotes list'!$D$9:$E$58,2,FALSE) ) )","v":""},null,null,null,null,{"$f":"IF(TRIM(AI298)=\"\", \"\", IF(VLOOKUP(AI298,'Footnotes list'!$D$9:$E$58,2,FALSE)=0,\"\",VLOOKUP(AI298,'Footnotes list'!$D$9:$E$58,2,FALSE) ) )","v":""},null,null,null,null,{"$f":"IF(TRIM(AN298)=\"\", \"\", IF(VLOOKUP(AN298,'Footnotes list'!$D$9:$E$58,2,FALSE)=0,\"\",VLOOKUP(AN298,'Footnotes list'!$D$9:$E$58,2,FALSE) ) )","v":""},null,null,null,null,{"$f":"IF(TRIM(AS298)=\"\", \"\", IF(VLOOKUP(AS298,'Footnotes list'!$D$9:$E$58,2,FALSE)=0,\"\",VLOOKUP(AS298,'Footnotes list'!$D$9:$E$58,2,FALSE) ) )","v":""},null,null,null,null,{"$f":"IF(TRIM(AX298)=\"\", \"\", IF(VLOOKUP(AX298,'Footnotes list'!$D$9:$E$58,2,FALSE)=0,\"\",VLOOKUP(AX298,'Footnotes list'!$D$9:$E$58,2,FALSE) ) )","v":""},null,null,null,null,{"$f":"IF(TRIM(BC298)=\"\", \"\", IF(VLOOKUP(BC298,'Footnotes list'!$D$9:$E$58,2,FALSE)=0,\"\",VLOOKUP(BC298,'Footnotes list'!$D$9:$E$58,2,FALSE) ) )","v":""},null,null,null,null,{"$f":"IF(TRIM(BH298)=\"\", \"\", IF(VLOOKUP(BH298,'Footnotes list'!$D$9:$E$58,2,FALSE)=0,\"\",VLOOKUP(BH298,'Footnotes list'!$D$9:$E$58,2,FALSE) ) )","v":""},null,null,null,null,{"$f":"IF(TRIM(BM298)=\"\", \"\", IF(VLOOKUP(BM298,'Footnotes list'!$D$9:$E$58,2,FALSE)=0,\"\",VLOOKUP(BM298,'Footnotes list'!$D$9:$E$58,2,FALSE) ) )","v":""},null,null,null,null,{"$f":"IF(TRIM(BR298)=\"\", \"\", IF(VLOOKUP(BR298,'Footnotes list'!$D$9:$E$58,2,FALSE)=0,\"\",VLOOKUP(BR298,'Footnotes list'!$D$9:$E$58,2,FALSE) ) )","v":""},null,null,null,null,{"$f":"IF(TRIM(BW298)=\"\", \"\", IF(VLOOKUP(BW298,'Footnotes list'!$D$9:$E$58,2,FALSE)=0,\"\",VLOOKUP(BW298,'Footnotes list'!$D$9:$E$58,2,FALSE) ) )","v":""},null,null,null,null,{"$f":"IF(TRIM(CB298)=\"\", \"\", IF(VLOOKUP(CB298,'Footnotes list'!$D$9:$E$58,2,FALSE)=0,\"\",VLOOKUP(CB298,'Footnotes list'!$D$9:$E$58,2,FALSE) ) )","v":""},null,null,null,null,{"$f":"IF(TRIM(CG298)=\"\", \"\", IF(VLOOKUP(CG298,'Footnotes list'!$D$9:$E$58,2,FALSE)=0,\"\",VLOOKUP(CG298,'Footnotes list'!$D$9:$E$58,2,FALSE) ) )","v":""},null,null,null,null,{"$f":"IF(TRIM(CL298)=\"\", \"\", IF(VLOOKUP(CL298,'Footnotes list'!$D$9:$E$58,2,FALSE)=0,\"\",VLOOKUP(CL298,'Footnotes list'!$D$9:$E$58,2,FALSE) ) )","v":""},null,null,null,null,{"$f":"IF(TRIM(CQ298)=\"\", \"\", IF(VLOOKUP(CQ298,'Footnotes list'!$D$9:$E$58,2,FALSE)=0,\"\",VLOOKUP(CQ298,'Footnotes list'!$D$9:$E$58,2,FALSE) ) )","v":""},null,null,null,null,{"$f":"IF(TRIM(CV298)=\"\", \"\", IF(VLOOKUP(CV298,'Footnotes list'!$D$9:$E$58,2,FALSE)=0,\"\",VLOOKUP(CV298,'Footnotes list'!$D$9:$E$58,2,FALSE) ) )","v":""},null,null,null,null,{"$f":"IF(TRIM(DA298)=\"\", \"\", IF(VLOOKUP(DA298,'Footnotes list'!$D$9:$E$58,2,FALSE)=0,\"\",VLOOKUP(DA298,'Footnotes list'!$D$9:$E$58,2,FALSE) ) )","v":""},null,null,null,null,{"$f":"IF(TRIM(DF298)=\"\", \"\", IF(VLOOKUP(DF298,'Footnotes list'!$D$9:$E$58,2,FALSE)=0,\"\",VLOOKUP(DF298,'Footnotes list'!$D$9:$E$58,2,FALSE) ) )","v":""},null,null,null,null,{"$f":"IF(TRIM(DK298)=\"\", \"\", IF(VLOOKUP(DK298,'Footnotes list'!$D$9:$E$58,2,FALSE)=0,\"\",VLOOKUP(DK298,'Footnotes list'!$D$9:$E$58,2,FALSE) ) )","v":""},null,null,null,null,{"$f":"IF(TRIM(DP298)=\"\", \"\", IF(VLOOKUP(DP298,'Footnotes list'!$D$9:$E$58,2,FALSE)=0,\"\",VLOOKUP(DP298,'Footnotes list'!$D$9:$E$58,2,FALSE) ) )","v":""},null,null,null,null,{"$f":"IF(TRIM(DU298)=\"\", \"\", IF(VLOOKUP(DU298,'Footnotes list'!$D$9:$E$58,2,FALSE)=0,\"\",VLOOKUP(DU298,'Footnotes list'!$D$9:$E$58,2,FALSE) ) )","v":""},null,null,null,null,{"$f":"IF(TRIM(DZ298)=\"\", \"\", IF(VLOOKUP(DZ298,'Footnotes list'!$D$9:$E$58,2,FALSE)=0,\"\",VLOOKUP(DZ298,'Footnotes list'!$D$9:$E$58,2,FALSE) ) )","v":""},null,null,null,null,{"$f":"IF(TRIM(EE298)=\"\", \"\", IF(VLOOKUP(EE298,'Footnotes list'!$D$9:$E$58,2,FALSE)=0,\"\",VLOOKUP(EE298,'Footnotes list'!$D$9:$E$58,2,FALSE) ) )","v":""},null,null,null,null,{"$f":"IF(TRIM(EJ298)=\"\", \"\", IF(VLOOKUP(EJ298,'Footnotes list'!$D$9:$E$58,2,FALSE)=0,\"\",VLOOKUP(EJ298,'Footnotes list'!$D$9:$E$58,2,FALSE) ) )","v":""},null,null,null,null,{"$f":"IF(TRIM(EO298)=\"\", \"\", IF(VLOOKUP(EO298,'Footnotes list'!$D$9:$E$58,2,FALSE)=0,\"\",VLOOKUP(EO298,'Footnotes list'!$D$9:$E$58,2,FALSE) ) )","v":""},null,null,null,null,{"$f":"IF(TRIM(ET298)=\"\", \"\", IF(VLOOKUP(ET298,'Footnotes list'!$D$9:$E$58,2,FALSE)=0,\"\",VLOOKUP(ET298,'Footnotes list'!$D$9:$E$58,2,FALSE) ) )","v":""},null,null,null,null,{"$f":"IF(TRIM(EY298)=\"\", \"\", IF(VLOOKUP(EY298,'Footnotes list'!$D$9:$E$58,2,FALSE)=0,\"\",VLOOKUP(EY298,'Footnotes list'!$D$9:$E$58,2,FALSE) ) )","v":""}]
[null,null,"T","MKT","market activities, including:",null,null,null,null,null,{"$f":"IF(TRIM(J299)=\"\", \"\", IF(VLOOKUP(J299,'Footnotes list'!$D$9:$E$58,2,FALSE)=0,\"\",VLOOKUP(J299,'Footnotes list'!$D$9:$E$58,2,FALSE) ) )","v":""},null,null,null,null,{"$f":"IF(TRIM(O299)=\"\", \"\", IF(VLOOKUP(O299,'Footnotes list'!$D$9:$E$58,2,FALSE)=0,\"\",VLOOKUP(O299,'Footnotes list'!$D$9:$E$58,2,FALSE) ) )","v":""},null,null,null,null,{"$f":"IF(TRIM(T299)=\"\", \"\", IF(VLOOKUP(T299,'Footnotes list'!$D$9:$E$58,2,FALSE)=0,\"\",VLOOKUP(T299,'Footnotes list'!$D$9:$E$58,2,FALSE) ) )","v":""},null,null,null,null,{"$f":"IF(TRIM(Y299)=\"\", \"\", IF(VLOOKUP(Y299,'Footnotes list'!$D$9:$E$58,2,FALSE)=0,\"\",VLOOKUP(Y299,'Footnotes list'!$D$9:$E$58,2,FALSE) ) )","v":""},null,null,null,null,{"$f":"IF(TRIM(AD299)=\"\", \"\", IF(VLOOKUP(AD299,'Footnotes list'!$D$9:$E$58,2,FALSE)=0,\"\",VLOOKUP(AD299,'Footnotes list'!$D$9:$E$58,2,FALSE) ) )","v":""},null,null,null,null,{"$f":"IF(TRIM(AI299)=\"\", \"\", IF(VLOOKUP(AI299,'Footnotes list'!$D$9:$E$58,2,FALSE)=0,\"\",VLOOKUP(AI299,'Footnotes list'!$D$9:$E$58,2,FALSE) ) )","v":""},null,null,null,null,{"$f":"IF(TRIM(AN299)=\"\", \"\", IF(VLOOKUP(AN299,'Footnotes list'!$D$9:$E$58,2,FALSE)=0,\"\",VLOOKUP(AN299,'Footnotes list'!$D$9:$E$58,2,FALSE) ) )","v":""},null,null,null,null,{"$f":"IF(TRIM(AS299)=\"\", \"\", IF(VLOOKUP(AS299,'Footnotes list'!$D$9:$E$58,2,FALSE)=0,\"\",VLOOKUP(AS299,'Footnotes list'!$D$9:$E$58,2,FALSE) ) )","v":""},null,null,null,null,{"$f":"IF(TRIM(AX299)=\"\", \"\", IF(VLOOKUP(AX299,'Footnotes list'!$D$9:$E$58,2,FALSE)=0,\"\",VLOOKUP(AX299,'Footnotes list'!$D$9:$E$58,2,FALSE) ) )","v":""},null,null,null,null,{"$f":"IF(TRIM(BC299)=\"\", \"\", IF(VLOOKUP(BC299,'Footnotes list'!$D$9:$E$58,2,FALSE)=0,\"\",VLOOKUP(BC299,'Footnotes list'!$D$9:$E$58,2,FALSE) ) )","v":""},null,null,null,null,{"$f":"IF(TRIM(BH299)=\"\", \"\", IF(VLOOKUP(BH299,'Footnotes list'!$D$9:$E$58,2,FALSE)=0,\"\",VLOOKUP(BH299,'Footnotes list'!$D$9:$E$58,2,FALSE) ) )","v":""},null,null,null,null,{"$f":"IF(TRIM(BM299)=\"\", \"\", IF(VLOOKUP(BM299,'Footnotes list'!$D$9:$E$58,2,FALSE)=0,\"\",VLOOKUP(BM299,'Footnotes list'!$D$9:$E$58,2,FALSE) ) )","v":""},null,null,null,null,{"$f":"IF(TRIM(BR299)=\"\", \"\", IF(VLOOKUP(BR299,'Footnotes list'!$D$9:$E$58,2,FALSE)=0,\"\",VLOOKUP(BR299,'Footnotes list'!$D$9:$E$58,2,FALSE) ) )","v":""},null,null,null,null,{"$f":"IF(TRIM(BW299)=\"\", \"\", IF(VLOOKUP(BW299,'Footnotes list'!$D$9:$E$58,2,FALSE)=0,\"\",VLOOKUP(BW299,'Footnotes list'!$D$9:$E$58,2,FALSE) ) )","v":""},null,null,null,null,{"$f":"IF(TRIM(CB299)=\"\", \"\", IF(VLOOKUP(CB299,'Footnotes list'!$D$9:$E$58,2,FALSE)=0,\"\",VLOOKUP(CB299,'Footnotes list'!$D$9:$E$58,2,FALSE) ) )","v":""},null,null,null,null,{"$f":"IF(TRIM(CG299)=\"\", \"\", IF(VLOOKUP(CG299,'Footnotes list'!$D$9:$E$58,2,FALSE)=0,\"\",VLOOKUP(CG299,'Footnotes list'!$D$9:$E$58,2,FALSE) ) )","v":""},null,null,null,null,{"$f":"IF(TRIM(CL299)=\"\", \"\", IF(VLOOKUP(CL299,'Footnotes list'!$D$9:$E$58,2,FALSE)=0,\"\",VLOOKUP(CL299,'Footnotes list'!$D$9:$E$58,2,FALSE) ) )","v":""},null,null,null,null,{"$f":"IF(TRIM(CQ299)=\"\", \"\", IF(VLOOKUP(CQ299,'Footnotes list'!$D$9:$E$58,2,FALSE)=0,\"\",VLOOKUP(CQ299,'Footnotes list'!$D$9:$E$58,2,FALSE) ) )","v":""},null,null,null,null,{"$f":"IF(TRIM(CV299)=\"\", \"\", IF(VLOOKUP(CV299,'Footnotes list'!$D$9:$E$58,2,FALSE)=0,\"\",VLOOKUP(CV299,'Footnotes list'!$D$9:$E$58,2,FALSE) ) )","v":""},null,null,null,null,{"$f":"IF(TRIM(DA299)=\"\", \"\", IF(VLOOKUP(DA299,'Footnotes list'!$D$9:$E$58,2,FALSE)=0,\"\",VLOOKUP(DA299,'Footnotes list'!$D$9:$E$58,2,FALSE) ) )","v":""},null,null,null,null,{"$f":"IF(TRIM(DF299)=\"\", \"\", IF(VLOOKUP(DF299,'Footnotes list'!$D$9:$E$58,2,FALSE)=0,\"\",VLOOKUP(DF299,'Footnotes list'!$D$9:$E$58,2,FALSE) ) )","v":""},null,null,null,null,{"$f":"IF(TRIM(DK299)=\"\", \"\", IF(VLOOKUP(DK299,'Footnotes list'!$D$9:$E$58,2,FALSE)=0,\"\",VLOOKUP(DK299,'Footnotes list'!$D$9:$E$58,2,FALSE) ) )","v":""},null,null,null,null,{"$f":"IF(TRIM(DP299)=\"\", \"\", IF(VLOOKUP(DP299,'Footnotes list'!$D$9:$E$58,2,FALSE)=0,\"\",VLOOKUP(DP299,'Footnotes list'!$D$9:$E$58,2,FALSE) ) )","v":""},null,null,null,null,{"$f":"IF(TRIM(DU299)=\"\", \"\", IF(VLOOKUP(DU299,'Footnotes list'!$D$9:$E$58,2,FALSE)=0,\"\",VLOOKUP(DU299,'Footnotes list'!$D$9:$E$58,2,FALSE) ) )","v":""},null,null,null,null,{"$f":"IF(TRIM(DZ299)=\"\", \"\", IF(VLOOKUP(DZ299,'Footnotes list'!$D$9:$E$58,2,FALSE)=0,\"\",VLOOKUP(DZ299,'Footnotes list'!$D$9:$E$58,2,FALSE) ) )","v":""},null,null,null,null,{"$f":"IF(TRIM(EE299)=\"\", \"\", IF(VLOOKUP(EE299,'Footnotes list'!$D$9:$E$58,2,FALSE)=0,\"\",VLOOKUP(EE299,'Footnotes list'!$D$9:$E$58,2,FALSE) ) )","v":""},null,null,null,null,{"$f":"IF(TRIM(EJ299)=\"\", \"\", IF(VLOOKUP(EJ299,'Footnotes list'!$D$9:$E$58,2,FALSE)=0,\"\",VLOOKUP(EJ299,'Footnotes list'!$D$9:$E$58,2,FALSE) ) )","v":""},null,null,null,null,{"$f":"IF(TRIM(EO299)=\"\", \"\", IF(VLOOKUP(EO299,'Footnotes list'!$D$9:$E$58,2,FALSE)=0,\"\",VLOOKUP(EO299,'Footnotes list'!$D$9:$E$58,2,FALSE) ) )","v":""},null,null,null,null,{"$f":"IF(TRIM(ET299)=\"\", \"\", IF(VLOOKUP(ET299,'Footnotes list'!$D$9:$E$58,2,FALSE)=0,\"\",VLOOKUP(ET299,'Footnotes list'!$D$9:$E$58,2,FALSE) ) )","v":""},null,null,null,null,{"$f":"IF(TRIM(EY299)=\"\", \"\", IF(VLOOKUP(EY299,'Footnotes list'!$D$9:$E$58,2,FALSE)=0,\"\",VLOOKUP(EY299,'Footnotes list'!$D$9:$E$58,2,FALSE) ) )","v":""}]
[null,null,"T","ES_CS","environmental specific services",null,null,null,null,null,{"$f":"IF(TRIM(J300)=\"\", \"\", IF(VLOOKUP(J300,'Footnotes list'!$D$9:$E$58,2,FALSE)=0,\"\",VLOOKUP(J300,'Footnotes list'!$D$9:$E$58,2,FALSE) ) )","v":""},null,null,null,null,{"$f":"IF(TRIM(O300)=\"\", \"\", IF(VLOOKUP(O300,'Footnotes list'!$D$9:$E$58,2,FALSE)=0,\"\",VLOOKUP(O300,'Footnotes list'!$D$9:$E$58,2,FALSE) ) )","v":""},null,null,null,null,{"$f":"IF(TRIM(T300)=\"\", \"\", IF(VLOOKUP(T300,'Footnotes list'!$D$9:$E$58,2,FALSE)=0,\"\",VLOOKUP(T300,'Footnotes list'!$D$9:$E$58,2,FALSE) ) )","v":""},null,null,null,null,{"$f":"IF(TRIM(Y300)=\"\", \"\", IF(VLOOKUP(Y300,'Footnotes list'!$D$9:$E$58,2,FALSE)=0,\"\",VLOOKUP(Y300,'Footnotes list'!$D$9:$E$58,2,FALSE) ) )","v":""},null,null,null,null,{"$f":"IF(TRIM(AD300)=\"\", \"\", IF(VLOOKUP(AD300,'Footnotes list'!$D$9:$E$58,2,FALSE)=0,\"\",VLOOKUP(AD300,'Footnotes list'!$D$9:$E$58,2,FALSE) ) )","v":""},null,null,null,null,{"$f":"IF(TRIM(AI300)=\"\", \"\", IF(VLOOKUP(AI300,'Footnotes list'!$D$9:$E$58,2,FALSE)=0,\"\",VLOOKUP(AI300,'Footnotes list'!$D$9:$E$58,2,FALSE) ) )","v":""},null,null,null,null,{"$f":"IF(TRIM(AN300)=\"\", \"\", IF(VLOOKUP(AN300,'Footnotes list'!$D$9:$E$58,2,FALSE)=0,\"\",VLOOKUP(AN300,'Footnotes list'!$D$9:$E$58,2,FALSE) ) )","v":""},null,null,null,null,{"$f":"IF(TRIM(AS300)=\"\", \"\", IF(VLOOKUP(AS300,'Footnotes list'!$D$9:$E$58,2,FALSE)=0,\"\",VLOOKUP(AS300,'Footnotes list'!$D$9:$E$58,2,FALSE) ) )","v":""},null,null,null,null,{"$f":"IF(TRIM(AX300)=\"\", \"\", IF(VLOOKUP(AX300,'Footnotes list'!$D$9:$E$58,2,FALSE)=0,\"\",VLOOKUP(AX300,'Footnotes list'!$D$9:$E$58,2,FALSE) ) )","v":""},null,null,null,null,{"$f":"IF(TRIM(BC300)=\"\", \"\", IF(VLOOKUP(BC300,'Footnotes list'!$D$9:$E$58,2,FALSE)=0,\"\",VLOOKUP(BC300,'Footnotes list'!$D$9:$E$58,2,FALSE) ) )","v":""},null,null,null,null,{"$f":"IF(TRIM(BH300)=\"\", \"\", IF(VLOOKUP(BH300,'Footnotes list'!$D$9:$E$58,2,FALSE)=0,\"\",VLOOKUP(BH300,'Footnotes list'!$D$9:$E$58,2,FALSE) ) )","v":""},null,null,null,null,{"$f":"IF(TRIM(BM300)=\"\", \"\", IF(VLOOKUP(BM300,'Footnotes list'!$D$9:$E$58,2,FALSE)=0,\"\",VLOOKUP(BM300,'Footnotes list'!$D$9:$E$58,2,FALSE) ) )","v":""},null,null,null,null,{"$f":"IF(TRIM(BR300)=\"\", \"\", IF(VLOOKUP(BR300,'Footnotes list'!$D$9:$E$58,2,FALSE)=0,\"\",VLOOKUP(BR300,'Footnotes list'!$D$9:$E$58,2,FALSE) ) )","v":""},null,null,null,null,{"$f":"IF(TRIM(BW300)=\"\", \"\", IF(VLOOKUP(BW300,'Footnotes list'!$D$9:$E$58,2,FALSE)=0,\"\",VLOOKUP(BW300,'Footnotes list'!$D$9:$E$58,2,FALSE) ) )","v":""},null,null,null,null,{"$f":"IF(TRIM(CB300)=\"\", \"\", IF(VLOOKUP(CB300,'Footnotes list'!$D$9:$E$58,2,FALSE)=0,\"\",VLOOKUP(CB300,'Footnotes list'!$D$9:$E$58,2,FALSE) ) )","v":""},null,null,null,null,{"$f":"IF(TRIM(CG300)=\"\", \"\", IF(VLOOKUP(CG300,'Footnotes list'!$D$9:$E$58,2,FALSE)=0,\"\",VLOOKUP(CG300,'Footnotes list'!$D$9:$E$58,2,FALSE) ) )","v":""},null,null,null,null,{"$f":"IF(TRIM(CL300)=\"\", \"\", IF(VLOOKUP(CL300,'Footnotes list'!$D$9:$E$58,2,FALSE)=0,\"\",VLOOKUP(CL300,'Footnotes list'!$D$9:$E$58,2,FALSE) ) )","v":""},null,null,null,null,{"$f":"IF(TRIM(CQ300)=\"\", \"\", IF(VLOOKUP(CQ300,'Footnotes list'!$D$9:$E$58,2,FALSE)=0,\"\",VLOOKUP(CQ300,'Footnotes list'!$D$9:$E$58,2,FALSE) ) )","v":""},null,null,null,null,{"$f":"IF(TRIM(CV300)=\"\", \"\", IF(VLOOKUP(CV300,'Footnotes list'!$D$9:$E$58,2,FALSE)=0,\"\",VLOOKUP(CV300,'Footnotes list'!$D$9:$E$58,2,FALSE) ) )","v":""},null,null,null,null,{"$f":"IF(TRIM(DA300)=\"\", \"\", IF(VLOOKUP(DA300,'Footnotes list'!$D$9:$E$58,2,FALSE)=0,\"\",VLOOKUP(DA300,'Footnotes list'!$D$9:$E$58,2,FALSE) ) )","v":""},null,null,null,null,{"$f":"IF(TRIM(DF300)=\"\", \"\", IF(VLOOKUP(DF300,'Footnotes list'!$D$9:$E$58,2,FALSE)=0,\"\",VLOOKUP(DF300,'Footnotes list'!$D$9:$E$58,2,FALSE) ) )","v":""},null,null,null,null,{"$f":"IF(TRIM(DK300)=\"\", \"\", IF(VLOOKUP(DK300,'Footnotes list'!$D$9:$E$58,2,FALSE)=0,\"\",VLOOKUP(DK300,'Footnotes list'!$D$9:$E$58,2,FALSE) ) )","v":""},null,null,null,null,{"$f":"IF(TRIM(DP300)=\"\", \"\", IF(VLOOKUP(DP300,'Footnotes list'!$D$9:$E$58,2,FALSE)=0,\"\",VLOOKUP(DP300,'Footnotes list'!$D$9:$E$58,2,FALSE) ) )","v":""},null,null,null,null,{"$f":"IF(TRIM(DU300)=\"\", \"\", IF(VLOOKUP(DU300,'Footnotes list'!$D$9:$E$58,2,FALSE)=0,\"\",VLOOKUP(DU300,'Footnotes list'!$D$9:$E$58,2,FALSE) ) )","v":""},null,null,null,null,{"$f":"IF(TRIM(DZ300)=\"\", \"\", IF(VLOOKUP(DZ300,'Footnotes list'!$D$9:$E$58,2,FALSE)=0,\"\",VLOOKUP(DZ300,'Footnotes list'!$D$9:$E$58,2,FALSE) ) )","v":""},null,null,null,null,{"$f":"IF(TRIM(EE300)=\"\", \"\", IF(VLOOKUP(EE300,'Footnotes list'!$D$9:$E$58,2,FALSE)=0,\"\",VLOOKUP(EE300,'Footnotes list'!$D$9:$E$58,2,FALSE) ) )","v":""},null,null,null,null,{"$f":"IF(TRIM(EJ300)=\"\", \"\", IF(VLOOKUP(EJ300,'Footnotes list'!$D$9:$E$58,2,FALSE)=0,\"\",VLOOKUP(EJ300,'Footnotes list'!$D$9:$E$58,2,FALSE) ) )","v":""},null,null,null,null,{"$f":"IF(TRIM(EO300)=\"\", \"\", IF(VLOOKUP(EO300,'Footnotes list'!$D$9:$E$58,2,FALSE)=0,\"\",VLOOKUP(EO300,'Footnotes list'!$D$9:$E$58,2,FALSE) ) )","v":""},null,null,null,null,{"$f":"IF(TRIM(ET300)=\"\", \"\", IF(VLOOKUP(ET300,'Footnotes list'!$D$9:$E$58,2,FALSE)=0,\"\",VLOOKUP(ET300,'Footnotes list'!$D$9:$E$58,2,FALSE) ) )","v":""},null,null,null,null,{"$f":"IF(TRIM(EY300)=\"\", \"\", IF(VLOOKUP(EY300,'Footnotes list'!$D$9:$E$58,2,FALSE)=0,\"\",VLOOKUP(EY300,'Footnotes list'!$D$9:$E$58,2,FALSE) ) )","v":""}]
[null,null,"T","C_REP","cleaner and resource efficient products",null,null,null,null,null,{"$f":"IF(TRIM(J301)=\"\", \"\", IF(VLOOKUP(J301,'Footnotes list'!$D$9:$E$58,2,FALSE)=0,\"\",VLOOKUP(J301,'Footnotes list'!$D$9:$E$58,2,FALSE) ) )","v":""},null,null,null,null,{"$f":"IF(TRIM(O301)=\"\", \"\", IF(VLOOKUP(O301,'Footnotes list'!$D$9:$E$58,2,FALSE)=0,\"\",VLOOKUP(O301,'Footnotes list'!$D$9:$E$58,2,FALSE) ) )","v":""},null,null,null,null,{"$f":"IF(TRIM(T301)=\"\", \"\", IF(VLOOKUP(T301,'Footnotes list'!$D$9:$E$58,2,FALSE)=0,\"\",VLOOKUP(T301,'Footnotes list'!$D$9:$E$58,2,FALSE) ) )","v":""},null,null,null,null,{"$f":"IF(TRIM(Y301)=\"\", \"\", IF(VLOOKUP(Y301,'Footnotes list'!$D$9:$E$58,2,FALSE)=0,\"\",VLOOKUP(Y301,'Footnotes list'!$D$9:$E$58,2,FALSE) ) )","v":""},null,null,null,null,{"$f":"IF(TRIM(AD301)=\"\", \"\", IF(VLOOKUP(AD301,'Footnotes list'!$D$9:$E$58,2,FALSE)=0,\"\",VLOOKUP(AD301,'Footnotes list'!$D$9:$E$58,2,FALSE) ) )","v":""},null,null,null,null,{"$f":"IF(TRIM(AI301)=\"\", \"\", IF(VLOOKUP(AI301,'Footnotes list'!$D$9:$E$58,2,FALSE)=0,\"\",VLOOKUP(AI301,'Footnotes list'!$D$9:$E$58,2,FALSE) ) )","v":""},null,null,null,null,{"$f":"IF(TRIM(AN301)=\"\", \"\", IF(VLOOKUP(AN301,'Footnotes list'!$D$9:$E$58,2,FALSE)=0,\"\",VLOOKUP(AN301,'Footnotes list'!$D$9:$E$58,2,FALSE) ) )","v":""},null,null,null,null,{"$f":"IF(TRIM(AS301)=\"\", \"\", IF(VLOOKUP(AS301,'Footnotes list'!$D$9:$E$58,2,FALSE)=0,\"\",VLOOKUP(AS301,'Footnotes list'!$D$9:$E$58,2,FALSE) ) )","v":""},null,null,null,null,{"$f":"IF(TRIM(AX301)=\"\", \"\", IF(VLOOKUP(AX301,'Footnotes list'!$D$9:$E$58,2,FALSE)=0,\"\",VLOOKUP(AX301,'Footnotes list'!$D$9:$E$58,2,FALSE) ) )","v":""},null,null,null,null,{"$f":"IF(TRIM(BC301)=\"\", \"\", IF(VLOOKUP(BC301,'Footnotes list'!$D$9:$E$58,2,FALSE)=0,\"\",VLOOKUP(BC301,'Footnotes list'!$D$9:$E$58,2,FALSE) ) )","v":""},null,null,null,null,{"$f":"IF(TRIM(BH301)=\"\", \"\", IF(VLOOKUP(BH301,'Footnotes list'!$D$9:$E$58,2,FALSE)=0,\"\",VLOOKUP(BH301,'Footnotes list'!$D$9:$E$58,2,FALSE) ) )","v":""},null,null,null,null,{"$f":"IF(TRIM(BM301)=\"\", \"\", IF(VLOOKUP(BM301,'Footnotes list'!$D$9:$E$58,2,FALSE)=0,\"\",VLOOKUP(BM301,'Footnotes list'!$D$9:$E$58,2,FALSE) ) )","v":""},null,null,null,null,{"$f":"IF(TRIM(BR301)=\"\", \"\", IF(VLOOKUP(BR301,'Footnotes list'!$D$9:$E$58,2,FALSE)=0,\"\",VLOOKUP(BR301,'Footnotes list'!$D$9:$E$58,2,FALSE) ) )","v":""},null,null,null,null,{"$f":"IF(TRIM(BW301)=\"\", \"\", IF(VLOOKUP(BW301,'Footnotes list'!$D$9:$E$58,2,FALSE)=0,\"\",VLOOKUP(BW301,'Footnotes list'!$D$9:$E$58,2,FALSE) ) )","v":""},null,null,null,null,{"$f":"IF(TRIM(CB301)=\"\", \"\", IF(VLOOKUP(CB301,'Footnotes list'!$D$9:$E$58,2,FALSE)=0,\"\",VLOOKUP(CB301,'Footnotes list'!$D$9:$E$58,2,FALSE) ) )","v":""},null,null,null,null,{"$f":"IF(TRIM(CG301)=\"\", \"\", IF(VLOOKUP(CG301,'Footnotes list'!$D$9:$E$58,2,FALSE)=0,\"\",VLOOKUP(CG301,'Footnotes list'!$D$9:$E$58,2,FALSE) ) )","v":""},null,null,null,null,{"$f":"IF(TRIM(CL301)=\"\", \"\", IF(VLOOKUP(CL301,'Footnotes list'!$D$9:$E$58,2,FALSE)=0,\"\",VLOOKUP(CL301,'Footnotes list'!$D$9:$E$58,2,FALSE) ) )","v":""},null,null,null,null,{"$f":"IF(TRIM(CQ301)=\"\", \"\", IF(VLOOKUP(CQ301,'Footnotes list'!$D$9:$E$58,2,FALSE)=0,\"\",VLOOKUP(CQ301,'Footnotes list'!$D$9:$E$58,2,FALSE) ) )","v":""},null,null,null,null,{"$f":"IF(TRIM(CV301)=\"\", \"\", IF(VLOOKUP(CV301,'Footnotes list'!$D$9:$E$58,2,FALSE)=0,\"\",VLOOKUP(CV301,'Footnotes list'!$D$9:$E$58,2,FALSE) ) )","v":""},null,null,null,null,{"$f":"IF(TRIM(DA301)=\"\", \"\", IF(VLOOKUP(DA301,'Footnotes list'!$D$9:$E$58,2,FALSE)=0,\"\",VLOOKUP(DA301,'Footnotes list'!$D$9:$E$58,2,FALSE) ) )","v":""},null,null,null,null,{"$f":"IF(TRIM(DF301)=\"\", \"\", IF(VLOOKUP(DF301,'Footnotes list'!$D$9:$E$58,2,FALSE)=0,\"\",VLOOKUP(DF301,'Footnotes list'!$D$9:$E$58,2,FALSE) ) )","v":""},null,null,null,null,{"$f":"IF(TRIM(DK301)=\"\", \"\", IF(VLOOKUP(DK301,'Footnotes list'!$D$9:$E$58,2,FALSE)=0,\"\",VLOOKUP(DK301,'Footnotes list'!$D$9:$E$58,2,FALSE) ) )","v":""},null,null,null,null,{"$f":"IF(TRIM(DP301)=\"\", \"\", IF(VLOOKUP(DP301,'Footnotes list'!$D$9:$E$58,2,FALSE)=0,\"\",VLOOKUP(DP301,'Footnotes list'!$D$9:$E$58,2,FALSE) ) )","v":""},null,null,null,null,{"$f":"IF(TRIM(DU301)=\"\", \"\", IF(VLOOKUP(DU301,'Footnotes list'!$D$9:$E$58,2,FALSE)=0,\"\",VLOOKUP(DU301,'Footnotes list'!$D$9:$E$58,2,FALSE) ) )","v":""},null,null,null,null,{"$f":"IF(TRIM(DZ301)=\"\", \"\", IF(VLOOKUP(DZ301,'Footnotes list'!$D$9:$E$58,2,FALSE)=0,\"\",VLOOKUP(DZ301,'Footnotes list'!$D$9:$E$58,2,FALSE) ) )","v":""},null,null,null,null,{"$f":"IF(TRIM(EE301)=\"\", \"\", IF(VLOOKUP(EE301,'Footnotes list'!$D$9:$E$58,2,FALSE)=0,\"\",VLOOKUP(EE301,'Footnotes list'!$D$9:$E$58,2,FALSE) ) )","v":""},null,null,null,null,{"$f":"IF(TRIM(EJ301)=\"\", \"\", IF(VLOOKUP(EJ301,'Footnotes list'!$D$9:$E$58,2,FALSE)=0,\"\",VLOOKUP(EJ301,'Footnotes list'!$D$9:$E$58,2,FALSE) ) )","v":""},null,null,null,null,{"$f":"IF(TRIM(EO301)=\"\", \"\", IF(VLOOKUP(EO301,'Footnotes list'!$D$9:$E$58,2,FALSE)=0,\"\",VLOOKUP(EO301,'Footnotes list'!$D$9:$E$58,2,FALSE) ) )","v":""},null,null,null,null,{"$f":"IF(TRIM(ET301)=\"\", \"\", IF(VLOOKUP(ET301,'Footnotes list'!$D$9:$E$58,2,FALSE)=0,\"\",VLOOKUP(ET301,'Footnotes list'!$D$9:$E$58,2,FALSE) ) )","v":""},null,null,null,null,{"$f":"IF(TRIM(EY301)=\"\", \"\", IF(VLOOKUP(EY301,'Footnotes list'!$D$9:$E$58,2,FALSE)=0,\"\",VLOOKUP(EY301,'Footnotes list'!$D$9:$E$58,2,FALSE) ) )","v":""}]
[null,null,"U","TOT_EGSS","Total U - Activities of extraterritorial organizations and bodies, of which:",null,null,null,null,null,{"$f":"IF(TRIM(J302)=\"\", \"\", IF(VLOOKUP(J302,'Footnotes list'!$D$9:$E$58,2,FALSE)=0,\"\",VLOOKUP(J302,'Footnotes list'!$D$9:$E$58,2,FALSE) ) )","v":""},null,null,null,null,{"$f":"IF(TRIM(O302)=\"\", \"\", IF(VLOOKUP(O302,'Footnotes list'!$D$9:$E$58,2,FALSE)=0,\"\",VLOOKUP(O302,'Footnotes list'!$D$9:$E$58,2,FALSE) ) )","v":""},null,null,null,null,{"$f":"IF(TRIM(T302)=\"\", \"\", IF(VLOOKUP(T302,'Footnotes list'!$D$9:$E$58,2,FALSE)=0,\"\",VLOOKUP(T302,'Footnotes list'!$D$9:$E$58,2,FALSE) ) )","v":""},null,null,null,null,{"$f":"IF(TRIM(Y302)=\"\", \"\", IF(VLOOKUP(Y302,'Footnotes list'!$D$9:$E$58,2,FALSE)=0,\"\",VLOOKUP(Y302,'Footnotes list'!$D$9:$E$58,2,FALSE) ) )","v":""},null,null,null,null,{"$f":"IF(TRIM(AD302)=\"\", \"\", IF(VLOOKUP(AD302,'Footnotes list'!$D$9:$E$58,2,FALSE)=0,\"\",VLOOKUP(AD302,'Footnotes list'!$D$9:$E$58,2,FALSE) ) )","v":""},null,null,null,null,{"$f":"IF(TRIM(AI302)=\"\", \"\", IF(VLOOKUP(AI302,'Footnotes list'!$D$9:$E$58,2,FALSE)=0,\"\",VLOOKUP(AI302,'Footnotes list'!$D$9:$E$58,2,FALSE) ) )","v":""},null,null,null,null,{"$f":"IF(TRIM(AN302)=\"\", \"\", IF(VLOOKUP(AN302,'Footnotes list'!$D$9:$E$58,2,FALSE)=0,\"\",VLOOKUP(AN302,'Footnotes list'!$D$9:$E$58,2,FALSE) ) )","v":""},null,null,null,null,{"$f":"IF(TRIM(AS302)=\"\", \"\", IF(VLOOKUP(AS302,'Footnotes list'!$D$9:$E$58,2,FALSE)=0,\"\",VLOOKUP(AS302,'Footnotes list'!$D$9:$E$58,2,FALSE) ) )","v":""},null,null,null,null,{"$f":"IF(TRIM(AX302)=\"\", \"\", IF(VLOOKUP(AX302,'Footnotes list'!$D$9:$E$58,2,FALSE)=0,\"\",VLOOKUP(AX302,'Footnotes list'!$D$9:$E$58,2,FALSE) ) )","v":""},null,null,null,null,{"$f":"IF(TRIM(BC302)=\"\", \"\", IF(VLOOKUP(BC302,'Footnotes list'!$D$9:$E$58,2,FALSE)=0,\"\",VLOOKUP(BC302,'Footnotes list'!$D$9:$E$58,2,FALSE) ) )","v":""},null,null,null,null,{"$f":"IF(TRIM(BH302)=\"\", \"\", IF(VLOOKUP(BH302,'Footnotes list'!$D$9:$E$58,2,FALSE)=0,\"\",VLOOKUP(BH302,'Footnotes list'!$D$9:$E$58,2,FALSE) ) )","v":""},null,null,null,null,{"$f":"IF(TRIM(BM302)=\"\", \"\", IF(VLOOKUP(BM302,'Footnotes list'!$D$9:$E$58,2,FALSE)=0,\"\",VLOOKUP(BM302,'Footnotes list'!$D$9:$E$58,2,FALSE) ) )","v":""},null,null,null,null,{"$f":"IF(TRIM(BR302)=\"\", \"\", IF(VLOOKUP(BR302,'Footnotes list'!$D$9:$E$58,2,FALSE)=0,\"\",VLOOKUP(BR302,'Footnotes list'!$D$9:$E$58,2,FALSE) ) )","v":""},null,null,null,null,{"$f":"IF(TRIM(BW302)=\"\", \"\", IF(VLOOKUP(BW302,'Footnotes list'!$D$9:$E$58,2,FALSE)=0,\"\",VLOOKUP(BW302,'Footnotes list'!$D$9:$E$58,2,FALSE) ) )","v":""},null,null,null,null,{"$f":"IF(TRIM(CB302)=\"\", \"\", IF(VLOOKUP(CB302,'Footnotes list'!$D$9:$E$58,2,FALSE)=0,\"\",VLOOKUP(CB302,'Footnotes list'!$D$9:$E$58,2,FALSE) ) )","v":""},null,null,null,null,{"$f":"IF(TRIM(CG302)=\"\", \"\", IF(VLOOKUP(CG302,'Footnotes list'!$D$9:$E$58,2,FALSE)=0,\"\",VLOOKUP(CG302,'Footnotes list'!$D$9:$E$58,2,FALSE) ) )","v":""},null,null,null,null,{"$f":"IF(TRIM(CL302)=\"\", \"\", IF(VLOOKUP(CL302,'Footnotes list'!$D$9:$E$58,2,FALSE)=0,\"\",VLOOKUP(CL302,'Footnotes list'!$D$9:$E$58,2,FALSE) ) )","v":""},null,null,null,null,{"$f":"IF(TRIM(CQ302)=\"\", \"\", IF(VLOOKUP(CQ302,'Footnotes list'!$D$9:$E$58,2,FALSE)=0,\"\",VLOOKUP(CQ302,'Footnotes list'!$D$9:$E$58,2,FALSE) ) )","v":""},null,null,null,null,{"$f":"IF(TRIM(CV302)=\"\", \"\", IF(VLOOKUP(CV302,'Footnotes list'!$D$9:$E$58,2,FALSE)=0,\"\",VLOOKUP(CV302,'Footnotes list'!$D$9:$E$58,2,FALSE) ) )","v":""},null,null,null,null,{"$f":"IF(TRIM(DA302)=\"\", \"\", IF(VLOOKUP(DA302,'Footnotes list'!$D$9:$E$58,2,FALSE)=0,\"\",VLOOKUP(DA302,'Footnotes list'!$D$9:$E$58,2,FALSE) ) )","v":""},null,null,null,null,{"$f":"IF(TRIM(DF302)=\"\", \"\", IF(VLOOKUP(DF302,'Footnotes list'!$D$9:$E$58,2,FALSE)=0,\"\",VLOOKUP(DF302,'Footnotes list'!$D$9:$E$58,2,FALSE) ) )","v":""},null,null,null,null,{"$f":"IF(TRIM(DK302)=\"\", \"\", IF(VLOOKUP(DK302,'Footnotes list'!$D$9:$E$58,2,FALSE)=0,\"\",VLOOKUP(DK302,'Footnotes list'!$D$9:$E$58,2,FALSE) ) )","v":""},null,null,null,null,{"$f":"IF(TRIM(DP302)=\"\", \"\", IF(VLOOKUP(DP302,'Footnotes list'!$D$9:$E$58,2,FALSE)=0,\"\",VLOOKUP(DP302,'Footnotes list'!$D$9:$E$58,2,FALSE) ) )","v":""},null,null,null,null,{"$f":"IF(TRIM(DU302)=\"\", \"\", IF(VLOOKUP(DU302,'Footnotes list'!$D$9:$E$58,2,FALSE)=0,\"\",VLOOKUP(DU302,'Footnotes list'!$D$9:$E$58,2,FALSE) ) )","v":""},null,null,null,null,{"$f":"IF(TRIM(DZ302)=\"\", \"\", IF(VLOOKUP(DZ302,'Footnotes list'!$D$9:$E$58,2,FALSE)=0,\"\",VLOOKUP(DZ302,'Footnotes list'!$D$9:$E$58,2,FALSE) ) )","v":""},null,null,null,null,{"$f":"IF(TRIM(EE302)=\"\", \"\", IF(VLOOKUP(EE302,'Footnotes list'!$D$9:$E$58,2,FALSE)=0,\"\",VLOOKUP(EE302,'Footnotes list'!$D$9:$E$58,2,FALSE) ) )","v":""},null,null,null,null,{"$f":"IF(TRIM(EJ302)=\"\", \"\", IF(VLOOKUP(EJ302,'Footnotes list'!$D$9:$E$58,2,FALSE)=0,\"\",VLOOKUP(EJ302,'Footnotes list'!$D$9:$E$58,2,FALSE) ) )","v":""},null,null,null,null,{"$f":"IF(TRIM(EO302)=\"\", \"\", IF(VLOOKUP(EO302,'Footnotes list'!$D$9:$E$58,2,FALSE)=0,\"\",VLOOKUP(EO302,'Footnotes list'!$D$9:$E$58,2,FALSE) ) )","v":""},null,null,null,null,{"$f":"IF(TRIM(ET302)=\"\", \"\", IF(VLOOKUP(ET302,'Footnotes list'!$D$9:$E$58,2,FALSE)=0,\"\",VLOOKUP(ET302,'Footnotes list'!$D$9:$E$58,2,FALSE) ) )","v":""},null,null,null,null,{"$f":"IF(TRIM(EY302)=\"\", \"\", IF(VLOOKUP(EY302,'Footnotes list'!$D$9:$E$58,2,FALSE)=0,\"\",VLOOKUP(EY302,'Footnotes list'!$D$9:$E$58,2,FALSE) ) )","v":""}]
[null,null,"U","ANC","ancillary activities",null,null,null,null,null,{"$f":"IF(TRIM(J303)=\"\", \"\", IF(VLOOKUP(J303,'Footnotes list'!$D$9:$E$58,2,FALSE)=0,\"\",VLOOKUP(J303,'Footnotes list'!$D$9:$E$58,2,FALSE) ) )","v":""},null,null,null,null,{"$f":"IF(TRIM(O303)=\"\", \"\", IF(VLOOKUP(O303,'Footnotes list'!$D$9:$E$58,2,FALSE)=0,\"\",VLOOKUP(O303,'Footnotes list'!$D$9:$E$58,2,FALSE) ) )","v":""},null,null,null,null,{"$f":"IF(TRIM(T303)=\"\", \"\", IF(VLOOKUP(T303,'Footnotes list'!$D$9:$E$58,2,FALSE)=0,\"\",VLOOKUP(T303,'Footnotes list'!$D$9:$E$58,2,FALSE) ) )","v":""},null,null,null,null,{"$f":"IF(TRIM(Y303)=\"\", \"\", IF(VLOOKUP(Y303,'Footnotes list'!$D$9:$E$58,2,FALSE)=0,\"\",VLOOKUP(Y303,'Footnotes list'!$D$9:$E$58,2,FALSE) ) )","v":""},null,null,null,null,{"$f":"IF(TRIM(AD303)=\"\", \"\", IF(VLOOKUP(AD303,'Footnotes list'!$D$9:$E$58,2,FALSE)=0,\"\",VLOOKUP(AD303,'Footnotes list'!$D$9:$E$58,2,FALSE) ) )","v":""},null,null,null,null,{"$f":"IF(TRIM(AI303)=\"\", \"\", IF(VLOOKUP(AI303,'Footnotes list'!$D$9:$E$58,2,FALSE)=0,\"\",VLOOKUP(AI303,'Footnotes list'!$D$9:$E$58,2,FALSE) ) )","v":""},null,null,null,null,{"$f":"IF(TRIM(AN303)=\"\", \"\", IF(VLOOKUP(AN303,'Footnotes list'!$D$9:$E$58,2,FALSE)=0,\"\",VLOOKUP(AN303,'Footnotes list'!$D$9:$E$58,2,FALSE) ) )","v":""},null,null,null,null,{"$f":"IF(TRIM(AS303)=\"\", \"\", IF(VLOOKUP(AS303,'Footnotes list'!$D$9:$E$58,2,FALSE)=0,\"\",VLOOKUP(AS303,'Footnotes list'!$D$9:$E$58,2,FALSE) ) )","v":""},null,null,null,null,{"$f":"IF(TRIM(AX303)=\"\", \"\", IF(VLOOKUP(AX303,'Footnotes list'!$D$9:$E$58,2,FALSE)=0,\"\",VLOOKUP(AX303,'Footnotes list'!$D$9:$E$58,2,FALSE) ) )","v":""},null,null,null,null,{"$f":"IF(TRIM(BC303)=\"\", \"\", IF(VLOOKUP(BC303,'Footnotes list'!$D$9:$E$58,2,FALSE)=0,\"\",VLOOKUP(BC303,'Footnotes list'!$D$9:$E$58,2,FALSE) ) )","v":""},null,null,null,null,{"$f":"IF(TRIM(BH303)=\"\", \"\", IF(VLOOKUP(BH303,'Footnotes list'!$D$9:$E$58,2,FALSE)=0,\"\",VLOOKUP(BH303,'Footnotes list'!$D$9:$E$58,2,FALSE) ) )","v":""},null,null,null,null,{"$f":"IF(TRIM(BM303)=\"\", \"\", IF(VLOOKUP(BM303,'Footnotes list'!$D$9:$E$58,2,FALSE)=0,\"\",VLOOKUP(BM303,'Footnotes list'!$D$9:$E$58,2,FALSE) ) )","v":""},null,null,null,null,{"$f":"IF(TRIM(BR303)=\"\", \"\", IF(VLOOKUP(BR303,'Footnotes list'!$D$9:$E$58,2,FALSE)=0,\"\",VLOOKUP(BR303,'Footnotes list'!$D$9:$E$58,2,FALSE) ) )","v":""},null,null,null,null,{"$f":"IF(TRIM(BW303)=\"\", \"\", IF(VLOOKUP(BW303,'Footnotes list'!$D$9:$E$58,2,FALSE)=0,\"\",VLOOKUP(BW303,'Footnotes list'!$D$9:$E$58,2,FALSE) ) )","v":""},null,null,null,null,{"$f":"IF(TRIM(CB303)=\"\", \"\", IF(VLOOKUP(CB303,'Footnotes list'!$D$9:$E$58,2,FALSE)=0,\"\",VLOOKUP(CB303,'Footnotes list'!$D$9:$E$58,2,FALSE) ) )","v":""},null,null,null,null,{"$f":"IF(TRIM(CG303)=\"\", \"\", IF(VLOOKUP(CG303,'Footnotes list'!$D$9:$E$58,2,FALSE)=0,\"\",VLOOKUP(CG303,'Footnotes list'!$D$9:$E$58,2,FALSE) ) )","v":""},null,null,null,null,{"$f":"IF(TRIM(CL303)=\"\", \"\", IF(VLOOKUP(CL303,'Footnotes list'!$D$9:$E$58,2,FALSE)=0,\"\",VLOOKUP(CL303,'Footnotes list'!$D$9:$E$58,2,FALSE) ) )","v":""},null,null,null,null,{"$f":"IF(TRIM(CQ303)=\"\", \"\", IF(VLOOKUP(CQ303,'Footnotes list'!$D$9:$E$58,2,FALSE)=0,\"\",VLOOKUP(CQ303,'Footnotes list'!$D$9:$E$58,2,FALSE) ) )","v":""},null,null,null,null,{"$f":"IF(TRIM(CV303)=\"\", \"\", IF(VLOOKUP(CV303,'Footnotes list'!$D$9:$E$58,2,FALSE)=0,\"\",VLOOKUP(CV303,'Footnotes list'!$D$9:$E$58,2,FALSE) ) )","v":""},null,null,null,null,{"$f":"IF(TRIM(DA303)=\"\", \"\", IF(VLOOKUP(DA303,'Footnotes list'!$D$9:$E$58,2,FALSE)=0,\"\",VLOOKUP(DA303,'Footnotes list'!$D$9:$E$58,2,FALSE) ) )","v":""},null,null,null,null,{"$f":"IF(TRIM(DF303)=\"\", \"\", IF(VLOOKUP(DF303,'Footnotes list'!$D$9:$E$58,2,FALSE)=0,\"\",VLOOKUP(DF303,'Footnotes list'!$D$9:$E$58,2,FALSE) ) )","v":""},null,null,null,null,{"$f":"IF(TRIM(DK303)=\"\", \"\", IF(VLOOKUP(DK303,'Footnotes list'!$D$9:$E$58,2,FALSE)=0,\"\",VLOOKUP(DK303,'Footnotes list'!$D$9:$E$58,2,FALSE) ) )","v":""},null,null,null,null,{"$f":"IF(TRIM(DP303)=\"\", \"\", IF(VLOOKUP(DP303,'Footnotes list'!$D$9:$E$58,2,FALSE)=0,\"\",VLOOKUP(DP303,'Footnotes list'!$D$9:$E$58,2,FALSE) ) )","v":""},null,null,null,null,{"$f":"IF(TRIM(DU303)=\"\", \"\", IF(VLOOKUP(DU303,'Footnotes list'!$D$9:$E$58,2,FALSE)=0,\"\",VLOOKUP(DU303,'Footnotes list'!$D$9:$E$58,2,FALSE) ) )","v":""},null,null,null,null,{"$f":"IF(TRIM(DZ303)=\"\", \"\", IF(VLOOKUP(DZ303,'Footnotes list'!$D$9:$E$58,2,FALSE)=0,\"\",VLOOKUP(DZ303,'Footnotes list'!$D$9:$E$58,2,FALSE) ) )","v":""},null,null,null,null,{"$f":"IF(TRIM(EE303)=\"\", \"\", IF(VLOOKUP(EE303,'Footnotes list'!$D$9:$E$58,2,FALSE)=0,\"\",VLOOKUP(EE303,'Footnotes list'!$D$9:$E$58,2,FALSE) ) )","v":""},null,null,null,null,{"$f":"IF(TRIM(EJ303)=\"\", \"\", IF(VLOOKUP(EJ303,'Footnotes list'!$D$9:$E$58,2,FALSE)=0,\"\",VLOOKUP(EJ303,'Footnotes list'!$D$9:$E$58,2,FALSE) ) )","v":""},null,null,null,null,{"$f":"IF(TRIM(EO303)=\"\", \"\", IF(VLOOKUP(EO303,'Footnotes list'!$D$9:$E$58,2,FALSE)=0,\"\",VLOOKUP(EO303,'Footnotes list'!$D$9:$E$58,2,FALSE) ) )","v":""},null,null,null,null,{"$f":"IF(TRIM(ET303)=\"\", \"\", IF(VLOOKUP(ET303,'Footnotes list'!$D$9:$E$58,2,FALSE)=0,\"\",VLOOKUP(ET303,'Footnotes list'!$D$9:$E$58,2,FALSE) ) )","v":""},null,null,null,null,{"$f":"IF(TRIM(EY303)=\"\", \"\", IF(VLOOKUP(EY303,'Footnotes list'!$D$9:$E$58,2,FALSE)=0,\"\",VLOOKUP(EY303,'Footnotes list'!$D$9:$E$58,2,FALSE) ) )","v":""}]
[null,null,"U","NMKT","non-market activities",null,null,null,null,null,{"$f":"IF(TRIM(J304)=\"\", \"\", IF(VLOOKUP(J304,'Footnotes list'!$D$9:$E$58,2,FALSE)=0,\"\",VLOOKUP(J304,'Footnotes list'!$D$9:$E$58,2,FALSE) ) )","v":""},null,null,null,null,{"$f":"IF(TRIM(O304)=\"\", \"\", IF(VLOOKUP(O304,'Footnotes list'!$D$9:$E$58,2,FALSE)=0,\"\",VLOOKUP(O304,'Footnotes list'!$D$9:$E$58,2,FALSE) ) )","v":""},null,null,null,null,{"$f":"IF(TRIM(T304)=\"\", \"\", IF(VLOOKUP(T304,'Footnotes list'!$D$9:$E$58,2,FALSE)=0,\"\",VLOOKUP(T304,'Footnotes list'!$D$9:$E$58,2,FALSE) ) )","v":""},null,null,null,null,{"$f":"IF(TRIM(Y304)=\"\", \"\", IF(VLOOKUP(Y304,'Footnotes list'!$D$9:$E$58,2,FALSE)=0,\"\",VLOOKUP(Y304,'Footnotes list'!$D$9:$E$58,2,FALSE) ) )","v":""},null,null,null,null,{"$f":"IF(TRIM(AD304)=\"\", \"\", IF(VLOOKUP(AD304,'Footnotes list'!$D$9:$E$58,2,FALSE)=0,\"\",VLOOKUP(AD304,'Footnotes list'!$D$9:$E$58,2,FALSE) ) )","v":""},null,null,null,null,{"$f":"IF(TRIM(AI304)=\"\", \"\", IF(VLOOKUP(AI304,'Footnotes list'!$D$9:$E$58,2,FALSE)=0,\"\",VLOOKUP(AI304,'Footnotes list'!$D$9:$E$58,2,FALSE) ) )","v":""},null,null,null,null,{"$f":"IF(TRIM(AN304)=\"\", \"\", IF(VLOOKUP(AN304,'Footnotes list'!$D$9:$E$58,2,FALSE)=0,\"\",VLOOKUP(AN304,'Footnotes list'!$D$9:$E$58,2,FALSE) ) )","v":""},null,null,null,null,{"$f":"IF(TRIM(AS304)=\"\", \"\", IF(VLOOKUP(AS304,'Footnotes list'!$D$9:$E$58,2,FALSE)=0,\"\",VLOOKUP(AS304,'Footnotes list'!$D$9:$E$58,2,FALSE) ) )","v":""},null,null,null,null,{"$f":"IF(TRIM(AX304)=\"\", \"\", IF(VLOOKUP(AX304,'Footnotes list'!$D$9:$E$58,2,FALSE)=0,\"\",VLOOKUP(AX304,'Footnotes list'!$D$9:$E$58,2,FALSE) ) )","v":""},null,null,null,null,{"$f":"IF(TRIM(BC304)=\"\", \"\", IF(VLOOKUP(BC304,'Footnotes list'!$D$9:$E$58,2,FALSE)=0,\"\",VLOOKUP(BC304,'Footnotes list'!$D$9:$E$58,2,FALSE) ) )","v":""},null,null,null,null,{"$f":"IF(TRIM(BH304)=\"\", \"\", IF(VLOOKUP(BH304,'Footnotes list'!$D$9:$E$58,2,FALSE)=0,\"\",VLOOKUP(BH304,'Footnotes list'!$D$9:$E$58,2,FALSE) ) )","v":""},null,null,null,null,{"$f":"IF(TRIM(BM304)=\"\", \"\", IF(VLOOKUP(BM304,'Footnotes list'!$D$9:$E$58,2,FALSE)=0,\"\",VLOOKUP(BM304,'Footnotes list'!$D$9:$E$58,2,FALSE) ) )","v":""},null,null,null,null,{"$f":"IF(TRIM(BR304)=\"\", \"\", IF(VLOOKUP(BR304,'Footnotes list'!$D$9:$E$58,2,FALSE)=0,\"\",VLOOKUP(BR304,'Footnotes list'!$D$9:$E$58,2,FALSE) ) )","v":""},null,null,null,null,{"$f":"IF(TRIM(BW304)=\"\", \"\", IF(VLOOKUP(BW304,'Footnotes list'!$D$9:$E$58,2,FALSE)=0,\"\",VLOOKUP(BW304,'Footnotes list'!$D$9:$E$58,2,FALSE) ) )","v":""},null,null,null,null,{"$f":"IF(TRIM(CB304)=\"\", \"\", IF(VLOOKUP(CB304,'Footnotes list'!$D$9:$E$58,2,FALSE)=0,\"\",VLOOKUP(CB304,'Footnotes list'!$D$9:$E$58,2,FALSE) ) )","v":""},null,null,null,null,{"$f":"IF(TRIM(CG304)=\"\", \"\", IF(VLOOKUP(CG304,'Footnotes list'!$D$9:$E$58,2,FALSE)=0,\"\",VLOOKUP(CG304,'Footnotes list'!$D$9:$E$58,2,FALSE) ) )","v":""},null,null,null,null,{"$f":"IF(TRIM(CL304)=\"\", \"\", IF(VLOOKUP(CL304,'Footnotes list'!$D$9:$E$58,2,FALSE)=0,\"\",VLOOKUP(CL304,'Footnotes list'!$D$9:$E$58,2,FALSE) ) )","v":""},null,null,null,null,{"$f":"IF(TRIM(CQ304)=\"\", \"\", IF(VLOOKUP(CQ304,'Footnotes list'!$D$9:$E$58,2,FALSE)=0,\"\",VLOOKUP(CQ304,'Footnotes list'!$D$9:$E$58,2,FALSE) ) )","v":""},null,null,null,null,{"$f":"IF(TRIM(CV304)=\"\", \"\", IF(VLOOKUP(CV304,'Footnotes list'!$D$9:$E$58,2,FALSE)=0,\"\",VLOOKUP(CV304,'Footnotes list'!$D$9:$E$58,2,FALSE) ) )","v":""},null,null,null,null,{"$f":"IF(TRIM(DA304)=\"\", \"\", IF(VLOOKUP(DA304,'Footnotes list'!$D$9:$E$58,2,FALSE)=0,\"\",VLOOKUP(DA304,'Footnotes list'!$D$9:$E$58,2,FALSE) ) )","v":""},null,null,null,null,{"$f":"IF(TRIM(DF304)=\"\", \"\", IF(VLOOKUP(DF304,'Footnotes list'!$D$9:$E$58,2,FALSE)=0,\"\",VLOOKUP(DF304,'Footnotes list'!$D$9:$E$58,2,FALSE) ) )","v":""},null,null,null,null,{"$f":"IF(TRIM(DK304)=\"\", \"\", IF(VLOOKUP(DK304,'Footnotes list'!$D$9:$E$58,2,FALSE)=0,\"\",VLOOKUP(DK304,'Footnotes list'!$D$9:$E$58,2,FALSE) ) )","v":""},null,null,null,null,{"$f":"IF(TRIM(DP304)=\"\", \"\", IF(VLOOKUP(DP304,'Footnotes list'!$D$9:$E$58,2,FALSE)=0,\"\",VLOOKUP(DP304,'Footnotes list'!$D$9:$E$58,2,FALSE) ) )","v":""},null,null,null,null,{"$f":"IF(TRIM(DU304)=\"\", \"\", IF(VLOOKUP(DU304,'Footnotes list'!$D$9:$E$58,2,FALSE)=0,\"\",VLOOKUP(DU304,'Footnotes list'!$D$9:$E$58,2,FALSE) ) )","v":""},null,null,null,null,{"$f":"IF(TRIM(DZ304)=\"\", \"\", IF(VLOOKUP(DZ304,'Footnotes list'!$D$9:$E$58,2,FALSE)=0,\"\",VLOOKUP(DZ304,'Footnotes list'!$D$9:$E$58,2,FALSE) ) )","v":""},null,null,null,null,{"$f":"IF(TRIM(EE304)=\"\", \"\", IF(VLOOKUP(EE304,'Footnotes list'!$D$9:$E$58,2,FALSE)=0,\"\",VLOOKUP(EE304,'Footnotes list'!$D$9:$E$58,2,FALSE) ) )","v":""},null,null,null,null,{"$f":"IF(TRIM(EJ304)=\"\", \"\", IF(VLOOKUP(EJ304,'Footnotes list'!$D$9:$E$58,2,FALSE)=0,\"\",VLOOKUP(EJ304,'Footnotes list'!$D$9:$E$58,2,FALSE) ) )","v":""},null,null,null,null,{"$f":"IF(TRIM(EO304)=\"\", \"\", IF(VLOOKUP(EO304,'Footnotes list'!$D$9:$E$58,2,FALSE)=0,\"\",VLOOKUP(EO304,'Footnotes list'!$D$9:$E$58,2,FALSE) ) )","v":""},null,null,null,null,{"$f":"IF(TRIM(ET304)=\"\", \"\", IF(VLOOKUP(ET304,'Footnotes list'!$D$9:$E$58,2,FALSE)=0,\"\",VLOOKUP(ET304,'Footnotes list'!$D$9:$E$58,2,FALSE) ) )","v":""},null,null,null,null,{"$f":"IF(TRIM(EY304)=\"\", \"\", IF(VLOOKUP(EY304,'Footnotes list'!$D$9:$E$58,2,FALSE)=0,\"\",VLOOKUP(EY304,'Footnotes list'!$D$9:$E$58,2,FALSE) ) )","v":""}]
[null,null,"U","OWN_USE","activities for own final use",null,null,null,null,null,{"$f":"IF(TRIM(J305)=\"\", \"\", IF(VLOOKUP(J305,'Footnotes list'!$D$9:$E$58,2,FALSE)=0,\"\",VLOOKUP(J305,'Footnotes list'!$D$9:$E$58,2,FALSE) ) )","v":""},null,null,null,null,{"$f":"IF(TRIM(O305)=\"\", \"\", IF(VLOOKUP(O305,'Footnotes list'!$D$9:$E$58,2,FALSE)=0,\"\",VLOOKUP(O305,'Footnotes list'!$D$9:$E$58,2,FALSE) ) )","v":""},null,null,null,null,{"$f":"IF(TRIM(T305)=\"\", \"\", IF(VLOOKUP(T305,'Footnotes list'!$D$9:$E$58,2,FALSE)=0,\"\",VLOOKUP(T305,'Footnotes list'!$D$9:$E$58,2,FALSE) ) )","v":""},null,null,null,null,{"$f":"IF(TRIM(Y305)=\"\", \"\", IF(VLOOKUP(Y305,'Footnotes list'!$D$9:$E$58,2,FALSE)=0,\"\",VLOOKUP(Y305,'Footnotes list'!$D$9:$E$58,2,FALSE) ) )","v":""},null,null,null,null,{"$f":"IF(TRIM(AD305)=\"\", \"\", IF(VLOOKUP(AD305,'Footnotes list'!$D$9:$E$58,2,FALSE)=0,\"\",VLOOKUP(AD305,'Footnotes list'!$D$9:$E$58,2,FALSE) ) )","v":""},null,null,null,null,{"$f":"IF(TRIM(AI305)=\"\", \"\", IF(VLOOKUP(AI305,'Footnotes list'!$D$9:$E$58,2,FALSE)=0,\"\",VLOOKUP(AI305,'Footnotes list'!$D$9:$E$58,2,FALSE) ) )","v":""},null,null,null,null,{"$f":"IF(TRIM(AN305)=\"\", \"\", IF(VLOOKUP(AN305,'Footnotes list'!$D$9:$E$58,2,FALSE)=0,\"\",VLOOKUP(AN305,'Footnotes list'!$D$9:$E$58,2,FALSE) ) )","v":""},null,null,null,null,{"$f":"IF(TRIM(AS305)=\"\", \"\", IF(VLOOKUP(AS305,'Footnotes list'!$D$9:$E$58,2,FALSE)=0,\"\",VLOOKUP(AS305,'Footnotes list'!$D$9:$E$58,2,FALSE) ) )","v":""},null,null,null,null,{"$f":"IF(TRIM(AX305)=\"\", \"\", IF(VLOOKUP(AX305,'Footnotes list'!$D$9:$E$58,2,FALSE)=0,\"\",VLOOKUP(AX305,'Footnotes list'!$D$9:$E$58,2,FALSE) ) )","v":""},null,null,null,null,{"$f":"IF(TRIM(BC305)=\"\", \"\", IF(VLOOKUP(BC305,'Footnotes list'!$D$9:$E$58,2,FALSE)=0,\"\",VLOOKUP(BC305,'Footnotes list'!$D$9:$E$58,2,FALSE) ) )","v":""},null,null,null,null,{"$f":"IF(TRIM(BH305)=\"\", \"\", IF(VLOOKUP(BH305,'Footnotes list'!$D$9:$E$58,2,FALSE)=0,\"\",VLOOKUP(BH305,'Footnotes list'!$D$9:$E$58,2,FALSE) ) )","v":""},null,null,null,null,{"$f":"IF(TRIM(BM305)=\"\", \"\", IF(VLOOKUP(BM305,'Footnotes list'!$D$9:$E$58,2,FALSE)=0,\"\",VLOOKUP(BM305,'Footnotes list'!$D$9:$E$58,2,FALSE) ) )","v":""},null,null,null,null,{"$f":"IF(TRIM(BR305)=\"\", \"\", IF(VLOOKUP(BR305,'Footnotes list'!$D$9:$E$58,2,FALSE)=0,\"\",VLOOKUP(BR305,'Footnotes list'!$D$9:$E$58,2,FALSE) ) )","v":""},null,null,null,null,{"$f":"IF(TRIM(BW305)=\"\", \"\", IF(VLOOKUP(BW305,'Footnotes list'!$D$9:$E$58,2,FALSE)=0,\"\",VLOOKUP(BW305,'Footnotes list'!$D$9:$E$58,2,FALSE) ) )","v":""},null,null,null,null,{"$f":"IF(TRIM(CB305)=\"\", \"\", IF(VLOOKUP(CB305,'Footnotes list'!$D$9:$E$58,2,FALSE)=0,\"\",VLOOKUP(CB305,'Footnotes list'!$D$9:$E$58,2,FALSE) ) )","v":""},null,null,null,null,{"$f":"IF(TRIM(CG305)=\"\", \"\", IF(VLOOKUP(CG305,'Footnotes list'!$D$9:$E$58,2,FALSE)=0,\"\",VLOOKUP(CG305,'Footnotes list'!$D$9:$E$58,2,FALSE) ) )","v":""},null,null,null,null,{"$f":"IF(TRIM(CL305)=\"\", \"\", IF(VLOOKUP(CL305,'Footnotes list'!$D$9:$E$58,2,FALSE)=0,\"\",VLOOKUP(CL305,'Footnotes list'!$D$9:$E$58,2,FALSE) ) )","v":""},null,null,null,null,{"$f":"IF(TRIM(CQ305)=\"\", \"\", IF(VLOOKUP(CQ305,'Footnotes list'!$D$9:$E$58,2,FALSE)=0,\"\",VLOOKUP(CQ305,'Footnotes list'!$D$9:$E$58,2,FALSE) ) )","v":""},null,null,null,null,{"$f":"IF(TRIM(CV305)=\"\", \"\", IF(VLOOKUP(CV305,'Footnotes list'!$D$9:$E$58,2,FALSE)=0,\"\",VLOOKUP(CV305,'Footnotes list'!$D$9:$E$58,2,FALSE) ) )","v":""},null,null,null,null,{"$f":"IF(TRIM(DA305)=\"\", \"\", IF(VLOOKUP(DA305,'Footnotes list'!$D$9:$E$58,2,FALSE)=0,\"\",VLOOKUP(DA305,'Footnotes list'!$D$9:$E$58,2,FALSE) ) )","v":""},null,null,null,null,{"$f":"IF(TRIM(DF305)=\"\", \"\", IF(VLOOKUP(DF305,'Footnotes list'!$D$9:$E$58,2,FALSE)=0,\"\",VLOOKUP(DF305,'Footnotes list'!$D$9:$E$58,2,FALSE) ) )","v":""},null,null,null,null,{"$f":"IF(TRIM(DK305)=\"\", \"\", IF(VLOOKUP(DK305,'Footnotes list'!$D$9:$E$58,2,FALSE)=0,\"\",VLOOKUP(DK305,'Footnotes list'!$D$9:$E$58,2,FALSE) ) )","v":""},null,null,null,null,{"$f":"IF(TRIM(DP305)=\"\", \"\", IF(VLOOKUP(DP305,'Footnotes list'!$D$9:$E$58,2,FALSE)=0,\"\",VLOOKUP(DP305,'Footnotes list'!$D$9:$E$58,2,FALSE) ) )","v":""},null,null,null,null,{"$f":"IF(TRIM(DU305)=\"\", \"\", IF(VLOOKUP(DU305,'Footnotes list'!$D$9:$E$58,2,FALSE)=0,\"\",VLOOKUP(DU305,'Footnotes list'!$D$9:$E$58,2,FALSE) ) )","v":""},null,null,null,null,{"$f":"IF(TRIM(DZ305)=\"\", \"\", IF(VLOOKUP(DZ305,'Footnotes list'!$D$9:$E$58,2,FALSE)=0,\"\",VLOOKUP(DZ305,'Footnotes list'!$D$9:$E$58,2,FALSE) ) )","v":""},null,null,null,null,{"$f":"IF(TRIM(EE305)=\"\", \"\", IF(VLOOKUP(EE305,'Footnotes list'!$D$9:$E$58,2,FALSE)=0,\"\",VLOOKUP(EE305,'Footnotes list'!$D$9:$E$58,2,FALSE) ) )","v":""},null,null,null,null,{"$f":"IF(TRIM(EJ305)=\"\", \"\", IF(VLOOKUP(EJ305,'Footnotes list'!$D$9:$E$58,2,FALSE)=0,\"\",VLOOKUP(EJ305,'Footnotes list'!$D$9:$E$58,2,FALSE) ) )","v":""},null,null,null,null,{"$f":"IF(TRIM(EO305)=\"\", \"\", IF(VLOOKUP(EO305,'Footnotes list'!$D$9:$E$58,2,FALSE)=0,\"\",VLOOKUP(EO305,'Footnotes list'!$D$9:$E$58,2,FALSE) ) )","v":""},null,null,null,null,{"$f":"IF(TRIM(ET305)=\"\", \"\", IF(VLOOKUP(ET305,'Footnotes list'!$D$9:$E$58,2,FALSE)=0,\"\",VLOOKUP(ET305,'Footnotes list'!$D$9:$E$58,2,FALSE) ) )","v":""},null,null,null,null,{"$f":"IF(TRIM(EY305)=\"\", \"\", IF(VLOOKUP(EY305,'Footnotes list'!$D$9:$E$58,2,FALSE)=0,\"\",VLOOKUP(EY305,'Footnotes list'!$D$9:$E$58,2,FALSE) ) )","v":""}]
[null,null,"U","MKT","market activities, including:",null,null,null,null,null,{"$f":"IF(TRIM(J306)=\"\", \"\", IF(VLOOKUP(J306,'Footnotes list'!$D$9:$E$58,2,FALSE)=0,\"\",VLOOKUP(J306,'Footnotes list'!$D$9:$E$58,2,FALSE) ) )","v":""},null,null,null,null,{"$f":"IF(TRIM(O306)=\"\", \"\", IF(VLOOKUP(O306,'Footnotes list'!$D$9:$E$58,2,FALSE)=0,\"\",VLOOKUP(O306,'Footnotes list'!$D$9:$E$58,2,FALSE) ) )","v":""},null,null,null,null,{"$f":"IF(TRIM(T306)=\"\", \"\", IF(VLOOKUP(T306,'Footnotes list'!$D$9:$E$58,2,FALSE)=0,\"\",VLOOKUP(T306,'Footnotes list'!$D$9:$E$58,2,FALSE) ) )","v":""},null,null,null,null,{"$f":"IF(TRIM(Y306)=\"\", \"\", IF(VLOOKUP(Y306,'Footnotes list'!$D$9:$E$58,2,FALSE)=0,\"\",VLOOKUP(Y306,'Footnotes list'!$D$9:$E$58,2,FALSE) ) )","v":""},null,null,null,null,{"$f":"IF(TRIM(AD306)=\"\", \"\", IF(VLOOKUP(AD306,'Footnotes list'!$D$9:$E$58,2,FALSE)=0,\"\",VLOOKUP(AD306,'Footnotes list'!$D$9:$E$58,2,FALSE) ) )","v":""},null,null,null,null,{"$f":"IF(TRIM(AI306)=\"\", \"\", IF(VLOOKUP(AI306,'Footnotes list'!$D$9:$E$58,2,FALSE)=0,\"\",VLOOKUP(AI306,'Footnotes list'!$D$9:$E$58,2,FALSE) ) )","v":""},null,null,null,null,{"$f":"IF(TRIM(AN306)=\"\", \"\", IF(VLOOKUP(AN306,'Footnotes list'!$D$9:$E$58,2,FALSE)=0,\"\",VLOOKUP(AN306,'Footnotes list'!$D$9:$E$58,2,FALSE) ) )","v":""},null,null,null,null,{"$f":"IF(TRIM(AS306)=\"\", \"\", IF(VLOOKUP(AS306,'Footnotes list'!$D$9:$E$58,2,FALSE)=0,\"\",VLOOKUP(AS306,'Footnotes list'!$D$9:$E$58,2,FALSE) ) )","v":""},null,null,null,null,{"$f":"IF(TRIM(AX306)=\"\", \"\", IF(VLOOKUP(AX306,'Footnotes list'!$D$9:$E$58,2,FALSE)=0,\"\",VLOOKUP(AX306,'Footnotes list'!$D$9:$E$58,2,FALSE) ) )","v":""},null,null,null,null,{"$f":"IF(TRIM(BC306)=\"\", \"\", IF(VLOOKUP(BC306,'Footnotes list'!$D$9:$E$58,2,FALSE)=0,\"\",VLOOKUP(BC306,'Footnotes list'!$D$9:$E$58,2,FALSE) ) )","v":""},null,null,null,null,{"$f":"IF(TRIM(BH306)=\"\", \"\", IF(VLOOKUP(BH306,'Footnotes list'!$D$9:$E$58,2,FALSE)=0,\"\",VLOOKUP(BH306,'Footnotes list'!$D$9:$E$58,2,FALSE) ) )","v":""},null,null,null,null,{"$f":"IF(TRIM(BM306)=\"\", \"\", IF(VLOOKUP(BM306,'Footnotes list'!$D$9:$E$58,2,FALSE)=0,\"\",VLOOKUP(BM306,'Footnotes list'!$D$9:$E$58,2,FALSE) ) )","v":""},null,null,null,null,{"$f":"IF(TRIM(BR306)=\"\", \"\", IF(VLOOKUP(BR306,'Footnotes list'!$D$9:$E$58,2,FALSE)=0,\"\",VLOOKUP(BR306,'Footnotes list'!$D$9:$E$58,2,FALSE) ) )","v":""},null,null,null,null,{"$f":"IF(TRIM(BW306)=\"\", \"\", IF(VLOOKUP(BW306,'Footnotes list'!$D$9:$E$58,2,FALSE)=0,\"\",VLOOKUP(BW306,'Footnotes list'!$D$9:$E$58,2,FALSE) ) )","v":""},null,null,null,null,{"$f":"IF(TRIM(CB306)=\"\", \"\", IF(VLOOKUP(CB306,'Footnotes list'!$D$9:$E$58,2,FALSE)=0,\"\",VLOOKUP(CB306,'Footnotes list'!$D$9:$E$58,2,FALSE) ) )","v":""},null,null,null,null,{"$f":"IF(TRIM(CG306)=\"\", \"\", IF(VLOOKUP(CG306,'Footnotes list'!$D$9:$E$58,2,FALSE)=0,\"\",VLOOKUP(CG306,'Footnotes list'!$D$9:$E$58,2,FALSE) ) )","v":""},null,null,null,null,{"$f":"IF(TRIM(CL306)=\"\", \"\", IF(VLOOKUP(CL306,'Footnotes list'!$D$9:$E$58,2,FALSE)=0,\"\",VLOOKUP(CL306,'Footnotes list'!$D$9:$E$58,2,FALSE) ) )","v":""},null,null,null,null,{"$f":"IF(TRIM(CQ306)=\"\", \"\", IF(VLOOKUP(CQ306,'Footnotes list'!$D$9:$E$58,2,FALSE)=0,\"\",VLOOKUP(CQ306,'Footnotes list'!$D$9:$E$58,2,FALSE) ) )","v":""},null,null,null,null,{"$f":"IF(TRIM(CV306)=\"\", \"\", IF(VLOOKUP(CV306,'Footnotes list'!$D$9:$E$58,2,FALSE)=0,\"\",VLOOKUP(CV306,'Footnotes list'!$D$9:$E$58,2,FALSE) ) )","v":""},null,null,null,null,{"$f":"IF(TRIM(DA306)=\"\", \"\", IF(VLOOKUP(DA306,'Footnotes list'!$D$9:$E$58,2,FALSE)=0,\"\",VLOOKUP(DA306,'Footnotes list'!$D$9:$E$58,2,FALSE) ) )","v":""},null,null,null,null,{"$f":"IF(TRIM(DF306)=\"\", \"\", IF(VLOOKUP(DF306,'Footnotes list'!$D$9:$E$58,2,FALSE)=0,\"\",VLOOKUP(DF306,'Footnotes list'!$D$9:$E$58,2,FALSE) ) )","v":""},null,null,null,null,{"$f":"IF(TRIM(DK306)=\"\", \"\", IF(VLOOKUP(DK306,'Footnotes list'!$D$9:$E$58,2,FALSE)=0,\"\",VLOOKUP(DK306,'Footnotes list'!$D$9:$E$58,2,FALSE) ) )","v":""},null,null,null,null,{"$f":"IF(TRIM(DP306)=\"\", \"\", IF(VLOOKUP(DP306,'Footnotes list'!$D$9:$E$58,2,FALSE)=0,\"\",VLOOKUP(DP306,'Footnotes list'!$D$9:$E$58,2,FALSE) ) )","v":""},null,null,null,null,{"$f":"IF(TRIM(DU306)=\"\", \"\", IF(VLOOKUP(DU306,'Footnotes list'!$D$9:$E$58,2,FALSE)=0,\"\",VLOOKUP(DU306,'Footnotes list'!$D$9:$E$58,2,FALSE) ) )","v":""},null,null,null,null,{"$f":"IF(TRIM(DZ306)=\"\", \"\", IF(VLOOKUP(DZ306,'Footnotes list'!$D$9:$E$58,2,FALSE)=0,\"\",VLOOKUP(DZ306,'Footnotes list'!$D$9:$E$58,2,FALSE) ) )","v":""},null,null,null,null,{"$f":"IF(TRIM(EE306)=\"\", \"\", IF(VLOOKUP(EE306,'Footnotes list'!$D$9:$E$58,2,FALSE)=0,\"\",VLOOKUP(EE306,'Footnotes list'!$D$9:$E$58,2,FALSE) ) )","v":""},null,null,null,null,{"$f":"IF(TRIM(EJ306)=\"\", \"\", IF(VLOOKUP(EJ306,'Footnotes list'!$D$9:$E$58,2,FALSE)=0,\"\",VLOOKUP(EJ306,'Footnotes list'!$D$9:$E$58,2,FALSE) ) )","v":""},null,null,null,null,{"$f":"IF(TRIM(EO306)=\"\", \"\", IF(VLOOKUP(EO306,'Footnotes list'!$D$9:$E$58,2,FALSE)=0,\"\",VLOOKUP(EO306,'Footnotes list'!$D$9:$E$58,2,FALSE) ) )","v":""},null,null,null,null,{"$f":"IF(TRIM(ET306)=\"\", \"\", IF(VLOOKUP(ET306,'Footnotes list'!$D$9:$E$58,2,FALSE)=0,\"\",VLOOKUP(ET306,'Footnotes list'!$D$9:$E$58,2,FALSE) ) )","v":""},null,null,null,null,{"$f":"IF(TRIM(EY306)=\"\", \"\", IF(VLOOKUP(EY306,'Footnotes list'!$D$9:$E$58,2,FALSE)=0,\"\",VLOOKUP(EY306,'Footnotes list'!$D$9:$E$58,2,FALSE) ) )","v":""}]
[null,null,"U","ES_CS","environmental specific services",null,null,null,null,null,{"$f":"IF(TRIM(J307)=\"\", \"\", IF(VLOOKUP(J307,'Footnotes list'!$D$9:$E$58,2,FALSE)=0,\"\",VLOOKUP(J307,'Footnotes list'!$D$9:$E$58,2,FALSE) ) )","v":""},null,null,null,null,{"$f":"IF(TRIM(O307)=\"\", \"\", IF(VLOOKUP(O307,'Footnotes list'!$D$9:$E$58,2,FALSE)=0,\"\",VLOOKUP(O307,'Footnotes list'!$D$9:$E$58,2,FALSE) ) )","v":""},null,null,null,null,{"$f":"IF(TRIM(T307)=\"\", \"\", IF(VLOOKUP(T307,'Footnotes list'!$D$9:$E$58,2,FALSE)=0,\"\",VLOOKUP(T307,'Footnotes list'!$D$9:$E$58,2,FALSE) ) )","v":""},null,null,null,null,{"$f":"IF(TRIM(Y307)=\"\", \"\", IF(VLOOKUP(Y307,'Footnotes list'!$D$9:$E$58,2,FALSE)=0,\"\",VLOOKUP(Y307,'Footnotes list'!$D$9:$E$58,2,FALSE) ) )","v":""},null,null,null,null,{"$f":"IF(TRIM(AD307)=\"\", \"\", IF(VLOOKUP(AD307,'Footnotes list'!$D$9:$E$58,2,FALSE)=0,\"\",VLOOKUP(AD307,'Footnotes list'!$D$9:$E$58,2,FALSE) ) )","v":""},null,null,null,null,{"$f":"IF(TRIM(AI307)=\"\", \"\", IF(VLOOKUP(AI307,'Footnotes list'!$D$9:$E$58,2,FALSE)=0,\"\",VLOOKUP(AI307,'Footnotes list'!$D$9:$E$58,2,FALSE) ) )","v":""},null,null,null,null,{"$f":"IF(TRIM(AN307)=\"\", \"\", IF(VLOOKUP(AN307,'Footnotes list'!$D$9:$E$58,2,FALSE)=0,\"\",VLOOKUP(AN307,'Footnotes list'!$D$9:$E$58,2,FALSE) ) )","v":""},null,null,null,null,{"$f":"IF(TRIM(AS307)=\"\", \"\", IF(VLOOKUP(AS307,'Footnotes list'!$D$9:$E$58,2,FALSE)=0,\"\",VLOOKUP(AS307,'Footnotes list'!$D$9:$E$58,2,FALSE) ) )","v":""},null,null,null,null,{"$f":"IF(TRIM(AX307)=\"\", \"\", IF(VLOOKUP(AX307,'Footnotes list'!$D$9:$E$58,2,FALSE)=0,\"\",VLOOKUP(AX307,'Footnotes list'!$D$9:$E$58,2,FALSE) ) )","v":""},null,null,null,null,{"$f":"IF(TRIM(BC307)=\"\", \"\", IF(VLOOKUP(BC307,'Footnotes list'!$D$9:$E$58,2,FALSE)=0,\"\",VLOOKUP(BC307,'Footnotes list'!$D$9:$E$58,2,FALSE) ) )","v":""},null,null,null,null,{"$f":"IF(TRIM(BH307)=\"\", \"\", IF(VLOOKUP(BH307,'Footnotes list'!$D$9:$E$58,2,FALSE)=0,\"\",VLOOKUP(BH307,'Footnotes list'!$D$9:$E$58,2,FALSE) ) )","v":""},null,null,null,null,{"$f":"IF(TRIM(BM307)=\"\", \"\", IF(VLOOKUP(BM307,'Footnotes list'!$D$9:$E$58,2,FALSE)=0,\"\",VLOOKUP(BM307,'Footnotes list'!$D$9:$E$58,2,FALSE) ) )","v":""},null,null,null,null,{"$f":"IF(TRIM(BR307)=\"\", \"\", IF(VLOOKUP(BR307,'Footnotes list'!$D$9:$E$58,2,FALSE)=0,\"\",VLOOKUP(BR307,'Footnotes list'!$D$9:$E$58,2,FALSE) ) )","v":""},null,null,null,null,{"$f":"IF(TRIM(BW307)=\"\", \"\", IF(VLOOKUP(BW307,'Footnotes list'!$D$9:$E$58,2,FALSE)=0,\"\",VLOOKUP(BW307,'Footnotes list'!$D$9:$E$58,2,FALSE) ) )","v":""},null,null,null,null,{"$f":"IF(TRIM(CB307)=\"\", \"\", IF(VLOOKUP(CB307,'Footnotes list'!$D$9:$E$58,2,FALSE)=0,\"\",VLOOKUP(CB307,'Footnotes list'!$D$9:$E$58,2,FALSE) ) )","v":""},null,null,null,null,{"$f":"IF(TRIM(CG307)=\"\", \"\", IF(VLOOKUP(CG307,'Footnotes list'!$D$9:$E$58,2,FALSE)=0,\"\",VLOOKUP(CG307,'Footnotes list'!$D$9:$E$58,2,FALSE) ) )","v":""},null,null,null,null,{"$f":"IF(TRIM(CL307)=\"\", \"\", IF(VLOOKUP(CL307,'Footnotes list'!$D$9:$E$58,2,FALSE)=0,\"\",VLOOKUP(CL307,'Footnotes list'!$D$9:$E$58,2,FALSE) ) )","v":""},null,null,null,null,{"$f":"IF(TRIM(CQ307)=\"\", \"\", IF(VLOOKUP(CQ307,'Footnotes list'!$D$9:$E$58,2,FALSE)=0,\"\",VLOOKUP(CQ307,'Footnotes list'!$D$9:$E$58,2,FALSE) ) )","v":""},null,null,null,null,{"$f":"IF(TRIM(CV307)=\"\", \"\", IF(VLOOKUP(CV307,'Footnotes list'!$D$9:$E$58,2,FALSE)=0,\"\",VLOOKUP(CV307,'Footnotes list'!$D$9:$E$58,2,FALSE) ) )","v":""},null,null,null,null,{"$f":"IF(TRIM(DA307)=\"\", \"\", IF(VLOOKUP(DA307,'Footnotes list'!$D$9:$E$58,2,FALSE)=0,\"\",VLOOKUP(DA307,'Footnotes list'!$D$9:$E$58,2,FALSE) ) )","v":""},null,null,null,null,{"$f":"IF(TRIM(DF307)=\"\", \"\", IF(VLOOKUP(DF307,'Footnotes list'!$D$9:$E$58,2,FALSE)=0,\"\",VLOOKUP(DF307,'Footnotes list'!$D$9:$E$58,2,FALSE) ) )","v":""},null,null,null,null,{"$f":"IF(TRIM(DK307)=\"\", \"\", IF(VLOOKUP(DK307,'Footnotes list'!$D$9:$E$58,2,FALSE)=0,\"\",VLOOKUP(DK307,'Footnotes list'!$D$9:$E$58,2,FALSE) ) )","v":""},null,null,null,null,{"$f":"IF(TRIM(DP307)=\"\", \"\", IF(VLOOKUP(DP307,'Footnotes list'!$D$9:$E$58,2,FALSE)=0,\"\",VLOOKUP(DP307,'Footnotes list'!$D$9:$E$58,2,FALSE) ) )","v":""},null,null,null,null,{"$f":"IF(TRIM(DU307)=\"\", \"\", IF(VLOOKUP(DU307,'Footnotes list'!$D$9:$E$58,2,FALSE)=0,\"\",VLOOKUP(DU307,'Footnotes list'!$D$9:$E$58,2,FALSE) ) )","v":""},null,null,null,null,{"$f":"IF(TRIM(DZ307)=\"\", \"\", IF(VLOOKUP(DZ307,'Footnotes list'!$D$9:$E$58,2,FALSE)=0,\"\",VLOOKUP(DZ307,'Footnotes list'!$D$9:$E$58,2,FALSE) ) )","v":""},null,null,null,null,{"$f":"IF(TRIM(EE307)=\"\", \"\", IF(VLOOKUP(EE307,'Footnotes list'!$D$9:$E$58,2,FALSE)=0,\"\",VLOOKUP(EE307,'Footnotes list'!$D$9:$E$58,2,FALSE) ) )","v":""},null,null,null,null,{"$f":"IF(TRIM(EJ307)=\"\", \"\", IF(VLOOKUP(EJ307,'Footnotes list'!$D$9:$E$58,2,FALSE)=0,\"\",VLOOKUP(EJ307,'Footnotes list'!$D$9:$E$58,2,FALSE) ) )","v":""},null,null,null,null,{"$f":"IF(TRIM(EO307)=\"\", \"\", IF(VLOOKUP(EO307,'Footnotes list'!$D$9:$E$58,2,FALSE)=0,\"\",VLOOKUP(EO307,'Footnotes list'!$D$9:$E$58,2,FALSE) ) )","v":""},null,null,null,null,{"$f":"IF(TRIM(ET307)=\"\", \"\", IF(VLOOKUP(ET307,'Footnotes list'!$D$9:$E$58,2,FALSE)=0,\"\",VLOOKUP(ET307,'Footnotes list'!$D$9:$E$58,2,FALSE) ) )","v":""},null,null,null,null,{"$f":"IF(TRIM(EY307)=\"\", \"\", IF(VLOOKUP(EY307,'Footnotes list'!$D$9:$E$58,2,FALSE)=0,\"\",VLOOKUP(EY307,'Footnotes list'!$D$9:$E$58,2,FALSE) ) )","v":""}]
[null,null,"U","C_REP","cleaner and resource efficient products",null,null,null,null,null,{"$f":"IF(TRIM(J308)=\"\", \"\", IF(VLOOKUP(J308,'Footnotes list'!$D$9:$E$58,2,FALSE)=0,\"\",VLOOKUP(J308,'Footnotes list'!$D$9:$E$58,2,FALSE) ) )","v":""},null,null,null,null,{"$f":"IF(TRIM(O308)=\"\", \"\", IF(VLOOKUP(O308,'Footnotes list'!$D$9:$E$58,2,FALSE)=0,\"\",VLOOKUP(O308,'Footnotes list'!$D$9:$E$58,2,FALSE) ) )","v":""},null,null,null,null,{"$f":"IF(TRIM(T308)=\"\", \"\", IF(VLOOKUP(T308,'Footnotes list'!$D$9:$E$58,2,FALSE)=0,\"\",VLOOKUP(T308,'Footnotes list'!$D$9:$E$58,2,FALSE) ) )","v":""},null,null,null,null,{"$f":"IF(TRIM(Y308)=\"\", \"\", IF(VLOOKUP(Y308,'Footnotes list'!$D$9:$E$58,2,FALSE)=0,\"\",VLOOKUP(Y308,'Footnotes list'!$D$9:$E$58,2,FALSE) ) )","v":""},null,null,null,null,{"$f":"IF(TRIM(AD308)=\"\", \"\", IF(VLOOKUP(AD308,'Footnotes list'!$D$9:$E$58,2,FALSE)=0,\"\",VLOOKUP(AD308,'Footnotes list'!$D$9:$E$58,2,FALSE) ) )","v":""},null,null,null,null,{"$f":"IF(TRIM(AI308)=\"\", \"\", IF(VLOOKUP(AI308,'Footnotes list'!$D$9:$E$58,2,FALSE)=0,\"\",VLOOKUP(AI308,'Footnotes list'!$D$9:$E$58,2,FALSE) ) )","v":""},null,null,null,null,{"$f":"IF(TRIM(AN308)=\"\", \"\", IF(VLOOKUP(AN308,'Footnotes list'!$D$9:$E$58,2,FALSE)=0,\"\",VLOOKUP(AN308,'Footnotes list'!$D$9:$E$58,2,FALSE) ) )","v":""},null,null,null,null,{"$f":"IF(TRIM(AS308)=\"\", \"\", IF(VLOOKUP(AS308,'Footnotes list'!$D$9:$E$58,2,FALSE)=0,\"\",VLOOKUP(AS308,'Footnotes list'!$D$9:$E$58,2,FALSE) ) )","v":""},null,null,null,null,{"$f":"IF(TRIM(AX308)=\"\", \"\", IF(VLOOKUP(AX308,'Footnotes list'!$D$9:$E$58,2,FALSE)=0,\"\",VLOOKUP(AX308,'Footnotes list'!$D$9:$E$58,2,FALSE) ) )","v":""},null,null,null,null,{"$f":"IF(TRIM(BC308)=\"\", \"\", IF(VLOOKUP(BC308,'Footnotes list'!$D$9:$E$58,2,FALSE)=0,\"\",VLOOKUP(BC308,'Footnotes list'!$D$9:$E$58,2,FALSE) ) )","v":""},null,null,null,null,{"$f":"IF(TRIM(BH308)=\"\", \"\", IF(VLOOKUP(BH308,'Footnotes list'!$D$9:$E$58,2,FALSE)=0,\"\",VLOOKUP(BH308,'Footnotes list'!$D$9:$E$58,2,FALSE) ) )","v":""},null,null,null,null,{"$f":"IF(TRIM(BM308)=\"\", \"\", IF(VLOOKUP(BM308,'Footnotes list'!$D$9:$E$58,2,FALSE)=0,\"\",VLOOKUP(BM308,'Footnotes list'!$D$9:$E$58,2,FALSE) ) )","v":""},null,null,null,null,{"$f":"IF(TRIM(BR308)=\"\", \"\", IF(VLOOKUP(BR308,'Footnotes list'!$D$9:$E$58,2,FALSE)=0,\"\",VLOOKUP(BR308,'Footnotes list'!$D$9:$E$58,2,FALSE) ) )","v":""},null,null,null,null,{"$f":"IF(TRIM(BW308)=\"\", \"\", IF(VLOOKUP(BW308,'Footnotes list'!$D$9:$E$58,2,FALSE)=0,\"\",VLOOKUP(BW308,'Footnotes list'!$D$9:$E$58,2,FALSE) ) )","v":""},null,null,null,null,{"$f":"IF(TRIM(CB308)=\"\", \"\", IF(VLOOKUP(CB308,'Footnotes list'!$D$9:$E$58,2,FALSE)=0,\"\",VLOOKUP(CB308,'Footnotes list'!$D$9:$E$58,2,FALSE) ) )","v":""},null,null,null,null,{"$f":"IF(TRIM(CG308)=\"\", \"\", IF(VLOOKUP(CG308,'Footnotes list'!$D$9:$E$58,2,FALSE)=0,\"\",VLOOKUP(CG308,'Footnotes list'!$D$9:$E$58,2,FALSE) ) )","v":""},null,null,null,null,{"$f":"IF(TRIM(CL308)=\"\", \"\", IF(VLOOKUP(CL308,'Footnotes list'!$D$9:$E$58,2,FALSE)=0,\"\",VLOOKUP(CL308,'Footnotes list'!$D$9:$E$58,2,FALSE) ) )","v":""},null,null,null,null,{"$f":"IF(TRIM(CQ308)=\"\", \"\", IF(VLOOKUP(CQ308,'Footnotes list'!$D$9:$E$58,2,FALSE)=0,\"\",VLOOKUP(CQ308,'Footnotes list'!$D$9:$E$58,2,FALSE) ) )","v":""},null,null,null,null,{"$f":"IF(TRIM(CV308)=\"\", \"\", IF(VLOOKUP(CV308,'Footnotes list'!$D$9:$E$58,2,FALSE)=0,\"\",VLOOKUP(CV308,'Footnotes list'!$D$9:$E$58,2,FALSE) ) )","v":""},null,null,null,null,{"$f":"IF(TRIM(DA308)=\"\", \"\", IF(VLOOKUP(DA308,'Footnotes list'!$D$9:$E$58,2,FALSE)=0,\"\",VLOOKUP(DA308,'Footnotes list'!$D$9:$E$58,2,FALSE) ) )","v":""},null,null,null,null,{"$f":"IF(TRIM(DF308)=\"\", \"\", IF(VLOOKUP(DF308,'Footnotes list'!$D$9:$E$58,2,FALSE)=0,\"\",VLOOKUP(DF308,'Footnotes list'!$D$9:$E$58,2,FALSE) ) )","v":""},null,null,null,null,{"$f":"IF(TRIM(DK308)=\"\", \"\", IF(VLOOKUP(DK308,'Footnotes list'!$D$9:$E$58,2,FALSE)=0,\"\",VLOOKUP(DK308,'Footnotes list'!$D$9:$E$58,2,FALSE) ) )","v":""},null,null,null,null,{"$f":"IF(TRIM(DP308)=\"\", \"\", IF(VLOOKUP(DP308,'Footnotes list'!$D$9:$E$58,2,FALSE)=0,\"\",VLOOKUP(DP308,'Footnotes list'!$D$9:$E$58,2,FALSE) ) )","v":""},null,null,null,null,{"$f":"IF(TRIM(DU308)=\"\", \"\", IF(VLOOKUP(DU308,'Footnotes list'!$D$9:$E$58,2,FALSE)=0,\"\",VLOOKUP(DU308,'Footnotes list'!$D$9:$E$58,2,FALSE) ) )","v":""},null,null,null,null,{"$f":"IF(TRIM(DZ308)=\"\", \"\", IF(VLOOKUP(DZ308,'Footnotes list'!$D$9:$E$58,2,FALSE)=0,\"\",VLOOKUP(DZ308,'Footnotes list'!$D$9:$E$58,2,FALSE) ) )","v":""},null,null,null,null,{"$f":"IF(TRIM(EE308)=\"\", \"\", IF(VLOOKUP(EE308,'Footnotes list'!$D$9:$E$58,2,FALSE)=0,\"\",VLOOKUP(EE308,'Footnotes list'!$D$9:$E$58,2,FALSE) ) )","v":""},null,null,null,null,{"$f":"IF(TRIM(EJ308)=\"\", \"\", IF(VLOOKUP(EJ308,'Footnotes list'!$D$9:$E$58,2,FALSE)=0,\"\",VLOOKUP(EJ308,'Footnotes list'!$D$9:$E$58,2,FALSE) ) )","v":""},null,null,null,null,{"$f":"IF(TRIM(EO308)=\"\", \"\", IF(VLOOKUP(EO308,'Footnotes list'!$D$9:$E$58,2,FALSE)=0,\"\",VLOOKUP(EO308,'Footnotes list'!$D$9:$E$58,2,FALSE) ) )","v":""},null,null,null,null,{"$f":"IF(TRIM(ET308)=\"\", \"\", IF(VLOOKUP(ET308,'Footnotes list'!$D$9:$E$58,2,FALSE)=0,\"\",VLOOKUP(ET308,'Footnotes list'!$D$9:$E$58,2,FALSE) ) )","v":""},null,null,null,null,{"$f":"IF(TRIM(EY308)=\"\", \"\", IF(VLOOKUP(EY308,'Footnotes list'!$D$9:$E$58,2,FALSE)=0,\"\",VLOOKUP(EY308,'Footnotes list'!$D$9:$E$58,2,FALSE) ) )","v":""}]
[null,null,"G-I_K_L_N_Q-U","TOT_EGSS","Total G + H + I + K + L + N + Q + R + S + T + U -Services (except information and communication, professional, scientific and technical activities, public administration and defence; compulsory social security and education), of which:",null,null,null,null,null,{"$f":"IF(TRIM(J309)=\"\", \"\", IF(VLOOKUP(J309,'Footnotes list'!$D$9:$E$58,2,FALSE)=0,\"\",VLOOKUP(J309,'Footnotes list'!$D$9:$E$58,2,FALSE) ) )","v":""},null,null,null,null,{"$f":"IF(TRIM(O309)=\"\", \"\", IF(VLOOKUP(O309,'Footnotes list'!$D$9:$E$58,2,FALSE)=0,\"\",VLOOKUP(O309,'Footnotes list'!$D$9:$E$58,2,FALSE) ) )","v":""},null,null,null,null,{"$f":"IF(TRIM(T309)=\"\", \"\", IF(VLOOKUP(T309,'Footnotes list'!$D$9:$E$58,2,FALSE)=0,\"\",VLOOKUP(T309,'Footnotes list'!$D$9:$E$58,2,FALSE) ) )","v":""},null,null,null,null,{"$f":"IF(TRIM(Y309)=\"\", \"\", IF(VLOOKUP(Y309,'Footnotes list'!$D$9:$E$58,2,FALSE)=0,\"\",VLOOKUP(Y309,'Footnotes list'!$D$9:$E$58,2,FALSE) ) )","v":""},null,null,null,null,{"$f":"IF(TRIM(AD309)=\"\", \"\", IF(VLOOKUP(AD309,'Footnotes list'!$D$9:$E$58,2,FALSE)=0,\"\",VLOOKUP(AD309,'Footnotes list'!$D$9:$E$58,2,FALSE) ) )","v":""},null,null,null,null,{"$f":"IF(TRIM(AI309)=\"\", \"\", IF(VLOOKUP(AI309,'Footnotes list'!$D$9:$E$58,2,FALSE)=0,\"\",VLOOKUP(AI309,'Footnotes list'!$D$9:$E$58,2,FALSE) ) )","v":""},null,null,null,null,{"$f":"IF(TRIM(AN309)=\"\", \"\", IF(VLOOKUP(AN309,'Footnotes list'!$D$9:$E$58,2,FALSE)=0,\"\",VLOOKUP(AN309,'Footnotes list'!$D$9:$E$58,2,FALSE) ) )","v":""},null,null,null,null,{"$f":"IF(TRIM(AS309)=\"\", \"\", IF(VLOOKUP(AS309,'Footnotes list'!$D$9:$E$58,2,FALSE)=0,\"\",VLOOKUP(AS309,'Footnotes list'!$D$9:$E$58,2,FALSE) ) )","v":""},null,null,null,null,{"$f":"IF(TRIM(AX309)=\"\", \"\", IF(VLOOKUP(AX309,'Footnotes list'!$D$9:$E$58,2,FALSE)=0,\"\",VLOOKUP(AX309,'Footnotes list'!$D$9:$E$58,2,FALSE) ) )","v":""},null,null,null,null,{"$f":"IF(TRIM(BC309)=\"\", \"\", IF(VLOOKUP(BC309,'Footnotes list'!$D$9:$E$58,2,FALSE)=0,\"\",VLOOKUP(BC309,'Footnotes list'!$D$9:$E$58,2,FALSE) ) )","v":""},null,null,null,null,{"$f":"IF(TRIM(BH309)=\"\", \"\", IF(VLOOKUP(BH309,'Footnotes list'!$D$9:$E$58,2,FALSE)=0,\"\",VLOOKUP(BH309,'Footnotes list'!$D$9:$E$58,2,FALSE) ) )","v":""},null,null,null,null,{"$f":"IF(TRIM(BM309)=\"\", \"\", IF(VLOOKUP(BM309,'Footnotes list'!$D$9:$E$58,2,FALSE)=0,\"\",VLOOKUP(BM309,'Footnotes list'!$D$9:$E$58,2,FALSE) ) )","v":""},null,null,null,null,{"$f":"IF(TRIM(BR309)=\"\", \"\", IF(VLOOKUP(BR309,'Footnotes list'!$D$9:$E$58,2,FALSE)=0,\"\",VLOOKUP(BR309,'Footnotes list'!$D$9:$E$58,2,FALSE) ) )","v":""},null,null,null,null,{"$f":"IF(TRIM(BW309)=\"\", \"\", IF(VLOOKUP(BW309,'Footnotes list'!$D$9:$E$58,2,FALSE)=0,\"\",VLOOKUP(BW309,'Footnotes list'!$D$9:$E$58,2,FALSE) ) )","v":""},null,null,null,null,{"$f":"IF(TRIM(CB309)=\"\", \"\", IF(VLOOKUP(CB309,'Footnotes list'!$D$9:$E$58,2,FALSE)=0,\"\",VLOOKUP(CB309,'Footnotes list'!$D$9:$E$58,2,FALSE) ) )","v":""},null,null,null,null,{"$f":"IF(TRIM(CG309)=\"\", \"\", IF(VLOOKUP(CG309,'Footnotes list'!$D$9:$E$58,2,FALSE)=0,\"\",VLOOKUP(CG309,'Footnotes list'!$D$9:$E$58,2,FALSE) ) )","v":""},null,null,null,null,{"$f":"IF(TRIM(CL309)=\"\", \"\", IF(VLOOKUP(CL309,'Footnotes list'!$D$9:$E$58,2,FALSE)=0,\"\",VLOOKUP(CL309,'Footnotes list'!$D$9:$E$58,2,FALSE) ) )","v":""},null,null,null,null,{"$f":"IF(TRIM(CQ309)=\"\", \"\", IF(VLOOKUP(CQ309,'Footnotes list'!$D$9:$E$58,2,FALSE)=0,\"\",VLOOKUP(CQ309,'Footnotes list'!$D$9:$E$58,2,FALSE) ) )","v":""},null,null,null,null,{"$f":"IF(TRIM(CV309)=\"\", \"\", IF(VLOOKUP(CV309,'Footnotes list'!$D$9:$E$58,2,FALSE)=0,\"\",VLOOKUP(CV309,'Footnotes list'!$D$9:$E$58,2,FALSE) ) )","v":""},null,null,null,null,{"$f":"IF(TRIM(DA309)=\"\", \"\", IF(VLOOKUP(DA309,'Footnotes list'!$D$9:$E$58,2,FALSE)=0,\"\",VLOOKUP(DA309,'Footnotes list'!$D$9:$E$58,2,FALSE) ) )","v":""},null,null,null,null,{"$f":"IF(TRIM(DF309)=\"\", \"\", IF(VLOOKUP(DF309,'Footnotes list'!$D$9:$E$58,2,FALSE)=0,\"\",VLOOKUP(DF309,'Footnotes list'!$D$9:$E$58,2,FALSE) ) )","v":""},null,null,null,null,{"$f":"IF(TRIM(DK309)=\"\", \"\", IF(VLOOKUP(DK309,'Footnotes list'!$D$9:$E$58,2,FALSE)=0,\"\",VLOOKUP(DK309,'Footnotes list'!$D$9:$E$58,2,FALSE) ) )","v":""},null,null,null,null,{"$f":"IF(TRIM(DP309)=\"\", \"\", IF(VLOOKUP(DP309,'Footnotes list'!$D$9:$E$58,2,FALSE)=0,\"\",VLOOKUP(DP309,'Footnotes list'!$D$9:$E$58,2,FALSE) ) )","v":""},null,null,null,null,{"$f":"IF(TRIM(DU309)=\"\", \"\", IF(VLOOKUP(DU309,'Footnotes list'!$D$9:$E$58,2,FALSE)=0,\"\",VLOOKUP(DU309,'Footnotes list'!$D$9:$E$58,2,FALSE) ) )","v":""},null,null,null,null,{"$f":"IF(TRIM(DZ309)=\"\", \"\", IF(VLOOKUP(DZ309,'Footnotes list'!$D$9:$E$58,2,FALSE)=0,\"\",VLOOKUP(DZ309,'Footnotes list'!$D$9:$E$58,2,FALSE) ) )","v":""},null,null,null,null,{"$f":"IF(TRIM(EE309)=\"\", \"\", IF(VLOOKUP(EE309,'Footnotes list'!$D$9:$E$58,2,FALSE)=0,\"\",VLOOKUP(EE309,'Footnotes list'!$D$9:$E$58,2,FALSE) ) )","v":""},null,null,null,null,{"$f":"IF(TRIM(EJ309)=\"\", \"\", IF(VLOOKUP(EJ309,'Footnotes list'!$D$9:$E$58,2,FALSE)=0,\"\",VLOOKUP(EJ309,'Footnotes list'!$D$9:$E$58,2,FALSE) ) )","v":""},null,null,null,null,{"$f":"IF(TRIM(EO309)=\"\", \"\", IF(VLOOKUP(EO309,'Footnotes list'!$D$9:$E$58,2,FALSE)=0,\"\",VLOOKUP(EO309,'Footnotes list'!$D$9:$E$58,2,FALSE) ) )","v":""},null,null,null,null,{"$f":"IF(TRIM(ET309)=\"\", \"\", IF(VLOOKUP(ET309,'Footnotes list'!$D$9:$E$58,2,FALSE)=0,\"\",VLOOKUP(ET309,'Footnotes list'!$D$9:$E$58,2,FALSE) ) )","v":""},null,null,null,null,{"$f":"IF(TRIM(EY309)=\"\", \"\", IF(VLOOKUP(EY309,'Footnotes list'!$D$9:$E$58,2,FALSE)=0,\"\",VLOOKUP(EY309,'Footnotes list'!$D$9:$E$58,2,FALSE) ) )","v":""}]
[null,null,"G-I_K_L_N_Q-U","ANC","ancillary activities",null,null,null,null,null,{"$f":"IF(TRIM(J310)=\"\", \"\", IF(VLOOKUP(J310,'Footnotes list'!$D$9:$E$58,2,FALSE)=0,\"\",VLOOKUP(J310,'Footnotes list'!$D$9:$E$58,2,FALSE) ) )","v":""},null,null,null,null,{"$f":"IF(TRIM(O310)=\"\", \"\", IF(VLOOKUP(O310,'Footnotes list'!$D$9:$E$58,2,FALSE)=0,\"\",VLOOKUP(O310,'Footnotes list'!$D$9:$E$58,2,FALSE) ) )","v":""},null,null,null,null,{"$f":"IF(TRIM(T310)=\"\", \"\", IF(VLOOKUP(T310,'Footnotes list'!$D$9:$E$58,2,FALSE)=0,\"\",VLOOKUP(T310,'Footnotes list'!$D$9:$E$58,2,FALSE) ) )","v":""},null,null,null,null,{"$f":"IF(TRIM(Y310)=\"\", \"\", IF(VLOOKUP(Y310,'Footnotes list'!$D$9:$E$58,2,FALSE)=0,\"\",VLOOKUP(Y310,'Footnotes list'!$D$9:$E$58,2,FALSE) ) )","v":""},null,null,null,null,{"$f":"IF(TRIM(AD310)=\"\", \"\", IF(VLOOKUP(AD310,'Footnotes list'!$D$9:$E$58,2,FALSE)=0,\"\",VLOOKUP(AD310,'Footnotes list'!$D$9:$E$58,2,FALSE) ) )","v":""},null,null,null,null,{"$f":"IF(TRIM(AI310)=\"\", \"\", IF(VLOOKUP(AI310,'Footnotes list'!$D$9:$E$58,2,FALSE)=0,\"\",VLOOKUP(AI310,'Footnotes list'!$D$9:$E$58,2,FALSE) ) )","v":""},null,null,null,null,{"$f":"IF(TRIM(AN310)=\"\", \"\", IF(VLOOKUP(AN310,'Footnotes list'!$D$9:$E$58,2,FALSE)=0,\"\",VLOOKUP(AN310,'Footnotes list'!$D$9:$E$58,2,FALSE) ) )","v":""},null,null,null,null,{"$f":"IF(TRIM(AS310)=\"\", \"\", IF(VLOOKUP(AS310,'Footnotes list'!$D$9:$E$58,2,FALSE)=0,\"\",VLOOKUP(AS310,'Footnotes list'!$D$9:$E$58,2,FALSE) ) )","v":""},null,null,null,null,{"$f":"IF(TRIM(AX310)=\"\", \"\", IF(VLOOKUP(AX310,'Footnotes list'!$D$9:$E$58,2,FALSE)=0,\"\",VLOOKUP(AX310,'Footnotes list'!$D$9:$E$58,2,FALSE) ) )","v":""},null,null,null,null,{"$f":"IF(TRIM(BC310)=\"\", \"\", IF(VLOOKUP(BC310,'Footnotes list'!$D$9:$E$58,2,FALSE)=0,\"\",VLOOKUP(BC310,'Footnotes list'!$D$9:$E$58,2,FALSE) ) )","v":""},null,null,null,null,{"$f":"IF(TRIM(BH310)=\"\", \"\", IF(VLOOKUP(BH310,'Footnotes list'!$D$9:$E$58,2,FALSE)=0,\"\",VLOOKUP(BH310,'Footnotes list'!$D$9:$E$58,2,FALSE) ) )","v":""},null,null,null,null,{"$f":"IF(TRIM(BM310)=\"\", \"\", IF(VLOOKUP(BM310,'Footnotes list'!$D$9:$E$58,2,FALSE)=0,\"\",VLOOKUP(BM310,'Footnotes list'!$D$9:$E$58,2,FALSE) ) )","v":""},null,null,null,null,{"$f":"IF(TRIM(BR310)=\"\", \"\", IF(VLOOKUP(BR310,'Footnotes list'!$D$9:$E$58,2,FALSE)=0,\"\",VLOOKUP(BR310,'Footnotes list'!$D$9:$E$58,2,FALSE) ) )","v":""},null,null,null,null,{"$f":"IF(TRIM(BW310)=\"\", \"\", IF(VLOOKUP(BW310,'Footnotes list'!$D$9:$E$58,2,FALSE)=0,\"\",VLOOKUP(BW310,'Footnotes list'!$D$9:$E$58,2,FALSE) ) )","v":""},null,null,null,null,{"$f":"IF(TRIM(CB310)=\"\", \"\", IF(VLOOKUP(CB310,'Footnotes list'!$D$9:$E$58,2,FALSE)=0,\"\",VLOOKUP(CB310,'Footnotes list'!$D$9:$E$58,2,FALSE) ) )","v":""},null,null,null,null,{"$f":"IF(TRIM(CG310)=\"\", \"\", IF(VLOOKUP(CG310,'Footnotes list'!$D$9:$E$58,2,FALSE)=0,\"\",VLOOKUP(CG310,'Footnotes list'!$D$9:$E$58,2,FALSE) ) )","v":""},null,null,null,null,{"$f":"IF(TRIM(CL310)=\"\", \"\", IF(VLOOKUP(CL310,'Footnotes list'!$D$9:$E$58,2,FALSE)=0,\"\",VLOOKUP(CL310,'Footnotes list'!$D$9:$E$58,2,FALSE) ) )","v":""},null,null,null,null,{"$f":"IF(TRIM(CQ310)=\"\", \"\", IF(VLOOKUP(CQ310,'Footnotes list'!$D$9:$E$58,2,FALSE)=0,\"\",VLOOKUP(CQ310,'Footnotes list'!$D$9:$E$58,2,FALSE) ) )","v":""},null,null,null,null,{"$f":"IF(TRIM(CV310)=\"\", \"\", IF(VLOOKUP(CV310,'Footnotes list'!$D$9:$E$58,2,FALSE)=0,\"\",VLOOKUP(CV310,'Footnotes list'!$D$9:$E$58,2,FALSE) ) )","v":""},null,null,null,null,{"$f":"IF(TRIM(DA310)=\"\", \"\", IF(VLOOKUP(DA310,'Footnotes list'!$D$9:$E$58,2,FALSE)=0,\"\",VLOOKUP(DA310,'Footnotes list'!$D$9:$E$58,2,FALSE) ) )","v":""},null,null,null,null,{"$f":"IF(TRIM(DF310)=\"\", \"\", IF(VLOOKUP(DF310,'Footnotes list'!$D$9:$E$58,2,FALSE)=0,\"\",VLOOKUP(DF310,'Footnotes list'!$D$9:$E$58,2,FALSE) ) )","v":""},null,null,null,null,{"$f":"IF(TRIM(DK310)=\"\", \"\", IF(VLOOKUP(DK310,'Footnotes list'!$D$9:$E$58,2,FALSE)=0,\"\",VLOOKUP(DK310,'Footnotes list'!$D$9:$E$58,2,FALSE) ) )","v":""},null,null,null,null,{"$f":"IF(TRIM(DP310)=\"\", \"\", IF(VLOOKUP(DP310,'Footnotes list'!$D$9:$E$58,2,FALSE)=0,\"\",VLOOKUP(DP310,'Footnotes list'!$D$9:$E$58,2,FALSE) ) )","v":""},null,null,null,null,{"$f":"IF(TRIM(DU310)=\"\", \"\", IF(VLOOKUP(DU310,'Footnotes list'!$D$9:$E$58,2,FALSE)=0,\"\",VLOOKUP(DU310,'Footnotes list'!$D$9:$E$58,2,FALSE) ) )","v":""},null,null,null,null,{"$f":"IF(TRIM(DZ310)=\"\", \"\", IF(VLOOKUP(DZ310,'Footnotes list'!$D$9:$E$58,2,FALSE)=0,\"\",VLOOKUP(DZ310,'Footnotes list'!$D$9:$E$58,2,FALSE) ) )","v":""},null,null,null,null,{"$f":"IF(TRIM(EE310)=\"\", \"\", IF(VLOOKUP(EE310,'Footnotes list'!$D$9:$E$58,2,FALSE)=0,\"\",VLOOKUP(EE310,'Footnotes list'!$D$9:$E$58,2,FALSE) ) )","v":""},null,null,null,null,{"$f":"IF(TRIM(EJ310)=\"\", \"\", IF(VLOOKUP(EJ310,'Footnotes list'!$D$9:$E$58,2,FALSE)=0,\"\",VLOOKUP(EJ310,'Footnotes list'!$D$9:$E$58,2,FALSE) ) )","v":""},null,null,null,null,{"$f":"IF(TRIM(EO310)=\"\", \"\", IF(VLOOKUP(EO310,'Footnotes list'!$D$9:$E$58,2,FALSE)=0,\"\",VLOOKUP(EO310,'Footnotes list'!$D$9:$E$58,2,FALSE) ) )","v":""},null,null,null,null,{"$f":"IF(TRIM(ET310)=\"\", \"\", IF(VLOOKUP(ET310,'Footnotes list'!$D$9:$E$58,2,FALSE)=0,\"\",VLOOKUP(ET310,'Footnotes list'!$D$9:$E$58,2,FALSE) ) )","v":""},null,null,null,null,{"$f":"IF(TRIM(EY310)=\"\", \"\", IF(VLOOKUP(EY310,'Footnotes list'!$D$9:$E$58,2,FALSE)=0,\"\",VLOOKUP(EY310,'Footnotes list'!$D$9:$E$58,2,FALSE) ) )","v":""}]
[null,null,"G-I_K_L_N_Q-U","NMKT","non-market activities",null,null,null,null,null,{"$f":"IF(TRIM(J311)=\"\", \"\", IF(VLOOKUP(J311,'Footnotes list'!$D$9:$E$58,2,FALSE)=0,\"\",VLOOKUP(J311,'Footnotes list'!$D$9:$E$58,2,FALSE) ) )","v":""},null,null,null,null,{"$f":"IF(TRIM(O311)=\"\", \"\", IF(VLOOKUP(O311,'Footnotes list'!$D$9:$E$58,2,FALSE)=0,\"\",VLOOKUP(O311,'Footnotes list'!$D$9:$E$58,2,FALSE) ) )","v":""},null,null,null,null,{"$f":"IF(TRIM(T311)=\"\", \"\", IF(VLOOKUP(T311,'Footnotes list'!$D$9:$E$58,2,FALSE)=0,\"\",VLOOKUP(T311,'Footnotes list'!$D$9:$E$58,2,FALSE) ) )","v":""},null,null,null,null,{"$f":"IF(TRIM(Y311)=\"\", \"\", IF(VLOOKUP(Y311,'Footnotes list'!$D$9:$E$58,2,FALSE)=0,\"\",VLOOKUP(Y311,'Footnotes list'!$D$9:$E$58,2,FALSE) ) )","v":""},null,null,null,null,{"$f":"IF(TRIM(AD311)=\"\", \"\", IF(VLOOKUP(AD311,'Footnotes list'!$D$9:$E$58,2,FALSE)=0,\"\",VLOOKUP(AD311,'Footnotes list'!$D$9:$E$58,2,FALSE) ) )","v":""},null,null,null,null,{"$f":"IF(TRIM(AI311)=\"\", \"\", IF(VLOOKUP(AI311,'Footnotes list'!$D$9:$E$58,2,FALSE)=0,\"\",VLOOKUP(AI311,'Footnotes list'!$D$9:$E$58,2,FALSE) ) )","v":""},null,null,null,null,{"$f":"IF(TRIM(AN311)=\"\", \"\", IF(VLOOKUP(AN311,'Footnotes list'!$D$9:$E$58,2,FALSE)=0,\"\",VLOOKUP(AN311,'Footnotes list'!$D$9:$E$58,2,FALSE) ) )","v":""},null,null,null,null,{"$f":"IF(TRIM(AS311)=\"\", \"\", IF(VLOOKUP(AS311,'Footnotes list'!$D$9:$E$58,2,FALSE)=0,\"\",VLOOKUP(AS311,'Footnotes list'!$D$9:$E$58,2,FALSE) ) )","v":""},null,null,null,null,{"$f":"IF(TRIM(AX311)=\"\", \"\", IF(VLOOKUP(AX311,'Footnotes list'!$D$9:$E$58,2,FALSE)=0,\"\",VLOOKUP(AX311,'Footnotes list'!$D$9:$E$58,2,FALSE) ) )","v":""},null,null,null,null,{"$f":"IF(TRIM(BC311)=\"\", \"\", IF(VLOOKUP(BC311,'Footnotes list'!$D$9:$E$58,2,FALSE)=0,\"\",VLOOKUP(BC311,'Footnotes list'!$D$9:$E$58,2,FALSE) ) )","v":""},null,null,null,null,{"$f":"IF(TRIM(BH311)=\"\", \"\", IF(VLOOKUP(BH311,'Footnotes list'!$D$9:$E$58,2,FALSE)=0,\"\",VLOOKUP(BH311,'Footnotes list'!$D$9:$E$58,2,FALSE) ) )","v":""},null,null,null,null,{"$f":"IF(TRIM(BM311)=\"\", \"\", IF(VLOOKUP(BM311,'Footnotes list'!$D$9:$E$58,2,FALSE)=0,\"\",VLOOKUP(BM311,'Footnotes list'!$D$9:$E$58,2,FALSE) ) )","v":""},null,null,null,null,{"$f":"IF(TRIM(BR311)=\"\", \"\", IF(VLOOKUP(BR311,'Footnotes list'!$D$9:$E$58,2,FALSE)=0,\"\",VLOOKUP(BR311,'Footnotes list'!$D$9:$E$58,2,FALSE) ) )","v":""},null,null,null,null,{"$f":"IF(TRIM(BW311)=\"\", \"\", IF(VLOOKUP(BW311,'Footnotes list'!$D$9:$E$58,2,FALSE)=0,\"\",VLOOKUP(BW311,'Footnotes list'!$D$9:$E$58,2,FALSE) ) )","v":""},null,null,null,null,{"$f":"IF(TRIM(CB311)=\"\", \"\", IF(VLOOKUP(CB311,'Footnotes list'!$D$9:$E$58,2,FALSE)=0,\"\",VLOOKUP(CB311,'Footnotes list'!$D$9:$E$58,2,FALSE) ) )","v":""},null,null,null,null,{"$f":"IF(TRIM(CG311)=\"\", \"\", IF(VLOOKUP(CG311,'Footnotes list'!$D$9:$E$58,2,FALSE)=0,\"\",VLOOKUP(CG311,'Footnotes list'!$D$9:$E$58,2,FALSE) ) )","v":""},null,null,null,null,{"$f":"IF(TRIM(CL311)=\"\", \"\", IF(VLOOKUP(CL311,'Footnotes list'!$D$9:$E$58,2,FALSE)=0,\"\",VLOOKUP(CL311,'Footnotes list'!$D$9:$E$58,2,FALSE) ) )","v":""},null,null,null,null,{"$f":"IF(TRIM(CQ311)=\"\", \"\", IF(VLOOKUP(CQ311,'Footnotes list'!$D$9:$E$58,2,FALSE)=0,\"\",VLOOKUP(CQ311,'Footnotes list'!$D$9:$E$58,2,FALSE) ) )","v":""},null,null,null,null,{"$f":"IF(TRIM(CV311)=\"\", \"\", IF(VLOOKUP(CV311,'Footnotes list'!$D$9:$E$58,2,FALSE)=0,\"\",VLOOKUP(CV311,'Footnotes list'!$D$9:$E$58,2,FALSE) ) )","v":""},null,null,null,null,{"$f":"IF(TRIM(DA311)=\"\", \"\", IF(VLOOKUP(DA311,'Footnotes list'!$D$9:$E$58,2,FALSE)=0,\"\",VLOOKUP(DA311,'Footnotes list'!$D$9:$E$58,2,FALSE) ) )","v":""},null,null,null,null,{"$f":"IF(TRIM(DF311)=\"\", \"\", IF(VLOOKUP(DF311,'Footnotes list'!$D$9:$E$58,2,FALSE)=0,\"\",VLOOKUP(DF311,'Footnotes list'!$D$9:$E$58,2,FALSE) ) )","v":""},null,null,null,null,{"$f":"IF(TRIM(DK311)=\"\", \"\", IF(VLOOKUP(DK311,'Footnotes list'!$D$9:$E$58,2,FALSE)=0,\"\",VLOOKUP(DK311,'Footnotes list'!$D$9:$E$58,2,FALSE) ) )","v":""},null,null,null,null,{"$f":"IF(TRIM(DP311)=\"\", \"\", IF(VLOOKUP(DP311,'Footnotes list'!$D$9:$E$58,2,FALSE)=0,\"\",VLOOKUP(DP311,'Footnotes list'!$D$9:$E$58,2,FALSE) ) )","v":""},null,null,null,null,{"$f":"IF(TRIM(DU311)=\"\", \"\", IF(VLOOKUP(DU311,'Footnotes list'!$D$9:$E$58,2,FALSE)=0,\"\",VLOOKUP(DU311,'Footnotes list'!$D$9:$E$58,2,FALSE) ) )","v":""},null,null,null,null,{"$f":"IF(TRIM(DZ311)=\"\", \"\", IF(VLOOKUP(DZ311,'Footnotes list'!$D$9:$E$58,2,FALSE)=0,\"\",VLOOKUP(DZ311,'Footnotes list'!$D$9:$E$58,2,FALSE) ) )","v":""},null,null,null,null,{"$f":"IF(TRIM(EE311)=\"\", \"\", IF(VLOOKUP(EE311,'Footnotes list'!$D$9:$E$58,2,FALSE)=0,\"\",VLOOKUP(EE311,'Footnotes list'!$D$9:$E$58,2,FALSE) ) )","v":""},null,null,null,null,{"$f":"IF(TRIM(EJ311)=\"\", \"\", IF(VLOOKUP(EJ311,'Footnotes list'!$D$9:$E$58,2,FALSE)=0,\"\",VLOOKUP(EJ311,'Footnotes list'!$D$9:$E$58,2,FALSE) ) )","v":""},null,null,null,null,{"$f":"IF(TRIM(EO311)=\"\", \"\", IF(VLOOKUP(EO311,'Footnotes list'!$D$9:$E$58,2,FALSE)=0,\"\",VLOOKUP(EO311,'Footnotes list'!$D$9:$E$58,2,FALSE) ) )","v":""},null,null,null,null,{"$f":"IF(TRIM(ET311)=\"\", \"\", IF(VLOOKUP(ET311,'Footnotes list'!$D$9:$E$58,2,FALSE)=0,\"\",VLOOKUP(ET311,'Footnotes list'!$D$9:$E$58,2,FALSE) ) )","v":""},null,null,null,null,{"$f":"IF(TRIM(EY311)=\"\", \"\", IF(VLOOKUP(EY311,'Footnotes list'!$D$9:$E$58,2,FALSE)=0,\"\",VLOOKUP(EY311,'Footnotes list'!$D$9:$E$58,2,FALSE) ) )","v":""}]
[null,null,"G-I_K_L_N_Q-U","OWN_USE","activities for own final use",null,null,null,null,null,{"$f":"IF(TRIM(J312)=\"\", \"\", IF(VLOOKUP(J312,'Footnotes list'!$D$9:$E$58,2,FALSE)=0,\"\",VLOOKUP(J312,'Footnotes list'!$D$9:$E$58,2,FALSE) ) )","v":""},null,null,null,null,{"$f":"IF(TRIM(O312)=\"\", \"\", IF(VLOOKUP(O312,'Footnotes list'!$D$9:$E$58,2,FALSE)=0,\"\",VLOOKUP(O312,'Footnotes list'!$D$9:$E$58,2,FALSE) ) )","v":""},null,null,null,null,{"$f":"IF(TRIM(T312)=\"\", \"\", IF(VLOOKUP(T312,'Footnotes list'!$D$9:$E$58,2,FALSE)=0,\"\",VLOOKUP(T312,'Footnotes list'!$D$9:$E$58,2,FALSE) ) )","v":""},null,null,null,null,{"$f":"IF(TRIM(Y312)=\"\", \"\", IF(VLOOKUP(Y312,'Footnotes list'!$D$9:$E$58,2,FALSE)=0,\"\",VLOOKUP(Y312,'Footnotes list'!$D$9:$E$58,2,FALSE) ) )","v":""},null,null,null,null,{"$f":"IF(TRIM(AD312)=\"\", \"\", IF(VLOOKUP(AD312,'Footnotes list'!$D$9:$E$58,2,FALSE)=0,\"\",VLOOKUP(AD312,'Footnotes list'!$D$9:$E$58,2,FALSE) ) )","v":""},null,null,null,null,{"$f":"IF(TRIM(AI312)=\"\", \"\", IF(VLOOKUP(AI312,'Footnotes list'!$D$9:$E$58,2,FALSE)=0,\"\",VLOOKUP(AI312,'Footnotes list'!$D$9:$E$58,2,FALSE) ) )","v":""},null,null,null,null,{"$f":"IF(TRIM(AN312)=\"\", \"\", IF(VLOOKUP(AN312,'Footnotes list'!$D$9:$E$58,2,FALSE)=0,\"\",VLOOKUP(AN312,'Footnotes list'!$D$9:$E$58,2,FALSE) ) )","v":""},null,null,null,null,{"$f":"IF(TRIM(AS312)=\"\", \"\", IF(VLOOKUP(AS312,'Footnotes list'!$D$9:$E$58,2,FALSE)=0,\"\",VLOOKUP(AS312,'Footnotes list'!$D$9:$E$58,2,FALSE) ) )","v":""},null,null,null,null,{"$f":"IF(TRIM(AX312)=\"\", \"\", IF(VLOOKUP(AX312,'Footnotes list'!$D$9:$E$58,2,FALSE)=0,\"\",VLOOKUP(AX312,'Footnotes list'!$D$9:$E$58,2,FALSE) ) )","v":""},null,null,null,null,{"$f":"IF(TRIM(BC312)=\"\", \"\", IF(VLOOKUP(BC312,'Footnotes list'!$D$9:$E$58,2,FALSE)=0,\"\",VLOOKUP(BC312,'Footnotes list'!$D$9:$E$58,2,FALSE) ) )","v":""},null,null,null,null,{"$f":"IF(TRIM(BH312)=\"\", \"\", IF(VLOOKUP(BH312,'Footnotes list'!$D$9:$E$58,2,FALSE)=0,\"\",VLOOKUP(BH312,'Footnotes list'!$D$9:$E$58,2,FALSE) ) )","v":""},null,null,null,null,{"$f":"IF(TRIM(BM312)=\"\", \"\", IF(VLOOKUP(BM312,'Footnotes list'!$D$9:$E$58,2,FALSE)=0,\"\",VLOOKUP(BM312,'Footnotes list'!$D$9:$E$58,2,FALSE) ) )","v":""},null,null,null,null,{"$f":"IF(TRIM(BR312)=\"\", \"\", IF(VLOOKUP(BR312,'Footnotes list'!$D$9:$E$58,2,FALSE)=0,\"\",VLOOKUP(BR312,'Footnotes list'!$D$9:$E$58,2,FALSE) ) )","v":""},null,null,null,null,{"$f":"IF(TRIM(BW312)=\"\", \"\", IF(VLOOKUP(BW312,'Footnotes list'!$D$9:$E$58,2,FALSE)=0,\"\",VLOOKUP(BW312,'Footnotes list'!$D$9:$E$58,2,FALSE) ) )","v":""},null,null,null,null,{"$f":"IF(TRIM(CB312)=\"\", \"\", IF(VLOOKUP(CB312,'Footnotes list'!$D$9:$E$58,2,FALSE)=0,\"\",VLOOKUP(CB312,'Footnotes list'!$D$9:$E$58,2,FALSE) ) )","v":""},null,null,null,null,{"$f":"IF(TRIM(CG312)=\"\", \"\", IF(VLOOKUP(CG312,'Footnotes list'!$D$9:$E$58,2,FALSE)=0,\"\",VLOOKUP(CG312,'Footnotes list'!$D$9:$E$58,2,FALSE) ) )","v":""},null,null,null,null,{"$f":"IF(TRIM(CL312)=\"\", \"\", IF(VLOOKUP(CL312,'Footnotes list'!$D$9:$E$58,2,FALSE)=0,\"\",VLOOKUP(CL312,'Footnotes list'!$D$9:$E$58,2,FALSE) ) )","v":""},null,null,null,null,{"$f":"IF(TRIM(CQ312)=\"\", \"\", IF(VLOOKUP(CQ312,'Footnotes list'!$D$9:$E$58,2,FALSE)=0,\"\",VLOOKUP(CQ312,'Footnotes list'!$D$9:$E$58,2,FALSE) ) )","v":""},null,null,null,null,{"$f":"IF(TRIM(CV312)=\"\", \"\", IF(VLOOKUP(CV312,'Footnotes list'!$D$9:$E$58,2,FALSE)=0,\"\",VLOOKUP(CV312,'Footnotes list'!$D$9:$E$58,2,FALSE) ) )","v":""},null,null,null,null,{"$f":"IF(TRIM(DA312)=\"\", \"\", IF(VLOOKUP(DA312,'Footnotes list'!$D$9:$E$58,2,FALSE)=0,\"\",VLOOKUP(DA312,'Footnotes list'!$D$9:$E$58,2,FALSE) ) )","v":""},null,null,null,null,{"$f":"IF(TRIM(DF312)=\"\", \"\", IF(VLOOKUP(DF312,'Footnotes list'!$D$9:$E$58,2,FALSE)=0,\"\",VLOOKUP(DF312,'Footnotes list'!$D$9:$E$58,2,FALSE) ) )","v":""},null,null,null,null,{"$f":"IF(TRIM(DK312)=\"\", \"\", IF(VLOOKUP(DK312,'Footnotes list'!$D$9:$E$58,2,FALSE)=0,\"\",VLOOKUP(DK312,'Footnotes list'!$D$9:$E$58,2,FALSE) ) )","v":""},null,null,null,null,{"$f":"IF(TRIM(DP312)=\"\", \"\", IF(VLOOKUP(DP312,'Footnotes list'!$D$9:$E$58,2,FALSE)=0,\"\",VLOOKUP(DP312,'Footnotes list'!$D$9:$E$58,2,FALSE) ) )","v":""},null,null,null,null,{"$f":"IF(TRIM(DU312)=\"\", \"\", IF(VLOOKUP(DU312,'Footnotes list'!$D$9:$E$58,2,FALSE)=0,\"\",VLOOKUP(DU312,'Footnotes list'!$D$9:$E$58,2,FALSE) ) )","v":""},null,null,null,null,{"$f":"IF(TRIM(DZ312)=\"\", \"\", IF(VLOOKUP(DZ312,'Footnotes list'!$D$9:$E$58,2,FALSE)=0,\"\",VLOOKUP(DZ312,'Footnotes list'!$D$9:$E$58,2,FALSE) ) )","v":""},null,null,null,null,{"$f":"IF(TRIM(EE312)=\"\", \"\", IF(VLOOKUP(EE312,'Footnotes list'!$D$9:$E$58,2,FALSE)=0,\"\",VLOOKUP(EE312,'Footnotes list'!$D$9:$E$58,2,FALSE) ) )","v":""},null,null,null,null,{"$f":"IF(TRIM(EJ312)=\"\", \"\", IF(VLOOKUP(EJ312,'Footnotes list'!$D$9:$E$58,2,FALSE)=0,\"\",VLOOKUP(EJ312,'Footnotes list'!$D$9:$E$58,2,FALSE) ) )","v":""},null,null,null,null,{"$f":"IF(TRIM(EO312)=\"\", \"\", IF(VLOOKUP(EO312,'Footnotes list'!$D$9:$E$58,2,FALSE)=0,\"\",VLOOKUP(EO312,'Footnotes list'!$D$9:$E$58,2,FALSE) ) )","v":""},null,null,null,null,{"$f":"IF(TRIM(ET312)=\"\", \"\", IF(VLOOKUP(ET312,'Footnotes list'!$D$9:$E$58,2,FALSE)=0,\"\",VLOOKUP(ET312,'Footnotes list'!$D$9:$E$58,2,FALSE) ) )","v":""},null,null,null,null,{"$f":"IF(TRIM(EY312)=\"\", \"\", IF(VLOOKUP(EY312,'Footnotes list'!$D$9:$E$58,2,FALSE)=0,\"\",VLOOKUP(EY312,'Footnotes list'!$D$9:$E$58,2,FALSE) ) )","v":""}]
[null,null,"G-I_K_L_N_Q-U","MKT","market activities, including:",null,null,null,null,null,{"$f":"IF(TRIM(J313)=\"\", \"\", IF(VLOOKUP(J313,'Footnotes list'!$D$9:$E$58,2,FALSE)=0,\"\",VLOOKUP(J313,'Footnotes list'!$D$9:$E$58,2,FALSE) ) )","v":""},null,null,null,null,{"$f":"IF(TRIM(O313)=\"\", \"\", IF(VLOOKUP(O313,'Footnotes list'!$D$9:$E$58,2,FALSE)=0,\"\",VLOOKUP(O313,'Footnotes list'!$D$9:$E$58,2,FALSE) ) )","v":""},null,null,null,null,{"$f":"IF(TRIM(T313)=\"\", \"\", IF(VLOOKUP(T313,'Footnotes list'!$D$9:$E$58,2,FALSE)=0,\"\",VLOOKUP(T313,'Footnotes list'!$D$9:$E$58,2,FALSE) ) )","v":""},null,null,null,null,{"$f":"IF(TRIM(Y313)=\"\", \"\", IF(VLOOKUP(Y313,'Footnotes list'!$D$9:$E$58,2,FALSE)=0,\"\",VLOOKUP(Y313,'Footnotes list'!$D$9:$E$58,2,FALSE) ) )","v":""},null,null,null,null,{"$f":"IF(TRIM(AD313)=\"\", \"\", IF(VLOOKUP(AD313,'Footnotes list'!$D$9:$E$58,2,FALSE)=0,\"\",VLOOKUP(AD313,'Footnotes list'!$D$9:$E$58,2,FALSE) ) )","v":""},null,null,null,null,{"$f":"IF(TRIM(AI313)=\"\", \"\", IF(VLOOKUP(AI313,'Footnotes list'!$D$9:$E$58,2,FALSE)=0,\"\",VLOOKUP(AI313,'Footnotes list'!$D$9:$E$58,2,FALSE) ) )","v":""},null,null,null,null,{"$f":"IF(TRIM(AN313)=\"\", \"\", IF(VLOOKUP(AN313,'Footnotes list'!$D$9:$E$58,2,FALSE)=0,\"\",VLOOKUP(AN313,'Footnotes list'!$D$9:$E$58,2,FALSE) ) )","v":""},null,null,null,null,{"$f":"IF(TRIM(AS313)=\"\", \"\", IF(VLOOKUP(AS313,'Footnotes list'!$D$9:$E$58,2,FALSE)=0,\"\",VLOOKUP(AS313,'Footnotes list'!$D$9:$E$58,2,FALSE) ) )","v":""},null,null,null,null,{"$f":"IF(TRIM(AX313)=\"\", \"\", IF(VLOOKUP(AX313,'Footnotes list'!$D$9:$E$58,2,FALSE)=0,\"\",VLOOKUP(AX313,'Footnotes list'!$D$9:$E$58,2,FALSE) ) )","v":""},null,null,null,null,{"$f":"IF(TRIM(BC313)=\"\", \"\", IF(VLOOKUP(BC313,'Footnotes list'!$D$9:$E$58,2,FALSE)=0,\"\",VLOOKUP(BC313,'Footnotes list'!$D$9:$E$58,2,FALSE) ) )","v":""},null,null,null,null,{"$f":"IF(TRIM(BH313)=\"\", \"\", IF(VLOOKUP(BH313,'Footnotes list'!$D$9:$E$58,2,FALSE)=0,\"\",VLOOKUP(BH313,'Footnotes list'!$D$9:$E$58,2,FALSE) ) )","v":""},null,null,null,null,{"$f":"IF(TRIM(BM313)=\"\", \"\", IF(VLOOKUP(BM313,'Footnotes list'!$D$9:$E$58,2,FALSE)=0,\"\",VLOOKUP(BM313,'Footnotes list'!$D$9:$E$58,2,FALSE) ) )","v":""},null,null,null,null,{"$f":"IF(TRIM(BR313)=\"\", \"\", IF(VLOOKUP(BR313,'Footnotes list'!$D$9:$E$58,2,FALSE)=0,\"\",VLOOKUP(BR313,'Footnotes list'!$D$9:$E$58,2,FALSE) ) )","v":""},null,null,null,null,{"$f":"IF(TRIM(BW313)=\"\", \"\", IF(VLOOKUP(BW313,'Footnotes list'!$D$9:$E$58,2,FALSE)=0,\"\",VLOOKUP(BW313,'Footnotes list'!$D$9:$E$58,2,FALSE) ) )","v":""},null,null,null,null,{"$f":"IF(TRIM(CB313)=\"\", \"\", IF(VLOOKUP(CB313,'Footnotes list'!$D$9:$E$58,2,FALSE)=0,\"\",VLOOKUP(CB313,'Footnotes list'!$D$9:$E$58,2,FALSE) ) )","v":""},null,null,null,null,{"$f":"IF(TRIM(CG313)=\"\", \"\", IF(VLOOKUP(CG313,'Footnotes list'!$D$9:$E$58,2,FALSE)=0,\"\",VLOOKUP(CG313,'Footnotes list'!$D$9:$E$58,2,FALSE) ) )","v":""},null,null,null,null,{"$f":"IF(TRIM(CL313)=\"\", \"\", IF(VLOOKUP(CL313,'Footnotes list'!$D$9:$E$58,2,FALSE)=0,\"\",VLOOKUP(CL313,'Footnotes list'!$D$9:$E$58,2,FALSE) ) )","v":""},null,null,null,null,{"$f":"IF(TRIM(CQ313)=\"\", \"\", IF(VLOOKUP(CQ313,'Footnotes list'!$D$9:$E$58,2,FALSE)=0,\"\",VLOOKUP(CQ313,'Footnotes list'!$D$9:$E$58,2,FALSE) ) )","v":""},null,null,null,null,{"$f":"IF(TRIM(CV313)=\"\", \"\", IF(VLOOKUP(CV313,'Footnotes list'!$D$9:$E$58,2,FALSE)=0,\"\",VLOOKUP(CV313,'Footnotes list'!$D$9:$E$58,2,FALSE) ) )","v":""},null,null,null,null,{"$f":"IF(TRIM(DA313)=\"\", \"\", IF(VLOOKUP(DA313,'Footnotes list'!$D$9:$E$58,2,FALSE)=0,\"\",VLOOKUP(DA313,'Footnotes list'!$D$9:$E$58,2,FALSE) ) )","v":""},null,null,null,null,{"$f":"IF(TRIM(DF313)=\"\", \"\", IF(VLOOKUP(DF313,'Footnotes list'!$D$9:$E$58,2,FALSE)=0,\"\",VLOOKUP(DF313,'Footnotes list'!$D$9:$E$58,2,FALSE) ) )","v":""},null,null,null,null,{"$f":"IF(TRIM(DK313)=\"\", \"\", IF(VLOOKUP(DK313,'Footnotes list'!$D$9:$E$58,2,FALSE)=0,\"\",VLOOKUP(DK313,'Footnotes list'!$D$9:$E$58,2,FALSE) ) )","v":""},null,null,null,null,{"$f":"IF(TRIM(DP313)=\"\", \"\", IF(VLOOKUP(DP313,'Footnotes list'!$D$9:$E$58,2,FALSE)=0,\"\",VLOOKUP(DP313,'Footnotes list'!$D$9:$E$58,2,FALSE) ) )","v":""},null,null,null,null,{"$f":"IF(TRIM(DU313)=\"\", \"\", IF(VLOOKUP(DU313,'Footnotes list'!$D$9:$E$58,2,FALSE)=0,\"\",VLOOKUP(DU313,'Footnotes list'!$D$9:$E$58,2,FALSE) ) )","v":""},null,null,null,null,{"$f":"IF(TRIM(DZ313)=\"\", \"\", IF(VLOOKUP(DZ313,'Footnotes list'!$D$9:$E$58,2,FALSE)=0,\"\",VLOOKUP(DZ313,'Footnotes list'!$D$9:$E$58,2,FALSE) ) )","v":""},null,null,null,null,{"$f":"IF(TRIM(EE313)=\"\", \"\", IF(VLOOKUP(EE313,'Footnotes list'!$D$9:$E$58,2,FALSE)=0,\"\",VLOOKUP(EE313,'Footnotes list'!$D$9:$E$58,2,FALSE) ) )","v":""},null,null,null,null,{"$f":"IF(TRIM(EJ313)=\"\", \"\", IF(VLOOKUP(EJ313,'Footnotes list'!$D$9:$E$58,2,FALSE)=0,\"\",VLOOKUP(EJ313,'Footnotes list'!$D$9:$E$58,2,FALSE) ) )","v":""},null,null,null,null,{"$f":"IF(TRIM(EO313)=\"\", \"\", IF(VLOOKUP(EO313,'Footnotes list'!$D$9:$E$58,2,FALSE)=0,\"\",VLOOKUP(EO313,'Footnotes list'!$D$9:$E$58,2,FALSE) ) )","v":""},null,null,null,null,{"$f":"IF(TRIM(ET313)=\"\", \"\", IF(VLOOKUP(ET313,'Footnotes list'!$D$9:$E$58,2,FALSE)=0,\"\",VLOOKUP(ET313,'Footnotes list'!$D$9:$E$58,2,FALSE) ) )","v":""},null,null,null,null,{"$f":"IF(TRIM(EY313)=\"\", \"\", IF(VLOOKUP(EY313,'Footnotes list'!$D$9:$E$58,2,FALSE)=0,\"\",VLOOKUP(EY313,'Footnotes list'!$D$9:$E$58,2,FALSE) ) )","v":""}]
[null,null,"G-I_K_L_N_Q-U","ES_CS","environmental specific services",null,null,null,null,null,{"$f":"IF(TRIM(J314)=\"\", \"\", IF(VLOOKUP(J314,'Footnotes list'!$D$9:$E$58,2,FALSE)=0,\"\",VLOOKUP(J314,'Footnotes list'!$D$9:$E$58,2,FALSE) ) )","v":""},null,null,null,null,{"$f":"IF(TRIM(O314)=\"\", \"\", IF(VLOOKUP(O314,'Footnotes list'!$D$9:$E$58,2,FALSE)=0,\"\",VLOOKUP(O314,'Footnotes list'!$D$9:$E$58,2,FALSE) ) )","v":""},null,null,null,null,{"$f":"IF(TRIM(T314)=\"\", \"\", IF(VLOOKUP(T314,'Footnotes list'!$D$9:$E$58,2,FALSE)=0,\"\",VLOOKUP(T314,'Footnotes list'!$D$9:$E$58,2,FALSE) ) )","v":""},null,null,null,null,{"$f":"IF(TRIM(Y314)=\"\", \"\", IF(VLOOKUP(Y314,'Footnotes list'!$D$9:$E$58,2,FALSE)=0,\"\",VLOOKUP(Y314,'Footnotes list'!$D$9:$E$58,2,FALSE) ) )","v":""},null,null,null,null,{"$f":"IF(TRIM(AD314)=\"\", \"\", IF(VLOOKUP(AD314,'Footnotes list'!$D$9:$E$58,2,FALSE)=0,\"\",VLOOKUP(AD314,'Footnotes list'!$D$9:$E$58,2,FALSE) ) )","v":""},null,null,null,null,{"$f":"IF(TRIM(AI314)=\"\", \"\", IF(VLOOKUP(AI314,'Footnotes list'!$D$9:$E$58,2,FALSE)=0,\"\",VLOOKUP(AI314,'Footnotes list'!$D$9:$E$58,2,FALSE) ) )","v":""},null,null,null,null,{"$f":"IF(TRIM(AN314)=\"\", \"\", IF(VLOOKUP(AN314,'Footnotes list'!$D$9:$E$58,2,FALSE)=0,\"\",VLOOKUP(AN314,'Footnotes list'!$D$9:$E$58,2,FALSE) ) )","v":""},null,null,null,null,{"$f":"IF(TRIM(AS314)=\"\", \"\", IF(VLOOKUP(AS314,'Footnotes list'!$D$9:$E$58,2,FALSE)=0,\"\",VLOOKUP(AS314,'Footnotes list'!$D$9:$E$58,2,FALSE) ) )","v":""},null,null,null,null,{"$f":"IF(TRIM(AX314)=\"\", \"\", IF(VLOOKUP(AX314,'Footnotes list'!$D$9:$E$58,2,FALSE)=0,\"\",VLOOKUP(AX314,'Footnotes list'!$D$9:$E$58,2,FALSE) ) )","v":""},null,null,null,null,{"$f":"IF(TRIM(BC314)=\"\", \"\", IF(VLOOKUP(BC314,'Footnotes list'!$D$9:$E$58,2,FALSE)=0,\"\",VLOOKUP(BC314,'Footnotes list'!$D$9:$E$58,2,FALSE) ) )","v":""},null,null,null,null,{"$f":"IF(TRIM(BH314)=\"\", \"\", IF(VLOOKUP(BH314,'Footnotes list'!$D$9:$E$58,2,FALSE)=0,\"\",VLOOKUP(BH314,'Footnotes list'!$D$9:$E$58,2,FALSE) ) )","v":""},null,null,null,null,{"$f":"IF(TRIM(BM314)=\"\", \"\", IF(VLOOKUP(BM314,'Footnotes list'!$D$9:$E$58,2,FALSE)=0,\"\",VLOOKUP(BM314,'Footnotes list'!$D$9:$E$58,2,FALSE) ) )","v":""},null,null,null,null,{"$f":"IF(TRIM(BR314)=\"\", \"\", IF(VLOOKUP(BR314,'Footnotes list'!$D$9:$E$58,2,FALSE)=0,\"\",VLOOKUP(BR314,'Footnotes list'!$D$9:$E$58,2,FALSE) ) )","v":""},null,null,null,null,{"$f":"IF(TRIM(BW314)=\"\", \"\", IF(VLOOKUP(BW314,'Footnotes list'!$D$9:$E$58,2,FALSE)=0,\"\",VLOOKUP(BW314,'Footnotes list'!$D$9:$E$58,2,FALSE) ) )","v":""},null,null,null,null,{"$f":"IF(TRIM(CB314)=\"\", \"\", IF(VLOOKUP(CB314,'Footnotes list'!$D$9:$E$58,2,FALSE)=0,\"\",VLOOKUP(CB314,'Footnotes list'!$D$9:$E$58,2,FALSE) ) )","v":""},null,null,null,null,{"$f":"IF(TRIM(CG314)=\"\", \"\", IF(VLOOKUP(CG314,'Footnotes list'!$D$9:$E$58,2,FALSE)=0,\"\",VLOOKUP(CG314,'Footnotes list'!$D$9:$E$58,2,FALSE) ) )","v":""},null,null,null,null,{"$f":"IF(TRIM(CL314)=\"\", \"\", IF(VLOOKUP(CL314,'Footnotes list'!$D$9:$E$58,2,FALSE)=0,\"\",VLOOKUP(CL314,'Footnotes list'!$D$9:$E$58,2,FALSE) ) )","v":""},null,null,null,null,{"$f":"IF(TRIM(CQ314)=\"\", \"\", IF(VLOOKUP(CQ314,'Footnotes list'!$D$9:$E$58,2,FALSE)=0,\"\",VLOOKUP(CQ314,'Footnotes list'!$D$9:$E$58,2,FALSE) ) )","v":""},null,null,null,null,{"$f":"IF(TRIM(CV314)=\"\", \"\", IF(VLOOKUP(CV314,'Footnotes list'!$D$9:$E$58,2,FALSE)=0,\"\",VLOOKUP(CV314,'Footnotes list'!$D$9:$E$58,2,FALSE) ) )","v":""},null,null,null,null,{"$f":"IF(TRIM(DA314)=\"\", \"\", IF(VLOOKUP(DA314,'Footnotes list'!$D$9:$E$58,2,FALSE)=0,\"\",VLOOKUP(DA314,'Footnotes list'!$D$9:$E$58,2,FALSE) ) )","v":""},null,null,null,null,{"$f":"IF(TRIM(DF314)=\"\", \"\", IF(VLOOKUP(DF314,'Footnotes list'!$D$9:$E$58,2,FALSE)=0,\"\",VLOOKUP(DF314,'Footnotes list'!$D$9:$E$58,2,FALSE) ) )","v":""},null,null,null,null,{"$f":"IF(TRIM(DK314)=\"\", \"\", IF(VLOOKUP(DK314,'Footnotes list'!$D$9:$E$58,2,FALSE)=0,\"\",VLOOKUP(DK314,'Footnotes list'!$D$9:$E$58,2,FALSE) ) )","v":""},null,null,null,null,{"$f":"IF(TRIM(DP314)=\"\", \"\", IF(VLOOKUP(DP314,'Footnotes list'!$D$9:$E$58,2,FALSE)=0,\"\",VLOOKUP(DP314,'Footnotes list'!$D$9:$E$58,2,FALSE) ) )","v":""},null,null,null,null,{"$f":"IF(TRIM(DU314)=\"\", \"\", IF(VLOOKUP(DU314,'Footnotes list'!$D$9:$E$58,2,FALSE)=0,\"\",VLOOKUP(DU314,'Footnotes list'!$D$9:$E$58,2,FALSE) ) )","v":""},null,null,null,null,{"$f":"IF(TRIM(DZ314)=\"\", \"\", IF(VLOOKUP(DZ314,'Footnotes list'!$D$9:$E$58,2,FALSE)=0,\"\",VLOOKUP(DZ314,'Footnotes list'!$D$9:$E$58,2,FALSE) ) )","v":""},null,null,null,null,{"$f":"IF(TRIM(EE314)=\"\", \"\", IF(VLOOKUP(EE314,'Footnotes list'!$D$9:$E$58,2,FALSE)=0,\"\",VLOOKUP(EE314,'Footnotes list'!$D$9:$E$58,2,FALSE) ) )","v":""},null,null,null,null,{"$f":"IF(TRIM(EJ314)=\"\", \"\", IF(VLOOKUP(EJ314,'Footnotes list'!$D$9:$E$58,2,FALSE)=0,\"\",VLOOKUP(EJ314,'Footnotes list'!$D$9:$E$58,2,FALSE) ) )","v":""},null,null,null,null,{"$f":"IF(TRIM(EO314)=\"\", \"\", IF(VLOOKUP(EO314,'Footnotes list'!$D$9:$E$58,2,FALSE)=0,\"\",VLOOKUP(EO314,'Footnotes list'!$D$9:$E$58,2,FALSE) ) )","v":""},null,null,null,null,{"$f":"IF(TRIM(ET314)=\"\", \"\", IF(VLOOKUP(ET314,'Footnotes list'!$D$9:$E$58,2,FALSE)=0,\"\",VLOOKUP(ET314,'Footnotes list'!$D$9:$E$58,2,FALSE) ) )","v":""},null,null,null,null,{"$f":"IF(TRIM(EY314)=\"\", \"\", IF(VLOOKUP(EY314,'Footnotes list'!$D$9:$E$58,2,FALSE)=0,\"\",VLOOKUP(EY314,'Footnotes list'!$D$9:$E$58,2,FALSE) ) )","v":""}]
[null,null,"G-I_K_L_N_Q-U","C_REP","cleaner and resource efficient products",null,null,null,null,null,{"$f":"IF(TRIM(J315)=\"\", \"\", IF(VLOOKUP(J315,'Footnotes list'!$D$9:$E$58,2,FALSE)=0,\"\",VLOOKUP(J315,'Footnotes list'!$D$9:$E$58,2,FALSE) ) )","v":""},null,null,null,null,{"$f":"IF(TRIM(O315)=\"\", \"\", IF(VLOOKUP(O315,'Footnotes list'!$D$9:$E$58,2,FALSE)=0,\"\",VLOOKUP(O315,'Footnotes list'!$D$9:$E$58,2,FALSE) ) )","v":""},null,null,null,null,{"$f":"IF(TRIM(T315)=\"\", \"\", IF(VLOOKUP(T315,'Footnotes list'!$D$9:$E$58,2,FALSE)=0,\"\",VLOOKUP(T315,'Footnotes list'!$D$9:$E$58,2,FALSE) ) )","v":""},null,null,null,null,{"$f":"IF(TRIM(Y315)=\"\", \"\", IF(VLOOKUP(Y315,'Footnotes list'!$D$9:$E$58,2,FALSE)=0,\"\",VLOOKUP(Y315,'Footnotes list'!$D$9:$E$58,2,FALSE) ) )","v":""},null,null,null,null,{"$f":"IF(TRIM(AD315)=\"\", \"\", IF(VLOOKUP(AD315,'Footnotes list'!$D$9:$E$58,2,FALSE)=0,\"\",VLOOKUP(AD315,'Footnotes list'!$D$9:$E$58,2,FALSE) ) )","v":""},null,null,null,null,{"$f":"IF(TRIM(AI315)=\"\", \"\", IF(VLOOKUP(AI315,'Footnotes list'!$D$9:$E$58,2,FALSE)=0,\"\",VLOOKUP(AI315,'Footnotes list'!$D$9:$E$58,2,FALSE) ) )","v":""},null,null,null,null,{"$f":"IF(TRIM(AN315)=\"\", \"\", IF(VLOOKUP(AN315,'Footnotes list'!$D$9:$E$58,2,FALSE)=0,\"\",VLOOKUP(AN315,'Footnotes list'!$D$9:$E$58,2,FALSE) ) )","v":""},null,null,null,null,{"$f":"IF(TRIM(AS315)=\"\", \"\", IF(VLOOKUP(AS315,'Footnotes list'!$D$9:$E$58,2,FALSE)=0,\"\",VLOOKUP(AS315,'Footnotes list'!$D$9:$E$58,2,FALSE) ) )","v":""},null,null,null,null,{"$f":"IF(TRIM(AX315)=\"\", \"\", IF(VLOOKUP(AX315,'Footnotes list'!$D$9:$E$58,2,FALSE)=0,\"\",VLOOKUP(AX315,'Footnotes list'!$D$9:$E$58,2,FALSE) ) )","v":""},null,null,null,null,{"$f":"IF(TRIM(BC315)=\"\", \"\", IF(VLOOKUP(BC315,'Footnotes list'!$D$9:$E$58,2,FALSE)=0,\"\",VLOOKUP(BC315,'Footnotes list'!$D$9:$E$58,2,FALSE) ) )","v":""},null,null,null,null,{"$f":"IF(TRIM(BH315)=\"\", \"\", IF(VLOOKUP(BH315,'Footnotes list'!$D$9:$E$58,2,FALSE)=0,\"\",VLOOKUP(BH315,'Footnotes list'!$D$9:$E$58,2,FALSE) ) )","v":""},null,null,null,null,{"$f":"IF(TRIM(BM315)=\"\", \"\", IF(VLOOKUP(BM315,'Footnotes list'!$D$9:$E$58,2,FALSE)=0,\"\",VLOOKUP(BM315,'Footnotes list'!$D$9:$E$58,2,FALSE) ) )","v":""},null,null,null,null,{"$f":"IF(TRIM(BR315)=\"\", \"\", IF(VLOOKUP(BR315,'Footnotes list'!$D$9:$E$58,2,FALSE)=0,\"\",VLOOKUP(BR315,'Footnotes list'!$D$9:$E$58,2,FALSE) ) )","v":""},null,null,null,null,{"$f":"IF(TRIM(BW315)=\"\", \"\", IF(VLOOKUP(BW315,'Footnotes list'!$D$9:$E$58,2,FALSE)=0,\"\",VLOOKUP(BW315,'Footnotes list'!$D$9:$E$58,2,FALSE) ) )","v":""},null,null,null,null,{"$f":"IF(TRIM(CB315)=\"\", \"\", IF(VLOOKUP(CB315,'Footnotes list'!$D$9:$E$58,2,FALSE)=0,\"\",VLOOKUP(CB315,'Footnotes list'!$D$9:$E$58,2,FALSE) ) )","v":""},null,null,null,null,{"$f":"IF(TRIM(CG315)=\"\", \"\", IF(VLOOKUP(CG315,'Footnotes list'!$D$9:$E$58,2,FALSE)=0,\"\",VLOOKUP(CG315,'Footnotes list'!$D$9:$E$58,2,FALSE) ) )","v":""},null,null,null,null,{"$f":"IF(TRIM(CL315)=\"\", \"\", IF(VLOOKUP(CL315,'Footnotes list'!$D$9:$E$58,2,FALSE)=0,\"\",VLOOKUP(CL315,'Footnotes list'!$D$9:$E$58,2,FALSE) ) )","v":""},null,null,null,null,{"$f":"IF(TRIM(CQ315)=\"\", \"\", IF(VLOOKUP(CQ315,'Footnotes list'!$D$9:$E$58,2,FALSE)=0,\"\",VLOOKUP(CQ315,'Footnotes list'!$D$9:$E$58,2,FALSE) ) )","v":""},null,null,null,null,{"$f":"IF(TRIM(CV315)=\"\", \"\", IF(VLOOKUP(CV315,'Footnotes list'!$D$9:$E$58,2,FALSE)=0,\"\",VLOOKUP(CV315,'Footnotes list'!$D$9:$E$58,2,FALSE) ) )","v":""},null,null,null,null,{"$f":"IF(TRIM(DA315)=\"\", \"\", IF(VLOOKUP(DA315,'Footnotes list'!$D$9:$E$58,2,FALSE)=0,\"\",VLOOKUP(DA315,'Footnotes list'!$D$9:$E$58,2,FALSE) ) )","v":""},null,null,null,null,{"$f":"IF(TRIM(DF315)=\"\", \"\", IF(VLOOKUP(DF315,'Footnotes list'!$D$9:$E$58,2,FALSE)=0,\"\",VLOOKUP(DF315,'Footnotes list'!$D$9:$E$58,2,FALSE) ) )","v":""},null,null,null,null,{"$f":"IF(TRIM(DK315)=\"\", \"\", IF(VLOOKUP(DK315,'Footnotes list'!$D$9:$E$58,2,FALSE)=0,\"\",VLOOKUP(DK315,'Footnotes list'!$D$9:$E$58,2,FALSE) ) )","v":""},null,null,null,null,{"$f":"IF(TRIM(DP315)=\"\", \"\", IF(VLOOKUP(DP315,'Footnotes list'!$D$9:$E$58,2,FALSE)=0,\"\",VLOOKUP(DP315,'Footnotes list'!$D$9:$E$58,2,FALSE) ) )","v":""},null,null,null,null,{"$f":"IF(TRIM(DU315)=\"\", \"\", IF(VLOOKUP(DU315,'Footnotes list'!$D$9:$E$58,2,FALSE)=0,\"\",VLOOKUP(DU315,'Footnotes list'!$D$9:$E$58,2,FALSE) ) )","v":""},null,null,null,null,{"$f":"IF(TRIM(DZ315)=\"\", \"\", IF(VLOOKUP(DZ315,'Footnotes list'!$D$9:$E$58,2,FALSE)=0,\"\",VLOOKUP(DZ315,'Footnotes list'!$D$9:$E$58,2,FALSE) ) )","v":""},null,null,null,null,{"$f":"IF(TRIM(EE315)=\"\", \"\", IF(VLOOKUP(EE315,'Footnotes list'!$D$9:$E$58,2,FALSE)=0,\"\",VLOOKUP(EE315,'Footnotes list'!$D$9:$E$58,2,FALSE) ) )","v":""},null,null,null,null,{"$f":"IF(TRIM(EJ315)=\"\", \"\", IF(VLOOKUP(EJ315,'Footnotes list'!$D$9:$E$58,2,FALSE)=0,\"\",VLOOKUP(EJ315,'Footnotes list'!$D$9:$E$58,2,FALSE) ) )","v":""},null,null,null,null,{"$f":"IF(TRIM(EO315)=\"\", \"\", IF(VLOOKUP(EO315,'Footnotes list'!$D$9:$E$58,2,FALSE)=0,\"\",VLOOKUP(EO315,'Footnotes list'!$D$9:$E$58,2,FALSE) ) )","v":""},null,null,null,null,{"$f":"IF(TRIM(ET315)=\"\", \"\", IF(VLOOKUP(ET315,'Footnotes list'!$D$9:$E$58,2,FALSE)=0,\"\",VLOOKUP(ET315,'Footnotes list'!$D$9:$E$58,2,FALSE) ) )","v":""},null,null,null,null,{"$f":"IF(TRIM(EY315)=\"\", \"\", IF(VLOOKUP(EY315,'Footnotes list'!$D$9:$E$58,2,FALSE)=0,\"\",VLOOKUP(EY315,'Footnotes list'!$D$9:$E$58,2,FALSE) ) )","v":""}]
[]
[null,null,null,"Grey: Automatic calculation. Formula can be overwritten (with \"unlock formulas\")"]
[null,null,null,"Cyan: Non Mandatory variables"]
[null,null,null,"Light yellow: Footnotes (only to be filled-in when relevant)"]

{"sheet":"EXPORTS","index":10,"n_rows":143,"n_cols":156,"rows_kept":143,"cut":false,"hidden":false,"merged":[[140,3,140,5],[5,89,5,90],[5,94,5,95],[5,99,5,100],[5,104,5,105],[5,109,5,110],[5,114,5,115],[5,119,5,120],[5,124,5,125],[119,4,119,5],[120,4,120,5],[121,4,121,5],[134,4,134,5],[135,4,135,5],[131,4,131,5],[132,4,132,5],[133,4,133,5],[124,4,124,5],[122,4,122,5],[123,4,123,5],[130,4,130,5],[128,4,128,5],[129,4,129,5],[125,4,125,5],[5,54,5,55],[5,59,5,60],[5,64,5,65],[5,69,5,70],[5,74,5,75],[5,79,5,80],[5,84,5,85],[5,134,5,135],[5,139,5,140],[5,9,5,10],[5,14,5,15],[5,19,5,20],[5,24,5,25],[5,29,5,30],[5,34,5,35],[5,39,5,40],[5,44,5,45],[5,49,5,50],[5,154,5,155],[4,97,4,100],[4,102,4,105],[4,107,4,110],[4,112,4,115],[4,117,4,120],[4,122,4,125],[4,127,4,130],[4,132,4,135],[4,137,4,140],[5,129,5,130],[4,142,4,145],[4,147,4,150],[4,152,4,155],[5,144,5,145],[5,149,5,150],[4,52,4,55],[4,57,4,60],[4,62,4,65],[4,67,4,70],[4,72,4,75],[4,77,4,80],[4,82,4,85],[4,87,4,90],[4,92,4,95],[4,7,4,10],[4,12,4,15],[4,17,4,20],[4,22,4,25],[4,27,4,30],[4,32,4,35],[4,37,4,40],[4,42,4,45],[4,47,4,50],[126,4,126,5],[127,4,127,5],[112,4,112,5],[110,4,110,5],[111,4,111,5],[107,4,107,5],[108,4,108,5],[109,4,109,5],[118,4,118,5],[116,4,116,5],[117,4,117,5],[113,4,113,5],[114,4,114,5],[115,4,115,5],[100,4,100,5],[98,4,98,5],[99,4,99,5],[95,4,95,5],[96,4,96,5],[97,4,97,5],[106,4,106,5],[104,4,104,5],[105,4,105,5],[101,4,101,5],[102,4,102,5],[103,4,103,5],[88,4,88,5],[86,4,86,5],[87,4,87,5],[83,4,83,5],[84,4,84,5],[85,4,85,5],[94,4,94,5],[92,4,92,5],[93,4,93,5],[89,4,89,5],[90,4,90,5],[91,4,91,5],[76,4,76,5],[74,4,74,5],[75,4,75,5],[71,4,71,5],[72,4,72,5],[73,4,73,5],[82,4,82,5],[80,4,80,5],[81,4,81,5],[77,4,77,5],[78,4,78,5],[79,4,79,5],[64,4,64,5],[62,4,62,5],[63,4,63,5],[59,4,59,5],[60,4,60,5],[61,4,61,5],[70,4,70,5],[68,4,68,5],[69,4,69,5],[65,4,65,5],[66,4,66,5],[67,4,67,5],[52,4,52,5],[50,4,50,5],[51,4,51,5],[47,4,47,5],[48,4,48,5],[49,4,49,5],[58,4,58,5],[56,4,56,5],[57,4,57,5],[53,4,53,5],[54,4,54,5],[55,4,55,5],[40,4,40,5],[38,4,38,5],[39,4,39,5],[35,4,35,5],[36,4,36,5],[37,4,37,5],[46,4,46,5],[44,4,44,5],[45,4,45,5],[41,4,41,5],[42,4,42,5],[43,4,43,5],[28,4,28,5],[26,4,26,5],[27,4,27,5],[23,4,23,5],[24,4,24,5],[25,4,25,5],[34,4,34,5],[32,4,32,5],[33,4,33,5],[29,4,29,5],[30,4,30,5],[31,4,31,5],[1,6,3,70],[1,71,3,145],[1,146,3,150],[1,151,3,155],[136,4,136,5],[137,4,137,5],[138,4,138,5],[10,4,10,5],[8,4,8,5],[9,4,9,5],[5,4,5,5],[7,4,7,5],[16,4,16,5],[14,4,14,5],[15,4,15,5],[11,4,11,5],[12,4,12,5],[13,4,13,5],[22,4,22,5],[20,4,20,5],[21,4,21,5],[17,4,17,5],[18,4,18,5],[19,4,19,5]]}
[]
[null,null,null,"Country:",{"$f":"\"\" &'GETTING STARTED'!G9","v":""},{"$f":"\"\" &'GETTING STARTED'!E9","v":""},null,null,null,null,null,null,null,null,null,null,null,null,null,null,null,null,null,null,null,null,null,null,null,null,null,null,null,null,null,null,null,null,null,null,null,null,null,null,null,null,null,null,null,null,null,null,null,null,null,null,null,null,null,null,null,null,null,null,null,null,null,null,null,null,null,null,null,null,null,null,null,null,null,null,null,null,null,null,null,null,null,null,null,null,null,null,null,null,null,null,null,null,null,null,null,null,null,null,null,null,null,null,null,null,null,null,null,null,null,null,null,null,null,null,null,null,null,null,null,null,null,null,null,null,null,null,null,null,null,null,null,null,null,null,null,null,null,null,null,null,null,null,null,null,null,"MEMO"]
[null,null,null,"Year:",{"$f":"\"\" &'GETTING STARTED'!E10","v":""},null,"A. Environmental Protection",null,null,null,null,null,null,null,null,null,null,null,null,null,null,null,null,null,null,null,null,null,null,null,null,null,null,null,null,null,null,null,null,null,null,null,null,null,null,null,null,null,null,null,null,null,null,null,null,null,null,null,null,null,null,null,null,null,null,null,null,null,null,null,null,"B. Resources Management",null,null,null,null,null,null,null,null,null,null,null,null,null,null,null,null,null,null,null,null,null,null,null,null,null,null,null,null,null,null,null,null,null,null,null,null,null,null,null,null,null,null,null,null,null,null,null,null,null,null,null,null,null,null,null,null,null,null,null,null,null,null,null,null,null,null,null,null,null,null,null,null,null,null,null,null,null,null,null,"ITEM"]
[null,null,null,"Unit:","MIO_NAC","Million units of national currency"]
[null,null,null,"Characteristic / variable","P6","EXPORTS","CEPA 1",null,null,null,null,"CEPA 1.1.2 and 1.2.2",null,null,null,null,"CEPA 2",null,null,null,null,"CEPA 3",null,null,null,null,"CEPA 4",null,null,null,null,"CEPA 5",null,null,null,null,"CEPA 6",null,null,null,null,"CEPA 7 + CEPA 8 + CEPA 9",null,null,null,null,"CEPA 7",null,null,null,null,"CEPA 8",null,null,null,null,"CEPA 8.1.2",null,null,null,null,"CEPA 9",null,null,null,null,"CEPA 1-9",null,null,null,null,"CReMA 10",null,null,null,null,"CReMA 11",null,null,null,null,"CReMA   11 A",null,null,null,null,"CReMA 11 B",null,null,null,null,"CReMA 13 ",null,null,null,null,"CReMA 13 A",null,null,null,null,"CReMA 13 B",null,null,null,null,"CReMA 13 C",null,null,null,null,"CReMA 14",null,null,null,null,"CReMA 12 + CReMA 15 + CReMA 16",null,null,null,null,"CReMA 12",null,null,null,null,"CReMA 15",null,null,null,null,"CReMA 15.5.1",null,null,null,null,"CReMA 16",null,null,null,null,"CReMA 10-16",null,null,null,null,"CEPA 1-9 and CReMA 10-16",null,null,null,null,"CREMA13B_MEMO"]
[null,null,null,null,"EGSS - EXPORTS",null,"Protection of ambient air and climate ","Standard footnote","Confidentiality footnote","Explanatory footnote",null,"Protection of climate and ozone layer (as a subgroup of protection of ambient air and climate)","Standard footnote","Confidentiality footnote","Explanatory footnote",null,"Wastewater management","Standard footnote","Confidentiality footnote","Explanatory footnote",null,"Waste management ","Standard footnote","Confidentiality footnote","Explanatory footnote",null,"Protection and remediation of soil, groundwater and surface water ","Standard footnote","Confidentiality footnote","Explanatory footnote",null,"Noise and vibration abatement ","Standard footnote","Confidentiality footnote","Explanatory footnote",null,"Protection of biodiversity and landscapes ","Standard footnote","Confidentiality footnote","Explanatory footnote",null,"Protection against radiation; Research and development (R&D) and Other","Standard footnote","Confidentiality footnote","Explanatory footnote",null,"Protection against radiation ","Standard footnote","Confidentiality footnote","Explanatory footnote",null,"Research and development (R&D) for environmental protection","Standard footnote","Confidentiality footnote","Explanatory footnote",null,"R&D for the protection of climate and ozone layer (as a subgroup of research and development for environmental protection)","Standard footnote","Confidentiality footnote","Explanatory footnote",null,"Other","Standard footnote","Confidentiality footnote","Explanatory footnote",null,"Total CEPA","Standard footnote","Confidentiality footnote","Explanatory footnote",null,"Management of waters","Standard footnote","Confidentiality footnote","Explanatory footnote",null,"Management of forest resources","Standard footnote","Confidentiality footnote","Explanatory footnote",null,"Management of forest areas","Standard footnote","Confidentiality footnote","Explanatory footnote",null,"Minimisation of the intake of  forest resources","Standard footnote","Confidentiality footnote","Explanatory footnote",null,"Management of fossil energy resources","Standard footnote","Confidentiality footnote","Explanatory footnote",null,"Production of energy from renewable sources","Standard footnote","Confidentiality footnote","Explanatory footnote",null,"Heat/Energy saving and management","Standard footnote","Confidentiality footnote","Explanatory footnote",null,"Minimisation of the intake of fossil resources as raw material ","Standard footnote","Confidentiality footnote","Explanatory footnote",null,"Management of minerals","Standard footnote","Confidentiality footnote","Explanatory footnote",null,"Management of wild flora and fauna; Research and development (R&D) and Other","Standard footnote","Confidentiality footnote","Explanatory footnote",null,"Management of wild flora and fauna","Standard footnote","Confidentiality footnote","Explanatory footnote",null,"Research and development (R&D) for resource management","Standard footnote","Confidentiality footnote","Explanatory footnote",null,"R&D for the production of energy from renewable sources (as a subgroup of R& D for resource management) ","Standard footnote","Confidentiality footnote","Explanatory footnote",null,"Other","Standard footnote","Confidentiality footnote","Explanatory footnote",null,"Total CReMA","Standard footnote","Confidentiality footnote","Explanatory footnote",null,"TOTAL CEPA and CReMA","Standard footnote","Confidentiality footnote","Explanatory footnote",null,"Part of GVA related to energy-efficiency measures undertaken for the construction of the NZEBs","Standard footnote","Confidentiality footnote","Explanatory footnote"]
[null,null,null,null,null,null,"CEPA1",null,null,null,null,"CEPA112_122",null,null,null,null,"CEPA2",null,null,null,null,"CEPA3",null,null,null,null,"CEPA4",null,null,null,null,"CEPA5",null,null,null,null,"CEPA6",null,null,null,null,"CEPA7-9",null,null,null,null,"CEPA7",null,null,null,null,"CEPA8",null,null,null,null,"CEPA812",null,null,null,null,"CEPA9",null,null,null,null,"TOT_CEPA",null,null,null,null,"CREMA10",null,null,null,null,"CREMA11",null,null,null,null,"CREMA11A",null,null,null,null,"CREMA11B",null,null,null,null,"CREMA13",null,null,null,null,"CREMA13A",null,null,null,null,"CREMA13B",null,null,null,null,"CREMA13C",null,null,null,null,"CREMA14",null,null,null,null,"CREMA12_15_16",null,null,null,null,"CREMA12",null,null,null,null,"CREMA15",null,null,null,null,"CREMA15A",null,null,null,null,"CREMA16",null,null,null,null,"TOT_CREMA",null,null,null,null,"TOTAL",null,null,null,null,"CREMA13B_MEMO"]
[null,null,"TOTAL","TOT_EGSS","Total Exports, including:",null,{"$f":"G11+G14+G17+G59+G62+G77+G89+G98+G116+G119+G137","v":0},null,null,null,{"$f":"IF(TRIM(J8)=\"\", \"\", IF(VLOOKUP(J8,'Footnotes list'!$D$9:$E$58,2,FALSE)=0,\"\",VLOOKUP(J8,'Footnotes list'!$D$9:$E$58,2,FALSE) ) )","v":""},null,null,null,null,{"$f":"IF(TRIM(O8)=\"\", \"\", IF(VLOOKUP(O8,'Footnotes list'!$D$9:$E$58,2,FALSE)=0,\"\",VLOOKUP(O8,'Footnotes list'!$D$9:$E$58,2,FALSE) ) )","v":""},{"$f":"Q11+Q14+Q17+Q59+Q62+Q77+Q89+Q98+Q116+Q119+Q137","v":0},null,null,null,{"$f":"IF(TRIM(T8)=\"\", \"\", IF(VLOOKUP(T8,'Footnotes list'!$D$9:$E$58,2,FALSE)=0,\"\",VLOOKUP(T8,'Footnotes list'!$D$9:$E$58,2,FALSE) ) )","v":""},{"$f":"V11+V14+V17+V59+V62+V77+V89+V98+V116+V119+V137","v":0},null,null,null,{"$f":"IF(TRIM(Y8)=\"\", \"\", IF(VLOOKUP(Y8,'Footnotes list'!$D$9:$E$58,2,FALSE)=0,\"\",VLOOKUP(Y8,'Footnotes list'!$D$9:$E$58,2,FALSE) ) )","v":""},{"$f":"AA11+AA14+AA17+AA59+AA62+AA77+AA89+AA98+AA116+AA119+AA137","v":0},null,null,null,{"$f":"IF(TRIM(AD8)=\"\", \"\", IF(VLOOKUP(AD8,'Footnotes list'!$D$9:$E$58,2,FALSE)=0,\"\",VLOOKUP(AD8,'Footnotes list'!$D$9:$E$58,2,FALSE) ) )","v":""},{"$f":"AF11+AF14+AF17+AF59+AF62+AF77+AF89+AF98+AF116+AF119+AF137","v":0},null,null,null,{"$f":"IF(TRIM(AI8)=\"\", \"\", IF(VLOOKUP(AI8,'Footnotes list'!$D$9:$E$58,2,FALSE)=0,\"\",VLOOKUP(AI8,'Footnotes list'!$D$9:$E$58,2,FALSE) ) )","v":""},{"$f":"AK11+AK14+AK17+AK59+AK62+AK77+AK89+AK98+AK116+AK119+AK137","v":0},null,null,null,{"$f":"IF(TRIM(AN8)=\"\", \"\", IF(VLOOKUP(AN8,'Footnotes list'!$D$9:$E$58,2,FALSE)=0,\"\",VLOOKUP(AN8,'Footnotes list'!$D$9:$E$58,2,FALSE) ) )","v":""},{"$f":"AP11+AP14+AP17+AP59+AP62+AP77+AP89+AP98+AP116+AP119+AP137","v":0},null,null,null,{"$f":"IF(TRIM(AS8)=\"\", \"\", IF(VLOOKUP(AS8,'Footnotes list'!$D$9:$E$58,2,FALSE)=0,\"\",VLOOKUP(AS8,'Footnotes list'!$D$9:$E$58,2,FALSE) ) )","v":""},null,null,null,null,{"$f":"IF(TRIM(AX8)=\"\", \"\", IF(VLOOKUP(AX8,'Footnotes list'!$D$9:$E$58,2,FALSE)=0,\"\",VLOOKUP(AX8,'Footnotes list'!$D$9:$E$58,2,FALSE) ) )","v":""},null,null,null,null,{"$f":"IF(TRIM(BC8)=\"\", \"\", IF(VLOOKUP(BC8,'Footnotes list'!$D$9:$E$58,2,FALSE)=0,\"\",VLOOKUP(BC8,'Footnotes list'!$D$9:$E$58,2,FALSE) ) )","v":""},null,null,null,null,{"$f":"IF(TRIM(BH8)=\"\", \"\", IF(VLOOKUP(BH8,'Footnotes list'!$D$9:$E$58,2,FALSE)=0,\"\",VLOOKUP(BH8,'Footnotes list'!$D$9:$E$58,2,FALSE) ) )","v":""},null,null,null,null,{"$f":"IF(TRIM(BM8)=\"\", \"\", IF(VLOOKUP(BM8,'Footnotes list'!$D$9:$E$58,2,FALSE)=0,\"\",VLOOKUP(BM8,'Footnotes list'!$D$9:$E$58,2,FALSE) ) )","v":""},{"$f":"G8+Q8+V8+AA8+AF8+AK8+AP8","v":0},null,null,null,{"$f":"IF(TRIM(BR8)=\"\", \"\", IF(VLOOKUP(BR8,'Footnotes list'!$D$9:$E$58,2,FALSE)=0,\"\",VLOOKUP(BR8,'Footnotes list'!$D$9:$E$58,2,FALSE) ) )","v":""},{"$f":"BT11+BT14+BT17+BT59+BT62+BT77+BT89+BT98+BT116+BT119+BT137","v":0},null,null,null,{"$f":"IF(TRIM(BW8)=\"\", \"\", IF(VLOOKUP(BW8,'Footnotes list'!$D$9:$E$58,2,FALSE)=0,\"\",VLOOKUP(BW8,'Footnotes list'!$D$9:$E$58,2,FALSE) ) )","v":""},{"$f":"BY11+BY14+BY17+BY59+BY62+BY77+BY89+BY98+BY116+BY119+BY137","v":0},null,null,null,{"$f":"IF(TRIM(CB8)=\"\", \"\", IF(VLOOKUP(CB8,'Footnotes list'!$D$9:$E$58,2,FALSE)=0,\"\",VLOOKUP(CB8,'Footnotes list'!$D$9:$E$58,2,FALSE) ) )","v":""},null,null,null,null,{"$f":"IF(TRIM(CG8)=\"\", \"\", IF(VLOOKUP(CG8,'Footnotes list'!$D$9:$E$58,2,FALSE)=0,\"\",VLOOKUP(CG8,'Footnotes list'!$D$9:$E$58,2,FALSE) ) )","v":""},null,null,null,null,{"$f":"IF(TRIM(CL8)=\"\", \"\", IF(VLOOKUP(CL8,'Footnotes list'!$D$9:$E$58,2,FALSE)=0,\"\",VLOOKUP(CL8,'Footnotes list'!$D$9:$E$58,2,FALSE) ) )","v":""},{"$f":"CN11+CN14+CN17+CN59+CN62+CN77+CN89+CN98+CN116+CN119+CN137","v":0},null,null,null,{"$f":"IF(TRIM(CQ8)=\"\", \"\", IF(VLOOKUP(CQ8,'Footnotes list'!$D$9:$E$58,2,FALSE)=0,\"\",VLOOKUP(CQ8,'Footnotes list'!$D$9:$E$58,2,FALSE) ) )","v":""},{"$f":"CS11+CS14+CS17+CS59+CS62+CS77+CS89+CS98+CS116+CS119+CS137","v":0},null,null,null,{"$f":"IF(TRIM(CV8)=\"\", \"\", IF(VLOOKUP(CV8,'Footnotes list'!$D$9:$E$58,2,FALSE)=0,\"\",VLOOKUP(CV8,'Footnotes list'!$D$9:$E$58,2,FALSE) ) )","v":""},{"$f":"CX11+CX14+CX17+CX59+CX62+CX77+CX89+CX98+CX116+CX119+CX137","v":0},null,null,null,{"$f":"IF(TRIM(DA8)=\"\", \"\", IF(VLOOKUP(DA8,'Footnotes list'!$D$9:$E$58,2,FALSE)=0,\"\",VLOOKUP(DA8,'Footnotes list'!$D$9:$E$58,2,FALSE) ) )","v":""},{"$f":"DC11+DC14+DC17+DC59+DC62+DC77+DC89+DC98+DC116+DC119+DC137","v":0},null,null,null,{"$f":"IF(TRIM(DF8)=\"\", \"\", IF(VLOOKUP(DF8,'Footnotes list'!$D$9:$E$58,2,FALSE)=0,\"\",VLOOKUP(DF8,'Footnotes list'!$D$9:$E$58,2,FALSE) ) )","v":""},{"$f":"DH11+DH14+DH17+DH59+DH62+DH77+DH89+DH98+DH116+DH119+DH137","v":0},null,null,null,{"$f":"IF(TRIM(DK8)=\"\", \"\", IF(VLOOKUP(DK8,'Footnotes list'!$D$9:$E$58,2,FALSE)=0,\"\",VLOOKUP(DK8,'Footnotes list'!$D$9:$E$58,2,FALSE) ) )","v":""},{"$f":"DM11+DM14+DM17+DM59+DM62+DM77+DM89+DM98+DM116+DM119+DM137","v":0},null,null,null,{"$f":"IF(TRIM(DP8)=\"\", \"\", IF(VLOOKUP(DP8,'Footnotes list'!$D$9:$E$58,2,FALSE)=0,\"\",VLOOKUP(DP8,'Footnotes list'!$D$9:$E$58,2,FALSE) ) )","v":""},null,null,null,null,{"$f":"IF(TRIM(DU8)=\"\", \"\", IF(VLOOKUP(DU8,'Footnotes list'!$D$9:$E$58,2,FALSE)=0,\"\",VLOOKUP(DU8,'Footnotes list'!$D$9:$E$58,2,FALSE) ) )","v":""},null,null,null,null,{"$f":"IF(TRIM(DZ8)=\"\", \"\", IF(VLOOKUP(DZ8,'Footnotes list'!$D$9:$E$58,2,FALSE)=0,\"\",VLOOKUP(DZ8,'Footnotes list'!$D$9:$E$58,2,FALSE) ) )","v":""},null,null,null,null,{"$f":"IF(TRIM(EE8)=\"\", \"\", IF(VLOOKUP(EE8,'Footnotes list'!$D$9:$E$58,2,FALSE)=0,\"\",VLOOKUP(EE8,'Footnotes list'!$D$9:$E$58,2,FALSE) ) )","v":""},null,null,null,null,{"$f":"IF(TRIM(EJ8)=\"\", \"\", IF(VLOOKUP(EJ8,'Footnotes list'!$D$9:$E$58,2,FALSE)=0,\"\",VLOOKUP(EJ8,'Footnotes list'!$D$9:$E$58,2,FALSE) ) )","v":""},{"$f":"DM8+DH8+CN8+BY8+BT8","v":0},null,null,null,{"$f":"IF(TRIM(EO8)=\"\", \"\", IF(VLOOKUP(EO8,'Footnotes list'!$D$9:$E$58,2,FALSE)=0,\"\",VLOOKUP(EO8,'Footnotes list'!$D$9:$E$58,2,FALSE) ) )","v":""},{"$f":"EL8+BO8","v":0},null,null,null,{"$f":"IF(TRIM(ET8)=\"\", \"\", IF(VLOOKUP(ET8,'Footnotes list'!$D$9:$E$58,2,FALSE)=0,\"\",VLOOKUP(ET8,'Footnotes list'!$D$9:$E$58,2,FALSE) ) )","v":""},null,null,null,null,{"$f":"IF(TRIM(EY8)=\"\", \"\", IF(VLOOKUP(EY8,'Footnotes list'!$D$9:$E$58,2,FALSE)=0,\"\",VLOOKUP(EY8,'Footnotes list'!$D$9:$E$58,2,FALSE) ) )","v":""}]
[null,null,"TOTAL","ES_CS","environmental specific services",null,null,null,null,null,{"$f":"IF(TRIM(J9)=\"\", \"\", IF(VLOOKUP(J9,'Footnotes list'!$D$9:$E$58,2,FALSE)=0,\"\",VLOOKUP(J9,'Footnotes list'!$D$9:$E$58,2,FALSE) ) )","v":""},null,null,null,null,{"$f":"IF(TRIM(O9)=\"\", \"\", IF(VLOOKUP(O9,'Footnotes list'!$D$9:$E$58,2,FALSE)=0,\"\",VLOOKUP(O9,'Footnotes list'!$D$9:$E$58,2,FALSE) ) )","v":""},null,null,null,null,{"$f":"IF(TRIM(T9)=\"\", \"\", IF(VLOOKUP(T9,'Footnotes list'!$D$9:$E$58,2,FALSE)=0,\"\",VLOOKUP(T9,'Footnotes list'!$D$9:$E$58,2,FALSE) ) )","v":""},null,null,null,null,{"$f":"IF(TRIM(Y9)=\"\", \"\", IF(VLOOKUP(Y9,'Footnotes list'!$D$9:$E$58,2,FALSE)=0,\"\",VLOOKUP(Y9,'Footnotes list'!$D$9:$E$58,2,FALSE) ) )","v":""},null,null,null,null,{"$f":"IF(TRIM(AD9)=\"\", \"\", IF(VLOOKUP(AD9,'Footnotes list'!$D$9:$E$58,2,FALSE)=0,\"\",VLOOKUP(AD9,'Footnotes list'!$D$9:$E$58,2,FALSE) ) )","v":""},null,null,null,null,{"$f":"IF(TRIM(AI9)=\"\", \"\", IF(VLOOKUP(AI9,'Footnotes list'!$D$9:$E$58,2,FALSE)=0,\"\",VLOOKUP(AI9,'Footnotes list'!$D$9:$E$58,2,FALSE) ) )","v":""},null,null,null,null,{"$f":"IF(TRIM(AN9)=\"\", \"\", IF(VLOOKUP(AN9,'Footnotes list'!$D$9:$E$58,2,FALSE)=0,\"\",VLOOKUP(AN9,'Footnotes list'!$D$9:$E$58,2,FALSE) ) )","v":""},null,null,null,null,{"$f":"IF(TRIM(AS9)=\"\", \"\", IF(VLOOKUP(AS9,'Footnotes list'!$D$9:$E$58,2,FALSE)=0,\"\",VLOOKUP(AS9,'Footnotes list'!$D$9:$E$58,2,FALSE) ) )","v":""},null,null,null,null,{"$f":"IF(TRIM(AX9)=\"\", \"\", IF(VLOOKUP(AX9,'Footnotes list'!$D$9:$E$58,2,FALSE)=0,\"\",VLOOKUP(AX9,'Footnotes list'!$D$9:$E$58,2,FALSE) ) )","v":""},null,null,null,null,{"$f":"IF(TRIM(BC9)=\"\", \"\", IF(VLOOKUP(BC9,'Footnotes list'!$D$9:$E$58,2,FALSE)=0,\"\",VLOOKUP(BC9,'Footnotes list'!$D$9:$E$58,2,FALSE) ) )","v":""},null,null,null,null,{"$f":"IF(TRIM(BH9)=\"\", \"\", IF(VLOOKUP(BH9,'Footnotes list'!$D$9:$E$58,2,FALSE)=0,\"\",VLOOKUP(BH9,'Footnotes list'!$D$9:$E$58,2,FALSE) ) )","v":""},null,null,null,null,{"$f":"IF(TRIM(BM9)=\"\", \"\", IF(VLOOKUP(BM9,'Footnotes list'!$D$9:$E$58,2,FALSE)=0,\"\",VLOOKUP(BM9,'Footnotes list'!$D$9:$E$58,2,FALSE) ) )","v":""},null,null,null,null,{"$f":"IF(TRIM(BR9)=\"\", \"\", IF(VLOOKUP(BR9,'Footnotes list'!$D$9:$E$58,2,FALSE)=0,\"\",VLOOKUP(BR9,'Footnotes list'!$D$9:$E$58,2,FALSE) ) )","v":""},null,null,null,null,{"$f":"IF(TRIM(BW9)=\"\", \"\", IF(VLOOKUP(BW9,'Footnotes list'!$D$9:$E$58,2,FALSE)=0,\"\",VLOOKUP(BW9,'Footnotes list'!$D$9:$E$58,2,FALSE) ) )","v":""},null,null,null,null,{"$f":"IF(TRIM(CB9)=\"\", \"\", IF(VLOOKUP(CB9,'Footnotes list'!$D$9:$E$58,2,FALSE)=0,\"\",VLOOKUP(CB9,'Footnotes list'!$D$9:$E$58,2,FALSE) ) )","v":""},null,null,null,null,{"$f":"IF(TRIM(CG9)=\"\", \"\", IF(VLOOKUP(CG9,'Footnotes list'!$D$9:$E$58,2,FALSE)=0,\"\",VLOOKUP(CG9,'Footnotes list'!$D$9:$E$58,2,FALSE) ) )","v":""},null,null,null,null,{"$f":"IF(TRIM(CL9)=\"\", \"\", IF(VLOOKUP(CL9,'Footnotes list'!$D$9:$E$58,2,FALSE)=0,\"\",VLOOKUP(CL9,'Footnotes list'!$D$9:$E$58,2,FALSE) ) )","v":""},null,null,null,null,{"$f":"IF(TRIM(CQ9)=\"\", \"\", IF(VLOOKUP(CQ9,'Footnotes list'!$D$9:$E$58,2,FALSE)=0,\"\",VLOOKUP(CQ9,'Footnotes list'!$D$9:$E$58,2,FALSE) ) )","v":""},null,null,null,null,{"$f":"IF(TRIM(CV9)=\"\", \"\", IF(VLOOKUP(CV9,'Footnotes list'!$D$9:$E$58,2,FALSE)=0,\"\",VLOOKUP(CV9,'Footnotes list'!$D$9:$E$58,2,FALSE) ) )","v":""},null,null,null,null,{"$f":"IF(TRIM(DA9)=\"\", \"\", IF(VLOOKUP(DA9,'Footnotes list'!$D$9:$E$58,2,FALSE)=0,\"\",VLOOKUP(DA9,'Footnotes list'!$D$9:$E$58,2,FALSE) ) )","v":""},null,null,null,null,{"$f":"IF(TRIM(DF9)=\"\", \"\", IF(VLOOKUP(DF9,'Footnotes list'!$D$9:$E$58,2,FALSE)=0,\"\",VLOOKUP(DF9,'Footnotes list'!$D$9:$E$58,2,FALSE) ) )","v":""},null,null,null,null,{"$f":"IF(TRIM(DK9)=\"\", \"\", IF(VLOOKUP(DK9,'Footnotes list'!$D$9:$E$58,2,FALSE)=0,\"\",VLOOKUP(DK9,'Footnotes list'!$D$9:$E$58,2,FALSE) ) )","v":""},null,null,null,null,{"$f":"IF(TRIM(DP9)=\"\", \"\", IF(VLOOKUP(DP9,'Footnotes list'!$D$9:$E$58,2,FALSE)=0,\"\",VLOOKUP(DP9,'Footnotes list'!$D$9:$E$58,2,FALSE) ) )","v":""},null,null,null,null,{"$f":"IF(TRIM(DU9)=\"\", \"\", IF(VLOOKUP(DU9,'Footnotes list'!$D$9:$E$58,2,FALSE)=0,\"\",VLOOKUP(DU9,'Footnotes list'!$D$9:$E$58,2,FALSE) ) )","v":""},null,null,null,null,{"$f":"IF(TRIM(DZ9)=\"\", \"\", IF(VLOOKUP(DZ9,'Footnotes list'!$D$9:$E$58,2,FALSE)=0,\"\",VLOOKUP(DZ9,'Footnotes list'!$D$9:$E$58,2,FALSE) ) )","v":""},null,null,null,null,{"$f":"IF(TRIM(EE9)=\"\", \"\", IF(VLOOKUP(EE9,'Footnotes list'!$D$9:$E$58,2,FALSE)=0,\"\",VLOOKUP(EE9,'Footnotes list'!$D$9:$E$58,2,FALSE) ) )","v":""},null,null,null,null,{"$f":"IF(TRIM(EJ9)=\"\", \"\", IF(VLOOKUP(EJ9,'Footnotes list'!$D$9:$E$58,2,FALSE)=0,\"\",VLOOKUP(EJ9,'Footnotes list'!$D$9:$E$58,2,FALSE) ) )","v":""},null,null,null,null,{"$f":"IF(TRIM(EO9)=\"\", \"\", IF(VLOOKUP(EO9,'Footnotes list'!$D$9:$E$58,2,FALSE)=0,\"\",VLOOKUP(EO9,'Footnotes list'!$D$9:$E$58,2,FALSE) ) )","v":""},null,null,null,null,{"$f":"IF(TRIM(ET9)=\"\", \"\", IF(VLOOKUP(ET9,'Footnotes list'!$D$9:$E$58,2,FALSE)=0,\"\",VLOOKUP(ET9,'Footnotes list'!$D$9:$E$58,2,FALSE) ) )","v":""},null,null,null,null,{"$f":"IF(TRIM(EY9)=\"\", \"\", IF(VLOOKUP(EY9,'Footnotes list'!$D$9:$E$58,2,FALSE)=0,\"\",VLOOKUP(EY9,'Footnotes list'!$D$9:$E$58,2,FALSE) ) )","v":""}]
[null,null,"TOTAL","C_REP","cleaner and resource efficient products",null,null,null,null,null,{"$f":"IF(TRIM(J10)=\"\", \"\", IF(VLOOKUP(J10,'Footnotes list'!$D$9:$E$58,2,FALSE)=0,\"\",VLOOKUP(J10,'Footnotes list'!$D$9:$E$58,2,FALSE) ) )","v":""},null,null,null,null,{"$f":"IF(TRIM(O10)=\"\", \"\", IF(VLOOKUP(O10,'Footnotes list'!$D$9:$E$58,2,FALSE)=0,\"\",VLOOKUP(O10,'Footnotes list'!$D$9:$E$58,2,FALSE) ) )","v":""},null,null,null,null,{"$f":"IF(TRIM(T10)=\"\", \"\", IF(VLOOKUP(T10,'Footnotes list'!$D$9:$E$58,2,FALSE)=0,\"\",VLOOKUP(T10,'Footnotes list'!$D$9:$E$58,2,FALSE) ) )","v":""},null,null,null,null,{"$f":"IF(TRIM(Y10)=\"\", \"\", IF(VLOOKUP(Y10,'Footnotes list'!$D$9:$E$58,2,FALSE)=0,\"\",VLOOKUP(Y10,'Footnotes list'!$D$9:$E$58,2,FALSE) ) )","v":""},null,null,null,null,{"$f":"IF(TRIM(AD10)=\"\", \"\", IF(VLOOKUP(AD10,'Footnotes list'!$D$9:$E$58,2,FALSE)=0,\"\",VLOOKUP(AD10,'Footnotes list'!$D$9:$E$58,2,FALSE) ) )","v":""},null,null,null,null,{"$f":"IF(TRIM(AI10)=\"\", \"\", IF(VLOOKUP(AI10,'Footnotes list'!$D$9:$E$58,2,FALSE)=0,\"\",VLOOKUP(AI10,'Footnotes list'!$D$9:$E$58,2,FALSE) ) )","v":""},null,null,null,null,{"$f":"IF(TRIM(AN10)=\"\", \"\", IF(VLOOKUP(AN10,'Footnotes list'!$D$9:$E$58,2,FALSE)=0,\"\",VLOOKUP(AN10,'Footnotes list'!$D$9:$E$58,2,FALSE) ) )","v":""},null,null,null,null,{"$f":"IF(TRIM(AS10)=\"\", \"\", IF(VLOOKUP(AS10,'Footnotes list'!$D$9:$E$58,2,FALSE)=0,\"\",VLOOKUP(AS10,'Footnotes list'!$D$9:$E$58,2,FALSE) ) )","v":""},null,null,null,null,{"$f":"IF(TRIM(AX10)=\"\", \"\", IF(VLOOKUP(AX10,'Footnotes list'!$D$9:$E$58,2,FALSE)=0,\"\",VLOOKUP(AX10,'Footnotes list'!$D$9:$E$58,2,FALSE) ) )","v":""},null,null,null,null,{"$f":"IF(TRIM(BC10)=\"\", \"\", IF(VLOOKUP(BC10,'Footnotes list'!$D$9:$E$58,2,FALSE)=0,\"\",VLOOKUP(BC10,'Footnotes list'!$D$9:$E$58,2,FALSE) ) )","v":""},null,null,null,null,{"$f":"IF(TRIM(BH10)=\"\", \"\", IF(VLOOKUP(BH10,'Footnotes list'!$D$9:$E$58,2,FALSE)=0,\"\",VLOOKUP(BH10,'Footnotes list'!$D$9:$E$58,2,FALSE) ) )","v":""},null,null,null,null,{"$f":"IF(TRIM(BM10)=\"\", \"\", IF(VLOOKUP(BM10,'Footnotes list'!$D$9:$E$58,2,FALSE)=0,\"\",VLOOKUP(BM10,'Footnotes list'!$D$9:$E$58,2,FALSE) ) )","v":""},null,null,null,null,{"$f":"IF(TRIM(BR10)=\"\", \"\", IF(VLOOKUP(BR10,'Footnotes list'!$D$9:$E$58,2,FALSE)=0,\"\",VLOOKUP(BR10,'Footnotes list'!$D$9:$E$58,2,FALSE) ) )","v":""},null,null,null,null,{"$f":"IF(TRIM(BW10)=\"\", \"\", IF(VLOOKUP(BW10,'Footnotes list'!$D$9:$E$58,2,FALSE)=0,\"\",VLOOKUP(BW10,'Footnotes list'!$D$9:$E$58,2,FALSE) ) )","v":""},null,null,null,null,{"$f":"IF(TRIM(CB10)=\"\", \"\", IF(VLOOKUP(CB10,'Footnotes list'!$D$9:$E$58,2,FALSE)=0,\"\",VLOOKUP(CB10,'Footnotes list'!$D$9:$E$58,2,FALSE) ) )","v":""},null,null,null,null,{"$f":"IF(TRIM(CG10)=\"\", \"\", IF(VLOOKUP(CG10,'Footnotes list'!$D$9:$E$58,2,FALSE)=0,\"\",VLOOKUP(CG10,'Footnotes list'!$D$9:$E$58,2,FALSE) ) )","v":""},null,null,null,null,{"$f":"IF(TRIM(CL10)=\"\", \"\", IF(VLOOKUP(CL10,'Footnotes list'!$D$9:$E$58,2,FALSE)=0,\"\",VLOOKUP(CL10,'Footnotes list'!$D$9:$E$58,2,FALSE) ) )","v":""},null,null,null,null,{"$f":"IF(TRIM(CQ10)=\"\", \"\", IF(VLOOKUP(CQ10,'Footnotes list'!$D$9:$E$58,2,FALSE)=0,\"\",VLOOKUP(CQ10,'Footnotes list'!$D$9:$E$58,2,FALSE) ) )","v":""},null,null,null,null,{"$f":"IF(TRIM(CV10)=\"\", \"\", IF(VLOOKUP(CV10,'Footnotes list'!$D$9:$E$58,2,FALSE)=0,\"\",VLOOKUP(CV10,'Footnotes list'!$D$9:$E$58,2,FALSE) ) )","v":""},null,null,null,null,{"$f":"IF(TRIM(DA10)=\"\", \"\", IF(VLOOKUP(DA10,'Footnotes list'!$D$9:$E$58,2,FALSE)=0,\"\",VLOOKUP(DA10,'Footnotes list'!$D$9:$E$58,2,FALSE) ) )","v":""},null,null,null,null,{"$f":"IF(TRIM(DF10)=\"\", \"\", IF(VLOOKUP(DF10,'Footnotes list'!$D$9:$E$58,2,FALSE)=0,\"\",VLOOKUP(DF10,'Footnotes list'!$D$9:$E$58,2,FALSE) ) )","v":""},null,null,null,null,{"$f":"IF(TRIM(DK10)=\"\", \"\", IF(VLOOKUP(DK10,'Footnotes list'!$D$9:$E$58,2,FALSE)=0,\"\",VLOOKUP(DK10,'Footnotes list'!$D$9:$E$58,2,FALSE) ) )","v":""},null,null,null,null,{"$f":"IF(TRIM(DP10)=\"\", \"\", IF(VLOOKUP(DP10,'Footnotes list'!$D$9:$E$58,2,FALSE)=0,\"\",VLOOKUP(DP10,'Footnotes list'!$D$9:$E$58,2,FALSE) ) )","v":""},null,null,null,null,{"$f":"IF(TRIM(DU10)=\"\", \"\", IF(VLOOKUP(DU10,'Footnotes list'!$D$9:$E$58,2,FALSE)=0,\"\",VLOOKUP(DU10,'Footnotes list'!$D$9:$E$58,2,FALSE) ) )","v":""},null,null,null,null,{"$f":"IF(TRIM(DZ10)=\"\", \"\", IF(VLOOKUP(DZ10,'Footnotes list'!$D$9:$E$58,2,FALSE)=0,\"\",VLOOKUP(DZ10,'Footnotes list'!$D$9:$E$58,2,FALSE) ) )","v":""},null,null,null,null,{"$f":"IF(TRIM(EE10)=\"\", \"\", IF(VLOOKUP(EE10,'Footnotes list'!$D$9:$E$58,2,FALSE)=0,\"\",VLOOKUP(EE10,'Footnotes list'!$D$9:$E$58,2,FALSE) ) )","v":""},null,null,null,null,{"$f":"IF(TRIM(EJ10)=\"\", \"\", IF(VLOOKUP(EJ10,'Footnotes list'!$D$9:$E$58,2,FALSE)=0,\"\",VLOOKUP(EJ10,'Footnotes list'!$D$9:$E$58,2,FALSE) ) )","v":""},null,null,null,null,{"$f":"IF(TRIM(EO10)=\"\", \"\", IF(VLOOKUP(EO10,'Footnotes list'!$D$9:$E$58,2,FALSE)=0,\"\",VLOOKUP(EO10,'Footnotes list'!$D$9:$E$58,2,FALSE) ) )","v":""},null,null,null,null,{"$f":"IF(TRIM(ET10)=\"\", \"\", IF(VLOOKUP(ET10,'Footnotes list'!$D$9:$E$58,2,FALSE)=0,\"\",VLOOKUP(ET10,'Footnotes list'!$D$9:$E$58,2,FALSE) ) )","v":""},null,null,null,null,{"$f":"IF(TRIM(EY10)=\"\", \"\", IF(VLOOKUP(EY10,'Footnotes list'!$D$9:$E$58,2,FALSE)=0,\"\",VLOOKUP(EY10,'Footnotes list'!$D$9:$E$58,2,FALSE) ) )","v":""}]
[null,null,"A","TOT_EGSS","Total A - Agriculture, forestry and fishing, including:",null,null,null,null,null,{"$f":"IF(TRIM(J11)=\"\", \"\", IF(VLOOKUP(J11,'Footnotes list'!$D$9:$E$58,2,FALSE)=0,\"\",VLOOKUP(J11,'Footnotes list'!$D$9:$E$58,2,FALSE) ) )","v":""},null,null,null,null,{"$f":"IF(TRIM(O11)=\"\", \"\", IF(VLOOKUP(O11,'Footnotes list'!$D$9:$E$58,2,FALSE)=0,\"\",VLOOKUP(O11,'Footnotes list'!$D$9:$E$58,2,FALSE) ) )","v":""},null,null,null,null,{"$f":"IF(TRIM(T11)=\"\", \"\", IF(VLOOKUP(T11,'Footnotes list'!$D$9:$E$58,2,FALSE)=0,\"\",VLOOKUP(T11,'Footnotes list'!$D$9:$E$58,2,FALSE) ) )","v":""},null,null,null,null,{"$f":"IF(TRIM(Y11)=\"\", \"\", IF(VLOOKUP(Y11,'Footnotes list'!$D$9:$E$58,2,FALSE)=0,\"\",VLOOKUP(Y11,'Footnotes list'!$D$9:$E$58,2,FALSE) ) )","v":""},null,null,null,null,{"$f":"IF(TRIM(AD11)=\"\", \"\", IF(VLOOKUP(AD11,'Footnotes list'!$D$9:$E$58,2,FALSE)=0,\"\",VLOOKUP(AD11,'Footnotes list'!$D$9:$E$58,2,FALSE) ) )","v":""},null,null,null,null,{"$f":"IF(TRIM(AI11)=\"\", \"\", IF(VLOOKUP(AI11,'Footnotes list'!$D$9:$E$58,2,FALSE)=0,\"\",VLOOKUP(AI11,'Footnotes list'!$D$9:$E$58,2,FALSE) ) )","v":""},null,null,null,null,{"$f":"IF(TRIM(AN11)=\"\", \"\", IF(VLOOKUP(AN11,'Footnotes list'!$D$9:$E$58,2,FALSE)=0,\"\",VLOOKUP(AN11,'Footnotes list'!$D$9:$E$58,2,FALSE) ) )","v":""},null,null,null,null,{"$f":"IF(TRIM(AS11)=\"\", \"\", IF(VLOOKUP(AS11,'Footnotes list'!$D$9:$E$58,2,FALSE)=0,\"\",VLOOKUP(AS11,'Footnotes list'!$D$9:$E$58,2,FALSE) ) )","v":""},null,null,null,null,{"$f":"IF(TRIM(AX11)=\"\", \"\", IF(VLOOKUP(AX11,'Footnotes list'!$D$9:$E$58,2,FALSE)=0,\"\",VLOOKUP(AX11,'Footnotes list'!$D$9:$E$58,2,FALSE) ) )","v":""},null,null,null,null,{"$f":"IF(TRIM(BC11)=\"\", \"\", IF(VLOOKUP(BC11,'Footnotes list'!$D$9:$E$58,2,FALSE)=0,\"\",VLOOKUP(BC11,'Footnotes list'!$D$9:$E$58,2,FALSE) ) )","v":""},null,null,null,null,{"$f":"IF(TRIM(BH11)=\"\", \"\", IF(VLOOKUP(BH11,'Footnotes list'!$D$9:$E$58,2,FALSE)=0,\"\",VLOOKUP(BH11,'Footnotes list'!$D$9:$E$58,2,FALSE) ) )","v":""},null,null,null,null,{"$f":"IF(TRIM(BM11)=\"\", \"\", IF(VLOOKUP(BM11,'Footnotes list'!$D$9:$E$58,2,FALSE)=0,\"\",VLOOKUP(BM11,'Footnotes list'!$D$9:$E$58,2,FALSE) ) )","v":""},null,null,null,null,{"$f":"IF(TRIM(BR11)=\"\", \"\", IF(VLOOKUP(BR11,'Footnotes list'!$D$9:$E$58,2,FALSE)=0,\"\",VLOOKUP(BR11,'Footnotes list'!$D$9:$E$58,2,FALSE) ) )","v":""},null,null,null,null,{"$f":"IF(TRIM(BW11)=\"\", \"\", IF(VLOOKUP(BW11,'Footnotes list'!$D$9:$E$58,2,FALSE)=0,\"\",VLOOKUP(BW11,'Footnotes list'!$D$9:$E$58,2,FALSE) ) )","v":""},null,null,null,null,{"$f":"IF(TRIM(CB11)=\"\", \"\", IF(VLOOKUP(CB11,'Footnotes list'!$D$9:$E$58,2,FALSE)=0,\"\",VLOOKUP(CB11,'Footnotes list'!$D$9:$E$58,2,FALSE) ) )","v":""},null,null,null,null,{"$f":"IF(TRIM(CG11)=\"\", \"\", IF(VLOOKUP(CG11,'Footnotes list'!$D$9:$E$58,2,FALSE)=0,\"\",VLOOKUP(CG11,'Footnotes list'!$D$9:$E$58,2,FALSE) ) )","v":""},null,null,null,null,{"$f":"IF(TRIM(CL11)=\"\", \"\", IF(VLOOKUP(CL11,'Footnotes list'!$D$9:$E$58,2,FALSE)=0,\"\",VLOOKUP(CL11,'Footnotes list'!$D$9:$E$58,2,FALSE) ) )","v":""},null,null,null,null,{"$f":"IF(TRIM(CQ11)=\"\", \"\", IF(VLOOKUP(CQ11,'Footnotes list'!$D$9:$E$58,2,FALSE)=0,\"\",VLOOKUP(CQ11,'Footnotes list'!$D$9:$E$58,2,FALSE) ) )","v":""},null,null,null,null,{"$f":"IF(TRIM(CV11)=\"\", \"\", IF(VLOOKUP(CV11,'Footnotes list'!$D$9:$E$58,2,FALSE)=0,\"\",VLOOKUP(CV11,'Footnotes list'!$D$9:$E$58,2,FALSE) ) )","v":""},null,null,null,null,{"$f":"IF(TRIM(DA11)=\"\", \"\", IF(VLOOKUP(DA11,'Footnotes list'!$D$9:$E$58,2,FALSE)=0,\"\",VLOOKUP(DA11,'Footnotes list'!$D$9:$E$58,2,FALSE) ) )","v":""},null,null,null,null,{"$f":"IF(TRIM(DF11)=\"\", \"\", IF(VLOOKUP(DF11,'Footnotes list'!$D$9:$E$58,2,FALSE)=0,\"\",VLOOKUP(DF11,'Footnotes list'!$D$9:$E$58,2,FALSE) ) )","v":""},null,null,null,null,{"$f":"IF(TRIM(DK11)=\"\", \"\", IF(VLOOKUP(DK11,'Footnotes list'!$D$9:$E$58,2,FALSE)=0,\"\",VLOOKUP(DK11,'Footnotes list'!$D$9:$E$58,2,FALSE) ) )","v":""},null,null,null,null,{"$f":"IF(TRIM(DP11)=\"\", \"\", IF(VLOOKUP(DP11,'Footnotes list'!$D$9:$E$58,2,FALSE)=0,\"\",VLOOKUP(DP11,'Footnotes list'!$D$9:$E$58,2,FALSE) ) )","v":""},null,null,null,null,{"$f":"IF(TRIM(DU11)=\"\", \"\", IF(VLOOKUP(DU11,'Footnotes list'!$D$9:$E$58,2,FALSE)=0,\"\",VLOOKUP(DU11,'Footnotes list'!$D$9:$E$58,2,FALSE) ) )","v":""},null,null,null,null,{"$f":"IF(TRIM(DZ11)=\"\", \"\", IF(VLOOKUP(DZ11,'Footnotes list'!$D$9:$E$58,2,FALSE)=0,\"\",VLOOKUP(DZ11,'Footnotes list'!$D$9:$E$58,2,FALSE) ) )","v":""},null,null,null,null,{"$f":"IF(TRIM(EE11)=\"\", \"\", IF(VLOOKUP(EE11,'Footnotes list'!$D$9:$E$58,2,FALSE)=0,\"\",VLOOKUP(EE11,'Footnotes list'!$D$9:$E$58,2,FALSE) ) )","v":""},null,null,null,null,{"$f":"IF(TRIM(EJ11)=\"\", \"\", IF(VLOOKUP(EJ11,'Footnotes list'!$D$9:$E$58,2,FALSE)=0,\"\",VLOOKUP(EJ11,'Footnotes list'!$D$9:$E$58,2,FALSE) ) )","v":""},null,null,null,null,{"$f":"IF(TRIM(EO11)=\"\", \"\", IF(VLOOKUP(EO11,'Footnotes list'!$D$9:$E$58,2,FALSE)=0,\"\",VLOOKUP(EO11,'Footnotes list'!$D$9:$E$58,2,FALSE) ) )","v":""},null,null,null,null,{"$f":"IF(TRIM(ET11)=\"\", \"\", IF(VLOOKUP(ET11,'Footnotes list'!$D$9:$E$58,2,FALSE)=0,\"\",VLOOKUP(ET11,'Footnotes list'!$D$9:$E$58,2,FALSE) ) )","v":""},null,null,null,null,{"$f":"IF(TRIM(EY11)=\"\", \"\", IF(VLOOKUP(EY11,'Footnotes list'!$D$9:$E$58,2,FALSE)=0,\"\",VLOOKUP(EY11,'Footnotes list'!$D$9:$E$58,2,FALSE) ) )","v":""}]
[null,null,"A","ES_CS","environmental specific services",null,null,null,null,null,{"$f":"IF(TRIM(J12)=\"\", \"\", IF(VLOOKUP(J12,'Footnotes list'!$D$9:$E$58,2,FALSE)=0,\"\",VLOOKUP(J12,'Footnotes list'!$D$9:$E$58,2,FALSE) ) )","v":""},null,null,null,null,{"$f":"IF(TRIM(O12)=\"\", \"\", IF(VLOOKUP(O12,'Footnotes list'!$D$9:$E$58,2,FALSE)=0,\"\",VLOOKUP(O12,'Footnotes list'!$D$9:$E$58,2,FALSE) ) )","v":""},null,null,null,null,{"$f":"IF(TRIM(T12)=\"\", \"\", IF(VLOOKUP(T12,'Footnotes list'!$D$9:$E$58,2,FALSE)=0,\"\",VLOOKUP(T12,'Footnotes list'!$D$9:$E$58,2,FALSE) ) )","v":""},null,null,null,null,{"$f":"IF(TRIM(Y12)=\"\", \"\", IF(VLOOKUP(Y12,'Footnotes list'!$D$9:$E$58,2,FALSE)=0,\"\",VLOOKUP(Y12,'Footnotes list'!$D$9:$E$58,2,FALSE) ) )","v":""},null,null,null,null,{"$f":"IF(TRIM(AD12)=\"\", \"\", IF(VLOOKUP(AD12,'Footnotes list'!$D$9:$E$58,2,FALSE)=0,\"\",VLOOKUP(AD12,'Footnotes list'!$D$9:$E$58,2,FALSE) ) )","v":""},null,null,null,null,{"$f":"IF(TRIM(AI12)=\"\", \"\", IF(VLOOKUP(AI12,'Footnotes list'!$D$9:$E$58,2,FALSE)=0,\"\",VLOOKUP(AI12,'Footnotes list'!$D$9:$E$58,2,FALSE) ) )","v":""},null,null,null,null,{"$f":"IF(TRIM(AN12)=\"\", \"\", IF(VLOOKUP(AN12,'Footnotes list'!$D$9:$E$58,2,FALSE)=0,\"\",VLOOKUP(AN12,'Footnotes list'!$D$9:$E$58,2,FALSE) ) )","v":""},null,null,null,null,{"$f":"IF(TRIM(AS12)=\"\", \"\", IF(VLOOKUP(AS12,'Footnotes list'!$D$9:$E$58,2,FALSE)=0,\"\",VLOOKUP(AS12,'Footnotes list'!$D$9:$E$58,2,FALSE) ) )","v":""},null,null,null,null,{"$f":"IF(TRIM(AX12)=\"\", \"\", IF(VLOOKUP(AX12,'Footnotes list'!$D$9:$E$58,2,FALSE)=0,\"\",VLOOKUP(AX12,'Footnotes list'!$D$9:$E$58,2,FALSE) ) )","v":""},null,null,null,null,{"$f":"IF(TRIM(BC12)=\"\", \"\", IF(VLOOKUP(BC12,'Footnotes list'!$D$9:$E$58,2,FALSE)=0,\"\",VLOOKUP(BC12,'Footnotes list'!$D$9:$E$58,2,FALSE) ) )","v":""},null,null,null,null,{"$f":"IF(TRIM(BH12)=\"\", \"\", IF(VLOOKUP(BH12,'Footnotes list'!$D$9:$E$58,2,FALSE)=0,\"\",VLOOKUP(BH12,'Footnotes list'!$D$9:$E$58,2,FALSE) ) )","v":""},null,null,null,null,{"$f":"IF(TRIM(BM12)=\"\", \"\", IF(VLOOKUP(BM12,'Footnotes list'!$D$9:$E$58,2,FALSE)=0,\"\",VLOOKUP(BM12,'Footnotes list'!$D$9:$E$58,2,FALSE) ) )","v":""},null,null,null,null,{"$f":"IF(TRIM(BR12)=\"\", \"\", IF(VLOOKUP(BR12,'Footnotes list'!$D$9:$E$58,2,FALSE)=0,\"\",VLOOKUP(BR12,'Footnotes list'!$D$9:$E$58,2,FALSE) ) )","v":""},null,null,null,null,{"$f":"IF(TRIM(BW12)=\"\", \"\", IF(VLOOKUP(BW12,'Footnotes list'!$D$9:$E$58,2,FALSE)=0,\"\",VLOOKUP(BW12,'Footnotes list'!$D$9:$E$58,2,FALSE) ) )","v":""},null,null,null,null,{"$f":"IF(TRIM(CB12)=\"\", \"\", IF(VLOOKUP(CB12,'Footnotes list'!$D$9:$E$58,2,FALSE)=0,\"\",VLOOKUP(CB12,'Footnotes list'!$D$9:$E$58,2,FALSE) ) )","v":""},null,null,null,null,{"$f":"IF(TRIM(CG12)=\"\", \"\", IF(VLOOKUP(CG12,'Footnotes list'!$D$9:$E$58,2,FALSE)=0,\"\",VLOOKUP(CG12,'Footnotes list'!$D$9:$E$58,2,FALSE) ) )","v":""},null,null,null,null,{"$f":"IF(TRIM(CL12)=\"\", \"\", IF(VLOOKUP(CL12,'Footnotes list'!$D$9:$E$58,2,FALSE)=0,\"\",VLOOKUP(CL12,'Footnotes list'!$D$9:$E$58,2,FALSE) ) )","v":""},null,null,null,null,{"$f":"IF(TRIM(CQ12)=\"\", \"\", IF(VLOOKUP(CQ12,'Footnotes list'!$D$9:$E$58,2,FALSE)=0,\"\",VLOOKUP(CQ12,'Footnotes list'!$D$9:$E$58,2,FALSE) ) )","v":""},null,null,null,null,{"$f":"IF(TRIM(CV12)=\"\", \"\", IF(VLOOKUP(CV12,'Footnotes list'!$D$9:$E$58,2,FALSE)=0,\"\",VLOOKUP(CV12,'Footnotes list'!$D$9:$E$58,2,FALSE) ) )","v":""},null,null,null,null,{"$f":"IF(TRIM(DA12)=\"\", \"\", IF(VLOOKUP(DA12,'Footnotes list'!$D$9:$E$58,2,FALSE)=0,\"\",VLOOKUP(DA12,'Footnotes list'!$D$9:$E$58,2,FALSE) ) )","v":""},null,null,null,null,{"$f":"IF(TRIM(DF12)=\"\", \"\", IF(VLOOKUP(DF12,'Footnotes list'!$D$9:$E$58,2,FALSE)=0,\"\",VLOOKUP(DF12,'Footnotes list'!$D$9:$E$58,2,FALSE) ) )","v":""},null,null,null,null,{"$f":"IF(TRIM(DK12)=\"\", \"\", IF(VLOOKUP(DK12,'Footnotes list'!$D$9:$E$58,2,FALSE)=0,\"\",VLOOKUP(DK12,'Footnotes list'!$D$9:$E$58,2,FALSE) ) )","v":""},null,null,null,null,{"$f":"IF(TRIM(DP12)=\"\", \"\", IF(VLOOKUP(DP12,'Footnotes list'!$D$9:$E$58,2,FALSE)=0,\"\",VLOOKUP(DP12,'Footnotes list'!$D$9:$E$58,2,FALSE) ) )","v":""},null,null,null,null,{"$f":"IF(TRIM(DU12)=\"\", \"\", IF(VLOOKUP(DU12,'Footnotes list'!$D$9:$E$58,2,FALSE)=0,\"\",VLOOKUP(DU12,'Footnotes list'!$D$9:$E$58,2,FALSE) ) )","v":""},null,null,null,null,{"$f":"IF(TRIM(DZ12)=\"\", \"\", IF(VLOOKUP(DZ12,'Footnotes list'!$D$9:$E$58,2,FALSE)=0,\"\",VLOOKUP(DZ12,'Footnotes list'!$D$9:$E$58,2,FALSE) ) )","v":""},null,null,null,null,{"$f":"IF(TRIM(EE12)=\"\", \"\", IF(VLOOKUP(EE12,'Footnotes list'!$D$9:$E$58,2,FALSE)=0,\"\",VLOOKUP(EE12,'Footnotes list'!$D$9:$E$58,2,FALSE) ) )","v":""},null,null,null,null,{"$f":"IF(TRIM(EJ12)=\"\", \"\", IF(VLOOKUP(EJ12,'Footnotes list'!$D$9:$E$58,2,FALSE)=0,\"\",VLOOKUP(EJ12,'Footnotes list'!$D$9:$E$58,2,FALSE) ) )","v":""},null,null,null,null,{"$f":"IF(TRIM(EO12)=\"\", \"\", IF(VLOOKUP(EO12,'Footnotes list'!$D$9:$E$58,2,FALSE)=0,\"\",VLOOKUP(EO12,'Footnotes list'!$D$9:$E$58,2,FALSE) ) )","v":""},null,null,null,null,{"$f":"IF(TRIM(ET12)=\"\", \"\", IF(VLOOKUP(ET12,'Footnotes list'!$D$9:$E$58,2,FALSE)=0,\"\",VLOOKUP(ET12,'Footnotes list'!$D$9:$E$58,2,FALSE) ) )","v":""},null,null,null,null,{"$f":"IF(TRIM(EY12)=\"\", \"\", IF(VLOOKUP(EY12,'Footnotes list'!$D$9:$E$58,2,FALSE)=0,\"\",VLOOKUP(EY12,'Footnotes list'!$D$9:$E$58,2,FALSE) ) )","v":""}]
[null,null,"A","C_REP","cleaner and resource efficient products",null,null,null,null,null,{"$f":"IF(TRIM(J13)=\"\", \"\", IF(VLOOKUP(J13,'Footnotes list'!$D$9:$E$58,2,FALSE)=0,\"\",VLOOKUP(J13,'Footnotes list'!$D$9:$E$58,2,FALSE) ) )","v":""},null,null,null,null,{"$f":"IF(TRIM(O13)=\"\", \"\", IF(VLOOKUP(O13,'Footnotes list'!$D$9:$E$58,2,FALSE)=0,\"\",VLOOKUP(O13,'Footnotes list'!$D$9:$E$58,2,FALSE) ) )","v":""},null,null,null,null,{"$f":"IF(TRIM(T13)=\"\", \"\", IF(VLOOKUP(T13,'Footnotes list'!$D$9:$E$58,2,FALSE)=0,\"\",VLOOKUP(T13,'Footnotes list'!$D$9:$E$58,2,FALSE) ) )","v":""},null,null,null,null,{"$f":"IF(TRIM(Y13)=\"\", \"\", IF(VLOOKUP(Y13,'Footnotes list'!$D$9:$E$58,2,FALSE)=0,\"\",VLOOKUP(Y13,'Footnotes list'!$D$9:$E$58,2,FALSE) ) )","v":""},null,null,null,null,{"$f":"IF(TRIM(AD13)=\"\", \"\", IF(VLOOKUP(AD13,'Footnotes list'!$D$9:$E$58,2,FALSE)=0,\"\",VLOOKUP(AD13,'Footnotes list'!$D$9:$E$58,2,FALSE) ) )","v":""},null,null,null,null,{"$f":"IF(TRIM(AI13)=\"\", \"\", IF(VLOOKUP(AI13,'Footnotes list'!$D$9:$E$58,2,FALSE)=0,\"\",VLOOKUP(AI13,'Footnotes list'!$D$9:$E$58,2,FALSE) ) )","v":""},null,null,null,null,{"$f":"IF(TRIM(AN13)=\"\", \"\", IF(VLOOKUP(AN13,'Footnotes list'!$D$9:$E$58,2,FALSE)=0,\"\",VLOOKUP(AN13,'Footnotes list'!$D$9:$E$58,2,FALSE) ) )","v":""},null,null,null,null,{"$f":"IF(TRIM(AS13)=\"\", \"\", IF(VLOOKUP(AS13,'Footnotes list'!$D$9:$E$58,2,FALSE)=0,\"\",VLOOKUP(AS13,'Footnotes list'!$D$9:$E$58,2,FALSE) ) )","v":""},null,null,null,null,{"$f":"IF(TRIM(AX13)=\"\", \"\", IF(VLOOKUP(AX13,'Footnotes list'!$D$9:$E$58,2,FALSE)=0,\"\",VLOOKUP(AX13,'Footnotes list'!$D$9:$E$58,2,FALSE) ) )","v":""},null,null,null,null,{"$f":"IF(TRIM(BC13)=\"\", \"\", IF(VLOOKUP(BC13,'Footnotes list'!$D$9:$E$58,2,FALSE)=0,\"\",VLOOKUP(BC13,'Footnotes list'!$D$9:$E$58,2,FALSE) ) )","v":""},null,null,null,null,{"$f":"IF(TRIM(BH13)=\"\", \"\", IF(VLOOKUP(BH13,'Footnotes list'!$D$9:$E$58,2,FALSE)=0,\"\",VLOOKUP(BH13,'Footnotes list'!$D$9:$E$58,2,FALSE) ) )","v":""},null,null,null,null,{"$f":"IF(TRIM(BM13)=\"\", \"\", IF(VLOOKUP(BM13,'Footnotes list'!$D$9:$E$58,2,FALSE)=0,\"\",VLOOKUP(BM13,'Footnotes list'!$D$9:$E$58,2,FALSE) ) )","v":""},null,null,null,null,{"$f":"IF(TRIM(BR13)=\"\", \"\", IF(VLOOKUP(BR13,'Footnotes list'!$D$9:$E$58,2,FALSE)=0,\"\",VLOOKUP(BR13,'Footnotes list'!$D$9:$E$58,2,FALSE) ) )","v":""},null,null,null,null,{"$f":"IF(TRIM(BW13)=\"\", \"\", IF(VLOOKUP(BW13,'Footnotes list'!$D$9:$E$58,2,FALSE)=0,\"\",VLOOKUP(BW13,'Footnotes list'!$D$9:$E$58,2,FALSE) ) )","v":""},null,null,null,null,{"$f":"IF(TRIM(CB13)=\"\", \"\", IF(VLOOKUP(CB13,'Footnotes list'!$D$9:$E$58,2,FALSE)=0,\"\",VLOOKUP(CB13,'Footnotes list'!$D$9:$E$58,2,FALSE) ) )","v":""},null,null,null,null,{"$f":"IF(TRIM(CG13)=\"\", \"\", IF(VLOOKUP(CG13,'Footnotes list'!$D$9:$E$58,2,FALSE)=0,\"\",VLOOKUP(CG13,'Footnotes list'!$D$9:$E$58,2,FALSE) ) )","v":""},null,null,null,null,{"$f":"IF(TRIM(CL13)=\"\", \"\", IF(VLOOKUP(CL13,'Footnotes list'!$D$9:$E$58,2,FALSE)=0,\"\",VLOOKUP(CL13,'Footnotes list'!$D$9:$E$58,2,FALSE) ) )","v":""},null,null,null,null,{"$f":"IF(TRIM(CQ13)=\"\", \"\", IF(VLOOKUP(CQ13,'Footnotes list'!$D$9:$E$58,2,FALSE)=0,\"\",VLOOKUP(CQ13,'Footnotes list'!$D$9:$E$58,2,FALSE) ) )","v":""},null,null,null,null,{"$f":"IF(TRIM(CV13)=\"\", \"\", IF(VLOOKUP(CV13,'Footnotes list'!$D$9:$E$58,2,FALSE)=0,\"\",VLOOKUP(CV13,'Footnotes list'!$D$9:$E$58,2,FALSE) ) )","v":""},null,null,null,null,{"$f":"IF(TRIM(DA13)=\"\", \"\", IF(VLOOKUP(DA13,'Footnotes list'!$D$9:$E$58,2,FALSE)=0,\"\",VLOOKUP(DA13,'Footnotes list'!$D$9:$E$58,2,FALSE) ) )","v":""},null,null,null,null,{"$f":"IF(TRIM(DF13)=\"\", \"\", IF(VLOOKUP(DF13,'Footnotes list'!$D$9:$E$58,2,FALSE)=0,\"\",VLOOKUP(DF13,'Footnotes list'!$D$9:$E$58,2,FALSE) ) )","v":""},null,null,null,null,{"$f":"IF(TRIM(DK13)=\"\", \"\", IF(VLOOKUP(DK13,'Footnotes list'!$D$9:$E$58,2,FALSE)=0,\"\",VLOOKUP(DK13,'Footnotes list'!$D$9:$E$58,2,FALSE) ) )","v":""},null,null,null,null,{"$f":"IF(TRIM(DP13)=\"\", \"\", IF(VLOOKUP(DP13,'Footnotes list'!$D$9:$E$58,2,FALSE)=0,\"\",VLOOKUP(DP13,'Footnotes list'!$D$9:$E$58,2,FALSE) ) )","v":""},null,null,null,null,{"$f":"IF(TRIM(DU13)=\"\", \"\", IF(VLOOKUP(DU13,'Footnotes list'!$D$9:$E$58,2,FALSE)=0,\"\",VLOOKUP(DU13,'Footnotes list'!$D$9:$E$58,2,FALSE) ) )","v":""},null,null,null,null,{"$f":"IF(TRIM(DZ13)=\"\", \"\", IF(VLOOKUP(DZ13,'Footnotes list'!$D$9:$E$58,2,FALSE)=0,\"\",VLOOKUP(DZ13,'Footnotes list'!$D$9:$E$58,2,FALSE) ) )","v":""},null,null,null,null,{"$f":"IF(TRIM(EE13)=\"\", \"\", IF(VLOOKUP(EE13,'Footnotes list'!$D$9:$E$58,2,FALSE)=0,\"\",VLOOKUP(EE13,'Footnotes list'!$D$9:$E$58,2,FALSE) ) )","v":""},null,null,null,null,{"$f":"IF(TRIM(EJ13)=\"\", \"\", IF(VLOOKUP(EJ13,'Footnotes list'!$D$9:$E$58,2,FALSE)=0,\"\",VLOOKUP(EJ13,'Footnotes list'!$D$9:$E$58,2,FALSE) ) )","v":""},null,null,null,null,{"$f":"IF(TRIM(EO13)=\"\", \"\", IF(VLOOKUP(EO13,'Footnotes list'!$D$9:$E$58,2,FALSE)=0,\"\",VLOOKUP(EO13,'Footnotes list'!$D$9:$E$58,2,FALSE) ) )","v":""},null,null,null,null,{"$f":"IF(TRIM(ET13)=\"\", \"\", IF(VLOOKUP(ET13,'Footnotes list'!$D$9:$E$58,2,FALSE)=0,\"\",VLOOKUP(ET13,'Footnotes list'!$D$9:$E$58,2,FALSE) ) )","v":""},null,null,null,null,{"$f":"IF(TRIM(EY13)=\"\", \"\", IF(VLOOKUP(EY13,'Footnotes list'!$D$9:$E$58,2,FALSE)=0,\"\",VLOOKUP(EY13,'Footnotes list'!$D$9:$E$58,2,FALSE) ) )","v":""}]
[null,null,"B","TOT_EGSS","Total B - Mining and quarrying, including:",null,null,null,null,null,{"$f":"IF(TRIM(J14)=\"\", \"\", IF(VLOOKUP(J14,'Footnotes list'!$D$9:$E$58,2,FALSE)=0,\"\",VLOOKUP(J14,'Footnotes list'!$D$9:$E$58,2,FALSE) ) )","v":""},null,null,null,null,{"$f":"IF(TRIM(O14)=\"\", \"\", IF(VLOOKUP(O14,'Footnotes list'!$D$9:$E$58,2,FALSE)=0,\"\",VLOOKUP(O14,'Footnotes list'!$D$9:$E$58,2,FALSE) ) )","v":""},null,null,null,null,{"$f":"IF(TRIM(T14)=\"\", \"\", IF(VLOOKUP(T14,'Footnotes list'!$D$9:$E$58,2,FALSE)=0,\"\",VLOOKUP(T14,'Footnotes list'!$D$9:$E$58,2,FALSE) ) )","v":""},null,null,null,null,{"$f":"IF(TRIM(Y14)=\"\", \"\", IF(VLOOKUP(Y14,'Footnotes list'!$D$9:$E$58,2,FALSE)=0,\"\",VLOOKUP(Y14,'Footnotes list'!$D$9:$E$58,2,FALSE) ) )","v":""},null,null,null,null,{"$f":"IF(TRIM(AD14)=\"\", \"\", IF(VLOOKUP(AD14,'Footnotes list'!$D$9:$E$58,2,FALSE)=0,\"\",VLOOKUP(AD14,'Footnotes list'!$D$9:$E$58,2,FALSE) ) )","v":""},null,null,null,null,{"$f":"IF(TRIM(AI14)=\"\", \"\", IF(VLOOKUP(AI14,'Footnotes list'!$D$9:$E$58,2,FALSE)=0,\"\",VLOOKUP(AI14,'Footnotes list'!$D$9:$E$58,2,FALSE) ) )","v":""},null,null,null,null,{"$f":"IF(TRIM(AN14)=\"\", \"\", IF(VLOOKUP(AN14,'Footnotes list'!$D$9:$E$58,2,FALSE)=0,\"\",VLOOKUP(AN14,'Footnotes list'!$D$9:$E$58,2,FALSE) ) )","v":""},null,null,null,null,{"$f":"IF(TRIM(AS14)=\"\", \"\", IF(VLOOKUP(AS14,'Footnotes list'!$D$9:$E$58,2,FALSE)=0,\"\",VLOOKUP(AS14,'Footnotes list'!$D$9:$E$58,2,FALSE) ) )","v":""},null,null,null,null,{"$f":"IF(TRIM(AX14)=\"\", \"\", IF(VLOOKUP(AX14,'Footnotes list'!$D$9:$E$58,2,FALSE)=0,\"\",VLOOKUP(AX14,'Footnotes list'!$D$9:$E$58,2,FALSE) ) )","v":""},null,null,null,null,{"$f":"IF(TRIM(BC14)=\"\", \"\", IF(VLOOKUP(BC14,'Footnotes list'!$D$9:$E$58,2,FALSE)=0,\"\",VLOOKUP(BC14,'Footnotes list'!$D$9:$E$58,2,FALSE) ) )","v":""},null,null,null,null,{"$f":"IF(TRIM(BH14)=\"\", \"\", IF(VLOOKUP(BH14,'Footnotes list'!$D$9:$E$58,2,FALSE)=0,\"\",VLOOKUP(BH14,'Footnotes list'!$D$9:$E$58,2,FALSE) ) )","v":""},null,null,null,null,{"$f":"IF(TRIM(BM14)=\"\", \"\", IF(VLOOKUP(BM14,'Footnotes list'!$D$9:$E$58,2,FALSE)=0,\"\",VLOOKUP(BM14,'Footnotes list'!$D$9:$E$58,2,FALSE) ) )","v":""},null,null,null,null,{"$f":"IF(TRIM(BR14)=\"\", \"\", IF(VLOOKUP(BR14,'Footnotes list'!$D$9:$E$58,2,FALSE)=0,\"\",VLOOKUP(BR14,'Footnotes list'!$D$9:$E$58,2,FALSE) ) )","v":""},null,null,null,null,{"$f":"IF(TRIM(BW14)=\"\", \"\", IF(VLOOKUP(BW14,'Footnotes list'!$D$9:$E$58,2,FALSE)=0,\"\",VLOOKUP(BW14,'Footnotes list'!$D$9:$E$58,2,FALSE) ) )","v":""},null,null,null,null,{"$f":"IF(TRIM(CB14)=\"\", \"\", IF(VLOOKUP(CB14,'Footnotes list'!$D$9:$E$58,2,FALSE)=0,\"\",VLOOKUP(CB14,'Footnotes list'!$D$9:$E$58,2,FALSE) ) )","v":""},null,null,null,null,{"$f":"IF(TRIM(CG14)=\"\", \"\", IF(VLOOKUP(CG14,'Footnotes list'!$D$9:$E$58,2,FALSE)=0,\"\",VLOOKUP(CG14,'Footnotes list'!$D$9:$E$58,2,FALSE) ) )","v":""},null,null,null,null,{"$f":"IF(TRIM(CL14)=\"\", \"\", IF(VLOOKUP(CL14,'Footnotes list'!$D$9:$E$58,2,FALSE)=0,\"\",VLOOKUP(CL14,'Footnotes list'!$D$9:$E$58,2,FALSE) ) )","v":""},null,null,null,null,{"$f":"IF(TRIM(CQ14)=\"\", \"\", IF(VLOOKUP(CQ14,'Footnotes list'!$D$9:$E$58,2,FALSE)=0,\"\",VLOOKUP(CQ14,'Footnotes list'!$D$9:$E$58,2,FALSE) ) )","v":""},null,null,null,null,{"$f":"IF(TRIM(CV14)=\"\", \"\", IF(VLOOKUP(CV14,'Footnotes list'!$D$9:$E$58,2,FALSE)=0,\"\",VLOOKUP(CV14,'Footnotes list'!$D$9:$E$58,2,FALSE) ) )","v":""},null,null,null,null,{"$f":"IF(TRIM(DA14)=\"\", \"\", IF(VLOOKUP(DA14,'Footnotes list'!$D$9:$E$58,2,FALSE)=0,\"\",VLOOKUP(DA14,'Footnotes list'!$D$9:$E$58,2,FALSE) ) )","v":""},null,null,null,null,{"$f":"IF(TRIM(DF14)=\"\", \"\", IF(VLOOKUP(DF14,'Footnotes list'!$D$9:$E$58,2,FALSE)=0,\"\",VLOOKUP(DF14,'Footnotes list'!$D$9:$E$58,2,FALSE) ) )","v":""},null,null,null,null,{"$f":"IF(TRIM(DK14)=\"\", \"\", IF(VLOOKUP(DK14,'Footnotes list'!$D$9:$E$58,2,FALSE)=0,\"\",VLOOKUP(DK14,'Footnotes list'!$D$9:$E$58,2,FALSE) ) )","v":""},null,null,null,null,{"$f":"IF(TRIM(DP14)=\"\", \"\", IF(VLOOKUP(DP14,'Footnotes list'!$D$9:$E$58,2,FALSE)=0,\"\",VLOOKUP(DP14,'Footnotes list'!$D$9:$E$58,2,FALSE) ) )","v":""},null,null,null,null,{"$f":"IF(TRIM(DU14)=\"\", \"\", IF(VLOOKUP(DU14,'Footnotes list'!$D$9:$E$58,2,FALSE)=0,\"\",VLOOKUP(DU14,'Footnotes list'!$D$9:$E$58,2,FALSE) ) )","v":""},null,null,null,null,{"$f":"IF(TRIM(DZ14)=\"\", \"\", IF(VLOOKUP(DZ14,'Footnotes list'!$D$9:$E$58,2,FALSE)=0,\"\",VLOOKUP(DZ14,'Footnotes list'!$D$9:$E$58,2,FALSE) ) )","v":""},null,null,null,null,{"$f":"IF(TRIM(EE14)=\"\", \"\", IF(VLOOKUP(EE14,'Footnotes list'!$D$9:$E$58,2,FALSE)=0,\"\",VLOOKUP(EE14,'Footnotes list'!$D$9:$E$58,2,FALSE) ) )","v":""},null,null,null,null,{"$f":"IF(TRIM(EJ14)=\"\", \"\", IF(VLOOKUP(EJ14,'Footnotes list'!$D$9:$E$58,2,FALSE)=0,\"\",VLOOKUP(EJ14,'Footnotes list'!$D$9:$E$58,2,FALSE) ) )","v":""},null,null,null,null,{"$f":"IF(TRIM(EO14)=\"\", \"\", IF(VLOOKUP(EO14,'Footnotes list'!$D$9:$E$58,2,FALSE)=0,\"\",VLOOKUP(EO14,'Footnotes list'!$D$9:$E$58,2,FALSE) ) )","v":""},null,null,null,null,{"$f":"IF(TRIM(ET14)=\"\", \"\", IF(VLOOKUP(ET14,'Footnotes list'!$D$9:$E$58,2,FALSE)=0,\"\",VLOOKUP(ET14,'Footnotes list'!$D$9:$E$58,2,FALSE) ) )","v":""},null,null,null,null,{"$f":"IF(TRIM(EY14)=\"\", \"\", IF(VLOOKUP(EY14,'Footnotes list'!$D$9:$E$58,2,FALSE)=0,\"\",VLOOKUP(EY14,'Footnotes list'!$D$9:$E$58,2,FALSE) ) )","v":""}]
[null,null,"B","ES_CS","environmental specific services",null,null,null,null,null,{"$f":"IF(TRIM(J15)=\"\", \"\", IF(VLOOKUP(J15,'Footnotes list'!$D$9:$E$58,2,FALSE)=0,\"\",VLOOKUP(J15,'Footnotes list'!$D$9:$E$58,2,FALSE) ) )","v":""},null,null,null,null,{"$f":"IF(TRIM(O15)=\"\", \"\", IF(VLOOKUP(O15,'Footnotes list'!$D$9:$E$58,2,FALSE)=0,\"\",VLOOKUP(O15,'Footnotes list'!$D$9:$E$58,2,FALSE) ) )","v":""},null,null,null,null,{"$f":"IF(TRIM(T15)=\"\", \"\", IF(VLOOKUP(T15,'Footnotes list'!$D$9:$E$58,2,FALSE)=0,\"\",VLOOKUP(T15,'Footnotes list'!$D$9:$E$58,2,FALSE) ) )","v":""},null,null,null,null,{"$f":"IF(TRIM(Y15)=\"\", \"\", IF(VLOOKUP(Y15,'Footnotes list'!$D$9:$E$58,2,FALSE)=0,\"\",VLOOKUP(Y15,'Footnotes list'!$D$9:$E$58,2,FALSE) ) )","v":""},null,null,null,null,{"$f":"IF(TRIM(AD15)=\"\", \"\", IF(VLOOKUP(AD15,'Footnotes list'!$D$9:$E$58,2,FALSE)=0,\"\",VLOOKUP(AD15,'Footnotes list'!$D$9:$E$58,2,FALSE) ) )","v":""},null,null,null,null,{"$f":"IF(TRIM(AI15)=\"\", \"\", IF(VLOOKUP(AI15,'Footnotes list'!$D$9:$E$58,2,FALSE)=0,\"\",VLOOKUP(AI15,'Footnotes list'!$D$9:$E$58,2,FALSE) ) )","v":""},null,null,null,null,{"$f":"IF(TRIM(AN15)=\"\", \"\", IF(VLOOKUP(AN15,'Footnotes list'!$D$9:$E$58,2,FALSE)=0,\"\",VLOOKUP(AN15,'Footnotes list'!$D$9:$E$58,2,FALSE) ) )","v":""},null,null,null,null,{"$f":"IF(TRIM(AS15)=\"\", \"\", IF(VLOOKUP(AS15,'Footnotes list'!$D$9:$E$58,2,FALSE)=0,\"\",VLOOKUP(AS15,'Footnotes list'!$D$9:$E$58,2,FALSE) ) )","v":""},null,null,null,null,{"$f":"IF(TRIM(AX15)=\"\", \"\", IF(VLOOKUP(AX15,'Footnotes list'!$D$9:$E$58,2,FALSE)=0,\"\",VLOOKUP(AX15,'Footnotes list'!$D$9:$E$58,2,FALSE) ) )","v":""},null,null,null,null,{"$f":"IF(TRIM(BC15)=\"\", \"\", IF(VLOOKUP(BC15,'Footnotes list'!$D$9:$E$58,2,FALSE)=0,\"\",VLOOKUP(BC15,'Footnotes list'!$D$9:$E$58,2,FALSE) ) )","v":""},null,null,null,null,{"$f":"IF(TRIM(BH15)=\"\", \"\", IF(VLOOKUP(BH15,'Footnotes list'!$D$9:$E$58,2,FALSE)=0,\"\",VLOOKUP(BH15,'Footnotes list'!$D$9:$E$58,2,FALSE) ) )","v":""},null,null,null,null,{"$f":"IF(TRIM(BM15)=\"\", \"\", IF(VLOOKUP(BM15,'Footnotes list'!$D$9:$E$58,2,FALSE)=0,\"\",VLOOKUP(BM15,'Footnotes list'!$D$9:$E$58,2,FALSE) ) )","v":""},null,null,null,null,{"$f":"IF(TRIM(BR15)=\"\", \"\", IF(VLOOKUP(BR15,'Footnotes list'!$D$9:$E$58,2,FALSE)=0,\"\",VLOOKUP(BR15,'Footnotes list'!$D$9:$E$58,2,FALSE) ) )","v":""},null,null,null,null,{"$f":"IF(TRIM(BW15)=\"\", \"\", IF(VLOOKUP(BW15,'Footnotes list'!$D$9:$E$58,2,FALSE)=0,\"\",VLOOKUP(BW15,'Footnotes list'!$D$9:$E$58,2,FALSE) ) )","v":""},null,null,null,null,{"$f":"IF(TRIM(CB15)=\"\", \"\", IF(VLOOKUP(CB15,'Footnotes list'!$D$9:$E$58,2,FALSE)=0,\"\",VLOOKUP(CB15,'Footnotes list'!$D$9:$E$58,2,FALSE) ) )","v":""},null,null,null,null,{"$f":"IF(TRIM(CG15)=\"\", \"\", IF(VLOOKUP(CG15,'Footnotes list'!$D$9:$E$58,2,FALSE)=0,\"\",VLOOKUP(CG15,'Footnotes list'!$D$9:$E$58,2,FALSE) ) )","v":""},null,null,null,null,{"$f":"IF(TRIM(CL15)=\"\", \"\", IF(VLOOKUP(CL15,'Footnotes list'!$D$9:$E$58,2,FALSE)=0,\"\",VLOOKUP(CL15,'Footnotes list'!$D$9:$E$58,2,FALSE) ) )","v":""},null,null,null,null,{"$f":"IF(TRIM(CQ15)=\"\", \"\", IF(VLOOKUP(CQ15,'Footnotes list'!$D$9:$E$58,2,FALSE)=0,\"\",VLOOKUP(CQ15,'Footnotes list'!$D$9:$E$58,2,FALSE) ) )","v":""},null,null,null,null,{"$f":"IF(TRIM(CV15)=\"\", \"\", IF(VLOOKUP(CV15,'Footnotes list'!$D$9:$E$58,2,FALSE)=0,\"\",VLOOKUP(CV15,'Footnotes list'!$D$9:$E$58,2,FALSE) ) )","v":""},null,null,null,null,{"$f":"IF(TRIM(DA15)=\"\", \"\", IF(VLOOKUP(DA15,'Footnotes list'!$D$9:$E$58,2,FALSE)=0,\"\",VLOOKUP(DA15,'Footnotes list'!$D$9:$E$58,2,FALSE) ) )","v":""},null,null,null,null,{"$f":"IF(TRIM(DF15)=\"\", \"\", IF(VLOOKUP(DF15,'Footnotes list'!$D$9:$E$58,2,FALSE)=0,\"\",VLOOKUP(DF15,'Footnotes list'!$D$9:$E$58,2,FALSE) ) )","v":""},null,null,null,null,{"$f":"IF(TRIM(DK15)=\"\", \"\", IF(VLOOKUP(DK15,'Footnotes list'!$D$9:$E$58,2,FALSE)=0,\"\",VLOOKUP(DK15,'Footnotes list'!$D$9:$E$58,2,FALSE) ) )","v":""},null,null,null,null,{"$f":"IF(TRIM(DP15)=\"\", \"\", IF(VLOOKUP(DP15,'Footnotes list'!$D$9:$E$58,2,FALSE)=0,\"\",VLOOKUP(DP15,'Footnotes list'!$D$9:$E$58,2,FALSE) ) )","v":""},null,null,null,null,{"$f":"IF(TRIM(DU15)=\"\", \"\", IF(VLOOKUP(DU15,'Footnotes list'!$D$9:$E$58,2,FALSE)=0,\"\",VLOOKUP(DU15,'Footnotes list'!$D$9:$E$58,2,FALSE) ) )","v":""},null,null,null,null,{"$f":"IF(TRIM(DZ15)=\"\", \"\", IF(VLOOKUP(DZ15,'Footnotes list'!$D$9:$E$58,2,FALSE)=0,\"\",VLOOKUP(DZ15,'Footnotes list'!$D$9:$E$58,2,FALSE) ) )","v":""},null,null,null,null,{"$f":"IF(TRIM(EE15)=\"\", \"\", IF(VLOOKUP(EE15,'Footnotes list'!$D$9:$E$58,2,FALSE)=0,\"\",VLOOKUP(EE15,'Footnotes list'!$D$9:$E$58,2,FALSE) ) )","v":""},null,null,null,null,{"$f":"IF(TRIM(EJ15)=\"\", \"\", IF(VLOOKUP(EJ15,'Footnotes list'!$D$9:$E$58,2,FALSE)=0,\"\",VLOOKUP(EJ15,'Footnotes list'!$D$9:$E$58,2,FALSE) ) )","v":""},null,null,null,null,{"$f":"IF(TRIM(EO15)=\"\", \"\", IF(VLOOKUP(EO15,'Footnotes list'!$D$9:$E$58,2,FALSE)=0,\"\",VLOOKUP(EO15,'Footnotes list'!$D$9:$E$58,2,FALSE) ) )","v":""},null,null,null,null,{"$f":"IF(TRIM(ET15)=\"\", \"\", IF(VLOOKUP(ET15,'Footnotes list'!$D$9:$E$58,2,FALSE)=0,\"\",VLOOKUP(ET15,'Footnotes list'!$D$9:$E$58,2,FALSE) ) )","v":""},null,null,null,null,{"$f":"IF(TRIM(EY15)=\"\", \"\", IF(VLOOKUP(EY15,'Footnotes list'!$D$9:$E$58,2,FALSE)=0,\"\",VLOOKUP(EY15,'Footnotes list'!$D$9:$E$58,2,FALSE) ) )","v":""}]
[null,null,"B","C_REP","cleaner and resource efficient products",null,null,null,null,null,{"$f":"IF(TRIM(J16)=\"\", \"\", IF(VLOOKUP(J16,'Footnotes list'!$D$9:$E$58,2,FALSE)=0,\"\",VLOOKUP(J16,'Footnotes list'!$D$9:$E$58,2,FALSE) ) )","v":""},null,null,null,null,{"$f":"IF(TRIM(O16)=\"\", \"\", IF(VLOOKUP(O16,'Footnotes list'!$D$9:$E$58,2,FALSE)=0,\"\",VLOOKUP(O16,'Footnotes list'!$D$9:$E$58,2,FALSE) ) )","v":""},null,null,null,null,{"$f":"IF(TRIM(T16)=\"\", \"\", IF(VLOOKUP(T16,'Footnotes list'!$D$9:$E$58,2,FALSE)=0,\"\",VLOOKUP(T16,'Footnotes list'!$D$9:$E$58,2,FALSE) ) )","v":""},null,null,null,null,{"$f":"IF(TRIM(Y16)=\"\", \"\", IF(VLOOKUP(Y16,'Footnotes list'!$D$9:$E$58,2,FALSE)=0,\"\",VLOOKUP(Y16,'Footnotes list'!$D$9:$E$58,2,FALSE) ) )","v":""},null,null,null,null,{"$f":"IF(TRIM(AD16)=\"\", \"\", IF(VLOOKUP(AD16,'Footnotes list'!$D$9:$E$58,2,FALSE)=0,\"\",VLOOKUP(AD16,'Footnotes list'!$D$9:$E$58,2,FALSE) ) )","v":""},null,null,null,null,{"$f":"IF(TRIM(AI16)=\"\", \"\", IF(VLOOKUP(AI16,'Footnotes list'!$D$9:$E$58,2,FALSE)=0,\"\",VLOOKUP(AI16,'Footnotes list'!$D$9:$E$58,2,FALSE) ) )","v":""},null,null,null,null,{"$f":"IF(TRIM(AN16)=\"\", \"\", IF(VLOOKUP(AN16,'Footnotes list'!$D$9:$E$58,2,FALSE)=0,\"\",VLOOKUP(AN16,'Footnotes list'!$D$9:$E$58,2,FALSE) ) )","v":""},null,null,null,null,{"$f":"IF(TRIM(AS16)=\"\", \"\", IF(VLOOKUP(AS16,'Footnotes list'!$D$9:$E$58,2,FALSE)=0,\"\",VLOOKUP(AS16,'Footnotes list'!$D$9:$E$58,2,FALSE) ) )","v":""},null,null,null,null,{"$f":"IF(TRIM(AX16)=\"\", \"\", IF(VLOOKUP(AX16,'Footnotes list'!$D$9:$E$58,2,FALSE)=0,\"\",VLOOKUP(AX16,'Footnotes list'!$D$9:$E$58,2,FALSE) ) )","v":""},null,null,null,null,{"$f":"IF(TRIM(BC16)=\"\", \"\", IF(VLOOKUP(BC16,'Footnotes list'!$D$9:$E$58,2,FALSE)=0,\"\",VLOOKUP(BC16,'Footnotes list'!$D$9:$E$58,2,FALSE) ) )","v":""},null,null,null,null,{"$f":"IF(TRIM(BH16)=\"\", \"\", IF(VLOOKUP(BH16,'Footnotes list'!$D$9:$E$58,2,FALSE)=0,\"\",VLOOKUP(BH16,'Footnotes list'!$D$9:$E$58,2,FALSE) ) )","v":""},null,null,null,null,{"$f":"IF(TRIM(BM16)=\"\", \"\", IF(VLOOKUP(BM16,'Footnotes list'!$D$9:$E$58,2,FALSE)=0,\"\",VLOOKUP(BM16,'Footnotes list'!$D$9:$E$58,2,FALSE) ) )","v":""},null,null,null,null,{"$f":"IF(TRIM(BR16)=\"\", \"\", IF(VLOOKUP(BR16,'Footnotes list'!$D$9:$E$58,2,FALSE)=0,\"\",VLOOKUP(BR16,'Footnotes list'!$D$9:$E$58,2,FALSE) ) )","v":""},null,null,null,null,{"$f":"IF(TRIM(BW16)=\"\", \"\", IF(VLOOKUP(BW16,'Footnotes list'!$D$9:$E$58,2,FALSE)=0,\"\",VLOOKUP(BW16,'Footnotes list'!$D$9:$E$58,2,FALSE) ) )","v":""},null,null,null,null,{"$f":"IF(TRIM(CB16)=\"\", \"\", IF(VLOOKUP(CB16,'Footnotes list'!$D$9:$E$58,2,FALSE)=0,\"\",VLOOKUP(CB16,'Footnotes list'!$D$9:$E$58,2,FALSE) ) )","v":""},null,null,null,null,{"$f":"IF(TRIM(CG16)=\"\", \"\", IF(VLOOKUP(CG16,'Footnotes list'!$D$9:$E$58,2,FALSE)=0,\"\",VLOOKUP(CG16,'Footnotes list'!$D$9:$E$58,2,FALSE) ) )","v":""},null,null,null,null,{"$f":"IF(TRIM(CL16)=\"\", \"\", IF(VLOOKUP(CL16,'Footnotes list'!$D$9:$E$58,2,FALSE)=0,\"\",VLOOKUP(CL16,'Footnotes list'!$D$9:$E$58,2,FALSE) ) )","v":""},null,null,null,null,{"$f":"IF(TRIM(CQ16)=\"\", \"\", IF(VLOOKUP(CQ16,'Footnotes list'!$D$9:$E$58,2,FALSE)=0,\"\",VLOOKUP(CQ16,'Footnotes list'!$D$9:$E$58,2,FALSE) ) )","v":""},null,null,null,null,{"$f":"IF(TRIM(CV16)=\"\", \"\", IF(VLOOKUP(CV16,'Footnotes list'!$D$9:$E$58,2,FALSE)=0,\"\",VLOOKUP(CV16,'Footnotes list'!$D$9:$E$58,2,FALSE) ) )","v":""},null,null,null,null,{"$f":"IF(TRIM(DA16)=\"\", \"\", IF(VLOOKUP(DA16,'Footnotes list'!$D$9:$E$58,2,FALSE)=0,\"\",VLOOKUP(DA16,'Footnotes list'!$D$9:$E$58,2,FALSE) ) )","v":""},null,null,null,null,{"$f":"IF(TRIM(DF16)=\"\", \"\", IF(VLOOKUP(DF16,'Footnotes list'!$D$9:$E$58,2,FALSE)=0,\"\",VLOOKUP(DF16,'Footnotes list'!$D$9:$E$58,2,FALSE) ) )","v":""},null,null,null,null,{"$f":"IF(TRIM(DK16)=\"\", \"\", IF(VLOOKUP(DK16,'Footnotes list'!$D$9:$E$58,2,FALSE)=0,\"\",VLOOKUP(DK16,'Footnotes list'!$D$9:$E$58,2,FALSE) ) )","v":""},null,null,null,null,{"$f":"IF(TRIM(DP16)=\"\", \"\", IF(VLOOKUP(DP16,'Footnotes list'!$D$9:$E$58,2,FALSE)=0,\"\",VLOOKUP(DP16,'Footnotes list'!$D$9:$E$58,2,FALSE) ) )","v":""},null,null,null,null,{"$f":"IF(TRIM(DU16)=\"\", \"\", IF(VLOOKUP(DU16,'Footnotes list'!$D$9:$E$58,2,FALSE)=0,\"\",VLOOKUP(DU16,'Footnotes list'!$D$9:$E$58,2,FALSE) ) )","v":""},null,null,null,null,{"$f":"IF(TRIM(DZ16)=\"\", \"\", IF(VLOOKUP(DZ16,'Footnotes list'!$D$9:$E$58,2,FALSE)=0,\"\",VLOOKUP(DZ16,'Footnotes list'!$D$9:$E$58,2,FALSE) ) )","v":""},null,null,null,null,{"$f":"IF(TRIM(EE16)=\"\", \"\", IF(VLOOKUP(EE16,'Footnotes list'!$D$9:$E$58,2,FALSE)=0,\"\",VLOOKUP(EE16,'Footnotes list'!$D$9:$E$58,2,FALSE) ) )","v":""},null,null,null,null,{"$f":"IF(TRIM(EJ16)=\"\", \"\", IF(VLOOKUP(EJ16,'Footnotes list'!$D$9:$E$58,2,FALSE)=0,\"\",VLOOKUP(EJ16,'Footnotes list'!$D$9:$E$58,2,FALSE) ) )","v":""},null,null,null,null,{"$f":"IF(TRIM(EO16)=\"\", \"\", IF(VLOOKUP(EO16,'Footnotes list'!$D$9:$E$58,2,FALSE)=0,\"\",VLOOKUP(EO16,'Footnotes list'!$D$9:$E$58,2,FALSE) ) )","v":""},null,null,null,null,{"$f":"IF(TRIM(ET16)=\"\", \"\", IF(VLOOKUP(ET16,'Footnotes list'!$D$9:$E$58,2,FALSE)=0,\"\",VLOOKUP(ET16,'Footnotes list'!$D$9:$E$58,2,FALSE) ) )","v":""},null,null,null,null,{"$f":"IF(TRIM(EY16)=\"\", \"\", IF(VLOOKUP(EY16,'Footnotes list'!$D$9:$E$58,2,FALSE)=0,\"\",VLOOKUP(EY16,'Footnotes list'!$D$9:$E$58,2,FALSE) ) )","v":""}]
[null,null,"C","TOT_EGSS","Total C - Manufacturing, including:",null,null,null,null,null,{"$f":"IF(TRIM(J17)=\"\", \"\", IF(VLOOKUP(J17,'Footnotes list'!$D$9:$E$58,2,FALSE)=0,\"\",VLOOKUP(J17,'Footnotes list'!$D$9:$E$58,2,FALSE) ) )","v":""},null,null,null,null,{"$f":"IF(TRIM(O17)=\"\", \"\", IF(VLOOKUP(O17,'Footnotes list'!$D$9:$E$58,2,FALSE)=0,\"\",VLOOKUP(O17,'Footnotes list'!$D$9:$E$58,2,FALSE) ) )","v":""},null,null,null,null,{"$f":"IF(TRIM(T17)=\"\", \"\", IF(VLOOKUP(T17,'Footnotes list'!$D$9:$E$58,2,FALSE)=0,\"\",VLOOKUP(T17,'Footnotes list'!$D$9:$E$58,2,FALSE) ) )","v":""},null,null,null,null,{"$f":"IF(TRIM(Y17)=\"\", \"\", IF(VLOOKUP(Y17,'Footnotes list'!$D$9:$E$58,2,FALSE)=0,\"\",VLOOKUP(Y17,'Footnotes list'!$D$9:$E$58,2,FALSE) ) )","v":""},null,null,null,null,{"$f":"IF(TRIM(AD17)=\"\", \"\", IF(VLOOKUP(AD17,'Footnotes list'!$D$9:$E$58,2,FALSE)=0,\"\",VLOOKUP(AD17,'Footnotes list'!$D$9:$E$58,2,FALSE) ) )","v":""},null,null,null,null,{"$f":"IF(TRIM(AI17)=\"\", \"\", IF(VLOOKUP(AI17,'Footnotes list'!$D$9:$E$58,2,FALSE)=0,\"\",VLOOKUP(AI17,'Footnotes list'!$D$9:$E$58,2,FALSE) ) )","v":""},null,null,null,null,{"$f":"IF(TRIM(AN17)=\"\", \"\", IF(VLOOKUP(AN17,'Footnotes list'!$D$9:$E$58,2,FALSE)=0,\"\",VLOOKUP(AN17,'Footnotes list'!$D$9:$E$58,2,FALSE) ) )","v":""},null,null,null,null,{"$f":"IF(TRIM(AS17)=\"\", \"\", IF(VLOOKUP(AS17,'Footnotes list'!$D$9:$E$58,2,FALSE)=0,\"\",VLOOKUP(AS17,'Footnotes list'!$D$9:$E$58,2,FALSE) ) )","v":""},null,null,null,null,{"$f":"IF(TRIM(AX17)=\"\", \"\", IF(VLOOKUP(AX17,'Footnotes list'!$D$9:$E$58,2,FALSE)=0,\"\",VLOOKUP(AX17,'Footnotes list'!$D$9:$E$58,2,FALSE) ) )","v":""},null,null,null,null,{"$f":"IF(TRIM(BC17)=\"\", \"\", IF(VLOOKUP(BC17,'Footnotes list'!$D$9:$E$58,2,FALSE)=0,\"\",VLOOKUP(BC17,'Footnotes list'!$D$9:$E$58,2,FALSE) ) )","v":""},null,null,null,null,{"$f":"IF(TRIM(BH17)=\"\", \"\", IF(VLOOKUP(BH17,'Footnotes list'!$D$9:$E$58,2,FALSE)=0,\"\",VLOOKUP(BH17,'Footnotes list'!$D$9:$E$58,2,FALSE) ) )","v":""},null,null,null,null,{"$f":"IF(TRIM(BM17)=\"\", \"\", IF(VLOOKUP(BM17,'Footnotes list'!$D$9:$E$58,2,FALSE)=0,\"\",VLOOKUP(BM17,'Footnotes list'!$D$9:$E$58,2,FALSE) ) )","v":""},null,null,null,null,{"$f":"IF(TRIM(BR17)=\"\", \"\", IF(VLOOKUP(BR17,'Footnotes list'!$D$9:$E$58,2,FALSE)=0,\"\",VLOOKUP(BR17,'Footnotes list'!$D$9:$E$58,2,FALSE) ) )","v":""},null,null,null,null,{"$f":"IF(TRIM(BW17)=\"\", \"\", IF(VLOOKUP(BW17,'Footnotes list'!$D$9:$E$58,2,FALSE)=0,\"\",VLOOKUP(BW17,'Footnotes list'!$D$9:$E$58,2,FALSE) ) )","v":""},null,null,null,null,{"$f":"IF(TRIM(CB17)=\"\", \"\", IF(VLOOKUP(CB17,'Footnotes list'!$D$9:$E$58,2,FALSE)=0,\"\",VLOOKUP(CB17,'Footnotes list'!$D$9:$E$58,2,FALSE) ) )","v":""},null,null,null,null,{"$f":"IF(TRIM(CG17)=\"\", \"\", IF(VLOOKUP(CG17,'Footnotes list'!$D$9:$E$58,2,FALSE)=0,\"\",VLOOKUP(CG17,'Footnotes list'!$D$9:$E$58,2,FALSE) ) )","v":""},null,null,null,null,{"$f":"IF(TRIM(CL17)=\"\", \"\", IF(VLOOKUP(CL17,'Footnotes list'!$D$9:$E$58,2,FALSE)=0,\"\",VLOOKUP(CL17,'Footnotes list'!$D$9:$E$58,2,FALSE) ) )","v":""},null,null,null,null,{"$f":"IF(TRIM(CQ17)=\"\", \"\", IF(VLOOKUP(CQ17,'Footnotes list'!$D$9:$E$58,2,FALSE)=0,\"\",VLOOKUP(CQ17,'Footnotes list'!$D$9:$E$58,2,FALSE) ) )","v":""},null,null,null,null,{"$f":"IF(TRIM(CV17)=\"\", \"\", IF(VLOOKUP(CV17,'Footnotes list'!$D$9:$E$58,2,FALSE)=0,\"\",VLOOKUP(CV17,'Footnotes list'!$D$9:$E$58,2,FALSE) ) )","v":""},null,null,null,null,{"$f":"IF(TRIM(DA17)=\"\", \"\", IF(VLOOKUP(DA17,'Footnotes list'!$D$9:$E$58,2,FALSE)=0,\"\",VLOOKUP(DA17,'Footnotes list'!$D$9:$E$58,2,FALSE) ) )","v":""},null,null,null,null,{"$f":"IF(TRIM(DF17)=\"\", \"\", IF(VLOOKUP(DF17,'Footnotes list'!$D$9:$E$58,2,FALSE)=0,\"\",VLOOKUP(DF17,'Footnotes list'!$D$9:$E$58,2,FALSE) ) )","v":""},null,null,null,null,{"$f":"IF(TRIM(DK17)=\"\", \"\", IF(VLOOKUP(DK17,'Footnotes list'!$D$9:$E$58,2,FALSE)=0,\"\",VLOOKUP(DK17,'Footnotes list'!$D$9:$E$58,2,FALSE) ) )","v":""},null,null,null,null,{"$f":"IF(TRIM(DP17)=\"\", \"\", IF(VLOOKUP(DP17,'Footnotes list'!$D$9:$E$58,2,FALSE)=0,\"\",VLOOKUP(DP17,'Footnotes list'!$D$9:$E$58,2,FALSE) ) )","v":""},null,null,null,null,{"$f":"IF(TRIM(DU17)=\"\", \"\", IF(VLOOKUP(DU17,'Footnotes list'!$D$9:$E$58,2,FALSE)=0,\"\",VLOOKUP(DU17,'Footnotes list'!$D$9:$E$58,2,FALSE) ) )","v":""},null,null,null,null,{"$f":"IF(TRIM(DZ17)=\"\", \"\", IF(VLOOKUP(DZ17,'Footnotes list'!$D$9:$E$58,2,FALSE)=0,\"\",VLOOKUP(DZ17,'Footnotes list'!$D$9:$E$58,2,FALSE) ) )","v":""},null,null,null,null,{"$f":"IF(TRIM(EE17)=\"\", \"\", IF(VLOOKUP(EE17,'Footnotes list'!$D$9:$E$58,2,FALSE)=0,\"\",VLOOKUP(EE17,'Footnotes list'!$D$9:$E$58,2,FALSE) ) )","v":""},null,null,null,null,{"$f":"IF(TRIM(EJ17)=\"\", \"\", IF(VLOOKUP(EJ17,'Footnotes list'!$D$9:$E$58,2,FALSE)=0,\"\",VLOOKUP(EJ17,'Footnotes list'!$D$9:$E$58,2,FALSE) ) )","v":""},null,null,null,null,{"$f":"IF(TRIM(EO17)=\"\", \"\", IF(VLOOKUP(EO17,'Footnotes list'!$D$9:$E$58,2,FALSE)=0,\"\",VLOOKUP(EO17,'Footnotes list'!$D$9:$E$58,2,FALSE) ) )","v":""},null,null,null,null,{"$f":"IF(TRIM(ET17)=\"\", \"\", IF(VLOOKUP(ET17,'Footnotes list'!$D$9:$E$58,2,FALSE)=0,\"\",VLOOKUP(ET17,'Footnotes list'!$D$9:$E$58,2,FALSE) ) )","v":""},null,null,null,null,{"$f":"IF(TRIM(EY17)=\"\", \"\", IF(VLOOKUP(EY17,'Footnotes list'!$D$9:$E$58,2,FALSE)=0,\"\",VLOOKUP(EY17,'Footnotes list'!$D$9:$E$58,2,FALSE) ) )","v":""}]
[null,null,"C","ES_CS","environmental specific services",null,null,null,null,null,{"$f":"IF(TRIM(J18)=\"\", \"\", IF(VLOOKUP(J18,'Footnotes list'!$D$9:$E$58,2,FALSE)=0,\"\",VLOOKUP(J18,'Footnotes list'!$D$9:$E$58,2,FALSE) ) )","v":""},null,null,null,null,{"$f":"IF(TRIM(O18)=\"\", \"\", IF(VLOOKUP(O18,'Footnotes list'!$D$9:$E$58,2,FALSE)=0,\"\",VLOOKUP(O18,'Footnotes list'!$D$9:$E$58,2,FALSE) ) )","v":""},null,null,null,null,{"$f":"IF(TRIM(T18)=\"\", \"\", IF(VLOOKUP(T18,'Footnotes list'!$D$9:$E$58,2,FALSE)=0,\"\",VLOOKUP(T18,'Footnotes list'!$D$9:$E$58,2,FALSE) ) )","v":""},null,null,null,null,{"$f":"IF(TRIM(Y18)=\"\", \"\", IF(VLOOKUP(Y18,'Footnotes list'!$D$9:$E$58,2,FALSE)=0,\"\",VLOOKUP(Y18,'Footnotes list'!$D$9:$E$58,2,FALSE) ) )","v":""},null,null,null,null,{"$f":"IF(TRIM(AD18)=\"\", \"\", IF(VLOOKUP(AD18,'Footnotes list'!$D$9:$E$58,2,FALSE)=0,\"\",VLOOKUP(AD18,'Footnotes list'!$D$9:$E$58,2,FALSE) ) )","v":""},null,null,null,null,{"$f":"IF(TRIM(AI18)=\"\", \"\", IF(VLOOKUP(AI18,'Footnotes list'!$D$9:$E$58,2,FALSE)=0,\"\",VLOOKUP(AI18,'Footnotes list'!$D$9:$E$58,2,FALSE) ) )","v":""},null,null,null,null,{"$f":"IF(TRIM(AN18)=\"\", \"\", IF(VLOOKUP(AN18,'Footnotes list'!$D$9:$E$58,2,FALSE)=0,\"\",VLOOKUP(AN18,'Footnotes list'!$D$9:$E$58,2,FALSE) ) )","v":""},null,null,null,null,{"$f":"IF(TRIM(AS18)=\"\", \"\", IF(VLOOKUP(AS18,'Footnotes list'!$D$9:$E$58,2,FALSE)=0,\"\",VLOOKUP(AS18,'Footnotes list'!$D$9:$E$58,2,FALSE) ) )","v":""},null,null,null,null,{"$f":"IF(TRIM(AX18)=\"\", \"\", IF(VLOOKUP(AX18,'Footnotes list'!$D$9:$E$58,2,FALSE)=0,\"\",VLOOKUP(AX18,'Footnotes list'!$D$9:$E$58,2,FALSE) ) )","v":""},null,null,null,null,{"$f":"IF(TRIM(BC18)=\"\", \"\", IF(VLOOKUP(BC18,'Footnotes list'!$D$9:$E$58,2,FALSE)=0,\"\",VLOOKUP(BC18,'Footnotes list'!$D$9:$E$58,2,FALSE) ) )","v":""},null,null,null,null,{"$f":"IF(TRIM(BH18)=\"\", \"\", IF(VLOOKUP(BH18,'Footnotes list'!$D$9:$E$58,2,FALSE)=0,\"\",VLOOKUP(BH18,'Footnotes list'!$D$9:$E$58,2,FALSE) ) )","v":""},null,null,null,null,{"$f":"IF(TRIM(BM18)=\"\", \"\", IF(VLOOKUP(BM18,'Footnotes list'!$D$9:$E$58,2,FALSE)=0,\"\",VLOOKUP(BM18,'Footnotes list'!$D$9:$E$58,2,FALSE) ) )","v":""},null,null,null,null,{"$f":"IF(TRIM(BR18)=\"\", \"\", IF(VLOOKUP(BR18,'Footnotes list'!$D$9:$E$58,2,FALSE)=0,\"\",VLOOKUP(BR18,'Footnotes list'!$D$9:$E$58,2,FALSE) ) )","v":""},null,null,null,null,{"$f":"IF(TRIM(BW18)=\"\", \"\", IF(VLOOKUP(BW18,'Footnotes list'!$D$9:$E$58,2,FALSE)=0,\"\",VLOOKUP(BW18,'Footnotes list'!$D$9:$E$58,2,FALSE) ) )","v":""},null,null,null,null,{"$f":"IF(TRIM(CB18)=\"\", \"\", IF(VLOOKUP(CB18,'Footnotes list'!$D$9:$E$58,2,FALSE)=0,\"\",VLOOKUP(CB18,'Footnotes list'!$D$9:$E$58,2,FALSE) ) )","v":""},null,null,null,null,{"$f":"IF(TRIM(CG18)=\"\", \"\", IF(VLOOKUP(CG18,'Footnotes list'!$D$9:$E$58,2,FALSE)=0,\"\",VLOOKUP(CG18,'Footnotes list'!$D$9:$E$58,2,FALSE) ) )","v":""},null,null,null,null,{"$f":"IF(TRIM(CL18)=\"\", \"\", IF(VLOOKUP(CL18,'Footnotes list'!$D$9:$E$58,2,FALSE)=0,\"\",VLOOKUP(CL18,'Footnotes list'!$D$9:$E$58,2,FALSE) ) )","v":""},null,null,null,null,{"$f":"IF(TRIM(CQ18)=\"\", \"\", IF(VLOOKUP(CQ18,'Footnotes list'!$D$9:$E$58,2,FALSE)=0,\"\",VLOOKUP(CQ18,'Footnotes list'!$D$9:$E$58,2,FALSE) ) )","v":""},null,null,null,null,{"$f":"IF(TRIM(CV18)=\"\", \"\", IF(VLOOKUP(CV18,'Footnotes list'!$D$9:$E$58,2,FALSE)=0,\"\",VLOOKUP(CV18,'Footnotes list'!$D$9:$E$58,2,FALSE) ) )","v":""},null,null,null,null,{"$f":"IF(TRIM(DA18)=\"\", \"\", IF(VLOOKUP(DA18,'Footnotes list'!$D$9:$E$58,2,FALSE)=0,\"\",VLOOKUP(DA18,'Footnotes list'!$D$9:$E$58,2,FALSE) ) )","v":""},null,null,null,null,{"$f":"IF(TRIM(DF18)=\"\", \"\", IF(VLOOKUP(DF18,'Footnotes list'!$D$9:$E$58,2,FALSE)=0,\"\",VLOOKUP(DF18,'Footnotes list'!$D$9:$E$58,2,FALSE) ) )","v":""},null,null,null,null,{"$f":"IF(TRIM(DK18)=\"\", \"\", IF(VLOOKUP(DK18,'Footnotes list'!$D$9:$E$58,2,FALSE)=0,\"\",VLOOKUP(DK18,'Footnotes list'!$D$9:$E$58,2,FALSE) ) )","v":""},null,null,null,null,{"$f":"IF(TRIM(DP18)=\"\", \"\", IF(VLOOKUP(DP18,'Footnotes list'!$D$9:$E$58,2,FALSE)=0,\"\",VLOOKUP(DP18,'Footnotes list'!$D$9:$E$58,2,FALSE) ) )","v":""},null,null,null,null,{"$f":"IF(TRIM(DU18)=\"\", \"\", IF(VLOOKUP(DU18,'Footnotes list'!$D$9:$E$58,2,FALSE)=0,\"\",VLOOKUP(DU18,'Footnotes list'!$D$9:$E$58,2,FALSE) ) )","v":""},null,null,null,null,{"$f":"IF(TRIM(DZ18)=\"\", \"\", IF(VLOOKUP(DZ18,'Footnotes list'!$D$9:$E$58,2,FALSE)=0,\"\",VLOOKUP(DZ18,'Footnotes list'!$D$9:$E$58,2,FALSE) ) )","v":""},null,null,null,null,{"$f":"IF(TRIM(EE18)=\"\", \"\", IF(VLOOKUP(EE18,'Footnotes list'!$D$9:$E$58,2,FALSE)=0,\"\",VLOOKUP(EE18,'Footnotes list'!$D$9:$E$58,2,FALSE) ) )","v":""},null,null,null,null,{"$f":"IF(TRIM(EJ18)=\"\", \"\", IF(VLOOKUP(EJ18,'Footnotes list'!$D$9:$E$58,2,FALSE)=0,\"\",VLOOKUP(EJ18,'Footnotes list'!$D$9:$E$58,2,FALSE) ) )","v":""},null,null,null,null,{"$f":"IF(TRIM(EO18)=\"\", \"\", IF(VLOOKUP(EO18,'Footnotes list'!$D$9:$E$58,2,FALSE)=0,\"\",VLOOKUP(EO18,'Footnotes list'!$D$9:$E$58,2,FALSE) ) )","v":""},null,null,null,null,{"$f":"IF(TRIM(ET18)=\"\", \"\", IF(VLOOKUP(ET18,'Footnotes list'!$D$9:$E$58,2,FALSE)=0,\"\",VLOOKUP(ET18,'Footnotes list'!$D$9:$E$58,2,FALSE) ) )","v":""},null,null,null,null,{"$f":"IF(TRIM(EY18)=\"\", \"\", IF(VLOOKUP(EY18,'Footnotes list'!$D$9:$E$58,2,FALSE)=0,\"\",VLOOKUP(EY18,'Footnotes list'!$D$9:$E$58,2,FALSE) ) )","v":""}]
[null,null,"C","C_REP","cleaner and resource efficient products",null,null,null,null,null,{"$f":"IF(TRIM(J19)=\"\", \"\", IF(VLOOKUP(J19,'Footnotes list'!$D$9:$E$58,2,FALSE)=0,\"\",VLOOKUP(J19,'Footnotes list'!$D$9:$E$58,2,FALSE) ) )","v":""},null,null,null,null,{"$f":"IF(TRIM(O19)=\"\", \"\", IF(VLOOKUP(O19,'Footnotes list'!$D$9:$E$58,2,FALSE)=0,\"\",VLOOKUP(O19,'Footnotes list'!$D$9:$E$58,2,FALSE) ) )","v":""},null,null,null,null,{"$f":"IF(TRIM(T19)=\"\", \"\", IF(VLOOKUP(T19,'Footnotes list'!$D$9:$E$58,2,FALSE)=0,\"\",VLOOKUP(T19,'Footnotes list'!$D$9:$E$58,2,FALSE) ) )","v":""},null,null,null,null,{"$f":"IF(TRIM(Y19)=\"\", \"\", IF(VLOOKUP(Y19,'Footnotes list'!$D$9:$E$58,2,FALSE)=0,\"\",VLOOKUP(Y19,'Footnotes list'!$D$9:$E$58,2,FALSE) ) )","v":""},null,null,null,null,{"$f":"IF(TRIM(AD19)=\"\", \"\", IF(VLOOKUP(AD19,'Footnotes list'!$D$9:$E$58,2,FALSE)=0,\"\",VLOOKUP(AD19,'Footnotes list'!$D$9:$E$58,2,FALSE) ) )","v":""},null,null,null,null,{"$f":"IF(TRIM(AI19)=\"\", \"\", IF(VLOOKUP(AI19,'Footnotes list'!$D$9:$E$58,2,FALSE)=0,\"\",VLOOKUP(AI19,'Footnotes list'!$D$9:$E$58,2,FALSE) ) )","v":""},null,null,null,null,{"$f":"IF(TRIM(AN19)=\"\", \"\", IF(VLOOKUP(AN19,'Footnotes list'!$D$9:$E$58,2,FALSE)=0,\"\",VLOOKUP(AN19,'Footnotes list'!$D$9:$E$58,2,FALSE) ) )","v":""},null,null,null,null,{"$f":"IF(TRIM(AS19)=\"\", \"\", IF(VLOOKUP(AS19,'Footnotes list'!$D$9:$E$58,2,FALSE)=0,\"\",VLOOKUP(AS19,'Footnotes list'!$D$9:$E$58,2,FALSE) ) )","v":""},null,null,null,null,{"$f":"IF(TRIM(AX19)=\"\", \"\", IF(VLOOKUP(AX19,'Footnotes list'!$D$9:$E$58,2,FALSE)=0,\"\",VLOOKUP(AX19,'Footnotes list'!$D$9:$E$58,2,FALSE) ) )","v":""},null,null,null,null,{"$f":"IF(TRIM(BC19)=\"\", \"\", IF(VLOOKUP(BC19,'Footnotes list'!$D$9:$E$58,2,FALSE)=0,\"\",VLOOKUP(BC19,'Footnotes list'!$D$9:$E$58,2,FALSE) ) )","v":""},null,null,null,null,{"$f":"IF(TRIM(BH19)=\"\", \"\", IF(VLOOKUP(BH19,'Footnotes list'!$D$9:$E$58,2,FALSE)=0,\"\",VLOOKUP(BH19,'Footnotes list'!$D$9:$E$58,2,FALSE) ) )","v":""},null,null,null,null,{"$f":"IF(TRIM(BM19)=\"\", \"\", IF(VLOOKUP(BM19,'Footnotes list'!$D$9:$E$58,2,FALSE)=0,\"\",VLOOKUP(BM19,'Footnotes list'!$D$9:$E$58,2,FALSE) ) )","v":""},null,null,null,null,{"$f":"IF(TRIM(BR19)=\"\", \"\", IF(VLOOKUP(BR19,'Footnotes list'!$D$9:$E$58,2,FALSE)=0,\"\",VLOOKUP(BR19,'Footnotes list'!$D$9:$E$58,2,FALSE) ) )","v":""},null,null,null,null,{"$f":"IF(TRIM(BW19)=\"\", \"\", IF(VLOOKUP(BW19,'Footnotes list'!$D$9:$E$58,2,FALSE)=0,\"\",VLOOKUP(BW19,'Footnotes list'!$D$9:$E$58,2,FALSE) ) )","v":""},null,null,null,null,{"$f":"IF(TRIM(CB19)=\"\", \"\", IF(VLOOKUP(CB19,'Footnotes list'!$D$9:$E$58,2,FALSE)=0,\"\",VLOOKUP(CB19,'Footnotes list'!$D$9:$E$58,2,FALSE) ) )","v":""},null,null,null,null,{"$f":"IF(TRIM(CG19)=\"\", \"\", IF(VLOOKUP(CG19,'Footnotes list'!$D$9:$E$58,2,FALSE)=0,\"\",VLOOKUP(CG19,'Footnotes list'!$D$9:$E$58,2,FALSE) ) )","v":""},null,null,null,null,{"$f":"IF(TRIM(CL19)=\"\", \"\", IF(VLOOKUP(CL19,'Footnotes list'!$D$9:$E$58,2,FALSE)=0,\"\",VLOOKUP(CL19,'Footnotes list'!$D$9:$E$58,2,FALSE) ) )","v":""},null,null,null,null,{"$f":"IF(TRIM(CQ19)=\"\", \"\", IF(VLOOKUP(CQ19,'Footnotes list'!$D$9:$E$58,2,FALSE)=0,\"\",VLOOKUP(CQ19,'Footnotes list'!$D$9:$E$58,2,FALSE) ) )","v":""},null,null,null,null,{"$f":"IF(TRIM(CV19)=\"\", \"\", IF(VLOOKUP(CV19,'Footnotes list'!$D$9:$E$58,2,FALSE)=0,\"\",VLOOKUP(CV19,'Footnotes list'!$D$9:$E$58,2,FALSE) ) )","v":""},null,null,null,null,{"$f":"IF(TRIM(DA19)=\"\", \"\", IF(VLOOKUP(DA19,'Footnotes list'!$D$9:$E$58,2,FALSE)=0,\"\",VLOOKUP(DA19,'Footnotes list'!$D$9:$E$58,2,FALSE) ) )","v":""},null,null,null,null,{"$f":"IF(TRIM(DF19)=\"\", \"\", IF(VLOOKUP(DF19,'Footnotes list'!$D$9:$E$58,2,FALSE)=0,\"\",VLOOKUP(DF19,'Footnotes list'!$D$9:$E$58,2,FALSE) ) )","v":""},null,null,null,null,{"$f":"IF(TRIM(DK19)=\"\", \"\", IF(VLOOKUP(DK19,'Footnotes list'!$D$9:$E$58,2,FALSE)=0,\"\",VLOOKUP(DK19,'Footnotes list'!$D$9:$E$58,2,FALSE) ) )","v":""},null,null,null,null,{"$f":"IF(TRIM(DP19)=\"\", \"\", IF(VLOOKUP(DP19,'Footnotes list'!$D$9:$E$58,2,FALSE)=0,\"\",VLOOKUP(DP19,'Footnotes list'!$D$9:$E$58,2,FALSE) ) )","v":""},null,null,null,null,{"$f":"IF(TRIM(DU19)=\"\", \"\", IF(VLOOKUP(DU19,'Footnotes list'!$D$9:$E$58,2,FALSE)=0,\"\",VLOOKUP(DU19,'Footnotes list'!$D$9:$E$58,2,FALSE) ) )","v":""},null,null,null,null,{"$f":"IF(TRIM(DZ19)=\"\", \"\", IF(VLOOKUP(DZ19,'Footnotes list'!$D$9:$E$58,2,FALSE)=0,\"\",VLOOKUP(DZ19,'Footnotes list'!$D$9:$E$58,2,FALSE) ) )","v":""},null,null,null,null,{"$f":"IF(TRIM(EE19)=\"\", \"\", IF(VLOOKUP(EE19,'Footnotes list'!$D$9:$E$58,2,FALSE)=0,\"\",VLOOKUP(EE19,'Footnotes list'!$D$9:$E$58,2,FALSE) ) )","v":""},null,null,null,null,{"$f":"IF(TRIM(EJ19)=\"\", \"\", IF(VLOOKUP(EJ19,'Footnotes list'!$D$9:$E$58,2,FALSE)=0,\"\",VLOOKUP(EJ19,'Footnotes list'!$D$9:$E$58,2,FALSE) ) )","v":""},null,null,null,null,{"$f":"IF(TRIM(EO19)=\"\", \"\", IF(VLOOKUP(EO19,'Footnotes list'!$D$9:$E$58,2,FALSE)=0,\"\",VLOOKUP(EO19,'Footnotes list'!$D$9:$E$58,2,FALSE) ) )","v":""},null,null,null,null,{"$f":"IF(TRIM(ET19)=\"\", \"\", IF(VLOOKUP(ET19,'Footnotes list'!$D$9:$E$58,2,FALSE)=0,\"\",VLOOKUP(ET19,'Footnotes list'!$D$9:$E$58,2,FALSE) ) )","v":""},null,null,null,null,{"$f":"IF(TRIM(EY19)=\"\", \"\", IF(VLOOKUP(EY19,'Footnotes list'!$D$9:$E$58,2,FALSE)=0,\"\",VLOOKUP(EY19,'Footnotes list'!$D$9:$E$58,2,FALSE) ) )","v":""}]
[null,null,"C10-C12","TOT_EGSS","Total  C10 - C12 - Manufacture of food products, beverages and tobacco products, including:",null,null,null,null,null,{"$f":"IF(TRIM(J20)=\"\", \"\", IF(VLOOKUP(J20,'Footnotes list'!$D$9:$E$58,2,FALSE)=0,\"\",VLOOKUP(J20,'Footnotes list'!$D$9:$E$58,2,FALSE) ) )","v":""},null,null,null,null,{"$f":"IF(TRIM(O20)=\"\", \"\", IF(VLOOKUP(O20,'Footnotes list'!$D$9:$E$58,2,FALSE)=0,\"\",VLOOKUP(O20,'Footnotes list'!$D$9:$E$58,2,FALSE) ) )","v":""},null,null,null,null,{"$f":"IF(TRIM(T20)=\"\", \"\", IF(VLOOKUP(T20,'Footnotes list'!$D$9:$E$58,2,FALSE)=0,\"\",VLOOKUP(T20,'Footnotes list'!$D$9:$E$58,2,FALSE) ) )","v":""},null,null,null,null,{"$f":"IF(TRIM(Y20)=\"\", \"\", IF(VLOOKUP(Y20,'Footnotes list'!$D$9:$E$58,2,FALSE)=0,\"\",VLOOKUP(Y20,'Footnotes list'!$D$9:$E$58,2,FALSE) ) )","v":""},null,null,null,null,{"$f":"IF(TRIM(AD20)=\"\", \"\", IF(VLOOKUP(AD20,'Footnotes list'!$D$9:$E$58,2,FALSE)=0,\"\",VLOOKUP(AD20,'Footnotes list'!$D$9:$E$58,2,FALSE) ) )","v":""},null,null,null,null,{"$f":"IF(TRIM(AI20)=\"\", \"\", IF(VLOOKUP(AI20,'Footnotes list'!$D$9:$E$58,2,FALSE)=0,\"\",VLOOKUP(AI20,'Footnotes list'!$D$9:$E$58,2,FALSE) ) )","v":""},null,null,null,null,{"$f":"IF(TRIM(AN20)=\"\", \"\", IF(VLOOKUP(AN20,'Footnotes list'!$D$9:$E$58,2,FALSE)=0,\"\",VLOOKUP(AN20,'Footnotes list'!$D$9:$E$58,2,FALSE) ) )","v":""},null,null,null,null,{"$f":"IF(TRIM(AS20)=\"\", \"\", IF(VLOOKUP(AS20,'Footnotes list'!$D$9:$E$58,2,FALSE)=0,\"\",VLOOKUP(AS20,'Footnotes list'!$D$9:$E$58,2,FALSE) ) )","v":""},null,null,null,null,{"$f":"IF(TRIM(AX20)=\"\", \"\", IF(VLOOKUP(AX20,'Footnotes list'!$D$9:$E$58,2,FALSE)=0,\"\",VLOOKUP(AX20,'Footnotes list'!$D$9:$E$58,2,FALSE) ) )","v":""},null,null,null,null,{"$f":"IF(TRIM(BC20)=\"\", \"\", IF(VLOOKUP(BC20,'Footnotes list'!$D$9:$E$58,2,FALSE)=0,\"\",VLOOKUP(BC20,'Footnotes list'!$D$9:$E$58,2,FALSE) ) )","v":""},null,null,null,null,{"$f":"IF(TRIM(BH20)=\"\", \"\", IF(VLOOKUP(BH20,'Footnotes list'!$D$9:$E$58,2,FALSE)=0,\"\",VLOOKUP(BH20,'Footnotes list'!$D$9:$E$58,2,FALSE) ) )","v":""},null,null,null,null,{"$f":"IF(TRIM(BM20)=\"\", \"\", IF(VLOOKUP(BM20,'Footnotes list'!$D$9:$E$58,2,FALSE)=0,\"\",VLOOKUP(BM20,'Footnotes list'!$D$9:$E$58,2,FALSE) ) )","v":""},null,null,null,null,{"$f":"IF(TRIM(BR20)=\"\", \"\", IF(VLOOKUP(BR20,'Footnotes list'!$D$9:$E$58,2,FALSE)=0,\"\",VLOOKUP(BR20,'Footnotes list'!$D$9:$E$58,2,FALSE) ) )","v":""},null,null,null,null,{"$f":"IF(TRIM(BW20)=\"\", \"\", IF(VLOOKUP(BW20,'Footnotes list'!$D$9:$E$58,2,FALSE)=0,\"\",VLOOKUP(BW20,'Footnotes list'!$D$9:$E$58,2,FALSE) ) )","v":""},null,null,null,null,{"$f":"IF(TRIM(CB20)=\"\", \"\", IF(VLOOKUP(CB20,'Footnotes list'!$D$9:$E$58,2,FALSE)=0,\"\",VLOOKUP(CB20,'Footnotes list'!$D$9:$E$58,2,FALSE) ) )","v":""},null,null,null,null,{"$f":"IF(TRIM(CG20)=\"\", \"\", IF(VLOOKUP(CG20,'Footnotes list'!$D$9:$E$58,2,FALSE)=0,\"\",VLOOKUP(CG20,'Footnotes list'!$D$9:$E$58,2,FALSE) ) )","v":""},null,null,null,null,{"$f":"IF(TRIM(CL20)=\"\", \"\", IF(VLOOKUP(CL20,'Footnotes list'!$D$9:$E$58,2,FALSE)=0,\"\",VLOOKUP(CL20,'Footnotes list'!$D$9:$E$58,2,FALSE) ) )","v":""},null,null,null,null,{"$f":"IF(TRIM(CQ20)=\"\", \"\", IF(VLOOKUP(CQ20,'Footnotes list'!$D$9:$E$58,2,FALSE)=0,\"\",VLOOKUP(CQ20,'Footnotes list'!$D$9:$E$58,2,FALSE) ) )","v":""},null,null,null,null,{"$f":"IF(TRIM(CV20)=\"\", \"\", IF(VLOOKUP(CV20,'Footnotes list'!$D$9:$E$58,2,FALSE)=0,\"\",VLOOKUP(CV20,'Footnotes list'!$D$9:$E$58,2,FALSE) ) )","v":""},null,null,null,null,{"$f":"IF(TRIM(DA20)=\"\", \"\", IF(VLOOKUP(DA20,'Footnotes list'!$D$9:$E$58,2,FALSE)=0,\"\",VLOOKUP(DA20,'Footnotes list'!$D$9:$E$58,2,FALSE) ) )","v":""},null,null,null,null,{"$f":"IF(TRIM(DF20)=\"\", \"\", IF(VLOOKUP(DF20,'Footnotes list'!$D$9:$E$58,2,FALSE)=0,\"\",VLOOKUP(DF20,'Footnotes list'!$D$9:$E$58,2,FALSE) ) )","v":""},null,null,null,null,{"$f":"IF(TRIM(DK20)=\"\", \"\", IF(VLOOKUP(DK20,'Footnotes list'!$D$9:$E$58,2,FALSE)=0,\"\",VLOOKUP(DK20,'Footnotes list'!$D$9:$E$58,2,FALSE) ) )","v":""},null,null,null,null,{"$f":"IF(TRIM(DP20)=\"\", \"\", IF(VLOOKUP(DP20,'Footnotes list'!$D$9:$E$58,2,FALSE)=0,\"\",VLOOKUP(DP20,'Footnotes list'!$D$9:$E$58,2,FALSE) ) )","v":""},null,null,null,null,{"$f":"IF(TRIM(DU20)=\"\", \"\", IF(VLOOKUP(DU20,'Footnotes list'!$D$9:$E$58,2,FALSE)=0,\"\",VLOOKUP(DU20,'Footnotes list'!$D$9:$E$58,2,FALSE) ) )","v":""},null,null,null,null,{"$f":"IF(TRIM(DZ20)=\"\", \"\", IF(VLOOKUP(DZ20,'Footnotes list'!$D$9:$E$58,2,FALSE)=0,\"\",VLOOKUP(DZ20,'Footnotes list'!$D$9:$E$58,2,FALSE) ) )","v":""},null,null,null,null,{"$f":"IF(TRIM(EE20)=\"\", \"\", IF(VLOOKUP(EE20,'Footnotes list'!$D$9:$E$58,2,FALSE)=0,\"\",VLOOKUP(EE20,'Footnotes list'!$D$9:$E$58,2,FALSE) ) )","v":""},null,null,null,null,{"$f":"IF(TRIM(EJ20)=\"\", \"\", IF(VLOOKUP(EJ20,'Footnotes list'!$D$9:$E$58,2,FALSE)=0,\"\",VLOOKUP(EJ20,'Footnotes list'!$D$9:$E$58,2,FALSE) ) )","v":""},null,null,null,null,{"$f":"IF(TRIM(EO20)=\"\", \"\", IF(VLOOKUP(EO20,'Footnotes list'!$D$9:$E$58,2,FALSE)=0,\"\",VLOOKUP(EO20,'Footnotes list'!$D$9:$E$58,2,FALSE) ) )","v":""},null,null,null,null,{"$f":"IF(TRIM(ET20)=\"\", \"\", IF(VLOOKUP(ET20,'Footnotes list'!$D$9:$E$58,2,FALSE)=0,\"\",VLOOKUP(ET20,'Footnotes list'!$D$9:$E$58,2,FALSE) ) )","v":""},null,null,null,null,{"$f":"IF(TRIM(EY20)=\"\", \"\", IF(VLOOKUP(EY20,'Footnotes list'!$D$9:$E$58,2,FALSE)=0,\"\",VLOOKUP(EY20,'Footnotes list'!$D$9:$E$58,2,FALSE) ) )","v":""}]
[null,null,"C10-C12","ES_CS","environmental specific services",null,null,null,null,null,{"$f":"IF(TRIM(J21)=\"\", \"\", IF(VLOOKUP(J21,'Footnotes list'!$D$9:$E$58,2,FALSE)=0,\"\",VLOOKUP(J21,'Footnotes list'!$D$9:$E$58,2,FALSE) ) )","v":""},null,null,null,null,{"$f":"IF(TRIM(O21)=\"\", \"\", IF(VLOOKUP(O21,'Footnotes list'!$D$9:$E$58,2,FALSE)=0,\"\",VLOOKUP(O21,'Footnotes list'!$D$9:$E$58,2,FALSE) ) )","v":""},null,null,null,null,{"$f":"IF(TRIM(T21)=\"\", \"\", IF(VLOOKUP(T21,'Footnotes list'!$D$9:$E$58,2,FALSE)=0,\"\",VLOOKUP(T21,'Footnotes list'!$D$9:$E$58,2,FALSE) ) )","v":""},null,null,null,null,{"$f":"IF(TRIM(Y21)=\"\", \"\", IF(VLOOKUP(Y21,'Footnotes list'!$D$9:$E$58,2,FALSE)=0,\"\",VLOOKUP(Y21,'Footnotes list'!$D$9:$E$58,2,FALSE) ) )","v":""},null,null,null,null,{"$f":"IF(TRIM(AD21)=\"\", \"\", IF(VLOOKUP(AD21,'Footnotes list'!$D$9:$E$58,2,FALSE)=0,\"\",VLOOKUP(AD21,'Footnotes list'!$D$9:$E$58,2,FALSE) ) )","v":""},null,null,null,null,{"$f":"IF(TRIM(AI21)=\"\", \"\", IF(VLOOKUP(AI21,'Footnotes list'!$D$9:$E$58,2,FALSE)=0,\"\",VLOOKUP(AI21,'Footnotes list'!$D$9:$E$58,2,FALSE) ) )","v":""},null,null,null,null,{"$f":"IF(TRIM(AN21)=\"\", \"\", IF(VLOOKUP(AN21,'Footnotes list'!$D$9:$E$58,2,FALSE)=0,\"\",VLOOKUP(AN21,'Footnotes list'!$D$9:$E$58,2,FALSE) ) )","v":""},null,null,null,null,{"$f":"IF(TRIM(AS21)=\"\", \"\", IF(VLOOKUP(AS21,'Footnotes list'!$D$9:$E$58,2,FALSE)=0,\"\",VLOOKUP(AS21,'Footnotes list'!$D$9:$E$58,2,FALSE) ) )","v":""},null,null,null,null,{"$f":"IF(TRIM(AX21)=\"\", \"\", IF(VLOOKUP(AX21,'Footnotes list'!$D$9:$E$58,2,FALSE)=0,\"\",VLOOKUP(AX21,'Footnotes list'!$D$9:$E$58,2,FALSE) ) )","v":""},null,null,null,null,{"$f":"IF(TRIM(BC21)=\"\", \"\", IF(VLOOKUP(BC21,'Footnotes list'!$D$9:$E$58,2,FALSE)=0,\"\",VLOOKUP(BC21,'Footnotes list'!$D$9:$E$58,2,FALSE) ) )","v":""},null,null,null,null,{"$f":"IF(TRIM(BH21)=\"\", \"\", IF(VLOOKUP(BH21,'Footnotes list'!$D$9:$E$58,2,FALSE)=0,\"\",VLOOKUP(BH21,'Footnotes list'!$D$9:$E$58,2,FALSE) ) )","v":""},null,null,null,null,{"$f":"IF(TRIM(BM21)=\"\", \"\", IF(VLOOKUP(BM21,'Footnotes list'!$D$9:$E$58,2,FALSE)=0,\"\",VLOOKUP(BM21,'Footnotes list'!$D$9:$E$58,2,FALSE) ) )","v":""},null,null,null,null,{"$f":"IF(TRIM(BR21)=\"\", \"\", IF(VLOOKUP(BR21,'Footnotes list'!$D$9:$E$58,2,FALSE)=0,\"\",VLOOKUP(BR21,'Footnotes list'!$D$9:$E$58,2,FALSE) ) )","v":""},null,null,null,null,{"$f":"IF(TRIM(BW21)=\"\", \"\", IF(VLOOKUP(BW21,'Footnotes list'!$D$9:$E$58,2,FALSE)=0,\"\",VLOOKUP(BW21,'Footnotes list'!$D$9:$E$58,2,FALSE) ) )","v":""},null,null,null,null,{"$f":"IF(TRIM(CB21)=\"\", \"\", IF(VLOOKUP(CB21,'Footnotes list'!$D$9:$E$58,2,FALSE)=0,\"\",VLOOKUP(CB21,'Footnotes list'!$D$9:$E$58,2,FALSE) ) )","v":""},null,null,null,null,{"$f":"IF(TRIM(CG21)=\"\", \"\", IF(VLOOKUP(CG21,'Footnotes list'!$D$9:$E$58,2,FALSE)=0,\"\",VLOOKUP(CG21,'Footnotes list'!$D$9:$E$58,2,FALSE) ) )","v":""},null,null,null,null,{"$f":"IF(TRIM(CL21)=\"\", \"\", IF(VLOOKUP(CL21,'Footnotes list'!$D$9:$E$58,2,FALSE)=0,\"\",VLOOKUP(CL21,'Footnotes list'!$D$9:$E$58,2,FALSE) ) )","v":""},null,null,null,null,{"$f":"IF(TRIM(CQ21)=\"\", \"\", IF(VLOOKUP(CQ21,'Footnotes list'!$D$9:$E$58,2,FALSE)=0,\"\",VLOOKUP(CQ21,'Footnotes list'!$D$9:$E$58,2,FALSE) ) )","v":""},null,null,null,null,{"$f":"IF(TRIM(CV21)=\"\", \"\", IF(VLOOKUP(CV21,'Footnotes list'!$D$9:$E$58,2,FALSE)=0,\"\",VLOOKUP(CV21,'Footnotes list'!$D$9:$E$58,2,FALSE) ) )","v":""},null,null,null,null,{"$f":"IF(TRIM(DA21)=\"\", \"\", IF(VLOOKUP(DA21,'Footnotes list'!$D$9:$E$58,2,FALSE)=0,\"\",VLOOKUP(DA21,'Footnotes list'!$D$9:$E$58,2,FALSE) ) )","v":""},null,null,null,null,{"$f":"IF(TRIM(DF21)=\"\", \"\", IF(VLOOKUP(DF21,'Footnotes list'!$D$9:$E$58,2,FALSE)=0,\"\",VLOOKUP(DF21,'Footnotes list'!$D$9:$E$58,2,FALSE) ) )","v":""},null,null,null,null,{"$f":"IF(TRIM(DK21)=\"\", \"\", IF(VLOOKUP(DK21,'Footnotes list'!$D$9:$E$58,2,FALSE)=0,\"\",VLOOKUP(DK21,'Footnotes list'!$D$9:$E$58,2,FALSE) ) )","v":""},null,null,null,null,{"$f":"IF(TRIM(DP21)=\"\", \"\", IF(VLOOKUP(DP21,'Footnotes list'!$D$9:$E$58,2,FALSE)=0,\"\",VLOOKUP(DP21,'Footnotes list'!$D$9:$E$58,2,FALSE) ) )","v":""},null,null,null,null,{"$f":"IF(TRIM(DU21)=\"\", \"\", IF(VLOOKUP(DU21,'Footnotes list'!$D$9:$E$58,2,FALSE)=0,\"\",VLOOKUP(DU21,'Footnotes list'!$D$9:$E$58,2,FALSE) ) )","v":""},null,null,null,null,{"$f":"IF(TRIM(DZ21)=\"\", \"\", IF(VLOOKUP(DZ21,'Footnotes list'!$D$9:$E$58,2,FALSE)=0,\"\",VLOOKUP(DZ21,'Footnotes list'!$D$9:$E$58,2,FALSE) ) )","v":""},null,null,null,null,{"$f":"IF(TRIM(EE21)=\"\", \"\", IF(VLOOKUP(EE21,'Footnotes list'!$D$9:$E$58,2,FALSE)=0,\"\",VLOOKUP(EE21,'Footnotes list'!$D$9:$E$58,2,FALSE) ) )","v":""},null,null,null,null,{"$f":"IF(TRIM(EJ21)=\"\", \"\", IF(VLOOKUP(EJ21,'Footnotes list'!$D$9:$E$58,2,FALSE)=0,\"\",VLOOKUP(EJ21,'Footnotes list'!$D$9:$E$58,2,FALSE) ) )","v":""},null,null,null,null,{"$f":"IF(TRIM(EO21)=\"\", \"\", IF(VLOOKUP(EO21,'Footnotes list'!$D$9:$E$58,2,FALSE)=0,\"\",VLOOKUP(EO21,'Footnotes list'!$D$9:$E$58,2,FALSE) ) )","v":""},null,null,null,null,{"$f":"IF(TRIM(ET21)=\"\", \"\", IF(VLOOKUP(ET21,'Footnotes list'!$D$9:$E$58,2,FALSE)=0,\"\",VLOOKUP(ET21,'Footnotes list'!$D$9:$E$58,2,FALSE) ) )","v":""},null,null,null,null,{"$f":"IF(TRIM(EY21)=\"\", \"\", IF(VLOOKUP(EY21,'Footnotes list'!$D$9:$E$58,2,FALSE)=0,\"\",VLOOKUP(EY21,'Footnotes list'!$D$9:$E$58,2,FALSE) ) )","v":""}]
[null,null,"C10-C12","C_REP","cleaner and resource efficient products",null,null,null,null,null,{"$f":"IF(TRIM(J22)=\"\", \"\", IF(VLOOKUP(J22,'Footnotes list'!$D$9:$E$58,2,FALSE)=0,\"\",VLOOKUP(J22,'Footnotes list'!$D$9:$E$58,2,FALSE) ) )","v":""},null,null,null,null,{"$f":"IF(TRIM(O22)=\"\", \"\", IF(VLOOKUP(O22,'Footnotes list'!$D$9:$E$58,2,FALSE)=0,\"\",VLOOKUP(O22,'Footnotes list'!$D$9:$E$58,2,FALSE) ) )","v":""},null,null,null,null,{"$f":"IF(TRIM(T22)=\"\", \"\", IF(VLOOKUP(T22,'Footnotes list'!$D$9:$E$58,2,FALSE)=0,\"\",VLOOKUP(T22,'Footnotes list'!$D$9:$E$58,2,FALSE) ) )","v":""},null,null,null,null,{"$f":"IF(TRIM(Y22)=\"\", \"\", IF(VLOOKUP(Y22,'Footnotes list'!$D$9:$E$58,2,FALSE)=0,\"\",VLOOKUP(Y22,'Footnotes list'!$D$9:$E$58,2,FALSE) ) )","v":""},null,null,null,null,{"$f":"IF(TRIM(AD22)=\"\", \"\", IF(VLOOKUP(AD22,'Footnotes list'!$D$9:$E$58,2,FALSE)=0,\"\",VLOOKUP(AD22,'Footnotes list'!$D$9:$E$58,2,FALSE) ) )","v":""},null,null,null,null,{"$f":"IF(TRIM(AI22)=\"\", \"\", IF(VLOOKUP(AI22,'Footnotes list'!$D$9:$E$58,2,FALSE)=0,\"\",VLOOKUP(AI22,'Footnotes list'!$D$9:$E$58,2,FALSE) ) )","v":""},null,null,null,null,{"$f":"IF(TRIM(AN22)=\"\", \"\", IF(VLOOKUP(AN22,'Footnotes list'!$D$9:$E$58,2,FALSE)=0,\"\",VLOOKUP(AN22,'Footnotes list'!$D$9:$E$58,2,FALSE) ) )","v":""},null,null,null,null,{"$f":"IF(TRIM(AS22)=\"\", \"\", IF(VLOOKUP(AS22,'Footnotes list'!$D$9:$E$58,2,FALSE)=0,\"\",VLOOKUP(AS22,'Footnotes list'!$D$9:$E$58,2,FALSE) ) )","v":""},null,null,null,null,{"$f":"IF(TRIM(AX22)=\"\", \"\", IF(VLOOKUP(AX22,'Footnotes list'!$D$9:$E$58,2,FALSE)=0,\"\",VLOOKUP(AX22,'Footnotes list'!$D$9:$E$58,2,FALSE) ) )","v":""},null,null,null,null,{"$f":"IF(TRIM(BC22)=\"\", \"\", IF(VLOOKUP(BC22,'Footnotes list'!$D$9:$E$58,2,FALSE)=0,\"\",VLOOKUP(BC22,'Footnotes list'!$D$9:$E$58,2,FALSE) ) )","v":""},null,null,null,null,{"$f":"IF(TRIM(BH22)=\"\", \"\", IF(VLOOKUP(BH22,'Footnotes list'!$D$9:$E$58,2,FALSE)=0,\"\",VLOOKUP(BH22,'Footnotes list'!$D$9:$E$58,2,FALSE) ) )","v":""},null,null,null,null,{"$f":"IF(TRIM(BM22)=\"\", \"\", IF(VLOOKUP(BM22,'Footnotes list'!$D$9:$E$58,2,FALSE)=0,\"\",VLOOKUP(BM22,'Footnotes list'!$D$9:$E$58,2,FALSE) ) )","v":""},null,null,null,null,{"$f":"IF(TRIM(BR22)=\"\", \"\", IF(VLOOKUP(BR22,'Footnotes list'!$D$9:$E$58,2,FALSE)=0,\"\",VLOOKUP(BR22,'Footnotes list'!$D$9:$E$58,2,FALSE) ) )","v":""},null,null,null,null,{"$f":"IF(TRIM(BW22)=\"\", \"\", IF(VLOOKUP(BW22,'Footnotes list'!$D$9:$E$58,2,FALSE)=0,\"\",VLOOKUP(BW22,'Footnotes list'!$D$9:$E$58,2,FALSE) ) )","v":""},null,null,null,null,{"$f":"IF(TRIM(CB22)=\"\", \"\", IF(VLOOKUP(CB22,'Footnotes list'!$D$9:$E$58,2,FALSE)=0,\"\",VLOOKUP(CB22,'Footnotes list'!$D$9:$E$58,2,FALSE) ) )","v":""},null,null,null,null,{"$f":"IF(TRIM(CG22)=\"\", \"\", IF(VLOOKUP(CG22,'Footnotes list'!$D$9:$E$58,2,FALSE)=0,\"\",VLOOKUP(CG22,'Footnotes list'!$D$9:$E$58,2,FALSE) ) )","v":""},null,null,null,null,{"$f":"IF(TRIM(CL22)=\"\", \"\", IF(VLOOKUP(CL22,'Footnotes list'!$D$9:$E$58,2,FALSE)=0,\"\",VLOOKUP(CL22,'Footnotes list'!$D$9:$E$58,2,FALSE) ) )","v":""},null,null,null,null,{"$f":"IF(TRIM(CQ22)=\"\", \"\", IF(VLOOKUP(CQ22,'Footnotes list'!$D$9:$E$58,2,FALSE)=0,\"\",VLOOKUP(CQ22,'Footnotes list'!$D$9:$E$58,2,FALSE) ) )","v":""},null,null,null,null,{"$f":"IF(TRIM(CV22)=\"\", \"\", IF(VLOOKUP(CV22,'Footnotes list'!$D$9:$E$58,2,FALSE)=0,\"\",VLOOKUP(CV22,'Footnotes list'!$D$9:$E$58,2,FALSE) ) )","v":""},null,null,null,null,{"$f":"IF(TRIM(DA22)=\"\", \"\", IF(VLOOKUP(DA22,'Footnotes list'!$D$9:$E$58,2,FALSE)=0,\"\",VLOOKUP(DA22,'Footnotes list'!$D$9:$E$58,2,FALSE) ) )","v":""},null,null,null,null,{"$f":"IF(TRIM(DF22)=\"\", \"\", IF(VLOOKUP(DF22,'Footnotes list'!$D$9:$E$58,2,FALSE)=0,\"\",VLOOKUP(DF22,'Footnotes list'!$D$9:$E$58,2,FALSE) ) )","v":""},null,null,null,null,{"$f":"IF(TRIM(DK22)=\"\", \"\", IF(VLOOKUP(DK22,'Footnotes list'!$D$9:$E$58,2,FALSE)=0,\"\",VLOOKUP(DK22,'Footnotes list'!$D$9:$E$58,2,FALSE) ) )","v":""},null,null,null,null,{"$f":"IF(TRIM(DP22)=\"\", \"\", IF(VLOOKUP(DP22,'Footnotes list'!$D$9:$E$58,2,FALSE)=0,\"\",VLOOKUP(DP22,'Footnotes list'!$D$9:$E$58,2,FALSE) ) )","v":""},null,null,null,null,{"$f":"IF(TRIM(DU22)=\"\", \"\", IF(VLOOKUP(DU22,'Footnotes list'!$D$9:$E$58,2,FALSE)=0,\"\",VLOOKUP(DU22,'Footnotes list'!$D$9:$E$58,2,FALSE) ) )","v":""},null,null,null,null,{"$f":"IF(TRIM(DZ22)=\"\", \"\", IF(VLOOKUP(DZ22,'Footnotes list'!$D$9:$E$58,2,FALSE)=0,\"\",VLOOKUP(DZ22,'Footnotes list'!$D$9:$E$58,2,FALSE) ) )","v":""},null,null,null,null,{"$f":"IF(TRIM(EE22)=\"\", \"\", IF(VLOOKUP(EE22,'Footnotes list'!$D$9:$E$58,2,FALSE)=0,\"\",VLOOKUP(EE22,'Footnotes list'!$D$9:$E$58,2,FALSE) ) )","v":""},null,null,null,null,{"$f":"IF(TRIM(EJ22)=\"\", \"\", IF(VLOOKUP(EJ22,'Footnotes list'!$D$9:$E$58,2,FALSE)=0,\"\",VLOOKUP(EJ22,'Footnotes list'!$D$9:$E$58,2,FALSE) ) )","v":""},null,null,null,null,{"$f":"IF(TRIM(EO22)=\"\", \"\", IF(VLOOKUP(EO22,'Footnotes list'!$D$9:$E$58,2,FALSE)=0,\"\",VLOOKUP(EO22,'Footnotes list'!$D$9:$E$58,2,FALSE) ) )","v":""},null,null,null,null,{"$f":"IF(TRIM(ET22)=\"\", \"\", IF(VLOOKUP(ET22,'Footnotes list'!$D$9:$E$58,2,FALSE)=0,\"\",VLOOKUP(ET22,'Footnotes list'!$D$9:$E$58,2,FALSE) ) )","v":""},null,null,null,null,{"$f":"IF(TRIM(EY22)=\"\", \"\", IF(VLOOKUP(EY22,'Footnotes list'!$D$9:$E$58,2,FALSE)=0,\"\",VLOOKUP(EY22,'Footnotes list'!$D$9:$E$58,2,FALSE) ) )","v":""}]
[null,null,"C13-C15","TOT_EGSS","Total C13 - C15 Manufacture of textiles, wearing apparel, leather and related products, including:",null,null,null,null,null,{"$f":"IF(TRIM(J23)=\"\", \"\", IF(VLOOKUP(J23,'Footnotes list'!$D$9:$E$58,2,FALSE)=0,\"\",VLOOKUP(J23,'Footnotes list'!$D$9:$E$58,2,FALSE) ) )","v":""},null,null,null,null,{"$f":"IF(TRIM(O23)=\"\", \"\", IF(VLOOKUP(O23,'Footnotes list'!$D$9:$E$58,2,FALSE)=0,\"\",VLOOKUP(O23,'Footnotes list'!$D$9:$E$58,2,FALSE) ) )","v":""},null,null,null,null,{"$f":"IF(TRIM(T23)=\"\", \"\", IF(VLOOKUP(T23,'Footnotes list'!$D$9:$E$58,2,FALSE)=0,\"\",VLOOKUP(T23,'Footnotes list'!$D$9:$E$58,2,FALSE) ) )","v":""},null,null,null,null,{"$f":"IF(TRIM(Y23)=\"\", \"\", IF(VLOOKUP(Y23,'Footnotes list'!$D$9:$E$58,2,FALSE)=0,\"\",VLOOKUP(Y23,'Footnotes list'!$D$9:$E$58,2,FALSE) ) )","v":""},null,null,null,null,{"$f":"IF(TRIM(AD23)=\"\", \"\", IF(VLOOKUP(AD23,'Footnotes list'!$D$9:$E$58,2,FALSE)=0,\"\",VLOOKUP(AD23,'Footnotes list'!$D$9:$E$58,2,FALSE) ) )","v":""},null,null,null,null,{"$f":"IF(TRIM(AI23)=\"\", \"\", IF(VLOOKUP(AI23,'Footnotes list'!$D$9:$E$58,2,FALSE)=0,\"\",VLOOKUP(AI23,'Footnotes list'!$D$9:$E$58,2,FALSE) ) )","v":""},null,null,null,null,{"$f":"IF(TRIM(AN23)=\"\", \"\", IF(VLOOKUP(AN23,'Footnotes list'!$D$9:$E$58,2,FALSE)=0,\"\",VLOOKUP(AN23,'Footnotes list'!$D$9:$E$58,2,FALSE) ) )","v":""},null,null,null,null,{"$f":"IF(TRIM(AS23)=\"\", \"\", IF(VLOOKUP(AS23,'Footnotes list'!$D$9:$E$58,2,FALSE)=0,\"\",VLOOKUP(AS23,'Footnotes list'!$D$9:$E$58,2,FALSE) ) )","v":""},null,null,null,null,{"$f":"IF(TRIM(AX23)=\"\", \"\", IF(VLOOKUP(AX23,'Footnotes list'!$D$9:$E$58,2,FALSE)=0,\"\",VLOOKUP(AX23,'Footnotes list'!$D$9:$E$58,2,FALSE) ) )","v":""},null,null,null,null,{"$f":"IF(TRIM(BC23)=\"\", \"\", IF(VLOOKUP(BC23,'Footnotes list'!$D$9:$E$58,2,FALSE)=0,\"\",VLOOKUP(BC23,'Footnotes list'!$D$9:$E$58,2,FALSE) ) )","v":""},null,null,null,null,{"$f":"IF(TRIM(BH23)=\"\", \"\", IF(VLOOKUP(BH23,'Footnotes list'!$D$9:$E$58,2,FALSE)=0,\"\",VLOOKUP(BH23,'Footnotes list'!$D$9:$E$58,2,FALSE) ) )","v":""},null,null,null,null,{"$f":"IF(TRIM(BM23)=\"\", \"\", IF(VLOOKUP(BM23,'Footnotes list'!$D$9:$E$58,2,FALSE)=0,\"\",VLOOKUP(BM23,'Footnotes list'!$D$9:$E$58,2,FALSE) ) )","v":""},null,null,null,null,{"$f":"IF(TRIM(BR23)=\"\", \"\", IF(VLOOKUP(BR23,'Footnotes list'!$D$9:$E$58,2,FALSE)=0,\"\",VLOOKUP(BR23,'Footnotes list'!$D$9:$E$58,2,FALSE) ) )","v":""},null,null,null,null,{"$f":"IF(TRIM(BW23)=\"\", \"\", IF(VLOOKUP(BW23,'Footnotes list'!$D$9:$E$58,2,FALSE)=0,\"\",VLOOKUP(BW23,'Footnotes list'!$D$9:$E$58,2,FALSE) ) )","v":""},null,null,null,null,{"$f":"IF(TRIM(CB23)=\"\", \"\", IF(VLOOKUP(CB23,'Footnotes list'!$D$9:$E$58,2,FALSE)=0,\"\",VLOOKUP(CB23,'Footnotes list'!$D$9:$E$58,2,FALSE) ) )","v":""},null,null,null,null,{"$f":"IF(TRIM(CG23)=\"\", \"\", IF(VLOOKUP(CG23,'Footnotes list'!$D$9:$E$58,2,FALSE)=0,\"\",VLOOKUP(CG23,'Footnotes list'!$D$9:$E$58,2,FALSE) ) )","v":""},null,null,null,null,{"$f":"IF(TRIM(CL23)=\"\", \"\", IF(VLOOKUP(CL23,'Footnotes list'!$D$9:$E$58,2,FALSE)=0,\"\",VLOOKUP(CL23,'Footnotes list'!$D$9:$E$58,2,FALSE) ) )","v":""},null,null,null,null,{"$f":"IF(TRIM(CQ23)=\"\", \"\", IF(VLOOKUP(CQ23,'Footnotes list'!$D$9:$E$58,2,FALSE)=0,\"\",VLOOKUP(CQ23,'Footnotes list'!$D$9:$E$58,2,FALSE) ) )","v":""},null,null,null,null,{"$f":"IF(TRIM(CV23)=\"\", \"\", IF(VLOOKUP(CV23,'Footnotes list'!$D$9:$E$58,2,FALSE)=0,\"\",VLOOKUP(CV23,'Footnotes list'!$D$9:$E$58,2,FALSE) ) )","v":""},null,null,null,null,{"$f":"IF(TRIM(DA23)=\"\", \"\", IF(VLOOKUP(DA23,'Footnotes list'!$D$9:$E$58,2,FALSE)=0,\"\",VLOOKUP(DA23,'Footnotes list'!$D$9:$E$58,2,FALSE) ) )","v":""},null,null,null,null,{"$f":"IF(TRIM(DF23)=\"\", \"\", IF(VLOOKUP(DF23,'Footnotes list'!$D$9:$E$58,2,FALSE)=0,\"\",VLOOKUP(DF23,'Footnotes list'!$D$9:$E$58,2,FALSE) ) )","v":""},null,null,null,null,{"$f":"IF(TRIM(DK23)=\"\", \"\", IF(VLOOKUP(DK23,'Footnotes list'!$D$9:$E$58,2,FALSE)=0,\"\",VLOOKUP(DK23,'Footnotes list'!$D$9:$E$58,2,FALSE) ) )","v":""},null,null,null,null,{"$f":"IF(TRIM(DP23)=\"\", \"\", IF(VLOOKUP(DP23,'Footnotes list'!$D$9:$E$58,2,FALSE)=0,\"\",VLOOKUP(DP23,'Footnotes list'!$D$9:$E$58,2,FALSE) ) )","v":""},null,null,null,null,{"$f":"IF(TRIM(DU23)=\"\", \"\", IF(VLOOKUP(DU23,'Footnotes list'!$D$9:$E$58,2,FALSE)=0,\"\",VLOOKUP(DU23,'Footnotes list'!$D$9:$E$58,2,FALSE) ) )","v":""},null,null,null,null,{"$f":"IF(TRIM(DZ23)=\"\", \"\", IF(VLOOKUP(DZ23,'Footnotes list'!$D$9:$E$58,2,FALSE)=0,\"\",VLOOKUP(DZ23,'Footnotes list'!$D$9:$E$58,2,FALSE) ) )","v":""},null,null,null,null,{"$f":"IF(TRIM(EE23)=\"\", \"\", IF(VLOOKUP(EE23,'Footnotes list'!$D$9:$E$58,2,FALSE)=0,\"\",VLOOKUP(EE23,'Footnotes list'!$D$9:$E$58,2,FALSE) ) )","v":""},null,null,null,null,{"$f":"IF(TRIM(EJ23)=\"\", \"\", IF(VLOOKUP(EJ23,'Footnotes list'!$D$9:$E$58,2,FALSE)=0,\"\",VLOOKUP(EJ23,'Footnotes list'!$D$9:$E$58,2,FALSE) ) )","v":""},null,null,null,null,{"$f":"IF(TRIM(EO23)=\"\", \"\", IF(VLOOKUP(EO23,'Footnotes list'!$D$9:$E$58,2,FALSE)=0,\"\",VLOOKUP(EO23,'Footnotes list'!$D$9:$E$58,2,FALSE) ) )","v":""},null,null,null,null,{"$f":"IF(TRIM(ET23)=\"\", \"\", IF(VLOOKUP(ET23,'Footnotes list'!$D$9:$E$58,2,FALSE)=0,\"\",VLOOKUP(ET23,'Footnotes list'!$D$9:$E$58,2,FALSE) ) )","v":""},null,null,null,null,{"$f":"IF(TRIM(EY23)=\"\", \"\", IF(VLOOKUP(EY23,'Footnotes list'!$D$9:$E$58,2,FALSE)=0,\"\",VLOOKUP(EY23,'Footnotes list'!$D$9:$E$58,2,FALSE) ) )","v":""}]
[null,null,"C13-C15","ES_CS","environmental specific services",null,null,null,null,null,{"$f":"IF(TRIM(J24)=\"\", \"\", IF(VLOOKUP(J24,'Footnotes list'!$D$9:$E$58,2,FALSE)=0,\"\",VLOOKUP(J24,'Footnotes list'!$D$9:$E$58,2,FALSE) ) )","v":""},null,null,null,null,{"$f":"IF(TRIM(O24)=\"\", \"\", IF(VLOOKUP(O24,'Footnotes list'!$D$9:$E$58,2,FALSE)=0,\"\",VLOOKUP(O24,'Footnotes list'!$D$9:$E$58,2,FALSE) ) )","v":""},null,null,null,null,{"$f":"IF(TRIM(T24)=\"\", \"\", IF(VLOOKUP(T24,'Footnotes list'!$D$9:$E$58,2,FALSE)=0,\"\",VLOOKUP(T24,'Footnotes list'!$D$9:$E$58,2,FALSE) ) )","v":""},null,null,null,null,{"$f":"IF(TRIM(Y24)=\"\", \"\", IF(VLOOKUP(Y24,'Footnotes list'!$D$9:$E$58,2,FALSE)=0,\"\",VLOOKUP(Y24,'Footnotes list'!$D$9:$E$58,2,FALSE) ) )","v":""},null,null,null,null,{"$f":"IF(TRIM(AD24)=\"\", \"\", IF(VLOOKUP(AD24,'Footnotes list'!$D$9:$E$58,2,FALSE)=0,\"\",VLOOKUP(AD24,'Footnotes list'!$D$9:$E$58,2,FALSE) ) )","v":""},null,null,null,null,{"$f":"IF(TRIM(AI24)=\"\", \"\", IF(VLOOKUP(AI24,'Footnotes list'!$D$9:$E$58,2,FALSE)=0,\"\",VLOOKUP(AI24,'Footnotes list'!$D$9:$E$58,2,FALSE) ) )","v":""},null,null,null,null,{"$f":"IF(TRIM(AN24)=\"\", \"\", IF(VLOOKUP(AN24,'Footnotes list'!$D$9:$E$58,2,FALSE)=0,\"\",VLOOKUP(AN24,'Footnotes list'!$D$9:$E$58,2,FALSE) ) )","v":""},null,null,null,null,{"$f":"IF(TRIM(AS24)=\"\", \"\", IF(VLOOKUP(AS24,'Footnotes list'!$D$9:$E$58,2,FALSE)=0,\"\",VLOOKUP(AS24,'Footnotes list'!$D$9:$E$58,2,FALSE) ) )","v":""},null,null,null,null,{"$f":"IF(TRIM(AX24)=\"\", \"\", IF(VLOOKUP(AX24,'Footnotes list'!$D$9:$E$58,2,FALSE)=0,\"\",VLOOKUP(AX24,'Footnotes list'!$D$9:$E$58,2,FALSE) ) )","v":""},null,null,null,null,{"$f":"IF(TRIM(BC24)=\"\", \"\", IF(VLOOKUP(BC24,'Footnotes list'!$D$9:$E$58,2,FALSE)=0,\"\",VLOOKUP(BC24,'Footnotes list'!$D$9:$E$58,2,FALSE) ) )","v":""},null,null,null,null,{"$f":"IF(TRIM(BH24)=\"\", \"\", IF(VLOOKUP(BH24,'Footnotes list'!$D$9:$E$58,2,FALSE)=0,\"\",VLOOKUP(BH24,'Footnotes list'!$D$9:$E$58,2,FALSE) ) )","v":""},null,null,null,null,{"$f":"IF(TRIM(BM24)=\"\", \"\", IF(VLOOKUP(BM24,'Footnotes list'!$D$9:$E$58,2,FALSE)=0,\"\",VLOOKUP(BM24,'Footnotes list'!$D$9:$E$58,2,FALSE) ) )","v":""},null,null,null,null,{"$f":"IF(TRIM(BR24)=\"\", \"\", IF(VLOOKUP(BR24,'Footnotes list'!$D$9:$E$58,2,FALSE)=0,\"\",VLOOKUP(BR24,'Footnotes list'!$D$9:$E$58,2,FALSE) ) )","v":""},null,null,null,null,{"$f":"IF(TRIM(BW24)=\"\", \"\", IF(VLOOKUP(BW24,'Footnotes list'!$D$9:$E$58,2,FALSE)=0,\"\",VLOOKUP(BW24,'Footnotes list'!$D$9:$E$58,2,FALSE) ) )","v":""},null,null,null,null,{"$f":"IF(TRIM(CB24)=\"\", \"\", IF(VLOOKUP(CB24,'Footnotes list'!$D$9:$E$58,2,FALSE)=0,\"\",VLOOKUP(CB24,'Footnotes list'!$D$9:$E$58,2,FALSE) ) )","v":""},null,null,null,null,{"$f":"IF(TRIM(CG24)=\"\", \"\", IF(VLOOKUP(CG24,'Footnotes list'!$D$9:$E$58,2,FALSE)=0,\"\",VLOOKUP(CG24,'Footnotes list'!$D$9:$E$58,2,FALSE) ) )","v":""},null,null,null,null,{"$f":"IF(TRIM(CL24)=\"\", \"\", IF(VLOOKUP(CL24,'Footnotes list'!$D$9:$E$58,2,FALSE)=0,\"\",VLOOKUP(CL24,'Footnotes list'!$D$9:$E$58,2,FALSE) ) )","v":""},null,null,null,null,{"$f":"IF(TRIM(CQ24)=\"\", \"\", IF(VLOOKUP(CQ24,'Footnotes list'!$D$9:$E$58,2,FALSE)=0,\"\",VLOOKUP(CQ24,'Footnotes list'!$D$9:$E$58,2,FALSE) ) )","v":""},null,null,null,null,{"$f":"IF(TRIM(CV24)=\"\", \"\", IF(VLOOKUP(CV24,'Footnotes list'!$D$9:$E$58,2,FALSE)=0,\"\",VLOOKUP(CV24,'Footnotes list'!$D$9:$E$58,2,FALSE) ) )","v":""},null,null,null,null,{"$f":"IF(TRIM(DA24)=\"\", \"\", IF(VLOOKUP(DA24,'Footnotes list'!$D$9:$E$58,2,FALSE)=0,\"\",VLOOKUP(DA24,'Footnotes list'!$D$9:$E$58,2,FALSE) ) )","v":""},null,null,null,null,{"$f":"IF(TRIM(DF24)=\"\", \"\", IF(VLOOKUP(DF24,'Footnotes list'!$D$9:$E$58,2,FALSE)=0,\"\",VLOOKUP(DF24,'Footnotes list'!$D$9:$E$58,2,FALSE) ) )","v":""},null,null,null,null,{"$f":"IF(TRIM(DK24)=\"\", \"\", IF(VLOOKUP(DK24,'Footnotes list'!$D$9:$E$58,2,FALSE)=0,\"\",VLOOKUP(DK24,'Footnotes list'!$D$9:$E$58,2,FALSE) ) )","v":""},null,null,null,null,{"$f":"IF(TRIM(DP24)=\"\", \"\", IF(VLOOKUP(DP24,'Footnotes list'!$D$9:$E$58,2,FALSE)=0,\"\",VLOOKUP(DP24,'Footnotes list'!$D$9:$E$58,2,FALSE) ) )","v":""},null,null,null,null,{"$f":"IF(TRIM(DU24)=\"\", \"\", IF(VLOOKUP(DU24,'Footnotes list'!$D$9:$E$58,2,FALSE)=0,\"\",VLOOKUP(DU24,'Footnotes list'!$D$9:$E$58,2,FALSE) ) )","v":""},null,null,null,null,{"$f":"IF(TRIM(DZ24)=\"\", \"\", IF(VLOOKUP(DZ24,'Footnotes list'!$D$9:$E$58,2,FALSE)=0,\"\",VLOOKUP(DZ24,'Footnotes list'!$D$9:$E$58,2,FALSE) ) )","v":""},null,null,null,null,{"$f":"IF(TRIM(EE24)=\"\", \"\", IF(VLOOKUP(EE24,'Footnotes list'!$D$9:$E$58,2,FALSE)=0,\"\",VLOOKUP(EE24,'Footnotes list'!$D$9:$E$58,2,FALSE) ) )","v":""},null,null,null,null,{"$f":"IF(TRIM(EJ24)=\"\", \"\", IF(VLOOKUP(EJ24,'Footnotes list'!$D$9:$E$58,2,FALSE)=0,\"\",VLOOKUP(EJ24,'Footnotes list'!$D$9:$E$58,2,FALSE) ) )","v":""},null,null,null,null,{"$f":"IF(TRIM(EO24)=\"\", \"\", IF(VLOOKUP(EO24,'Footnotes list'!$D$9:$E$58,2,FALSE)=0,\"\",VLOOKUP(EO24,'Footnotes list'!$D$9:$E$58,2,FALSE) ) )","v":""},null,null,null,null,{"$f":"IF(TRIM(ET24)=\"\", \"\", IF(VLOOKUP(ET24,'Footnotes list'!$D$9:$E$58,2,FALSE)=0,\"\",VLOOKUP(ET24,'Footnotes list'!$D$9:$E$58,2,FALSE) ) )","v":""},null,null,null,null,{"$f":"IF(TRIM(EY24)=\"\", \"\", IF(VLOOKUP(EY24,'Footnotes list'!$D$9:$E$58,2,FALSE)=0,\"\",VLOOKUP(EY24,'Footnotes list'!$D$9:$E$58,2,FALSE) ) )","v":""}]
[null,null,"C13-C15","C_REP","cleaner and resource efficient products",null,null,null,null,null,{"$f":"IF(TRIM(J25)=\"\", \"\", IF(VLOOKUP(J25,'Footnotes list'!$D$9:$E$58,2,FALSE)=0,\"\",VLOOKUP(J25,'Footnotes list'!$D$9:$E$58,2,FALSE) ) )","v":""},null,null,null,null,{"$f":"IF(TRIM(O25)=\"\", \"\", IF(VLOOKUP(O25,'Footnotes list'!$D$9:$E$58,2,FALSE)=0,\"\",VLOOKUP(O25,'Footnotes list'!$D$9:$E$58,2,FALSE) ) )","v":""},null,null,null,null,{"$f":"IF(TRIM(T25)=\"\", \"\", IF(VLOOKUP(T25,'Footnotes list'!$D$9:$E$58,2,FALSE)=0,\"\",VLOOKUP(T25,'Footnotes list'!$D$9:$E$58,2,FALSE) ) )","v":""},null,null,null,null,{"$f":"IF(TRIM(Y25)=\"\", \"\", IF(VLOOKUP(Y25,'Footnotes list'!$D$9:$E$58,2,FALSE)=0,\"\",VLOOKUP(Y25,'Footnotes list'!$D$9:$E$58,2,FALSE) ) )","v":""},null,null,null,null,{"$f":"IF(TRIM(AD25)=\"\", \"\", IF(VLOOKUP(AD25,'Footnotes list'!$D$9:$E$58,2,FALSE)=0,\"\",VLOOKUP(AD25,'Footnotes list'!$D$9:$E$58,2,FALSE) ) )","v":""},null,null,null,null,{"$f":"IF(TRIM(AI25)=\"\", \"\", IF(VLOOKUP(AI25,'Footnotes list'!$D$9:$E$58,2,FALSE)=0,\"\",VLOOKUP(AI25,'Footnotes list'!$D$9:$E$58,2,FALSE) ) )","v":""},null,null,null,null,{"$f":"IF(TRIM(AN25)=\"\", \"\", IF(VLOOKUP(AN25,'Footnotes list'!$D$9:$E$58,2,FALSE)=0,\"\",VLOOKUP(AN25,'Footnotes list'!$D$9:$E$58,2,FALSE) ) )","v":""},null,null,null,null,{"$f":"IF(TRIM(AS25)=\"\", \"\", IF(VLOOKUP(AS25,'Footnotes list'!$D$9:$E$58,2,FALSE)=0,\"\",VLOOKUP(AS25,'Footnotes list'!$D$9:$E$58,2,FALSE) ) )","v":""},null,null,null,null,{"$f":"IF(TRIM(AX25)=\"\", \"\", IF(VLOOKUP(AX25,'Footnotes list'!$D$9:$E$58,2,FALSE)=0,\"\",VLOOKUP(AX25,'Footnotes list'!$D$9:$E$58,2,FALSE) ) )","v":""},null,null,null,null,{"$f":"IF(TRIM(BC25)=\"\", \"\", IF(VLOOKUP(BC25,'Footnotes list'!$D$9:$E$58,2,FALSE)=0,\"\",VLOOKUP(BC25,'Footnotes list'!$D$9:$E$58,2,FALSE) ) )","v":""},null,null,null,null,{"$f":"IF(TRIM(BH25)=\"\", \"\", IF(VLOOKUP(BH25,'Footnotes list'!$D$9:$E$58,2,FALSE)=0,\"\",VLOOKUP(BH25,'Footnotes list'!$D$9:$E$58,2,FALSE) ) )","v":""},null,null,null,null,{"$f":"IF(TRIM(BM25)=\"\", \"\", IF(VLOOKUP(BM25,'Footnotes list'!$D$9:$E$58,2,FALSE)=0,\"\",VLOOKUP(BM25,'Footnotes list'!$D$9:$E$58,2,FALSE) ) )","v":""},null,null,null,null,{"$f":"IF(TRIM(BR25)=\"\", \"\", IF(VLOOKUP(BR25,'Footnotes list'!$D$9:$E$58,2,FALSE)=0,\"\",VLOOKUP(BR25,'Footnotes list'!$D$9:$E$58,2,FALSE) ) )","v":""},null,null,null,null,{"$f":"IF(TRIM(BW25)=\"\", \"\", IF(VLOOKUP(BW25,'Footnotes list'!$D$9:$E$58,2,FALSE)=0,\"\",VLOOKUP(BW25,'Footnotes list'!$D$9:$E$58,2,FALSE) ) )","v":""},null,null,null,null,{"$f":"IF(TRIM(CB25)=\"\", \"\", IF(VLOOKUP(CB25,'Footnotes list'!$D$9:$E$58,2,FALSE)=0,\"\",VLOOKUP(CB25,'Footnotes list'!$D$9:$E$58,2,FALSE) ) )","v":""},null,null,null,null,{"$f":"IF(TRIM(CG25)=\"\", \"\", IF(VLOOKUP(CG25,'Footnotes list'!$D$9:$E$58,2,FALSE)=0,\"\",VLOOKUP(CG25,'Footnotes list'!$D$9:$E$58,2,FALSE) ) )","v":""},null,null,null,null,{"$f":"IF(TRIM(CL25)=\"\", \"\", IF(VLOOKUP(CL25,'Footnotes list'!$D$9:$E$58,2,FALSE)=0,\"\",VLOOKUP(CL25,'Footnotes list'!$D$9:$E$58,2,FALSE) ) )","v":""},null,null,null,null,{"$f":"IF(TRIM(CQ25)=\"\", \"\", IF(VLOOKUP(CQ25,'Footnotes list'!$D$9:$E$58,2,FALSE)=0,\"\",VLOOKUP(CQ25,'Footnotes list'!$D$9:$E$58,2,FALSE) ) )","v":""},null,null,null,null,{"$f":"IF(TRIM(CV25)=\"\", \"\", IF(VLOOKUP(CV25,'Footnotes list'!$D$9:$E$58,2,FALSE)=0,\"\",VLOOKUP(CV25,'Footnotes list'!$D$9:$E$58,2,FALSE) ) )","v":""},null,null,null,null,{"$f":"IF(TRIM(DA25)=\"\", \"\", IF(VLOOKUP(DA25,'Footnotes list'!$D$9:$E$58,2,FALSE)=0,\"\",VLOOKUP(DA25,'Footnotes list'!$D$9:$E$58,2,FALSE) ) )","v":""},null,null,null,null,{"$f":"IF(TRIM(DF25)=\"\", \"\", IF(VLOOKUP(DF25,'Footnotes list'!$D$9:$E$58,2,FALSE)=0,\"\",VLOOKUP(DF25,'Footnotes list'!$D$9:$E$58,2,FALSE) ) )","v":""},null,null,null,null,{"$f":"IF(TRIM(DK25)=\"\", \"\", IF(VLOOKUP(DK25,'Footnotes list'!$D$9:$E$58,2,FALSE)=0,\"\",VLOOKUP(DK25,'Footnotes list'!$D$9:$E$58,2,FALSE) ) )","v":""},null,null,null,null,{"$f":"IF(TRIM(DP25)=\"\", \"\", IF(VLOOKUP(DP25,'Footnotes list'!$D$9:$E$58,2,FALSE)=0,\"\",VLOOKUP(DP25,'Footnotes list'!$D$9:$E$58,2,FALSE) ) )","v":""},null,null,null,null,{"$f":"IF(TRIM(DU25)=\"\", \"\", IF(VLOOKUP(DU25,'Footnotes list'!$D$9:$E$58,2,FALSE)=0,\"\",VLOOKUP(DU25,'Footnotes list'!$D$9:$E$58,2,FALSE) ) )","v":""},null,null,null,null,{"$f":"IF(TRIM(DZ25)=\"\", \"\", IF(VLOOKUP(DZ25,'Footnotes list'!$D$9:$E$58,2,FALSE)=0,\"\",VLOOKUP(DZ25,'Footnotes list'!$D$9:$E$58,2,FALSE) ) )","v":""},null,null,null,null,{"$f":"IF(TRIM(EE25)=\"\", \"\", IF(VLOOKUP(EE25,'Footnotes list'!$D$9:$E$58,2,FALSE)=0,\"\",VLOOKUP(EE25,'Footnotes list'!$D$9:$E$58,2,FALSE) ) )","v":""},null,null,null,null,{"$f":"IF(TRIM(EJ25)=\"\", \"\", IF(VLOOKUP(EJ25,'Footnotes list'!$D$9:$E$58,2,FALSE)=0,\"\",VLOOKUP(EJ25,'Footnotes list'!$D$9:$E$58,2,FALSE) ) )","v":""},null,null,null,null,{"$f":"IF(TRIM(EO25)=\"\", \"\", IF(VLOOKUP(EO25,'Footnotes list'!$D$9:$E$58,2,FALSE)=0,\"\",VLOOKUP(EO25,'Footnotes list'!$D$9:$E$58,2,FALSE) ) )","v":""},null,null,null,null,{"$f":"IF(TRIM(ET25)=\"\", \"\", IF(VLOOKUP(ET25,'Footnotes list'!$D$9:$E$58,2,FALSE)=0,\"\",VLOOKUP(ET25,'Footnotes list'!$D$9:$E$58,2,FALSE) ) )","v":""},null,null,null,null,{"$f":"IF(TRIM(EY25)=\"\", \"\", IF(VLOOKUP(EY25,'Footnotes list'!$D$9:$E$58,2,FALSE)=0,\"\",VLOOKUP(EY25,'Footnotes list'!$D$9:$E$58,2,FALSE) ) )","v":""}]
[null,null,"C16-C18","TOT_EGSS","Total C16 - C18 Manufacture of wood and paper products, and printing, including:",null,null,null,null,null,{"$f":"IF(TRIM(J26)=\"\", \"\", IF(VLOOKUP(J26,'Footnotes list'!$D$9:$E$58,2,FALSE)=0,\"\",VLOOKUP(J26,'Footnotes list'!$D$9:$E$58,2,FALSE) ) )","v":""},null,null,null,null,{"$f":"IF(TRIM(O26)=\"\", \"\", IF(VLOOKUP(O26,'Footnotes list'!$D$9:$E$58,2,FALSE)=0,\"\",VLOOKUP(O26,'Footnotes list'!$D$9:$E$58,2,FALSE) ) )","v":""},null,null,null,null,{"$f":"IF(TRIM(T26)=\"\", \"\", IF(VLOOKUP(T26,'Footnotes list'!$D$9:$E$58,2,FALSE)=0,\"\",VLOOKUP(T26,'Footnotes list'!$D$9:$E$58,2,FALSE) ) )","v":""},null,null,null,null,{"$f":"IF(TRIM(Y26)=\"\", \"\", IF(VLOOKUP(Y26,'Footnotes list'!$D$9:$E$58,2,FALSE)=0,\"\",VLOOKUP(Y26,'Footnotes list'!$D$9:$E$58,2,FALSE) ) )","v":""},null,null,null,null,{"$f":"IF(TRIM(AD26)=\"\", \"\", IF(VLOOKUP(AD26,'Footnotes list'!$D$9:$E$58,2,FALSE)=0,\"\",VLOOKUP(AD26,'Footnotes list'!$D$9:$E$58,2,FALSE) ) )","v":""},null,null,null,null,{"$f":"IF(TRIM(AI26)=\"\", \"\", IF(VLOOKUP(AI26,'Footnotes list'!$D$9:$E$58,2,FALSE)=0,\"\",VLOOKUP(AI26,'Footnotes list'!$D$9:$E$58,2,FALSE) ) )","v":""},null,null,null,null,{"$f":"IF(TRIM(AN26)=\"\", \"\", IF(VLOOKUP(AN26,'Footnotes list'!$D$9:$E$58,2,FALSE)=0,\"\",VLOOKUP(AN26,'Footnotes list'!$D$9:$E$58,2,FALSE) ) )","v":""},null,null,null,null,{"$f":"IF(TRIM(AS26)=\"\", \"\", IF(VLOOKUP(AS26,'Footnotes list'!$D$9:$E$58,2,FALSE)=0,\"\",VLOOKUP(AS26,'Footnotes list'!$D$9:$E$58,2,FALSE) ) )","v":""},null,null,null,null,{"$f":"IF(TRIM(AX26)=\"\", \"\", IF(VLOOKUP(AX26,'Footnotes list'!$D$9:$E$58,2,FALSE)=0,\"\",VLOOKUP(AX26,'Footnotes list'!$D$9:$E$58,2,FALSE) ) )","v":""},null,null,null,null,{"$f":"IF(TRIM(BC26)=\"\", \"\", IF(VLOOKUP(BC26,'Footnotes list'!$D$9:$E$58,2,FALSE)=0,\"\",VLOOKUP(BC26,'Footnotes list'!$D$9:$E$58,2,FALSE) ) )","v":""},null,null,null,null,{"$f":"IF(TRIM(BH26)=\"\", \"\", IF(VLOOKUP(BH26,'Footnotes list'!$D$9:$E$58,2,FALSE)=0,\"\",VLOOKUP(BH26,'Footnotes list'!$D$9:$E$58,2,FALSE) ) )","v":""},null,null,null,null,{"$f":"IF(TRIM(BM26)=\"\", \"\", IF(VLOOKUP(BM26,'Footnotes list'!$D$9:$E$58,2,FALSE)=0,\"\",VLOOKUP(BM26,'Footnotes list'!$D$9:$E$58,2,FALSE) ) )","v":""},null,null,null,null,{"$f":"IF(TRIM(BR26)=\"\", \"\", IF(VLOOKUP(BR26,'Footnotes list'!$D$9:$E$58,2,FALSE)=0,\"\",VLOOKUP(BR26,'Footnotes list'!$D$9:$E$58,2,FALSE) ) )","v":""},null,null,null,null,{"$f":"IF(TRIM(BW26)=\"\", \"\", IF(VLOOKUP(BW26,'Footnotes list'!$D$9:$E$58,2,FALSE)=0,\"\",VLOOKUP(BW26,'Footnotes list'!$D$9:$E$58,2,FALSE) ) )","v":""},null,null,null,null,{"$f":"IF(TRIM(CB26)=\"\", \"\", IF(VLOOKUP(CB26,'Footnotes list'!$D$9:$E$58,2,FALSE)=0,\"\",VLOOKUP(CB26,'Footnotes list'!$D$9:$E$58,2,FALSE) ) )","v":""},null,null,null,null,{"$f":"IF(TRIM(CG26)=\"\", \"\", IF(VLOOKUP(CG26,'Footnotes list'!$D$9:$E$58,2,FALSE)=0,\"\",VLOOKUP(CG26,'Footnotes list'!$D$9:$E$58,2,FALSE) ) )","v":""},null,null,null,null,{"$f":"IF(TRIM(CL26)=\"\", \"\", IF(VLOOKUP(CL26,'Footnotes list'!$D$9:$E$58,2,FALSE)=0,\"\",VLOOKUP(CL26,'Footnotes list'!$D$9:$E$58,2,FALSE) ) )","v":""},null,null,null,null,{"$f":"IF(TRIM(CQ26)=\"\", \"\", IF(VLOOKUP(CQ26,'Footnotes list'!$D$9:$E$58,2,FALSE)=0,\"\",VLOOKUP(CQ26,'Footnotes list'!$D$9:$E$58,2,FALSE) ) )","v":""},null,null,null,null,{"$f":"IF(TRIM(CV26)=\"\", \"\", IF(VLOOKUP(CV26,'Footnotes list'!$D$9:$E$58,2,FALSE)=0,\"\",VLOOKUP(CV26,'Footnotes list'!$D$9:$E$58,2,FALSE) ) )","v":""},null,null,null,null,{"$f":"IF(TRIM(DA26)=\"\", \"\", IF(VLOOKUP(DA26,'Footnotes list'!$D$9:$E$58,2,FALSE)=0,\"\",VLOOKUP(DA26,'Footnotes list'!$D$9:$E$58,2,FALSE) ) )","v":""},null,null,null,null,{"$f":"IF(TRIM(DF26)=\"\", \"\", IF(VLOOKUP(DF26,'Footnotes list'!$D$9:$E$58,2,FALSE)=0,\"\",VLOOKUP(DF26,'Footnotes list'!$D$9:$E$58,2,FALSE) ) )","v":""},null,null,null,null,{"$f":"IF(TRIM(DK26)=\"\", \"\", IF(VLOOKUP(DK26,'Footnotes list'!$D$9:$E$58,2,FALSE)=0,\"\",VLOOKUP(DK26,'Footnotes list'!$D$9:$E$58,2,FALSE) ) )","v":""},null,null,null,null,{"$f":"IF(TRIM(DP26)=\"\", \"\", IF(VLOOKUP(DP26,'Footnotes list'!$D$9:$E$58,2,FALSE)=0,\"\",VLOOKUP(DP26,'Footnotes list'!$D$9:$E$58,2,FALSE) ) )","v":""},null,null,null,null,{"$f":"IF(TRIM(DU26)=\"\", \"\", IF(VLOOKUP(DU26,'Footnotes list'!$D$9:$E$58,2,FALSE)=0,\"\",VLOOKUP(DU26,'Footnotes list'!$D$9:$E$58,2,FALSE) ) )","v":""},null,null,null,null,{"$f":"IF(TRIM(DZ26)=\"\", \"\", IF(VLOOKUP(DZ26,'Footnotes list'!$D$9:$E$58,2,FALSE)=0,\"\",VLOOKUP(DZ26,'Footnotes list'!$D$9:$E$58,2,FALSE) ) )","v":""},null,null,null,null,{"$f":"IF(TRIM(EE26)=\"\", \"\", IF(VLOOKUP(EE26,'Footnotes list'!$D$9:$E$58,2,FALSE)=0,\"\",VLOOKUP(EE26,'Footnotes list'!$D$9:$E$58,2,FALSE) ) )","v":""},null,null,null,null,{"$f":"IF(TRIM(EJ26)=\"\", \"\", IF(VLOOKUP(EJ26,'Footnotes list'!$D$9:$E$58,2,FALSE)=0,\"\",VLOOKUP(EJ26,'Footnotes list'!$D$9:$E$58,2,FALSE) ) )","v":""},null,null,null,null,{"$f":"IF(TRIM(EO26)=\"\", \"\", IF(VLOOKUP(EO26,'Footnotes list'!$D$9:$E$58,2,FALSE)=0,\"\",VLOOKUP(EO26,'Footnotes list'!$D$9:$E$58,2,FALSE) ) )","v":""},null,null,null,null,{"$f":"IF(TRIM(ET26)=\"\", \"\", IF(VLOOKUP(ET26,'Footnotes list'!$D$9:$E$58,2,FALSE)=0,\"\",VLOOKUP(ET26,'Footnotes list'!$D$9:$E$58,2,FALSE) ) )","v":""},null,null,null,null,{"$f":"IF(TRIM(EY26)=\"\", \"\", IF(VLOOKUP(EY26,'Footnotes list'!$D$9:$E$58,2,FALSE)=0,\"\",VLOOKUP(EY26,'Footnotes list'!$D$9:$E$58,2,FALSE) ) )","v":""}]
[null,null,"C16-C18","ES_CS","environmental specific services",null,null,null,null,null,{"$f":"IF(TRIM(J27)=\"\", \"\", IF(VLOOKUP(J27,'Footnotes list'!$D$9:$E$58,2,FALSE)=0,\"\",VLOOKUP(J27,'Footnotes list'!$D$9:$E$58,2,FALSE) ) )","v":""},null,null,null,null,{"$f":"IF(TRIM(O27)=\"\", \"\", IF(VLOOKUP(O27,'Footnotes list'!$D$9:$E$58,2,FALSE)=0,\"\",VLOOKUP(O27,'Footnotes list'!$D$9:$E$58,2,FALSE) ) )","v":""},null,null,null,null,{"$f":"IF(TRIM(T27)=\"\", \"\", IF(VLOOKUP(T27,'Footnotes list'!$D$9:$E$58,2,FALSE)=0,\"\",VLOOKUP(T27,'Footnotes list'!$D$9:$E$58,2,FALSE) ) )","v":""},null,null,null,null,{"$f":"IF(TRIM(Y27)=\"\", \"\", IF(VLOOKUP(Y27,'Footnotes list'!$D$9:$E$58,2,FALSE)=0,\"\",VLOOKUP(Y27,'Footnotes list'!$D$9:$E$58,2,FALSE) ) )","v":""},null,null,null,null,{"$f":"IF(TRIM(AD27)=\"\", \"\", IF(VLOOKUP(AD27,'Footnotes list'!$D$9:$E$58,2,FALSE)=0,\"\",VLOOKUP(AD27,'Footnotes list'!$D$9:$E$58,2,FALSE) ) )","v":""},null,null,null,null,{"$f":"IF(TRIM(AI27)=\"\", \"\", IF(VLOOKUP(AI27,'Footnotes list'!$D$9:$E$58,2,FALSE)=0,\"\",VLOOKUP(AI27,'Footnotes list'!$D$9:$E$58,2,FALSE) ) )","v":""},null,null,null,null,{"$f":"IF(TRIM(AN27)=\"\", \"\", IF(VLOOKUP(AN27,'Footnotes list'!$D$9:$E$58,2,FALSE)=0,\"\",VLOOKUP(AN27,'Footnotes list'!$D$9:$E$58,2,FALSE) ) )","v":""},null,null,null,null,{"$f":"IF(TRIM(AS27)=\"\", \"\", IF(VLOOKUP(AS27,'Footnotes list'!$D$9:$E$58,2,FALSE)=0,\"\",VLOOKUP(AS27,'Footnotes list'!$D$9:$E$58,2,FALSE) ) )","v":""},null,null,null,null,{"$f":"IF(TRIM(AX27)=\"\", \"\", IF(VLOOKUP(AX27,'Footnotes list'!$D$9:$E$58,2,FALSE)=0,\"\",VLOOKUP(AX27,'Footnotes list'!$D$9:$E$58,2,FALSE) ) )","v":""},null,null,null,null,{"$f":"IF(TRIM(BC27)=\"\", \"\", IF(VLOOKUP(BC27,'Footnotes list'!$D$9:$E$58,2,FALSE)=0,\"\",VLOOKUP(BC27,'Footnotes list'!$D$9:$E$58,2,FALSE) ) )","v":""},null,null,null,null,{"$f":"IF(TRIM(BH27)=\"\", \"\", IF(VLOOKUP(BH27,'Footnotes list'!$D$9:$E$58,2,FALSE)=0,\"\",VLOOKUP(BH27,'Footnotes list'!$D$9:$E$58,2,FALSE) ) )","v":""},null,null,null,null,{"$f":"IF(TRIM(BM27)=\"\", \"\", IF(VLOOKUP(BM27,'Footnotes list'!$D$9:$E$58,2,FALSE)=0,\"\",VLOOKUP(BM27,'Footnotes list'!$D$9:$E$58,2,FALSE) ) )","v":""},null,null,null,null,{"$f":"IF(TRIM(BR27)=\"\", \"\", IF(VLOOKUP(BR27,'Footnotes list'!$D$9:$E$58,2,FALSE)=0,\"\",VLOOKUP(BR27,'Footnotes list'!$D$9:$E$58,2,FALSE) ) )","v":""},null,null,null,null,{"$f":"IF(TRIM(BW27)=\"\", \"\", IF(VLOOKUP(BW27,'Footnotes list'!$D$9:$E$58,2,FALSE)=0,\"\",VLOOKUP(BW27,'Footnotes list'!$D$9:$E$58,2,FALSE) ) )","v":""},null,null,null,null,{"$f":"IF(TRIM(CB27)=\"\", \"\", IF(VLOOKUP(CB27,'Footnotes list'!$D$9:$E$58,2,FALSE)=0,\"\",VLOOKUP(CB27,'Footnotes list'!$D$9:$E$58,2,FALSE) ) )","v":""},null,null,null,null,{"$f":"IF(TRIM(CG27)=\"\", \"\", IF(VLOOKUP(CG27,'Footnotes list'!$D$9:$E$58,2,FALSE)=0,\"\",VLOOKUP(CG27,'Footnotes list'!$D$9:$E$58,2,FALSE) ) )","v":""},null,null,null,null,{"$f":"IF(TRIM(CL27)=\"\", \"\", IF(VLOOKUP(CL27,'Footnotes list'!$D$9:$E$58,2,FALSE)=0,\"\",VLOOKUP(CL27,'Footnotes list'!$D$9:$E$58,2,FALSE) ) )","v":""},null,null,null,null,{"$f":"IF(TRIM(CQ27)=\"\", \"\", IF(VLOOKUP(CQ27,'Footnotes list'!$D$9:$E$58,2,FALSE)=0,\"\",VLOOKUP(CQ27,'Footnotes list'!$D$9:$E$58,2,FALSE) ) )","v":""},null,null,null,null,{"$f":"IF(TRIM(CV27)=\"\", \"\", IF(VLOOKUP(CV27,'Footnotes list'!$D$9:$E$58,2,FALSE)=0,\"\",VLOOKUP(CV27,'Footnotes list'!$D$9:$E$58,2,FALSE) ) )","v":""},null,null,null,null,{"$f":"IF(TRIM(DA27)=\"\", \"\", IF(VLOOKUP(DA27,'Footnotes list'!$D$9:$E$58,2,FALSE)=0,\"\",VLOOKUP(DA27,'Footnotes list'!$D$9:$E$58,2,FALSE) ) )","v":""},null,null,null,null,{"$f":"IF(TRIM(DF27)=\"\", \"\", IF(VLOOKUP(DF27,'Footnotes list'!$D$9:$E$58,2,FALSE)=0,\"\",VLOOKUP(DF27,'Footnotes list'!$D$9:$E$58,2,FALSE) ) )","v":""},null,null,null,null,{"$f":"IF(TRIM(DK27)=\"\", \"\", IF(VLOOKUP(DK27,'Footnotes list'!$D$9:$E$58,2,FALSE)=0,\"\",VLOOKUP(DK27,'Footnotes list'!$D$9:$E$58,2,FALSE) ) )","v":""},null,null,null,null,{"$f":"IF(TRIM(DP27)=\"\", \"\", IF(VLOOKUP(DP27,'Footnotes list'!$D$9:$E$58,2,FALSE)=0,\"\",VLOOKUP(DP27,'Footnotes list'!$D$9:$E$58,2,FALSE) ) )","v":""},null,null,null,null,{"$f":"IF(TRIM(DU27)=\"\", \"\", IF(VLOOKUP(DU27,'Footnotes list'!$D$9:$E$58,2,FALSE)=0,\"\",VLOOKUP(DU27,'Footnotes list'!$D$9:$E$58,2,FALSE) ) )","v":""},null,null,null,null,{"$f":"IF(TRIM(DZ27)=\"\", \"\", IF(VLOOKUP(DZ27,'Footnotes list'!$D$9:$E$58,2,FALSE)=0,\"\",VLOOKUP(DZ27,'Footnotes list'!$D$9:$E$58,2,FALSE) ) )","v":""},null,null,null,null,{"$f":"IF(TRIM(EE27)=\"\", \"\", IF(VLOOKUP(EE27,'Footnotes list'!$D$9:$E$58,2,FALSE)=0,\"\",VLOOKUP(EE27,'Footnotes list'!$D$9:$E$58,2,FALSE) ) )","v":""},null,null,null,null,{"$f":"IF(TRIM(EJ27)=\"\", \"\", IF(VLOOKUP(EJ27,'Footnotes list'!$D$9:$E$58,2,FALSE)=0,\"\",VLOOKUP(EJ27,'Footnotes list'!$D$9:$E$58,2,FALSE) ) )","v":""},null,null,null,null,{"$f":"IF(TRIM(EO27)=\"\", \"\", IF(VLOOKUP(EO27,'Footnotes list'!$D$9:$E$58,2,FALSE)=0,\"\",VLOOKUP(EO27,'Footnotes list'!$D$9:$E$58,2,FALSE) ) )","v":""},null,null,null,null,{"$f":"IF(TRIM(ET27)=\"\", \"\", IF(VLOOKUP(ET27,'Footnotes list'!$D$9:$E$58,2,FALSE)=0,\"\",VLOOKUP(ET27,'Footnotes list'!$D$9:$E$58,2,FALSE) ) )","v":""},null,null,null,null,{"$f":"IF(TRIM(EY27)=\"\", \"\", IF(VLOOKUP(EY27,'Footnotes list'!$D$9:$E$58,2,FALSE)=0,\"\",VLOOKUP(EY27,'Footnotes list'!$D$9:$E$58,2,FALSE) ) )","v":""}]
[null,null,"C16-C18","C_REP","cleaner and resource efficient products",null,null,null,null,null,{"$f":"IF(TRIM(J28)=\"\", \"\", IF(VLOOKUP(J28,'Footnotes list'!$D$9:$E$58,2,FALSE)=0,\"\",VLOOKUP(J28,'Footnotes list'!$D$9:$E$58,2,FALSE) ) )","v":""},null,null,null,null,{"$f":"IF(TRIM(O28)=\"\", \"\", IF(VLOOKUP(O28,'Footnotes list'!$D$9:$E$58,2,FALSE)=0,\"\",VLOOKUP(O28,'Footnotes list'!$D$9:$E$58,2,FALSE) ) )","v":""},null,null,null,null,{"$f":"IF(TRIM(T28)=\"\", \"\", IF(VLOOKUP(T28,'Footnotes list'!$D$9:$E$58,2,FALSE)=0,\"\",VLOOKUP(T28,'Footnotes list'!$D$9:$E$58,2,FALSE) ) )","v":""},null,null,null,null,{"$f":"IF(TRIM(Y28)=\"\", \"\", IF(VLOOKUP(Y28,'Footnotes list'!$D$9:$E$58,2,FALSE)=0,\"\",VLOOKUP(Y28,'Footnotes list'!$D$9:$E$58,2,FALSE) ) )","v":""},null,null,null,null,{"$f":"IF(TRIM(AD28)=\"\", \"\", IF(VLOOKUP(AD28,'Footnotes list'!$D$9:$E$58,2,FALSE)=0,\"\",VLOOKUP(AD28,'Footnotes list'!$D$9:$E$58,2,FALSE) ) )","v":""},null,null,null,null,{"$f":"IF(TRIM(AI28)=\"\", \"\", IF(VLOOKUP(AI28,'Footnotes list'!$D$9:$E$58,2,FALSE)=0,\"\",VLOOKUP(AI28,'Footnotes list'!$D$9:$E$58,2,FALSE) ) )","v":""},null,null,null,null,{"$f":"IF(TRIM(AN28)=\"\", \"\", IF(VLOOKUP(AN28,'Footnotes list'!$D$9:$E$58,2,FALSE)=0,\"\",VLOOKUP(AN28,'Footnotes list'!$D$9:$E$58,2,FALSE) ) )","v":""},null,null,null,null,{"$f":"IF(TRIM(AS28)=\"\", \"\", IF(VLOOKUP(AS28,'Footnotes list'!$D$9:$E$58,2,FALSE)=0,\"\",VLOOKUP(AS28,'Footnotes list'!$D$9:$E$58,2,FALSE) ) )","v":""},null,null,null,null,{"$f":"IF(TRIM(AX28)=\"\", \"\", IF(VLOOKUP(AX28,'Footnotes list'!$D$9:$E$58,2,FALSE)=0,\"\",VLOOKUP(AX28,'Footnotes list'!$D$9:$E$58,2,FALSE) ) )","v":""},null,null,null,null,{"$f":"IF(TRIM(BC28)=\"\", \"\", IF(VLOOKUP(BC28,'Footnotes list'!$D$9:$E$58,2,FALSE)=0,\"\",VLOOKUP(BC28,'Footnotes list'!$D$9:$E$58,2,FALSE) ) )","v":""},null,null,null,null,{"$f":"IF(TRIM(BH28)=\"\", \"\", IF(VLOOKUP(BH28,'Footnotes list'!$D$9:$E$58,2,FALSE)=0,\"\",VLOOKUP(BH28,'Footnotes list'!$D$9:$E$58,2,FALSE) ) )","v":""},null,null,null,null,{"$f":"IF(TRIM(BM28)=\"\", \"\", IF(VLOOKUP(BM28,'Footnotes list'!$D$9:$E$58,2,FALSE)=0,\"\",VLOOKUP(BM28,'Footnotes list'!$D$9:$E$58,2,FALSE) ) )","v":""},null,null,null,null,{"$f":"IF(TRIM(BR28)=\"\", \"\", IF(VLOOKUP(BR28,'Footnotes list'!$D$9:$E$58,2,FALSE)=0,\"\",VLOOKUP(BR28,'Footnotes list'!$D$9:$E$58,2,FALSE) ) )","v":""},null,null,null,null,{"$f":"IF(TRIM(BW28)=\"\", \"\", IF(VLOOKUP(BW28,'Footnotes list'!$D$9:$E$58,2,FALSE)=0,\"\",VLOOKUP(BW28,'Footnotes list'!$D$9:$E$58,2,FALSE) ) )","v":""},null,null,null,null,{"$f":"IF(TRIM(CB28)=\"\", \"\", IF(VLOOKUP(CB28,'Footnotes list'!$D$9:$E$58,2,FALSE)=0,\"\",VLOOKUP(CB28,'Footnotes list'!$D$9:$E$58,2,FALSE) ) )","v":""},null,null,null,null,{"$f":"IF(TRIM(CG28)=\"\", \"\", IF(VLOOKUP(CG28,'Footnotes list'!$D$9:$E$58,2,FALSE)=0,\"\",VLOOKUP(CG28,'Footnotes list'!$D$9:$E$58,2,FALSE) ) )","v":""},null,null,null,null,{"$f":"IF(TRIM(CL28)=\"\", \"\", IF(VLOOKUP(CL28,'Footnotes list'!$D$9:$E$58,2,FALSE)=0,\"\",VLOOKUP(CL28,'Footnotes list'!$D$9:$E$58,2,FALSE) ) )","v":""},null,null,null,null,{"$f":"IF(TRIM(CQ28)=\"\", \"\", IF(VLOOKUP(CQ28,'Footnotes list'!$D$9:$E$58,2,FALSE)=0,\"\",VLOOKUP(CQ28,'Footnotes list'!$D$9:$E$58,2,FALSE) ) )","v":""},null,null,null,null,{"$f":"IF(TRIM(CV28)=\"\", \"\", IF(VLOOKUP(CV28,'Footnotes list'!$D$9:$E$58,2,FALSE)=0,\"\",VLOOKUP(CV28,'Footnotes list'!$D$9:$E$58,2,FALSE) ) )","v":""},null,null,null,null,{"$f":"IF(TRIM(DA28)=\"\", \"\", IF(VLOOKUP(DA28,'Footnotes list'!$D$9:$E$58,2,FALSE)=0,\"\",VLOOKUP(DA28,'Footnotes list'!$D$9:$E$58,2,FALSE) ) )","v":""},null,null,null,null,{"$f":"IF(TRIM(DF28)=\"\", \"\", IF(VLOOKUP(DF28,'Footnotes list'!$D$9:$E$58,2,FALSE)=0,\"\",VLOOKUP(DF28,'Footnotes list'!$D$9:$E$58,2,FALSE) ) )","v":""},null,null,null,null,{"$f":"IF(TRIM(DK28)=\"\", \"\", IF(VLOOKUP(DK28,'Footnotes list'!$D$9:$E$58,2,FALSE)=0,\"\",VLOOKUP(DK28,'Footnotes list'!$D$9:$E$58,2,FALSE) ) )","v":""},null,null,null,null,{"$f":"IF(TRIM(DP28)=\"\", \"\", IF(VLOOKUP(DP28,'Footnotes list'!$D$9:$E$58,2,FALSE)=0,\"\",VLOOKUP(DP28,'Footnotes list'!$D$9:$E$58,2,FALSE) ) )","v":""},null,null,null,null,{"$f":"IF(TRIM(DU28)=\"\", \"\", IF(VLOOKUP(DU28,'Footnotes list'!$D$9:$E$58,2,FALSE)=0,\"\",VLOOKUP(DU28,'Footnotes list'!$D$9:$E$58,2,FALSE) ) )","v":""},null,null,null,null,{"$f":"IF(TRIM(DZ28)=\"\", \"\", IF(VLOOKUP(DZ28,'Footnotes list'!$D$9:$E$58,2,FALSE)=0,\"\",VLOOKUP(DZ28,'Footnotes list'!$D$9:$E$58,2,FALSE) ) )","v":""},null,null,null,null,{"$f":"IF(TRIM(EE28)=\"\", \"\", IF(VLOOKUP(EE28,'Footnotes list'!$D$9:$E$58,2,FALSE)=0,\"\",VLOOKUP(EE28,'Footnotes list'!$D$9:$E$58,2,FALSE) ) )","v":""},null,null,null,null,{"$f":"IF(TRIM(EJ28)=\"\", \"\", IF(VLOOKUP(EJ28,'Footnotes list'!$D$9:$E$58,2,FALSE)=0,\"\",VLOOKUP(EJ28,'Footnotes list'!$D$9:$E$58,2,FALSE) ) )","v":""},null,null,null,null,{"$f":"IF(TRIM(EO28)=\"\", \"\", IF(VLOOKUP(EO28,'Footnotes list'!$D$9:$E$58,2,FALSE)=0,\"\",VLOOKUP(EO28,'Footnotes list'!$D$9:$E$58,2,FALSE) ) )","v":""},null,null,null,null,{"$f":"IF(TRIM(ET28)=\"\", \"\", IF(VLOOKUP(ET28,'Footnotes list'!$D$9:$E$58,2,FALSE)=0,\"\",VLOOKUP(ET28,'Footnotes list'!$D$9:$E$58,2,FALSE) ) )","v":""},null,null,null,null,{"$f":"IF(TRIM(EY28)=\"\", \"\", IF(VLOOKUP(EY28,'Footnotes list'!$D$9:$E$58,2,FALSE)=0,\"\",VLOOKUP(EY28,'Footnotes list'!$D$9:$E$58,2,FALSE) ) )","v":""}]
[null,null,"C19","TOT_EGSS","Total C19 - Manufacture of coke and refined petroleum products, including:",null,null,null,null,null,{"$f":"IF(TRIM(J29)=\"\", \"\", IF(VLOOKUP(J29,'Footnotes list'!$D$9:$E$58,2,FALSE)=0,\"\",VLOOKUP(J29,'Footnotes list'!$D$9:$E$58,2,FALSE) ) )","v":""},null,null,null,null,{"$f":"IF(TRIM(O29)=\"\", \"\", IF(VLOOKUP(O29,'Footnotes list'!$D$9:$E$58,2,FALSE)=0,\"\",VLOOKUP(O29,'Footnotes list'!$D$9:$E$58,2,FALSE) ) )","v":""},null,null,null,null,{"$f":"IF(TRIM(T29)=\"\", \"\", IF(VLOOKUP(T29,'Footnotes list'!$D$9:$E$58,2,FALSE)=0,\"\",VLOOKUP(T29,'Footnotes list'!$D$9:$E$58,2,FALSE) ) )","v":""},null,null,null,null,{"$f":"IF(TRIM(Y29)=\"\", \"\", IF(VLOOKUP(Y29,'Footnotes list'!$D$9:$E$58,2,FALSE)=0,\"\",VLOOKUP(Y29,'Footnotes list'!$D$9:$E$58,2,FALSE) ) )","v":""},null,null,null,null,{"$f":"IF(TRIM(AD29)=\"\", \"\", IF(VLOOKUP(AD29,'Footnotes list'!$D$9:$E$58,2,FALSE)=0,\"\",VLOOKUP(AD29,'Footnotes list'!$D$9:$E$58,2,FALSE) ) )","v":""},null,null,null,null,{"$f":"IF(TRIM(AI29)=\"\", \"\", IF(VLOOKUP(AI29,'Footnotes list'!$D$9:$E$58,2,FALSE)=0,\"\",VLOOKUP(AI29,'Footnotes list'!$D$9:$E$58,2,FALSE) ) )","v":""},null,null,null,null,{"$f":"IF(TRIM(AN29)=\"\", \"\", IF(VLOOKUP(AN29,'Footnotes list'!$D$9:$E$58,2,FALSE)=0,\"\",VLOOKUP(AN29,'Footnotes list'!$D$9:$E$58,2,FALSE) ) )","v":""},null,null,null,null,{"$f":"IF(TRIM(AS29)=\"\", \"\", IF(VLOOKUP(AS29,'Footnotes list'!$D$9:$E$58,2,FALSE)=0,\"\",VLOOKUP(AS29,'Footnotes list'!$D$9:$E$58,2,FALSE) ) )","v":""},null,null,null,null,{"$f":"IF(TRIM(AX29)=\"\", \"\", IF(VLOOKUP(AX29,'Footnotes list'!$D$9:$E$58,2,FALSE)=0,\"\",VLOOKUP(AX29,'Footnotes list'!$D$9:$E$58,2,FALSE) ) )","v":""},null,null,null,null,{"$f":"IF(TRIM(BC29)=\"\", \"\", IF(VLOOKUP(BC29,'Footnotes list'!$D$9:$E$58,2,FALSE)=0,\"\",VLOOKUP(BC29,'Footnotes list'!$D$9:$E$58,2,FALSE) ) )","v":""},null,null,null,null,{"$f":"IF(TRIM(BH29)=\"\", \"\", IF(VLOOKUP(BH29,'Footnotes list'!$D$9:$E$58,2,FALSE)=0,\"\",VLOOKUP(BH29,'Footnotes list'!$D$9:$E$58,2,FALSE) ) )","v":""},null,null,null,null,{"$f":"IF(TRIM(BM29)=\"\", \"\", IF(VLOOKUP(BM29,'Footnotes list'!$D$9:$E$58,2,FALSE)=0,\"\",VLOOKUP(BM29,'Footnotes list'!$D$9:$E$58,2,FALSE) ) )","v":""},null,null,null,null,{"$f":"IF(TRIM(BR29)=\"\", \"\", IF(VLOOKUP(BR29,'Footnotes list'!$D$9:$E$58,2,FALSE)=0,\"\",VLOOKUP(BR29,'Footnotes list'!$D$9:$E$58,2,FALSE) ) )","v":""},null,null,null,null,{"$f":"IF(TRIM(BW29)=\"\", \"\", IF(VLOOKUP(BW29,'Footnotes list'!$D$9:$E$58,2,FALSE)=0,\"\",VLOOKUP(BW29,'Footnotes list'!$D$9:$E$58,2,FALSE) ) )","v":""},null,null,null,null,{"$f":"IF(TRIM(CB29)=\"\", \"\", IF(VLOOKUP(CB29,'Footnotes list'!$D$9:$E$58,2,FALSE)=0,\"\",VLOOKUP(CB29,'Footnotes list'!$D$9:$E$58,2,FALSE) ) )","v":""},null,null,null,null,{"$f":"IF(TRIM(CG29)=\"\", \"\", IF(VLOOKUP(CG29,'Footnotes list'!$D$9:$E$58,2,FALSE)=0,\"\",VLOOKUP(CG29,'Footnotes list'!$D$9:$E$58,2,FALSE) ) )","v":""},null,null,null,null,{"$f":"IF(TRIM(CL29)=\"\", \"\", IF(VLOOKUP(CL29,'Footnotes list'!$D$9:$E$58,2,FALSE)=0,\"\",VLOOKUP(CL29,'Footnotes list'!$D$9:$E$58,2,FALSE) ) )","v":""},null,null,null,null,{"$f":"IF(TRIM(CQ29)=\"\", \"\", IF(VLOOKUP(CQ29,'Footnotes list'!$D$9:$E$58,2,FALSE)=0,\"\",VLOOKUP(CQ29,'Footnotes list'!$D$9:$E$58,2,FALSE) ) )","v":""},null,null,null,null,{"$f":"IF(TRIM(CV29)=\"\", \"\", IF(VLOOKUP(CV29,'Footnotes list'!$D$9:$E$58,2,FALSE)=0,\"\",VLOOKUP(CV29,'Footnotes list'!$D$9:$E$58,2,FALSE) ) )","v":""},null,null,null,null,{"$f":"IF(TRIM(DA29)=\"\", \"\", IF(VLOOKUP(DA29,'Footnotes list'!$D$9:$E$58,2,FALSE)=0,\"\",VLOOKUP(DA29,'Footnotes list'!$D$9:$E$58,2,FALSE) ) )","v":""},null,null,null,null,{"$f":"IF(TRIM(DF29)=\"\", \"\", IF(VLOOKUP(DF29,'Footnotes list'!$D$9:$E$58,2,FALSE)=0,\"\",VLOOKUP(DF29,'Footnotes list'!$D$9:$E$58,2,FALSE) ) )","v":""},null,null,null,null,{"$f":"IF(TRIM(DK29)=\"\", \"\", IF(VLOOKUP(DK29,'Footnotes list'!$D$9:$E$58,2,FALSE)=0,\"\",VLOOKUP(DK29,'Footnotes list'!$D$9:$E$58,2,FALSE) ) )","v":""},null,null,null,null,{"$f":"IF(TRIM(DP29)=\"\", \"\", IF(VLOOKUP(DP29,'Footnotes list'!$D$9:$E$58,2,FALSE)=0,\"\",VLOOKUP(DP29,'Footnotes list'!$D$9:$E$58,2,FALSE) ) )","v":""},null,null,null,null,{"$f":"IF(TRIM(DU29)=\"\", \"\", IF(VLOOKUP(DU29,'Footnotes list'!$D$9:$E$58,2,FALSE)=0,\"\",VLOOKUP(DU29,'Footnotes list'!$D$9:$E$58,2,FALSE) ) )","v":""},null,null,null,null,{"$f":"IF(TRIM(DZ29)=\"\", \"\", IF(VLOOKUP(DZ29,'Footnotes list'!$D$9:$E$58,2,FALSE)=0,\"\",VLOOKUP(DZ29,'Footnotes list'!$D$9:$E$58,2,FALSE) ) )","v":""},null,null,null,null,{"$f":"IF(TRIM(EE29)=\"\", \"\", IF(VLOOKUP(EE29,'Footnotes list'!$D$9:$E$58,2,FALSE)=0,\"\",VLOOKUP(EE29,'Footnotes list'!$D$9:$E$58,2,FALSE) ) )","v":""},null,null,null,null,{"$f":"IF(TRIM(EJ29)=\"\", \"\", IF(VLOOKUP(EJ29,'Footnotes list'!$D$9:$E$58,2,FALSE)=0,\"\",VLOOKUP(EJ29,'Footnotes list'!$D$9:$E$58,2,FALSE) ) )","v":""},null,null,null,null,{"$f":"IF(TRIM(EO29)=\"\", \"\", IF(VLOOKUP(EO29,'Footnotes list'!$D$9:$E$58,2,FALSE)=0,\"\",VLOOKUP(EO29,'Footnotes list'!$D$9:$E$58,2,FALSE) ) )","v":""},null,null,null,null,{"$f":"IF(TRIM(ET29)=\"\", \"\", IF(VLOOKUP(ET29,'Footnotes list'!$D$9:$E$58,2,FALSE)=0,\"\",VLOOKUP(ET29,'Footnotes list'!$D$9:$E$58,2,FALSE) ) )","v":""},null,null,null,null,{"$f":"IF(TRIM(EY29)=\"\", \"\", IF(VLOOKUP(EY29,'Footnotes list'!$D$9:$E$58,2,FALSE)=0,\"\",VLOOKUP(EY29,'Footnotes list'!$D$9:$E$58,2,FALSE) ) )","v":""}]
[null,null,"C19","ES_CS","environmental specific services",null,null,null,null,null,{"$f":"IF(TRIM(J30)=\"\", \"\", IF(VLOOKUP(J30,'Footnotes list'!$D$9:$E$58,2,FALSE)=0,\"\",VLOOKUP(J30,'Footnotes list'!$D$9:$E$58,2,FALSE) ) )","v":""},null,null,null,null,{"$f":"IF(TRIM(O30)=\"\", \"\", IF(VLOOKUP(O30,'Footnotes list'!$D$9:$E$58,2,FALSE)=0,\"\",VLOOKUP(O30,'Footnotes list'!$D$9:$E$58,2,FALSE) ) )","v":""},null,null,null,null,{"$f":"IF(TRIM(T30)=\"\", \"\", IF(VLOOKUP(T30,'Footnotes list'!$D$9:$E$58,2,FALSE)=0,\"\",VLOOKUP(T30,'Footnotes list'!$D$9:$E$58,2,FALSE) ) )","v":""},null,null,null,null,{"$f":"IF(TRIM(Y30)=\"\", \"\", IF(VLOOKUP(Y30,'Footnotes list'!$D$9:$E$58,2,FALSE)=0,\"\",VLOOKUP(Y30,'Footnotes list'!$D$9:$E$58,2,FALSE) ) )","v":""},null,null,null,null,{"$f":"IF(TRIM(AD30)=\"\", \"\", IF(VLOOKUP(AD30,'Footnotes list'!$D$9:$E$58,2,FALSE)=0,\"\",VLOOKUP(AD30,'Footnotes list'!$D$9:$E$58,2,FALSE) ) )","v":""},null,null,null,null,{"$f":"IF(TRIM(AI30)=\"\", \"\", IF(VLOOKUP(AI30,'Footnotes list'!$D$9:$E$58,2,FALSE)=0,\"\",VLOOKUP(AI30,'Footnotes list'!$D$9:$E$58,2,FALSE) ) )","v":""},null,null,null,null,{"$f":"IF(TRIM(AN30)=\"\", \"\", IF(VLOOKUP(AN30,'Footnotes list'!$D$9:$E$58,2,FALSE)=0,\"\",VLOOKUP(AN30,'Footnotes list'!$D$9:$E$58,2,FALSE) ) )","v":""},null,null,null,null,{"$f":"IF(TRIM(AS30)=\"\", \"\", IF(VLOOKUP(AS30,'Footnotes list'!$D$9:$E$58,2,FALSE)=0,\"\",VLOOKUP(AS30,'Footnotes list'!$D$9:$E$58,2,FALSE) ) )","v":""},null,null,null,null,{"$f":"IF(TRIM(AX30)=\"\", \"\", IF(VLOOKUP(AX30,'Footnotes list'!$D$9:$E$58,2,FALSE)=0,\"\",VLOOKUP(AX30,'Footnotes list'!$D$9:$E$58,2,FALSE) ) )","v":""},null,null,null,null,{"$f":"IF(TRIM(BC30)=\"\", \"\", IF(VLOOKUP(BC30,'Footnotes list'!$D$9:$E$58,2,FALSE)=0,\"\",VLOOKUP(BC30,'Footnotes list'!$D$9:$E$58,2,FALSE) ) )","v":""},null,null,null,null,{"$f":"IF(TRIM(BH30)=\"\", \"\", IF(VLOOKUP(BH30,'Footnotes list'!$D$9:$E$58,2,FALSE)=0,\"\",VLOOKUP(BH30,'Footnotes list'!$D$9:$E$58,2,FALSE) ) )","v":""},null,null,null,null,{"$f":"IF(TRIM(BM30)=\"\", \"\", IF(VLOOKUP(BM30,'Footnotes list'!$D$9:$E$58,2,FALSE)=0,\"\",VLOOKUP(BM30,'Footnotes list'!$D$9:$E$58,2,FALSE) ) )","v":""},null,null,null,null,{"$f":"IF(TRIM(BR30)=\"\", \"\", IF(VLOOKUP(BR30,'Footnotes list'!$D$9:$E$58,2,FALSE)=0,\"\",VLOOKUP(BR30,'Footnotes list'!$D$9:$E$58,2,FALSE) ) )","v":""},null,null,null,null,{"$f":"IF(TRIM(BW30)=\"\", \"\", IF(VLOOKUP(BW30,'Footnotes list'!$D$9:$E$58,2,FALSE)=0,\"\",VLOOKUP(BW30,'Footnotes list'!$D$9:$E$58,2,FALSE) ) )","v":""},null,null,null,null,{"$f":"IF(TRIM(CB30)=\"\", \"\", IF(VLOOKUP(CB30,'Footnotes list'!$D$9:$E$58,2,FALSE)=0,\"\",VLOOKUP(CB30,'Footnotes list'!$D$9:$E$58,2,FALSE) ) )","v":""},null,null,null,null,{"$f":"IF(TRIM(CG30)=\"\", \"\", IF(VLOOKUP(CG30,'Footnotes list'!$D$9:$E$58,2,FALSE)=0,\"\",VLOOKUP(CG30,'Footnotes list'!$D$9:$E$58,2,FALSE) ) )","v":""},null,null,null,null,{"$f":"IF(TRIM(CL30)=\"\", \"\", IF(VLOOKUP(CL30,'Footnotes list'!$D$9:$E$58,2,FALSE)=0,\"\",VLOOKUP(CL30,'Footnotes list'!$D$9:$E$58,2,FALSE) ) )","v":""},null,null,null,null,{"$f":"IF(TRIM(CQ30)=\"\", \"\", IF(VLOOKUP(CQ30,'Footnotes list'!$D$9:$E$58,2,FALSE)=0,\"\",VLOOKUP(CQ30,'Footnotes list'!$D$9:$E$58,2,FALSE) ) )","v":""},null,null,null,null,{"$f":"IF(TRIM(CV30)=\"\", \"\", IF(VLOOKUP(CV30,'Footnotes list'!$D$9:$E$58,2,FALSE)=0,\"\",VLOOKUP(CV30,'Footnotes list'!$D$9:$E$58,2,FALSE) ) )","v":""},null,null,null,null,{"$f":"IF(TRIM(DA30)=\"\", \"\", IF(VLOOKUP(DA30,'Footnotes list'!$D$9:$E$58,2,FALSE)=0,\"\",VLOOKUP(DA30,'Footnotes list'!$D$9:$E$58,2,FALSE) ) )","v":""},null,null,null,null,{"$f":"IF(TRIM(DF30)=\"\", \"\", IF(VLOOKUP(DF30,'Footnotes list'!$D$9:$E$58,2,FALSE)=0,\"\",VLOOKUP(DF30,'Footnotes list'!$D$9:$E$58,2,FALSE) ) )","v":""},null,null,null,null,{"$f":"IF(TRIM(DK30)=\"\", \"\", IF(VLOOKUP(DK30,'Footnotes list'!$D$9:$E$58,2,FALSE)=0,\"\",VLOOKUP(DK30,'Footnotes list'!$D$9:$E$58,2,FALSE) ) )","v":""},null,null,null,null,{"$f":"IF(TRIM(DP30)=\"\", \"\", IF(VLOOKUP(DP30,'Footnotes list'!$D$9:$E$58,2,FALSE)=0,\"\",VLOOKUP(DP30,'Footnotes list'!$D$9:$E$58,2,FALSE) ) )","v":""},null,null,null,null,{"$f":"IF(TRIM(DU30)=\"\", \"\", IF(VLOOKUP(DU30,'Footnotes list'!$D$9:$E$58,2,FALSE)=0,\"\",VLOOKUP(DU30,'Footnotes list'!$D$9:$E$58,2,FALSE) ) )","v":""},null,null,null,null,{"$f":"IF(TRIM(DZ30)=\"\", \"\", IF(VLOOKUP(DZ30,'Footnotes list'!$D$9:$E$58,2,FALSE)=0,\"\",VLOOKUP(DZ30,'Footnotes list'!$D$9:$E$58,2,FALSE) ) )","v":""},null,null,null,null,{"$f":"IF(TRIM(EE30)=\"\", \"\", IF(VLOOKUP(EE30,'Footnotes list'!$D$9:$E$58,2,FALSE)=0,\"\",VLOOKUP(EE30,'Footnotes list'!$D$9:$E$58,2,FALSE) ) )","v":""},null,null,null,null,{"$f":"IF(TRIM(EJ30)=\"\", \"\", IF(VLOOKUP(EJ30,'Footnotes list'!$D$9:$E$58,2,FALSE)=0,\"\",VLOOKUP(EJ30,'Footnotes list'!$D$9:$E$58,2,FALSE) ) )","v":""},null,null,null,null,{"$f":"IF(TRIM(EO30)=\"\", \"\", IF(VLOOKUP(EO30,'Footnotes list'!$D$9:$E$58,2,FALSE)=0,\"\",VLOOKUP(EO30,'Footnotes list'!$D$9:$E$58,2,FALSE) ) )","v":""},null,null,null,null,{"$f":"IF(TRIM(ET30)=\"\", \"\", IF(VLOOKUP(ET30,'Footnotes list'!$D$9:$E$58,2,FALSE)=0,\"\",VLOOKUP(ET30,'Footnotes list'!$D$9:$E$58,2,FALSE) ) )","v":""},null,null,null,null,{"$f":"IF(TRIM(EY30)=\"\", \"\", IF(VLOOKUP(EY30,'Footnotes list'!$D$9:$E$58,2,FALSE)=0,\"\",VLOOKUP(EY30,'Footnotes list'!$D$9:$E$58,2,FALSE) ) )","v":""}]
[null,null,"C19","C_REP","cleaner and resource efficient products",null,null,null,null,null,{"$f":"IF(TRIM(J31)=\"\", \"\", IF(VLOOKUP(J31,'Footnotes list'!$D$9:$E$58,2,FALSE)=0,\"\",VLOOKUP(J31,'Footnotes list'!$D$9:$E$58,2,FALSE) ) )","v":""},null,null,null,null,{"$f":"IF(TRIM(O31)=\"\", \"\", IF(VLOOKUP(O31,'Footnotes list'!$D$9:$E$58,2,FALSE)=0,\"\",VLOOKUP(O31,'Footnotes list'!$D$9:$E$58,2,FALSE) ) )","v":""},null,null,null,null,{"$f":"IF(TRIM(T31)=\"\", \"\", IF(VLOOKUP(T31,'Footnotes list'!$D$9:$E$58,2,FALSE)=0,\"\",VLOOKUP(T31,'Footnotes list'!$D$9:$E$58,2,FALSE) ) )","v":""},null,null,null,null,{"$f":"IF(TRIM(Y31)=\"\", \"\", IF(VLOOKUP(Y31,'Footnotes list'!$D$9:$E$58,2,FALSE)=0,\"\",VLOOKUP(Y31,'Footnotes list'!$D$9:$E$58,2,FALSE) ) )","v":""},null,null,null,null,{"$f":"IF(TRIM(AD31)=\"\", \"\", IF(VLOOKUP(AD31,'Footnotes list'!$D$9:$E$58,2,FALSE)=0,\"\",VLOOKUP(AD31,'Footnotes list'!$D$9:$E$58,2,FALSE) ) )","v":""},null,null,null,null,{"$f":"IF(TRIM(AI31)=\"\", \"\", IF(VLOOKUP(AI31,'Footnotes list'!$D$9:$E$58,2,FALSE)=0,\"\",VLOOKUP(AI31,'Footnotes list'!$D$9:$E$58,2,FALSE) ) )","v":""},null,null,null,null,{"$f":"IF(TRIM(AN31)=\"\", \"\", IF(VLOOKUP(AN31,'Footnotes list'!$D$9:$E$58,2,FALSE)=0,\"\",VLOOKUP(AN31,'Footnotes list'!$D$9:$E$58,2,FALSE) ) )","v":""},null,null,null,null,{"$f":"IF(TRIM(AS31)=\"\", \"\", IF(VLOOKUP(AS31,'Footnotes list'!$D$9:$E$58,2,FALSE)=0,\"\",VLOOKUP(AS31,'Footnotes list'!$D$9:$E$58,2,FALSE) ) )","v":""},null,null,null,null,{"$f":"IF(TRIM(AX31)=\"\", \"\", IF(VLOOKUP(AX31,'Footnotes list'!$D$9:$E$58,2,FALSE)=0,\"\",VLOOKUP(AX31,'Footnotes list'!$D$9:$E$58,2,FALSE) ) )","v":""},null,null,null,null,{"$f":"IF(TRIM(BC31)=\"\", \"\", IF(VLOOKUP(BC31,'Footnotes list'!$D$9:$E$58,2,FALSE)=0,\"\",VLOOKUP(BC31,'Footnotes list'!$D$9:$E$58,2,FALSE) ) )","v":""},null,null,null,null,{"$f":"IF(TRIM(BH31)=\"\", \"\", IF(VLOOKUP(BH31,'Footnotes list'!$D$9:$E$58,2,FALSE)=0,\"\",VLOOKUP(BH31,'Footnotes list'!$D$9:$E$58,2,FALSE) ) )","v":""},null,null,null,null,{"$f":"IF(TRIM(BM31)=\"\", \"\", IF(VLOOKUP(BM31,'Footnotes list'!$D$9:$E$58,2,FALSE)=0,\"\",VLOOKUP(BM31,'Footnotes list'!$D$9:$E$58,2,FALSE) ) )","v":""},null,null,null,null,{"$f":"IF(TRIM(BR31)=\"\", \"\", IF(VLOOKUP(BR31,'Footnotes list'!$D$9:$E$58,2,FALSE)=0,\"\",VLOOKUP(BR31,'Footnotes list'!$D$9:$E$58,2,FALSE) ) )","v":""},null,null,null,null,{"$f":"IF(TRIM(BW31)=\"\", \"\", IF(VLOOKUP(BW31,'Footnotes list'!$D$9:$E$58,2,FALSE)=0,\"\",VLOOKUP(BW31,'Footnotes list'!$D$9:$E$58,2,FALSE) ) )","v":""},null,null,null,null,{"$f":"IF(TRIM(CB31)=\"\", \"\", IF(VLOOKUP(CB31,'Footnotes list'!$D$9:$E$58,2,FALSE)=0,\"\",VLOOKUP(CB31,'Footnotes list'!$D$9:$E$58,2,FALSE) ) )","v":""},null,null,null,null,{"$f":"IF(TRIM(CG31)=\"\", \"\", IF(VLOOKUP(CG31,'Footnotes list'!$D$9:$E$58,2,FALSE)=0,\"\",VLOOKUP(CG31,'Footnotes list'!$D$9:$E$58,2,FALSE) ) )","v":""},null,null,null,null,{"$f":"IF(TRIM(CL31)=\"\", \"\", IF(VLOOKUP(CL31,'Footnotes list'!$D$9:$E$58,2,FALSE)=0,\"\",VLOOKUP(CL31,'Footnotes list'!$D$9:$E$58,2,FALSE) ) )","v":""},null,null,null,null,{"$f":"IF(TRIM(CQ31)=\"\", \"\", IF(VLOOKUP(CQ31,'Footnotes list'!$D$9:$E$58,2,FALSE)=0,\"\",VLOOKUP(CQ31,'Footnotes list'!$D$9:$E$58,2,FALSE) ) )","v":""},null,null,null,null,{"$f":"IF(TRIM(CV31)=\"\", \"\", IF(VLOOKUP(CV31,'Footnotes list'!$D$9:$E$58,2,FALSE)=0,\"\",VLOOKUP(CV31,'Footnotes list'!$D$9:$E$58,2,FALSE) ) )","v":""},null,null,null,null,{"$f":"IF(TRIM(DA31)=\"\", \"\", IF(VLOOKUP(DA31,'Footnotes list'!$D$9:$E$58,2,FALSE)=0,\"\",VLOOKUP(DA31,'Footnotes list'!$D$9:$E$58,2,FALSE) ) )","v":""},null,null,null,null,{"$f":"IF(TRIM(DF31)=\"\", \"\", IF(VLOOKUP(DF31,'Footnotes list'!$D$9:$E$58,2,FALSE)=0,\"\",VLOOKUP(DF31,'Footnotes list'!$D$9:$E$58,2,FALSE) ) )","v":""},null,null,null,null,{"$f":"IF(TRIM(DK31)=\"\", \"\", IF(VLOOKUP(DK31,'Footnotes list'!$D$9:$E$58,2,FALSE)=0,\"\",VLOOKUP(DK31,'Footnotes list'!$D$9:$E$58,2,FALSE) ) )","v":""},null,null,null,null,{"$f":"IF(TRIM(DP31)=\"\", \"\", IF(VLOOKUP(DP31,'Footnotes list'!$D$9:$E$58,2,FALSE)=0,\"\",VLOOKUP(DP31,'Footnotes list'!$D$9:$E$58,2,FALSE) ) )","v":""},null,null,null,null,{"$f":"IF(TRIM(DU31)=\"\", \"\", IF(VLOOKUP(DU31,'Footnotes list'!$D$9:$E$58,2,FALSE)=0,\"\",VLOOKUP(DU31,'Footnotes list'!$D$9:$E$58,2,FALSE) ) )","v":""},null,null,null,null,{"$f":"IF(TRIM(DZ31)=\"\", \"\", IF(VLOOKUP(DZ31,'Footnotes list'!$D$9:$E$58,2,FALSE)=0,\"\",VLOOKUP(DZ31,'Footnotes list'!$D$9:$E$58,2,FALSE) ) )","v":""},null,null,null,null,{"$f":"IF(TRIM(EE31)=\"\", \"\", IF(VLOOKUP(EE31,'Footnotes list'!$D$9:$E$58,2,FALSE)=0,\"\",VLOOKUP(EE31,'Footnotes list'!$D$9:$E$58,2,FALSE) ) )","v":""},null,null,null,null,{"$f":"IF(TRIM(EJ31)=\"\", \"\", IF(VLOOKUP(EJ31,'Footnotes list'!$D$9:$E$58,2,FALSE)=0,\"\",VLOOKUP(EJ31,'Footnotes list'!$D$9:$E$58,2,FALSE) ) )","v":""},null,null,null,null,{"$f":"IF(TRIM(EO31)=\"\", \"\", IF(VLOOKUP(EO31,'Footnotes list'!$D$9:$E$58,2,FALSE)=0,\"\",VLOOKUP(EO31,'Footnotes list'!$D$9:$E$58,2,FALSE) ) )","v":""},null,null,null,null,{"$f":"IF(TRIM(ET31)=\"\", \"\", IF(VLOOKUP(ET31,'Footnotes list'!$D$9:$E$58,2,FALSE)=0,\"\",VLOOKUP(ET31,'Footnotes list'!$D$9:$E$58,2,FALSE) ) )","v":""},null,null,null,null,{"$f":"IF(TRIM(EY31)=\"\", \"\", IF(VLOOKUP(EY31,'Footnotes list'!$D$9:$E$58,2,FALSE)=0,\"\",VLOOKUP(EY31,'Footnotes list'!$D$9:$E$58,2,FALSE) ) )","v":""}]
[null,null,"C20","TOT_EGSS","Total C20 - Manufacture of chemicals and chemical products, including:",null,null,null,null,null,{"$f":"IF(TRIM(J32)=\"\", \"\", IF(VLOOKUP(J32,'Footnotes list'!$D$9:$E$58,2,FALSE)=0,\"\",VLOOKUP(J32,'Footnotes list'!$D$9:$E$58,2,FALSE) ) )","v":""},null,null,null,null,{"$f":"IF(TRIM(O32)=\"\", \"\", IF(VLOOKUP(O32,'Footnotes list'!$D$9:$E$58,2,FALSE)=0,\"\",VLOOKUP(O32,'Footnotes list'!$D$9:$E$58,2,FALSE) ) )","v":""},null,null,null,null,{"$f":"IF(TRIM(T32)=\"\", \"\", IF(VLOOKUP(T32,'Footnotes list'!$D$9:$E$58,2,FALSE)=0,\"\",VLOOKUP(T32,'Footnotes list'!$D$9:$E$58,2,FALSE) ) )","v":""},null,null,null,null,{"$f":"IF(TRIM(Y32)=\"\", \"\", IF(VLOOKUP(Y32,'Footnotes list'!$D$9:$E$58,2,FALSE)=0,\"\",VLOOKUP(Y32,'Footnotes list'!$D$9:$E$58,2,FALSE) ) )","v":""},null,null,null,null,{"$f":"IF(TRIM(AD32)=\"\", \"\", IF(VLOOKUP(AD32,'Footnotes list'!$D$9:$E$58,2,FALSE)=0,\"\",VLOOKUP(AD32,'Footnotes list'!$D$9:$E$58,2,FALSE) ) )","v":""},null,null,null,null,{"$f":"IF(TRIM(AI32)=\"\", \"\", IF(VLOOKUP(AI32,'Footnotes list'!$D$9:$E$58,2,FALSE)=0,\"\",VLOOKUP(AI32,'Footnotes list'!$D$9:$E$58,2,FALSE) ) )","v":""},null,null,null,null,{"$f":"IF(TRIM(AN32)=\"\", \"\", IF(VLOOKUP(AN32,'Footnotes list'!$D$9:$E$58,2,FALSE)=0,\"\",VLOOKUP(AN32,'Footnotes list'!$D$9:$E$58,2,FALSE) ) )","v":""},null,null,null,null,{"$f":"IF(TRIM(AS32)=\"\", \"\", IF(VLOOKUP(AS32,'Footnotes list'!$D$9:$E$58,2,FALSE)=0,\"\",VLOOKUP(AS32,'Footnotes list'!$D$9:$E$58,2,FALSE) ) )","v":""},null,null,null,null,{"$f":"IF(TRIM(AX32)=\"\", \"\", IF(VLOOKUP(AX32,'Footnotes list'!$D$9:$E$58,2,FALSE)=0,\"\",VLOOKUP(AX32,'Footnotes list'!$D$9:$E$58,2,FALSE) ) )","v":""},null,null,null,null,{"$f":"IF(TRIM(BC32)=\"\", \"\", IF(VLOOKUP(BC32,'Footnotes list'!$D$9:$E$58,2,FALSE)=0,\"\",VLOOKUP(BC32,'Footnotes list'!$D$9:$E$58,2,FALSE) ) )","v":""},null,null,null,null,{"$f":"IF(TRIM(BH32)=\"\", \"\", IF(VLOOKUP(BH32,'Footnotes list'!$D$9:$E$58,2,FALSE)=0,\"\",VLOOKUP(BH32,'Footnotes list'!$D$9:$E$58,2,FALSE) ) )","v":""},null,null,null,null,{"$f":"IF(TRIM(BM32)=\"\", \"\", IF(VLOOKUP(BM32,'Footnotes list'!$D$9:$E$58,2,FALSE)=0,\"\",VLOOKUP(BM32,'Footnotes list'!$D$9:$E$58,2,FALSE) ) )","v":""},null,null,null,null,{"$f":"IF(TRIM(BR32)=\"\", \"\", IF(VLOOKUP(BR32,'Footnotes list'!$D$9:$E$58,2,FALSE)=0,\"\",VLOOKUP(BR32,'Footnotes list'!$D$9:$E$58,2,FALSE) ) )","v":""},null,null,null,null,{"$f":"IF(TRIM(BW32)=\"\", \"\", IF(VLOOKUP(BW32,'Footnotes list'!$D$9:$E$58,2,FALSE)=0,\"\",VLOOKUP(BW32,'Footnotes list'!$D$9:$E$58,2,FALSE) ) )","v":""},null,null,null,null,{"$f":"IF(TRIM(CB32)=\"\", \"\", IF(VLOOKUP(CB32,'Footnotes list'!$D$9:$E$58,2,FALSE)=0,\"\",VLOOKUP(CB32,'Footnotes list'!$D$9:$E$58,2,FALSE) ) )","v":""},null,null,null,null,{"$f":"IF(TRIM(CG32)=\"\", \"\", IF(VLOOKUP(CG32,'Footnotes list'!$D$9:$E$58,2,FALSE)=0,\"\",VLOOKUP(CG32,'Footnotes list'!$D$9:$E$58,2,FALSE) ) )","v":""},null,null,null,null,{"$f":"IF(TRIM(CL32)=\"\", \"\", IF(VLOOKUP(CL32,'Footnotes list'!$D$9:$E$58,2,FALSE)=0,\"\",VLOOKUP(CL32,'Footnotes list'!$D$9:$E$58,2,FALSE) ) )","v":""},null,null,null,null,{"$f":"IF(TRIM(CQ32)=\"\", \"\", IF(VLOOKUP(CQ32,'Footnotes list'!$D$9:$E$58,2,FALSE)=0,\"\",VLOOKUP(CQ32,'Footnotes list'!$D$9:$E$58,2,FALSE) ) )","v":""},null,null,null,null,{"$f":"IF(TRIM(CV32)=\"\", \"\", IF(VLOOKUP(CV32,'Footnotes list'!$D$9:$E$58,2,FALSE)=0,\"\",VLOOKUP(CV32,'Footnotes list'!$D$9:$E$58,2,FALSE) ) )","v":""},null,null,null,null,{"$f":"IF(TRIM(DA32)=\"\", \"\", IF(VLOOKUP(DA32,'Footnotes list'!$D$9:$E$58,2,FALSE)=0,\"\",VLOOKUP(DA32,'Footnotes list'!$D$9:$E$58,2,FALSE) ) )","v":""},null,null,null,null,{"$f":"IF(TRIM(DF32)=\"\", \"\", IF(VLOOKUP(DF32,'Footnotes list'!$D$9:$E$58,2,FALSE)=0,\"\",VLOOKUP(DF32,'Footnotes list'!$D$9:$E$58,2,FALSE) ) )","v":""},null,null,null,null,{"$f":"IF(TRIM(DK32)=\"\", \"\", IF(VLOOKUP(DK32,'Footnotes list'!$D$9:$E$58,2,FALSE)=0,\"\",VLOOKUP(DK32,'Footnotes list'!$D$9:$E$58,2,FALSE) ) )","v":""},null,null,null,null,{"$f":"IF(TRIM(DP32)=\"\", \"\", IF(VLOOKUP(DP32,'Footnotes list'!$D$9:$E$58,2,FALSE)=0,\"\",VLOOKUP(DP32,'Footnotes list'!$D$9:$E$58,2,FALSE) ) )","v":""},null,null,null,null,{"$f":"IF(TRIM(DU32)=\"\", \"\", IF(VLOOKUP(DU32,'Footnotes list'!$D$9:$E$58,2,FALSE)=0,\"\",VLOOKUP(DU32,'Footnotes list'!$D$9:$E$58,2,FALSE) ) )","v":""},null,null,null,null,{"$f":"IF(TRIM(DZ32)=\"\", \"\", IF(VLOOKUP(DZ32,'Footnotes list'!$D$9:$E$58,2,FALSE)=0,\"\",VLOOKUP(DZ32,'Footnotes list'!$D$9:$E$58,2,FALSE) ) )","v":""},null,null,null,null,{"$f":"IF(TRIM(EE32)=\"\", \"\", IF(VLOOKUP(EE32,'Footnotes list'!$D$9:$E$58,2,FALSE)=0,\"\",VLOOKUP(EE32,'Footnotes list'!$D$9:$E$58,2,FALSE) ) )","v":""},null,null,null,null,{"$f":"IF(TRIM(EJ32)=\"\", \"\", IF(VLOOKUP(EJ32,'Footnotes list'!$D$9:$E$58,2,FALSE)=0,\"\",VLOOKUP(EJ32,'Footnotes list'!$D$9:$E$58,2,FALSE) ) )","v":""},null,null,null,null,{"$f":"IF(TRIM(EO32)=\"\", \"\", IF(VLOOKUP(EO32,'Footnotes list'!$D$9:$E$58,2,FALSE)=0,\"\",VLOOKUP(EO32,'Footnotes list'!$D$9:$E$58,2,FALSE) ) )","v":""},null,null,null,null,{"$f":"IF(TRIM(ET32)=\"\", \"\", IF(VLOOKUP(ET32,'Footnotes list'!$D$9:$E$58,2,FALSE)=0,\"\",VLOOKUP(ET32,'Footnotes list'!$D$9:$E$58,2,FALSE) ) )","v":""},null,null,null,null,{"$f":"IF(TRIM(EY32)=\"\", \"\", IF(VLOOKUP(EY32,'Footnotes list'!$D$9:$E$58,2,FALSE)=0,\"\",VLOOKUP(EY32,'Footnotes list'!$D$9:$E$58,2,FALSE) ) )","v":""}]
[null,null,"C20","ES_CS","environmental specific services",null,null,null,null,null,{"$f":"IF(TRIM(J33)=\"\", \"\", IF(VLOOKUP(J33,'Footnotes list'!$D$9:$E$58,2,FALSE)=0,\"\",VLOOKUP(J33,'Footnotes list'!$D$9:$E$58,2,FALSE) ) )","v":""},null,null,null,null,{"$f":"IF(TRIM(O33)=\"\", \"\", IF(VLOOKUP(O33,'Footnotes list'!$D$9:$E$58,2,FALSE)=0,\"\",VLOOKUP(O33,'Footnotes list'!$D$9:$E$58,2,FALSE) ) )","v":""},null,null,null,null,{"$f":"IF(TRIM(T33)=\"\", \"\", IF(VLOOKUP(T33,'Footnotes list'!$D$9:$E$58,2,FALSE)=0,\"\",VLOOKUP(T33,'Footnotes list'!$D$9:$E$58,2,FALSE) ) )","v":""},null,null,null,null,{"$f":"IF(TRIM(Y33)=\"\", \"\", IF(VLOOKUP(Y33,'Footnotes list'!$D$9:$E$58,2,FALSE)=0,\"\",VLOOKUP(Y33,'Footnotes list'!$D$9:$E$58,2,FALSE) ) )","v":""},null,null,null,null,{"$f":"IF(TRIM(AD33)=\"\", \"\", IF(VLOOKUP(AD33,'Footnotes list'!$D$9:$E$58,2,FALSE)=0,\"\",VLOOKUP(AD33,'Footnotes list'!$D$9:$E$58,2,FALSE) ) )","v":""},null,null,null,null,{"$f":"IF(TRIM(AI33)=\"\", \"\", IF(VLOOKUP(AI33,'Footnotes list'!$D$9:$E$58,2,FALSE)=0,\"\",VLOOKUP(AI33,'Footnotes list'!$D$9:$E$58,2,FALSE) ) )","v":""},null,null,null,null,{"$f":"IF(TRIM(AN33)=\"\", \"\", IF(VLOOKUP(AN33,'Footnotes list'!$D$9:$E$58,2,FALSE)=0,\"\",VLOOKUP(AN33,'Footnotes list'!$D$9:$E$58,2,FALSE) ) )","v":""},null,null,null,null,{"$f":"IF(TRIM(AS33)=\"\", \"\", IF(VLOOKUP(AS33,'Footnotes list'!$D$9:$E$58,2,FALSE)=0,\"\",VLOOKUP(AS33,'Footnotes list'!$D$9:$E$58,2,FALSE) ) )","v":""},null,null,null,null,{"$f":"IF(TRIM(AX33)=\"\", \"\", IF(VLOOKUP(AX33,'Footnotes list'!$D$9:$E$58,2,FALSE)=0,\"\",VLOOKUP(AX33,'Footnotes list'!$D$9:$E$58,2,FALSE) ) )","v":""},null,null,null,null,{"$f":"IF(TRIM(BC33)=\"\", \"\", IF(VLOOKUP(BC33,'Footnotes list'!$D$9:$E$58,2,FALSE)=0,\"\",VLOOKUP(BC33,'Footnotes list'!$D$9:$E$58,2,FALSE) ) )","v":""},null,null,null,null,{"$f":"IF(TRIM(BH33)=\"\", \"\", IF(VLOOKUP(BH33,'Footnotes list'!$D$9:$E$58,2,FALSE)=0,\"\",VLOOKUP(BH33,'Footnotes list'!$D$9:$E$58,2,FALSE) ) )","v":""},null,null,null,null,{"$f":"IF(TRIM(BM33)=\"\", \"\", IF(VLOOKUP(BM33,'Footnotes list'!$D$9:$E$58,2,FALSE)=0,\"\",VLOOKUP(BM33,'Footnotes list'!$D$9:$E$58,2,FALSE) ) )","v":""},null,null,null,null,{"$f":"IF(TRIM(BR33)=\"\", \"\", IF(VLOOKUP(BR33,'Footnotes list'!$D$9:$E$58,2,FALSE)=0,\"\",VLOOKUP(BR33,'Footnotes list'!$D$9:$E$58,2,FALSE) ) )","v":""},null,null,null,null,{"$f":"IF(TRIM(BW33)=\"\", \"\", IF(VLOOKUP(BW33,'Footnotes list'!$D$9:$E$58,2,FALSE)=0,\"\",VLOOKUP(BW33,'Footnotes list'!$D$9:$E$58,2,FALSE) ) )","v":""},null,null,null,null,{"$f":"IF(TRIM(CB33)=\"\", \"\", IF(VLOOKUP(CB33,'Footnotes list'!$D$9:$E$58,2,FALSE)=0,\"\",VLOOKUP(CB33,'Footnotes list'!$D$9:$E$58,2,FALSE) ) )","v":""},null,null,null,null,{"$f":"IF(TRIM(CG33)=\"\", \"\", IF(VLOOKUP(CG33,'Footnotes list'!$D$9:$E$58,2,FALSE)=0,\"\",VLOOKUP(CG33,'Footnotes list'!$D$9:$E$58,2,FALSE) ) )","v":""},null,null,null,null,{"$f":"IF(TRIM(CL33)=\"\", \"\", IF(VLOOKUP(CL33,'Footnotes list'!$D$9:$E$58,2,FALSE)=0,\"\",VLOOKUP(CL33,'Footnotes list'!$D$9:$E$58,2,FALSE) ) )","v":""},null,null,null,null,{"$f":"IF(TRIM(CQ33)=\"\", \"\", IF(VLOOKUP(CQ33,'Footnotes list'!$D$9:$E$58,2,FALSE)=0,\"\",VLOOKUP(CQ33,'Footnotes list'!$D$9:$E$58,2,FALSE) ) )","v":""},null,null,null,null,{"$f":"IF(TRIM(CV33)=\"\", \"\", IF(VLOOKUP(CV33,'Footnotes list'!$D$9:$E$58,2,FALSE)=0,\"\",VLOOKUP(CV33,'Footnotes list'!$D$9:$E$58,2,FALSE) ) )","v":""},null,null,null,null,{"$f":"IF(TRIM(DA33)=\"\", \"\", IF(VLOOKUP(DA33,'Footnotes list'!$D$9:$E$58,2,FALSE)=0,\"\",VLOOKUP(DA33,'Footnotes list'!$D$9:$E$58,2,FALSE) ) )","v":""},null,null,null,null,{"$f":"IF(TRIM(DF33)=\"\", \"\", IF(VLOOKUP(DF33,'Footnotes list'!$D$9:$E$58,2,FALSE)=0,\"\",VLOOKUP(DF33,'Footnotes list'!$D$9:$E$58,2,FALSE) ) )","v":""},null,null,null,null,{"$f":"IF(TRIM(DK33)=\"\", \"\", IF(VLOOKUP(DK33,'Footnotes list'!$D$9:$E$58,2,FALSE)=0,\"\",VLOOKUP(DK33,'Footnotes list'!$D$9:$E$58,2,FALSE) ) )","v":""},null,null,null,null,{"$f":"IF(TRIM(DP33)=\"\", \"\", IF(VLOOKUP(DP33,'Footnotes list'!$D$9:$E$58,2,FALSE)=0,\"\",VLOOKUP(DP33,'Footnotes list'!$D$9:$E$58,2,FALSE) ) )","v":""},null,null,null,null,{"$f":"IF(TRIM(DU33)=\"\", \"\", IF(VLOOKUP(DU33,'Footnotes list'!$D$9:$E$58,2,FALSE)=0,\"\",VLOOKUP(DU33,'Footnotes list'!$D$9:$E$58,2,FALSE) ) )","v":""},null,null,null,null,{"$f":"IF(TRIM(DZ33)=\"\", \"\", IF(VLOOKUP(DZ33,'Footnotes list'!$D$9:$E$58,2,FALSE)=0,\"\",VLOOKUP(DZ33,'Footnotes list'!$D$9:$E$58,2,FALSE) ) )","v":""},null,null,null,null,{"$f":"IF(TRIM(EE33)=\"\", \"\", IF(VLOOKUP(EE33,'Footnotes list'!$D$9:$E$58,2,FALSE)=0,\"\",VLOOKUP(EE33,'Footnotes list'!$D$9:$E$58,2,FALSE) ) )","v":""},null,null,null,null,{"$f":"IF(TRIM(EJ33)=\"\", \"\", IF(VLOOKUP(EJ33,'Footnotes list'!$D$9:$E$58,2,FALSE)=0,\"\",VLOOKUP(EJ33,'Footnotes list'!$D$9:$E$58,2,FALSE) ) )","v":""},null,null,null,null,{"$f":"IF(TRIM(EO33)=\"\", \"\", IF(VLOOKUP(EO33,'Footnotes list'!$D$9:$E$58,2,FALSE)=0,\"\",VLOOKUP(EO33,'Footnotes list'!$D$9:$E$58,2,FALSE) ) )","v":""},null,null,null,null,{"$f":"IF(TRIM(ET33)=\"\", \"\", IF(VLOOKUP(ET33,'Footnotes list'!$D$9:$E$58,2,FALSE)=0,\"\",VLOOKUP(ET33,'Footnotes list'!$D$9:$E$58,2,FALSE) ) )","v":""},null,null,null,null,{"$f":"IF(TRIM(EY33)=\"\", \"\", IF(VLOOKUP(EY33,'Footnotes list'!$D$9:$E$58,2,FALSE)=0,\"\",VLOOKUP(EY33,'Footnotes list'!$D$9:$E$58,2,FALSE) ) )","v":""}]
[null,null,"C20","C_REP","cleaner and resource efficient products",null,null,null,null,null,{"$f":"IF(TRIM(J34)=\"\", \"\", IF(VLOOKUP(J34,'Footnotes list'!$D$9:$E$58,2,FALSE)=0,\"\",VLOOKUP(J34,'Footnotes list'!$D$9:$E$58,2,FALSE) ) )","v":""},null,null,null,null,{"$f":"IF(TRIM(O34)=\"\", \"\", IF(VLOOKUP(O34,'Footnotes list'!$D$9:$E$58,2,FALSE)=0,\"\",VLOOKUP(O34,'Footnotes list'!$D$9:$E$58,2,FALSE) ) )","v":""},null,null,null,null,{"$f":"IF(TRIM(T34)=\"\", \"\", IF(VLOOKUP(T34,'Footnotes list'!$D$9:$E$58,2,FALSE)=0,\"\",VLOOKUP(T34,'Footnotes list'!$D$9:$E$58,2,FALSE) ) )","v":""},null,null,null,null,{"$f":"IF(TRIM(Y34)=\"\", \"\", IF(VLOOKUP(Y34,'Footnotes list'!$D$9:$E$58,2,FALSE)=0,\"\",VLOOKUP(Y34,'Footnotes list'!$D$9:$E$58,2,FALSE) ) )","v":""},null,null,null,null,{"$f":"IF(TRIM(AD34)=\"\", \"\", IF(VLOOKUP(AD34,'Footnotes list'!$D$9:$E$58,2,FALSE)=0,\"\",VLOOKUP(AD34,'Footnotes list'!$D$9:$E$58,2,FALSE) ) )","v":""},null,null,null,null,{"$f":"IF(TRIM(AI34)=\"\", \"\", IF(VLOOKUP(AI34,'Footnotes list'!$D$9:$E$58,2,FALSE)=0,\"\",VLOOKUP(AI34,'Footnotes list'!$D$9:$E$58,2,FALSE) ) )","v":""},null,null,null,null,{"$f":"IF(TRIM(AN34)=\"\", \"\", IF(VLOOKUP(AN34,'Footnotes list'!$D$9:$E$58,2,FALSE)=0,\"\",VLOOKUP(AN34,'Footnotes list'!$D$9:$E$58,2,FALSE) ) )","v":""},null,null,null,null,{"$f":"IF(TRIM(AS34)=\"\", \"\", IF(VLOOKUP(AS34,'Footnotes list'!$D$9:$E$58,2,FALSE)=0,\"\",VLOOKUP(AS34,'Footnotes list'!$D$9:$E$58,2,FALSE) ) )","v":""},null,null,null,null,{"$f":"IF(TRIM(AX34)=\"\", \"\", IF(VLOOKUP(AX34,'Footnotes list'!$D$9:$E$58,2,FALSE)=0,\"\",VLOOKUP(AX34,'Footnotes list'!$D$9:$E$58,2,FALSE) ) )","v":""},null,null,null,null,{"$f":"IF(TRIM(BC34)=\"\", \"\", IF(VLOOKUP(BC34,'Footnotes list'!$D$9:$E$58,2,FALSE)=0,\"\",VLOOKUP(BC34,'Footnotes list'!$D$9:$E$58,2,FALSE) ) )","v":""},null,null,null,null,{"$f":"IF(TRIM(BH34)=\"\", \"\", IF(VLOOKUP(BH34,'Footnotes list'!$D$9:$E$58,2,FALSE)=0,\"\",VLOOKUP(BH34,'Footnotes list'!$D$9:$E$58,2,FALSE) ) )","v":""},null,null,null,null,{"$f":"IF(TRIM(BM34)=\"\", \"\", IF(VLOOKUP(BM34,'Footnotes list'!$D$9:$E$58,2,FALSE)=0,\"\",VLOOKUP(BM34,'Footnotes list'!$D$9:$E$58,2,FALSE) ) )","v":""},null,null,null,null,{"$f":"IF(TRIM(BR34)=\"\", \"\", IF(VLOOKUP(BR34,'Footnotes list'!$D$9:$E$58,2,FALSE)=0,\"\",VLOOKUP(BR34,'Footnotes list'!$D$9:$E$58,2,FALSE) ) )","v":""},null,null,null,null,{"$f":"IF(TRIM(BW34)=\"\", \"\", IF(VLOOKUP(BW34,'Footnotes list'!$D$9:$E$58,2,FALSE)=0,\"\",VLOOKUP(BW34,'Footnotes list'!$D$9:$E$58,2,FALSE) ) )","v":""},null,null,null,null,{"$f":"IF(TRIM(CB34)=\"\", \"\", IF(VLOOKUP(CB34,'Footnotes list'!$D$9:$E$58,2,FALSE)=0,\"\",VLOOKUP(CB34,'Footnotes list'!$D$9:$E$58,2,FALSE) ) )","v":""},null,null,null,null,{"$f":"IF(TRIM(CG34)=\"\", \"\", IF(VLOOKUP(CG34,'Footnotes list'!$D$9:$E$58,2,FALSE)=0,\"\",VLOOKUP(CG34,'Footnotes list'!$D$9:$E$58,2,FALSE) ) )","v":""},null,null,null,null,{"$f":"IF(TRIM(CL34)=\"\", \"\", IF(VLOOKUP(CL34,'Footnotes list'!$D$9:$E$58,2,FALSE)=0,\"\",VLOOKUP(CL34,'Footnotes list'!$D$9:$E$58,2,FALSE) ) )","v":""},null,null,null,null,{"$f":"IF(TRIM(CQ34)=\"\", \"\", IF(VLOOKUP(CQ34,'Footnotes list'!$D$9:$E$58,2,FALSE)=0,\"\",VLOOKUP(CQ34,'Footnotes list'!$D$9:$E$58,2,FALSE) ) )","v":""},null,null,null,null,{"$f":"IF(TRIM(CV34)=\"\", \"\", IF(VLOOKUP(CV34,'Footnotes list'!$D$9:$E$58,2,FALSE)=0,\"\",VLOOKUP(CV34,'Footnotes list'!$D$9:$E$58,2,FALSE) ) )","v":""},null,null,null,null,{"$f":"IF(TRIM(DA34)=\"\", \"\", IF(VLOOKUP(DA34,'Footnotes list'!$D$9:$E$58,2,FALSE)=0,\"\",VLOOKUP(DA34,'Footnotes list'!$D$9:$E$58,2,FALSE) ) )","v":""},null,null,null,null,{"$f":"IF(TRIM(DF34)=\"\", \"\", IF(VLOOKUP(DF34,'Footnotes list'!$D$9:$E$58,2,FALSE)=0,\"\",VLOOKUP(DF34,'Footnotes list'!$D$9:$E$58,2,FALSE) ) )","v":""},null,null,null,null,{"$f":"IF(TRIM(DK34)=\"\", \"\", IF(VLOOKUP(DK34,'Footnotes list'!$D$9:$E$58,2,FALSE)=0,\"\",VLOOKUP(DK34,'Footnotes list'!$D$9:$E$58,2,FALSE) ) )","v":""},null,null,null,null,{"$f":"IF(TRIM(DP34)=\"\", \"\", IF(VLOOKUP(DP34,'Footnotes list'!$D$9:$E$58,2,FALSE)=0,\"\",VLOOKUP(DP34,'Footnotes list'!$D$9:$E$58,2,FALSE) ) )","v":""},null,null,null,null,{"$f":"IF(TRIM(DU34)=\"\", \"\", IF(VLOOKUP(DU34,'Footnotes list'!$D$9:$E$58,2,FALSE)=0,\"\",VLOOKUP(DU34,'Footnotes list'!$D$9:$E$58,2,FALSE) ) )","v":""},null,null,null,null,{"$f":"IF(TRIM(DZ34)=\"\", \"\", IF(VLOOKUP(DZ34,'Footnotes list'!$D$9:$E$58,2,FALSE)=0,\"\",VLOOKUP(DZ34,'Footnotes list'!$D$9:$E$58,2,FALSE) ) )","v":""},null,null,null,null,{"$f":"IF(TRIM(EE34)=\"\", \"\", IF(VLOOKUP(EE34,'Footnotes list'!$D$9:$E$58,2,FALSE)=0,\"\",VLOOKUP(EE34,'Footnotes list'!$D$9:$E$58,2,FALSE) ) )","v":""},null,null,null,null,{"$f":"IF(TRIM(EJ34)=\"\", \"\", IF(VLOOKUP(EJ34,'Footnotes list'!$D$9:$E$58,2,FALSE)=0,\"\",VLOOKUP(EJ34,'Footnotes list'!$D$9:$E$58,2,FALSE) ) )","v":""},null,null,null,null,{"$f":"IF(TRIM(EO34)=\"\", \"\", IF(VLOOKUP(EO34,'Footnotes list'!$D$9:$E$58,2,FALSE)=0,\"\",VLOOKUP(EO34,'Footnotes list'!$D$9:$E$58,2,FALSE) ) )","v":""},null,null,null,null,{"$f":"IF(TRIM(ET34)=\"\", \"\", IF(VLOOKUP(ET34,'Footnotes list'!$D$9:$E$58,2,FALSE)=0,\"\",VLOOKUP(ET34,'Footnotes list'!$D$9:$E$58,2,FALSE) ) )","v":""},null,null,null,null,{"$f":"IF(TRIM(EY34)=\"\", \"\", IF(VLOOKUP(EY34,'Footnotes list'!$D$9:$E$58,2,FALSE)=0,\"\",VLOOKUP(EY34,'Footnotes list'!$D$9:$E$58,2,FALSE) ) )","v":""}]
[null,null,"C21","TOT_EGSS","Total C21 - Manufacture of basic pharmaceutical products and pharmaceutical preparations, including:",null,null,null,null,null,{"$f":"IF(TRIM(J35)=\"\", \"\", IF(VLOOKUP(J35,'Footnotes list'!$D$9:$E$58,2,FALSE)=0,\"\",VLOOKUP(J35,'Footnotes list'!$D$9:$E$58,2,FALSE) ) )","v":""},null,null,null,null,{"$f":"IF(TRIM(O35)=\"\", \"\", IF(VLOOKUP(O35,'Footnotes list'!$D$9:$E$58,2,FALSE)=0,\"\",VLOOKUP(O35,'Footnotes list'!$D$9:$E$58,2,FALSE) ) )","v":""},null,null,null,null,{"$f":"IF(TRIM(T35)=\"\", \"\", IF(VLOOKUP(T35,'Footnotes list'!$D$9:$E$58,2,FALSE)=0,\"\",VLOOKUP(T35,'Footnotes list'!$D$9:$E$58,2,FALSE) ) )","v":""},null,null,null,null,{"$f":"IF(TRIM(Y35)=\"\", \"\", IF(VLOOKUP(Y35,'Footnotes list'!$D$9:$E$58,2,FALSE)=0,\"\",VLOOKUP(Y35,'Footnotes list'!$D$9:$E$58,2,FALSE) ) )","v":""},null,null,null,null,{"$f":"IF(TRIM(AD35)=\"\", \"\", IF(VLOOKUP(AD35,'Footnotes list'!$D$9:$E$58,2,FALSE)=0,\"\",VLOOKUP(AD35,'Footnotes list'!$D$9:$E$58,2,FALSE) ) )","v":""},null,null,null,null,{"$f":"IF(TRIM(AI35)=\"\", \"\", IF(VLOOKUP(AI35,'Footnotes list'!$D$9:$E$58,2,FALSE)=0,\"\",VLOOKUP(AI35,'Footnotes list'!$D$9:$E$58,2,FALSE) ) )","v":""},null,null,null,null,{"$f":"IF(TRIM(AN35)=\"\", \"\", IF(VLOOKUP(AN35,'Footnotes list'!$D$9:$E$58,2,FALSE)=0,\"\",VLOOKUP(AN35,'Footnotes list'!$D$9:$E$58,2,FALSE) ) )","v":""},null,null,null,null,{"$f":"IF(TRIM(AS35)=\"\", \"\", IF(VLOOKUP(AS35,'Footnotes list'!$D$9:$E$58,2,FALSE)=0,\"\",VLOOKUP(AS35,'Footnotes list'!$D$9:$E$58,2,FALSE) ) )","v":""},null,null,null,null,{"$f":"IF(TRIM(AX35)=\"\", \"\", IF(VLOOKUP(AX35,'Footnotes list'!$D$9:$E$58,2,FALSE)=0,\"\",VLOOKUP(AX35,'Footnotes list'!$D$9:$E$58,2,FALSE) ) )","v":""},null,null,null,null,{"$f":"IF(TRIM(BC35)=\"\", \"\", IF(VLOOKUP(BC35,'Footnotes list'!$D$9:$E$58,2,FALSE)=0,\"\",VLOOKUP(BC35,'Footnotes list'!$D$9:$E$58,2,FALSE) ) )","v":""},null,null,null,null,{"$f":"IF(TRIM(BH35)=\"\", \"\", IF(VLOOKUP(BH35,'Footnotes list'!$D$9:$E$58,2,FALSE)=0,\"\",VLOOKUP(BH35,'Footnotes list'!$D$9:$E$58,2,FALSE) ) )","v":""},null,null,null,null,{"$f":"IF(TRIM(BM35)=\"\", \"\", IF(VLOOKUP(BM35,'Footnotes list'!$D$9:$E$58,2,FALSE)=0,\"\",VLOOKUP(BM35,'Footnotes list'!$D$9:$E$58,2,FALSE) ) )","v":""},null,null,null,null,{"$f":"IF(TRIM(BR35)=\"\", \"\", IF(VLOOKUP(BR35,'Footnotes list'!$D$9:$E$58,2,FALSE)=0,\"\",VLOOKUP(BR35,'Footnotes list'!$D$9:$E$58,2,FALSE) ) )","v":""},null,null,null,null,{"$f":"IF(TRIM(BW35)=\"\", \"\", IF(VLOOKUP(BW35,'Footnotes list'!$D$9:$E$58,2,FALSE)=0,\"\",VLOOKUP(BW35,'Footnotes list'!$D$9:$E$58,2,FALSE) ) )","v":""},null,null,null,null,{"$f":"IF(TRIM(CB35)=\"\", \"\", IF(VLOOKUP(CB35,'Footnotes list'!$D$9:$E$58,2,FALSE)=0,\"\",VLOOKUP(CB35,'Footnotes list'!$D$9:$E$58,2,FALSE) ) )","v":""},null,null,null,null,{"$f":"IF(TRIM(CG35)=\"\", \"\", IF(VLOOKUP(CG35,'Footnotes list'!$D$9:$E$58,2,FALSE)=0,\"\",VLOOKUP(CG35,'Footnotes list'!$D$9:$E$58,2,FALSE) ) )","v":""},null,null,null,null,{"$f":"IF(TRIM(CL35)=\"\", \"\", IF(VLOOKUP(CL35,'Footnotes list'!$D$9:$E$58,2,FALSE)=0,\"\",VLOOKUP(CL35,'Footnotes list'!$D$9:$E$58,2,FALSE) ) )","v":""},null,null,null,null,{"$f":"IF(TRIM(CQ35)=\"\", \"\", IF(VLOOKUP(CQ35,'Footnotes list'!$D$9:$E$58,2,FALSE)=0,\"\",VLOOKUP(CQ35,'Footnotes list'!$D$9:$E$58,2,FALSE) ) )","v":""},null,null,null,null,{"$f":"IF(TRIM(CV35)=\"\", \"\", IF(VLOOKUP(CV35,'Footnotes list'!$D$9:$E$58,2,FALSE)=0,\"\",VLOOKUP(CV35,'Footnotes list'!$D$9:$E$58,2,FALSE) ) )","v":""},null,null,null,null,{"$f":"IF(TRIM(DA35)=\"\", \"\", IF(VLOOKUP(DA35,'Footnotes list'!$D$9:$E$58,2,FALSE)=0,\"\",VLOOKUP(DA35,'Footnotes list'!$D$9:$E$58,2,FALSE) ) )","v":""},null,null,null,null,{"$f":"IF(TRIM(DF35)=\"\", \"\", IF(VLOOKUP(DF35,'Footnotes list'!$D$9:$E$58,2,FALSE)=0,\"\",VLOOKUP(DF35,'Footnotes list'!$D$9:$E$58,2,FALSE) ) )","v":""},null,null,null,null,{"$f":"IF(TRIM(DK35)=\"\", \"\", IF(VLOOKUP(DK35,'Footnotes list'!$D$9:$E$58,2,FALSE)=0,\"\",VLOOKUP(DK35,'Footnotes list'!$D$9:$E$58,2,FALSE) ) )","v":""},null,null,null,null,{"$f":"IF(TRIM(DP35)=\"\", \"\", IF(VLOOKUP(DP35,'Footnotes list'!$D$9:$E$58,2,FALSE)=0,\"\",VLOOKUP(DP35,'Footnotes list'!$D$9:$E$58,2,FALSE) ) )","v":""},null,null,null,null,{"$f":"IF(TRIM(DU35)=\"\", \"\", IF(VLOOKUP(DU35,'Footnotes list'!$D$9:$E$58,2,FALSE)=0,\"\",VLOOKUP(DU35,'Footnotes list'!$D$9:$E$58,2,FALSE) ) )","v":""},null,null,null,null,{"$f":"IF(TRIM(DZ35)=\"\", \"\", IF(VLOOKUP(DZ35,'Footnotes list'!$D$9:$E$58,2,FALSE)=0,\"\",VLOOKUP(DZ35,'Footnotes list'!$D$9:$E$58,2,FALSE) ) )","v":""},null,null,null,null,{"$f":"IF(TRIM(EE35)=\"\", \"\", IF(VLOOKUP(EE35,'Footnotes list'!$D$9:$E$58,2,FALSE)=0,\"\",VLOOKUP(EE35,'Footnotes list'!$D$9:$E$58,2,FALSE) ) )","v":""},null,null,null,null,{"$f":"IF(TRIM(EJ35)=\"\", \"\", IF(VLOOKUP(EJ35,'Footnotes list'!$D$9:$E$58,2,FALSE)=0,\"\",VLOOKUP(EJ35,'Footnotes list'!$D$9:$E$58,2,FALSE) ) )","v":""},null,null,null,null,{"$f":"IF(TRIM(EO35)=\"\", \"\", IF(VLOOKUP(EO35,'Footnotes list'!$D$9:$E$58,2,FALSE)=0,\"\",VLOOKUP(EO35,'Footnotes list'!$D$9:$E$58,2,FALSE) ) )","v":""},null,null,null,null,{"$f":"IF(TRIM(ET35)=\"\", \"\", IF(VLOOKUP(ET35,'Footnotes list'!$D$9:$E$58,2,FALSE)=0,\"\",VLOOKUP(ET35,'Footnotes list'!$D$9:$E$58,2,FALSE) ) )","v":""},null,null,null,null,{"$f":"IF(TRIM(EY35)=\"\", \"\", IF(VLOOKUP(EY35,'Footnotes list'!$D$9:$E$58,2,FALSE)=0,\"\",VLOOKUP(EY35,'Footnotes list'!$D$9:$E$58,2,FALSE) ) )","v":""}]
[null,null,"C21","ES_CS","environmental specific services",null,null,null,null,null,{"$f":"IF(TRIM(J36)=\"\", \"\", IF(VLOOKUP(J36,'Footnotes list'!$D$9:$E$58,2,FALSE)=0,\"\",VLOOKUP(J36,'Footnotes list'!$D$9:$E$58,2,FALSE) ) )","v":""},null,null,null,null,{"$f":"IF(TRIM(O36)=\"\", \"\", IF(VLOOKUP(O36,'Footnotes list'!$D$9:$E$58,2,FALSE)=0,\"\",VLOOKUP(O36,'Footnotes list'!$D$9:$E$58,2,FALSE) ) )","v":""},null,null,null,null,{"$f":"IF(TRIM(T36)=\"\", \"\", IF(VLOOKUP(T36,'Footnotes list'!$D$9:$E$58,2,FALSE)=0,\"\",VLOOKUP(T36,'Footnotes list'!$D$9:$E$58,2,FALSE) ) )","v":""},null,null,null,null,{"$f":"IF(TRIM(Y36)=\"\", \"\", IF(VLOOKUP(Y36,'Footnotes list'!$D$9:$E$58,2,FALSE)=0,\"\",VLOOKUP(Y36,'Footnotes list'!$D$9:$E$58,2,FALSE) ) )","v":""},null,null,null,null,{"$f":"IF(TRIM(AD36)=\"\", \"\", IF(VLOOKUP(AD36,'Footnotes list'!$D$9:$E$58,2,FALSE)=0,\"\",VLOOKUP(AD36,'Footnotes list'!$D$9:$E$58,2,FALSE) ) )","v":""},null,null,null,null,{"$f":"IF(TRIM(AI36)=\"\", \"\", IF(VLOOKUP(AI36,'Footnotes list'!$D$9:$E$58,2,FALSE)=0,\"\",VLOOKUP(AI36,'Footnotes list'!$D$9:$E$58,2,FALSE) ) )","v":""},null,null,null,null,{"$f":"IF(TRIM(AN36)=\"\", \"\", IF(VLOOKUP(AN36,'Footnotes list'!$D$9:$E$58,2,FALSE)=0,\"\",VLOOKUP(AN36,'Footnotes list'!$D$9:$E$58,2,FALSE) ) )","v":""},null,null,null,null,{"$f":"IF(TRIM(AS36)=\"\", \"\", IF(VLOOKUP(AS36,'Footnotes list'!$D$9:$E$58,2,FALSE)=0,\"\",VLOOKUP(AS36,'Footnotes list'!$D$9:$E$58,2,FALSE) ) )","v":""},null,null,null,null,{"$f":"IF(TRIM(AX36)=\"\", \"\", IF(VLOOKUP(AX36,'Footnotes list'!$D$9:$E$58,2,FALSE)=0,\"\",VLOOKUP(AX36,'Footnotes list'!$D$9:$E$58,2,FALSE) ) )","v":""},null,null,null,null,{"$f":"IF(TRIM(BC36)=\"\", \"\", IF(VLOOKUP(BC36,'Footnotes list'!$D$9:$E$58,2,FALSE)=0,\"\",VLOOKUP(BC36,'Footnotes list'!$D$9:$E$58,2,FALSE) ) )","v":""},null,null,null,null,{"$f":"IF(TRIM(BH36)=\"\", \"\", IF(VLOOKUP(BH36,'Footnotes list'!$D$9:$E$58,2,FALSE)=0,\"\",VLOOKUP(BH36,'Footnotes list'!$D$9:$E$58,2,FALSE) ) )","v":""},null,null,null,null,{"$f":"IF(TRIM(BM36)=\"\", \"\", IF(VLOOKUP(BM36,'Footnotes list'!$D$9:$E$58,2,FALSE)=0,\"\",VLOOKUP(BM36,'Footnotes list'!$D$9:$E$58,2,FALSE) ) )","v":""},null,null,null,null,{"$f":"IF(TRIM(BR36)=\"\", \"\", IF(VLOOKUP(BR36,'Footnotes list'!$D$9:$E$58,2,FALSE)=0,\"\",VLOOKUP(BR36,'Footnotes list'!$D$9:$E$58,2,FALSE) ) )","v":""},null,null,null,null,{"$f":"IF(TRIM(BW36)=\"\", \"\", IF(VLOOKUP(BW36,'Footnotes list'!$D$9:$E$58,2,FALSE)=0,\"\",VLOOKUP(BW36,'Footnotes list'!$D$9:$E$58,2,FALSE) ) )","v":""},null,null,null,null,{"$f":"IF(TRIM(CB36)=\"\", \"\", IF(VLOOKUP(CB36,'Footnotes list'!$D$9:$E$58,2,FALSE)=0,\"\",VLOOKUP(CB36,'Footnotes list'!$D$9:$E$58,2,FALSE) ) )","v":""},null,null,null,null,{"$f":"IF(TRIM(CG36)=\"\", \"\", IF(VLOOKUP(CG36,'Footnotes list'!$D$9:$E$58,2,FALSE)=0,\"\",VLOOKUP(CG36,'Footnotes list'!$D$9:$E$58,2,FALSE) ) )","v":""},null,null,null,null,{"$f":"IF(TRIM(CL36)=\"\", \"\", IF(VLOOKUP(CL36,'Footnotes list'!$D$9:$E$58,2,FALSE)=0,\"\",VLOOKUP(CL36,'Footnotes list'!$D$9:$E$58,2,FALSE) ) )","v":""},null,null,null,null,{"$f":"IF(TRIM(CQ36)=\"\", \"\", IF(VLOOKUP(CQ36,'Footnotes list'!$D$9:$E$58,2,FALSE)=0,\"\",VLOOKUP(CQ36,'Footnotes list'!$D$9:$E$58,2,FALSE) ) )","v":""},null,null,null,null,{"$f":"IF(TRIM(CV36)=\"\", \"\", IF(VLOOKUP(CV36,'Footnotes list'!$D$9:$E$58,2,FALSE)=0,\"\",VLOOKUP(CV36,'Footnotes list'!$D$9:$E$58,2,FALSE) ) )","v":""},null,null,null,null,{"$f":"IF(TRIM(DA36)=\"\", \"\", IF(VLOOKUP(DA36,'Footnotes list'!$D$9:$E$58,2,FALSE)=0,\"\",VLOOKUP(DA36,'Footnotes list'!$D$9:$E$58,2,FALSE) ) )","v":""},null,null,null,null,{"$f":"IF(TRIM(DF36)=\"\", \"\", IF(VLOOKUP(DF36,'Footnotes list'!$D$9:$E$58,2,FALSE)=0,\"\",VLOOKUP(DF36,'Footnotes list'!$D$9:$E$58,2,FALSE) ) )","v":""},null,null,null,null,{"$f":"IF(TRIM(DK36)=\"\", \"\", IF(VLOOKUP(DK36,'Footnotes list'!$D$9:$E$58,2,FALSE)=0,\"\",VLOOKUP(DK36,'Footnotes list'!$D$9:$E$58,2,FALSE) ) )","v":""},null,null,null,null,{"$f":"IF(TRIM(DP36)=\"\", \"\", IF(VLOOKUP(DP36,'Footnotes list'!$D$9:$E$58,2,FALSE)=0,\"\",VLOOKUP(DP36,'Footnotes list'!$D$9:$E$58,2,FALSE) ) )","v":""},null,null,null,null,{"$f":"IF(TRIM(DU36)=\"\", \"\", IF(VLOOKUP(DU36,'Footnotes list'!$D$9:$E$58,2,FALSE)=0,\"\",VLOOKUP(DU36,'Footnotes list'!$D$9:$E$58,2,FALSE) ) )","v":""},null,null,null,null,{"$f":"IF(TRIM(DZ36)=\"\", \"\", IF(VLOOKUP(DZ36,'Footnotes list'!$D$9:$E$58,2,FALSE)=0,\"\",VLOOKUP(DZ36,'Footnotes list'!$D$9:$E$58,2,FALSE) ) )","v":""},null,null,null,null,{"$f":"IF(TRIM(EE36)=\"\", \"\", IF(VLOOKUP(EE36,'Footnotes list'!$D$9:$E$58,2,FALSE)=0,\"\",VLOOKUP(EE36,'Footnotes list'!$D$9:$E$58,2,FALSE) ) )","v":""},null,null,null,null,{"$f":"IF(TRIM(EJ36)=\"\", \"\", IF(VLOOKUP(EJ36,'Footnotes list'!$D$9:$E$58,2,FALSE)=0,\"\",VLOOKUP(EJ36,'Footnotes list'!$D$9:$E$58,2,FALSE) ) )","v":""},null,null,null,null,{"$f":"IF(TRIM(EO36)=\"\", \"\", IF(VLOOKUP(EO36,'Footnotes list'!$D$9:$E$58,2,FALSE)=0,\"\",VLOOKUP(EO36,'Footnotes list'!$D$9:$E$58,2,FALSE) ) )","v":""},null,null,null,null,{"$f":"IF(TRIM(ET36)=\"\", \"\", IF(VLOOKUP(ET36,'Footnotes list'!$D$9:$E$58,2,FALSE)=0,\"\",VLOOKUP(ET36,'Footnotes list'!$D$9:$E$58,2,FALSE) ) )","v":""},null,null,null,null,{"$f":"IF(TRIM(EY36)=\"\", \"\", IF(VLOOKUP(EY36,'Footnotes list'!$D$9:$E$58,2,FALSE)=0,\"\",VLOOKUP(EY36,'Footnotes list'!$D$9:$E$58,2,FALSE) ) )","v":""}]
[null,null,"C21","C_REP","cleaner and resource efficient products",null,null,null,null,null,{"$f":"IF(TRIM(J37)=\"\", \"\", IF(VLOOKUP(J37,'Footnotes list'!$D$9:$E$58,2,FALSE)=0,\"\",VLOOKUP(J37,'Footnotes list'!$D$9:$E$58,2,FALSE) ) )","v":""},null,null,null,null,{"$f":"IF(TRIM(O37)=\"\", \"\", IF(VLOOKUP(O37,'Footnotes list'!$D$9:$E$58,2,FALSE)=0,\"\",VLOOKUP(O37,'Footnotes list'!$D$9:$E$58,2,FALSE) ) )","v":""},null,null,null,null,{"$f":"IF(TRIM(T37)=\"\", \"\", IF(VLOOKUP(T37,'Footnotes list'!$D$9:$E$58,2,FALSE)=0,\"\",VLOOKUP(T37,'Footnotes list'!$D$9:$E$58,2,FALSE) ) )","v":""},null,null,null,null,{"$f":"IF(TRIM(Y37)=\"\", \"\", IF(VLOOKUP(Y37,'Footnotes list'!$D$9:$E$58,2,FALSE)=0,\"\",VLOOKUP(Y37,'Footnotes list'!$D$9:$E$58,2,FALSE) ) )","v":""},null,null,null,null,{"$f":"IF(TRIM(AD37)=\"\", \"\", IF(VLOOKUP(AD37,'Footnotes list'!$D$9:$E$58,2,FALSE)=0,\"\",VLOOKUP(AD37,'Footnotes list'!$D$9:$E$58,2,FALSE) ) )","v":""},null,null,null,null,{"$f":"IF(TRIM(AI37)=\"\", \"\", IF(VLOOKUP(AI37,'Footnotes list'!$D$9:$E$58,2,FALSE)=0,\"\",VLOOKUP(AI37,'Footnotes list'!$D$9:$E$58,2,FALSE) ) )","v":""},null,null,null,null,{"$f":"IF(TRIM(AN37)=\"\", \"\", IF(VLOOKUP(AN37,'Footnotes list'!$D$9:$E$58,2,FALSE)=0,\"\",VLOOKUP(AN37,'Footnotes list'!$D$9:$E$58,2,FALSE) ) )","v":""},null,null,null,null,{"$f":"IF(TRIM(AS37)=\"\", \"\", IF(VLOOKUP(AS37,'Footnotes list'!$D$9:$E$58,2,FALSE)=0,\"\",VLOOKUP(AS37,'Footnotes list'!$D$9:$E$58,2,FALSE) ) )","v":""},null,null,null,null,{"$f":"IF(TRIM(AX37)=\"\", \"\", IF(VLOOKUP(AX37,'Footnotes list'!$D$9:$E$58,2,FALSE)=0,\"\",VLOOKUP(AX37,'Footnotes list'!$D$9:$E$58,2,FALSE) ) )","v":""},null,null,null,null,{"$f":"IF(TRIM(BC37)=\"\", \"\", IF(VLOOKUP(BC37,'Footnotes list'!$D$9:$E$58,2,FALSE)=0,\"\",VLOOKUP(BC37,'Footnotes list'!$D$9:$E$58,2,FALSE) ) )","v":""},null,null,null,null,{"$f":"IF(TRIM(BH37)=\"\", \"\", IF(VLOOKUP(BH37,'Footnotes list'!$D$9:$E$58,2,FALSE)=0,\"\",VLOOKUP(BH37,'Footnotes list'!$D$9:$E$58,2,FALSE) ) )","v":""},null,null,null,null,{"$f":"IF(TRIM(BM37)=\"\", \"\", IF(VLOOKUP(BM37,'Footnotes list'!$D$9:$E$58,2,FALSE)=0,\"\",VLOOKUP(BM37,'Footnotes list'!$D$9:$E$58,2,FALSE) ) )","v":""},null,null,null,null,{"$f":"IF(TRIM(BR37)=\"\", \"\", IF(VLOOKUP(BR37,'Footnotes list'!$D$9:$E$58,2,FALSE)=0,\"\",VLOOKUP(BR37,'Footnotes list'!$D$9:$E$58,2,FALSE) ) )","v":""},null,null,null,null,{"$f":"IF(TRIM(BW37)=\"\", \"\", IF(VLOOKUP(BW37,'Footnotes list'!$D$9:$E$58,2,FALSE)=0,\"\",VLOOKUP(BW37,'Footnotes list'!$D$9:$E$58,2,FALSE) ) )","v":""},null,null,null,null,{"$f":"IF(TRIM(CB37)=\"\", \"\", IF(VLOOKUP(CB37,'Footnotes list'!$D$9:$E$58,2,FALSE)=0,\"\",VLOOKUP(CB37,'Footnotes list'!$D$9:$E$58,2,FALSE) ) )","v":""},null,null,null,null,{"$f":"IF(TRIM(CG37)=\"\", \"\", IF(VLOOKUP(CG37,'Footnotes list'!$D$9:$E$58,2,FALSE)=0,\"\",VLOOKUP(CG37,'Footnotes list'!$D$9:$E$58,2,FALSE) ) )","v":""},null,null,null,null,{"$f":"IF(TRIM(CL37)=\"\", \"\", IF(VLOOKUP(CL37,'Footnotes list'!$D$9:$E$58,2,FALSE)=0,\"\",VLOOKUP(CL37,'Footnotes list'!$D$9:$E$58,2,FALSE) ) )","v":""},null,null,null,null,{"$f":"IF(TRIM(CQ37)=\"\", \"\", IF(VLOOKUP(CQ37,'Footnotes list'!$D$9:$E$58,2,FALSE)=0,\"\",VLOOKUP(CQ37,'Footnotes list'!$D$9:$E$58,2,FALSE) ) )","v":""},null,null,null,null,{"$f":"IF(TRIM(CV37)=\"\", \"\", IF(VLOOKUP(CV37,'Footnotes list'!$D$9:$E$58,2,FALSE)=0,\"\",VLOOKUP(CV37,'Footnotes list'!$D$9:$E$58,2,FALSE) ) )","v":""},null,null,null,null,{"$f":"IF(TRIM(DA37)=\"\", \"\", IF(VLOOKUP(DA37,'Footnotes list'!$D$9:$E$58,2,FALSE)=0,\"\",VLOOKUP(DA37,'Footnotes list'!$D$9:$E$58,2,FALSE) ) )","v":""},null,null,null,null,{"$f":"IF(TRIM(DF37)=\"\", \"\", IF(VLOOKUP(DF37,'Footnotes list'!$D$9:$E$58,2,FALSE)=0,\"\",VLOOKUP(DF37,'Footnotes list'!$D$9:$E$58,2,FALSE) ) )","v":""},null,null,null,null,{"$f":"IF(TRIM(DK37)=\"\", \"\", IF(VLOOKUP(DK37,'Footnotes list'!$D$9:$E$58,2,FALSE)=0,\"\",VLOOKUP(DK37,'Footnotes list'!$D$9:$E$58,2,FALSE) ) )","v":""},null,null,null,null,{"$f":"IF(TRIM(DP37)=\"\", \"\", IF(VLOOKUP(DP37,'Footnotes list'!$D$9:$E$58,2,FALSE)=0,\"\",VLOOKUP(DP37,'Footnotes list'!$D$9:$E$58,2,FALSE) ) )","v":""},null,null,null,null,{"$f":"IF(TRIM(DU37)=\"\", \"\", IF(VLOOKUP(DU37,'Footnotes list'!$D$9:$E$58,2,FALSE)=0,\"\",VLOOKUP(DU37,'Footnotes list'!$D$9:$E$58,2,FALSE) ) )","v":""},null,null,null,null,{"$f":"IF(TRIM(DZ37)=\"\", \"\", IF(VLOOKUP(DZ37,'Footnotes list'!$D$9:$E$58,2,FALSE)=0,\"\",VLOOKUP(DZ37,'Footnotes list'!$D$9:$E$58,2,FALSE) ) )","v":""},null,null,null,null,{"$f":"IF(TRIM(EE37)=\"\", \"\", IF(VLOOKUP(EE37,'Footnotes list'!$D$9:$E$58,2,FALSE)=0,\"\",VLOOKUP(EE37,'Footnotes list'!$D$9:$E$58,2,FALSE) ) )","v":""},null,null,null,null,{"$f":"IF(TRIM(EJ37)=\"\", \"\", IF(VLOOKUP(EJ37,'Footnotes list'!$D$9:$E$58,2,FALSE)=0,\"\",VLOOKUP(EJ37,'Footnotes list'!$D$9:$E$58,2,FALSE) ) )","v":""},null,null,null,null,{"$f":"IF(TRIM(EO37)=\"\", \"\", IF(VLOOKUP(EO37,'Footnotes list'!$D$9:$E$58,2,FALSE)=0,\"\",VLOOKUP(EO37,'Footnotes list'!$D$9:$E$58,2,FALSE) ) )","v":""},null,null,null,null,{"$f":"IF(TRIM(ET37)=\"\", \"\", IF(VLOOKUP(ET37,'Footnotes list'!$D$9:$E$58,2,FALSE)=0,\"\",VLOOKUP(ET37,'Footnotes list'!$D$9:$E$58,2,FALSE) ) )","v":""},null,null,null,null,{"$f":"IF(TRIM(EY37)=\"\", \"\", IF(VLOOKUP(EY37,'Footnotes list'!$D$9:$E$58,2,FALSE)=0,\"\",VLOOKUP(EY37,'Footnotes list'!$D$9:$E$58,2,FALSE) ) )","v":""}]
[null,null,"C22_C23","TOT_EGSS","Total C22 - C23 Manufacture of rubber and plastic products, and other non-metallic mineral products, including:",null,null,null,null,null,{"$f":"IF(TRIM(J38)=\"\", \"\", IF(VLOOKUP(J38,'Footnotes list'!$D$9:$E$58,2,FALSE)=0,\"\",VLOOKUP(J38,'Footnotes list'!$D$9:$E$58,2,FALSE) ) )","v":""},null,null,null,null,{"$f":"IF(TRIM(O38)=\"\", \"\", IF(VLOOKUP(O38,'Footnotes list'!$D$9:$E$58,2,FALSE)=0,\"\",VLOOKUP(O38,'Footnotes list'!$D$9:$E$58,2,FALSE) ) )","v":""},null,null,null,null,{"$f":"IF(TRIM(T38)=\"\", \"\", IF(VLOOKUP(T38,'Footnotes list'!$D$9:$E$58,2,FALSE)=0,\"\",VLOOKUP(T38,'Footnotes list'!$D$9:$E$58,2,FALSE) ) )","v":""},null,null,null,null,{"$f":"IF(TRIM(Y38)=\"\", \"\", IF(VLOOKUP(Y38,'Footnotes list'!$D$9:$E$58,2,FALSE)=0,\"\",VLOOKUP(Y38,'Footnotes list'!$D$9:$E$58,2,FALSE) ) )","v":""},null,null,null,null,{"$f":"IF(TRIM(AD38)=\"\", \"\", IF(VLOOKUP(AD38,'Footnotes list'!$D$9:$E$58,2,FALSE)=0,\"\",VLOOKUP(AD38,'Footnotes list'!$D$9:$E$58,2,FALSE) ) )","v":""},null,null,null,null,{"$f":"IF(TRIM(AI38)=\"\", \"\", IF(VLOOKUP(AI38,'Footnotes list'!$D$9:$E$58,2,FALSE)=0,\"\",VLOOKUP(AI38,'Footnotes list'!$D$9:$E$58,2,FALSE) ) )","v":""},null,null,null,null,{"$f":"IF(TRIM(AN38)=\"\", \"\", IF(VLOOKUP(AN38,'Footnotes list'!$D$9:$E$58,2,FALSE)=0,\"\",VLOOKUP(AN38,'Footnotes list'!$D$9:$E$58,2,FALSE) ) )","v":""},null,null,null,null,{"$f":"IF(TRIM(AS38)=\"\", \"\", IF(VLOOKUP(AS38,'Footnotes list'!$D$9:$E$58,2,FALSE)=0,\"\",VLOOKUP(AS38,'Footnotes list'!$D$9:$E$58,2,FALSE) ) )","v":""},null,null,null,null,{"$f":"IF(TRIM(AX38)=\"\", \"\", IF(VLOOKUP(AX38,'Footnotes list'!$D$9:$E$58,2,FALSE)=0,\"\",VLOOKUP(AX38,'Footnotes list'!$D$9:$E$58,2,FALSE) ) )","v":""},null,null,null,null,{"$f":"IF(TRIM(BC38)=\"\", \"\", IF(VLOOKUP(BC38,'Footnotes list'!$D$9:$E$58,2,FALSE)=0,\"\",VLOOKUP(BC38,'Footnotes list'!$D$9:$E$58,2,FALSE) ) )","v":""},null,null,null,null,{"$f":"IF(TRIM(BH38)=\"\", \"\", IF(VLOOKUP(BH38,'Footnotes list'!$D$9:$E$58,2,FALSE)=0,\"\",VLOOKUP(BH38,'Footnotes list'!$D$9:$E$58,2,FALSE) ) )","v":""},null,null,null,null,{"$f":"IF(TRIM(BM38)=\"\", \"\", IF(VLOOKUP(BM38,'Footnotes list'!$D$9:$E$58,2,FALSE)=0,\"\",VLOOKUP(BM38,'Footnotes list'!$D$9:$E$58,2,FALSE) ) )","v":""},null,null,null,null,{"$f":"IF(TRIM(BR38)=\"\", \"\", IF(VLOOKUP(BR38,'Footnotes list'!$D$9:$E$58,2,FALSE)=0,\"\",VLOOKUP(BR38,'Footnotes list'!$D$9:$E$58,2,FALSE) ) )","v":""},null,null,null,null,{"$f":"IF(TRIM(BW38)=\"\", \"\", IF(VLOOKUP(BW38,'Footnotes list'!$D$9:$E$58,2,FALSE)=0,\"\",VLOOKUP(BW38,'Footnotes list'!$D$9:$E$58,2,FALSE) ) )","v":""},null,null,null,null,{"$f":"IF(TRIM(CB38)=\"\", \"\", IF(VLOOKUP(CB38,'Footnotes list'!$D$9:$E$58,2,FALSE)=0,\"\",VLOOKUP(CB38,'Footnotes list'!$D$9:$E$58,2,FALSE) ) )","v":""},null,null,null,null,{"$f":"IF(TRIM(CG38)=\"\", \"\", IF(VLOOKUP(CG38,'Footnotes list'!$D$9:$E$58,2,FALSE)=0,\"\",VLOOKUP(CG38,'Footnotes list'!$D$9:$E$58,2,FALSE) ) )","v":""},null,null,null,null,{"$f":"IF(TRIM(CL38)=\"\", \"\", IF(VLOOKUP(CL38,'Footnotes list'!$D$9:$E$58,2,FALSE)=0,\"\",VLOOKUP(CL38,'Footnotes list'!$D$9:$E$58,2,FALSE) ) )","v":""},null,null,null,null,{"$f":"IF(TRIM(CQ38)=\"\", \"\", IF(VLOOKUP(CQ38,'Footnotes list'!$D$9:$E$58,2,FALSE)=0,\"\",VLOOKUP(CQ38,'Footnotes list'!$D$9:$E$58,2,FALSE) ) )","v":""},null,null,null,null,{"$f":"IF(TRIM(CV38)=\"\", \"\", IF(VLOOKUP(CV38,'Footnotes list'!$D$9:$E$58,2,FALSE)=0,\"\",VLOOKUP(CV38,'Footnotes list'!$D$9:$E$58,2,FALSE) ) )","v":""},null,null,null,null,{"$f":"IF(TRIM(DA38)=\"\", \"\", IF(VLOOKUP(DA38,'Footnotes list'!$D$9:$E$58,2,FALSE)=0,\"\",VLOOKUP(DA38,'Footnotes list'!$D$9:$E$58,2,FALSE) ) )","v":""},null,null,null,null,{"$f":"IF(TRIM(DF38)=\"\", \"\", IF(VLOOKUP(DF38,'Footnotes list'!$D$9:$E$58,2,FALSE)=0,\"\",VLOOKUP(DF38,'Footnotes list'!$D$9:$E$58,2,FALSE) ) )","v":""},null,null,null,null,{"$f":"IF(TRIM(DK38)=\"\", \"\", IF(VLOOKUP(DK38,'Footnotes list'!$D$9:$E$58,2,FALSE)=0,\"\",VLOOKUP(DK38,'Footnotes list'!$D$9:$E$58,2,FALSE) ) )","v":""},null,null,null,null,{"$f":"IF(TRIM(DP38)=\"\", \"\", IF(VLOOKUP(DP38,'Footnotes list'!$D$9:$E$58,2,FALSE)=0,\"\",VLOOKUP(DP38,'Footnotes list'!$D$9:$E$58,2,FALSE) ) )","v":""},null,null,null,null,{"$f":"IF(TRIM(DU38)=\"\", \"\", IF(VLOOKUP(DU38,'Footnotes list'!$D$9:$E$58,2,FALSE)=0,\"\",VLOOKUP(DU38,'Footnotes list'!$D$9:$E$58,2,FALSE) ) )","v":""},null,null,null,null,{"$f":"IF(TRIM(DZ38)=\"\", \"\", IF(VLOOKUP(DZ38,'Footnotes list'!$D$9:$E$58,2,FALSE)=0,\"\",VLOOKUP(DZ38,'Footnotes list'!$D$9:$E$58,2,FALSE) ) )","v":""},null,null,null,null,{"$f":"IF(TRIM(EE38)=\"\", \"\", IF(VLOOKUP(EE38,'Footnotes list'!$D$9:$E$58,2,FALSE)=0,\"\",VLOOKUP(EE38,'Footnotes list'!$D$9:$E$58,2,FALSE) ) )","v":""},null,null,null,null,{"$f":"IF(TRIM(EJ38)=\"\", \"\", IF(VLOOKUP(EJ38,'Footnotes list'!$D$9:$E$58,2,FALSE)=0,\"\",VLOOKUP(EJ38,'Footnotes list'!$D$9:$E$58,2,FALSE) ) )","v":""},null,null,null,null,{"$f":"IF(TRIM(EO38)=\"\", \"\", IF(VLOOKUP(EO38,'Footnotes list'!$D$9:$E$58,2,FALSE)=0,\"\",VLOOKUP(EO38,'Footnotes list'!$D$9:$E$58,2,FALSE) ) )","v":""},null,null,null,null,{"$f":"IF(TRIM(ET38)=\"\", \"\", IF(VLOOKUP(ET38,'Footnotes list'!$D$9:$E$58,2,FALSE)=0,\"\",VLOOKUP(ET38,'Footnotes list'!$D$9:$E$58,2,FALSE) ) )","v":""},null,null,null,null,{"$f":"IF(TRIM(EY38)=\"\", \"\", IF(VLOOKUP(EY38,'Footnotes list'!$D$9:$E$58,2,FALSE)=0,\"\",VLOOKUP(EY38,'Footnotes list'!$D$9:$E$58,2,FALSE) ) )","v":""}]
[null,null,"C22_C23","ES_CS","environmental specific services",null,null,null,null,null,{"$f":"IF(TRIM(J39)=\"\", \"\", IF(VLOOKUP(J39,'Footnotes list'!$D$9:$E$58,2,FALSE)=0,\"\",VLOOKUP(J39,'Footnotes list'!$D$9:$E$58,2,FALSE) ) )","v":""},null,null,null,null,{"$f":"IF(TRIM(O39)=\"\", \"\", IF(VLOOKUP(O39,'Footnotes list'!$D$9:$E$58,2,FALSE)=0,\"\",VLOOKUP(O39,'Footnotes list'!$D$9:$E$58,2,FALSE) ) )","v":""},null,null,null,null,{"$f":"IF(TRIM(T39)=\"\", \"\", IF(VLOOKUP(T39,'Footnotes list'!$D$9:$E$58,2,FALSE)=0,\"\",VLOOKUP(T39,'Footnotes list'!$D$9:$E$58,2,FALSE) ) )","v":""},null,null,null,null,{"$f":"IF(TRIM(Y39)=\"\", \"\", IF(VLOOKUP(Y39,'Footnotes list'!$D$9:$E$58,2,FALSE)=0,\"\",VLOOKUP(Y39,'Footnotes list'!$D$9:$E$58,2,FALSE) ) )","v":""},null,null,null,null,{"$f":"IF(TRIM(AD39)=\"\", \"\", IF(VLOOKUP(AD39,'Footnotes list'!$D$9:$E$58,2,FALSE)=0,\"\",VLOOKUP(AD39,'Footnotes list'!$D$9:$E$58,2,FALSE) ) )","v":""},null,null,null,null,{"$f":"IF(TRIM(AI39)=\"\", \"\", IF(VLOOKUP(AI39,'Footnotes list'!$D$9:$E$58,2,FALSE)=0,\"\",VLOOKUP(AI39,'Footnotes list'!$D$9:$E$58,2,FALSE) ) )","v":""},null,null,null,null,{"$f":"IF(TRIM(AN39)=\"\", \"\", IF(VLOOKUP(AN39,'Footnotes list'!$D$9:$E$58,2,FALSE)=0,\"\",VLOOKUP(AN39,'Footnotes list'!$D$9:$E$58,2,FALSE) ) )","v":""},null,null,null,null,{"$f":"IF(TRIM(AS39)=\"\", \"\", IF(VLOOKUP(AS39,'Footnotes list'!$D$9:$E$58,2,FALSE)=0,\"\",VLOOKUP(AS39,'Footnotes list'!$D$9:$E$58,2,FALSE) ) )","v":""},null,null,null,null,{"$f":"IF(TRIM(AX39)=\"\", \"\", IF(VLOOKUP(AX39,'Footnotes list'!$D$9:$E$58,2,FALSE)=0,\"\",VLOOKUP(AX39,'Footnotes list'!$D$9:$E$58,2,FALSE) ) )","v":""},null,null,null,null,{"$f":"IF(TRIM(BC39)=\"\", \"\", IF(VLOOKUP(BC39,'Footnotes list'!$D$9:$E$58,2,FALSE)=0,\"\",VLOOKUP(BC39,'Footnotes list'!$D$9:$E$58,2,FALSE) ) )","v":""},null,null,null,null,{"$f":"IF(TRIM(BH39)=\"\", \"\", IF(VLOOKUP(BH39,'Footnotes list'!$D$9:$E$58,2,FALSE)=0,\"\",VLOOKUP(BH39,'Footnotes list'!$D$9:$E$58,2,FALSE) ) )","v":""},null,null,null,null,{"$f":"IF(TRIM(BM39)=\"\", \"\", IF(VLOOKUP(BM39,'Footnotes list'!$D$9:$E$58,2,FALSE)=0,\"\",VLOOKUP(BM39,'Footnotes list'!$D$9:$E$58,2,FALSE) ) )","v":""},null,null,null,null,{"$f":"IF(TRIM(BR39)=\"\", \"\", IF(VLOOKUP(BR39,'Footnotes list'!$D$9:$E$58,2,FALSE)=0,\"\",VLOOKUP(BR39,'Footnotes list'!$D$9:$E$58,2,FALSE) ) )","v":""},null,null,null,null,{"$f":"IF(TRIM(BW39)=\"\", \"\", IF(VLOOKUP(BW39,'Footnotes list'!$D$9:$E$58,2,FALSE)=0,\"\",VLOOKUP(BW39,'Footnotes list'!$D$9:$E$58,2,FALSE) ) )","v":""},null,null,null,null,{"$f":"IF(TRIM(CB39)=\"\", \"\", IF(VLOOKUP(CB39,'Footnotes list'!$D$9:$E$58,2,FALSE)=0,\"\",VLOOKUP(CB39,'Footnotes list'!$D$9:$E$58,2,FALSE) ) )","v":""},null,null,null,null,{"$f":"IF(TRIM(CG39)=\"\", \"\", IF(VLOOKUP(CG39,'Footnotes list'!$D$9:$E$58,2,FALSE)=0,\"\",VLOOKUP(CG39,'Footnotes list'!$D$9:$E$58,2,FALSE) ) )","v":""},null,null,null,null,{"$f":"IF(TRIM(CL39)=\"\", \"\", IF(VLOOKUP(CL39,'Footnotes list'!$D$9:$E$58,2,FALSE)=0,\"\",VLOOKUP(CL39,'Footnotes list'!$D$9:$E$58,2,FALSE) ) )","v":""},null,null,null,null,{"$f":"IF(TRIM(CQ39)=\"\", \"\", IF(VLOOKUP(CQ39,'Footnotes list'!$D$9:$E$58,2,FALSE)=0,\"\",VLOOKUP(CQ39,'Footnotes list'!$D$9:$E$58,2,FALSE) ) )","v":""},null,null,null,null,{"$f":"IF(TRIM(CV39)=\"\", \"\", IF(VLOOKUP(CV39,'Footnotes list'!$D$9:$E$58,2,FALSE)=0,\"\",VLOOKUP(CV39,'Footnotes list'!$D$9:$E$58,2,FALSE) ) )","v":""},null,null,null,null,{"$f":"IF(TRIM(DA39)=\"\", \"\", IF(VLOOKUP(DA39,'Footnotes list'!$D$9:$E$58,2,FALSE)=0,\"\",VLOOKUP(DA39,'Footnotes list'!$D$9:$E$58,2,FALSE) ) )","v":""},null,null,null,null,{"$f":"IF(TRIM(DF39)=\"\", \"\", IF(VLOOKUP(DF39,'Footnotes list'!$D$9:$E$58,2,FALSE)=0,\"\",VLOOKUP(DF39,'Footnotes list'!$D$9:$E$58,2,FALSE) ) )","v":""},null,null,null,null,{"$f":"IF(TRIM(DK39)=\"\", \"\", IF(VLOOKUP(DK39,'Footnotes list'!$D$9:$E$58,2,FALSE)=0,\"\",VLOOKUP(DK39,'Footnotes list'!$D$9:$E$58,2,FALSE) ) )","v":""},null,null,null,null,{"$f":"IF(TRIM(DP39)=\"\", \"\", IF(VLOOKUP(DP39,'Footnotes list'!$D$9:$E$58,2,FALSE)=0,\"\",VLOOKUP(DP39,'Footnotes list'!$D$9:$E$58,2,FALSE) ) )","v":""},null,null,null,null,{"$f":"IF(TRIM(DU39)=\"\", \"\", IF(VLOOKUP(DU39,'Footnotes list'!$D$9:$E$58,2,FALSE)=0,\"\",VLOOKUP(DU39,'Footnotes list'!$D$9:$E$58,2,FALSE) ) )","v":""},null,null,null,null,{"$f":"IF(TRIM(DZ39)=\"\", \"\", IF(VLOOKUP(DZ39,'Footnotes list'!$D$9:$E$58,2,FALSE)=0,\"\",VLOOKUP(DZ39,'Footnotes list'!$D$9:$E$58,2,FALSE) ) )","v":""},null,null,null,null,{"$f":"IF(TRIM(EE39)=\"\", \"\", IF(VLOOKUP(EE39,'Footnotes list'!$D$9:$E$58,2,FALSE)=0,\"\",VLOOKUP(EE39,'Footnotes list'!$D$9:$E$58,2,FALSE) ) )","v":""},null,null,null,null,{"$f":"IF(TRIM(EJ39)=\"\", \"\", IF(VLOOKUP(EJ39,'Footnotes list'!$D$9:$E$58,2,FALSE)=0,\"\",VLOOKUP(EJ39,'Footnotes list'!$D$9:$E$58,2,FALSE) ) )","v":""},null,null,null,null,{"$f":"IF(TRIM(EO39)=\"\", \"\", IF(VLOOKUP(EO39,'Footnotes list'!$D$9:$E$58,2,FALSE)=0,\"\",VLOOKUP(EO39,'Footnotes list'!$D$9:$E$58,2,FALSE) ) )","v":""},null,null,null,null,{"$f":"IF(TRIM(ET39)=\"\", \"\", IF(VLOOKUP(ET39,'Footnotes list'!$D$9:$E$58,2,FALSE)=0,\"\",VLOOKUP(ET39,'Footnotes list'!$D$9:$E$58,2,FALSE) ) )","v":""},null,null,null,null,{"$f":"IF(TRIM(EY39)=\"\", \"\", IF(VLOOKUP(EY39,'Footnotes list'!$D$9:$E$58,2,FALSE)=0,\"\",VLOOKUP(EY39,'Footnotes list'!$D$9:$E$58,2,FALSE) ) )","v":""}]
[null,null,"C22_C23","C_REP","cleaner and resource efficient products",null,null,null,null,null,{"$f":"IF(TRIM(J40)=\"\", \"\", IF(VLOOKUP(J40,'Footnotes list'!$D$9:$E$58,2,FALSE)=0,\"\",VLOOKUP(J40,'Footnotes list'!$D$9:$E$58,2,FALSE) ) )","v":""},null,null,null,null,{"$f":"IF(TRIM(O40)=\"\", \"\", IF(VLOOKUP(O40,'Footnotes list'!$D$9:$E$58,2,FALSE)=0,\"\",VLOOKUP(O40,'Footnotes list'!$D$9:$E$58,2,FALSE) ) )","v":""},null,null,null,null,{"$f":"IF(TRIM(T40)=\"\", \"\", IF(VLOOKUP(T40,'Footnotes list'!$D$9:$E$58,2,FALSE)=0,\"\",VLOOKUP(T40,'Footnotes list'!$D$9:$E$58,2,FALSE) ) )","v":""},null,null,null,null,{"$f":"IF(TRIM(Y40)=\"\", \"\", IF(VLOOKUP(Y40,'Footnotes list'!$D$9:$E$58,2,FALSE)=0,\"\",VLOOKUP(Y40,'Footnotes list'!$D$9:$E$58,2,FALSE) ) )","v":""},null,null,null,null,{"$f":"IF(TRIM(AD40)=\"\", \"\", IF(VLOOKUP(AD40,'Footnotes list'!$D$9:$E$58,2,FALSE)=0,\"\",VLOOKUP(AD40,'Footnotes list'!$D$9:$E$58,2,FALSE) ) )","v":""},null,null,null,null,{"$f":"IF(TRIM(AI40)=\"\", \"\", IF(VLOOKUP(AI40,'Footnotes list'!$D$9:$E$58,2,FALSE)=0,\"\",VLOOKUP(AI40,'Footnotes list'!$D$9:$E$58,2,FALSE) ) )","v":""},null,null,null,null,{"$f":"IF(TRIM(AN40)=\"\", \"\", IF(VLOOKUP(AN40,'Footnotes list'!$D$9:$E$58,2,FALSE)=0,\"\",VLOOKUP(AN40,'Footnotes list'!$D$9:$E$58,2,FALSE) ) )","v":""},null,null,null,null,{"$f":"IF(TRIM(AS40)=\"\", \"\", IF(VLOOKUP(AS40,'Footnotes list'!$D$9:$E$58,2,FALSE)=0,\"\",VLOOKUP(AS40,'Footnotes list'!$D$9:$E$58,2,FALSE) ) )","v":""},null,null,null,null,{"$f":"IF(TRIM(AX40)=\"\", \"\", IF(VLOOKUP(AX40,'Footnotes list'!$D$9:$E$58,2,FALSE)=0,\"\",VLOOKUP(AX40,'Footnotes list'!$D$9:$E$58,2,FALSE) ) )","v":""},null,null,null,null,{"$f":"IF(TRIM(BC40)=\"\", \"\", IF(VLOOKUP(BC40,'Footnotes list'!$D$9:$E$58,2,FALSE)=0,\"\",VLOOKUP(BC40,'Footnotes list'!$D$9:$E$58,2,FALSE) ) )","v":""},null,null,null,null,{"$f":"IF(TRIM(BH40)=\"\", \"\", IF(VLOOKUP(BH40,'Footnotes list'!$D$9:$E$58,2,FALSE)=0,\"\",VLOOKUP(BH40,'Footnotes list'!$D$9:$E$58,2,FALSE) ) )","v":""},null,null,null,null,{"$f":"IF(TRIM(BM40)=\"\", \"\", IF(VLOOKUP(BM40,'Footnotes list'!$D$9:$E$58,2,FALSE)=0,\"\",VLOOKUP(BM40,'Footnotes list'!$D$9:$E$58,2,FALSE) ) )","v":""},null,null,null,null,{"$f":"IF(TRIM(BR40)=\"\", \"\", IF(VLOOKUP(BR40,'Footnotes list'!$D$9:$E$58,2,FALSE)=0,\"\",VLOOKUP(BR40,'Footnotes list'!$D$9:$E$58,2,FALSE) ) )","v":""},null,null,null,null,{"$f":"IF(TRIM(BW40)=\"\", \"\", IF(VLOOKUP(BW40,'Footnotes list'!$D$9:$E$58,2,FALSE)=0,\"\",VLOOKUP(BW40,'Footnotes list'!$D$9:$E$58,2,FALSE) ) )","v":""},null,null,null,null,{"$f":"IF(TRIM(CB40)=\"\", \"\", IF(VLOOKUP(CB40,'Footnotes list'!$D$9:$E$58,2,FALSE)=0,\"\",VLOOKUP(CB40,'Footnotes list'!$D$9:$E$58,2,FALSE) ) )","v":""},null,null,null,null,{"$f":"IF(TRIM(CG40)=\"\", \"\", IF(VLOOKUP(CG40,'Footnotes list'!$D$9:$E$58,2,FALSE)=0,\"\",VLOOKUP(CG40,'Footnotes list'!$D$9:$E$58,2,FALSE) ) )","v":""},null,null,null,null,{"$f":"IF(TRIM(CL40)=\"\", \"\", IF(VLOOKUP(CL40,'Footnotes list'!$D$9:$E$58,2,FALSE)=0,\"\",VLOOKUP(CL40,'Footnotes list'!$D$9:$E$58,2,FALSE) ) )","v":""},null,null,null,null,{"$f":"IF(TRIM(CQ40)=\"\", \"\", IF(VLOOKUP(CQ40,'Footnotes list'!$D$9:$E$58,2,FALSE)=0,\"\",VLOOKUP(CQ40,'Footnotes list'!$D$9:$E$58,2,FALSE) ) )","v":""},null,null,null,null,{"$f":"IF(TRIM(CV40)=\"\", \"\", IF(VLOOKUP(CV40,'Footnotes list'!$D$9:$E$58,2,FALSE)=0,\"\",VLOOKUP(CV40,'Footnotes list'!$D$9:$E$58,2,FALSE) ) )","v":""},null,null,null,null,{"$f":"IF(TRIM(DA40)=\"\", \"\", IF(VLOOKUP(DA40,'Footnotes list'!$D$9:$E$58,2,FALSE)=0,\"\",VLOOKUP(DA40,'Footnotes list'!$D$9:$E$58,2,FALSE) ) )","v":""},null,null,null,null,{"$f":"IF(TRIM(DF40)=\"\", \"\", IF(VLOOKUP(DF40,'Footnotes list'!$D$9:$E$58,2,FALSE)=0,\"\",VLOOKUP(DF40,'Footnotes list'!$D$9:$E$58,2,FALSE) ) )","v":""},null,null,null,null,{"$f":"IF(TRIM(DK40)=\"\", \"\", IF(VLOOKUP(DK40,'Footnotes list'!$D$9:$E$58,2,FALSE)=0,\"\",VLOOKUP(DK40,'Footnotes list'!$D$9:$E$58,2,FALSE) ) )","v":""},null,null,null,null,{"$f":"IF(TRIM(DP40)=\"\", \"\", IF(VLOOKUP(DP40,'Footnotes list'!$D$9:$E$58,2,FALSE)=0,\"\",VLOOKUP(DP40,'Footnotes list'!$D$9:$E$58,2,FALSE) ) )","v":""},null,null,null,null,{"$f":"IF(TRIM(DU40)=\"\", \"\", IF(VLOOKUP(DU40,'Footnotes list'!$D$9:$E$58,2,FALSE)=0,\"\",VLOOKUP(DU40,'Footnotes list'!$D$9:$E$58,2,FALSE) ) )","v":""},null,null,null,null,{"$f":"IF(TRIM(DZ40)=\"\", \"\", IF(VLOOKUP(DZ40,'Footnotes list'!$D$9:$E$58,2,FALSE)=0,\"\",VLOOKUP(DZ40,'Footnotes list'!$D$9:$E$58,2,FALSE) ) )","v":""},null,null,null,null,{"$f":"IF(TRIM(EE40)=\"\", \"\", IF(VLOOKUP(EE40,'Footnotes list'!$D$9:$E$58,2,FALSE)=0,\"\",VLOOKUP(EE40,'Footnotes list'!$D$9:$E$58,2,FALSE) ) )","v":""},null,null,null,null,{"$f":"IF(TRIM(EJ40)=\"\", \"\", IF(VLOOKUP(EJ40,'Footnotes list'!$D$9:$E$58,2,FALSE)=0,\"\",VLOOKUP(EJ40,'Footnotes list'!$D$9:$E$58,2,FALSE) ) )","v":""},null,null,null,null,{"$f":"IF(TRIM(EO40)=\"\", \"\", IF(VLOOKUP(EO40,'Footnotes list'!$D$9:$E$58,2,FALSE)=0,\"\",VLOOKUP(EO40,'Footnotes list'!$D$9:$E$58,2,FALSE) ) )","v":""},null,null,null,null,{"$f":"IF(TRIM(ET40)=\"\", \"\", IF(VLOOKUP(ET40,'Footnotes list'!$D$9:$E$58,2,FALSE)=0,\"\",VLOOKUP(ET40,'Footnotes list'!$D$9:$E$58,2,FALSE) ) )","v":""},null,null,null,null,{"$f":"IF(TRIM(EY40)=\"\", \"\", IF(VLOOKUP(EY40,'Footnotes list'!$D$9:$E$58,2,FALSE)=0,\"\",VLOOKUP(EY40,'Footnotes list'!$D$9:$E$58,2,FALSE) ) )","v":""}]
[null,null,"C24_C25","TOT_EGSS","Total C24 - C25 Manufacture of basic metals and fabricated metal products, except machinery and equipment, including:",null,null,null,null,null,{"$f":"IF(TRIM(J41)=\"\", \"\", IF(VLOOKUP(J41,'Footnotes list'!$D$9:$E$58,2,FALSE)=0,\"\",VLOOKUP(J41,'Footnotes list'!$D$9:$E$58,2,FALSE) ) )","v":""},null,null,null,null,{"$f":"IF(TRIM(O41)=\"\", \"\", IF(VLOOKUP(O41,'Footnotes list'!$D$9:$E$58,2,FALSE)=0,\"\",VLOOKUP(O41,'Footnotes list'!$D$9:$E$58,2,FALSE) ) )","v":""},null,null,null,null,{"$f":"IF(TRIM(T41)=\"\", \"\", IF(VLOOKUP(T41,'Footnotes list'!$D$9:$E$58,2,FALSE)=0,\"\",VLOOKUP(T41,'Footnotes list'!$D$9:$E$58,2,FALSE) ) )","v":""},null,null,null,null,{"$f":"IF(TRIM(Y41)=\"\", \"\", IF(VLOOKUP(Y41,'Footnotes list'!$D$9:$E$58,2,FALSE)=0,\"\",VLOOKUP(Y41,'Footnotes list'!$D$9:$E$58,2,FALSE) ) )","v":""},null,null,null,null,{"$f":"IF(TRIM(AD41)=\"\", \"\", IF(VLOOKUP(AD41,'Footnotes list'!$D$9:$E$58,2,FALSE)=0,\"\",VLOOKUP(AD41,'Footnotes list'!$D$9:$E$58,2,FALSE) ) )","v":""},null,null,null,null,{"$f":"IF(TRIM(AI41)=\"\", \"\", IF(VLOOKUP(AI41,'Footnotes list'!$D$9:$E$58,2,FALSE)=0,\"\",VLOOKUP(AI41,'Footnotes list'!$D$9:$E$58,2,FALSE) ) )","v":""},null,null,null,null,{"$f":"IF(TRIM(AN41)=\"\", \"\", IF(VLOOKUP(AN41,'Footnotes list'!$D$9:$E$58,2,FALSE)=0,\"\",VLOOKUP(AN41,'Footnotes list'!$D$9:$E$58,2,FALSE) ) )","v":""},null,null,null,null,{"$f":"IF(TRIM(AS41)=\"\", \"\", IF(VLOOKUP(AS41,'Footnotes list'!$D$9:$E$58,2,FALSE)=0,\"\",VLOOKUP(AS41,'Footnotes list'!$D$9:$E$58,2,FALSE) ) )","v":""},null,null,null,null,{"$f":"IF(TRIM(AX41)=\"\", \"\", IF(VLOOKUP(AX41,'Footnotes list'!$D$9:$E$58,2,FALSE)=0,\"\",VLOOKUP(AX41,'Footnotes list'!$D$9:$E$58,2,FALSE) ) )","v":""},null,null,null,null,{"$f":"IF(TRIM(BC41)=\"\", \"\", IF(VLOOKUP(BC41,'Footnotes list'!$D$9:$E$58,2,FALSE)=0,\"\",VLOOKUP(BC41,'Footnotes list'!$D$9:$E$58,2,FALSE) ) )","v":""},null,null,null,null,{"$f":"IF(TRIM(BH41)=\"\", \"\", IF(VLOOKUP(BH41,'Footnotes list'!$D$9:$E$58,2,FALSE)=0,\"\",VLOOKUP(BH41,'Footnotes list'!$D$9:$E$58,2,FALSE) ) )","v":""},null,null,null,null,{"$f":"IF(TRIM(BM41)=\"\", \"\", IF(VLOOKUP(BM41,'Footnotes list'!$D$9:$E$58,2,FALSE)=0,\"\",VLOOKUP(BM41,'Footnotes list'!$D$9:$E$58,2,FALSE) ) )","v":""},null,null,null,null,{"$f":"IF(TRIM(BR41)=\"\", \"\", IF(VLOOKUP(BR41,'Footnotes list'!$D$9:$E$58,2,FALSE)=0,\"\",VLOOKUP(BR41,'Footnotes list'!$D$9:$E$58,2,FALSE) ) )","v":""},null,null,null,null,{"$f":"IF(TRIM(BW41)=\"\", \"\", IF(VLOOKUP(BW41,'Footnotes list'!$D$9:$E$58,2,FALSE)=0,\"\",VLOOKUP(BW41,'Footnotes list'!$D$9:$E$58,2,FALSE) ) )","v":""},null,null,null,null,{"$f":"IF(TRIM(CB41)=\"\", \"\", IF(VLOOKUP(CB41,'Footnotes list'!$D$9:$E$58,2,FALSE)=0,\"\",VLOOKUP(CB41,'Footnotes list'!$D$9:$E$58,2,FALSE) ) )","v":""},null,null,null,null,{"$f":"IF(TRIM(CG41)=\"\", \"\", IF(VLOOKUP(CG41,'Footnotes list'!$D$9:$E$58,2,FALSE)=0,\"\",VLOOKUP(CG41,'Footnotes list'!$D$9:$E$58,2,FALSE) ) )","v":""},null,null,null,null,{"$f":"IF(TRIM(CL41)=\"\", \"\", IF(VLOOKUP(CL41,'Footnotes list'!$D$9:$E$58,2,FALSE)=0,\"\",VLOOKUP(CL41,'Footnotes list'!$D$9:$E$58,2,FALSE) ) )","v":""},null,null,null,null,{"$f":"IF(TRIM(CQ41)=\"\", \"\", IF(VLOOKUP(CQ41,'Footnotes list'!$D$9:$E$58,2,FALSE)=0,\"\",VLOOKUP(CQ41,'Footnotes list'!$D$9:$E$58,2,FALSE) ) )","v":""},null,null,null,null,{"$f":"IF(TRIM(CV41)=\"\", \"\", IF(VLOOKUP(CV41,'Footnotes list'!$D$9:$E$58,2,FALSE)=0,\"\",VLOOKUP(CV41,'Footnotes list'!$D$9:$E$58,2,FALSE) ) )","v":""},null,null,null,null,{"$f":"IF(TRIM(DA41)=\"\", \"\", IF(VLOOKUP(DA41,'Footnotes list'!$D$9:$E$58,2,FALSE)=0,\"\",VLOOKUP(DA41,'Footnotes list'!$D$9:$E$58,2,FALSE) ) )","v":""},null,null,null,null,{"$f":"IF(TRIM(DF41)=\"\", \"\", IF(VLOOKUP(DF41,'Footnotes list'!$D$9:$E$58,2,FALSE)=0,\"\",VLOOKUP(DF41,'Footnotes list'!$D$9:$E$58,2,FALSE) ) )","v":""},null,null,null,null,{"$f":"IF(TRIM(DK41)=\"\", \"\", IF(VLOOKUP(DK41,'Footnotes list'!$D$9:$E$58,2,FALSE)=0,\"\",VLOOKUP(DK41,'Footnotes list'!$D$9:$E$58,2,FALSE) ) )","v":""},null,null,null,null,{"$f":"IF(TRIM(DP41)=\"\", \"\", IF(VLOOKUP(DP41,'Footnotes list'!$D$9:$E$58,2,FALSE)=0,\"\",VLOOKUP(DP41,'Footnotes list'!$D$9:$E$58,2,FALSE) ) )","v":""},null,null,null,null,{"$f":"IF(TRIM(DU41)=\"\", \"\", IF(VLOOKUP(DU41,'Footnotes list'!$D$9:$E$58,2,FALSE)=0,\"\",VLOOKUP(DU41,'Footnotes list'!$D$9:$E$58,2,FALSE) ) )","v":""},null,null,null,null,{"$f":"IF(TRIM(DZ41)=\"\", \"\", IF(VLOOKUP(DZ41,'Footnotes list'!$D$9:$E$58,2,FALSE)=0,\"\",VLOOKUP(DZ41,'Footnotes list'!$D$9:$E$58,2,FALSE) ) )","v":""},null,null,null,null,{"$f":"IF(TRIM(EE41)=\"\", \"\", IF(VLOOKUP(EE41,'Footnotes list'!$D$9:$E$58,2,FALSE)=0,\"\",VLOOKUP(EE41,'Footnotes list'!$D$9:$E$58,2,FALSE) ) )","v":""},null,null,null,null,{"$f":"IF(TRIM(EJ41)=\"\", \"\", IF(VLOOKUP(EJ41,'Footnotes list'!$D$9:$E$58,2,FALSE)=0,\"\",VLOOKUP(EJ41,'Footnotes list'!$D$9:$E$58,2,FALSE) ) )","v":""},null,null,null,null,{"$f":"IF(TRIM(EO41)=\"\", \"\", IF(VLOOKUP(EO41,'Footnotes list'!$D$9:$E$58,2,FALSE)=0,\"\",VLOOKUP(EO41,'Footnotes list'!$D$9:$E$58,2,FALSE) ) )","v":""},null,null,null,null,{"$f":"IF(TRIM(ET41)=\"\", \"\", IF(VLOOKUP(ET41,'Footnotes list'!$D$9:$E$58,2,FALSE)=0,\"\",VLOOKUP(ET41,'Footnotes list'!$D$9:$E$58,2,FALSE) ) )","v":""},null,null,null,null,{"$f":"IF(TRIM(EY41)=\"\", \"\", IF(VLOOKUP(EY41,'Footnotes list'!$D$9:$E$58,2,FALSE)=0,\"\",VLOOKUP(EY41,'Footnotes list'!$D$9:$E$58,2,FALSE) ) )","v":""}]
[null,null,"C24_C25","ES_CS","environmental specific services",null,null,null,null,null,{"$f":"IF(TRIM(J42)=\"\", \"\", IF(VLOOKUP(J42,'Footnotes list'!$D$9:$E$58,2,FALSE)=0,\"\",VLOOKUP(J42,'Footnotes list'!$D$9:$E$58,2,FALSE) ) )","v":""},null,null,null,null,{"$f":"IF(TRIM(O42)=\"\", \"\", IF(VLOOKUP(O42,'Footnotes list'!$D$9:$E$58,2,FALSE)=0,\"\",VLOOKUP(O42,'Footnotes list'!$D$9:$E$58,2,FALSE) ) )","v":""},null,null,null,null,{"$f":"IF(TRIM(T42)=\"\", \"\", IF(VLOOKUP(T42,'Footnotes list'!$D$9:$E$58,2,FALSE)=0,\"\",VLOOKUP(T42,'Footnotes list'!$D$9:$E$58,2,FALSE) ) )","v":""},null,null,null,null,{"$f":"IF(TRIM(Y42)=\"\", \"\", IF(VLOOKUP(Y42,'Footnotes list'!$D$9:$E$58,2,FALSE)=0,\"\",VLOOKUP(Y42,'Footnotes list'!$D$9:$E$58,2,FALSE) ) )","v":""},null,null,null,null,{"$f":"IF(TRIM(AD42)=\"\", \"\", IF(VLOOKUP(AD42,'Footnotes list'!$D$9:$E$58,2,FALSE)=0,\"\",VLOOKUP(AD42,'Footnotes list'!$D$9:$E$58,2,FALSE) ) )","v":""},null,null,null,null,{"$f":"IF(TRIM(AI42)=\"\", \"\", IF(VLOOKUP(AI42,'Footnotes list'!$D$9:$E$58,2,FALSE)=0,\"\",VLOOKUP(AI42,'Footnotes list'!$D$9:$E$58,2,FALSE) ) )","v":""},null,null,null,null,{"$f":"IF(TRIM(AN42)=\"\", \"\", IF(VLOOKUP(AN42,'Footnotes list'!$D$9:$E$58,2,FALSE)=0,\"\",VLOOKUP(AN42,'Footnotes list'!$D$9:$E$58,2,FALSE) ) )","v":""},null,null,null,null,{"$f":"IF(TRIM(AS42)=\"\", \"\", IF(VLOOKUP(AS42,'Footnotes list'!$D$9:$E$58,2,FALSE)=0,\"\",VLOOKUP(AS42,'Footnotes list'!$D$9:$E$58,2,FALSE) ) )","v":""},null,null,null,null,{"$f":"IF(TRIM(AX42)=\"\", \"\", IF(VLOOKUP(AX42,'Footnotes list'!$D$9:$E$58,2,FALSE)=0,\"\",VLOOKUP(AX42,'Footnotes list'!$D$9:$E$58,2,FALSE) ) )","v":""},null,null,null,null,{"$f":"IF(TRIM(BC42)=\"\", \"\", IF(VLOOKUP(BC42,'Footnotes list'!$D$9:$E$58,2,FALSE)=0,\"\",VLOOKUP(BC42,'Footnotes list'!$D$9:$E$58,2,FALSE) ) )","v":""},null,null,null,null,{"$f":"IF(TRIM(BH42)=\"\", \"\", IF(VLOOKUP(BH42,'Footnotes list'!$D$9:$E$58,2,FALSE)=0,\"\",VLOOKUP(BH42,'Footnotes list'!$D$9:$E$58,2,FALSE) ) )","v":""},null,null,null,null,{"$f":"IF(TRIM(BM42)=\"\", \"\", IF(VLOOKUP(BM42,'Footnotes list'!$D$9:$E$58,2,FALSE)=0,\"\",VLOOKUP(BM42,'Footnotes list'!$D$9:$E$58,2,FALSE) ) )","v":""},null,null,null,null,{"$f":"IF(TRIM(BR42)=\"\", \"\", IF(VLOOKUP(BR42,'Footnotes list'!$D$9:$E$58,2,FALSE)=0,\"\",VLOOKUP(BR42,'Footnotes list'!$D$9:$E$58,2,FALSE) ) )","v":""},null,null,null,null,{"$f":"IF(TRIM(BW42)=\"\", \"\", IF(VLOOKUP(BW42,'Footnotes list'!$D$9:$E$58,2,FALSE)=0,\"\",VLOOKUP(BW42,'Footnotes list'!$D$9:$E$58,2,FALSE) ) )","v":""},null,null,null,null,{"$f":"IF(TRIM(CB42)=\"\", \"\", IF(VLOOKUP(CB42,'Footnotes list'!$D$9:$E$58,2,FALSE)=0,\"\",VLOOKUP(CB42,'Footnotes list'!$D$9:$E$58,2,FALSE) ) )","v":""},null,null,null,null,{"$f":"IF(TRIM(CG42)=\"\", \"\", IF(VLOOKUP(CG42,'Footnotes list'!$D$9:$E$58,2,FALSE)=0,\"\",VLOOKUP(CG42,'Footnotes list'!$D$9:$E$58,2,FALSE) ) )","v":""},null,null,null,null,{"$f":"IF(TRIM(CL42)=\"\", \"\", IF(VLOOKUP(CL42,'Footnotes list'!$D$9:$E$58,2,FALSE)=0,\"\",VLOOKUP(CL42,'Footnotes list'!$D$9:$E$58,2,FALSE) ) )","v":""},null,null,null,null,{"$f":"IF(TRIM(CQ42)=\"\", \"\", IF(VLOOKUP(CQ42,'Footnotes list'!$D$9:$E$58,2,FALSE)=0,\"\",VLOOKUP(CQ42,'Footnotes list'!$D$9:$E$58,2,FALSE) ) )","v":""},null,null,null,null,{"$f":"IF(TRIM(CV42)=\"\", \"\", IF(VLOOKUP(CV42,'Footnotes list'!$D$9:$E$58,2,FALSE)=0,\"\",VLOOKUP(CV42,'Footnotes list'!$D$9:$E$58,2,FALSE) ) )","v":""},null,null,null,null,{"$f":"IF(TRIM(DA42)=\"\", \"\", IF(VLOOKUP(DA42,'Footnotes list'!$D$9:$E$58,2,FALSE)=0,\"\",VLOOKUP(DA42,'Footnotes list'!$D$9:$E$58,2,FALSE) ) )","v":""},null,null,null,null,{"$f":"IF(TRIM(DF42)=\"\", \"\", IF(VLOOKUP(DF42,'Footnotes list'!$D$9:$E$58,2,FALSE)=0,\"\",VLOOKUP(DF42,'Footnotes list'!$D$9:$E$58,2,FALSE) ) )","v":""},null,null,null,null,{"$f":"IF(TRIM(DK42)=\"\", \"\", IF(VLOOKUP(DK42,'Footnotes list'!$D$9:$E$58,2,FALSE)=0,\"\",VLOOKUP(DK42,'Footnotes list'!$D$9:$E$58,2,FALSE) ) )","v":""},null,null,null,null,{"$f":"IF(TRIM(DP42)=\"\", \"\", IF(VLOOKUP(DP42,'Footnotes list'!$D$9:$E$58,2,FALSE)=0,\"\",VLOOKUP(DP42,'Footnotes list'!$D$9:$E$58,2,FALSE) ) )","v":""},null,null,null,null,{"$f":"IF(TRIM(DU42)=\"\", \"\", IF(VLOOKUP(DU42,'Footnotes list'!$D$9:$E$58,2,FALSE)=0,\"\",VLOOKUP(DU42,'Footnotes list'!$D$9:$E$58,2,FALSE) ) )","v":""},null,null,null,null,{"$f":"IF(TRIM(DZ42)=\"\", \"\", IF(VLOOKUP(DZ42,'Footnotes list'!$D$9:$E$58,2,FALSE)=0,\"\",VLOOKUP(DZ42,'Footnotes list'!$D$9:$E$58,2,FALSE) ) )","v":""},null,null,null,null,{"$f":"IF(TRIM(EE42)=\"\", \"\", IF(VLOOKUP(EE42,'Footnotes list'!$D$9:$E$58,2,FALSE)=0,\"\",VLOOKUP(EE42,'Footnotes list'!$D$9:$E$58,2,FALSE) ) )","v":""},null,null,null,null,{"$f":"IF(TRIM(EJ42)=\"\", \"\", IF(VLOOKUP(EJ42,'Footnotes list'!$D$9:$E$58,2,FALSE)=0,\"\",VLOOKUP(EJ42,'Footnotes list'!$D$9:$E$58,2,FALSE) ) )","v":""},null,null,null,null,{"$f":"IF(TRIM(EO42)=\"\", \"\", IF(VLOOKUP(EO42,'Footnotes list'!$D$9:$E$58,2,FALSE)=0,\"\",VLOOKUP(EO42,'Footnotes list'!$D$9:$E$58,2,FALSE) ) )","v":""},null,null,null,null,{"$f":"IF(TRIM(ET42)=\"\", \"\", IF(VLOOKUP(ET42,'Footnotes list'!$D$9:$E$58,2,FALSE)=0,\"\",VLOOKUP(ET42,'Footnotes list'!$D$9:$E$58,2,FALSE) ) )","v":""},null,null,null,null,{"$f":"IF(TRIM(EY42)=\"\", \"\", IF(VLOOKUP(EY42,'Footnotes list'!$D$9:$E$58,2,FALSE)=0,\"\",VLOOKUP(EY42,'Footnotes list'!$D$9:$E$58,2,FALSE) ) )","v":""}]
[null,null,"C24_C25","C_REP","cleaner and resource efficient products",null,null,null,null,null,{"$f":"IF(TRIM(J43)=\"\", \"\", IF(VLOOKUP(J43,'Footnotes list'!$D$9:$E$58,2,FALSE)=0,\"\",VLOOKUP(J43,'Footnotes list'!$D$9:$E$58,2,FALSE) ) )","v":""},null,null,null,null,{"$f":"IF(TRIM(O43)=\"\", \"\", IF(VLOOKUP(O43,'Footnotes list'!$D$9:$E$58,2,FALSE)=0,\"\",VLOOKUP(O43,'Footnotes list'!$D$9:$E$58,2,FALSE) ) )","v":""},null,null,null,null,{"$f":"IF(TRIM(T43)=\"\", \"\", IF(VLOOKUP(T43,'Footnotes list'!$D$9:$E$58,2,FALSE)=0,\"\",VLOOKUP(T43,'Footnotes list'!$D$9:$E$58,2,FALSE) ) )","v":""},null,null,null,null,{"$f":"IF(TRIM(Y43)=\"\", \"\", IF(VLOOKUP(Y43,'Footnotes list'!$D$9:$E$58,2,FALSE)=0,\"\",VLOOKUP(Y43,'Footnotes list'!$D$9:$E$58,2,FALSE) ) )","v":""},null,null,null,null,{"$f":"IF(TRIM(AD43)=\"\", \"\", IF(VLOOKUP(AD43,'Footnotes list'!$D$9:$E$58,2,FALSE)=0,\"\",VLOOKUP(AD43,'Footnotes list'!$D$9:$E$58,2,FALSE) ) )","v":""},null,null,null,null,{"$f":"IF(TRIM(AI43)=\"\", \"\", IF(VLOOKUP(AI43,'Footnotes list'!$D$9:$E$58,2,FALSE)=0,\"\",VLOOKUP(AI43,'Footnotes list'!$D$9:$E$58,2,FALSE) ) )","v":""},null,null,null,null,{"$f":"IF(TRIM(AN43)=\"\", \"\", IF(VLOOKUP(AN43,'Footnotes list'!$D$9:$E$58,2,FALSE)=0,\"\",VLOOKUP(AN43,'Footnotes list'!$D$9:$E$58,2,FALSE) ) )","v":""},null,null,null,null,{"$f":"IF(TRIM(AS43)=\"\", \"\", IF(VLOOKUP(AS43,'Footnotes list'!$D$9:$E$58,2,FALSE)=0,\"\",VLOOKUP(AS43,'Footnotes list'!$D$9:$E$58,2,FALSE) ) )","v":""},null,null,null,null,{"$f":"IF(TRIM(AX43)=\"\", \"\", IF(VLOOKUP(AX43,'Footnotes list'!$D$9:$E$58,2,FALSE)=0,\"\",VLOOKUP(AX43,'Footnotes list'!$D$9:$E$58,2,FALSE) ) )","v":""},null,null,null,null,{"$f":"IF(TRIM(BC43)=\"\", \"\", IF(VLOOKUP(BC43,'Footnotes list'!$D$9:$E$58,2,FALSE)=0,\"\",VLOOKUP(BC43,'Footnotes list'!$D$9:$E$58,2,FALSE) ) )","v":""},null,null,null,null,{"$f":"IF(TRIM(BH43)=\"\", \"\", IF(VLOOKUP(BH43,'Footnotes list'!$D$9:$E$58,2,FALSE)=0,\"\",VLOOKUP(BH43,'Footnotes list'!$D$9:$E$58,2,FALSE) ) )","v":""},null,null,null,null,{"$f":"IF(TRIM(BM43)=\"\", \"\", IF(VLOOKUP(BM43,'Footnotes list'!$D$9:$E$58,2,FALSE)=0,\"\",VLOOKUP(BM43,'Footnotes list'!$D$9:$E$58,2,FALSE) ) )","v":""},null,null,null,null,{"$f":"IF(TRIM(BR43)=\"\", \"\", IF(VLOOKUP(BR43,'Footnotes list'!$D$9:$E$58,2,FALSE)=0,\"\",VLOOKUP(BR43,'Footnotes list'!$D$9:$E$58,2,FALSE) ) )","v":""},null,null,null,null,{"$f":"IF(TRIM(BW43)=\"\", \"\", IF(VLOOKUP(BW43,'Footnotes list'!$D$9:$E$58,2,FALSE)=0,\"\",VLOOKUP(BW43,'Footnotes list'!$D$9:$E$58,2,FALSE) ) )","v":""},null,null,null,null,{"$f":"IF(TRIM(CB43)=\"\", \"\", IF(VLOOKUP(CB43,'Footnotes list'!$D$9:$E$58,2,FALSE)=0,\"\",VLOOKUP(CB43,'Footnotes list'!$D$9:$E$58,2,FALSE) ) )","v":""},null,null,null,null,{"$f":"IF(TRIM(CG43)=\"\", \"\", IF(VLOOKUP(CG43,'Footnotes list'!$D$9:$E$58,2,FALSE)=0,\"\",VLOOKUP(CG43,'Footnotes list'!$D$9:$E$58,2,FALSE) ) )","v":""},null,null,null,null,{"$f":"IF(TRIM(CL43)=\"\", \"\", IF(VLOOKUP(CL43,'Footnotes list'!$D$9:$E$58,2,FALSE)=0,\"\",VLOOKUP(CL43,'Footnotes list'!$D$9:$E$58,2,FALSE) ) )","v":""},null,null,null,null,{"$f":"IF(TRIM(CQ43)=\"\", \"\", IF(VLOOKUP(CQ43,'Footnotes list'!$D$9:$E$58,2,FALSE)=0,\"\",VLOOKUP(CQ43,'Footnotes list'!$D$9:$E$58,2,FALSE) ) )","v":""},null,null,null,null,{"$f":"IF(TRIM(CV43)=\"\", \"\", IF(VLOOKUP(CV43,'Footnotes list'!$D$9:$E$58,2,FALSE)=0,\"\",VLOOKUP(CV43,'Footnotes list'!$D$9:$E$58,2,FALSE) ) )","v":""},null,null,null,null,{"$f":"IF(TRIM(DA43)=\"\", \"\", IF(VLOOKUP(DA43,'Footnotes list'!$D$9:$E$58,2,FALSE)=0,\"\",VLOOKUP(DA43,'Footnotes list'!$D$9:$E$58,2,FALSE) ) )","v":""},null,null,null,null,{"$f":"IF(TRIM(DF43)=\"\", \"\", IF(VLOOKUP(DF43,'Footnotes list'!$D$9:$E$58,2,FALSE)=0,\"\",VLOOKUP(DF43,'Footnotes list'!$D$9:$E$58,2,FALSE) ) )","v":""},null,null,null,null,{"$f":"IF(TRIM(DK43)=\"\", \"\", IF(VLOOKUP(DK43,'Footnotes list'!$D$9:$E$58,2,FALSE)=0,\"\",VLOOKUP(DK43,'Footnotes list'!$D$9:$E$58,2,FALSE) ) )","v":""},null,null,null,null,{"$f":"IF(TRIM(DP43)=\"\", \"\", IF(VLOOKUP(DP43,'Footnotes list'!$D$9:$E$58,2,FALSE)=0,\"\",VLOOKUP(DP43,'Footnotes list'!$D$9:$E$58,2,FALSE) ) )","v":""},null,null,null,null,{"$f":"IF(TRIM(DU43)=\"\", \"\", IF(VLOOKUP(DU43,'Footnotes list'!$D$9:$E$58,2,FALSE)=0,\"\",VLOOKUP(DU43,'Footnotes list'!$D$9:$E$58,2,FALSE) ) )","v":""},null,null,null,null,{"$f":"IF(TRIM(DZ43)=\"\", \"\", IF(VLOOKUP(DZ43,'Footnotes list'!$D$9:$E$58,2,FALSE)=0,\"\",VLOOKUP(DZ43,'Footnotes list'!$D$9:$E$58,2,FALSE) ) )","v":""},null,null,null,null,{"$f":"IF(TRIM(EE43)=\"\", \"\", IF(VLOOKUP(EE43,'Footnotes list'!$D$9:$E$58,2,FALSE)=0,\"\",VLOOKUP(EE43,'Footnotes list'!$D$9:$E$58,2,FALSE) ) )","v":""},null,null,null,null,{"$f":"IF(TRIM(EJ43)=\"\", \"\", IF(VLOOKUP(EJ43,'Footnotes list'!$D$9:$E$58,2,FALSE)=0,\"\",VLOOKUP(EJ43,'Footnotes list'!$D$9:$E$58,2,FALSE) ) )","v":""},null,null,null,null,{"$f":"IF(TRIM(EO43)=\"\", \"\", IF(VLOOKUP(EO43,'Footnotes list'!$D$9:$E$58,2,FALSE)=0,\"\",VLOOKUP(EO43,'Footnotes list'!$D$9:$E$58,2,FALSE) ) )","v":""},null,null,null,null,{"$f":"IF(TRIM(ET43)=\"\", \"\", IF(VLOOKUP(ET43,'Footnotes list'!$D$9:$E$58,2,FALSE)=0,\"\",VLOOKUP(ET43,'Footnotes list'!$D$9:$E$58,2,FALSE) ) )","v":""},null,null,null,null,{"$f":"IF(TRIM(EY43)=\"\", \"\", IF(VLOOKUP(EY43,'Footnotes list'!$D$9:$E$58,2,FALSE)=0,\"\",VLOOKUP(EY43,'Footnotes list'!$D$9:$E$58,2,FALSE) ) )","v":""}]
[null,null,"C26","TOT_EGSS","Total C26 - Manufacture of computer, electronic and optical products, including:",null,null,null,null,null,{"$f":"IF(TRIM(J44)=\"\", \"\", IF(VLOOKUP(J44,'Footnotes list'!$D$9:$E$58,2,FALSE)=0,\"\",VLOOKUP(J44,'Footnotes list'!$D$9:$E$58,2,FALSE) ) )","v":""},null,null,null,null,{"$f":"IF(TRIM(O44)=\"\", \"\", IF(VLOOKUP(O44,'Footnotes list'!$D$9:$E$58,2,FALSE)=0,\"\",VLOOKUP(O44,'Footnotes list'!$D$9:$E$58,2,FALSE) ) )","v":""},null,null,null,null,{"$f":"IF(TRIM(T44)=\"\", \"\", IF(VLOOKUP(T44,'Footnotes list'!$D$9:$E$58,2,FALSE)=0,\"\",VLOOKUP(T44,'Footnotes list'!$D$9:$E$58,2,FALSE) ) )","v":""},null,null,null,null,{"$f":"IF(TRIM(Y44)=\"\", \"\", IF(VLOOKUP(Y44,'Footnotes list'!$D$9:$E$58,2,FALSE)=0,\"\",VLOOKUP(Y44,'Footnotes list'!$D$9:$E$58,2,FALSE) ) )","v":""},null,null,null,null,{"$f":"IF(TRIM(AD44)=\"\", \"\", IF(VLOOKUP(AD44,'Footnotes list'!$D$9:$E$58,2,FALSE)=0,\"\",VLOOKUP(AD44,'Footnotes list'!$D$9:$E$58,2,FALSE) ) )","v":""},null,null,null,null,{"$f":"IF(TRIM(AI44)=\"\", \"\", IF(VLOOKUP(AI44,'Footnotes list'!$D$9:$E$58,2,FALSE)=0,\"\",VLOOKUP(AI44,'Footnotes list'!$D$9:$E$58,2,FALSE) ) )","v":""},null,null,null,null,{"$f":"IF(TRIM(AN44)=\"\", \"\", IF(VLOOKUP(AN44,'Footnotes list'!$D$9:$E$58,2,FALSE)=0,\"\",VLOOKUP(AN44,'Footnotes list'!$D$9:$E$58,2,FALSE) ) )","v":""},null,null,null,null,{"$f":"IF(TRIM(AS44)=\"\", \"\", IF(VLOOKUP(AS44,'Footnotes list'!$D$9:$E$58,2,FALSE)=0,\"\",VLOOKUP(AS44,'Footnotes list'!$D$9:$E$58,2,FALSE) ) )","v":""},null,null,null,null,{"$f":"IF(TRIM(AX44)=\"\", \"\", IF(VLOOKUP(AX44,'Footnotes list'!$D$9:$E$58,2,FALSE)=0,\"\",VLOOKUP(AX44,'Footnotes list'!$D$9:$E$58,2,FALSE) ) )","v":""},null,null,null,null,{"$f":"IF(TRIM(BC44)=\"\", \"\", IF(VLOOKUP(BC44,'Footnotes list'!$D$9:$E$58,2,FALSE)=0,\"\",VLOOKUP(BC44,'Footnotes list'!$D$9:$E$58,2,FALSE) ) )","v":""},null,null,null,null,{"$f":"IF(TRIM(BH44)=\"\", \"\", IF(VLOOKUP(BH44,'Footnotes list'!$D$9:$E$58,2,FALSE)=0,\"\",VLOOKUP(BH44,'Footnotes list'!$D$9:$E$58,2,FALSE) ) )","v":""},null,null,null,null,{"$f":"IF(TRIM(BM44)=\"\", \"\", IF(VLOOKUP(BM44,'Footnotes list'!$D$9:$E$58,2,FALSE)=0,\"\",VLOOKUP(BM44,'Footnotes list'!$D$9:$E$58,2,FALSE) ) )","v":""},null,null,null,null,{"$f":"IF(TRIM(BR44)=\"\", \"\", IF(VLOOKUP(BR44,'Footnotes list'!$D$9:$E$58,2,FALSE)=0,\"\",VLOOKUP(BR44,'Footnotes list'!$D$9:$E$58,2,FALSE) ) )","v":""},null,null,null,null,{"$f":"IF(TRIM(BW44)=\"\", \"\", IF(VLOOKUP(BW44,'Footnotes list'!$D$9:$E$58,2,FALSE)=0,\"\",VLOOKUP(BW44,'Footnotes list'!$D$9:$E$58,2,FALSE) ) )","v":""},null,null,null,null,{"$f":"IF(TRIM(CB44)=\"\", \"\", IF(VLOOKUP(CB44,'Footnotes list'!$D$9:$E$58,2,FALSE)=0,\"\",VLOOKUP(CB44,'Footnotes list'!$D$9:$E$58,2,FALSE) ) )","v":""},null,null,null,null,{"$f":"IF(TRIM(CG44)=\"\", \"\", IF(VLOOKUP(CG44,'Footnotes list'!$D$9:$E$58,2,FALSE)=0,\"\",VLOOKUP(CG44,'Footnotes list'!$D$9:$E$58,2,FALSE) ) )","v":""},null,null,null,null,{"$f":"IF(TRIM(CL44)=\"\", \"\", IF(VLOOKUP(CL44,'Footnotes list'!$D$9:$E$58,2,FALSE)=0,\"\",VLOOKUP(CL44,'Footnotes list'!$D$9:$E$58,2,FALSE) ) )","v":""},null,null,null,null,{"$f":"IF(TRIM(CQ44)=\"\", \"\", IF(VLOOKUP(CQ44,'Footnotes list'!$D$9:$E$58,2,FALSE)=0,\"\",VLOOKUP(CQ44,'Footnotes list'!$D$9:$E$58,2,FALSE) ) )","v":""},null,null,null,null,{"$f":"IF(TRIM(CV44)=\"\", \"\", IF(VLOOKUP(CV44,'Footnotes list'!$D$9:$E$58,2,FALSE)=0,\"\",VLOOKUP(CV44,'Footnotes list'!$D$9:$E$58,2,FALSE) ) )","v":""},null,null,null,null,{"$f":"IF(TRIM(DA44)=\"\", \"\", IF(VLOOKUP(DA44,'Footnotes list'!$D$9:$E$58,2,FALSE)=0,\"\",VLOOKUP(DA44,'Footnotes list'!$D$9:$E$58,2,FALSE) ) )","v":""},null,null,null,null,{"$f":"IF(TRIM(DF44)=\"\", \"\", IF(VLOOKUP(DF44,'Footnotes list'!$D$9:$E$58,2,FALSE)=0,\"\",VLOOKUP(DF44,'Footnotes list'!$D$9:$E$58,2,FALSE) ) )","v":""},null,null,null,null,{"$f":"IF(TRIM(DK44)=\"\", \"\", IF(VLOOKUP(DK44,'Footnotes list'!$D$9:$E$58,2,FALSE)=0,\"\",VLOOKUP(DK44,'Footnotes list'!$D$9:$E$58,2,FALSE) ) )","v":""},null,null,null,null,{"$f":"IF(TRIM(DP44)=\"\", \"\", IF(VLOOKUP(DP44,'Footnotes list'!$D$9:$E$58,2,FALSE)=0,\"\",VLOOKUP(DP44,'Footnotes list'!$D$9:$E$58,2,FALSE) ) )","v":""},null,null,null,null,{"$f":"IF(TRIM(DU44)=\"\", \"\", IF(VLOOKUP(DU44,'Footnotes list'!$D$9:$E$58,2,FALSE)=0,\"\",VLOOKUP(DU44,'Footnotes list'!$D$9:$E$58,2,FALSE) ) )","v":""},null,null,null,null,{"$f":"IF(TRIM(DZ44)=\"\", \"\", IF(VLOOKUP(DZ44,'Footnotes list'!$D$9:$E$58,2,FALSE)=0,\"\",VLOOKUP(DZ44,'Footnotes list'!$D$9:$E$58,2,FALSE) ) )","v":""},null,null,null,null,{"$f":"IF(TRIM(EE44)=\"\", \"\", IF(VLOOKUP(EE44,'Footnotes list'!$D$9:$E$58,2,FALSE)=0,\"\",VLOOKUP(EE44,'Footnotes list'!$D$9:$E$58,2,FALSE) ) )","v":""},null,null,null,null,{"$f":"IF(TRIM(EJ44)=\"\", \"\", IF(VLOOKUP(EJ44,'Footnotes list'!$D$9:$E$58,2,FALSE)=0,\"\",VLOOKUP(EJ44,'Footnotes list'!$D$9:$E$58,2,FALSE) ) )","v":""},null,null,null,null,{"$f":"IF(TRIM(EO44)=\"\", \"\", IF(VLOOKUP(EO44,'Footnotes list'!$D$9:$E$58,2,FALSE)=0,\"\",VLOOKUP(EO44,'Footnotes list'!$D$9:$E$58,2,FALSE) ) )","v":""},null,null,null,null,{"$f":"IF(TRIM(ET44)=\"\", \"\", IF(VLOOKUP(ET44,'Footnotes list'!$D$9:$E$58,2,FALSE)=0,\"\",VLOOKUP(ET44,'Footnotes list'!$D$9:$E$58,2,FALSE) ) )","v":""},null,null,null,null,{"$f":"IF(TRIM(EY44)=\"\", \"\", IF(VLOOKUP(EY44,'Footnotes list'!$D$9:$E$58,2,FALSE)=0,\"\",VLOOKUP(EY44,'Footnotes list'!$D$9:$E$58,2,FALSE) ) )","v":""}]
[null,null,"C26","ES_CS","environmental specific services",null,null,null,null,null,{"$f":"IF(TRIM(J45)=\"\", \"\", IF(VLOOKUP(J45,'Footnotes list'!$D$9:$E$58,2,FALSE)=0,\"\",VLOOKUP(J45,'Footnotes list'!$D$9:$E$58,2,FALSE) ) )","v":""},null,null,null,null,{"$f":"IF(TRIM(O45)=\"\", \"\", IF(VLOOKUP(O45,'Footnotes list'!$D$9:$E$58,2,FALSE)=0,\"\",VLOOKUP(O45,'Footnotes list'!$D$9:$E$58,2,FALSE) ) )","v":""},null,null,null,null,{"$f":"IF(TRIM(T45)=\"\", \"\", IF(VLOOKUP(T45,'Footnotes list'!$D$9:$E$58,2,FALSE)=0,\"\",VLOOKUP(T45,'Footnotes list'!$D$9:$E$58,2,FALSE) ) )","v":""},null,null,null,null,{"$f":"IF(TRIM(Y45)=\"\", \"\", IF(VLOOKUP(Y45,'Footnotes list'!$D$9:$E$58,2,FALSE)=0,\"\",VLOOKUP(Y45,'Footnotes list'!$D$9:$E$58,2,FALSE) ) )","v":""},null,null,null,null,{"$f":"IF(TRIM(AD45)=\"\", \"\", IF(VLOOKUP(AD45,'Footnotes list'!$D$9:$E$58,2,FALSE)=0,\"\",VLOOKUP(AD45,'Footnotes list'!$D$9:$E$58,2,FALSE) ) )","v":""},null,null,null,null,{"$f":"IF(TRIM(AI45)=\"\", \"\", IF(VLOOKUP(AI45,'Footnotes list'!$D$9:$E$58,2,FALSE)=0,\"\",VLOOKUP(AI45,'Footnotes list'!$D$9:$E$58,2,FALSE) ) )","v":""},null,null,null,null,{"$f":"IF(TRIM(AN45)=\"\", \"\", IF(VLOOKUP(AN45,'Footnotes list'!$D$9:$E$58,2,FALSE)=0,\"\",VLOOKUP(AN45,'Footnotes list'!$D$9:$E$58,2,FALSE) ) )","v":""},null,null,null,null,{"$f":"IF(TRIM(AS45)=\"\", \"\", IF(VLOOKUP(AS45,'Footnotes list'!$D$9:$E$58,2,FALSE)=0,\"\",VLOOKUP(AS45,'Footnotes list'!$D$9:$E$58,2,FALSE) ) )","v":""},null,null,null,null,{"$f":"IF(TRIM(AX45)=\"\", \"\", IF(VLOOKUP(AX45,'Footnotes list'!$D$9:$E$58,2,FALSE)=0,\"\",VLOOKUP(AX45,'Footnotes list'!$D$9:$E$58,2,FALSE) ) )","v":""},null,null,null,null,{"$f":"IF(TRIM(BC45)=\"\", \"\", IF(VLOOKUP(BC45,'Footnotes list'!$D$9:$E$58,2,FALSE)=0,\"\",VLOOKUP(BC45,'Footnotes list'!$D$9:$E$58,2,FALSE) ) )","v":""},null,null,null,null,{"$f":"IF(TRIM(BH45)=\"\", \"\", IF(VLOOKUP(BH45,'Footnotes list'!$D$9:$E$58,2,FALSE)=0,\"\",VLOOKUP(BH45,'Footnotes list'!$D$9:$E$58,2,FALSE) ) )","v":""},null,null,null,null,{"$f":"IF(TRIM(BM45)=\"\", \"\", IF(VLOOKUP(BM45,'Footnotes list'!$D$9:$E$58,2,FALSE)=0,\"\",VLOOKUP(BM45,'Footnotes list'!$D$9:$E$58,2,FALSE) ) )","v":""},null,null,null,null,{"$f":"IF(TRIM(BR45)=\"\", \"\", IF(VLOOKUP(BR45,'Footnotes list'!$D$9:$E$58,2,FALSE)=0,\"\",VLOOKUP(BR45,'Footnotes list'!$D$9:$E$58,2,FALSE) ) )","v":""},null,null,null,null,{"$f":"IF(TRIM(BW45)=\"\", \"\", IF(VLOOKUP(BW45,'Footnotes list'!$D$9:$E$58,2,FALSE)=0,\"\",VLOOKUP(BW45,'Footnotes list'!$D$9:$E$58,2,FALSE) ) )","v":""},null,null,null,null,{"$f":"IF(TRIM(CB45)=\"\", \"\", IF(VLOOKUP(CB45,'Footnotes list'!$D$9:$E$58,2,FALSE)=0,\"\",VLOOKUP(CB45,'Footnotes list'!$D$9:$E$58,2,FALSE) ) )","v":""},null,null,null,null,{"$f":"IF(TRIM(CG45)=\"\", \"\", IF(VLOOKUP(CG45,'Footnotes list'!$D$9:$E$58,2,FALSE)=0,\"\",VLOOKUP(CG45,'Footnotes list'!$D$9:$E$58,2,FALSE) ) )","v":""},null,null,null,null,{"$f":"IF(TRIM(CL45)=\"\", \"\", IF(VLOOKUP(CL45,'Footnotes list'!$D$9:$E$58,2,FALSE)=0,\"\",VLOOKUP(CL45,'Footnotes list'!$D$9:$E$58,2,FALSE) ) )","v":""},null,null,null,null,{"$f":"IF(TRIM(CQ45)=\"\", \"\", IF(VLOOKUP(CQ45,'Footnotes list'!$D$9:$E$58,2,FALSE)=0,\"\",VLOOKUP(CQ45,'Footnotes list'!$D$9:$E$58,2,FALSE) ) )","v":""},null,null,null,null,{"$f":"IF(TRIM(CV45)=\"\", \"\", IF(VLOOKUP(CV45,'Footnotes list'!$D$9:$E$58,2,FALSE)=0,\"\",VLOOKUP(CV45,'Footnotes list'!$D$9:$E$58,2,FALSE) ) )","v":""},null,null,null,null,{"$f":"IF(TRIM(DA45)=\"\", \"\", IF(VLOOKUP(DA45,'Footnotes list'!$D$9:$E$58,2,FALSE)=0,\"\",VLOOKUP(DA45,'Footnotes list'!$D$9:$E$58,2,FALSE) ) )","v":""},null,null,null,null,{"$f":"IF(TRIM(DF45)=\"\", \"\", IF(VLOOKUP(DF45,'Footnotes list'!$D$9:$E$58,2,FALSE)=0,\"\",VLOOKUP(DF45,'Footnotes list'!$D$9:$E$58,2,FALSE) ) )","v":""},null,null,null,null,{"$f":"IF(TRIM(DK45)=\"\", \"\", IF(VLOOKUP(DK45,'Footnotes list'!$D$9:$E$58,2,FALSE)=0,\"\",VLOOKUP(DK45,'Footnotes list'!$D$9:$E$58,2,FALSE) ) )","v":""},null,null,null,null,{"$f":"IF(TRIM(DP45)=\"\", \"\", IF(VLOOKUP(DP45,'Footnotes list'!$D$9:$E$58,2,FALSE)=0,\"\",VLOOKUP(DP45,'Footnotes list'!$D$9:$E$58,2,FALSE) ) )","v":""},null,null,null,null,{"$f":"IF(TRIM(DU45)=\"\", \"\", IF(VLOOKUP(DU45,'Footnotes list'!$D$9:$E$58,2,FALSE)=0,\"\",VLOOKUP(DU45,'Footnotes list'!$D$9:$E$58,2,FALSE) ) )","v":""},null,null,null,null,{"$f":"IF(TRIM(DZ45)=\"\", \"\", IF(VLOOKUP(DZ45,'Footnotes list'!$D$9:$E$58,2,FALSE)=0,\"\",VLOOKUP(DZ45,'Footnotes list'!$D$9:$E$58,2,FALSE) ) )","v":""},null,null,null,null,{"$f":"IF(TRIM(EE45)=\"\", \"\", IF(VLOOKUP(EE45,'Footnotes list'!$D$9:$E$58,2,FALSE)=0,\"\",VLOOKUP(EE45,'Footnotes list'!$D$9:$E$58,2,FALSE) ) )","v":""},null,null,null,null,{"$f":"IF(TRIM(EJ45)=\"\", \"\", IF(VLOOKUP(EJ45,'Footnotes list'!$D$9:$E$58,2,FALSE)=0,\"\",VLOOKUP(EJ45,'Footnotes list'!$D$9:$E$58,2,FALSE) ) )","v":""},null,null,null,null,{"$f":"IF(TRIM(EO45)=\"\", \"\", IF(VLOOKUP(EO45,'Footnotes list'!$D$9:$E$58,2,FALSE)=0,\"\",VLOOKUP(EO45,'Footnotes list'!$D$9:$E$58,2,FALSE) ) )","v":""},null,null,null,null,{"$f":"IF(TRIM(ET45)=\"\", \"\", IF(VLOOKUP(ET45,'Footnotes list'!$D$9:$E$58,2,FALSE)=0,\"\",VLOOKUP(ET45,'Footnotes list'!$D$9:$E$58,2,FALSE) ) )","v":""},null,null,null,null,{"$f":"IF(TRIM(EY45)=\"\", \"\", IF(VLOOKUP(EY45,'Footnotes list'!$D$9:$E$58,2,FALSE)=0,\"\",VLOOKUP(EY45,'Footnotes list'!$D$9:$E$58,2,FALSE) ) )","v":""}]
[null,null,"C26","C_REP","cleaner and resource efficient products",null,null,null,null,null,{"$f":"IF(TRIM(J46)=\"\", \"\", IF(VLOOKUP(J46,'Footnotes list'!$D$9:$E$58,2,FALSE)=0,\"\",VLOOKUP(J46,'Footnotes list'!$D$9:$E$58,2,FALSE) ) )","v":""},null,null,null,null,{"$f":"IF(TRIM(O46)=\"\", \"\", IF(VLOOKUP(O46,'Footnotes list'!$D$9:$E$58,2,FALSE)=0,\"\",VLOOKUP(O46,'Footnotes list'!$D$9:$E$58,2,FALSE) ) )","v":""},null,null,null,null,{"$f":"IF(TRIM(T46)=\"\", \"\", IF(VLOOKUP(T46,'Footnotes list'!$D$9:$E$58,2,FALSE)=0,\"\",VLOOKUP(T46,'Footnotes list'!$D$9:$E$58,2,FALSE) ) )","v":""},null,null,null,null,{"$f":"IF(TRIM(Y46)=\"\", \"\", IF(VLOOKUP(Y46,'Footnotes list'!$D$9:$E$58,2,FALSE)=0,\"\",VLOOKUP(Y46,'Footnotes list'!$D$9:$E$58,2,FALSE) ) )","v":""},null,null,null,null,{"$f":"IF(TRIM(AD46)=\"\", \"\", IF(VLOOKUP(AD46,'Footnotes list'!$D$9:$E$58,2,FALSE)=0,\"\",VLOOKUP(AD46,'Footnotes list'!$D$9:$E$58,2,FALSE) ) )","v":""},null,null,null,null,{"$f":"IF(TRIM(AI46)=\"\", \"\", IF(VLOOKUP(AI46,'Footnotes list'!$D$9:$E$58,2,FALSE)=0,\"\",VLOOKUP(AI46,'Footnotes list'!$D$9:$E$58,2,FALSE) ) )","v":""},null,null,null,null,{"$f":"IF(TRIM(AN46)=\"\", \"\", IF(VLOOKUP(AN46,'Footnotes list'!$D$9:$E$58,2,FALSE)=0,\"\",VLOOKUP(AN46,'Footnotes list'!$D$9:$E$58,2,FALSE) ) )","v":""},null,null,null,null,{"$f":"IF(TRIM(AS46)=\"\", \"\", IF(VLOOKUP(AS46,'Footnotes list'!$D$9:$E$58,2,FALSE)=0,\"\",VLOOKUP(AS46,'Footnotes list'!$D$9:$E$58,2,FALSE) ) )","v":""},null,null,null,null,{"$f":"IF(TRIM(AX46)=\"\", \"\", IF(VLOOKUP(AX46,'Footnotes list'!$D$9:$E$58,2,FALSE)=0,\"\",VLOOKUP(AX46,'Footnotes list'!$D$9:$E$58,2,FALSE) ) )","v":""},null,null,null,null,{"$f":"IF(TRIM(BC46)=\"\", \"\", IF(VLOOKUP(BC46,'Footnotes list'!$D$9:$E$58,2,FALSE)=0,\"\",VLOOKUP(BC46,'Footnotes list'!$D$9:$E$58,2,FALSE) ) )","v":""},null,null,null,null,{"$f":"IF(TRIM(BH46)=\"\", \"\", IF(VLOOKUP(BH46,'Footnotes list'!$D$9:$E$58,2,FALSE)=0,\"\",VLOOKUP(BH46,'Footnotes list'!$D$9:$E$58,2,FALSE) ) )","v":""},null,null,null,null,{"$f":"IF(TRIM(BM46)=\"\", \"\", IF(VLOOKUP(BM46,'Footnotes list'!$D$9:$E$58,2,FALSE)=0,\"\",VLOOKUP(BM46,'Footnotes list'!$D$9:$E$58,2,FALSE) ) )","v":""},null,null,null,null,{"$f":"IF(TRIM(BR46)=\"\", \"\", IF(VLOOKUP(BR46,'Footnotes list'!$D$9:$E$58,2,FALSE)=0,\"\",VLOOKUP(BR46,'Footnotes list'!$D$9:$E$58,2,FALSE) ) )","v":""},null,null,null,null,{"$f":"IF(TRIM(BW46)=\"\", \"\", IF(VLOOKUP(BW46,'Footnotes list'!$D$9:$E$58,2,FALSE)=0,\"\",VLOOKUP(BW46,'Footnotes list'!$D$9:$E$58,2,FALSE) ) )","v":""},null,null,null,null,{"$f":"IF(TRIM(CB46)=\"\", \"\", IF(VLOOKUP(CB46,'Footnotes list'!$D$9:$E$58,2,FALSE)=0,\"\",VLOOKUP(CB46,'Footnotes list'!$D$9:$E$58,2,FALSE) ) )","v":""},null,null,null,null,{"$f":"IF(TRIM(CG46)=\"\", \"\", IF(VLOOKUP(CG46,'Footnotes list'!$D$9:$E$58,2,FALSE)=0,\"\",VLOOKUP(CG46,'Footnotes list'!$D$9:$E$58,2,FALSE) ) )","v":""},null,null,null,null,{"$f":"IF(TRIM(CL46)=\"\", \"\", IF(VLOOKUP(CL46,'Footnotes list'!$D$9:$E$58,2,FALSE)=0,\"\",VLOOKUP(CL46,'Footnotes list'!$D$9:$E$58,2,FALSE) ) )","v":""},null,null,null,null,{"$f":"IF(TRIM(CQ46)=\"\", \"\", IF(VLOOKUP(CQ46,'Footnotes list'!$D$9:$E$58,2,FALSE)=0,\"\",VLOOKUP(CQ46,'Footnotes list'!$D$9:$E$58,2,FALSE) ) )","v":""},null,null,null,null,{"$f":"IF(TRIM(CV46)=\"\", \"\", IF(VLOOKUP(CV46,'Footnotes list'!$D$9:$E$58,2,FALSE)=0,\"\",VLOOKUP(CV46,'Footnotes list'!$D$9:$E$58,2,FALSE) ) )","v":""},null,null,null,null,{"$f":"IF(TRIM(DA46)=\"\", \"\", IF(VLOOKUP(DA46,'Footnotes list'!$D$9:$E$58,2,FALSE)=0,\"\",VLOOKUP(DA46,'Footnotes list'!$D$9:$E$58,2,FALSE) ) )","v":""},null,null,null,null,{"$f":"IF(TRIM(DF46)=\"\", \"\", IF(VLOOKUP(DF46,'Footnotes list'!$D$9:$E$58,2,FALSE)=0,\"\",VLOOKUP(DF46,'Footnotes list'!$D$9:$E$58,2,FALSE) ) )","v":""},null,null,null,null,{"$f":"IF(TRIM(DK46)=\"\", \"\", IF(VLOOKUP(DK46,'Footnotes list'!$D$9:$E$58,2,FALSE)=0,\"\",VLOOKUP(DK46,'Footnotes list'!$D$9:$E$58,2,FALSE) ) )","v":""},null,null,null,null,{"$f":"IF(TRIM(DP46)=\"\", \"\", IF(VLOOKUP(DP46,'Footnotes list'!$D$9:$E$58,2,FALSE)=0,\"\",VLOOKUP(DP46,'Footnotes list'!$D$9:$E$58,2,FALSE) ) )","v":""},null,null,null,null,{"$f":"IF(TRIM(DU46)=\"\", \"\", IF(VLOOKUP(DU46,'Footnotes list'!$D$9:$E$58,2,FALSE)=0,\"\",VLOOKUP(DU46,'Footnotes list'!$D$9:$E$58,2,FALSE) ) )","v":""},null,null,null,null,{"$f":"IF(TRIM(DZ46)=\"\", \"\", IF(VLOOKUP(DZ46,'Footnotes list'!$D$9:$E$58,2,FALSE)=0,\"\",VLOOKUP(DZ46,'Footnotes list'!$D$9:$E$58,2,FALSE) ) )","v":""},null,null,null,null,{"$f":"IF(TRIM(EE46)=\"\", \"\", IF(VLOOKUP(EE46,'Footnotes list'!$D$9:$E$58,2,FALSE)=0,\"\",VLOOKUP(EE46,'Footnotes list'!$D$9:$E$58,2,FALSE) ) )","v":""},null,null,null,null,{"$f":"IF(TRIM(EJ46)=\"\", \"\", IF(VLOOKUP(EJ46,'Footnotes list'!$D$9:$E$58,2,FALSE)=0,\"\",VLOOKUP(EJ46,'Footnotes list'!$D$9:$E$58,2,FALSE) ) )","v":""},null,null,null,null,{"$f":"IF(TRIM(EO46)=\"\", \"\", IF(VLOOKUP(EO46,'Footnotes list'!$D$9:$E$58,2,FALSE)=0,\"\",VLOOKUP(EO46,'Footnotes list'!$D$9:$E$58,2,FALSE) ) )","v":""},null,null,null,null,{"$f":"IF(TRIM(ET46)=\"\", \"\", IF(VLOOKUP(ET46,'Footnotes list'!$D$9:$E$58,2,FALSE)=0,\"\",VLOOKUP(ET46,'Footnotes list'!$D$9:$E$58,2,FALSE) ) )","v":""},null,null,null,null,{"$f":"IF(TRIM(EY46)=\"\", \"\", IF(VLOOKUP(EY46,'Footnotes list'!$D$9:$E$58,2,FALSE)=0,\"\",VLOOKUP(EY46,'Footnotes list'!$D$9:$E$58,2,FALSE) ) )","v":""}]
[null,null,"C27","TOT_EGSS","Total C27 - Manufacture of electrical equipment, including:",null,null,null,null,null,{"$f":"IF(TRIM(J47)=\"\", \"\", IF(VLOOKUP(J47,'Footnotes list'!$D$9:$E$58,2,FALSE)=0,\"\",VLOOKUP(J47,'Footnotes list'!$D$9:$E$58,2,FALSE) ) )","v":""},null,null,null,null,{"$f":"IF(TRIM(O47)=\"\", \"\", IF(VLOOKUP(O47,'Footnotes list'!$D$9:$E$58,2,FALSE)=0,\"\",VLOOKUP(O47,'Footnotes list'!$D$9:$E$58,2,FALSE) ) )","v":""},null,null,null,null,{"$f":"IF(TRIM(T47)=\"\", \"\", IF(VLOOKUP(T47,'Footnotes list'!$D$9:$E$58,2,FALSE)=0,\"\",VLOOKUP(T47,'Footnotes list'!$D$9:$E$58,2,FALSE) ) )","v":""},null,null,null,null,{"$f":"IF(TRIM(Y47)=\"\", \"\", IF(VLOOKUP(Y47,'Footnotes list'!$D$9:$E$58,2,FALSE)=0,\"\",VLOOKUP(Y47,'Footnotes list'!$D$9:$E$58,2,FALSE) ) )","v":""},null,null,null,null,{"$f":"IF(TRIM(AD47)=\"\", \"\", IF(VLOOKUP(AD47,'Footnotes list'!$D$9:$E$58,2,FALSE)=0,\"\",VLOOKUP(AD47,'Footnotes list'!$D$9:$E$58,2,FALSE) ) )","v":""},null,null,null,null,{"$f":"IF(TRIM(AI47)=\"\", \"\", IF(VLOOKUP(AI47,'Footnotes list'!$D$9:$E$58,2,FALSE)=0,\"\",VLOOKUP(AI47,'Footnotes list'!$D$9:$E$58,2,FALSE) ) )","v":""},null,null,null,null,{"$f":"IF(TRIM(AN47)=\"\", \"\", IF(VLOOKUP(AN47,'Footnotes list'!$D$9:$E$58,2,FALSE)=0,\"\",VLOOKUP(AN47,'Footnotes list'!$D$9:$E$58,2,FALSE) ) )","v":""},null,null,null,null,{"$f":"IF(TRIM(AS47)=\"\", \"\", IF(VLOOKUP(AS47,'Footnotes list'!$D$9:$E$58,2,FALSE)=0,\"\",VLOOKUP(AS47,'Footnotes list'!$D$9:$E$58,2,FALSE) ) )","v":""},null,null,null,null,{"$f":"IF(TRIM(AX47)=\"\", \"\", IF(VLOOKUP(AX47,'Footnotes list'!$D$9:$E$58,2,FALSE)=0,\"\",VLOOKUP(AX47,'Footnotes list'!$D$9:$E$58,2,FALSE) ) )","v":""},null,null,null,null,{"$f":"IF(TRIM(BC47)=\"\", \"\", IF(VLOOKUP(BC47,'Footnotes list'!$D$9:$E$58,2,FALSE)=0,\"\",VLOOKUP(BC47,'Footnotes list'!$D$9:$E$58,2,FALSE) ) )","v":""},null,null,null,null,{"$f":"IF(TRIM(BH47)=\"\", \"\", IF(VLOOKUP(BH47,'Footnotes list'!$D$9:$E$58,2,FALSE)=0,\"\",VLOOKUP(BH47,'Footnotes list'!$D$9:$E$58,2,FALSE) ) )","v":""},null,null,null,null,{"$f":"IF(TRIM(BM47)=\"\", \"\", IF(VLOOKUP(BM47,'Footnotes list'!$D$9:$E$58,2,FALSE)=0,\"\",VLOOKUP(BM47,'Footnotes list'!$D$9:$E$58,2,FALSE) ) )","v":""},null,null,null,null,{"$f":"IF(TRIM(BR47)=\"\", \"\", IF(VLOOKUP(BR47,'Footnotes list'!$D$9:$E$58,2,FALSE)=0,\"\",VLOOKUP(BR47,'Footnotes list'!$D$9:$E$58,2,FALSE) ) )","v":""},null,null,null,null,{"$f":"IF(TRIM(BW47)=\"\", \"\", IF(VLOOKUP(BW47,'Footnotes list'!$D$9:$E$58,2,FALSE)=0,\"\",VLOOKUP(BW47,'Footnotes list'!$D$9:$E$58,2,FALSE) ) )","v":""},null,null,null,null,{"$f":"IF(TRIM(CB47)=\"\", \"\", IF(VLOOKUP(CB47,'Footnotes list'!$D$9:$E$58,2,FALSE)=0,\"\",VLOOKUP(CB47,'Footnotes list'!$D$9:$E$58,2,FALSE) ) )","v":""},null,null,null,null,{"$f":"IF(TRIM(CG47)=\"\", \"\", IF(VLOOKUP(CG47,'Footnotes list'!$D$9:$E$58,2,FALSE)=0,\"\",VLOOKUP(CG47,'Footnotes list'!$D$9:$E$58,2,FALSE) ) )","v":""},null,null,null,null,{"$f":"IF(TRIM(CL47)=\"\", \"\", IF(VLOOKUP(CL47,'Footnotes list'!$D$9:$E$58,2,FALSE)=0,\"\",VLOOKUP(CL47,'Footnotes list'!$D$9:$E$58,2,FALSE) ) )","v":""},null,null,null,null,{"$f":"IF(TRIM(CQ47)=\"\", \"\", IF(VLOOKUP(CQ47,'Footnotes list'!$D$9:$E$58,2,FALSE)=0,\"\",VLOOKUP(CQ47,'Footnotes list'!$D$9:$E$58,2,FALSE) ) )","v":""},null,null,null,null,{"$f":"IF(TRIM(CV47)=\"\", \"\", IF(VLOOKUP(CV47,'Footnotes list'!$D$9:$E$58,2,FALSE)=0,\"\",VLOOKUP(CV47,'Footnotes list'!$D$9:$E$58,2,FALSE) ) )","v":""},null,null,null,null,{"$f":"IF(TRIM(DA47)=\"\", \"\", IF(VLOOKUP(DA47,'Footnotes list'!$D$9:$E$58,2,FALSE)=0,\"\",VLOOKUP(DA47,'Footnotes list'!$D$9:$E$58,2,FALSE) ) )","v":""},null,null,null,null,{"$f":"IF(TRIM(DF47)=\"\", \"\", IF(VLOOKUP(DF47,'Footnotes list'!$D$9:$E$58,2,FALSE)=0,\"\",VLOOKUP(DF47,'Footnotes list'!$D$9:$E$58,2,FALSE) ) )","v":""},null,null,null,null,{"$f":"IF(TRIM(DK47)=\"\", \"\", IF(VLOOKUP(DK47,'Footnotes list'!$D$9:$E$58,2,FALSE)=0,\"\",VLOOKUP(DK47,'Footnotes list'!$D$9:$E$58,2,FALSE) ) )","v":""},null,null,null,null,{"$f":"IF(TRIM(DP47)=\"\", \"\", IF(VLOOKUP(DP47,'Footnotes list'!$D$9:$E$58,2,FALSE)=0,\"\",VLOOKUP(DP47,'Footnotes list'!$D$9:$E$58,2,FALSE) ) )","v":""},null,null,null,null,{"$f":"IF(TRIM(DU47)=\"\", \"\", IF(VLOOKUP(DU47,'Footnotes list'!$D$9:$E$58,2,FALSE)=0,\"\",VLOOKUP(DU47,'Footnotes list'!$D$9:$E$58,2,FALSE) ) )","v":""},null,null,null,null,{"$f":"IF(TRIM(DZ47)=\"\", \"\", IF(VLOOKUP(DZ47,'Footnotes list'!$D$9:$E$58,2,FALSE)=0,\"\",VLOOKUP(DZ47,'Footnotes list'!$D$9:$E$58,2,FALSE) ) )","v":""},null,null,null,null,{"$f":"IF(TRIM(EE47)=\"\", \"\", IF(VLOOKUP(EE47,'Footnotes list'!$D$9:$E$58,2,FALSE)=0,\"\",VLOOKUP(EE47,'Footnotes list'!$D$9:$E$58,2,FALSE) ) )","v":""},null,null,null,null,{"$f":"IF(TRIM(EJ47)=\"\", \"\", IF(VLOOKUP(EJ47,'Footnotes list'!$D$9:$E$58,2,FALSE)=0,\"\",VLOOKUP(EJ47,'Footnotes list'!$D$9:$E$58,2,FALSE) ) )","v":""},null,null,null,null,{"$f":"IF(TRIM(EO47)=\"\", \"\", IF(VLOOKUP(EO47,'Footnotes list'!$D$9:$E$58,2,FALSE)=0,\"\",VLOOKUP(EO47,'Footnotes list'!$D$9:$E$58,2,FALSE) ) )","v":""},null,null,null,null,{"$f":"IF(TRIM(ET47)=\"\", \"\", IF(VLOOKUP(ET47,'Footnotes list'!$D$9:$E$58,2,FALSE)=0,\"\",VLOOKUP(ET47,'Footnotes list'!$D$9:$E$58,2,FALSE) ) )","v":""},null,null,null,null,{"$f":"IF(TRIM(EY47)=\"\", \"\", IF(VLOOKUP(EY47,'Footnotes list'!$D$9:$E$58,2,FALSE)=0,\"\",VLOOKUP(EY47,'Footnotes list'!$D$9:$E$58,2,FALSE) ) )","v":""}]
[null,null,"C27","ES_CS","environmental specific services",null,null,null,null,null,{"$f":"IF(TRIM(J48)=\"\", \"\", IF(VLOOKUP(J48,'Footnotes list'!$D$9:$E$58,2,FALSE)=0,\"\",VLOOKUP(J48,'Footnotes list'!$D$9:$E$58,2,FALSE) ) )","v":""},null,null,null,null,{"$f":"IF(TRIM(O48)=\"\", \"\", IF(VLOOKUP(O48,'Footnotes list'!$D$9:$E$58,2,FALSE)=0,\"\",VLOOKUP(O48,'Footnotes list'!$D$9:$E$58,2,FALSE) ) )","v":""},null,null,null,null,{"$f":"IF(TRIM(T48)=\"\", \"\", IF(VLOOKUP(T48,'Footnotes list'!$D$9:$E$58,2,FALSE)=0,\"\",VLOOKUP(T48,'Footnotes list'!$D$9:$E$58,2,FALSE) ) )","v":""},null,null,null,null,{"$f":"IF(TRIM(Y48)=\"\", \"\", IF(VLOOKUP(Y48,'Footnotes list'!$D$9:$E$58,2,FALSE)=0,\"\",VLOOKUP(Y48,'Footnotes list'!$D$9:$E$58,2,FALSE) ) )","v":""},null,null,null,null,{"$f":"IF(TRIM(AD48)=\"\", \"\", IF(VLOOKUP(AD48,'Footnotes list'!$D$9:$E$58,2,FALSE)=0,\"\",VLOOKUP(AD48,'Footnotes list'!$D$9:$E$58,2,FALSE) ) )","v":""},null,null,null,null,{"$f":"IF(TRIM(AI48)=\"\", \"\", IF(VLOOKUP(AI48,'Footnotes list'!$D$9:$E$58,2,FALSE)=0,\"\",VLOOKUP(AI48,'Footnotes list'!$D$9:$E$58,2,FALSE) ) )","v":""},null,null,null,null,{"$f":"IF(TRIM(AN48)=\"\", \"\", IF(VLOOKUP(AN48,'Footnotes list'!$D$9:$E$58,2,FALSE)=0,\"\",VLOOKUP(AN48,'Footnotes list'!$D$9:$E$58,2,FALSE) ) )","v":""},null,null,null,null,{"$f":"IF(TRIM(AS48)=\"\", \"\", IF(VLOOKUP(AS48,'Footnotes list'!$D$9:$E$58,2,FALSE)=0,\"\",VLOOKUP(AS48,'Footnotes list'!$D$9:$E$58,2,FALSE) ) )","v":""},null,null,null,null,{"$f":"IF(TRIM(AX48)=\"\", \"\", IF(VLOOKUP(AX48,'Footnotes list'!$D$9:$E$58,2,FALSE)=0,\"\",VLOOKUP(AX48,'Footnotes list'!$D$9:$E$58,2,FALSE) ) )","v":""},null,null,null,null,{"$f":"IF(TRIM(BC48)=\"\", \"\", IF(VLOOKUP(BC48,'Footnotes list'!$D$9:$E$58,2,FALSE)=0,\"\",VLOOKUP(BC48,'Footnotes list'!$D$9:$E$58,2,FALSE) ) )","v":""},null,null,null,null,{"$f":"IF(TRIM(BH48)=\"\", \"\", IF(VLOOKUP(BH48,'Footnotes list'!$D$9:$E$58,2,FALSE)=0,\"\",VLOOKUP(BH48,'Footnotes list'!$D$9:$E$58,2,FALSE) ) )","v":""},null,null,null,null,{"$f":"IF(TRIM(BM48)=\"\", \"\", IF(VLOOKUP(BM48,'Footnotes list'!$D$9:$E$58,2,FALSE)=0,\"\",VLOOKUP(BM48,'Footnotes list'!$D$9:$E$58,2,FALSE) ) )","v":""},null,null,null,null,{"$f":"IF(TRIM(BR48)=\"\", \"\", IF(VLOOKUP(BR48,'Footnotes list'!$D$9:$E$58,2,FALSE)=0,\"\",VLOOKUP(BR48,'Footnotes list'!$D$9:$E$58,2,FALSE) ) )","v":""},null,null,null,null,{"$f":"IF(TRIM(BW48)=\"\", \"\", IF(VLOOKUP(BW48,'Footnotes list'!$D$9:$E$58,2,FALSE)=0,\"\",VLOOKUP(BW48,'Footnotes list'!$D$9:$E$58,2,FALSE) ) )","v":""},null,null,null,null,{"$f":"IF(TRIM(CB48)=\"\", \"\", IF(VLOOKUP(CB48,'Footnotes list'!$D$9:$E$58,2,FALSE)=0,\"\",VLOOKUP(CB48,'Footnotes list'!$D$9:$E$58,2,FALSE) ) )","v":""},null,null,null,null,{"$f":"IF(TRIM(CG48)=\"\", \"\", IF(VLOOKUP(CG48,'Footnotes list'!$D$9:$E$58,2,FALSE)=0,\"\",VLOOKUP(CG48,'Footnotes list'!$D$9:$E$58,2,FALSE) ) )","v":""},null,null,null,null,{"$f":"IF(TRIM(CL48)=\"\", \"\", IF(VLOOKUP(CL48,'Footnotes list'!$D$9:$E$58,2,FALSE)=0,\"\",VLOOKUP(CL48,'Footnotes list'!$D$9:$E$58,2,FALSE) ) )","v":""},null,null,null,null,{"$f":"IF(TRIM(CQ48)=\"\", \"\", IF(VLOOKUP(CQ48,'Footnotes list'!$D$9:$E$58,2,FALSE)=0,\"\",VLOOKUP(CQ48,'Footnotes list'!$D$9:$E$58,2,FALSE) ) )","v":""},null,null,null,null,{"$f":"IF(TRIM(CV48)=\"\", \"\", IF(VLOOKUP(CV48,'Footnotes list'!$D$9:$E$58,2,FALSE)=0,\"\",VLOOKUP(CV48,'Footnotes list'!$D$9:$E$58,2,FALSE) ) )","v":""},null,null,null,null,{"$f":"IF(TRIM(DA48)=\"\", \"\", IF(VLOOKUP(DA48,'Footnotes list'!$D$9:$E$58,2,FALSE)=0,\"\",VLOOKUP(DA48,'Footnotes list'!$D$9:$E$58,2,FALSE) ) )","v":""},null,null,null,null,{"$f":"IF(TRIM(DF48)=\"\", \"\", IF(VLOOKUP(DF48,'Footnotes list'!$D$9:$E$58,2,FALSE)=0,\"\",VLOOKUP(DF48,'Footnotes list'!$D$9:$E$58,2,FALSE) ) )","v":""},null,null,null,null,{"$f":"IF(TRIM(DK48)=\"\", \"\", IF(VLOOKUP(DK48,'Footnotes list'!$D$9:$E$58,2,FALSE)=0,\"\",VLOOKUP(DK48,'Footnotes list'!$D$9:$E$58,2,FALSE) ) )","v":""},null,null,null,null,{"$f":"IF(TRIM(DP48)=\"\", \"\", IF(VLOOKUP(DP48,'Footnotes list'!$D$9:$E$58,2,FALSE)=0,\"\",VLOOKUP(DP48,'Footnotes list'!$D$9:$E$58,2,FALSE) ) )","v":""},null,null,null,null,{"$f":"IF(TRIM(DU48)=\"\", \"\", IF(VLOOKUP(DU48,'Footnotes list'!$D$9:$E$58,2,FALSE)=0,\"\",VLOOKUP(DU48,'Footnotes list'!$D$9:$E$58,2,FALSE) ) )","v":""},null,null,null,null,{"$f":"IF(TRIM(DZ48)=\"\", \"\", IF(VLOOKUP(DZ48,'Footnotes list'!$D$9:$E$58,2,FALSE)=0,\"\",VLOOKUP(DZ48,'Footnotes list'!$D$9:$E$58,2,FALSE) ) )","v":""},null,null,null,null,{"$f":"IF(TRIM(EE48)=\"\", \"\", IF(VLOOKUP(EE48,'Footnotes list'!$D$9:$E$58,2,FALSE)=0,\"\",VLOOKUP(EE48,'Footnotes list'!$D$9:$E$58,2,FALSE) ) )","v":""},null,null,null,null,{"$f":"IF(TRIM(EJ48)=\"\", \"\", IF(VLOOKUP(EJ48,'Footnotes list'!$D$9:$E$58,2,FALSE)=0,\"\",VLOOKUP(EJ48,'Footnotes list'!$D$9:$E$58,2,FALSE) ) )","v":""},null,null,null,null,{"$f":"IF(TRIM(EO48)=\"\", \"\", IF(VLOOKUP(EO48,'Footnotes list'!$D$9:$E$58,2,FALSE)=0,\"\",VLOOKUP(EO48,'Footnotes list'!$D$9:$E$58,2,FALSE) ) )","v":""},null,null,null,null,{"$f":"IF(TRIM(ET48)=\"\", \"\", IF(VLOOKUP(ET48,'Footnotes list'!$D$9:$E$58,2,FALSE)=0,\"\",VLOOKUP(ET48,'Footnotes list'!$D$9:$E$58,2,FALSE) ) )","v":""},null,null,null,null,{"$f":"IF(TRIM(EY48)=\"\", \"\", IF(VLOOKUP(EY48,'Footnotes list'!$D$9:$E$58,2,FALSE)=0,\"\",VLOOKUP(EY48,'Footnotes list'!$D$9:$E$58,2,FALSE) ) )","v":""}]
[null,null,"C27","C_REP","cleaner and resource efficient products",null,null,null,null,null,{"$f":"IF(TRIM(J49)=\"\", \"\", IF(VLOOKUP(J49,'Footnotes list'!$D$9:$E$58,2,FALSE)=0,\"\",VLOOKUP(J49,'Footnotes list'!$D$9:$E$58,2,FALSE) ) )","v":""},null,null,null,null,{"$f":"IF(TRIM(O49)=\"\", \"\", IF(VLOOKUP(O49,'Footnotes list'!$D$9:$E$58,2,FALSE)=0,\"\",VLOOKUP(O49,'Footnotes list'!$D$9:$E$58,2,FALSE) ) )","v":""},null,null,null,null,{"$f":"IF(TRIM(T49)=\"\", \"\", IF(VLOOKUP(T49,'Footnotes list'!$D$9:$E$58,2,FALSE)=0,\"\",VLOOKUP(T49,'Footnotes list'!$D$9:$E$58,2,FALSE) ) )","v":""},null,null,null,null,{"$f":"IF(TRIM(Y49)=\"\", \"\", IF(VLOOKUP(Y49,'Footnotes list'!$D$9:$E$58,2,FALSE)=0,\"\",VLOOKUP(Y49,'Footnotes list'!$D$9:$E$58,2,FALSE) ) )","v":""},null,null,null,null,{"$f":"IF(TRIM(AD49)=\"\", \"\", IF(VLOOKUP(AD49,'Footnotes list'!$D$9:$E$58,2,FALSE)=0,\"\",VLOOKUP(AD49,'Footnotes list'!$D$9:$E$58,2,FALSE) ) )","v":""},null,null,null,null,{"$f":"IF(TRIM(AI49)=\"\", \"\", IF(VLOOKUP(AI49,'Footnotes list'!$D$9:$E$58,2,FALSE)=0,\"\",VLOOKUP(AI49,'Footnotes list'!$D$9:$E$58,2,FALSE) ) )","v":""},null,null,null,null,{"$f":"IF(TRIM(AN49)=\"\", \"\", IF(VLOOKUP(AN49,'Footnotes list'!$D$9:$E$58,2,FALSE)=0,\"\",VLOOKUP(AN49,'Footnotes list'!$D$9:$E$58,2,FALSE) ) )","v":""},null,null,null,null,{"$f":"IF(TRIM(AS49)=\"\", \"\", IF(VLOOKUP(AS49,'Footnotes list'!$D$9:$E$58,2,FALSE)=0,\"\",VLOOKUP(AS49,'Footnotes list'!$D$9:$E$58,2,FALSE) ) )","v":""},null,null,null,null,{"$f":"IF(TRIM(AX49)=\"\", \"\", IF(VLOOKUP(AX49,'Footnotes list'!$D$9:$E$58,2,FALSE)=0,\"\",VLOOKUP(AX49,'Footnotes list'!$D$9:$E$58,2,FALSE) ) )","v":""},null,null,null,null,{"$f":"IF(TRIM(BC49)=\"\", \"\", IF(VLOOKUP(BC49,'Footnotes list'!$D$9:$E$58,2,FALSE)=0,\"\",VLOOKUP(BC49,'Footnotes list'!$D$9:$E$58,2,FALSE) ) )","v":""},null,null,null,null,{"$f":"IF(TRIM(BH49)=\"\", \"\", IF(VLOOKUP(BH49,'Footnotes list'!$D$9:$E$58,2,FALSE)=0,\"\",VLOOKUP(BH49,'Footnotes list'!$D$9:$E$58,2,FALSE) ) )","v":""},null,null,null,null,{"$f":"IF(TRIM(BM49)=\"\", \"\", IF(VLOOKUP(BM49,'Footnotes list'!$D$9:$E$58,2,FALSE)=0,\"\",VLOOKUP(BM49,'Footnotes list'!$D$9:$E$58,2,FALSE) ) )","v":""},null,null,null,null,{"$f":"IF(TRIM(BR49)=\"\", \"\", IF(VLOOKUP(BR49,'Footnotes list'!$D$9:$E$58,2,FALSE)=0,\"\",VLOOKUP(BR49,'Footnotes list'!$D$9:$E$58,2,FALSE) ) )","v":""},null,null,null,null,{"$f":"IF(TRIM(BW49)=\"\", \"\", IF(VLOOKUP(BW49,'Footnotes list'!$D$9:$E$58,2,FALSE)=0,\"\",VLOOKUP(BW49,'Footnotes list'!$D$9:$E$58,2,FALSE) ) )","v":""},null,null,null,null,{"$f":"IF(TRIM(CB49)=\"\", \"\", IF(VLOOKUP(CB49,'Footnotes list'!$D$9:$E$58,2,FALSE)=0,\"\",VLOOKUP(CB49,'Footnotes list'!$D$9:$E$58,2,FALSE) ) )","v":""},null,null,null,null,{"$f":"IF(TRIM(CG49)=\"\", \"\", IF(VLOOKUP(CG49,'Footnotes list'!$D$9:$E$58,2,FALSE)=0,\"\",VLOOKUP(CG49,'Footnotes list'!$D$9:$E$58,2,FALSE) ) )","v":""},null,null,null,null,{"$f":"IF(TRIM(CL49)=\"\", \"\", IF(VLOOKUP(CL49,'Footnotes list'!$D$9:$E$58,2,FALSE)=0,\"\",VLOOKUP(CL49,'Footnotes list'!$D$9:$E$58,2,FALSE) ) )","v":""},null,null,null,null,{"$f":"IF(TRIM(CQ49)=\"\", \"\", IF(VLOOKUP(CQ49,'Footnotes list'!$D$9:$E$58,2,FALSE)=0,\"\",VLOOKUP(CQ49,'Footnotes list'!$D$9:$E$58,2,FALSE) ) )","v":""},null,null,null,null,{"$f":"IF(TRIM(CV49)=\"\", \"\", IF(VLOOKUP(CV49,'Footnotes list'!$D$9:$E$58,2,FALSE)=0,\"\",VLOOKUP(CV49,'Footnotes list'!$D$9:$E$58,2,FALSE) ) )","v":""},null,null,null,null,{"$f":"IF(TRIM(DA49)=\"\", \"\", IF(VLOOKUP(DA49,'Footnotes list'!$D$9:$E$58,2,FALSE)=0,\"\",VLOOKUP(DA49,'Footnotes list'!$D$9:$E$58,2,FALSE) ) )","v":""},null,null,null,null,{"$f":"IF(TRIM(DF49)=\"\", \"\", IF(VLOOKUP(DF49,'Footnotes list'!$D$9:$E$58,2,FALSE)=0,\"\",VLOOKUP(DF49,'Footnotes list'!$D$9:$E$58,2,FALSE) ) )","v":""},null,null,null,null,{"$f":"IF(TRIM(DK49)=\"\", \"\", IF(VLOOKUP(DK49,'Footnotes list'!$D$9:$E$58,2,FALSE)=0,\"\",VLOOKUP(DK49,'Footnotes list'!$D$9:$E$58,2,FALSE) ) )","v":""},null,null,null,null,{"$f":"IF(TRIM(DP49)=\"\", \"\", IF(VLOOKUP(DP49,'Footnotes list'!$D$9:$E$58,2,FALSE)=0,\"\",VLOOKUP(DP49,'Footnotes list'!$D$9:$E$58,2,FALSE) ) )","v":""},null,null,null,null,{"$f":"IF(TRIM(DU49)=\"\", \"\", IF(VLOOKUP(DU49,'Footnotes list'!$D$9:$E$58,2,FALSE)=0,\"\",VLOOKUP(DU49,'Footnotes list'!$D$9:$E$58,2,FALSE) ) )","v":""},null,null,null,null,{"$f":"IF(TRIM(DZ49)=\"\", \"\", IF(VLOOKUP(DZ49,'Footnotes list'!$D$9:$E$58,2,FALSE)=0,\"\",VLOOKUP(DZ49,'Footnotes list'!$D$9:$E$58,2,FALSE) ) )","v":""},null,null,null,null,{"$f":"IF(TRIM(EE49)=\"\", \"\", IF(VLOOKUP(EE49,'Footnotes list'!$D$9:$E$58,2,FALSE)=0,\"\",VLOOKUP(EE49,'Footnotes list'!$D$9:$E$58,2,FALSE) ) )","v":""},null,null,null,null,{"$f":"IF(TRIM(EJ49)=\"\", \"\", IF(VLOOKUP(EJ49,'Footnotes list'!$D$9:$E$58,2,FALSE)=0,\"\",VLOOKUP(EJ49,'Footnotes list'!$D$9:$E$58,2,FALSE) ) )","v":""},null,null,null,null,{"$f":"IF(TRIM(EO49)=\"\", \"\", IF(VLOOKUP(EO49,'Footnotes list'!$D$9:$E$58,2,FALSE)=0,\"\",VLOOKUP(EO49,'Footnotes list'!$D$9:$E$58,2,FALSE) ) )","v":""},null,null,null,null,{"$f":"IF(TRIM(ET49)=\"\", \"\", IF(VLOOKUP(ET49,'Footnotes list'!$D$9:$E$58,2,FALSE)=0,\"\",VLOOKUP(ET49,'Footnotes list'!$D$9:$E$58,2,FALSE) ) )","v":""},null,null,null,null,{"$f":"IF(TRIM(EY49)=\"\", \"\", IF(VLOOKUP(EY49,'Footnotes list'!$D$9:$E$58,2,FALSE)=0,\"\",VLOOKUP(EY49,'Footnotes list'!$D$9:$E$58,2,FALSE) ) )","v":""}]
[null,null,"C28","TOT_EGSS","Total C28 - Manufacture of machinery and equipment n.e.c., including:",null,null,null,null,null,{"$f":"IF(TRIM(J50)=\"\", \"\", IF(VLOOKUP(J50,'Footnotes list'!$D$9:$E$58,2,FALSE)=0,\"\",VLOOKUP(J50,'Footnotes list'!$D$9:$E$58,2,FALSE) ) )","v":""},null,null,null,null,{"$f":"IF(TRIM(O50)=\"\", \"\", IF(VLOOKUP(O50,'Footnotes list'!$D$9:$E$58,2,FALSE)=0,\"\",VLOOKUP(O50,'Footnotes list'!$D$9:$E$58,2,FALSE) ) )","v":""},null,null,null,null,{"$f":"IF(TRIM(T50)=\"\", \"\", IF(VLOOKUP(T50,'Footnotes list'!$D$9:$E$58,2,FALSE)=0,\"\",VLOOKUP(T50,'Footnotes list'!$D$9:$E$58,2,FALSE) ) )","v":""},null,null,null,null,{"$f":"IF(TRIM(Y50)=\"\", \"\", IF(VLOOKUP(Y50,'Footnotes list'!$D$9:$E$58,2,FALSE)=0,\"\",VLOOKUP(Y50,'Footnotes list'!$D$9:$E$58,2,FALSE) ) )","v":""},null,null,null,null,{"$f":"IF(TRIM(AD50)=\"\", \"\", IF(VLOOKUP(AD50,'Footnotes list'!$D$9:$E$58,2,FALSE)=0,\"\",VLOOKUP(AD50,'Footnotes list'!$D$9:$E$58,2,FALSE) ) )","v":""},null,null,null,null,{"$f":"IF(TRIM(AI50)=\"\", \"\", IF(VLOOKUP(AI50,'Footnotes list'!$D$9:$E$58,2,FALSE)=0,\"\",VLOOKUP(AI50,'Footnotes list'!$D$9:$E$58,2,FALSE) ) )","v":""},null,null,null,null,{"$f":"IF(TRIM(AN50)=\"\", \"\", IF(VLOOKUP(AN50,'Footnotes list'!$D$9:$E$58,2,FALSE)=0,\"\",VLOOKUP(AN50,'Footnotes list'!$D$9:$E$58,2,FALSE) ) )","v":""},null,null,null,null,{"$f":"IF(TRIM(AS50)=\"\", \"\", IF(VLOOKUP(AS50,'Footnotes list'!$D$9:$E$58,2,FALSE)=0,\"\",VLOOKUP(AS50,'Footnotes list'!$D$9:$E$58,2,FALSE) ) )","v":""},null,null,null,null,{"$f":"IF(TRIM(AX50)=\"\", \"\", IF(VLOOKUP(AX50,'Footnotes list'!$D$9:$E$58,2,FALSE)=0,\"\",VLOOKUP(AX50,'Footnotes list'!$D$9:$E$58,2,FALSE) ) )","v":""},null,null,null,null,{"$f":"IF(TRIM(BC50)=\"\", \"\", IF(VLOOKUP(BC50,'Footnotes list'!$D$9:$E$58,2,FALSE)=0,\"\",VLOOKUP(BC50,'Footnotes list'!$D$9:$E$58,2,FALSE) ) )","v":""},null,null,null,null,{"$f":"IF(TRIM(BH50)=\"\", \"\", IF(VLOOKUP(BH50,'Footnotes list'!$D$9:$E$58,2,FALSE)=0,\"\",VLOOKUP(BH50,'Footnotes list'!$D$9:$E$58,2,FALSE) ) )","v":""},null,null,null,null,{"$f":"IF(TRIM(BM50)=\"\", \"\", IF(VLOOKUP(BM50,'Footnotes list'!$D$9:$E$58,2,FALSE)=0,\"\",VLOOKUP(BM50,'Footnotes list'!$D$9:$E$58,2,FALSE) ) )","v":""},null,null,null,null,{"$f":"IF(TRIM(BR50)=\"\", \"\", IF(VLOOKUP(BR50,'Footnotes list'!$D$9:$E$58,2,FALSE)=0,\"\",VLOOKUP(BR50,'Footnotes list'!$D$9:$E$58,2,FALSE) ) )","v":""},null,null,null,null,{"$f":"IF(TRIM(BW50)=\"\", \"\", IF(VLOOKUP(BW50,'Footnotes list'!$D$9:$E$58,2,FALSE)=0,\"\",VLOOKUP(BW50,'Footnotes list'!$D$9:$E$58,2,FALSE) ) )","v":""},null,null,null,null,{"$f":"IF(TRIM(CB50)=\"\", \"\", IF(VLOOKUP(CB50,'Footnotes list'!$D$9:$E$58,2,FALSE)=0,\"\",VLOOKUP(CB50,'Footnotes list'!$D$9:$E$58,2,FALSE) ) )","v":""},null,null,null,null,{"$f":"IF(TRIM(CG50)=\"\", \"\", IF(VLOOKUP(CG50,'Footnotes list'!$D$9:$E$58,2,FALSE)=0,\"\",VLOOKUP(CG50,'Footnotes list'!$D$9:$E$58,2,FALSE) ) )","v":""},null,null,null,null,{"$f":"IF(TRIM(CL50)=\"\", \"\", IF(VLOOKUP(CL50,'Footnotes list'!$D$9:$E$58,2,FALSE)=0,\"\",VLOOKUP(CL50,'Footnotes list'!$D$9:$E$58,2,FALSE) ) )","v":""},null,null,null,null,{"$f":"IF(TRIM(CQ50)=\"\", \"\", IF(VLOOKUP(CQ50,'Footnotes list'!$D$9:$E$58,2,FALSE)=0,\"\",VLOOKUP(CQ50,'Footnotes list'!$D$9:$E$58,2,FALSE) ) )","v":""},null,null,null,null,{"$f":"IF(TRIM(CV50)=\"\", \"\", IF(VLOOKUP(CV50,'Footnotes list'!$D$9:$E$58,2,FALSE)=0,\"\",VLOOKUP(CV50,'Footnotes list'!$D$9:$E$58,2,FALSE) ) )","v":""},null,null,null,null,{"$f":"IF(TRIM(DA50)=\"\", \"\", IF(VLOOKUP(DA50,'Footnotes list'!$D$9:$E$58,2,FALSE)=0,\"\",VLOOKUP(DA50,'Footnotes list'!$D$9:$E$58,2,FALSE) ) )","v":""},null,null,null,null,{"$f":"IF(TRIM(DF50)=\"\", \"\", IF(VLOOKUP(DF50,'Footnotes list'!$D$9:$E$58,2,FALSE)=0,\"\",VLOOKUP(DF50,'Footnotes list'!$D$9:$E$58,2,FALSE) ) )","v":""},null,null,null,null,{"$f":"IF(TRIM(DK50)=\"\", \"\", IF(VLOOKUP(DK50,'Footnotes list'!$D$9:$E$58,2,FALSE)=0,\"\",VLOOKUP(DK50,'Footnotes list'!$D$9:$E$58,2,FALSE) ) )","v":""},null,null,null,null,{"$f":"IF(TRIM(DP50)=\"\", \"\", IF(VLOOKUP(DP50,'Footnotes list'!$D$9:$E$58,2,FALSE)=0,\"\",VLOOKUP(DP50,'Footnotes list'!$D$9:$E$58,2,FALSE) ) )","v":""},null,null,null,null,{"$f":"IF(TRIM(DU50)=\"\", \"\", IF(VLOOKUP(DU50,'Footnotes list'!$D$9:$E$58,2,FALSE)=0,\"\",VLOOKUP(DU50,'Footnotes list'!$D$9:$E$58,2,FALSE) ) )","v":""},null,null,null,null,{"$f":"IF(TRIM(DZ50)=\"\", \"\", IF(VLOOKUP(DZ50,'Footnotes list'!$D$9:$E$58,2,FALSE)=0,\"\",VLOOKUP(DZ50,'Footnotes list'!$D$9:$E$58,2,FALSE) ) )","v":""},null,null,null,null,{"$f":"IF(TRIM(EE50)=\"\", \"\", IF(VLOOKUP(EE50,'Footnotes list'!$D$9:$E$58,2,FALSE)=0,\"\",VLOOKUP(EE50,'Footnotes list'!$D$9:$E$58,2,FALSE) ) )","v":""},null,null,null,null,{"$f":"IF(TRIM(EJ50)=\"\", \"\", IF(VLOOKUP(EJ50,'Footnotes list'!$D$9:$E$58,2,FALSE)=0,\"\",VLOOKUP(EJ50,'Footnotes list'!$D$9:$E$58,2,FALSE) ) )","v":""},null,null,null,null,{"$f":"IF(TRIM(EO50)=\"\", \"\", IF(VLOOKUP(EO50,'Footnotes list'!$D$9:$E$58,2,FALSE)=0,\"\",VLOOKUP(EO50,'Footnotes list'!$D$9:$E$58,2,FALSE) ) )","v":""},null,null,null,null,{"$f":"IF(TRIM(ET50)=\"\", \"\", IF(VLOOKUP(ET50,'Footnotes list'!$D$9:$E$58,2,FALSE)=0,\"\",VLOOKUP(ET50,'Footnotes list'!$D$9:$E$58,2,FALSE) ) )","v":""},null,null,null,null,{"$f":"IF(TRIM(EY50)=\"\", \"\", IF(VLOOKUP(EY50,'Footnotes list'!$D$9:$E$58,2,FALSE)=0,\"\",VLOOKUP(EY50,'Footnotes list'!$D$9:$E$58,2,FALSE) ) )","v":""}]
[null,null,"C28","ES_CS","environmental specific services",null,null,null,null,null,{"$f":"IF(TRIM(J51)=\"\", \"\", IF(VLOOKUP(J51,'Footnotes list'!$D$9:$E$58,2,FALSE)=0,\"\",VLOOKUP(J51,'Footnotes list'!$D$9:$E$58,2,FALSE) ) )","v":""},null,null,null,null,{"$f":"IF(TRIM(O51)=\"\", \"\", IF(VLOOKUP(O51,'Footnotes list'!$D$9:$E$58,2,FALSE)=0,\"\",VLOOKUP(O51,'Footnotes list'!$D$9:$E$58,2,FALSE) ) )","v":""},null,null,null,null,{"$f":"IF(TRIM(T51)=\"\", \"\", IF(VLOOKUP(T51,'Footnotes list'!$D$9:$E$58,2,FALSE)=0,\"\",VLOOKUP(T51,'Footnotes list'!$D$9:$E$58,2,FALSE) ) )","v":""},null,null,null,null,{"$f":"IF(TRIM(Y51)=\"\", \"\", IF(VLOOKUP(Y51,'Footnotes list'!$D$9:$E$58,2,FALSE)=0,\"\",VLOOKUP(Y51,'Footnotes list'!$D$9:$E$58,2,FALSE) ) )","v":""},null,null,null,null,{"$f":"IF(TRIM(AD51)=\"\", \"\", IF(VLOOKUP(AD51,'Footnotes list'!$D$9:$E$58,2,FALSE)=0,\"\",VLOOKUP(AD51,'Footnotes list'!$D$9:$E$58,2,FALSE) ) )","v":""},null,null,null,null,{"$f":"IF(TRIM(AI51)=\"\", \"\", IF(VLOOKUP(AI51,'Footnotes list'!$D$9:$E$58,2,FALSE)=0,\"\",VLOOKUP(AI51,'Footnotes list'!$D$9:$E$58,2,FALSE) ) )","v":""},null,null,null,null,{"$f":"IF(TRIM(AN51)=\"\", \"\", IF(VLOOKUP(AN51,'Footnotes list'!$D$9:$E$58,2,FALSE)=0,\"\",VLOOKUP(AN51,'Footnotes list'!$D$9:$E$58,2,FALSE) ) )","v":""},null,null,null,null,{"$f":"IF(TRIM(AS51)=\"\", \"\", IF(VLOOKUP(AS51,'Footnotes list'!$D$9:$E$58,2,FALSE)=0,\"\",VLOOKUP(AS51,'Footnotes list'!$D$9:$E$58,2,FALSE) ) )","v":""},null,null,null,null,{"$f":"IF(TRIM(AX51)=\"\", \"\", IF(VLOOKUP(AX51,'Footnotes list'!$D$9:$E$58,2,FALSE)=0,\"\",VLOOKUP(AX51,'Footnotes list'!$D$9:$E$58,2,FALSE) ) )","v":""},null,null,null,null,{"$f":"IF(TRIM(BC51)=\"\", \"\", IF(VLOOKUP(BC51,'Footnotes list'!$D$9:$E$58,2,FALSE)=0,\"\",VLOOKUP(BC51,'Footnotes list'!$D$9:$E$58,2,FALSE) ) )","v":""},null,null,null,null,{"$f":"IF(TRIM(BH51)=\"\", \"\", IF(VLOOKUP(BH51,'Footnotes list'!$D$9:$E$58,2,FALSE)=0,\"\",VLOOKUP(BH51,'Footnotes list'!$D$9:$E$58,2,FALSE) ) )","v":""},null,null,null,null,{"$f":"IF(TRIM(BM51)=\"\", \"\", IF(VLOOKUP(BM51,'Footnotes list'!$D$9:$E$58,2,FALSE)=0,\"\",VLOOKUP(BM51,'Footnotes list'!$D$9:$E$58,2,FALSE) ) )","v":""},null,null,null,null,{"$f":"IF(TRIM(BR51)=\"\", \"\", IF(VLOOKUP(BR51,'Footnotes list'!$D$9:$E$58,2,FALSE)=0,\"\",VLOOKUP(BR51,'Footnotes list'!$D$9:$E$58,2,FALSE) ) )","v":""},null,null,null,null,{"$f":"IF(TRIM(BW51)=\"\", \"\", IF(VLOOKUP(BW51,'Footnotes list'!$D$9:$E$58,2,FALSE)=0,\"\",VLOOKUP(BW51,'Footnotes list'!$D$9:$E$58,2,FALSE) ) )","v":""},null,null,null,null,{"$f":"IF(TRIM(CB51)=\"\", \"\", IF(VLOOKUP(CB51,'Footnotes list'!$D$9:$E$58,2,FALSE)=0,\"\",VLOOKUP(CB51,'Footnotes list'!$D$9:$E$58,2,FALSE) ) )","v":""},null,null,null,null,{"$f":"IF(TRIM(CG51)=\"\", \"\", IF(VLOOKUP(CG51,'Footnotes list'!$D$9:$E$58,2,FALSE)=0,\"\",VLOOKUP(CG51,'Footnotes list'!$D$9:$E$58,2,FALSE) ) )","v":""},null,null,null,null,{"$f":"IF(TRIM(CL51)=\"\", \"\", IF(VLOOKUP(CL51,'Footnotes list'!$D$9:$E$58,2,FALSE)=0,\"\",VLOOKUP(CL51,'Footnotes list'!$D$9:$E$58,2,FALSE) ) )","v":""},null,null,null,null,{"$f":"IF(TRIM(CQ51)=\"\", \"\", IF(VLOOKUP(CQ51,'Footnotes list'!$D$9:$E$58,2,FALSE)=0,\"\",VLOOKUP(CQ51,'Footnotes list'!$D$9:$E$58,2,FALSE) ) )","v":""},null,null,null,null,{"$f":"IF(TRIM(CV51)=\"\", \"\", IF(VLOOKUP(CV51,'Footnotes list'!$D$9:$E$58,2,FALSE)=0,\"\",VLOOKUP(CV51,'Footnotes list'!$D$9:$E$58,2,FALSE) ) )","v":""},null,null,null,null,{"$f":"IF(TRIM(DA51)=\"\", \"\", IF(VLOOKUP(DA51,'Footnotes list'!$D$9:$E$58,2,FALSE)=0,\"\",VLOOKUP(DA51,'Footnotes list'!$D$9:$E$58,2,FALSE) ) )","v":""},null,null,null,null,{"$f":"IF(TRIM(DF51)=\"\", \"\", IF(VLOOKUP(DF51,'Footnotes list'!$D$9:$E$58,2,FALSE)=0,\"\",VLOOKUP(DF51,'Footnotes list'!$D$9:$E$58,2,FALSE) ) )","v":""},null,null,null,null,{"$f":"IF(TRIM(DK51)=\"\", \"\", IF(VLOOKUP(DK51,'Footnotes list'!$D$9:$E$58,2,FALSE)=0,\"\",VLOOKUP(DK51,'Footnotes list'!$D$9:$E$58,2,FALSE) ) )","v":""},null,null,null,null,{"$f":"IF(TRIM(DP51)=\"\", \"\", IF(VLOOKUP(DP51,'Footnotes list'!$D$9:$E$58,2,FALSE)=0,\"\",VLOOKUP(DP51,'Footnotes list'!$D$9:$E$58,2,FALSE) ) )","v":""},null,null,null,null,{"$f":"IF(TRIM(DU51)=\"\", \"\", IF(VLOOKUP(DU51,'Footnotes list'!$D$9:$E$58,2,FALSE)=0,\"\",VLOOKUP(DU51,'Footnotes list'!$D$9:$E$58,2,FALSE) ) )","v":""},null,null,null,null,{"$f":"IF(TRIM(DZ51)=\"\", \"\", IF(VLOOKUP(DZ51,'Footnotes list'!$D$9:$E$58,2,FALSE)=0,\"\",VLOOKUP(DZ51,'Footnotes list'!$D$9:$E$58,2,FALSE) ) )","v":""},null,null,null,null,{"$f":"IF(TRIM(EE51)=\"\", \"\", IF(VLOOKUP(EE51,'Footnotes list'!$D$9:$E$58,2,FALSE)=0,\"\",VLOOKUP(EE51,'Footnotes list'!$D$9:$E$58,2,FALSE) ) )","v":""},null,null,null,null,{"$f":"IF(TRIM(EJ51)=\"\", \"\", IF(VLOOKUP(EJ51,'Footnotes list'!$D$9:$E$58,2,FALSE)=0,\"\",VLOOKUP(EJ51,'Footnotes list'!$D$9:$E$58,2,FALSE) ) )","v":""},null,null,null,null,{"$f":"IF(TRIM(EO51)=\"\", \"\", IF(VLOOKUP(EO51,'Footnotes list'!$D$9:$E$58,2,FALSE)=0,\"\",VLOOKUP(EO51,'Footnotes list'!$D$9:$E$58,2,FALSE) ) )","v":""},null,null,null,null,{"$f":"IF(TRIM(ET51)=\"\", \"\", IF(VLOOKUP(ET51,'Footnotes list'!$D$9:$E$58,2,FALSE)=0,\"\",VLOOKUP(ET51,'Footnotes list'!$D$9:$E$58,2,FALSE) ) )","v":""},null,null,null,null,{"$f":"IF(TRIM(EY51)=\"\", \"\", IF(VLOOKUP(EY51,'Footnotes list'!$D$9:$E$58,2,FALSE)=0,\"\",VLOOKUP(EY51,'Footnotes list'!$D$9:$E$58,2,FALSE) ) )","v":""}]
[null,null,"C28","C_REP","cleaner and resource efficient products",null,null,null,null,null,{"$f":"IF(TRIM(J52)=\"\", \"\", IF(VLOOKUP(J52,'Footnotes list'!$D$9:$E$58,2,FALSE)=0,\"\",VLOOKUP(J52,'Footnotes list'!$D$9:$E$58,2,FALSE) ) )","v":""},null,null,null,null,{"$f":"IF(TRIM(O52)=\"\", \"\", IF(VLOOKUP(O52,'Footnotes list'!$D$9:$E$58,2,FALSE)=0,\"\",VLOOKUP(O52,'Footnotes list'!$D$9:$E$58,2,FALSE) ) )","v":""},null,null,null,null,{"$f":"IF(TRIM(T52)=\"\", \"\", IF(VLOOKUP(T52,'Footnotes list'!$D$9:$E$58,2,FALSE)=0,\"\",VLOOKUP(T52,'Footnotes list'!$D$9:$E$58,2,FALSE) ) )","v":""},null,null,null,null,{"$f":"IF(TRIM(Y52)=\"\", \"\", IF(VLOOKUP(Y52,'Footnotes list'!$D$9:$E$58,2,FALSE)=0,\"\",VLOOKUP(Y52,'Footnotes list'!$D$9:$E$58,2,FALSE) ) )","v":""},null,null,null,null,{"$f":"IF(TRIM(AD52)=\"\", \"\", IF(VLOOKUP(AD52,'Footnotes list'!$D$9:$E$58,2,FALSE)=0,\"\",VLOOKUP(AD52,'Footnotes list'!$D$9:$E$58,2,FALSE) ) )","v":""},null,null,null,null,{"$f":"IF(TRIM(AI52)=\"\", \"\", IF(VLOOKUP(AI52,'Footnotes list'!$D$9:$E$58,2,FALSE)=0,\"\",VLOOKUP(AI52,'Footnotes list'!$D$9:$E$58,2,FALSE) ) )","v":""},null,null,null,null,{"$f":"IF(TRIM(AN52)=\"\", \"\", IF(VLOOKUP(AN52,'Footnotes list'!$D$9:$E$58,2,FALSE)=0,\"\",VLOOKUP(AN52,'Footnotes list'!$D$9:$E$58,2,FALSE) ) )","v":""},null,null,null,null,{"$f":"IF(TRIM(AS52)=\"\", \"\", IF(VLOOKUP(AS52,'Footnotes list'!$D$9:$E$58,2,FALSE)=0,\"\",VLOOKUP(AS52,'Footnotes list'!$D$9:$E$58,2,FALSE) ) )","v":""},null,null,null,null,{"$f":"IF(TRIM(AX52)=\"\", \"\", IF(VLOOKUP(AX52,'Footnotes list'!$D$9:$E$58,2,FALSE)=0,\"\",VLOOKUP(AX52,'Footnotes list'!$D$9:$E$58,2,FALSE) ) )","v":""},null,null,null,null,{"$f":"IF(TRIM(BC52)=\"\", \"\", IF(VLOOKUP(BC52,'Footnotes list'!$D$9:$E$58,2,FALSE)=0,\"\",VLOOKUP(BC52,'Footnotes list'!$D$9:$E$58,2,FALSE) ) )","v":""},null,null,null,null,{"$f":"IF(TRIM(BH52)=\"\", \"\", IF(VLOOKUP(BH52,'Footnotes list'!$D$9:$E$58,2,FALSE)=0,\"\",VLOOKUP(BH52,'Footnotes list'!$D$9:$E$58,2,FALSE) ) )","v":""},null,null,null,null,{"$f":"IF(TRIM(BM52)=\"\", \"\", IF(VLOOKUP(BM52,'Footnotes list'!$D$9:$E$58,2,FALSE)=0,\"\",VLOOKUP(BM52,'Footnotes list'!$D$9:$E$58,2,FALSE) ) )","v":""},null,null,null,null,{"$f":"IF(TRIM(BR52)=\"\", \"\", IF(VLOOKUP(BR52,'Footnotes list'!$D$9:$E$58,2,FALSE)=0,\"\",VLOOKUP(BR52,'Footnotes list'!$D$9:$E$58,2,FALSE) ) )","v":""},null,null,null,null,{"$f":"IF(TRIM(BW52)=\"\", \"\", IF(VLOOKUP(BW52,'Footnotes list'!$D$9:$E$58,2,FALSE)=0,\"\",VLOOKUP(BW52,'Footnotes list'!$D$9:$E$58,2,FALSE) ) )","v":""},null,null,null,null,{"$f":"IF(TRIM(CB52)=\"\", \"\", IF(VLOOKUP(CB52,'Footnotes list'!$D$9:$E$58,2,FALSE)=0,\"\",VLOOKUP(CB52,'Footnotes list'!$D$9:$E$58,2,FALSE) ) )","v":""},null,null,null,null,{"$f":"IF(TRIM(CG52)=\"\", \"\", IF(VLOOKUP(CG52,'Footnotes list'!$D$9:$E$58,2,FALSE)=0,\"\",VLOOKUP(CG52,'Footnotes list'!$D$9:$E$58,2,FALSE) ) )","v":""},null,null,null,null,{"$f":"IF(TRIM(CL52)=\"\", \"\", IF(VLOOKUP(CL52,'Footnotes list'!$D$9:$E$58,2,FALSE)=0,\"\",VLOOKUP(CL52,'Footnotes list'!$D$9:$E$58,2,FALSE) ) )","v":""},null,null,null,null,{"$f":"IF(TRIM(CQ52)=\"\", \"\", IF(VLOOKUP(CQ52,'Footnotes list'!$D$9:$E$58,2,FALSE)=0,\"\",VLOOKUP(CQ52,'Footnotes list'!$D$9:$E$58,2,FALSE) ) )","v":""},null,null,null,null,{"$f":"IF(TRIM(CV52)=\"\", \"\", IF(VLOOKUP(CV52,'Footnotes list'!$D$9:$E$58,2,FALSE)=0,\"\",VLOOKUP(CV52,'Footnotes list'!$D$9:$E$58,2,FALSE) ) )","v":""},null,null,null,null,{"$f":"IF(TRIM(DA52)=\"\", \"\", IF(VLOOKUP(DA52,'Footnotes list'!$D$9:$E$58,2,FALSE)=0,\"\",VLOOKUP(DA52,'Footnotes list'!$D$9:$E$58,2,FALSE) ) )","v":""},null,null,null,null,{"$f":"IF(TRIM(DF52)=\"\", \"\", IF(VLOOKUP(DF52,'Footnotes list'!$D$9:$E$58,2,FALSE)=0,\"\",VLOOKUP(DF52,'Footnotes list'!$D$9:$E$58,2,FALSE) ) )","v":""},null,null,null,null,{"$f":"IF(TRIM(DK52)=\"\", \"\", IF(VLOOKUP(DK52,'Footnotes list'!$D$9:$E$58,2,FALSE)=0,\"\",VLOOKUP(DK52,'Footnotes list'!$D$9:$E$58,2,FALSE) ) )","v":""},null,null,null,null,{"$f":"IF(TRIM(DP52)=\"\", \"\", IF(VLOOKUP(DP52,'Footnotes list'!$D$9:$E$58,2,FALSE)=0,\"\",VLOOKUP(DP52,'Footnotes list'!$D$9:$E$58,2,FALSE) ) )","v":""},null,null,null,null,{"$f":"IF(TRIM(DU52)=\"\", \"\", IF(VLOOKUP(DU52,'Footnotes list'!$D$9:$E$58,2,FALSE)=0,\"\",VLOOKUP(DU52,'Footnotes list'!$D$9:$E$58,2,FALSE) ) )","v":""},null,null,null,null,{"$f":"IF(TRIM(DZ52)=\"\", \"\", IF(VLOOKUP(DZ52,'Footnotes list'!$D$9:$E$58,2,FALSE)=0,\"\",VLOOKUP(DZ52,'Footnotes list'!$D$9:$E$58,2,FALSE) ) )","v":""},null,null,null,null,{"$f":"IF(TRIM(EE52)=\"\", \"\", IF(VLOOKUP(EE52,'Footnotes list'!$D$9:$E$58,2,FALSE)=0,\"\",VLOOKUP(EE52,'Footnotes list'!$D$9:$E$58,2,FALSE) ) )","v":""},null,null,null,null,{"$f":"IF(TRIM(EJ52)=\"\", \"\", IF(VLOOKUP(EJ52,'Footnotes list'!$D$9:$E$58,2,FALSE)=0,\"\",VLOOKUP(EJ52,'Footnotes list'!$D$9:$E$58,2,FALSE) ) )","v":""},null,null,null,null,{"$f":"IF(TRIM(EO52)=\"\", \"\", IF(VLOOKUP(EO52,'Footnotes list'!$D$9:$E$58,2,FALSE)=0,\"\",VLOOKUP(EO52,'Footnotes list'!$D$9:$E$58,2,FALSE) ) )","v":""},null,null,null,null,{"$f":"IF(TRIM(ET52)=\"\", \"\", IF(VLOOKUP(ET52,'Footnotes list'!$D$9:$E$58,2,FALSE)=0,\"\",VLOOKUP(ET52,'Footnotes list'!$D$9:$E$58,2,FALSE) ) )","v":""},null,null,null,null,{"$f":"IF(TRIM(EY52)=\"\", \"\", IF(VLOOKUP(EY52,'Footnotes list'!$D$9:$E$58,2,FALSE)=0,\"\",VLOOKUP(EY52,'Footnotes list'!$D$9:$E$58,2,FALSE) ) )","v":""}]
[null,null,"C29_C30","TOT_EGSS","Total C29 - C30 Manufacture of transport equipment, including:",null,null,null,null,null,{"$f":"IF(TRIM(J53)=\"\", \"\", IF(VLOOKUP(J53,'Footnotes list'!$D$9:$E$58,2,FALSE)=0,\"\",VLOOKUP(J53,'Footnotes list'!$D$9:$E$58,2,FALSE) ) )","v":""},null,null,null,null,{"$f":"IF(TRIM(O53)=\"\", \"\", IF(VLOOKUP(O53,'Footnotes list'!$D$9:$E$58,2,FALSE)=0,\"\",VLOOKUP(O53,'Footnotes list'!$D$9:$E$58,2,FALSE) ) )","v":""},null,null,null,null,{"$f":"IF(TRIM(T53)=\"\", \"\", IF(VLOOKUP(T53,'Footnotes list'!$D$9:$E$58,2,FALSE)=0,\"\",VLOOKUP(T53,'Footnotes list'!$D$9:$E$58,2,FALSE) ) )","v":""},null,null,null,null,{"$f":"IF(TRIM(Y53)=\"\", \"\", IF(VLOOKUP(Y53,'Footnotes list'!$D$9:$E$58,2,FALSE)=0,\"\",VLOOKUP(Y53,'Footnotes list'!$D$9:$E$58,2,FALSE) ) )","v":""},null,null,null,null,{"$f":"IF(TRIM(AD53)=\"\", \"\", IF(VLOOKUP(AD53,'Footnotes list'!$D$9:$E$58,2,FALSE)=0,\"\",VLOOKUP(AD53,'Footnotes list'!$D$9:$E$58,2,FALSE) ) )","v":""},null,null,null,null,{"$f":"IF(TRIM(AI53)=\"\", \"\", IF(VLOOKUP(AI53,'Footnotes list'!$D$9:$E$58,2,FALSE)=0,\"\",VLOOKUP(AI53,'Footnotes list'!$D$9:$E$58,2,FALSE) ) )","v":""},null,null,null,null,{"$f":"IF(TRIM(AN53)=\"\", \"\", IF(VLOOKUP(AN53,'Footnotes list'!$D$9:$E$58,2,FALSE)=0,\"\",VLOOKUP(AN53,'Footnotes list'!$D$9:$E$58,2,FALSE) ) )","v":""},null,null,null,null,{"$f":"IF(TRIM(AS53)=\"\", \"\", IF(VLOOKUP(AS53,'Footnotes list'!$D$9:$E$58,2,FALSE)=0,\"\",VLOOKUP(AS53,'Footnotes list'!$D$9:$E$58,2,FALSE) ) )","v":""},null,null,null,null,{"$f":"IF(TRIM(AX53)=\"\", \"\", IF(VLOOKUP(AX53,'Footnotes list'!$D$9:$E$58,2,FALSE)=0,\"\",VLOOKUP(AX53,'Footnotes list'!$D$9:$E$58,2,FALSE) ) )","v":""},null,null,null,null,{"$f":"IF(TRIM(BC53)=\"\", \"\", IF(VLOOKUP(BC53,'Footnotes list'!$D$9:$E$58,2,FALSE)=0,\"\",VLOOKUP(BC53,'Footnotes list'!$D$9:$E$58,2,FALSE) ) )","v":""},null,null,null,null,{"$f":"IF(TRIM(BH53)=\"\", \"\", IF(VLOOKUP(BH53,'Footnotes list'!$D$9:$E$58,2,FALSE)=0,\"\",VLOOKUP(BH53,'Footnotes list'!$D$9:$E$58,2,FALSE) ) )","v":""},null,null,null,null,{"$f":"IF(TRIM(BM53)=\"\", \"\", IF(VLOOKUP(BM53,'Footnotes list'!$D$9:$E$58,2,FALSE)=0,\"\",VLOOKUP(BM53,'Footnotes list'!$D$9:$E$58,2,FALSE) ) )","v":""},null,null,null,null,{"$f":"IF(TRIM(BR53)=\"\", \"\", IF(VLOOKUP(BR53,'Footnotes list'!$D$9:$E$58,2,FALSE)=0,\"\",VLOOKUP(BR53,'Footnotes list'!$D$9:$E$58,2,FALSE) ) )","v":""},null,null,null,null,{"$f":"IF(TRIM(BW53)=\"\", \"\", IF(VLOOKUP(BW53,'Footnotes list'!$D$9:$E$58,2,FALSE)=0,\"\",VLOOKUP(BW53,'Footnotes list'!$D$9:$E$58,2,FALSE) ) )","v":""},null,null,null,null,{"$f":"IF(TRIM(CB53)=\"\", \"\", IF(VLOOKUP(CB53,'Footnotes list'!$D$9:$E$58,2,FALSE)=0,\"\",VLOOKUP(CB53,'Footnotes list'!$D$9:$E$58,2,FALSE) ) )","v":""},null,null,null,null,{"$f":"IF(TRIM(CG53)=\"\", \"\", IF(VLOOKUP(CG53,'Footnotes list'!$D$9:$E$58,2,FALSE)=0,\"\",VLOOKUP(CG53,'Footnotes list'!$D$9:$E$58,2,FALSE) ) )","v":""},null,null,null,null,{"$f":"IF(TRIM(CL53)=\"\", \"\", IF(VLOOKUP(CL53,'Footnotes list'!$D$9:$E$58,2,FALSE)=0,\"\",VLOOKUP(CL53,'Footnotes list'!$D$9:$E$58,2,FALSE) ) )","v":""},null,null,null,null,{"$f":"IF(TRIM(CQ53)=\"\", \"\", IF(VLOOKUP(CQ53,'Footnotes list'!$D$9:$E$58,2,FALSE)=0,\"\",VLOOKUP(CQ53,'Footnotes list'!$D$9:$E$58,2,FALSE) ) )","v":""},null,null,null,null,{"$f":"IF(TRIM(CV53)=\"\", \"\", IF(VLOOKUP(CV53,'Footnotes list'!$D$9:$E$58,2,FALSE)=0,\"\",VLOOKUP(CV53,'Footnotes list'!$D$9:$E$58,2,FALSE) ) )","v":""},null,null,null,null,{"$f":"IF(TRIM(DA53)=\"\", \"\", IF(VLOOKUP(DA53,'Footnotes list'!$D$9:$E$58,2,FALSE)=0,\"\",VLOOKUP(DA53,'Footnotes list'!$D$9:$E$58,2,FALSE) ) )","v":""},null,null,null,null,{"$f":"IF(TRIM(DF53)=\"\", \"\", IF(VLOOKUP(DF53,'Footnotes list'!$D$9:$E$58,2,FALSE)=0,\"\",VLOOKUP(DF53,'Footnotes list'!$D$9:$E$58,2,FALSE) ) )","v":""},null,null,null,null,{"$f":"IF(TRIM(DK53)=\"\", \"\", IF(VLOOKUP(DK53,'Footnotes list'!$D$9:$E$58,2,FALSE)=0,\"\",VLOOKUP(DK53,'Footnotes list'!$D$9:$E$58,2,FALSE) ) )","v":""},null,null,null,null,{"$f":"IF(TRIM(DP53)=\"\", \"\", IF(VLOOKUP(DP53,'Footnotes list'!$D$9:$E$58,2,FALSE)=0,\"\",VLOOKUP(DP53,'Footnotes list'!$D$9:$E$58,2,FALSE) ) )","v":""},null,null,null,null,{"$f":"IF(TRIM(DU53)=\"\", \"\", IF(VLOOKUP(DU53,'Footnotes list'!$D$9:$E$58,2,FALSE)=0,\"\",VLOOKUP(DU53,'Footnotes list'!$D$9:$E$58,2,FALSE) ) )","v":""},null,null,null,null,{"$f":"IF(TRIM(DZ53)=\"\", \"\", IF(VLOOKUP(DZ53,'Footnotes list'!$D$9:$E$58,2,FALSE)=0,\"\",VLOOKUP(DZ53,'Footnotes list'!$D$9:$E$58,2,FALSE) ) )","v":""},null,null,null,null,{"$f":"IF(TRIM(EE53)=\"\", \"\", IF(VLOOKUP(EE53,'Footnotes list'!$D$9:$E$58,2,FALSE)=0,\"\",VLOOKUP(EE53,'Footnotes list'!$D$9:$E$58,2,FALSE) ) )","v":""},null,null,null,null,{"$f":"IF(TRIM(EJ53)=\"\", \"\", IF(VLOOKUP(EJ53,'Footnotes list'!$D$9:$E$58,2,FALSE)=0,\"\",VLOOKUP(EJ53,'Footnotes list'!$D$9:$E$58,2,FALSE) ) )","v":""},null,null,null,null,{"$f":"IF(TRIM(EO53)=\"\", \"\", IF(VLOOKUP(EO53,'Footnotes list'!$D$9:$E$58,2,FALSE)=0,\"\",VLOOKUP(EO53,'Footnotes list'!$D$9:$E$58,2,FALSE) ) )","v":""},null,null,null,null,{"$f":"IF(TRIM(ET53)=\"\", \"\", IF(VLOOKUP(ET53,'Footnotes list'!$D$9:$E$58,2,FALSE)=0,\"\",VLOOKUP(ET53,'Footnotes list'!$D$9:$E$58,2,FALSE) ) )","v":""},null,null,null,null,{"$f":"IF(TRIM(EY53)=\"\", \"\", IF(VLOOKUP(EY53,'Footnotes list'!$D$9:$E$58,2,FALSE)=0,\"\",VLOOKUP(EY53,'Footnotes list'!$D$9:$E$58,2,FALSE) ) )","v":""}]
[null,null,"C29_C30","ES_CS","environmental specific services",null,null,null,null,null,{"$f":"IF(TRIM(J54)=\"\", \"\", IF(VLOOKUP(J54,'Footnotes list'!$D$9:$E$58,2,FALSE)=0,\"\",VLOOKUP(J54,'Footnotes list'!$D$9:$E$58,2,FALSE) ) )","v":""},null,null,null,null,{"$f":"IF(TRIM(O54)=\"\", \"\", IF(VLOOKUP(O54,'Footnotes list'!$D$9:$E$58,2,FALSE)=0,\"\",VLOOKUP(O54,'Footnotes list'!$D$9:$E$58,2,FALSE) ) )","v":""},null,null,null,null,{"$f":"IF(TRIM(T54)=\"\", \"\", IF(VLOOKUP(T54,'Footnotes list'!$D$9:$E$58,2,FALSE)=0,\"\",VLOOKUP(T54,'Footnotes list'!$D$9:$E$58,2,FALSE) ) )","v":""},null,null,null,null,{"$f":"IF(TRIM(Y54)=\"\", \"\", IF(VLOOKUP(Y54,'Footnotes list'!$D$9:$E$58,2,FALSE)=0,\"\",VLOOKUP(Y54,'Footnotes list'!$D$9:$E$58,2,FALSE) ) )","v":""},null,null,null,null,{"$f":"IF(TRIM(AD54)=\"\", \"\", IF(VLOOKUP(AD54,'Footnotes list'!$D$9:$E$58,2,FALSE)=0,\"\",VLOOKUP(AD54,'Footnotes list'!$D$9:$E$58,2,FALSE) ) )","v":""},null,null,null,null,{"$f":"IF(TRIM(AI54)=\"\", \"\", IF(VLOOKUP(AI54,'Footnotes list'!$D$9:$E$58,2,FALSE)=0,\"\",VLOOKUP(AI54,'Footnotes list'!$D$9:$E$58,2,FALSE) ) )","v":""},null,null,null,null,{"$f":"IF(TRIM(AN54)=\"\", \"\", IF(VLOOKUP(AN54,'Footnotes list'!$D$9:$E$58,2,FALSE)=0,\"\",VLOOKUP(AN54,'Footnotes list'!$D$9:$E$58,2,FALSE) ) )","v":""},null,null,null,null,{"$f":"IF(TRIM(AS54)=\"\", \"\", IF(VLOOKUP(AS54,'Footnotes list'!$D$9:$E$58,2,FALSE)=0,\"\",VLOOKUP(AS54,'Footnotes list'!$D$9:$E$58,2,FALSE) ) )","v":""},null,null,null,null,{"$f":"IF(TRIM(AX54)=\"\", \"\", IF(VLOOKUP(AX54,'Footnotes list'!$D$9:$E$58,2,FALSE)=0,\"\",VLOOKUP(AX54,'Footnotes list'!$D$9:$E$58,2,FALSE) ) )","v":""},null,null,null,null,{"$f":"IF(TRIM(BC54)=\"\", \"\", IF(VLOOKUP(BC54,'Footnotes list'!$D$9:$E$58,2,FALSE)=0,\"\",VLOOKUP(BC54,'Footnotes list'!$D$9:$E$58,2,FALSE) ) )","v":""},null,null,null,null,{"$f":"IF(TRIM(BH54)=\"\", \"\", IF(VLOOKUP(BH54,'Footnotes list'!$D$9:$E$58,2,FALSE)=0,\"\",VLOOKUP(BH54,'Footnotes list'!$D$9:$E$58,2,FALSE) ) )","v":""},null,null,null,null,{"$f":"IF(TRIM(BM54)=\"\", \"\", IF(VLOOKUP(BM54,'Footnotes list'!$D$9:$E$58,2,FALSE)=0,\"\",VLOOKUP(BM54,'Footnotes list'!$D$9:$E$58,2,FALSE) ) )","v":""},null,null,null,null,{"$f":"IF(TRIM(BR54)=\"\", \"\", IF(VLOOKUP(BR54,'Footnotes list'!$D$9:$E$58,2,FALSE)=0,\"\",VLOOKUP(BR54,'Footnotes list'!$D$9:$E$58,2,FALSE) ) )","v":""},null,null,null,null,{"$f":"IF(TRIM(BW54)=\"\", \"\", IF(VLOOKUP(BW54,'Footnotes list'!$D$9:$E$58,2,FALSE)=0,\"\",VLOOKUP(BW54,'Footnotes list'!$D$9:$E$58,2,FALSE) ) )","v":""},null,null,null,null,{"$f":"IF(TRIM(CB54)=\"\", \"\", IF(VLOOKUP(CB54,'Footnotes list'!$D$9:$E$58,2,FALSE)=0,\"\",VLOOKUP(CB54,'Footnotes list'!$D$9:$E$58,2,FALSE) ) )","v":""},null,null,null,null,{"$f":"IF(TRIM(CG54)=\"\", \"\", IF(VLOOKUP(CG54,'Footnotes list'!$D$9:$E$58,2,FALSE)=0,\"\",VLOOKUP(CG54,'Footnotes list'!$D$9:$E$58,2,FALSE) ) )","v":""},null,null,null,null,{"$f":"IF(TRIM(CL54)=\"\", \"\", IF(VLOOKUP(CL54,'Footnotes list'!$D$9:$E$58,2,FALSE)=0,\"\",VLOOKUP(CL54,'Footnotes list'!$D$9:$E$58,2,FALSE) ) )","v":""},null,null,null,null,{"$f":"IF(TRIM(CQ54)=\"\", \"\", IF(VLOOKUP(CQ54,'Footnotes list'!$D$9:$E$58,2,FALSE)=0,\"\",VLOOKUP(CQ54,'Footnotes list'!$D$9:$E$58,2,FALSE) ) )","v":""},null,null,null,null,{"$f":"IF(TRIM(CV54)=\"\", \"\", IF(VLOOKUP(CV54,'Footnotes list'!$D$9:$E$58,2,FALSE)=0,\"\",VLOOKUP(CV54,'Footnotes list'!$D$9:$E$58,2,FALSE) ) )","v":""},null,null,null,null,{"$f":"IF(TRIM(DA54)=\"\", \"\", IF(VLOOKUP(DA54,'Footnotes list'!$D$9:$E$58,2,FALSE)=0,\"\",VLOOKUP(DA54,'Footnotes list'!$D$9:$E$58,2,FALSE) ) )","v":""},null,null,null,null,{"$f":"IF(TRIM(DF54)=\"\", \"\", IF(VLOOKUP(DF54,'Footnotes list'!$D$9:$E$58,2,FALSE)=0,\"\",VLOOKUP(DF54,'Footnotes list'!$D$9:$E$58,2,FALSE) ) )","v":""},null,null,null,null,{"$f":"IF(TRIM(DK54)=\"\", \"\", IF(VLOOKUP(DK54,'Footnotes list'!$D$9:$E$58,2,FALSE)=0,\"\",VLOOKUP(DK54,'Footnotes list'!$D$9:$E$58,2,FALSE) ) )","v":""},null,null,null,null,{"$f":"IF(TRIM(DP54)=\"\", \"\", IF(VLOOKUP(DP54,'Footnotes list'!$D$9:$E$58,2,FALSE)=0,\"\",VLOOKUP(DP54,'Footnotes list'!$D$9:$E$58,2,FALSE) ) )","v":""},null,null,null,null,{"$f":"IF(TRIM(DU54)=\"\", \"\", IF(VLOOKUP(DU54,'Footnotes list'!$D$9:$E$58,2,FALSE)=0,\"\",VLOOKUP(DU54,'Footnotes list'!$D$9:$E$58,2,FALSE) ) )","v":""},null,null,null,null,{"$f":"IF(TRIM(DZ54)=\"\", \"\", IF(VLOOKUP(DZ54,'Footnotes list'!$D$9:$E$58,2,FALSE)=0,\"\",VLOOKUP(DZ54,'Footnotes list'!$D$9:$E$58,2,FALSE) ) )","v":""},null,null,null,null,{"$f":"IF(TRIM(EE54)=\"\", \"\", IF(VLOOKUP(EE54,'Footnotes list'!$D$9:$E$58,2,FALSE)=0,\"\",VLOOKUP(EE54,'Footnotes list'!$D$9:$E$58,2,FALSE) ) )","v":""},null,null,null,null,{"$f":"IF(TRIM(EJ54)=\"\", \"\", IF(VLOOKUP(EJ54,'Footnotes list'!$D$9:$E$58,2,FALSE)=0,\"\",VLOOKUP(EJ54,'Footnotes list'!$D$9:$E$58,2,FALSE) ) )","v":""},null,null,null,null,{"$f":"IF(TRIM(EO54)=\"\", \"\", IF(VLOOKUP(EO54,'Footnotes list'!$D$9:$E$58,2,FALSE)=0,\"\",VLOOKUP(EO54,'Footnotes list'!$D$9:$E$58,2,FALSE) ) )","v":""},null,null,null,null,{"$f":"IF(TRIM(ET54)=\"\", \"\", IF(VLOOKUP(ET54,'Footnotes list'!$D$9:$E$58,2,FALSE)=0,\"\",VLOOKUP(ET54,'Footnotes list'!$D$9:$E$58,2,FALSE) ) )","v":""},null,null,null,null,{"$f":"IF(TRIM(EY54)=\"\", \"\", IF(VLOOKUP(EY54,'Footnotes list'!$D$9:$E$58,2,FALSE)=0,\"\",VLOOKUP(EY54,'Footnotes list'!$D$9:$E$58,2,FALSE) ) )","v":""}]
[null,null,"C29_C30","C_REP","cleaner and resource efficient products",null,null,null,null,null,{"$f":"IF(TRIM(J55)=\"\", \"\", IF(VLOOKUP(J55,'Footnotes list'!$D$9:$E$58,2,FALSE)=0,\"\",VLOOKUP(J55,'Footnotes list'!$D$9:$E$58,2,FALSE) ) )","v":""},null,null,null,null,{"$f":"IF(TRIM(O55)=\"\", \"\", IF(VLOOKUP(O55,'Footnotes list'!$D$9:$E$58,2,FALSE)=0,\"\",VLOOKUP(O55,'Footnotes list'!$D$9:$E$58,2,FALSE) ) )","v":""},null,null,null,null,{"$f":"IF(TRIM(T55)=\"\", \"\", IF(VLOOKUP(T55,'Footnotes list'!$D$9:$E$58,2,FALSE)=0,\"\",VLOOKUP(T55,'Footnotes list'!$D$9:$E$58,2,FALSE) ) )","v":""},null,null,null,null,{"$f":"IF(TRIM(Y55)=\"\", \"\", IF(VLOOKUP(Y55,'Footnotes list'!$D$9:$E$58,2,FALSE)=0,\"\",VLOOKUP(Y55,'Footnotes list'!$D$9:$E$58,2,FALSE) ) )","v":""},null,null,null,null,{"$f":"IF(TRIM(AD55)=\"\", \"\", IF(VLOOKUP(AD55,'Footnotes list'!$D$9:$E$58,2,FALSE)=0,\"\",VLOOKUP(AD55,'Footnotes list'!$D$9:$E$58,2,FALSE) ) )","v":""},null,null,null,null,{"$f":"IF(TRIM(AI55)=\"\", \"\", IF(VLOOKUP(AI55,'Footnotes list'!$D$9:$E$58,2,FALSE)=0,\"\",VLOOKUP(AI55,'Footnotes list'!$D$9:$E$58,2,FALSE) ) )","v":""},null,null,null,null,{"$f":"IF(TRIM(AN55)=\"\", \"\", IF(VLOOKUP(AN55,'Footnotes list'!$D$9:$E$58,2,FALSE)=0,\"\",VLOOKUP(AN55,'Footnotes list'!$D$9:$E$58,2,FALSE) ) )","v":""},null,null,null,null,{"$f":"IF(TRIM(AS55)=\"\", \"\", IF(VLOOKUP(AS55,'Footnotes list'!$D$9:$E$58,2,FALSE)=0,\"\",VLOOKUP(AS55,'Footnotes list'!$D$9:$E$58,2,FALSE) ) )","v":""},null,null,null,null,{"$f":"IF(TRIM(AX55)=\"\", \"\", IF(VLOOKUP(AX55,'Footnotes list'!$D$9:$E$58,2,FALSE)=0,\"\",VLOOKUP(AX55,'Footnotes list'!$D$9:$E$58,2,FALSE) ) )","v":""},null,null,null,null,{"$f":"IF(TRIM(BC55)=\"\", \"\", IF(VLOOKUP(BC55,'Footnotes list'!$D$9:$E$58,2,FALSE)=0,\"\",VLOOKUP(BC55,'Footnotes list'!$D$9:$E$58,2,FALSE) ) )","v":""},null,null,null,null,{"$f":"IF(TRIM(BH55)=\"\", \"\", IF(VLOOKUP(BH55,'Footnotes list'!$D$9:$E$58,2,FALSE)=0,\"\",VLOOKUP(BH55,'Footnotes list'!$D$9:$E$58,2,FALSE) ) )","v":""},null,null,null,null,{"$f":"IF(TRIM(BM55)=\"\", \"\", IF(VLOOKUP(BM55,'Footnotes list'!$D$9:$E$58,2,FALSE)=0,\"\",VLOOKUP(BM55,'Footnotes list'!$D$9:$E$58,2,FALSE) ) )","v":""},null,null,null,null,{"$f":"IF(TRIM(BR55)=\"\", \"\", IF(VLOOKUP(BR55,'Footnotes list'!$D$9:$E$58,2,FALSE)=0,\"\",VLOOKUP(BR55,'Footnotes list'!$D$9:$E$58,2,FALSE) ) )","v":""},null,null,null,null,{"$f":"IF(TRIM(BW55)=\"\", \"\", IF(VLOOKUP(BW55,'Footnotes list'!$D$9:$E$58,2,FALSE)=0,\"\",VLOOKUP(BW55,'Footnotes list'!$D$9:$E$58,2,FALSE) ) )","v":""},null,null,null,null,{"$f":"IF(TRIM(CB55)=\"\", \"\", IF(VLOOKUP(CB55,'Footnotes list'!$D$9:$E$58,2,FALSE)=0,\"\",VLOOKUP(CB55,'Footnotes list'!$D$9:$E$58,2,FALSE) ) )","v":""},null,null,null,null,{"$f":"IF(TRIM(CG55)=\"\", \"\", IF(VLOOKUP(CG55,'Footnotes list'!$D$9:$E$58,2,FALSE)=0,\"\",VLOOKUP(CG55,'Footnotes list'!$D$9:$E$58,2,FALSE) ) )","v":""},null,null,null,null,{"$f":"IF(TRIM(CL55)=\"\", \"\", IF(VLOOKUP(CL55,'Footnotes list'!$D$9:$E$58,2,FALSE)=0,\"\",VLOOKUP(CL55,'Footnotes list'!$D$9:$E$58,2,FALSE) ) )","v":""},null,null,null,null,{"$f":"IF(TRIM(CQ55)=\"\", \"\", IF(VLOOKUP(CQ55,'Footnotes list'!$D$9:$E$58,2,FALSE)=0,\"\",VLOOKUP(CQ55,'Footnotes list'!$D$9:$E$58,2,FALSE) ) )","v":""},null,null,null,null,{"$f":"IF(TRIM(CV55)=\"\", \"\", IF(VLOOKUP(CV55,'Footnotes list'!$D$9:$E$58,2,FALSE)=0,\"\",VLOOKUP(CV55,'Footnotes list'!$D$9:$E$58,2,FALSE) ) )","v":""},null,null,null,null,{"$f":"IF(TRIM(DA55)=\"\", \"\", IF(VLOOKUP(DA55,'Footnotes list'!$D$9:$E$58,2,FALSE)=0,\"\",VLOOKUP(DA55,'Footnotes list'!$D$9:$E$58,2,FALSE) ) )","v":""},null,null,null,null,{"$f":"IF(TRIM(DF55)=\"\", \"\", IF(VLOOKUP(DF55,'Footnotes list'!$D$9:$E$58,2,FALSE)=0,\"\",VLOOKUP(DF55,'Footnotes list'!$D$9:$E$58,2,FALSE) ) )","v":""},null,null,null,null,{"$f":"IF(TRIM(DK55)=\"\", \"\", IF(VLOOKUP(DK55,'Footnotes list'!$D$9:$E$58,2,FALSE)=0,\"\",VLOOKUP(DK55,'Footnotes list'!$D$9:$E$58,2,FALSE) ) )","v":""},null,null,null,null,{"$f":"IF(TRIM(DP55)=\"\", \"\", IF(VLOOKUP(DP55,'Footnotes list'!$D$9:$E$58,2,FALSE)=0,\"\",VLOOKUP(DP55,'Footnotes list'!$D$9:$E$58,2,FALSE) ) )","v":""},null,null,null,null,{"$f":"IF(TRIM(DU55)=\"\", \"\", IF(VLOOKUP(DU55,'Footnotes list'!$D$9:$E$58,2,FALSE)=0,\"\",VLOOKUP(DU55,'Footnotes list'!$D$9:$E$58,2,FALSE) ) )","v":""},null,null,null,null,{"$f":"IF(TRIM(DZ55)=\"\", \"\", IF(VLOOKUP(DZ55,'Footnotes list'!$D$9:$E$58,2,FALSE)=0,\"\",VLOOKUP(DZ55,'Footnotes list'!$D$9:$E$58,2,FALSE) ) )","v":""},null,null,null,null,{"$f":"IF(TRIM(EE55)=\"\", \"\", IF(VLOOKUP(EE55,'Footnotes list'!$D$9:$E$58,2,FALSE)=0,\"\",VLOOKUP(EE55,'Footnotes list'!$D$9:$E$58,2,FALSE) ) )","v":""},null,null,null,null,{"$f":"IF(TRIM(EJ55)=\"\", \"\", IF(VLOOKUP(EJ55,'Footnotes list'!$D$9:$E$58,2,FALSE)=0,\"\",VLOOKUP(EJ55,'Footnotes list'!$D$9:$E$58,2,FALSE) ) )","v":""},null,null,null,null,{"$f":"IF(TRIM(EO55)=\"\", \"\", IF(VLOOKUP(EO55,'Footnotes list'!$D$9:$E$58,2,FALSE)=0,\"\",VLOOKUP(EO55,'Footnotes list'!$D$9:$E$58,2,FALSE) ) )","v":""},null,null,null,null,{"$f":"IF(TRIM(ET55)=\"\", \"\", IF(VLOOKUP(ET55,'Footnotes list'!$D$9:$E$58,2,FALSE)=0,\"\",VLOOKUP(ET55,'Footnotes list'!$D$9:$E$58,2,FALSE) ) )","v":""},null,null,null,null,{"$f":"IF(TRIM(EY55)=\"\", \"\", IF(VLOOKUP(EY55,'Footnotes list'!$D$9:$E$58,2,FALSE)=0,\"\",VLOOKUP(EY55,'Footnotes list'!$D$9:$E$58,2,FALSE) ) )","v":""}]
[null,null,"C31-C33","TOT_EGSS","Total C31 - C33 Manufacture of furniture; other manufacturing; repair and installation of machinery and equipment, including:",null,null,null,null,null,{"$f":"IF(TRIM(J56)=\"\", \"\", IF(VLOOKUP(J56,'Footnotes list'!$D$9:$E$58,2,FALSE)=0,\"\",VLOOKUP(J56,'Footnotes list'!$D$9:$E$58,2,FALSE) ) )","v":""},null,null,null,null,{"$f":"IF(TRIM(O56)=\"\", \"\", IF(VLOOKUP(O56,'Footnotes list'!$D$9:$E$58,2,FALSE)=0,\"\",VLOOKUP(O56,'Footnotes list'!$D$9:$E$58,2,FALSE) ) )","v":""},null,null,null,null,{"$f":"IF(TRIM(T56)=\"\", \"\", IF(VLOOKUP(T56,'Footnotes list'!$D$9:$E$58,2,FALSE)=0,\"\",VLOOKUP(T56,'Footnotes list'!$D$9:$E$58,2,FALSE) ) )","v":""},null,null,null,null,{"$f":"IF(TRIM(Y56)=\"\", \"\", IF(VLOOKUP(Y56,'Footnotes list'!$D$9:$E$58,2,FALSE)=0,\"\",VLOOKUP(Y56,'Footnotes list'!$D$9:$E$58,2,FALSE) ) )","v":""},null,null,null,null,{"$f":"IF(TRIM(AD56)=\"\", \"\", IF(VLOOKUP(AD56,'Footnotes list'!$D$9:$E$58,2,FALSE)=0,\"\",VLOOKUP(AD56,'Footnotes list'!$D$9:$E$58,2,FALSE) ) )","v":""},null,null,null,null,{"$f":"IF(TRIM(AI56)=\"\", \"\", IF(VLOOKUP(AI56,'Footnotes list'!$D$9:$E$58,2,FALSE)=0,\"\",VLOOKUP(AI56,'Footnotes list'!$D$9:$E$58,2,FALSE) ) )","v":""},null,null,null,null,{"$f":"IF(TRIM(AN56)=\"\", \"\", IF(VLOOKUP(AN56,'Footnotes list'!$D$9:$E$58,2,FALSE)=0,\"\",VLOOKUP(AN56,'Footnotes list'!$D$9:$E$58,2,FALSE) ) )","v":""},null,null,null,null,{"$f":"IF(TRIM(AS56)=\"\", \"\", IF(VLOOKUP(AS56,'Footnotes list'!$D$9:$E$58,2,FALSE)=0,\"\",VLOOKUP(AS56,'Footnotes list'!$D$9:$E$58,2,FALSE) ) )","v":""},null,null,null,null,{"$f":"IF(TRIM(AX56)=\"\", \"\", IF(VLOOKUP(AX56,'Footnotes list'!$D$9:$E$58,2,FALSE)=0,\"\",VLOOKUP(AX56,'Footnotes list'!$D$9:$E$58,2,FALSE) ) )","v":""},null,null,null,null,{"$f":"IF(TRIM(BC56)=\"\", \"\", IF(VLOOKUP(BC56,'Footnotes list'!$D$9:$E$58,2,FALSE)=0,\"\",VLOOKUP(BC56,'Footnotes list'!$D$9:$E$58,2,FALSE) ) )","v":""},null,null,null,null,{"$f":"IF(TRIM(BH56)=\"\", \"\", IF(VLOOKUP(BH56,'Footnotes list'!$D$9:$E$58,2,FALSE)=0,\"\",VLOOKUP(BH56,'Footnotes list'!$D$9:$E$58,2,FALSE) ) )","v":""},null,null,null,null,{"$f":"IF(TRIM(BM56)=\"\", \"\", IF(VLOOKUP(BM56,'Footnotes list'!$D$9:$E$58,2,FALSE)=0,\"\",VLOOKUP(BM56,'Footnotes list'!$D$9:$E$58,2,FALSE) ) )","v":""},null,null,null,null,{"$f":"IF(TRIM(BR56)=\"\", \"\", IF(VLOOKUP(BR56,'Footnotes list'!$D$9:$E$58,2,FALSE)=0,\"\",VLOOKUP(BR56,'Footnotes list'!$D$9:$E$58,2,FALSE) ) )","v":""},null,null,null,null,{"$f":"IF(TRIM(BW56)=\"\", \"\", IF(VLOOKUP(BW56,'Footnotes list'!$D$9:$E$58,2,FALSE)=0,\"\",VLOOKUP(BW56,'Footnotes list'!$D$9:$E$58,2,FALSE) ) )","v":""},null,null,null,null,{"$f":"IF(TRIM(CB56)=\"\", \"\", IF(VLOOKUP(CB56,'Footnotes list'!$D$9:$E$58,2,FALSE)=0,\"\",VLOOKUP(CB56,'Footnotes list'!$D$9:$E$58,2,FALSE) ) )","v":""},null,null,null,null,{"$f":"IF(TRIM(CG56)=\"\", \"\", IF(VLOOKUP(CG56,'Footnotes list'!$D$9:$E$58,2,FALSE)=0,\"\",VLOOKUP(CG56,'Footnotes list'!$D$9:$E$58,2,FALSE) ) )","v":""},null,null,null,null,{"$f":"IF(TRIM(CL56)=\"\", \"\", IF(VLOOKUP(CL56,'Footnotes list'!$D$9:$E$58,2,FALSE)=0,\"\",VLOOKUP(CL56,'Footnotes list'!$D$9:$E$58,2,FALSE) ) )","v":""},null,null,null,null,{"$f":"IF(TRIM(CQ56)=\"\", \"\", IF(VLOOKUP(CQ56,'Footnotes list'!$D$9:$E$58,2,FALSE)=0,\"\",VLOOKUP(CQ56,'Footnotes list'!$D$9:$E$58,2,FALSE) ) )","v":""},null,null,null,null,{"$f":"IF(TRIM(CV56)=\"\", \"\", IF(VLOOKUP(CV56,'Footnotes list'!$D$9:$E$58,2,FALSE)=0,\"\",VLOOKUP(CV56,'Footnotes list'!$D$9:$E$58,2,FALSE) ) )","v":""},null,null,null,null,{"$f":"IF(TRIM(DA56)=\"\", \"\", IF(VLOOKUP(DA56,'Footnotes list'!$D$9:$E$58,2,FALSE)=0,\"\",VLOOKUP(DA56,'Footnotes list'!$D$9:$E$58,2,FALSE) ) )","v":""},null,null,null,null,{"$f":"IF(TRIM(DF56)=\"\", \"\", IF(VLOOKUP(DF56,'Footnotes list'!$D$9:$E$58,2,FALSE)=0,\"\",VLOOKUP(DF56,'Footnotes list'!$D$9:$E$58,2,FALSE) ) )","v":""},null,null,null,null,{"$f":"IF(TRIM(DK56)=\"\", \"\", IF(VLOOKUP(DK56,'Footnotes list'!$D$9:$E$58,2,FALSE)=0,\"\",VLOOKUP(DK56,'Footnotes list'!$D$9:$E$58,2,FALSE) ) )","v":""},null,null,null,null,{"$f":"IF(TRIM(DP56)=\"\", \"\", IF(VLOOKUP(DP56,'Footnotes list'!$D$9:$E$58,2,FALSE)=0,\"\",VLOOKUP(DP56,'Footnotes list'!$D$9:$E$58,2,FALSE) ) )","v":""},null,null,null,null,{"$f":"IF(TRIM(DU56)=\"\", \"\", IF(VLOOKUP(DU56,'Footnotes list'!$D$9:$E$58,2,FALSE)=0,\"\",VLOOKUP(DU56,'Footnotes list'!$D$9:$E$58,2,FALSE) ) )","v":""},null,null,null,null,{"$f":"IF(TRIM(DZ56)=\"\", \"\", IF(VLOOKUP(DZ56,'Footnotes list'!$D$9:$E$58,2,FALSE)=0,\"\",VLOOKUP(DZ56,'Footnotes list'!$D$9:$E$58,2,FALSE) ) )","v":""},null,null,null,null,{"$f":"IF(TRIM(EE56)=\"\", \"\", IF(VLOOKUP(EE56,'Footnotes list'!$D$9:$E$58,2,FALSE)=0,\"\",VLOOKUP(EE56,'Footnotes list'!$D$9:$E$58,2,FALSE) ) )","v":""},null,null,null,null,{"$f":"IF(TRIM(EJ56)=\"\", \"\", IF(VLOOKUP(EJ56,'Footnotes list'!$D$9:$E$58,2,FALSE)=0,\"\",VLOOKUP(EJ56,'Footnotes list'!$D$9:$E$58,2,FALSE) ) )","v":""},null,null,null,null,{"$f":"IF(TRIM(EO56)=\"\", \"\", IF(VLOOKUP(EO56,'Footnotes list'!$D$9:$E$58,2,FALSE)=0,\"\",VLOOKUP(EO56,'Footnotes list'!$D$9:$E$58,2,FALSE) ) )","v":""},null,null,null,null,{"$f":"IF(TRIM(ET56)=\"\", \"\", IF(VLOOKUP(ET56,'Footnotes list'!$D$9:$E$58,2,FALSE)=0,\"\",VLOOKUP(ET56,'Footnotes list'!$D$9:$E$58,2,FALSE) ) )","v":""},null,null,null,null,{"$f":"IF(TRIM(EY56)=\"\", \"\", IF(VLOOKUP(EY56,'Footnotes list'!$D$9:$E$58,2,FALSE)=0,\"\",VLOOKUP(EY56,'Footnotes list'!$D$9:$E$58,2,FALSE) ) )","v":""}]
[null,null,"C31-C33","ES_CS","environmental specific services",null,null,null,null,null,{"$f":"IF(TRIM(J57)=\"\", \"\", IF(VLOOKUP(J57,'Footnotes list'!$D$9:$E$58,2,FALSE)=0,\"\",VLOOKUP(J57,'Footnotes list'!$D$9:$E$58,2,FALSE) ) )","v":""},null,null,null,null,{"$f":"IF(TRIM(O57)=\"\", \"\", IF(VLOOKUP(O57,'Footnotes list'!$D$9:$E$58,2,FALSE)=0,\"\",VLOOKUP(O57,'Footnotes list'!$D$9:$E$58,2,FALSE) ) )","v":""},null,null,null,null,{"$f":"IF(TRIM(T57)=\"\", \"\", IF(VLOOKUP(T57,'Footnotes list'!$D$9:$E$58,2,FALSE)=0,\"\",VLOOKUP(T57,'Footnotes list'!$D$9:$E$58,2,FALSE) ) )","v":""},null,null,null,null,{"$f":"IF(TRIM(Y57)=\"\", \"\", IF(VLOOKUP(Y57,'Footnotes list'!$D$9:$E$58,2,FALSE)=0,\"\",VLOOKUP(Y57,'Footnotes list'!$D$9:$E$58,2,FALSE) ) )","v":""},null,null,null,null,{"$f":"IF(TRIM(AD57)=\"\", \"\", IF(VLOOKUP(AD57,'Footnotes list'!$D$9:$E$58,2,FALSE)=0,\"\",VLOOKUP(AD57,'Footnotes list'!$D$9:$E$58,2,FALSE) ) )","v":""},null,null,null,null,{"$f":"IF(TRIM(AI57)=\"\", \"\", IF(VLOOKUP(AI57,'Footnotes list'!$D$9:$E$58,2,FALSE)=0,\"\",VLOOKUP(AI57,'Footnotes list'!$D$9:$E$58,2,FALSE) ) )","v":""},null,null,null,null,{"$f":"IF(TRIM(AN57)=\"\", \"\", IF(VLOOKUP(AN57,'Footnotes list'!$D$9:$E$58,2,FALSE)=0,\"\",VLOOKUP(AN57,'Footnotes list'!$D$9:$E$58,2,FALSE) ) )","v":""},null,null,null,null,{"$f":"IF(TRIM(AS57)=\"\", \"\", IF(VLOOKUP(AS57,'Footnotes list'!$D$9:$E$58,2,FALSE)=0,\"\",VLOOKUP(AS57,'Footnotes list'!$D$9:$E$58,2,FALSE) ) )","v":""},null,null,null,null,{"$f":"IF(TRIM(AX57)=\"\", \"\", IF(VLOOKUP(AX57,'Footnotes list'!$D$9:$E$58,2,FALSE)=0,\"\",VLOOKUP(AX57,'Footnotes list'!$D$9:$E$58,2,FALSE) ) )","v":""},null,null,null,null,{"$f":"IF(TRIM(BC57)=\"\", \"\", IF(VLOOKUP(BC57,'Footnotes list'!$D$9:$E$58,2,FALSE)=0,\"\",VLOOKUP(BC57,'Footnotes list'!$D$9:$E$58,2,FALSE) ) )","v":""},null,null,null,null,{"$f":"IF(TRIM(BH57)=\"\", \"\", IF(VLOOKUP(BH57,'Footnotes list'!$D$9:$E$58,2,FALSE)=0,\"\",VLOOKUP(BH57,'Footnotes list'!$D$9:$E$58,2,FALSE) ) )","v":""},null,null,null,null,{"$f":"IF(TRIM(BM57)=\"\", \"\", IF(VLOOKUP(BM57,'Footnotes list'!$D$9:$E$58,2,FALSE)=0,\"\",VLOOKUP(BM57,'Footnotes list'!$D$9:$E$58,2,FALSE) ) )","v":""},null,null,null,null,{"$f":"IF(TRIM(BR57)=\"\", \"\", IF(VLOOKUP(BR57,'Footnotes list'!$D$9:$E$58,2,FALSE)=0,\"\",VLOOKUP(BR57,'Footnotes list'!$D$9:$E$58,2,FALSE) ) )","v":""},null,null,null,null,{"$f":"IF(TRIM(BW57)=\"\", \"\", IF(VLOOKUP(BW57,'Footnotes list'!$D$9:$E$58,2,FALSE)=0,\"\",VLOOKUP(BW57,'Footnotes list'!$D$9:$E$58,2,FALSE) ) )","v":""},null,null,null,null,{"$f":"IF(TRIM(CB57)=\"\", \"\", IF(VLOOKUP(CB57,'Footnotes list'!$D$9:$E$58,2,FALSE)=0,\"\",VLOOKUP(CB57,'Footnotes list'!$D$9:$E$58,2,FALSE) ) )","v":""},null,null,null,null,{"$f":"IF(TRIM(CG57)=\"\", \"\", IF(VLOOKUP(CG57,'Footnotes list'!$D$9:$E$58,2,FALSE)=0,\"\",VLOOKUP(CG57,'Footnotes list'!$D$9:$E$58,2,FALSE) ) )","v":""},null,null,null,null,{"$f":"IF(TRIM(CL57)=\"\", \"\", IF(VLOOKUP(CL57,'Footnotes list'!$D$9:$E$58,2,FALSE)=0,\"\",VLOOKUP(CL57,'Footnotes list'!$D$9:$E$58,2,FALSE) ) )","v":""},null,null,null,null,{"$f":"IF(TRIM(CQ57)=\"\", \"\", IF(VLOOKUP(CQ57,'Footnotes list'!$D$9:$E$58,2,FALSE)=0,\"\",VLOOKUP(CQ57,'Footnotes list'!$D$9:$E$58,2,FALSE) ) )","v":""},null,null,null,null,{"$f":"IF(TRIM(CV57)=\"\", \"\", IF(VLOOKUP(CV57,'Footnotes list'!$D$9:$E$58,2,FALSE)=0,\"\",VLOOKUP(CV57,'Footnotes list'!$D$9:$E$58,2,FALSE) ) )","v":""},null,null,null,null,{"$f":"IF(TRIM(DA57)=\"\", \"\", IF(VLOOKUP(DA57,'Footnotes list'!$D$9:$E$58,2,FALSE)=0,\"\",VLOOKUP(DA57,'Footnotes list'!$D$9:$E$58,2,FALSE) ) )","v":""},null,null,null,null,{"$f":"IF(TRIM(DF57)=\"\", \"\", IF(VLOOKUP(DF57,'Footnotes list'!$D$9:$E$58,2,FALSE)=0,\"\",VLOOKUP(DF57,'Footnotes list'!$D$9:$E$58,2,FALSE) ) )","v":""},null,null,null,null,{"$f":"IF(TRIM(DK57)=\"\", \"\", IF(VLOOKUP(DK57,'Footnotes list'!$D$9:$E$58,2,FALSE)=0,\"\",VLOOKUP(DK57,'Footnotes list'!$D$9:$E$58,2,FALSE) ) )","v":""},null,null,null,null,{"$f":"IF(TRIM(DP57)=\"\", \"\", IF(VLOOKUP(DP57,'Footnotes list'!$D$9:$E$58,2,FALSE)=0,\"\",VLOOKUP(DP57,'Footnotes list'!$D$9:$E$58,2,FALSE) ) )","v":""},null,null,null,null,{"$f":"IF(TRIM(DU57)=\"\", \"\", IF(VLOOKUP(DU57,'Footnotes list'!$D$9:$E$58,2,FALSE)=0,\"\",VLOOKUP(DU57,'Footnotes list'!$D$9:$E$58,2,FALSE) ) )","v":""},null,null,null,null,{"$f":"IF(TRIM(DZ57)=\"\", \"\", IF(VLOOKUP(DZ57,'Footnotes list'!$D$9:$E$58,2,FALSE)=0,\"\",VLOOKUP(DZ57,'Footnotes list'!$D$9:$E$58,2,FALSE) ) )","v":""},null,null,null,null,{"$f":"IF(TRIM(EE57)=\"\", \"\", IF(VLOOKUP(EE57,'Footnotes list'!$D$9:$E$58,2,FALSE)=0,\"\",VLOOKUP(EE57,'Footnotes list'!$D$9:$E$58,2,FALSE) ) )","v":""},null,null,null,null,{"$f":"IF(TRIM(EJ57)=\"\", \"\", IF(VLOOKUP(EJ57,'Footnotes list'!$D$9:$E$58,2,FALSE)=0,\"\",VLOOKUP(EJ57,'Footnotes list'!$D$9:$E$58,2,FALSE) ) )","v":""},null,null,null,null,{"$f":"IF(TRIM(EO57)=\"\", \"\", IF(VLOOKUP(EO57,'Footnotes list'!$D$9:$E$58,2,FALSE)=0,\"\",VLOOKUP(EO57,'Footnotes list'!$D$9:$E$58,2,FALSE) ) )","v":""},null,null,null,null,{"$f":"IF(TRIM(ET57)=\"\", \"\", IF(VLOOKUP(ET57,'Footnotes list'!$D$9:$E$58,2,FALSE)=0,\"\",VLOOKUP(ET57,'Footnotes list'!$D$9:$E$58,2,FALSE) ) )","v":""},null,null,null,null,{"$f":"IF(TRIM(EY57)=\"\", \"\", IF(VLOOKUP(EY57,'Footnotes list'!$D$9:$E$58,2,FALSE)=0,\"\",VLOOKUP(EY57,'Footnotes list'!$D$9:$E$58,2,FALSE) ) )","v":""}]
[null,null,"C31-C33","C_REP","cleaner and resource efficient products",null,null,null,null,null,{"$f":"IF(TRIM(J58)=\"\", \"\", IF(VLOOKUP(J58,'Footnotes list'!$D$9:$E$58,2,FALSE)=0,\"\",VLOOKUP(J58,'Footnotes list'!$D$9:$E$58,2,FALSE) ) )","v":""},null,null,null,null,{"$f":"IF(TRIM(O58)=\"\", \"\", IF(VLOOKUP(O58,'Footnotes list'!$D$9:$E$58,2,FALSE)=0,\"\",VLOOKUP(O58,'Footnotes list'!$D$9:$E$58,2,FALSE) ) )","v":""},null,null,null,null,{"$f":"IF(TRIM(T58)=\"\", \"\", IF(VLOOKUP(T58,'Footnotes list'!$D$9:$E$58,2,FALSE)=0,\"\",VLOOKUP(T58,'Footnotes list'!$D$9:$E$58,2,FALSE) ) )","v":""},null,null,null,null,{"$f":"IF(TRIM(Y58)=\"\", \"\", IF(VLOOKUP(Y58,'Footnotes list'!$D$9:$E$58,2,FALSE)=0,\"\",VLOOKUP(Y58,'Footnotes list'!$D$9:$E$58,2,FALSE) ) )","v":""},null,null,null,null,{"$f":"IF(TRIM(AD58)=\"\", \"\", IF(VLOOKUP(AD58,'Footnotes list'!$D$9:$E$58,2,FALSE)=0,\"\",VLOOKUP(AD58,'Footnotes list'!$D$9:$E$58,2,FALSE) ) )","v":""},null,null,null,null,{"$f":"IF(TRIM(AI58)=\"\", \"\", IF(VLOOKUP(AI58,'Footnotes list'!$D$9:$E$58,2,FALSE)=0,\"\",VLOOKUP(AI58,'Footnotes list'!$D$9:$E$58,2,FALSE) ) )","v":""},null,null,null,null,{"$f":"IF(TRIM(AN58)=\"\", \"\", IF(VLOOKUP(AN58,'Footnotes list'!$D$9:$E$58,2,FALSE)=0,\"\",VLOOKUP(AN58,'Footnotes list'!$D$9:$E$58,2,FALSE) ) )","v":""},null,null,null,null,{"$f":"IF(TRIM(AS58)=\"\", \"\", IF(VLOOKUP(AS58,'Footnotes list'!$D$9:$E$58,2,FALSE)=0,\"\",VLOOKUP(AS58,'Footnotes list'!$D$9:$E$58,2,FALSE) ) )","v":""},null,null,null,null,{"$f":"IF(TRIM(AX58)=\"\", \"\", IF(VLOOKUP(AX58,'Footnotes list'!$D$9:$E$58,2,FALSE)=0,\"\",VLOOKUP(AX58,'Footnotes list'!$D$9:$E$58,2,FALSE) ) )","v":""},null,null,null,null,{"$f":"IF(TRIM(BC58)=\"\", \"\", IF(VLOOKUP(BC58,'Footnotes list'!$D$9:$E$58,2,FALSE)=0,\"\",VLOOKUP(BC58,'Footnotes list'!$D$9:$E$58,2,FALSE) ) )","v":""},null,null,null,null,{"$f":"IF(TRIM(BH58)=\"\", \"\", IF(VLOOKUP(BH58,'Footnotes list'!$D$9:$E$58,2,FALSE)=0,\"\",VLOOKUP(BH58,'Footnotes list'!$D$9:$E$58,2,FALSE) ) )","v":""},null,null,null,null,{"$f":"IF(TRIM(BM58)=\"\", \"\", IF(VLOOKUP(BM58,'Footnotes list'!$D$9:$E$58,2,FALSE)=0,\"\",VLOOKUP(BM58,'Footnotes list'!$D$9:$E$58,2,FALSE) ) )","v":""},null,null,null,null,{"$f":"IF(TRIM(BR58)=\"\", \"\", IF(VLOOKUP(BR58,'Footnotes list'!$D$9:$E$58,2,FALSE)=0,\"\",VLOOKUP(BR58,'Footnotes list'!$D$9:$E$58,2,FALSE) ) )","v":""},null,null,null,null,{"$f":"IF(TRIM(BW58)=\"\", \"\", IF(VLOOKUP(BW58,'Footnotes list'!$D$9:$E$58,2,FALSE)=0,\"\",VLOOKUP(BW58,'Footnotes list'!$D$9:$E$58,2,FALSE) ) )","v":""},null,null,null,null,{"$f":"IF(TRIM(CB58)=\"\", \"\", IF(VLOOKUP(CB58,'Footnotes list'!$D$9:$E$58,2,FALSE)=0,\"\",VLOOKUP(CB58,'Footnotes list'!$D$9:$E$58,2,FALSE) ) )","v":""},null,null,null,null,{"$f":"IF(TRIM(CG58)=\"\", \"\", IF(VLOOKUP(CG58,'Footnotes list'!$D$9:$E$58,2,FALSE)=0,\"\",VLOOKUP(CG58,'Footnotes list'!$D$9:$E$58,2,FALSE) ) )","v":""},null,null,null,null,{"$f":"IF(TRIM(CL58)=\"\", \"\", IF(VLOOKUP(CL58,'Footnotes list'!$D$9:$E$58,2,FALSE)=0,\"\",VLOOKUP(CL58,'Footnotes list'!$D$9:$E$58,2,FALSE) ) )","v":""},null,null,null,null,{"$f":"IF(TRIM(CQ58)=\"\", \"\", IF(VLOOKUP(CQ58,'Footnotes list'!$D$9:$E$58,2,FALSE)=0,\"\",VLOOKUP(CQ58,'Footnotes list'!$D$9:$E$58,2,FALSE) ) )","v":""},null,null,null,null,{"$f":"IF(TRIM(CV58)=\"\", \"\", IF(VLOOKUP(CV58,'Footnotes list'!$D$9:$E$58,2,FALSE)=0,\"\",VLOOKUP(CV58,'Footnotes list'!$D$9:$E$58,2,FALSE) ) )","v":""},null,null,null,null,{"$f":"IF(TRIM(DA58)=\"\", \"\", IF(VLOOKUP(DA58,'Footnotes list'!$D$9:$E$58,2,FALSE)=0,\"\",VLOOKUP(DA58,'Footnotes list'!$D$9:$E$58,2,FALSE) ) )","v":""},null,null,null,null,{"$f":"IF(TRIM(DF58)=\"\", \"\", IF(VLOOKUP(DF58,'Footnotes list'!$D$9:$E$58,2,FALSE)=0,\"\",VLOOKUP(DF58,'Footnotes list'!$D$9:$E$58,2,FALSE) ) )","v":""},null,null,null,null,{"$f":"IF(TRIM(DK58)=\"\", \"\", IF(VLOOKUP(DK58,'Footnotes list'!$D$9:$E$58,2,FALSE)=0,\"\",VLOOKUP(DK58,'Footnotes list'!$D$9:$E$58,2,FALSE) ) )","v":""},null,null,null,null,{"$f":"IF(TRIM(DP58)=\"\", \"\", IF(VLOOKUP(DP58,'Footnotes list'!$D$9:$E$58,2,FALSE)=0,\"\",VLOOKUP(DP58,'Footnotes list'!$D$9:$E$58,2,FALSE) ) )","v":""},null,null,null,null,{"$f":"IF(TRIM(DU58)=\"\", \"\", IF(VLOOKUP(DU58,'Footnotes list'!$D$9:$E$58,2,FALSE)=0,\"\",VLOOKUP(DU58,'Footnotes list'!$D$9:$E$58,2,FALSE) ) )","v":""},null,null,null,null,{"$f":"IF(TRIM(DZ58)=\"\", \"\", IF(VLOOKUP(DZ58,'Footnotes list'!$D$9:$E$58,2,FALSE)=0,\"\",VLOOKUP(DZ58,'Footnotes list'!$D$9:$E$58,2,FALSE) ) )","v":""},null,null,null,null,{"$f":"IF(TRIM(EE58)=\"\", \"\", IF(VLOOKUP(EE58,'Footnotes list'!$D$9:$E$58,2,FALSE)=0,\"\",VLOOKUP(EE58,'Footnotes list'!$D$9:$E$58,2,FALSE) ) )","v":""},null,null,null,null,{"$f":"IF(TRIM(EJ58)=\"\", \"\", IF(VLOOKUP(EJ58,'Footnotes list'!$D$9:$E$58,2,FALSE)=0,\"\",VLOOKUP(EJ58,'Footnotes list'!$D$9:$E$58,2,FALSE) ) )","v":""},null,null,null,null,{"$f":"IF(TRIM(EO58)=\"\", \"\", IF(VLOOKUP(EO58,'Footnotes list'!$D$9:$E$58,2,FALSE)=0,\"\",VLOOKUP(EO58,'Footnotes list'!$D$9:$E$58,2,FALSE) ) )","v":""},null,null,null,null,{"$f":"IF(TRIM(ET58)=\"\", \"\", IF(VLOOKUP(ET58,'Footnotes list'!$D$9:$E$58,2,FALSE)=0,\"\",VLOOKUP(ET58,'Footnotes list'!$D$9:$E$58,2,FALSE) ) )","v":""},null,null,null,null,{"$f":"IF(TRIM(EY58)=\"\", \"\", IF(VLOOKUP(EY58,'Footnotes list'!$D$9:$E$58,2,FALSE)=0,\"\",VLOOKUP(EY58,'Footnotes list'!$D$9:$E$58,2,FALSE) ) )","v":""}]
[null,null,"D","TOT_EGSS","Total D - Electricity, gas, steam and air conditioning supply, including:",null,null,null,null,null,{"$f":"IF(TRIM(J59)=\"\", \"\", IF(VLOOKUP(J59,'Footnotes list'!$D$9:$E$58,2,FALSE)=0,\"\",VLOOKUP(J59,'Footnotes list'!$D$9:$E$58,2,FALSE) ) )","v":""},null,null,null,null,{"$f":"IF(TRIM(O59)=\"\", \"\", IF(VLOOKUP(O59,'Footnotes list'!$D$9:$E$58,2,FALSE)=0,\"\",VLOOKUP(O59,'Footnotes list'!$D$9:$E$58,2,FALSE) ) )","v":""},null,null,null,null,{"$f":"IF(TRIM(T59)=\"\", \"\", IF(VLOOKUP(T59,'Footnotes list'!$D$9:$E$58,2,FALSE)=0,\"\",VLOOKUP(T59,'Footnotes list'!$D$9:$E$58,2,FALSE) ) )","v":""},null,null,null,null,{"$f":"IF(TRIM(Y59)=\"\", \"\", IF(VLOOKUP(Y59,'Footnotes list'!$D$9:$E$58,2,FALSE)=0,\"\",VLOOKUP(Y59,'Footnotes list'!$D$9:$E$58,2,FALSE) ) )","v":""},null,null,null,null,{"$f":"IF(TRIM(AD59)=\"\", \"\", IF(VLOOKUP(AD59,'Footnotes list'!$D$9:$E$58,2,FALSE)=0,\"\",VLOOKUP(AD59,'Footnotes list'!$D$9:$E$58,2,FALSE) ) )","v":""},null,null,null,null,{"$f":"IF(TRIM(AI59)=\"\", \"\", IF(VLOOKUP(AI59,'Footnotes list'!$D$9:$E$58,2,FALSE)=0,\"\",VLOOKUP(AI59,'Footnotes list'!$D$9:$E$58,2,FALSE) ) )","v":""},null,null,null,null,{"$f":"IF(TRIM(AN59)=\"\", \"\", IF(VLOOKUP(AN59,'Footnotes list'!$D$9:$E$58,2,FALSE)=0,\"\",VLOOKUP(AN59,'Footnotes list'!$D$9:$E$58,2,FALSE) ) )","v":""},null,null,null,null,{"$f":"IF(TRIM(AS59)=\"\", \"\", IF(VLOOKUP(AS59,'Footnotes list'!$D$9:$E$58,2,FALSE)=0,\"\",VLOOKUP(AS59,'Footnotes list'!$D$9:$E$58,2,FALSE) ) )","v":""},null,null,null,null,{"$f":"IF(TRIM(AX59)=\"\", \"\", IF(VLOOKUP(AX59,'Footnotes list'!$D$9:$E$58,2,FALSE)=0,\"\",VLOOKUP(AX59,'Footnotes list'!$D$9:$E$58,2,FALSE) ) )","v":""},null,null,null,null,{"$f":"IF(TRIM(BC59)=\"\", \"\", IF(VLOOKUP(BC59,'Footnotes list'!$D$9:$E$58,2,FALSE)=0,\"\",VLOOKUP(BC59,'Footnotes list'!$D$9:$E$58,2,FALSE) ) )","v":""},null,null,null,null,{"$f":"IF(TRIM(BH59)=\"\", \"\", IF(VLOOKUP(BH59,'Footnotes list'!$D$9:$E$58,2,FALSE)=0,\"\",VLOOKUP(BH59,'Footnotes list'!$D$9:$E$58,2,FALSE) ) )","v":""},null,null,null,null,{"$f":"IF(TRIM(BM59)=\"\", \"\", IF(VLOOKUP(BM59,'Footnotes list'!$D$9:$E$58,2,FALSE)=0,\"\",VLOOKUP(BM59,'Footnotes list'!$D$9:$E$58,2,FALSE) ) )","v":""},null,null,null,null,{"$f":"IF(TRIM(BR59)=\"\", \"\", IF(VLOOKUP(BR59,'Footnotes list'!$D$9:$E$58,2,FALSE)=0,\"\",VLOOKUP(BR59,'Footnotes list'!$D$9:$E$58,2,FALSE) ) )","v":""},null,null,null,null,{"$f":"IF(TRIM(BW59)=\"\", \"\", IF(VLOOKUP(BW59,'Footnotes list'!$D$9:$E$58,2,FALSE)=0,\"\",VLOOKUP(BW59,'Footnotes list'!$D$9:$E$58,2,FALSE) ) )","v":""},null,null,null,null,{"$f":"IF(TRIM(CB59)=\"\", \"\", IF(VLOOKUP(CB59,'Footnotes list'!$D$9:$E$58,2,FALSE)=0,\"\",VLOOKUP(CB59,'Footnotes list'!$D$9:$E$58,2,FALSE) ) )","v":""},null,null,null,null,{"$f":"IF(TRIM(CG59)=\"\", \"\", IF(VLOOKUP(CG59,'Footnotes list'!$D$9:$E$58,2,FALSE)=0,\"\",VLOOKUP(CG59,'Footnotes list'!$D$9:$E$58,2,FALSE) ) )","v":""},null,null,null,null,{"$f":"IF(TRIM(CL59)=\"\", \"\", IF(VLOOKUP(CL59,'Footnotes list'!$D$9:$E$58,2,FALSE)=0,\"\",VLOOKUP(CL59,'Footnotes list'!$D$9:$E$58,2,FALSE) ) )","v":""},null,null,null,null,{"$f":"IF(TRIM(CQ59)=\"\", \"\", IF(VLOOKUP(CQ59,'Footnotes list'!$D$9:$E$58,2,FALSE)=0,\"\",VLOOKUP(CQ59,'Footnotes list'!$D$9:$E$58,2,FALSE) ) )","v":""},null,null,null,null,{"$f":"IF(TRIM(CV59)=\"\", \"\", IF(VLOOKUP(CV59,'Footnotes list'!$D$9:$E$58,2,FALSE)=0,\"\",VLOOKUP(CV59,'Footnotes list'!$D$9:$E$58,2,FALSE) ) )","v":""},null,null,null,null,{"$f":"IF(TRIM(DA59)=\"\", \"\", IF(VLOOKUP(DA59,'Footnotes list'!$D$9:$E$58,2,FALSE)=0,\"\",VLOOKUP(DA59,'Footnotes list'!$D$9:$E$58,2,FALSE) ) )","v":""},null,null,null,null,{"$f":"IF(TRIM(DF59)=\"\", \"\", IF(VLOOKUP(DF59,'Footnotes list'!$D$9:$E$58,2,FALSE)=0,\"\",VLOOKUP(DF59,'Footnotes list'!$D$9:$E$58,2,FALSE) ) )","v":""},null,null,null,null,{"$f":"IF(TRIM(DK59)=\"\", \"\", IF(VLOOKUP(DK59,'Footnotes list'!$D$9:$E$58,2,FALSE)=0,\"\",VLOOKUP(DK59,'Footnotes list'!$D$9:$E$58,2,FALSE) ) )","v":""},null,null,null,null,{"$f":"IF(TRIM(DP59)=\"\", \"\", IF(VLOOKUP(DP59,'Footnotes list'!$D$9:$E$58,2,FALSE)=0,\"\",VLOOKUP(DP59,'Footnotes list'!$D$9:$E$58,2,FALSE) ) )","v":""},null,null,null,null,{"$f":"IF(TRIM(DU59)=\"\", \"\", IF(VLOOKUP(DU59,'Footnotes list'!$D$9:$E$58,2,FALSE)=0,\"\",VLOOKUP(DU59,'Footnotes list'!$D$9:$E$58,2,FALSE) ) )","v":""},null,null,null,null,{"$f":"IF(TRIM(DZ59)=\"\", \"\", IF(VLOOKUP(DZ59,'Footnotes list'!$D$9:$E$58,2,FALSE)=0,\"\",VLOOKUP(DZ59,'Footnotes list'!$D$9:$E$58,2,FALSE) ) )","v":""},null,null,null,null,{"$f":"IF(TRIM(EE59)=\"\", \"\", IF(VLOOKUP(EE59,'Footnotes list'!$D$9:$E$58,2,FALSE)=0,\"\",VLOOKUP(EE59,'Footnotes list'!$D$9:$E$58,2,FALSE) ) )","v":""},null,null,null,null,{"$f":"IF(TRIM(EJ59)=\"\", \"\", IF(VLOOKUP(EJ59,'Footnotes list'!$D$9:$E$58,2,FALSE)=0,\"\",VLOOKUP(EJ59,'Footnotes list'!$D$9:$E$58,2,FALSE) ) )","v":""},null,null,null,null,{"$f":"IF(TRIM(EO59)=\"\", \"\", IF(VLOOKUP(EO59,'Footnotes list'!$D$9:$E$58,2,FALSE)=0,\"\",VLOOKUP(EO59,'Footnotes list'!$D$9:$E$58,2,FALSE) ) )","v":""},null,null,null,null,{"$f":"IF(TRIM(ET59)=\"\", \"\", IF(VLOOKUP(ET59,'Footnotes list'!$D$9:$E$58,2,FALSE)=0,\"\",VLOOKUP(ET59,'Footnotes list'!$D$9:$E$58,2,FALSE) ) )","v":""},null,null,null,null,{"$f":"IF(TRIM(EY59)=\"\", \"\", IF(VLOOKUP(EY59,'Footnotes list'!$D$9:$E$58,2,FALSE)=0,\"\",VLOOKUP(EY59,'Footnotes list'!$D$9:$E$58,2,FALSE) ) )","v":""}]
[null,null,"D","ES_CS","environmental specific services",null,null,null,null,null,{"$f":"IF(TRIM(J60)=\"\", \"\", IF(VLOOKUP(J60,'Footnotes list'!$D$9:$E$58,2,FALSE)=0,\"\",VLOOKUP(J60,'Footnotes list'!$D$9:$E$58,2,FALSE) ) )","v":""},null,null,null,null,{"$f":"IF(TRIM(O60)=\"\", \"\", IF(VLOOKUP(O60,'Footnotes list'!$D$9:$E$58,2,FALSE)=0,\"\",VLOOKUP(O60,'Footnotes list'!$D$9:$E$58,2,FALSE) ) )","v":""},null,null,null,null,{"$f":"IF(TRIM(T60)=\"\", \"\", IF(VLOOKUP(T60,'Footnotes list'!$D$9:$E$58,2,FALSE)=0,\"\",VLOOKUP(T60,'Footnotes list'!$D$9:$E$58,2,FALSE) ) )","v":""},null,null,null,null,{"$f":"IF(TRIM(Y60)=\"\", \"\", IF(VLOOKUP(Y60,'Footnotes list'!$D$9:$E$58,2,FALSE)=0,\"\",VLOOKUP(Y60,'Footnotes list'!$D$9:$E$58,2,FALSE) ) )","v":""},null,null,null,null,{"$f":"IF(TRIM(AD60)=\"\", \"\", IF(VLOOKUP(AD60,'Footnotes list'!$D$9:$E$58,2,FALSE)=0,\"\",VLOOKUP(AD60,'Footnotes list'!$D$9:$E$58,2,FALSE) ) )","v":""},null,null,null,null,{"$f":"IF(TRIM(AI60)=\"\", \"\", IF(VLOOKUP(AI60,'Footnotes list'!$D$9:$E$58,2,FALSE)=0,\"\",VLOOKUP(AI60,'Footnotes list'!$D$9:$E$58,2,FALSE) ) )","v":""},null,null,null,null,{"$f":"IF(TRIM(AN60)=\"\", \"\", IF(VLOOKUP(AN60,'Footnotes list'!$D$9:$E$58,2,FALSE)=0,\"\",VLOOKUP(AN60,'Footnotes list'!$D$9:$E$58,2,FALSE) ) )","v":""},null,null,null,null,{"$f":"IF(TRIM(AS60)=\"\", \"\", IF(VLOOKUP(AS60,'Footnotes list'!$D$9:$E$58,2,FALSE)=0,\"\",VLOOKUP(AS60,'Footnotes list'!$D$9:$E$58,2,FALSE) ) )","v":""},null,null,null,null,{"$f":"IF(TRIM(AX60)=\"\", \"\", IF(VLOOKUP(AX60,'Footnotes list'!$D$9:$E$58,2,FALSE)=0,\"\",VLOOKUP(AX60,'Footnotes list'!$D$9:$E$58,2,FALSE) ) )","v":""},null,null,null,null,{"$f":"IF(TRIM(BC60)=\"\", \"\", IF(VLOOKUP(BC60,'Footnotes list'!$D$9:$E$58,2,FALSE)=0,\"\",VLOOKUP(BC60,'Footnotes list'!$D$9:$E$58,2,FALSE) ) )","v":""},null,null,null,null,{"$f":"IF(TRIM(BH60)=\"\", \"\", IF(VLOOKUP(BH60,'Footnotes list'!$D$9:$E$58,2,FALSE)=0,\"\",VLOOKUP(BH60,'Footnotes list'!$D$9:$E$58,2,FALSE) ) )","v":""},null,null,null,null,{"$f":"IF(TRIM(BM60)=\"\", \"\", IF(VLOOKUP(BM60,'Footnotes list'!$D$9:$E$58,2,FALSE)=0,\"\",VLOOKUP(BM60,'Footnotes list'!$D$9:$E$58,2,FALSE) ) )","v":""},null,null,null,null,{"$f":"IF(TRIM(BR60)=\"\", \"\", IF(VLOOKUP(BR60,'Footnotes list'!$D$9:$E$58,2,FALSE)=0,\"\",VLOOKUP(BR60,'Footnotes list'!$D$9:$E$58,2,FALSE) ) )","v":""},null,null,null,null,{"$f":"IF(TRIM(BW60)=\"\", \"\", IF(VLOOKUP(BW60,'Footnotes list'!$D$9:$E$58,2,FALSE)=0,\"\",VLOOKUP(BW60,'Footnotes list'!$D$9:$E$58,2,FALSE) ) )","v":""},null,null,null,null,{"$f":"IF(TRIM(CB60)=\"\", \"\", IF(VLOOKUP(CB60,'Footnotes list'!$D$9:$E$58,2,FALSE)=0,\"\",VLOOKUP(CB60,'Footnotes list'!$D$9:$E$58,2,FALSE) ) )","v":""},null,null,null,null,{"$f":"IF(TRIM(CG60)=\"\", \"\", IF(VLOOKUP(CG60,'Footnotes list'!$D$9:$E$58,2,FALSE)=0,\"\",VLOOKUP(CG60,'Footnotes list'!$D$9:$E$58,2,FALSE) ) )","v":""},null,null,null,null,{"$f":"IF(TRIM(CL60)=\"\", \"\", IF(VLOOKUP(CL60,'Footnotes list'!$D$9:$E$58,2,FALSE)=0,\"\",VLOOKUP(CL60,'Footnotes list'!$D$9:$E$58,2,FALSE) ) )","v":""},null,null,null,null,{"$f":"IF(TRIM(CQ60)=\"\", \"\", IF(VLOOKUP(CQ60,'Footnotes list'!$D$9:$E$58,2,FALSE)=0,\"\",VLOOKUP(CQ60,'Footnotes list'!$D$9:$E$58,2,FALSE) ) )","v":""},null,null,null,null,{"$f":"IF(TRIM(CV60)=\"\", \"\", IF(VLOOKUP(CV60,'Footnotes list'!$D$9:$E$58,2,FALSE)=0,\"\",VLOOKUP(CV60,'Footnotes list'!$D$9:$E$58,2,FALSE) ) )","v":""},null,null,null,null,{"$f":"IF(TRIM(DA60)=\"\", \"\", IF(VLOOKUP(DA60,'Footnotes list'!$D$9:$E$58,2,FALSE)=0,\"\",VLOOKUP(DA60,'Footnotes list'!$D$9:$E$58,2,FALSE) ) )","v":""},null,null,null,null,{"$f":"IF(TRIM(DF60)=\"\", \"\", IF(VLOOKUP(DF60,'Footnotes list'!$D$9:$E$58,2,FALSE)=0,\"\",VLOOKUP(DF60,'Footnotes list'!$D$9:$E$58,2,FALSE) ) )","v":""},null,null,null,null,{"$f":"IF(TRIM(DK60)=\"\", \"\", IF(VLOOKUP(DK60,'Footnotes list'!$D$9:$E$58,2,FALSE)=0,\"\",VLOOKUP(DK60,'Footnotes list'!$D$9:$E$58,2,FALSE) ) )","v":""},null,null,null,null,{"$f":"IF(TRIM(DP60)=\"\", \"\", IF(VLOOKUP(DP60,'Footnotes list'!$D$9:$E$58,2,FALSE)=0,\"\",VLOOKUP(DP60,'Footnotes list'!$D$9:$E$58,2,FALSE) ) )","v":""},null,null,null,null,{"$f":"IF(TRIM(DU60)=\"\", \"\", IF(VLOOKUP(DU60,'Footnotes list'!$D$9:$E$58,2,FALSE)=0,\"\",VLOOKUP(DU60,'Footnotes list'!$D$9:$E$58,2,FALSE) ) )","v":""},null,null,null,null,{"$f":"IF(TRIM(DZ60)=\"\", \"\", IF(VLOOKUP(DZ60,'Footnotes list'!$D$9:$E$58,2,FALSE)=0,\"\",VLOOKUP(DZ60,'Footnotes list'!$D$9:$E$58,2,FALSE) ) )","v":""},null,null,null,null,{"$f":"IF(TRIM(EE60)=\"\", \"\", IF(VLOOKUP(EE60,'Footnotes list'!$D$9:$E$58,2,FALSE)=0,\"\",VLOOKUP(EE60,'Footnotes list'!$D$9:$E$58,2,FALSE) ) )","v":""},null,null,null,null,{"$f":"IF(TRIM(EJ60)=\"\", \"\", IF(VLOOKUP(EJ60,'Footnotes list'!$D$9:$E$58,2,FALSE)=0,\"\",VLOOKUP(EJ60,'Footnotes list'!$D$9:$E$58,2,FALSE) ) )","v":""},null,null,null,null,{"$f":"IF(TRIM(EO60)=\"\", \"\", IF(VLOOKUP(EO60,'Footnotes list'!$D$9:$E$58,2,FALSE)=0,\"\",VLOOKUP(EO60,'Footnotes list'!$D$9:$E$58,2,FALSE) ) )","v":""},null,null,null,null,{"$f":"IF(TRIM(ET60)=\"\", \"\", IF(VLOOKUP(ET60,'Footnotes list'!$D$9:$E$58,2,FALSE)=0,\"\",VLOOKUP(ET60,'Footnotes list'!$D$9:$E$58,2,FALSE) ) )","v":""},null,null,null,null,{"$f":"IF(TRIM(EY60)=\"\", \"\", IF(VLOOKUP(EY60,'Footnotes list'!$D$9:$E$58,2,FALSE)=0,\"\",VLOOKUP(EY60,'Footnotes list'!$D$9:$E$58,2,FALSE) ) )","v":""}]
[null,null,"D","C_REP","cleaner and resource efficient products",null,null,null,null,null,{"$f":"IF(TRIM(J61)=\"\", \"\", IF(VLOOKUP(J61,'Footnotes list'!$D$9:$E$58,2,FALSE)=0,\"\",VLOOKUP(J61,'Footnotes list'!$D$9:$E$58,2,FALSE) ) )","v":""},null,null,null,null,{"$f":"IF(TRIM(O61)=\"\", \"\", IF(VLOOKUP(O61,'Footnotes list'!$D$9:$E$58,2,FALSE)=0,\"\",VLOOKUP(O61,'Footnotes list'!$D$9:$E$58,2,FALSE) ) )","v":""},null,null,null,null,{"$f":"IF(TRIM(T61)=\"\", \"\", IF(VLOOKUP(T61,'Footnotes list'!$D$9:$E$58,2,FALSE)=0,\"\",VLOOKUP(T61,'Footnotes list'!$D$9:$E$58,2,FALSE) ) )","v":""},null,null,null,null,{"$f":"IF(TRIM(Y61)=\"\", \"\", IF(VLOOKUP(Y61,'Footnotes list'!$D$9:$E$58,2,FALSE)=0,\"\",VLOOKUP(Y61,'Footnotes list'!$D$9:$E$58,2,FALSE) ) )","v":""},null,null,null,null,{"$f":"IF(TRIM(AD61)=\"\", \"\", IF(VLOOKUP(AD61,'Footnotes list'!$D$9:$E$58,2,FALSE)=0,\"\",VLOOKUP(AD61,'Footnotes list'!$D$9:$E$58,2,FALSE) ) )","v":""},null,null,null,null,{"$f":"IF(TRIM(AI61)=\"\", \"\", IF(VLOOKUP(AI61,'Footnotes list'!$D$9:$E$58,2,FALSE)=0,\"\",VLOOKUP(AI61,'Footnotes list'!$D$9:$E$58,2,FALSE) ) )","v":""},null,null,null,null,{"$f":"IF(TRIM(AN61)=\"\", \"\", IF(VLOOKUP(AN61,'Footnotes list'!$D$9:$E$58,2,FALSE)=0,\"\",VLOOKUP(AN61,'Footnotes list'!$D$9:$E$58,2,FALSE) ) )","v":""},null,null,null,null,{"$f":"IF(TRIM(AS61)=\"\", \"\", IF(VLOOKUP(AS61,'Footnotes list'!$D$9:$E$58,2,FALSE)=0,\"\",VLOOKUP(AS61,'Footnotes list'!$D$9:$E$58,2,FALSE) ) )","v":""},null,null,null,null,{"$f":"IF(TRIM(AX61)=\"\", \"\", IF(VLOOKUP(AX61,'Footnotes list'!$D$9:$E$58,2,FALSE)=0,\"\",VLOOKUP(AX61,'Footnotes list'!$D$9:$E$58,2,FALSE) ) )","v":""},null,null,null,null,{"$f":"IF(TRIM(BC61)=\"\", \"\", IF(VLOOKUP(BC61,'Footnotes list'!$D$9:$E$58,2,FALSE)=0,\"\",VLOOKUP(BC61,'Footnotes list'!$D$9:$E$58,2,FALSE) ) )","v":""},null,null,null,null,{"$f":"IF(TRIM(BH61)=\"\", \"\", IF(VLOOKUP(BH61,'Footnotes list'!$D$9:$E$58,2,FALSE)=0,\"\",VLOOKUP(BH61,'Footnotes list'!$D$9:$E$58,2,FALSE) ) )","v":""},null,null,null,null,{"$f":"IF(TRIM(BM61)=\"\", \"\", IF(VLOOKUP(BM61,'Footnotes list'!$D$9:$E$58,2,FALSE)=0,\"\",VLOOKUP(BM61,'Footnotes list'!$D$9:$E$58,2,FALSE) ) )","v":""},null,null,null,null,{"$f":"IF(TRIM(BR61)=\"\", \"\", IF(VLOOKUP(BR61,'Footnotes list'!$D$9:$E$58,2,FALSE)=0,\"\",VLOOKUP(BR61,'Footnotes list'!$D$9:$E$58,2,FALSE) ) )","v":""},null,null,null,null,{"$f":"IF(TRIM(BW61)=\"\", \"\", IF(VLOOKUP(BW61,'Footnotes list'!$D$9:$E$58,2,FALSE)=0,\"\",VLOOKUP(BW61,'Footnotes list'!$D$9:$E$58,2,FALSE) ) )","v":""},null,null,null,null,{"$f":"IF(TRIM(CB61)=\"\", \"\", IF(VLOOKUP(CB61,'Footnotes list'!$D$9:$E$58,2,FALSE)=0,\"\",VLOOKUP(CB61,'Footnotes list'!$D$9:$E$58,2,FALSE) ) )","v":""},null,null,null,null,{"$f":"IF(TRIM(CG61)=\"\", \"\", IF(VLOOKUP(CG61,'Footnotes list'!$D$9:$E$58,2,FALSE)=0,\"\",VLOOKUP(CG61,'Footnotes list'!$D$9:$E$58,2,FALSE) ) )","v":""},null,null,null,null,{"$f":"IF(TRIM(CL61)=\"\", \"\", IF(VLOOKUP(CL61,'Footnotes list'!$D$9:$E$58,2,FALSE)=0,\"\",VLOOKUP(CL61,'Footnotes list'!$D$9:$E$58,2,FALSE) ) )","v":""},null,null,null,null,{"$f":"IF(TRIM(CQ61)=\"\", \"\", IF(VLOOKUP(CQ61,'Footnotes list'!$D$9:$E$58,2,FALSE)=0,\"\",VLOOKUP(CQ61,'Footnotes list'!$D$9:$E$58,2,FALSE) ) )","v":""},null,null,null,null,{"$f":"IF(TRIM(CV61)=\"\", \"\", IF(VLOOKUP(CV61,'Footnotes list'!$D$9:$E$58,2,FALSE)=0,\"\",VLOOKUP(CV61,'Footnotes list'!$D$9:$E$58,2,FALSE) ) )","v":""},null,null,null,null,{"$f":"IF(TRIM(DA61)=\"\", \"\", IF(VLOOKUP(DA61,'Footnotes list'!$D$9:$E$58,2,FALSE)=0,\"\",VLOOKUP(DA61,'Footnotes list'!$D$9:$E$58,2,FALSE) ) )","v":""},null,null,null,null,{"$f":"IF(TRIM(DF61)=\"\", \"\", IF(VLOOKUP(DF61,'Footnotes list'!$D$9:$E$58,2,FALSE)=0,\"\",VLOOKUP(DF61,'Footnotes list'!$D$9:$E$58,2,FALSE) ) )","v":""},null,null,null,null,{"$f":"IF(TRIM(DK61)=\"\", \"\", IF(VLOOKUP(DK61,'Footnotes list'!$D$9:$E$58,2,FALSE)=0,\"\",VLOOKUP(DK61,'Footnotes list'!$D$9:$E$58,2,FALSE) ) )","v":""},null,null,null,null,{"$f":"IF(TRIM(DP61)=\"\", \"\", IF(VLOOKUP(DP61,'Footnotes list'!$D$9:$E$58,2,FALSE)=0,\"\",VLOOKUP(DP61,'Footnotes list'!$D$9:$E$58,2,FALSE) ) )","v":""},null,null,null,null,{"$f":"IF(TRIM(DU61)=\"\", \"\", IF(VLOOKUP(DU61,'Footnotes list'!$D$9:$E$58,2,FALSE)=0,\"\",VLOOKUP(DU61,'Footnotes list'!$D$9:$E$58,2,FALSE) ) )","v":""},null,null,null,null,{"$f":"IF(TRIM(DZ61)=\"\", \"\", IF(VLOOKUP(DZ61,'Footnotes list'!$D$9:$E$58,2,FALSE)=0,\"\",VLOOKUP(DZ61,'Footnotes list'!$D$9:$E$58,2,FALSE) ) )","v":""},null,null,null,null,{"$f":"IF(TRIM(EE61)=\"\", \"\", IF(VLOOKUP(EE61,'Footnotes list'!$D$9:$E$58,2,FALSE)=0,\"\",VLOOKUP(EE61,'Footnotes list'!$D$9:$E$58,2,FALSE) ) )","v":""},null,null,null,null,{"$f":"IF(TRIM(EJ61)=\"\", \"\", IF(VLOOKUP(EJ61,'Footnotes list'!$D$9:$E$58,2,FALSE)=0,\"\",VLOOKUP(EJ61,'Footnotes list'!$D$9:$E$58,2,FALSE) ) )","v":""},null,null,null,null,{"$f":"IF(TRIM(EO61)=\"\", \"\", IF(VLOOKUP(EO61,'Footnotes list'!$D$9:$E$58,2,FALSE)=0,\"\",VLOOKUP(EO61,'Footnotes list'!$D$9:$E$58,2,FALSE) ) )","v":""},null,null,null,null,{"$f":"IF(TRIM(ET61)=\"\", \"\", IF(VLOOKUP(ET61,'Footnotes list'!$D$9:$E$58,2,FALSE)=0,\"\",VLOOKUP(ET61,'Footnotes list'!$D$9:$E$58,2,FALSE) ) )","v":""},null,null,null,null,{"$f":"IF(TRIM(EY61)=\"\", \"\", IF(VLOOKUP(EY61,'Footnotes list'!$D$9:$E$58,2,FALSE)=0,\"\",VLOOKUP(EY61,'Footnotes list'!$D$9:$E$58,2,FALSE) ) )","v":""}]
[null,null,"E","TOT_EGSS","Total E - Water supply; sewerage, waste management and remediation activities, including:",null,null,null,null,null,{"$f":"IF(TRIM(J62)=\"\", \"\", IF(VLOOKUP(J62,'Footnotes list'!$D$9:$E$58,2,FALSE)=0,\"\",VLOOKUP(J62,'Footnotes list'!$D$9:$E$58,2,FALSE) ) )","v":""},null,null,null,null,{"$f":"IF(TRIM(O62)=\"\", \"\", IF(VLOOKUP(O62,'Footnotes list'!$D$9:$E$58,2,FALSE)=0,\"\",VLOOKUP(O62,'Footnotes list'!$D$9:$E$58,2,FALSE) ) )","v":""},null,null,null,null,{"$f":"IF(TRIM(T62)=\"\", \"\", IF(VLOOKUP(T62,'Footnotes list'!$D$9:$E$58,2,FALSE)=0,\"\",VLOOKUP(T62,'Footnotes list'!$D$9:$E$58,2,FALSE) ) )","v":""},null,null,null,null,{"$f":"IF(TRIM(Y62)=\"\", \"\", IF(VLOOKUP(Y62,'Footnotes list'!$D$9:$E$58,2,FALSE)=0,\"\",VLOOKUP(Y62,'Footnotes list'!$D$9:$E$58,2,FALSE) ) )","v":""},null,null,null,null,{"$f":"IF(TRIM(AD62)=\"\", \"\", IF(VLOOKUP(AD62,'Footnotes list'!$D$9:$E$58,2,FALSE)=0,\"\",VLOOKUP(AD62,'Footnotes list'!$D$9:$E$58,2,FALSE) ) )","v":""},null,null,null,null,{"$f":"IF(TRIM(AI62)=\"\", \"\", IF(VLOOKUP(AI62,'Footnotes list'!$D$9:$E$58,2,FALSE)=0,\"\",VLOOKUP(AI62,'Footnotes list'!$D$9:$E$58,2,FALSE) ) )","v":""},null,null,null,null,{"$f":"IF(TRIM(AN62)=\"\", \"\", IF(VLOOKUP(AN62,'Footnotes list'!$D$9:$E$58,2,FALSE)=0,\"\",VLOOKUP(AN62,'Footnotes list'!$D$9:$E$58,2,FALSE) ) )","v":""},null,null,null,null,{"$f":"IF(TRIM(AS62)=\"\", \"\", IF(VLOOKUP(AS62,'Footnotes list'!$D$9:$E$58,2,FALSE)=0,\"\",VLOOKUP(AS62,'Footnotes list'!$D$9:$E$58,2,FALSE) ) )","v":""},null,null,null,null,{"$f":"IF(TRIM(AX62)=\"\", \"\", IF(VLOOKUP(AX62,'Footnotes list'!$D$9:$E$58,2,FALSE)=0,\"\",VLOOKUP(AX62,'Footnotes list'!$D$9:$E$58,2,FALSE) ) )","v":""},null,null,null,null,{"$f":"IF(TRIM(BC62)=\"\", \"\", IF(VLOOKUP(BC62,'Footnotes list'!$D$9:$E$58,2,FALSE)=0,\"\",VLOOKUP(BC62,'Footnotes list'!$D$9:$E$58,2,FALSE) ) )","v":""},null,null,null,null,{"$f":"IF(TRIM(BH62)=\"\", \"\", IF(VLOOKUP(BH62,'Footnotes list'!$D$9:$E$58,2,FALSE)=0,\"\",VLOOKUP(BH62,'Footnotes list'!$D$9:$E$58,2,FALSE) ) )","v":""},null,null,null,null,{"$f":"IF(TRIM(BM62)=\"\", \"\", IF(VLOOKUP(BM62,'Footnotes list'!$D$9:$E$58,2,FALSE)=0,\"\",VLOOKUP(BM62,'Footnotes list'!$D$9:$E$58,2,FALSE) ) )","v":""},null,null,null,null,{"$f":"IF(TRIM(BR62)=\"\", \"\", IF(VLOOKUP(BR62,'Footnotes list'!$D$9:$E$58,2,FALSE)=0,\"\",VLOOKUP(BR62,'Footnotes list'!$D$9:$E$58,2,FALSE) ) )","v":""},null,null,null,null,{"$f":"IF(TRIM(BW62)=\"\", \"\", IF(VLOOKUP(BW62,'Footnotes list'!$D$9:$E$58,2,FALSE)=0,\"\",VLOOKUP(BW62,'Footnotes list'!$D$9:$E$58,2,FALSE) ) )","v":""},null,null,null,null,{"$f":"IF(TRIM(CB62)=\"\", \"\", IF(VLOOKUP(CB62,'Footnotes list'!$D$9:$E$58,2,FALSE)=0,\"\",VLOOKUP(CB62,'Footnotes list'!$D$9:$E$58,2,FALSE) ) )","v":""},null,null,null,null,{"$f":"IF(TRIM(CG62)=\"\", \"\", IF(VLOOKUP(CG62,'Footnotes list'!$D$9:$E$58,2,FALSE)=0,\"\",VLOOKUP(CG62,'Footnotes list'!$D$9:$E$58,2,FALSE) ) )","v":""},null,null,null,null,{"$f":"IF(TRIM(CL62)=\"\", \"\", IF(VLOOKUP(CL62,'Footnotes list'!$D$9:$E$58,2,FALSE)=0,\"\",VLOOKUP(CL62,'Footnotes list'!$D$9:$E$58,2,FALSE) ) )","v":""},null,null,null,null,{"$f":"IF(TRIM(CQ62)=\"\", \"\", IF(VLOOKUP(CQ62,'Footnotes list'!$D$9:$E$58,2,FALSE)=0,\"\",VLOOKUP(CQ62,'Footnotes list'!$D$9:$E$58,2,FALSE) ) )","v":""},null,null,null,null,{"$f":"IF(TRIM(CV62)=\"\", \"\", IF(VLOOKUP(CV62,'Footnotes list'!$D$9:$E$58,2,FALSE)=0,\"\",VLOOKUP(CV62,'Footnotes list'!$D$9:$E$58,2,FALSE) ) )","v":""},null,null,null,null,{"$f":"IF(TRIM(DA62)=\"\", \"\", IF(VLOOKUP(DA62,'Footnotes list'!$D$9:$E$58,2,FALSE)=0,\"\",VLOOKUP(DA62,'Footnotes list'!$D$9:$E$58,2,FALSE) ) )","v":""},null,null,null,null,{"$f":"IF(TRIM(DF62)=\"\", \"\", IF(VLOOKUP(DF62,'Footnotes list'!$D$9:$E$58,2,FALSE)=0,\"\",VLOOKUP(DF62,'Footnotes list'!$D$9:$E$58,2,FALSE) ) )","v":""},null,null,null,null,{"$f":"IF(TRIM(DK62)=\"\", \"\", IF(VLOOKUP(DK62,'Footnotes list'!$D$9:$E$58,2,FALSE)=0,\"\",VLOOKUP(DK62,'Footnotes list'!$D$9:$E$58,2,FALSE) ) )","v":""},null,null,null,null,{"$f":"IF(TRIM(DP62)=\"\", \"\", IF(VLOOKUP(DP62,'Footnotes list'!$D$9:$E$58,2,FALSE)=0,\"\",VLOOKUP(DP62,'Footnotes list'!$D$9:$E$58,2,FALSE) ) )","v":""},null,null,null,null,{"$f":"IF(TRIM(DU62)=\"\", \"\", IF(VLOOKUP(DU62,'Footnotes list'!$D$9:$E$58,2,FALSE)=0,\"\",VLOOKUP(DU62,'Footnotes list'!$D$9:$E$58,2,FALSE) ) )","v":""},null,null,null,null,{"$f":"IF(TRIM(DZ62)=\"\", \"\", IF(VLOOKUP(DZ62,'Footnotes list'!$D$9:$E$58,2,FALSE)=0,\"\",VLOOKUP(DZ62,'Footnotes list'!$D$9:$E$58,2,FALSE) ) )","v":""},null,null,null,null,{"$f":"IF(TRIM(EE62)=\"\", \"\", IF(VLOOKUP(EE62,'Footnotes list'!$D$9:$E$58,2,FALSE)=0,\"\",VLOOKUP(EE62,'Footnotes list'!$D$9:$E$58,2,FALSE) ) )","v":""},null,null,null,null,{"$f":"IF(TRIM(EJ62)=\"\", \"\", IF(VLOOKUP(EJ62,'Footnotes list'!$D$9:$E$58,2,FALSE)=0,\"\",VLOOKUP(EJ62,'Footnotes list'!$D$9:$E$58,2,FALSE) ) )","v":""},null,null,null,null,{"$f":"IF(TRIM(EO62)=\"\", \"\", IF(VLOOKUP(EO62,'Footnotes list'!$D$9:$E$58,2,FALSE)=0,\"\",VLOOKUP(EO62,'Footnotes list'!$D$9:$E$58,2,FALSE) ) )","v":""},null,null,null,null,{"$f":"IF(TRIM(ET62)=\"\", \"\", IF(VLOOKUP(ET62,'Footnotes list'!$D$9:$E$58,2,FALSE)=0,\"\",VLOOKUP(ET62,'Footnotes list'!$D$9:$E$58,2,FALSE) ) )","v":""},null,null,null,null,{"$f":"IF(TRIM(EY62)=\"\", \"\", IF(VLOOKUP(EY62,'Footnotes list'!$D$9:$E$58,2,FALSE)=0,\"\",VLOOKUP(EY62,'Footnotes list'!$D$9:$E$58,2,FALSE) ) )","v":""}]
[null,null,"E","ES_CS","environmental specific services",null,null,null,null,null,{"$f":"IF(TRIM(J63)=\"\", \"\", IF(VLOOKUP(J63,'Footnotes list'!$D$9:$E$58,2,FALSE)=0,\"\",VLOOKUP(J63,'Footnotes list'!$D$9:$E$58,2,FALSE) ) )","v":""},null,null,null,null,{"$f":"IF(TRIM(O63)=\"\", \"\", IF(VLOOKUP(O63,'Footnotes list'!$D$9:$E$58,2,FALSE)=0,\"\",VLOOKUP(O63,'Footnotes list'!$D$9:$E$58,2,FALSE) ) )","v":""},null,null,null,null,{"$f":"IF(TRIM(T63)=\"\", \"\", IF(VLOOKUP(T63,'Footnotes list'!$D$9:$E$58,2,FALSE)=0,\"\",VLOOKUP(T63,'Footnotes list'!$D$9:$E$58,2,FALSE) ) )","v":""},null,null,null,null,{"$f":"IF(TRIM(Y63)=\"\", \"\", IF(VLOOKUP(Y63,'Footnotes list'!$D$9:$E$58,2,FALSE)=0,\"\",VLOOKUP(Y63,'Footnotes list'!$D$9:$E$58,2,FALSE) ) )","v":""},null,null,null,null,{"$f":"IF(TRIM(AD63)=\"\", \"\", IF(VLOOKUP(AD63,'Footnotes list'!$D$9:$E$58,2,FALSE)=0,\"\",VLOOKUP(AD63,'Footnotes list'!$D$9:$E$58,2,FALSE) ) )","v":""},null,null,null,null,{"$f":"IF(TRIM(AI63)=\"\", \"\", IF(VLOOKUP(AI63,'Footnotes list'!$D$9:$E$58,2,FALSE)=0,\"\",VLOOKUP(AI63,'Footnotes list'!$D$9:$E$58,2,FALSE) ) )","v":""},null,null,null,null,{"$f":"IF(TRIM(AN63)=\"\", \"\", IF(VLOOKUP(AN63,'Footnotes list'!$D$9:$E$58,2,FALSE)=0,\"\",VLOOKUP(AN63,'Footnotes list'!$D$9:$E$58,2,FALSE) ) )","v":""},null,null,null,null,{"$f":"IF(TRIM(AS63)=\"\", \"\", IF(VLOOKUP(AS63,'Footnotes list'!$D$9:$E$58,2,FALSE)=0,\"\",VLOOKUP(AS63,'Footnotes list'!$D$9:$E$58,2,FALSE) ) )","v":""},null,null,null,null,{"$f":"IF(TRIM(AX63)=\"\", \"\", IF(VLOOKUP(AX63,'Footnotes list'!$D$9:$E$58,2,FALSE)=0,\"\",VLOOKUP(AX63,'Footnotes list'!$D$9:$E$58,2,FALSE) ) )","v":""},null,null,null,null,{"$f":"IF(TRIM(BC63)=\"\", \"\", IF(VLOOKUP(BC63,'Footnotes list'!$D$9:$E$58,2,FALSE)=0,\"\",VLOOKUP(BC63,'Footnotes list'!$D$9:$E$58,2,FALSE) ) )","v":""},null,null,null,null,{"$f":"IF(TRIM(BH63)=\"\", \"\", IF(VLOOKUP(BH63,'Footnotes list'!$D$9:$E$58,2,FALSE)=0,\"\",VLOOKUP(BH63,'Footnotes list'!$D$9:$E$58,2,FALSE) ) )","v":""},null,null,null,null,{"$f":"IF(TRIM(BM63)=\"\", \"\", IF(VLOOKUP(BM63,'Footnotes list'!$D$9:$E$58,2,FALSE)=0,\"\",VLOOKUP(BM63,'Footnotes list'!$D$9:$E$58,2,FALSE) ) )","v":""},null,null,null,null,{"$f":"IF(TRIM(BR63)=\"\", \"\", IF(VLOOKUP(BR63,'Footnotes list'!$D$9:$E$58,2,FALSE)=0,\"\",VLOOKUP(BR63,'Footnotes list'!$D$9:$E$58,2,FALSE) ) )","v":""},null,null,null,null,{"$f":"IF(TRIM(BW63)=\"\", \"\", IF(VLOOKUP(BW63,'Footnotes list'!$D$9:$E$58,2,FALSE)=0,\"\",VLOOKUP(BW63,'Footnotes list'!$D$9:$E$58,2,FALSE) ) )","v":""},null,null,null,null,{"$f":"IF(TRIM(CB63)=\"\", \"\", IF(VLOOKUP(CB63,'Footnotes list'!$D$9:$E$58,2,FALSE)=0,\"\",VLOOKUP(CB63,'Footnotes list'!$D$9:$E$58,2,FALSE) ) )","v":""},null,null,null,null,{"$f":"IF(TRIM(CG63)=\"\", \"\", IF(VLOOKUP(CG63,'Footnotes list'!$D$9:$E$58,2,FALSE)=0,\"\",VLOOKUP(CG63,'Footnotes list'!$D$9:$E$58,2,FALSE) ) )","v":""},null,null,null,null,{"$f":"IF(TRIM(CL63)=\"\", \"\", IF(VLOOKUP(CL63,'Footnotes list'!$D$9:$E$58,2,FALSE)=0,\"\",VLOOKUP(CL63,'Footnotes list'!$D$9:$E$58,2,FALSE) ) )","v":""},null,null,null,null,{"$f":"IF(TRIM(CQ63)=\"\", \"\", IF(VLOOKUP(CQ63,'Footnotes list'!$D$9:$E$58,2,FALSE)=0,\"\",VLOOKUP(CQ63,'Footnotes list'!$D$9:$E$58,2,FALSE) ) )","v":""},null,null,null,null,{"$f":"IF(TRIM(CV63)=\"\", \"\", IF(VLOOKUP(CV63,'Footnotes list'!$D$9:$E$58,2,FALSE)=0,\"\",VLOOKUP(CV63,'Footnotes list'!$D$9:$E$58,2,FALSE) ) )","v":""},null,null,null,null,{"$f":"IF(TRIM(DA63)=\"\", \"\", IF(VLOOKUP(DA63,'Footnotes list'!$D$9:$E$58,2,FALSE)=0,\"\",VLOOKUP(DA63,'Footnotes list'!$D$9:$E$58,2,FALSE) ) )","v":""},null,null,null,null,{"$f":"IF(TRIM(DF63)=\"\", \"\", IF(VLOOKUP(DF63,'Footnotes list'!$D$9:$E$58,2,FALSE)=0,\"\",VLOOKUP(DF63,'Footnotes list'!$D$9:$E$58,2,FALSE) ) )","v":""},null,null,null,null,{"$f":"IF(TRIM(DK63)=\"\", \"\", IF(VLOOKUP(DK63,'Footnotes list'!$D$9:$E$58,2,FALSE)=0,\"\",VLOOKUP(DK63,'Footnotes list'!$D$9:$E$58,2,FALSE) ) )","v":""},null,null,null,null,{"$f":"IF(TRIM(DP63)=\"\", \"\", IF(VLOOKUP(DP63,'Footnotes list'!$D$9:$E$58,2,FALSE)=0,\"\",VLOOKUP(DP63,'Footnotes list'!$D$9:$E$58,2,FALSE) ) )","v":""},null,null,null,null,{"$f":"IF(TRIM(DU63)=\"\", \"\", IF(VLOOKUP(DU63,'Footnotes list'!$D$9:$E$58,2,FALSE)=0,\"\",VLOOKUP(DU63,'Footnotes list'!$D$9:$E$58,2,FALSE) ) )","v":""},null,null,null,null,{"$f":"IF(TRIM(DZ63)=\"\", \"\", IF(VLOOKUP(DZ63,'Footnotes list'!$D$9:$E$58,2,FALSE)=0,\"\",VLOOKUP(DZ63,'Footnotes list'!$D$9:$E$58,2,FALSE) ) )","v":""},null,null,null,null,{"$f":"IF(TRIM(EE63)=\"\", \"\", IF(VLOOKUP(EE63,'Footnotes list'!$D$9:$E$58,2,FALSE)=0,\"\",VLOOKUP(EE63,'Footnotes list'!$D$9:$E$58,2,FALSE) ) )","v":""},null,null,null,null,{"$f":"IF(TRIM(EJ63)=\"\", \"\", IF(VLOOKUP(EJ63,'Footnotes list'!$D$9:$E$58,2,FALSE)=0,\"\",VLOOKUP(EJ63,'Footnotes list'!$D$9:$E$58,2,FALSE) ) )","v":""},null,null,null,null,{"$f":"IF(TRIM(EO63)=\"\", \"\", IF(VLOOKUP(EO63,'Footnotes list'!$D$9:$E$58,2,FALSE)=0,\"\",VLOOKUP(EO63,'Footnotes list'!$D$9:$E$58,2,FALSE) ) )","v":""},null,null,null,null,{"$f":"IF(TRIM(ET63)=\"\", \"\", IF(VLOOKUP(ET63,'Footnotes list'!$D$9:$E$58,2,FALSE)=0,\"\",VLOOKUP(ET63,'Footnotes list'!$D$9:$E$58,2,FALSE) ) )","v":""},null,null,null,null,{"$f":"IF(TRIM(EY63)=\"\", \"\", IF(VLOOKUP(EY63,'Footnotes list'!$D$9:$E$58,2,FALSE)=0,\"\",VLOOKUP(EY63,'Footnotes list'!$D$9:$E$58,2,FALSE) ) )","v":""}]
[null,null,"E","C_REP","cleaner and resource efficient products",null,null,null,null,null,{"$f":"IF(TRIM(J64)=\"\", \"\", IF(VLOOKUP(J64,'Footnotes list'!$D$9:$E$58,2,FALSE)=0,\"\",VLOOKUP(J64,'Footnotes list'!$D$9:$E$58,2,FALSE) ) )","v":""},null,null,null,null,{"$f":"IF(TRIM(O64)=\"\", \"\", IF(VLOOKUP(O64,'Footnotes list'!$D$9:$E$58,2,FALSE)=0,\"\",VLOOKUP(O64,'Footnotes list'!$D$9:$E$58,2,FALSE) ) )","v":""},null,null,null,null,{"$f":"IF(TRIM(T64)=\"\", \"\", IF(VLOOKUP(T64,'Footnotes list'!$D$9:$E$58,2,FALSE)=0,\"\",VLOOKUP(T64,'Footnotes list'!$D$9:$E$58,2,FALSE) ) )","v":""},null,null,null,null,{"$f":"IF(TRIM(Y64)=\"\", \"\", IF(VLOOKUP(Y64,'Footnotes list'!$D$9:$E$58,2,FALSE)=0,\"\",VLOOKUP(Y64,'Footnotes list'!$D$9:$E$58,2,FALSE) ) )","v":""},null,null,null,null,{"$f":"IF(TRIM(AD64)=\"\", \"\", IF(VLOOKUP(AD64,'Footnotes list'!$D$9:$E$58,2,FALSE)=0,\"\",VLOOKUP(AD64,'Footnotes list'!$D$9:$E$58,2,FALSE) ) )","v":""},null,null,null,null,{"$f":"IF(TRIM(AI64)=\"\", \"\", IF(VLOOKUP(AI64,'Footnotes list'!$D$9:$E$58,2,FALSE)=0,\"\",VLOOKUP(AI64,'Footnotes list'!$D$9:$E$58,2,FALSE) ) )","v":""},null,null,null,null,{"$f":"IF(TRIM(AN64)=\"\", \"\", IF(VLOOKUP(AN64,'Footnotes list'!$D$9:$E$58,2,FALSE)=0,\"\",VLOOKUP(AN64,'Footnotes list'!$D$9:$E$58,2,FALSE) ) )","v":""},null,null,null,null,{"$f":"IF(TRIM(AS64)=\"\", \"\", IF(VLOOKUP(AS64,'Footnotes list'!$D$9:$E$58,2,FALSE)=0,\"\",VLOOKUP(AS64,'Footnotes list'!$D$9:$E$58,2,FALSE) ) )","v":""},null,null,null,null,{"$f":"IF(TRIM(AX64)=\"\", \"\", IF(VLOOKUP(AX64,'Footnotes list'!$D$9:$E$58,2,FALSE)=0,\"\",VLOOKUP(AX64,'Footnotes list'!$D$9:$E$58,2,FALSE) ) )","v":""},null,null,null,null,{"$f":"IF(TRIM(BC64)=\"\", \"\", IF(VLOOKUP(BC64,'Footnotes list'!$D$9:$E$58,2,FALSE)=0,\"\",VLOOKUP(BC64,'Footnotes list'!$D$9:$E$58,2,FALSE) ) )","v":""},null,null,null,null,{"$f":"IF(TRIM(BH64)=\"\", \"\", IF(VLOOKUP(BH64,'Footnotes list'!$D$9:$E$58,2,FALSE)=0,\"\",VLOOKUP(BH64,'Footnotes list'!$D$9:$E$58,2,FALSE) ) )","v":""},null,null,null,null,{"$f":"IF(TRIM(BM64)=\"\", \"\", IF(VLOOKUP(BM64,'Footnotes list'!$D$9:$E$58,2,FALSE)=0,\"\",VLOOKUP(BM64,'Footnotes list'!$D$9:$E$58,2,FALSE) ) )","v":""},null,null,null,null,{"$f":"IF(TRIM(BR64)=\"\", \"\", IF(VLOOKUP(BR64,'Footnotes list'!$D$9:$E$58,2,FALSE)=0,\"\",VLOOKUP(BR64,'Footnotes list'!$D$9:$E$58,2,FALSE) ) )","v":""},null,null,null,null,{"$f":"IF(TRIM(BW64)=\"\", \"\", IF(VLOOKUP(BW64,'Footnotes list'!$D$9:$E$58,2,FALSE)=0,\"\",VLOOKUP(BW64,'Footnotes list'!$D$9:$E$58,2,FALSE) ) )","v":""},null,null,null,null,{"$f":"IF(TRIM(CB64)=\"\", \"\", IF(VLOOKUP(CB64,'Footnotes list'!$D$9:$E$58,2,FALSE)=0,\"\",VLOOKUP(CB64,'Footnotes list'!$D$9:$E$58,2,FALSE) ) )","v":""},null,null,null,null,{"$f":"IF(TRIM(CG64)=\"\", \"\", IF(VLOOKUP(CG64,'Footnotes list'!$D$9:$E$58,2,FALSE)=0,\"\",VLOOKUP(CG64,'Footnotes list'!$D$9:$E$58,2,FALSE) ) )","v":""},null,null,null,null,{"$f":"IF(TRIM(CL64)=\"\", \"\", IF(VLOOKUP(CL64,'Footnotes list'!$D$9:$E$58,2,FALSE)=0,\"\",VLOOKUP(CL64,'Footnotes list'!$D$9:$E$58,2,FALSE) ) )","v":""},null,null,null,null,{"$f":"IF(TRIM(CQ64)=\"\", \"\", IF(VLOOKUP(CQ64,'Footnotes list'!$D$9:$E$58,2,FALSE)=0,\"\",VLOOKUP(CQ64,'Footnotes list'!$D$9:$E$58,2,FALSE) ) )","v":""},null,null,null,null,{"$f":"IF(TRIM(CV64)=\"\", \"\", IF(VLOOKUP(CV64,'Footnotes list'!$D$9:$E$58,2,FALSE)=0,\"\",VLOOKUP(CV64,'Footnotes list'!$D$9:$E$58,2,FALSE) ) )","v":""},null,null,null,null,{"$f":"IF(TRIM(DA64)=\"\", \"\", IF(VLOOKUP(DA64,'Footnotes list'!$D$9:$E$58,2,FALSE)=0,\"\",VLOOKUP(DA64,'Footnotes list'!$D$9:$E$58,2,FALSE) ) )","v":""},null,null,null,null,{"$f":"IF(TRIM(DF64)=\"\", \"\", IF(VLOOKUP(DF64,'Footnotes list'!$D$9:$E$58,2,FALSE)=0,\"\",VLOOKUP(DF64,'Footnotes list'!$D$9:$E$58,2,FALSE) ) )","v":""},null,null,null,null,{"$f":"IF(TRIM(DK64)=\"\", \"\", IF(VLOOKUP(DK64,'Footnotes list'!$D$9:$E$58,2,FALSE)=0,\"\",VLOOKUP(DK64,'Footnotes list'!$D$9:$E$58,2,FALSE) ) )","v":""},null,null,null,null,{"$f":"IF(TRIM(DP64)=\"\", \"\", IF(VLOOKUP(DP64,'Footnotes list'!$D$9:$E$58,2,FALSE)=0,\"\",VLOOKUP(DP64,'Footnotes list'!$D$9:$E$58,2,FALSE) ) )","v":""},null,null,null,null,{"$f":"IF(TRIM(DU64)=\"\", \"\", IF(VLOOKUP(DU64,'Footnotes list'!$D$9:$E$58,2,FALSE)=0,\"\",VLOOKUP(DU64,'Footnotes list'!$D$9:$E$58,2,FALSE) ) )","v":""},null,null,null,null,{"$f":"IF(TRIM(DZ64)=\"\", \"\", IF(VLOOKUP(DZ64,'Footnotes list'!$D$9:$E$58,2,FALSE)=0,\"\",VLOOKUP(DZ64,'Footnotes list'!$D$9:$E$58,2,FALSE) ) )","v":""},null,null,null,null,{"$f":"IF(TRIM(EE64)=\"\", \"\", IF(VLOOKUP(EE64,'Footnotes list'!$D$9:$E$58,2,FALSE)=0,\"\",VLOOKUP(EE64,'Footnotes list'!$D$9:$E$58,2,FALSE) ) )","v":""},null,null,null,null,{"$f":"IF(TRIM(EJ64)=\"\", \"\", IF(VLOOKUP(EJ64,'Footnotes list'!$D$9:$E$58,2,FALSE)=0,\"\",VLOOKUP(EJ64,'Footnotes list'!$D$9:$E$58,2,FALSE) ) )","v":""},null,null,null,null,{"$f":"IF(TRIM(EO64)=\"\", \"\", IF(VLOOKUP(EO64,'Footnotes list'!$D$9:$E$58,2,FALSE)=0,\"\",VLOOKUP(EO64,'Footnotes list'!$D$9:$E$58,2,FALSE) ) )","v":""},null,null,null,null,{"$f":"IF(TRIM(ET64)=\"\", \"\", IF(VLOOKUP(ET64,'Footnotes list'!$D$9:$E$58,2,FALSE)=0,\"\",VLOOKUP(ET64,'Footnotes list'!$D$9:$E$58,2,FALSE) ) )","v":""},null,null,null,null,{"$f":"IF(TRIM(EY64)=\"\", \"\", IF(VLOOKUP(EY64,'Footnotes list'!$D$9:$E$58,2,FALSE)=0,\"\",VLOOKUP(EY64,'Footnotes list'!$D$9:$E$58,2,FALSE) ) )","v":""}]
[null,null,"E36","TOT_EGSS","Total E36 - Water collection, treatment and supply, including:",null,null,null,null,null,{"$f":"IF(TRIM(J65)=\"\", \"\", IF(VLOOKUP(J65,'Footnotes list'!$D$9:$E$58,2,FALSE)=0,\"\",VLOOKUP(J65,'Footnotes list'!$D$9:$E$58,2,FALSE) ) )","v":""},null,null,null,null,{"$f":"IF(TRIM(O65)=\"\", \"\", IF(VLOOKUP(O65,'Footnotes list'!$D$9:$E$58,2,FALSE)=0,\"\",VLOOKUP(O65,'Footnotes list'!$D$9:$E$58,2,FALSE) ) )","v":""},null,null,null,null,{"$f":"IF(TRIM(T65)=\"\", \"\", IF(VLOOKUP(T65,'Footnotes list'!$D$9:$E$58,2,FALSE)=0,\"\",VLOOKUP(T65,'Footnotes list'!$D$9:$E$58,2,FALSE) ) )","v":""},null,null,null,null,{"$f":"IF(TRIM(Y65)=\"\", \"\", IF(VLOOKUP(Y65,'Footnotes list'!$D$9:$E$58,2,FALSE)=0,\"\",VLOOKUP(Y65,'Footnotes list'!$D$9:$E$58,2,FALSE) ) )","v":""},null,null,null,null,{"$f":"IF(TRIM(AD65)=\"\", \"\", IF(VLOOKUP(AD65,'Footnotes list'!$D$9:$E$58,2,FALSE)=0,\"\",VLOOKUP(AD65,'Footnotes list'!$D$9:$E$58,2,FALSE) ) )","v":""},null,null,null,null,{"$f":"IF(TRIM(AI65)=\"\", \"\", IF(VLOOKUP(AI65,'Footnotes list'!$D$9:$E$58,2,FALSE)=0,\"\",VLOOKUP(AI65,'Footnotes list'!$D$9:$E$58,2,FALSE) ) )","v":""},null,null,null,null,{"$f":"IF(TRIM(AN65)=\"\", \"\", IF(VLOOKUP(AN65,'Footnotes list'!$D$9:$E$58,2,FALSE)=0,\"\",VLOOKUP(AN65,'Footnotes list'!$D$9:$E$58,2,FALSE) ) )","v":""},null,null,null,null,{"$f":"IF(TRIM(AS65)=\"\", \"\", IF(VLOOKUP(AS65,'Footnotes list'!$D$9:$E$58,2,FALSE)=0,\"\",VLOOKUP(AS65,'Footnotes list'!$D$9:$E$58,2,FALSE) ) )","v":""},null,null,null,null,{"$f":"IF(TRIM(AX65)=\"\", \"\", IF(VLOOKUP(AX65,'Footnotes list'!$D$9:$E$58,2,FALSE)=0,\"\",VLOOKUP(AX65,'Footnotes list'!$D$9:$E$58,2,FALSE) ) )","v":""},null,null,null,null,{"$f":"IF(TRIM(BC65)=\"\", \"\", IF(VLOOKUP(BC65,'Footnotes list'!$D$9:$E$58,2,FALSE)=0,\"\",VLOOKUP(BC65,'Footnotes list'!$D$9:$E$58,2,FALSE) ) )","v":""},null,null,null,null,{"$f":"IF(TRIM(BH65)=\"\", \"\", IF(VLOOKUP(BH65,'Footnotes list'!$D$9:$E$58,2,FALSE)=0,\"\",VLOOKUP(BH65,'Footnotes list'!$D$9:$E$58,2,FALSE) ) )","v":""},null,null,null,null,{"$f":"IF(TRIM(BM65)=\"\", \"\", IF(VLOOKUP(BM65,'Footnotes list'!$D$9:$E$58,2,FALSE)=0,\"\",VLOOKUP(BM65,'Footnotes list'!$D$9:$E$58,2,FALSE) ) )","v":""},null,null,null,null,{"$f":"IF(TRIM(BR65)=\"\", \"\", IF(VLOOKUP(BR65,'Footnotes list'!$D$9:$E$58,2,FALSE)=0,\"\",VLOOKUP(BR65,'Footnotes list'!$D$9:$E$58,2,FALSE) ) )","v":""},null,null,null,null,{"$f":"IF(TRIM(BW65)=\"\", \"\", IF(VLOOKUP(BW65,'Footnotes list'!$D$9:$E$58,2,FALSE)=0,\"\",VLOOKUP(BW65,'Footnotes list'!$D$9:$E$58,2,FALSE) ) )","v":""},null,null,null,null,{"$f":"IF(TRIM(CB65)=\"\", \"\", IF(VLOOKUP(CB65,'Footnotes list'!$D$9:$E$58,2,FALSE)=0,\"\",VLOOKUP(CB65,'Footnotes list'!$D$9:$E$58,2,FALSE) ) )","v":""},null,null,null,null,{"$f":"IF(TRIM(CG65)=\"\", \"\", IF(VLOOKUP(CG65,'Footnotes list'!$D$9:$E$58,2,FALSE)=0,\"\",VLOOKUP(CG65,'Footnotes list'!$D$9:$E$58,2,FALSE) ) )","v":""},null,null,null,null,{"$f":"IF(TRIM(CL65)=\"\", \"\", IF(VLOOKUP(CL65,'Footnotes list'!$D$9:$E$58,2,FALSE)=0,\"\",VLOOKUP(CL65,'Footnotes list'!$D$9:$E$58,2,FALSE) ) )","v":""},null,null,null,null,{"$f":"IF(TRIM(CQ65)=\"\", \"\", IF(VLOOKUP(CQ65,'Footnotes list'!$D$9:$E$58,2,FALSE)=0,\"\",VLOOKUP(CQ65,'Footnotes list'!$D$9:$E$58,2,FALSE) ) )","v":""},null,null,null,null,{"$f":"IF(TRIM(CV65)=\"\", \"\", IF(VLOOKUP(CV65,'Footnotes list'!$D$9:$E$58,2,FALSE)=0,\"\",VLOOKUP(CV65,'Footnotes list'!$D$9:$E$58,2,FALSE) ) )","v":""},null,null,null,null,{"$f":"IF(TRIM(DA65)=\"\", \"\", IF(VLOOKUP(DA65,'Footnotes list'!$D$9:$E$58,2,FALSE)=0,\"\",VLOOKUP(DA65,'Footnotes list'!$D$9:$E$58,2,FALSE) ) )","v":""},null,null,null,null,{"$f":"IF(TRIM(DF65)=\"\", \"\", IF(VLOOKUP(DF65,'Footnotes list'!$D$9:$E$58,2,FALSE)=0,\"\",VLOOKUP(DF65,'Footnotes list'!$D$9:$E$58,2,FALSE) ) )","v":""},null,null,null,null,{"$f":"IF(TRIM(DK65)=\"\", \"\", IF(VLOOKUP(DK65,'Footnotes list'!$D$9:$E$58,2,FALSE)=0,\"\",VLOOKUP(DK65,'Footnotes list'!$D$9:$E$58,2,FALSE) ) )","v":""},null,null,null,null,{"$f":"IF(TRIM(DP65)=\"\", \"\", IF(VLOOKUP(DP65,'Footnotes list'!$D$9:$E$58,2,FALSE)=0,\"\",VLOOKUP(DP65,'Footnotes list'!$D$9:$E$58,2,FALSE) ) )","v":""},null,null,null,null,{"$f":"IF(TRIM(DU65)=\"\", \"\", IF(VLOOKUP(DU65,'Footnotes list'!$D$9:$E$58,2,FALSE)=0,\"\",VLOOKUP(DU65,'Footnotes list'!$D$9:$E$58,2,FALSE) ) )","v":""},null,null,null,null,{"$f":"IF(TRIM(DZ65)=\"\", \"\", IF(VLOOKUP(DZ65,'Footnotes list'!$D$9:$E$58,2,FALSE)=0,\"\",VLOOKUP(DZ65,'Footnotes list'!$D$9:$E$58,2,FALSE) ) )","v":""},null,null,null,null,{"$f":"IF(TRIM(EE65)=\"\", \"\", IF(VLOOKUP(EE65,'Footnotes list'!$D$9:$E$58,2,FALSE)=0,\"\",VLOOKUP(EE65,'Footnotes list'!$D$9:$E$58,2,FALSE) ) )","v":""},null,null,null,null,{"$f":"IF(TRIM(EJ65)=\"\", \"\", IF(VLOOKUP(EJ65,'Footnotes list'!$D$9:$E$58,2,FALSE)=0,\"\",VLOOKUP(EJ65,'Footnotes list'!$D$9:$E$58,2,FALSE) ) )","v":""},null,null,null,null,{"$f":"IF(TRIM(EO65)=\"\", \"\", IF(VLOOKUP(EO65,'Footnotes list'!$D$9:$E$58,2,FALSE)=0,\"\",VLOOKUP(EO65,'Footnotes list'!$D$9:$E$58,2,FALSE) ) )","v":""},null,null,null,null,{"$f":"IF(TRIM(ET65)=\"\", \"\", IF(VLOOKUP(ET65,'Footnotes list'!$D$9:$E$58,2,FALSE)=0,\"\",VLOOKUP(ET65,'Footnotes list'!$D$9:$E$58,2,FALSE) ) )","v":""},null,null,null,null,{"$f":"IF(TRIM(EY65)=\"\", \"\", IF(VLOOKUP(EY65,'Footnotes list'!$D$9:$E$58,2,FALSE)=0,\"\",VLOOKUP(EY65,'Footnotes list'!$D$9:$E$58,2,FALSE) ) )","v":""}]
[null,null,"E36","ES_CS","environmental specific services",null,null,null,null,null,{"$f":"IF(TRIM(J66)=\"\", \"\", IF(VLOOKUP(J66,'Footnotes list'!$D$9:$E$58,2,FALSE)=0,\"\",VLOOKUP(J66,'Footnotes list'!$D$9:$E$58,2,FALSE) ) )","v":""},null,null,null,null,{"$f":"IF(TRIM(O66)=\"\", \"\", IF(VLOOKUP(O66,'Footnotes list'!$D$9:$E$58,2,FALSE)=0,\"\",VLOOKUP(O66,'Footnotes list'!$D$9:$E$58,2,FALSE) ) )","v":""},null,null,null,null,{"$f":"IF(TRIM(T66)=\"\", \"\", IF(VLOOKUP(T66,'Footnotes list'!$D$9:$E$58,2,FALSE)=0,\"\",VLOOKUP(T66,'Footnotes list'!$D$9:$E$58,2,FALSE) ) )","v":""},null,null,null,null,{"$f":"IF(TRIM(Y66)=\"\", \"\", IF(VLOOKUP(Y66,'Footnotes list'!$D$9:$E$58,2,FALSE)=0,\"\",VLOOKUP(Y66,'Footnotes list'!$D$9:$E$58,2,FALSE) ) )","v":""},null,null,null,null,{"$f":"IF(TRIM(AD66)=\"\", \"\", IF(VLOOKUP(AD66,'Footnotes list'!$D$9:$E$58,2,FALSE)=0,\"\",VLOOKUP(AD66,'Footnotes list'!$D$9:$E$58,2,FALSE) ) )","v":""},null,null,null,null,{"$f":"IF(TRIM(AI66)=\"\", \"\", IF(VLOOKUP(AI66,'Footnotes list'!$D$9:$E$58,2,FALSE)=0,\"\",VLOOKUP(AI66,'Footnotes list'!$D$9:$E$58,2,FALSE) ) )","v":""},null,null,null,null,{"$f":"IF(TRIM(AN66)=\"\", \"\", IF(VLOOKUP(AN66,'Footnotes list'!$D$9:$E$58,2,FALSE)=0,\"\",VLOOKUP(AN66,'Footnotes list'!$D$9:$E$58,2,FALSE) ) )","v":""},null,null,null,null,{"$f":"IF(TRIM(AS66)=\"\", \"\", IF(VLOOKUP(AS66,'Footnotes list'!$D$9:$E$58,2,FALSE)=0,\"\",VLOOKUP(AS66,'Footnotes list'!$D$9:$E$58,2,FALSE) ) )","v":""},null,null,null,null,{"$f":"IF(TRIM(AX66)=\"\", \"\", IF(VLOOKUP(AX66,'Footnotes list'!$D$9:$E$58,2,FALSE)=0,\"\",VLOOKUP(AX66,'Footnotes list'!$D$9:$E$58,2,FALSE) ) )","v":""},null,null,null,null,{"$f":"IF(TRIM(BC66)=\"\", \"\", IF(VLOOKUP(BC66,'Footnotes list'!$D$9:$E$58,2,FALSE)=0,\"\",VLOOKUP(BC66,'Footnotes list'!$D$9:$E$58,2,FALSE) ) )","v":""},null,null,null,null,{"$f":"IF(TRIM(BH66)=\"\", \"\", IF(VLOOKUP(BH66,'Footnotes list'!$D$9:$E$58,2,FALSE)=0,\"\",VLOOKUP(BH66,'Footnotes list'!$D$9:$E$58,2,FALSE) ) )","v":""},null,null,null,null,{"$f":"IF(TRIM(BM66)=\"\", \"\", IF(VLOOKUP(BM66,'Footnotes list'!$D$9:$E$58,2,FALSE)=0,\"\",VLOOKUP(BM66,'Footnotes list'!$D$9:$E$58,2,FALSE) ) )","v":""},null,null,null,null,{"$f":"IF(TRIM(BR66)=\"\", \"\", IF(VLOOKUP(BR66,'Footnotes list'!$D$9:$E$58,2,FALSE)=0,\"\",VLOOKUP(BR66,'Footnotes list'!$D$9:$E$58,2,FALSE) ) )","v":""},null,null,null,null,{"$f":"IF(TRIM(BW66)=\"\", \"\", IF(VLOOKUP(BW66,'Footnotes list'!$D$9:$E$58,2,FALSE)=0,\"\",VLOOKUP(BW66,'Footnotes list'!$D$9:$E$58,2,FALSE) ) )","v":""},null,null,null,null,{"$f":"IF(TRIM(CB66)=\"\", \"\", IF(VLOOKUP(CB66,'Footnotes list'!$D$9:$E$58,2,FALSE)=0,\"\",VLOOKUP(CB66,'Footnotes list'!$D$9:$E$58,2,FALSE) ) )","v":""},null,null,null,null,{"$f":"IF(TRIM(CG66)=\"\", \"\", IF(VLOOKUP(CG66,'Footnotes list'!$D$9:$E$58,2,FALSE)=0,\"\",VLOOKUP(CG66,'Footnotes list'!$D$9:$E$58,2,FALSE) ) )","v":""},null,null,null,null,{"$f":"IF(TRIM(CL66)=\"\", \"\", IF(VLOOKUP(CL66,'Footnotes list'!$D$9:$E$58,2,FALSE)=0,\"\",VLOOKUP(CL66,'Footnotes list'!$D$9:$E$58,2,FALSE) ) )","v":""},null,null,null,null,{"$f":"IF(TRIM(CQ66)=\"\", \"\", IF(VLOOKUP(CQ66,'Footnotes list'!$D$9:$E$58,2,FALSE)=0,\"\",VLOOKUP(CQ66,'Footnotes list'!$D$9:$E$58,2,FALSE) ) )","v":""},null,null,null,null,{"$f":"IF(TRIM(CV66)=\"\", \"\", IF(VLOOKUP(CV66,'Footnotes list'!$D$9:$E$58,2,FALSE)=0,\"\",VLOOKUP(CV66,'Footnotes list'!$D$9:$E$58,2,FALSE) ) )","v":""},null,null,null,null,{"$f":"IF(TRIM(DA66)=\"\", \"\", IF(VLOOKUP(DA66,'Footnotes list'!$D$9:$E$58,2,FALSE)=0,\"\",VLOOKUP(DA66,'Footnotes list'!$D$9:$E$58,2,FALSE) ) )","v":""},null,null,null,null,{"$f":"IF(TRIM(DF66)=\"\", \"\", IF(VLOOKUP(DF66,'Footnotes list'!$D$9:$E$58,2,FALSE)=0,\"\",VLOOKUP(DF66,'Footnotes list'!$D$9:$E$58,2,FALSE) ) )","v":""},null,null,null,null,{"$f":"IF(TRIM(DK66)=\"\", \"\", IF(VLOOKUP(DK66,'Footnotes list'!$D$9:$E$58,2,FALSE)=0,\"\",VLOOKUP(DK66,'Footnotes list'!$D$9:$E$58,2,FALSE) ) )","v":""},null,null,null,null,{"$f":"IF(TRIM(DP66)=\"\", \"\", IF(VLOOKUP(DP66,'Footnotes list'!$D$9:$E$58,2,FALSE)=0,\"\",VLOOKUP(DP66,'Footnotes list'!$D$9:$E$58,2,FALSE) ) )","v":""},null,null,null,null,{"$f":"IF(TRIM(DU66)=\"\", \"\", IF(VLOOKUP(DU66,'Footnotes list'!$D$9:$E$58,2,FALSE)=0,\"\",VLOOKUP(DU66,'Footnotes list'!$D$9:$E$58,2,FALSE) ) )","v":""},null,null,null,null,{"$f":"IF(TRIM(DZ66)=\"\", \"\", IF(VLOOKUP(DZ66,'Footnotes list'!$D$9:$E$58,2,FALSE)=0,\"\",VLOOKUP(DZ66,'Footnotes list'!$D$9:$E$58,2,FALSE) ) )","v":""},null,null,null,null,{"$f":"IF(TRIM(EE66)=\"\", \"\", IF(VLOOKUP(EE66,'Footnotes list'!$D$9:$E$58,2,FALSE)=0,\"\",VLOOKUP(EE66,'Footnotes list'!$D$9:$E$58,2,FALSE) ) )","v":""},null,null,null,null,{"$f":"IF(TRIM(EJ66)=\"\", \"\", IF(VLOOKUP(EJ66,'Footnotes list'!$D$9:$E$58,2,FALSE)=0,\"\",VLOOKUP(EJ66,'Footnotes list'!$D$9:$E$58,2,FALSE) ) )","v":""},null,null,null,null,{"$f":"IF(TRIM(EO66)=\"\", \"\", IF(VLOOKUP(EO66,'Footnotes list'!$D$9:$E$58,2,FALSE)=0,\"\",VLOOKUP(EO66,'Footnotes list'!$D$9:$E$58,2,FALSE) ) )","v":""},null,null,null,null,{"$f":"IF(TRIM(ET66)=\"\", \"\", IF(VLOOKUP(ET66,'Footnotes list'!$D$9:$E$58,2,FALSE)=0,\"\",VLOOKUP(ET66,'Footnotes list'!$D$9:$E$58,2,FALSE) ) )","v":""},null,null,null,null,{"$f":"IF(TRIM(EY66)=\"\", \"\", IF(VLOOKUP(EY66,'Footnotes list'!$D$9:$E$58,2,FALSE)=0,\"\",VLOOKUP(EY66,'Footnotes list'!$D$9:$E$58,2,FALSE) ) )","v":""}]
[null,null,"E36","C_REP","cleaner and resource efficient products",null,null,null,null,null,{"$f":"IF(TRIM(J67)=\"\", \"\", IF(VLOOKUP(J67,'Footnotes list'!$D$9:$E$58,2,FALSE)=0,\"\",VLOOKUP(J67,'Footnotes list'!$D$9:$E$58,2,FALSE) ) )","v":""},null,null,null,null,{"$f":"IF(TRIM(O67)=\"\", \"\", IF(VLOOKUP(O67,'Footnotes list'!$D$9:$E$58,2,FALSE)=0,\"\",VLOOKUP(O67,'Footnotes list'!$D$9:$E$58,2,FALSE) ) )","v":""},null,null,null,null,{"$f":"IF(TRIM(T67)=\"\", \"\", IF(VLOOKUP(T67,'Footnotes list'!$D$9:$E$58,2,FALSE)=0,\"\",VLOOKUP(T67,'Footnotes list'!$D$9:$E$58,2,FALSE) ) )","v":""},null,null,null,null,{"$f":"IF(TRIM(Y67)=\"\", \"\", IF(VLOOKUP(Y67,'Footnotes list'!$D$9:$E$58,2,FALSE)=0,\"\",VLOOKUP(Y67,'Footnotes list'!$D$9:$E$58,2,FALSE) ) )","v":""},null,null,null,null,{"$f":"IF(TRIM(AD67)=\"\", \"\", IF(VLOOKUP(AD67,'Footnotes list'!$D$9:$E$58,2,FALSE)=0,\"\",VLOOKUP(AD67,'Footnotes list'!$D$9:$E$58,2,FALSE) ) )","v":""},null,null,null,null,{"$f":"IF(TRIM(AI67)=\"\", \"\", IF(VLOOKUP(AI67,'Footnotes list'!$D$9:$E$58,2,FALSE)=0,\"\",VLOOKUP(AI67,'Footnotes list'!$D$9:$E$58,2,FALSE) ) )","v":""},null,null,null,null,{"$f":"IF(TRIM(AN67)=\"\", \"\", IF(VLOOKUP(AN67,'Footnotes list'!$D$9:$E$58,2,FALSE)=0,\"\",VLOOKUP(AN67,'Footnotes list'!$D$9:$E$58,2,FALSE) ) )","v":""},null,null,null,null,{"$f":"IF(TRIM(AS67)=\"\", \"\", IF(VLOOKUP(AS67,'Footnotes list'!$D$9:$E$58,2,FALSE)=0,\"\",VLOOKUP(AS67,'Footnotes list'!$D$9:$E$58,2,FALSE) ) )","v":""},null,null,null,null,{"$f":"IF(TRIM(AX67)=\"\", \"\", IF(VLOOKUP(AX67,'Footnotes list'!$D$9:$E$58,2,FALSE)=0,\"\",VLOOKUP(AX67,'Footnotes list'!$D$9:$E$58,2,FALSE) ) )","v":""},null,null,null,null,{"$f":"IF(TRIM(BC67)=\"\", \"\", IF(VLOOKUP(BC67,'Footnotes list'!$D$9:$E$58,2,FALSE)=0,\"\",VLOOKUP(BC67,'Footnotes list'!$D$9:$E$58,2,FALSE) ) )","v":""},null,null,null,null,{"$f":"IF(TRIM(BH67)=\"\", \"\", IF(VLOOKUP(BH67,'Footnotes list'!$D$9:$E$58,2,FALSE)=0,\"\",VLOOKUP(BH67,'Footnotes list'!$D$9:$E$58,2,FALSE) ) )","v":""},null,null,null,null,{"$f":"IF(TRIM(BM67)=\"\", \"\", IF(VLOOKUP(BM67,'Footnotes list'!$D$9:$E$58,2,FALSE)=0,\"\",VLOOKUP(BM67,'Footnotes list'!$D$9:$E$58,2,FALSE) ) )","v":""},null,null,null,null,{"$f":"IF(TRIM(BR67)=\"\", \"\", IF(VLOOKUP(BR67,'Footnotes list'!$D$9:$E$58,2,FALSE)=0,\"\",VLOOKUP(BR67,'Footnotes list'!$D$9:$E$58,2,FALSE) ) )","v":""},null,null,null,null,{"$f":"IF(TRIM(BW67)=\"\", \"\", IF(VLOOKUP(BW67,'Footnotes list'!$D$9:$E$58,2,FALSE)=0,\"\",VLOOKUP(BW67,'Footnotes list'!$D$9:$E$58,2,FALSE) ) )","v":""},null,null,null,null,{"$f":"IF(TRIM(CB67)=\"\", \"\", IF(VLOOKUP(CB67,'Footnotes list'!$D$9:$E$58,2,FALSE)=0,\"\",VLOOKUP(CB67,'Footnotes list'!$D$9:$E$58,2,FALSE) ) )","v":""},null,null,null,null,{"$f":"IF(TRIM(CG67)=\"\", \"\", IF(VLOOKUP(CG67,'Footnotes list'!$D$9:$E$58,2,FALSE)=0,\"\",VLOOKUP(CG67,'Footnotes list'!$D$9:$E$58,2,FALSE) ) )","v":""},null,null,null,null,{"$f":"IF(TRIM(CL67)=\"\", \"\", IF(VLOOKUP(CL67,'Footnotes list'!$D$9:$E$58,2,FALSE)=0,\"\",VLOOKUP(CL67,'Footnotes list'!$D$9:$E$58,2,FALSE) ) )","v":""},null,null,null,null,{"$f":"IF(TRIM(CQ67)=\"\", \"\", IF(VLOOKUP(CQ67,'Footnotes list'!$D$9:$E$58,2,FALSE)=0,\"\",VLOOKUP(CQ67,'Footnotes list'!$D$9:$E$58,2,FALSE) ) )","v":""},null,null,null,null,{"$f":"IF(TRIM(CV67)=\"\", \"\", IF(VLOOKUP(CV67,'Footnotes list'!$D$9:$E$58,2,FALSE)=0,\"\",VLOOKUP(CV67,'Footnotes list'!$D$9:$E$58,2,FALSE) ) )","v":""},null,null,null,null,{"$f":"IF(TRIM(DA67)=\"\", \"\", IF(VLOOKUP(DA67,'Footnotes list'!$D$9:$E$58,2,FALSE)=0,\"\",VLOOKUP(DA67,'Footnotes list'!$D$9:$E$58,2,FALSE) ) )","v":""},null,null,null,null,{"$f":"IF(TRIM(DF67)=\"\", \"\", IF(VLOOKUP(DF67,'Footnotes list'!$D$9:$E$58,2,FALSE)=0,\"\",VLOOKUP(DF67,'Footnotes list'!$D$9:$E$58,2,FALSE) ) )","v":""},null,null,null,null,{"$f":"IF(TRIM(DK67)=\"\", \"\", IF(VLOOKUP(DK67,'Footnotes list'!$D$9:$E$58,2,FALSE)=0,\"\",VLOOKUP(DK67,'Footnotes list'!$D$9:$E$58,2,FALSE) ) )","v":""},null,null,null,null,{"$f":"IF(TRIM(DP67)=\"\", \"\", IF(VLOOKUP(DP67,'Footnotes list'!$D$9:$E$58,2,FALSE)=0,\"\",VLOOKUP(DP67,'Footnotes list'!$D$9:$E$58,2,FALSE) ) )","v":""},null,null,null,null,{"$f":"IF(TRIM(DU67)=\"\", \"\", IF(VLOOKUP(DU67,'Footnotes list'!$D$9:$E$58,2,FALSE)=0,\"\",VLOOKUP(DU67,'Footnotes list'!$D$9:$E$58,2,FALSE) ) )","v":""},null,null,null,null,{"$f":"IF(TRIM(DZ67)=\"\", \"\", IF(VLOOKUP(DZ67,'Footnotes list'!$D$9:$E$58,2,FALSE)=0,\"\",VLOOKUP(DZ67,'Footnotes list'!$D$9:$E$58,2,FALSE) ) )","v":""},null,null,null,null,{"$f":"IF(TRIM(EE67)=\"\", \"\", IF(VLOOKUP(EE67,'Footnotes list'!$D$9:$E$58,2,FALSE)=0,\"\",VLOOKUP(EE67,'Footnotes list'!$D$9:$E$58,2,FALSE) ) )","v":""},null,null,null,null,{"$f":"IF(TRIM(EJ67)=\"\", \"\", IF(VLOOKUP(EJ67,'Footnotes list'!$D$9:$E$58,2,FALSE)=0,\"\",VLOOKUP(EJ67,'Footnotes list'!$D$9:$E$58,2,FALSE) ) )","v":""},null,null,null,null,{"$f":"IF(TRIM(EO67)=\"\", \"\", IF(VLOOKUP(EO67,'Footnotes list'!$D$9:$E$58,2,FALSE)=0,\"\",VLOOKUP(EO67,'Footnotes list'!$D$9:$E$58,2,FALSE) ) )","v":""},null,null,null,null,{"$f":"IF(TRIM(ET67)=\"\", \"\", IF(VLOOKUP(ET67,'Footnotes list'!$D$9:$E$58,2,FALSE)=0,\"\",VLOOKUP(ET67,'Footnotes list'!$D$9:$E$58,2,FALSE) ) )","v":""},null,null,null,null,{"$f":"IF(TRIM(EY67)=\"\", \"\", IF(VLOOKUP(EY67,'Footnotes list'!$D$9:$E$58,2,FALSE)=0,\"\",VLOOKUP(EY67,'Footnotes list'!$D$9:$E$58,2,FALSE) ) )","v":""}]
[null,null,"E37","TOT_EGSS","Total E37 - Sewerage, including:",null,null,null,null,null,{"$f":"IF(TRIM(J68)=\"\", \"\", IF(VLOOKUP(J68,'Footnotes list'!$D$9:$E$58,2,FALSE)=0,\"\",VLOOKUP(J68,'Footnotes list'!$D$9:$E$58,2,FALSE) ) )","v":""},null,null,null,null,{"$f":"IF(TRIM(O68)=\"\", \"\", IF(VLOOKUP(O68,'Footnotes list'!$D$9:$E$58,2,FALSE)=0,\"\",VLOOKUP(O68,'Footnotes list'!$D$9:$E$58,2,FALSE) ) )","v":""},null,null,null,null,{"$f":"IF(TRIM(T68)=\"\", \"\", IF(VLOOKUP(T68,'Footnotes list'!$D$9:$E$58,2,FALSE)=0,\"\",VLOOKUP(T68,'Footnotes list'!$D$9:$E$58,2,FALSE) ) )","v":""},null,null,null,null,{"$f":"IF(TRIM(Y68)=\"\", \"\", IF(VLOOKUP(Y68,'Footnotes list'!$D$9:$E$58,2,FALSE)=0,\"\",VLOOKUP(Y68,'Footnotes list'!$D$9:$E$58,2,FALSE) ) )","v":""},null,null,null,null,{"$f":"IF(TRIM(AD68)=\"\", \"\", IF(VLOOKUP(AD68,'Footnotes list'!$D$9:$E$58,2,FALSE)=0,\"\",VLOOKUP(AD68,'Footnotes list'!$D$9:$E$58,2,FALSE) ) )","v":""},null,null,null,null,{"$f":"IF(TRIM(AI68)=\"\", \"\", IF(VLOOKUP(AI68,'Footnotes list'!$D$9:$E$58,2,FALSE)=0,\"\",VLOOKUP(AI68,'Footnotes list'!$D$9:$E$58,2,FALSE) ) )","v":""},null,null,null,null,{"$f":"IF(TRIM(AN68)=\"\", \"\", IF(VLOOKUP(AN68,'Footnotes list'!$D$9:$E$58,2,FALSE)=0,\"\",VLOOKUP(AN68,'Footnotes list'!$D$9:$E$58,2,FALSE) ) )","v":""},null,null,null,null,{"$f":"IF(TRIM(AS68)=\"\", \"\", IF(VLOOKUP(AS68,'Footnotes list'!$D$9:$E$58,2,FALSE)=0,\"\",VLOOKUP(AS68,'Footnotes list'!$D$9:$E$58,2,FALSE) ) )","v":""},null,null,null,null,{"$f":"IF(TRIM(AX68)=\"\", \"\", IF(VLOOKUP(AX68,'Footnotes list'!$D$9:$E$58,2,FALSE)=0,\"\",VLOOKUP(AX68,'Footnotes list'!$D$9:$E$58,2,FALSE) ) )","v":""},null,null,null,null,{"$f":"IF(TRIM(BC68)=\"\", \"\", IF(VLOOKUP(BC68,'Footnotes list'!$D$9:$E$58,2,FALSE)=0,\"\",VLOOKUP(BC68,'Footnotes list'!$D$9:$E$58,2,FALSE) ) )","v":""},null,null,null,null,{"$f":"IF(TRIM(BH68)=\"\", \"\", IF(VLOOKUP(BH68,'Footnotes list'!$D$9:$E$58,2,FALSE)=0,\"\",VLOOKUP(BH68,'Footnotes list'!$D$9:$E$58,2,FALSE) ) )","v":""},null,null,null,null,{"$f":"IF(TRIM(BM68)=\"\", \"\", IF(VLOOKUP(BM68,'Footnotes list'!$D$9:$E$58,2,FALSE)=0,\"\",VLOOKUP(BM68,'Footnotes list'!$D$9:$E$58,2,FALSE) ) )","v":""},null,null,null,null,{"$f":"IF(TRIM(BR68)=\"\", \"\", IF(VLOOKUP(BR68,'Footnotes list'!$D$9:$E$58,2,FALSE)=0,\"\",VLOOKUP(BR68,'Footnotes list'!$D$9:$E$58,2,FALSE) ) )","v":""},null,null,null,null,{"$f":"IF(TRIM(BW68)=\"\", \"\", IF(VLOOKUP(BW68,'Footnotes list'!$D$9:$E$58,2,FALSE)=0,\"\",VLOOKUP(BW68,'Footnotes list'!$D$9:$E$58,2,FALSE) ) )","v":""},null,null,null,null,{"$f":"IF(TRIM(CB68)=\"\", \"\", IF(VLOOKUP(CB68,'Footnotes list'!$D$9:$E$58,2,FALSE)=0,\"\",VLOOKUP(CB68,'Footnotes list'!$D$9:$E$58,2,FALSE) ) )","v":""},null,null,null,null,{"$f":"IF(TRIM(CG68)=\"\", \"\", IF(VLOOKUP(CG68,'Footnotes list'!$D$9:$E$58,2,FALSE)=0,\"\",VLOOKUP(CG68,'Footnotes list'!$D$9:$E$58,2,FALSE) ) )","v":""},null,null,null,null,{"$f":"IF(TRIM(CL68)=\"\", \"\", IF(VLOOKUP(CL68,'Footnotes list'!$D$9:$E$58,2,FALSE)=0,\"\",VLOOKUP(CL68,'Footnotes list'!$D$9:$E$58,2,FALSE) ) )","v":""},null,null,null,null,{"$f":"IF(TRIM(CQ68)=\"\", \"\", IF(VLOOKUP(CQ68,'Footnotes list'!$D$9:$E$58,2,FALSE)=0,\"\",VLOOKUP(CQ68,'Footnotes list'!$D$9:$E$58,2,FALSE) ) )","v":""},null,null,null,null,{"$f":"IF(TRIM(CV68)=\"\", \"\", IF(VLOOKUP(CV68,'Footnotes list'!$D$9:$E$58,2,FALSE)=0,\"\",VLOOKUP(CV68,'Footnotes list'!$D$9:$E$58,2,FALSE) ) )","v":""},null,null,null,null,{"$f":"IF(TRIM(DA68)=\"\", \"\", IF(VLOOKUP(DA68,'Footnotes list'!$D$9:$E$58,2,FALSE)=0,\"\",VLOOKUP(DA68,'Footnotes list'!$D$9:$E$58,2,FALSE) ) )","v":""},null,null,null,null,{"$f":"IF(TRIM(DF68)=\"\", \"\", IF(VLOOKUP(DF68,'Footnotes list'!$D$9:$E$58,2,FALSE)=0,\"\",VLOOKUP(DF68,'Footnotes list'!$D$9:$E$58,2,FALSE) ) )","v":""},null,null,null,null,{"$f":"IF(TRIM(DK68)=\"\", \"\", IF(VLOOKUP(DK68,'Footnotes list'!$D$9:$E$58,2,FALSE)=0,\"\",VLOOKUP(DK68,'Footnotes list'!$D$9:$E$58,2,FALSE) ) )","v":""},null,null,null,null,{"$f":"IF(TRIM(DP68)=\"\", \"\", IF(VLOOKUP(DP68,'Footnotes list'!$D$9:$E$58,2,FALSE)=0,\"\",VLOOKUP(DP68,'Footnotes list'!$D$9:$E$58,2,FALSE) ) )","v":""},null,null,null,null,{"$f":"IF(TRIM(DU68)=\"\", \"\", IF(VLOOKUP(DU68,'Footnotes list'!$D$9:$E$58,2,FALSE)=0,\"\",VLOOKUP(DU68,'Footnotes list'!$D$9:$E$58,2,FALSE) ) )","v":""},null,null,null,null,{"$f":"IF(TRIM(DZ68)=\"\", \"\", IF(VLOOKUP(DZ68,'Footnotes list'!$D$9:$E$58,2,FALSE)=0,\"\",VLOOKUP(DZ68,'Footnotes list'!$D$9:$E$58,2,FALSE) ) )","v":""},null,null,null,null,{"$f":"IF(TRIM(EE68)=\"\", \"\", IF(VLOOKUP(EE68,'Footnotes list'!$D$9:$E$58,2,FALSE)=0,\"\",VLOOKUP(EE68,'Footnotes list'!$D$9:$E$58,2,FALSE) ) )","v":""},null,null,null,null,{"$f":"IF(TRIM(EJ68)=\"\", \"\", IF(VLOOKUP(EJ68,'Footnotes list'!$D$9:$E$58,2,FALSE)=0,\"\",VLOOKUP(EJ68,'Footnotes list'!$D$9:$E$58,2,FALSE) ) )","v":""},null,null,null,null,{"$f":"IF(TRIM(EO68)=\"\", \"\", IF(VLOOKUP(EO68,'Footnotes list'!$D$9:$E$58,2,FALSE)=0,\"\",VLOOKUP(EO68,'Footnotes list'!$D$9:$E$58,2,FALSE) ) )","v":""},null,null,null,null,{"$f":"IF(TRIM(ET68)=\"\", \"\", IF(VLOOKUP(ET68,'Footnotes list'!$D$9:$E$58,2,FALSE)=0,\"\",VLOOKUP(ET68,'Footnotes list'!$D$9:$E$58,2,FALSE) ) )","v":""},null,null,null,null,{"$f":"IF(TRIM(EY68)=\"\", \"\", IF(VLOOKUP(EY68,'Footnotes list'!$D$9:$E$58,2,FALSE)=0,\"\",VLOOKUP(EY68,'Footnotes list'!$D$9:$E$58,2,FALSE) ) )","v":""}]
[null,null,"E37","ES_CS","environmental specific services",null,null,null,null,null,{"$f":"IF(TRIM(J69)=\"\", \"\", IF(VLOOKUP(J69,'Footnotes list'!$D$9:$E$58,2,FALSE)=0,\"\",VLOOKUP(J69,'Footnotes list'!$D$9:$E$58,2,FALSE) ) )","v":""},null,null,null,null,{"$f":"IF(TRIM(O69)=\"\", \"\", IF(VLOOKUP(O69,'Footnotes list'!$D$9:$E$58,2,FALSE)=0,\"\",VLOOKUP(O69,'Footnotes list'!$D$9:$E$58,2,FALSE) ) )","v":""},null,null,null,null,{"$f":"IF(TRIM(T69)=\"\", \"\", IF(VLOOKUP(T69,'Footnotes list'!$D$9:$E$58,2,FALSE)=0,\"\",VLOOKUP(T69,'Footnotes list'!$D$9:$E$58,2,FALSE) ) )","v":""},null,null,null,null,{"$f":"IF(TRIM(Y69)=\"\", \"\", IF(VLOOKUP(Y69,'Footnotes list'!$D$9:$E$58,2,FALSE)=0,\"\",VLOOKUP(Y69,'Footnotes list'!$D$9:$E$58,2,FALSE) ) )","v":""},null,null,null,null,{"$f":"IF(TRIM(AD69)=\"\", \"\", IF(VLOOKUP(AD69,'Footnotes list'!$D$9:$E$58,2,FALSE)=0,\"\",VLOOKUP(AD69,'Footnotes list'!$D$9:$E$58,2,FALSE) ) )","v":""},null,null,null,null,{"$f":"IF(TRIM(AI69)=\"\", \"\", IF(VLOOKUP(AI69,'Footnotes list'!$D$9:$E$58,2,FALSE)=0,\"\",VLOOKUP(AI69,'Footnotes list'!$D$9:$E$58,2,FALSE) ) )","v":""},null,null,null,null,{"$f":"IF(TRIM(AN69)=\"\", \"\", IF(VLOOKUP(AN69,'Footnotes list'!$D$9:$E$58,2,FALSE)=0,\"\",VLOOKUP(AN69,'Footnotes list'!$D$9:$E$58,2,FALSE) ) )","v":""},null,null,null,null,{"$f":"IF(TRIM(AS69)=\"\", \"\", IF(VLOOKUP(AS69,'Footnotes list'!$D$9:$E$58,2,FALSE)=0,\"\",VLOOKUP(AS69,'Footnotes list'!$D$9:$E$58,2,FALSE) ) )","v":""},null,null,null,null,{"$f":"IF(TRIM(AX69)=\"\", \"\", IF(VLOOKUP(AX69,'Footnotes list'!$D$9:$E$58,2,FALSE)=0,\"\",VLOOKUP(AX69,'Footnotes list'!$D$9:$E$58,2,FALSE) ) )","v":""},null,null,null,null,{"$f":"IF(TRIM(BC69)=\"\", \"\", IF(VLOOKUP(BC69,'Footnotes list'!$D$9:$E$58,2,FALSE)=0,\"\",VLOOKUP(BC69,'Footnotes list'!$D$9:$E$58,2,FALSE) ) )","v":""},null,null,null,null,{"$f":"IF(TRIM(BH69)=\"\", \"\", IF(VLOOKUP(BH69,'Footnotes list'!$D$9:$E$58,2,FALSE)=0,\"\",VLOOKUP(BH69,'Footnotes list'!$D$9:$E$58,2,FALSE) ) )","v":""},null,null,null,null,{"$f":"IF(TRIM(BM69)=\"\", \"\", IF(VLOOKUP(BM69,'Footnotes list'!$D$9:$E$58,2,FALSE)=0,\"\",VLOOKUP(BM69,'Footnotes list'!$D$9:$E$58,2,FALSE) ) )","v":""},null,null,null,null,{"$f":"IF(TRIM(BR69)=\"\", \"\", IF(VLOOKUP(BR69,'Footnotes list'!$D$9:$E$58,2,FALSE)=0,\"\",VLOOKUP(BR69,'Footnotes list'!$D$9:$E$58,2,FALSE) ) )","v":""},null,null,null,null,{"$f":"IF(TRIM(BW69)=\"\", \"\", IF(VLOOKUP(BW69,'Footnotes list'!$D$9:$E$58,2,FALSE)=0,\"\",VLOOKUP(BW69,'Footnotes list'!$D$9:$E$58,2,FALSE) ) )","v":""},null,null,null,null,{"$f":"IF(TRIM(CB69)=\"\", \"\", IF(VLOOKUP(CB69,'Footnotes list'!$D$9:$E$58,2,FALSE)=0,\"\",VLOOKUP(CB69,'Footnotes list'!$D$9:$E$58,2,FALSE) ) )","v":""},null,null,null,null,{"$f":"IF(TRIM(CG69)=\"\", \"\", IF(VLOOKUP(CG69,'Footnotes list'!$D$9:$E$58,2,FALSE)=0,\"\",VLOOKUP(CG69,'Footnotes list'!$D$9:$E$58,2,FALSE) ) )","v":""},null,null,null,null,{"$f":"IF(TRIM(CL69)=\"\", \"\", IF(VLOOKUP(CL69,'Footnotes list'!$D$9:$E$58,2,FALSE)=0,\"\",VLOOKUP(CL69,'Footnotes list'!$D$9:$E$58,2,FALSE) ) )","v":""},null,null,null,null,{"$f":"IF(TRIM(CQ69)=\"\", \"\", IF(VLOOKUP(CQ69,'Footnotes list'!$D$9:$E$58,2,FALSE)=0,\"\",VLOOKUP(CQ69,'Footnotes list'!$D$9:$E$58,2,FALSE) ) )","v":""},null,null,null,null,{"$f":"IF(TRIM(CV69)=\"\", \"\", IF(VLOOKUP(CV69,'Footnotes list'!$D$9:$E$58,2,FALSE)=0,\"\",VLOOKUP(CV69,'Footnotes list'!$D$9:$E$58,2,FALSE) ) )","v":""},null,null,null,null,{"$f":"IF(TRIM(DA69)=\"\", \"\", IF(VLOOKUP(DA69,'Footnotes list'!$D$9:$E$58,2,FALSE)=0,\"\",VLOOKUP(DA69,'Footnotes list'!$D$9:$E$58,2,FALSE) ) )","v":""},null,null,null,null,{"$f":"IF(TRIM(DF69)=\"\", \"\", IF(VLOOKUP(DF69,'Footnotes list'!$D$9:$E$58,2,FALSE)=0,\"\",VLOOKUP(DF69,'Footnotes list'!$D$9:$E$58,2,FALSE) ) )","v":""},null,null,null,null,{"$f":"IF(TRIM(DK69)=\"\", \"\", IF(VLOOKUP(DK69,'Footnotes list'!$D$9:$E$58,2,FALSE)=0,\"\",VLOOKUP(DK69,'Footnotes list'!$D$9:$E$58,2,FALSE) ) )","v":""},null,null,null,null,{"$f":"IF(TRIM(DP69)=\"\", \"\", IF(VLOOKUP(DP69,'Footnotes list'!$D$9:$E$58,2,FALSE)=0,\"\",VLOOKUP(DP69,'Footnotes list'!$D$9:$E$58,2,FALSE) ) )","v":""},null,null,null,null,{"$f":"IF(TRIM(DU69)=\"\", \"\", IF(VLOOKUP(DU69,'Footnotes list'!$D$9:$E$58,2,FALSE)=0,\"\",VLOOKUP(DU69,'Footnotes list'!$D$9:$E$58,2,FALSE) ) )","v":""},null,null,null,null,{"$f":"IF(TRIM(DZ69)=\"\", \"\", IF(VLOOKUP(DZ69,'Footnotes list'!$D$9:$E$58,2,FALSE)=0,\"\",VLOOKUP(DZ69,'Footnotes list'!$D$9:$E$58,2,FALSE) ) )","v":""},null,null,null,null,{"$f":"IF(TRIM(EE69)=\"\", \"\", IF(VLOOKUP(EE69,'Footnotes list'!$D$9:$E$58,2,FALSE)=0,\"\",VLOOKUP(EE69,'Footnotes list'!$D$9:$E$58,2,FALSE) ) )","v":""},null,null,null,null,{"$f":"IF(TRIM(EJ69)=\"\", \"\", IF(VLOOKUP(EJ69,'Footnotes list'!$D$9:$E$58,2,FALSE)=0,\"\",VLOOKUP(EJ69,'Footnotes list'!$D$9:$E$58,2,FALSE) ) )","v":""},null,null,null,null,{"$f":"IF(TRIM(EO69)=\"\", \"\", IF(VLOOKUP(EO69,'Footnotes list'!$D$9:$E$58,2,FALSE)=0,\"\",VLOOKUP(EO69,'Footnotes list'!$D$9:$E$58,2,FALSE) ) )","v":""},null,null,null,null,{"$f":"IF(TRIM(ET69)=\"\", \"\", IF(VLOOKUP(ET69,'Footnotes list'!$D$9:$E$58,2,FALSE)=0,\"\",VLOOKUP(ET69,'Footnotes list'!$D$9:$E$58,2,FALSE) ) )","v":""},null,null,null,null,{"$f":"IF(TRIM(EY69)=\"\", \"\", IF(VLOOKUP(EY69,'Footnotes list'!$D$9:$E$58,2,FALSE)=0,\"\",VLOOKUP(EY69,'Footnotes list'!$D$9:$E$58,2,FALSE) ) )","v":""}]
[null,null,"E37","C_REP","cleaner and resource efficient products",null,null,null,null,null,{"$f":"IF(TRIM(J70)=\"\", \"\", IF(VLOOKUP(J70,'Footnotes list'!$D$9:$E$58,2,FALSE)=0,\"\",VLOOKUP(J70,'Footnotes list'!$D$9:$E$58,2,FALSE) ) )","v":""},null,null,null,null,{"$f":"IF(TRIM(O70)=\"\", \"\", IF(VLOOKUP(O70,'Footnotes list'!$D$9:$E$58,2,FALSE)=0,\"\",VLOOKUP(O70,'Footnotes list'!$D$9:$E$58,2,FALSE) ) )","v":""},null,null,null,null,{"$f":"IF(TRIM(T70)=\"\", \"\", IF(VLOOKUP(T70,'Footnotes list'!$D$9:$E$58,2,FALSE)=0,\"\",VLOOKUP(T70,'Footnotes list'!$D$9:$E$58,2,FALSE) ) )","v":""},null,null,null,null,{"$f":"IF(TRIM(Y70)=\"\", \"\", IF(VLOOKUP(Y70,'Footnotes list'!$D$9:$E$58,2,FALSE)=0,\"\",VLOOKUP(Y70,'Footnotes list'!$D$9:$E$58,2,FALSE) ) )","v":""},null,null,null,null,{"$f":"IF(TRIM(AD70)=\"\", \"\", IF(VLOOKUP(AD70,'Footnotes list'!$D$9:$E$58,2,FALSE)=0,\"\",VLOOKUP(AD70,'Footnotes list'!$D$9:$E$58,2,FALSE) ) )","v":""},null,null,null,null,{"$f":"IF(TRIM(AI70)=\"\", \"\", IF(VLOOKUP(AI70,'Footnotes list'!$D$9:$E$58,2,FALSE)=0,\"\",VLOOKUP(AI70,'Footnotes list'!$D$9:$E$58,2,FALSE) ) )","v":""},null,null,null,null,{"$f":"IF(TRIM(AN70)=\"\", \"\", IF(VLOOKUP(AN70,'Footnotes list'!$D$9:$E$58,2,FALSE)=0,\"\",VLOOKUP(AN70,'Footnotes list'!$D$9:$E$58,2,FALSE) ) )","v":""},null,null,null,null,{"$f":"IF(TRIM(AS70)=\"\", \"\", IF(VLOOKUP(AS70,'Footnotes list'!$D$9:$E$58,2,FALSE)=0,\"\",VLOOKUP(AS70,'Footnotes list'!$D$9:$E$58,2,FALSE) ) )","v":""},null,null,null,null,{"$f":"IF(TRIM(AX70)=\"\", \"\", IF(VLOOKUP(AX70,'Footnotes list'!$D$9:$E$58,2,FALSE)=0,\"\",VLOOKUP(AX70,'Footnotes list'!$D$9:$E$58,2,FALSE) ) )","v":""},null,null,null,null,{"$f":"IF(TRIM(BC70)=\"\", \"\", IF(VLOOKUP(BC70,'Footnotes list'!$D$9:$E$58,2,FALSE)=0,\"\",VLOOKUP(BC70,'Footnotes list'!$D$9:$E$58,2,FALSE) ) )","v":""},null,null,null,null,{"$f":"IF(TRIM(BH70)=\"\", \"\", IF(VLOOKUP(BH70,'Footnotes list'!$D$9:$E$58,2,FALSE)=0,\"\",VLOOKUP(BH70,'Footnotes list'!$D$9:$E$58,2,FALSE) ) )","v":""},null,null,null,null,{"$f":"IF(TRIM(BM70)=\"\", \"\", IF(VLOOKUP(BM70,'Footnotes list'!$D$9:$E$58,2,FALSE)=0,\"\",VLOOKUP(BM70,'Footnotes list'!$D$9:$E$58,2,FALSE) ) )","v":""},null,null,null,null,{"$f":"IF(TRIM(BR70)=\"\", \"\", IF(VLOOKUP(BR70,'Footnotes list'!$D$9:$E$58,2,FALSE)=0,\"\",VLOOKUP(BR70,'Footnotes list'!$D$9:$E$58,2,FALSE) ) )","v":""},null,null,null,null,{"$f":"IF(TRIM(BW70)=\"\", \"\", IF(VLOOKUP(BW70,'Footnotes list'!$D$9:$E$58,2,FALSE)=0,\"\",VLOOKUP(BW70,'Footnotes list'!$D$9:$E$58,2,FALSE) ) )","v":""},null,null,null,null,{"$f":"IF(TRIM(CB70)=\"\", \"\", IF(VLOOKUP(CB70,'Footnotes list'!$D$9:$E$58,2,FALSE)=0,\"\",VLOOKUP(CB70,'Footnotes list'!$D$9:$E$58,2,FALSE) ) )","v":""},null,null,null,null,{"$f":"IF(TRIM(CG70)=\"\", \"\", IF(VLOOKUP(CG70,'Footnotes list'!$D$9:$E$58,2,FALSE)=0,\"\",VLOOKUP(CG70,'Footnotes list'!$D$9:$E$58,2,FALSE) ) )","v":""},null,null,null,null,{"$f":"IF(TRIM(CL70)=\"\", \"\", IF(VLOOKUP(CL70,'Footnotes list'!$D$9:$E$58,2,FALSE)=0,\"\",VLOOKUP(CL70,'Footnotes list'!$D$9:$E$58,2,FALSE) ) )","v":""},null,null,null,null,{"$f":"IF(TRIM(CQ70)=\"\", \"\", IF(VLOOKUP(CQ70,'Footnotes list'!$D$9:$E$58,2,FALSE)=0,\"\",VLOOKUP(CQ70,'Footnotes list'!$D$9:$E$58,2,FALSE) ) )","v":""},null,null,null,null,{"$f":"IF(TRIM(CV70)=\"\", \"\", IF(VLOOKUP(CV70,'Footnotes list'!$D$9:$E$58,2,FALSE)=0,\"\",VLOOKUP(CV70,'Footnotes list'!$D$9:$E$58,2,FALSE) ) )","v":""},null,null,null,null,{"$f":"IF(TRIM(DA70)=\"\", \"\", IF(VLOOKUP(DA70,'Footnotes list'!$D$9:$E$58,2,FALSE)=0,\"\",VLOOKUP(DA70,'Footnotes list'!$D$9:$E$58,2,FALSE) ) )","v":""},null,null,null,null,{"$f":"IF(TRIM(DF70)=\"\", \"\", IF(VLOOKUP(DF70,'Footnotes list'!$D$9:$E$58,2,FALSE)=0,\"\",VLOOKUP(DF70,'Footnotes list'!$D$9:$E$58,2,FALSE) ) )","v":""},null,null,null,null,{"$f":"IF(TRIM(DK70)=\"\", \"\", IF(VLOOKUP(DK70,'Footnotes list'!$D$9:$E$58,2,FALSE)=0,\"\",VLOOKUP(DK70,'Footnotes list'!$D$9:$E$58,2,FALSE) ) )","v":""},null,null,null,null,{"$f":"IF(TRIM(DP70)=\"\", \"\", IF(VLOOKUP(DP70,'Footnotes list'!$D$9:$E$58,2,FALSE)=0,\"\",VLOOKUP(DP70,'Footnotes list'!$D$9:$E$58,2,FALSE) ) )","v":""},null,null,null,null,{"$f":"IF(TRIM(DU70)=\"\", \"\", IF(VLOOKUP(DU70,'Footnotes list'!$D$9:$E$58,2,FALSE)=0,\"\",VLOOKUP(DU70,'Footnotes list'!$D$9:$E$58,2,FALSE) ) )","v":""},null,null,null,null,{"$f":"IF(TRIM(DZ70)=\"\", \"\", IF(VLOOKUP(DZ70,'Footnotes list'!$D$9:$E$58,2,FALSE)=0,\"\",VLOOKUP(DZ70,'Footnotes list'!$D$9:$E$58,2,FALSE) ) )","v":""},null,null,null,null,{"$f":"IF(TRIM(EE70)=\"\", \"\", IF(VLOOKUP(EE70,'Footnotes list'!$D$9:$E$58,2,FALSE)=0,\"\",VLOOKUP(EE70,'Footnotes list'!$D$9:$E$58,2,FALSE) ) )","v":""},null,null,null,null,{"$f":"IF(TRIM(EJ70)=\"\", \"\", IF(VLOOKUP(EJ70,'Footnotes list'!$D$9:$E$58,2,FALSE)=0,\"\",VLOOKUP(EJ70,'Footnotes list'!$D$9:$E$58,2,FALSE) ) )","v":""},null,null,null,null,{"$f":"IF(TRIM(EO70)=\"\", \"\", IF(VLOOKUP(EO70,'Footnotes list'!$D$9:$E$58,2,FALSE)=0,\"\",VLOOKUP(EO70,'Footnotes list'!$D$9:$E$58,2,FALSE) ) )","v":""},null,null,null,null,{"$f":"IF(TRIM(ET70)=\"\", \"\", IF(VLOOKUP(ET70,'Footnotes list'!$D$9:$E$58,2,FALSE)=0,\"\",VLOOKUP(ET70,'Footnotes list'!$D$9:$E$58,2,FALSE) ) )","v":""},null,null,null,null,{"$f":"IF(TRIM(EY70)=\"\", \"\", IF(VLOOKUP(EY70,'Footnotes list'!$D$9:$E$58,2,FALSE)=0,\"\",VLOOKUP(EY70,'Footnotes list'!$D$9:$E$58,2,FALSE) ) )","v":""}]
[null,null,"E38","TOT_EGSS","Total E38 - Waste collection, treatment and disposal activities; materials recovery, including:",null,null,null,null,null,{"$f":"IF(TRIM(J71)=\"\", \"\", IF(VLOOKUP(J71,'Footnotes list'!$D$9:$E$58,2,FALSE)=0,\"\",VLOOKUP(J71,'Footnotes list'!$D$9:$E$58,2,FALSE) ) )","v":""},null,null,null,null,{"$f":"IF(TRIM(O71)=\"\", \"\", IF(VLOOKUP(O71,'Footnotes list'!$D$9:$E$58,2,FALSE)=0,\"\",VLOOKUP(O71,'Footnotes list'!$D$9:$E$58,2,FALSE) ) )","v":""},null,null,null,null,{"$f":"IF(TRIM(T71)=\"\", \"\", IF(VLOOKUP(T71,'Footnotes list'!$D$9:$E$58,2,FALSE)=0,\"\",VLOOKUP(T71,'Footnotes list'!$D$9:$E$58,2,FALSE) ) )","v":""},null,null,null,null,{"$f":"IF(TRIM(Y71)=\"\", \"\", IF(VLOOKUP(Y71,'Footnotes list'!$D$9:$E$58,2,FALSE)=0,\"\",VLOOKUP(Y71,'Footnotes list'!$D$9:$E$58,2,FALSE) ) )","v":""},null,null,null,null,{"$f":"IF(TRIM(AD71)=\"\", \"\", IF(VLOOKUP(AD71,'Footnotes list'!$D$9:$E$58,2,FALSE)=0,\"\",VLOOKUP(AD71,'Footnotes list'!$D$9:$E$58,2,FALSE) ) )","v":""},null,null,null,null,{"$f":"IF(TRIM(AI71)=\"\", \"\", IF(VLOOKUP(AI71,'Footnotes list'!$D$9:$E$58,2,FALSE)=0,\"\",VLOOKUP(AI71,'Footnotes list'!$D$9:$E$58,2,FALSE) ) )","v":""},null,null,null,null,{"$f":"IF(TRIM(AN71)=\"\", \"\", IF(VLOOKUP(AN71,'Footnotes list'!$D$9:$E$58,2,FALSE)=0,\"\",VLOOKUP(AN71,'Footnotes list'!$D$9:$E$58,2,FALSE) ) )","v":""},null,null,null,null,{"$f":"IF(TRIM(AS71)=\"\", \"\", IF(VLOOKUP(AS71,'Footnotes list'!$D$9:$E$58,2,FALSE)=0,\"\",VLOOKUP(AS71,'Footnotes list'!$D$9:$E$58,2,FALSE) ) )","v":""},null,null,null,null,{"$f":"IF(TRIM(AX71)=\"\", \"\", IF(VLOOKUP(AX71,'Footnotes list'!$D$9:$E$58,2,FALSE)=0,\"\",VLOOKUP(AX71,'Footnotes list'!$D$9:$E$58,2,FALSE) ) )","v":""},null,null,null,null,{"$f":"IF(TRIM(BC71)=\"\", \"\", IF(VLOOKUP(BC71,'Footnotes list'!$D$9:$E$58,2,FALSE)=0,\"\",VLOOKUP(BC71,'Footnotes list'!$D$9:$E$58,2,FALSE) ) )","v":""},null,null,null,null,{"$f":"IF(TRIM(BH71)=\"\", \"\", IF(VLOOKUP(BH71,'Footnotes list'!$D$9:$E$58,2,FALSE)=0,\"\",VLOOKUP(BH71,'Footnotes list'!$D$9:$E$58,2,FALSE) ) )","v":""},null,null,null,null,{"$f":"IF(TRIM(BM71)=\"\", \"\", IF(VLOOKUP(BM71,'Footnotes list'!$D$9:$E$58,2,FALSE)=0,\"\",VLOOKUP(BM71,'Footnotes list'!$D$9:$E$58,2,FALSE) ) )","v":""},null,null,null,null,{"$f":"IF(TRIM(BR71)=\"\", \"\", IF(VLOOKUP(BR71,'Footnotes list'!$D$9:$E$58,2,FALSE)=0,\"\",VLOOKUP(BR71,'Footnotes list'!$D$9:$E$58,2,FALSE) ) )","v":""},null,null,null,null,{"$f":"IF(TRIM(BW71)=\"\", \"\", IF(VLOOKUP(BW71,'Footnotes list'!$D$9:$E$58,2,FALSE)=0,\"\",VLOOKUP(BW71,'Footnotes list'!$D$9:$E$58,2,FALSE) ) )","v":""},null,null,null,null,{"$f":"IF(TRIM(CB71)=\"\", \"\", IF(VLOOKUP(CB71,'Footnotes list'!$D$9:$E$58,2,FALSE)=0,\"\",VLOOKUP(CB71,'Footnotes list'!$D$9:$E$58,2,FALSE) ) )","v":""},null,null,null,null,{"$f":"IF(TRIM(CG71)=\"\", \"\", IF(VLOOKUP(CG71,'Footnotes list'!$D$9:$E$58,2,FALSE)=0,\"\",VLOOKUP(CG71,'Footnotes list'!$D$9:$E$58,2,FALSE) ) )","v":""},null,null,null,null,{"$f":"IF(TRIM(CL71)=\"\", \"\", IF(VLOOKUP(CL71,'Footnotes list'!$D$9:$E$58,2,FALSE)=0,\"\",VLOOKUP(CL71,'Footnotes list'!$D$9:$E$58,2,FALSE) ) )","v":""},null,null,null,null,{"$f":"IF(TRIM(CQ71)=\"\", \"\", IF(VLOOKUP(CQ71,'Footnotes list'!$D$9:$E$58,2,FALSE)=0,\"\",VLOOKUP(CQ71,'Footnotes list'!$D$9:$E$58,2,FALSE) ) )","v":""},null,null,null,null,{"$f":"IF(TRIM(CV71)=\"\", \"\", IF(VLOOKUP(CV71,'Footnotes list'!$D$9:$E$58,2,FALSE)=0,\"\",VLOOKUP(CV71,'Footnotes list'!$D$9:$E$58,2,FALSE) ) )","v":""},null,null,null,null,{"$f":"IF(TRIM(DA71)=\"\", \"\", IF(VLOOKUP(DA71,'Footnotes list'!$D$9:$E$58,2,FALSE)=0,\"\",VLOOKUP(DA71,'Footnotes list'!$D$9:$E$58,2,FALSE) ) )","v":""},null,null,null,null,{"$f":"IF(TRIM(DF71)=\"\", \"\", IF(VLOOKUP(DF71,'Footnotes list'!$D$9:$E$58,2,FALSE)=0,\"\",VLOOKUP(DF71,'Footnotes list'!$D$9:$E$58,2,FALSE) ) )","v":""},null,null,null,null,{"$f":"IF(TRIM(DK71)=\"\", \"\", IF(VLOOKUP(DK71,'Footnotes list'!$D$9:$E$58,2,FALSE)=0,\"\",VLOOKUP(DK71,'Footnotes list'!$D$9:$E$58,2,FALSE) ) )","v":""},null,null,null,null,{"$f":"IF(TRIM(DP71)=\"\", \"\", IF(VLOOKUP(DP71,'Footnotes list'!$D$9:$E$58,2,FALSE)=0,\"\",VLOOKUP(DP71,'Footnotes list'!$D$9:$E$58,2,FALSE) ) )","v":""},null,null,null,null,{"$f":"IF(TRIM(DU71)=\"\", \"\", IF(VLOOKUP(DU71,'Footnotes list'!$D$9:$E$58,2,FALSE)=0,\"\",VLOOKUP(DU71,'Footnotes list'!$D$9:$E$58,2,FALSE) ) )","v":""},null,null,null,null,{"$f":"IF(TRIM(DZ71)=\"\", \"\", IF(VLOOKUP(DZ71,'Footnotes list'!$D$9:$E$58,2,FALSE)=0,\"\",VLOOKUP(DZ71,'Footnotes list'!$D$9:$E$58,2,FALSE) ) )","v":""},null,null,null,null,{"$f":"IF(TRIM(EE71)=\"\", \"\", IF(VLOOKUP(EE71,'Footnotes list'!$D$9:$E$58,2,FALSE)=0,\"\",VLOOKUP(EE71,'Footnotes list'!$D$9:$E$58,2,FALSE) ) )","v":""},null,null,null,null,{"$f":"IF(TRIM(EJ71)=\"\", \"\", IF(VLOOKUP(EJ71,'Footnotes list'!$D$9:$E$58,2,FALSE)=0,\"\",VLOOKUP(EJ71,'Footnotes list'!$D$9:$E$58,2,FALSE) ) )","v":""},null,null,null,null,{"$f":"IF(TRIM(EO71)=\"\", \"\", IF(VLOOKUP(EO71,'Footnotes list'!$D$9:$E$58,2,FALSE)=0,\"\",VLOOKUP(EO71,'Footnotes list'!$D$9:$E$58,2,FALSE) ) )","v":""},null,null,null,null,{"$f":"IF(TRIM(ET71)=\"\", \"\", IF(VLOOKUP(ET71,'Footnotes list'!$D$9:$E$58,2,FALSE)=0,\"\",VLOOKUP(ET71,'Footnotes list'!$D$9:$E$58,2,FALSE) ) )","v":""},null,null,null,null,{"$f":"IF(TRIM(EY71)=\"\", \"\", IF(VLOOKUP(EY71,'Footnotes list'!$D$9:$E$58,2,FALSE)=0,\"\",VLOOKUP(EY71,'Footnotes list'!$D$9:$E$58,2,FALSE) ) )","v":""}]
[null,null,"E38","ES_CS","environmental specific services",null,null,null,null,null,{"$f":"IF(TRIM(J72)=\"\", \"\", IF(VLOOKUP(J72,'Footnotes list'!$D$9:$E$58,2,FALSE)=0,\"\",VLOOKUP(J72,'Footnotes list'!$D$9:$E$58,2,FALSE) ) )","v":""},null,null,null,null,{"$f":"IF(TRIM(O72)=\"\", \"\", IF(VLOOKUP(O72,'Footnotes list'!$D$9:$E$58,2,FALSE)=0,\"\",VLOOKUP(O72,'Footnotes list'!$D$9:$E$58,2,FALSE) ) )","v":""},null,null,null,null,{"$f":"IF(TRIM(T72)=\"\", \"\", IF(VLOOKUP(T72,'Footnotes list'!$D$9:$E$58,2,FALSE)=0,\"\",VLOOKUP(T72,'Footnotes list'!$D$9:$E$58,2,FALSE) ) )","v":""},null,null,null,null,{"$f":"IF(TRIM(Y72)=\"\", \"\", IF(VLOOKUP(Y72,'Footnotes list'!$D$9:$E$58,2,FALSE)=0,\"\",VLOOKUP(Y72,'Footnotes list'!$D$9:$E$58,2,FALSE) ) )","v":""},null,null,null,null,{"$f":"IF(TRIM(AD72)=\"\", \"\", IF(VLOOKUP(AD72,'Footnotes list'!$D$9:$E$58,2,FALSE)=0,\"\",VLOOKUP(AD72,'Footnotes list'!$D$9:$E$58,2,FALSE) ) )","v":""},null,null,null,null,{"$f":"IF(TRIM(AI72)=\"\", \"\", IF(VLOOKUP(AI72,'Footnotes list'!$D$9:$E$58,2,FALSE)=0,\"\",VLOOKUP(AI72,'Footnotes list'!$D$9:$E$58,2,FALSE) ) )","v":""},null,null,null,null,{"$f":"IF(TRIM(AN72)=\"\", \"\", IF(VLOOKUP(AN72,'Footnotes list'!$D$9:$E$58,2,FALSE)=0,\"\",VLOOKUP(AN72,'Footnotes list'!$D$9:$E$58,2,FALSE) ) )","v":""},null,null,null,null,{"$f":"IF(TRIM(AS72)=\"\", \"\", IF(VLOOKUP(AS72,'Footnotes list'!$D$9:$E$58,2,FALSE)=0,\"\",VLOOKUP(AS72,'Footnotes list'!$D$9:$E$58,2,FALSE) ) )","v":""},null,null,null,null,{"$f":"IF(TRIM(AX72)=\"\", \"\", IF(VLOOKUP(AX72,'Footnotes list'!$D$9:$E$58,2,FALSE)=0,\"\",VLOOKUP(AX72,'Footnotes list'!$D$9:$E$58,2,FALSE) ) )","v":""},null,null,null,null,{"$f":"IF(TRIM(BC72)=\"\", \"\", IF(VLOOKUP(BC72,'Footnotes list'!$D$9:$E$58,2,FALSE)=0,\"\",VLOOKUP(BC72,'Footnotes list'!$D$9:$E$58,2,FALSE) ) )","v":""},null,null,null,null,{"$f":"IF(TRIM(BH72)=\"\", \"\", IF(VLOOKUP(BH72,'Footnotes list'!$D$9:$E$58,2,FALSE)=0,\"\",VLOOKUP(BH72,'Footnotes list'!$D$9:$E$58,2,FALSE) ) )","v":""},null,null,null,null,{"$f":"IF(TRIM(BM72)=\"\", \"\", IF(VLOOKUP(BM72,'Footnotes list'!$D$9:$E$58,2,FALSE)=0,\"\",VLOOKUP(BM72,'Footnotes list'!$D$9:$E$58,2,FALSE) ) )","v":""},null,null,null,null,{"$f":"IF(TRIM(BR72)=\"\", \"\", IF(VLOOKUP(BR72,'Footnotes list'!$D$9:$E$58,2,FALSE)=0,\"\",VLOOKUP(BR72,'Footnotes list'!$D$9:$E$58,2,FALSE) ) )","v":""},null,null,null,null,{"$f":"IF(TRIM(BW72)=\"\", \"\", IF(VLOOKUP(BW72,'Footnotes list'!$D$9:$E$58,2,FALSE)=0,\"\",VLOOKUP(BW72,'Footnotes list'!$D$9:$E$58,2,FALSE) ) )","v":""},null,null,null,null,{"$f":"IF(TRIM(CB72)=\"\", \"\", IF(VLOOKUP(CB72,'Footnotes list'!$D$9:$E$58,2,FALSE)=0,\"\",VLOOKUP(CB72,'Footnotes list'!$D$9:$E$58,2,FALSE) ) )","v":""},null,null,null,null,{"$f":"IF(TRIM(CG72)=\"\", \"\", IF(VLOOKUP(CG72,'Footnotes list'!$D$9:$E$58,2,FALSE)=0,\"\",VLOOKUP(CG72,'Footnotes list'!$D$9:$E$58,2,FALSE) ) )","v":""},null,null,null,null,{"$f":"IF(TRIM(CL72)=\"\", \"\", IF(VLOOKUP(CL72,'Footnotes list'!$D$9:$E$58,2,FALSE)=0,\"\",VLOOKUP(CL72,'Footnotes list'!$D$9:$E$58,2,FALSE) ) )","v":""},null,null,null,null,{"$f":"IF(TRIM(CQ72)=\"\", \"\", IF(VLOOKUP(CQ72,'Footnotes list'!$D$9:$E$58,2,FALSE)=0,\"\",VLOOKUP(CQ72,'Footnotes list'!$D$9:$E$58,2,FALSE) ) )","v":""},null,null,null,null,{"$f":"IF(TRIM(CV72)=\"\", \"\", IF(VLOOKUP(CV72,'Footnotes list'!$D$9:$E$58,2,FALSE)=0,\"\",VLOOKUP(CV72,'Footnotes list'!$D$9:$E$58,2,FALSE) ) )","v":""},null,null,null,null,{"$f":"IF(TRIM(DA72)=\"\", \"\", IF(VLOOKUP(DA72,'Footnotes list'!$D$9:$E$58,2,FALSE)=0,\"\",VLOOKUP(DA72,'Footnotes list'!$D$9:$E$58,2,FALSE) ) )","v":""},null,null,null,null,{"$f":"IF(TRIM(DF72)=\"\", \"\", IF(VLOOKUP(DF72,'Footnotes list'!$D$9:$E$58,2,FALSE)=0,\"\",VLOOKUP(DF72,'Footnotes list'!$D$9:$E$58,2,FALSE) ) )","v":""},null,null,null,null,{"$f":"IF(TRIM(DK72)=\"\", \"\", IF(VLOOKUP(DK72,'Footnotes list'!$D$9:$E$58,2,FALSE)=0,\"\",VLOOKUP(DK72,'Footnotes list'!$D$9:$E$58,2,FALSE) ) )","v":""},null,null,null,null,{"$f":"IF(TRIM(DP72)=\"\", \"\", IF(VLOOKUP(DP72,'Footnotes list'!$D$9:$E$58,2,FALSE)=0,\"\",VLOOKUP(DP72,'Footnotes list'!$D$9:$E$58,2,FALSE) ) )","v":""},null,null,null,null,{"$f":"IF(TRIM(DU72)=\"\", \"\", IF(VLOOKUP(DU72,'Footnotes list'!$D$9:$E$58,2,FALSE)=0,\"\",VLOOKUP(DU72,'Footnotes list'!$D$9:$E$58,2,FALSE) ) )","v":""},null,null,null,null,{"$f":"IF(TRIM(DZ72)=\"\", \"\", IF(VLOOKUP(DZ72,'Footnotes list'!$D$9:$E$58,2,FALSE)=0,\"\",VLOOKUP(DZ72,'Footnotes list'!$D$9:$E$58,2,FALSE) ) )","v":""},null,null,null,null,{"$f":"IF(TRIM(EE72)=\"\", \"\", IF(VLOOKUP(EE72,'Footnotes list'!$D$9:$E$58,2,FALSE)=0,\"\",VLOOKUP(EE72,'Footnotes list'!$D$9:$E$58,2,FALSE) ) )","v":""},null,null,null,null,{"$f":"IF(TRIM(EJ72)=\"\", \"\", IF(VLOOKUP(EJ72,'Footnotes list'!$D$9:$E$58,2,FALSE)=0,\"\",VLOOKUP(EJ72,'Footnotes list'!$D$9:$E$58,2,FALSE) ) )","v":""},null,null,null,null,{"$f":"IF(TRIM(EO72)=\"\", \"\", IF(VLOOKUP(EO72,'Footnotes list'!$D$9:$E$58,2,FALSE)=0,\"\",VLOOKUP(EO72,'Footnotes list'!$D$9:$E$58,2,FALSE) ) )","v":""},null,null,null,null,{"$f":"IF(TRIM(ET72)=\"\", \"\", IF(VLOOKUP(ET72,'Footnotes list'!$D$9:$E$58,2,FALSE)=0,\"\",VLOOKUP(ET72,'Footnotes list'!$D$9:$E$58,2,FALSE) ) )","v":""},null,null,null,null,{"$f":"IF(TRIM(EY72)=\"\", \"\", IF(VLOOKUP(EY72,'Footnotes list'!$D$9:$E$58,2,FALSE)=0,\"\",VLOOKUP(EY72,'Footnotes list'!$D$9:$E$58,2,FALSE) ) )","v":""}]
[null,null,"E38","C_REP","cleaner and resource efficient products",null,null,null,null,null,{"$f":"IF(TRIM(J73)=\"\", \"\", IF(VLOOKUP(J73,'Footnotes list'!$D$9:$E$58,2,FALSE)=0,\"\",VLOOKUP(J73,'Footnotes list'!$D$9:$E$58,2,FALSE) ) )","v":""},null,null,null,null,{"$f":"IF(TRIM(O73)=\"\", \"\", IF(VLOOKUP(O73,'Footnotes list'!$D$9:$E$58,2,FALSE)=0,\"\",VLOOKUP(O73,'Footnotes list'!$D$9:$E$58,2,FALSE) ) )","v":""},null,null,null,null,{"$f":"IF(TRIM(T73)=\"\", \"\", IF(VLOOKUP(T73,'Footnotes list'!$D$9:$E$58,2,FALSE)=0,\"\",VLOOKUP(T73,'Footnotes list'!$D$9:$E$58,2,FALSE) ) )","v":""},null,null,null,null,{"$f":"IF(TRIM(Y73)=\"\", \"\", IF(VLOOKUP(Y73,'Footnotes list'!$D$9:$E$58,2,FALSE)=0,\"\",VLOOKUP(Y73,'Footnotes list'!$D$9:$E$58,2,FALSE) ) )","v":""},null,null,null,null,{"$f":"IF(TRIM(AD73)=\"\", \"\", IF(VLOOKUP(AD73,'Footnotes list'!$D$9:$E$58,2,FALSE)=0,\"\",VLOOKUP(AD73,'Footnotes list'!$D$9:$E$58,2,FALSE) ) )","v":""},null,null,null,null,{"$f":"IF(TRIM(AI73)=\"\", \"\", IF(VLOOKUP(AI73,'Footnotes list'!$D$9:$E$58,2,FALSE)=0,\"\",VLOOKUP(AI73,'Footnotes list'!$D$9:$E$58,2,FALSE) ) )","v":""},null,null,null,null,{"$f":"IF(TRIM(AN73)=\"\", \"\", IF(VLOOKUP(AN73,'Footnotes list'!$D$9:$E$58,2,FALSE)=0,\"\",VLOOKUP(AN73,'Footnotes list'!$D$9:$E$58,2,FALSE) ) )","v":""},null,null,null,null,{"$f":"IF(TRIM(AS73)=\"\", \"\", IF(VLOOKUP(AS73,'Footnotes list'!$D$9:$E$58,2,FALSE)=0,\"\",VLOOKUP(AS73,'Footnotes list'!$D$9:$E$58,2,FALSE) ) )","v":""},null,null,null,null,{"$f":"IF(TRIM(AX73)=\"\", \"\", IF(VLOOKUP(AX73,'Footnotes list'!$D$9:$E$58,2,FALSE)=0,\"\",VLOOKUP(AX73,'Footnotes list'!$D$9:$E$58,2,FALSE) ) )","v":""},null,null,null,null,{"$f":"IF(TRIM(BC73)=\"\", \"\", IF(VLOOKUP(BC73,'Footnotes list'!$D$9:$E$58,2,FALSE)=0,\"\",VLOOKUP(BC73,'Footnotes list'!$D$9:$E$58,2,FALSE) ) )","v":""},null,null,null,null,{"$f":"IF(TRIM(BH73)=\"\", \"\", IF(VLOOKUP(BH73,'Footnotes list'!$D$9:$E$58,2,FALSE)=0,\"\",VLOOKUP(BH73,'Footnotes list'!$D$9:$E$58,2,FALSE) ) )","v":""},null,null,null,null,{"$f":"IF(TRIM(BM73)=\"\", \"\", IF(VLOOKUP(BM73,'Footnotes list'!$D$9:$E$58,2,FALSE)=0,\"\",VLOOKUP(BM73,'Footnotes list'!$D$9:$E$58,2,FALSE) ) )","v":""},null,null,null,null,{"$f":"IF(TRIM(BR73)=\"\", \"\", IF(VLOOKUP(BR73,'Footnotes list'!$D$9:$E$58,2,FALSE)=0,\"\",VLOOKUP(BR73,'Footnotes list'!$D$9:$E$58,2,FALSE) ) )","v":""},null,null,null,null,{"$f":"IF(TRIM(BW73)=\"\", \"\", IF(VLOOKUP(BW73,'Footnotes list'!$D$9:$E$58,2,FALSE)=0,\"\",VLOOKUP(BW73,'Footnotes list'!$D$9:$E$58,2,FALSE) ) )","v":""},null,null,null,null,{"$f":"IF(TRIM(CB73)=\"\", \"\", IF(VLOOKUP(CB73,'Footnotes list'!$D$9:$E$58,2,FALSE)=0,\"\",VLOOKUP(CB73,'Footnotes list'!$D$9:$E$58,2,FALSE) ) )","v":""},null,null,null,null,{"$f":"IF(TRIM(CG73)=\"\", \"\", IF(VLOOKUP(CG73,'Footnotes list'!$D$9:$E$58,2,FALSE)=0,\"\",VLOOKUP(CG73,'Footnotes list'!$D$9:$E$58,2,FALSE) ) )","v":""},null,null,null,null,{"$f":"IF(TRIM(CL73)=\"\", \"\", IF(VLOOKUP(CL73,'Footnotes list'!$D$9:$E$58,2,FALSE)=0,\"\",VLOOKUP(CL73,'Footnotes list'!$D$9:$E$58,2,FALSE) ) )","v":""},null,null,null,null,{"$f":"IF(TRIM(CQ73)=\"\", \"\", IF(VLOOKUP(CQ73,'Footnotes list'!$D$9:$E$58,2,FALSE)=0,\"\",VLOOKUP(CQ73,'Footnotes list'!$D$9:$E$58,2,FALSE) ) )","v":""},null,null,null,null,{"$f":"IF(TRIM(CV73)=\"\", \"\", IF(VLOOKUP(CV73,'Footnotes list'!$D$9:$E$58,2,FALSE)=0,\"\",VLOOKUP(CV73,'Footnotes list'!$D$9:$E$58,2,FALSE) ) )","v":""},null,null,null,null,{"$f":"IF(TRIM(DA73)=\"\", \"\", IF(VLOOKUP(DA73,'Footnotes list'!$D$9:$E$58,2,FALSE)=0,\"\",VLOOKUP(DA73,'Footnotes list'!$D$9:$E$58,2,FALSE) ) )","v":""},null,null,null,null,{"$f":"IF(TRIM(DF73)=\"\", \"\", IF(VLOOKUP(DF73,'Footnotes list'!$D$9:$E$58,2,FALSE)=0,\"\",VLOOKUP(DF73,'Footnotes list'!$D$9:$E$58,2,FALSE) ) )","v":""},null,null,null,null,{"$f":"IF(TRIM(DK73)=\"\", \"\", IF(VLOOKUP(DK73,'Footnotes list'!$D$9:$E$58,2,FALSE)=0,\"\",VLOOKUP(DK73,'Footnotes list'!$D$9:$E$58,2,FALSE) ) )","v":""},null,null,null,null,{"$f":"IF(TRIM(DP73)=\"\", \"\", IF(VLOOKUP(DP73,'Footnotes list'!$D$9:$E$58,2,FALSE)=0,\"\",VLOOKUP(DP73,'Footnotes list'!$D$9:$E$58,2,FALSE) ) )","v":""},null,null,null,null,{"$f":"IF(TRIM(DU73)=\"\", \"\", IF(VLOOKUP(DU73,'Footnotes list'!$D$9:$E$58,2,FALSE)=0,\"\",VLOOKUP(DU73,'Footnotes list'!$D$9:$E$58,2,FALSE) ) )","v":""},null,null,null,null,{"$f":"IF(TRIM(DZ73)=\"\", \"\", IF(VLOOKUP(DZ73,'Footnotes list'!$D$9:$E$58,2,FALSE)=0,\"\",VLOOKUP(DZ73,'Footnotes list'!$D$9:$E$58,2,FALSE) ) )","v":""},null,null,null,null,{"$f":"IF(TRIM(EE73)=\"\", \"\", IF(VLOOKUP(EE73,'Footnotes list'!$D$9:$E$58,2,FALSE)=0,\"\",VLOOKUP(EE73,'Footnotes list'!$D$9:$E$58,2,FALSE) ) )","v":""},null,null,null,null,{"$f":"IF(TRIM(EJ73)=\"\", \"\", IF(VLOOKUP(EJ73,'Footnotes list'!$D$9:$E$58,2,FALSE)=0,\"\",VLOOKUP(EJ73,'Footnotes list'!$D$9:$E$58,2,FALSE) ) )","v":""},null,null,null,null,{"$f":"IF(TRIM(EO73)=\"\", \"\", IF(VLOOKUP(EO73,'Footnotes list'!$D$9:$E$58,2,FALSE)=0,\"\",VLOOKUP(EO73,'Footnotes list'!$D$9:$E$58,2,FALSE) ) )","v":""},null,null,null,null,{"$f":"IF(TRIM(ET73)=\"\", \"\", IF(VLOOKUP(ET73,'Footnotes list'!$D$9:$E$58,2,FALSE)=0,\"\",VLOOKUP(ET73,'Footnotes list'!$D$9:$E$58,2,FALSE) ) )","v":""},null,null,null,null,{"$f":"IF(TRIM(EY73)=\"\", \"\", IF(VLOOKUP(EY73,'Footnotes list'!$D$9:$E$58,2,FALSE)=0,\"\",VLOOKUP(EY73,'Footnotes list'!$D$9:$E$58,2,FALSE) ) )","v":""}]
[null,null,"E39","TOT_EGSS","Total E39 - Remediation activities and other waste management services, including:",null,null,null,null,null,{"$f":"IF(TRIM(J74)=\"\", \"\", IF(VLOOKUP(J74,'Footnotes list'!$D$9:$E$58,2,FALSE)=0,\"\",VLOOKUP(J74,'Footnotes list'!$D$9:$E$58,2,FALSE) ) )","v":""},null,null,null,null,{"$f":"IF(TRIM(O74)=\"\", \"\", IF(VLOOKUP(O74,'Footnotes list'!$D$9:$E$58,2,FALSE)=0,\"\",VLOOKUP(O74,'Footnotes list'!$D$9:$E$58,2,FALSE) ) )","v":""},null,null,null,null,{"$f":"IF(TRIM(T74)=\"\", \"\", IF(VLOOKUP(T74,'Footnotes list'!$D$9:$E$58,2,FALSE)=0,\"\",VLOOKUP(T74,'Footnotes list'!$D$9:$E$58,2,FALSE) ) )","v":""},null,null,null,null,{"$f":"IF(TRIM(Y74)=\"\", \"\", IF(VLOOKUP(Y74,'Footnotes list'!$D$9:$E$58,2,FALSE)=0,\"\",VLOOKUP(Y74,'Footnotes list'!$D$9:$E$58,2,FALSE) ) )","v":""},null,null,null,null,{"$f":"IF(TRIM(AD74)=\"\", \"\", IF(VLOOKUP(AD74,'Footnotes list'!$D$9:$E$58,2,FALSE)=0,\"\",VLOOKUP(AD74,'Footnotes list'!$D$9:$E$58,2,FALSE) ) )","v":""},null,null,null,null,{"$f":"IF(TRIM(AI74)=\"\", \"\", IF(VLOOKUP(AI74,'Footnotes list'!$D$9:$E$58,2,FALSE)=0,\"\",VLOOKUP(AI74,'Footnotes list'!$D$9:$E$58,2,FALSE) ) )","v":""},null,null,null,null,{"$f":"IF(TRIM(AN74)=\"\", \"\", IF(VLOOKUP(AN74,'Footnotes list'!$D$9:$E$58,2,FALSE)=0,\"\",VLOOKUP(AN74,'Footnotes list'!$D$9:$E$58,2,FALSE) ) )","v":""},null,null,null,null,{"$f":"IF(TRIM(AS74)=\"\", \"\", IF(VLOOKUP(AS74,'Footnotes list'!$D$9:$E$58,2,FALSE)=0,\"\",VLOOKUP(AS74,'Footnotes list'!$D$9:$E$58,2,FALSE) ) )","v":""},null,null,null,null,{"$f":"IF(TRIM(AX74)=\"\", \"\", IF(VLOOKUP(AX74,'Footnotes list'!$D$9:$E$58,2,FALSE)=0,\"\",VLOOKUP(AX74,'Footnotes list'!$D$9:$E$58,2,FALSE) ) )","v":""},null,null,null,null,{"$f":"IF(TRIM(BC74)=\"\", \"\", IF(VLOOKUP(BC74,'Footnotes list'!$D$9:$E$58,2,FALSE)=0,\"\",VLOOKUP(BC74,'Footnotes list'!$D$9:$E$58,2,FALSE) ) )","v":""},null,null,null,null,{"$f":"IF(TRIM(BH74)=\"\", \"\", IF(VLOOKUP(BH74,'Footnotes list'!$D$9:$E$58,2,FALSE)=0,\"\",VLOOKUP(BH74,'Footnotes list'!$D$9:$E$58,2,FALSE) ) )","v":""},null,null,null,null,{"$f":"IF(TRIM(BM74)=\"\", \"\", IF(VLOOKUP(BM74,'Footnotes list'!$D$9:$E$58,2,FALSE)=0,\"\",VLOOKUP(BM74,'Footnotes list'!$D$9:$E$58,2,FALSE) ) )","v":""},null,null,null,null,{"$f":"IF(TRIM(BR74)=\"\", \"\", IF(VLOOKUP(BR74,'Footnotes list'!$D$9:$E$58,2,FALSE)=0,\"\",VLOOKUP(BR74,'Footnotes list'!$D$9:$E$58,2,FALSE) ) )","v":""},null,null,null,null,{"$f":"IF(TRIM(BW74)=\"\", \"\", IF(VLOOKUP(BW74,'Footnotes list'!$D$9:$E$58,2,FALSE)=0,\"\",VLOOKUP(BW74,'Footnotes list'!$D$9:$E$58,2,FALSE) ) )","v":""},null,null,null,null,{"$f":"IF(TRIM(CB74)=\"\", \"\", IF(VLOOKUP(CB74,'Footnotes list'!$D$9:$E$58,2,FALSE)=0,\"\",VLOOKUP(CB74,'Footnotes list'!$D$9:$E$58,2,FALSE) ) )","v":""},null,null,null,null,{"$f":"IF(TRIM(CG74)=\"\", \"\", IF(VLOOKUP(CG74,'Footnotes list'!$D$9:$E$58,2,FALSE)=0,\"\",VLOOKUP(CG74,'Footnotes list'!$D$9:$E$58,2,FALSE) ) )","v":""},null,null,null,null,{"$f":"IF(TRIM(CL74)=\"\", \"\", IF(VLOOKUP(CL74,'Footnotes list'!$D$9:$E$58,2,FALSE)=0,\"\",VLOOKUP(CL74,'Footnotes list'!$D$9:$E$58,2,FALSE) ) )","v":""},null,null,null,null,{"$f":"IF(TRIM(CQ74)=\"\", \"\", IF(VLOOKUP(CQ74,'Footnotes list'!$D$9:$E$58,2,FALSE)=0,\"\",VLOOKUP(CQ74,'Footnotes list'!$D$9:$E$58,2,FALSE) ) )","v":""},null,null,null,null,{"$f":"IF(TRIM(CV74)=\"\", \"\", IF(VLOOKUP(CV74,'Footnotes list'!$D$9:$E$58,2,FALSE)=0,\"\",VLOOKUP(CV74,'Footnotes list'!$D$9:$E$58,2,FALSE) ) )","v":""},null,null,null,null,{"$f":"IF(TRIM(DA74)=\"\", \"\", IF(VLOOKUP(DA74,'Footnotes list'!$D$9:$E$58,2,FALSE)=0,\"\",VLOOKUP(DA74,'Footnotes list'!$D$9:$E$58,2,FALSE) ) )","v":""},null,null,null,null,{"$f":"IF(TRIM(DF74)=\"\", \"\", IF(VLOOKUP(DF74,'Footnotes list'!$D$9:$E$58,2,FALSE)=0,\"\",VLOOKUP(DF74,'Footnotes list'!$D$9:$E$58,2,FALSE) ) )","v":""},null,null,null,null,{"$f":"IF(TRIM(DK74)=\"\", \"\", IF(VLOOKUP(DK74,'Footnotes list'!$D$9:$E$58,2,FALSE)=0,\"\",VLOOKUP(DK74,'Footnotes list'!$D$9:$E$58,2,FALSE) ) )","v":""},null,null,null,null,{"$f":"IF(TRIM(DP74)=\"\", \"\", IF(VLOOKUP(DP74,'Footnotes list'!$D$9:$E$58,2,FALSE)=0,\"\",VLOOKUP(DP74,'Footnotes list'!$D$9:$E$58,2,FALSE) ) )","v":""},null,null,null,null,{"$f":"IF(TRIM(DU74)=\"\", \"\", IF(VLOOKUP(DU74,'Footnotes list'!$D$9:$E$58,2,FALSE)=0,\"\",VLOOKUP(DU74,'Footnotes list'!$D$9:$E$58,2,FALSE) ) )","v":""},null,null,null,null,{"$f":"IF(TRIM(DZ74)=\"\", \"\", IF(VLOOKUP(DZ74,'Footnotes list'!$D$9:$E$58,2,FALSE)=0,\"\",VLOOKUP(DZ74,'Footnotes list'!$D$9:$E$58,2,FALSE) ) )","v":""},null,null,null,null,{"$f":"IF(TRIM(EE74)=\"\", \"\", IF(VLOOKUP(EE74,'Footnotes list'!$D$9:$E$58,2,FALSE)=0,\"\",VLOOKUP(EE74,'Footnotes list'!$D$9:$E$58,2,FALSE) ) )","v":""},null,null,null,null,{"$f":"IF(TRIM(EJ74)=\"\", \"\", IF(VLOOKUP(EJ74,'Footnotes list'!$D$9:$E$58,2,FALSE)=0,\"\",VLOOKUP(EJ74,'Footnotes list'!$D$9:$E$58,2,FALSE) ) )","v":""},null,null,null,null,{"$f":"IF(TRIM(EO74)=\"\", \"\", IF(VLOOKUP(EO74,'Footnotes list'!$D$9:$E$58,2,FALSE)=0,\"\",VLOOKUP(EO74,'Footnotes list'!$D$9:$E$58,2,FALSE) ) )","v":""},null,null,null,null,{"$f":"IF(TRIM(ET74)=\"\", \"\", IF(VLOOKUP(ET74,'Footnotes list'!$D$9:$E$58,2,FALSE)=0,\"\",VLOOKUP(ET74,'Footnotes list'!$D$9:$E$58,2,FALSE) ) )","v":""},null,null,null,null,{"$f":"IF(TRIM(EY74)=\"\", \"\", IF(VLOOKUP(EY74,'Footnotes list'!$D$9:$E$58,2,FALSE)=0,\"\",VLOOKUP(EY74,'Footnotes list'!$D$9:$E$58,2,FALSE) ) )","v":""}]
[null,null,"E39","ES_CS","environmental specific services",null,null,null,null,null,{"$f":"IF(TRIM(J75)=\"\", \"\", IF(VLOOKUP(J75,'Footnotes list'!$D$9:$E$58,2,FALSE)=0,\"\",VLOOKUP(J75,'Footnotes list'!$D$9:$E$58,2,FALSE) ) )","v":""},null,null,null,null,{"$f":"IF(TRIM(O75)=\"\", \"\", IF(VLOOKUP(O75,'Footnotes list'!$D$9:$E$58,2,FALSE)=0,\"\",VLOOKUP(O75,'Footnotes list'!$D$9:$E$58,2,FALSE) ) )","v":""},null,null,null,null,{"$f":"IF(TRIM(T75)=\"\", \"\", IF(VLOOKUP(T75,'Footnotes list'!$D$9:$E$58,2,FALSE)=0,\"\",VLOOKUP(T75,'Footnotes list'!$D$9:$E$58,2,FALSE) ) )","v":""},null,null,null,null,{"$f":"IF(TRIM(Y75)=\"\", \"\", IF(VLOOKUP(Y75,'Footnotes list'!$D$9:$E$58,2,FALSE)=0,\"\",VLOOKUP(Y75,'Footnotes list'!$D$9:$E$58,2,FALSE) ) )","v":""},null,null,null,null,{"$f":"IF(TRIM(AD75)=\"\", \"\", IF(VLOOKUP(AD75,'Footnotes list'!$D$9:$E$58,2,FALSE)=0,\"\",VLOOKUP(AD75,'Footnotes list'!$D$9:$E$58,2,FALSE) ) )","v":""},null,null,null,null,{"$f":"IF(TRIM(AI75)=\"\", \"\", IF(VLOOKUP(AI75,'Footnotes list'!$D$9:$E$58,2,FALSE)=0,\"\",VLOOKUP(AI75,'Footnotes list'!$D$9:$E$58,2,FALSE) ) )","v":""},null,null,null,null,{"$f":"IF(TRIM(AN75)=\"\", \"\", IF(VLOOKUP(AN75,'Footnotes list'!$D$9:$E$58,2,FALSE)=0,\"\",VLOOKUP(AN75,'Footnotes list'!$D$9:$E$58,2,FALSE) ) )","v":""},null,null,null,null,{"$f":"IF(TRIM(AS75)=\"\", \"\", IF(VLOOKUP(AS75,'Footnotes list'!$D$9:$E$58,2,FALSE)=0,\"\",VLOOKUP(AS75,'Footnotes list'!$D$9:$E$58,2,FALSE) ) )","v":""},null,null,null,null,{"$f":"IF(TRIM(AX75)=\"\", \"\", IF(VLOOKUP(AX75,'Footnotes list'!$D$9:$E$58,2,FALSE)=0,\"\",VLOOKUP(AX75,'Footnotes list'!$D$9:$E$58,2,FALSE) ) )","v":""},null,null,null,null,{"$f":"IF(TRIM(BC75)=\"\", \"\", IF(VLOOKUP(BC75,'Footnotes list'!$D$9:$E$58,2,FALSE)=0,\"\",VLOOKUP(BC75,'Footnotes list'!$D$9:$E$58,2,FALSE) ) )","v":""},null,null,null,null,{"$f":"IF(TRIM(BH75)=\"\", \"\", IF(VLOOKUP(BH75,'Footnotes list'!$D$9:$E$58,2,FALSE)=0,\"\",VLOOKUP(BH75,'Footnotes list'!$D$9:$E$58,2,FALSE) ) )","v":""},null,null,null,null,{"$f":"IF(TRIM(BM75)=\"\", \"\", IF(VLOOKUP(BM75,'Footnotes list'!$D$9:$E$58,2,FALSE)=0,\"\",VLOOKUP(BM75,'Footnotes list'!$D$9:$E$58,2,FALSE) ) )","v":""},null,null,null,null,{"$f":"IF(TRIM(BR75)=\"\", \"\", IF(VLOOKUP(BR75,'Footnotes list'!$D$9:$E$58,2,FALSE)=0,\"\",VLOOKUP(BR75,'Footnotes list'!$D$9:$E$58,2,FALSE) ) )","v":""},null,null,null,null,{"$f":"IF(TRIM(BW75)=\"\", \"\", IF(VLOOKUP(BW75,'Footnotes list'!$D$9:$E$58,2,FALSE)=0,\"\",VLOOKUP(BW75,'Footnotes list'!$D$9:$E$58,2,FALSE) ) )","v":""},null,null,null,null,{"$f":"IF(TRIM(CB75)=\"\", \"\", IF(VLOOKUP(CB75,'Footnotes list'!$D$9:$E$58,2,FALSE)=0,\"\",VLOOKUP(CB75,'Footnotes list'!$D$9:$E$58,2,FALSE) ) )","v":""},null,null,null,null,{"$f":"IF(TRIM(CG75)=\"\", \"\", IF(VLOOKUP(CG75,'Footnotes list'!$D$9:$E$58,2,FALSE)=0,\"\",VLOOKUP(CG75,'Footnotes list'!$D$9:$E$58,2,FALSE) ) )","v":""},null,null,null,null,{"$f":"IF(TRIM(CL75)=\"\", \"\", IF(VLOOKUP(CL75,'Footnotes list'!$D$9:$E$58,2,FALSE)=0,\"\",VLOOKUP(CL75,'Footnotes list'!$D$9:$E$58,2,FALSE) ) )","v":""},null,null,null,null,{"$f":"IF(TRIM(CQ75)=\"\", \"\", IF(VLOOKUP(CQ75,'Footnotes list'!$D$9:$E$58,2,FALSE)=0,\"\",VLOOKUP(CQ75,'Footnotes list'!$D$9:$E$58,2,FALSE) ) )","v":""},null,null,null,null,{"$f":"IF(TRIM(CV75)=\"\", \"\", IF(VLOOKUP(CV75,'Footnotes list'!$D$9:$E$58,2,FALSE)=0,\"\",VLOOKUP(CV75,'Footnotes list'!$D$9:$E$58,2,FALSE) ) )","v":""},null,null,null,null,{"$f":"IF(TRIM(DA75)=\"\", \"\", IF(VLOOKUP(DA75,'Footnotes list'!$D$9:$E$58,2,FALSE)=0,\"\",VLOOKUP(DA75,'Footnotes list'!$D$9:$E$58,2,FALSE) ) )","v":""},null,null,null,null,{"$f":"IF(TRIM(DF75)=\"\", \"\", IF(VLOOKUP(DF75,'Footnotes list'!$D$9:$E$58,2,FALSE)=0,\"\",VLOOKUP(DF75,'Footnotes list'!$D$9:$E$58,2,FALSE) ) )","v":""},null,null,null,null,{"$f":"IF(TRIM(DK75)=\"\", \"\", IF(VLOOKUP(DK75,'Footnotes list'!$D$9:$E$58,2,FALSE)=0,\"\",VLOOKUP(DK75,'Footnotes list'!$D$9:$E$58,2,FALSE) ) )","v":""},null,null,null,null,{"$f":"IF(TRIM(DP75)=\"\", \"\", IF(VLOOKUP(DP75,'Footnotes list'!$D$9:$E$58,2,FALSE)=0,\"\",VLOOKUP(DP75,'Footnotes list'!$D$9:$E$58,2,FALSE) ) )","v":""},null,null,null,null,{"$f":"IF(TRIM(DU75)=\"\", \"\", IF(VLOOKUP(DU75,'Footnotes list'!$D$9:$E$58,2,FALSE)=0,\"\",VLOOKUP(DU75,'Footnotes list'!$D$9:$E$58,2,FALSE) ) )","v":""},null,null,null,null,{"$f":"IF(TRIM(DZ75)=\"\", \"\", IF(VLOOKUP(DZ75,'Footnotes list'!$D$9:$E$58,2,FALSE)=0,\"\",VLOOKUP(DZ75,'Footnotes list'!$D$9:$E$58,2,FALSE) ) )","v":""},null,null,null,null,{"$f":"IF(TRIM(EE75)=\"\", \"\", IF(VLOOKUP(EE75,'Footnotes list'!$D$9:$E$58,2,FALSE)=0,\"\",VLOOKUP(EE75,'Footnotes list'!$D$9:$E$58,2,FALSE) ) )","v":""},null,null,null,null,{"$f":"IF(TRIM(EJ75)=\"\", \"\", IF(VLOOKUP(EJ75,'Footnotes list'!$D$9:$E$58,2,FALSE)=0,\"\",VLOOKUP(EJ75,'Footnotes list'!$D$9:$E$58,2,FALSE) ) )","v":""},null,null,null,null,{"$f":"IF(TRIM(EO75)=\"\", \"\", IF(VLOOKUP(EO75,'Footnotes list'!$D$9:$E$58,2,FALSE)=0,\"\",VLOOKUP(EO75,'Footnotes list'!$D$9:$E$58,2,FALSE) ) )","v":""},null,null,null,null,{"$f":"IF(TRIM(ET75)=\"\", \"\", IF(VLOOKUP(ET75,'Footnotes list'!$D$9:$E$58,2,FALSE)=0,\"\",VLOOKUP(ET75,'Footnotes list'!$D$9:$E$58,2,FALSE) ) )","v":""},null,null,null,null,{"$f":"IF(TRIM(EY75)=\"\", \"\", IF(VLOOKUP(EY75,'Footnotes list'!$D$9:$E$58,2,FALSE)=0,\"\",VLOOKUP(EY75,'Footnotes list'!$D$9:$E$58,2,FALSE) ) )","v":""}]
[null,null,"E39","C_REP","cleaner and resource efficient products",null,null,null,null,null,{"$f":"IF(TRIM(J76)=\"\", \"\", IF(VLOOKUP(J76,'Footnotes list'!$D$9:$E$58,2,FALSE)=0,\"\",VLOOKUP(J76,'Footnotes list'!$D$9:$E$58,2,FALSE) ) )","v":""},null,null,null,null,{"$f":"IF(TRIM(O76)=\"\", \"\", IF(VLOOKUP(O76,'Footnotes list'!$D$9:$E$58,2,FALSE)=0,\"\",VLOOKUP(O76,'Footnotes list'!$D$9:$E$58,2,FALSE) ) )","v":""},null,null,null,null,{"$f":"IF(TRIM(T76)=\"\", \"\", IF(VLOOKUP(T76,'Footnotes list'!$D$9:$E$58,2,FALSE)=0,\"\",VLOOKUP(T76,'Footnotes list'!$D$9:$E$58,2,FALSE) ) )","v":""},null,null,null,null,{"$f":"IF(TRIM(Y76)=\"\", \"\", IF(VLOOKUP(Y76,'Footnotes list'!$D$9:$E$58,2,FALSE)=0,\"\",VLOOKUP(Y76,'Footnotes list'!$D$9:$E$58,2,FALSE) ) )","v":""},null,null,null,null,{"$f":"IF(TRIM(AD76)=\"\", \"\", IF(VLOOKUP(AD76,'Footnotes list'!$D$9:$E$58,2,FALSE)=0,\"\",VLOOKUP(AD76,'Footnotes list'!$D$9:$E$58,2,FALSE) ) )","v":""},null,null,null,null,{"$f":"IF(TRIM(AI76)=\"\", \"\", IF(VLOOKUP(AI76,'Footnotes list'!$D$9:$E$58,2,FALSE)=0,\"\",VLOOKUP(AI76,'Footnotes list'!$D$9:$E$58,2,FALSE) ) )","v":""},null,null,null,null,{"$f":"IF(TRIM(AN76)=\"\", \"\", IF(VLOOKUP(AN76,'Footnotes list'!$D$9:$E$58,2,FALSE)=0,\"\",VLOOKUP(AN76,'Footnotes list'!$D$9:$E$58,2,FALSE) ) )","v":""},null,null,null,null,{"$f":"IF(TRIM(AS76)=\"\", \"\", IF(VLOOKUP(AS76,'Footnotes list'!$D$9:$E$58,2,FALSE)=0,\"\",VLOOKUP(AS76,'Footnotes list'!$D$9:$E$58,2,FALSE) ) )","v":""},null,null,null,null,{"$f":"IF(TRIM(AX76)=\"\", \"\", IF(VLOOKUP(AX76,'Footnotes list'!$D$9:$E$58,2,FALSE)=0,\"\",VLOOKUP(AX76,'Footnotes list'!$D$9:$E$58,2,FALSE) ) )","v":""},null,null,null,null,{"$f":"IF(TRIM(BC76)=\"\", \"\", IF(VLOOKUP(BC76,'Footnotes list'!$D$9:$E$58,2,FALSE)=0,\"\",VLOOKUP(BC76,'Footnotes list'!$D$9:$E$58,2,FALSE) ) )","v":""},null,null,null,null,{"$f":"IF(TRIM(BH76)=\"\", \"\", IF(VLOOKUP(BH76,'Footnotes list'!$D$9:$E$58,2,FALSE)=0,\"\",VLOOKUP(BH76,'Footnotes list'!$D$9:$E$58,2,FALSE) ) )","v":""},null,null,null,null,{"$f":"IF(TRIM(BM76)=\"\", \"\", IF(VLOOKUP(BM76,'Footnotes list'!$D$9:$E$58,2,FALSE)=0,\"\",VLOOKUP(BM76,'Footnotes list'!$D$9:$E$58,2,FALSE) ) )","v":""},null,null,null,null,{"$f":"IF(TRIM(BR76)=\"\", \"\", IF(VLOOKUP(BR76,'Footnotes list'!$D$9:$E$58,2,FALSE)=0,\"\",VLOOKUP(BR76,'Footnotes list'!$D$9:$E$58,2,FALSE) ) )","v":""},null,null,null,null,{"$f":"IF(TRIM(BW76)=\"\", \"\", IF(VLOOKUP(BW76,'Footnotes list'!$D$9:$E$58,2,FALSE)=0,\"\",VLOOKUP(BW76,'Footnotes list'!$D$9:$E$58,2,FALSE) ) )","v":""},null,null,null,null,{"$f":"IF(TRIM(CB76)=\"\", \"\", IF(VLOOKUP(CB76,'Footnotes list'!$D$9:$E$58,2,FALSE)=0,\"\",VLOOKUP(CB76,'Footnotes list'!$D$9:$E$58,2,FALSE) ) )","v":""},null,null,null,null,{"$f":"IF(TRIM(CG76)=\"\", \"\", IF(VLOOKUP(CG76,'Footnotes list'!$D$9:$E$58,2,FALSE)=0,\"\",VLOOKUP(CG76,'Footnotes list'!$D$9:$E$58,2,FALSE) ) )","v":""},null,null,null,null,{"$f":"IF(TRIM(CL76)=\"\", \"\", IF(VLOOKUP(CL76,'Footnotes list'!$D$9:$E$58,2,FALSE)=0,\"\",VLOOKUP(CL76,'Footnotes list'!$D$9:$E$58,2,FALSE) ) )","v":""},null,null,null,null,{"$f":"IF(TRIM(CQ76)=\"\", \"\", IF(VLOOKUP(CQ76,'Footnotes list'!$D$9:$E$58,2,FALSE)=0,\"\",VLOOKUP(CQ76,'Footnotes list'!$D$9:$E$58,2,FALSE) ) )","v":""},null,null,null,null,{"$f":"IF(TRIM(CV76)=\"\", \"\", IF(VLOOKUP(CV76,'Footnotes list'!$D$9:$E$58,2,FALSE)=0,\"\",VLOOKUP(CV76,'Footnotes list'!$D$9:$E$58,2,FALSE) ) )","v":""},null,null,null,null,{"$f":"IF(TRIM(DA76)=\"\", \"\", IF(VLOOKUP(DA76,'Footnotes list'!$D$9:$E$58,2,FALSE)=0,\"\",VLOOKUP(DA76,'Footnotes list'!$D$9:$E$58,2,FALSE) ) )","v":""},null,null,null,null,{"$f":"IF(TRIM(DF76)=\"\", \"\", IF(VLOOKUP(DF76,'Footnotes list'!$D$9:$E$58,2,FALSE)=0,\"\",VLOOKUP(DF76,'Footnotes list'!$D$9:$E$58,2,FALSE) ) )","v":""},null,null,null,null,{"$f":"IF(TRIM(DK76)=\"\", \"\", IF(VLOOKUP(DK76,'Footnotes list'!$D$9:$E$58,2,FALSE)=0,\"\",VLOOKUP(DK76,'Footnotes list'!$D$9:$E$58,2,FALSE) ) )","v":""},null,null,null,null,{"$f":"IF(TRIM(DP76)=\"\", \"\", IF(VLOOKUP(DP76,'Footnotes list'!$D$9:$E$58,2,FALSE)=0,\"\",VLOOKUP(DP76,'Footnotes list'!$D$9:$E$58,2,FALSE) ) )","v":""},null,null,null,null,{"$f":"IF(TRIM(DU76)=\"\", \"\", IF(VLOOKUP(DU76,'Footnotes list'!$D$9:$E$58,2,FALSE)=0,\"\",VLOOKUP(DU76,'Footnotes list'!$D$9:$E$58,2,FALSE) ) )","v":""},null,null,null,null,{"$f":"IF(TRIM(DZ76)=\"\", \"\", IF(VLOOKUP(DZ76,'Footnotes list'!$D$9:$E$58,2,FALSE)=0,\"\",VLOOKUP(DZ76,'Footnotes list'!$D$9:$E$58,2,FALSE) ) )","v":""},null,null,null,null,{"$f":"IF(TRIM(EE76)=\"\", \"\", IF(VLOOKUP(EE76,'Footnotes list'!$D$9:$E$58,2,FALSE)=0,\"\",VLOOKUP(EE76,'Footnotes list'!$D$9:$E$58,2,FALSE) ) )","v":""},null,null,null,null,{"$f":"IF(TRIM(EJ76)=\"\", \"\", IF(VLOOKUP(EJ76,'Footnotes list'!$D$9:$E$58,2,FALSE)=0,\"\",VLOOKUP(EJ76,'Footnotes list'!$D$9:$E$58,2,FALSE) ) )","v":""},null,null,null,null,{"$f":"IF(TRIM(EO76)=\"\", \"\", IF(VLOOKUP(EO76,'Footnotes list'!$D$9:$E$58,2,FALSE)=0,\"\",VLOOKUP(EO76,'Footnotes list'!$D$9:$E$58,2,FALSE) ) )","v":""},null,null,null,null,{"$f":"IF(TRIM(ET76)=\"\", \"\", IF(VLOOKUP(ET76,'Footnotes list'!$D$9:$E$58,2,FALSE)=0,\"\",VLOOKUP(ET76,'Footnotes list'!$D$9:$E$58,2,FALSE) ) )","v":""},null,null,null,null,{"$f":"IF(TRIM(EY76)=\"\", \"\", IF(VLOOKUP(EY76,'Footnotes list'!$D$9:$E$58,2,FALSE)=0,\"\",VLOOKUP(EY76,'Footnotes list'!$D$9:$E$58,2,FALSE) ) )","v":""}]
[null,null,"F","TOT_EGSS","Total F - Construction, including:",null,null,null,null,null,{"$f":"IF(TRIM(J77)=\"\", \"\", IF(VLOOKUP(J77,'Footnotes list'!$D$9:$E$58,2,FALSE)=0,\"\",VLOOKUP(J77,'Footnotes list'!$D$9:$E$58,2,FALSE) ) )","v":""},null,null,null,null,{"$f":"IF(TRIM(O77)=\"\", \"\", IF(VLOOKUP(O77,'Footnotes list'!$D$9:$E$58,2,FALSE)=0,\"\",VLOOKUP(O77,'Footnotes list'!$D$9:$E$58,2,FALSE) ) )","v":""},null,null,null,null,{"$f":"IF(TRIM(T77)=\"\", \"\", IF(VLOOKUP(T77,'Footnotes list'!$D$9:$E$58,2,FALSE)=0,\"\",VLOOKUP(T77,'Footnotes list'!$D$9:$E$58,2,FALSE) ) )","v":""},null,null,null,null,{"$f":"IF(TRIM(Y77)=\"\", \"\", IF(VLOOKUP(Y77,'Footnotes list'!$D$9:$E$58,2,FALSE)=0,\"\",VLOOKUP(Y77,'Footnotes list'!$D$9:$E$58,2,FALSE) ) )","v":""},null,null,null,null,{"$f":"IF(TRIM(AD77)=\"\", \"\", IF(VLOOKUP(AD77,'Footnotes list'!$D$9:$E$58,2,FALSE)=0,\"\",VLOOKUP(AD77,'Footnotes list'!$D$9:$E$58,2,FALSE) ) )","v":""},null,null,null,null,{"$f":"IF(TRIM(AI77)=\"\", \"\", IF(VLOOKUP(AI77,'Footnotes list'!$D$9:$E$58,2,FALSE)=0,\"\",VLOOKUP(AI77,'Footnotes list'!$D$9:$E$58,2,FALSE) ) )","v":""},null,null,null,null,{"$f":"IF(TRIM(AN77)=\"\", \"\", IF(VLOOKUP(AN77,'Footnotes list'!$D$9:$E$58,2,FALSE)=0,\"\",VLOOKUP(AN77,'Footnotes list'!$D$9:$E$58,2,FALSE) ) )","v":""},null,null,null,null,{"$f":"IF(TRIM(AS77)=\"\", \"\", IF(VLOOKUP(AS77,'Footnotes list'!$D$9:$E$58,2,FALSE)=0,\"\",VLOOKUP(AS77,'Footnotes list'!$D$9:$E$58,2,FALSE) ) )","v":""},null,null,null,null,{"$f":"IF(TRIM(AX77)=\"\", \"\", IF(VLOOKUP(AX77,'Footnotes list'!$D$9:$E$58,2,FALSE)=0,\"\",VLOOKUP(AX77,'Footnotes list'!$D$9:$E$58,2,FALSE) ) )","v":""},null,null,null,null,{"$f":"IF(TRIM(BC77)=\"\", \"\", IF(VLOOKUP(BC77,'Footnotes list'!$D$9:$E$58,2,FALSE)=0,\"\",VLOOKUP(BC77,'Footnotes list'!$D$9:$E$58,2,FALSE) ) )","v":""},null,null,null,null,{"$f":"IF(TRIM(BH77)=\"\", \"\", IF(VLOOKUP(BH77,'Footnotes list'!$D$9:$E$58,2,FALSE)=0,\"\",VLOOKUP(BH77,'Footnotes list'!$D$9:$E$58,2,FALSE) ) )","v":""},null,null,null,null,{"$f":"IF(TRIM(BM77)=\"\", \"\", IF(VLOOKUP(BM77,'Footnotes list'!$D$9:$E$58,2,FALSE)=0,\"\",VLOOKUP(BM77,'Footnotes list'!$D$9:$E$58,2,FALSE) ) )","v":""},null,null,null,null,{"$f":"IF(TRIM(BR77)=\"\", \"\", IF(VLOOKUP(BR77,'Footnotes list'!$D$9:$E$58,2,FALSE)=0,\"\",VLOOKUP(BR77,'Footnotes list'!$D$9:$E$58,2,FALSE) ) )","v":""},null,null,null,null,{"$f":"IF(TRIM(BW77)=\"\", \"\", IF(VLOOKUP(BW77,'Footnotes list'!$D$9:$E$58,2,FALSE)=0,\"\",VLOOKUP(BW77,'Footnotes list'!$D$9:$E$58,2,FALSE) ) )","v":""},null,null,null,null,{"$f":"IF(TRIM(CB77)=\"\", \"\", IF(VLOOKUP(CB77,'Footnotes list'!$D$9:$E$58,2,FALSE)=0,\"\",VLOOKUP(CB77,'Footnotes list'!$D$9:$E$58,2,FALSE) ) )","v":""},null,null,null,null,{"$f":"IF(TRIM(CG77)=\"\", \"\", IF(VLOOKUP(CG77,'Footnotes list'!$D$9:$E$58,2,FALSE)=0,\"\",VLOOKUP(CG77,'Footnotes list'!$D$9:$E$58,2,FALSE) ) )","v":""},null,null,null,null,{"$f":"IF(TRIM(CL77)=\"\", \"\", IF(VLOOKUP(CL77,'Footnotes list'!$D$9:$E$58,2,FALSE)=0,\"\",VLOOKUP(CL77,'Footnotes list'!$D$9:$E$58,2,FALSE) ) )","v":""},null,null,null,null,{"$f":"IF(TRIM(CQ77)=\"\", \"\", IF(VLOOKUP(CQ77,'Footnotes list'!$D$9:$E$58,2,FALSE)=0,\"\",VLOOKUP(CQ77,'Footnotes list'!$D$9:$E$58,2,FALSE) ) )","v":""},null,null,null,null,{"$f":"IF(TRIM(CV77)=\"\", \"\", IF(VLOOKUP(CV77,'Footnotes list'!$D$9:$E$58,2,FALSE)=0,\"\",VLOOKUP(CV77,'Footnotes list'!$D$9:$E$58,2,FALSE) ) )","v":""},null,null,null,null,{"$f":"IF(TRIM(DA77)=\"\", \"\", IF(VLOOKUP(DA77,'Footnotes list'!$D$9:$E$58,2,FALSE)=0,\"\",VLOOKUP(DA77,'Footnotes list'!$D$9:$E$58,2,FALSE) ) )","v":""},null,null,null,null,{"$f":"IF(TRIM(DF77)=\"\", \"\", IF(VLOOKUP(DF77,'Footnotes list'!$D$9:$E$58,2,FALSE)=0,\"\",VLOOKUP(DF77,'Footnotes list'!$D$9:$E$58,2,FALSE) ) )","v":""},null,null,null,null,{"$f":"IF(TRIM(DK77)=\"\", \"\", IF(VLOOKUP(DK77,'Footnotes list'!$D$9:$E$58,2,FALSE)=0,\"\",VLOOKUP(DK77,'Footnotes list'!$D$9:$E$58,2,FALSE) ) )","v":""},null,null,null,null,{"$f":"IF(TRIM(DP77)=\"\", \"\", IF(VLOOKUP(DP77,'Footnotes list'!$D$9:$E$58,2,FALSE)=0,\"\",VLOOKUP(DP77,'Footnotes list'!$D$9:$E$58,2,FALSE) ) )","v":""},null,null,null,null,{"$f":"IF(TRIM(DU77)=\"\", \"\", IF(VLOOKUP(DU77,'Footnotes list'!$D$9:$E$58,2,FALSE)=0,\"\",VLOOKUP(DU77,'Footnotes list'!$D$9:$E$58,2,FALSE) ) )","v":""},null,null,null,null,{"$f":"IF(TRIM(DZ77)=\"\", \"\", IF(VLOOKUP(DZ77,'Footnotes list'!$D$9:$E$58,2,FALSE)=0,\"\",VLOOKUP(DZ77,'Footnotes list'!$D$9:$E$58,2,FALSE) ) )","v":""},null,null,null,null,{"$f":"IF(TRIM(EE77)=\"\", \"\", IF(VLOOKUP(EE77,'Footnotes list'!$D$9:$E$58,2,FALSE)=0,\"\",VLOOKUP(EE77,'Footnotes list'!$D$9:$E$58,2,FALSE) ) )","v":""},null,null,null,null,{"$f":"IF(TRIM(EJ77)=\"\", \"\", IF(VLOOKUP(EJ77,'Footnotes list'!$D$9:$E$58,2,FALSE)=0,\"\",VLOOKUP(EJ77,'Footnotes list'!$D$9:$E$58,2,FALSE) ) )","v":""},null,null,null,null,{"$f":"IF(TRIM(EO77)=\"\", \"\", IF(VLOOKUP(EO77,'Footnotes list'!$D$9:$E$58,2,FALSE)=0,\"\",VLOOKUP(EO77,'Footnotes list'!$D$9:$E$58,2,FALSE) ) )","v":""},null,null,null,null,{"$f":"IF(TRIM(ET77)=\"\", \"\", IF(VLOOKUP(ET77,'Footnotes list'!$D$9:$E$58,2,FALSE)=0,\"\",VLOOKUP(ET77,'Footnotes list'!$D$9:$E$58,2,FALSE) ) )","v":""},null,null,null,null,{"$f":"IF(TRIM(EY77)=\"\", \"\", IF(VLOOKUP(EY77,'Footnotes list'!$D$9:$E$58,2,FALSE)=0,\"\",VLOOKUP(EY77,'Footnotes list'!$D$9:$E$58,2,FALSE) ) )","v":""}]
[null,null,"F","ES_CS","environmental specific services",null,null,null,null,null,{"$f":"IF(TRIM(J78)=\"\", \"\", IF(VLOOKUP(J78,'Footnotes list'!$D$9:$E$58,2,FALSE)=0,\"\",VLOOKUP(J78,'Footnotes list'!$D$9:$E$58,2,FALSE) ) )","v":""},null,null,null,null,{"$f":"IF(TRIM(O78)=\"\", \"\", IF(VLOOKUP(O78,'Footnotes list'!$D$9:$E$58,2,FALSE)=0,\"\",VLOOKUP(O78,'Footnotes list'!$D$9:$E$58,2,FALSE) ) )","v":""},null,null,null,null,{"$f":"IF(TRIM(T78)=\"\", \"\", IF(VLOOKUP(T78,'Footnotes list'!$D$9:$E$58,2,FALSE)=0,\"\",VLOOKUP(T78,'Footnotes list'!$D$9:$E$58,2,FALSE) ) )","v":""},null,null,null,null,{"$f":"IF(TRIM(Y78)=\"\", \"\", IF(VLOOKUP(Y78,'Footnotes list'!$D$9:$E$58,2,FALSE)=0,\"\",VLOOKUP(Y78,'Footnotes list'!$D$9:$E$58,2,FALSE) ) )","v":""},null,null,null,null,{"$f":"IF(TRIM(AD78)=\"\", \"\", IF(VLOOKUP(AD78,'Footnotes list'!$D$9:$E$58,2,FALSE)=0,\"\",VLOOKUP(AD78,'Footnotes list'!$D$9:$E$58,2,FALSE) ) )","v":""},null,null,null,null,{"$f":"IF(TRIM(AI78)=\"\", \"\", IF(VLOOKUP(AI78,'Footnotes list'!$D$9:$E$58,2,FALSE)=0,\"\",VLOOKUP(AI78,'Footnotes list'!$D$9:$E$58,2,FALSE) ) )","v":""},null,null,null,null,{"$f":"IF(TRIM(AN78)=\"\", \"\", IF(VLOOKUP(AN78,'Footnotes list'!$D$9:$E$58,2,FALSE)=0,\"\",VLOOKUP(AN78,'Footnotes list'!$D$9:$E$58,2,FALSE) ) )","v":""},null,null,null,null,{"$f":"IF(TRIM(AS78)=\"\", \"\", IF(VLOOKUP(AS78,'Footnotes list'!$D$9:$E$58,2,FALSE)=0,\"\",VLOOKUP(AS78,'Footnotes list'!$D$9:$E$58,2,FALSE) ) )","v":""},null,null,null,null,{"$f":"IF(TRIM(AX78)=\"\", \"\", IF(VLOOKUP(AX78,'Footnotes list'!$D$9:$E$58,2,FALSE)=0,\"\",VLOOKUP(AX78,'Footnotes list'!$D$9:$E$58,2,FALSE) ) )","v":""},null,null,null,null,{"$f":"IF(TRIM(BC78)=\"\", \"\", IF(VLOOKUP(BC78,'Footnotes list'!$D$9:$E$58,2,FALSE)=0,\"\",VLOOKUP(BC78,'Footnotes list'!$D$9:$E$58,2,FALSE) ) )","v":""},null,null,null,null,{"$f":"IF(TRIM(BH78)=\"\", \"\", IF(VLOOKUP(BH78,'Footnotes list'!$D$9:$E$58,2,FALSE)=0,\"\",VLOOKUP(BH78,'Footnotes list'!$D$9:$E$58,2,FALSE) ) )","v":""},null,null,null,null,{"$f":"IF(TRIM(BM78)=\"\", \"\", IF(VLOOKUP(BM78,'Footnotes list'!$D$9:$E$58,2,FALSE)=0,\"\",VLOOKUP(BM78,'Footnotes list'!$D$9:$E$58,2,FALSE) ) )","v":""},null,null,null,null,{"$f":"IF(TRIM(BR78)=\"\", \"\", IF(VLOOKUP(BR78,'Footnotes list'!$D$9:$E$58,2,FALSE)=0,\"\",VLOOKUP(BR78,'Footnotes list'!$D$9:$E$58,2,FALSE) ) )","v":""},null,null,null,null,{"$f":"IF(TRIM(BW78)=\"\", \"\", IF(VLOOKUP(BW78,'Footnotes list'!$D$9:$E$58,2,FALSE)=0,\"\",VLOOKUP(BW78,'Footnotes list'!$D$9:$E$58,2,FALSE) ) )","v":""},null,null,null,null,{"$f":"IF(TRIM(CB78)=\"\", \"\", IF(VLOOKUP(CB78,'Footnotes list'!$D$9:$E$58,2,FALSE)=0,\"\",VLOOKUP(CB78,'Footnotes list'!$D$9:$E$58,2,FALSE) ) )","v":""},null,null,null,null,{"$f":"IF(TRIM(CG78)=\"\", \"\", IF(VLOOKUP(CG78,'Footnotes list'!$D$9:$E$58,2,FALSE)=0,\"\",VLOOKUP(CG78,'Footnotes list'!$D$9:$E$58,2,FALSE) ) )","v":""},null,null,null,null,{"$f":"IF(TRIM(CL78)=\"\", \"\", IF(VLOOKUP(CL78,'Footnotes list'!$D$9:$E$58,2,FALSE)=0,\"\",VLOOKUP(CL78,'Footnotes list'!$D$9:$E$58,2,FALSE) ) )","v":""},null,null,null,null,{"$f":"IF(TRIM(CQ78)=\"\", \"\", IF(VLOOKUP(CQ78,'Footnotes list'!$D$9:$E$58,2,FALSE)=0,\"\",VLOOKUP(CQ78,'Footnotes list'!$D$9:$E$58,2,FALSE) ) )","v":""},null,null,null,null,{"$f":"IF(TRIM(CV78)=\"\", \"\", IF(VLOOKUP(CV78,'Footnotes list'!$D$9:$E$58,2,FALSE)=0,\"\",VLOOKUP(CV78,'Footnotes list'!$D$9:$E$58,2,FALSE) ) )","v":""},null,null,null,null,{"$f":"IF(TRIM(DA78)=\"\", \"\", IF(VLOOKUP(DA78,'Footnotes list'!$D$9:$E$58,2,FALSE)=0,\"\",VLOOKUP(DA78,'Footnotes list'!$D$9:$E$58,2,FALSE) ) )","v":""},null,null,null,null,{"$f":"IF(TRIM(DF78)=\"\", \"\", IF(VLOOKUP(DF78,'Footnotes list'!$D$9:$E$58,2,FALSE)=0,\"\",VLOOKUP(DF78,'Footnotes list'!$D$9:$E$58,2,FALSE) ) )","v":""},null,null,null,null,{"$f":"IF(TRIM(DK78)=\"\", \"\", IF(VLOOKUP(DK78,'Footnotes list'!$D$9:$E$58,2,FALSE)=0,\"\",VLOOKUP(DK78,'Footnotes list'!$D$9:$E$58,2,FALSE) ) )","v":""},null,null,null,null,{"$f":"IF(TRIM(DP78)=\"\", \"\", IF(VLOOKUP(DP78,'Footnotes list'!$D$9:$E$58,2,FALSE)=0,\"\",VLOOKUP(DP78,'Footnotes list'!$D$9:$E$58,2,FALSE) ) )","v":""},null,null,null,null,{"$f":"IF(TRIM(DU78)=\"\", \"\", IF(VLOOKUP(DU78,'Footnotes list'!$D$9:$E$58,2,FALSE)=0,\"\",VLOOKUP(DU78,'Footnotes list'!$D$9:$E$58,2,FALSE) ) )","v":""},null,null,null,null,{"$f":"IF(TRIM(DZ78)=\"\", \"\", IF(VLOOKUP(DZ78,'Footnotes list'!$D$9:$E$58,2,FALSE)=0,\"\",VLOOKUP(DZ78,'Footnotes list'!$D$9:$E$58,2,FALSE) ) )","v":""},null,null,null,null,{"$f":"IF(TRIM(EE78)=\"\", \"\", IF(VLOOKUP(EE78,'Footnotes list'!$D$9:$E$58,2,FALSE)=0,\"\",VLOOKUP(EE78,'Footnotes list'!$D$9:$E$58,2,FALSE) ) )","v":""},null,null,null,null,{"$f":"IF(TRIM(EJ78)=\"\", \"\", IF(VLOOKUP(EJ78,'Footnotes list'!$D$9:$E$58,2,FALSE)=0,\"\",VLOOKUP(EJ78,'Footnotes list'!$D$9:$E$58,2,FALSE) ) )","v":""},null,null,null,null,{"$f":"IF(TRIM(EO78)=\"\", \"\", IF(VLOOKUP(EO78,'Footnotes list'!$D$9:$E$58,2,FALSE)=0,\"\",VLOOKUP(EO78,'Footnotes list'!$D$9:$E$58,2,FALSE) ) )","v":""},null,null,null,null,{"$f":"IF(TRIM(ET78)=\"\", \"\", IF(VLOOKUP(ET78,'Footnotes list'!$D$9:$E$58,2,FALSE)=0,\"\",VLOOKUP(ET78,'Footnotes list'!$D$9:$E$58,2,FALSE) ) )","v":""},null,null,null,null,{"$f":"IF(TRIM(EY78)=\"\", \"\", IF(VLOOKUP(EY78,'Footnotes list'!$D$9:$E$58,2,FALSE)=0,\"\",VLOOKUP(EY78,'Footnotes list'!$D$9:$E$58,2,FALSE) ) )","v":""}]
[null,null,"F","C_REP","cleaner and resource efficient products",null,null,null,null,null,{"$f":"IF(TRIM(J79)=\"\", \"\", IF(VLOOKUP(J79,'Footnotes list'!$D$9:$E$58,2,FALSE)=0,\"\",VLOOKUP(J79,'Footnotes list'!$D$9:$E$58,2,FALSE) ) )","v":""},null,null,null,null,{"$f":"IF(TRIM(O79)=\"\", \"\", IF(VLOOKUP(O79,'Footnotes list'!$D$9:$E$58,2,FALSE)=0,\"\",VLOOKUP(O79,'Footnotes list'!$D$9:$E$58,2,FALSE) ) )","v":""},null,null,null,null,{"$f":"IF(TRIM(T79)=\"\", \"\", IF(VLOOKUP(T79,'Footnotes list'!$D$9:$E$58,2,FALSE)=0,\"\",VLOOKUP(T79,'Footnotes list'!$D$9:$E$58,2,FALSE) ) )","v":""},null,null,null,null,{"$f":"IF(TRIM(Y79)=\"\", \"\", IF(VLOOKUP(Y79,'Footnotes list'!$D$9:$E$58,2,FALSE)=0,\"\",VLOOKUP(Y79,'Footnotes list'!$D$9:$E$58,2,FALSE) ) )","v":""},null,null,null,null,{"$f":"IF(TRIM(AD79)=\"\", \"\", IF(VLOOKUP(AD79,'Footnotes list'!$D$9:$E$58,2,FALSE)=0,\"\",VLOOKUP(AD79,'Footnotes list'!$D$9:$E$58,2,FALSE) ) )","v":""},null,null,null,null,{"$f":"IF(TRIM(AI79)=\"\", \"\", IF(VLOOKUP(AI79,'Footnotes list'!$D$9:$E$58,2,FALSE)=0,\"\",VLOOKUP(AI79,'Footnotes list'!$D$9:$E$58,2,FALSE) ) )","v":""},null,null,null,null,{"$f":"IF(TRIM(AN79)=\"\", \"\", IF(VLOOKUP(AN79,'Footnotes list'!$D$9:$E$58,2,FALSE)=0,\"\",VLOOKUP(AN79,'Footnotes list'!$D$9:$E$58,2,FALSE) ) )","v":""},null,null,null,null,{"$f":"IF(TRIM(AS79)=\"\", \"\", IF(VLOOKUP(AS79,'Footnotes list'!$D$9:$E$58,2,FALSE)=0,\"\",VLOOKUP(AS79,'Footnotes list'!$D$9:$E$58,2,FALSE) ) )","v":""},null,null,null,null,{"$f":"IF(TRIM(AX79)=\"\", \"\", IF(VLOOKUP(AX79,'Footnotes list'!$D$9:$E$58,2,FALSE)=0,\"\",VLOOKUP(AX79,'Footnotes list'!$D$9:$E$58,2,FALSE) ) )","v":""},null,null,null,null,{"$f":"IF(TRIM(BC79)=\"\", \"\", IF(VLOOKUP(BC79,'Footnotes list'!$D$9:$E$58,2,FALSE)=0,\"\",VLOOKUP(BC79,'Footnotes list'!$D$9:$E$58,2,FALSE) ) )","v":""},null,null,null,null,{"$f":"IF(TRIM(BH79)=\"\", \"\", IF(VLOOKUP(BH79,'Footnotes list'!$D$9:$E$58,2,FALSE)=0,\"\",VLOOKUP(BH79,'Footnotes list'!$D$9:$E$58,2,FALSE) ) )","v":""},null,null,null,null,{"$f":"IF(TRIM(BM79)=\"\", \"\", IF(VLOOKUP(BM79,'Footnotes list'!$D$9:$E$58,2,FALSE)=0,\"\",VLOOKUP(BM79,'Footnotes list'!$D$9:$E$58,2,FALSE) ) )","v":""},null,null,null,null,{"$f":"IF(TRIM(BR79)=\"\", \"\", IF(VLOOKUP(BR79,'Footnotes list'!$D$9:$E$58,2,FALSE)=0,\"\",VLOOKUP(BR79,'Footnotes list'!$D$9:$E$58,2,FALSE) ) )","v":""},null,null,null,null,{"$f":"IF(TRIM(BW79)=\"\", \"\", IF(VLOOKUP(BW79,'Footnotes list'!$D$9:$E$58,2,FALSE)=0,\"\",VLOOKUP(BW79,'Footnotes list'!$D$9:$E$58,2,FALSE) ) )","v":""},null,null,null,null,{"$f":"IF(TRIM(CB79)=\"\", \"\", IF(VLOOKUP(CB79,'Footnotes list'!$D$9:$E$58,2,FALSE)=0,\"\",VLOOKUP(CB79,'Footnotes list'!$D$9:$E$58,2,FALSE) ) )","v":""},null,null,null,null,{"$f":"IF(TRIM(CG79)=\"\", \"\", IF(VLOOKUP(CG79,'Footnotes list'!$D$9:$E$58,2,FALSE)=0,\"\",VLOOKUP(CG79,'Footnotes list'!$D$9:$E$58,2,FALSE) ) )","v":""},null,null,null,null,{"$f":"IF(TRIM(CL79)=\"\", \"\", IF(VLOOKUP(CL79,'Footnotes list'!$D$9:$E$58,2,FALSE)=0,\"\",VLOOKUP(CL79,'Footnotes list'!$D$9:$E$58,2,FALSE) ) )","v":""},null,null,null,null,{"$f":"IF(TRIM(CQ79)=\"\", \"\", IF(VLOOKUP(CQ79,'Footnotes list'!$D$9:$E$58,2,FALSE)=0,\"\",VLOOKUP(CQ79,'Footnotes list'!$D$9:$E$58,2,FALSE) ) )","v":""},null,null,null,null,{"$f":"IF(TRIM(CV79)=\"\", \"\", IF(VLOOKUP(CV79,'Footnotes list'!$D$9:$E$58,2,FALSE)=0,\"\",VLOOKUP(CV79,'Footnotes list'!$D$9:$E$58,2,FALSE) ) )","v":""},null,null,null,null,{"$f":"IF(TRIM(DA79)=\"\", \"\", IF(VLOOKUP(DA79,'Footnotes list'!$D$9:$E$58,2,FALSE)=0,\"\",VLOOKUP(DA79,'Footnotes list'!$D$9:$E$58,2,FALSE) ) )","v":""},null,null,null,null,{"$f":"IF(TRIM(DF79)=\"\", \"\", IF(VLOOKUP(DF79,'Footnotes list'!$D$9:$E$58,2,FALSE)=0,\"\",VLOOKUP(DF79,'Footnotes list'!$D$9:$E$58,2,FALSE) ) )","v":""},null,null,null,null,{"$f":"IF(TRIM(DK79)=\"\", \"\", IF(VLOOKUP(DK79,'Footnotes list'!$D$9:$E$58,2,FALSE)=0,\"\",VLOOKUP(DK79,'Footnotes list'!$D$9:$E$58,2,FALSE) ) )","v":""},null,null,null,null,{"$f":"IF(TRIM(DP79)=\"\", \"\", IF(VLOOKUP(DP79,'Footnotes list'!$D$9:$E$58,2,FALSE)=0,\"\",VLOOKUP(DP79,'Footnotes list'!$D$9:$E$58,2,FALSE) ) )","v":""},null,null,null,null,{"$f":"IF(TRIM(DU79)=\"\", \"\", IF(VLOOKUP(DU79,'Footnotes list'!$D$9:$E$58,2,FALSE)=0,\"\",VLOOKUP(DU79,'Footnotes list'!$D$9:$E$58,2,FALSE) ) )","v":""},null,null,null,null,{"$f":"IF(TRIM(DZ79)=\"\", \"\", IF(VLOOKUP(DZ79,'Footnotes list'!$D$9:$E$58,2,FALSE)=0,\"\",VLOOKUP(DZ79,'Footnotes list'!$D$9:$E$58,2,FALSE) ) )","v":""},null,null,null,null,{"$f":"IF(TRIM(EE79)=\"\", \"\", IF(VLOOKUP(EE79,'Footnotes list'!$D$9:$E$58,2,FALSE)=0,\"\",VLOOKUP(EE79,'Footnotes list'!$D$9:$E$58,2,FALSE) ) )","v":""},null,null,null,null,{"$f":"IF(TRIM(EJ79)=\"\", \"\", IF(VLOOKUP(EJ79,'Footnotes list'!$D$9:$E$58,2,FALSE)=0,\"\",VLOOKUP(EJ79,'Footnotes list'!$D$9:$E$58,2,FALSE) ) )","v":""},null,null,null,null,{"$f":"IF(TRIM(EO79)=\"\", \"\", IF(VLOOKUP(EO79,'Footnotes list'!$D$9:$E$58,2,FALSE)=0,\"\",VLOOKUP(EO79,'Footnotes list'!$D$9:$E$58,2,FALSE) ) )","v":""},null,null,null,null,{"$f":"IF(TRIM(ET79)=\"\", \"\", IF(VLOOKUP(ET79,'Footnotes list'!$D$9:$E$58,2,FALSE)=0,\"\",VLOOKUP(ET79,'Footnotes list'!$D$9:$E$58,2,FALSE) ) )","v":""},null,null,null,null,{"$f":"IF(TRIM(EY79)=\"\", \"\", IF(VLOOKUP(EY79,'Footnotes list'!$D$9:$E$58,2,FALSE)=0,\"\",VLOOKUP(EY79,'Footnotes list'!$D$9:$E$58,2,FALSE) ) )","v":""}]
[null,null,"G","TOT_EGSS","Total G - Wholesale and retail trade, including:",null,null,null,null,null,{"$f":"IF(TRIM(J80)=\"\", \"\", IF(VLOOKUP(J80,'Footnotes list'!$D$9:$E$58,2,FALSE)=0,\"\",VLOOKUP(J80,'Footnotes list'!$D$9:$E$58,2,FALSE) ) )","v":""},null,null,null,null,{"$f":"IF(TRIM(O80)=\"\", \"\", IF(VLOOKUP(O80,'Footnotes list'!$D$9:$E$58,2,FALSE)=0,\"\",VLOOKUP(O80,'Footnotes list'!$D$9:$E$58,2,FALSE) ) )","v":""},null,null,null,null,{"$f":"IF(TRIM(T80)=\"\", \"\", IF(VLOOKUP(T80,'Footnotes list'!$D$9:$E$58,2,FALSE)=0,\"\",VLOOKUP(T80,'Footnotes list'!$D$9:$E$58,2,FALSE) ) )","v":""},null,null,null,null,{"$f":"IF(TRIM(Y80)=\"\", \"\", IF(VLOOKUP(Y80,'Footnotes list'!$D$9:$E$58,2,FALSE)=0,\"\",VLOOKUP(Y80,'Footnotes list'!$D$9:$E$58,2,FALSE) ) )","v":""},null,null,null,null,{"$f":"IF(TRIM(AD80)=\"\", \"\", IF(VLOOKUP(AD80,'Footnotes list'!$D$9:$E$58,2,FALSE)=0,\"\",VLOOKUP(AD80,'Footnotes list'!$D$9:$E$58,2,FALSE) ) )","v":""},null,null,null,null,{"$f":"IF(TRIM(AI80)=\"\", \"\", IF(VLOOKUP(AI80,'Footnotes list'!$D$9:$E$58,2,FALSE)=0,\"\",VLOOKUP(AI80,'Footnotes list'!$D$9:$E$58,2,FALSE) ) )","v":""},null,null,null,null,{"$f":"IF(TRIM(AN80)=\"\", \"\", IF(VLOOKUP(AN80,'Footnotes list'!$D$9:$E$58,2,FALSE)=0,\"\",VLOOKUP(AN80,'Footnotes list'!$D$9:$E$58,2,FALSE) ) )","v":""},null,null,null,null,{"$f":"IF(TRIM(AS80)=\"\", \"\", IF(VLOOKUP(AS80,'Footnotes list'!$D$9:$E$58,2,FALSE)=0,\"\",VLOOKUP(AS80,'Footnotes list'!$D$9:$E$58,2,FALSE) ) )","v":""},null,null,null,null,{"$f":"IF(TRIM(AX80)=\"\", \"\", IF(VLOOKUP(AX80,'Footnotes list'!$D$9:$E$58,2,FALSE)=0,\"\",VLOOKUP(AX80,'Footnotes list'!$D$9:$E$58,2,FALSE) ) )","v":""},null,null,null,null,{"$f":"IF(TRIM(BC80)=\"\", \"\", IF(VLOOKUP(BC80,'Footnotes list'!$D$9:$E$58,2,FALSE)=0,\"\",VLOOKUP(BC80,'Footnotes list'!$D$9:$E$58,2,FALSE) ) )","v":""},null,null,null,null,{"$f":"IF(TRIM(BH80)=\"\", \"\", IF(VLOOKUP(BH80,'Footnotes list'!$D$9:$E$58,2,FALSE)=0,\"\",VLOOKUP(BH80,'Footnotes list'!$D$9:$E$58,2,FALSE) ) )","v":""},null,null,null,null,{"$f":"IF(TRIM(BM80)=\"\", \"\", IF(VLOOKUP(BM80,'Footnotes list'!$D$9:$E$58,2,FALSE)=0,\"\",VLOOKUP(BM80,'Footnotes list'!$D$9:$E$58,2,FALSE) ) )","v":""},null,null,null,null,{"$f":"IF(TRIM(BR80)=\"\", \"\", IF(VLOOKUP(BR80,'Footnotes list'!$D$9:$E$58,2,FALSE)=0,\"\",VLOOKUP(BR80,'Footnotes list'!$D$9:$E$58,2,FALSE) ) )","v":""},null,null,null,null,{"$f":"IF(TRIM(BW80)=\"\", \"\", IF(VLOOKUP(BW80,'Footnotes list'!$D$9:$E$58,2,FALSE)=0,\"\",VLOOKUP(BW80,'Footnotes list'!$D$9:$E$58,2,FALSE) ) )","v":""},null,null,null,null,{"$f":"IF(TRIM(CB80)=\"\", \"\", IF(VLOOKUP(CB80,'Footnotes list'!$D$9:$E$58,2,FALSE)=0,\"\",VLOOKUP(CB80,'Footnotes list'!$D$9:$E$58,2,FALSE) ) )","v":""},null,null,null,null,{"$f":"IF(TRIM(CG80)=\"\", \"\", IF(VLOOKUP(CG80,'Footnotes list'!$D$9:$E$58,2,FALSE)=0,\"\",VLOOKUP(CG80,'Footnotes list'!$D$9:$E$58,2,FALSE) ) )","v":""},null,null,null,null,{"$f":"IF(TRIM(CL80)=\"\", \"\", IF(VLOOKUP(CL80,'Footnotes list'!$D$9:$E$58,2,FALSE)=0,\"\",VLOOKUP(CL80,'Footnotes list'!$D$9:$E$58,2,FALSE) ) )","v":""},null,null,null,null,{"$f":"IF(TRIM(CQ80)=\"\", \"\", IF(VLOOKUP(CQ80,'Footnotes list'!$D$9:$E$58,2,FALSE)=0,\"\",VLOOKUP(CQ80,'Footnotes list'!$D$9:$E$58,2,FALSE) ) )","v":""},null,null,null,null,{"$f":"IF(TRIM(CV80)=\"\", \"\", IF(VLOOKUP(CV80,'Footnotes list'!$D$9:$E$58,2,FALSE)=0,\"\",VLOOKUP(CV80,'Footnotes list'!$D$9:$E$58,2,FALSE) ) )","v":""},null,null,null,null,{"$f":"IF(TRIM(DA80)=\"\", \"\", IF(VLOOKUP(DA80,'Footnotes list'!$D$9:$E$58,2,FALSE)=0,\"\",VLOOKUP(DA80,'Footnotes list'!$D$9:$E$58,2,FALSE) ) )","v":""},null,null,null,null,{"$f":"IF(TRIM(DF80)=\"\", \"\", IF(VLOOKUP(DF80,'Footnotes list'!$D$9:$E$58,2,FALSE)=0,\"\",VLOOKUP(DF80,'Footnotes list'!$D$9:$E$58,2,FALSE) ) )","v":""},null,null,null,null,{"$f":"IF(TRIM(DK80)=\"\", \"\", IF(VLOOKUP(DK80,'Footnotes list'!$D$9:$E$58,2,FALSE)=0,\"\",VLOOKUP(DK80,'Footnotes list'!$D$9:$E$58,2,FALSE) ) )","v":""},null,null,null,null,{"$f":"IF(TRIM(DP80)=\"\", \"\", IF(VLOOKUP(DP80,'Footnotes list'!$D$9:$E$58,2,FALSE)=0,\"\",VLOOKUP(DP80,'Footnotes list'!$D$9:$E$58,2,FALSE) ) )","v":""},null,null,null,null,{"$f":"IF(TRIM(DU80)=\"\", \"\", IF(VLOOKUP(DU80,'Footnotes list'!$D$9:$E$58,2,FALSE)=0,\"\",VLOOKUP(DU80,'Footnotes list'!$D$9:$E$58,2,FALSE) ) )","v":""},null,null,null,null,{"$f":"IF(TRIM(DZ80)=\"\", \"\", IF(VLOOKUP(DZ80,'Footnotes list'!$D$9:$E$58,2,FALSE)=0,\"\",VLOOKUP(DZ80,'Footnotes list'!$D$9:$E$58,2,FALSE) ) )","v":""},null,null,null,null,{"$f":"IF(TRIM(EE80)=\"\", \"\", IF(VLOOKUP(EE80,'Footnotes list'!$D$9:$E$58,2,FALSE)=0,\"\",VLOOKUP(EE80,'Footnotes list'!$D$9:$E$58,2,FALSE) ) )","v":""},null,null,null,null,{"$f":"IF(TRIM(EJ80)=\"\", \"\", IF(VLOOKUP(EJ80,'Footnotes list'!$D$9:$E$58,2,FALSE)=0,\"\",VLOOKUP(EJ80,'Footnotes list'!$D$9:$E$58,2,FALSE) ) )","v":""},null,null,null,null,{"$f":"IF(TRIM(EO80)=\"\", \"\", IF(VLOOKUP(EO80,'Footnotes list'!$D$9:$E$58,2,FALSE)=0,\"\",VLOOKUP(EO80,'Footnotes list'!$D$9:$E$58,2,FALSE) ) )","v":""},null,null,null,null,{"$f":"IF(TRIM(ET80)=\"\", \"\", IF(VLOOKUP(ET80,'Footnotes list'!$D$9:$E$58,2,FALSE)=0,\"\",VLOOKUP(ET80,'Footnotes list'!$D$9:$E$58,2,FALSE) ) )","v":""},null,null,null,null,{"$f":"IF(TRIM(EY80)=\"\", \"\", IF(VLOOKUP(EY80,'Footnotes list'!$D$9:$E$58,2,FALSE)=0,\"\",VLOOKUP(EY80,'Footnotes list'!$D$9:$E$58,2,FALSE) ) )","v":""}]
[null,null,"G","ES_CS","environmental specific services",null,null,null,null,null,{"$f":"IF(TRIM(J81)=\"\", \"\", IF(VLOOKUP(J81,'Footnotes list'!$D$9:$E$58,2,FALSE)=0,\"\",VLOOKUP(J81,'Footnotes list'!$D$9:$E$58,2,FALSE) ) )","v":""},null,null,null,null,{"$f":"IF(TRIM(O81)=\"\", \"\", IF(VLOOKUP(O81,'Footnotes list'!$D$9:$E$58,2,FALSE)=0,\"\",VLOOKUP(O81,'Footnotes list'!$D$9:$E$58,2,FALSE) ) )","v":""},null,null,null,null,{"$f":"IF(TRIM(T81)=\"\", \"\", IF(VLOOKUP(T81,'Footnotes list'!$D$9:$E$58,2,FALSE)=0,\"\",VLOOKUP(T81,'Footnotes list'!$D$9:$E$58,2,FALSE) ) )","v":""},null,null,null,null,{"$f":"IF(TRIM(Y81)=\"\", \"\", IF(VLOOKUP(Y81,'Footnotes list'!$D$9:$E$58,2,FALSE)=0,\"\",VLOOKUP(Y81,'Footnotes list'!$D$9:$E$58,2,FALSE) ) )","v":""},null,null,null,null,{"$f":"IF(TRIM(AD81)=\"\", \"\", IF(VLOOKUP(AD81,'Footnotes list'!$D$9:$E$58,2,FALSE)=0,\"\",VLOOKUP(AD81,'Footnotes list'!$D$9:$E$58,2,FALSE) ) )","v":""},null,null,null,null,{"$f":"IF(TRIM(AI81)=\"\", \"\", IF(VLOOKUP(AI81,'Footnotes list'!$D$9:$E$58,2,FALSE)=0,\"\",VLOOKUP(AI81,'Footnotes list'!$D$9:$E$58,2,FALSE) ) )","v":""},null,null,null,null,{"$f":"IF(TRIM(AN81)=\"\", \"\", IF(VLOOKUP(AN81,'Footnotes list'!$D$9:$E$58,2,FALSE)=0,\"\",VLOOKUP(AN81,'Footnotes list'!$D$9:$E$58,2,FALSE) ) )","v":""},null,null,null,null,{"$f":"IF(TRIM(AS81)=\"\", \"\", IF(VLOOKUP(AS81,'Footnotes list'!$D$9:$E$58,2,FALSE)=0,\"\",VLOOKUP(AS81,'Footnotes list'!$D$9:$E$58,2,FALSE) ) )","v":""},null,null,null,null,{"$f":"IF(TRIM(AX81)=\"\", \"\", IF(VLOOKUP(AX81,'Footnotes list'!$D$9:$E$58,2,FALSE)=0,\"\",VLOOKUP(AX81,'Footnotes list'!$D$9:$E$58,2,FALSE) ) )","v":""},null,null,null,null,{"$f":"IF(TRIM(BC81)=\"\", \"\", IF(VLOOKUP(BC81,'Footnotes list'!$D$9:$E$58,2,FALSE)=0,\"\",VLOOKUP(BC81,'Footnotes list'!$D$9:$E$58,2,FALSE) ) )","v":""},null,null,null,null,{"$f":"IF(TRIM(BH81)=\"\", \"\", IF(VLOOKUP(BH81,'Footnotes list'!$D$9:$E$58,2,FALSE)=0,\"\",VLOOKUP(BH81,'Footnotes list'!$D$9:$E$58,2,FALSE) ) )","v":""},null,null,null,null,{"$f":"IF(TRIM(BM81)=\"\", \"\", IF(VLOOKUP(BM81,'Footnotes list'!$D$9:$E$58,2,FALSE)=0,\"\",VLOOKUP(BM81,'Footnotes list'!$D$9:$E$58,2,FALSE) ) )","v":""},null,null,null,null,{"$f":"IF(TRIM(BR81)=\"\", \"\", IF(VLOOKUP(BR81,'Footnotes list'!$D$9:$E$58,2,FALSE)=0,\"\",VLOOKUP(BR81,'Footnotes list'!$D$9:$E$58,2,FALSE) ) )","v":""},null,null,null,null,{"$f":"IF(TRIM(BW81)=\"\", \"\", IF(VLOOKUP(BW81,'Footnotes list'!$D$9:$E$58,2,FALSE)=0,\"\",VLOOKUP(BW81,'Footnotes list'!$D$9:$E$58,2,FALSE) ) )","v":""},null,null,null,null,{"$f":"IF(TRIM(CB81)=\"\", \"\", IF(VLOOKUP(CB81,'Footnotes list'!$D$9:$E$58,2,FALSE)=0,\"\",VLOOKUP(CB81,'Footnotes list'!$D$9:$E$58,2,FALSE) ) )","v":""},null,null,null,null,{"$f":"IF(TRIM(CG81)=\"\", \"\", IF(VLOOKUP(CG81,'Footnotes list'!$D$9:$E$58,2,FALSE)=0,\"\",VLOOKUP(CG81,'Footnotes list'!$D$9:$E$58,2,FALSE) ) )","v":""},null,null,null,null,{"$f":"IF(TRIM(CL81)=\"\", \"\", IF(VLOOKUP(CL81,'Footnotes list'!$D$9:$E$58,2,FALSE)=0,\"\",VLOOKUP(CL81,'Footnotes list'!$D$9:$E$58,2,FALSE) ) )","v":""},null,null,null,null,{"$f":"IF(TRIM(CQ81)=\"\", \"\", IF(VLOOKUP(CQ81,'Footnotes list'!$D$9:$E$58,2,FALSE)=0,\"\",VLOOKUP(CQ81,'Footnotes list'!$D$9:$E$58,2,FALSE) ) )","v":""},null,null,null,null,{"$f":"IF(TRIM(CV81)=\"\", \"\", IF(VLOOKUP(CV81,'Footnotes list'!$D$9:$E$58,2,FALSE)=0,\"\",VLOOKUP(CV81,'Footnotes list'!$D$9:$E$58,2,FALSE) ) )","v":""},null,null,null,null,{"$f":"IF(TRIM(DA81)=\"\", \"\", IF(VLOOKUP(DA81,'Footnotes list'!$D$9:$E$58,2,FALSE)=0,\"\",VLOOKUP(DA81,'Footnotes list'!$D$9:$E$58,2,FALSE) ) )","v":""},null,null,null,null,{"$f":"IF(TRIM(DF81)=\"\", \"\", IF(VLOOKUP(DF81,'Footnotes list'!$D$9:$E$58,2,FALSE)=0,\"\",VLOOKUP(DF81,'Footnotes list'!$D$9:$E$58,2,FALSE) ) )","v":""},null,null,null,null,{"$f":"IF(TRIM(DK81)=\"\", \"\", IF(VLOOKUP(DK81,'Footnotes list'!$D$9:$E$58,2,FALSE)=0,\"\",VLOOKUP(DK81,'Footnotes list'!$D$9:$E$58,2,FALSE) ) )","v":""},null,null,null,null,{"$f":"IF(TRIM(DP81)=\"\", \"\", IF(VLOOKUP(DP81,'Footnotes list'!$D$9:$E$58,2,FALSE)=0,\"\",VLOOKUP(DP81,'Footnotes list'!$D$9:$E$58,2,FALSE) ) )","v":""},null,null,null,null,{"$f":"IF(TRIM(DU81)=\"\", \"\", IF(VLOOKUP(DU81,'Footnotes list'!$D$9:$E$58,2,FALSE)=0,\"\",VLOOKUP(DU81,'Footnotes list'!$D$9:$E$58,2,FALSE) ) )","v":""},null,null,null,null,{"$f":"IF(TRIM(DZ81)=\"\", \"\", IF(VLOOKUP(DZ81,'Footnotes list'!$D$9:$E$58,2,FALSE)=0,\"\",VLOOKUP(DZ81,'Footnotes list'!$D$9:$E$58,2,FALSE) ) )","v":""},null,null,null,null,{"$f":"IF(TRIM(EE81)=\"\", \"\", IF(VLOOKUP(EE81,'Footnotes list'!$D$9:$E$58,2,FALSE)=0,\"\",VLOOKUP(EE81,'Footnotes list'!$D$9:$E$58,2,FALSE) ) )","v":""},null,null,null,null,{"$f":"IF(TRIM(EJ81)=\"\", \"\", IF(VLOOKUP(EJ81,'Footnotes list'!$D$9:$E$58,2,FALSE)=0,\"\",VLOOKUP(EJ81,'Footnotes list'!$D$9:$E$58,2,FALSE) ) )","v":""},null,null,null,null,{"$f":"IF(TRIM(EO81)=\"\", \"\", IF(VLOOKUP(EO81,'Footnotes list'!$D$9:$E$58,2,FALSE)=0,\"\",VLOOKUP(EO81,'Footnotes list'!$D$9:$E$58,2,FALSE) ) )","v":""},null,null,null,null,{"$f":"IF(TRIM(ET81)=\"\", \"\", IF(VLOOKUP(ET81,'Footnotes list'!$D$9:$E$58,2,FALSE)=0,\"\",VLOOKUP(ET81,'Footnotes list'!$D$9:$E$58,2,FALSE) ) )","v":""},null,null,null,null,{"$f":"IF(TRIM(EY81)=\"\", \"\", IF(VLOOKUP(EY81,'Footnotes list'!$D$9:$E$58,2,FALSE)=0,\"\",VLOOKUP(EY81,'Footnotes list'!$D$9:$E$58,2,FALSE) ) )","v":""}]
[null,null,"G","C_REP","cleaner and resource efficient products",null,null,null,null,null,{"$f":"IF(TRIM(J82)=\"\", \"\", IF(VLOOKUP(J82,'Footnotes list'!$D$9:$E$58,2,FALSE)=0,\"\",VLOOKUP(J82,'Footnotes list'!$D$9:$E$58,2,FALSE) ) )","v":""},null,null,null,null,{"$f":"IF(TRIM(O82)=\"\", \"\", IF(VLOOKUP(O82,'Footnotes list'!$D$9:$E$58,2,FALSE)=0,\"\",VLOOKUP(O82,'Footnotes list'!$D$9:$E$58,2,FALSE) ) )","v":""},null,null,null,null,{"$f":"IF(TRIM(T82)=\"\", \"\", IF(VLOOKUP(T82,'Footnotes list'!$D$9:$E$58,2,FALSE)=0,\"\",VLOOKUP(T82,'Footnotes list'!$D$9:$E$58,2,FALSE) ) )","v":""},null,null,null,null,{"$f":"IF(TRIM(Y82)=\"\", \"\", IF(VLOOKUP(Y82,'Footnotes list'!$D$9:$E$58,2,FALSE)=0,\"\",VLOOKUP(Y82,'Footnotes list'!$D$9:$E$58,2,FALSE) ) )","v":""},null,null,null,null,{"$f":"IF(TRIM(AD82)=\"\", \"\", IF(VLOOKUP(AD82,'Footnotes list'!$D$9:$E$58,2,FALSE)=0,\"\",VLOOKUP(AD82,'Footnotes list'!$D$9:$E$58,2,FALSE) ) )","v":""},null,null,null,null,{"$f":"IF(TRIM(AI82)=\"\", \"\", IF(VLOOKUP(AI82,'Footnotes list'!$D$9:$E$58,2,FALSE)=0,\"\",VLOOKUP(AI82,'Footnotes list'!$D$9:$E$58,2,FALSE) ) )","v":""},null,null,null,null,{"$f":"IF(TRIM(AN82)=\"\", \"\", IF(VLOOKUP(AN82,'Footnotes list'!$D$9:$E$58,2,FALSE)=0,\"\",VLOOKUP(AN82,'Footnotes list'!$D$9:$E$58,2,FALSE) ) )","v":""},null,null,null,null,{"$f":"IF(TRIM(AS82)=\"\", \"\", IF(VLOOKUP(AS82,'Footnotes list'!$D$9:$E$58,2,FALSE)=0,\"\",VLOOKUP(AS82,'Footnotes list'!$D$9:$E$58,2,FALSE) ) )","v":""},null,null,null,null,{"$f":"IF(TRIM(AX82)=\"\", \"\", IF(VLOOKUP(AX82,'Footnotes list'!$D$9:$E$58,2,FALSE)=0,\"\",VLOOKUP(AX82,'Footnotes list'!$D$9:$E$58,2,FALSE) ) )","v":""},null,null,null,null,{"$f":"IF(TRIM(BC82)=\"\", \"\", IF(VLOOKUP(BC82,'Footnotes list'!$D$9:$E$58,2,FALSE)=0,\"\",VLOOKUP(BC82,'Footnotes list'!$D$9:$E$58,2,FALSE) ) )","v":""},null,null,null,null,{"$f":"IF(TRIM(BH82)=\"\", \"\", IF(VLOOKUP(BH82,'Footnotes list'!$D$9:$E$58,2,FALSE)=0,\"\",VLOOKUP(BH82,'Footnotes list'!$D$9:$E$58,2,FALSE) ) )","v":""},null,null,null,null,{"$f":"IF(TRIM(BM82)=\"\", \"\", IF(VLOOKUP(BM82,'Footnotes list'!$D$9:$E$58,2,FALSE)=0,\"\",VLOOKUP(BM82,'Footnotes list'!$D$9:$E$58,2,FALSE) ) )","v":""},null,null,null,null,{"$f":"IF(TRIM(BR82)=\"\", \"\", IF(VLOOKUP(BR82,'Footnotes list'!$D$9:$E$58,2,FALSE)=0,\"\",VLOOKUP(BR82,'Footnotes list'!$D$9:$E$58,2,FALSE) ) )","v":""},null,null,null,null,{"$f":"IF(TRIM(BW82)=\"\", \"\", IF(VLOOKUP(BW82,'Footnotes list'!$D$9:$E$58,2,FALSE)=0,\"\",VLOOKUP(BW82,'Footnotes list'!$D$9:$E$58,2,FALSE) ) )","v":""},null,null,null,null,{"$f":"IF(TRIM(CB82)=\"\", \"\", IF(VLOOKUP(CB82,'Footnotes list'!$D$9:$E$58,2,FALSE)=0,\"\",VLOOKUP(CB82,'Footnotes list'!$D$9:$E$58,2,FALSE) ) )","v":""},null,null,null,null,{"$f":"IF(TRIM(CG82)=\"\", \"\", IF(VLOOKUP(CG82,'Footnotes list'!$D$9:$E$58,2,FALSE)=0,\"\",VLOOKUP(CG82,'Footnotes list'!$D$9:$E$58,2,FALSE) ) )","v":""},null,null,null,null,{"$f":"IF(TRIM(CL82)=\"\", \"\", IF(VLOOKUP(CL82,'Footnotes list'!$D$9:$E$58,2,FALSE)=0,\"\",VLOOKUP(CL82,'Footnotes list'!$D$9:$E$58,2,FALSE) ) )","v":""},null,null,null,null,{"$f":"IF(TRIM(CQ82)=\"\", \"\", IF(VLOOKUP(CQ82,'Footnotes list'!$D$9:$E$58,2,FALSE)=0,\"\",VLOOKUP(CQ82,'Footnotes list'!$D$9:$E$58,2,FALSE) ) )","v":""},null,null,null,null,{"$f":"IF(TRIM(CV82)=\"\", \"\", IF(VLOOKUP(CV82,'Footnotes list'!$D$9:$E$58,2,FALSE)=0,\"\",VLOOKUP(CV82,'Footnotes list'!$D$9:$E$58,2,FALSE) ) )","v":""},null,null,null,null,{"$f":"IF(TRIM(DA82)=\"\", \"\", IF(VLOOKUP(DA82,'Footnotes list'!$D$9:$E$58,2,FALSE)=0,\"\",VLOOKUP(DA82,'Footnotes list'!$D$9:$E$58,2,FALSE) ) )","v":""},null,null,null,null,{"$f":"IF(TRIM(DF82)=\"\", \"\", IF(VLOOKUP(DF82,'Footnotes list'!$D$9:$E$58,2,FALSE)=0,\"\",VLOOKUP(DF82,'Footnotes list'!$D$9:$E$58,2,FALSE) ) )","v":""},null,null,null,null,{"$f":"IF(TRIM(DK82)=\"\", \"\", IF(VLOOKUP(DK82,'Footnotes list'!$D$9:$E$58,2,FALSE)=0,\"\",VLOOKUP(DK82,'Footnotes list'!$D$9:$E$58,2,FALSE) ) )","v":""},null,null,null,null,{"$f":"IF(TRIM(DP82)=\"\", \"\", IF(VLOOKUP(DP82,'Footnotes list'!$D$9:$E$58,2,FALSE)=0,\"\",VLOOKUP(DP82,'Footnotes list'!$D$9:$E$58,2,FALSE) ) )","v":""},null,null,null,null,{"$f":"IF(TRIM(DU82)=\"\", \"\", IF(VLOOKUP(DU82,'Footnotes list'!$D$9:$E$58,2,FALSE)=0,\"\",VLOOKUP(DU82,'Footnotes list'!$D$9:$E$58,2,FALSE) ) )","v":""},null,null,null,null,{"$f":"IF(TRIM(DZ82)=\"\", \"\", IF(VLOOKUP(DZ82,'Footnotes list'!$D$9:$E$58,2,FALSE)=0,\"\",VLOOKUP(DZ82,'Footnotes list'!$D$9:$E$58,2,FALSE) ) )","v":""},null,null,null,null,{"$f":"IF(TRIM(EE82)=\"\", \"\", IF(VLOOKUP(EE82,'Footnotes list'!$D$9:$E$58,2,FALSE)=0,\"\",VLOOKUP(EE82,'Footnotes list'!$D$9:$E$58,2,FALSE) ) )","v":""},null,null,null,null,{"$f":"IF(TRIM(EJ82)=\"\", \"\", IF(VLOOKUP(EJ82,'Footnotes list'!$D$9:$E$58,2,FALSE)=0,\"\",VLOOKUP(EJ82,'Footnotes list'!$D$9:$E$58,2,FALSE) ) )","v":""},null,null,null,null,{"$f":"IF(TRIM(EO82)=\"\", \"\", IF(VLOOKUP(EO82,'Footnotes list'!$D$9:$E$58,2,FALSE)=0,\"\",VLOOKUP(EO82,'Footnotes list'!$D$9:$E$58,2,FALSE) ) )","v":""},null,null,null,null,{"$f":"IF(TRIM(ET82)=\"\", \"\", IF(VLOOKUP(ET82,'Footnotes list'!$D$9:$E$58,2,FALSE)=0,\"\",VLOOKUP(ET82,'Footnotes list'!$D$9:$E$58,2,FALSE) ) )","v":""},null,null,null,null,{"$f":"IF(TRIM(EY82)=\"\", \"\", IF(VLOOKUP(EY82,'Footnotes list'!$D$9:$E$58,2,FALSE)=0,\"\",VLOOKUP(EY82,'Footnotes list'!$D$9:$E$58,2,FALSE) ) )","v":""}]
[null,null,"H","TOT_EGSS","Total H - Transportation and storage, including:",null,null,null,null,null,{"$f":"IF(TRIM(J83)=\"\", \"\", IF(VLOOKUP(J83,'Footnotes list'!$D$9:$E$58,2,FALSE)=0,\"\",VLOOKUP(J83,'Footnotes list'!$D$9:$E$58,2,FALSE) ) )","v":""},null,null,null,null,{"$f":"IF(TRIM(O83)=\"\", \"\", IF(VLOOKUP(O83,'Footnotes list'!$D$9:$E$58,2,FALSE)=0,\"\",VLOOKUP(O83,'Footnotes list'!$D$9:$E$58,2,FALSE) ) )","v":""},null,null,null,null,{"$f":"IF(TRIM(T83)=\"\", \"\", IF(VLOOKUP(T83,'Footnotes list'!$D$9:$E$58,2,FALSE)=0,\"\",VLOOKUP(T83,'Footnotes list'!$D$9:$E$58,2,FALSE) ) )","v":""},null,null,null,null,{"$f":"IF(TRIM(Y83)=\"\", \"\", IF(VLOOKUP(Y83,'Footnotes list'!$D$9:$E$58,2,FALSE)=0,\"\",VLOOKUP(Y83,'Footnotes list'!$D$9:$E$58,2,FALSE) ) )","v":""},null,null,null,null,{"$f":"IF(TRIM(AD83)=\"\", \"\", IF(VLOOKUP(AD83,'Footnotes list'!$D$9:$E$58,2,FALSE)=0,\"\",VLOOKUP(AD83,'Footnotes list'!$D$9:$E$58,2,FALSE) ) )","v":""},null,null,null,null,{"$f":"IF(TRIM(AI83)=\"\", \"\", IF(VLOOKUP(AI83,'Footnotes list'!$D$9:$E$58,2,FALSE)=0,\"\",VLOOKUP(AI83,'Footnotes list'!$D$9:$E$58,2,FALSE) ) )","v":""},null,null,null,null,{"$f":"IF(TRIM(AN83)=\"\", \"\", IF(VLOOKUP(AN83,'Footnotes list'!$D$9:$E$58,2,FALSE)=0,\"\",VLOOKUP(AN83,'Footnotes list'!$D$9:$E$58,2,FALSE) ) )","v":""},null,null,null,null,{"$f":"IF(TRIM(AS83)=\"\", \"\", IF(VLOOKUP(AS83,'Footnotes list'!$D$9:$E$58,2,FALSE)=0,\"\",VLOOKUP(AS83,'Footnotes list'!$D$9:$E$58,2,FALSE) ) )","v":""},null,null,null,null,{"$f":"IF(TRIM(AX83)=\"\", \"\", IF(VLOOKUP(AX83,'Footnotes list'!$D$9:$E$58,2,FALSE)=0,\"\",VLOOKUP(AX83,'Footnotes list'!$D$9:$E$58,2,FALSE) ) )","v":""},null,null,null,null,{"$f":"IF(TRIM(BC83)=\"\", \"\", IF(VLOOKUP(BC83,'Footnotes list'!$D$9:$E$58,2,FALSE)=0,\"\",VLOOKUP(BC83,'Footnotes list'!$D$9:$E$58,2,FALSE) ) )","v":""},null,null,null,null,{"$f":"IF(TRIM(BH83)=\"\", \"\", IF(VLOOKUP(BH83,'Footnotes list'!$D$9:$E$58,2,FALSE)=0,\"\",VLOOKUP(BH83,'Footnotes list'!$D$9:$E$58,2,FALSE) ) )","v":""},null,null,null,null,{"$f":"IF(TRIM(BM83)=\"\", \"\", IF(VLOOKUP(BM83,'Footnotes list'!$D$9:$E$58,2,FALSE)=0,\"\",VLOOKUP(BM83,'Footnotes list'!$D$9:$E$58,2,FALSE) ) )","v":""},null,null,null,null,{"$f":"IF(TRIM(BR83)=\"\", \"\", IF(VLOOKUP(BR83,'Footnotes list'!$D$9:$E$58,2,FALSE)=0,\"\",VLOOKUP(BR83,'Footnotes list'!$D$9:$E$58,2,FALSE) ) )","v":""},null,null,null,null,{"$f":"IF(TRIM(BW83)=\"\", \"\", IF(VLOOKUP(BW83,'Footnotes list'!$D$9:$E$58,2,FALSE)=0,\"\",VLOOKUP(BW83,'Footnotes list'!$D$9:$E$58,2,FALSE) ) )","v":""},null,null,null,null,{"$f":"IF(TRIM(CB83)=\"\", \"\", IF(VLOOKUP(CB83,'Footnotes list'!$D$9:$E$58,2,FALSE)=0,\"\",VLOOKUP(CB83,'Footnotes list'!$D$9:$E$58,2,FALSE) ) )","v":""},null,null,null,null,{"$f":"IF(TRIM(CG83)=\"\", \"\", IF(VLOOKUP(CG83,'Footnotes list'!$D$9:$E$58,2,FALSE)=0,\"\",VLOOKUP(CG83,'Footnotes list'!$D$9:$E$58,2,FALSE) ) )","v":""},null,null,null,null,{"$f":"IF(TRIM(CL83)=\"\", \"\", IF(VLOOKUP(CL83,'Footnotes list'!$D$9:$E$58,2,FALSE)=0,\"\",VLOOKUP(CL83,'Footnotes list'!$D$9:$E$58,2,FALSE) ) )","v":""},null,null,null,null,{"$f":"IF(TRIM(CQ83)=\"\", \"\", IF(VLOOKUP(CQ83,'Footnotes list'!$D$9:$E$58,2,FALSE)=0,\"\",VLOOKUP(CQ83,'Footnotes list'!$D$9:$E$58,2,FALSE) ) )","v":""},null,null,null,null,{"$f":"IF(TRIM(CV83)=\"\", \"\", IF(VLOOKUP(CV83,'Footnotes list'!$D$9:$E$58,2,FALSE)=0,\"\",VLOOKUP(CV83,'Footnotes list'!$D$9:$E$58,2,FALSE) ) )","v":""},null,null,null,null,{"$f":"IF(TRIM(DA83)=\"\", \"\", IF(VLOOKUP(DA83,'Footnotes list'!$D$9:$E$58,2,FALSE)=0,\"\",VLOOKUP(DA83,'Footnotes list'!$D$9:$E$58,2,FALSE) ) )","v":""},null,null,null,null,{"$f":"IF(TRIM(DF83)=\"\", \"\", IF(VLOOKUP(DF83,'Footnotes list'!$D$9:$E$58,2,FALSE)=0,\"\",VLOOKUP(DF83,'Footnotes list'!$D$9:$E$58,2,FALSE) ) )","v":""},null,null,null,null,{"$f":"IF(TRIM(DK83)=\"\", \"\", IF(VLOOKUP(DK83,'Footnotes list'!$D$9:$E$58,2,FALSE)=0,\"\",VLOOKUP(DK83,'Footnotes list'!$D$9:$E$58,2,FALSE) ) )","v":""},null,null,null,null,{"$f":"IF(TRIM(DP83)=\"\", \"\", IF(VLOOKUP(DP83,'Footnotes list'!$D$9:$E$58,2,FALSE)=0,\"\",VLOOKUP(DP83,'Footnotes list'!$D$9:$E$58,2,FALSE) ) )","v":""},null,null,null,null,{"$f":"IF(TRIM(DU83)=\"\", \"\", IF(VLOOKUP(DU83,'Footnotes list'!$D$9:$E$58,2,FALSE)=0,\"\",VLOOKUP(DU83,'Footnotes list'!$D$9:$E$58,2,FALSE) ) )","v":""},null,null,null,null,{"$f":"IF(TRIM(DZ83)=\"\", \"\", IF(VLOOKUP(DZ83,'Footnotes list'!$D$9:$E$58,2,FALSE)=0,\"\",VLOOKUP(DZ83,'Footnotes list'!$D$9:$E$58,2,FALSE) ) )","v":""},null,null,null,null,{"$f":"IF(TRIM(EE83)=\"\", \"\", IF(VLOOKUP(EE83,'Footnotes list'!$D$9:$E$58,2,FALSE)=0,\"\",VLOOKUP(EE83,'Footnotes list'!$D$9:$E$58,2,FALSE) ) )","v":""},null,null,null,null,{"$f":"IF(TRIM(EJ83)=\"\", \"\", IF(VLOOKUP(EJ83,'Footnotes list'!$D$9:$E$58,2,FALSE)=0,\"\",VLOOKUP(EJ83,'Footnotes list'!$D$9:$E$58,2,FALSE) ) )","v":""},null,null,null,null,{"$f":"IF(TRIM(EO83)=\"\", \"\", IF(VLOOKUP(EO83,'Footnotes list'!$D$9:$E$58,2,FALSE)=0,\"\",VLOOKUP(EO83,'Footnotes list'!$D$9:$E$58,2,FALSE) ) )","v":""},null,null,null,null,{"$f":"IF(TRIM(ET83)=\"\", \"\", IF(VLOOKUP(ET83,'Footnotes list'!$D$9:$E$58,2,FALSE)=0,\"\",VLOOKUP(ET83,'Footnotes list'!$D$9:$E$58,2,FALSE) ) )","v":""},null,null,null,null,{"$f":"IF(TRIM(EY83)=\"\", \"\", IF(VLOOKUP(EY83,'Footnotes list'!$D$9:$E$58,2,FALSE)=0,\"\",VLOOKUP(EY83,'Footnotes list'!$D$9:$E$58,2,FALSE) ) )","v":""}]
[null,null,"H","ES_CS","environmental specific services",null,null,null,null,null,{"$f":"IF(TRIM(J84)=\"\", \"\", IF(VLOOKUP(J84,'Footnotes list'!$D$9:$E$58,2,FALSE)=0,\"\",VLOOKUP(J84,'Footnotes list'!$D$9:$E$58,2,FALSE) ) )","v":""},null,null,null,null,{"$f":"IF(TRIM(O84)=\"\", \"\", IF(VLOOKUP(O84,'Footnotes list'!$D$9:$E$58,2,FALSE)=0,\"\",VLOOKUP(O84,'Footnotes list'!$D$9:$E$58,2,FALSE) ) )","v":""},null,null,null,null,{"$f":"IF(TRIM(T84)=\"\", \"\", IF(VLOOKUP(T84,'Footnotes list'!$D$9:$E$58,2,FALSE)=0,\"\",VLOOKUP(T84,'Footnotes list'!$D$9:$E$58,2,FALSE) ) )","v":""},null,null,null,null,{"$f":"IF(TRIM(Y84)=\"\", \"\", IF(VLOOKUP(Y84,'Footnotes list'!$D$9:$E$58,2,FALSE)=0,\"\",VLOOKUP(Y84,'Footnotes list'!$D$9:$E$58,2,FALSE) ) )","v":""},null,null,null,null,{"$f":"IF(TRIM(AD84)=\"\", \"\", IF(VLOOKUP(AD84,'Footnotes list'!$D$9:$E$58,2,FALSE)=0,\"\",VLOOKUP(AD84,'Footnotes list'!$D$9:$E$58,2,FALSE) ) )","v":""},null,null,null,null,{"$f":"IF(TRIM(AI84)=\"\", \"\", IF(VLOOKUP(AI84,'Footnotes list'!$D$9:$E$58,2,FALSE)=0,\"\",VLOOKUP(AI84,'Footnotes list'!$D$9:$E$58,2,FALSE) ) )","v":""},null,null,null,null,{"$f":"IF(TRIM(AN84)=\"\", \"\", IF(VLOOKUP(AN84,'Footnotes list'!$D$9:$E$58,2,FALSE)=0,\"\",VLOOKUP(AN84,'Footnotes list'!$D$9:$E$58,2,FALSE) ) )","v":""},null,null,null,null,{"$f":"IF(TRIM(AS84)=\"\", \"\", IF(VLOOKUP(AS84,'Footnotes list'!$D$9:$E$58,2,FALSE)=0,\"\",VLOOKUP(AS84,'Footnotes list'!$D$9:$E$58,2,FALSE) ) )","v":""},null,null,null,null,{"$f":"IF(TRIM(AX84)=\"\", \"\", IF(VLOOKUP(AX84,'Footnotes list'!$D$9:$E$58,2,FALSE)=0,\"\",VLOOKUP(AX84,'Footnotes list'!$D$9:$E$58,2,FALSE) ) )","v":""},null,null,null,null,{"$f":"IF(TRIM(BC84)=\"\", \"\", IF(VLOOKUP(BC84,'Footnotes list'!$D$9:$E$58,2,FALSE)=0,\"\",VLOOKUP(BC84,'Footnotes list'!$D$9:$E$58,2,FALSE) ) )","v":""},null,null,null,null,{"$f":"IF(TRIM(BH84)=\"\", \"\", IF(VLOOKUP(BH84,'Footnotes list'!$D$9:$E$58,2,FALSE)=0,\"\",VLOOKUP(BH84,'Footnotes list'!$D$9:$E$58,2,FALSE) ) )","v":""},null,null,null,null,{"$f":"IF(TRIM(BM84)=\"\", \"\", IF(VLOOKUP(BM84,'Footnotes list'!$D$9:$E$58,2,FALSE)=0,\"\",VLOOKUP(BM84,'Footnotes list'!$D$9:$E$58,2,FALSE) ) )","v":""},null,null,null,null,{"$f":"IF(TRIM(BR84)=\"\", \"\", IF(VLOOKUP(BR84,'Footnotes list'!$D$9:$E$58,2,FALSE)=0,\"\",VLOOKUP(BR84,'Footnotes list'!$D$9:$E$58,2,FALSE) ) )","v":""},null,null,null,null,{"$f":"IF(TRIM(BW84)=\"\", \"\", IF(VLOOKUP(BW84,'Footnotes list'!$D$9:$E$58,2,FALSE)=0,\"\",VLOOKUP(BW84,'Footnotes list'!$D$9:$E$58,2,FALSE) ) )","v":""},null,null,null,null,{"$f":"IF(TRIM(CB84)=\"\", \"\", IF(VLOOKUP(CB84,'Footnotes list'!$D$9:$E$58,2,FALSE)=0,\"\",VLOOKUP(CB84,'Footnotes list'!$D$9:$E$58,2,FALSE) ) )","v":""},null,null,null,null,{"$f":"IF(TRIM(CG84)=\"\", \"\", IF(VLOOKUP(CG84,'Footnotes list'!$D$9:$E$58,2,FALSE)=0,\"\",VLOOKUP(CG84,'Footnotes list'!$D$9:$E$58,2,FALSE) ) )","v":""},null,null,null,null,{"$f":"IF(TRIM(CL84)=\"\", \"\", IF(VLOOKUP(CL84,'Footnotes list'!$D$9:$E$58,2,FALSE)=0,\"\",VLOOKUP(CL84,'Footnotes list'!$D$9:$E$58,2,FALSE) ) )","v":""},null,null,null,null,{"$f":"IF(TRIM(CQ84)=\"\", \"\", IF(VLOOKUP(CQ84,'Footnotes list'!$D$9:$E$58,2,FALSE)=0,\"\",VLOOKUP(CQ84,'Footnotes list'!$D$9:$E$58,2,FALSE) ) )","v":""},null,null,null,null,{"$f":"IF(TRIM(CV84)=\"\", \"\", IF(VLOOKUP(CV84,'Footnotes list'!$D$9:$E$58,2,FALSE)=0,\"\",VLOOKUP(CV84,'Footnotes list'!$D$9:$E$58,2,FALSE) ) )","v":""},null,null,null,null,{"$f":"IF(TRIM(DA84)=\"\", \"\", IF(VLOOKUP(DA84,'Footnotes list'!$D$9:$E$58,2,FALSE)=0,\"\",VLOOKUP(DA84,'Footnotes list'!$D$9:$E$58,2,FALSE) ) )","v":""},null,null,null,null,{"$f":"IF(TRIM(DF84)=\"\", \"\", IF(VLOOKUP(DF84,'Footnotes list'!$D$9:$E$58,2,FALSE)=0,\"\",VLOOKUP(DF84,'Footnotes list'!$D$9:$E$58,2,FALSE) ) )","v":""},null,null,null,null,{"$f":"IF(TRIM(DK84)=\"\", \"\", IF(VLOOKUP(DK84,'Footnotes list'!$D$9:$E$58,2,FALSE)=0,\"\",VLOOKUP(DK84,'Footnotes list'!$D$9:$E$58,2,FALSE) ) )","v":""},null,null,null,null,{"$f":"IF(TRIM(DP84)=\"\", \"\", IF(VLOOKUP(DP84,'Footnotes list'!$D$9:$E$58,2,FALSE)=0,\"\",VLOOKUP(DP84,'Footnotes list'!$D$9:$E$58,2,FALSE) ) )","v":""},null,null,null,null,{"$f":"IF(TRIM(DU84)=\"\", \"\", IF(VLOOKUP(DU84,'Footnotes list'!$D$9:$E$58,2,FALSE)=0,\"\",VLOOKUP(DU84,'Footnotes list'!$D$9:$E$58,2,FALSE) ) )","v":""},null,null,null,null,{"$f":"IF(TRIM(DZ84)=\"\", \"\", IF(VLOOKUP(DZ84,'Footnotes list'!$D$9:$E$58,2,FALSE)=0,\"\",VLOOKUP(DZ84,'Footnotes list'!$D$9:$E$58,2,FALSE) ) )","v":""},null,null,null,null,{"$f":"IF(TRIM(EE84)=\"\", \"\", IF(VLOOKUP(EE84,'Footnotes list'!$D$9:$E$58,2,FALSE)=0,\"\",VLOOKUP(EE84,'Footnotes list'!$D$9:$E$58,2,FALSE) ) )","v":""},null,null,null,null,{"$f":"IF(TRIM(EJ84)=\"\", \"\", IF(VLOOKUP(EJ84,'Footnotes list'!$D$9:$E$58,2,FALSE)=0,\"\",VLOOKUP(EJ84,'Footnotes list'!$D$9:$E$58,2,FALSE) ) )","v":""},null,null,null,null,{"$f":"IF(TRIM(EO84)=\"\", \"\", IF(VLOOKUP(EO84,'Footnotes list'!$D$9:$E$58,2,FALSE)=0,\"\",VLOOKUP(EO84,'Footnotes list'!$D$9:$E$58,2,FALSE) ) )","v":""},null,null,null,null,{"$f":"IF(TRIM(ET84)=\"\", \"\", IF(VLOOKUP(ET84,'Footnotes list'!$D$9:$E$58,2,FALSE)=0,\"\",VLOOKUP(ET84,'Footnotes list'!$D$9:$E$58,2,FALSE) ) )","v":""},null,null,null,null,{"$f":"IF(TRIM(EY84)=\"\", \"\", IF(VLOOKUP(EY84,'Footnotes list'!$D$9:$E$58,2,FALSE)=0,\"\",VLOOKUP(EY84,'Footnotes list'!$D$9:$E$58,2,FALSE) ) )","v":""}]
[null,null,"H","C_REP","cleaner and resource efficient products",null,null,null,null,null,{"$f":"IF(TRIM(J85)=\"\", \"\", IF(VLOOKUP(J85,'Footnotes list'!$D$9:$E$58,2,FALSE)=0,\"\",VLOOKUP(J85,'Footnotes list'!$D$9:$E$58,2,FALSE) ) )","v":""},null,null,null,null,{"$f":"IF(TRIM(O85)=\"\", \"\", IF(VLOOKUP(O85,'Footnotes list'!$D$9:$E$58,2,FALSE)=0,\"\",VLOOKUP(O85,'Footnotes list'!$D$9:$E$58,2,FALSE) ) )","v":""},null,null,null,null,{"$f":"IF(TRIM(T85)=\"\", \"\", IF(VLOOKUP(T85,'Footnotes list'!$D$9:$E$58,2,FALSE)=0,\"\",VLOOKUP(T85,'Footnotes list'!$D$9:$E$58,2,FALSE) ) )","v":""},null,null,null,null,{"$f":"IF(TRIM(Y85)=\"\", \"\", IF(VLOOKUP(Y85,'Footnotes list'!$D$9:$E$58,2,FALSE)=0,\"\",VLOOKUP(Y85,'Footnotes list'!$D$9:$E$58,2,FALSE) ) )","v":""},null,null,null,null,{"$f":"IF(TRIM(AD85)=\"\", \"\", IF(VLOOKUP(AD85,'Footnotes list'!$D$9:$E$58,2,FALSE)=0,\"\",VLOOKUP(AD85,'Footnotes list'!$D$9:$E$58,2,FALSE) ) )","v":""},null,null,null,null,{"$f":"IF(TRIM(AI85)=\"\", \"\", IF(VLOOKUP(AI85,'Footnotes list'!$D$9:$E$58,2,FALSE)=0,\"\",VLOOKUP(AI85,'Footnotes list'!$D$9:$E$58,2,FALSE) ) )","v":""},null,null,null,null,{"$f":"IF(TRIM(AN85)=\"\", \"\", IF(VLOOKUP(AN85,'Footnotes list'!$D$9:$E$58,2,FALSE)=0,\"\",VLOOKUP(AN85,'Footnotes list'!$D$9:$E$58,2,FALSE) ) )","v":""},null,null,null,null,{"$f":"IF(TRIM(AS85)=\"\", \"\", IF(VLOOKUP(AS85,'Footnotes list'!$D$9:$E$58,2,FALSE)=0,\"\",VLOOKUP(AS85,'Footnotes list'!$D$9:$E$58,2,FALSE) ) )","v":""},null,null,null,null,{"$f":"IF(TRIM(AX85)=\"\", \"\", IF(VLOOKUP(AX85,'Footnotes list'!$D$9:$E$58,2,FALSE)=0,\"\",VLOOKUP(AX85,'Footnotes list'!$D$9:$E$58,2,FALSE) ) )","v":""},null,null,null,null,{"$f":"IF(TRIM(BC85)=\"\", \"\", IF(VLOOKUP(BC85,'Footnotes list'!$D$9:$E$58,2,FALSE)=0,\"\",VLOOKUP(BC85,'Footnotes list'!$D$9:$E$58,2,FALSE) ) )","v":""},null,null,null,null,{"$f":"IF(TRIM(BH85)=\"\", \"\", IF(VLOOKUP(BH85,'Footnotes list'!$D$9:$E$58,2,FALSE)=0,\"\",VLOOKUP(BH85,'Footnotes list'!$D$9:$E$58,2,FALSE) ) )","v":""},null,null,null,null,{"$f":"IF(TRIM(BM85)=\"\", \"\", IF(VLOOKUP(BM85,'Footnotes list'!$D$9:$E$58,2,FALSE)=0,\"\",VLOOKUP(BM85,'Footnotes list'!$D$9:$E$58,2,FALSE) ) )","v":""},null,null,null,null,{"$f":"IF(TRIM(BR85)=\"\", \"\", IF(VLOOKUP(BR85,'Footnotes list'!$D$9:$E$58,2,FALSE)=0,\"\",VLOOKUP(BR85,'Footnotes list'!$D$9:$E$58,2,FALSE) ) )","v":""},null,null,null,null,{"$f":"IF(TRIM(BW85)=\"\", \"\", IF(VLOOKUP(BW85,'Footnotes list'!$D$9:$E$58,2,FALSE)=0,\"\",VLOOKUP(BW85,'Footnotes list'!$D$9:$E$58,2,FALSE) ) )","v":""},null,null,null,null,{"$f":"IF(TRIM(CB85)=\"\", \"\", IF(VLOOKUP(CB85,'Footnotes list'!$D$9:$E$58,2,FALSE)=0,\"\",VLOOKUP(CB85,'Footnotes list'!$D$9:$E$58,2,FALSE) ) )","v":""},null,null,null,null,{"$f":"IF(TRIM(CG85)=\"\", \"\", IF(VLOOKUP(CG85,'Footnotes list'!$D$9:$E$58,2,FALSE)=0,\"\",VLOOKUP(CG85,'Footnotes list'!$D$9:$E$58,2,FALSE) ) )","v":""},null,null,null,null,{"$f":"IF(TRIM(CL85)=\"\", \"\", IF(VLOOKUP(CL85,'Footnotes list'!$D$9:$E$58,2,FALSE)=0,\"\",VLOOKUP(CL85,'Footnotes list'!$D$9:$E$58,2,FALSE) ) )","v":""},null,null,null,null,{"$f":"IF(TRIM(CQ85)=\"\", \"\", IF(VLOOKUP(CQ85,'Footnotes list'!$D$9:$E$58,2,FALSE)=0,\"\",VLOOKUP(CQ85,'Footnotes list'!$D$9:$E$58,2,FALSE) ) )","v":""},null,null,null,null,{"$f":"IF(TRIM(CV85)=\"\", \"\", IF(VLOOKUP(CV85,'Footnotes list'!$D$9:$E$58,2,FALSE)=0,\"\",VLOOKUP(CV85,'Footnotes list'!$D$9:$E$58,2,FALSE) ) )","v":""},null,null,null,null,{"$f":"IF(TRIM(DA85)=\"\", \"\", IF(VLOOKUP(DA85,'Footnotes list'!$D$9:$E$58,2,FALSE)=0,\"\",VLOOKUP(DA85,'Footnotes list'!$D$9:$E$58,2,FALSE) ) )","v":""},null,null,null,null,{"$f":"IF(TRIM(DF85)=\"\", \"\", IF(VLOOKUP(DF85,'Footnotes list'!$D$9:$E$58,2,FALSE)=0,\"\",VLOOKUP(DF85,'Footnotes list'!$D$9:$E$58,2,FALSE) ) )","v":""},null,null,null,null,{"$f":"IF(TRIM(DK85)=\"\", \"\", IF(VLOOKUP(DK85,'Footnotes list'!$D$9:$E$58,2,FALSE)=0,\"\",VLOOKUP(DK85,'Footnotes list'!$D$9:$E$58,2,FALSE) ) )","v":""},null,null,null,null,{"$f":"IF(TRIM(DP85)=\"\", \"\", IF(VLOOKUP(DP85,'Footnotes list'!$D$9:$E$58,2,FALSE)=0,\"\",VLOOKUP(DP85,'Footnotes list'!$D$9:$E$58,2,FALSE) ) )","v":""},null,null,null,null,{"$f":"IF(TRIM(DU85)=\"\", \"\", IF(VLOOKUP(DU85,'Footnotes list'!$D$9:$E$58,2,FALSE)=0,\"\",VLOOKUP(DU85,'Footnotes list'!$D$9:$E$58,2,FALSE) ) )","v":""},null,null,null,null,{"$f":"IF(TRIM(DZ85)=\"\", \"\", IF(VLOOKUP(DZ85,'Footnotes list'!$D$9:$E$58,2,FALSE)=0,\"\",VLOOKUP(DZ85,'Footnotes list'!$D$9:$E$58,2,FALSE) ) )","v":""},null,null,null,null,{"$f":"IF(TRIM(EE85)=\"\", \"\", IF(VLOOKUP(EE85,'Footnotes list'!$D$9:$E$58,2,FALSE)=0,\"\",VLOOKUP(EE85,'Footnotes list'!$D$9:$E$58,2,FALSE) ) )","v":""},null,null,null,null,{"$f":"IF(TRIM(EJ85)=\"\", \"\", IF(VLOOKUP(EJ85,'Footnotes list'!$D$9:$E$58,2,FALSE)=0,\"\",VLOOKUP(EJ85,'Footnotes list'!$D$9:$E$58,2,FALSE) ) )","v":""},null,null,null,null,{"$f":"IF(TRIM(EO85)=\"\", \"\", IF(VLOOKUP(EO85,'Footnotes list'!$D$9:$E$58,2,FALSE)=0,\"\",VLOOKUP(EO85,'Footnotes list'!$D$9:$E$58,2,FALSE) ) )","v":""},null,null,null,null,{"$f":"IF(TRIM(ET85)=\"\", \"\", IF(VLOOKUP(ET85,'Footnotes list'!$D$9:$E$58,2,FALSE)=0,\"\",VLOOKUP(ET85,'Footnotes list'!$D$9:$E$58,2,FALSE) ) )","v":""},null,null,null,null,{"$f":"IF(TRIM(EY85)=\"\", \"\", IF(VLOOKUP(EY85,'Footnotes list'!$D$9:$E$58,2,FALSE)=0,\"\",VLOOKUP(EY85,'Footnotes list'!$D$9:$E$58,2,FALSE) ) )","v":""}]
[null,null,"I","TOT_EGSS","Total I - Accommodation and food service activities, including:",null,null,null,null,null,{"$f":"IF(TRIM(J86)=\"\", \"\", IF(VLOOKUP(J86,'Footnotes list'!$D$9:$E$58,2,FALSE)=0,\"\",VLOOKUP(J86,'Footnotes list'!$D$9:$E$58,2,FALSE) ) )","v":""},null,null,null,null,{"$f":"IF(TRIM(O86)=\"\", \"\", IF(VLOOKUP(O86,'Footnotes list'!$D$9:$E$58,2,FALSE)=0,\"\",VLOOKUP(O86,'Footnotes list'!$D$9:$E$58,2,FALSE) ) )","v":""},null,null,null,null,{"$f":"IF(TRIM(T86)=\"\", \"\", IF(VLOOKUP(T86,'Footnotes list'!$D$9:$E$58,2,FALSE)=0,\"\",VLOOKUP(T86,'Footnotes list'!$D$9:$E$58,2,FALSE) ) )","v":""},null,null,null,null,{"$f":"IF(TRIM(Y86)=\"\", \"\", IF(VLOOKUP(Y86,'Footnotes list'!$D$9:$E$58,2,FALSE)=0,\"\",VLOOKUP(Y86,'Footnotes list'!$D$9:$E$58,2,FALSE) ) )","v":""},null,null,null,null,{"$f":"IF(TRIM(AD86)=\"\", \"\", IF(VLOOKUP(AD86,'Footnotes list'!$D$9:$E$58,2,FALSE)=0,\"\",VLOOKUP(AD86,'Footnotes list'!$D$9:$E$58,2,FALSE) ) )","v":""},null,null,null,null,{"$f":"IF(TRIM(AI86)=\"\", \"\", IF(VLOOKUP(AI86,'Footnotes list'!$D$9:$E$58,2,FALSE)=0,\"\",VLOOKUP(AI86,'Footnotes list'!$D$9:$E$58,2,FALSE) ) )","v":""},null,null,null,null,{"$f":"IF(TRIM(AN86)=\"\", \"\", IF(VLOOKUP(AN86,'Footnotes list'!$D$9:$E$58,2,FALSE)=0,\"\",VLOOKUP(AN86,'Footnotes list'!$D$9:$E$58,2,FALSE) ) )","v":""},null,null,null,null,{"$f":"IF(TRIM(AS86)=\"\", \"\", IF(VLOOKUP(AS86,'Footnotes list'!$D$9:$E$58,2,FALSE)=0,\"\",VLOOKUP(AS86,'Footnotes list'!$D$9:$E$58,2,FALSE) ) )","v":""},null,null,null,null,{"$f":"IF(TRIM(AX86)=\"\", \"\", IF(VLOOKUP(AX86,'Footnotes list'!$D$9:$E$58,2,FALSE)=0,\"\",VLOOKUP(AX86,'Footnotes list'!$D$9:$E$58,2,FALSE) ) )","v":""},null,null,null,null,{"$f":"IF(TRIM(BC86)=\"\", \"\", IF(VLOOKUP(BC86,'Footnotes list'!$D$9:$E$58,2,FALSE)=0,\"\",VLOOKUP(BC86,'Footnotes list'!$D$9:$E$58,2,FALSE) ) )","v":""},null,null,null,null,{"$f":"IF(TRIM(BH86)=\"\", \"\", IF(VLOOKUP(BH86,'Footnotes list'!$D$9:$E$58,2,FALSE)=0,\"\",VLOOKUP(BH86,'Footnotes list'!$D$9:$E$58,2,FALSE) ) )","v":""},null,null,null,null,{"$f":"IF(TRIM(BM86)=\"\", \"\", IF(VLOOKUP(BM86,'Footnotes list'!$D$9:$E$58,2,FALSE)=0,\"\",VLOOKUP(BM86,'Footnotes list'!$D$9:$E$58,2,FALSE) ) )","v":""},null,null,null,null,{"$f":"IF(TRIM(BR86)=\"\", \"\", IF(VLOOKUP(BR86,'Footnotes list'!$D$9:$E$58,2,FALSE)=0,\"\",VLOOKUP(BR86,'Footnotes list'!$D$9:$E$58,2,FALSE) ) )","v":""},null,null,null,null,{"$f":"IF(TRIM(BW86)=\"\", \"\", IF(VLOOKUP(BW86,'Footnotes list'!$D$9:$E$58,2,FALSE)=0,\"\",VLOOKUP(BW86,'Footnotes list'!$D$9:$E$58,2,FALSE) ) )","v":""},null,null,null,null,{"$f":"IF(TRIM(CB86)=\"\", \"\", IF(VLOOKUP(CB86,'Footnotes list'!$D$9:$E$58,2,FALSE)=0,\"\",VLOOKUP(CB86,'Footnotes list'!$D$9:$E$58,2,FALSE) ) )","v":""},null,null,null,null,{"$f":"IF(TRIM(CG86)=\"\", \"\", IF(VLOOKUP(CG86,'Footnotes list'!$D$9:$E$58,2,FALSE)=0,\"\",VLOOKUP(CG86,'Footnotes list'!$D$9:$E$58,2,FALSE) ) )","v":""},null,null,null,null,{"$f":"IF(TRIM(CL86)=\"\", \"\", IF(VLOOKUP(CL86,'Footnotes list'!$D$9:$E$58,2,FALSE)=0,\"\",VLOOKUP(CL86,'Footnotes list'!$D$9:$E$58,2,FALSE) ) )","v":""},null,null,null,null,{"$f":"IF(TRIM(CQ86)=\"\", \"\", IF(VLOOKUP(CQ86,'Footnotes list'!$D$9:$E$58,2,FALSE)=0,\"\",VLOOKUP(CQ86,'Footnotes list'!$D$9:$E$58,2,FALSE) ) )","v":""},null,null,null,null,{"$f":"IF(TRIM(CV86)=\"\", \"\", IF(VLOOKUP(CV86,'Footnotes list'!$D$9:$E$58,2,FALSE)=0,\"\",VLOOKUP(CV86,'Footnotes list'!$D$9:$E$58,2,FALSE) ) )","v":""},null,null,null,null,{"$f":"IF(TRIM(DA86)=\"\", \"\", IF(VLOOKUP(DA86,'Footnotes list'!$D$9:$E$58,2,FALSE)=0,\"\",VLOOKUP(DA86,'Footnotes list'!$D$9:$E$58,2,FALSE) ) )","v":""},null,null,null,null,{"$f":"IF(TRIM(DF86)=\"\", \"\", IF(VLOOKUP(DF86,'Footnotes list'!$D$9:$E$58,2,FALSE)=0,\"\",VLOOKUP(DF86,'Footnotes list'!$D$9:$E$58,2,FALSE) ) )","v":""},null,null,null,null,{"$f":"IF(TRIM(DK86)=\"\", \"\", IF(VLOOKUP(DK86,'Footnotes list'!$D$9:$E$58,2,FALSE)=0,\"\",VLOOKUP(DK86,'Footnotes list'!$D$9:$E$58,2,FALSE) ) )","v":""},null,null,null,null,{"$f":"IF(TRIM(DP86)=\"\", \"\", IF(VLOOKUP(DP86,'Footnotes list'!$D$9:$E$58,2,FALSE)=0,\"\",VLOOKUP(DP86,'Footnotes list'!$D$9:$E$58,2,FALSE) ) )","v":""},null,null,null,null,{"$f":"IF(TRIM(DU86)=\"\", \"\", IF(VLOOKUP(DU86,'Footnotes list'!$D$9:$E$58,2,FALSE)=0,\"\",VLOOKUP(DU86,'Footnotes list'!$D$9:$E$58,2,FALSE) ) )","v":""},null,null,null,null,{"$f":"IF(TRIM(DZ86)=\"\", \"\", IF(VLOOKUP(DZ86,'Footnotes list'!$D$9:$E$58,2,FALSE)=0,\"\",VLOOKUP(DZ86,'Footnotes list'!$D$9:$E$58,2,FALSE) ) )","v":""},null,null,null,null,{"$f":"IF(TRIM(EE86)=\"\", \"\", IF(VLOOKUP(EE86,'Footnotes list'!$D$9:$E$58,2,FALSE)=0,\"\",VLOOKUP(EE86,'Footnotes list'!$D$9:$E$58,2,FALSE) ) )","v":""},null,null,null,null,{"$f":"IF(TRIM(EJ86)=\"\", \"\", IF(VLOOKUP(EJ86,'Footnotes list'!$D$9:$E$58,2,FALSE)=0,\"\",VLOOKUP(EJ86,'Footnotes list'!$D$9:$E$58,2,FALSE) ) )","v":""},null,null,null,null,{"$f":"IF(TRIM(EO86)=\"\", \"\", IF(VLOOKUP(EO86,'Footnotes list'!$D$9:$E$58,2,FALSE)=0,\"\",VLOOKUP(EO86,'Footnotes list'!$D$9:$E$58,2,FALSE) ) )","v":""},null,null,null,null,{"$f":"IF(TRIM(ET86)=\"\", \"\", IF(VLOOKUP(ET86,'Footnotes list'!$D$9:$E$58,2,FALSE)=0,\"\",VLOOKUP(ET86,'Footnotes list'!$D$9:$E$58,2,FALSE) ) )","v":""},null,null,null,null,{"$f":"IF(TRIM(EY86)=\"\", \"\", IF(VLOOKUP(EY86,'Footnotes list'!$D$9:$E$58,2,FALSE)=0,\"\",VLOOKUP(EY86,'Footnotes list'!$D$9:$E$58,2,FALSE) ) )","v":""}]
[null,null,"I","ES_CS","environmental specific services",null,null,null,null,null,{"$f":"IF(TRIM(J87)=\"\", \"\", IF(VLOOKUP(J87,'Footnotes list'!$D$9:$E$58,2,FALSE)=0,\"\",VLOOKUP(J87,'Footnotes list'!$D$9:$E$58,2,FALSE) ) )","v":""},null,null,null,null,{"$f":"IF(TRIM(O87)=\"\", \"\", IF(VLOOKUP(O87,'Footnotes list'!$D$9:$E$58,2,FALSE)=0,\"\",VLOOKUP(O87,'Footnotes list'!$D$9:$E$58,2,FALSE) ) )","v":""},null,null,null,null,{"$f":"IF(TRIM(T87)=\"\", \"\", IF(VLOOKUP(T87,'Footnotes list'!$D$9:$E$58,2,FALSE)=0,\"\",VLOOKUP(T87,'Footnotes list'!$D$9:$E$58,2,FALSE) ) )","v":""},null,null,null,null,{"$f":"IF(TRIM(Y87)=\"\", \"\", IF(VLOOKUP(Y87,'Footnotes list'!$D$9:$E$58,2,FALSE)=0,\"\",VLOOKUP(Y87,'Footnotes list'!$D$9:$E$58,2,FALSE) ) )","v":""},null,null,null,null,{"$f":"IF(TRIM(AD87)=\"\", \"\", IF(VLOOKUP(AD87,'Footnotes list'!$D$9:$E$58,2,FALSE)=0,\"\",VLOOKUP(AD87,'Footnotes list'!$D$9:$E$58,2,FALSE) ) )","v":""},null,null,null,null,{"$f":"IF(TRIM(AI87)=\"\", \"\", IF(VLOOKUP(AI87,'Footnotes list'!$D$9:$E$58,2,FALSE)=0,\"\",VLOOKUP(AI87,'Footnotes list'!$D$9:$E$58,2,FALSE) ) )","v":""},null,null,null,null,{"$f":"IF(TRIM(AN87)=\"\", \"\", IF(VLOOKUP(AN87,'Footnotes list'!$D$9:$E$58,2,FALSE)=0,\"\",VLOOKUP(AN87,'Footnotes list'!$D$9:$E$58,2,FALSE) ) )","v":""},null,null,null,null,{"$f":"IF(TRIM(AS87)=\"\", \"\", IF(VLOOKUP(AS87,'Footnotes list'!$D$9:$E$58,2,FALSE)=0,\"\",VLOOKUP(AS87,'Footnotes list'!$D$9:$E$58,2,FALSE) ) )","v":""},null,null,null,null,{"$f":"IF(TRIM(AX87)=\"\", \"\", IF(VLOOKUP(AX87,'Footnotes list'!$D$9:$E$58,2,FALSE)=0,\"\",VLOOKUP(AX87,'Footnotes list'!$D$9:$E$58,2,FALSE) ) )","v":""},null,null,null,null,{"$f":"IF(TRIM(BC87)=\"\", \"\", IF(VLOOKUP(BC87,'Footnotes list'!$D$9:$E$58,2,FALSE)=0,\"\",VLOOKUP(BC87,'Footnotes list'!$D$9:$E$58,2,FALSE) ) )","v":""},null,null,null,null,{"$f":"IF(TRIM(BH87)=\"\", \"\", IF(VLOOKUP(BH87,'Footnotes list'!$D$9:$E$58,2,FALSE)=0,\"\",VLOOKUP(BH87,'Footnotes list'!$D$9:$E$58,2,FALSE) ) )","v":""},null,null,null,null,{"$f":"IF(TRIM(BM87)=\"\", \"\", IF(VLOOKUP(BM87,'Footnotes list'!$D$9:$E$58,2,FALSE)=0,\"\",VLOOKUP(BM87,'Footnotes list'!$D$9:$E$58,2,FALSE) ) )","v":""},null,null,null,null,{"$f":"IF(TRIM(BR87)=\"\", \"\", IF(VLOOKUP(BR87,'Footnotes list'!$D$9:$E$58,2,FALSE)=0,\"\",VLOOKUP(BR87,'Footnotes list'!$D$9:$E$58,2,FALSE) ) )","v":""},null,null,null,null,{"$f":"IF(TRIM(BW87)=\"\", \"\", IF(VLOOKUP(BW87,'Footnotes list'!$D$9:$E$58,2,FALSE)=0,\"\",VLOOKUP(BW87,'Footnotes list'!$D$9:$E$58,2,FALSE) ) )","v":""},null,null,null,null,{"$f":"IF(TRIM(CB87)=\"\", \"\", IF(VLOOKUP(CB87,'Footnotes list'!$D$9:$E$58,2,FALSE)=0,\"\",VLOOKUP(CB87,'Footnotes list'!$D$9:$E$58,2,FALSE) ) )","v":""},null,null,null,null,{"$f":"IF(TRIM(CG87)=\"\", \"\", IF(VLOOKUP(CG87,'Footnotes list'!$D$9:$E$58,2,FALSE)=0,\"\",VLOOKUP(CG87,'Footnotes list'!$D$9:$E$58,2,FALSE) ) )","v":""},null,null,null,null,{"$f":"IF(TRIM(CL87)=\"\", \"\", IF(VLOOKUP(CL87,'Footnotes list'!$D$9:$E$58,2,FALSE)=0,\"\",VLOOKUP(CL87,'Footnotes list'!$D$9:$E$58,2,FALSE) ) )","v":""},null,null,null,null,{"$f":"IF(TRIM(CQ87)=\"\", \"\", IF(VLOOKUP(CQ87,'Footnotes list'!$D$9:$E$58,2,FALSE)=0,\"\",VLOOKUP(CQ87,'Footnotes list'!$D$9:$E$58,2,FALSE) ) )","v":""},null,null,null,null,{"$f":"IF(TRIM(CV87)=\"\", \"\", IF(VLOOKUP(CV87,'Footnotes list'!$D$9:$E$58,2,FALSE)=0,\"\",VLOOKUP(CV87,'Footnotes list'!$D$9:$E$58,2,FALSE) ) )","v":""},null,null,null,null,{"$f":"IF(TRIM(DA87)=\"\", \"\", IF(VLOOKUP(DA87,'Footnotes list'!$D$9:$E$58,2,FALSE)=0,\"\",VLOOKUP(DA87,'Footnotes list'!$D$9:$E$58,2,FALSE) ) )","v":""},null,null,null,null,{"$f":"IF(TRIM(DF87)=\"\", \"\", IF(VLOOKUP(DF87,'Footnotes list'!$D$9:$E$58,2,FALSE)=0,\"\",VLOOKUP(DF87,'Footnotes list'!$D$9:$E$58,2,FALSE) ) )","v":""},null,null,null,null,{"$f":"IF(TRIM(DK87)=\"\", \"\", IF(VLOOKUP(DK87,'Footnotes list'!$D$9:$E$58,2,FALSE)=0,\"\",VLOOKUP(DK87,'Footnotes list'!$D$9:$E$58,2,FALSE) ) )","v":""},null,null,null,null,{"$f":"IF(TRIM(DP87)=\"\", \"\", IF(VLOOKUP(DP87,'Footnotes list'!$D$9:$E$58,2,FALSE)=0,\"\",VLOOKUP(DP87,'Footnotes list'!$D$9:$E$58,2,FALSE) ) )","v":""},null,null,null,null,{"$f":"IF(TRIM(DU87)=\"\", \"\", IF(VLOOKUP(DU87,'Footnotes list'!$D$9:$E$58,2,FALSE)=0,\"\",VLOOKUP(DU87,'Footnotes list'!$D$9:$E$58,2,FALSE) ) )","v":""},null,null,null,null,{"$f":"IF(TRIM(DZ87)=\"\", \"\", IF(VLOOKUP(DZ87,'Footnotes list'!$D$9:$E$58,2,FALSE)=0,\"\",VLOOKUP(DZ87,'Footnotes list'!$D$9:$E$58,2,FALSE) ) )","v":""},null,null,null,null,{"$f":"IF(TRIM(EE87)=\"\", \"\", IF(VLOOKUP(EE87,'Footnotes list'!$D$9:$E$58,2,FALSE)=0,\"\",VLOOKUP(EE87,'Footnotes list'!$D$9:$E$58,2,FALSE) ) )","v":""},null,null,null,null,{"$f":"IF(TRIM(EJ87)=\"\", \"\", IF(VLOOKUP(EJ87,'Footnotes list'!$D$9:$E$58,2,FALSE)=0,\"\",VLOOKUP(EJ87,'Footnotes list'!$D$9:$E$58,2,FALSE) ) )","v":""},null,null,null,null,{"$f":"IF(TRIM(EO87)=\"\", \"\", IF(VLOOKUP(EO87,'Footnotes list'!$D$9:$E$58,2,FALSE)=0,\"\",VLOOKUP(EO87,'Footnotes list'!$D$9:$E$58,2,FALSE) ) )","v":""},null,null,null,null,{"$f":"IF(TRIM(ET87)=\"\", \"\", IF(VLOOKUP(ET87,'Footnotes list'!$D$9:$E$58,2,FALSE)=0,\"\",VLOOKUP(ET87,'Footnotes list'!$D$9:$E$58,2,FALSE) ) )","v":""},null,null,null,null,{"$f":"IF(TRIM(EY87)=\"\", \"\", IF(VLOOKUP(EY87,'Footnotes list'!$D$9:$E$58,2,FALSE)=0,\"\",VLOOKUP(EY87,'Footnotes list'!$D$9:$E$58,2,FALSE) ) )","v":""}]
[null,null,"I","C_REP","cleaner and resource efficient products",null,null,null,null,null,{"$f":"IF(TRIM(J88)=\"\", \"\", IF(VLOOKUP(J88,'Footnotes list'!$D$9:$E$58,2,FALSE)=0,\"\",VLOOKUP(J88,'Footnotes list'!$D$9:$E$58,2,FALSE) ) )","v":""},null,null,null,null,{"$f":"IF(TRIM(O88)=\"\", \"\", IF(VLOOKUP(O88,'Footnotes list'!$D$9:$E$58,2,FALSE)=0,\"\",VLOOKUP(O88,'Footnotes list'!$D$9:$E$58,2,FALSE) ) )","v":""},null,null,null,null,{"$f":"IF(TRIM(T88)=\"\", \"\", IF(VLOOKUP(T88,'Footnotes list'!$D$9:$E$58,2,FALSE)=0,\"\",VLOOKUP(T88,'Footnotes list'!$D$9:$E$58,2,FALSE) ) )","v":""},null,null,null,null,{"$f":"IF(TRIM(Y88)=\"\", \"\", IF(VLOOKUP(Y88,'Footnotes list'!$D$9:$E$58,2,FALSE)=0,\"\",VLOOKUP(Y88,'Footnotes list'!$D$9:$E$58,2,FALSE) ) )","v":""},null,null,null,null,{"$f":"IF(TRIM(AD88)=\"\", \"\", IF(VLOOKUP(AD88,'Footnotes list'!$D$9:$E$58,2,FALSE)=0,\"\",VLOOKUP(AD88,'Footnotes list'!$D$9:$E$58,2,FALSE) ) )","v":""},null,null,null,null,{"$f":"IF(TRIM(AI88)=\"\", \"\", IF(VLOOKUP(AI88,'Footnotes list'!$D$9:$E$58,2,FALSE)=0,\"\",VLOOKUP(AI88,'Footnotes list'!$D$9:$E$58,2,FALSE) ) )","v":""},null,null,null,null,{"$f":"IF(TRIM(AN88)=\"\", \"\", IF(VLOOKUP(AN88,'Footnotes list'!$D$9:$E$58,2,FALSE)=0,\"\",VLOOKUP(AN88,'Footnotes list'!$D$9:$E$58,2,FALSE) ) )","v":""},null,null,null,null,{"$f":"IF(TRIM(AS88)=\"\", \"\", IF(VLOOKUP(AS88,'Footnotes list'!$D$9:$E$58,2,FALSE)=0,\"\",VLOOKUP(AS88,'Footnotes list'!$D$9:$E$58,2,FALSE) ) )","v":""},null,null,null,null,{"$f":"IF(TRIM(AX88)=\"\", \"\", IF(VLOOKUP(AX88,'Footnotes list'!$D$9:$E$58,2,FALSE)=0,\"\",VLOOKUP(AX88,'Footnotes list'!$D$9:$E$58,2,FALSE) ) )","v":""},null,null,null,null,{"$f":"IF(TRIM(BC88)=\"\", \"\", IF(VLOOKUP(BC88,'Footnotes list'!$D$9:$E$58,2,FALSE)=0,\"\",VLOOKUP(BC88,'Footnotes list'!$D$9:$E$58,2,FALSE) ) )","v":""},null,null,null,null,{"$f":"IF(TRIM(BH88)=\"\", \"\", IF(VLOOKUP(BH88,'Footnotes list'!$D$9:$E$58,2,FALSE)=0,\"\",VLOOKUP(BH88,'Footnotes list'!$D$9:$E$58,2,FALSE) ) )","v":""},null,null,null,null,{"$f":"IF(TRIM(BM88)=\"\", \"\", IF(VLOOKUP(BM88,'Footnotes list'!$D$9:$E$58,2,FALSE)=0,\"\",VLOOKUP(BM88,'Footnotes list'!$D$9:$E$58,2,FALSE) ) )","v":""},null,null,null,null,{"$f":"IF(TRIM(BR88)=\"\", \"\", IF(VLOOKUP(BR88,'Footnotes list'!$D$9:$E$58,2,FALSE)=0,\"\",VLOOKUP(BR88,'Footnotes list'!$D$9:$E$58,2,FALSE) ) )","v":""},null,null,null,null,{"$f":"IF(TRIM(BW88)=\"\", \"\", IF(VLOOKUP(BW88,'Footnotes list'!$D$9:$E$58,2,FALSE)=0,\"\",VLOOKUP(BW88,'Footnotes list'!$D$9:$E$58,2,FALSE) ) )","v":""},null,null,null,null,{"$f":"IF(TRIM(CB88)=\"\", \"\", IF(VLOOKUP(CB88,'Footnotes list'!$D$9:$E$58,2,FALSE)=0,\"\",VLOOKUP(CB88,'Footnotes list'!$D$9:$E$58,2,FALSE) ) )","v":""},null,null,null,null,{"$f":"IF(TRIM(CG88)=\"\", \"\", IF(VLOOKUP(CG88,'Footnotes list'!$D$9:$E$58,2,FALSE)=0,\"\",VLOOKUP(CG88,'Footnotes list'!$D$9:$E$58,2,FALSE) ) )","v":""},null,null,null,null,{"$f":"IF(TRIM(CL88)=\"\", \"\", IF(VLOOKUP(CL88,'Footnotes list'!$D$9:$E$58,2,FALSE)=0,\"\",VLOOKUP(CL88,'Footnotes list'!$D$9:$E$58,2,FALSE) ) )","v":""},null,null,null,null,{"$f":"IF(TRIM(CQ88)=\"\", \"\", IF(VLOOKUP(CQ88,'Footnotes list'!$D$9:$E$58,2,FALSE)=0,\"\",VLOOKUP(CQ88,'Footnotes list'!$D$9:$E$58,2,FALSE) ) )","v":""},null,null,null,null,{"$f":"IF(TRIM(CV88)=\"\", \"\", IF(VLOOKUP(CV88,'Footnotes list'!$D$9:$E$58,2,FALSE)=0,\"\",VLOOKUP(CV88,'Footnotes list'!$D$9:$E$58,2,FALSE) ) )","v":""},null,null,null,null,{"$f":"IF(TRIM(DA88)=\"\", \"\", IF(VLOOKUP(DA88,'Footnotes list'!$D$9:$E$58,2,FALSE)=0,\"\",VLOOKUP(DA88,'Footnotes list'!$D$9:$E$58,2,FALSE) ) )","v":""},null,null,null,null,{"$f":"IF(TRIM(DF88)=\"\", \"\", IF(VLOOKUP(DF88,'Footnotes list'!$D$9:$E$58,2,FALSE)=0,\"\",VLOOKUP(DF88,'Footnotes list'!$D$9:$E$58,2,FALSE) ) )","v":""},null,null,null,null,{"$f":"IF(TRIM(DK88)=\"\", \"\", IF(VLOOKUP(DK88,'Footnotes list'!$D$9:$E$58,2,FALSE)=0,\"\",VLOOKUP(DK88,'Footnotes list'!$D$9:$E$58,2,FALSE) ) )","v":""},null,null,null,null,{"$f":"IF(TRIM(DP88)=\"\", \"\", IF(VLOOKUP(DP88,'Footnotes list'!$D$9:$E$58,2,FALSE)=0,\"\",VLOOKUP(DP88,'Footnotes list'!$D$9:$E$58,2,FALSE) ) )","v":""},null,null,null,null,{"$f":"IF(TRIM(DU88)=\"\", \"\", IF(VLOOKUP(DU88,'Footnotes list'!$D$9:$E$58,2,FALSE)=0,\"\",VLOOKUP(DU88,'Footnotes list'!$D$9:$E$58,2,FALSE) ) )","v":""},null,null,null,null,{"$f":"IF(TRIM(DZ88)=\"\", \"\", IF(VLOOKUP(DZ88,'Footnotes list'!$D$9:$E$58,2,FALSE)=0,\"\",VLOOKUP(DZ88,'Footnotes list'!$D$9:$E$58,2,FALSE) ) )","v":""},null,null,null,null,{"$f":"IF(TRIM(EE88)=\"\", \"\", IF(VLOOKUP(EE88,'Footnotes list'!$D$9:$E$58,2,FALSE)=0,\"\",VLOOKUP(EE88,'Footnotes list'!$D$9:$E$58,2,FALSE) ) )","v":""},null,null,null,null,{"$f":"IF(TRIM(EJ88)=\"\", \"\", IF(VLOOKUP(EJ88,'Footnotes list'!$D$9:$E$58,2,FALSE)=0,\"\",VLOOKUP(EJ88,'Footnotes list'!$D$9:$E$58,2,FALSE) ) )","v":""},null,null,null,null,{"$f":"IF(TRIM(EO88)=\"\", \"\", IF(VLOOKUP(EO88,'Footnotes list'!$D$9:$E$58,2,FALSE)=0,\"\",VLOOKUP(EO88,'Footnotes list'!$D$9:$E$58,2,FALSE) ) )","v":""},null,null,null,null,{"$f":"IF(TRIM(ET88)=\"\", \"\", IF(VLOOKUP(ET88,'Footnotes list'!$D$9:$E$58,2,FALSE)=0,\"\",VLOOKUP(ET88,'Footnotes list'!$D$9:$E$58,2,FALSE) ) )","v":""},null,null,null,null,{"$f":"IF(TRIM(EY88)=\"\", \"\", IF(VLOOKUP(EY88,'Footnotes list'!$D$9:$E$58,2,FALSE)=0,\"\",VLOOKUP(EY88,'Footnotes list'!$D$9:$E$58,2,FALSE) ) )","v":""}]
[null,null,"J","TOT_EGSS","Total J - Information and communication, including:",null,null,null,null,null,{"$f":"IF(TRIM(J89)=\"\", \"\", IF(VLOOKUP(J89,'Footnotes list'!$D$9:$E$58,2,FALSE)=0,\"\",VLOOKUP(J89,'Footnotes list'!$D$9:$E$58,2,FALSE) ) )","v":""},null,null,null,null,{"$f":"IF(TRIM(O89)=\"\", \"\", IF(VLOOKUP(O89,'Footnotes list'!$D$9:$E$58,2,FALSE)=0,\"\",VLOOKUP(O89,'Footnotes list'!$D$9:$E$58,2,FALSE) ) )","v":""},null,null,null,null,{"$f":"IF(TRIM(T89)=\"\", \"\", IF(VLOOKUP(T89,'Footnotes list'!$D$9:$E$58,2,FALSE)=0,\"\",VLOOKUP(T89,'Footnotes list'!$D$9:$E$58,2,FALSE) ) )","v":""},null,null,null,null,{"$f":"IF(TRIM(Y89)=\"\", \"\", IF(VLOOKUP(Y89,'Footnotes list'!$D$9:$E$58,2,FALSE)=0,\"\",VLOOKUP(Y89,'Footnotes list'!$D$9:$E$58,2,FALSE) ) )","v":""},null,null,null,null,{"$f":"IF(TRIM(AD89)=\"\", \"\", IF(VLOOKUP(AD89,'Footnotes list'!$D$9:$E$58,2,FALSE)=0,\"\",VLOOKUP(AD89,'Footnotes list'!$D$9:$E$58,2,FALSE) ) )","v":""},null,null,null,null,{"$f":"IF(TRIM(AI89)=\"\", \"\", IF(VLOOKUP(AI89,'Footnotes list'!$D$9:$E$58,2,FALSE)=0,\"\",VLOOKUP(AI89,'Footnotes list'!$D$9:$E$58,2,FALSE) ) )","v":""},null,null,null,null,{"$f":"IF(TRIM(AN89)=\"\", \"\", IF(VLOOKUP(AN89,'Footnotes list'!$D$9:$E$58,2,FALSE)=0,\"\",VLOOKUP(AN89,'Footnotes list'!$D$9:$E$58,2,FALSE) ) )","v":""},null,null,null,null,{"$f":"IF(TRIM(AS89)=\"\", \"\", IF(VLOOKUP(AS89,'Footnotes list'!$D$9:$E$58,2,FALSE)=0,\"\",VLOOKUP(AS89,'Footnotes list'!$D$9:$E$58,2,FALSE) ) )","v":""},null,null,null,null,{"$f":"IF(TRIM(AX89)=\"\", \"\", IF(VLOOKUP(AX89,'Footnotes list'!$D$9:$E$58,2,FALSE)=0,\"\",VLOOKUP(AX89,'Footnotes list'!$D$9:$E$58,2,FALSE) ) )","v":""},null,null,null,null,{"$f":"IF(TRIM(BC89)=\"\", \"\", IF(VLOOKUP(BC89,'Footnotes list'!$D$9:$E$58,2,FALSE)=0,\"\",VLOOKUP(BC89,'Footnotes list'!$D$9:$E$58,2,FALSE) ) )","v":""},null,null,null,null,{"$f":"IF(TRIM(BH89)=\"\", \"\", IF(VLOOKUP(BH89,'Footnotes list'!$D$9:$E$58,2,FALSE)=0,\"\",VLOOKUP(BH89,'Footnotes list'!$D$9:$E$58,2,FALSE) ) )","v":""},null,null,null,null,{"$f":"IF(TRIM(BM89)=\"\", \"\", IF(VLOOKUP(BM89,'Footnotes list'!$D$9:$E$58,2,FALSE)=0,\"\",VLOOKUP(BM89,'Footnotes list'!$D$9:$E$58,2,FALSE) ) )","v":""},null,null,null,null,{"$f":"IF(TRIM(BR89)=\"\", \"\", IF(VLOOKUP(BR89,'Footnotes list'!$D$9:$E$58,2,FALSE)=0,\"\",VLOOKUP(BR89,'Footnotes list'!$D$9:$E$58,2,FALSE) ) )","v":""},null,null,null,null,{"$f":"IF(TRIM(BW89)=\"\", \"\", IF(VLOOKUP(BW89,'Footnotes list'!$D$9:$E$58,2,FALSE)=0,\"\",VLOOKUP(BW89,'Footnotes list'!$D$9:$E$58,2,FALSE) ) )","v":""},null,null,null,null,{"$f":"IF(TRIM(CB89)=\"\", \"\", IF(VLOOKUP(CB89,'Footnotes list'!$D$9:$E$58,2,FALSE)=0,\"\",VLOOKUP(CB89,'Footnotes list'!$D$9:$E$58,2,FALSE) ) )","v":""},null,null,null,null,{"$f":"IF(TRIM(CG89)=\"\", \"\", IF(VLOOKUP(CG89,'Footnotes list'!$D$9:$E$58,2,FALSE)=0,\"\",VLOOKUP(CG89,'Footnotes list'!$D$9:$E$58,2,FALSE) ) )","v":""},null,null,null,null,{"$f":"IF(TRIM(CL89)=\"\", \"\", IF(VLOOKUP(CL89,'Footnotes list'!$D$9:$E$58,2,FALSE)=0,\"\",VLOOKUP(CL89,'Footnotes list'!$D$9:$E$58,2,FALSE) ) )","v":""},null,null,null,null,{"$f":"IF(TRIM(CQ89)=\"\", \"\", IF(VLOOKUP(CQ89,'Footnotes list'!$D$9:$E$58,2,FALSE)=0,\"\",VLOOKUP(CQ89,'Footnotes list'!$D$9:$E$58,2,FALSE) ) )","v":""},null,null,null,null,{"$f":"IF(TRIM(CV89)=\"\", \"\", IF(VLOOKUP(CV89,'Footnotes list'!$D$9:$E$58,2,FALSE)=0,\"\",VLOOKUP(CV89,'Footnotes list'!$D$9:$E$58,2,FALSE) ) )","v":""},null,null,null,null,{"$f":"IF(TRIM(DA89)=\"\", \"\", IF(VLOOKUP(DA89,'Footnotes list'!$D$9:$E$58,2,FALSE)=0,\"\",VLOOKUP(DA89,'Footnotes list'!$D$9:$E$58,2,FALSE) ) )","v":""},null,null,null,null,{"$f":"IF(TRIM(DF89)=\"\", \"\", IF(VLOOKUP(DF89,'Footnotes list'!$D$9:$E$58,2,FALSE)=0,\"\",VLOOKUP(DF89,'Footnotes list'!$D$9:$E$58,2,FALSE) ) )","v":""},null,null,null,null,{"$f":"IF(TRIM(DK89)=\"\", \"\", IF(VLOOKUP(DK89,'Footnotes list'!$D$9:$E$58,2,FALSE)=0,\"\",VLOOKUP(DK89,'Footnotes list'!$D$9:$E$58,2,FALSE) ) )","v":""},null,null,null,null,{"$f":"IF(TRIM(DP89)=\"\", \"\", IF(VLOOKUP(DP89,'Footnotes list'!$D$9:$E$58,2,FALSE)=0,\"\",VLOOKUP(DP89,'Footnotes list'!$D$9:$E$58,2,FALSE) ) )","v":""},null,null,null,null,{"$f":"IF(TRIM(DU89)=\"\", \"\", IF(VLOOKUP(DU89,'Footnotes list'!$D$9:$E$58,2,FALSE)=0,\"\",VLOOKUP(DU89,'Footnotes list'!$D$9:$E$58,2,FALSE) ) )","v":""},null,null,null,null,{"$f":"IF(TRIM(DZ89)=\"\", \"\", IF(VLOOKUP(DZ89,'Footnotes list'!$D$9:$E$58,2,FALSE)=0,\"\",VLOOKUP(DZ89,'Footnotes list'!$D$9:$E$58,2,FALSE) ) )","v":""},null,null,null,null,{"$f":"IF(TRIM(EE89)=\"\", \"\", IF(VLOOKUP(EE89,'Footnotes list'!$D$9:$E$58,2,FALSE)=0,\"\",VLOOKUP(EE89,'Footnotes list'!$D$9:$E$58,2,FALSE) ) )","v":""},null,null,null,null,{"$f":"IF(TRIM(EJ89)=\"\", \"\", IF(VLOOKUP(EJ89,'Footnotes list'!$D$9:$E$58,2,FALSE)=0,\"\",VLOOKUP(EJ89,'Footnotes list'!$D$9:$E$58,2,FALSE) ) )","v":""},null,null,null,null,{"$f":"IF(TRIM(EO89)=\"\", \"\", IF(VLOOKUP(EO89,'Footnotes list'!$D$9:$E$58,2,FALSE)=0,\"\",VLOOKUP(EO89,'Footnotes list'!$D$9:$E$58,2,FALSE) ) )","v":""},null,null,null,null,{"$f":"IF(TRIM(ET89)=\"\", \"\", IF(VLOOKUP(ET89,'Footnotes list'!$D$9:$E$58,2,FALSE)=0,\"\",VLOOKUP(ET89,'Footnotes list'!$D$9:$E$58,2,FALSE) ) )","v":""},null,null,null,null,{"$f":"IF(TRIM(EY89)=\"\", \"\", IF(VLOOKUP(EY89,'Footnotes list'!$D$9:$E$58,2,FALSE)=0,\"\",VLOOKUP(EY89,'Footnotes list'!$D$9:$E$58,2,FALSE) ) )","v":""}]
[null,null,"J","ES_CS","environmental specific services",null,null,null,null,null,{"$f":"IF(TRIM(J90)=\"\", \"\", IF(VLOOKUP(J90,'Footnotes list'!$D$9:$E$58,2,FALSE)=0,\"\",VLOOKUP(J90,'Footnotes list'!$D$9:$E$58,2,FALSE) ) )","v":""},null,null,null,null,{"$f":"IF(TRIM(O90)=\"\", \"\", IF(VLOOKUP(O90,'Footnotes list'!$D$9:$E$58,2,FALSE)=0,\"\",VLOOKUP(O90,'Footnotes list'!$D$9:$E$58,2,FALSE) ) )","v":""},null,null,null,null,{"$f":"IF(TRIM(T90)=\"\", \"\", IF(VLOOKUP(T90,'Footnotes list'!$D$9:$E$58,2,FALSE)=0,\"\",VLOOKUP(T90,'Footnotes list'!$D$9:$E$58,2,FALSE) ) )","v":""},null,null,null,null,{"$f":"IF(TRIM(Y90)=\"\", \"\", IF(VLOOKUP(Y90,'Footnotes list'!$D$9:$E$58,2,FALSE)=0,\"\",VLOOKUP(Y90,'Footnotes list'!$D$9:$E$58,2,FALSE) ) )","v":""},null,null,null,null,{"$f":"IF(TRIM(AD90)=\"\", \"\", IF(VLOOKUP(AD90,'Footnotes list'!$D$9:$E$58,2,FALSE)=0,\"\",VLOOKUP(AD90,'Footnotes list'!$D$9:$E$58,2,FALSE) ) )","v":""},null,null,null,null,{"$f":"IF(TRIM(AI90)=\"\", \"\", IF(VLOOKUP(AI90,'Footnotes list'!$D$9:$E$58,2,FALSE)=0,\"\",VLOOKUP(AI90,'Footnotes list'!$D$9:$E$58,2,FALSE) ) )","v":""},null,null,null,null,{"$f":"IF(TRIM(AN90)=\"\", \"\", IF(VLOOKUP(AN90,'Footnotes list'!$D$9:$E$58,2,FALSE)=0,\"\",VLOOKUP(AN90,'Footnotes list'!$D$9:$E$58,2,FALSE) ) )","v":""},null,null,null,null,{"$f":"IF(TRIM(AS90)=\"\", \"\", IF(VLOOKUP(AS90,'Footnotes list'!$D$9:$E$58,2,FALSE)=0,\"\",VLOOKUP(AS90,'Footnotes list'!$D$9:$E$58,2,FALSE) ) )","v":""},null,null,null,null,{"$f":"IF(TRIM(AX90)=\"\", \"\", IF(VLOOKUP(AX90,'Footnotes list'!$D$9:$E$58,2,FALSE)=0,\"\",VLOOKUP(AX90,'Footnotes list'!$D$9:$E$58,2,FALSE) ) )","v":""},null,null,null,null,{"$f":"IF(TRIM(BC90)=\"\", \"\", IF(VLOOKUP(BC90,'Footnotes list'!$D$9:$E$58,2,FALSE)=0,\"\",VLOOKUP(BC90,'Footnotes list'!$D$9:$E$58,2,FALSE) ) )","v":""},null,null,null,null,{"$f":"IF(TRIM(BH90)=\"\", \"\", IF(VLOOKUP(BH90,'Footnotes list'!$D$9:$E$58,2,FALSE)=0,\"\",VLOOKUP(BH90,'Footnotes list'!$D$9:$E$58,2,FALSE) ) )","v":""},null,null,null,null,{"$f":"IF(TRIM(BM90)=\"\", \"\", IF(VLOOKUP(BM90,'Footnotes list'!$D$9:$E$58,2,FALSE)=0,\"\",VLOOKUP(BM90,'Footnotes list'!$D$9:$E$58,2,FALSE) ) )","v":""},null,null,null,null,{"$f":"IF(TRIM(BR90)=\"\", \"\", IF(VLOOKUP(BR90,'Footnotes list'!$D$9:$E$58,2,FALSE)=0,\"\",VLOOKUP(BR90,'Footnotes list'!$D$9:$E$58,2,FALSE) ) )","v":""},null,null,null,null,{"$f":"IF(TRIM(BW90)=\"\", \"\", IF(VLOOKUP(BW90,'Footnotes list'!$D$9:$E$58,2,FALSE)=0,\"\",VLOOKUP(BW90,'Footnotes list'!$D$9:$E$58,2,FALSE) ) )","v":""},null,null,null,null,{"$f":"IF(TRIM(CB90)=\"\", \"\", IF(VLOOKUP(CB90,'Footnotes list'!$D$9:$E$58,2,FALSE)=0,\"\",VLOOKUP(CB90,'Footnotes list'!$D$9:$E$58,2,FALSE) ) )","v":""},null,null,null,null,{"$f":"IF(TRIM(CG90)=\"\", \"\", IF(VLOOKUP(CG90,'Footnotes list'!$D$9:$E$58,2,FALSE)=0,\"\",VLOOKUP(CG90,'Footnotes list'!$D$9:$E$58,2,FALSE) ) )","v":""},null,null,null,null,{"$f":"IF(TRIM(CL90)=\"\", \"\", IF(VLOOKUP(CL90,'Footnotes list'!$D$9:$E$58,2,FALSE)=0,\"\",VLOOKUP(CL90,'Footnotes list'!$D$9:$E$58,2,FALSE) ) )","v":""},null,null,null,null,{"$f":"IF(TRIM(CQ90)=\"\", \"\", IF(VLOOKUP(CQ90,'Footnotes list'!$D$9:$E$58,2,FALSE)=0,\"\",VLOOKUP(CQ90,'Footnotes list'!$D$9:$E$58,2,FALSE) ) )","v":""},null,null,null,null,{"$f":"IF(TRIM(CV90)=\"\", \"\", IF(VLOOKUP(CV90,'Footnotes list'!$D$9:$E$58,2,FALSE)=0,\"\",VLOOKUP(CV90,'Footnotes list'!$D$9:$E$58,2,FALSE) ) )","v":""},null,null,null,null,{"$f":"IF(TRIM(DA90)=\"\", \"\", IF(VLOOKUP(DA90,'Footnotes list'!$D$9:$E$58,2,FALSE)=0,\"\",VLOOKUP(DA90,'Footnotes list'!$D$9:$E$58,2,FALSE) ) )","v":""},null,null,null,null,{"$f":"IF(TRIM(DF90)=\"\", \"\", IF(VLOOKUP(DF90,'Footnotes list'!$D$9:$E$58,2,FALSE)=0,\"\",VLOOKUP(DF90,'Footnotes list'!$D$9:$E$58,2,FALSE) ) )","v":""},null,null,null,null,{"$f":"IF(TRIM(DK90)=\"\", \"\", IF(VLOOKUP(DK90,'Footnotes list'!$D$9:$E$58,2,FALSE)=0,\"\",VLOOKUP(DK90,'Footnotes list'!$D$9:$E$58,2,FALSE) ) )","v":""},null,null,null,null,{"$f":"IF(TRIM(DP90)=\"\", \"\", IF(VLOOKUP(DP90,'Footnotes list'!$D$9:$E$58,2,FALSE)=0,\"\",VLOOKUP(DP90,'Footnotes list'!$D$9:$E$58,2,FALSE) ) )","v":""},null,null,null,null,{"$f":"IF(TRIM(DU90)=\"\", \"\", IF(VLOOKUP(DU90,'Footnotes list'!$D$9:$E$58,2,FALSE)=0,\"\",VLOOKUP(DU90,'Footnotes list'!$D$9:$E$58,2,FALSE) ) )","v":""},null,null,null,null,{"$f":"IF(TRIM(DZ90)=\"\", \"\", IF(VLOOKUP(DZ90,'Footnotes list'!$D$9:$E$58,2,FALSE)=0,\"\",VLOOKUP(DZ90,'Footnotes list'!$D$9:$E$58,2,FALSE) ) )","v":""},null,null,null,null,{"$f":"IF(TRIM(EE90)=\"\", \"\", IF(VLOOKUP(EE90,'Footnotes list'!$D$9:$E$58,2,FALSE)=0,\"\",VLOOKUP(EE90,'Footnotes list'!$D$9:$E$58,2,FALSE) ) )","v":""},null,null,null,null,{"$f":"IF(TRIM(EJ90)=\"\", \"\", IF(VLOOKUP(EJ90,'Footnotes list'!$D$9:$E$58,2,FALSE)=0,\"\",VLOOKUP(EJ90,'Footnotes list'!$D$9:$E$58,2,FALSE) ) )","v":""},null,null,null,null,{"$f":"IF(TRIM(EO90)=\"\", \"\", IF(VLOOKUP(EO90,'Footnotes list'!$D$9:$E$58,2,FALSE)=0,\"\",VLOOKUP(EO90,'Footnotes list'!$D$9:$E$58,2,FALSE) ) )","v":""},null,null,null,null,{"$f":"IF(TRIM(ET90)=\"\", \"\", IF(VLOOKUP(ET90,'Footnotes list'!$D$9:$E$58,2,FALSE)=0,\"\",VLOOKUP(ET90,'Footnotes list'!$D$9:$E$58,2,FALSE) ) )","v":""},null,null,null,null,{"$f":"IF(TRIM(EY90)=\"\", \"\", IF(VLOOKUP(EY90,'Footnotes list'!$D$9:$E$58,2,FALSE)=0,\"\",VLOOKUP(EY90,'Footnotes list'!$D$9:$E$58,2,FALSE) ) )","v":""}]
[null,null,"J","C_REP","cleaner and resource efficient products",null,null,null,null,null,{"$f":"IF(TRIM(J91)=\"\", \"\", IF(VLOOKUP(J91,'Footnotes list'!$D$9:$E$58,2,FALSE)=0,\"\",VLOOKUP(J91,'Footnotes list'!$D$9:$E$58,2,FALSE) ) )","v":""},null,null,null,null,{"$f":"IF(TRIM(O91)=\"\", \"\", IF(VLOOKUP(O91,'Footnotes list'!$D$9:$E$58,2,FALSE)=0,\"\",VLOOKUP(O91,'Footnotes list'!$D$9:$E$58,2,FALSE) ) )","v":""},null,null,null,null,{"$f":"IF(TRIM(T91)=\"\", \"\", IF(VLOOKUP(T91,'Footnotes list'!$D$9:$E$58,2,FALSE)=0,\"\",VLOOKUP(T91,'Footnotes list'!$D$9:$E$58,2,FALSE) ) )","v":""},null,null,null,null,{"$f":"IF(TRIM(Y91)=\"\", \"\", IF(VLOOKUP(Y91,'Footnotes list'!$D$9:$E$58,2,FALSE)=0,\"\",VLOOKUP(Y91,'Footnotes list'!$D$9:$E$58,2,FALSE) ) )","v":""},null,null,null,null,{"$f":"IF(TRIM(AD91)=\"\", \"\", IF(VLOOKUP(AD91,'Footnotes list'!$D$9:$E$58,2,FALSE)=0,\"\",VLOOKUP(AD91,'Footnotes list'!$D$9:$E$58,2,FALSE) ) )","v":""},null,null,null,null,{"$f":"IF(TRIM(AI91)=\"\", \"\", IF(VLOOKUP(AI91,'Footnotes list'!$D$9:$E$58,2,FALSE)=0,\"\",VLOOKUP(AI91,'Footnotes list'!$D$9:$E$58,2,FALSE) ) )","v":""},null,null,null,null,{"$f":"IF(TRIM(AN91)=\"\", \"\", IF(VLOOKUP(AN91,'Footnotes list'!$D$9:$E$58,2,FALSE)=0,\"\",VLOOKUP(AN91,'Footnotes list'!$D$9:$E$58,2,FALSE) ) )","v":""},null,null,null,null,{"$f":"IF(TRIM(AS91)=\"\", \"\", IF(VLOOKUP(AS91,'Footnotes list'!$D$9:$E$58,2,FALSE)=0,\"\",VLOOKUP(AS91,'Footnotes list'!$D$9:$E$58,2,FALSE) ) )","v":""},null,null,null,null,{"$f":"IF(TRIM(AX91)=\"\", \"\", IF(VLOOKUP(AX91,'Footnotes list'!$D$9:$E$58,2,FALSE)=0,\"\",VLOOKUP(AX91,'Footnotes list'!$D$9:$E$58,2,FALSE) ) )","v":""},null,null,null,null,{"$f":"IF(TRIM(BC91)=\"\", \"\", IF(VLOOKUP(BC91,'Footnotes list'!$D$9:$E$58,2,FALSE)=0,\"\",VLOOKUP(BC91,'Footnotes list'!$D$9:$E$58,2,FALSE) ) )","v":""},null,null,null,null,{"$f":"IF(TRIM(BH91)=\"\", \"\", IF(VLOOKUP(BH91,'Footnotes list'!$D$9:$E$58,2,FALSE)=0,\"\",VLOOKUP(BH91,'Footnotes list'!$D$9:$E$58,2,FALSE) ) )","v":""},null,null,null,null,{"$f":"IF(TRIM(BM91)=\"\", \"\", IF(VLOOKUP(BM91,'Footnotes list'!$D$9:$E$58,2,FALSE)=0,\"\",VLOOKUP(BM91,'Footnotes list'!$D$9:$E$58,2,FALSE) ) )","v":""},null,null,null,null,{"$f":"IF(TRIM(BR91)=\"\", \"\", IF(VLOOKUP(BR91,'Footnotes list'!$D$9:$E$58,2,FALSE)=0,\"\",VLOOKUP(BR91,'Footnotes list'!$D$9:$E$58,2,FALSE) ) )","v":""},null,null,null,null,{"$f":"IF(TRIM(BW91)=\"\", \"\", IF(VLOOKUP(BW91,'Footnotes list'!$D$9:$E$58,2,FALSE)=0,\"\",VLOOKUP(BW91,'Footnotes list'!$D$9:$E$58,2,FALSE) ) )","v":""},null,null,null,null,{"$f":"IF(TRIM(CB91)=\"\", \"\", IF(VLOOKUP(CB91,'Footnotes list'!$D$9:$E$58,2,FALSE)=0,\"\",VLOOKUP(CB91,'Footnotes list'!$D$9:$E$58,2,FALSE) ) )","v":""},null,null,null,null,{"$f":"IF(TRIM(CG91)=\"\", \"\", IF(VLOOKUP(CG91,'Footnotes list'!$D$9:$E$58,2,FALSE)=0,\"\",VLOOKUP(CG91,'Footnotes list'!$D$9:$E$58,2,FALSE) ) )","v":""},null,null,null,null,{"$f":"IF(TRIM(CL91)=\"\", \"\", IF(VLOOKUP(CL91,'Footnotes list'!$D$9:$E$58,2,FALSE)=0,\"\",VLOOKUP(CL91,'Footnotes list'!$D$9:$E$58,2,FALSE) ) )","v":""},null,null,null,null,{"$f":"IF(TRIM(CQ91)=\"\", \"\", IF(VLOOKUP(CQ91,'Footnotes list'!$D$9:$E$58,2,FALSE)=0,\"\",VLOOKUP(CQ91,'Footnotes list'!$D$9:$E$58,2,FALSE) ) )","v":""},null,null,null,null,{"$f":"IF(TRIM(CV91)=\"\", \"\", IF(VLOOKUP(CV91,'Footnotes list'!$D$9:$E$58,2,FALSE)=0,\"\",VLOOKUP(CV91,'Footnotes list'!$D$9:$E$58,2,FALSE) ) )","v":""},null,null,null,null,{"$f":"IF(TRIM(DA91)=\"\", \"\", IF(VLOOKUP(DA91,'Footnotes list'!$D$9:$E$58,2,FALSE)=0,\"\",VLOOKUP(DA91,'Footnotes list'!$D$9:$E$58,2,FALSE) ) )","v":""},null,null,null,null,{"$f":"IF(TRIM(DF91)=\"\", \"\", IF(VLOOKUP(DF91,'Footnotes list'!$D$9:$E$58,2,FALSE)=0,\"\",VLOOKUP(DF91,'Footnotes list'!$D$9:$E$58,2,FALSE) ) )","v":""},null,null,null,null,{"$f":"IF(TRIM(DK91)=\"\", \"\", IF(VLOOKUP(DK91,'Footnotes list'!$D$9:$E$58,2,FALSE)=0,\"\",VLOOKUP(DK91,'Footnotes list'!$D$9:$E$58,2,FALSE) ) )","v":""},null,null,null,null,{"$f":"IF(TRIM(DP91)=\"\", \"\", IF(VLOOKUP(DP91,'Footnotes list'!$D$9:$E$58,2,FALSE)=0,\"\",VLOOKUP(DP91,'Footnotes list'!$D$9:$E$58,2,FALSE) ) )","v":""},null,null,null,null,{"$f":"IF(TRIM(DU91)=\"\", \"\", IF(VLOOKUP(DU91,'Footnotes list'!$D$9:$E$58,2,FALSE)=0,\"\",VLOOKUP(DU91,'Footnotes list'!$D$9:$E$58,2,FALSE) ) )","v":""},null,null,null,null,{"$f":"IF(TRIM(DZ91)=\"\", \"\", IF(VLOOKUP(DZ91,'Footnotes list'!$D$9:$E$58,2,FALSE)=0,\"\",VLOOKUP(DZ91,'Footnotes list'!$D$9:$E$58,2,FALSE) ) )","v":""},null,null,null,null,{"$f":"IF(TRIM(EE91)=\"\", \"\", IF(VLOOKUP(EE91,'Footnotes list'!$D$9:$E$58,2,FALSE)=0,\"\",VLOOKUP(EE91,'Footnotes list'!$D$9:$E$58,2,FALSE) ) )","v":""},null,null,null,null,{"$f":"IF(TRIM(EJ91)=\"\", \"\", IF(VLOOKUP(EJ91,'Footnotes list'!$D$9:$E$58,2,FALSE)=0,\"\",VLOOKUP(EJ91,'Footnotes list'!$D$9:$E$58,2,FALSE) ) )","v":""},null,null,null,null,{"$f":"IF(TRIM(EO91)=\"\", \"\", IF(VLOOKUP(EO91,'Footnotes list'!$D$9:$E$58,2,FALSE)=0,\"\",VLOOKUP(EO91,'Footnotes list'!$D$9:$E$58,2,FALSE) ) )","v":""},null,null,null,null,{"$f":"IF(TRIM(ET91)=\"\", \"\", IF(VLOOKUP(ET91,'Footnotes list'!$D$9:$E$58,2,FALSE)=0,\"\",VLOOKUP(ET91,'Footnotes list'!$D$9:$E$58,2,FALSE) ) )","v":""},null,null,null,null,{"$f":"IF(TRIM(EY91)=\"\", \"\", IF(VLOOKUP(EY91,'Footnotes list'!$D$9:$E$58,2,FALSE)=0,\"\",VLOOKUP(EY91,'Footnotes list'!$D$9:$E$58,2,FALSE) ) )","v":""}]
[null,null,"K","TOT_EGSS","Total K - Financial and insurance activities, including:",null,null,null,null,null,{"$f":"IF(TRIM(J92)=\"\", \"\", IF(VLOOKUP(J92,'Footnotes list'!$D$9:$E$58,2,FALSE)=0,\"\",VLOOKUP(J92,'Footnotes list'!$D$9:$E$58,2,FALSE) ) )","v":""},null,null,null,null,{"$f":"IF(TRIM(O92)=\"\", \"\", IF(VLOOKUP(O92,'Footnotes list'!$D$9:$E$58,2,FALSE)=0,\"\",VLOOKUP(O92,'Footnotes list'!$D$9:$E$58,2,FALSE) ) )","v":""},null,null,null,null,{"$f":"IF(TRIM(T92)=\"\", \"\", IF(VLOOKUP(T92,'Footnotes list'!$D$9:$E$58,2,FALSE)=0,\"\",VLOOKUP(T92,'Footnotes list'!$D$9:$E$58,2,FALSE) ) )","v":""},null,null,null,null,{"$f":"IF(TRIM(Y92)=\"\", \"\", IF(VLOOKUP(Y92,'Footnotes list'!$D$9:$E$58,2,FALSE)=0,\"\",VLOOKUP(Y92,'Footnotes list'!$D$9:$E$58,2,FALSE) ) )","v":""},null,null,null,null,{"$f":"IF(TRIM(AD92)=\"\", \"\", IF(VLOOKUP(AD92,'Footnotes list'!$D$9:$E$58,2,FALSE)=0,\"\",VLOOKUP(AD92,'Footnotes list'!$D$9:$E$58,2,FALSE) ) )","v":""},null,null,null,null,{"$f":"IF(TRIM(AI92)=\"\", \"\", IF(VLOOKUP(AI92,'Footnotes list'!$D$9:$E$58,2,FALSE)=0,\"\",VLOOKUP(AI92,'Footnotes list'!$D$9:$E$58,2,FALSE) ) )","v":""},null,null,null,null,{"$f":"IF(TRIM(AN92)=\"\", \"\", IF(VLOOKUP(AN92,'Footnotes list'!$D$9:$E$58,2,FALSE)=0,\"\",VLOOKUP(AN92,'Footnotes list'!$D$9:$E$58,2,FALSE) ) )","v":""},null,null,null,null,{"$f":"IF(TRIM(AS92)=\"\", \"\", IF(VLOOKUP(AS92,'Footnotes list'!$D$9:$E$58,2,FALSE)=0,\"\",VLOOKUP(AS92,'Footnotes list'!$D$9:$E$58,2,FALSE) ) )","v":""},null,null,null,null,{"$f":"IF(TRIM(AX92)=\"\", \"\", IF(VLOOKUP(AX92,'Footnotes list'!$D$9:$E$58,2,FALSE)=0,\"\",VLOOKUP(AX92,'Footnotes list'!$D$9:$E$58,2,FALSE) ) )","v":""},null,null,null,null,{"$f":"IF(TRIM(BC92)=\"\", \"\", IF(VLOOKUP(BC92,'Footnotes list'!$D$9:$E$58,2,FALSE)=0,\"\",VLOOKUP(BC92,'Footnotes list'!$D$9:$E$58,2,FALSE) ) )","v":""},null,null,null,null,{"$f":"IF(TRIM(BH92)=\"\", \"\", IF(VLOOKUP(BH92,'Footnotes list'!$D$9:$E$58,2,FALSE)=0,\"\",VLOOKUP(BH92,'Footnotes list'!$D$9:$E$58,2,FALSE) ) )","v":""},null,null,null,null,{"$f":"IF(TRIM(BM92)=\"\", \"\", IF(VLOOKUP(BM92,'Footnotes list'!$D$9:$E$58,2,FALSE)=0,\"\",VLOOKUP(BM92,'Footnotes list'!$D$9:$E$58,2,FALSE) ) )","v":""},null,null,null,null,{"$f":"IF(TRIM(BR92)=\"\", \"\", IF(VLOOKUP(BR92,'Footnotes list'!$D$9:$E$58,2,FALSE)=0,\"\",VLOOKUP(BR92,'Footnotes list'!$D$9:$E$58,2,FALSE) ) )","v":""},null,null,null,null,{"$f":"IF(TRIM(BW92)=\"\", \"\", IF(VLOOKUP(BW92,'Footnotes list'!$D$9:$E$58,2,FALSE)=0,\"\",VLOOKUP(BW92,'Footnotes list'!$D$9:$E$58,2,FALSE) ) )","v":""},null,null,null,null,{"$f":"IF(TRIM(CB92)=\"\", \"\", IF(VLOOKUP(CB92,'Footnotes list'!$D$9:$E$58,2,FALSE)=0,\"\",VLOOKUP(CB92,'Footnotes list'!$D$9:$E$58,2,FALSE) ) )","v":""},null,null,null,null,{"$f":"IF(TRIM(CG92)=\"\", \"\", IF(VLOOKUP(CG92,'Footnotes list'!$D$9:$E$58,2,FALSE)=0,\"\",VLOOKUP(CG92,'Footnotes list'!$D$9:$E$58,2,FALSE) ) )","v":""},null,null,null,null,{"$f":"IF(TRIM(CL92)=\"\", \"\", IF(VLOOKUP(CL92,'Footnotes list'!$D$9:$E$58,2,FALSE)=0,\"\",VLOOKUP(CL92,'Footnotes list'!$D$9:$E$58,2,FALSE) ) )","v":""},null,null,null,null,{"$f":"IF(TRIM(CQ92)=\"\", \"\", IF(VLOOKUP(CQ92,'Footnotes list'!$D$9:$E$58,2,FALSE)=0,\"\",VLOOKUP(CQ92,'Footnotes list'!$D$9:$E$58,2,FALSE) ) )","v":""},null,null,null,null,{"$f":"IF(TRIM(CV92)=\"\", \"\", IF(VLOOKUP(CV92,'Footnotes list'!$D$9:$E$58,2,FALSE)=0,\"\",VLOOKUP(CV92,'Footnotes list'!$D$9:$E$58,2,FALSE) ) )","v":""},null,null,null,null,{"$f":"IF(TRIM(DA92)=\"\", \"\", IF(VLOOKUP(DA92,'Footnotes list'!$D$9:$E$58,2,FALSE)=0,\"\",VLOOKUP(DA92,'Footnotes list'!$D$9:$E$58,2,FALSE) ) )","v":""},null,null,null,null,{"$f":"IF(TRIM(DF92)=\"\", \"\", IF(VLOOKUP(DF92,'Footnotes list'!$D$9:$E$58,2,FALSE)=0,\"\",VLOOKUP(DF92,'Footnotes list'!$D$9:$E$58,2,FALSE) ) )","v":""},null,null,null,null,{"$f":"IF(TRIM(DK92)=\"\", \"\", IF(VLOOKUP(DK92,'Footnotes list'!$D$9:$E$58,2,FALSE)=0,\"\",VLOOKUP(DK92,'Footnotes list'!$D$9:$E$58,2,FALSE) ) )","v":""},null,null,null,null,{"$f":"IF(TRIM(DP92)=\"\", \"\", IF(VLOOKUP(DP92,'Footnotes list'!$D$9:$E$58,2,FALSE)=0,\"\",VLOOKUP(DP92,'Footnotes list'!$D$9:$E$58,2,FALSE) ) )","v":""},null,null,null,null,{"$f":"IF(TRIM(DU92)=\"\", \"\", IF(VLOOKUP(DU92,'Footnotes list'!$D$9:$E$58,2,FALSE)=0,\"\",VLOOKUP(DU92,'Footnotes list'!$D$9:$E$58,2,FALSE) ) )","v":""},null,null,null,null,{"$f":"IF(TRIM(DZ92)=\"\", \"\", IF(VLOOKUP(DZ92,'Footnotes list'!$D$9:$E$58,2,FALSE)=0,\"\",VLOOKUP(DZ92,'Footnotes list'!$D$9:$E$58,2,FALSE) ) )","v":""},null,null,null,null,{"$f":"IF(TRIM(EE92)=\"\", \"\", IF(VLOOKUP(EE92,'Footnotes list'!$D$9:$E$58,2,FALSE)=0,\"\",VLOOKUP(EE92,'Footnotes list'!$D$9:$E$58,2,FALSE) ) )","v":""},null,null,null,null,{"$f":"IF(TRIM(EJ92)=\"\", \"\", IF(VLOOKUP(EJ92,'Footnotes list'!$D$9:$E$58,2,FALSE)=0,\"\",VLOOKUP(EJ92,'Footnotes list'!$D$9:$E$58,2,FALSE) ) )","v":""},null,null,null,null,{"$f":"IF(TRIM(EO92)=\"\", \"\", IF(VLOOKUP(EO92,'Footnotes list'!$D$9:$E$58,2,FALSE)=0,\"\",VLOOKUP(EO92,'Footnotes list'!$D$9:$E$58,2,FALSE) ) )","v":""},null,null,null,null,{"$f":"IF(TRIM(ET92)=\"\", \"\", IF(VLOOKUP(ET92,'Footnotes list'!$D$9:$E$58,2,FALSE)=0,\"\",VLOOKUP(ET92,'Footnotes list'!$D$9:$E$58,2,FALSE) ) )","v":""},null,null,null,null,{"$f":"IF(TRIM(EY92)=\"\", \"\", IF(VLOOKUP(EY92,'Footnotes list'!$D$9:$E$58,2,FALSE)=0,\"\",VLOOKUP(EY92,'Footnotes list'!$D$9:$E$58,2,FALSE) ) )","v":""}]
[null,null,"K","ES_CS","environmental specific services",null,null,null,null,null,{"$f":"IF(TRIM(J93)=\"\", \"\", IF(VLOOKUP(J93,'Footnotes list'!$D$9:$E$58,2,FALSE)=0,\"\",VLOOKUP(J93,'Footnotes list'!$D$9:$E$58,2,FALSE) ) )","v":""},null,null,null,null,{"$f":"IF(TRIM(O93)=\"\", \"\", IF(VLOOKUP(O93,'Footnotes list'!$D$9:$E$58,2,FALSE)=0,\"\",VLOOKUP(O93,'Footnotes list'!$D$9:$E$58,2,FALSE) ) )","v":""},null,null,null,null,{"$f":"IF(TRIM(T93)=\"\", \"\", IF(VLOOKUP(T93,'Footnotes list'!$D$9:$E$58,2,FALSE)=0,\"\",VLOOKUP(T93,'Footnotes list'!$D$9:$E$58,2,FALSE) ) )","v":""},null,null,null,null,{"$f":"IF(TRIM(Y93)=\"\", \"\", IF(VLOOKUP(Y93,'Footnotes list'!$D$9:$E$58,2,FALSE)=0,\"\",VLOOKUP(Y93,'Footnotes list'!$D$9:$E$58,2,FALSE) ) )","v":""},null,null,null,null,{"$f":"IF(TRIM(AD93)=\"\", \"\", IF(VLOOKUP(AD93,'Footnotes list'!$D$9:$E$58,2,FALSE)=0,\"\",VLOOKUP(AD93,'Footnotes list'!$D$9:$E$58,2,FALSE) ) )","v":""},null,null,null,null,{"$f":"IF(TRIM(AI93)=\"\", \"\", IF(VLOOKUP(AI93,'Footnotes list'!$D$9:$E$58,2,FALSE)=0,\"\",VLOOKUP(AI93,'Footnotes list'!$D$9:$E$58,2,FALSE) ) )","v":""},null,null,null,null,{"$f":"IF(TRIM(AN93)=\"\", \"\", IF(VLOOKUP(AN93,'Footnotes list'!$D$9:$E$58,2,FALSE)=0,\"\",VLOOKUP(AN93,'Footnotes list'!$D$9:$E$58,2,FALSE) ) )","v":""},null,null,null,null,{"$f":"IF(TRIM(AS93)=\"\", \"\", IF(VLOOKUP(AS93,'Footnotes list'!$D$9:$E$58,2,FALSE)=0,\"\",VLOOKUP(AS93,'Footnotes list'!$D$9:$E$58,2,FALSE) ) )","v":""},null,null,null,null,{"$f":"IF(TRIM(AX93)=\"\", \"\", IF(VLOOKUP(AX93,'Footnotes list'!$D$9:$E$58,2,FALSE)=0,\"\",VLOOKUP(AX93,'Footnotes list'!$D$9:$E$58,2,FALSE) ) )","v":""},null,null,null,null,{"$f":"IF(TRIM(BC93)=\"\", \"\", IF(VLOOKUP(BC93,'Footnotes list'!$D$9:$E$58,2,FALSE)=0,\"\",VLOOKUP(BC93,'Footnotes list'!$D$9:$E$58,2,FALSE) ) )","v":""},null,null,null,null,{"$f":"IF(TRIM(BH93)=\"\", \"\", IF(VLOOKUP(BH93,'Footnotes list'!$D$9:$E$58,2,FALSE)=0,\"\",VLOOKUP(BH93,'Footnotes list'!$D$9:$E$58,2,FALSE) ) )","v":""},null,null,null,null,{"$f":"IF(TRIM(BM93)=\"\", \"\", IF(VLOOKUP(BM93,'Footnotes list'!$D$9:$E$58,2,FALSE)=0,\"\",VLOOKUP(BM93,'Footnotes list'!$D$9:$E$58,2,FALSE) ) )","v":""},null,null,null,null,{"$f":"IF(TRIM(BR93)=\"\", \"\", IF(VLOOKUP(BR93,'Footnotes list'!$D$9:$E$58,2,FALSE)=0,\"\",VLOOKUP(BR93,'Footnotes list'!$D$9:$E$58,2,FALSE) ) )","v":""},null,null,null,null,{"$f":"IF(TRIM(BW93)=\"\", \"\", IF(VLOOKUP(BW93,'Footnotes list'!$D$9:$E$58,2,FALSE)=0,\"\",VLOOKUP(BW93,'Footnotes list'!$D$9:$E$58,2,FALSE) ) )","v":""},null,null,null,null,{"$f":"IF(TRIM(CB93)=\"\", \"\", IF(VLOOKUP(CB93,'Footnotes list'!$D$9:$E$58,2,FALSE)=0,\"\",VLOOKUP(CB93,'Footnotes list'!$D$9:$E$58,2,FALSE) ) )","v":""},null,null,null,null,{"$f":"IF(TRIM(CG93)=\"\", \"\", IF(VLOOKUP(CG93,'Footnotes list'!$D$9:$E$58,2,FALSE)=0,\"\",VLOOKUP(CG93,'Footnotes list'!$D$9:$E$58,2,FALSE) ) )","v":""},null,null,null,null,{"$f":"IF(TRIM(CL93)=\"\", \"\", IF(VLOOKUP(CL93,'Footnotes list'!$D$9:$E$58,2,FALSE)=0,\"\",VLOOKUP(CL93,'Footnotes list'!$D$9:$E$58,2,FALSE) ) )","v":""},null,null,null,null,{"$f":"IF(TRIM(CQ93)=\"\", \"\", IF(VLOOKUP(CQ93,'Footnotes list'!$D$9:$E$58,2,FALSE)=0,\"\",VLOOKUP(CQ93,'Footnotes list'!$D$9:$E$58,2,FALSE) ) )","v":""},null,null,null,null,{"$f":"IF(TRIM(CV93)=\"\", \"\", IF(VLOOKUP(CV93,'Footnotes list'!$D$9:$E$58,2,FALSE)=0,\"\",VLOOKUP(CV93,'Footnotes list'!$D$9:$E$58,2,FALSE) ) )","v":""},null,null,null,null,{"$f":"IF(TRIM(DA93)=\"\", \"\", IF(VLOOKUP(DA93,'Footnotes list'!$D$9:$E$58,2,FALSE)=0,\"\",VLOOKUP(DA93,'Footnotes list'!$D$9:$E$58,2,FALSE) ) )","v":""},null,null,null,null,{"$f":"IF(TRIM(DF93)=\"\", \"\", IF(VLOOKUP(DF93,'Footnotes list'!$D$9:$E$58,2,FALSE)=0,\"\",VLOOKUP(DF93,'Footnotes list'!$D$9:$E$58,2,FALSE) ) )","v":""},null,null,null,null,{"$f":"IF(TRIM(DK93)=\"\", \"\", IF(VLOOKUP(DK93,'Footnotes list'!$D$9:$E$58,2,FALSE)=0,\"\",VLOOKUP(DK93,'Footnotes list'!$D$9:$E$58,2,FALSE) ) )","v":""},null,null,null,null,{"$f":"IF(TRIM(DP93)=\"\", \"\", IF(VLOOKUP(DP93,'Footnotes list'!$D$9:$E$58,2,FALSE)=0,\"\",VLOOKUP(DP93,'Footnotes list'!$D$9:$E$58,2,FALSE) ) )","v":""},null,null,null,null,{"$f":"IF(TRIM(DU93)=\"\", \"\", IF(VLOOKUP(DU93,'Footnotes list'!$D$9:$E$58,2,FALSE)=0,\"\",VLOOKUP(DU93,'Footnotes list'!$D$9:$E$58,2,FALSE) ) )","v":""},null,null,null,null,{"$f":"IF(TRIM(DZ93)=\"\", \"\", IF(VLOOKUP(DZ93,'Footnotes list'!$D$9:$E$58,2,FALSE)=0,\"\",VLOOKUP(DZ93,'Footnotes list'!$D$9:$E$58,2,FALSE) ) )","v":""},null,null,null,null,{"$f":"IF(TRIM(EE93)=\"\", \"\", IF(VLOOKUP(EE93,'Footnotes list'!$D$9:$E$58,2,FALSE)=0,\"\",VLOOKUP(EE93,'Footnotes list'!$D$9:$E$58,2,FALSE) ) )","v":""},null,null,null,null,{"$f":"IF(TRIM(EJ93)=\"\", \"\", IF(VLOOKUP(EJ93,'Footnotes list'!$D$9:$E$58,2,FALSE)=0,\"\",VLOOKUP(EJ93,'Footnotes list'!$D$9:$E$58,2,FALSE) ) )","v":""},null,null,null,null,{"$f":"IF(TRIM(EO93)=\"\", \"\", IF(VLOOKUP(EO93,'Footnotes list'!$D$9:$E$58,2,FALSE)=0,\"\",VLOOKUP(EO93,'Footnotes list'!$D$9:$E$58,2,FALSE) ) )","v":""},null,null,null,null,{"$f":"IF(TRIM(ET93)=\"\", \"\", IF(VLOOKUP(ET93,'Footnotes list'!$D$9:$E$58,2,FALSE)=0,\"\",VLOOKUP(ET93,'Footnotes list'!$D$9:$E$58,2,FALSE) ) )","v":""},null,null,null,null,{"$f":"IF(TRIM(EY93)=\"\", \"\", IF(VLOOKUP(EY93,'Footnotes list'!$D$9:$E$58,2,FALSE)=0,\"\",VLOOKUP(EY93,'Footnotes list'!$D$9:$E$58,2,FALSE) ) )","v":""}]
[null,null,"K","C_REP","cleaner and resource efficient products",null,null,null,null,null,{"$f":"IF(TRIM(J94)=\"\", \"\", IF(VLOOKUP(J94,'Footnotes list'!$D$9:$E$58,2,FALSE)=0,\"\",VLOOKUP(J94,'Footnotes list'!$D$9:$E$58,2,FALSE) ) )","v":""},null,null,null,null,{"$f":"IF(TRIM(O94)=\"\", \"\", IF(VLOOKUP(O94,'Footnotes list'!$D$9:$E$58,2,FALSE)=0,\"\",VLOOKUP(O94,'Footnotes list'!$D$9:$E$58,2,FALSE) ) )","v":""},null,null,null,null,{"$f":"IF(TRIM(T94)=\"\", \"\", IF(VLOOKUP(T94,'Footnotes list'!$D$9:$E$58,2,FALSE)=0,\"\",VLOOKUP(T94,'Footnotes list'!$D$9:$E$58,2,FALSE) ) )","v":""},null,null,null,null,{"$f":"IF(TRIM(Y94)=\"\", \"\", IF(VLOOKUP(Y94,'Footnotes list'!$D$9:$E$58,2,FALSE)=0,\"\",VLOOKUP(Y94,'Footnotes list'!$D$9:$E$58,2,FALSE) ) )","v":""},null,null,null,null,{"$f":"IF(TRIM(AD94)=\"\", \"\", IF(VLOOKUP(AD94,'Footnotes list'!$D$9:$E$58,2,FALSE)=0,\"\",VLOOKUP(AD94,'Footnotes list'!$D$9:$E$58,2,FALSE) ) )","v":""},null,null,null,null,{"$f":"IF(TRIM(AI94)=\"\", \"\", IF(VLOOKUP(AI94,'Footnotes list'!$D$9:$E$58,2,FALSE)=0,\"\",VLOOKUP(AI94,'Footnotes list'!$D$9:$E$58,2,FALSE) ) )","v":""},null,null,null,null,{"$f":"IF(TRIM(AN94)=\"\", \"\", IF(VLOOKUP(AN94,'Footnotes list'!$D$9:$E$58,2,FALSE)=0,\"\",VLOOKUP(AN94,'Footnotes list'!$D$9:$E$58,2,FALSE) ) )","v":""},null,null,null,null,{"$f":"IF(TRIM(AS94)=\"\", \"\", IF(VLOOKUP(AS94,'Footnotes list'!$D$9:$E$58,2,FALSE)=0,\"\",VLOOKUP(AS94,'Footnotes list'!$D$9:$E$58,2,FALSE) ) )","v":""},null,null,null,null,{"$f":"IF(TRIM(AX94)=\"\", \"\", IF(VLOOKUP(AX94,'Footnotes list'!$D$9:$E$58,2,FALSE)=0,\"\",VLOOKUP(AX94,'Footnotes list'!$D$9:$E$58,2,FALSE) ) )","v":""},null,null,null,null,{"$f":"IF(TRIM(BC94)=\"\", \"\", IF(VLOOKUP(BC94,'Footnotes list'!$D$9:$E$58,2,FALSE)=0,\"\",VLOOKUP(BC94,'Footnotes list'!$D$9:$E$58,2,FALSE) ) )","v":""},null,null,null,null,{"$f":"IF(TRIM(BH94)=\"\", \"\", IF(VLOOKUP(BH94,'Footnotes list'!$D$9:$E$58,2,FALSE)=0,\"\",VLOOKUP(BH94,'Footnotes list'!$D$9:$E$58,2,FALSE) ) )","v":""},null,null,null,null,{"$f":"IF(TRIM(BM94)=\"\", \"\", IF(VLOOKUP(BM94,'Footnotes list'!$D$9:$E$58,2,FALSE)=0,\"\",VLOOKUP(BM94,'Footnotes list'!$D$9:$E$58,2,FALSE) ) )","v":""},null,null,null,null,{"$f":"IF(TRIM(BR94)=\"\", \"\", IF(VLOOKUP(BR94,'Footnotes list'!$D$9:$E$58,2,FALSE)=0,\"\",VLOOKUP(BR94,'Footnotes list'!$D$9:$E$58,2,FALSE) ) )","v":""},null,null,null,null,{"$f":"IF(TRIM(BW94)=\"\", \"\", IF(VLOOKUP(BW94,'Footnotes list'!$D$9:$E$58,2,FALSE)=0,\"\",VLOOKUP(BW94,'Footnotes list'!$D$9:$E$58,2,FALSE) ) )","v":""},null,null,null,null,{"$f":"IF(TRIM(CB94)=\"\", \"\", IF(VLOOKUP(CB94,'Footnotes list'!$D$9:$E$58,2,FALSE)=0,\"\",VLOOKUP(CB94,'Footnotes list'!$D$9:$E$58,2,FALSE) ) )","v":""},null,null,null,null,{"$f":"IF(TRIM(CG94)=\"\", \"\", IF(VLOOKUP(CG94,'Footnotes list'!$D$9:$E$58,2,FALSE)=0,\"\",VLOOKUP(CG94,'Footnotes list'!$D$9:$E$58,2,FALSE) ) )","v":""},null,null,null,null,{"$f":"IF(TRIM(CL94)=\"\", \"\", IF(VLOOKUP(CL94,'Footnotes list'!$D$9:$E$58,2,FALSE)=0,\"\",VLOOKUP(CL94,'Footnotes list'!$D$9:$E$58,2,FALSE) ) )","v":""},null,null,null,null,{"$f":"IF(TRIM(CQ94)=\"\", \"\", IF(VLOOKUP(CQ94,'Footnotes list'!$D$9:$E$58,2,FALSE)=0,\"\",VLOOKUP(CQ94,'Footnotes list'!$D$9:$E$58,2,FALSE) ) )","v":""},null,null,null,null,{"$f":"IF(TRIM(CV94)=\"\", \"\", IF(VLOOKUP(CV94,'Footnotes list'!$D$9:$E$58,2,FALSE)=0,\"\",VLOOKUP(CV94,'Footnotes list'!$D$9:$E$58,2,FALSE) ) )","v":""},null,null,null,null,{"$f":"IF(TRIM(DA94)=\"\", \"\", IF(VLOOKUP(DA94,'Footnotes list'!$D$9:$E$58,2,FALSE)=0,\"\",VLOOKUP(DA94,'Footnotes list'!$D$9:$E$58,2,FALSE) ) )","v":""},null,null,null,null,{"$f":"IF(TRIM(DF94)=\"\", \"\", IF(VLOOKUP(DF94,'Footnotes list'!$D$9:$E$58,2,FALSE)=0,\"\",VLOOKUP(DF94,'Footnotes list'!$D$9:$E$58,2,FALSE) ) )","v":""},null,null,null,null,{"$f":"IF(TRIM(DK94)=\"\", \"\", IF(VLOOKUP(DK94,'Footnotes list'!$D$9:$E$58,2,FALSE)=0,\"\",VLOOKUP(DK94,'Footnotes list'!$D$9:$E$58,2,FALSE) ) )","v":""},null,null,null,null,{"$f":"IF(TRIM(DP94)=\"\", \"\", IF(VLOOKUP(DP94,'Footnotes list'!$D$9:$E$58,2,FALSE)=0,\"\",VLOOKUP(DP94,'Footnotes list'!$D$9:$E$58,2,FALSE) ) )","v":""},null,null,null,null,{"$f":"IF(TRIM(DU94)=\"\", \"\", IF(VLOOKUP(DU94,'Footnotes list'!$D$9:$E$58,2,FALSE)=0,\"\",VLOOKUP(DU94,'Footnotes list'!$D$9:$E$58,2,FALSE) ) )","v":""},null,null,null,null,{"$f":"IF(TRIM(DZ94)=\"\", \"\", IF(VLOOKUP(DZ94,'Footnotes list'!$D$9:$E$58,2,FALSE)=0,\"\",VLOOKUP(DZ94,'Footnotes list'!$D$9:$E$58,2,FALSE) ) )","v":""},null,null,null,null,{"$f":"IF(TRIM(EE94)=\"\", \"\", IF(VLOOKUP(EE94,'Footnotes list'!$D$9:$E$58,2,FALSE)=0,\"\",VLOOKUP(EE94,'Footnotes list'!$D$9:$E$58,2,FALSE) ) )","v":""},null,null,null,null,{"$f":"IF(TRIM(EJ94)=\"\", \"\", IF(VLOOKUP(EJ94,'Footnotes list'!$D$9:$E$58,2,FALSE)=0,\"\",VLOOKUP(EJ94,'Footnotes list'!$D$9:$E$58,2,FALSE) ) )","v":""},null,null,null,null,{"$f":"IF(TRIM(EO94)=\"\", \"\", IF(VLOOKUP(EO94,'Footnotes list'!$D$9:$E$58,2,FALSE)=0,\"\",VLOOKUP(EO94,'Footnotes list'!$D$9:$E$58,2,FALSE) ) )","v":""},null,null,null,null,{"$f":"IF(TRIM(ET94)=\"\", \"\", IF(VLOOKUP(ET94,'Footnotes list'!$D$9:$E$58,2,FALSE)=0,\"\",VLOOKUP(ET94,'Footnotes list'!$D$9:$E$58,2,FALSE) ) )","v":""},null,null,null,null,{"$f":"IF(TRIM(EY94)=\"\", \"\", IF(VLOOKUP(EY94,'Footnotes list'!$D$9:$E$58,2,FALSE)=0,\"\",VLOOKUP(EY94,'Footnotes list'!$D$9:$E$58,2,FALSE) ) )","v":""}]
[null,null,"L","TOT_EGSS","Total L - Real estate activities, including:",null,null,null,null,null,{"$f":"IF(TRIM(J95)=\"\", \"\", IF(VLOOKUP(J95,'Footnotes list'!$D$9:$E$58,2,FALSE)=0,\"\",VLOOKUP(J95,'Footnotes list'!$D$9:$E$58,2,FALSE) ) )","v":""},null,null,null,null,{"$f":"IF(TRIM(O95)=\"\", \"\", IF(VLOOKUP(O95,'Footnotes list'!$D$9:$E$58,2,FALSE)=0,\"\",VLOOKUP(O95,'Footnotes list'!$D$9:$E$58,2,FALSE) ) )","v":""},null,null,null,null,{"$f":"IF(TRIM(T95)=\"\", \"\", IF(VLOOKUP(T95,'Footnotes list'!$D$9:$E$58,2,FALSE)=0,\"\",VLOOKUP(T95,'Footnotes list'!$D$9:$E$58,2,FALSE) ) )","v":""},null,null,null,null,{"$f":"IF(TRIM(Y95)=\"\", \"\", IF(VLOOKUP(Y95,'Footnotes list'!$D$9:$E$58,2,FALSE)=0,\"\",VLOOKUP(Y95,'Footnotes list'!$D$9:$E$58,2,FALSE) ) )","v":""},null,null,null,null,{"$f":"IF(TRIM(AD95)=\"\", \"\", IF(VLOOKUP(AD95,'Footnotes list'!$D$9:$E$58,2,FALSE)=0,\"\",VLOOKUP(AD95,'Footnotes list'!$D$9:$E$58,2,FALSE) ) )","v":""},null,null,null,null,{"$f":"IF(TRIM(AI95)=\"\", \"\", IF(VLOOKUP(AI95,'Footnotes list'!$D$9:$E$58,2,FALSE)=0,\"\",VLOOKUP(AI95,'Footnotes list'!$D$9:$E$58,2,FALSE) ) )","v":""},null,null,null,null,{"$f":"IF(TRIM(AN95)=\"\", \"\", IF(VLOOKUP(AN95,'Footnotes list'!$D$9:$E$58,2,FALSE)=0,\"\",VLOOKUP(AN95,'Footnotes list'!$D$9:$E$58,2,FALSE) ) )","v":""},null,null,null,null,{"$f":"IF(TRIM(AS95)=\"\", \"\", IF(VLOOKUP(AS95,'Footnotes list'!$D$9:$E$58,2,FALSE)=0,\"\",VLOOKUP(AS95,'Footnotes list'!$D$9:$E$58,2,FALSE) ) )","v":""},null,null,null,null,{"$f":"IF(TRIM(AX95)=\"\", \"\", IF(VLOOKUP(AX95,'Footnotes list'!$D$9:$E$58,2,FALSE)=0,\"\",VLOOKUP(AX95,'Footnotes list'!$D$9:$E$58,2,FALSE) ) )","v":""},null,null,null,null,{"$f":"IF(TRIM(BC95)=\"\", \"\", IF(VLOOKUP(BC95,'Footnotes list'!$D$9:$E$58,2,FALSE)=0,\"\",VLOOKUP(BC95,'Footnotes list'!$D$9:$E$58,2,FALSE) ) )","v":""},null,null,null,null,{"$f":"IF(TRIM(BH95)=\"\", \"\", IF(VLOOKUP(BH95,'Footnotes list'!$D$9:$E$58,2,FALSE)=0,\"\",VLOOKUP(BH95,'Footnotes list'!$D$9:$E$58,2,FALSE) ) )","v":""},null,null,null,null,{"$f":"IF(TRIM(BM95)=\"\", \"\", IF(VLOOKUP(BM95,'Footnotes list'!$D$9:$E$58,2,FALSE)=0,\"\",VLOOKUP(BM95,'Footnotes list'!$D$9:$E$58,2,FALSE) ) )","v":""},null,null,null,null,{"$f":"IF(TRIM(BR95)=\"\", \"\", IF(VLOOKUP(BR95,'Footnotes list'!$D$9:$E$58,2,FALSE)=0,\"\",VLOOKUP(BR95,'Footnotes list'!$D$9:$E$58,2,FALSE) ) )","v":""},null,null,null,null,{"$f":"IF(TRIM(BW95)=\"\", \"\", IF(VLOOKUP(BW95,'Footnotes list'!$D$9:$E$58,2,FALSE)=0,\"\",VLOOKUP(BW95,'Footnotes list'!$D$9:$E$58,2,FALSE) ) )","v":""},null,null,null,null,{"$f":"IF(TRIM(CB95)=\"\", \"\", IF(VLOOKUP(CB95,'Footnotes list'!$D$9:$E$58,2,FALSE)=0,\"\",VLOOKUP(CB95,'Footnotes list'!$D$9:$E$58,2,FALSE) ) )","v":""},null,null,null,null,{"$f":"IF(TRIM(CG95)=\"\", \"\", IF(VLOOKUP(CG95,'Footnotes list'!$D$9:$E$58,2,FALSE)=0,\"\",VLOOKUP(CG95,'Footnotes list'!$D$9:$E$58,2,FALSE) ) )","v":""},null,null,null,null,{"$f":"IF(TRIM(CL95)=\"\", \"\", IF(VLOOKUP(CL95,'Footnotes list'!$D$9:$E$58,2,FALSE)=0,\"\",VLOOKUP(CL95,'Footnotes list'!$D$9:$E$58,2,FALSE) ) )","v":""},null,null,null,null,{"$f":"IF(TRIM(CQ95)=\"\", \"\", IF(VLOOKUP(CQ95,'Footnotes list'!$D$9:$E$58,2,FALSE)=0,\"\",VLOOKUP(CQ95,'Footnotes list'!$D$9:$E$58,2,FALSE) ) )","v":""},null,null,null,null,{"$f":"IF(TRIM(CV95)=\"\", \"\", IF(VLOOKUP(CV95,'Footnotes list'!$D$9:$E$58,2,FALSE)=0,\"\",VLOOKUP(CV95,'Footnotes list'!$D$9:$E$58,2,FALSE) ) )","v":""},null,null,null,null,{"$f":"IF(TRIM(DA95)=\"\", \"\", IF(VLOOKUP(DA95,'Footnotes list'!$D$9:$E$58,2,FALSE)=0,\"\",VLOOKUP(DA95,'Footnotes list'!$D$9:$E$58,2,FALSE) ) )","v":""},null,null,null,null,{"$f":"IF(TRIM(DF95)=\"\", \"\", IF(VLOOKUP(DF95,'Footnotes list'!$D$9:$E$58,2,FALSE)=0,\"\",VLOOKUP(DF95,'Footnotes list'!$D$9:$E$58,2,FALSE) ) )","v":""},null,null,null,null,{"$f":"IF(TRIM(DK95)=\"\", \"\", IF(VLOOKUP(DK95,'Footnotes list'!$D$9:$E$58,2,FALSE)=0,\"\",VLOOKUP(DK95,'Footnotes list'!$D$9:$E$58,2,FALSE) ) )","v":""},null,null,null,null,{"$f":"IF(TRIM(DP95)=\"\", \"\", IF(VLOOKUP(DP95,'Footnotes list'!$D$9:$E$58,2,FALSE)=0,\"\",VLOOKUP(DP95,'Footnotes list'!$D$9:$E$58,2,FALSE) ) )","v":""},null,null,null,null,{"$f":"IF(TRIM(DU95)=\"\", \"\", IF(VLOOKUP(DU95,'Footnotes list'!$D$9:$E$58,2,FALSE)=0,\"\",VLOOKUP(DU95,'Footnotes list'!$D$9:$E$58,2,FALSE) ) )","v":""},null,null,null,null,{"$f":"IF(TRIM(DZ95)=\"\", \"\", IF(VLOOKUP(DZ95,'Footnotes list'!$D$9:$E$58,2,FALSE)=0,\"\",VLOOKUP(DZ95,'Footnotes list'!$D$9:$E$58,2,FALSE) ) )","v":""},null,null,null,null,{"$f":"IF(TRIM(EE95)=\"\", \"\", IF(VLOOKUP(EE95,'Footnotes list'!$D$9:$E$58,2,FALSE)=0,\"\",VLOOKUP(EE95,'Footnotes list'!$D$9:$E$58,2,FALSE) ) )","v":""},null,null,null,null,{"$f":"IF(TRIM(EJ95)=\"\", \"\", IF(VLOOKUP(EJ95,'Footnotes list'!$D$9:$E$58,2,FALSE)=0,\"\",VLOOKUP(EJ95,'Footnotes list'!$D$9:$E$58,2,FALSE) ) )","v":""},null,null,null,null,{"$f":"IF(TRIM(EO95)=\"\", \"\", IF(VLOOKUP(EO95,'Footnotes list'!$D$9:$E$58,2,FALSE)=0,\"\",VLOOKUP(EO95,'Footnotes list'!$D$9:$E$58,2,FALSE) ) )","v":""},null,null,null,null,{"$f":"IF(TRIM(ET95)=\"\", \"\", IF(VLOOKUP(ET95,'Footnotes list'!$D$9:$E$58,2,FALSE)=0,\"\",VLOOKUP(ET95,'Footnotes list'!$D$9:$E$58,2,FALSE) ) )","v":""},null,null,null,null,{"$f":"IF(TRIM(EY95)=\"\", \"\", IF(VLOOKUP(EY95,'Footnotes list'!$D$9:$E$58,2,FALSE)=0,\"\",VLOOKUP(EY95,'Footnotes list'!$D$9:$E$58,2,FALSE) ) )","v":""}]
[null,null,"L","ES_CS","environmental specific services",null,null,null,null,null,{"$f":"IF(TRIM(J96)=\"\", \"\", IF(VLOOKUP(J96,'Footnotes list'!$D$9:$E$58,2,FALSE)=0,\"\",VLOOKUP(J96,'Footnotes list'!$D$9:$E$58,2,FALSE) ) )","v":""},null,null,null,null,{"$f":"IF(TRIM(O96)=\"\", \"\", IF(VLOOKUP(O96,'Footnotes list'!$D$9:$E$58,2,FALSE)=0,\"\",VLOOKUP(O96,'Footnotes list'!$D$9:$E$58,2,FALSE) ) )","v":""},null,null,null,null,{"$f":"IF(TRIM(T96)=\"\", \"\", IF(VLOOKUP(T96,'Footnotes list'!$D$9:$E$58,2,FALSE)=0,\"\",VLOOKUP(T96,'Footnotes list'!$D$9:$E$58,2,FALSE) ) )","v":""},null,null,null,null,{"$f":"IF(TRIM(Y96)=\"\", \"\", IF(VLOOKUP(Y96,'Footnotes list'!$D$9:$E$58,2,FALSE)=0,\"\",VLOOKUP(Y96,'Footnotes list'!$D$9:$E$58,2,FALSE) ) )","v":""},null,null,null,null,{"$f":"IF(TRIM(AD96)=\"\", \"\", IF(VLOOKUP(AD96,'Footnotes list'!$D$9:$E$58,2,FALSE)=0,\"\",VLOOKUP(AD96,'Footnotes list'!$D$9:$E$58,2,FALSE) ) )","v":""},null,null,null,null,{"$f":"IF(TRIM(AI96)=\"\", \"\", IF(VLOOKUP(AI96,'Footnotes list'!$D$9:$E$58,2,FALSE)=0,\"\",VLOOKUP(AI96,'Footnotes list'!$D$9:$E$58,2,FALSE) ) )","v":""},null,null,null,null,{"$f":"IF(TRIM(AN96)=\"\", \"\", IF(VLOOKUP(AN96,'Footnotes list'!$D$9:$E$58,2,FALSE)=0,\"\",VLOOKUP(AN96,'Footnotes list'!$D$9:$E$58,2,FALSE) ) )","v":""},null,null,null,null,{"$f":"IF(TRIM(AS96)=\"\", \"\", IF(VLOOKUP(AS96,'Footnotes list'!$D$9:$E$58,2,FALSE)=0,\"\",VLOOKUP(AS96,'Footnotes list'!$D$9:$E$58,2,FALSE) ) )","v":""},null,null,null,null,{"$f":"IF(TRIM(AX96)=\"\", \"\", IF(VLOOKUP(AX96,'Footnotes list'!$D$9:$E$58,2,FALSE)=0,\"\",VLOOKUP(AX96,'Footnotes list'!$D$9:$E$58,2,FALSE) ) )","v":""},null,null,null,null,{"$f":"IF(TRIM(BC96)=\"\", \"\", IF(VLOOKUP(BC96,'Footnotes list'!$D$9:$E$58,2,FALSE)=0,\"\",VLOOKUP(BC96,'Footnotes list'!$D$9:$E$58,2,FALSE) ) )","v":""},null,null,null,null,{"$f":"IF(TRIM(BH96)=\"\", \"\", IF(VLOOKUP(BH96,'Footnotes list'!$D$9:$E$58,2,FALSE)=0,\"\",VLOOKUP(BH96,'Footnotes list'!$D$9:$E$58,2,FALSE) ) )","v":""},null,null,null,null,{"$f":"IF(TRIM(BM96)=\"\", \"\", IF(VLOOKUP(BM96,'Footnotes list'!$D$9:$E$58,2,FALSE)=0,\"\",VLOOKUP(BM96,'Footnotes list'!$D$9:$E$58,2,FALSE) ) )","v":""},null,null,null,null,{"$f":"IF(TRIM(BR96)=\"\", \"\", IF(VLOOKUP(BR96,'Footnotes list'!$D$9:$E$58,2,FALSE)=0,\"\",VLOOKUP(BR96,'Footnotes list'!$D$9:$E$58,2,FALSE) ) )","v":""},null,null,null,null,{"$f":"IF(TRIM(BW96)=\"\", \"\", IF(VLOOKUP(BW96,'Footnotes list'!$D$9:$E$58,2,FALSE)=0,\"\",VLOOKUP(BW96,'Footnotes list'!$D$9:$E$58,2,FALSE) ) )","v":""},null,null,null,null,{"$f":"IF(TRIM(CB96)=\"\", \"\", IF(VLOOKUP(CB96,'Footnotes list'!$D$9:$E$58,2,FALSE)=0,\"\",VLOOKUP(CB96,'Footnotes list'!$D$9:$E$58,2,FALSE) ) )","v":""},null,null,null,null,{"$f":"IF(TRIM(CG96)=\"\", \"\", IF(VLOOKUP(CG96,'Footnotes list'!$D$9:$E$58,2,FALSE)=0,\"\",VLOOKUP(CG96,'Footnotes list'!$D$9:$E$58,2,FALSE) ) )","v":""},null,null,null,null,{"$f":"IF(TRIM(CL96)=\"\", \"\", IF(VLOOKUP(CL96,'Footnotes list'!$D$9:$E$58,2,FALSE)=0,\"\",VLOOKUP(CL96,'Footnotes list'!$D$9:$E$58,2,FALSE) ) )","v":""},null,null,null,null,{"$f":"IF(TRIM(CQ96)=\"\", \"\", IF(VLOOKUP(CQ96,'Footnotes list'!$D$9:$E$58,2,FALSE)=0,\"\",VLOOKUP(CQ96,'Footnotes list'!$D$9:$E$58,2,FALSE) ) )","v":""},null,null,null,null,{"$f":"IF(TRIM(CV96)=\"\", \"\", IF(VLOOKUP(CV96,'Footnotes list'!$D$9:$E$58,2,FALSE)=0,\"\",VLOOKUP(CV96,'Footnotes list'!$D$9:$E$58,2,FALSE) ) )","v":""},null,null,null,null,{"$f":"IF(TRIM(DA96)=\"\", \"\", IF(VLOOKUP(DA96,'Footnotes list'!$D$9:$E$58,2,FALSE)=0,\"\",VLOOKUP(DA96,'Footnotes list'!$D$9:$E$58,2,FALSE) ) )","v":""},null,null,null,null,{"$f":"IF(TRIM(DF96)=\"\", \"\", IF(VLOOKUP(DF96,'Footnotes list'!$D$9:$E$58,2,FALSE)=0,\"\",VLOOKUP(DF96,'Footnotes list'!$D$9:$E$58,2,FALSE) ) )","v":""},null,null,null,null,{"$f":"IF(TRIM(DK96)=\"\", \"\", IF(VLOOKUP(DK96,'Footnotes list'!$D$9:$E$58,2,FALSE)=0,\"\",VLOOKUP(DK96,'Footnotes list'!$D$9:$E$58,2,FALSE) ) )","v":""},null,null,null,null,{"$f":"IF(TRIM(DP96)=\"\", \"\", IF(VLOOKUP(DP96,'Footnotes list'!$D$9:$E$58,2,FALSE)=0,\"\",VLOOKUP(DP96,'Footnotes list'!$D$9:$E$58,2,FALSE) ) )","v":""},null,null,null,null,{"$f":"IF(TRIM(DU96)=\"\", \"\", IF(VLOOKUP(DU96,'Footnotes list'!$D$9:$E$58,2,FALSE)=0,\"\",VLOOKUP(DU96,'Footnotes list'!$D$9:$E$58,2,FALSE) ) )","v":""},null,null,null,null,{"$f":"IF(TRIM(DZ96)=\"\", \"\", IF(VLOOKUP(DZ96,'Footnotes list'!$D$9:$E$58,2,FALSE)=0,\"\",VLOOKUP(DZ96,'Footnotes list'!$D$9:$E$58,2,FALSE) ) )","v":""},null,null,null,null,{"$f":"IF(TRIM(EE96)=\"\", \"\", IF(VLOOKUP(EE96,'Footnotes list'!$D$9:$E$58,2,FALSE)=0,\"\",VLOOKUP(EE96,'Footnotes list'!$D$9:$E$58,2,FALSE) ) )","v":""},null,null,null,null,{"$f":"IF(TRIM(EJ96)=\"\", \"\", IF(VLOOKUP(EJ96,'Footnotes list'!$D$9:$E$58,2,FALSE)=0,\"\",VLOOKUP(EJ96,'Footnotes list'!$D$9:$E$58,2,FALSE) ) )","v":""},null,null,null,null,{"$f":"IF(TRIM(EO96)=\"\", \"\", IF(VLOOKUP(EO96,'Footnotes list'!$D$9:$E$58,2,FALSE)=0,\"\",VLOOKUP(EO96,'Footnotes list'!$D$9:$E$58,2,FALSE) ) )","v":""},null,null,null,null,{"$f":"IF(TRIM(ET96)=\"\", \"\", IF(VLOOKUP(ET96,'Footnotes list'!$D$9:$E$58,2,FALSE)=0,\"\",VLOOKUP(ET96,'Footnotes list'!$D$9:$E$58,2,FALSE) ) )","v":""},null,null,null,null,{"$f":"IF(TRIM(EY96)=\"\", \"\", IF(VLOOKUP(EY96,'Footnotes list'!$D$9:$E$58,2,FALSE)=0,\"\",VLOOKUP(EY96,'Footnotes list'!$D$9:$E$58,2,FALSE) ) )","v":""}]
[null,null,"L","C_REP","cleaner and resource efficient products",null,null,null,null,null,{"$f":"IF(TRIM(J97)=\"\", \"\", IF(VLOOKUP(J97,'Footnotes list'!$D$9:$E$58,2,FALSE)=0,\"\",VLOOKUP(J97,'Footnotes list'!$D$9:$E$58,2,FALSE) ) )","v":""},null,null,null,null,{"$f":"IF(TRIM(O97)=\"\", \"\", IF(VLOOKUP(O97,'Footnotes list'!$D$9:$E$58,2,FALSE)=0,\"\",VLOOKUP(O97,'Footnotes list'!$D$9:$E$58,2,FALSE) ) )","v":""},null,null,null,null,{"$f":"IF(TRIM(T97)=\"\", \"\", IF(VLOOKUP(T97,'Footnotes list'!$D$9:$E$58,2,FALSE)=0,\"\",VLOOKUP(T97,'Footnotes list'!$D$9:$E$58,2,FALSE) ) )","v":""},null,null,null,null,{"$f":"IF(TRIM(Y97)=\"\", \"\", IF(VLOOKUP(Y97,'Footnotes list'!$D$9:$E$58,2,FALSE)=0,\"\",VLOOKUP(Y97,'Footnotes list'!$D$9:$E$58,2,FALSE) ) )","v":""},null,null,null,null,{"$f":"IF(TRIM(AD97)=\"\", \"\", IF(VLOOKUP(AD97,'Footnotes list'!$D$9:$E$58,2,FALSE)=0,\"\",VLOOKUP(AD97,'Footnotes list'!$D$9:$E$58,2,FALSE) ) )","v":""},null,null,null,null,{"$f":"IF(TRIM(AI97)=\"\", \"\", IF(VLOOKUP(AI97,'Footnotes list'!$D$9:$E$58,2,FALSE)=0,\"\",VLOOKUP(AI97,'Footnotes list'!$D$9:$E$58,2,FALSE) ) )","v":""},null,null,null,null,{"$f":"IF(TRIM(AN97)=\"\", \"\", IF(VLOOKUP(AN97,'Footnotes list'!$D$9:$E$58,2,FALSE)=0,\"\",VLOOKUP(AN97,'Footnotes list'!$D$9:$E$58,2,FALSE) ) )","v":""},null,null,null,null,{"$f":"IF(TRIM(AS97)=\"\", \"\", IF(VLOOKUP(AS97,'Footnotes list'!$D$9:$E$58,2,FALSE)=0,\"\",VLOOKUP(AS97,'Footnotes list'!$D$9:$E$58,2,FALSE) ) )","v":""},null,null,null,null,{"$f":"IF(TRIM(AX97)=\"\", \"\", IF(VLOOKUP(AX97,'Footnotes list'!$D$9:$E$58,2,FALSE)=0,\"\",VLOOKUP(AX97,'Footnotes list'!$D$9:$E$58,2,FALSE) ) )","v":""},null,null,null,null,{"$f":"IF(TRIM(BC97)=\"\", \"\", IF(VLOOKUP(BC97,'Footnotes list'!$D$9:$E$58,2,FALSE)=0,\"\",VLOOKUP(BC97,'Footnotes list'!$D$9:$E$58,2,FALSE) ) )","v":""},null,null,null,null,{"$f":"IF(TRIM(BH97)=\"\", \"\", IF(VLOOKUP(BH97,'Footnotes list'!$D$9:$E$58,2,FALSE)=0,\"\",VLOOKUP(BH97,'Footnotes list'!$D$9:$E$58,2,FALSE) ) )","v":""},null,null,null,null,{"$f":"IF(TRIM(BM97)=\"\", \"\", IF(VLOOKUP(BM97,'Footnotes list'!$D$9:$E$58,2,FALSE)=0,\"\",VLOOKUP(BM97,'Footnotes list'!$D$9:$E$58,2,FALSE) ) )","v":""},null,null,null,null,{"$f":"IF(TRIM(BR97)=\"\", \"\", IF(VLOOKUP(BR97,'Footnotes list'!$D$9:$E$58,2,FALSE)=0,\"\",VLOOKUP(BR97,'Footnotes list'!$D$9:$E$58,2,FALSE) ) )","v":""},null,null,null,null,{"$f":"IF(TRIM(BW97)=\"\", \"\", IF(VLOOKUP(BW97,'Footnotes list'!$D$9:$E$58,2,FALSE)=0,\"\",VLOOKUP(BW97,'Footnotes list'!$D$9:$E$58,2,FALSE) ) )","v":""},null,null,null,null,{"$f":"IF(TRIM(CB97)=\"\", \"\", IF(VLOOKUP(CB97,'Footnotes list'!$D$9:$E$58,2,FALSE)=0,\"\",VLOOKUP(CB97,'Footnotes list'!$D$9:$E$58,2,FALSE) ) )","v":""},null,null,null,null,{"$f":"IF(TRIM(CG97)=\"\", \"\", IF(VLOOKUP(CG97,'Footnotes list'!$D$9:$E$58,2,FALSE)=0,\"\",VLOOKUP(CG97,'Footnotes list'!$D$9:$E$58,2,FALSE) ) )","v":""},null,null,null,null,{"$f":"IF(TRIM(CL97)=\"\", \"\", IF(VLOOKUP(CL97,'Footnotes list'!$D$9:$E$58,2,FALSE)=0,\"\",VLOOKUP(CL97,'Footnotes list'!$D$9:$E$58,2,FALSE) ) )","v":""},null,null,null,null,{"$f":"IF(TRIM(CQ97)=\"\", \"\", IF(VLOOKUP(CQ97,'Footnotes list'!$D$9:$E$58,2,FALSE)=0,\"\",VLOOKUP(CQ97,'Footnotes list'!$D$9:$E$58,2,FALSE) ) )","v":""},null,null,null,null,{"$f":"IF(TRIM(CV97)=\"\", \"\", IF(VLOOKUP(CV97,'Footnotes list'!$D$9:$E$58,2,FALSE)=0,\"\",VLOOKUP(CV97,'Footnotes list'!$D$9:$E$58,2,FALSE) ) )","v":""},null,null,null,null,{"$f":"IF(TRIM(DA97)=\"\", \"\", IF(VLOOKUP(DA97,'Footnotes list'!$D$9:$E$58,2,FALSE)=0,\"\",VLOOKUP(DA97,'Footnotes list'!$D$9:$E$58,2,FALSE) ) )","v":""},null,null,null,null,{"$f":"IF(TRIM(DF97)=\"\", \"\", IF(VLOOKUP(DF97,'Footnotes list'!$D$9:$E$58,2,FALSE)=0,\"\",VLOOKUP(DF97,'Footnotes list'!$D$9:$E$58,2,FALSE) ) )","v":""},null,null,null,null,{"$f":"IF(TRIM(DK97)=\"\", \"\", IF(VLOOKUP(DK97,'Footnotes list'!$D$9:$E$58,2,FALSE)=0,\"\",VLOOKUP(DK97,'Footnotes list'!$D$9:$E$58,2,FALSE) ) )","v":""},null,null,null,null,{"$f":"IF(TRIM(DP97)=\"\", \"\", IF(VLOOKUP(DP97,'Footnotes list'!$D$9:$E$58,2,FALSE)=0,\"\",VLOOKUP(DP97,'Footnotes list'!$D$9:$E$58,2,FALSE) ) )","v":""},null,null,null,null,{"$f":"IF(TRIM(DU97)=\"\", \"\", IF(VLOOKUP(DU97,'Footnotes list'!$D$9:$E$58,2,FALSE)=0,\"\",VLOOKUP(DU97,'Footnotes list'!$D$9:$E$58,2,FALSE) ) )","v":""},null,null,null,null,{"$f":"IF(TRIM(DZ97)=\"\", \"\", IF(VLOOKUP(DZ97,'Footnotes list'!$D$9:$E$58,2,FALSE)=0,\"\",VLOOKUP(DZ97,'Footnotes list'!$D$9:$E$58,2,FALSE) ) )","v":""},null,null,null,null,{"$f":"IF(TRIM(EE97)=\"\", \"\", IF(VLOOKUP(EE97,'Footnotes list'!$D$9:$E$58,2,FALSE)=0,\"\",VLOOKUP(EE97,'Footnotes list'!$D$9:$E$58,2,FALSE) ) )","v":""},null,null,null,null,{"$f":"IF(TRIM(EJ97)=\"\", \"\", IF(VLOOKUP(EJ97,'Footnotes list'!$D$9:$E$58,2,FALSE)=0,\"\",VLOOKUP(EJ97,'Footnotes list'!$D$9:$E$58,2,FALSE) ) )","v":""},null,null,null,null,{"$f":"IF(TRIM(EO97)=\"\", \"\", IF(VLOOKUP(EO97,'Footnotes list'!$D$9:$E$58,2,FALSE)=0,\"\",VLOOKUP(EO97,'Footnotes list'!$D$9:$E$58,2,FALSE) ) )","v":""},null,null,null,null,{"$f":"IF(TRIM(ET97)=\"\", \"\", IF(VLOOKUP(ET97,'Footnotes list'!$D$9:$E$58,2,FALSE)=0,\"\",VLOOKUP(ET97,'Footnotes list'!$D$9:$E$58,2,FALSE) ) )","v":""},null,null,null,null,{"$f":"IF(TRIM(EY97)=\"\", \"\", IF(VLOOKUP(EY97,'Footnotes list'!$D$9:$E$58,2,FALSE)=0,\"\",VLOOKUP(EY97,'Footnotes list'!$D$9:$E$58,2,FALSE) ) )","v":""}]
[null,null,"M","TOT_EGSS","Total M - Professional, scientific and technical activities, including:",null,null,null,null,null,{"$f":"IF(TRIM(J98)=\"\", \"\", IF(VLOOKUP(J98,'Footnotes list'!$D$9:$E$58,2,FALSE)=0,\"\",VLOOKUP(J98,'Footnotes list'!$D$9:$E$58,2,FALSE) ) )","v":""},null,null,null,null,{"$f":"IF(TRIM(O98)=\"\", \"\", IF(VLOOKUP(O98,'Footnotes list'!$D$9:$E$58,2,FALSE)=0,\"\",VLOOKUP(O98,'Footnotes list'!$D$9:$E$58,2,FALSE) ) )","v":""},null,null,null,null,{"$f":"IF(TRIM(T98)=\"\", \"\", IF(VLOOKUP(T98,'Footnotes list'!$D$9:$E$58,2,FALSE)=0,\"\",VLOOKUP(T98,'Footnotes list'!$D$9:$E$58,2,FALSE) ) )","v":""},null,null,null,null,{"$f":"IF(TRIM(Y98)=\"\", \"\", IF(VLOOKUP(Y98,'Footnotes list'!$D$9:$E$58,2,FALSE)=0,\"\",VLOOKUP(Y98,'Footnotes list'!$D$9:$E$58,2,FALSE) ) )","v":""},null,null,null,null,{"$f":"IF(TRIM(AD98)=\"\", \"\", IF(VLOOKUP(AD98,'Footnotes list'!$D$9:$E$58,2,FALSE)=0,\"\",VLOOKUP(AD98,'Footnotes list'!$D$9:$E$58,2,FALSE) ) )","v":""},null,null,null,null,{"$f":"IF(TRIM(AI98)=\"\", \"\", IF(VLOOKUP(AI98,'Footnotes list'!$D$9:$E$58,2,FALSE)=0,\"\",VLOOKUP(AI98,'Footnotes list'!$D$9:$E$58,2,FALSE) ) )","v":""},null,null,null,null,{"$f":"IF(TRIM(AN98)=\"\", \"\", IF(VLOOKUP(AN98,'Footnotes list'!$D$9:$E$58,2,FALSE)=0,\"\",VLOOKUP(AN98,'Footnotes list'!$D$9:$E$58,2,FALSE) ) )","v":""},null,null,null,null,{"$f":"IF(TRIM(AS98)=\"\", \"\", IF(VLOOKUP(AS98,'Footnotes list'!$D$9:$E$58,2,FALSE)=0,\"\",VLOOKUP(AS98,'Footnotes list'!$D$9:$E$58,2,FALSE) ) )","v":""},null,null,null,null,{"$f":"IF(TRIM(AX98)=\"\", \"\", IF(VLOOKUP(AX98,'Footnotes list'!$D$9:$E$58,2,FALSE)=0,\"\",VLOOKUP(AX98,'Footnotes list'!$D$9:$E$58,2,FALSE) ) )","v":""},null,null,null,null,{"$f":"IF(TRIM(BC98)=\"\", \"\", IF(VLOOKUP(BC98,'Footnotes list'!$D$9:$E$58,2,FALSE)=0,\"\",VLOOKUP(BC98,'Footnotes list'!$D$9:$E$58,2,FALSE) ) )","v":""},null,null,null,null,{"$f":"IF(TRIM(BH98)=\"\", \"\", IF(VLOOKUP(BH98,'Footnotes list'!$D$9:$E$58,2,FALSE)=0,\"\",VLOOKUP(BH98,'Footnotes list'!$D$9:$E$58,2,FALSE) ) )","v":""},null,null,null,null,{"$f":"IF(TRIM(BM98)=\"\", \"\", IF(VLOOKUP(BM98,'Footnotes list'!$D$9:$E$58,2,FALSE)=0,\"\",VLOOKUP(BM98,'Footnotes list'!$D$9:$E$58,2,FALSE) ) )","v":""},null,null,null,null,{"$f":"IF(TRIM(BR98)=\"\", \"\", IF(VLOOKUP(BR98,'Footnotes list'!$D$9:$E$58,2,FALSE)=0,\"\",VLOOKUP(BR98,'Footnotes list'!$D$9:$E$58,2,FALSE) ) )","v":""},null,null,null,null,{"$f":"IF(TRIM(BW98)=\"\", \"\", IF(VLOOKUP(BW98,'Footnotes list'!$D$9:$E$58,2,FALSE)=0,\"\",VLOOKUP(BW98,'Footnotes list'!$D$9:$E$58,2,FALSE) ) )","v":""},null,null,null,null,{"$f":"IF(TRIM(CB98)=\"\", \"\", IF(VLOOKUP(CB98,'Footnotes list'!$D$9:$E$58,2,FALSE)=0,\"\",VLOOKUP(CB98,'Footnotes list'!$D$9:$E$58,2,FALSE) ) )","v":""},null,null,null,null,{"$f":"IF(TRIM(CG98)=\"\", \"\", IF(VLOOKUP(CG98,'Footnotes list'!$D$9:$E$58,2,FALSE)=0,\"\",VLOOKUP(CG98,'Footnotes list'!$D$9:$E$58,2,FALSE) ) )","v":""},null,null,null,null,{"$f":"IF(TRIM(CL98)=\"\", \"\", IF(VLOOKUP(CL98,'Footnotes list'!$D$9:$E$58,2,FALSE)=0,\"\",VLOOKUP(CL98,'Footnotes list'!$D$9:$E$58,2,FALSE) ) )","v":""},null,null,null,null,{"$f":"IF(TRIM(CQ98)=\"\", \"\", IF(VLOOKUP(CQ98,'Footnotes list'!$D$9:$E$58,2,FALSE)=0,\"\",VLOOKUP(CQ98,'Footnotes list'!$D$9:$E$58,2,FALSE) ) )","v":""},null,null,null,null,{"$f":"IF(TRIM(CV98)=\"\", \"\", IF(VLOOKUP(CV98,'Footnotes list'!$D$9:$E$58,2,FALSE)=0,\"\",VLOOKUP(CV98,'Footnotes list'!$D$9:$E$58,2,FALSE) ) )","v":""},null,null,null,null,{"$f":"IF(TRIM(DA98)=\"\", \"\", IF(VLOOKUP(DA98,'Footnotes list'!$D$9:$E$58,2,FALSE)=0,\"\",VLOOKUP(DA98,'Footnotes list'!$D$9:$E$58,2,FALSE) ) )","v":""},null,null,null,null,{"$f":"IF(TRIM(DF98)=\"\", \"\", IF(VLOOKUP(DF98,'Footnotes list'!$D$9:$E$58,2,FALSE)=0,\"\",VLOOKUP(DF98,'Footnotes list'!$D$9:$E$58,2,FALSE) ) )","v":""},null,null,null,null,{"$f":"IF(TRIM(DK98)=\"\", \"\", IF(VLOOKUP(DK98,'Footnotes list'!$D$9:$E$58,2,FALSE)=0,\"\",VLOOKUP(DK98,'Footnotes list'!$D$9:$E$58,2,FALSE) ) )","v":""},null,null,null,null,{"$f":"IF(TRIM(DP98)=\"\", \"\", IF(VLOOKUP(DP98,'Footnotes list'!$D$9:$E$58,2,FALSE)=0,\"\",VLOOKUP(DP98,'Footnotes list'!$D$9:$E$58,2,FALSE) ) )","v":""},null,null,null,null,{"$f":"IF(TRIM(DU98)=\"\", \"\", IF(VLOOKUP(DU98,'Footnotes list'!$D$9:$E$58,2,FALSE)=0,\"\",VLOOKUP(DU98,'Footnotes list'!$D$9:$E$58,2,FALSE) ) )","v":""},null,null,null,null,{"$f":"IF(TRIM(DZ98)=\"\", \"\", IF(VLOOKUP(DZ98,'Footnotes list'!$D$9:$E$58,2,FALSE)=0,\"\",VLOOKUP(DZ98,'Footnotes list'!$D$9:$E$58,2,FALSE) ) )","v":""},null,null,null,null,{"$f":"IF(TRIM(EE98)=\"\", \"\", IF(VLOOKUP(EE98,'Footnotes list'!$D$9:$E$58,2,FALSE)=0,\"\",VLOOKUP(EE98,'Footnotes list'!$D$9:$E$58,2,FALSE) ) )","v":""},null,null,null,null,{"$f":"IF(TRIM(EJ98)=\"\", \"\", IF(VLOOKUP(EJ98,'Footnotes list'!$D$9:$E$58,2,FALSE)=0,\"\",VLOOKUP(EJ98,'Footnotes list'!$D$9:$E$58,2,FALSE) ) )","v":""},null,null,null,null,{"$f":"IF(TRIM(EO98)=\"\", \"\", IF(VLOOKUP(EO98,'Footnotes list'!$D$9:$E$58,2,FALSE)=0,\"\",VLOOKUP(EO98,'Footnotes list'!$D$9:$E$58,2,FALSE) ) )","v":""},null,null,null,null,{"$f":"IF(TRIM(ET98)=\"\", \"\", IF(VLOOKUP(ET98,'Footnotes list'!$D$9:$E$58,2,FALSE)=0,\"\",VLOOKUP(ET98,'Footnotes list'!$D$9:$E$58,2,FALSE) ) )","v":""},null,null,null,null,{"$f":"IF(TRIM(EY98)=\"\", \"\", IF(VLOOKUP(EY98,'Footnotes list'!$D$9:$E$58,2,FALSE)=0,\"\",VLOOKUP(EY98,'Footnotes list'!$D$9:$E$58,2,FALSE) ) )","v":""}]
[null,null,"M","ES_CS","environmental specific services",null,null,null,null,null,{"$f":"IF(TRIM(J99)=\"\", \"\", IF(VLOOKUP(J99,'Footnotes list'!$D$9:$E$58,2,FALSE)=0,\"\",VLOOKUP(J99,'Footnotes list'!$D$9:$E$58,2,FALSE) ) )","v":""},null,null,null,null,{"$f":"IF(TRIM(O99)=\"\", \"\", IF(VLOOKUP(O99,'Footnotes list'!$D$9:$E$58,2,FALSE)=0,\"\",VLOOKUP(O99,'Footnotes list'!$D$9:$E$58,2,FALSE) ) )","v":""},null,null,null,null,{"$f":"IF(TRIM(T99)=\"\", \"\", IF(VLOOKUP(T99,'Footnotes list'!$D$9:$E$58,2,FALSE)=0,\"\",VLOOKUP(T99,'Footnotes list'!$D$9:$E$58,2,FALSE) ) )","v":""},null,null,null,null,{"$f":"IF(TRIM(Y99)=\"\", \"\", IF(VLOOKUP(Y99,'Footnotes list'!$D$9:$E$58,2,FALSE)=0,\"\",VLOOKUP(Y99,'Footnotes list'!$D$9:$E$58,2,FALSE) ) )","v":""},null,null,null,null,{"$f":"IF(TRIM(AD99)=\"\", \"\", IF(VLOOKUP(AD99,'Footnotes list'!$D$9:$E$58,2,FALSE)=0,\"\",VLOOKUP(AD99,'Footnotes list'!$D$9:$E$58,2,FALSE) ) )","v":""},null,null,null,null,{"$f":"IF(TRIM(AI99)=\"\", \"\", IF(VLOOKUP(AI99,'Footnotes list'!$D$9:$E$58,2,FALSE)=0,\"\",VLOOKUP(AI99,'Footnotes list'!$D$9:$E$58,2,FALSE) ) )","v":""},null,null,null,null,{"$f":"IF(TRIM(AN99)=\"\", \"\", IF(VLOOKUP(AN99,'Footnotes list'!$D$9:$E$58,2,FALSE)=0,\"\",VLOOKUP(AN99,'Footnotes list'!$D$9:$E$58,2,FALSE) ) )","v":""},null,null,null,null,{"$f":"IF(TRIM(AS99)=\"\", \"\", IF(VLOOKUP(AS99,'Footnotes list'!$D$9:$E$58,2,FALSE)=0,\"\",VLOOKUP(AS99,'Footnotes list'!$D$9:$E$58,2,FALSE) ) )","v":""},null,null,null,null,{"$f":"IF(TRIM(AX99)=\"\", \"\", IF(VLOOKUP(AX99,'Footnotes list'!$D$9:$E$58,2,FALSE)=0,\"\",VLOOKUP(AX99,'Footnotes list'!$D$9:$E$58,2,FALSE) ) )","v":""},null,null,null,null,{"$f":"IF(TRIM(BC99)=\"\", \"\", IF(VLOOKUP(BC99,'Footnotes list'!$D$9:$E$58,2,FALSE)=0,\"\",VLOOKUP(BC99,'Footnotes list'!$D$9:$E$58,2,FALSE) ) )","v":""},null,null,null,null,{"$f":"IF(TRIM(BH99)=\"\", \"\", IF(VLOOKUP(BH99,'Footnotes list'!$D$9:$E$58,2,FALSE)=0,\"\",VLOOKUP(BH99,'Footnotes list'!$D$9:$E$58,2,FALSE) ) )","v":""},null,null,null,null,{"$f":"IF(TRIM(BM99)=\"\", \"\", IF(VLOOKUP(BM99,'Footnotes list'!$D$9:$E$58,2,FALSE)=0,\"\",VLOOKUP(BM99,'Footnotes list'!$D$9:$E$58,2,FALSE) ) )","v":""},null,null,null,null,{"$f":"IF(TRIM(BR99)=\"\", \"\", IF(VLOOKUP(BR99,'Footnotes list'!$D$9:$E$58,2,FALSE)=0,\"\",VLOOKUP(BR99,'Footnotes list'!$D$9:$E$58,2,FALSE) ) )","v":""},null,null,null,null,{"$f":"IF(TRIM(BW99)=\"\", \"\", IF(VLOOKUP(BW99,'Footnotes list'!$D$9:$E$58,2,FALSE)=0,\"\",VLOOKUP(BW99,'Footnotes list'!$D$9:$E$58,2,FALSE) ) )","v":""},null,null,null,null,{"$f":"IF(TRIM(CB99)=\"\", \"\", IF(VLOOKUP(CB99,'Footnotes list'!$D$9:$E$58,2,FALSE)=0,\"\",VLOOKUP(CB99,'Footnotes list'!$D$9:$E$58,2,FALSE) ) )","v":""},null,null,null,null,{"$f":"IF(TRIM(CG99)=\"\", \"\", IF(VLOOKUP(CG99,'Footnotes list'!$D$9:$E$58,2,FALSE)=0,\"\",VLOOKUP(CG99,'Footnotes list'!$D$9:$E$58,2,FALSE) ) )","v":""},null,null,null,null,{"$f":"IF(TRIM(CL99)=\"\", \"\", IF(VLOOKUP(CL99,'Footnotes list'!$D$9:$E$58,2,FALSE)=0,\"\",VLOOKUP(CL99,'Footnotes list'!$D$9:$E$58,2,FALSE) ) )","v":""},null,null,null,null,{"$f":"IF(TRIM(CQ99)=\"\", \"\", IF(VLOOKUP(CQ99,'Footnotes list'!$D$9:$E$58,2,FALSE)=0,\"\",VLOOKUP(CQ99,'Footnotes list'!$D$9:$E$58,2,FALSE) ) )","v":""},null,null,null,null,{"$f":"IF(TRIM(CV99)=\"\", \"\", IF(VLOOKUP(CV99,'Footnotes list'!$D$9:$E$58,2,FALSE)=0,\"\",VLOOKUP(CV99,'Footnotes list'!$D$9:$E$58,2,FALSE) ) )","v":""},null,null,null,null,{"$f":"IF(TRIM(DA99)=\"\", \"\", IF(VLOOKUP(DA99,'Footnotes list'!$D$9:$E$58,2,FALSE)=0,\"\",VLOOKUP(DA99,'Footnotes list'!$D$9:$E$58,2,FALSE) ) )","v":""},null,null,null,null,{"$f":"IF(TRIM(DF99)=\"\", \"\", IF(VLOOKUP(DF99,'Footnotes list'!$D$9:$E$58,2,FALSE)=0,\"\",VLOOKUP(DF99,'Footnotes list'!$D$9:$E$58,2,FALSE) ) )","v":""},null,null,null,null,{"$f":"IF(TRIM(DK99)=\"\", \"\", IF(VLOOKUP(DK99,'Footnotes list'!$D$9:$E$58,2,FALSE)=0,\"\",VLOOKUP(DK99,'Footnotes list'!$D$9:$E$58,2,FALSE) ) )","v":""},null,null,null,null,{"$f":"IF(TRIM(DP99)=\"\", \"\", IF(VLOOKUP(DP99,'Footnotes list'!$D$9:$E$58,2,FALSE)=0,\"\",VLOOKUP(DP99,'Footnotes list'!$D$9:$E$58,2,FALSE) ) )","v":""},null,null,null,null,{"$f":"IF(TRIM(DU99)=\"\", \"\", IF(VLOOKUP(DU99,'Footnotes list'!$D$9:$E$58,2,FALSE)=0,\"\",VLOOKUP(DU99,'Footnotes list'!$D$9:$E$58,2,FALSE) ) )","v":""},null,null,null,null,{"$f":"IF(TRIM(DZ99)=\"\", \"\", IF(VLOOKUP(DZ99,'Footnotes list'!$D$9:$E$58,2,FALSE)=0,\"\",VLOOKUP(DZ99,'Footnotes list'!$D$9:$E$58,2,FALSE) ) )","v":""},null,null,null,null,{"$f":"IF(TRIM(EE99)=\"\", \"\", IF(VLOOKUP(EE99,'Footnotes list'!$D$9:$E$58,2,FALSE)=0,\"\",VLOOKUP(EE99,'Footnotes list'!$D$9:$E$58,2,FALSE) ) )","v":""},null,null,null,null,{"$f":"IF(TRIM(EJ99)=\"\", \"\", IF(VLOOKUP(EJ99,'Footnotes list'!$D$9:$E$58,2,FALSE)=0,\"\",VLOOKUP(EJ99,'Footnotes list'!$D$9:$E$58,2,FALSE) ) )","v":""},null,null,null,null,{"$f":"IF(TRIM(EO99)=\"\", \"\", IF(VLOOKUP(EO99,'Footnotes list'!$D$9:$E$58,2,FALSE)=0,\"\",VLOOKUP(EO99,'Footnotes list'!$D$9:$E$58,2,FALSE) ) )","v":""},null,null,null,null,{"$f":"IF(TRIM(ET99)=\"\", \"\", IF(VLOOKUP(ET99,'Footnotes list'!$D$9:$E$58,2,FALSE)=0,\"\",VLOOKUP(ET99,'Footnotes list'!$D$9:$E$58,2,FALSE) ) )","v":""},null,null,null,null,{"$f":"IF(TRIM(EY99)=\"\", \"\", IF(VLOOKUP(EY99,'Footnotes list'!$D$9:$E$58,2,FALSE)=0,\"\",VLOOKUP(EY99,'Footnotes list'!$D$9:$E$58,2,FALSE) ) )","v":""}]
[null,null,"M","C_REP","cleaner and resource efficient products",null,null,null,null,null,{"$f":"IF(TRIM(J100)=\"\", \"\", IF(VLOOKUP(J100,'Footnotes list'!$D$9:$E$58,2,FALSE)=0,\"\",VLOOKUP(J100,'Footnotes list'!$D$9:$E$58,2,FALSE) ) )","v":""},null,null,null,null,{"$f":"IF(TRIM(O100)=\"\", \"\", IF(VLOOKUP(O100,'Footnotes list'!$D$9:$E$58,2,FALSE)=0,\"\",VLOOKUP(O100,'Footnotes list'!$D$9:$E$58,2,FALSE) ) )","v":""},null,null,null,null,{"$f":"IF(TRIM(T100)=\"\", \"\", IF(VLOOKUP(T100,'Footnotes list'!$D$9:$E$58,2,FALSE)=0,\"\",VLOOKUP(T100,'Footnotes list'!$D$9:$E$58,2,FALSE) ) )","v":""},null,null,null,null,{"$f":"IF(TRIM(Y100)=\"\", \"\", IF(VLOOKUP(Y100,'Footnotes list'!$D$9:$E$58,2,FALSE)=0,\"\",VLOOKUP(Y100,'Footnotes list'!$D$9:$E$58,2,FALSE) ) )","v":""},null,null,null,null,{"$f":"IF(TRIM(AD100)=\"\", \"\", IF(VLOOKUP(AD100,'Footnotes list'!$D$9:$E$58,2,FALSE)=0,\"\",VLOOKUP(AD100,'Footnotes list'!$D$9:$E$58,2,FALSE) ) )","v":""},null,null,null,null,{"$f":"IF(TRIM(AI100)=\"\", \"\", IF(VLOOKUP(AI100,'Footnotes list'!$D$9:$E$58,2,FALSE)=0,\"\",VLOOKUP(AI100,'Footnotes list'!$D$9:$E$58,2,FALSE) ) )","v":""},null,null,null,null,{"$f":"IF(TRIM(AN100)=\"\", \"\", IF(VLOOKUP(AN100,'Footnotes list'!$D$9:$E$58,2,FALSE)=0,\"\",VLOOKUP(AN100,'Footnotes list'!$D$9:$E$58,2,FALSE) ) )","v":""},null,null,null,null,{"$f":"IF(TRIM(AS100)=\"\", \"\", IF(VLOOKUP(AS100,'Footnotes list'!$D$9:$E$58,2,FALSE)=0,\"\",VLOOKUP(AS100,'Footnotes list'!$D$9:$E$58,2,FALSE) ) )","v":""},null,null,null,null,{"$f":"IF(TRIM(AX100)=\"\", \"\", IF(VLOOKUP(AX100,'Footnotes list'!$D$9:$E$58,2,FALSE)=0,\"\",VLOOKUP(AX100,'Footnotes list'!$D$9:$E$58,2,FALSE) ) )","v":""},null,null,null,null,{"$f":"IF(TRIM(BC100)=\"\", \"\", IF(VLOOKUP(BC100,'Footnotes list'!$D$9:$E$58,2,FALSE)=0,\"\",VLOOKUP(BC100,'Footnotes list'!$D$9:$E$58,2,FALSE) ) )","v":""},null,null,null,null,{"$f":"IF(TRIM(BH100)=\"\", \"\", IF(VLOOKUP(BH100,'Footnotes list'!$D$9:$E$58,2,FALSE)=0,\"\",VLOOKUP(BH100,'Footnotes list'!$D$9:$E$58,2,FALSE) ) )","v":""},null,null,null,null,{"$f":"IF(TRIM(BM100)=\"\", \"\", IF(VLOOKUP(BM100,'Footnotes list'!$D$9:$E$58,2,FALSE)=0,\"\",VLOOKUP(BM100,'Footnotes list'!$D$9:$E$58,2,FALSE) ) )","v":""},null,null,null,null,{"$f":"IF(TRIM(BR100)=\"\", \"\", IF(VLOOKUP(BR100,'Footnotes list'!$D$9:$E$58,2,FALSE)=0,\"\",VLOOKUP(BR100,'Footnotes list'!$D$9:$E$58,2,FALSE) ) )","v":""},null,null,null,null,{"$f":"IF(TRIM(BW100)=\"\", \"\", IF(VLOOKUP(BW100,'Footnotes list'!$D$9:$E$58,2,FALSE)=0,\"\",VLOOKUP(BW100,'Footnotes list'!$D$9:$E$58,2,FALSE) ) )","v":""},null,null,null,null,{"$f":"IF(TRIM(CB100)=\"\", \"\", IF(VLOOKUP(CB100,'Footnotes list'!$D$9:$E$58,2,FALSE)=0,\"\",VLOOKUP(CB100,'Footnotes list'!$D$9:$E$58,2,FALSE) ) )","v":""},null,null,null,null,{"$f":"IF(TRIM(CG100)=\"\", \"\", IF(VLOOKUP(CG100,'Footnotes list'!$D$9:$E$58,2,FALSE)=0,\"\",VLOOKUP(CG100,'Footnotes list'!$D$9:$E$58,2,FALSE) ) )","v":""},null,null,null,null,{"$f":"IF(TRIM(CL100)=\"\", \"\", IF(VLOOKUP(CL100,'Footnotes list'!$D$9:$E$58,2,FALSE)=0,\"\",VLOOKUP(CL100,'Footnotes list'!$D$9:$E$58,2,FALSE) ) )","v":""},null,null,null,null,{"$f":"IF(TRIM(CQ100)=\"\", \"\", IF(VLOOKUP(CQ100,'Footnotes list'!$D$9:$E$58,2,FALSE)=0,\"\",VLOOKUP(CQ100,'Footnotes list'!$D$9:$E$58,2,FALSE) ) )","v":""},null,null,null,null,{"$f":"IF(TRIM(CV100)=\"\", \"\", IF(VLOOKUP(CV100,'Footnotes list'!$D$9:$E$58,2,FALSE)=0,\"\",VLOOKUP(CV100,'Footnotes list'!$D$9:$E$58,2,FALSE) ) )","v":""},null,null,null,null,{"$f":"IF(TRIM(DA100)=\"\", \"\", IF(VLOOKUP(DA100,'Footnotes list'!$D$9:$E$58,2,FALSE)=0,\"\",VLOOKUP(DA100,'Footnotes list'!$D$9:$E$58,2,FALSE) ) )","v":""},null,null,null,null,{"$f":"IF(TRIM(DF100)=\"\", \"\", IF(VLOOKUP(DF100,'Footnotes list'!$D$9:$E$58,2,FALSE)=0,\"\",VLOOKUP(DF100,'Footnotes list'!$D$9:$E$58,2,FALSE) ) )","v":""},null,null,null,null,{"$f":"IF(TRIM(DK100)=\"\", \"\", IF(VLOOKUP(DK100,'Footnotes list'!$D$9:$E$58,2,FALSE)=0,\"\",VLOOKUP(DK100,'Footnotes list'!$D$9:$E$58,2,FALSE) ) )","v":""},null,null,null,null,{"$f":"IF(TRIM(DP100)=\"\", \"\", IF(VLOOKUP(DP100,'Footnotes list'!$D$9:$E$58,2,FALSE)=0,\"\",VLOOKUP(DP100,'Footnotes list'!$D$9:$E$58,2,FALSE) ) )","v":""},null,null,null,null,{"$f":"IF(TRIM(DU100)=\"\", \"\", IF(VLOOKUP(DU100,'Footnotes list'!$D$9:$E$58,2,FALSE)=0,\"\",VLOOKUP(DU100,'Footnotes list'!$D$9:$E$58,2,FALSE) ) )","v":""},null,null,null,null,{"$f":"IF(TRIM(DZ100)=\"\", \"\", IF(VLOOKUP(DZ100,'Footnotes list'!$D$9:$E$58,2,FALSE)=0,\"\",VLOOKUP(DZ100,'Footnotes list'!$D$9:$E$58,2,FALSE) ) )","v":""},null,null,null,null,{"$f":"IF(TRIM(EE100)=\"\", \"\", IF(VLOOKUP(EE100,'Footnotes list'!$D$9:$E$58,2,FALSE)=0,\"\",VLOOKUP(EE100,'Footnotes list'!$D$9:$E$58,2,FALSE) ) )","v":""},null,null,null,null,{"$f":"IF(TRIM(EJ100)=\"\", \"\", IF(VLOOKUP(EJ100,'Footnotes list'!$D$9:$E$58,2,FALSE)=0,\"\",VLOOKUP(EJ100,'Footnotes list'!$D$9:$E$58,2,FALSE) ) )","v":""},null,null,null,null,{"$f":"IF(TRIM(EO100)=\"\", \"\", IF(VLOOKUP(EO100,'Footnotes list'!$D$9:$E$58,2,FALSE)=0,\"\",VLOOKUP(EO100,'Footnotes list'!$D$9:$E$58,2,FALSE) ) )","v":""},null,null,null,null,{"$f":"IF(TRIM(ET100)=\"\", \"\", IF(VLOOKUP(ET100,'Footnotes list'!$D$9:$E$58,2,FALSE)=0,\"\",VLOOKUP(ET100,'Footnotes list'!$D$9:$E$58,2,FALSE) ) )","v":""},null,null,null,null,{"$f":"IF(TRIM(EY100)=\"\", \"\", IF(VLOOKUP(EY100,'Footnotes list'!$D$9:$E$58,2,FALSE)=0,\"\",VLOOKUP(EY100,'Footnotes list'!$D$9:$E$58,2,FALSE) ) )","v":""}]
[null,null,"M69_M70","TOT_EGSS","Total M69-M70 - Legal and accounting activities; Activities of head offices; management consultancy activities, including:",null,null,null,null,null,{"$f":"IF(TRIM(J101)=\"\", \"\", IF(VLOOKUP(J101,'Footnotes list'!$D$9:$E$58,2,FALSE)=0,\"\",VLOOKUP(J101,'Footnotes list'!$D$9:$E$58,2,FALSE) ) )","v":""},null,null,null,null,{"$f":"IF(TRIM(O101)=\"\", \"\", IF(VLOOKUP(O101,'Footnotes list'!$D$9:$E$58,2,FALSE)=0,\"\",VLOOKUP(O101,'Footnotes list'!$D$9:$E$58,2,FALSE) ) )","v":""},null,null,null,null,{"$f":"IF(TRIM(T101)=\"\", \"\", IF(VLOOKUP(T101,'Footnotes list'!$D$9:$E$58,2,FALSE)=0,\"\",VLOOKUP(T101,'Footnotes list'!$D$9:$E$58,2,FALSE) ) )","v":""},null,null,null,null,{"$f":"IF(TRIM(Y101)=\"\", \"\", IF(VLOOKUP(Y101,'Footnotes list'!$D$9:$E$58,2,FALSE)=0,\"\",VLOOKUP(Y101,'Footnotes list'!$D$9:$E$58,2,FALSE) ) )","v":""},null,null,null,null,{"$f":"IF(TRIM(AD101)=\"\", \"\", IF(VLOOKUP(AD101,'Footnotes list'!$D$9:$E$58,2,FALSE)=0,\"\",VLOOKUP(AD101,'Footnotes list'!$D$9:$E$58,2,FALSE) ) )","v":""},null,null,null,null,{"$f":"IF(TRIM(AI101)=\"\", \"\", IF(VLOOKUP(AI101,'Footnotes list'!$D$9:$E$58,2,FALSE)=0,\"\",VLOOKUP(AI101,'Footnotes list'!$D$9:$E$58,2,FALSE) ) )","v":""},null,null,null,null,{"$f":"IF(TRIM(AN101)=\"\", \"\", IF(VLOOKUP(AN101,'Footnotes list'!$D$9:$E$58,2,FALSE)=0,\"\",VLOOKUP(AN101,'Footnotes list'!$D$9:$E$58,2,FALSE) ) )","v":""},null,null,null,null,{"$f":"IF(TRIM(AS101)=\"\", \"\", IF(VLOOKUP(AS101,'Footnotes list'!$D$9:$E$58,2,FALSE)=0,\"\",VLOOKUP(AS101,'Footnotes list'!$D$9:$E$58,2,FALSE) ) )","v":""},null,null,null,null,{"$f":"IF(TRIM(AX101)=\"\", \"\", IF(VLOOKUP(AX101,'Footnotes list'!$D$9:$E$58,2,FALSE)=0,\"\",VLOOKUP(AX101,'Footnotes list'!$D$9:$E$58,2,FALSE) ) )","v":""},null,null,null,null,{"$f":"IF(TRIM(BC101)=\"\", \"\", IF(VLOOKUP(BC101,'Footnotes list'!$D$9:$E$58,2,FALSE)=0,\"\",VLOOKUP(BC101,'Footnotes list'!$D$9:$E$58,2,FALSE) ) )","v":""},null,null,null,null,{"$f":"IF(TRIM(BH101)=\"\", \"\", IF(VLOOKUP(BH101,'Footnotes list'!$D$9:$E$58,2,FALSE)=0,\"\",VLOOKUP(BH101,'Footnotes list'!$D$9:$E$58,2,FALSE) ) )","v":""},null,null,null,null,{"$f":"IF(TRIM(BM101)=\"\", \"\", IF(VLOOKUP(BM101,'Footnotes list'!$D$9:$E$58,2,FALSE)=0,\"\",VLOOKUP(BM101,'Footnotes list'!$D$9:$E$58,2,FALSE) ) )","v":""},null,null,null,null,{"$f":"IF(TRIM(BR101)=\"\", \"\", IF(VLOOKUP(BR101,'Footnotes list'!$D$9:$E$58,2,FALSE)=0,\"\",VLOOKUP(BR101,'Footnotes list'!$D$9:$E$58,2,FALSE) ) )","v":""},null,null,null,null,{"$f":"IF(TRIM(BW101)=\"\", \"\", IF(VLOOKUP(BW101,'Footnotes list'!$D$9:$E$58,2,FALSE)=0,\"\",VLOOKUP(BW101,'Footnotes list'!$D$9:$E$58,2,FALSE) ) )","v":""},null,null,null,null,{"$f":"IF(TRIM(CB101)=\"\", \"\", IF(VLOOKUP(CB101,'Footnotes list'!$D$9:$E$58,2,FALSE)=0,\"\",VLOOKUP(CB101,'Footnotes list'!$D$9:$E$58,2,FALSE) ) )","v":""},null,null,null,null,{"$f":"IF(TRIM(CG101)=\"\", \"\", IF(VLOOKUP(CG101,'Footnotes list'!$D$9:$E$58,2,FALSE)=0,\"\",VLOOKUP(CG101,'Footnotes list'!$D$9:$E$58,2,FALSE) ) )","v":""},null,null,null,null,{"$f":"IF(TRIM(CL101)=\"\", \"\", IF(VLOOKUP(CL101,'Footnotes list'!$D$9:$E$58,2,FALSE)=0,\"\",VLOOKUP(CL101,'Footnotes list'!$D$9:$E$58,2,FALSE) ) )","v":""},null,null,null,null,{"$f":"IF(TRIM(CQ101)=\"\", \"\", IF(VLOOKUP(CQ101,'Footnotes list'!$D$9:$E$58,2,FALSE)=0,\"\",VLOOKUP(CQ101,'Footnotes list'!$D$9:$E$58,2,FALSE) ) )","v":""},null,null,null,null,{"$f":"IF(TRIM(CV101)=\"\", \"\", IF(VLOOKUP(CV101,'Footnotes list'!$D$9:$E$58,2,FALSE)=0,\"\",VLOOKUP(CV101,'Footnotes list'!$D$9:$E$58,2,FALSE) ) )","v":""},null,null,null,null,{"$f":"IF(TRIM(DA101)=\"\", \"\", IF(VLOOKUP(DA101,'Footnotes list'!$D$9:$E$58,2,FALSE)=0,\"\",VLOOKUP(DA101,'Footnotes list'!$D$9:$E$58,2,FALSE) ) )","v":""},null,null,null,null,{"$f":"IF(TRIM(DF101)=\"\", \"\", IF(VLOOKUP(DF101,'Footnotes list'!$D$9:$E$58,2,FALSE)=0,\"\",VLOOKUP(DF101,'Footnotes list'!$D$9:$E$58,2,FALSE) ) )","v":""},null,null,null,null,{"$f":"IF(TRIM(DK101)=\"\", \"\", IF(VLOOKUP(DK101,'Footnotes list'!$D$9:$E$58,2,FALSE)=0,\"\",VLOOKUP(DK101,'Footnotes list'!$D$9:$E$58,2,FALSE) ) )","v":""},null,null,null,null,{"$f":"IF(TRIM(DP101)=\"\", \"\", IF(VLOOKUP(DP101,'Footnotes list'!$D$9:$E$58,2,FALSE)=0,\"\",VLOOKUP(DP101,'Footnotes list'!$D$9:$E$58,2,FALSE) ) )","v":""},null,null,null,null,{"$f":"IF(TRIM(DU101)=\"\", \"\", IF(VLOOKUP(DU101,'Footnotes list'!$D$9:$E$58,2,FALSE)=0,\"\",VLOOKUP(DU101,'Footnotes list'!$D$9:$E$58,2,FALSE) ) )","v":""},null,null,null,null,{"$f":"IF(TRIM(DZ101)=\"\", \"\", IF(VLOOKUP(DZ101,'Footnotes list'!$D$9:$E$58,2,FALSE)=0,\"\",VLOOKUP(DZ101,'Footnotes list'!$D$9:$E$58,2,FALSE) ) )","v":""},null,null,null,null,{"$f":"IF(TRIM(EE101)=\"\", \"\", IF(VLOOKUP(EE101,'Footnotes list'!$D$9:$E$58,2,FALSE)=0,\"\",VLOOKUP(EE101,'Footnotes list'!$D$9:$E$58,2,FALSE) ) )","v":""},null,null,null,null,{"$f":"IF(TRIM(EJ101)=\"\", \"\", IF(VLOOKUP(EJ101,'Footnotes list'!$D$9:$E$58,2,FALSE)=0,\"\",VLOOKUP(EJ101,'Footnotes list'!$D$9:$E$58,2,FALSE) ) )","v":""},null,null,null,null,{"$f":"IF(TRIM(EO101)=\"\", \"\", IF(VLOOKUP(EO101,'Footnotes list'!$D$9:$E$58,2,FALSE)=0,\"\",VLOOKUP(EO101,'Footnotes list'!$D$9:$E$58,2,FALSE) ) )","v":""},null,null,null,null,{"$f":"IF(TRIM(ET101)=\"\", \"\", IF(VLOOKUP(ET101,'Footnotes list'!$D$9:$E$58,2,FALSE)=0,\"\",VLOOKUP(ET101,'Footnotes list'!$D$9:$E$58,2,FALSE) ) )","v":""},null,null,null,null,{"$f":"IF(TRIM(EY101)=\"\", \"\", IF(VLOOKUP(EY101,'Footnotes list'!$D$9:$E$58,2,FALSE)=0,\"\",VLOOKUP(EY101,'Footnotes list'!$D$9:$E$58,2,FALSE) ) )","v":""}]
[null,null,"M69_M70","ES_CS","environmental specific services",null,null,null,null,null,{"$f":"IF(TRIM(J102)=\"\", \"\", IF(VLOOKUP(J102,'Footnotes list'!$D$9:$E$58,2,FALSE)=0,\"\",VLOOKUP(J102,'Footnotes list'!$D$9:$E$58,2,FALSE) ) )","v":""},null,null,null,null,{"$f":"IF(TRIM(O102)=\"\", \"\", IF(VLOOKUP(O102,'Footnotes list'!$D$9:$E$58,2,FALSE)=0,\"\",VLOOKUP(O102,'Footnotes list'!$D$9:$E$58,2,FALSE) ) )","v":""},null,null,null,null,{"$f":"IF(TRIM(T102)=\"\", \"\", IF(VLOOKUP(T102,'Footnotes list'!$D$9:$E$58,2,FALSE)=0,\"\",VLOOKUP(T102,'Footnotes list'!$D$9:$E$58,2,FALSE) ) )","v":""},null,null,null,null,{"$f":"IF(TRIM(Y102)=\"\", \"\", IF(VLOOKUP(Y102,'Footnotes list'!$D$9:$E$58,2,FALSE)=0,\"\",VLOOKUP(Y102,'Footnotes list'!$D$9:$E$58,2,FALSE) ) )","v":""},null,null,null,null,{"$f":"IF(TRIM(AD102)=\"\", \"\", IF(VLOOKUP(AD102,'Footnotes list'!$D$9:$E$58,2,FALSE)=0,\"\",VLOOKUP(AD102,'Footnotes list'!$D$9:$E$58,2,FALSE) ) )","v":""},null,null,null,null,{"$f":"IF(TRIM(AI102)=\"\", \"\", IF(VLOOKUP(AI102,'Footnotes list'!$D$9:$E$58,2,FALSE)=0,\"\",VLOOKUP(AI102,'Footnotes list'!$D$9:$E$58,2,FALSE) ) )","v":""},null,null,null,null,{"$f":"IF(TRIM(AN102)=\"\", \"\", IF(VLOOKUP(AN102,'Footnotes list'!$D$9:$E$58,2,FALSE)=0,\"\",VLOOKUP(AN102,'Footnotes list'!$D$9:$E$58,2,FALSE) ) )","v":""},null,null,null,null,{"$f":"IF(TRIM(AS102)=\"\", \"\", IF(VLOOKUP(AS102,'Footnotes list'!$D$9:$E$58,2,FALSE)=0,\"\",VLOOKUP(AS102,'Footnotes list'!$D$9:$E$58,2,FALSE) ) )","v":""},null,null,null,null,{"$f":"IF(TRIM(AX102)=\"\", \"\", IF(VLOOKUP(AX102,'Footnotes list'!$D$9:$E$58,2,FALSE)=0,\"\",VLOOKUP(AX102,'Footnotes list'!$D$9:$E$58,2,FALSE) ) )","v":""},null,null,null,null,{"$f":"IF(TRIM(BC102)=\"\", \"\", IF(VLOOKUP(BC102,'Footnotes list'!$D$9:$E$58,2,FALSE)=0,\"\",VLOOKUP(BC102,'Footnotes list'!$D$9:$E$58,2,FALSE) ) )","v":""},null,null,null,null,{"$f":"IF(TRIM(BH102)=\"\", \"\", IF(VLOOKUP(BH102,'Footnotes list'!$D$9:$E$58,2,FALSE)=0,\"\",VLOOKUP(BH102,'Footnotes list'!$D$9:$E$58,2,FALSE) ) )","v":""},null,null,null,null,{"$f":"IF(TRIM(BM102)=\"\", \"\", IF(VLOOKUP(BM102,'Footnotes list'!$D$9:$E$58,2,FALSE)=0,\"\",VLOOKUP(BM102,'Footnotes list'!$D$9:$E$58,2,FALSE) ) )","v":""},null,null,null,null,{"$f":"IF(TRIM(BR102)=\"\", \"\", IF(VLOOKUP(BR102,'Footnotes list'!$D$9:$E$58,2,FALSE)=0,\"\",VLOOKUP(BR102,'Footnotes list'!$D$9:$E$58,2,FALSE) ) )","v":""},null,null,null,null,{"$f":"IF(TRIM(BW102)=\"\", \"\", IF(VLOOKUP(BW102,'Footnotes list'!$D$9:$E$58,2,FALSE)=0,\"\",VLOOKUP(BW102,'Footnotes list'!$D$9:$E$58,2,FALSE) ) )","v":""},null,null,null,null,{"$f":"IF(TRIM(CB102)=\"\", \"\", IF(VLOOKUP(CB102,'Footnotes list'!$D$9:$E$58,2,FALSE)=0,\"\",VLOOKUP(CB102,'Footnotes list'!$D$9:$E$58,2,FALSE) ) )","v":""},null,null,null,null,{"$f":"IF(TRIM(CG102)=\"\", \"\", IF(VLOOKUP(CG102,'Footnotes list'!$D$9:$E$58,2,FALSE)=0,\"\",VLOOKUP(CG102,'Footnotes list'!$D$9:$E$58,2,FALSE) ) )","v":""},null,null,null,null,{"$f":"IF(TRIM(CL102)=\"\", \"\", IF(VLOOKUP(CL102,'Footnotes list'!$D$9:$E$58,2,FALSE)=0,\"\",VLOOKUP(CL102,'Footnotes list'!$D$9:$E$58,2,FALSE) ) )","v":""},null,null,null,null,{"$f":"IF(TRIM(CQ102)=\"\", \"\", IF(VLOOKUP(CQ102,'Footnotes list'!$D$9:$E$58,2,FALSE)=0,\"\",VLOOKUP(CQ102,'Footnotes list'!$D$9:$E$58,2,FALSE) ) )","v":""},null,null,null,null,{"$f":"IF(TRIM(CV102)=\"\", \"\", IF(VLOOKUP(CV102,'Footnotes list'!$D$9:$E$58,2,FALSE)=0,\"\",VLOOKUP(CV102,'Footnotes list'!$D$9:$E$58,2,FALSE) ) )","v":""},null,null,null,null,{"$f":"IF(TRIM(DA102)=\"\", \"\", IF(VLOOKUP(DA102,'Footnotes list'!$D$9:$E$58,2,FALSE)=0,\"\",VLOOKUP(DA102,'Footnotes list'!$D$9:$E$58,2,FALSE) ) )","v":""},null,null,null,null,{"$f":"IF(TRIM(DF102)=\"\", \"\", IF(VLOOKUP(DF102,'Footnotes list'!$D$9:$E$58,2,FALSE)=0,\"\",VLOOKUP(DF102,'Footnotes list'!$D$9:$E$58,2,FALSE) ) )","v":""},null,null,null,null,{"$f":"IF(TRIM(DK102)=\"\", \"\", IF(VLOOKUP(DK102,'Footnotes list'!$D$9:$E$58,2,FALSE)=0,\"\",VLOOKUP(DK102,'Footnotes list'!$D$9:$E$58,2,FALSE) ) )","v":""},null,null,null,null,{"$f":"IF(TRIM(DP102)=\"\", \"\", IF(VLOOKUP(DP102,'Footnotes list'!$D$9:$E$58,2,FALSE)=0,\"\",VLOOKUP(DP102,'Footnotes list'!$D$9:$E$58,2,FALSE) ) )","v":""},null,null,null,null,{"$f":"IF(TRIM(DU102)=\"\", \"\", IF(VLOOKUP(DU102,'Footnotes list'!$D$9:$E$58,2,FALSE)=0,\"\",VLOOKUP(DU102,'Footnotes list'!$D$9:$E$58,2,FALSE) ) )","v":""},null,null,null,null,{"$f":"IF(TRIM(DZ102)=\"\", \"\", IF(VLOOKUP(DZ102,'Footnotes list'!$D$9:$E$58,2,FALSE)=0,\"\",VLOOKUP(DZ102,'Footnotes list'!$D$9:$E$58,2,FALSE) ) )","v":""},null,null,null,null,{"$f":"IF(TRIM(EE102)=\"\", \"\", IF(VLOOKUP(EE102,'Footnotes list'!$D$9:$E$58,2,FALSE)=0,\"\",VLOOKUP(EE102,'Footnotes list'!$D$9:$E$58,2,FALSE) ) )","v":""},null,null,null,null,{"$f":"IF(TRIM(EJ102)=\"\", \"\", IF(VLOOKUP(EJ102,'Footnotes list'!$D$9:$E$58,2,FALSE)=0,\"\",VLOOKUP(EJ102,'Footnotes list'!$D$9:$E$58,2,FALSE) ) )","v":""},null,null,null,null,{"$f":"IF(TRIM(EO102)=\"\", \"\", IF(VLOOKUP(EO102,'Footnotes list'!$D$9:$E$58,2,FALSE)=0,\"\",VLOOKUP(EO102,'Footnotes list'!$D$9:$E$58,2,FALSE) ) )","v":""},null,null,null,null,{"$f":"IF(TRIM(ET102)=\"\", \"\", IF(VLOOKUP(ET102,'Footnotes list'!$D$9:$E$58,2,FALSE)=0,\"\",VLOOKUP(ET102,'Footnotes list'!$D$9:$E$58,2,FALSE) ) )","v":""},null,null,null,null,{"$f":"IF(TRIM(EY102)=\"\", \"\", IF(VLOOKUP(EY102,'Footnotes list'!$D$9:$E$58,2,FALSE)=0,\"\",VLOOKUP(EY102,'Footnotes list'!$D$9:$E$58,2,FALSE) ) )","v":""}]
[null,null,"M69_M70","C_REP","cleaner and resource efficient products",null,null,null,null,null,{"$f":"IF(TRIM(J103)=\"\", \"\", IF(VLOOKUP(J103,'Footnotes list'!$D$9:$E$58,2,FALSE)=0,\"\",VLOOKUP(J103,'Footnotes list'!$D$9:$E$58,2,FALSE) ) )","v":""},null,null,null,null,{"$f":"IF(TRIM(O103)=\"\", \"\", IF(VLOOKUP(O103,'Footnotes list'!$D$9:$E$58,2,FALSE)=0,\"\",VLOOKUP(O103,'Footnotes list'!$D$9:$E$58,2,FALSE) ) )","v":""},null,null,null,null,{"$f":"IF(TRIM(T103)=\"\", \"\", IF(VLOOKUP(T103,'Footnotes list'!$D$9:$E$58,2,FALSE)=0,\"\",VLOOKUP(T103,'Footnotes list'!$D$9:$E$58,2,FALSE) ) )","v":""},null,null,null,null,{"$f":"IF(TRIM(Y103)=\"\", \"\", IF(VLOOKUP(Y103,'Footnotes list'!$D$9:$E$58,2,FALSE)=0,\"\",VLOOKUP(Y103,'Footnotes list'!$D$9:$E$58,2,FALSE) ) )","v":""},null,null,null,null,{"$f":"IF(TRIM(AD103)=\"\", \"\", IF(VLOOKUP(AD103,'Footnotes list'!$D$9:$E$58,2,FALSE)=0,\"\",VLOOKUP(AD103,'Footnotes list'!$D$9:$E$58,2,FALSE) ) )","v":""},null,null,null,null,{"$f":"IF(TRIM(AI103)=\"\", \"\", IF(VLOOKUP(AI103,'Footnotes list'!$D$9:$E$58,2,FALSE)=0,\"\",VLOOKUP(AI103,'Footnotes list'!$D$9:$E$58,2,FALSE) ) )","v":""},null,null,null,null,{"$f":"IF(TRIM(AN103)=\"\", \"\", IF(VLOOKUP(AN103,'Footnotes list'!$D$9:$E$58,2,FALSE)=0,\"\",VLOOKUP(AN103,'Footnotes list'!$D$9:$E$58,2,FALSE) ) )","v":""},null,null,null,null,{"$f":"IF(TRIM(AS103)=\"\", \"\", IF(VLOOKUP(AS103,'Footnotes list'!$D$9:$E$58,2,FALSE)=0,\"\",VLOOKUP(AS103,'Footnotes list'!$D$9:$E$58,2,FALSE) ) )","v":""},null,null,null,null,{"$f":"IF(TRIM(AX103)=\"\", \"\", IF(VLOOKUP(AX103,'Footnotes list'!$D$9:$E$58,2,FALSE)=0,\"\",VLOOKUP(AX103,'Footnotes list'!$D$9:$E$58,2,FALSE) ) )","v":""},null,null,null,null,{"$f":"IF(TRIM(BC103)=\"\", \"\", IF(VLOOKUP(BC103,'Footnotes list'!$D$9:$E$58,2,FALSE)=0,\"\",VLOOKUP(BC103,'Footnotes list'!$D$9:$E$58,2,FALSE) ) )","v":""},null,null,null,null,{"$f":"IF(TRIM(BH103)=\"\", \"\", IF(VLOOKUP(BH103,'Footnotes list'!$D$9:$E$58,2,FALSE)=0,\"\",VLOOKUP(BH103,'Footnotes list'!$D$9:$E$58,2,FALSE) ) )","v":""},null,null,null,null,{"$f":"IF(TRIM(BM103)=\"\", \"\", IF(VLOOKUP(BM103,'Footnotes list'!$D$9:$E$58,2,FALSE)=0,\"\",VLOOKUP(BM103,'Footnotes list'!$D$9:$E$58,2,FALSE) ) )","v":""},null,null,null,null,{"$f":"IF(TRIM(BR103)=\"\", \"\", IF(VLOOKUP(BR103,'Footnotes list'!$D$9:$E$58,2,FALSE)=0,\"\",VLOOKUP(BR103,'Footnotes list'!$D$9:$E$58,2,FALSE) ) )","v":""},null,null,null,null,{"$f":"IF(TRIM(BW103)=\"\", \"\", IF(VLOOKUP(BW103,'Footnotes list'!$D$9:$E$58,2,FALSE)=0,\"\",VLOOKUP(BW103,'Footnotes list'!$D$9:$E$58,2,FALSE) ) )","v":""},null,null,null,null,{"$f":"IF(TRIM(CB103)=\"\", \"\", IF(VLOOKUP(CB103,'Footnotes list'!$D$9:$E$58,2,FALSE)=0,\"\",VLOOKUP(CB103,'Footnotes list'!$D$9:$E$58,2,FALSE) ) )","v":""},null,null,null,null,{"$f":"IF(TRIM(CG103)=\"\", \"\", IF(VLOOKUP(CG103,'Footnotes list'!$D$9:$E$58,2,FALSE)=0,\"\",VLOOKUP(CG103,'Footnotes list'!$D$9:$E$58,2,FALSE) ) )","v":""},null,null,null,null,{"$f":"IF(TRIM(CL103)=\"\", \"\", IF(VLOOKUP(CL103,'Footnotes list'!$D$9:$E$58,2,FALSE)=0,\"\",VLOOKUP(CL103,'Footnotes list'!$D$9:$E$58,2,FALSE) ) )","v":""},null,null,null,null,{"$f":"IF(TRIM(CQ103)=\"\", \"\", IF(VLOOKUP(CQ103,'Footnotes list'!$D$9:$E$58,2,FALSE)=0,\"\",VLOOKUP(CQ103,'Footnotes list'!$D$9:$E$58,2,FALSE) ) )","v":""},null,null,null,null,{"$f":"IF(TRIM(CV103)=\"\", \"\", IF(VLOOKUP(CV103,'Footnotes list'!$D$9:$E$58,2,FALSE)=0,\"\",VLOOKUP(CV103,'Footnotes list'!$D$9:$E$58,2,FALSE) ) )","v":""},null,null,null,null,{"$f":"IF(TRIM(DA103)=\"\", \"\", IF(VLOOKUP(DA103,'Footnotes list'!$D$9:$E$58,2,FALSE)=0,\"\",VLOOKUP(DA103,'Footnotes list'!$D$9:$E$58,2,FALSE) ) )","v":""},null,null,null,null,{"$f":"IF(TRIM(DF103)=\"\", \"\", IF(VLOOKUP(DF103,'Footnotes list'!$D$9:$E$58,2,FALSE)=0,\"\",VLOOKUP(DF103,'Footnotes list'!$D$9:$E$58,2,FALSE) ) )","v":""},null,null,null,null,{"$f":"IF(TRIM(DK103)=\"\", \"\", IF(VLOOKUP(DK103,'Footnotes list'!$D$9:$E$58,2,FALSE)=0,\"\",VLOOKUP(DK103,'Footnotes list'!$D$9:$E$58,2,FALSE) ) )","v":""},null,null,null,null,{"$f":"IF(TRIM(DP103)=\"\", \"\", IF(VLOOKUP(DP103,'Footnotes list'!$D$9:$E$58,2,FALSE)=0,\"\",VLOOKUP(DP103,'Footnotes list'!$D$9:$E$58,2,FALSE) ) )","v":""},null,null,null,null,{"$f":"IF(TRIM(DU103)=\"\", \"\", IF(VLOOKUP(DU103,'Footnotes list'!$D$9:$E$58,2,FALSE)=0,\"\",VLOOKUP(DU103,'Footnotes list'!$D$9:$E$58,2,FALSE) ) )","v":""},null,null,null,null,{"$f":"IF(TRIM(DZ103)=\"\", \"\", IF(VLOOKUP(DZ103,'Footnotes list'!$D$9:$E$58,2,FALSE)=0,\"\",VLOOKUP(DZ103,'Footnotes list'!$D$9:$E$58,2,FALSE) ) )","v":""},null,null,null,null,{"$f":"IF(TRIM(EE103)=\"\", \"\", IF(VLOOKUP(EE103,'Footnotes list'!$D$9:$E$58,2,FALSE)=0,\"\",VLOOKUP(EE103,'Footnotes list'!$D$9:$E$58,2,FALSE) ) )","v":""},null,null,null,null,{"$f":"IF(TRIM(EJ103)=\"\", \"\", IF(VLOOKUP(EJ103,'Footnotes list'!$D$9:$E$58,2,FALSE)=0,\"\",VLOOKUP(EJ103,'Footnotes list'!$D$9:$E$58,2,FALSE) ) )","v":""},null,null,null,null,{"$f":"IF(TRIM(EO103)=\"\", \"\", IF(VLOOKUP(EO103,'Footnotes list'!$D$9:$E$58,2,FALSE)=0,\"\",VLOOKUP(EO103,'Footnotes list'!$D$9:$E$58,2,FALSE) ) )","v":""},null,null,null,null,{"$f":"IF(TRIM(ET103)=\"\", \"\", IF(VLOOKUP(ET103,'Footnotes list'!$D$9:$E$58,2,FALSE)=0,\"\",VLOOKUP(ET103,'Footnotes list'!$D$9:$E$58,2,FALSE) ) )","v":""},null,null,null,null,{"$f":"IF(TRIM(EY103)=\"\", \"\", IF(VLOOKUP(EY103,'Footnotes list'!$D$9:$E$58,2,FALSE)=0,\"\",VLOOKUP(EY103,'Footnotes list'!$D$9:$E$58,2,FALSE) ) )","v":""}]
[null,null,"M71","TOT_EGSS","Total M71 - Architectural and engineering activities; technical testing and analysis, including:",null,null,null,null,null,{"$f":"IF(TRIM(J104)=\"\", \"\", IF(VLOOKUP(J104,'Footnotes list'!$D$9:$E$58,2,FALSE)=0,\"\",VLOOKUP(J104,'Footnotes list'!$D$9:$E$58,2,FALSE) ) )","v":""},null,null,null,null,{"$f":"IF(TRIM(O104)=\"\", \"\", IF(VLOOKUP(O104,'Footnotes list'!$D$9:$E$58,2,FALSE)=0,\"\",VLOOKUP(O104,'Footnotes list'!$D$9:$E$58,2,FALSE) ) )","v":""},null,null,null,null,{"$f":"IF(TRIM(T104)=\"\", \"\", IF(VLOOKUP(T104,'Footnotes list'!$D$9:$E$58,2,FALSE)=0,\"\",VLOOKUP(T104,'Footnotes list'!$D$9:$E$58,2,FALSE) ) )","v":""},null,null,null,null,{"$f":"IF(TRIM(Y104)=\"\", \"\", IF(VLOOKUP(Y104,'Footnotes list'!$D$9:$E$58,2,FALSE)=0,\"\",VLOOKUP(Y104,'Footnotes list'!$D$9:$E$58,2,FALSE) ) )","v":""},null,null,null,null,{"$f":"IF(TRIM(AD104)=\"\", \"\", IF(VLOOKUP(AD104,'Footnotes list'!$D$9:$E$58,2,FALSE)=0,\"\",VLOOKUP(AD104,'Footnotes list'!$D$9:$E$58,2,FALSE) ) )","v":""},null,null,null,null,{"$f":"IF(TRIM(AI104)=\"\", \"\", IF(VLOOKUP(AI104,'Footnotes list'!$D$9:$E$58,2,FALSE)=0,\"\",VLOOKUP(AI104,'Footnotes list'!$D$9:$E$58,2,FALSE) ) )","v":""},null,null,null,null,{"$f":"IF(TRIM(AN104)=\"\", \"\", IF(VLOOKUP(AN104,'Footnotes list'!$D$9:$E$58,2,FALSE)=0,\"\",VLOOKUP(AN104,'Footnotes list'!$D$9:$E$58,2,FALSE) ) )","v":""},null,null,null,null,{"$f":"IF(TRIM(AS104)=\"\", \"\", IF(VLOOKUP(AS104,'Footnotes list'!$D$9:$E$58,2,FALSE)=0,\"\",VLOOKUP(AS104,'Footnotes list'!$D$9:$E$58,2,FALSE) ) )","v":""},null,null,null,null,{"$f":"IF(TRIM(AX104)=\"\", \"\", IF(VLOOKUP(AX104,'Footnotes list'!$D$9:$E$58,2,FALSE)=0,\"\",VLOOKUP(AX104,'Footnotes list'!$D$9:$E$58,2,FALSE) ) )","v":""},null,null,null,null,{"$f":"IF(TRIM(BC104)=\"\", \"\", IF(VLOOKUP(BC104,'Footnotes list'!$D$9:$E$58,2,FALSE)=0,\"\",VLOOKUP(BC104,'Footnotes list'!$D$9:$E$58,2,FALSE) ) )","v":""},null,null,null,null,{"$f":"IF(TRIM(BH104)=\"\", \"\", IF(VLOOKUP(BH104,'Footnotes list'!$D$9:$E$58,2,FALSE)=0,\"\",VLOOKUP(BH104,'Footnotes list'!$D$9:$E$58,2,FALSE) ) )","v":""},null,null,null,null,{"$f":"IF(TRIM(BM104)=\"\", \"\", IF(VLOOKUP(BM104,'Footnotes list'!$D$9:$E$58,2,FALSE)=0,\"\",VLOOKUP(BM104,'Footnotes list'!$D$9:$E$58,2,FALSE) ) )","v":""},null,null,null,null,{"$f":"IF(TRIM(BR104)=\"\", \"\", IF(VLOOKUP(BR104,'Footnotes list'!$D$9:$E$58,2,FALSE)=0,\"\",VLOOKUP(BR104,'Footnotes list'!$D$9:$E$58,2,FALSE) ) )","v":""},null,null,null,null,{"$f":"IF(TRIM(BW104)=\"\", \"\", IF(VLOOKUP(BW104,'Footnotes list'!$D$9:$E$58,2,FALSE)=0,\"\",VLOOKUP(BW104,'Footnotes list'!$D$9:$E$58,2,FALSE) ) )","v":""},null,null,null,null,{"$f":"IF(TRIM(CB104)=\"\", \"\", IF(VLOOKUP(CB104,'Footnotes list'!$D$9:$E$58,2,FALSE)=0,\"\",VLOOKUP(CB104,'Footnotes list'!$D$9:$E$58,2,FALSE) ) )","v":""},null,null,null,null,{"$f":"IF(TRIM(CG104)=\"\", \"\", IF(VLOOKUP(CG104,'Footnotes list'!$D$9:$E$58,2,FALSE)=0,\"\",VLOOKUP(CG104,'Footnotes list'!$D$9:$E$58,2,FALSE) ) )","v":""},null,null,null,null,{"$f":"IF(TRIM(CL104)=\"\", \"\", IF(VLOOKUP(CL104,'Footnotes list'!$D$9:$E$58,2,FALSE)=0,\"\",VLOOKUP(CL104,'Footnotes list'!$D$9:$E$58,2,FALSE) ) )","v":""},null,null,null,null,{"$f":"IF(TRIM(CQ104)=\"\", \"\", IF(VLOOKUP(CQ104,'Footnotes list'!$D$9:$E$58,2,FALSE)=0,\"\",VLOOKUP(CQ104,'Footnotes list'!$D$9:$E$58,2,FALSE) ) )","v":""},null,null,null,null,{"$f":"IF(TRIM(CV104)=\"\", \"\", IF(VLOOKUP(CV104,'Footnotes list'!$D$9:$E$58,2,FALSE)=0,\"\",VLOOKUP(CV104,'Footnotes list'!$D$9:$E$58,2,FALSE) ) )","v":""},null,null,null,null,{"$f":"IF(TRIM(DA104)=\"\", \"\", IF(VLOOKUP(DA104,'Footnotes list'!$D$9:$E$58,2,FALSE)=0,\"\",VLOOKUP(DA104,'Footnotes list'!$D$9:$E$58,2,FALSE) ) )","v":""},null,null,null,null,{"$f":"IF(TRIM(DF104)=\"\", \"\", IF(VLOOKUP(DF104,'Footnotes list'!$D$9:$E$58,2,FALSE)=0,\"\",VLOOKUP(DF104,'Footnotes list'!$D$9:$E$58,2,FALSE) ) )","v":""},null,null,null,null,{"$f":"IF(TRIM(DK104)=\"\", \"\", IF(VLOOKUP(DK104,'Footnotes list'!$D$9:$E$58,2,FALSE)=0,\"\",VLOOKUP(DK104,'Footnotes list'!$D$9:$E$58,2,FALSE) ) )","v":""},null,null,null,null,{"$f":"IF(TRIM(DP104)=\"\", \"\", IF(VLOOKUP(DP104,'Footnotes list'!$D$9:$E$58,2,FALSE)=0,\"\",VLOOKUP(DP104,'Footnotes list'!$D$9:$E$58,2,FALSE) ) )","v":""},null,null,null,null,{"$f":"IF(TRIM(DU104)=\"\", \"\", IF(VLOOKUP(DU104,'Footnotes list'!$D$9:$E$58,2,FALSE)=0,\"\",VLOOKUP(DU104,'Footnotes list'!$D$9:$E$58,2,FALSE) ) )","v":""},null,null,null,null,{"$f":"IF(TRIM(DZ104)=\"\", \"\", IF(VLOOKUP(DZ104,'Footnotes list'!$D$9:$E$58,2,FALSE)=0,\"\",VLOOKUP(DZ104,'Footnotes list'!$D$9:$E$58,2,FALSE) ) )","v":""},null,null,null,null,{"$f":"IF(TRIM(EE104)=\"\", \"\", IF(VLOOKUP(EE104,'Footnotes list'!$D$9:$E$58,2,FALSE)=0,\"\",VLOOKUP(EE104,'Footnotes list'!$D$9:$E$58,2,FALSE) ) )","v":""},null,null,null,null,{"$f":"IF(TRIM(EJ104)=\"\", \"\", IF(VLOOKUP(EJ104,'Footnotes list'!$D$9:$E$58,2,FALSE)=0,\"\",VLOOKUP(EJ104,'Footnotes list'!$D$9:$E$58,2,FALSE) ) )","v":""},null,null,null,null,{"$f":"IF(TRIM(EO104)=\"\", \"\", IF(VLOOKUP(EO104,'Footnotes list'!$D$9:$E$58,2,FALSE)=0,\"\",VLOOKUP(EO104,'Footnotes list'!$D$9:$E$58,2,FALSE) ) )","v":""},null,null,null,null,{"$f":"IF(TRIM(ET104)=\"\", \"\", IF(VLOOKUP(ET104,'Footnotes list'!$D$9:$E$58,2,FALSE)=0,\"\",VLOOKUP(ET104,'Footnotes list'!$D$9:$E$58,2,FALSE) ) )","v":""},null,null,null,null,{"$f":"IF(TRIM(EY104)=\"\", \"\", IF(VLOOKUP(EY104,'Footnotes list'!$D$9:$E$58,2,FALSE)=0,\"\",VLOOKUP(EY104,'Footnotes list'!$D$9:$E$58,2,FALSE) ) )","v":""}]
[null,null,"M71","ES_CS","environmental specific services",null,null,null,null,null,{"$f":"IF(TRIM(J105)=\"\", \"\", IF(VLOOKUP(J105,'Footnotes list'!$D$9:$E$58,2,FALSE)=0,\"\",VLOOKUP(J105,'Footnotes list'!$D$9:$E$58,2,FALSE) ) )","v":""},null,null,null,null,{"$f":"IF(TRIM(O105)=\"\", \"\", IF(VLOOKUP(O105,'Footnotes list'!$D$9:$E$58,2,FALSE)=0,\"\",VLOOKUP(O105,'Footnotes list'!$D$9:$E$58,2,FALSE) ) )","v":""},null,null,null,null,{"$f":"IF(TRIM(T105)=\"\", \"\", IF(VLOOKUP(T105,'Footnotes list'!$D$9:$E$58,2,FALSE)=0,\"\",VLOOKUP(T105,'Footnotes list'!$D$9:$E$58,2,FALSE) ) )","v":""},null,null,null,null,{"$f":"IF(TRIM(Y105)=\"\", \"\", IF(VLOOKUP(Y105,'Footnotes list'!$D$9:$E$58,2,FALSE)=0,\"\",VLOOKUP(Y105,'Footnotes list'!$D$9:$E$58,2,FALSE) ) )","v":""},null,null,null,null,{"$f":"IF(TRIM(AD105)=\"\", \"\", IF(VLOOKUP(AD105,'Footnotes list'!$D$9:$E$58,2,FALSE)=0,\"\",VLOOKUP(AD105,'Footnotes list'!$D$9:$E$58,2,FALSE) ) )","v":""},null,null,null,null,{"$f":"IF(TRIM(AI105)=\"\", \"\", IF(VLOOKUP(AI105,'Footnotes list'!$D$9:$E$58,2,FALSE)=0,\"\",VLOOKUP(AI105,'Footnotes list'!$D$9:$E$58,2,FALSE) ) )","v":""},null,null,null,null,{"$f":"IF(TRIM(AN105)=\"\", \"\", IF(VLOOKUP(AN105,'Footnotes list'!$D$9:$E$58,2,FALSE)=0,\"\",VLOOKUP(AN105,'Footnotes list'!$D$9:$E$58,2,FALSE) ) )","v":""},null,null,null,null,{"$f":"IF(TRIM(AS105)=\"\", \"\", IF(VLOOKUP(AS105,'Footnotes list'!$D$9:$E$58,2,FALSE)=0,\"\",VLOOKUP(AS105,'Footnotes list'!$D$9:$E$58,2,FALSE) ) )","v":""},null,null,null,null,{"$f":"IF(TRIM(AX105)=\"\", \"\", IF(VLOOKUP(AX105,'Footnotes list'!$D$9:$E$58,2,FALSE)=0,\"\",VLOOKUP(AX105,'Footnotes list'!$D$9:$E$58,2,FALSE) ) )","v":""},null,null,null,null,{"$f":"IF(TRIM(BC105)=\"\", \"\", IF(VLOOKUP(BC105,'Footnotes list'!$D$9:$E$58,2,FALSE)=0,\"\",VLOOKUP(BC105,'Footnotes list'!$D$9:$E$58,2,FALSE) ) )","v":""},null,null,null,null,{"$f":"IF(TRIM(BH105)=\"\", \"\", IF(VLOOKUP(BH105,'Footnotes list'!$D$9:$E$58,2,FALSE)=0,\"\",VLOOKUP(BH105,'Footnotes list'!$D$9:$E$58,2,FALSE) ) )","v":""},null,null,null,null,{"$f":"IF(TRIM(BM105)=\"\", \"\", IF(VLOOKUP(BM105,'Footnotes list'!$D$9:$E$58,2,FALSE)=0,\"\",VLOOKUP(BM105,'Footnotes list'!$D$9:$E$58,2,FALSE) ) )","v":""},null,null,null,null,{"$f":"IF(TRIM(BR105)=\"\", \"\", IF(VLOOKUP(BR105,'Footnotes list'!$D$9:$E$58,2,FALSE)=0,\"\",VLOOKUP(BR105,'Footnotes list'!$D$9:$E$58,2,FALSE) ) )","v":""},null,null,null,null,{"$f":"IF(TRIM(BW105)=\"\", \"\", IF(VLOOKUP(BW105,'Footnotes list'!$D$9:$E$58,2,FALSE)=0,\"\",VLOOKUP(BW105,'Footnotes list'!$D$9:$E$58,2,FALSE) ) )","v":""},null,null,null,null,{"$f":"IF(TRIM(CB105)=\"\", \"\", IF(VLOOKUP(CB105,'Footnotes list'!$D$9:$E$58,2,FALSE)=0,\"\",VLOOKUP(CB105,'Footnotes list'!$D$9:$E$58,2,FALSE) ) )","v":""},null,null,null,null,{"$f":"IF(TRIM(CG105)=\"\", \"\", IF(VLOOKUP(CG105,'Footnotes list'!$D$9:$E$58,2,FALSE)=0,\"\",VLOOKUP(CG105,'Footnotes list'!$D$9:$E$58,2,FALSE) ) )","v":""},null,null,null,null,{"$f":"IF(TRIM(CL105)=\"\", \"\", IF(VLOOKUP(CL105,'Footnotes list'!$D$9:$E$58,2,FALSE)=0,\"\",VLOOKUP(CL105,'Footnotes list'!$D$9:$E$58,2,FALSE) ) )","v":""},null,null,null,null,{"$f":"IF(TRIM(CQ105)=\"\", \"\", IF(VLOOKUP(CQ105,'Footnotes list'!$D$9:$E$58,2,FALSE)=0,\"\",VLOOKUP(CQ105,'Footnotes list'!$D$9:$E$58,2,FALSE) ) )","v":""},null,null,null,null,{"$f":"IF(TRIM(CV105)=\"\", \"\", IF(VLOOKUP(CV105,'Footnotes list'!$D$9:$E$58,2,FALSE)=0,\"\",VLOOKUP(CV105,'Footnotes list'!$D$9:$E$58,2,FALSE) ) )","v":""},null,null,null,null,{"$f":"IF(TRIM(DA105)=\"\", \"\", IF(VLOOKUP(DA105,'Footnotes list'!$D$9:$E$58,2,FALSE)=0,\"\",VLOOKUP(DA105,'Footnotes list'!$D$9:$E$58,2,FALSE) ) )","v":""},null,null,null,null,{"$f":"IF(TRIM(DF105)=\"\", \"\", IF(VLOOKUP(DF105,'Footnotes list'!$D$9:$E$58,2,FALSE)=0,\"\",VLOOKUP(DF105,'Footnotes list'!$D$9:$E$58,2,FALSE) ) )","v":""},null,null,null,null,{"$f":"IF(TRIM(DK105)=\"\", \"\", IF(VLOOKUP(DK105,'Footnotes list'!$D$9:$E$58,2,FALSE)=0,\"\",VLOOKUP(DK105,'Footnotes list'!$D$9:$E$58,2,FALSE) ) )","v":""},null,null,null,null,{"$f":"IF(TRIM(DP105)=\"\", \"\", IF(VLOOKUP(DP105,'Footnotes list'!$D$9:$E$58,2,FALSE)=0,\"\",VLOOKUP(DP105,'Footnotes list'!$D$9:$E$58,2,FALSE) ) )","v":""},null,null,null,null,{"$f":"IF(TRIM(DU105)=\"\", \"\", IF(VLOOKUP(DU105,'Footnotes list'!$D$9:$E$58,2,FALSE)=0,\"\",VLOOKUP(DU105,'Footnotes list'!$D$9:$E$58,2,FALSE) ) )","v":""},null,null,null,null,{"$f":"IF(TRIM(DZ105)=\"\", \"\", IF(VLOOKUP(DZ105,'Footnotes list'!$D$9:$E$58,2,FALSE)=0,\"\",VLOOKUP(DZ105,'Footnotes list'!$D$9:$E$58,2,FALSE) ) )","v":""},null,null,null,null,{"$f":"IF(TRIM(EE105)=\"\", \"\", IF(VLOOKUP(EE105,'Footnotes list'!$D$9:$E$58,2,FALSE)=0,\"\",VLOOKUP(EE105,'Footnotes list'!$D$9:$E$58,2,FALSE) ) )","v":""},null,null,null,null,{"$f":"IF(TRIM(EJ105)=\"\", \"\", IF(VLOOKUP(EJ105,'Footnotes list'!$D$9:$E$58,2,FALSE)=0,\"\",VLOOKUP(EJ105,'Footnotes list'!$D$9:$E$58,2,FALSE) ) )","v":""},null,null,null,null,{"$f":"IF(TRIM(EO105)=\"\", \"\", IF(VLOOKUP(EO105,'Footnotes list'!$D$9:$E$58,2,FALSE)=0,\"\",VLOOKUP(EO105,'Footnotes list'!$D$9:$E$58,2,FALSE) ) )","v":""},null,null,null,null,{"$f":"IF(TRIM(ET105)=\"\", \"\", IF(VLOOKUP(ET105,'Footnotes list'!$D$9:$E$58,2,FALSE)=0,\"\",VLOOKUP(ET105,'Footnotes list'!$D$9:$E$58,2,FALSE) ) )","v":""},null,null,null,null,{"$f":"IF(TRIM(EY105)=\"\", \"\", IF(VLOOKUP(EY105,'Footnotes list'!$D$9:$E$58,2,FALSE)=0,\"\",VLOOKUP(EY105,'Footnotes list'!$D$9:$E$58,2,FALSE) ) )","v":""}]
[null,null,"M71","C_REP","cleaner and resource efficient products",null,null,null,null,null,{"$f":"IF(TRIM(J106)=\"\", \"\", IF(VLOOKUP(J106,'Footnotes list'!$D$9:$E$58,2,FALSE)=0,\"\",VLOOKUP(J106,'Footnotes list'!$D$9:$E$58,2,FALSE) ) )","v":""},null,null,null,null,{"$f":"IF(TRIM(O106)=\"\", \"\", IF(VLOOKUP(O106,'Footnotes list'!$D$9:$E$58,2,FALSE)=0,\"\",VLOOKUP(O106,'Footnotes list'!$D$9:$E$58,2,FALSE) ) )","v":""},null,null,null,null,{"$f":"IF(TRIM(T106)=\"\", \"\", IF(VLOOKUP(T106,'Footnotes list'!$D$9:$E$58,2,FALSE)=0,\"\",VLOOKUP(T106,'Footnotes list'!$D$9:$E$58,2,FALSE) ) )","v":""},null,null,null,null,{"$f":"IF(TRIM(Y106)=\"\", \"\", IF(VLOOKUP(Y106,'Footnotes list'!$D$9:$E$58,2,FALSE)=0,\"\",VLOOKUP(Y106,'Footnotes list'!$D$9:$E$58,2,FALSE) ) )","v":""},null,null,null,null,{"$f":"IF(TRIM(AD106)=\"\", \"\", IF(VLOOKUP(AD106,'Footnotes list'!$D$9:$E$58,2,FALSE)=0,\"\",VLOOKUP(AD106,'Footnotes list'!$D$9:$E$58,2,FALSE) ) )","v":""},null,null,null,null,{"$f":"IF(TRIM(AI106)=\"\", \"\", IF(VLOOKUP(AI106,'Footnotes list'!$D$9:$E$58,2,FALSE)=0,\"\",VLOOKUP(AI106,'Footnotes list'!$D$9:$E$58,2,FALSE) ) )","v":""},null,null,null,null,{"$f":"IF(TRIM(AN106)=\"\", \"\", IF(VLOOKUP(AN106,'Footnotes list'!$D$9:$E$58,2,FALSE)=0,\"\",VLOOKUP(AN106,'Footnotes list'!$D$9:$E$58,2,FALSE) ) )","v":""},null,null,null,null,{"$f":"IF(TRIM(AS106)=\"\", \"\", IF(VLOOKUP(AS106,'Footnotes list'!$D$9:$E$58,2,FALSE)=0,\"\",VLOOKUP(AS106,'Footnotes list'!$D$9:$E$58,2,FALSE) ) )","v":""},null,null,null,null,{"$f":"IF(TRIM(AX106)=\"\", \"\", IF(VLOOKUP(AX106,'Footnotes list'!$D$9:$E$58,2,FALSE)=0,\"\",VLOOKUP(AX106,'Footnotes list'!$D$9:$E$58,2,FALSE) ) )","v":""},null,null,null,null,{"$f":"IF(TRIM(BC106)=\"\", \"\", IF(VLOOKUP(BC106,'Footnotes list'!$D$9:$E$58,2,FALSE)=0,\"\",VLOOKUP(BC106,'Footnotes list'!$D$9:$E$58,2,FALSE) ) )","v":""},null,null,null,null,{"$f":"IF(TRIM(BH106)=\"\", \"\", IF(VLOOKUP(BH106,'Footnotes list'!$D$9:$E$58,2,FALSE)=0,\"\",VLOOKUP(BH106,'Footnotes list'!$D$9:$E$58,2,FALSE) ) )","v":""},null,null,null,null,{"$f":"IF(TRIM(BM106)=\"\", \"\", IF(VLOOKUP(BM106,'Footnotes list'!$D$9:$E$58,2,FALSE)=0,\"\",VLOOKUP(BM106,'Footnotes list'!$D$9:$E$58,2,FALSE) ) )","v":""},null,null,null,null,{"$f":"IF(TRIM(BR106)=\"\", \"\", IF(VLOOKUP(BR106,'Footnotes list'!$D$9:$E$58,2,FALSE)=0,\"\",VLOOKUP(BR106,'Footnotes list'!$D$9:$E$58,2,FALSE) ) )","v":""},null,null,null,null,{"$f":"IF(TRIM(BW106)=\"\", \"\", IF(VLOOKUP(BW106,'Footnotes list'!$D$9:$E$58,2,FALSE)=0,\"\",VLOOKUP(BW106,'Footnotes list'!$D$9:$E$58,2,FALSE) ) )","v":""},null,null,null,null,{"$f":"IF(TRIM(CB106)=\"\", \"\", IF(VLOOKUP(CB106,'Footnotes list'!$D$9:$E$58,2,FALSE)=0,\"\",VLOOKUP(CB106,'Footnotes list'!$D$9:$E$58,2,FALSE) ) )","v":""},null,null,null,null,{"$f":"IF(TRIM(CG106)=\"\", \"\", IF(VLOOKUP(CG106,'Footnotes list'!$D$9:$E$58,2,FALSE)=0,\"\",VLOOKUP(CG106,'Footnotes list'!$D$9:$E$58,2,FALSE) ) )","v":""},null,null,null,null,{"$f":"IF(TRIM(CL106)=\"\", \"\", IF(VLOOKUP(CL106,'Footnotes list'!$D$9:$E$58,2,FALSE)=0,\"\",VLOOKUP(CL106,'Footnotes list'!$D$9:$E$58,2,FALSE) ) )","v":""},null,null,null,null,{"$f":"IF(TRIM(CQ106)=\"\", \"\", IF(VLOOKUP(CQ106,'Footnotes list'!$D$9:$E$58,2,FALSE)=0,\"\",VLOOKUP(CQ106,'Footnotes list'!$D$9:$E$58,2,FALSE) ) )","v":""},null,null,null,null,{"$f":"IF(TRIM(CV106)=\"\", \"\", IF(VLOOKUP(CV106,'Footnotes list'!$D$9:$E$58,2,FALSE)=0,\"\",VLOOKUP(CV106,'Footnotes list'!$D$9:$E$58,2,FALSE) ) )","v":""},null,null,null,null,{"$f":"IF(TRIM(DA106)=\"\", \"\", IF(VLOOKUP(DA106,'Footnotes list'!$D$9:$E$58,2,FALSE)=0,\"\",VLOOKUP(DA106,'Footnotes list'!$D$9:$E$58,2,FALSE) ) )","v":""},null,null,null,null,{"$f":"IF(TRIM(DF106)=\"\", \"\", IF(VLOOKUP(DF106,'Footnotes list'!$D$9:$E$58,2,FALSE)=0,\"\",VLOOKUP(DF106,'Footnotes list'!$D$9:$E$58,2,FALSE) ) )","v":""},null,null,null,null,{"$f":"IF(TRIM(DK106)=\"\", \"\", IF(VLOOKUP(DK106,'Footnotes list'!$D$9:$E$58,2,FALSE)=0,\"\",VLOOKUP(DK106,'Footnotes list'!$D$9:$E$58,2,FALSE) ) )","v":""},null,null,null,null,{"$f":"IF(TRIM(DP106)=\"\", \"\", IF(VLOOKUP(DP106,'Footnotes list'!$D$9:$E$58,2,FALSE)=0,\"\",VLOOKUP(DP106,'Footnotes list'!$D$9:$E$58,2,FALSE) ) )","v":""},null,null,null,null,{"$f":"IF(TRIM(DU106)=\"\", \"\", IF(VLOOKUP(DU106,'Footnotes list'!$D$9:$E$58,2,FALSE)=0,\"\",VLOOKUP(DU106,'Footnotes list'!$D$9:$E$58,2,FALSE) ) )","v":""},null,null,null,null,{"$f":"IF(TRIM(DZ106)=\"\", \"\", IF(VLOOKUP(DZ106,'Footnotes list'!$D$9:$E$58,2,FALSE)=0,\"\",VLOOKUP(DZ106,'Footnotes list'!$D$9:$E$58,2,FALSE) ) )","v":""},null,null,null,null,{"$f":"IF(TRIM(EE106)=\"\", \"\", IF(VLOOKUP(EE106,'Footnotes list'!$D$9:$E$58,2,FALSE)=0,\"\",VLOOKUP(EE106,'Footnotes list'!$D$9:$E$58,2,FALSE) ) )","v":""},null,null,null,null,{"$f":"IF(TRIM(EJ106)=\"\", \"\", IF(VLOOKUP(EJ106,'Footnotes list'!$D$9:$E$58,2,FALSE)=0,\"\",VLOOKUP(EJ106,'Footnotes list'!$D$9:$E$58,2,FALSE) ) )","v":""},null,null,null,null,{"$f":"IF(TRIM(EO106)=\"\", \"\", IF(VLOOKUP(EO106,'Footnotes list'!$D$9:$E$58,2,FALSE)=0,\"\",VLOOKUP(EO106,'Footnotes list'!$D$9:$E$58,2,FALSE) ) )","v":""},null,null,null,null,{"$f":"IF(TRIM(ET106)=\"\", \"\", IF(VLOOKUP(ET106,'Footnotes list'!$D$9:$E$58,2,FALSE)=0,\"\",VLOOKUP(ET106,'Footnotes list'!$D$9:$E$58,2,FALSE) ) )","v":""},null,null,null,null,{"$f":"IF(TRIM(EY106)=\"\", \"\", IF(VLOOKUP(EY106,'Footnotes list'!$D$9:$E$58,2,FALSE)=0,\"\",VLOOKUP(EY106,'Footnotes list'!$D$9:$E$58,2,FALSE) ) )","v":""}]
[null,null,"M72","TOT_EGSS","Total M72 - Scientific research and development, including:",null,null,null,null,null,{"$f":"IF(TRIM(J107)=\"\", \"\", IF(VLOOKUP(J107,'Footnotes list'!$D$9:$E$58,2,FALSE)=0,\"\",VLOOKUP(J107,'Footnotes list'!$D$9:$E$58,2,FALSE) ) )","v":""},null,null,null,null,{"$f":"IF(TRIM(O107)=\"\", \"\", IF(VLOOKUP(O107,'Footnotes list'!$D$9:$E$58,2,FALSE)=0,\"\",VLOOKUP(O107,'Footnotes list'!$D$9:$E$58,2,FALSE) ) )","v":""},null,null,null,null,{"$f":"IF(TRIM(T107)=\"\", \"\", IF(VLOOKUP(T107,'Footnotes list'!$D$9:$E$58,2,FALSE)=0,\"\",VLOOKUP(T107,'Footnotes list'!$D$9:$E$58,2,FALSE) ) )","v":""},null,null,null,null,{"$f":"IF(TRIM(Y107)=\"\", \"\", IF(VLOOKUP(Y107,'Footnotes list'!$D$9:$E$58,2,FALSE)=0,\"\",VLOOKUP(Y107,'Footnotes list'!$D$9:$E$58,2,FALSE) ) )","v":""},null,null,null,null,{"$f":"IF(TRIM(AD107)=\"\", \"\", IF(VLOOKUP(AD107,'Footnotes list'!$D$9:$E$58,2,FALSE)=0,\"\",VLOOKUP(AD107,'Footnotes list'!$D$9:$E$58,2,FALSE) ) )","v":""},null,null,null,null,{"$f":"IF(TRIM(AI107)=\"\", \"\", IF(VLOOKUP(AI107,'Footnotes list'!$D$9:$E$58,2,FALSE)=0,\"\",VLOOKUP(AI107,'Footnotes list'!$D$9:$E$58,2,FALSE) ) )","v":""},null,null,null,null,{"$f":"IF(TRIM(AN107)=\"\", \"\", IF(VLOOKUP(AN107,'Footnotes list'!$D$9:$E$58,2,FALSE)=0,\"\",VLOOKUP(AN107,'Footnotes list'!$D$9:$E$58,2,FALSE) ) )","v":""},null,null,null,null,{"$f":"IF(TRIM(AS107)=\"\", \"\", IF(VLOOKUP(AS107,'Footnotes list'!$D$9:$E$58,2,FALSE)=0,\"\",VLOOKUP(AS107,'Footnotes list'!$D$9:$E$58,2,FALSE) ) )","v":""},null,null,null,null,{"$f":"IF(TRIM(AX107)=\"\", \"\", IF(VLOOKUP(AX107,'Footnotes list'!$D$9:$E$58,2,FALSE)=0,\"\",VLOOKUP(AX107,'Footnotes list'!$D$9:$E$58,2,FALSE) ) )","v":""},null,null,null,null,{"$f":"IF(TRIM(BC107)=\"\", \"\", IF(VLOOKUP(BC107,'Footnotes list'!$D$9:$E$58,2,FALSE)=0,\"\",VLOOKUP(BC107,'Footnotes list'!$D$9:$E$58,2,FALSE) ) )","v":""},null,null,null,null,{"$f":"IF(TRIM(BH107)=\"\", \"\", IF(VLOOKUP(BH107,'Footnotes list'!$D$9:$E$58,2,FALSE)=0,\"\",VLOOKUP(BH107,'Footnotes list'!$D$9:$E$58,2,FALSE) ) )","v":""},null,null,null,null,{"$f":"IF(TRIM(BM107)=\"\", \"\", IF(VLOOKUP(BM107,'Footnotes list'!$D$9:$E$58,2,FALSE)=0,\"\",VLOOKUP(BM107,'Footnotes list'!$D$9:$E$58,2,FALSE) ) )","v":""},null,null,null,null,{"$f":"IF(TRIM(BR107)=\"\", \"\", IF(VLOOKUP(BR107,'Footnotes list'!$D$9:$E$58,2,FALSE)=0,\"\",VLOOKUP(BR107,'Footnotes list'!$D$9:$E$58,2,FALSE) ) )","v":""},null,null,null,null,{"$f":"IF(TRIM(BW107)=\"\", \"\", IF(VLOOKUP(BW107,'Footnotes list'!$D$9:$E$58,2,FALSE)=0,\"\",VLOOKUP(BW107,'Footnotes list'!$D$9:$E$58,2,FALSE) ) )","v":""},null,null,null,null,{"$f":"IF(TRIM(CB107)=\"\", \"\", IF(VLOOKUP(CB107,'Footnotes list'!$D$9:$E$58,2,FALSE)=0,\"\",VLOOKUP(CB107,'Footnotes list'!$D$9:$E$58,2,FALSE) ) )","v":""},null,null,null,null,{"$f":"IF(TRIM(CG107)=\"\", \"\", IF(VLOOKUP(CG107,'Footnotes list'!$D$9:$E$58,2,FALSE)=0,\"\",VLOOKUP(CG107,'Footnotes list'!$D$9:$E$58,2,FALSE) ) )","v":""},null,null,null,null,{"$f":"IF(TRIM(CL107)=\"\", \"\", IF(VLOOKUP(CL107,'Footnotes list'!$D$9:$E$58,2,FALSE)=0,\"\",VLOOKUP(CL107,'Footnotes list'!$D$9:$E$58,2,FALSE) ) )","v":""},null,null,null,null,{"$f":"IF(TRIM(CQ107)=\"\", \"\", IF(VLOOKUP(CQ107,'Footnotes list'!$D$9:$E$58,2,FALSE)=0,\"\",VLOOKUP(CQ107,'Footnotes list'!$D$9:$E$58,2,FALSE) ) )","v":""},null,null,null,null,{"$f":"IF(TRIM(CV107)=\"\", \"\", IF(VLOOKUP(CV107,'Footnotes list'!$D$9:$E$58,2,FALSE)=0,\"\",VLOOKUP(CV107,'Footnotes list'!$D$9:$E$58,2,FALSE) ) )","v":""},null,null,null,null,{"$f":"IF(TRIM(DA107)=\"\", \"\", IF(VLOOKUP(DA107,'Footnotes list'!$D$9:$E$58,2,FALSE)=0,\"\",VLOOKUP(DA107,'Footnotes list'!$D$9:$E$58,2,FALSE) ) )","v":""},null,null,null,null,{"$f":"IF(TRIM(DF107)=\"\", \"\", IF(VLOOKUP(DF107,'Footnotes list'!$D$9:$E$58,2,FALSE)=0,\"\",VLOOKUP(DF107,'Footnotes list'!$D$9:$E$58,2,FALSE) ) )","v":""},null,null,null,null,{"$f":"IF(TRIM(DK107)=\"\", \"\", IF(VLOOKUP(DK107,'Footnotes list'!$D$9:$E$58,2,FALSE)=0,\"\",VLOOKUP(DK107,'Footnotes list'!$D$9:$E$58,2,FALSE) ) )","v":""},null,null,null,null,{"$f":"IF(TRIM(DP107)=\"\", \"\", IF(VLOOKUP(DP107,'Footnotes list'!$D$9:$E$58,2,FALSE)=0,\"\",VLOOKUP(DP107,'Footnotes list'!$D$9:$E$58,2,FALSE) ) )","v":""},null,null,null,null,{"$f":"IF(TRIM(DU107)=\"\", \"\", IF(VLOOKUP(DU107,'Footnotes list'!$D$9:$E$58,2,FALSE)=0,\"\",VLOOKUP(DU107,'Footnotes list'!$D$9:$E$58,2,FALSE) ) )","v":""},null,null,null,null,{"$f":"IF(TRIM(DZ107)=\"\", \"\", IF(VLOOKUP(DZ107,'Footnotes list'!$D$9:$E$58,2,FALSE)=0,\"\",VLOOKUP(DZ107,'Footnotes list'!$D$9:$E$58,2,FALSE) ) )","v":""},null,null,null,null,{"$f":"IF(TRIM(EE107)=\"\", \"\", IF(VLOOKUP(EE107,'Footnotes list'!$D$9:$E$58,2,FALSE)=0,\"\",VLOOKUP(EE107,'Footnotes list'!$D$9:$E$58,2,FALSE) ) )","v":""},null,null,null,null,{"$f":"IF(TRIM(EJ107)=\"\", \"\", IF(VLOOKUP(EJ107,'Footnotes list'!$D$9:$E$58,2,FALSE)=0,\"\",VLOOKUP(EJ107,'Footnotes list'!$D$9:$E$58,2,FALSE) ) )","v":""},null,null,null,null,{"$f":"IF(TRIM(EO107)=\"\", \"\", IF(VLOOKUP(EO107,'Footnotes list'!$D$9:$E$58,2,FALSE)=0,\"\",VLOOKUP(EO107,'Footnotes list'!$D$9:$E$58,2,FALSE) ) )","v":""},null,null,null,null,{"$f":"IF(TRIM(ET107)=\"\", \"\", IF(VLOOKUP(ET107,'Footnotes list'!$D$9:$E$58,2,FALSE)=0,\"\",VLOOKUP(ET107,'Footnotes list'!$D$9:$E$58,2,FALSE) ) )","v":""},null,null,null,null,{"$f":"IF(TRIM(EY107)=\"\", \"\", IF(VLOOKUP(EY107,'Footnotes list'!$D$9:$E$58,2,FALSE)=0,\"\",VLOOKUP(EY107,'Footnotes list'!$D$9:$E$58,2,FALSE) ) )","v":""}]
[null,null,"M72","ES_CS","environmental specific services",null,null,null,null,null,{"$f":"IF(TRIM(J108)=\"\", \"\", IF(VLOOKUP(J108,'Footnotes list'!$D$9:$E$58,2,FALSE)=0,\"\",VLOOKUP(J108,'Footnotes list'!$D$9:$E$58,2,FALSE) ) )","v":""},null,null,null,null,{"$f":"IF(TRIM(O108)=\"\", \"\", IF(VLOOKUP(O108,'Footnotes list'!$D$9:$E$58,2,FALSE)=0,\"\",VLOOKUP(O108,'Footnotes list'!$D$9:$E$58,2,FALSE) ) )","v":""},null,null,null,null,{"$f":"IF(TRIM(T108)=\"\", \"\", IF(VLOOKUP(T108,'Footnotes list'!$D$9:$E$58,2,FALSE)=0,\"\",VLOOKUP(T108,'Footnotes list'!$D$9:$E$58,2,FALSE) ) )","v":""},null,null,null,null,{"$f":"IF(TRIM(Y108)=\"\", \"\", IF(VLOOKUP(Y108,'Footnotes list'!$D$9:$E$58,2,FALSE)=0,\"\",VLOOKUP(Y108,'Footnotes list'!$D$9:$E$58,2,FALSE) ) )","v":""},null,null,null,null,{"$f":"IF(TRIM(AD108)=\"\", \"\", IF(VLOOKUP(AD108,'Footnotes list'!$D$9:$E$58,2,FALSE)=0,\"\",VLOOKUP(AD108,'Footnotes list'!$D$9:$E$58,2,FALSE) ) )","v":""},null,null,null,null,{"$f":"IF(TRIM(AI108)=\"\", \"\", IF(VLOOKUP(AI108,'Footnotes list'!$D$9:$E$58,2,FALSE)=0,\"\",VLOOKUP(AI108,'Footnotes list'!$D$9:$E$58,2,FALSE) ) )","v":""},null,null,null,null,{"$f":"IF(TRIM(AN108)=\"\", \"\", IF(VLOOKUP(AN108,'Footnotes list'!$D$9:$E$58,2,FALSE)=0,\"\",VLOOKUP(AN108,'Footnotes list'!$D$9:$E$58,2,FALSE) ) )","v":""},null,null,null,null,{"$f":"IF(TRIM(AS108)=\"\", \"\", IF(VLOOKUP(AS108,'Footnotes list'!$D$9:$E$58,2,FALSE)=0,\"\",VLOOKUP(AS108,'Footnotes list'!$D$9:$E$58,2,FALSE) ) )","v":""},null,null,null,null,{"$f":"IF(TRIM(AX108)=\"\", \"\", IF(VLOOKUP(AX108,'Footnotes list'!$D$9:$E$58,2,FALSE)=0,\"\",VLOOKUP(AX108,'Footnotes list'!$D$9:$E$58,2,FALSE) ) )","v":""},null,null,null,null,{"$f":"IF(TRIM(BC108)=\"\", \"\", IF(VLOOKUP(BC108,'Footnotes list'!$D$9:$E$58,2,FALSE)=0,\"\",VLOOKUP(BC108,'Footnotes list'!$D$9:$E$58,2,FALSE) ) )","v":""},null,null,null,null,{"$f":"IF(TRIM(BH108)=\"\", \"\", IF(VLOOKUP(BH108,'Footnotes list'!$D$9:$E$58,2,FALSE)=0,\"\",VLOOKUP(BH108,'Footnotes list'!$D$9:$E$58,2,FALSE) ) )","v":""},null,null,null,null,{"$f":"IF(TRIM(BM108)=\"\", \"\", IF(VLOOKUP(BM108,'Footnotes list'!$D$9:$E$58,2,FALSE)=0,\"\",VLOOKUP(BM108,'Footnotes list'!$D$9:$E$58,2,FALSE) ) )","v":""},null,null,null,null,{"$f":"IF(TRIM(BR108)=\"\", \"\", IF(VLOOKUP(BR108,'Footnotes list'!$D$9:$E$58,2,FALSE)=0,\"\",VLOOKUP(BR108,'Footnotes list'!$D$9:$E$58,2,FALSE) ) )","v":""},null,null,null,null,{"$f":"IF(TRIM(BW108)=\"\", \"\", IF(VLOOKUP(BW108,'Footnotes list'!$D$9:$E$58,2,FALSE)=0,\"\",VLOOKUP(BW108,'Footnotes list'!$D$9:$E$58,2,FALSE) ) )","v":""},null,null,null,null,{"$f":"IF(TRIM(CB108)=\"\", \"\", IF(VLOOKUP(CB108,'Footnotes list'!$D$9:$E$58,2,FALSE)=0,\"\",VLOOKUP(CB108,'Footnotes list'!$D$9:$E$58,2,FALSE) ) )","v":""},null,null,null,null,{"$f":"IF(TRIM(CG108)=\"\", \"\", IF(VLOOKUP(CG108,'Footnotes list'!$D$9:$E$58,2,FALSE)=0,\"\",VLOOKUP(CG108,'Footnotes list'!$D$9:$E$58,2,FALSE) ) )","v":""},null,null,null,null,{"$f":"IF(TRIM(CL108)=\"\", \"\", IF(VLOOKUP(CL108,'Footnotes list'!$D$9:$E$58,2,FALSE)=0,\"\",VLOOKUP(CL108,'Footnotes list'!$D$9:$E$58,2,FALSE) ) )","v":""},null,null,null,null,{"$f":"IF(TRIM(CQ108)=\"\", \"\", IF(VLOOKUP(CQ108,'Footnotes list'!$D$9:$E$58,2,FALSE)=0,\"\",VLOOKUP(CQ108,'Footnotes list'!$D$9:$E$58,2,FALSE) ) )","v":""},null,null,null,null,{"$f":"IF(TRIM(CV108)=\"\", \"\", IF(VLOOKUP(CV108,'Footnotes list'!$D$9:$E$58,2,FALSE)=0,\"\",VLOOKUP(CV108,'Footnotes list'!$D$9:$E$58,2,FALSE) ) )","v":""},null,null,null,null,{"$f":"IF(TRIM(DA108)=\"\", \"\", IF(VLOOKUP(DA108,'Footnotes list'!$D$9:$E$58,2,FALSE)=0,\"\",VLOOKUP(DA108,'Footnotes list'!$D$9:$E$58,2,FALSE) ) )","v":""},null,null,null,null,{"$f":"IF(TRIM(DF108)=\"\", \"\", IF(VLOOKUP(DF108,'Footnotes list'!$D$9:$E$58,2,FALSE)=0,\"\",VLOOKUP(DF108,'Footnotes list'!$D$9:$E$58,2,FALSE) ) )","v":""},null,null,null,null,{"$f":"IF(TRIM(DK108)=\"\", \"\", IF(VLOOKUP(DK108,'Footnotes list'!$D$9:$E$58,2,FALSE)=0,\"\",VLOOKUP(DK108,'Footnotes list'!$D$9:$E$58,2,FALSE) ) )","v":""},null,null,null,null,{"$f":"IF(TRIM(DP108)=\"\", \"\", IF(VLOOKUP(DP108,'Footnotes list'!$D$9:$E$58,2,FALSE)=0,\"\",VLOOKUP(DP108,'Footnotes list'!$D$9:$E$58,2,FALSE) ) )","v":""},null,null,null,null,{"$f":"IF(TRIM(DU108)=\"\", \"\", IF(VLOOKUP(DU108,'Footnotes list'!$D$9:$E$58,2,FALSE)=0,\"\",VLOOKUP(DU108,'Footnotes list'!$D$9:$E$58,2,FALSE) ) )","v":""},null,null,null,null,{"$f":"IF(TRIM(DZ108)=\"\", \"\", IF(VLOOKUP(DZ108,'Footnotes list'!$D$9:$E$58,2,FALSE)=0,\"\",VLOOKUP(DZ108,'Footnotes list'!$D$9:$E$58,2,FALSE) ) )","v":""},null,null,null,null,{"$f":"IF(TRIM(EE108)=\"\", \"\", IF(VLOOKUP(EE108,'Footnotes list'!$D$9:$E$58,2,FALSE)=0,\"\",VLOOKUP(EE108,'Footnotes list'!$D$9:$E$58,2,FALSE) ) )","v":""},null,null,null,null,{"$f":"IF(TRIM(EJ108)=\"\", \"\", IF(VLOOKUP(EJ108,'Footnotes list'!$D$9:$E$58,2,FALSE)=0,\"\",VLOOKUP(EJ108,'Footnotes list'!$D$9:$E$58,2,FALSE) ) )","v":""},null,null,null,null,{"$f":"IF(TRIM(EO108)=\"\", \"\", IF(VLOOKUP(EO108,'Footnotes list'!$D$9:$E$58,2,FALSE)=0,\"\",VLOOKUP(EO108,'Footnotes list'!$D$9:$E$58,2,FALSE) ) )","v":""},null,null,null,null,{"$f":"IF(TRIM(ET108)=\"\", \"\", IF(VLOOKUP(ET108,'Footnotes list'!$D$9:$E$58,2,FALSE)=0,\"\",VLOOKUP(ET108,'Footnotes list'!$D$9:$E$58,2,FALSE) ) )","v":""},null,null,null,null,{"$f":"IF(TRIM(EY108)=\"\", \"\", IF(VLOOKUP(EY108,'Footnotes list'!$D$9:$E$58,2,FALSE)=0,\"\",VLOOKUP(EY108,'Footnotes list'!$D$9:$E$58,2,FALSE) ) )","v":""}]
[null,null,"M72","C_REP","cleaner and resource efficient products",null,null,null,null,null,{"$f":"IF(TRIM(J109)=\"\", \"\", IF(VLOOKUP(J109,'Footnotes list'!$D$9:$E$58,2,FALSE)=0,\"\",VLOOKUP(J109,'Footnotes list'!$D$9:$E$58,2,FALSE) ) )","v":""},null,null,null,null,{"$f":"IF(TRIM(O109)=\"\", \"\", IF(VLOOKUP(O109,'Footnotes list'!$D$9:$E$58,2,FALSE)=0,\"\",VLOOKUP(O109,'Footnotes list'!$D$9:$E$58,2,FALSE) ) )","v":""},null,null,null,null,{"$f":"IF(TRIM(T109)=\"\", \"\", IF(VLOOKUP(T109,'Footnotes list'!$D$9:$E$58,2,FALSE)=0,\"\",VLOOKUP(T109,'Footnotes list'!$D$9:$E$58,2,FALSE) ) )","v":""},null,null,null,null,{"$f":"IF(TRIM(Y109)=\"\", \"\", IF(VLOOKUP(Y109,'Footnotes list'!$D$9:$E$58,2,FALSE)=0,\"\",VLOOKUP(Y109,'Footnotes list'!$D$9:$E$58,2,FALSE) ) )","v":""},null,null,null,null,{"$f":"IF(TRIM(AD109)=\"\", \"\", IF(VLOOKUP(AD109,'Footnotes list'!$D$9:$E$58,2,FALSE)=0,\"\",VLOOKUP(AD109,'Footnotes list'!$D$9:$E$58,2,FALSE) ) )","v":""},null,null,null,null,{"$f":"IF(TRIM(AI109)=\"\", \"\", IF(VLOOKUP(AI109,'Footnotes list'!$D$9:$E$58,2,FALSE)=0,\"\",VLOOKUP(AI109,'Footnotes list'!$D$9:$E$58,2,FALSE) ) )","v":""},null,null,null,null,{"$f":"IF(TRIM(AN109)=\"\", \"\", IF(VLOOKUP(AN109,'Footnotes list'!$D$9:$E$58,2,FALSE)=0,\"\",VLOOKUP(AN109,'Footnotes list'!$D$9:$E$58,2,FALSE) ) )","v":""},null,null,null,null,{"$f":"IF(TRIM(AS109)=\"\", \"\", IF(VLOOKUP(AS109,'Footnotes list'!$D$9:$E$58,2,FALSE)=0,\"\",VLOOKUP(AS109,'Footnotes list'!$D$9:$E$58,2,FALSE) ) )","v":""},null,null,null,null,{"$f":"IF(TRIM(AX109)=\"\", \"\", IF(VLOOKUP(AX109,'Footnotes list'!$D$9:$E$58,2,FALSE)=0,\"\",VLOOKUP(AX109,'Footnotes list'!$D$9:$E$58,2,FALSE) ) )","v":""},null,null,null,null,{"$f":"IF(TRIM(BC109)=\"\", \"\", IF(VLOOKUP(BC109,'Footnotes list'!$D$9:$E$58,2,FALSE)=0,\"\",VLOOKUP(BC109,'Footnotes list'!$D$9:$E$58,2,FALSE) ) )","v":""},null,null,null,null,{"$f":"IF(TRIM(BH109)=\"\", \"\", IF(VLOOKUP(BH109,'Footnotes list'!$D$9:$E$58,2,FALSE)=0,\"\",VLOOKUP(BH109,'Footnotes list'!$D$9:$E$58,2,FALSE) ) )","v":""},null,null,null,null,{"$f":"IF(TRIM(BM109)=\"\", \"\", IF(VLOOKUP(BM109,'Footnotes list'!$D$9:$E$58,2,FALSE)=0,\"\",VLOOKUP(BM109,'Footnotes list'!$D$9:$E$58,2,FALSE) ) )","v":""},null,null,null,null,{"$f":"IF(TRIM(BR109)=\"\", \"\", IF(VLOOKUP(BR109,'Footnotes list'!$D$9:$E$58,2,FALSE)=0,\"\",VLOOKUP(BR109,'Footnotes list'!$D$9:$E$58,2,FALSE) ) )","v":""},null,null,null,null,{"$f":"IF(TRIM(BW109)=\"\", \"\", IF(VLOOKUP(BW109,'Footnotes list'!$D$9:$E$58,2,FALSE)=0,\"\",VLOOKUP(BW109,'Footnotes list'!$D$9:$E$58,2,FALSE) ) )","v":""},null,null,null,null,{"$f":"IF(TRIM(CB109)=\"\", \"\", IF(VLOOKUP(CB109,'Footnotes list'!$D$9:$E$58,2,FALSE)=0,\"\",VLOOKUP(CB109,'Footnotes list'!$D$9:$E$58,2,FALSE) ) )","v":""},null,null,null,null,{"$f":"IF(TRIM(CG109)=\"\", \"\", IF(VLOOKUP(CG109,'Footnotes list'!$D$9:$E$58,2,FALSE)=0,\"\",VLOOKUP(CG109,'Footnotes list'!$D$9:$E$58,2,FALSE) ) )","v":""},null,null,null,null,{"$f":"IF(TRIM(CL109)=\"\", \"\", IF(VLOOKUP(CL109,'Footnotes list'!$D$9:$E$58,2,FALSE)=0,\"\",VLOOKUP(CL109,'Footnotes list'!$D$9:$E$58,2,FALSE) ) )","v":""},null,null,null,null,{"$f":"IF(TRIM(CQ109)=\"\", \"\", IF(VLOOKUP(CQ109,'Footnotes list'!$D$9:$E$58,2,FALSE)=0,\"\",VLOOKUP(CQ109,'Footnotes list'!$D$9:$E$58,2,FALSE) ) )","v":""},null,null,null,null,{"$f":"IF(TRIM(CV109)=\"\", \"\", IF(VLOOKUP(CV109,'Footnotes list'!$D$9:$E$58,2,FALSE)=0,\"\",VLOOKUP(CV109,'Footnotes list'!$D$9:$E$58,2,FALSE) ) )","v":""},null,null,null,null,{"$f":"IF(TRIM(DA109)=\"\", \"\", IF(VLOOKUP(DA109,'Footnotes list'!$D$9:$E$58,2,FALSE)=0,\"\",VLOOKUP(DA109,'Footnotes list'!$D$9:$E$58,2,FALSE) ) )","v":""},null,null,null,null,{"$f":"IF(TRIM(DF109)=\"\", \"\", IF(VLOOKUP(DF109,'Footnotes list'!$D$9:$E$58,2,FALSE)=0,\"\",VLOOKUP(DF109,'Footnotes list'!$D$9:$E$58,2,FALSE) ) )","v":""},null,null,null,null,{"$f":"IF(TRIM(DK109)=\"\", \"\", IF(VLOOKUP(DK109,'Footnotes list'!$D$9:$E$58,2,FALSE)=0,\"\",VLOOKUP(DK109,'Footnotes list'!$D$9:$E$58,2,FALSE) ) )","v":""},null,null,null,null,{"$f":"IF(TRIM(DP109)=\"\", \"\", IF(VLOOKUP(DP109,'Footnotes list'!$D$9:$E$58,2,FALSE)=0,\"\",VLOOKUP(DP109,'Footnotes list'!$D$9:$E$58,2,FALSE) ) )","v":""},null,null,null,null,{"$f":"IF(TRIM(DU109)=\"\", \"\", IF(VLOOKUP(DU109,'Footnotes list'!$D$9:$E$58,2,FALSE)=0,\"\",VLOOKUP(DU109,'Footnotes list'!$D$9:$E$58,2,FALSE) ) )","v":""},null,null,null,null,{"$f":"IF(TRIM(DZ109)=\"\", \"\", IF(VLOOKUP(DZ109,'Footnotes list'!$D$9:$E$58,2,FALSE)=0,\"\",VLOOKUP(DZ109,'Footnotes list'!$D$9:$E$58,2,FALSE) ) )","v":""},null,null,null,null,{"$f":"IF(TRIM(EE109)=\"\", \"\", IF(VLOOKUP(EE109,'Footnotes list'!$D$9:$E$58,2,FALSE)=0,\"\",VLOOKUP(EE109,'Footnotes list'!$D$9:$E$58,2,FALSE) ) )","v":""},null,null,null,null,{"$f":"IF(TRIM(EJ109)=\"\", \"\", IF(VLOOKUP(EJ109,'Footnotes list'!$D$9:$E$58,2,FALSE)=0,\"\",VLOOKUP(EJ109,'Footnotes list'!$D$9:$E$58,2,FALSE) ) )","v":""},null,null,null,null,{"$f":"IF(TRIM(EO109)=\"\", \"\", IF(VLOOKUP(EO109,'Footnotes list'!$D$9:$E$58,2,FALSE)=0,\"\",VLOOKUP(EO109,'Footnotes list'!$D$9:$E$58,2,FALSE) ) )","v":""},null,null,null,null,{"$f":"IF(TRIM(ET109)=\"\", \"\", IF(VLOOKUP(ET109,'Footnotes list'!$D$9:$E$58,2,FALSE)=0,\"\",VLOOKUP(ET109,'Footnotes list'!$D$9:$E$58,2,FALSE) ) )","v":""},null,null,null,null,{"$f":"IF(TRIM(EY109)=\"\", \"\", IF(VLOOKUP(EY109,'Footnotes list'!$D$9:$E$58,2,FALSE)=0,\"\",VLOOKUP(EY109,'Footnotes list'!$D$9:$E$58,2,FALSE) ) )","v":""}]
[null,null,"M73-M75","TOT_EGSS","Total M73-M75 - Advertising and market research; Other professional, scientific and technical activities; Veterinary activities, including:",null,null,null,null,null,{"$f":"IF(TRIM(J110)=\"\", \"\", IF(VLOOKUP(J110,'Footnotes list'!$D$9:$E$58,2,FALSE)=0,\"\",VLOOKUP(J110,'Footnotes list'!$D$9:$E$58,2,FALSE) ) )","v":""},null,null,null,null,{"$f":"IF(TRIM(O110)=\"\", \"\", IF(VLOOKUP(O110,'Footnotes list'!$D$9:$E$58,2,FALSE)=0,\"\",VLOOKUP(O110,'Footnotes list'!$D$9:$E$58,2,FALSE) ) )","v":""},null,null,null,null,{"$f":"IF(TRIM(T110)=\"\", \"\", IF(VLOOKUP(T110,'Footnotes list'!$D$9:$E$58,2,FALSE)=0,\"\",VLOOKUP(T110,'Footnotes list'!$D$9:$E$58,2,FALSE) ) )","v":""},null,null,null,null,{"$f":"IF(TRIM(Y110)=\"\", \"\", IF(VLOOKUP(Y110,'Footnotes list'!$D$9:$E$58,2,FALSE)=0,\"\",VLOOKUP(Y110,'Footnotes list'!$D$9:$E$58,2,FALSE) ) )","v":""},null,null,null,null,{"$f":"IF(TRIM(AD110)=\"\", \"\", IF(VLOOKUP(AD110,'Footnotes list'!$D$9:$E$58,2,FALSE)=0,\"\",VLOOKUP(AD110,'Footnotes list'!$D$9:$E$58,2,FALSE) ) )","v":""},null,null,null,null,{"$f":"IF(TRIM(AI110)=\"\", \"\", IF(VLOOKUP(AI110,'Footnotes list'!$D$9:$E$58,2,FALSE)=0,\"\",VLOOKUP(AI110,'Footnotes list'!$D$9:$E$58,2,FALSE) ) )","v":""},null,null,null,null,{"$f":"IF(TRIM(AN110)=\"\", \"\", IF(VLOOKUP(AN110,'Footnotes list'!$D$9:$E$58,2,FALSE)=0,\"\",VLOOKUP(AN110,'Footnotes list'!$D$9:$E$58,2,FALSE) ) )","v":""},null,null,null,null,{"$f":"IF(TRIM(AS110)=\"\", \"\", IF(VLOOKUP(AS110,'Footnotes list'!$D$9:$E$58,2,FALSE)=0,\"\",VLOOKUP(AS110,'Footnotes list'!$D$9:$E$58,2,FALSE) ) )","v":""},null,null,null,null,{"$f":"IF(TRIM(AX110)=\"\", \"\", IF(VLOOKUP(AX110,'Footnotes list'!$D$9:$E$58,2,FALSE)=0,\"\",VLOOKUP(AX110,'Footnotes list'!$D$9:$E$58,2,FALSE) ) )","v":""},null,null,null,null,{"$f":"IF(TRIM(BC110)=\"\", \"\", IF(VLOOKUP(BC110,'Footnotes list'!$D$9:$E$58,2,FALSE)=0,\"\",VLOOKUP(BC110,'Footnotes list'!$D$9:$E$58,2,FALSE) ) )","v":""},null,null,null,null,{"$f":"IF(TRIM(BH110)=\"\", \"\", IF(VLOOKUP(BH110,'Footnotes list'!$D$9:$E$58,2,FALSE)=0,\"\",VLOOKUP(BH110,'Footnotes list'!$D$9:$E$58,2,FALSE) ) )","v":""},null,null,null,null,{"$f":"IF(TRIM(BM110)=\"\", \"\", IF(VLOOKUP(BM110,'Footnotes list'!$D$9:$E$58,2,FALSE)=0,\"\",VLOOKUP(BM110,'Footnotes list'!$D$9:$E$58,2,FALSE) ) )","v":""},null,null,null,null,{"$f":"IF(TRIM(BR110)=\"\", \"\", IF(VLOOKUP(BR110,'Footnotes list'!$D$9:$E$58,2,FALSE)=0,\"\",VLOOKUP(BR110,'Footnotes list'!$D$9:$E$58,2,FALSE) ) )","v":""},null,null,null,null,{"$f":"IF(TRIM(BW110)=\"\", \"\", IF(VLOOKUP(BW110,'Footnotes list'!$D$9:$E$58,2,FALSE)=0,\"\",VLOOKUP(BW110,'Footnotes list'!$D$9:$E$58,2,FALSE) ) )","v":""},null,null,null,null,{"$f":"IF(TRIM(CB110)=\"\", \"\", IF(VLOOKUP(CB110,'Footnotes list'!$D$9:$E$58,2,FALSE)=0,\"\",VLOOKUP(CB110,'Footnotes list'!$D$9:$E$58,2,FALSE) ) )","v":""},null,null,null,null,{"$f":"IF(TRIM(CG110)=\"\", \"\", IF(VLOOKUP(CG110,'Footnotes list'!$D$9:$E$58,2,FALSE)=0,\"\",VLOOKUP(CG110,'Footnotes list'!$D$9:$E$58,2,FALSE) ) )","v":""},null,null,null,null,{"$f":"IF(TRIM(CL110)=\"\", \"\", IF(VLOOKUP(CL110,'Footnotes list'!$D$9:$E$58,2,FALSE)=0,\"\",VLOOKUP(CL110,'Footnotes list'!$D$9:$E$58,2,FALSE) ) )","v":""},null,null,null,null,{"$f":"IF(TRIM(CQ110)=\"\", \"\", IF(VLOOKUP(CQ110,'Footnotes list'!$D$9:$E$58,2,FALSE)=0,\"\",VLOOKUP(CQ110,'Footnotes list'!$D$9:$E$58,2,FALSE) ) )","v":""},null,null,null,null,{"$f":"IF(TRIM(CV110)=\"\", \"\", IF(VLOOKUP(CV110,'Footnotes list'!$D$9:$E$58,2,FALSE)=0,\"\",VLOOKUP(CV110,'Footnotes list'!$D$9:$E$58,2,FALSE) ) )","v":""},null,null,null,null,{"$f":"IF(TRIM(DA110)=\"\", \"\", IF(VLOOKUP(DA110,'Footnotes list'!$D$9:$E$58,2,FALSE)=0,\"\",VLOOKUP(DA110,'Footnotes list'!$D$9:$E$58,2,FALSE) ) )","v":""},null,null,null,null,{"$f":"IF(TRIM(DF110)=\"\", \"\", IF(VLOOKUP(DF110,'Footnotes list'!$D$9:$E$58,2,FALSE)=0,\"\",VLOOKUP(DF110,'Footnotes list'!$D$9:$E$58,2,FALSE) ) )","v":""},null,null,null,null,{"$f":"IF(TRIM(DK110)=\"\", \"\", IF(VLOOKUP(DK110,'Footnotes list'!$D$9:$E$58,2,FALSE)=0,\"\",VLOOKUP(DK110,'Footnotes list'!$D$9:$E$58,2,FALSE) ) )","v":""},null,null,null,null,{"$f":"IF(TRIM(DP110)=\"\", \"\", IF(VLOOKUP(DP110,'Footnotes list'!$D$9:$E$58,2,FALSE)=0,\"\",VLOOKUP(DP110,'Footnotes list'!$D$9:$E$58,2,FALSE) ) )","v":""},null,null,null,null,{"$f":"IF(TRIM(DU110)=\"\", \"\", IF(VLOOKUP(DU110,'Footnotes list'!$D$9:$E$58,2,FALSE)=0,\"\",VLOOKUP(DU110,'Footnotes list'!$D$9:$E$58,2,FALSE) ) )","v":""},null,null,null,null,{"$f":"IF(TRIM(DZ110)=\"\", \"\", IF(VLOOKUP(DZ110,'Footnotes list'!$D$9:$E$58,2,FALSE)=0,\"\",VLOOKUP(DZ110,'Footnotes list'!$D$9:$E$58,2,FALSE) ) )","v":""},null,null,null,null,{"$f":"IF(TRIM(EE110)=\"\", \"\", IF(VLOOKUP(EE110,'Footnotes list'!$D$9:$E$58,2,FALSE)=0,\"\",VLOOKUP(EE110,'Footnotes list'!$D$9:$E$58,2,FALSE) ) )","v":""},null,null,null,null,{"$f":"IF(TRIM(EJ110)=\"\", \"\", IF(VLOOKUP(EJ110,'Footnotes list'!$D$9:$E$58,2,FALSE)=0,\"\",VLOOKUP(EJ110,'Footnotes list'!$D$9:$E$58,2,FALSE) ) )","v":""},null,null,null,null,{"$f":"IF(TRIM(EO110)=\"\", \"\", IF(VLOOKUP(EO110,'Footnotes list'!$D$9:$E$58,2,FALSE)=0,\"\",VLOOKUP(EO110,'Footnotes list'!$D$9:$E$58,2,FALSE) ) )","v":""},null,null,null,null,{"$f":"IF(TRIM(ET110)=\"\", \"\", IF(VLOOKUP(ET110,'Footnotes list'!$D$9:$E$58,2,FALSE)=0,\"\",VLOOKUP(ET110,'Footnotes list'!$D$9:$E$58,2,FALSE) ) )","v":""},null,null,null,null,{"$f":"IF(TRIM(EY110)=\"\", \"\", IF(VLOOKUP(EY110,'Footnotes list'!$D$9:$E$58,2,FALSE)=0,\"\",VLOOKUP(EY110,'Footnotes list'!$D$9:$E$58,2,FALSE) ) )","v":""}]
[null,null,"M73-M75","ES_CS","environmental specific services",null,null,null,null,null,{"$f":"IF(TRIM(J111)=\"\", \"\", IF(VLOOKUP(J111,'Footnotes list'!$D$9:$E$58,2,FALSE)=0,\"\",VLOOKUP(J111,'Footnotes list'!$D$9:$E$58,2,FALSE) ) )","v":""},null,null,null,null,{"$f":"IF(TRIM(O111)=\"\", \"\", IF(VLOOKUP(O111,'Footnotes list'!$D$9:$E$58,2,FALSE)=0,\"\",VLOOKUP(O111,'Footnotes list'!$D$9:$E$58,2,FALSE) ) )","v":""},null,null,null,null,{"$f":"IF(TRIM(T111)=\"\", \"\", IF(VLOOKUP(T111,'Footnotes list'!$D$9:$E$58,2,FALSE)=0,\"\",VLOOKUP(T111,'Footnotes list'!$D$9:$E$58,2,FALSE) ) )","v":""},null,null,null,null,{"$f":"IF(TRIM(Y111)=\"\", \"\", IF(VLOOKUP(Y111,'Footnotes list'!$D$9:$E$58,2,FALSE)=0,\"\",VLOOKUP(Y111,'Footnotes list'!$D$9:$E$58,2,FALSE) ) )","v":""},null,null,null,null,{"$f":"IF(TRIM(AD111)=\"\", \"\", IF(VLOOKUP(AD111,'Footnotes list'!$D$9:$E$58,2,FALSE)=0,\"\",VLOOKUP(AD111,'Footnotes list'!$D$9:$E$58,2,FALSE) ) )","v":""},null,null,null,null,{"$f":"IF(TRIM(AI111)=\"\", \"\", IF(VLOOKUP(AI111,'Footnotes list'!$D$9:$E$58,2,FALSE)=0,\"\",VLOOKUP(AI111,'Footnotes list'!$D$9:$E$58,2,FALSE) ) )","v":""},null,null,null,null,{"$f":"IF(TRIM(AN111)=\"\", \"\", IF(VLOOKUP(AN111,'Footnotes list'!$D$9:$E$58,2,FALSE)=0,\"\",VLOOKUP(AN111,'Footnotes list'!$D$9:$E$58,2,FALSE) ) )","v":""},null,null,null,null,{"$f":"IF(TRIM(AS111)=\"\", \"\", IF(VLOOKUP(AS111,'Footnotes list'!$D$9:$E$58,2,FALSE)=0,\"\",VLOOKUP(AS111,'Footnotes list'!$D$9:$E$58,2,FALSE) ) )","v":""},null,null,null,null,{"$f":"IF(TRIM(AX111)=\"\", \"\", IF(VLOOKUP(AX111,'Footnotes list'!$D$9:$E$58,2,FALSE)=0,\"\",VLOOKUP(AX111,'Footnotes list'!$D$9:$E$58,2,FALSE) ) )","v":""},null,null,null,null,{"$f":"IF(TRIM(BC111)=\"\", \"\", IF(VLOOKUP(BC111,'Footnotes list'!$D$9:$E$58,2,FALSE)=0,\"\",VLOOKUP(BC111,'Footnotes list'!$D$9:$E$58,2,FALSE) ) )","v":""},null,null,null,null,{"$f":"IF(TRIM(BH111)=\"\", \"\", IF(VLOOKUP(BH111,'Footnotes list'!$D$9:$E$58,2,FALSE)=0,\"\",VLOOKUP(BH111,'Footnotes list'!$D$9:$E$58,2,FALSE) ) )","v":""},null,null,null,null,{"$f":"IF(TRIM(BM111)=\"\", \"\", IF(VLOOKUP(BM111,'Footnotes list'!$D$9:$E$58,2,FALSE)=0,\"\",VLOOKUP(BM111,'Footnotes list'!$D$9:$E$58,2,FALSE) ) )","v":""},null,null,null,null,{"$f":"IF(TRIM(BR111)=\"\", \"\", IF(VLOOKUP(BR111,'Footnotes list'!$D$9:$E$58,2,FALSE)=0,\"\",VLOOKUP(BR111,'Footnotes list'!$D$9:$E$58,2,FALSE) ) )","v":""},null,null,null,null,{"$f":"IF(TRIM(BW111)=\"\", \"\", IF(VLOOKUP(BW111,'Footnotes list'!$D$9:$E$58,2,FALSE)=0,\"\",VLOOKUP(BW111,'Footnotes list'!$D$9:$E$58,2,FALSE) ) )","v":""},null,null,null,null,{"$f":"IF(TRIM(CB111)=\"\", \"\", IF(VLOOKUP(CB111,'Footnotes list'!$D$9:$E$58,2,FALSE)=0,\"\",VLOOKUP(CB111,'Footnotes list'!$D$9:$E$58,2,FALSE) ) )","v":""},null,null,null,null,{"$f":"IF(TRIM(CG111)=\"\", \"\", IF(VLOOKUP(CG111,'Footnotes list'!$D$9:$E$58,2,FALSE)=0,\"\",VLOOKUP(CG111,'Footnotes list'!$D$9:$E$58,2,FALSE) ) )","v":""},null,null,null,null,{"$f":"IF(TRIM(CL111)=\"\", \"\", IF(VLOOKUP(CL111,'Footnotes list'!$D$9:$E$58,2,FALSE)=0,\"\",VLOOKUP(CL111,'Footnotes list'!$D$9:$E$58,2,FALSE) ) )","v":""},null,null,null,null,{"$f":"IF(TRIM(CQ111)=\"\", \"\", IF(VLOOKUP(CQ111,'Footnotes list'!$D$9:$E$58,2,FALSE)=0,\"\",VLOOKUP(CQ111,'Footnotes list'!$D$9:$E$58,2,FALSE) ) )","v":""},null,null,null,null,{"$f":"IF(TRIM(CV111)=\"\", \"\", IF(VLOOKUP(CV111,'Footnotes list'!$D$9:$E$58,2,FALSE)=0,\"\",VLOOKUP(CV111,'Footnotes list'!$D$9:$E$58,2,FALSE) ) )","v":""},null,null,null,null,{"$f":"IF(TRIM(DA111)=\"\", \"\", IF(VLOOKUP(DA111,'Footnotes list'!$D$9:$E$58,2,FALSE)=0,\"\",VLOOKUP(DA111,'Footnotes list'!$D$9:$E$58,2,FALSE) ) )","v":""},null,null,null,null,{"$f":"IF(TRIM(DF111)=\"\", \"\", IF(VLOOKUP(DF111,'Footnotes list'!$D$9:$E$58,2,FALSE)=0,\"\",VLOOKUP(DF111,'Footnotes list'!$D$9:$E$58,2,FALSE) ) )","v":""},null,null,null,null,{"$f":"IF(TRIM(DK111)=\"\", \"\", IF(VLOOKUP(DK111,'Footnotes list'!$D$9:$E$58,2,FALSE)=0,\"\",VLOOKUP(DK111,'Footnotes list'!$D$9:$E$58,2,FALSE) ) )","v":""},null,null,null,null,{"$f":"IF(TRIM(DP111)=\"\", \"\", IF(VLOOKUP(DP111,'Footnotes list'!$D$9:$E$58,2,FALSE)=0,\"\",VLOOKUP(DP111,'Footnotes list'!$D$9:$E$58,2,FALSE) ) )","v":""},null,null,null,null,{"$f":"IF(TRIM(DU111)=\"\", \"\", IF(VLOOKUP(DU111,'Footnotes list'!$D$9:$E$58,2,FALSE)=0,\"\",VLOOKUP(DU111,'Footnotes list'!$D$9:$E$58,2,FALSE) ) )","v":""},null,null,null,null,{"$f":"IF(TRIM(DZ111)=\"\", \"\", IF(VLOOKUP(DZ111,'Footnotes list'!$D$9:$E$58,2,FALSE)=0,\"\",VLOOKUP(DZ111,'Footnotes list'!$D$9:$E$58,2,FALSE) ) )","v":""},null,null,null,null,{"$f":"IF(TRIM(EE111)=\"\", \"\", IF(VLOOKUP(EE111,'Footnotes list'!$D$9:$E$58,2,FALSE)=0,\"\",VLOOKUP(EE111,'Footnotes list'!$D$9:$E$58,2,FALSE) ) )","v":""},null,null,null,null,{"$f":"IF(TRIM(EJ111)=\"\", \"\", IF(VLOOKUP(EJ111,'Footnotes list'!$D$9:$E$58,2,FALSE)=0,\"\",VLOOKUP(EJ111,'Footnotes list'!$D$9:$E$58,2,FALSE) ) )","v":""},null,null,null,null,{"$f":"IF(TRIM(EO111)=\"\", \"\", IF(VLOOKUP(EO111,'Footnotes list'!$D$9:$E$58,2,FALSE)=0,\"\",VLOOKUP(EO111,'Footnotes list'!$D$9:$E$58,2,FALSE) ) )","v":""},null,null,null,null,{"$f":"IF(TRIM(ET111)=\"\", \"\", IF(VLOOKUP(ET111,'Footnotes list'!$D$9:$E$58,2,FALSE)=0,\"\",VLOOKUP(ET111,'Footnotes list'!$D$9:$E$58,2,FALSE) ) )","v":""},null,null,null,null,{"$f":"IF(TRIM(EY111)=\"\", \"\", IF(VLOOKUP(EY111,'Footnotes list'!$D$9:$E$58,2,FALSE)=0,\"\",VLOOKUP(EY111,'Footnotes list'!$D$9:$E$58,2,FALSE) ) )","v":""}]
[null,null,"M73-M75","C_REP","cleaner and resource efficient products",null,null,null,null,null,{"$f":"IF(TRIM(J112)=\"\", \"\", IF(VLOOKUP(J112,'Footnotes list'!$D$9:$E$58,2,FALSE)=0,\"\",VLOOKUP(J112,'Footnotes list'!$D$9:$E$58,2,FALSE) ) )","v":""},null,null,null,null,{"$f":"IF(TRIM(O112)=\"\", \"\", IF(VLOOKUP(O112,'Footnotes list'!$D$9:$E$58,2,FALSE)=0,\"\",VLOOKUP(O112,'Footnotes list'!$D$9:$E$58,2,FALSE) ) )","v":""},null,null,null,null,{"$f":"IF(TRIM(T112)=\"\", \"\", IF(VLOOKUP(T112,'Footnotes list'!$D$9:$E$58,2,FALSE)=0,\"\",VLOOKUP(T112,'Footnotes list'!$D$9:$E$58,2,FALSE) ) )","v":""},null,null,null,null,{"$f":"IF(TRIM(Y112)=\"\", \"\", IF(VLOOKUP(Y112,'Footnotes list'!$D$9:$E$58,2,FALSE)=0,\"\",VLOOKUP(Y112,'Footnotes list'!$D$9:$E$58,2,FALSE) ) )","v":""},null,null,null,null,{"$f":"IF(TRIM(AD112)=\"\", \"\", IF(VLOOKUP(AD112,'Footnotes list'!$D$9:$E$58,2,FALSE)=0,\"\",VLOOKUP(AD112,'Footnotes list'!$D$9:$E$58,2,FALSE) ) )","v":""},null,null,null,null,{"$f":"IF(TRIM(AI112)=\"\", \"\", IF(VLOOKUP(AI112,'Footnotes list'!$D$9:$E$58,2,FALSE)=0,\"\",VLOOKUP(AI112,'Footnotes list'!$D$9:$E$58,2,FALSE) ) )","v":""},null,null,null,null,{"$f":"IF(TRIM(AN112)=\"\", \"\", IF(VLOOKUP(AN112,'Footnotes list'!$D$9:$E$58,2,FALSE)=0,\"\",VLOOKUP(AN112,'Footnotes list'!$D$9:$E$58,2,FALSE) ) )","v":""},null,null,null,null,{"$f":"IF(TRIM(AS112)=\"\", \"\", IF(VLOOKUP(AS112,'Footnotes list'!$D$9:$E$58,2,FALSE)=0,\"\",VLOOKUP(AS112,'Footnotes list'!$D$9:$E$58,2,FALSE) ) )","v":""},null,null,null,null,{"$f":"IF(TRIM(AX112)=\"\", \"\", IF(VLOOKUP(AX112,'Footnotes list'!$D$9:$E$58,2,FALSE)=0,\"\",VLOOKUP(AX112,'Footnotes list'!$D$9:$E$58,2,FALSE) ) )","v":""},null,null,null,null,{"$f":"IF(TRIM(BC112)=\"\", \"\", IF(VLOOKUP(BC112,'Footnotes list'!$D$9:$E$58,2,FALSE)=0,\"\",VLOOKUP(BC112,'Footnotes list'!$D$9:$E$58,2,FALSE) ) )","v":""},null,null,null,null,{"$f":"IF(TRIM(BH112)=\"\", \"\", IF(VLOOKUP(BH112,'Footnotes list'!$D$9:$E$58,2,FALSE)=0,\"\",VLOOKUP(BH112,'Footnotes list'!$D$9:$E$58,2,FALSE) ) )","v":""},null,null,null,null,{"$f":"IF(TRIM(BM112)=\"\", \"\", IF(VLOOKUP(BM112,'Footnotes list'!$D$9:$E$58,2,FALSE)=0,\"\",VLOOKUP(BM112,'Footnotes list'!$D$9:$E$58,2,FALSE) ) )","v":""},null,null,null,null,{"$f":"IF(TRIM(BR112)=\"\", \"\", IF(VLOOKUP(BR112,'Footnotes list'!$D$9:$E$58,2,FALSE)=0,\"\",VLOOKUP(BR112,'Footnotes list'!$D$9:$E$58,2,FALSE) ) )","v":""},null,null,null,null,{"$f":"IF(TRIM(BW112)=\"\", \"\", IF(VLOOKUP(BW112,'Footnotes list'!$D$9:$E$58,2,FALSE)=0,\"\",VLOOKUP(BW112,'Footnotes list'!$D$9:$E$58,2,FALSE) ) )","v":""},null,null,null,null,{"$f":"IF(TRIM(CB112)=\"\", \"\", IF(VLOOKUP(CB112,'Footnotes list'!$D$9:$E$58,2,FALSE)=0,\"\",VLOOKUP(CB112,'Footnotes list'!$D$9:$E$58,2,FALSE) ) )","v":""},null,null,null,null,{"$f":"IF(TRIM(CG112)=\"\", \"\", IF(VLOOKUP(CG112,'Footnotes list'!$D$9:$E$58,2,FALSE)=0,\"\",VLOOKUP(CG112,'Footnotes list'!$D$9:$E$58,2,FALSE) ) )","v":""},null,null,null,null,{"$f":"IF(TRIM(CL112)=\"\", \"\", IF(VLOOKUP(CL112,'Footnotes list'!$D$9:$E$58,2,FALSE)=0,\"\",VLOOKUP(CL112,'Footnotes list'!$D$9:$E$58,2,FALSE) ) )","v":""},null,null,null,null,{"$f":"IF(TRIM(CQ112)=\"\", \"\", IF(VLOOKUP(CQ112,'Footnotes list'!$D$9:$E$58,2,FALSE)=0,\"\",VLOOKUP(CQ112,'Footnotes list'!$D$9:$E$58,2,FALSE) ) )","v":""},null,null,null,null,{"$f":"IF(TRIM(CV112)=\"\", \"\", IF(VLOOKUP(CV112,'Footnotes list'!$D$9:$E$58,2,FALSE)=0,\"\",VLOOKUP(CV112,'Footnotes list'!$D$9:$E$58,2,FALSE) ) )","v":""},null,null,null,null,{"$f":"IF(TRIM(DA112)=\"\", \"\", IF(VLOOKUP(DA112,'Footnotes list'!$D$9:$E$58,2,FALSE)=0,\"\",VLOOKUP(DA112,'Footnotes list'!$D$9:$E$58,2,FALSE) ) )","v":""},null,null,null,null,{"$f":"IF(TRIM(DF112)=\"\", \"\", IF(VLOOKUP(DF112,'Footnotes list'!$D$9:$E$58,2,FALSE)=0,\"\",VLOOKUP(DF112,'Footnotes list'!$D$9:$E$58,2,FALSE) ) )","v":""},null,null,null,null,{"$f":"IF(TRIM(DK112)=\"\", \"\", IF(VLOOKUP(DK112,'Footnotes list'!$D$9:$E$58,2,FALSE)=0,\"\",VLOOKUP(DK112,'Footnotes list'!$D$9:$E$58,2,FALSE) ) )","v":""},null,null,null,null,{"$f":"IF(TRIM(DP112)=\"\", \"\", IF(VLOOKUP(DP112,'Footnotes list'!$D$9:$E$58,2,FALSE)=0,\"\",VLOOKUP(DP112,'Footnotes list'!$D$9:$E$58,2,FALSE) ) )","v":""},null,null,null,null,{"$f":"IF(TRIM(DU112)=\"\", \"\", IF(VLOOKUP(DU112,'Footnotes list'!$D$9:$E$58,2,FALSE)=0,\"\",VLOOKUP(DU112,'Footnotes list'!$D$9:$E$58,2,FALSE) ) )","v":""},null,null,null,null,{"$f":"IF(TRIM(DZ112)=\"\", \"\", IF(VLOOKUP(DZ112,'Footnotes list'!$D$9:$E$58,2,FALSE)=0,\"\",VLOOKUP(DZ112,'Footnotes list'!$D$9:$E$58,2,FALSE) ) )","v":""},null,null,null,null,{"$f":"IF(TRIM(EE112)=\"\", \"\", IF(VLOOKUP(EE112,'Footnotes list'!$D$9:$E$58,2,FALSE)=0,\"\",VLOOKUP(EE112,'Footnotes list'!$D$9:$E$58,2,FALSE) ) )","v":""},null,null,null,null,{"$f":"IF(TRIM(EJ112)=\"\", \"\", IF(VLOOKUP(EJ112,'Footnotes list'!$D$9:$E$58,2,FALSE)=0,\"\",VLOOKUP(EJ112,'Footnotes list'!$D$9:$E$58,2,FALSE) ) )","v":""},null,null,null,null,{"$f":"IF(TRIM(EO112)=\"\", \"\", IF(VLOOKUP(EO112,'Footnotes list'!$D$9:$E$58,2,FALSE)=0,\"\",VLOOKUP(EO112,'Footnotes list'!$D$9:$E$58,2,FALSE) ) )","v":""},null,null,null,null,{"$f":"IF(TRIM(ET112)=\"\", \"\", IF(VLOOKUP(ET112,'Footnotes list'!$D$9:$E$58,2,FALSE)=0,\"\",VLOOKUP(ET112,'Footnotes list'!$D$9:$E$58,2,FALSE) ) )","v":""},null,null,null,null,{"$f":"IF(TRIM(EY112)=\"\", \"\", IF(VLOOKUP(EY112,'Footnotes list'!$D$9:$E$58,2,FALSE)=0,\"\",VLOOKUP(EY112,'Footnotes list'!$D$9:$E$58,2,FALSE) ) )","v":""}]
[null,null,"N","TOT_EGSS","Total N - Administrative and support service activities, including:",null,null,null,null,null,{"$f":"IF(TRIM(J113)=\"\", \"\", IF(VLOOKUP(J113,'Footnotes list'!$D$9:$E$58,2,FALSE)=0,\"\",VLOOKUP(J113,'Footnotes list'!$D$9:$E$58,2,FALSE) ) )","v":""},null,null,null,null,{"$f":"IF(TRIM(O113)=\"\", \"\", IF(VLOOKUP(O113,'Footnotes list'!$D$9:$E$58,2,FALSE)=0,\"\",VLOOKUP(O113,'Footnotes list'!$D$9:$E$58,2,FALSE) ) )","v":""},null,null,null,null,{"$f":"IF(TRIM(T113)=\"\", \"\", IF(VLOOKUP(T113,'Footnotes list'!$D$9:$E$58,2,FALSE)=0,\"\",VLOOKUP(T113,'Footnotes list'!$D$9:$E$58,2,FALSE) ) )","v":""},null,null,null,null,{"$f":"IF(TRIM(Y113)=\"\", \"\", IF(VLOOKUP(Y113,'Footnotes list'!$D$9:$E$58,2,FALSE)=0,\"\",VLOOKUP(Y113,'Footnotes list'!$D$9:$E$58,2,FALSE) ) )","v":""},null,null,null,null,{"$f":"IF(TRIM(AD113)=\"\", \"\", IF(VLOOKUP(AD113,'Footnotes list'!$D$9:$E$58,2,FALSE)=0,\"\",VLOOKUP(AD113,'Footnotes list'!$D$9:$E$58,2,FALSE) ) )","v":""},null,null,null,null,{"$f":"IF(TRIM(AI113)=\"\", \"\", IF(VLOOKUP(AI113,'Footnotes list'!$D$9:$E$58,2,FALSE)=0,\"\",VLOOKUP(AI113,'Footnotes list'!$D$9:$E$58,2,FALSE) ) )","v":""},null,null,null,null,{"$f":"IF(TRIM(AN113)=\"\", \"\", IF(VLOOKUP(AN113,'Footnotes list'!$D$9:$E$58,2,FALSE)=0,\"\",VLOOKUP(AN113,'Footnotes list'!$D$9:$E$58,2,FALSE) ) )","v":""},null,null,null,null,{"$f":"IF(TRIM(AS113)=\"\", \"\", IF(VLOOKUP(AS113,'Footnotes list'!$D$9:$E$58,2,FALSE)=0,\"\",VLOOKUP(AS113,'Footnotes list'!$D$9:$E$58,2,FALSE) ) )","v":""},null,null,null,null,{"$f":"IF(TRIM(AX113)=\"\", \"\", IF(VLOOKUP(AX113,'Footnotes list'!$D$9:$E$58,2,FALSE)=0,\"\",VLOOKUP(AX113,'Footnotes list'!$D$9:$E$58,2,FALSE) ) )","v":""},null,null,null,null,{"$f":"IF(TRIM(BC113)=\"\", \"\", IF(VLOOKUP(BC113,'Footnotes list'!$D$9:$E$58,2,FALSE)=0,\"\",VLOOKUP(BC113,'Footnotes list'!$D$9:$E$58,2,FALSE) ) )","v":""},null,null,null,null,{"$f":"IF(TRIM(BH113)=\"\", \"\", IF(VLOOKUP(BH113,'Footnotes list'!$D$9:$E$58,2,FALSE)=0,\"\",VLOOKUP(BH113,'Footnotes list'!$D$9:$E$58,2,FALSE) ) )","v":""},null,null,null,null,{"$f":"IF(TRIM(BM113)=\"\", \"\", IF(VLOOKUP(BM113,'Footnotes list'!$D$9:$E$58,2,FALSE)=0,\"\",VLOOKUP(BM113,'Footnotes list'!$D$9:$E$58,2,FALSE) ) )","v":""},null,null,null,null,{"$f":"IF(TRIM(BR113)=\"\", \"\", IF(VLOOKUP(BR113,'Footnotes list'!$D$9:$E$58,2,FALSE)=0,\"\",VLOOKUP(BR113,'Footnotes list'!$D$9:$E$58,2,FALSE) ) )","v":""},null,null,null,null,{"$f":"IF(TRIM(BW113)=\"\", \"\", IF(VLOOKUP(BW113,'Footnotes list'!$D$9:$E$58,2,FALSE)=0,\"\",VLOOKUP(BW113,'Footnotes list'!$D$9:$E$58,2,FALSE) ) )","v":""},null,null,null,null,{"$f":"IF(TRIM(CB113)=\"\", \"\", IF(VLOOKUP(CB113,'Footnotes list'!$D$9:$E$58,2,FALSE)=0,\"\",VLOOKUP(CB113,'Footnotes list'!$D$9:$E$58,2,FALSE) ) )","v":""},null,null,null,null,{"$f":"IF(TRIM(CG113)=\"\", \"\", IF(VLOOKUP(CG113,'Footnotes list'!$D$9:$E$58,2,FALSE)=0,\"\",VLOOKUP(CG113,'Footnotes list'!$D$9:$E$58,2,FALSE) ) )","v":""},null,null,null,null,{"$f":"IF(TRIM(CL113)=\"\", \"\", IF(VLOOKUP(CL113,'Footnotes list'!$D$9:$E$58,2,FALSE)=0,\"\",VLOOKUP(CL113,'Footnotes list'!$D$9:$E$58,2,FALSE) ) )","v":""},null,null,null,null,{"$f":"IF(TRIM(CQ113)=\"\", \"\", IF(VLOOKUP(CQ113,'Footnotes list'!$D$9:$E$58,2,FALSE)=0,\"\",VLOOKUP(CQ113,'Footnotes list'!$D$9:$E$58,2,FALSE) ) )","v":""},null,null,null,null,{"$f":"IF(TRIM(CV113)=\"\", \"\", IF(VLOOKUP(CV113,'Footnotes list'!$D$9:$E$58,2,FALSE)=0,\"\",VLOOKUP(CV113,'Footnotes list'!$D$9:$E$58,2,FALSE) ) )","v":""},null,null,null,null,{"$f":"IF(TRIM(DA113)=\"\", \"\", IF(VLOOKUP(DA113,'Footnotes list'!$D$9:$E$58,2,FALSE)=0,\"\",VLOOKUP(DA113,'Footnotes list'!$D$9:$E$58,2,FALSE) ) )","v":""},null,null,null,null,{"$f":"IF(TRIM(DF113)=\"\", \"\", IF(VLOOKUP(DF113,'Footnotes list'!$D$9:$E$58,2,FALSE)=0,\"\",VLOOKUP(DF113,'Footnotes list'!$D$9:$E$58,2,FALSE) ) )","v":""},null,null,null,null,{"$f":"IF(TRIM(DK113)=\"\", \"\", IF(VLOOKUP(DK113,'Footnotes list'!$D$9:$E$58,2,FALSE)=0,\"\",VLOOKUP(DK113,'Footnotes list'!$D$9:$E$58,2,FALSE) ) )","v":""},null,null,null,null,{"$f":"IF(TRIM(DP113)=\"\", \"\", IF(VLOOKUP(DP113,'Footnotes list'!$D$9:$E$58,2,FALSE)=0,\"\",VLOOKUP(DP113,'Footnotes list'!$D$9:$E$58,2,FALSE) ) )","v":""},null,null,null,null,{"$f":"IF(TRIM(DU113)=\"\", \"\", IF(VLOOKUP(DU113,'Footnotes list'!$D$9:$E$58,2,FALSE)=0,\"\",VLOOKUP(DU113,'Footnotes list'!$D$9:$E$58,2,FALSE) ) )","v":""},null,null,null,null,{"$f":"IF(TRIM(DZ113)=\"\", \"\", IF(VLOOKUP(DZ113,'Footnotes list'!$D$9:$E$58,2,FALSE)=0,\"\",VLOOKUP(DZ113,'Footnotes list'!$D$9:$E$58,2,FALSE) ) )","v":""},null,null,null,null,{"$f":"IF(TRIM(EE113)=\"\", \"\", IF(VLOOKUP(EE113,'Footnotes list'!$D$9:$E$58,2,FALSE)=0,\"\",VLOOKUP(EE113,'Footnotes list'!$D$9:$E$58,2,FALSE) ) )","v":""},null,null,null,null,{"$f":"IF(TRIM(EJ113)=\"\", \"\", IF(VLOOKUP(EJ113,'Footnotes list'!$D$9:$E$58,2,FALSE)=0,\"\",VLOOKUP(EJ113,'Footnotes list'!$D$9:$E$58,2,FALSE) ) )","v":""},null,null,null,null,{"$f":"IF(TRIM(EO113)=\"\", \"\", IF(VLOOKUP(EO113,'Footnotes list'!$D$9:$E$58,2,FALSE)=0,\"\",VLOOKUP(EO113,'Footnotes list'!$D$9:$E$58,2,FALSE) ) )","v":""},null,null,null,null,{"$f":"IF(TRIM(ET113)=\"\", \"\", IF(VLOOKUP(ET113,'Footnotes list'!$D$9:$E$58,2,FALSE)=0,\"\",VLOOKUP(ET113,'Footnotes list'!$D$9:$E$58,2,FALSE) ) )","v":""},null,null,null,null,{"$f":"IF(TRIM(EY113)=\"\", \"\", IF(VLOOKUP(EY113,'Footnotes list'!$D$9:$E$58,2,FALSE)=0,\"\",VLOOKUP(EY113,'Footnotes list'!$D$9:$E$58,2,FALSE) ) )","v":""}]
[null,null,"N","ES_CS","environmental specific services",null,null,null,null,null,{"$f":"IF(TRIM(J114)=\"\", \"\", IF(VLOOKUP(J114,'Footnotes list'!$D$9:$E$58,2,FALSE)=0,\"\",VLOOKUP(J114,'Footnotes list'!$D$9:$E$58,2,FALSE) ) )","v":""},null,null,null,null,{"$f":"IF(TRIM(O114)=\"\", \"\", IF(VLOOKUP(O114,'Footnotes list'!$D$9:$E$58,2,FALSE)=0,\"\",VLOOKUP(O114,'Footnotes list'!$D$9:$E$58,2,FALSE) ) )","v":""},null,null,null,null,{"$f":"IF(TRIM(T114)=\"\", \"\", IF(VLOOKUP(T114,'Footnotes list'!$D$9:$E$58,2,FALSE)=0,\"\",VLOOKUP(T114,'Footnotes list'!$D$9:$E$58,2,FALSE) ) )","v":""},null,null,null,null,{"$f":"IF(TRIM(Y114)=\"\", \"\", IF(VLOOKUP(Y114,'Footnotes list'!$D$9:$E$58,2,FALSE)=0,\"\",VLOOKUP(Y114,'Footnotes list'!$D$9:$E$58,2,FALSE) ) )","v":""},null,null,null,null,{"$f":"IF(TRIM(AD114)=\"\", \"\", IF(VLOOKUP(AD114,'Footnotes list'!$D$9:$E$58,2,FALSE)=0,\"\",VLOOKUP(AD114,'Footnotes list'!$D$9:$E$58,2,FALSE) ) )","v":""},null,null,null,null,{"$f":"IF(TRIM(AI114)=\"\", \"\", IF(VLOOKUP(AI114,'Footnotes list'!$D$9:$E$58,2,FALSE)=0,\"\",VLOOKUP(AI114,'Footnotes list'!$D$9:$E$58,2,FALSE) ) )","v":""},null,null,null,null,{"$f":"IF(TRIM(AN114)=\"\", \"\", IF(VLOOKUP(AN114,'Footnotes list'!$D$9:$E$58,2,FALSE)=0,\"\",VLOOKUP(AN114,'Footnotes list'!$D$9:$E$58,2,FALSE) ) )","v":""},null,null,null,null,{"$f":"IF(TRIM(AS114)=\"\", \"\", IF(VLOOKUP(AS114,'Footnotes list'!$D$9:$E$58,2,FALSE)=0,\"\",VLOOKUP(AS114,'Footnotes list'!$D$9:$E$58,2,FALSE) ) )","v":""},null,null,null,null,{"$f":"IF(TRIM(AX114)=\"\", \"\", IF(VLOOKUP(AX114,'Footnotes list'!$D$9:$E$58,2,FALSE)=0,\"\",VLOOKUP(AX114,'Footnotes list'!$D$9:$E$58,2,FALSE) ) )","v":""},null,null,null,null,{"$f":"IF(TRIM(BC114)=\"\", \"\", IF(VLOOKUP(BC114,'Footnotes list'!$D$9:$E$58,2,FALSE)=0,\"\",VLOOKUP(BC114,'Footnotes list'!$D$9:$E$58,2,FALSE) ) )","v":""},null,null,null,null,{"$f":"IF(TRIM(BH114)=\"\", \"\", IF(VLOOKUP(BH114,'Footnotes list'!$D$9:$E$58,2,FALSE)=0,\"\",VLOOKUP(BH114,'Footnotes list'!$D$9:$E$58,2,FALSE) ) )","v":""},null,null,null,null,{"$f":"IF(TRIM(BM114)=\"\", \"\", IF(VLOOKUP(BM114,'Footnotes list'!$D$9:$E$58,2,FALSE)=0,\"\",VLOOKUP(BM114,'Footnotes list'!$D$9:$E$58,2,FALSE) ) )","v":""},null,null,null,null,{"$f":"IF(TRIM(BR114)=\"\", \"\", IF(VLOOKUP(BR114,'Footnotes list'!$D$9:$E$58,2,FALSE)=0,\"\",VLOOKUP(BR114,'Footnotes list'!$D$9:$E$58,2,FALSE) ) )","v":""},null,null,null,null,{"$f":"IF(TRIM(BW114)=\"\", \"\", IF(VLOOKUP(BW114,'Footnotes list'!$D$9:$E$58,2,FALSE)=0,\"\",VLOOKUP(BW114,'Footnotes list'!$D$9:$E$58,2,FALSE) ) )","v":""},null,null,null,null,{"$f":"IF(TRIM(CB114)=\"\", \"\", IF(VLOOKUP(CB114,'Footnotes list'!$D$9:$E$58,2,FALSE)=0,\"\",VLOOKUP(CB114,'Footnotes list'!$D$9:$E$58,2,FALSE) ) )","v":""},null,null,null,null,{"$f":"IF(TRIM(CG114)=\"\", \"\", IF(VLOOKUP(CG114,'Footnotes list'!$D$9:$E$58,2,FALSE)=0,\"\",VLOOKUP(CG114,'Footnotes list'!$D$9:$E$58,2,FALSE) ) )","v":""},null,null,null,null,{"$f":"IF(TRIM(CL114)=\"\", \"\", IF(VLOOKUP(CL114,'Footnotes list'!$D$9:$E$58,2,FALSE)=0,\"\",VLOOKUP(CL114,'Footnotes list'!$D$9:$E$58,2,FALSE) ) )","v":""},null,null,null,null,{"$f":"IF(TRIM(CQ114)=\"\", \"\", IF(VLOOKUP(CQ114,'Footnotes list'!$D$9:$E$58,2,FALSE)=0,\"\",VLOOKUP(CQ114,'Footnotes list'!$D$9:$E$58,2,FALSE) ) )","v":""},null,null,null,null,{"$f":"IF(TRIM(CV114)=\"\", \"\", IF(VLOOKUP(CV114,'Footnotes list'!$D$9:$E$58,2,FALSE)=0,\"\",VLOOKUP(CV114,'Footnotes list'!$D$9:$E$58,2,FALSE) ) )","v":""},null,null,null,null,{"$f":"IF(TRIM(DA114)=\"\", \"\", IF(VLOOKUP(DA114,'Footnotes list'!$D$9:$E$58,2,FALSE)=0,\"\",VLOOKUP(DA114,'Footnotes list'!$D$9:$E$58,2,FALSE) ) )","v":""},null,null,null,null,{"$f":"IF(TRIM(DF114)=\"\", \"\", IF(VLOOKUP(DF114,'Footnotes list'!$D$9:$E$58,2,FALSE)=0,\"\",VLOOKUP(DF114,'Footnotes list'!$D$9:$E$58,2,FALSE) ) )","v":""},null,null,null,null,{"$f":"IF(TRIM(DK114)=\"\", \"\", IF(VLOOKUP(DK114,'Footnotes list'!$D$9:$E$58,2,FALSE)=0,\"\",VLOOKUP(DK114,'Footnotes list'!$D$9:$E$58,2,FALSE) ) )","v":""},null,null,null,null,{"$f":"IF(TRIM(DP114)=\"\", \"\", IF(VLOOKUP(DP114,'Footnotes list'!$D$9:$E$58,2,FALSE)=0,\"\",VLOOKUP(DP114,'Footnotes list'!$D$9:$E$58,2,FALSE) ) )","v":""},null,null,null,null,{"$f":"IF(TRIM(DU114)=\"\", \"\", IF(VLOOKUP(DU114,'Footnotes list'!$D$9:$E$58,2,FALSE)=0,\"\",VLOOKUP(DU114,'Footnotes list'!$D$9:$E$58,2,FALSE) ) )","v":""},null,null,null,null,{"$f":"IF(TRIM(DZ114)=\"\", \"\", IF(VLOOKUP(DZ114,'Footnotes list'!$D$9:$E$58,2,FALSE)=0,\"\",VLOOKUP(DZ114,'Footnotes list'!$D$9:$E$58,2,FALSE) ) )","v":""},null,null,null,null,{"$f":"IF(TRIM(EE114)=\"\", \"\", IF(VLOOKUP(EE114,'Footnotes list'!$D$9:$E$58,2,FALSE)=0,\"\",VLOOKUP(EE114,'Footnotes list'!$D$9:$E$58,2,FALSE) ) )","v":""},null,null,null,null,{"$f":"IF(TRIM(EJ114)=\"\", \"\", IF(VLOOKUP(EJ114,'Footnotes list'!$D$9:$E$58,2,FALSE)=0,\"\",VLOOKUP(EJ114,'Footnotes list'!$D$9:$E$58,2,FALSE) ) )","v":""},null,null,null,null,{"$f":"IF(TRIM(EO114)=\"\", \"\", IF(VLOOKUP(EO114,'Footnotes list'!$D$9:$E$58,2,FALSE)=0,\"\",VLOOKUP(EO114,'Footnotes list'!$D$9:$E$58,2,FALSE) ) )","v":""},null,null,null,null,{"$f":"IF(TRIM(ET114)=\"\", \"\", IF(VLOOKUP(ET114,'Footnotes list'!$D$9:$E$58,2,FALSE)=0,\"\",VLOOKUP(ET114,'Footnotes list'!$D$9:$E$58,2,FALSE) ) )","v":""},null,null,null,null,{"$f":"IF(TRIM(EY114)=\"\", \"\", IF(VLOOKUP(EY114,'Footnotes list'!$D$9:$E$58,2,FALSE)=0,\"\",VLOOKUP(EY114,'Footnotes list'!$D$9:$E$58,2,FALSE) ) )","v":""}]
[null,null,"N","C_REP","cleaner and resource efficient products",null,null,null,null,null,{"$f":"IF(TRIM(J115)=\"\", \"\", IF(VLOOKUP(J115,'Footnotes list'!$D$9:$E$58,2,FALSE)=0,\"\",VLOOKUP(J115,'Footnotes list'!$D$9:$E$58,2,FALSE) ) )","v":""},null,null,null,null,{"$f":"IF(TRIM(O115)=\"\", \"\", IF(VLOOKUP(O115,'Footnotes list'!$D$9:$E$58,2,FALSE)=0,\"\",VLOOKUP(O115,'Footnotes list'!$D$9:$E$58,2,FALSE) ) )","v":""},null,null,null,null,{"$f":"IF(TRIM(T115)=\"\", \"\", IF(VLOOKUP(T115,'Footnotes list'!$D$9:$E$58,2,FALSE)=0,\"\",VLOOKUP(T115,'Footnotes list'!$D$9:$E$58,2,FALSE) ) )","v":""},null,null,null,null,{"$f":"IF(TRIM(Y115)=\"\", \"\", IF(VLOOKUP(Y115,'Footnotes list'!$D$9:$E$58,2,FALSE)=0,\"\",VLOOKUP(Y115,'Footnotes list'!$D$9:$E$58,2,FALSE) ) )","v":""},null,null,null,null,{"$f":"IF(TRIM(AD115)=\"\", \"\", IF(VLOOKUP(AD115,'Footnotes list'!$D$9:$E$58,2,FALSE)=0,\"\",VLOOKUP(AD115,'Footnotes list'!$D$9:$E$58,2,FALSE) ) )","v":""},null,null,null,null,{"$f":"IF(TRIM(AI115)=\"\", \"\", IF(VLOOKUP(AI115,'Footnotes list'!$D$9:$E$58,2,FALSE)=0,\"\",VLOOKUP(AI115,'Footnotes list'!$D$9:$E$58,2,FALSE) ) )","v":""},null,null,null,null,{"$f":"IF(TRIM(AN115)=\"\", \"\", IF(VLOOKUP(AN115,'Footnotes list'!$D$9:$E$58,2,FALSE)=0,\"\",VLOOKUP(AN115,'Footnotes list'!$D$9:$E$58,2,FALSE) ) )","v":""},null,null,null,null,{"$f":"IF(TRIM(AS115)=\"\", \"\", IF(VLOOKUP(AS115,'Footnotes list'!$D$9:$E$58,2,FALSE)=0,\"\",VLOOKUP(AS115,'Footnotes list'!$D$9:$E$58,2,FALSE) ) )","v":""},null,null,null,null,{"$f":"IF(TRIM(AX115)=\"\", \"\", IF(VLOOKUP(AX115,'Footnotes list'!$D$9:$E$58,2,FALSE)=0,\"\",VLOOKUP(AX115,'Footnotes list'!$D$9:$E$58,2,FALSE) ) )","v":""},null,null,null,null,{"$f":"IF(TRIM(BC115)=\"\", \"\", IF(VLOOKUP(BC115,'Footnotes list'!$D$9:$E$58,2,FALSE)=0,\"\",VLOOKUP(BC115,'Footnotes list'!$D$9:$E$58,2,FALSE) ) )","v":""},null,null,null,null,{"$f":"IF(TRIM(BH115)=\"\", \"\", IF(VLOOKUP(BH115,'Footnotes list'!$D$9:$E$58,2,FALSE)=0,\"\",VLOOKUP(BH115,'Footnotes list'!$D$9:$E$58,2,FALSE) ) )","v":""},null,null,null,null,{"$f":"IF(TRIM(BM115)=\"\", \"\", IF(VLOOKUP(BM115,'Footnotes list'!$D$9:$E$58,2,FALSE)=0,\"\",VLOOKUP(BM115,'Footnotes list'!$D$9:$E$58,2,FALSE) ) )","v":""},null,null,null,null,{"$f":"IF(TRIM(BR115)=\"\", \"\", IF(VLOOKUP(BR115,'Footnotes list'!$D$9:$E$58,2,FALSE)=0,\"\",VLOOKUP(BR115,'Footnotes list'!$D$9:$E$58,2,FALSE) ) )","v":""},null,null,null,null,{"$f":"IF(TRIM(BW115)=\"\", \"\", IF(VLOOKUP(BW115,'Footnotes list'!$D$9:$E$58,2,FALSE)=0,\"\",VLOOKUP(BW115,'Footnotes list'!$D$9:$E$58,2,FALSE) ) )","v":""},null,null,null,null,{"$f":"IF(TRIM(CB115)=\"\", \"\", IF(VLOOKUP(CB115,'Footnotes list'!$D$9:$E$58,2,FALSE)=0,\"\",VLOOKUP(CB115,'Footnotes list'!$D$9:$E$58,2,FALSE) ) )","v":""},null,null,null,null,{"$f":"IF(TRIM(CG115)=\"\", \"\", IF(VLOOKUP(CG115,'Footnotes list'!$D$9:$E$58,2,FALSE)=0,\"\",VLOOKUP(CG115,'Footnotes list'!$D$9:$E$58,2,FALSE) ) )","v":""},null,null,null,null,{"$f":"IF(TRIM(CL115)=\"\", \"\", IF(VLOOKUP(CL115,'Footnotes list'!$D$9:$E$58,2,FALSE)=0,\"\",VLOOKUP(CL115,'Footnotes list'!$D$9:$E$58,2,FALSE) ) )","v":""},null,null,null,null,{"$f":"IF(TRIM(CQ115)=\"\", \"\", IF(VLOOKUP(CQ115,'Footnotes list'!$D$9:$E$58,2,FALSE)=0,\"\",VLOOKUP(CQ115,'Footnotes list'!$D$9:$E$58,2,FALSE) ) )","v":""},null,null,null,null,{"$f":"IF(TRIM(CV115)=\"\", \"\", IF(VLOOKUP(CV115,'Footnotes list'!$D$9:$E$58,2,FALSE)=0,\"\",VLOOKUP(CV115,'Footnotes list'!$D$9:$E$58,2,FALSE) ) )","v":""},null,null,null,null,{"$f":"IF(TRIM(DA115)=\"\", \"\", IF(VLOOKUP(DA115,'Footnotes list'!$D$9:$E$58,2,FALSE)=0,\"\",VLOOKUP(DA115,'Footnotes list'!$D$9:$E$58,2,FALSE) ) )","v":""},null,null,null,null,{"$f":"IF(TRIM(DF115)=\"\", \"\", IF(VLOOKUP(DF115,'Footnotes list'!$D$9:$E$58,2,FALSE)=0,\"\",VLOOKUP(DF115,'Footnotes list'!$D$9:$E$58,2,FALSE) ) )","v":""},null,null,null,null,{"$f":"IF(TRIM(DK115)=\"\", \"\", IF(VLOOKUP(DK115,'Footnotes list'!$D$9:$E$58,2,FALSE)=0,\"\",VLOOKUP(DK115,'Footnotes list'!$D$9:$E$58,2,FALSE) ) )","v":""},null,null,null,null,{"$f":"IF(TRIM(DP115)=\"\", \"\", IF(VLOOKUP(DP115,'Footnotes list'!$D$9:$E$58,2,FALSE)=0,\"\",VLOOKUP(DP115,'Footnotes list'!$D$9:$E$58,2,FALSE) ) )","v":""},null,null,null,null,{"$f":"IF(TRIM(DU115)=\"\", \"\", IF(VLOOKUP(DU115,'Footnotes list'!$D$9:$E$58,2,FALSE)=0,\"\",VLOOKUP(DU115,'Footnotes list'!$D$9:$E$58,2,FALSE) ) )","v":""},null,null,null,null,{"$f":"IF(TRIM(DZ115)=\"\", \"\", IF(VLOOKUP(DZ115,'Footnotes list'!$D$9:$E$58,2,FALSE)=0,\"\",VLOOKUP(DZ115,'Footnotes list'!$D$9:$E$58,2,FALSE) ) )","v":""},null,null,null,null,{"$f":"IF(TRIM(EE115)=\"\", \"\", IF(VLOOKUP(EE115,'Footnotes list'!$D$9:$E$58,2,FALSE)=0,\"\",VLOOKUP(EE115,'Footnotes list'!$D$9:$E$58,2,FALSE) ) )","v":""},null,null,null,null,{"$f":"IF(TRIM(EJ115)=\"\", \"\", IF(VLOOKUP(EJ115,'Footnotes list'!$D$9:$E$58,2,FALSE)=0,\"\",VLOOKUP(EJ115,'Footnotes list'!$D$9:$E$58,2,FALSE) ) )","v":""},null,null,null,null,{"$f":"IF(TRIM(EO115)=\"\", \"\", IF(VLOOKUP(EO115,'Footnotes list'!$D$9:$E$58,2,FALSE)=0,\"\",VLOOKUP(EO115,'Footnotes list'!$D$9:$E$58,2,FALSE) ) )","v":""},null,null,null,null,{"$f":"IF(TRIM(ET115)=\"\", \"\", IF(VLOOKUP(ET115,'Footnotes list'!$D$9:$E$58,2,FALSE)=0,\"\",VLOOKUP(ET115,'Footnotes list'!$D$9:$E$58,2,FALSE) ) )","v":""},null,null,null,null,{"$f":"IF(TRIM(EY115)=\"\", \"\", IF(VLOOKUP(EY115,'Footnotes list'!$D$9:$E$58,2,FALSE)=0,\"\",VLOOKUP(EY115,'Footnotes list'!$D$9:$E$58,2,FALSE) ) )","v":""}]
[null,null,"O","TOT_EGSS","Total O - Public administration and defence, compulsory social security, including:",null,null,null,null,null,{"$f":"IF(TRIM(J116)=\"\", \"\", IF(VLOOKUP(J116,'Footnotes list'!$D$9:$E$58,2,FALSE)=0,\"\",VLOOKUP(J116,'Footnotes list'!$D$9:$E$58,2,FALSE) ) )","v":""},null,null,null,null,{"$f":"IF(TRIM(O116)=\"\", \"\", IF(VLOOKUP(O116,'Footnotes list'!$D$9:$E$58,2,FALSE)=0,\"\",VLOOKUP(O116,'Footnotes list'!$D$9:$E$58,2,FALSE) ) )","v":""},null,null,null,null,{"$f":"IF(TRIM(T116)=\"\", \"\", IF(VLOOKUP(T116,'Footnotes list'!$D$9:$E$58,2,FALSE)=0,\"\",VLOOKUP(T116,'Footnotes list'!$D$9:$E$58,2,FALSE) ) )","v":""},null,null,null,null,{"$f":"IF(TRIM(Y116)=\"\", \"\", IF(VLOOKUP(Y116,'Footnotes list'!$D$9:$E$58,2,FALSE)=0,\"\",VLOOKUP(Y116,'Footnotes list'!$D$9:$E$58,2,FALSE) ) )","v":""},null,null,null,null,{"$f":"IF(TRIM(AD116)=\"\", \"\", IF(VLOOKUP(AD116,'Footnotes list'!$D$9:$E$58,2,FALSE)=0,\"\",VLOOKUP(AD116,'Footnotes list'!$D$9:$E$58,2,FALSE) ) )","v":""},null,null,null,null,{"$f":"IF(TRIM(AI116)=\"\", \"\", IF(VLOOKUP(AI116,'Footnotes list'!$D$9:$E$58,2,FALSE)=0,\"\",VLOOKUP(AI116,'Footnotes list'!$D$9:$E$58,2,FALSE) ) )","v":""},null,null,null,null,{"$f":"IF(TRIM(AN116)=\"\", \"\", IF(VLOOKUP(AN116,'Footnotes list'!$D$9:$E$58,2,FALSE)=0,\"\",VLOOKUP(AN116,'Footnotes list'!$D$9:$E$58,2,FALSE) ) )","v":""},null,null,null,null,{"$f":"IF(TRIM(AS116)=\"\", \"\", IF(VLOOKUP(AS116,'Footnotes list'!$D$9:$E$58,2,FALSE)=0,\"\",VLOOKUP(AS116,'Footnotes list'!$D$9:$E$58,2,FALSE) ) )","v":""},null,null,null,null,{"$f":"IF(TRIM(AX116)=\"\", \"\", IF(VLOOKUP(AX116,'Footnotes list'!$D$9:$E$58,2,FALSE)=0,\"\",VLOOKUP(AX116,'Footnotes list'!$D$9:$E$58,2,FALSE) ) )","v":""},null,null,null,null,{"$f":"IF(TRIM(BC116)=\"\", \"\", IF(VLOOKUP(BC116,'Footnotes list'!$D$9:$E$58,2,FALSE)=0,\"\",VLOOKUP(BC116,'Footnotes list'!$D$9:$E$58,2,FALSE) ) )","v":""},null,null,null,null,{"$f":"IF(TRIM(BH116)=\"\", \"\", IF(VLOOKUP(BH116,'Footnotes list'!$D$9:$E$58,2,FALSE)=0,\"\",VLOOKUP(BH116,'Footnotes list'!$D$9:$E$58,2,FALSE) ) )","v":""},null,null,null,null,{"$f":"IF(TRIM(BM116)=\"\", \"\", IF(VLOOKUP(BM116,'Footnotes list'!$D$9:$E$58,2,FALSE)=0,\"\",VLOOKUP(BM116,'Footnotes list'!$D$9:$E$58,2,FALSE) ) )","v":""},null,null,null,null,{"$f":"IF(TRIM(BR116)=\"\", \"\", IF(VLOOKUP(BR116,'Footnotes list'!$D$9:$E$58,2,FALSE)=0,\"\",VLOOKUP(BR116,'Footnotes list'!$D$9:$E$58,2,FALSE) ) )","v":""},null,null,null,null,{"$f":"IF(TRIM(BW116)=\"\", \"\", IF(VLOOKUP(BW116,'Footnotes list'!$D$9:$E$58,2,FALSE)=0,\"\",VLOOKUP(BW116,'Footnotes list'!$D$9:$E$58,2,FALSE) ) )","v":""},null,null,null,null,{"$f":"IF(TRIM(CB116)=\"\", \"\", IF(VLOOKUP(CB116,'Footnotes list'!$D$9:$E$58,2,FALSE)=0,\"\",VLOOKUP(CB116,'Footnotes list'!$D$9:$E$58,2,FALSE) ) )","v":""},null,null,null,null,{"$f":"IF(TRIM(CG116)=\"\", \"\", IF(VLOOKUP(CG116,'Footnotes list'!$D$9:$E$58,2,FALSE)=0,\"\",VLOOKUP(CG116,'Footnotes list'!$D$9:$E$58,2,FALSE) ) )","v":""},null,null,null,null,{"$f":"IF(TRIM(CL116)=\"\", \"\", IF(VLOOKUP(CL116,'Footnotes list'!$D$9:$E$58,2,FALSE)=0,\"\",VLOOKUP(CL116,'Footnotes list'!$D$9:$E$58,2,FALSE) ) )","v":""},null,null,null,null,{"$f":"IF(TRIM(CQ116)=\"\", \"\", IF(VLOOKUP(CQ116,'Footnotes list'!$D$9:$E$58,2,FALSE)=0,\"\",VLOOKUP(CQ116,'Footnotes list'!$D$9:$E$58,2,FALSE) ) )","v":""},null,null,null,null,{"$f":"IF(TRIM(CV116)=\"\", \"\", IF(VLOOKUP(CV116,'Footnotes list'!$D$9:$E$58,2,FALSE)=0,\"\",VLOOKUP(CV116,'Footnotes list'!$D$9:$E$58,2,FALSE) ) )","v":""},null,null,null,null,{"$f":"IF(TRIM(DA116)=\"\", \"\", IF(VLOOKUP(DA116,'Footnotes list'!$D$9:$E$58,2,FALSE)=0,\"\",VLOOKUP(DA116,'Footnotes list'!$D$9:$E$58,2,FALSE) ) )","v":""},null,null,null,null,{"$f":"IF(TRIM(DF116)=\"\", \"\", IF(VLOOKUP(DF116,'Footnotes list'!$D$9:$E$58,2,FALSE)=0,\"\",VLOOKUP(DF116,'Footnotes list'!$D$9:$E$58,2,FALSE) ) )","v":""},null,null,null,null,{"$f":"IF(TRIM(DK116)=\"\", \"\", IF(VLOOKUP(DK116,'Footnotes list'!$D$9:$E$58,2,FALSE)=0,\"\",VLOOKUP(DK116,'Footnotes list'!$D$9:$E$58,2,FALSE) ) )","v":""},null,null,null,null,{"$f":"IF(TRIM(DP116)=\"\", \"\", IF(VLOOKUP(DP116,'Footnotes list'!$D$9:$E$58,2,FALSE)=0,\"\",VLOOKUP(DP116,'Footnotes list'!$D$9:$E$58,2,FALSE) ) )","v":""},null,null,null,null,{"$f":"IF(TRIM(DU116)=\"\", \"\", IF(VLOOKUP(DU116,'Footnotes list'!$D$9:$E$58,2,FALSE)=0,\"\",VLOOKUP(DU116,'Footnotes list'!$D$9:$E$58,2,FALSE) ) )","v":""},null,null,null,null,{"$f":"IF(TRIM(DZ116)=\"\", \"\", IF(VLOOKUP(DZ116,'Footnotes list'!$D$9:$E$58,2,FALSE)=0,\"\",VLOOKUP(DZ116,'Footnotes list'!$D$9:$E$58,2,FALSE) ) )","v":""},null,null,null,null,{"$f":"IF(TRIM(EE116)=\"\", \"\", IF(VLOOKUP(EE116,'Footnotes list'!$D$9:$E$58,2,FALSE)=0,\"\",VLOOKUP(EE116,'Footnotes list'!$D$9:$E$58,2,FALSE) ) )","v":""},null,null,null,null,{"$f":"IF(TRIM(EJ116)=\"\", \"\", IF(VLOOKUP(EJ116,'Footnotes list'!$D$9:$E$58,2,FALSE)=0,\"\",VLOOKUP(EJ116,'Footnotes list'!$D$9:$E$58,2,FALSE) ) )","v":""},null,null,null,null,{"$f":"IF(TRIM(EO116)=\"\", \"\", IF(VLOOKUP(EO116,'Footnotes list'!$D$9:$E$58,2,FALSE)=0,\"\",VLOOKUP(EO116,'Footnotes list'!$D$9:$E$58,2,FALSE) ) )","v":""},null,null,null,null,{"$f":"IF(TRIM(ET116)=\"\", \"\", IF(VLOOKUP(ET116,'Footnotes list'!$D$9:$E$58,2,FALSE)=0,\"\",VLOOKUP(ET116,'Footnotes list'!$D$9:$E$58,2,FALSE) ) )","v":""},null,null,null,null,{"$f":"IF(TRIM(EY116)=\"\", \"\", IF(VLOOKUP(EY116,'Footnotes list'!$D$9:$E$58,2,FALSE)=0,\"\",VLOOKUP(EY116,'Footnotes list'!$D$9:$E$58,2,FALSE) ) )","v":""}]
[null,null,"O","ES_CS","environmental specific services",null,null,null,null,null,{"$f":"IF(TRIM(J117)=\"\", \"\", IF(VLOOKUP(J117,'Footnotes list'!$D$9:$E$58,2,FALSE)=0,\"\",VLOOKUP(J117,'Footnotes list'!$D$9:$E$58,2,FALSE) ) )","v":""},null,null,null,null,{"$f":"IF(TRIM(O117)=\"\", \"\", IF(VLOOKUP(O117,'Footnotes list'!$D$9:$E$58,2,FALSE)=0,\"\",VLOOKUP(O117,'Footnotes list'!$D$9:$E$58,2,FALSE) ) )","v":""},null,null,null,null,{"$f":"IF(TRIM(T117)=\"\", \"\", IF(VLOOKUP(T117,'Footnotes list'!$D$9:$E$58,2,FALSE)=0,\"\",VLOOKUP(T117,'Footnotes list'!$D$9:$E$58,2,FALSE) ) )","v":""},null,null,null,null,{"$f":"IF(TRIM(Y117)=\"\", \"\", IF(VLOOKUP(Y117,'Footnotes list'!$D$9:$E$58,2,FALSE)=0,\"\",VLOOKUP(Y117,'Footnotes list'!$D$9:$E$58,2,FALSE) ) )","v":""},null,null,null,null,{"$f":"IF(TRIM(AD117)=\"\", \"\", IF(VLOOKUP(AD117,'Footnotes list'!$D$9:$E$58,2,FALSE)=0,\"\",VLOOKUP(AD117,'Footnotes list'!$D$9:$E$58,2,FALSE) ) )","v":""},null,null,null,null,{"$f":"IF(TRIM(AI117)=\"\", \"\", IF(VLOOKUP(AI117,'Footnotes list'!$D$9:$E$58,2,FALSE)=0,\"\",VLOOKUP(AI117,'Footnotes list'!$D$9:$E$58,2,FALSE) ) )","v":""},null,null,null,null,{"$f":"IF(TRIM(AN117)=\"\", \"\", IF(VLOOKUP(AN117,'Footnotes list'!$D$9:$E$58,2,FALSE)=0,\"\",VLOOKUP(AN117,'Footnotes list'!$D$9:$E$58,2,FALSE) ) )","v":""},null,null,null,null,{"$f":"IF(TRIM(AS117)=\"\", \"\", IF(VLOOKUP(AS117,'Footnotes list'!$D$9:$E$58,2,FALSE)=0,\"\",VLOOKUP(AS117,'Footnotes list'!$D$9:$E$58,2,FALSE) ) )","v":""},null,null,null,null,{"$f":"IF(TRIM(AX117)=\"\", \"\", IF(VLOOKUP(AX117,'Footnotes list'!$D$9:$E$58,2,FALSE)=0,\"\",VLOOKUP(AX117,'Footnotes list'!$D$9:$E$58,2,FALSE) ) )","v":""},null,null,null,null,{"$f":"IF(TRIM(BC117)=\"\", \"\", IF(VLOOKUP(BC117,'Footnotes list'!$D$9:$E$58,2,FALSE)=0,\"\",VLOOKUP(BC117,'Footnotes list'!$D$9:$E$58,2,FALSE) ) )","v":""},null,null,null,null,{"$f":"IF(TRIM(BH117)=\"\", \"\", IF(VLOOKUP(BH117,'Footnotes list'!$D$9:$E$58,2,FALSE)=0,\"\",VLOOKUP(BH117,'Footnotes list'!$D$9:$E$58,2,FALSE) ) )","v":""},null,null,null,null,{"$f":"IF(TRIM(BM117)=\"\", \"\", IF(VLOOKUP(BM117,'Footnotes list'!$D$9:$E$58,2,FALSE)=0,\"\",VLOOKUP(BM117,'Footnotes list'!$D$9:$E$58,2,FALSE) ) )","v":""},null,null,null,null,{"$f":"IF(TRIM(BR117)=\"\", \"\", IF(VLOOKUP(BR117,'Footnotes list'!$D$9:$E$58,2,FALSE)=0,\"\",VLOOKUP(BR117,'Footnotes list'!$D$9:$E$58,2,FALSE) ) )","v":""},null,null,null,null,{"$f":"IF(TRIM(BW117)=\"\", \"\", IF(VLOOKUP(BW117,'Footnotes list'!$D$9:$E$58,2,FALSE)=0,\"\",VLOOKUP(BW117,'Footnotes list'!$D$9:$E$58,2,FALSE) ) )","v":""},null,null,null,null,{"$f":"IF(TRIM(CB117)=\"\", \"\", IF(VLOOKUP(CB117,'Footnotes list'!$D$9:$E$58,2,FALSE)=0,\"\",VLOOKUP(CB117,'Footnotes list'!$D$9:$E$58,2,FALSE) ) )","v":""},null,null,null,null,{"$f":"IF(TRIM(CG117)=\"\", \"\", IF(VLOOKUP(CG117,'Footnotes list'!$D$9:$E$58,2,FALSE)=0,\"\",VLOOKUP(CG117,'Footnotes list'!$D$9:$E$58,2,FALSE) ) )","v":""},null,null,null,null,{"$f":"IF(TRIM(CL117)=\"\", \"\", IF(VLOOKUP(CL117,'Footnotes list'!$D$9:$E$58,2,FALSE)=0,\"\",VLOOKUP(CL117,'Footnotes list'!$D$9:$E$58,2,FALSE) ) )","v":""},null,null,null,null,{"$f":"IF(TRIM(CQ117)=\"\", \"\", IF(VLOOKUP(CQ117,'Footnotes list'!$D$9:$E$58,2,FALSE)=0,\"\",VLOOKUP(CQ117,'Footnotes list'!$D$9:$E$58,2,FALSE) ) )","v":""},null,null,null,null,{"$f":"IF(TRIM(CV117)=\"\", \"\", IF(VLOOKUP(CV117,'Footnotes list'!$D$9:$E$58,2,FALSE)=0,\"\",VLOOKUP(CV117,'Footnotes list'!$D$9:$E$58,2,FALSE) ) )","v":""},null,null,null,null,{"$f":"IF(TRIM(DA117)=\"\", \"\", IF(VLOOKUP(DA117,'Footnotes list'!$D$9:$E$58,2,FALSE)=0,\"\",VLOOKUP(DA117,'Footnotes list'!$D$9:$E$58,2,FALSE) ) )","v":""},null,null,null,null,{"$f":"IF(TRIM(DF117)=\"\", \"\", IF(VLOOKUP(DF117,'Footnotes list'!$D$9:$E$58,2,FALSE)=0,\"\",VLOOKUP(DF117,'Footnotes list'!$D$9:$E$58,2,FALSE) ) )","v":""},null,null,null,null,{"$f":"IF(TRIM(DK117)=\"\", \"\", IF(VLOOKUP(DK117,'Footnotes list'!$D$9:$E$58,2,FALSE)=0,\"\",VLOOKUP(DK117,'Footnotes list'!$D$9:$E$58,2,FALSE) ) )","v":""},null,null,null,null,{"$f":"IF(TRIM(DP117)=\"\", \"\", IF(VLOOKUP(DP117,'Footnotes list'!$D$9:$E$58,2,FALSE)=0,\"\",VLOOKUP(DP117,'Footnotes list'!$D$9:$E$58,2,FALSE) ) )","v":""},null,null,null,null,{"$f":"IF(TRIM(DU117)=\"\", \"\", IF(VLOOKUP(DU117,'Footnotes list'!$D$9:$E$58,2,FALSE)=0,\"\",VLOOKUP(DU117,'Footnotes list'!$D$9:$E$58,2,FALSE) ) )","v":""},null,null,null,null,{"$f":"IF(TRIM(DZ117)=\"\", \"\", IF(VLOOKUP(DZ117,'Footnotes list'!$D$9:$E$58,2,FALSE)=0,\"\",VLOOKUP(DZ117,'Footnotes list'!$D$9:$E$58,2,FALSE) ) )","v":""},null,null,null,null,{"$f":"IF(TRIM(EE117)=\"\", \"\", IF(VLOOKUP(EE117,'Footnotes list'!$D$9:$E$58,2,FALSE)=0,\"\",VLOOKUP(EE117,'Footnotes list'!$D$9:$E$58,2,FALSE) ) )","v":""},null,null,null,null,{"$f":"IF(TRIM(EJ117)=\"\", \"\", IF(VLOOKUP(EJ117,'Footnotes list'!$D$9:$E$58,2,FALSE)=0,\"\",VLOOKUP(EJ117,'Footnotes list'!$D$9:$E$58,2,FALSE) ) )","v":""},null,null,null,null,{"$f":"IF(TRIM(EO117)=\"\", \"\", IF(VLOOKUP(EO117,'Footnotes list'!$D$9:$E$58,2,FALSE)=0,\"\",VLOOKUP(EO117,'Footnotes list'!$D$9:$E$58,2,FALSE) ) )","v":""},null,null,null,null,{"$f":"IF(TRIM(ET117)=\"\", \"\", IF(VLOOKUP(ET117,'Footnotes list'!$D$9:$E$58,2,FALSE)=0,\"\",VLOOKUP(ET117,'Footnotes list'!$D$9:$E$58,2,FALSE) ) )","v":""},null,null,null,null,{"$f":"IF(TRIM(EY117)=\"\", \"\", IF(VLOOKUP(EY117,'Footnotes list'!$D$9:$E$58,2,FALSE)=0,\"\",VLOOKUP(EY117,'Footnotes list'!$D$9:$E$58,2,FALSE) ) )","v":""}]
[null,null,"O","C_REP","cleaner and resource efficient products",null,null,null,null,null,{"$f":"IF(TRIM(J118)=\"\", \"\", IF(VLOOKUP(J118,'Footnotes list'!$D$9:$E$58,2,FALSE)=0,\"\",VLOOKUP(J118,'Footnotes list'!$D$9:$E$58,2,FALSE) ) )","v":""},null,null,null,null,{"$f":"IF(TRIM(O118)=\"\", \"\", IF(VLOOKUP(O118,'Footnotes list'!$D$9:$E$58,2,FALSE)=0,\"\",VLOOKUP(O118,'Footnotes list'!$D$9:$E$58,2,FALSE) ) )","v":""},null,null,null,null,{"$f":"IF(TRIM(T118)=\"\", \"\", IF(VLOOKUP(T118,'Footnotes list'!$D$9:$E$58,2,FALSE)=0,\"\",VLOOKUP(T118,'Footnotes list'!$D$9:$E$58,2,FALSE) ) )","v":""},null,null,null,null,{"$f":"IF(TRIM(Y118)=\"\", \"\", IF(VLOOKUP(Y118,'Footnotes list'!$D$9:$E$58,2,FALSE)=0,\"\",VLOOKUP(Y118,'Footnotes list'!$D$9:$E$58,2,FALSE) ) )","v":""},null,null,null,null,{"$f":"IF(TRIM(AD118)=\"\", \"\", IF(VLOOKUP(AD118,'Footnotes list'!$D$9:$E$58,2,FALSE)=0,\"\",VLOOKUP(AD118,'Footnotes list'!$D$9:$E$58,2,FALSE) ) )","v":""},null,null,null,null,{"$f":"IF(TRIM(AI118)=\"\", \"\", IF(VLOOKUP(AI118,'Footnotes list'!$D$9:$E$58,2,FALSE)=0,\"\",VLOOKUP(AI118,'Footnotes list'!$D$9:$E$58,2,FALSE) ) )","v":""},null,null,null,null,{"$f":"IF(TRIM(AN118)=\"\", \"\", IF(VLOOKUP(AN118,'Footnotes list'!$D$9:$E$58,2,FALSE)=0,\"\",VLOOKUP(AN118,'Footnotes list'!$D$9:$E$58,2,FALSE) ) )","v":""},null,null,null,null,{"$f":"IF(TRIM(AS118)=\"\", \"\", IF(VLOOKUP(AS118,'Footnotes list'!$D$9:$E$58,2,FALSE)=0,\"\",VLOOKUP(AS118,'Footnotes list'!$D$9:$E$58,2,FALSE) ) )","v":""},null,null,null,null,{"$f":"IF(TRIM(AX118)=\"\", \"\", IF(VLOOKUP(AX118,'Footnotes list'!$D$9:$E$58,2,FALSE)=0,\"\",VLOOKUP(AX118,'Footnotes list'!$D$9:$E$58,2,FALSE) ) )","v":""},null,null,null,null,{"$f":"IF(TRIM(BC118)=\"\", \"\", IF(VLOOKUP(BC118,'Footnotes list'!$D$9:$E$58,2,FALSE)=0,\"\",VLOOKUP(BC118,'Footnotes list'!$D$9:$E$58,2,FALSE) ) )","v":""},null,null,null,null,{"$f":"IF(TRIM(BH118)=\"\", \"\", IF(VLOOKUP(BH118,'Footnotes list'!$D$9:$E$58,2,FALSE)=0,\"\",VLOOKUP(BH118,'Footnotes list'!$D$9:$E$58,2,FALSE) ) )","v":""},null,null,null,null,{"$f":"IF(TRIM(BM118)=\"\", \"\", IF(VLOOKUP(BM118,'Footnotes list'!$D$9:$E$58,2,FALSE)=0,\"\",VLOOKUP(BM118,'Footnotes list'!$D$9:$E$58,2,FALSE) ) )","v":""},null,null,null,null,{"$f":"IF(TRIM(BR118)=\"\", \"\", IF(VLOOKUP(BR118,'Footnotes list'!$D$9:$E$58,2,FALSE)=0,\"\",VLOOKUP(BR118,'Footnotes list'!$D$9:$E$58,2,FALSE) ) )","v":""},null,null,null,null,{"$f":"IF(TRIM(BW118)=\"\", \"\", IF(VLOOKUP(BW118,'Footnotes list'!$D$9:$E$58,2,FALSE)=0,\"\",VLOOKUP(BW118,'Footnotes list'!$D$9:$E$58,2,FALSE) ) )","v":""},null,null,null,null,{"$f":"IF(TRIM(CB118)=\"\", \"\", IF(VLOOKUP(CB118,'Footnotes list'!$D$9:$E$58,2,FALSE)=0,\"\",VLOOKUP(CB118,'Footnotes list'!$D$9:$E$58,2,FALSE) ) )","v":""},null,null,null,null,{"$f":"IF(TRIM(CG118)=\"\", \"\", IF(VLOOKUP(CG118,'Footnotes list'!$D$9:$E$58,2,FALSE)=0,\"\",VLOOKUP(CG118,'Footnotes list'!$D$9:$E$58,2,FALSE) ) )","v":""},null,null,null,null,{"$f":"IF(TRIM(CL118)=\"\", \"\", IF(VLOOKUP(CL118,'Footnotes list'!$D$9:$E$58,2,FALSE)=0,\"\",VLOOKUP(CL118,'Footnotes list'!$D$9:$E$58,2,FALSE) ) )","v":""},null,null,null,null,{"$f":"IF(TRIM(CQ118)=\"\", \"\", IF(VLOOKUP(CQ118,'Footnotes list'!$D$9:$E$58,2,FALSE)=0,\"\",VLOOKUP(CQ118,'Footnotes list'!$D$9:$E$58,2,FALSE) ) )","v":""},null,null,null,null,{"$f":"IF(TRIM(CV118)=\"\", \"\", IF(VLOOKUP(CV118,'Footnotes list'!$D$9:$E$58,2,FALSE)=0,\"\",VLOOKUP(CV118,'Footnotes list'!$D$9:$E$58,2,FALSE) ) )","v":""},null,null,null,null,{"$f":"IF(TRIM(DA118)=\"\", \"\", IF(VLOOKUP(DA118,'Footnotes list'!$D$9:$E$58,2,FALSE)=0,\"\",VLOOKUP(DA118,'Footnotes list'!$D$9:$E$58,2,FALSE) ) )","v":""},null,null,null,null,{"$f":"IF(TRIM(DF118)=\"\", \"\", IF(VLOOKUP(DF118,'Footnotes list'!$D$9:$E$58,2,FALSE)=0,\"\",VLOOKUP(DF118,'Footnotes list'!$D$9:$E$58,2,FALSE) ) )","v":""},null,null,null,null,{"$f":"IF(TRIM(DK118)=\"\", \"\", IF(VLOOKUP(DK118,'Footnotes list'!$D$9:$E$58,2,FALSE)=0,\"\",VLOOKUP(DK118,'Footnotes list'!$D$9:$E$58,2,FALSE) ) )","v":""},null,null,null,null,{"$f":"IF(TRIM(DP118)=\"\", \"\", IF(VLOOKUP(DP118,'Footnotes list'!$D$9:$E$58,2,FALSE)=0,\"\",VLOOKUP(DP118,'Footnotes list'!$D$9:$E$58,2,FALSE) ) )","v":""},null,null,null,null,{"$f":"IF(TRIM(DU118)=\"\", \"\", IF(VLOOKUP(DU118,'Footnotes list'!$D$9:$E$58,2,FALSE)=0,\"\",VLOOKUP(DU118,'Footnotes list'!$D$9:$E$58,2,FALSE) ) )","v":""},null,null,null,null,{"$f":"IF(TRIM(DZ118)=\"\", \"\", IF(VLOOKUP(DZ118,'Footnotes list'!$D$9:$E$58,2,FALSE)=0,\"\",VLOOKUP(DZ118,'Footnotes list'!$D$9:$E$58,2,FALSE) ) )","v":""},null,null,null,null,{"$f":"IF(TRIM(EE118)=\"\", \"\", IF(VLOOKUP(EE118,'Footnotes list'!$D$9:$E$58,2,FALSE)=0,\"\",VLOOKUP(EE118,'Footnotes list'!$D$9:$E$58,2,FALSE) ) )","v":""},null,null,null,null,{"$f":"IF(TRIM(EJ118)=\"\", \"\", IF(VLOOKUP(EJ118,'Footnotes list'!$D$9:$E$58,2,FALSE)=0,\"\",VLOOKUP(EJ118,'Footnotes list'!$D$9:$E$58,2,FALSE) ) )","v":""},null,null,null,null,{"$f":"IF(TRIM(EO118)=\"\", \"\", IF(VLOOKUP(EO118,'Footnotes list'!$D$9:$E$58,2,FALSE)=0,\"\",VLOOKUP(EO118,'Footnotes list'!$D$9:$E$58,2,FALSE) ) )","v":""},null,null,null,null,{"$f":"IF(TRIM(ET118)=\"\", \"\", IF(VLOOKUP(ET118,'Footnotes list'!$D$9:$E$58,2,FALSE)=0,\"\",VLOOKUP(ET118,'Footnotes list'!$D$9:$E$58,2,FALSE) ) )","v":""},null,null,null,null,{"$f":"IF(TRIM(EY118)=\"\", \"\", IF(VLOOKUP(EY118,'Footnotes list'!$D$9:$E$58,2,FALSE)=0,\"\",VLOOKUP(EY118,'Footnotes list'!$D$9:$E$58,2,FALSE) ) )","v":""}]
[null,null,"P","TOT_EGSS","Total P - Education, including:",null,null,null,null,null,{"$f":"IF(TRIM(J119)=\"\", \"\", IF(VLOOKUP(J119,'Footnotes list'!$D$9:$E$58,2,FALSE)=0,\"\",VLOOKUP(J119,'Footnotes list'!$D$9:$E$58,2,FALSE) ) )","v":""},null,null,null,null,{"$f":"IF(TRIM(O119)=\"\", \"\", IF(VLOOKUP(O119,'Footnotes list'!$D$9:$E$58,2,FALSE)=0,\"\",VLOOKUP(O119,'Footnotes list'!$D$9:$E$58,2,FALSE) ) )","v":""},null,null,null,null,{"$f":"IF(TRIM(T119)=\"\", \"\", IF(VLOOKUP(T119,'Footnotes list'!$D$9:$E$58,2,FALSE)=0,\"\",VLOOKUP(T119,'Footnotes list'!$D$9:$E$58,2,FALSE) ) )","v":""},null,null,null,null,{"$f":"IF(TRIM(Y119)=\"\", \"\", IF(VLOOKUP(Y119,'Footnotes list'!$D$9:$E$58,2,FALSE)=0,\"\",VLOOKUP(Y119,'Footnotes list'!$D$9:$E$58,2,FALSE) ) )","v":""},null,null,null,null,{"$f":"IF(TRIM(AD119)=\"\", \"\", IF(VLOOKUP(AD119,'Footnotes list'!$D$9:$E$58,2,FALSE)=0,\"\",VLOOKUP(AD119,'Footnotes list'!$D$9:$E$58,2,FALSE) ) )","v":""},null,null,null,null,{"$f":"IF(TRIM(AI119)=\"\", \"\", IF(VLOOKUP(AI119,'Footnotes list'!$D$9:$E$58,2,FALSE)=0,\"\",VLOOKUP(AI119,'Footnotes list'!$D$9:$E$58,2,FALSE) ) )","v":""},null,null,null,null,{"$f":"IF(TRIM(AN119)=\"\", \"\", IF(VLOOKUP(AN119,'Footnotes list'!$D$9:$E$58,2,FALSE)=0,\"\",VLOOKUP(AN119,'Footnotes list'!$D$9:$E$58,2,FALSE) ) )","v":""},null,null,null,null,{"$f":"IF(TRIM(AS119)=\"\", \"\", IF(VLOOKUP(AS119,'Footnotes list'!$D$9:$E$58,2,FALSE)=0,\"\",VLOOKUP(AS119,'Footnotes list'!$D$9:$E$58,2,FALSE) ) )","v":""},null,null,null,null,{"$f":"IF(TRIM(AX119)=\"\", \"\", IF(VLOOKUP(AX119,'Footnotes list'!$D$9:$E$58,2,FALSE)=0,\"\",VLOOKUP(AX119,'Footnotes list'!$D$9:$E$58,2,FALSE) ) )","v":""},null,null,null,null,{"$f":"IF(TRIM(BC119)=\"\", \"\", IF(VLOOKUP(BC119,'Footnotes list'!$D$9:$E$58,2,FALSE)=0,\"\",VLOOKUP(BC119,'Footnotes list'!$D$9:$E$58,2,FALSE) ) )","v":""},null,null,null,null,{"$f":"IF(TRIM(BH119)=\"\", \"\", IF(VLOOKUP(BH119,'Footnotes list'!$D$9:$E$58,2,FALSE)=0,\"\",VLOOKUP(BH119,'Footnotes list'!$D$9:$E$58,2,FALSE) ) )","v":""},null,null,null,null,{"$f":"IF(TRIM(BM119)=\"\", \"\", IF(VLOOKUP(BM119,'Footnotes list'!$D$9:$E$58,2,FALSE)=0,\"\",VLOOKUP(BM119,'Footnotes list'!$D$9:$E$58,2,FALSE) ) )","v":""},null,null,null,null,{"$f":"IF(TRIM(BR119)=\"\", \"\", IF(VLOOKUP(BR119,'Footnotes list'!$D$9:$E$58,2,FALSE)=0,\"\",VLOOKUP(BR119,'Footnotes list'!$D$9:$E$58,2,FALSE) ) )","v":""},null,null,null,null,{"$f":"IF(TRIM(BW119)=\"\", \"\", IF(VLOOKUP(BW119,'Footnotes list'!$D$9:$E$58,2,FALSE)=0,\"\",VLOOKUP(BW119,'Footnotes list'!$D$9:$E$58,2,FALSE) ) )","v":""},null,null,null,null,{"$f":"IF(TRIM(CB119)=\"\", \"\", IF(VLOOKUP(CB119,'Footnotes list'!$D$9:$E$58,2,FALSE)=0,\"\",VLOOKUP(CB119,'Footnotes list'!$D$9:$E$58,2,FALSE) ) )","v":""},null,null,null,null,{"$f":"IF(TRIM(CG119)=\"\", \"\", IF(VLOOKUP(CG119,'Footnotes list'!$D$9:$E$58,2,FALSE)=0,\"\",VLOOKUP(CG119,'Footnotes list'!$D$9:$E$58,2,FALSE) ) )","v":""},null,null,null,null,{"$f":"IF(TRIM(CL119)=\"\", \"\", IF(VLOOKUP(CL119,'Footnotes list'!$D$9:$E$58,2,FALSE)=0,\"\",VLOOKUP(CL119,'Footnotes list'!$D$9:$E$58,2,FALSE) ) )","v":""},null,null,null,null,{"$f":"IF(TRIM(CQ119)=\"\", \"\", IF(VLOOKUP(CQ119,'Footnotes list'!$D$9:$E$58,2,FALSE)=0,\"\",VLOOKUP(CQ119,'Footnotes list'!$D$9:$E$58,2,FALSE) ) )","v":""},null,null,null,null,{"$f":"IF(TRIM(CV119)=\"\", \"\", IF(VLOOKUP(CV119,'Footnotes list'!$D$9:$E$58,2,FALSE)=0,\"\",VLOOKUP(CV119,'Footnotes list'!$D$9:$E$58,2,FALSE) ) )","v":""},null,null,null,null,{"$f":"IF(TRIM(DA119)=\"\", \"\", IF(VLOOKUP(DA119,'Footnotes list'!$D$9:$E$58,2,FALSE)=0,\"\",VLOOKUP(DA119,'Footnotes list'!$D$9:$E$58,2,FALSE) ) )","v":""},null,null,null,null,{"$f":"IF(TRIM(DF119)=\"\", \"\", IF(VLOOKUP(DF119,'Footnotes list'!$D$9:$E$58,2,FALSE)=0,\"\",VLOOKUP(DF119,'Footnotes list'!$D$9:$E$58,2,FALSE) ) )","v":""},null,null,null,null,{"$f":"IF(TRIM(DK119)=\"\", \"\", IF(VLOOKUP(DK119,'Footnotes list'!$D$9:$E$58,2,FALSE)=0,\"\",VLOOKUP(DK119,'Footnotes list'!$D$9:$E$58,2,FALSE) ) )","v":""},null,null,null,null,{"$f":"IF(TRIM(DP119)=\"\", \"\", IF(VLOOKUP(DP119,'Footnotes list'!$D$9:$E$58,2,FALSE)=0,\"\",VLOOKUP(DP119,'Footnotes list'!$D$9:$E$58,2,FALSE) ) )","v":""},null,null,null,null,{"$f":"IF(TRIM(DU119)=\"\", \"\", IF(VLOOKUP(DU119,'Footnotes list'!$D$9:$E$58,2,FALSE)=0,\"\",VLOOKUP(DU119,'Footnotes list'!$D$9:$E$58,2,FALSE) ) )","v":""},null,null,null,null,{"$f":"IF(TRIM(DZ119)=\"\", \"\", IF(VLOOKUP(DZ119,'Footnotes list'!$D$9:$E$58,2,FALSE)=0,\"\",VLOOKUP(DZ119,'Footnotes list'!$D$9:$E$58,2,FALSE) ) )","v":""},null,null,null,null,{"$f":"IF(TRIM(EE119)=\"\", \"\", IF(VLOOKUP(EE119,'Footnotes list'!$D$9:$E$58,2,FALSE)=0,\"\",VLOOKUP(EE119,'Footnotes list'!$D$9:$E$58,2,FALSE) ) )","v":""},null,null,null,null,{"$f":"IF(TRIM(EJ119)=\"\", \"\", IF(VLOOKUP(EJ119,'Footnotes list'!$D$9:$E$58,2,FALSE)=0,\"\",VLOOKUP(EJ119,'Footnotes list'!$D$9:$E$58,2,FALSE) ) )","v":""},null,null,null,null,{"$f":"IF(TRIM(EO119)=\"\", \"\", IF(VLOOKUP(EO119,'Footnotes list'!$D$9:$E$58,2,FALSE)=0,\"\",VLOOKUP(EO119,'Footnotes list'!$D$9:$E$58,2,FALSE) ) )","v":""},null,null,null,null,{"$f":"IF(TRIM(ET119)=\"\", \"\", IF(VLOOKUP(ET119,'Footnotes list'!$D$9:$E$58,2,FALSE)=0,\"\",VLOOKUP(ET119,'Footnotes list'!$D$9:$E$58,2,FALSE) ) )","v":""},null,null,null,null,{"$f":"IF(TRIM(EY119)=\"\", \"\", IF(VLOOKUP(EY119,'Footnotes list'!$D$9:$E$58,2,FALSE)=0,\"\",VLOOKUP(EY119,'Footnotes list'!$D$9:$E$58,2,FALSE) ) )","v":""}]
[null,null,"P","ES_CS","environmental specific services",null,null,null,null,null,{"$f":"IF(TRIM(J120)=\"\", \"\", IF(VLOOKUP(J120,'Footnotes list'!$D$9:$E$58,2,FALSE)=0,\"\",VLOOKUP(J120,'Footnotes list'!$D$9:$E$58,2,FALSE) ) )","v":""},null,null,null,null,{"$f":"IF(TRIM(O120)=\"\", \"\", IF(VLOOKUP(O120,'Footnotes list'!$D$9:$E$58,2,FALSE)=0,\"\",VLOOKUP(O120,'Footnotes list'!$D$9:$E$58,2,FALSE) ) )","v":""},null,null,null,null,{"$f":"IF(TRIM(T120)=\"\", \"\", IF(VLOOKUP(T120,'Footnotes list'!$D$9:$E$58,2,FALSE)=0,\"\",VLOOKUP(T120,'Footnotes list'!$D$9:$E$58,2,FALSE) ) )","v":""},null,null,null,null,{"$f":"IF(TRIM(Y120)=\"\", \"\", IF(VLOOKUP(Y120,'Footnotes list'!$D$9:$E$58,2,FALSE)=0,\"\",VLOOKUP(Y120,'Footnotes list'!$D$9:$E$58,2,FALSE) ) )","v":""},null,null,null,null,{"$f":"IF(TRIM(AD120)=\"\", \"\", IF(VLOOKUP(AD120,'Footnotes list'!$D$9:$E$58,2,FALSE)=0,\"\",VLOOKUP(AD120,'Footnotes list'!$D$9:$E$58,2,FALSE) ) )","v":""},null,null,null,null,{"$f":"IF(TRIM(AI120)=\"\", \"\", IF(VLOOKUP(AI120,'Footnotes list'!$D$9:$E$58,2,FALSE)=0,\"\",VLOOKUP(AI120,'Footnotes list'!$D$9:$E$58,2,FALSE) ) )","v":""},null,null,null,null,{"$f":"IF(TRIM(AN120)=\"\", \"\", IF(VLOOKUP(AN120,'Footnotes list'!$D$9:$E$58,2,FALSE)=0,\"\",VLOOKUP(AN120,'Footnotes list'!$D$9:$E$58,2,FALSE) ) )","v":""},null,null,null,null,{"$f":"IF(TRIM(AS120)=\"\", \"\", IF(VLOOKUP(AS120,'Footnotes list'!$D$9:$E$58,2,FALSE)=0,\"\",VLOOKUP(AS120,'Footnotes list'!$D$9:$E$58,2,FALSE) ) )","v":""},null,null,null,null,{"$f":"IF(TRIM(AX120)=\"\", \"\", IF(VLOOKUP(AX120,'Footnotes list'!$D$9:$E$58,2,FALSE)=0,\"\",VLOOKUP(AX120,'Footnotes list'!$D$9:$E$58,2,FALSE) ) )","v":""},null,null,null,null,{"$f":"IF(TRIM(BC120)=\"\", \"\", IF(VLOOKUP(BC120,'Footnotes list'!$D$9:$E$58,2,FALSE)=0,\"\",VLOOKUP(BC120,'Footnotes list'!$D$9:$E$58,2,FALSE) ) )","v":""},null,null,null,null,{"$f":"IF(TRIM(BH120)=\"\", \"\", IF(VLOOKUP(BH120,'Footnotes list'!$D$9:$E$58,2,FALSE)=0,\"\",VLOOKUP(BH120,'Footnotes list'!$D$9:$E$58,2,FALSE) ) )","v":""},null,null,null,null,{"$f":"IF(TRIM(BM120)=\"\", \"\", IF(VLOOKUP(BM120,'Footnotes list'!$D$9:$E$58,2,FALSE)=0,\"\",VLOOKUP(BM120,'Footnotes list'!$D$9:$E$58,2,FALSE) ) )","v":""},null,null,null,null,{"$f":"IF(TRIM(BR120)=\"\", \"\", IF(VLOOKUP(BR120,'Footnotes list'!$D$9:$E$58,2,FALSE)=0,\"\",VLOOKUP(BR120,'Footnotes list'!$D$9:$E$58,2,FALSE) ) )","v":""},null,null,null,null,{"$f":"IF(TRIM(BW120)=\"\", \"\", IF(VLOOKUP(BW120,'Footnotes list'!$D$9:$E$58,2,FALSE)=0,\"\",VLOOKUP(BW120,'Footnotes list'!$D$9:$E$58,2,FALSE) ) )","v":""},null,null,null,null,{"$f":"IF(TRIM(CB120)=\"\", \"\", IF(VLOOKUP(CB120,'Footnotes list'!$D$9:$E$58,2,FALSE)=0,\"\",VLOOKUP(CB120,'Footnotes list'!$D$9:$E$58,2,FALSE) ) )","v":""},null,null,null,null,{"$f":"IF(TRIM(CG120)=\"\", \"\", IF(VLOOKUP(CG120,'Footnotes list'!$D$9:$E$58,2,FALSE)=0,\"\",VLOOKUP(CG120,'Footnotes list'!$D$9:$E$58,2,FALSE) ) )","v":""},null,null,null,null,{"$f":"IF(TRIM(CL120)=\"\", \"\", IF(VLOOKUP(CL120,'Footnotes list'!$D$9:$E$58,2,FALSE)=0,\"\",VLOOKUP(CL120,'Footnotes list'!$D$9:$E$58,2,FALSE) ) )","v":""},null,null,null,null,{"$f":"IF(TRIM(CQ120)=\"\", \"\", IF(VLOOKUP(CQ120,'Footnotes list'!$D$9:$E$58,2,FALSE)=0,\"\",VLOOKUP(CQ120,'Footnotes list'!$D$9:$E$58,2,FALSE) ) )","v":""},null,null,null,null,{"$f":"IF(TRIM(CV120)=\"\", \"\", IF(VLOOKUP(CV120,'Footnotes list'!$D$9:$E$58,2,FALSE)=0,\"\",VLOOKUP(CV120,'Footnotes list'!$D$9:$E$58,2,FALSE) ) )","v":""},null,null,null,null,{"$f":"IF(TRIM(DA120)=\"\", \"\", IF(VLOOKUP(DA120,'Footnotes list'!$D$9:$E$58,2,FALSE)=0,\"\",VLOOKUP(DA120,'Footnotes list'!$D$9:$E$58,2,FALSE) ) )","v":""},null,null,null,null,{"$f":"IF(TRIM(DF120)=\"\", \"\", IF(VLOOKUP(DF120,'Footnotes list'!$D$9:$E$58,2,FALSE)=0,\"\",VLOOKUP(DF120,'Footnotes list'!$D$9:$E$58,2,FALSE) ) )","v":""},null,null,null,null,{"$f":"IF(TRIM(DK120)=\"\", \"\", IF(VLOOKUP(DK120,'Footnotes list'!$D$9:$E$58,2,FALSE)=0,\"\",VLOOKUP(DK120,'Footnotes list'!$D$9:$E$58,2,FALSE) ) )","v":""},null,null,null,null,{"$f":"IF(TRIM(DP120)=\"\", \"\", IF(VLOOKUP(DP120,'Footnotes list'!$D$9:$E$58,2,FALSE)=0,\"\",VLOOKUP(DP120,'Footnotes list'!$D$9:$E$58,2,FALSE) ) )","v":""},null,null,null,null,{"$f":"IF(TRIM(DU120)=\"\", \"\", IF(VLOOKUP(DU120,'Footnotes list'!$D$9:$E$58,2,FALSE)=0,\"\",VLOOKUP(DU120,'Footnotes list'!$D$9:$E$58,2,FALSE) ) )","v":""},null,null,null,null,{"$f":"IF(TRIM(DZ120)=\"\", \"\", IF(VLOOKUP(DZ120,'Footnotes list'!$D$9:$E$58,2,FALSE)=0,\"\",VLOOKUP(DZ120,'Footnotes list'!$D$9:$E$58,2,FALSE) ) )","v":""},null,null,null,null,{"$f":"IF(TRIM(EE120)=\"\", \"\", IF(VLOOKUP(EE120,'Footnotes list'!$D$9:$E$58,2,FALSE)=0,\"\",VLOOKUP(EE120,'Footnotes list'!$D$9:$E$58,2,FALSE) ) )","v":""},null,null,null,null,{"$f":"IF(TRIM(EJ120)=\"\", \"\", IF(VLOOKUP(EJ120,'Footnotes list'!$D$9:$E$58,2,FALSE)=0,\"\",VLOOKUP(EJ120,'Footnotes list'!$D$9:$E$58,2,FALSE) ) )","v":""},null,null,null,null,{"$f":"IF(TRIM(EO120)=\"\", \"\", IF(VLOOKUP(EO120,'Footnotes list'!$D$9:$E$58,2,FALSE)=0,\"\",VLOOKUP(EO120,'Footnotes list'!$D$9:$E$58,2,FALSE) ) )","v":""},null,null,null,null,{"$f":"IF(TRIM(ET120)=\"\", \"\", IF(VLOOKUP(ET120,'Footnotes list'!$D$9:$E$58,2,FALSE)=0,\"\",VLOOKUP(ET120,'Footnotes list'!$D$9:$E$58,2,FALSE) ) )","v":""},null,null,null,null,{"$f":"IF(TRIM(EY120)=\"\", \"\", IF(VLOOKUP(EY120,'Footnotes list'!$D$9:$E$58,2,FALSE)=0,\"\",VLOOKUP(EY120,'Footnotes list'!$D$9:$E$58,2,FALSE) ) )","v":""}]
[null,null,"P","C_REP","cleaner and resource efficient products",null,null,null,null,null,{"$f":"IF(TRIM(J121)=\"\", \"\", IF(VLOOKUP(J121,'Footnotes list'!$D$9:$E$58,2,FALSE)=0,\"\",VLOOKUP(J121,'Footnotes list'!$D$9:$E$58,2,FALSE) ) )","v":""},null,null,null,null,{"$f":"IF(TRIM(O121)=\"\", \"\", IF(VLOOKUP(O121,'Footnotes list'!$D$9:$E$58,2,FALSE)=0,\"\",VLOOKUP(O121,'Footnotes list'!$D$9:$E$58,2,FALSE) ) )","v":""},null,null,null,null,{"$f":"IF(TRIM(T121)=\"\", \"\", IF(VLOOKUP(T121,'Footnotes list'!$D$9:$E$58,2,FALSE)=0,\"\",VLOOKUP(T121,'Footnotes list'!$D$9:$E$58,2,FALSE) ) )","v":""},null,null,null,null,{"$f":"IF(TRIM(Y121)=\"\", \"\", IF(VLOOKUP(Y121,'Footnotes list'!$D$9:$E$58,2,FALSE)=0,\"\",VLOOKUP(Y121,'Footnotes list'!$D$9:$E$58,2,FALSE) ) )","v":""},null,null,null,null,{"$f":"IF(TRIM(AD121)=\"\", \"\", IF(VLOOKUP(AD121,'Footnotes list'!$D$9:$E$58,2,FALSE)=0,\"\",VLOOKUP(AD121,'Footnotes list'!$D$9:$E$58,2,FALSE) ) )","v":""},null,null,null,null,{"$f":"IF(TRIM(AI121)=\"\", \"\", IF(VLOOKUP(AI121,'Footnotes list'!$D$9:$E$58,2,FALSE)=0,\"\",VLOOKUP(AI121,'Footnotes list'!$D$9:$E$58,2,FALSE) ) )","v":""},null,null,null,null,{"$f":"IF(TRIM(AN121)=\"\", \"\", IF(VLOOKUP(AN121,'Footnotes list'!$D$9:$E$58,2,FALSE)=0,\"\",VLOOKUP(AN121,'Footnotes list'!$D$9:$E$58,2,FALSE) ) )","v":""},null,null,null,null,{"$f":"IF(TRIM(AS121)=\"\", \"\", IF(VLOOKUP(AS121,'Footnotes list'!$D$9:$E$58,2,FALSE)=0,\"\",VLOOKUP(AS121,'Footnotes list'!$D$9:$E$58,2,FALSE) ) )","v":""},null,null,null,null,{"$f":"IF(TRIM(AX121)=\"\", \"\", IF(VLOOKUP(AX121,'Footnotes list'!$D$9:$E$58,2,FALSE)=0,\"\",VLOOKUP(AX121,'Footnotes list'!$D$9:$E$58,2,FALSE) ) )","v":""},null,null,null,null,{"$f":"IF(TRIM(BC121)=\"\", \"\", IF(VLOOKUP(BC121,'Footnotes list'!$D$9:$E$58,2,FALSE)=0,\"\",VLOOKUP(BC121,'Footnotes list'!$D$9:$E$58,2,FALSE) ) )","v":""},null,null,null,null,{"$f":"IF(TRIM(BH121)=\"\", \"\", IF(VLOOKUP(BH121,'Footnotes list'!$D$9:$E$58,2,FALSE)=0,\"\",VLOOKUP(BH121,'Footnotes list'!$D$9:$E$58,2,FALSE) ) )","v":""},null,null,null,null,{"$f":"IF(TRIM(BM121)=\"\", \"\", IF(VLOOKUP(BM121,'Footnotes list'!$D$9:$E$58,2,FALSE)=0,\"\",VLOOKUP(BM121,'Footnotes list'!$D$9:$E$58,2,FALSE) ) )","v":""},null,null,null,null,{"$f":"IF(TRIM(BR121)=\"\", \"\", IF(VLOOKUP(BR121,'Footnotes list'!$D$9:$E$58,2,FALSE)=0,\"\",VLOOKUP(BR121,'Footnotes list'!$D$9:$E$58,2,FALSE) ) )","v":""},null,null,null,null,{"$f":"IF(TRIM(BW121)=\"\", \"\", IF(VLOOKUP(BW121,'Footnotes list'!$D$9:$E$58,2,FALSE)=0,\"\",VLOOKUP(BW121,'Footnotes list'!$D$9:$E$58,2,FALSE) ) )","v":""},null,null,null,null,{"$f":"IF(TRIM(CB121)=\"\", \"\", IF(VLOOKUP(CB121,'Footnotes list'!$D$9:$E$58,2,FALSE)=0,\"\",VLOOKUP(CB121,'Footnotes list'!$D$9:$E$58,2,FALSE) ) )","v":""},null,null,null,null,{"$f":"IF(TRIM(CG121)=\"\", \"\", IF(VLOOKUP(CG121,'Footnotes list'!$D$9:$E$58,2,FALSE)=0,\"\",VLOOKUP(CG121,'Footnotes list'!$D$9:$E$58,2,FALSE) ) )","v":""},null,null,null,null,{"$f":"IF(TRIM(CL121)=\"\", \"\", IF(VLOOKUP(CL121,'Footnotes list'!$D$9:$E$58,2,FALSE)=0,\"\",VLOOKUP(CL121,'Footnotes list'!$D$9:$E$58,2,FALSE) ) )","v":""},null,null,null,null,{"$f":"IF(TRIM(CQ121)=\"\", \"\", IF(VLOOKUP(CQ121,'Footnotes list'!$D$9:$E$58,2,FALSE)=0,\"\",VLOOKUP(CQ121,'Footnotes list'!$D$9:$E$58,2,FALSE) ) )","v":""},null,null,null,null,{"$f":"IF(TRIM(CV121)=\"\", \"\", IF(VLOOKUP(CV121,'Footnotes list'!$D$9:$E$58,2,FALSE)=0,\"\",VLOOKUP(CV121,'Footnotes list'!$D$9:$E$58,2,FALSE) ) )","v":""},null,null,null,null,{"$f":"IF(TRIM(DA121)=\"\", \"\", IF(VLOOKUP(DA121,'Footnotes list'!$D$9:$E$58,2,FALSE)=0,\"\",VLOOKUP(DA121,'Footnotes list'!$D$9:$E$58,2,FALSE) ) )","v":""},null,null,null,null,{"$f":"IF(TRIM(DF121)=\"\", \"\", IF(VLOOKUP(DF121,'Footnotes list'!$D$9:$E$58,2,FALSE)=0,\"\",VLOOKUP(DF121,'Footnotes list'!$D$9:$E$58,2,FALSE) ) )","v":""},null,null,null,null,{"$f":"IF(TRIM(DK121)=\"\", \"\", IF(VLOOKUP(DK121,'Footnotes list'!$D$9:$E$58,2,FALSE)=0,\"\",VLOOKUP(DK121,'Footnotes list'!$D$9:$E$58,2,FALSE) ) )","v":""},null,null,null,null,{"$f":"IF(TRIM(DP121)=\"\", \"\", IF(VLOOKUP(DP121,'Footnotes list'!$D$9:$E$58,2,FALSE)=0,\"\",VLOOKUP(DP121,'Footnotes list'!$D$9:$E$58,2,FALSE) ) )","v":""},null,null,null,null,{"$f":"IF(TRIM(DU121)=\"\", \"\", IF(VLOOKUP(DU121,'Footnotes list'!$D$9:$E$58,2,FALSE)=0,\"\",VLOOKUP(DU121,'Footnotes list'!$D$9:$E$58,2,FALSE) ) )","v":""},null,null,null,null,{"$f":"IF(TRIM(DZ121)=\"\", \"\", IF(VLOOKUP(DZ121,'Footnotes list'!$D$9:$E$58,2,FALSE)=0,\"\",VLOOKUP(DZ121,'Footnotes list'!$D$9:$E$58,2,FALSE) ) )","v":""},null,null,null,null,{"$f":"IF(TRIM(EE121)=\"\", \"\", IF(VLOOKUP(EE121,'Footnotes list'!$D$9:$E$58,2,FALSE)=0,\"\",VLOOKUP(EE121,'Footnotes list'!$D$9:$E$58,2,FALSE) ) )","v":""},null,null,null,null,{"$f":"IF(TRIM(EJ121)=\"\", \"\", IF(VLOOKUP(EJ121,'Footnotes list'!$D$9:$E$58,2,FALSE)=0,\"\",VLOOKUP(EJ121,'Footnotes list'!$D$9:$E$58,2,FALSE) ) )","v":""},null,null,null,null,{"$f":"IF(TRIM(EO121)=\"\", \"\", IF(VLOOKUP(EO121,'Footnotes list'!$D$9:$E$58,2,FALSE)=0,\"\",VLOOKUP(EO121,'Footnotes list'!$D$9:$E$58,2,FALSE) ) )","v":""},null,null,null,null,{"$f":"IF(TRIM(ET121)=\"\", \"\", IF(VLOOKUP(ET121,'Footnotes list'!$D$9:$E$58,2,FALSE)=0,\"\",VLOOKUP(ET121,'Footnotes list'!$D$9:$E$58,2,FALSE) ) )","v":""},null,null,null,null,{"$f":"IF(TRIM(EY121)=\"\", \"\", IF(VLOOKUP(EY121,'Footnotes list'!$D$9:$E$58,2,FALSE)=0,\"\",VLOOKUP(EY121,'Footnotes list'!$D$9:$E$58,2,FALSE) ) )","v":""}]
[null,null,"Q","TOT_EGSS","Total Q - Human health and social work activities, including:",null,null,null,null,null,{"$f":"IF(TRIM(J122)=\"\", \"\", IF(VLOOKUP(J122,'Footnotes list'!$D$9:$E$58,2,FALSE)=0,\"\",VLOOKUP(J122,'Footnotes list'!$D$9:$E$58,2,FALSE) ) )","v":""},null,null,null,null,{"$f":"IF(TRIM(O122)=\"\", \"\", IF(VLOOKUP(O122,'Footnotes list'!$D$9:$E$58,2,FALSE)=0,\"\",VLOOKUP(O122,'Footnotes list'!$D$9:$E$58,2,FALSE) ) )","v":""},null,null,null,null,{"$f":"IF(TRIM(T122)=\"\", \"\", IF(VLOOKUP(T122,'Footnotes list'!$D$9:$E$58,2,FALSE)=0,\"\",VLOOKUP(T122,'Footnotes list'!$D$9:$E$58,2,FALSE) ) )","v":""},null,null,null,null,{"$f":"IF(TRIM(Y122)=\"\", \"\", IF(VLOOKUP(Y122,'Footnotes list'!$D$9:$E$58,2,FALSE)=0,\"\",VLOOKUP(Y122,'Footnotes list'!$D$9:$E$58,2,FALSE) ) )","v":""},null,null,null,null,{"$f":"IF(TRIM(AD122)=\"\", \"\", IF(VLOOKUP(AD122,'Footnotes list'!$D$9:$E$58,2,FALSE)=0,\"\",VLOOKUP(AD122,'Footnotes list'!$D$9:$E$58,2,FALSE) ) )","v":""},null,null,null,null,{"$f":"IF(TRIM(AI122)=\"\", \"\", IF(VLOOKUP(AI122,'Footnotes list'!$D$9:$E$58,2,FALSE)=0,\"\",VLOOKUP(AI122,'Footnotes list'!$D$9:$E$58,2,FALSE) ) )","v":""},null,null,null,null,{"$f":"IF(TRIM(AN122)=\"\", \"\", IF(VLOOKUP(AN122,'Footnotes list'!$D$9:$E$58,2,FALSE)=0,\"\",VLOOKUP(AN122,'Footnotes list'!$D$9:$E$58,2,FALSE) ) )","v":""},null,null,null,null,{"$f":"IF(TRIM(AS122)=\"\", \"\", IF(VLOOKUP(AS122,'Footnotes list'!$D$9:$E$58,2,FALSE)=0,\"\",VLOOKUP(AS122,'Footnotes list'!$D$9:$E$58,2,FALSE) ) )","v":""},null,null,null,null,{"$f":"IF(TRIM(AX122)=\"\", \"\", IF(VLOOKUP(AX122,'Footnotes list'!$D$9:$E$58,2,FALSE)=0,\"\",VLOOKUP(AX122,'Footnotes list'!$D$9:$E$58,2,FALSE) ) )","v":""},null,null,null,null,{"$f":"IF(TRIM(BC122)=\"\", \"\", IF(VLOOKUP(BC122,'Footnotes list'!$D$9:$E$58,2,FALSE)=0,\"\",VLOOKUP(BC122,'Footnotes list'!$D$9:$E$58,2,FALSE) ) )","v":""},null,null,null,null,{"$f":"IF(TRIM(BH122)=\"\", \"\", IF(VLOOKUP(BH122,'Footnotes list'!$D$9:$E$58,2,FALSE)=0,\"\",VLOOKUP(BH122,'Footnotes list'!$D$9:$E$58,2,FALSE) ) )","v":""},null,null,null,null,{"$f":"IF(TRIM(BM122)=\"\", \"\", IF(VLOOKUP(BM122,'Footnotes list'!$D$9:$E$58,2,FALSE)=0,\"\",VLOOKUP(BM122,'Footnotes list'!$D$9:$E$58,2,FALSE) ) )","v":""},null,null,null,null,{"$f":"IF(TRIM(BR122)=\"\", \"\", IF(VLOOKUP(BR122,'Footnotes list'!$D$9:$E$58,2,FALSE)=0,\"\",VLOOKUP(BR122,'Footnotes list'!$D$9:$E$58,2,FALSE) ) )","v":""},null,null,null,null,{"$f":"IF(TRIM(BW122)=\"\", \"\", IF(VLOOKUP(BW122,'Footnotes list'!$D$9:$E$58,2,FALSE)=0,\"\",VLOOKUP(BW122,'Footnotes list'!$D$9:$E$58,2,FALSE) ) )","v":""},null,null,null,null,{"$f":"IF(TRIM(CB122)=\"\", \"\", IF(VLOOKUP(CB122,'Footnotes list'!$D$9:$E$58,2,FALSE)=0,\"\",VLOOKUP(CB122,'Footnotes list'!$D$9:$E$58,2,FALSE) ) )","v":""},null,null,null,null,{"$f":"IF(TRIM(CG122)=\"\", \"\", IF(VLOOKUP(CG122,'Footnotes list'!$D$9:$E$58,2,FALSE)=0,\"\",VLOOKUP(CG122,'Footnotes list'!$D$9:$E$58,2,FALSE) ) )","v":""},null,null,null,null,{"$f":"IF(TRIM(CL122)=\"\", \"\", IF(VLOOKUP(CL122,'Footnotes list'!$D$9:$E$58,2,FALSE)=0,\"\",VLOOKUP(CL122,'Footnotes list'!$D$9:$E$58,2,FALSE) ) )","v":""},null,null,null,null,{"$f":"IF(TRIM(CQ122)=\"\", \"\", IF(VLOOKUP(CQ122,'Footnotes list'!$D$9:$E$58,2,FALSE)=0,\"\",VLOOKUP(CQ122,'Footnotes list'!$D$9:$E$58,2,FALSE) ) )","v":""},null,null,null,null,{"$f":"IF(TRIM(CV122)=\"\", \"\", IF(VLOOKUP(CV122,'Footnotes list'!$D$9:$E$58,2,FALSE)=0,\"\",VLOOKUP(CV122,'Footnotes list'!$D$9:$E$58,2,FALSE) ) )","v":""},null,null,null,null,{"$f":"IF(TRIM(DA122)=\"\", \"\", IF(VLOOKUP(DA122,'Footnotes list'!$D$9:$E$58,2,FALSE)=0,\"\",VLOOKUP(DA122,'Footnotes list'!$D$9:$E$58,2,FALSE) ) )","v":""},null,null,null,null,{"$f":"IF(TRIM(DF122)=\"\", \"\", IF(VLOOKUP(DF122,'Footnotes list'!$D$9:$E$58,2,FALSE)=0,\"\",VLOOKUP(DF122,'Footnotes list'!$D$9:$E$58,2,FALSE) ) )","v":""},null,null,null,null,{"$f":"IF(TRIM(DK122)=\"\", \"\", IF(VLOOKUP(DK122,'Footnotes list'!$D$9:$E$58,2,FALSE)=0,\"\",VLOOKUP(DK122,'Footnotes list'!$D$9:$E$58,2,FALSE) ) )","v":""},null,null,null,null,{"$f":"IF(TRIM(DP122)=\"\", \"\", IF(VLOOKUP(DP122,'Footnotes list'!$D$9:$E$58,2,FALSE)=0,\"\",VLOOKUP(DP122,'Footnotes list'!$D$9:$E$58,2,FALSE) ) )","v":""},null,null,null,null,{"$f":"IF(TRIM(DU122)=\"\", \"\", IF(VLOOKUP(DU122,'Footnotes list'!$D$9:$E$58,2,FALSE)=0,\"\",VLOOKUP(DU122,'Footnotes list'!$D$9:$E$58,2,FALSE) ) )","v":""},null,null,null,null,{"$f":"IF(TRIM(DZ122)=\"\", \"\", IF(VLOOKUP(DZ122,'Footnotes list'!$D$9:$E$58,2,FALSE)=0,\"\",VLOOKUP(DZ122,'Footnotes list'!$D$9:$E$58,2,FALSE) ) )","v":""},null,null,null,null,{"$f":"IF(TRIM(EE122)=\"\", \"\", IF(VLOOKUP(EE122,'Footnotes list'!$D$9:$E$58,2,FALSE)=0,\"\",VLOOKUP(EE122,'Footnotes list'!$D$9:$E$58,2,FALSE) ) )","v":""},null,null,null,null,{"$f":"IF(TRIM(EJ122)=\"\", \"\", IF(VLOOKUP(EJ122,'Footnotes list'!$D$9:$E$58,2,FALSE)=0,\"\",VLOOKUP(EJ122,'Footnotes list'!$D$9:$E$58,2,FALSE) ) )","v":""},null,null,null,null,{"$f":"IF(TRIM(EO122)=\"\", \"\", IF(VLOOKUP(EO122,'Footnotes list'!$D$9:$E$58,2,FALSE)=0,\"\",VLOOKUP(EO122,'Footnotes list'!$D$9:$E$58,2,FALSE) ) )","v":""},null,null,null,null,{"$f":"IF(TRIM(ET122)=\"\", \"\", IF(VLOOKUP(ET122,'Footnotes list'!$D$9:$E$58,2,FALSE)=0,\"\",VLOOKUP(ET122,'Footnotes list'!$D$9:$E$58,2,FALSE) ) )","v":""},null,null,null,null,{"$f":"IF(TRIM(EY122)=\"\", \"\", IF(VLOOKUP(EY122,'Footnotes list'!$D$9:$E$58,2,FALSE)=0,\"\",VLOOKUP(EY122,'Footnotes list'!$D$9:$E$58,2,FALSE) ) )","v":""}]
[null,null,"Q","ES_CS","environmental specific services",null,null,null,null,null,{"$f":"IF(TRIM(J123)=\"\", \"\", IF(VLOOKUP(J123,'Footnotes list'!$D$9:$E$58,2,FALSE)=0,\"\",VLOOKUP(J123,'Footnotes list'!$D$9:$E$58,2,FALSE) ) )","v":""},null,null,null,null,{"$f":"IF(TRIM(O123)=\"\", \"\", IF(VLOOKUP(O123,'Footnotes list'!$D$9:$E$58,2,FALSE)=0,\"\",VLOOKUP(O123,'Footnotes list'!$D$9:$E$58,2,FALSE) ) )","v":""},null,null,null,null,{"$f":"IF(TRIM(T123)=\"\", \"\", IF(VLOOKUP(T123,'Footnotes list'!$D$9:$E$58,2,FALSE)=0,\"\",VLOOKUP(T123,'Footnotes list'!$D$9:$E$58,2,FALSE) ) )","v":""},null,null,null,null,{"$f":"IF(TRIM(Y123)=\"\", \"\", IF(VLOOKUP(Y123,'Footnotes list'!$D$9:$E$58,2,FALSE)=0,\"\",VLOOKUP(Y123,'Footnotes list'!$D$9:$E$58,2,FALSE) ) )","v":""},null,null,null,null,{"$f":"IF(TRIM(AD123)=\"\", \"\", IF(VLOOKUP(AD123,'Footnotes list'!$D$9:$E$58,2,FALSE)=0,\"\",VLOOKUP(AD123,'Footnotes list'!$D$9:$E$58,2,FALSE) ) )","v":""},null,null,null,null,{"$f":"IF(TRIM(AI123)=\"\", \"\", IF(VLOOKUP(AI123,'Footnotes list'!$D$9:$E$58,2,FALSE)=0,\"\",VLOOKUP(AI123,'Footnotes list'!$D$9:$E$58,2,FALSE) ) )","v":""},null,null,null,null,{"$f":"IF(TRIM(AN123)=\"\", \"\", IF(VLOOKUP(AN123,'Footnotes list'!$D$9:$E$58,2,FALSE)=0,\"\",VLOOKUP(AN123,'Footnotes list'!$D$9:$E$58,2,FALSE) ) )","v":""},null,null,null,null,{"$f":"IF(TRIM(AS123)=\"\", \"\", IF(VLOOKUP(AS123,'Footnotes list'!$D$9:$E$58,2,FALSE)=0,\"\",VLOOKUP(AS123,'Footnotes list'!$D$9:$E$58,2,FALSE) ) )","v":""},null,null,null,null,{"$f":"IF(TRIM(AX123)=\"\", \"\", IF(VLOOKUP(AX123,'Footnotes list'!$D$9:$E$58,2,FALSE)=0,\"\",VLOOKUP(AX123,'Footnotes list'!$D$9:$E$58,2,FALSE) ) )","v":""},null,null,null,null,{"$f":"IF(TRIM(BC123)=\"\", \"\", IF(VLOOKUP(BC123,'Footnotes list'!$D$9:$E$58,2,FALSE)=0,\"\",VLOOKUP(BC123,'Footnotes list'!$D$9:$E$58,2,FALSE) ) )","v":""},null,null,null,null,{"$f":"IF(TRIM(BH123)=\"\", \"\", IF(VLOOKUP(BH123,'Footnotes list'!$D$9:$E$58,2,FALSE)=0,\"\",VLOOKUP(BH123,'Footnotes list'!$D$9:$E$58,2,FALSE) ) )","v":""},null,null,null,null,{"$f":"IF(TRIM(BM123)=\"\", \"\", IF(VLOOKUP(BM123,'Footnotes list'!$D$9:$E$58,2,FALSE)=0,\"\",VLOOKUP(BM123,'Footnotes list'!$D$9:$E$58,2,FALSE) ) )","v":""},null,null,null,null,{"$f":"IF(TRIM(BR123)=\"\", \"\", IF(VLOOKUP(BR123,'Footnotes list'!$D$9:$E$58,2,FALSE)=0,\"\",VLOOKUP(BR123,'Footnotes list'!$D$9:$E$58,2,FALSE) ) )","v":""},null,null,null,null,{"$f":"IF(TRIM(BW123)=\"\", \"\", IF(VLOOKUP(BW123,'Footnotes list'!$D$9:$E$58,2,FALSE)=0,\"\",VLOOKUP(BW123,'Footnotes list'!$D$9:$E$58,2,FALSE) ) )","v":""},null,null,null,null,{"$f":"IF(TRIM(CB123)=\"\", \"\", IF(VLOOKUP(CB123,'Footnotes list'!$D$9:$E$58,2,FALSE)=0,\"\",VLOOKUP(CB123,'Footnotes list'!$D$9:$E$58,2,FALSE) ) )","v":""},null,null,null,null,{"$f":"IF(TRIM(CG123)=\"\", \"\", IF(VLOOKUP(CG123,'Footnotes list'!$D$9:$E$58,2,FALSE)=0,\"\",VLOOKUP(CG123,'Footnotes list'!$D$9:$E$58,2,FALSE) ) )","v":""},null,null,null,null,{"$f":"IF(TRIM(CL123)=\"\", \"\", IF(VLOOKUP(CL123,'Footnotes list'!$D$9:$E$58,2,FALSE)=0,\"\",VLOOKUP(CL123,'Footnotes list'!$D$9:$E$58,2,FALSE) ) )","v":""},null,null,null,null,{"$f":"IF(TRIM(CQ123)=\"\", \"\", IF(VLOOKUP(CQ123,'Footnotes list'!$D$9:$E$58,2,FALSE)=0,\"\",VLOOKUP(CQ123,'Footnotes list'!$D$9:$E$58,2,FALSE) ) )","v":""},null,null,null,null,{"$f":"IF(TRIM(CV123)=\"\", \"\", IF(VLOOKUP(CV123,'Footnotes list'!$D$9:$E$58,2,FALSE)=0,\"\",VLOOKUP(CV123,'Footnotes list'!$D$9:$E$58,2,FALSE) ) )","v":""},null,null,null,null,{"$f":"IF(TRIM(DA123)=\"\", \"\", IF(VLOOKUP(DA123,'Footnotes list'!$D$9:$E$58,2,FALSE)=0,\"\",VLOOKUP(DA123,'Footnotes list'!$D$9:$E$58,2,FALSE) ) )","v":""},null,null,null,null,{"$f":"IF(TRIM(DF123)=\"\", \"\", IF(VLOOKUP(DF123,'Footnotes list'!$D$9:$E$58,2,FALSE)=0,\"\",VLOOKUP(DF123,'Footnotes list'!$D$9:$E$58,2,FALSE) ) )","v":""},null,null,null,null,{"$f":"IF(TRIM(DK123)=\"\", \"\", IF(VLOOKUP(DK123,'Footnotes list'!$D$9:$E$58,2,FALSE)=0,\"\",VLOOKUP(DK123,'Footnotes list'!$D$9:$E$58,2,FALSE) ) )","v":""},null,null,null,null,{"$f":"IF(TRIM(DP123)=\"\", \"\", IF(VLOOKUP(DP123,'Footnotes list'!$D$9:$E$58,2,FALSE)=0,\"\",VLOOKUP(DP123,'Footnotes list'!$D$9:$E$58,2,FALSE) ) )","v":""},null,null,null,null,{"$f":"IF(TRIM(DU123)=\"\", \"\", IF(VLOOKUP(DU123,'Footnotes list'!$D$9:$E$58,2,FALSE)=0,\"\",VLOOKUP(DU123,'Footnotes list'!$D$9:$E$58,2,FALSE) ) )","v":""},null,null,null,null,{"$f":"IF(TRIM(DZ123)=\"\", \"\", IF(VLOOKUP(DZ123,'Footnotes list'!$D$9:$E$58,2,FALSE)=0,\"\",VLOOKUP(DZ123,'Footnotes list'!$D$9:$E$58,2,FALSE) ) )","v":""},null,null,null,null,{"$f":"IF(TRIM(EE123)=\"\", \"\", IF(VLOOKUP(EE123,'Footnotes list'!$D$9:$E$58,2,FALSE)=0,\"\",VLOOKUP(EE123,'Footnotes list'!$D$9:$E$58,2,FALSE) ) )","v":""},null,null,null,null,{"$f":"IF(TRIM(EJ123)=\"\", \"\", IF(VLOOKUP(EJ123,'Footnotes list'!$D$9:$E$58,2,FALSE)=0,\"\",VLOOKUP(EJ123,'Footnotes list'!$D$9:$E$58,2,FALSE) ) )","v":""},null,null,null,null,{"$f":"IF(TRIM(EO123)=\"\", \"\", IF(VLOOKUP(EO123,'Footnotes list'!$D$9:$E$58,2,FALSE)=0,\"\",VLOOKUP(EO123,'Footnotes list'!$D$9:$E$58,2,FALSE) ) )","v":""},null,null,null,null,{"$f":"IF(TRIM(ET123)=\"\", \"\", IF(VLOOKUP(ET123,'Footnotes list'!$D$9:$E$58,2,FALSE)=0,\"\",VLOOKUP(ET123,'Footnotes list'!$D$9:$E$58,2,FALSE) ) )","v":""},null,null,null,null,{"$f":"IF(TRIM(EY123)=\"\", \"\", IF(VLOOKUP(EY123,'Footnotes list'!$D$9:$E$58,2,FALSE)=0,\"\",VLOOKUP(EY123,'Footnotes list'!$D$9:$E$58,2,FALSE) ) )","v":""}]
[null,null,"Q","C_REP","cleaner and resource efficient products",null,null,null,null,null,{"$f":"IF(TRIM(J124)=\"\", \"\", IF(VLOOKUP(J124,'Footnotes list'!$D$9:$E$58,2,FALSE)=0,\"\",VLOOKUP(J124,'Footnotes list'!$D$9:$E$58,2,FALSE) ) )","v":""},null,null,null,null,{"$f":"IF(TRIM(O124)=\"\", \"\", IF(VLOOKUP(O124,'Footnotes list'!$D$9:$E$58,2,FALSE)=0,\"\",VLOOKUP(O124,'Footnotes list'!$D$9:$E$58,2,FALSE) ) )","v":""},null,null,null,null,{"$f":"IF(TRIM(T124)=\"\", \"\", IF(VLOOKUP(T124,'Footnotes list'!$D$9:$E$58,2,FALSE)=0,\"\",VLOOKUP(T124,'Footnotes list'!$D$9:$E$58,2,FALSE) ) )","v":""},null,null,null,null,{"$f":"IF(TRIM(Y124)=\"\", \"\", IF(VLOOKUP(Y124,'Footnotes list'!$D$9:$E$58,2,FALSE)=0,\"\",VLOOKUP(Y124,'Footnotes list'!$D$9:$E$58,2,FALSE) ) )","v":""},null,null,null,null,{"$f":"IF(TRIM(AD124)=\"\", \"\", IF(VLOOKUP(AD124,'Footnotes list'!$D$9:$E$58,2,FALSE)=0,\"\",VLOOKUP(AD124,'Footnotes list'!$D$9:$E$58,2,FALSE) ) )","v":""},null,null,null,null,{"$f":"IF(TRIM(AI124)=\"\", \"\", IF(VLOOKUP(AI124,'Footnotes list'!$D$9:$E$58,2,FALSE)=0,\"\",VLOOKUP(AI124,'Footnotes list'!$D$9:$E$58,2,FALSE) ) )","v":""},null,null,null,null,{"$f":"IF(TRIM(AN124)=\"\", \"\", IF(VLOOKUP(AN124,'Footnotes list'!$D$9:$E$58,2,FALSE)=0,\"\",VLOOKUP(AN124,'Footnotes list'!$D$9:$E$58,2,FALSE) ) )","v":""},null,null,null,null,{"$f":"IF(TRIM(AS124)=\"\", \"\", IF(VLOOKUP(AS124,'Footnotes list'!$D$9:$E$58,2,FALSE)=0,\"\",VLOOKUP(AS124,'Footnotes list'!$D$9:$E$58,2,FALSE) ) )","v":""},null,null,null,null,{"$f":"IF(TRIM(AX124)=\"\", \"\", IF(VLOOKUP(AX124,'Footnotes list'!$D$9:$E$58,2,FALSE)=0,\"\",VLOOKUP(AX124,'Footnotes list'!$D$9:$E$58,2,FALSE) ) )","v":""},null,null,null,null,{"$f":"IF(TRIM(BC124)=\"\", \"\", IF(VLOOKUP(BC124,'Footnotes list'!$D$9:$E$58,2,FALSE)=0,\"\",VLOOKUP(BC124,'Footnotes list'!$D$9:$E$58,2,FALSE) ) )","v":""},null,null,null,null,{"$f":"IF(TRIM(BH124)=\"\", \"\", IF(VLOOKUP(BH124,'Footnotes list'!$D$9:$E$58,2,FALSE)=0,\"\",VLOOKUP(BH124,'Footnotes list'!$D$9:$E$58,2,FALSE) ) )","v":""},null,null,null,null,{"$f":"IF(TRIM(BM124)=\"\", \"\", IF(VLOOKUP(BM124,'Footnotes list'!$D$9:$E$58,2,FALSE)=0,\"\",VLOOKUP(BM124,'Footnotes list'!$D$9:$E$58,2,FALSE) ) )","v":""},null,null,null,null,{"$f":"IF(TRIM(BR124)=\"\", \"\", IF(VLOOKUP(BR124,'Footnotes list'!$D$9:$E$58,2,FALSE)=0,\"\",VLOOKUP(BR124,'Footnotes list'!$D$9:$E$58,2,FALSE) ) )","v":""},null,null,null,null,{"$f":"IF(TRIM(BW124)=\"\", \"\", IF(VLOOKUP(BW124,'Footnotes list'!$D$9:$E$58,2,FALSE)=0,\"\",VLOOKUP(BW124,'Footnotes list'!$D$9:$E$58,2,FALSE) ) )","v":""},null,null,null,null,{"$f":"IF(TRIM(CB124)=\"\", \"\", IF(VLOOKUP(CB124,'Footnotes list'!$D$9:$E$58,2,FALSE)=0,\"\",VLOOKUP(CB124,'Footnotes list'!$D$9:$E$58,2,FALSE) ) )","v":""},null,null,null,null,{"$f":"IF(TRIM(CG124)=\"\", \"\", IF(VLOOKUP(CG124,'Footnotes list'!$D$9:$E$58,2,FALSE)=0,\"\",VLOOKUP(CG124,'Footnotes list'!$D$9:$E$58,2,FALSE) ) )","v":""},null,null,null,null,{"$f":"IF(TRIM(CL124)=\"\", \"\", IF(VLOOKUP(CL124,'Footnotes list'!$D$9:$E$58,2,FALSE)=0,\"\",VLOOKUP(CL124,'Footnotes list'!$D$9:$E$58,2,FALSE) ) )","v":""},null,null,null,null,{"$f":"IF(TRIM(CQ124)=\"\", \"\", IF(VLOOKUP(CQ124,'Footnotes list'!$D$9:$E$58,2,FALSE)=0,\"\",VLOOKUP(CQ124,'Footnotes list'!$D$9:$E$58,2,FALSE) ) )","v":""},null,null,null,null,{"$f":"IF(TRIM(CV124)=\"\", \"\", IF(VLOOKUP(CV124,'Footnotes list'!$D$9:$E$58,2,FALSE)=0,\"\",VLOOKUP(CV124,'Footnotes list'!$D$9:$E$58,2,FALSE) ) )","v":""},null,null,null,null,{"$f":"IF(TRIM(DA124)=\"\", \"\", IF(VLOOKUP(DA124,'Footnotes list'!$D$9:$E$58,2,FALSE)=0,\"\",VLOOKUP(DA124,'Footnotes list'!$D$9:$E$58,2,FALSE) ) )","v":""},null,null,null,null,{"$f":"IF(TRIM(DF124)=\"\", \"\", IF(VLOOKUP(DF124,'Footnotes list'!$D$9:$E$58,2,FALSE)=0,\"\",VLOOKUP(DF124,'Footnotes list'!$D$9:$E$58,2,FALSE) ) )","v":""},null,null,null,null,{"$f":"IF(TRIM(DK124)=\"\", \"\", IF(VLOOKUP(DK124,'Footnotes list'!$D$9:$E$58,2,FALSE)=0,\"\",VLOOKUP(DK124,'Footnotes list'!$D$9:$E$58,2,FALSE) ) )","v":""},null,null,null,null,{"$f":"IF(TRIM(DP124)=\"\", \"\", IF(VLOOKUP(DP124,'Footnotes list'!$D$9:$E$58,2,FALSE)=0,\"\",VLOOKUP(DP124,'Footnotes list'!$D$9:$E$58,2,FALSE) ) )","v":""},null,null,null,null,{"$f":"IF(TRIM(DU124)=\"\", \"\", IF(VLOOKUP(DU124,'Footnotes list'!$D$9:$E$58,2,FALSE)=0,\"\",VLOOKUP(DU124,'Footnotes list'!$D$9:$E$58,2,FALSE) ) )","v":""},null,null,null,null,{"$f":"IF(TRIM(DZ124)=\"\", \"\", IF(VLOOKUP(DZ124,'Footnotes list'!$D$9:$E$58,2,FALSE)=0,\"\",VLOOKUP(DZ124,'Footnotes list'!$D$9:$E$58,2,FALSE) ) )","v":""},null,null,null,null,{"$f":"IF(TRIM(EE124)=\"\", \"\", IF(VLOOKUP(EE124,'Footnotes list'!$D$9:$E$58,2,FALSE)=0,\"\",VLOOKUP(EE124,'Footnotes list'!$D$9:$E$58,2,FALSE) ) )","v":""},null,null,null,null,{"$f":"IF(TRIM(EJ124)=\"\", \"\", IF(VLOOKUP(EJ124,'Footnotes list'!$D$9:$E$58,2,FALSE)=0,\"\",VLOOKUP(EJ124,'Footnotes list'!$D$9:$E$58,2,FALSE) ) )","v":""},null,null,null,null,{"$f":"IF(TRIM(EO124)=\"\", \"\", IF(VLOOKUP(EO124,'Footnotes list'!$D$9:$E$58,2,FALSE)=0,\"\",VLOOKUP(EO124,'Footnotes list'!$D$9:$E$58,2,FALSE) ) )","v":""},null,null,null,null,{"$f":"IF(TRIM(ET124)=\"\", \"\", IF(VLOOKUP(ET124,'Footnotes list'!$D$9:$E$58,2,FALSE)=0,\"\",VLOOKUP(ET124,'Footnotes list'!$D$9:$E$58,2,FALSE) ) )","v":""},null,null,null,null,{"$f":"IF(TRIM(EY124)=\"\", \"\", IF(VLOOKUP(EY124,'Footnotes list'!$D$9:$E$58,2,FALSE)=0,\"\",VLOOKUP(EY124,'Footnotes list'!$D$9:$E$58,2,FALSE) ) )","v":""}]
[null,null,"R","TOT_EGSS","Total R - Arts, entertainment and recreation, including:",null,null,null,null,null,{"$f":"IF(TRIM(J125)=\"\", \"\", IF(VLOOKUP(J125,'Footnotes list'!$D$9:$E$58,2,FALSE)=0,\"\",VLOOKUP(J125,'Footnotes list'!$D$9:$E$58,2,FALSE) ) )","v":""},null,null,null,null,{"$f":"IF(TRIM(O125)=\"\", \"\", IF(VLOOKUP(O125,'Footnotes list'!$D$9:$E$58,2,FALSE)=0,\"\",VLOOKUP(O125,'Footnotes list'!$D$9:$E$58,2,FALSE) ) )","v":""},null,null,null,null,{"$f":"IF(TRIM(T125)=\"\", \"\", IF(VLOOKUP(T125,'Footnotes list'!$D$9:$E$58,2,FALSE)=0,\"\",VLOOKUP(T125,'Footnotes list'!$D$9:$E$58,2,FALSE) ) )","v":""},null,null,null,null,{"$f":"IF(TRIM(Y125)=\"\", \"\", IF(VLOOKUP(Y125,'Footnotes list'!$D$9:$E$58,2,FALSE)=0,\"\",VLOOKUP(Y125,'Footnotes list'!$D$9:$E$58,2,FALSE) ) )","v":""},null,null,null,null,{"$f":"IF(TRIM(AD125)=\"\", \"\", IF(VLOOKUP(AD125,'Footnotes list'!$D$9:$E$58,2,FALSE)=0,\"\",VLOOKUP(AD125,'Footnotes list'!$D$9:$E$58,2,FALSE) ) )","v":""},null,null,null,null,{"$f":"IF(TRIM(AI125)=\"\", \"\", IF(VLOOKUP(AI125,'Footnotes list'!$D$9:$E$58,2,FALSE)=0,\"\",VLOOKUP(AI125,'Footnotes list'!$D$9:$E$58,2,FALSE) ) )","v":""},null,null,null,null,{"$f":"IF(TRIM(AN125)=\"\", \"\", IF(VLOOKUP(AN125,'Footnotes list'!$D$9:$E$58,2,FALSE)=0,\"\",VLOOKUP(AN125,'Footnotes list'!$D$9:$E$58,2,FALSE) ) )","v":""},null,null,null,null,{"$f":"IF(TRIM(AS125)=\"\", \"\", IF(VLOOKUP(AS125,'Footnotes list'!$D$9:$E$58,2,FALSE)=0,\"\",VLOOKUP(AS125,'Footnotes list'!$D$9:$E$58,2,FALSE) ) )","v":""},null,null,null,null,{"$f":"IF(TRIM(AX125)=\"\", \"\", IF(VLOOKUP(AX125,'Footnotes list'!$D$9:$E$58,2,FALSE)=0,\"\",VLOOKUP(AX125,'Footnotes list'!$D$9:$E$58,2,FALSE) ) )","v":""},null,null,null,null,{"$f":"IF(TRIM(BC125)=\"\", \"\", IF(VLOOKUP(BC125,'Footnotes list'!$D$9:$E$58,2,FALSE)=0,\"\",VLOOKUP(BC125,'Footnotes list'!$D$9:$E$58,2,FALSE) ) )","v":""},null,null,null,null,{"$f":"IF(TRIM(BH125)=\"\", \"\", IF(VLOOKUP(BH125,'Footnotes list'!$D$9:$E$58,2,FALSE)=0,\"\",VLOOKUP(BH125,'Footnotes list'!$D$9:$E$58,2,FALSE) ) )","v":""},null,null,null,null,{"$f":"IF(TRIM(BM125)=\"\", \"\", IF(VLOOKUP(BM125,'Footnotes list'!$D$9:$E$58,2,FALSE)=0,\"\",VLOOKUP(BM125,'Footnotes list'!$D$9:$E$58,2,FALSE) ) )","v":""},null,null,null,null,{"$f":"IF(TRIM(BR125)=\"\", \"\", IF(VLOOKUP(BR125,'Footnotes list'!$D$9:$E$58,2,FALSE)=0,\"\",VLOOKUP(BR125,'Footnotes list'!$D$9:$E$58,2,FALSE) ) )","v":""},null,null,null,null,{"$f":"IF(TRIM(BW125)=\"\", \"\", IF(VLOOKUP(BW125,'Footnotes list'!$D$9:$E$58,2,FALSE)=0,\"\",VLOOKUP(BW125,'Footnotes list'!$D$9:$E$58,2,FALSE) ) )","v":""},null,null,null,null,{"$f":"IF(TRIM(CB125)=\"\", \"\", IF(VLOOKUP(CB125,'Footnotes list'!$D$9:$E$58,2,FALSE)=0,\"\",VLOOKUP(CB125,'Footnotes list'!$D$9:$E$58,2,FALSE) ) )","v":""},null,null,null,null,{"$f":"IF(TRIM(CG125)=\"\", \"\", IF(VLOOKUP(CG125,'Footnotes list'!$D$9:$E$58,2,FALSE)=0,\"\",VLOOKUP(CG125,'Footnotes list'!$D$9:$E$58,2,FALSE) ) )","v":""},null,null,null,null,{"$f":"IF(TRIM(CL125)=\"\", \"\", IF(VLOOKUP(CL125,'Footnotes list'!$D$9:$E$58,2,FALSE)=0,\"\",VLOOKUP(CL125,'Footnotes list'!$D$9:$E$58,2,FALSE) ) )","v":""},null,null,null,null,{"$f":"IF(TRIM(CQ125)=\"\", \"\", IF(VLOOKUP(CQ125,'Footnotes list'!$D$9:$E$58,2,FALSE)=0,\"\",VLOOKUP(CQ125,'Footnotes list'!$D$9:$E$58,2,FALSE) ) )","v":""},null,null,null,null,{"$f":"IF(TRIM(CV125)=\"\", \"\", IF(VLOOKUP(CV125,'Footnotes list'!$D$9:$E$58,2,FALSE)=0,\"\",VLOOKUP(CV125,'Footnotes list'!$D$9:$E$58,2,FALSE) ) )","v":""},null,null,null,null,{"$f":"IF(TRIM(DA125)=\"\", \"\", IF(VLOOKUP(DA125,'Footnotes list'!$D$9:$E$58,2,FALSE)=0,\"\",VLOOKUP(DA125,'Footnotes list'!$D$9:$E$58,2,FALSE) ) )","v":""},null,null,null,null,{"$f":"IF(TRIM(DF125)=\"\", \"\", IF(VLOOKUP(DF125,'Footnotes list'!$D$9:$E$58,2,FALSE)=0,\"\",VLOOKUP(DF125,'Footnotes list'!$D$9:$E$58,2,FALSE) ) )","v":""},null,null,null,null,{"$f":"IF(TRIM(DK125)=\"\", \"\", IF(VLOOKUP(DK125,'Footnotes list'!$D$9:$E$58,2,FALSE)=0,\"\",VLOOKUP(DK125,'Footnotes list'!$D$9:$E$58,2,FALSE) ) )","v":""},null,null,null,null,{"$f":"IF(TRIM(DP125)=\"\", \"\", IF(VLOOKUP(DP125,'Footnotes list'!$D$9:$E$58,2,FALSE)=0,\"\",VLOOKUP(DP125,'Footnotes list'!$D$9:$E$58,2,FALSE) ) )","v":""},null,null,null,null,{"$f":"IF(TRIM(DU125)=\"\", \"\", IF(VLOOKUP(DU125,'Footnotes list'!$D$9:$E$58,2,FALSE)=0,\"\",VLOOKUP(DU125,'Footnotes list'!$D$9:$E$58,2,FALSE) ) )","v":""},null,null,null,null,{"$f":"IF(TRIM(DZ125)=\"\", \"\", IF(VLOOKUP(DZ125,'Footnotes list'!$D$9:$E$58,2,FALSE)=0,\"\",VLOOKUP(DZ125,'Footnotes list'!$D$9:$E$58,2,FALSE) ) )","v":""},null,null,null,null,{"$f":"IF(TRIM(EE125)=\"\", \"\", IF(VLOOKUP(EE125,'Footnotes list'!$D$9:$E$58,2,FALSE)=0,\"\",VLOOKUP(EE125,'Footnotes list'!$D$9:$E$58,2,FALSE) ) )","v":""},null,null,null,null,{"$f":"IF(TRIM(EJ125)=\"\", \"\", IF(VLOOKUP(EJ125,'Footnotes list'!$D$9:$E$58,2,FALSE)=0,\"\",VLOOKUP(EJ125,'Footnotes list'!$D$9:$E$58,2,FALSE) ) )","v":""},null,null,null,null,{"$f":"IF(TRIM(EO125)=\"\", \"\", IF(VLOOKUP(EO125,'Footnotes list'!$D$9:$E$58,2,FALSE)=0,\"\",VLOOKUP(EO125,'Footnotes list'!$D$9:$E$58,2,FALSE) ) )","v":""},null,null,null,null,{"$f":"IF(TRIM(ET125)=\"\", \"\", IF(VLOOKUP(ET125,'Footnotes list'!$D$9:$E$58,2,FALSE)=0,\"\",VLOOKUP(ET125,'Footnotes list'!$D$9:$E$58,2,FALSE) ) )","v":""},null,null,null,null,{"$f":"IF(TRIM(EY125)=\"\", \"\", IF(VLOOKUP(EY125,'Footnotes list'!$D$9:$E$58,2,FALSE)=0,\"\",VLOOKUP(EY125,'Footnotes list'!$D$9:$E$58,2,FALSE) ) )","v":""}]
[null,null,"R","ES_CS","environmental specific services",null,null,null,null,null,{"$f":"IF(TRIM(J126)=\"\", \"\", IF(VLOOKUP(J126,'Footnotes list'!$D$9:$E$58,2,FALSE)=0,\"\",VLOOKUP(J126,'Footnotes list'!$D$9:$E$58,2,FALSE) ) )","v":""},null,null,null,null,{"$f":"IF(TRIM(O126)=\"\", \"\", IF(VLOOKUP(O126,'Footnotes list'!$D$9:$E$58,2,FALSE)=0,\"\",VLOOKUP(O126,'Footnotes list'!$D$9:$E$58,2,FALSE) ) )","v":""},null,null,null,null,{"$f":"IF(TRIM(T126)=\"\", \"\", IF(VLOOKUP(T126,'Footnotes list'!$D$9:$E$58,2,FALSE)=0,\"\",VLOOKUP(T126,'Footnotes list'!$D$9:$E$58,2,FALSE) ) )","v":""},null,null,null,null,{"$f":"IF(TRIM(Y126)=\"\", \"\", IF(VLOOKUP(Y126,'Footnotes list'!$D$9:$E$58,2,FALSE)=0,\"\",VLOOKUP(Y126,'Footnotes list'!$D$9:$E$58,2,FALSE) ) )","v":""},null,null,null,null,{"$f":"IF(TRIM(AD126)=\"\", \"\", IF(VLOOKUP(AD126,'Footnotes list'!$D$9:$E$58,2,FALSE)=0,\"\",VLOOKUP(AD126,'Footnotes list'!$D$9:$E$58,2,FALSE) ) )","v":""},null,null,null,null,{"$f":"IF(TRIM(AI126)=\"\", \"\", IF(VLOOKUP(AI126,'Footnotes list'!$D$9:$E$58,2,FALSE)=0,\"\",VLOOKUP(AI126,'Footnotes list'!$D$9:$E$58,2,FALSE) ) )","v":""},null,null,null,null,{"$f":"IF(TRIM(AN126)=\"\", \"\", IF(VLOOKUP(AN126,'Footnotes list'!$D$9:$E$58,2,FALSE)=0,\"\",VLOOKUP(AN126,'Footnotes list'!$D$9:$E$58,2,FALSE) ) )","v":""},null,null,null,null,{"$f":"IF(TRIM(AS126)=\"\", \"\", IF(VLOOKUP(AS126,'Footnotes list'!$D$9:$E$58,2,FALSE)=0,\"\",VLOOKUP(AS126,'Footnotes list'!$D$9:$E$58,2,FALSE) ) )","v":""},null,null,null,null,{"$f":"IF(TRIM(AX126)=\"\", \"\", IF(VLOOKUP(AX126,'Footnotes list'!$D$9:$E$58,2,FALSE)=0,\"\",VLOOKUP(AX126,'Footnotes list'!$D$9:$E$58,2,FALSE) ) )","v":""},null,null,null,null,{"$f":"IF(TRIM(BC126)=\"\", \"\", IF(VLOOKUP(BC126,'Footnotes list'!$D$9:$E$58,2,FALSE)=0,\"\",VLOOKUP(BC126,'Footnotes list'!$D$9:$E$58,2,FALSE) ) )","v":""},null,null,null,null,{"$f":"IF(TRIM(BH126)=\"\", \"\", IF(VLOOKUP(BH126,'Footnotes list'!$D$9:$E$58,2,FALSE)=0,\"\",VLOOKUP(BH126,'Footnotes list'!$D$9:$E$58,2,FALSE) ) )","v":""},null,null,null,null,{"$f":"IF(TRIM(BM126)=\"\", \"\", IF(VLOOKUP(BM126,'Footnotes list'!$D$9:$E$58,2,FALSE)=0,\"\",VLOOKUP(BM126,'Footnotes list'!$D$9:$E$58,2,FALSE) ) )","v":""},null,null,null,null,{"$f":"IF(TRIM(BR126)=\"\", \"\", IF(VLOOKUP(BR126,'Footnotes list'!$D$9:$E$58,2,FALSE)=0,\"\",VLOOKUP(BR126,'Footnotes list'!$D$9:$E$58,2,FALSE) ) )","v":""},null,null,null,null,{"$f":"IF(TRIM(BW126)=\"\", \"\", IF(VLOOKUP(BW126,'Footnotes list'!$D$9:$E$58,2,FALSE)=0,\"\",VLOOKUP(BW126,'Footnotes list'!$D$9:$E$58,2,FALSE) ) )","v":""},null,null,null,null,{"$f":"IF(TRIM(CB126)=\"\", \"\", IF(VLOOKUP(CB126,'Footnotes list'!$D$9:$E$58,2,FALSE)=0,\"\",VLOOKUP(CB126,'Footnotes list'!$D$9:$E$58,2,FALSE) ) )","v":""},null,null,null,null,{"$f":"IF(TRIM(CG126)=\"\", \"\", IF(VLOOKUP(CG126,'Footnotes list'!$D$9:$E$58,2,FALSE)=0,\"\",VLOOKUP(CG126,'Footnotes list'!$D$9:$E$58,2,FALSE) ) )","v":""},null,null,null,null,{"$f":"IF(TRIM(CL126)=\"\", \"\", IF(VLOOKUP(CL126,'Footnotes list'!$D$9:$E$58,2,FALSE)=0,\"\",VLOOKUP(CL126,'Footnotes list'!$D$9:$E$58,2,FALSE) ) )","v":""},null,null,null,null,{"$f":"IF(TRIM(CQ126)=\"\", \"\", IF(VLOOKUP(CQ126,'Footnotes list'!$D$9:$E$58,2,FALSE)=0,\"\",VLOOKUP(CQ126,'Footnotes list'!$D$9:$E$58,2,FALSE) ) )","v":""},null,null,null,null,{"$f":"IF(TRIM(CV126)=\"\", \"\", IF(VLOOKUP(CV126,'Footnotes list'!$D$9:$E$58,2,FALSE)=0,\"\",VLOOKUP(CV126,'Footnotes list'!$D$9:$E$58,2,FALSE) ) )","v":""},null,null,null,null,{"$f":"IF(TRIM(DA126)=\"\", \"\", IF(VLOOKUP(DA126,'Footnotes list'!$D$9:$E$58,2,FALSE)=0,\"\",VLOOKUP(DA126,'Footnotes list'!$D$9:$E$58,2,FALSE) ) )","v":""},null,null,null,null,{"$f":"IF(TRIM(DF126)=\"\", \"\", IF(VLOOKUP(DF126,'Footnotes list'!$D$9:$E$58,2,FALSE)=0,\"\",VLOOKUP(DF126,'Footnotes list'!$D$9:$E$58,2,FALSE) ) )","v":""},null,null,null,null,{"$f":"IF(TRIM(DK126)=\"\", \"\", IF(VLOOKUP(DK126,'Footnotes list'!$D$9:$E$58,2,FALSE)=0,\"\",VLOOKUP(DK126,'Footnotes list'!$D$9:$E$58,2,FALSE) ) )","v":""},null,null,null,null,{"$f":"IF(TRIM(DP126)=\"\", \"\", IF(VLOOKUP(DP126,'Footnotes list'!$D$9:$E$58,2,FALSE)=0,\"\",VLOOKUP(DP126,'Footnotes list'!$D$9:$E$58,2,FALSE) ) )","v":""},null,null,null,null,{"$f":"IF(TRIM(DU126)=\"\", \"\", IF(VLOOKUP(DU126,'Footnotes list'!$D$9:$E$58,2,FALSE)=0,\"\",VLOOKUP(DU126,'Footnotes list'!$D$9:$E$58,2,FALSE) ) )","v":""},null,null,null,null,{"$f":"IF(TRIM(DZ126)=\"\", \"\", IF(VLOOKUP(DZ126,'Footnotes list'!$D$9:$E$58,2,FALSE)=0,\"\",VLOOKUP(DZ126,'Footnotes list'!$D$9:$E$58,2,FALSE) ) )","v":""},null,null,null,null,{"$f":"IF(TRIM(EE126)=\"\", \"\", IF(VLOOKUP(EE126,'Footnotes list'!$D$9:$E$58,2,FALSE)=0,\"\",VLOOKUP(EE126,'Footnotes list'!$D$9:$E$58,2,FALSE) ) )","v":""},null,null,null,null,{"$f":"IF(TRIM(EJ126)=\"\", \"\", IF(VLOOKUP(EJ126,'Footnotes list'!$D$9:$E$58,2,FALSE)=0,\"\",VLOOKUP(EJ126,'Footnotes list'!$D$9:$E$58,2,FALSE) ) )","v":""},null,null,null,null,{"$f":"IF(TRIM(EO126)=\"\", \"\", IF(VLOOKUP(EO126,'Footnotes list'!$D$9:$E$58,2,FALSE)=0,\"\",VLOOKUP(EO126,'Footnotes list'!$D$9:$E$58,2,FALSE) ) )","v":""},null,null,null,null,{"$f":"IF(TRIM(ET126)=\"\", \"\", IF(VLOOKUP(ET126,'Footnotes list'!$D$9:$E$58,2,FALSE)=0,\"\",VLOOKUP(ET126,'Footnotes list'!$D$9:$E$58,2,FALSE) ) )","v":""},null,null,null,null,{"$f":"IF(TRIM(EY126)=\"\", \"\", IF(VLOOKUP(EY126,'Footnotes list'!$D$9:$E$58,2,FALSE)=0,\"\",VLOOKUP(EY126,'Footnotes list'!$D$9:$E$58,2,FALSE) ) )","v":""}]
[null,null,"R","C_REP","cleaner and resource efficient products",null,null,null,null,null,{"$f":"IF(TRIM(J127)=\"\", \"\", IF(VLOOKUP(J127,'Footnotes list'!$D$9:$E$58,2,FALSE)=0,\"\",VLOOKUP(J127,'Footnotes list'!$D$9:$E$58,2,FALSE) ) )","v":""},null,null,null,null,{"$f":"IF(TRIM(O127)=\"\", \"\", IF(VLOOKUP(O127,'Footnotes list'!$D$9:$E$58,2,FALSE)=0,\"\",VLOOKUP(O127,'Footnotes list'!$D$9:$E$58,2,FALSE) ) )","v":""},null,null,null,null,{"$f":"IF(TRIM(T127)=\"\", \"\", IF(VLOOKUP(T127,'Footnotes list'!$D$9:$E$58,2,FALSE)=0,\"\",VLOOKUP(T127,'Footnotes list'!$D$9:$E$58,2,FALSE) ) )","v":""},null,null,null,null,{"$f":"IF(TRIM(Y127)=\"\", \"\", IF(VLOOKUP(Y127,'Footnotes list'!$D$9:$E$58,2,FALSE)=0,\"\",VLOOKUP(Y127,'Footnotes list'!$D$9:$E$58,2,FALSE) ) )","v":""},null,null,null,null,{"$f":"IF(TRIM(AD127)=\"\", \"\", IF(VLOOKUP(AD127,'Footnotes list'!$D$9:$E$58,2,FALSE)=0,\"\",VLOOKUP(AD127,'Footnotes list'!$D$9:$E$58,2,FALSE) ) )","v":""},null,null,null,null,{"$f":"IF(TRIM(AI127)=\"\", \"\", IF(VLOOKUP(AI127,'Footnotes list'!$D$9:$E$58,2,FALSE)=0,\"\",VLOOKUP(AI127,'Footnotes list'!$D$9:$E$58,2,FALSE) ) )","v":""},null,null,null,null,{"$f":"IF(TRIM(AN127)=\"\", \"\", IF(VLOOKUP(AN127,'Footnotes list'!$D$9:$E$58,2,FALSE)=0,\"\",VLOOKUP(AN127,'Footnotes list'!$D$9:$E$58,2,FALSE) ) )","v":""},null,null,null,null,{"$f":"IF(TRIM(AS127)=\"\", \"\", IF(VLOOKUP(AS127,'Footnotes list'!$D$9:$E$58,2,FALSE)=0,\"\",VLOOKUP(AS127,'Footnotes list'!$D$9:$E$58,2,FALSE) ) )","v":""},null,null,null,null,{"$f":"IF(TRIM(AX127)=\"\", \"\", IF(VLOOKUP(AX127,'Footnotes list'!$D$9:$E$58,2,FALSE)=0,\"\",VLOOKUP(AX127,'Footnotes list'!$D$9:$E$58,2,FALSE) ) )","v":""},null,null,null,null,{"$f":"IF(TRIM(BC127)=\"\", \"\", IF(VLOOKUP(BC127,'Footnotes list'!$D$9:$E$58,2,FALSE)=0,\"\",VLOOKUP(BC127,'Footnotes list'!$D$9:$E$58,2,FALSE) ) )","v":""},null,null,null,null,{"$f":"IF(TRIM(BH127)=\"\", \"\", IF(VLOOKUP(BH127,'Footnotes list'!$D$9:$E$58,2,FALSE)=0,\"\",VLOOKUP(BH127,'Footnotes list'!$D$9:$E$58,2,FALSE) ) )","v":""},null,null,null,null,{"$f":"IF(TRIM(BM127)=\"\", \"\", IF(VLOOKUP(BM127,'Footnotes list'!$D$9:$E$58,2,FALSE)=0,\"\",VLOOKUP(BM127,'Footnotes list'!$D$9:$E$58,2,FALSE) ) )","v":""},null,null,null,null,{"$f":"IF(TRIM(BR127)=\"\", \"\", IF(VLOOKUP(BR127,'Footnotes list'!$D$9:$E$58,2,FALSE)=0,\"\",VLOOKUP(BR127,'Footnotes list'!$D$9:$E$58,2,FALSE) ) )","v":""},null,null,null,null,{"$f":"IF(TRIM(BW127)=\"\", \"\", IF(VLOOKUP(BW127,'Footnotes list'!$D$9:$E$58,2,FALSE)=0,\"\",VLOOKUP(BW127,'Footnotes list'!$D$9:$E$58,2,FALSE) ) )","v":""},null,null,null,null,{"$f":"IF(TRIM(CB127)=\"\", \"\", IF(VLOOKUP(CB127,'Footnotes list'!$D$9:$E$58,2,FALSE)=0,\"\",VLOOKUP(CB127,'Footnotes list'!$D$9:$E$58,2,FALSE) ) )","v":""},null,null,null,null,{"$f":"IF(TRIM(CG127)=\"\", \"\", IF(VLOOKUP(CG127,'Footnotes list'!$D$9:$E$58,2,FALSE)=0,\"\",VLOOKUP(CG127,'Footnotes list'!$D$9:$E$58,2,FALSE) ) )","v":""},null,null,null,null,{"$f":"IF(TRIM(CL127)=\"\", \"\", IF(VLOOKUP(CL127,'Footnotes list'!$D$9:$E$58,2,FALSE)=0,\"\",VLOOKUP(CL127,'Footnotes list'!$D$9:$E$58,2,FALSE) ) )","v":""},null,null,null,null,{"$f":"IF(TRIM(CQ127)=\"\", \"\", IF(VLOOKUP(CQ127,'Footnotes list'!$D$9:$E$58,2,FALSE)=0,\"\",VLOOKUP(CQ127,'Footnotes list'!$D$9:$E$58,2,FALSE) ) )","v":""},null,null,null,null,{"$f":"IF(TRIM(CV127)=\"\", \"\", IF(VLOOKUP(CV127,'Footnotes list'!$D$9:$E$58,2,FALSE)=0,\"\",VLOOKUP(CV127,'Footnotes list'!$D$9:$E$58,2,FALSE) ) )","v":""},null,null,null,null,{"$f":"IF(TRIM(DA127)=\"\", \"\", IF(VLOOKUP(DA127,'Footnotes list'!$D$9:$E$58,2,FALSE)=0,\"\",VLOOKUP(DA127,'Footnotes list'!$D$9:$E$58,2,FALSE) ) )","v":""},null,null,null,null,{"$f":"IF(TRIM(DF127)=\"\", \"\", IF(VLOOKUP(DF127,'Footnotes list'!$D$9:$E$58,2,FALSE)=0,\"\",VLOOKUP(DF127,'Footnotes list'!$D$9:$E$58,2,FALSE) ) )","v":""},null,null,null,null,{"$f":"IF(TRIM(DK127)=\"\", \"\", IF(VLOOKUP(DK127,'Footnotes list'!$D$9:$E$58,2,FALSE)=0,\"\",VLOOKUP(DK127,'Footnotes list'!$D$9:$E$58,2,FALSE) ) )","v":""},null,null,null,null,{"$f":"IF(TRIM(DP127)=\"\", \"\", IF(VLOOKUP(DP127,'Footnotes list'!$D$9:$E$58,2,FALSE)=0,\"\",VLOOKUP(DP127,'Footnotes list'!$D$9:$E$58,2,FALSE) ) )","v":""},null,null,null,null,{"$f":"IF(TRIM(DU127)=\"\", \"\", IF(VLOOKUP(DU127,'Footnotes list'!$D$9:$E$58,2,FALSE)=0,\"\",VLOOKUP(DU127,'Footnotes list'!$D$9:$E$58,2,FALSE) ) )","v":""},null,null,null,null,{"$f":"IF(TRIM(DZ127)=\"\", \"\", IF(VLOOKUP(DZ127,'Footnotes list'!$D$9:$E$58,2,FALSE)=0,\"\",VLOOKUP(DZ127,'Footnotes list'!$D$9:$E$58,2,FALSE) ) )","v":""},null,null,null,null,{"$f":"IF(TRIM(EE127)=\"\", \"\", IF(VLOOKUP(EE127,'Footnotes list'!$D$9:$E$58,2,FALSE)=0,\"\",VLOOKUP(EE127,'Footnotes list'!$D$9:$E$58,2,FALSE) ) )","v":""},null,null,null,null,{"$f":"IF(TRIM(EJ127)=\"\", \"\", IF(VLOOKUP(EJ127,'Footnotes list'!$D$9:$E$58,2,FALSE)=0,\"\",VLOOKUP(EJ127,'Footnotes list'!$D$9:$E$58,2,FALSE) ) )","v":""},null,null,null,null,{"$f":"IF(TRIM(EO127)=\"\", \"\", IF(VLOOKUP(EO127,'Footnotes list'!$D$9:$E$58,2,FALSE)=0,\"\",VLOOKUP(EO127,'Footnotes list'!$D$9:$E$58,2,FALSE) ) )","v":""},null,null,null,null,{"$f":"IF(TRIM(ET127)=\"\", \"\", IF(VLOOKUP(ET127,'Footnotes list'!$D$9:$E$58,2,FALSE)=0,\"\",VLOOKUP(ET127,'Footnotes list'!$D$9:$E$58,2,FALSE) ) )","v":""},null,null,null,null,{"$f":"IF(TRIM(EY127)=\"\", \"\", IF(VLOOKUP(EY127,'Footnotes list'!$D$9:$E$58,2,FALSE)=0,\"\",VLOOKUP(EY127,'Footnotes list'!$D$9:$E$58,2,FALSE) ) )","v":""}]
[null,null,"S","TOT_EGSS","Total S - Other service activities, including:",null,null,null,null,null,{"$f":"IF(TRIM(J128)=\"\", \"\", IF(VLOOKUP(J128,'Footnotes list'!$D$9:$E$58,2,FALSE)=0,\"\",VLOOKUP(J128,'Footnotes list'!$D$9:$E$58,2,FALSE) ) )","v":""},null,null,null,null,{"$f":"IF(TRIM(O128)=\"\", \"\", IF(VLOOKUP(O128,'Footnotes list'!$D$9:$E$58,2,FALSE)=0,\"\",VLOOKUP(O128,'Footnotes list'!$D$9:$E$58,2,FALSE) ) )","v":""},null,null,null,null,{"$f":"IF(TRIM(T128)=\"\", \"\", IF(VLOOKUP(T128,'Footnotes list'!$D$9:$E$58,2,FALSE)=0,\"\",VLOOKUP(T128,'Footnotes list'!$D$9:$E$58,2,FALSE) ) )","v":""},null,null,null,null,{"$f":"IF(TRIM(Y128)=\"\", \"\", IF(VLOOKUP(Y128,'Footnotes list'!$D$9:$E$58,2,FALSE)=0,\"\",VLOOKUP(Y128,'Footnotes list'!$D$9:$E$58,2,FALSE) ) )","v":""},null,null,null,null,{"$f":"IF(TRIM(AD128)=\"\", \"\", IF(VLOOKUP(AD128,'Footnotes list'!$D$9:$E$58,2,FALSE)=0,\"\",VLOOKUP(AD128,'Footnotes list'!$D$9:$E$58,2,FALSE) ) )","v":""},null,null,null,null,{"$f":"IF(TRIM(AI128)=\"\", \"\", IF(VLOOKUP(AI128,'Footnotes list'!$D$9:$E$58,2,FALSE)=0,\"\",VLOOKUP(AI128,'Footnotes list'!$D$9:$E$58,2,FALSE) ) )","v":""},null,null,null,null,{"$f":"IF(TRIM(AN128)=\"\", \"\", IF(VLOOKUP(AN128,'Footnotes list'!$D$9:$E$58,2,FALSE)=0,\"\",VLOOKUP(AN128,'Footnotes list'!$D$9:$E$58,2,FALSE) ) )","v":""},null,null,null,null,{"$f":"IF(TRIM(AS128)=\"\", \"\", IF(VLOOKUP(AS128,'Footnotes list'!$D$9:$E$58,2,FALSE)=0,\"\",VLOOKUP(AS128,'Footnotes list'!$D$9:$E$58,2,FALSE) ) )","v":""},null,null,null,null,{"$f":"IF(TRIM(AX128)=\"\", \"\", IF(VLOOKUP(AX128,'Footnotes list'!$D$9:$E$58,2,FALSE)=0,\"\",VLOOKUP(AX128,'Footnotes list'!$D$9:$E$58,2,FALSE) ) )","v":""},null,null,null,null,{"$f":"IF(TRIM(BC128)=\"\", \"\", IF(VLOOKUP(BC128,'Footnotes list'!$D$9:$E$58,2,FALSE)=0,\"\",VLOOKUP(BC128,'Footnotes list'!$D$9:$E$58,2,FALSE) ) )","v":""},null,null,null,null,{"$f":"IF(TRIM(BH128)=\"\", \"\", IF(VLOOKUP(BH128,'Footnotes list'!$D$9:$E$58,2,FALSE)=0,\"\",VLOOKUP(BH128,'Footnotes list'!$D$9:$E$58,2,FALSE) ) )","v":""},null,null,null,null,{"$f":"IF(TRIM(BM128)=\"\", \"\", IF(VLOOKUP(BM128,'Footnotes list'!$D$9:$E$58,2,FALSE)=0,\"\",VLOOKUP(BM128,'Footnotes list'!$D$9:$E$58,2,FALSE) ) )","v":""},null,null,null,null,{"$f":"IF(TRIM(BR128)=\"\", \"\", IF(VLOOKUP(BR128,'Footnotes list'!$D$9:$E$58,2,FALSE)=0,\"\",VLOOKUP(BR128,'Footnotes list'!$D$9:$E$58,2,FALSE) ) )","v":""},null,null,null,null,{"$f":"IF(TRIM(BW128)=\"\", \"\", IF(VLOOKUP(BW128,'Footnotes list'!$D$9:$E$58,2,FALSE)=0,\"\",VLOOKUP(BW128,'Footnotes list'!$D$9:$E$58,2,FALSE) ) )","v":""},null,null,null,null,{"$f":"IF(TRIM(CB128)=\"\", \"\", IF(VLOOKUP(CB128,'Footnotes list'!$D$9:$E$58,2,FALSE)=0,\"\",VLOOKUP(CB128,'Footnotes list'!$D$9:$E$58,2,FALSE) ) )","v":""},null,null,null,null,{"$f":"IF(TRIM(CG128)=\"\", \"\", IF(VLOOKUP(CG128,'Footnotes list'!$D$9:$E$58,2,FALSE)=0,\"\",VLOOKUP(CG128,'Footnotes list'!$D$9:$E$58,2,FALSE) ) )","v":""},null,null,null,null,{"$f":"IF(TRIM(CL128)=\"\", \"\", IF(VLOOKUP(CL128,'Footnotes list'!$D$9:$E$58,2,FALSE)=0,\"\",VLOOKUP(CL128,'Footnotes list'!$D$9:$E$58,2,FALSE) ) )","v":""},null,null,null,null,{"$f":"IF(TRIM(CQ128)=\"\", \"\", IF(VLOOKUP(CQ128,'Footnotes list'!$D$9:$E$58,2,FALSE)=0,\"\",VLOOKUP(CQ128,'Footnotes list'!$D$9:$E$58,2,FALSE) ) )","v":""},null,null,null,null,{"$f":"IF(TRIM(CV128)=\"\", \"\", IF(VLOOKUP(CV128,'Footnotes list'!$D$9:$E$58,2,FALSE)=0,\"\",VLOOKUP(CV128,'Footnotes list'!$D$9:$E$58,2,FALSE) ) )","v":""},null,null,null,null,{"$f":"IF(TRIM(DA128)=\"\", \"\", IF(VLOOKUP(DA128,'Footnotes list'!$D$9:$E$58,2,FALSE)=0,\"\",VLOOKUP(DA128,'Footnotes list'!$D$9:$E$58,2,FALSE) ) )","v":""},null,null,null,null,{"$f":"IF(TRIM(DF128)=\"\", \"\", IF(VLOOKUP(DF128,'Footnotes list'!$D$9:$E$58,2,FALSE)=0,\"\",VLOOKUP(DF128,'Footnotes list'!$D$9:$E$58,2,FALSE) ) )","v":""},null,null,null,null,{"$f":"IF(TRIM(DK128)=\"\", \"\", IF(VLOOKUP(DK128,'Footnotes list'!$D$9:$E$58,2,FALSE)=0,\"\",VLOOKUP(DK128,'Footnotes list'!$D$9:$E$58,2,FALSE) ) )","v":""},null,null,null,null,{"$f":"IF(TRIM(DP128)=\"\", \"\", IF(VLOOKUP(DP128,'Footnotes list'!$D$9:$E$58,2,FALSE)=0,\"\",VLOOKUP(DP128,'Footnotes list'!$D$9:$E$58,2,FALSE) ) )","v":""},null,null,null,null,{"$f":"IF(TRIM(DU128)=\"\", \"\", IF(VLOOKUP(DU128,'Footnotes list'!$D$9:$E$58,2,FALSE)=0,\"\",VLOOKUP(DU128,'Footnotes list'!$D$9:$E$58,2,FALSE) ) )","v":""},null,null,null,null,{"$f":"IF(TRIM(DZ128)=\"\", \"\", IF(VLOOKUP(DZ128,'Footnotes list'!$D$9:$E$58,2,FALSE)=0,\"\",VLOOKUP(DZ128,'Footnotes list'!$D$9:$E$58,2,FALSE) ) )","v":""},null,null,null,null,{"$f":"IF(TRIM(EE128)=\"\", \"\", IF(VLOOKUP(EE128,'Footnotes list'!$D$9:$E$58,2,FALSE)=0,\"\",VLOOKUP(EE128,'Footnotes list'!$D$9:$E$58,2,FALSE) ) )","v":""},null,null,null,null,{"$f":"IF(TRIM(EJ128)=\"\", \"\", IF(VLOOKUP(EJ128,'Footnotes list'!$D$9:$E$58,2,FALSE)=0,\"\",VLOOKUP(EJ128,'Footnotes list'!$D$9:$E$58,2,FALSE) ) )","v":""},null,null,null,null,{"$f":"IF(TRIM(EO128)=\"\", \"\", IF(VLOOKUP(EO128,'Footnotes list'!$D$9:$E$58,2,FALSE)=0,\"\",VLOOKUP(EO128,'Footnotes list'!$D$9:$E$58,2,FALSE) ) )","v":""},null,null,null,null,{"$f":"IF(TRIM(ET128)=\"\", \"\", IF(VLOOKUP(ET128,'Footnotes list'!$D$9:$E$58,2,FALSE)=0,\"\",VLOOKUP(ET128,'Footnotes list'!$D$9:$E$58,2,FALSE) ) )","v":""},null,null,null,null,{"$f":"IF(TRIM(EY128)=\"\", \"\", IF(VLOOKUP(EY128,'Footnotes list'!$D$9:$E$58,2,FALSE)=0,\"\",VLOOKUP(EY128,'Footnotes list'!$D$9:$E$58,2,FALSE) ) )","v":""}]
[null,null,"S","ES_CS","environmental specific services",null,null,null,null,null,{"$f":"IF(TRIM(J129)=\"\", \"\", IF(VLOOKUP(J129,'Footnotes list'!$D$9:$E$58,2,FALSE)=0,\"\",VLOOKUP(J129,'Footnotes list'!$D$9:$E$58,2,FALSE) ) )","v":""},null,null,null,null,{"$f":"IF(TRIM(O129)=\"\", \"\", IF(VLOOKUP(O129,'Footnotes list'!$D$9:$E$58,2,FALSE)=0,\"\",VLOOKUP(O129,'Footnotes list'!$D$9:$E$58,2,FALSE) ) )","v":""},null,null,null,null,{"$f":"IF(TRIM(T129)=\"\", \"\", IF(VLOOKUP(T129,'Footnotes list'!$D$9:$E$58,2,FALSE)=0,\"\",VLOOKUP(T129,'Footnotes list'!$D$9:$E$58,2,FALSE) ) )","v":""},null,null,null,null,{"$f":"IF(TRIM(Y129)=\"\", \"\", IF(VLOOKUP(Y129,'Footnotes list'!$D$9:$E$58,2,FALSE)=0,\"\",VLOOKUP(Y129,'Footnotes list'!$D$9:$E$58,2,FALSE) ) )","v":""},null,null,null,null,{"$f":"IF(TRIM(AD129)=\"\", \"\", IF(VLOOKUP(AD129,'Footnotes list'!$D$9:$E$58,2,FALSE)=0,\"\",VLOOKUP(AD129,'Footnotes list'!$D$9:$E$58,2,FALSE) ) )","v":""},null,null,null,null,{"$f":"IF(TRIM(AI129)=\"\", \"\", IF(VLOOKUP(AI129,'Footnotes list'!$D$9:$E$58,2,FALSE)=0,\"\",VLOOKUP(AI129,'Footnotes list'!$D$9:$E$58,2,FALSE) ) )","v":""},null,null,null,null,{"$f":"IF(TRIM(AN129)=\"\", \"\", IF(VLOOKUP(AN129,'Footnotes list'!$D$9:$E$58,2,FALSE)=0,\"\",VLOOKUP(AN129,'Footnotes list'!$D$9:$E$58,2,FALSE) ) )","v":""},null,null,null,null,{"$f":"IF(TRIM(AS129)=\"\", \"\", IF(VLOOKUP(AS129,'Footnotes list'!$D$9:$E$58,2,FALSE)=0,\"\",VLOOKUP(AS129,'Footnotes list'!$D$9:$E$58,2,FALSE) ) )","v":""},null,null,null,null,{"$f":"IF(TRIM(AX129)=\"\", \"\", IF(VLOOKUP(AX129,'Footnotes list'!$D$9:$E$58,2,FALSE)=0,\"\",VLOOKUP(AX129,'Footnotes list'!$D$9:$E$58,2,FALSE) ) )","v":""},null,null,null,null,{"$f":"IF(TRIM(BC129)=\"\", \"\", IF(VLOOKUP(BC129,'Footnotes list'!$D$9:$E$58,2,FALSE)=0,\"\",VLOOKUP(BC129,'Footnotes list'!$D$9:$E$58,2,FALSE) ) )","v":""},null,null,null,null,{"$f":"IF(TRIM(BH129)=\"\", \"\", IF(VLOOKUP(BH129,'Footnotes list'!$D$9:$E$58,2,FALSE)=0,\"\",VLOOKUP(BH129,'Footnotes list'!$D$9:$E$58,2,FALSE) ) )","v":""},null,null,null,null,{"$f":"IF(TRIM(BM129)=\"\", \"\", IF(VLOOKUP(BM129,'Footnotes list'!$D$9:$E$58,2,FALSE)=0,\"\",VLOOKUP(BM129,'Footnotes list'!$D$9:$E$58,2,FALSE) ) )","v":""},null,null,null,null,{"$f":"IF(TRIM(BR129)=\"\", \"\", IF(VLOOKUP(BR129,'Footnotes list'!$D$9:$E$58,2,FALSE)=0,\"\",VLOOKUP(BR129,'Footnotes list'!$D$9:$E$58,2,FALSE) ) )","v":""},null,null,null,null,{"$f":"IF(TRIM(BW129)=\"\", \"\", IF(VLOOKUP(BW129,'Footnotes list'!$D$9:$E$58,2,FALSE)=0,\"\",VLOOKUP(BW129,'Footnotes list'!$D$9:$E$58,2,FALSE) ) )","v":""},null,null,null,null,{"$f":"IF(TRIM(CB129)=\"\", \"\", IF(VLOOKUP(CB129,'Footnotes list'!$D$9:$E$58,2,FALSE)=0,\"\",VLOOKUP(CB129,'Footnotes list'!$D$9:$E$58,2,FALSE) ) )","v":""},null,null,null,null,{"$f":"IF(TRIM(CG129)=\"\", \"\", IF(VLOOKUP(CG129,'Footnotes list'!$D$9:$E$58,2,FALSE)=0,\"\",VLOOKUP(CG129,'Footnotes list'!$D$9:$E$58,2,FALSE) ) )","v":""},null,null,null,null,{"$f":"IF(TRIM(CL129)=\"\", \"\", IF(VLOOKUP(CL129,'Footnotes list'!$D$9:$E$58,2,FALSE)=0,\"\",VLOOKUP(CL129,'Footnotes list'!$D$9:$E$58,2,FALSE) ) )","v":""},null,null,null,null,{"$f":"IF(TRIM(CQ129)=\"\", \"\", IF(VLOOKUP(CQ129,'Footnotes list'!$D$9:$E$58,2,FALSE)=0,\"\",VLOOKUP(CQ129,'Footnotes list'!$D$9:$E$58,2,FALSE) ) )","v":""},null,null,null,null,{"$f":"IF(TRIM(CV129)=\"\", \"\", IF(VLOOKUP(CV129,'Footnotes list'!$D$9:$E$58,2,FALSE)=0,\"\",VLOOKUP(CV129,'Footnotes list'!$D$9:$E$58,2,FALSE) ) )","v":""},null,null,null,null,{"$f":"IF(TRIM(DA129)=\"\", \"\", IF(VLOOKUP(DA129,'Footnotes list'!$D$9:$E$58,2,FALSE)=0,\"\",VLOOKUP(DA129,'Footnotes list'!$D$9:$E$58,2,FALSE) ) )","v":""},null,null,null,null,{"$f":"IF(TRIM(DF129)=\"\", \"\", IF(VLOOKUP(DF129,'Footnotes list'!$D$9:$E$58,2,FALSE)=0,\"\",VLOOKUP(DF129,'Footnotes list'!$D$9:$E$58,2,FALSE) ) )","v":""},null,null,null,null,{"$f":"IF(TRIM(DK129)=\"\", \"\", IF(VLOOKUP(DK129,'Footnotes list'!$D$9:$E$58,2,FALSE)=0,\"\",VLOOKUP(DK129,'Footnotes list'!$D$9:$E$58,2,FALSE) ) )","v":""},null,null,null,null,{"$f":"IF(TRIM(DP129)=\"\", \"\", IF(VLOOKUP(DP129,'Footnotes list'!$D$9:$E$58,2,FALSE)=0,\"\",VLOOKUP(DP129,'Footnotes list'!$D$9:$E$58,2,FALSE) ) )","v":""},null,null,null,null,{"$f":"IF(TRIM(DU129)=\"\", \"\", IF(VLOOKUP(DU129,'Footnotes list'!$D$9:$E$58,2,FALSE)=0,\"\",VLOOKUP(DU129,'Footnotes list'!$D$9:$E$58,2,FALSE) ) )","v":""},null,null,null,null,{"$f":"IF(TRIM(DZ129)=\"\", \"\", IF(VLOOKUP(DZ129,'Footnotes list'!$D$9:$E$58,2,FALSE)=0,\"\",VLOOKUP(DZ129,'Footnotes list'!$D$9:$E$58,2,FALSE) ) )","v":""},null,null,null,null,{"$f":"IF(TRIM(EE129)=\"\", \"\", IF(VLOOKUP(EE129,'Footnotes list'!$D$9:$E$58,2,FALSE)=0,\"\",VLOOKUP(EE129,'Footnotes list'!$D$9:$E$58,2,FALSE) ) )","v":""},null,null,null,null,{"$f":"IF(TRIM(EJ129)=\"\", \"\", IF(VLOOKUP(EJ129,'Footnotes list'!$D$9:$E$58,2,FALSE)=0,\"\",VLOOKUP(EJ129,'Footnotes list'!$D$9:$E$58,2,FALSE) ) )","v":""},null,null,null,null,{"$f":"IF(TRIM(EO129)=\"\", \"\", IF(VLOOKUP(EO129,'Footnotes list'!$D$9:$E$58,2,FALSE)=0,\"\",VLOOKUP(EO129,'Footnotes list'!$D$9:$E$58,2,FALSE) ) )","v":""},null,null,null,null,{"$f":"IF(TRIM(ET129)=\"\", \"\", IF(VLOOKUP(ET129,'Footnotes list'!$D$9:$E$58,2,FALSE)=0,\"\",VLOOKUP(ET129,'Footnotes list'!$D$9:$E$58,2,FALSE) ) )","v":""},null,null,null,null,{"$f":"IF(TRIM(EY129)=\"\", \"\", IF(VLOOKUP(EY129,'Footnotes list'!$D$9:$E$58,2,FALSE)=0,\"\",VLOOKUP(EY129,'Footnotes list'!$D$9:$E$58,2,FALSE) ) )","v":""}]
[null,null,"S","C_REP","cleaner and resource efficient products",null,null,null,null,null,{"$f":"IF(TRIM(J130)=\"\", \"\", IF(VLOOKUP(J130,'Footnotes list'!$D$9:$E$58,2,FALSE)=0,\"\",VLOOKUP(J130,'Footnotes list'!$D$9:$E$58,2,FALSE) ) )","v":""},null,null,null,null,{"$f":"IF(TRIM(O130)=\"\", \"\", IF(VLOOKUP(O130,'Footnotes list'!$D$9:$E$58,2,FALSE)=0,\"\",VLOOKUP(O130,'Footnotes list'!$D$9:$E$58,2,FALSE) ) )","v":""},null,null,null,null,{"$f":"IF(TRIM(T130)=\"\", \"\", IF(VLOOKUP(T130,'Footnotes list'!$D$9:$E$58,2,FALSE)=0,\"\",VLOOKUP(T130,'Footnotes list'!$D$9:$E$58,2,FALSE) ) )","v":""},null,null,null,null,{"$f":"IF(TRIM(Y130)=\"\", \"\", IF(VLOOKUP(Y130,'Footnotes list'!$D$9:$E$58,2,FALSE)=0,\"\",VLOOKUP(Y130,'Footnotes list'!$D$9:$E$58,2,FALSE) ) )","v":""},null,null,null,null,{"$f":"IF(TRIM(AD130)=\"\", \"\", IF(VLOOKUP(AD130,'Footnotes list'!$D$9:$E$58,2,FALSE)=0,\"\",VLOOKUP(AD130,'Footnotes list'!$D$9:$E$58,2,FALSE) ) )","v":""},null,null,null,null,{"$f":"IF(TRIM(AI130)=\"\", \"\", IF(VLOOKUP(AI130,'Footnotes list'!$D$9:$E$58,2,FALSE)=0,\"\",VLOOKUP(AI130,'Footnotes list'!$D$9:$E$58,2,FALSE) ) )","v":""},null,null,null,null,{"$f":"IF(TRIM(AN130)=\"\", \"\", IF(VLOOKUP(AN130,'Footnotes list'!$D$9:$E$58,2,FALSE)=0,\"\",VLOOKUP(AN130,'Footnotes list'!$D$9:$E$58,2,FALSE) ) )","v":""},null,null,null,null,{"$f":"IF(TRIM(AS130)=\"\", \"\", IF(VLOOKUP(AS130,'Footnotes list'!$D$9:$E$58,2,FALSE)=0,\"\",VLOOKUP(AS130,'Footnotes list'!$D$9:$E$58,2,FALSE) ) )","v":""},null,null,null,null,{"$f":"IF(TRIM(AX130)=\"\", \"\", IF(VLOOKUP(AX130,'Footnotes list'!$D$9:$E$58,2,FALSE)=0,\"\",VLOOKUP(AX130,'Footnotes list'!$D$9:$E$58,2,FALSE) ) )","v":""},null,null,null,null,{"$f":"IF(TRIM(BC130)=\"\", \"\", IF(VLOOKUP(BC130,'Footnotes list'!$D$9:$E$58,2,FALSE)=0,\"\",VLOOKUP(BC130,'Footnotes list'!$D$9:$E$58,2,FALSE) ) )","v":""},null,null,null,null,{"$f":"IF(TRIM(BH130)=\"\", \"\", IF(VLOOKUP(BH130,'Footnotes list'!$D$9:$E$58,2,FALSE)=0,\"\",VLOOKUP(BH130,'Footnotes list'!$D$9:$E$58,2,FALSE) ) )","v":""},null,null,null,null,{"$f":"IF(TRIM(BM130)=\"\", \"\", IF(VLOOKUP(BM130,'Footnotes list'!$D$9:$E$58,2,FALSE)=0,\"\",VLOOKUP(BM130,'Footnotes list'!$D$9:$E$58,2,FALSE) ) )","v":""},null,null,null,null,{"$f":"IF(TRIM(BR130)=\"\", \"\", IF(VLOOKUP(BR130,'Footnotes list'!$D$9:$E$58,2,FALSE)=0,\"\",VLOOKUP(BR130,'Footnotes list'!$D$9:$E$58,2,FALSE) ) )","v":""},null,null,null,null,{"$f":"IF(TRIM(BW130)=\"\", \"\", IF(VLOOKUP(BW130,'Footnotes list'!$D$9:$E$58,2,FALSE)=0,\"\",VLOOKUP(BW130,'Footnotes list'!$D$9:$E$58,2,FALSE) ) )","v":""},null,null,null,null,{"$f":"IF(TRIM(CB130)=\"\", \"\", IF(VLOOKUP(CB130,'Footnotes list'!$D$9:$E$58,2,FALSE)=0,\"\",VLOOKUP(CB130,'Footnotes list'!$D$9:$E$58,2,FALSE) ) )","v":""},null,null,null,null,{"$f":"IF(TRIM(CG130)=\"\", \"\", IF(VLOOKUP(CG130,'Footnotes list'!$D$9:$E$58,2,FALSE)=0,\"\",VLOOKUP(CG130,'Footnotes list'!$D$9:$E$58,2,FALSE) ) )","v":""},null,null,null,null,{"$f":"IF(TRIM(CL130)=\"\", \"\", IF(VLOOKUP(CL130,'Footnotes list'!$D$9:$E$58,2,FALSE)=0,\"\",VLOOKUP(CL130,'Footnotes list'!$D$9:$E$58,2,FALSE) ) )","v":""},null,null,null,null,{"$f":"IF(TRIM(CQ130)=\"\", \"\", IF(VLOOKUP(CQ130,'Footnotes list'!$D$9:$E$58,2,FALSE)=0,\"\",VLOOKUP(CQ130,'Footnotes list'!$D$9:$E$58,2,FALSE) ) )","v":""},null,null,null,null,{"$f":"IF(TRIM(CV130)=\"\", \"\", IF(VLOOKUP(CV130,'Footnotes list'!$D$9:$E$58,2,FALSE)=0,\"\",VLOOKUP(CV130,'Footnotes list'!$D$9:$E$58,2,FALSE) ) )","v":""},null,null,null,null,{"$f":"IF(TRIM(DA130)=\"\", \"\", IF(VLOOKUP(DA130,'Footnotes list'!$D$9:$E$58,2,FALSE)=0,\"\",VLOOKUP(DA130,'Footnotes list'!$D$9:$E$58,2,FALSE) ) )","v":""},null,null,null,null,{"$f":"IF(TRIM(DF130)=\"\", \"\", IF(VLOOKUP(DF130,'Footnotes list'!$D$9:$E$58,2,FALSE)=0,\"\",VLOOKUP(DF130,'Footnotes list'!$D$9:$E$58,2,FALSE) ) )","v":""},null,null,null,null,{"$f":"IF(TRIM(DK130)=\"\", \"\", IF(VLOOKUP(DK130,'Footnotes list'!$D$9:$E$58,2,FALSE)=0,\"\",VLOOKUP(DK130,'Footnotes list'!$D$9:$E$58,2,FALSE) ) )","v":""},null,null,null,null,{"$f":"IF(TRIM(DP130)=\"\", \"\", IF(VLOOKUP(DP130,'Footnotes list'!$D$9:$E$58,2,FALSE)=0,\"\",VLOOKUP(DP130,'Footnotes list'!$D$9:$E$58,2,FALSE) ) )","v":""},null,null,null,null,{"$f":"IF(TRIM(DU130)=\"\", \"\", IF(VLOOKUP(DU130,'Footnotes list'!$D$9:$E$58,2,FALSE)=0,\"\",VLOOKUP(DU130,'Footnotes list'!$D$9:$E$58,2,FALSE) ) )","v":""},null,null,null,null,{"$f":"IF(TRIM(DZ130)=\"\", \"\", IF(VLOOKUP(DZ130,'Footnotes list'!$D$9:$E$58,2,FALSE)=0,\"\",VLOOKUP(DZ130,'Footnotes list'!$D$9:$E$58,2,FALSE) ) )","v":""},null,null,null,null,{"$f":"IF(TRIM(EE130)=\"\", \"\", IF(VLOOKUP(EE130,'Footnotes list'!$D$9:$E$58,2,FALSE)=0,\"\",VLOOKUP(EE130,'Footnotes list'!$D$9:$E$58,2,FALSE) ) )","v":""},null,null,null,null,{"$f":"IF(TRIM(EJ130)=\"\", \"\", IF(VLOOKUP(EJ130,'Footnotes list'!$D$9:$E$58,2,FALSE)=0,\"\",VLOOKUP(EJ130,'Footnotes list'!$D$9:$E$58,2,FALSE) ) )","v":""},null,null,null,null,{"$f":"IF(TRIM(EO130)=\"\", \"\", IF(VLOOKUP(EO130,'Footnotes list'!$D$9:$E$58,2,FALSE)=0,\"\",VLOOKUP(EO130,'Footnotes list'!$D$9:$E$58,2,FALSE) ) )","v":""},null,null,null,null,{"$f":"IF(TRIM(ET130)=\"\", \"\", IF(VLOOKUP(ET130,'Footnotes list'!$D$9:$E$58,2,FALSE)=0,\"\",VLOOKUP(ET130,'Footnotes list'!$D$9:$E$58,2,FALSE) ) )","v":""},null,null,null,null,{"$f":"IF(TRIM(EY130)=\"\", \"\", IF(VLOOKUP(EY130,'Footnotes list'!$D$9:$E$58,2,FALSE)=0,\"\",VLOOKUP(EY130,'Footnotes list'!$D$9:$E$58,2,FALSE) ) )","v":""}]
[null,null,"T","TOT_EGSS","Total T - Activities of households as employers; undifferentiated goods- and services-producing activities of households for own use, including:",null,null,null,null,null,{"$f":"IF(TRIM(J131)=\"\", \"\", IF(VLOOKUP(J131,'Footnotes list'!$D$9:$E$58,2,FALSE)=0,\"\",VLOOKUP(J131,'Footnotes list'!$D$9:$E$58,2,FALSE) ) )","v":""},null,null,null,null,{"$f":"IF(TRIM(O131)=\"\", \"\", IF(VLOOKUP(O131,'Footnotes list'!$D$9:$E$58,2,FALSE)=0,\"\",VLOOKUP(O131,'Footnotes list'!$D$9:$E$58,2,FALSE) ) )","v":""},null,null,null,null,{"$f":"IF(TRIM(T131)=\"\", \"\", IF(VLOOKUP(T131,'Footnotes list'!$D$9:$E$58,2,FALSE)=0,\"\",VLOOKUP(T131,'Footnotes list'!$D$9:$E$58,2,FALSE) ) )","v":""},null,null,null,null,{"$f":"IF(TRIM(Y131)=\"\", \"\", IF(VLOOKUP(Y131,'Footnotes list'!$D$9:$E$58,2,FALSE)=0,\"\",VLOOKUP(Y131,'Footnotes list'!$D$9:$E$58,2,FALSE) ) )","v":""},null,null,null,null,{"$f":"IF(TRIM(AD131)=\"\", \"\", IF(VLOOKUP(AD131,'Footnotes list'!$D$9:$E$58,2,FALSE)=0,\"\",VLOOKUP(AD131,'Footnotes list'!$D$9:$E$58,2,FALSE) ) )","v":""},null,null,null,null,{"$f":"IF(TRIM(AI131)=\"\", \"\", IF(VLOOKUP(AI131,'Footnotes list'!$D$9:$E$58,2,FALSE)=0,\"\",VLOOKUP(AI131,'Footnotes list'!$D$9:$E$58,2,FALSE) ) )","v":""},null,null,null,null,{"$f":"IF(TRIM(AN131)=\"\", \"\", IF(VLOOKUP(AN131,'Footnotes list'!$D$9:$E$58,2,FALSE)=0,\"\",VLOOKUP(AN131,'Footnotes list'!$D$9:$E$58,2,FALSE) ) )","v":""},null,null,null,null,{"$f":"IF(TRIM(AS131)=\"\", \"\", IF(VLOOKUP(AS131,'Footnotes list'!$D$9:$E$58,2,FALSE)=0,\"\",VLOOKUP(AS131,'Footnotes list'!$D$9:$E$58,2,FALSE) ) )","v":""},null,null,null,null,{"$f":"IF(TRIM(AX131)=\"\", \"\", IF(VLOOKUP(AX131,'Footnotes list'!$D$9:$E$58,2,FALSE)=0,\"\",VLOOKUP(AX131,'Footnotes list'!$D$9:$E$58,2,FALSE) ) )","v":""},null,null,null,null,{"$f":"IF(TRIM(BC131)=\"\", \"\", IF(VLOOKUP(BC131,'Footnotes list'!$D$9:$E$58,2,FALSE)=0,\"\",VLOOKUP(BC131,'Footnotes list'!$D$9:$E$58,2,FALSE) ) )","v":""},null,null,null,null,{"$f":"IF(TRIM(BH131)=\"\", \"\", IF(VLOOKUP(BH131,'Footnotes list'!$D$9:$E$58,2,FALSE)=0,\"\",VLOOKUP(BH131,'Footnotes list'!$D$9:$E$58,2,FALSE) ) )","v":""},null,null,null,null,{"$f":"IF(TRIM(BM131)=\"\", \"\", IF(VLOOKUP(BM131,'Footnotes list'!$D$9:$E$58,2,FALSE)=0,\"\",VLOOKUP(BM131,'Footnotes list'!$D$9:$E$58,2,FALSE) ) )","v":""},null,null,null,null,{"$f":"IF(TRIM(BR131)=\"\", \"\", IF(VLOOKUP(BR131,'Footnotes list'!$D$9:$E$58,2,FALSE)=0,\"\",VLOOKUP(BR131,'Footnotes list'!$D$9:$E$58,2,FALSE) ) )","v":""},null,null,null,null,{"$f":"IF(TRIM(BW131)=\"\", \"\", IF(VLOOKUP(BW131,'Footnotes list'!$D$9:$E$58,2,FALSE)=0,\"\",VLOOKUP(BW131,'Footnotes list'!$D$9:$E$58,2,FALSE) ) )","v":""},null,null,null,null,{"$f":"IF(TRIM(CB131)=\"\", \"\", IF(VLOOKUP(CB131,'Footnotes list'!$D$9:$E$58,2,FALSE)=0,\"\",VLOOKUP(CB131,'Footnotes list'!$D$9:$E$58,2,FALSE) ) )","v":""},null,null,null,null,{"$f":"IF(TRIM(CG131)=\"\", \"\", IF(VLOOKUP(CG131,'Footnotes list'!$D$9:$E$58,2,FALSE)=0,\"\",VLOOKUP(CG131,'Footnotes list'!$D$9:$E$58,2,FALSE) ) )","v":""},null,null,null,null,{"$f":"IF(TRIM(CL131)=\"\", \"\", IF(VLOOKUP(CL131,'Footnotes list'!$D$9:$E$58,2,FALSE)=0,\"\",VLOOKUP(CL131,'Footnotes list'!$D$9:$E$58,2,FALSE) ) )","v":""},null,null,null,null,{"$f":"IF(TRIM(CQ131)=\"\", \"\", IF(VLOOKUP(CQ131,'Footnotes list'!$D$9:$E$58,2,FALSE)=0,\"\",VLOOKUP(CQ131,'Footnotes list'!$D$9:$E$58,2,FALSE) ) )","v":""},null,null,null,null,{"$f":"IF(TRIM(CV131)=\"\", \"\", IF(VLOOKUP(CV131,'Footnotes list'!$D$9:$E$58,2,FALSE)=0,\"\",VLOOKUP(CV131,'Footnotes list'!$D$9:$E$58,2,FALSE) ) )","v":""},null,null,null,null,{"$f":"IF(TRIM(DA131)=\"\", \"\", IF(VLOOKUP(DA131,'Footnotes list'!$D$9:$E$58,2,FALSE)=0,\"\",VLOOKUP(DA131,'Footnotes list'!$D$9:$E$58,2,FALSE) ) )","v":""},null,null,null,null,{"$f":"IF(TRIM(DF131)=\"\", \"\", IF(VLOOKUP(DF131,'Footnotes list'!$D$9:$E$58,2,FALSE)=0,\"\",VLOOKUP(DF131,'Footnotes list'!$D$9:$E$58,2,FALSE) ) )","v":""},null,null,null,null,{"$f":"IF(TRIM(DK131)=\"\", \"\", IF(VLOOKUP(DK131,'Footnotes list'!$D$9:$E$58,2,FALSE)=0,\"\",VLOOKUP(DK131,'Footnotes list'!$D$9:$E$58,2,FALSE) ) )","v":""},null,null,null,null,{"$f":"IF(TRIM(DP131)=\"\", \"\", IF(VLOOKUP(DP131,'Footnotes list'!$D$9:$E$58,2,FALSE)=0,\"\",VLOOKUP(DP131,'Footnotes list'!$D$9:$E$58,2,FALSE) ) )","v":""},null,null,null,null,{"$f":"IF(TRIM(DU131)=\"\", \"\", IF(VLOOKUP(DU131,'Footnotes list'!$D$9:$E$58,2,FALSE)=0,\"\",VLOOKUP(DU131,'Footnotes list'!$D$9:$E$58,2,FALSE) ) )","v":""},null,null,null,null,{"$f":"IF(TRIM(DZ131)=\"\", \"\", IF(VLOOKUP(DZ131,'Footnotes list'!$D$9:$E$58,2,FALSE)=0,\"\",VLOOKUP(DZ131,'Footnotes list'!$D$9:$E$58,2,FALSE) ) )","v":""},null,null,null,null,{"$f":"IF(TRIM(EE131)=\"\", \"\", IF(VLOOKUP(EE131,'Footnotes list'!$D$9:$E$58,2,FALSE)=0,\"\",VLOOKUP(EE131,'Footnotes list'!$D$9:$E$58,2,FALSE) ) )","v":""},null,null,null,null,{"$f":"IF(TRIM(EJ131)=\"\", \"\", IF(VLOOKUP(EJ131,'Footnotes list'!$D$9:$E$58,2,FALSE)=0,\"\",VLOOKUP(EJ131,'Footnotes list'!$D$9:$E$58,2,FALSE) ) )","v":""},null,null,null,null,{"$f":"IF(TRIM(EO131)=\"\", \"\", IF(VLOOKUP(EO131,'Footnotes list'!$D$9:$E$58,2,FALSE)=0,\"\",VLOOKUP(EO131,'Footnotes list'!$D$9:$E$58,2,FALSE) ) )","v":""},null,null,null,null,{"$f":"IF(TRIM(ET131)=\"\", \"\", IF(VLOOKUP(ET131,'Footnotes list'!$D$9:$E$58,2,FALSE)=0,\"\",VLOOKUP(ET131,'Footnotes list'!$D$9:$E$58,2,FALSE) ) )","v":""},null,null,null,null,{"$f":"IF(TRIM(EY131)=\"\", \"\", IF(VLOOKUP(EY131,'Footnotes list'!$D$9:$E$58,2,FALSE)=0,\"\",VLOOKUP(EY131,'Footnotes list'!$D$9:$E$58,2,FALSE) ) )","v":""}]
[null,null,"T","ES_CS","environmental specific services",null,null,null,null,null,{"$f":"IF(TRIM(J132)=\"\", \"\", IF(VLOOKUP(J132,'Footnotes list'!$D$9:$E$58,2,FALSE)=0,\"\",VLOOKUP(J132,'Footnotes list'!$D$9:$E$58,2,FALSE) ) )","v":""},null,null,null,null,{"$f":"IF(TRIM(O132)=\"\", \"\", IF(VLOOKUP(O132,'Footnotes list'!$D$9:$E$58,2,FALSE)=0,\"\",VLOOKUP(O132,'Footnotes list'!$D$9:$E$58,2,FALSE) ) )","v":""},null,null,null,null,{"$f":"IF(TRIM(T132)=\"\", \"\", IF(VLOOKUP(T132,'Footnotes list'!$D$9:$E$58,2,FALSE)=0,\"\",VLOOKUP(T132,'Footnotes list'!$D$9:$E$58,2,FALSE) ) )","v":""},null,null,null,null,{"$f":"IF(TRIM(Y132)=\"\", \"\", IF(VLOOKUP(Y132,'Footnotes list'!$D$9:$E$58,2,FALSE)=0,\"\",VLOOKUP(Y132,'Footnotes list'!$D$9:$E$58,2,FALSE) ) )","v":""},null,null,null,null,{"$f":"IF(TRIM(AD132)=\"\", \"\", IF(VLOOKUP(AD132,'Footnotes list'!$D$9:$E$58,2,FALSE)=0,\"\",VLOOKUP(AD132,'Footnotes list'!$D$9:$E$58,2,FALSE) ) )","v":""},null,null,null,null,{"$f":"IF(TRIM(AI132)=\"\", \"\", IF(VLOOKUP(AI132,'Footnotes list'!$D$9:$E$58,2,FALSE)=0,\"\",VLOOKUP(AI132,'Footnotes list'!$D$9:$E$58,2,FALSE) ) )","v":""},null,null,null,null,{"$f":"IF(TRIM(AN132)=\"\", \"\", IF(VLOOKUP(AN132,'Footnotes list'!$D$9:$E$58,2,FALSE)=0,\"\",VLOOKUP(AN132,'Footnotes list'!$D$9:$E$58,2,FALSE) ) )","v":""},null,null,null,null,{"$f":"IF(TRIM(AS132)=\"\", \"\", IF(VLOOKUP(AS132,'Footnotes list'!$D$9:$E$58,2,FALSE)=0,\"\",VLOOKUP(AS132,'Footnotes list'!$D$9:$E$58,2,FALSE) ) )","v":""},null,null,null,null,{"$f":"IF(TRIM(AX132)=\"\", \"\", IF(VLOOKUP(AX132,'Footnotes list'!$D$9:$E$58,2,FALSE)=0,\"\",VLOOKUP(AX132,'Footnotes list'!$D$9:$E$58,2,FALSE) ) )","v":""},null,null,null,null,{"$f":"IF(TRIM(BC132)=\"\", \"\", IF(VLOOKUP(BC132,'Footnotes list'!$D$9:$E$58,2,FALSE)=0,\"\",VLOOKUP(BC132,'Footnotes list'!$D$9:$E$58,2,FALSE) ) )","v":""},null,null,null,null,{"$f":"IF(TRIM(BH132)=\"\", \"\", IF(VLOOKUP(BH132,'Footnotes list'!$D$9:$E$58,2,FALSE)=0,\"\",VLOOKUP(BH132,'Footnotes list'!$D$9:$E$58,2,FALSE) ) )","v":""},null,null,null,null,{"$f":"IF(TRIM(BM132)=\"\", \"\", IF(VLOOKUP(BM132,'Footnotes list'!$D$9:$E$58,2,FALSE)=0,\"\",VLOOKUP(BM132,'Footnotes list'!$D$9:$E$58,2,FALSE) ) )","v":""},null,null,null,null,{"$f":"IF(TRIM(BR132)=\"\", \"\", IF(VLOOKUP(BR132,'Footnotes list'!$D$9:$E$58,2,FALSE)=0,\"\",VLOOKUP(BR132,'Footnotes list'!$D$9:$E$58,2,FALSE) ) )","v":""},null,null,null,null,{"$f":"IF(TRIM(BW132)=\"\", \"\", IF(VLOOKUP(BW132,'Footnotes list'!$D$9:$E$58,2,FALSE)=0,\"\",VLOOKUP(BW132,'Footnotes list'!$D$9:$E$58,2,FALSE) ) )","v":""},null,null,null,null,{"$f":"IF(TRIM(CB132)=\"\", \"\", IF(VLOOKUP(CB132,'Footnotes list'!$D$9:$E$58,2,FALSE)=0,\"\",VLOOKUP(CB132,'Footnotes list'!$D$9:$E$58,2,FALSE) ) )","v":""},null,null,null,null,{"$f":"IF(TRIM(CG132)=\"\", \"\", IF(VLOOKUP(CG132,'Footnotes list'!$D$9:$E$58,2,FALSE)=0,\"\",VLOOKUP(CG132,'Footnotes list'!$D$9:$E$58,2,FALSE) ) )","v":""},null,null,null,null,{"$f":"IF(TRIM(CL132)=\"\", \"\", IF(VLOOKUP(CL132,'Footnotes list'!$D$9:$E$58,2,FALSE)=0,\"\",VLOOKUP(CL132,'Footnotes list'!$D$9:$E$58,2,FALSE) ) )","v":""},null,null,null,null,{"$f":"IF(TRIM(CQ132)=\"\", \"\", IF(VLOOKUP(CQ132,'Footnotes list'!$D$9:$E$58,2,FALSE)=0,\"\",VLOOKUP(CQ132,'Footnotes list'!$D$9:$E$58,2,FALSE) ) )","v":""},null,null,null,null,{"$f":"IF(TRIM(CV132)=\"\", \"\", IF(VLOOKUP(CV132,'Footnotes list'!$D$9:$E$58,2,FALSE)=0,\"\",VLOOKUP(CV132,'Footnotes list'!$D$9:$E$58,2,FALSE) ) )","v":""},null,null,null,null,{"$f":"IF(TRIM(DA132)=\"\", \"\", IF(VLOOKUP(DA132,'Footnotes list'!$D$9:$E$58,2,FALSE)=0,\"\",VLOOKUP(DA132,'Footnotes list'!$D$9:$E$58,2,FALSE) ) )","v":""},null,null,null,null,{"$f":"IF(TRIM(DF132)=\"\", \"\", IF(VLOOKUP(DF132,'Footnotes list'!$D$9:$E$58,2,FALSE)=0,\"\",VLOOKUP(DF132,'Footnotes list'!$D$9:$E$58,2,FALSE) ) )","v":""},null,null,null,null,{"$f":"IF(TRIM(DK132)=\"\", \"\", IF(VLOOKUP(DK132,'Footnotes list'!$D$9:$E$58,2,FALSE)=0,\"\",VLOOKUP(DK132,'Footnotes list'!$D$9:$E$58,2,FALSE) ) )","v":""},null,null,null,null,{"$f":"IF(TRIM(DP132)=\"\", \"\", IF(VLOOKUP(DP132,'Footnotes list'!$D$9:$E$58,2,FALSE)=0,\"\",VLOOKUP(DP132,'Footnotes list'!$D$9:$E$58,2,FALSE) ) )","v":""},null,null,null,null,{"$f":"IF(TRIM(DU132)=\"\", \"\", IF(VLOOKUP(DU132,'Footnotes list'!$D$9:$E$58,2,FALSE)=0,\"\",VLOOKUP(DU132,'Footnotes list'!$D$9:$E$58,2,FALSE) ) )","v":""},null,null,null,null,{"$f":"IF(TRIM(DZ132)=\"\", \"\", IF(VLOOKUP(DZ132,'Footnotes list'!$D$9:$E$58,2,FALSE)=0,\"\",VLOOKUP(DZ132,'Footnotes list'!$D$9:$E$58,2,FALSE) ) )","v":""},null,null,null,null,{"$f":"IF(TRIM(EE132)=\"\", \"\", IF(VLOOKUP(EE132,'Footnotes list'!$D$9:$E$58,2,FALSE)=0,\"\",VLOOKUP(EE132,'Footnotes list'!$D$9:$E$58,2,FALSE) ) )","v":""},null,null,null,null,{"$f":"IF(TRIM(EJ132)=\"\", \"\", IF(VLOOKUP(EJ132,'Footnotes list'!$D$9:$E$58,2,FALSE)=0,\"\",VLOOKUP(EJ132,'Footnotes list'!$D$9:$E$58,2,FALSE) ) )","v":""},null,null,null,null,{"$f":"IF(TRIM(EO132)=\"\", \"\", IF(VLOOKUP(EO132,'Footnotes list'!$D$9:$E$58,2,FALSE)=0,\"\",VLOOKUP(EO132,'Footnotes list'!$D$9:$E$58,2,FALSE) ) )","v":""},null,null,null,null,{"$f":"IF(TRIM(ET132)=\"\", \"\", IF(VLOOKUP(ET132,'Footnotes list'!$D$9:$E$58,2,FALSE)=0,\"\",VLOOKUP(ET132,'Footnotes list'!$D$9:$E$58,2,FALSE) ) )","v":""},null,null,null,null,{"$f":"IF(TRIM(EY132)=\"\", \"\", IF(VLOOKUP(EY132,'Footnotes list'!$D$9:$E$58,2,FALSE)=0,\"\",VLOOKUP(EY132,'Footnotes list'!$D$9:$E$58,2,FALSE) ) )","v":""}]
[null,null,"T","C_REP","cleaner and resource efficient products",null,null,null,null,null,{"$f":"IF(TRIM(J133)=\"\", \"\", IF(VLOOKUP(J133,'Footnotes list'!$D$9:$E$58,2,FALSE)=0,\"\",VLOOKUP(J133,'Footnotes list'!$D$9:$E$58,2,FALSE) ) )","v":""},null,null,null,null,{"$f":"IF(TRIM(O133)=\"\", \"\", IF(VLOOKUP(O133,'Footnotes list'!$D$9:$E$58,2,FALSE)=0,\"\",VLOOKUP(O133,'Footnotes list'!$D$9:$E$58,2,FALSE) ) )","v":""},null,null,null,null,{"$f":"IF(TRIM(T133)=\"\", \"\", IF(VLOOKUP(T133,'Footnotes list'!$D$9:$E$58,2,FALSE)=0,\"\",VLOOKUP(T133,'Footnotes list'!$D$9:$E$58,2,FALSE) ) )","v":""},null,null,null,null,{"$f":"IF(TRIM(Y133)=\"\", \"\", IF(VLOOKUP(Y133,'Footnotes list'!$D$9:$E$58,2,FALSE)=0,\"\",VLOOKUP(Y133,'Footnotes list'!$D$9:$E$58,2,FALSE) ) )","v":""},null,null,null,null,{"$f":"IF(TRIM(AD133)=\"\", \"\", IF(VLOOKUP(AD133,'Footnotes list'!$D$9:$E$58,2,FALSE)=0,\"\",VLOOKUP(AD133,'Footnotes list'!$D$9:$E$58,2,FALSE) ) )","v":""},null,null,null,null,{"$f":"IF(TRIM(AI133)=\"\", \"\", IF(VLOOKUP(AI133,'Footnotes list'!$D$9:$E$58,2,FALSE)=0,\"\",VLOOKUP(AI133,'Footnotes list'!$D$9:$E$58,2,FALSE) ) )","v":""},null,null,null,null,{"$f":"IF(TRIM(AN133)=\"\", \"\", IF(VLOOKUP(AN133,'Footnotes list'!$D$9:$E$58,2,FALSE)=0,\"\",VLOOKUP(AN133,'Footnotes list'!$D$9:$E$58,2,FALSE) ) )","v":""},null,null,null,null,{"$f":"IF(TRIM(AS133)=\"\", \"\", IF(VLOOKUP(AS133,'Footnotes list'!$D$9:$E$58,2,FALSE)=0,\"\",VLOOKUP(AS133,'Footnotes list'!$D$9:$E$58,2,FALSE) ) )","v":""},null,null,null,null,{"$f":"IF(TRIM(AX133)=\"\", \"\", IF(VLOOKUP(AX133,'Footnotes list'!$D$9:$E$58,2,FALSE)=0,\"\",VLOOKUP(AX133,'Footnotes list'!$D$9:$E$58,2,FALSE) ) )","v":""},null,null,null,null,{"$f":"IF(TRIM(BC133)=\"\", \"\", IF(VLOOKUP(BC133,'Footnotes list'!$D$9:$E$58,2,FALSE)=0,\"\",VLOOKUP(BC133,'Footnotes list'!$D$9:$E$58,2,FALSE) ) )","v":""},null,null,null,null,{"$f":"IF(TRIM(BH133)=\"\", \"\", IF(VLOOKUP(BH133,'Footnotes list'!$D$9:$E$58,2,FALSE)=0,\"\",VLOOKUP(BH133,'Footnotes list'!$D$9:$E$58,2,FALSE) ) )","v":""},null,null,null,null,{"$f":"IF(TRIM(BM133)=\"\", \"\", IF(VLOOKUP(BM133,'Footnotes list'!$D$9:$E$58,2,FALSE)=0,\"\",VLOOKUP(BM133,'Footnotes list'!$D$9:$E$58,2,FALSE) ) )","v":""},null,null,null,null,{"$f":"IF(TRIM(BR133)=\"\", \"\", IF(VLOOKUP(BR133,'Footnotes list'!$D$9:$E$58,2,FALSE)=0,\"\",VLOOKUP(BR133,'Footnotes list'!$D$9:$E$58,2,FALSE) ) )","v":""},null,null,null,null,{"$f":"IF(TRIM(BW133)=\"\", \"\", IF(VLOOKUP(BW133,'Footnotes list'!$D$9:$E$58,2,FALSE)=0,\"\",VLOOKUP(BW133,'Footnotes list'!$D$9:$E$58,2,FALSE) ) )","v":""},null,null,null,null,{"$f":"IF(TRIM(CB133)=\"\", \"\", IF(VLOOKUP(CB133,'Footnotes list'!$D$9:$E$58,2,FALSE)=0,\"\",VLOOKUP(CB133,'Footnotes list'!$D$9:$E$58,2,FALSE) ) )","v":""},null,null,null,null,{"$f":"IF(TRIM(CG133)=\"\", \"\", IF(VLOOKUP(CG133,'Footnotes list'!$D$9:$E$58,2,FALSE)=0,\"\",VLOOKUP(CG133,'Footnotes list'!$D$9:$E$58,2,FALSE) ) )","v":""},null,null,null,null,{"$f":"IF(TRIM(CL133)=\"\", \"\", IF(VLOOKUP(CL133,'Footnotes list'!$D$9:$E$58,2,FALSE)=0,\"\",VLOOKUP(CL133,'Footnotes list'!$D$9:$E$58,2,FALSE) ) )","v":""},null,null,null,null,{"$f":"IF(TRIM(CQ133)=\"\", \"\", IF(VLOOKUP(CQ133,'Footnotes list'!$D$9:$E$58,2,FALSE)=0,\"\",VLOOKUP(CQ133,'Footnotes list'!$D$9:$E$58,2,FALSE) ) )","v":""},null,null,null,null,{"$f":"IF(TRIM(CV133)=\"\", \"\", IF(VLOOKUP(CV133,'Footnotes list'!$D$9:$E$58,2,FALSE)=0,\"\",VLOOKUP(CV133,'Footnotes list'!$D$9:$E$58,2,FALSE) ) )","v":""},null,null,null,null,{"$f":"IF(TRIM(DA133)=\"\", \"\", IF(VLOOKUP(DA133,'Footnotes list'!$D$9:$E$58,2,FALSE)=0,\"\",VLOOKUP(DA133,'Footnotes list'!$D$9:$E$58,2,FALSE) ) )","v":""},null,null,null,null,{"$f":"IF(TRIM(DF133)=\"\", \"\", IF(VLOOKUP(DF133,'Footnotes list'!$D$9:$E$58,2,FALSE)=0,\"\",VLOOKUP(DF133,'Footnotes list'!$D$9:$E$58,2,FALSE) ) )","v":""},null,null,null,null,{"$f":"IF(TRIM(DK133)=\"\", \"\", IF(VLOOKUP(DK133,'Footnotes list'!$D$9:$E$58,2,FALSE)=0,\"\",VLOOKUP(DK133,'Footnotes list'!$D$9:$E$58,2,FALSE) ) )","v":""},null,null,null,null,{"$f":"IF(TRIM(DP133)=\"\", \"\", IF(VLOOKUP(DP133,'Footnotes list'!$D$9:$E$58,2,FALSE)=0,\"\",VLOOKUP(DP133,'Footnotes list'!$D$9:$E$58,2,FALSE) ) )","v":""},null,null,null,null,{"$f":"IF(TRIM(DU133)=\"\", \"\", IF(VLOOKUP(DU133,'Footnotes list'!$D$9:$E$58,2,FALSE)=0,\"\",VLOOKUP(DU133,'Footnotes list'!$D$9:$E$58,2,FALSE) ) )","v":""},null,null,null,null,{"$f":"IF(TRIM(DZ133)=\"\", \"\", IF(VLOOKUP(DZ133,'Footnotes list'!$D$9:$E$58,2,FALSE)=0,\"\",VLOOKUP(DZ133,'Footnotes list'!$D$9:$E$58,2,FALSE) ) )","v":""},null,null,null,null,{"$f":"IF(TRIM(EE133)=\"\", \"\", IF(VLOOKUP(EE133,'Footnotes list'!$D$9:$E$58,2,FALSE)=0,\"\",VLOOKUP(EE133,'Footnotes list'!$D$9:$E$58,2,FALSE) ) )","v":""},null,null,null,null,{"$f":"IF(TRIM(EJ133)=\"\", \"\", IF(VLOOKUP(EJ133,'Footnotes list'!$D$9:$E$58,2,FALSE)=0,\"\",VLOOKUP(EJ133,'Footnotes list'!$D$9:$E$58,2,FALSE) ) )","v":""},null,null,null,null,{"$f":"IF(TRIM(EO133)=\"\", \"\", IF(VLOOKUP(EO133,'Footnotes list'!$D$9:$E$58,2,FALSE)=0,\"\",VLOOKUP(EO133,'Footnotes list'!$D$9:$E$58,2,FALSE) ) )","v":""},null,null,null,null,{"$f":"IF(TRIM(ET133)=\"\", \"\", IF(VLOOKUP(ET133,'Footnotes list'!$D$9:$E$58,2,FALSE)=0,\"\",VLOOKUP(ET133,'Footnotes list'!$D$9:$E$58,2,FALSE) ) )","v":""},null,null,null,null,{"$f":"IF(TRIM(EY133)=\"\", \"\", IF(VLOOKUP(EY133,'Footnotes list'!$D$9:$E$58,2,FALSE)=0,\"\",VLOOKUP(EY133,'Footnotes list'!$D$9:$E$58,2,FALSE) ) )","v":""}]
[null,null,"U","TOT_EGSS","Total U - Activities of extraterritorial organizations and bodies, including:",null,null,null,null,null,{"$f":"IF(TRIM(J134)=\"\", \"\", IF(VLOOKUP(J134,'Footnotes list'!$D$9:$E$58,2,FALSE)=0,\"\",VLOOKUP(J134,'Footnotes list'!$D$9:$E$58,2,FALSE) ) )","v":""},null,null,null,null,{"$f":"IF(TRIM(O134)=\"\", \"\", IF(VLOOKUP(O134,'Footnotes list'!$D$9:$E$58,2,FALSE)=0,\"\",VLOOKUP(O134,'Footnotes list'!$D$9:$E$58,2,FALSE) ) )","v":""},null,null,null,null,{"$f":"IF(TRIM(T134)=\"\", \"\", IF(VLOOKUP(T134,'Footnotes list'!$D$9:$E$58,2,FALSE)=0,\"\",VLOOKUP(T134,'Footnotes list'!$D$9:$E$58,2,FALSE) ) )","v":""},null,null,null,null,{"$f":"IF(TRIM(Y134)=\"\", \"\", IF(VLOOKUP(Y134,'Footnotes list'!$D$9:$E$58,2,FALSE)=0,\"\",VLOOKUP(Y134,'Footnotes list'!$D$9:$E$58,2,FALSE) ) )","v":""},null,null,null,null,{"$f":"IF(TRIM(AD134)=\"\", \"\", IF(VLOOKUP(AD134,'Footnotes list'!$D$9:$E$58,2,FALSE)=0,\"\",VLOOKUP(AD134,'Footnotes list'!$D$9:$E$58,2,FALSE) ) )","v":""},null,null,null,null,{"$f":"IF(TRIM(AI134)=\"\", \"\", IF(VLOOKUP(AI134,'Footnotes list'!$D$9:$E$58,2,FALSE)=0,\"\",VLOOKUP(AI134,'Footnotes list'!$D$9:$E$58,2,FALSE) ) )","v":""},null,null,null,null,{"$f":"IF(TRIM(AN134)=\"\", \"\", IF(VLOOKUP(AN134,'Footnotes list'!$D$9:$E$58,2,FALSE)=0,\"\",VLOOKUP(AN134,'Footnotes list'!$D$9:$E$58,2,FALSE) ) )","v":""},null,null,null,null,{"$f":"IF(TRIM(AS134)=\"\", \"\", IF(VLOOKUP(AS134,'Footnotes list'!$D$9:$E$58,2,FALSE)=0,\"\",VLOOKUP(AS134,'Footnotes list'!$D$9:$E$58,2,FALSE) ) )","v":""},null,null,null,null,{"$f":"IF(TRIM(AX134)=\"\", \"\", IF(VLOOKUP(AX134,'Footnotes list'!$D$9:$E$58,2,FALSE)=0,\"\",VLOOKUP(AX134,'Footnotes list'!$D$9:$E$58,2,FALSE) ) )","v":""},null,null,null,null,{"$f":"IF(TRIM(BC134)=\"\", \"\", IF(VLOOKUP(BC134,'Footnotes list'!$D$9:$E$58,2,FALSE)=0,\"\",VLOOKUP(BC134,'Footnotes list'!$D$9:$E$58,2,FALSE) ) )","v":""},null,null,null,null,{"$f":"IF(TRIM(BH134)=\"\", \"\", IF(VLOOKUP(BH134,'Footnotes list'!$D$9:$E$58,2,FALSE)=0,\"\",VLOOKUP(BH134,'Footnotes list'!$D$9:$E$58,2,FALSE) ) )","v":""},null,null,null,null,{"$f":"IF(TRIM(BM134)=\"\", \"\", IF(VLOOKUP(BM134,'Footnotes list'!$D$9:$E$58,2,FALSE)=0,\"\",VLOOKUP(BM134,'Footnotes list'!$D$9:$E$58,2,FALSE) ) )","v":""},null,null,null,null,{"$f":"IF(TRIM(BR134)=\"\", \"\", IF(VLOOKUP(BR134,'Footnotes list'!$D$9:$E$58,2,FALSE)=0,\"\",VLOOKUP(BR134,'Footnotes list'!$D$9:$E$58,2,FALSE) ) )","v":""},null,null,null,null,{"$f":"IF(TRIM(BW134)=\"\", \"\", IF(VLOOKUP(BW134,'Footnotes list'!$D$9:$E$58,2,FALSE)=0,\"\",VLOOKUP(BW134,'Footnotes list'!$D$9:$E$58,2,FALSE) ) )","v":""},null,null,null,null,{"$f":"IF(TRIM(CB134)=\"\", \"\", IF(VLOOKUP(CB134,'Footnotes list'!$D$9:$E$58,2,FALSE)=0,\"\",VLOOKUP(CB134,'Footnotes list'!$D$9:$E$58,2,FALSE) ) )","v":""},null,null,null,null,{"$f":"IF(TRIM(CG134)=\"\", \"\", IF(VLOOKUP(CG134,'Footnotes list'!$D$9:$E$58,2,FALSE)=0,\"\",VLOOKUP(CG134,'Footnotes list'!$D$9:$E$58,2,FALSE) ) )","v":""},null,null,null,null,{"$f":"IF(TRIM(CL134)=\"\", \"\", IF(VLOOKUP(CL134,'Footnotes list'!$D$9:$E$58,2,FALSE)=0,\"\",VLOOKUP(CL134,'Footnotes list'!$D$9:$E$58,2,FALSE) ) )","v":""},null,null,null,null,{"$f":"IF(TRIM(CQ134)=\"\", \"\", IF(VLOOKUP(CQ134,'Footnotes list'!$D$9:$E$58,2,FALSE)=0,\"\",VLOOKUP(CQ134,'Footnotes list'!$D$9:$E$58,2,FALSE) ) )","v":""},null,null,null,null,{"$f":"IF(TRIM(CV134)=\"\", \"\", IF(VLOOKUP(CV134,'Footnotes list'!$D$9:$E$58,2,FALSE)=0,\"\",VLOOKUP(CV134,'Footnotes list'!$D$9:$E$58,2,FALSE) ) )","v":""},null,null,null,null,{"$f":"IF(TRIM(DA134)=\"\", \"\", IF(VLOOKUP(DA134,'Footnotes list'!$D$9:$E$58,2,FALSE)=0,\"\",VLOOKUP(DA134,'Footnotes list'!$D$9:$E$58,2,FALSE) ) )","v":""},null,null,null,null,{"$f":"IF(TRIM(DF134)=\"\", \"\", IF(VLOOKUP(DF134,'Footnotes list'!$D$9:$E$58,2,FALSE)=0,\"\",VLOOKUP(DF134,'Footnotes list'!$D$9:$E$58,2,FALSE) ) )","v":""},null,null,null,null,{"$f":"IF(TRIM(DK134)=\"\", \"\", IF(VLOOKUP(DK134,'Footnotes list'!$D$9:$E$58,2,FALSE)=0,\"\",VLOOKUP(DK134,'Footnotes list'!$D$9:$E$58,2,FALSE) ) )","v":""},null,null,null,null,{"$f":"IF(TRIM(DP134)=\"\", \"\", IF(VLOOKUP(DP134,'Footnotes list'!$D$9:$E$58,2,FALSE)=0,\"\",VLOOKUP(DP134,'Footnotes list'!$D$9:$E$58,2,FALSE) ) )","v":""},null,null,null,null,{"$f":"IF(TRIM(DU134)=\"\", \"\", IF(VLOOKUP(DU134,'Footnotes list'!$D$9:$E$58,2,FALSE)=0,\"\",VLOOKUP(DU134,'Footnotes list'!$D$9:$E$58,2,FALSE) ) )","v":""},null,null,null,null,{"$f":"IF(TRIM(DZ134)=\"\", \"\", IF(VLOOKUP(DZ134,'Footnotes list'!$D$9:$E$58,2,FALSE)=0,\"\",VLOOKUP(DZ134,'Footnotes list'!$D$9:$E$58,2,FALSE) ) )","v":""},null,null,null,null,{"$f":"IF(TRIM(EE134)=\"\", \"\", IF(VLOOKUP(EE134,'Footnotes list'!$D$9:$E$58,2,FALSE)=0,\"\",VLOOKUP(EE134,'Footnotes list'!$D$9:$E$58,2,FALSE) ) )","v":""},null,null,null,null,{"$f":"IF(TRIM(EJ134)=\"\", \"\", IF(VLOOKUP(EJ134,'Footnotes list'!$D$9:$E$58,2,FALSE)=0,\"\",VLOOKUP(EJ134,'Footnotes list'!$D$9:$E$58,2,FALSE) ) )","v":""},null,null,null,null,{"$f":"IF(TRIM(EO134)=\"\", \"\", IF(VLOOKUP(EO134,'Footnotes list'!$D$9:$E$58,2,FALSE)=0,\"\",VLOOKUP(EO134,'Footnotes list'!$D$9:$E$58,2,FALSE) ) )","v":""},null,null,null,null,{"$f":"IF(TRIM(ET134)=\"\", \"\", IF(VLOOKUP(ET134,'Footnotes list'!$D$9:$E$58,2,FALSE)=0,\"\",VLOOKUP(ET134,'Footnotes list'!$D$9:$E$58,2,FALSE) ) )","v":""},null,null,null,null,{"$f":"IF(TRIM(EY134)=\"\", \"\", IF(VLOOKUP(EY134,'Footnotes list'!$D$9:$E$58,2,FALSE)=0,\"\",VLOOKUP(EY134,'Footnotes list'!$D$9:$E$58,2,FALSE) ) )","v":""}]
[null,null,"U","ES_CS","environmental specific services",null,null,null,null,null,{"$f":"IF(TRIM(J135)=\"\", \"\", IF(VLOOKUP(J135,'Footnotes list'!$D$9:$E$58,2,FALSE)=0,\"\",VLOOKUP(J135,'Footnotes list'!$D$9:$E$58,2,FALSE) ) )","v":""},null,null,null,null,{"$f":"IF(TRIM(O135)=\"\", \"\", IF(VLOOKUP(O135,'Footnotes list'!$D$9:$E$58,2,FALSE)=0,\"\",VLOOKUP(O135,'Footnotes list'!$D$9:$E$58,2,FALSE) ) )","v":""},null,null,null,null,{"$f":"IF(TRIM(T135)=\"\", \"\", IF(VLOOKUP(T135,'Footnotes list'!$D$9:$E$58,2,FALSE)=0,\"\",VLOOKUP(T135,'Footnotes list'!$D$9:$E$58,2,FALSE) ) )","v":""},null,null,null,null,{"$f":"IF(TRIM(Y135)=\"\", \"\", IF(VLOOKUP(Y135,'Footnotes list'!$D$9:$E$58,2,FALSE)=0,\"\",VLOOKUP(Y135,'Footnotes list'!$D$9:$E$58,2,FALSE) ) )","v":""},null,null,null,null,{"$f":"IF(TRIM(AD135)=\"\", \"\", IF(VLOOKUP(AD135,'Footnotes list'!$D$9:$E$58,2,FALSE)=0,\"\",VLOOKUP(AD135,'Footnotes list'!$D$9:$E$58,2,FALSE) ) )","v":""},null,null,null,null,{"$f":"IF(TRIM(AI135)=\"\", \"\", IF(VLOOKUP(AI135,'Footnotes list'!$D$9:$E$58,2,FALSE)=0,\"\",VLOOKUP(AI135,'Footnotes list'!$D$9:$E$58,2,FALSE) ) )","v":""},null,null,null,null,{"$f":"IF(TRIM(AN135)=\"\", \"\", IF(VLOOKUP(AN135,'Footnotes list'!$D$9:$E$58,2,FALSE)=0,\"\",VLOOKUP(AN135,'Footnotes list'!$D$9:$E$58,2,FALSE) ) )","v":""},null,null,null,null,{"$f":"IF(TRIM(AS135)=\"\", \"\", IF(VLOOKUP(AS135,'Footnotes list'!$D$9:$E$58,2,FALSE)=0,\"\",VLOOKUP(AS135,'Footnotes list'!$D$9:$E$58,2,FALSE) ) )","v":""},null,null,null,null,{"$f":"IF(TRIM(AX135)=\"\", \"\", IF(VLOOKUP(AX135,'Footnotes list'!$D$9:$E$58,2,FALSE)=0,\"\",VLOOKUP(AX135,'Footnotes list'!$D$9:$E$58,2,FALSE) ) )","v":""},null,null,null,null,{"$f":"IF(TRIM(BC135)=\"\", \"\", IF(VLOOKUP(BC135,'Footnotes list'!$D$9:$E$58,2,FALSE)=0,\"\",VLOOKUP(BC135,'Footnotes list'!$D$9:$E$58,2,FALSE) ) )","v":""},null,null,null,null,{"$f":"IF(TRIM(BH135)=\"\", \"\", IF(VLOOKUP(BH135,'Footnotes list'!$D$9:$E$58,2,FALSE)=0,\"\",VLOOKUP(BH135,'Footnotes list'!$D$9:$E$58,2,FALSE) ) )","v":""},null,null,null,null,{"$f":"IF(TRIM(BM135)=\"\", \"\", IF(VLOOKUP(BM135,'Footnotes list'!$D$9:$E$58,2,FALSE)=0,\"\",VLOOKUP(BM135,'Footnotes list'!$D$9:$E$58,2,FALSE) ) )","v":""},null,null,null,null,{"$f":"IF(TRIM(BR135)=\"\", \"\", IF(VLOOKUP(BR135,'Footnotes list'!$D$9:$E$58,2,FALSE)=0,\"\",VLOOKUP(BR135,'Footnotes list'!$D$9:$E$58,2,FALSE) ) )","v":""},null,null,null,null,{"$f":"IF(TRIM(BW135)=\"\", \"\", IF(VLOOKUP(BW135,'Footnotes list'!$D$9:$E$58,2,FALSE)=0,\"\",VLOOKUP(BW135,'Footnotes list'!$D$9:$E$58,2,FALSE) ) )","v":""},null,null,null,null,{"$f":"IF(TRIM(CB135)=\"\", \"\", IF(VLOOKUP(CB135,'Footnotes list'!$D$9:$E$58,2,FALSE)=0,\"\",VLOOKUP(CB135,'Footnotes list'!$D$9:$E$58,2,FALSE) ) )","v":""},null,null,null,null,{"$f":"IF(TRIM(CG135)=\"\", \"\", IF(VLOOKUP(CG135,'Footnotes list'!$D$9:$E$58,2,FALSE)=0,\"\",VLOOKUP(CG135,'Footnotes list'!$D$9:$E$58,2,FALSE) ) )","v":""},null,null,null,null,{"$f":"IF(TRIM(CL135)=\"\", \"\", IF(VLOOKUP(CL135,'Footnotes list'!$D$9:$E$58,2,FALSE)=0,\"\",VLOOKUP(CL135,'Footnotes list'!$D$9:$E$58,2,FALSE) ) )","v":""},null,null,null,null,{"$f":"IF(TRIM(CQ135)=\"\", \"\", IF(VLOOKUP(CQ135,'Footnotes list'!$D$9:$E$58,2,FALSE)=0,\"\",VLOOKUP(CQ135,'Footnotes list'!$D$9:$E$58,2,FALSE) ) )","v":""},null,null,null,null,{"$f":"IF(TRIM(CV135)=\"\", \"\", IF(VLOOKUP(CV135,'Footnotes list'!$D$9:$E$58,2,FALSE)=0,\"\",VLOOKUP(CV135,'Footnotes list'!$D$9:$E$58,2,FALSE) ) )","v":""},null,null,null,null,{"$f":"IF(TRIM(DA135)=\"\", \"\", IF(VLOOKUP(DA135,'Footnotes list'!$D$9:$E$58,2,FALSE)=0,\"\",VLOOKUP(DA135,'Footnotes list'!$D$9:$E$58,2,FALSE) ) )","v":""},null,null,null,null,{"$f":"IF(TRIM(DF135)=\"\", \"\", IF(VLOOKUP(DF135,'Footnotes list'!$D$9:$E$58,2,FALSE)=0,\"\",VLOOKUP(DF135,'Footnotes list'!$D$9:$E$58,2,FALSE) ) )","v":""},null,null,null,null,{"$f":"IF(TRIM(DK135)=\"\", \"\", IF(VLOOKUP(DK135,'Footnotes list'!$D$9:$E$58,2,FALSE)=0,\"\",VLOOKUP(DK135,'Footnotes list'!$D$9:$E$58,2,FALSE) ) )","v":""},null,null,null,null,{"$f":"IF(TRIM(DP135)=\"\", \"\", IF(VLOOKUP(DP135,'Footnotes list'!$D$9:$E$58,2,FALSE)=0,\"\",VLOOKUP(DP135,'Footnotes list'!$D$9:$E$58,2,FALSE) ) )","v":""},null,null,null,null,{"$f":"IF(TRIM(DU135)=\"\", \"\", IF(VLOOKUP(DU135,'Footnotes list'!$D$9:$E$58,2,FALSE)=0,\"\",VLOOKUP(DU135,'Footnotes list'!$D$9:$E$58,2,FALSE) ) )","v":""},null,null,null,null,{"$f":"IF(TRIM(DZ135)=\"\", \"\", IF(VLOOKUP(DZ135,'Footnotes list'!$D$9:$E$58,2,FALSE)=0,\"\",VLOOKUP(DZ135,'Footnotes list'!$D$9:$E$58,2,FALSE) ) )","v":""},null,null,null,null,{"$f":"IF(TRIM(EE135)=\"\", \"\", IF(VLOOKUP(EE135,'Footnotes list'!$D$9:$E$58,2,FALSE)=0,\"\",VLOOKUP(EE135,'Footnotes list'!$D$9:$E$58,2,FALSE) ) )","v":""},null,null,null,null,{"$f":"IF(TRIM(EJ135)=\"\", \"\", IF(VLOOKUP(EJ135,'Footnotes list'!$D$9:$E$58,2,FALSE)=0,\"\",VLOOKUP(EJ135,'Footnotes list'!$D$9:$E$58,2,FALSE) ) )","v":""},null,null,null,null,{"$f":"IF(TRIM(EO135)=\"\", \"\", IF(VLOOKUP(EO135,'Footnotes list'!$D$9:$E$58,2,FALSE)=0,\"\",VLOOKUP(EO135,'Footnotes list'!$D$9:$E$58,2,FALSE) ) )","v":""},null,null,null,null,{"$f":"IF(TRIM(ET135)=\"\", \"\", IF(VLOOKUP(ET135,'Footnotes list'!$D$9:$E$58,2,FALSE)=0,\"\",VLOOKUP(ET135,'Footnotes list'!$D$9:$E$58,2,FALSE) ) )","v":""},null,null,null,null,{"$f":"IF(TRIM(EY135)=\"\", \"\", IF(VLOOKUP(EY135,'Footnotes list'!$D$9:$E$58,2,FALSE)=0,\"\",VLOOKUP(EY135,'Footnotes list'!$D$9:$E$58,2,FALSE) ) )","v":""}]
[null,null,"U","C_REP","cleaner and resource efficient products",null,null,null,null,null,{"$f":"IF(TRIM(J136)=\"\", \"\", IF(VLOOKUP(J136,'Footnotes list'!$D$9:$E$58,2,FALSE)=0,\"\",VLOOKUP(J136,'Footnotes list'!$D$9:$E$58,2,FALSE) ) )","v":""},null,null,null,null,{"$f":"IF(TRIM(O136)=\"\", \"\", IF(VLOOKUP(O136,'Footnotes list'!$D$9:$E$58,2,FALSE)=0,\"\",VLOOKUP(O136,'Footnotes list'!$D$9:$E$58,2,FALSE) ) )","v":""},null,null,null,null,{"$f":"IF(TRIM(T136)=\"\", \"\", IF(VLOOKUP(T136,'Footnotes list'!$D$9:$E$58,2,FALSE)=0,\"\",VLOOKUP(T136,'Footnotes list'!$D$9:$E$58,2,FALSE) ) )","v":""},null,null,null,null,{"$f":"IF(TRIM(Y136)=\"\", \"\", IF(VLOOKUP(Y136,'Footnotes list'!$D$9:$E$58,2,FALSE)=0,\"\",VLOOKUP(Y136,'Footnotes list'!$D$9:$E$58,2,FALSE) ) )","v":""},null,null,null,null,{"$f":"IF(TRIM(AD136)=\"\", \"\", IF(VLOOKUP(AD136,'Footnotes list'!$D$9:$E$58,2,FALSE)=0,\"\",VLOOKUP(AD136,'Footnotes list'!$D$9:$E$58,2,FALSE) ) )","v":""},null,null,null,null,{"$f":"IF(TRIM(AI136)=\"\", \"\", IF(VLOOKUP(AI136,'Footnotes list'!$D$9:$E$58,2,FALSE)=0,\"\",VLOOKUP(AI136,'Footnotes list'!$D$9:$E$58,2,FALSE) ) )","v":""},null,null,null,null,{"$f":"IF(TRIM(AN136)=\"\", \"\", IF(VLOOKUP(AN136,'Footnotes list'!$D$9:$E$58,2,FALSE)=0,\"\",VLOOKUP(AN136,'Footnotes list'!$D$9:$E$58,2,FALSE) ) )","v":""},null,null,null,null,{"$f":"IF(TRIM(AS136)=\"\", \"\", IF(VLOOKUP(AS136,'Footnotes list'!$D$9:$E$58,2,FALSE)=0,\"\",VLOOKUP(AS136,'Footnotes list'!$D$9:$E$58,2,FALSE) ) )","v":""},null,null,null,null,{"$f":"IF(TRIM(AX136)=\"\", \"\", IF(VLOOKUP(AX136,'Footnotes list'!$D$9:$E$58,2,FALSE)=0,\"\",VLOOKUP(AX136,'Footnotes list'!$D$9:$E$58,2,FALSE) ) )","v":""},null,null,null,null,{"$f":"IF(TRIM(BC136)=\"\", \"\", IF(VLOOKUP(BC136,'Footnotes list'!$D$9:$E$58,2,FALSE)=0,\"\",VLOOKUP(BC136,'Footnotes list'!$D$9:$E$58,2,FALSE) ) )","v":""},null,null,null,null,{"$f":"IF(TRIM(BH136)=\"\", \"\", IF(VLOOKUP(BH136,'Footnotes list'!$D$9:$E$58,2,FALSE)=0,\"\",VLOOKUP(BH136,'Footnotes list'!$D$9:$E$58,2,FALSE) ) )","v":""},null,null,null,null,{"$f":"IF(TRIM(BM136)=\"\", \"\", IF(VLOOKUP(BM136,'Footnotes list'!$D$9:$E$58,2,FALSE)=0,\"\",VLOOKUP(BM136,'Footnotes list'!$D$9:$E$58,2,FALSE) ) )","v":""},null,null,null,null,{"$f":"IF(TRIM(BR136)=\"\", \"\", IF(VLOOKUP(BR136,'Footnotes list'!$D$9:$E$58,2,FALSE)=0,\"\",VLOOKUP(BR136,'Footnotes list'!$D$9:$E$58,2,FALSE) ) )","v":""},null,null,null,null,{"$f":"IF(TRIM(BW136)=\"\", \"\", IF(VLOOKUP(BW136,'Footnotes list'!$D$9:$E$58,2,FALSE)=0,\"\",VLOOKUP(BW136,'Footnotes list'!$D$9:$E$58,2,FALSE) ) )","v":""},null,null,null,null,{"$f":"IF(TRIM(CB136)=\"\", \"\", IF(VLOOKUP(CB136,'Footnotes list'!$D$9:$E$58,2,FALSE)=0,\"\",VLOOKUP(CB136,'Footnotes list'!$D$9:$E$58,2,FALSE) ) )","v":""},null,null,null,null,{"$f":"IF(TRIM(CG136)=\"\", \"\", IF(VLOOKUP(CG136,'Footnotes list'!$D$9:$E$58,2,FALSE)=0,\"\",VLOOKUP(CG136,'Footnotes list'!$D$9:$E$58,2,FALSE) ) )","v":""},null,null,null,null,{"$f":"IF(TRIM(CL136)=\"\", \"\", IF(VLOOKUP(CL136,'Footnotes list'!$D$9:$E$58,2,FALSE)=0,\"\",VLOOKUP(CL136,'Footnotes list'!$D$9:$E$58,2,FALSE) ) )","v":""},null,null,null,null,{"$f":"IF(TRIM(CQ136)=\"\", \"\", IF(VLOOKUP(CQ136,'Footnotes list'!$D$9:$E$58,2,FALSE)=0,\"\",VLOOKUP(CQ136,'Footnotes list'!$D$9:$E$58,2,FALSE) ) )","v":""},null,null,null,null,{"$f":"IF(TRIM(CV136)=\"\", \"\", IF(VLOOKUP(CV136,'Footnotes list'!$D$9:$E$58,2,FALSE)=0,\"\",VLOOKUP(CV136,'Footnotes list'!$D$9:$E$58,2,FALSE) ) )","v":""},null,null,null,null,{"$f":"IF(TRIM(DA136)=\"\", \"\", IF(VLOOKUP(DA136,'Footnotes list'!$D$9:$E$58,2,FALSE)=0,\"\",VLOOKUP(DA136,'Footnotes list'!$D$9:$E$58,2,FALSE) ) )","v":""},null,null,null,null,{"$f":"IF(TRIM(DF136)=\"\", \"\", IF(VLOOKUP(DF136,'Footnotes list'!$D$9:$E$58,2,FALSE)=0,\"\",VLOOKUP(DF136,'Footnotes list'!$D$9:$E$58,2,FALSE) ) )","v":""},null,null,null,null,{"$f":"IF(TRIM(DK136)=\"\", \"\", IF(VLOOKUP(DK136,'Footnotes list'!$D$9:$E$58,2,FALSE)=0,\"\",VLOOKUP(DK136,'Footnotes list'!$D$9:$E$58,2,FALSE) ) )","v":""},null,null,null,null,{"$f":"IF(TRIM(DP136)=\"\", \"\", IF(VLOOKUP(DP136,'Footnotes list'!$D$9:$E$58,2,FALSE)=0,\"\",VLOOKUP(DP136,'Footnotes list'!$D$9:$E$58,2,FALSE) ) )","v":""},null,null,null,null,{"$f":"IF(TRIM(DU136)=\"\", \"\", IF(VLOOKUP(DU136,'Footnotes list'!$D$9:$E$58,2,FALSE)=0,\"\",VLOOKUP(DU136,'Footnotes list'!$D$9:$E$58,2,FALSE) ) )","v":""},null,null,null,null,{"$f":"IF(TRIM(DZ136)=\"\", \"\", IF(VLOOKUP(DZ136,'Footnotes list'!$D$9:$E$58,2,FALSE)=0,\"\",VLOOKUP(DZ136,'Footnotes list'!$D$9:$E$58,2,FALSE) ) )","v":""},null,null,null,null,{"$f":"IF(TRIM(EE136)=\"\", \"\", IF(VLOOKUP(EE136,'Footnotes list'!$D$9:$E$58,2,FALSE)=0,\"\",VLOOKUP(EE136,'Footnotes list'!$D$9:$E$58,2,FALSE) ) )","v":""},null,null,null,null,{"$f":"IF(TRIM(EJ136)=\"\", \"\", IF(VLOOKUP(EJ136,'Footnotes list'!$D$9:$E$58,2,FALSE)=0,\"\",VLOOKUP(EJ136,'Footnotes list'!$D$9:$E$58,2,FALSE) ) )","v":""},null,null,null,null,{"$f":"IF(TRIM(EO136)=\"\", \"\", IF(VLOOKUP(EO136,'Footnotes list'!$D$9:$E$58,2,FALSE)=0,\"\",VLOOKUP(EO136,'Footnotes list'!$D$9:$E$58,2,FALSE) ) )","v":""},null,null,null,null,{"$f":"IF(TRIM(ET136)=\"\", \"\", IF(VLOOKUP(ET136,'Footnotes list'!$D$9:$E$58,2,FALSE)=0,\"\",VLOOKUP(ET136,'Footnotes list'!$D$9:$E$58,2,FALSE) ) )","v":""},null,null,null,null,{"$f":"IF(TRIM(EY136)=\"\", \"\", IF(VLOOKUP(EY136,'Footnotes list'!$D$9:$E$58,2,FALSE)=0,\"\",VLOOKUP(EY136,'Footnotes list'!$D$9:$E$58,2,FALSE) ) )","v":""}]
[null,null,"G-I_K_L_N_Q-U","TOT_EGSS","Total G + H + I + K + L + N + Q + R + S + T + U -Services (except information and communication, professional, scientific and technical activities, public administration and defence; compulsory social security and education), including:",null,null,null,null,null,{"$f":"IF(TRIM(J137)=\"\", \"\", IF(VLOOKUP(J137,'Footnotes list'!$D$9:$E$58,2,FALSE)=0,\"\",VLOOKUP(J137,'Footnotes list'!$D$9:$E$58,2,FALSE) ) )","v":""},null,null,null,null,{"$f":"IF(TRIM(O137)=\"\", \"\", IF(VLOOKUP(O137,'Footnotes list'!$D$9:$E$58,2,FALSE)=0,\"\",VLOOKUP(O137,'Footnotes list'!$D$9:$E$58,2,FALSE) ) )","v":""},null,null,null,null,{"$f":"IF(TRIM(T137)=\"\", \"\", IF(VLOOKUP(T137,'Footnotes list'!$D$9:$E$58,2,FALSE)=0,\"\",VLOOKUP(T137,'Footnotes list'!$D$9:$E$58,2,FALSE) ) )","v":""},null,null,null,null,{"$f":"IF(TRIM(Y137)=\"\", \"\", IF(VLOOKUP(Y137,'Footnotes list'!$D$9:$E$58,2,FALSE)=0,\"\",VLOOKUP(Y137,'Footnotes list'!$D$9:$E$58,2,FALSE) ) )","v":""},null,null,null,null,{"$f":"IF(TRIM(AD137)=\"\", \"\", IF(VLOOKUP(AD137,'Footnotes list'!$D$9:$E$58,2,FALSE)=0,\"\",VLOOKUP(AD137,'Footnotes list'!$D$9:$E$58,2,FALSE) ) )","v":""},null,null,null,null,{"$f":"IF(TRIM(AI137)=\"\", \"\", IF(VLOOKUP(AI137,'Footnotes list'!$D$9:$E$58,2,FALSE)=0,\"\",VLOOKUP(AI137,'Footnotes list'!$D$9:$E$58,2,FALSE) ) )","v":""},null,null,null,null,{"$f":"IF(TRIM(AN137)=\"\", \"\", IF(VLOOKUP(AN137,'Footnotes list'!$D$9:$E$58,2,FALSE)=0,\"\",VLOOKUP(AN137,'Footnotes list'!$D$9:$E$58,2,FALSE) ) )","v":""},null,null,null,null,{"$f":"IF(TRIM(AS137)=\"\", \"\", IF(VLOOKUP(AS137,'Footnotes list'!$D$9:$E$58,2,FALSE)=0,\"\",VLOOKUP(AS137,'Footnotes list'!$D$9:$E$58,2,FALSE) ) )","v":""},null,null,null,null,{"$f":"IF(TRIM(AX137)=\"\", \"\", IF(VLOOKUP(AX137,'Footnotes list'!$D$9:$E$58,2,FALSE)=0,\"\",VLOOKUP(AX137,'Footnotes list'!$D$9:$E$58,2,FALSE) ) )","v":""},null,null,null,null,{"$f":"IF(TRIM(BC137)=\"\", \"\", IF(VLOOKUP(BC137,'Footnotes list'!$D$9:$E$58,2,FALSE)=0,\"\",VLOOKUP(BC137,'Footnotes list'!$D$9:$E$58,2,FALSE) ) )","v":""},null,null,null,null,{"$f":"IF(TRIM(BH137)=\"\", \"\", IF(VLOOKUP(BH137,'Footnotes list'!$D$9:$E$58,2,FALSE)=0,\"\",VLOOKUP(BH137,'Footnotes list'!$D$9:$E$58,2,FALSE) ) )","v":""},null,null,null,null,{"$f":"IF(TRIM(BM137)=\"\", \"\", IF(VLOOKUP(BM137,'Footnotes list'!$D$9:$E$58,2,FALSE)=0,\"\",VLOOKUP(BM137,'Footnotes list'!$D$9:$E$58,2,FALSE) ) )","v":""},null,null,null,null,{"$f":"IF(TRIM(BR137)=\"\", \"\", IF(VLOOKUP(BR137,'Footnotes list'!$D$9:$E$58,2,FALSE)=0,\"\",VLOOKUP(BR137,'Footnotes list'!$D$9:$E$58,2,FALSE) ) )","v":""},null,null,null,null,{"$f":"IF(TRIM(BW137)=\"\", \"\", IF(VLOOKUP(BW137,'Footnotes list'!$D$9:$E$58,2,FALSE)=0,\"\",VLOOKUP(BW137,'Footnotes list'!$D$9:$E$58,2,FALSE) ) )","v":""},null,null,null,null,{"$f":"IF(TRIM(CB137)=\"\", \"\", IF(VLOOKUP(CB137,'Footnotes list'!$D$9:$E$58,2,FALSE)=0,\"\",VLOOKUP(CB137,'Footnotes list'!$D$9:$E$58,2,FALSE) ) )","v":""},null,null,null,null,{"$f":"IF(TRIM(CG137)=\"\", \"\", IF(VLOOKUP(CG137,'Footnotes list'!$D$9:$E$58,2,FALSE)=0,\"\",VLOOKUP(CG137,'Footnotes list'!$D$9:$E$58,2,FALSE) ) )","v":""},null,null,null,null,{"$f":"IF(TRIM(CL137)=\"\", \"\", IF(VLOOKUP(CL137,'Footnotes list'!$D$9:$E$58,2,FALSE)=0,\"\",VLOOKUP(CL137,'Footnotes list'!$D$9:$E$58,2,FALSE) ) )","v":""},null,null,null,null,{"$f":"IF(TRIM(CQ137)=\"\", \"\", IF(VLOOKUP(CQ137,'Footnotes list'!$D$9:$E$58,2,FALSE)=0,\"\",VLOOKUP(CQ137,'Footnotes list'!$D$9:$E$58,2,FALSE) ) )","v":""},null,null,null,null,{"$f":"IF(TRIM(CV137)=\"\", \"\", IF(VLOOKUP(CV137,'Footnotes list'!$D$9:$E$58,2,FALSE)=0,\"\",VLOOKUP(CV137,'Footnotes list'!$D$9:$E$58,2,FALSE) ) )","v":""},null,null,null,null,{"$f":"IF(TRIM(DA137)=\"\", \"\", IF(VLOOKUP(DA137,'Footnotes list'!$D$9:$E$58,2,FALSE)=0,\"\",VLOOKUP(DA137,'Footnotes list'!$D$9:$E$58,2,FALSE) ) )","v":""},null,null,null,null,{"$f":"IF(TRIM(DF137)=\"\", \"\", IF(VLOOKUP(DF137,'Footnotes list'!$D$9:$E$58,2,FALSE)=0,\"\",VLOOKUP(DF137,'Footnotes list'!$D$9:$E$58,2,FALSE) ) )","v":""},null,null,null,null,{"$f":"IF(TRIM(DK137)=\"\", \"\", IF(VLOOKUP(DK137,'Footnotes list'!$D$9:$E$58,2,FALSE)=0,\"\",VLOOKUP(DK137,'Footnotes list'!$D$9:$E$58,2,FALSE) ) )","v":""},null,null,null,null,{"$f":"IF(TRIM(DP137)=\"\", \"\", IF(VLOOKUP(DP137,'Footnotes list'!$D$9:$E$58,2,FALSE)=0,\"\",VLOOKUP(DP137,'Footnotes list'!$D$9:$E$58,2,FALSE) ) )","v":""},null,null,null,null,{"$f":"IF(TRIM(DU137)=\"\", \"\", IF(VLOOKUP(DU137,'Footnotes list'!$D$9:$E$58,2,FALSE)=0,\"\",VLOOKUP(DU137,'Footnotes list'!$D$9:$E$58,2,FALSE) ) )","v":""},null,null,null,null,{"$f":"IF(TRIM(DZ137)=\"\", \"\", IF(VLOOKUP(DZ137,'Footnotes list'!$D$9:$E$58,2,FALSE)=0,\"\",VLOOKUP(DZ137,'Footnotes list'!$D$9:$E$58,2,FALSE) ) )","v":""},null,null,null,null,{"$f":"IF(TRIM(EE137)=\"\", \"\", IF(VLOOKUP(EE137,'Footnotes list'!$D$9:$E$58,2,FALSE)=0,\"\",VLOOKUP(EE137,'Footnotes list'!$D$9:$E$58,2,FALSE) ) )","v":""},null,null,null,null,{"$f":"IF(TRIM(EJ137)=\"\", \"\", IF(VLOOKUP(EJ137,'Footnotes list'!$D$9:$E$58,2,FALSE)=0,\"\",VLOOKUP(EJ137,'Footnotes list'!$D$9:$E$58,2,FALSE) ) )","v":""},null,null,null,null,{"$f":"IF(TRIM(EO137)=\"\", \"\", IF(VLOOKUP(EO137,'Footnotes list'!$D$9:$E$58,2,FALSE)=0,\"\",VLOOKUP(EO137,'Footnotes list'!$D$9:$E$58,2,FALSE) ) )","v":""},null,null,null,null,{"$f":"IF(TRIM(ET137)=\"\", \"\", IF(VLOOKUP(ET137,'Footnotes list'!$D$9:$E$58,2,FALSE)=0,\"\",VLOOKUP(ET137,'Footnotes list'!$D$9:$E$58,2,FALSE) ) )","v":""},null,null,null,null,{"$f":"IF(TRIM(EY137)=\"\", \"\", IF(VLOOKUP(EY137,'Footnotes list'!$D$9:$E$58,2,FALSE)=0,\"\",VLOOKUP(EY137,'Footnotes list'!$D$9:$E$58,2,FALSE) ) )","v":""}]
[null,null,"G-I_K_L_N_Q-U","ES_CS","environmental specific services",null,null,null,null,null,{"$f":"IF(TRIM(J138)=\"\", \"\", IF(VLOOKUP(J138,'Footnotes list'!$D$9:$E$58,2,FALSE)=0,\"\",VLOOKUP(J138,'Footnotes list'!$D$9:$E$58,2,FALSE) ) )","v":""},null,null,null,null,{"$f":"IF(TRIM(O138)=\"\", \"\", IF(VLOOKUP(O138,'Footnotes list'!$D$9:$E$58,2,FALSE)=0,\"\",VLOOKUP(O138,'Footnotes list'!$D$9:$E$58,2,FALSE) ) )","v":""},null,null,null,null,{"$f":"IF(TRIM(T138)=\"\", \"\", IF(VLOOKUP(T138,'Footnotes list'!$D$9:$E$58,2,FALSE)=0,\"\",VLOOKUP(T138,'Footnotes list'!$D$9:$E$58,2,FALSE) ) )","v":""},null,null,null,null,{"$f":"IF(TRIM(Y138)=\"\", \"\", IF(VLOOKUP(Y138,'Footnotes list'!$D$9:$E$58,2,FALSE)=0,\"\",VLOOKUP(Y138,'Footnotes list'!$D$9:$E$58,2,FALSE) ) )","v":""},null,null,null,null,{"$f":"IF(TRIM(AD138)=\"\", \"\", IF(VLOOKUP(AD138,'Footnotes list'!$D$9:$E$58,2,FALSE)=0,\"\",VLOOKUP(AD138,'Footnotes list'!$D$9:$E$58,2,FALSE) ) )","v":""},null,null,null,null,{"$f":"IF(TRIM(AI138)=\"\", \"\", IF(VLOOKUP(AI138,'Footnotes list'!$D$9:$E$58,2,FALSE)=0,\"\",VLOOKUP(AI138,'Footnotes list'!$D$9:$E$58,2,FALSE) ) )","v":""},null,null,null,null,{"$f":"IF(TRIM(AN138)=\"\", \"\", IF(VLOOKUP(AN138,'Footnotes list'!$D$9:$E$58,2,FALSE)=0,\"\",VLOOKUP(AN138,'Footnotes list'!$D$9:$E$58,2,FALSE) ) )","v":""},null,null,null,null,{"$f":"IF(TRIM(AS138)=\"\", \"\", IF(VLOOKUP(AS138,'Footnotes list'!$D$9:$E$58,2,FALSE)=0,\"\",VLOOKUP(AS138,'Footnotes list'!$D$9:$E$58,2,FALSE) ) )","v":""},null,null,null,null,{"$f":"IF(TRIM(AX138)=\"\", \"\", IF(VLOOKUP(AX138,'Footnotes list'!$D$9:$E$58,2,FALSE)=0,\"\",VLOOKUP(AX138,'Footnotes list'!$D$9:$E$58,2,FALSE) ) )","v":""},null,null,null,null,{"$f":"IF(TRIM(BC138)=\"\", \"\", IF(VLOOKUP(BC138,'Footnotes list'!$D$9:$E$58,2,FALSE)=0,\"\",VLOOKUP(BC138,'Footnotes list'!$D$9:$E$58,2,FALSE) ) )","v":""},null,null,null,null,{"$f":"IF(TRIM(BH138)=\"\", \"\", IF(VLOOKUP(BH138,'Footnotes list'!$D$9:$E$58,2,FALSE)=0,\"\",VLOOKUP(BH138,'Footnotes list'!$D$9:$E$58,2,FALSE) ) )","v":""},null,null,null,null,{"$f":"IF(TRIM(BM138)=\"\", \"\", IF(VLOOKUP(BM138,'Footnotes list'!$D$9:$E$58,2,FALSE)=0,\"\",VLOOKUP(BM138,'Footnotes list'!$D$9:$E$58,2,FALSE) ) )","v":""},null,null,null,null,{"$f":"IF(TRIM(BR138)=\"\", \"\", IF(VLOOKUP(BR138,'Footnotes list'!$D$9:$E$58,2,FALSE)=0,\"\",VLOOKUP(BR138,'Footnotes list'!$D$9:$E$58,2,FALSE) ) )","v":""},null,null,null,null,{"$f":"IF(TRIM(BW138)=\"\", \"\", IF(VLOOKUP(BW138,'Footnotes list'!$D$9:$E$58,2,FALSE)=0,\"\",VLOOKUP(BW138,'Footnotes list'!$D$9:$E$58,2,FALSE) ) )","v":""},null,null,null,null,{"$f":"IF(TRIM(CB138)=\"\", \"\", IF(VLOOKUP(CB138,'Footnotes list'!$D$9:$E$58,2,FALSE)=0,\"\",VLOOKUP(CB138,'Footnotes list'!$D$9:$E$58,2,FALSE) ) )","v":""},null,null,null,null,{"$f":"IF(TRIM(CG138)=\"\", \"\", IF(VLOOKUP(CG138,'Footnotes list'!$D$9:$E$58,2,FALSE)=0,\"\",VLOOKUP(CG138,'Footnotes list'!$D$9:$E$58,2,FALSE) ) )","v":""},null,null,null,null,{"$f":"IF(TRIM(CL138)=\"\", \"\", IF(VLOOKUP(CL138,'Footnotes list'!$D$9:$E$58,2,FALSE)=0,\"\",VLOOKUP(CL138,'Footnotes list'!$D$9:$E$58,2,FALSE) ) )","v":""},null,null,null,null,{"$f":"IF(TRIM(CQ138)=\"\", \"\", IF(VLOOKUP(CQ138,'Footnotes list'!$D$9:$E$58,2,FALSE)=0,\"\",VLOOKUP(CQ138,'Footnotes list'!$D$9:$E$58,2,FALSE) ) )","v":""},null,null,null,null,{"$f":"IF(TRIM(CV138)=\"\", \"\", IF(VLOOKUP(CV138,'Footnotes list'!$D$9:$E$58,2,FALSE)=0,\"\",VLOOKUP(CV138,'Footnotes list'!$D$9:$E$58,2,FALSE) ) )","v":""},null,null,null,null,{"$f":"IF(TRIM(DA138)=\"\", \"\", IF(VLOOKUP(DA138,'Footnotes list'!$D$9:$E$58,2,FALSE)=0,\"\",VLOOKUP(DA138,'Footnotes list'!$D$9:$E$58,2,FALSE) ) )","v":""},null,null,null,null,{"$f":"IF(TRIM(DF138)=\"\", \"\", IF(VLOOKUP(DF138,'Footnotes list'!$D$9:$E$58,2,FALSE)=0,\"\",VLOOKUP(DF138,'Footnotes list'!$D$9:$E$58,2,FALSE) ) )","v":""},null,null,null,null,{"$f":"IF(TRIM(DK138)=\"\", \"\", IF(VLOOKUP(DK138,'Footnotes list'!$D$9:$E$58,2,FALSE)=0,\"\",VLOOKUP(DK138,'Footnotes list'!$D$9:$E$58,2,FALSE) ) )","v":""},null,null,null,null,{"$f":"IF(TRIM(DP138)=\"\", \"\", IF(VLOOKUP(DP138,'Footnotes list'!$D$9:$E$58,2,FALSE)=0,\"\",VLOOKUP(DP138,'Footnotes list'!$D$9:$E$58,2,FALSE) ) )","v":""},null,null,null,null,{"$f":"IF(TRIM(DU138)=\"\", \"\", IF(VLOOKUP(DU138,'Footnotes list'!$D$9:$E$58,2,FALSE)=0,\"\",VLOOKUP(DU138,'Footnotes list'!$D$9:$E$58,2,FALSE) ) )","v":""},null,null,null,null,{"$f":"IF(TRIM(DZ138)=\"\", \"\", IF(VLOOKUP(DZ138,'Footnotes list'!$D$9:$E$58,2,FALSE)=0,\"\",VLOOKUP(DZ138,'Footnotes list'!$D$9:$E$58,2,FALSE) ) )","v":""},null,null,null,null,{"$f":"IF(TRIM(EE138)=\"\", \"\", IF(VLOOKUP(EE138,'Footnotes list'!$D$9:$E$58,2,FALSE)=0,\"\",VLOOKUP(EE138,'Footnotes list'!$D$9:$E$58,2,FALSE) ) )","v":""},null,null,null,null,{"$f":"IF(TRIM(EJ138)=\"\", \"\", IF(VLOOKUP(EJ138,'Footnotes list'!$D$9:$E$58,2,FALSE)=0,\"\",VLOOKUP(EJ138,'Footnotes list'!$D$9:$E$58,2,FALSE) ) )","v":""},null,null,null,null,{"$f":"IF(TRIM(EO138)=\"\", \"\", IF(VLOOKUP(EO138,'Footnotes list'!$D$9:$E$58,2,FALSE)=0,\"\",VLOOKUP(EO138,'Footnotes list'!$D$9:$E$58,2,FALSE) ) )","v":""},null,null,null,null,{"$f":"IF(TRIM(ET138)=\"\", \"\", IF(VLOOKUP(ET138,'Footnotes list'!$D$9:$E$58,2,FALSE)=0,\"\",VLOOKUP(ET138,'Footnotes list'!$D$9:$E$58,2,FALSE) ) )","v":""},null,null,null,null,{"$f":"IF(TRIM(EY138)=\"\", \"\", IF(VLOOKUP(EY138,'Footnotes list'!$D$9:$E$58,2,FALSE)=0,\"\",VLOOKUP(EY138,'Footnotes list'!$D$9:$E$58,2,FALSE) ) )","v":""}]
[null,null,"G-I_K_L_N_Q-U","C_REP","cleaner and resource efficient products",null,null,null,null,null,{"$f":"IF(TRIM(J139)=\"\", \"\", IF(VLOOKUP(J139,'Footnotes list'!$D$9:$E$58,2,FALSE)=0,\"\",VLOOKUP(J139,'Footnotes list'!$D$9:$E$58,2,FALSE) ) )","v":""},null,null,null,null,{"$f":"IF(TRIM(O139)=\"\", \"\", IF(VLOOKUP(O139,'Footnotes list'!$D$9:$E$58,2,FALSE)=0,\"\",VLOOKUP(O139,'Footnotes list'!$D$9:$E$58,2,FALSE) ) )","v":""},null,null,null,null,{"$f":"IF(TRIM(T139)=\"\", \"\", IF(VLOOKUP(T139,'Footnotes list'!$D$9:$E$58,2,FALSE)=0,\"\",VLOOKUP(T139,'Footnotes list'!$D$9:$E$58,2,FALSE) ) )","v":""},null,null,null,null,{"$f":"IF(TRIM(Y139)=\"\", \"\", IF(VLOOKUP(Y139,'Footnotes list'!$D$9:$E$58,2,FALSE)=0,\"\",VLOOKUP(Y139,'Footnotes list'!$D$9:$E$58,2,FALSE) ) )","v":""},null,null,null,null,{"$f":"IF(TRIM(AD139)=\"\", \"\", IF(VLOOKUP(AD139,'Footnotes list'!$D$9:$E$58,2,FALSE)=0,\"\",VLOOKUP(AD139,'Footnotes list'!$D$9:$E$58,2,FALSE) ) )","v":""},null,null,null,null,{"$f":"IF(TRIM(AI139)=\"\", \"\", IF(VLOOKUP(AI139,'Footnotes list'!$D$9:$E$58,2,FALSE)=0,\"\",VLOOKUP(AI139,'Footnotes list'!$D$9:$E$58,2,FALSE) ) )","v":""},null,null,null,null,{"$f":"IF(TRIM(AN139)=\"\", \"\", IF(VLOOKUP(AN139,'Footnotes list'!$D$9:$E$58,2,FALSE)=0,\"\",VLOOKUP(AN139,'Footnotes list'!$D$9:$E$58,2,FALSE) ) )","v":""},null,null,null,null,{"$f":"IF(TRIM(AS139)=\"\", \"\", IF(VLOOKUP(AS139,'Footnotes list'!$D$9:$E$58,2,FALSE)=0,\"\",VLOOKUP(AS139,'Footnotes list'!$D$9:$E$58,2,FALSE) ) )","v":""},null,null,null,null,{"$f":"IF(TRIM(AX139)=\"\", \"\", IF(VLOOKUP(AX139,'Footnotes list'!$D$9:$E$58,2,FALSE)=0,\"\",VLOOKUP(AX139,'Footnotes list'!$D$9:$E$58,2,FALSE) ) )","v":""},null,null,null,null,{"$f":"IF(TRIM(BC139)=\"\", \"\", IF(VLOOKUP(BC139,'Footnotes list'!$D$9:$E$58,2,FALSE)=0,\"\",VLOOKUP(BC139,'Footnotes list'!$D$9:$E$58,2,FALSE) ) )","v":""},null,null,null,null,{"$f":"IF(TRIM(BH139)=\"\", \"\", IF(VLOOKUP(BH139,'Footnotes list'!$D$9:$E$58,2,FALSE)=0,\"\",VLOOKUP(BH139,'Footnotes list'!$D$9:$E$58,2,FALSE) ) )","v":""},null,null,null,null,{"$f":"IF(TRIM(BM139)=\"\", \"\", IF(VLOOKUP(BM139,'Footnotes list'!$D$9:$E$58,2,FALSE)=0,\"\",VLOOKUP(BM139,'Footnotes list'!$D$9:$E$58,2,FALSE) ) )","v":""},null,null,null,null,{"$f":"IF(TRIM(BR139)=\"\", \"\", IF(VLOOKUP(BR139,'Footnotes list'!$D$9:$E$58,2,FALSE)=0,\"\",VLOOKUP(BR139,'Footnotes list'!$D$9:$E$58,2,FALSE) ) )","v":""},null,null,null,null,{"$f":"IF(TRIM(BW139)=\"\", \"\", IF(VLOOKUP(BW139,'Footnotes list'!$D$9:$E$58,2,FALSE)=0,\"\",VLOOKUP(BW139,'Footnotes list'!$D$9:$E$58,2,FALSE) ) )","v":""},null,null,null,null,{"$f":"IF(TRIM(CB139)=\"\", \"\", IF(VLOOKUP(CB139,'Footnotes list'!$D$9:$E$58,2,FALSE)=0,\"\",VLOOKUP(CB139,'Footnotes list'!$D$9:$E$58,2,FALSE) ) )","v":""},null,null,null,null,{"$f":"IF(TRIM(CG139)=\"\", \"\", IF(VLOOKUP(CG139,'Footnotes list'!$D$9:$E$58,2,FALSE)=0,\"\",VLOOKUP(CG139,'Footnotes list'!$D$9:$E$58,2,FALSE) ) )","v":""},null,null,null,null,{"$f":"IF(TRIM(CL139)=\"\", \"\", IF(VLOOKUP(CL139,'Footnotes list'!$D$9:$E$58,2,FALSE)=0,\"\",VLOOKUP(CL139,'Footnotes list'!$D$9:$E$58,2,FALSE) ) )","v":""},null,null,null,null,{"$f":"IF(TRIM(CQ139)=\"\", \"\", IF(VLOOKUP(CQ139,'Footnotes list'!$D$9:$E$58,2,FALSE)=0,\"\",VLOOKUP(CQ139,'Footnotes list'!$D$9:$E$58,2,FALSE) ) )","v":""},null,null,null,null,{"$f":"IF(TRIM(CV139)=\"\", \"\", IF(VLOOKUP(CV139,'Footnotes list'!$D$9:$E$58,2,FALSE)=0,\"\",VLOOKUP(CV139,'Footnotes list'!$D$9:$E$58,2,FALSE) ) )","v":""},null,null,null,null,{"$f":"IF(TRIM(DA139)=\"\", \"\", IF(VLOOKUP(DA139,'Footnotes list'!$D$9:$E$58,2,FALSE)=0,\"\",VLOOKUP(DA139,'Footnotes list'!$D$9:$E$58,2,FALSE) ) )","v":""},null,null,null,null,{"$f":"IF(TRIM(DF139)=\"\", \"\", IF(VLOOKUP(DF139,'Footnotes list'!$D$9:$E$58,2,FALSE)=0,\"\",VLOOKUP(DF139,'Footnotes list'!$D$9:$E$58,2,FALSE) ) )","v":""},null,null,null,null,{"$f":"IF(TRIM(DK139)=\"\", \"\", IF(VLOOKUP(DK139,'Footnotes list'!$D$9:$E$58,2,FALSE)=0,\"\",VLOOKUP(DK139,'Footnotes list'!$D$9:$E$58,2,FALSE) ) )","v":""},null,null,null,null,{"$f":"IF(TRIM(DP139)=\"\", \"\", IF(VLOOKUP(DP139,'Footnotes list'!$D$9:$E$58,2,FALSE)=0,\"\",VLOOKUP(DP139,'Footnotes list'!$D$9:$E$58,2,FALSE) ) )","v":""},null,null,null,null,{"$f":"IF(TRIM(DU139)=\"\", \"\", IF(VLOOKUP(DU139,'Footnotes list'!$D$9:$E$58,2,FALSE)=0,\"\",VLOOKUP(DU139,'Footnotes list'!$D$9:$E$58,2,FALSE) ) )","v":""},null,null,null,null,{"$f":"IF(TRIM(DZ139)=\"\", \"\", IF(VLOOKUP(DZ139,'Footnotes list'!$D$9:$E$58,2,FALSE)=0,\"\",VLOOKUP(DZ139,'Footnotes list'!$D$9:$E$58,2,FALSE) ) )","v":""},null,null,null,null,{"$f":"IF(TRIM(EE139)=\"\", \"\", IF(VLOOKUP(EE139,'Footnotes list'!$D$9:$E$58,2,FALSE)=0,\"\",VLOOKUP(EE139,'Footnotes list'!$D$9:$E$58,2,FALSE) ) )","v":""},null,null,null,null,{"$f":"IF(TRIM(EJ139)=\"\", \"\", IF(VLOOKUP(EJ139,'Footnotes list'!$D$9:$E$58,2,FALSE)=0,\"\",VLOOKUP(EJ139,'Footnotes list'!$D$9:$E$58,2,FALSE) ) )","v":""},null,null,null,null,{"$f":"IF(TRIM(EO139)=\"\", \"\", IF(VLOOKUP(EO139,'Footnotes list'!$D$9:$E$58,2,FALSE)=0,\"\",VLOOKUP(EO139,'Footnotes list'!$D$9:$E$58,2,FALSE) ) )","v":""},null,null,null,null,{"$f":"IF(TRIM(ET139)=\"\", \"\", IF(VLOOKUP(ET139,'Footnotes list'!$D$9:$E$58,2,FALSE)=0,\"\",VLOOKUP(ET139,'Footnotes list'!$D$9:$E$58,2,FALSE) ) )","v":""},null,null,null,null,{"$f":"IF(TRIM(EY139)=\"\", \"\", IF(VLOOKUP(EY139,'Footnotes list'!$D$9:$E$58,2,FALSE)=0,\"\",VLOOKUP(EY139,'Footnotes list'!$D$9:$E$58,2,FALSE) ) )","v":""}]
[]
[null,null,null,"Grey: Automatic calculation. Formula can be overwritten (with \"unlock formulas\")"]
[null,null,null,"Cyan: Non Mandatory variables"]
[null,null,null,"Light yellow: Footnotes (only to be filled-in when relevant)"]

{"sheet":"Codes and labels","index":11,"n_rows":45,"n_cols":14,"rows_kept":45,"cut":false,"hidden":true,"merged":[[34,7,34,8],[33,7,33,8],[32,7,32,8],[39,7,39,8],[38,7,38,8],[37,7,37,8],[36,7,36,8],[35,7,35,8],[44,7,44,8],[43,7,43,8],[42,7,42,8],[41,7,41,8],[40,7,40,8],[31,7,31,8],[30,7,30,8],[29,7,29,8],[28,7,28,8],[27,7,27,8],[26,7,26,8],[25,7,25,8],[24,7,24,8],[23,7,23,8],[22,7,22,8],[21,7,21,8],[20,7,20,8],[19,7,19,8],[18,7,18,8],[17,7,17,8],[16,7,16,8],[15,7,15,8],[14,7,14,8],[13,7,13,8],[12,7,12,8],[11,7,11,8],[10,7,10,8],[9,7,9,8],[8,7,8,8],[7,7,7,8],[7,2,7,3],[1,7,1,8],[1,2,1,3],[2,2,2,3],[3,2,3,3],[6,7,6,8],[5,7,5,8],[4,7,4,8],[3,7,3,8],[2,7,2,8],[6,2,6,3],[5,2,5,3],[4,2,4,3]]}
[]
[null,"TOT_EGSS","Total EGSS",null,null,null,"TOTAL","Total output, of which:",null,null,null,"CEPA1","CEPA 1","Protection of ambient air and climate "]
[null,"ANC","ancillary activities",null,null,null,"A","Total A - Agriculture, forestry and fishing, of which",null,null,null,"CEPA112_122","CEPA 1.1.2 and 1.2.2","Protection of climate and ozone layer (as a subgroup of protection of ambient air and climate)"]
[null,"NMKT","non-market activities",null,null,null,"B","Total B - Mining and quarrying, of which",null,null,null,"CEPA2","CEPA 2","Wastewater management"]
[null,"OWN_USE","activities for own final use",null,null,null,"C","Total C - Manufacturing, of which:",null,null,null,"CEPA3","CEPA 3","Waste management "]
[null,"MKT","market activities, including:",null,null,null,"C10-C12","Total  C10 - C12 - Manufacture of food products, beverages and tobacco products, of which:",null,null,null,"CEPA4","CEPA 4","Protection and remediation of soil, groundwater and surface water "]
[null,"ES_CS","environmental specific services",null,null,null,"C13-C15","Total C13 - C15 Manufacture of textiles, wearing apparel, leather and related products, of which:",null,null,null,"CEPA5","CEPA 5","Noise and vibration abatement "]
[null,"C_REP","cleaner and resource efficient products",null,null,null,"C16-C18","Total C16 - C18 Manufacture of wood and paper products, and printing, of which:",null,null,null,"CEPA6","CEPA 6","Protection of biodiversity and landscapes "]
[null,null,null,null,null,null,"C19","Total C19 - Manufacture of coke and refined petroleum products, of which:",null,null,null,"CEPA7-9","CEPA 7 + CEPA 8 +CEPA 9","Protection against radiation; Research and development (R&D) and Other"]
[null,null,null,null,null,null,"C20","Total C20 - Manufacture of chemicals and chemical products, of which:",null,null,null,"CEPA7","CEPA 7","Protection against radiation "]
[null,null,null,null,null,null,"C21","Total C21 - Manufacture of basic pharmaceutical products and pharmaceutical preparations, of which:",null,null,null,"CEPA8","CEPA 8","Research and development (R&D) for environmental protection"]
[null,null,null,null,null,null,"C22_C23","Total C22 - C23 Manufacture of rubber and plastic products, and other non-metallic mineral products, of which:",null,null,null,"CEPA812","CEPA 8.1.2","R&D for the protection of climate and ozone layer (as a subgroup of research and development for environmental protection)"]
[null,null,null,null,null,null,"C24_C25","Total C24 - C25 Manufacture of basic metals and fabricated metal products, except machinery and equipment, of which:",null,null,null,"CEPA9","CEPA 9","Other"]
[null,null,null,null,null,null,"C26","Total C26 - Manufacture of computer, electronic and optical products, of which:",null,null,null,"TOT_CEPA","CEPA 1-9","Total CEPA"]
[null,null,null,null,null,null,"C27","Total C27 - Manufacture of electrical equipment, of which:",null,null,null,"CREMA10","CReMA 10","Management of waters"]
[null,null,null,null,null,null,"C28","Total C28 - Manufacture of machinery and equipment n.e.c., of which:",null,null,null,"CREMA11","CReMA 11","Management of forest resources"]
[null,null,null,null,null,null,"C29_C30","Total C29 - C30 Manufacture of transport equipment, of which:",null,null,null,"CREMA11A","CReMA   11 A","Management of forest areas"]
[null,null,null,null,null,null,"C31-C33","Total C31 - C33 Manufacture of furniture; other manufacturing; repair and installation of machinery and equipment, of which:",null,null,null,"CREMA11B","CReMA 11 B","Minimisation of the intake of  forest resources"]
[null,null,null,null,null,null,"D","Total D- Electricity, gas, steam and air conditioning supply, of which:",null,null,null,"CREMA13","CReMA 13 ","Management of fossil energy resources"]
[null,null,null,null,null,null,"E","Total E - Water supply; sewerage, waste management and remediation activities, of which:",null,null,null,"CREMA13A","CReMA 13 A","Production of energy from renewable sources"]
[null,null,null,null,null,null,"E36","Total E36 - Water collection, treatment and supply, of which:",null,null,null,"CREMA13B","CReMA 13 B","Heat/Energy saving and management"]
[null,null,null,null,null,null,"E37","Total E37 - Sewerage, of which:",null,null,null,"CREMA13C","CReMA 13 C","Minimisation of the intake of fossil resources as raw material "]
[null,null,null,null,null,null,"E38","Total E38 - Waste collection, treatment and disposal activities; materials recovery, of which:",null,null,null,"CREMA14","CReMA 14","Management of minerals"]
[null,null,null,null,null,null,"E39","Total E39 - Remediation activities and other waste management services, of which:",null,null,null,"CREMA12_15_16","CReMA 12 + CReMA 15 + CReMA 16","Management of wild flora and fauna; Research and development (R&D) and Other"]
[null,null,null,null,null,null,"F","Total F Construction, of which:",null,null,null,"CREMA12","CReMA 12","Management of wild flora and fauna"]
[null,null,null,null,null,null,"G","Total G - Wholesale and retail trade, of which:",null,null,null,"CREMA15","CReMA 15","Research and development (R&D) for resource management"]
[null,null,null,null,null,null,"H","Total H - Transportation and storage, of which:",null,null,null,"CREMA15A","CReMA 15.5.1","R&D for the production of energy from renewable sources (as a subgroup of R& D for resource management) "]
[null,null,null,null,null,null,"I","Total I - Accommodation and food service activities, of which:",null,null,null,"CREMA16","CReMA 16","Other"]
[null,null,null,null,null,null,"J","Total J - Information and communication, of which:",null,null,null,"TOT_CREMA","CReMA 10-16","Total CReMA"]
[null,null,null,null,null,null,"K","Total K - Financial and insurance activities, of which:",null,null,null,"TOTAL","CEPA 1-9 and CReMA 10-16","TOTAL CEPA and CReMA"]
[null,null,null,null,null,null,"L","Total L - Real estate activities, of which:",null,null,null,"CREMA13B_MEMO","CREMA13B_MEMO","Part of GVA related to energy-efficiency measures undertaken for the construction of the NZEBs"]
[null,null,null,null,null,null,"M","Total M - Professional, scientific and technical activities, of which:"]
[null,null,null,null,null,null,"M69_M70","Total M69-M70 - Legal and accounting activities; Activities of head offices; management consultancy activities, of which:"]
[null,null,null,null,null,null,"M71","Total M71 - Architectural and engineering activities; technical testing and analysis, of which:"]
[null,null,null,null,null,null,"M72","Total M72 - Scientific research and development, of which:"]
[null,null,null,null,null,null,"M73-M75","Total M73-M75 - Advertising and market research; Other professional, scientific and technical activities; Veterinary activities, of which:"]
[null,null,null,null,null,null,"N","Total N - Administrative and support service activities, of which:"]
[null,null,null,null,null,null,"O","Total O - Public administration and defence, compulsory social security, of which:"]
[null,null,null,null,null,null,"P","Total P - Education, of which:"]
[null,null,null,null,null,null,"Q","Total Q - Human health and social work activities, of which:"]
[null,null,null,null,null,null,"R","Total R - Arts, entertainment and recreation, of which:"]
[null,null,null,null,null,null,"S","Total S - Other service activities, of which:"]
[null,null,null,null,null,null,"T","Total T - Activities of households as employers; undifferentiated goods- and services-producing activities of households for own use, of which:"]
[null,null,null,null,null,null,"U","Total U - Activities of extraterritorial organizations and bodies, of which:"]
[null,null,null,null,null,null,"G-I_K_L_N_Q-U","Total G + H + I + K + L + N + Q + R + S + T + U -Services (except information and communication, professional, scientific and technical activities, public administration and defence; compulsory social security and education), of which:"]

{"sheet":"Lists","index":12,"n_rows":42,"n_cols":13,"rows_kept":42,"cut":false,"hidden":true,"merged":[[1,9,1,10],[5,9,5,10],[10,9,10,10],[15,9,15,10]]}
["Country label","Country code",null,"Valid flags (obs_status)","Label",null,"Valid flags (obs_conf)","Label",null,"Textual variables","String",null,"EGSS-2024-DC"]
["Belgium","BE",null,"B","break in time series",null,"C","confidential",null,"Institutional names"]
["Bulgaria","BG",null,"E","estimated data",null,"D","secondary confidentiality set by the sender",null,"Eurostat Text","Statistical Office of the European Union"]
["Czechia","CZ",null,"P","provisional",null,"N","Not to be published",null,"Directorate Text","Directorate E: Sectoral and regional statistics"]
["Denmark","DK",null,"BE",null,null,null,null,null,"Unit Text","Unit E-2: Environmental statistics and accounts; sustainable development"]
["Germany","DE",null,"BP",null,null,null,null,null,"Data collection information"]
["Estonia","EE",null,"EP",null,null,null,null,null,"Data Collection Title","Annual reporting of Environmental Goods and Services (EGSS)"]
["Ireland","IE",null,"BEP",null,null,null,null,null,"Data Collection Year",2024]
["Greece","EL",null,null,null,null,null,null,null,"Launching date","July 01st 2024"]
["Spain","ES",null,null,null,null,null,null,null,"Submission deadline","October 31st 2024"]
["France","FR",null,null,null,null,null,null,null,"EDAMIS data"]
["Croatia","HR",null,null,null,null,null,null,null,"Domain name","EGSS"]
["Italy","IT",null,null,null,null,null,null,null,"Dataset name","ENVDATA_EGSS_A"]
["Cyprus","CY",null,null,null,null,null,null,null,"Web page","https://webgate.ec.europa.eu/edamis4/contact-form"]
["Latvia","LV",null,null,null,null,null,null,null,"Functional e-mail","ESTAT-DATA-METADATA-SERVICES@ec.europa.eu"]
["Lithuania","LT",null,null,null,null,null,null,null,"E2 information"]
["Luxembourg","LU",null,null,null,null,null,null,null,"Telephone","(+352) 4301 36162"]
["Hungary","HU",null,null,null,null,null,null,null,"Contact","ESTAT-EGSS@ec.europa.eu"]
["Malta","MT",null,null,null,null,null,null,null,"Methodology URL","https://ec.europa.eu/eurostat/web/environment/methodology"]
["Netherlands","NL",null,null,null,null,null,null,null,"Legislation URL"]
["Austria","AT"]
["Poland","PL"]
["Portugal","PT"]
["Romania","RO"]
["Slovenia","SI"]
["Slovakia","SK"]
["Finland","FI"]
["Sweden","SE"]
["United Kingdom","UK"]
["Iceland","IS"]
["Liechtenstein","LI"]
["Norway","NO"]
["Switzerland","CH"]
["Montenegro","ME"]
["North Macedonia","MK"]
["Albania","AL"]
["Serbia","RS"]
["Turkey","TR"]
["Bosnia and Herzegovina","BA"]
["Kosovo (UNSCR 1244)","XK"]
[]
["EGSS-2024-DC","CDD"]

{"sheet":"Lists (Specific)","index":13,"n_rows":20,"n_cols":1,"rows_kept":20,"cut":false,"hidden":true,"merged":[]}
["Reference years"]
[2008]
[2009]
[2010]
[2011]
[2012]
[2013]
[2014]
[2015]
[2016]
[2017]
[2018]
[2019]
[2020]
[2021]
[2022]
[2023]
[2024]
[2025]
[2026]

{"sheet":"Changelog","index":14,"n_rows":13,"n_cols":8,"rows_kept":13,"cut":false,"hidden":true,"merged":[]}
["Change","Changed by","Change","SheetName","Cell","Version","Date","REMARKS"]
["First draft of the Questionnaire based on PEDS Q","ICEDD/BN",null,"All \"reporting\" sheets",null,1,"2023-06-06","Option Explicit in all modules"]
["Output ready and layout","ICEDD/MO",null,"All \"reporting\" sheets",null,2,"2023-07-05"]
["All Checks implemented","ICEDD/BN","Parameters updates and crosschecking","All \"Parameters\" sheets",null,3,"2023-09-11"]
["Bugs","ICEDD/BN","Sub FillWithValue/Summations","Summation, Exports",null,4,"2023-09-12"]
["Unhide formulas","ICEDD/BN","unhide protected formulas","All \"reporting\" sheets",null,5,"2023-09-12"]
["Check In Footnotes List + Column DR locked","ICEDD/BN","add a non standard rule","All \"reporting\" sheets + module A2",null,6,"2023-09-13","Bug in NotStandardValidationRuleDispatcher (column 2 -> Column 1)"]
["Unit in sheet EMPLOYMENT corrected to FTE","ESTAT",null,"EMPLOYMENT",null,"6b","2023-10-04"]
["missing drop down lists for footnotes","ESTAT","added footnote drop down lists in line 9-11, 314, 315","All \"reporting\" sheets",null,"6b","2024-04-24"]
["Formulars for sums of NACE integrated in several sheets","ESTAT","added formulars where only values were inserted in the sum cells for NACE","All \"reporting\" sheets",null,"6c","2024-05-08"]
["drop down for \"reporting year\" reset","ESTAT","list was missing as #REF error occurred","GETTING STARTED",null,"6c","2024-05-08"]
["formula corrected","ESTAT","NACE M starting in cell G218 not G12","Summations","D29, 30","1_2","2024-08-20"]
["formula added","ESTAT","Formula for testing MKT = sub-elements when all MKT values are reported","Summations","line 22","1_2","2024-08-20"]

{"sheet":"ErrorLog","index":15,"n_rows":1,"n_cols":7,"rows_kept":1,"cut":false,"hidden":false,"merged":[]}
["Link to Error","Validation Rule","Cell","Sheet","Description","Severity","Former Color"]

{"sheet":"MacroBehaviour","index":16,"n_rows":3,"n_cols":7,"rows_kept":3,"cut":false,"hidden":true,"merged":[[0,0,0,2],[0,4,0,6]]}
["COMMON TO ALL (OR MOST)  QUESTIONNAIRE",null,null,null,"SPECIFIC TO THIS QUESTIONNAIRE"]
["Parameter","Value","(Valid values)",null,"Parameter","Value","(Valid values)"]
["DevelopementMode",true,"TRUE (during development)\nFALSE (For real reporting and testing)"]

{"sheet":"Mandatory","index":17,"n_rows":297,"n_cols":9,"rows_kept":297,"cut":false,"hidden":true,"merged":[]}
["Severity","SheetName","Top Left Cell","Bottom Right Cell","Row Step","Column Step","Empty Is Valid If Footnote Exists","Footnote Shift From Value","Comment"]
["Error","GETTING STARTED","E9","E10",1,999,"NO",999,"STANDARD FOR ALL QUESTIONNAIRES"]
["Error","GETTING STARTED","D14","D22",2,999,"NO",999]
["Error","OUTPUT","G8","G29",7,999,"YES",3,"TOTAL Output, A, B, C - TOTAL CEPA1"]
["Error","OUTPUT","Q8","AP29",7,5,"YES",3,"TOTAL Output, A, B, C - TOTAL CEPA2->CEPA7-9"]
["Error","OUTPUT","BO8","BY29",7,5,"YES",3,"TOTAL Output, A, B, C - TOTAL CEPA1-9, TOTAL Crema10, TOTAL Crema11"]
["Error","OUTPUT","CN8","CN29",7,999,"YES",3,"TOTAL Output, A, B, C - TOTAL Crema13"]
["Error","OUTPUT","DH8","DM29",7,5,"YES",3,"TOTAL Output, A, B, C - TOTAL Crema14, TOTAL Crema12+15+16 "]
["Error","OUTPUT","EL8","EQ29",7,5,"YES",3,"TOTAL Output, A, B, C - TOTAL Crema10-16, TOTAL CEPA+Crema "]
["Error","OUTPUT","G12","G33",7,999,"YES",3,"Market Output, A, B, C - TOTAL CEPA1"]
["Error","OUTPUT","Q12","AP33",7,5,"YES",3,"Market Output, A, B, C - TOTAL CEPA2->CEPA7-9"]
["Error","OUTPUT","BO12","BY33",7,5,"YES",3,"Market Output, A, B, C - TOTAL CEPA1-9, TOTAL Crema10, TOTAL Crema11"]
["Error","OUTPUT","CN12","CN33",7,999,"YES",3,"Market Output, A, B, C - TOTAL Crema13"]
["Error","OUTPUT","DH12","DM33",7,5,"YES",3,"Market Output, A, B, C - TOTAL Crema14, TOTAL Crema12+15+16 "]
["Error","OUTPUT","EL12","EQ33",7,5,"YES",3,"Market Output, A, B, C - TOTAL Crema10-16, TOTAL CEPA+Crema "]
["Error","OUTPUT","G127","G134",7,999,"YES",3,"TOTAL D, E - TOTAL CEPA1"]
["Error","OUTPUT","Q127","AP134",7,5,"YES",3,"TOTAL D, E - TOTAL CEPA2->CEPA7-9"]
["Error","OUTPUT","BO127","BY134",7,5,"YES",3,"TOTAL D, E - TOTAL CEPA1-9, TOTAL Crema10, TOTAL Crema11"]
["Error","OUTPUT","CN127","CN134",7,999,"YES",3,"TOTAL D, E - TOTAL Crema13"]
["Error","OUTPUT","DH127","DM134",7,5,"YES",3,"TOTAL D, E - TOTAL Crema14, TOTAL Crema12+15+16 "]
["Error","OUTPUT","EL127","EQ134",7,5,"YES",3,"TOTAL D, E - TOTAL Crema10-16, TOTAL CEPA+Crema "]
["Error","OUTPUT","G131","G138",7,999,"YES",3,"Market D, E - TOTAL CEPA1"]
["Error","OUTPUT","Q131","AP138",7,5,"YES",3,"Market D, E - TOTAL CEPA2->CEPA7-9"]
["Error","OUTPUT","BO131","BY138",7,5,"YES",3,"Market D, E - TOTAL CEPA1-9, TOTAL Crema10, TOTAL Crema11"]
["Error","OUTPUT","CN131","CN138",7,999,"YES",3,"Market D, E - TOTAL Crema13"]
["Error","OUTPUT","DH131","DM138",7,5,"YES",3,"Market D, E - TOTAL Crema14, TOTAL Crema12+15+16 "]
["Error","OUTPUT","EL131","EQ138",7,5,"YES",3,"Market D, E - TOTAL Crema10-16, TOTAL CEPA+Crema "]
["Error","OUTPUT","G169","G169",7,999,"YES",3,"TOTAL F - TOTAL CEPA1"]
["Error","OUTPUT","Q169","AP169",7,5,"YES",3,"TOTAL F - TOTAL CEPA2->CEPA7-9"]
["Error","OUTPUT","BO169","BY169",7,5,"YES",3,"TOTAL F - TOTAL CEPA1-9, TOTAL Crema10, TOTAL Crema11"]
["Error","OUTPUT","CN169","CN169",7,999,"YES",3,"TOTAL F - TOTAL Crema13"]
["Error","OUTPUT","DH169","DM169",7,5,"YES",3,"TOTAL F - TOTAL Crema14, TOTAL Crema12+15+16 "]
["Error","OUTPUT","EL169","EQ169",7,5,"YES",3,"TOTAL F - TOTAL Crema10-16, TOTAL CEPA+Crema "]
["Error","OUTPUT","G173","G173",7,999,"YES",3,"Market F - TOTAL CEPA1"]
["Error","OUTPUT","Q173","AP173",7,5,"YES",3,"Market F - TOTAL CEPA2->CEPA7-9"]
["Error","OUTPUT","BO173","BY173",7,5,"YES",3,"Market F - TOTAL CEPA1-9, TOTAL Crema10, TOTAL Crema11"]
["Error","OUTPUT","CN173","CN173",7,999,"YES",3,"Market F - TOTAL Crema13"]
["Error","OUTPUT","DH173","DM173",7,5,"YES",3,"Market F - TOTAL Crema14, TOTAL Crema12+15+16 "]
["Error","OUTPUT","EL173","EQ173",7,5,"YES",3,"Market F - TOTAL Crema10-16, TOTAL CEPA+Crema "]
["Error","OUTPUT","G197","G197",7,999,"YES",3,"TOTAL J - TOTAL CEPA1"]
["Error","OUTPUT","Q197","AP197",7,5,"YES",3,"TOTAL J - TOTAL CEPA2->CEPA7-9"]
["Error","OUTPUT","BO197","BY197",7,5,"YES",3,"TOTAL J - TOTAL CEPA1-9, TOTAL Crema10, TOTAL Crema11"]
["Error","OUTPUT","CN197","CN197",7,999,"YES",3,"TOTAL J - TOTAL Crema13"]
["Error","OUTPUT","DH197","DM197",7,5,"YES",3,"TOTAL J - TOTAL Crema14, TOTAL Crema12+15+16 "]
["Error","OUTPUT","EL197","EQ197",7,5,"YES",3,"TOTAL J - TOTAL Crema10-16, TOTAL CEPA+Crema "]
["Error","OUTPUT","G201","G201",7,999,"YES",3,"Market J - TOTAL CEPA1"]
["Error","OUTPUT","Q201","AP201",7,5,"YES",3,"Market J - TOTAL CEPA2->CEPA7-9"]
["Error","OUTPUT","BO201","BY201",7,5,"YES",3,"Market J - TOTAL CEPA1-9, TOTAL Crema10, TOTAL Crema11"]
["Error","OUTPUT","CN201","CN201",7,999,"YES",3,"Market J - TOTAL Crema13"]
["Error","OUTPUT","DH201","DM201",7,5,"YES",3,"Market J - TOTAL Crema14, TOTAL Crema12+15+16 "]
["Error","OUTPUT","EL201","EQ201",7,5,"YES",3,"Market J - TOTAL Crema10-16, TOTAL CEPA+Crema "]
["Error","OUTPUT","G218","G218",7,999,"YES",3,"TOTAL M - TOTAL CEPA1"]
["Error","OUTPUT","Q218","AP218",7,5,"YES",3,"TOTAL M - TOTAL CEPA2->CEPA7-9"]
["Error","OUTPUT","BO218","BY218",7,5,"YES",3,"TOTAL M - TOTAL CEPA1-9, TOTAL Crema10, TOTAL Crema11"]
["Error","OUTPUT","CN218","CN218",7,999,"YES",3,"TOTAL M - TOTAL Crema13"]
["Error","OUTPUT","DH218","DM218",7,5,"YES",3,"TOTAL M - TOTAL Crema14, TOTAL Crema12+15+16 "]
["Error","OUTPUT","EL218","EQ218",7,5,"YES",3,"TOTAL M - TOTAL Crema10-16, TOTAL CEPA+Crema "]
["Error","OUTPUT","G222","G222",7,999,"YES",3,"Market M - TOTAL CEPA1"]
["Error","OUTPUT","Q222","AP222",7,5,"YES",3,"Market M - TOTAL CEPA2->CEPA7-9"]
["Error","OUTPUT","BO222","BY222",7,5,"YES",3,"Market M - TOTAL CEPA1-9, TOTAL Crema10, TOTAL Crema11"]
["Error","OUTPUT","CN222","CN222",7,999,"YES",3,"Market M - TOTAL Crema13"]
["Error","OUTPUT","DH222","DM222",7,5,"YES",3,"Market M - TOTAL Crema14, TOTAL Crema12+15+16 "]
["Error","OUTPUT","EL222","EQ222",7,5,"YES",3,"Market M - TOTAL Crema10-16, TOTAL CEPA+Crema "]
["Error","OUTPUT","G260","G267",7,999,"YES",3,"TOTAL O, P - TOTAL CEPA1"]
["Error","OUTPUT","Q260","AP267",7,5,"YES",3,"TOTAL O, P - TOTAL CEPA2->CEPA7-9"]
["Error","OUTPUT","BO260","BY267",7,5,"YES",3,"TOTAL O, P - TOTAL CEPA1-9, TOTAL Crema10, TOTAL Crema11"]
["Error","OUTPUT","CN260","CN267",7,999,"YES",3,"TOTAL O, P - TOTAL Crema13"]
["Error","OUTPUT","DH260","DM267",7,5,"YES",3,"TOTAL O, P - TOTAL Crema14, TOTAL Crema12+15+16 "]
["Error","OUTPUT","EL260","EQ267",7,5,"YES",3,"TOTAL O, P - TOTAL Crema10-16, TOTAL CEPA+Crema "]
["Error","OUTPUT","G264","G271",7,999,"YES",3,"Market O, P - TOTAL CEPA1"]
["Error","OUTPUT","Q264","AP271",7,5,"YES",3,"Market O, P - TOTAL CEPA2->CEPA7-9"]
["Error","OUTPUT","BO264","BY271",7,5,"YES",3,"Market O, P - TOTAL CEPA1-9, TOTAL Crema10, TOTAL Crema11"]
["Error","OUTPUT","CN264","CN271",7,999,"YES",3,"Market O, P - TOTAL Crema13"]
["Error","OUTPUT","DH264","DM271",7,5,"YES",3,"Market O, P - TOTAL Crema14, TOTAL Crema12+15+16 "]
["Error","OUTPUT","EL264","EQ271",7,5,"YES",3,"Market O, P - TOTAL Crema10-16, TOTAL CEPA+Crema "]
["Error","OUTPUT","G309","G309",7,999,"YES",3,"TOTAL G+H+I+K+L+N+Q+R+S+T+U - TOTAL CEPA1"]
["Error","OUTPUT","Q309","AP309",7,5,"YES",3,"TOTAL G+H+I+K+L+N+Q+R+S+T+U - TOTAL CEPA2->CEPA7-9"]
["Error","OUTPUT","BO309","BY309",7,5,"YES",3,"TOTAL G+H+I+K+L+N+Q+R+S+T+U - TOTAL CEPA1-9, TOTAL Crema10, TOTAL Crema11"]
["Error","OUTPUT","CN309","CN309",7,999,"YES",3,"TOTAL G+H+I+K+L+N+Q+R+S+T+U - TOTAL Crema13"]
["Error","OUTPUT","DH309","DM309",7,5,"YES",3,"TOTAL G+H+I+K+L+N+Q+R+S+T+U - TOTAL Crema14, TOTAL Crema12+15+16 "]
["Error","OUTPUT","EL309","EQ309",7,5,"YES",3,"TOTAL G+H+I+K+L+N+Q+R+S+T+U - TOTAL Crema10-16, TOTAL CEPA+Crema "]
["Error","OUTPUT","G313","G313",7,999,"YES",3,"Market G+H+I+K+L+N+Q+R+S+T+U - TOTAL CEPA1"]
["Error","OUTPUT","Q313","AP313",7,5,"YES",3,"Market G+H+I+K+L+N+Q+R+S+T+U - TOTAL CEPA2->CEPA7-9"]
["Error","OUTPUT","BO313","BY313",7,5,"YES",3,"Market G+H+I+K+L+N+Q+R+S+T+U - TOTAL CEPA1-9, TOTAL Crema10, TOTAL Crema11"]
["Error","OUTPUT","CN313","CN313",7,999,"YES",3,"Market G+H+I+K+L+N+Q+R+S+T+U - TOTAL Crema13"]
["Error","OUTPUT","DH313","DM313",7,5,"YES",3,"Market G+H+I+K+L+N+Q+R+S+T+U - TOTAL Crema14, TOTAL Crema12+15+16 "]
["Error","OUTPUT","EL313","EQ313",7,5,"YES",3,"Market G+H+I+K+L+N+Q+R+S+T+U - TOTAL Crema10-16, TOTAL CEPA+Crema "]
["Error","GROSS VALUE ADDED","G8","G29",7,999,"YES",3,"TOTAL Gross Value Added, A, B, C - TOTAL CEPA1"]
["Error","GROSS VALUE ADDED","Q8","AP29",7,5,"YES",3,"TOTAL Gross Value Added, A, B, C - TOTAL CEPA2->CEPA7-9"]
["Error","GROSS VALUE ADDED","BO8","BY29",7,5,"YES",3,"TOTAL Gross Value Added, A, B, C - TOTAL CEPA1-9, TOTAL Crema10, TOTAL Crema11"]
["Error","GROSS VALUE ADDED","CN8","CN29",7,999,"YES",3,"TOTAL Gross Value Added, A, B, C - TOTAL Crema13"]
["Error","GROSS VALUE ADDED","DH8","DM29",7,5,"YES",3,"TOTAL Gross Value Added, A, B, C - TOTAL Crema14, TOTAL Crema12+15+16 "]
["Error","GROSS VALUE ADDED","EL8","EQ29",7,5,"YES",3,"TOTAL Gross Value Added, A, B, C - TOTAL Crema10-16, TOTAL CEPA+Crema "]
["Error","GROSS VALUE ADDED","G12","G33",7,999,"YES",3,"Market Gross Value Added, A, B, C - TOTAL CEPA1"]
["Error","GROSS VALUE ADDED","Q12","AP33",7,5,"YES",3,"Market Gross Value Added, A, B, C - TOTAL CEPA2->CEPA7-9"]
["Error","GROSS VALUE ADDED","BO12","BY33",7,5,"YES",3,"Market Gross Value Added, A, B, C - TOTAL CEPA1-9, TOTAL Crema10, TOTAL Crema11"]
["Error","GROSS VALUE ADDED","CN12","CN33",7,999,"YES",3,"Market Gross Value Added, A, B, C - TOTAL Crema13"]
["Error","GROSS VALUE ADDED","DH12","DM33",7,5,"YES",3,"Market Gross Value Added, A, B, C - TOTAL Crema14, TOTAL Crema12+15+16 "]
["Error","GROSS VALUE ADDED","EL12","EQ33",7,5,"YES",3,"Market Gross Value Added, A, B, C - TOTAL Crema10-16, TOTAL CEPA+Crema "]
["Error","GROSS VALUE ADDED","G127","G134",7,999,"YES",3,"TOTAL D, E - TOTAL CEPA1"]
["Error","GROSS VALUE ADDED","Q127","AP134",7,5,"YES",3,"TOTAL D, E - TOTAL CEPA2->CEPA7-9"]
["Error","GROSS VALUE ADDED","BO127","BY134",7,5,"YES",3,"TOTAL D, E - TOTAL CEPA1-9, TOTAL Crema10, TOTAL Crema11"]
["Error","GROSS VALUE ADDED","CN127","CN134",7,999,"YES",3,"TOTAL D, E - TOTAL Crema13"]
["Error","GROSS VALUE ADDED","DH127","DM134",7,5,"YES",3,"TOTAL D, E - TOTAL Crema14, TOTAL Crema12+15+16 "]
["Error","GROSS VALUE ADDED","EL127","EQ134",7,5,"YES",3,"TOTAL D, E - TOTAL Crema10-16, TOTAL CEPA+Crema "]
["Error","GROSS VALUE ADDED","G131","G138",7,999,"YES",3,"Market D, E - TOTAL CEPA1"]
["Error","GROSS VALUE ADDED","Q131","AP138",7,5,"YES",3,"Market D, E - TOTAL CEPA2->CEPA7-9"]
["Error","GROSS VALUE ADDED","BO131","BY138",7,5,"YES",3,"Market D, E - TOTAL CEPA1-9, TOTAL Crema10, TOTAL Crema11"]
["Error","GROSS VALUE ADDED","CN131","CN138",7,999,"YES",3,"Market D, E - TOTAL Crema13"]
["Error","GROSS VALUE ADDED","DH131","DM138",7,5,"YES",3,"Market D, E - TOTAL Crema14, TOTAL Crema12+15+16 "]
["Error","GROSS VALUE ADDED","EL131","EQ138",7,5,"YES",3,"Market D, E - TOTAL Crema10-16, TOTAL CEPA+Crema "]
["Error","GROSS VALUE ADDED","G169","G169",7,999,"YES",3,"TOTAL F - TOTAL CEPA1"]
["Error","GROSS VALUE ADDED","Q169","AP169",7,5,"YES",3,"TOTAL F - TOTAL CEPA2->CEPA7-9"]
["Error","GROSS VALUE ADDED","BO169","BY169",7,5,"YES",3,"TOTAL F - TOTAL CEPA1-9, TOTAL Crema10, TOTAL Crema11"]
["Error","GROSS VALUE ADDED","CN169","CN169",7,999,"YES",3,"TOTAL F - TOTAL Crema13"]
["Error","GROSS VALUE ADDED","DH169","DM169",7,5,"YES",3,"TOTAL F - TOTAL Crema14, TOTAL Crema12+15+16 "]
["Error","GROSS VALUE ADDED","EL169","EQ169",7,5,"YES",3,"TOTAL F - TOTAL Crema10-16, TOTAL CEPA+Crema "]
["Error","GROSS VALUE ADDED","G173","G173",7,999,"YES",3,"Market F - TOTAL CEPA1"]
["Error","GROSS VALUE ADDED","Q173","AP173",7,5,"YES",3,"Market F - TOTAL CEPA2->CEPA7-9"]
["Error","GROSS VALUE ADDED","BO173","BY173",7,5,"YES",3,"Market F - TOTAL CEPA1-9, TOTAL Crema10, TOTAL Crema11"]
["Error","GROSS VALUE ADDED","CN173","CN173",7,999,"YES",3,"Market F - TOTAL Crema13"]
["Error","GROSS VALUE ADDED","DH173","DM173",7,5,"YES",3,"Market F - TOTAL Crema14, TOTAL Crema12+15+16 "]
["Error","GROSS VALUE ADDED","EL173","EQ173",7,5,"YES",3,"Market F - TOTAL Crema10-16, TOTAL CEPA+Crema "]
["Error","GROSS VALUE ADDED","G197","G197",7,999,"YES",3,"TOTAL J - TOTAL CEPA1"]
["Error","GROSS VALUE ADDED","Q197","AP197",7,5,"YES",3,"TOTAL J - TOTAL CEPA2->CEPA7-9"]
["Error","GROSS VALUE ADDED","BO197","BY197",7,5,"YES",3,"TOTAL J - TOTAL CEPA1-9, TOTAL Crema10, TOTAL Crema11"]
["Error","GROSS VALUE ADDED","CN197","CN197",7,999,"YES",3,"TOTAL J - TOTAL Crema13"]
["Error","GROSS VALUE ADDED","DH197","DM197",7,5,"YES",3,"TOTAL J - TOTAL Crema14, TOTAL Crema12+15+16 "]
["Error","GROSS VALUE ADDED","EL197","EQ197",7,5,"YES",3,"TOTAL J - TOTAL Crema10-16, TOTAL CEPA+Crema "]
["Error","GROSS VALUE ADDED","G201","G201",7,999,"YES",3,"Market J - TOTAL CEPA1"]
["Error","GROSS VALUE ADDED","Q201","AP201",7,5,"YES",3,"Market J - TOTAL CEPA2->CEPA7-9"]
["Error","GROSS VALUE ADDED","BO201","BY201",7,5,"YES",3,"Market J - TOTAL CEPA1-9, TOTAL Crema10, TOTAL Crema11"]
["Error","GROSS VALUE ADDED","CN201","CN201",7,999,"YES",3,"Market J - TOTAL Crema13"]
["Error","GROSS VALUE ADDED","DH201","DM201",7,5,"YES",3,"Market J - TOTAL Crema14, TOTAL Crema12+15+16 "]
["Error","GROSS VALUE ADDED","EL201","EQ201",7,5,"YES",3,"Market J - TOTAL Crema10-16, TOTAL CEPA+Crema "]
["Error","GROSS VALUE ADDED","G218","G218",7,999,"YES",3,"TOTAL M - TOTAL CEPA1"]
["Error","GROSS VALUE ADDED","Q218","AP218",7,5,"YES",3,"TOTAL M - TOTAL CEPA2->CEPA7-9"]
["Error","GROSS VALUE ADDED","BO218","BY218",7,5,"YES",3,"TOTAL M - TOTAL CEPA1-9, TOTAL Crema10, TOTAL Crema11"]
["Error","GROSS VALUE ADDED","CN218","CN218",7,999,"YES",3,"TOTAL M - TOTAL Crema13"]
["Error","GROSS VALUE ADDED","DH218","DM218",7,5,"YES",3,"TOTAL M - TOTAL Crema14, TOTAL Crema12+15+16 "]
["Error","GROSS VALUE ADDED","EL218","EQ218",7,5,"YES",3,"TOTAL M - TOTAL Crema10-16, TOTAL CEPA+Crema "]
["Error","GROSS VALUE ADDED","G222","G222",7,999,"YES",3,"Market M - TOTAL CEPA1"]
["Error","GROSS VALUE ADDED","Q222","AP222",7,5,"YES",3,"Market M - TOTAL CEPA2->CEPA7-9"]
["Error","GROSS VALUE ADDED","BO222","BY222",7,5,"YES",3,"Market M - TOTAL CEPA1-9, TOTAL Crema10, TOTAL Crema11"]
["Error","GROSS VALUE ADDED","CN222","CN222",7,999,"YES",3,"Market M - TOTAL Crema13"]
["Error","GROSS VALUE ADDED","DH222","DM222",7,5,"YES",3,"Market M - TOTAL Crema14, TOTAL Crema12+15+16 "]
["Error","GROSS VALUE ADDED","EL222","EQ222",7,5,"YES",3,"Market M - TOTAL Crema10-16, TOTAL CEPA+Crema "]
["Error","GROSS VALUE ADDED","G260","G267",7,999,"YES",3,"TOTAL O, P - TOTAL CEPA1"]
["Error","GROSS VALUE ADDED","Q260","AP267",7,5,"YES",3,"TOTAL O, P - TOTAL CEPA2->CEPA7-9"]
["Error","GROSS VALUE ADDED","BO260","BY267",7,5,"YES",3,"TOTAL O, P - TOTAL CEPA1-9, TOTAL Crema10, TOTAL Crema11"]
["Error","GROSS VALUE ADDED","CN260","CN267",7,999,"YES",3,"TOTAL O, P - TOTAL Crema13"]
["Error","GROSS VALUE ADDED","DH260","DM267",7,5,"YES",3,"TOTAL O, P - TOTAL Crema14, TOTAL Crema12+15+16 "]
["Error","GROSS VALUE ADDED","EL260","EQ267",7,5,"YES",3,"TOTAL O, P - TOTAL Crema10-16, TOTAL CEPA+Crema "]
["Error","GROSS VALUE ADDED","G264","G271",7,999,"YES",3,"Market O, P - TOTAL CEPA1"]
["Error","GROSS VALUE ADDED","Q264","AP271",7,5,"YES",3,"Market O, P - TOTAL CEPA2->CEPA7-9"]
["Error","GROSS VALUE ADDED","BO264","BY271",7,5,"YES",3,"Market O, P - TOTAL CEPA1-9, TOTAL Crema10, TOTAL Crema11"]
["Error","GROSS VALUE ADDED","CN264","CN271",7,999,"YES",3,"Market O, P - TOTAL Crema13"]
["Error","GROSS VALUE ADDED","DH264","DM271",7,5,"YES",3,"Market O, P - TOTAL Crema14, TOTAL Crema12+15+16 "]
["Error","GROSS VALUE ADDED","EL264","EQ271",7,5,"YES",3,"Market O, P - TOTAL Crema10-16, TOTAL CEPA+Crema "]
["Error","GROSS VALUE ADDED","G309","G309",7,999,"YES",3,"TOTAL G+H+I+K+L+N+Q+R+S+T+U - TOTAL CEPA1"]
["Error","GROSS VALUE ADDED","Q309","AP309",7,5,"YES",3,"TOTAL G+H+I+K+L+N+Q+R+S+T+U - TOTAL CEPA2->CEPA7-9"]
["Error","GROSS VALUE ADDED","BO309","BY309",7,5,"YES",3,"TOTAL G+H+I+K+L+N+Q+R+S+T+U - TOTAL CEPA1-9, TOTAL Crema10, TOTAL Crema11"]
["Error","GROSS VALUE ADDED","CN309","CN309",7,999,"YES",3,"TOTAL G+H+I+K+L+N+Q+R+S+T+U - TOTAL Crema13"]
["Error","GROSS VALUE ADDED","DH309","DM309",7,5,"YES",3,"TOTAL G+H+I+K+L+N+Q+R+S+T+U - TOTAL Crema14, TOTAL Crema12+15+16 "]
["Error","GROSS VALUE ADDED","EL309","EQ309",7,5,"YES",3,"TOTAL G+H+I+K+L+N+Q+R+S+T+U - TOTAL Crema10-16, TOTAL CEPA+Crema "]
["Error","GROSS VALUE ADDED","G313","G313",7,999,"YES",3,"Market G+H+I+K+L+N+Q+R+S+T+U - TOTAL CEPA1"]
["Error","GROSS VALUE ADDED","Q313","AP313",7,5,"YES",3,"Market G+H+I+K+L+N+Q+R+S+T+U - TOTAL CEPA2->CEPA7-9"]
["Error","GROSS VALUE ADDED","BO313","BY313",7,5,"YES",3,"Market G+H+I+K+L+N+Q+R+S+T+U - TOTAL CEPA1-9, TOTAL Crema10, TOTAL Crema11"]
["Error","GROSS VALUE ADDED","CN313","CN313",7,999,"YES",3,"Market G+H+I+K+L+N+Q+R+S+T+U - TOTAL Crema13"]
["Error","GROSS VALUE ADDED","DH313","DM313",7,5,"YES",3,"Market G+H+I+K+L+N+Q+R+S+T+U - TOTAL Crema14, TOTAL Crema12+15+16 "]
["Error","GROSS VALUE ADDED","EL313","EQ313",7,5,"YES",3,"Market G+H+I+K+L+N+Q+R+S+T+U - TOTAL Crema10-16, TOTAL CEPA+Crema "]
["Error","EMPLOYMENT","G8","G29",7,999,"YES",3,"TOTAL Employment, A, B, C - TOTAL CEPA1"]
["Error","EMPLOYMENT","Q8","AP29",7,5,"YES",3,"TOTAL Employment, A, B, C - TOTAL CEPA2->CEPA7-9"]
["Error","EMPLOYMENT","BO8","BY29",7,5,"YES",3,"TOTAL Employment, A, B, C - TOTAL CEPA1-9, TOTAL Crema10, TOTAL Crema11"]
["Error","EMPLOYMENT","CN8","CN29",7,999,"YES",3,"TOTAL Employment, A, B, C - TOTAL Crema13"]
["Error","EMPLOYMENT","DH8","DM29",7,5,"YES",3,"TOTAL Employment, A, B, C - TOTAL Crema14, TOTAL Crema12+15+16 "]
["Error","EMPLOYMENT","EL8","EQ29",7,5,"YES",3,"TOTAL Employment, A, B, C - TOTAL Crema10-16, TOTAL CEPA+Crema "]
["Error","EMPLOYMENT","G12","G33",7,999,"YES",3,"Market Employment, A, B, C - TOTAL CEPA1"]
["Error","EMPLOYMENT","Q12","AP33",7,5,"YES",3,"Market Employment, A, B, C - TOTAL CEPA2->CEPA7-9"]
["Error","EMPLOYMENT","BO12","BY33",7,5,"YES",3,"Market Employment, A, B, C - TOTAL CEPA1-9, TOTAL Crema10, TOTAL Crema11"]
["Error","EMPLOYMENT","CN12","CN33",7,999,"YES",3,"Market Employment, A, B, C - TOTAL Crema13"]
["Error","EMPLOYMENT","DH12","DM33",7,5,"YES",3,"Market Employment, A, B, C - TOTAL Crema14, TOTAL Crema12+15+16 "]
["Error","EMPLOYMENT","EL12","EQ33",7,5,"YES",3,"Market Employment, A, B, C - TOTAL Crema10-16, TOTAL CEPA+Crema "]
["Error","EMPLOYMENT","G127","G134",7,999,"YES",3,"TOTAL D, E - TOTAL CEPA1"]
["Error","EMPLOYMENT","Q127","AP134",7,5,"YES",3,"TOTAL D, E - TOTAL CEPA2->CEPA7-9"]
["Error","EMPLOYMENT","BO127","BY134",7,5,"YES",3,"TOTAL D, E - TOTAL CEPA1-9, TOTAL Crema10, TOTAL Crema11"]
["Error","EMPLOYMENT","CN127","CN134",7,999,"YES",3,"TOTAL D, E - TOTAL Crema13"]
["Error","EMPLOYMENT","DH127","DM134",7,5,"YES",3,"TOTAL D, E - TOTAL Crema14, TOTAL Crema12+15+16 "]
["Error","EMPLOYMENT","EL127","EQ134",7,5,"YES",3,"TOTAL D, E - TOTAL Crema10-16, TOTAL CEPA+Crema "]
["Error","EMPLOYMENT","G131","G138",7,999,"YES",3,"Market D, E - TOTAL CEPA1"]
["Error","EMPLOYMENT","Q131","AP138",7,5,"YES",3,"Market D, E - TOTAL CEPA2->CEPA7-9"]
["Error","EMPLOYMENT","BO131","BY138",7,5,"YES",3,"Market D, E - TOTAL CEPA1-9, TOTAL Crema10, TOTAL Crema11"]
["Error","EMPLOYMENT","CN131","CN138",7,999,"YES",3,"Market D, E - TOTAL Crema13"]
["Error","EMPLOYMENT","DH131","DM138",7,5,"YES",3,"Market D, E - TOTAL Crema14, TOTAL Crema12+15+16 "]
["Error","EMPLOYMENT","EL131","EQ138",7,5,"YES",3,"Market D, E - TOTAL Crema10-16, TOTAL CEPA+Crema "]
["Error","EMPLOYMENT","G169","G169",7,999,"YES",3,"TOTAL F - TOTAL CEPA1"]
["Error","EMPLOYMENT","Q169","AP169",7,5,"YES",3,"TOTAL F - TOTAL CEPA2->CEPA7-9"]
["Error","EMPLOYMENT","BO169","BY169",7,5,"YES",3,"TOTAL F - TOTAL CEPA1-9, TOTAL Crema10, TOTAL Crema11"]
["Error","EMPLOYMENT","CN169","CN169",7,999,"YES",3,"TOTAL F - TOTAL Crema13"]
["Error","EMPLOYMENT","DH169","DM169",7,5,"YES",3,"TOTAL F - TOTAL Crema14, TOTAL Crema12+15+16 "]
["Error","EMPLOYMENT","EL169","EQ169",7,5,"YES",3,"TOTAL F - TOTAL Crema10-16, TOTAL CEPA+Crema "]
["Error","EMPLOYMENT","G173","G173",7,999,"YES",3,"Market F - TOTAL CEPA1"]
["Error","EMPLOYMENT","Q173","AP173",7,5,"YES",3,"Market F - TOTAL CEPA2->CEPA7-9"]
["Error","EMPLOYMENT","BO173","BY173",7,5,"YES",3,"Market F - TOTAL CEPA1-9, TOTAL Crema10, TOTAL Crema11"]
["Error","EMPLOYMENT","CN173","CN173",7,999,"YES",3,"Market F - TOTAL Crema13"]
["Error","EMPLOYMENT","DH173","DM173",7,5,"YES",3,"Market F - TOTAL Crema14, TOTAL Crema12+15+16 "]
["Error","EMPLOYMENT","EL173","EQ173",7,5,"YES",3,"Market F - TOTAL Crema10-16, TOTAL CEPA+Crema "]
["Error","EMPLOYMENT","G197","G197",7,999,"YES",3,"TOTAL J - TOTAL CEPA1"]
["Error","EMPLOYMENT","Q197","AP197",7,5,"YES",3,"TOTAL J - TOTAL CEPA2->CEPA7-9"]
["Error","EMPLOYMENT","BO197","BY197",7,5,"YES",3,"TOTAL J - TOTAL CEPA1-9, TOTAL Crema10, TOTAL Crema11"]
["Error","EMPLOYMENT","CN197","CN197",7,999,"YES",3,"TOTAL J - TOTAL Crema13"]
["Error","EMPLOYMENT","DH197","DM197",7,5,"YES",3,"TOTAL J - TOTAL Crema14, TOTAL Crema12+15+16 "]
["Error","EMPLOYMENT","EL197","EQ197",7,5,"YES",3,"TOTAL J - TOTAL Crema10-16, TOTAL CEPA+Crema "]
["Error","EMPLOYMENT","G201","G201",7,999,"YES",3,"Market J - TOTAL CEPA1"]
["Error","EMPLOYMENT","Q201","AP201",7,5,"YES",3,"Market J - TOTAL CEPA2->CEPA7-9"]
["Error","EMPLOYMENT","BO201","BY201",7,5,"YES",3,"Market J - TOTAL CEPA1-9, TOTAL Crema10, TOTAL Crema11"]
["Error","EMPLOYMENT","CN201","CN201",7,999,"YES",3,"Market J - TOTAL Crema13"]
["Error","EMPLOYMENT","DH201","DM201",7,5,"YES",3,"Market J - TOTAL Crema14, TOTAL Crema12+15+16 "]
["Error","EMPLOYMENT","EL201","EQ201",7,5,"YES",3,"Market J - TOTAL Crema10-16, TOTAL CEPA+Crema "]
["Error","EMPLOYMENT","G218","G218",7,999,"YES",3,"TOTAL M - TOTAL CEPA1"]
["Error","EMPLOYMENT","Q218","AP218",7,5,"YES",3,"TOTAL M - TOTAL CEPA2->CEPA7-9"]
["Error","EMPLOYMENT","BO218","BY218",7,5,"YES",3,"TOTAL M - TOTAL CEPA1-9, TOTAL Crema10, TOTAL Crema11"]
["Error","EMPLOYMENT","CN218","CN218",7,999,"YES",3,"TOTAL M - TOTAL Crema13"]
["Error","EMPLOYMENT","DH218","DM218",7,5,"YES",3,"TOTAL M - TOTAL Crema14, TOTAL Crema12+15+16 "]
["Error","EMPLOYMENT","EL218","EQ218",7,5,"YES",3,"TOTAL M - TOTAL Crema10-16, TOTAL CEPA+Crema "]
["Error","EMPLOYMENT","G222","G222",7,999,"YES",3,"Market M - TOTAL CEPA1"]
["Error","EMPLOYMENT","Q222","AP222",7,5,"YES",3,"Market M - TOTAL CEPA2->CEPA7-9"]
["Error","EMPLOYMENT","BO222","BY222",7,5,"YES",3,"Market M - TOTAL CEPA1-9, TOTAL Crema10, TOTAL Crema11"]
["Error","EMPLOYMENT","CN222","CN222",7,999,"YES",3,"Market M - TOTAL Crema13"]
["Error","EMPLOYMENT","DH222","DM222",7,5,"YES",3,"Market M - TOTAL Crema14, TOTAL Crema12+15+16 "]
["Error","EMPLOYMENT","EL222","EQ222",7,5,"YES",3,"Market M - TOTAL Crema10-16, TOTAL CEPA+Crema "]
["Error","EMPLOYMENT","G260","G267",7,999,"YES",3,"TOTAL O, P - TOTAL CEPA1"]
["Error","EMPLOYMENT","Q260","AP267",7,5,"YES",3,"TOTAL O, P - TOTAL CEPA2->CEPA7-9"]
["Error","EMPLOYMENT","BO260","BY267",7,5,"YES",3,"TOTAL O, P - TOTAL CEPA1-9, TOTAL Crema10, TOTAL Crema11"]
["Error","EMPLOYMENT","CN260","CN267",7,999,"YES",3,"TOTAL O, P - TOTAL Crema13"]
["Error","EMPLOYMENT","DH260","DM267",7,5,"YES",3,"TOTAL O, P - TOTAL Crema14, TOTAL Crema12+15+16 "]
["Error","EMPLOYMENT","EL260","EQ267",7,5,"YES",3,"TOTAL O, P - TOTAL Crema10-16, TOTAL CEPA+Crema "]
["Error","EMPLOYMENT","G264","G271",7,999,"YES",3,"Market O, P - TOTAL CEPA1"]
["Error","EMPLOYMENT","Q264","AP271",7,5,"YES",3,"Market O, P - TOTAL CEPA2->CEPA7-9"]
["Error","EMPLOYMENT","BO264","BY271",7,5,"YES",3,"Market O, P - TOTAL CEPA1-9, TOTAL Crema10, TOTAL Crema11"]
["Error","EMPLOYMENT","CN264","CN271",7,999,"YES",3,"Market O, P - TOTAL Crema13"]
["Error","EMPLOYMENT","DH264","DM271",7,5,"YES",3,"Market O, P - TOTAL Crema14, TOTAL Crema12+15+16 "]
["Error","EMPLOYMENT","EL264","EQ271",7,5,"YES",3,"Market O, P - TOTAL Crema10-16, TOTAL CEPA+Crema "]
["Error","EMPLOYMENT","G309","G309",7,999,"YES",3,"TOTAL G+H+I+K+L+N+Q+R+S+T+U - TOTAL CEPA1"]
["Error","EMPLOYMENT","Q309","AP309",7,5,"YES",3,"TOTAL G+H+I+K+L+N+Q+R+S+T+U - TOTAL CEPA2->CEPA7-9"]
["Error","EMPLOYMENT","BO309","BY309",7,5,"YES",3,"TOTAL G+H+I+K+L+N+Q+R+S+T+U - TOTAL CEPA1-9, TOTAL Crema10, TOTAL Crema11"]
["Error","EMPLOYMENT","CN309","CN309",7,999,"YES",3,"TOTAL G+H+I+K+L+N+Q+R+S+T+U - TOTAL Crema13"]
["Error","EMPLOYMENT","DH309","DM309",7,5,"YES",3,"TOTAL G+H+I+K+L+N+Q+R+S+T+U - TOTAL Crema14, TOTAL Crema12+15+16 "]
["Error","EMPLOYMENT","EL309","EQ309",7,5,"YES",3,"TOTAL G+H+I+K+L+N+Q+R+S+T+U - TOTAL Crema10-16, TOTAL CEPA+Crema "]
["Error","EMPLOYMENT","G313","G313",7,999,"YES",3,"Market G+H+I+K+L+N+Q+R+S+T+U - TOTAL CEPA1"]
["Error","EMPLOYMENT","Q313","AP313",7,5,"YES",3,"Market G+H+I+K+L+N+Q+R+S+T+U - TOTAL CEPA2->CEPA7-9"]
["Error","EMPLOYMENT","BO313","BY313",7,5,"YES",3,"Market G+H+I+K+L+N+Q+R+S+T+U - TOTAL CEPA1-9, TOTAL Crema10, TOTAL Crema11"]
["Error","EMPLOYMENT","CN313","CN313",7,999,"YES",3,"Market G+H+I+K+L+N+Q+R+S+T+U - TOTAL Crema13"]
["Error","EMPLOYMENT","DH313","DM313",7,5,"YES",3,"Market G+H+I+K+L+N+Q+R+S+T+U - TOTAL Crema14, TOTAL Crema12+15+16 "]
["Error","EMPLOYMENT","EL313","EQ313",7,5,"YES",3,"Market G+H+I+K+L+N+Q+R+S+T+U - TOTAL Crema10-16, TOTAL CEPA+Crema "]
["Error","EXPORTS","G8","G17",3,999,"YES",3,"TOTAL Exports, A, B, C - TOTAL CEPA1"]
["Error","EXPORTS","Q8","AP17",3,5,"YES",3,"TOTAL Exports, A, B, C - TOTAL CEPA2->CEPA7-9"]
["Error","EXPORTS","BO8","BY17",3,5,"YES",3,"TOTAL Exports, A, B, C - TOTAL CEPA1-9, TOTAL Crema10, TOTAL Crema11"]
["Error","EXPORTS","CN8","CN17",3,999,"YES",3,"TOTAL Exports, A, B, C - TOTAL Crema13"]
["Error","EXPORTS","DH8","DM17",3,5,"YES",3,"TOTAL Exports, A, B, C - TOTAL Crema14, TOTAL Crema12+15+16 "]
["Error","EXPORTS","EL8","EQ17",3,5,"YES",3,"TOTAL Exports, A, B, C - TOTAL Crema10-16, TOTAL CEPA+Crema "]
["Error","EXPORTS","G59","G62",3,999,"YES",3,"TOTAL D, E - TOTAL CEPA1"]
["Error","EXPORTS","Q59","AP62",3,5,"YES",3,"TOTAL D, E - TOTAL CEPA2->CEPA7-9"]
["Error","EXPORTS","BO59","BY62",3,5,"YES",3,"TOTAL D, E - TOTAL CEPA1-9, TOTAL Crema10, TOTAL Crema11"]
["Error","EXPORTS","CN59","CN62",3,999,"YES",3,"TOTAL D, E - TOTAL Crema13"]
["Error","EXPORTS","DH59","DM62",3,5,"YES",3,"TOTAL D, E - TOTAL Crema14, TOTAL Crema12+15+16 "]
["Error","EXPORTS","EL59","EQ62",3,5,"YES",3,"TOTAL D, E - TOTAL Crema10-16, TOTAL CEPA+Crema "]
["Error","EXPORTS","G77","G77",3,999,"YES",3,"TOTAL F - TOTAL CEPA1"]
["Error","EXPORTS","Q77","AP77",3,5,"YES",3,"TOTAL F - TOTAL CEPA2->CEPA7-9"]
["Error","EXPORTS","BO77","BY77",3,5,"YES",3,"TOTAL F - TOTAL CEPA1-9, TOTAL Crema10, TOTAL Crema11"]
["Error","EXPORTS","CN77","CN77",3,999,"YES",3,"TOTAL F - TOTAL Crema13"]
["Error","EXPORTS","DH77","DM77",3,5,"YES",3,"TOTAL F - TOTAL Crema14, TOTAL Crema12+15+16 "]
["Error","EXPORTS","EL77","EQ77",3,5,"YES",3,"TOTAL F - TOTAL Crema10-16, TOTAL CEPA+Crema "]
["Error","EXPORTS","G89","G89",3,999,"YES",3,"TOTAL J - TOTAL CEPA1"]
["Error","EXPORTS","Q89","AP89",3,5,"YES",3,"TOTAL J - TOTAL CEPA2->CEPA7-9"]
["Error","EXPORTS","BO89","BY89",3,5,"YES",3,"TOTAL J - TOTAL CEPA1-9, TOTAL Crema10, TOTAL Crema11"]
["Error","EXPORTS","CN89","CN89",3,999,"YES",3,"TOTAL J - TOTAL Crema13"]
["Error","EXPORTS","DH89","DM89",3,5,"YES",3,"TOTAL J - TOTAL Crema14, TOTAL Crema12+15+16 "]
["Error","EXPORTS","EL89","EQ89",3,5,"YES",3,"TOTAL J - TOTAL Crema10-16, TOTAL CEPA+Crema "]
["Error","EXPORTS","G98","G98",3,999,"YES",3,"TOTAL M - TOTAL CEPA1"]
["Error","EXPORTS","Q98","AP98",3,5,"YES",3,"TOTAL M - TOTAL CEPA2->CEPA7-9"]
["Error","EXPORTS","BO98","BY98",3,5,"YES",3,"TOTAL M - TOTAL CEPA1-9, TOTAL Crema10, TOTAL Crema11"]
["Error","EXPORTS","CN98","CN98",3,999,"YES",3,"TOTAL M - TOTAL Crema13"]
["Error","EXPORTS","DH98","DM98",3,5,"YES",3,"TOTAL M - TOTAL Crema14, TOTAL Crema12+15+16 "]
["Error","EXPORTS","EL98","EQ98",3,5,"YES",3,"TOTAL M - TOTAL Crema10-16, TOTAL CEPA+Crema "]
["Error","EXPORTS","G116","G119",3,999,"YES",3,"TOTAL O, P - TOTAL CEPA1"]
["Error","EXPORTS","Q116","AP119",3,5,"YES",3,"TOTAL O, P - TOTAL CEPA2->CEPA7-9"]
["Error","EXPORTS","BO116","BY119",3,5,"YES",3,"TOTAL O, P - TOTAL CEPA1-9, TOTAL Crema10, TOTAL Crema11"]
["Error","EXPORTS","CN116","CN119",3,999,"YES",3,"TOTAL O, P - TOTAL Crema13"]
["Error","EXPORTS","DH116","DM119",3,5,"YES",3,"TOTAL O, P - TOTAL Crema14, TOTAL Crema12+15+16 "]
["Error","EXPORTS","EL116","EQ119",3,5,"YES",3,"TOTAL O, P - TOTAL Crema10-16, TOTAL CEPA+Crema "]
["Error","EXPORTS","G137","G137",3,999,"YES",3,"TOTAL G+H+I+K+L+N+Q+R+S+T+U - TOTAL CEPA1"]
["Error","EXPORTS","Q137","AP137",3,5,"YES",3,"TOTAL G+H+I+K+L+N+Q+R+S+T+U - TOTAL CEPA2->CEPA7-9"]
["Error","EXPORTS","BO137","BY137",3,5,"YES",3,"TOTAL G+H+I+K+L+N+Q+R+S+T+U - TOTAL CEPA1-9, TOTAL Crema10, TOTAL Crema11"]
["Error","EXPORTS","CN137","CN137",3,999,"YES",3,"TOTAL G+H+I+K+L+N+Q+R+S+T+U - TOTAL Crema13"]
["Error","EXPORTS","DH137","DM137",3,5,"YES",3,"TOTAL G+H+I+K+L+N+Q+R+S+T+U - TOTAL Crema14, TOTAL Crema12+15+16 "]
["Error","EXPORTS","EL137","EQ137",3,5,"YES",3,"TOTAL G+H+I+K+L+N+Q+R+S+T+U - TOTAL Crema10-16, TOTAL CEPA+Crema "]

{"sheet":"IsNumeric","index":18,"n_rows":5,"n_cols":9,"rows_kept":5,"cut":false,"hidden":true,"merged":[]}
["Severity","SheetName","TopLeftCell","BottomRightCell","RowStep","ColumnStep"]
["Error","OUTPUT","G8","EZ315",1,5,null,null,"it is meant to check that there are numerical values"]
["Error","GROSS VALUE ADDED","G8","EZ315",1,5]
["Error","EMPLOYMENT","G8","EZ315",1,5]
["Error","EXPORTS","G8","EZ139",1,5]

{"sheet":"MustNotBeNegative","index":19,"n_rows":5,"n_cols":6,"rows_kept":5,"cut":false,"hidden":true,"merged":[]}
["Severity","SheetName","TopLeftCell","BottomRightCell","RowStep","ColumnStep"]
["Error","OUTPUT","G8","EZ315",1,5]
["Warning","GROSS VALUE ADDED","G8","EZ315",1,5]
["Error","EMPLOYMENT","G8","EZ315",1,5]
["Error","EXPORTS","G8","EZ139",1,5]

{"sheet":"Summations","index":20,"n_rows":229,"n_cols":14,"rows_kept":229,"cut":false,"hidden":true,"merged":[[130,5,130,6]]}
["Severity","Sheet Name","List of Cells\n (first block)","First Total Cell (first block)","Last Total Cell\n(Last block)","Row Block Repetition Step","Column Block Repetition Step","Greater or Equal","Valid Tolerance","Only if all data is available","Non compliance Is Valid If Footnote Exists","Footnote Shift From Value","Display text in error"]
["Error","OUTPUT","G8,Q8,V8,AA8,AF8,AK8,AP8","BO8","BO315",1,999,"EQ",0.1,"YES","NO",3,"CEPA1-9 <> CEPA1+CEPA2+CEPA3+CEPA4+CEPA5+CEPA6+CEPA7-9"]
["Error","OUTPUT","G8,Q8,V8,AA8,AF8,AK8,AP8","BO8","BO315",1,999,"GE",0.1,"NO","NO",3,"CEPA1-9 < CEPA1+CEPA2+CEPA3+CEPA4+CEPA5+CEPA6+CEPA7-9"]
["Error","OUTPUT","AU8, AZ8, BJ8","AP8","AP315",1,999,"EQ",0.1,"YES","NO",3,"CEPA7-9 <> CEPA7+CEPA8+CEPA9"]
["Error","OUTPUT","AU8, AZ8, BJ8","AP8","AP315",1,999,"GE",0.1,"NO","NO",3,"CEPA7-9 < CEPA7+CEPA8+CEPA9"]
["Error","OUTPUT","L8","G8","G315",1,999,"GE",0.1,"NO","NO",3,"CEPA1 < CEPA1.1.2_1.2.2"]
["Error","OUTPUT","BE8","AZ8","AZ315",1,999,"GE",0.1,"NO","NO",3,"CEPA8 < CEPA8.1.2"]
["Error","OUTPUT","BT8,BY8,CN8,DH8,DM8","EL8","EL315",1,999,"EQ",0.1,"YES","NO",3,"Crema10-16 <> Crema10+Crema11+Crema13+Crema14+Crema12-15-16"]
["Error","OUTPUT","BT8,BY8,CN8,DH8,DM8","EL8","EL315",1,999,"GE",0.1,"NO","NO",3,"Crema10-16 < Crema10+Crema11+Crema13+Crema14+Crema12-15-16"]
["Error","OUTPUT","CD8, CI8","BY8","BY315",1,999,"EQ",0.1,"YES","NO",3,"Crema11 <> Crema11A+Crema11B"]
["Error","OUTPUT","CD8, CI8","BY8","BY315",1,999,"GE",0.1,"NO","NO",3,"Crema11 < Crema11A+Crema11B"]
["Error","OUTPUT","CS8,CX8,DC8","CN8","CN315",1,999,"EQ",0.1,"YES","NO",3,"Crema13 <> Crema13A+Crema13B+Crema13C"]
["Error","OUTPUT","CS8,CX8,DC8","CN8","CN315",1,999,"GE",0.1,"NO","NO",3,"Crema13 < Crema13A+Crema13B+Crema13C"]
["Error","OUTPUT","DR8,DW8,EG8","DM8","DM315",1,999,"EQ",0.1,"YES","NO",3,"Crema12-15-16 <> Crema12+Crema15+Crema16"]
["Error","OUTPUT","DR8,DW8,EG8","DM8","DM315",1,999,"GE",0.1,"NO","NO",3,"Crema12-15-16 < Crema12+Crema15+Crema16"]
["Error","OUTPUT","EB8","DW8","DW315",1,999,"GE",0.1,"NO","NO",3,"Crema15 < Crema15.5.1"]
["Error","OUTPUT","BO8,EL8","EQ8","EQ315",1,999,"EQ",0.1,"YES","NO",3,"TOT_CEPA_Crema <> CEPA1-9+Crema10-16 (Not in Validation rules)"]
["Error","OUTPUT","BO8,EL8","EQ8","EQ315",1,999,"GE",0.1,"NO","NO",3,"TOT_CEPA_Crema < CEPA1-9+Crema10-16 (Not in Validation rules)"]
["Error","OUTPUT","G9,G10,G11,G12","G8","EQ315",7,5,"EQ",0.1,"YES","NO",3,"TOT_EGSS <> MKT + NMKT + OWN_USE + ANC"]
["Error","OUTPUT","G9,G10,G11,G12","G8","EQ315",7,5,"GE",0.1,"NO","NO",3,"TOT_EGSS < MKT + NMKT + OWN_USE + ANC"]
["Error","OUTPUT","G13,G14","G12","EQ315",7,5,"GE",0.1,"NO","NO",3,"MKT < ES_CS + C_REP","don't reset cell color"]
["Error","OUTPUT","G15,G22,G29,G127,G134,G169,G197,G218,G260,G267,G309","G8","EQ14",1,5,"EQ",0.1,"YES","NO",3,"TOTAL <> A + B + C + D + E + F +  J +  M + O + P  + G-I_K_L_N_Q-U"]
["Error","OUTPUT","G15,G22,G29,G127,G134,G169,G197,G218,G260,G267,G309","G8","EQ14",1,5,"GE",0.1,"NO","NO",3,"TOTAL < A + B + C + D + E + F +  J +  M + O + P  + G-I_K_L_N_Q-U"]
["Error","OUTPUT","G36,G43,G50,G57,G64,G71,G78,G85,G92,G99,G106,G113,G120","G29","EQ35",1,5,"EQ",0.1,"YES","NO",3,"Total C <> C10_C12 + C13_C15 + C16_C18 + C19 + C20 + C21 + C22_C23 + C24_C25 + C26 + C27 + C28 + C29_C30 + C31-C33"]
["Error","OUTPUT","G36,G43,G50,G57,G64,G71,G78,G85,G92,G99,G106,G113,G120","G29","EQ35",1,5,"GE",0.1,"NO","NO",3,"Total C < C10_C12 + C13_C15 + C16_C18 + C19 + C20 + C21 + C22_C23 + C24_C25 + C26 + C27 + C28 + C29_C30 + C31-C33"]
["Error","OUTPUT","G141, G148,G155,G162","G134","EQ140",1,5,"EQ",0.1,"YES","NO",3,"Total E <> E36 + E37 + E38 + E39"]
["Error","OUTPUT","G141, G148,G155,G162","G134","EQ140",1,5,"GE",0.1,"NO","NO",3,"Total E < E36 + E37 + E38 + E39"]
["Error","OUTPUT","G225,G232,G239,G246","G218","EQ224",1,5,"EQ",0.1,"YES","NO",3,"Total M <> M69_M70 + M71 + M72 + M73-M75"]
["Error","OUTPUT","G225,G232,G239,G246","G218","EQ224",1,5,"GE",0.1,"NO","NO",3,"Total M < M69_M70 + M71 + M72 + M73-M75"]
["Error","OUTPUT","G176,G183,G190,G204,G211,G253,G274,G281,G288,G295,G302","G309","EQ315",1,5,"EQ",0.1,"YES","NO",3,"G-I_K_L_N_Q-U <> G + H + I  + K + L  + N + Q + R + S + T + U"]
["Error","OUTPUT","G176,G183,G190,G204,G211,G253,G274,G281,G288,G295,G302","G309","EQ315",1,5,"GE",0.1,"NO","NO",3,"G-I_K_L_N_Q-U < G + H + I  + K + L  + N + Q + R + S + T + U"]
["Error","GROSS VALUE ADDED","G8,Q8,V8,AA8,AF8,AK8,AP8","BO8","BO315",1,999,"EQ",0.1,"YES","NO",3,"CEPA1-9 <> CEPA1+CEPA2+CEPA3+CEPA4+CEPA5+CEPA6+CEPA7-9"]
["Error","GROSS VALUE ADDED","G8,Q8,V8,AA8,AF8,AK8,AP8","BO8","BO315",1,999,"GE",0.1,"NO","NO",3,"CEPA1-9 < CEPA1+CEPA2+CEPA3+CEPA4+CEPA5+CEPA6+CEPA7-9"]
["Error","GROSS VALUE ADDED","AU8, AZ8, BJ8","AP8","AP315",1,999,"EQ",0.1,"YES","NO",3,"CEPA7-9 <> CEPA7+CEPA8+CEPA9"]
["Error","GROSS VALUE ADDED","AU8, AZ8, BJ8","AP8","AP315",1,999,"GE",0.1,"NO","NO",3,"CEPA7-9 < CEPA7+CEPA8+CEPA9"]
["Error","GROSS VALUE ADDED","L8","G8","G315",1,999,"GE",0.1,"NO","NO",3,"CEPA1 < CEPA1.1.2_1.2.2"]
["Error","GROSS VALUE ADDED","BE8","AZ8","AZ315",1,999,"GE",0.1,"NO","NO",3,"CEPA8 < CEPA8.1.2"]
["Error","GROSS VALUE ADDED","BT8,BY8,CN8,DH8,DM8","EL8","EL315",1,999,"EQ",0.1,"YES","NO",3,"Crema10-16 <> Crema10+Crema11+Crema13+Crema14+Crema12-15-16"]
["Error","GROSS VALUE ADDED","BT8,BY8,CN8,DH8,DM8","EL8","EL315",1,999,"GE",0.1,"NO","NO",3,"Crema10-16 < Crema10+Crema11+Crema13+Crema14+Crema12-15-16"]
["Error","GROSS VALUE ADDED","CD8, CI8","BY8","BY315",1,999,"EQ",0.1,"YES","NO",3,"Crema11 <> Crema11A+Crema11B"]
["Error","GROSS VALUE ADDED","CD8, CI8","BY8","BY315",1,999,"GE",0.1,"NO","NO",3,"Crema11 < Crema11A+Crema11B"]
["Error","GROSS VALUE ADDED","CS8,CX8,DC8","CN8","CN315",1,999,"EQ",0.1,"YES","NO",3,"Crema13 <> Crema13A+Crema13B+Crema13C"]
["Error","GROSS VALUE ADDED","CS8,CX8,DC8","CN8","CN315",1,999,"GE",0.1,"NO","NO",3,"Crema13 < Crema13A+Crema13B+Crema13C"]
["Error","GROSS VALUE ADDED","DR8,DW8,EG8","DM8","DM315",1,999,"EQ",0.1,"YES","NO",3,"Crema12-15-16 <> Crema12+Crema15+Crema16"]
["Error","GROSS VALUE ADDED","DR8,DW8,EG8","DM8","DM315",1,999,"GE",0.1,"NO","NO",3,"Crema12-15-16 < Crema12+Crema15+Crema16"]
["Error","GROSS VALUE ADDED","EB8","DW8","DW315",1,999,"GE",0.1,"NO","NO",3,"Crema15 < Crema15.5.1"]
["Error","GROSS VALUE ADDED","BO8,EL8","EQ8","EQ315",1,999,"EQ",0.1,"YES","NO",3,"TOT_CEPA_Crema <> CEPA1-9+Crema10-16 (Not in Validation rules)"]
["Error","GROSS VALUE ADDED","BO8,EL8","EQ8","EQ315",1,999,"GE",0.1,"NO","NO",3,"TOT_CEPA_Crema < CEPA1-9+Crema10-16 (Not in Validation rules)"]
["Error","GROSS VALUE ADDED","G9,G10,G11,G12","G8","EQ315",7,5,"EQ",0.1,"YES","NO",3,"TOT_EGSS <> MKT + NMKT + OWN_USE + ANC"]
["Error","GROSS VALUE ADDED","G9,G10,G11,G12","G8","EQ315",7,5,"GE",0.1,"NO","NO",3,"TOT_EGSS < MKT + NMKT + OWN_USE + ANC"]
["Error","GROSS VALUE ADDED","G13,G14","G12","EQ315",7,5,"GE",0.1,"NO","NO",3,"MKT < ES_CS + C_REP"]
["Error","GROSS VALUE ADDED","G15,G22,G29,G127,G134,G169,G197,G218,G260,G267,G309","G8","EQ14",1,5,"EQ",0.1,"YES","NO",3,"TOTAL <> A + B + C + D + E + F +  J +  M + O + P  + G-I_K_L_N_Q-U"]
["Error","GROSS VALUE ADDED","G15,G22,G29,G127,G134,G169,G197,G218,G260,G267,G309","G8","EQ14",1,5,"GE",0.1,"NO","NO",3,"TOTAL < A + B + C + D + E + F +  J +  M + O + P  + G-I_K_L_N_Q-U"]
["Error","GROSS VALUE ADDED","G36,G43,G50,G57,G64,G71,G78,G85,G92,G99,G106,G113,G120","G29","EQ35",1,5,"EQ",0.1,"YES","NO",3,"Total C <> C10_C12 + C13_C15 + C16_C18 + C19 + C20 + C21 + C22_C23 + C24_C25 + C26 + C27 + C28 + C29_C30 + C31-C33"]
["Error","GROSS VALUE ADDED","G36,G43,G50,G57,G64,G71,G78,G85,G92,G99,G106,G113,G120","G29","EQ35",1,5,"GE",0.1,"NO","NO",3,"Total C < C10_C12 + C13_C15 + C16_C18 + C19 + C20 + C21 + C22_C23 + C24_C25 + C26 + C27 + C28 + C29_C30 + C31-C33"]
["Error","GROSS VALUE ADDED","G141, G148,G155,G162","G134","EQ140",1,5,"EQ",0.1,"YES","NO",3,"Total E <> E36 + E37 + E38 + E39"]
["Error","GROSS VALUE ADDED","G141, G148,G155,G162","G134","EQ140",1,5,"GE",0.1,"NO","NO",3,"Total E < E36 + E37 + E38 + E39"]
["Error","GROSS VALUE ADDED","G225,G232,G239,G246","G218","EQ224",1,5,"EQ",0.1,"YES","NO",3,"Total M <> M69_M70 + M71 + M72 + M73-M75"]
["Error","GROSS VALUE ADDED","G225,G232,G239,G246","G218","EQ224",1,5,"GE",0.1,"NO","NO",3,"Total M < M69_M70 + M71 + M72 + M73-M75"]
["Error","GROSS VALUE ADDED","G176,G183,G190,G204,G211,G253,G274,G281,G288,G295,G302","G309","EQ315",1,5,"EQ",0.1,"YES","NO",3,"G-I_K_L_N_Q-U <> G + H + I  + K + L  + N + Q + R + S + T + U"]
["Error","GROSS VALUE ADDED","G176,G183,G190,G204,G211,G253,G274,G281,G288,G295,G302","G309","EQ315",1,5,"GE",0.1,"NO","NO",3,"G-I_K_L_N_Q-U < G + H + I  + K + L  + N + Q + R + S + T + U"]
["Error","EMPLOYMENT","G8,Q8,V8,AA8,AF8,AK8,AP8","BO8","BO315",1,999,"EQ",0.1,"YES","NO",3,"CEPA1-9 <> CEPA1+CEPA2+CEPA3+CEPA4+CEPA5+CEPA6+CEPA7-9"]
["Error","EMPLOYMENT","G8,Q8,V8,AA8,AF8,AK8,AP8","BO8","BO315",1,999,"GE",0.1,"NO","NO",3,"CEPA1-9 < CEPA1+CEPA2+CEPA3+CEPA4+CEPA5+CEPA6+CEPA7-9"]
["Error","EMPLOYMENT","AU8, AZ8, BJ8","AP8","AP315",1,999,"EQ",0.1,"YES","NO",3,"CEPA7-9 <> CEPA7+CEPA8+CEPA9"]
["Error","EMPLOYMENT","AU8, AZ8, BJ8","AP8","AP315",1,999,"GE",0.1,"NO","NO",3,"CEPA7-9 < CEPA7+CEPA8+CEPA9"]
["Error","EMPLOYMENT","L8","G8","G315",1,999,"GE",0.1,"NO","NO",3,"CEPA1 < CEPA1.1.2_1.2.2"]
["Error","EMPLOYMENT","BE8","AZ8","AZ315",1,999,"GE",0.1,"NO","NO",3,"CEPA8 < CEPA8.1.2"]
["Error","EMPLOYMENT","BT8,BY8,CN8,DH8,DM8","EL8","EL315",1,999,"EQ",0.1,"YES","NO",3,"Crema10-16 <> Crema10+Crema11+Crema13+Crema14+Crema12-15-16"]
["Error","EMPLOYMENT","BT8,BY8,CN8,DH8,DM8","EL8","EL315",1,999,"GE",0.1,"NO","NO",3,"Crema10-16 < Crema10+Crema11+Crema13+Crema14+Crema12-15-16"]
["Error","EMPLOYMENT","CD8, CI8","BY8","BY315",1,999,"EQ",0.1,"YES","NO",3,"Crema11 <> Crema11A+Crema11B"]
["Error","EMPLOYMENT","CD8, CI8","BY8","BY315",1,999,"GE",0.1,"NO","NO",3,"Crema11 < Crema11A+Crema11B"]
["Error","EMPLOYMENT","CS8,CX8,DC8","CN8","CN315",1,999,"EQ",0.1,"YES","NO",3,"Crema13 <> Crema13A+Crema13B+Crema13C"]
["Error","EMPLOYMENT","CS8,CX8,DC8","CN8","CN315",1,999,"GE",0.1,"NO","NO",3,"Crema13 < Crema13A+Crema13B+Crema13C"]
["Error","EMPLOYMENT","DR8,DW8,EG8","DM8","DM315",1,999,"EQ",0.1,"YES","NO",3,"Crema12-15-16 <> Crema12+Crema15+Crema16"]
["Error","EMPLOYMENT","DR8,DW8,EG8","DM8","DM315",1,999,"GE",0.1,"NO","NO",3,"Crema12-15-16 < Crema12+Crema15+Crema16"]
["Error","EMPLOYMENT","EB8","DW8","DW315",1,999,"GE",0.1,"NO","NO",3,"Crema15 < Crema15.5.1"]
["Error","EMPLOYMENT","BO8,EL8","EQ8","EQ315",1,999,"EQ",0.1,"YES","NO",3,"TOT_CEPA_Crema <> CEPA1-9+Crema10-16 (Not in Validation rules)"]
["Error","EMPLOYMENT","BO8,EL8","EQ8","EQ315",1,999,"GE",0.1,"NO","NO",3,"TOT_CEPA_Crema < CEPA1-9+Crema10-16 (Not in Validation rules)"]
["Error","EMPLOYMENT","G9,G10,G11,G12","G8","EQ315",7,5,"EQ",0.1,"YES","NO",3,"TOT_EGSS <> MKT + NMKT + OWN_USE + ANC"]
["Error","EMPLOYMENT","G9,G10,G11,G12","G8","EQ315",7,5,"GE",0.1,"NO","NO",3,"TOT_EGSS < MKT + NMKT + OWN_USE + ANC"]
["Error","EMPLOYMENT","G13,G14","G12","EQ315",7,5,"GE",0.1,"NO","NO",3,"MKT < ES_CS + C_REP"]
["Error","EMPLOYMENT","G15,G22,G29,G127,G134,G169,G197,G218,G260,G267,G309","G8","EQ14",1,5,"EQ",0.1,"YES","NO",3,"TOTAL <> A + B + C + D + E + F +  J +  M + O + P  + G-I_K_L_N_Q-U"]
["Error","EMPLOYMENT","G15,G22,G29,G127,G134,G169,G197,G218,G260,G267,G309","G8","EQ14",1,5,"GE",0.1,"NO","NO",3,"TOTAL < A + B + C + D + E + F +  J +  M + O + P  + G-I_K_L_N_Q-U"]
["Error","EMPLOYMENT","G36,G43,G50,G57,G64,G71,G78,G85,G92,G99,G106,G113,G120","G29","EQ35",1,5,"EQ",0.1,"YES","NO",3,"Total C <> C10_C12 + C13_C15 + C16_C18 + C19 + C20 + C21 + C22_C23 + C24_C25 + C26 + C27 + C28 + C29_C30 + C31-C33"]
["Error","EMPLOYMENT","G36,G43,G50,G57,G64,G71,G78,G85,G92,G99,G106,G113,G120","G29","EQ35",1,5,"GE",0.1,"NO","NO",3,"Total C < C10_C12 + C13_C15 + C16_C18 + C19 + C20 + C21 + C22_C23 + C24_C25 + C26 + C27 + C28 + C29_C30 + C31-C33"]
["Error","EMPLOYMENT","G141, G148,G155,G162","G134","EQ140",1,5,"EQ",0.1,"YES","NO",3,"Total E <> E36 + E37 + E38 + E39"]
["Error","EMPLOYMENT","G141, G148,G155,G162","G134","EQ140",1,5,"GE",0.1,"NO","NO",3,"Total E < E36 + E37 + E38 + E39"]
["Error","EMPLOYMENT","G225,G232,G239,G246","G218","EQ224",1,5,"EQ",0.1,"YES","NO",3,"Total M <> M69_M70 + M71 + M72 + M73-M75"]
["Error","EMPLOYMENT","G225,G232,G239,G246","G218","EQ224",1,5,"GE",0.1,"NO","NO",3,"Total M < M69_M70 + M71 + M72 + M73-M75"]
["Error","EMPLOYMENT","G176,G183,G190,G204,G211,G253,G274,G281,G288,G295,G302","G309","EQ315",1,5,"EQ",0.1,"YES","NO",3,"G-I_K_L_N_Q-U <> G + H + I  + K + L  + N + Q + R + S + T + U"]
["Error","EMPLOYMENT","G176,G183,G190,G204,G211,G253,G274,G281,G288,G295,G302","G309","EQ315",1,5,"GE",0.1,"NO","NO",3,"G-I_K_L_N_Q-U < G + H + I  + K + L  + N + Q + R + S + T + U"]
["Error","EXPORTS","G8,Q8,V8,AA8,AF8,AK8,AP8","BO8","BO139",1,999,"EQ",0.1,"YES","NO",3,"CEPA1-9 <> CEPA1+CEPA2+CEPA3+CEPA4+CEPA5+CEPA6+CEPA7-9"]
["Error","EXPORTS","G8,Q8,V8,AA8,AF8,AK8,AP8","BO8","BO139",1,999,"GE",0.1,"NO","NO",3,"CEPA1-9 < CEPA1+CEPA2+CEPA3+CEPA4+CEPA5+CEPA6+CEPA7-9"]
["Error","EXPORTS","AU8, AZ8, BJ8","AP8","AP139",1,999,"EQ",0.1,"YES","NO",3,"CEPA7-9 <> CEPA7+CEPA8+CEPA9"]
["Error","EXPORTS","AU8, AZ8, BJ8","AP8","AP139",1,999,"GE",0.1,"NO","NO",3,"CEPA7-9 < CEPA7+CEPA8+CEPA9"]
["Error","EXPORTS","L8","G8","G139",1,999,"GE",0.1,"NO","NO",3,"CEPA1 < CEPA1.1.2_1.2.2"]
["Error","EXPORTS","BE8","AZ8","AZ139",1,999,"GE",0.1,"NO","NO",3,"CEPA8 < CEPA8.1.2"]
["Error","EXPORTS","BT8,BY8,CN8,DH8,DM8","EL8","EL139",1,999,"EQ",0.1,"YES","NO",3,"Crema10-16 <> Crema10+Crema11+Crema13+Crema14+Crema12-15-16"]
["Error","EXPORTS","BT8,BY8,CN8,DH8,DM8","EL8","EL139",1,999,"GE",0.1,"NO","NO",3,"Crema10-16 < Crema10+Crema11+Crema13+Crema14+Crema12-15-16"]
["Error","EXPORTS","CD8, CI8","BY8","BY139",1,999,"EQ",0.1,"YES","NO",3,"Crema11 <> Crema11A+Crema11B"]
["Error","EXPORTS","CD8, CI8","BY8","BY139",1,999,"GE",0.1,"NO","NO",3,"Crema11 < Crema11A+Crema11B"]
["Error","EXPORTS","CS8,CX8,DC8","CN8","CN139",1,999,"EQ",0.1,"YES","NO",3,"Crema13 <> Crema13A+Crema13B+Crema13C"]
["Error","EXPORTS","CS8,CX8,DC8","CN8","CN139",1,999,"GE",0.1,"NO","NO",3,"Crema13 < Crema13A+Crema13B+Crema13C"]
["Error","EXPORTS","DR8,DW8,EG8","DM8","DM139",1,999,"EQ",0.1,"YES","NO",3,"Crema12-15-16 <> Crema12+Crema15+Crema16"]
["Error","EXPORTS","DR8,DW8,EG8","DM8","DM139",1,999,"GE",0.1,"NO","NO",3,"Crema12-15-16 < Crema12+Crema15+Crema16"]
["Error","EXPORTS","EB8","DW8","DW139",1,999,"GE",0.1,"NO","NO",3,"Crema15 < Crema15.5.1"]
["Error","EXPORTS","BO8,EL8","EQ8","EQ139",1,999,"EQ",0.1,"YES","NO",3,"TOT_CEPA_Crema <> CEPA1-9+Crema10-16 (Not in Validation rules)"]
["Error","EXPORTS","BO8,EL8","EQ8","EQ139",1,999,"GE",0.1,"NO","NO",3,"TOT_CEPA_Crema < CEPA1-9+Crema10-16 (Not in Validation rules)"]
["Error","EXPORTS","G9,G10","G8","EQ139",3,5,"GE",0.1,"NO","NO",3,"TOT_EGSS < ES_CS + C_REP"]
["Error","EXPORTS","G11,G14,G17,G59,G62,G77,G89,G98,G116,G119,G137","G8","EQ10",1,5,"EQ",0.1,"YES","NO",3,"TOTAL <> A + B + C + D + E + F +  J +  M + O + P  + G-I_K_L_N_Q-U"]
["Error","EXPORTS","G11,G14,G17,G59,G62,G77,G89,G98,G116,G119,G137","G8","EQ10",1,5,"GE",0.1,"NO","NO",3,"TOTAL < A + B + C + D + E + F +  J +  M + O + P  + G-I_K_L_N_Q-U"]
["Error","EXPORTS","G20,G23,G26,G29,G32,G35,G38,G41,G44,G47,G50,G53,G56","G17","EQ19",1,5,"EQ",0.1,"YES","NO",3,"Total C <> C10_C12 + C13_C15 + C16_C18 + C19 + C20 + C21 + C22_C23 + C24_C25 + C26 + C27 + C28 + C29_C30 + C31-C33"]
["Error","EXPORTS","G20,G23,G26,G29,G32,G35,G38,G41,G44,G47,G50,G53,G56","G17","EQ19",1,5,"GE",0.1,"NO","NO",3,"Total C < C10_C12 + C13_C15 + C16_C18 + C19 + C20 + C21 + C22_C23 + C24_C25 + C26 + C27 + C28 + C29_C30 + C31-C33"]
["Error","EXPORTS","G65, G68,G71,G74","G62","EQ64",1,5,"EQ",0.1,"YES","NO",3,"Total E <> E36 + E37 + E38 + E39"]
["Error","EXPORTS","G65, G68,G71,G74","G62","EQ64",1,5,"GE",0.1,"NO","NO",3,"Total E < E36 + E37 + E38 + E39"]
["Error","EXPORTS","G101,G104,G107,G110","G98","EQ100",1,5,"EQ",0.1,"YES","NO",3,"Total M <> M69_M70 + M71 + M72 + M73-M75"]
["Error","EXPORTS","G101,G104,G107,G110","G98","EQ100",1,5,"GE",0.1,"NO","NO",3,"Total M < M69_M70 + M71 + M72 + M73-M75"]
["Error","EXPORTS","G80,G83,G86,G92,G95,G113,G122,G125,G128,G131,G134","G137","EQ139",1,5,"EQ",0.1,"YES","NO",3,"G-I_K_L_N_Q-U <> G + H + I  + K + L  + N + Q + R + S + T + U"]
["Error","EXPORTS","G80,G83,G86,G92,G95,G113,G122,G125,G128,G131,G134","G137","EQ139",1,5,"GE",0.1,"NO","NO",3,"G-I_K_L_N_Q-U < G + H + I  + K + L  + N + Q + R + S + T + U"]
[]
[]
[]
[]
[]
[]
[]
[]
[]
[]
[]
[null,null,null,null,null,"Must be > 0 for a not relevant dimension. Else you get an infinite loop",null,"EQ or GE or GT","GT does not admit Tolerance","NO or YES",null,"Not Applicable if the previous column is \"NO\""]
[]
["DESCRIPTION"]
["This sheet is meant to define the validation for summations in a row or in a column."]
["- A block is defined as a sequence of addendums in the same row or column"]
["- Only the first block must be explicitly defined"]
["- The block can be repeated at regular patterns through rows and columns at the same time"]
[]
[]
["PARAMETRES"]
["SheetName",null,"Name of the sheet to be validated (e.g. Table 1)"]
["List of Cells\n (first block)",null,"First cell in the first block to be validated"]
["First TotalCell (first block)"]
["Last TotalCell (Last block)"]
["Row Block Repetition Step"]
["Column Block Repetition Step"]
["Greater or Equal"]
["Valid Threshold"]
["Only if all data is available"]
["Display text in error",null,"Valid values: EQ (Strictly equal); GE (Greater or Equal); GT (Strictly greater - No threshold will be considered)"]
[]
[]
[]
[]
[]
[]
[]
[]
[]
[]
[]
[]
[]
[]
[]
[]
[]
[]
[]
[]
[]
[]
[]
[]
[]
[]
[]
[]
[]
[]
[]
[]
[]
[]
[]
[]
[]
[]
[]
[]
[]
[]
[]
[]
[]
[]
[]
[]
[]
[]
[]
[]
[]
[]
[]
[]
[]
[]
[]
[]
[]
[]
[]
[]
[]
[]
[]
[]
[]
[]
[]
[]
[]
[]
[]
[]
[]
[]
[null,null,null,{"$f":"SUM(Summations!B3º)","v":{"$error":"#NAME?"}}]

{"sheet":"Locks","index":21,"n_rows":29,"n_cols":9,"rows_kept":29,"cut":false,"hidden":true,"merged":[]}
["Sheet Name","Top Left Cell","Bottom Right Cell","Row Step","Column Step","Lock Type","Focus Back To"]
["OUTPUT","G8","G12",4,999,"Formulas","G8"]
["OUTPUT","Q8","AP12",4,5,"Formulas","G8"]
["OUTPUT","BQ8","BQ12",4,999,"Formulas","G8"]
["OUTPUT","BT8","BY12",4,5,"Formulas","G8"]
["OUTPUT","CN8","DM12",4,5,"Formulas","G8"]
["OUTPUT","DH8","DM12",4,5,"Formulas","G8",null,"can be deleted"]
["OUTPUT","EL8","EQ12",4,5,"Formulas","G8"]
["GROSS VALUE ADDED","G8","G12",4,999,"Formulas","G8"]
["GROSS VALUE ADDED","Q8","AP12",4,5,"Formulas","G8"]
["GROSS VALUE ADDED","BQ8","BQ12",4,999,"Formulas","G8"]
["GROSS VALUE ADDED","BT8","BY12",4,5,"Formulas","G8"]
["GROSS VALUE ADDED","CN8","DM12",4,5,"Formulas","G8"]
["GROSS VALUE ADDED","DH8","DM12",4,5,"Formulas","G8",null,"can be deleted"]
["GROSS VALUE ADDED","EL8","EQ12",4,5,"Formulas","G8"]
["EMPLOYMENT","G8","G12",4,999,"Formulas","G8"]
["EMPLOYMENT","Q8","AP12",4,5,"Formulas","G8"]
["EMPLOYMENT","BQ8","BQ12",4,999,"Formulas","G8"]
["EMPLOYMENT","BT8","BY12",4,5,"Formulas","G8"]
["EMPLOYMENT","CN8","DM12",4,5,"Formulas","G8"]
["EMPLOYMENT","DH8","DM12",4,5,"Formulas","G8",null,"can be deleted"]
["EMPLOYMENT","EL8","EQ12",4,5,"Formulas","G8"]
["EXPORTS","G8","G8",999,999,"Formulas","G8"]
["EXPORTS","Q8","AP8",999,5,"Formulas","G8"]
["EXPORTS","BQ8","BQ8",999,999,"Formulas","G8"]
["EXPORTS","BT8","BY8",999,5,"Formulas","G8"]
["EXPORTS","CN8","DM8",999,5,"Formulas","G8"]
["EXPORTS","DH8","DM8",999,5,"Formulas","G8",null,"can be deleted"]
["EXPORTS","EL8","EQ8",999,5,"Formulas","G8"]

{"sheet":"StandardFootnotes","index":22,"n_rows":9,"n_cols":7,"rows_kept":9,"cut":false,"hidden":true,"merged":[]}
["Severity","SheetName","Top Left Cell","Bottom Right Cell","Row Step","Column Step","Footnote type \n(CONF/STATUS)"]
["Error","OUTPUT","H8","EZ315",1,5,"STATUS"]
["Error","GROSS VALUE ADDED","H8","EZ315",1,5,"STATUS"]
["Error","EMPLOYMENT","H8","EZ315",1,5,"STATUS"]
["Error","EXPORTS","H8","EZ139",1,5,"STATUS"]
["Error","OUTPUT","I8","EZ315",1,5,"CONF"]
["Error","GROSS VALUE ADDED","I8","EZ315",1,5,"CONF"]
["Error","EMPLOYMENT","I8","EZ315",1,5,"CONF"]
["Error","EXPORTS","I8","EZ139",1,5,"CONF"]

{"sheet":"Fill (Specific)","index":23,"n_rows":21,"n_cols":9,"rows_kept":21,"cut":false,"hidden":true,"merged":[]}
["SheetName","TopLeftCell","BottomRightCell","RowStep","ColumnStep","Value","Replace"]
["OUTPUT","G8","EZ315",1,5,0,"NO",null,"Fill with 0"]
["OUTPUT","G8","EZ315",1,5,null,"YES",null,"Clean values"]
["OUTPUT","H8","EZ315",1,5,null,"YES",null,"Clean Standart footnotes"]
["OUTPUT","I8","EZ315",1,5,null,"YES",null,"Clean Confidentiality footnotes"]
["OUTPUT","J8","EZ315",1,5,null,"YES",null,"Clean Explanatory footnotes"]
["GROSS VALUE ADDED","G8","EZ315",1,5,0,"NO",null,"Fill with 0"]
["GROSS VALUE ADDED","G8","EZ315",1,5,null,"YES",null,"Clean values"]
["GROSS VALUE ADDED","H8","EZ315",1,5,null,"YES",null,"Clean Standart footnotes"]
["GROSS VALUE ADDED","I8","EZ315",1,5,null,"YES",null,"Clean Confidentiality footnotes"]
["GROSS VALUE ADDED","J8","EZ315",1,5,null,"YES",null,"Clean Explanatory footnotes"]
["EMPLOYMENT","G8","EZ315",1,5,0,"NO",null,"Fill with 0"]
["EMPLOYMENT","G8","EZ315",1,5,null,"YES",null,"Clean values"]
["EMPLOYMENT","H8","EZ315",1,5,null,"YES",null,"Clean Standart footnotes"]
["EMPLOYMENT","I8","EZ315",1,5,null,"YES",null,"Clean Confidentiality footnotes"]
["EMPLOYMENT","J8","EZ315",1,5,null,"YES",null,"Clean Explanatory footnotes"]
["EXPORTS","G8","EZ139",1,5,0,"NO",null,"Fill with 0"]
["EXPORTS","G8","EZ139",1,5,null,"YES",null,"Clean values"]
["EXPORTS","H8","EZ139",1,5,null,"YES",null,"Clean Standart footnotes"]
["EXPORTS","I8","EZ139",1,5,null,"YES",null,"Clean Confidentiality footnotes"]
["EXPORTS","J8","EZ139",1,5,null,"YES",null,"Clean Explanatory footnotes"]

{"sheet":"CrossChecks (Specific)","index":24,"n_rows":13,"n_cols":9,"rows_kept":13,"cut":false,"hidden":true,"merged":[]}
["SEVERITY","SheetName","TopLeftCell","BottomRightCell","RowStep","ColumnStep","Sheet1","Sheet2","Display text error"]
["Error","OUTPUT","G8","EZ315",1,5,"GROSS VALUE ADDED","EMPLOYMENT",{"$f":"\"Value in \" & B2 & \" not consistent with values in \" & G2 & \" and/or \" & H2","v":"Value in OUTPUT not consistent with values in GROSS VALUE ADDED and/or EMPLOYMENT"}]
["Error","OUTPUT","H8","EZ315",1,5,"GROSS VALUE ADDED","EMPLOYMENT",{"$f":"\"Footnote in \" & B3 & \" not consistent with footnotes in \" & G3 & \" and/or \" & H3","v":"Footnote in OUTPUT not consistent with footnotes in GROSS VALUE ADDED and/or EMPLOYMENT"}]
["Error","OUTPUT","I8","EZ315",1,5,"GROSS VALUE ADDED","EMPLOYMENT",{"$f":"\"Footnote in \" & B4 & \" not consistent with footnotes in \" & G4 & \" and/or \" & H4","v":"Footnote in OUTPUT not consistent with footnotes in GROSS VALUE ADDED and/or EMPLOYMENT"}]
["Error","OUTPUT","J8","EZ315",1,5,"GROSS VALUE ADDED","EMPLOYMENT","Footnote in OUTPUT not consistent with footnotes in GROSS VALUE ADDED and/or EMPLOYMENT"]
["Error","GROSS VALUE ADDED","G8","EZ315",1,5,"OUTPUT","EMPLOYMENT",{"$f":"\"Value in \" & B6 & \" not consistent with values in \" & G6 & \" and/or \" & H6","v":"Value in GROSS VALUE ADDED not consistent with values in OUTPUT and/or EMPLOYMENT"}]
["Error","GROSS VALUE ADDED","H8","EZ315",1,5,"OUTPUT","EMPLOYMENT",{"$f":"\"Footnote in \" & B7 & \" not consistent with footnotes in \" & G7 & \" and/or \" & H7","v":"Footnote in GROSS VALUE ADDED not consistent with footnotes in OUTPUT and/or EMPLOYMENT"}]
["Error","GROSS VALUE ADDED","I8","EZ315",1,5,"OUTPUT","EMPLOYMENT",{"$f":"\"Footnote in \" & B8 & \" not consistent with footnotes in \" & G8 & \" and/or \" & H8","v":"Footnote in GROSS VALUE ADDED not consistent with footnotes in OUTPUT and/or EMPLOYMENT"}]
["Error","GROSS VALUE ADDED","J8","EZ315",1,5,"OUTPUT","EMPLOYMENT","Footnote in GROSS VALUE ADDED not consistent with footnotes in OUTPUT and/or EMPLOYMENT"]
["Error","EMPLOYMENT","G8","EZ315",1,5,"OUTPUT","GROSS VALUE ADDED",{"$f":"\"Value in \" & B10 & \" not consistent with values in \" & G10 & \" and/or \" & H10","v":"Value in EMPLOYMENT not consistent with values in OUTPUT and/or GROSS VALUE ADDED"}]
["Error","EMPLOYMENT","H8","EZ315",1,5,"OUTPUT","GROSS VALUE ADDED",{"$f":"\"Footnote in \" & B11 & \" not consistent with footnotes in \" & G11 & \" and/or \" & H11","v":"Footnote in EMPLOYMENT not consistent with footnotes in OUTPUT and/or GROSS VALUE ADDED"}]
["Error","EMPLOYMENT","I8","EZ315",1,5,"OUTPUT","GROSS VALUE ADDED",{"$f":"\"Footnote in \" & B12 & \" not consistent with footnotes in \" & G12 & \" and/or \" & H12","v":"Footnote in EMPLOYMENT not consistent with footnotes in OUTPUT and/or GROSS VALUE ADDED"}]
["Error","EMPLOYMENT","J8","EZ315",1,5,"OUTPUT","GROSS VALUE ADDED","Footnote in EMPLOYMENT not consistent with footnotes in OUTPUT and/or GROSS VALUE ADDED"]

{"sheet":"NotInFootNotesList (Specific)","index":25,"n_rows":5,"n_cols":10,"rows_kept":5,"cut":false,"hidden":true,"merged":[]}
["SEVERITY","SheetName","TopLeftCell","BottomRightCell","RowStep","ColumnStep","Footnotes List Sheet","FNLTopRow","FNLColumnId","FNLColumnLabel"]
["Error","OUTPUT","J8","EZ315",1,5,"Footnotes list",9,4,5]
["Error","GROSS VALUE ADDED","J8","EZ315",1,5,"Footnotes list",9,4,5]
["Error","EMPLOYMENT","J8","EZ315",1,5,"Footnotes list",9,4,5]
["Error","EXPORTS","J8","EZ139",1,5,"Footnotes list",9,4,5]

{"sheet":"NotStandardRules","index":26,"n_rows":3,"n_cols":1,"rows_kept":3,"cut":false,"hidden":true,"merged":[]}
["Validation Rule"]
["NotInFootnotesList"]
["ConsistencyCrossChecks"]

{"sheet":"x Pre-filling parameters","index":27,"n_rows":3,"n_cols":11,"rows_kept":3,"cut":false,"hidden":true,"merged":[]}
["Sheet From","Sheet To","Top Left Cell","Bottom Right Cell","Row Step","Column Step","Confidentiality flag\n(YES/NO)","Replace locked cells\n(YES/NO)","Hide sheet after pasting\n(YES/NO)","Footnote Call-out (number) exists\n(YES/NO)"]
["Table_1 (COPY-PASTING)","Table_1","G8","DL106",1,5,"YES","NO","NO","YES","Waste detail"]
["Table_1 (COPY-PASTING)","Table_1","G107","DL118",1,5,"YES","NO","NO","YES","GRAND TOTALS"]

{"sheet":"x ContentInHiddenSheets","index":28,"n_rows":2,"n_cols":6,"rows_kept":2,"cut":false,"hidden":true,"merged":[]}
["Severity","SheetName","Top Left Cell","Bottom Right Cell","Row Step","Column Step"]
["Error","Table_1","G8","AL18",1,1]

{"sheet":"x Between2Cells","index":29,"n_rows":8,"n_cols":8,"rows_kept":8,"cut":false,"hidden":true,"merged":[]}
["Severity","SheetName","Top Left Cell","Bottom Right Cell","Row Step","Column Step","Cell A\n(first block)","Cell B\n(first block)"]
["Error","Table_1","G8","G18",1,999,"K8","O8"]
[]
[]
[]
[]
[]
["The tested cell must have a value in between CellA and CellB values, disregarding which value (CellA or CellB) is higher."]

{"sheet":"x ForbiddenStrings","index":30,"n_rows":5,"n_cols":8,"rows_kept":5,"cut":false,"hidden":true,"merged":[]}
["Severity","SheetName","TopLeftCell","BottomRightCell","RowStep","ColumnStep","ForbiddenString","Display text in error"]
["Warning","Footnotes list","E9","E58",1,999,"not available","Please verify the explanatory note sufficiently explains why the data is not available"]
["Warning","Footnotes list","E9","E58",1,999,"not reported","Please verify the explanatory note sufficiently explains why the data is not available"]
["Warning","Footnotes list","E9","E58",1,999,"unavailable data","Please verify the explanatory note sufficiently explains why the data is not available"]
["Warning","Footnotes list","E9","E58",1,999,"no data available","Please verify the explanatory note sufficiently explains why the data is not available"]

{"sheet":"x MandatoryAtLeast","index":31,"n_rows":17,"n_cols":6,"rows_kept":17,"cut":false,"hidden":true,"merged":[]}
["Severity","Sheet Name","List of Cells","Mandatory at least X cells","Mandatory at most X cells","Display text in error"]
["Error","Table_1","G8,G9,G10,G15,G16,G17",2,999,"At least two cells must be filled-in"]
["Error","Table_1","K8,O8,S8",1,999]
["Error","Table_3","AA10",1,999]
[]
[]
[]
["DESCRIPTION"]
["This sheet is meant to define the list of cells, of which at least one (or more, as indicated in column D) must be filled-in"]
[]
[]
["PARAMETRES"]
["SheetName",null,"Name of the sheet to be validated (e.g. Table 1)"]
["List of Cells",null,"First cell in the first block to be validated"]
["Mandatory at least X cells",null,"Number of cells in the list that, at least, must be filled in"]
["Mandatory at most Y cells",null,"Maximum number of cells in the list that must be filled in"]
["Display text in error",null,"Valid values: EQ (Strictly equal); GE (Greater or Equal); GT (Strictly greater - No threshold will be considered)"]

{"sheet":"x Thresholds","index":32,"n_rows":2,"n_cols":10,"rows_kept":2,"cut":false,"hidden":true,"merged":[]}
["Severity","SheetName","Top Left Cell","Bottom Right Cell","Row Step","Column Step","Lower value","Upper value","Error Is Valid If Footnote Exists","Footnote Shift From Value"]
["Error","Table_2","G8","J14",1,1,0,100,"NO",999]

{"sheet":"x IsFormula","index":33,"n_rows":7,"n_cols":6,"rows_kept":7,"cut":false,"hidden":true,"merged":[]}
["Severity","Sheet Name","Top Left Cell","Bottom Right Cell","Row Step","Column Step"]
["Info","Table_1","G18","AI18",999,4]
["Info","Table_1","G10","W10",999,4]
["Info","Table_1","AE10","AI10",999,4]
["Info","Table_1a","G13","K13",999,4]
["Info","Table_1a","G16","K16",999,4]
["Info","Table_3","G17","AQ17",999,4]

{"sheet":"x FootnoteContent","index":34,"n_rows":4,"n_cols":7,"rows_kept":4,"cut":false,"hidden":true,"merged":[]}
["Severity","SheetName","TopLeftCell","BottomRightCell","RowStep","ColumnStep","DistanceFromReferenceToText"]
["Error","Table_1","I8","AK18",1,4,1]
["Error","Table_1a","I8","M16",1,4,1]
["Error","Table_3","I10","AS17",1,4,1]